{"text_format":"1","workbook":"xlsx","n_sheets":12,"sheets":["Disclaimer","Legenda","Correção","Economática","Dados","Dados MM","Dados MM2","Dados setorial","colar adrs","Stock guide","Maiores e Melhores","Setorial e ADRs"],"not_rendered":{"charts":0,"images":1,"macros":1,"external_links":1,"defined_names":11,"comments":1,"pivot_tables":1},"unopened":[],"bounds":{"document_bytes":16777216,"sheet_cells":100000,"rows_first":2000,"rows_last":500,"rows_between":2000,"halvings":0,"cell_chars":16384,"cell_head_chars":4096},"cells_cut":0,"cells_raw":0,"read":"whole","date_system":"1900"}

{"sheet":"Disclaimer","index":0,"n_rows":4,"n_cols":1,"rows_kept":4,"cut":false,"hidden":false,"merged":[[3,0,3,13]]}
[]
[]
[]
["Disclaimer"]

{"sheet":"Legenda","index":1,"n_rows":67,"n_cols":2,"rows_kept":67,"cut":false,"hidden":false,"merged":[]}
["Valores:","Valores em milhões de reais, salvo quando indicado o contrário"]
[]
["Código da ação:","Código de negociação da ação na Bolsa de Valores de São Paulo. "]
[]
["Cotação:","Cotação da ação em bolsa."]
[]
["Quantidade de Ações:","Soma das ações Ordinárias e Preferenciais do último Balanço, ajustado a eventuais desdobramentos, excluindo ações em tesouraria "]
[null," "]
["Valor de Mercado:","Quantidade de ações da Companhia, multiplicada pela cotação da ação"]
[]
["Patrimônio Líquido:","Patrimônio Líquido  na data do último Balanço Patrimonial divulgado"]
[]
["Receita Líquida:","Receita Líquida referente ao período citado."]
[]
["Lucro Líquido:","Lucro Líquido em valores acumulados no período"]
[]
["Lucro Por Ação:","Lucro Líquido acumulado nos últimos 12 meses, dividido pela quantidade total de ações"]
[null,"Fórmula:  L.L. (últ. 12 meses) / Qtd. Ações"]
[]
["Valor Patrim. da Ação:","Patrimônio Líquido do último Balanço Patrimonial divulgado, dividido pelo número total de ações"]
[null,"Fórmula:  P.L. / Qtd. Ações"]
[]
["Preço /Valor Patr. Ação:","Cotação da ação dividido pelo Valor Patrimonial da ação"]
[null,"Fórmula:  Cot. / Vlr. Patr."]
[]
["Relação Preço/Lucro:","Preço da ação dividido pelo Lucro por ação nos últimos 12 meses "]
[null,"Fórmula:  Cot. / LPA (últ. 12 meses)"]
[]
["Rentab. Patrim.:","Lucro líquido acumulado nos últimos 12 meses dividido pelo Patrimônio Líquido há 12 meses "]
[null,"Fórmula:  Rent=(L.L. últ. 12 meses)/(P.L. inicial) "]
[]
["Dív. Líq./Patrim.:","(Endividamento financeiro total - caixa - aplicações financeiras de curto prazo)/Patrim. Líq. (Dados do último Balanço Patrimonial divulgado)"]
[null,"Fórmula: (Dívida Fin - (Caixa + Aplic. Fin.))/P.L."]
[]
["EBITDA:","(Earnings Before Interests, Taxes, Depreciation and Amortization) = Lucro antes dos juros, impostos, depreciação e amortização"]
[null,"Fórmula:  Lucro Bruto - Despesas com Vendas e Gerais/Admin. + Outras Receitas Oper. - Outras Despesas Oper. + Depreciação "]
[null,"e Amortizações (Dados do Balanço Patrimonial do exercício citado)"]
[]
["Firm Value/ Ebitda:","Valor de mercado  somado ao endividamento líquido (último Balanço divulgado) dividido pelo EBITDA (anual) do exercício anterior"]
[null,"Fórmula:  (Vlr. Merc + Dívida Fin -(Caixa + Aplic. Fin.))/ EBITDA "]
[]
["Dividendos:","Montante de dividendos e/ou juros s/ capital pagos no período citado"]
[]
["Yield:","Montante de dividendos e/ ou juros s/ capital pagos no exercício anterior dividido pelo Valor de Mercado atual. "]
[null,"Fórmulas:  (Div + JSC)/ Vlr. Merc"]
[]
["Oscilação no Mês:","Oscilação da ação acumulada no mês"]
[]
["Oscilação no Ano:","Oscilação da ação acumulada no ano"]
[]
["% ON/Total:","Percentual de ações ordinárias dividido pelo número total de ações da empresa"]
[]
["* Observação (composição das Units):"]
[]
[]
["Uma unit de AES Tietê corresponde a uma ação ON e quatro ações PN"]
["Uma unit de Alupar corresponde a uma ação ON e duas ações PN"]
["Uma unit de BTG Pactual corresponde a uma ação ON e duas ações PNA do Banco BTG + 1 BDR A e 2 BDR B do BTG Pactual Participations"]
["Uma unit de Contax corresponde a uma ação ON e quatro ações PN"]
["Uma unit de Energisa corresponde a uma ação ON e quatro ações PN"]
["Uma unit de Klabin corresponde a uma ação ON e quatro ações PN"]
["Uma unit de Renova corresponde a uma ação ON e duas ações PN"]
["Uma unit de Sanepar corresponde a uma ação ON e quatro ações PN"]
["Uma unit de Santander corresponde a uma ação ON e uma ação PN"]
["Uma unit de Sul América corresponde a uma ação ON e duas ações PN"]
["Uma unit de Taesa corresponde a uma ação ON e duas ações PN"]
["Uma unit de Viavarejo corresponde a uma ação ON e duas ações PN"]

{"sheet":"Correção","index":2,"n_rows":36,"n_cols":7,"rows_kept":36,"cut":false,"hidden":true,"merged":[]}
[]
[null,"Código","Empresa","Classe","Quantidade","Índice de Ajuste","Quantidade Ajustada"]
[null,"KLBN11","Klabin","UNT N2",{"$f":"VLOOKUP(B3,Economática!$A$3:$AI$823,8,FALSE)","v":17.03},5,{"$f":"E3/F3","v":3.4060000000000001}]
[null,"ALUP11","Alupar","UNT N2",611.73,3,{"$f":"(E4/F4)","v":203.91}]
[null,"CTAX11","Contax","UNT N2",344.00799999999998,5,{"$f":"(E5/F5)","v":68.801599999999993}]
[null,"RNEW11","Renova","UNT N2",231.29,3,{"$f":"(E6/F6)","v":77.096666666666664}]
[null,"SANB11","Santander BR","UNT N2",{"$f":"VLOOKUP(B7,Economática!$A$3:$AI$823,8,FALSE)","v":43.97},2,{"$f":"E7/F7","v":21.984999999999999}]
[null,"TIET11","AES Tietê","UNT N2",{"$f":"VLOOKUP(B8,Economática!$A$3:$AI$823,8,FALSE)","v":11.08},5,2.2160000000000002]
[null,"SULA11","Sul America","UNT N2",{"$f":"VLOOKUP(B9,Economática!$A$3:$AI$823,8,FALSE)","v":29.8},3,9.9333333333333336]
[null,"VVAR11","Viavarejo","UNT N2",659.16,3,219.72]
[null,"TAEE11","Taesa","UNT N2",{"$f":"VLOOKUP(B11,Economática!$A$3:$AI$823,8,FALSE)","v":24.8},3,8.2666666666666675]
[null,"BBTG11","BTG Pactual","UNT N2",{"$f":"VLOOKUP(B12,Economática!$A$3:$AI$823,8,FALSE)","v":{"$error":"#N/A"}},3,{"$error":"#N/A"}]
[null,"ENGI11","Energisa","UNT N2",{"$f":"VLOOKUP(B13,Economática!$A$3:$AI$823,8,FALSE)","v":40.549999999999997},5,8.11]
[null,"SAPR4","Sanepar","UNT N2",{"$f":"VLOOKUP(B14,Economática!$A$3:$AI$823,8,FALSE)","v":13.9},5,2.7800000000000002]
[]
[null,"Economática","Guia"]
[null,"Agro e Pesca","Agro "]
[null,"Alimentos e Beb","Alimentos e Bebidas"]
[null,"Comércio","Comércio"]
[null,"Construção","Construção"]
[null,"Eletroeletrônicos","Eletroeletrônicos"]
[null,"Energia Elétrica","Energia Elétrica"]
[null,"Finanças e Seguros","Finanças e Seguros"]
[null,"Minerais não Met","Mineração"]
[null,"Mineração","Mineração"]
[null,"Máquinas Indust","Máquinas Industriais"]
[null,"Outros","Outros"]
[null,"Papel e Celulose","Papel e Celulose"]
[null,"Petróleo e Gas","Petróleo e Gás"]
[null,"Química","Química"]
[null,"Siderur & Metalur","Siderurgia e Metalurgia"]
[null,"Software e Dados","Software e Dados"]
[null,"Telecomunicações","Telecom"]
[null,"Textil","Têxtil"]
[null,"Transporte Serviç","Transportes"]
[null,"Veiculos e peças","Veículos e peças"]

{"sheet":"Economática","index":3,"n_rows":825,"n_cols":37,"rows_kept":825,"cut":false,"hidden":true,"merged":[]}
[]
[1,{"$f":"A2+1","v":2},{"$f":"B2+1","v":3},{"$f":"C2+1","v":4},5,6,7,8,9,10,11,12,13,14,15,16,17,18,19,{"$f":"S2+1","v":20},21,22,23,24,25,26,27,28,29,30,31,32,33,34,35,{"$f":"AI2+1","v":36},{"$f":"AJ2+1","v":37}]
["Código","Nome","Classe","Pais Sede","Tipo de Ativo","Setor|Economatica","Valor Mercado|da empresa|29Mar19|Em moeda orig|em milhões","Fechamento|29Mar19|ajust p/ prov|Em moeda orig","Qtd Ações|Outstanding|da empresa|em milhões|29Mar19","Patrim Liq| Mais recente| Em moeda orig| em milhões| consolid:sim*","Receita| Dez 2017| Em moeda orig| em milhões| no exercício| consolid:sim*","Receita| Dez 2018| Em moeda orig| em milhões| no exercício| consolid:sim*","Lucro Liquido| < Dez 2017| Em moeda orig| em milhões| no exercício| consolid:sim*","Lucro Liquido| < Mar 2018| Em moeda orig| em milhões| no exercício| consolid:sim*","Lucro Liquido| < Jun 2018| Em moeda orig| em milhões| no exercício| consolid:sim*","Lucro Liquido| < Set 2018| Em moeda orig| em milhões| no exercício| consolid:sim*","Lucro Liquido| < Dez 2018| Em moeda orig| em milhões| no exercício| consolid:sim*","Lucro Liquido| Dez 2017| Em moeda orig| em milhões| no exercício| consolid:sim*","Lucro Liquido| Dez 2018| Em moeda orig| em milhões| no exercício| consolid:sim*","Lucro Liquido| Mais recente| Em moeda orig| em milhões| de 12 meses| consolid:sim*","RenPat(in)| Mais recente| Em moeda orig| de 12 meses| consolid:sim*","DL/PL| Mais recente| consolid:sim*","EBITDA| Dez 2017| Em moeda orig| em milhões| no exercício| consolid:sim*","EBITDA| Dez 2018| Em moeda orig| em milhões| no exercício| consolid:sim*","EBITDA| Mais recente| Em moeda orig| em milhões| de 12 meses| consolid:sim*","Div Tt Lq| Mais recente| Em moeda orig| em milhões| consolid:sim*","DivPag| Mais recente| Em moeda orig| em milhões| de 12 meses| consolid:não*","Retorno|do fechamento|no mês|(de 28Fev19|até 29Mar19)|Em moeda orig|ajust p/ prov","Retorno|do fechamento|de 29Dez17|até o ultimo negocio|Em moeda orig|ajust p/ prov","QAcOrd| Mais recente| em milhões| consolid:não*","Qtd Ações|Emitidas|da empresa|em milhões|29Mar19","Indicador 1","Código","ReInFi| Dez 2017| Em moeda orig| em milhares| no exercício| consolid:sim*","ReInFi| Dez 2018| Em moeda orig| em milhares| no exercício| consolid:sim*","Media|nulos = 0|do volume$|em 1 mês|até o ultimo negocio|Em moeda orig|em milhares","Ativo /|Cancelado"]
[{"$f":"IF(AG4=\"\",\"\",AG4)","v":"AGRO3"},"Brasilagro","ON","BR","Ação","Agro e Pesca",836.62,15.55,53.802,882.81,174.6,336.38,31.64,85.62,126.34,136.63999999999999,136.12,31.64,136.12,230.83,33.271099999999997,23.6371,58.8,175.9,301.10000000000002,208.672,-41,-1.9,31.2,56.9,56.9,1,"AGRO3","-","-",1271,"ativo"]
["SLCE3","SLC Agricola","ON","BR","Ação","Agro e Pesca",3862.93,41.06,94.08,2598.17,2219.9,2823.47,356.34,154.32,311.37,347.16,381.25,356.34,381.25,381.25,15.045400000000001,34.433599999999998,685,769,769,962.33500000000004,-199.99,0.1,61.7,95.3,95.3,1,"SLCE3","-","-",27219,"ativo"]
["BSEV3","Biosev","ON","BR","Ação","Agro e Pesca",2724.55,2.67,1020.429,624.41999999999996,5147.72,4959.07,-823.16,-1269.83,-506.21,-661.76,-892.2,-823.16,-892.2,-1338.87,"-",800.17280000000005,968.8,1050.0999999999999,1007.6,5047.0339999999997,0,-8.6,-40.799999999999997,1020.4,1020.4,1,"BSEV3","-","-",33,"ativo"]
["FRTA3","Pomifrutas","ON","BR","Ação","Agro e Pesca",10.69,0.89,12.006,-68.56,44.73,5.22,-20.05,-1.56,-5.72,-7.1,-7.51,-20.05,-7.51,-7.51,"-",-69.867599999999996,-18.100000000000001,-10.8,-10.8,47.904000000000003,"-",-6.3,-38.200000000000003,12,12,1,"FRTA3","-","-",10,"ativo"]
["MRFG3","Marfrig","ON","BR","Ação","Alimentos e Beb",3702.47,5.98,619.14099999999996,673.46,18577.87,29715.18,-483.47,-202.69,-740.35,-820.79,1395.26,-483.47,1395.26,1395.26,81.753600000000006,200.5943,1566.1,1075.2,1075.2,8046.9549999999999,0,8.6999999999999993,-18.3,621.29999999999995,621.29999999999995,1,"MRFG3","-","-",24174,"ativo"]
["BAUH4","Excelsior","PN","BR","Ação","Alimentos e Beb",138.33000000000001,26.49,5.2220000000000004,49.15,163.05000000000001,173.87,9.42,2.38,4.05,8.0299999999999994,10.050000000000001,9.42,10.050000000000001,10.050000000000001,24.229199999999999,-49.022300000000001,17.100000000000001,17.899999999999999,17.899999999999999,-24.093,-3.13,7.9,152.9,2.8,5.2,0.54500000000000004,"BAUH4","-","-",33,"ativo"]
["ABEV3","Ambev S/A","ON","BR","Ação","Alimentos e Beb",264586.43,16.829999999999998,15721.119000000001,56340.62,47899.28,50231.34,7331.97,2515.96,4833.1099999999997,7664.27,11024.68,7331.97,11024.68,11024.68,23.711400000000001,-15.7333,20035.8,21013.5,21013.5,-9054.1209999999992,-8598.1200000000008,-2.2999999999999998,-18.3,15722.1,15722.1,1,"ABEV3","-","-",414292,"ativo"]
["CAML3","Camil","ON","BR","Ação","Alimentos e Beb",2752.81,6.81,404.23,2091.19,"-","-",173.43,250.67,32.56,111.63,261.93,"-","-",339.17,18.6252,44.219299999999997,"-","-",487.4,924.70899999999995,-85,-5.3,-11,410.1,410.1,1,"CAML3","-","-",6752,"ativo"]
["MDIA3","M.Diasbranco","ON","BR","Ação","Alimentos e Beb",14729.55,43.45,339,5561.84,5415.42,6025.05,844.18,139.78,349.4,583.69000000000005,723.5,844.18,723.5,723.5,14.493399999999999,14.344200000000001,966.3,933.1,933.1,797.80399999999997,-132.37,-7.5,-15.8,339,339,1,"MDIA3","-","-",25527,"ativo"]
["SMTO3","Sao Martinho","ON","BR","Ação","Alimentos e Beb",6433.72,18.34,350.803,3344.62,2321.36,2236.67,338.37,491.71,103.96,162.51,228.44,338.37,228.44,381.77,11.311400000000001,93.053799999999995,817.3,739,1616.9,3112.29,-180,-2.2999999999999998,-2.5,364,364,1,"SMTO3","-","-",14785,"ativo"]
["JBSS3","JBS","ON","BR","Ação","Alimentos e Beb",42396.68,15.92,2663.1080000000002,25647,163169.98000000001,181680.24,534.20000000000005,506.52,-404.56,-538.04999999999995,25.2,534.20000000000005,25.2,25.2,0.80379999999999996,168.95939999999999,11218.8,11988.8,11988.8,47217.749000000003,-126.88,18.5,63.2,2728.7,2728.7,1,"JBSS3","-","-",142192,"ativo"]
["BRFS3","BRF SA","ON","BR","Ação","Alimentos e Beb",18378.57,22.65,811.41600000000005,6964.63,33469.35,30188.42,-1125.57,-124.32,-1709.24,-2351.8000000000002,-4448.0600000000004,-1125.57,-4448.0600000000004,-4448.0600000000004,-38.131399999999999,222.90690000000001,2654.1,1540.9,1540.9,16788.847000000002,0,10.1,-38.1,812.5,812.5,1,"BRFS3","-","-",175256,"ativo"]
["BEEF3","Minerva","ON","BR","Ação","Alimentos e Beb",2623.15,7.03,373.137,-301.11,12103.79,16214.91,-281.02,-114.72,-1040.7,-1172.72,-1264.78,-281.02,-1264.78,-1264.78,-1779.4532999999999,-2016.0434,1134.5999999999999,896.2,896.2,6070.5889999999999,0,10.199999999999999,-34,376.7,376.7,1,"BEEF3","-","-",18037,"ativo"]
["JBDU4","J B Duarte","PN","BR","Ação","Alimentos e Beb",0.93,6.8,0.13600000000000001,25.77,0,"-",-1.44,33.520000000000003,27.9,"-","-",-1.44,"-",27.59,"-",20.5075,"-","-","-",5.2850000000000001,"-",-8.4,-77.599999999999994,1.4,0.1,10,"JBDU4","-","-",7,"ativo"]
["MNPR3","Minupar","ON","BR","Ação","Alimentos e Beb",14.91,2.1,7.1,-359.63,190.42,199.56,-25.34,-1.69,-8.0399999999999991,-5.83,-66.97,-25.34,-66.97,-66.97,"-",-0.1258,11.6,"-","-",0.45300000000000001,0,-6.7,-26.3,7.1,7.1,1,"MNPR3","-","-",21,"ativo"]
["NATU3","Natura","ON","BR","Ação","Comércio",19550.7,45.39,430.72699999999998,2574.1,9852.7099999999991,13397.42,670.25,24.39,56.19,166.75,548.38,670.25,548.38,548.38,33.545200000000001,233.4777,1742,1846.6,1846.6,6009.9549999999999,-201.65,-6.2,39.799999999999997,431.2,431.2,1,"NATU3","-","-",113704,"ativo"]
["LREN3","Lojas Renner","ON","BR","Ação","Comércio",31445.73,43.8,717.93899999999996,3954.51,7444.31,8426.5400000000009,732.68,111.44,386.15,580.36,1020.14,732.68,1020.14,1020.14,31.647400000000001,13.6357,1416.3,1738.4,1738.4,539.22400000000005,-287.64999999999998,1.4,25.4,720,720,1,"LREN3","-","-",174575,"ativo"]
["MGLU3","Magaz Luiza","ON","BR","Ação","Comércio",32662.46,172.85,188.964,2302.87,11984.25,15590.44,389.02,147.47999999999999,288.23,407.79,597.42999999999995,389.02,597.42999999999995,597.42999999999995,28.806000000000001,-23.9801,1030.8,1245.2,1245.2,-552.23099999999999,-114.27,-0.4,116.8,190.6,190.6,1,"MGLU3","-","-",173672,"ativo"]
["PNVL3","Dimed","ON","BR","Ação","Comércio",1704.16,391.99,4.516,463.91,2258.25,2432.25,59.8,12.65,28.35,49.15,74.98,59.8,74.98,74.98,17.570599999999999,21.923999999999999,117.9,139.69999999999999,139.69999999999999,101.708,-17.89,4.8,-0.1,4.0999999999999996,4.5,0.90100000000000002,"PNVL3","-","-",525,"ativo"]
["RADL3","RaiaDrogasil","ON","BR","Ação","Comércio",21505.86,65.3,329.339,3499.86,13212.51,14801.45,511.16,120.95,257.41000000000003,385.36,502.45,511.16,502.45,502.45,15.6694,17.018999999999998,1130.7,1137.3,1137.3,601.58199999999999,-173.62,0.1,-28,330.4,330.4,1,"RADL3","-","-",82118,"ativo"]
["CRFB3","Carrefour BR","ON","BR","Ação","Comércio",39847.269999999997,20.09,1983.4380000000001,13033,50280,54267,1599,280,669,1024,1660,1599,1660,1660,14.178100000000001,-21.499300000000002,3785,3891,3891,-3020,-697,2.9,34.799999999999997,1983.4,1983.4,1,"CRFB3","-","-",53321,"ativo"]
["CGRA4","Grazziotin","PN","BR","Ação","Comércio",483.54,24.08,20.056999999999999,497.95,428.28,463.17,61.4,4.76,22.57,32.29,53.77,61.4,53.77,53.77,11.241300000000001,-12.510199999999999,61.2,59.8,59.8,-62.293999999999997,-22,-7.6,-7.5,8.1999999999999993,20.2,0.40500000000000003,"CGRA4","-","-",246,"ativo"]
["PCAR4","P.Acucar-Cbd","PN","BR","Ação","Comércio",24384.33,91.46,266.61200000000002,11083,44634,49388,619,150,628,778,1193,619,1193,1193,8.8774999999999995,8.2933000000000003,2342,3066,3066,1156,-342,-1,18.899999999999999,99.7,266.8,0.374,"PCAR4","-","-",118490,"ativo"]
["WLMM4","Wlm Ind Com","PN","BR","Ação","Comércio",233.41,6.71,36.414999999999999,388.14,489.74,752.3,-6.68,5.43,4.4000000000000004,11.13,16.079999999999998,-6.68,16.079999999999998,16.079999999999998,4.2812000000000001,-7.8728999999999996,-4.7,21.9,21.9,-30.59,0,5,27.8,16.600000000000001,36.4,0.45500000000000002,"WLMM4","-","-",26,"ativo"]
["LAME4","Lojas Americ","PN","BR","Ação","Comércio",24887.58,16.77,1598.3530000000001,4924.6000000000004,17044.72,17689.86,237.63,20.02,46.29,107.69,380.49,237.63,380.49,380.49,3.7258,88.626000000000005,2682.2,2654.4,2654.4,5571.1419999999998,-101.73,-15.8,-0.8,539.9,1600.7,0.33700000000000002,"LAME4","-","-",132106,"ativo"]
["AMAR3","Lojas Marisa","ON","BR","Ação","Comércio",1313.52,6.43,204.28,973.65,2875.58,2764.13,-60.44,-41.08,-78.09,-131.16999999999999,28.36,-60.44,28.36,28.36,2.9556,63.636400000000002,265.60000000000002,417.9,417.9,619.596,0,4.4000000000000004,-11.3,204.1,204.1,1,"AMAR3","-","-",6029,"ativo"]
["MEAL3","Imc S/A","ON","BR","Ação","Comércio",1025.25,6.49,157.97399999999999,1015.22,1494.51,1582.08,3.67,-6.43,-3.84,9.41,7.89,3.67,7.89,7.89,0.7863,2.871,108.5,102.8,102.8,29.146999999999998,-0.87,5,-18,166.5,166.5,1,"MEAL3","-","-",3451,"ativo"]
["PFRM3","Profarma","ON","BR","Ação","Comércio",530.91,4.33,122.611,1021.21,4100.71,4271.13,-112.72,-5.9,-4.3899999999999997,-11.94,-9.73,-112.72,-9.73,-9.73,-1.3048999999999999,39.840000000000003,20.2,88.6,88.6,406.85,0,1.2,-39.299999999999997,123.8,123.8,1,"PFRM3","-","-",1204,"ativo"]
["BTOW3","B2W Digital","ON","BR","Ação","Comércio",19306.400000000001,42.22,457.28100000000001,3537.12,7120.78,6488.47,-411.45,-115.14,-223.95,-329.74,-397.43,-411.45,-397.43,-397.43,-10.188000000000001,51.102600000000002,583.29999999999995,412.3,412.3,1807.556,0,-12.7,106,457.3,457.3,1,"BTOW3","-","-",114449,"ativo"]
["BPHA3","BR Pharma","ON","BR","Ação","Comércio",157.18,1.39,113.081,-268.38,516.79,9.5399999999999991,-1621.68,-151.44999999999999,-220.97,-233.34,1048.96,-1621.68,1048.96,1048.96,"-",-23.489899999999999,-1475.8,"-","-",63.042999999999999,0,-6.1,-61.8,113.1,113.1,1,"BPHA3","-","-",42,"ativo"]
["TEND3","Tenda","ON","BR","Ação","Construção",816.87,16.88,48.393000000000001,1197.67,1357.9,1681.25,106.69,36.270000000000003,87.86,152.29,200.29,106.69,200.29,200.29,17.301600000000001,-26.007200000000001,141.9,243.5,243.5,-313.06799999999998,-24.99,0.8,71.7,52.1,52.1,1,"TEND3","-","-",16726,"ativo"]
["TRIS3","Trisul","ON","BR","Ação","Construção",686.75,4.7,146.11799999999999,560.76,441.68,545.25,34.99,12.89,30.29,51.39,71.95,34.99,71.95,71.95,14.0541,29.569299999999998,61.1,102.7,102.7,177.56100000000001,0,-0.8,136.9,146.1,146.1,1,"TRIS3","-","-",2186,"ativo"]
["MRVE3","MRV","ON","BR","Ação","Construção",6169.74,13.99,441.01100000000002,4630.45,4759.8900000000003,5419,653.4,159.66,325.74,499.8,690.31,653.4,690.31,690.31,13.0778,42.427500000000002,715.7,805.6,805.6,2068.1660000000002,-455.63,2.9,20.100000000000001,444.1,444.1,1,"MRVE3","-","-",59092,"ativo"]
["JHSF3","JHSF Part","ON","BR","Ação","Construção",1289.3499999999999,2.4500000000000002,526.26599999999996,2227.84,355.89,485.69,-22.65,-10.94,-3.72,114.86,182.33,-22.65,182.33,182.33,9.0996000000000006,42.214500000000001,203.8,342.1,342.1,957.10799999999995,0,7,40,526.4,526.4,1,"JHSF3","-","-",4115,"ativo"]
["EZTC3","Eztec","ON","BR","Ação","Construção",4422.05,26.8,165.00200000000001,2609.7199999999998,980.32,390.76,358.83,5.43,20.14,54,97.54,358.83,97.54,97.54,3.9838,-15.287599999999999,321.2,6,6,-403.13600000000002,-85.22,0.5,27,165,165,1,"EZTC3","-","-",19079,"ativo"]
["LOGG3","Log Com Prop","ON","BR","Ação","Construção",1252.8599999999999,16.98,73.784999999999997,2147.27,99.49,104.83,37.409999999999997,10.67,23.12,33.869999999999997,43.49,37.409999999999997,43.49,43.49,2.3311000000000002,36.572400000000002,72.2,83.7,83.7,789.82500000000005,-3.55,-2.8,"-",69.2,73.8,0.93799999999999994,"LOGG3","-","-",3980,"ativo"]
["CYRE3","Cyrela Realt","ON","BR","Ação","Construção",6251.41,16.27,384.22899999999998,5148.55,2673.77,3146.16,-95,-51.28,-79.72,-200.47,-84.36,-95,-84.36,-84.36,9.4700000000000006E-2,17.456299999999999,83.4,113.8,113.8,966.697,-430,-4.9000000000000004,33.200000000000003,399.8,399.8,1,"CYRE3","-","-",52025,"ativo"]
["RDNI3","Rni","ON","BR","Ação","Construção",232.04,5.5,42.189,615.29999999999995,289.72000000000003,182.61,-93.19,-11.75,-20.87,-18.350000000000001,-26.1,-93.19,-26.1,-26.1,-4.1749999999999998,36.237299999999998,-73.900000000000006,-28,-28,226.95500000000001,0,-6,-10.6,43.8,43.8,1,"RDNI3","-","-",35,"ativo"]
["DIRR3","Direcional","ON","BR","Ação","Construção",1274.44,8.67,146.994,1282.69,751.86,1166.05,-143.78,-8.09,-11.87,-95.69,-77.5,-143.78,-77.5,-77.5,-4.6086,9.9224999999999994,-108.8,-10.7,-10.7,138.24799999999999,-90,3.7,75.599999999999994,153.4,153.4,1,"DIRR3","-","-",8854,"ativo"]
["EVEN3","Even","ON","BR","Ação","Construção",1283.25,6,213.876,1577.77,1583.95,1474.85,-378.66,-25.68,-56.05,-68.41,-160.71,-378.66,-160.71,-160.71,-7.0107999999999997,41.889000000000003,-346.2,-148.19999999999999,-148.19999999999999,757.14300000000003,0,0.5,4.5,217,217,1,"EVEN3","-","-",6144,"ativo"]
["CRDE3","Cr2","ON","BR","Ação","Construção",47.47,19.600000000000001,2.4220000000000002,167.02,11.49,5.28,-4.49,-7.07,-6.98,-9.98,-15.71,-4.49,-15.71,-15.71,-11.118399999999999,-16.732099999999999,-7.4,-18.3,-18.3,-28.033999999999999,0,-2.8,-33.799999999999997,48.4,2.4,20,"CRDE3","-","-",12,"ativo"]
["HBOR3","Helbor","ON","BR","Ação","Construção",601.33000000000004,1.33,452.12599999999998,823.34,518.14,633.6,-309.12,-67.849999999999994,-166.11,-295.37,-340.93,-309.12,-340.93,-340.93,-18.989999999999998,139.1069,-244,-305.39999999999998,-305.39999999999998,1598.415,0,-5.7,-32.1,457.9,457.9,1,"HBOR3","-","-",1388,"ativo"]
["TCSA3","Tecnisa","ON","BR","Ação","Construção",433.86,1.31,331.19200000000001,772.01,307.99,175.93,-520.65,-53.67,-139.5,-212.87,-277.05,-520.65,-277.05,-277.05,-26.585000000000001,73.887200000000007,-464.4,-209,-209,578.173,0,2.2999999999999998,-36.4,331.2,331.2,1,"TCSA3","-","-",2480,"ativo"]
["GFSA3","Gafisa","ON","BR","Ação","Construção",339.76,8.5399999999999991,39.784999999999997,491.32,608.82000000000005,960.89,-849.86,-55.92,-85.28,-122.51,-419.53,-849.86,-419.53,-419.53,-55.474600000000002,152.52770000000001,-832.1,-341.2,-341.2,752.25300000000004,0,-13,-58.3,43.7,43.7,1,"GFSA3","-","-",16627,"ativo"]
["RSID3","Rossi Resid","ON","BR","Ação","Construção",78.88,4.6900000000000004,16.818999999999999,-237.45,326.02999999999997,148.72,-338.89,-142.85,-242.5,-400.8,-614.04999999999995,-338.89,-614.04999999999995,-614.04999999999995,-164.0966,-625.62890000000004,-418,-427.4,-427.4,1534.7239999999999,0,-5.8,-34.799999999999997,17.2,17.2,1,"RSID3","-","-",243,"ativo"]
["AZEV4","Azevedo","PN","BR","Ação","Construção",71.819999999999993,0.99,27,-101.34,63.77,"-",-84.23,-12.02,-23.01,"-","-",-84.23,"-",-83.31,"-",-25.960999999999999,-70.900000000000006,"-",-63.1,26.318000000000001,0,-10,-6.6,9,27,0.33300000000000002,"AZEV4","-","-",1361,"ativo"]
["PDGR3","PDG Realt","ON","BR","Ação","Construção",58.89,7.3,8.0670000000000002,-3963.66,458.25,213.46,173.22,-260.31,-600.12,-708.98,-838.91,173.22,-838.91,-838.91,"-",-36.731400000000001,-1745.7,-359.1,-359.1,1469.0650000000001,0,0,-67.8,80.7,8.1,10,"PDGR3","-","-",732,"ativo"]
["VIVR3","Viver","ON","BR","Ação","Construção",171.34,0.37,463.08499999999998,46.11,5.94,85.03,-120.63,-18.66,-46.1,-118.09,-197.22,-120.63,-197.22,-197.22,"-",565.05250000000001,-94.7,-81.900000000000006,-81.900000000000006,260.55700000000002,0,0,-76.7,445.4,463.1,0.96199999999999997,"VIVR3","-","-",8495,"ativo"]
["WHRL4","Whirlpool","PN","BR","Ação","Eletroeletrônicos",6763.97,4.72,1502.7860000000001,2189.91,9482.8700000000008,6193.96,435.86,75.489999999999995,94.13,164.61,180.6,435.86,180.6,180.6,7.3300999999999998,-23.127199999999998,594.70000000000005,408.5,408.5,-506.57100000000003,-210.01,-3.3,-2.4,1028.7,1502.8,0.68500000000000005,"WHRL4","-","-",117,"ativo"]
["POSI3","Positivo Tec","ON","BR","Ação","Eletroeletrônicos",196,2.2799999999999998,85.965000000000003,508.99,1913.61,1951.34,-47.55,1.96,-9.65,2.1800000000000002,-0.46,-47.55,-0.46,-0.46,-9.0999999999999998E-2,42.534500000000001,71.099999999999994,107.6,107.6,216.887,0,-3,-26.7,87.8,87.8,1,"POSI3","-","-",308,"ativo"]
["IGBR3","IGB S/A","ON","BR","Ação","Eletroeletrônicos",28.26,2.2599999999999998,12.505000000000001,-828.34,4.5199999999999996,"-",44,-39.090000000000003,-47.26,-61.22,"-",44,"-",49.38,"-",-106.94840000000001,"-","-","-",885.89400000000001,"-",-3,96.5,12.5,12.5,1,"IGBR3","-","-",88,"ativo"]
["EGIE3","Engie Brasil","ON","BR","Ação","Energia Elétrica",34848.269999999997,42.71,815.928,6316.19,7009.96,8794.7900000000009,2003.41,489.04,1078.01,1553.08,2314.36,2003.41,2314.36,2314.36,33.877099999999999,115.56610000000001,3499.2,4327.3,4327.3,7304.442,-1989.97,3.8,68.5,815.9,815.9,1,"EGIE3","-","-",60540,"ativo"]
["ELET6","Eletrobras","PNB","BR","Ação","Energia Elétrica",49940.37,37.86,1352.634,55542.91,37876.019999999997,24975.75,-1763.81,31.84,2851.4,1230.24,13262.38,-1763.81,13262.38,13262.38,31.220600000000001,84.389399999999995,6744.2,19990.400000000001,19990.400000000001,47265.597000000002,-1.58,-2.8,66.8,1087.0999999999999,1352.6,0.80400000000000005,"ELET6","-","-",104501,"ativo"]
["ENGI11","Energisa","UNT N2","BR","Ação","Energia Elétrica",18303.71,40.549999999999997,1814.5619999999999,5388.14,13637.15,15787.58,558.61,131.04,232.2,474.68,1148.43,558.61,1148.43,1148.43,24.655999999999999,189.38929999999999,2052.6,3817.6,3817.6,11453.373,-269.39,1,55.8,756,1814.6,0.41699999999999998,"ENGI11","-","-",37600,"ativo"]
["TAEE11","Taesa","UNT N2","BR","Ação","Energia Elétrica",8931.1,24.8,1033.4970000000001,4572.05,1077.06,1635.24,648.29,217.28,476.53,744.25,1071.31,648.29,1071.31,1071.31,24.6416,71.720200000000006,930.2,1436.3,1436.3,3279.0859999999998,-960.2,-0.6,32.5,590.70000000000005,1033.5,0.57199999999999995,"TAEE11","-","-",42250,"ativo"]
["EKTR4","Elektro","PN","BR","Ação","Energia Elétrica",3607.92,19,193.75899999999999,2293.83,5811.5,6249.36,374.43,72.44,145.72,233.59,414.33,374.43,414.33,414.33,20.407399999999999,132.31970000000001,873,928.5,928.5,3035.1840000000002,0,0,-13.7,91.9,193.8,0.47399999999999998,"EKTR4","-","-",43,"ativo"]
["EQTL3","Equatorial","ON","BR","Ação","Energia Elétrica",16088.18,80,201.102,5596.03,9071.42,11252.63,997.26,64.58,185.68,433.71,917.94,997.26,917.94,917.94,20.199000000000002,103.6521,1797,"-","-",6792.19,"-",-2.6,24,198.8,201.1,0.98799999999999999,"EQTL3","-","-",98723,"ativo"]
["CPFE3","CPFL Energia","ON","BR","Ação","Energia Elétrica",31026.04,30.48,1017.915,10262.75,26744.91,28136.63,1179.75,443.78,899.5,1453.23,2058.04,1179.75,2058.04,2058.04,19.3628,147.50069999999999,4863.3,5636.7,5636.7,18485.347000000002,-279.10000000000002,-0.7,59.3,1017.9,1017.9,1,"CPFE3","-","-",15992,"ativo"]
["TIET3","AES Tiete E","ON","BR","Ação","Energia Elétrica",4378.93,2.25,1967.385,1523.47,1728.13,1923.53,298.27999999999997,54.76,147.72,183.09,287.95999999999998,298.27999999999997,287.95999999999998,287.95999999999998,18.486499999999999,203.08609999999999,842.2,1011.2,1011.2,3093.9639999999999,-270.06,-4.7,-6.1,775.2,1967.4,0.39400000000000002,"TIET3","-","-",167,"ativo"]
["TIET4","AES Tiete E","PN","BR","Ação","Energia Elétrica",4378.93,2.21,1967.385,1523.47,1728.13,1923.53,298.27999999999997,54.76,147.72,183.09,287.95999999999998,298.27999999999997,287.95999999999998,287.95999999999998,18.486499999999999,203.08609999999999,842.2,1011.2,1011.2,3093.9639999999999,-270.06,-5.2,-7.8,775.2,1967.4,0.39400000000000002,"TIET4","-","-",409,"ativo"]
["TIET11","AES Tiete E","UNT N2","BR","Ação","Energia Elétrica",4378.93,11.08,1967.385,1523.47,1728.13,1923.53,298.27999999999997,54.76,147.72,183.09,287.95999999999998,298.27999999999997,287.95999999999998,287.95999999999998,18.486499999999999,203.08609999999999,842.2,1011.2,1011.2,3093.9639999999999,-270.06,-4.8,-6.4,775.2,1967.4,0.39400000000000002,"TIET11","-","-",20822,"ativo"]
["CELP5","Celpa","PNA","BR","Ação","Energia Elétrica",5316.86,6.52,2209.0740000000001,3006.08,5150.97,5491.54,613.53,0.43,49.63,183.41,455.39,613.53,455.39,455.39,17.632300000000001,70.792299999999997,940.7,"-","-",2128.0749999999998,-132.56,-6.3,186.8,2204.6,2209.1,0.998,"CELP5","-","-",9,"ativo"]
["TRPL4","Tran Paulist","PN","BR","Ação","Energia Elétrica",13109.59,77.14,164.721,11068.65,2701.19,3184.65,1365.51,236.95,481.73,1173.53,1881.67,1365.51,1881.67,1881.67,16.9224,20.508099999999999,2056.9,2468.1,2468.1,2317.3180000000002,-2064.2600000000002,-0.1,38.1,64.5,164.7,0.39100000000000001,"TRPL4","-","-",38531,"ativo"]
["ENEV3","Eneva","ON","BR","Ação","Energia Elétrica",5827.32,18.5,314.99,6298.04,2721.77,3129.11,95.5,36.71,242.76,418.44,887.87,95.5,887.87,887.87,16.522200000000002,60.543199999999999,1124.5999999999999,1563,1563,3804.4609999999998,0,-1,33.1,315,315,1,"ENEV3","-","-",12554,"ativo"]
[{"$f":"IF(AG68=\"\",\"\",AG68)","v":"ENBR3"},"Energias BR","ON","BR","Ação","Energia Elétrica",10283.870000000001,16.98,605.64599999999996,8523.7099999999991,12373.38,13834.22,611.86,214.12,441.79,748.73,1272.83,611.86,1272.83,1272.83,15.6541,52.518500000000003,2170.3000000000002,2773.2,2773.2,5080.942,-356,-1.8,32.299999999999997,606.20000000000005,606.20000000000005,1,"ENBR3","-","-",52820,"ativo"]
["GEPA4","Ger Paranap","PN","BR","Ação","Energia Elétrica",3667.15,40.5,94.433000000000007,1635.42,1453.35,1318.86,243.88,85.67,134.38,127.26,255.91,243.88,255.91,255.91,15.1099,32.5867,644.5,705.4,705.4,532.92999999999995,-307.43,1.4,10.8,31.5,94.4,0.33300000000000002,"GEPA4","-","-",81,"ativo"]
["COCE5","Coelce","PNA","BR","Ação","Energia Elétrica",3720.94,52.3,77.855000000000004,2862.64,4594.42,5102.24,435.78,85.39,166.43,235.7,364.52,435.78,364.52,364.52,14.1127,60.243099999999998,808,741.3,741.3,1724.5419999999999,-84.96,-4.9000000000000004,-2.6,48.1,77.900000000000006,0.61699999999999999,"COCE5","-","-",520,"ativo"]
["REDE4","Rede Energia","PN","BR","Ação","Energia Elétrica",15434.06,"-",2057.875,3258.2,8977.15,10069.540000000001,111.23,117.14,192.81,343.01,399.56,111.23,399.56,399.56,13.966799999999999,130.14840000000001,1316.7,1793,1793,5662.7250000000004,-26.46,"-","-",2057.9,2057.9,1,"REDE4","-","-",14,"ativo"]
["ALUP11","Alupar","UNT N2","BR","Ação","Energia Elétrica",6840.79,23.22,879.11099999999999,4328.05,1538.19,1882.91,330.89,60.34,144.96,252.69,386.75,330.89,386.75,386.75,13.390700000000001,44.845799999999997,1170.2,"-","-",2808.1120000000001,-210.99,1.6,31,597,879.1,0.67900000000000005,"ALUP11","-","-",16128,"ativo"]
["EMAE4","Emae","PN","BR","Ação","Energia Elétrica",856.8,23.19,36.947000000000003,868.86,209.51,316.42,119.15,15.94,32.31,38.590000000000003,101.52,119.15,101.52,101.52,12.382,-17.573699999999999,115.4,6.7,6.7,-152.69,-34.29,3.3,186.2,14.7,36.9,0.39800000000000002,"EMAE4","-","-",54,"ativo"]
["CMIG4","Cemig","PN","BR","Ação","Energia Elétrica",21634.17,13.9,1458.191,14968.53,21711.69,"-",1000.95,464.45,453.41,697.73,"-",1000.95,"-",1301.94,9.8039000000000005,89.021500000000003,3492.2,"-",4308.8999999999996,13329.052,-270.64999999999998,-3.5,117.4,487.6,1458.8,0.33400000000000002,"CMIG4","-","-",132155,"ativo"]
["CPLE6","Copel","PNB","BR","Ação","Energia Elétrica",9337.42,36.4,273.65499999999997,16032.93,14024.57,14934.78,1033.6300000000001,332.28,679.49,1034.27,1407.06,1033.6300000000001,1407.06,1407.06,9.3097999999999992,58.1038,2873,3143.2,3143.2,9491.9639999999999,-264.73,1.8,58.4,145,273.7,0.53,"CPLE6","-","-",41743,"ativo"]
["CLSC4","Celesc","PN","BR","Ação","Energia Elétrica",2060.85,53.43,38.570999999999998,1800.86,7091.24,7664.54,66.489999999999995,70.989999999999995,140.21,182.29,165.03,66.489999999999995,165.03,165.03,8.9581999999999997,40.092199999999998,523.20000000000005,"-","-",722.00300000000004,-15.31,-2.5,100.6,15.5,38.6,0.40300000000000002,"CLSC4","-","-",123,"ativo"]
["EEEL4","Ceee-Gt","PN","BR","Ação","Energia Elétrica",2277.44,250,9.6809999999999992,2372.58,1017.23,1023.43,395.08,54.19,41.63,104.72,173.39,395.08,173.39,173.39,7.4162999999999997,12.475199999999999,408.7,329.5,329.5,298.00900000000001,0,0,141.30000000000001,9.5,9.6999999999999993,0.98299999999999998,"EEEL4","-","-",7,"ativo"]
["LIPR3","Eletropar","ON","BR","Ação","Energia Elétrica",705.84,60,11.763999999999999,187.43,0,0,39.22,-4.5599999999999996,0.09,7.32,13.18,39.22,13.18,13.18,6.5540000000000003,-55.870399999999997,44.6,9.1,9.1,-104.71899999999999,-87.38,0,28.9,11.8,11.8,1,"LIPR3","-","-",8,"ativo"]
["LIGT3","Light S/A","ON","BR","Ação","Energia Elétrica",4190.84,20.55,203.934,3389.49,11314.56,11970.55,124.22,92.75,67.3,73.430000000000007,165.78,124.22,165.78,165.78,4.8297999999999996,246.1909,1694.1,1507.1,1507.1,8344.6209999999992,-29.5,3.5,24.1,203.9,203.9,1,"LIGT3","-","-",36299,"ativo"]
["CESP6","Cesp","PNB","BR","Ação","Energia Elétrica",7715.17,24.14,327.50299999999999,7102.07,1476.62,1634.11,-168.53,-3.73,337.26,235.18,294.43,-168.53,294.43,294.43,4.1384999999999996,-2.7492000000000001,197.3,613.70000000000005,613.70000000000005,-195.25,-25.57,0.2,83.3,109.2,327.5,0.33300000000000002,"CESP6","-","-",25336,"ativo"]
["CPRE3","CPFL Renovav","ON","BR","Ação","Energia Elétrica",8325.5499999999993,15.97,521.32500000000005,4147.79,1959.08,1936.32,11.48,-74.430000000000007,-113.66,5.0999999999999996,109.26,11.48,109.26,109.26,2.8704000000000001,108.3755,1221.5999999999999,1208.8,1208.8,4607.2280000000001,-3.62,1.7,19.7,503.8,521.29999999999995,0.96599999999999997,"CPRE3","-","-",53,"ativo"]
["RNEW11","Renova","UNT N2","BR","Ação","Energia Elétrica",470.3,33.630000000000003,41.72,-76.489999999999995,734.1,709.8,-1139.54,-120.54,-245.69,-486.96,-856.3,-1139.54,-856.3,-856.3,-109.8087,-501.44330000000002,-776.1,-522.70000000000005,-522.70000000000005,383.54899999999998,0,90.1,-44.5,33,41.7,0.79100000000000004,"RNEW11","-","-",1180,"ativo"]
["WIZS3","Wiz S.A","ON","BR","Ação","Finanças e Seguros",1359.21,8.5,159.90700000000001,168.97,529.73,585.01,159.41,30.57,77.989999999999995,129.15,177.73,159.41,177.73,177.73,110.3541,-29.978899999999999,268,"-","-",-53.023000000000003,"-",-5.5,-23.9,159.9,159.9,1,"WIZS3","-","-",5686,"ativo"]
[{"$f":"IF(AG84=\"\",\"\",AG84)","v":"TRPN3"},"Tarpon Inv","ON","BR","Ação","Finanças e Seguros",49.21,1.0900000000000001,45.143000000000001,58.62,47.09,126.51,9.43,-3.55,0.31,1.75,56.18,9.43,56.18,56.18,106.446,-172.32300000000001,14.4,81.900000000000006,81.900000000000006,-101.014,-34.33,-2.7,-24.2,45.3,45.3,1,"TRPN3","-","-",144,"ativo"]
["BBSE3","BBSeguridade","ON","BR","Ação","Finanças e Seguros",52949.75,26.52,1996.597,6830.39,"-","-",4049.25,886.5,1948.89,2822.67,3539.55,4049.25,3539.55,3539.55,39.777099999999997,"-","-","-","-","-",-3485.56,-2.9,6.8,2000,2000,1,"BBSE3","-","-",114174,"ativo"]
["IRBR3","Irbbrasil Re","ON","BR","Ação","Finanças e Seguros",28325.41,91.25,310.41500000000002,4000.78,"-","-",925.05,254.01,541.34,845.86,1218.8,925.05,1218.8,1218.8,34.033299999999997,"-","-","-","-","-",-684.26,5.2,189,312,312,1,"IRBR3","-","-",145030,"ativo"]
["SANB11","Santander BR","UNT","BR","Ação","Finanças e Seguros",163053.46,43.97,7471.8969999999999,65233.74,76310.78,77380.98,7996.58,2819.73,5791.95,8830.6299999999992,12166.15,7996.58,12166.15,12166.15,19.8157,"-","-","-","-","-",-6042.34,-2.2000000000000002,49.4,3818.7,7498.5,0.50900000000000001,"SANB11",76310782,77380980,74742,"ativo"]
["ITUB4","ItauUnibanco","PN","BR","Ação","Finanças e Seguros",311968.57,34.43,9720.5210000000006,131756.57,147494.99,141582.10999999999,23964.55,6280.32,12524.41,18771.57,24977.42,23964.55,24977.42,24977.42,18.209,"-","-","-","-","-",-20092.75,-2.2000000000000002,36.1,4958.3,9804.1,0.50600000000000001,"ITUB4",147494988,141582105,738032,"ativo"]
["BBDC4","Bradesco","PN","BR","Ação","Finanças e Seguros",270348.51,42.94,6693.5810000000001,121120.87,148262.13,125611.76,14657.76,4466.72,8994.51,14004.19,19084.95,14657.76,19084.95,19084.95,17.338899999999999,"-","-","-","-","-",-6483.2,-0.7,44.5,3359.9,6719.9,0.5,"BBDC4",148262127,125611761,695368,"ativo"]
["PSSA3","Porto Seguro","ON","BR","Ação","Finanças e Seguros",17402.86,53.83,323.29300000000001,7643.24,16894.099999999999,17821.96,1100.8699999999999,276.12,609.21,925.57,1310.6199999999999,1100.8699999999999,1310.6199999999999,1310.6199999999999,16.9694,-141.4477,628.29999999999995,1493.1,1493.1,-10811.870999999999,-1240.3499999999999,-3.9,61.5,323.3,323.3,1,"PSSA3","-","-",38230,"ativo"]
["SULA11","Sul America","UNT N2","BR","Ação","Finanças e Seguros",12069.68,29.8,1160.731,6286.11,17762.2,19831.21,773.25,141.41999999999999,276.81,511.38,904.96,773.25,904.96,904.96,16.045999999999999,-224.73570000000001,491.4,814.5,814.5,-14130.288,-184.92,-1.3,67.7,592.70000000000005,1182.5,0.501,"SULA11","-","-",32984,"ativo"]
["BRSR6","Banrisul","PNB","BR","Ação","Finanças e Seguros",10020.69,24.19,408.97399999999999,7278.9,9978.49,9551.7800000000007,1053.04,243.96,505.92,796.14,1048.6300000000001,1053.04,1048.6300000000001,1048.6300000000001,14.916600000000001,"-","-","-","-","-",-381.3,-2,85.5,205.1,409,0.501,"BRSR6",9978492,9551777,25933,"ativo"]
["BBAS3","Brasil","ON","BR","Ação","Finanças e Seguros",135711.06,48.72,2785.5309999999999,102252.88,142438.85999999999,134487.85999999999,11010.78,2748.81,5883.82,9059.23,12862.03,11010.78,12862.03,12862.03,14.4422,"-","-","-","-","-",-4206.5200000000004,-3.4,62,2865.4,2865.4,1,"BBAS3",142438857,134487863,610758,"ativo"]
["BEES3","Banestes","ON","BR","Ação","Finanças e Seguros",1565.28,4.92,315.91199999999998,1492.01,2701.41,2193.7199999999998,175.22,23.36,81.2,136.31,181.06,175.22,181.06,181.06,12.993399999999999,"-","-","-","-","-",-77.64,1,47.6,231.4,315.89999999999998,0.73199999999999998,"BEES3",2701405,2193723,73,"ativo"]
["BPAC11","Btgp Banco","UNT","BR","Ação","Finanças e Seguros",42846.6,36.200000000000003,2618.16,18844.93,9523.75,9893.3799999999992,2383.86,600.36,1222.83,1808.33,2360.7800000000002,2383.86,2360.7800000000002,2360.7800000000002,12.6914,"-","-","-","-","-",-1201.48,6,109.8,1731.3,2637.2,0.65600000000000003,"BPAC11",9523750,9893381,50890,"ativo"]
["B3SA3","B3","ON","BR","Ação","Finanças e Seguros",65660.210000000006,32.119999999999997,2044.2159999999999,25032.97,3673.6,4831.92,1296.24,314.72000000000003,1039.1600000000001,1504.52,2087.44,1296.24,2087.44,2087.44,8.5905000000000005,-9.3153000000000006,2199.8000000000002,3345.2,3345.2,-2332.9540000000002,-1528.86,-1.5,46.2,2059.1,2059.1,1,"B3SA3","-","-",321635,"ativo"]
["BMIN4","Merc Invest","PN","BR","Ação","Finanças e Seguros",93.39,18.46,4.8250000000000002,119.04,19.09,14.63,-12.93,1.1200000000000001,2.4900000000000002,3.24,4.13,-12.93,4.13,4.13,7.3479000000000001,"-","-","-","-","-",-0.7,18.7,15.9,4.0999999999999996,4.8,0.85299999999999998,"BMIN4",19085,14632,55,"ativo"]
["BMEB4","Merc Brasil","PN","BR","Ação","Finanças e Seguros",392.77,7.4,52.415999999999997,800.1,2823.44,2353.67,26.24,19.68,27.52,39.39,53.4,26.24,53.4,53.4,7.1505999999999998,"-","-","-","-","-","-",-0.1,80,32.6,52.4,0.622,"BMEB4",2823438,2353669,87,"ativo"]
["BPAN4","Banco Pan","PN","BR","Ação","Finanças e Seguros",3722.29,3.26,1141.806,4095.92,7780.35,7099.37,212.61,56.55,98.76,147.88999999999999,221.52,212.61,221.52,221.52,6.2295999999999996,"-","-","-","-","-","-",8.6999999999999993,80.099999999999994,657.6,1141.8,0.57599999999999996,"BPAN4",7780348,7099373,2498,"ativo"]
["BAZA3","Amazonia","ON","BR","Ação","Finanças e Seguros",809.33,27.3,29.646000000000001,1938.61,1421.05,1303.19,64.510000000000005,-56.99,-26.21,-13.5,109.08,64.510000000000005,109.08,109.08,5.7857000000000003,"-","-","-","-","-",-19.05,4.2,12,29.6,29.6,1,"BAZA3",1421049,1303185,87,"ativo"]
["PINE4","Pine","PN","BR","Ação","Finanças e Seguros",283.52999999999997,2.34,121.16800000000001,868.74,731.4,605.70000000000005,-262.83,5.2,10.46,15.3,-59.71,-262.83,-59.71,-59.71,-6.5723000000000003,"-","-","-","-","-",0,-14.9,-33.1,65.2,121.2,0.53800000000000003,"PINE4",731397,605696,174,"ativo"]
["IDVL4","Indusval","PN","BR","Ação","Finanças e Seguros",1081.8399999999999,6.85,108.19799999999999,145.52000000000001,319.49,186.24,-223.51,-69.13,-120.94,-179.76,-125.06,-223.51,-125.06,-125.06,-46.172899999999998,"-","-","-","-","-",0,143,1.6,115,108.3,1.0629999999999999,"IDVL4",319487,186236,446,"ativo"]
["APER3","Alper S.A.","ON","BR","Ação","Finanças e Seguros",183.47,24.9,7.3680000000000003,93.14,93.73,87.58,-82.59,-4.0599999999999996,-21.69,-22.57,-163.72,-82.59,-163.72,-163.72,-63.826300000000003,-37.520499999999998,-69.5,-158.30000000000001,-158.30000000000001,-34.926000000000002,0,1.6,106.2,7.7,7.7,1,"APER3","-","-",456,"ativo"]
["PPLA11","Ppla","UNT","BR","Ação","Finanças e Seguros",71.39,2.6,82.369,10.43,"-","-",-532.05999999999995,-104.1,-135.94,-156.91999999999999,"-",-532.05999999999995,"-",-257.45,-103.0736,"-","-","-","-","-",0,20.9,94,28.1,84.4,0.33300000000000002,"PPLA11",0,"-",125,"ativo"]
["ABCB4","Abc Brasil","PN","BR","Ação","Finanças e Seguros",3974.18,19.05,208.61799999999999,3665.51,2520.92,3254.38,418.73,108.55,220.2,336.31,418.09,418.73,418.09,418.09,"-","-","-","-","-","-",-220.45,4.2,25.2,106.6,211.1,0.505,"ABCB4",2520915,3254375,8080,"ativo"]
["BIDI4","Banco Inter","PN","BR","Ação","Finanças e Seguros",5359.3,52.91,101.291,948.78,545.80999999999995,646.63,48.16,11.17,28.42,46.75,69.84,48.16,69.84,69.84,"-","-","-","-","-","-",-21.18,38.9,"-",50.8,101.4,0.501,"BIDI4",545812,646633,30624,"ativo"]
["PTBL3","Portobello","ON","BR","Ação","Minerais não Met",778.18,4.91,158.489,362.11,1023.94,1054.19,64.14,6.99,103.4,105.97,134.28,64.14,134.28,134.28,47.117100000000001,141.66929999999999,189,288,288,513.01300000000003,-29.7,-5.6,-6.8,158.5,158.5,1,"PTBL3","-","-",2046,"ativo"]
["ETER3","Eternit","ON","BR","Ação","Minerais não Met",61.73,2.0699999999999998,29.823,12.23,665.74,536.91,-276.39,-11.14,-45.91,-89.02,-149.37,-276.39,-149.37,-149.37,-87.600099999999998,993.82860000000005,-192.9,-92.3,-92.3,121.744,0,-24.5,-62.5,29.8,29.8,1,"ETER3","-","-",304,"ativo"]
["VALE3","Vale","ON","BR","Ação","Mineração",261080.37,50.93,5126.259,170402.63,108532.02,134483.13,17627.2,5112.1099999999997,5418.21,11171.25,25656.53,17627.2,25656.53,25656.53,17.4023,21.6,46376,55414.7,55414.7,37515.406999999999,-12415.27,8.1,31.6,5284.5,5284.5,1,"VALE3","-","-",1104579,"ativo"]
["MMXM3","MMX Miner","ON","BR","Ação","Mineração",13.43,2.0699999999999998,6.4880000000000004,-611.64,0.45,2.7,-28.1,-7.96,-45.32,-60.6,-110.11,-28.1,-110.11,-110.11,"-",-28.1265,-14.5,-45.2,-45.2,172.36199999999999,0,-1.9,-30.1,6.5,6.5,1,"MMXM3","-","-",85,"ativo"]
["WEGE3","Weg","ON","BR","Ação","Máquinas Indust",37748.959999999999,18,2097.165,7714.27,9523.83,11970.09,1142.1500000000001,285,621.61,1003.04,1338.32,1142.1500000000001,1338.32,1338.32,19.6418,3.0844,1466.3,1824.1,1824.1,242.226,-604.15,-2,-0.5,2098.6999999999998,2098.6999999999998,1,"WEGE3","-","-",45967,"ativo"]
["ROMI3","Inds Romi","ON","BR","Ação","Máquinas Indust",688.92,10.96,62.857999999999997,695.98,672.87,743.46,37.659999999999997,1.8,47.2,63.09,84,37.659999999999997,84,84,13.092499999999999,30.4861,81.5,79.3,79.3,212.672,-27.3,0.6,54.9,62.9,62.9,1,"ROMI3","-","-",1607,"ativo"]
["FRIO3","Metalfrio","ON","BR","Ação","Máquinas Indust",195.56,47.62,4.1070000000000002,37.76,985.75,1196.9000000000001,-23.92,-13.91,-33.71,-26.42,-18.47,-23.92,-18.47,-18.47,-5.5087000000000002,382.2029,101.5,117.8,117.8,334.22500000000002,0,-19.3,13.4,4.0999999999999996,4.0999999999999996,1,"FRIO3","-","-",5,"ativo"]
["BDLL4","Bardella","PN","BR","Ação","Máquinas Indust",22.24,13.9,1.6,126.62,136.63999999999999,"-",-97.76,-31.62,-61.84,-85.35,"-",-97.76,"-",-115.62,-47.607300000000002,164.60900000000001,-47.7,"-",-77.2,208.423,0,-2.7,-53.3,0.6,1.6,0.379,"BDLL4","-","-",11,"ativo"]
["IDNT3","Ideiasnet","ON","BR","Ação","Outros",48.71,2.98,16.344000000000001,13.3,0.49,0,18.84,-1.7,2.99,2.27,11.3,18.84,11.3,11.3,470.52460000000002,-27.032699999999998,23.2,9.6,9.6,-3.5939999999999999,0,-6.9,-71.3,16.3,16.3,1,"IDNT3","-","-",147,"ativo"]
["HAPV3","Hapvida","ON","BR","Ação","Outros",20669.45,30.76,671.95899999999995,3602.54,3847.98,4575.8999999999996,648.77,213.65,363.35,553.27,787.47,648.77,787.47,787.47,167.0189,-24.622399999999999,824.4,913,913,-887.84699999999998,-822.27,-5.6,"-",672,672,1,"HAPV3","-","-",69518,"ativo"]
["MPLU3","Multiplus","ON","BR","Ação","Outros",4348.6400000000003,26.84,162.02099999999999,250.28,2309.77,632.26,517.20000000000005,98.19,171.96,236.86,356.4,517.20000000000005,356.4,356.4,148.65010000000001,-441.81209999999999,610.4,444.5,444.5,-1105.7629999999999,-340.77,0.6,-17.600000000000001,162.19999999999999,162.19999999999999,1,"MPLU3","-","-",10559,"ativo"]
["SMLS3","Smiles","ON","BR","Ação","Outros",5915.18,47.7,124.008,1014.23,1804.13,987.44,760.62,155.01,269.17,481.28,645.84,760.62,645.84,645.84,74.088300000000004,-66.583500000000001,663.4,759.3,759.3,-675.31,-462.7,-0.6,-33.6,124,124,1,"SMLS3","-","-",42769,"ativo"]
["LCAM3","Locamerica","ON","BR","Ação","Outros",5721.68,38.99,146.74700000000001,2565.5500000000002,1094.6099999999999,2917.2,60.6,18.25,66.22,126.93,189.2,60.6,189.2,189.2,39.149500000000003,75.214100000000002,361.3,840.7,840.7,1929.653,-75.8,-0.3,111.8,116.9,147.9,0.79,"LCAM3","-","-",21033,"ativo"]
["ODPV3","Odontoprev","ON","BR","Ação","Outros",8694.32,16.399999999999999,530.14200000000005,1027.46,1437.28,1591.84,502.92,81.97,142.31,207.35,284.79000000000002,502.92,284.79000000000002,284.79000000000002,30.787199999999999,-46.674599999999998,584.1,397.5,397.5,-481.536,-86.72,-1,5.4,531.29999999999995,531.29999999999995,1,"ODPV3","-","-",19891,"ativo"]
["RENT3","Localiza","ON","BR","Ação","Outros",23710.14,33.06,717.18499999999995,3094.5,6058.28,7895.8,505.68,176.01,317.91000000000003,477.76,659.21,505.68,659.21,659.21,25.347100000000001,168.1431,1240.2,1590.1,1590.1,5203.192,-172.31,-4,52.3,667.1,722.3,0.92400000000000004,"RENT3","-","-",146895,"ativo"]
["GNDI3","Intermedica","ON","BR","Ação","Outros",17334,32.799999999999997,528.476,2340.0700000000002,5304.92,6135.22,238.17,60.26,111.54,205.69,334.07,238.17,334.07,334.07,24.725000000000001,-18.5288,616.1,744.8,744.8,-433.58499999999998,0,-0.8,"-",528.79999999999995,528.79999999999995,1,"GNDI3","-","-",99585,"ativo"]
["ESTC3","Estacio Part","ON","BR","Ação","Outros",7983.01,26.6,300.113,2591.41,3378.98,3619.38,424.59,197.36,434.25,628.57000000000005,644.87,424.59,644.87,644.87,23.219799999999999,-3.2099999999999997E-2,737.8,967.4,967.4,-0.83099999999999996,-500.84,-3.4,-13.2,309.10000000000002,309.10000000000002,1,"ESTC3","-","-",89966,"ativo"]
["PARD3","Ihpardini","ON","BR","Ação","Outros",2642.43,20.3,130.16900000000001,605.62,1117.04,1204.71,129.54,29.53,62.64,96.72,123.12,129.54,123.12,123.12,22.9453,16.2319,234.7,226.1,226.1,98.498000000000005,-42.48,6.4,-37.9,131,131,1,"PARD3","-","-",4888,"ativo"]
["FLRY3","Fleury","ON","BR","Ação","Outros",6448.71,20.399999999999999,316.113,1749.96,2383.0100000000002,2664.46,320.62,96.43,183.06,273.39999999999998,331.59,320.62,331.59,331.59,19.430399999999999,25.7317,619.6,692.5,692.5,450.29399999999998,-303.20999999999998,5.6,-25.7,316.10000000000002,316.10000000000002,1,"FLRY3","-","-",34974,"ativo"]
["SAPR4","Sanepar","PN","BR","Ação","Outros",7967.41,13.9,503.73500000000001,5717.19,3869.4,4162.21,686.17,186.91,440.48,572.47,892.49,686.17,892.49,892.49,17.320900000000002,42.760399999999997,1383.5,1642,1642,2444.694,-298.39999999999998,1.6,31.2,167.9,503.7,0.33300000000000002,"SAPR4","-","-",16086,"ativo"]
["SAPR11","Sanepar","UNT N2","BR","Ação","Outros",7967.41,74.95,503.73500000000001,5717.19,3869.4,4162.21,686.17,186.91,440.48,572.47,892.49,686.17,892.49,892.49,17.320900000000002,42.760399999999997,1383.5,1642,1642,2444.694,-298.39999999999998,-2.8,37,167.9,503.7,0.33300000000000002,"SAPR11","-","-",61490,"ativo"]
["ITSA4","Itausa","PN","BR","Ação","Outros",108504.93,11.98,8410.6980000000003,55143,4969,5375,8403,2400,4447,6929,9436,8403,9436,9436,17.270800000000001,1.0674999999999999,9182,10752,10752,620,-6602,-3,40.799999999999997,2889.8,8410.7000000000007,0.34399999999999997,"ITSA4","-","-",292453,"ativo"]
["QUAL3","Qualicorp","ON","BR","Ação","Outros",4398.8,15.68,280.536,2354.4899999999998,2075.29,1932.12,370.71,102.7,191.28,301,397.04,370.71,397.04,397.04,16.774799999999999,5.3594999999999997,836.8,979.6,979.6,126.18899999999999,-354.87,1.2,-47.6,283.2,283.2,1,"QUAL3","-","-",35869,"ativo"]
["SBSP3","Sabesp","ON","BR","Ação","Outros",28707.41,42,683.51,19551.689999999999,14608.23,16085.09,2519.31,580.42999999999995,762.32,1327.48,2835.07,2519.31,2835.07,2835.07,16.188400000000001,51.778700000000001,5263.6,6569.2,6569.2,10123.605,-653.39,6.7,26,683.5,683.5,1,"SBSP3","-","-",111663,"ativo"]
["CARD3","Csu Cardsyst","ON","BR","Ação","Outros",277.38,6.75,41.093000000000004,240.84,486.85,419.77,45.2,8.1,16.510000000000002,23.53,32.799999999999997,45.2,32.799999999999997,32.799999999999997,14.650499999999999,10.724399999999999,100.3,81.5,81.5,25.827999999999999,-16.079999999999998,-7,-28.5,41.8,41.8,1,"CARD3","-","-",742,"ativo"]
[{"$f":"IF(AG132=\"\",\"\",AG132)","v":"HYPE3"},"Hypera","ON","BR","Ação","Outros",16370.01,25.9,632.04700000000003,8267.67,3638.46,3724.31,964.94,299.76,577.55999999999995,819.83,1129.5999999999999,964.94,1129.5999999999999,1129.5999999999999,14.598599999999999,-13.0939,1236.9000000000001,1318.7,1318.7,-1082.56,-633,-3.7,-23.8,632.20000000000005,632.20000000000005,1,"HYPE3","-","-",79305,"ativo"]
["BRAP4","Bradespar","PN","BR","Ação","Outros",10520.75,31.9,348.03399999999999,9959.84,0,0,2328.38,-283.51,-902.45,-779.21,1190.5,2328.38,1190.5,1190.5,13.5191,-2.5095999999999998,2609.8000000000002,1234.3,1234.3,-249.95,-719.42,10.7,17.5,122.2,348,0.35099999999999998,"BRAP4","-","-",59831,"ativo"]
["SEER3","Ser Educa","ON","BR","Ação","Outros",2620.77,20.36,128.72200000000001,1470.54,1231.79,1262.49,197.48,58.22,131.24,168.17,201.28,197.48,201.28,201.28,13.343999999999999,-41.799500000000002,321.10000000000002,312,312,-614.67999999999995,-58.53,7.3,-33.200000000000003,133,133,1,"SEER3","-","-",10460,"ativo"]
["MOVI3","Movida","ON","BR","Ação","Outros",2846.69,10.85,262.36799999999999,1658.84,2467.98,2538.6,66.47,26.85,66.77,108.04,159.75,66.47,159.75,159.75,12.4338,87.638300000000001,326.8,481.7,481.7,1453.7809999999999,-23.64,-6.5,61.8,263.39999999999998,263.39999999999998,1,"MOVI3","-","-",10283,"ativo"]
["BRML3","BR Malls Par","ON","BR","Ação","Outros",10587.23,12.57,842.26199999999994,10485.1,1265.24,1196.21,-796.28,126.53,194.12,286.35000000000002,1014.09,-796.28,1014.09,1014.09,10.5336,16.915199999999999,-899.5,"-","-",1848.134,"-",-5.6,0,871.9,871.9,1,"BRML3","-","-",88809,"ativo"]
["VLID3","Valid","ON","BR","Ação","Outros",1357.41,19.28,70.405000000000001,1071.9100000000001,1574.47,1734.31,27.69,19.72,33.200000000000003,56.98,100.04,27.69,100.04,100.04,10.101800000000001,47.707599999999999,206.7,269.8,269.8,519.27,-31.12,-2.1,10.3,71.2,71.2,1,"VLID3","-","-",12271,"ativo"]
["SSBR3","Sierrabrasil","ON","BR","Ação","Outros",2193.36,28.7,76.424000000000007,2766.6,354.86,374.11,138.41999999999999,24.87,66.599999999999994,92.55,189.26,138.41999999999999,189.26,189.26,10.036899999999999,12.4154,384.7,562.20000000000005,562.20000000000005,485.03500000000003,-34.770000000000003,-7.1,15.5,76.400000000000006,76.400000000000006,1,"SSBR3","-","-",707,"ativo"]
["IGTA3","Iguatemi","ON","BR","Ação","Outros",6861.47,38.92,176.297,2835.66,692.16,721.53,215.73,57.34,116.94,181.42,256.36,215.73,256.36,256.36,9.2753999999999994,55.824399999999997,540.6,558.5,558.5,1588.9480000000001,-120,-6.9,1.2,176.6,176.6,1,"IGTA3","-","-",51304,"ativo"]
["CSMG3","Copasa","ON","BR","Ação","Outros",7718.88,61.07,126.39400000000001,6226.63,4326.3999999999996,4737.29,560.44000000000005,164.23,274.39,400.7,578.70000000000005,560.44000000000005,578.70000000000005,578.70000000000005,9.2675999999999998,51.853000000000002,1520.7,1490.9,1490.9,3228.6970000000001,-443.54,0.5,56.4,126.8,126.8,1,"CSMG3","-","-",25762,"ativo"]
["KROT3","Kroton","ON","BR","Ação","Outros",17273.82,10.6,1629.605,15902.64,5557.75,6060.71,1882.32,475.42,942.76,1290.58,1403.75,1882.32,1403.75,1403.75,9.1588999999999992,31.860299999999999,2111.1999999999998,1721.7,1721.7,5099.826,-638.87,-3.4,-40.4,1644.2,1644.2,1,"KROT3","-","-",121853,"ativo"]
["DTEX3","Duratex","ON","BR","Ação","Outros",7563.47,10.97,689.46900000000005,4633.7,3990.87,4949.3599999999997,184.88,30.79,197.32,573.59,431.57,184.88,431.57,431.57,9.1554000000000002,36.686300000000003,986.8,1546,1546,1700.3630000000001,-60.77,-7,27.7,691.8,691.8,1,"DTEX3","-","-",13915,"ativo"]
["MULT3","Multiplan","ON","BR","Ação","Outros",13902.95,23.39,594.39700000000005,5335.98,1156.3800000000001,1229.1400000000001,369.4,98.13,243.81,360.26,472.95,369.4,472.95,472.95,9.0488999999999997,36.582500000000003,818.1,939.2,939.2,1957.963,-301.07,-7.1,1.2,565.20000000000005,600.79999999999995,0.94099999999999995,"MULT3","-","-",68113,"ativo"]
["JPSA4","Jereissati","PN","BR","Ação","Outros",2130.4299999999998,"-",87.888999999999996,1446.32,693.24,722.61,76.900000000000006,22.9,47.07,80.73,110.15,76.900000000000006,110.15,110.15,8.5086999999999993,58.304000000000002,510.1,544.70000000000005,544.70000000000005,1664.6020000000001,-34.9,"-",12.7,87.9,87.9,1,"JPSA4","-","-",682,"ativo"]
["BKBR3","Bk Brasil","ON","BR","Ação","Outros",5020.63,22.11,227.07499999999999,1716.96,1783.84,2348.33,3.82,8.81,17.38,44.41,128.04,3.82,128.04,128.04,7.9172000000000002,-18.140899999999998,185,260,260,-311.47199999999998,0,0.1,27.1,222.5,227.1,0.98,"BKBR3","-","-",22742,"ativo"]
["LUXM4","Trevisa","PN","BR","Ação","Outros",77.94,15,5.1959999999999997,105.11,102.29,129.77000000000001,3.89,-0.6,5.38,11.16,6.23,3.89,6.23,6.23,6.1619000000000002,28.4285,28.8,31.7,31.7,29.882000000000001,0,-27.2,"-",2.2999999999999998,5.2,0.442,"LUXM4","-","-",24,"ativo"]
["ALSC3","Aliansce","ON","BR","Ação","Outros",4047.27,19.97,202.66800000000001,2553.98,507.69,508.43,94.54,6.4,31.43,52.71,113.96,94.54,113.96,113.96,4.7744,-21.970700000000001,388.8,394.4,394.4,-572.54300000000001,-23.64,-0.6,11.5,202.7,202.7,1,"ALSC3","-","-",14431,"ativo"]
["TESA3","Terra Santa","ON","BR","Ação","Outros",236.46,13.2,17.914000000000001,940.01,796.32,1119.01,7.35,38.01,18.760000000000002,31.44,42.26,7.35,42.26,42.26,4.2606000000000002,90.646100000000004,85.6,172.3,172.3,852.07799999999997,0,0.8,-11.3,17.899999999999999,17.899999999999999,1,"TESA3","-","-",172,"ativo"]
["GPCP3","GPC Part","ON","BR","Ação","Outros",80.48,12.84,6.2679999999999998,161.22,483.88,735.14,81.16,9.0500000000000007,-3.33,1.23,6.8,81.16,6.8,6.8,4.1346999999999996,88.306600000000003,118.9,65.2,65.2,165.703,0,29.7,-21.4,5.9,6.3,0.93899999999999995,"GPCP3","-","-",162,"ativo"]
["AALR3","Alliar","ON","BR","Ação","Outros",1714.25,14.52,118.062,1256.95,1077.8800000000001,1076.92,6.65,7.1,12.37,23.59,40.090000000000003,6.65,40.090000000000003,40.090000000000003,4.0594999999999999,40.958799999999997,149.4,219.9,219.9,532.346,0,-8.1,-1.9,118.3,118.3,1,"AALR3","-","-",1754,"ativo"]
["MOAR3","Mont Aranha","ON","BR","Ação","Outros",2082.71,170,12.250999999999999,1134.1600000000001,2.76,3.67,141.19,-9.65,-19.16,8.35,40.81,141.19,40.81,40.81,3.4018999999999999,-30.665500000000002,99.6,21,21,-348.89100000000002,-188.14,-2.9,29,12.3,12.3,1,"MOAR3","-","-",17,"ativo"]
["SHOW3","Time For Fun","ON","BR","Ação","Outros",456.2,6.78,67.286000000000001,329.17,652.9,598.38,44.35,4.01,7.62,20.67,8.3800000000000008,44.35,8.3800000000000008,8.3800000000000008,3.2507999999999999,-25.47,75,37.4,37.4,-85.191999999999993,-21.07,-6.5,-4.8,67.5,67.5,1,"SHOW3","-","-",1561,"ativo"]
["TECN3","Technos","ON","BR","Ação","Outros",188.61,2.44,77.298000000000002,465.69,340.08,305.7,-1.92,-15.02,-7.54,-11.26,14.37,-1.92,14.37,14.37,3.0971000000000002,6.2107999999999999,9.3000000000000007,8.4,8.4,28.922999999999998,0,-1.6,-31.3,78.5,78.5,1,"TECN3","-","-",221,"ativo"]
["OMGE3","Omega Ger","ON","BR","Ação","Outros",2668.35,19.5,136.83799999999999,1811.96,546.11,742.02,100.38,-16.420000000000002,-36.159999999999997,-11.85,41.89,100.38,41.89,41.89,2.7633999999999999,103.13030000000001,291.89999999999998,393.2,393.2,1913.6220000000001,-10.68,-2,12,117.8,136.80000000000001,0.86099999999999999,"OMGE3","-","-",4947,"ativo"]
["CCPR3","Cyre Com-Ccp","ON","BR","Ação","Outros",1519.73,12.7,119.664,1045.42,446.27,489.77,174.2,8.99,31.99,12.89,-0.89,174.2,-0.89,-0.89,2.6459000000000001,76.144499999999994,523.1,256.89999999999998,256.89999999999998,1351.1980000000001,-120,2.8,58.3,119.7,119.7,1,"CCPR3","-","-",102,"ativo"]
["EUCA4","Eucatex","PN","BR","Ação","Outros",364.94,3.96,92.156000000000006,1262.97,1205.3599999999999,1262.33,41.94,1.72,-9.93,-7.14,28.97,41.94,28.97,28.97,2.3414000000000001,32.943399999999997,211.8,234,234,416.05200000000002,0,-5.9,1.7,31.3,92.6,0.33700000000000002,"EUCA4","-","-",99,"ativo"]
["UCAS3","Unicasa","ON","BR","Ação","Outros",193.63,2.93,66.085999999999999,171.27,157.94,149.31,-6.36,-0.37,-0.35,1.59,3.39,-6.36,3.39,3.39,2.0217999999999998,-22.515899999999998,-4.0999999999999996,10.5,10.5,-38.561999999999998,0,2.4,15.4,66.099999999999994,66.099999999999994,1,"UCAS3","-","-",276,"ativo"]
["SCAR3","Sao Carlos","ON","BR","Ação","Outros",1894.22,33.799999999999997,56.042000000000002,1400.28,552.41999999999996,369.22,119.23,14.69,14.22,17.62,15.65,119.23,15.65,15.65,1.2115,68.863900000000001,341.1,191.8,191.8,966.64700000000005,-24.83,-1.5,-21.4,57.7,57.7,1,"SCAR3","-","-",341,"ativo"]
["ANIM3","Anima","ON","BR","Ação","Outros",1451.72,18.7,77.632000000000005,665.25,1045.67,1102.46,85.15,39.94,36.96,20.309999999999999,2.25,85.15,2.25,2.25,0.32319999999999999,31.772500000000001,137.5,93,93,211.36600000000001,-20.21,-0.1,-33.200000000000003,78.599999999999994,78.599999999999994,1,"ANIM3","-","-",3446,"ativo"]
["BRPR3","BR Propert","ON","BR","Ação","Outros",3590.5,8.9,403.42700000000002,5870.37,430.45,421.32,277.02,-11.58,-73.319999999999993,-110.43,13.71,277.02,13.71,13.71,0.23319999999999999,34.438000000000002,487.3,520.5,520.5,2021.634,-65.790000000000006,1.6,-14.5,407.1,407.1,1,"BRPR3","-","-",5084,"ativo"]
["BAHI3","Bahema","ON","BR","Ação","Outros",155.29,132.5,1.1719999999999999,52.57,37.64,44.11,-4.5599999999999996,-1.62,-0.03,-0.11,-2.11,-4.5599999999999996,-2.11,-2.11,-4.3601000000000001,-28.054200000000002,-1.3,-1.4,-1.4,-15.728,0,-1.1000000000000001,110.4,1.2,1.2,1,"BAHI3","-","-",12,"ativo"]
["MILS3","Mills","ON","BR","Ação","Outros",831.88,4.8,173.30799999999999,750.31,291.27,304.19,-138.38,-30.43,-74.09,-106.67,-94.97,-138.38,-94.97,-94.97,-11.218,7.8034999999999997,-43.2,0.3,0.3,58.55,0,-11.6,16.5,175.6,175.6,1,"MILS3","-","-",4159,"ativo"]
["BBRK3","BR Brokers","ON","BR","Ação","Outros",186.28,5.25,35.481000000000002,225,89.07,111.31,-106.16,-12.84,-24.24,-37.200000000000003,-76.709999999999994,-106.16,-76.709999999999994,-76.709999999999994,-27.048400000000001,-22.9556,-103.8,-61.7,-61.7,-51.731999999999999,0,-24.7,-47,36.299999999999997,36.299999999999997,1,"BBRK3","-","-",506,"ativo"]
["GSHP3","Generalshopp","ON","BR","Ação","Outros",73.59,1.0900000000000001,67.512,38.68,252.29,215.63,251.46,-64.650000000000006,-287.87,-349.14,-357.05,251.46,-357.05,-357.05,-29.154199999999999,1866.3444,433.1,57,57,721.95799999999997,"-",12799.7,13567.8,69.400000000000006,69.400000000000006,1,"GSHP3","-","-",1271,"ativo"]
["SEDU3","Somos Educa","ON","BR","Ação","Outros",5863.82,22.37,262.12900000000002,390.94,1871.58,1866.94,11.39,113.07,65.23,-127.46,-399.47,11.39,-399.47,-399.47,-46.932899999999997,407.48950000000002,324.60000000000002,-146,-146,1604.4860000000001,0,1.4,51.6,262.10000000000002,262.10000000000002,1,"SEDU3","-","-",66169,"ativo"]
["LPSB3","Lopes Brasil","ON","BR","Ação","Outros",609.47,4.8499999999999996,125.663,47.12,111.02,109.2,-63.37,-5.51,-19.47,-30.99,-46.67,-63.37,-46.67,-46.67,-60.600200000000001,-64.600200000000001,-57.5,-16.2,-16.2,-14.172000000000001,0,-15.7,-13.2,125.7,125.7,1,"LPSB3","-","-",1205,"ativo"]
["SLED4","Saraiva Livr","PN","BR","Ação","Outros",51.28,1.95,26.542000000000002,120.91,1724.89,1445.42,-52.01,1.32,-36.340000000000003,-102.94,-301.73,-52.01,-301.73,-301.73,-71.495900000000006,64.045100000000005,15.2,-167.2,-167.2,77.441999999999993,0,-9.3000000000000007,-52.1,9.6,26.7,0.36,"SLED4","-","-",83,"ativo"]
["HOOT4","Hoteis Othon","PN","BR","Ação","Outros",34.909999999999997,1.9,18.372,-226.26,117.45,78.540000000000006,-40.119999999999997,-15.75,-34.270000000000003,-55.57,-94.48,-40.119999999999997,-94.48,-94.48,"-",-1.7261,-3.9,-24,-24,4.2409999999999997,0,-2.1,-29.4,10.5,18.399999999999999,0.56999999999999995,"HOOT4","-","-",10,"ativo"]
["INEP4","Inepar","PN","BR","Ação","Outros",95.63,12.6,7.4630000000000001,-1382.43,39.799999999999997,"-",-321.06,-56.35,-52.21,-99.18,"-",-321.06,"-",-269.94,"-",-44.8523,-127,"-",-128.30000000000001,620.05200000000002,-1.25,-17.8,342.1,3.2,7.5,0.42599999999999999,"INEP4","-","-",238,"ativo"]
["SNSY5","Sansuy","PNA","BR","Ação","Outros",14.37,74.5,0.193,-1045.26,385.41,423.16,-153.88999999999999,-36.35,-77.19,-114.22,-150.79,-153.88999999999999,-150.79,-150.79,"-",-7.4946000000000002,-69.099999999999994,-67.599999999999994,-67.599999999999994,78.972999999999999,0,0.8,"-",0.1,0.2,0.34399999999999997,"SNSY5","-","-",7,"ativo"]
["SUZB5+SUZB3","Suzano Papel","ON","BR","Ação","Papel e Celulose",62806.26,46.55,1349.221,12012.01,10520.79,13437.33,1807.43,813.13,-1036.43,-1144.21,318.33999999999997,1807.43,318.33999999999997,318.33999999999997,2.7403,85.244900000000001,4660.7,6569,6569,10251.491,-210.21,-2.2999999999999998,150.30000000000001,1105.8,1361.3,0.81200000000000006,"SUZB5+SUZB3","-","-",262494,"ativo"]
["KLBN11","Klabin S/A","UNT N2","BR","Ação","Papel e Celulose",19339.12,17.03,5263.2079999999996,6292.24,8373.3799999999992,10016.459999999999,532.16999999999996,124.66,-829.98,-726.16,137.46,532.16999999999996,137.46,137.46,2.5823999999999998,189.77549999999999,3492.5,4657,4657,12398.468000000001,-840,-5.6,2.5,1984.6,5409.8,0.36699999999999999,"KLBN11","-","-",61796,"ativo"]
["CGAS5","Comgas","PNA","BR","Ação","Petróleo e Gas",10274.64,81.900000000000006,132.023,2721.32,5537.86,6840.01,640.12,179.09,293.10000000000002,480.59,1339.43,640.12,1339.43,1339.43,66.404499999999999,112.0384,1518.5,2186.3000000000002,2186.3000000000002,3048.9270000000001,-756.77,1,48,103.5,132,0.78400000000000003,"CGAS5","-","-",4389,"ativo"]
["BRDT3","Petrobras BR","ON","BR","Ação","Petróleo e Gas",26969.75,23.15,1165,9686,84567,97770,1151,247,510,1588,3193,1151,3193,3193,36.177199999999999,25.965299999999999,2574,2803,2803,2515,-1034,-5.3,44.4,1165,1165,1,"BRDT3","-","-",133666,"ativo"]
["PRIO3","Petrorio","ON","BR","Ação","Petróleo e Gas",2339.98,18.899999999999999,123.80800000000001,1006.6,533.91999999999996,848.92,50.85,2.69,73.25,144.71,204.88,50.85,204.88,204.88,23.198699999999999,-51.479399999999998,166,247.2,247.2,-518.19000000000005,0,25.2,131.1,13.3,135.6,9.8000000000000004E-2,"PRIO3","-","-",40766,"ativo"]
["CSAN3","Cosan","ON","BR","Ação","Petróleo e Gas",16740.810000000001,42.65,392.51600000000002,9928.7199999999993,7670.78,10299.1,1315.32,345.72,281.37,325.32,1652.32,1315.32,1652.32,1652.32,18.4879,66.466200000000001,3463.3,3322.8,3322.8,7260.1909999999998,-446.3,-2.4,5.7,407.9,407.9,1,"CSAN3","-","-",72729,"ativo"]
["QGEP3","Qgep Part","ON","BR","Ação","Petróleo e Gas",4000.53,15.3,261.47300000000001,3199.59,501.73,797.2,357.38,159.08000000000001,244.25,299.89999999999998,425.22,357.38,425.22,425.22,13.6722,-51.269599999999997,407.9,573.70000000000005,573.70000000000005,-1640.415,-400,15.7,63.4,265.8,265.8,1,"QGEP3","-","-",33154,"ativo"]
["UGPA3","Ultrapar","ON","BR","Ação","Petróleo e Gas",25521.7,47,543.01499999999999,9448.11,80007.42,90697.98,1574.31,73.86,315.44,642.78,1150.42,1574.31,1150.42,1150.42,11.648400000000001,85.857799999999997,4063.5,2697.1,2697.1,8414.0920000000006,-789.38,-10.8,-34.9,556.4,556.4,1,"UGPA3","-","-",184666,"ativo"]
["PETR4","Petrobras","PN","BR","Ação","Petróleo e Gas",389016.77,28.06,13044.200999999999,277225,283695,349836,-446,6961,17033,23677,25779,-446,25779,25779,9.9024999999999999,94.808899999999994,80251,108522,108522,268824,-2368,3.7,81.7,7442.5,13044.5,0.57099999999999995,"PETR4","-","-",1806898,"ativo"]
["DMMO3","Dommo","ON","BR","Ação","Petróleo e Gas",2133.3200000000002,0.79,2700.3989999999999,-376.35,426.48,538.27,-1952.74,70.23,269,-341.71,-670.98,-1952.74,-670.98,-670.98,-170.9879,41.799100000000003,-798.3,-478.6,-478.6,-157.31100000000001,0,-11.2,-24,2700.4,2700.4,1,"DMMO3","-","-",2196,"ativo"]
["RPMG3","Pet Manguinh","ON","BR","Ação","Petróleo e Gas",173.27,2.56,67.685000000000002,-2465.0100000000002,694.51,"-",-236.03,-78.069999999999993,-67.91,-91.01,"-",-236.03,"-",-135.13,"-",-1.6505000000000001,-270.39999999999998,"-",-174,40.707000000000001,0,-12.9,-67.599999999999994,67.7,67.7,1,"RPMG3","-","-",31,"ativo"]
["BRKM5","Braskem","PNA","BR","Ação","Química",41482.15,50.9,795.98400000000004,6787.65,49260.59,57999.87,4082.99,1053.5899999999999,1600.84,2945.11,2866.68,4082.99,2866.68,2866.68,51.090200000000003,291.98050000000001,12287.9,11294.5,11294.5,17259.683000000001,-1498.45,-6.4,23.8,451.7,797.2,0.56699999999999995,"BRKM5","-","-",77122,"ativo"]
["UNIP6","Unipar","PNB","BR","Ação","Química",3348.19,38.15,87.155000000000001,1347.52,3019.59,3469.13,302.66000000000003,158.51,229.63,374.23,528.04,302.66000000000003,528.04,528.04,51.0276,11.505599999999999,575.79999999999995,1007,1007,166.36500000000001,-206.96,-4.2,182.9,30.4,87.2,0.34899999999999998,"UNIP6","-","-",8646,"ativo"]
["CRPG5","Cristal","PNA","BR","Ação","Química",921.78,39.799999999999997,23.215,509.05,568.23,636.04999999999995,79,23.98,60.34,109.99,155.66999999999999,79,155.66999999999999,155.66999999999999,34.552500000000002,-11.5047,112.9,172.1,172.1,-58.564999999999998,-108.19,8.1999999999999993,209.7,8.1,23.2,0.35,"CRPG5","-","-",403,"ativo"]
["OFSA3","Ourofino S/A","ON","BR","Ação","Química",1685.91,31.25,53.948999999999998,455.94,505.28,589.22,38.11,3.62,27.87,49.75,68.849999999999994,38.11,68.849999999999994,68.849999999999994,16.977499999999999,48.763599999999997,91.2,123.5,123.5,222.346,"-",-3.5,31.3,53.9,53.9,1,"OFSA3","-","-",322,"ativo"]
["GBIO33","Biotoscana","ON","BR","Ação","Química",894.28,8.44,105.958,729.24,817.55,820.96,16.93,15.96,35.909999999999997,45,63.46,16.93,63.46,63.46,10.696,15.7714,"-","-","-",115.011,"-",-3.3,-59,106.6,106.6,1,"GBIO33","-","-",1421,"ativo"]
["FHER3","Fer Heringer","ON","BR","Ação","Química",119.02,2.21,53.856999999999999,-621.84,4789.72,3688.72,-125.6,-46.75,-324.07,-441.45,-779.61,-125.6,-779.61,-779.61,-476.52550000000002,-157.9545,91.9,-150.4,-150.4,982.21799999999996,0,-2.6,-13.3,53.9,53.9,1,"FHER3","-","-",429,"ativo"]
["BOBR4","Bombril","PN","BR","Ação","Química",122.73,2.27,54.064999999999998,-241.39,1096.72,1046.69,126.82,-15.75,-21.99,107.36,70.17,126.82,70.17,70.17,"-",-112.3655,203,19.2,19.2,271.238,0,-15,-54,20,54.1,0.37,"BOBR4","-","-",81,"ativo"]
["CSNA3","Sid Nacional","ON","BR","Ação","Siderur & Metalur",22426.86,16.25,1380.115,8702.74,18524.599999999999,22968.89,10.27,1471.86,2632.31,3353.85,5074.1400000000003,10.27,5074.1400000000003,5074.1400000000003,62.746600000000001,256.48880000000003,4437.3,8219.6,8219.6,25683.357,0,24.2,93.9,1387.5,1387.5,1,"CSNA3","-","-",306777,"ativo"]
["FESA4","Ferbasa","PN","BR","Ação","Siderur & Metalur",2090.88,21.71,85.096999999999994,1743.32,1108.72,1381.06,269.85000000000002,63.4,139.74,288.89,308.8,269.85000000000002,308.8,308.8,20.307099999999998,5.9785000000000004,356.1,522.70000000000005,522.70000000000005,104.57,-108.5,-20.8,13.7,29.4,88.3,0.33300000000000002,"FESA4","-","-",6630,"ativo"]
["GGBR4","Gerdau","PN","BR","Ação","Siderur & Metalur",23998.44,15.14,1696.164,25730.6,36917.620000000003,46159.48,-359.36,441.03,1135.6199999999999,1920.53,2303.87,-359.36,2303.87,2303.87,9.7363,44.555700000000002,3192.6,5939,5939,11557.1,-592.61,0.7,26.1,573.6,1719.7,0.33400000000000002,"GGBR4","-","-",192333,"ativo"]
["GOAU4","Gerdau Met","PN","BR","Ação","Siderur & Metalur",6983.56,7.11,979.42100000000005,9345.17,36917.620000000003,46159.48,-203.29,146.97,397.57,680.05,799.01,-203.29,799.01,799.01,9.5991999999999997,48.102800000000002,3184.3,5914.5,5914.5,12204.878000000001,-195.4,-0.3,27,331.3,985.7,0.33600000000000002,"GOAU4","-","-",67590,"ativo"]
["MTSA4","Metisa","PN","BR","Ação","Siderur & Metalur",152.72,16.96,9.0050000000000008,230.64,240.18,270.73,13.14,2.95,7.54,13.58,16.34,13.14,16.34,16.34,7.4279999999999999,-16.6524,15.8,24.7,24.7,-38.406999999999996,-5.6,-5.8,9.4,4.2,9.1,0.46100000000000002,"MTSA4","-","-",181,"ativo"]
["USIM5","Usiminas","PNA","BR","Ação","Siderur & Metalur",13473.59,10.039999999999999,1229.3019999999999,14266.3,10734.12,13736.78,233.02,140.11000000000001,107.94,371.86,726.66,233.02,726.66,726.66,5.4577,26.4785,2055.6999999999998,2171.8000000000002,2171.8000000000002,4156.4409999999998,-55.26,3.9,11.7,705.3,1253.0999999999999,0.56299999999999994,"USIM5","-","-",154929,"ativo"]
["KEPL3","Kepler Weber","ON","BR","Ação","Siderur & Metalur",455.2,17.3,26.312000000000001,441.03,578.38,576.29999999999995,-34.26,-10.6,-24.59,-20.48,8.27,-34.26,8.27,8.27,1.8987000000000001,3.7587000000000002,-12.7,48.4,48.4,16.577000000000002,0,0.3,-11.4,26.3,26.3,1,"KEPL3","-","-",1519,"ativo"]
[{"$f":"IF(AG196=\"\",\"\",AG196)","v":"APTI4"},"Aliperti","PN","BR","Ação","Siderur & Metalur","-","-",1.7999999999999999E-2,232.15,33.950000000000003,32.01,-27.1,-3.63,-7.5,-12.42,-11.57,-27.1,-11.57,-11.57,-4.6954000000000002,23.343900000000001,-15.6,0.8,0.8,54.167999999999999,0,"-","-",0,0,0.33600000000000002,"APTI4","-","-",32,"ativo"]
["PMAM3","Paranapanema","ON","BR","Ação","Siderur & Metalur",1010.82,1.46,692.346,602.5,3508.46,4765.78,-135.77000000000001,-49.16,-337.2,-356.04,-323.37,-135.77000000000001,-323.37,-323.37,-36.394500000000001,315.92750000000001,-214.7,82.7,82.7,1903.454,0,0,-8.1999999999999993,692.4,692.4,1,"PMAM3","-","-",2396,"ativo"]
["LUPA3","Lupatech","ON","BR","Ação","Siderur & Metalur",30.21,1.82,16.597999999999999,84.61,112.37,126.55,-5.49,-20.85,-66.25,-89.67,-96.71,-5.49,-96.71,-96.71,-90.340900000000005,131.00040000000001,-40.700000000000003,-43.5,-43.5,174.48599999999999,0,-7.1,-37.200000000000003,16.2,16.600000000000001,0.97699999999999998,"LUPA3","-","-",218,"ativo"]
["EALT4","Aco Altona","PN","BR","Ação","Siderur & Metalur",122.88,5.21,22.5,154.62,168.41,246.96,30.65,3.66,6.19,9.74,12.25,30.65,12.25,12.25,"-",49.553800000000003,57.7,30.1,30.1,76.622,-5.81,1.2,66.2,9.8000000000000007,22.5,0.433,"EALT4","-","-",46,"ativo"]
["FJTA4","Forja Taurus","PN","BR","Ação","Siderur & Metalur",298.08,3.87,74.863,-406.96,784.88,845.29,-286.02999999999997,1.19,-92.58,-44.61,-59.86,-286.02999999999997,-59.86,-59.86,"-",-193.65989999999999,-125.8,80.5,80.5,788.12400000000002,0,-7.9,120.7,46.4,74.900000000000006,0.62,"FJTA4","-","-",4224,"ativo"]
["HAGA4","Haga S/A","PN","BR","Ação","Siderur & Metalur",23.8,1.5,11.9,-76.84,24.41,22.91,-1.41,-0.98,1.41,0.96,5.97,-1.41,5.97,5.97,"-",-12.134399999999999,"-","-","-",9.3239999999999998,"-",-2.6,-31.8,4,11.9,0.33300000000000002,"HAGA4","-","-",20,"ativo"]
["MGEL4","Mangels Indl","PN","BR","Ação","Siderur & Metalur",40.479999999999997,7,5.7830000000000004,-364.13,445.98,476.74,-8.69,-0.44,-15.31,-18.829999999999998,-16.7,-8.69,-16.7,-16.7,"-",-162.9622,26.8,54.3,54.3,593.38599999999997,0,-3.2,69.900000000000006,2.1,5.8,0.35699999999999998,"MGEL4","-","-",15,"ativo"]
["MNDL3","Mundial","ON","BR","Ação","Siderur & Metalur",72.8,29.36,2.4790000000000001,-134.68,437.12,469.95,-79.16,0.87,2.25,0.53,3.06,-79.16,3.06,3.06,"-",-139.82480000000001,42,69.400000000000006,69.400000000000006,188.309,0,-0.3,28.8,2.5,2.5,1,"MNDL3","-","-",22,"ativo"]
["CIEL3","Cielo","ON","BR","Ação","Software e Dados",25758.080000000002,9.49,2714.2339999999999,11204.09,11600.34,11685.84,4056.08,1007.05,1824.56,2617.7800000000002,3341.91,4056.08,3341.91,3341.91,23.172000000000001,33.547600000000003,5277.9,4634.8,4634.8,4988.5529999999999,-7041.57,-12.2,-54,2716.8,2716.8,1,"CIEL3","-","-",134643,"ativo"]
["LINX3","Linx","ON","BR","Ação","Software e Dados",5874.91,37,158.78100000000001,1057.21,571.59,685.56,84.85,26.45,44.8,53.84,71.06,84.85,71.06,71.06,6.0704000000000002,-20.170400000000001,144.4,168.8,168.8,-213.24299999999999,-38,29.7,74.8,166.3,166.3,1,"LINX3","-","-",56128,"ativo"]
["TOTS3","Totvs","ON","BR","Ação","Software e Dados",6439.99,39.4,163.452,1287.04,2227.33,2320.27,92.98,33.979999999999997,65.28,101.27,59.55,92.98,59.55,59.55,4.8068999999999997,2.0074000000000001,294.5,259.39999999999998,259.39999999999998,25.86,-51.09,8.1,33.200000000000003,165.6,165.6,1,"TOTS3","-","-",60499,"ativo"]
["SQIA3","Sinqia","ON","BR","Ação","Software e Dados",391.6,34,11.518000000000001,85.35,134.91,142.11000000000001,7.46,-1.8,0.21,1.64,2.73,7.46,2.73,2.73,3.6055000000000001,-13.3896,18.2,15.3,15.3,-11.428000000000001,-2.09,14,28.2,11.8,11.8,1,"SQIA3","-","-",655,"ativo"]
["OIBR4","Oi","PN","BR","Ação","Telecomunicações",9048.81,1.51,5954.2049999999999,25986.86,23789.65,"-",-6365.02,30543.360000000001,29285.68,27949.29,"-",-6365.02,"-",25048.799999999999,287.50970000000001,42.028100000000002,2748.3,"-",2553.1,11037.721,-0.06,-16.100000000000001,-40.4,2182.3000000000002,5954.2,0.36699999999999999,"OIBR4","-","-",7783,"ativo"]
["TIMP3","Tim Part S/A","ON","BR","Ação","Telecomunicações",28534.73,11.79,2420.248,19794.84,16233.96,16981.330000000002,1234.51,245.13,579.66999999999996,1912.92,2545.1,1234.51,2545.1,2545.1,14.021699999999999,-0.997,5947,6371.8,6371.8,-197.35400000000001,-588.25,-0.3,-7.3,2421,2421,1,"TIMP3","-","-",48390,"ativo"]
["VIVT4","Telef Brasil","PN","BR","Ação","Telecomunicações",78220.23,47.5,1688.694,71607.03,43206.83,43462.74,4608.79,1098.02,4264.32,7441.58,8928.26,4608.79,8928.26,8928.26,12.8536,3.8517000000000001,14487.6,17819,17819,2758.1089999999999,-4136.88,2.5,8.3000000000000007,571.6,1691,0.33800000000000002,"VIVT4","-","-",93324,"ativo"]
["TELB4","Telebras","PN","BR","Ação","Telecomunicações",1866.42,28.6,49.604999999999997,370.43,73.290000000000006,199.65,-243.82,-62.67,-124.01,-228.1,-224.85,-243.82,-224.85,-224.85,-38.121899999999997,26.410399999999999,-150.80000000000001,-62.8,-62.8,97.832999999999998,-0.01,5.0999999999999996,30.1,39.299999999999997,49.6,0.79200000000000004,"TELB4","-","-",190,"ativo"]
["CAMB4","Cambuci","PN","BR","Ação","Textil",131.07,34,3.855,24.35,259.45999999999998,247.49,44.73,4.41,6.94,12.22,16.64,44.73,16.64,16.64,247.8047,220.73269999999999,26.3,36,36,53.201000000000001,0,0,297.60000000000002,1.3,3.9,0.34,"CAMB4","-","-",15,"ativo"]
["GUAR3","Guararapes","ON","BR","Ação","Textil",8985.6,144,62.4,4929.1499999999996,6444.66,7192.6,570.33000000000004,51.13,140.19999999999999,223.53,1235.67,570.33000000000004,1235.67,1235.67,30.6997,19.8903,1188.7,1701.3,1701.3,980.42100000000005,-139.97,-1.1000000000000001,-0.5,31.2,62.4,0.5,"GUAR3","-","-",8937,"ativo"]
["CEDO4","Cedro","PN","BR","Ação","Textil",60.94,6.22,10,190.19,635.04,649.69000000000005,82.7,0.01,0.93,-7.8,48.61,82.7,48.61,48.61,28.069600000000001,119.2587,101.5,80.5,80.5,248.89400000000001,0,-2.5,-8.8000000000000007,5.7,10,0.57099999999999995,"CEDO4","-","-",16,"ativo"]
["ARZZ3","Arezzo Co","ON","BR","Ação","Textil",4510.74,49.98,90.251000000000005,711.34,1360.47,1526.66,154.47,27.11,60.24,100.4,142.63999999999999,154.47,142.63999999999999,142.63999999999999,21.451499999999999,-17.485700000000001,206.3,232.2,232.2,-124.383,-41.92,-7.4,-4.5999999999999996,90.3,90.3,1,"ARZZ3","-","-",19309,"ativo"]
["HGTX3","Cia Hering","ON","BR","Ação","Textil",4824.34,29.89,161.40299999999999,1320.08,1562.32,1539.57,263.77999999999997,34.31,91.6,144.02000000000001,239.51,263.77999999999997,239.51,239.51,19.4267,-24.2819,260.89999999999998,259.60000000000002,259.60000000000002,-320.54000000000002,-109.99,-1,21.8,161.80000000000001,161.80000000000001,1,"HGTX3","-","-",42029,"ativo"]
["VULC3","Vulcabras","ON","BR","Ação","Textil",1658.85,6.75,245.756,941.16,1263.08,1248.96,188.91,33.42,66.459999999999994,105.97,152.11000000000001,188.91,152.11000000000001,152.11000000000001,19.388100000000001,-0.91559999999999997,296.5,218,218,-8.6199999999999992,0,-15.2,-25.8,245.8,245.8,1,"VULC3","-","-",5223,"ativo"]
["GRND3","Grendene","ON","BR","Ação","Textil",7544.14,8.3800000000000008,900.255,3465.04,2251.9699999999998,2333.4499999999998,660.93,156.06,221.86,334.22,585.53,660.93,585.53,585.53,18.197700000000001,-40.765700000000002,526.20000000000005,522.70000000000005,522.70000000000005,-1412.549,-321.27,-3.3,-7.8,902.2,902.2,1,"GRND3","-","-",7995,"ativo"]
["ALPA4","Alpargatas","PN","BR","Ação","Textil",8962.6,15.38,578.81700000000001,2380.81,3721.86,3904.51,362.29,114.07,136.61000000000001,257.77999999999997,331.5,362.29,331.5,331.5,14.3103,2.915,486.2,564.70000000000005,564.70000000000005,71.995999999999995,-206.41,0.2,13.7,241.6,588.1,0.41099999999999998,"ALPA4","-","-",9322,"ativo"]
["PTNT4","Pettenati","PN","BR","Ação","Textil",156.15,3.25,48.045999999999999,191.75,203.73,246.65,6.17,11.33,18,7.48,3.93,6.17,3.93,15.76,13.8292,26.081,25.6,24.1,60,61.500999999999998,"-",7.6,-2,16,48,0.33300000000000002,"PTNT4","-","-",15,"ativo"]
["CTSA3","Santanense","ON","BR","Ação","Textil",198.27,5.0199999999999996,39.298999999999999,205.43,418.54,"-",19.940000000000001,7.83,13.96,19.45,"-",19.940000000000001,"-",26.38,10.1274,121.9294,47.8,"-",55.4,250.482,-11.95,-2.5,97.3,38,39.299999999999997,0.96799999999999997,"CTSA3","-","-",6,"ativo"]
["DOHL4","Dohler","PN","BR","Ação","Textil",459.92,7.6,60.515999999999998,570.80999999999995,460.01,480.71,34.14,9.58,16.940000000000001,43.13,49.57,34.14,49.57,49.57,9.2905999999999995,-2.8262999999999998,44.4,45.8,45.8,-16.138000000000002,-9.59,10.1,35.700000000000003,43.6,60.5,0.72,"DOHL4","-","-",23,"ativo"]
["CTNM4","Coteminas","PN","BR","Ação","Textil",333.22,10.4,30.635999999999999,852.11,2577.73,"-",49.81,-5.43,-5.13,13.83,"-",49.81,"-",65.540000000000006,6.2826000000000004,90.794799999999995,356.7,"-",370.2,1373.4970000000001,0,3.9,66.7,13.9,30.6,0.45400000000000001,"CTNM4","-","-",56,"ativo"]
["LLIS3","Le Lis Blanc","ON","BR","Ação","Textil",1651.23,32,51.600999999999999,2225.87,1249.82,1244.1500000000001,420.57,20.37,50.62,58.46,103.46,420.57,103.46,103.46,4.8201000000000001,38.815199999999997,262.60000000000002,350.6,350.6,863.97699999999998,-96.52,-3.1,4.9000000000000004,51.6,51.6,1,"LLIS3","-","-",230,"ativo"]
["SGPS3","Springs","ON","BR","Ação","Textil",444.5,8.89,50,1160.5899999999999,2198.6999999999998,"-",21.04,-6.95,2,-7.36,"-",21.04,"-",7.42,0.74109999999999998,85.102999999999994,254.6,"-",244.6,987.69899999999996,0,5.7,-17.8,50,50,1,"SGPS3","-","-",438,"ativo"]
["CTKA4","Karsten","PN","BR","Ação","Textil",20.48,3.3,6.2050000000000001,-260.17,309.77999999999997,316.64,-0.53,-20,-28.93,-47.92,-52.68,-0.53,-52.68,-52.68,"-",-185.1534,53.1,54.8,54.8,481.70800000000003,0,-17.5,18.3,2.9,6.2,0.46400000000000002,"CTKA4","-","-",21,"ativo"]
["TEKA4","Teka","PN","BR","Ação","Textil",4.6100000000000003,8.82,0.503,-1435.22,132.02000000000001,149.16,-168.36,-41.27,-87.96,-134.25,-125.61,-168.36,-125.61,-125.61,"-",-29.666399999999999,-13.9,-12.5,-12.5,425.76,0,0.7,25.1,0.2,0.5,0.33400000000000002,"TEKA4","-","-",12,"ativo"]
["TXRX4","Tex Renaux","PN","BR","Ação","Textil",9.8000000000000007,2.2999999999999998,4.2590000000000003,-312.81,84.95,87.33,96.72,-4.5999999999999996,-5.0599999999999996,-9.42,-11.44,96.72,-11.44,-11.44,"-",-60.169199999999996,"-","-","-",188.21299999999999,"-",-18.399999999999999,-0.4,1.5,4.3,0.34200000000000003,"TXRX4","-","-",17,"ativo"]
["TPIS3","Triunfo Part","ON","BR","Ação","Transporte Serviç",301.89999999999998,1.74,173.50700000000001,1170.1199999999999,1492.74,"-",-6.64,25.8,-14.8,-71.33,"-",-6.64,"-",742.35,125.5883,134.92529999999999,784.1,"-",1284.5,1725.8820000000001,-80.209999999999994,-3.9,-43.9,176,176,1,"TPIS3","-","-",544,"ativo"]
["ECOR3","Ecorodovias","ON","BR","Ação","Transporte Serviç",5336.48,9.59,556.46299999999997,640.32000000000005,3200.7,3169.27,392.49,145.58000000000001,224.4,317.93,374.51,392.49,374.51,374.51,50.508899999999997,749.07960000000003,1630.2,1617.9,1617.9,4796.4989999999998,-401.83,-15.3,-15.9,558.70000000000005,558.70000000000005,1,"ECOR3","-","-",35306,"ativo"]
["CVCB3","Cvc Brasil","ON","BR","Ação","Transporte Serviç",7936.38,54.75,144.95699999999999,1087.94,1185.1500000000001,1692.57,223.89,81.52,106.25,188.81,270.27999999999997,223.89,270.27999999999997,270.27999999999997,33.288899999999998,95.715500000000006,561.20000000000005,659.1,659.1,1067.326,-72.59,-6.3,13.9,146.5,146.5,1,"CVCB3","-","-",107211,"ativo"]
["TGMA3","Tegma","ON","BR","Ação","Transporte Serviç",1739.44,26.38,65.938000000000002,484.37,1083.98,1253.78,103.76,14,42.18,73.290000000000006,108.25,103.76,108.25,108.25,24.119299999999999,15.8263,136.9,182.7,182.7,76.658000000000001,-75.5,-4.2,40.299999999999997,66,66,1,"TGMA3","-","-",9693,"ativo"]
["JSLG3","JSL","ON","BR","Ação","Transporte Serviç",2034.74,9.92,205.11500000000001,753.15,7255.8,8075.39,-2.74,13.58,46.89,86.09,131.27000000000001,-2.74,131.27000000000001,131.27000000000001,15.9057,572.85680000000002,1230.2,1597.5,1597.5,7152.1120000000001,0,2.6,23,205.5,205.5,1,"JSLG3","-","-",4748,"ativo"]
["AZUL4","Azul S.A.","PN","BR","Ação","Transporte Serviç",12949.76,38.270000000000003,338.37900000000002,3163.7,7789.5,9153.36,529.04,210.55,165.54,282.11,420.28,529.04,420.28,420.28,14.831899999999999,63.832299999999996,1164.8,850.4,850.4,2019.463,0,1.6,42.3,929,338.4,2.7450000000000001,"AZUL4","-","-",94874,"ativo"]
["CCRO3","CCR SA","ON","BR","Ação","Transporte Serviç",23714.799999999999,11.74,2020,8231.49,10561,9715.86,1797.47,446.75,724.45,1089.8,782.74,1797.47,782.74,782.74,7.4912000000000001,166.06899999999999,5052.3,3817.8,3817.8,14004.157999999999,-1199.98,-17.5,-23.3,2020,2020,1,"CCRO3","-","-",137356,"ativo"]
["RAIL3","Rumo S.A.","ON","BR","Ação","Transporte Serviç",29855.15,19.149999999999999,1559.0160000000001,8028.2,5946.35,6584.94,-260.81,-58.96,-94.7,131.09,264.36,-260.81,264.36,264.36,3.4037999999999999,126.0196,2757,3242,3242,10452.853999999999,0,-1.6,47.6,1559,1559,1,"RAIL3","-","-",212765,"ativo"]
["GOLL4","Gol","PN","BR","Ação","Transporte Serviç",9005.92,25.9,347.71899999999999,-4985.41,10576.02,11411.35,19.18,147.47,-1178.51,-1587.75,-1085.3900000000001,19.18,-1085.3900000000001,-1085.3900000000001,"-",-128.29,1495.2,2068.5,2068.5,5779.9160000000002,0,-2.9,77.400000000000006,2863.7,347.7,8.2360000000000007,"GOLL4","-","-",102768,"ativo"]
["LOGN3","Log-In","ON","BR","Ação","Transporte Serviç",308.12,8.36,36.856000000000002,-354.75,872.17,977.43,-606.87,41.72,-11.21,-9.19,6,-606.87,6,6,"-",-347.18110000000001,-442.7,198,198,1231.1980000000001,0,-6.4,173.9,38.1,38.1,1,"LOGN3","-","-",3601,"ativo"]
["LEVE3","Metal Leve","ON","BR","Ação","Veiculos e peças",3117.9,24.3,128.309,1356.36,2264.44,2591.65,237.31,71.38,131.59,223.81,291.68,237.31,291.68,291.68,21.7041,14.3413,405.4,466.8,466.8,194.03,-229.89,-7.7,9.9,128.30000000000001,128.30000000000001,1,"LEVE3","-","-",7355,"ativo"]
["SHUL4","Schulz","PN","BR","Ação","Veiculos e peças",664.46,7.47,88.950999999999993,540.71,686.77,946.59,40.119999999999997,12.29,27.91,50.08,70.22,40.119999999999997,70.22,70.22,14.412100000000001,39.951300000000003,91.3,122,122,216.01900000000001,-17.57,4.2,58.4,38.200000000000003,89.3,0.42699999999999999,"SHUL4","-","-",609,"ativo"]
["TUPY3","Tupy","ON","BR","Ação","Veiculos e peças",2612.25,18.12,144.16399999999999,2199.96,3706.15,4828.22,153.4,56.89,105.17,193.81,271.72000000000003,153.4,271.72000000000003,271.72000000000003,13.7003,31.5092,447.4,649.29999999999995,649.29999999999995,693.19,-174.95,3.4,11.1,144.19999999999999,144.19999999999999,1,"TUPY3","-","-",18924,"ativo"]
["RAPT4","Randon Part","PN","BR","Ação","Veiculos e peças",3053.59,9.6999999999999993,342.43099999999998,1527.31,2936.76,4262.6000000000004,46.71,43.2,74.63,116.28,151.72,46.71,151.72,151.72,11.8918,54.322000000000003,308.2,559.70000000000005,559.70000000000005,1110.864,-34.92,0.5,37.1,116.5,345.8,0.33700000000000002,"RAPT4","-","-",21480,"ativo"]
["MYPK3","Iochp-Maxion","ON","BR","Ação","Veiculos e peças",3203.58,21.45,149.351,2921.95,7487.94,9616.2999999999993,6.4,-12.97,31.17,124.65,201.33,6.4,201.33,201.33,11.6381,72.745999999999995,798.6,1057.0999999999999,1057.0999999999999,2326.8020000000001,-36.25,-1.2,-2.5,150.6,150.6,1,"MYPK3","-","-",14596,"ativo"]
["FRAS3","Fras-Le","ON","BR","Ação","Veiculos e peças",1094.29,5.0999999999999996,214.566,807.13,832.83,1141.1500000000001,64.069999999999993,45.19,63.95,74.45,93.33,64.069999999999993,93.33,93.33,11.3102,17.0791,106.4,183.8,183.8,141.16900000000001,-45.99,1.8,0,217.6,217.6,1,"FRAS3","-","-",304,"ativo"]
["POMO4","Marcopolo","PN","BR","Ação","Veiculos e peças",3564.63,3.9,942.91600000000005,2105.62,2875.99,4197.47,72.17,30.2,53.41,117.1,186.73,72.17,186.73,186.73,9.9007000000000005,45.879600000000003,119.7,362.1,362.1,979.36,-33.89,-3.7,0.9,341.6,946.9,0.36099999999999999,"POMO4","-","-",11707,"ativo"]
["EMBR3","Embraer","ON","BR","Ação","Veiculos e peças",13575.27,18.45,735.78700000000003,14901.26,18713.05,18721.62,795.79,-40.11,-507.08,-590.89,-669.03,795.79,-669.03,-669.03,-4.6519000000000004,15.8232,2057.5,1097.9000000000001,1097.9000000000001,2415.7260000000001,-139.65,-3.3,-7.2,740.8,740.8,1,"EMBR3","-","-",57842,"ativo"]
[{"$f":"IF(AG247=\"\",\"\",AG247)","v":"PLAS3"},"Plascar Part","ON","BR","Ação","Veiculos e peças",94.43,7.6,12.425000000000001,-514.30999999999995,389.18,346.82,-71.95,-39.43,-75.680000000000007,-141.46,-257.25,-71.95,-257.25,-257.25,"-",-86.272199999999998,0.7,-85.3,-85.3,444.18200000000002,0,-17.5,31,5,12.4,0.4,"PLAS3","-","-",16,"ativo"]
["RCSL4","Recrusul","PN","BR","Ação","Veiculos e peças",9.02,1.51,5.0810000000000004,-63.73,0.04,4.46,-36.9,-4.16,-7.62,-10.69,-13.05,-36.9,-13.05,-13.05,"-",4.4393000000000002,-26,-4.7,-4.7,-2.8380000000000001,0,-4.4000000000000004,-3.8,1.7,5.0999999999999996,0.33500000000000002,"RCSL4","-","-",128,"ativo"]
["",null,null,null,null,null,null,null,null,null,null,null,null,null,null,null,null,null,null,null,null,null,null,null,null,null,null,null,null,null,null,null,null,null,null,null,{"$f":"CONCATENATE(B249,\" \",C249)","v":" "}]
["",null,null,null,null,null,null,null,null,null,null,null,null,null,null,null,null,null,null,null,null,null,null,null,null,null,null,null,null,null,null,null,null,null,null,null," "]
["",null,null,null,null,null,null,null,null,null,null,null,null,null,null,null,null,null,null,null,null,null,null,null,null,null,null,null,null,null,null,null,null,null,null,null," "]
["",null,null,null,null,null,null,null,null,null,null,null,null,null,null,null,null,null,null,null,null,null,null,null,null,null,null,null,null,null,null,null,null,null,null,null," "]
["",null,null,null,null,null,null,null,null,null,null,null,null,null,null,null,null,null,null,null,null,null,null,null,null,null,null,null,null,null,null,null,null,null,null,null," "]
["",null,null,null,null,null,null,null,null,null,null,null,null,null,null,null,null,null,null,null,null,null,null,null,null,null,null,null,null,null,null,null,null,null,null,null," "]
["",null,null,null,null,null,null,null,null,null,null,null,null,null,null,null,null,null,null,null,null,null,null,null,null,null,null,null,null,null,null,null,null,null,null,null," "]
["",null,null,null,null,null,null,null,null,null,null,null,null,null,null,null,null,null,null,null,null,null,null,null,null,null,null,null,null,null,null,null,null,null,null,null," "]
["",null,null,null,null,null,null,null,null,null,null,null,null,null,null,null,null,null,null,null,null,null,null,null,null,null,null,null,null,null,null,null,null,null,null,null," "]
["",null,null,null,null,null,null,null,null,null,null,null,null,null,null,null,null,null,null,null,null,null,null,null,null,null,null,null,null,null,null,null,null,null,null,null," "]
["",null,null,null,null,null,null,null,null,null,null,null,null,null,null,null,null,null,null,null,null,null,null,null,null,null,null,null,null,null,null,null,null,null,null,null," "]
["",null,null,null,null,null,null,null,null,null,null,null,null,null,null,null,null,null,null,null,null,null,null,null,null,null,null,null,null,null,null,null,null,null,null,null," "]
["",null,null,null,null,null,null,null,null,null,null,null,null,null,null,null,null,null,null,null,null,null,null,null,null,null,null,null,null,null,null,null,null,null,null,null," "]
["",null,null,null,null,null,null,null,null,null,null,null,null,null,null,null,null,null,null,null,null,null,null,null,null,null,null,null,null,null,null,null,null,null,null,null," "]
["",null,null,null,null,null,null,null,null,null,null,null,null,null,null,null,null,null,null,null,null,null,null,null,null,null,null,null,null,null,null,null,null,null,null,null," "]
["",null,null,null,null,null,null,null,null,null,null,null,null,null,null,null,null,null,null,null,null,null,null,null,null,null,null,null,null,null,null,null,null,null,null,null," "]
["",null,null,null,null,null,null,null,null,null,null,null,null,null,null,null,null,null,null,null,null,null,null,null,null,null,null,null,null,null,null,null,null,null,null,null," "]
["",null,null,null,null,null,null,null,null,null,null,null,null,null,null,null,null,null,null,null,null,null,null,null,null,null,null,null,null,null,null,null,null,null,null,null," "]
["",null,null,null,null,null,null,null,null,null,null,null,null,null,null,null,null,null,null,null,null,null,null,null,null,null,null,null,null,null,null,null,null,null,null,null," "]
["",null,null,null,null,null,null,null,null,null,null,null,null,null,null,null,null,null,null,null,null,null,null,null,null,null,null,null,null,null,null,null,null,null,null,null," "]
["",null,null,null,null,null,null,null,null,null,null,null,null,null,null,null,null,null,null,null,null,null,null,null,null,null,null,null,null,null,null,null,null,null,null,null," "]
["",null,null,null,null,null,null,null,null,null,null,null,null,null,null,null,null,null,null,null,null,null,null,null,null,null,null,null,null,null,null,null,null,null,null,null," "]
["",null,null,null,null,null,null,null,null,null,null,null,null,null,null,null,null,null,null,null,null,null,null,null,null,null,null,null,null,null,null,null,null,null,null,null," "]
["",null,null,null,null,null,null,null,null,null,null,null,null,null,null,null,null,null,null,null,null,null,null,null,null,null,null,null,null,null,null,null,null,null,null,null," "]
["",null,null,null,null,null,null,null,null,null,null,null,null,null,null,null,null,null,null,null,null,null,null,null,null,null,null,null,null,null,null,null,null,null,null,null," "]
["",null,null,null,null,null,null,null,null,null,null,null,null,null,null,null,null,null,null,null,null,null,null,null,null,null,null,null,null,null,null,null,null,null,null,null," "]
["",null,null,null,null,null,null,null,null,null,null,null,null,null,null,null,null,null,null,null,null,null,null,null,null,null,null,null,null,null,null,null,null,null,null,null," "]
["",null,null,null,null,null,null,null,null,null,null,null,null,null,null,null,null,null,null,null,null,null,null,null,null,null,null,null,null,null,null,null,null,null,null,null," "]
["",null,null,null,null,null,null,null,null,null,null,null,null,null,null,null,null,null,null,null,null,null,null,null,null,null,null,null,null,null,null,null,null,null,null,null," "]
["",null,null,null,null,null,null,null,null,null,null,null,null,null,null,null,null,null,null,null,null,null,null,null,null,null,null,null,null,null,null,null,null,null,null,null,{"$f":"CONCATENATE(B278,\" \",C278)","v":" "}]
["",null,null,null,null,null,null,null,null,null,null,null,null,null,null,null,null,null,null,null,null,null,null,null,null,null,null,null,null,null,null,null,null,null,null,null," "]
["",null,null,null,null,null,null,null,null,null,null,null,null,null,null,null,null,null,null,null,null,null,null,null,null,null,null,null,null,null,null,null,null,null,null,null," "]
[{"$f":"IF(AG281=\"\",\"\",AG281)","v":""},null,null,null,null,null,null,null,null,null,null,null,null,null,null,null,null,null,null,null,null,null,null,null,null,null,null,null,null,null,null,null,null,null,null,null," "]
["",null,null,null,null,null,null,null,null,null,null,null,null,null,null,null,null,null,null,null,null,null,null,null,null,null,null,null,null,null,null,null,null,null,null,null," "]
["",null,null,null,null,null,null,null,null,null,null,null,null,null,null,null,null,null,null,null,null,null,null,null,null,null,null,null,null,null,null,null,null,null,null,null," "]
["",null,null,null,null,null,null,null,null,null,null,null,null,null,null,null,null,null,null,null,null,null,null,null,null,null,null,null,null,null,null,null,null,null,null,null," "]
["",null,null,null,null,null,null,null,null,null,null,null,null,null,null,null,null,null,null,null,null,null,null,null,null,null,null,null,null,null,null,null,null,null,null,null," "]
["",null,null,null,null,null,null,null,null,null,null,null,null,null,null,null,null,null,null,null,null,null,null,null,null,null,null,null,null,null,null,null,null,null,null,null," "]
["",null,null,null,null,null,null,null,null,null,null,null,null,null,null,null,null,null,null,null,null,null,null,null,null,null,null,null,null,null,null,null,null,null,null,null," "]
["",null,null,null,null,null,null,null,null,null,null,null,null,null,null,null,null,null,null,null,null,null,null,null,null,null,null,null,null,null,null,null,null,null,null,null," "]
["",null,null,null,null,null,null,null,null,null,null,null,null,null,null,null,null,null,null,null,null,null,null,null,null,null,null,null,null,null,null,null,null,null,null,null," "]
["",null,null,null,null,null,null,null,null,null,null,null,null,null,null,null,null,null,null,null,null,null,null,null,null,null,null,null,null,null,null,null,null,null,null,null," "]
["",null,null,null,null,null,null,null,null,null,null,null,null,null,null,null,null,null,null,null,null,null,null,null,null,null,null,null,null,null,null,null,null,null,null,null," "]
["",null,null,null,null,null,null,null,null,null,null,null,null,null,null,null,null,null,null,null,null,null,null,null,null,null,null,null,null,null,null,null,null,null,null,null," "]
["",null,null,null,null,null,null,null,null,null,null,null,null,null,null,null,null,null,null,null,null,null,null,null,null,null,null,null,null,null,null,null,null,null,null,null," "]
["",null,null,null,null,null,null,null,null,null,null,null,null,null,null,null,null,null,null,null,null,null,null,null,null,null,null,null,null,null,null,null,null,null,null,null," "]
["",null,null,null,null,null,null,null,null,null,null,null,null,null,null,null,null,null,null,null,null,null,null,null,null,null,null,null,null,null,null,null,null,null,null,null," "]
["",null,null,null,null,null,null,null,null,null,null,null,null,null,null,null,null,null,null,null,null,null,null,null,null,null,null,null,null,null,null,null,null,null,null,null," "]
["",null,null,null,null,null,null,null,null,null,null,null,null,null,null,null,null,null,null,null,null,null,null,null,null,null,null,null,null,null,null,null,null,null,null,null," "]
["",null,null,null,null,null,null,null,null,null,null,null,null,null,null,null,null,null,null,null,null,null,null,null,null,null,null,null,null,null,null,null,null,null,null,null," "]
["",null,null,null,null,null,null,null,null,null,null,null,null,null,null,null,null,null,null,null,null,null,null,null,null,null,null,null,null,null,null,null,null,null,null,null," "]
["",null,null,null,null,null,null,null,null,null,null,null,null,null,null,null,null,null,null,null,null,null,null,null,null,null,null,null,null,null,null,null,null,null,null,null," "]
["",null,null,null,null,null,null,null,null,null,null,null,null,null,null,null,null,null,null,null,null,null,null,null,null,null,null,null,null,null,null,null,null,null,null,null," "]
["",null,null,null,null,null,null,null,null,null,null,null,null,null,null,null,null,null,null,null,null,null,null,null,null,null,null,null,null,null,null,null,null,null,null,null," "]
["",null,null,null,null,null,null,null,null,null,null,null,null,null,null,null,null,null,null,null,null,null,null,null,null,null,null,null,null,null,null,null,null,null,null,null," "]
["",null,null,null,null,null,null,null,null,null,null,null,null,null,null,null,null,null,null,null,null,null,null,null,null,null,null,null,null,null,null,null,null,null,null,null," "]
["",null,null,null,null,null,null,null,null,null,null,null,null,null,null,null,null,null,null,null,null,null,null,null,null,null,null,null,null,null,null,null,null,null,null,null," "]
["",null,null,null,null,null,null,null,null,null,null,null,null,null,null,null,null,null,null,null,null,null,null,null,null,null,null,null,null,null,null,null,null,null,null,null," "]
["",null,null,null,null,null,null,null,null,null,null,null,null,null,null,null,null,null,null,null,null,null,null,null,null,null,null,null,null,null,null,null,null,null,null,null," "]
["",null,null,null,null,null,null,null,null,null,null,null,null,null,null,null,null,null,null,null,null,null,null,null,null,null,null,null,null,null,null,null,null,null,null,null," "]
["",null,null,null,null,null,null,null,null,null,null,null,null,null,null,null,null,null,null,null,null,null,null,null,null,null,null,null,null,null,null,null,null,null,null,null," "]
["",null,null,null,null,null,null,null,null,null,null,null,null,null,null,null,null,null,null,null,null,null,null,null,null,null,null,null,null,null,null,null,null,null,null,null," "]
["",null,null,null,null,null,null,null,null,null,null,null,null,null,null,null,null,null,null,null,null,null,null,null,null,null,null,null,null,null,null,null,null,null,null,null," "]
["",null,null,null,null,null,null,null,null,null,null,null,null,null,null,null,null,null,null,null,null,null,null,null,null,null,null,null,null,null,null,null,null,null,null,null," "]
["",null,null,null,null,null,null,null,null,null,null,null,null,null,null,null,null,null,null,null,null,null,null,null,null,null,null,null,null,null,null,null,null,null,null,null," "]
["",null,null,null,null,null,null,null,null,null,null,null,null,null,null,null,null,null,null,null,null,null,null,null,null,null,null,null,null,null,null,null,null,null,null,null," "]
["",null,null,null,null,null,null,null,null,null,null,null,null,null,null,null,null,null,null,null,null,null,null,null,null,null,null,null,null,null,null,null,null,null,null,null," "]
["",null,null,null,null,null,null,null,null,null,null,null,null,null,null,null,null,null,null,null,null,null,null,null,null,null,null,null,null,null,null,null,null,null,null,null," "]
["",null,null,null,null,null,null,null,null,null,null,null,null,null,null,null,null,null,null,null,null,null,null,null,null,null,null,null,null,null,null,null,null,null,null,null," "]
["",null,null,null,null,null,null,null,null,null,null,null,null,null,null,null,null,null,null,null,null,null,null,null,null,null,null,null,null,null,null,null,null,null,null,null," "]
["",null,null,null,null,null,null,null,null,null,null,null,null,null,null,null,null,null,null,null,null,null,null,null,null,null,null,null,null,null,null,null,null,null,null,null," "]
["",null,null,null,null,null,null,null,null,null,null,null,null,null,null,null,null,null,null,null,null,null,null,null,null,null,null,null,null,null,null,null,null,null,null,null," "]
["",null,null,null,null,null,null,null,null,null,null,null,null,null,null,null,null,null,null,null,null,null,null,null,null,null,null,null,null,null,null,null,null,null,null,null," "]
["",null,null,null,null,null,null,null,null,null,null,null,null,null,null,null,null,null,null,null,null,null,null,null,null,null,null,null,null,null,null,null,null,null,null,null," "]
["",null,null,null,null,null,null,null,null,null,null,null,null,null,null,null,null,null,null,null,null,null,null,null,null,null,null,null,null,null,null,null,null,null,null,null," "]
["",null,null,null,null,null,null,null,null,null,null,null,null,null,null,null,null,null,null,null,null,null,null,null,null,null,null,null,null,null,null,null,null,null,null,null," "]
["",null,null,null,null,null,null,null,null,null,null,null,null,null,null,null,null,null,null,null,null,null,null,null,null,null,null,null,null,null,null,null,null,null,null,null," "]
["",null,null,null,null,null,null,null,null,null,null,null,null,null,null,null,null,null,null,null,null,null,null,null,null,null,null,null,null,null,null,null,null,null,null,null," "]
["",null,null,null,null,null,null,null,null,null,null,null,null,null,null,null,null,null,null,null,null,null,null,null,null,null,null,null,null,null,null,null,null,null,null,null," "]
["",null,null,null,null,null,null,null,null,null,null,null,null,null,null,null,null,null,null,null,null,null,null,null,null,null,null,null,null,null,null,null,null,null,null,null," "]
["",null,null,null,null,null,null,null,null,null,null,null,null,null,null,null,null,null,null,null,null,null,null,null,null,null,null,null,null,null,null,null,null,null,null,null," "]
["",null,null,null,null,null,null,null,null,null,null,null,null,null,null,null,null,null,null,null,null,null,null,null,null,null,null,null,null,null,null,null,null,null,null,null," "]
["",null,null,null,null,null,null,null,null,null,null,null,null,null,null,null,null,null,null,null,null,null,null,null,null,null,null,null,null,null,null,null,null,null,null,null," "]
["",null,null,null,null,null,null,null,null,null,null,null,null,null,null,null,null,null,null,null,null,null,null,null,null,null,null,null,null,null,null,null,null,null,null,null," "]
["",null,null,null,null,null,null,null,null,null,null,null,null,null,null,null,null,null,null,null,null,null,null,null,null,null,null,null,null,null,null,null,null,null,null,null," "]
["",null,null,null,null,null,null,null,null,null,null,null,null,null,null,null,null,null,null,null,null,null,null,null,null,null,null,null,null,null,null,null,null,null,null,null," "]
["",null,null,null,null,null,null,null,null,null,null,null,null,null,null,null,null,null,null,null,null,null,null,null,null,null,null,null,null,null,null,null,null,null,null,null," "]
["",null,null,null,null,null,null,null,null,null,null,null,null,null,null,null,null,null,null,null,null,null,null,null,null,null,null,null,null,null,null,null,null,null,null,null," "]
["",null,null,null,null,null,null,null,null,null,null,null,null,null,null,null,null,null,null,null,null,null,null,null,null,null,null,null,null,null,null,null,null,null,null,null," "]
["",null,null,null,null,null,null,null,null,null,null,null,null,null,null,null,null,null,null,null,null,null,null,null,null,null,null,null,null,null,null,null,null,null,null,null," "]
["",null,null,null,null,null,null,null,null,null,null,null,null,null,null,null,null,null,null,null,null,null,null,null,null,null,null,null,null,null,null,null,null,null,null,null," "]
["",null,null,null,null,null,null,null,null,null,null,null,null,null,null,null,null,null,null,null,null,null,null,null,null,null,null,null,null,null,null,null,null,null,null,null," "]
["",null,null,null,null,null,null,null,null,null,null,null,null,null,null,null,null,null,null,null,null,null,null,null,null,null,null,null,null,null,null,null,null,null,null,null," "]
["",null,null,null,null,null,null,null,null,null,null,null,null,null,null,null,null,null,null,null,null,null,null,null,null,null,null,null,null,null,null,null,null,null,null,null,{"$f":"CONCATENATE(B342,\" \",C342)","v":" "}]
["",null,null,null,null,null,null,null,null,null,null,null,null,null,null,null,null,null,null,null,null,null,null,null,null,null,null,null,null,null,null,null,null,null,null,null," "]
["",null,null,null,null,null,null,null,null,null,null,null,null,null,null,null,null,null,null,null,null,null,null,null,null,null,null,null,null,null,null,null,null,null,null,null," "]
[{"$f":"IF(AG345=\"\",\"\",AG345)","v":""},null,null,null,null,null,null,null,null,null,null,null,null,null,null,null,null,null,null,null,null,null,null,null,null,null,null,null,null,null,null,null,null,null,null,null," "]
["",null,null,null,null,null,null,null,null,null,null,null,null,null,null,null,null,null,null,null,null,null,null,null,null,null,null,null,null,null,null,null,null,null,null,null," "]
["",null,null,null,null,null,null,null,null,null,null,null,null,null,null,null,null,null,null,null,null,null,null,null,null,null,null,null,null,null,null,null,null,null,null,null," "]
["",null,null,null,null,null,null,null,null,null,null,null,null,null,null,null,null,null,null,null,null,null,null,null,null,null,null,null,null,null,null,null,null,null,null,null," "]
["",null,null,null,null,null,null,null,null,null,null,null,null,null,null,null,null,null,null,null,null,null,null,null,null,null,null,null,null,null,null,null,null,null,null,null," "]
["",null,null,null,null,null,null,null,null,null,null,null,null,null,null,null,null,null,null,null,null,null,null,null,null,null,null,null,null,null,null,null,null,null,null,null," "]
["",null,null,null,null,null,null,null,null,null,null,null,null,null,null,null,null,null,null,null,null,null,null,null,null,null,null,null,null,null,null,null,null,null,null,null," "]
["",null,null,null,null,null,null,null,null,null,null,null,null,null,null,null,null,null,null,null,null,null,null,null,null,null,null,null,null,null,null,null,null,null,null,null," "]
["",null,null,null,null,null,null,null,null,null,null,null,null,null,null,null,null,null,null,null,null,null,null,null,null,null,null,null,null,null,null,null,null,null,null,null," "]
["",null,null,null,null,null,null,null,null,null,null,null,null,null,null,null,null,null,null,null,null,null,null,null,null,null,null,null,null,null,null,null,null,null,null,null," "]
["",null,null,null,null,null,null,null,null,null,null,null,null,null,null,null,null,null,null,null,null,null,null,null,null,null,null,null,null,null,null,null,null,null,null,null," "]
["",null,null,null,null,null,null,null,null,null,null,null,null,null,null,null,null,null,null,null,null,null,null,null,null,null,null,null,null,null,null,null,null,null,null,null," "]
["",null,null,null,null,null,null,null,null,null,null,null,null,null,null,null,null,null,null,null,null,null,null,null,null,null,null,null,null,null,null,null,null,null,null,null," "]
["",null,null,null,null,null,null,null,null,null,null,null,null,null,null,null,null,null,null,null,null,null,null,null,null,null,null,null,null,null,null,null,null,null,null,null," "]
["",null,null,null,null,null,null,null,null,null,null,null,null,null,null,null,null,null,null,null,null,null,null,null,null,null,null,null,null,null,null,null,null,null,null,null," "]
["",null,null,null,null,null,null,null,null,null,null,null,null,null,null,null,null,null,null,null,null,null,null,null,null,null,null,null,null,null,null,null,null,null,null,null," "]
["",null,null,null,null,null,null,null,null,null,null,null,null,null,null,null,null,null,null,null,null,null,null,null,null,null,null,null,null,null,null,null,null,null,null,null," "]
["",null,null,null,null,null,null,null,null,null,null,null,null,null,null,null,null,null,null,null,null,null,null,null,null,null,null,null,null,null,null,null,null,null,null,null," "]
["",null,null,null,null,null,null,null,null,null,null,null,null,null,null,null,null,null,null,null,null,null,null,null,null,null,null,null,null,null,null,null,null,null,null,null," "]
["",null,null,null,null,null,null,null,null,null,null,null,null,null,null,null,null,null,null,null,null,null,null,null,null,null,null,null,null,null,null,null,null,null,null,null," "]
["",null,null,null,null,null,null,null,null,null,null,null,null,null,null,null,null,null,null,null,null,null,null,null,null,null,null,null,null,null,null,null,null,null,null,null," "]
["",null,null,null,null,null,null,null,null,null,null,null,null,null,null,null,null,null,null,null,null,null,null,null,null,null,null,null,null,null,null,null,null,null,null,null," "]
["",null,null,null,null,null,null,null,null,null,null,null,null,null,null,null,null,null,null,null,null,null,null,null,null,null,null,null,null,null,null,null,null,null,null,null," "]
["",null,null,null,null,null,null,null,null,null,null,null,null,null,null,null,null,null,null,null,null,null,null,null,null,null,null,null,null,null,null,null,null,null,null,null," "]
["",null,null,null,null,null,null,null,null,null,null,null,null,null,null,null,null,null,null,null,null,null,null,null,null,null,null,null,null,null,null,null,null,null,null,null," "]
["",null,null,null,null,null,null,null,null,null,null,null,null,null,null,null,null,null,null,null,null,null,null,null,null,null,null,null,null,null,null,null,null,null,null,null," "]
["",null,null,null,null,null,null,null,null,null,null,null,null,null,null,null,null,null,null,null,null,null,null,null,null,null,null,null,null,null,null,null,null,null,null,null," "]
["",null,null,null,null,null,null,null,null,null,null,null,null,null,null,null,null,null,null,null,null,null,null,null,null,null,null,null,null,null,null,null,null,null,null,null," "]
["",null,null,null,null,null,null,null,null,null,null,null,null,null,null,null,null,null,null,null,null,null,null,null,null,null,null,null,null,null,null,null,null,null,null,null," "]
["",null,null,null,null,null,null,null,null,null,null,null,null,null,null,null,null,null,null,null,null,null,null,null,null,null,null,null,null,null,null,null,null,null,null,null," "]
["",null,null,null,null,null,null,null,null,null,null,null,null,null,null,null,null,null,null,null,null,null,null,null,null,null,null,null,null,null,null,null,null,null,null,null," "]
["",null,null,null,null,null,null,null,null,null,null,null,null,null,null,null,null,null,null,null,null,null,null,null,null,null,null,null,null,null,null,null,null,null,null,null," "]
["",null,null,null,null,null,null,null,null,null,null,null,null,null,null,null,null,null,null,null,null,null,null,null,null,null,null,null,null,null,null,null,null,null,null,null," "]
["",null,null,null,null,null,null,null,null,null,null,null,null,null,null,null,null,null,null,null,null,null,null,null,null,null,null,null,null,null,null,null,null,null,null,null," "]
["",null,null,null,null,null,null,null,null,null,null,null,null,null,null,null,null,null,null,null,null,null,null,null,null,null,null,null,null,null,null,null,null,null,null,null," "]
["",null,null,null,null,null,null,null,null,null,null,null,null,null,null,null,null,null,null,null,null,null,null,null,null,null,null,null,null,null,null,null,null,null,null,null," "]
["",null,null,null,null,null,null,null,null,null,null,null,null,null,null,null,null,null,null,null,null,null,null,null,null,null,null,null,null,null,null,null,null,null,null,null," "]
["",null,null,null,null,null,null,null,null,null,null,null,null,null,null,null,null,null,null,null,null,null,null,null,null,null,null,null,null,null,null,null,null,null,null,null," "]
["",null,null,null,null,null,null,null,null,null,null,null,null,null,null,null,null,null,null,null,null,null,null,null,null,null,null,null,null,null,null,null,null,null,null,null," "]
["",null,null,null,null,null,null,null,null,null,null,null,null,null,null,null,null,null,null,null,null,null,null,null,null,null,null,null,null,null,null,null,null,null,null,null," "]
["",null,null,null,null,null,null,null,null,null,null,null,null,null,null,null,null,null,null,null,null,null,null,null,null,null,null,null,null,null,null,null,null,null,null,null," "]
["",null,null,null,null,null,null,null,null,null,null,null,null,null,null,null,null,null,null,null,null,null,null,null,null,null,null,null,null,null,null,null,null,null,null,null," "]
["",null,null,null,null,null,null,null,null,null,null,null,null,null,null,null,null,null,null,null,null,null,null,null,null,null,null,null,null,null,null,null,null,null,null,null," "]
["",null,null,null,null,null,null,null,null,null,null,null,null,null,null,null,null,null,null,null,null,null,null,null,null,null,null,null,null,null,null,null,null,null,null,null," "]
["",null,null,null,null,null,null,null,null,null,null,null,null,null,null,null,null,null,null,null,null,null,null,null,null,null,null,null,null,null,null,null,null,null,null,null," "]
["",null,null,null,null,null,null,null,null,null,null,null,null,null,null,null,null,null,null,null,null,null,null,null,null,null,null,null,null,null,null,null,null,null,null,null," "]
["",null,null,null,null,null,null,null,null,null,null,null,null,null,null,null,null,null,null,null,null,null,null,null,null,null,null,null,null,null,null,null,null,null,null,null," "]
["",null,null,null,null,null,null,null,null,null,null,null,null,null,null,null,null,null,null,null,null,null,null,null,null,null,null,null,null,null,null,null,null,null,null,null," "]
["",null,null,null,null,null,null,null,null,null,null,null,null,null,null,null,null,null,null,null,null,null,null,null,null,null,null,null,null,null,null,null,null,null,null,null," "]
["",null,null,null,null,null,null,null,null,null,null,null,null,null,null,null,null,null,null,null,null,null,null,null,null,null,null,null,null,null,null,null,null,null,null,null," "]
["",null,null,null,null,null,null,null,null,null,null,null,null,null,null,null,null,null,null,null,null,null,null,null,null,null,null,null,null,null,null,null,null,null,null,null," "]
["",null,null,null,null,null,null,null,null,null,null,null,null,null,null,null,null,null,null,null,null,null,null,null,null,null,null,null,null,null,null,null,null,null,null,null," "]
["",null,null,null,null,null,null,null,null,null,null,null,null,null,null,null,null,null,null,null,null,null,null,null,null,null,null,null,null,null,null,null,null,null,null,null," "]
["",null,null,null,null,null,null,null,null,null,null,null,null,null,null,null,null,null,null,null,null,null,null,null,null,null,null,null,null,null,null,null,null,null,null,null," "]
["",null,null,null,null,null,null,null,null,null,null,null,null,null,null,null,null,null,null,null,null,null,null,null,null,null,null,null,null,null,null,null,null,null,null,null," "]
["",null,null,null,null,null,null,null,null,null,null,null,null,null,null,null,null,null,null,null,null,null,null,null,null,null,null,null,null,null,null,null,null,null,null,null," "]
["",null,null,null,null,null,null,null,null,null,null,null,null,null,null,null,null,null,null,null,null,null,null,null,null,null,null,null,null,null,null,null,null,null,null,null," "]
["",null,null,null,null,null,null,null,null,null,null,null,null,null,null,null,null,null,null,null,null,null,null,null,null,null,null,null,null,null,null,null,null,null,null,null," "]
["",null,null,null,null,null,null,null,null,null,null,null,null,null,null,null,null,null,null,null,null,null,null,null,null,null,null,null,null,null,null,null,null,null,null,null," "]
["",null,null,null,null,null,null,null,null,null,null,null,null,null,null,null,null,null,null,null,null,null,null,null,null,null,null,null,null,null,null,null,null,null,null,null," "]
["",null,null,null,null,null,null,null,null,null,null,null,null,null,null,null,null,null,null,null,null,null,null,null,null,null,null,null,null,null,null,null,null,null,null,null," "]
["",null,null,null,null,null,null,null,null,null,null,null,null,null,null,null,null,null,null,null,null,null,null,null,null,null,null,null,null,null,null,null,null,null,null,null,{"$f":"CONCATENATE(B406,\" \",C406)","v":" "}]
["",null,null,null,null,null,null,null,null,null,null,null,null,null,null,null,null,null,null,null,null,null,null,null,null,null,null,null,null,null,null,null,null,null,null,null," "]
["",null,null,null,null,null,null,null,null,null,null,null,null,null,null,null,null,null,null,null,null,null,null,null,null,null,null,null,null,null,null,null,null,null,null,null," "]
[{"$f":"IF(AG409=\"\",\"\",AG409)","v":""},null,null,null,null,null,null,null,null,null,null,null,null,null,null,null,null,null,null,null,null,null,null,null,null,null,null,null,null,null,null,null,null,null,null,null," "]
["",null,null,null,null,null,null,null,null,null,null,null,null,null,null,null,null,null,null,null,null,null,null,null,null,null,null,null,null,null,null,null,null,null,null,null," "]
["",null,null,null,null,null,null,null,null,null,null,null,null,null,null,null,null,null,null,null,null,null,null,null,null,null,null,null,null,null,null,null,null,null,null,null," "]
["",null,null,null,null,null,null,null,null,null,null,null,null,null,null,null,null,null,null,null,null,null,null,null,null,null,null,null,null,null,null,null,null,null,null,null," "]
["",null,null,null,null,null,null,null,null,null,null,null,null,null,null,null,null,null,null,null,null,null,null,null,null,null,null,null,null,null,null,null,null,null,null,null," "]
["",null,null,null,null,null,null,null,null,null,null,null,null,null,null,null,null,null,null,null,null,null,null,null,null,null,null,null,null,null,null,null,null,null,null,null," "]
["",null,null,null,null,null,null,null,null,null,null,null,null,null,null,null,null,null,null,null,null,null,null,null,null,null,null,null,null,null,null,null,null,null,null,null," "]
["",null,null,null,null,null,null,null,null,null,null,null,null,null,null,null,null,null,null,null,null,null,null,null,null,null,null,null,null,null,null,null,null,null,null,null," "]
["",null,null,null,null,null,null,null,null,null,null,null,null,null,null,null,null,null,null,null,null,null,null,null,null,null,null,null,null,null,null,null,null,null,null,null," "]
["",null,null,null,null,null,null,null,null,null,null,null,null,null,null,null,null,null,null,null,null,null,null,null,null,null,null,null,null,null,null,null,null,null,null,null," "]
["",null,null,null,null,null,null,null,null,null,null,null,null,null,null,null,null,null,null,null,null,null,null,null,null,null,null,null,null,null,null,null,null,null,null,null," "]
["",null,null,null,null,null,null,null,null,null,null,null,null,null,null,null,null,null,null,null,null,null,null,null,null,null,null,null,null,null,null,null,null,null,null,null," "]
["",null,null,null,null,null,null,null,null,null,null,null,null,null,null,null,null,null,null,null,null,null,null,null,null,null,null,null,null,null,null,null,null,null,null,null," "]
["",null,null,null,null,null,null,null,null,null,null,null,null,null,null,null,null,null,null,null,null,null,null,null,null,null,null,null,null,null,null,null,null,null,null,null," "]
["",null,null,null,null,null,null,null,null,null,null,null,null,null,null,null,null,null,null,null,null,null,null,null,null,null,null,null,null,null,null,null,null,null,null,null," "]
["",null,null,null,null,null,null,null,null,null,null,null,null,null,null,null,null,null,null,null,null,null,null,null,null,null,null,null,null,null,null,null,null,null,null,null," "]
["",null,null,null,null,null,null,null,null,null,null,null,null,null,null,null,null,null,null,null,null,null,null,null,null,null,null,null,null,null,null,null,null,null,null,null," "]
["",null,null,null,null,null,null,null,null,null,null,null,null,null,null,null,null,null,null,null,null,null,null,null,null,null,null,null,null,null,null,null,null,null,null,null," "]
["",null,null,null,null,null,null,null,null,null,null,null,null,null,null,null,null,null,null,null,null,null,null,null,null,null,null,null,null,null,null,null,null,null,null,null," "]
["",null,null,null,null,null,null,null,null,null,null,null,null,null,null,null,null,null,null,null,null,null,null,null,null,null,null,null,null,null,null,null,null,null,null,null," "]
["",null,null,null,null,null,null,null,null,null,null,null,null,null,null,null,null,null,null,null,null,null,null,null,null,null,null,null,null,null,null,null,null,null,null,null," "]
["",null,null,null,null,null,null,null,null,null,null,null,null,null,null,null,null,null,null,null,null,null,null,null,null,null,null,null,null,null,null,null,null,null,null,null," "]
["",null,null,null,null,null,null,null,null,null,null,null,null,null,null,null,null,null,null,null,null,null,null,null,null,null,null,null,null,null,null,null,null,null,null,null," "]
["",null,null,null,null,null,null,null,null,null,null,null,null,null,null,null,null,null,null,null,null,null,null,null,null,null,null,null,null,null,null,null,null,null,null,null," "]
["",null,null,null,null,null,null,null,null,null,null,null,null,null,null,null,null,null,null,null,null,null,null,null,null,null,null,null,null,null,null,null,null,null,null,null," "]
["",null,null,null,null,null,null,null,null,null,null,null,null,null,null,null,null,null,null,null,null,null,null,null,null,null,null,null,null,null,null,null,null,null,null,null," "]
["",null,null,null,null,null,null,null,null,null,null,null,null,null,null,null,null,null,null,null,null,null,null,null,null,null,null,null,null,null,null,null,null,null,null,null," "]
["",null,null,null,null,null,null,null,null,null,null,null,null,null,null,null,null,null,null,null,null,null,null,null,null,null,null,null,null,null,null,null,null,null,null,null," "]
["",null,null,null,null,null,null,null,null,null,null,null,null,null,null,null,null,null,null,null,null,null,null,null,null,null,null,null,null,null,null,null,null,null,null,null," "]
["",null,null,null,null,null,null,null,null,null,null,null,null,null,null,null,null,null,null,null,null,null,null,null,null,null,null,null,null,null,null,null,null,null,null,null," "]
["",null,null,null,null,null,null,null,null,null,null,null,null,null,null,null,null,null,null,null,null,null,null,null,null,null,null,null,null,null,null,null,null,null,null,null," "]
["",null,null,null,null,null,null,null,null,null,null,null,null,null,null,null,null,null,null,null,null,null,null,null,null,null,null,null,null,null,null,null,null,null,null,null," "]
["",null,null,null,null,null,null,null,null,null,null,null,null,null,null,null,null,null,null,null,null,null,null,null,null,null,null,null,null,null,null,null,null,null,null,null," "]
["",null,null,null,null,null,null,null,null,null,null,null,null,null,null,null,null,null,null,null,null,null,null,null,null,null,null,null,null,null,null,null,null,null,null,null," "]
["",null,null,null,null,null,null,null,null,null,null,null,null,null,null,null,null,null,null,null,null,null,null,null,null,null,null,null,null,null,null,null,null,null,null,null," "]
["",null,null,null,null,null,null,null,null,null,null,null,null,null,null,null,null,null,null,null,null,null,null,null,null,null,null,null,null,null,null,null,null,null,null,null," "]
["",null,null,null,null,null,null,null,null,null,null,null,null,null,null,null,null,null,null,null,null,null,null,null,null,null,null,null,null,null,null,null,null,null,null,null," "]
["",null,null,null,null,null,null,null,null,null,null,null,null,null,null,null,null,null,null,null,null,null,null,null,null,null,null,null,null,null,null,null,null,null,null,null," "]
["",null,null,null,null,null,null,null,null,null,null,null,null,null,null,null,null,null,null,null,null,null,null,null,null,null,null,null,null,null,null,null,null,null,null,null," "]
["",null,null,null,null,null,null,null,null,null,null,null,null,null,null,null,null,null,null,null,null,null,null,null,null,null,null,null,null,null,null,null,null,null,null,null," "]
["",null,null,null,null,null,null,null,null,null,null,null,null,null,null,null,null,null,null,null,null,null,null,null,null,null,null,null,null,null,null,null,null,null,null,null," "]
["",null,null,null,null,null,null,null,null,null,null,null,null,null,null,null,null,null,null,null,null,null,null,null,null,null,null,null,null,null,null,null,null,null,null,null," "]
["",null,null,null,null,null,null,null,null,null,null,null,null,null,null,null,null,null,null,null,null,null,null,null,null,null,null,null,null,null,null,null,null,null,null,null," "]
["",null,null,null,null,null,null,null,null,null,null,null,null,null,null,null,null,null,null,null,null,null,null,null,null,null,null,null,null,null,null,null,null,null,null,null," "]
["",null,null,null,null,null,null,null,null,null,null,null,null,null,null,null,null,null,null,null,null,null,null,null,null,null,null,null,null,null,null,null,null,null,null,null," "]
["",null,null,null,null,null,null,null,null,null,null,null,null,null,null,null,null,null,null,null,null,null,null,null,null,null,null,null,null,null,null,null,null,null,null,null," "]
["",null,null,null,null,null,null,null,null,null,null,null,null,null,null,null,null,null,null,null,null,null,null,null,null,null,null,null,null,null,null,null,null,null,null,null," "]
["",null,null,null,null,null,null,null,null,null,null,null,null,null,null,null,null,null,null,null,null,null,null,null,null,null,null,null,null,null,null,null,null,null,null,null," "]
["",null,null,null,null,null,null,null,null,null,null,null,null,null,null,null,null,null,null,null,null,null,null,null,null,null,null,null,null,null,null,null,null,null,null,null," "]
["",null,null,null,null,null,null,null,null,null,null,null,null,null,null,null,null,null,null,null,null,null,null,null,null,null,null,null,null,null,null,null,null,null,null,null," "]
["",null,null,null,null,null,null,null,null,null,null,null,null,null,null,null,null,null,null,null,null,null,null,null,null,null,null,null,null,null,null,null,null,null,null,null," "]
["",null,null,null,null,null,null,null,null,null,null,null,null,null,null,null,null,null,null,null,null,null,null,null,null,null,null,null,null,null,null,null,null,null,null,null," "]
["",null,null,null,null,null,null,null,null,null,null,null,null,null,null,null,null,null,null,null,null,null,null,null,null,null,null,null,null,null,null,null,null,null,null,null," "]
["",null,null,null,null,null,null,null,null,null,null,null,null,null,null,null,null,null,null,null,null,null,null,null,null,null,null,null,null,null,null,null,null,null,null,null," "]
["",null,null,null,null,null,null,null,null,null,null,null,null,null,null,null,null,null,null,null,null,null,null,null,null,null,null,null,null,null,null,null,null,null,null,null," "]
["",null,null,null,null,null,null,null,null,null,null,null,null,null,null,null,null,null,null,null,null,null,null,null,null,null,null,null,null,null,null,null,null,null,null,null," "]
["",null,null,null,null,null,null,null,null,null,null,null,null,null,null,null,null,null,null,null,null,null,null,null,null,null,null,null,null,null,null,null,null,null,null,null," "]
["",null,null,null,null,null,null,null,null,null,null,null,null,null,null,null,null,null,null,null,null,null,null,null,null,null,null,null,null,null,null,null,null,null,null,null," "]
["",null,null,null,null,null,null,null,null,null,null,null,null,null,null,null,null,null,null,null,null,null,null,null,null,null,null,null,null,null,null,null,null,null,null,null," "]
["",null,null,null,null,null,null,null,null,null,null,null,null,null,null,null,null,null,null,null,null,null,null,null,null,null,null,null,null,null,null,null,null,null,null,null," "]
["",null,null,null,null,null,null,null,null,null,null,null,null,null,null,null,null,null,null,null,null,null,null,null,null,null,null,null,null,null,null,null,null,null,null,null," "]
["",null,null,null,null,null,null,null,null,null,null,null,null,null,null,null,null,null,null,null,null,null,null,null,null,null,null,null,null,null,null,null,null,null,null,null,{"$f":"CONCATENATE(B470,\" \",C470)","v":" "}]
["",null,null,null,null,null,null,null,null,null,null,null,null,null,null,null,null,null,null,null,null,null,null,null,null,null,null,null,null,null,null,null,null,null,null,null," "]
["",null,null,null,null,null,null,null,null,null,null,null,null,null,null,null,null,null,null,null,null,null,null,null,null,null,null,null,null,null,null,null,null,null,null,null," "]
[{"$f":"IF(AG473=\"\",\"\",AG473)","v":""},null,null,null,null,null,null,null,null,null,null,null,null,null,null,null,null,null,null,null,null,null,null,null,null,null,null,null,null,null,null,null,null,null,null,null," "]
["",null,null,null,null,null,null,null,null,null,null,null,null,null,null,null,null,null,null,null,null,null,null,null,null,null,null,null,null,null,null,null,null,null,null,null," "]
["",null,null,null,null,null,null,null,null,null,null,null,null,null,null,null,null,null,null,null,null,null,null,null,null,null,null,null,null,null,null,null,null,null,null,null," "]
["",null,null,null,null,null,null,null,null,null,null,null,null,null,null,null,null,null,null,null,null,null,null,null,null,null,null,null,null,null,null,null,null,null,null,null," "]
["",null,null,null,null,null,null,null,null,null,null,null,null,null,null,null,null,null,null,null,null,null,null,null,null,null,null,null,null,null,null,null,null,null,null,null," "]
["",null,null,null,null,null,null,null,null,null,null,null,null,null,null,null,null,null,null,null,null,null,null,null,null,null,null,null,null,null,null,null,null,null,null,null," "]
["",null,null,null,null,null,null,null,null,null,null,null,null,null,null,null,null,null,null,null,null,null,null,null,null,null,null,null,null,null,null,null,null,null,null,null," "]
["",null,null,null,null,null,null,null,null,null,null,null,null,null,null,null,null,null,null,null,null,null,null,null,null,null,null,null,null,null,null,null,null,null,null,null," "]
["",null,null,null,null,null,null,null,null,null,null,null,null,null,null,null,null,null,null,null,null,null,null,null,null,null,null,null,null,null,null,null,null,null,null,null," "]
["",null,null,null,null,null,null,null,null,null,null,null,null,null,null,null,null,null,null,null,null,null,null,null,null,null,null,null,null,null,null,null,null,null,null,null," "]
["",null,null,null,null,null,null,null,null,null,null,null,null,null,null,null,null,null,null,null,null,null,null,null,null,null,null,null,null,null,null,null,null,null,null,null," "]
["",null,null,null,null,null,null,null,null,null,null,null,null,null,null,null,null,null,null,null,null,null,null,null,null,null,null,null,null,null,null,null,null,null,null,null," "]
["",null,null,null,null,null,null,null,null,null,null,null,null,null,null,null,null,null,null,null,null,null,null,null,null,null,null,null,null,null,null,null,null,null,null,null," "]
["",null,null,null,null,null,null,null,null,null,null,null,null,null,null,null,null,null,null,null,null,null,null,null,null,null,null,null,null,null,null,null,null,null,null,null," "]
["",null,null,null,null,null,null,null,null,null,null,null,null,null,null,null,null,null,null,null,null,null,null,null,null,null,null,null,null,null,null,null,null,null,null,null," "]
["",null,null,null,null,null,null,null,null,null,null,null,null,null,null,null,null,null,null,null,null,null,null,null,null,null,null,null,null,null,null,null,null,null,null,null," "]
["",null,null,null,null,null,null,null,null,null,null,null,null,null,null,null,null,null,null,null,null,null,null,null,null,null,null,null,null,null,null,null,null,null,null,null," "]
["",null,null,null,null,null,null,null,null,null,null,null,null,null,null,null,null,null,null,null,null,null,null,null,null,null,null,null,null,null,null,null,null,null,null,null," "]
["",null,null,null,null,null,null,null,null,null,null,null,null,null,null,null,null,null,null,null,null,null,null,null,null,null,null,null,null,null,null,null,null,null,null,null," "]
["",null,null,null,null,null,null,null,null,null,null,null,null,null,null,null,null,null,null,null,null,null,null,null,null,null,null,null,null,null,null,null,null,null,null,null," "]
["",null,null,null,null,null,null,null,null,null,null,null,null,null,null,null,null,null,null,null,null,null,null,null,null,null,null,null,null,null,null,null,null,null,null,null," "]
["",null,null,null,null,null,null,null,null,null,null,null,null,null,null,null,null,null,null,null,null,null,null,null,null,null,null,null,null,null,null,null,null,null,null,null," "]
["",null,null,null,null,null,null,null,null,null,null,null,null,null,null,null,null,null,null,null,null,null,null,null,null,null,null,null,null,null,null,null,null,null,null,null," "]
["",null,null,null,null,null,null,null,null,null,null,null,null,null,null,null,null,null,null,null,null,null,null,null,null,null,null,null,null,null,null,null,null,null,null,null," "]
["",null,null,null,null,null,null,null,null,null,null,null,null,null,null,null,null,null,null,null,null,null,null,null,null,null,null,null,null,null,null,null,null,null,null,null," "]
["",null,null,null,null,null,null,null,null,null,null,null,null,null,null,null,null,null,null,null,null,null,null,null,null,null,null,null,null,null,null,null,null,null,null,null," "]
["",null,null,null,null,null,null,null,null,null,null,null,null,null,null,null,null,null,null,null,null,null,null,null,null,null,null,null,null,null,null,null,null,null,null,null," "]
["",null,null,null,null,null,null,null,null,null,null,null,null,null,null,null,null,null,null,null,null,null,null,null,null,null,null,null,null,null,null,null,null,null,null,null," "]
["",null,null,null,null,null,null,null,null,null,null,null,null,null,null,null,null,null,null,null,null,null,null,null,null,null,null,null,null,null,null,null,null,null,null,null," "]
["",null,null,null,null,null,null,null,null,null,null,null,null,null,null,null,null,null,null,null,null,null,null,null,null,null,null,null,null,null,null,null,null,null,null,null," "]
["",null,null,null,null,null,null,null,null,null,null,null,null,null,null,null,null,null,null,null,null,null,null,null,null,null,null,null,null,null,null,null,null,null,null,null," "]
["",null,null,null,null,null,null,null,null,null,null,null,null,null,null,null,null,null,null,null,null,null,null,null,null,null,null,null,null,null,null,null,null,null,null,null," "]
["",null,null,null,null,null,null,null,null,null,null,null,null,null,null,null,null,null,null,null,null,null,null,null,null,null,null,null,null,null,null,null,null,null,null,null," "]
["",null,null,null,null,null,null,null,null,null,null,null,null,null,null,null,null,null,null,null,null,null,null,null,null,null,null,null,null,null,null,null,null,null,null,null," "]
["",null,null,null,null,null,null,null,null,null,null,null,null,null,null,null,null,null,null,null,null,null,null,null,null,null,null,null,null,null,null,null,null,null,null,null," "]
["",null,null,null,null,null,null,null,null,null,null,null,null,null,null,null,null,null,null,null,null,null,null,null,null,null,null,null,null,null,null,null,null,null,null,null," "]
["",null,null,null,null,null,null,null,null,null,null,null,null,null,null,null,null,null,null,null,null,null,null,null,null,null,null,null,null,null,null,null,null,null,null,null," "]
["",null,null,null,null,null,null,null,null,null,null,null,null,null,null,null,null,null,null,null,null,null,null,null,null,null,null,null,null,null,null,null,null,null,null,null," "]
["",null,null,null,null,null,null,null,null,null,null,null,null,null,null,null,null,null,null,null,null,null,null,null,null,null,null,null,null,null,null,null,null,null,null,null," "]
["",null,null,null,null,null,null,null,null,null,null,null,null,null,null,null,null,null,null,null,null,null,null,null,null,null,null,null,null,null,null,null,null,null,null,null," "]
["",null,null,null,null,null,null,null,null,null,null,null,null,null,null,null,null,null,null,null,null,null,null,null,null,null,null,null,null,null,null,null,null,null,null,null," "]
["",null,null,null,null,null,null,null,null,null,null,null,null,null,null,null,null,null,null,null,null,null,null,null,null,null,null,null,null,null,null,null,null,null,null,null," "]
["",null,null,null,null,null,null,null,null,null,null,null,null,null,null,null,null,null,null,null,null,null,null,null,null,null,null,null,null,null,null,null,null,null,null,null," "]
["",null,null,null,null,null,null,null,null,null,null,null,null,null,null,null,null,null,null,null,null,null,null,null,null,null,null,null,null,null,null,null,null,null,null,null," "]
["",null,null,null,null,null,null,null,null,null,null,null,null,null,null,null,null,null,null,null,null,null,null,null,null,null,null,null,null,null,null,null,null,null,null,null," "]
["",null,null,null,null,null,null,null,null,null,null,null,null,null,null,null,null,null,null,null,null,null,null,null,null,null,null,null,null,null,null,null,null,null,null,null," "]
["",null,null,null,null,null,null,null,null,null,null,null,null,null,null,null,null,null,null,null,null,null,null,null,null,null,null,null,null,null,null,null,null,null,null,null," "]
["",null,null,null,null,null,null,null,null,null,null,null,null,null,null,null,null,null,null,null,null,null,null,null,null,null,null,null,null,null,null,null,null,null,null,null," "]
["",null,null,null,null,null,null,null,null,null,null,null,null,null,null,null,null,null,null,null,null,null,null,null,null,null,null,null,null,null,null,null,null,null,null,null," "]
["",null,null,null,null,null,null,null,null,null,null,null,null,null,null,null,null,null,null,null,null,null,null,null,null,null,null,null,null,null,null,null,null,null,null,null," "]
["",null,null,null,null,null,null,null,null,null,null,null,null,null,null,null,null,null,null,null,null,null,null,null,null,null,null,null,null,null,null,null,null,null,null,null," "]
["",null,null,null,null,null,null,null,null,null,null,null,null,null,null,null,null,null,null,null,null,null,null,null,null,null,null,null,null,null,null,null,null,null,null,null," "]
["",null,null,null,null,null,null,null,null,null,null,null,null,null,null,null,null,null,null,null,null,null,null,null,null,null,null,null,null,null,null,null,null,null,null,null," "]
["",null,null,null,null,null,null,null,null,null,null,null,null,null,null,null,null,null,null,null,null,null,null,null,null,null,null,null,null,null,null,null,null,null,null,null," "]
["",null,null,null,null,null,null,null,null,null,null,null,null,null,null,null,null,null,null,null,null,null,null,null,null,null,null,null,null,null,null,null,null,null,null,null," "]
["",null,null,null,null,null,null,null,null,null,null,null,null,null,null,null,null,null,null,null,null,null,null,null,null,null,null,null,null,null,null,null,null,null,null,null," "]
["",null,null,null,null,null,null,null,null,null,null,null,null,null,null,null,null,null,null,null,null,null,null,null,null,null,null,null,null,null,null,null,null,null,null,null," "]
["",null,null,null,null,null,null,null,null,null,null,null,null,null,null,null,null,null,null,null,null,null,null,null,null,null,null,null,null,null,null,null,null,null,null,null," "]
["",null,null,null,null,null,null,null,null,null,null,null,null,null,null,null,null,null,null,null,null,null,null,null,null,null,null,null,null,null,null,null,null,null,null,null," "]
["",null,null,null,null,null,null,null,null,null,null,null,null,null,null,null,null,null,null,null,null,null,null,null,null,null,null,null,null,null,null,null,null,null,null,null," "]
["",null,null,null,null,null,null,null,null,null,null,null,null,null,null,null,null,null,null,null,null,null,null,null,null,null,null,null,null,null,null,null,null,null,null,null," "]
["",null,null,null,null,null,null,null,null,null,null,null,null,null,null,null,null,null,null,null,null,null,null,null,null,null,null,null,null,null,null,null,null,null,null,null,{"$f":"CONCATENATE(B534,\" \",C534)","v":" "}]
["",null,null,null,null,null,null,null,null,null,null,null,null,null,null,null,null,null,null,null,null,null,null,null,null,null,null,null,null,null,null,null,null,null,null,null," "]
["",null,null,null,null,null,null,null,null,null,null,null,null,null,null,null,null,null,null,null,null,null,null,null,null,null,null,null,null,null,null,null,null,null,null,null," "]
[{"$f":"IF(AG537=\"\",\"\",AG537)","v":""},null,null,null,null,null,null,null,null,null,null,null,null,null,null,null,null,null,null,null,null,null,null,null,null,null,null,null,null,null,null,null,null,null,null,null," "]
["",null,null,null,null,null,null,null,null,null,null,null,null,null,null,null,null,null,null,null,null,null,null,null,null,null,null,null,null,null,null,null,null,null,null,null," "]
["",null,null,null,null,null,null,null,null,null,null,null,null,null,null,null,null,null,null,null,null,null,null,null,null,null,null,null,null,null,null,null,null,null,null,null," "]
["",null,null,null,null,null,null,null,null,null,null,null,null,null,null,null,null,null,null,null,null,null,null,null,null,null,null,null,null,null,null,null,null,null,null,null," "]
["",null,null,null,null,null,null,null,null,null,null,null,null,null,null,null,null,null,null,null,null,null,null,null,null,null,null,null,null,null,null,null,null,null,null,null," "]
["",null,null,null,null,null,null,null,null,null,null,null,null,null,null,null,null,null,null,null,null,null,null,null,null,null,null,null,null,null,null,null,null,null,null,null," "]
["",null,null,null,null,null,null,null,null,null,null,null,null,null,null,null,null,null,null,null,null,null,null,null,null,null,null,null,null,null,null,null,null,null,null,null," "]
["",null,null,null,null,null,null,null,null,null,null,null,null,null,null,null,null,null,null,null,null,null,null,null,null,null,null,null,null,null,null,null,null,null,null,null," "]
["",null,null,null,null,null,null,null,null,null,null,null,null,null,null,null,null,null,null,null,null,null,null,null,null,null,null,null,null,null,null,null,null,null,null,null," "]
["",null,null,null,null,null,null,null,null,null,null,null,null,null,null,null,null,null,null,null,null,null,null,null,null,null,null,null,null,null,null,null,null,null,null,null," "]
["",null,null,null,null,null,null,null,null,null,null,null,null,null,null,null,null,null,null,null,null,null,null,null,null,null,null,null,null,null,null,null,null,null,null,null," "]
["",null,null,null,null,null,null,null,null,null,null,null,null,null,null,null,null,null,null,null,null,null,null,null,null,null,null,null,null,null,null,null,null,null,null,null," "]
["",null,null,null,null,null,null,null,null,null,null,null,null,null,null,null,null,null,null,null,null,null,null,null,null,null,null,null,null,null,null,null,null,null,null,null," "]
["",null,null,null,null,null,null,null,null,null,null,null,null,null,null,null,null,null,null,null,null,null,null,null,null,null,null,null,null,null,null,null,null,null,null,null," "]
["",null,null,null,null,null,null,null,null,null,null,null,null,null,null,null,null,null,null,null,null,null,null,null,null,null,null,null,null,null,null,null,null,null,null,null," "]
["",null,null,null,null,null,null,null,null,null,null,null,null,null,null,null,null,null,null,null,null,null,null,null,null,null,null,null,null,null,null,null,null,null,null,null," "]
["",null,null,null,null,null,null,null,null,null,null,null,null,null,null,null,null,null,null,null,null,null,null,null,null,null,null,null,null,null,null,null,null,null,null,null," "]
["",null,null,null,null,null,null,null,null,null,null,null,null,null,null,null,null,null,null,null,null,null,null,null,null,null,null,null,null,null,null,null,null,null,null,null," "]
["",null,null,null,null,null,null,null,null,null,null,null,null,null,null,null,null,null,null,null,null,null,null,null,null,null,null,null,null,null,null,null,null,null,null,null," "]
["",null,null,null,null,null,null,null,null,null,null,null,null,null,null,null,null,null,null,null,null,null,null,null,null,null,null,null,null,null,null,null,null,null,null,null," "]
["",null,null,null,null,null,null,null,null,null,null,null,null,null,null,null,null,null,null,null,null,null,null,null,null,null,null,null,null,null,null,null,null,null,null,null," "]
["",null,null,null,null,null,null,null,null,null,null,null,null,null,null,null,null,null,null,null,null,null,null,null,null,null,null,null,null,null,null,null,null,null,null,null," "]
["",null,null,null,null,null,null,null,null,null,null,null,null,null,null,null,null,null,null,null,null,null,null,null,null,null,null,null,null,null,null,null,null,null,null,null," "]
["",null,null,null,null,null,null,null,null,null,null,null,null,null,null,null,null,null,null,null,null,null,null,null,null,null,null,null,null,null,null,null,null,null,null,null," "]
["",null,null,null,null,null,null,null,null,null,null,null,null,null,null,null,null,null,null,null,null,null,null,null,null,null,null,null,null,null,null,null,null,null,null,null," "]
["",null,null,null,null,null,null,null,null,null,null,null,null,null,null,null,null,null,null,null,null,null,null,null,null,null,null,null,null,null,null,null,null,null,null,null," "]
["",null,null,null,null,null,null,null,null,null,null,null,null,null,null,null,null,null,null,null,null,null,null,null,null,null,null,null,null,null,null,null,null,null,null,null," "]
["",null,null,null,null,null,null,null,null,null,null,null,null,null,null,null,null,null,null,null,null,null,null,null,null,null,null,null,null,null,null,null,null,null,null,null," "]
["",null,null,null,null,null,null,null,null,null,null,null,null,null,null,null,null,null,null,null,null,null,null,null,null,null,null,null,null,null,null,null,null,null,null,null," "]
["",null,null,null,null,null,null,null,null,null,null,null,null,null,null,null,null,null,null,null,null,null,null,null,null,null,null,null,null,null,null,null,null,null,null,null," "]
["",null,null,null,null,null,null,null,null,null,null,null,null,null,null,null,null,null,null,null,null,null,null,null,null,null,null,null,null,null,null,null,null,null,null,null," "]
["",null,null,null,null,null,null,null,null,null,null,null,null,null,null,null,null,null,null,null,null,null,null,null,null,null,null,null,null,null,null,null,null,null,null,null," "]
["",null,null,null,null,null,null,null,null,null,null,null,null,null,null,null,null,null,null,null,null,null,null,null,null,null,null,null,null,null,null,null,null,null,null,null," "]
["",null,null,null,null,null,null,null,null,null,null,null,null,null,null,null,null,null,null,null,null,null,null,null,null,null,null,null,null,null,null,null,null,null,null,null," "]
["",null,null,null,null,null,null,null,null,null,null,null,null,null,null,null,null,null,null,null,null,null,null,null,null,null,null,null,null,null,null,null,null,null,null,null," "]
["",null,null,null,null,null,null,null,null,null,null,null,null,null,null,null,null,null,null,null,null,null,null,null,null,null,null,null,null,null,null,null,null,null,null,null," "]
["",null,null,null,null,null,null,null,null,null,null,null,null,null,null,null,null,null,null,null,null,null,null,null,null,null,null,null,null,null,null,null,null,null,null,null," "]
["",null,null,null,null,null,null,null,null,null,null,null,null,null,null,null,null,null,null,null,null,null,null,null,null,null,null,null,null,null,null,null,null,null,null,null," "]
["",null,null,null,null,null,null,null,null,null,null,null,null,null,null,null,null,null,null,null,null,null,null,null,null,null,null,null,null,null,null,null,null,null,null,null," "]
["",null,null,null,null,null,null,null,null,null,null,null,null,null,null,null,null,null,null,null,null,null,null,null,null,null,null,null,null,null,null,null,null,null,null,null," "]
["",null,null,null,null,null,null,null,null,null,null,null,null,null,null,null,null,null,null,null,null,null,null,null,null,null,null,null,null,null,null,null,null,null,null,null," "]
["",null,null,null,null,null,null,null,null,null,null,null,null,null,null,null,null,null,null,null,null,null,null,null,null,null,null,null,null,null,null,null,null,null,null,null," "]
["",null,null,null,null,null,null,null,null,null,null,null,null,null,null,null,null,null,null,null,null,null,null,null,null,null,null,null,null,null,null,null,null,null,null,null," "]
["",null,null,null,null,null,null,null,null,null,null,null,null,null,null,null,null,null,null,null,null,null,null,null,null,null,null,null,null,null,null,null,null,null,null,null," "]
["",null,null,null,null,null,null,null,null,null,null,null,null,null,null,null,null,null,null,null,null,null,null,null,null,null,null,null,null,null,null,null,null,null,null,null," "]
["",null,null,null,null,null,null,null,null,null,null,null,null,null,null,null,null,null,null,null,null,null,null,null,null,null,null,null,null,null,null,null,null,null,null,null," "]
["",null,null,null,null,null,null,null,null,null,null,null,null,null,null,null,null,null,null,null,null,null,null,null,null,null,null,null,null,null,null,null,null,null,null,null," "]
["",null,null,null,null,null,null,null,null,null,null,null,null,null,null,null,null,null,null,null,null,null,null,null,null,null,null,null,null,null,null,null,null,null,null,null," "]
["",null,null,null,null,null,null,null,null,null,null,null,null,null,null,null,null,null,null,null,null,null,null,null,null,null,null,null,null,null,null,null,null,null,null,null," "]
["",null,null,null,null,null,null,null,null,null,null,null,null,null,null,null,null,null,null,null,null,null,null,null,null,null,null,null,null,null,null,null,null,null,null,null," "]
["",null,null,null,null,null,null,null,null,null,null,null,null,null,null,null,null,null,null,null,null,null,null,null,null,null,null,null,null,null,null,null,null,null,null,null," "]
["",null,null,null,null,null,null,null,null,null,null,null,null,null,null,null,null,null,null,null,null,null,null,null,null,null,null,null,null,null,null,null,null,null,null,null," "]
["",null,null,null,null,null,null,null,null,null,null,null,null,null,null,null,null,null,null,null,null,null,null,null,null,null,null,null,null,null,null,null,null,null,null,null," "]
["",null,null,null,null,null,null,null,null,null,null,null,null,null,null,null,null,null,null,null,null,null,null,null,null,null,null,null,null,null,null,null,null,null,null,null," "]
["",null,null,null,null,null,null,null,null,null,null,null,null,null,null,null,null,null,null,null,null,null,null,null,null,null,null,null,null,null,null,null,null,null,null,null," "]
["",null,null,null,null,null,null,null,null,null,null,null,null,null,null,null,null,null,null,null,null,null,null,null,null,null,null,null,null,null,null,null,null,null,null,null," "]
["",null,null,null,null,null,null,null,null,null,null,null,null,null,null,null,null,null,null,null,null,null,null,null,null,null,null,null,null,null,null,null,null,null,null,null," "]
["",null,null,null,null,null,null,null,null,null,null,null,null,null,null,null,null,null,null,null,null,null,null,null,null,null,null,null,null,null,null,null,null,null,null,null," "]
["",null,null,null,null,null,null,null,null,null,null,null,null,null,null,null,null,null,null,null,null,null,null,null,null,null,null,null,null,null,null,null,null,null,null,null," "]
["",null,null,null,null,null,null,null,null,null,null,null,null,null,null,null,null,null,null,null,null,null,null,null,null,null,null,null,null,null,null,null,null,null,null,null," "]
["",null,null,null,null,null,null,null,null,null,null,null,null,null,null,null,null,null,null,null,null,null,null,null,null,null,null,null,null,null,null,null,null,null,null,null," "]
["",null,null,null,null,null,null,null,null,null,null,null,null,null,null,null,null,null,null,null,null,null,null,null,null,null,null,null,null,null,null,null,null,null,null,null,{"$f":"CONCATENATE(B598,\" \",C598)","v":" "}]
["",null,null,null,null,null,null,null,null,null,null,null,null,null,null,null,null,null,null,null,null,null,null,null,null,null,null,null,null,null,null,null,null,null,null,null," "]
["",null,null,null,null,null,null,null,null,null,null,null,null,null,null,null,null,null,null,null,null,null,null,null,null,null,null,null,null,null,null,null,null,null,null,null," "]
[{"$f":"IF(AG601=\"\",\"\",AG601)","v":""},null,null,null,null,null,null,null,null,null,null,null,null,null,null,null,null,null,null,null,null,null,null,null,null,null,null,null,null,null,null,null,null,null,null,null," "]
["",null,null,null,null,null,null,null,null,null,null,null,null,null,null,null,null,null,null,null,null,null,null,null,null,null,null,null,null,null,null,null,null,null,null,null," "]
["",null,null,null,null,null,null,null,null,null,null,null,null,null,null,null,null,null,null,null,null,null,null,null,null,null,null,null,null,null,null,null,null,null,null,null," "]
["",null,null,null,null,null,null,null,null,null,null,null,null,null,null,null,null,null,null,null,null,null,null,null,null,null,null,null,null,null,null,null,null,null,null,null," "]
["",null,null,null,null,null,null,null,null,null,null,null,null,null,null,null,null,null,null,null,null,null,null,null,null,null,null,null,null,null,null,null,null,null,null,null," "]
["",null,null,null,null,null,null,null,null,null,null,null,null,null,null,null,null,null,null,null,null,null,null,null,null,null,null,null,null,null,null,null,null,null,null,null," "]
["",null,null,null,null,null,null,null,null,null,null,null,null,null,null,null,null,null,null,null,null,null,null,null,null,null,null,null,null,null,null,null,null,null,null,null," "]
["",null,null,null,null,null,null,null,null,null,null,null,null,null,null,null,null,null,null,null,null,null,null,null,null,null,null,null,null,null,null,null,null,null,null,null," "]
["",null,null,null,null,null,null,null,null,null,null,null,null,null,null,null,null,null,null,null,null,null,null,null,null,null,null,null,null,null,null,null,null,null,null,null," "]
["",null,null,null,null,null,null,null,null,null,null,null,null,null,null,null,null,null,null,null,null,null,null,null,null,null,null,null,null,null,null,null,null,null,null,null," "]
["",null,null,null,null,null,null,null,null,null,null,null,null,null,null,null,null,null,null,null,null,null,null,null,null,null,null,null,null,null,null,null,null,null,null,null," "]
["",null,null,null,null,null,null,null,null,null,null,null,null,null,null,null,null,null,null,null,null,null,null,null,null,null,null,null,null,null,null,null,null,null,null,null," "]
["",null,null,null,null,null,null,null,null,null,null,null,null,null,null,null,null,null,null,null,null,null,null,null,null,null,null,null,null,null,null,null,null,null,null,null," "]
["",null,null,null,null,null,null,null,null,null,null,null,null,null,null,null,null,null,null,null,null,null,null,null,null,null,null,null,null,null,null,null,null,null,null,null," "]
["",null,null,null,null,null,null,null,null,null,null,null,null,null,null,null,null,null,null,null,null,null,null,null,null,null,null,null,null,null,null,null,null,null,null,null," "]
["",null,null,null,null,null,null,null,null,null,null,null,null,null,null,null,null,null,null,null,null,null,null,null,null,null,null,null,null,null,null,null,null,null,null,null," "]
["",null,null,null,null,null,null,null,null,null,null,null,null,null,null,null,null,null,null,null,null,null,null,null,null,null,null,null,null,null,null,null,null,null,null,null," "]
["",null,null,null,null,null,null,null,null,null,null,null,null,null,null,null,null,null,null,null,null,null,null,null,null,null,null,null,null,null,null,null,null,null,null,null," "]
["",null,null,null,null,null,null,null,null,null,null,null,null,null,null,null,null,null,null,null,null,null,null,null,null,null,null,null,null,null,null,null,null,null,null,null," "]
["",null,null,null,null,null,null,null,null,null,null,null,null,null,null,null,null,null,null,null,null,null,null,null,null,null,null,null,null,null,null,null,null,null,null,null," "]
["",null,null,null,null,null,null,null,null,null,null,null,null,null,null,null,null,null,null,null,null,null,null,null,null,null,null,null,null,null,null,null,null,null,null,null," "]
["",null,null,null,null,null,null,null,null,null,null,null,null,null,null,null,null,null,null,null,null,null,null,null,null,null,null,null,null,null,null,null,null,null,null,null," "]
["",null,null,null,null,null,null,null,null,null,null,null,null,null,null,null,null,null,null,null,null,null,null,null,null,null,null,null,null,null,null,null,null,null,null,null," "]
["",null,null,null,null,null,null,null,null,null,null,null,null,null,null,null,null,null,null,null,null,null,null,null,null,null,null,null,null,null,null,null,null,null,null,null," "]
["",null,null,null,null,null,null,null,null,null,null,null,null,null,null,null,null,null,null,null,null,null,null,null,null,null,null,null,null,null,null,null,null,null,null,null," "]
["",null,null,null,null,null,null,null,null,null,null,null,null,null,null,null,null,null,null,null,null,null,null,null,null,null,null,null,null,null,null,null,null,null,null,null," "]
["",null,null,null,null,null,null,null,null,null,null,null,null,null,null,null,null,null,null,null,null,null,null,null,null,null,null,null,null,null,null,null,null,null,null,null," "]
["",null,null,null,null,null,null,null,null,null,null,null,null,null,null,null,null,null,null,null,null,null,null,null,null,null,null,null,null,null,null,null,null,null,null,null," "]
["",null,null,null,null,null,null,null,null,null,null,null,null,null,null,null,null,null,null,null,null,null,null,null,null,null,null,null,null,null,null,null,null,null,null,null," "]
["",null,null,null,null,null,null,null,null,null,null,null,null,null,null,null,null,null,null,null,null,null,null,null,null,null,null,null,null,null,null,null,null,null,null,null," "]
["",null,null,null,null,null,null,null,null,null,null,null,null,null,null,null,null,null,null,null,null,null,null,null,null,null,null,null,null,null,null,null,null,null,null,null," "]
["",null,null,null,null,null,null,null,null,null,null,null,null,null,null,null,null,null,null,null,null,null,null,null,null,null,null,null,null,null,null,null,null,null,null,null," "]
["",null,null,null,null,null,null,null,null,null,null,null,null,null,null,null,null,null,null,null,null,null,null,null,null,null,null,null,null,null,null,null,null,null,null,null," "]
["",null,null,null,null,null,null,null,null,null,null,null,null,null,null,null,null,null,null,null,null,null,null,null,null,null,null,null,null,null,null,null,null,null,null,null," "]
["",null,null,null,null,null,null,null,null,null,null,null,null,null,null,null,null,null,null,null,null,null,null,null,null,null,null,null,null,null,null,null,null,null,null,null," "]
["",null,null,null,null,null,null,null,null,null,null,null,null,null,null,null,null,null,null,null,null,null,null,null,null,null,null,null,null,null,null,null,null,null,null,null," "]
["",null,null,null,null,null,null,null,null,null,null,null,null,null,null,null,null,null,null,null,null,null,null,null,null,null,null,null,null,null,null,null,null,null,null,null," "]
["",null,null,null,null,null,null,null,null,null,null,null,null,null,null,null,null,null,null,null,null,null,null,null,null,null,null,null,null,null,null,null,null,null,null,null," "]
["",null,null,null,null,null,null,null,null,null,null,null,null,null,null,null,null,null,null,null,null,null,null,null,null,null,null,null,null,null,null,null,null,null,null,null," "]
["",null,null,null,null,null,null,null,null,null,null,null,null,null,null,null,null,null,null,null,null,null,null,null,null,null,null,null,null,null,null,null,null,null,null,null," "]
["",null,null,null,null,null,null,null,null,null,null,null,null,null,null,null,null,null,null,null,null,null,null,null,null,null,null,null,null,null,null,null,null,null,null,null," "]
["",null,null,null,null,null,null,null,null,null,null,null,null,null,null,null,null,null,null,null,null,null,null,null,null,null,null,null,null,null,null,null,null,null,null,null," "]
["",null,null,null,null,null,null,null,null,null,null,null,null,null,null,null,null,null,null,null,null,null,null,null,null,null,null,null,null,null,null,null,null,null,null,null," "]
["",null,null,null,null,null,null,null,null,null,null,null,null,null,null,null,null,null,null,null,null,null,null,null,null,null,null,null,null,null,null,null,null,null,null,null," "]
["",null,null,null,null,null,null,null,null,null,null,null,null,null,null,null,null,null,null,null,null,null,null,null,null,null,null,null,null,null,null,null,null,null,null,null," "]
["",null,null,null,null,null,null,null,null,null,null,null,null,null,null,null,null,null,null,null,null,null,null,null,null,null,null,null,null,null,null,null,null,null,null,null," "]
["",null,null,null,null,null,null,null,null,null,null,null,null,null,null,null,null,null,null,null,null,null,null,null,null,null,null,null,null,null,null,null,null,null,null,null," "]
["",null,null,null,null,null,null,null,null,null,null,null,null,null,null,null,null,null,null,null,null,null,null,null,null,null,null,null,null,null,null,null,null,null,null,null," "]
["",null,null,null,null,null,null,null,null,null,null,null,null,null,null,null,null,null,null,null,null,null,null,null,null,null,null,null,null,null,null,null,null,null,null,null," "]
["",null,null,null,null,null,null,null,null,null,null,null,null,null,null,null,null,null,null,null,null,null,null,null,null,null,null,null,null,null,null,null,null,null,null,null," "]
["",null,null,null,null,null,null,null,null,null,null,null,null,null,null,null,null,null,null,null,null,null,null,null,null,null,null,null,null,null,null,null,null,null,null,null," "]
["",null,null,null,null,null,null,null,null,null,null,null,null,null,null,null,null,null,null,null,null,null,null,null,null,null,null,null,null,null,null,null,null,null,null,null," "]
["",null,null,null,null,null,null,null,null,null,null,null,null,null,null,null,null,null,null,null,null,null,null,null,null,null,null,null,null,null,null,null,null,null,null,null," "]
["",null,null,null,null,null,null,null,null,null,null,null,null,null,null,null,null,null,null,null,null,null,null,null,null,null,null,null,null,null,null,null,null,null,null,null," "]
["",null,null,null,null,null,null,null,null,null,null,null,null,null,null,null,null,null,null,null,null,null,null,null,null,null,null,null,null,null,null,null,null,null,null,null," "]
["",null,null,null,null,null,null,null,null,null,null,null,null,null,null,null,null,null,null,null,null,null,null,null,null,null,null,null,null,null,null,null,null,null,null,null," "]
["",null,null,null,null,null,null,null,null,null,null,null,null,null,null,null,null,null,null,null,null,null,null,null,null,null,null,null,null,null,null,null,null,null,null,null," "]
["",null,null,null,null,null,null,null,null,null,null,null,null,null,null,null,null,null,null,null,null,null,null,null,null,null,null,null,null,null,null,null,null,null,null,null," "]
["",null,null,null,null,null,null,null,null,null,null,null,null,null,null,null,null,null,null,null,null,null,null,null,null,null,null,null,null,null,null,null,null,null,null,null," "]
["",null,null,null,null,null,null,null,null,null,null,null,null,null,null,null,null,null,null,null,null,null,null,null,null,null,null,null,null,null,null,null,null,null,null,null," "]
["",null,null,null,null,null,null,null,null,null,null,null,null,null,null,null,null,null,null,null,null,null,null,null,null,null,null,null,null,null,null,null,null,null,null,null," "]
["",null,null,null,null,null,null,null,null,null,null,null,null,null,null,null,null,null,null,null,null,null,null,null,null,null,null,null,null,null,null,null,null,null,null,null,{"$f":"CONCATENATE(B662,\" \",C662)","v":" "}]
["",null,null,null,null,null,null,null,null,null,null,null,null,null,null,null,null,null,null,null,null,null,null,null,null,null,null,null,null,null,null,null,null,null,null,null," "]
["",null,null,null,null,null,null,null,null,null,null,null,null,null,null,null,null,null,null,null,null,null,null,null,null,null,null,null,null,null,null,null,null,null,null,null," "]
[{"$f":"IF(AG665=\"\",\"\",AG665)","v":""},null,null,null,null,null,null,null,null,null,null,null,null,null,null,null,null,null,null,null,null,null,null,null,null,null,null,null,null,null,null,null,null,null,null,null," "]
["",null,null,null,null,null,null,null,null,null,null,null,null,null,null,null,null,null,null,null,null,null,null,null,null,null,null,null,null,null,null,null,null,null,null,null," "]
["",null,null,null,null,null,null,null,null,null,null,null,null,null,null,null,null,null,null,null,null,null,null,null,null,null,null,null,null,null,null,null,null,null,null,null," "]
["",null,null,null,null,null,null,null,null,null,null,null,null,null,null,null,null,null,null,null,null,null,null,null,null,null,null,null,null,null,null,null,null,null,null,null," "]
["",null,null,null,null,null,null,null,null,null,null,null,null,null,null,null,null,null,null,null,null,null,null,null,null,null,null,null,null,null,null,null,null,null,null,null," "]
["",null,null,null,null,null,null,null,null,null,null,null,null,null,null,null,null,null,null,null,null,null,null,null,null,null,null,null,null,null,null,null,null,null,null,null," "]
["",null,null,null,null,null,null,null,null,null,null,null,null,null,null,null,null,null,null,null,null,null,null,null,null,null,null,null,null,null,null,null,null,null,null,null," "]
["",null,null,null,null,null,null,null,null,null,null,null,null,null,null,null,null,null,null,null,null,null,null,null,null,null,null,null,null,null,null,null,null,null,null,null," "]
["",null,null,null,null,null,null,null,null,null,null,null,null,null,null,null,null,null,null,null,null,null,null,null,null,null,null,null,null,null,null,null,null,null,null,null," "]
["",null,null,null,null,null,null,null,null,null,null,null,null,null,null,null,null,null,null,null,null,null,null,null,null,null,null,null,null,null,null,null,null,null,null,null," "]
["",null,null,null,null,null,null,null,null,null,null,null,null,null,null,null,null,null,null,null,null,null,null,null,null,null,null,null,null,null,null,null,null,null,null,null," "]
["",null,null,null,null,null,null,null,null,null,null,null,null,null,null,null,null,null,null,null,null,null,null,null,null,null,null,null,null,null,null,null,null,null,null,null," "]
["",null,null,null,null,null,null,null,null,null,null,null,null,null,null,null,null,null,null,null,null,null,null,null,null,null,null,null,null,null,null,null,null,null,null,null," "]
["",null,null,null,null,null,null,null,null,null,null,null,null,null,null,null,null,null,null,null,null,null,null,null,null,null,null,null,null,null,null,null,null,null,null,null," "]
["",null,null,null,null,null,null,null,null,null,null,null,null,null,null,null,null,null,null,null,null,null,null,null,null,null,null,null,null,null,null,null,null,null,null,null," "]
["",null,null,null,null,null,null,null,null,null,null,null,null,null,null,null,null,null,null,null,null,null,null,null,null,null,null,null,null,null,null,null,null,null,null,null," "]
["",null,null,null,null,null,null,null,null,null,null,null,null,null,null,null,null,null,null,null,null,null,null,null,null,null,null,null,null,null,null,null,null,null,null,null," "]
["",null,null,null,null,null,null,null,null,null,null,null,null,null,null,null,null,null,null,null,null,null,null,null,null,null,null,null,null,null,null,null,null,null,null,null," "]
["",null,null,null,null,null,null,null,null,null,null,null,null,null,null,null,null,null,null,null,null,null,null,null,null,null,null,null,null,null,null,null,null,null,null,null," "]
["",null,null,null,null,null,null,null,null,null,null,null,null,null,null,null,null,null,null,null,null,null,null,null,null,null,null,null,null,null,null,null,null,null,null,null," "]
["",null,null,null,null,null,null,null,null,null,null,null,null,null,null,null,null,null,null,null,null,null,null,null,null,null,null,null,null,null,null,null,null,null,null,null," "]
["",null,null,null,null,null,null,null,null,null,null,null,null,null,null,null,null,null,null,null,null,null,null,null,null,null,null,null,null,null,null,null,null,null,null,null," "]
["",null,null,null,null,null,null,null,null,null,null,null,null,null,null,null,null,null,null,null,null,null,null,null,null,null,null,null,null,null,null,null,null,null,null,null," "]
["",null,null,null,null,null,null,null,null,null,null,null,null,null,null,null,null,null,null,null,null,null,null,null,null,null,null,null,null,null,null,null,null,null,null,null," "]
["",null,null,null,null,null,null,null,null,null,null,null,null,null,null,null,null,null,null,null,null,null,null,null,null,null,null,null,null,null,null,null,null,null,null,null," "]
["",null,null,null,null,null,null,null,null,null,null,null,null,null,null,null,null,null,null,null,null,null,null,null,null,null,null,null,null,null,null,null,null,null,null,null," "]
["",null,null,null,null,null,null,null,null,null,null,null,null,null,null,null,null,null,null,null,null,null,null,null,null,null,null,null,null,null,null,null,null,null,null,null," "]
["",null,null,null,null,null,null,null,null,null,null,null,null,null,null,null,null,null,null,null,null,null,null,null,null,null,null,null,null,null,null,null,null,null,null,null," "]
["",null,null,null,null,null,null,null,null,null,null,null,null,null,null,null,null,null,null,null,null,null,null,null,null,null,null,null,null,null,null,null,null,null,null,null," "]
["",null,null,null,null,null,null,null,null,null,null,null,null,null,null,null,null,null,null,null,null,null,null,null,null,null,null,null,null,null,null,null,null,null,null,null," "]
["",null,null,null,null,null,null,null,null,null,null,null,null,null,null,null,null,null,null,null,null,null,null,null,null,null,null,null,null,null,null,null,null,null,null,null," "]
["",null,null,null,null,null,null,null,null,null,null,null,null,null,null,null,null,null,null,null,null,null,null,null,null,null,null,null,null,null,null,null,null,null,null,null," "]
["",null,null,null,null,null,null,null,null,null,null,null,null,null,null,null,null,null,null,null,null,null,null,null,null,null,null,null,null,null,null,null,null,null,null,null," "]
["",null,null,null,null,null,null,null,null,null,null,null,null,null,null,null,null,null,null,null,null,null,null,null,null,null,null,null,null,null,null,null,null,null,null,null," "]
["",null,null,null,null,null,null,null,null,null,null,null,null,null,null,null,null,null,null,null,null,null,null,null,null,null,null,null,null,null,null,null,null,null,null,null," "]
["",null,null,null,null,null,null,null,null,null,null,null,null,null,null,null,null,null,null,null,null,null,null,null,null,null,null,null,null,null,null,null,null,null,null,null," "]
["",null,null,null,null,null,null,null,null,null,null,null,null,null,null,null,null,null,null,null,null,null,null,null,null,null,null,null,null,null,null,null,null,null,null,null," "]
["",null,null,null,null,null,null,null,null,null,null,null,null,null,null,null,null,null,null,null,null,null,null,null,null,null,null,null,null,null,null,null,null,null,null,null," "]
["",null,null,null,null,null,null,null,null,null,null,null,null,null,null,null,null,null,null,null,null,null,null,null,null,null,null,null,null,null,null,null,null,null,null,null," "]
["",null,null,null,null,null,null,null,null,null,null,null,null,null,null,null,null,null,null,null,null,null,null,null,null,null,null,null,null,null,null,null,null,null,null,null," "]
["",null,null,null,null,null,null,null,null,null,null,null,null,null,null,null,null,null,null,null,null,null,null,null,null,null,null,null,null,null,null,null,null,null,null,null," "]
["",null,null,null,null,null,null,null,null,null,null,null,null,null,null,null,null,null,null,null,null,null,null,null,null,null,null,null,null,null,null,null,null,null,null,null," "]
["",null,null,null,null,null,null,null,null,null,null,null,null,null,null,null,null,null,null,null,null,null,null,null,null,null,null,null,null,null,null,null,null,null,null,null," "]
["",null,null,null,null,null,null,null,null,null,null,null,null,null,null,null,null,null,null,null,null,null,null,null,null,null,null,null,null,null,null,null,null,null,null,null," "]
["",null,null,null,null,null,null,null,null,null,null,null,null,null,null,null,null,null,null,null,null,null,null,null,null,null,null,null,null,null,null,null,null,null,null,null," "]
["",null,null,null,null,null,null,null,null,null,null,null,null,null,null,null,null,null,null,null,null,null,null,null,null,null,null,null,null,null,null,null,null,null,null,null," "]
["",null,null,null,null,null,null,null,null,null,null,null,null,null,null,null,null,null,null,null,null,null,null,null,null,null,null,null,null,null,null,null,null,null,null,null," "]
["",null,null,null,null,null,null,null,null,null,null,null,null,null,null,null,null,null,null,null,null,null,null,null,null,null,null,null,null,null,null,null,null,null,null,null," "]
["",null,null,null,null,null,null,null,null,null,null,null,null,null,null,null,null,null,null,null,null,null,null,null,null,null,null,null,null,null,null,null,null,null,null,null," "]
["",null,null,null,null,null,null,null,null,null,null,null,null,null,null,null,null,null,null,null,null,null,null,null,null,null,null,null,null,null,null,null,null,null,null,null," "]
["",null,null,null,null,null,null,null,null,null,null,null,null,null,null,null,null,null,null,null,null,null,null,null,null,null,null,null,null,null,null,null,null,null,null,null," "]
["",null,null,null,null,null,null,null,null,null,null,null,null,null,null,null,null,null,null,null,null,null,null,null,null,null,null,null,null,null,null,null,null,null,null,null," "]
["",null,null,null,null,null,null,null,null,null,null,null,null,null,null,null,null,null,null,null,null,null,null,null,null,null,null,null,null,null,null,null,null,null,null,null," "]
["",null,null,null,null,null,null,null,null,null,null,null,null,null,null,null,null,null,null,null,null,null,null,null,null,null,null,null,null,null,null,null,null,null,null,null," "]
["",null,null,null,null,null,null,null,null,null,null,null,null,null,null,null,null,null,null,null,null,null,null,null,null,null,null,null,null,null,null,null,null,null,null,null," "]
["",null,null,null,null,null,null,null,null,null,null,null,null,null,null,null,null,null,null,null,null,null,null,null,null,null,null,null,null,null,null,null,null,null,null,null," "]
["",null,null,null,null,null,null,null,null,null,null,null,null,null,null,null,null,null,null,null,null,null,null,null,null,null,null,null,null,null,null,null,null,null,null,null," "]
["",null,null,null,null,null,null,null,null,null,null,null,null,null,null,null,null,null,null,null,null,null,null,null,null,null,null,null,null,null,null,null,null,null,null,null," "]
["",null,null,null,null,null,null,null,null,null,null,null,null,null,null,null,null,null,null,null,null,null,null,null,null,null,null,null,null,null,null,null,null,null,null,null," "]
["",null,null,null,null,null,null,null,null,null,null,null,null,null,null,null,null,null,null,null,null,null,null,null,null,null,null,null,null,null,null,null,null,null,null,null," "]
["",null,null,null,null,null,null,null,null,null,null,null,null,null,null,null,null,null,null,null,null,null,null,null,null,null,null,null,null,null,null,null,null,null,null,null," "]
["",null,null,null,null,null,null,null,null,null,null,null,null,null,null,null,null,null,null,null,null,null,null,null,null,null,null,null,null,null,null,null,null,null,null,null,{"$f":"CONCATENATE(B726,\" \",C726)","v":" "}]
["",null,null,null,null,null,null,null,null,null,null,null,null,null,null,null,null,null,null,null,null,null,null,null,null,null,null,null,null,null,null,null,null,null,null,null," "]
["",null,null,null,null,null,null,null,null,null,null,null,null,null,null,null,null,null,null,null,null,null,null,null,null,null,null,null,null,null,null,null,null,null,null,null," "]
[{"$f":"IF(AG729=\"\",\"\",AG729)","v":""},null,null,null,null,null,null,null,null,null,null,null,null,null,null,null,null,null,null,null,null,null,null,null,null,null,null,null,null,null,null,null,null,null,null,null," "]
["",null,null,null,null,null,null,null,null,null,null,null,null,null,null,null,null,null,null,null,null,null,null,null,null,null,null,null,null,null,null,null,null,null,null,null," "]
["",null,null,null,null,null,null,null,null,null,null,null,null,null,null,null,null,null,null,null,null,null,null,null,null,null,null,null,null,null,null,null,null,null,null,null," "]
["",null,null,null,null,null,null,null,null,null,null,null,null,null,null,null,null,null,null,null,null,null,null,null,null,null,null,null,null,null,null,null,null,null,null,null," "]
["",null,null,null,null,null,null,null,null,null,null,null,null,null,null,null,null,null,null,null,null,null,null,null,null,null,null,null,null,null,null,null,null,null,null,null," "]
["",null,null,null,null,null,null,null,null,null,null,null,null,null,null,null,null,null,null,null,null,null,null,null,null,null,null,null,null,null,null,null,null,null,null,null," "]
["",null,null,null,null,null,null,null,null,null,null,null,null,null,null,null,null,null,null,null,null,null,null,null,null,null,null,null,null,null,null,null,null,null,null,null," "]
["",null,null,null,null,null,null,null,null,null,null,null,null,null,null,null,null,null,null,null,null,null,null,null,null,null,null,null,null,null,null,null,null,null,null,null," "]
["",null,null,null,null,null,null,null,null,null,null,null,null,null,null,null,null,null,null,null,null,null,null,null,null,null,null,null,null,null,null,null,null,null,null,null," "]
["",null,null,null,null,null,null,null,null,null,null,null,null,null,null,null,null,null,null,null,null,null,null,null,null,null,null,null,null,null,null,null,null,null,null,null," "]
["",null,null,null,null,null,null,null,null,null,null,null,null,null,null,null,null,null,null,null,null,null,null,null,null,null,null,null,null,null,null,null,null,null,null,null," "]
["",null,null,null,null,null,null,null,null,null,null,null,null,null,null,null,null,null,null,null,null,null,null,null,null,null,null,null,null,null,null,null,null,null,null,null," "]
["",null,null,null,null,null,null,null,null,null,null,null,null,null,null,null,null,null,null,null,null,null,null,null,null,null,null,null,null,null,null,null,null,null,null,null," "]
["",null,null,null,null,null,null,null,null,null,null,null,null,null,null,null,null,null,null,null,null,null,null,null,null,null,null,null,null,null,null,null,null,null,null,null," "]
["",null,null,null,null,null,null,null,null,null,null,null,null,null,null,null,null,null,null,null,null,null,null,null,null,null,null,null,null,null,null,null,null,null,null,null," "]
["",null,null,null,null,null,null,null,null,null,null,null,null,null,null,null,null,null,null,null,null,null,null,null,null,null,null,null,null,null,null,null,null,null,null,null," "]
["",null,null,null,null,null,null,null,null,null,null,null,null,null,null,null,null,null,null,null,null,null,null,null,null,null,null,null,null,null,null,null,null,null,null,null," "]
["",null,null,null,null,null,null,null,null,null,null,null,null,null,null,null,null,null,null,null,null,null,null,null,null,null,null,null,null,null,null,null,null,null,null,null," "]
["",null,null,null,null,null,null,null,null,null,null,null,null,null,null,null,null,null,null,null,null,null,null,null,null,null,null,null,null,null,null,null,null,null,null,null," "]
["",null,null,null,null,null,null,null,null,null,null,null,null,null,null,null,null,null,null,null,null,null,null,null,null,null,null,null,null,null,null,null,null,null,null,null," "]
["",null,null,null,null,null,null,null,null,null,null,null,null,null,null,null,null,null,null,null,null,null,null,null,null,null,null,null,null,null,null,null,null,null,null,null," "]
["",null,null,null,null,null,null,null,null,null,null,null,null,null,null,null,null,null,null,null,null,null,null,null,null,null,null,null,null,null,null,null,null,null,null,null," "]
["",null,null,null,null,null,null,null,null,null,null,null,null,null,null,null,null,null,null,null,null,null,null,null,null,null,null,null,null,null,null,null,null,null,null,null," "]
["",null,null,null,null,null,null,null,null,null,null,null,null,null,null,null,null,null,null,null,null,null,null,null,null,null,null,null,null,null,null,null,null,null,null,null," "]
["",null,null,null,null,null,null,null,null,null,null,null,null,null,null,null,null,null,null,null,null,null,null,null,null,null,null,null,null,null,null,null,null,null,null,null," "]
["",null,null,null,null,null,null,null,null,null,null,null,null,null,null,null,null,null,null,null,null,null,null,null,null,null,null,null,null,null,null,null,null,null,null,null," "]
["",null,null,null,null,null,null,null,null,null,null,null,null,null,null,null,null,null,null,null,null,null,null,null,null,null,null,null,null,null,null,null,null,null,null,null," "]
["",null,null,null,null,null,null,null,null,null,null,null,null,null,null,null,null,null,null,null,null,null,null,null,null,null,null,null,null,null,null,null,null,null,null,null," "]
["",null,null,null,null,null,null,null,null,null,null,null,null,null,null,null,null,null,null,null,null,null,null,null,null,null,null,null,null,null,null,null,null,null,null,null," "]
["",null,null,null,null,null,null,null,null,null,null,null,null,null,null,null,null,null,null,null,null,null,null,null,null,null,null,null,null,null,null,null,null,null,null,null," "]
["",null,null,null,null,null,null,null,null,null,null,null,null,null,null,null,null,null,null,null,null,null,null,null,null,null,null,null,null,null,null,null,null,null,null,null," "]
["",null,null,null,null,null,null,null,null,null,null,null,null,null,null,null,null,null,null,null,null,null,null,null,null,null,null,null,null,null,null,null,null,null,null,null," "]
["",null,null,null,null,null,null,null,null,null,null,null,null,null,null,null,null,null,null,null,null,null,null,null,null,null,null,null,null,null,null,null,null,null,null,null," "]
["",null,null,null,null,null,null,null,null,null,null,null,null,null,null,null,null,null,null,null,null,null,null,null,null,null,null,null,null,null,null,null,null,null,null,null," "]
["",null,null,null,null,null,null,null,null,null,null,null,null,null,null,null,null,null,null,null,null,null,null,null,null,null,null,null,null,null,null,null,null,null,null,null," "]
["",null,null,null,null,null,null,null,null,null,null,null,null,null,null,null,null,null,null,null,null,null,null,null,null,null,null,null,null,null,null,null,null,null,null,null," "]
["",null,null,null,null,null,null,null,null,null,null,null,null,null,null,null,null,null,null,null,null,null,null,null,null,null,null,null,null,null,null,null,null,null,null,null," "]
["",null,null,null,null,null,null,null,null,null,null,null,null,null,null,null,null,null,null,null,null,null,null,null,null,null,null,null,null,null,null,null,null,null,null,null," "]
["",null,null,null,null,null,null,null,null,null,null,null,null,null,null,null,null,null,null,null,null,null,null,null,null,null,null,null,null,null,null,null,null,null,null,null," "]
["",null,null,null,null,null,null,null,null,null,null,null,null,null,null,null,null,null,null,null,null,null,null,null,null,null,null,null,null,null,null,null,null,null,null,null," "]
["",null,null,null,null,null,null,null,null,null,null,null,null,null,null,null,null,null,null,null,null,null,null,null,null,null,null,null,null,null,null,null,null,null,null,null," "]
["",null,null,null,null,null,null,null,null,null,null,null,null,null,null,null,null,null,null,null,null,null,null,null,null,null,null,null,null,null,null,null,null,null,null,null," "]
["",null,null,null,null,null,null,null,null,null,null,null,null,null,null,null,null,null,null,null,null,null,null,null,null,null,null,null,null,null,null,null,null,null,null,null," "]
["",null,null,null,null,null,null,null,null,null,null,null,null,null,null,null,null,null,null,null,null,null,null,null,null,null,null,null,null,null,null,null,null,null,null,null," "]
["",null,null,null,null,null,null,null,null,null,null,null,null,null,null,null,null,null,null,null,null,null,null,null,null,null,null,null,null,null,null,null,null,null,null,null," "]
["",null,null,null,null,null,null,null,null,null,null,null,null,null,null,null,null,null,null,null,null,null,null,null,null,null,null,null,null,null,null,null,null,null,null,null," "]
["",null,null,null,null,null,null,null,null,null,null,null,null,null,null,null,null,null,null,null,null,null,null,null,null,null,null,null,null,null,null,null,null,null,null,null," "]
["",null,null,null,null,null,null,null,null,null,null,null,null,null,null,null,null,null,null,null,null,null,null,null,null,null,null,null,null,null,null,null,null,null,null,null," "]
["",null,null,null,null,null,null,null,null,null,null,null,null,null,null,null,null,null,null,null,null,null,null,null,null,null,null,null,null,null,null,null,null,null,null,null," "]
["",null,null,null,null,null,null,null,null,null,null,null,null,null,null,null,null,null,null,null,null,null,null,null,null,null,null,null,null,null,null,null,null,null,null,null," "]
["",null,null,null,null,null,null,null,null,null,null,null,null,null,null,null,null,null,null,null,null,null,null,null,null,null,null,null,null,null,null,null,null,null,null,null," "]
["",null,null,null,null,null,null,null,null,null,null,null,null,null,null,null,null,null,null,null,null,null,null,null,null,null,null,null,null,null,null,null,null,null,null,null," "]
["",null,null,null,null,null,null,null,null,null,null,null,null,null,null,null,null,null,null,null,null,null,null,null,null,null,null,null,null,null,null,null,null,null,null,null," "]
["",null,null,null,null,null,null,null,null,null,null,null,null,null,null,null,null,null,null,null,null,null,null,null,null,null,null,null,null,null,null,null,null,null,null,null," "]
["",null,null,null,null,null,null,null,null,null,null,null,null,null,null,null,null,null,null,null,null,null,null,null,null,null,null,null,null,null,null,null,null,null,null,null," "]
["",null,null,null,null,null,null,null,null,null,null,null,null,null,null,null,null,null,null,null,null,null,null,null,null,null,null,null,null,null,null,null,null,null,null,null," "]
["",null,null,null,null,null,null,null,null,null,null,null,null,null,null,null,null,null,null,null,null,null,null,null,null,null,null,null,null,null,null,null,null,null,null,null," "]
["",null,null,null,null,null,null,null,null,null,null,null,null,null,null,null,null,null,null,null,null,null,null,null,null,null,null,null,null,null,null,null,null,null,null,null," "]
["",null,null,null,null,null,null,null,null,null,null,null,null,null,null,null,null,null,null,null,null,null,null,null,null,null,null,null,null,null,null,null,null,null,null,null," "]
["",null,null,null,null,null,null,null,null,null,null,null,null,null,null,null,null,null,null,null,null,null,null,null,null,null,null,null,null,null,null,null,null,null,null,null," "]
["",null,null,null,null,null,null,null,null,null,null,null,null,null,null,null,null,null,null,null,null,null,null,null,null,null,null,null,null,null,null,null,null,null,null,null," "]
["",null,null,null,null,null,null,null,null,null,null,null,null,null,null,null,null,null,null,null,null,null,null,null,null,null,null,null,null,null,null,null,null,null,null,null,{"$f":"CONCATENATE(B790,\" \",C790)","v":" "}]
["",null,null,null,null,null,null,null,null,null,null,null,null,null,null,null,null,null,null,null,null,null,null,null,null,null,null,null,null,null,null,null,null,null,null,null," "]
["",null,null,null,null,null,null,null,null,null,null,null,null,null,null,null,null,null,null,null,null,null,null,null,null,null,null,null,null,null,null,null,null,null,null,null," "]
[{"$f":"IF(AG793=\"\",\"\",AG793)","v":""},null,null,null,null,null,null,null,null,null,null,null,null,null,null,null,null,null,null,null,null,null,null,null,null,null,null,null,null,null,null,null,null,null,null,null," "]
["",null,null,null,null,null,null,null,null,null,null,null,null,null,null,null,null,null,null,null,null,null,null,null,null,null,null,null,null,null,null,null,null,null,null,null," "]
["",null,null,null,null,null,null,null,null,null,null,null,null,null,null,null,null,null,null,null,null,null,null,null,null,null,null,null,null,null,null,null,null,null,null,null," "]
["",null,null,null,null,null,null,null,null,null,null,null,null,null,null,null,null,null,null,null,null,null,null,null,null,null,null,null,null,null,null,null,null,null,null,null," "]
["",null,null,null,null,null,null,null,null,null,null,null,null,null,null,null,null,null,null,null,null,null,null,null,null,null,null,null,null,null,null,null,null,null,null,null," "]
["",null,null,null,null,null,null,null,null,null,null,null,null,null,null,null,null,null,null,null,null,null,null,null,null,null,null,null,null,null,null,null,null,null,null,null," "]
["",null,null,null,null,null,null,null,null,null,null,null,null,null,null,null,null,null,null,null,null,null,null,null,null,null,null,null,null,null,null,null,null,null,null,null," "]
["",null,null,null,null,null,null,null,null,null,null,null,null,null,null,null,null,null,null,null,null,null,null,null,null,null,null,null,null,null,null,null,null,null,null,null," "]
["",null,null,null,null,null,null,null,null,null,null,null,null,null,null,null,null,null,null,null,null,null,null,null,null,null,null,null,null,null,null,null,null,null,null,null," "]
["",null,null,null,null,null,null,null,null,null,null,null,null,null,null,null,null,null,null,null,null,null,null,null,null,null,null,null,null,null,null,null,null,null,null,null," "]
["",null,null,null,null,null,null,null,null,null,null,null,null,null,null,null,null,null,null,null,null,null,null,null,null,null,null,null,null,null,null,null,null,null,null,null," "]
["",null,null,null,null,null,null,null,null,null,null,null,null,null,null,null,null,null,null,null,null,null,null,null,null,null,null,null,null,null,null,null,null,null,null,null," "]
["",null,null,null,null,null,null,null,null,null,null,null,null,null,null,null,null,null,null,null,null,null,null,null,null,null,null,null,null,null,null,null,null,null,null,null," "]
["",null,null,null,null,null,null,null,null,null,null,null,null,null,null,null,null,null,null,null,null,null,null,null,null,null,null,null,null,null,null,null,null,null,null,null," "]
["",null,null,null,null,null,null,null,null,null,null,null,null,null,null,null,null,null,null,null,null,null,null,null,null,null,null,null,null,null,null,null,null,null,null,null," "]
["",null,null,null,null,null,null,null,null,null,null,null,null,null,null,null,null,null,null,null,null,null,null,null,null,null,null,null,null,null,null,null,null,null,null,null," "]
["",null,null,null,null,null,null,null,null,null,null,null,null,null,null,null,null,null,null,null,null,null,null,null,null,null,null,null,null,null,null,null,null,null,null,null," "]
["",null,null,null,null,null,null,null,null,null,null,null,null,null,null,null,null,null,null,null,null,null,null,null,null,null,null,null,null,null,null,null,null,null,null,null," "]
["",null,null,null,null,null,null,null,null,null,null,null,null,null,null,null,null,null,null,null,null,null,null,null,null,null,null,null,null,null,null,null,null,null,null,null," "]
["",null,null,null,null,null,null,null,null,null,null,null,null,null,null,null,null,null,null,null,null,null,null,null,null,null,null,null,null,null,null,null,null,null,null,null," "]
["",null,null,null,null,null,null,null,null,null,null,null,null,null,null,null,null,null,null,null,null,null,null,null,null,null,null,null,null,null,null,null,null,null,null,null," "]
["",null,null,null,null,null,null,null,null,null,null,null,null,null,null,null,null,null,null,null,null,null,null,null,null,null,null,null,null,null,null,null,null,null,null,null," "]
["",null,null,null,null,null,null,null,null,null,null,null,null,null,null,null,null,null,null,null,null,null,null,null,null,null,null,null,null,null,null,null,null,null,null,null," "]
["",null,null,null,null,null,null,null,null,null,null,null,null,null,null,null,null,null,null,null,null,null,null,null,null,null,null,null,null,null,null,null,null,null,null,null," "]
["",null,null,null,null,null,null,null,null,null,null,null,null,null,null,null,null,null,null,null,null,null,null,null,null,null,null,null,null,null,null,null,null,null,null,null," "]
["",null,null,null,null,null,null,null,null,null,null,null,null,null,null,null,null,null,null,null,null,null,null,null,null,null,null,null,null,null,null,null,null,null,null,null," "]
["",null,null,null,null,null,null,null,null,null,null,null,null,null,null,null,null,null,null,null,null,null,null,null,null,null,null,null,null,null,null,null,null,null,null,null," "]
["",null,null,null,null,null,null,null,null,null,null,null,null,null,null,null,null,null,null,null,null,null,null,null,null,null,null,null,null,null,null,null,null,null,null,null," "]
["",null,null,null,null,null,null,null,null,null,null,null,null,null,null,null,null,null,null,null,null,null,null,null,null,null,null,null,null,null,null,null,null,null,null,null," "]
["",null,null,null,null,null,null,null,null,null,null,null,null,null,null,null,null,null,null,null,null,null,null,null,null,null,null,null,null,null,null,null,null,null,null,null," "]
["",null,null,null,null,null,null,null,null,null,null,null,null,null,null,null,null,null,null,null,null,null,null,null,null,null,null,null,null,null,null,null,null,null,null,null," "]
["",null,null,null,null,null,null,null,null,null,null,null,null,null,null,null,null,null,null,null,null,null,null,null,null,null,null,null,null,null,null,null,null,null,null,null," "]
["",null,null,null,null,null,null,null,null,null,null,null,null,null,null,null,null,null,null,null,null,null,null,null,null,null,null,null,null,null,null,null,null,null,null,null," "]

{"sheet":"Dados","index":4,"n_rows":950,"n_cols":34,"rows_kept":950,"cut":false,"hidden":true,"merged":[]}
["Código","Setor","Empresa","Fech (R$)","Quantidade de Ações","Valor Mercado","Patrimônio Líquido (últ. balan.)","Rec Líq. Anual (t-2)","Rec Líq. Anual (t-1)","Lucr Líq. Anual Acum. (t-4)","Lucr Líq. Anual Acum. (t-3)","Lucr Líq. Anual Acum. (t-2)","Lucr Líq. Anual Acum. (t-1)","Lucr Líq. Anual Acum. (t)","Lucr Líq. Anual (t-2)","Lucr Líq. Anual (t-1)","LPA (últimos 12 meses) ","VPA (últimos 12 meses) ","P/VPA (últimos 12 meses) ","P/L (últimos 12 meses) ","Rentab. Patrimonial","Dívida Líq/ Patrimônio","EBITDA Anual (t-2)","EBITDA Anual (t-1)","EBITDA 12 meses","FirmValue/Ebitda ","Dividendos acum ano (t-1)","Dividend Yield.","Oscliação mês %","Oscliação ano %","% ON / Total","Código Ação","Dívida Líquida","Nome Maiores/elhores"]
[{"$f":"IF(Economática!AG4=\"\",\"\",Economática!AG4)","v":"AGRO3"},{"$f":"IF($A2=\"\",\"\",VLOOKUP(VLOOKUP($A2,Economática!$A$3:$AI$823,6,FALSE),Correção!$B$16:$C$36,2,FALSE))","v":"Agro "},{"$f":"IF(Economática!B4=\"\",\"\",Economática!B4)","v":"Brasilagro"},{"$f":"IF($A2=\"\",\"\",IF(OR(VLOOKUP($A2,Economática!$A$3:$AI$823,8,FALSE)=0,VLOOKUP($A2,Economática!$A$3:$AI$823,8,FALSE)=\"-\"),1/0,VLOOKUP($A2,Economática!$A$3:$AI$823,8,FALSE)))","v":15.55},{"$f":"IF(A2=\"\",\"\",IF(ISERROR(VLOOKUP(A2,Correção!$B$2:$G$13,9,FALSE)),VLOOKUP($A2,Economática!$A$3:$AI$823,9,FALSE),VLOOKUP(A2,Correção!$B$2:$G$13,9,FALSE)))","v":53.802},{"$f":"IF($A2=\"\",\"\",Economática!G4)","v":836.62},{"$f":"IF($A2=\"\",\"\",IF(OR(VLOOKUP($A2,Economática!$A$3:$AI$823,10,FALSE)=0,VLOOKUP($A2,Economática!$A$3:$AI$823,10,FALSE)=\"-\"),1/0,VLOOKUP($A2,Economática!$A$3:$AI$823,10,FALSE)))","v":882.81},{"$f":"IF($A2=\"\",\"\",IF(OR(VLOOKUP($A2,Economática!$A$3:$AI$823,11,FALSE)=0,VLOOKUP($A2,Economática!$A$3:$AI$823,11,FALSE)=\"-\"),1/0,VLOOKUP($A2,Economática!$A$3:$AI$823,11,FALSE)))","v":174.6},{"$f":"IF($A2=\"\",\"\",IF(OR(VLOOKUP($A2,Economática!$A$3:$AI$823,12,FALSE)=0,VLOOKUP($A2,Economática!$A$3:$AI$823,12,FALSE)=\"-\"),1/0,VLOOKUP($A2,Economática!$A$3:$AI$823,12,FALSE)))","v":336.38},{"$f":"IF($A2=\"\",\"\",IF(OR(VLOOKUP($A2,Economática!$A$3:$AI$823,13,FALSE)=0,VLOOKUP($A2,Economática!$A$3:$AI$823,13,FALSE)=\"-\"),1/0,VLOOKUP($A2,Economática!$A$3:$AI$823,13,FALSE)))","v":31.64},{"$f":"IF($A2=\"\",\"\",IF(OR(VLOOKUP($A2,Economática!$A$3:$AI$823,14,FALSE)=0,VLOOKUP($A2,Economática!$A$3:$AI$823,14,FALSE)=\"-\"),1/0,VLOOKUP($A2,Economática!$A$3:$AI$823,14,FALSE)))","v":85.62},{"$f":"IF($A2=\"\",\"\",IF(OR(VLOOKUP($A2,Economática!$A$3:$AI$823,15,FALSE)=0,VLOOKUP($A2,Economática!$A$3:$AI$823,15,FALSE)=\"-\"),1/0,VLOOKUP($A2,Economática!$A$3:$AI$823,15,FALSE)))","v":126.34},{"$f":"IF($A2=\"\",\"\",IF(OR(VLOOKUP($A2,Economática!$A$3:$AI$823,16,FALSE)=0,VLOOKUP($A2,Economática!$A$3:$AI$823,16,FALSE)=\"-\"),1/0,VLOOKUP($A2,Economática!$A$3:$AI$823,16,FALSE)))","v":136.63999999999999},{"$f":"IF($A2=\"\",\"\",IF(OR(VLOOKUP($A2,Economática!$A$3:$AI$823,17,FALSE)=0,VLOOKUP($A2,Economática!$A$3:$AI$823,17,FALSE)=\"-\"),1/0,VLOOKUP($A2,Economática!$A$3:$AI$823,17,FALSE)))","v":136.12},{"$f":"IF($A2=\"\",\"\",IF(OR(VLOOKUP($A2,Economática!$A$3:$AI$823,18,FALSE)=0,VLOOKUP($A2,Economática!$A$3:$AI$823,18,FALSE)=\"-\"),1/0,VLOOKUP($A2,Economática!$A$3:$AI$823,18,FALSE)))","v":31.64},{"$f":"IF($A2=\"\",\"\",IF(OR(VLOOKUP($A2,Economática!$A$3:$AI$823,19,FALSE)=0,VLOOKUP($A2,Economática!$A$3:$AI$823,19,FALSE)=\"-\"),1/0,VLOOKUP($A2,Economática!$A$3:$AI$823,19,FALSE)))","v":136.12},{"$f":"IF($A2=\"\",\"\",VLOOKUP($A2,Economática!$A$3:$AI$823,20,FALSE)/E2)","v":4.2903609531244191},{"$f":"IF($A2=\"\",\"\",IF((G2/E2)<=0,1/0,G2/E2))","v":16.40849782535965},{"$f":"IF($A2=\"\",\"\",D2/R2)","v":0.94767968192476315},{"$f":"IF($A2=\"\",\"\",IF((D2/Q2)<=0,1/0,D2/Q2))","v":3.6244036736992595},{"$f":"IF($A2=\"\",\"\",IF(OR(VLOOKUP($A2,Economática!$A$3:$AI$823,21,FALSE)/100=0,VLOOKUP($A2,Economática!$A$3:$AI$823,21,FALSE)/100=\"-\"),1/0,VLOOKUP($A2,Economática!$A$3:$AI$823,21,FALSE)/100))","v":0.33271099999999998},{"$f":"IF($A2=\"\",\"\",IF(OR(VLOOKUP($A2,Economática!$A$3:$AI$823,22,FALSE)/100=0,VLOOKUP($A2,Economática!$A$3:$AI$823,22,FALSE)/100=\"-\"),1/0,VLOOKUP($A2,Economática!$A$3:$AI$823,22,FALSE)/100))","v":0.236371},{"$f":"IF($A2=\"\",\"\",IF(OR(VLOOKUP($A2,Economática!$A$3:$AI$823,23,FALSE)=0,VLOOKUP($A2,Economática!$A$3:$AI$823,23,FALSE)=\"-\"),1/0,VLOOKUP($A2,Economática!$A$3:$AI$823,23,FALSE)))","v":58.8},{"$f":"IF($A2=\"\",\"\",IF(OR(VLOOKUP($A2,Economática!$A$3:$AI$823,24,FALSE)=0,VLOOKUP($A2,Economática!$A$3:$AI$823,24,FALSE)=\"-\"),1/0,VLOOKUP($A2,Economática!$A$3:$AI$823,24,FALSE)))","v":175.9},{"$f":"IF($A2=\"\",\"\",IF(OR(VLOOKUP($A2,Economática!$A$3:$AI$823,25,FALSE)=0,VLOOKUP($A2,Economática!$A$3:$AI$823,25,FALSE)=\"-\"),1/0,VLOOKUP($A2,Economática!$A$3:$AI$823,25,FALSE)))","v":301.10000000000002},{"$f":"IF($A2=\"\",\"\",IF(ISERROR((F2+VLOOKUP($A2,Economática!$A$3:$AI$823,26,FALSE))/Y2),(F2+VLOOKUP($A2,Economática!$A$3:$AI$823,26,FALSE))/Y2,(F2+VLOOKUP($A2,Economática!$A$3:$AI$823,26,FALSE))/Y2))","v":3.4715775489870468},{"$f":"IF($A2=\"\",\"\",IF(OR(-VLOOKUP($A2,Economática!$A$3:$AI$823,27,FALSE)=0,-VLOOKUP($A2,Economática!$A$3:$AI$823,27,FALSE)=\"-\"),1/0,-VLOOKUP($A2,Economática!$A$3:$AI$823,27,FALSE)))","v":41},{"$f":"IF(A2=\"\",\"\",AA2/F2)","v":4.900671750615572E-2},{"$f":"IF($A2=\"\",\"\",IF(OR(VLOOKUP($A2,Economática!$A$3:$AI$823,28,FALSE)=0,VLOOKUP($A2,Economática!$A$3:$AI$823,28,FALSE)=\"-\"),1/0,VLOOKUP($A2,Economática!$A$3:$AI$823,28,FALSE)))","v":-1.9},{"$f":"IF($A2=\"\",\"\",IF(OR(VLOOKUP($A2,Economática!$A$3:$AI$823,29,FALSE)=0,VLOOKUP($A2,Economática!$A$3:$AI$823,29,FALSE)=\"-\"),1/0,VLOOKUP($A2,Economática!$A$3:$AI$823,29,FALSE)))","v":31.2},{"$f":"IF($A2=\"\",\"\",IF(OR(VLOOKUP($A2,Economática!$A$3:$AI$823,30,FALSE)/E2=0,VLOOKUP($A2,Economática!$A$3:$AI$823,30,FALSE)/E2=\"-\",VLOOKUP($A2,Economática!$A$3:$AI$823,30,FALSE)/E2<33.33%,VLOOKUP($A2,Economática!$A$3:$AI$823,30,FALSE)/E2>100%),1/0,VLOOKUP($A2,Economática!$A$3:$AI$823,30,FALSE)/E2))","v":{"$error":"#DIV/0!"}},{"$f":"IF(A2=\"\",\"\",A2)","v":"AGRO3"},{"$f":"IF($A2=\"\",\"\",IF(OR(VLOOKUP($A2,Economática!$A$3:$AI$823,25,FALSE)=0,VLOOKUP($A2,Economática!$A$3:$AI$823,25,FALSE)=\"-\"),1/0,VLOOKUP($A2,Economática!$A$3:$AI$823,25,FALSE)))","v":301.10000000000002},{"$f":"CONCATENATE(Economática!B4,\" \",Economática!C4)","v":"Brasilagro ON"}]
[{"$f":"IF(Economática!AG5=\"\",\"\",Economática!AG5)","v":"SLCE3"},{"$f":"IF($A3=\"\",\"\",VLOOKUP(VLOOKUP($A3,Economática!$A$3:$AI$823,6,FALSE),Correção!$B$16:$C$36,2,FALSE))","v":"Agro "},{"$f":"IF(Economática!B5=\"\",\"\",Economática!B5)","v":"SLC Agricola"},{"$f":"IF($A3=\"\",\"\",IF(OR(VLOOKUP($A3,Economática!$A$3:$AI$823,8,FALSE)=0,VLOOKUP($A3,Economática!$A$3:$AI$823,8,FALSE)=\"-\"),1/0,VLOOKUP($A3,Economática!$A$3:$AI$823,8,FALSE)))","v":41.06},{"$f":"IF(A3=\"\",\"\",IF(ISERROR(VLOOKUP(A3,Correção!$B$2:$G$13,9,FALSE)),VLOOKUP($A3,Economática!$A$3:$AI$823,9,FALSE),VLOOKUP(A3,Correção!$B$2:$G$13,9,FALSE)))","v":94.08},{"$f":"IF($A3=\"\",\"\",Economática!G5)","v":3862.93},{"$f":"IF($A3=\"\",\"\",IF(OR(VLOOKUP($A3,Economática!$A$3:$AI$823,10,FALSE)=0,VLOOKUP($A3,Economática!$A$3:$AI$823,10,FALSE)=\"-\"),1/0,VLOOKUP($A3,Economática!$A$3:$AI$823,10,FALSE)))","v":2598.17},{"$f":"IF($A3=\"\",\"\",IF(OR(VLOOKUP($A3,Economática!$A$3:$AI$823,11,FALSE)=0,VLOOKUP($A3,Economática!$A$3:$AI$823,11,FALSE)=\"-\"),1/0,VLOOKUP($A3,Economática!$A$3:$AI$823,11,FALSE)))","v":2219.9},{"$f":"IF($A3=\"\",\"\",IF(OR(VLOOKUP($A3,Economática!$A$3:$AI$823,12,FALSE)=0,VLOOKUP($A3,Economática!$A$3:$AI$823,12,FALSE)=\"-\"),1/0,VLOOKUP($A3,Economática!$A$3:$AI$823,12,FALSE)))","v":2823.47},{"$f":"IF($A3=\"\",\"\",IF(OR(VLOOKUP($A3,Economática!$A$3:$AI$823,13,FALSE)=0,VLOOKUP($A3,Economática!$A$3:$AI$823,13,FALSE)=\"-\"),1/0,VLOOKUP($A3,Economática!$A$3:$AI$823,13,FALSE)))","v":356.34},{"$f":"IF($A3=\"\",\"\",IF(OR(VLOOKUP($A3,Economática!$A$3:$AI$823,14,FALSE)=0,VLOOKUP($A3,Economática!$A$3:$AI$823,14,FALSE)=\"-\"),1/0,VLOOKUP($A3,Economática!$A$3:$AI$823,14,FALSE)))","v":154.32},{"$f":"IF($A3=\"\",\"\",IF(OR(VLOOKUP($A3,Economática!$A$3:$AI$823,15,FALSE)=0,VLOOKUP($A3,Economática!$A$3:$AI$823,15,FALSE)=\"-\"),1/0,VLOOKUP($A3,Economática!$A$3:$AI$823,15,FALSE)))","v":311.37},{"$f":"IF($A3=\"\",\"\",IF(OR(VLOOKUP($A3,Economática!$A$3:$AI$823,16,FALSE)=0,VLOOKUP($A3,Economática!$A$3:$AI$823,16,FALSE)=\"-\"),1/0,VLOOKUP($A3,Economática!$A$3:$AI$823,16,FALSE)))","v":347.16},{"$f":"IF($A3=\"\",\"\",IF(OR(VLOOKUP($A3,Economática!$A$3:$AI$823,17,FALSE)=0,VLOOKUP($A3,Economática!$A$3:$AI$823,17,FALSE)=\"-\"),1/0,VLOOKUP($A3,Economática!$A$3:$AI$823,17,FALSE)))","v":381.25},{"$f":"IF($A3=\"\",\"\",IF(OR(VLOOKUP($A3,Economática!$A$3:$AI$823,18,FALSE)=0,VLOOKUP($A3,Economática!$A$3:$AI$823,18,FALSE)=\"-\"),1/0,VLOOKUP($A3,Economática!$A$3:$AI$823,18,FALSE)))","v":356.34},{"$f":"IF($A3=\"\",\"\",IF(OR(VLOOKUP($A3,Economática!$A$3:$AI$823,19,FALSE)=0,VLOOKUP($A3,Economática!$A$3:$AI$823,19,FALSE)=\"-\"),1/0,VLOOKUP($A3,Economática!$A$3:$AI$823,19,FALSE)))","v":381.25},{"$f":"IF($A3=\"\",\"\",VLOOKUP($A3,Economática!$A$3:$AI$823,20,FALSE)/E3)","v":4.0524022108843534},{"$f":"IF($A3=\"\",\"\",IF((G3/E3)<=0,1/0,G3/E3))","v":27.616602891156464},{"$f":"IF($A3=\"\",\"\",D3/R3)","v":1.4867867768467806},{"$f":"IF($A3=\"\",\"\",IF((D3/Q3)<=0,1/0,D3/Q3))","v":10.132261770491805},{"$f":"IF($A3=\"\",\"\",IF(OR(VLOOKUP($A3,Economática!$A$3:$AI$823,21,FALSE)/100=0,VLOOKUP($A3,Economática!$A$3:$AI$823,21,FALSE)/100=\"-\"),1/0,VLOOKUP($A3,Economática!$A$3:$AI$823,21,FALSE)/100))","v":0.150454},{"$f":"IF($A3=\"\",\"\",IF(OR(VLOOKUP($A3,Economática!$A$3:$AI$823,22,FALSE)/100=0,VLOOKUP($A3,Economática!$A$3:$AI$823,22,FALSE)/100=\"-\"),1/0,VLOOKUP($A3,Economática!$A$3:$AI$823,22,FALSE)/100))","v":0.34433599999999998},{"$f":"IF($A3=\"\",\"\",IF(OR(VLOOKUP($A3,Economática!$A$3:$AI$823,23,FALSE)=0,VLOOKUP($A3,Economática!$A$3:$AI$823,23,FALSE)=\"-\"),1/0,VLOOKUP($A3,Economática!$A$3:$AI$823,23,FALSE)))","v":685},{"$f":"IF($A3=\"\",\"\",IF(OR(VLOOKUP($A3,Economática!$A$3:$AI$823,24,FALSE)=0,VLOOKUP($A3,Economática!$A$3:$AI$823,24,FALSE)=\"-\"),1/0,VLOOKUP($A3,Economática!$A$3:$AI$823,24,FALSE)))","v":769},{"$f":"IF($A3=\"\",\"\",IF(OR(VLOOKUP($A3,Economática!$A$3:$AI$823,25,FALSE)=0,VLOOKUP($A3,Economática!$A$3:$AI$823,25,FALSE)=\"-\"),1/0,VLOOKUP($A3,Economática!$A$3:$AI$823,25,FALSE)))","v":769},{"$f":"IF($A3=\"\",\"\",IF(ISERROR((F3+VLOOKUP($A3,Economática!$A$3:$AI$823,26,FALSE))/Y3),(F3+VLOOKUP($A3,Economática!$A$3:$AI$823,26,FALSE))/Y3,(F3+VLOOKUP($A3,Economática!$A$3:$AI$823,26,FALSE))/Y3))","v":6.2747269180754222},{"$f":"IF($A3=\"\",\"\",IF(OR(-VLOOKUP($A3,Economática!$A$3:$AI$823,27,FALSE)=0,-VLOOKUP($A3,Economática!$A$3:$AI$823,27,FALSE)=\"-\"),1/0,-VLOOKUP($A3,Economática!$A$3:$AI$823,27,FALSE)))","v":199.99},{"$f":"IF(A3=\"\",\"\",AA3/F3)","v":5.1771582710533198E-2},{"$f":"IF($A3=\"\",\"\",IF(OR(VLOOKUP($A3,Economática!$A$3:$AI$823,28,FALSE)=0,VLOOKUP($A3,Economática!$A$3:$AI$823,28,FALSE)=\"-\"),1/0,VLOOKUP($A3,Economática!$A$3:$AI$823,28,FALSE)))","v":0.1},{"$f":"IF($A3=\"\",\"\",IF(OR(VLOOKUP($A3,Economática!$A$3:$AI$823,29,FALSE)=0,VLOOKUP($A3,Economática!$A$3:$AI$823,29,FALSE)=\"-\"),1/0,VLOOKUP($A3,Economática!$A$3:$AI$823,29,FALSE)))","v":61.7},{"$f":"IF($A3=\"\",\"\",IF(OR(VLOOKUP($A3,Economática!$A$3:$AI$823,30,FALSE)/E3=0,VLOOKUP($A3,Economática!$A$3:$AI$823,30,FALSE)/E3=\"-\",VLOOKUP($A3,Economática!$A$3:$AI$823,30,FALSE)/E3<33.33%,VLOOKUP($A3,Economática!$A$3:$AI$823,30,FALSE)/E3>100%),1/0,VLOOKUP($A3,Economática!$A$3:$AI$823,30,FALSE)/E3))","v":{"$error":"#DIV/0!"}},{"$f":"IF(A3=\"\",\"\",A3)","v":"SLCE3"},{"$f":"IF($A3=\"\",\"\",IF(OR(VLOOKUP($A3,Economática!$A$3:$AI$823,25,FALSE)=0,VLOOKUP($A3,Economática!$A$3:$AI$823,25,FALSE)=\"-\"),1/0,VLOOKUP($A3,Economática!$A$3:$AI$823,25,FALSE)))","v":769},{"$f":"CONCATENATE(Economática!B5,\" \",Economática!C5)","v":"SLC Agricola ON"}]
[{"$f":"IF(Economática!AG6=\"\",\"\",Economática!AG6)","v":"BSEV3"},{"$f":"IF($A4=\"\",\"\",VLOOKUP(VLOOKUP($A4,Economática!$A$3:$AI$823,6,FALSE),Correção!$B$16:$C$36,2,FALSE))","v":"Agro "},{"$f":"IF(Economática!B6=\"\",\"\",Economática!B6)","v":"Biosev"},{"$f":"IF($A4=\"\",\"\",IF(OR(VLOOKUP($A4,Economática!$A$3:$AI$823,8,FALSE)=0,VLOOKUP($A4,Economática!$A$3:$AI$823,8,FALSE)=\"-\"),1/0,VLOOKUP($A4,Economática!$A$3:$AI$823,8,FALSE)))","v":2.67},{"$f":"IF(A4=\"\",\"\",IF(ISERROR(VLOOKUP(A4,Correção!$B$2:$G$13,9,FALSE)),VLOOKUP($A4,Economática!$A$3:$AI$823,9,FALSE),VLOOKUP(A4,Correção!$B$2:$G$13,9,FALSE)))","v":1020.429},{"$f":"IF($A4=\"\",\"\",Economática!G6)","v":2724.55},{"$f":"IF($A4=\"\",\"\",IF(OR(VLOOKUP($A4,Economática!$A$3:$AI$823,10,FALSE)=0,VLOOKUP($A4,Economática!$A$3:$AI$823,10,FALSE)=\"-\"),1/0,VLOOKUP($A4,Economática!$A$3:$AI$823,10,FALSE)))","v":624.41999999999996},{"$f":"IF($A4=\"\",\"\",IF(OR(VLOOKUP($A4,Economática!$A$3:$AI$823,11,FALSE)=0,VLOOKUP($A4,Economática!$A$3:$AI$823,11,FALSE)=\"-\"),1/0,VLOOKUP($A4,Economática!$A$3:$AI$823,11,FALSE)))","v":5147.72},{"$f":"IF($A4=\"\",\"\",IF(OR(VLOOKUP($A4,Economática!$A$3:$AI$823,12,FALSE)=0,VLOOKUP($A4,Economática!$A$3:$AI$823,12,FALSE)=\"-\"),1/0,VLOOKUP($A4,Economática!$A$3:$AI$823,12,FALSE)))","v":4959.07},{"$f":"IF($A4=\"\",\"\",IF(OR(VLOOKUP($A4,Economática!$A$3:$AI$823,13,FALSE)=0,VLOOKUP($A4,Economática!$A$3:$AI$823,13,FALSE)=\"-\"),1/0,VLOOKUP($A4,Economática!$A$3:$AI$823,13,FALSE)))","v":-823.16},{"$f":"IF($A4=\"\",\"\",IF(OR(VLOOKUP($A4,Economática!$A$3:$AI$823,14,FALSE)=0,VLOOKUP($A4,Economática!$A$3:$AI$823,14,FALSE)=\"-\"),1/0,VLOOKUP($A4,Economática!$A$3:$AI$823,14,FALSE)))","v":-1269.83},{"$f":"IF($A4=\"\",\"\",IF(OR(VLOOKUP($A4,Economática!$A$3:$AI$823,15,FALSE)=0,VLOOKUP($A4,Economática!$A$3:$AI$823,15,FALSE)=\"-\"),1/0,VLOOKUP($A4,Economática!$A$3:$AI$823,15,FALSE)))","v":-506.21},{"$f":"IF($A4=\"\",\"\",IF(OR(VLOOKUP($A4,Economática!$A$3:$AI$823,16,FALSE)=0,VLOOKUP($A4,Economática!$A$3:$AI$823,16,FALSE)=\"-\"),1/0,VLOOKUP($A4,Economática!$A$3:$AI$823,16,FALSE)))","v":-661.76},{"$f":"IF($A4=\"\",\"\",IF(OR(VLOOKUP($A4,Economática!$A$3:$AI$823,17,FALSE)=0,VLOOKUP($A4,Economática!$A$3:$AI$823,17,FALSE)=\"-\"),1/0,VLOOKUP($A4,Economática!$A$3:$AI$823,17,FALSE)))","v":-892.2},{"$f":"IF($A4=\"\",\"\",IF(OR(VLOOKUP($A4,Economática!$A$3:$AI$823,18,FALSE)=0,VLOOKUP($A4,Economática!$A$3:$AI$823,18,FALSE)=\"-\"),1/0,VLOOKUP($A4,Economática!$A$3:$AI$823,18,FALSE)))","v":-823.16},{"$f":"IF($A4=\"\",\"\",IF(OR(VLOOKUP($A4,Economática!$A$3:$AI$823,19,FALSE)=0,VLOOKUP($A4,Economática!$A$3:$AI$823,19,FALSE)=\"-\"),1/0,VLOOKUP($A4,Economática!$A$3:$AI$823,19,FALSE)))","v":-892.2},{"$f":"IF($A4=\"\",\"\",VLOOKUP($A4,Economática!$A$3:$AI$823,20,FALSE)/E4)","v":-1.3120658076162084},0.61191910461188381,4.3633218506774289,{"$error":"#DIV/0!"},{"$f":"IF($A4=\"\",\"\",IF(OR(VLOOKUP($A4,Economática!$A$3:$AI$823,21,FALSE)/100=0,VLOOKUP($A4,Economática!$A$3:$AI$823,21,FALSE)/100=\"-\"),1/0,VLOOKUP($A4,Economática!$A$3:$AI$823,21,FALSE)/100))","v":{"$error":"#VALUE!"}},{"$f":"IF($A4=\"\",\"\",IF(OR(VLOOKUP($A4,Economática!$A$3:$AI$823,22,FALSE)/100=0,VLOOKUP($A4,Economática!$A$3:$AI$823,22,FALSE)/100=\"-\"),1/0,VLOOKUP($A4,Economática!$A$3:$AI$823,22,FALSE)/100))","v":8.001728},{"$f":"IF($A4=\"\",\"\",IF(OR(VLOOKUP($A4,Economática!$A$3:$AI$823,23,FALSE)=0,VLOOKUP($A4,Economática!$A$3:$AI$823,23,FALSE)=\"-\"),1/0,VLOOKUP($A4,Economática!$A$3:$AI$823,23,FALSE)))","v":968.8},{"$f":"IF($A4=\"\",\"\",IF(OR(VLOOKUP($A4,Economática!$A$3:$AI$823,24,FALSE)=0,VLOOKUP($A4,Economática!$A$3:$AI$823,24,FALSE)=\"-\"),1/0,VLOOKUP($A4,Economática!$A$3:$AI$823,24,FALSE)))","v":1050.0999999999999},{"$f":"IF($A4=\"\",\"\",IF(OR(VLOOKUP($A4,Economática!$A$3:$AI$823,25,FALSE)=0,VLOOKUP($A4,Economática!$A$3:$AI$823,25,FALSE)=\"-\"),1/0,VLOOKUP($A4,Economática!$A$3:$AI$823,25,FALSE)))","v":1007.6},{"$f":"IF($A4=\"\",\"\",IF(ISERROR((F4+VLOOKUP($A4,Economática!$A$3:$AI$823,26,FALSE))/Y4),(F4+VLOOKUP($A4,Economática!$A$3:$AI$823,26,FALSE))/Y4,(F4+VLOOKUP($A4,Economática!$A$3:$AI$823,26,FALSE))/Y4))","v":7.7129654624851129},{"$f":"IF($A4=\"\",\"\",IF(OR(-VLOOKUP($A4,Economática!$A$3:$AI$823,27,FALSE)=0,-VLOOKUP($A4,Economática!$A$3:$AI$823,27,FALSE)=\"-\"),1/0,-VLOOKUP($A4,Economática!$A$3:$AI$823,27,FALSE)))","v":{"$error":"#DIV/0!"}},{"$error":"#DIV/0!"},{"$f":"IF($A4=\"\",\"\",IF(OR(VLOOKUP($A4,Economática!$A$3:$AI$823,28,FALSE)=0,VLOOKUP($A4,Economática!$A$3:$AI$823,28,FALSE)=\"-\"),1/0,VLOOKUP($A4,Economática!$A$3:$AI$823,28,FALSE)))","v":-8.6},{"$f":"IF($A4=\"\",\"\",IF(OR(VLOOKUP($A4,Economática!$A$3:$AI$823,29,FALSE)=0,VLOOKUP($A4,Economática!$A$3:$AI$823,29,FALSE)=\"-\"),1/0,VLOOKUP($A4,Economática!$A$3:$AI$823,29,FALSE)))","v":-40.799999999999997},{"$f":"IF($A4=\"\",\"\",IF(OR(VLOOKUP($A4,Economática!$A$3:$AI$823,30,FALSE)/E4=0,VLOOKUP($A4,Economática!$A$3:$AI$823,30,FALSE)/E4=\"-\",VLOOKUP($A4,Economática!$A$3:$AI$823,30,FALSE)/E4<33.33%,VLOOKUP($A4,Economática!$A$3:$AI$823,30,FALSE)/E4>100%),1/0,VLOOKUP($A4,Economática!$A$3:$AI$823,30,FALSE)/E4))","v":0.99997158058032454},"BSEV3",{"$f":"IF($A4=\"\",\"\",IF(OR(VLOOKUP($A4,Economática!$A$3:$AI$823,25,FALSE)=0,VLOOKUP($A4,Economática!$A$3:$AI$823,25,FALSE)=\"-\"),1/0,VLOOKUP($A4,Economática!$A$3:$AI$823,25,FALSE)))","v":1007.6},{"$f":"CONCATENATE(Economática!B6,\" \",Economática!C6)","v":"Biosev ON"}]
[{"$f":"IF(Economática!AG7=\"\",\"\",Economática!AG7)","v":"FRTA3"},{"$f":"IF($A5=\"\",\"\",VLOOKUP(VLOOKUP($A5,Economática!$A$3:$AI$823,6,FALSE),Correção!$B$16:$C$36,2,FALSE))","v":"Agro "},{"$f":"IF(Economática!B7=\"\",\"\",Economática!B7)","v":"Pomifrutas"},{"$f":"IF($A5=\"\",\"\",IF(OR(VLOOKUP($A5,Economática!$A$3:$AI$823,8,FALSE)=0,VLOOKUP($A5,Economática!$A$3:$AI$823,8,FALSE)=\"-\"),1/0,VLOOKUP($A5,Economática!$A$3:$AI$823,8,FALSE)))","v":0.89},{"$f":"IF(A5=\"\",\"\",IF(ISERROR(VLOOKUP(A5,Correção!$B$2:$G$13,9,FALSE)),VLOOKUP($A5,Economática!$A$3:$AI$823,9,FALSE),VLOOKUP(A5,Correção!$B$2:$G$13,9,FALSE)))","v":12.006},{"$f":"IF($A5=\"\",\"\",Economática!G7)","v":10.69},{"$f":"IF($A5=\"\",\"\",IF(OR(VLOOKUP($A5,Economática!$A$3:$AI$823,10,FALSE)=0,VLOOKUP($A5,Economática!$A$3:$AI$823,10,FALSE)=\"-\"),1/0,VLOOKUP($A5,Economática!$A$3:$AI$823,10,FALSE)))","v":-68.56},{"$f":"IF($A5=\"\",\"\",IF(OR(VLOOKUP($A5,Economática!$A$3:$AI$823,11,FALSE)=0,VLOOKUP($A5,Economática!$A$3:$AI$823,11,FALSE)=\"-\"),1/0,VLOOKUP($A5,Economática!$A$3:$AI$823,11,FALSE)))","v":44.73},{"$f":"IF($A5=\"\",\"\",IF(OR(VLOOKUP($A5,Economática!$A$3:$AI$823,12,FALSE)=0,VLOOKUP($A5,Economática!$A$3:$AI$823,12,FALSE)=\"-\"),1/0,VLOOKUP($A5,Economática!$A$3:$AI$823,12,FALSE)))","v":5.22},{"$f":"IF($A5=\"\",\"\",IF(OR(VLOOKUP($A5,Economática!$A$3:$AI$823,13,FALSE)=0,VLOOKUP($A5,Economática!$A$3:$AI$823,13,FALSE)=\"-\"),1/0,VLOOKUP($A5,Economática!$A$3:$AI$823,13,FALSE)))","v":-20.05},{"$f":"IF($A5=\"\",\"\",IF(OR(VLOOKUP($A5,Economática!$A$3:$AI$823,14,FALSE)=0,VLOOKUP($A5,Economática!$A$3:$AI$823,14,FALSE)=\"-\"),1/0,VLOOKUP($A5,Economática!$A$3:$AI$823,14,FALSE)))","v":-1.56},{"$f":"IF($A5=\"\",\"\",IF(OR(VLOOKUP($A5,Economática!$A$3:$AI$823,15,FALSE)=0,VLOOKUP($A5,Economática!$A$3:$AI$823,15,FALSE)=\"-\"),1/0,VLOOKUP($A5,Economática!$A$3:$AI$823,15,FALSE)))","v":-5.72},{"$f":"IF($A5=\"\",\"\",IF(OR(VLOOKUP($A5,Economática!$A$3:$AI$823,16,FALSE)=0,VLOOKUP($A5,Economática!$A$3:$AI$823,16,FALSE)=\"-\"),1/0,VLOOKUP($A5,Economática!$A$3:$AI$823,16,FALSE)))","v":-7.1},{"$f":"IF($A5=\"\",\"\",IF(OR(VLOOKUP($A5,Economática!$A$3:$AI$823,17,FALSE)=0,VLOOKUP($A5,Economática!$A$3:$AI$823,17,FALSE)=\"-\"),1/0,VLOOKUP($A5,Economática!$A$3:$AI$823,17,FALSE)))","v":-7.51},{"$f":"IF($A5=\"\",\"\",IF(OR(VLOOKUP($A5,Economática!$A$3:$AI$823,18,FALSE)=0,VLOOKUP($A5,Economática!$A$3:$AI$823,18,FALSE)=\"-\"),1/0,VLOOKUP($A5,Economática!$A$3:$AI$823,18,FALSE)))","v":-20.05},{"$f":"IF($A5=\"\",\"\",IF(OR(VLOOKUP($A5,Economática!$A$3:$AI$823,19,FALSE)=0,VLOOKUP($A5,Economática!$A$3:$AI$823,19,FALSE)=\"-\"),1/0,VLOOKUP($A5,Economática!$A$3:$AI$823,19,FALSE)))","v":-7.51},{"$f":"IF($A5=\"\",\"\",VLOOKUP($A5,Economática!$A$3:$AI$823,20,FALSE)/E5)","v":-0.62552057304680986},{"$error":"#DIV/0!"},{"$error":"#DIV/0!"},{"$error":"#DIV/0!"},{"$f":"IF($A5=\"\",\"\",IF(OR(VLOOKUP($A5,Economática!$A$3:$AI$823,21,FALSE)/100=0,VLOOKUP($A5,Economática!$A$3:$AI$823,21,FALSE)/100=\"-\"),1/0,VLOOKUP($A5,Economática!$A$3:$AI$823,21,FALSE)/100))","v":{"$error":"#VALUE!"}},{"$f":"IF($A5=\"\",\"\",IF(OR(VLOOKUP($A5,Economática!$A$3:$AI$823,22,FALSE)/100=0,VLOOKUP($A5,Economática!$A$3:$AI$823,22,FALSE)/100=\"-\"),1/0,VLOOKUP($A5,Economática!$A$3:$AI$823,22,FALSE)/100))","v":-0.69867599999999996},{"$f":"IF($A5=\"\",\"\",IF(OR(VLOOKUP($A5,Economática!$A$3:$AI$823,23,FALSE)=0,VLOOKUP($A5,Economática!$A$3:$AI$823,23,FALSE)=\"-\"),1/0,VLOOKUP($A5,Economática!$A$3:$AI$823,23,FALSE)))","v":-18.100000000000001},{"$f":"IF($A5=\"\",\"\",IF(OR(VLOOKUP($A5,Economática!$A$3:$AI$823,24,FALSE)=0,VLOOKUP($A5,Economática!$A$3:$AI$823,24,FALSE)=\"-\"),1/0,VLOOKUP($A5,Economática!$A$3:$AI$823,24,FALSE)))","v":-10.8},{"$f":"IF($A5=\"\",\"\",IF(OR(VLOOKUP($A5,Economática!$A$3:$AI$823,25,FALSE)=0,VLOOKUP($A5,Economática!$A$3:$AI$823,25,FALSE)=\"-\"),1/0,VLOOKUP($A5,Economática!$A$3:$AI$823,25,FALSE)))","v":-10.8},{"$f":"IF($A5=\"\",\"\",IF(ISERROR((F5+VLOOKUP($A5,Economática!$A$3:$AI$823,26,FALSE))/Y5),(F5+VLOOKUP($A5,Economática!$A$3:$AI$823,26,FALSE))/Y5,(F5+VLOOKUP($A5,Economática!$A$3:$AI$823,26,FALSE))/Y5))","v":-5.42537037037037},{"$f":"IF($A5=\"\",\"\",IF(OR(-VLOOKUP($A5,Economática!$A$3:$AI$823,27,FALSE)=0,-VLOOKUP($A5,Economática!$A$3:$AI$823,27,FALSE)=\"-\"),1/0,-VLOOKUP($A5,Economática!$A$3:$AI$823,27,FALSE)))","v":{"$error":"#VALUE!"}},{"$error":"#VALUE!"},{"$f":"IF($A5=\"\",\"\",IF(OR(VLOOKUP($A5,Economática!$A$3:$AI$823,28,FALSE)=0,VLOOKUP($A5,Economática!$A$3:$AI$823,28,FALSE)=\"-\"),1/0,VLOOKUP($A5,Economática!$A$3:$AI$823,28,FALSE)))","v":-6.3},{"$f":"IF($A5=\"\",\"\",IF(OR(VLOOKUP($A5,Economática!$A$3:$AI$823,29,FALSE)=0,VLOOKUP($A5,Economática!$A$3:$AI$823,29,FALSE)=\"-\"),1/0,VLOOKUP($A5,Economática!$A$3:$AI$823,29,FALSE)))","v":-38.200000000000003},{"$f":"IF($A5=\"\",\"\",IF(OR(VLOOKUP($A5,Economática!$A$3:$AI$823,30,FALSE)/E5=0,VLOOKUP($A5,Economática!$A$3:$AI$823,30,FALSE)/E5=\"-\",VLOOKUP($A5,Economática!$A$3:$AI$823,30,FALSE)/E5<33.33%,VLOOKUP($A5,Economática!$A$3:$AI$823,30,FALSE)/E5>100%),1/0,VLOOKUP($A5,Economática!$A$3:$AI$823,30,FALSE)/E5))","v":0.99950024987506247},"FRTA3",{"$f":"IF($A5=\"\",\"\",IF(OR(VLOOKUP($A5,Economática!$A$3:$AI$823,25,FALSE)=0,VLOOKUP($A5,Economática!$A$3:$AI$823,25,FALSE)=\"-\"),1/0,VLOOKUP($A5,Economática!$A$3:$AI$823,25,FALSE)))","v":-10.8},{"$f":"CONCATENATE(Economática!B7,\" \",Economática!C7)","v":"Pomifrutas ON"}]
[{"$f":"IF(Economática!AG8=\"\",\"\",Economática!AG8)","v":"MRFG3"},{"$f":"IF($A6=\"\",\"\",VLOOKUP(VLOOKUP($A6,Economática!$A$3:$AI$823,6,FALSE),Correção!$B$16:$C$36,2,FALSE))","v":"Alimentos e Bebidas"},{"$f":"IF(Economática!B8=\"\",\"\",Economática!B8)","v":"Marfrig"},{"$f":"IF($A6=\"\",\"\",IF(OR(VLOOKUP($A6,Economática!$A$3:$AI$823,8,FALSE)=0,VLOOKUP($A6,Economática!$A$3:$AI$823,8,FALSE)=\"-\"),1/0,VLOOKUP($A6,Economática!$A$3:$AI$823,8,FALSE)))","v":5.98},{"$f":"IF(A6=\"\",\"\",IF(ISERROR(VLOOKUP(A6,Correção!$B$2:$G$13,9,FALSE)),VLOOKUP($A6,Economática!$A$3:$AI$823,9,FALSE),VLOOKUP(A6,Correção!$B$2:$G$13,9,FALSE)))","v":619.14099999999996},{"$f":"IF($A6=\"\",\"\",Economática!G8)","v":3702.47},{"$f":"IF($A6=\"\",\"\",IF(OR(VLOOKUP($A6,Economática!$A$3:$AI$823,10,FALSE)=0,VLOOKUP($A6,Economática!$A$3:$AI$823,10,FALSE)=\"-\"),1/0,VLOOKUP($A6,Economática!$A$3:$AI$823,10,FALSE)))","v":673.46},{"$f":"IF($A6=\"\",\"\",IF(OR(VLOOKUP($A6,Economática!$A$3:$AI$823,11,FALSE)=0,VLOOKUP($A6,Economática!$A$3:$AI$823,11,FALSE)=\"-\"),1/0,VLOOKUP($A6,Economática!$A$3:$AI$823,11,FALSE)))","v":18577.87},{"$f":"IF($A6=\"\",\"\",IF(OR(VLOOKUP($A6,Economática!$A$3:$AI$823,12,FALSE)=0,VLOOKUP($A6,Economática!$A$3:$AI$823,12,FALSE)=\"-\"),1/0,VLOOKUP($A6,Economática!$A$3:$AI$823,12,FALSE)))","v":29715.18},{"$f":"IF($A6=\"\",\"\",IF(OR(VLOOKUP($A6,Economática!$A$3:$AI$823,13,FALSE)=0,VLOOKUP($A6,Economática!$A$3:$AI$823,13,FALSE)=\"-\"),1/0,VLOOKUP($A6,Economática!$A$3:$AI$823,13,FALSE)))","v":-483.47},{"$f":"IF($A6=\"\",\"\",IF(OR(VLOOKUP($A6,Economática!$A$3:$AI$823,14,FALSE)=0,VLOOKUP($A6,Economática!$A$3:$AI$823,14,FALSE)=\"-\"),1/0,VLOOKUP($A6,Economática!$A$3:$AI$823,14,FALSE)))","v":-202.69},{"$f":"IF($A6=\"\",\"\",IF(OR(VLOOKUP($A6,Economática!$A$3:$AI$823,15,FALSE)=0,VLOOKUP($A6,Economática!$A$3:$AI$823,15,FALSE)=\"-\"),1/0,VLOOKUP($A6,Economática!$A$3:$AI$823,15,FALSE)))","v":-740.35},{"$f":"IF($A6=\"\",\"\",IF(OR(VLOOKUP($A6,Economática!$A$3:$AI$823,16,FALSE)=0,VLOOKUP($A6,Economática!$A$3:$AI$823,16,FALSE)=\"-\"),1/0,VLOOKUP($A6,Economática!$A$3:$AI$823,16,FALSE)))","v":-820.79},{"$f":"IF($A6=\"\",\"\",IF(OR(VLOOKUP($A6,Economática!$A$3:$AI$823,17,FALSE)=0,VLOOKUP($A6,Economática!$A$3:$AI$823,17,FALSE)=\"-\"),1/0,VLOOKUP($A6,Economática!$A$3:$AI$823,17,FALSE)))","v":1395.26},{"$f":"IF($A6=\"\",\"\",IF(OR(VLOOKUP($A6,Economática!$A$3:$AI$823,18,FALSE)=0,VLOOKUP($A6,Economática!$A$3:$AI$823,18,FALSE)=\"-\"),1/0,VLOOKUP($A6,Economática!$A$3:$AI$823,18,FALSE)))","v":-483.47},{"$f":"IF($A6=\"\",\"\",IF(OR(VLOOKUP($A6,Economática!$A$3:$AI$823,19,FALSE)=0,VLOOKUP($A6,Economática!$A$3:$AI$823,19,FALSE)=\"-\"),1/0,VLOOKUP($A6,Economática!$A$3:$AI$823,19,FALSE)))","v":1395.26},{"$f":"IF($A6=\"\",\"\",VLOOKUP($A6,Economática!$A$3:$AI$823,20,FALSE)/E6)","v":2.2535416003785893},1.0877328427611805,5.4976734772666527,2.6536008915900977,{"$f":"IF($A6=\"\",\"\",IF(OR(VLOOKUP($A6,Economática!$A$3:$AI$823,21,FALSE)/100=0,VLOOKUP($A6,Economática!$A$3:$AI$823,21,FALSE)/100=\"-\"),1/0,VLOOKUP($A6,Economática!$A$3:$AI$823,21,FALSE)/100))","v":0.81753600000000004},{"$f":"IF($A6=\"\",\"\",IF(OR(VLOOKUP($A6,Economática!$A$3:$AI$823,22,FALSE)/100=0,VLOOKUP($A6,Economática!$A$3:$AI$823,22,FALSE)/100=\"-\"),1/0,VLOOKUP($A6,Economática!$A$3:$AI$823,22,FALSE)/100))","v":2.0059430000000003},{"$f":"IF($A6=\"\",\"\",IF(OR(VLOOKUP($A6,Economática!$A$3:$AI$823,23,FALSE)=0,VLOOKUP($A6,Economática!$A$3:$AI$823,23,FALSE)=\"-\"),1/0,VLOOKUP($A6,Economática!$A$3:$AI$823,23,FALSE)))","v":1566.1},{"$f":"IF($A6=\"\",\"\",IF(OR(VLOOKUP($A6,Economática!$A$3:$AI$823,24,FALSE)=0,VLOOKUP($A6,Economática!$A$3:$AI$823,24,FALSE)=\"-\"),1/0,VLOOKUP($A6,Economática!$A$3:$AI$823,24,FALSE)))","v":1075.2},{"$f":"IF($A6=\"\",\"\",IF(OR(VLOOKUP($A6,Economática!$A$3:$AI$823,25,FALSE)=0,VLOOKUP($A6,Economática!$A$3:$AI$823,25,FALSE)=\"-\"),1/0,VLOOKUP($A6,Economática!$A$3:$AI$823,25,FALSE)))","v":1075.2},{"$f":"IF($A6=\"\",\"\",IF(ISERROR((F6+VLOOKUP($A6,Economática!$A$3:$AI$823,26,FALSE))/Y6),(F6+VLOOKUP($A6,Economática!$A$3:$AI$823,26,FALSE))/Y6,(F6+VLOOKUP($A6,Economática!$A$3:$AI$823,26,FALSE))/Y6))","v":10.927664620535714},{"$f":"IF($A6=\"\",\"\",IF(OR(-VLOOKUP($A6,Economática!$A$3:$AI$823,27,FALSE)=0,-VLOOKUP($A6,Economática!$A$3:$AI$823,27,FALSE)=\"-\"),1/0,-VLOOKUP($A6,Economática!$A$3:$AI$823,27,FALSE)))","v":{"$error":"#DIV/0!"}},{"$error":"#DIV/0!"},{"$f":"IF($A6=\"\",\"\",IF(OR(VLOOKUP($A6,Economática!$A$3:$AI$823,28,FALSE)=0,VLOOKUP($A6,Economática!$A$3:$AI$823,28,FALSE)=\"-\"),1/0,VLOOKUP($A6,Economática!$A$3:$AI$823,28,FALSE)))","v":8.6999999999999993},{"$f":"IF($A6=\"\",\"\",IF(OR(VLOOKUP($A6,Economática!$A$3:$AI$823,29,FALSE)=0,VLOOKUP($A6,Economática!$A$3:$AI$823,29,FALSE)=\"-\"),1/0,VLOOKUP($A6,Economática!$A$3:$AI$823,29,FALSE)))","v":-18.3},{"$f":"IF($A6=\"\",\"\",IF(OR(VLOOKUP($A6,Economática!$A$3:$AI$823,30,FALSE)/E6=0,VLOOKUP($A6,Economática!$A$3:$AI$823,30,FALSE)/E6=\"-\",VLOOKUP($A6,Economática!$A$3:$AI$823,30,FALSE)/E6<33.33%,VLOOKUP($A6,Economática!$A$3:$AI$823,30,FALSE)/E6>100%),1/0,VLOOKUP($A6,Economática!$A$3:$AI$823,30,FALSE)/E6))","v":{"$error":"#DIV/0!"}},"MRFG3",{"$f":"IF($A6=\"\",\"\",IF(OR(VLOOKUP($A6,Economática!$A$3:$AI$823,25,FALSE)=0,VLOOKUP($A6,Economática!$A$3:$AI$823,25,FALSE)=\"-\"),1/0,VLOOKUP($A6,Economática!$A$3:$AI$823,25,FALSE)))","v":1075.2},{"$f":"CONCATENATE(Economática!B8,\" \",Economática!C8)","v":"Marfrig ON"}]
[{"$f":"IF(Economática!AG9=\"\",\"\",Economática!AG9)","v":"BAUH4"},{"$f":"IF($A7=\"\",\"\",VLOOKUP(VLOOKUP($A7,Economática!$A$3:$AI$823,6,FALSE),Correção!$B$16:$C$36,2,FALSE))","v":"Alimentos e Bebidas"},{"$f":"IF(Economática!B9=\"\",\"\",Economática!B9)","v":"Excelsior"},{"$f":"IF($A7=\"\",\"\",IF(OR(VLOOKUP($A7,Economática!$A$3:$AI$823,8,FALSE)=0,VLOOKUP($A7,Economática!$A$3:$AI$823,8,FALSE)=\"-\"),1/0,VLOOKUP($A7,Economática!$A$3:$AI$823,8,FALSE)))","v":26.49},{"$f":"IF(A7=\"\",\"\",IF(ISERROR(VLOOKUP(A7,Correção!$B$2:$G$13,9,FALSE)),VLOOKUP($A7,Economática!$A$3:$AI$823,9,FALSE),VLOOKUP(A7,Correção!$B$2:$G$13,9,FALSE)))","v":5.2220000000000004},{"$f":"IF($A7=\"\",\"\",Economática!G9)","v":138.33000000000001},{"$f":"IF($A7=\"\",\"\",IF(OR(VLOOKUP($A7,Economática!$A$3:$AI$823,10,FALSE)=0,VLOOKUP($A7,Economática!$A$3:$AI$823,10,FALSE)=\"-\"),1/0,VLOOKUP($A7,Economática!$A$3:$AI$823,10,FALSE)))","v":49.15},{"$f":"IF($A7=\"\",\"\",IF(OR(VLOOKUP($A7,Economática!$A$3:$AI$823,11,FALSE)=0,VLOOKUP($A7,Economática!$A$3:$AI$823,11,FALSE)=\"-\"),1/0,VLOOKUP($A7,Economática!$A$3:$AI$823,11,FALSE)))","v":163.05000000000001},{"$f":"IF($A7=\"\",\"\",IF(OR(VLOOKUP($A7,Economática!$A$3:$AI$823,12,FALSE)=0,VLOOKUP($A7,Economática!$A$3:$AI$823,12,FALSE)=\"-\"),1/0,VLOOKUP($A7,Economática!$A$3:$AI$823,12,FALSE)))","v":173.87},{"$f":"IF($A7=\"\",\"\",IF(OR(VLOOKUP($A7,Economática!$A$3:$AI$823,13,FALSE)=0,VLOOKUP($A7,Economática!$A$3:$AI$823,13,FALSE)=\"-\"),1/0,VLOOKUP($A7,Economática!$A$3:$AI$823,13,FALSE)))","v":9.42},{"$f":"IF($A7=\"\",\"\",IF(OR(VLOOKUP($A7,Economática!$A$3:$AI$823,14,FALSE)=0,VLOOKUP($A7,Economática!$A$3:$AI$823,14,FALSE)=\"-\"),1/0,VLOOKUP($A7,Economática!$A$3:$AI$823,14,FALSE)))","v":2.38},{"$f":"IF($A7=\"\",\"\",IF(OR(VLOOKUP($A7,Economática!$A$3:$AI$823,15,FALSE)=0,VLOOKUP($A7,Economática!$A$3:$AI$823,15,FALSE)=\"-\"),1/0,VLOOKUP($A7,Economática!$A$3:$AI$823,15,FALSE)))","v":4.05},{"$f":"IF($A7=\"\",\"\",IF(OR(VLOOKUP($A7,Economática!$A$3:$AI$823,16,FALSE)=0,VLOOKUP($A7,Economática!$A$3:$AI$823,16,FALSE)=\"-\"),1/0,VLOOKUP($A7,Economática!$A$3:$AI$823,16,FALSE)))","v":8.0299999999999994},{"$f":"IF($A7=\"\",\"\",IF(OR(VLOOKUP($A7,Economática!$A$3:$AI$823,17,FALSE)=0,VLOOKUP($A7,Economática!$A$3:$AI$823,17,FALSE)=\"-\"),1/0,VLOOKUP($A7,Economática!$A$3:$AI$823,17,FALSE)))","v":10.050000000000001},{"$f":"IF($A7=\"\",\"\",IF(OR(VLOOKUP($A7,Economática!$A$3:$AI$823,18,FALSE)=0,VLOOKUP($A7,Economática!$A$3:$AI$823,18,FALSE)=\"-\"),1/0,VLOOKUP($A7,Economática!$A$3:$AI$823,18,FALSE)))","v":9.42},{"$f":"IF($A7=\"\",\"\",IF(OR(VLOOKUP($A7,Economática!$A$3:$AI$823,19,FALSE)=0,VLOOKUP($A7,Economática!$A$3:$AI$823,19,FALSE)=\"-\"),1/0,VLOOKUP($A7,Economática!$A$3:$AI$823,19,FALSE)))","v":10.050000000000001},{"$f":"IF($A7=\"\",\"\",VLOOKUP($A7,Economática!$A$3:$AI$823,20,FALSE)/E7)","v":1.9245499808502489},9.4121026426656442,2.8144614445574772,13.764256716417909,{"$f":"IF($A7=\"\",\"\",IF(OR(VLOOKUP($A7,Economática!$A$3:$AI$823,21,FALSE)/100=0,VLOOKUP($A7,Economática!$A$3:$AI$823,21,FALSE)/100=\"-\"),1/0,VLOOKUP($A7,Economática!$A$3:$AI$823,21,FALSE)/100))","v":0.24229199999999998},{"$f":"IF($A7=\"\",\"\",IF(OR(VLOOKUP($A7,Economática!$A$3:$AI$823,22,FALSE)/100=0,VLOOKUP($A7,Economática!$A$3:$AI$823,22,FALSE)/100=\"-\"),1/0,VLOOKUP($A7,Economática!$A$3:$AI$823,22,FALSE)/100))","v":-0.49022300000000002},{"$f":"IF($A7=\"\",\"\",IF(OR(VLOOKUP($A7,Economática!$A$3:$AI$823,23,FALSE)=0,VLOOKUP($A7,Economática!$A$3:$AI$823,23,FALSE)=\"-\"),1/0,VLOOKUP($A7,Economática!$A$3:$AI$823,23,FALSE)))","v":17.100000000000001},{"$f":"IF($A7=\"\",\"\",IF(OR(VLOOKUP($A7,Economática!$A$3:$AI$823,24,FALSE)=0,VLOOKUP($A7,Economática!$A$3:$AI$823,24,FALSE)=\"-\"),1/0,VLOOKUP($A7,Economática!$A$3:$AI$823,24,FALSE)))","v":17.899999999999999},{"$f":"IF($A7=\"\",\"\",IF(OR(VLOOKUP($A7,Economática!$A$3:$AI$823,25,FALSE)=0,VLOOKUP($A7,Economática!$A$3:$AI$823,25,FALSE)=\"-\"),1/0,VLOOKUP($A7,Economática!$A$3:$AI$823,25,FALSE)))","v":17.899999999999999},{"$f":"IF($A7=\"\",\"\",IF(ISERROR((F7+VLOOKUP($A7,Economática!$A$3:$AI$823,26,FALSE))/Y7),(F7+VLOOKUP($A7,Economática!$A$3:$AI$823,26,FALSE))/Y7,(F7+VLOOKUP($A7,Economática!$A$3:$AI$823,26,FALSE))/Y7))","v":6.3819553072625705},{"$f":"IF($A7=\"\",\"\",IF(OR(-VLOOKUP($A7,Economática!$A$3:$AI$823,27,FALSE)=0,-VLOOKUP($A7,Economática!$A$3:$AI$823,27,FALSE)=\"-\"),1/0,-VLOOKUP($A7,Economática!$A$3:$AI$823,27,FALSE)))","v":3.13},2.2627051254247087E-2,{"$f":"IF($A7=\"\",\"\",IF(OR(VLOOKUP($A7,Economática!$A$3:$AI$823,28,FALSE)=0,VLOOKUP($A7,Economática!$A$3:$AI$823,28,FALSE)=\"-\"),1/0,VLOOKUP($A7,Economática!$A$3:$AI$823,28,FALSE)))","v":7.9},{"$f":"IF($A7=\"\",\"\",IF(OR(VLOOKUP($A7,Economática!$A$3:$AI$823,29,FALSE)=0,VLOOKUP($A7,Economática!$A$3:$AI$823,29,FALSE)=\"-\"),1/0,VLOOKUP($A7,Economática!$A$3:$AI$823,29,FALSE)))","v":152.9},{"$f":"IF($A7=\"\",\"\",IF(OR(VLOOKUP($A7,Economática!$A$3:$AI$823,30,FALSE)/E7=0,VLOOKUP($A7,Economática!$A$3:$AI$823,30,FALSE)/E7=\"-\",VLOOKUP($A7,Economática!$A$3:$AI$823,30,FALSE)/E7<33.33%,VLOOKUP($A7,Economática!$A$3:$AI$823,30,FALSE)/E7>100%),1/0,VLOOKUP($A7,Economática!$A$3:$AI$823,30,FALSE)/E7))","v":0.53619302949061654},"BAUH4",{"$f":"IF($A7=\"\",\"\",IF(OR(VLOOKUP($A7,Economática!$A$3:$AI$823,25,FALSE)=0,VLOOKUP($A7,Economática!$A$3:$AI$823,25,FALSE)=\"-\"),1/0,VLOOKUP($A7,Economática!$A$3:$AI$823,25,FALSE)))","v":17.899999999999999},{"$f":"CONCATENATE(Economática!B9,\" \",Economática!C9)","v":"Excelsior PN"}]
[{"$f":"IF(Economática!AG10=\"\",\"\",Economática!AG10)","v":"ABEV3"},{"$f":"IF($A8=\"\",\"\",VLOOKUP(VLOOKUP($A8,Economática!$A$3:$AI$823,6,FALSE),Correção!$B$16:$C$36,2,FALSE))","v":"Alimentos e Bebidas"},{"$f":"IF(Economática!B10=\"\",\"\",Economática!B10)","v":"Ambev S/A"},{"$f":"IF($A8=\"\",\"\",IF(OR(VLOOKUP($A8,Economática!$A$3:$AI$823,8,FALSE)=0,VLOOKUP($A8,Economática!$A$3:$AI$823,8,FALSE)=\"-\"),1/0,VLOOKUP($A8,Economática!$A$3:$AI$823,8,FALSE)))","v":16.829999999999998},{"$f":"IF(A8=\"\",\"\",IF(ISERROR(VLOOKUP(A8,Correção!$B$2:$G$13,9,FALSE)),VLOOKUP($A8,Economática!$A$3:$AI$823,9,FALSE),VLOOKUP(A8,Correção!$B$2:$G$13,9,FALSE)))","v":15721.119000000001},{"$f":"IF($A8=\"\",\"\",Economática!G10)","v":264586.43},{"$f":"IF($A8=\"\",\"\",IF(OR(VLOOKUP($A8,Economática!$A$3:$AI$823,10,FALSE)=0,VLOOKUP($A8,Economática!$A$3:$AI$823,10,FALSE)=\"-\"),1/0,VLOOKUP($A8,Economática!$A$3:$AI$823,10,FALSE)))","v":56340.62},{"$f":"IF($A8=\"\",\"\",IF(OR(VLOOKUP($A8,Economática!$A$3:$AI$823,11,FALSE)=0,VLOOKUP($A8,Economática!$A$3:$AI$823,11,FALSE)=\"-\"),1/0,VLOOKUP($A8,Economática!$A$3:$AI$823,11,FALSE)))","v":47899.28},{"$f":"IF($A8=\"\",\"\",IF(OR(VLOOKUP($A8,Economática!$A$3:$AI$823,12,FALSE)=0,VLOOKUP($A8,Economática!$A$3:$AI$823,12,FALSE)=\"-\"),1/0,VLOOKUP($A8,Economática!$A$3:$AI$823,12,FALSE)))","v":50231.34},{"$f":"IF($A8=\"\",\"\",IF(OR(VLOOKUP($A8,Economática!$A$3:$AI$823,13,FALSE)=0,VLOOKUP($A8,Economática!$A$3:$AI$823,13,FALSE)=\"-\"),1/0,VLOOKUP($A8,Economática!$A$3:$AI$823,13,FALSE)))","v":7331.97},{"$f":"IF($A8=\"\",\"\",IF(OR(VLOOKUP($A8,Economática!$A$3:$AI$823,14,FALSE)=0,VLOOKUP($A8,Economática!$A$3:$AI$823,14,FALSE)=\"-\"),1/0,VLOOKUP($A8,Economática!$A$3:$AI$823,14,FALSE)))","v":2515.96},{"$f":"IF($A8=\"\",\"\",IF(OR(VLOOKUP($A8,Economática!$A$3:$AI$823,15,FALSE)=0,VLOOKUP($A8,Economática!$A$3:$AI$823,15,FALSE)=\"-\"),1/0,VLOOKUP($A8,Economática!$A$3:$AI$823,15,FALSE)))","v":4833.1099999999997},{"$f":"IF($A8=\"\",\"\",IF(OR(VLOOKUP($A8,Economática!$A$3:$AI$823,16,FALSE)=0,VLOOKUP($A8,Economática!$A$3:$AI$823,16,FALSE)=\"-\"),1/0,VLOOKUP($A8,Economática!$A$3:$AI$823,16,FALSE)))","v":7664.27},{"$f":"IF($A8=\"\",\"\",IF(OR(VLOOKUP($A8,Economática!$A$3:$AI$823,17,FALSE)=0,VLOOKUP($A8,Economática!$A$3:$AI$823,17,FALSE)=\"-\"),1/0,VLOOKUP($A8,Economática!$A$3:$AI$823,17,FALSE)))","v":11024.68},{"$f":"IF($A8=\"\",\"\",IF(OR(VLOOKUP($A8,Economática!$A$3:$AI$823,18,FALSE)=0,VLOOKUP($A8,Economática!$A$3:$AI$823,18,FALSE)=\"-\"),1/0,VLOOKUP($A8,Economática!$A$3:$AI$823,18,FALSE)))","v":7331.97},{"$f":"IF($A8=\"\",\"\",IF(OR(VLOOKUP($A8,Economática!$A$3:$AI$823,19,FALSE)=0,VLOOKUP($A8,Economática!$A$3:$AI$823,19,FALSE)=\"-\"),1/0,VLOOKUP($A8,Economática!$A$3:$AI$823,19,FALSE)))","v":11024.68},{"$f":"IF($A8=\"\",\"\",VLOOKUP($A8,Economática!$A$3:$AI$823,20,FALSE)/E8)","v":0.7012656032945237},3.5837538027668385,4.6961931333024021,23.999465995384899,{"$f":"IF($A8=\"\",\"\",IF(OR(VLOOKUP($A8,Economática!$A$3:$AI$823,21,FALSE)/100=0,VLOOKUP($A8,Economática!$A$3:$AI$823,21,FALSE)/100=\"-\"),1/0,VLOOKUP($A8,Economática!$A$3:$AI$823,21,FALSE)/100))","v":0.23711400000000002},{"$f":"IF($A8=\"\",\"\",IF(OR(VLOOKUP($A8,Economática!$A$3:$AI$823,22,FALSE)/100=0,VLOOKUP($A8,Economática!$A$3:$AI$823,22,FALSE)/100=\"-\"),1/0,VLOOKUP($A8,Economática!$A$3:$AI$823,22,FALSE)/100))","v":-0.157333},{"$f":"IF($A8=\"\",\"\",IF(OR(VLOOKUP($A8,Economática!$A$3:$AI$823,23,FALSE)=0,VLOOKUP($A8,Economática!$A$3:$AI$823,23,FALSE)=\"-\"),1/0,VLOOKUP($A8,Economática!$A$3:$AI$823,23,FALSE)))","v":20035.8},{"$f":"IF($A8=\"\",\"\",IF(OR(VLOOKUP($A8,Economática!$A$3:$AI$823,24,FALSE)=0,VLOOKUP($A8,Economática!$A$3:$AI$823,24,FALSE)=\"-\"),1/0,VLOOKUP($A8,Economática!$A$3:$AI$823,24,FALSE)))","v":21013.5},{"$f":"IF($A8=\"\",\"\",IF(OR(VLOOKUP($A8,Economática!$A$3:$AI$823,25,FALSE)=0,VLOOKUP($A8,Economática!$A$3:$AI$823,25,FALSE)=\"-\"),1/0,VLOOKUP($A8,Economática!$A$3:$AI$823,25,FALSE)))","v":21013.5},{"$f":"IF($A8=\"\",\"\",IF(ISERROR((F8+VLOOKUP($A8,Economática!$A$3:$AI$823,26,FALSE))/Y8),(F8+VLOOKUP($A8,Economática!$A$3:$AI$823,26,FALSE))/Y8,(F8+VLOOKUP($A8,Economática!$A$3:$AI$823,26,FALSE))/Y8))","v":12.160387798320128},{"$f":"IF($A8=\"\",\"\",IF(OR(-VLOOKUP($A8,Economática!$A$3:$AI$823,27,FALSE)=0,-VLOOKUP($A8,Economática!$A$3:$AI$823,27,FALSE)=\"-\"),1/0,-VLOOKUP($A8,Economática!$A$3:$AI$823,27,FALSE)))","v":8598.1200000000008},3.2496451159645647E-2,{"$f":"IF($A8=\"\",\"\",IF(OR(VLOOKUP($A8,Economática!$A$3:$AI$823,28,FALSE)=0,VLOOKUP($A8,Economática!$A$3:$AI$823,28,FALSE)=\"-\"),1/0,VLOOKUP($A8,Economática!$A$3:$AI$823,28,FALSE)))","v":-2.2999999999999998},{"$f":"IF($A8=\"\",\"\",IF(OR(VLOOKUP($A8,Economática!$A$3:$AI$823,29,FALSE)=0,VLOOKUP($A8,Economática!$A$3:$AI$823,29,FALSE)=\"-\"),1/0,VLOOKUP($A8,Economática!$A$3:$AI$823,29,FALSE)))","v":-18.3},{"$f":"IF($A8=\"\",\"\",IF(OR(VLOOKUP($A8,Economática!$A$3:$AI$823,30,FALSE)/E8=0,VLOOKUP($A8,Economática!$A$3:$AI$823,30,FALSE)/E8=\"-\",VLOOKUP($A8,Economática!$A$3:$AI$823,30,FALSE)/E8<33.33%,VLOOKUP($A8,Economática!$A$3:$AI$823,30,FALSE)/E8>100%),1/0,VLOOKUP($A8,Economática!$A$3:$AI$823,30,FALSE)/E8))","v":{"$error":"#DIV/0!"}},"ABEV3",{"$f":"IF($A8=\"\",\"\",IF(OR(VLOOKUP($A8,Economática!$A$3:$AI$823,25,FALSE)=0,VLOOKUP($A8,Economática!$A$3:$AI$823,25,FALSE)=\"-\"),1/0,VLOOKUP($A8,Economática!$A$3:$AI$823,25,FALSE)))","v":21013.5},{"$f":"CONCATENATE(Economática!B10,\" \",Economática!C10)","v":"Ambev S/A ON"}]
[{"$f":"IF(Economática!AG11=\"\",\"\",Economática!AG11)","v":"CAML3"},{"$f":"IF($A9=\"\",\"\",VLOOKUP(VLOOKUP($A9,Economática!$A$3:$AI$823,6,FALSE),Correção!$B$16:$C$36,2,FALSE))","v":"Alimentos e Bebidas"},{"$f":"IF(Economática!B11=\"\",\"\",Economática!B11)","v":"Camil"},{"$f":"IF($A9=\"\",\"\",IF(OR(VLOOKUP($A9,Economática!$A$3:$AI$823,8,FALSE)=0,VLOOKUP($A9,Economática!$A$3:$AI$823,8,FALSE)=\"-\"),1/0,VLOOKUP($A9,Economática!$A$3:$AI$823,8,FALSE)))","v":6.81},{"$f":"IF(A9=\"\",\"\",IF(ISERROR(VLOOKUP(A9,Correção!$B$2:$G$13,9,FALSE)),VLOOKUP($A9,Economática!$A$3:$AI$823,9,FALSE),VLOOKUP(A9,Correção!$B$2:$G$13,9,FALSE)))","v":404.23},{"$f":"IF($A9=\"\",\"\",Economática!G11)","v":2752.81},{"$f":"IF($A9=\"\",\"\",IF(OR(VLOOKUP($A9,Economática!$A$3:$AI$823,10,FALSE)=0,VLOOKUP($A9,Economática!$A$3:$AI$823,10,FALSE)=\"-\"),1/0,VLOOKUP($A9,Economática!$A$3:$AI$823,10,FALSE)))","v":2091.19},{"$f":"IF($A9=\"\",\"\",IF(OR(VLOOKUP($A9,Economática!$A$3:$AI$823,11,FALSE)=0,VLOOKUP($A9,Economática!$A$3:$AI$823,11,FALSE)=\"-\"),1/0,VLOOKUP($A9,Economática!$A$3:$AI$823,11,FALSE)))","v":{"$error":"#DIV/0!"}},{"$f":"IF($A9=\"\",\"\",IF(OR(VLOOKUP($A9,Economática!$A$3:$AI$823,12,FALSE)=0,VLOOKUP($A9,Economática!$A$3:$AI$823,12,FALSE)=\"-\"),1/0,VLOOKUP($A9,Economática!$A$3:$AI$823,12,FALSE)))","v":{"$error":"#DIV/0!"}},{"$f":"IF($A9=\"\",\"\",IF(OR(VLOOKUP($A9,Economática!$A$3:$AI$823,13,FALSE)=0,VLOOKUP($A9,Economática!$A$3:$AI$823,13,FALSE)=\"-\"),1/0,VLOOKUP($A9,Economática!$A$3:$AI$823,13,FALSE)))","v":173.43},{"$f":"IF($A9=\"\",\"\",IF(OR(VLOOKUP($A9,Economática!$A$3:$AI$823,14,FALSE)=0,VLOOKUP($A9,Economática!$A$3:$AI$823,14,FALSE)=\"-\"),1/0,VLOOKUP($A9,Economática!$A$3:$AI$823,14,FALSE)))","v":250.67},{"$f":"IF($A9=\"\",\"\",IF(OR(VLOOKUP($A9,Economática!$A$3:$AI$823,15,FALSE)=0,VLOOKUP($A9,Economática!$A$3:$AI$823,15,FALSE)=\"-\"),1/0,VLOOKUP($A9,Economática!$A$3:$AI$823,15,FALSE)))","v":32.56},{"$f":"IF($A9=\"\",\"\",IF(OR(VLOOKUP($A9,Economática!$A$3:$AI$823,16,FALSE)=0,VLOOKUP($A9,Economática!$A$3:$AI$823,16,FALSE)=\"-\"),1/0,VLOOKUP($A9,Economática!$A$3:$AI$823,16,FALSE)))","v":111.63},{"$f":"IF($A9=\"\",\"\",IF(OR(VLOOKUP($A9,Economática!$A$3:$AI$823,17,FALSE)=0,VLOOKUP($A9,Economática!$A$3:$AI$823,17,FALSE)=\"-\"),1/0,VLOOKUP($A9,Economática!$A$3:$AI$823,17,FALSE)))","v":261.93},{"$f":"IF($A9=\"\",\"\",IF(OR(VLOOKUP($A9,Economática!$A$3:$AI$823,18,FALSE)=0,VLOOKUP($A9,Economática!$A$3:$AI$823,18,FALSE)=\"-\"),1/0,VLOOKUP($A9,Economática!$A$3:$AI$823,18,FALSE)))","v":{"$error":"#DIV/0!"}},{"$f":"IF($A9=\"\",\"\",IF(OR(VLOOKUP($A9,Economática!$A$3:$AI$823,19,FALSE)=0,VLOOKUP($A9,Economática!$A$3:$AI$823,19,FALSE)=\"-\"),1/0,VLOOKUP($A9,Economática!$A$3:$AI$823,19,FALSE)))","v":{"$error":"#DIV/0!"}},{"$f":"IF($A9=\"\",\"\",VLOOKUP($A9,Economática!$A$3:$AI$823,20,FALSE)/E9)","v":0.83905202483734509},5.1732676941345277,1.3163826816310329,8.116302444202022,{"$f":"IF($A9=\"\",\"\",IF(OR(VLOOKUP($A9,Economática!$A$3:$AI$823,21,FALSE)/100=0,VLOOKUP($A9,Economática!$A$3:$AI$823,21,FALSE)/100=\"-\"),1/0,VLOOKUP($A9,Economática!$A$3:$AI$823,21,FALSE)/100))","v":0.186252},{"$f":"IF($A9=\"\",\"\",IF(OR(VLOOKUP($A9,Economática!$A$3:$AI$823,22,FALSE)/100=0,VLOOKUP($A9,Economática!$A$3:$AI$823,22,FALSE)/100=\"-\"),1/0,VLOOKUP($A9,Economática!$A$3:$AI$823,22,FALSE)/100))","v":0.44219299999999995},{"$f":"IF($A9=\"\",\"\",IF(OR(VLOOKUP($A9,Economática!$A$3:$AI$823,23,FALSE)=0,VLOOKUP($A9,Economática!$A$3:$AI$823,23,FALSE)=\"-\"),1/0,VLOOKUP($A9,Economática!$A$3:$AI$823,23,FALSE)))","v":{"$error":"#DIV/0!"}},{"$f":"IF($A9=\"\",\"\",IF(OR(VLOOKUP($A9,Economática!$A$3:$AI$823,24,FALSE)=0,VLOOKUP($A9,Economática!$A$3:$AI$823,24,FALSE)=\"-\"),1/0,VLOOKUP($A9,Economática!$A$3:$AI$823,24,FALSE)))","v":{"$error":"#DIV/0!"}},{"$f":"IF($A9=\"\",\"\",IF(OR(VLOOKUP($A9,Economática!$A$3:$AI$823,25,FALSE)=0,VLOOKUP($A9,Economática!$A$3:$AI$823,25,FALSE)=\"-\"),1/0,VLOOKUP($A9,Economática!$A$3:$AI$823,25,FALSE)))","v":487.4},{"$f":"IF($A9=\"\",\"\",IF(ISERROR((F9+VLOOKUP($A9,Economática!$A$3:$AI$823,26,FALSE))/Y9),(F9+VLOOKUP($A9,Economática!$A$3:$AI$823,26,FALSE))/Y9,(F9+VLOOKUP($A9,Economática!$A$3:$AI$823,26,FALSE))/Y9))","v":7.5451764464505535},{"$f":"IF($A9=\"\",\"\",IF(OR(-VLOOKUP($A9,Economática!$A$3:$AI$823,27,FALSE)=0,-VLOOKUP($A9,Economática!$A$3:$AI$823,27,FALSE)=\"-\"),1/0,-VLOOKUP($A9,Economática!$A$3:$AI$823,27,FALSE)))","v":85},3.0877539677638486E-2,{"$f":"IF($A9=\"\",\"\",IF(OR(VLOOKUP($A9,Economática!$A$3:$AI$823,28,FALSE)=0,VLOOKUP($A9,Economática!$A$3:$AI$823,28,FALSE)=\"-\"),1/0,VLOOKUP($A9,Economática!$A$3:$AI$823,28,FALSE)))","v":-5.3},{"$f":"IF($A9=\"\",\"\",IF(OR(VLOOKUP($A9,Economática!$A$3:$AI$823,29,FALSE)=0,VLOOKUP($A9,Economática!$A$3:$AI$823,29,FALSE)=\"-\"),1/0,VLOOKUP($A9,Economática!$A$3:$AI$823,29,FALSE)))","v":-11},{"$f":"IF($A9=\"\",\"\",IF(OR(VLOOKUP($A9,Economática!$A$3:$AI$823,30,FALSE)/E9=0,VLOOKUP($A9,Economática!$A$3:$AI$823,30,FALSE)/E9=\"-\",VLOOKUP($A9,Economática!$A$3:$AI$823,30,FALSE)/E9<33.33%,VLOOKUP($A9,Economática!$A$3:$AI$823,30,FALSE)/E9>100%),1/0,VLOOKUP($A9,Economática!$A$3:$AI$823,30,FALSE)/E9))","v":{"$error":"#DIV/0!"}},"CAML3",{"$f":"IF($A9=\"\",\"\",IF(OR(VLOOKUP($A9,Economática!$A$3:$AI$823,25,FALSE)=0,VLOOKUP($A9,Economática!$A$3:$AI$823,25,FALSE)=\"-\"),1/0,VLOOKUP($A9,Economática!$A$3:$AI$823,25,FALSE)))","v":487.4},{"$f":"CONCATENATE(Economática!B11,\" \",Economática!C11)","v":"Camil ON"}]
[{"$f":"IF(Economática!AG12=\"\",\"\",Economática!AG12)","v":"MDIA3"},{"$f":"IF($A10=\"\",\"\",VLOOKUP(VLOOKUP($A10,Economática!$A$3:$AI$823,6,FALSE),Correção!$B$16:$C$36,2,FALSE))","v":"Alimentos e Bebidas"},{"$f":"IF(Economática!B12=\"\",\"\",Economática!B12)","v":"M.Diasbranco"},{"$f":"IF($A10=\"\",\"\",IF(OR(VLOOKUP($A10,Economática!$A$3:$AI$823,8,FALSE)=0,VLOOKUP($A10,Economática!$A$3:$AI$823,8,FALSE)=\"-\"),1/0,VLOOKUP($A10,Economática!$A$3:$AI$823,8,FALSE)))","v":43.45},{"$f":"IF(A10=\"\",\"\",IF(ISERROR(VLOOKUP(A10,Correção!$B$2:$G$13,9,FALSE)),VLOOKUP($A10,Economática!$A$3:$AI$823,9,FALSE),VLOOKUP(A10,Correção!$B$2:$G$13,9,FALSE)))","v":339},{"$f":"IF($A10=\"\",\"\",Economática!G12)","v":14729.55},{"$f":"IF($A10=\"\",\"\",IF(OR(VLOOKUP($A10,Economática!$A$3:$AI$823,10,FALSE)=0,VLOOKUP($A10,Economática!$A$3:$AI$823,10,FALSE)=\"-\"),1/0,VLOOKUP($A10,Economática!$A$3:$AI$823,10,FALSE)))","v":5561.84},{"$f":"IF($A10=\"\",\"\",IF(OR(VLOOKUP($A10,Economática!$A$3:$AI$823,11,FALSE)=0,VLOOKUP($A10,Economática!$A$3:$AI$823,11,FALSE)=\"-\"),1/0,VLOOKUP($A10,Economática!$A$3:$AI$823,11,FALSE)))","v":5415.42},{"$f":"IF($A10=\"\",\"\",IF(OR(VLOOKUP($A10,Economática!$A$3:$AI$823,12,FALSE)=0,VLOOKUP($A10,Economática!$A$3:$AI$823,12,FALSE)=\"-\"),1/0,VLOOKUP($A10,Economática!$A$3:$AI$823,12,FALSE)))","v":6025.05},{"$f":"IF($A10=\"\",\"\",IF(OR(VLOOKUP($A10,Economática!$A$3:$AI$823,13,FALSE)=0,VLOOKUP($A10,Economática!$A$3:$AI$823,13,FALSE)=\"-\"),1/0,VLOOKUP($A10,Economática!$A$3:$AI$823,13,FALSE)))","v":844.18},{"$f":"IF($A10=\"\",\"\",IF(OR(VLOOKUP($A10,Economática!$A$3:$AI$823,14,FALSE)=0,VLOOKUP($A10,Economática!$A$3:$AI$823,14,FALSE)=\"-\"),1/0,VLOOKUP($A10,Economática!$A$3:$AI$823,14,FALSE)))","v":139.78},{"$f":"IF($A10=\"\",\"\",IF(OR(VLOOKUP($A10,Economática!$A$3:$AI$823,15,FALSE)=0,VLOOKUP($A10,Economática!$A$3:$AI$823,15,FALSE)=\"-\"),1/0,VLOOKUP($A10,Economática!$A$3:$AI$823,15,FALSE)))","v":349.4},{"$f":"IF($A10=\"\",\"\",IF(OR(VLOOKUP($A10,Economática!$A$3:$AI$823,16,FALSE)=0,VLOOKUP($A10,Economática!$A$3:$AI$823,16,FALSE)=\"-\"),1/0,VLOOKUP($A10,Economática!$A$3:$AI$823,16,FALSE)))","v":583.69000000000005},{"$f":"IF($A10=\"\",\"\",IF(OR(VLOOKUP($A10,Economática!$A$3:$AI$823,17,FALSE)=0,VLOOKUP($A10,Economática!$A$3:$AI$823,17,FALSE)=\"-\"),1/0,VLOOKUP($A10,Economática!$A$3:$AI$823,17,FALSE)))","v":723.5},{"$f":"IF($A10=\"\",\"\",IF(OR(VLOOKUP($A10,Economática!$A$3:$AI$823,18,FALSE)=0,VLOOKUP($A10,Economática!$A$3:$AI$823,18,FALSE)=\"-\"),1/0,VLOOKUP($A10,Economática!$A$3:$AI$823,18,FALSE)))","v":844.18},{"$f":"IF($A10=\"\",\"\",IF(OR(VLOOKUP($A10,Economática!$A$3:$AI$823,19,FALSE)=0,VLOOKUP($A10,Economática!$A$3:$AI$823,19,FALSE)=\"-\"),1/0,VLOOKUP($A10,Economática!$A$3:$AI$823,19,FALSE)))","v":723.5},{"$f":"IF($A10=\"\",\"\",VLOOKUP($A10,Economática!$A$3:$AI$823,20,FALSE)/E10)","v":2.1342182890855459},16.40660766961652,2.6483232167771815,20.35874222529371,{"$f":"IF($A10=\"\",\"\",IF(OR(VLOOKUP($A10,Economática!$A$3:$AI$823,21,FALSE)/100=0,VLOOKUP($A10,Economática!$A$3:$AI$823,21,FALSE)/100=\"-\"),1/0,VLOOKUP($A10,Economática!$A$3:$AI$823,21,FALSE)/100))","v":0.14493400000000001},{"$f":"IF($A10=\"\",\"\",IF(OR(VLOOKUP($A10,Economática!$A$3:$AI$823,22,FALSE)/100=0,VLOOKUP($A10,Economática!$A$3:$AI$823,22,FALSE)/100=\"-\"),1/0,VLOOKUP($A10,Economática!$A$3:$AI$823,22,FALSE)/100))","v":0.14344200000000001},{"$f":"IF($A10=\"\",\"\",IF(OR(VLOOKUP($A10,Economática!$A$3:$AI$823,23,FALSE)=0,VLOOKUP($A10,Economática!$A$3:$AI$823,23,FALSE)=\"-\"),1/0,VLOOKUP($A10,Economática!$A$3:$AI$823,23,FALSE)))","v":966.3},{"$f":"IF($A10=\"\",\"\",IF(OR(VLOOKUP($A10,Economática!$A$3:$AI$823,24,FALSE)=0,VLOOKUP($A10,Economática!$A$3:$AI$823,24,FALSE)=\"-\"),1/0,VLOOKUP($A10,Economática!$A$3:$AI$823,24,FALSE)))","v":933.1},{"$f":"IF($A10=\"\",\"\",IF(OR(VLOOKUP($A10,Economática!$A$3:$AI$823,25,FALSE)=0,VLOOKUP($A10,Economática!$A$3:$AI$823,25,FALSE)=\"-\"),1/0,VLOOKUP($A10,Economática!$A$3:$AI$823,25,FALSE)))","v":933.1},{"$f":"IF($A10=\"\",\"\",IF(ISERROR((F10+VLOOKUP($A10,Economática!$A$3:$AI$823,26,FALSE))/Y10),(F10+VLOOKUP($A10,Economática!$A$3:$AI$823,26,FALSE))/Y10,(F10+VLOOKUP($A10,Economática!$A$3:$AI$823,26,FALSE))/Y10))","v":16.640610867002465},{"$f":"IF($A10=\"\",\"\",IF(OR(-VLOOKUP($A10,Economática!$A$3:$AI$823,27,FALSE)=0,-VLOOKUP($A10,Economática!$A$3:$AI$823,27,FALSE)=\"-\"),1/0,-VLOOKUP($A10,Economática!$A$3:$AI$823,27,FALSE)))","v":132.37},8.9866968101537398E-3,{"$f":"IF($A10=\"\",\"\",IF(OR(VLOOKUP($A10,Economática!$A$3:$AI$823,28,FALSE)=0,VLOOKUP($A10,Economática!$A$3:$AI$823,28,FALSE)=\"-\"),1/0,VLOOKUP($A10,Economática!$A$3:$AI$823,28,FALSE)))","v":-7.5},{"$f":"IF($A10=\"\",\"\",IF(OR(VLOOKUP($A10,Economática!$A$3:$AI$823,29,FALSE)=0,VLOOKUP($A10,Economática!$A$3:$AI$823,29,FALSE)=\"-\"),1/0,VLOOKUP($A10,Economática!$A$3:$AI$823,29,FALSE)))","v":-15.8},{"$f":"IF($A10=\"\",\"\",IF(OR(VLOOKUP($A10,Economática!$A$3:$AI$823,30,FALSE)/E10=0,VLOOKUP($A10,Economática!$A$3:$AI$823,30,FALSE)/E10=\"-\",VLOOKUP($A10,Economática!$A$3:$AI$823,30,FALSE)/E10<33.33%,VLOOKUP($A10,Economática!$A$3:$AI$823,30,FALSE)/E10>100%),1/0,VLOOKUP($A10,Economática!$A$3:$AI$823,30,FALSE)/E10))","v":1},"MDIA3",{"$f":"IF($A10=\"\",\"\",IF(OR(VLOOKUP($A10,Economática!$A$3:$AI$823,25,FALSE)=0,VLOOKUP($A10,Economática!$A$3:$AI$823,25,FALSE)=\"-\"),1/0,VLOOKUP($A10,Economática!$A$3:$AI$823,25,FALSE)))","v":933.1},{"$f":"CONCATENATE(Economática!B12,\" \",Economática!C12)","v":"M.Diasbranco ON"}]
[{"$f":"IF(Economática!AG13=\"\",\"\",Economática!AG13)","v":"SMTO3"},{"$f":"IF($A11=\"\",\"\",VLOOKUP(VLOOKUP($A11,Economática!$A$3:$AI$823,6,FALSE),Correção!$B$16:$C$36,2,FALSE))","v":"Alimentos e Bebidas"},{"$f":"IF(Economática!B13=\"\",\"\",Economática!B13)","v":"Sao Martinho"},{"$f":"IF($A11=\"\",\"\",IF(OR(VLOOKUP($A11,Economática!$A$3:$AI$823,8,FALSE)=0,VLOOKUP($A11,Economática!$A$3:$AI$823,8,FALSE)=\"-\"),1/0,VLOOKUP($A11,Economática!$A$3:$AI$823,8,FALSE)))","v":18.34},{"$f":"IF(A11=\"\",\"\",IF(ISERROR(VLOOKUP(A11,Correção!$B$2:$G$13,9,FALSE)),VLOOKUP($A11,Economática!$A$3:$AI$823,9,FALSE),VLOOKUP(A11,Correção!$B$2:$G$13,9,FALSE)))","v":350.803},{"$f":"IF($A11=\"\",\"\",Economática!G13)","v":6433.72},{"$f":"IF($A11=\"\",\"\",IF(OR(VLOOKUP($A11,Economática!$A$3:$AI$823,10,FALSE)=0,VLOOKUP($A11,Economática!$A$3:$AI$823,10,FALSE)=\"-\"),1/0,VLOOKUP($A11,Economática!$A$3:$AI$823,10,FALSE)))","v":3344.62},{"$f":"IF($A11=\"\",\"\",IF(OR(VLOOKUP($A11,Economática!$A$3:$AI$823,11,FALSE)=0,VLOOKUP($A11,Economática!$A$3:$AI$823,11,FALSE)=\"-\"),1/0,VLOOKUP($A11,Economática!$A$3:$AI$823,11,FALSE)))","v":2321.36},{"$f":"IF($A11=\"\",\"\",IF(OR(VLOOKUP($A11,Economática!$A$3:$AI$823,12,FALSE)=0,VLOOKUP($A11,Economática!$A$3:$AI$823,12,FALSE)=\"-\"),1/0,VLOOKUP($A11,Economática!$A$3:$AI$823,12,FALSE)))","v":2236.67},{"$f":"IF($A11=\"\",\"\",IF(OR(VLOOKUP($A11,Economática!$A$3:$AI$823,13,FALSE)=0,VLOOKUP($A11,Economática!$A$3:$AI$823,13,FALSE)=\"-\"),1/0,VLOOKUP($A11,Economática!$A$3:$AI$823,13,FALSE)))","v":338.37},{"$f":"IF($A11=\"\",\"\",IF(OR(VLOOKUP($A11,Economática!$A$3:$AI$823,14,FALSE)=0,VLOOKUP($A11,Economática!$A$3:$AI$823,14,FALSE)=\"-\"),1/0,VLOOKUP($A11,Economática!$A$3:$AI$823,14,FALSE)))","v":491.71},{"$f":"IF($A11=\"\",\"\",IF(OR(VLOOKUP($A11,Economática!$A$3:$AI$823,15,FALSE)=0,VLOOKUP($A11,Economática!$A$3:$AI$823,15,FALSE)=\"-\"),1/0,VLOOKUP($A11,Economática!$A$3:$AI$823,15,FALSE)))","v":103.96},{"$f":"IF($A11=\"\",\"\",IF(OR(VLOOKUP($A11,Economática!$A$3:$AI$823,16,FALSE)=0,VLOOKUP($A11,Economática!$A$3:$AI$823,16,FALSE)=\"-\"),1/0,VLOOKUP($A11,Economática!$A$3:$AI$823,16,FALSE)))","v":162.51},{"$f":"IF($A11=\"\",\"\",IF(OR(VLOOKUP($A11,Economática!$A$3:$AI$823,17,FALSE)=0,VLOOKUP($A11,Economática!$A$3:$AI$823,17,FALSE)=\"-\"),1/0,VLOOKUP($A11,Economática!$A$3:$AI$823,17,FALSE)))","v":228.44},{"$f":"IF($A11=\"\",\"\",IF(OR(VLOOKUP($A11,Economática!$A$3:$AI$823,18,FALSE)=0,VLOOKUP($A11,Economática!$A$3:$AI$823,18,FALSE)=\"-\"),1/0,VLOOKUP($A11,Economática!$A$3:$AI$823,18,FALSE)))","v":338.37},{"$f":"IF($A11=\"\",\"\",IF(OR(VLOOKUP($A11,Economática!$A$3:$AI$823,19,FALSE)=0,VLOOKUP($A11,Economática!$A$3:$AI$823,19,FALSE)=\"-\"),1/0,VLOOKUP($A11,Economática!$A$3:$AI$823,19,FALSE)))","v":228.44},{"$f":"IF($A11=\"\",\"\",VLOOKUP($A11,Economática!$A$3:$AI$823,20,FALSE)/E11)","v":1.0882746156674827},9.5341830029959826,1.9236047802141949,16.852364041176628,{"$f":"IF($A11=\"\",\"\",IF(OR(VLOOKUP($A11,Economática!$A$3:$AI$823,21,FALSE)/100=0,VLOOKUP($A11,Economática!$A$3:$AI$823,21,FALSE)/100=\"-\"),1/0,VLOOKUP($A11,Economática!$A$3:$AI$823,21,FALSE)/100))","v":0.11311400000000001},{"$f":"IF($A11=\"\",\"\",IF(OR(VLOOKUP($A11,Economática!$A$3:$AI$823,22,FALSE)/100=0,VLOOKUP($A11,Economática!$A$3:$AI$823,22,FALSE)/100=\"-\"),1/0,VLOOKUP($A11,Economática!$A$3:$AI$823,22,FALSE)/100))","v":0.93053799999999998},{"$f":"IF($A11=\"\",\"\",IF(OR(VLOOKUP($A11,Economática!$A$3:$AI$823,23,FALSE)=0,VLOOKUP($A11,Economática!$A$3:$AI$823,23,FALSE)=\"-\"),1/0,VLOOKUP($A11,Economática!$A$3:$AI$823,23,FALSE)))","v":817.3},{"$f":"IF($A11=\"\",\"\",IF(OR(VLOOKUP($A11,Economática!$A$3:$AI$823,24,FALSE)=0,VLOOKUP($A11,Economática!$A$3:$AI$823,24,FALSE)=\"-\"),1/0,VLOOKUP($A11,Economática!$A$3:$AI$823,24,FALSE)))","v":739},{"$f":"IF($A11=\"\",\"\",IF(OR(VLOOKUP($A11,Economática!$A$3:$AI$823,25,FALSE)=0,VLOOKUP($A11,Economática!$A$3:$AI$823,25,FALSE)=\"-\"),1/0,VLOOKUP($A11,Economática!$A$3:$AI$823,25,FALSE)))","v":1616.9},{"$f":"IF($A11=\"\",\"\",IF(ISERROR((F11+VLOOKUP($A11,Economática!$A$3:$AI$823,26,FALSE))/Y11),(F11+VLOOKUP($A11,Economática!$A$3:$AI$823,26,FALSE))/Y11,(F11+VLOOKUP($A11,Economática!$A$3:$AI$823,26,FALSE))/Y11))","v":5.9038963448574426},{"$f":"IF($A11=\"\",\"\",IF(OR(-VLOOKUP($A11,Economática!$A$3:$AI$823,27,FALSE)=0,-VLOOKUP($A11,Economática!$A$3:$AI$823,27,FALSE)=\"-\"),1/0,-VLOOKUP($A11,Economática!$A$3:$AI$823,27,FALSE)))","v":180},2.7977593056583126E-2,{"$f":"IF($A11=\"\",\"\",IF(OR(VLOOKUP($A11,Economática!$A$3:$AI$823,28,FALSE)=0,VLOOKUP($A11,Economática!$A$3:$AI$823,28,FALSE)=\"-\"),1/0,VLOOKUP($A11,Economática!$A$3:$AI$823,28,FALSE)))","v":-2.2999999999999998},{"$f":"IF($A11=\"\",\"\",IF(OR(VLOOKUP($A11,Economática!$A$3:$AI$823,29,FALSE)=0,VLOOKUP($A11,Economática!$A$3:$AI$823,29,FALSE)=\"-\"),1/0,VLOOKUP($A11,Economática!$A$3:$AI$823,29,FALSE)))","v":-2.5},{"$f":"IF($A11=\"\",\"\",IF(OR(VLOOKUP($A11,Economática!$A$3:$AI$823,30,FALSE)/E11=0,VLOOKUP($A11,Economática!$A$3:$AI$823,30,FALSE)/E11=\"-\",VLOOKUP($A11,Economática!$A$3:$AI$823,30,FALSE)/E11<33.33%,VLOOKUP($A11,Economática!$A$3:$AI$823,30,FALSE)/E11>100%),1/0,VLOOKUP($A11,Economática!$A$3:$AI$823,30,FALSE)/E11))","v":{"$error":"#DIV/0!"}},"SMTO3",{"$f":"IF($A11=\"\",\"\",IF(OR(VLOOKUP($A11,Economática!$A$3:$AI$823,25,FALSE)=0,VLOOKUP($A11,Economática!$A$3:$AI$823,25,FALSE)=\"-\"),1/0,VLOOKUP($A11,Economática!$A$3:$AI$823,25,FALSE)))","v":1616.9},{"$f":"CONCATENATE(Economática!B13,\" \",Economática!C13)","v":"Sao Martinho ON"}]
[{"$f":"IF(Economática!AG14=\"\",\"\",Economática!AG14)","v":"JBSS3"},{"$f":"IF($A12=\"\",\"\",VLOOKUP(VLOOKUP($A12,Economática!$A$3:$AI$823,6,FALSE),Correção!$B$16:$C$36,2,FALSE))","v":"Alimentos e Bebidas"},{"$f":"IF(Economática!B14=\"\",\"\",Economática!B14)","v":"JBS"},{"$f":"IF($A12=\"\",\"\",IF(OR(VLOOKUP($A12,Economática!$A$3:$AI$823,8,FALSE)=0,VLOOKUP($A12,Economática!$A$3:$AI$823,8,FALSE)=\"-\"),1/0,VLOOKUP($A12,Economática!$A$3:$AI$823,8,FALSE)))","v":15.92},{"$f":"IF(A12=\"\",\"\",IF(ISERROR(VLOOKUP(A12,Correção!$B$2:$G$13,9,FALSE)),VLOOKUP($A12,Economática!$A$3:$AI$823,9,FALSE),VLOOKUP(A12,Correção!$B$2:$G$13,9,FALSE)))","v":2663.1080000000002},{"$f":"IF($A12=\"\",\"\",Economática!G14)","v":42396.68},{"$f":"IF($A12=\"\",\"\",IF(OR(VLOOKUP($A12,Economática!$A$3:$AI$823,10,FALSE)=0,VLOOKUP($A12,Economática!$A$3:$AI$823,10,FALSE)=\"-\"),1/0,VLOOKUP($A12,Economática!$A$3:$AI$823,10,FALSE)))","v":25647},{"$f":"IF($A12=\"\",\"\",IF(OR(VLOOKUP($A12,Economática!$A$3:$AI$823,11,FALSE)=0,VLOOKUP($A12,Economática!$A$3:$AI$823,11,FALSE)=\"-\"),1/0,VLOOKUP($A12,Economática!$A$3:$AI$823,11,FALSE)))","v":163169.98000000001},{"$f":"IF($A12=\"\",\"\",IF(OR(VLOOKUP($A12,Economática!$A$3:$AI$823,12,FALSE)=0,VLOOKUP($A12,Economática!$A$3:$AI$823,12,FALSE)=\"-\"),1/0,VLOOKUP($A12,Economática!$A$3:$AI$823,12,FALSE)))","v":181680.24},{"$f":"IF($A12=\"\",\"\",IF(OR(VLOOKUP($A12,Economática!$A$3:$AI$823,13,FALSE)=0,VLOOKUP($A12,Economática!$A$3:$AI$823,13,FALSE)=\"-\"),1/0,VLOOKUP($A12,Economática!$A$3:$AI$823,13,FALSE)))","v":534.20000000000005},{"$f":"IF($A12=\"\",\"\",IF(OR(VLOOKUP($A12,Economática!$A$3:$AI$823,14,FALSE)=0,VLOOKUP($A12,Economática!$A$3:$AI$823,14,FALSE)=\"-\"),1/0,VLOOKUP($A12,Economática!$A$3:$AI$823,14,FALSE)))","v":506.52},{"$f":"IF($A12=\"\",\"\",IF(OR(VLOOKUP($A12,Economática!$A$3:$AI$823,15,FALSE)=0,VLOOKUP($A12,Economática!$A$3:$AI$823,15,FALSE)=\"-\"),1/0,VLOOKUP($A12,Economática!$A$3:$AI$823,15,FALSE)))","v":-404.56},{"$f":"IF($A12=\"\",\"\",IF(OR(VLOOKUP($A12,Economática!$A$3:$AI$823,16,FALSE)=0,VLOOKUP($A12,Economática!$A$3:$AI$823,16,FALSE)=\"-\"),1/0,VLOOKUP($A12,Economática!$A$3:$AI$823,16,FALSE)))","v":-538.04999999999995},{"$f":"IF($A12=\"\",\"\",IF(OR(VLOOKUP($A12,Economática!$A$3:$AI$823,17,FALSE)=0,VLOOKUP($A12,Economática!$A$3:$AI$823,17,FALSE)=\"-\"),1/0,VLOOKUP($A12,Economática!$A$3:$AI$823,17,FALSE)))","v":25.2},{"$f":"IF($A12=\"\",\"\",IF(OR(VLOOKUP($A12,Economática!$A$3:$AI$823,18,FALSE)=0,VLOOKUP($A12,Economática!$A$3:$AI$823,18,FALSE)=\"-\"),1/0,VLOOKUP($A12,Economática!$A$3:$AI$823,18,FALSE)))","v":534.20000000000005},{"$f":"IF($A12=\"\",\"\",IF(OR(VLOOKUP($A12,Economática!$A$3:$AI$823,19,FALSE)=0,VLOOKUP($A12,Economática!$A$3:$AI$823,19,FALSE)=\"-\"),1/0,VLOOKUP($A12,Economática!$A$3:$AI$823,19,FALSE)))","v":25.2},{"$f":"IF($A12=\"\",\"\",VLOOKUP($A12,Economática!$A$3:$AI$823,20,FALSE)/E12)","v":9.4626278769017243E-3},9.6304768713848627,1.6530853261590051,1682.4079111111114,{"$f":"IF($A12=\"\",\"\",IF(OR(VLOOKUP($A12,Economática!$A$3:$AI$823,21,FALSE)/100=0,VLOOKUP($A12,Economática!$A$3:$AI$823,21,FALSE)/100=\"-\"),1/0,VLOOKUP($A12,Economática!$A$3:$AI$823,21,FALSE)/100))","v":8.038E-3},{"$f":"IF($A12=\"\",\"\",IF(OR(VLOOKUP($A12,Economática!$A$3:$AI$823,22,FALSE)/100=0,VLOOKUP($A12,Economática!$A$3:$AI$823,22,FALSE)/100=\"-\"),1/0,VLOOKUP($A12,Economática!$A$3:$AI$823,22,FALSE)/100))","v":1.6895939999999998},{"$f":"IF($A12=\"\",\"\",IF(OR(VLOOKUP($A12,Economática!$A$3:$AI$823,23,FALSE)=0,VLOOKUP($A12,Economática!$A$3:$AI$823,23,FALSE)=\"-\"),1/0,VLOOKUP($A12,Economática!$A$3:$AI$823,23,FALSE)))","v":11218.8},{"$f":"IF($A12=\"\",\"\",IF(OR(VLOOKUP($A12,Economática!$A$3:$AI$823,24,FALSE)=0,VLOOKUP($A12,Economática!$A$3:$AI$823,24,FALSE)=\"-\"),1/0,VLOOKUP($A12,Economática!$A$3:$AI$823,24,FALSE)))","v":11988.8},{"$f":"IF($A12=\"\",\"\",IF(OR(VLOOKUP($A12,Economática!$A$3:$AI$823,25,FALSE)=0,VLOOKUP($A12,Economática!$A$3:$AI$823,25,FALSE)=\"-\"),1/0,VLOOKUP($A12,Economática!$A$3:$AI$823,25,FALSE)))","v":11988.8},{"$f":"IF($A12=\"\",\"\",IF(ISERROR((F12+VLOOKUP($A12,Economática!$A$3:$AI$823,26,FALSE))/Y12),(F12+VLOOKUP($A12,Economática!$A$3:$AI$823,26,FALSE))/Y12,(F12+VLOOKUP($A12,Economática!$A$3:$AI$823,26,FALSE))/Y12))","v":7.4748456058988397},{"$f":"IF($A12=\"\",\"\",IF(OR(-VLOOKUP($A12,Economática!$A$3:$AI$823,27,FALSE)=0,-VLOOKUP($A12,Economática!$A$3:$AI$823,27,FALSE)=\"-\"),1/0,-VLOOKUP($A12,Economática!$A$3:$AI$823,27,FALSE)))","v":126.88},2.9926871632401405E-3,{"$f":"IF($A12=\"\",\"\",IF(OR(VLOOKUP($A12,Economática!$A$3:$AI$823,28,FALSE)=0,VLOOKUP($A12,Economática!$A$3:$AI$823,28,FALSE)=\"-\"),1/0,VLOOKUP($A12,Economática!$A$3:$AI$823,28,FALSE)))","v":18.5},{"$f":"IF($A12=\"\",\"\",IF(OR(VLOOKUP($A12,Economática!$A$3:$AI$823,29,FALSE)=0,VLOOKUP($A12,Economática!$A$3:$AI$823,29,FALSE)=\"-\"),1/0,VLOOKUP($A12,Economática!$A$3:$AI$823,29,FALSE)))","v":63.2},{"$f":"IF($A12=\"\",\"\",IF(OR(VLOOKUP($A12,Economática!$A$3:$AI$823,30,FALSE)/E12=0,VLOOKUP($A12,Economática!$A$3:$AI$823,30,FALSE)/E12=\"-\",VLOOKUP($A12,Economática!$A$3:$AI$823,30,FALSE)/E12<33.33%,VLOOKUP($A12,Economática!$A$3:$AI$823,30,FALSE)/E12>100%),1/0,VLOOKUP($A12,Economática!$A$3:$AI$823,30,FALSE)/E12))","v":{"$error":"#DIV/0!"}},"JBSS3",{"$f":"IF($A12=\"\",\"\",IF(OR(VLOOKUP($A12,Economática!$A$3:$AI$823,25,FALSE)=0,VLOOKUP($A12,Economática!$A$3:$AI$823,25,FALSE)=\"-\"),1/0,VLOOKUP($A12,Economática!$A$3:$AI$823,25,FALSE)))","v":11988.8},{"$f":"CONCATENATE(Economática!B14,\" \",Economática!C14)","v":"JBS ON"}]
[{"$f":"IF(Economática!AG15=\"\",\"\",Economática!AG15)","v":"BRFS3"},{"$f":"IF($A13=\"\",\"\",VLOOKUP(VLOOKUP($A13,Economática!$A$3:$AI$823,6,FALSE),Correção!$B$16:$C$36,2,FALSE))","v":"Alimentos e Bebidas"},{"$f":"IF(Economática!B15=\"\",\"\",Economática!B15)","v":"BRF SA"},{"$f":"IF($A13=\"\",\"\",IF(OR(VLOOKUP($A13,Economática!$A$3:$AI$823,8,FALSE)=0,VLOOKUP($A13,Economática!$A$3:$AI$823,8,FALSE)=\"-\"),1/0,VLOOKUP($A13,Economática!$A$3:$AI$823,8,FALSE)))","v":22.65},{"$f":"IF(A13=\"\",\"\",IF(ISERROR(VLOOKUP(A13,Correção!$B$2:$G$13,9,FALSE)),VLOOKUP($A13,Economática!$A$3:$AI$823,9,FALSE),VLOOKUP(A13,Correção!$B$2:$G$13,9,FALSE)))","v":811.41600000000005},{"$f":"IF($A13=\"\",\"\",Economática!G15)","v":18378.57},{"$f":"IF($A13=\"\",\"\",IF(OR(VLOOKUP($A13,Economática!$A$3:$AI$823,10,FALSE)=0,VLOOKUP($A13,Economática!$A$3:$AI$823,10,FALSE)=\"-\"),1/0,VLOOKUP($A13,Economática!$A$3:$AI$823,10,FALSE)))","v":6964.63},{"$f":"IF($A13=\"\",\"\",IF(OR(VLOOKUP($A13,Economática!$A$3:$AI$823,11,FALSE)=0,VLOOKUP($A13,Economática!$A$3:$AI$823,11,FALSE)=\"-\"),1/0,VLOOKUP($A13,Economática!$A$3:$AI$823,11,FALSE)))","v":33469.35},{"$f":"IF($A13=\"\",\"\",IF(OR(VLOOKUP($A13,Economática!$A$3:$AI$823,12,FALSE)=0,VLOOKUP($A13,Economática!$A$3:$AI$823,12,FALSE)=\"-\"),1/0,VLOOKUP($A13,Economática!$A$3:$AI$823,12,FALSE)))","v":30188.42},{"$f":"IF($A13=\"\",\"\",IF(OR(VLOOKUP($A13,Economática!$A$3:$AI$823,13,FALSE)=0,VLOOKUP($A13,Economática!$A$3:$AI$823,13,FALSE)=\"-\"),1/0,VLOOKUP($A13,Economática!$A$3:$AI$823,13,FALSE)))","v":-1125.57},{"$f":"IF($A13=\"\",\"\",IF(OR(VLOOKUP($A13,Economática!$A$3:$AI$823,14,FALSE)=0,VLOOKUP($A13,Economática!$A$3:$AI$823,14,FALSE)=\"-\"),1/0,VLOOKUP($A13,Economática!$A$3:$AI$823,14,FALSE)))","v":-124.32},{"$f":"IF($A13=\"\",\"\",IF(OR(VLOOKUP($A13,Economática!$A$3:$AI$823,15,FALSE)=0,VLOOKUP($A13,Economática!$A$3:$AI$823,15,FALSE)=\"-\"),1/0,VLOOKUP($A13,Economática!$A$3:$AI$823,15,FALSE)))","v":-1709.24},{"$f":"IF($A13=\"\",\"\",IF(OR(VLOOKUP($A13,Economática!$A$3:$AI$823,16,FALSE)=0,VLOOKUP($A13,Economática!$A$3:$AI$823,16,FALSE)=\"-\"),1/0,VLOOKUP($A13,Economática!$A$3:$AI$823,16,FALSE)))","v":-2351.8000000000002},{"$f":"IF($A13=\"\",\"\",IF(OR(VLOOKUP($A13,Economática!$A$3:$AI$823,17,FALSE)=0,VLOOKUP($A13,Economática!$A$3:$AI$823,17,FALSE)=\"-\"),1/0,VLOOKUP($A13,Economática!$A$3:$AI$823,17,FALSE)))","v":-4448.0600000000004},{"$f":"IF($A13=\"\",\"\",IF(OR(VLOOKUP($A13,Economática!$A$3:$AI$823,18,FALSE)=0,VLOOKUP($A13,Economática!$A$3:$AI$823,18,FALSE)=\"-\"),1/0,VLOOKUP($A13,Economática!$A$3:$AI$823,18,FALSE)))","v":-1125.57},{"$f":"IF($A13=\"\",\"\",IF(OR(VLOOKUP($A13,Economática!$A$3:$AI$823,19,FALSE)=0,VLOOKUP($A13,Economática!$A$3:$AI$823,19,FALSE)=\"-\"),1/0,VLOOKUP($A13,Economática!$A$3:$AI$823,19,FALSE)))","v":-4448.0600000000004},{"$f":"IF($A13=\"\",\"\",VLOOKUP($A13,Economática!$A$3:$AI$823,20,FALSE)/E13)","v":-5.4818490145621972},8.5833037554102951,2.6388440448379882,{"$error":"#DIV/0!"},{"$f":"IF($A13=\"\",\"\",IF(OR(VLOOKUP($A13,Economática!$A$3:$AI$823,21,FALSE)/100=0,VLOOKUP($A13,Economática!$A$3:$AI$823,21,FALSE)/100=\"-\"),1/0,VLOOKUP($A13,Economática!$A$3:$AI$823,21,FALSE)/100))","v":-0.38131399999999999},{"$f":"IF($A13=\"\",\"\",IF(OR(VLOOKUP($A13,Economática!$A$3:$AI$823,22,FALSE)/100=0,VLOOKUP($A13,Economática!$A$3:$AI$823,22,FALSE)/100=\"-\"),1/0,VLOOKUP($A13,Economática!$A$3:$AI$823,22,FALSE)/100))","v":2.229069},{"$f":"IF($A13=\"\",\"\",IF(OR(VLOOKUP($A13,Economática!$A$3:$AI$823,23,FALSE)=0,VLOOKUP($A13,Economática!$A$3:$AI$823,23,FALSE)=\"-\"),1/0,VLOOKUP($A13,Economática!$A$3:$AI$823,23,FALSE)))","v":2654.1},{"$f":"IF($A13=\"\",\"\",IF(OR(VLOOKUP($A13,Economática!$A$3:$AI$823,24,FALSE)=0,VLOOKUP($A13,Economática!$A$3:$AI$823,24,FALSE)=\"-\"),1/0,VLOOKUP($A13,Economática!$A$3:$AI$823,24,FALSE)))","v":1540.9},{"$f":"IF($A13=\"\",\"\",IF(OR(VLOOKUP($A13,Economática!$A$3:$AI$823,25,FALSE)=0,VLOOKUP($A13,Economática!$A$3:$AI$823,25,FALSE)=\"-\"),1/0,VLOOKUP($A13,Economática!$A$3:$AI$823,25,FALSE)))","v":1540.9},{"$f":"IF($A13=\"\",\"\",IF(ISERROR((F13+VLOOKUP($A13,Economática!$A$3:$AI$823,26,FALSE))/Y13),(F13+VLOOKUP($A13,Economática!$A$3:$AI$823,26,FALSE))/Y13,(F13+VLOOKUP($A13,Economática!$A$3:$AI$823,26,FALSE))/Y13))","v":22.822647154260498},{"$f":"IF($A13=\"\",\"\",IF(OR(-VLOOKUP($A13,Economática!$A$3:$AI$823,27,FALSE)=0,-VLOOKUP($A13,Economática!$A$3:$AI$823,27,FALSE)=\"-\"),1/0,-VLOOKUP($A13,Economática!$A$3:$AI$823,27,FALSE)))","v":{"$error":"#DIV/0!"}},{"$error":"#DIV/0!"},{"$f":"IF($A13=\"\",\"\",IF(OR(VLOOKUP($A13,Economática!$A$3:$AI$823,28,FALSE)=0,VLOOKUP($A13,Economática!$A$3:$AI$823,28,FALSE)=\"-\"),1/0,VLOOKUP($A13,Economática!$A$3:$AI$823,28,FALSE)))","v":10.1},{"$f":"IF($A13=\"\",\"\",IF(OR(VLOOKUP($A13,Economática!$A$3:$AI$823,29,FALSE)=0,VLOOKUP($A13,Economática!$A$3:$AI$823,29,FALSE)=\"-\"),1/0,VLOOKUP($A13,Economática!$A$3:$AI$823,29,FALSE)))","v":-38.1},{"$f":"IF($A13=\"\",\"\",IF(OR(VLOOKUP($A13,Economática!$A$3:$AI$823,30,FALSE)/E13=0,VLOOKUP($A13,Economática!$A$3:$AI$823,30,FALSE)/E13=\"-\",VLOOKUP($A13,Economática!$A$3:$AI$823,30,FALSE)/E13<33.33%,VLOOKUP($A13,Economática!$A$3:$AI$823,30,FALSE)/E13>100%),1/0,VLOOKUP($A13,Economática!$A$3:$AI$823,30,FALSE)/E13))","v":{"$error":"#DIV/0!"}},"BRFS3",{"$f":"IF($A13=\"\",\"\",IF(OR(VLOOKUP($A13,Economática!$A$3:$AI$823,25,FALSE)=0,VLOOKUP($A13,Economática!$A$3:$AI$823,25,FALSE)=\"-\"),1/0,VLOOKUP($A13,Economática!$A$3:$AI$823,25,FALSE)))","v":1540.9},{"$f":"CONCATENATE(Economática!B15,\" \",Economática!C15)","v":"BRF SA ON"}]
[{"$f":"IF(Economática!AG16=\"\",\"\",Economática!AG16)","v":"BEEF3"},{"$f":"IF($A14=\"\",\"\",VLOOKUP(VLOOKUP($A14,Economática!$A$3:$AI$823,6,FALSE),Correção!$B$16:$C$36,2,FALSE))","v":"Alimentos e Bebidas"},{"$f":"IF(Economática!B16=\"\",\"\",Economática!B16)","v":"Minerva"},{"$f":"IF($A14=\"\",\"\",IF(OR(VLOOKUP($A14,Economática!$A$3:$AI$823,8,FALSE)=0,VLOOKUP($A14,Economática!$A$3:$AI$823,8,FALSE)=\"-\"),1/0,VLOOKUP($A14,Economática!$A$3:$AI$823,8,FALSE)))","v":7.03},{"$f":"IF(A14=\"\",\"\",IF(ISERROR(VLOOKUP(A14,Correção!$B$2:$G$13,9,FALSE)),VLOOKUP($A14,Economática!$A$3:$AI$823,9,FALSE),VLOOKUP(A14,Correção!$B$2:$G$13,9,FALSE)))","v":373.137},{"$f":"IF($A14=\"\",\"\",Economática!G16)","v":2623.15},{"$f":"IF($A14=\"\",\"\",IF(OR(VLOOKUP($A14,Economática!$A$3:$AI$823,10,FALSE)=0,VLOOKUP($A14,Economática!$A$3:$AI$823,10,FALSE)=\"-\"),1/0,VLOOKUP($A14,Economática!$A$3:$AI$823,10,FALSE)))","v":-301.11},{"$f":"IF($A14=\"\",\"\",IF(OR(VLOOKUP($A14,Economática!$A$3:$AI$823,11,FALSE)=0,VLOOKUP($A14,Economática!$A$3:$AI$823,11,FALSE)=\"-\"),1/0,VLOOKUP($A14,Economática!$A$3:$AI$823,11,FALSE)))","v":12103.79},{"$f":"IF($A14=\"\",\"\",IF(OR(VLOOKUP($A14,Economática!$A$3:$AI$823,12,FALSE)=0,VLOOKUP($A14,Economática!$A$3:$AI$823,12,FALSE)=\"-\"),1/0,VLOOKUP($A14,Economática!$A$3:$AI$823,12,FALSE)))","v":16214.91},{"$f":"IF($A14=\"\",\"\",IF(OR(VLOOKUP($A14,Economática!$A$3:$AI$823,13,FALSE)=0,VLOOKUP($A14,Economática!$A$3:$AI$823,13,FALSE)=\"-\"),1/0,VLOOKUP($A14,Economática!$A$3:$AI$823,13,FALSE)))","v":-281.02},{"$f":"IF($A14=\"\",\"\",IF(OR(VLOOKUP($A14,Economática!$A$3:$AI$823,14,FALSE)=0,VLOOKUP($A14,Economática!$A$3:$AI$823,14,FALSE)=\"-\"),1/0,VLOOKUP($A14,Economática!$A$3:$AI$823,14,FALSE)))","v":-114.72},{"$f":"IF($A14=\"\",\"\",IF(OR(VLOOKUP($A14,Economática!$A$3:$AI$823,15,FALSE)=0,VLOOKUP($A14,Economática!$A$3:$AI$823,15,FALSE)=\"-\"),1/0,VLOOKUP($A14,Economática!$A$3:$AI$823,15,FALSE)))","v":-1040.7},{"$f":"IF($A14=\"\",\"\",IF(OR(VLOOKUP($A14,Economática!$A$3:$AI$823,16,FALSE)=0,VLOOKUP($A14,Economática!$A$3:$AI$823,16,FALSE)=\"-\"),1/0,VLOOKUP($A14,Economática!$A$3:$AI$823,16,FALSE)))","v":-1172.72},{"$f":"IF($A14=\"\",\"\",IF(OR(VLOOKUP($A14,Economática!$A$3:$AI$823,17,FALSE)=0,VLOOKUP($A14,Economática!$A$3:$AI$823,17,FALSE)=\"-\"),1/0,VLOOKUP($A14,Economática!$A$3:$AI$823,17,FALSE)))","v":-1264.78},{"$f":"IF($A14=\"\",\"\",IF(OR(VLOOKUP($A14,Economática!$A$3:$AI$823,18,FALSE)=0,VLOOKUP($A14,Economática!$A$3:$AI$823,18,FALSE)=\"-\"),1/0,VLOOKUP($A14,Economática!$A$3:$AI$823,18,FALSE)))","v":-281.02},{"$f":"IF($A14=\"\",\"\",IF(OR(VLOOKUP($A14,Economática!$A$3:$AI$823,19,FALSE)=0,VLOOKUP($A14,Economática!$A$3:$AI$823,19,FALSE)=\"-\"),1/0,VLOOKUP($A14,Economática!$A$3:$AI$823,19,FALSE)))","v":-1264.78},{"$f":"IF($A14=\"\",\"\",VLOOKUP($A14,Economática!$A$3:$AI$823,20,FALSE)/E14)","v":-3.389586130563305},{"$error":"#DIV/0!"},{"$error":"#DIV/0!"},{"$error":"#DIV/0!"},{"$f":"IF($A14=\"\",\"\",IF(OR(VLOOKUP($A14,Economática!$A$3:$AI$823,21,FALSE)/100=0,VLOOKUP($A14,Economática!$A$3:$AI$823,21,FALSE)/100=\"-\"),1/0,VLOOKUP($A14,Economática!$A$3:$AI$823,21,FALSE)/100))","v":-17.794532999999998},{"$f":"IF($A14=\"\",\"\",IF(OR(VLOOKUP($A14,Economática!$A$3:$AI$823,22,FALSE)/100=0,VLOOKUP($A14,Economática!$A$3:$AI$823,22,FALSE)/100=\"-\"),1/0,VLOOKUP($A14,Economática!$A$3:$AI$823,22,FALSE)/100))","v":-20.160433999999999},{"$f":"IF($A14=\"\",\"\",IF(OR(VLOOKUP($A14,Economática!$A$3:$AI$823,23,FALSE)=0,VLOOKUP($A14,Economática!$A$3:$AI$823,23,FALSE)=\"-\"),1/0,VLOOKUP($A14,Economática!$A$3:$AI$823,23,FALSE)))","v":1134.5999999999999},{"$f":"IF($A14=\"\",\"\",IF(OR(VLOOKUP($A14,Economática!$A$3:$AI$823,24,FALSE)=0,VLOOKUP($A14,Economática!$A$3:$AI$823,24,FALSE)=\"-\"),1/0,VLOOKUP($A14,Economática!$A$3:$AI$823,24,FALSE)))","v":896.2},{"$f":"IF($A14=\"\",\"\",IF(OR(VLOOKUP($A14,Economática!$A$3:$AI$823,25,FALSE)=0,VLOOKUP($A14,Economática!$A$3:$AI$823,25,FALSE)=\"-\"),1/0,VLOOKUP($A14,Economática!$A$3:$AI$823,25,FALSE)))","v":896.2},{"$f":"IF($A14=\"\",\"\",IF(ISERROR((F14+VLOOKUP($A14,Economática!$A$3:$AI$823,26,FALSE))/Y14),(F14+VLOOKUP($A14,Economática!$A$3:$AI$823,26,FALSE))/Y14,(F14+VLOOKUP($A14,Economática!$A$3:$AI$823,26,FALSE))/Y14))","v":9.7006683775942868},{"$f":"IF($A14=\"\",\"\",IF(OR(-VLOOKUP($A14,Economática!$A$3:$AI$823,27,FALSE)=0,-VLOOKUP($A14,Economática!$A$3:$AI$823,27,FALSE)=\"-\"),1/0,-VLOOKUP($A14,Economática!$A$3:$AI$823,27,FALSE)))","v":{"$error":"#DIV/0!"}},{"$error":"#DIV/0!"},{"$f":"IF($A14=\"\",\"\",IF(OR(VLOOKUP($A14,Economática!$A$3:$AI$823,28,FALSE)=0,VLOOKUP($A14,Economática!$A$3:$AI$823,28,FALSE)=\"-\"),1/0,VLOOKUP($A14,Economática!$A$3:$AI$823,28,FALSE)))","v":10.199999999999999},{"$f":"IF($A14=\"\",\"\",IF(OR(VLOOKUP($A14,Economática!$A$3:$AI$823,29,FALSE)=0,VLOOKUP($A14,Economática!$A$3:$AI$823,29,FALSE)=\"-\"),1/0,VLOOKUP($A14,Economática!$A$3:$AI$823,29,FALSE)))","v":-34},{"$f":"IF($A14=\"\",\"\",IF(OR(VLOOKUP($A14,Economática!$A$3:$AI$823,30,FALSE)/E14=0,VLOOKUP($A14,Economática!$A$3:$AI$823,30,FALSE)/E14=\"-\",VLOOKUP($A14,Economática!$A$3:$AI$823,30,FALSE)/E14<33.33%,VLOOKUP($A14,Economática!$A$3:$AI$823,30,FALSE)/E14>100%),1/0,VLOOKUP($A14,Economática!$A$3:$AI$823,30,FALSE)/E14))","v":{"$error":"#DIV/0!"}},"BEEF3",{"$f":"IF($A14=\"\",\"\",IF(OR(VLOOKUP($A14,Economática!$A$3:$AI$823,25,FALSE)=0,VLOOKUP($A14,Economática!$A$3:$AI$823,25,FALSE)=\"-\"),1/0,VLOOKUP($A14,Economática!$A$3:$AI$823,25,FALSE)))","v":896.2},{"$f":"CONCATENATE(Economática!B16,\" \",Economática!C16)","v":"Minerva ON"}]
[{"$f":"IF(Economática!AG17=\"\",\"\",Economática!AG17)","v":"JBDU4"},{"$f":"IF($A15=\"\",\"\",VLOOKUP(VLOOKUP($A15,Economática!$A$3:$AI$823,6,FALSE),Correção!$B$16:$C$36,2,FALSE))","v":"Alimentos e Bebidas"},{"$f":"IF(Economática!B17=\"\",\"\",Economática!B17)","v":"J B Duarte"},{"$f":"IF($A15=\"\",\"\",IF(OR(VLOOKUP($A15,Economática!$A$3:$AI$823,8,FALSE)=0,VLOOKUP($A15,Economática!$A$3:$AI$823,8,FALSE)=\"-\"),1/0,VLOOKUP($A15,Economática!$A$3:$AI$823,8,FALSE)))","v":6.8},{"$f":"IF(A15=\"\",\"\",IF(ISERROR(VLOOKUP(A15,Correção!$B$2:$G$13,9,FALSE)),VLOOKUP($A15,Economática!$A$3:$AI$823,9,FALSE),VLOOKUP(A15,Correção!$B$2:$G$13,9,FALSE)))","v":0.13600000000000001},{"$f":"IF($A15=\"\",\"\",Economática!G17)","v":0.93},{"$f":"IF($A15=\"\",\"\",IF(OR(VLOOKUP($A15,Economática!$A$3:$AI$823,10,FALSE)=0,VLOOKUP($A15,Economática!$A$3:$AI$823,10,FALSE)=\"-\"),1/0,VLOOKUP($A15,Economática!$A$3:$AI$823,10,FALSE)))","v":25.77},{"$f":"IF($A15=\"\",\"\",IF(OR(VLOOKUP($A15,Economática!$A$3:$AI$823,11,FALSE)=0,VLOOKUP($A15,Economática!$A$3:$AI$823,11,FALSE)=\"-\"),1/0,VLOOKUP($A15,Economática!$A$3:$AI$823,11,FALSE)))","v":{"$error":"#DIV/0!"}},{"$f":"IF($A15=\"\",\"\",IF(OR(VLOOKUP($A15,Economática!$A$3:$AI$823,12,FALSE)=0,VLOOKUP($A15,Economática!$A$3:$AI$823,12,FALSE)=\"-\"),1/0,VLOOKUP($A15,Economática!$A$3:$AI$823,12,FALSE)))","v":{"$error":"#DIV/0!"}},{"$f":"IF($A15=\"\",\"\",IF(OR(VLOOKUP($A15,Economática!$A$3:$AI$823,13,FALSE)=0,VLOOKUP($A15,Economática!$A$3:$AI$823,13,FALSE)=\"-\"),1/0,VLOOKUP($A15,Economática!$A$3:$AI$823,13,FALSE)))","v":-1.44},{"$f":"IF($A15=\"\",\"\",IF(OR(VLOOKUP($A15,Economática!$A$3:$AI$823,14,FALSE)=0,VLOOKUP($A15,Economática!$A$3:$AI$823,14,FALSE)=\"-\"),1/0,VLOOKUP($A15,Economática!$A$3:$AI$823,14,FALSE)))","v":33.520000000000003},{"$f":"IF($A15=\"\",\"\",IF(OR(VLOOKUP($A15,Economática!$A$3:$AI$823,15,FALSE)=0,VLOOKUP($A15,Economática!$A$3:$AI$823,15,FALSE)=\"-\"),1/0,VLOOKUP($A15,Economática!$A$3:$AI$823,15,FALSE)))","v":27.9},{"$f":"IF($A15=\"\",\"\",IF(OR(VLOOKUP($A15,Economática!$A$3:$AI$823,16,FALSE)=0,VLOOKUP($A15,Economática!$A$3:$AI$823,16,FALSE)=\"-\"),1/0,VLOOKUP($A15,Economática!$A$3:$AI$823,16,FALSE)))","v":{"$error":"#DIV/0!"}},{"$f":"IF($A15=\"\",\"\",IF(OR(VLOOKUP($A15,Economática!$A$3:$AI$823,17,FALSE)=0,VLOOKUP($A15,Economática!$A$3:$AI$823,17,FALSE)=\"-\"),1/0,VLOOKUP($A15,Economática!$A$3:$AI$823,17,FALSE)))","v":{"$error":"#DIV/0!"}},{"$f":"IF($A15=\"\",\"\",IF(OR(VLOOKUP($A15,Economática!$A$3:$AI$823,18,FALSE)=0,VLOOKUP($A15,Economática!$A$3:$AI$823,18,FALSE)=\"-\"),1/0,VLOOKUP($A15,Economática!$A$3:$AI$823,18,FALSE)))","v":-1.44},{"$f":"IF($A15=\"\",\"\",IF(OR(VLOOKUP($A15,Economática!$A$3:$AI$823,19,FALSE)=0,VLOOKUP($A15,Economática!$A$3:$AI$823,19,FALSE)=\"-\"),1/0,VLOOKUP($A15,Economática!$A$3:$AI$823,19,FALSE)))","v":{"$error":"#DIV/0!"}},{"$f":"IF($A15=\"\",\"\",VLOOKUP($A15,Economática!$A$3:$AI$823,20,FALSE)/E15)","v":202.86764705882351},189.48529411764704,3.5886689949553748E-2,3.3519391083725987E-2,{"$f":"IF($A15=\"\",\"\",IF(OR(VLOOKUP($A15,Economática!$A$3:$AI$823,21,FALSE)/100=0,VLOOKUP($A15,Economática!$A$3:$AI$823,21,FALSE)/100=\"-\"),1/0,VLOOKUP($A15,Economática!$A$3:$AI$823,21,FALSE)/100))","v":{"$error":"#VALUE!"}},{"$f":"IF($A15=\"\",\"\",IF(OR(VLOOKUP($A15,Economática!$A$3:$AI$823,22,FALSE)/100=0,VLOOKUP($A15,Economática!$A$3:$AI$823,22,FALSE)/100=\"-\"),1/0,VLOOKUP($A15,Economática!$A$3:$AI$823,22,FALSE)/100))","v":0.20507500000000001},{"$f":"IF($A15=\"\",\"\",IF(OR(VLOOKUP($A15,Economática!$A$3:$AI$823,23,FALSE)=0,VLOOKUP($A15,Economática!$A$3:$AI$823,23,FALSE)=\"-\"),1/0,VLOOKUP($A15,Economática!$A$3:$AI$823,23,FALSE)))","v":{"$error":"#DIV/0!"}},{"$f":"IF($A15=\"\",\"\",IF(OR(VLOOKUP($A15,Economática!$A$3:$AI$823,24,FALSE)=0,VLOOKUP($A15,Economática!$A$3:$AI$823,24,FALSE)=\"-\"),1/0,VLOOKUP($A15,Economática!$A$3:$AI$823,24,FALSE)))","v":{"$error":"#DIV/0!"}},{"$f":"IF($A15=\"\",\"\",IF(OR(VLOOKUP($A15,Economática!$A$3:$AI$823,25,FALSE)=0,VLOOKUP($A15,Economática!$A$3:$AI$823,25,FALSE)=\"-\"),1/0,VLOOKUP($A15,Economática!$A$3:$AI$823,25,FALSE)))","v":{"$error":"#DIV/0!"}},{"$f":"IF($A15=\"\",\"\",IF(ISERROR((F15+VLOOKUP($A15,Economática!$A$3:$AI$823,26,FALSE))/Y15),(F15+VLOOKUP($A15,Economática!$A$3:$AI$823,26,FALSE))/Y15,(F15+VLOOKUP($A15,Economática!$A$3:$AI$823,26,FALSE))/Y15))","v":{"$error":"#DIV/0!"}},{"$f":"IF($A15=\"\",\"\",IF(OR(-VLOOKUP($A15,Economática!$A$3:$AI$823,27,FALSE)=0,-VLOOKUP($A15,Economática!$A$3:$AI$823,27,FALSE)=\"-\"),1/0,-VLOOKUP($A15,Economática!$A$3:$AI$823,27,FALSE)))","v":{"$error":"#VALUE!"}},{"$error":"#VALUE!"},{"$f":"IF($A15=\"\",\"\",IF(OR(VLOOKUP($A15,Economática!$A$3:$AI$823,28,FALSE)=0,VLOOKUP($A15,Economática!$A$3:$AI$823,28,FALSE)=\"-\"),1/0,VLOOKUP($A15,Economática!$A$3:$AI$823,28,FALSE)))","v":-8.4},{"$f":"IF($A15=\"\",\"\",IF(OR(VLOOKUP($A15,Economática!$A$3:$AI$823,29,FALSE)=0,VLOOKUP($A15,Economática!$A$3:$AI$823,29,FALSE)=\"-\"),1/0,VLOOKUP($A15,Economática!$A$3:$AI$823,29,FALSE)))","v":-77.599999999999994},{"$f":"IF($A15=\"\",\"\",IF(OR(VLOOKUP($A15,Economática!$A$3:$AI$823,30,FALSE)/E15=0,VLOOKUP($A15,Economática!$A$3:$AI$823,30,FALSE)/E15=\"-\",VLOOKUP($A15,Economática!$A$3:$AI$823,30,FALSE)/E15<33.33%,VLOOKUP($A15,Economática!$A$3:$AI$823,30,FALSE)/E15>100%),1/0,VLOOKUP($A15,Economática!$A$3:$AI$823,30,FALSE)/E15))","v":{"$error":"#DIV/0!"}},"JBDU4",{"$f":"IF($A15=\"\",\"\",IF(OR(VLOOKUP($A15,Economática!$A$3:$AI$823,25,FALSE)=0,VLOOKUP($A15,Economática!$A$3:$AI$823,25,FALSE)=\"-\"),1/0,VLOOKUP($A15,Economática!$A$3:$AI$823,25,FALSE)))","v":{"$error":"#DIV/0!"}},{"$f":"CONCATENATE(Economática!B17,\" \",Economática!C17)","v":"J B Duarte PN"}]
[{"$f":"IF(Economática!AG18=\"\",\"\",Economática!AG18)","v":"MNPR3"},{"$f":"IF($A16=\"\",\"\",VLOOKUP(VLOOKUP($A16,Economática!$A$3:$AI$823,6,FALSE),Correção!$B$16:$C$36,2,FALSE))","v":"Alimentos e Bebidas"},{"$f":"IF(Economática!B18=\"\",\"\",Economática!B18)","v":"Minupar"},{"$f":"IF($A16=\"\",\"\",IF(OR(VLOOKUP($A16,Economática!$A$3:$AI$823,8,FALSE)=0,VLOOKUP($A16,Economática!$A$3:$AI$823,8,FALSE)=\"-\"),1/0,VLOOKUP($A16,Economática!$A$3:$AI$823,8,FALSE)))","v":2.1},{"$f":"IF(A16=\"\",\"\",IF(ISERROR(VLOOKUP(A16,Correção!$B$2:$G$13,9,FALSE)),VLOOKUP($A16,Economática!$A$3:$AI$823,9,FALSE),VLOOKUP(A16,Correção!$B$2:$G$13,9,FALSE)))","v":7.1},{"$f":"IF($A16=\"\",\"\",Economática!G18)","v":14.91},{"$f":"IF($A16=\"\",\"\",IF(OR(VLOOKUP($A16,Economática!$A$3:$AI$823,10,FALSE)=0,VLOOKUP($A16,Economática!$A$3:$AI$823,10,FALSE)=\"-\"),1/0,VLOOKUP($A16,Economática!$A$3:$AI$823,10,FALSE)))","v":-359.63},{"$f":"IF($A16=\"\",\"\",IF(OR(VLOOKUP($A16,Economática!$A$3:$AI$823,11,FALSE)=0,VLOOKUP($A16,Economática!$A$3:$AI$823,11,FALSE)=\"-\"),1/0,VLOOKUP($A16,Economática!$A$3:$AI$823,11,FALSE)))","v":190.42},{"$f":"IF($A16=\"\",\"\",IF(OR(VLOOKUP($A16,Economática!$A$3:$AI$823,12,FALSE)=0,VLOOKUP($A16,Economática!$A$3:$AI$823,12,FALSE)=\"-\"),1/0,VLOOKUP($A16,Economática!$A$3:$AI$823,12,FALSE)))","v":199.56},{"$f":"IF($A16=\"\",\"\",IF(OR(VLOOKUP($A16,Economática!$A$3:$AI$823,13,FALSE)=0,VLOOKUP($A16,Economática!$A$3:$AI$823,13,FALSE)=\"-\"),1/0,VLOOKUP($A16,Economática!$A$3:$AI$823,13,FALSE)))","v":-25.34},{"$f":"IF($A16=\"\",\"\",IF(OR(VLOOKUP($A16,Economática!$A$3:$AI$823,14,FALSE)=0,VLOOKUP($A16,Economática!$A$3:$AI$823,14,FALSE)=\"-\"),1/0,VLOOKUP($A16,Economática!$A$3:$AI$823,14,FALSE)))","v":-1.69},{"$f":"IF($A16=\"\",\"\",IF(OR(VLOOKUP($A16,Economática!$A$3:$AI$823,15,FALSE)=0,VLOOKUP($A16,Economática!$A$3:$AI$823,15,FALSE)=\"-\"),1/0,VLOOKUP($A16,Economática!$A$3:$AI$823,15,FALSE)))","v":-8.0399999999999991},{"$f":"IF($A16=\"\",\"\",IF(OR(VLOOKUP($A16,Economática!$A$3:$AI$823,16,FALSE)=0,VLOOKUP($A16,Economática!$A$3:$AI$823,16,FALSE)=\"-\"),1/0,VLOOKUP($A16,Economática!$A$3:$AI$823,16,FALSE)))","v":-5.83},{"$f":"IF($A16=\"\",\"\",IF(OR(VLOOKUP($A16,Economática!$A$3:$AI$823,17,FALSE)=0,VLOOKUP($A16,Economática!$A$3:$AI$823,17,FALSE)=\"-\"),1/0,VLOOKUP($A16,Economática!$A$3:$AI$823,17,FALSE)))","v":-66.97},{"$f":"IF($A16=\"\",\"\",IF(OR(VLOOKUP($A16,Economática!$A$3:$AI$823,18,FALSE)=0,VLOOKUP($A16,Economática!$A$3:$AI$823,18,FALSE)=\"-\"),1/0,VLOOKUP($A16,Economática!$A$3:$AI$823,18,FALSE)))","v":-25.34},{"$f":"IF($A16=\"\",\"\",IF(OR(VLOOKUP($A16,Economática!$A$3:$AI$823,19,FALSE)=0,VLOOKUP($A16,Economática!$A$3:$AI$823,19,FALSE)=\"-\"),1/0,VLOOKUP($A16,Economática!$A$3:$AI$823,19,FALSE)))","v":-66.97},{"$f":"IF($A16=\"\",\"\",VLOOKUP($A16,Economática!$A$3:$AI$823,20,FALSE)/E16)","v":-9.4323943661971832},{"$error":"#DIV/0!"},{"$error":"#DIV/0!"},{"$error":"#DIV/0!"},{"$f":"IF($A16=\"\",\"\",IF(OR(VLOOKUP($A16,Economática!$A$3:$AI$823,21,FALSE)/100=0,VLOOKUP($A16,Economática!$A$3:$AI$823,21,FALSE)/100=\"-\"),1/0,VLOOKUP($A16,Economática!$A$3:$AI$823,21,FALSE)/100))","v":{"$error":"#VALUE!"}},{"$f":"IF($A16=\"\",\"\",IF(OR(VLOOKUP($A16,Economática!$A$3:$AI$823,22,FALSE)/100=0,VLOOKUP($A16,Economática!$A$3:$AI$823,22,FALSE)/100=\"-\"),1/0,VLOOKUP($A16,Economática!$A$3:$AI$823,22,FALSE)/100))","v":-1.258E-3},{"$f":"IF($A16=\"\",\"\",IF(OR(VLOOKUP($A16,Economática!$A$3:$AI$823,23,FALSE)=0,VLOOKUP($A16,Economática!$A$3:$AI$823,23,FALSE)=\"-\"),1/0,VLOOKUP($A16,Economática!$A$3:$AI$823,23,FALSE)))","v":11.6},{"$f":"IF($A16=\"\",\"\",IF(OR(VLOOKUP($A16,Economática!$A$3:$AI$823,24,FALSE)=0,VLOOKUP($A16,Economática!$A$3:$AI$823,24,FALSE)=\"-\"),1/0,VLOOKUP($A16,Economática!$A$3:$AI$823,24,FALSE)))","v":{"$error":"#DIV/0!"}},{"$f":"IF($A16=\"\",\"\",IF(OR(VLOOKUP($A16,Economática!$A$3:$AI$823,25,FALSE)=0,VLOOKUP($A16,Economática!$A$3:$AI$823,25,FALSE)=\"-\"),1/0,VLOOKUP($A16,Economática!$A$3:$AI$823,25,FALSE)))","v":{"$error":"#DIV/0!"}},{"$f":"IF($A16=\"\",\"\",IF(ISERROR((F16+VLOOKUP($A16,Economática!$A$3:$AI$823,26,FALSE))/Y16),(F16+VLOOKUP($A16,Economática!$A$3:$AI$823,26,FALSE))/Y16,(F16+VLOOKUP($A16,Economática!$A$3:$AI$823,26,FALSE))/Y16))","v":{"$error":"#DIV/0!"}},{"$f":"IF($A16=\"\",\"\",IF(OR(-VLOOKUP($A16,Economática!$A$3:$AI$823,27,FALSE)=0,-VLOOKUP($A16,Economática!$A$3:$AI$823,27,FALSE)=\"-\"),1/0,-VLOOKUP($A16,Economática!$A$3:$AI$823,27,FALSE)))","v":{"$error":"#DIV/0!"}},{"$error":"#DIV/0!"},{"$f":"IF($A16=\"\",\"\",IF(OR(VLOOKUP($A16,Economática!$A$3:$AI$823,28,FALSE)=0,VLOOKUP($A16,Economática!$A$3:$AI$823,28,FALSE)=\"-\"),1/0,VLOOKUP($A16,Economática!$A$3:$AI$823,28,FALSE)))","v":-6.7},{"$f":"IF($A16=\"\",\"\",IF(OR(VLOOKUP($A16,Economática!$A$3:$AI$823,29,FALSE)=0,VLOOKUP($A16,Economática!$A$3:$AI$823,29,FALSE)=\"-\"),1/0,VLOOKUP($A16,Economática!$A$3:$AI$823,29,FALSE)))","v":-26.3},{"$f":"IF($A16=\"\",\"\",IF(OR(VLOOKUP($A16,Economática!$A$3:$AI$823,30,FALSE)/E16=0,VLOOKUP($A16,Economática!$A$3:$AI$823,30,FALSE)/E16=\"-\",VLOOKUP($A16,Economática!$A$3:$AI$823,30,FALSE)/E16<33.33%,VLOOKUP($A16,Economática!$A$3:$AI$823,30,FALSE)/E16>100%),1/0,VLOOKUP($A16,Economática!$A$3:$AI$823,30,FALSE)/E16))","v":1},"MNPR3",{"$f":"IF($A16=\"\",\"\",IF(OR(VLOOKUP($A16,Economática!$A$3:$AI$823,25,FALSE)=0,VLOOKUP($A16,Economática!$A$3:$AI$823,25,FALSE)=\"-\"),1/0,VLOOKUP($A16,Economática!$A$3:$AI$823,25,FALSE)))","v":{"$error":"#DIV/0!"}},{"$f":"CONCATENATE(Economática!B18,\" \",Economática!C18)","v":"Minupar ON"}]
[{"$f":"IF(Economática!AG19=\"\",\"\",Economática!AG19)","v":"NATU3"},{"$f":"IF($A17=\"\",\"\",VLOOKUP(VLOOKUP($A17,Economática!$A$3:$AI$823,6,FALSE),Correção!$B$16:$C$36,2,FALSE))","v":"Comércio"},{"$f":"IF(Economática!B19=\"\",\"\",Economática!B19)","v":"Natura"},{"$f":"IF($A17=\"\",\"\",IF(OR(VLOOKUP($A17,Economática!$A$3:$AI$823,8,FALSE)=0,VLOOKUP($A17,Economática!$A$3:$AI$823,8,FALSE)=\"-\"),1/0,VLOOKUP($A17,Economática!$A$3:$AI$823,8,FALSE)))","v":45.39},{"$f":"IF(A17=\"\",\"\",IF(ISERROR(VLOOKUP(A17,Correção!$B$2:$G$13,9,FALSE)),VLOOKUP($A17,Economática!$A$3:$AI$823,9,FALSE),VLOOKUP(A17,Correção!$B$2:$G$13,9,FALSE)))","v":430.72699999999998},{"$f":"IF($A17=\"\",\"\",Economática!G19)","v":19550.7},{"$f":"IF($A17=\"\",\"\",IF(OR(VLOOKUP($A17,Economática!$A$3:$AI$823,10,FALSE)=0,VLOOKUP($A17,Economática!$A$3:$AI$823,10,FALSE)=\"-\"),1/0,VLOOKUP($A17,Economática!$A$3:$AI$823,10,FALSE)))","v":2574.1},{"$f":"IF($A17=\"\",\"\",IF(OR(VLOOKUP($A17,Economática!$A$3:$AI$823,11,FALSE)=0,VLOOKUP($A17,Economática!$A$3:$AI$823,11,FALSE)=\"-\"),1/0,VLOOKUP($A17,Economática!$A$3:$AI$823,11,FALSE)))","v":9852.7099999999991},{"$f":"IF($A17=\"\",\"\",IF(OR(VLOOKUP($A17,Economática!$A$3:$AI$823,12,FALSE)=0,VLOOKUP($A17,Economática!$A$3:$AI$823,12,FALSE)=\"-\"),1/0,VLOOKUP($A17,Economática!$A$3:$AI$823,12,FALSE)))","v":13397.42},{"$f":"IF($A17=\"\",\"\",IF(OR(VLOOKUP($A17,Economática!$A$3:$AI$823,13,FALSE)=0,VLOOKUP($A17,Economática!$A$3:$AI$823,13,FALSE)=\"-\"),1/0,VLOOKUP($A17,Economática!$A$3:$AI$823,13,FALSE)))","v":670.25},{"$f":"IF($A17=\"\",\"\",IF(OR(VLOOKUP($A17,Economática!$A$3:$AI$823,14,FALSE)=0,VLOOKUP($A17,Economática!$A$3:$AI$823,14,FALSE)=\"-\"),1/0,VLOOKUP($A17,Economática!$A$3:$AI$823,14,FALSE)))","v":24.39},{"$f":"IF($A17=\"\",\"\",IF(OR(VLOOKUP($A17,Economática!$A$3:$AI$823,15,FALSE)=0,VLOOKUP($A17,Economática!$A$3:$AI$823,15,FALSE)=\"-\"),1/0,VLOOKUP($A17,Economática!$A$3:$AI$823,15,FALSE)))","v":56.19},{"$f":"IF($A17=\"\",\"\",IF(OR(VLOOKUP($A17,Economática!$A$3:$AI$823,16,FALSE)=0,VLOOKUP($A17,Economática!$A$3:$AI$823,16,FALSE)=\"-\"),1/0,VLOOKUP($A17,Economática!$A$3:$AI$823,16,FALSE)))","v":166.75},{"$f":"IF($A17=\"\",\"\",IF(OR(VLOOKUP($A17,Economática!$A$3:$AI$823,17,FALSE)=0,VLOOKUP($A17,Economática!$A$3:$AI$823,17,FALSE)=\"-\"),1/0,VLOOKUP($A17,Economática!$A$3:$AI$823,17,FALSE)))","v":548.38},{"$f":"IF($A17=\"\",\"\",IF(OR(VLOOKUP($A17,Economática!$A$3:$AI$823,18,FALSE)=0,VLOOKUP($A17,Economática!$A$3:$AI$823,18,FALSE)=\"-\"),1/0,VLOOKUP($A17,Economática!$A$3:$AI$823,18,FALSE)))","v":670.25},{"$f":"IF($A17=\"\",\"\",IF(OR(VLOOKUP($A17,Economática!$A$3:$AI$823,19,FALSE)=0,VLOOKUP($A17,Economática!$A$3:$AI$823,19,FALSE)=\"-\"),1/0,VLOOKUP($A17,Economática!$A$3:$AI$823,19,FALSE)))","v":548.38},{"$f":"IF($A17=\"\",\"\",VLOOKUP($A17,Economática!$A$3:$AI$823,20,FALSE)/E17)","v":1.273149814151423},5.9761751643152161,7.5951589021405539,35.651735165396261,{"$f":"IF($A17=\"\",\"\",IF(OR(VLOOKUP($A17,Economática!$A$3:$AI$823,21,FALSE)/100=0,VLOOKUP($A17,Economática!$A$3:$AI$823,21,FALSE)/100=\"-\"),1/0,VLOOKUP($A17,Economática!$A$3:$AI$823,21,FALSE)/100))","v":0.33545200000000003},{"$f":"IF($A17=\"\",\"\",IF(OR(VLOOKUP($A17,Economática!$A$3:$AI$823,22,FALSE)/100=0,VLOOKUP($A17,Economática!$A$3:$AI$823,22,FALSE)/100=\"-\"),1/0,VLOOKUP($A17,Economática!$A$3:$AI$823,22,FALSE)/100))","v":2.3347769999999999},{"$f":"IF($A17=\"\",\"\",IF(OR(VLOOKUP($A17,Economática!$A$3:$AI$823,23,FALSE)=0,VLOOKUP($A17,Economática!$A$3:$AI$823,23,FALSE)=\"-\"),1/0,VLOOKUP($A17,Economática!$A$3:$AI$823,23,FALSE)))","v":1742},{"$f":"IF($A17=\"\",\"\",IF(OR(VLOOKUP($A17,Economática!$A$3:$AI$823,24,FALSE)=0,VLOOKUP($A17,Economática!$A$3:$AI$823,24,FALSE)=\"-\"),1/0,VLOOKUP($A17,Economática!$A$3:$AI$823,24,FALSE)))","v":1846.6},{"$f":"IF($A17=\"\",\"\",IF(OR(VLOOKUP($A17,Economática!$A$3:$AI$823,25,FALSE)=0,VLOOKUP($A17,Economática!$A$3:$AI$823,25,FALSE)=\"-\"),1/0,VLOOKUP($A17,Economática!$A$3:$AI$823,25,FALSE)))","v":1846.6},{"$f":"IF($A17=\"\",\"\",IF(ISERROR((F17+VLOOKUP($A17,Economática!$A$3:$AI$823,26,FALSE))/Y17),(F17+VLOOKUP($A17,Economática!$A$3:$AI$823,26,FALSE))/Y17,(F17+VLOOKUP($A17,Economática!$A$3:$AI$823,26,FALSE))/Y17))","v":13.84200963933716},{"$f":"IF($A17=\"\",\"\",IF(OR(-VLOOKUP($A17,Economática!$A$3:$AI$823,27,FALSE)=0,-VLOOKUP($A17,Economática!$A$3:$AI$823,27,FALSE)=\"-\"),1/0,-VLOOKUP($A17,Economática!$A$3:$AI$823,27,FALSE)))","v":201.65},1.0314208698409776E-2,{"$f":"IF($A17=\"\",\"\",IF(OR(VLOOKUP($A17,Economática!$A$3:$AI$823,28,FALSE)=0,VLOOKUP($A17,Economática!$A$3:$AI$823,28,FALSE)=\"-\"),1/0,VLOOKUP($A17,Economática!$A$3:$AI$823,28,FALSE)))","v":-6.2},{"$f":"IF($A17=\"\",\"\",IF(OR(VLOOKUP($A17,Economática!$A$3:$AI$823,29,FALSE)=0,VLOOKUP($A17,Economática!$A$3:$AI$823,29,FALSE)=\"-\"),1/0,VLOOKUP($A17,Economática!$A$3:$AI$823,29,FALSE)))","v":39.799999999999997},{"$f":"IF($A17=\"\",\"\",IF(OR(VLOOKUP($A17,Economática!$A$3:$AI$823,30,FALSE)/E17=0,VLOOKUP($A17,Economática!$A$3:$AI$823,30,FALSE)/E17=\"-\",VLOOKUP($A17,Economática!$A$3:$AI$823,30,FALSE)/E17<33.33%,VLOOKUP($A17,Economática!$A$3:$AI$823,30,FALSE)/E17>100%),1/0,VLOOKUP($A17,Economática!$A$3:$AI$823,30,FALSE)/E17))","v":{"$error":"#DIV/0!"}},"NATU3",{"$f":"IF($A17=\"\",\"\",IF(OR(VLOOKUP($A17,Economática!$A$3:$AI$823,25,FALSE)=0,VLOOKUP($A17,Economática!$A$3:$AI$823,25,FALSE)=\"-\"),1/0,VLOOKUP($A17,Economática!$A$3:$AI$823,25,FALSE)))","v":1846.6},{"$f":"CONCATENATE(Economática!B19,\" \",Economática!C19)","v":"Natura ON"}]
[{"$f":"IF(Economática!AG20=\"\",\"\",Economática!AG20)","v":"LREN3"},{"$f":"IF($A18=\"\",\"\",VLOOKUP(VLOOKUP($A18,Economática!$A$3:$AI$823,6,FALSE),Correção!$B$16:$C$36,2,FALSE))","v":"Comércio"},{"$f":"IF(Economática!B20=\"\",\"\",Economática!B20)","v":"Lojas Renner"},{"$f":"IF($A18=\"\",\"\",IF(OR(VLOOKUP($A18,Economática!$A$3:$AI$823,8,FALSE)=0,VLOOKUP($A18,Economática!$A$3:$AI$823,8,FALSE)=\"-\"),1/0,VLOOKUP($A18,Economática!$A$3:$AI$823,8,FALSE)))","v":43.8},{"$f":"IF(A18=\"\",\"\",IF(ISERROR(VLOOKUP(A18,Correção!$B$2:$G$13,9,FALSE)),VLOOKUP($A18,Economática!$A$3:$AI$823,9,FALSE),VLOOKUP(A18,Correção!$B$2:$G$13,9,FALSE)))","v":717.93899999999996},{"$f":"IF($A18=\"\",\"\",Economática!G20)","v":31445.73},{"$f":"IF($A18=\"\",\"\",IF(OR(VLOOKUP($A18,Economática!$A$3:$AI$823,10,FALSE)=0,VLOOKUP($A18,Economática!$A$3:$AI$823,10,FALSE)=\"-\"),1/0,VLOOKUP($A18,Economática!$A$3:$AI$823,10,FALSE)))","v":3954.51},{"$f":"IF($A18=\"\",\"\",IF(OR(VLOOKUP($A18,Economática!$A$3:$AI$823,11,FALSE)=0,VLOOKUP($A18,Economática!$A$3:$AI$823,11,FALSE)=\"-\"),1/0,VLOOKUP($A18,Economática!$A$3:$AI$823,11,FALSE)))","v":7444.31},{"$f":"IF($A18=\"\",\"\",IF(OR(VLOOKUP($A18,Economática!$A$3:$AI$823,12,FALSE)=0,VLOOKUP($A18,Economática!$A$3:$AI$823,12,FALSE)=\"-\"),1/0,VLOOKUP($A18,Economática!$A$3:$AI$823,12,FALSE)))","v":8426.5400000000009},{"$f":"IF($A18=\"\",\"\",IF(OR(VLOOKUP($A18,Economática!$A$3:$AI$823,13,FALSE)=0,VLOOKUP($A18,Economática!$A$3:$AI$823,13,FALSE)=\"-\"),1/0,VLOOKUP($A18,Economática!$A$3:$AI$823,13,FALSE)))","v":732.68},{"$f":"IF($A18=\"\",\"\",IF(OR(VLOOKUP($A18,Economática!$A$3:$AI$823,14,FALSE)=0,VLOOKUP($A18,Economática!$A$3:$AI$823,14,FALSE)=\"-\"),1/0,VLOOKUP($A18,Economática!$A$3:$AI$823,14,FALSE)))","v":111.44},{"$f":"IF($A18=\"\",\"\",IF(OR(VLOOKUP($A18,Economática!$A$3:$AI$823,15,FALSE)=0,VLOOKUP($A18,Economática!$A$3:$AI$823,15,FALSE)=\"-\"),1/0,VLOOKUP($A18,Economática!$A$3:$AI$823,15,FALSE)))","v":386.15},{"$f":"IF($A18=\"\",\"\",IF(OR(VLOOKUP($A18,Economática!$A$3:$AI$823,16,FALSE)=0,VLOOKUP($A18,Economática!$A$3:$AI$823,16,FALSE)=\"-\"),1/0,VLOOKUP($A18,Economática!$A$3:$AI$823,16,FALSE)))","v":580.36},{"$f":"IF($A18=\"\",\"\",IF(OR(VLOOKUP($A18,Economática!$A$3:$AI$823,17,FALSE)=0,VLOOKUP($A18,Economática!$A$3:$AI$823,17,FALSE)=\"-\"),1/0,VLOOKUP($A18,Economática!$A$3:$AI$823,17,FALSE)))","v":1020.14},{"$f":"IF($A18=\"\",\"\",IF(OR(VLOOKUP($A18,Economática!$A$3:$AI$823,18,FALSE)=0,VLOOKUP($A18,Economática!$A$3:$AI$823,18,FALSE)=\"-\"),1/0,VLOOKUP($A18,Economática!$A$3:$AI$823,18,FALSE)))","v":732.68},{"$f":"IF($A18=\"\",\"\",IF(OR(VLOOKUP($A18,Economática!$A$3:$AI$823,19,FALSE)=0,VLOOKUP($A18,Economática!$A$3:$AI$823,19,FALSE)=\"-\"),1/0,VLOOKUP($A18,Economática!$A$3:$AI$823,19,FALSE)))","v":1020.14},{"$f":"IF($A18=\"\",\"\",VLOOKUP($A18,Economática!$A$3:$AI$823,20,FALSE)/E18)","v":1.4209285189967393},5.5081420566371246,7.951864630510479,30.824914423510496,{"$f":"IF($A18=\"\",\"\",IF(OR(VLOOKUP($A18,Economática!$A$3:$AI$823,21,FALSE)/100=0,VLOOKUP($A18,Economática!$A$3:$AI$823,21,FALSE)/100=\"-\"),1/0,VLOOKUP($A18,Economática!$A$3:$AI$823,21,FALSE)/100))","v":0.31647400000000003},{"$f":"IF($A18=\"\",\"\",IF(OR(VLOOKUP($A18,Economática!$A$3:$AI$823,22,FALSE)/100=0,VLOOKUP($A18,Economática!$A$3:$AI$823,22,FALSE)/100=\"-\"),1/0,VLOOKUP($A18,Economática!$A$3:$AI$823,22,FALSE)/100))","v":0.13635700000000001},{"$f":"IF($A18=\"\",\"\",IF(OR(VLOOKUP($A18,Economática!$A$3:$AI$823,23,FALSE)=0,VLOOKUP($A18,Economática!$A$3:$AI$823,23,FALSE)=\"-\"),1/0,VLOOKUP($A18,Economática!$A$3:$AI$823,23,FALSE)))","v":1416.3},{"$f":"IF($A18=\"\",\"\",IF(OR(VLOOKUP($A18,Economática!$A$3:$AI$823,24,FALSE)=0,VLOOKUP($A18,Economática!$A$3:$AI$823,24,FALSE)=\"-\"),1/0,VLOOKUP($A18,Economática!$A$3:$AI$823,24,FALSE)))","v":1738.4},{"$f":"IF($A18=\"\",\"\",IF(OR(VLOOKUP($A18,Economática!$A$3:$AI$823,25,FALSE)=0,VLOOKUP($A18,Economática!$A$3:$AI$823,25,FALSE)=\"-\"),1/0,VLOOKUP($A18,Economática!$A$3:$AI$823,25,FALSE)))","v":1738.4},{"$f":"IF($A18=\"\",\"\",IF(ISERROR((F18+VLOOKUP($A18,Economática!$A$3:$AI$823,26,FALSE))/Y18),(F18+VLOOKUP($A18,Economática!$A$3:$AI$823,26,FALSE))/Y18,(F18+VLOOKUP($A18,Economática!$A$3:$AI$823,26,FALSE))/Y18))","v":18.399076161988035},{"$f":"IF($A18=\"\",\"\",IF(OR(-VLOOKUP($A18,Economática!$A$3:$AI$823,27,FALSE)=0,-VLOOKUP($A18,Economática!$A$3:$AI$823,27,FALSE)=\"-\"),1/0,-VLOOKUP($A18,Economática!$A$3:$AI$823,27,FALSE)))","v":287.64999999999998},9.1475058775865592E-3,{"$f":"IF($A18=\"\",\"\",IF(OR(VLOOKUP($A18,Economática!$A$3:$AI$823,28,FALSE)=0,VLOOKUP($A18,Economática!$A$3:$AI$823,28,FALSE)=\"-\"),1/0,VLOOKUP($A18,Economática!$A$3:$AI$823,28,FALSE)))","v":1.4},{"$f":"IF($A18=\"\",\"\",IF(OR(VLOOKUP($A18,Economática!$A$3:$AI$823,29,FALSE)=0,VLOOKUP($A18,Economática!$A$3:$AI$823,29,FALSE)=\"-\"),1/0,VLOOKUP($A18,Economática!$A$3:$AI$823,29,FALSE)))","v":25.4},{"$f":"IF($A18=\"\",\"\",IF(OR(VLOOKUP($A18,Economática!$A$3:$AI$823,30,FALSE)/E18=0,VLOOKUP($A18,Economática!$A$3:$AI$823,30,FALSE)/E18=\"-\",VLOOKUP($A18,Economática!$A$3:$AI$823,30,FALSE)/E18<33.33%,VLOOKUP($A18,Economática!$A$3:$AI$823,30,FALSE)/E18>100%),1/0,VLOOKUP($A18,Economática!$A$3:$AI$823,30,FALSE)/E18))","v":{"$error":"#DIV/0!"}},"LREN3",{"$f":"IF($A18=\"\",\"\",IF(OR(VLOOKUP($A18,Economática!$A$3:$AI$823,25,FALSE)=0,VLOOKUP($A18,Economática!$A$3:$AI$823,25,FALSE)=\"-\"),1/0,VLOOKUP($A18,Economática!$A$3:$AI$823,25,FALSE)))","v":1738.4},{"$f":"CONCATENATE(Economática!B20,\" \",Economática!C20)","v":"Lojas Renner ON"}]
[{"$f":"IF(Economática!AG21=\"\",\"\",Economática!AG21)","v":"MGLU3"},{"$f":"IF($A19=\"\",\"\",VLOOKUP(VLOOKUP($A19,Economática!$A$3:$AI$823,6,FALSE),Correção!$B$16:$C$36,2,FALSE))","v":"Comércio"},{"$f":"IF(Economática!B21=\"\",\"\",Economática!B21)","v":"Magaz Luiza"},{"$f":"IF($A19=\"\",\"\",IF(OR(VLOOKUP($A19,Economática!$A$3:$AI$823,8,FALSE)=0,VLOOKUP($A19,Economática!$A$3:$AI$823,8,FALSE)=\"-\"),1/0,VLOOKUP($A19,Economática!$A$3:$AI$823,8,FALSE)))","v":172.85},{"$f":"IF(A19=\"\",\"\",IF(ISERROR(VLOOKUP(A19,Correção!$B$2:$G$13,9,FALSE)),VLOOKUP($A19,Economática!$A$3:$AI$823,9,FALSE),VLOOKUP(A19,Correção!$B$2:$G$13,9,FALSE)))","v":188.964},{"$f":"IF($A19=\"\",\"\",Economática!G21)","v":32662.46},{"$f":"IF($A19=\"\",\"\",IF(OR(VLOOKUP($A19,Economática!$A$3:$AI$823,10,FALSE)=0,VLOOKUP($A19,Economática!$A$3:$AI$823,10,FALSE)=\"-\"),1/0,VLOOKUP($A19,Economática!$A$3:$AI$823,10,FALSE)))","v":2302.87},{"$f":"IF($A19=\"\",\"\",IF(OR(VLOOKUP($A19,Economática!$A$3:$AI$823,11,FALSE)=0,VLOOKUP($A19,Economática!$A$3:$AI$823,11,FALSE)=\"-\"),1/0,VLOOKUP($A19,Economática!$A$3:$AI$823,11,FALSE)))","v":11984.25},{"$f":"IF($A19=\"\",\"\",IF(OR(VLOOKUP($A19,Economática!$A$3:$AI$823,12,FALSE)=0,VLOOKUP($A19,Economática!$A$3:$AI$823,12,FALSE)=\"-\"),1/0,VLOOKUP($A19,Economática!$A$3:$AI$823,12,FALSE)))","v":15590.44},{"$f":"IF($A19=\"\",\"\",IF(OR(VLOOKUP($A19,Economática!$A$3:$AI$823,13,FALSE)=0,VLOOKUP($A19,Economática!$A$3:$AI$823,13,FALSE)=\"-\"),1/0,VLOOKUP($A19,Economática!$A$3:$AI$823,13,FALSE)))","v":389.02},{"$f":"IF($A19=\"\",\"\",IF(OR(VLOOKUP($A19,Economática!$A$3:$AI$823,14,FALSE)=0,VLOOKUP($A19,Economática!$A$3:$AI$823,14,FALSE)=\"-\"),1/0,VLOOKUP($A19,Economática!$A$3:$AI$823,14,FALSE)))","v":147.47999999999999},{"$f":"IF($A19=\"\",\"\",IF(OR(VLOOKUP($A19,Economática!$A$3:$AI$823,15,FALSE)=0,VLOOKUP($A19,Economática!$A$3:$AI$823,15,FALSE)=\"-\"),1/0,VLOOKUP($A19,Economática!$A$3:$AI$823,15,FALSE)))","v":288.23},{"$f":"IF($A19=\"\",\"\",IF(OR(VLOOKUP($A19,Economática!$A$3:$AI$823,16,FALSE)=0,VLOOKUP($A19,Economática!$A$3:$AI$823,16,FALSE)=\"-\"),1/0,VLOOKUP($A19,Economática!$A$3:$AI$823,16,FALSE)))","v":407.79},{"$f":"IF($A19=\"\",\"\",IF(OR(VLOOKUP($A19,Economática!$A$3:$AI$823,17,FALSE)=0,VLOOKUP($A19,Economática!$A$3:$AI$823,17,FALSE)=\"-\"),1/0,VLOOKUP($A19,Economática!$A$3:$AI$823,17,FALSE)))","v":597.42999999999995},{"$f":"IF($A19=\"\",\"\",IF(OR(VLOOKUP($A19,Economática!$A$3:$AI$823,18,FALSE)=0,VLOOKUP($A19,Economática!$A$3:$AI$823,18,FALSE)=\"-\"),1/0,VLOOKUP($A19,Economática!$A$3:$AI$823,18,FALSE)))","v":389.02},{"$f":"IF($A19=\"\",\"\",IF(OR(VLOOKUP($A19,Economática!$A$3:$AI$823,19,FALSE)=0,VLOOKUP($A19,Economática!$A$3:$AI$823,19,FALSE)=\"-\"),1/0,VLOOKUP($A19,Economática!$A$3:$AI$823,19,FALSE)))","v":597.42999999999995},{"$f":"IF($A19=\"\",\"\",VLOOKUP($A19,Economática!$A$3:$AI$823,20,FALSE)/E19)","v":3.1616075019580445},12.186818653288457,14.183357028403687,54.671555496041385,{"$f":"IF($A19=\"\",\"\",IF(OR(VLOOKUP($A19,Economática!$A$3:$AI$823,21,FALSE)/100=0,VLOOKUP($A19,Economática!$A$3:$AI$823,21,FALSE)/100=\"-\"),1/0,VLOOKUP($A19,Economática!$A$3:$AI$823,21,FALSE)/100))","v":0.28805999999999998},{"$f":"IF($A19=\"\",\"\",IF(OR(VLOOKUP($A19,Economática!$A$3:$AI$823,22,FALSE)/100=0,VLOOKUP($A19,Economática!$A$3:$AI$823,22,FALSE)/100=\"-\"),1/0,VLOOKUP($A19,Economática!$A$3:$AI$823,22,FALSE)/100))","v":-0.23980100000000001},{"$f":"IF($A19=\"\",\"\",IF(OR(VLOOKUP($A19,Economática!$A$3:$AI$823,23,FALSE)=0,VLOOKUP($A19,Economática!$A$3:$AI$823,23,FALSE)=\"-\"),1/0,VLOOKUP($A19,Economática!$A$3:$AI$823,23,FALSE)))","v":1030.8},{"$f":"IF($A19=\"\",\"\",IF(OR(VLOOKUP($A19,Economática!$A$3:$AI$823,24,FALSE)=0,VLOOKUP($A19,Economática!$A$3:$AI$823,24,FALSE)=\"-\"),1/0,VLOOKUP($A19,Economática!$A$3:$AI$823,24,FALSE)))","v":1245.2},{"$f":"IF($A19=\"\",\"\",IF(OR(VLOOKUP($A19,Economática!$A$3:$AI$823,25,FALSE)=0,VLOOKUP($A19,Economática!$A$3:$AI$823,25,FALSE)=\"-\"),1/0,VLOOKUP($A19,Economática!$A$3:$AI$823,25,FALSE)))","v":1245.2},{"$f":"IF($A19=\"\",\"\",IF(ISERROR((F19+VLOOKUP($A19,Economática!$A$3:$AI$823,26,FALSE))/Y19),(F19+VLOOKUP($A19,Economática!$A$3:$AI$823,26,FALSE))/Y19,(F19+VLOOKUP($A19,Economática!$A$3:$AI$823,26,FALSE))/Y19))","v":25.787206071313843},{"$f":"IF($A19=\"\",\"\",IF(OR(-VLOOKUP($A19,Economática!$A$3:$AI$823,27,FALSE)=0,-VLOOKUP($A19,Economática!$A$3:$AI$823,27,FALSE)=\"-\"),1/0,-VLOOKUP($A19,Economática!$A$3:$AI$823,27,FALSE)))","v":114.27},3.498511747124987E-3,{"$f":"IF($A19=\"\",\"\",IF(OR(VLOOKUP($A19,Economática!$A$3:$AI$823,28,FALSE)=0,VLOOKUP($A19,Economática!$A$3:$AI$823,28,FALSE)=\"-\"),1/0,VLOOKUP($A19,Economática!$A$3:$AI$823,28,FALSE)))","v":-0.4},{"$f":"IF($A19=\"\",\"\",IF(OR(VLOOKUP($A19,Economática!$A$3:$AI$823,29,FALSE)=0,VLOOKUP($A19,Economática!$A$3:$AI$823,29,FALSE)=\"-\"),1/0,VLOOKUP($A19,Economática!$A$3:$AI$823,29,FALSE)))","v":116.8},{"$f":"IF($A19=\"\",\"\",IF(OR(VLOOKUP($A19,Economática!$A$3:$AI$823,30,FALSE)/E19=0,VLOOKUP($A19,Economática!$A$3:$AI$823,30,FALSE)/E19=\"-\",VLOOKUP($A19,Economática!$A$3:$AI$823,30,FALSE)/E19<33.33%,VLOOKUP($A19,Economática!$A$3:$AI$823,30,FALSE)/E19>100%),1/0,VLOOKUP($A19,Economática!$A$3:$AI$823,30,FALSE)/E19))","v":{"$error":"#DIV/0!"}},"MGLU3",{"$f":"IF($A19=\"\",\"\",IF(OR(VLOOKUP($A19,Economática!$A$3:$AI$823,25,FALSE)=0,VLOOKUP($A19,Economática!$A$3:$AI$823,25,FALSE)=\"-\"),1/0,VLOOKUP($A19,Economática!$A$3:$AI$823,25,FALSE)))","v":1245.2},{"$f":"CONCATENATE(Economática!B21,\" \",Economática!C21)","v":"Magaz Luiza ON"}]
[{"$f":"IF(Economática!AG22=\"\",\"\",Economática!AG22)","v":"PNVL3"},{"$f":"IF($A20=\"\",\"\",VLOOKUP(VLOOKUP($A20,Economática!$A$3:$AI$823,6,FALSE),Correção!$B$16:$C$36,2,FALSE))","v":"Comércio"},{"$f":"IF(Economática!B22=\"\",\"\",Economática!B22)","v":"Dimed"},{"$f":"IF($A20=\"\",\"\",IF(OR(VLOOKUP($A20,Economática!$A$3:$AI$823,8,FALSE)=0,VLOOKUP($A20,Economática!$A$3:$AI$823,8,FALSE)=\"-\"),1/0,VLOOKUP($A20,Economática!$A$3:$AI$823,8,FALSE)))","v":391.99},{"$f":"IF(A20=\"\",\"\",IF(ISERROR(VLOOKUP(A20,Correção!$B$2:$G$13,9,FALSE)),VLOOKUP($A20,Economática!$A$3:$AI$823,9,FALSE),VLOOKUP(A20,Correção!$B$2:$G$13,9,FALSE)))","v":4.516},{"$f":"IF($A20=\"\",\"\",Economática!G22)","v":1704.16},{"$f":"IF($A20=\"\",\"\",IF(OR(VLOOKUP($A20,Economática!$A$3:$AI$823,10,FALSE)=0,VLOOKUP($A20,Economática!$A$3:$AI$823,10,FALSE)=\"-\"),1/0,VLOOKUP($A20,Economática!$A$3:$AI$823,10,FALSE)))","v":463.91},{"$f":"IF($A20=\"\",\"\",IF(OR(VLOOKUP($A20,Economática!$A$3:$AI$823,11,FALSE)=0,VLOOKUP($A20,Economática!$A$3:$AI$823,11,FALSE)=\"-\"),1/0,VLOOKUP($A20,Economática!$A$3:$AI$823,11,FALSE)))","v":2258.25},{"$f":"IF($A20=\"\",\"\",IF(OR(VLOOKUP($A20,Economática!$A$3:$AI$823,12,FALSE)=0,VLOOKUP($A20,Economática!$A$3:$AI$823,12,FALSE)=\"-\"),1/0,VLOOKUP($A20,Economática!$A$3:$AI$823,12,FALSE)))","v":2432.25},{"$f":"IF($A20=\"\",\"\",IF(OR(VLOOKUP($A20,Economática!$A$3:$AI$823,13,FALSE)=0,VLOOKUP($A20,Economática!$A$3:$AI$823,13,FALSE)=\"-\"),1/0,VLOOKUP($A20,Economática!$A$3:$AI$823,13,FALSE)))","v":59.8},{"$f":"IF($A20=\"\",\"\",IF(OR(VLOOKUP($A20,Economática!$A$3:$AI$823,14,FALSE)=0,VLOOKUP($A20,Economática!$A$3:$AI$823,14,FALSE)=\"-\"),1/0,VLOOKUP($A20,Economática!$A$3:$AI$823,14,FALSE)))","v":12.65},{"$f":"IF($A20=\"\",\"\",IF(OR(VLOOKUP($A20,Economática!$A$3:$AI$823,15,FALSE)=0,VLOOKUP($A20,Economática!$A$3:$AI$823,15,FALSE)=\"-\"),1/0,VLOOKUP($A20,Economática!$A$3:$AI$823,15,FALSE)))","v":28.35},{"$f":"IF($A20=\"\",\"\",IF(OR(VLOOKUP($A20,Economática!$A$3:$AI$823,16,FALSE)=0,VLOOKUP($A20,Economática!$A$3:$AI$823,16,FALSE)=\"-\"),1/0,VLOOKUP($A20,Economática!$A$3:$AI$823,16,FALSE)))","v":49.15},{"$f":"IF($A20=\"\",\"\",IF(OR(VLOOKUP($A20,Economática!$A$3:$AI$823,17,FALSE)=0,VLOOKUP($A20,Economática!$A$3:$AI$823,17,FALSE)=\"-\"),1/0,VLOOKUP($A20,Economática!$A$3:$AI$823,17,FALSE)))","v":74.98},{"$f":"IF($A20=\"\",\"\",IF(OR(VLOOKUP($A20,Economática!$A$3:$AI$823,18,FALSE)=0,VLOOKUP($A20,Economática!$A$3:$AI$823,18,FALSE)=\"-\"),1/0,VLOOKUP($A20,Economática!$A$3:$AI$823,18,FALSE)))","v":59.8},{"$f":"IF($A20=\"\",\"\",IF(OR(VLOOKUP($A20,Economática!$A$3:$AI$823,19,FALSE)=0,VLOOKUP($A20,Economática!$A$3:$AI$823,19,FALSE)=\"-\"),1/0,VLOOKUP($A20,Economática!$A$3:$AI$823,19,FALSE)))","v":74.98},{"$f":"IF($A20=\"\",\"\",VLOOKUP($A20,Economática!$A$3:$AI$823,20,FALSE)/E20)","v":16.603188662533217},102.72586359610276,3.8158842016770493,23.609320352093889,{"$f":"IF($A20=\"\",\"\",IF(OR(VLOOKUP($A20,Economática!$A$3:$AI$823,21,FALSE)/100=0,VLOOKUP($A20,Economática!$A$3:$AI$823,21,FALSE)/100=\"-\"),1/0,VLOOKUP($A20,Economática!$A$3:$AI$823,21,FALSE)/100))","v":0.175706},{"$f":"IF($A20=\"\",\"\",IF(OR(VLOOKUP($A20,Economática!$A$3:$AI$823,22,FALSE)/100=0,VLOOKUP($A20,Economática!$A$3:$AI$823,22,FALSE)/100=\"-\"),1/0,VLOOKUP($A20,Economática!$A$3:$AI$823,22,FALSE)/100))","v":0.21923999999999999},{"$f":"IF($A20=\"\",\"\",IF(OR(VLOOKUP($A20,Economática!$A$3:$AI$823,23,FALSE)=0,VLOOKUP($A20,Economática!$A$3:$AI$823,23,FALSE)=\"-\"),1/0,VLOOKUP($A20,Economática!$A$3:$AI$823,23,FALSE)))","v":117.9},{"$f":"IF($A20=\"\",\"\",IF(OR(VLOOKUP($A20,Economática!$A$3:$AI$823,24,FALSE)=0,VLOOKUP($A20,Economática!$A$3:$AI$823,24,FALSE)=\"-\"),1/0,VLOOKUP($A20,Economática!$A$3:$AI$823,24,FALSE)))","v":139.69999999999999},{"$f":"IF($A20=\"\",\"\",IF(OR(VLOOKUP($A20,Economática!$A$3:$AI$823,25,FALSE)=0,VLOOKUP($A20,Economática!$A$3:$AI$823,25,FALSE)=\"-\"),1/0,VLOOKUP($A20,Economática!$A$3:$AI$823,25,FALSE)))","v":139.69999999999999},{"$f":"IF($A20=\"\",\"\",IF(ISERROR((F20+VLOOKUP($A20,Economática!$A$3:$AI$823,26,FALSE))/Y20),(F20+VLOOKUP($A20,Economática!$A$3:$AI$823,26,FALSE))/Y20,(F20+VLOOKUP($A20,Economática!$A$3:$AI$823,26,FALSE))/Y20))","v":12.92675733715104},{"$f":"IF($A20=\"\",\"\",IF(OR(-VLOOKUP($A20,Economática!$A$3:$AI$823,27,FALSE)=0,-VLOOKUP($A20,Economática!$A$3:$AI$823,27,FALSE)=\"-\"),1/0,-VLOOKUP($A20,Economática!$A$3:$AI$823,27,FALSE)))","v":17.89},1.0497840578349451E-2,{"$f":"IF($A20=\"\",\"\",IF(OR(VLOOKUP($A20,Economática!$A$3:$AI$823,28,FALSE)=0,VLOOKUP($A20,Economática!$A$3:$AI$823,28,FALSE)=\"-\"),1/0,VLOOKUP($A20,Economática!$A$3:$AI$823,28,FALSE)))","v":4.8},{"$f":"IF($A20=\"\",\"\",IF(OR(VLOOKUP($A20,Economática!$A$3:$AI$823,29,FALSE)=0,VLOOKUP($A20,Economática!$A$3:$AI$823,29,FALSE)=\"-\"),1/0,VLOOKUP($A20,Economática!$A$3:$AI$823,29,FALSE)))","v":-0.1},{"$f":"IF($A20=\"\",\"\",IF(OR(VLOOKUP($A20,Economática!$A$3:$AI$823,30,FALSE)/E20=0,VLOOKUP($A20,Economática!$A$3:$AI$823,30,FALSE)/E20=\"-\",VLOOKUP($A20,Economática!$A$3:$AI$823,30,FALSE)/E20<33.33%,VLOOKUP($A20,Economática!$A$3:$AI$823,30,FALSE)/E20>100%),1/0,VLOOKUP($A20,Economática!$A$3:$AI$823,30,FALSE)/E20))","v":0.90788308237378201},"PNVL3",{"$f":"IF($A20=\"\",\"\",IF(OR(VLOOKUP($A20,Economática!$A$3:$AI$823,25,FALSE)=0,VLOOKUP($A20,Economática!$A$3:$AI$823,25,FALSE)=\"-\"),1/0,VLOOKUP($A20,Economática!$A$3:$AI$823,25,FALSE)))","v":139.69999999999999},{"$f":"CONCATENATE(Economática!B22,\" \",Economática!C22)","v":"Dimed ON"}]
[{"$f":"IF(Economática!AG23=\"\",\"\",Economática!AG23)","v":"RADL3"},{"$f":"IF($A21=\"\",\"\",VLOOKUP(VLOOKUP($A21,Economática!$A$3:$AI$823,6,FALSE),Correção!$B$16:$C$36,2,FALSE))","v":"Comércio"},{"$f":"IF(Economática!B23=\"\",\"\",Economática!B23)","v":"RaiaDrogasil"},{"$f":"IF($A21=\"\",\"\",IF(OR(VLOOKUP($A21,Economática!$A$3:$AI$823,8,FALSE)=0,VLOOKUP($A21,Economática!$A$3:$AI$823,8,FALSE)=\"-\"),1/0,VLOOKUP($A21,Economática!$A$3:$AI$823,8,FALSE)))","v":65.3},{"$f":"IF(A21=\"\",\"\",IF(ISERROR(VLOOKUP(A21,Correção!$B$2:$G$13,9,FALSE)),VLOOKUP($A21,Economática!$A$3:$AI$823,9,FALSE),VLOOKUP(A21,Correção!$B$2:$G$13,9,FALSE)))","v":329.339},{"$f":"IF($A21=\"\",\"\",Economática!G23)","v":21505.86},{"$f":"IF($A21=\"\",\"\",IF(OR(VLOOKUP($A21,Economática!$A$3:$AI$823,10,FALSE)=0,VLOOKUP($A21,Economática!$A$3:$AI$823,10,FALSE)=\"-\"),1/0,VLOOKUP($A21,Economática!$A$3:$AI$823,10,FALSE)))","v":3499.86},{"$f":"IF($A21=\"\",\"\",IF(OR(VLOOKUP($A21,Economática!$A$3:$AI$823,11,FALSE)=0,VLOOKUP($A21,Economática!$A$3:$AI$823,11,FALSE)=\"-\"),1/0,VLOOKUP($A21,Economática!$A$3:$AI$823,11,FALSE)))","v":13212.51},{"$f":"IF($A21=\"\",\"\",IF(OR(VLOOKUP($A21,Economática!$A$3:$AI$823,12,FALSE)=0,VLOOKUP($A21,Economática!$A$3:$AI$823,12,FALSE)=\"-\"),1/0,VLOOKUP($A21,Economática!$A$3:$AI$823,12,FALSE)))","v":14801.45},{"$f":"IF($A21=\"\",\"\",IF(OR(VLOOKUP($A21,Economática!$A$3:$AI$823,13,FALSE)=0,VLOOKUP($A21,Economática!$A$3:$AI$823,13,FALSE)=\"-\"),1/0,VLOOKUP($A21,Economática!$A$3:$AI$823,13,FALSE)))","v":511.16},{"$f":"IF($A21=\"\",\"\",IF(OR(VLOOKUP($A21,Economática!$A$3:$AI$823,14,FALSE)=0,VLOOKUP($A21,Economática!$A$3:$AI$823,14,FALSE)=\"-\"),1/0,VLOOKUP($A21,Economática!$A$3:$AI$823,14,FALSE)))","v":120.95},{"$f":"IF($A21=\"\",\"\",IF(OR(VLOOKUP($A21,Economática!$A$3:$AI$823,15,FALSE)=0,VLOOKUP($A21,Economática!$A$3:$AI$823,15,FALSE)=\"-\"),1/0,VLOOKUP($A21,Economática!$A$3:$AI$823,15,FALSE)))","v":257.41000000000003},{"$f":"IF($A21=\"\",\"\",IF(OR(VLOOKUP($A21,Economática!$A$3:$AI$823,16,FALSE)=0,VLOOKUP($A21,Economática!$A$3:$AI$823,16,FALSE)=\"-\"),1/0,VLOOKUP($A21,Economática!$A$3:$AI$823,16,FALSE)))","v":385.36},{"$f":"IF($A21=\"\",\"\",IF(OR(VLOOKUP($A21,Economática!$A$3:$AI$823,17,FALSE)=0,VLOOKUP($A21,Economática!$A$3:$AI$823,17,FALSE)=\"-\"),1/0,VLOOKUP($A21,Economática!$A$3:$AI$823,17,FALSE)))","v":502.45},{"$f":"IF($A21=\"\",\"\",IF(OR(VLOOKUP($A21,Economática!$A$3:$AI$823,18,FALSE)=0,VLOOKUP($A21,Economática!$A$3:$AI$823,18,FALSE)=\"-\"),1/0,VLOOKUP($A21,Economática!$A$3:$AI$823,18,FALSE)))","v":511.16},{"$f":"IF($A21=\"\",\"\",IF(OR(VLOOKUP($A21,Economática!$A$3:$AI$823,19,FALSE)=0,VLOOKUP($A21,Economática!$A$3:$AI$823,19,FALSE)=\"-\"),1/0,VLOOKUP($A21,Economática!$A$3:$AI$823,19,FALSE)))","v":502.45},{"$f":"IF($A21=\"\",\"\",VLOOKUP($A21,Economática!$A$3:$AI$823,20,FALSE)/E21)","v":1.5256316439899313},10.626922411254057,6.1447705622510611,42.801943875012441,{"$f":"IF($A21=\"\",\"\",IF(OR(VLOOKUP($A21,Economática!$A$3:$AI$823,21,FALSE)/100=0,VLOOKUP($A21,Economática!$A$3:$AI$823,21,FALSE)/100=\"-\"),1/0,VLOOKUP($A21,Economática!$A$3:$AI$823,21,FALSE)/100))","v":0.156694},{"$f":"IF($A21=\"\",\"\",IF(OR(VLOOKUP($A21,Economática!$A$3:$AI$823,22,FALSE)/100=0,VLOOKUP($A21,Economática!$A$3:$AI$823,22,FALSE)/100=\"-\"),1/0,VLOOKUP($A21,Economática!$A$3:$AI$823,22,FALSE)/100))","v":0.17018999999999998},{"$f":"IF($A21=\"\",\"\",IF(OR(VLOOKUP($A21,Economática!$A$3:$AI$823,23,FALSE)=0,VLOOKUP($A21,Economática!$A$3:$AI$823,23,FALSE)=\"-\"),1/0,VLOOKUP($A21,Economática!$A$3:$AI$823,23,FALSE)))","v":1130.7},{"$f":"IF($A21=\"\",\"\",IF(OR(VLOOKUP($A21,Economática!$A$3:$AI$823,24,FALSE)=0,VLOOKUP($A21,Economática!$A$3:$AI$823,24,FALSE)=\"-\"),1/0,VLOOKUP($A21,Economática!$A$3:$AI$823,24,FALSE)))","v":1137.3},{"$f":"IF($A21=\"\",\"\",IF(OR(VLOOKUP($A21,Economática!$A$3:$AI$823,25,FALSE)=0,VLOOKUP($A21,Economática!$A$3:$AI$823,25,FALSE)=\"-\"),1/0,VLOOKUP($A21,Economática!$A$3:$AI$823,25,FALSE)))","v":1137.3},{"$f":"IF($A21=\"\",\"\",IF(ISERROR((F21+VLOOKUP($A21,Economática!$A$3:$AI$823,26,FALSE))/Y21),(F21+VLOOKUP($A21,Economática!$A$3:$AI$823,26,FALSE))/Y21,(F21+VLOOKUP($A21,Economática!$A$3:$AI$823,26,FALSE))/Y21))","v":19.438531609953397},{"$f":"IF($A21=\"\",\"\",IF(OR(-VLOOKUP($A21,Economática!$A$3:$AI$823,27,FALSE)=0,-VLOOKUP($A21,Economática!$A$3:$AI$823,27,FALSE)=\"-\"),1/0,-VLOOKUP($A21,Economática!$A$3:$AI$823,27,FALSE)))","v":173.62},8.0731484348916995E-3,{"$f":"IF($A21=\"\",\"\",IF(OR(VLOOKUP($A21,Economática!$A$3:$AI$823,28,FALSE)=0,VLOOKUP($A21,Economática!$A$3:$AI$823,28,FALSE)=\"-\"),1/0,VLOOKUP($A21,Economática!$A$3:$AI$823,28,FALSE)))","v":0.1},{"$f":"IF($A21=\"\",\"\",IF(OR(VLOOKUP($A21,Economática!$A$3:$AI$823,29,FALSE)=0,VLOOKUP($A21,Economática!$A$3:$AI$823,29,FALSE)=\"-\"),1/0,VLOOKUP($A21,Economática!$A$3:$AI$823,29,FALSE)))","v":-28},{"$f":"IF($A21=\"\",\"\",IF(OR(VLOOKUP($A21,Economática!$A$3:$AI$823,30,FALSE)/E21=0,VLOOKUP($A21,Economática!$A$3:$AI$823,30,FALSE)/E21=\"-\",VLOOKUP($A21,Economática!$A$3:$AI$823,30,FALSE)/E21<33.33%,VLOOKUP($A21,Economática!$A$3:$AI$823,30,FALSE)/E21>100%),1/0,VLOOKUP($A21,Economática!$A$3:$AI$823,30,FALSE)/E21))","v":{"$error":"#DIV/0!"}},"RADL3",{"$f":"IF($A21=\"\",\"\",IF(OR(VLOOKUP($A21,Economática!$A$3:$AI$823,25,FALSE)=0,VLOOKUP($A21,Economática!$A$3:$AI$823,25,FALSE)=\"-\"),1/0,VLOOKUP($A21,Economática!$A$3:$AI$823,25,FALSE)))","v":1137.3},{"$f":"CONCATENATE(Economática!B23,\" \",Economática!C23)","v":"RaiaDrogasil ON"}]
[{"$f":"IF(Economática!AG24=\"\",\"\",Economática!AG24)","v":"CRFB3"},{"$f":"IF($A22=\"\",\"\",VLOOKUP(VLOOKUP($A22,Economática!$A$3:$AI$823,6,FALSE),Correção!$B$16:$C$36,2,FALSE))","v":"Comércio"},{"$f":"IF(Economática!B24=\"\",\"\",Economática!B24)","v":"Carrefour BR"},{"$f":"IF($A22=\"\",\"\",IF(OR(VLOOKUP($A22,Economática!$A$3:$AI$823,8,FALSE)=0,VLOOKUP($A22,Economática!$A$3:$AI$823,8,FALSE)=\"-\"),1/0,VLOOKUP($A22,Economática!$A$3:$AI$823,8,FALSE)))","v":20.09},{"$f":"IF(A22=\"\",\"\",IF(ISERROR(VLOOKUP(A22,Correção!$B$2:$G$13,9,FALSE)),VLOOKUP($A22,Economática!$A$3:$AI$823,9,FALSE),VLOOKUP(A22,Correção!$B$2:$G$13,9,FALSE)))","v":1983.4380000000001},{"$f":"IF($A22=\"\",\"\",Economática!G24)","v":39847.269999999997},{"$f":"IF($A22=\"\",\"\",IF(OR(VLOOKUP($A22,Economática!$A$3:$AI$823,10,FALSE)=0,VLOOKUP($A22,Economática!$A$3:$AI$823,10,FALSE)=\"-\"),1/0,VLOOKUP($A22,Economática!$A$3:$AI$823,10,FALSE)))","v":13033},{"$f":"IF($A22=\"\",\"\",IF(OR(VLOOKUP($A22,Economática!$A$3:$AI$823,11,FALSE)=0,VLOOKUP($A22,Economática!$A$3:$AI$823,11,FALSE)=\"-\"),1/0,VLOOKUP($A22,Economática!$A$3:$AI$823,11,FALSE)))","v":50280},{"$f":"IF($A22=\"\",\"\",IF(OR(VLOOKUP($A22,Economática!$A$3:$AI$823,12,FALSE)=0,VLOOKUP($A22,Economática!$A$3:$AI$823,12,FALSE)=\"-\"),1/0,VLOOKUP($A22,Economática!$A$3:$AI$823,12,FALSE)))","v":54267},{"$f":"IF($A22=\"\",\"\",IF(OR(VLOOKUP($A22,Economática!$A$3:$AI$823,13,FALSE)=0,VLOOKUP($A22,Economática!$A$3:$AI$823,13,FALSE)=\"-\"),1/0,VLOOKUP($A22,Economática!$A$3:$AI$823,13,FALSE)))","v":1599},{"$f":"IF($A22=\"\",\"\",IF(OR(VLOOKUP($A22,Economática!$A$3:$AI$823,14,FALSE)=0,VLOOKUP($A22,Economática!$A$3:$AI$823,14,FALSE)=\"-\"),1/0,VLOOKUP($A22,Economática!$A$3:$AI$823,14,FALSE)))","v":280},{"$f":"IF($A22=\"\",\"\",IF(OR(VLOOKUP($A22,Economática!$A$3:$AI$823,15,FALSE)=0,VLOOKUP($A22,Economática!$A$3:$AI$823,15,FALSE)=\"-\"),1/0,VLOOKUP($A22,Economática!$A$3:$AI$823,15,FALSE)))","v":669},{"$f":"IF($A22=\"\",\"\",IF(OR(VLOOKUP($A22,Economática!$A$3:$AI$823,16,FALSE)=0,VLOOKUP($A22,Economática!$A$3:$AI$823,16,FALSE)=\"-\"),1/0,VLOOKUP($A22,Economática!$A$3:$AI$823,16,FALSE)))","v":1024},{"$f":"IF($A22=\"\",\"\",IF(OR(VLOOKUP($A22,Economática!$A$3:$AI$823,17,FALSE)=0,VLOOKUP($A22,Economática!$A$3:$AI$823,17,FALSE)=\"-\"),1/0,VLOOKUP($A22,Economática!$A$3:$AI$823,17,FALSE)))","v":1660},{"$f":"IF($A22=\"\",\"\",IF(OR(VLOOKUP($A22,Economática!$A$3:$AI$823,18,FALSE)=0,VLOOKUP($A22,Economática!$A$3:$AI$823,18,FALSE)=\"-\"),1/0,VLOOKUP($A22,Economática!$A$3:$AI$823,18,FALSE)))","v":1599},{"$f":"IF($A22=\"\",\"\",IF(OR(VLOOKUP($A22,Economática!$A$3:$AI$823,19,FALSE)=0,VLOOKUP($A22,Economática!$A$3:$AI$823,19,FALSE)=\"-\"),1/0,VLOOKUP($A22,Economática!$A$3:$AI$823,19,FALSE)))","v":1660},{"$f":"IF($A22=\"\",\"\",VLOOKUP($A22,Economática!$A$3:$AI$823,20,FALSE)/E22)","v":0.83693062248479655},6.5709137366532246,3.0574134443336152,24.004379168674699,{"$f":"IF($A22=\"\",\"\",IF(OR(VLOOKUP($A22,Economática!$A$3:$AI$823,21,FALSE)/100=0,VLOOKUP($A22,Economática!$A$3:$AI$823,21,FALSE)/100=\"-\"),1/0,VLOOKUP($A22,Economática!$A$3:$AI$823,21,FALSE)/100))","v":0.14178100000000002},{"$f":"IF($A22=\"\",\"\",IF(OR(VLOOKUP($A22,Economática!$A$3:$AI$823,22,FALSE)/100=0,VLOOKUP($A22,Economática!$A$3:$AI$823,22,FALSE)/100=\"-\"),1/0,VLOOKUP($A22,Economática!$A$3:$AI$823,22,FALSE)/100))","v":-0.21499300000000002},{"$f":"IF($A22=\"\",\"\",IF(OR(VLOOKUP($A22,Economática!$A$3:$AI$823,23,FALSE)=0,VLOOKUP($A22,Economática!$A$3:$AI$823,23,FALSE)=\"-\"),1/0,VLOOKUP($A22,Economática!$A$3:$AI$823,23,FALSE)))","v":3785},{"$f":"IF($A22=\"\",\"\",IF(OR(VLOOKUP($A22,Economática!$A$3:$AI$823,24,FALSE)=0,VLOOKUP($A22,Economática!$A$3:$AI$823,24,FALSE)=\"-\"),1/0,VLOOKUP($A22,Economática!$A$3:$AI$823,24,FALSE)))","v":3891},{"$f":"IF($A22=\"\",\"\",IF(OR(VLOOKUP($A22,Economática!$A$3:$AI$823,25,FALSE)=0,VLOOKUP($A22,Economática!$A$3:$AI$823,25,FALSE)=\"-\"),1/0,VLOOKUP($A22,Economática!$A$3:$AI$823,25,FALSE)))","v":3891},{"$f":"IF($A22=\"\",\"\",IF(ISERROR((F22+VLOOKUP($A22,Economática!$A$3:$AI$823,26,FALSE))/Y22),(F22+VLOOKUP($A22,Economática!$A$3:$AI$823,26,FALSE))/Y22,(F22+VLOOKUP($A22,Economática!$A$3:$AI$823,26,FALSE))/Y22))","v":9.4647314315086088},{"$f":"IF($A22=\"\",\"\",IF(OR(-VLOOKUP($A22,Economática!$A$3:$AI$823,27,FALSE)=0,-VLOOKUP($A22,Economática!$A$3:$AI$823,27,FALSE)=\"-\"),1/0,-VLOOKUP($A22,Economática!$A$3:$AI$823,27,FALSE)))","v":697},1.749178801960586E-2,{"$f":"IF($A22=\"\",\"\",IF(OR(VLOOKUP($A22,Economática!$A$3:$AI$823,28,FALSE)=0,VLOOKUP($A22,Economática!$A$3:$AI$823,28,FALSE)=\"-\"),1/0,VLOOKUP($A22,Economática!$A$3:$AI$823,28,FALSE)))","v":2.9},{"$f":"IF($A22=\"\",\"\",IF(OR(VLOOKUP($A22,Economática!$A$3:$AI$823,29,FALSE)=0,VLOOKUP($A22,Economática!$A$3:$AI$823,29,FALSE)=\"-\"),1/0,VLOOKUP($A22,Economática!$A$3:$AI$823,29,FALSE)))","v":34.799999999999997},{"$f":"IF($A22=\"\",\"\",IF(OR(VLOOKUP($A22,Economática!$A$3:$AI$823,30,FALSE)/E22=0,VLOOKUP($A22,Economática!$A$3:$AI$823,30,FALSE)/E22=\"-\",VLOOKUP($A22,Economática!$A$3:$AI$823,30,FALSE)/E22<33.33%,VLOOKUP($A22,Economática!$A$3:$AI$823,30,FALSE)/E22>100%),1/0,VLOOKUP($A22,Economática!$A$3:$AI$823,30,FALSE)/E22))","v":0.99998084134719611},"CRFB3",{"$f":"IF($A22=\"\",\"\",IF(OR(VLOOKUP($A22,Economática!$A$3:$AI$823,25,FALSE)=0,VLOOKUP($A22,Economática!$A$3:$AI$823,25,FALSE)=\"-\"),1/0,VLOOKUP($A22,Economática!$A$3:$AI$823,25,FALSE)))","v":3891},{"$f":"CONCATENATE(Economática!B24,\" \",Economática!C24)","v":"Carrefour BR ON"}]
[{"$f":"IF(Economática!AG25=\"\",\"\",Economática!AG25)","v":"CGRA4"},{"$f":"IF($A23=\"\",\"\",VLOOKUP(VLOOKUP($A23,Economática!$A$3:$AI$823,6,FALSE),Correção!$B$16:$C$36,2,FALSE))","v":"Comércio"},{"$f":"IF(Economática!B25=\"\",\"\",Economática!B25)","v":"Grazziotin"},{"$f":"IF($A23=\"\",\"\",IF(OR(VLOOKUP($A23,Economática!$A$3:$AI$823,8,FALSE)=0,VLOOKUP($A23,Economática!$A$3:$AI$823,8,FALSE)=\"-\"),1/0,VLOOKUP($A23,Economática!$A$3:$AI$823,8,FALSE)))","v":24.08},{"$f":"IF(A23=\"\",\"\",IF(ISERROR(VLOOKUP(A23,Correção!$B$2:$G$13,9,FALSE)),VLOOKUP($A23,Economática!$A$3:$AI$823,9,FALSE),VLOOKUP(A23,Correção!$B$2:$G$13,9,FALSE)))","v":20.056999999999999},{"$f":"IF($A23=\"\",\"\",Economática!G25)","v":483.54},{"$f":"IF($A23=\"\",\"\",IF(OR(VLOOKUP($A23,Economática!$A$3:$AI$823,10,FALSE)=0,VLOOKUP($A23,Economática!$A$3:$AI$823,10,FALSE)=\"-\"),1/0,VLOOKUP($A23,Economática!$A$3:$AI$823,10,FALSE)))","v":497.95},{"$f":"IF($A23=\"\",\"\",IF(OR(VLOOKUP($A23,Economática!$A$3:$AI$823,11,FALSE)=0,VLOOKUP($A23,Economática!$A$3:$AI$823,11,FALSE)=\"-\"),1/0,VLOOKUP($A23,Economática!$A$3:$AI$823,11,FALSE)))","v":428.28},{"$f":"IF($A23=\"\",\"\",IF(OR(VLOOKUP($A23,Economática!$A$3:$AI$823,12,FALSE)=0,VLOOKUP($A23,Economática!$A$3:$AI$823,12,FALSE)=\"-\"),1/0,VLOOKUP($A23,Economática!$A$3:$AI$823,12,FALSE)))","v":463.17},{"$f":"IF($A23=\"\",\"\",IF(OR(VLOOKUP($A23,Economática!$A$3:$AI$823,13,FALSE)=0,VLOOKUP($A23,Economática!$A$3:$AI$823,13,FALSE)=\"-\"),1/0,VLOOKUP($A23,Economática!$A$3:$AI$823,13,FALSE)))","v":61.4},{"$f":"IF($A23=\"\",\"\",IF(OR(VLOOKUP($A23,Economática!$A$3:$AI$823,14,FALSE)=0,VLOOKUP($A23,Economática!$A$3:$AI$823,14,FALSE)=\"-\"),1/0,VLOOKUP($A23,Economática!$A$3:$AI$823,14,FALSE)))","v":4.76},{"$f":"IF($A23=\"\",\"\",IF(OR(VLOOKUP($A23,Economática!$A$3:$AI$823,15,FALSE)=0,VLOOKUP($A23,Economática!$A$3:$AI$823,15,FALSE)=\"-\"),1/0,VLOOKUP($A23,Economática!$A$3:$AI$823,15,FALSE)))","v":22.57},{"$f":"IF($A23=\"\",\"\",IF(OR(VLOOKUP($A23,Economática!$A$3:$AI$823,16,FALSE)=0,VLOOKUP($A23,Economática!$A$3:$AI$823,16,FALSE)=\"-\"),1/0,VLOOKUP($A23,Economática!$A$3:$AI$823,16,FALSE)))","v":32.29},{"$f":"IF($A23=\"\",\"\",IF(OR(VLOOKUP($A23,Economática!$A$3:$AI$823,17,FALSE)=0,VLOOKUP($A23,Economática!$A$3:$AI$823,17,FALSE)=\"-\"),1/0,VLOOKUP($A23,Economática!$A$3:$AI$823,17,FALSE)))","v":53.77},{"$f":"IF($A23=\"\",\"\",IF(OR(VLOOKUP($A23,Economática!$A$3:$AI$823,18,FALSE)=0,VLOOKUP($A23,Economática!$A$3:$AI$823,18,FALSE)=\"-\"),1/0,VLOOKUP($A23,Economática!$A$3:$AI$823,18,FALSE)))","v":61.4},{"$f":"IF($A23=\"\",\"\",IF(OR(VLOOKUP($A23,Economática!$A$3:$AI$823,19,FALSE)=0,VLOOKUP($A23,Economática!$A$3:$AI$823,19,FALSE)=\"-\"),1/0,VLOOKUP($A23,Economática!$A$3:$AI$823,19,FALSE)))","v":53.77},{"$f":"IF($A23=\"\",\"\",VLOOKUP($A23,Economática!$A$3:$AI$823,20,FALSE)/E23)","v":2.6808595502816974},24.826743780226355,0.96992179937744749,8.9821937883578187,{"$f":"IF($A23=\"\",\"\",IF(OR(VLOOKUP($A23,Economática!$A$3:$AI$823,21,FALSE)/100=0,VLOOKUP($A23,Economática!$A$3:$AI$823,21,FALSE)/100=\"-\"),1/0,VLOOKUP($A23,Economática!$A$3:$AI$823,21,FALSE)/100))","v":0.11241300000000001},{"$f":"IF($A23=\"\",\"\",IF(OR(VLOOKUP($A23,Economática!$A$3:$AI$823,22,FALSE)/100=0,VLOOKUP($A23,Economática!$A$3:$AI$823,22,FALSE)/100=\"-\"),1/0,VLOOKUP($A23,Economática!$A$3:$AI$823,22,FALSE)/100))","v":-0.12510199999999999},{"$f":"IF($A23=\"\",\"\",IF(OR(VLOOKUP($A23,Economática!$A$3:$AI$823,23,FALSE)=0,VLOOKUP($A23,Economática!$A$3:$AI$823,23,FALSE)=\"-\"),1/0,VLOOKUP($A23,Economática!$A$3:$AI$823,23,FALSE)))","v":61.2},{"$f":"IF($A23=\"\",\"\",IF(OR(VLOOKUP($A23,Economática!$A$3:$AI$823,24,FALSE)=0,VLOOKUP($A23,Economática!$A$3:$AI$823,24,FALSE)=\"-\"),1/0,VLOOKUP($A23,Economática!$A$3:$AI$823,24,FALSE)))","v":59.8},{"$f":"IF($A23=\"\",\"\",IF(OR(VLOOKUP($A23,Economática!$A$3:$AI$823,25,FALSE)=0,VLOOKUP($A23,Economática!$A$3:$AI$823,25,FALSE)=\"-\"),1/0,VLOOKUP($A23,Economática!$A$3:$AI$823,25,FALSE)))","v":59.8},{"$f":"IF($A23=\"\",\"\",IF(ISERROR((F23+VLOOKUP($A23,Economática!$A$3:$AI$823,26,FALSE))/Y23),(F23+VLOOKUP($A23,Economática!$A$3:$AI$823,26,FALSE))/Y23,(F23+VLOOKUP($A23,Economática!$A$3:$AI$823,26,FALSE))/Y23))","v":7.0442474916387967},{"$f":"IF($A23=\"\",\"\",IF(OR(-VLOOKUP($A23,Economática!$A$3:$AI$823,27,FALSE)=0,-VLOOKUP($A23,Economática!$A$3:$AI$823,27,FALSE)=\"-\"),1/0,-VLOOKUP($A23,Economática!$A$3:$AI$823,27,FALSE)))","v":22},4.5497787153079373E-2,{"$f":"IF($A23=\"\",\"\",IF(OR(VLOOKUP($A23,Economática!$A$3:$AI$823,28,FALSE)=0,VLOOKUP($A23,Economática!$A$3:$AI$823,28,FALSE)=\"-\"),1/0,VLOOKUP($A23,Economática!$A$3:$AI$823,28,FALSE)))","v":-7.6},{"$f":"IF($A23=\"\",\"\",IF(OR(VLOOKUP($A23,Economática!$A$3:$AI$823,29,FALSE)=0,VLOOKUP($A23,Economática!$A$3:$AI$823,29,FALSE)=\"-\"),1/0,VLOOKUP($A23,Economática!$A$3:$AI$823,29,FALSE)))","v":-7.5},{"$f":"IF($A23=\"\",\"\",IF(OR(VLOOKUP($A23,Economática!$A$3:$AI$823,30,FALSE)/E23=0,VLOOKUP($A23,Economática!$A$3:$AI$823,30,FALSE)/E23=\"-\",VLOOKUP($A23,Economática!$A$3:$AI$823,30,FALSE)/E23<33.33%,VLOOKUP($A23,Economática!$A$3:$AI$823,30,FALSE)/E23>100%),1/0,VLOOKUP($A23,Economática!$A$3:$AI$823,30,FALSE)/E23))","v":0.40883482076083161},"CGRA4",{"$f":"IF($A23=\"\",\"\",IF(OR(VLOOKUP($A23,Economática!$A$3:$AI$823,25,FALSE)=0,VLOOKUP($A23,Economática!$A$3:$AI$823,25,FALSE)=\"-\"),1/0,VLOOKUP($A23,Economática!$A$3:$AI$823,25,FALSE)))","v":59.8},{"$f":"CONCATENATE(Economática!B25,\" \",Economática!C25)","v":"Grazziotin PN"}]
[{"$f":"IF(Economática!AG26=\"\",\"\",Economática!AG26)","v":"PCAR4"},{"$f":"IF($A24=\"\",\"\",VLOOKUP(VLOOKUP($A24,Economática!$A$3:$AI$823,6,FALSE),Correção!$B$16:$C$36,2,FALSE))","v":"Comércio"},{"$f":"IF(Economática!B26=\"\",\"\",Economática!B26)","v":"P.Acucar-Cbd"},{"$f":"IF($A24=\"\",\"\",IF(OR(VLOOKUP($A24,Economática!$A$3:$AI$823,8,FALSE)=0,VLOOKUP($A24,Economática!$A$3:$AI$823,8,FALSE)=\"-\"),1/0,VLOOKUP($A24,Economática!$A$3:$AI$823,8,FALSE)))","v":91.46},{"$f":"IF(A24=\"\",\"\",IF(ISERROR(VLOOKUP(A24,Correção!$B$2:$G$13,9,FALSE)),VLOOKUP($A24,Economática!$A$3:$AI$823,9,FALSE),VLOOKUP(A24,Correção!$B$2:$G$13,9,FALSE)))","v":266.61200000000002},{"$f":"IF($A24=\"\",\"\",Economática!G26)","v":24384.33},{"$f":"IF($A24=\"\",\"\",IF(OR(VLOOKUP($A24,Economática!$A$3:$AI$823,10,FALSE)=0,VLOOKUP($A24,Economática!$A$3:$AI$823,10,FALSE)=\"-\"),1/0,VLOOKUP($A24,Economática!$A$3:$AI$823,10,FALSE)))","v":11083},{"$f":"IF($A24=\"\",\"\",IF(OR(VLOOKUP($A24,Economática!$A$3:$AI$823,11,FALSE)=0,VLOOKUP($A24,Economática!$A$3:$AI$823,11,FALSE)=\"-\"),1/0,VLOOKUP($A24,Economática!$A$3:$AI$823,11,FALSE)))","v":44634},{"$f":"IF($A24=\"\",\"\",IF(OR(VLOOKUP($A24,Economática!$A$3:$AI$823,12,FALSE)=0,VLOOKUP($A24,Economática!$A$3:$AI$823,12,FALSE)=\"-\"),1/0,VLOOKUP($A24,Economática!$A$3:$AI$823,12,FALSE)))","v":49388},{"$f":"IF($A24=\"\",\"\",IF(OR(VLOOKUP($A24,Economática!$A$3:$AI$823,13,FALSE)=0,VLOOKUP($A24,Economática!$A$3:$AI$823,13,FALSE)=\"-\"),1/0,VLOOKUP($A24,Economática!$A$3:$AI$823,13,FALSE)))","v":619},{"$f":"IF($A24=\"\",\"\",IF(OR(VLOOKUP($A24,Economática!$A$3:$AI$823,14,FALSE)=0,VLOOKUP($A24,Economática!$A$3:$AI$823,14,FALSE)=\"-\"),1/0,VLOOKUP($A24,Economática!$A$3:$AI$823,14,FALSE)))","v":150},{"$f":"IF($A24=\"\",\"\",IF(OR(VLOOKUP($A24,Economática!$A$3:$AI$823,15,FALSE)=0,VLOOKUP($A24,Economática!$A$3:$AI$823,15,FALSE)=\"-\"),1/0,VLOOKUP($A24,Economática!$A$3:$AI$823,15,FALSE)))","v":628},{"$f":"IF($A24=\"\",\"\",IF(OR(VLOOKUP($A24,Economática!$A$3:$AI$823,16,FALSE)=0,VLOOKUP($A24,Economática!$A$3:$AI$823,16,FALSE)=\"-\"),1/0,VLOOKUP($A24,Economática!$A$3:$AI$823,16,FALSE)))","v":778},{"$f":"IF($A24=\"\",\"\",IF(OR(VLOOKUP($A24,Economática!$A$3:$AI$823,17,FALSE)=0,VLOOKUP($A24,Economática!$A$3:$AI$823,17,FALSE)=\"-\"),1/0,VLOOKUP($A24,Economática!$A$3:$AI$823,17,FALSE)))","v":1193},{"$f":"IF($A24=\"\",\"\",IF(OR(VLOOKUP($A24,Economática!$A$3:$AI$823,18,FALSE)=0,VLOOKUP($A24,Economática!$A$3:$AI$823,18,FALSE)=\"-\"),1/0,VLOOKUP($A24,Economática!$A$3:$AI$823,18,FALSE)))","v":619},{"$f":"IF($A24=\"\",\"\",IF(OR(VLOOKUP($A24,Economática!$A$3:$AI$823,19,FALSE)=0,VLOOKUP($A24,Economática!$A$3:$AI$823,19,FALSE)=\"-\"),1/0,VLOOKUP($A24,Economática!$A$3:$AI$823,19,FALSE)))","v":1193},{"$f":"IF($A24=\"\",\"\",VLOOKUP($A24,Economática!$A$3:$AI$823,20,FALSE)/E24)","v":4.474667306797893},41.569771803219659,2.2001564125236848,20.439508398994132,{"$f":"IF($A24=\"\",\"\",IF(OR(VLOOKUP($A24,Economática!$A$3:$AI$823,21,FALSE)/100=0,VLOOKUP($A24,Economática!$A$3:$AI$823,21,FALSE)/100=\"-\"),1/0,VLOOKUP($A24,Economática!$A$3:$AI$823,21,FALSE)/100))","v":8.8774999999999993E-2},{"$f":"IF($A24=\"\",\"\",IF(OR(VLOOKUP($A24,Economática!$A$3:$AI$823,22,FALSE)/100=0,VLOOKUP($A24,Economática!$A$3:$AI$823,22,FALSE)/100=\"-\"),1/0,VLOOKUP($A24,Economática!$A$3:$AI$823,22,FALSE)/100))","v":8.2933000000000007E-2},{"$f":"IF($A24=\"\",\"\",IF(OR(VLOOKUP($A24,Economática!$A$3:$AI$823,23,FALSE)=0,VLOOKUP($A24,Economática!$A$3:$AI$823,23,FALSE)=\"-\"),1/0,VLOOKUP($A24,Economática!$A$3:$AI$823,23,FALSE)))","v":2342},{"$f":"IF($A24=\"\",\"\",IF(OR(VLOOKUP($A24,Economática!$A$3:$AI$823,24,FALSE)=0,VLOOKUP($A24,Economática!$A$3:$AI$823,24,FALSE)=\"-\"),1/0,VLOOKUP($A24,Economática!$A$3:$AI$823,24,FALSE)))","v":3066},{"$f":"IF($A24=\"\",\"\",IF(OR(VLOOKUP($A24,Economática!$A$3:$AI$823,25,FALSE)=0,VLOOKUP($A24,Economática!$A$3:$AI$823,25,FALSE)=\"-\"),1/0,VLOOKUP($A24,Economática!$A$3:$AI$823,25,FALSE)))","v":3066},{"$f":"IF($A24=\"\",\"\",IF(ISERROR((F24+VLOOKUP($A24,Economática!$A$3:$AI$823,26,FALSE))/Y24),(F24+VLOOKUP($A24,Economática!$A$3:$AI$823,26,FALSE))/Y24,(F24+VLOOKUP($A24,Economática!$A$3:$AI$823,26,FALSE))/Y24))","v":8.3301793868232235},{"$f":"IF($A24=\"\",\"\",IF(OR(-VLOOKUP($A24,Economática!$A$3:$AI$823,27,FALSE)=0,-VLOOKUP($A24,Economática!$A$3:$AI$823,27,FALSE)=\"-\"),1/0,-VLOOKUP($A24,Economática!$A$3:$AI$823,27,FALSE)))","v":342},1.4025400738917164E-2,{"$f":"IF($A24=\"\",\"\",IF(OR(VLOOKUP($A24,Economática!$A$3:$AI$823,28,FALSE)=0,VLOOKUP($A24,Economática!$A$3:$AI$823,28,FALSE)=\"-\"),1/0,VLOOKUP($A24,Economática!$A$3:$AI$823,28,FALSE)))","v":-1},{"$f":"IF($A24=\"\",\"\",IF(OR(VLOOKUP($A24,Economática!$A$3:$AI$823,29,FALSE)=0,VLOOKUP($A24,Economática!$A$3:$AI$823,29,FALSE)=\"-\"),1/0,VLOOKUP($A24,Economática!$A$3:$AI$823,29,FALSE)))","v":18.899999999999999},{"$f":"IF($A24=\"\",\"\",IF(OR(VLOOKUP($A24,Economática!$A$3:$AI$823,30,FALSE)/E24=0,VLOOKUP($A24,Economática!$A$3:$AI$823,30,FALSE)/E24=\"-\",VLOOKUP($A24,Economática!$A$3:$AI$823,30,FALSE)/E24<33.33%,VLOOKUP($A24,Economática!$A$3:$AI$823,30,FALSE)/E24>100%),1/0,VLOOKUP($A24,Economática!$A$3:$AI$823,30,FALSE)/E24))","v":0.37395166009031849},"PCAR4",{"$f":"IF($A24=\"\",\"\",IF(OR(VLOOKUP($A24,Economática!$A$3:$AI$823,25,FALSE)=0,VLOOKUP($A24,Economática!$A$3:$AI$823,25,FALSE)=\"-\"),1/0,VLOOKUP($A24,Economática!$A$3:$AI$823,25,FALSE)))","v":3066},{"$f":"CONCATENATE(Economática!B26,\" \",Economática!C26)","v":"P.Acucar-Cbd PN"}]
[{"$f":"IF(Economática!AG27=\"\",\"\",Economática!AG27)","v":"WLMM4"},{"$f":"IF($A25=\"\",\"\",VLOOKUP(VLOOKUP($A25,Economática!$A$3:$AI$823,6,FALSE),Correção!$B$16:$C$36,2,FALSE))","v":"Comércio"},{"$f":"IF(Economática!B27=\"\",\"\",Economática!B27)","v":"Wlm Ind Com"},{"$f":"IF($A25=\"\",\"\",IF(OR(VLOOKUP($A25,Economática!$A$3:$AI$823,8,FALSE)=0,VLOOKUP($A25,Economática!$A$3:$AI$823,8,FALSE)=\"-\"),1/0,VLOOKUP($A25,Economática!$A$3:$AI$823,8,FALSE)))","v":6.71},{"$f":"IF(A25=\"\",\"\",IF(ISERROR(VLOOKUP(A25,Correção!$B$2:$G$13,9,FALSE)),VLOOKUP($A25,Economática!$A$3:$AI$823,9,FALSE),VLOOKUP(A25,Correção!$B$2:$G$13,9,FALSE)))","v":36.414999999999999},{"$f":"IF($A25=\"\",\"\",Economática!G27)","v":233.41},{"$f":"IF($A25=\"\",\"\",IF(OR(VLOOKUP($A25,Economática!$A$3:$AI$823,10,FALSE)=0,VLOOKUP($A25,Economática!$A$3:$AI$823,10,FALSE)=\"-\"),1/0,VLOOKUP($A25,Economática!$A$3:$AI$823,10,FALSE)))","v":388.14},{"$f":"IF($A25=\"\",\"\",IF(OR(VLOOKUP($A25,Economática!$A$3:$AI$823,11,FALSE)=0,VLOOKUP($A25,Economática!$A$3:$AI$823,11,FALSE)=\"-\"),1/0,VLOOKUP($A25,Economática!$A$3:$AI$823,11,FALSE)))","v":489.74},{"$f":"IF($A25=\"\",\"\",IF(OR(VLOOKUP($A25,Economática!$A$3:$AI$823,12,FALSE)=0,VLOOKUP($A25,Economática!$A$3:$AI$823,12,FALSE)=\"-\"),1/0,VLOOKUP($A25,Economática!$A$3:$AI$823,12,FALSE)))","v":752.3},{"$f":"IF($A25=\"\",\"\",IF(OR(VLOOKUP($A25,Economática!$A$3:$AI$823,13,FALSE)=0,VLOOKUP($A25,Economática!$A$3:$AI$823,13,FALSE)=\"-\"),1/0,VLOOKUP($A25,Economática!$A$3:$AI$823,13,FALSE)))","v":-6.68},{"$f":"IF($A25=\"\",\"\",IF(OR(VLOOKUP($A25,Economática!$A$3:$AI$823,14,FALSE)=0,VLOOKUP($A25,Economática!$A$3:$AI$823,14,FALSE)=\"-\"),1/0,VLOOKUP($A25,Economática!$A$3:$AI$823,14,FALSE)))","v":5.43},{"$f":"IF($A25=\"\",\"\",IF(OR(VLOOKUP($A25,Economática!$A$3:$AI$823,15,FALSE)=0,VLOOKUP($A25,Economática!$A$3:$AI$823,15,FALSE)=\"-\"),1/0,VLOOKUP($A25,Economática!$A$3:$AI$823,15,FALSE)))","v":4.4000000000000004},{"$f":"IF($A25=\"\",\"\",IF(OR(VLOOKUP($A25,Economática!$A$3:$AI$823,16,FALSE)=0,VLOOKUP($A25,Economática!$A$3:$AI$823,16,FALSE)=\"-\"),1/0,VLOOKUP($A25,Economática!$A$3:$AI$823,16,FALSE)))","v":11.13},{"$f":"IF($A25=\"\",\"\",IF(OR(VLOOKUP($A25,Economática!$A$3:$AI$823,17,FALSE)=0,VLOOKUP($A25,Economática!$A$3:$AI$823,17,FALSE)=\"-\"),1/0,VLOOKUP($A25,Economática!$A$3:$AI$823,17,FALSE)))","v":16.079999999999998},{"$f":"IF($A25=\"\",\"\",IF(OR(VLOOKUP($A25,Economática!$A$3:$AI$823,18,FALSE)=0,VLOOKUP($A25,Economática!$A$3:$AI$823,18,FALSE)=\"-\"),1/0,VLOOKUP($A25,Economática!$A$3:$AI$823,18,FALSE)))","v":-6.68},{"$f":"IF($A25=\"\",\"\",IF(OR(VLOOKUP($A25,Economática!$A$3:$AI$823,19,FALSE)=0,VLOOKUP($A25,Economática!$A$3:$AI$823,19,FALSE)=\"-\"),1/0,VLOOKUP($A25,Economática!$A$3:$AI$823,19,FALSE)))","v":16.079999999999998},{"$f":"IF($A25=\"\",\"\",VLOOKUP($A25,Economática!$A$3:$AI$823,20,FALSE)/E25)","v":0.44157627351366191},10.65879445283537,0.62952710362240427,15.195562810945274,{"$f":"IF($A25=\"\",\"\",IF(OR(VLOOKUP($A25,Economática!$A$3:$AI$823,21,FALSE)/100=0,VLOOKUP($A25,Economática!$A$3:$AI$823,21,FALSE)/100=\"-\"),1/0,VLOOKUP($A25,Economática!$A$3:$AI$823,21,FALSE)/100))","v":4.2812000000000003E-2},{"$f":"IF($A25=\"\",\"\",IF(OR(VLOOKUP($A25,Economática!$A$3:$AI$823,22,FALSE)/100=0,VLOOKUP($A25,Economática!$A$3:$AI$823,22,FALSE)/100=\"-\"),1/0,VLOOKUP($A25,Economática!$A$3:$AI$823,22,FALSE)/100))","v":-7.8728999999999993E-2},{"$f":"IF($A25=\"\",\"\",IF(OR(VLOOKUP($A25,Economática!$A$3:$AI$823,23,FALSE)=0,VLOOKUP($A25,Economática!$A$3:$AI$823,23,FALSE)=\"-\"),1/0,VLOOKUP($A25,Economática!$A$3:$AI$823,23,FALSE)))","v":-4.7},{"$f":"IF($A25=\"\",\"\",IF(OR(VLOOKUP($A25,Economática!$A$3:$AI$823,24,FALSE)=0,VLOOKUP($A25,Economática!$A$3:$AI$823,24,FALSE)=\"-\"),1/0,VLOOKUP($A25,Economática!$A$3:$AI$823,24,FALSE)))","v":21.9},{"$f":"IF($A25=\"\",\"\",IF(OR(VLOOKUP($A25,Economática!$A$3:$AI$823,25,FALSE)=0,VLOOKUP($A25,Economática!$A$3:$AI$823,25,FALSE)=\"-\"),1/0,VLOOKUP($A25,Economática!$A$3:$AI$823,25,FALSE)))","v":21.9},{"$f":"IF($A25=\"\",\"\",IF(ISERROR((F25+VLOOKUP($A25,Economática!$A$3:$AI$823,26,FALSE))/Y25),(F25+VLOOKUP($A25,Economática!$A$3:$AI$823,26,FALSE))/Y25,(F25+VLOOKUP($A25,Economática!$A$3:$AI$823,26,FALSE))/Y25))","v":9.2611872146118728},{"$f":"IF($A25=\"\",\"\",IF(OR(-VLOOKUP($A25,Economática!$A$3:$AI$823,27,FALSE)=0,-VLOOKUP($A25,Economática!$A$3:$AI$823,27,FALSE)=\"-\"),1/0,-VLOOKUP($A25,Economática!$A$3:$AI$823,27,FALSE)))","v":{"$error":"#DIV/0!"}},{"$error":"#DIV/0!"},{"$f":"IF($A25=\"\",\"\",IF(OR(VLOOKUP($A25,Economática!$A$3:$AI$823,28,FALSE)=0,VLOOKUP($A25,Economática!$A$3:$AI$823,28,FALSE)=\"-\"),1/0,VLOOKUP($A25,Economática!$A$3:$AI$823,28,FALSE)))","v":5},{"$f":"IF($A25=\"\",\"\",IF(OR(VLOOKUP($A25,Economática!$A$3:$AI$823,29,FALSE)=0,VLOOKUP($A25,Economática!$A$3:$AI$823,29,FALSE)=\"-\"),1/0,VLOOKUP($A25,Economática!$A$3:$AI$823,29,FALSE)))","v":27.8},{"$f":"IF($A25=\"\",\"\",IF(OR(VLOOKUP($A25,Economática!$A$3:$AI$823,30,FALSE)/E25=0,VLOOKUP($A25,Economática!$A$3:$AI$823,30,FALSE)/E25=\"-\",VLOOKUP($A25,Economática!$A$3:$AI$823,30,FALSE)/E25<33.33%,VLOOKUP($A25,Economática!$A$3:$AI$823,30,FALSE)/E25>100%),1/0,VLOOKUP($A25,Economática!$A$3:$AI$823,30,FALSE)/E25))","v":0.45585610325415354},"WLMM4",{"$f":"IF($A25=\"\",\"\",IF(OR(VLOOKUP($A25,Economática!$A$3:$AI$823,25,FALSE)=0,VLOOKUP($A25,Economática!$A$3:$AI$823,25,FALSE)=\"-\"),1/0,VLOOKUP($A25,Economática!$A$3:$AI$823,25,FALSE)))","v":21.9},{"$f":"CONCATENATE(Economática!B27,\" \",Economática!C27)","v":"Wlm Ind Com PN"}]
[{"$f":"IF(Economática!AG28=\"\",\"\",Economática!AG28)","v":"LAME4"},{"$f":"IF($A26=\"\",\"\",VLOOKUP(VLOOKUP($A26,Economática!$A$3:$AI$823,6,FALSE),Correção!$B$16:$C$36,2,FALSE))","v":"Comércio"},{"$f":"IF(Economática!B28=\"\",\"\",Economática!B28)","v":"Lojas Americ"},{"$f":"IF($A26=\"\",\"\",IF(OR(VLOOKUP($A26,Economática!$A$3:$AI$823,8,FALSE)=0,VLOOKUP($A26,Economática!$A$3:$AI$823,8,FALSE)=\"-\"),1/0,VLOOKUP($A26,Economática!$A$3:$AI$823,8,FALSE)))","v":16.77},{"$f":"IF(A26=\"\",\"\",IF(ISERROR(VLOOKUP(A26,Correção!$B$2:$G$13,9,FALSE)),VLOOKUP($A26,Economática!$A$3:$AI$823,9,FALSE),VLOOKUP(A26,Correção!$B$2:$G$13,9,FALSE)))","v":1598.3530000000001},{"$f":"IF($A26=\"\",\"\",Economática!G28)","v":24887.58},{"$f":"IF($A26=\"\",\"\",IF(OR(VLOOKUP($A26,Economática!$A$3:$AI$823,10,FALSE)=0,VLOOKUP($A26,Economática!$A$3:$AI$823,10,FALSE)=\"-\"),1/0,VLOOKUP($A26,Economática!$A$3:$AI$823,10,FALSE)))","v":4924.6000000000004},{"$f":"IF($A26=\"\",\"\",IF(OR(VLOOKUP($A26,Economática!$A$3:$AI$823,11,FALSE)=0,VLOOKUP($A26,Economática!$A$3:$AI$823,11,FALSE)=\"-\"),1/0,VLOOKUP($A26,Economática!$A$3:$AI$823,11,FALSE)))","v":17044.72},{"$f":"IF($A26=\"\",\"\",IF(OR(VLOOKUP($A26,Economática!$A$3:$AI$823,12,FALSE)=0,VLOOKUP($A26,Economática!$A$3:$AI$823,12,FALSE)=\"-\"),1/0,VLOOKUP($A26,Economática!$A$3:$AI$823,12,FALSE)))","v":17689.86},{"$f":"IF($A26=\"\",\"\",IF(OR(VLOOKUP($A26,Economática!$A$3:$AI$823,13,FALSE)=0,VLOOKUP($A26,Economática!$A$3:$AI$823,13,FALSE)=\"-\"),1/0,VLOOKUP($A26,Economática!$A$3:$AI$823,13,FALSE)))","v":237.63},{"$f":"IF($A26=\"\",\"\",IF(OR(VLOOKUP($A26,Economática!$A$3:$AI$823,14,FALSE)=0,VLOOKUP($A26,Economática!$A$3:$AI$823,14,FALSE)=\"-\"),1/0,VLOOKUP($A26,Economática!$A$3:$AI$823,14,FALSE)))","v":20.02},{"$f":"IF($A26=\"\",\"\",IF(OR(VLOOKUP($A26,Economática!$A$3:$AI$823,15,FALSE)=0,VLOOKUP($A26,Economática!$A$3:$AI$823,15,FALSE)=\"-\"),1/0,VLOOKUP($A26,Economática!$A$3:$AI$823,15,FALSE)))","v":46.29},{"$f":"IF($A26=\"\",\"\",IF(OR(VLOOKUP($A26,Economática!$A$3:$AI$823,16,FALSE)=0,VLOOKUP($A26,Economática!$A$3:$AI$823,16,FALSE)=\"-\"),1/0,VLOOKUP($A26,Economática!$A$3:$AI$823,16,FALSE)))","v":107.69},{"$f":"IF($A26=\"\",\"\",IF(OR(VLOOKUP($A26,Economática!$A$3:$AI$823,17,FALSE)=0,VLOOKUP($A26,Economática!$A$3:$AI$823,17,FALSE)=\"-\"),1/0,VLOOKUP($A26,Economática!$A$3:$AI$823,17,FALSE)))","v":380.49},{"$f":"IF($A26=\"\",\"\",IF(OR(VLOOKUP($A26,Economática!$A$3:$AI$823,18,FALSE)=0,VLOOKUP($A26,Economática!$A$3:$AI$823,18,FALSE)=\"-\"),1/0,VLOOKUP($A26,Economática!$A$3:$AI$823,18,FALSE)))","v":237.63},{"$f":"IF($A26=\"\",\"\",IF(OR(VLOOKUP($A26,Economática!$A$3:$AI$823,19,FALSE)=0,VLOOKUP($A26,Economática!$A$3:$AI$823,19,FALSE)=\"-\"),1/0,VLOOKUP($A26,Economática!$A$3:$AI$823,19,FALSE)))","v":380.49},{"$f":"IF($A26=\"\",\"\",VLOOKUP($A26,Economática!$A$3:$AI$823,20,FALSE)/E26)","v":0.23805129405081354},3.0810465522947683,5.4429557344758965,70.447002049988171,{"$f":"IF($A26=\"\",\"\",IF(OR(VLOOKUP($A26,Economática!$A$3:$AI$823,21,FALSE)/100=0,VLOOKUP($A26,Economática!$A$3:$AI$823,21,FALSE)/100=\"-\"),1/0,VLOOKUP($A26,Economática!$A$3:$AI$823,21,FALSE)/100))","v":3.7257999999999999E-2},{"$f":"IF($A26=\"\",\"\",IF(OR(VLOOKUP($A26,Economática!$A$3:$AI$823,22,FALSE)/100=0,VLOOKUP($A26,Economática!$A$3:$AI$823,22,FALSE)/100=\"-\"),1/0,VLOOKUP($A26,Economática!$A$3:$AI$823,22,FALSE)/100))","v":0.88626000000000005},{"$f":"IF($A26=\"\",\"\",IF(OR(VLOOKUP($A26,Economática!$A$3:$AI$823,23,FALSE)=0,VLOOKUP($A26,Economática!$A$3:$AI$823,23,FALSE)=\"-\"),1/0,VLOOKUP($A26,Economática!$A$3:$AI$823,23,FALSE)))","v":2682.2},{"$f":"IF($A26=\"\",\"\",IF(OR(VLOOKUP($A26,Economática!$A$3:$AI$823,24,FALSE)=0,VLOOKUP($A26,Economática!$A$3:$AI$823,24,FALSE)=\"-\"),1/0,VLOOKUP($A26,Economática!$A$3:$AI$823,24,FALSE)))","v":2654.4},{"$f":"IF($A26=\"\",\"\",IF(OR(VLOOKUP($A26,Economática!$A$3:$AI$823,25,FALSE)=0,VLOOKUP($A26,Economática!$A$3:$AI$823,25,FALSE)=\"-\"),1/0,VLOOKUP($A26,Economática!$A$3:$AI$823,25,FALSE)))","v":2654.4},{"$f":"IF($A26=\"\",\"\",IF(ISERROR((F26+VLOOKUP($A26,Economática!$A$3:$AI$823,26,FALSE))/Y26),(F26+VLOOKUP($A26,Economática!$A$3:$AI$823,26,FALSE))/Y26,(F26+VLOOKUP($A26,Economática!$A$3:$AI$823,26,FALSE))/Y26))","v":11.474804852320675},{"$f":"IF($A26=\"\",\"\",IF(OR(-VLOOKUP($A26,Economática!$A$3:$AI$823,27,FALSE)=0,-VLOOKUP($A26,Economática!$A$3:$AI$823,27,FALSE)=\"-\"),1/0,-VLOOKUP($A26,Economática!$A$3:$AI$823,27,FALSE)))","v":101.73},4.0875810343954698E-3,{"$f":"IF($A26=\"\",\"\",IF(OR(VLOOKUP($A26,Economática!$A$3:$AI$823,28,FALSE)=0,VLOOKUP($A26,Economática!$A$3:$AI$823,28,FALSE)=\"-\"),1/0,VLOOKUP($A26,Economática!$A$3:$AI$823,28,FALSE)))","v":-15.8},{"$f":"IF($A26=\"\",\"\",IF(OR(VLOOKUP($A26,Economática!$A$3:$AI$823,29,FALSE)=0,VLOOKUP($A26,Economática!$A$3:$AI$823,29,FALSE)=\"-\"),1/0,VLOOKUP($A26,Economática!$A$3:$AI$823,29,FALSE)))","v":-0.8},{"$f":"IF($A26=\"\",\"\",IF(OR(VLOOKUP($A26,Economática!$A$3:$AI$823,30,FALSE)/E26=0,VLOOKUP($A26,Economática!$A$3:$AI$823,30,FALSE)/E26=\"-\",VLOOKUP($A26,Economática!$A$3:$AI$823,30,FALSE)/E26<33.33%,VLOOKUP($A26,Economática!$A$3:$AI$823,30,FALSE)/E26>100%),1/0,VLOOKUP($A26,Economática!$A$3:$AI$823,30,FALSE)/E26))","v":0.33778520764812275},"LAME4",{"$f":"IF($A26=\"\",\"\",IF(OR(VLOOKUP($A26,Economática!$A$3:$AI$823,25,FALSE)=0,VLOOKUP($A26,Economática!$A$3:$AI$823,25,FALSE)=\"-\"),1/0,VLOOKUP($A26,Economática!$A$3:$AI$823,25,FALSE)))","v":2654.4},{"$f":"CONCATENATE(Economática!B28,\" \",Economática!C28)","v":"Lojas Americ PN"}]
[{"$f":"IF(Economática!AG29=\"\",\"\",Economática!AG29)","v":"AMAR3"},{"$f":"IF($A27=\"\",\"\",VLOOKUP(VLOOKUP($A27,Economática!$A$3:$AI$823,6,FALSE),Correção!$B$16:$C$36,2,FALSE))","v":"Comércio"},{"$f":"IF(Economática!B29=\"\",\"\",Economática!B29)","v":"Lojas Marisa"},{"$f":"IF($A27=\"\",\"\",IF(OR(VLOOKUP($A27,Economática!$A$3:$AI$823,8,FALSE)=0,VLOOKUP($A27,Economática!$A$3:$AI$823,8,FALSE)=\"-\"),1/0,VLOOKUP($A27,Economática!$A$3:$AI$823,8,FALSE)))","v":6.43},{"$f":"IF(A27=\"\",\"\",IF(ISERROR(VLOOKUP(A27,Correção!$B$2:$G$13,9,FALSE)),VLOOKUP($A27,Economática!$A$3:$AI$823,9,FALSE),VLOOKUP(A27,Correção!$B$2:$G$13,9,FALSE)))","v":204.28},{"$f":"IF($A27=\"\",\"\",Economática!G29)","v":1313.52},{"$f":"IF($A27=\"\",\"\",IF(OR(VLOOKUP($A27,Economática!$A$3:$AI$823,10,FALSE)=0,VLOOKUP($A27,Economática!$A$3:$AI$823,10,FALSE)=\"-\"),1/0,VLOOKUP($A27,Economática!$A$3:$AI$823,10,FALSE)))","v":973.65},{"$f":"IF($A27=\"\",\"\",IF(OR(VLOOKUP($A27,Economática!$A$3:$AI$823,11,FALSE)=0,VLOOKUP($A27,Economática!$A$3:$AI$823,11,FALSE)=\"-\"),1/0,VLOOKUP($A27,Economática!$A$3:$AI$823,11,FALSE)))","v":2875.58},{"$f":"IF($A27=\"\",\"\",IF(OR(VLOOKUP($A27,Economática!$A$3:$AI$823,12,FALSE)=0,VLOOKUP($A27,Economática!$A$3:$AI$823,12,FALSE)=\"-\"),1/0,VLOOKUP($A27,Economática!$A$3:$AI$823,12,FALSE)))","v":2764.13},{"$f":"IF($A27=\"\",\"\",IF(OR(VLOOKUP($A27,Economática!$A$3:$AI$823,13,FALSE)=0,VLOOKUP($A27,Economática!$A$3:$AI$823,13,FALSE)=\"-\"),1/0,VLOOKUP($A27,Economática!$A$3:$AI$823,13,FALSE)))","v":-60.44},{"$f":"IF($A27=\"\",\"\",IF(OR(VLOOKUP($A27,Economática!$A$3:$AI$823,14,FALSE)=0,VLOOKUP($A27,Economática!$A$3:$AI$823,14,FALSE)=\"-\"),1/0,VLOOKUP($A27,Economática!$A$3:$AI$823,14,FALSE)))","v":-41.08},{"$f":"IF($A27=\"\",\"\",IF(OR(VLOOKUP($A27,Economática!$A$3:$AI$823,15,FALSE)=0,VLOOKUP($A27,Economática!$A$3:$AI$823,15,FALSE)=\"-\"),1/0,VLOOKUP($A27,Economática!$A$3:$AI$823,15,FALSE)))","v":-78.09},{"$f":"IF($A27=\"\",\"\",IF(OR(VLOOKUP($A27,Economática!$A$3:$AI$823,16,FALSE)=0,VLOOKUP($A27,Economática!$A$3:$AI$823,16,FALSE)=\"-\"),1/0,VLOOKUP($A27,Economática!$A$3:$AI$823,16,FALSE)))","v":-131.16999999999999},{"$f":"IF($A27=\"\",\"\",IF(OR(VLOOKUP($A27,Economática!$A$3:$AI$823,17,FALSE)=0,VLOOKUP($A27,Economática!$A$3:$AI$823,17,FALSE)=\"-\"),1/0,VLOOKUP($A27,Economática!$A$3:$AI$823,17,FALSE)))","v":28.36},{"$f":"IF($A27=\"\",\"\",IF(OR(VLOOKUP($A27,Economática!$A$3:$AI$823,18,FALSE)=0,VLOOKUP($A27,Economática!$A$3:$AI$823,18,FALSE)=\"-\"),1/0,VLOOKUP($A27,Economática!$A$3:$AI$823,18,FALSE)))","v":-60.44},{"$f":"IF($A27=\"\",\"\",IF(OR(VLOOKUP($A27,Economática!$A$3:$AI$823,19,FALSE)=0,VLOOKUP($A27,Economática!$A$3:$AI$823,19,FALSE)=\"-\"),1/0,VLOOKUP($A27,Economática!$A$3:$AI$823,19,FALSE)))","v":28.36},{"$f":"IF($A27=\"\",\"\",VLOOKUP($A27,Economática!$A$3:$AI$823,20,FALSE)/E27)","v":0.13882905815547289},4.766252202858821,1.349068351050172,46.315952045133983,{"$f":"IF($A27=\"\",\"\",IF(OR(VLOOKUP($A27,Economática!$A$3:$AI$823,21,FALSE)/100=0,VLOOKUP($A27,Economática!$A$3:$AI$823,21,FALSE)/100=\"-\"),1/0,VLOOKUP($A27,Economática!$A$3:$AI$823,21,FALSE)/100))","v":2.9555999999999999E-2},{"$f":"IF($A27=\"\",\"\",IF(OR(VLOOKUP($A27,Economática!$A$3:$AI$823,22,FALSE)/100=0,VLOOKUP($A27,Economática!$A$3:$AI$823,22,FALSE)/100=\"-\"),1/0,VLOOKUP($A27,Economática!$A$3:$AI$823,22,FALSE)/100))","v":0.63636400000000004},{"$f":"IF($A27=\"\",\"\",IF(OR(VLOOKUP($A27,Economática!$A$3:$AI$823,23,FALSE)=0,VLOOKUP($A27,Economática!$A$3:$AI$823,23,FALSE)=\"-\"),1/0,VLOOKUP($A27,Economática!$A$3:$AI$823,23,FALSE)))","v":265.60000000000002},{"$f":"IF($A27=\"\",\"\",IF(OR(VLOOKUP($A27,Economática!$A$3:$AI$823,24,FALSE)=0,VLOOKUP($A27,Economática!$A$3:$AI$823,24,FALSE)=\"-\"),1/0,VLOOKUP($A27,Economática!$A$3:$AI$823,24,FALSE)))","v":417.9},{"$f":"IF($A27=\"\",\"\",IF(OR(VLOOKUP($A27,Economática!$A$3:$AI$823,25,FALSE)=0,VLOOKUP($A27,Economática!$A$3:$AI$823,25,FALSE)=\"-\"),1/0,VLOOKUP($A27,Economática!$A$3:$AI$823,25,FALSE)))","v":417.9},{"$f":"IF($A27=\"\",\"\",IF(ISERROR((F27+VLOOKUP($A27,Economática!$A$3:$AI$823,26,FALSE))/Y27),(F27+VLOOKUP($A27,Economática!$A$3:$AI$823,26,FALSE))/Y27,(F27+VLOOKUP($A27,Economática!$A$3:$AI$823,26,FALSE))/Y27))","v":4.6257860732232592},{"$f":"IF($A27=\"\",\"\",IF(OR(-VLOOKUP($A27,Economática!$A$3:$AI$823,27,FALSE)=0,-VLOOKUP($A27,Economática!$A$3:$AI$823,27,FALSE)=\"-\"),1/0,-VLOOKUP($A27,Economática!$A$3:$AI$823,27,FALSE)))","v":{"$error":"#DIV/0!"}},{"$error":"#DIV/0!"},{"$f":"IF($A27=\"\",\"\",IF(OR(VLOOKUP($A27,Economática!$A$3:$AI$823,28,FALSE)=0,VLOOKUP($A27,Economática!$A$3:$AI$823,28,FALSE)=\"-\"),1/0,VLOOKUP($A27,Economática!$A$3:$AI$823,28,FALSE)))","v":4.4000000000000004},{"$f":"IF($A27=\"\",\"\",IF(OR(VLOOKUP($A27,Economática!$A$3:$AI$823,29,FALSE)=0,VLOOKUP($A27,Economática!$A$3:$AI$823,29,FALSE)=\"-\"),1/0,VLOOKUP($A27,Economática!$A$3:$AI$823,29,FALSE)))","v":-11.3},{"$f":"IF($A27=\"\",\"\",IF(OR(VLOOKUP($A27,Economática!$A$3:$AI$823,30,FALSE)/E27=0,VLOOKUP($A27,Economática!$A$3:$AI$823,30,FALSE)/E27=\"-\",VLOOKUP($A27,Economática!$A$3:$AI$823,30,FALSE)/E27<33.33%,VLOOKUP($A27,Economática!$A$3:$AI$823,30,FALSE)/E27>100%),1/0,VLOOKUP($A27,Economática!$A$3:$AI$823,30,FALSE)/E27))","v":0.99911885647150966},"AMAR3",{"$f":"IF($A27=\"\",\"\",IF(OR(VLOOKUP($A27,Economática!$A$3:$AI$823,25,FALSE)=0,VLOOKUP($A27,Economática!$A$3:$AI$823,25,FALSE)=\"-\"),1/0,VLOOKUP($A27,Economática!$A$3:$AI$823,25,FALSE)))","v":417.9},{"$f":"CONCATENATE(Economática!B29,\" \",Economática!C29)","v":"Lojas Marisa ON"}]
[{"$f":"IF(Economática!AG30=\"\",\"\",Economática!AG30)","v":"MEAL3"},{"$f":"IF($A28=\"\",\"\",VLOOKUP(VLOOKUP($A28,Economática!$A$3:$AI$823,6,FALSE),Correção!$B$16:$C$36,2,FALSE))","v":"Comércio"},{"$f":"IF(Economática!B30=\"\",\"\",Economática!B30)","v":"Imc S/A"},{"$f":"IF($A28=\"\",\"\",IF(OR(VLOOKUP($A28,Economática!$A$3:$AI$823,8,FALSE)=0,VLOOKUP($A28,Economática!$A$3:$AI$823,8,FALSE)=\"-\"),1/0,VLOOKUP($A28,Economática!$A$3:$AI$823,8,FALSE)))","v":6.49},{"$f":"IF(A28=\"\",\"\",IF(ISERROR(VLOOKUP(A28,Correção!$B$2:$G$13,9,FALSE)),VLOOKUP($A28,Economática!$A$3:$AI$823,9,FALSE),VLOOKUP(A28,Correção!$B$2:$G$13,9,FALSE)))","v":157.97399999999999},{"$f":"IF($A28=\"\",\"\",Economática!G30)","v":1025.25},{"$f":"IF($A28=\"\",\"\",IF(OR(VLOOKUP($A28,Economática!$A$3:$AI$823,10,FALSE)=0,VLOOKUP($A28,Economática!$A$3:$AI$823,10,FALSE)=\"-\"),1/0,VLOOKUP($A28,Economática!$A$3:$AI$823,10,FALSE)))","v":1015.22},{"$f":"IF($A28=\"\",\"\",IF(OR(VLOOKUP($A28,Economática!$A$3:$AI$823,11,FALSE)=0,VLOOKUP($A28,Economática!$A$3:$AI$823,11,FALSE)=\"-\"),1/0,VLOOKUP($A28,Economática!$A$3:$AI$823,11,FALSE)))","v":1494.51},{"$f":"IF($A28=\"\",\"\",IF(OR(VLOOKUP($A28,Economática!$A$3:$AI$823,12,FALSE)=0,VLOOKUP($A28,Economática!$A$3:$AI$823,12,FALSE)=\"-\"),1/0,VLOOKUP($A28,Economática!$A$3:$AI$823,12,FALSE)))","v":1582.08},{"$f":"IF($A28=\"\",\"\",IF(OR(VLOOKUP($A28,Economática!$A$3:$AI$823,13,FALSE)=0,VLOOKUP($A28,Economática!$A$3:$AI$823,13,FALSE)=\"-\"),1/0,VLOOKUP($A28,Economática!$A$3:$AI$823,13,FALSE)))","v":3.67},{"$f":"IF($A28=\"\",\"\",IF(OR(VLOOKUP($A28,Economática!$A$3:$AI$823,14,FALSE)=0,VLOOKUP($A28,Economática!$A$3:$AI$823,14,FALSE)=\"-\"),1/0,VLOOKUP($A28,Economática!$A$3:$AI$823,14,FALSE)))","v":-6.43},{"$f":"IF($A28=\"\",\"\",IF(OR(VLOOKUP($A28,Economática!$A$3:$AI$823,15,FALSE)=0,VLOOKUP($A28,Economática!$A$3:$AI$823,15,FALSE)=\"-\"),1/0,VLOOKUP($A28,Economática!$A$3:$AI$823,15,FALSE)))","v":-3.84},{"$f":"IF($A28=\"\",\"\",IF(OR(VLOOKUP($A28,Economática!$A$3:$AI$823,16,FALSE)=0,VLOOKUP($A28,Economática!$A$3:$AI$823,16,FALSE)=\"-\"),1/0,VLOOKUP($A28,Economática!$A$3:$AI$823,16,FALSE)))","v":9.41},{"$f":"IF($A28=\"\",\"\",IF(OR(VLOOKUP($A28,Economática!$A$3:$AI$823,17,FALSE)=0,VLOOKUP($A28,Economática!$A$3:$AI$823,17,FALSE)=\"-\"),1/0,VLOOKUP($A28,Economática!$A$3:$AI$823,17,FALSE)))","v":7.89},{"$f":"IF($A28=\"\",\"\",IF(OR(VLOOKUP($A28,Economática!$A$3:$AI$823,18,FALSE)=0,VLOOKUP($A28,Economática!$A$3:$AI$823,18,FALSE)=\"-\"),1/0,VLOOKUP($A28,Economática!$A$3:$AI$823,18,FALSE)))","v":3.67},{"$f":"IF($A28=\"\",\"\",IF(OR(VLOOKUP($A28,Economática!$A$3:$AI$823,19,FALSE)=0,VLOOKUP($A28,Economática!$A$3:$AI$823,19,FALSE)=\"-\"),1/0,VLOOKUP($A28,Economática!$A$3:$AI$823,19,FALSE)))","v":7.89},{"$f":"IF($A28=\"\",\"\",VLOOKUP($A28,Economática!$A$3:$AI$823,20,FALSE)/E28)","v":4.9944927646321545E-2},6.4265005633838488,1.0098808731112467,129.94312547528517,{"$f":"IF($A28=\"\",\"\",IF(OR(VLOOKUP($A28,Economática!$A$3:$AI$823,21,FALSE)/100=0,VLOOKUP($A28,Economática!$A$3:$AI$823,21,FALSE)/100=\"-\"),1/0,VLOOKUP($A28,Economática!$A$3:$AI$823,21,FALSE)/100))","v":7.8630000000000002E-3},{"$f":"IF($A28=\"\",\"\",IF(OR(VLOOKUP($A28,Economática!$A$3:$AI$823,22,FALSE)/100=0,VLOOKUP($A28,Economática!$A$3:$AI$823,22,FALSE)/100=\"-\"),1/0,VLOOKUP($A28,Economática!$A$3:$AI$823,22,FALSE)/100))","v":2.8709999999999999E-2},{"$f":"IF($A28=\"\",\"\",IF(OR(VLOOKUP($A28,Economática!$A$3:$AI$823,23,FALSE)=0,VLOOKUP($A28,Economática!$A$3:$AI$823,23,FALSE)=\"-\"),1/0,VLOOKUP($A28,Economática!$A$3:$AI$823,23,FALSE)))","v":108.5},{"$f":"IF($A28=\"\",\"\",IF(OR(VLOOKUP($A28,Economática!$A$3:$AI$823,24,FALSE)=0,VLOOKUP($A28,Economática!$A$3:$AI$823,24,FALSE)=\"-\"),1/0,VLOOKUP($A28,Economática!$A$3:$AI$823,24,FALSE)))","v":102.8},{"$f":"IF($A28=\"\",\"\",IF(OR(VLOOKUP($A28,Economática!$A$3:$AI$823,25,FALSE)=0,VLOOKUP($A28,Economática!$A$3:$AI$823,25,FALSE)=\"-\"),1/0,VLOOKUP($A28,Economática!$A$3:$AI$823,25,FALSE)))","v":102.8},{"$f":"IF($A28=\"\",\"\",IF(ISERROR((F28+VLOOKUP($A28,Economática!$A$3:$AI$823,26,FALSE))/Y28),(F28+VLOOKUP($A28,Economática!$A$3:$AI$823,26,FALSE))/Y28,(F28+VLOOKUP($A28,Economática!$A$3:$AI$823,26,FALSE))/Y28))","v":10.256780155642023},{"$f":"IF($A28=\"\",\"\",IF(OR(-VLOOKUP($A28,Economática!$A$3:$AI$823,27,FALSE)=0,-VLOOKUP($A28,Economática!$A$3:$AI$823,27,FALSE)=\"-\"),1/0,-VLOOKUP($A28,Economática!$A$3:$AI$823,27,FALSE)))","v":0.87},8.4857351865398687E-4,{"$f":"IF($A28=\"\",\"\",IF(OR(VLOOKUP($A28,Economática!$A$3:$AI$823,28,FALSE)=0,VLOOKUP($A28,Economática!$A$3:$AI$823,28,FALSE)=\"-\"),1/0,VLOOKUP($A28,Economática!$A$3:$AI$823,28,FALSE)))","v":5},{"$f":"IF($A28=\"\",\"\",IF(OR(VLOOKUP($A28,Economática!$A$3:$AI$823,29,FALSE)=0,VLOOKUP($A28,Economática!$A$3:$AI$823,29,FALSE)=\"-\"),1/0,VLOOKUP($A28,Economática!$A$3:$AI$823,29,FALSE)))","v":-18},{"$f":"IF($A28=\"\",\"\",IF(OR(VLOOKUP($A28,Economática!$A$3:$AI$823,30,FALSE)/E28=0,VLOOKUP($A28,Economática!$A$3:$AI$823,30,FALSE)/E28=\"-\",VLOOKUP($A28,Economática!$A$3:$AI$823,30,FALSE)/E28<33.33%,VLOOKUP($A28,Economática!$A$3:$AI$823,30,FALSE)/E28>100%),1/0,VLOOKUP($A28,Economática!$A$3:$AI$823,30,FALSE)/E28))","v":{"$error":"#DIV/0!"}},"MEAL3",{"$f":"IF($A28=\"\",\"\",IF(OR(VLOOKUP($A28,Economática!$A$3:$AI$823,25,FALSE)=0,VLOOKUP($A28,Economática!$A$3:$AI$823,25,FALSE)=\"-\"),1/0,VLOOKUP($A28,Economática!$A$3:$AI$823,25,FALSE)))","v":102.8},{"$f":"CONCATENATE(Economática!B30,\" \",Economática!C30)","v":"Imc S/A ON"}]
[{"$f":"IF(Economática!AG31=\"\",\"\",Economática!AG31)","v":"PFRM3"},{"$f":"IF($A29=\"\",\"\",VLOOKUP(VLOOKUP($A29,Economática!$A$3:$AI$823,6,FALSE),Correção!$B$16:$C$36,2,FALSE))","v":"Comércio"},{"$f":"IF(Economática!B31=\"\",\"\",Economática!B31)","v":"Profarma"},{"$f":"IF($A29=\"\",\"\",IF(OR(VLOOKUP($A29,Economática!$A$3:$AI$823,8,FALSE)=0,VLOOKUP($A29,Economática!$A$3:$AI$823,8,FALSE)=\"-\"),1/0,VLOOKUP($A29,Economática!$A$3:$AI$823,8,FALSE)))","v":4.33},{"$f":"IF(A29=\"\",\"\",IF(ISERROR(VLOOKUP(A29,Correção!$B$2:$G$13,9,FALSE)),VLOOKUP($A29,Economática!$A$3:$AI$823,9,FALSE),VLOOKUP(A29,Correção!$B$2:$G$13,9,FALSE)))","v":122.611},{"$f":"IF($A29=\"\",\"\",Economática!G31)","v":530.91},{"$f":"IF($A29=\"\",\"\",IF(OR(VLOOKUP($A29,Economática!$A$3:$AI$823,10,FALSE)=0,VLOOKUP($A29,Economática!$A$3:$AI$823,10,FALSE)=\"-\"),1/0,VLOOKUP($A29,Economática!$A$3:$AI$823,10,FALSE)))","v":1021.21},{"$f":"IF($A29=\"\",\"\",IF(OR(VLOOKUP($A29,Economática!$A$3:$AI$823,11,FALSE)=0,VLOOKUP($A29,Economática!$A$3:$AI$823,11,FALSE)=\"-\"),1/0,VLOOKUP($A29,Economática!$A$3:$AI$823,11,FALSE)))","v":4100.71},{"$f":"IF($A29=\"\",\"\",IF(OR(VLOOKUP($A29,Economática!$A$3:$AI$823,12,FALSE)=0,VLOOKUP($A29,Economática!$A$3:$AI$823,12,FALSE)=\"-\"),1/0,VLOOKUP($A29,Economática!$A$3:$AI$823,12,FALSE)))","v":4271.13},{"$f":"IF($A29=\"\",\"\",IF(OR(VLOOKUP($A29,Economática!$A$3:$AI$823,13,FALSE)=0,VLOOKUP($A29,Economática!$A$3:$AI$823,13,FALSE)=\"-\"),1/0,VLOOKUP($A29,Economática!$A$3:$AI$823,13,FALSE)))","v":-112.72},{"$f":"IF($A29=\"\",\"\",IF(OR(VLOOKUP($A29,Economática!$A$3:$AI$823,14,FALSE)=0,VLOOKUP($A29,Economática!$A$3:$AI$823,14,FALSE)=\"-\"),1/0,VLOOKUP($A29,Economática!$A$3:$AI$823,14,FALSE)))","v":-5.9},{"$f":"IF($A29=\"\",\"\",IF(OR(VLOOKUP($A29,Economática!$A$3:$AI$823,15,FALSE)=0,VLOOKUP($A29,Economática!$A$3:$AI$823,15,FALSE)=\"-\"),1/0,VLOOKUP($A29,Economática!$A$3:$AI$823,15,FALSE)))","v":-4.3899999999999997},{"$f":"IF($A29=\"\",\"\",IF(OR(VLOOKUP($A29,Economática!$A$3:$AI$823,16,FALSE)=0,VLOOKUP($A29,Economática!$A$3:$AI$823,16,FALSE)=\"-\"),1/0,VLOOKUP($A29,Economática!$A$3:$AI$823,16,FALSE)))","v":-11.94},{"$f":"IF($A29=\"\",\"\",IF(OR(VLOOKUP($A29,Economática!$A$3:$AI$823,17,FALSE)=0,VLOOKUP($A29,Economática!$A$3:$AI$823,17,FALSE)=\"-\"),1/0,VLOOKUP($A29,Economática!$A$3:$AI$823,17,FALSE)))","v":-9.73},{"$f":"IF($A29=\"\",\"\",IF(OR(VLOOKUP($A29,Economática!$A$3:$AI$823,18,FALSE)=0,VLOOKUP($A29,Economática!$A$3:$AI$823,18,FALSE)=\"-\"),1/0,VLOOKUP($A29,Economática!$A$3:$AI$823,18,FALSE)))","v":-112.72},{"$f":"IF($A29=\"\",\"\",IF(OR(VLOOKUP($A29,Economática!$A$3:$AI$823,19,FALSE)=0,VLOOKUP($A29,Economática!$A$3:$AI$823,19,FALSE)=\"-\"),1/0,VLOOKUP($A29,Economática!$A$3:$AI$823,19,FALSE)))","v":-9.73},{"$f":"IF($A29=\"\",\"\",VLOOKUP($A29,Economática!$A$3:$AI$823,20,FALSE)/E29)","v":-7.9356664573325394E-2},8.3288611951619345,0.51987899648456248,{"$error":"#DIV/0!"},{"$f":"IF($A29=\"\",\"\",IF(OR(VLOOKUP($A29,Economática!$A$3:$AI$823,21,FALSE)/100=0,VLOOKUP($A29,Economática!$A$3:$AI$823,21,FALSE)/100=\"-\"),1/0,VLOOKUP($A29,Economática!$A$3:$AI$823,21,FALSE)/100))","v":-1.3049E-2},{"$f":"IF($A29=\"\",\"\",IF(OR(VLOOKUP($A29,Economática!$A$3:$AI$823,22,FALSE)/100=0,VLOOKUP($A29,Economática!$A$3:$AI$823,22,FALSE)/100=\"-\"),1/0,VLOOKUP($A29,Economática!$A$3:$AI$823,22,FALSE)/100))","v":0.39840000000000003},{"$f":"IF($A29=\"\",\"\",IF(OR(VLOOKUP($A29,Economática!$A$3:$AI$823,23,FALSE)=0,VLOOKUP($A29,Economática!$A$3:$AI$823,23,FALSE)=\"-\"),1/0,VLOOKUP($A29,Economática!$A$3:$AI$823,23,FALSE)))","v":20.2},{"$f":"IF($A29=\"\",\"\",IF(OR(VLOOKUP($A29,Economática!$A$3:$AI$823,24,FALSE)=0,VLOOKUP($A29,Economática!$A$3:$AI$823,24,FALSE)=\"-\"),1/0,VLOOKUP($A29,Economática!$A$3:$AI$823,24,FALSE)))","v":88.6},{"$f":"IF($A29=\"\",\"\",IF(OR(VLOOKUP($A29,Economática!$A$3:$AI$823,25,FALSE)=0,VLOOKUP($A29,Economática!$A$3:$AI$823,25,FALSE)=\"-\"),1/0,VLOOKUP($A29,Economática!$A$3:$AI$823,25,FALSE)))","v":88.6},{"$f":"IF($A29=\"\",\"\",IF(ISERROR((F29+VLOOKUP($A29,Economática!$A$3:$AI$823,26,FALSE))/Y29),(F29+VLOOKUP($A29,Economática!$A$3:$AI$823,26,FALSE))/Y29,(F29+VLOOKUP($A29,Economática!$A$3:$AI$823,26,FALSE))/Y29))","v":10.584198645598194},{"$f":"IF($A29=\"\",\"\",IF(OR(-VLOOKUP($A29,Economática!$A$3:$AI$823,27,FALSE)=0,-VLOOKUP($A29,Economática!$A$3:$AI$823,27,FALSE)=\"-\"),1/0,-VLOOKUP($A29,Economática!$A$3:$AI$823,27,FALSE)))","v":{"$error":"#DIV/0!"}},{"$error":"#DIV/0!"},{"$f":"IF($A29=\"\",\"\",IF(OR(VLOOKUP($A29,Economática!$A$3:$AI$823,28,FALSE)=0,VLOOKUP($A29,Economática!$A$3:$AI$823,28,FALSE)=\"-\"),1/0,VLOOKUP($A29,Economática!$A$3:$AI$823,28,FALSE)))","v":1.2},{"$f":"IF($A29=\"\",\"\",IF(OR(VLOOKUP($A29,Economática!$A$3:$AI$823,29,FALSE)=0,VLOOKUP($A29,Economática!$A$3:$AI$823,29,FALSE)=\"-\"),1/0,VLOOKUP($A29,Economática!$A$3:$AI$823,29,FALSE)))","v":-39.299999999999997},{"$f":"IF($A29=\"\",\"\",IF(OR(VLOOKUP($A29,Economática!$A$3:$AI$823,30,FALSE)/E29=0,VLOOKUP($A29,Economática!$A$3:$AI$823,30,FALSE)/E29=\"-\",VLOOKUP($A29,Economática!$A$3:$AI$823,30,FALSE)/E29<33.33%,VLOOKUP($A29,Economática!$A$3:$AI$823,30,FALSE)/E29>100%),1/0,VLOOKUP($A29,Economática!$A$3:$AI$823,30,FALSE)/E29))","v":{"$error":"#DIV/0!"}},"PFRM3",{"$f":"IF($A29=\"\",\"\",IF(OR(VLOOKUP($A29,Economática!$A$3:$AI$823,25,FALSE)=0,VLOOKUP($A29,Economática!$A$3:$AI$823,25,FALSE)=\"-\"),1/0,VLOOKUP($A29,Economática!$A$3:$AI$823,25,FALSE)))","v":88.6},{"$f":"CONCATENATE(Economática!B31,\" \",Economática!C31)","v":"Profarma ON"}]
[{"$f":"IF(Economática!AG32=\"\",\"\",Economática!AG32)","v":"BTOW3"},{"$f":"IF($A30=\"\",\"\",VLOOKUP(VLOOKUP($A30,Economática!$A$3:$AI$823,6,FALSE),Correção!$B$16:$C$36,2,FALSE))","v":"Comércio"},{"$f":"IF(Economática!B32=\"\",\"\",Economática!B32)","v":"B2W Digital"},{"$f":"IF($A30=\"\",\"\",IF(OR(VLOOKUP($A30,Economática!$A$3:$AI$823,8,FALSE)=0,VLOOKUP($A30,Economática!$A$3:$AI$823,8,FALSE)=\"-\"),1/0,VLOOKUP($A30,Economática!$A$3:$AI$823,8,FALSE)))","v":42.22},{"$f":"IF(A30=\"\",\"\",IF(ISERROR(VLOOKUP(A30,Correção!$B$2:$G$13,9,FALSE)),VLOOKUP($A30,Economática!$A$3:$AI$823,9,FALSE),VLOOKUP(A30,Correção!$B$2:$G$13,9,FALSE)))","v":457.28100000000001},{"$f":"IF($A30=\"\",\"\",Economática!G32)","v":19306.400000000001},{"$f":"IF($A30=\"\",\"\",IF(OR(VLOOKUP($A30,Economática!$A$3:$AI$823,10,FALSE)=0,VLOOKUP($A30,Economática!$A$3:$AI$823,10,FALSE)=\"-\"),1/0,VLOOKUP($A30,Economática!$A$3:$AI$823,10,FALSE)))","v":3537.12},{"$f":"IF($A30=\"\",\"\",IF(OR(VLOOKUP($A30,Economática!$A$3:$AI$823,11,FALSE)=0,VLOOKUP($A30,Economática!$A$3:$AI$823,11,FALSE)=\"-\"),1/0,VLOOKUP($A30,Economática!$A$3:$AI$823,11,FALSE)))","v":7120.78},{"$f":"IF($A30=\"\",\"\",IF(OR(VLOOKUP($A30,Economática!$A$3:$AI$823,12,FALSE)=0,VLOOKUP($A30,Economática!$A$3:$AI$823,12,FALSE)=\"-\"),1/0,VLOOKUP($A30,Economática!$A$3:$AI$823,12,FALSE)))","v":6488.47},{"$f":"IF($A30=\"\",\"\",IF(OR(VLOOKUP($A30,Economática!$A$3:$AI$823,13,FALSE)=0,VLOOKUP($A30,Economática!$A$3:$AI$823,13,FALSE)=\"-\"),1/0,VLOOKUP($A30,Economática!$A$3:$AI$823,13,FALSE)))","v":-411.45},{"$f":"IF($A30=\"\",\"\",IF(OR(VLOOKUP($A30,Economática!$A$3:$AI$823,14,FALSE)=0,VLOOKUP($A30,Economática!$A$3:$AI$823,14,FALSE)=\"-\"),1/0,VLOOKUP($A30,Economática!$A$3:$AI$823,14,FALSE)))","v":-115.14},{"$f":"IF($A30=\"\",\"\",IF(OR(VLOOKUP($A30,Economática!$A$3:$AI$823,15,FALSE)=0,VLOOKUP($A30,Economática!$A$3:$AI$823,15,FALSE)=\"-\"),1/0,VLOOKUP($A30,Economática!$A$3:$AI$823,15,FALSE)))","v":-223.95},{"$f":"IF($A30=\"\",\"\",IF(OR(VLOOKUP($A30,Economática!$A$3:$AI$823,16,FALSE)=0,VLOOKUP($A30,Economática!$A$3:$AI$823,16,FALSE)=\"-\"),1/0,VLOOKUP($A30,Economática!$A$3:$AI$823,16,FALSE)))","v":-329.74},{"$f":"IF($A30=\"\",\"\",IF(OR(VLOOKUP($A30,Economática!$A$3:$AI$823,17,FALSE)=0,VLOOKUP($A30,Economática!$A$3:$AI$823,17,FALSE)=\"-\"),1/0,VLOOKUP($A30,Economática!$A$3:$AI$823,17,FALSE)))","v":-397.43},{"$f":"IF($A30=\"\",\"\",IF(OR(VLOOKUP($A30,Economática!$A$3:$AI$823,18,FALSE)=0,VLOOKUP($A30,Economática!$A$3:$AI$823,18,FALSE)=\"-\"),1/0,VLOOKUP($A30,Economática!$A$3:$AI$823,18,FALSE)))","v":-411.45},{"$f":"IF($A30=\"\",\"\",IF(OR(VLOOKUP($A30,Economática!$A$3:$AI$823,19,FALSE)=0,VLOOKUP($A30,Economática!$A$3:$AI$823,19,FALSE)=\"-\"),1/0,VLOOKUP($A30,Economática!$A$3:$AI$823,19,FALSE)))","v":-397.43},{"$f":"IF($A30=\"\",\"\",VLOOKUP($A30,Economática!$A$3:$AI$823,20,FALSE)/E30)","v":-0.86911548916311854},7.7351125456776026,5.4582269812729001,{"$error":"#DIV/0!"},{"$f":"IF($A30=\"\",\"\",IF(OR(VLOOKUP($A30,Economática!$A$3:$AI$823,21,FALSE)/100=0,VLOOKUP($A30,Economática!$A$3:$AI$823,21,FALSE)/100=\"-\"),1/0,VLOOKUP($A30,Economática!$A$3:$AI$823,21,FALSE)/100))","v":-0.10188000000000001},{"$f":"IF($A30=\"\",\"\",IF(OR(VLOOKUP($A30,Economática!$A$3:$AI$823,22,FALSE)/100=0,VLOOKUP($A30,Economática!$A$3:$AI$823,22,FALSE)/100=\"-\"),1/0,VLOOKUP($A30,Economática!$A$3:$AI$823,22,FALSE)/100))","v":0.51102599999999998},{"$f":"IF($A30=\"\",\"\",IF(OR(VLOOKUP($A30,Economática!$A$3:$AI$823,23,FALSE)=0,VLOOKUP($A30,Economática!$A$3:$AI$823,23,FALSE)=\"-\"),1/0,VLOOKUP($A30,Economática!$A$3:$AI$823,23,FALSE)))","v":583.29999999999995},{"$f":"IF($A30=\"\",\"\",IF(OR(VLOOKUP($A30,Economática!$A$3:$AI$823,24,FALSE)=0,VLOOKUP($A30,Economática!$A$3:$AI$823,24,FALSE)=\"-\"),1/0,VLOOKUP($A30,Economática!$A$3:$AI$823,24,FALSE)))","v":412.3},{"$f":"IF($A30=\"\",\"\",IF(OR(VLOOKUP($A30,Economática!$A$3:$AI$823,25,FALSE)=0,VLOOKUP($A30,Economática!$A$3:$AI$823,25,FALSE)=\"-\"),1/0,VLOOKUP($A30,Economática!$A$3:$AI$823,25,FALSE)))","v":412.3},{"$f":"IF($A30=\"\",\"\",IF(ISERROR((F30+VLOOKUP($A30,Economática!$A$3:$AI$823,26,FALSE))/Y30),(F30+VLOOKUP($A30,Economática!$A$3:$AI$823,26,FALSE))/Y30,(F30+VLOOKUP($A30,Economática!$A$3:$AI$823,26,FALSE))/Y30))","v":51.210177055542083},{"$f":"IF($A30=\"\",\"\",IF(OR(-VLOOKUP($A30,Economática!$A$3:$AI$823,27,FALSE)=0,-VLOOKUP($A30,Economática!$A$3:$AI$823,27,FALSE)=\"-\"),1/0,-VLOOKUP($A30,Economática!$A$3:$AI$823,27,FALSE)))","v":{"$error":"#DIV/0!"}},{"$error":"#DIV/0!"},{"$f":"IF($A30=\"\",\"\",IF(OR(VLOOKUP($A30,Economática!$A$3:$AI$823,28,FALSE)=0,VLOOKUP($A30,Economática!$A$3:$AI$823,28,FALSE)=\"-\"),1/0,VLOOKUP($A30,Economática!$A$3:$AI$823,28,FALSE)))","v":-12.7},{"$f":"IF($A30=\"\",\"\",IF(OR(VLOOKUP($A30,Economática!$A$3:$AI$823,29,FALSE)=0,VLOOKUP($A30,Economática!$A$3:$AI$823,29,FALSE)=\"-\"),1/0,VLOOKUP($A30,Economática!$A$3:$AI$823,29,FALSE)))","v":106},{"$f":"IF($A30=\"\",\"\",IF(OR(VLOOKUP($A30,Economática!$A$3:$AI$823,30,FALSE)/E30=0,VLOOKUP($A30,Economática!$A$3:$AI$823,30,FALSE)/E30=\"-\",VLOOKUP($A30,Economática!$A$3:$AI$823,30,FALSE)/E30<33.33%,VLOOKUP($A30,Economática!$A$3:$AI$823,30,FALSE)/E30>100%),1/0,VLOOKUP($A30,Economática!$A$3:$AI$823,30,FALSE)/E30))","v":{"$error":"#DIV/0!"}},"BTOW3",{"$f":"IF($A30=\"\",\"\",IF(OR(VLOOKUP($A30,Economática!$A$3:$AI$823,25,FALSE)=0,VLOOKUP($A30,Economática!$A$3:$AI$823,25,FALSE)=\"-\"),1/0,VLOOKUP($A30,Economática!$A$3:$AI$823,25,FALSE)))","v":412.3},{"$f":"CONCATENATE(Economática!B32,\" \",Economática!C32)","v":"B2W Digital ON"}]
[{"$f":"IF(Economática!AG33=\"\",\"\",Economática!AG33)","v":"BPHA3"},{"$f":"IF($A31=\"\",\"\",VLOOKUP(VLOOKUP($A31,Economática!$A$3:$AI$823,6,FALSE),Correção!$B$16:$C$36,2,FALSE))","v":"Comércio"},{"$f":"IF(Economática!B33=\"\",\"\",Economática!B33)","v":"BR Pharma"},{"$f":"IF($A31=\"\",\"\",IF(OR(VLOOKUP($A31,Economática!$A$3:$AI$823,8,FALSE)=0,VLOOKUP($A31,Economática!$A$3:$AI$823,8,FALSE)=\"-\"),1/0,VLOOKUP($A31,Economática!$A$3:$AI$823,8,FALSE)))","v":1.39},{"$f":"IF(A31=\"\",\"\",IF(ISERROR(VLOOKUP(A31,Correção!$B$2:$G$13,9,FALSE)),VLOOKUP($A31,Economática!$A$3:$AI$823,9,FALSE),VLOOKUP(A31,Correção!$B$2:$G$13,9,FALSE)))","v":113.081},{"$f":"IF($A31=\"\",\"\",Economática!G33)","v":157.18},{"$f":"IF($A31=\"\",\"\",IF(OR(VLOOKUP($A31,Economática!$A$3:$AI$823,10,FALSE)=0,VLOOKUP($A31,Economática!$A$3:$AI$823,10,FALSE)=\"-\"),1/0,VLOOKUP($A31,Economática!$A$3:$AI$823,10,FALSE)))","v":-268.38},{"$f":"IF($A31=\"\",\"\",IF(OR(VLOOKUP($A31,Economática!$A$3:$AI$823,11,FALSE)=0,VLOOKUP($A31,Economática!$A$3:$AI$823,11,FALSE)=\"-\"),1/0,VLOOKUP($A31,Economática!$A$3:$AI$823,11,FALSE)))","v":516.79},{"$f":"IF($A31=\"\",\"\",IF(OR(VLOOKUP($A31,Economática!$A$3:$AI$823,12,FALSE)=0,VLOOKUP($A31,Economática!$A$3:$AI$823,12,FALSE)=\"-\"),1/0,VLOOKUP($A31,Economática!$A$3:$AI$823,12,FALSE)))","v":9.5399999999999991},{"$f":"IF($A31=\"\",\"\",IF(OR(VLOOKUP($A31,Economática!$A$3:$AI$823,13,FALSE)=0,VLOOKUP($A31,Economática!$A$3:$AI$823,13,FALSE)=\"-\"),1/0,VLOOKUP($A31,Economática!$A$3:$AI$823,13,FALSE)))","v":-1621.68},{"$f":"IF($A31=\"\",\"\",IF(OR(VLOOKUP($A31,Economática!$A$3:$AI$823,14,FALSE)=0,VLOOKUP($A31,Economática!$A$3:$AI$823,14,FALSE)=\"-\"),1/0,VLOOKUP($A31,Economática!$A$3:$AI$823,14,FALSE)))","v":-151.44999999999999},{"$f":"IF($A31=\"\",\"\",IF(OR(VLOOKUP($A31,Economática!$A$3:$AI$823,15,FALSE)=0,VLOOKUP($A31,Economática!$A$3:$AI$823,15,FALSE)=\"-\"),1/0,VLOOKUP($A31,Economática!$A$3:$AI$823,15,FALSE)))","v":-220.97},{"$f":"IF($A31=\"\",\"\",IF(OR(VLOOKUP($A31,Economática!$A$3:$AI$823,16,FALSE)=0,VLOOKUP($A31,Economática!$A$3:$AI$823,16,FALSE)=\"-\"),1/0,VLOOKUP($A31,Economática!$A$3:$AI$823,16,FALSE)))","v":-233.34},{"$f":"IF($A31=\"\",\"\",IF(OR(VLOOKUP($A31,Economática!$A$3:$AI$823,17,FALSE)=0,VLOOKUP($A31,Economática!$A$3:$AI$823,17,FALSE)=\"-\"),1/0,VLOOKUP($A31,Economática!$A$3:$AI$823,17,FALSE)))","v":1048.96},{"$f":"IF($A31=\"\",\"\",IF(OR(VLOOKUP($A31,Economática!$A$3:$AI$823,18,FALSE)=0,VLOOKUP($A31,Economática!$A$3:$AI$823,18,FALSE)=\"-\"),1/0,VLOOKUP($A31,Economática!$A$3:$AI$823,18,FALSE)))","v":-1621.68},{"$f":"IF($A31=\"\",\"\",IF(OR(VLOOKUP($A31,Economática!$A$3:$AI$823,19,FALSE)=0,VLOOKUP($A31,Economática!$A$3:$AI$823,19,FALSE)=\"-\"),1/0,VLOOKUP($A31,Economática!$A$3:$AI$823,19,FALSE)))","v":1048.96},{"$f":"IF($A31=\"\",\"\",VLOOKUP($A31,Economática!$A$3:$AI$823,20,FALSE)/E31)","v":9.2761825594043206},{"$error":"#DIV/0!"},{"$error":"#DIV/0!"},0.14984612377974374,{"$f":"IF($A31=\"\",\"\",IF(OR(VLOOKUP($A31,Economática!$A$3:$AI$823,21,FALSE)/100=0,VLOOKUP($A31,Economática!$A$3:$AI$823,21,FALSE)/100=\"-\"),1/0,VLOOKUP($A31,Economática!$A$3:$AI$823,21,FALSE)/100))","v":{"$error":"#VALUE!"}},{"$f":"IF($A31=\"\",\"\",IF(OR(VLOOKUP($A31,Economática!$A$3:$AI$823,22,FALSE)/100=0,VLOOKUP($A31,Economática!$A$3:$AI$823,22,FALSE)/100=\"-\"),1/0,VLOOKUP($A31,Economática!$A$3:$AI$823,22,FALSE)/100))","v":-0.234899},{"$f":"IF($A31=\"\",\"\",IF(OR(VLOOKUP($A31,Economática!$A$3:$AI$823,23,FALSE)=0,VLOOKUP($A31,Economática!$A$3:$AI$823,23,FALSE)=\"-\"),1/0,VLOOKUP($A31,Economática!$A$3:$AI$823,23,FALSE)))","v":-1475.8},{"$f":"IF($A31=\"\",\"\",IF(OR(VLOOKUP($A31,Economática!$A$3:$AI$823,24,FALSE)=0,VLOOKUP($A31,Economática!$A$3:$AI$823,24,FALSE)=\"-\"),1/0,VLOOKUP($A31,Economática!$A$3:$AI$823,24,FALSE)))","v":{"$error":"#DIV/0!"}},{"$f":"IF($A31=\"\",\"\",IF(OR(VLOOKUP($A31,Economática!$A$3:$AI$823,25,FALSE)=0,VLOOKUP($A31,Economática!$A$3:$AI$823,25,FALSE)=\"-\"),1/0,VLOOKUP($A31,Economática!$A$3:$AI$823,25,FALSE)))","v":{"$error":"#DIV/0!"}},{"$f":"IF($A31=\"\",\"\",IF(ISERROR((F31+VLOOKUP($A31,Economática!$A$3:$AI$823,26,FALSE))/Y31),(F31+VLOOKUP($A31,Economática!$A$3:$AI$823,26,FALSE))/Y31,(F31+VLOOKUP($A31,Economática!$A$3:$AI$823,26,FALSE))/Y31))","v":{"$error":"#DIV/0!"}},{"$f":"IF($A31=\"\",\"\",IF(OR(-VLOOKUP($A31,Economática!$A$3:$AI$823,27,FALSE)=0,-VLOOKUP($A31,Economática!$A$3:$AI$823,27,FALSE)=\"-\"),1/0,-VLOOKUP($A31,Economática!$A$3:$AI$823,27,FALSE)))","v":{"$error":"#DIV/0!"}},{"$error":"#DIV/0!"},{"$f":"IF($A31=\"\",\"\",IF(OR(VLOOKUP($A31,Economática!$A$3:$AI$823,28,FALSE)=0,VLOOKUP($A31,Economática!$A$3:$AI$823,28,FALSE)=\"-\"),1/0,VLOOKUP($A31,Economática!$A$3:$AI$823,28,FALSE)))","v":-6.1},{"$f":"IF($A31=\"\",\"\",IF(OR(VLOOKUP($A31,Economática!$A$3:$AI$823,29,FALSE)=0,VLOOKUP($A31,Economática!$A$3:$AI$823,29,FALSE)=\"-\"),1/0,VLOOKUP($A31,Economática!$A$3:$AI$823,29,FALSE)))","v":-61.8},{"$f":"IF($A31=\"\",\"\",IF(OR(VLOOKUP($A31,Economática!$A$3:$AI$823,30,FALSE)/E31=0,VLOOKUP($A31,Economática!$A$3:$AI$823,30,FALSE)/E31=\"-\",VLOOKUP($A31,Economática!$A$3:$AI$823,30,FALSE)/E31<33.33%,VLOOKUP($A31,Economática!$A$3:$AI$823,30,FALSE)/E31>100%),1/0,VLOOKUP($A31,Economática!$A$3:$AI$823,30,FALSE)/E31))","v":{"$error":"#DIV/0!"}},"BPHA3",{"$f":"IF($A31=\"\",\"\",IF(OR(VLOOKUP($A31,Economática!$A$3:$AI$823,25,FALSE)=0,VLOOKUP($A31,Economática!$A$3:$AI$823,25,FALSE)=\"-\"),1/0,VLOOKUP($A31,Economática!$A$3:$AI$823,25,FALSE)))","v":{"$error":"#DIV/0!"}},{"$f":"CONCATENATE(Economática!B33,\" \",Economática!C33)","v":"BR Pharma ON"}]
[{"$f":"IF(Economática!AG34=\"\",\"\",Economática!AG34)","v":"TEND3"},{"$f":"IF($A32=\"\",\"\",VLOOKUP(VLOOKUP($A32,Economática!$A$3:$AI$823,6,FALSE),Correção!$B$16:$C$36,2,FALSE))","v":"Construção"},{"$f":"IF(Economática!B34=\"\",\"\",Economática!B34)","v":"Tenda"},{"$f":"IF($A32=\"\",\"\",IF(OR(VLOOKUP($A32,Economática!$A$3:$AI$823,8,FALSE)=0,VLOOKUP($A32,Economática!$A$3:$AI$823,8,FALSE)=\"-\"),1/0,VLOOKUP($A32,Economática!$A$3:$AI$823,8,FALSE)))","v":16.88},{"$f":"IF(A32=\"\",\"\",IF(ISERROR(VLOOKUP(A32,Correção!$B$2:$G$13,9,FALSE)),VLOOKUP($A32,Economática!$A$3:$AI$823,9,FALSE),VLOOKUP(A32,Correção!$B$2:$G$13,9,FALSE)))","v":48.393000000000001},{"$f":"IF($A32=\"\",\"\",Economática!G34)","v":816.87},{"$f":"IF($A32=\"\",\"\",IF(OR(VLOOKUP($A32,Economática!$A$3:$AI$823,10,FALSE)=0,VLOOKUP($A32,Economática!$A$3:$AI$823,10,FALSE)=\"-\"),1/0,VLOOKUP($A32,Economática!$A$3:$AI$823,10,FALSE)))","v":1197.67},{"$f":"IF($A32=\"\",\"\",IF(OR(VLOOKUP($A32,Economática!$A$3:$AI$823,11,FALSE)=0,VLOOKUP($A32,Economática!$A$3:$AI$823,11,FALSE)=\"-\"),1/0,VLOOKUP($A32,Economática!$A$3:$AI$823,11,FALSE)))","v":1357.9},{"$f":"IF($A32=\"\",\"\",IF(OR(VLOOKUP($A32,Economática!$A$3:$AI$823,12,FALSE)=0,VLOOKUP($A32,Economática!$A$3:$AI$823,12,FALSE)=\"-\"),1/0,VLOOKUP($A32,Economática!$A$3:$AI$823,12,FALSE)))","v":1681.25},{"$f":"IF($A32=\"\",\"\",IF(OR(VLOOKUP($A32,Economática!$A$3:$AI$823,13,FALSE)=0,VLOOKUP($A32,Economática!$A$3:$AI$823,13,FALSE)=\"-\"),1/0,VLOOKUP($A32,Economática!$A$3:$AI$823,13,FALSE)))","v":106.69},{"$f":"IF($A32=\"\",\"\",IF(OR(VLOOKUP($A32,Economática!$A$3:$AI$823,14,FALSE)=0,VLOOKUP($A32,Economática!$A$3:$AI$823,14,FALSE)=\"-\"),1/0,VLOOKUP($A32,Economática!$A$3:$AI$823,14,FALSE)))","v":36.270000000000003},{"$f":"IF($A32=\"\",\"\",IF(OR(VLOOKUP($A32,Economática!$A$3:$AI$823,15,FALSE)=0,VLOOKUP($A32,Economática!$A$3:$AI$823,15,FALSE)=\"-\"),1/0,VLOOKUP($A32,Economática!$A$3:$AI$823,15,FALSE)))","v":87.86},{"$f":"IF($A32=\"\",\"\",IF(OR(VLOOKUP($A32,Economática!$A$3:$AI$823,16,FALSE)=0,VLOOKUP($A32,Economática!$A$3:$AI$823,16,FALSE)=\"-\"),1/0,VLOOKUP($A32,Economática!$A$3:$AI$823,16,FALSE)))","v":152.29},{"$f":"IF($A32=\"\",\"\",IF(OR(VLOOKUP($A32,Economática!$A$3:$AI$823,17,FALSE)=0,VLOOKUP($A32,Economática!$A$3:$AI$823,17,FALSE)=\"-\"),1/0,VLOOKUP($A32,Economática!$A$3:$AI$823,17,FALSE)))","v":200.29},{"$f":"IF($A32=\"\",\"\",IF(OR(VLOOKUP($A32,Economática!$A$3:$AI$823,18,FALSE)=0,VLOOKUP($A32,Economática!$A$3:$AI$823,18,FALSE)=\"-\"),1/0,VLOOKUP($A32,Economática!$A$3:$AI$823,18,FALSE)))","v":106.69},{"$f":"IF($A32=\"\",\"\",IF(OR(VLOOKUP($A32,Economática!$A$3:$AI$823,19,FALSE)=0,VLOOKUP($A32,Economática!$A$3:$AI$823,19,FALSE)=\"-\"),1/0,VLOOKUP($A32,Economática!$A$3:$AI$823,19,FALSE)))","v":200.29},{"$f":"IF($A32=\"\",\"\",VLOOKUP($A32,Economática!$A$3:$AI$823,20,FALSE)/E32)","v":4.1388217304155557},24.748827309734882,0.68205251864035987,4.0784554396125614,{"$f":"IF($A32=\"\",\"\",IF(OR(VLOOKUP($A32,Economática!$A$3:$AI$823,21,FALSE)/100=0,VLOOKUP($A32,Economática!$A$3:$AI$823,21,FALSE)/100=\"-\"),1/0,VLOOKUP($A32,Economática!$A$3:$AI$823,21,FALSE)/100))","v":0.173016},{"$f":"IF($A32=\"\",\"\",IF(OR(VLOOKUP($A32,Economática!$A$3:$AI$823,22,FALSE)/100=0,VLOOKUP($A32,Economática!$A$3:$AI$823,22,FALSE)/100=\"-\"),1/0,VLOOKUP($A32,Economática!$A$3:$AI$823,22,FALSE)/100))","v":-0.26007200000000003},{"$f":"IF($A32=\"\",\"\",IF(OR(VLOOKUP($A32,Economática!$A$3:$AI$823,23,FALSE)=0,VLOOKUP($A32,Economática!$A$3:$AI$823,23,FALSE)=\"-\"),1/0,VLOOKUP($A32,Economática!$A$3:$AI$823,23,FALSE)))","v":141.9},{"$f":"IF($A32=\"\",\"\",IF(OR(VLOOKUP($A32,Economática!$A$3:$AI$823,24,FALSE)=0,VLOOKUP($A32,Economática!$A$3:$AI$823,24,FALSE)=\"-\"),1/0,VLOOKUP($A32,Economática!$A$3:$AI$823,24,FALSE)))","v":243.5},{"$f":"IF($A32=\"\",\"\",IF(OR(VLOOKUP($A32,Economática!$A$3:$AI$823,25,FALSE)=0,VLOOKUP($A32,Economática!$A$3:$AI$823,25,FALSE)=\"-\"),1/0,VLOOKUP($A32,Economática!$A$3:$AI$823,25,FALSE)))","v":243.5},{"$f":"IF($A32=\"\",\"\",IF(ISERROR((F32+VLOOKUP($A32,Economática!$A$3:$AI$823,26,FALSE))/Y32),(F32+VLOOKUP($A32,Economática!$A$3:$AI$823,26,FALSE))/Y32,(F32+VLOOKUP($A32,Economática!$A$3:$AI$823,26,FALSE))/Y32))","v":2.0690020533880906},{"$f":"IF($A32=\"\",\"\",IF(OR(-VLOOKUP($A32,Economática!$A$3:$AI$823,27,FALSE)=0,-VLOOKUP($A32,Economática!$A$3:$AI$823,27,FALSE)=\"-\"),1/0,-VLOOKUP($A32,Economática!$A$3:$AI$823,27,FALSE)))","v":24.99},3.0592383120937233E-2,{"$f":"IF($A32=\"\",\"\",IF(OR(VLOOKUP($A32,Economática!$A$3:$AI$823,28,FALSE)=0,VLOOKUP($A32,Economática!$A$3:$AI$823,28,FALSE)=\"-\"),1/0,VLOOKUP($A32,Economática!$A$3:$AI$823,28,FALSE)))","v":0.8},{"$f":"IF($A32=\"\",\"\",IF(OR(VLOOKUP($A32,Economática!$A$3:$AI$823,29,FALSE)=0,VLOOKUP($A32,Economática!$A$3:$AI$823,29,FALSE)=\"-\"),1/0,VLOOKUP($A32,Economática!$A$3:$AI$823,29,FALSE)))","v":71.7},{"$f":"IF($A32=\"\",\"\",IF(OR(VLOOKUP($A32,Economática!$A$3:$AI$823,30,FALSE)/E32=0,VLOOKUP($A32,Economática!$A$3:$AI$823,30,FALSE)/E32=\"-\",VLOOKUP($A32,Economática!$A$3:$AI$823,30,FALSE)/E32<33.33%,VLOOKUP($A32,Economática!$A$3:$AI$823,30,FALSE)/E32>100%),1/0,VLOOKUP($A32,Economática!$A$3:$AI$823,30,FALSE)/E32))","v":{"$error":"#DIV/0!"}},"TEND3",{"$f":"IF($A32=\"\",\"\",IF(OR(VLOOKUP($A32,Economática!$A$3:$AI$823,25,FALSE)=0,VLOOKUP($A32,Economática!$A$3:$AI$823,25,FALSE)=\"-\"),1/0,VLOOKUP($A32,Economática!$A$3:$AI$823,25,FALSE)))","v":243.5},{"$f":"CONCATENATE(Economática!B34,\" \",Economática!C34)","v":"Tenda ON"}]
[{"$f":"IF(Economática!AG35=\"\",\"\",Economática!AG35)","v":"TRIS3"},{"$f":"IF($A33=\"\",\"\",VLOOKUP(VLOOKUP($A33,Economática!$A$3:$AI$823,6,FALSE),Correção!$B$16:$C$36,2,FALSE))","v":"Construção"},{"$f":"IF(Economática!B35=\"\",\"\",Economática!B35)","v":"Trisul"},{"$f":"IF($A33=\"\",\"\",IF(OR(VLOOKUP($A33,Economática!$A$3:$AI$823,8,FALSE)=0,VLOOKUP($A33,Economática!$A$3:$AI$823,8,FALSE)=\"-\"),1/0,VLOOKUP($A33,Economática!$A$3:$AI$823,8,FALSE)))","v":4.7},{"$f":"IF(A33=\"\",\"\",IF(ISERROR(VLOOKUP(A33,Correção!$B$2:$G$13,9,FALSE)),VLOOKUP($A33,Economática!$A$3:$AI$823,9,FALSE),VLOOKUP(A33,Correção!$B$2:$G$13,9,FALSE)))","v":146.11799999999999},{"$f":"IF($A33=\"\",\"\",Economática!G35)","v":686.75},{"$f":"IF($A33=\"\",\"\",IF(OR(VLOOKUP($A33,Economática!$A$3:$AI$823,10,FALSE)=0,VLOOKUP($A33,Economática!$A$3:$AI$823,10,FALSE)=\"-\"),1/0,VLOOKUP($A33,Economática!$A$3:$AI$823,10,FALSE)))","v":560.76},{"$f":"IF($A33=\"\",\"\",IF(OR(VLOOKUP($A33,Economática!$A$3:$AI$823,11,FALSE)=0,VLOOKUP($A33,Economática!$A$3:$AI$823,11,FALSE)=\"-\"),1/0,VLOOKUP($A33,Economática!$A$3:$AI$823,11,FALSE)))","v":441.68},{"$f":"IF($A33=\"\",\"\",IF(OR(VLOOKUP($A33,Economática!$A$3:$AI$823,12,FALSE)=0,VLOOKUP($A33,Economática!$A$3:$AI$823,12,FALSE)=\"-\"),1/0,VLOOKUP($A33,Economática!$A$3:$AI$823,12,FALSE)))","v":545.25},{"$f":"IF($A33=\"\",\"\",IF(OR(VLOOKUP($A33,Economática!$A$3:$AI$823,13,FALSE)=0,VLOOKUP($A33,Economática!$A$3:$AI$823,13,FALSE)=\"-\"),1/0,VLOOKUP($A33,Economática!$A$3:$AI$823,13,FALSE)))","v":34.99},{"$f":"IF($A33=\"\",\"\",IF(OR(VLOOKUP($A33,Economática!$A$3:$AI$823,14,FALSE)=0,VLOOKUP($A33,Economática!$A$3:$AI$823,14,FALSE)=\"-\"),1/0,VLOOKUP($A33,Economática!$A$3:$AI$823,14,FALSE)))","v":12.89},{"$f":"IF($A33=\"\",\"\",IF(OR(VLOOKUP($A33,Economática!$A$3:$AI$823,15,FALSE)=0,VLOOKUP($A33,Economática!$A$3:$AI$823,15,FALSE)=\"-\"),1/0,VLOOKUP($A33,Economática!$A$3:$AI$823,15,FALSE)))","v":30.29},{"$f":"IF($A33=\"\",\"\",IF(OR(VLOOKUP($A33,Economática!$A$3:$AI$823,16,FALSE)=0,VLOOKUP($A33,Economática!$A$3:$AI$823,16,FALSE)=\"-\"),1/0,VLOOKUP($A33,Economática!$A$3:$AI$823,16,FALSE)))","v":51.39},{"$f":"IF($A33=\"\",\"\",IF(OR(VLOOKUP($A33,Economática!$A$3:$AI$823,17,FALSE)=0,VLOOKUP($A33,Economática!$A$3:$AI$823,17,FALSE)=\"-\"),1/0,VLOOKUP($A33,Economática!$A$3:$AI$823,17,FALSE)))","v":71.95},{"$f":"IF($A33=\"\",\"\",IF(OR(VLOOKUP($A33,Economática!$A$3:$AI$823,18,FALSE)=0,VLOOKUP($A33,Economática!$A$3:$AI$823,18,FALSE)=\"-\"),1/0,VLOOKUP($A33,Economática!$A$3:$AI$823,18,FALSE)))","v":34.99},{"$f":"IF($A33=\"\",\"\",IF(OR(VLOOKUP($A33,Economática!$A$3:$AI$823,19,FALSE)=0,VLOOKUP($A33,Economática!$A$3:$AI$823,19,FALSE)=\"-\"),1/0,VLOOKUP($A33,Economática!$A$3:$AI$823,19,FALSE)))","v":71.95},{"$f":"IF($A33=\"\",\"\",VLOOKUP($A33,Economática!$A$3:$AI$823,20,FALSE)/E33)","v":0.49241024377557868},3.8377201987434812,1.2246854269206078,9.5448867268936759,{"$f":"IF($A33=\"\",\"\",IF(OR(VLOOKUP($A33,Economática!$A$3:$AI$823,21,FALSE)/100=0,VLOOKUP($A33,Economática!$A$3:$AI$823,21,FALSE)/100=\"-\"),1/0,VLOOKUP($A33,Economática!$A$3:$AI$823,21,FALSE)/100))","v":0.140541},{"$f":"IF($A33=\"\",\"\",IF(OR(VLOOKUP($A33,Economática!$A$3:$AI$823,22,FALSE)/100=0,VLOOKUP($A33,Economática!$A$3:$AI$823,22,FALSE)/100=\"-\"),1/0,VLOOKUP($A33,Economática!$A$3:$AI$823,22,FALSE)/100))","v":0.29569299999999998},{"$f":"IF($A33=\"\",\"\",IF(OR(VLOOKUP($A33,Economática!$A$3:$AI$823,23,FALSE)=0,VLOOKUP($A33,Economática!$A$3:$AI$823,23,FALSE)=\"-\"),1/0,VLOOKUP($A33,Economática!$A$3:$AI$823,23,FALSE)))","v":61.1},{"$f":"IF($A33=\"\",\"\",IF(OR(VLOOKUP($A33,Economática!$A$3:$AI$823,24,FALSE)=0,VLOOKUP($A33,Economática!$A$3:$AI$823,24,FALSE)=\"-\"),1/0,VLOOKUP($A33,Economática!$A$3:$AI$823,24,FALSE)))","v":102.7},{"$f":"IF($A33=\"\",\"\",IF(OR(VLOOKUP($A33,Economática!$A$3:$AI$823,25,FALSE)=0,VLOOKUP($A33,Economática!$A$3:$AI$823,25,FALSE)=\"-\"),1/0,VLOOKUP($A33,Economática!$A$3:$AI$823,25,FALSE)))","v":102.7},{"$f":"IF($A33=\"\",\"\",IF(ISERROR((F33+VLOOKUP($A33,Economática!$A$3:$AI$823,26,FALSE))/Y33),(F33+VLOOKUP($A33,Economática!$A$3:$AI$823,26,FALSE))/Y33,(F33+VLOOKUP($A33,Economática!$A$3:$AI$823,26,FALSE))/Y33))","v":8.4158812074001954},{"$f":"IF($A33=\"\",\"\",IF(OR(-VLOOKUP($A33,Economática!$A$3:$AI$823,27,FALSE)=0,-VLOOKUP($A33,Economática!$A$3:$AI$823,27,FALSE)=\"-\"),1/0,-VLOOKUP($A33,Economática!$A$3:$AI$823,27,FALSE)))","v":{"$error":"#DIV/0!"}},{"$error":"#DIV/0!"},{"$f":"IF($A33=\"\",\"\",IF(OR(VLOOKUP($A33,Economática!$A$3:$AI$823,28,FALSE)=0,VLOOKUP($A33,Economática!$A$3:$AI$823,28,FALSE)=\"-\"),1/0,VLOOKUP($A33,Economática!$A$3:$AI$823,28,FALSE)))","v":-0.8},{"$f":"IF($A33=\"\",\"\",IF(OR(VLOOKUP($A33,Economática!$A$3:$AI$823,29,FALSE)=0,VLOOKUP($A33,Economática!$A$3:$AI$823,29,FALSE)=\"-\"),1/0,VLOOKUP($A33,Economática!$A$3:$AI$823,29,FALSE)))","v":136.9},{"$f":"IF($A33=\"\",\"\",IF(OR(VLOOKUP($A33,Economática!$A$3:$AI$823,30,FALSE)/E33=0,VLOOKUP($A33,Economática!$A$3:$AI$823,30,FALSE)/E33=\"-\",VLOOKUP($A33,Economática!$A$3:$AI$823,30,FALSE)/E33<33.33%,VLOOKUP($A33,Economática!$A$3:$AI$823,30,FALSE)/E33>100%),1/0,VLOOKUP($A33,Economática!$A$3:$AI$823,30,FALSE)/E33))","v":0.9998768118917587},"TRIS3",{"$f":"IF($A33=\"\",\"\",IF(OR(VLOOKUP($A33,Economática!$A$3:$AI$823,25,FALSE)=0,VLOOKUP($A33,Economática!$A$3:$AI$823,25,FALSE)=\"-\"),1/0,VLOOKUP($A33,Economática!$A$3:$AI$823,25,FALSE)))","v":102.7},{"$f":"CONCATENATE(Economática!B35,\" \",Economática!C35)","v":"Trisul ON"}]
[{"$f":"IF(Economática!AG36=\"\",\"\",Economática!AG36)","v":"MRVE3"},{"$f":"IF($A34=\"\",\"\",VLOOKUP(VLOOKUP($A34,Economática!$A$3:$AI$823,6,FALSE),Correção!$B$16:$C$36,2,FALSE))","v":"Construção"},{"$f":"IF(Economática!B36=\"\",\"\",Economática!B36)","v":"MRV"},{"$f":"IF($A34=\"\",\"\",IF(OR(VLOOKUP($A34,Economática!$A$3:$AI$823,8,FALSE)=0,VLOOKUP($A34,Economática!$A$3:$AI$823,8,FALSE)=\"-\"),1/0,VLOOKUP($A34,Economática!$A$3:$AI$823,8,FALSE)))","v":13.99},{"$f":"IF(A34=\"\",\"\",IF(ISERROR(VLOOKUP(A34,Correção!$B$2:$G$13,9,FALSE)),VLOOKUP($A34,Economática!$A$3:$AI$823,9,FALSE),VLOOKUP(A34,Correção!$B$2:$G$13,9,FALSE)))","v":441.01100000000002},{"$f":"IF($A34=\"\",\"\",Economática!G36)","v":6169.74},{"$f":"IF($A34=\"\",\"\",IF(OR(VLOOKUP($A34,Economática!$A$3:$AI$823,10,FALSE)=0,VLOOKUP($A34,Economática!$A$3:$AI$823,10,FALSE)=\"-\"),1/0,VLOOKUP($A34,Economática!$A$3:$AI$823,10,FALSE)))","v":4630.45},{"$f":"IF($A34=\"\",\"\",IF(OR(VLOOKUP($A34,Economática!$A$3:$AI$823,11,FALSE)=0,VLOOKUP($A34,Economática!$A$3:$AI$823,11,FALSE)=\"-\"),1/0,VLOOKUP($A34,Economática!$A$3:$AI$823,11,FALSE)))","v":4759.8900000000003},{"$f":"IF($A34=\"\",\"\",IF(OR(VLOOKUP($A34,Economática!$A$3:$AI$823,12,FALSE)=0,VLOOKUP($A34,Economática!$A$3:$AI$823,12,FALSE)=\"-\"),1/0,VLOOKUP($A34,Economática!$A$3:$AI$823,12,FALSE)))","v":5419},{"$f":"IF($A34=\"\",\"\",IF(OR(VLOOKUP($A34,Economática!$A$3:$AI$823,13,FALSE)=0,VLOOKUP($A34,Economática!$A$3:$AI$823,13,FALSE)=\"-\"),1/0,VLOOKUP($A34,Economática!$A$3:$AI$823,13,FALSE)))","v":653.4},{"$f":"IF($A34=\"\",\"\",IF(OR(VLOOKUP($A34,Economática!$A$3:$AI$823,14,FALSE)=0,VLOOKUP($A34,Economática!$A$3:$AI$823,14,FALSE)=\"-\"),1/0,VLOOKUP($A34,Economática!$A$3:$AI$823,14,FALSE)))","v":159.66},{"$f":"IF($A34=\"\",\"\",IF(OR(VLOOKUP($A34,Economática!$A$3:$AI$823,15,FALSE)=0,VLOOKUP($A34,Economática!$A$3:$AI$823,15,FALSE)=\"-\"),1/0,VLOOKUP($A34,Economática!$A$3:$AI$823,15,FALSE)))","v":325.74},{"$f":"IF($A34=\"\",\"\",IF(OR(VLOOKUP($A34,Economática!$A$3:$AI$823,16,FALSE)=0,VLOOKUP($A34,Economática!$A$3:$AI$823,16,FALSE)=\"-\"),1/0,VLOOKUP($A34,Economática!$A$3:$AI$823,16,FALSE)))","v":499.8},{"$f":"IF($A34=\"\",\"\",IF(OR(VLOOKUP($A34,Economática!$A$3:$AI$823,17,FALSE)=0,VLOOKUP($A34,Economática!$A$3:$AI$823,17,FALSE)=\"-\"),1/0,VLOOKUP($A34,Economática!$A$3:$AI$823,17,FALSE)))","v":690.31},{"$f":"IF($A34=\"\",\"\",IF(OR(VLOOKUP($A34,Economática!$A$3:$AI$823,18,FALSE)=0,VLOOKUP($A34,Economática!$A$3:$AI$823,18,FALSE)=\"-\"),1/0,VLOOKUP($A34,Economática!$A$3:$AI$823,18,FALSE)))","v":653.4},{"$f":"IF($A34=\"\",\"\",IF(OR(VLOOKUP($A34,Economática!$A$3:$AI$823,19,FALSE)=0,VLOOKUP($A34,Economática!$A$3:$AI$823,19,FALSE)=\"-\"),1/0,VLOOKUP($A34,Economática!$A$3:$AI$823,19,FALSE)))","v":690.31},{"$f":"IF($A34=\"\",\"\",VLOOKUP($A34,Economática!$A$3:$AI$823,20,FALSE)/E34)","v":1.5652897546773208},10.499624725913865,1.3324285738967057,8.9376423490895398,{"$f":"IF($A34=\"\",\"\",IF(OR(VLOOKUP($A34,Economática!$A$3:$AI$823,21,FALSE)/100=0,VLOOKUP($A34,Economática!$A$3:$AI$823,21,FALSE)/100=\"-\"),1/0,VLOOKUP($A34,Economática!$A$3:$AI$823,21,FALSE)/100))","v":0.13077800000000001},{"$f":"IF($A34=\"\",\"\",IF(OR(VLOOKUP($A34,Economática!$A$3:$AI$823,22,FALSE)/100=0,VLOOKUP($A34,Economática!$A$3:$AI$823,22,FALSE)/100=\"-\"),1/0,VLOOKUP($A34,Economática!$A$3:$AI$823,22,FALSE)/100))","v":0.42427500000000001},{"$f":"IF($A34=\"\",\"\",IF(OR(VLOOKUP($A34,Economática!$A$3:$AI$823,23,FALSE)=0,VLOOKUP($A34,Economática!$A$3:$AI$823,23,FALSE)=\"-\"),1/0,VLOOKUP($A34,Economática!$A$3:$AI$823,23,FALSE)))","v":715.7},{"$f":"IF($A34=\"\",\"\",IF(OR(VLOOKUP($A34,Economática!$A$3:$AI$823,24,FALSE)=0,VLOOKUP($A34,Economática!$A$3:$AI$823,24,FALSE)=\"-\"),1/0,VLOOKUP($A34,Economática!$A$3:$AI$823,24,FALSE)))","v":805.6},{"$f":"IF($A34=\"\",\"\",IF(OR(VLOOKUP($A34,Economática!$A$3:$AI$823,25,FALSE)=0,VLOOKUP($A34,Economática!$A$3:$AI$823,25,FALSE)=\"-\"),1/0,VLOOKUP($A34,Economática!$A$3:$AI$823,25,FALSE)))","v":805.6},{"$f":"IF($A34=\"\",\"\",IF(ISERROR((F34+VLOOKUP($A34,Economática!$A$3:$AI$823,26,FALSE))/Y34),(F34+VLOOKUP($A34,Economática!$A$3:$AI$823,26,FALSE))/Y34,(F34+VLOOKUP($A34,Economática!$A$3:$AI$823,26,FALSE))/Y34))","v":10.225801886792452},{"$f":"IF($A34=\"\",\"\",IF(OR(-VLOOKUP($A34,Economática!$A$3:$AI$823,27,FALSE)=0,-VLOOKUP($A34,Economática!$A$3:$AI$823,27,FALSE)=\"-\"),1/0,-VLOOKUP($A34,Economática!$A$3:$AI$823,27,FALSE)))","v":455.63},7.3849141130744575E-2,{"$f":"IF($A34=\"\",\"\",IF(OR(VLOOKUP($A34,Economática!$A$3:$AI$823,28,FALSE)=0,VLOOKUP($A34,Economática!$A$3:$AI$823,28,FALSE)=\"-\"),1/0,VLOOKUP($A34,Economática!$A$3:$AI$823,28,FALSE)))","v":2.9},{"$f":"IF($A34=\"\",\"\",IF(OR(VLOOKUP($A34,Economática!$A$3:$AI$823,29,FALSE)=0,VLOOKUP($A34,Economática!$A$3:$AI$823,29,FALSE)=\"-\"),1/0,VLOOKUP($A34,Economática!$A$3:$AI$823,29,FALSE)))","v":20.100000000000001},{"$f":"IF($A34=\"\",\"\",IF(OR(VLOOKUP($A34,Economática!$A$3:$AI$823,30,FALSE)/E34=0,VLOOKUP($A34,Economática!$A$3:$AI$823,30,FALSE)/E34=\"-\",VLOOKUP($A34,Economática!$A$3:$AI$823,30,FALSE)/E34<33.33%,VLOOKUP($A34,Economática!$A$3:$AI$823,30,FALSE)/E34>100%),1/0,VLOOKUP($A34,Economática!$A$3:$AI$823,30,FALSE)/E34))","v":{"$error":"#DIV/0!"}},"MRVE3",{"$f":"IF($A34=\"\",\"\",IF(OR(VLOOKUP($A34,Economática!$A$3:$AI$823,25,FALSE)=0,VLOOKUP($A34,Economática!$A$3:$AI$823,25,FALSE)=\"-\"),1/0,VLOOKUP($A34,Economática!$A$3:$AI$823,25,FALSE)))","v":805.6},{"$f":"CONCATENATE(Economática!B36,\" \",Economática!C36)","v":"MRV ON"}]
[{"$f":"IF(Economática!AG37=\"\",\"\",Economática!AG37)","v":"JHSF3"},{"$f":"IF($A35=\"\",\"\",VLOOKUP(VLOOKUP($A35,Economática!$A$3:$AI$823,6,FALSE),Correção!$B$16:$C$36,2,FALSE))","v":"Construção"},{"$f":"IF(Economática!B37=\"\",\"\",Economática!B37)","v":"JHSF Part"},{"$f":"IF($A35=\"\",\"\",IF(OR(VLOOKUP($A35,Economática!$A$3:$AI$823,8,FALSE)=0,VLOOKUP($A35,Economática!$A$3:$AI$823,8,FALSE)=\"-\"),1/0,VLOOKUP($A35,Economática!$A$3:$AI$823,8,FALSE)))","v":2.4500000000000002},{"$f":"IF(A35=\"\",\"\",IF(ISERROR(VLOOKUP(A35,Correção!$B$2:$G$13,9,FALSE)),VLOOKUP($A35,Economática!$A$3:$AI$823,9,FALSE),VLOOKUP(A35,Correção!$B$2:$G$13,9,FALSE)))","v":526.26599999999996},{"$f":"IF($A35=\"\",\"\",Economática!G37)","v":1289.3499999999999},{"$f":"IF($A35=\"\",\"\",IF(OR(VLOOKUP($A35,Economática!$A$3:$AI$823,10,FALSE)=0,VLOOKUP($A35,Economática!$A$3:$AI$823,10,FALSE)=\"-\"),1/0,VLOOKUP($A35,Economática!$A$3:$AI$823,10,FALSE)))","v":2227.84},{"$f":"IF($A35=\"\",\"\",IF(OR(VLOOKUP($A35,Economática!$A$3:$AI$823,11,FALSE)=0,VLOOKUP($A35,Economática!$A$3:$AI$823,11,FALSE)=\"-\"),1/0,VLOOKUP($A35,Economática!$A$3:$AI$823,11,FALSE)))","v":355.89},{"$f":"IF($A35=\"\",\"\",IF(OR(VLOOKUP($A35,Economática!$A$3:$AI$823,12,FALSE)=0,VLOOKUP($A35,Economática!$A$3:$AI$823,12,FALSE)=\"-\"),1/0,VLOOKUP($A35,Economática!$A$3:$AI$823,12,FALSE)))","v":485.69},{"$f":"IF($A35=\"\",\"\",IF(OR(VLOOKUP($A35,Economática!$A$3:$AI$823,13,FALSE)=0,VLOOKUP($A35,Economática!$A$3:$AI$823,13,FALSE)=\"-\"),1/0,VLOOKUP($A35,Economática!$A$3:$AI$823,13,FALSE)))","v":-22.65},{"$f":"IF($A35=\"\",\"\",IF(OR(VLOOKUP($A35,Economática!$A$3:$AI$823,14,FALSE)=0,VLOOKUP($A35,Economática!$A$3:$AI$823,14,FALSE)=\"-\"),1/0,VLOOKUP($A35,Economática!$A$3:$AI$823,14,FALSE)))","v":-10.94},{"$f":"IF($A35=\"\",\"\",IF(OR(VLOOKUP($A35,Economática!$A$3:$AI$823,15,FALSE)=0,VLOOKUP($A35,Economática!$A$3:$AI$823,15,FALSE)=\"-\"),1/0,VLOOKUP($A35,Economática!$A$3:$AI$823,15,FALSE)))","v":-3.72},{"$f":"IF($A35=\"\",\"\",IF(OR(VLOOKUP($A35,Economática!$A$3:$AI$823,16,FALSE)=0,VLOOKUP($A35,Economática!$A$3:$AI$823,16,FALSE)=\"-\"),1/0,VLOOKUP($A35,Economática!$A$3:$AI$823,16,FALSE)))","v":114.86},{"$f":"IF($A35=\"\",\"\",IF(OR(VLOOKUP($A35,Economática!$A$3:$AI$823,17,FALSE)=0,VLOOKUP($A35,Economática!$A$3:$AI$823,17,FALSE)=\"-\"),1/0,VLOOKUP($A35,Economática!$A$3:$AI$823,17,FALSE)))","v":182.33},{"$f":"IF($A35=\"\",\"\",IF(OR(VLOOKUP($A35,Economática!$A$3:$AI$823,18,FALSE)=0,VLOOKUP($A35,Economática!$A$3:$AI$823,18,FALSE)=\"-\"),1/0,VLOOKUP($A35,Economática!$A$3:$AI$823,18,FALSE)))","v":-22.65},{"$f":"IF($A35=\"\",\"\",IF(OR(VLOOKUP($A35,Economática!$A$3:$AI$823,19,FALSE)=0,VLOOKUP($A35,Economática!$A$3:$AI$823,19,FALSE)=\"-\"),1/0,VLOOKUP($A35,Economática!$A$3:$AI$823,19,FALSE)))","v":182.33},{"$f":"IF($A35=\"\",\"\",VLOOKUP($A35,Economática!$A$3:$AI$823,20,FALSE)/E35)","v":0.34645977509472403},4.2332964698460476,0.57874519714162598,7.0715279986837043,{"$f":"IF($A35=\"\",\"\",IF(OR(VLOOKUP($A35,Economática!$A$3:$AI$823,21,FALSE)/100=0,VLOOKUP($A35,Economática!$A$3:$AI$823,21,FALSE)/100=\"-\"),1/0,VLOOKUP($A35,Economática!$A$3:$AI$823,21,FALSE)/100))","v":9.0996000000000007E-2},{"$f":"IF($A35=\"\",\"\",IF(OR(VLOOKUP($A35,Economática!$A$3:$AI$823,22,FALSE)/100=0,VLOOKUP($A35,Economática!$A$3:$AI$823,22,FALSE)/100=\"-\"),1/0,VLOOKUP($A35,Economática!$A$3:$AI$823,22,FALSE)/100))","v":0.42214499999999999},{"$f":"IF($A35=\"\",\"\",IF(OR(VLOOKUP($A35,Economática!$A$3:$AI$823,23,FALSE)=0,VLOOKUP($A35,Economática!$A$3:$AI$823,23,FALSE)=\"-\"),1/0,VLOOKUP($A35,Economática!$A$3:$AI$823,23,FALSE)))","v":203.8},{"$f":"IF($A35=\"\",\"\",IF(OR(VLOOKUP($A35,Economática!$A$3:$AI$823,24,FALSE)=0,VLOOKUP($A35,Economática!$A$3:$AI$823,24,FALSE)=\"-\"),1/0,VLOOKUP($A35,Economática!$A$3:$AI$823,24,FALSE)))","v":342.1},{"$f":"IF($A35=\"\",\"\",IF(OR(VLOOKUP($A35,Economática!$A$3:$AI$823,25,FALSE)=0,VLOOKUP($A35,Economática!$A$3:$AI$823,25,FALSE)=\"-\"),1/0,VLOOKUP($A35,Economática!$A$3:$AI$823,25,FALSE)))","v":342.1},{"$f":"IF($A35=\"\",\"\",IF(ISERROR((F35+VLOOKUP($A35,Economática!$A$3:$AI$823,26,FALSE))/Y35),(F35+VLOOKUP($A35,Economática!$A$3:$AI$823,26,FALSE))/Y35,(F35+VLOOKUP($A35,Economática!$A$3:$AI$823,26,FALSE))/Y35))","v":6.566670564162524},{"$f":"IF($A35=\"\",\"\",IF(OR(-VLOOKUP($A35,Economática!$A$3:$AI$823,27,FALSE)=0,-VLOOKUP($A35,Economática!$A$3:$AI$823,27,FALSE)=\"-\"),1/0,-VLOOKUP($A35,Economática!$A$3:$AI$823,27,FALSE)))","v":{"$error":"#DIV/0!"}},{"$error":"#DIV/0!"},{"$f":"IF($A35=\"\",\"\",IF(OR(VLOOKUP($A35,Economática!$A$3:$AI$823,28,FALSE)=0,VLOOKUP($A35,Economática!$A$3:$AI$823,28,FALSE)=\"-\"),1/0,VLOOKUP($A35,Economática!$A$3:$AI$823,28,FALSE)))","v":7},{"$f":"IF($A35=\"\",\"\",IF(OR(VLOOKUP($A35,Economática!$A$3:$AI$823,29,FALSE)=0,VLOOKUP($A35,Economática!$A$3:$AI$823,29,FALSE)=\"-\"),1/0,VLOOKUP($A35,Economática!$A$3:$AI$823,29,FALSE)))","v":40},{"$f":"IF($A35=\"\",\"\",IF(OR(VLOOKUP($A35,Economática!$A$3:$AI$823,30,FALSE)/E35=0,VLOOKUP($A35,Economática!$A$3:$AI$823,30,FALSE)/E35=\"-\",VLOOKUP($A35,Economática!$A$3:$AI$823,30,FALSE)/E35<33.33%,VLOOKUP($A35,Economática!$A$3:$AI$823,30,FALSE)/E35>100%),1/0,VLOOKUP($A35,Economática!$A$3:$AI$823,30,FALSE)/E35))","v":{"$error":"#DIV/0!"}},"JHSF3",{"$f":"IF($A35=\"\",\"\",IF(OR(VLOOKUP($A35,Economática!$A$3:$AI$823,25,FALSE)=0,VLOOKUP($A35,Economática!$A$3:$AI$823,25,FALSE)=\"-\"),1/0,VLOOKUP($A35,Economática!$A$3:$AI$823,25,FALSE)))","v":342.1},{"$f":"CONCATENATE(Economática!B37,\" \",Economática!C37)","v":"JHSF Part ON"}]
[{"$f":"IF(Economática!AG38=\"\",\"\",Economática!AG38)","v":"EZTC3"},{"$f":"IF($A36=\"\",\"\",VLOOKUP(VLOOKUP($A36,Economática!$A$3:$AI$823,6,FALSE),Correção!$B$16:$C$36,2,FALSE))","v":"Construção"},{"$f":"IF(Economática!B38=\"\",\"\",Economática!B38)","v":"Eztec"},{"$f":"IF($A36=\"\",\"\",IF(OR(VLOOKUP($A36,Economática!$A$3:$AI$823,8,FALSE)=0,VLOOKUP($A36,Economática!$A$3:$AI$823,8,FALSE)=\"-\"),1/0,VLOOKUP($A36,Economática!$A$3:$AI$823,8,FALSE)))","v":26.8},{"$f":"IF(A36=\"\",\"\",IF(ISERROR(VLOOKUP(A36,Correção!$B$2:$G$13,9,FALSE)),VLOOKUP($A36,Economática!$A$3:$AI$823,9,FALSE),VLOOKUP(A36,Correção!$B$2:$G$13,9,FALSE)))","v":165.00200000000001},{"$f":"IF($A36=\"\",\"\",Economática!G38)","v":4422.05},{"$f":"IF($A36=\"\",\"\",IF(OR(VLOOKUP($A36,Economática!$A$3:$AI$823,10,FALSE)=0,VLOOKUP($A36,Economática!$A$3:$AI$823,10,FALSE)=\"-\"),1/0,VLOOKUP($A36,Economática!$A$3:$AI$823,10,FALSE)))","v":2609.7199999999998},{"$f":"IF($A36=\"\",\"\",IF(OR(VLOOKUP($A36,Economática!$A$3:$AI$823,11,FALSE)=0,VLOOKUP($A36,Economática!$A$3:$AI$823,11,FALSE)=\"-\"),1/0,VLOOKUP($A36,Economática!$A$3:$AI$823,11,FALSE)))","v":980.32},{"$f":"IF($A36=\"\",\"\",IF(OR(VLOOKUP($A36,Economática!$A$3:$AI$823,12,FALSE)=0,VLOOKUP($A36,Economática!$A$3:$AI$823,12,FALSE)=\"-\"),1/0,VLOOKUP($A36,Economática!$A$3:$AI$823,12,FALSE)))","v":390.76},{"$f":"IF($A36=\"\",\"\",IF(OR(VLOOKUP($A36,Economática!$A$3:$AI$823,13,FALSE)=0,VLOOKUP($A36,Economática!$A$3:$AI$823,13,FALSE)=\"-\"),1/0,VLOOKUP($A36,Economática!$A$3:$AI$823,13,FALSE)))","v":358.83},{"$f":"IF($A36=\"\",\"\",IF(OR(VLOOKUP($A36,Economática!$A$3:$AI$823,14,FALSE)=0,VLOOKUP($A36,Economática!$A$3:$AI$823,14,FALSE)=\"-\"),1/0,VLOOKUP($A36,Economática!$A$3:$AI$823,14,FALSE)))","v":5.43},{"$f":"IF($A36=\"\",\"\",IF(OR(VLOOKUP($A36,Economática!$A$3:$AI$823,15,FALSE)=0,VLOOKUP($A36,Economática!$A$3:$AI$823,15,FALSE)=\"-\"),1/0,VLOOKUP($A36,Economática!$A$3:$AI$823,15,FALSE)))","v":20.14},{"$f":"IF($A36=\"\",\"\",IF(OR(VLOOKUP($A36,Economática!$A$3:$AI$823,16,FALSE)=0,VLOOKUP($A36,Economática!$A$3:$AI$823,16,FALSE)=\"-\"),1/0,VLOOKUP($A36,Economática!$A$3:$AI$823,16,FALSE)))","v":54},{"$f":"IF($A36=\"\",\"\",IF(OR(VLOOKUP($A36,Economática!$A$3:$AI$823,17,FALSE)=0,VLOOKUP($A36,Economática!$A$3:$AI$823,17,FALSE)=\"-\"),1/0,VLOOKUP($A36,Economática!$A$3:$AI$823,17,FALSE)))","v":97.54},{"$f":"IF($A36=\"\",\"\",IF(OR(VLOOKUP($A36,Economática!$A$3:$AI$823,18,FALSE)=0,VLOOKUP($A36,Economática!$A$3:$AI$823,18,FALSE)=\"-\"),1/0,VLOOKUP($A36,Economática!$A$3:$AI$823,18,FALSE)))","v":358.83},{"$f":"IF($A36=\"\",\"\",IF(OR(VLOOKUP($A36,Economática!$A$3:$AI$823,19,FALSE)=0,VLOOKUP($A36,Economática!$A$3:$AI$823,19,FALSE)=\"-\"),1/0,VLOOKUP($A36,Economática!$A$3:$AI$823,19,FALSE)))","v":97.54},{"$f":"IF($A36=\"\",\"\",VLOOKUP($A36,Economática!$A$3:$AI$823,20,FALSE)/E36)","v":0.59114434976545738},15.816293135840775,1.6944551905951599,45.335796596268203,{"$f":"IF($A36=\"\",\"\",IF(OR(VLOOKUP($A36,Economática!$A$3:$AI$823,21,FALSE)/100=0,VLOOKUP($A36,Economática!$A$3:$AI$823,21,FALSE)/100=\"-\"),1/0,VLOOKUP($A36,Economática!$A$3:$AI$823,21,FALSE)/100))","v":3.9837999999999998E-2},{"$f":"IF($A36=\"\",\"\",IF(OR(VLOOKUP($A36,Economática!$A$3:$AI$823,22,FALSE)/100=0,VLOOKUP($A36,Economática!$A$3:$AI$823,22,FALSE)/100=\"-\"),1/0,VLOOKUP($A36,Economática!$A$3:$AI$823,22,FALSE)/100))","v":-0.15287599999999998},{"$f":"IF($A36=\"\",\"\",IF(OR(VLOOKUP($A36,Economática!$A$3:$AI$823,23,FALSE)=0,VLOOKUP($A36,Economática!$A$3:$AI$823,23,FALSE)=\"-\"),1/0,VLOOKUP($A36,Economática!$A$3:$AI$823,23,FALSE)))","v":321.2},{"$f":"IF($A36=\"\",\"\",IF(OR(VLOOKUP($A36,Economática!$A$3:$AI$823,24,FALSE)=0,VLOOKUP($A36,Economática!$A$3:$AI$823,24,FALSE)=\"-\"),1/0,VLOOKUP($A36,Economática!$A$3:$AI$823,24,FALSE)))","v":6},{"$f":"IF($A36=\"\",\"\",IF(OR(VLOOKUP($A36,Economática!$A$3:$AI$823,25,FALSE)=0,VLOOKUP($A36,Economática!$A$3:$AI$823,25,FALSE)=\"-\"),1/0,VLOOKUP($A36,Economática!$A$3:$AI$823,25,FALSE)))","v":6},{"$f":"IF($A36=\"\",\"\",IF(ISERROR((F36+VLOOKUP($A36,Economática!$A$3:$AI$823,26,FALSE))/Y36),(F36+VLOOKUP($A36,Economática!$A$3:$AI$823,26,FALSE))/Y36,(F36+VLOOKUP($A36,Economática!$A$3:$AI$823,26,FALSE))/Y36))","v":669.81900000000007},{"$f":"IF($A36=\"\",\"\",IF(OR(-VLOOKUP($A36,Economática!$A$3:$AI$823,27,FALSE)=0,-VLOOKUP($A36,Economática!$A$3:$AI$823,27,FALSE)=\"-\"),1/0,-VLOOKUP($A36,Economática!$A$3:$AI$823,27,FALSE)))","v":85.22},1.9271604798679346E-2,{"$f":"IF($A36=\"\",\"\",IF(OR(VLOOKUP($A36,Economática!$A$3:$AI$823,28,FALSE)=0,VLOOKUP($A36,Economática!$A$3:$AI$823,28,FALSE)=\"-\"),1/0,VLOOKUP($A36,Economática!$A$3:$AI$823,28,FALSE)))","v":0.5},{"$f":"IF($A36=\"\",\"\",IF(OR(VLOOKUP($A36,Economática!$A$3:$AI$823,29,FALSE)=0,VLOOKUP($A36,Economática!$A$3:$AI$823,29,FALSE)=\"-\"),1/0,VLOOKUP($A36,Economática!$A$3:$AI$823,29,FALSE)))","v":27},{"$f":"IF($A36=\"\",\"\",IF(OR(VLOOKUP($A36,Economática!$A$3:$AI$823,30,FALSE)/E36=0,VLOOKUP($A36,Economática!$A$3:$AI$823,30,FALSE)/E36=\"-\",VLOOKUP($A36,Economática!$A$3:$AI$823,30,FALSE)/E36<33.33%,VLOOKUP($A36,Economática!$A$3:$AI$823,30,FALSE)/E36>100%),1/0,VLOOKUP($A36,Economática!$A$3:$AI$823,30,FALSE)/E36))","v":0.99998787893480068},"EZTC3",{"$f":"IF($A36=\"\",\"\",IF(OR(VLOOKUP($A36,Economática!$A$3:$AI$823,25,FALSE)=0,VLOOKUP($A36,Economática!$A$3:$AI$823,25,FALSE)=\"-\"),1/0,VLOOKUP($A36,Economática!$A$3:$AI$823,25,FALSE)))","v":6},{"$f":"CONCATENATE(Economática!B38,\" \",Economática!C38)","v":"Eztec ON"}]
[{"$f":"IF(Economática!AG39=\"\",\"\",Economática!AG39)","v":"LOGG3"},{"$f":"IF($A37=\"\",\"\",VLOOKUP(VLOOKUP($A37,Economática!$A$3:$AI$823,6,FALSE),Correção!$B$16:$C$36,2,FALSE))","v":"Construção"},{"$f":"IF(Economática!B39=\"\",\"\",Economática!B39)","v":"Log Com Prop"},{"$f":"IF($A37=\"\",\"\",IF(OR(VLOOKUP($A37,Economática!$A$3:$AI$823,8,FALSE)=0,VLOOKUP($A37,Economática!$A$3:$AI$823,8,FALSE)=\"-\"),1/0,VLOOKUP($A37,Economática!$A$3:$AI$823,8,FALSE)))","v":16.98},{"$f":"IF(A37=\"\",\"\",IF(ISERROR(VLOOKUP(A37,Correção!$B$2:$G$13,9,FALSE)),VLOOKUP($A37,Economática!$A$3:$AI$823,9,FALSE),VLOOKUP(A37,Correção!$B$2:$G$13,9,FALSE)))","v":73.784999999999997},{"$f":"IF($A37=\"\",\"\",Economática!G39)","v":1252.8599999999999},{"$f":"IF($A37=\"\",\"\",IF(OR(VLOOKUP($A37,Economática!$A$3:$AI$823,10,FALSE)=0,VLOOKUP($A37,Economática!$A$3:$AI$823,10,FALSE)=\"-\"),1/0,VLOOKUP($A37,Economática!$A$3:$AI$823,10,FALSE)))","v":2147.27},{"$f":"IF($A37=\"\",\"\",IF(OR(VLOOKUP($A37,Economática!$A$3:$AI$823,11,FALSE)=0,VLOOKUP($A37,Economática!$A$3:$AI$823,11,FALSE)=\"-\"),1/0,VLOOKUP($A37,Economática!$A$3:$AI$823,11,FALSE)))","v":99.49},{"$f":"IF($A37=\"\",\"\",IF(OR(VLOOKUP($A37,Economática!$A$3:$AI$823,12,FALSE)=0,VLOOKUP($A37,Economática!$A$3:$AI$823,12,FALSE)=\"-\"),1/0,VLOOKUP($A37,Economática!$A$3:$AI$823,12,FALSE)))","v":104.83},{"$f":"IF($A37=\"\",\"\",IF(OR(VLOOKUP($A37,Economática!$A$3:$AI$823,13,FALSE)=0,VLOOKUP($A37,Economática!$A$3:$AI$823,13,FALSE)=\"-\"),1/0,VLOOKUP($A37,Economática!$A$3:$AI$823,13,FALSE)))","v":37.409999999999997},{"$f":"IF($A37=\"\",\"\",IF(OR(VLOOKUP($A37,Economática!$A$3:$AI$823,14,FALSE)=0,VLOOKUP($A37,Economática!$A$3:$AI$823,14,FALSE)=\"-\"),1/0,VLOOKUP($A37,Economática!$A$3:$AI$823,14,FALSE)))","v":10.67},{"$f":"IF($A37=\"\",\"\",IF(OR(VLOOKUP($A37,Economática!$A$3:$AI$823,15,FALSE)=0,VLOOKUP($A37,Economática!$A$3:$AI$823,15,FALSE)=\"-\"),1/0,VLOOKUP($A37,Economática!$A$3:$AI$823,15,FALSE)))","v":23.12},{"$f":"IF($A37=\"\",\"\",IF(OR(VLOOKUP($A37,Economática!$A$3:$AI$823,16,FALSE)=0,VLOOKUP($A37,Economática!$A$3:$AI$823,16,FALSE)=\"-\"),1/0,VLOOKUP($A37,Economática!$A$3:$AI$823,16,FALSE)))","v":33.869999999999997},{"$f":"IF($A37=\"\",\"\",IF(OR(VLOOKUP($A37,Economática!$A$3:$AI$823,17,FALSE)=0,VLOOKUP($A37,Economática!$A$3:$AI$823,17,FALSE)=\"-\"),1/0,VLOOKUP($A37,Economática!$A$3:$AI$823,17,FALSE)))","v":43.49},{"$f":"IF($A37=\"\",\"\",IF(OR(VLOOKUP($A37,Economática!$A$3:$AI$823,18,FALSE)=0,VLOOKUP($A37,Economática!$A$3:$AI$823,18,FALSE)=\"-\"),1/0,VLOOKUP($A37,Economática!$A$3:$AI$823,18,FALSE)))","v":37.409999999999997},{"$f":"IF($A37=\"\",\"\",IF(OR(VLOOKUP($A37,Economática!$A$3:$AI$823,19,FALSE)=0,VLOOKUP($A37,Economática!$A$3:$AI$823,19,FALSE)=\"-\"),1/0,VLOOKUP($A37,Economática!$A$3:$AI$823,19,FALSE)))","v":43.49},{"$f":"IF($A37=\"\",\"\",VLOOKUP($A37,Economática!$A$3:$AI$823,20,FALSE)/E37)","v":0.58941519278986254},29.101714440604461,0.58347077917541812,28.808215681765919,{"$f":"IF($A37=\"\",\"\",IF(OR(VLOOKUP($A37,Economática!$A$3:$AI$823,21,FALSE)/100=0,VLOOKUP($A37,Economática!$A$3:$AI$823,21,FALSE)/100=\"-\"),1/0,VLOOKUP($A37,Economática!$A$3:$AI$823,21,FALSE)/100))","v":2.3311000000000002E-2},{"$f":"IF($A37=\"\",\"\",IF(OR(VLOOKUP($A37,Economática!$A$3:$AI$823,22,FALSE)/100=0,VLOOKUP($A37,Economática!$A$3:$AI$823,22,FALSE)/100=\"-\"),1/0,VLOOKUP($A37,Economática!$A$3:$AI$823,22,FALSE)/100))","v":0.36572399999999999},{"$f":"IF($A37=\"\",\"\",IF(OR(VLOOKUP($A37,Economática!$A$3:$AI$823,23,FALSE)=0,VLOOKUP($A37,Economática!$A$3:$AI$823,23,FALSE)=\"-\"),1/0,VLOOKUP($A37,Economática!$A$3:$AI$823,23,FALSE)))","v":72.2},{"$f":"IF($A37=\"\",\"\",IF(OR(VLOOKUP($A37,Economática!$A$3:$AI$823,24,FALSE)=0,VLOOKUP($A37,Economática!$A$3:$AI$823,24,FALSE)=\"-\"),1/0,VLOOKUP($A37,Economática!$A$3:$AI$823,24,FALSE)))","v":83.7},{"$f":"IF($A37=\"\",\"\",IF(OR(VLOOKUP($A37,Economática!$A$3:$AI$823,25,FALSE)=0,VLOOKUP($A37,Economática!$A$3:$AI$823,25,FALSE)=\"-\"),1/0,VLOOKUP($A37,Economática!$A$3:$AI$823,25,FALSE)))","v":83.7},{"$f":"IF($A37=\"\",\"\",IF(ISERROR((F37+VLOOKUP($A37,Economática!$A$3:$AI$823,26,FALSE))/Y37),(F37+VLOOKUP($A37,Economática!$A$3:$AI$823,26,FALSE))/Y37,(F37+VLOOKUP($A37,Economática!$A$3:$AI$823,26,FALSE))/Y37))","v":24.404838709677417},{"$f":"IF($A37=\"\",\"\",IF(OR(-VLOOKUP($A37,Economática!$A$3:$AI$823,27,FALSE)=0,-VLOOKUP($A37,Economática!$A$3:$AI$823,27,FALSE)=\"-\"),1/0,-VLOOKUP($A37,Economática!$A$3:$AI$823,27,FALSE)))","v":3.55},2.8335169133023642E-3,{"$f":"IF($A37=\"\",\"\",IF(OR(VLOOKUP($A37,Economática!$A$3:$AI$823,28,FALSE)=0,VLOOKUP($A37,Economática!$A$3:$AI$823,28,FALSE)=\"-\"),1/0,VLOOKUP($A37,Economática!$A$3:$AI$823,28,FALSE)))","v":-2.8},{"$f":"IF($A37=\"\",\"\",IF(OR(VLOOKUP($A37,Economática!$A$3:$AI$823,29,FALSE)=0,VLOOKUP($A37,Economática!$A$3:$AI$823,29,FALSE)=\"-\"),1/0,VLOOKUP($A37,Economática!$A$3:$AI$823,29,FALSE)))","v":{"$error":"#DIV/0!"}},{"$f":"IF($A37=\"\",\"\",IF(OR(VLOOKUP($A37,Economática!$A$3:$AI$823,30,FALSE)/E37=0,VLOOKUP($A37,Economática!$A$3:$AI$823,30,FALSE)/E37=\"-\",VLOOKUP($A37,Economática!$A$3:$AI$823,30,FALSE)/E37<33.33%,VLOOKUP($A37,Economática!$A$3:$AI$823,30,FALSE)/E37>100%),1/0,VLOOKUP($A37,Economática!$A$3:$AI$823,30,FALSE)/E37))","v":0.93785999864471103},"LOGG3",{"$f":"IF($A37=\"\",\"\",IF(OR(VLOOKUP($A37,Economática!$A$3:$AI$823,25,FALSE)=0,VLOOKUP($A37,Economática!$A$3:$AI$823,25,FALSE)=\"-\"),1/0,VLOOKUP($A37,Economática!$A$3:$AI$823,25,FALSE)))","v":83.7},{"$f":"CONCATENATE(Economática!B39,\" \",Economática!C39)","v":"Log Com Prop ON"}]
[{"$f":"IF(Economática!AG40=\"\",\"\",Economática!AG40)","v":"CYRE3"},{"$f":"IF($A38=\"\",\"\",VLOOKUP(VLOOKUP($A38,Economática!$A$3:$AI$823,6,FALSE),Correção!$B$16:$C$36,2,FALSE))","v":"Construção"},{"$f":"IF(Economática!B40=\"\",\"\",Economática!B40)","v":"Cyrela Realt"},{"$f":"IF($A38=\"\",\"\",IF(OR(VLOOKUP($A38,Economática!$A$3:$AI$823,8,FALSE)=0,VLOOKUP($A38,Economática!$A$3:$AI$823,8,FALSE)=\"-\"),1/0,VLOOKUP($A38,Economática!$A$3:$AI$823,8,FALSE)))","v":16.27},{"$f":"IF(A38=\"\",\"\",IF(ISERROR(VLOOKUP(A38,Correção!$B$2:$G$13,9,FALSE)),VLOOKUP($A38,Economática!$A$3:$AI$823,9,FALSE),VLOOKUP(A38,Correção!$B$2:$G$13,9,FALSE)))","v":384.22899999999998},{"$f":"IF($A38=\"\",\"\",Economática!G40)","v":6251.41},{"$f":"IF($A38=\"\",\"\",IF(OR(VLOOKUP($A38,Economática!$A$3:$AI$823,10,FALSE)=0,VLOOKUP($A38,Economática!$A$3:$AI$823,10,FALSE)=\"-\"),1/0,VLOOKUP($A38,Economática!$A$3:$AI$823,10,FALSE)))","v":5148.55},{"$f":"IF($A38=\"\",\"\",IF(OR(VLOOKUP($A38,Economática!$A$3:$AI$823,11,FALSE)=0,VLOOKUP($A38,Economática!$A$3:$AI$823,11,FALSE)=\"-\"),1/0,VLOOKUP($A38,Economática!$A$3:$AI$823,11,FALSE)))","v":2673.77},{"$f":"IF($A38=\"\",\"\",IF(OR(VLOOKUP($A38,Economática!$A$3:$AI$823,12,FALSE)=0,VLOOKUP($A38,Economática!$A$3:$AI$823,12,FALSE)=\"-\"),1/0,VLOOKUP($A38,Economática!$A$3:$AI$823,12,FALSE)))","v":3146.16},{"$f":"IF($A38=\"\",\"\",IF(OR(VLOOKUP($A38,Economática!$A$3:$AI$823,13,FALSE)=0,VLOOKUP($A38,Economática!$A$3:$AI$823,13,FALSE)=\"-\"),1/0,VLOOKUP($A38,Economática!$A$3:$AI$823,13,FALSE)))","v":-95},{"$f":"IF($A38=\"\",\"\",IF(OR(VLOOKUP($A38,Economática!$A$3:$AI$823,14,FALSE)=0,VLOOKUP($A38,Economática!$A$3:$AI$823,14,FALSE)=\"-\"),1/0,VLOOKUP($A38,Economática!$A$3:$AI$823,14,FALSE)))","v":-51.28},{"$f":"IF($A38=\"\",\"\",IF(OR(VLOOKUP($A38,Economática!$A$3:$AI$823,15,FALSE)=0,VLOOKUP($A38,Economática!$A$3:$AI$823,15,FALSE)=\"-\"),1/0,VLOOKUP($A38,Economática!$A$3:$AI$823,15,FALSE)))","v":-79.72},{"$f":"IF($A38=\"\",\"\",IF(OR(VLOOKUP($A38,Economática!$A$3:$AI$823,16,FALSE)=0,VLOOKUP($A38,Economática!$A$3:$AI$823,16,FALSE)=\"-\"),1/0,VLOOKUP($A38,Economática!$A$3:$AI$823,16,FALSE)))","v":-200.47},{"$f":"IF($A38=\"\",\"\",IF(OR(VLOOKUP($A38,Economática!$A$3:$AI$823,17,FALSE)=0,VLOOKUP($A38,Economática!$A$3:$AI$823,17,FALSE)=\"-\"),1/0,VLOOKUP($A38,Economática!$A$3:$AI$823,17,FALSE)))","v":-84.36},{"$f":"IF($A38=\"\",\"\",IF(OR(VLOOKUP($A38,Economática!$A$3:$AI$823,18,FALSE)=0,VLOOKUP($A38,Economática!$A$3:$AI$823,18,FALSE)=\"-\"),1/0,VLOOKUP($A38,Economática!$A$3:$AI$823,18,FALSE)))","v":-95},{"$f":"IF($A38=\"\",\"\",IF(OR(VLOOKUP($A38,Economática!$A$3:$AI$823,19,FALSE)=0,VLOOKUP($A38,Economática!$A$3:$AI$823,19,FALSE)=\"-\"),1/0,VLOOKUP($A38,Economática!$A$3:$AI$823,19,FALSE)))","v":-84.36},{"$f":"IF($A38=\"\",\"\",VLOOKUP($A38,Economática!$A$3:$AI$823,20,FALSE)/E38)","v":-0.21955656652673275},13.399691329910029,1.2142070738363226,{"$error":"#DIV/0!"},{"$f":"IF($A38=\"\",\"\",IF(OR(VLOOKUP($A38,Economática!$A$3:$AI$823,21,FALSE)/100=0,VLOOKUP($A38,Economática!$A$3:$AI$823,21,FALSE)/100=\"-\"),1/0,VLOOKUP($A38,Economática!$A$3:$AI$823,21,FALSE)/100))","v":9.4700000000000003E-4},{"$f":"IF($A38=\"\",\"\",IF(OR(VLOOKUP($A38,Economática!$A$3:$AI$823,22,FALSE)/100=0,VLOOKUP($A38,Economática!$A$3:$AI$823,22,FALSE)/100=\"-\"),1/0,VLOOKUP($A38,Economática!$A$3:$AI$823,22,FALSE)/100))","v":0.174563},{"$f":"IF($A38=\"\",\"\",IF(OR(VLOOKUP($A38,Economática!$A$3:$AI$823,23,FALSE)=0,VLOOKUP($A38,Economática!$A$3:$AI$823,23,FALSE)=\"-\"),1/0,VLOOKUP($A38,Economática!$A$3:$AI$823,23,FALSE)))","v":83.4},{"$f":"IF($A38=\"\",\"\",IF(OR(VLOOKUP($A38,Economática!$A$3:$AI$823,24,FALSE)=0,VLOOKUP($A38,Economática!$A$3:$AI$823,24,FALSE)=\"-\"),1/0,VLOOKUP($A38,Economática!$A$3:$AI$823,24,FALSE)))","v":113.8},{"$f":"IF($A38=\"\",\"\",IF(OR(VLOOKUP($A38,Economática!$A$3:$AI$823,25,FALSE)=0,VLOOKUP($A38,Economática!$A$3:$AI$823,25,FALSE)=\"-\"),1/0,VLOOKUP($A38,Economática!$A$3:$AI$823,25,FALSE)))","v":113.8},{"$f":"IF($A38=\"\",\"\",IF(ISERROR((F38+VLOOKUP($A38,Economática!$A$3:$AI$823,26,FALSE))/Y38),(F38+VLOOKUP($A38,Economática!$A$3:$AI$823,26,FALSE))/Y38,(F38+VLOOKUP($A38,Economática!$A$3:$AI$823,26,FALSE))/Y38))","v":63.428005272407731},{"$f":"IF($A38=\"\",\"\",IF(OR(-VLOOKUP($A38,Economática!$A$3:$AI$823,27,FALSE)=0,-VLOOKUP($A38,Economática!$A$3:$AI$823,27,FALSE)=\"-\"),1/0,-VLOOKUP($A38,Economática!$A$3:$AI$823,27,FALSE)))","v":430},6.8784482220810989E-2,{"$f":"IF($A38=\"\",\"\",IF(OR(VLOOKUP($A38,Economática!$A$3:$AI$823,28,FALSE)=0,VLOOKUP($A38,Economática!$A$3:$AI$823,28,FALSE)=\"-\"),1/0,VLOOKUP($A38,Economática!$A$3:$AI$823,28,FALSE)))","v":-4.9000000000000004},{"$f":"IF($A38=\"\",\"\",IF(OR(VLOOKUP($A38,Economática!$A$3:$AI$823,29,FALSE)=0,VLOOKUP($A38,Economática!$A$3:$AI$823,29,FALSE)=\"-\"),1/0,VLOOKUP($A38,Economática!$A$3:$AI$823,29,FALSE)))","v":33.200000000000003},{"$f":"IF($A38=\"\",\"\",IF(OR(VLOOKUP($A38,Economática!$A$3:$AI$823,30,FALSE)/E38=0,VLOOKUP($A38,Economática!$A$3:$AI$823,30,FALSE)/E38=\"-\",VLOOKUP($A38,Economática!$A$3:$AI$823,30,FALSE)/E38<33.33%,VLOOKUP($A38,Economática!$A$3:$AI$823,30,FALSE)/E38>100%),1/0,VLOOKUP($A38,Economática!$A$3:$AI$823,30,FALSE)/E38))","v":{"$error":"#DIV/0!"}},"CYRE3",{"$f":"IF($A38=\"\",\"\",IF(OR(VLOOKUP($A38,Economática!$A$3:$AI$823,25,FALSE)=0,VLOOKUP($A38,Economática!$A$3:$AI$823,25,FALSE)=\"-\"),1/0,VLOOKUP($A38,Economática!$A$3:$AI$823,25,FALSE)))","v":113.8},{"$f":"CONCATENATE(Economática!B40,\" \",Economática!C40)","v":"Cyrela Realt ON"}]
[{"$f":"IF(Economática!AG41=\"\",\"\",Economática!AG41)","v":"RDNI3"},{"$f":"IF($A39=\"\",\"\",VLOOKUP(VLOOKUP($A39,Economática!$A$3:$AI$823,6,FALSE),Correção!$B$16:$C$36,2,FALSE))","v":"Construção"},{"$f":"IF(Economática!B41=\"\",\"\",Economática!B41)","v":"Rni"},{"$f":"IF($A39=\"\",\"\",IF(OR(VLOOKUP($A39,Economática!$A$3:$AI$823,8,FALSE)=0,VLOOKUP($A39,Economática!$A$3:$AI$823,8,FALSE)=\"-\"),1/0,VLOOKUP($A39,Economática!$A$3:$AI$823,8,FALSE)))","v":5.5},{"$f":"IF(A39=\"\",\"\",IF(ISERROR(VLOOKUP(A39,Correção!$B$2:$G$13,9,FALSE)),VLOOKUP($A39,Economática!$A$3:$AI$823,9,FALSE),VLOOKUP(A39,Correção!$B$2:$G$13,9,FALSE)))","v":42.189},{"$f":"IF($A39=\"\",\"\",Economática!G41)","v":232.04},{"$f":"IF($A39=\"\",\"\",IF(OR(VLOOKUP($A39,Economática!$A$3:$AI$823,10,FALSE)=0,VLOOKUP($A39,Economática!$A$3:$AI$823,10,FALSE)=\"-\"),1/0,VLOOKUP($A39,Economática!$A$3:$AI$823,10,FALSE)))","v":615.29999999999995},{"$f":"IF($A39=\"\",\"\",IF(OR(VLOOKUP($A39,Economática!$A$3:$AI$823,11,FALSE)=0,VLOOKUP($A39,Economática!$A$3:$AI$823,11,FALSE)=\"-\"),1/0,VLOOKUP($A39,Economática!$A$3:$AI$823,11,FALSE)))","v":289.72000000000003},{"$f":"IF($A39=\"\",\"\",IF(OR(VLOOKUP($A39,Economática!$A$3:$AI$823,12,FALSE)=0,VLOOKUP($A39,Economática!$A$3:$AI$823,12,FALSE)=\"-\"),1/0,VLOOKUP($A39,Economática!$A$3:$AI$823,12,FALSE)))","v":182.61},{"$f":"IF($A39=\"\",\"\",IF(OR(VLOOKUP($A39,Economática!$A$3:$AI$823,13,FALSE)=0,VLOOKUP($A39,Economática!$A$3:$AI$823,13,FALSE)=\"-\"),1/0,VLOOKUP($A39,Economática!$A$3:$AI$823,13,FALSE)))","v":-93.19},{"$f":"IF($A39=\"\",\"\",IF(OR(VLOOKUP($A39,Economática!$A$3:$AI$823,14,FALSE)=0,VLOOKUP($A39,Economática!$A$3:$AI$823,14,FALSE)=\"-\"),1/0,VLOOKUP($A39,Economática!$A$3:$AI$823,14,FALSE)))","v":-11.75},{"$f":"IF($A39=\"\",\"\",IF(OR(VLOOKUP($A39,Economática!$A$3:$AI$823,15,FALSE)=0,VLOOKUP($A39,Economática!$A$3:$AI$823,15,FALSE)=\"-\"),1/0,VLOOKUP($A39,Economática!$A$3:$AI$823,15,FALSE)))","v":-20.87},{"$f":"IF($A39=\"\",\"\",IF(OR(VLOOKUP($A39,Economática!$A$3:$AI$823,16,FALSE)=0,VLOOKUP($A39,Economática!$A$3:$AI$823,16,FALSE)=\"-\"),1/0,VLOOKUP($A39,Economática!$A$3:$AI$823,16,FALSE)))","v":-18.350000000000001},{"$f":"IF($A39=\"\",\"\",IF(OR(VLOOKUP($A39,Economática!$A$3:$AI$823,17,FALSE)=0,VLOOKUP($A39,Economática!$A$3:$AI$823,17,FALSE)=\"-\"),1/0,VLOOKUP($A39,Economática!$A$3:$AI$823,17,FALSE)))","v":-26.1},{"$f":"IF($A39=\"\",\"\",IF(OR(VLOOKUP($A39,Economática!$A$3:$AI$823,18,FALSE)=0,VLOOKUP($A39,Economática!$A$3:$AI$823,18,FALSE)=\"-\"),1/0,VLOOKUP($A39,Economática!$A$3:$AI$823,18,FALSE)))","v":-93.19},{"$f":"IF($A39=\"\",\"\",IF(OR(VLOOKUP($A39,Economática!$A$3:$AI$823,19,FALSE)=0,VLOOKUP($A39,Economática!$A$3:$AI$823,19,FALSE)=\"-\"),1/0,VLOOKUP($A39,Economática!$A$3:$AI$823,19,FALSE)))","v":-26.1},{"$f":"IF($A39=\"\",\"\",VLOOKUP($A39,Economática!$A$3:$AI$823,20,FALSE)/E39)","v":-0.61864467041171878},14.584370333499253,0.37711604095563139,{"$error":"#DIV/0!"},{"$f":"IF($A39=\"\",\"\",IF(OR(VLOOKUP($A39,Economática!$A$3:$AI$823,21,FALSE)/100=0,VLOOKUP($A39,Economática!$A$3:$AI$823,21,FALSE)/100=\"-\"),1/0,VLOOKUP($A39,Economática!$A$3:$AI$823,21,FALSE)/100))","v":-4.1749999999999995E-2},{"$f":"IF($A39=\"\",\"\",IF(OR(VLOOKUP($A39,Economática!$A$3:$AI$823,22,FALSE)/100=0,VLOOKUP($A39,Economática!$A$3:$AI$823,22,FALSE)/100=\"-\"),1/0,VLOOKUP($A39,Economática!$A$3:$AI$823,22,FALSE)/100))","v":0.362373},{"$f":"IF($A39=\"\",\"\",IF(OR(VLOOKUP($A39,Economática!$A$3:$AI$823,23,FALSE)=0,VLOOKUP($A39,Economática!$A$3:$AI$823,23,FALSE)=\"-\"),1/0,VLOOKUP($A39,Economática!$A$3:$AI$823,23,FALSE)))","v":-73.900000000000006},{"$f":"IF($A39=\"\",\"\",IF(OR(VLOOKUP($A39,Economática!$A$3:$AI$823,24,FALSE)=0,VLOOKUP($A39,Economática!$A$3:$AI$823,24,FALSE)=\"-\"),1/0,VLOOKUP($A39,Economática!$A$3:$AI$823,24,FALSE)))","v":-28},{"$f":"IF($A39=\"\",\"\",IF(OR(VLOOKUP($A39,Economática!$A$3:$AI$823,25,FALSE)=0,VLOOKUP($A39,Economática!$A$3:$AI$823,25,FALSE)=\"-\"),1/0,VLOOKUP($A39,Economática!$A$3:$AI$823,25,FALSE)))","v":-28},{"$f":"IF($A39=\"\",\"\",IF(ISERROR((F39+VLOOKUP($A39,Economática!$A$3:$AI$823,26,FALSE))/Y39),(F39+VLOOKUP($A39,Economática!$A$3:$AI$823,26,FALSE))/Y39,(F39+VLOOKUP($A39,Economática!$A$3:$AI$823,26,FALSE))/Y39))","v":-16.392678571428572},{"$f":"IF($A39=\"\",\"\",IF(OR(-VLOOKUP($A39,Economática!$A$3:$AI$823,27,FALSE)=0,-VLOOKUP($A39,Economática!$A$3:$AI$823,27,FALSE)=\"-\"),1/0,-VLOOKUP($A39,Economática!$A$3:$AI$823,27,FALSE)))","v":{"$error":"#DIV/0!"}},{"$error":"#DIV/0!"},{"$f":"IF($A39=\"\",\"\",IF(OR(VLOOKUP($A39,Economática!$A$3:$AI$823,28,FALSE)=0,VLOOKUP($A39,Economática!$A$3:$AI$823,28,FALSE)=\"-\"),1/0,VLOOKUP($A39,Economática!$A$3:$AI$823,28,FALSE)))","v":-6},{"$f":"IF($A39=\"\",\"\",IF(OR(VLOOKUP($A39,Economática!$A$3:$AI$823,29,FALSE)=0,VLOOKUP($A39,Economática!$A$3:$AI$823,29,FALSE)=\"-\"),1/0,VLOOKUP($A39,Economática!$A$3:$AI$823,29,FALSE)))","v":-10.6},{"$f":"IF($A39=\"\",\"\",IF(OR(VLOOKUP($A39,Economática!$A$3:$AI$823,30,FALSE)/E39=0,VLOOKUP($A39,Economática!$A$3:$AI$823,30,FALSE)/E39=\"-\",VLOOKUP($A39,Economática!$A$3:$AI$823,30,FALSE)/E39<33.33%,VLOOKUP($A39,Economática!$A$3:$AI$823,30,FALSE)/E39>100%),1/0,VLOOKUP($A39,Economática!$A$3:$AI$823,30,FALSE)/E39))","v":{"$error":"#DIV/0!"}},"RDNI3",{"$f":"IF($A39=\"\",\"\",IF(OR(VLOOKUP($A39,Economática!$A$3:$AI$823,25,FALSE)=0,VLOOKUP($A39,Economática!$A$3:$AI$823,25,FALSE)=\"-\"),1/0,VLOOKUP($A39,Economática!$A$3:$AI$823,25,FALSE)))","v":-28},{"$f":"CONCATENATE(Economática!B41,\" \",Economática!C41)","v":"Rni ON"}]
[{"$f":"IF(Economática!AG42=\"\",\"\",Economática!AG42)","v":"DIRR3"},{"$f":"IF($A40=\"\",\"\",VLOOKUP(VLOOKUP($A40,Economática!$A$3:$AI$823,6,FALSE),Correção!$B$16:$C$36,2,FALSE))","v":"Construção"},{"$f":"IF(Economática!B42=\"\",\"\",Economática!B42)","v":"Direcional"},{"$f":"IF($A40=\"\",\"\",IF(OR(VLOOKUP($A40,Economática!$A$3:$AI$823,8,FALSE)=0,VLOOKUP($A40,Economática!$A$3:$AI$823,8,FALSE)=\"-\"),1/0,VLOOKUP($A40,Economática!$A$3:$AI$823,8,FALSE)))","v":8.67},{"$f":"IF(A40=\"\",\"\",IF(ISERROR(VLOOKUP(A40,Correção!$B$2:$G$13,9,FALSE)),VLOOKUP($A40,Economática!$A$3:$AI$823,9,FALSE),VLOOKUP(A40,Correção!$B$2:$G$13,9,FALSE)))","v":146.994},{"$f":"IF($A40=\"\",\"\",Economática!G42)","v":1274.44},{"$f":"IF($A40=\"\",\"\",IF(OR(VLOOKUP($A40,Economática!$A$3:$AI$823,10,FALSE)=0,VLOOKUP($A40,Economática!$A$3:$AI$823,10,FALSE)=\"-\"),1/0,VLOOKUP($A40,Economática!$A$3:$AI$823,10,FALSE)))","v":1282.69},{"$f":"IF($A40=\"\",\"\",IF(OR(VLOOKUP($A40,Economática!$A$3:$AI$823,11,FALSE)=0,VLOOKUP($A40,Economática!$A$3:$AI$823,11,FALSE)=\"-\"),1/0,VLOOKUP($A40,Economática!$A$3:$AI$823,11,FALSE)))","v":751.86},{"$f":"IF($A40=\"\",\"\",IF(OR(VLOOKUP($A40,Economática!$A$3:$AI$823,12,FALSE)=0,VLOOKUP($A40,Economática!$A$3:$AI$823,12,FALSE)=\"-\"),1/0,VLOOKUP($A40,Economática!$A$3:$AI$823,12,FALSE)))","v":1166.05},{"$f":"IF($A40=\"\",\"\",IF(OR(VLOOKUP($A40,Economática!$A$3:$AI$823,13,FALSE)=0,VLOOKUP($A40,Economática!$A$3:$AI$823,13,FALSE)=\"-\"),1/0,VLOOKUP($A40,Economática!$A$3:$AI$823,13,FALSE)))","v":-143.78},{"$f":"IF($A40=\"\",\"\",IF(OR(VLOOKUP($A40,Economática!$A$3:$AI$823,14,FALSE)=0,VLOOKUP($A40,Economática!$A$3:$AI$823,14,FALSE)=\"-\"),1/0,VLOOKUP($A40,Economática!$A$3:$AI$823,14,FALSE)))","v":-8.09},{"$f":"IF($A40=\"\",\"\",IF(OR(VLOOKUP($A40,Economática!$A$3:$AI$823,15,FALSE)=0,VLOOKUP($A40,Economática!$A$3:$AI$823,15,FALSE)=\"-\"),1/0,VLOOKUP($A40,Economática!$A$3:$AI$823,15,FALSE)))","v":-11.87},{"$f":"IF($A40=\"\",\"\",IF(OR(VLOOKUP($A40,Economática!$A$3:$AI$823,16,FALSE)=0,VLOOKUP($A40,Economática!$A$3:$AI$823,16,FALSE)=\"-\"),1/0,VLOOKUP($A40,Economática!$A$3:$AI$823,16,FALSE)))","v":-95.69},{"$f":"IF($A40=\"\",\"\",IF(OR(VLOOKUP($A40,Economática!$A$3:$AI$823,17,FALSE)=0,VLOOKUP($A40,Economática!$A$3:$AI$823,17,FALSE)=\"-\"),1/0,VLOOKUP($A40,Economática!$A$3:$AI$823,17,FALSE)))","v":-77.5},{"$f":"IF($A40=\"\",\"\",IF(OR(VLOOKUP($A40,Economática!$A$3:$AI$823,18,FALSE)=0,VLOOKUP($A40,Economática!$A$3:$AI$823,18,FALSE)=\"-\"),1/0,VLOOKUP($A40,Economática!$A$3:$AI$823,18,FALSE)))","v":-143.78},{"$f":"IF($A40=\"\",\"\",IF(OR(VLOOKUP($A40,Economática!$A$3:$AI$823,19,FALSE)=0,VLOOKUP($A40,Economática!$A$3:$AI$823,19,FALSE)=\"-\"),1/0,VLOOKUP($A40,Economática!$A$3:$AI$823,19,FALSE)))","v":-77.5},{"$f":"IF($A40=\"\",\"\",VLOOKUP($A40,Economática!$A$3:$AI$823,20,FALSE)/E40)","v":-0.52723240404370242},8.7261384818427974,0.99356662950518038,{"$error":"#DIV/0!"},{"$f":"IF($A40=\"\",\"\",IF(OR(VLOOKUP($A40,Economática!$A$3:$AI$823,21,FALSE)/100=0,VLOOKUP($A40,Economática!$A$3:$AI$823,21,FALSE)/100=\"-\"),1/0,VLOOKUP($A40,Economática!$A$3:$AI$823,21,FALSE)/100))","v":-4.6086000000000002E-2},{"$f":"IF($A40=\"\",\"\",IF(OR(VLOOKUP($A40,Economática!$A$3:$AI$823,22,FALSE)/100=0,VLOOKUP($A40,Economática!$A$3:$AI$823,22,FALSE)/100=\"-\"),1/0,VLOOKUP($A40,Economática!$A$3:$AI$823,22,FALSE)/100))","v":9.9224999999999994E-2},{"$f":"IF($A40=\"\",\"\",IF(OR(VLOOKUP($A40,Economática!$A$3:$AI$823,23,FALSE)=0,VLOOKUP($A40,Economática!$A$3:$AI$823,23,FALSE)=\"-\"),1/0,VLOOKUP($A40,Economática!$A$3:$AI$823,23,FALSE)))","v":-108.8},{"$f":"IF($A40=\"\",\"\",IF(OR(VLOOKUP($A40,Economática!$A$3:$AI$823,24,FALSE)=0,VLOOKUP($A40,Economática!$A$3:$AI$823,24,FALSE)=\"-\"),1/0,VLOOKUP($A40,Economática!$A$3:$AI$823,24,FALSE)))","v":-10.7},{"$f":"IF($A40=\"\",\"\",IF(OR(VLOOKUP($A40,Economática!$A$3:$AI$823,25,FALSE)=0,VLOOKUP($A40,Economática!$A$3:$AI$823,25,FALSE)=\"-\"),1/0,VLOOKUP($A40,Economática!$A$3:$AI$823,25,FALSE)))","v":-10.7},{"$f":"IF($A40=\"\",\"\",IF(ISERROR((F40+VLOOKUP($A40,Economática!$A$3:$AI$823,26,FALSE))/Y40),(F40+VLOOKUP($A40,Economática!$A$3:$AI$823,26,FALSE))/Y40,(F40+VLOOKUP($A40,Economática!$A$3:$AI$823,26,FALSE))/Y40))","v":-132.02691588785049},{"$f":"IF($A40=\"\",\"\",IF(OR(-VLOOKUP($A40,Economática!$A$3:$AI$823,27,FALSE)=0,-VLOOKUP($A40,Economática!$A$3:$AI$823,27,FALSE)=\"-\"),1/0,-VLOOKUP($A40,Economática!$A$3:$AI$823,27,FALSE)))","v":90},7.0619252377514832E-2,{"$f":"IF($A40=\"\",\"\",IF(OR(VLOOKUP($A40,Economática!$A$3:$AI$823,28,FALSE)=0,VLOOKUP($A40,Economática!$A$3:$AI$823,28,FALSE)=\"-\"),1/0,VLOOKUP($A40,Economática!$A$3:$AI$823,28,FALSE)))","v":3.7},{"$f":"IF($A40=\"\",\"\",IF(OR(VLOOKUP($A40,Economática!$A$3:$AI$823,29,FALSE)=0,VLOOKUP($A40,Economática!$A$3:$AI$823,29,FALSE)=\"-\"),1/0,VLOOKUP($A40,Economática!$A$3:$AI$823,29,FALSE)))","v":75.599999999999994},{"$f":"IF($A40=\"\",\"\",IF(OR(VLOOKUP($A40,Economática!$A$3:$AI$823,30,FALSE)/E40=0,VLOOKUP($A40,Economática!$A$3:$AI$823,30,FALSE)/E40=\"-\",VLOOKUP($A40,Economática!$A$3:$AI$823,30,FALSE)/E40<33.33%,VLOOKUP($A40,Economática!$A$3:$AI$823,30,FALSE)/E40>100%),1/0,VLOOKUP($A40,Economática!$A$3:$AI$823,30,FALSE)/E40))","v":{"$error":"#DIV/0!"}},"DIRR3",{"$f":"IF($A40=\"\",\"\",IF(OR(VLOOKUP($A40,Economática!$A$3:$AI$823,25,FALSE)=0,VLOOKUP($A40,Economática!$A$3:$AI$823,25,FALSE)=\"-\"),1/0,VLOOKUP($A40,Economática!$A$3:$AI$823,25,FALSE)))","v":-10.7},{"$f":"CONCATENATE(Economática!B42,\" \",Economática!C42)","v":"Direcional ON"}]
[{"$f":"IF(Economática!AG43=\"\",\"\",Economática!AG43)","v":"EVEN3"},{"$f":"IF($A41=\"\",\"\",VLOOKUP(VLOOKUP($A41,Economática!$A$3:$AI$823,6,FALSE),Correção!$B$16:$C$36,2,FALSE))","v":"Construção"},{"$f":"IF(Economática!B43=\"\",\"\",Economática!B43)","v":"Even"},{"$f":"IF($A41=\"\",\"\",IF(OR(VLOOKUP($A41,Economática!$A$3:$AI$823,8,FALSE)=0,VLOOKUP($A41,Economática!$A$3:$AI$823,8,FALSE)=\"-\"),1/0,VLOOKUP($A41,Economática!$A$3:$AI$823,8,FALSE)))","v":6},{"$f":"IF(A41=\"\",\"\",IF(ISERROR(VLOOKUP(A41,Correção!$B$2:$G$13,9,FALSE)),VLOOKUP($A41,Economática!$A$3:$AI$823,9,FALSE),VLOOKUP(A41,Correção!$B$2:$G$13,9,FALSE)))","v":213.876},{"$f":"IF($A41=\"\",\"\",Economática!G43)","v":1283.25},{"$f":"IF($A41=\"\",\"\",IF(OR(VLOOKUP($A41,Economática!$A$3:$AI$823,10,FALSE)=0,VLOOKUP($A41,Economática!$A$3:$AI$823,10,FALSE)=\"-\"),1/0,VLOOKUP($A41,Economática!$A$3:$AI$823,10,FALSE)))","v":1577.77},{"$f":"IF($A41=\"\",\"\",IF(OR(VLOOKUP($A41,Economática!$A$3:$AI$823,11,FALSE)=0,VLOOKUP($A41,Economática!$A$3:$AI$823,11,FALSE)=\"-\"),1/0,VLOOKUP($A41,Economática!$A$3:$AI$823,11,FALSE)))","v":1583.95},{"$f":"IF($A41=\"\",\"\",IF(OR(VLOOKUP($A41,Economática!$A$3:$AI$823,12,FALSE)=0,VLOOKUP($A41,Economática!$A$3:$AI$823,12,FALSE)=\"-\"),1/0,VLOOKUP($A41,Economática!$A$3:$AI$823,12,FALSE)))","v":1474.85},{"$f":"IF($A41=\"\",\"\",IF(OR(VLOOKUP($A41,Economática!$A$3:$AI$823,13,FALSE)=0,VLOOKUP($A41,Economática!$A$3:$AI$823,13,FALSE)=\"-\"),1/0,VLOOKUP($A41,Economática!$A$3:$AI$823,13,FALSE)))","v":-378.66},{"$f":"IF($A41=\"\",\"\",IF(OR(VLOOKUP($A41,Economática!$A$3:$AI$823,14,FALSE)=0,VLOOKUP($A41,Economática!$A$3:$AI$823,14,FALSE)=\"-\"),1/0,VLOOKUP($A41,Economática!$A$3:$AI$823,14,FALSE)))","v":-25.68},{"$f":"IF($A41=\"\",\"\",IF(OR(VLOOKUP($A41,Economática!$A$3:$AI$823,15,FALSE)=0,VLOOKUP($A41,Economática!$A$3:$AI$823,15,FALSE)=\"-\"),1/0,VLOOKUP($A41,Economática!$A$3:$AI$823,15,FALSE)))","v":-56.05},{"$f":"IF($A41=\"\",\"\",IF(OR(VLOOKUP($A41,Economática!$A$3:$AI$823,16,FALSE)=0,VLOOKUP($A41,Economática!$A$3:$AI$823,16,FALSE)=\"-\"),1/0,VLOOKUP($A41,Economática!$A$3:$AI$823,16,FALSE)))","v":-68.41},{"$f":"IF($A41=\"\",\"\",IF(OR(VLOOKUP($A41,Economática!$A$3:$AI$823,17,FALSE)=0,VLOOKUP($A41,Economática!$A$3:$AI$823,17,FALSE)=\"-\"),1/0,VLOOKUP($A41,Economática!$A$3:$AI$823,17,FALSE)))","v":-160.71},{"$f":"IF($A41=\"\",\"\",IF(OR(VLOOKUP($A41,Economática!$A$3:$AI$823,18,FALSE)=0,VLOOKUP($A41,Economática!$A$3:$AI$823,18,FALSE)=\"-\"),1/0,VLOOKUP($A41,Economática!$A$3:$AI$823,18,FALSE)))","v":-378.66},{"$f":"IF($A41=\"\",\"\",IF(OR(VLOOKUP($A41,Economática!$A$3:$AI$823,19,FALSE)=0,VLOOKUP($A41,Economática!$A$3:$AI$823,19,FALSE)=\"-\"),1/0,VLOOKUP($A41,Economática!$A$3:$AI$823,19,FALSE)))","v":-160.71},{"$f":"IF($A41=\"\",\"\",VLOOKUP($A41,Economática!$A$3:$AI$823,20,FALSE)/E41)","v":-0.75141670874712452},7.3770315509921636,0.81333527700488661,{"$error":"#DIV/0!"},{"$f":"IF($A41=\"\",\"\",IF(OR(VLOOKUP($A41,Economática!$A$3:$AI$823,21,FALSE)/100=0,VLOOKUP($A41,Economática!$A$3:$AI$823,21,FALSE)/100=\"-\"),1/0,VLOOKUP($A41,Economática!$A$3:$AI$823,21,FALSE)/100))","v":-7.0108000000000004E-2},{"$f":"IF($A41=\"\",\"\",IF(OR(VLOOKUP($A41,Economática!$A$3:$AI$823,22,FALSE)/100=0,VLOOKUP($A41,Economática!$A$3:$AI$823,22,FALSE)/100=\"-\"),1/0,VLOOKUP($A41,Economática!$A$3:$AI$823,22,FALSE)/100))","v":0.41889000000000004},{"$f":"IF($A41=\"\",\"\",IF(OR(VLOOKUP($A41,Economática!$A$3:$AI$823,23,FALSE)=0,VLOOKUP($A41,Economática!$A$3:$AI$823,23,FALSE)=\"-\"),1/0,VLOOKUP($A41,Economática!$A$3:$AI$823,23,FALSE)))","v":-346.2},{"$f":"IF($A41=\"\",\"\",IF(OR(VLOOKUP($A41,Economática!$A$3:$AI$823,24,FALSE)=0,VLOOKUP($A41,Economática!$A$3:$AI$823,24,FALSE)=\"-\"),1/0,VLOOKUP($A41,Economática!$A$3:$AI$823,24,FALSE)))","v":-148.19999999999999},{"$f":"IF($A41=\"\",\"\",IF(OR(VLOOKUP($A41,Economática!$A$3:$AI$823,25,FALSE)=0,VLOOKUP($A41,Economática!$A$3:$AI$823,25,FALSE)=\"-\"),1/0,VLOOKUP($A41,Economática!$A$3:$AI$823,25,FALSE)))","v":-148.19999999999999},{"$f":"IF($A41=\"\",\"\",IF(ISERROR((F41+VLOOKUP($A41,Economática!$A$3:$AI$823,26,FALSE))/Y41),(F41+VLOOKUP($A41,Economática!$A$3:$AI$823,26,FALSE))/Y41,(F41+VLOOKUP($A41,Economática!$A$3:$AI$823,26,FALSE))/Y41))","v":-13.767834008097168},{"$f":"IF($A41=\"\",\"\",IF(OR(-VLOOKUP($A41,Economática!$A$3:$AI$823,27,FALSE)=0,-VLOOKUP($A41,Economática!$A$3:$AI$823,27,FALSE)=\"-\"),1/0,-VLOOKUP($A41,Economática!$A$3:$AI$823,27,FALSE)))","v":{"$error":"#DIV/0!"}},{"$error":"#DIV/0!"},{"$f":"IF($A41=\"\",\"\",IF(OR(VLOOKUP($A41,Economática!$A$3:$AI$823,28,FALSE)=0,VLOOKUP($A41,Economática!$A$3:$AI$823,28,FALSE)=\"-\"),1/0,VLOOKUP($A41,Economática!$A$3:$AI$823,28,FALSE)))","v":0.5},{"$f":"IF($A41=\"\",\"\",IF(OR(VLOOKUP($A41,Economática!$A$3:$AI$823,29,FALSE)=0,VLOOKUP($A41,Economática!$A$3:$AI$823,29,FALSE)=\"-\"),1/0,VLOOKUP($A41,Economática!$A$3:$AI$823,29,FALSE)))","v":4.5},{"$f":"IF($A41=\"\",\"\",IF(OR(VLOOKUP($A41,Economática!$A$3:$AI$823,30,FALSE)/E41=0,VLOOKUP($A41,Economática!$A$3:$AI$823,30,FALSE)/E41=\"-\",VLOOKUP($A41,Economática!$A$3:$AI$823,30,FALSE)/E41<33.33%,VLOOKUP($A41,Economática!$A$3:$AI$823,30,FALSE)/E41>100%),1/0,VLOOKUP($A41,Economática!$A$3:$AI$823,30,FALSE)/E41))","v":{"$error":"#DIV/0!"}},"EVEN3",{"$f":"IF($A41=\"\",\"\",IF(OR(VLOOKUP($A41,Economática!$A$3:$AI$823,25,FALSE)=0,VLOOKUP($A41,Economática!$A$3:$AI$823,25,FALSE)=\"-\"),1/0,VLOOKUP($A41,Economática!$A$3:$AI$823,25,FALSE)))","v":-148.19999999999999},{"$f":"CONCATENATE(Economática!B43,\" \",Economática!C43)","v":"Even ON"}]
[{"$f":"IF(Economática!AG44=\"\",\"\",Economática!AG44)","v":"CRDE3"},{"$f":"IF($A42=\"\",\"\",VLOOKUP(VLOOKUP($A42,Economática!$A$3:$AI$823,6,FALSE),Correção!$B$16:$C$36,2,FALSE))","v":"Construção"},{"$f":"IF(Economática!B44=\"\",\"\",Economática!B44)","v":"Cr2"},{"$f":"IF($A42=\"\",\"\",IF(OR(VLOOKUP($A42,Economática!$A$3:$AI$823,8,FALSE)=0,VLOOKUP($A42,Economática!$A$3:$AI$823,8,FALSE)=\"-\"),1/0,VLOOKUP($A42,Economática!$A$3:$AI$823,8,FALSE)))","v":19.600000000000001},{"$f":"IF(A42=\"\",\"\",IF(ISERROR(VLOOKUP(A42,Correção!$B$2:$G$13,9,FALSE)),VLOOKUP($A42,Economática!$A$3:$AI$823,9,FALSE),VLOOKUP(A42,Correção!$B$2:$G$13,9,FALSE)))","v":2.4220000000000002},{"$f":"IF($A42=\"\",\"\",Economática!G44)","v":47.47},{"$f":"IF($A42=\"\",\"\",IF(OR(VLOOKUP($A42,Economática!$A$3:$AI$823,10,FALSE)=0,VLOOKUP($A42,Economática!$A$3:$AI$823,10,FALSE)=\"-\"),1/0,VLOOKUP($A42,Economática!$A$3:$AI$823,10,FALSE)))","v":167.02},{"$f":"IF($A42=\"\",\"\",IF(OR(VLOOKUP($A42,Economática!$A$3:$AI$823,11,FALSE)=0,VLOOKUP($A42,Economática!$A$3:$AI$823,11,FALSE)=\"-\"),1/0,VLOOKUP($A42,Economática!$A$3:$AI$823,11,FALSE)))","v":11.49},{"$f":"IF($A42=\"\",\"\",IF(OR(VLOOKUP($A42,Economática!$A$3:$AI$823,12,FALSE)=0,VLOOKUP($A42,Economática!$A$3:$AI$823,12,FALSE)=\"-\"),1/0,VLOOKUP($A42,Economática!$A$3:$AI$823,12,FALSE)))","v":5.28},{"$f":"IF($A42=\"\",\"\",IF(OR(VLOOKUP($A42,Economática!$A$3:$AI$823,13,FALSE)=0,VLOOKUP($A42,Economática!$A$3:$AI$823,13,FALSE)=\"-\"),1/0,VLOOKUP($A42,Economática!$A$3:$AI$823,13,FALSE)))","v":-4.49},{"$f":"IF($A42=\"\",\"\",IF(OR(VLOOKUP($A42,Economática!$A$3:$AI$823,14,FALSE)=0,VLOOKUP($A42,Economática!$A$3:$AI$823,14,FALSE)=\"-\"),1/0,VLOOKUP($A42,Economática!$A$3:$AI$823,14,FALSE)))","v":-7.07},{"$f":"IF($A42=\"\",\"\",IF(OR(VLOOKUP($A42,Economática!$A$3:$AI$823,15,FALSE)=0,VLOOKUP($A42,Economática!$A$3:$AI$823,15,FALSE)=\"-\"),1/0,VLOOKUP($A42,Economática!$A$3:$AI$823,15,FALSE)))","v":-6.98},{"$f":"IF($A42=\"\",\"\",IF(OR(VLOOKUP($A42,Economática!$A$3:$AI$823,16,FALSE)=0,VLOOKUP($A42,Economática!$A$3:$AI$823,16,FALSE)=\"-\"),1/0,VLOOKUP($A42,Economática!$A$3:$AI$823,16,FALSE)))","v":-9.98},{"$f":"IF($A42=\"\",\"\",IF(OR(VLOOKUP($A42,Economática!$A$3:$AI$823,17,FALSE)=0,VLOOKUP($A42,Economática!$A$3:$AI$823,17,FALSE)=\"-\"),1/0,VLOOKUP($A42,Economática!$A$3:$AI$823,17,FALSE)))","v":-15.71},{"$f":"IF($A42=\"\",\"\",IF(OR(VLOOKUP($A42,Economática!$A$3:$AI$823,18,FALSE)=0,VLOOKUP($A42,Economática!$A$3:$AI$823,18,FALSE)=\"-\"),1/0,VLOOKUP($A42,Economática!$A$3:$AI$823,18,FALSE)))","v":-4.49},{"$f":"IF($A42=\"\",\"\",IF(OR(VLOOKUP($A42,Economática!$A$3:$AI$823,19,FALSE)=0,VLOOKUP($A42,Economática!$A$3:$AI$823,19,FALSE)=\"-\"),1/0,VLOOKUP($A42,Economática!$A$3:$AI$823,19,FALSE)))","v":-15.71},{"$f":"IF($A42=\"\",\"\",VLOOKUP($A42,Economática!$A$3:$AI$823,20,FALSE)/E42)","v":-6.4863748967795214},68.959537572254334,0.28422464375523893,{"$error":"#DIV/0!"},{"$f":"IF($A42=\"\",\"\",IF(OR(VLOOKUP($A42,Economática!$A$3:$AI$823,21,FALSE)/100=0,VLOOKUP($A42,Economática!$A$3:$AI$823,21,FALSE)/100=\"-\"),1/0,VLOOKUP($A42,Economática!$A$3:$AI$823,21,FALSE)/100))","v":-0.11118399999999999},{"$f":"IF($A42=\"\",\"\",IF(OR(VLOOKUP($A42,Economática!$A$3:$AI$823,22,FALSE)/100=0,VLOOKUP($A42,Economática!$A$3:$AI$823,22,FALSE)/100=\"-\"),1/0,VLOOKUP($A42,Economática!$A$3:$AI$823,22,FALSE)/100))","v":-0.167321},{"$f":"IF($A42=\"\",\"\",IF(OR(VLOOKUP($A42,Economática!$A$3:$AI$823,23,FALSE)=0,VLOOKUP($A42,Economática!$A$3:$AI$823,23,FALSE)=\"-\"),1/0,VLOOKUP($A42,Economática!$A$3:$AI$823,23,FALSE)))","v":-7.4},{"$f":"IF($A42=\"\",\"\",IF(OR(VLOOKUP($A42,Economática!$A$3:$AI$823,24,FALSE)=0,VLOOKUP($A42,Economática!$A$3:$AI$823,24,FALSE)=\"-\"),1/0,VLOOKUP($A42,Economática!$A$3:$AI$823,24,FALSE)))","v":-18.3},{"$f":"IF($A42=\"\",\"\",IF(OR(VLOOKUP($A42,Economática!$A$3:$AI$823,25,FALSE)=0,VLOOKUP($A42,Economática!$A$3:$AI$823,25,FALSE)=\"-\"),1/0,VLOOKUP($A42,Economática!$A$3:$AI$823,25,FALSE)))","v":-18.3},{"$f":"IF($A42=\"\",\"\",IF(ISERROR((F42+VLOOKUP($A42,Economática!$A$3:$AI$823,26,FALSE))/Y42),(F42+VLOOKUP($A42,Economática!$A$3:$AI$823,26,FALSE))/Y42,(F42+VLOOKUP($A42,Economática!$A$3:$AI$823,26,FALSE))/Y42))","v":-1.0620765027322403},{"$f":"IF($A42=\"\",\"\",IF(OR(-VLOOKUP($A42,Economática!$A$3:$AI$823,27,FALSE)=0,-VLOOKUP($A42,Economática!$A$3:$AI$823,27,FALSE)=\"-\"),1/0,-VLOOKUP($A42,Economática!$A$3:$AI$823,27,FALSE)))","v":{"$error":"#DIV/0!"}},{"$error":"#DIV/0!"},{"$f":"IF($A42=\"\",\"\",IF(OR(VLOOKUP($A42,Economática!$A$3:$AI$823,28,FALSE)=0,VLOOKUP($A42,Economática!$A$3:$AI$823,28,FALSE)=\"-\"),1/0,VLOOKUP($A42,Economática!$A$3:$AI$823,28,FALSE)))","v":-2.8},{"$f":"IF($A42=\"\",\"\",IF(OR(VLOOKUP($A42,Economática!$A$3:$AI$823,29,FALSE)=0,VLOOKUP($A42,Economática!$A$3:$AI$823,29,FALSE)=\"-\"),1/0,VLOOKUP($A42,Economática!$A$3:$AI$823,29,FALSE)))","v":-33.799999999999997},{"$f":"IF($A42=\"\",\"\",IF(OR(VLOOKUP($A42,Economática!$A$3:$AI$823,30,FALSE)/E42=0,VLOOKUP($A42,Economática!$A$3:$AI$823,30,FALSE)/E42=\"-\",VLOOKUP($A42,Economática!$A$3:$AI$823,30,FALSE)/E42<33.33%,VLOOKUP($A42,Economática!$A$3:$AI$823,30,FALSE)/E42>100%),1/0,VLOOKUP($A42,Economática!$A$3:$AI$823,30,FALSE)/E42))","v":{"$error":"#DIV/0!"}},"CRDE3",{"$f":"IF($A42=\"\",\"\",IF(OR(VLOOKUP($A42,Economática!$A$3:$AI$823,25,FALSE)=0,VLOOKUP($A42,Economática!$A$3:$AI$823,25,FALSE)=\"-\"),1/0,VLOOKUP($A42,Economática!$A$3:$AI$823,25,FALSE)))","v":-18.3},{"$f":"CONCATENATE(Economática!B44,\" \",Economática!C44)","v":"Cr2 ON"}]
[{"$f":"IF(Economática!AG45=\"\",\"\",Economática!AG45)","v":"HBOR3"},{"$f":"IF($A43=\"\",\"\",VLOOKUP(VLOOKUP($A43,Economática!$A$3:$AI$823,6,FALSE),Correção!$B$16:$C$36,2,FALSE))","v":"Construção"},{"$f":"IF(Economática!B45=\"\",\"\",Economática!B45)","v":"Helbor"},{"$f":"IF($A43=\"\",\"\",IF(OR(VLOOKUP($A43,Economática!$A$3:$AI$823,8,FALSE)=0,VLOOKUP($A43,Economática!$A$3:$AI$823,8,FALSE)=\"-\"),1/0,VLOOKUP($A43,Economática!$A$3:$AI$823,8,FALSE)))","v":1.33},{"$f":"IF(A43=\"\",\"\",IF(ISERROR(VLOOKUP(A43,Correção!$B$2:$G$13,9,FALSE)),VLOOKUP($A43,Economática!$A$3:$AI$823,9,FALSE),VLOOKUP(A43,Correção!$B$2:$G$13,9,FALSE)))","v":452.12599999999998},{"$f":"IF($A43=\"\",\"\",Economática!G45)","v":601.33000000000004},{"$f":"IF($A43=\"\",\"\",IF(OR(VLOOKUP($A43,Economática!$A$3:$AI$823,10,FALSE)=0,VLOOKUP($A43,Economática!$A$3:$AI$823,10,FALSE)=\"-\"),1/0,VLOOKUP($A43,Economática!$A$3:$AI$823,10,FALSE)))","v":823.34},{"$f":"IF($A43=\"\",\"\",IF(OR(VLOOKUP($A43,Economática!$A$3:$AI$823,11,FALSE)=0,VLOOKUP($A43,Economática!$A$3:$AI$823,11,FALSE)=\"-\"),1/0,VLOOKUP($A43,Economática!$A$3:$AI$823,11,FALSE)))","v":518.14},{"$f":"IF($A43=\"\",\"\",IF(OR(VLOOKUP($A43,Economática!$A$3:$AI$823,12,FALSE)=0,VLOOKUP($A43,Economática!$A$3:$AI$823,12,FALSE)=\"-\"),1/0,VLOOKUP($A43,Economática!$A$3:$AI$823,12,FALSE)))","v":633.6},{"$f":"IF($A43=\"\",\"\",IF(OR(VLOOKUP($A43,Economática!$A$3:$AI$823,13,FALSE)=0,VLOOKUP($A43,Economática!$A$3:$AI$823,13,FALSE)=\"-\"),1/0,VLOOKUP($A43,Economática!$A$3:$AI$823,13,FALSE)))","v":-309.12},{"$f":"IF($A43=\"\",\"\",IF(OR(VLOOKUP($A43,Economática!$A$3:$AI$823,14,FALSE)=0,VLOOKUP($A43,Economática!$A$3:$AI$823,14,FALSE)=\"-\"),1/0,VLOOKUP($A43,Economática!$A$3:$AI$823,14,FALSE)))","v":-67.849999999999994},{"$f":"IF($A43=\"\",\"\",IF(OR(VLOOKUP($A43,Economática!$A$3:$AI$823,15,FALSE)=0,VLOOKUP($A43,Economática!$A$3:$AI$823,15,FALSE)=\"-\"),1/0,VLOOKUP($A43,Economática!$A$3:$AI$823,15,FALSE)))","v":-166.11},{"$f":"IF($A43=\"\",\"\",IF(OR(VLOOKUP($A43,Economática!$A$3:$AI$823,16,FALSE)=0,VLOOKUP($A43,Economática!$A$3:$AI$823,16,FALSE)=\"-\"),1/0,VLOOKUP($A43,Economática!$A$3:$AI$823,16,FALSE)))","v":-295.37},{"$f":"IF($A43=\"\",\"\",IF(OR(VLOOKUP($A43,Economática!$A$3:$AI$823,17,FALSE)=0,VLOOKUP($A43,Economática!$A$3:$AI$823,17,FALSE)=\"-\"),1/0,VLOOKUP($A43,Economática!$A$3:$AI$823,17,FALSE)))","v":-340.93},{"$f":"IF($A43=\"\",\"\",IF(OR(VLOOKUP($A43,Economática!$A$3:$AI$823,18,FALSE)=0,VLOOKUP($A43,Economática!$A$3:$AI$823,18,FALSE)=\"-\"),1/0,VLOOKUP($A43,Economática!$A$3:$AI$823,18,FALSE)))","v":-309.12},{"$f":"IF($A43=\"\",\"\",IF(OR(VLOOKUP($A43,Economática!$A$3:$AI$823,19,FALSE)=0,VLOOKUP($A43,Economática!$A$3:$AI$823,19,FALSE)=\"-\"),1/0,VLOOKUP($A43,Economática!$A$3:$AI$823,19,FALSE)))","v":-340.93},{"$f":"IF($A43=\"\",\"\",VLOOKUP($A43,Economática!$A$3:$AI$823,20,FALSE)/E43)","v":-0.7540597090191673},1.8210410372329839,0.73035147083829277,{"$error":"#DIV/0!"},{"$f":"IF($A43=\"\",\"\",IF(OR(VLOOKUP($A43,Economática!$A$3:$AI$823,21,FALSE)/100=0,VLOOKUP($A43,Economática!$A$3:$AI$823,21,FALSE)/100=\"-\"),1/0,VLOOKUP($A43,Economática!$A$3:$AI$823,21,FALSE)/100))","v":-0.18989999999999999},{"$f":"IF($A43=\"\",\"\",IF(OR(VLOOKUP($A43,Economática!$A$3:$AI$823,22,FALSE)/100=0,VLOOKUP($A43,Economática!$A$3:$AI$823,22,FALSE)/100=\"-\"),1/0,VLOOKUP($A43,Economática!$A$3:$AI$823,22,FALSE)/100))","v":1.3910689999999999},{"$f":"IF($A43=\"\",\"\",IF(OR(VLOOKUP($A43,Economática!$A$3:$AI$823,23,FALSE)=0,VLOOKUP($A43,Economática!$A$3:$AI$823,23,FALSE)=\"-\"),1/0,VLOOKUP($A43,Economática!$A$3:$AI$823,23,FALSE)))","v":-244},{"$f":"IF($A43=\"\",\"\",IF(OR(VLOOKUP($A43,Economática!$A$3:$AI$823,24,FALSE)=0,VLOOKUP($A43,Economática!$A$3:$AI$823,24,FALSE)=\"-\"),1/0,VLOOKUP($A43,Economática!$A$3:$AI$823,24,FALSE)))","v":-305.39999999999998},{"$f":"IF($A43=\"\",\"\",IF(OR(VLOOKUP($A43,Economática!$A$3:$AI$823,25,FALSE)=0,VLOOKUP($A43,Economática!$A$3:$AI$823,25,FALSE)=\"-\"),1/0,VLOOKUP($A43,Economática!$A$3:$AI$823,25,FALSE)))","v":-305.39999999999998},{"$f":"IF($A43=\"\",\"\",IF(ISERROR((F43+VLOOKUP($A43,Economática!$A$3:$AI$823,26,FALSE))/Y43),(F43+VLOOKUP($A43,Economática!$A$3:$AI$823,26,FALSE))/Y43,(F43+VLOOKUP($A43,Economática!$A$3:$AI$823,26,FALSE))/Y43))","v":-7.2028323510150623},{"$f":"IF($A43=\"\",\"\",IF(OR(-VLOOKUP($A43,Economática!$A$3:$AI$823,27,FALSE)=0,-VLOOKUP($A43,Economática!$A$3:$AI$823,27,FALSE)=\"-\"),1/0,-VLOOKUP($A43,Economática!$A$3:$AI$823,27,FALSE)))","v":{"$error":"#DIV/0!"}},{"$error":"#DIV/0!"},{"$f":"IF($A43=\"\",\"\",IF(OR(VLOOKUP($A43,Economática!$A$3:$AI$823,28,FALSE)=0,VLOOKUP($A43,Economática!$A$3:$AI$823,28,FALSE)=\"-\"),1/0,VLOOKUP($A43,Economática!$A$3:$AI$823,28,FALSE)))","v":-5.7},{"$f":"IF($A43=\"\",\"\",IF(OR(VLOOKUP($A43,Economática!$A$3:$AI$823,29,FALSE)=0,VLOOKUP($A43,Economática!$A$3:$AI$823,29,FALSE)=\"-\"),1/0,VLOOKUP($A43,Economática!$A$3:$AI$823,29,FALSE)))","v":-32.1},{"$f":"IF($A43=\"\",\"\",IF(OR(VLOOKUP($A43,Economática!$A$3:$AI$823,30,FALSE)/E43=0,VLOOKUP($A43,Economática!$A$3:$AI$823,30,FALSE)/E43=\"-\",VLOOKUP($A43,Economática!$A$3:$AI$823,30,FALSE)/E43<33.33%,VLOOKUP($A43,Economática!$A$3:$AI$823,30,FALSE)/E43>100%),1/0,VLOOKUP($A43,Economática!$A$3:$AI$823,30,FALSE)/E43))","v":{"$error":"#DIV/0!"}},"HBOR3",{"$f":"IF($A43=\"\",\"\",IF(OR(VLOOKUP($A43,Economática!$A$3:$AI$823,25,FALSE)=0,VLOOKUP($A43,Economática!$A$3:$AI$823,25,FALSE)=\"-\"),1/0,VLOOKUP($A43,Economática!$A$3:$AI$823,25,FALSE)))","v":-305.39999999999998},{"$f":"CONCATENATE(Economática!B45,\" \",Economática!C45)","v":"Helbor ON"}]
[{"$f":"IF(Economática!AG46=\"\",\"\",Economática!AG46)","v":"TCSA3"},{"$f":"IF($A44=\"\",\"\",VLOOKUP(VLOOKUP($A44,Economática!$A$3:$AI$823,6,FALSE),Correção!$B$16:$C$36,2,FALSE))","v":"Construção"},{"$f":"IF(Economática!B46=\"\",\"\",Economática!B46)","v":"Tecnisa"},{"$f":"IF($A44=\"\",\"\",IF(OR(VLOOKUP($A44,Economática!$A$3:$AI$823,8,FALSE)=0,VLOOKUP($A44,Economática!$A$3:$AI$823,8,FALSE)=\"-\"),1/0,VLOOKUP($A44,Economática!$A$3:$AI$823,8,FALSE)))","v":1.31},{"$f":"IF(A44=\"\",\"\",IF(ISERROR(VLOOKUP(A44,Correção!$B$2:$G$13,9,FALSE)),VLOOKUP($A44,Economática!$A$3:$AI$823,9,FALSE),VLOOKUP(A44,Correção!$B$2:$G$13,9,FALSE)))","v":331.19200000000001},{"$f":"IF($A44=\"\",\"\",Economática!G46)","v":433.86},{"$f":"IF($A44=\"\",\"\",IF(OR(VLOOKUP($A44,Economática!$A$3:$AI$823,10,FALSE)=0,VLOOKUP($A44,Economática!$A$3:$AI$823,10,FALSE)=\"-\"),1/0,VLOOKUP($A44,Economática!$A$3:$AI$823,10,FALSE)))","v":772.01},{"$f":"IF($A44=\"\",\"\",IF(OR(VLOOKUP($A44,Economática!$A$3:$AI$823,11,FALSE)=0,VLOOKUP($A44,Economática!$A$3:$AI$823,11,FALSE)=\"-\"),1/0,VLOOKUP($A44,Economática!$A$3:$AI$823,11,FALSE)))","v":307.99},{"$f":"IF($A44=\"\",\"\",IF(OR(VLOOKUP($A44,Economática!$A$3:$AI$823,12,FALSE)=0,VLOOKUP($A44,Economática!$A$3:$AI$823,12,FALSE)=\"-\"),1/0,VLOOKUP($A44,Economática!$A$3:$AI$823,12,FALSE)))","v":175.93},{"$f":"IF($A44=\"\",\"\",IF(OR(VLOOKUP($A44,Economática!$A$3:$AI$823,13,FALSE)=0,VLOOKUP($A44,Economática!$A$3:$AI$823,13,FALSE)=\"-\"),1/0,VLOOKUP($A44,Economática!$A$3:$AI$823,13,FALSE)))","v":-520.65},{"$f":"IF($A44=\"\",\"\",IF(OR(VLOOKUP($A44,Economática!$A$3:$AI$823,14,FALSE)=0,VLOOKUP($A44,Economática!$A$3:$AI$823,14,FALSE)=\"-\"),1/0,VLOOKUP($A44,Economática!$A$3:$AI$823,14,FALSE)))","v":-53.67},{"$f":"IF($A44=\"\",\"\",IF(OR(VLOOKUP($A44,Economática!$A$3:$AI$823,15,FALSE)=0,VLOOKUP($A44,Economática!$A$3:$AI$823,15,FALSE)=\"-\"),1/0,VLOOKUP($A44,Economática!$A$3:$AI$823,15,FALSE)))","v":-139.5},{"$f":"IF($A44=\"\",\"\",IF(OR(VLOOKUP($A44,Economática!$A$3:$AI$823,16,FALSE)=0,VLOOKUP($A44,Economática!$A$3:$AI$823,16,FALSE)=\"-\"),1/0,VLOOKUP($A44,Economática!$A$3:$AI$823,16,FALSE)))","v":-212.87},{"$f":"IF($A44=\"\",\"\",IF(OR(VLOOKUP($A44,Economática!$A$3:$AI$823,17,FALSE)=0,VLOOKUP($A44,Economática!$A$3:$AI$823,17,FALSE)=\"-\"),1/0,VLOOKUP($A44,Economática!$A$3:$AI$823,17,FALSE)))","v":-277.05},{"$f":"IF($A44=\"\",\"\",IF(OR(VLOOKUP($A44,Economática!$A$3:$AI$823,18,FALSE)=0,VLOOKUP($A44,Economática!$A$3:$AI$823,18,FALSE)=\"-\"),1/0,VLOOKUP($A44,Economática!$A$3:$AI$823,18,FALSE)))","v":-520.65},{"$f":"IF($A44=\"\",\"\",IF(OR(VLOOKUP($A44,Economática!$A$3:$AI$823,19,FALSE)=0,VLOOKUP($A44,Economática!$A$3:$AI$823,19,FALSE)=\"-\"),1/0,VLOOKUP($A44,Economática!$A$3:$AI$823,19,FALSE)))","v":-277.05},{"$f":"IF($A44=\"\",\"\",VLOOKUP($A44,Economática!$A$3:$AI$823,20,FALSE)/E44)","v":-0.83652382907799705},2.3310043720862823,0.56198950790792868,{"$error":"#DIV/0!"},{"$f":"IF($A44=\"\",\"\",IF(OR(VLOOKUP($A44,Economática!$A$3:$AI$823,21,FALSE)/100=0,VLOOKUP($A44,Economática!$A$3:$AI$823,21,FALSE)/100=\"-\"),1/0,VLOOKUP($A44,Economática!$A$3:$AI$823,21,FALSE)/100))","v":-0.26585000000000003},{"$f":"IF($A44=\"\",\"\",IF(OR(VLOOKUP($A44,Economática!$A$3:$AI$823,22,FALSE)/100=0,VLOOKUP($A44,Economática!$A$3:$AI$823,22,FALSE)/100=\"-\"),1/0,VLOOKUP($A44,Economática!$A$3:$AI$823,22,FALSE)/100))","v":0.73887200000000008},{"$f":"IF($A44=\"\",\"\",IF(OR(VLOOKUP($A44,Economática!$A$3:$AI$823,23,FALSE)=0,VLOOKUP($A44,Economática!$A$3:$AI$823,23,FALSE)=\"-\"),1/0,VLOOKUP($A44,Economática!$A$3:$AI$823,23,FALSE)))","v":-464.4},{"$f":"IF($A44=\"\",\"\",IF(OR(VLOOKUP($A44,Economática!$A$3:$AI$823,24,FALSE)=0,VLOOKUP($A44,Economática!$A$3:$AI$823,24,FALSE)=\"-\"),1/0,VLOOKUP($A44,Economática!$A$3:$AI$823,24,FALSE)))","v":-209},{"$f":"IF($A44=\"\",\"\",IF(OR(VLOOKUP($A44,Economática!$A$3:$AI$823,25,FALSE)=0,VLOOKUP($A44,Economática!$A$3:$AI$823,25,FALSE)=\"-\"),1/0,VLOOKUP($A44,Economática!$A$3:$AI$823,25,FALSE)))","v":-209},{"$f":"IF($A44=\"\",\"\",IF(ISERROR((F44+VLOOKUP($A44,Economática!$A$3:$AI$823,26,FALSE))/Y44),(F44+VLOOKUP($A44,Economática!$A$3:$AI$823,26,FALSE))/Y44,(F44+VLOOKUP($A44,Economática!$A$3:$AI$823,26,FALSE))/Y44))","v":-4.8422631578947373},{"$f":"IF($A44=\"\",\"\",IF(OR(-VLOOKUP($A44,Economática!$A$3:$AI$823,27,FALSE)=0,-VLOOKUP($A44,Economática!$A$3:$AI$823,27,FALSE)=\"-\"),1/0,-VLOOKUP($A44,Economática!$A$3:$AI$823,27,FALSE)))","v":{"$error":"#DIV/0!"}},{"$error":"#DIV/0!"},{"$f":"IF($A44=\"\",\"\",IF(OR(VLOOKUP($A44,Economática!$A$3:$AI$823,28,FALSE)=0,VLOOKUP($A44,Economática!$A$3:$AI$823,28,FALSE)=\"-\"),1/0,VLOOKUP($A44,Economática!$A$3:$AI$823,28,FALSE)))","v":2.2999999999999998},{"$f":"IF($A44=\"\",\"\",IF(OR(VLOOKUP($A44,Economática!$A$3:$AI$823,29,FALSE)=0,VLOOKUP($A44,Economática!$A$3:$AI$823,29,FALSE)=\"-\"),1/0,VLOOKUP($A44,Economática!$A$3:$AI$823,29,FALSE)))","v":-36.4},{"$f":"IF($A44=\"\",\"\",IF(OR(VLOOKUP($A44,Economática!$A$3:$AI$823,30,FALSE)/E44=0,VLOOKUP($A44,Economática!$A$3:$AI$823,30,FALSE)/E44=\"-\",VLOOKUP($A44,Economática!$A$3:$AI$823,30,FALSE)/E44<33.33%,VLOOKUP($A44,Economática!$A$3:$AI$823,30,FALSE)/E44>100%),1/0,VLOOKUP($A44,Economática!$A$3:$AI$823,30,FALSE)/E44))","v":{"$error":"#DIV/0!"}},"TCSA3",{"$f":"IF($A44=\"\",\"\",IF(OR(VLOOKUP($A44,Economática!$A$3:$AI$823,25,FALSE)=0,VLOOKUP($A44,Economática!$A$3:$AI$823,25,FALSE)=\"-\"),1/0,VLOOKUP($A44,Economática!$A$3:$AI$823,25,FALSE)))","v":-209},{"$f":"CONCATENATE(Economática!B46,\" \",Economática!C46)","v":"Tecnisa ON"}]
[{"$f":"IF(Economática!AG47=\"\",\"\",Economática!AG47)","v":"GFSA3"},{"$f":"IF($A45=\"\",\"\",VLOOKUP(VLOOKUP($A45,Economática!$A$3:$AI$823,6,FALSE),Correção!$B$16:$C$36,2,FALSE))","v":"Construção"},{"$f":"IF(Economática!B47=\"\",\"\",Economática!B47)","v":"Gafisa"},{"$f":"IF($A45=\"\",\"\",IF(OR(VLOOKUP($A45,Economática!$A$3:$AI$823,8,FALSE)=0,VLOOKUP($A45,Economática!$A$3:$AI$823,8,FALSE)=\"-\"),1/0,VLOOKUP($A45,Economática!$A$3:$AI$823,8,FALSE)))","v":8.5399999999999991},{"$f":"IF(A45=\"\",\"\",IF(ISERROR(VLOOKUP(A45,Correção!$B$2:$G$13,9,FALSE)),VLOOKUP($A45,Economática!$A$3:$AI$823,9,FALSE),VLOOKUP(A45,Correção!$B$2:$G$13,9,FALSE)))","v":39.784999999999997},{"$f":"IF($A45=\"\",\"\",Economática!G47)","v":339.76},{"$f":"IF($A45=\"\",\"\",IF(OR(VLOOKUP($A45,Economática!$A$3:$AI$823,10,FALSE)=0,VLOOKUP($A45,Economática!$A$3:$AI$823,10,FALSE)=\"-\"),1/0,VLOOKUP($A45,Economática!$A$3:$AI$823,10,FALSE)))","v":491.32},{"$f":"IF($A45=\"\",\"\",IF(OR(VLOOKUP($A45,Economática!$A$3:$AI$823,11,FALSE)=0,VLOOKUP($A45,Economática!$A$3:$AI$823,11,FALSE)=\"-\"),1/0,VLOOKUP($A45,Economática!$A$3:$AI$823,11,FALSE)))","v":608.82000000000005},{"$f":"IF($A45=\"\",\"\",IF(OR(VLOOKUP($A45,Economática!$A$3:$AI$823,12,FALSE)=0,VLOOKUP($A45,Economática!$A$3:$AI$823,12,FALSE)=\"-\"),1/0,VLOOKUP($A45,Economática!$A$3:$AI$823,12,FALSE)))","v":960.89},{"$f":"IF($A45=\"\",\"\",IF(OR(VLOOKUP($A45,Economática!$A$3:$AI$823,13,FALSE)=0,VLOOKUP($A45,Economática!$A$3:$AI$823,13,FALSE)=\"-\"),1/0,VLOOKUP($A45,Economática!$A$3:$AI$823,13,FALSE)))","v":-849.86},{"$f":"IF($A45=\"\",\"\",IF(OR(VLOOKUP($A45,Economática!$A$3:$AI$823,14,FALSE)=0,VLOOKUP($A45,Economática!$A$3:$AI$823,14,FALSE)=\"-\"),1/0,VLOOKUP($A45,Economática!$A$3:$AI$823,14,FALSE)))","v":-55.92},{"$f":"IF($A45=\"\",\"\",IF(OR(VLOOKUP($A45,Economática!$A$3:$AI$823,15,FALSE)=0,VLOOKUP($A45,Economática!$A$3:$AI$823,15,FALSE)=\"-\"),1/0,VLOOKUP($A45,Economática!$A$3:$AI$823,15,FALSE)))","v":-85.28},{"$f":"IF($A45=\"\",\"\",IF(OR(VLOOKUP($A45,Economática!$A$3:$AI$823,16,FALSE)=0,VLOOKUP($A45,Economática!$A$3:$AI$823,16,FALSE)=\"-\"),1/0,VLOOKUP($A45,Economática!$A$3:$AI$823,16,FALSE)))","v":-122.51},{"$f":"IF($A45=\"\",\"\",IF(OR(VLOOKUP($A45,Economática!$A$3:$AI$823,17,FALSE)=0,VLOOKUP($A45,Economática!$A$3:$AI$823,17,FALSE)=\"-\"),1/0,VLOOKUP($A45,Economática!$A$3:$AI$823,17,FALSE)))","v":-419.53},{"$f":"IF($A45=\"\",\"\",IF(OR(VLOOKUP($A45,Economática!$A$3:$AI$823,18,FALSE)=0,VLOOKUP($A45,Economática!$A$3:$AI$823,18,FALSE)=\"-\"),1/0,VLOOKUP($A45,Economática!$A$3:$AI$823,18,FALSE)))","v":-849.86},{"$f":"IF($A45=\"\",\"\",IF(OR(VLOOKUP($A45,Economática!$A$3:$AI$823,19,FALSE)=0,VLOOKUP($A45,Economática!$A$3:$AI$823,19,FALSE)=\"-\"),1/0,VLOOKUP($A45,Economática!$A$3:$AI$823,19,FALSE)))","v":-419.53},{"$f":"IF($A45=\"\",\"\",VLOOKUP($A45,Economática!$A$3:$AI$823,20,FALSE)/E45)","v":-10.544928993339198},12.349377906246074,0.69153280957420815,{"$error":"#DIV/0!"},{"$f":"IF($A45=\"\",\"\",IF(OR(VLOOKUP($A45,Economática!$A$3:$AI$823,21,FALSE)/100=0,VLOOKUP($A45,Economática!$A$3:$AI$823,21,FALSE)/100=\"-\"),1/0,VLOOKUP($A45,Economática!$A$3:$AI$823,21,FALSE)/100))","v":-0.55474600000000007},{"$f":"IF($A45=\"\",\"\",IF(OR(VLOOKUP($A45,Economática!$A$3:$AI$823,22,FALSE)/100=0,VLOOKUP($A45,Economática!$A$3:$AI$823,22,FALSE)/100=\"-\"),1/0,VLOOKUP($A45,Economática!$A$3:$AI$823,22,FALSE)/100))","v":1.525277},{"$f":"IF($A45=\"\",\"\",IF(OR(VLOOKUP($A45,Economática!$A$3:$AI$823,23,FALSE)=0,VLOOKUP($A45,Economática!$A$3:$AI$823,23,FALSE)=\"-\"),1/0,VLOOKUP($A45,Economática!$A$3:$AI$823,23,FALSE)))","v":-832.1},{"$f":"IF($A45=\"\",\"\",IF(OR(VLOOKUP($A45,Economática!$A$3:$AI$823,24,FALSE)=0,VLOOKUP($A45,Economática!$A$3:$AI$823,24,FALSE)=\"-\"),1/0,VLOOKUP($A45,Economática!$A$3:$AI$823,24,FALSE)))","v":-341.2},{"$f":"IF($A45=\"\",\"\",IF(OR(VLOOKUP($A45,Economática!$A$3:$AI$823,25,FALSE)=0,VLOOKUP($A45,Economática!$A$3:$AI$823,25,FALSE)=\"-\"),1/0,VLOOKUP($A45,Economática!$A$3:$AI$823,25,FALSE)))","v":-341.2},{"$f":"IF($A45=\"\",\"\",IF(ISERROR((F45+VLOOKUP($A45,Economática!$A$3:$AI$823,26,FALSE))/Y45),(F45+VLOOKUP($A45,Economática!$A$3:$AI$823,26,FALSE))/Y45,(F45+VLOOKUP($A45,Economática!$A$3:$AI$823,26,FALSE))/Y45))","v":-3.2005070339976553},{"$f":"IF($A45=\"\",\"\",IF(OR(-VLOOKUP($A45,Economática!$A$3:$AI$823,27,FALSE)=0,-VLOOKUP($A45,Economática!$A$3:$AI$823,27,FALSE)=\"-\"),1/0,-VLOOKUP($A45,Economática!$A$3:$AI$823,27,FALSE)))","v":{"$error":"#DIV/0!"}},{"$error":"#DIV/0!"},{"$f":"IF($A45=\"\",\"\",IF(OR(VLOOKUP($A45,Economática!$A$3:$AI$823,28,FALSE)=0,VLOOKUP($A45,Economática!$A$3:$AI$823,28,FALSE)=\"-\"),1/0,VLOOKUP($A45,Economática!$A$3:$AI$823,28,FALSE)))","v":-13},{"$f":"IF($A45=\"\",\"\",IF(OR(VLOOKUP($A45,Economática!$A$3:$AI$823,29,FALSE)=0,VLOOKUP($A45,Economática!$A$3:$AI$823,29,FALSE)=\"-\"),1/0,VLOOKUP($A45,Economática!$A$3:$AI$823,29,FALSE)))","v":-58.3},{"$f":"IF($A45=\"\",\"\",IF(OR(VLOOKUP($A45,Economática!$A$3:$AI$823,30,FALSE)/E45=0,VLOOKUP($A45,Economática!$A$3:$AI$823,30,FALSE)/E45=\"-\",VLOOKUP($A45,Economática!$A$3:$AI$823,30,FALSE)/E45<33.33%,VLOOKUP($A45,Economática!$A$3:$AI$823,30,FALSE)/E45>100%),1/0,VLOOKUP($A45,Economática!$A$3:$AI$823,30,FALSE)/E45))","v":{"$error":"#DIV/0!"}},"GFSA3",{"$f":"IF($A45=\"\",\"\",IF(OR(VLOOKUP($A45,Economática!$A$3:$AI$823,25,FALSE)=0,VLOOKUP($A45,Economática!$A$3:$AI$823,25,FALSE)=\"-\"),1/0,VLOOKUP($A45,Economática!$A$3:$AI$823,25,FALSE)))","v":-341.2},{"$f":"CONCATENATE(Economática!B47,\" \",Economática!C47)","v":"Gafisa ON"}]
[{"$f":"IF(Economática!AG48=\"\",\"\",Economática!AG48)","v":"RSID3"},{"$f":"IF($A46=\"\",\"\",VLOOKUP(VLOOKUP($A46,Economática!$A$3:$AI$823,6,FALSE),Correção!$B$16:$C$36,2,FALSE))","v":"Construção"},{"$f":"IF(Economática!B48=\"\",\"\",Economática!B48)","v":"Rossi Resid"},{"$f":"IF($A46=\"\",\"\",IF(OR(VLOOKUP($A46,Economática!$A$3:$AI$823,8,FALSE)=0,VLOOKUP($A46,Economática!$A$3:$AI$823,8,FALSE)=\"-\"),1/0,VLOOKUP($A46,Economática!$A$3:$AI$823,8,FALSE)))","v":4.6900000000000004},{"$f":"IF(A46=\"\",\"\",IF(ISERROR(VLOOKUP(A46,Correção!$B$2:$G$13,9,FALSE)),VLOOKUP($A46,Economática!$A$3:$AI$823,9,FALSE),VLOOKUP(A46,Correção!$B$2:$G$13,9,FALSE)))","v":16.818999999999999},{"$f":"IF($A46=\"\",\"\",Economática!G48)","v":78.88},{"$f":"IF($A46=\"\",\"\",IF(OR(VLOOKUP($A46,Economática!$A$3:$AI$823,10,FALSE)=0,VLOOKUP($A46,Economática!$A$3:$AI$823,10,FALSE)=\"-\"),1/0,VLOOKUP($A46,Economática!$A$3:$AI$823,10,FALSE)))","v":-237.45},{"$f":"IF($A46=\"\",\"\",IF(OR(VLOOKUP($A46,Economática!$A$3:$AI$823,11,FALSE)=0,VLOOKUP($A46,Economática!$A$3:$AI$823,11,FALSE)=\"-\"),1/0,VLOOKUP($A46,Economática!$A$3:$AI$823,11,FALSE)))","v":326.02999999999997},{"$f":"IF($A46=\"\",\"\",IF(OR(VLOOKUP($A46,Economática!$A$3:$AI$823,12,FALSE)=0,VLOOKUP($A46,Economática!$A$3:$AI$823,12,FALSE)=\"-\"),1/0,VLOOKUP($A46,Economática!$A$3:$AI$823,12,FALSE)))","v":148.72},{"$f":"IF($A46=\"\",\"\",IF(OR(VLOOKUP($A46,Economática!$A$3:$AI$823,13,FALSE)=0,VLOOKUP($A46,Economática!$A$3:$AI$823,13,FALSE)=\"-\"),1/0,VLOOKUP($A46,Economática!$A$3:$AI$823,13,FALSE)))","v":-338.89},{"$f":"IF($A46=\"\",\"\",IF(OR(VLOOKUP($A46,Economática!$A$3:$AI$823,14,FALSE)=0,VLOOKUP($A46,Economática!$A$3:$AI$823,14,FALSE)=\"-\"),1/0,VLOOKUP($A46,Economática!$A$3:$AI$823,14,FALSE)))","v":-142.85},{"$f":"IF($A46=\"\",\"\",IF(OR(VLOOKUP($A46,Economática!$A$3:$AI$823,15,FALSE)=0,VLOOKUP($A46,Economática!$A$3:$AI$823,15,FALSE)=\"-\"),1/0,VLOOKUP($A46,Economática!$A$3:$AI$823,15,FALSE)))","v":-242.5},{"$f":"IF($A46=\"\",\"\",IF(OR(VLOOKUP($A46,Economática!$A$3:$AI$823,16,FALSE)=0,VLOOKUP($A46,Economática!$A$3:$AI$823,16,FALSE)=\"-\"),1/0,VLOOKUP($A46,Economática!$A$3:$AI$823,16,FALSE)))","v":-400.8},{"$f":"IF($A46=\"\",\"\",IF(OR(VLOOKUP($A46,Economática!$A$3:$AI$823,17,FALSE)=0,VLOOKUP($A46,Economática!$A$3:$AI$823,17,FALSE)=\"-\"),1/0,VLOOKUP($A46,Economática!$A$3:$AI$823,17,FALSE)))","v":-614.04999999999995},{"$f":"IF($A46=\"\",\"\",IF(OR(VLOOKUP($A46,Economática!$A$3:$AI$823,18,FALSE)=0,VLOOKUP($A46,Economática!$A$3:$AI$823,18,FALSE)=\"-\"),1/0,VLOOKUP($A46,Economática!$A$3:$AI$823,18,FALSE)))","v":-338.89},{"$f":"IF($A46=\"\",\"\",IF(OR(VLOOKUP($A46,Economática!$A$3:$AI$823,19,FALSE)=0,VLOOKUP($A46,Economática!$A$3:$AI$823,19,FALSE)=\"-\"),1/0,VLOOKUP($A46,Economática!$A$3:$AI$823,19,FALSE)))","v":-614.04999999999995},{"$f":"IF($A46=\"\",\"\",VLOOKUP($A46,Economática!$A$3:$AI$823,20,FALSE)/E46)","v":-36.50930495273203},{"$error":"#DIV/0!"},{"$error":"#DIV/0!"},{"$error":"#DIV/0!"},{"$f":"IF($A46=\"\",\"\",IF(OR(VLOOKUP($A46,Economática!$A$3:$AI$823,21,FALSE)/100=0,VLOOKUP($A46,Economática!$A$3:$AI$823,21,FALSE)/100=\"-\"),1/0,VLOOKUP($A46,Economática!$A$3:$AI$823,21,FALSE)/100))","v":-1.6409659999999999},{"$f":"IF($A46=\"\",\"\",IF(OR(VLOOKUP($A46,Economática!$A$3:$AI$823,22,FALSE)/100=0,VLOOKUP($A46,Economática!$A$3:$AI$823,22,FALSE)/100=\"-\"),1/0,VLOOKUP($A46,Economática!$A$3:$AI$823,22,FALSE)/100))","v":-6.2562890000000007},{"$f":"IF($A46=\"\",\"\",IF(OR(VLOOKUP($A46,Economática!$A$3:$AI$823,23,FALSE)=0,VLOOKUP($A46,Economática!$A$3:$AI$823,23,FALSE)=\"-\"),1/0,VLOOKUP($A46,Economática!$A$3:$AI$823,23,FALSE)))","v":-418},{"$f":"IF($A46=\"\",\"\",IF(OR(VLOOKUP($A46,Economática!$A$3:$AI$823,24,FALSE)=0,VLOOKUP($A46,Economática!$A$3:$AI$823,24,FALSE)=\"-\"),1/0,VLOOKUP($A46,Economática!$A$3:$AI$823,24,FALSE)))","v":-427.4},{"$f":"IF($A46=\"\",\"\",IF(OR(VLOOKUP($A46,Economática!$A$3:$AI$823,25,FALSE)=0,VLOOKUP($A46,Economática!$A$3:$AI$823,25,FALSE)=\"-\"),1/0,VLOOKUP($A46,Economática!$A$3:$AI$823,25,FALSE)))","v":-427.4},{"$f":"IF($A46=\"\",\"\",IF(ISERROR((F46+VLOOKUP($A46,Economática!$A$3:$AI$823,26,FALSE))/Y46),(F46+VLOOKUP($A46,Economática!$A$3:$AI$823,26,FALSE))/Y46,(F46+VLOOKUP($A46,Economática!$A$3:$AI$823,26,FALSE))/Y46))","v":-3.7753954141319603},{"$f":"IF($A46=\"\",\"\",IF(OR(-VLOOKUP($A46,Economática!$A$3:$AI$823,27,FALSE)=0,-VLOOKUP($A46,Economática!$A$3:$AI$823,27,FALSE)=\"-\"),1/0,-VLOOKUP($A46,Economática!$A$3:$AI$823,27,FALSE)))","v":{"$error":"#DIV/0!"}},{"$error":"#DIV/0!"},{"$f":"IF($A46=\"\",\"\",IF(OR(VLOOKUP($A46,Economática!$A$3:$AI$823,28,FALSE)=0,VLOOKUP($A46,Economática!$A$3:$AI$823,28,FALSE)=\"-\"),1/0,VLOOKUP($A46,Economática!$A$3:$AI$823,28,FALSE)))","v":-5.8},{"$f":"IF($A46=\"\",\"\",IF(OR(VLOOKUP($A46,Economática!$A$3:$AI$823,29,FALSE)=0,VLOOKUP($A46,Economática!$A$3:$AI$823,29,FALSE)=\"-\"),1/0,VLOOKUP($A46,Economática!$A$3:$AI$823,29,FALSE)))","v":-34.799999999999997},{"$f":"IF($A46=\"\",\"\",IF(OR(VLOOKUP($A46,Economática!$A$3:$AI$823,30,FALSE)/E46=0,VLOOKUP($A46,Economática!$A$3:$AI$823,30,FALSE)/E46=\"-\",VLOOKUP($A46,Economática!$A$3:$AI$823,30,FALSE)/E46<33.33%,VLOOKUP($A46,Economática!$A$3:$AI$823,30,FALSE)/E46>100%),1/0,VLOOKUP($A46,Economática!$A$3:$AI$823,30,FALSE)/E46))","v":{"$error":"#DIV/0!"}},"RSID3",{"$f":"IF($A46=\"\",\"\",IF(OR(VLOOKUP($A46,Economática!$A$3:$AI$823,25,FALSE)=0,VLOOKUP($A46,Economática!$A$3:$AI$823,25,FALSE)=\"-\"),1/0,VLOOKUP($A46,Economática!$A$3:$AI$823,25,FALSE)))","v":-427.4},{"$f":"CONCATENATE(Economática!B48,\" \",Economática!C48)","v":"Rossi Resid ON"}]
[{"$f":"IF(Economática!AG49=\"\",\"\",Economática!AG49)","v":"AZEV4"},{"$f":"IF($A47=\"\",\"\",VLOOKUP(VLOOKUP($A47,Economática!$A$3:$AI$823,6,FALSE),Correção!$B$16:$C$36,2,FALSE))","v":"Construção"},{"$f":"IF(Economática!B49=\"\",\"\",Economática!B49)","v":"Azevedo"},{"$f":"IF($A47=\"\",\"\",IF(OR(VLOOKUP($A47,Economática!$A$3:$AI$823,8,FALSE)=0,VLOOKUP($A47,Economática!$A$3:$AI$823,8,FALSE)=\"-\"),1/0,VLOOKUP($A47,Economática!$A$3:$AI$823,8,FALSE)))","v":0.99},{"$f":"IF(A47=\"\",\"\",IF(ISERROR(VLOOKUP(A47,Correção!$B$2:$G$13,9,FALSE)),VLOOKUP($A47,Economática!$A$3:$AI$823,9,FALSE),VLOOKUP(A47,Correção!$B$2:$G$13,9,FALSE)))","v":27},{"$f":"IF($A47=\"\",\"\",Economática!G49)","v":71.819999999999993},{"$f":"IF($A47=\"\",\"\",IF(OR(VLOOKUP($A47,Economática!$A$3:$AI$823,10,FALSE)=0,VLOOKUP($A47,Economática!$A$3:$AI$823,10,FALSE)=\"-\"),1/0,VLOOKUP($A47,Economática!$A$3:$AI$823,10,FALSE)))","v":-101.34},{"$f":"IF($A47=\"\",\"\",IF(OR(VLOOKUP($A47,Economática!$A$3:$AI$823,11,FALSE)=0,VLOOKUP($A47,Economática!$A$3:$AI$823,11,FALSE)=\"-\"),1/0,VLOOKUP($A47,Economática!$A$3:$AI$823,11,FALSE)))","v":63.77},{"$f":"IF($A47=\"\",\"\",IF(OR(VLOOKUP($A47,Economática!$A$3:$AI$823,12,FALSE)=0,VLOOKUP($A47,Economática!$A$3:$AI$823,12,FALSE)=\"-\"),1/0,VLOOKUP($A47,Economática!$A$3:$AI$823,12,FALSE)))","v":{"$error":"#DIV/0!"}},{"$f":"IF($A47=\"\",\"\",IF(OR(VLOOKUP($A47,Economática!$A$3:$AI$823,13,FALSE)=0,VLOOKUP($A47,Economática!$A$3:$AI$823,13,FALSE)=\"-\"),1/0,VLOOKUP($A47,Economática!$A$3:$AI$823,13,FALSE)))","v":-84.23},{"$f":"IF($A47=\"\",\"\",IF(OR(VLOOKUP($A47,Economática!$A$3:$AI$823,14,FALSE)=0,VLOOKUP($A47,Economática!$A$3:$AI$823,14,FALSE)=\"-\"),1/0,VLOOKUP($A47,Economática!$A$3:$AI$823,14,FALSE)))","v":-12.02},{"$f":"IF($A47=\"\",\"\",IF(OR(VLOOKUP($A47,Economática!$A$3:$AI$823,15,FALSE)=0,VLOOKUP($A47,Economática!$A$3:$AI$823,15,FALSE)=\"-\"),1/0,VLOOKUP($A47,Economática!$A$3:$AI$823,15,FALSE)))","v":-23.01},{"$f":"IF($A47=\"\",\"\",IF(OR(VLOOKUP($A47,Economática!$A$3:$AI$823,16,FALSE)=0,VLOOKUP($A47,Economática!$A$3:$AI$823,16,FALSE)=\"-\"),1/0,VLOOKUP($A47,Economática!$A$3:$AI$823,16,FALSE)))","v":{"$error":"#DIV/0!"}},{"$f":"IF($A47=\"\",\"\",IF(OR(VLOOKUP($A47,Economática!$A$3:$AI$823,17,FALSE)=0,VLOOKUP($A47,Economática!$A$3:$AI$823,17,FALSE)=\"-\"),1/0,VLOOKUP($A47,Economática!$A$3:$AI$823,17,FALSE)))","v":{"$error":"#DIV/0!"}},{"$f":"IF($A47=\"\",\"\",IF(OR(VLOOKUP($A47,Economática!$A$3:$AI$823,18,FALSE)=0,VLOOKUP($A47,Economática!$A$3:$AI$823,18,FALSE)=\"-\"),1/0,VLOOKUP($A47,Economática!$A$3:$AI$823,18,FALSE)))","v":-84.23},{"$f":"IF($A47=\"\",\"\",IF(OR(VLOOKUP($A47,Economática!$A$3:$AI$823,19,FALSE)=0,VLOOKUP($A47,Economática!$A$3:$AI$823,19,FALSE)=\"-\"),1/0,VLOOKUP($A47,Economática!$A$3:$AI$823,19,FALSE)))","v":{"$error":"#DIV/0!"}},{"$f":"IF($A47=\"\",\"\",VLOOKUP($A47,Economática!$A$3:$AI$823,20,FALSE)/E47)","v":-3.0855555555555556},{"$error":"#DIV/0!"},{"$error":"#DIV/0!"},{"$error":"#DIV/0!"},{"$f":"IF($A47=\"\",\"\",IF(OR(VLOOKUP($A47,Economática!$A$3:$AI$823,21,FALSE)/100=0,VLOOKUP($A47,Economática!$A$3:$AI$823,21,FALSE)/100=\"-\"),1/0,VLOOKUP($A47,Economática!$A$3:$AI$823,21,FALSE)/100))","v":{"$error":"#VALUE!"}},{"$f":"IF($A47=\"\",\"\",IF(OR(VLOOKUP($A47,Economática!$A$3:$AI$823,22,FALSE)/100=0,VLOOKUP($A47,Economática!$A$3:$AI$823,22,FALSE)/100=\"-\"),1/0,VLOOKUP($A47,Economática!$A$3:$AI$823,22,FALSE)/100))","v":-0.25961000000000001},{"$f":"IF($A47=\"\",\"\",IF(OR(VLOOKUP($A47,Economática!$A$3:$AI$823,23,FALSE)=0,VLOOKUP($A47,Economática!$A$3:$AI$823,23,FALSE)=\"-\"),1/0,VLOOKUP($A47,Economática!$A$3:$AI$823,23,FALSE)))","v":-70.900000000000006},{"$f":"IF($A47=\"\",\"\",IF(OR(VLOOKUP($A47,Economática!$A$3:$AI$823,24,FALSE)=0,VLOOKUP($A47,Economática!$A$3:$AI$823,24,FALSE)=\"-\"),1/0,VLOOKUP($A47,Economática!$A$3:$AI$823,24,FALSE)))","v":{"$error":"#DIV/0!"}},{"$f":"IF($A47=\"\",\"\",IF(OR(VLOOKUP($A47,Economática!$A$3:$AI$823,25,FALSE)=0,VLOOKUP($A47,Economática!$A$3:$AI$823,25,FALSE)=\"-\"),1/0,VLOOKUP($A47,Economática!$A$3:$AI$823,25,FALSE)))","v":-63.1},{"$f":"IF($A47=\"\",\"\",IF(ISERROR((F47+VLOOKUP($A47,Economática!$A$3:$AI$823,26,FALSE))/Y47),(F47+VLOOKUP($A47,Economática!$A$3:$AI$823,26,FALSE))/Y47,(F47+VLOOKUP($A47,Economática!$A$3:$AI$823,26,FALSE))/Y47))","v":-1.5552773375594293},{"$f":"IF($A47=\"\",\"\",IF(OR(-VLOOKUP($A47,Economática!$A$3:$AI$823,27,FALSE)=0,-VLOOKUP($A47,Economática!$A$3:$AI$823,27,FALSE)=\"-\"),1/0,-VLOOKUP($A47,Economática!$A$3:$AI$823,27,FALSE)))","v":{"$error":"#DIV/0!"}},{"$error":"#DIV/0!"},{"$f":"IF($A47=\"\",\"\",IF(OR(VLOOKUP($A47,Economática!$A$3:$AI$823,28,FALSE)=0,VLOOKUP($A47,Economática!$A$3:$AI$823,28,FALSE)=\"-\"),1/0,VLOOKUP($A47,Economática!$A$3:$AI$823,28,FALSE)))","v":-10},{"$f":"IF($A47=\"\",\"\",IF(OR(VLOOKUP($A47,Economática!$A$3:$AI$823,29,FALSE)=0,VLOOKUP($A47,Economática!$A$3:$AI$823,29,FALSE)=\"-\"),1/0,VLOOKUP($A47,Economática!$A$3:$AI$823,29,FALSE)))","v":-6.6},{"$f":"IF($A47=\"\",\"\",IF(OR(VLOOKUP($A47,Economática!$A$3:$AI$823,30,FALSE)/E47=0,VLOOKUP($A47,Economática!$A$3:$AI$823,30,FALSE)/E47=\"-\",VLOOKUP($A47,Economática!$A$3:$AI$823,30,FALSE)/E47<33.33%,VLOOKUP($A47,Economática!$A$3:$AI$823,30,FALSE)/E47>100%),1/0,VLOOKUP($A47,Economática!$A$3:$AI$823,30,FALSE)/E47))","v":0.33333333333333331},"AZEV4",{"$f":"IF($A47=\"\",\"\",IF(OR(VLOOKUP($A47,Economática!$A$3:$AI$823,25,FALSE)=0,VLOOKUP($A47,Economática!$A$3:$AI$823,25,FALSE)=\"-\"),1/0,VLOOKUP($A47,Economática!$A$3:$AI$823,25,FALSE)))","v":-63.1},{"$f":"CONCATENATE(Economática!B49,\" \",Economática!C49)","v":"Azevedo PN"}]
[{"$f":"IF(Economática!AG50=\"\",\"\",Economática!AG50)","v":"PDGR3"},{"$f":"IF($A48=\"\",\"\",VLOOKUP(VLOOKUP($A48,Economática!$A$3:$AI$823,6,FALSE),Correção!$B$16:$C$36,2,FALSE))","v":"Construção"},{"$f":"IF(Economática!B50=\"\",\"\",Economática!B50)","v":"PDG Realt"},{"$f":"IF($A48=\"\",\"\",IF(OR(VLOOKUP($A48,Economática!$A$3:$AI$823,8,FALSE)=0,VLOOKUP($A48,Economática!$A$3:$AI$823,8,FALSE)=\"-\"),1/0,VLOOKUP($A48,Economática!$A$3:$AI$823,8,FALSE)))","v":7.3},{"$f":"IF(A48=\"\",\"\",IF(ISERROR(VLOOKUP(A48,Correção!$B$2:$G$13,9,FALSE)),VLOOKUP($A48,Economática!$A$3:$AI$823,9,FALSE),VLOOKUP(A48,Correção!$B$2:$G$13,9,FALSE)))","v":8.0670000000000002},{"$f":"IF($A48=\"\",\"\",Economática!G50)","v":58.89},{"$f":"IF($A48=\"\",\"\",IF(OR(VLOOKUP($A48,Economática!$A$3:$AI$823,10,FALSE)=0,VLOOKUP($A48,Economática!$A$3:$AI$823,10,FALSE)=\"-\"),1/0,VLOOKUP($A48,Economática!$A$3:$AI$823,10,FALSE)))","v":-3963.66},{"$f":"IF($A48=\"\",\"\",IF(OR(VLOOKUP($A48,Economática!$A$3:$AI$823,11,FALSE)=0,VLOOKUP($A48,Economática!$A$3:$AI$823,11,FALSE)=\"-\"),1/0,VLOOKUP($A48,Economática!$A$3:$AI$823,11,FALSE)))","v":458.25},{"$f":"IF($A48=\"\",\"\",IF(OR(VLOOKUP($A48,Economática!$A$3:$AI$823,12,FALSE)=0,VLOOKUP($A48,Economática!$A$3:$AI$823,12,FALSE)=\"-\"),1/0,VLOOKUP($A48,Economática!$A$3:$AI$823,12,FALSE)))","v":213.46},{"$f":"IF($A48=\"\",\"\",IF(OR(VLOOKUP($A48,Economática!$A$3:$AI$823,13,FALSE)=0,VLOOKUP($A48,Economática!$A$3:$AI$823,13,FALSE)=\"-\"),1/0,VLOOKUP($A48,Economática!$A$3:$AI$823,13,FALSE)))","v":173.22},{"$f":"IF($A48=\"\",\"\",IF(OR(VLOOKUP($A48,Economática!$A$3:$AI$823,14,FALSE)=0,VLOOKUP($A48,Economática!$A$3:$AI$823,14,FALSE)=\"-\"),1/0,VLOOKUP($A48,Economática!$A$3:$AI$823,14,FALSE)))","v":-260.31},{"$f":"IF($A48=\"\",\"\",IF(OR(VLOOKUP($A48,Economática!$A$3:$AI$823,15,FALSE)=0,VLOOKUP($A48,Economática!$A$3:$AI$823,15,FALSE)=\"-\"),1/0,VLOOKUP($A48,Economática!$A$3:$AI$823,15,FALSE)))","v":-600.12},{"$f":"IF($A48=\"\",\"\",IF(OR(VLOOKUP($A48,Economática!$A$3:$AI$823,16,FALSE)=0,VLOOKUP($A48,Economática!$A$3:$AI$823,16,FALSE)=\"-\"),1/0,VLOOKUP($A48,Economática!$A$3:$AI$823,16,FALSE)))","v":-708.98},{"$f":"IF($A48=\"\",\"\",IF(OR(VLOOKUP($A48,Economática!$A$3:$AI$823,17,FALSE)=0,VLOOKUP($A48,Economática!$A$3:$AI$823,17,FALSE)=\"-\"),1/0,VLOOKUP($A48,Economática!$A$3:$AI$823,17,FALSE)))","v":-838.91},{"$f":"IF($A48=\"\",\"\",IF(OR(VLOOKUP($A48,Economática!$A$3:$AI$823,18,FALSE)=0,VLOOKUP($A48,Economática!$A$3:$AI$823,18,FALSE)=\"-\"),1/0,VLOOKUP($A48,Economática!$A$3:$AI$823,18,FALSE)))","v":173.22},{"$f":"IF($A48=\"\",\"\",IF(OR(VLOOKUP($A48,Economática!$A$3:$AI$823,19,FALSE)=0,VLOOKUP($A48,Economática!$A$3:$AI$823,19,FALSE)=\"-\"),1/0,VLOOKUP($A48,Economática!$A$3:$AI$823,19,FALSE)))","v":-838.91},{"$f":"IF($A48=\"\",\"\",VLOOKUP($A48,Economática!$A$3:$AI$823,20,FALSE)/E48)","v":-103.99281021445394},{"$error":"#DIV/0!"},{"$error":"#DIV/0!"},{"$error":"#DIV/0!"},{"$f":"IF($A48=\"\",\"\",IF(OR(VLOOKUP($A48,Economática!$A$3:$AI$823,21,FALSE)/100=0,VLOOKUP($A48,Economática!$A$3:$AI$823,21,FALSE)/100=\"-\"),1/0,VLOOKUP($A48,Economática!$A$3:$AI$823,21,FALSE)/100))","v":{"$error":"#VALUE!"}},{"$f":"IF($A48=\"\",\"\",IF(OR(VLOOKUP($A48,Economática!$A$3:$AI$823,22,FALSE)/100=0,VLOOKUP($A48,Economática!$A$3:$AI$823,22,FALSE)/100=\"-\"),1/0,VLOOKUP($A48,Economática!$A$3:$AI$823,22,FALSE)/100))","v":-0.36731400000000003},{"$f":"IF($A48=\"\",\"\",IF(OR(VLOOKUP($A48,Economática!$A$3:$AI$823,23,FALSE)=0,VLOOKUP($A48,Economática!$A$3:$AI$823,23,FALSE)=\"-\"),1/0,VLOOKUP($A48,Economática!$A$3:$AI$823,23,FALSE)))","v":-1745.7},{"$f":"IF($A48=\"\",\"\",IF(OR(VLOOKUP($A48,Economática!$A$3:$AI$823,24,FALSE)=0,VLOOKUP($A48,Economática!$A$3:$AI$823,24,FALSE)=\"-\"),1/0,VLOOKUP($A48,Economática!$A$3:$AI$823,24,FALSE)))","v":-359.1},{"$f":"IF($A48=\"\",\"\",IF(OR(VLOOKUP($A48,Economática!$A$3:$AI$823,25,FALSE)=0,VLOOKUP($A48,Economática!$A$3:$AI$823,25,FALSE)=\"-\"),1/0,VLOOKUP($A48,Economática!$A$3:$AI$823,25,FALSE)))","v":-359.1},{"$f":"IF($A48=\"\",\"\",IF(ISERROR((F48+VLOOKUP($A48,Economática!$A$3:$AI$823,26,FALSE))/Y48),(F48+VLOOKUP($A48,Economática!$A$3:$AI$823,26,FALSE))/Y48,(F48+VLOOKUP($A48,Economática!$A$3:$AI$823,26,FALSE))/Y48))","v":-4.2549568365357837},{"$f":"IF($A48=\"\",\"\",IF(OR(-VLOOKUP($A48,Economática!$A$3:$AI$823,27,FALSE)=0,-VLOOKUP($A48,Economática!$A$3:$AI$823,27,FALSE)=\"-\"),1/0,-VLOOKUP($A48,Economática!$A$3:$AI$823,27,FALSE)))","v":{"$error":"#DIV/0!"}},{"$error":"#DIV/0!"},{"$f":"IF($A48=\"\",\"\",IF(OR(VLOOKUP($A48,Economática!$A$3:$AI$823,28,FALSE)=0,VLOOKUP($A48,Economática!$A$3:$AI$823,28,FALSE)=\"-\"),1/0,VLOOKUP($A48,Economática!$A$3:$AI$823,28,FALSE)))","v":{"$error":"#DIV/0!"}},{"$f":"IF($A48=\"\",\"\",IF(OR(VLOOKUP($A48,Economática!$A$3:$AI$823,29,FALSE)=0,VLOOKUP($A48,Economática!$A$3:$AI$823,29,FALSE)=\"-\"),1/0,VLOOKUP($A48,Economática!$A$3:$AI$823,29,FALSE)))","v":-67.8},{"$f":"IF($A48=\"\",\"\",IF(OR(VLOOKUP($A48,Economática!$A$3:$AI$823,30,FALSE)/E48=0,VLOOKUP($A48,Economática!$A$3:$AI$823,30,FALSE)/E48=\"-\",VLOOKUP($A48,Economática!$A$3:$AI$823,30,FALSE)/E48<33.33%,VLOOKUP($A48,Economática!$A$3:$AI$823,30,FALSE)/E48>100%),1/0,VLOOKUP($A48,Economática!$A$3:$AI$823,30,FALSE)/E48))","v":{"$error":"#DIV/0!"}},"PDGR3",{"$f":"IF($A48=\"\",\"\",IF(OR(VLOOKUP($A48,Economática!$A$3:$AI$823,25,FALSE)=0,VLOOKUP($A48,Economática!$A$3:$AI$823,25,FALSE)=\"-\"),1/0,VLOOKUP($A48,Economática!$A$3:$AI$823,25,FALSE)))","v":-359.1},{"$f":"CONCATENATE(Economática!B50,\" \",Economática!C50)","v":"PDG Realt ON"}]
[{"$f":"IF(Economática!AG51=\"\",\"\",Economática!AG51)","v":"VIVR3"},{"$f":"IF($A49=\"\",\"\",VLOOKUP(VLOOKUP($A49,Economática!$A$3:$AI$823,6,FALSE),Correção!$B$16:$C$36,2,FALSE))","v":"Construção"},{"$f":"IF(Economática!B51=\"\",\"\",Economática!B51)","v":"Viver"},{"$f":"IF($A49=\"\",\"\",IF(OR(VLOOKUP($A49,Economática!$A$3:$AI$823,8,FALSE)=0,VLOOKUP($A49,Economática!$A$3:$AI$823,8,FALSE)=\"-\"),1/0,VLOOKUP($A49,Economática!$A$3:$AI$823,8,FALSE)))","v":0.37},{"$f":"IF(A49=\"\",\"\",IF(ISERROR(VLOOKUP(A49,Correção!$B$2:$G$13,9,FALSE)),VLOOKUP($A49,Economática!$A$3:$AI$823,9,FALSE),VLOOKUP(A49,Correção!$B$2:$G$13,9,FALSE)))","v":463.08499999999998},{"$f":"IF($A49=\"\",\"\",Economática!G51)","v":171.34},{"$f":"IF($A49=\"\",\"\",IF(OR(VLOOKUP($A49,Economática!$A$3:$AI$823,10,FALSE)=0,VLOOKUP($A49,Economática!$A$3:$AI$823,10,FALSE)=\"-\"),1/0,VLOOKUP($A49,Economática!$A$3:$AI$823,10,FALSE)))","v":46.11},{"$f":"IF($A49=\"\",\"\",IF(OR(VLOOKUP($A49,Economática!$A$3:$AI$823,11,FALSE)=0,VLOOKUP($A49,Economática!$A$3:$AI$823,11,FALSE)=\"-\"),1/0,VLOOKUP($A49,Economática!$A$3:$AI$823,11,FALSE)))","v":5.94},{"$f":"IF($A49=\"\",\"\",IF(OR(VLOOKUP($A49,Economática!$A$3:$AI$823,12,FALSE)=0,VLOOKUP($A49,Economática!$A$3:$AI$823,12,FALSE)=\"-\"),1/0,VLOOKUP($A49,Economática!$A$3:$AI$823,12,FALSE)))","v":85.03},{"$f":"IF($A49=\"\",\"\",IF(OR(VLOOKUP($A49,Economática!$A$3:$AI$823,13,FALSE)=0,VLOOKUP($A49,Economática!$A$3:$AI$823,13,FALSE)=\"-\"),1/0,VLOOKUP($A49,Economática!$A$3:$AI$823,13,FALSE)))","v":-120.63},{"$f":"IF($A49=\"\",\"\",IF(OR(VLOOKUP($A49,Economática!$A$3:$AI$823,14,FALSE)=0,VLOOKUP($A49,Economática!$A$3:$AI$823,14,FALSE)=\"-\"),1/0,VLOOKUP($A49,Economática!$A$3:$AI$823,14,FALSE)))","v":-18.66},{"$f":"IF($A49=\"\",\"\",IF(OR(VLOOKUP($A49,Economática!$A$3:$AI$823,15,FALSE)=0,VLOOKUP($A49,Economática!$A$3:$AI$823,15,FALSE)=\"-\"),1/0,VLOOKUP($A49,Economática!$A$3:$AI$823,15,FALSE)))","v":-46.1},{"$f":"IF($A49=\"\",\"\",IF(OR(VLOOKUP($A49,Economática!$A$3:$AI$823,16,FALSE)=0,VLOOKUP($A49,Economática!$A$3:$AI$823,16,FALSE)=\"-\"),1/0,VLOOKUP($A49,Economática!$A$3:$AI$823,16,FALSE)))","v":-118.09},{"$f":"IF($A49=\"\",\"\",IF(OR(VLOOKUP($A49,Economática!$A$3:$AI$823,17,FALSE)=0,VLOOKUP($A49,Economática!$A$3:$AI$823,17,FALSE)=\"-\"),1/0,VLOOKUP($A49,Economática!$A$3:$AI$823,17,FALSE)))","v":-197.22},{"$f":"IF($A49=\"\",\"\",IF(OR(VLOOKUP($A49,Economática!$A$3:$AI$823,18,FALSE)=0,VLOOKUP($A49,Economática!$A$3:$AI$823,18,FALSE)=\"-\"),1/0,VLOOKUP($A49,Economática!$A$3:$AI$823,18,FALSE)))","v":-120.63},{"$f":"IF($A49=\"\",\"\",IF(OR(VLOOKUP($A49,Economática!$A$3:$AI$823,19,FALSE)=0,VLOOKUP($A49,Economática!$A$3:$AI$823,19,FALSE)=\"-\"),1/0,VLOOKUP($A49,Economática!$A$3:$AI$823,19,FALSE)))","v":-197.22},{"$f":"IF($A49=\"\",\"\",VLOOKUP($A49,Economática!$A$3:$AI$823,20,FALSE)/E49)","v":-0.4258829372577389},9.9571352991351489E-2,3.7159282151377138,{"$error":"#DIV/0!"},{"$f":"IF($A49=\"\",\"\",IF(OR(VLOOKUP($A49,Economática!$A$3:$AI$823,21,FALSE)/100=0,VLOOKUP($A49,Economática!$A$3:$AI$823,21,FALSE)/100=\"-\"),1/0,VLOOKUP($A49,Economática!$A$3:$AI$823,21,FALSE)/100))","v":{"$error":"#VALUE!"}},{"$f":"IF($A49=\"\",\"\",IF(OR(VLOOKUP($A49,Economática!$A$3:$AI$823,22,FALSE)/100=0,VLOOKUP($A49,Economática!$A$3:$AI$823,22,FALSE)/100=\"-\"),1/0,VLOOKUP($A49,Economática!$A$3:$AI$823,22,FALSE)/100))","v":5.650525},{"$f":"IF($A49=\"\",\"\",IF(OR(VLOOKUP($A49,Economática!$A$3:$AI$823,23,FALSE)=0,VLOOKUP($A49,Economática!$A$3:$AI$823,23,FALSE)=\"-\"),1/0,VLOOKUP($A49,Economática!$A$3:$AI$823,23,FALSE)))","v":-94.7},{"$f":"IF($A49=\"\",\"\",IF(OR(VLOOKUP($A49,Economática!$A$3:$AI$823,24,FALSE)=0,VLOOKUP($A49,Economática!$A$3:$AI$823,24,FALSE)=\"-\"),1/0,VLOOKUP($A49,Economática!$A$3:$AI$823,24,FALSE)))","v":-81.900000000000006},{"$f":"IF($A49=\"\",\"\",IF(OR(VLOOKUP($A49,Economática!$A$3:$AI$823,25,FALSE)=0,VLOOKUP($A49,Economática!$A$3:$AI$823,25,FALSE)=\"-\"),1/0,VLOOKUP($A49,Economática!$A$3:$AI$823,25,FALSE)))","v":-81.900000000000006},{"$f":"IF($A49=\"\",\"\",IF(ISERROR((F49+VLOOKUP($A49,Economática!$A$3:$AI$823,26,FALSE))/Y49),(F49+VLOOKUP($A49,Economática!$A$3:$AI$823,26,FALSE))/Y49,(F49+VLOOKUP($A49,Economática!$A$3:$AI$823,26,FALSE))/Y49))","v":-5.2734676434676437},{"$f":"IF($A49=\"\",\"\",IF(OR(-VLOOKUP($A49,Economática!$A$3:$AI$823,27,FALSE)=0,-VLOOKUP($A49,Economática!$A$3:$AI$823,27,FALSE)=\"-\"),1/0,-VLOOKUP($A49,Economática!$A$3:$AI$823,27,FALSE)))","v":{"$error":"#DIV/0!"}},{"$error":"#DIV/0!"},{"$f":"IF($A49=\"\",\"\",IF(OR(VLOOKUP($A49,Economática!$A$3:$AI$823,28,FALSE)=0,VLOOKUP($A49,Economática!$A$3:$AI$823,28,FALSE)=\"-\"),1/0,VLOOKUP($A49,Economática!$A$3:$AI$823,28,FALSE)))","v":{"$error":"#DIV/0!"}},{"$f":"IF($A49=\"\",\"\",IF(OR(VLOOKUP($A49,Economática!$A$3:$AI$823,29,FALSE)=0,VLOOKUP($A49,Economática!$A$3:$AI$823,29,FALSE)=\"-\"),1/0,VLOOKUP($A49,Economática!$A$3:$AI$823,29,FALSE)))","v":-76.7},{"$f":"IF($A49=\"\",\"\",IF(OR(VLOOKUP($A49,Economática!$A$3:$AI$823,30,FALSE)/E49=0,VLOOKUP($A49,Economática!$A$3:$AI$823,30,FALSE)/E49=\"-\",VLOOKUP($A49,Economática!$A$3:$AI$823,30,FALSE)/E49<33.33%,VLOOKUP($A49,Economática!$A$3:$AI$823,30,FALSE)/E49>100%),1/0,VLOOKUP($A49,Economática!$A$3:$AI$823,30,FALSE)/E49))","v":0.96181046676096182},"VIVR3",{"$f":"IF($A49=\"\",\"\",IF(OR(VLOOKUP($A49,Economática!$A$3:$AI$823,25,FALSE)=0,VLOOKUP($A49,Economática!$A$3:$AI$823,25,FALSE)=\"-\"),1/0,VLOOKUP($A49,Economática!$A$3:$AI$823,25,FALSE)))","v":-81.900000000000006},{"$f":"CONCATENATE(Economática!B51,\" \",Economática!C51)","v":"Viver ON"}]
[{"$f":"IF(Economática!AG52=\"\",\"\",Economática!AG52)","v":"WHRL4"},{"$f":"IF($A50=\"\",\"\",VLOOKUP(VLOOKUP($A50,Economática!$A$3:$AI$823,6,FALSE),Correção!$B$16:$C$36,2,FALSE))","v":"Eletroeletrônicos"},{"$f":"IF(Economática!B52=\"\",\"\",Economática!B52)","v":"Whirlpool"},{"$f":"IF($A50=\"\",\"\",IF(OR(VLOOKUP($A50,Economática!$A$3:$AI$823,8,FALSE)=0,VLOOKUP($A50,Economática!$A$3:$AI$823,8,FALSE)=\"-\"),1/0,VLOOKUP($A50,Economática!$A$3:$AI$823,8,FALSE)))","v":4.72},{"$f":"IF(A50=\"\",\"\",IF(ISERROR(VLOOKUP(A50,Correção!$B$2:$G$13,9,FALSE)),VLOOKUP($A50,Economática!$A$3:$AI$823,9,FALSE),VLOOKUP(A50,Correção!$B$2:$G$13,9,FALSE)))","v":1502.7860000000001},{"$f":"IF($A50=\"\",\"\",Economática!G52)","v":6763.97},{"$f":"IF($A50=\"\",\"\",IF(OR(VLOOKUP($A50,Economática!$A$3:$AI$823,10,FALSE)=0,VLOOKUP($A50,Economática!$A$3:$AI$823,10,FALSE)=\"-\"),1/0,VLOOKUP($A50,Economática!$A$3:$AI$823,10,FALSE)))","v":2189.91},{"$f":"IF($A50=\"\",\"\",IF(OR(VLOOKUP($A50,Economática!$A$3:$AI$823,11,FALSE)=0,VLOOKUP($A50,Economática!$A$3:$AI$823,11,FALSE)=\"-\"),1/0,VLOOKUP($A50,Economática!$A$3:$AI$823,11,FALSE)))","v":9482.8700000000008},{"$f":"IF($A50=\"\",\"\",IF(OR(VLOOKUP($A50,Economática!$A$3:$AI$823,12,FALSE)=0,VLOOKUP($A50,Economática!$A$3:$AI$823,12,FALSE)=\"-\"),1/0,VLOOKUP($A50,Economática!$A$3:$AI$823,12,FALSE)))","v":6193.96},{"$f":"IF($A50=\"\",\"\",IF(OR(VLOOKUP($A50,Economática!$A$3:$AI$823,13,FALSE)=0,VLOOKUP($A50,Economática!$A$3:$AI$823,13,FALSE)=\"-\"),1/0,VLOOKUP($A50,Economática!$A$3:$AI$823,13,FALSE)))","v":435.86},{"$f":"IF($A50=\"\",\"\",IF(OR(VLOOKUP($A50,Economática!$A$3:$AI$823,14,FALSE)=0,VLOOKUP($A50,Economática!$A$3:$AI$823,14,FALSE)=\"-\"),1/0,VLOOKUP($A50,Economática!$A$3:$AI$823,14,FALSE)))","v":75.489999999999995},{"$f":"IF($A50=\"\",\"\",IF(OR(VLOOKUP($A50,Economática!$A$3:$AI$823,15,FALSE)=0,VLOOKUP($A50,Economática!$A$3:$AI$823,15,FALSE)=\"-\"),1/0,VLOOKUP($A50,Economática!$A$3:$AI$823,15,FALSE)))","v":94.13},{"$f":"IF($A50=\"\",\"\",IF(OR(VLOOKUP($A50,Economática!$A$3:$AI$823,16,FALSE)=0,VLOOKUP($A50,Economática!$A$3:$AI$823,16,FALSE)=\"-\"),1/0,VLOOKUP($A50,Economática!$A$3:$AI$823,16,FALSE)))","v":164.61},{"$f":"IF($A50=\"\",\"\",IF(OR(VLOOKUP($A50,Economática!$A$3:$AI$823,17,FALSE)=0,VLOOKUP($A50,Economática!$A$3:$AI$823,17,FALSE)=\"-\"),1/0,VLOOKUP($A50,Economática!$A$3:$AI$823,17,FALSE)))","v":180.6},{"$f":"IF($A50=\"\",\"\",IF(OR(VLOOKUP($A50,Economática!$A$3:$AI$823,18,FALSE)=0,VLOOKUP($A50,Economática!$A$3:$AI$823,18,FALSE)=\"-\"),1/0,VLOOKUP($A50,Economática!$A$3:$AI$823,18,FALSE)))","v":435.86},{"$f":"IF($A50=\"\",\"\",IF(OR(VLOOKUP($A50,Economática!$A$3:$AI$823,19,FALSE)=0,VLOOKUP($A50,Economática!$A$3:$AI$823,19,FALSE)=\"-\"),1/0,VLOOKUP($A50,Economática!$A$3:$AI$823,19,FALSE)))","v":180.6},{"$f":"IF($A50=\"\",\"\",VLOOKUP($A50,Economática!$A$3:$AI$823,20,FALSE)/E50)","v":0.12017679163899583},1.4572334317727207,3.2390143521879895,39.275470210409743,{"$f":"IF($A50=\"\",\"\",IF(OR(VLOOKUP($A50,Economática!$A$3:$AI$823,21,FALSE)/100=0,VLOOKUP($A50,Economática!$A$3:$AI$823,21,FALSE)/100=\"-\"),1/0,VLOOKUP($A50,Economática!$A$3:$AI$823,21,FALSE)/100))","v":7.3301000000000005E-2},{"$f":"IF($A50=\"\",\"\",IF(OR(VLOOKUP($A50,Economática!$A$3:$AI$823,22,FALSE)/100=0,VLOOKUP($A50,Economática!$A$3:$AI$823,22,FALSE)/100=\"-\"),1/0,VLOOKUP($A50,Economática!$A$3:$AI$823,22,FALSE)/100))","v":-0.23127199999999998},{"$f":"IF($A50=\"\",\"\",IF(OR(VLOOKUP($A50,Economática!$A$3:$AI$823,23,FALSE)=0,VLOOKUP($A50,Economática!$A$3:$AI$823,23,FALSE)=\"-\"),1/0,VLOOKUP($A50,Economática!$A$3:$AI$823,23,FALSE)))","v":594.70000000000005},{"$f":"IF($A50=\"\",\"\",IF(OR(VLOOKUP($A50,Economática!$A$3:$AI$823,24,FALSE)=0,VLOOKUP($A50,Economática!$A$3:$AI$823,24,FALSE)=\"-\"),1/0,VLOOKUP($A50,Economática!$A$3:$AI$823,24,FALSE)))","v":408.5},{"$f":"IF($A50=\"\",\"\",IF(OR(VLOOKUP($A50,Economática!$A$3:$AI$823,25,FALSE)=0,VLOOKUP($A50,Economática!$A$3:$AI$823,25,FALSE)=\"-\"),1/0,VLOOKUP($A50,Economática!$A$3:$AI$823,25,FALSE)))","v":408.5},{"$f":"IF($A50=\"\",\"\",IF(ISERROR((F50+VLOOKUP($A50,Economática!$A$3:$AI$823,26,FALSE))/Y50),(F50+VLOOKUP($A50,Economática!$A$3:$AI$823,26,FALSE))/Y50,(F50+VLOOKUP($A50,Economática!$A$3:$AI$823,26,FALSE))/Y50))","v":15.317990208078337},{"$f":"IF($A50=\"\",\"\",IF(OR(-VLOOKUP($A50,Economática!$A$3:$AI$823,27,FALSE)=0,-VLOOKUP($A50,Economática!$A$3:$AI$823,27,FALSE)=\"-\"),1/0,-VLOOKUP($A50,Economática!$A$3:$AI$823,27,FALSE)))","v":210.01},3.1048334040511709E-2,{"$f":"IF($A50=\"\",\"\",IF(OR(VLOOKUP($A50,Economática!$A$3:$AI$823,28,FALSE)=0,VLOOKUP($A50,Economática!$A$3:$AI$823,28,FALSE)=\"-\"),1/0,VLOOKUP($A50,Economática!$A$3:$AI$823,28,FALSE)))","v":-3.3},{"$f":"IF($A50=\"\",\"\",IF(OR(VLOOKUP($A50,Economática!$A$3:$AI$823,29,FALSE)=0,VLOOKUP($A50,Economática!$A$3:$AI$823,29,FALSE)=\"-\"),1/0,VLOOKUP($A50,Economática!$A$3:$AI$823,29,FALSE)))","v":-2.4},{"$f":"IF($A50=\"\",\"\",IF(OR(VLOOKUP($A50,Economática!$A$3:$AI$823,30,FALSE)/E50=0,VLOOKUP($A50,Economática!$A$3:$AI$823,30,FALSE)/E50=\"-\",VLOOKUP($A50,Economática!$A$3:$AI$823,30,FALSE)/E50<33.33%,VLOOKUP($A50,Economática!$A$3:$AI$823,30,FALSE)/E50>100%),1/0,VLOOKUP($A50,Economática!$A$3:$AI$823,30,FALSE)/E50))","v":0.68452860220949618},"WHRL4",{"$f":"IF($A50=\"\",\"\",IF(OR(VLOOKUP($A50,Economática!$A$3:$AI$823,25,FALSE)=0,VLOOKUP($A50,Economática!$A$3:$AI$823,25,FALSE)=\"-\"),1/0,VLOOKUP($A50,Economática!$A$3:$AI$823,25,FALSE)))","v":408.5},{"$f":"CONCATENATE(Economática!B52,\" \",Economática!C52)","v":"Whirlpool PN"}]
[{"$f":"IF(Economática!AG53=\"\",\"\",Economática!AG53)","v":"POSI3"},{"$f":"IF($A51=\"\",\"\",VLOOKUP(VLOOKUP($A51,Economática!$A$3:$AI$823,6,FALSE),Correção!$B$16:$C$36,2,FALSE))","v":"Eletroeletrônicos"},{"$f":"IF(Economática!B53=\"\",\"\",Economática!B53)","v":"Positivo Tec"},{"$f":"IF($A51=\"\",\"\",IF(OR(VLOOKUP($A51,Economática!$A$3:$AI$823,8,FALSE)=0,VLOOKUP($A51,Economática!$A$3:$AI$823,8,FALSE)=\"-\"),1/0,VLOOKUP($A51,Economática!$A$3:$AI$823,8,FALSE)))","v":2.2799999999999998},{"$f":"IF(A51=\"\",\"\",IF(ISERROR(VLOOKUP(A51,Correção!$B$2:$G$13,9,FALSE)),VLOOKUP($A51,Economática!$A$3:$AI$823,9,FALSE),VLOOKUP(A51,Correção!$B$2:$G$13,9,FALSE)))","v":85.965000000000003},{"$f":"IF($A51=\"\",\"\",Economática!G53)","v":196},{"$f":"IF($A51=\"\",\"\",IF(OR(VLOOKUP($A51,Economática!$A$3:$AI$823,10,FALSE)=0,VLOOKUP($A51,Economática!$A$3:$AI$823,10,FALSE)=\"-\"),1/0,VLOOKUP($A51,Economática!$A$3:$AI$823,10,FALSE)))","v":508.99},{"$f":"IF($A51=\"\",\"\",IF(OR(VLOOKUP($A51,Economática!$A$3:$AI$823,11,FALSE)=0,VLOOKUP($A51,Economática!$A$3:$AI$823,11,FALSE)=\"-\"),1/0,VLOOKUP($A51,Economática!$A$3:$AI$823,11,FALSE)))","v":1913.61},{"$f":"IF($A51=\"\",\"\",IF(OR(VLOOKUP($A51,Economática!$A$3:$AI$823,12,FALSE)=0,VLOOKUP($A51,Economática!$A$3:$AI$823,12,FALSE)=\"-\"),1/0,VLOOKUP($A51,Economática!$A$3:$AI$823,12,FALSE)))","v":1951.34},{"$f":"IF($A51=\"\",\"\",IF(OR(VLOOKUP($A51,Economática!$A$3:$AI$823,13,FALSE)=0,VLOOKUP($A51,Economática!$A$3:$AI$823,13,FALSE)=\"-\"),1/0,VLOOKUP($A51,Economática!$A$3:$AI$823,13,FALSE)))","v":-47.55},{"$f":"IF($A51=\"\",\"\",IF(OR(VLOOKUP($A51,Economática!$A$3:$AI$823,14,FALSE)=0,VLOOKUP($A51,Economática!$A$3:$AI$823,14,FALSE)=\"-\"),1/0,VLOOKUP($A51,Economática!$A$3:$AI$823,14,FALSE)))","v":1.96},{"$f":"IF($A51=\"\",\"\",IF(OR(VLOOKUP($A51,Economática!$A$3:$AI$823,15,FALSE)=0,VLOOKUP($A51,Economática!$A$3:$AI$823,15,FALSE)=\"-\"),1/0,VLOOKUP($A51,Economática!$A$3:$AI$823,15,FALSE)))","v":-9.65},{"$f":"IF($A51=\"\",\"\",IF(OR(VLOOKUP($A51,Economática!$A$3:$AI$823,16,FALSE)=0,VLOOKUP($A51,Economática!$A$3:$AI$823,16,FALSE)=\"-\"),1/0,VLOOKUP($A51,Economática!$A$3:$AI$823,16,FALSE)))","v":2.1800000000000002},{"$f":"IF($A51=\"\",\"\",IF(OR(VLOOKUP($A51,Economática!$A$3:$AI$823,17,FALSE)=0,VLOOKUP($A51,Economática!$A$3:$AI$823,17,FALSE)=\"-\"),1/0,VLOOKUP($A51,Economática!$A$3:$AI$823,17,FALSE)))","v":-0.46},{"$f":"IF($A51=\"\",\"\",IF(OR(VLOOKUP($A51,Economática!$A$3:$AI$823,18,FALSE)=0,VLOOKUP($A51,Economática!$A$3:$AI$823,18,FALSE)=\"-\"),1/0,VLOOKUP($A51,Economática!$A$3:$AI$823,18,FALSE)))","v":-47.55},{"$f":"IF($A51=\"\",\"\",IF(OR(VLOOKUP($A51,Economática!$A$3:$AI$823,19,FALSE)=0,VLOOKUP($A51,Economática!$A$3:$AI$823,19,FALSE)=\"-\"),1/0,VLOOKUP($A51,Economática!$A$3:$AI$823,19,FALSE)))","v":-0.46},{"$f":"IF($A51=\"\",\"\",VLOOKUP($A51,Economática!$A$3:$AI$823,20,FALSE)/E51)","v":-5.3510149479439311E-3},5.9208980398999591,0.38507672056425468,{"$error":"#DIV/0!"},{"$f":"IF($A51=\"\",\"\",IF(OR(VLOOKUP($A51,Economática!$A$3:$AI$823,21,FALSE)/100=0,VLOOKUP($A51,Economática!$A$3:$AI$823,21,FALSE)/100=\"-\"),1/0,VLOOKUP($A51,Economática!$A$3:$AI$823,21,FALSE)/100))","v":-9.1E-4},{"$f":"IF($A51=\"\",\"\",IF(OR(VLOOKUP($A51,Economática!$A$3:$AI$823,22,FALSE)/100=0,VLOOKUP($A51,Economática!$A$3:$AI$823,22,FALSE)/100=\"-\"),1/0,VLOOKUP($A51,Economática!$A$3:$AI$823,22,FALSE)/100))","v":0.42534500000000003},{"$f":"IF($A51=\"\",\"\",IF(OR(VLOOKUP($A51,Economática!$A$3:$AI$823,23,FALSE)=0,VLOOKUP($A51,Economática!$A$3:$AI$823,23,FALSE)=\"-\"),1/0,VLOOKUP($A51,Economática!$A$3:$AI$823,23,FALSE)))","v":71.099999999999994},{"$f":"IF($A51=\"\",\"\",IF(OR(VLOOKUP($A51,Economática!$A$3:$AI$823,24,FALSE)=0,VLOOKUP($A51,Economática!$A$3:$AI$823,24,FALSE)=\"-\"),1/0,VLOOKUP($A51,Economática!$A$3:$AI$823,24,FALSE)))","v":107.6},{"$f":"IF($A51=\"\",\"\",IF(OR(VLOOKUP($A51,Economática!$A$3:$AI$823,25,FALSE)=0,VLOOKUP($A51,Economática!$A$3:$AI$823,25,FALSE)=\"-\"),1/0,VLOOKUP($A51,Economática!$A$3:$AI$823,25,FALSE)))","v":107.6},{"$f":"IF($A51=\"\",\"\",IF(ISERROR((F51+VLOOKUP($A51,Economática!$A$3:$AI$823,26,FALSE))/Y51),(F51+VLOOKUP($A51,Economática!$A$3:$AI$823,26,FALSE))/Y51,(F51+VLOOKUP($A51,Economática!$A$3:$AI$823,26,FALSE))/Y51))","v":3.8372397769516731},{"$f":"IF($A51=\"\",\"\",IF(OR(-VLOOKUP($A51,Economática!$A$3:$AI$823,27,FALSE)=0,-VLOOKUP($A51,Economática!$A$3:$AI$823,27,FALSE)=\"-\"),1/0,-VLOOKUP($A51,Economática!$A$3:$AI$823,27,FALSE)))","v":{"$error":"#DIV/0!"}},{"$error":"#DIV/0!"},{"$f":"IF($A51=\"\",\"\",IF(OR(VLOOKUP($A51,Economática!$A$3:$AI$823,28,FALSE)=0,VLOOKUP($A51,Economática!$A$3:$AI$823,28,FALSE)=\"-\"),1/0,VLOOKUP($A51,Economática!$A$3:$AI$823,28,FALSE)))","v":-3},{"$f":"IF($A51=\"\",\"\",IF(OR(VLOOKUP($A51,Economática!$A$3:$AI$823,29,FALSE)=0,VLOOKUP($A51,Economática!$A$3:$AI$823,29,FALSE)=\"-\"),1/0,VLOOKUP($A51,Economática!$A$3:$AI$823,29,FALSE)))","v":-26.7},{"$f":"IF($A51=\"\",\"\",IF(OR(VLOOKUP($A51,Economática!$A$3:$AI$823,30,FALSE)/E51=0,VLOOKUP($A51,Economática!$A$3:$AI$823,30,FALSE)/E51=\"-\",VLOOKUP($A51,Economática!$A$3:$AI$823,30,FALSE)/E51<33.33%,VLOOKUP($A51,Economática!$A$3:$AI$823,30,FALSE)/E51>100%),1/0,VLOOKUP($A51,Economática!$A$3:$AI$823,30,FALSE)/E51))","v":{"$error":"#DIV/0!"}},"POSI3",{"$f":"IF($A51=\"\",\"\",IF(OR(VLOOKUP($A51,Economática!$A$3:$AI$823,25,FALSE)=0,VLOOKUP($A51,Economática!$A$3:$AI$823,25,FALSE)=\"-\"),1/0,VLOOKUP($A51,Economática!$A$3:$AI$823,25,FALSE)))","v":107.6},{"$f":"CONCATENATE(Economática!B53,\" \",Economática!C53)","v":"Positivo Tec ON"}]
[{"$f":"IF(Economática!AG54=\"\",\"\",Economática!AG54)","v":"IGBR3"},{"$f":"IF($A52=\"\",\"\",VLOOKUP(VLOOKUP($A52,Economática!$A$3:$AI$823,6,FALSE),Correção!$B$16:$C$36,2,FALSE))","v":"Eletroeletrônicos"},{"$f":"IF(Economática!B54=\"\",\"\",Economática!B54)","v":"IGB S/A"},{"$f":"IF($A52=\"\",\"\",IF(OR(VLOOKUP($A52,Economática!$A$3:$AI$823,8,FALSE)=0,VLOOKUP($A52,Economática!$A$3:$AI$823,8,FALSE)=\"-\"),1/0,VLOOKUP($A52,Economática!$A$3:$AI$823,8,FALSE)))","v":2.2599999999999998},{"$f":"IF(A52=\"\",\"\",IF(ISERROR(VLOOKUP(A52,Correção!$B$2:$G$13,9,FALSE)),VLOOKUP($A52,Economática!$A$3:$AI$823,9,FALSE),VLOOKUP(A52,Correção!$B$2:$G$13,9,FALSE)))","v":12.505000000000001},{"$f":"IF($A52=\"\",\"\",Economática!G54)","v":28.26},{"$f":"IF($A52=\"\",\"\",IF(OR(VLOOKUP($A52,Economática!$A$3:$AI$823,10,FALSE)=0,VLOOKUP($A52,Economática!$A$3:$AI$823,10,FALSE)=\"-\"),1/0,VLOOKUP($A52,Economática!$A$3:$AI$823,10,FALSE)))","v":-828.34},{"$f":"IF($A52=\"\",\"\",IF(OR(VLOOKUP($A52,Economática!$A$3:$AI$823,11,FALSE)=0,VLOOKUP($A52,Economática!$A$3:$AI$823,11,FALSE)=\"-\"),1/0,VLOOKUP($A52,Economática!$A$3:$AI$823,11,FALSE)))","v":4.5199999999999996},{"$f":"IF($A52=\"\",\"\",IF(OR(VLOOKUP($A52,Economática!$A$3:$AI$823,12,FALSE)=0,VLOOKUP($A52,Economática!$A$3:$AI$823,12,FALSE)=\"-\"),1/0,VLOOKUP($A52,Economática!$A$3:$AI$823,12,FALSE)))","v":{"$error":"#DIV/0!"}},{"$f":"IF($A52=\"\",\"\",IF(OR(VLOOKUP($A52,Economática!$A$3:$AI$823,13,FALSE)=0,VLOOKUP($A52,Economática!$A$3:$AI$823,13,FALSE)=\"-\"),1/0,VLOOKUP($A52,Economática!$A$3:$AI$823,13,FALSE)))","v":44},{"$f":"IF($A52=\"\",\"\",IF(OR(VLOOKUP($A52,Economática!$A$3:$AI$823,14,FALSE)=0,VLOOKUP($A52,Economática!$A$3:$AI$823,14,FALSE)=\"-\"),1/0,VLOOKUP($A52,Economática!$A$3:$AI$823,14,FALSE)))","v":-39.090000000000003},{"$f":"IF($A52=\"\",\"\",IF(OR(VLOOKUP($A52,Economática!$A$3:$AI$823,15,FALSE)=0,VLOOKUP($A52,Economática!$A$3:$AI$823,15,FALSE)=\"-\"),1/0,VLOOKUP($A52,Economática!$A$3:$AI$823,15,FALSE)))","v":-47.26},{"$f":"IF($A52=\"\",\"\",IF(OR(VLOOKUP($A52,Economática!$A$3:$AI$823,16,FALSE)=0,VLOOKUP($A52,Economática!$A$3:$AI$823,16,FALSE)=\"-\"),1/0,VLOOKUP($A52,Economática!$A$3:$AI$823,16,FALSE)))","v":-61.22},{"$f":"IF($A52=\"\",\"\",IF(OR(VLOOKUP($A52,Economática!$A$3:$AI$823,17,FALSE)=0,VLOOKUP($A52,Economática!$A$3:$AI$823,17,FALSE)=\"-\"),1/0,VLOOKUP($A52,Economática!$A$3:$AI$823,17,FALSE)))","v":{"$error":"#DIV/0!"}},{"$f":"IF($A52=\"\",\"\",IF(OR(VLOOKUP($A52,Economática!$A$3:$AI$823,18,FALSE)=0,VLOOKUP($A52,Economática!$A$3:$AI$823,18,FALSE)=\"-\"),1/0,VLOOKUP($A52,Economática!$A$3:$AI$823,18,FALSE)))","v":44},{"$f":"IF($A52=\"\",\"\",IF(OR(VLOOKUP($A52,Economática!$A$3:$AI$823,19,FALSE)=0,VLOOKUP($A52,Economática!$A$3:$AI$823,19,FALSE)=\"-\"),1/0,VLOOKUP($A52,Economática!$A$3:$AI$823,19,FALSE)))","v":{"$error":"#DIV/0!"}},{"$f":"IF($A52=\"\",\"\",VLOOKUP($A52,Economática!$A$3:$AI$823,20,FALSE)/E52)","v":3.9488204718112754},{"$error":"#DIV/0!"},{"$error":"#DIV/0!"},0.57232280275415148,{"$f":"IF($A52=\"\",\"\",IF(OR(VLOOKUP($A52,Economática!$A$3:$AI$823,21,FALSE)/100=0,VLOOKUP($A52,Economática!$A$3:$AI$823,21,FALSE)/100=\"-\"),1/0,VLOOKUP($A52,Economática!$A$3:$AI$823,21,FALSE)/100))","v":{"$error":"#VALUE!"}},{"$f":"IF($A52=\"\",\"\",IF(OR(VLOOKUP($A52,Economática!$A$3:$AI$823,22,FALSE)/100=0,VLOOKUP($A52,Economática!$A$3:$AI$823,22,FALSE)/100=\"-\"),1/0,VLOOKUP($A52,Economática!$A$3:$AI$823,22,FALSE)/100))","v":-1.0694840000000001},{"$f":"IF($A52=\"\",\"\",IF(OR(VLOOKUP($A52,Economática!$A$3:$AI$823,23,FALSE)=0,VLOOKUP($A52,Economática!$A$3:$AI$823,23,FALSE)=\"-\"),1/0,VLOOKUP($A52,Economática!$A$3:$AI$823,23,FALSE)))","v":{"$error":"#DIV/0!"}},{"$f":"IF($A52=\"\",\"\",IF(OR(VLOOKUP($A52,Economática!$A$3:$AI$823,24,FALSE)=0,VLOOKUP($A52,Economática!$A$3:$AI$823,24,FALSE)=\"-\"),1/0,VLOOKUP($A52,Economática!$A$3:$AI$823,24,FALSE)))","v":{"$error":"#DIV/0!"}},{"$f":"IF($A52=\"\",\"\",IF(OR(VLOOKUP($A52,Economática!$A$3:$AI$823,25,FALSE)=0,VLOOKUP($A52,Economática!$A$3:$AI$823,25,FALSE)=\"-\"),1/0,VLOOKUP($A52,Economática!$A$3:$AI$823,25,FALSE)))","v":{"$error":"#DIV/0!"}},{"$f":"IF($A52=\"\",\"\",IF(ISERROR((F52+VLOOKUP($A52,Economática!$A$3:$AI$823,26,FALSE))/Y52),(F52+VLOOKUP($A52,Economática!$A$3:$AI$823,26,FALSE))/Y52,(F52+VLOOKUP($A52,Economática!$A$3:$AI$823,26,FALSE))/Y52))","v":{"$error":"#DIV/0!"}},{"$f":"IF($A52=\"\",\"\",IF(OR(-VLOOKUP($A52,Economática!$A$3:$AI$823,27,FALSE)=0,-VLOOKUP($A52,Economática!$A$3:$AI$823,27,FALSE)=\"-\"),1/0,-VLOOKUP($A52,Economática!$A$3:$AI$823,27,FALSE)))","v":{"$error":"#VALUE!"}},{"$error":"#VALUE!"},{"$f":"IF($A52=\"\",\"\",IF(OR(VLOOKUP($A52,Economática!$A$3:$AI$823,28,FALSE)=0,VLOOKUP($A52,Economática!$A$3:$AI$823,28,FALSE)=\"-\"),1/0,VLOOKUP($A52,Economática!$A$3:$AI$823,28,FALSE)))","v":-3},{"$f":"IF($A52=\"\",\"\",IF(OR(VLOOKUP($A52,Economática!$A$3:$AI$823,29,FALSE)=0,VLOOKUP($A52,Economática!$A$3:$AI$823,29,FALSE)=\"-\"),1/0,VLOOKUP($A52,Economática!$A$3:$AI$823,29,FALSE)))","v":96.5},{"$f":"IF($A52=\"\",\"\",IF(OR(VLOOKUP($A52,Economática!$A$3:$AI$823,30,FALSE)/E52=0,VLOOKUP($A52,Economática!$A$3:$AI$823,30,FALSE)/E52=\"-\",VLOOKUP($A52,Economática!$A$3:$AI$823,30,FALSE)/E52<33.33%,VLOOKUP($A52,Economática!$A$3:$AI$823,30,FALSE)/E52>100%),1/0,VLOOKUP($A52,Economática!$A$3:$AI$823,30,FALSE)/E52))","v":0.99960015993602558},"IGBR3",{"$f":"IF($A52=\"\",\"\",IF(OR(VLOOKUP($A52,Economática!$A$3:$AI$823,25,FALSE)=0,VLOOKUP($A52,Economática!$A$3:$AI$823,25,FALSE)=\"-\"),1/0,VLOOKUP($A52,Economática!$A$3:$AI$823,25,FALSE)))","v":{"$error":"#DIV/0!"}},{"$f":"CONCATENATE(Economática!B54,\" \",Economática!C54)","v":"IGB S/A ON"}]
[{"$f":"IF(Economática!AG55=\"\",\"\",Economática!AG55)","v":"EGIE3"},{"$f":"IF($A53=\"\",\"\",VLOOKUP(VLOOKUP($A53,Economática!$A$3:$AI$823,6,FALSE),Correção!$B$16:$C$36,2,FALSE))","v":"Energia Elétrica"},{"$f":"IF(Economática!B55=\"\",\"\",Economática!B55)","v":"Engie Brasil"},{"$f":"IF($A53=\"\",\"\",IF(OR(VLOOKUP($A53,Economática!$A$3:$AI$823,8,FALSE)=0,VLOOKUP($A53,Economática!$A$3:$AI$823,8,FALSE)=\"-\"),1/0,VLOOKUP($A53,Economática!$A$3:$AI$823,8,FALSE)))","v":42.71},{"$f":"IF(A53=\"\",\"\",IF(ISERROR(VLOOKUP(A53,Correção!$B$2:$G$13,9,FALSE)),VLOOKUP($A53,Economática!$A$3:$AI$823,9,FALSE),VLOOKUP(A53,Correção!$B$2:$G$13,9,FALSE)))","v":815.928},{"$f":"IF($A53=\"\",\"\",Economática!G55)","v":34848.269999999997},{"$f":"IF($A53=\"\",\"\",IF(OR(VLOOKUP($A53,Economática!$A$3:$AI$823,10,FALSE)=0,VLOOKUP($A53,Economática!$A$3:$AI$823,10,FALSE)=\"-\"),1/0,VLOOKUP($A53,Economática!$A$3:$AI$823,10,FALSE)))","v":6316.19},{"$f":"IF($A53=\"\",\"\",IF(OR(VLOOKUP($A53,Economática!$A$3:$AI$823,11,FALSE)=0,VLOOKUP($A53,Economática!$A$3:$AI$823,11,FALSE)=\"-\"),1/0,VLOOKUP($A53,Economática!$A$3:$AI$823,11,FALSE)))","v":7009.96},{"$f":"IF($A53=\"\",\"\",IF(OR(VLOOKUP($A53,Economática!$A$3:$AI$823,12,FALSE)=0,VLOOKUP($A53,Economática!$A$3:$AI$823,12,FALSE)=\"-\"),1/0,VLOOKUP($A53,Economática!$A$3:$AI$823,12,FALSE)))","v":8794.7900000000009},{"$f":"IF($A53=\"\",\"\",IF(OR(VLOOKUP($A53,Economática!$A$3:$AI$823,13,FALSE)=0,VLOOKUP($A53,Economática!$A$3:$AI$823,13,FALSE)=\"-\"),1/0,VLOOKUP($A53,Economática!$A$3:$AI$823,13,FALSE)))","v":2003.41},{"$f":"IF($A53=\"\",\"\",IF(OR(VLOOKUP($A53,Economática!$A$3:$AI$823,14,FALSE)=0,VLOOKUP($A53,Economática!$A$3:$AI$823,14,FALSE)=\"-\"),1/0,VLOOKUP($A53,Economática!$A$3:$AI$823,14,FALSE)))","v":489.04},{"$f":"IF($A53=\"\",\"\",IF(OR(VLOOKUP($A53,Economática!$A$3:$AI$823,15,FALSE)=0,VLOOKUP($A53,Economática!$A$3:$AI$823,15,FALSE)=\"-\"),1/0,VLOOKUP($A53,Economática!$A$3:$AI$823,15,FALSE)))","v":1078.01},{"$f":"IF($A53=\"\",\"\",IF(OR(VLOOKUP($A53,Economática!$A$3:$AI$823,16,FALSE)=0,VLOOKUP($A53,Economática!$A$3:$AI$823,16,FALSE)=\"-\"),1/0,VLOOKUP($A53,Economática!$A$3:$AI$823,16,FALSE)))","v":1553.08},{"$f":"IF($A53=\"\",\"\",IF(OR(VLOOKUP($A53,Economática!$A$3:$AI$823,17,FALSE)=0,VLOOKUP($A53,Economática!$A$3:$AI$823,17,FALSE)=\"-\"),1/0,VLOOKUP($A53,Economática!$A$3:$AI$823,17,FALSE)))","v":2314.36},{"$f":"IF($A53=\"\",\"\",IF(OR(VLOOKUP($A53,Economática!$A$3:$AI$823,18,FALSE)=0,VLOOKUP($A53,Economática!$A$3:$AI$823,18,FALSE)=\"-\"),1/0,VLOOKUP($A53,Economática!$A$3:$AI$823,18,FALSE)))","v":2003.41},{"$f":"IF($A53=\"\",\"\",IF(OR(VLOOKUP($A53,Economática!$A$3:$AI$823,19,FALSE)=0,VLOOKUP($A53,Economática!$A$3:$AI$823,19,FALSE)=\"-\"),1/0,VLOOKUP($A53,Economática!$A$3:$AI$823,19,FALSE)))","v":2314.36},{"$f":"IF($A53=\"\",\"\",VLOOKUP($A53,Economática!$A$3:$AI$823,20,FALSE)/E53)","v":2.836475767469679},7.7411119608592909,5.5172952175282886,15.057417549560137,{"$f":"IF($A53=\"\",\"\",IF(OR(VLOOKUP($A53,Economática!$A$3:$AI$823,21,FALSE)/100=0,VLOOKUP($A53,Economática!$A$3:$AI$823,21,FALSE)/100=\"-\"),1/0,VLOOKUP($A53,Economática!$A$3:$AI$823,21,FALSE)/100))","v":0.33877099999999999},{"$f":"IF($A53=\"\",\"\",IF(OR(VLOOKUP($A53,Economática!$A$3:$AI$823,22,FALSE)/100=0,VLOOKUP($A53,Economática!$A$3:$AI$823,22,FALSE)/100=\"-\"),1/0,VLOOKUP($A53,Economática!$A$3:$AI$823,22,FALSE)/100))","v":1.155661},{"$f":"IF($A53=\"\",\"\",IF(OR(VLOOKUP($A53,Economática!$A$3:$AI$823,23,FALSE)=0,VLOOKUP($A53,Economática!$A$3:$AI$823,23,FALSE)=\"-\"),1/0,VLOOKUP($A53,Economática!$A$3:$AI$823,23,FALSE)))","v":3499.2},{"$f":"IF($A53=\"\",\"\",IF(OR(VLOOKUP($A53,Economática!$A$3:$AI$823,24,FALSE)=0,VLOOKUP($A53,Economática!$A$3:$AI$823,24,FALSE)=\"-\"),1/0,VLOOKUP($A53,Economática!$A$3:$AI$823,24,FALSE)))","v":4327.3},{"$f":"IF($A53=\"\",\"\",IF(OR(VLOOKUP($A53,Economática!$A$3:$AI$823,25,FALSE)=0,VLOOKUP($A53,Economática!$A$3:$AI$823,25,FALSE)=\"-\"),1/0,VLOOKUP($A53,Economática!$A$3:$AI$823,25,FALSE)))","v":4327.3},{"$f":"IF($A53=\"\",\"\",IF(ISERROR((F53+VLOOKUP($A53,Economática!$A$3:$AI$823,26,FALSE))/Y53),(F53+VLOOKUP($A53,Economática!$A$3:$AI$823,26,FALSE))/Y53,(F53+VLOOKUP($A53,Economática!$A$3:$AI$823,26,FALSE))/Y53))","v":9.7411115476162955},{"$f":"IF($A53=\"\",\"\",IF(OR(-VLOOKUP($A53,Economática!$A$3:$AI$823,27,FALSE)=0,-VLOOKUP($A53,Economática!$A$3:$AI$823,27,FALSE)=\"-\"),1/0,-VLOOKUP($A53,Economática!$A$3:$AI$823,27,FALSE)))","v":1989.97},5.7103839014103146E-2,{"$f":"IF($A53=\"\",\"\",IF(OR(VLOOKUP($A53,Economática!$A$3:$AI$823,28,FALSE)=0,VLOOKUP($A53,Economática!$A$3:$AI$823,28,FALSE)=\"-\"),1/0,VLOOKUP($A53,Economática!$A$3:$AI$823,28,FALSE)))","v":3.8},{"$f":"IF($A53=\"\",\"\",IF(OR(VLOOKUP($A53,Economática!$A$3:$AI$823,29,FALSE)=0,VLOOKUP($A53,Economática!$A$3:$AI$823,29,FALSE)=\"-\"),1/0,VLOOKUP($A53,Economática!$A$3:$AI$823,29,FALSE)))","v":68.5},{"$f":"IF($A53=\"\",\"\",IF(OR(VLOOKUP($A53,Economática!$A$3:$AI$823,30,FALSE)/E53=0,VLOOKUP($A53,Economática!$A$3:$AI$823,30,FALSE)/E53=\"-\",VLOOKUP($A53,Economática!$A$3:$AI$823,30,FALSE)/E53<33.33%,VLOOKUP($A53,Economática!$A$3:$AI$823,30,FALSE)/E53>100%),1/0,VLOOKUP($A53,Economática!$A$3:$AI$823,30,FALSE)/E53))","v":0.99996568324656099},"EGIE3",{"$f":"IF($A53=\"\",\"\",IF(OR(VLOOKUP($A53,Economática!$A$3:$AI$823,25,FALSE)=0,VLOOKUP($A53,Economática!$A$3:$AI$823,25,FALSE)=\"-\"),1/0,VLOOKUP($A53,Economática!$A$3:$AI$823,25,FALSE)))","v":4327.3},{"$f":"CONCATENATE(Economática!B55,\" \",Economática!C55)","v":"Engie Brasil ON"}]
[{"$f":"IF(Economática!AG56=\"\",\"\",Economática!AG56)","v":"ELET6"},{"$f":"IF($A54=\"\",\"\",VLOOKUP(VLOOKUP($A54,Economática!$A$3:$AI$823,6,FALSE),Correção!$B$16:$C$36,2,FALSE))","v":"Energia Elétrica"},{"$f":"IF(Economática!B56=\"\",\"\",Economática!B56)","v":"Eletrobras"},{"$f":"IF($A54=\"\",\"\",IF(OR(VLOOKUP($A54,Economática!$A$3:$AI$823,8,FALSE)=0,VLOOKUP($A54,Economática!$A$3:$AI$823,8,FALSE)=\"-\"),1/0,VLOOKUP($A54,Economática!$A$3:$AI$823,8,FALSE)))","v":37.86},{"$f":"IF(A54=\"\",\"\",IF(ISERROR(VLOOKUP(A54,Correção!$B$2:$G$13,9,FALSE)),VLOOKUP($A54,Economática!$A$3:$AI$823,9,FALSE),VLOOKUP(A54,Correção!$B$2:$G$13,9,FALSE)))","v":1352.634},{"$f":"IF($A54=\"\",\"\",Economática!G56)","v":49940.37},{"$f":"IF($A54=\"\",\"\",IF(OR(VLOOKUP($A54,Economática!$A$3:$AI$823,10,FALSE)=0,VLOOKUP($A54,Economática!$A$3:$AI$823,10,FALSE)=\"-\"),1/0,VLOOKUP($A54,Economática!$A$3:$AI$823,10,FALSE)))","v":55542.91},{"$f":"IF($A54=\"\",\"\",IF(OR(VLOOKUP($A54,Economática!$A$3:$AI$823,11,FALSE)=0,VLOOKUP($A54,Economática!$A$3:$AI$823,11,FALSE)=\"-\"),1/0,VLOOKUP($A54,Economática!$A$3:$AI$823,11,FALSE)))","v":37876.019999999997},{"$f":"IF($A54=\"\",\"\",IF(OR(VLOOKUP($A54,Economática!$A$3:$AI$823,12,FALSE)=0,VLOOKUP($A54,Economática!$A$3:$AI$823,12,FALSE)=\"-\"),1/0,VLOOKUP($A54,Economática!$A$3:$AI$823,12,FALSE)))","v":24975.75},{"$f":"IF($A54=\"\",\"\",IF(OR(VLOOKUP($A54,Economática!$A$3:$AI$823,13,FALSE)=0,VLOOKUP($A54,Economática!$A$3:$AI$823,13,FALSE)=\"-\"),1/0,VLOOKUP($A54,Economática!$A$3:$AI$823,13,FALSE)))","v":-1763.81},{"$f":"IF($A54=\"\",\"\",IF(OR(VLOOKUP($A54,Economática!$A$3:$AI$823,14,FALSE)=0,VLOOKUP($A54,Economática!$A$3:$AI$823,14,FALSE)=\"-\"),1/0,VLOOKUP($A54,Economática!$A$3:$AI$823,14,FALSE)))","v":31.84},{"$f":"IF($A54=\"\",\"\",IF(OR(VLOOKUP($A54,Economática!$A$3:$AI$823,15,FALSE)=0,VLOOKUP($A54,Economática!$A$3:$AI$823,15,FALSE)=\"-\"),1/0,VLOOKUP($A54,Economática!$A$3:$AI$823,15,FALSE)))","v":2851.4},{"$f":"IF($A54=\"\",\"\",IF(OR(VLOOKUP($A54,Economática!$A$3:$AI$823,16,FALSE)=0,VLOOKUP($A54,Economática!$A$3:$AI$823,16,FALSE)=\"-\"),1/0,VLOOKUP($A54,Economática!$A$3:$AI$823,16,FALSE)))","v":1230.24},{"$f":"IF($A54=\"\",\"\",IF(OR(VLOOKUP($A54,Economática!$A$3:$AI$823,17,FALSE)=0,VLOOKUP($A54,Economática!$A$3:$AI$823,17,FALSE)=\"-\"),1/0,VLOOKUP($A54,Economática!$A$3:$AI$823,17,FALSE)))","v":13262.38},{"$f":"IF($A54=\"\",\"\",IF(OR(VLOOKUP($A54,Economática!$A$3:$AI$823,18,FALSE)=0,VLOOKUP($A54,Economática!$A$3:$AI$823,18,FALSE)=\"-\"),1/0,VLOOKUP($A54,Economática!$A$3:$AI$823,18,FALSE)))","v":-1763.81},{"$f":"IF($A54=\"\",\"\",IF(OR(VLOOKUP($A54,Economática!$A$3:$AI$823,19,FALSE)=0,VLOOKUP($A54,Economática!$A$3:$AI$823,19,FALSE)=\"-\"),1/0,VLOOKUP($A54,Economática!$A$3:$AI$823,19,FALSE)))","v":13262.38},{"$f":"IF($A54=\"\",\"\",VLOOKUP($A54,Economática!$A$3:$AI$823,20,FALSE)/E54)","v":9.8048548239952567},41.062778253393013,0.9220028846165963,3.8613524299560109,{"$f":"IF($A54=\"\",\"\",IF(OR(VLOOKUP($A54,Economática!$A$3:$AI$823,21,FALSE)/100=0,VLOOKUP($A54,Economática!$A$3:$AI$823,21,FALSE)/100=\"-\"),1/0,VLOOKUP($A54,Economática!$A$3:$AI$823,21,FALSE)/100))","v":0.31220599999999998},{"$f":"IF($A54=\"\",\"\",IF(OR(VLOOKUP($A54,Economática!$A$3:$AI$823,22,FALSE)/100=0,VLOOKUP($A54,Economática!$A$3:$AI$823,22,FALSE)/100=\"-\"),1/0,VLOOKUP($A54,Economática!$A$3:$AI$823,22,FALSE)/100))","v":0.84389399999999992},{"$f":"IF($A54=\"\",\"\",IF(OR(VLOOKUP($A54,Economática!$A$3:$AI$823,23,FALSE)=0,VLOOKUP($A54,Economática!$A$3:$AI$823,23,FALSE)=\"-\"),1/0,VLOOKUP($A54,Economática!$A$3:$AI$823,23,FALSE)))","v":6744.2},{"$f":"IF($A54=\"\",\"\",IF(OR(VLOOKUP($A54,Economática!$A$3:$AI$823,24,FALSE)=0,VLOOKUP($A54,Economática!$A$3:$AI$823,24,FALSE)=\"-\"),1/0,VLOOKUP($A54,Economática!$A$3:$AI$823,24,FALSE)))","v":19990.400000000001},{"$f":"IF($A54=\"\",\"\",IF(OR(VLOOKUP($A54,Economática!$A$3:$AI$823,25,FALSE)=0,VLOOKUP($A54,Economática!$A$3:$AI$823,25,FALSE)=\"-\"),1/0,VLOOKUP($A54,Economática!$A$3:$AI$823,25,FALSE)))","v":19990.400000000001},{"$f":"IF($A54=\"\",\"\",IF(ISERROR((F54+VLOOKUP($A54,Economática!$A$3:$AI$823,26,FALSE))/Y54),(F54+VLOOKUP($A54,Economática!$A$3:$AI$823,26,FALSE))/Y54,(F54+VLOOKUP($A54,Economática!$A$3:$AI$823,26,FALSE))/Y54))","v":4.8626324135585079},{"$f":"IF($A54=\"\",\"\",IF(OR(-VLOOKUP($A54,Economática!$A$3:$AI$823,27,FALSE)=0,-VLOOKUP($A54,Economática!$A$3:$AI$823,27,FALSE)=\"-\"),1/0,-VLOOKUP($A54,Economática!$A$3:$AI$823,27,FALSE)))","v":1.58},3.1637731158179244E-5,{"$f":"IF($A54=\"\",\"\",IF(OR(VLOOKUP($A54,Economática!$A$3:$AI$823,28,FALSE)=0,VLOOKUP($A54,Economática!$A$3:$AI$823,28,FALSE)=\"-\"),1/0,VLOOKUP($A54,Economática!$A$3:$AI$823,28,FALSE)))","v":-2.8},{"$f":"IF($A54=\"\",\"\",IF(OR(VLOOKUP($A54,Economática!$A$3:$AI$823,29,FALSE)=0,VLOOKUP($A54,Economática!$A$3:$AI$823,29,FALSE)=\"-\"),1/0,VLOOKUP($A54,Economática!$A$3:$AI$823,29,FALSE)))","v":66.8},{"$f":"IF($A54=\"\",\"\",IF(OR(VLOOKUP($A54,Economática!$A$3:$AI$823,30,FALSE)/E54=0,VLOOKUP($A54,Economática!$A$3:$AI$823,30,FALSE)/E54=\"-\",VLOOKUP($A54,Economática!$A$3:$AI$823,30,FALSE)/E54<33.33%,VLOOKUP($A54,Economática!$A$3:$AI$823,30,FALSE)/E54>100%),1/0,VLOOKUP($A54,Economática!$A$3:$AI$823,30,FALSE)/E54))","v":0.80369116849051547},"ELET6",{"$f":"IF($A54=\"\",\"\",IF(OR(VLOOKUP($A54,Economática!$A$3:$AI$823,25,FALSE)=0,VLOOKUP($A54,Economática!$A$3:$AI$823,25,FALSE)=\"-\"),1/0,VLOOKUP($A54,Economática!$A$3:$AI$823,25,FALSE)))","v":19990.400000000001},{"$f":"CONCATENATE(Economática!B56,\" \",Economática!C56)","v":"Eletrobras PNB"}]
[{"$f":"IF(Economática!AG57=\"\",\"\",Economática!AG57)","v":"ENGI11"},{"$f":"IF($A55=\"\",\"\",VLOOKUP(VLOOKUP($A55,Economática!$A$3:$AI$823,6,FALSE),Correção!$B$16:$C$36,2,FALSE))","v":"Energia Elétrica"},{"$f":"IF(Economática!B57=\"\",\"\",Economática!B57)","v":"Energisa"},{"$f":"IF($A55=\"\",\"\",IF(OR(VLOOKUP($A55,Economática!$A$3:$AI$823,8,FALSE)=0,VLOOKUP($A55,Economática!$A$3:$AI$823,8,FALSE)=\"-\"),1/0,VLOOKUP($A55,Economática!$A$3:$AI$823,8,FALSE)))","v":40.549999999999997},{"$f":"IF(A55=\"\",\"\",IF(ISERROR(VLOOKUP(A55,Correção!$B$2:$G$13,9,FALSE)),VLOOKUP($A55,Economática!$A$3:$AI$823,9,FALSE),VLOOKUP(A55,Correção!$B$2:$G$13,9,FALSE)))","v":1814.5619999999999},{"$f":"IF($A55=\"\",\"\",Economática!G57)","v":18303.71},{"$f":"IF($A55=\"\",\"\",IF(OR(VLOOKUP($A55,Economática!$A$3:$AI$823,10,FALSE)=0,VLOOKUP($A55,Economática!$A$3:$AI$823,10,FALSE)=\"-\"),1/0,VLOOKUP($A55,Economática!$A$3:$AI$823,10,FALSE)))","v":5388.14},{"$f":"IF($A55=\"\",\"\",IF(OR(VLOOKUP($A55,Economática!$A$3:$AI$823,11,FALSE)=0,VLOOKUP($A55,Economática!$A$3:$AI$823,11,FALSE)=\"-\"),1/0,VLOOKUP($A55,Economática!$A$3:$AI$823,11,FALSE)))","v":13637.15},{"$f":"IF($A55=\"\",\"\",IF(OR(VLOOKUP($A55,Economática!$A$3:$AI$823,12,FALSE)=0,VLOOKUP($A55,Economática!$A$3:$AI$823,12,FALSE)=\"-\"),1/0,VLOOKUP($A55,Economática!$A$3:$AI$823,12,FALSE)))","v":15787.58},{"$f":"IF($A55=\"\",\"\",IF(OR(VLOOKUP($A55,Economática!$A$3:$AI$823,13,FALSE)=0,VLOOKUP($A55,Economática!$A$3:$AI$823,13,FALSE)=\"-\"),1/0,VLOOKUP($A55,Economática!$A$3:$AI$823,13,FALSE)))","v":558.61},{"$f":"IF($A55=\"\",\"\",IF(OR(VLOOKUP($A55,Economática!$A$3:$AI$823,14,FALSE)=0,VLOOKUP($A55,Economática!$A$3:$AI$823,14,FALSE)=\"-\"),1/0,VLOOKUP($A55,Economática!$A$3:$AI$823,14,FALSE)))","v":131.04},{"$f":"IF($A55=\"\",\"\",IF(OR(VLOOKUP($A55,Economática!$A$3:$AI$823,15,FALSE)=0,VLOOKUP($A55,Economática!$A$3:$AI$823,15,FALSE)=\"-\"),1/0,VLOOKUP($A55,Economática!$A$3:$AI$823,15,FALSE)))","v":232.2},{"$f":"IF($A55=\"\",\"\",IF(OR(VLOOKUP($A55,Economática!$A$3:$AI$823,16,FALSE)=0,VLOOKUP($A55,Economática!$A$3:$AI$823,16,FALSE)=\"-\"),1/0,VLOOKUP($A55,Economática!$A$3:$AI$823,16,FALSE)))","v":474.68},{"$f":"IF($A55=\"\",\"\",IF(OR(VLOOKUP($A55,Economática!$A$3:$AI$823,17,FALSE)=0,VLOOKUP($A55,Economática!$A$3:$AI$823,17,FALSE)=\"-\"),1/0,VLOOKUP($A55,Economática!$A$3:$AI$823,17,FALSE)))","v":1148.43},{"$f":"IF($A55=\"\",\"\",IF(OR(VLOOKUP($A55,Economática!$A$3:$AI$823,18,FALSE)=0,VLOOKUP($A55,Economática!$A$3:$AI$823,18,FALSE)=\"-\"),1/0,VLOOKUP($A55,Economática!$A$3:$AI$823,18,FALSE)))","v":558.61},{"$f":"IF($A55=\"\",\"\",IF(OR(VLOOKUP($A55,Economática!$A$3:$AI$823,19,FALSE)=0,VLOOKUP($A55,Economática!$A$3:$AI$823,19,FALSE)=\"-\"),1/0,VLOOKUP($A55,Economática!$A$3:$AI$823,19,FALSE)))","v":1148.43},{"$f":"IF($A55=\"\",\"\",VLOOKUP($A55,Economática!$A$3:$AI$823,20,FALSE)/E55)","v":0.63289653370896126},2.9693887560744692,13.656009142301421,64.070504166557811,{"$f":"IF($A55=\"\",\"\",IF(OR(VLOOKUP($A55,Economática!$A$3:$AI$823,21,FALSE)/100=0,VLOOKUP($A55,Economática!$A$3:$AI$823,21,FALSE)/100=\"-\"),1/0,VLOOKUP($A55,Economática!$A$3:$AI$823,21,FALSE)/100))","v":0.24656},{"$f":"IF($A55=\"\",\"\",IF(OR(VLOOKUP($A55,Economática!$A$3:$AI$823,22,FALSE)/100=0,VLOOKUP($A55,Economática!$A$3:$AI$823,22,FALSE)/100=\"-\"),1/0,VLOOKUP($A55,Economática!$A$3:$AI$823,22,FALSE)/100))","v":1.8938929999999998},{"$f":"IF($A55=\"\",\"\",IF(OR(VLOOKUP($A55,Economática!$A$3:$AI$823,23,FALSE)=0,VLOOKUP($A55,Economática!$A$3:$AI$823,23,FALSE)=\"-\"),1/0,VLOOKUP($A55,Economática!$A$3:$AI$823,23,FALSE)))","v":2052.6},{"$f":"IF($A55=\"\",\"\",IF(OR(VLOOKUP($A55,Economática!$A$3:$AI$823,24,FALSE)=0,VLOOKUP($A55,Economática!$A$3:$AI$823,24,FALSE)=\"-\"),1/0,VLOOKUP($A55,Economática!$A$3:$AI$823,24,FALSE)))","v":3817.6},{"$f":"IF($A55=\"\",\"\",IF(OR(VLOOKUP($A55,Economática!$A$3:$AI$823,25,FALSE)=0,VLOOKUP($A55,Economática!$A$3:$AI$823,25,FALSE)=\"-\"),1/0,VLOOKUP($A55,Economática!$A$3:$AI$823,25,FALSE)))","v":3817.6},{"$f":"IF($A55=\"\",\"\",IF(ISERROR((F55+VLOOKUP($A55,Economática!$A$3:$AI$823,26,FALSE))/Y55),(F55+VLOOKUP($A55,Economática!$A$3:$AI$823,26,FALSE))/Y55,(F55+VLOOKUP($A55,Economática!$A$3:$AI$823,26,FALSE))/Y55))","v":7.7947095033528919},{"$f":"IF($A55=\"\",\"\",IF(OR(-VLOOKUP($A55,Economática!$A$3:$AI$823,27,FALSE)=0,-VLOOKUP($A55,Economática!$A$3:$AI$823,27,FALSE)=\"-\"),1/0,-VLOOKUP($A55,Economática!$A$3:$AI$823,27,FALSE)))","v":269.39},1.4717781258553594E-2,{"$f":"IF($A55=\"\",\"\",IF(OR(VLOOKUP($A55,Economática!$A$3:$AI$823,28,FALSE)=0,VLOOKUP($A55,Economática!$A$3:$AI$823,28,FALSE)=\"-\"),1/0,VLOOKUP($A55,Economática!$A$3:$AI$823,28,FALSE)))","v":1},{"$f":"IF($A55=\"\",\"\",IF(OR(VLOOKUP($A55,Economática!$A$3:$AI$823,29,FALSE)=0,VLOOKUP($A55,Economática!$A$3:$AI$823,29,FALSE)=\"-\"),1/0,VLOOKUP($A55,Economática!$A$3:$AI$823,29,FALSE)))","v":55.8},{"$f":"IF($A55=\"\",\"\",IF(OR(VLOOKUP($A55,Economática!$A$3:$AI$823,30,FALSE)/E55=0,VLOOKUP($A55,Economática!$A$3:$AI$823,30,FALSE)/E55=\"-\",VLOOKUP($A55,Economática!$A$3:$AI$823,30,FALSE)/E55<33.33%,VLOOKUP($A55,Economática!$A$3:$AI$823,30,FALSE)/E55>100%),1/0,VLOOKUP($A55,Economática!$A$3:$AI$823,30,FALSE)/E55))","v":0.41662946760705893},"ENGI11",{"$f":"IF($A55=\"\",\"\",IF(OR(VLOOKUP($A55,Economática!$A$3:$AI$823,25,FALSE)=0,VLOOKUP($A55,Economática!$A$3:$AI$823,25,FALSE)=\"-\"),1/0,VLOOKUP($A55,Economática!$A$3:$AI$823,25,FALSE)))","v":3817.6},{"$f":"CONCATENATE(Economática!B57,\" \",Economática!C57)","v":"Energisa UNT N2"}]
[{"$f":"IF(Economática!AG58=\"\",\"\",Economática!AG58)","v":"TAEE11"},{"$f":"IF($A56=\"\",\"\",VLOOKUP(VLOOKUP($A56,Economática!$A$3:$AI$823,6,FALSE),Correção!$B$16:$C$36,2,FALSE))","v":"Energia Elétrica"},{"$f":"IF(Economática!B58=\"\",\"\",Economática!B58)","v":"Taesa"},{"$f":"IF($A56=\"\",\"\",IF(OR(VLOOKUP($A56,Economática!$A$3:$AI$823,8,FALSE)=0,VLOOKUP($A56,Economática!$A$3:$AI$823,8,FALSE)=\"-\"),1/0,VLOOKUP($A56,Economática!$A$3:$AI$823,8,FALSE)))","v":24.8},{"$f":"IF(A56=\"\",\"\",IF(ISERROR(VLOOKUP(A56,Correção!$B$2:$G$13,9,FALSE)),VLOOKUP($A56,Economática!$A$3:$AI$823,9,FALSE),VLOOKUP(A56,Correção!$B$2:$G$13,9,FALSE)))","v":1033.4970000000001},{"$f":"IF($A56=\"\",\"\",Economática!G58)","v":8931.1},{"$f":"IF($A56=\"\",\"\",IF(OR(VLOOKUP($A56,Economática!$A$3:$AI$823,10,FALSE)=0,VLOOKUP($A56,Economática!$A$3:$AI$823,10,FALSE)=\"-\"),1/0,VLOOKUP($A56,Economática!$A$3:$AI$823,10,FALSE)))","v":4572.05},{"$f":"IF($A56=\"\",\"\",IF(OR(VLOOKUP($A56,Economática!$A$3:$AI$823,11,FALSE)=0,VLOOKUP($A56,Economática!$A$3:$AI$823,11,FALSE)=\"-\"),1/0,VLOOKUP($A56,Economática!$A$3:$AI$823,11,FALSE)))","v":1077.06},{"$f":"IF($A56=\"\",\"\",IF(OR(VLOOKUP($A56,Economática!$A$3:$AI$823,12,FALSE)=0,VLOOKUP($A56,Economática!$A$3:$AI$823,12,FALSE)=\"-\"),1/0,VLOOKUP($A56,Economática!$A$3:$AI$823,12,FALSE)))","v":1635.24},{"$f":"IF($A56=\"\",\"\",IF(OR(VLOOKUP($A56,Economática!$A$3:$AI$823,13,FALSE)=0,VLOOKUP($A56,Economática!$A$3:$AI$823,13,FALSE)=\"-\"),1/0,VLOOKUP($A56,Economática!$A$3:$AI$823,13,FALSE)))","v":648.29},{"$f":"IF($A56=\"\",\"\",IF(OR(VLOOKUP($A56,Economática!$A$3:$AI$823,14,FALSE)=0,VLOOKUP($A56,Economática!$A$3:$AI$823,14,FALSE)=\"-\"),1/0,VLOOKUP($A56,Economática!$A$3:$AI$823,14,FALSE)))","v":217.28},{"$f":"IF($A56=\"\",\"\",IF(OR(VLOOKUP($A56,Economática!$A$3:$AI$823,15,FALSE)=0,VLOOKUP($A56,Economática!$A$3:$AI$823,15,FALSE)=\"-\"),1/0,VLOOKUP($A56,Economática!$A$3:$AI$823,15,FALSE)))","v":476.53},{"$f":"IF($A56=\"\",\"\",IF(OR(VLOOKUP($A56,Economática!$A$3:$AI$823,16,FALSE)=0,VLOOKUP($A56,Economática!$A$3:$AI$823,16,FALSE)=\"-\"),1/0,VLOOKUP($A56,Economática!$A$3:$AI$823,16,FALSE)))","v":744.25},{"$f":"IF($A56=\"\",\"\",IF(OR(VLOOKUP($A56,Economática!$A$3:$AI$823,17,FALSE)=0,VLOOKUP($A56,Economática!$A$3:$AI$823,17,FALSE)=\"-\"),1/0,VLOOKUP($A56,Economática!$A$3:$AI$823,17,FALSE)))","v":1071.31},{"$f":"IF($A56=\"\",\"\",IF(OR(VLOOKUP($A56,Economática!$A$3:$AI$823,18,FALSE)=0,VLOOKUP($A56,Economática!$A$3:$AI$823,18,FALSE)=\"-\"),1/0,VLOOKUP($A56,Economática!$A$3:$AI$823,18,FALSE)))","v":648.29},{"$f":"IF($A56=\"\",\"\",IF(OR(VLOOKUP($A56,Economática!$A$3:$AI$823,19,FALSE)=0,VLOOKUP($A56,Economática!$A$3:$AI$823,19,FALSE)=\"-\"),1/0,VLOOKUP($A56,Economática!$A$3:$AI$823,19,FALSE)))","v":1071.31},{"$f":"IF($A56=\"\",\"\",VLOOKUP($A56,Economática!$A$3:$AI$823,20,FALSE)/E56)","v":1.036587430829504},4.4238638331799702,5.6059591649260181,23.924658222176589,{"$f":"IF($A56=\"\",\"\",IF(OR(VLOOKUP($A56,Economática!$A$3:$AI$823,21,FALSE)/100=0,VLOOKUP($A56,Economática!$A$3:$AI$823,21,FALSE)/100=\"-\"),1/0,VLOOKUP($A56,Economática!$A$3:$AI$823,21,FALSE)/100))","v":0.246416},{"$f":"IF($A56=\"\",\"\",IF(OR(VLOOKUP($A56,Economática!$A$3:$AI$823,22,FALSE)/100=0,VLOOKUP($A56,Economática!$A$3:$AI$823,22,FALSE)/100=\"-\"),1/0,VLOOKUP($A56,Economática!$A$3:$AI$823,22,FALSE)/100))","v":0.71720200000000001},{"$f":"IF($A56=\"\",\"\",IF(OR(VLOOKUP($A56,Economática!$A$3:$AI$823,23,FALSE)=0,VLOOKUP($A56,Economática!$A$3:$AI$823,23,FALSE)=\"-\"),1/0,VLOOKUP($A56,Economática!$A$3:$AI$823,23,FALSE)))","v":930.2},{"$f":"IF($A56=\"\",\"\",IF(OR(VLOOKUP($A56,Economática!$A$3:$AI$823,24,FALSE)=0,VLOOKUP($A56,Economática!$A$3:$AI$823,24,FALSE)=\"-\"),1/0,VLOOKUP($A56,Economática!$A$3:$AI$823,24,FALSE)))","v":1436.3},{"$f":"IF($A56=\"\",\"\",IF(OR(VLOOKUP($A56,Economática!$A$3:$AI$823,25,FALSE)=0,VLOOKUP($A56,Economática!$A$3:$AI$823,25,FALSE)=\"-\"),1/0,VLOOKUP($A56,Economática!$A$3:$AI$823,25,FALSE)))","v":1436.3},{"$f":"IF($A56=\"\",\"\",IF(ISERROR((F56+VLOOKUP($A56,Economática!$A$3:$AI$823,26,FALSE))/Y56),(F56+VLOOKUP($A56,Economática!$A$3:$AI$823,26,FALSE))/Y56,(F56+VLOOKUP($A56,Economática!$A$3:$AI$823,26,FALSE))/Y56))","v":8.5011390378054728},{"$f":"IF($A56=\"\",\"\",IF(OR(-VLOOKUP($A56,Economática!$A$3:$AI$823,27,FALSE)=0,-VLOOKUP($A56,Economática!$A$3:$AI$823,27,FALSE)=\"-\"),1/0,-VLOOKUP($A56,Economática!$A$3:$AI$823,27,FALSE)))","v":960.2},0.10751195261501943,{"$f":"IF($A56=\"\",\"\",IF(OR(VLOOKUP($A56,Economática!$A$3:$AI$823,28,FALSE)=0,VLOOKUP($A56,Economática!$A$3:$AI$823,28,FALSE)=\"-\"),1/0,VLOOKUP($A56,Economática!$A$3:$AI$823,28,FALSE)))","v":-0.6},{"$f":"IF($A56=\"\",\"\",IF(OR(VLOOKUP($A56,Economática!$A$3:$AI$823,29,FALSE)=0,VLOOKUP($A56,Economática!$A$3:$AI$823,29,FALSE)=\"-\"),1/0,VLOOKUP($A56,Economática!$A$3:$AI$823,29,FALSE)))","v":32.5},{"$f":"IF($A56=\"\",\"\",IF(OR(VLOOKUP($A56,Economática!$A$3:$AI$823,30,FALSE)/E56=0,VLOOKUP($A56,Economática!$A$3:$AI$823,30,FALSE)/E56=\"-\",VLOOKUP($A56,Economática!$A$3:$AI$823,30,FALSE)/E56<33.33%,VLOOKUP($A56,Economática!$A$3:$AI$823,30,FALSE)/E56>100%),1/0,VLOOKUP($A56,Economática!$A$3:$AI$823,30,FALSE)/E56))","v":0.57155463441113041},"TAEE11",{"$f":"IF($A56=\"\",\"\",IF(OR(VLOOKUP($A56,Economática!$A$3:$AI$823,25,FALSE)=0,VLOOKUP($A56,Economática!$A$3:$AI$823,25,FALSE)=\"-\"),1/0,VLOOKUP($A56,Economática!$A$3:$AI$823,25,FALSE)))","v":1436.3},{"$f":"CONCATENATE(Economática!B58,\" \",Economática!C58)","v":"Taesa UNT N2"}]
[{"$f":"IF(Economática!AG59=\"\",\"\",Economática!AG59)","v":"EKTR4"},{"$f":"IF($A57=\"\",\"\",VLOOKUP(VLOOKUP($A57,Economática!$A$3:$AI$823,6,FALSE),Correção!$B$16:$C$36,2,FALSE))","v":"Energia Elétrica"},{"$f":"IF(Economática!B59=\"\",\"\",Economática!B59)","v":"Elektro"},{"$f":"IF($A57=\"\",\"\",IF(OR(VLOOKUP($A57,Economática!$A$3:$AI$823,8,FALSE)=0,VLOOKUP($A57,Economática!$A$3:$AI$823,8,FALSE)=\"-\"),1/0,VLOOKUP($A57,Economática!$A$3:$AI$823,8,FALSE)))","v":19},{"$f":"IF(A57=\"\",\"\",IF(ISERROR(VLOOKUP(A57,Correção!$B$2:$G$13,9,FALSE)),VLOOKUP($A57,Economática!$A$3:$AI$823,9,FALSE),VLOOKUP(A57,Correção!$B$2:$G$13,9,FALSE)))","v":193.75899999999999},{"$f":"IF($A57=\"\",\"\",Economática!G59)","v":3607.92},{"$f":"IF($A57=\"\",\"\",IF(OR(VLOOKUP($A57,Economática!$A$3:$AI$823,10,FALSE)=0,VLOOKUP($A57,Economática!$A$3:$AI$823,10,FALSE)=\"-\"),1/0,VLOOKUP($A57,Economática!$A$3:$AI$823,10,FALSE)))","v":2293.83},{"$f":"IF($A57=\"\",\"\",IF(OR(VLOOKUP($A57,Economática!$A$3:$AI$823,11,FALSE)=0,VLOOKUP($A57,Economática!$A$3:$AI$823,11,FALSE)=\"-\"),1/0,VLOOKUP($A57,Economática!$A$3:$AI$823,11,FALSE)))","v":5811.5},{"$f":"IF($A57=\"\",\"\",IF(OR(VLOOKUP($A57,Economática!$A$3:$AI$823,12,FALSE)=0,VLOOKUP($A57,Economática!$A$3:$AI$823,12,FALSE)=\"-\"),1/0,VLOOKUP($A57,Economática!$A$3:$AI$823,12,FALSE)))","v":6249.36},{"$f":"IF($A57=\"\",\"\",IF(OR(VLOOKUP($A57,Economática!$A$3:$AI$823,13,FALSE)=0,VLOOKUP($A57,Economática!$A$3:$AI$823,13,FALSE)=\"-\"),1/0,VLOOKUP($A57,Economática!$A$3:$AI$823,13,FALSE)))","v":374.43},{"$f":"IF($A57=\"\",\"\",IF(OR(VLOOKUP($A57,Economática!$A$3:$AI$823,14,FALSE)=0,VLOOKUP($A57,Economática!$A$3:$AI$823,14,FALSE)=\"-\"),1/0,VLOOKUP($A57,Economática!$A$3:$AI$823,14,FALSE)))","v":72.44},{"$f":"IF($A57=\"\",\"\",IF(OR(VLOOKUP($A57,Economática!$A$3:$AI$823,15,FALSE)=0,VLOOKUP($A57,Economática!$A$3:$AI$823,15,FALSE)=\"-\"),1/0,VLOOKUP($A57,Economática!$A$3:$AI$823,15,FALSE)))","v":145.72},{"$f":"IF($A57=\"\",\"\",IF(OR(VLOOKUP($A57,Economática!$A$3:$AI$823,16,FALSE)=0,VLOOKUP($A57,Economática!$A$3:$AI$823,16,FALSE)=\"-\"),1/0,VLOOKUP($A57,Economática!$A$3:$AI$823,16,FALSE)))","v":233.59},{"$f":"IF($A57=\"\",\"\",IF(OR(VLOOKUP($A57,Economática!$A$3:$AI$823,17,FALSE)=0,VLOOKUP($A57,Economática!$A$3:$AI$823,17,FALSE)=\"-\"),1/0,VLOOKUP($A57,Economática!$A$3:$AI$823,17,FALSE)))","v":414.33},{"$f":"IF($A57=\"\",\"\",IF(OR(VLOOKUP($A57,Economática!$A$3:$AI$823,18,FALSE)=0,VLOOKUP($A57,Economática!$A$3:$AI$823,18,FALSE)=\"-\"),1/0,VLOOKUP($A57,Economática!$A$3:$AI$823,18,FALSE)))","v":374.43},{"$f":"IF($A57=\"\",\"\",IF(OR(VLOOKUP($A57,Economática!$A$3:$AI$823,19,FALSE)=0,VLOOKUP($A57,Economática!$A$3:$AI$823,19,FALSE)=\"-\"),1/0,VLOOKUP($A57,Economática!$A$3:$AI$823,19,FALSE)))","v":414.33},{"$f":"IF($A57=\"\",\"\",VLOOKUP($A57,Economática!$A$3:$AI$823,20,FALSE)/E57)","v":2.1383780882436429},11.838572659850639,1.6049232070380106,8.8852388192986265,{"$f":"IF($A57=\"\",\"\",IF(OR(VLOOKUP($A57,Economática!$A$3:$AI$823,21,FALSE)/100=0,VLOOKUP($A57,Economática!$A$3:$AI$823,21,FALSE)/100=\"-\"),1/0,VLOOKUP($A57,Economática!$A$3:$AI$823,21,FALSE)/100))","v":0.20407399999999998},{"$f":"IF($A57=\"\",\"\",IF(OR(VLOOKUP($A57,Economática!$A$3:$AI$823,22,FALSE)/100=0,VLOOKUP($A57,Economática!$A$3:$AI$823,22,FALSE)/100=\"-\"),1/0,VLOOKUP($A57,Economática!$A$3:$AI$823,22,FALSE)/100))","v":1.3231970000000002},{"$f":"IF($A57=\"\",\"\",IF(OR(VLOOKUP($A57,Economática!$A$3:$AI$823,23,FALSE)=0,VLOOKUP($A57,Economática!$A$3:$AI$823,23,FALSE)=\"-\"),1/0,VLOOKUP($A57,Economática!$A$3:$AI$823,23,FALSE)))","v":873},{"$f":"IF($A57=\"\",\"\",IF(OR(VLOOKUP($A57,Economática!$A$3:$AI$823,24,FALSE)=0,VLOOKUP($A57,Economática!$A$3:$AI$823,24,FALSE)=\"-\"),1/0,VLOOKUP($A57,Economática!$A$3:$AI$823,24,FALSE)))","v":928.5},{"$f":"IF($A57=\"\",\"\",IF(OR(VLOOKUP($A57,Economática!$A$3:$AI$823,25,FALSE)=0,VLOOKUP($A57,Economática!$A$3:$AI$823,25,FALSE)=\"-\"),1/0,VLOOKUP($A57,Economática!$A$3:$AI$823,25,FALSE)))","v":928.5},{"$f":"IF($A57=\"\",\"\",IF(ISERROR((F57+VLOOKUP($A57,Economática!$A$3:$AI$823,26,FALSE))/Y57),(F57+VLOOKUP($A57,Economática!$A$3:$AI$823,26,FALSE))/Y57,(F57+VLOOKUP($A57,Economática!$A$3:$AI$823,26,FALSE))/Y57))","v":7.1546623586429732},{"$f":"IF($A57=\"\",\"\",IF(OR(-VLOOKUP($A57,Economática!$A$3:$AI$823,27,FALSE)=0,-VLOOKUP($A57,Economática!$A$3:$AI$823,27,FALSE)=\"-\"),1/0,-VLOOKUP($A57,Economática!$A$3:$AI$823,27,FALSE)))","v":{"$error":"#DIV/0!"}},{"$error":"#DIV/0!"},{"$f":"IF($A57=\"\",\"\",IF(OR(VLOOKUP($A57,Economática!$A$3:$AI$823,28,FALSE)=0,VLOOKUP($A57,Economática!$A$3:$AI$823,28,FALSE)=\"-\"),1/0,VLOOKUP($A57,Economática!$A$3:$AI$823,28,FALSE)))","v":{"$error":"#DIV/0!"}},{"$f":"IF($A57=\"\",\"\",IF(OR(VLOOKUP($A57,Economática!$A$3:$AI$823,29,FALSE)=0,VLOOKUP($A57,Economática!$A$3:$AI$823,29,FALSE)=\"-\"),1/0,VLOOKUP($A57,Economática!$A$3:$AI$823,29,FALSE)))","v":-13.7},{"$f":"IF($A57=\"\",\"\",IF(OR(VLOOKUP($A57,Economática!$A$3:$AI$823,30,FALSE)/E57=0,VLOOKUP($A57,Economática!$A$3:$AI$823,30,FALSE)/E57=\"-\",VLOOKUP($A57,Economática!$A$3:$AI$823,30,FALSE)/E57<33.33%,VLOOKUP($A57,Economática!$A$3:$AI$823,30,FALSE)/E57>100%),1/0,VLOOKUP($A57,Economática!$A$3:$AI$823,30,FALSE)/E57))","v":0.47430054861967708},"EKTR4",{"$f":"IF($A57=\"\",\"\",IF(OR(VLOOKUP($A57,Economática!$A$3:$AI$823,25,FALSE)=0,VLOOKUP($A57,Economática!$A$3:$AI$823,25,FALSE)=\"-\"),1/0,VLOOKUP($A57,Economática!$A$3:$AI$823,25,FALSE)))","v":928.5},{"$f":"CONCATENATE(Economática!B59,\" \",Economática!C59)","v":"Elektro PN"}]
[{"$f":"IF(Economática!AG60=\"\",\"\",Economática!AG60)","v":"EQTL3"},{"$f":"IF($A58=\"\",\"\",VLOOKUP(VLOOKUP($A58,Economática!$A$3:$AI$823,6,FALSE),Correção!$B$16:$C$36,2,FALSE))","v":"Energia Elétrica"},{"$f":"IF(Economática!B60=\"\",\"\",Economática!B60)","v":"Equatorial"},{"$f":"IF($A58=\"\",\"\",IF(OR(VLOOKUP($A58,Economática!$A$3:$AI$823,8,FALSE)=0,VLOOKUP($A58,Economática!$A$3:$AI$823,8,FALSE)=\"-\"),1/0,VLOOKUP($A58,Economática!$A$3:$AI$823,8,FALSE)))","v":80},{"$f":"IF(A58=\"\",\"\",IF(ISERROR(VLOOKUP(A58,Correção!$B$2:$G$13,9,FALSE)),VLOOKUP($A58,Economática!$A$3:$AI$823,9,FALSE),VLOOKUP(A58,Correção!$B$2:$G$13,9,FALSE)))","v":201.102},{"$f":"IF($A58=\"\",\"\",Economática!G60)","v":16088.18},{"$f":"IF($A58=\"\",\"\",IF(OR(VLOOKUP($A58,Economática!$A$3:$AI$823,10,FALSE)=0,VLOOKUP($A58,Economática!$A$3:$AI$823,10,FALSE)=\"-\"),1/0,VLOOKUP($A58,Economática!$A$3:$AI$823,10,FALSE)))","v":5596.03},{"$f":"IF($A58=\"\",\"\",IF(OR(VLOOKUP($A58,Economática!$A$3:$AI$823,11,FALSE)=0,VLOOKUP($A58,Economática!$A$3:$AI$823,11,FALSE)=\"-\"),1/0,VLOOKUP($A58,Economática!$A$3:$AI$823,11,FALSE)))","v":9071.42},{"$f":"IF($A58=\"\",\"\",IF(OR(VLOOKUP($A58,Economática!$A$3:$AI$823,12,FALSE)=0,VLOOKUP($A58,Economática!$A$3:$AI$823,12,FALSE)=\"-\"),1/0,VLOOKUP($A58,Economática!$A$3:$AI$823,12,FALSE)))","v":11252.63},{"$f":"IF($A58=\"\",\"\",IF(OR(VLOOKUP($A58,Economática!$A$3:$AI$823,13,FALSE)=0,VLOOKUP($A58,Economática!$A$3:$AI$823,13,FALSE)=\"-\"),1/0,VLOOKUP($A58,Economática!$A$3:$AI$823,13,FALSE)))","v":997.26},{"$f":"IF($A58=\"\",\"\",IF(OR(VLOOKUP($A58,Economática!$A$3:$AI$823,14,FALSE)=0,VLOOKUP($A58,Economática!$A$3:$AI$823,14,FALSE)=\"-\"),1/0,VLOOKUP($A58,Economática!$A$3:$AI$823,14,FALSE)))","v":64.58},{"$f":"IF($A58=\"\",\"\",IF(OR(VLOOKUP($A58,Economática!$A$3:$AI$823,15,FALSE)=0,VLOOKUP($A58,Economática!$A$3:$AI$823,15,FALSE)=\"-\"),1/0,VLOOKUP($A58,Economática!$A$3:$AI$823,15,FALSE)))","v":185.68},{"$f":"IF($A58=\"\",\"\",IF(OR(VLOOKUP($A58,Economática!$A$3:$AI$823,16,FALSE)=0,VLOOKUP($A58,Economática!$A$3:$AI$823,16,FALSE)=\"-\"),1/0,VLOOKUP($A58,Economática!$A$3:$AI$823,16,FALSE)))","v":433.71},{"$f":"IF($A58=\"\",\"\",IF(OR(VLOOKUP($A58,Economática!$A$3:$AI$823,17,FALSE)=0,VLOOKUP($A58,Economática!$A$3:$AI$823,17,FALSE)=\"-\"),1/0,VLOOKUP($A58,Economática!$A$3:$AI$823,17,FALSE)))","v":917.94},{"$f":"IF($A58=\"\",\"\",IF(OR(VLOOKUP($A58,Economática!$A$3:$AI$823,18,FALSE)=0,VLOOKUP($A58,Economática!$A$3:$AI$823,18,FALSE)=\"-\"),1/0,VLOOKUP($A58,Economática!$A$3:$AI$823,18,FALSE)))","v":997.26},{"$f":"IF($A58=\"\",\"\",IF(OR(VLOOKUP($A58,Economática!$A$3:$AI$823,19,FALSE)=0,VLOOKUP($A58,Economática!$A$3:$AI$823,19,FALSE)=\"-\"),1/0,VLOOKUP($A58,Economática!$A$3:$AI$823,19,FALSE)))","v":917.94},{"$f":"IF($A58=\"\",\"\",VLOOKUP($A58,Economática!$A$3:$AI$823,20,FALSE)/E58)","v":4.5645493331742104},27.826824198665353,2.8749238299294322,17.526374272828289,{"$f":"IF($A58=\"\",\"\",IF(OR(VLOOKUP($A58,Economática!$A$3:$AI$823,21,FALSE)/100=0,VLOOKUP($A58,Economática!$A$3:$AI$823,21,FALSE)/100=\"-\"),1/0,VLOOKUP($A58,Economática!$A$3:$AI$823,21,FALSE)/100))","v":0.20199},{"$f":"IF($A58=\"\",\"\",IF(OR(VLOOKUP($A58,Economática!$A$3:$AI$823,22,FALSE)/100=0,VLOOKUP($A58,Economática!$A$3:$AI$823,22,FALSE)/100=\"-\"),1/0,VLOOKUP($A58,Economática!$A$3:$AI$823,22,FALSE)/100))","v":1.036521},{"$f":"IF($A58=\"\",\"\",IF(OR(VLOOKUP($A58,Economática!$A$3:$AI$823,23,FALSE)=0,VLOOKUP($A58,Economática!$A$3:$AI$823,23,FALSE)=\"-\"),1/0,VLOOKUP($A58,Economática!$A$3:$AI$823,23,FALSE)))","v":1797},{"$f":"IF($A58=\"\",\"\",IF(OR(VLOOKUP($A58,Economática!$A$3:$AI$823,24,FALSE)=0,VLOOKUP($A58,Economática!$A$3:$AI$823,24,FALSE)=\"-\"),1/0,VLOOKUP($A58,Economática!$A$3:$AI$823,24,FALSE)))","v":{"$error":"#DIV/0!"}},{"$f":"IF($A58=\"\",\"\",IF(OR(VLOOKUP($A58,Economática!$A$3:$AI$823,25,FALSE)=0,VLOOKUP($A58,Economática!$A$3:$AI$823,25,FALSE)=\"-\"),1/0,VLOOKUP($A58,Economática!$A$3:$AI$823,25,FALSE)))","v":{"$error":"#DIV/0!"}},{"$f":"IF($A58=\"\",\"\",IF(ISERROR((F58+VLOOKUP($A58,Economática!$A$3:$AI$823,26,FALSE))/Y58),(F58+VLOOKUP($A58,Economática!$A$3:$AI$823,26,FALSE))/Y58,(F58+VLOOKUP($A58,Economática!$A$3:$AI$823,26,FALSE))/Y58))","v":{"$error":"#DIV/0!"}},{"$f":"IF($A58=\"\",\"\",IF(OR(-VLOOKUP($A58,Economática!$A$3:$AI$823,27,FALSE)=0,-VLOOKUP($A58,Economática!$A$3:$AI$823,27,FALSE)=\"-\"),1/0,-VLOOKUP($A58,Economática!$A$3:$AI$823,27,FALSE)))","v":{"$error":"#VALUE!"}},{"$error":"#VALUE!"},{"$f":"IF($A58=\"\",\"\",IF(OR(VLOOKUP($A58,Economática!$A$3:$AI$823,28,FALSE)=0,VLOOKUP($A58,Economática!$A$3:$AI$823,28,FALSE)=\"-\"),1/0,VLOOKUP($A58,Economática!$A$3:$AI$823,28,FALSE)))","v":-2.6},{"$f":"IF($A58=\"\",\"\",IF(OR(VLOOKUP($A58,Economática!$A$3:$AI$823,29,FALSE)=0,VLOOKUP($A58,Economática!$A$3:$AI$823,29,FALSE)=\"-\"),1/0,VLOOKUP($A58,Economática!$A$3:$AI$823,29,FALSE)))","v":24},{"$f":"IF($A58=\"\",\"\",IF(OR(VLOOKUP($A58,Economática!$A$3:$AI$823,30,FALSE)/E58=0,VLOOKUP($A58,Economática!$A$3:$AI$823,30,FALSE)/E58=\"-\",VLOOKUP($A58,Economática!$A$3:$AI$823,30,FALSE)/E58<33.33%,VLOOKUP($A58,Economática!$A$3:$AI$823,30,FALSE)/E58>100%),1/0,VLOOKUP($A58,Economática!$A$3:$AI$823,30,FALSE)/E58))","v":0.98855307257013858},"EQTL3",{"$f":"IF($A58=\"\",\"\",IF(OR(VLOOKUP($A58,Economática!$A$3:$AI$823,25,FALSE)=0,VLOOKUP($A58,Economática!$A$3:$AI$823,25,FALSE)=\"-\"),1/0,VLOOKUP($A58,Economática!$A$3:$AI$823,25,FALSE)))","v":{"$error":"#DIV/0!"}},{"$f":"CONCATENATE(Economática!B60,\" \",Economática!C60)","v":"Equatorial ON"}]
[{"$f":"IF(Economática!AG61=\"\",\"\",Economática!AG61)","v":"CPFE3"},{"$f":"IF($A59=\"\",\"\",VLOOKUP(VLOOKUP($A59,Economática!$A$3:$AI$823,6,FALSE),Correção!$B$16:$C$36,2,FALSE))","v":"Energia Elétrica"},{"$f":"IF(Economática!B61=\"\",\"\",Economática!B61)","v":"CPFL Energia"},{"$f":"IF($A59=\"\",\"\",IF(OR(VLOOKUP($A59,Economática!$A$3:$AI$823,8,FALSE)=0,VLOOKUP($A59,Economática!$A$3:$AI$823,8,FALSE)=\"-\"),1/0,VLOOKUP($A59,Economática!$A$3:$AI$823,8,FALSE)))","v":30.48},{"$f":"IF(A59=\"\",\"\",IF(ISERROR(VLOOKUP(A59,Correção!$B$2:$G$13,9,FALSE)),VLOOKUP($A59,Economática!$A$3:$AI$823,9,FALSE),VLOOKUP(A59,Correção!$B$2:$G$13,9,FALSE)))","v":1017.915},{"$f":"IF($A59=\"\",\"\",Economática!G61)","v":31026.04},{"$f":"IF($A59=\"\",\"\",IF(OR(VLOOKUP($A59,Economática!$A$3:$AI$823,10,FALSE)=0,VLOOKUP($A59,Economática!$A$3:$AI$823,10,FALSE)=\"-\"),1/0,VLOOKUP($A59,Economática!$A$3:$AI$823,10,FALSE)))","v":10262.75},{"$f":"IF($A59=\"\",\"\",IF(OR(VLOOKUP($A59,Economática!$A$3:$AI$823,11,FALSE)=0,VLOOKUP($A59,Economática!$A$3:$AI$823,11,FALSE)=\"-\"),1/0,VLOOKUP($A59,Economática!$A$3:$AI$823,11,FALSE)))","v":26744.91},{"$f":"IF($A59=\"\",\"\",IF(OR(VLOOKUP($A59,Economática!$A$3:$AI$823,12,FALSE)=0,VLOOKUP($A59,Economática!$A$3:$AI$823,12,FALSE)=\"-\"),1/0,VLOOKUP($A59,Economática!$A$3:$AI$823,12,FALSE)))","v":28136.63},{"$f":"IF($A59=\"\",\"\",IF(OR(VLOOKUP($A59,Economática!$A$3:$AI$823,13,FALSE)=0,VLOOKUP($A59,Economática!$A$3:$AI$823,13,FALSE)=\"-\"),1/0,VLOOKUP($A59,Economática!$A$3:$AI$823,13,FALSE)))","v":1179.75},{"$f":"IF($A59=\"\",\"\",IF(OR(VLOOKUP($A59,Economática!$A$3:$AI$823,14,FALSE)=0,VLOOKUP($A59,Economática!$A$3:$AI$823,14,FALSE)=\"-\"),1/0,VLOOKUP($A59,Economática!$A$3:$AI$823,14,FALSE)))","v":443.78},{"$f":"IF($A59=\"\",\"\",IF(OR(VLOOKUP($A59,Economática!$A$3:$AI$823,15,FALSE)=0,VLOOKUP($A59,Economática!$A$3:$AI$823,15,FALSE)=\"-\"),1/0,VLOOKUP($A59,Economática!$A$3:$AI$823,15,FALSE)))","v":899.5},{"$f":"IF($A59=\"\",\"\",IF(OR(VLOOKUP($A59,Economática!$A$3:$AI$823,16,FALSE)=0,VLOOKUP($A59,Economática!$A$3:$AI$823,16,FALSE)=\"-\"),1/0,VLOOKUP($A59,Economática!$A$3:$AI$823,16,FALSE)))","v":1453.23},{"$f":"IF($A59=\"\",\"\",IF(OR(VLOOKUP($A59,Economática!$A$3:$AI$823,17,FALSE)=0,VLOOKUP($A59,Economática!$A$3:$AI$823,17,FALSE)=\"-\"),1/0,VLOOKUP($A59,Economática!$A$3:$AI$823,17,FALSE)))","v":2058.04},{"$f":"IF($A59=\"\",\"\",IF(OR(VLOOKUP($A59,Economática!$A$3:$AI$823,18,FALSE)=0,VLOOKUP($A59,Economática!$A$3:$AI$823,18,FALSE)=\"-\"),1/0,VLOOKUP($A59,Economática!$A$3:$AI$823,18,FALSE)))","v":1179.75},{"$f":"IF($A59=\"\",\"\",IF(OR(VLOOKUP($A59,Economática!$A$3:$AI$823,19,FALSE)=0,VLOOKUP($A59,Economática!$A$3:$AI$823,19,FALSE)=\"-\"),1/0,VLOOKUP($A59,Economática!$A$3:$AI$823,19,FALSE)))","v":2058.04},{"$f":"IF($A59=\"\",\"\",VLOOKUP($A59,Economática!$A$3:$AI$823,20,FALSE)/E59)","v":2.0218191106330097},10.082128664967115,3.0231710993642054,15.075532642708596,{"$f":"IF($A59=\"\",\"\",IF(OR(VLOOKUP($A59,Economática!$A$3:$AI$823,21,FALSE)/100=0,VLOOKUP($A59,Economática!$A$3:$AI$823,21,FALSE)/100=\"-\"),1/0,VLOOKUP($A59,Economática!$A$3:$AI$823,21,FALSE)/100))","v":0.19362799999999999},{"$f":"IF($A59=\"\",\"\",IF(OR(VLOOKUP($A59,Economática!$A$3:$AI$823,22,FALSE)/100=0,VLOOKUP($A59,Economática!$A$3:$AI$823,22,FALSE)/100=\"-\"),1/0,VLOOKUP($A59,Economática!$A$3:$AI$823,22,FALSE)/100))","v":1.475007},{"$f":"IF($A59=\"\",\"\",IF(OR(VLOOKUP($A59,Economática!$A$3:$AI$823,23,FALSE)=0,VLOOKUP($A59,Economática!$A$3:$AI$823,23,FALSE)=\"-\"),1/0,VLOOKUP($A59,Economática!$A$3:$AI$823,23,FALSE)))","v":4863.3},{"$f":"IF($A59=\"\",\"\",IF(OR(VLOOKUP($A59,Economática!$A$3:$AI$823,24,FALSE)=0,VLOOKUP($A59,Economática!$A$3:$AI$823,24,FALSE)=\"-\"),1/0,VLOOKUP($A59,Economática!$A$3:$AI$823,24,FALSE)))","v":5636.7},{"$f":"IF($A59=\"\",\"\",IF(OR(VLOOKUP($A59,Economática!$A$3:$AI$823,25,FALSE)=0,VLOOKUP($A59,Economática!$A$3:$AI$823,25,FALSE)=\"-\"),1/0,VLOOKUP($A59,Economática!$A$3:$AI$823,25,FALSE)))","v":5636.7},{"$f":"IF($A59=\"\",\"\",IF(ISERROR((F59+VLOOKUP($A59,Economática!$A$3:$AI$823,26,FALSE))/Y59),(F59+VLOOKUP($A59,Economática!$A$3:$AI$823,26,FALSE))/Y59,(F59+VLOOKUP($A59,Economática!$A$3:$AI$823,26,FALSE))/Y59))","v":8.7837541469299421},{"$f":"IF($A59=\"\",\"\",IF(OR(-VLOOKUP($A59,Economática!$A$3:$AI$823,27,FALSE)=0,-VLOOKUP($A59,Economática!$A$3:$AI$823,27,FALSE)=\"-\"),1/0,-VLOOKUP($A59,Economática!$A$3:$AI$823,27,FALSE)))","v":279.10000000000002},8.995669444118554E-3,{"$f":"IF($A59=\"\",\"\",IF(OR(VLOOKUP($A59,Economática!$A$3:$AI$823,28,FALSE)=0,VLOOKUP($A59,Economática!$A$3:$AI$823,28,FALSE)=\"-\"),1/0,VLOOKUP($A59,Economática!$A$3:$AI$823,28,FALSE)))","v":-0.7},{"$f":"IF($A59=\"\",\"\",IF(OR(VLOOKUP($A59,Economática!$A$3:$AI$823,29,FALSE)=0,VLOOKUP($A59,Economática!$A$3:$AI$823,29,FALSE)=\"-\"),1/0,VLOOKUP($A59,Economática!$A$3:$AI$823,29,FALSE)))","v":59.3},{"$f":"IF($A59=\"\",\"\",IF(OR(VLOOKUP($A59,Economática!$A$3:$AI$823,30,FALSE)/E59=0,VLOOKUP($A59,Economática!$A$3:$AI$823,30,FALSE)/E59=\"-\",VLOOKUP($A59,Economática!$A$3:$AI$823,30,FALSE)/E59<33.33%,VLOOKUP($A59,Economática!$A$3:$AI$823,30,FALSE)/E59>100%),1/0,VLOOKUP($A59,Economática!$A$3:$AI$823,30,FALSE)/E59))","v":0.99998526399552023},"CPFE3",{"$f":"IF($A59=\"\",\"\",IF(OR(VLOOKUP($A59,Economática!$A$3:$AI$823,25,FALSE)=0,VLOOKUP($A59,Economática!$A$3:$AI$823,25,FALSE)=\"-\"),1/0,VLOOKUP($A59,Economática!$A$3:$AI$823,25,FALSE)))","v":5636.7},{"$f":"CONCATENATE(Economática!B61,\" \",Economática!C61)","v":"CPFL Energia ON"}]
[{"$f":"IF(Economática!AG62=\"\",\"\",Economática!AG62)","v":"TIET3"},{"$f":"IF($A60=\"\",\"\",VLOOKUP(VLOOKUP($A60,Economática!$A$3:$AI$823,6,FALSE),Correção!$B$16:$C$36,2,FALSE))","v":"Energia Elétrica"},{"$f":"IF(Economática!B62=\"\",\"\",Economática!B62)","v":"AES Tiete E"},{"$f":"IF($A60=\"\",\"\",IF(OR(VLOOKUP($A60,Economática!$A$3:$AI$823,8,FALSE)=0,VLOOKUP($A60,Economática!$A$3:$AI$823,8,FALSE)=\"-\"),1/0,VLOOKUP($A60,Economática!$A$3:$AI$823,8,FALSE)))","v":2.25},{"$f":"IF(A60=\"\",\"\",IF(ISERROR(VLOOKUP(A60,Correção!$B$2:$G$13,9,FALSE)),VLOOKUP($A60,Economática!$A$3:$AI$823,9,FALSE),VLOOKUP(A60,Correção!$B$2:$G$13,9,FALSE)))","v":1967.385},{"$f":"IF($A60=\"\",\"\",Economática!G62)","v":4378.93},{"$f":"IF($A60=\"\",\"\",IF(OR(VLOOKUP($A60,Economática!$A$3:$AI$823,10,FALSE)=0,VLOOKUP($A60,Economática!$A$3:$AI$823,10,FALSE)=\"-\"),1/0,VLOOKUP($A60,Economática!$A$3:$AI$823,10,FALSE)))","v":1523.47},{"$f":"IF($A60=\"\",\"\",IF(OR(VLOOKUP($A60,Economática!$A$3:$AI$823,11,FALSE)=0,VLOOKUP($A60,Economática!$A$3:$AI$823,11,FALSE)=\"-\"),1/0,VLOOKUP($A60,Economática!$A$3:$AI$823,11,FALSE)))","v":1728.13},{"$f":"IF($A60=\"\",\"\",IF(OR(VLOOKUP($A60,Economática!$A$3:$AI$823,12,FALSE)=0,VLOOKUP($A60,Economática!$A$3:$AI$823,12,FALSE)=\"-\"),1/0,VLOOKUP($A60,Economática!$A$3:$AI$823,12,FALSE)))","v":1923.53},{"$f":"IF($A60=\"\",\"\",IF(OR(VLOOKUP($A60,Economática!$A$3:$AI$823,13,FALSE)=0,VLOOKUP($A60,Economática!$A$3:$AI$823,13,FALSE)=\"-\"),1/0,VLOOKUP($A60,Economática!$A$3:$AI$823,13,FALSE)))","v":298.27999999999997},{"$f":"IF($A60=\"\",\"\",IF(OR(VLOOKUP($A60,Economática!$A$3:$AI$823,14,FALSE)=0,VLOOKUP($A60,Economática!$A$3:$AI$823,14,FALSE)=\"-\"),1/0,VLOOKUP($A60,Economática!$A$3:$AI$823,14,FALSE)))","v":54.76},{"$f":"IF($A60=\"\",\"\",IF(OR(VLOOKUP($A60,Economática!$A$3:$AI$823,15,FALSE)=0,VLOOKUP($A60,Economática!$A$3:$AI$823,15,FALSE)=\"-\"),1/0,VLOOKUP($A60,Economática!$A$3:$AI$823,15,FALSE)))","v":147.72},{"$f":"IF($A60=\"\",\"\",IF(OR(VLOOKUP($A60,Economática!$A$3:$AI$823,16,FALSE)=0,VLOOKUP($A60,Economática!$A$3:$AI$823,16,FALSE)=\"-\"),1/0,VLOOKUP($A60,Economática!$A$3:$AI$823,16,FALSE)))","v":183.09},{"$f":"IF($A60=\"\",\"\",IF(OR(VLOOKUP($A60,Economática!$A$3:$AI$823,17,FALSE)=0,VLOOKUP($A60,Economática!$A$3:$AI$823,17,FALSE)=\"-\"),1/0,VLOOKUP($A60,Economática!$A$3:$AI$823,17,FALSE)))","v":287.95999999999998},{"$f":"IF($A60=\"\",\"\",IF(OR(VLOOKUP($A60,Economática!$A$3:$AI$823,18,FALSE)=0,VLOOKUP($A60,Economática!$A$3:$AI$823,18,FALSE)=\"-\"),1/0,VLOOKUP($A60,Economática!$A$3:$AI$823,18,FALSE)))","v":298.27999999999997},{"$f":"IF($A60=\"\",\"\",IF(OR(VLOOKUP($A60,Economática!$A$3:$AI$823,19,FALSE)=0,VLOOKUP($A60,Economática!$A$3:$AI$823,19,FALSE)=\"-\"),1/0,VLOOKUP($A60,Economática!$A$3:$AI$823,19,FALSE)))","v":287.95999999999998},{"$f":"IF($A60=\"\",\"\",VLOOKUP($A60,Economática!$A$3:$AI$823,20,FALSE)/E60)","v":0.14636687786071359},0.77436292337290369,2.905614321253454,15.372330358383108,{"$f":"IF($A60=\"\",\"\",IF(OR(VLOOKUP($A60,Economática!$A$3:$AI$823,21,FALSE)/100=0,VLOOKUP($A60,Economática!$A$3:$AI$823,21,FALSE)/100=\"-\"),1/0,VLOOKUP($A60,Economática!$A$3:$AI$823,21,FALSE)/100))","v":0.184865},{"$f":"IF($A60=\"\",\"\",IF(OR(VLOOKUP($A60,Economática!$A$3:$AI$823,22,FALSE)/100=0,VLOOKUP($A60,Economática!$A$3:$AI$823,22,FALSE)/100=\"-\"),1/0,VLOOKUP($A60,Economática!$A$3:$AI$823,22,FALSE)/100))","v":2.0308609999999998},{"$f":"IF($A60=\"\",\"\",IF(OR(VLOOKUP($A60,Economática!$A$3:$AI$823,23,FALSE)=0,VLOOKUP($A60,Economática!$A$3:$AI$823,23,FALSE)=\"-\"),1/0,VLOOKUP($A60,Economática!$A$3:$AI$823,23,FALSE)))","v":842.2},{"$f":"IF($A60=\"\",\"\",IF(OR(VLOOKUP($A60,Economática!$A$3:$AI$823,24,FALSE)=0,VLOOKUP($A60,Economática!$A$3:$AI$823,24,FALSE)=\"-\"),1/0,VLOOKUP($A60,Economática!$A$3:$AI$823,24,FALSE)))","v":1011.2},{"$f":"IF($A60=\"\",\"\",IF(OR(VLOOKUP($A60,Economática!$A$3:$AI$823,25,FALSE)=0,VLOOKUP($A60,Economática!$A$3:$AI$823,25,FALSE)=\"-\"),1/0,VLOOKUP($A60,Economática!$A$3:$AI$823,25,FALSE)))","v":1011.2},{"$f":"IF($A60=\"\",\"\",IF(ISERROR((F60+VLOOKUP($A60,Economática!$A$3:$AI$823,26,FALSE))/Y60),(F60+VLOOKUP($A60,Economática!$A$3:$AI$823,26,FALSE))/Y60,(F60+VLOOKUP($A60,Economática!$A$3:$AI$823,26,FALSE))/Y60))","v":7.3901246044303797},{"$f":"IF($A60=\"\",\"\",IF(OR(-VLOOKUP($A60,Economática!$A$3:$AI$823,27,FALSE)=0,-VLOOKUP($A60,Economática!$A$3:$AI$823,27,FALSE)=\"-\"),1/0,-VLOOKUP($A60,Economática!$A$3:$AI$823,27,FALSE)))","v":270.06},6.1672600384112097E-2,{"$f":"IF($A60=\"\",\"\",IF(OR(VLOOKUP($A60,Economática!$A$3:$AI$823,28,FALSE)=0,VLOOKUP($A60,Economática!$A$3:$AI$823,28,FALSE)=\"-\"),1/0,VLOOKUP($A60,Economática!$A$3:$AI$823,28,FALSE)))","v":-4.7},{"$f":"IF($A60=\"\",\"\",IF(OR(VLOOKUP($A60,Economática!$A$3:$AI$823,29,FALSE)=0,VLOOKUP($A60,Economática!$A$3:$AI$823,29,FALSE)=\"-\"),1/0,VLOOKUP($A60,Economática!$A$3:$AI$823,29,FALSE)))","v":-6.1},{"$f":"IF($A60=\"\",\"\",IF(OR(VLOOKUP($A60,Economática!$A$3:$AI$823,30,FALSE)/E60=0,VLOOKUP($A60,Economática!$A$3:$AI$823,30,FALSE)/E60=\"-\",VLOOKUP($A60,Economática!$A$3:$AI$823,30,FALSE)/E60<33.33%,VLOOKUP($A60,Economática!$A$3:$AI$823,30,FALSE)/E60>100%),1/0,VLOOKUP($A60,Economática!$A$3:$AI$823,30,FALSE)/E60))","v":0.39402557201564514},"TIET3",{"$f":"IF($A60=\"\",\"\",IF(OR(VLOOKUP($A60,Economática!$A$3:$AI$823,25,FALSE)=0,VLOOKUP($A60,Economática!$A$3:$AI$823,25,FALSE)=\"-\"),1/0,VLOOKUP($A60,Economática!$A$3:$AI$823,25,FALSE)))","v":1011.2},{"$f":"CONCATENATE(Economática!B62,\" \",Economática!C62)","v":"AES Tiete E ON"}]
[{"$f":"IF(Economática!AG63=\"\",\"\",Economática!AG63)","v":"TIET4"},{"$f":"IF($A61=\"\",\"\",VLOOKUP(VLOOKUP($A61,Economática!$A$3:$AI$823,6,FALSE),Correção!$B$16:$C$36,2,FALSE))","v":"Energia Elétrica"},{"$f":"IF(Economática!B63=\"\",\"\",Economática!B63)","v":"AES Tiete E"},{"$f":"IF($A61=\"\",\"\",IF(OR(VLOOKUP($A61,Economática!$A$3:$AI$823,8,FALSE)=0,VLOOKUP($A61,Economática!$A$3:$AI$823,8,FALSE)=\"-\"),1/0,VLOOKUP($A61,Economática!$A$3:$AI$823,8,FALSE)))","v":2.21},{"$f":"IF(A61=\"\",\"\",IF(ISERROR(VLOOKUP(A61,Correção!$B$2:$G$13,9,FALSE)),VLOOKUP($A61,Economática!$A$3:$AI$823,9,FALSE),VLOOKUP(A61,Correção!$B$2:$G$13,9,FALSE)))","v":1967.385},{"$f":"IF($A61=\"\",\"\",Economática!G63)","v":4378.93},{"$f":"IF($A61=\"\",\"\",IF(OR(VLOOKUP($A61,Economática!$A$3:$AI$823,10,FALSE)=0,VLOOKUP($A61,Economática!$A$3:$AI$823,10,FALSE)=\"-\"),1/0,VLOOKUP($A61,Economática!$A$3:$AI$823,10,FALSE)))","v":1523.47},{"$f":"IF($A61=\"\",\"\",IF(OR(VLOOKUP($A61,Economática!$A$3:$AI$823,11,FALSE)=0,VLOOKUP($A61,Economática!$A$3:$AI$823,11,FALSE)=\"-\"),1/0,VLOOKUP($A61,Economática!$A$3:$AI$823,11,FALSE)))","v":1728.13},{"$f":"IF($A61=\"\",\"\",IF(OR(VLOOKUP($A61,Economática!$A$3:$AI$823,12,FALSE)=0,VLOOKUP($A61,Economática!$A$3:$AI$823,12,FALSE)=\"-\"),1/0,VLOOKUP($A61,Economática!$A$3:$AI$823,12,FALSE)))","v":1923.53},{"$f":"IF($A61=\"\",\"\",IF(OR(VLOOKUP($A61,Economática!$A$3:$AI$823,13,FALSE)=0,VLOOKUP($A61,Economática!$A$3:$AI$823,13,FALSE)=\"-\"),1/0,VLOOKUP($A61,Economática!$A$3:$AI$823,13,FALSE)))","v":298.27999999999997},{"$f":"IF($A61=\"\",\"\",IF(OR(VLOOKUP($A61,Economática!$A$3:$AI$823,14,FALSE)=0,VLOOKUP($A61,Economática!$A$3:$AI$823,14,FALSE)=\"-\"),1/0,VLOOKUP($A61,Economática!$A$3:$AI$823,14,FALSE)))","v":54.76},{"$f":"IF($A61=\"\",\"\",IF(OR(VLOOKUP($A61,Economática!$A$3:$AI$823,15,FALSE)=0,VLOOKUP($A61,Economática!$A$3:$AI$823,15,FALSE)=\"-\"),1/0,VLOOKUP($A61,Economática!$A$3:$AI$823,15,FALSE)))","v":147.72},{"$f":"IF($A61=\"\",\"\",IF(OR(VLOOKUP($A61,Economática!$A$3:$AI$823,16,FALSE)=0,VLOOKUP($A61,Economática!$A$3:$AI$823,16,FALSE)=\"-\"),1/0,VLOOKUP($A61,Economática!$A$3:$AI$823,16,FALSE)))","v":183.09},{"$f":"IF($A61=\"\",\"\",IF(OR(VLOOKUP($A61,Economática!$A$3:$AI$823,17,FALSE)=0,VLOOKUP($A61,Economática!$A$3:$AI$823,17,FALSE)=\"-\"),1/0,VLOOKUP($A61,Economática!$A$3:$AI$823,17,FALSE)))","v":287.95999999999998},{"$f":"IF($A61=\"\",\"\",IF(OR(VLOOKUP($A61,Economática!$A$3:$AI$823,18,FALSE)=0,VLOOKUP($A61,Economática!$A$3:$AI$823,18,FALSE)=\"-\"),1/0,VLOOKUP($A61,Economática!$A$3:$AI$823,18,FALSE)))","v":298.27999999999997},{"$f":"IF($A61=\"\",\"\",IF(OR(VLOOKUP($A61,Economática!$A$3:$AI$823,19,FALSE)=0,VLOOKUP($A61,Economática!$A$3:$AI$823,19,FALSE)=\"-\"),1/0,VLOOKUP($A61,Economática!$A$3:$AI$823,19,FALSE)))","v":287.95999999999998},{"$f":"IF($A61=\"\",\"\",VLOOKUP($A61,Economática!$A$3:$AI$823,20,FALSE)/E61)","v":0.14636687786071359},0.77436292337290369,2.8539589555422813,15.099044485345186,{"$f":"IF($A61=\"\",\"\",IF(OR(VLOOKUP($A61,Economática!$A$3:$AI$823,21,FALSE)/100=0,VLOOKUP($A61,Economática!$A$3:$AI$823,21,FALSE)/100=\"-\"),1/0,VLOOKUP($A61,Economática!$A$3:$AI$823,21,FALSE)/100))","v":0.184865},{"$f":"IF($A61=\"\",\"\",IF(OR(VLOOKUP($A61,Economática!$A$3:$AI$823,22,FALSE)/100=0,VLOOKUP($A61,Economática!$A$3:$AI$823,22,FALSE)/100=\"-\"),1/0,VLOOKUP($A61,Economática!$A$3:$AI$823,22,FALSE)/100))","v":2.0308609999999998},{"$f":"IF($A61=\"\",\"\",IF(OR(VLOOKUP($A61,Economática!$A$3:$AI$823,23,FALSE)=0,VLOOKUP($A61,Economática!$A$3:$AI$823,23,FALSE)=\"-\"),1/0,VLOOKUP($A61,Economática!$A$3:$AI$823,23,FALSE)))","v":842.2},{"$f":"IF($A61=\"\",\"\",IF(OR(VLOOKUP($A61,Economática!$A$3:$AI$823,24,FALSE)=0,VLOOKUP($A61,Economática!$A$3:$AI$823,24,FALSE)=\"-\"),1/0,VLOOKUP($A61,Economática!$A$3:$AI$823,24,FALSE)))","v":1011.2},{"$f":"IF($A61=\"\",\"\",IF(OR(VLOOKUP($A61,Economática!$A$3:$AI$823,25,FALSE)=0,VLOOKUP($A61,Economática!$A$3:$AI$823,25,FALSE)=\"-\"),1/0,VLOOKUP($A61,Economática!$A$3:$AI$823,25,FALSE)))","v":1011.2},{"$f":"IF($A61=\"\",\"\",IF(ISERROR((F61+VLOOKUP($A61,Economática!$A$3:$AI$823,26,FALSE))/Y61),(F61+VLOOKUP($A61,Economática!$A$3:$AI$823,26,FALSE))/Y61,(F61+VLOOKUP($A61,Economática!$A$3:$AI$823,26,FALSE))/Y61))","v":7.3901246044303797},{"$f":"IF($A61=\"\",\"\",IF(OR(-VLOOKUP($A61,Economática!$A$3:$AI$823,27,FALSE)=0,-VLOOKUP($A61,Economática!$A$3:$AI$823,27,FALSE)=\"-\"),1/0,-VLOOKUP($A61,Economática!$A$3:$AI$823,27,FALSE)))","v":270.06},6.1672600384112097E-2,{"$f":"IF($A61=\"\",\"\",IF(OR(VLOOKUP($A61,Economática!$A$3:$AI$823,28,FALSE)=0,VLOOKUP($A61,Economática!$A$3:$AI$823,28,FALSE)=\"-\"),1/0,VLOOKUP($A61,Economática!$A$3:$AI$823,28,FALSE)))","v":-5.2},{"$f":"IF($A61=\"\",\"\",IF(OR(VLOOKUP($A61,Economática!$A$3:$AI$823,29,FALSE)=0,VLOOKUP($A61,Economática!$A$3:$AI$823,29,FALSE)=\"-\"),1/0,VLOOKUP($A61,Economática!$A$3:$AI$823,29,FALSE)))","v":-7.8},{"$f":"IF($A61=\"\",\"\",IF(OR(VLOOKUP($A61,Economática!$A$3:$AI$823,30,FALSE)/E61=0,VLOOKUP($A61,Economática!$A$3:$AI$823,30,FALSE)/E61=\"-\",VLOOKUP($A61,Economática!$A$3:$AI$823,30,FALSE)/E61<33.33%,VLOOKUP($A61,Economática!$A$3:$AI$823,30,FALSE)/E61>100%),1/0,VLOOKUP($A61,Economática!$A$3:$AI$823,30,FALSE)/E61))","v":0.39402557201564514},"TIET4",{"$f":"IF($A61=\"\",\"\",IF(OR(VLOOKUP($A61,Economática!$A$3:$AI$823,25,FALSE)=0,VLOOKUP($A61,Economática!$A$3:$AI$823,25,FALSE)=\"-\"),1/0,VLOOKUP($A61,Economática!$A$3:$AI$823,25,FALSE)))","v":1011.2},{"$f":"CONCATENATE(Economática!B63,\" \",Economática!C63)","v":"AES Tiete E PN"}]
[{"$f":"IF(Economática!AG64=\"\",\"\",Economática!AG64)","v":"TIET11"},{"$f":"IF($A62=\"\",\"\",VLOOKUP(VLOOKUP($A62,Economática!$A$3:$AI$823,6,FALSE),Correção!$B$16:$C$36,2,FALSE))","v":"Energia Elétrica"},{"$f":"IF(Economática!B64=\"\",\"\",Economática!B64)","v":"AES Tiete E"},{"$f":"IF($A62=\"\",\"\",IF(OR(VLOOKUP($A62,Economática!$A$3:$AI$823,8,FALSE)=0,VLOOKUP($A62,Economática!$A$3:$AI$823,8,FALSE)=\"-\"),1/0,VLOOKUP($A62,Economática!$A$3:$AI$823,8,FALSE)))","v":11.08},{"$f":"IF(A62=\"\",\"\",IF(ISERROR(VLOOKUP(A62,Correção!$B$2:$G$13,9,FALSE)),VLOOKUP($A62,Economática!$A$3:$AI$823,9,FALSE),VLOOKUP(A62,Correção!$B$2:$G$13,9,FALSE)))","v":1967.385},{"$f":"IF($A62=\"\",\"\",Economática!G64)","v":4378.93},{"$f":"IF($A62=\"\",\"\",IF(OR(VLOOKUP($A62,Economática!$A$3:$AI$823,10,FALSE)=0,VLOOKUP($A62,Economática!$A$3:$AI$823,10,FALSE)=\"-\"),1/0,VLOOKUP($A62,Economática!$A$3:$AI$823,10,FALSE)))","v":1523.47},{"$f":"IF($A62=\"\",\"\",IF(OR(VLOOKUP($A62,Economática!$A$3:$AI$823,11,FALSE)=0,VLOOKUP($A62,Economática!$A$3:$AI$823,11,FALSE)=\"-\"),1/0,VLOOKUP($A62,Economática!$A$3:$AI$823,11,FALSE)))","v":1728.13},{"$f":"IF($A62=\"\",\"\",IF(OR(VLOOKUP($A62,Economática!$A$3:$AI$823,12,FALSE)=0,VLOOKUP($A62,Economática!$A$3:$AI$823,12,FALSE)=\"-\"),1/0,VLOOKUP($A62,Economática!$A$3:$AI$823,12,FALSE)))","v":1923.53},{"$f":"IF($A62=\"\",\"\",IF(OR(VLOOKUP($A62,Economática!$A$3:$AI$823,13,FALSE)=0,VLOOKUP($A62,Economática!$A$3:$AI$823,13,FALSE)=\"-\"),1/0,VLOOKUP($A62,Economática!$A$3:$AI$823,13,FALSE)))","v":298.27999999999997},{"$f":"IF($A62=\"\",\"\",IF(OR(VLOOKUP($A62,Economática!$A$3:$AI$823,14,FALSE)=0,VLOOKUP($A62,Economática!$A$3:$AI$823,14,FALSE)=\"-\"),1/0,VLOOKUP($A62,Economática!$A$3:$AI$823,14,FALSE)))","v":54.76},{"$f":"IF($A62=\"\",\"\",IF(OR(VLOOKUP($A62,Economática!$A$3:$AI$823,15,FALSE)=0,VLOOKUP($A62,Economática!$A$3:$AI$823,15,FALSE)=\"-\"),1/0,VLOOKUP($A62,Economática!$A$3:$AI$823,15,FALSE)))","v":147.72},{"$f":"IF($A62=\"\",\"\",IF(OR(VLOOKUP($A62,Economática!$A$3:$AI$823,16,FALSE)=0,VLOOKUP($A62,Economática!$A$3:$AI$823,16,FALSE)=\"-\"),1/0,VLOOKUP($A62,Economática!$A$3:$AI$823,16,FALSE)))","v":183.09},{"$f":"IF($A62=\"\",\"\",IF(OR(VLOOKUP($A62,Economática!$A$3:$AI$823,17,FALSE)=0,VLOOKUP($A62,Economática!$A$3:$AI$823,17,FALSE)=\"-\"),1/0,VLOOKUP($A62,Economática!$A$3:$AI$823,17,FALSE)))","v":287.95999999999998},{"$f":"IF($A62=\"\",\"\",IF(OR(VLOOKUP($A62,Economática!$A$3:$AI$823,18,FALSE)=0,VLOOKUP($A62,Economática!$A$3:$AI$823,18,FALSE)=\"-\"),1/0,VLOOKUP($A62,Economática!$A$3:$AI$823,18,FALSE)))","v":298.27999999999997},{"$f":"IF($A62=\"\",\"\",IF(OR(VLOOKUP($A62,Economática!$A$3:$AI$823,19,FALSE)=0,VLOOKUP($A62,Economática!$A$3:$AI$823,19,FALSE)=\"-\"),1/0,VLOOKUP($A62,Economática!$A$3:$AI$823,19,FALSE)))","v":287.95999999999998},{"$f":"IF($A62=\"\",\"\",VLOOKUP($A62,Economática!$A$3:$AI$823,20,FALSE)/E62)","v":0.14636687786071359},0.77436292337290369,14.308536301994787,75.700186831504368,{"$f":"IF($A62=\"\",\"\",IF(OR(VLOOKUP($A62,Economática!$A$3:$AI$823,21,FALSE)/100=0,VLOOKUP($A62,Economática!$A$3:$AI$823,21,FALSE)/100=\"-\"),1/0,VLOOKUP($A62,Economática!$A$3:$AI$823,21,FALSE)/100))","v":0.184865},{"$f":"IF($A62=\"\",\"\",IF(OR(VLOOKUP($A62,Economática!$A$3:$AI$823,22,FALSE)/100=0,VLOOKUP($A62,Economática!$A$3:$AI$823,22,FALSE)/100=\"-\"),1/0,VLOOKUP($A62,Economática!$A$3:$AI$823,22,FALSE)/100))","v":2.0308609999999998},{"$f":"IF($A62=\"\",\"\",IF(OR(VLOOKUP($A62,Economática!$A$3:$AI$823,23,FALSE)=0,VLOOKUP($A62,Economática!$A$3:$AI$823,23,FALSE)=\"-\"),1/0,VLOOKUP($A62,Economática!$A$3:$AI$823,23,FALSE)))","v":842.2},{"$f":"IF($A62=\"\",\"\",IF(OR(VLOOKUP($A62,Economática!$A$3:$AI$823,24,FALSE)=0,VLOOKUP($A62,Economática!$A$3:$AI$823,24,FALSE)=\"-\"),1/0,VLOOKUP($A62,Economática!$A$3:$AI$823,24,FALSE)))","v":1011.2},{"$f":"IF($A62=\"\",\"\",IF(OR(VLOOKUP($A62,Economática!$A$3:$AI$823,25,FALSE)=0,VLOOKUP($A62,Economática!$A$3:$AI$823,25,FALSE)=\"-\"),1/0,VLOOKUP($A62,Economática!$A$3:$AI$823,25,FALSE)))","v":1011.2},{"$f":"IF($A62=\"\",\"\",IF(ISERROR((F62+VLOOKUP($A62,Economática!$A$3:$AI$823,26,FALSE))/Y62),(F62+VLOOKUP($A62,Economática!$A$3:$AI$823,26,FALSE))/Y62,(F62+VLOOKUP($A62,Economática!$A$3:$AI$823,26,FALSE))/Y62))","v":7.3901246044303797},{"$f":"IF($A62=\"\",\"\",IF(OR(-VLOOKUP($A62,Economática!$A$3:$AI$823,27,FALSE)=0,-VLOOKUP($A62,Economática!$A$3:$AI$823,27,FALSE)=\"-\"),1/0,-VLOOKUP($A62,Economática!$A$3:$AI$823,27,FALSE)))","v":270.06},6.1672600384112097E-2,{"$f":"IF($A62=\"\",\"\",IF(OR(VLOOKUP($A62,Economática!$A$3:$AI$823,28,FALSE)=0,VLOOKUP($A62,Economática!$A$3:$AI$823,28,FALSE)=\"-\"),1/0,VLOOKUP($A62,Economática!$A$3:$AI$823,28,FALSE)))","v":-4.8},{"$f":"IF($A62=\"\",\"\",IF(OR(VLOOKUP($A62,Economática!$A$3:$AI$823,29,FALSE)=0,VLOOKUP($A62,Economática!$A$3:$AI$823,29,FALSE)=\"-\"),1/0,VLOOKUP($A62,Economática!$A$3:$AI$823,29,FALSE)))","v":-6.4},{"$f":"IF($A62=\"\",\"\",IF(OR(VLOOKUP($A62,Economática!$A$3:$AI$823,30,FALSE)/E62=0,VLOOKUP($A62,Economática!$A$3:$AI$823,30,FALSE)/E62=\"-\",VLOOKUP($A62,Economática!$A$3:$AI$823,30,FALSE)/E62<33.33%,VLOOKUP($A62,Economática!$A$3:$AI$823,30,FALSE)/E62>100%),1/0,VLOOKUP($A62,Economática!$A$3:$AI$823,30,FALSE)/E62))","v":0.39402557201564514},"TIET11",{"$f":"IF($A62=\"\",\"\",IF(OR(VLOOKUP($A62,Economática!$A$3:$AI$823,25,FALSE)=0,VLOOKUP($A62,Economática!$A$3:$AI$823,25,FALSE)=\"-\"),1/0,VLOOKUP($A62,Economática!$A$3:$AI$823,25,FALSE)))","v":1011.2},{"$f":"CONCATENATE(Economática!B64,\" \",Economática!C64)","v":"AES Tiete E UNT N2"}]
[{"$f":"IF(Economática!AG65=\"\",\"\",Economática!AG65)","v":"CELP5"},{"$f":"IF($A63=\"\",\"\",VLOOKUP(VLOOKUP($A63,Economática!$A$3:$AI$823,6,FALSE),Correção!$B$16:$C$36,2,FALSE))","v":"Energia Elétrica"},{"$f":"IF(Economática!B65=\"\",\"\",Economática!B65)","v":"Celpa"},{"$f":"IF($A63=\"\",\"\",IF(OR(VLOOKUP($A63,Economática!$A$3:$AI$823,8,FALSE)=0,VLOOKUP($A63,Economática!$A$3:$AI$823,8,FALSE)=\"-\"),1/0,VLOOKUP($A63,Economática!$A$3:$AI$823,8,FALSE)))","v":6.52},{"$f":"IF(A63=\"\",\"\",IF(ISERROR(VLOOKUP(A63,Correção!$B$2:$G$13,9,FALSE)),VLOOKUP($A63,Economática!$A$3:$AI$823,9,FALSE),VLOOKUP(A63,Correção!$B$2:$G$13,9,FALSE)))","v":2209.0740000000001},{"$f":"IF($A63=\"\",\"\",Economática!G65)","v":5316.86},{"$f":"IF($A63=\"\",\"\",IF(OR(VLOOKUP($A63,Economática!$A$3:$AI$823,10,FALSE)=0,VLOOKUP($A63,Economática!$A$3:$AI$823,10,FALSE)=\"-\"),1/0,VLOOKUP($A63,Economática!$A$3:$AI$823,10,FALSE)))","v":3006.08},{"$f":"IF($A63=\"\",\"\",IF(OR(VLOOKUP($A63,Economática!$A$3:$AI$823,11,FALSE)=0,VLOOKUP($A63,Economática!$A$3:$AI$823,11,FALSE)=\"-\"),1/0,VLOOKUP($A63,Economática!$A$3:$AI$823,11,FALSE)))","v":5150.97},{"$f":"IF($A63=\"\",\"\",IF(OR(VLOOKUP($A63,Economática!$A$3:$AI$823,12,FALSE)=0,VLOOKUP($A63,Economática!$A$3:$AI$823,12,FALSE)=\"-\"),1/0,VLOOKUP($A63,Economática!$A$3:$AI$823,12,FALSE)))","v":5491.54},{"$f":"IF($A63=\"\",\"\",IF(OR(VLOOKUP($A63,Economática!$A$3:$AI$823,13,FALSE)=0,VLOOKUP($A63,Economática!$A$3:$AI$823,13,FALSE)=\"-\"),1/0,VLOOKUP($A63,Economática!$A$3:$AI$823,13,FALSE)))","v":613.53},{"$f":"IF($A63=\"\",\"\",IF(OR(VLOOKUP($A63,Economática!$A$3:$AI$823,14,FALSE)=0,VLOOKUP($A63,Economática!$A$3:$AI$823,14,FALSE)=\"-\"),1/0,VLOOKUP($A63,Economática!$A$3:$AI$823,14,FALSE)))","v":0.43},{"$f":"IF($A63=\"\",\"\",IF(OR(VLOOKUP($A63,Economática!$A$3:$AI$823,15,FALSE)=0,VLOOKUP($A63,Economática!$A$3:$AI$823,15,FALSE)=\"-\"),1/0,VLOOKUP($A63,Economática!$A$3:$AI$823,15,FALSE)))","v":49.63},{"$f":"IF($A63=\"\",\"\",IF(OR(VLOOKUP($A63,Economática!$A$3:$AI$823,16,FALSE)=0,VLOOKUP($A63,Economática!$A$3:$AI$823,16,FALSE)=\"-\"),1/0,VLOOKUP($A63,Economática!$A$3:$AI$823,16,FALSE)))","v":183.41},{"$f":"IF($A63=\"\",\"\",IF(OR(VLOOKUP($A63,Economática!$A$3:$AI$823,17,FALSE)=0,VLOOKUP($A63,Economática!$A$3:$AI$823,17,FALSE)=\"-\"),1/0,VLOOKUP($A63,Economática!$A$3:$AI$823,17,FALSE)))","v":455.39},{"$f":"IF($A63=\"\",\"\",IF(OR(VLOOKUP($A63,Economática!$A$3:$AI$823,18,FALSE)=0,VLOOKUP($A63,Economática!$A$3:$AI$823,18,FALSE)=\"-\"),1/0,VLOOKUP($A63,Economática!$A$3:$AI$823,18,FALSE)))","v":613.53},{"$f":"IF($A63=\"\",\"\",IF(OR(VLOOKUP($A63,Economática!$A$3:$AI$823,19,FALSE)=0,VLOOKUP($A63,Economática!$A$3:$AI$823,19,FALSE)=\"-\"),1/0,VLOOKUP($A63,Economática!$A$3:$AI$823,19,FALSE)))","v":455.39},{"$f":"IF($A63=\"\",\"\",VLOOKUP($A63,Economática!$A$3:$AI$823,20,FALSE)/E63)","v":0.20614519930070246},1.3607873706358411,4.7913437034277191,31.628192274753506,{"$f":"IF($A63=\"\",\"\",IF(OR(VLOOKUP($A63,Economática!$A$3:$AI$823,21,FALSE)/100=0,VLOOKUP($A63,Economática!$A$3:$AI$823,21,FALSE)/100=\"-\"),1/0,VLOOKUP($A63,Economática!$A$3:$AI$823,21,FALSE)/100))","v":0.17632300000000001},{"$f":"IF($A63=\"\",\"\",IF(OR(VLOOKUP($A63,Economática!$A$3:$AI$823,22,FALSE)/100=0,VLOOKUP($A63,Economática!$A$3:$AI$823,22,FALSE)/100=\"-\"),1/0,VLOOKUP($A63,Economática!$A$3:$AI$823,22,FALSE)/100))","v":0.70792299999999997},{"$f":"IF($A63=\"\",\"\",IF(OR(VLOOKUP($A63,Economática!$A$3:$AI$823,23,FALSE)=0,VLOOKUP($A63,Economática!$A$3:$AI$823,23,FALSE)=\"-\"),1/0,VLOOKUP($A63,Economática!$A$3:$AI$823,23,FALSE)))","v":940.7},{"$f":"IF($A63=\"\",\"\",IF(OR(VLOOKUP($A63,Economática!$A$3:$AI$823,24,FALSE)=0,VLOOKUP($A63,Economática!$A$3:$AI$823,24,FALSE)=\"-\"),1/0,VLOOKUP($A63,Economática!$A$3:$AI$823,24,FALSE)))","v":{"$error":"#DIV/0!"}},{"$f":"IF($A63=\"\",\"\",IF(OR(VLOOKUP($A63,Economática!$A$3:$AI$823,25,FALSE)=0,VLOOKUP($A63,Economática!$A$3:$AI$823,25,FALSE)=\"-\"),1/0,VLOOKUP($A63,Economática!$A$3:$AI$823,25,FALSE)))","v":{"$error":"#DIV/0!"}},{"$f":"IF($A63=\"\",\"\",IF(ISERROR((F63+VLOOKUP($A63,Economática!$A$3:$AI$823,26,FALSE))/Y63),(F63+VLOOKUP($A63,Economática!$A$3:$AI$823,26,FALSE))/Y63,(F63+VLOOKUP($A63,Economática!$A$3:$AI$823,26,FALSE))/Y63))","v":{"$error":"#DIV/0!"}},{"$f":"IF($A63=\"\",\"\",IF(OR(-VLOOKUP($A63,Economática!$A$3:$AI$823,27,FALSE)=0,-VLOOKUP($A63,Economática!$A$3:$AI$823,27,FALSE)=\"-\"),1/0,-VLOOKUP($A63,Economática!$A$3:$AI$823,27,FALSE)))","v":132.56},2.4932008742001861E-2,{"$f":"IF($A63=\"\",\"\",IF(OR(VLOOKUP($A63,Economática!$A$3:$AI$823,28,FALSE)=0,VLOOKUP($A63,Economática!$A$3:$AI$823,28,FALSE)=\"-\"),1/0,VLOOKUP($A63,Economática!$A$3:$AI$823,28,FALSE)))","v":-6.3},{"$f":"IF($A63=\"\",\"\",IF(OR(VLOOKUP($A63,Economática!$A$3:$AI$823,29,FALSE)=0,VLOOKUP($A63,Economática!$A$3:$AI$823,29,FALSE)=\"-\"),1/0,VLOOKUP($A63,Economática!$A$3:$AI$823,29,FALSE)))","v":186.8},{"$f":"IF($A63=\"\",\"\",IF(OR(VLOOKUP($A63,Economática!$A$3:$AI$823,30,FALSE)/E63=0,VLOOKUP($A63,Economática!$A$3:$AI$823,30,FALSE)/E63=\"-\",VLOOKUP($A63,Economática!$A$3:$AI$823,30,FALSE)/E63<33.33%,VLOOKUP($A63,Economática!$A$3:$AI$823,30,FALSE)/E63>100%),1/0,VLOOKUP($A63,Economática!$A$3:$AI$823,30,FALSE)/E63))","v":0.9979747170081219},"CELP5",{"$f":"IF($A63=\"\",\"\",IF(OR(VLOOKUP($A63,Economática!$A$3:$AI$823,25,FALSE)=0,VLOOKUP($A63,Economática!$A$3:$AI$823,25,FALSE)=\"-\"),1/0,VLOOKUP($A63,Economática!$A$3:$AI$823,25,FALSE)))","v":{"$error":"#DIV/0!"}},{"$f":"CONCATENATE(Economática!B65,\" \",Economática!C65)","v":"Celpa PNA"}]
[{"$f":"IF(Economática!AG66=\"\",\"\",Economática!AG66)","v":"TRPL4"},{"$f":"IF($A64=\"\",\"\",VLOOKUP(VLOOKUP($A64,Economática!$A$3:$AI$823,6,FALSE),Correção!$B$16:$C$36,2,FALSE))","v":"Energia Elétrica"},{"$f":"IF(Economática!B66=\"\",\"\",Economática!B66)","v":"Tran Paulist"},{"$f":"IF($A64=\"\",\"\",IF(OR(VLOOKUP($A64,Economática!$A$3:$AI$823,8,FALSE)=0,VLOOKUP($A64,Economática!$A$3:$AI$823,8,FALSE)=\"-\"),1/0,VLOOKUP($A64,Economática!$A$3:$AI$823,8,FALSE)))","v":77.14},{"$f":"IF(A64=\"\",\"\",IF(ISERROR(VLOOKUP(A64,Correção!$B$2:$G$13,9,FALSE)),VLOOKUP($A64,Economática!$A$3:$AI$823,9,FALSE),VLOOKUP(A64,Correção!$B$2:$G$13,9,FALSE)))","v":164.721},{"$f":"IF($A64=\"\",\"\",Economática!G66)","v":13109.59},{"$f":"IF($A64=\"\",\"\",IF(OR(VLOOKUP($A64,Economática!$A$3:$AI$823,10,FALSE)=0,VLOOKUP($A64,Economática!$A$3:$AI$823,10,FALSE)=\"-\"),1/0,VLOOKUP($A64,Economática!$A$3:$AI$823,10,FALSE)))","v":11068.65},{"$f":"IF($A64=\"\",\"\",IF(OR(VLOOKUP($A64,Economática!$A$3:$AI$823,11,FALSE)=0,VLOOKUP($A64,Economática!$A$3:$AI$823,11,FALSE)=\"-\"),1/0,VLOOKUP($A64,Economática!$A$3:$AI$823,11,FALSE)))","v":2701.19},{"$f":"IF($A64=\"\",\"\",IF(OR(VLOOKUP($A64,Economática!$A$3:$AI$823,12,FALSE)=0,VLOOKUP($A64,Economática!$A$3:$AI$823,12,FALSE)=\"-\"),1/0,VLOOKUP($A64,Economática!$A$3:$AI$823,12,FALSE)))","v":3184.65},{"$f":"IF($A64=\"\",\"\",IF(OR(VLOOKUP($A64,Economática!$A$3:$AI$823,13,FALSE)=0,VLOOKUP($A64,Economática!$A$3:$AI$823,13,FALSE)=\"-\"),1/0,VLOOKUP($A64,Economática!$A$3:$AI$823,13,FALSE)))","v":1365.51},{"$f":"IF($A64=\"\",\"\",IF(OR(VLOOKUP($A64,Economática!$A$3:$AI$823,14,FALSE)=0,VLOOKUP($A64,Economática!$A$3:$AI$823,14,FALSE)=\"-\"),1/0,VLOOKUP($A64,Economática!$A$3:$AI$823,14,FALSE)))","v":236.95},{"$f":"IF($A64=\"\",\"\",IF(OR(VLOOKUP($A64,Economática!$A$3:$AI$823,15,FALSE)=0,VLOOKUP($A64,Economática!$A$3:$AI$823,15,FALSE)=\"-\"),1/0,VLOOKUP($A64,Economática!$A$3:$AI$823,15,FALSE)))","v":481.73},{"$f":"IF($A64=\"\",\"\",IF(OR(VLOOKUP($A64,Economática!$A$3:$AI$823,16,FALSE)=0,VLOOKUP($A64,Economática!$A$3:$AI$823,16,FALSE)=\"-\"),1/0,VLOOKUP($A64,Economática!$A$3:$AI$823,16,FALSE)))","v":1173.53},{"$f":"IF($A64=\"\",\"\",IF(OR(VLOOKUP($A64,Economática!$A$3:$AI$823,17,FALSE)=0,VLOOKUP($A64,Economática!$A$3:$AI$823,17,FALSE)=\"-\"),1/0,VLOOKUP($A64,Economática!$A$3:$AI$823,17,FALSE)))","v":1881.67},{"$f":"IF($A64=\"\",\"\",IF(OR(VLOOKUP($A64,Economática!$A$3:$AI$823,18,FALSE)=0,VLOOKUP($A64,Economática!$A$3:$AI$823,18,FALSE)=\"-\"),1/0,VLOOKUP($A64,Economática!$A$3:$AI$823,18,FALSE)))","v":1365.51},{"$f":"IF($A64=\"\",\"\",IF(OR(VLOOKUP($A64,Economática!$A$3:$AI$823,19,FALSE)=0,VLOOKUP($A64,Economática!$A$3:$AI$823,19,FALSE)=\"-\"),1/0,VLOOKUP($A64,Economática!$A$3:$AI$823,19,FALSE)))","v":1881.67},{"$f":"IF($A64=\"\",\"\",VLOOKUP($A64,Economática!$A$3:$AI$823,20,FALSE)/E64)","v":11.423376497228647},67.196350192143072,1.1479790164112156,6.7528195379636173,{"$f":"IF($A64=\"\",\"\",IF(OR(VLOOKUP($A64,Economática!$A$3:$AI$823,21,FALSE)/100=0,VLOOKUP($A64,Economática!$A$3:$AI$823,21,FALSE)/100=\"-\"),1/0,VLOOKUP($A64,Economática!$A$3:$AI$823,21,FALSE)/100))","v":0.16922399999999999},{"$f":"IF($A64=\"\",\"\",IF(OR(VLOOKUP($A64,Economática!$A$3:$AI$823,22,FALSE)/100=0,VLOOKUP($A64,Economática!$A$3:$AI$823,22,FALSE)/100=\"-\"),1/0,VLOOKUP($A64,Economática!$A$3:$AI$823,22,FALSE)/100))","v":0.20508099999999999},{"$f":"IF($A64=\"\",\"\",IF(OR(VLOOKUP($A64,Economática!$A$3:$AI$823,23,FALSE)=0,VLOOKUP($A64,Economática!$A$3:$AI$823,23,FALSE)=\"-\"),1/0,VLOOKUP($A64,Economática!$A$3:$AI$823,23,FALSE)))","v":2056.9},{"$f":"IF($A64=\"\",\"\",IF(OR(VLOOKUP($A64,Economática!$A$3:$AI$823,24,FALSE)=0,VLOOKUP($A64,Economática!$A$3:$AI$823,24,FALSE)=\"-\"),1/0,VLOOKUP($A64,Economática!$A$3:$AI$823,24,FALSE)))","v":2468.1},{"$f":"IF($A64=\"\",\"\",IF(OR(VLOOKUP($A64,Economática!$A$3:$AI$823,25,FALSE)=0,VLOOKUP($A64,Economática!$A$3:$AI$823,25,FALSE)=\"-\"),1/0,VLOOKUP($A64,Economática!$A$3:$AI$823,25,FALSE)))","v":2468.1},{"$f":"IF($A64=\"\",\"\",IF(ISERROR((F64+VLOOKUP($A64,Economática!$A$3:$AI$823,26,FALSE))/Y64),(F64+VLOOKUP($A64,Economática!$A$3:$AI$823,26,FALSE))/Y64,(F64+VLOOKUP($A64,Economática!$A$3:$AI$823,26,FALSE))/Y64))","v":6.2505198330699727},{"$f":"IF($A64=\"\",\"\",IF(OR(-VLOOKUP($A64,Economática!$A$3:$AI$823,27,FALSE)=0,-VLOOKUP($A64,Economática!$A$3:$AI$823,27,FALSE)=\"-\"),1/0,-VLOOKUP($A64,Economática!$A$3:$AI$823,27,FALSE)))","v":2064.2600000000002},0.15746182756287574,{"$f":"IF($A64=\"\",\"\",IF(OR(VLOOKUP($A64,Economática!$A$3:$AI$823,28,FALSE)=0,VLOOKUP($A64,Economática!$A$3:$AI$823,28,FALSE)=\"-\"),1/0,VLOOKUP($A64,Economática!$A$3:$AI$823,28,FALSE)))","v":-0.1},{"$f":"IF($A64=\"\",\"\",IF(OR(VLOOKUP($A64,Economática!$A$3:$AI$823,29,FALSE)=0,VLOOKUP($A64,Economática!$A$3:$AI$823,29,FALSE)=\"-\"),1/0,VLOOKUP($A64,Economática!$A$3:$AI$823,29,FALSE)))","v":38.1},{"$f":"IF($A64=\"\",\"\",IF(OR(VLOOKUP($A64,Economática!$A$3:$AI$823,30,FALSE)/E64=0,VLOOKUP($A64,Economática!$A$3:$AI$823,30,FALSE)/E64=\"-\",VLOOKUP($A64,Economática!$A$3:$AI$823,30,FALSE)/E64<33.33%,VLOOKUP($A64,Economática!$A$3:$AI$823,30,FALSE)/E64>100%),1/0,VLOOKUP($A64,Economática!$A$3:$AI$823,30,FALSE)/E64))","v":0.39157120221465386},"TRPL4",{"$f":"IF($A64=\"\",\"\",IF(OR(VLOOKUP($A64,Economática!$A$3:$AI$823,25,FALSE)=0,VLOOKUP($A64,Economática!$A$3:$AI$823,25,FALSE)=\"-\"),1/0,VLOOKUP($A64,Economática!$A$3:$AI$823,25,FALSE)))","v":2468.1},{"$f":"CONCATENATE(Economática!B66,\" \",Economática!C66)","v":"Tran Paulist PN"}]
[{"$f":"IF(Economática!AG67=\"\",\"\",Economática!AG67)","v":"ENEV3"},{"$f":"IF($A65=\"\",\"\",VLOOKUP(VLOOKUP($A65,Economática!$A$3:$AI$823,6,FALSE),Correção!$B$16:$C$36,2,FALSE))","v":"Energia Elétrica"},{"$f":"IF(Economática!B67=\"\",\"\",Economática!B67)","v":"Eneva"},{"$f":"IF($A65=\"\",\"\",IF(OR(VLOOKUP($A65,Economática!$A$3:$AI$823,8,FALSE)=0,VLOOKUP($A65,Economática!$A$3:$AI$823,8,FALSE)=\"-\"),1/0,VLOOKUP($A65,Economática!$A$3:$AI$823,8,FALSE)))","v":18.5},{"$f":"IF(A65=\"\",\"\",IF(ISERROR(VLOOKUP(A65,Correção!$B$2:$G$13,9,FALSE)),VLOOKUP($A65,Economática!$A$3:$AI$823,9,FALSE),VLOOKUP(A65,Correção!$B$2:$G$13,9,FALSE)))","v":314.99},{"$f":"IF($A65=\"\",\"\",Economática!G67)","v":5827.32},{"$f":"IF($A65=\"\",\"\",IF(OR(VLOOKUP($A65,Economática!$A$3:$AI$823,10,FALSE)=0,VLOOKUP($A65,Economática!$A$3:$AI$823,10,FALSE)=\"-\"),1/0,VLOOKUP($A65,Economática!$A$3:$AI$823,10,FALSE)))","v":6298.04},{"$f":"IF($A65=\"\",\"\",IF(OR(VLOOKUP($A65,Economática!$A$3:$AI$823,11,FALSE)=0,VLOOKUP($A65,Economática!$A$3:$AI$823,11,FALSE)=\"-\"),1/0,VLOOKUP($A65,Economática!$A$3:$AI$823,11,FALSE)))","v":2721.77},{"$f":"IF($A65=\"\",\"\",IF(OR(VLOOKUP($A65,Economática!$A$3:$AI$823,12,FALSE)=0,VLOOKUP($A65,Economática!$A$3:$AI$823,12,FALSE)=\"-\"),1/0,VLOOKUP($A65,Economática!$A$3:$AI$823,12,FALSE)))","v":3129.11},{"$f":"IF($A65=\"\",\"\",IF(OR(VLOOKUP($A65,Economática!$A$3:$AI$823,13,FALSE)=0,VLOOKUP($A65,Economática!$A$3:$AI$823,13,FALSE)=\"-\"),1/0,VLOOKUP($A65,Economática!$A$3:$AI$823,13,FALSE)))","v":95.5},{"$f":"IF($A65=\"\",\"\",IF(OR(VLOOKUP($A65,Economática!$A$3:$AI$823,14,FALSE)=0,VLOOKUP($A65,Economática!$A$3:$AI$823,14,FALSE)=\"-\"),1/0,VLOOKUP($A65,Economática!$A$3:$AI$823,14,FALSE)))","v":36.71},{"$f":"IF($A65=\"\",\"\",IF(OR(VLOOKUP($A65,Economática!$A$3:$AI$823,15,FALSE)=0,VLOOKUP($A65,Economática!$A$3:$AI$823,15,FALSE)=\"-\"),1/0,VLOOKUP($A65,Economática!$A$3:$AI$823,15,FALSE)))","v":242.76},{"$f":"IF($A65=\"\",\"\",IF(OR(VLOOKUP($A65,Economática!$A$3:$AI$823,16,FALSE)=0,VLOOKUP($A65,Economática!$A$3:$AI$823,16,FALSE)=\"-\"),1/0,VLOOKUP($A65,Economática!$A$3:$AI$823,16,FALSE)))","v":418.44},{"$f":"IF($A65=\"\",\"\",IF(OR(VLOOKUP($A65,Economática!$A$3:$AI$823,17,FALSE)=0,VLOOKUP($A65,Economática!$A$3:$AI$823,17,FALSE)=\"-\"),1/0,VLOOKUP($A65,Economática!$A$3:$AI$823,17,FALSE)))","v":887.87},{"$f":"IF($A65=\"\",\"\",IF(OR(VLOOKUP($A65,Economática!$A$3:$AI$823,18,FALSE)=0,VLOOKUP($A65,Economática!$A$3:$AI$823,18,FALSE)=\"-\"),1/0,VLOOKUP($A65,Economática!$A$3:$AI$823,18,FALSE)))","v":95.5},{"$f":"IF($A65=\"\",\"\",IF(OR(VLOOKUP($A65,Economática!$A$3:$AI$823,19,FALSE)=0,VLOOKUP($A65,Economática!$A$3:$AI$823,19,FALSE)=\"-\"),1/0,VLOOKUP($A65,Economática!$A$3:$AI$823,19,FALSE)))","v":887.87},{"$f":"IF($A65=\"\",\"\",VLOOKUP($A65,Economática!$A$3:$AI$823,20,FALSE)/E65)","v":2.8187244039493318},19.994412521032412,0.92525849311849406,6.5632525031817721,{"$f":"IF($A65=\"\",\"\",IF(OR(VLOOKUP($A65,Economática!$A$3:$AI$823,21,FALSE)/100=0,VLOOKUP($A65,Economática!$A$3:$AI$823,21,FALSE)/100=\"-\"),1/0,VLOOKUP($A65,Economática!$A$3:$AI$823,21,FALSE)/100))","v":0.16522200000000001},{"$f":"IF($A65=\"\",\"\",IF(OR(VLOOKUP($A65,Economática!$A$3:$AI$823,22,FALSE)/100=0,VLOOKUP($A65,Economática!$A$3:$AI$823,22,FALSE)/100=\"-\"),1/0,VLOOKUP($A65,Economática!$A$3:$AI$823,22,FALSE)/100))","v":0.60543199999999997},{"$f":"IF($A65=\"\",\"\",IF(OR(VLOOKUP($A65,Economática!$A$3:$AI$823,23,FALSE)=0,VLOOKUP($A65,Economática!$A$3:$AI$823,23,FALSE)=\"-\"),1/0,VLOOKUP($A65,Economática!$A$3:$AI$823,23,FALSE)))","v":1124.5999999999999},{"$f":"IF($A65=\"\",\"\",IF(OR(VLOOKUP($A65,Economática!$A$3:$AI$823,24,FALSE)=0,VLOOKUP($A65,Economática!$A$3:$AI$823,24,FALSE)=\"-\"),1/0,VLOOKUP($A65,Economática!$A$3:$AI$823,24,FALSE)))","v":1563},{"$f":"IF($A65=\"\",\"\",IF(OR(VLOOKUP($A65,Economática!$A$3:$AI$823,25,FALSE)=0,VLOOKUP($A65,Economática!$A$3:$AI$823,25,FALSE)=\"-\"),1/0,VLOOKUP($A65,Economática!$A$3:$AI$823,25,FALSE)))","v":1563},{"$f":"IF($A65=\"\",\"\",IF(ISERROR((F65+VLOOKUP($A65,Economática!$A$3:$AI$823,26,FALSE))/Y65),(F65+VLOOKUP($A65,Economática!$A$3:$AI$823,26,FALSE))/Y65,(F65+VLOOKUP($A65,Economática!$A$3:$AI$823,26,FALSE))/Y65))","v":6.1623678822776702},{"$f":"IF($A65=\"\",\"\",IF(OR(-VLOOKUP($A65,Economática!$A$3:$AI$823,27,FALSE)=0,-VLOOKUP($A65,Economática!$A$3:$AI$823,27,FALSE)=\"-\"),1/0,-VLOOKUP($A65,Economática!$A$3:$AI$823,27,FALSE)))","v":{"$error":"#DIV/0!"}},{"$error":"#DIV/0!"},{"$f":"IF($A65=\"\",\"\",IF(OR(VLOOKUP($A65,Economática!$A$3:$AI$823,28,FALSE)=0,VLOOKUP($A65,Economática!$A$3:$AI$823,28,FALSE)=\"-\"),1/0,VLOOKUP($A65,Economática!$A$3:$AI$823,28,FALSE)))","v":-1},{"$f":"IF($A65=\"\",\"\",IF(OR(VLOOKUP($A65,Economática!$A$3:$AI$823,29,FALSE)=0,VLOOKUP($A65,Economática!$A$3:$AI$823,29,FALSE)=\"-\"),1/0,VLOOKUP($A65,Economática!$A$3:$AI$823,29,FALSE)))","v":33.1},{"$f":"IF($A65=\"\",\"\",IF(OR(VLOOKUP($A65,Economática!$A$3:$AI$823,30,FALSE)/E65=0,VLOOKUP($A65,Economática!$A$3:$AI$823,30,FALSE)/E65=\"-\",VLOOKUP($A65,Economática!$A$3:$AI$823,30,FALSE)/E65<33.33%,VLOOKUP($A65,Economática!$A$3:$AI$823,30,FALSE)/E65>100%),1/0,VLOOKUP($A65,Economática!$A$3:$AI$823,30,FALSE)/E65))","v":{"$error":"#DIV/0!"}},"ENEV3",{"$f":"IF($A65=\"\",\"\",IF(OR(VLOOKUP($A65,Economática!$A$3:$AI$823,25,FALSE)=0,VLOOKUP($A65,Economática!$A$3:$AI$823,25,FALSE)=\"-\"),1/0,VLOOKUP($A65,Economática!$A$3:$AI$823,25,FALSE)))","v":1563},{"$f":"CONCATENATE(Economática!B67,\" \",Economática!C67)","v":"Eneva ON"}]
[{"$f":"IF(Economática!AG68=\"\",\"\",Economática!AG68)","v":"ENBR3"},{"$f":"IF($A66=\"\",\"\",VLOOKUP(VLOOKUP($A66,Economática!$A$3:$AI$823,6,FALSE),Correção!$B$16:$C$36,2,FALSE))","v":"Energia Elétrica"},{"$f":"IF(Economática!B68=\"\",\"\",Economática!B68)","v":"Energias BR"},{"$f":"IF($A66=\"\",\"\",IF(OR(VLOOKUP($A66,Economática!$A$3:$AI$823,8,FALSE)=0,VLOOKUP($A66,Economática!$A$3:$AI$823,8,FALSE)=\"-\"),1/0,VLOOKUP($A66,Economática!$A$3:$AI$823,8,FALSE)))","v":16.98},{"$f":"IF(A66=\"\",\"\",IF(ISERROR(VLOOKUP(A66,Correção!$B$2:$G$13,9,FALSE)),VLOOKUP($A66,Economática!$A$3:$AI$823,9,FALSE),VLOOKUP(A66,Correção!$B$2:$G$13,9,FALSE)))","v":605.64599999999996},{"$f":"IF($A66=\"\",\"\",Economática!G68)","v":10283.870000000001},{"$f":"IF($A66=\"\",\"\",IF(OR(VLOOKUP($A66,Economática!$A$3:$AI$823,10,FALSE)=0,VLOOKUP($A66,Economática!$A$3:$AI$823,10,FALSE)=\"-\"),1/0,VLOOKUP($A66,Economática!$A$3:$AI$823,10,FALSE)))","v":8523.7099999999991},{"$f":"IF($A66=\"\",\"\",IF(OR(VLOOKUP($A66,Economática!$A$3:$AI$823,11,FALSE)=0,VLOOKUP($A66,Economática!$A$3:$AI$823,11,FALSE)=\"-\"),1/0,VLOOKUP($A66,Economática!$A$3:$AI$823,11,FALSE)))","v":12373.38},{"$f":"IF($A66=\"\",\"\",IF(OR(VLOOKUP($A66,Economática!$A$3:$AI$823,12,FALSE)=0,VLOOKUP($A66,Economática!$A$3:$AI$823,12,FALSE)=\"-\"),1/0,VLOOKUP($A66,Economática!$A$3:$AI$823,12,FALSE)))","v":13834.22},{"$f":"IF($A66=\"\",\"\",IF(OR(VLOOKUP($A66,Economática!$A$3:$AI$823,13,FALSE)=0,VLOOKUP($A66,Economática!$A$3:$AI$823,13,FALSE)=\"-\"),1/0,VLOOKUP($A66,Economática!$A$3:$AI$823,13,FALSE)))","v":611.86},{"$f":"IF($A66=\"\",\"\",IF(OR(VLOOKUP($A66,Economática!$A$3:$AI$823,14,FALSE)=0,VLOOKUP($A66,Economática!$A$3:$AI$823,14,FALSE)=\"-\"),1/0,VLOOKUP($A66,Economática!$A$3:$AI$823,14,FALSE)))","v":214.12},{"$f":"IF($A66=\"\",\"\",IF(OR(VLOOKUP($A66,Economática!$A$3:$AI$823,15,FALSE)=0,VLOOKUP($A66,Economática!$A$3:$AI$823,15,FALSE)=\"-\"),1/0,VLOOKUP($A66,Economática!$A$3:$AI$823,15,FALSE)))","v":441.79},{"$f":"IF($A66=\"\",\"\",IF(OR(VLOOKUP($A66,Economática!$A$3:$AI$823,16,FALSE)=0,VLOOKUP($A66,Economática!$A$3:$AI$823,16,FALSE)=\"-\"),1/0,VLOOKUP($A66,Economática!$A$3:$AI$823,16,FALSE)))","v":748.73},{"$f":"IF($A66=\"\",\"\",IF(OR(VLOOKUP($A66,Economática!$A$3:$AI$823,17,FALSE)=0,VLOOKUP($A66,Economática!$A$3:$AI$823,17,FALSE)=\"-\"),1/0,VLOOKUP($A66,Economática!$A$3:$AI$823,17,FALSE)))","v":1272.83},{"$f":"IF($A66=\"\",\"\",IF(OR(VLOOKUP($A66,Economática!$A$3:$AI$823,18,FALSE)=0,VLOOKUP($A66,Economática!$A$3:$AI$823,18,FALSE)=\"-\"),1/0,VLOOKUP($A66,Economática!$A$3:$AI$823,18,FALSE)))","v":611.86},{"$f":"IF($A66=\"\",\"\",IF(OR(VLOOKUP($A66,Economática!$A$3:$AI$823,19,FALSE)=0,VLOOKUP($A66,Economática!$A$3:$AI$823,19,FALSE)=\"-\"),1/0,VLOOKUP($A66,Economática!$A$3:$AI$823,19,FALSE)))","v":1272.83},{"$f":"IF($A66=\"\",\"\",VLOOKUP($A66,Economática!$A$3:$AI$823,20,FALSE)/E66)","v":2.1016072094920135},14.073749351931657,1.2065015210512793,8.0795307150208586,{"$f":"IF($A66=\"\",\"\",IF(OR(VLOOKUP($A66,Economática!$A$3:$AI$823,21,FALSE)/100=0,VLOOKUP($A66,Economática!$A$3:$AI$823,21,FALSE)/100=\"-\"),1/0,VLOOKUP($A66,Economática!$A$3:$AI$823,21,FALSE)/100))","v":0.15654099999999999},{"$f":"IF($A66=\"\",\"\",IF(OR(VLOOKUP($A66,Economática!$A$3:$AI$823,22,FALSE)/100=0,VLOOKUP($A66,Economática!$A$3:$AI$823,22,FALSE)/100=\"-\"),1/0,VLOOKUP($A66,Economática!$A$3:$AI$823,22,FALSE)/100))","v":0.52518500000000001},{"$f":"IF($A66=\"\",\"\",IF(OR(VLOOKUP($A66,Economática!$A$3:$AI$823,23,FALSE)=0,VLOOKUP($A66,Economática!$A$3:$AI$823,23,FALSE)=\"-\"),1/0,VLOOKUP($A66,Economática!$A$3:$AI$823,23,FALSE)))","v":2170.3000000000002},{"$f":"IF($A66=\"\",\"\",IF(OR(VLOOKUP($A66,Economática!$A$3:$AI$823,24,FALSE)=0,VLOOKUP($A66,Economática!$A$3:$AI$823,24,FALSE)=\"-\"),1/0,VLOOKUP($A66,Economática!$A$3:$AI$823,24,FALSE)))","v":2773.2},{"$f":"IF($A66=\"\",\"\",IF(OR(VLOOKUP($A66,Economática!$A$3:$AI$823,25,FALSE)=0,VLOOKUP($A66,Economática!$A$3:$AI$823,25,FALSE)=\"-\"),1/0,VLOOKUP($A66,Economática!$A$3:$AI$823,25,FALSE)))","v":2773.2},{"$f":"IF($A66=\"\",\"\",IF(ISERROR((F66+VLOOKUP($A66,Economática!$A$3:$AI$823,26,FALSE))/Y66),(F66+VLOOKUP($A66,Economática!$A$3:$AI$823,26,FALSE))/Y66,(F66+VLOOKUP($A66,Economática!$A$3:$AI$823,26,FALSE))/Y66))","v":5.540463003028993},{"$f":"IF($A66=\"\",\"\",IF(OR(-VLOOKUP($A66,Economática!$A$3:$AI$823,27,FALSE)=0,-VLOOKUP($A66,Economática!$A$3:$AI$823,27,FALSE)=\"-\"),1/0,-VLOOKUP($A66,Economática!$A$3:$AI$823,27,FALSE)))","v":356},3.4617318188580756E-2,{"$f":"IF($A66=\"\",\"\",IF(OR(VLOOKUP($A66,Economática!$A$3:$AI$823,28,FALSE)=0,VLOOKUP($A66,Economática!$A$3:$AI$823,28,FALSE)=\"-\"),1/0,VLOOKUP($A66,Economática!$A$3:$AI$823,28,FALSE)))","v":-1.8},{"$f":"IF($A66=\"\",\"\",IF(OR(VLOOKUP($A66,Economática!$A$3:$AI$823,29,FALSE)=0,VLOOKUP($A66,Economática!$A$3:$AI$823,29,FALSE)=\"-\"),1/0,VLOOKUP($A66,Economática!$A$3:$AI$823,29,FALSE)))","v":32.299999999999997},{"$f":"IF($A66=\"\",\"\",IF(OR(VLOOKUP($A66,Economática!$A$3:$AI$823,30,FALSE)/E66=0,VLOOKUP($A66,Economática!$A$3:$AI$823,30,FALSE)/E66=\"-\",VLOOKUP($A66,Economática!$A$3:$AI$823,30,FALSE)/E66<33.33%,VLOOKUP($A66,Economática!$A$3:$AI$823,30,FALSE)/E66>100%),1/0,VLOOKUP($A66,Economática!$A$3:$AI$823,30,FALSE)/E66))","v":{"$error":"#DIV/0!"}},"ENBR3",{"$f":"IF($A66=\"\",\"\",IF(OR(VLOOKUP($A66,Economática!$A$3:$AI$823,25,FALSE)=0,VLOOKUP($A66,Economática!$A$3:$AI$823,25,FALSE)=\"-\"),1/0,VLOOKUP($A66,Economática!$A$3:$AI$823,25,FALSE)))","v":2773.2},{"$f":"CONCATENATE(Economática!B68,\" \",Economática!C68)","v":"Energias BR ON"}]
[{"$f":"IF(Economática!AG69=\"\",\"\",Economática!AG69)","v":"GEPA4"},{"$f":"IF($A67=\"\",\"\",VLOOKUP(VLOOKUP($A67,Economática!$A$3:$AI$823,6,FALSE),Correção!$B$16:$C$36,2,FALSE))","v":"Energia Elétrica"},{"$f":"IF(Economática!B69=\"\",\"\",Economática!B69)","v":"Ger Paranap"},{"$f":"IF($A67=\"\",\"\",IF(OR(VLOOKUP($A67,Economática!$A$3:$AI$823,8,FALSE)=0,VLOOKUP($A67,Economática!$A$3:$AI$823,8,FALSE)=\"-\"),1/0,VLOOKUP($A67,Economática!$A$3:$AI$823,8,FALSE)))","v":40.5},{"$f":"IF(A67=\"\",\"\",IF(ISERROR(VLOOKUP(A67,Correção!$B$2:$G$13,9,FALSE)),VLOOKUP($A67,Economática!$A$3:$AI$823,9,FALSE),VLOOKUP(A67,Correção!$B$2:$G$13,9,FALSE)))","v":94.433000000000007},{"$f":"IF($A67=\"\",\"\",Economática!G69)","v":3667.15},{"$f":"IF($A67=\"\",\"\",IF(OR(VLOOKUP($A67,Economática!$A$3:$AI$823,10,FALSE)=0,VLOOKUP($A67,Economática!$A$3:$AI$823,10,FALSE)=\"-\"),1/0,VLOOKUP($A67,Economática!$A$3:$AI$823,10,FALSE)))","v":1635.42},{"$f":"IF($A67=\"\",\"\",IF(OR(VLOOKUP($A67,Economática!$A$3:$AI$823,11,FALSE)=0,VLOOKUP($A67,Economática!$A$3:$AI$823,11,FALSE)=\"-\"),1/0,VLOOKUP($A67,Economática!$A$3:$AI$823,11,FALSE)))","v":1453.35},{"$f":"IF($A67=\"\",\"\",IF(OR(VLOOKUP($A67,Economática!$A$3:$AI$823,12,FALSE)=0,VLOOKUP($A67,Economática!$A$3:$AI$823,12,FALSE)=\"-\"),1/0,VLOOKUP($A67,Economática!$A$3:$AI$823,12,FALSE)))","v":1318.86},{"$f":"IF($A67=\"\",\"\",IF(OR(VLOOKUP($A67,Economática!$A$3:$AI$823,13,FALSE)=0,VLOOKUP($A67,Economática!$A$3:$AI$823,13,FALSE)=\"-\"),1/0,VLOOKUP($A67,Economática!$A$3:$AI$823,13,FALSE)))","v":243.88},{"$f":"IF($A67=\"\",\"\",IF(OR(VLOOKUP($A67,Economática!$A$3:$AI$823,14,FALSE)=0,VLOOKUP($A67,Economática!$A$3:$AI$823,14,FALSE)=\"-\"),1/0,VLOOKUP($A67,Economática!$A$3:$AI$823,14,FALSE)))","v":85.67},{"$f":"IF($A67=\"\",\"\",IF(OR(VLOOKUP($A67,Economática!$A$3:$AI$823,15,FALSE)=0,VLOOKUP($A67,Economática!$A$3:$AI$823,15,FALSE)=\"-\"),1/0,VLOOKUP($A67,Economática!$A$3:$AI$823,15,FALSE)))","v":134.38},{"$f":"IF($A67=\"\",\"\",IF(OR(VLOOKUP($A67,Economática!$A$3:$AI$823,16,FALSE)=0,VLOOKUP($A67,Economática!$A$3:$AI$823,16,FALSE)=\"-\"),1/0,VLOOKUP($A67,Economática!$A$3:$AI$823,16,FALSE)))","v":127.26},{"$f":"IF($A67=\"\",\"\",IF(OR(VLOOKUP($A67,Economática!$A$3:$AI$823,17,FALSE)=0,VLOOKUP($A67,Economática!$A$3:$AI$823,17,FALSE)=\"-\"),1/0,VLOOKUP($A67,Economática!$A$3:$AI$823,17,FALSE)))","v":255.91},{"$f":"IF($A67=\"\",\"\",IF(OR(VLOOKUP($A67,Economática!$A$3:$AI$823,18,FALSE)=0,VLOOKUP($A67,Economática!$A$3:$AI$823,18,FALSE)=\"-\"),1/0,VLOOKUP($A67,Economática!$A$3:$AI$823,18,FALSE)))","v":243.88},{"$f":"IF($A67=\"\",\"\",IF(OR(VLOOKUP($A67,Economática!$A$3:$AI$823,19,FALSE)=0,VLOOKUP($A67,Economática!$A$3:$AI$823,19,FALSE)=\"-\"),1/0,VLOOKUP($A67,Economática!$A$3:$AI$823,19,FALSE)))","v":255.91},{"$f":"IF($A67=\"\",\"\",VLOOKUP($A67,Economática!$A$3:$AI$823,20,FALSE)/E67)","v":2.7099636779515635},{"$f":"IF($A67=\"\",\"\",IF((G67/E67)<=0,1/0,G67/E67))","v":17.318310336429001},{"$f":"IF($A67=\"\",\"\",D67/R67)","v":2.3385653226694063},{"$f":"IF($A67=\"\",\"\",IF((D67/Q67)<=0,1/0,D67/Q67))","v":14.94484975186589},{"$f":"IF($A67=\"\",\"\",IF(OR(VLOOKUP($A67,Economática!$A$3:$AI$823,21,FALSE)/100=0,VLOOKUP($A67,Economática!$A$3:$AI$823,21,FALSE)/100=\"-\"),1/0,VLOOKUP($A67,Economática!$A$3:$AI$823,21,FALSE)/100))","v":0.15109899999999998},{"$f":"IF($A67=\"\",\"\",IF(OR(VLOOKUP($A67,Economática!$A$3:$AI$823,22,FALSE)/100=0,VLOOKUP($A67,Economática!$A$3:$AI$823,22,FALSE)/100=\"-\"),1/0,VLOOKUP($A67,Economática!$A$3:$AI$823,22,FALSE)/100))","v":0.32586700000000002},{"$f":"IF($A67=\"\",\"\",IF(OR(VLOOKUP($A67,Economática!$A$3:$AI$823,23,FALSE)=0,VLOOKUP($A67,Economática!$A$3:$AI$823,23,FALSE)=\"-\"),1/0,VLOOKUP($A67,Economática!$A$3:$AI$823,23,FALSE)))","v":644.5},{"$f":"IF($A67=\"\",\"\",IF(OR(VLOOKUP($A67,Economática!$A$3:$AI$823,24,FALSE)=0,VLOOKUP($A67,Economática!$A$3:$AI$823,24,FALSE)=\"-\"),1/0,VLOOKUP($A67,Economática!$A$3:$AI$823,24,FALSE)))","v":705.4},{"$f":"IF($A67=\"\",\"\",IF(OR(VLOOKUP($A67,Economática!$A$3:$AI$823,25,FALSE)=0,VLOOKUP($A67,Economática!$A$3:$AI$823,25,FALSE)=\"-\"),1/0,VLOOKUP($A67,Economática!$A$3:$AI$823,25,FALSE)))","v":705.4},{"$f":"IF($A67=\"\",\"\",IF(ISERROR((F67+VLOOKUP($A67,Economática!$A$3:$AI$823,26,FALSE))/Y67),(F67+VLOOKUP($A67,Economática!$A$3:$AI$823,26,FALSE))/Y67,(F67+VLOOKUP($A67,Economática!$A$3:$AI$823,26,FALSE))/Y67))","v":5.9541820243833286},{"$f":"IF($A67=\"\",\"\",IF(OR(-VLOOKUP($A67,Economática!$A$3:$AI$823,27,FALSE)=0,-VLOOKUP($A67,Economática!$A$3:$AI$823,27,FALSE)=\"-\"),1/0,-VLOOKUP($A67,Economática!$A$3:$AI$823,27,FALSE)))","v":307.43},{"$f":"IF(A67=\"\",\"\",AA67/F67)","v":8.3833494675701836E-2},{"$f":"IF($A67=\"\",\"\",IF(OR(VLOOKUP($A67,Economática!$A$3:$AI$823,28,FALSE)=0,VLOOKUP($A67,Economática!$A$3:$AI$823,28,FALSE)=\"-\"),1/0,VLOOKUP($A67,Economática!$A$3:$AI$823,28,FALSE)))","v":1.4},{"$f":"IF($A67=\"\",\"\",IF(OR(VLOOKUP($A67,Economática!$A$3:$AI$823,29,FALSE)=0,VLOOKUP($A67,Economática!$A$3:$AI$823,29,FALSE)=\"-\"),1/0,VLOOKUP($A67,Economática!$A$3:$AI$823,29,FALSE)))","v":10.8},{"$f":"IF($A67=\"\",\"\",IF(OR(VLOOKUP($A67,Economática!$A$3:$AI$823,30,FALSE)/E67=0,VLOOKUP($A67,Economática!$A$3:$AI$823,30,FALSE)/E67=\"-\",VLOOKUP($A67,Economática!$A$3:$AI$823,30,FALSE)/E67<33.33%,VLOOKUP($A67,Economática!$A$3:$AI$823,30,FALSE)/E67>100%),1/0,VLOOKUP($A67,Economática!$A$3:$AI$823,30,FALSE)/E67))","v":0.33356983257971257},{"$f":"IF(A67=\"\",\"\",A67)","v":"GEPA4"},{"$f":"IF($A67=\"\",\"\",IF(OR(VLOOKUP($A67,Economática!$A$3:$AI$823,25,FALSE)=0,VLOOKUP($A67,Economática!$A$3:$AI$823,25,FALSE)=\"-\"),1/0,VLOOKUP($A67,Economática!$A$3:$AI$823,25,FALSE)))","v":705.4},{"$f":"CONCATENATE(Economática!B69,\" \",Economática!C69)","v":"Ger Paranap PN"}]
[{"$f":"IF(Economática!AG70=\"\",\"\",Economática!AG70)","v":"COCE5"},{"$f":"IF($A68=\"\",\"\",VLOOKUP(VLOOKUP($A68,Economática!$A$3:$AI$823,6,FALSE),Correção!$B$16:$C$36,2,FALSE))","v":"Energia Elétrica"},{"$f":"IF(Economática!B70=\"\",\"\",Economática!B70)","v":"Coelce"},{"$f":"IF($A68=\"\",\"\",IF(OR(VLOOKUP($A68,Economática!$A$3:$AI$823,8,FALSE)=0,VLOOKUP($A68,Economática!$A$3:$AI$823,8,FALSE)=\"-\"),1/0,VLOOKUP($A68,Economática!$A$3:$AI$823,8,FALSE)))","v":52.3},{"$f":"IF(A68=\"\",\"\",IF(ISERROR(VLOOKUP(A68,Correção!$B$2:$G$13,9,FALSE)),VLOOKUP($A68,Economática!$A$3:$AI$823,9,FALSE),VLOOKUP(A68,Correção!$B$2:$G$13,9,FALSE)))","v":77.855000000000004},{"$f":"IF($A68=\"\",\"\",Economática!G70)","v":3720.94},{"$f":"IF($A68=\"\",\"\",IF(OR(VLOOKUP($A68,Economática!$A$3:$AI$823,10,FALSE)=0,VLOOKUP($A68,Economática!$A$3:$AI$823,10,FALSE)=\"-\"),1/0,VLOOKUP($A68,Economática!$A$3:$AI$823,10,FALSE)))","v":2862.64},{"$f":"IF($A68=\"\",\"\",IF(OR(VLOOKUP($A68,Economática!$A$3:$AI$823,11,FALSE)=0,VLOOKUP($A68,Economática!$A$3:$AI$823,11,FALSE)=\"-\"),1/0,VLOOKUP($A68,Economática!$A$3:$AI$823,11,FALSE)))","v":4594.42},{"$f":"IF($A68=\"\",\"\",IF(OR(VLOOKUP($A68,Economática!$A$3:$AI$823,12,FALSE)=0,VLOOKUP($A68,Economática!$A$3:$AI$823,12,FALSE)=\"-\"),1/0,VLOOKUP($A68,Economática!$A$3:$AI$823,12,FALSE)))","v":5102.24},{"$f":"IF($A68=\"\",\"\",IF(OR(VLOOKUP($A68,Economática!$A$3:$AI$823,13,FALSE)=0,VLOOKUP($A68,Economática!$A$3:$AI$823,13,FALSE)=\"-\"),1/0,VLOOKUP($A68,Economática!$A$3:$AI$823,13,FALSE)))","v":435.78},{"$f":"IF($A68=\"\",\"\",IF(OR(VLOOKUP($A68,Economática!$A$3:$AI$823,14,FALSE)=0,VLOOKUP($A68,Economática!$A$3:$AI$823,14,FALSE)=\"-\"),1/0,VLOOKUP($A68,Economática!$A$3:$AI$823,14,FALSE)))","v":85.39},{"$f":"IF($A68=\"\",\"\",IF(OR(VLOOKUP($A68,Economática!$A$3:$AI$823,15,FALSE)=0,VLOOKUP($A68,Economática!$A$3:$AI$823,15,FALSE)=\"-\"),1/0,VLOOKUP($A68,Economática!$A$3:$AI$823,15,FALSE)))","v":166.43},{"$f":"IF($A68=\"\",\"\",IF(OR(VLOOKUP($A68,Economática!$A$3:$AI$823,16,FALSE)=0,VLOOKUP($A68,Economática!$A$3:$AI$823,16,FALSE)=\"-\"),1/0,VLOOKUP($A68,Economática!$A$3:$AI$823,16,FALSE)))","v":235.7},{"$f":"IF($A68=\"\",\"\",IF(OR(VLOOKUP($A68,Economática!$A$3:$AI$823,17,FALSE)=0,VLOOKUP($A68,Economática!$A$3:$AI$823,17,FALSE)=\"-\"),1/0,VLOOKUP($A68,Economática!$A$3:$AI$823,17,FALSE)))","v":364.52},{"$f":"IF($A68=\"\",\"\",IF(OR(VLOOKUP($A68,Economática!$A$3:$AI$823,18,FALSE)=0,VLOOKUP($A68,Economática!$A$3:$AI$823,18,FALSE)=\"-\"),1/0,VLOOKUP($A68,Economática!$A$3:$AI$823,18,FALSE)))","v":435.78},{"$f":"IF($A68=\"\",\"\",IF(OR(VLOOKUP($A68,Economática!$A$3:$AI$823,19,FALSE)=0,VLOOKUP($A68,Economática!$A$3:$AI$823,19,FALSE)=\"-\"),1/0,VLOOKUP($A68,Economática!$A$3:$AI$823,19,FALSE)))","v":364.52},{"$f":"IF($A68=\"\",\"\",VLOOKUP($A68,Economática!$A$3:$AI$823,20,FALSE)/E68)","v":4.6820371202877142},36.768865198124715,1.4223990791716739,11.170351421046856,{"$f":"IF($A68=\"\",\"\",IF(OR(VLOOKUP($A68,Economática!$A$3:$AI$823,21,FALSE)/100=0,VLOOKUP($A68,Economática!$A$3:$AI$823,21,FALSE)/100=\"-\"),1/0,VLOOKUP($A68,Economática!$A$3:$AI$823,21,FALSE)/100))","v":0.141127},{"$f":"IF($A68=\"\",\"\",IF(OR(VLOOKUP($A68,Economática!$A$3:$AI$823,22,FALSE)/100=0,VLOOKUP($A68,Economática!$A$3:$AI$823,22,FALSE)/100=\"-\"),1/0,VLOOKUP($A68,Economática!$A$3:$AI$823,22,FALSE)/100))","v":0.60243099999999994},{"$f":"IF($A68=\"\",\"\",IF(OR(VLOOKUP($A68,Economática!$A$3:$AI$823,23,FALSE)=0,VLOOKUP($A68,Economática!$A$3:$AI$823,23,FALSE)=\"-\"),1/0,VLOOKUP($A68,Economática!$A$3:$AI$823,23,FALSE)))","v":808},{"$f":"IF($A68=\"\",\"\",IF(OR(VLOOKUP($A68,Economática!$A$3:$AI$823,24,FALSE)=0,VLOOKUP($A68,Economática!$A$3:$AI$823,24,FALSE)=\"-\"),1/0,VLOOKUP($A68,Economática!$A$3:$AI$823,24,FALSE)))","v":741.3},{"$f":"IF($A68=\"\",\"\",IF(OR(VLOOKUP($A68,Economática!$A$3:$AI$823,25,FALSE)=0,VLOOKUP($A68,Economática!$A$3:$AI$823,25,FALSE)=\"-\"),1/0,VLOOKUP($A68,Economática!$A$3:$AI$823,25,FALSE)))","v":741.3},{"$f":"IF($A68=\"\",\"\",IF(ISERROR((F68+VLOOKUP($A68,Economática!$A$3:$AI$823,26,FALSE))/Y68),(F68+VLOOKUP($A68,Economática!$A$3:$AI$823,26,FALSE))/Y68,(F68+VLOOKUP($A68,Economática!$A$3:$AI$823,26,FALSE))/Y68))","v":7.345854579792257},{"$f":"IF($A68=\"\",\"\",IF(OR(-VLOOKUP($A68,Economática!$A$3:$AI$823,27,FALSE)=0,-VLOOKUP($A68,Economática!$A$3:$AI$823,27,FALSE)=\"-\"),1/0,-VLOOKUP($A68,Economática!$A$3:$AI$823,27,FALSE)))","v":84.96},2.2832940063532332E-2,{"$f":"IF($A68=\"\",\"\",IF(OR(VLOOKUP($A68,Economática!$A$3:$AI$823,28,FALSE)=0,VLOOKUP($A68,Economática!$A$3:$AI$823,28,FALSE)=\"-\"),1/0,VLOOKUP($A68,Economática!$A$3:$AI$823,28,FALSE)))","v":-4.9000000000000004},{"$f":"IF($A68=\"\",\"\",IF(OR(VLOOKUP($A68,Economática!$A$3:$AI$823,29,FALSE)=0,VLOOKUP($A68,Economática!$A$3:$AI$823,29,FALSE)=\"-\"),1/0,VLOOKUP($A68,Economática!$A$3:$AI$823,29,FALSE)))","v":-2.6},{"$f":"IF($A68=\"\",\"\",IF(OR(VLOOKUP($A68,Economática!$A$3:$AI$823,30,FALSE)/E68=0,VLOOKUP($A68,Economática!$A$3:$AI$823,30,FALSE)/E68=\"-\",VLOOKUP($A68,Economática!$A$3:$AI$823,30,FALSE)/E68<33.33%,VLOOKUP($A68,Economática!$A$3:$AI$823,30,FALSE)/E68>100%),1/0,VLOOKUP($A68,Economática!$A$3:$AI$823,30,FALSE)/E68))","v":0.61781516922484103},"COCE5",{"$f":"IF($A68=\"\",\"\",IF(OR(VLOOKUP($A68,Economática!$A$3:$AI$823,25,FALSE)=0,VLOOKUP($A68,Economática!$A$3:$AI$823,25,FALSE)=\"-\"),1/0,VLOOKUP($A68,Economática!$A$3:$AI$823,25,FALSE)))","v":741.3},{"$f":"CONCATENATE(Economática!B70,\" \",Economática!C70)","v":"Coelce PNA"}]
[{"$f":"IF(Economática!AG71=\"\",\"\",Economática!AG71)","v":"REDE4"},{"$f":"IF($A69=\"\",\"\",VLOOKUP(VLOOKUP($A69,Economática!$A$3:$AI$823,6,FALSE),Correção!$B$16:$C$36,2,FALSE))","v":"Energia Elétrica"},{"$f":"IF(Economática!B71=\"\",\"\",Economática!B71)","v":"Rede Energia"},{"$f":"IF($A69=\"\",\"\",IF(OR(VLOOKUP($A69,Economática!$A$3:$AI$823,8,FALSE)=0,VLOOKUP($A69,Economática!$A$3:$AI$823,8,FALSE)=\"-\"),1/0,VLOOKUP($A69,Economática!$A$3:$AI$823,8,FALSE)))","v":{"$error":"#DIV/0!"}},{"$f":"IF(A69=\"\",\"\",IF(ISERROR(VLOOKUP(A69,Correção!$B$2:$G$13,9,FALSE)),VLOOKUP($A69,Economática!$A$3:$AI$823,9,FALSE),VLOOKUP(A69,Correção!$B$2:$G$13,9,FALSE)))","v":2057.875},{"$f":"IF($A69=\"\",\"\",Economática!G71)","v":15434.06},{"$f":"IF($A69=\"\",\"\",IF(OR(VLOOKUP($A69,Economática!$A$3:$AI$823,10,FALSE)=0,VLOOKUP($A69,Economática!$A$3:$AI$823,10,FALSE)=\"-\"),1/0,VLOOKUP($A69,Economática!$A$3:$AI$823,10,FALSE)))","v":3258.2},{"$f":"IF($A69=\"\",\"\",IF(OR(VLOOKUP($A69,Economática!$A$3:$AI$823,11,FALSE)=0,VLOOKUP($A69,Economática!$A$3:$AI$823,11,FALSE)=\"-\"),1/0,VLOOKUP($A69,Economática!$A$3:$AI$823,11,FALSE)))","v":8977.15},{"$f":"IF($A69=\"\",\"\",IF(OR(VLOOKUP($A69,Economática!$A$3:$AI$823,12,FALSE)=0,VLOOKUP($A69,Economática!$A$3:$AI$823,12,FALSE)=\"-\"),1/0,VLOOKUP($A69,Economática!$A$3:$AI$823,12,FALSE)))","v":10069.540000000001},{"$f":"IF($A69=\"\",\"\",IF(OR(VLOOKUP($A69,Economática!$A$3:$AI$823,13,FALSE)=0,VLOOKUP($A69,Economática!$A$3:$AI$823,13,FALSE)=\"-\"),1/0,VLOOKUP($A69,Economática!$A$3:$AI$823,13,FALSE)))","v":111.23},{"$f":"IF($A69=\"\",\"\",IF(OR(VLOOKUP($A69,Economática!$A$3:$AI$823,14,FALSE)=0,VLOOKUP($A69,Economática!$A$3:$AI$823,14,FALSE)=\"-\"),1/0,VLOOKUP($A69,Economática!$A$3:$AI$823,14,FALSE)))","v":117.14},{"$f":"IF($A69=\"\",\"\",IF(OR(VLOOKUP($A69,Economática!$A$3:$AI$823,15,FALSE)=0,VLOOKUP($A69,Economática!$A$3:$AI$823,15,FALSE)=\"-\"),1/0,VLOOKUP($A69,Economática!$A$3:$AI$823,15,FALSE)))","v":192.81},{"$f":"IF($A69=\"\",\"\",IF(OR(VLOOKUP($A69,Economática!$A$3:$AI$823,16,FALSE)=0,VLOOKUP($A69,Economática!$A$3:$AI$823,16,FALSE)=\"-\"),1/0,VLOOKUP($A69,Economática!$A$3:$AI$823,16,FALSE)))","v":343.01},{"$f":"IF($A69=\"\",\"\",IF(OR(VLOOKUP($A69,Economática!$A$3:$AI$823,17,FALSE)=0,VLOOKUP($A69,Economática!$A$3:$AI$823,17,FALSE)=\"-\"),1/0,VLOOKUP($A69,Economática!$A$3:$AI$823,17,FALSE)))","v":399.56},{"$f":"IF($A69=\"\",\"\",IF(OR(VLOOKUP($A69,Economática!$A$3:$AI$823,18,FALSE)=0,VLOOKUP($A69,Economática!$A$3:$AI$823,18,FALSE)=\"-\"),1/0,VLOOKUP($A69,Economática!$A$3:$AI$823,18,FALSE)))","v":111.23},{"$f":"IF($A69=\"\",\"\",IF(OR(VLOOKUP($A69,Economática!$A$3:$AI$823,19,FALSE)=0,VLOOKUP($A69,Economática!$A$3:$AI$823,19,FALSE)=\"-\"),1/0,VLOOKUP($A69,Economática!$A$3:$AI$823,19,FALSE)))","v":399.56},{"$f":"IF($A69=\"\",\"\",VLOOKUP($A69,Economática!$A$3:$AI$823,20,FALSE)/E69)","v":0.19416145295511147},1.5832837271457205,{"$error":"#DIV/0!"},{"$error":"#DIV/0!"},{"$f":"IF($A69=\"\",\"\",IF(OR(VLOOKUP($A69,Economática!$A$3:$AI$823,21,FALSE)/100=0,VLOOKUP($A69,Economática!$A$3:$AI$823,21,FALSE)/100=\"-\"),1/0,VLOOKUP($A69,Economática!$A$3:$AI$823,21,FALSE)/100))","v":0.13966799999999999},{"$f":"IF($A69=\"\",\"\",IF(OR(VLOOKUP($A69,Economática!$A$3:$AI$823,22,FALSE)/100=0,VLOOKUP($A69,Economática!$A$3:$AI$823,22,FALSE)/100=\"-\"),1/0,VLOOKUP($A69,Economática!$A$3:$AI$823,22,FALSE)/100))","v":1.3014840000000001},{"$f":"IF($A69=\"\",\"\",IF(OR(VLOOKUP($A69,Economática!$A$3:$AI$823,23,FALSE)=0,VLOOKUP($A69,Economática!$A$3:$AI$823,23,FALSE)=\"-\"),1/0,VLOOKUP($A69,Economática!$A$3:$AI$823,23,FALSE)))","v":1316.7},{"$f":"IF($A69=\"\",\"\",IF(OR(VLOOKUP($A69,Economática!$A$3:$AI$823,24,FALSE)=0,VLOOKUP($A69,Economática!$A$3:$AI$823,24,FALSE)=\"-\"),1/0,VLOOKUP($A69,Economática!$A$3:$AI$823,24,FALSE)))","v":1793},{"$f":"IF($A69=\"\",\"\",IF(OR(VLOOKUP($A69,Economática!$A$3:$AI$823,25,FALSE)=0,VLOOKUP($A69,Economática!$A$3:$AI$823,25,FALSE)=\"-\"),1/0,VLOOKUP($A69,Economática!$A$3:$AI$823,25,FALSE)))","v":1793},{"$f":"IF($A69=\"\",\"\",IF(ISERROR((F69+VLOOKUP($A69,Economática!$A$3:$AI$823,26,FALSE))/Y69),(F69+VLOOKUP($A69,Economática!$A$3:$AI$823,26,FALSE))/Y69,(F69+VLOOKUP($A69,Economática!$A$3:$AI$823,26,FALSE))/Y69))","v":11.766193530395984},{"$f":"IF($A69=\"\",\"\",IF(OR(-VLOOKUP($A69,Economática!$A$3:$AI$823,27,FALSE)=0,-VLOOKUP($A69,Economática!$A$3:$AI$823,27,FALSE)=\"-\"),1/0,-VLOOKUP($A69,Economática!$A$3:$AI$823,27,FALSE)))","v":26.46},1.7143901215882276E-3,{"$f":"IF($A69=\"\",\"\",IF(OR(VLOOKUP($A69,Economática!$A$3:$AI$823,28,FALSE)=0,VLOOKUP($A69,Economática!$A$3:$AI$823,28,FALSE)=\"-\"),1/0,VLOOKUP($A69,Economática!$A$3:$AI$823,28,FALSE)))","v":{"$error":"#DIV/0!"}},{"$f":"IF($A69=\"\",\"\",IF(OR(VLOOKUP($A69,Economática!$A$3:$AI$823,29,FALSE)=0,VLOOKUP($A69,Economática!$A$3:$AI$823,29,FALSE)=\"-\"),1/0,VLOOKUP($A69,Economática!$A$3:$AI$823,29,FALSE)))","v":{"$error":"#DIV/0!"}},{"$f":"IF($A69=\"\",\"\",IF(OR(VLOOKUP($A69,Economática!$A$3:$AI$823,30,FALSE)/E69=0,VLOOKUP($A69,Economática!$A$3:$AI$823,30,FALSE)/E69=\"-\",VLOOKUP($A69,Economática!$A$3:$AI$823,30,FALSE)/E69<33.33%,VLOOKUP($A69,Economática!$A$3:$AI$823,30,FALSE)/E69>100%),1/0,VLOOKUP($A69,Economática!$A$3:$AI$823,30,FALSE)/E69))","v":{"$error":"#DIV/0!"}},"REDE4",{"$f":"IF($A69=\"\",\"\",IF(OR(VLOOKUP($A69,Economática!$A$3:$AI$823,25,FALSE)=0,VLOOKUP($A69,Economática!$A$3:$AI$823,25,FALSE)=\"-\"),1/0,VLOOKUP($A69,Economática!$A$3:$AI$823,25,FALSE)))","v":1793},{"$f":"CONCATENATE(Economática!B71,\" \",Economática!C71)","v":"Rede Energia PN"}]
[{"$f":"IF(Economática!AG72=\"\",\"\",Economática!AG72)","v":"ALUP11"},{"$f":"IF($A70=\"\",\"\",VLOOKUP(VLOOKUP($A70,Economática!$A$3:$AI$823,6,FALSE),Correção!$B$16:$C$36,2,FALSE))","v":"Energia Elétrica"},{"$f":"IF(Economática!B72=\"\",\"\",Economática!B72)","v":"Alupar"},{"$f":"IF($A70=\"\",\"\",IF(OR(VLOOKUP($A70,Economática!$A$3:$AI$823,8,FALSE)=0,VLOOKUP($A70,Economática!$A$3:$AI$823,8,FALSE)=\"-\"),1/0,VLOOKUP($A70,Economática!$A$3:$AI$823,8,FALSE)))","v":23.22},{"$f":"IF(A70=\"\",\"\",IF(ISERROR(VLOOKUP(A70,Correção!$B$2:$G$13,9,FALSE)),VLOOKUP($A70,Economática!$A$3:$AI$823,9,FALSE),VLOOKUP(A70,Correção!$B$2:$G$13,9,FALSE)))","v":879.11099999999999},{"$f":"IF($A70=\"\",\"\",Economática!G72)","v":6840.79},{"$f":"IF($A70=\"\",\"\",IF(OR(VLOOKUP($A70,Economática!$A$3:$AI$823,10,FALSE)=0,VLOOKUP($A70,Economática!$A$3:$AI$823,10,FALSE)=\"-\"),1/0,VLOOKUP($A70,Economática!$A$3:$AI$823,10,FALSE)))","v":4328.05},{"$f":"IF($A70=\"\",\"\",IF(OR(VLOOKUP($A70,Economática!$A$3:$AI$823,11,FALSE)=0,VLOOKUP($A70,Economática!$A$3:$AI$823,11,FALSE)=\"-\"),1/0,VLOOKUP($A70,Economática!$A$3:$AI$823,11,FALSE)))","v":1538.19},{"$f":"IF($A70=\"\",\"\",IF(OR(VLOOKUP($A70,Economática!$A$3:$AI$823,12,FALSE)=0,VLOOKUP($A70,Economática!$A$3:$AI$823,12,FALSE)=\"-\"),1/0,VLOOKUP($A70,Economática!$A$3:$AI$823,12,FALSE)))","v":1882.91},{"$f":"IF($A70=\"\",\"\",IF(OR(VLOOKUP($A70,Economática!$A$3:$AI$823,13,FALSE)=0,VLOOKUP($A70,Economática!$A$3:$AI$823,13,FALSE)=\"-\"),1/0,VLOOKUP($A70,Economática!$A$3:$AI$823,13,FALSE)))","v":330.89},{"$f":"IF($A70=\"\",\"\",IF(OR(VLOOKUP($A70,Economática!$A$3:$AI$823,14,FALSE)=0,VLOOKUP($A70,Economática!$A$3:$AI$823,14,FALSE)=\"-\"),1/0,VLOOKUP($A70,Economática!$A$3:$AI$823,14,FALSE)))","v":60.34},{"$f":"IF($A70=\"\",\"\",IF(OR(VLOOKUP($A70,Economática!$A$3:$AI$823,15,FALSE)=0,VLOOKUP($A70,Economática!$A$3:$AI$823,15,FALSE)=\"-\"),1/0,VLOOKUP($A70,Economática!$A$3:$AI$823,15,FALSE)))","v":144.96},{"$f":"IF($A70=\"\",\"\",IF(OR(VLOOKUP($A70,Economática!$A$3:$AI$823,16,FALSE)=0,VLOOKUP($A70,Economática!$A$3:$AI$823,16,FALSE)=\"-\"),1/0,VLOOKUP($A70,Economática!$A$3:$AI$823,16,FALSE)))","v":252.69},{"$f":"IF($A70=\"\",\"\",IF(OR(VLOOKUP($A70,Economática!$A$3:$AI$823,17,FALSE)=0,VLOOKUP($A70,Economática!$A$3:$AI$823,17,FALSE)=\"-\"),1/0,VLOOKUP($A70,Economática!$A$3:$AI$823,17,FALSE)))","v":386.75},{"$f":"IF($A70=\"\",\"\",IF(OR(VLOOKUP($A70,Economática!$A$3:$AI$823,18,FALSE)=0,VLOOKUP($A70,Economática!$A$3:$AI$823,18,FALSE)=\"-\"),1/0,VLOOKUP($A70,Economática!$A$3:$AI$823,18,FALSE)))","v":330.89},{"$f":"IF($A70=\"\",\"\",IF(OR(VLOOKUP($A70,Economática!$A$3:$AI$823,19,FALSE)=0,VLOOKUP($A70,Economática!$A$3:$AI$823,19,FALSE)=\"-\"),1/0,VLOOKUP($A70,Economática!$A$3:$AI$823,19,FALSE)))","v":386.75},{"$f":"IF($A70=\"\",\"\",VLOOKUP($A70,Economática!$A$3:$AI$823,20,FALSE)/E70)","v":0.43993306874786003},4.923212199597093,4.7164329016531692,52.780756095669034,{"$f":"IF($A70=\"\",\"\",IF(OR(VLOOKUP($A70,Economática!$A$3:$AI$823,21,FALSE)/100=0,VLOOKUP($A70,Economática!$A$3:$AI$823,21,FALSE)/100=\"-\"),1/0,VLOOKUP($A70,Economática!$A$3:$AI$823,21,FALSE)/100))","v":0.133907},{"$f":"IF($A70=\"\",\"\",IF(OR(VLOOKUP($A70,Economática!$A$3:$AI$823,22,FALSE)/100=0,VLOOKUP($A70,Economática!$A$3:$AI$823,22,FALSE)/100=\"-\"),1/0,VLOOKUP($A70,Economática!$A$3:$AI$823,22,FALSE)/100))","v":0.44845799999999997},{"$f":"IF($A70=\"\",\"\",IF(OR(VLOOKUP($A70,Economática!$A$3:$AI$823,23,FALSE)=0,VLOOKUP($A70,Economática!$A$3:$AI$823,23,FALSE)=\"-\"),1/0,VLOOKUP($A70,Economática!$A$3:$AI$823,23,FALSE)))","v":1170.2},{"$f":"IF($A70=\"\",\"\",IF(OR(VLOOKUP($A70,Economática!$A$3:$AI$823,24,FALSE)=0,VLOOKUP($A70,Economática!$A$3:$AI$823,24,FALSE)=\"-\"),1/0,VLOOKUP($A70,Economática!$A$3:$AI$823,24,FALSE)))","v":{"$error":"#DIV/0!"}},{"$f":"IF($A70=\"\",\"\",IF(OR(VLOOKUP($A70,Economática!$A$3:$AI$823,25,FALSE)=0,VLOOKUP($A70,Economática!$A$3:$AI$823,25,FALSE)=\"-\"),1/0,VLOOKUP($A70,Economática!$A$3:$AI$823,25,FALSE)))","v":{"$error":"#DIV/0!"}},{"$f":"IF($A70=\"\",\"\",IF(ISERROR((F70+VLOOKUP($A70,Economática!$A$3:$AI$823,26,FALSE))/Y70),(F70+VLOOKUP($A70,Economática!$A$3:$AI$823,26,FALSE))/Y70,(F70+VLOOKUP($A70,Economática!$A$3:$AI$823,26,FALSE))/Y70))","v":{"$error":"#DIV/0!"}},{"$f":"IF($A70=\"\",\"\",IF(OR(-VLOOKUP($A70,Economática!$A$3:$AI$823,27,FALSE)=0,-VLOOKUP($A70,Economática!$A$3:$AI$823,27,FALSE)=\"-\"),1/0,-VLOOKUP($A70,Economática!$A$3:$AI$823,27,FALSE)))","v":210.99},3.0842928959959305E-2,{"$f":"IF($A70=\"\",\"\",IF(OR(VLOOKUP($A70,Economática!$A$3:$AI$823,28,FALSE)=0,VLOOKUP($A70,Economática!$A$3:$AI$823,28,FALSE)=\"-\"),1/0,VLOOKUP($A70,Economática!$A$3:$AI$823,28,FALSE)))","v":1.6},{"$f":"IF($A70=\"\",\"\",IF(OR(VLOOKUP($A70,Economática!$A$3:$AI$823,29,FALSE)=0,VLOOKUP($A70,Economática!$A$3:$AI$823,29,FALSE)=\"-\"),1/0,VLOOKUP($A70,Economática!$A$3:$AI$823,29,FALSE)))","v":31},{"$f":"IF($A70=\"\",\"\",IF(OR(VLOOKUP($A70,Economática!$A$3:$AI$823,30,FALSE)/E70=0,VLOOKUP($A70,Economática!$A$3:$AI$823,30,FALSE)/E70=\"-\",VLOOKUP($A70,Economática!$A$3:$AI$823,30,FALSE)/E70<33.33%,VLOOKUP($A70,Economática!$A$3:$AI$823,30,FALSE)/E70>100%),1/0,VLOOKUP($A70,Economática!$A$3:$AI$823,30,FALSE)/E70))","v":0.67909513133153832},"ALUP11",{"$f":"IF($A70=\"\",\"\",IF(OR(VLOOKUP($A70,Economática!$A$3:$AI$823,25,FALSE)=0,VLOOKUP($A70,Economática!$A$3:$AI$823,25,FALSE)=\"-\"),1/0,VLOOKUP($A70,Economática!$A$3:$AI$823,25,FALSE)))","v":{"$error":"#DIV/0!"}},{"$f":"CONCATENATE(Economática!B72,\" \",Economática!C72)","v":"Alupar UNT N2"}]
[{"$f":"IF(Economática!AG73=\"\",\"\",Economática!AG73)","v":"EMAE4"},{"$f":"IF($A71=\"\",\"\",VLOOKUP(VLOOKUP($A71,Economática!$A$3:$AI$823,6,FALSE),Correção!$B$16:$C$36,2,FALSE))","v":"Energia Elétrica"},{"$f":"IF(Economática!B73=\"\",\"\",Economática!B73)","v":"Emae"},{"$f":"IF($A71=\"\",\"\",IF(OR(VLOOKUP($A71,Economática!$A$3:$AI$823,8,FALSE)=0,VLOOKUP($A71,Economática!$A$3:$AI$823,8,FALSE)=\"-\"),1/0,VLOOKUP($A71,Economática!$A$3:$AI$823,8,FALSE)))","v":23.19},{"$f":"IF(A71=\"\",\"\",IF(ISERROR(VLOOKUP(A71,Correção!$B$2:$G$13,9,FALSE)),VLOOKUP($A71,Economática!$A$3:$AI$823,9,FALSE),VLOOKUP(A71,Correção!$B$2:$G$13,9,FALSE)))","v":36.947000000000003},{"$f":"IF($A71=\"\",\"\",Economática!G73)","v":856.8},{"$f":"IF($A71=\"\",\"\",IF(OR(VLOOKUP($A71,Economática!$A$3:$AI$823,10,FALSE)=0,VLOOKUP($A71,Economática!$A$3:$AI$823,10,FALSE)=\"-\"),1/0,VLOOKUP($A71,Economática!$A$3:$AI$823,10,FALSE)))","v":868.86},{"$f":"IF($A71=\"\",\"\",IF(OR(VLOOKUP($A71,Economática!$A$3:$AI$823,11,FALSE)=0,VLOOKUP($A71,Economática!$A$3:$AI$823,11,FALSE)=\"-\"),1/0,VLOOKUP($A71,Economática!$A$3:$AI$823,11,FALSE)))","v":209.51},{"$f":"IF($A71=\"\",\"\",IF(OR(VLOOKUP($A71,Economática!$A$3:$AI$823,12,FALSE)=0,VLOOKUP($A71,Economática!$A$3:$AI$823,12,FALSE)=\"-\"),1/0,VLOOKUP($A71,Economática!$A$3:$AI$823,12,FALSE)))","v":316.42},{"$f":"IF($A71=\"\",\"\",IF(OR(VLOOKUP($A71,Economática!$A$3:$AI$823,13,FALSE)=0,VLOOKUP($A71,Economática!$A$3:$AI$823,13,FALSE)=\"-\"),1/0,VLOOKUP($A71,Economática!$A$3:$AI$823,13,FALSE)))","v":119.15},{"$f":"IF($A71=\"\",\"\",IF(OR(VLOOKUP($A71,Economática!$A$3:$AI$823,14,FALSE)=0,VLOOKUP($A71,Economática!$A$3:$AI$823,14,FALSE)=\"-\"),1/0,VLOOKUP($A71,Economática!$A$3:$AI$823,14,FALSE)))","v":15.94},{"$f":"IF($A71=\"\",\"\",IF(OR(VLOOKUP($A71,Economática!$A$3:$AI$823,15,FALSE)=0,VLOOKUP($A71,Economática!$A$3:$AI$823,15,FALSE)=\"-\"),1/0,VLOOKUP($A71,Economática!$A$3:$AI$823,15,FALSE)))","v":32.31},{"$f":"IF($A71=\"\",\"\",IF(OR(VLOOKUP($A71,Economática!$A$3:$AI$823,16,FALSE)=0,VLOOKUP($A71,Economática!$A$3:$AI$823,16,FALSE)=\"-\"),1/0,VLOOKUP($A71,Economática!$A$3:$AI$823,16,FALSE)))","v":38.590000000000003},{"$f":"IF($A71=\"\",\"\",IF(OR(VLOOKUP($A71,Economática!$A$3:$AI$823,17,FALSE)=0,VLOOKUP($A71,Economática!$A$3:$AI$823,17,FALSE)=\"-\"),1/0,VLOOKUP($A71,Economática!$A$3:$AI$823,17,FALSE)))","v":101.52},{"$f":"IF($A71=\"\",\"\",IF(OR(VLOOKUP($A71,Economática!$A$3:$AI$823,18,FALSE)=0,VLOOKUP($A71,Economática!$A$3:$AI$823,18,FALSE)=\"-\"),1/0,VLOOKUP($A71,Economática!$A$3:$AI$823,18,FALSE)))","v":119.15},{"$f":"IF($A71=\"\",\"\",IF(OR(VLOOKUP($A71,Economática!$A$3:$AI$823,19,FALSE)=0,VLOOKUP($A71,Economática!$A$3:$AI$823,19,FALSE)=\"-\"),1/0,VLOOKUP($A71,Economática!$A$3:$AI$823,19,FALSE)))","v":101.52},{"$f":"IF($A71=\"\",\"\",VLOOKUP($A71,Economática!$A$3:$AI$823,20,FALSE)/E71)","v":2.7477197066067607},23.516388340054672,0.98612081347973213,8.4397254728132403,{"$f":"IF($A71=\"\",\"\",IF(OR(VLOOKUP($A71,Economática!$A$3:$AI$823,21,FALSE)/100=0,VLOOKUP($A71,Economática!$A$3:$AI$823,21,FALSE)/100=\"-\"),1/0,VLOOKUP($A71,Economática!$A$3:$AI$823,21,FALSE)/100))","v":0.12382},{"$f":"IF($A71=\"\",\"\",IF(OR(VLOOKUP($A71,Economática!$A$3:$AI$823,22,FALSE)/100=0,VLOOKUP($A71,Economática!$A$3:$AI$823,22,FALSE)/100=\"-\"),1/0,VLOOKUP($A71,Economática!$A$3:$AI$823,22,FALSE)/100))","v":-0.17573699999999998},{"$f":"IF($A71=\"\",\"\",IF(OR(VLOOKUP($A71,Economática!$A$3:$AI$823,23,FALSE)=0,VLOOKUP($A71,Economática!$A$3:$AI$823,23,FALSE)=\"-\"),1/0,VLOOKUP($A71,Economática!$A$3:$AI$823,23,FALSE)))","v":115.4},{"$f":"IF($A71=\"\",\"\",IF(OR(VLOOKUP($A71,Economática!$A$3:$AI$823,24,FALSE)=0,VLOOKUP($A71,Economática!$A$3:$AI$823,24,FALSE)=\"-\"),1/0,VLOOKUP($A71,Economática!$A$3:$AI$823,24,FALSE)))","v":6.7},{"$f":"IF($A71=\"\",\"\",IF(OR(VLOOKUP($A71,Economática!$A$3:$AI$823,25,FALSE)=0,VLOOKUP($A71,Economática!$A$3:$AI$823,25,FALSE)=\"-\"),1/0,VLOOKUP($A71,Economática!$A$3:$AI$823,25,FALSE)))","v":6.7},{"$f":"IF($A71=\"\",\"\",IF(ISERROR((F71+VLOOKUP($A71,Economática!$A$3:$AI$823,26,FALSE))/Y71),(F71+VLOOKUP($A71,Economática!$A$3:$AI$823,26,FALSE))/Y71,(F71+VLOOKUP($A71,Economática!$A$3:$AI$823,26,FALSE))/Y71))","v":105.09104477611939},{"$f":"IF($A71=\"\",\"\",IF(OR(-VLOOKUP($A71,Economática!$A$3:$AI$823,27,FALSE)=0,-VLOOKUP($A71,Economática!$A$3:$AI$823,27,FALSE)=\"-\"),1/0,-VLOOKUP($A71,Economática!$A$3:$AI$823,27,FALSE)))","v":34.29},4.0021008403361348E-2,{"$f":"IF($A71=\"\",\"\",IF(OR(VLOOKUP($A71,Economática!$A$3:$AI$823,28,FALSE)=0,VLOOKUP($A71,Economática!$A$3:$AI$823,28,FALSE)=\"-\"),1/0,VLOOKUP($A71,Economática!$A$3:$AI$823,28,FALSE)))","v":3.3},{"$f":"IF($A71=\"\",\"\",IF(OR(VLOOKUP($A71,Economática!$A$3:$AI$823,29,FALSE)=0,VLOOKUP($A71,Economática!$A$3:$AI$823,29,FALSE)=\"-\"),1/0,VLOOKUP($A71,Economática!$A$3:$AI$823,29,FALSE)))","v":186.2},{"$f":"IF($A71=\"\",\"\",IF(OR(VLOOKUP($A71,Economática!$A$3:$AI$823,30,FALSE)/E71=0,VLOOKUP($A71,Economática!$A$3:$AI$823,30,FALSE)/E71=\"-\",VLOOKUP($A71,Economática!$A$3:$AI$823,30,FALSE)/E71<33.33%,VLOOKUP($A71,Economática!$A$3:$AI$823,30,FALSE)/E71>100%),1/0,VLOOKUP($A71,Economática!$A$3:$AI$823,30,FALSE)/E71))","v":0.3978672152001515},"EMAE4",{"$f":"IF($A71=\"\",\"\",IF(OR(VLOOKUP($A71,Economática!$A$3:$AI$823,25,FALSE)=0,VLOOKUP($A71,Economática!$A$3:$AI$823,25,FALSE)=\"-\"),1/0,VLOOKUP($A71,Economática!$A$3:$AI$823,25,FALSE)))","v":6.7},{"$f":"CONCATENATE(Economática!B73,\" \",Economática!C73)","v":"Emae PN"}]
[{"$f":"IF(Economática!AG74=\"\",\"\",Economática!AG74)","v":"CMIG4"},{"$f":"IF($A72=\"\",\"\",VLOOKUP(VLOOKUP($A72,Economática!$A$3:$AI$823,6,FALSE),Correção!$B$16:$C$36,2,FALSE))","v":"Energia Elétrica"},{"$f":"IF(Economática!B74=\"\",\"\",Economática!B74)","v":"Cemig"},{"$f":"IF($A72=\"\",\"\",IF(OR(VLOOKUP($A72,Economática!$A$3:$AI$823,8,FALSE)=0,VLOOKUP($A72,Economática!$A$3:$AI$823,8,FALSE)=\"-\"),1/0,VLOOKUP($A72,Economática!$A$3:$AI$823,8,FALSE)))","v":13.9},{"$f":"IF(A72=\"\",\"\",IF(ISERROR(VLOOKUP(A72,Correção!$B$2:$G$13,9,FALSE)),VLOOKUP($A72,Economática!$A$3:$AI$823,9,FALSE),VLOOKUP(A72,Correção!$B$2:$G$13,9,FALSE)))","v":1458.191},{"$f":"IF($A72=\"\",\"\",Economática!G74)","v":21634.17},{"$f":"IF($A72=\"\",\"\",IF(OR(VLOOKUP($A72,Economática!$A$3:$AI$823,10,FALSE)=0,VLOOKUP($A72,Economática!$A$3:$AI$823,10,FALSE)=\"-\"),1/0,VLOOKUP($A72,Economática!$A$3:$AI$823,10,FALSE)))","v":14968.53},{"$f":"IF($A72=\"\",\"\",IF(OR(VLOOKUP($A72,Economática!$A$3:$AI$823,11,FALSE)=0,VLOOKUP($A72,Economática!$A$3:$AI$823,11,FALSE)=\"-\"),1/0,VLOOKUP($A72,Economática!$A$3:$AI$823,11,FALSE)))","v":21711.69},{"$f":"IF($A72=\"\",\"\",IF(OR(VLOOKUP($A72,Economática!$A$3:$AI$823,12,FALSE)=0,VLOOKUP($A72,Economática!$A$3:$AI$823,12,FALSE)=\"-\"),1/0,VLOOKUP($A72,Economática!$A$3:$AI$823,12,FALSE)))","v":{"$error":"#DIV/0!"}},{"$f":"IF($A72=\"\",\"\",IF(OR(VLOOKUP($A72,Economática!$A$3:$AI$823,13,FALSE)=0,VLOOKUP($A72,Economática!$A$3:$AI$823,13,FALSE)=\"-\"),1/0,VLOOKUP($A72,Economática!$A$3:$AI$823,13,FALSE)))","v":1000.95},{"$f":"IF($A72=\"\",\"\",IF(OR(VLOOKUP($A72,Economática!$A$3:$AI$823,14,FALSE)=0,VLOOKUP($A72,Economática!$A$3:$AI$823,14,FALSE)=\"-\"),1/0,VLOOKUP($A72,Economática!$A$3:$AI$823,14,FALSE)))","v":464.45},{"$f":"IF($A72=\"\",\"\",IF(OR(VLOOKUP($A72,Economática!$A$3:$AI$823,15,FALSE)=0,VLOOKUP($A72,Economática!$A$3:$AI$823,15,FALSE)=\"-\"),1/0,VLOOKUP($A72,Economática!$A$3:$AI$823,15,FALSE)))","v":453.41},{"$f":"IF($A72=\"\",\"\",IF(OR(VLOOKUP($A72,Economática!$A$3:$AI$823,16,FALSE)=0,VLOOKUP($A72,Economática!$A$3:$AI$823,16,FALSE)=\"-\"),1/0,VLOOKUP($A72,Economática!$A$3:$AI$823,16,FALSE)))","v":697.73},{"$f":"IF($A72=\"\",\"\",IF(OR(VLOOKUP($A72,Economática!$A$3:$AI$823,17,FALSE)=0,VLOOKUP($A72,Economática!$A$3:$AI$823,17,FALSE)=\"-\"),1/0,VLOOKUP($A72,Economática!$A$3:$AI$823,17,FALSE)))","v":{"$error":"#DIV/0!"}},{"$f":"IF($A72=\"\",\"\",IF(OR(VLOOKUP($A72,Economática!$A$3:$AI$823,18,FALSE)=0,VLOOKUP($A72,Economática!$A$3:$AI$823,18,FALSE)=\"-\"),1/0,VLOOKUP($A72,Economática!$A$3:$AI$823,18,FALSE)))","v":1000.95},{"$f":"IF($A72=\"\",\"\",IF(OR(VLOOKUP($A72,Economática!$A$3:$AI$823,19,FALSE)=0,VLOOKUP($A72,Economática!$A$3:$AI$823,19,FALSE)=\"-\"),1/0,VLOOKUP($A72,Economática!$A$3:$AI$823,19,FALSE)))","v":{"$error":"#DIV/0!"}},{"$f":"IF($A72=\"\",\"\",VLOOKUP($A72,Economática!$A$3:$AI$823,20,FALSE)/E72)","v":0.89284599891235106},10.265136734488143,1.3540978907080388,15.568194310029646,{"$f":"IF($A72=\"\",\"\",IF(OR(VLOOKUP($A72,Economática!$A$3:$AI$823,21,FALSE)/100=0,VLOOKUP($A72,Economática!$A$3:$AI$823,21,FALSE)/100=\"-\"),1/0,VLOOKUP($A72,Economática!$A$3:$AI$823,21,FALSE)/100))","v":9.8039000000000001E-2},{"$f":"IF($A72=\"\",\"\",IF(OR(VLOOKUP($A72,Economática!$A$3:$AI$823,22,FALSE)/100=0,VLOOKUP($A72,Economática!$A$3:$AI$823,22,FALSE)/100=\"-\"),1/0,VLOOKUP($A72,Economática!$A$3:$AI$823,22,FALSE)/100))","v":0.89021499999999998},{"$f":"IF($A72=\"\",\"\",IF(OR(VLOOKUP($A72,Economática!$A$3:$AI$823,23,FALSE)=0,VLOOKUP($A72,Economática!$A$3:$AI$823,23,FALSE)=\"-\"),1/0,VLOOKUP($A72,Economática!$A$3:$AI$823,23,FALSE)))","v":3492.2},{"$f":"IF($A72=\"\",\"\",IF(OR(VLOOKUP($A72,Economática!$A$3:$AI$823,24,FALSE)=0,VLOOKUP($A72,Economática!$A$3:$AI$823,24,FALSE)=\"-\"),1/0,VLOOKUP($A72,Economática!$A$3:$AI$823,24,FALSE)))","v":{"$error":"#DIV/0!"}},{"$f":"IF($A72=\"\",\"\",IF(OR(VLOOKUP($A72,Economática!$A$3:$AI$823,25,FALSE)=0,VLOOKUP($A72,Economática!$A$3:$AI$823,25,FALSE)=\"-\"),1/0,VLOOKUP($A72,Economática!$A$3:$AI$823,25,FALSE)))","v":4308.8999999999996},{"$f":"IF($A72=\"\",\"\",IF(ISERROR((F72+VLOOKUP($A72,Economática!$A$3:$AI$823,26,FALSE))/Y72),(F72+VLOOKUP($A72,Economática!$A$3:$AI$823,26,FALSE))/Y72,(F72+VLOOKUP($A72,Economática!$A$3:$AI$823,26,FALSE))/Y72))","v":8.1141873796096444},{"$f":"IF($A72=\"\",\"\",IF(OR(-VLOOKUP($A72,Economática!$A$3:$AI$823,27,FALSE)=0,-VLOOKUP($A72,Economática!$A$3:$AI$823,27,FALSE)=\"-\"),1/0,-VLOOKUP($A72,Economática!$A$3:$AI$823,27,FALSE)))","v":270.64999999999998},1.251030198986141E-2,{"$f":"IF($A72=\"\",\"\",IF(OR(VLOOKUP($A72,Economática!$A$3:$AI$823,28,FALSE)=0,VLOOKUP($A72,Economática!$A$3:$AI$823,28,FALSE)=\"-\"),1/0,VLOOKUP($A72,Economática!$A$3:$AI$823,28,FALSE)))","v":-3.5},{"$f":"IF($A72=\"\",\"\",IF(OR(VLOOKUP($A72,Economática!$A$3:$AI$823,29,FALSE)=0,VLOOKUP($A72,Economática!$A$3:$AI$823,29,FALSE)=\"-\"),1/0,VLOOKUP($A72,Economática!$A$3:$AI$823,29,FALSE)))","v":117.4},{"$f":"IF($A72=\"\",\"\",IF(OR(VLOOKUP($A72,Economática!$A$3:$AI$823,30,FALSE)/E72=0,VLOOKUP($A72,Economática!$A$3:$AI$823,30,FALSE)/E72=\"-\",VLOOKUP($A72,Economática!$A$3:$AI$823,30,FALSE)/E72<33.33%,VLOOKUP($A72,Economática!$A$3:$AI$823,30,FALSE)/E72>100%),1/0,VLOOKUP($A72,Economática!$A$3:$AI$823,30,FALSE)/E72))","v":0.33438692187786101},"CMIG4",{"$f":"IF($A72=\"\",\"\",IF(OR(VLOOKUP($A72,Economática!$A$3:$AI$823,25,FALSE)=0,VLOOKUP($A72,Economática!$A$3:$AI$823,25,FALSE)=\"-\"),1/0,VLOOKUP($A72,Economática!$A$3:$AI$823,25,FALSE)))","v":4308.8999999999996},{"$f":"CONCATENATE(Economática!B74,\" \",Economática!C74)","v":"Cemig PN"}]
[{"$f":"IF(Economática!AG75=\"\",\"\",Economática!AG75)","v":"CPLE6"},{"$f":"IF($A73=\"\",\"\",VLOOKUP(VLOOKUP($A73,Economática!$A$3:$AI$823,6,FALSE),Correção!$B$16:$C$36,2,FALSE))","v":"Energia Elétrica"},{"$f":"IF(Economática!B75=\"\",\"\",Economática!B75)","v":"Copel"},{"$f":"IF($A73=\"\",\"\",IF(OR(VLOOKUP($A73,Economática!$A$3:$AI$823,8,FALSE)=0,VLOOKUP($A73,Economática!$A$3:$AI$823,8,FALSE)=\"-\"),1/0,VLOOKUP($A73,Economática!$A$3:$AI$823,8,FALSE)))","v":36.4},{"$f":"IF(A73=\"\",\"\",IF(ISERROR(VLOOKUP(A73,Correção!$B$2:$G$13,9,FALSE)),VLOOKUP($A73,Economática!$A$3:$AI$823,9,FALSE),VLOOKUP(A73,Correção!$B$2:$G$13,9,FALSE)))","v":273.65499999999997},{"$f":"IF($A73=\"\",\"\",Economática!G75)","v":9337.42},{"$f":"IF($A73=\"\",\"\",IF(OR(VLOOKUP($A73,Economática!$A$3:$AI$823,10,FALSE)=0,VLOOKUP($A73,Economática!$A$3:$AI$823,10,FALSE)=\"-\"),1/0,VLOOKUP($A73,Economática!$A$3:$AI$823,10,FALSE)))","v":16032.93},{"$f":"IF($A73=\"\",\"\",IF(OR(VLOOKUP($A73,Economática!$A$3:$AI$823,11,FALSE)=0,VLOOKUP($A73,Economática!$A$3:$AI$823,11,FALSE)=\"-\"),1/0,VLOOKUP($A73,Economática!$A$3:$AI$823,11,FALSE)))","v":14024.57},{"$f":"IF($A73=\"\",\"\",IF(OR(VLOOKUP($A73,Economática!$A$3:$AI$823,12,FALSE)=0,VLOOKUP($A73,Economática!$A$3:$AI$823,12,FALSE)=\"-\"),1/0,VLOOKUP($A73,Economática!$A$3:$AI$823,12,FALSE)))","v":14934.78},{"$f":"IF($A73=\"\",\"\",IF(OR(VLOOKUP($A73,Economática!$A$3:$AI$823,13,FALSE)=0,VLOOKUP($A73,Economática!$A$3:$AI$823,13,FALSE)=\"-\"),1/0,VLOOKUP($A73,Economática!$A$3:$AI$823,13,FALSE)))","v":1033.6300000000001},{"$f":"IF($A73=\"\",\"\",IF(OR(VLOOKUP($A73,Economática!$A$3:$AI$823,14,FALSE)=0,VLOOKUP($A73,Economática!$A$3:$AI$823,14,FALSE)=\"-\"),1/0,VLOOKUP($A73,Economática!$A$3:$AI$823,14,FALSE)))","v":332.28},{"$f":"IF($A73=\"\",\"\",IF(OR(VLOOKUP($A73,Economática!$A$3:$AI$823,15,FALSE)=0,VLOOKUP($A73,Economática!$A$3:$AI$823,15,FALSE)=\"-\"),1/0,VLOOKUP($A73,Economática!$A$3:$AI$823,15,FALSE)))","v":679.49},{"$f":"IF($A73=\"\",\"\",IF(OR(VLOOKUP($A73,Economática!$A$3:$AI$823,16,FALSE)=0,VLOOKUP($A73,Economática!$A$3:$AI$823,16,FALSE)=\"-\"),1/0,VLOOKUP($A73,Economática!$A$3:$AI$823,16,FALSE)))","v":1034.27},{"$f":"IF($A73=\"\",\"\",IF(OR(VLOOKUP($A73,Economática!$A$3:$AI$823,17,FALSE)=0,VLOOKUP($A73,Economática!$A$3:$AI$823,17,FALSE)=\"-\"),1/0,VLOOKUP($A73,Economática!$A$3:$AI$823,17,FALSE)))","v":1407.06},{"$f":"IF($A73=\"\",\"\",IF(OR(VLOOKUP($A73,Economática!$A$3:$AI$823,18,FALSE)=0,VLOOKUP($A73,Economática!$A$3:$AI$823,18,FALSE)=\"-\"),1/0,VLOOKUP($A73,Economática!$A$3:$AI$823,18,FALSE)))","v":1033.6300000000001},{"$f":"IF($A73=\"\",\"\",IF(OR(VLOOKUP($A73,Economática!$A$3:$AI$823,19,FALSE)=0,VLOOKUP($A73,Economática!$A$3:$AI$823,19,FALSE)=\"-\"),1/0,VLOOKUP($A73,Economática!$A$3:$AI$823,19,FALSE)))","v":1407.06},{"$f":"IF($A73=\"\",\"\",VLOOKUP($A73,Economática!$A$3:$AI$823,20,FALSE)/E73)","v":5.1417295499808153},58.588112769728312,0.62128643984599186,7.079329950393018,{"$f":"IF($A73=\"\",\"\",IF(OR(VLOOKUP($A73,Economática!$A$3:$AI$823,21,FALSE)/100=0,VLOOKUP($A73,Economática!$A$3:$AI$823,21,FALSE)/100=\"-\"),1/0,VLOOKUP($A73,Economática!$A$3:$AI$823,21,FALSE)/100))","v":9.3097999999999986E-2},{"$f":"IF($A73=\"\",\"\",IF(OR(VLOOKUP($A73,Economática!$A$3:$AI$823,22,FALSE)/100=0,VLOOKUP($A73,Economática!$A$3:$AI$823,22,FALSE)/100=\"-\"),1/0,VLOOKUP($A73,Economática!$A$3:$AI$823,22,FALSE)/100))","v":0.58103799999999994},{"$f":"IF($A73=\"\",\"\",IF(OR(VLOOKUP($A73,Economática!$A$3:$AI$823,23,FALSE)=0,VLOOKUP($A73,Economática!$A$3:$AI$823,23,FALSE)=\"-\"),1/0,VLOOKUP($A73,Economática!$A$3:$AI$823,23,FALSE)))","v":2873},{"$f":"IF($A73=\"\",\"\",IF(OR(VLOOKUP($A73,Economática!$A$3:$AI$823,24,FALSE)=0,VLOOKUP($A73,Economática!$A$3:$AI$823,24,FALSE)=\"-\"),1/0,VLOOKUP($A73,Economática!$A$3:$AI$823,24,FALSE)))","v":3143.2},{"$f":"IF($A73=\"\",\"\",IF(OR(VLOOKUP($A73,Economática!$A$3:$AI$823,25,FALSE)=0,VLOOKUP($A73,Economática!$A$3:$AI$823,25,FALSE)=\"-\"),1/0,VLOOKUP($A73,Economática!$A$3:$AI$823,25,FALSE)))","v":3143.2},{"$f":"IF($A73=\"\",\"\",IF(ISERROR((F73+VLOOKUP($A73,Economática!$A$3:$AI$823,26,FALSE))/Y73),(F73+VLOOKUP($A73,Economática!$A$3:$AI$823,26,FALSE))/Y73,(F73+VLOOKUP($A73,Economática!$A$3:$AI$823,26,FALSE))/Y73))","v":5.990514125731738},{"$f":"IF($A73=\"\",\"\",IF(OR(-VLOOKUP($A73,Economática!$A$3:$AI$823,27,FALSE)=0,-VLOOKUP($A73,Economática!$A$3:$AI$823,27,FALSE)=\"-\"),1/0,-VLOOKUP($A73,Economática!$A$3:$AI$823,27,FALSE)))","v":264.73},2.835151465822465E-2,{"$f":"IF($A73=\"\",\"\",IF(OR(VLOOKUP($A73,Economática!$A$3:$AI$823,28,FALSE)=0,VLOOKUP($A73,Economática!$A$3:$AI$823,28,FALSE)=\"-\"),1/0,VLOOKUP($A73,Economática!$A$3:$AI$823,28,FALSE)))","v":1.8},{"$f":"IF($A73=\"\",\"\",IF(OR(VLOOKUP($A73,Economática!$A$3:$AI$823,29,FALSE)=0,VLOOKUP($A73,Economática!$A$3:$AI$823,29,FALSE)=\"-\"),1/0,VLOOKUP($A73,Economática!$A$3:$AI$823,29,FALSE)))","v":58.4},{"$f":"IF($A73=\"\",\"\",IF(OR(VLOOKUP($A73,Economática!$A$3:$AI$823,30,FALSE)/E73=0,VLOOKUP($A73,Economática!$A$3:$AI$823,30,FALSE)/E73=\"-\",VLOOKUP($A73,Economática!$A$3:$AI$823,30,FALSE)/E73<33.33%,VLOOKUP($A73,Economática!$A$3:$AI$823,30,FALSE)/E73>100%),1/0,VLOOKUP($A73,Economática!$A$3:$AI$823,30,FALSE)/E73))","v":0.52986424512616259},"CPLE6",{"$f":"IF($A73=\"\",\"\",IF(OR(VLOOKUP($A73,Economática!$A$3:$AI$823,25,FALSE)=0,VLOOKUP($A73,Economática!$A$3:$AI$823,25,FALSE)=\"-\"),1/0,VLOOKUP($A73,Economática!$A$3:$AI$823,25,FALSE)))","v":3143.2},{"$f":"CONCATENATE(Economática!B75,\" \",Economática!C75)","v":"Copel PNB"}]
[{"$f":"IF(Economática!AG76=\"\",\"\",Economática!AG76)","v":"CLSC4"},{"$f":"IF($A74=\"\",\"\",VLOOKUP(VLOOKUP($A74,Economática!$A$3:$AI$823,6,FALSE),Correção!$B$16:$C$36,2,FALSE))","v":"Energia Elétrica"},{"$f":"IF(Economática!B76=\"\",\"\",Economática!B76)","v":"Celesc"},{"$f":"IF($A74=\"\",\"\",IF(OR(VLOOKUP($A74,Economática!$A$3:$AI$823,8,FALSE)=0,VLOOKUP($A74,Economática!$A$3:$AI$823,8,FALSE)=\"-\"),1/0,VLOOKUP($A74,Economática!$A$3:$AI$823,8,FALSE)))","v":53.43},{"$f":"IF(A74=\"\",\"\",IF(ISERROR(VLOOKUP(A74,Correção!$B$2:$G$13,9,FALSE)),VLOOKUP($A74,Economática!$A$3:$AI$823,9,FALSE),VLOOKUP(A74,Correção!$B$2:$G$13,9,FALSE)))","v":38.570999999999998},{"$f":"IF($A74=\"\",\"\",Economática!G76)","v":2060.85},{"$f":"IF($A74=\"\",\"\",IF(OR(VLOOKUP($A74,Economática!$A$3:$AI$823,10,FALSE)=0,VLOOKUP($A74,Economática!$A$3:$AI$823,10,FALSE)=\"-\"),1/0,VLOOKUP($A74,Economática!$A$3:$AI$823,10,FALSE)))","v":1800.86},{"$f":"IF($A74=\"\",\"\",IF(OR(VLOOKUP($A74,Economática!$A$3:$AI$823,11,FALSE)=0,VLOOKUP($A74,Economática!$A$3:$AI$823,11,FALSE)=\"-\"),1/0,VLOOKUP($A74,Economática!$A$3:$AI$823,11,FALSE)))","v":7091.24},{"$f":"IF($A74=\"\",\"\",IF(OR(VLOOKUP($A74,Economática!$A$3:$AI$823,12,FALSE)=0,VLOOKUP($A74,Economática!$A$3:$AI$823,12,FALSE)=\"-\"),1/0,VLOOKUP($A74,Economática!$A$3:$AI$823,12,FALSE)))","v":7664.54},{"$f":"IF($A74=\"\",\"\",IF(OR(VLOOKUP($A74,Economática!$A$3:$AI$823,13,FALSE)=0,VLOOKUP($A74,Economática!$A$3:$AI$823,13,FALSE)=\"-\"),1/0,VLOOKUP($A74,Economática!$A$3:$AI$823,13,FALSE)))","v":66.489999999999995},{"$f":"IF($A74=\"\",\"\",IF(OR(VLOOKUP($A74,Economática!$A$3:$AI$823,14,FALSE)=0,VLOOKUP($A74,Economática!$A$3:$AI$823,14,FALSE)=\"-\"),1/0,VLOOKUP($A74,Economática!$A$3:$AI$823,14,FALSE)))","v":70.989999999999995},{"$f":"IF($A74=\"\",\"\",IF(OR(VLOOKUP($A74,Economática!$A$3:$AI$823,15,FALSE)=0,VLOOKUP($A74,Economática!$A$3:$AI$823,15,FALSE)=\"-\"),1/0,VLOOKUP($A74,Economática!$A$3:$AI$823,15,FALSE)))","v":140.21},{"$f":"IF($A74=\"\",\"\",IF(OR(VLOOKUP($A74,Economática!$A$3:$AI$823,16,FALSE)=0,VLOOKUP($A74,Economática!$A$3:$AI$823,16,FALSE)=\"-\"),1/0,VLOOKUP($A74,Economática!$A$3:$AI$823,16,FALSE)))","v":182.29},{"$f":"IF($A74=\"\",\"\",IF(OR(VLOOKUP($A74,Economática!$A$3:$AI$823,17,FALSE)=0,VLOOKUP($A74,Economática!$A$3:$AI$823,17,FALSE)=\"-\"),1/0,VLOOKUP($A74,Economática!$A$3:$AI$823,17,FALSE)))","v":165.03},{"$f":"IF($A74=\"\",\"\",IF(OR(VLOOKUP($A74,Economática!$A$3:$AI$823,18,FALSE)=0,VLOOKUP($A74,Economática!$A$3:$AI$823,18,FALSE)=\"-\"),1/0,VLOOKUP($A74,Economática!$A$3:$AI$823,18,FALSE)))","v":66.489999999999995},{"$f":"IF($A74=\"\",\"\",IF(OR(VLOOKUP($A74,Economática!$A$3:$AI$823,19,FALSE)=0,VLOOKUP($A74,Economática!$A$3:$AI$823,19,FALSE)=\"-\"),1/0,VLOOKUP($A74,Economática!$A$3:$AI$823,19,FALSE)))","v":165.03},{"$f":"IF($A74=\"\",\"\",VLOOKUP($A74,Economática!$A$3:$AI$823,20,FALSE)/E74)","v":4.2786030955899514},46.689481734982238,1.1443690958764148,12.487720596255224,{"$f":"IF($A74=\"\",\"\",IF(OR(VLOOKUP($A74,Economática!$A$3:$AI$823,21,FALSE)/100=0,VLOOKUP($A74,Economática!$A$3:$AI$823,21,FALSE)/100=\"-\"),1/0,VLOOKUP($A74,Economática!$A$3:$AI$823,21,FALSE)/100))","v":8.9581999999999995E-2},{"$f":"IF($A74=\"\",\"\",IF(OR(VLOOKUP($A74,Economática!$A$3:$AI$823,22,FALSE)/100=0,VLOOKUP($A74,Economática!$A$3:$AI$823,22,FALSE)/100=\"-\"),1/0,VLOOKUP($A74,Economática!$A$3:$AI$823,22,FALSE)/100))","v":0.400922},{"$f":"IF($A74=\"\",\"\",IF(OR(VLOOKUP($A74,Economática!$A$3:$AI$823,23,FALSE)=0,VLOOKUP($A74,Economática!$A$3:$AI$823,23,FALSE)=\"-\"),1/0,VLOOKUP($A74,Economática!$A$3:$AI$823,23,FALSE)))","v":523.20000000000005},{"$f":"IF($A74=\"\",\"\",IF(OR(VLOOKUP($A74,Economática!$A$3:$AI$823,24,FALSE)=0,VLOOKUP($A74,Economática!$A$3:$AI$823,24,FALSE)=\"-\"),1/0,VLOOKUP($A74,Economática!$A$3:$AI$823,24,FALSE)))","v":{"$error":"#DIV/0!"}},{"$f":"IF($A74=\"\",\"\",IF(OR(VLOOKUP($A74,Economática!$A$3:$AI$823,25,FALSE)=0,VLOOKUP($A74,Economática!$A$3:$AI$823,25,FALSE)=\"-\"),1/0,VLOOKUP($A74,Economática!$A$3:$AI$823,25,FALSE)))","v":{"$error":"#DIV/0!"}},{"$f":"IF($A74=\"\",\"\",IF(ISERROR((F74+VLOOKUP($A74,Economática!$A$3:$AI$823,26,FALSE))/Y74),(F74+VLOOKUP($A74,Economática!$A$3:$AI$823,26,FALSE))/Y74,(F74+VLOOKUP($A74,Economática!$A$3:$AI$823,26,FALSE))/Y74))","v":{"$error":"#DIV/0!"}},{"$f":"IF($A74=\"\",\"\",IF(OR(-VLOOKUP($A74,Economática!$A$3:$AI$823,27,FALSE)=0,-VLOOKUP($A74,Economática!$A$3:$AI$823,27,FALSE)=\"-\"),1/0,-VLOOKUP($A74,Economática!$A$3:$AI$823,27,FALSE)))","v":15.31},7.4289734818157559E-3,{"$f":"IF($A74=\"\",\"\",IF(OR(VLOOKUP($A74,Economática!$A$3:$AI$823,28,FALSE)=0,VLOOKUP($A74,Economática!$A$3:$AI$823,28,FALSE)=\"-\"),1/0,VLOOKUP($A74,Economática!$A$3:$AI$823,28,FALSE)))","v":-2.5},{"$f":"IF($A74=\"\",\"\",IF(OR(VLOOKUP($A74,Economática!$A$3:$AI$823,29,FALSE)=0,VLOOKUP($A74,Economática!$A$3:$AI$823,29,FALSE)=\"-\"),1/0,VLOOKUP($A74,Economática!$A$3:$AI$823,29,FALSE)))","v":100.6},{"$f":"IF($A74=\"\",\"\",IF(OR(VLOOKUP($A74,Economática!$A$3:$AI$823,30,FALSE)/E74=0,VLOOKUP($A74,Economática!$A$3:$AI$823,30,FALSE)/E74=\"-\",VLOOKUP($A74,Economática!$A$3:$AI$823,30,FALSE)/E74<33.33%,VLOOKUP($A74,Economática!$A$3:$AI$823,30,FALSE)/E74>100%),1/0,VLOOKUP($A74,Economática!$A$3:$AI$823,30,FALSE)/E74))","v":0.40185631692203988},"CLSC4",{"$f":"IF($A74=\"\",\"\",IF(OR(VLOOKUP($A74,Economática!$A$3:$AI$823,25,FALSE)=0,VLOOKUP($A74,Economática!$A$3:$AI$823,25,FALSE)=\"-\"),1/0,VLOOKUP($A74,Economática!$A$3:$AI$823,25,FALSE)))","v":{"$error":"#DIV/0!"}},{"$f":"CONCATENATE(Economática!B76,\" \",Economática!C76)","v":"Celesc PN"}]
[{"$f":"IF(Economática!AG77=\"\",\"\",Economática!AG77)","v":"EEEL4"},{"$f":"IF($A75=\"\",\"\",VLOOKUP(VLOOKUP($A75,Economática!$A$3:$AI$823,6,FALSE),Correção!$B$16:$C$36,2,FALSE))","v":"Energia Elétrica"},{"$f":"IF(Economática!B77=\"\",\"\",Economática!B77)","v":"Ceee-Gt"},{"$f":"IF($A75=\"\",\"\",IF(OR(VLOOKUP($A75,Economática!$A$3:$AI$823,8,FALSE)=0,VLOOKUP($A75,Economática!$A$3:$AI$823,8,FALSE)=\"-\"),1/0,VLOOKUP($A75,Economática!$A$3:$AI$823,8,FALSE)))","v":250},{"$f":"IF(A75=\"\",\"\",IF(ISERROR(VLOOKUP(A75,Correção!$B$2:$G$13,9,FALSE)),VLOOKUP($A75,Economática!$A$3:$AI$823,9,FALSE),VLOOKUP(A75,Correção!$B$2:$G$13,9,FALSE)))","v":9.6809999999999992},{"$f":"IF($A75=\"\",\"\",Economática!G77)","v":2277.44},{"$f":"IF($A75=\"\",\"\",IF(OR(VLOOKUP($A75,Economática!$A$3:$AI$823,10,FALSE)=0,VLOOKUP($A75,Economática!$A$3:$AI$823,10,FALSE)=\"-\"),1/0,VLOOKUP($A75,Economática!$A$3:$AI$823,10,FALSE)))","v":2372.58},{"$f":"IF($A75=\"\",\"\",IF(OR(VLOOKUP($A75,Economática!$A$3:$AI$823,11,FALSE)=0,VLOOKUP($A75,Economática!$A$3:$AI$823,11,FALSE)=\"-\"),1/0,VLOOKUP($A75,Economática!$A$3:$AI$823,11,FALSE)))","v":1017.23},{"$f":"IF($A75=\"\",\"\",IF(OR(VLOOKUP($A75,Economática!$A$3:$AI$823,12,FALSE)=0,VLOOKUP($A75,Economática!$A$3:$AI$823,12,FALSE)=\"-\"),1/0,VLOOKUP($A75,Economática!$A$3:$AI$823,12,FALSE)))","v":1023.43},{"$f":"IF($A75=\"\",\"\",IF(OR(VLOOKUP($A75,Economática!$A$3:$AI$823,13,FALSE)=0,VLOOKUP($A75,Economática!$A$3:$AI$823,13,FALSE)=\"-\"),1/0,VLOOKUP($A75,Economática!$A$3:$AI$823,13,FALSE)))","v":395.08},{"$f":"IF($A75=\"\",\"\",IF(OR(VLOOKUP($A75,Economática!$A$3:$AI$823,14,FALSE)=0,VLOOKUP($A75,Economática!$A$3:$AI$823,14,FALSE)=\"-\"),1/0,VLOOKUP($A75,Economática!$A$3:$AI$823,14,FALSE)))","v":54.19},{"$f":"IF($A75=\"\",\"\",IF(OR(VLOOKUP($A75,Economática!$A$3:$AI$823,15,FALSE)=0,VLOOKUP($A75,Economática!$A$3:$AI$823,15,FALSE)=\"-\"),1/0,VLOOKUP($A75,Economática!$A$3:$AI$823,15,FALSE)))","v":41.63},{"$f":"IF($A75=\"\",\"\",IF(OR(VLOOKUP($A75,Economática!$A$3:$AI$823,16,FALSE)=0,VLOOKUP($A75,Economática!$A$3:$AI$823,16,FALSE)=\"-\"),1/0,VLOOKUP($A75,Economática!$A$3:$AI$823,16,FALSE)))","v":104.72},{"$f":"IF($A75=\"\",\"\",IF(OR(VLOOKUP($A75,Economática!$A$3:$AI$823,17,FALSE)=0,VLOOKUP($A75,Economática!$A$3:$AI$823,17,FALSE)=\"-\"),1/0,VLOOKUP($A75,Economática!$A$3:$AI$823,17,FALSE)))","v":173.39},{"$f":"IF($A75=\"\",\"\",IF(OR(VLOOKUP($A75,Economática!$A$3:$AI$823,18,FALSE)=0,VLOOKUP($A75,Economática!$A$3:$AI$823,18,FALSE)=\"-\"),1/0,VLOOKUP($A75,Economática!$A$3:$AI$823,18,FALSE)))","v":395.08},{"$f":"IF($A75=\"\",\"\",IF(OR(VLOOKUP($A75,Economática!$A$3:$AI$823,19,FALSE)=0,VLOOKUP($A75,Economática!$A$3:$AI$823,19,FALSE)=\"-\"),1/0,VLOOKUP($A75,Economática!$A$3:$AI$823,19,FALSE)))","v":173.39},{"$f":"IF($A75=\"\",\"\",VLOOKUP($A75,Economática!$A$3:$AI$823,20,FALSE)/E75)","v":17.910339840925523},245.07592190889372,1.0200920516905647,13.958417440452161,{"$f":"IF($A75=\"\",\"\",IF(OR(VLOOKUP($A75,Economática!$A$3:$AI$823,21,FALSE)/100=0,VLOOKUP($A75,Economática!$A$3:$AI$823,21,FALSE)/100=\"-\"),1/0,VLOOKUP($A75,Economática!$A$3:$AI$823,21,FALSE)/100))","v":7.4162999999999993E-2},{"$f":"IF($A75=\"\",\"\",IF(OR(VLOOKUP($A75,Economática!$A$3:$AI$823,22,FALSE)/100=0,VLOOKUP($A75,Economática!$A$3:$AI$823,22,FALSE)/100=\"-\"),1/0,VLOOKUP($A75,Economática!$A$3:$AI$823,22,FALSE)/100))","v":0.12475199999999999},{"$f":"IF($A75=\"\",\"\",IF(OR(VLOOKUP($A75,Economática!$A$3:$AI$823,23,FALSE)=0,VLOOKUP($A75,Economática!$A$3:$AI$823,23,FALSE)=\"-\"),1/0,VLOOKUP($A75,Economática!$A$3:$AI$823,23,FALSE)))","v":408.7},{"$f":"IF($A75=\"\",\"\",IF(OR(VLOOKUP($A75,Economática!$A$3:$AI$823,24,FALSE)=0,VLOOKUP($A75,Economática!$A$3:$AI$823,24,FALSE)=\"-\"),1/0,VLOOKUP($A75,Economática!$A$3:$AI$823,24,FALSE)))","v":329.5},{"$f":"IF($A75=\"\",\"\",IF(OR(VLOOKUP($A75,Economática!$A$3:$AI$823,25,FALSE)=0,VLOOKUP($A75,Economática!$A$3:$AI$823,25,FALSE)=\"-\"),1/0,VLOOKUP($A75,Economática!$A$3:$AI$823,25,FALSE)))","v":329.5},{"$f":"IF($A75=\"\",\"\",IF(ISERROR((F75+VLOOKUP($A75,Economática!$A$3:$AI$823,26,FALSE))/Y75),(F75+VLOOKUP($A75,Economática!$A$3:$AI$823,26,FALSE))/Y75,(F75+VLOOKUP($A75,Economática!$A$3:$AI$823,26,FALSE))/Y75))","v":7.8162336874051599},{"$f":"IF($A75=\"\",\"\",IF(OR(-VLOOKUP($A75,Economática!$A$3:$AI$823,27,FALSE)=0,-VLOOKUP($A75,Economática!$A$3:$AI$823,27,FALSE)=\"-\"),1/0,-VLOOKUP($A75,Economática!$A$3:$AI$823,27,FALSE)))","v":{"$error":"#DIV/0!"}},{"$error":"#DIV/0!"},{"$f":"IF($A75=\"\",\"\",IF(OR(VLOOKUP($A75,Economática!$A$3:$AI$823,28,FALSE)=0,VLOOKUP($A75,Economática!$A$3:$AI$823,28,FALSE)=\"-\"),1/0,VLOOKUP($A75,Economática!$A$3:$AI$823,28,FALSE)))","v":{"$error":"#DIV/0!"}},{"$f":"IF($A75=\"\",\"\",IF(OR(VLOOKUP($A75,Economática!$A$3:$AI$823,29,FALSE)=0,VLOOKUP($A75,Economática!$A$3:$AI$823,29,FALSE)=\"-\"),1/0,VLOOKUP($A75,Economática!$A$3:$AI$823,29,FALSE)))","v":141.30000000000001},{"$f":"IF($A75=\"\",\"\",IF(OR(VLOOKUP($A75,Economática!$A$3:$AI$823,30,FALSE)/E75=0,VLOOKUP($A75,Economática!$A$3:$AI$823,30,FALSE)/E75=\"-\",VLOOKUP($A75,Economática!$A$3:$AI$823,30,FALSE)/E75<33.33%,VLOOKUP($A75,Economática!$A$3:$AI$823,30,FALSE)/E75>100%),1/0,VLOOKUP($A75,Economática!$A$3:$AI$823,30,FALSE)/E75))","v":0.98130358434046083},"EEEL4",{"$f":"IF($A75=\"\",\"\",IF(OR(VLOOKUP($A75,Economática!$A$3:$AI$823,25,FALSE)=0,VLOOKUP($A75,Economática!$A$3:$AI$823,25,FALSE)=\"-\"),1/0,VLOOKUP($A75,Economática!$A$3:$AI$823,25,FALSE)))","v":329.5},{"$f":"CONCATENATE(Economática!B77,\" \",Economática!C77)","v":"Ceee-Gt PN"}]
[{"$f":"IF(Economática!AG78=\"\",\"\",Economática!AG78)","v":"LIPR3"},{"$f":"IF($A76=\"\",\"\",VLOOKUP(VLOOKUP($A76,Economática!$A$3:$AI$823,6,FALSE),Correção!$B$16:$C$36,2,FALSE))","v":"Energia Elétrica"},{"$f":"IF(Economática!B78=\"\",\"\",Economática!B78)","v":"Eletropar"},{"$f":"IF($A76=\"\",\"\",IF(OR(VLOOKUP($A76,Economática!$A$3:$AI$823,8,FALSE)=0,VLOOKUP($A76,Economática!$A$3:$AI$823,8,FALSE)=\"-\"),1/0,VLOOKUP($A76,Economática!$A$3:$AI$823,8,FALSE)))","v":60},{"$f":"IF(A76=\"\",\"\",IF(ISERROR(VLOOKUP(A76,Correção!$B$2:$G$13,9,FALSE)),VLOOKUP($A76,Economática!$A$3:$AI$823,9,FALSE),VLOOKUP(A76,Correção!$B$2:$G$13,9,FALSE)))","v":11.763999999999999},{"$f":"IF($A76=\"\",\"\",Economática!G78)","v":705.84},{"$f":"IF($A76=\"\",\"\",IF(OR(VLOOKUP($A76,Economática!$A$3:$AI$823,10,FALSE)=0,VLOOKUP($A76,Economática!$A$3:$AI$823,10,FALSE)=\"-\"),1/0,VLOOKUP($A76,Economática!$A$3:$AI$823,10,FALSE)))","v":187.43},{"$f":"IF($A76=\"\",\"\",IF(OR(VLOOKUP($A76,Economática!$A$3:$AI$823,11,FALSE)=0,VLOOKUP($A76,Economática!$A$3:$AI$823,11,FALSE)=\"-\"),1/0,VLOOKUP($A76,Economática!$A$3:$AI$823,11,FALSE)))","v":{"$error":"#DIV/0!"}},{"$f":"IF($A76=\"\",\"\",IF(OR(VLOOKUP($A76,Economática!$A$3:$AI$823,12,FALSE)=0,VLOOKUP($A76,Economática!$A$3:$AI$823,12,FALSE)=\"-\"),1/0,VLOOKUP($A76,Economática!$A$3:$AI$823,12,FALSE)))","v":{"$error":"#DIV/0!"}},{"$f":"IF($A76=\"\",\"\",IF(OR(VLOOKUP($A76,Economática!$A$3:$AI$823,13,FALSE)=0,VLOOKUP($A76,Economática!$A$3:$AI$823,13,FALSE)=\"-\"),1/0,VLOOKUP($A76,Economática!$A$3:$AI$823,13,FALSE)))","v":39.22},{"$f":"IF($A76=\"\",\"\",IF(OR(VLOOKUP($A76,Economática!$A$3:$AI$823,14,FALSE)=0,VLOOKUP($A76,Economática!$A$3:$AI$823,14,FALSE)=\"-\"),1/0,VLOOKUP($A76,Economática!$A$3:$AI$823,14,FALSE)))","v":-4.5599999999999996},{"$f":"IF($A76=\"\",\"\",IF(OR(VLOOKUP($A76,Economática!$A$3:$AI$823,15,FALSE)=0,VLOOKUP($A76,Economática!$A$3:$AI$823,15,FALSE)=\"-\"),1/0,VLOOKUP($A76,Economática!$A$3:$AI$823,15,FALSE)))","v":0.09},{"$f":"IF($A76=\"\",\"\",IF(OR(VLOOKUP($A76,Economática!$A$3:$AI$823,16,FALSE)=0,VLOOKUP($A76,Economática!$A$3:$AI$823,16,FALSE)=\"-\"),1/0,VLOOKUP($A76,Economática!$A$3:$AI$823,16,FALSE)))","v":7.32},{"$f":"IF($A76=\"\",\"\",IF(OR(VLOOKUP($A76,Economática!$A$3:$AI$823,17,FALSE)=0,VLOOKUP($A76,Economática!$A$3:$AI$823,17,FALSE)=\"-\"),1/0,VLOOKUP($A76,Economática!$A$3:$AI$823,17,FALSE)))","v":13.18},{"$f":"IF($A76=\"\",\"\",IF(OR(VLOOKUP($A76,Economática!$A$3:$AI$823,18,FALSE)=0,VLOOKUP($A76,Economática!$A$3:$AI$823,18,FALSE)=\"-\"),1/0,VLOOKUP($A76,Economática!$A$3:$AI$823,18,FALSE)))","v":39.22},{"$f":"IF($A76=\"\",\"\",IF(OR(VLOOKUP($A76,Economática!$A$3:$AI$823,19,FALSE)=0,VLOOKUP($A76,Economática!$A$3:$AI$823,19,FALSE)=\"-\"),1/0,VLOOKUP($A76,Economática!$A$3:$AI$823,19,FALSE)))","v":13.18},{"$f":"IF($A76=\"\",\"\",VLOOKUP($A76,Economática!$A$3:$AI$823,20,FALSE)/E76)","v":1.1203672220333221},15.932505950357022,3.765885930747479,53.553869499241273,{"$f":"IF($A76=\"\",\"\",IF(OR(VLOOKUP($A76,Economática!$A$3:$AI$823,21,FALSE)/100=0,VLOOKUP($A76,Economática!$A$3:$AI$823,21,FALSE)/100=\"-\"),1/0,VLOOKUP($A76,Economática!$A$3:$AI$823,21,FALSE)/100))","v":6.5540000000000001E-2},{"$f":"IF($A76=\"\",\"\",IF(OR(VLOOKUP($A76,Economática!$A$3:$AI$823,22,FALSE)/100=0,VLOOKUP($A76,Economática!$A$3:$AI$823,22,FALSE)/100=\"-\"),1/0,VLOOKUP($A76,Economática!$A$3:$AI$823,22,FALSE)/100))","v":-0.55870399999999998},{"$f":"IF($A76=\"\",\"\",IF(OR(VLOOKUP($A76,Economática!$A$3:$AI$823,23,FALSE)=0,VLOOKUP($A76,Economática!$A$3:$AI$823,23,FALSE)=\"-\"),1/0,VLOOKUP($A76,Economática!$A$3:$AI$823,23,FALSE)))","v":44.6},{"$f":"IF($A76=\"\",\"\",IF(OR(VLOOKUP($A76,Economática!$A$3:$AI$823,24,FALSE)=0,VLOOKUP($A76,Economática!$A$3:$AI$823,24,FALSE)=\"-\"),1/0,VLOOKUP($A76,Economática!$A$3:$AI$823,24,FALSE)))","v":9.1},{"$f":"IF($A76=\"\",\"\",IF(OR(VLOOKUP($A76,Economática!$A$3:$AI$823,25,FALSE)=0,VLOOKUP($A76,Economática!$A$3:$AI$823,25,FALSE)=\"-\"),1/0,VLOOKUP($A76,Economática!$A$3:$AI$823,25,FALSE)))","v":9.1},{"$f":"IF($A76=\"\",\"\",IF(ISERROR((F76+VLOOKUP($A76,Economática!$A$3:$AI$823,26,FALSE))/Y76),(F76+VLOOKUP($A76,Economática!$A$3:$AI$823,26,FALSE))/Y76,(F76+VLOOKUP($A76,Economática!$A$3:$AI$823,26,FALSE))/Y76))","v":66.057252747252761},{"$f":"IF($A76=\"\",\"\",IF(OR(-VLOOKUP($A76,Economática!$A$3:$AI$823,27,FALSE)=0,-VLOOKUP($A76,Economática!$A$3:$AI$823,27,FALSE)=\"-\"),1/0,-VLOOKUP($A76,Economática!$A$3:$AI$823,27,FALSE)))","v":87.38},0.12379576107899806,{"$f":"IF($A76=\"\",\"\",IF(OR(VLOOKUP($A76,Economática!$A$3:$AI$823,28,FALSE)=0,VLOOKUP($A76,Economática!$A$3:$AI$823,28,FALSE)=\"-\"),1/0,VLOOKUP($A76,Economática!$A$3:$AI$823,28,FALSE)))","v":{"$error":"#DIV/0!"}},{"$f":"IF($A76=\"\",\"\",IF(OR(VLOOKUP($A76,Economática!$A$3:$AI$823,29,FALSE)=0,VLOOKUP($A76,Economática!$A$3:$AI$823,29,FALSE)=\"-\"),1/0,VLOOKUP($A76,Economática!$A$3:$AI$823,29,FALSE)))","v":28.9},{"$f":"IF($A76=\"\",\"\",IF(OR(VLOOKUP($A76,Economática!$A$3:$AI$823,30,FALSE)/E76=0,VLOOKUP($A76,Economática!$A$3:$AI$823,30,FALSE)/E76=\"-\",VLOOKUP($A76,Economática!$A$3:$AI$823,30,FALSE)/E76<33.33%,VLOOKUP($A76,Economática!$A$3:$AI$823,30,FALSE)/E76>100%),1/0,VLOOKUP($A76,Economática!$A$3:$AI$823,30,FALSE)/E76))","v":{"$error":"#DIV/0!"}},"LIPR3",{"$f":"IF($A76=\"\",\"\",IF(OR(VLOOKUP($A76,Economática!$A$3:$AI$823,25,FALSE)=0,VLOOKUP($A76,Economática!$A$3:$AI$823,25,FALSE)=\"-\"),1/0,VLOOKUP($A76,Economática!$A$3:$AI$823,25,FALSE)))","v":9.1},{"$f":"CONCATENATE(Economática!B78,\" \",Economática!C78)","v":"Eletropar ON"}]
[{"$f":"IF(Economática!AG79=\"\",\"\",Economática!AG79)","v":"LIGT3"},{"$f":"IF($A77=\"\",\"\",VLOOKUP(VLOOKUP($A77,Economática!$A$3:$AI$823,6,FALSE),Correção!$B$16:$C$36,2,FALSE))","v":"Energia Elétrica"},{"$f":"IF(Economática!B79=\"\",\"\",Economática!B79)","v":"Light S/A"},{"$f":"IF($A77=\"\",\"\",IF(OR(VLOOKUP($A77,Economática!$A$3:$AI$823,8,FALSE)=0,VLOOKUP($A77,Economática!$A$3:$AI$823,8,FALSE)=\"-\"),1/0,VLOOKUP($A77,Economática!$A$3:$AI$823,8,FALSE)))","v":20.55},{"$f":"IF(A77=\"\",\"\",IF(ISERROR(VLOOKUP(A77,Correção!$B$2:$G$13,9,FALSE)),VLOOKUP($A77,Economática!$A$3:$AI$823,9,FALSE),VLOOKUP(A77,Correção!$B$2:$G$13,9,FALSE)))","v":203.934},{"$f":"IF($A77=\"\",\"\",Economática!G79)","v":4190.84},{"$f":"IF($A77=\"\",\"\",IF(OR(VLOOKUP($A77,Economática!$A$3:$AI$823,10,FALSE)=0,VLOOKUP($A77,Economática!$A$3:$AI$823,10,FALSE)=\"-\"),1/0,VLOOKUP($A77,Economática!$A$3:$AI$823,10,FALSE)))","v":3389.49},{"$f":"IF($A77=\"\",\"\",IF(OR(VLOOKUP($A77,Economática!$A$3:$AI$823,11,FALSE)=0,VLOOKUP($A77,Economática!$A$3:$AI$823,11,FALSE)=\"-\"),1/0,VLOOKUP($A77,Economática!$A$3:$AI$823,11,FALSE)))","v":11314.56},{"$f":"IF($A77=\"\",\"\",IF(OR(VLOOKUP($A77,Economática!$A$3:$AI$823,12,FALSE)=0,VLOOKUP($A77,Economática!$A$3:$AI$823,12,FALSE)=\"-\"),1/0,VLOOKUP($A77,Economática!$A$3:$AI$823,12,FALSE)))","v":11970.55},{"$f":"IF($A77=\"\",\"\",IF(OR(VLOOKUP($A77,Economática!$A$3:$AI$823,13,FALSE)=0,VLOOKUP($A77,Economática!$A$3:$AI$823,13,FALSE)=\"-\"),1/0,VLOOKUP($A77,Economática!$A$3:$AI$823,13,FALSE)))","v":124.22},{"$f":"IF($A77=\"\",\"\",IF(OR(VLOOKUP($A77,Economática!$A$3:$AI$823,14,FALSE)=0,VLOOKUP($A77,Economática!$A$3:$AI$823,14,FALSE)=\"-\"),1/0,VLOOKUP($A77,Economática!$A$3:$AI$823,14,FALSE)))","v":92.75},{"$f":"IF($A77=\"\",\"\",IF(OR(VLOOKUP($A77,Economática!$A$3:$AI$823,15,FALSE)=0,VLOOKUP($A77,Economática!$A$3:$AI$823,15,FALSE)=\"-\"),1/0,VLOOKUP($A77,Economática!$A$3:$AI$823,15,FALSE)))","v":67.3},{"$f":"IF($A77=\"\",\"\",IF(OR(VLOOKUP($A77,Economática!$A$3:$AI$823,16,FALSE)=0,VLOOKUP($A77,Economática!$A$3:$AI$823,16,FALSE)=\"-\"),1/0,VLOOKUP($A77,Economática!$A$3:$AI$823,16,FALSE)))","v":73.430000000000007},{"$f":"IF($A77=\"\",\"\",IF(OR(VLOOKUP($A77,Economática!$A$3:$AI$823,17,FALSE)=0,VLOOKUP($A77,Economática!$A$3:$AI$823,17,FALSE)=\"-\"),1/0,VLOOKUP($A77,Economática!$A$3:$AI$823,17,FALSE)))","v":165.78},{"$f":"IF($A77=\"\",\"\",IF(OR(VLOOKUP($A77,Economática!$A$3:$AI$823,18,FALSE)=0,VLOOKUP($A77,Economática!$A$3:$AI$823,18,FALSE)=\"-\"),1/0,VLOOKUP($A77,Economática!$A$3:$AI$823,18,FALSE)))","v":124.22},{"$f":"IF($A77=\"\",\"\",IF(OR(VLOOKUP($A77,Economática!$A$3:$AI$823,19,FALSE)=0,VLOOKUP($A77,Economática!$A$3:$AI$823,19,FALSE)=\"-\"),1/0,VLOOKUP($A77,Economática!$A$3:$AI$823,19,FALSE)))","v":165.78},{"$f":"IF($A77=\"\",\"\",VLOOKUP($A77,Economática!$A$3:$AI$823,20,FALSE)/E77)","v":0.81291005913677961},16.620524287269411,1.2364230901994104,25.279549402823019,{"$f":"IF($A77=\"\",\"\",IF(OR(VLOOKUP($A77,Economática!$A$3:$AI$823,21,FALSE)/100=0,VLOOKUP($A77,Economática!$A$3:$AI$823,21,FALSE)/100=\"-\"),1/0,VLOOKUP($A77,Economática!$A$3:$AI$823,21,FALSE)/100))","v":4.8297999999999994E-2},{"$f":"IF($A77=\"\",\"\",IF(OR(VLOOKUP($A77,Economática!$A$3:$AI$823,22,FALSE)/100=0,VLOOKUP($A77,Economática!$A$3:$AI$823,22,FALSE)/100=\"-\"),1/0,VLOOKUP($A77,Economática!$A$3:$AI$823,22,FALSE)/100))","v":2.4619089999999999},{"$f":"IF($A77=\"\",\"\",IF(OR(VLOOKUP($A77,Economática!$A$3:$AI$823,23,FALSE)=0,VLOOKUP($A77,Economática!$A$3:$AI$823,23,FALSE)=\"-\"),1/0,VLOOKUP($A77,Economática!$A$3:$AI$823,23,FALSE)))","v":1694.1},{"$f":"IF($A77=\"\",\"\",IF(OR(VLOOKUP($A77,Economática!$A$3:$AI$823,24,FALSE)=0,VLOOKUP($A77,Economática!$A$3:$AI$823,24,FALSE)=\"-\"),1/0,VLOOKUP($A77,Economática!$A$3:$AI$823,24,FALSE)))","v":1507.1},{"$f":"IF($A77=\"\",\"\",IF(OR(VLOOKUP($A77,Economática!$A$3:$AI$823,25,FALSE)=0,VLOOKUP($A77,Economática!$A$3:$AI$823,25,FALSE)=\"-\"),1/0,VLOOKUP($A77,Economática!$A$3:$AI$823,25,FALSE)))","v":1507.1},{"$f":"IF($A77=\"\",\"\",IF(ISERROR((F77+VLOOKUP($A77,Economática!$A$3:$AI$823,26,FALSE))/Y77),(F77+VLOOKUP($A77,Economática!$A$3:$AI$823,26,FALSE))/Y77,(F77+VLOOKUP($A77,Economática!$A$3:$AI$823,26,FALSE))/Y77))","v":8.317604007696902},{"$f":"IF($A77=\"\",\"\",IF(OR(-VLOOKUP($A77,Economática!$A$3:$AI$823,27,FALSE)=0,-VLOOKUP($A77,Economática!$A$3:$AI$823,27,FALSE)=\"-\"),1/0,-VLOOKUP($A77,Economática!$A$3:$AI$823,27,FALSE)))","v":29.5},7.0391616000610854E-3,{"$f":"IF($A77=\"\",\"\",IF(OR(VLOOKUP($A77,Economática!$A$3:$AI$823,28,FALSE)=0,VLOOKUP($A77,Economática!$A$3:$AI$823,28,FALSE)=\"-\"),1/0,VLOOKUP($A77,Economática!$A$3:$AI$823,28,FALSE)))","v":3.5},{"$f":"IF($A77=\"\",\"\",IF(OR(VLOOKUP($A77,Economática!$A$3:$AI$823,29,FALSE)=0,VLOOKUP($A77,Economática!$A$3:$AI$823,29,FALSE)=\"-\"),1/0,VLOOKUP($A77,Economática!$A$3:$AI$823,29,FALSE)))","v":24.1},{"$f":"IF($A77=\"\",\"\",IF(OR(VLOOKUP($A77,Economática!$A$3:$AI$823,30,FALSE)/E77=0,VLOOKUP($A77,Economática!$A$3:$AI$823,30,FALSE)/E77=\"-\",VLOOKUP($A77,Economática!$A$3:$AI$823,30,FALSE)/E77<33.33%,VLOOKUP($A77,Economática!$A$3:$AI$823,30,FALSE)/E77>100%),1/0,VLOOKUP($A77,Economática!$A$3:$AI$823,30,FALSE)/E77))","v":0.99983327939431388},"LIGT3",{"$f":"IF($A77=\"\",\"\",IF(OR(VLOOKUP($A77,Economática!$A$3:$AI$823,25,FALSE)=0,VLOOKUP($A77,Economática!$A$3:$AI$823,25,FALSE)=\"-\"),1/0,VLOOKUP($A77,Economática!$A$3:$AI$823,25,FALSE)))","v":1507.1},{"$f":"CONCATENATE(Economática!B79,\" \",Economática!C79)","v":"Light S/A ON"}]
[{"$f":"IF(Economática!AG80=\"\",\"\",Economática!AG80)","v":"CESP6"},{"$f":"IF($A78=\"\",\"\",VLOOKUP(VLOOKUP($A78,Economática!$A$3:$AI$823,6,FALSE),Correção!$B$16:$C$36,2,FALSE))","v":"Energia Elétrica"},{"$f":"IF(Economática!B80=\"\",\"\",Economática!B80)","v":"Cesp"},{"$f":"IF($A78=\"\",\"\",IF(OR(VLOOKUP($A78,Economática!$A$3:$AI$823,8,FALSE)=0,VLOOKUP($A78,Economática!$A$3:$AI$823,8,FALSE)=\"-\"),1/0,VLOOKUP($A78,Economática!$A$3:$AI$823,8,FALSE)))","v":24.14},{"$f":"IF(A78=\"\",\"\",IF(ISERROR(VLOOKUP(A78,Correção!$B$2:$G$13,9,FALSE)),VLOOKUP($A78,Economática!$A$3:$AI$823,9,FALSE),VLOOKUP(A78,Correção!$B$2:$G$13,9,FALSE)))","v":327.50299999999999},{"$f":"IF($A78=\"\",\"\",Economática!G80)","v":7715.17},{"$f":"IF($A78=\"\",\"\",IF(OR(VLOOKUP($A78,Economática!$A$3:$AI$823,10,FALSE)=0,VLOOKUP($A78,Economática!$A$3:$AI$823,10,FALSE)=\"-\"),1/0,VLOOKUP($A78,Economática!$A$3:$AI$823,10,FALSE)))","v":7102.07},{"$f":"IF($A78=\"\",\"\",IF(OR(VLOOKUP($A78,Economática!$A$3:$AI$823,11,FALSE)=0,VLOOKUP($A78,Economática!$A$3:$AI$823,11,FALSE)=\"-\"),1/0,VLOOKUP($A78,Economática!$A$3:$AI$823,11,FALSE)))","v":1476.62},{"$f":"IF($A78=\"\",\"\",IF(OR(VLOOKUP($A78,Economática!$A$3:$AI$823,12,FALSE)=0,VLOOKUP($A78,Economática!$A$3:$AI$823,12,FALSE)=\"-\"),1/0,VLOOKUP($A78,Economática!$A$3:$AI$823,12,FALSE)))","v":1634.11},{"$f":"IF($A78=\"\",\"\",IF(OR(VLOOKUP($A78,Economática!$A$3:$AI$823,13,FALSE)=0,VLOOKUP($A78,Economática!$A$3:$AI$823,13,FALSE)=\"-\"),1/0,VLOOKUP($A78,Economática!$A$3:$AI$823,13,FALSE)))","v":-168.53},{"$f":"IF($A78=\"\",\"\",IF(OR(VLOOKUP($A78,Economática!$A$3:$AI$823,14,FALSE)=0,VLOOKUP($A78,Economática!$A$3:$AI$823,14,FALSE)=\"-\"),1/0,VLOOKUP($A78,Economática!$A$3:$AI$823,14,FALSE)))","v":-3.73},{"$f":"IF($A78=\"\",\"\",IF(OR(VLOOKUP($A78,Economática!$A$3:$AI$823,15,FALSE)=0,VLOOKUP($A78,Economática!$A$3:$AI$823,15,FALSE)=\"-\"),1/0,VLOOKUP($A78,Economática!$A$3:$AI$823,15,FALSE)))","v":337.26},{"$f":"IF($A78=\"\",\"\",IF(OR(VLOOKUP($A78,Economática!$A$3:$AI$823,16,FALSE)=0,VLOOKUP($A78,Economática!$A$3:$AI$823,16,FALSE)=\"-\"),1/0,VLOOKUP($A78,Economática!$A$3:$AI$823,16,FALSE)))","v":235.18},{"$f":"IF($A78=\"\",\"\",IF(OR(VLOOKUP($A78,Economática!$A$3:$AI$823,17,FALSE)=0,VLOOKUP($A78,Economática!$A$3:$AI$823,17,FALSE)=\"-\"),1/0,VLOOKUP($A78,Economática!$A$3:$AI$823,17,FALSE)))","v":294.43},{"$f":"IF($A78=\"\",\"\",IF(OR(VLOOKUP($A78,Economática!$A$3:$AI$823,18,FALSE)=0,VLOOKUP($A78,Economática!$A$3:$AI$823,18,FALSE)=\"-\"),1/0,VLOOKUP($A78,Economática!$A$3:$AI$823,18,FALSE)))","v":-168.53},{"$f":"IF($A78=\"\",\"\",IF(OR(VLOOKUP($A78,Economática!$A$3:$AI$823,19,FALSE)=0,VLOOKUP($A78,Economática!$A$3:$AI$823,19,FALSE)=\"-\"),1/0,VLOOKUP($A78,Economática!$A$3:$AI$823,19,FALSE)))","v":294.43},{"$f":"IF($A78=\"\",\"\",VLOOKUP($A78,Economática!$A$3:$AI$823,20,FALSE)/E78)","v":0.89901466551451448},21.685511277759289,1.1131856515072365,26.851619807764152,{"$f":"IF($A78=\"\",\"\",IF(OR(VLOOKUP($A78,Economática!$A$3:$AI$823,21,FALSE)/100=0,VLOOKUP($A78,Economática!$A$3:$AI$823,21,FALSE)/100=\"-\"),1/0,VLOOKUP($A78,Economática!$A$3:$AI$823,21,FALSE)/100))","v":4.1384999999999998E-2},{"$f":"IF($A78=\"\",\"\",IF(OR(VLOOKUP($A78,Economática!$A$3:$AI$823,22,FALSE)/100=0,VLOOKUP($A78,Economática!$A$3:$AI$823,22,FALSE)/100=\"-\"),1/0,VLOOKUP($A78,Economática!$A$3:$AI$823,22,FALSE)/100))","v":-2.7492000000000003E-2},{"$f":"IF($A78=\"\",\"\",IF(OR(VLOOKUP($A78,Economática!$A$3:$AI$823,23,FALSE)=0,VLOOKUP($A78,Economática!$A$3:$AI$823,23,FALSE)=\"-\"),1/0,VLOOKUP($A78,Economática!$A$3:$AI$823,23,FALSE)))","v":197.3},{"$f":"IF($A78=\"\",\"\",IF(OR(VLOOKUP($A78,Economática!$A$3:$AI$823,24,FALSE)=0,VLOOKUP($A78,Economática!$A$3:$AI$823,24,FALSE)=\"-\"),1/0,VLOOKUP($A78,Economática!$A$3:$AI$823,24,FALSE)))","v":613.70000000000005},{"$f":"IF($A78=\"\",\"\",IF(OR(VLOOKUP($A78,Economática!$A$3:$AI$823,25,FALSE)=0,VLOOKUP($A78,Economática!$A$3:$AI$823,25,FALSE)=\"-\"),1/0,VLOOKUP($A78,Economática!$A$3:$AI$823,25,FALSE)))","v":613.70000000000005},{"$f":"IF($A78=\"\",\"\",IF(ISERROR((F78+VLOOKUP($A78,Economática!$A$3:$AI$823,26,FALSE))/Y78),(F78+VLOOKUP($A78,Economática!$A$3:$AI$823,26,FALSE))/Y78,(F78+VLOOKUP($A78,Economática!$A$3:$AI$823,26,FALSE))/Y78))","v":12.25341372005866},{"$f":"IF($A78=\"\",\"\",IF(OR(-VLOOKUP($A78,Economática!$A$3:$AI$823,27,FALSE)=0,-VLOOKUP($A78,Economática!$A$3:$AI$823,27,FALSE)=\"-\"),1/0,-VLOOKUP($A78,Economática!$A$3:$AI$823,27,FALSE)))","v":25.57},3.3142497184119081E-3,{"$f":"IF($A78=\"\",\"\",IF(OR(VLOOKUP($A78,Economática!$A$3:$AI$823,28,FALSE)=0,VLOOKUP($A78,Economática!$A$3:$AI$823,28,FALSE)=\"-\"),1/0,VLOOKUP($A78,Economática!$A$3:$AI$823,28,FALSE)))","v":0.2},{"$f":"IF($A78=\"\",\"\",IF(OR(VLOOKUP($A78,Economática!$A$3:$AI$823,29,FALSE)=0,VLOOKUP($A78,Economática!$A$3:$AI$823,29,FALSE)=\"-\"),1/0,VLOOKUP($A78,Economática!$A$3:$AI$823,29,FALSE)))","v":83.3},{"$f":"IF($A78=\"\",\"\",IF(OR(VLOOKUP($A78,Economática!$A$3:$AI$823,30,FALSE)/E78=0,VLOOKUP($A78,Economática!$A$3:$AI$823,30,FALSE)/E78=\"-\",VLOOKUP($A78,Economática!$A$3:$AI$823,30,FALSE)/E78<33.33%,VLOOKUP($A78,Economática!$A$3:$AI$823,30,FALSE)/E78>100%),1/0,VLOOKUP($A78,Economática!$A$3:$AI$823,30,FALSE)/E78))","v":0.33343206016433441},"CESP6",{"$f":"IF($A78=\"\",\"\",IF(OR(VLOOKUP($A78,Economática!$A$3:$AI$823,25,FALSE)=0,VLOOKUP($A78,Economática!$A$3:$AI$823,25,FALSE)=\"-\"),1/0,VLOOKUP($A78,Economática!$A$3:$AI$823,25,FALSE)))","v":613.70000000000005},{"$f":"CONCATENATE(Economática!B80,\" \",Economática!C80)","v":"Cesp PNB"}]
[{"$f":"IF(Economática!AG81=\"\",\"\",Economática!AG81)","v":"CPRE3"},{"$f":"IF($A79=\"\",\"\",VLOOKUP(VLOOKUP($A79,Economática!$A$3:$AI$823,6,FALSE),Correção!$B$16:$C$36,2,FALSE))","v":"Energia Elétrica"},{"$f":"IF(Economática!B81=\"\",\"\",Economática!B81)","v":"CPFL Renovav"},{"$f":"IF($A79=\"\",\"\",IF(OR(VLOOKUP($A79,Economática!$A$3:$AI$823,8,FALSE)=0,VLOOKUP($A79,Economática!$A$3:$AI$823,8,FALSE)=\"-\"),1/0,VLOOKUP($A79,Economática!$A$3:$AI$823,8,FALSE)))","v":15.97},{"$f":"IF(A79=\"\",\"\",IF(ISERROR(VLOOKUP(A79,Correção!$B$2:$G$13,9,FALSE)),VLOOKUP($A79,Economática!$A$3:$AI$823,9,FALSE),VLOOKUP(A79,Correção!$B$2:$G$13,9,FALSE)))","v":521.32500000000005},{"$f":"IF($A79=\"\",\"\",Economática!G81)","v":8325.5499999999993},{"$f":"IF($A79=\"\",\"\",IF(OR(VLOOKUP($A79,Economática!$A$3:$AI$823,10,FALSE)=0,VLOOKUP($A79,Economática!$A$3:$AI$823,10,FALSE)=\"-\"),1/0,VLOOKUP($A79,Economática!$A$3:$AI$823,10,FALSE)))","v":4147.79},{"$f":"IF($A79=\"\",\"\",IF(OR(VLOOKUP($A79,Economática!$A$3:$AI$823,11,FALSE)=0,VLOOKUP($A79,Economática!$A$3:$AI$823,11,FALSE)=\"-\"),1/0,VLOOKUP($A79,Economática!$A$3:$AI$823,11,FALSE)))","v":1959.08},{"$f":"IF($A79=\"\",\"\",IF(OR(VLOOKUP($A79,Economática!$A$3:$AI$823,12,FALSE)=0,VLOOKUP($A79,Economática!$A$3:$AI$823,12,FALSE)=\"-\"),1/0,VLOOKUP($A79,Economática!$A$3:$AI$823,12,FALSE)))","v":1936.32},{"$f":"IF($A79=\"\",\"\",IF(OR(VLOOKUP($A79,Economática!$A$3:$AI$823,13,FALSE)=0,VLOOKUP($A79,Economática!$A$3:$AI$823,13,FALSE)=\"-\"),1/0,VLOOKUP($A79,Economática!$A$3:$AI$823,13,FALSE)))","v":11.48},{"$f":"IF($A79=\"\",\"\",IF(OR(VLOOKUP($A79,Economática!$A$3:$AI$823,14,FALSE)=0,VLOOKUP($A79,Economática!$A$3:$AI$823,14,FALSE)=\"-\"),1/0,VLOOKUP($A79,Economática!$A$3:$AI$823,14,FALSE)))","v":-74.430000000000007},{"$f":"IF($A79=\"\",\"\",IF(OR(VLOOKUP($A79,Economática!$A$3:$AI$823,15,FALSE)=0,VLOOKUP($A79,Economática!$A$3:$AI$823,15,FALSE)=\"-\"),1/0,VLOOKUP($A79,Economática!$A$3:$AI$823,15,FALSE)))","v":-113.66},{"$f":"IF($A79=\"\",\"\",IF(OR(VLOOKUP($A79,Economática!$A$3:$AI$823,16,FALSE)=0,VLOOKUP($A79,Economática!$A$3:$AI$823,16,FALSE)=\"-\"),1/0,VLOOKUP($A79,Economática!$A$3:$AI$823,16,FALSE)))","v":5.0999999999999996},{"$f":"IF($A79=\"\",\"\",IF(OR(VLOOKUP($A79,Economática!$A$3:$AI$823,17,FALSE)=0,VLOOKUP($A79,Economática!$A$3:$AI$823,17,FALSE)=\"-\"),1/0,VLOOKUP($A79,Economática!$A$3:$AI$823,17,FALSE)))","v":109.26},{"$f":"IF($A79=\"\",\"\",IF(OR(VLOOKUP($A79,Economática!$A$3:$AI$823,18,FALSE)=0,VLOOKUP($A79,Economática!$A$3:$AI$823,18,FALSE)=\"-\"),1/0,VLOOKUP($A79,Economática!$A$3:$AI$823,18,FALSE)))","v":11.48},{"$f":"IF($A79=\"\",\"\",IF(OR(VLOOKUP($A79,Economática!$A$3:$AI$823,19,FALSE)=0,VLOOKUP($A79,Economática!$A$3:$AI$823,19,FALSE)=\"-\"),1/0,VLOOKUP($A79,Economática!$A$3:$AI$823,19,FALSE)))","v":109.26},{"$f":"IF($A79=\"\",\"\",VLOOKUP($A79,Economática!$A$3:$AI$823,20,FALSE)/E79)","v":0.20958135520069054},7.9562461036781267,2.0072280057572831,76.199526359143334,{"$f":"IF($A79=\"\",\"\",IF(OR(VLOOKUP($A79,Economática!$A$3:$AI$823,21,FALSE)/100=0,VLOOKUP($A79,Economática!$A$3:$AI$823,21,FALSE)/100=\"-\"),1/0,VLOOKUP($A79,Economática!$A$3:$AI$823,21,FALSE)/100))","v":2.8704E-2},{"$f":"IF($A79=\"\",\"\",IF(OR(VLOOKUP($A79,Economática!$A$3:$AI$823,22,FALSE)/100=0,VLOOKUP($A79,Economática!$A$3:$AI$823,22,FALSE)/100=\"-\"),1/0,VLOOKUP($A79,Economática!$A$3:$AI$823,22,FALSE)/100))","v":1.083755},{"$f":"IF($A79=\"\",\"\",IF(OR(VLOOKUP($A79,Economática!$A$3:$AI$823,23,FALSE)=0,VLOOKUP($A79,Economática!$A$3:$AI$823,23,FALSE)=\"-\"),1/0,VLOOKUP($A79,Economática!$A$3:$AI$823,23,FALSE)))","v":1221.5999999999999},{"$f":"IF($A79=\"\",\"\",IF(OR(VLOOKUP($A79,Economática!$A$3:$AI$823,24,FALSE)=0,VLOOKUP($A79,Economática!$A$3:$AI$823,24,FALSE)=\"-\"),1/0,VLOOKUP($A79,Economática!$A$3:$AI$823,24,FALSE)))","v":1208.8},{"$f":"IF($A79=\"\",\"\",IF(OR(VLOOKUP($A79,Economática!$A$3:$AI$823,25,FALSE)=0,VLOOKUP($A79,Economática!$A$3:$AI$823,25,FALSE)=\"-\"),1/0,VLOOKUP($A79,Economática!$A$3:$AI$823,25,FALSE)))","v":1208.8},{"$f":"IF($A79=\"\",\"\",IF(ISERROR((F79+VLOOKUP($A79,Economática!$A$3:$AI$823,26,FALSE))/Y79),(F79+VLOOKUP($A79,Economática!$A$3:$AI$823,26,FALSE))/Y79,(F79+VLOOKUP($A79,Economática!$A$3:$AI$823,26,FALSE))/Y79))","v":10.698856717405691},{"$f":"IF($A79=\"\",\"\",IF(OR(-VLOOKUP($A79,Economática!$A$3:$AI$823,27,FALSE)=0,-VLOOKUP($A79,Economática!$A$3:$AI$823,27,FALSE)=\"-\"),1/0,-VLOOKUP($A79,Economática!$A$3:$AI$823,27,FALSE)))","v":3.62},4.3480610890571798E-4,{"$f":"IF($A79=\"\",\"\",IF(OR(VLOOKUP($A79,Economática!$A$3:$AI$823,28,FALSE)=0,VLOOKUP($A79,Economática!$A$3:$AI$823,28,FALSE)=\"-\"),1/0,VLOOKUP($A79,Economática!$A$3:$AI$823,28,FALSE)))","v":1.7},{"$f":"IF($A79=\"\",\"\",IF(OR(VLOOKUP($A79,Economática!$A$3:$AI$823,29,FALSE)=0,VLOOKUP($A79,Economática!$A$3:$AI$823,29,FALSE)=\"-\"),1/0,VLOOKUP($A79,Economática!$A$3:$AI$823,29,FALSE)))","v":19.7},{"$f":"IF($A79=\"\",\"\",IF(OR(VLOOKUP($A79,Economática!$A$3:$AI$823,30,FALSE)/E79=0,VLOOKUP($A79,Economática!$A$3:$AI$823,30,FALSE)/E79=\"-\",VLOOKUP($A79,Economática!$A$3:$AI$823,30,FALSE)/E79<33.33%,VLOOKUP($A79,Economática!$A$3:$AI$823,30,FALSE)/E79>100%),1/0,VLOOKUP($A79,Economática!$A$3:$AI$823,30,FALSE)/E79))","v":0.96638373375533493},"CPRE3",{"$f":"IF($A79=\"\",\"\",IF(OR(VLOOKUP($A79,Economática!$A$3:$AI$823,25,FALSE)=0,VLOOKUP($A79,Economática!$A$3:$AI$823,25,FALSE)=\"-\"),1/0,VLOOKUP($A79,Economática!$A$3:$AI$823,25,FALSE)))","v":1208.8},{"$f":"CONCATENATE(Economática!B81,\" \",Economática!C81)","v":"CPFL Renovav ON"}]
[{"$f":"IF(Economática!AG82=\"\",\"\",Economática!AG82)","v":"RNEW11"},{"$f":"IF($A80=\"\",\"\",VLOOKUP(VLOOKUP($A80,Economática!$A$3:$AI$823,6,FALSE),Correção!$B$16:$C$36,2,FALSE))","v":"Energia Elétrica"},{"$f":"IF(Economática!B82=\"\",\"\",Economática!B82)","v":"Renova"},{"$f":"IF($A80=\"\",\"\",IF(OR(VLOOKUP($A80,Economática!$A$3:$AI$823,8,FALSE)=0,VLOOKUP($A80,Economática!$A$3:$AI$823,8,FALSE)=\"-\"),1/0,VLOOKUP($A80,Economática!$A$3:$AI$823,8,FALSE)))","v":33.630000000000003},{"$f":"IF(A80=\"\",\"\",IF(ISERROR(VLOOKUP(A80,Correção!$B$2:$G$13,9,FALSE)),VLOOKUP($A80,Economática!$A$3:$AI$823,9,FALSE),VLOOKUP(A80,Correção!$B$2:$G$13,9,FALSE)))","v":41.72},{"$f":"IF($A80=\"\",\"\",Economática!G82)","v":470.3},{"$f":"IF($A80=\"\",\"\",IF(OR(VLOOKUP($A80,Economática!$A$3:$AI$823,10,FALSE)=0,VLOOKUP($A80,Economática!$A$3:$AI$823,10,FALSE)=\"-\"),1/0,VLOOKUP($A80,Economática!$A$3:$AI$823,10,FALSE)))","v":-76.489999999999995},{"$f":"IF($A80=\"\",\"\",IF(OR(VLOOKUP($A80,Economática!$A$3:$AI$823,11,FALSE)=0,VLOOKUP($A80,Economática!$A$3:$AI$823,11,FALSE)=\"-\"),1/0,VLOOKUP($A80,Economática!$A$3:$AI$823,11,FALSE)))","v":734.1},{"$f":"IF($A80=\"\",\"\",IF(OR(VLOOKUP($A80,Economática!$A$3:$AI$823,12,FALSE)=0,VLOOKUP($A80,Economática!$A$3:$AI$823,12,FALSE)=\"-\"),1/0,VLOOKUP($A80,Economática!$A$3:$AI$823,12,FALSE)))","v":709.8},{"$f":"IF($A80=\"\",\"\",IF(OR(VLOOKUP($A80,Economática!$A$3:$AI$823,13,FALSE)=0,VLOOKUP($A80,Economática!$A$3:$AI$823,13,FALSE)=\"-\"),1/0,VLOOKUP($A80,Economática!$A$3:$AI$823,13,FALSE)))","v":-1139.54},{"$f":"IF($A80=\"\",\"\",IF(OR(VLOOKUP($A80,Economática!$A$3:$AI$823,14,FALSE)=0,VLOOKUP($A80,Economática!$A$3:$AI$823,14,FALSE)=\"-\"),1/0,VLOOKUP($A80,Economática!$A$3:$AI$823,14,FALSE)))","v":-120.54},{"$f":"IF($A80=\"\",\"\",IF(OR(VLOOKUP($A80,Economática!$A$3:$AI$823,15,FALSE)=0,VLOOKUP($A80,Economática!$A$3:$AI$823,15,FALSE)=\"-\"),1/0,VLOOKUP($A80,Economática!$A$3:$AI$823,15,FALSE)))","v":-245.69},{"$f":"IF($A80=\"\",\"\",IF(OR(VLOOKUP($A80,Economática!$A$3:$AI$823,16,FALSE)=0,VLOOKUP($A80,Economática!$A$3:$AI$823,16,FALSE)=\"-\"),1/0,VLOOKUP($A80,Economática!$A$3:$AI$823,16,FALSE)))","v":-486.96},{"$f":"IF($A80=\"\",\"\",IF(OR(VLOOKUP($A80,Economática!$A$3:$AI$823,17,FALSE)=0,VLOOKUP($A80,Economática!$A$3:$AI$823,17,FALSE)=\"-\"),1/0,VLOOKUP($A80,Economática!$A$3:$AI$823,17,FALSE)))","v":-856.3},{"$f":"IF($A80=\"\",\"\",IF(OR(VLOOKUP($A80,Economática!$A$3:$AI$823,18,FALSE)=0,VLOOKUP($A80,Economática!$A$3:$AI$823,18,FALSE)=\"-\"),1/0,VLOOKUP($A80,Economática!$A$3:$AI$823,18,FALSE)))","v":-1139.54},{"$f":"IF($A80=\"\",\"\",IF(OR(VLOOKUP($A80,Economática!$A$3:$AI$823,19,FALSE)=0,VLOOKUP($A80,Economática!$A$3:$AI$823,19,FALSE)=\"-\"),1/0,VLOOKUP($A80,Economática!$A$3:$AI$823,19,FALSE)))","v":-856.3},{"$f":"IF($A80=\"\",\"\",VLOOKUP($A80,Economática!$A$3:$AI$823,20,FALSE)/E80)","v":-20.524928092042185},{"$error":"#DIV/0!"},{"$error":"#DIV/0!"},{"$error":"#DIV/0!"},{"$f":"IF($A80=\"\",\"\",IF(OR(VLOOKUP($A80,Economática!$A$3:$AI$823,21,FALSE)/100=0,VLOOKUP($A80,Economática!$A$3:$AI$823,21,FALSE)/100=\"-\"),1/0,VLOOKUP($A80,Economática!$A$3:$AI$823,21,FALSE)/100))","v":-1.098087},{"$f":"IF($A80=\"\",\"\",IF(OR(VLOOKUP($A80,Economática!$A$3:$AI$823,22,FALSE)/100=0,VLOOKUP($A80,Economática!$A$3:$AI$823,22,FALSE)/100=\"-\"),1/0,VLOOKUP($A80,Economática!$A$3:$AI$823,22,FALSE)/100))","v":-5.0144330000000004},{"$f":"IF($A80=\"\",\"\",IF(OR(VLOOKUP($A80,Economática!$A$3:$AI$823,23,FALSE)=0,VLOOKUP($A80,Economática!$A$3:$AI$823,23,FALSE)=\"-\"),1/0,VLOOKUP($A80,Economática!$A$3:$AI$823,23,FALSE)))","v":-776.1},{"$f":"IF($A80=\"\",\"\",IF(OR(VLOOKUP($A80,Economática!$A$3:$AI$823,24,FALSE)=0,VLOOKUP($A80,Economática!$A$3:$AI$823,24,FALSE)=\"-\"),1/0,VLOOKUP($A80,Economática!$A$3:$AI$823,24,FALSE)))","v":-522.70000000000005},{"$f":"IF($A80=\"\",\"\",IF(OR(VLOOKUP($A80,Economática!$A$3:$AI$823,25,FALSE)=0,VLOOKUP($A80,Economática!$A$3:$AI$823,25,FALSE)=\"-\"),1/0,VLOOKUP($A80,Economática!$A$3:$AI$823,25,FALSE)))","v":-522.70000000000005},{"$f":"IF($A80=\"\",\"\",IF(ISERROR((F80+VLOOKUP($A80,Economática!$A$3:$AI$823,26,FALSE))/Y80),(F80+VLOOKUP($A80,Economática!$A$3:$AI$823,26,FALSE))/Y80,(F80+VLOOKUP($A80,Economática!$A$3:$AI$823,26,FALSE))/Y80))","v":-1.6335354888081115},{"$f":"IF($A80=\"\",\"\",IF(OR(-VLOOKUP($A80,Economática!$A$3:$AI$823,27,FALSE)=0,-VLOOKUP($A80,Economática!$A$3:$AI$823,27,FALSE)=\"-\"),1/0,-VLOOKUP($A80,Economática!$A$3:$AI$823,27,FALSE)))","v":{"$error":"#DIV/0!"}},{"$error":"#DIV/0!"},{"$f":"IF($A80=\"\",\"\",IF(OR(VLOOKUP($A80,Economática!$A$3:$AI$823,28,FALSE)=0,VLOOKUP($A80,Economática!$A$3:$AI$823,28,FALSE)=\"-\"),1/0,VLOOKUP($A80,Economática!$A$3:$AI$823,28,FALSE)))","v":90.1},{"$f":"IF($A80=\"\",\"\",IF(OR(VLOOKUP($A80,Economática!$A$3:$AI$823,29,FALSE)=0,VLOOKUP($A80,Economática!$A$3:$AI$823,29,FALSE)=\"-\"),1/0,VLOOKUP($A80,Economática!$A$3:$AI$823,29,FALSE)))","v":-44.5},{"$f":"IF($A80=\"\",\"\",IF(OR(VLOOKUP($A80,Economática!$A$3:$AI$823,30,FALSE)/E80=0,VLOOKUP($A80,Economática!$A$3:$AI$823,30,FALSE)/E80=\"-\",VLOOKUP($A80,Economática!$A$3:$AI$823,30,FALSE)/E80<33.33%,VLOOKUP($A80,Economática!$A$3:$AI$823,30,FALSE)/E80>100%),1/0,VLOOKUP($A80,Economática!$A$3:$AI$823,30,FALSE)/E80))","v":0.79098753595397897},"RNEW11",{"$f":"IF($A80=\"\",\"\",IF(OR(VLOOKUP($A80,Economática!$A$3:$AI$823,25,FALSE)=0,VLOOKUP($A80,Economática!$A$3:$AI$823,25,FALSE)=\"-\"),1/0,VLOOKUP($A80,Economática!$A$3:$AI$823,25,FALSE)))","v":-522.70000000000005},{"$f":"CONCATENATE(Economática!B82,\" \",Economática!C82)","v":"Renova UNT N2"}]
[{"$f":"IF(Economática!AG83=\"\",\"\",Economática!AG83)","v":"WIZS3"},{"$f":"IF($A81=\"\",\"\",VLOOKUP(VLOOKUP($A81,Economática!$A$3:$AI$823,6,FALSE),Correção!$B$16:$C$36,2,FALSE))","v":"Finanças e Seguros"},{"$f":"IF(Economática!B83=\"\",\"\",Economática!B83)","v":"Wiz S.A"},{"$f":"IF($A81=\"\",\"\",IF(OR(VLOOKUP($A81,Economática!$A$3:$AI$823,8,FALSE)=0,VLOOKUP($A81,Economática!$A$3:$AI$823,8,FALSE)=\"-\"),1/0,VLOOKUP($A81,Economática!$A$3:$AI$823,8,FALSE)))","v":8.5},{"$f":"IF(A81=\"\",\"\",IF(ISERROR(VLOOKUP(A81,Correção!$B$2:$G$13,9,FALSE)),VLOOKUP($A81,Economática!$A$3:$AI$823,9,FALSE),VLOOKUP(A81,Correção!$B$2:$G$13,9,FALSE)))","v":159.90700000000001},{"$f":"IF($A81=\"\",\"\",Economática!G83)","v":1359.21},{"$f":"IF($A81=\"\",\"\",IF(OR(VLOOKUP($A81,Economática!$A$3:$AI$823,10,FALSE)=0,VLOOKUP($A81,Economática!$A$3:$AI$823,10,FALSE)=\"-\"),1/0,VLOOKUP($A81,Economática!$A$3:$AI$823,10,FALSE)))","v":168.97},{"$f":"IF($A81=\"\",\"\",IF(OR(VLOOKUP($A81,Economática!$A$3:$AI$823,11,FALSE)=0,VLOOKUP($A81,Economática!$A$3:$AI$823,11,FALSE)=\"-\"),1/0,VLOOKUP($A81,Economática!$A$3:$AI$823,11,FALSE)))","v":529.73},{"$f":"IF($A81=\"\",\"\",IF(OR(VLOOKUP($A81,Economática!$A$3:$AI$823,12,FALSE)=0,VLOOKUP($A81,Economática!$A$3:$AI$823,12,FALSE)=\"-\"),1/0,VLOOKUP($A81,Economática!$A$3:$AI$823,12,FALSE)))","v":585.01},{"$f":"IF($A81=\"\",\"\",IF(OR(VLOOKUP($A81,Economática!$A$3:$AI$823,13,FALSE)=0,VLOOKUP($A81,Economática!$A$3:$AI$823,13,FALSE)=\"-\"),1/0,VLOOKUP($A81,Economática!$A$3:$AI$823,13,FALSE)))","v":159.41},{"$f":"IF($A81=\"\",\"\",IF(OR(VLOOKUP($A81,Economática!$A$3:$AI$823,14,FALSE)=0,VLOOKUP($A81,Economática!$A$3:$AI$823,14,FALSE)=\"-\"),1/0,VLOOKUP($A81,Economática!$A$3:$AI$823,14,FALSE)))","v":30.57},{"$f":"IF($A81=\"\",\"\",IF(OR(VLOOKUP($A81,Economática!$A$3:$AI$823,15,FALSE)=0,VLOOKUP($A81,Economática!$A$3:$AI$823,15,FALSE)=\"-\"),1/0,VLOOKUP($A81,Economática!$A$3:$AI$823,15,FALSE)))","v":77.989999999999995},{"$f":"IF($A81=\"\",\"\",IF(OR(VLOOKUP($A81,Economática!$A$3:$AI$823,16,FALSE)=0,VLOOKUP($A81,Economática!$A$3:$AI$823,16,FALSE)=\"-\"),1/0,VLOOKUP($A81,Economática!$A$3:$AI$823,16,FALSE)))","v":129.15},{"$f":"IF($A81=\"\",\"\",IF(OR(VLOOKUP($A81,Economática!$A$3:$AI$823,17,FALSE)=0,VLOOKUP($A81,Economática!$A$3:$AI$823,17,FALSE)=\"-\"),1/0,VLOOKUP($A81,Economática!$A$3:$AI$823,17,FALSE)))","v":177.73},{"$f":"IF($A81=\"\",\"\",IF(OR(VLOOKUP($A81,Economática!$A$3:$AI$823,18,FALSE)=0,VLOOKUP($A81,Economática!$A$3:$AI$823,18,FALSE)=\"-\"),1/0,VLOOKUP($A81,Economática!$A$3:$AI$823,18,FALSE)))","v":159.41},{"$f":"IF($A81=\"\",\"\",IF(OR(VLOOKUP($A81,Economática!$A$3:$AI$823,19,FALSE)=0,VLOOKUP($A81,Economática!$A$3:$AI$823,19,FALSE)=\"-\"),1/0,VLOOKUP($A81,Economática!$A$3:$AI$823,19,FALSE)))","v":177.73},{"$f":"IF($A81=\"\",\"\",VLOOKUP($A81,Economática!$A$3:$AI$823,20,FALSE)/E81)","v":1.1114585352736277},1.0566766933279967,8.0440877078771393,7.6476087323468187,{"$f":"IF($A81=\"\",\"\",IF(OR(VLOOKUP($A81,Economática!$A$3:$AI$823,21,FALSE)/100=0,VLOOKUP($A81,Economática!$A$3:$AI$823,21,FALSE)/100=\"-\"),1/0,VLOOKUP($A81,Economática!$A$3:$AI$823,21,FALSE)/100))","v":1.1035410000000001},{"$f":"IF($A81=\"\",\"\",IF(OR(VLOOKUP($A81,Economática!$A$3:$AI$823,22,FALSE)/100=0,VLOOKUP($A81,Economática!$A$3:$AI$823,22,FALSE)/100=\"-\"),1/0,VLOOKUP($A81,Economática!$A$3:$AI$823,22,FALSE)/100))","v":-0.29978899999999997},{"$f":"IF($A81=\"\",\"\",IF(OR(VLOOKUP($A81,Economática!$A$3:$AI$823,23,FALSE)=0,VLOOKUP($A81,Economática!$A$3:$AI$823,23,FALSE)=\"-\"),1/0,VLOOKUP($A81,Economática!$A$3:$AI$823,23,FALSE)))","v":268},{"$f":"IF($A81=\"\",\"\",IF(OR(VLOOKUP($A81,Economática!$A$3:$AI$823,24,FALSE)=0,VLOOKUP($A81,Economática!$A$3:$AI$823,24,FALSE)=\"-\"),1/0,VLOOKUP($A81,Economática!$A$3:$AI$823,24,FALSE)))","v":{"$error":"#DIV/0!"}},{"$f":"IF($A81=\"\",\"\",IF(OR(VLOOKUP($A81,Economática!$A$3:$AI$823,25,FALSE)=0,VLOOKUP($A81,Economática!$A$3:$AI$823,25,FALSE)=\"-\"),1/0,VLOOKUP($A81,Economática!$A$3:$AI$823,25,FALSE)))","v":{"$error":"#DIV/0!"}},{"$f":"IF($A81=\"\",\"\",IF(ISERROR((F81+VLOOKUP($A81,Economática!$A$3:$AI$823,26,FALSE))/Y81),(F81+VLOOKUP($A81,Economática!$A$3:$AI$823,26,FALSE))/Y81,(F81+VLOOKUP($A81,Economática!$A$3:$AI$823,26,FALSE))/Y81))","v":{"$error":"#DIV/0!"}},{"$f":"IF($A81=\"\",\"\",IF(OR(-VLOOKUP($A81,Economática!$A$3:$AI$823,27,FALSE)=0,-VLOOKUP($A81,Economática!$A$3:$AI$823,27,FALSE)=\"-\"),1/0,-VLOOKUP($A81,Economática!$A$3:$AI$823,27,FALSE)))","v":{"$error":"#VALUE!"}},{"$error":"#VALUE!"},{"$f":"IF($A81=\"\",\"\",IF(OR(VLOOKUP($A81,Economática!$A$3:$AI$823,28,FALSE)=0,VLOOKUP($A81,Economática!$A$3:$AI$823,28,FALSE)=\"-\"),1/0,VLOOKUP($A81,Economática!$A$3:$AI$823,28,FALSE)))","v":-5.5},{"$f":"IF($A81=\"\",\"\",IF(OR(VLOOKUP($A81,Economática!$A$3:$AI$823,29,FALSE)=0,VLOOKUP($A81,Economática!$A$3:$AI$823,29,FALSE)=\"-\"),1/0,VLOOKUP($A81,Economática!$A$3:$AI$823,29,FALSE)))","v":-23.9},{"$f":"IF($A81=\"\",\"\",IF(OR(VLOOKUP($A81,Economática!$A$3:$AI$823,30,FALSE)/E81=0,VLOOKUP($A81,Economática!$A$3:$AI$823,30,FALSE)/E81=\"-\",VLOOKUP($A81,Economática!$A$3:$AI$823,30,FALSE)/E81<33.33%,VLOOKUP($A81,Economática!$A$3:$AI$823,30,FALSE)/E81>100%),1/0,VLOOKUP($A81,Economática!$A$3:$AI$823,30,FALSE)/E81))","v":0.99995622455552291},"WIZS3",{"$f":"IF($A81=\"\",\"\",IF(OR(VLOOKUP($A81,Economática!$A$3:$AI$823,25,FALSE)=0,VLOOKUP($A81,Economática!$A$3:$AI$823,25,FALSE)=\"-\"),1/0,VLOOKUP($A81,Economática!$A$3:$AI$823,25,FALSE)))","v":{"$error":"#DIV/0!"}},{"$f":"CONCATENATE(Economática!B83,\" \",Economática!C83)","v":"Wiz S.A ON"}]
[{"$f":"IF(Economática!AG84=\"\",\"\",Economática!AG84)","v":"TRPN3"},{"$f":"IF($A82=\"\",\"\",VLOOKUP(VLOOKUP($A82,Economática!$A$3:$AI$823,6,FALSE),Correção!$B$16:$C$36,2,FALSE))","v":"Finanças e Seguros"},{"$f":"IF(Economática!B84=\"\",\"\",Economática!B84)","v":"Tarpon Inv"},{"$f":"IF($A82=\"\",\"\",IF(OR(VLOOKUP($A82,Economática!$A$3:$AI$823,8,FALSE)=0,VLOOKUP($A82,Economática!$A$3:$AI$823,8,FALSE)=\"-\"),1/0,VLOOKUP($A82,Economática!$A$3:$AI$823,8,FALSE)))","v":1.0900000000000001},{"$f":"IF(A82=\"\",\"\",IF(ISERROR(VLOOKUP(A82,Correção!$B$2:$G$13,9,FALSE)),VLOOKUP($A82,Economática!$A$3:$AI$823,9,FALSE),VLOOKUP(A82,Correção!$B$2:$G$13,9,FALSE)))","v":45.143000000000001},{"$f":"IF($A82=\"\",\"\",Economática!G84)","v":49.21},{"$f":"IF($A82=\"\",\"\",IF(OR(VLOOKUP($A82,Economática!$A$3:$AI$823,10,FALSE)=0,VLOOKUP($A82,Economática!$A$3:$AI$823,10,FALSE)=\"-\"),1/0,VLOOKUP($A82,Economática!$A$3:$AI$823,10,FALSE)))","v":58.62},{"$f":"IF($A82=\"\",\"\",IF(OR(VLOOKUP($A82,Economática!$A$3:$AI$823,11,FALSE)=0,VLOOKUP($A82,Economática!$A$3:$AI$823,11,FALSE)=\"-\"),1/0,VLOOKUP($A82,Economática!$A$3:$AI$823,11,FALSE)))","v":47.09},{"$f":"IF($A82=\"\",\"\",IF(OR(VLOOKUP($A82,Economática!$A$3:$AI$823,12,FALSE)=0,VLOOKUP($A82,Economática!$A$3:$AI$823,12,FALSE)=\"-\"),1/0,VLOOKUP($A82,Economática!$A$3:$AI$823,12,FALSE)))","v":126.51},{"$f":"IF($A82=\"\",\"\",IF(OR(VLOOKUP($A82,Economática!$A$3:$AI$823,13,FALSE)=0,VLOOKUP($A82,Economática!$A$3:$AI$823,13,FALSE)=\"-\"),1/0,VLOOKUP($A82,Economática!$A$3:$AI$823,13,FALSE)))","v":9.43},{"$f":"IF($A82=\"\",\"\",IF(OR(VLOOKUP($A82,Economática!$A$3:$AI$823,14,FALSE)=0,VLOOKUP($A82,Economática!$A$3:$AI$823,14,FALSE)=\"-\"),1/0,VLOOKUP($A82,Economática!$A$3:$AI$823,14,FALSE)))","v":-3.55},{"$f":"IF($A82=\"\",\"\",IF(OR(VLOOKUP($A82,Economática!$A$3:$AI$823,15,FALSE)=0,VLOOKUP($A82,Economática!$A$3:$AI$823,15,FALSE)=\"-\"),1/0,VLOOKUP($A82,Economática!$A$3:$AI$823,15,FALSE)))","v":0.31},{"$f":"IF($A82=\"\",\"\",IF(OR(VLOOKUP($A82,Economática!$A$3:$AI$823,16,FALSE)=0,VLOOKUP($A82,Economática!$A$3:$AI$823,16,FALSE)=\"-\"),1/0,VLOOKUP($A82,Economática!$A$3:$AI$823,16,FALSE)))","v":1.75},{"$f":"IF($A82=\"\",\"\",IF(OR(VLOOKUP($A82,Economática!$A$3:$AI$823,17,FALSE)=0,VLOOKUP($A82,Economática!$A$3:$AI$823,17,FALSE)=\"-\"),1/0,VLOOKUP($A82,Economática!$A$3:$AI$823,17,FALSE)))","v":56.18},{"$f":"IF($A82=\"\",\"\",IF(OR(VLOOKUP($A82,Economática!$A$3:$AI$823,18,FALSE)=0,VLOOKUP($A82,Economática!$A$3:$AI$823,18,FALSE)=\"-\"),1/0,VLOOKUP($A82,Economática!$A$3:$AI$823,18,FALSE)))","v":9.43},{"$f":"IF($A82=\"\",\"\",IF(OR(VLOOKUP($A82,Economática!$A$3:$AI$823,19,FALSE)=0,VLOOKUP($A82,Economática!$A$3:$AI$823,19,FALSE)=\"-\"),1/0,VLOOKUP($A82,Economática!$A$3:$AI$823,19,FALSE)))","v":56.18},{"$f":"IF($A82=\"\",\"\",VLOOKUP($A82,Economática!$A$3:$AI$823,20,FALSE)/E82)","v":1.2444897326274285},1.2985401944930552,0.83940412828386235,0.87586098255606981,{"$f":"IF($A82=\"\",\"\",IF(OR(VLOOKUP($A82,Economática!$A$3:$AI$823,21,FALSE)/100=0,VLOOKUP($A82,Economática!$A$3:$AI$823,21,FALSE)/100=\"-\"),1/0,VLOOKUP($A82,Economática!$A$3:$AI$823,21,FALSE)/100))","v":1.06446},{"$f":"IF($A82=\"\",\"\",IF(OR(VLOOKUP($A82,Economática!$A$3:$AI$823,22,FALSE)/100=0,VLOOKUP($A82,Economática!$A$3:$AI$823,22,FALSE)/100=\"-\"),1/0,VLOOKUP($A82,Economática!$A$3:$AI$823,22,FALSE)/100))","v":-1.72323},{"$f":"IF($A82=\"\",\"\",IF(OR(VLOOKUP($A82,Economática!$A$3:$AI$823,23,FALSE)=0,VLOOKUP($A82,Economática!$A$3:$AI$823,23,FALSE)=\"-\"),1/0,VLOOKUP($A82,Economática!$A$3:$AI$823,23,FALSE)))","v":14.4},{"$f":"IF($A82=\"\",\"\",IF(OR(VLOOKUP($A82,Economática!$A$3:$AI$823,24,FALSE)=0,VLOOKUP($A82,Economática!$A$3:$AI$823,24,FALSE)=\"-\"),1/0,VLOOKUP($A82,Economática!$A$3:$AI$823,24,FALSE)))","v":81.900000000000006},{"$f":"IF($A82=\"\",\"\",IF(OR(VLOOKUP($A82,Economática!$A$3:$AI$823,25,FALSE)=0,VLOOKUP($A82,Economática!$A$3:$AI$823,25,FALSE)=\"-\"),1/0,VLOOKUP($A82,Economática!$A$3:$AI$823,25,FALSE)))","v":81.900000000000006},{"$f":"IF($A82=\"\",\"\",IF(ISERROR((F82+VLOOKUP($A82,Economática!$A$3:$AI$823,26,FALSE))/Y82),(F82+VLOOKUP($A82,Economática!$A$3:$AI$823,26,FALSE))/Y82,(F82+VLOOKUP($A82,Economática!$A$3:$AI$823,26,FALSE))/Y82))","v":-0.63252747252747243},{"$f":"IF($A82=\"\",\"\",IF(OR(-VLOOKUP($A82,Economática!$A$3:$AI$823,27,FALSE)=0,-VLOOKUP($A82,Economática!$A$3:$AI$823,27,FALSE)=\"-\"),1/0,-VLOOKUP($A82,Economática!$A$3:$AI$823,27,FALSE)))","v":34.33},0.69762243446453964,{"$f":"IF($A82=\"\",\"\",IF(OR(VLOOKUP($A82,Economática!$A$3:$AI$823,28,FALSE)=0,VLOOKUP($A82,Economática!$A$3:$AI$823,28,FALSE)=\"-\"),1/0,VLOOKUP($A82,Economática!$A$3:$AI$823,28,FALSE)))","v":-2.7},{"$f":"IF($A82=\"\",\"\",IF(OR(VLOOKUP($A82,Economática!$A$3:$AI$823,29,FALSE)=0,VLOOKUP($A82,Economática!$A$3:$AI$823,29,FALSE)=\"-\"),1/0,VLOOKUP($A82,Economática!$A$3:$AI$823,29,FALSE)))","v":-24.2},{"$f":"IF($A82=\"\",\"\",IF(OR(VLOOKUP($A82,Economática!$A$3:$AI$823,30,FALSE)/E82=0,VLOOKUP($A82,Economática!$A$3:$AI$823,30,FALSE)/E82=\"-\",VLOOKUP($A82,Economática!$A$3:$AI$823,30,FALSE)/E82<33.33%,VLOOKUP($A82,Economática!$A$3:$AI$823,30,FALSE)/E82>100%),1/0,VLOOKUP($A82,Economática!$A$3:$AI$823,30,FALSE)/E82))","v":{"$error":"#DIV/0!"}},"TRPN3",{"$f":"IF($A82=\"\",\"\",IF(OR(VLOOKUP($A82,Economática!$A$3:$AI$823,25,FALSE)=0,VLOOKUP($A82,Economática!$A$3:$AI$823,25,FALSE)=\"-\"),1/0,VLOOKUP($A82,Economática!$A$3:$AI$823,25,FALSE)))","v":81.900000000000006},{"$f":"CONCATENATE(Economática!B84,\" \",Economática!C84)","v":"Tarpon Inv ON"}]
[{"$f":"IF(Economática!AG85=\"\",\"\",Economática!AG85)","v":"BBSE3"},{"$f":"IF($A83=\"\",\"\",VLOOKUP(VLOOKUP($A83,Economática!$A$3:$AI$823,6,FALSE),Correção!$B$16:$C$36,2,FALSE))","v":"Finanças e Seguros"},{"$f":"IF(Economática!B85=\"\",\"\",Economática!B85)","v":"BBSeguridade"},{"$f":"IF($A83=\"\",\"\",IF(OR(VLOOKUP($A83,Economática!$A$3:$AI$823,8,FALSE)=0,VLOOKUP($A83,Economática!$A$3:$AI$823,8,FALSE)=\"-\"),1/0,VLOOKUP($A83,Economática!$A$3:$AI$823,8,FALSE)))","v":26.52},{"$f":"IF(A83=\"\",\"\",IF(ISERROR(VLOOKUP(A83,Correção!$B$2:$G$13,9,FALSE)),VLOOKUP($A83,Economática!$A$3:$AI$823,9,FALSE),VLOOKUP(A83,Correção!$B$2:$G$13,9,FALSE)))","v":1996.597},{"$f":"IF($A83=\"\",\"\",Economática!G85)","v":52949.75},{"$f":"IF($A83=\"\",\"\",IF(OR(VLOOKUP($A83,Economática!$A$3:$AI$823,10,FALSE)=0,VLOOKUP($A83,Economática!$A$3:$AI$823,10,FALSE)=\"-\"),1/0,VLOOKUP($A83,Economática!$A$3:$AI$823,10,FALSE)))","v":6830.39},{"$f":"IF($A83=\"\",\"\",IF(OR(VLOOKUP($A83,Economática!$A$3:$AI$823,11,FALSE)=0,VLOOKUP($A83,Economática!$A$3:$AI$823,11,FALSE)=\"-\"),1/0,VLOOKUP($A83,Economática!$A$3:$AI$823,11,FALSE)))","v":{"$error":"#DIV/0!"}},{"$f":"IF($A83=\"\",\"\",IF(OR(VLOOKUP($A83,Economática!$A$3:$AI$823,12,FALSE)=0,VLOOKUP($A83,Economática!$A$3:$AI$823,12,FALSE)=\"-\"),1/0,VLOOKUP($A83,Economática!$A$3:$AI$823,12,FALSE)))","v":{"$error":"#DIV/0!"}},{"$f":"IF($A83=\"\",\"\",IF(OR(VLOOKUP($A83,Economática!$A$3:$AI$823,13,FALSE)=0,VLOOKUP($A83,Economática!$A$3:$AI$823,13,FALSE)=\"-\"),1/0,VLOOKUP($A83,Economática!$A$3:$AI$823,13,FALSE)))","v":4049.25},{"$f":"IF($A83=\"\",\"\",IF(OR(VLOOKUP($A83,Economática!$A$3:$AI$823,14,FALSE)=0,VLOOKUP($A83,Economática!$A$3:$AI$823,14,FALSE)=\"-\"),1/0,VLOOKUP($A83,Economática!$A$3:$AI$823,14,FALSE)))","v":886.5},{"$f":"IF($A83=\"\",\"\",IF(OR(VLOOKUP($A83,Economática!$A$3:$AI$823,15,FALSE)=0,VLOOKUP($A83,Economática!$A$3:$AI$823,15,FALSE)=\"-\"),1/0,VLOOKUP($A83,Economática!$A$3:$AI$823,15,FALSE)))","v":1948.89},{"$f":"IF($A83=\"\",\"\",IF(OR(VLOOKUP($A83,Economática!$A$3:$AI$823,16,FALSE)=0,VLOOKUP($A83,Economática!$A$3:$AI$823,16,FALSE)=\"-\"),1/0,VLOOKUP($A83,Economática!$A$3:$AI$823,16,FALSE)))","v":2822.67},{"$f":"IF($A83=\"\",\"\",IF(OR(VLOOKUP($A83,Economática!$A$3:$AI$823,17,FALSE)=0,VLOOKUP($A83,Economática!$A$3:$AI$823,17,FALSE)=\"-\"),1/0,VLOOKUP($A83,Economática!$A$3:$AI$823,17,FALSE)))","v":3539.55},{"$f":"IF($A83=\"\",\"\",IF(OR(VLOOKUP($A83,Economática!$A$3:$AI$823,18,FALSE)=0,VLOOKUP($A83,Economática!$A$3:$AI$823,18,FALSE)=\"-\"),1/0,VLOOKUP($A83,Economática!$A$3:$AI$823,18,FALSE)))","v":4049.25},{"$f":"IF($A83=\"\",\"\",IF(OR(VLOOKUP($A83,Economática!$A$3:$AI$823,19,FALSE)=0,VLOOKUP($A83,Economática!$A$3:$AI$823,19,FALSE)=\"-\"),1/0,VLOOKUP($A83,Economática!$A$3:$AI$823,19,FALSE)))","v":3539.55},{"$f":"IF($A83=\"\",\"\",VLOOKUP($A83,Economática!$A$3:$AI$823,20,FALSE)/E83)","v":1.7727914045748843},3.4210158584832095,7.7520833275991547,14.959458812560918,{"$f":"IF($A83=\"\",\"\",IF(OR(VLOOKUP($A83,Economática!$A$3:$AI$823,21,FALSE)/100=0,VLOOKUP($A83,Economática!$A$3:$AI$823,21,FALSE)/100=\"-\"),1/0,VLOOKUP($A83,Economática!$A$3:$AI$823,21,FALSE)/100))","v":0.39777099999999999},{"$f":"IF($A83=\"\",\"\",IF(OR(VLOOKUP($A83,Economática!$A$3:$AI$823,22,FALSE)/100=0,VLOOKUP($A83,Economática!$A$3:$AI$823,22,FALSE)/100=\"-\"),1/0,VLOOKUP($A83,Economática!$A$3:$AI$823,22,FALSE)/100))","v":{"$error":"#VALUE!"}},{"$f":"IF($A83=\"\",\"\",IF(OR(VLOOKUP($A83,Economática!$A$3:$AI$823,23,FALSE)=0,VLOOKUP($A83,Economática!$A$3:$AI$823,23,FALSE)=\"-\"),1/0,VLOOKUP($A83,Economática!$A$3:$AI$823,23,FALSE)))","v":{"$error":"#DIV/0!"}},{"$f":"IF($A83=\"\",\"\",IF(OR(VLOOKUP($A83,Economática!$A$3:$AI$823,24,FALSE)=0,VLOOKUP($A83,Economática!$A$3:$AI$823,24,FALSE)=\"-\"),1/0,VLOOKUP($A83,Economática!$A$3:$AI$823,24,FALSE)))","v":{"$error":"#DIV/0!"}},{"$f":"IF($A83=\"\",\"\",IF(OR(VLOOKUP($A83,Economática!$A$3:$AI$823,25,FALSE)=0,VLOOKUP($A83,Economática!$A$3:$AI$823,25,FALSE)=\"-\"),1/0,VLOOKUP($A83,Economática!$A$3:$AI$823,25,FALSE)))","v":{"$error":"#DIV/0!"}},{"$f":"IF($A83=\"\",\"\",IF(ISERROR((F83+VLOOKUP($A83,Economática!$A$3:$AI$823,26,FALSE))/Y83),(F83+VLOOKUP($A83,Economática!$A$3:$AI$823,26,FALSE))/Y83,(F83+VLOOKUP($A83,Economática!$A$3:$AI$823,26,FALSE))/Y83))","v":{"$error":"#VALUE!"}},{"$f":"IF($A83=\"\",\"\",IF(OR(-VLOOKUP($A83,Economática!$A$3:$AI$823,27,FALSE)=0,-VLOOKUP($A83,Economática!$A$3:$AI$823,27,FALSE)=\"-\"),1/0,-VLOOKUP($A83,Economática!$A$3:$AI$823,27,FALSE)))","v":3485.56},6.582769512603931E-2,{"$f":"IF($A83=\"\",\"\",IF(OR(VLOOKUP($A83,Economática!$A$3:$AI$823,28,FALSE)=0,VLOOKUP($A83,Economática!$A$3:$AI$823,28,FALSE)=\"-\"),1/0,VLOOKUP($A83,Economática!$A$3:$AI$823,28,FALSE)))","v":-2.9},{"$f":"IF($A83=\"\",\"\",IF(OR(VLOOKUP($A83,Economática!$A$3:$AI$823,29,FALSE)=0,VLOOKUP($A83,Economática!$A$3:$AI$823,29,FALSE)=\"-\"),1/0,VLOOKUP($A83,Economática!$A$3:$AI$823,29,FALSE)))","v":6.8},{"$f":"IF($A83=\"\",\"\",IF(OR(VLOOKUP($A83,Economática!$A$3:$AI$823,30,FALSE)/E83=0,VLOOKUP($A83,Economática!$A$3:$AI$823,30,FALSE)/E83=\"-\",VLOOKUP($A83,Economática!$A$3:$AI$823,30,FALSE)/E83<33.33%,VLOOKUP($A83,Economática!$A$3:$AI$823,30,FALSE)/E83>100%),1/0,VLOOKUP($A83,Economática!$A$3:$AI$823,30,FALSE)/E83))","v":{"$error":"#DIV/0!"}},"BBSE3",{"$f":"IF($A83=\"\",\"\",IF(OR(VLOOKUP($A83,Economática!$A$3:$AI$823,25,FALSE)=0,VLOOKUP($A83,Economática!$A$3:$AI$823,25,FALSE)=\"-\"),1/0,VLOOKUP($A83,Economática!$A$3:$AI$823,25,FALSE)))","v":{"$error":"#DIV/0!"}},{"$f":"CONCATENATE(Economática!B85,\" \",Economática!C85)","v":"BBSeguridade ON"}]
[{"$f":"IF(Economática!AG86=\"\",\"\",Economática!AG86)","v":"IRBR3"},{"$f":"IF($A84=\"\",\"\",VLOOKUP(VLOOKUP($A84,Economática!$A$3:$AI$823,6,FALSE),Correção!$B$16:$C$36,2,FALSE))","v":"Finanças e Seguros"},{"$f":"IF(Economática!B86=\"\",\"\",Economática!B86)","v":"Irbbrasil Re"},{"$f":"IF($A84=\"\",\"\",IF(OR(VLOOKUP($A84,Economática!$A$3:$AI$823,8,FALSE)=0,VLOOKUP($A84,Economática!$A$3:$AI$823,8,FALSE)=\"-\"),1/0,VLOOKUP($A84,Economática!$A$3:$AI$823,8,FALSE)))","v":91.25},{"$f":"IF(A84=\"\",\"\",IF(ISERROR(VLOOKUP(A84,Correção!$B$2:$G$13,9,FALSE)),VLOOKUP($A84,Economática!$A$3:$AI$823,9,FALSE),VLOOKUP(A84,Correção!$B$2:$G$13,9,FALSE)))","v":310.41500000000002},{"$f":"IF($A84=\"\",\"\",Economática!G86)","v":28325.41},{"$f":"IF($A84=\"\",\"\",IF(OR(VLOOKUP($A84,Economática!$A$3:$AI$823,10,FALSE)=0,VLOOKUP($A84,Economática!$A$3:$AI$823,10,FALSE)=\"-\"),1/0,VLOOKUP($A84,Economática!$A$3:$AI$823,10,FALSE)))","v":4000.78},{"$f":"IF($A84=\"\",\"\",IF(OR(VLOOKUP($A84,Economática!$A$3:$AI$823,11,FALSE)=0,VLOOKUP($A84,Economática!$A$3:$AI$823,11,FALSE)=\"-\"),1/0,VLOOKUP($A84,Economática!$A$3:$AI$823,11,FALSE)))","v":{"$error":"#DIV/0!"}},{"$f":"IF($A84=\"\",\"\",IF(OR(VLOOKUP($A84,Economática!$A$3:$AI$823,12,FALSE)=0,VLOOKUP($A84,Economática!$A$3:$AI$823,12,FALSE)=\"-\"),1/0,VLOOKUP($A84,Economática!$A$3:$AI$823,12,FALSE)))","v":{"$error":"#DIV/0!"}},{"$f":"IF($A84=\"\",\"\",IF(OR(VLOOKUP($A84,Economática!$A$3:$AI$823,13,FALSE)=0,VLOOKUP($A84,Economática!$A$3:$AI$823,13,FALSE)=\"-\"),1/0,VLOOKUP($A84,Economática!$A$3:$AI$823,13,FALSE)))","v":925.05},{"$f":"IF($A84=\"\",\"\",IF(OR(VLOOKUP($A84,Economática!$A$3:$AI$823,14,FALSE)=0,VLOOKUP($A84,Economática!$A$3:$AI$823,14,FALSE)=\"-\"),1/0,VLOOKUP($A84,Economática!$A$3:$AI$823,14,FALSE)))","v":254.01},{"$f":"IF($A84=\"\",\"\",IF(OR(VLOOKUP($A84,Economática!$A$3:$AI$823,15,FALSE)=0,VLOOKUP($A84,Economática!$A$3:$AI$823,15,FALSE)=\"-\"),1/0,VLOOKUP($A84,Economática!$A$3:$AI$823,15,FALSE)))","v":541.34},{"$f":"IF($A84=\"\",\"\",IF(OR(VLOOKUP($A84,Economática!$A$3:$AI$823,16,FALSE)=0,VLOOKUP($A84,Economática!$A$3:$AI$823,16,FALSE)=\"-\"),1/0,VLOOKUP($A84,Economática!$A$3:$AI$823,16,FALSE)))","v":845.86},{"$f":"IF($A84=\"\",\"\",IF(OR(VLOOKUP($A84,Economática!$A$3:$AI$823,17,FALSE)=0,VLOOKUP($A84,Economática!$A$3:$AI$823,17,FALSE)=\"-\"),1/0,VLOOKUP($A84,Economática!$A$3:$AI$823,17,FALSE)))","v":1218.8},{"$f":"IF($A84=\"\",\"\",IF(OR(VLOOKUP($A84,Economática!$A$3:$AI$823,18,FALSE)=0,VLOOKUP($A84,Economática!$A$3:$AI$823,18,FALSE)=\"-\"),1/0,VLOOKUP($A84,Economática!$A$3:$AI$823,18,FALSE)))","v":925.05},{"$f":"IF($A84=\"\",\"\",IF(OR(VLOOKUP($A84,Economática!$A$3:$AI$823,19,FALSE)=0,VLOOKUP($A84,Economática!$A$3:$AI$823,19,FALSE)=\"-\"),1/0,VLOOKUP($A84,Economática!$A$3:$AI$823,19,FALSE)))","v":1218.8},{"$f":"IF($A84=\"\",\"\",VLOOKUP($A84,Economática!$A$3:$AI$823,20,FALSE)/E84)","v":3.9263566515793369},12.888487991881835,7.0799615949889771,23.240374753856255,{"$f":"IF($A84=\"\",\"\",IF(OR(VLOOKUP($A84,Economática!$A$3:$AI$823,21,FALSE)/100=0,VLOOKUP($A84,Economática!$A$3:$AI$823,21,FALSE)/100=\"-\"),1/0,VLOOKUP($A84,Economática!$A$3:$AI$823,21,FALSE)/100))","v":0.340333},{"$f":"IF($A84=\"\",\"\",IF(OR(VLOOKUP($A84,Economática!$A$3:$AI$823,22,FALSE)/100=0,VLOOKUP($A84,Economática!$A$3:$AI$823,22,FALSE)/100=\"-\"),1/0,VLOOKUP($A84,Economática!$A$3:$AI$823,22,FALSE)/100))","v":{"$error":"#VALUE!"}},{"$f":"IF($A84=\"\",\"\",IF(OR(VLOOKUP($A84,Economática!$A$3:$AI$823,23,FALSE)=0,VLOOKUP($A84,Economática!$A$3:$AI$823,23,FALSE)=\"-\"),1/0,VLOOKUP($A84,Economática!$A$3:$AI$823,23,FALSE)))","v":{"$error":"#DIV/0!"}},{"$f":"IF($A84=\"\",\"\",IF(OR(VLOOKUP($A84,Economática!$A$3:$AI$823,24,FALSE)=0,VLOOKUP($A84,Economática!$A$3:$AI$823,24,FALSE)=\"-\"),1/0,VLOOKUP($A84,Economática!$A$3:$AI$823,24,FALSE)))","v":{"$error":"#DIV/0!"}},{"$f":"IF($A84=\"\",\"\",IF(OR(VLOOKUP($A84,Economática!$A$3:$AI$823,25,FALSE)=0,VLOOKUP($A84,Economática!$A$3:$AI$823,25,FALSE)=\"-\"),1/0,VLOOKUP($A84,Economática!$A$3:$AI$823,25,FALSE)))","v":{"$error":"#DIV/0!"}},{"$f":"IF($A84=\"\",\"\",IF(ISERROR((F84+VLOOKUP($A84,Economática!$A$3:$AI$823,26,FALSE))/Y84),(F84+VLOOKUP($A84,Economática!$A$3:$AI$823,26,FALSE))/Y84,(F84+VLOOKUP($A84,Economática!$A$3:$AI$823,26,FALSE))/Y84))","v":{"$error":"#VALUE!"}},{"$f":"IF($A84=\"\",\"\",IF(OR(-VLOOKUP($A84,Economática!$A$3:$AI$823,27,FALSE)=0,-VLOOKUP($A84,Economática!$A$3:$AI$823,27,FALSE)=\"-\"),1/0,-VLOOKUP($A84,Economática!$A$3:$AI$823,27,FALSE)))","v":684.26},2.4157108405491748E-2,{"$f":"IF($A84=\"\",\"\",IF(OR(VLOOKUP($A84,Economática!$A$3:$AI$823,28,FALSE)=0,VLOOKUP($A84,Economática!$A$3:$AI$823,28,FALSE)=\"-\"),1/0,VLOOKUP($A84,Economática!$A$3:$AI$823,28,FALSE)))","v":5.2},{"$f":"IF($A84=\"\",\"\",IF(OR(VLOOKUP($A84,Economática!$A$3:$AI$823,29,FALSE)=0,VLOOKUP($A84,Economática!$A$3:$AI$823,29,FALSE)=\"-\"),1/0,VLOOKUP($A84,Economática!$A$3:$AI$823,29,FALSE)))","v":189},{"$f":"IF($A84=\"\",\"\",IF(OR(VLOOKUP($A84,Economática!$A$3:$AI$823,30,FALSE)/E84=0,VLOOKUP($A84,Economática!$A$3:$AI$823,30,FALSE)/E84=\"-\",VLOOKUP($A84,Economática!$A$3:$AI$823,30,FALSE)/E84<33.33%,VLOOKUP($A84,Economática!$A$3:$AI$823,30,FALSE)/E84>100%),1/0,VLOOKUP($A84,Economática!$A$3:$AI$823,30,FALSE)/E84))","v":{"$error":"#DIV/0!"}},"IRBR3",{"$f":"IF($A84=\"\",\"\",IF(OR(VLOOKUP($A84,Economática!$A$3:$AI$823,25,FALSE)=0,VLOOKUP($A84,Economática!$A$3:$AI$823,25,FALSE)=\"-\"),1/0,VLOOKUP($A84,Economática!$A$3:$AI$823,25,FALSE)))","v":{"$error":"#DIV/0!"}},{"$f":"CONCATENATE(Economática!B86,\" \",Economática!C86)","v":"Irbbrasil Re ON"}]
[{"$f":"IF(Economática!AG87=\"\",\"\",Economática!AG87)","v":"SANB11"},{"$f":"IF($A85=\"\",\"\",VLOOKUP(VLOOKUP($A85,Economática!$A$3:$AI$823,6,FALSE),Correção!$B$16:$C$36,2,FALSE))","v":"Finanças e Seguros"},{"$f":"IF(Economática!B87=\"\",\"\",Economática!B87)","v":"Santander BR"},{"$f":"IF($A85=\"\",\"\",IF(OR(VLOOKUP($A85,Economática!$A$3:$AI$823,8,FALSE)=0,VLOOKUP($A85,Economática!$A$3:$AI$823,8,FALSE)=\"-\"),1/0,VLOOKUP($A85,Economática!$A$3:$AI$823,8,FALSE)))","v":43.97},{"$f":"IF(A85=\"\",\"\",IF(ISERROR(VLOOKUP(A85,Correção!$B$2:$G$13,9,FALSE)),VLOOKUP($A85,Economática!$A$3:$AI$823,9,FALSE),VLOOKUP(A85,Correção!$B$2:$G$13,9,FALSE)))","v":7471.8969999999999},{"$f":"IF($A85=\"\",\"\",Economática!G87)","v":163053.46},{"$f":"IF($A85=\"\",\"\",IF(OR(VLOOKUP($A85,Economática!$A$3:$AI$823,10,FALSE)=0,VLOOKUP($A85,Economática!$A$3:$AI$823,10,FALSE)=\"-\"),1/0,VLOOKUP($A85,Economática!$A$3:$AI$823,10,FALSE)))","v":65233.74},{"$f":"IF($A85=\"\",\"\",IF(OR(VLOOKUP($A85,Economática!$A$3:$AI$823,11,FALSE)=0,VLOOKUP($A85,Economática!$A$3:$AI$823,11,FALSE)=\"-\"),1/0,VLOOKUP($A85,Economática!$A$3:$AI$823,11,FALSE)))","v":76310.78},{"$f":"IF($A85=\"\",\"\",IF(OR(VLOOKUP($A85,Economática!$A$3:$AI$823,12,FALSE)=0,VLOOKUP($A85,Economática!$A$3:$AI$823,12,FALSE)=\"-\"),1/0,VLOOKUP($A85,Economática!$A$3:$AI$823,12,FALSE)))","v":77380.98},{"$f":"IF($A85=\"\",\"\",IF(OR(VLOOKUP($A85,Economática!$A$3:$AI$823,13,FALSE)=0,VLOOKUP($A85,Economática!$A$3:$AI$823,13,FALSE)=\"-\"),1/0,VLOOKUP($A85,Economática!$A$3:$AI$823,13,FALSE)))","v":7996.58},{"$f":"IF($A85=\"\",\"\",IF(OR(VLOOKUP($A85,Economática!$A$3:$AI$823,14,FALSE)=0,VLOOKUP($A85,Economática!$A$3:$AI$823,14,FALSE)=\"-\"),1/0,VLOOKUP($A85,Economática!$A$3:$AI$823,14,FALSE)))","v":2819.73},{"$f":"IF($A85=\"\",\"\",IF(OR(VLOOKUP($A85,Economática!$A$3:$AI$823,15,FALSE)=0,VLOOKUP($A85,Economática!$A$3:$AI$823,15,FALSE)=\"-\"),1/0,VLOOKUP($A85,Economática!$A$3:$AI$823,15,FALSE)))","v":5791.95},{"$f":"IF($A85=\"\",\"\",IF(OR(VLOOKUP($A85,Economática!$A$3:$AI$823,16,FALSE)=0,VLOOKUP($A85,Economática!$A$3:$AI$823,16,FALSE)=\"-\"),1/0,VLOOKUP($A85,Economática!$A$3:$AI$823,16,FALSE)))","v":8830.6299999999992},{"$f":"IF($A85=\"\",\"\",IF(OR(VLOOKUP($A85,Economática!$A$3:$AI$823,17,FALSE)=0,VLOOKUP($A85,Economática!$A$3:$AI$823,17,FALSE)=\"-\"),1/0,VLOOKUP($A85,Economática!$A$3:$AI$823,17,FALSE)))","v":12166.15},{"$f":"IF($A85=\"\",\"\",IF(OR(VLOOKUP($A85,Economática!$A$3:$AI$823,18,FALSE)=0,VLOOKUP($A85,Economática!$A$3:$AI$823,18,FALSE)=\"-\"),1/0,VLOOKUP($A85,Economática!$A$3:$AI$823,18,FALSE)))","v":7996.58},{"$f":"IF($A85=\"\",\"\",IF(OR(VLOOKUP($A85,Economática!$A$3:$AI$823,19,FALSE)=0,VLOOKUP($A85,Economática!$A$3:$AI$823,19,FALSE)=\"-\"),1/0,VLOOKUP($A85,Economática!$A$3:$AI$823,19,FALSE)))","v":12166.15},{"$f":"IF($A85=\"\",\"\",VLOOKUP($A85,Economática!$A$3:$AI$823,20,FALSE)/E85)","v":1.6282545115383684},8.7305459376648251,5.0363402602702223,27.004377809742603,{"$f":"IF($A85=\"\",\"\",IF(OR(VLOOKUP($A85,Economática!$A$3:$AI$823,21,FALSE)/100=0,VLOOKUP($A85,Economática!$A$3:$AI$823,21,FALSE)/100=\"-\"),1/0,VLOOKUP($A85,Economática!$A$3:$AI$823,21,FALSE)/100))","v":0.198157},{"$f":"IF($A85=\"\",\"\",IF(OR(VLOOKUP($A85,Economática!$A$3:$AI$823,22,FALSE)/100=0,VLOOKUP($A85,Economática!$A$3:$AI$823,22,FALSE)/100=\"-\"),1/0,VLOOKUP($A85,Economática!$A$3:$AI$823,22,FALSE)/100))","v":{"$error":"#VALUE!"}},{"$f":"IF($A85=\"\",\"\",IF(OR(VLOOKUP($A85,Economática!$A$3:$AI$823,23,FALSE)=0,VLOOKUP($A85,Economática!$A$3:$AI$823,23,FALSE)=\"-\"),1/0,VLOOKUP($A85,Economática!$A$3:$AI$823,23,FALSE)))","v":{"$error":"#DIV/0!"}},{"$f":"IF($A85=\"\",\"\",IF(OR(VLOOKUP($A85,Economática!$A$3:$AI$823,24,FALSE)=0,VLOOKUP($A85,Economática!$A$3:$AI$823,24,FALSE)=\"-\"),1/0,VLOOKUP($A85,Economática!$A$3:$AI$823,24,FALSE)))","v":{"$error":"#DIV/0!"}},{"$f":"IF($A85=\"\",\"\",IF(OR(VLOOKUP($A85,Economática!$A$3:$AI$823,25,FALSE)=0,VLOOKUP($A85,Economática!$A$3:$AI$823,25,FALSE)=\"-\"),1/0,VLOOKUP($A85,Economática!$A$3:$AI$823,25,FALSE)))","v":{"$error":"#DIV/0!"}},{"$f":"IF($A85=\"\",\"\",IF(ISERROR((F85+VLOOKUP($A85,Economática!$A$3:$AI$823,26,FALSE))/Y85),(F85+VLOOKUP($A85,Economática!$A$3:$AI$823,26,FALSE))/Y85,(F85+VLOOKUP($A85,Economática!$A$3:$AI$823,26,FALSE))/Y85))","v":{"$error":"#VALUE!"}},{"$f":"IF($A85=\"\",\"\",IF(OR(-VLOOKUP($A85,Economática!$A$3:$AI$823,27,FALSE)=0,-VLOOKUP($A85,Economática!$A$3:$AI$823,27,FALSE)=\"-\"),1/0,-VLOOKUP($A85,Economática!$A$3:$AI$823,27,FALSE)))","v":6042.34},3.7057416628877425E-2,{"$f":"IF($A85=\"\",\"\",IF(OR(VLOOKUP($A85,Economática!$A$3:$AI$823,28,FALSE)=0,VLOOKUP($A85,Economática!$A$3:$AI$823,28,FALSE)=\"-\"),1/0,VLOOKUP($A85,Economática!$A$3:$AI$823,28,FALSE)))","v":-2.2000000000000002},{"$f":"IF($A85=\"\",\"\",IF(OR(VLOOKUP($A85,Economática!$A$3:$AI$823,29,FALSE)=0,VLOOKUP($A85,Economática!$A$3:$AI$823,29,FALSE)=\"-\"),1/0,VLOOKUP($A85,Economática!$A$3:$AI$823,29,FALSE)))","v":49.4},{"$f":"IF($A85=\"\",\"\",IF(OR(VLOOKUP($A85,Economática!$A$3:$AI$823,30,FALSE)/E85=0,VLOOKUP($A85,Economática!$A$3:$AI$823,30,FALSE)/E85=\"-\",VLOOKUP($A85,Economática!$A$3:$AI$823,30,FALSE)/E85<33.33%,VLOOKUP($A85,Economática!$A$3:$AI$823,30,FALSE)/E85>100%),1/0,VLOOKUP($A85,Economática!$A$3:$AI$823,30,FALSE)/E85))","v":0.51107503221738737},"SANB11",{"$f":"IF($A85=\"\",\"\",IF(OR(VLOOKUP($A85,Economática!$A$3:$AI$823,25,FALSE)=0,VLOOKUP($A85,Economática!$A$3:$AI$823,25,FALSE)=\"-\"),1/0,VLOOKUP($A85,Economática!$A$3:$AI$823,25,FALSE)))","v":{"$error":"#DIV/0!"}},{"$f":"CONCATENATE(Economática!B87,\" \",Economática!C87)","v":"Santander BR UNT"}]
[{"$f":"IF(Economática!AG88=\"\",\"\",Economática!AG88)","v":"ITUB4"},{"$f":"IF($A86=\"\",\"\",VLOOKUP(VLOOKUP($A86,Economática!$A$3:$AI$823,6,FALSE),Correção!$B$16:$C$36,2,FALSE))","v":"Finanças e Seguros"},{"$f":"IF(Economática!B88=\"\",\"\",Economática!B88)","v":"ItauUnibanco"},{"$f":"IF($A86=\"\",\"\",IF(OR(VLOOKUP($A86,Economática!$A$3:$AI$823,8,FALSE)=0,VLOOKUP($A86,Economática!$A$3:$AI$823,8,FALSE)=\"-\"),1/0,VLOOKUP($A86,Economática!$A$3:$AI$823,8,FALSE)))","v":34.43},{"$f":"IF(A86=\"\",\"\",IF(ISERROR(VLOOKUP(A86,Correção!$B$2:$G$13,9,FALSE)),VLOOKUP($A86,Economática!$A$3:$AI$823,9,FALSE),VLOOKUP(A86,Correção!$B$2:$G$13,9,FALSE)))","v":9720.5210000000006},{"$f":"IF($A86=\"\",\"\",Economática!G88)","v":311968.57},{"$f":"IF($A86=\"\",\"\",IF(OR(VLOOKUP($A86,Economática!$A$3:$AI$823,10,FALSE)=0,VLOOKUP($A86,Economática!$A$3:$AI$823,10,FALSE)=\"-\"),1/0,VLOOKUP($A86,Economática!$A$3:$AI$823,10,FALSE)))","v":131756.57},{"$f":"IF($A86=\"\",\"\",IF(OR(VLOOKUP($A86,Economática!$A$3:$AI$823,11,FALSE)=0,VLOOKUP($A86,Economática!$A$3:$AI$823,11,FALSE)=\"-\"),1/0,VLOOKUP($A86,Economática!$A$3:$AI$823,11,FALSE)))","v":147494.99},{"$f":"IF($A86=\"\",\"\",IF(OR(VLOOKUP($A86,Economática!$A$3:$AI$823,12,FALSE)=0,VLOOKUP($A86,Economática!$A$3:$AI$823,12,FALSE)=\"-\"),1/0,VLOOKUP($A86,Economática!$A$3:$AI$823,12,FALSE)))","v":141582.10999999999},{"$f":"IF($A86=\"\",\"\",IF(OR(VLOOKUP($A86,Economática!$A$3:$AI$823,13,FALSE)=0,VLOOKUP($A86,Economática!$A$3:$AI$823,13,FALSE)=\"-\"),1/0,VLOOKUP($A86,Economática!$A$3:$AI$823,13,FALSE)))","v":23964.55},{"$f":"IF($A86=\"\",\"\",IF(OR(VLOOKUP($A86,Economática!$A$3:$AI$823,14,FALSE)=0,VLOOKUP($A86,Economática!$A$3:$AI$823,14,FALSE)=\"-\"),1/0,VLOOKUP($A86,Economática!$A$3:$AI$823,14,FALSE)))","v":6280.32},{"$f":"IF($A86=\"\",\"\",IF(OR(VLOOKUP($A86,Economática!$A$3:$AI$823,15,FALSE)=0,VLOOKUP($A86,Economática!$A$3:$AI$823,15,FALSE)=\"-\"),1/0,VLOOKUP($A86,Economática!$A$3:$AI$823,15,FALSE)))","v":12524.41},{"$f":"IF($A86=\"\",\"\",IF(OR(VLOOKUP($A86,Economática!$A$3:$AI$823,16,FALSE)=0,VLOOKUP($A86,Economática!$A$3:$AI$823,16,FALSE)=\"-\"),1/0,VLOOKUP($A86,Economática!$A$3:$AI$823,16,FALSE)))","v":18771.57},{"$f":"IF($A86=\"\",\"\",IF(OR(VLOOKUP($A86,Economática!$A$3:$AI$823,17,FALSE)=0,VLOOKUP($A86,Economática!$A$3:$AI$823,17,FALSE)=\"-\"),1/0,VLOOKUP($A86,Economática!$A$3:$AI$823,17,FALSE)))","v":24977.42},{"$f":"IF($A86=\"\",\"\",IF(OR(VLOOKUP($A86,Economática!$A$3:$AI$823,18,FALSE)=0,VLOOKUP($A86,Economática!$A$3:$AI$823,18,FALSE)=\"-\"),1/0,VLOOKUP($A86,Economática!$A$3:$AI$823,18,FALSE)))","v":23964.55},{"$f":"IF($A86=\"\",\"\",IF(OR(VLOOKUP($A86,Economática!$A$3:$AI$823,19,FALSE)=0,VLOOKUP($A86,Economática!$A$3:$AI$823,19,FALSE)=\"-\"),1/0,VLOOKUP($A86,Economática!$A$3:$AI$823,19,FALSE)))","v":24977.42},{"$f":"IF($A86=\"\",\"\",VLOOKUP($A86,Economática!$A$3:$AI$823,20,FALSE)/E86)","v":2.5695556853382651},13.554476143819864,2.5401202993520551,13.399203681965552,{"$f":"IF($A86=\"\",\"\",IF(OR(VLOOKUP($A86,Economática!$A$3:$AI$823,21,FALSE)/100=0,VLOOKUP($A86,Economática!$A$3:$AI$823,21,FALSE)/100=\"-\"),1/0,VLOOKUP($A86,Economática!$A$3:$AI$823,21,FALSE)/100))","v":0.18209},{"$f":"IF($A86=\"\",\"\",IF(OR(VLOOKUP($A86,Economática!$A$3:$AI$823,22,FALSE)/100=0,VLOOKUP($A86,Economática!$A$3:$AI$823,22,FALSE)/100=\"-\"),1/0,VLOOKUP($A86,Economática!$A$3:$AI$823,22,FALSE)/100))","v":{"$error":"#VALUE!"}},{"$f":"IF($A86=\"\",\"\",IF(OR(VLOOKUP($A86,Economática!$A$3:$AI$823,23,FALSE)=0,VLOOKUP($A86,Economática!$A$3:$AI$823,23,FALSE)=\"-\"),1/0,VLOOKUP($A86,Economática!$A$3:$AI$823,23,FALSE)))","v":{"$error":"#DIV/0!"}},{"$f":"IF($A86=\"\",\"\",IF(OR(VLOOKUP($A86,Economática!$A$3:$AI$823,24,FALSE)=0,VLOOKUP($A86,Economática!$A$3:$AI$823,24,FALSE)=\"-\"),1/0,VLOOKUP($A86,Economática!$A$3:$AI$823,24,FALSE)))","v":{"$error":"#DIV/0!"}},{"$f":"IF($A86=\"\",\"\",IF(OR(VLOOKUP($A86,Economática!$A$3:$AI$823,25,FALSE)=0,VLOOKUP($A86,Economática!$A$3:$AI$823,25,FALSE)=\"-\"),1/0,VLOOKUP($A86,Economática!$A$3:$AI$823,25,FALSE)))","v":{"$error":"#DIV/0!"}},{"$f":"IF($A86=\"\",\"\",IF(ISERROR((F86+VLOOKUP($A86,Economática!$A$3:$AI$823,26,FALSE))/Y86),(F86+VLOOKUP($A86,Economática!$A$3:$AI$823,26,FALSE))/Y86,(F86+VLOOKUP($A86,Economática!$A$3:$AI$823,26,FALSE))/Y86))","v":{"$error":"#VALUE!"}},{"$f":"IF($A86=\"\",\"\",IF(OR(-VLOOKUP($A86,Economática!$A$3:$AI$823,27,FALSE)=0,-VLOOKUP($A86,Economática!$A$3:$AI$823,27,FALSE)=\"-\"),1/0,-VLOOKUP($A86,Economática!$A$3:$AI$823,27,FALSE)))","v":20092.75},6.4406327855399015E-2,{"$f":"IF($A86=\"\",\"\",IF(OR(VLOOKUP($A86,Economática!$A$3:$AI$823,28,FALSE)=0,VLOOKUP($A86,Economática!$A$3:$AI$823,28,FALSE)=\"-\"),1/0,VLOOKUP($A86,Economática!$A$3:$AI$823,28,FALSE)))","v":-2.2000000000000002},{"$f":"IF($A86=\"\",\"\",IF(OR(VLOOKUP($A86,Economática!$A$3:$AI$823,29,FALSE)=0,VLOOKUP($A86,Economática!$A$3:$AI$823,29,FALSE)=\"-\"),1/0,VLOOKUP($A86,Economática!$A$3:$AI$823,29,FALSE)))","v":36.1},{"$f":"IF($A86=\"\",\"\",IF(OR(VLOOKUP($A86,Economática!$A$3:$AI$823,30,FALSE)/E86=0,VLOOKUP($A86,Economática!$A$3:$AI$823,30,FALSE)/E86=\"-\",VLOOKUP($A86,Economática!$A$3:$AI$823,30,FALSE)/E86<33.33%,VLOOKUP($A86,Economática!$A$3:$AI$823,30,FALSE)/E86>100%),1/0,VLOOKUP($A86,Economática!$A$3:$AI$823,30,FALSE)/E86))","v":0.51008582770409117},"ITUB4",{"$f":"IF($A86=\"\",\"\",IF(OR(VLOOKUP($A86,Economática!$A$3:$AI$823,25,FALSE)=0,VLOOKUP($A86,Economática!$A$3:$AI$823,25,FALSE)=\"-\"),1/0,VLOOKUP($A86,Economática!$A$3:$AI$823,25,FALSE)))","v":{"$error":"#DIV/0!"}},{"$f":"CONCATENATE(Economática!B88,\" \",Economática!C88)","v":"ItauUnibanco PN"}]
[{"$f":"IF(Economática!AG89=\"\",\"\",Economática!AG89)","v":"BBDC4"},{"$f":"IF($A87=\"\",\"\",VLOOKUP(VLOOKUP($A87,Economática!$A$3:$AI$823,6,FALSE),Correção!$B$16:$C$36,2,FALSE))","v":"Finanças e Seguros"},{"$f":"IF(Economática!B89=\"\",\"\",Economática!B89)","v":"Bradesco"},{"$f":"IF($A87=\"\",\"\",IF(OR(VLOOKUP($A87,Economática!$A$3:$AI$823,8,FALSE)=0,VLOOKUP($A87,Economática!$A$3:$AI$823,8,FALSE)=\"-\"),1/0,VLOOKUP($A87,Economática!$A$3:$AI$823,8,FALSE)))","v":42.94},{"$f":"IF(A87=\"\",\"\",IF(ISERROR(VLOOKUP(A87,Correção!$B$2:$G$13,9,FALSE)),VLOOKUP($A87,Economática!$A$3:$AI$823,9,FALSE),VLOOKUP(A87,Correção!$B$2:$G$13,9,FALSE)))","v":6693.5810000000001},{"$f":"IF($A87=\"\",\"\",Economática!G89)","v":270348.51},{"$f":"IF($A87=\"\",\"\",IF(OR(VLOOKUP($A87,Economática!$A$3:$AI$823,10,FALSE)=0,VLOOKUP($A87,Economática!$A$3:$AI$823,10,FALSE)=\"-\"),1/0,VLOOKUP($A87,Economática!$A$3:$AI$823,10,FALSE)))","v":121120.87},{"$f":"IF($A87=\"\",\"\",IF(OR(VLOOKUP($A87,Economática!$A$3:$AI$823,11,FALSE)=0,VLOOKUP($A87,Economática!$A$3:$AI$823,11,FALSE)=\"-\"),1/0,VLOOKUP($A87,Economática!$A$3:$AI$823,11,FALSE)))","v":148262.13},{"$f":"IF($A87=\"\",\"\",IF(OR(VLOOKUP($A87,Economática!$A$3:$AI$823,12,FALSE)=0,VLOOKUP($A87,Economática!$A$3:$AI$823,12,FALSE)=\"-\"),1/0,VLOOKUP($A87,Economática!$A$3:$AI$823,12,FALSE)))","v":125611.76},{"$f":"IF($A87=\"\",\"\",IF(OR(VLOOKUP($A87,Economática!$A$3:$AI$823,13,FALSE)=0,VLOOKUP($A87,Economática!$A$3:$AI$823,13,FALSE)=\"-\"),1/0,VLOOKUP($A87,Economática!$A$3:$AI$823,13,FALSE)))","v":14657.76},{"$f":"IF($A87=\"\",\"\",IF(OR(VLOOKUP($A87,Economática!$A$3:$AI$823,14,FALSE)=0,VLOOKUP($A87,Economática!$A$3:$AI$823,14,FALSE)=\"-\"),1/0,VLOOKUP($A87,Economática!$A$3:$AI$823,14,FALSE)))","v":4466.72},{"$f":"IF($A87=\"\",\"\",IF(OR(VLOOKUP($A87,Economática!$A$3:$AI$823,15,FALSE)=0,VLOOKUP($A87,Economática!$A$3:$AI$823,15,FALSE)=\"-\"),1/0,VLOOKUP($A87,Economática!$A$3:$AI$823,15,FALSE)))","v":8994.51},{"$f":"IF($A87=\"\",\"\",IF(OR(VLOOKUP($A87,Economática!$A$3:$AI$823,16,FALSE)=0,VLOOKUP($A87,Economática!$A$3:$AI$823,16,FALSE)=\"-\"),1/0,VLOOKUP($A87,Economática!$A$3:$AI$823,16,FALSE)))","v":14004.19},{"$f":"IF($A87=\"\",\"\",IF(OR(VLOOKUP($A87,Economática!$A$3:$AI$823,17,FALSE)=0,VLOOKUP($A87,Economática!$A$3:$AI$823,17,FALSE)=\"-\"),1/0,VLOOKUP($A87,Economática!$A$3:$AI$823,17,FALSE)))","v":19084.95},{"$f":"IF($A87=\"\",\"\",IF(OR(VLOOKUP($A87,Economática!$A$3:$AI$823,18,FALSE)=0,VLOOKUP($A87,Economática!$A$3:$AI$823,18,FALSE)=\"-\"),1/0,VLOOKUP($A87,Economática!$A$3:$AI$823,18,FALSE)))","v":14657.76},{"$f":"IF($A87=\"\",\"\",IF(OR(VLOOKUP($A87,Economática!$A$3:$AI$823,19,FALSE)=0,VLOOKUP($A87,Economática!$A$3:$AI$823,19,FALSE)=\"-\"),1/0,VLOOKUP($A87,Economática!$A$3:$AI$823,19,FALSE)))","v":19084.95},{"$f":"IF($A87=\"\",\"\",VLOOKUP($A87,Economática!$A$3:$AI$823,20,FALSE)/E87)","v":2.8512316501436228},18.095077956029812,2.3730210007573427,15.060158299602564,{"$f":"IF($A87=\"\",\"\",IF(OR(VLOOKUP($A87,Economática!$A$3:$AI$823,21,FALSE)/100=0,VLOOKUP($A87,Economática!$A$3:$AI$823,21,FALSE)/100=\"-\"),1/0,VLOOKUP($A87,Economática!$A$3:$AI$823,21,FALSE)/100))","v":0.17338899999999999},{"$f":"IF($A87=\"\",\"\",IF(OR(VLOOKUP($A87,Economática!$A$3:$AI$823,22,FALSE)/100=0,VLOOKUP($A87,Economática!$A$3:$AI$823,22,FALSE)/100=\"-\"),1/0,VLOOKUP($A87,Economática!$A$3:$AI$823,22,FALSE)/100))","v":{"$error":"#VALUE!"}},{"$f":"IF($A87=\"\",\"\",IF(OR(VLOOKUP($A87,Economática!$A$3:$AI$823,23,FALSE)=0,VLOOKUP($A87,Economática!$A$3:$AI$823,23,FALSE)=\"-\"),1/0,VLOOKUP($A87,Economática!$A$3:$AI$823,23,FALSE)))","v":{"$error":"#DIV/0!"}},{"$f":"IF($A87=\"\",\"\",IF(OR(VLOOKUP($A87,Economática!$A$3:$AI$823,24,FALSE)=0,VLOOKUP($A87,Economática!$A$3:$AI$823,24,FALSE)=\"-\"),1/0,VLOOKUP($A87,Economática!$A$3:$AI$823,24,FALSE)))","v":{"$error":"#DIV/0!"}},{"$f":"IF($A87=\"\",\"\",IF(OR(VLOOKUP($A87,Economática!$A$3:$AI$823,25,FALSE)=0,VLOOKUP($A87,Economática!$A$3:$AI$823,25,FALSE)=\"-\"),1/0,VLOOKUP($A87,Economática!$A$3:$AI$823,25,FALSE)))","v":{"$error":"#DIV/0!"}},{"$f":"IF($A87=\"\",\"\",IF(ISERROR((F87+VLOOKUP($A87,Economática!$A$3:$AI$823,26,FALSE))/Y87),(F87+VLOOKUP($A87,Economática!$A$3:$AI$823,26,FALSE))/Y87,(F87+VLOOKUP($A87,Economática!$A$3:$AI$823,26,FALSE))/Y87))","v":{"$error":"#VALUE!"}},{"$f":"IF($A87=\"\",\"\",IF(OR(-VLOOKUP($A87,Economática!$A$3:$AI$823,27,FALSE)=0,-VLOOKUP($A87,Economática!$A$3:$AI$823,27,FALSE)=\"-\"),1/0,-VLOOKUP($A87,Economática!$A$3:$AI$823,27,FALSE)))","v":6483.2},2.398089784182646E-2,{"$f":"IF($A87=\"\",\"\",IF(OR(VLOOKUP($A87,Economática!$A$3:$AI$823,28,FALSE)=0,VLOOKUP($A87,Economática!$A$3:$AI$823,28,FALSE)=\"-\"),1/0,VLOOKUP($A87,Economática!$A$3:$AI$823,28,FALSE)))","v":-0.7},{"$f":"IF($A87=\"\",\"\",IF(OR(VLOOKUP($A87,Economática!$A$3:$AI$823,29,FALSE)=0,VLOOKUP($A87,Economática!$A$3:$AI$823,29,FALSE)=\"-\"),1/0,VLOOKUP($A87,Economática!$A$3:$AI$823,29,FALSE)))","v":44.5},{"$f":"IF($A87=\"\",\"\",IF(OR(VLOOKUP($A87,Economática!$A$3:$AI$823,30,FALSE)/E87=0,VLOOKUP($A87,Economática!$A$3:$AI$823,30,FALSE)/E87=\"-\",VLOOKUP($A87,Economática!$A$3:$AI$823,30,FALSE)/E87<33.33%,VLOOKUP($A87,Economática!$A$3:$AI$823,30,FALSE)/E87>100%),1/0,VLOOKUP($A87,Economática!$A$3:$AI$823,30,FALSE)/E87))","v":0.50195851816837656},"BBDC4",{"$f":"IF($A87=\"\",\"\",IF(OR(VLOOKUP($A87,Economática!$A$3:$AI$823,25,FALSE)=0,VLOOKUP($A87,Economática!$A$3:$AI$823,25,FALSE)=\"-\"),1/0,VLOOKUP($A87,Economática!$A$3:$AI$823,25,FALSE)))","v":{"$error":"#DIV/0!"}},{"$f":"CONCATENATE(Economática!B89,\" \",Economática!C89)","v":"Bradesco PN"}]
[{"$f":"IF(Economática!AG90=\"\",\"\",Economática!AG90)","v":"PSSA3"},{"$f":"IF($A88=\"\",\"\",VLOOKUP(VLOOKUP($A88,Economática!$A$3:$AI$823,6,FALSE),Correção!$B$16:$C$36,2,FALSE))","v":"Finanças e Seguros"},{"$f":"IF(Economática!B90=\"\",\"\",Economática!B90)","v":"Porto Seguro"},{"$f":"IF($A88=\"\",\"\",IF(OR(VLOOKUP($A88,Economática!$A$3:$AI$823,8,FALSE)=0,VLOOKUP($A88,Economática!$A$3:$AI$823,8,FALSE)=\"-\"),1/0,VLOOKUP($A88,Economática!$A$3:$AI$823,8,FALSE)))","v":53.83},{"$f":"IF(A88=\"\",\"\",IF(ISERROR(VLOOKUP(A88,Correção!$B$2:$G$13,9,FALSE)),VLOOKUP($A88,Economática!$A$3:$AI$823,9,FALSE),VLOOKUP(A88,Correção!$B$2:$G$13,9,FALSE)))","v":323.29300000000001},{"$f":"IF($A88=\"\",\"\",Economática!G90)","v":17402.86},{"$f":"IF($A88=\"\",\"\",IF(OR(VLOOKUP($A88,Economática!$A$3:$AI$823,10,FALSE)=0,VLOOKUP($A88,Economática!$A$3:$AI$823,10,FALSE)=\"-\"),1/0,VLOOKUP($A88,Economática!$A$3:$AI$823,10,FALSE)))","v":7643.24},{"$f":"IF($A88=\"\",\"\",IF(OR(VLOOKUP($A88,Economática!$A$3:$AI$823,11,FALSE)=0,VLOOKUP($A88,Economática!$A$3:$AI$823,11,FALSE)=\"-\"),1/0,VLOOKUP($A88,Economática!$A$3:$AI$823,11,FALSE)))","v":16894.099999999999},{"$f":"IF($A88=\"\",\"\",IF(OR(VLOOKUP($A88,Economática!$A$3:$AI$823,12,FALSE)=0,VLOOKUP($A88,Economática!$A$3:$AI$823,12,FALSE)=\"-\"),1/0,VLOOKUP($A88,Economática!$A$3:$AI$823,12,FALSE)))","v":17821.96},{"$f":"IF($A88=\"\",\"\",IF(OR(VLOOKUP($A88,Economática!$A$3:$AI$823,13,FALSE)=0,VLOOKUP($A88,Economática!$A$3:$AI$823,13,FALSE)=\"-\"),1/0,VLOOKUP($A88,Economática!$A$3:$AI$823,13,FALSE)))","v":1100.8699999999999},{"$f":"IF($A88=\"\",\"\",IF(OR(VLOOKUP($A88,Economática!$A$3:$AI$823,14,FALSE)=0,VLOOKUP($A88,Economática!$A$3:$AI$823,14,FALSE)=\"-\"),1/0,VLOOKUP($A88,Economática!$A$3:$AI$823,14,FALSE)))","v":276.12},{"$f":"IF($A88=\"\",\"\",IF(OR(VLOOKUP($A88,Economática!$A$3:$AI$823,15,FALSE)=0,VLOOKUP($A88,Economática!$A$3:$AI$823,15,FALSE)=\"-\"),1/0,VLOOKUP($A88,Economática!$A$3:$AI$823,15,FALSE)))","v":609.21},{"$f":"IF($A88=\"\",\"\",IF(OR(VLOOKUP($A88,Economática!$A$3:$AI$823,16,FALSE)=0,VLOOKUP($A88,Economática!$A$3:$AI$823,16,FALSE)=\"-\"),1/0,VLOOKUP($A88,Economática!$A$3:$AI$823,16,FALSE)))","v":925.57},{"$f":"IF($A88=\"\",\"\",IF(OR(VLOOKUP($A88,Economática!$A$3:$AI$823,17,FALSE)=0,VLOOKUP($A88,Economática!$A$3:$AI$823,17,FALSE)=\"-\"),1/0,VLOOKUP($A88,Economática!$A$3:$AI$823,17,FALSE)))","v":1310.6199999999999},{"$f":"IF($A88=\"\",\"\",IF(OR(VLOOKUP($A88,Economática!$A$3:$AI$823,18,FALSE)=0,VLOOKUP($A88,Economática!$A$3:$AI$823,18,FALSE)=\"-\"),1/0,VLOOKUP($A88,Economática!$A$3:$AI$823,18,FALSE)))","v":1100.8699999999999},{"$f":"IF($A88=\"\",\"\",IF(OR(VLOOKUP($A88,Economática!$A$3:$AI$823,19,FALSE)=0,VLOOKUP($A88,Economática!$A$3:$AI$823,19,FALSE)=\"-\"),1/0,VLOOKUP($A88,Economática!$A$3:$AI$823,19,FALSE)))","v":1310.6199999999999},{"$f":"IF($A88=\"\",\"\",VLOOKUP($A88,Economática!$A$3:$AI$823,20,FALSE)/E88)","v":4.0539696188906031},23.64183573414828,2.2768959485767817,13.278343219239751,{"$f":"IF($A88=\"\",\"\",IF(OR(VLOOKUP($A88,Economática!$A$3:$AI$823,21,FALSE)/100=0,VLOOKUP($A88,Economática!$A$3:$AI$823,21,FALSE)/100=\"-\"),1/0,VLOOKUP($A88,Economática!$A$3:$AI$823,21,FALSE)/100))","v":0.16969400000000001},{"$f":"IF($A88=\"\",\"\",IF(OR(VLOOKUP($A88,Economática!$A$3:$AI$823,22,FALSE)/100=0,VLOOKUP($A88,Economática!$A$3:$AI$823,22,FALSE)/100=\"-\"),1/0,VLOOKUP($A88,Economática!$A$3:$AI$823,22,FALSE)/100))","v":-1.414477},{"$f":"IF($A88=\"\",\"\",IF(OR(VLOOKUP($A88,Economática!$A$3:$AI$823,23,FALSE)=0,VLOOKUP($A88,Economática!$A$3:$AI$823,23,FALSE)=\"-\"),1/0,VLOOKUP($A88,Economática!$A$3:$AI$823,23,FALSE)))","v":628.29999999999995},{"$f":"IF($A88=\"\",\"\",IF(OR(VLOOKUP($A88,Economática!$A$3:$AI$823,24,FALSE)=0,VLOOKUP($A88,Economática!$A$3:$AI$823,24,FALSE)=\"-\"),1/0,VLOOKUP($A88,Economática!$A$3:$AI$823,24,FALSE)))","v":1493.1},{"$f":"IF($A88=\"\",\"\",IF(OR(VLOOKUP($A88,Economática!$A$3:$AI$823,25,FALSE)=0,VLOOKUP($A88,Economática!$A$3:$AI$823,25,FALSE)=\"-\"),1/0,VLOOKUP($A88,Economática!$A$3:$AI$823,25,FALSE)))","v":1493.1},{"$f":"IF($A88=\"\",\"\",IF(ISERROR((F88+VLOOKUP($A88,Economática!$A$3:$AI$823,26,FALSE))/Y88),(F88+VLOOKUP($A88,Economática!$A$3:$AI$823,26,FALSE))/Y88,(F88+VLOOKUP($A88,Economática!$A$3:$AI$823,26,FALSE))/Y88))","v":4.4142984394883138},{"$f":"IF($A88=\"\",\"\",IF(OR(-VLOOKUP($A88,Economática!$A$3:$AI$823,27,FALSE)=0,-VLOOKUP($A88,Economática!$A$3:$AI$823,27,FALSE)=\"-\"),1/0,-VLOOKUP($A88,Economática!$A$3:$AI$823,27,FALSE)))","v":1240.3499999999999},7.1272767809429011E-2,{"$f":"IF($A88=\"\",\"\",IF(OR(VLOOKUP($A88,Economática!$A$3:$AI$823,28,FALSE)=0,VLOOKUP($A88,Economática!$A$3:$AI$823,28,FALSE)=\"-\"),1/0,VLOOKUP($A88,Economática!$A$3:$AI$823,28,FALSE)))","v":-3.9},{"$f":"IF($A88=\"\",\"\",IF(OR(VLOOKUP($A88,Economática!$A$3:$AI$823,29,FALSE)=0,VLOOKUP($A88,Economática!$A$3:$AI$823,29,FALSE)=\"-\"),1/0,VLOOKUP($A88,Economática!$A$3:$AI$823,29,FALSE)))","v":61.5},{"$f":"IF($A88=\"\",\"\",IF(OR(VLOOKUP($A88,Economática!$A$3:$AI$823,30,FALSE)/E88=0,VLOOKUP($A88,Economática!$A$3:$AI$823,30,FALSE)/E88=\"-\",VLOOKUP($A88,Economática!$A$3:$AI$823,30,FALSE)/E88<33.33%,VLOOKUP($A88,Economática!$A$3:$AI$823,30,FALSE)/E88>100%),1/0,VLOOKUP($A88,Economática!$A$3:$AI$823,30,FALSE)/E88))","v":{"$error":"#DIV/0!"}},"PSSA3",{"$f":"IF($A88=\"\",\"\",IF(OR(VLOOKUP($A88,Economática!$A$3:$AI$823,25,FALSE)=0,VLOOKUP($A88,Economática!$A$3:$AI$823,25,FALSE)=\"-\"),1/0,VLOOKUP($A88,Economática!$A$3:$AI$823,25,FALSE)))","v":1493.1},{"$f":"CONCATENATE(Economática!B90,\" \",Economática!C90)","v":"Porto Seguro ON"}]
[{"$f":"IF(Economática!AG91=\"\",\"\",Economática!AG91)","v":"SULA11"},{"$f":"IF($A89=\"\",\"\",VLOOKUP(VLOOKUP($A89,Economática!$A$3:$AI$823,6,FALSE),Correção!$B$16:$C$36,2,FALSE))","v":"Finanças e Seguros"},{"$f":"IF(Economática!B91=\"\",\"\",Economática!B91)","v":"Sul America"},{"$f":"IF($A89=\"\",\"\",IF(OR(VLOOKUP($A89,Economática!$A$3:$AI$823,8,FALSE)=0,VLOOKUP($A89,Economática!$A$3:$AI$823,8,FALSE)=\"-\"),1/0,VLOOKUP($A89,Economática!$A$3:$AI$823,8,FALSE)))","v":29.8},{"$f":"IF(A89=\"\",\"\",IF(ISERROR(VLOOKUP(A89,Correção!$B$2:$G$13,9,FALSE)),VLOOKUP($A89,Economática!$A$3:$AI$823,9,FALSE),VLOOKUP(A89,Correção!$B$2:$G$13,9,FALSE)))","v":1160.731},{"$f":"IF($A89=\"\",\"\",Economática!G91)","v":12069.68},{"$f":"IF($A89=\"\",\"\",IF(OR(VLOOKUP($A89,Economática!$A$3:$AI$823,10,FALSE)=0,VLOOKUP($A89,Economática!$A$3:$AI$823,10,FALSE)=\"-\"),1/0,VLOOKUP($A89,Economática!$A$3:$AI$823,10,FALSE)))","v":6286.11},{"$f":"IF($A89=\"\",\"\",IF(OR(VLOOKUP($A89,Economática!$A$3:$AI$823,11,FALSE)=0,VLOOKUP($A89,Economática!$A$3:$AI$823,11,FALSE)=\"-\"),1/0,VLOOKUP($A89,Economática!$A$3:$AI$823,11,FALSE)))","v":17762.2},{"$f":"IF($A89=\"\",\"\",IF(OR(VLOOKUP($A89,Economática!$A$3:$AI$823,12,FALSE)=0,VLOOKUP($A89,Economática!$A$3:$AI$823,12,FALSE)=\"-\"),1/0,VLOOKUP($A89,Economática!$A$3:$AI$823,12,FALSE)))","v":19831.21},{"$f":"IF($A89=\"\",\"\",IF(OR(VLOOKUP($A89,Economática!$A$3:$AI$823,13,FALSE)=0,VLOOKUP($A89,Economática!$A$3:$AI$823,13,FALSE)=\"-\"),1/0,VLOOKUP($A89,Economática!$A$3:$AI$823,13,FALSE)))","v":773.25},{"$f":"IF($A89=\"\",\"\",IF(OR(VLOOKUP($A89,Economática!$A$3:$AI$823,14,FALSE)=0,VLOOKUP($A89,Economática!$A$3:$AI$823,14,FALSE)=\"-\"),1/0,VLOOKUP($A89,Economática!$A$3:$AI$823,14,FALSE)))","v":141.41999999999999},{"$f":"IF($A89=\"\",\"\",IF(OR(VLOOKUP($A89,Economática!$A$3:$AI$823,15,FALSE)=0,VLOOKUP($A89,Economática!$A$3:$AI$823,15,FALSE)=\"-\"),1/0,VLOOKUP($A89,Economática!$A$3:$AI$823,15,FALSE)))","v":276.81},{"$f":"IF($A89=\"\",\"\",IF(OR(VLOOKUP($A89,Economática!$A$3:$AI$823,16,FALSE)=0,VLOOKUP($A89,Economática!$A$3:$AI$823,16,FALSE)=\"-\"),1/0,VLOOKUP($A89,Economática!$A$3:$AI$823,16,FALSE)))","v":511.38},{"$f":"IF($A89=\"\",\"\",IF(OR(VLOOKUP($A89,Economática!$A$3:$AI$823,17,FALSE)=0,VLOOKUP($A89,Economática!$A$3:$AI$823,17,FALSE)=\"-\"),1/0,VLOOKUP($A89,Economática!$A$3:$AI$823,17,FALSE)))","v":904.96},{"$f":"IF($A89=\"\",\"\",IF(OR(VLOOKUP($A89,Economática!$A$3:$AI$823,18,FALSE)=0,VLOOKUP($A89,Economática!$A$3:$AI$823,18,FALSE)=\"-\"),1/0,VLOOKUP($A89,Economática!$A$3:$AI$823,18,FALSE)))","v":773.25},{"$f":"IF($A89=\"\",\"\",IF(OR(VLOOKUP($A89,Economática!$A$3:$AI$823,19,FALSE)=0,VLOOKUP($A89,Economática!$A$3:$AI$823,19,FALSE)=\"-\"),1/0,VLOOKUP($A89,Economática!$A$3:$AI$823,19,FALSE)))","v":904.96},{"$f":"IF($A89=\"\",\"\",VLOOKUP($A89,Economática!$A$3:$AI$823,20,FALSE)/E89)","v":0.77964661924252909},5.4156475531367727,5.5025737379714963,38.222444969943425,{"$f":"IF($A89=\"\",\"\",IF(OR(VLOOKUP($A89,Economática!$A$3:$AI$823,21,FALSE)/100=0,VLOOKUP($A89,Economática!$A$3:$AI$823,21,FALSE)/100=\"-\"),1/0,VLOOKUP($A89,Economática!$A$3:$AI$823,21,FALSE)/100))","v":0.16045999999999999},{"$f":"IF($A89=\"\",\"\",IF(OR(VLOOKUP($A89,Economática!$A$3:$AI$823,22,FALSE)/100=0,VLOOKUP($A89,Economática!$A$3:$AI$823,22,FALSE)/100=\"-\"),1/0,VLOOKUP($A89,Economática!$A$3:$AI$823,22,FALSE)/100))","v":-2.247357},{"$f":"IF($A89=\"\",\"\",IF(OR(VLOOKUP($A89,Economática!$A$3:$AI$823,23,FALSE)=0,VLOOKUP($A89,Economática!$A$3:$AI$823,23,FALSE)=\"-\"),1/0,VLOOKUP($A89,Economática!$A$3:$AI$823,23,FALSE)))","v":491.4},{"$f":"IF($A89=\"\",\"\",IF(OR(VLOOKUP($A89,Economática!$A$3:$AI$823,24,FALSE)=0,VLOOKUP($A89,Economática!$A$3:$AI$823,24,FALSE)=\"-\"),1/0,VLOOKUP($A89,Economática!$A$3:$AI$823,24,FALSE)))","v":814.5},{"$f":"IF($A89=\"\",\"\",IF(OR(VLOOKUP($A89,Economática!$A$3:$AI$823,25,FALSE)=0,VLOOKUP($A89,Economática!$A$3:$AI$823,25,FALSE)=\"-\"),1/0,VLOOKUP($A89,Economática!$A$3:$AI$823,25,FALSE)))","v":814.5},{"$f":"IF($A89=\"\",\"\",IF(ISERROR((F89+VLOOKUP($A89,Economática!$A$3:$AI$823,26,FALSE))/Y89),(F89+VLOOKUP($A89,Economática!$A$3:$AI$823,26,FALSE))/Y89,(F89+VLOOKUP($A89,Economática!$A$3:$AI$823,26,FALSE))/Y89))","v":-2.5299054634745244},{"$f":"IF($A89=\"\",\"\",IF(OR(-VLOOKUP($A89,Economática!$A$3:$AI$823,27,FALSE)=0,-VLOOKUP($A89,Economática!$A$3:$AI$823,27,FALSE)=\"-\"),1/0,-VLOOKUP($A89,Economática!$A$3:$AI$823,27,FALSE)))","v":184.92},1.5321035851820429E-2,{"$f":"IF($A89=\"\",\"\",IF(OR(VLOOKUP($A89,Economática!$A$3:$AI$823,28,FALSE)=0,VLOOKUP($A89,Economática!$A$3:$AI$823,28,FALSE)=\"-\"),1/0,VLOOKUP($A89,Economática!$A$3:$AI$823,28,FALSE)))","v":-1.3},{"$f":"IF($A89=\"\",\"\",IF(OR(VLOOKUP($A89,Economática!$A$3:$AI$823,29,FALSE)=0,VLOOKUP($A89,Economática!$A$3:$AI$823,29,FALSE)=\"-\"),1/0,VLOOKUP($A89,Economática!$A$3:$AI$823,29,FALSE)))","v":67.7},{"$f":"IF($A89=\"\",\"\",IF(OR(VLOOKUP($A89,Economática!$A$3:$AI$823,30,FALSE)/E89=0,VLOOKUP($A89,Economática!$A$3:$AI$823,30,FALSE)/E89=\"-\",VLOOKUP($A89,Economática!$A$3:$AI$823,30,FALSE)/E89<33.33%,VLOOKUP($A89,Economática!$A$3:$AI$823,30,FALSE)/E89>100%),1/0,VLOOKUP($A89,Economática!$A$3:$AI$823,30,FALSE)/E89))","v":0.51062649313234509},"SULA11",{"$f":"IF($A89=\"\",\"\",IF(OR(VLOOKUP($A89,Economática!$A$3:$AI$823,25,FALSE)=0,VLOOKUP($A89,Economática!$A$3:$AI$823,25,FALSE)=\"-\"),1/0,VLOOKUP($A89,Economática!$A$3:$AI$823,25,FALSE)))","v":814.5},{"$f":"CONCATENATE(Economática!B91,\" \",Economática!C91)","v":"Sul America UNT N2"}]
[{"$f":"IF(Economática!AG92=\"\",\"\",Economática!AG92)","v":"BRSR6"},{"$f":"IF($A90=\"\",\"\",VLOOKUP(VLOOKUP($A90,Economática!$A$3:$AI$823,6,FALSE),Correção!$B$16:$C$36,2,FALSE))","v":"Finanças e Seguros"},{"$f":"IF(Economática!B92=\"\",\"\",Economática!B92)","v":"Banrisul"},{"$f":"IF($A90=\"\",\"\",IF(OR(VLOOKUP($A90,Economática!$A$3:$AI$823,8,FALSE)=0,VLOOKUP($A90,Economática!$A$3:$AI$823,8,FALSE)=\"-\"),1/0,VLOOKUP($A90,Economática!$A$3:$AI$823,8,FALSE)))","v":24.19},{"$f":"IF(A90=\"\",\"\",IF(ISERROR(VLOOKUP(A90,Correção!$B$2:$G$13,9,FALSE)),VLOOKUP($A90,Economática!$A$3:$AI$823,9,FALSE),VLOOKUP(A90,Correção!$B$2:$G$13,9,FALSE)))","v":408.97399999999999},{"$f":"IF($A90=\"\",\"\",Economática!G92)","v":10020.69},{"$f":"IF($A90=\"\",\"\",IF(OR(VLOOKUP($A90,Economática!$A$3:$AI$823,10,FALSE)=0,VLOOKUP($A90,Economática!$A$3:$AI$823,10,FALSE)=\"-\"),1/0,VLOOKUP($A90,Economática!$A$3:$AI$823,10,FALSE)))","v":7278.9},{"$f":"IF($A90=\"\",\"\",IF(OR(VLOOKUP($A90,Economática!$A$3:$AI$823,11,FALSE)=0,VLOOKUP($A90,Economática!$A$3:$AI$823,11,FALSE)=\"-\"),1/0,VLOOKUP($A90,Economática!$A$3:$AI$823,11,FALSE)))","v":9978.49},{"$f":"IF($A90=\"\",\"\",IF(OR(VLOOKUP($A90,Economática!$A$3:$AI$823,12,FALSE)=0,VLOOKUP($A90,Economática!$A$3:$AI$823,12,FALSE)=\"-\"),1/0,VLOOKUP($A90,Economática!$A$3:$AI$823,12,FALSE)))","v":9551.7800000000007},{"$f":"IF($A90=\"\",\"\",IF(OR(VLOOKUP($A90,Economática!$A$3:$AI$823,13,FALSE)=0,VLOOKUP($A90,Economática!$A$3:$AI$823,13,FALSE)=\"-\"),1/0,VLOOKUP($A90,Economática!$A$3:$AI$823,13,FALSE)))","v":1053.04},{"$f":"IF($A90=\"\",\"\",IF(OR(VLOOKUP($A90,Economática!$A$3:$AI$823,14,FALSE)=0,VLOOKUP($A90,Economática!$A$3:$AI$823,14,FALSE)=\"-\"),1/0,VLOOKUP($A90,Economática!$A$3:$AI$823,14,FALSE)))","v":243.96},{"$f":"IF($A90=\"\",\"\",IF(OR(VLOOKUP($A90,Economática!$A$3:$AI$823,15,FALSE)=0,VLOOKUP($A90,Economática!$A$3:$AI$823,15,FALSE)=\"-\"),1/0,VLOOKUP($A90,Economática!$A$3:$AI$823,15,FALSE)))","v":505.92},{"$f":"IF($A90=\"\",\"\",IF(OR(VLOOKUP($A90,Economática!$A$3:$AI$823,16,FALSE)=0,VLOOKUP($A90,Economática!$A$3:$AI$823,16,FALSE)=\"-\"),1/0,VLOOKUP($A90,Economática!$A$3:$AI$823,16,FALSE)))","v":796.14},{"$f":"IF($A90=\"\",\"\",IF(OR(VLOOKUP($A90,Economática!$A$3:$AI$823,17,FALSE)=0,VLOOKUP($A90,Economática!$A$3:$AI$823,17,FALSE)=\"-\"),1/0,VLOOKUP($A90,Economática!$A$3:$AI$823,17,FALSE)))","v":1048.6300000000001},{"$f":"IF($A90=\"\",\"\",IF(OR(VLOOKUP($A90,Economática!$A$3:$AI$823,18,FALSE)=0,VLOOKUP($A90,Economática!$A$3:$AI$823,18,FALSE)=\"-\"),1/0,VLOOKUP($A90,Economática!$A$3:$AI$823,18,FALSE)))","v":1053.04},{"$f":"IF($A90=\"\",\"\",IF(OR(VLOOKUP($A90,Economática!$A$3:$AI$823,19,FALSE)=0,VLOOKUP($A90,Economática!$A$3:$AI$823,19,FALSE)=\"-\"),1/0,VLOOKUP($A90,Economática!$A$3:$AI$823,19,FALSE)))","v":1048.6300000000001},{"$f":"IF($A90=\"\",\"\",VLOOKUP($A90,Economática!$A$3:$AI$823,20,FALSE)/E90)","v":2.5640505264393338},17.79795292610288,1.3591450713706743,9.4342914660080286,{"$f":"IF($A90=\"\",\"\",IF(OR(VLOOKUP($A90,Economática!$A$3:$AI$823,21,FALSE)/100=0,VLOOKUP($A90,Economática!$A$3:$AI$823,21,FALSE)/100=\"-\"),1/0,VLOOKUP($A90,Economática!$A$3:$AI$823,21,FALSE)/100))","v":0.14916600000000002},{"$f":"IF($A90=\"\",\"\",IF(OR(VLOOKUP($A90,Economática!$A$3:$AI$823,22,FALSE)/100=0,VLOOKUP($A90,Economática!$A$3:$AI$823,22,FALSE)/100=\"-\"),1/0,VLOOKUP($A90,Economática!$A$3:$AI$823,22,FALSE)/100))","v":{"$error":"#VALUE!"}},{"$f":"IF($A90=\"\",\"\",IF(OR(VLOOKUP($A90,Economática!$A$3:$AI$823,23,FALSE)=0,VLOOKUP($A90,Economática!$A$3:$AI$823,23,FALSE)=\"-\"),1/0,VLOOKUP($A90,Economática!$A$3:$AI$823,23,FALSE)))","v":{"$error":"#DIV/0!"}},{"$f":"IF($A90=\"\",\"\",IF(OR(VLOOKUP($A90,Economática!$A$3:$AI$823,24,FALSE)=0,VLOOKUP($A90,Economática!$A$3:$AI$823,24,FALSE)=\"-\"),1/0,VLOOKUP($A90,Economática!$A$3:$AI$823,24,FALSE)))","v":{"$error":"#DIV/0!"}},{"$f":"IF($A90=\"\",\"\",IF(OR(VLOOKUP($A90,Economática!$A$3:$AI$823,25,FALSE)=0,VLOOKUP($A90,Economática!$A$3:$AI$823,25,FALSE)=\"-\"),1/0,VLOOKUP($A90,Economática!$A$3:$AI$823,25,FALSE)))","v":{"$error":"#DIV/0!"}},{"$f":"IF($A90=\"\",\"\",IF(ISERROR((F90+VLOOKUP($A90,Economática!$A$3:$AI$823,26,FALSE))/Y90),(F90+VLOOKUP($A90,Economática!$A$3:$AI$823,26,FALSE))/Y90,(F90+VLOOKUP($A90,Economática!$A$3:$AI$823,26,FALSE))/Y90))","v":{"$error":"#VALUE!"}},{"$f":"IF($A90=\"\",\"\",IF(OR(-VLOOKUP($A90,Economática!$A$3:$AI$823,27,FALSE)=0,-VLOOKUP($A90,Economática!$A$3:$AI$823,27,FALSE)=\"-\"),1/0,-VLOOKUP($A90,Economática!$A$3:$AI$823,27,FALSE)))","v":381.3},3.8051271918400825E-2,{"$f":"IF($A90=\"\",\"\",IF(OR(VLOOKUP($A90,Economática!$A$3:$AI$823,28,FALSE)=0,VLOOKUP($A90,Economática!$A$3:$AI$823,28,FALSE)=\"-\"),1/0,VLOOKUP($A90,Economática!$A$3:$AI$823,28,FALSE)))","v":-2},{"$f":"IF($A90=\"\",\"\",IF(OR(VLOOKUP($A90,Economática!$A$3:$AI$823,29,FALSE)=0,VLOOKUP($A90,Economática!$A$3:$AI$823,29,FALSE)=\"-\"),1/0,VLOOKUP($A90,Economática!$A$3:$AI$823,29,FALSE)))","v":85.5},{"$f":"IF($A90=\"\",\"\",IF(OR(VLOOKUP($A90,Economática!$A$3:$AI$823,30,FALSE)/E90=0,VLOOKUP($A90,Economática!$A$3:$AI$823,30,FALSE)/E90=\"-\",VLOOKUP($A90,Economática!$A$3:$AI$823,30,FALSE)/E90<33.33%,VLOOKUP($A90,Economática!$A$3:$AI$823,30,FALSE)/E90>100%),1/0,VLOOKUP($A90,Economática!$A$3:$AI$823,30,FALSE)/E90))","v":0.5014988727889792},"BRSR6",{"$f":"IF($A90=\"\",\"\",IF(OR(VLOOKUP($A90,Economática!$A$3:$AI$823,25,FALSE)=0,VLOOKUP($A90,Economática!$A$3:$AI$823,25,FALSE)=\"-\"),1/0,VLOOKUP($A90,Economática!$A$3:$AI$823,25,FALSE)))","v":{"$error":"#DIV/0!"}},{"$f":"CONCATENATE(Economática!B92,\" \",Economática!C92)","v":"Banrisul PNB"}]
[{"$f":"IF(Economática!AG93=\"\",\"\",Economática!AG93)","v":"BBAS3"},{"$f":"IF($A91=\"\",\"\",VLOOKUP(VLOOKUP($A91,Economática!$A$3:$AI$823,6,FALSE),Correção!$B$16:$C$36,2,FALSE))","v":"Finanças e Seguros"},{"$f":"IF(Economática!B93=\"\",\"\",Economática!B93)","v":"Brasil"},{"$f":"IF($A91=\"\",\"\",IF(OR(VLOOKUP($A91,Economática!$A$3:$AI$823,8,FALSE)=0,VLOOKUP($A91,Economática!$A$3:$AI$823,8,FALSE)=\"-\"),1/0,VLOOKUP($A91,Economática!$A$3:$AI$823,8,FALSE)))","v":48.72},{"$f":"IF(A91=\"\",\"\",IF(ISERROR(VLOOKUP(A91,Correção!$B$2:$G$13,9,FALSE)),VLOOKUP($A91,Economática!$A$3:$AI$823,9,FALSE),VLOOKUP(A91,Correção!$B$2:$G$13,9,FALSE)))","v":2785.5309999999999},{"$f":"IF($A91=\"\",\"\",Economática!G93)","v":135711.06},{"$f":"IF($A91=\"\",\"\",IF(OR(VLOOKUP($A91,Economática!$A$3:$AI$823,10,FALSE)=0,VLOOKUP($A91,Economática!$A$3:$AI$823,10,FALSE)=\"-\"),1/0,VLOOKUP($A91,Economática!$A$3:$AI$823,10,FALSE)))","v":102252.88},{"$f":"IF($A91=\"\",\"\",IF(OR(VLOOKUP($A91,Economática!$A$3:$AI$823,11,FALSE)=0,VLOOKUP($A91,Economática!$A$3:$AI$823,11,FALSE)=\"-\"),1/0,VLOOKUP($A91,Economática!$A$3:$AI$823,11,FALSE)))","v":142438.85999999999},{"$f":"IF($A91=\"\",\"\",IF(OR(VLOOKUP($A91,Economática!$A$3:$AI$823,12,FALSE)=0,VLOOKUP($A91,Economática!$A$3:$AI$823,12,FALSE)=\"-\"),1/0,VLOOKUP($A91,Economática!$A$3:$AI$823,12,FALSE)))","v":134487.85999999999},{"$f":"IF($A91=\"\",\"\",IF(OR(VLOOKUP($A91,Economática!$A$3:$AI$823,13,FALSE)=0,VLOOKUP($A91,Economática!$A$3:$AI$823,13,FALSE)=\"-\"),1/0,VLOOKUP($A91,Economática!$A$3:$AI$823,13,FALSE)))","v":11010.78},{"$f":"IF($A91=\"\",\"\",IF(OR(VLOOKUP($A91,Economática!$A$3:$AI$823,14,FALSE)=0,VLOOKUP($A91,Economática!$A$3:$AI$823,14,FALSE)=\"-\"),1/0,VLOOKUP($A91,Economática!$A$3:$AI$823,14,FALSE)))","v":2748.81},{"$f":"IF($A91=\"\",\"\",IF(OR(VLOOKUP($A91,Economática!$A$3:$AI$823,15,FALSE)=0,VLOOKUP($A91,Economática!$A$3:$AI$823,15,FALSE)=\"-\"),1/0,VLOOKUP($A91,Economática!$A$3:$AI$823,15,FALSE)))","v":5883.82},{"$f":"IF($A91=\"\",\"\",IF(OR(VLOOKUP($A91,Economática!$A$3:$AI$823,16,FALSE)=0,VLOOKUP($A91,Economática!$A$3:$AI$823,16,FALSE)=\"-\"),1/0,VLOOKUP($A91,Economática!$A$3:$AI$823,16,FALSE)))","v":9059.23},{"$f":"IF($A91=\"\",\"\",IF(OR(VLOOKUP($A91,Economática!$A$3:$AI$823,17,FALSE)=0,VLOOKUP($A91,Economática!$A$3:$AI$823,17,FALSE)=\"-\"),1/0,VLOOKUP($A91,Economática!$A$3:$AI$823,17,FALSE)))","v":12862.03},{"$f":"IF($A91=\"\",\"\",IF(OR(VLOOKUP($A91,Economática!$A$3:$AI$823,18,FALSE)=0,VLOOKUP($A91,Economática!$A$3:$AI$823,18,FALSE)=\"-\"),1/0,VLOOKUP($A91,Economática!$A$3:$AI$823,18,FALSE)))","v":11010.78},{"$f":"IF($A91=\"\",\"\",IF(OR(VLOOKUP($A91,Economática!$A$3:$AI$823,19,FALSE)=0,VLOOKUP($A91,Economática!$A$3:$AI$823,19,FALSE)=\"-\"),1/0,VLOOKUP($A91,Economática!$A$3:$AI$823,19,FALSE)))","v":12862.03},{"$f":"IF($A91=\"\",\"\",VLOOKUP($A91,Economática!$A$3:$AI$823,20,FALSE)/E91)","v":4.6174427784146008},36.70857728741845,1.3272102489435993,10.551294804941366,{"$f":"IF($A91=\"\",\"\",IF(OR(VLOOKUP($A91,Economática!$A$3:$AI$823,21,FALSE)/100=0,VLOOKUP($A91,Economática!$A$3:$AI$823,21,FALSE)/100=\"-\"),1/0,VLOOKUP($A91,Economática!$A$3:$AI$823,21,FALSE)/100))","v":0.14442199999999999},{"$f":"IF($A91=\"\",\"\",IF(OR(VLOOKUP($A91,Economática!$A$3:$AI$823,22,FALSE)/100=0,VLOOKUP($A91,Economática!$A$3:$AI$823,22,FALSE)/100=\"-\"),1/0,VLOOKUP($A91,Economática!$A$3:$AI$823,22,FALSE)/100))","v":{"$error":"#VALUE!"}},{"$f":"IF($A91=\"\",\"\",IF(OR(VLOOKUP($A91,Economática!$A$3:$AI$823,23,FALSE)=0,VLOOKUP($A91,Economática!$A$3:$AI$823,23,FALSE)=\"-\"),1/0,VLOOKUP($A91,Economática!$A$3:$AI$823,23,FALSE)))","v":{"$error":"#DIV/0!"}},{"$f":"IF($A91=\"\",\"\",IF(OR(VLOOKUP($A91,Economática!$A$3:$AI$823,24,FALSE)=0,VLOOKUP($A91,Economática!$A$3:$AI$823,24,FALSE)=\"-\"),1/0,VLOOKUP($A91,Economática!$A$3:$AI$823,24,FALSE)))","v":{"$error":"#DIV/0!"}},{"$f":"IF($A91=\"\",\"\",IF(OR(VLOOKUP($A91,Economática!$A$3:$AI$823,25,FALSE)=0,VLOOKUP($A91,Economática!$A$3:$AI$823,25,FALSE)=\"-\"),1/0,VLOOKUP($A91,Economática!$A$3:$AI$823,25,FALSE)))","v":{"$error":"#DIV/0!"}},{"$f":"IF($A91=\"\",\"\",IF(ISERROR((F91+VLOOKUP($A91,Economática!$A$3:$AI$823,26,FALSE))/Y91),(F91+VLOOKUP($A91,Economática!$A$3:$AI$823,26,FALSE))/Y91,(F91+VLOOKUP($A91,Economática!$A$3:$AI$823,26,FALSE))/Y91))","v":{"$error":"#VALUE!"}},{"$f":"IF($A91=\"\",\"\",IF(OR(-VLOOKUP($A91,Economática!$A$3:$AI$823,27,FALSE)=0,-VLOOKUP($A91,Economática!$A$3:$AI$823,27,FALSE)=\"-\"),1/0,-VLOOKUP($A91,Economática!$A$3:$AI$823,27,FALSE)))","v":4206.5200000000004},3.0996147255794779E-2,{"$f":"IF($A91=\"\",\"\",IF(OR(VLOOKUP($A91,Economática!$A$3:$AI$823,28,FALSE)=0,VLOOKUP($A91,Economática!$A$3:$AI$823,28,FALSE)=\"-\"),1/0,VLOOKUP($A91,Economática!$A$3:$AI$823,28,FALSE)))","v":-3.4},{"$f":"IF($A91=\"\",\"\",IF(OR(VLOOKUP($A91,Economática!$A$3:$AI$823,29,FALSE)=0,VLOOKUP($A91,Economática!$A$3:$AI$823,29,FALSE)=\"-\"),1/0,VLOOKUP($A91,Economática!$A$3:$AI$823,29,FALSE)))","v":62},{"$f":"IF($A91=\"\",\"\",IF(OR(VLOOKUP($A91,Economática!$A$3:$AI$823,30,FALSE)/E91=0,VLOOKUP($A91,Economática!$A$3:$AI$823,30,FALSE)/E91=\"-\",VLOOKUP($A91,Economática!$A$3:$AI$823,30,FALSE)/E91<33.33%,VLOOKUP($A91,Economática!$A$3:$AI$823,30,FALSE)/E91>100%),1/0,VLOOKUP($A91,Economática!$A$3:$AI$823,30,FALSE)/E91))","v":{"$error":"#DIV/0!"}},"BBAS3",{"$f":"IF($A91=\"\",\"\",IF(OR(VLOOKUP($A91,Economática!$A$3:$AI$823,25,FALSE)=0,VLOOKUP($A91,Economática!$A$3:$AI$823,25,FALSE)=\"-\"),1/0,VLOOKUP($A91,Economática!$A$3:$AI$823,25,FALSE)))","v":{"$error":"#DIV/0!"}},{"$f":"CONCATENATE(Economática!B93,\" \",Economática!C93)","v":"Brasil ON"}]
[{"$f":"IF(Economática!AG94=\"\",\"\",Economática!AG94)","v":"BEES3"},{"$f":"IF($A92=\"\",\"\",VLOOKUP(VLOOKUP($A92,Economática!$A$3:$AI$823,6,FALSE),Correção!$B$16:$C$36,2,FALSE))","v":"Finanças e Seguros"},{"$f":"IF(Economática!B94=\"\",\"\",Economática!B94)","v":"Banestes"},{"$f":"IF($A92=\"\",\"\",IF(OR(VLOOKUP($A92,Economática!$A$3:$AI$823,8,FALSE)=0,VLOOKUP($A92,Economática!$A$3:$AI$823,8,FALSE)=\"-\"),1/0,VLOOKUP($A92,Economática!$A$3:$AI$823,8,FALSE)))","v":4.92},{"$f":"IF(A92=\"\",\"\",IF(ISERROR(VLOOKUP(A92,Correção!$B$2:$G$13,9,FALSE)),VLOOKUP($A92,Economática!$A$3:$AI$823,9,FALSE),VLOOKUP(A92,Correção!$B$2:$G$13,9,FALSE)))","v":315.91199999999998},{"$f":"IF($A92=\"\",\"\",Economática!G94)","v":1565.28},{"$f":"IF($A92=\"\",\"\",IF(OR(VLOOKUP($A92,Economática!$A$3:$AI$823,10,FALSE)=0,VLOOKUP($A92,Economática!$A$3:$AI$823,10,FALSE)=\"-\"),1/0,VLOOKUP($A92,Economática!$A$3:$AI$823,10,FALSE)))","v":1492.01},{"$f":"IF($A92=\"\",\"\",IF(OR(VLOOKUP($A92,Economática!$A$3:$AI$823,11,FALSE)=0,VLOOKUP($A92,Economática!$A$3:$AI$823,11,FALSE)=\"-\"),1/0,VLOOKUP($A92,Economática!$A$3:$AI$823,11,FALSE)))","v":2701.41},{"$f":"IF($A92=\"\",\"\",IF(OR(VLOOKUP($A92,Economática!$A$3:$AI$823,12,FALSE)=0,VLOOKUP($A92,Economática!$A$3:$AI$823,12,FALSE)=\"-\"),1/0,VLOOKUP($A92,Economática!$A$3:$AI$823,12,FALSE)))","v":2193.7199999999998},{"$f":"IF($A92=\"\",\"\",IF(OR(VLOOKUP($A92,Economática!$A$3:$AI$823,13,FALSE)=0,VLOOKUP($A92,Economática!$A$3:$AI$823,13,FALSE)=\"-\"),1/0,VLOOKUP($A92,Economática!$A$3:$AI$823,13,FALSE)))","v":175.22},{"$f":"IF($A92=\"\",\"\",IF(OR(VLOOKUP($A92,Economática!$A$3:$AI$823,14,FALSE)=0,VLOOKUP($A92,Economática!$A$3:$AI$823,14,FALSE)=\"-\"),1/0,VLOOKUP($A92,Economática!$A$3:$AI$823,14,FALSE)))","v":23.36},{"$f":"IF($A92=\"\",\"\",IF(OR(VLOOKUP($A92,Economática!$A$3:$AI$823,15,FALSE)=0,VLOOKUP($A92,Economática!$A$3:$AI$823,15,FALSE)=\"-\"),1/0,VLOOKUP($A92,Economática!$A$3:$AI$823,15,FALSE)))","v":81.2},{"$f":"IF($A92=\"\",\"\",IF(OR(VLOOKUP($A92,Economática!$A$3:$AI$823,16,FALSE)=0,VLOOKUP($A92,Economática!$A$3:$AI$823,16,FALSE)=\"-\"),1/0,VLOOKUP($A92,Economática!$A$3:$AI$823,16,FALSE)))","v":136.31},{"$f":"IF($A92=\"\",\"\",IF(OR(VLOOKUP($A92,Economática!$A$3:$AI$823,17,FALSE)=0,VLOOKUP($A92,Economática!$A$3:$AI$823,17,FALSE)=\"-\"),1/0,VLOOKUP($A92,Economática!$A$3:$AI$823,17,FALSE)))","v":181.06},{"$f":"IF($A92=\"\",\"\",IF(OR(VLOOKUP($A92,Economática!$A$3:$AI$823,18,FALSE)=0,VLOOKUP($A92,Economática!$A$3:$AI$823,18,FALSE)=\"-\"),1/0,VLOOKUP($A92,Economática!$A$3:$AI$823,18,FALSE)))","v":175.22},{"$f":"IF($A92=\"\",\"\",IF(OR(VLOOKUP($A92,Economática!$A$3:$AI$823,19,FALSE)=0,VLOOKUP($A92,Economática!$A$3:$AI$823,19,FALSE)=\"-\"),1/0,VLOOKUP($A92,Economática!$A$3:$AI$823,19,FALSE)))","v":181.06},{"$f":"IF($A92=\"\",\"\",VLOOKUP($A92,Economática!$A$3:$AI$823,20,FALSE)/E92)","v":0.57313429056192866},4.7228658613791188,1.0417403636704847,8.5843755661106815,{"$f":"IF($A92=\"\",\"\",IF(OR(VLOOKUP($A92,Economática!$A$3:$AI$823,21,FALSE)/100=0,VLOOKUP($A92,Economática!$A$3:$AI$823,21,FALSE)/100=\"-\"),1/0,VLOOKUP($A92,Economática!$A$3:$AI$823,21,FALSE)/100))","v":0.12993399999999999},{"$f":"IF($A92=\"\",\"\",IF(OR(VLOOKUP($A92,Economática!$A$3:$AI$823,22,FALSE)/100=0,VLOOKUP($A92,Economática!$A$3:$AI$823,22,FALSE)/100=\"-\"),1/0,VLOOKUP($A92,Economática!$A$3:$AI$823,22,FALSE)/100))","v":{"$error":"#VALUE!"}},{"$f":"IF($A92=\"\",\"\",IF(OR(VLOOKUP($A92,Economática!$A$3:$AI$823,23,FALSE)=0,VLOOKUP($A92,Economática!$A$3:$AI$823,23,FALSE)=\"-\"),1/0,VLOOKUP($A92,Economática!$A$3:$AI$823,23,FALSE)))","v":{"$error":"#DIV/0!"}},{"$f":"IF($A92=\"\",\"\",IF(OR(VLOOKUP($A92,Economática!$A$3:$AI$823,24,FALSE)=0,VLOOKUP($A92,Economática!$A$3:$AI$823,24,FALSE)=\"-\"),1/0,VLOOKUP($A92,Economática!$A$3:$AI$823,24,FALSE)))","v":{"$error":"#DIV/0!"}},{"$f":"IF($A92=\"\",\"\",IF(OR(VLOOKUP($A92,Economática!$A$3:$AI$823,25,FALSE)=0,VLOOKUP($A92,Economática!$A$3:$AI$823,25,FALSE)=\"-\"),1/0,VLOOKUP($A92,Economática!$A$3:$AI$823,25,FALSE)))","v":{"$error":"#DIV/0!"}},{"$f":"IF($A92=\"\",\"\",IF(ISERROR((F92+VLOOKUP($A92,Economática!$A$3:$AI$823,26,FALSE))/Y92),(F92+VLOOKUP($A92,Economática!$A$3:$AI$823,26,FALSE))/Y92,(F92+VLOOKUP($A92,Economática!$A$3:$AI$823,26,FALSE))/Y92))","v":{"$error":"#VALUE!"}},{"$f":"IF($A92=\"\",\"\",IF(OR(-VLOOKUP($A92,Economática!$A$3:$AI$823,27,FALSE)=0,-VLOOKUP($A92,Economática!$A$3:$AI$823,27,FALSE)=\"-\"),1/0,-VLOOKUP($A92,Economática!$A$3:$AI$823,27,FALSE)))","v":77.64},4.9601349279362161E-2,{"$f":"IF($A92=\"\",\"\",IF(OR(VLOOKUP($A92,Economática!$A$3:$AI$823,28,FALSE)=0,VLOOKUP($A92,Economática!$A$3:$AI$823,28,FALSE)=\"-\"),1/0,VLOOKUP($A92,Economática!$A$3:$AI$823,28,FALSE)))","v":1},{"$f":"IF($A92=\"\",\"\",IF(OR(VLOOKUP($A92,Economática!$A$3:$AI$823,29,FALSE)=0,VLOOKUP($A92,Economática!$A$3:$AI$823,29,FALSE)=\"-\"),1/0,VLOOKUP($A92,Economática!$A$3:$AI$823,29,FALSE)))","v":47.6},{"$f":"IF($A92=\"\",\"\",IF(OR(VLOOKUP($A92,Economática!$A$3:$AI$823,30,FALSE)/E92=0,VLOOKUP($A92,Economática!$A$3:$AI$823,30,FALSE)/E92=\"-\",VLOOKUP($A92,Economática!$A$3:$AI$823,30,FALSE)/E92<33.33%,VLOOKUP($A92,Economática!$A$3:$AI$823,30,FALSE)/E92>100%),1/0,VLOOKUP($A92,Economática!$A$3:$AI$823,30,FALSE)/E92))","v":0.73248246347084001},"BEES3",{"$f":"IF($A92=\"\",\"\",IF(OR(VLOOKUP($A92,Economática!$A$3:$AI$823,25,FALSE)=0,VLOOKUP($A92,Economática!$A$3:$AI$823,25,FALSE)=\"-\"),1/0,VLOOKUP($A92,Economática!$A$3:$AI$823,25,FALSE)))","v":{"$error":"#DIV/0!"}},{"$f":"CONCATENATE(Economática!B94,\" \",Economática!C94)","v":"Banestes ON"}]
[{"$f":"IF(Economática!AG95=\"\",\"\",Economática!AG95)","v":"BPAC11"},{"$f":"IF($A93=\"\",\"\",VLOOKUP(VLOOKUP($A93,Economática!$A$3:$AI$823,6,FALSE),Correção!$B$16:$C$36,2,FALSE))","v":"Finanças e Seguros"},{"$f":"IF(Economática!B95=\"\",\"\",Economática!B95)","v":"Btgp Banco"},{"$f":"IF($A93=\"\",\"\",IF(OR(VLOOKUP($A93,Economática!$A$3:$AI$823,8,FALSE)=0,VLOOKUP($A93,Economática!$A$3:$AI$823,8,FALSE)=\"-\"),1/0,VLOOKUP($A93,Economática!$A$3:$AI$823,8,FALSE)))","v":36.200000000000003},{"$f":"IF(A93=\"\",\"\",IF(ISERROR(VLOOKUP(A93,Correção!$B$2:$G$13,9,FALSE)),VLOOKUP($A93,Economática!$A$3:$AI$823,9,FALSE),VLOOKUP(A93,Correção!$B$2:$G$13,9,FALSE)))","v":2618.16},{"$f":"IF($A93=\"\",\"\",Economática!G95)","v":42846.6},{"$f":"IF($A93=\"\",\"\",IF(OR(VLOOKUP($A93,Economática!$A$3:$AI$823,10,FALSE)=0,VLOOKUP($A93,Economática!$A$3:$AI$823,10,FALSE)=\"-\"),1/0,VLOOKUP($A93,Economática!$A$3:$AI$823,10,FALSE)))","v":18844.93},{"$f":"IF($A93=\"\",\"\",IF(OR(VLOOKUP($A93,Economática!$A$3:$AI$823,11,FALSE)=0,VLOOKUP($A93,Economática!$A$3:$AI$823,11,FALSE)=\"-\"),1/0,VLOOKUP($A93,Economática!$A$3:$AI$823,11,FALSE)))","v":9523.75},{"$f":"IF($A93=\"\",\"\",IF(OR(VLOOKUP($A93,Economática!$A$3:$AI$823,12,FALSE)=0,VLOOKUP($A93,Economática!$A$3:$AI$823,12,FALSE)=\"-\"),1/0,VLOOKUP($A93,Economática!$A$3:$AI$823,12,FALSE)))","v":9893.3799999999992},{"$f":"IF($A93=\"\",\"\",IF(OR(VLOOKUP($A93,Economática!$A$3:$AI$823,13,FALSE)=0,VLOOKUP($A93,Economática!$A$3:$AI$823,13,FALSE)=\"-\"),1/0,VLOOKUP($A93,Economática!$A$3:$AI$823,13,FALSE)))","v":2383.86},{"$f":"IF($A93=\"\",\"\",IF(OR(VLOOKUP($A93,Economática!$A$3:$AI$823,14,FALSE)=0,VLOOKUP($A93,Economática!$A$3:$AI$823,14,FALSE)=\"-\"),1/0,VLOOKUP($A93,Economática!$A$3:$AI$823,14,FALSE)))","v":600.36},{"$f":"IF($A93=\"\",\"\",IF(OR(VLOOKUP($A93,Economática!$A$3:$AI$823,15,FALSE)=0,VLOOKUP($A93,Economática!$A$3:$AI$823,15,FALSE)=\"-\"),1/0,VLOOKUP($A93,Economática!$A$3:$AI$823,15,FALSE)))","v":1222.83},{"$f":"IF($A93=\"\",\"\",IF(OR(VLOOKUP($A93,Economática!$A$3:$AI$823,16,FALSE)=0,VLOOKUP($A93,Economática!$A$3:$AI$823,16,FALSE)=\"-\"),1/0,VLOOKUP($A93,Economática!$A$3:$AI$823,16,FALSE)))","v":1808.33},{"$f":"IF($A93=\"\",\"\",IF(OR(VLOOKUP($A93,Economática!$A$3:$AI$823,17,FALSE)=0,VLOOKUP($A93,Economática!$A$3:$AI$823,17,FALSE)=\"-\"),1/0,VLOOKUP($A93,Economática!$A$3:$AI$823,17,FALSE)))","v":2360.7800000000002},{"$f":"IF($A93=\"\",\"\",IF(OR(VLOOKUP($A93,Economática!$A$3:$AI$823,18,FALSE)=0,VLOOKUP($A93,Economática!$A$3:$AI$823,18,FALSE)=\"-\"),1/0,VLOOKUP($A93,Economática!$A$3:$AI$823,18,FALSE)))","v":2383.86},{"$f":"IF($A93=\"\",\"\",IF(OR(VLOOKUP($A93,Economática!$A$3:$AI$823,19,FALSE)=0,VLOOKUP($A93,Economática!$A$3:$AI$823,19,FALSE)=\"-\"),1/0,VLOOKUP($A93,Economática!$A$3:$AI$823,19,FALSE)))","v":2360.7800000000002},{"$f":"IF($A93=\"\",\"\",VLOOKUP($A93,Economática!$A$3:$AI$823,20,FALSE)/E93)","v":0.90169431967488634},7.1977763009136195,5.0293310720708435,40.146643058650106,{"$f":"IF($A93=\"\",\"\",IF(OR(VLOOKUP($A93,Economática!$A$3:$AI$823,21,FALSE)/100=0,VLOOKUP($A93,Economática!$A$3:$AI$823,21,FALSE)/100=\"-\"),1/0,VLOOKUP($A93,Economática!$A$3:$AI$823,21,FALSE)/100))","v":0.126914},{"$f":"IF($A93=\"\",\"\",IF(OR(VLOOKUP($A93,Economática!$A$3:$AI$823,22,FALSE)/100=0,VLOOKUP($A93,Economática!$A$3:$AI$823,22,FALSE)/100=\"-\"),1/0,VLOOKUP($A93,Economática!$A$3:$AI$823,22,FALSE)/100))","v":{"$error":"#VALUE!"}},{"$f":"IF($A93=\"\",\"\",IF(OR(VLOOKUP($A93,Economática!$A$3:$AI$823,23,FALSE)=0,VLOOKUP($A93,Economática!$A$3:$AI$823,23,FALSE)=\"-\"),1/0,VLOOKUP($A93,Economática!$A$3:$AI$823,23,FALSE)))","v":{"$error":"#DIV/0!"}},{"$f":"IF($A93=\"\",\"\",IF(OR(VLOOKUP($A93,Economática!$A$3:$AI$823,24,FALSE)=0,VLOOKUP($A93,Economática!$A$3:$AI$823,24,FALSE)=\"-\"),1/0,VLOOKUP($A93,Economática!$A$3:$AI$823,24,FALSE)))","v":{"$error":"#DIV/0!"}},{"$f":"IF($A93=\"\",\"\",IF(OR(VLOOKUP($A93,Economática!$A$3:$AI$823,25,FALSE)=0,VLOOKUP($A93,Economática!$A$3:$AI$823,25,FALSE)=\"-\"),1/0,VLOOKUP($A93,Economática!$A$3:$AI$823,25,FALSE)))","v":{"$error":"#DIV/0!"}},{"$f":"IF($A93=\"\",\"\",IF(ISERROR((F93+VLOOKUP($A93,Economática!$A$3:$AI$823,26,FALSE))/Y93),(F93+VLOOKUP($A93,Economática!$A$3:$AI$823,26,FALSE))/Y93,(F93+VLOOKUP($A93,Economática!$A$3:$AI$823,26,FALSE))/Y93))","v":{"$error":"#VALUE!"}},{"$f":"IF($A93=\"\",\"\",IF(OR(-VLOOKUP($A93,Economática!$A$3:$AI$823,27,FALSE)=0,-VLOOKUP($A93,Economática!$A$3:$AI$823,27,FALSE)=\"-\"),1/0,-VLOOKUP($A93,Economática!$A$3:$AI$823,27,FALSE)))","v":1201.48},2.8041431525488606E-2,{"$f":"IF($A93=\"\",\"\",IF(OR(VLOOKUP($A93,Economática!$A$3:$AI$823,28,FALSE)=0,VLOOKUP($A93,Economática!$A$3:$AI$823,28,FALSE)=\"-\"),1/0,VLOOKUP($A93,Economática!$A$3:$AI$823,28,FALSE)))","v":6},{"$f":"IF($A93=\"\",\"\",IF(OR(VLOOKUP($A93,Economática!$A$3:$AI$823,29,FALSE)=0,VLOOKUP($A93,Economática!$A$3:$AI$823,29,FALSE)=\"-\"),1/0,VLOOKUP($A93,Economática!$A$3:$AI$823,29,FALSE)))","v":109.8},{"$f":"IF($A93=\"\",\"\",IF(OR(VLOOKUP($A93,Economática!$A$3:$AI$823,30,FALSE)/E93=0,VLOOKUP($A93,Economática!$A$3:$AI$823,30,FALSE)/E93=\"-\",VLOOKUP($A93,Economática!$A$3:$AI$823,30,FALSE)/E93<33.33%,VLOOKUP($A93,Economática!$A$3:$AI$823,30,FALSE)/E93>100%),1/0,VLOOKUP($A93,Economática!$A$3:$AI$823,30,FALSE)/E93))","v":0.66126592721606015},"BPAC11",{"$f":"IF($A93=\"\",\"\",IF(OR(VLOOKUP($A93,Economática!$A$3:$AI$823,25,FALSE)=0,VLOOKUP($A93,Economática!$A$3:$AI$823,25,FALSE)=\"-\"),1/0,VLOOKUP($A93,Economática!$A$3:$AI$823,25,FALSE)))","v":{"$error":"#DIV/0!"}},{"$f":"CONCATENATE(Economática!B95,\" \",Economática!C95)","v":"Btgp Banco UNT"}]
[{"$f":"IF(Economática!AG96=\"\",\"\",Economática!AG96)","v":"B3SA3"},{"$f":"IF($A94=\"\",\"\",VLOOKUP(VLOOKUP($A94,Economática!$A$3:$AI$823,6,FALSE),Correção!$B$16:$C$36,2,FALSE))","v":"Finanças e Seguros"},{"$f":"IF(Economática!B96=\"\",\"\",Economática!B96)","v":"B3"},{"$f":"IF($A94=\"\",\"\",IF(OR(VLOOKUP($A94,Economática!$A$3:$AI$823,8,FALSE)=0,VLOOKUP($A94,Economática!$A$3:$AI$823,8,FALSE)=\"-\"),1/0,VLOOKUP($A94,Economática!$A$3:$AI$823,8,FALSE)))","v":32.119999999999997},{"$f":"IF(A94=\"\",\"\",IF(ISERROR(VLOOKUP(A94,Correção!$B$2:$G$13,9,FALSE)),VLOOKUP($A94,Economática!$A$3:$AI$823,9,FALSE),VLOOKUP(A94,Correção!$B$2:$G$13,9,FALSE)))","v":2044.2159999999999},{"$f":"IF($A94=\"\",\"\",Economática!G96)","v":65660.210000000006},{"$f":"IF($A94=\"\",\"\",IF(OR(VLOOKUP($A94,Economática!$A$3:$AI$823,10,FALSE)=0,VLOOKUP($A94,Economática!$A$3:$AI$823,10,FALSE)=\"-\"),1/0,VLOOKUP($A94,Economática!$A$3:$AI$823,10,FALSE)))","v":25032.97},{"$f":"IF($A94=\"\",\"\",IF(OR(VLOOKUP($A94,Economática!$A$3:$AI$823,11,FALSE)=0,VLOOKUP($A94,Economática!$A$3:$AI$823,11,FALSE)=\"-\"),1/0,VLOOKUP($A94,Economática!$A$3:$AI$823,11,FALSE)))","v":3673.6},{"$f":"IF($A94=\"\",\"\",IF(OR(VLOOKUP($A94,Economática!$A$3:$AI$823,12,FALSE)=0,VLOOKUP($A94,Economática!$A$3:$AI$823,12,FALSE)=\"-\"),1/0,VLOOKUP($A94,Economática!$A$3:$AI$823,12,FALSE)))","v":4831.92},{"$f":"IF($A94=\"\",\"\",IF(OR(VLOOKUP($A94,Economática!$A$3:$AI$823,13,FALSE)=0,VLOOKUP($A94,Economática!$A$3:$AI$823,13,FALSE)=\"-\"),1/0,VLOOKUP($A94,Economática!$A$3:$AI$823,13,FALSE)))","v":1296.24},{"$f":"IF($A94=\"\",\"\",IF(OR(VLOOKUP($A94,Economática!$A$3:$AI$823,14,FALSE)=0,VLOOKUP($A94,Economática!$A$3:$AI$823,14,FALSE)=\"-\"),1/0,VLOOKUP($A94,Economática!$A$3:$AI$823,14,FALSE)))","v":314.72000000000003},{"$f":"IF($A94=\"\",\"\",IF(OR(VLOOKUP($A94,Economática!$A$3:$AI$823,15,FALSE)=0,VLOOKUP($A94,Economática!$A$3:$AI$823,15,FALSE)=\"-\"),1/0,VLOOKUP($A94,Economática!$A$3:$AI$823,15,FALSE)))","v":1039.1600000000001},{"$f":"IF($A94=\"\",\"\",IF(OR(VLOOKUP($A94,Economática!$A$3:$AI$823,16,FALSE)=0,VLOOKUP($A94,Economática!$A$3:$AI$823,16,FALSE)=\"-\"),1/0,VLOOKUP($A94,Economática!$A$3:$AI$823,16,FALSE)))","v":1504.52},{"$f":"IF($A94=\"\",\"\",IF(OR(VLOOKUP($A94,Economática!$A$3:$AI$823,17,FALSE)=0,VLOOKUP($A94,Economática!$A$3:$AI$823,17,FALSE)=\"-\"),1/0,VLOOKUP($A94,Economática!$A$3:$AI$823,17,FALSE)))","v":2087.44},{"$f":"IF($A94=\"\",\"\",IF(OR(VLOOKUP($A94,Economática!$A$3:$AI$823,18,FALSE)=0,VLOOKUP($A94,Economática!$A$3:$AI$823,18,FALSE)=\"-\"),1/0,VLOOKUP($A94,Economática!$A$3:$AI$823,18,FALSE)))","v":1296.24},{"$f":"IF($A94=\"\",\"\",IF(OR(VLOOKUP($A94,Economática!$A$3:$AI$823,19,FALSE)=0,VLOOKUP($A94,Economática!$A$3:$AI$823,19,FALSE)=\"-\"),1/0,VLOOKUP($A94,Economática!$A$3:$AI$823,19,FALSE)))","v":2087.44},{"$f":"IF($A94=\"\",\"\",VLOOKUP($A94,Economática!$A$3:$AI$823,20,FALSE)/E94)","v":1.021144536585175},12.245755830107974,2.622949570905889,31.454900701337518,{"$f":"IF($A94=\"\",\"\",IF(OR(VLOOKUP($A94,Economática!$A$3:$AI$823,21,FALSE)/100=0,VLOOKUP($A94,Economática!$A$3:$AI$823,21,FALSE)/100=\"-\"),1/0,VLOOKUP($A94,Economática!$A$3:$AI$823,21,FALSE)/100))","v":8.5905000000000009E-2},{"$f":"IF($A94=\"\",\"\",IF(OR(VLOOKUP($A94,Economática!$A$3:$AI$823,22,FALSE)/100=0,VLOOKUP($A94,Economática!$A$3:$AI$823,22,FALSE)/100=\"-\"),1/0,VLOOKUP($A94,Economática!$A$3:$AI$823,22,FALSE)/100))","v":-9.3153E-2},{"$f":"IF($A94=\"\",\"\",IF(OR(VLOOKUP($A94,Economática!$A$3:$AI$823,23,FALSE)=0,VLOOKUP($A94,Economática!$A$3:$AI$823,23,FALSE)=\"-\"),1/0,VLOOKUP($A94,Economática!$A$3:$AI$823,23,FALSE)))","v":2199.8000000000002},{"$f":"IF($A94=\"\",\"\",IF(OR(VLOOKUP($A94,Economática!$A$3:$AI$823,24,FALSE)=0,VLOOKUP($A94,Economática!$A$3:$AI$823,24,FALSE)=\"-\"),1/0,VLOOKUP($A94,Economática!$A$3:$AI$823,24,FALSE)))","v":3345.2},{"$f":"IF($A94=\"\",\"\",IF(OR(VLOOKUP($A94,Economática!$A$3:$AI$823,25,FALSE)=0,VLOOKUP($A94,Economática!$A$3:$AI$823,25,FALSE)=\"-\"),1/0,VLOOKUP($A94,Economática!$A$3:$AI$823,25,FALSE)))","v":3345.2},{"$f":"IF($A94=\"\",\"\",IF(ISERROR((F94+VLOOKUP($A94,Economática!$A$3:$AI$823,26,FALSE))/Y94),(F94+VLOOKUP($A94,Economática!$A$3:$AI$823,26,FALSE))/Y94,(F94+VLOOKUP($A94,Economática!$A$3:$AI$823,26,FALSE))/Y94))","v":18.930783211766116},{"$f":"IF($A94=\"\",\"\",IF(OR(-VLOOKUP($A94,Economática!$A$3:$AI$823,27,FALSE)=0,-VLOOKUP($A94,Economática!$A$3:$AI$823,27,FALSE)=\"-\"),1/0,-VLOOKUP($A94,Economática!$A$3:$AI$823,27,FALSE)))","v":1528.86},2.3284421417476425E-2,{"$f":"IF($A94=\"\",\"\",IF(OR(VLOOKUP($A94,Economática!$A$3:$AI$823,28,FALSE)=0,VLOOKUP($A94,Economática!$A$3:$AI$823,28,FALSE)=\"-\"),1/0,VLOOKUP($A94,Economática!$A$3:$AI$823,28,FALSE)))","v":-1.5},{"$f":"IF($A94=\"\",\"\",IF(OR(VLOOKUP($A94,Economática!$A$3:$AI$823,29,FALSE)=0,VLOOKUP($A94,Economática!$A$3:$AI$823,29,FALSE)=\"-\"),1/0,VLOOKUP($A94,Economática!$A$3:$AI$823,29,FALSE)))","v":46.2},{"$f":"IF($A94=\"\",\"\",IF(OR(VLOOKUP($A94,Economática!$A$3:$AI$823,30,FALSE)/E94=0,VLOOKUP($A94,Economática!$A$3:$AI$823,30,FALSE)/E94=\"-\",VLOOKUP($A94,Economática!$A$3:$AI$823,30,FALSE)/E94<33.33%,VLOOKUP($A94,Economática!$A$3:$AI$823,30,FALSE)/E94>100%),1/0,VLOOKUP($A94,Economática!$A$3:$AI$823,30,FALSE)/E94))","v":{"$error":"#DIV/0!"}},"B3SA3",{"$f":"IF($A94=\"\",\"\",IF(OR(VLOOKUP($A94,Economática!$A$3:$AI$823,25,FALSE)=0,VLOOKUP($A94,Economática!$A$3:$AI$823,25,FALSE)=\"-\"),1/0,VLOOKUP($A94,Economática!$A$3:$AI$823,25,FALSE)))","v":3345.2},{"$f":"CONCATENATE(Economática!B96,\" \",Economática!C96)","v":"B3 ON"}]
[{"$f":"IF(Economática!AG97=\"\",\"\",Economática!AG97)","v":"BMIN4"},{"$f":"IF($A95=\"\",\"\",VLOOKUP(VLOOKUP($A95,Economática!$A$3:$AI$823,6,FALSE),Correção!$B$16:$C$36,2,FALSE))","v":"Finanças e Seguros"},{"$f":"IF(Economática!B97=\"\",\"\",Economática!B97)","v":"Merc Invest"},{"$f":"IF($A95=\"\",\"\",IF(OR(VLOOKUP($A95,Economática!$A$3:$AI$823,8,FALSE)=0,VLOOKUP($A95,Economática!$A$3:$AI$823,8,FALSE)=\"-\"),1/0,VLOOKUP($A95,Economática!$A$3:$AI$823,8,FALSE)))","v":18.46},{"$f":"IF(A95=\"\",\"\",IF(ISERROR(VLOOKUP(A95,Correção!$B$2:$G$13,9,FALSE)),VLOOKUP($A95,Economática!$A$3:$AI$823,9,FALSE),VLOOKUP(A95,Correção!$B$2:$G$13,9,FALSE)))","v":4.8250000000000002},{"$f":"IF($A95=\"\",\"\",Economática!G97)","v":93.39},{"$f":"IF($A95=\"\",\"\",IF(OR(VLOOKUP($A95,Economática!$A$3:$AI$823,10,FALSE)=0,VLOOKUP($A95,Economática!$A$3:$AI$823,10,FALSE)=\"-\"),1/0,VLOOKUP($A95,Economática!$A$3:$AI$823,10,FALSE)))","v":119.04},{"$f":"IF($A95=\"\",\"\",IF(OR(VLOOKUP($A95,Economática!$A$3:$AI$823,11,FALSE)=0,VLOOKUP($A95,Economática!$A$3:$AI$823,11,FALSE)=\"-\"),1/0,VLOOKUP($A95,Economática!$A$3:$AI$823,11,FALSE)))","v":19.09},{"$f":"IF($A95=\"\",\"\",IF(OR(VLOOKUP($A95,Economática!$A$3:$AI$823,12,FALSE)=0,VLOOKUP($A95,Economática!$A$3:$AI$823,12,FALSE)=\"-\"),1/0,VLOOKUP($A95,Economática!$A$3:$AI$823,12,FALSE)))","v":14.63},{"$f":"IF($A95=\"\",\"\",IF(OR(VLOOKUP($A95,Economática!$A$3:$AI$823,13,FALSE)=0,VLOOKUP($A95,Economática!$A$3:$AI$823,13,FALSE)=\"-\"),1/0,VLOOKUP($A95,Economática!$A$3:$AI$823,13,FALSE)))","v":-12.93},{"$f":"IF($A95=\"\",\"\",IF(OR(VLOOKUP($A95,Economática!$A$3:$AI$823,14,FALSE)=0,VLOOKUP($A95,Economática!$A$3:$AI$823,14,FALSE)=\"-\"),1/0,VLOOKUP($A95,Economática!$A$3:$AI$823,14,FALSE)))","v":1.1200000000000001},{"$f":"IF($A95=\"\",\"\",IF(OR(VLOOKUP($A95,Economática!$A$3:$AI$823,15,FALSE)=0,VLOOKUP($A95,Economática!$A$3:$AI$823,15,FALSE)=\"-\"),1/0,VLOOKUP($A95,Economática!$A$3:$AI$823,15,FALSE)))","v":2.4900000000000002},{"$f":"IF($A95=\"\",\"\",IF(OR(VLOOKUP($A95,Economática!$A$3:$AI$823,16,FALSE)=0,VLOOKUP($A95,Economática!$A$3:$AI$823,16,FALSE)=\"-\"),1/0,VLOOKUP($A95,Economática!$A$3:$AI$823,16,FALSE)))","v":3.24},{"$f":"IF($A95=\"\",\"\",IF(OR(VLOOKUP($A95,Economática!$A$3:$AI$823,17,FALSE)=0,VLOOKUP($A95,Economática!$A$3:$AI$823,17,FALSE)=\"-\"),1/0,VLOOKUP($A95,Economática!$A$3:$AI$823,17,FALSE)))","v":4.13},{"$f":"IF($A95=\"\",\"\",IF(OR(VLOOKUP($A95,Economática!$A$3:$AI$823,18,FALSE)=0,VLOOKUP($A95,Economática!$A$3:$AI$823,18,FALSE)=\"-\"),1/0,VLOOKUP($A95,Economática!$A$3:$AI$823,18,FALSE)))","v":-12.93},{"$f":"IF($A95=\"\",\"\",IF(OR(VLOOKUP($A95,Economática!$A$3:$AI$823,19,FALSE)=0,VLOOKUP($A95,Economática!$A$3:$AI$823,19,FALSE)=\"-\"),1/0,VLOOKUP($A95,Economática!$A$3:$AI$823,19,FALSE)))","v":4.13},{"$f":"IF($A95=\"\",\"\",VLOOKUP($A95,Economática!$A$3:$AI$823,20,FALSE)/E95)","v":0.8559585492227979},24.671502590673576,0.74823168682795704,21.566464891041164,{"$f":"IF($A95=\"\",\"\",IF(OR(VLOOKUP($A95,Economática!$A$3:$AI$823,21,FALSE)/100=0,VLOOKUP($A95,Economática!$A$3:$AI$823,21,FALSE)/100=\"-\"),1/0,VLOOKUP($A95,Economática!$A$3:$AI$823,21,FALSE)/100))","v":7.3479000000000003E-2},{"$f":"IF($A95=\"\",\"\",IF(OR(VLOOKUP($A95,Economática!$A$3:$AI$823,22,FALSE)/100=0,VLOOKUP($A95,Economática!$A$3:$AI$823,22,FALSE)/100=\"-\"),1/0,VLOOKUP($A95,Economática!$A$3:$AI$823,22,FALSE)/100))","v":{"$error":"#VALUE!"}},{"$f":"IF($A95=\"\",\"\",IF(OR(VLOOKUP($A95,Economática!$A$3:$AI$823,23,FALSE)=0,VLOOKUP($A95,Economática!$A$3:$AI$823,23,FALSE)=\"-\"),1/0,VLOOKUP($A95,Economática!$A$3:$AI$823,23,FALSE)))","v":{"$error":"#DIV/0!"}},{"$f":"IF($A95=\"\",\"\",IF(OR(VLOOKUP($A95,Economática!$A$3:$AI$823,24,FALSE)=0,VLOOKUP($A95,Economática!$A$3:$AI$823,24,FALSE)=\"-\"),1/0,VLOOKUP($A95,Economática!$A$3:$AI$823,24,FALSE)))","v":{"$error":"#DIV/0!"}},{"$f":"IF($A95=\"\",\"\",IF(OR(VLOOKUP($A95,Economática!$A$3:$AI$823,25,FALSE)=0,VLOOKUP($A95,Economática!$A$3:$AI$823,25,FALSE)=\"-\"),1/0,VLOOKUP($A95,Economática!$A$3:$AI$823,25,FALSE)))","v":{"$error":"#DIV/0!"}},{"$f":"IF($A95=\"\",\"\",IF(ISERROR((F95+VLOOKUP($A95,Economática!$A$3:$AI$823,26,FALSE))/Y95),(F95+VLOOKUP($A95,Economática!$A$3:$AI$823,26,FALSE))/Y95,(F95+VLOOKUP($A95,Economática!$A$3:$AI$823,26,FALSE))/Y95))","v":{"$error":"#VALUE!"}},{"$f":"IF($A95=\"\",\"\",IF(OR(-VLOOKUP($A95,Economática!$A$3:$AI$823,27,FALSE)=0,-VLOOKUP($A95,Economática!$A$3:$AI$823,27,FALSE)=\"-\"),1/0,-VLOOKUP($A95,Economática!$A$3:$AI$823,27,FALSE)))","v":0.7},7.4954491915622656E-3,{"$f":"IF($A95=\"\",\"\",IF(OR(VLOOKUP($A95,Economática!$A$3:$AI$823,28,FALSE)=0,VLOOKUP($A95,Economática!$A$3:$AI$823,28,FALSE)=\"-\"),1/0,VLOOKUP($A95,Economática!$A$3:$AI$823,28,FALSE)))","v":18.7},{"$f":"IF($A95=\"\",\"\",IF(OR(VLOOKUP($A95,Economática!$A$3:$AI$823,29,FALSE)=0,VLOOKUP($A95,Economática!$A$3:$AI$823,29,FALSE)=\"-\"),1/0,VLOOKUP($A95,Economática!$A$3:$AI$823,29,FALSE)))","v":15.9},{"$f":"IF($A95=\"\",\"\",IF(OR(VLOOKUP($A95,Economática!$A$3:$AI$823,30,FALSE)/E95=0,VLOOKUP($A95,Economática!$A$3:$AI$823,30,FALSE)/E95=\"-\",VLOOKUP($A95,Economática!$A$3:$AI$823,30,FALSE)/E95<33.33%,VLOOKUP($A95,Economática!$A$3:$AI$823,30,FALSE)/E95>100%),1/0,VLOOKUP($A95,Economática!$A$3:$AI$823,30,FALSE)/E95))","v":0.84974093264248696},"BMIN4",{"$f":"IF($A95=\"\",\"\",IF(OR(VLOOKUP($A95,Economática!$A$3:$AI$823,25,FALSE)=0,VLOOKUP($A95,Economática!$A$3:$AI$823,25,FALSE)=\"-\"),1/0,VLOOKUP($A95,Economática!$A$3:$AI$823,25,FALSE)))","v":{"$error":"#DIV/0!"}},{"$f":"CONCATENATE(Economática!B97,\" \",Economática!C97)","v":"Merc Invest PN"}]
[{"$f":"IF(Economática!AG98=\"\",\"\",Economática!AG98)","v":"BMEB4"},{"$f":"IF($A96=\"\",\"\",VLOOKUP(VLOOKUP($A96,Economática!$A$3:$AI$823,6,FALSE),Correção!$B$16:$C$36,2,FALSE))","v":"Finanças e Seguros"},{"$f":"IF(Economática!B98=\"\",\"\",Economática!B98)","v":"Merc Brasil"},{"$f":"IF($A96=\"\",\"\",IF(OR(VLOOKUP($A96,Economática!$A$3:$AI$823,8,FALSE)=0,VLOOKUP($A96,Economática!$A$3:$AI$823,8,FALSE)=\"-\"),1/0,VLOOKUP($A96,Economática!$A$3:$AI$823,8,FALSE)))","v":7.4},{"$f":"IF(A96=\"\",\"\",IF(ISERROR(VLOOKUP(A96,Correção!$B$2:$G$13,9,FALSE)),VLOOKUP($A96,Economática!$A$3:$AI$823,9,FALSE),VLOOKUP(A96,Correção!$B$2:$G$13,9,FALSE)))","v":52.415999999999997},{"$f":"IF($A96=\"\",\"\",Economática!G98)","v":392.77},{"$f":"IF($A96=\"\",\"\",IF(OR(VLOOKUP($A96,Economática!$A$3:$AI$823,10,FALSE)=0,VLOOKUP($A96,Economática!$A$3:$AI$823,10,FALSE)=\"-\"),1/0,VLOOKUP($A96,Economática!$A$3:$AI$823,10,FALSE)))","v":800.1},{"$f":"IF($A96=\"\",\"\",IF(OR(VLOOKUP($A96,Economática!$A$3:$AI$823,11,FALSE)=0,VLOOKUP($A96,Economática!$A$3:$AI$823,11,FALSE)=\"-\"),1/0,VLOOKUP($A96,Economática!$A$3:$AI$823,11,FALSE)))","v":2823.44},{"$f":"IF($A96=\"\",\"\",IF(OR(VLOOKUP($A96,Economática!$A$3:$AI$823,12,FALSE)=0,VLOOKUP($A96,Economática!$A$3:$AI$823,12,FALSE)=\"-\"),1/0,VLOOKUP($A96,Economática!$A$3:$AI$823,12,FALSE)))","v":2353.67},{"$f":"IF($A96=\"\",\"\",IF(OR(VLOOKUP($A96,Economática!$A$3:$AI$823,13,FALSE)=0,VLOOKUP($A96,Economática!$A$3:$AI$823,13,FALSE)=\"-\"),1/0,VLOOKUP($A96,Economática!$A$3:$AI$823,13,FALSE)))","v":26.24},{"$f":"IF($A96=\"\",\"\",IF(OR(VLOOKUP($A96,Economática!$A$3:$AI$823,14,FALSE)=0,VLOOKUP($A96,Economática!$A$3:$AI$823,14,FALSE)=\"-\"),1/0,VLOOKUP($A96,Economática!$A$3:$AI$823,14,FALSE)))","v":19.68},{"$f":"IF($A96=\"\",\"\",IF(OR(VLOOKUP($A96,Economática!$A$3:$AI$823,15,FALSE)=0,VLOOKUP($A96,Economática!$A$3:$AI$823,15,FALSE)=\"-\"),1/0,VLOOKUP($A96,Economática!$A$3:$AI$823,15,FALSE)))","v":27.52},{"$f":"IF($A96=\"\",\"\",IF(OR(VLOOKUP($A96,Economática!$A$3:$AI$823,16,FALSE)=0,VLOOKUP($A96,Economática!$A$3:$AI$823,16,FALSE)=\"-\"),1/0,VLOOKUP($A96,Economática!$A$3:$AI$823,16,FALSE)))","v":39.39},{"$f":"IF($A96=\"\",\"\",IF(OR(VLOOKUP($A96,Economática!$A$3:$AI$823,17,FALSE)=0,VLOOKUP($A96,Economática!$A$3:$AI$823,17,FALSE)=\"-\"),1/0,VLOOKUP($A96,Economática!$A$3:$AI$823,17,FALSE)))","v":53.4},{"$f":"IF($A96=\"\",\"\",IF(OR(VLOOKUP($A96,Economática!$A$3:$AI$823,18,FALSE)=0,VLOOKUP($A96,Economática!$A$3:$AI$823,18,FALSE)=\"-\"),1/0,VLOOKUP($A96,Economática!$A$3:$AI$823,18,FALSE)))","v":26.24},{"$f":"IF($A96=\"\",\"\",IF(OR(VLOOKUP($A96,Economática!$A$3:$AI$823,19,FALSE)=0,VLOOKUP($A96,Economática!$A$3:$AI$823,19,FALSE)=\"-\"),1/0,VLOOKUP($A96,Economática!$A$3:$AI$823,19,FALSE)))","v":53.4},{"$f":"IF($A96=\"\",\"\",VLOOKUP($A96,Economática!$A$3:$AI$823,20,FALSE)/E96)","v":1.0187728937728937},15.264423076923078,0.4847874015748031,7.2636404494382028,{"$f":"IF($A96=\"\",\"\",IF(OR(VLOOKUP($A96,Economática!$A$3:$AI$823,21,FALSE)/100=0,VLOOKUP($A96,Economática!$A$3:$AI$823,21,FALSE)/100=\"-\"),1/0,VLOOKUP($A96,Economática!$A$3:$AI$823,21,FALSE)/100))","v":7.1506E-2},{"$f":"IF($A96=\"\",\"\",IF(OR(VLOOKUP($A96,Economática!$A$3:$AI$823,22,FALSE)/100=0,VLOOKUP($A96,Economática!$A$3:$AI$823,22,FALSE)/100=\"-\"),1/0,VLOOKUP($A96,Economática!$A$3:$AI$823,22,FALSE)/100))","v":{"$error":"#VALUE!"}},{"$f":"IF($A96=\"\",\"\",IF(OR(VLOOKUP($A96,Economática!$A$3:$AI$823,23,FALSE)=0,VLOOKUP($A96,Economática!$A$3:$AI$823,23,FALSE)=\"-\"),1/0,VLOOKUP($A96,Economática!$A$3:$AI$823,23,FALSE)))","v":{"$error":"#DIV/0!"}},{"$f":"IF($A96=\"\",\"\",IF(OR(VLOOKUP($A96,Economática!$A$3:$AI$823,24,FALSE)=0,VLOOKUP($A96,Economática!$A$3:$AI$823,24,FALSE)=\"-\"),1/0,VLOOKUP($A96,Economática!$A$3:$AI$823,24,FALSE)))","v":{"$error":"#DIV/0!"}},{"$f":"IF($A96=\"\",\"\",IF(OR(VLOOKUP($A96,Economática!$A$3:$AI$823,25,FALSE)=0,VLOOKUP($A96,Economática!$A$3:$AI$823,25,FALSE)=\"-\"),1/0,VLOOKUP($A96,Economática!$A$3:$AI$823,25,FALSE)))","v":{"$error":"#DIV/0!"}},{"$f":"IF($A96=\"\",\"\",IF(ISERROR((F96+VLOOKUP($A96,Economática!$A$3:$AI$823,26,FALSE))/Y96),(F96+VLOOKUP($A96,Economática!$A$3:$AI$823,26,FALSE))/Y96,(F96+VLOOKUP($A96,Economática!$A$3:$AI$823,26,FALSE))/Y96))","v":{"$error":"#VALUE!"}},{"$f":"IF($A96=\"\",\"\",IF(OR(-VLOOKUP($A96,Economática!$A$3:$AI$823,27,FALSE)=0,-VLOOKUP($A96,Economática!$A$3:$AI$823,27,FALSE)=\"-\"),1/0,-VLOOKUP($A96,Economática!$A$3:$AI$823,27,FALSE)))","v":{"$error":"#VALUE!"}},{"$error":"#VALUE!"},{"$f":"IF($A96=\"\",\"\",IF(OR(VLOOKUP($A96,Economática!$A$3:$AI$823,28,FALSE)=0,VLOOKUP($A96,Economática!$A$3:$AI$823,28,FALSE)=\"-\"),1/0,VLOOKUP($A96,Economática!$A$3:$AI$823,28,FALSE)))","v":-0.1},{"$f":"IF($A96=\"\",\"\",IF(OR(VLOOKUP($A96,Economática!$A$3:$AI$823,29,FALSE)=0,VLOOKUP($A96,Economática!$A$3:$AI$823,29,FALSE)=\"-\"),1/0,VLOOKUP($A96,Economática!$A$3:$AI$823,29,FALSE)))","v":80},{"$f":"IF($A96=\"\",\"\",IF(OR(VLOOKUP($A96,Economática!$A$3:$AI$823,30,FALSE)/E96=0,VLOOKUP($A96,Economática!$A$3:$AI$823,30,FALSE)/E96=\"-\",VLOOKUP($A96,Economática!$A$3:$AI$823,30,FALSE)/E96<33.33%,VLOOKUP($A96,Economática!$A$3:$AI$823,30,FALSE)/E96>100%),1/0,VLOOKUP($A96,Economática!$A$3:$AI$823,30,FALSE)/E96))","v":0.62194749694749696},"BMEB4",{"$f":"IF($A96=\"\",\"\",IF(OR(VLOOKUP($A96,Economática!$A$3:$AI$823,25,FALSE)=0,VLOOKUP($A96,Economática!$A$3:$AI$823,25,FALSE)=\"-\"),1/0,VLOOKUP($A96,Economática!$A$3:$AI$823,25,FALSE)))","v":{"$error":"#DIV/0!"}},{"$f":"CONCATENATE(Economática!B98,\" \",Economática!C98)","v":"Merc Brasil PN"}]
[{"$f":"IF(Economática!AG99=\"\",\"\",Economática!AG99)","v":"BPAN4"},{"$f":"IF($A97=\"\",\"\",VLOOKUP(VLOOKUP($A97,Economática!$A$3:$AI$823,6,FALSE),Correção!$B$16:$C$36,2,FALSE))","v":"Finanças e Seguros"},{"$f":"IF(Economática!B99=\"\",\"\",Economática!B99)","v":"Banco Pan"},{"$f":"IF($A97=\"\",\"\",IF(OR(VLOOKUP($A97,Economática!$A$3:$AI$823,8,FALSE)=0,VLOOKUP($A97,Economática!$A$3:$AI$823,8,FALSE)=\"-\"),1/0,VLOOKUP($A97,Economática!$A$3:$AI$823,8,FALSE)))","v":3.26},{"$f":"IF(A97=\"\",\"\",IF(ISERROR(VLOOKUP(A97,Correção!$B$2:$G$13,9,FALSE)),VLOOKUP($A97,Economática!$A$3:$AI$823,9,FALSE),VLOOKUP(A97,Correção!$B$2:$G$13,9,FALSE)))","v":1141.806},{"$f":"IF($A97=\"\",\"\",Economática!G99)","v":3722.29},{"$f":"IF($A97=\"\",\"\",IF(OR(VLOOKUP($A97,Economática!$A$3:$AI$823,10,FALSE)=0,VLOOKUP($A97,Economática!$A$3:$AI$823,10,FALSE)=\"-\"),1/0,VLOOKUP($A97,Economática!$A$3:$AI$823,10,FALSE)))","v":4095.92},{"$f":"IF($A97=\"\",\"\",IF(OR(VLOOKUP($A97,Economática!$A$3:$AI$823,11,FALSE)=0,VLOOKUP($A97,Economática!$A$3:$AI$823,11,FALSE)=\"-\"),1/0,VLOOKUP($A97,Economática!$A$3:$AI$823,11,FALSE)))","v":7780.35},{"$f":"IF($A97=\"\",\"\",IF(OR(VLOOKUP($A97,Economática!$A$3:$AI$823,12,FALSE)=0,VLOOKUP($A97,Economática!$A$3:$AI$823,12,FALSE)=\"-\"),1/0,VLOOKUP($A97,Economática!$A$3:$AI$823,12,FALSE)))","v":7099.37},{"$f":"IF($A97=\"\",\"\",IF(OR(VLOOKUP($A97,Economática!$A$3:$AI$823,13,FALSE)=0,VLOOKUP($A97,Economática!$A$3:$AI$823,13,FALSE)=\"-\"),1/0,VLOOKUP($A97,Economática!$A$3:$AI$823,13,FALSE)))","v":212.61},{"$f":"IF($A97=\"\",\"\",IF(OR(VLOOKUP($A97,Economática!$A$3:$AI$823,14,FALSE)=0,VLOOKUP($A97,Economática!$A$3:$AI$823,14,FALSE)=\"-\"),1/0,VLOOKUP($A97,Economática!$A$3:$AI$823,14,FALSE)))","v":56.55},{"$f":"IF($A97=\"\",\"\",IF(OR(VLOOKUP($A97,Economática!$A$3:$AI$823,15,FALSE)=0,VLOOKUP($A97,Economática!$A$3:$AI$823,15,FALSE)=\"-\"),1/0,VLOOKUP($A97,Economática!$A$3:$AI$823,15,FALSE)))","v":98.76},{"$f":"IF($A97=\"\",\"\",IF(OR(VLOOKUP($A97,Economática!$A$3:$AI$823,16,FALSE)=0,VLOOKUP($A97,Economática!$A$3:$AI$823,16,FALSE)=\"-\"),1/0,VLOOKUP($A97,Economática!$A$3:$AI$823,16,FALSE)))","v":147.88999999999999},{"$f":"IF($A97=\"\",\"\",IF(OR(VLOOKUP($A97,Economática!$A$3:$AI$823,17,FALSE)=0,VLOOKUP($A97,Economática!$A$3:$AI$823,17,FALSE)=\"-\"),1/0,VLOOKUP($A97,Economática!$A$3:$AI$823,17,FALSE)))","v":221.52},{"$f":"IF($A97=\"\",\"\",IF(OR(VLOOKUP($A97,Economática!$A$3:$AI$823,18,FALSE)=0,VLOOKUP($A97,Economática!$A$3:$AI$823,18,FALSE)=\"-\"),1/0,VLOOKUP($A97,Economática!$A$3:$AI$823,18,FALSE)))","v":212.61},{"$f":"IF($A97=\"\",\"\",IF(OR(VLOOKUP($A97,Economática!$A$3:$AI$823,19,FALSE)=0,VLOOKUP($A97,Economática!$A$3:$AI$823,19,FALSE)=\"-\"),1/0,VLOOKUP($A97,Economática!$A$3:$AI$823,19,FALSE)))","v":221.52},{"$f":"IF($A97=\"\",\"\",VLOOKUP($A97,Economática!$A$3:$AI$823,20,FALSE)/E97)","v":0.19400843926201125},3.5872293541985241,0.90877936092501799,16.803392741061753,{"$f":"IF($A97=\"\",\"\",IF(OR(VLOOKUP($A97,Economática!$A$3:$AI$823,21,FALSE)/100=0,VLOOKUP($A97,Economática!$A$3:$AI$823,21,FALSE)/100=\"-\"),1/0,VLOOKUP($A97,Economática!$A$3:$AI$823,21,FALSE)/100))","v":6.2295999999999997E-2},{"$f":"IF($A97=\"\",\"\",IF(OR(VLOOKUP($A97,Economática!$A$3:$AI$823,22,FALSE)/100=0,VLOOKUP($A97,Economática!$A$3:$AI$823,22,FALSE)/100=\"-\"),1/0,VLOOKUP($A97,Economática!$A$3:$AI$823,22,FALSE)/100))","v":{"$error":"#VALUE!"}},{"$f":"IF($A97=\"\",\"\",IF(OR(VLOOKUP($A97,Economática!$A$3:$AI$823,23,FALSE)=0,VLOOKUP($A97,Economática!$A$3:$AI$823,23,FALSE)=\"-\"),1/0,VLOOKUP($A97,Economática!$A$3:$AI$823,23,FALSE)))","v":{"$error":"#DIV/0!"}},{"$f":"IF($A97=\"\",\"\",IF(OR(VLOOKUP($A97,Economática!$A$3:$AI$823,24,FALSE)=0,VLOOKUP($A97,Economática!$A$3:$AI$823,24,FALSE)=\"-\"),1/0,VLOOKUP($A97,Economática!$A$3:$AI$823,24,FALSE)))","v":{"$error":"#DIV/0!"}},{"$f":"IF($A97=\"\",\"\",IF(OR(VLOOKUP($A97,Economática!$A$3:$AI$823,25,FALSE)=0,VLOOKUP($A97,Economática!$A$3:$AI$823,25,FALSE)=\"-\"),1/0,VLOOKUP($A97,Economática!$A$3:$AI$823,25,FALSE)))","v":{"$error":"#DIV/0!"}},{"$f":"IF($A97=\"\",\"\",IF(ISERROR((F97+VLOOKUP($A97,Economática!$A$3:$AI$823,26,FALSE))/Y97),(F97+VLOOKUP($A97,Economática!$A$3:$AI$823,26,FALSE))/Y97,(F97+VLOOKUP($A97,Economática!$A$3:$AI$823,26,FALSE))/Y97))","v":{"$error":"#VALUE!"}},{"$f":"IF($A97=\"\",\"\",IF(OR(-VLOOKUP($A97,Economática!$A$3:$AI$823,27,FALSE)=0,-VLOOKUP($A97,Economática!$A$3:$AI$823,27,FALSE)=\"-\"),1/0,-VLOOKUP($A97,Economática!$A$3:$AI$823,27,FALSE)))","v":{"$error":"#VALUE!"}},{"$error":"#VALUE!"},{"$f":"IF($A97=\"\",\"\",IF(OR(VLOOKUP($A97,Economática!$A$3:$AI$823,28,FALSE)=0,VLOOKUP($A97,Economática!$A$3:$AI$823,28,FALSE)=\"-\"),1/0,VLOOKUP($A97,Economática!$A$3:$AI$823,28,FALSE)))","v":8.6999999999999993},{"$f":"IF($A97=\"\",\"\",IF(OR(VLOOKUP($A97,Economática!$A$3:$AI$823,29,FALSE)=0,VLOOKUP($A97,Economática!$A$3:$AI$823,29,FALSE)=\"-\"),1/0,VLOOKUP($A97,Economática!$A$3:$AI$823,29,FALSE)))","v":80.099999999999994},{"$f":"IF($A97=\"\",\"\",IF(OR(VLOOKUP($A97,Economática!$A$3:$AI$823,30,FALSE)/E97=0,VLOOKUP($A97,Economática!$A$3:$AI$823,30,FALSE)/E97=\"-\",VLOOKUP($A97,Economática!$A$3:$AI$823,30,FALSE)/E97<33.33%,VLOOKUP($A97,Economática!$A$3:$AI$823,30,FALSE)/E97>100%),1/0,VLOOKUP($A97,Economática!$A$3:$AI$823,30,FALSE)/E97))","v":0.57592971135201598},"BPAN4",{"$f":"IF($A97=\"\",\"\",IF(OR(VLOOKUP($A97,Economática!$A$3:$AI$823,25,FALSE)=0,VLOOKUP($A97,Economática!$A$3:$AI$823,25,FALSE)=\"-\"),1/0,VLOOKUP($A97,Economática!$A$3:$AI$823,25,FALSE)))","v":{"$error":"#DIV/0!"}},{"$f":"CONCATENATE(Economática!B99,\" \",Economática!C99)","v":"Banco Pan PN"}]
[{"$f":"IF(Economática!AG100=\"\",\"\",Economática!AG100)","v":"BAZA3"},{"$f":"IF($A98=\"\",\"\",VLOOKUP(VLOOKUP($A98,Economática!$A$3:$AI$823,6,FALSE),Correção!$B$16:$C$36,2,FALSE))","v":"Finanças e Seguros"},{"$f":"IF(Economática!B100=\"\",\"\",Economática!B100)","v":"Amazonia"},{"$f":"IF($A98=\"\",\"\",IF(OR(VLOOKUP($A98,Economática!$A$3:$AI$823,8,FALSE)=0,VLOOKUP($A98,Economática!$A$3:$AI$823,8,FALSE)=\"-\"),1/0,VLOOKUP($A98,Economática!$A$3:$AI$823,8,FALSE)))","v":27.3},{"$f":"IF(A98=\"\",\"\",IF(ISERROR(VLOOKUP(A98,Correção!$B$2:$G$13,9,FALSE)),VLOOKUP($A98,Economática!$A$3:$AI$823,9,FALSE),VLOOKUP(A98,Correção!$B$2:$G$13,9,FALSE)))","v":29.646000000000001},{"$f":"IF($A98=\"\",\"\",Economática!G100)","v":809.33},{"$f":"IF($A98=\"\",\"\",IF(OR(VLOOKUP($A98,Economática!$A$3:$AI$823,10,FALSE)=0,VLOOKUP($A98,Economática!$A$3:$AI$823,10,FALSE)=\"-\"),1/0,VLOOKUP($A98,Economática!$A$3:$AI$823,10,FALSE)))","v":1938.61},{"$f":"IF($A98=\"\",\"\",IF(OR(VLOOKUP($A98,Economática!$A$3:$AI$823,11,FALSE)=0,VLOOKUP($A98,Economática!$A$3:$AI$823,11,FALSE)=\"-\"),1/0,VLOOKUP($A98,Economática!$A$3:$AI$823,11,FALSE)))","v":1421.05},{"$f":"IF($A98=\"\",\"\",IF(OR(VLOOKUP($A98,Economática!$A$3:$AI$823,12,FALSE)=0,VLOOKUP($A98,Economática!$A$3:$AI$823,12,FALSE)=\"-\"),1/0,VLOOKUP($A98,Economática!$A$3:$AI$823,12,FALSE)))","v":1303.19},{"$f":"IF($A98=\"\",\"\",IF(OR(VLOOKUP($A98,Economática!$A$3:$AI$823,13,FALSE)=0,VLOOKUP($A98,Economática!$A$3:$AI$823,13,FALSE)=\"-\"),1/0,VLOOKUP($A98,Economática!$A$3:$AI$823,13,FALSE)))","v":64.510000000000005},{"$f":"IF($A98=\"\",\"\",IF(OR(VLOOKUP($A98,Economática!$A$3:$AI$823,14,FALSE)=0,VLOOKUP($A98,Economática!$A$3:$AI$823,14,FALSE)=\"-\"),1/0,VLOOKUP($A98,Economática!$A$3:$AI$823,14,FALSE)))","v":-56.99},{"$f":"IF($A98=\"\",\"\",IF(OR(VLOOKUP($A98,Economática!$A$3:$AI$823,15,FALSE)=0,VLOOKUP($A98,Economática!$A$3:$AI$823,15,FALSE)=\"-\"),1/0,VLOOKUP($A98,Economática!$A$3:$AI$823,15,FALSE)))","v":-26.21},{"$f":"IF($A98=\"\",\"\",IF(OR(VLOOKUP($A98,Economática!$A$3:$AI$823,16,FALSE)=0,VLOOKUP($A98,Economática!$A$3:$AI$823,16,FALSE)=\"-\"),1/0,VLOOKUP($A98,Economática!$A$3:$AI$823,16,FALSE)))","v":-13.5},{"$f":"IF($A98=\"\",\"\",IF(OR(VLOOKUP($A98,Economática!$A$3:$AI$823,17,FALSE)=0,VLOOKUP($A98,Economática!$A$3:$AI$823,17,FALSE)=\"-\"),1/0,VLOOKUP($A98,Economática!$A$3:$AI$823,17,FALSE)))","v":109.08},{"$f":"IF($A98=\"\",\"\",IF(OR(VLOOKUP($A98,Economática!$A$3:$AI$823,18,FALSE)=0,VLOOKUP($A98,Economática!$A$3:$AI$823,18,FALSE)=\"-\"),1/0,VLOOKUP($A98,Economática!$A$3:$AI$823,18,FALSE)))","v":64.510000000000005},{"$f":"IF($A98=\"\",\"\",IF(OR(VLOOKUP($A98,Economática!$A$3:$AI$823,19,FALSE)=0,VLOOKUP($A98,Economática!$A$3:$AI$823,19,FALSE)=\"-\"),1/0,VLOOKUP($A98,Economática!$A$3:$AI$823,19,FALSE)))","v":109.08},{"$f":"IF($A98=\"\",\"\",VLOOKUP($A98,Economática!$A$3:$AI$823,20,FALSE)/E98)","v":3.6794171220400727},65.391958442960259,0.41748252613986314,7.4196534653465349,{"$f":"IF($A98=\"\",\"\",IF(OR(VLOOKUP($A98,Economática!$A$3:$AI$823,21,FALSE)/100=0,VLOOKUP($A98,Economática!$A$3:$AI$823,21,FALSE)/100=\"-\"),1/0,VLOOKUP($A98,Economática!$A$3:$AI$823,21,FALSE)/100))","v":5.7857000000000006E-2},{"$f":"IF($A98=\"\",\"\",IF(OR(VLOOKUP($A98,Economática!$A$3:$AI$823,22,FALSE)/100=0,VLOOKUP($A98,Economática!$A$3:$AI$823,22,FALSE)/100=\"-\"),1/0,VLOOKUP($A98,Economática!$A$3:$AI$823,22,FALSE)/100))","v":{"$error":"#VALUE!"}},{"$f":"IF($A98=\"\",\"\",IF(OR(VLOOKUP($A98,Economática!$A$3:$AI$823,23,FALSE)=0,VLOOKUP($A98,Economática!$A$3:$AI$823,23,FALSE)=\"-\"),1/0,VLOOKUP($A98,Economática!$A$3:$AI$823,23,FALSE)))","v":{"$error":"#DIV/0!"}},{"$f":"IF($A98=\"\",\"\",IF(OR(VLOOKUP($A98,Economática!$A$3:$AI$823,24,FALSE)=0,VLOOKUP($A98,Economática!$A$3:$AI$823,24,FALSE)=\"-\"),1/0,VLOOKUP($A98,Economática!$A$3:$AI$823,24,FALSE)))","v":{"$error":"#DIV/0!"}},{"$f":"IF($A98=\"\",\"\",IF(OR(VLOOKUP($A98,Economática!$A$3:$AI$823,25,FALSE)=0,VLOOKUP($A98,Economática!$A$3:$AI$823,25,FALSE)=\"-\"),1/0,VLOOKUP($A98,Economática!$A$3:$AI$823,25,FALSE)))","v":{"$error":"#DIV/0!"}},{"$f":"IF($A98=\"\",\"\",IF(ISERROR((F98+VLOOKUP($A98,Economática!$A$3:$AI$823,26,FALSE))/Y98),(F98+VLOOKUP($A98,Economática!$A$3:$AI$823,26,FALSE))/Y98,(F98+VLOOKUP($A98,Economática!$A$3:$AI$823,26,FALSE))/Y98))","v":{"$error":"#VALUE!"}},{"$f":"IF($A98=\"\",\"\",IF(OR(-VLOOKUP($A98,Economática!$A$3:$AI$823,27,FALSE)=0,-VLOOKUP($A98,Economática!$A$3:$AI$823,27,FALSE)=\"-\"),1/0,-VLOOKUP($A98,Economática!$A$3:$AI$823,27,FALSE)))","v":19.05},2.3537988212472046E-2,{"$f":"IF($A98=\"\",\"\",IF(OR(VLOOKUP($A98,Economática!$A$3:$AI$823,28,FALSE)=0,VLOOKUP($A98,Economática!$A$3:$AI$823,28,FALSE)=\"-\"),1/0,VLOOKUP($A98,Economática!$A$3:$AI$823,28,FALSE)))","v":4.2},{"$f":"IF($A98=\"\",\"\",IF(OR(VLOOKUP($A98,Economática!$A$3:$AI$823,29,FALSE)=0,VLOOKUP($A98,Economática!$A$3:$AI$823,29,FALSE)=\"-\"),1/0,VLOOKUP($A98,Economática!$A$3:$AI$823,29,FALSE)))","v":12},{"$f":"IF($A98=\"\",\"\",IF(OR(VLOOKUP($A98,Economática!$A$3:$AI$823,30,FALSE)/E98=0,VLOOKUP($A98,Economática!$A$3:$AI$823,30,FALSE)/E98=\"-\",VLOOKUP($A98,Economática!$A$3:$AI$823,30,FALSE)/E98<33.33%,VLOOKUP($A98,Economática!$A$3:$AI$823,30,FALSE)/E98>100%),1/0,VLOOKUP($A98,Economática!$A$3:$AI$823,30,FALSE)/E98))","v":0.9984483572826014},"BAZA3",{"$f":"IF($A98=\"\",\"\",IF(OR(VLOOKUP($A98,Economática!$A$3:$AI$823,25,FALSE)=0,VLOOKUP($A98,Economática!$A$3:$AI$823,25,FALSE)=\"-\"),1/0,VLOOKUP($A98,Economática!$A$3:$AI$823,25,FALSE)))","v":{"$error":"#DIV/0!"}},{"$f":"CONCATENATE(Economática!B100,\" \",Economática!C100)","v":"Amazonia ON"}]
[{"$f":"IF(Economática!AG101=\"\",\"\",Economática!AG101)","v":"PINE4"},{"$f":"IF($A99=\"\",\"\",VLOOKUP(VLOOKUP($A99,Economática!$A$3:$AI$823,6,FALSE),Correção!$B$16:$C$36,2,FALSE))","v":"Finanças e Seguros"},{"$f":"IF(Economática!B101=\"\",\"\",Economática!B101)","v":"Pine"},{"$f":"IF($A99=\"\",\"\",IF(OR(VLOOKUP($A99,Economática!$A$3:$AI$823,8,FALSE)=0,VLOOKUP($A99,Economática!$A$3:$AI$823,8,FALSE)=\"-\"),1/0,VLOOKUP($A99,Economática!$A$3:$AI$823,8,FALSE)))","v":2.34},{"$f":"IF(A99=\"\",\"\",IF(ISERROR(VLOOKUP(A99,Correção!$B$2:$G$13,9,FALSE)),VLOOKUP($A99,Economática!$A$3:$AI$823,9,FALSE),VLOOKUP(A99,Correção!$B$2:$G$13,9,FALSE)))","v":121.16800000000001},{"$f":"IF($A99=\"\",\"\",Economática!G101)","v":283.52999999999997},{"$f":"IF($A99=\"\",\"\",IF(OR(VLOOKUP($A99,Economática!$A$3:$AI$823,10,FALSE)=0,VLOOKUP($A99,Economática!$A$3:$AI$823,10,FALSE)=\"-\"),1/0,VLOOKUP($A99,Economática!$A$3:$AI$823,10,FALSE)))","v":868.74},{"$f":"IF($A99=\"\",\"\",IF(OR(VLOOKUP($A99,Economática!$A$3:$AI$823,11,FALSE)=0,VLOOKUP($A99,Economática!$A$3:$AI$823,11,FALSE)=\"-\"),1/0,VLOOKUP($A99,Economática!$A$3:$AI$823,11,FALSE)))","v":731.4},{"$f":"IF($A99=\"\",\"\",IF(OR(VLOOKUP($A99,Economática!$A$3:$AI$823,12,FALSE)=0,VLOOKUP($A99,Economática!$A$3:$AI$823,12,FALSE)=\"-\"),1/0,VLOOKUP($A99,Economática!$A$3:$AI$823,12,FALSE)))","v":605.70000000000005},{"$f":"IF($A99=\"\",\"\",IF(OR(VLOOKUP($A99,Economática!$A$3:$AI$823,13,FALSE)=0,VLOOKUP($A99,Economática!$A$3:$AI$823,13,FALSE)=\"-\"),1/0,VLOOKUP($A99,Economática!$A$3:$AI$823,13,FALSE)))","v":-262.83},{"$f":"IF($A99=\"\",\"\",IF(OR(VLOOKUP($A99,Economática!$A$3:$AI$823,14,FALSE)=0,VLOOKUP($A99,Economática!$A$3:$AI$823,14,FALSE)=\"-\"),1/0,VLOOKUP($A99,Economática!$A$3:$AI$823,14,FALSE)))","v":5.2},{"$f":"IF($A99=\"\",\"\",IF(OR(VLOOKUP($A99,Economática!$A$3:$AI$823,15,FALSE)=0,VLOOKUP($A99,Economática!$A$3:$AI$823,15,FALSE)=\"-\"),1/0,VLOOKUP($A99,Economática!$A$3:$AI$823,15,FALSE)))","v":10.46},{"$f":"IF($A99=\"\",\"\",IF(OR(VLOOKUP($A99,Economática!$A$3:$AI$823,16,FALSE)=0,VLOOKUP($A99,Economática!$A$3:$AI$823,16,FALSE)=\"-\"),1/0,VLOOKUP($A99,Economática!$A$3:$AI$823,16,FALSE)))","v":15.3},{"$f":"IF($A99=\"\",\"\",IF(OR(VLOOKUP($A99,Economática!$A$3:$AI$823,17,FALSE)=0,VLOOKUP($A99,Economática!$A$3:$AI$823,17,FALSE)=\"-\"),1/0,VLOOKUP($A99,Economática!$A$3:$AI$823,17,FALSE)))","v":-59.71},{"$f":"IF($A99=\"\",\"\",IF(OR(VLOOKUP($A99,Economática!$A$3:$AI$823,18,FALSE)=0,VLOOKUP($A99,Economática!$A$3:$AI$823,18,FALSE)=\"-\"),1/0,VLOOKUP($A99,Economática!$A$3:$AI$823,18,FALSE)))","v":-262.83},{"$f":"IF($A99=\"\",\"\",IF(OR(VLOOKUP($A99,Economática!$A$3:$AI$823,19,FALSE)=0,VLOOKUP($A99,Economática!$A$3:$AI$823,19,FALSE)=\"-\"),1/0,VLOOKUP($A99,Economática!$A$3:$AI$823,19,FALSE)))","v":-59.71},{"$f":"IF($A99=\"\",\"\",VLOOKUP($A99,Economática!$A$3:$AI$823,20,FALSE)/E99)","v":-0.49278687442228969},7.1697147761785285,0.32637281580219629,{"$error":"#DIV/0!"},{"$f":"IF($A99=\"\",\"\",IF(OR(VLOOKUP($A99,Economática!$A$3:$AI$823,21,FALSE)/100=0,VLOOKUP($A99,Economática!$A$3:$AI$823,21,FALSE)/100=\"-\"),1/0,VLOOKUP($A99,Economática!$A$3:$AI$823,21,FALSE)/100))","v":-6.5723000000000004E-2},{"$f":"IF($A99=\"\",\"\",IF(OR(VLOOKUP($A99,Economática!$A$3:$AI$823,22,FALSE)/100=0,VLOOKUP($A99,Economática!$A$3:$AI$823,22,FALSE)/100=\"-\"),1/0,VLOOKUP($A99,Economática!$A$3:$AI$823,22,FALSE)/100))","v":{"$error":"#VALUE!"}},{"$f":"IF($A99=\"\",\"\",IF(OR(VLOOKUP($A99,Economática!$A$3:$AI$823,23,FALSE)=0,VLOOKUP($A99,Economática!$A$3:$AI$823,23,FALSE)=\"-\"),1/0,VLOOKUP($A99,Economática!$A$3:$AI$823,23,FALSE)))","v":{"$error":"#DIV/0!"}},{"$f":"IF($A99=\"\",\"\",IF(OR(VLOOKUP($A99,Economática!$A$3:$AI$823,24,FALSE)=0,VLOOKUP($A99,Economática!$A$3:$AI$823,24,FALSE)=\"-\"),1/0,VLOOKUP($A99,Economática!$A$3:$AI$823,24,FALSE)))","v":{"$error":"#DIV/0!"}},{"$f":"IF($A99=\"\",\"\",IF(OR(VLOOKUP($A99,Economática!$A$3:$AI$823,25,FALSE)=0,VLOOKUP($A99,Economática!$A$3:$AI$823,25,FALSE)=\"-\"),1/0,VLOOKUP($A99,Economática!$A$3:$AI$823,25,FALSE)))","v":{"$error":"#DIV/0!"}},{"$f":"IF($A99=\"\",\"\",IF(ISERROR((F99+VLOOKUP($A99,Economática!$A$3:$AI$823,26,FALSE))/Y99),(F99+VLOOKUP($A99,Economática!$A$3:$AI$823,26,FALSE))/Y99,(F99+VLOOKUP($A99,Economática!$A$3:$AI$823,26,FALSE))/Y99))","v":{"$error":"#VALUE!"}},{"$f":"IF($A99=\"\",\"\",IF(OR(-VLOOKUP($A99,Economática!$A$3:$AI$823,27,FALSE)=0,-VLOOKUP($A99,Economática!$A$3:$AI$823,27,FALSE)=\"-\"),1/0,-VLOOKUP($A99,Economática!$A$3:$AI$823,27,FALSE)))","v":{"$error":"#DIV/0!"}},{"$error":"#DIV/0!"},{"$f":"IF($A99=\"\",\"\",IF(OR(VLOOKUP($A99,Economática!$A$3:$AI$823,28,FALSE)=0,VLOOKUP($A99,Economática!$A$3:$AI$823,28,FALSE)=\"-\"),1/0,VLOOKUP($A99,Economática!$A$3:$AI$823,28,FALSE)))","v":-14.9},{"$f":"IF($A99=\"\",\"\",IF(OR(VLOOKUP($A99,Economática!$A$3:$AI$823,29,FALSE)=0,VLOOKUP($A99,Economática!$A$3:$AI$823,29,FALSE)=\"-\"),1/0,VLOOKUP($A99,Economática!$A$3:$AI$823,29,FALSE)))","v":-33.1},{"$f":"IF($A99=\"\",\"\",IF(OR(VLOOKUP($A99,Economática!$A$3:$AI$823,30,FALSE)/E99=0,VLOOKUP($A99,Economática!$A$3:$AI$823,30,FALSE)/E99=\"-\",VLOOKUP($A99,Economática!$A$3:$AI$823,30,FALSE)/E99<33.33%,VLOOKUP($A99,Economática!$A$3:$AI$823,30,FALSE)/E99>100%),1/0,VLOOKUP($A99,Economática!$A$3:$AI$823,30,FALSE)/E99))","v":0.53809586689555},"PINE4",{"$f":"IF($A99=\"\",\"\",IF(OR(VLOOKUP($A99,Economática!$A$3:$AI$823,25,FALSE)=0,VLOOKUP($A99,Economática!$A$3:$AI$823,25,FALSE)=\"-\"),1/0,VLOOKUP($A99,Economática!$A$3:$AI$823,25,FALSE)))","v":{"$error":"#DIV/0!"}},{"$f":"CONCATENATE(Economática!B101,\" \",Economática!C101)","v":"Pine PN"}]
[{"$f":"IF(Economática!AG102=\"\",\"\",Economática!AG102)","v":"IDVL4"},{"$f":"IF($A100=\"\",\"\",VLOOKUP(VLOOKUP($A100,Economática!$A$3:$AI$823,6,FALSE),Correção!$B$16:$C$36,2,FALSE))","v":"Finanças e Seguros"},{"$f":"IF(Economática!B102=\"\",\"\",Economática!B102)","v":"Indusval"},{"$f":"IF($A100=\"\",\"\",IF(OR(VLOOKUP($A100,Economática!$A$3:$AI$823,8,FALSE)=0,VLOOKUP($A100,Economática!$A$3:$AI$823,8,FALSE)=\"-\"),1/0,VLOOKUP($A100,Economática!$A$3:$AI$823,8,FALSE)))","v":6.85},{"$f":"IF(A100=\"\",\"\",IF(ISERROR(VLOOKUP(A100,Correção!$B$2:$G$13,9,FALSE)),VLOOKUP($A100,Economática!$A$3:$AI$823,9,FALSE),VLOOKUP(A100,Correção!$B$2:$G$13,9,FALSE)))","v":108.19799999999999},{"$f":"IF($A100=\"\",\"\",Economática!G102)","v":1081.8399999999999},{"$f":"IF($A100=\"\",\"\",IF(OR(VLOOKUP($A100,Economática!$A$3:$AI$823,10,FALSE)=0,VLOOKUP($A100,Economática!$A$3:$AI$823,10,FALSE)=\"-\"),1/0,VLOOKUP($A100,Economática!$A$3:$AI$823,10,FALSE)))","v":145.52000000000001},{"$f":"IF($A100=\"\",\"\",IF(OR(VLOOKUP($A100,Economática!$A$3:$AI$823,11,FALSE)=0,VLOOKUP($A100,Economática!$A$3:$AI$823,11,FALSE)=\"-\"),1/0,VLOOKUP($A100,Economática!$A$3:$AI$823,11,FALSE)))","v":319.49},{"$f":"IF($A100=\"\",\"\",IF(OR(VLOOKUP($A100,Economática!$A$3:$AI$823,12,FALSE)=0,VLOOKUP($A100,Economática!$A$3:$AI$823,12,FALSE)=\"-\"),1/0,VLOOKUP($A100,Economática!$A$3:$AI$823,12,FALSE)))","v":186.24},{"$f":"IF($A100=\"\",\"\",IF(OR(VLOOKUP($A100,Economática!$A$3:$AI$823,13,FALSE)=0,VLOOKUP($A100,Economática!$A$3:$AI$823,13,FALSE)=\"-\"),1/0,VLOOKUP($A100,Economática!$A$3:$AI$823,13,FALSE)))","v":-223.51},{"$f":"IF($A100=\"\",\"\",IF(OR(VLOOKUP($A100,Economática!$A$3:$AI$823,14,FALSE)=0,VLOOKUP($A100,Economática!$A$3:$AI$823,14,FALSE)=\"-\"),1/0,VLOOKUP($A100,Economática!$A$3:$AI$823,14,FALSE)))","v":-69.13},{"$f":"IF($A100=\"\",\"\",IF(OR(VLOOKUP($A100,Economática!$A$3:$AI$823,15,FALSE)=0,VLOOKUP($A100,Economática!$A$3:$AI$823,15,FALSE)=\"-\"),1/0,VLOOKUP($A100,Economática!$A$3:$AI$823,15,FALSE)))","v":-120.94},{"$f":"IF($A100=\"\",\"\",IF(OR(VLOOKUP($A100,Economática!$A$3:$AI$823,16,FALSE)=0,VLOOKUP($A100,Economática!$A$3:$AI$823,16,FALSE)=\"-\"),1/0,VLOOKUP($A100,Economática!$A$3:$AI$823,16,FALSE)))","v":-179.76},{"$f":"IF($A100=\"\",\"\",IF(OR(VLOOKUP($A100,Economática!$A$3:$AI$823,17,FALSE)=0,VLOOKUP($A100,Economática!$A$3:$AI$823,17,FALSE)=\"-\"),1/0,VLOOKUP($A100,Economática!$A$3:$AI$823,17,FALSE)))","v":-125.06},{"$f":"IF($A100=\"\",\"\",IF(OR(VLOOKUP($A100,Economática!$A$3:$AI$823,18,FALSE)=0,VLOOKUP($A100,Economática!$A$3:$AI$823,18,FALSE)=\"-\"),1/0,VLOOKUP($A100,Economática!$A$3:$AI$823,18,FALSE)))","v":-223.51},{"$f":"IF($A100=\"\",\"\",IF(OR(VLOOKUP($A100,Economática!$A$3:$AI$823,19,FALSE)=0,VLOOKUP($A100,Economática!$A$3:$AI$823,19,FALSE)=\"-\"),1/0,VLOOKUP($A100,Economática!$A$3:$AI$823,19,FALSE)))","v":-125.06},{"$f":"IF($A100=\"\",\"\",VLOOKUP($A100,Economática!$A$3:$AI$823,20,FALSE)/E100)","v":-1.1558439157840257},1.3449416809922552,5.0931576415612962,{"$error":"#DIV/0!"},{"$f":"IF($A100=\"\",\"\",IF(OR(VLOOKUP($A100,Economática!$A$3:$AI$823,21,FALSE)/100=0,VLOOKUP($A100,Economática!$A$3:$AI$823,21,FALSE)/100=\"-\"),1/0,VLOOKUP($A100,Economática!$A$3:$AI$823,21,FALSE)/100))","v":-0.461729},{"$f":"IF($A100=\"\",\"\",IF(OR(VLOOKUP($A100,Economática!$A$3:$AI$823,22,FALSE)/100=0,VLOOKUP($A100,Economática!$A$3:$AI$823,22,FALSE)/100=\"-\"),1/0,VLOOKUP($A100,Economática!$A$3:$AI$823,22,FALSE)/100))","v":{"$error":"#VALUE!"}},{"$f":"IF($A100=\"\",\"\",IF(OR(VLOOKUP($A100,Economática!$A$3:$AI$823,23,FALSE)=0,VLOOKUP($A100,Economática!$A$3:$AI$823,23,FALSE)=\"-\"),1/0,VLOOKUP($A100,Economática!$A$3:$AI$823,23,FALSE)))","v":{"$error":"#DIV/0!"}},{"$f":"IF($A100=\"\",\"\",IF(OR(VLOOKUP($A100,Economática!$A$3:$AI$823,24,FALSE)=0,VLOOKUP($A100,Economática!$A$3:$AI$823,24,FALSE)=\"-\"),1/0,VLOOKUP($A100,Economática!$A$3:$AI$823,24,FALSE)))","v":{"$error":"#DIV/0!"}},{"$f":"IF($A100=\"\",\"\",IF(OR(VLOOKUP($A100,Economática!$A$3:$AI$823,25,FALSE)=0,VLOOKUP($A100,Economática!$A$3:$AI$823,25,FALSE)=\"-\"),1/0,VLOOKUP($A100,Economática!$A$3:$AI$823,25,FALSE)))","v":{"$error":"#DIV/0!"}},{"$f":"IF($A100=\"\",\"\",IF(ISERROR((F100+VLOOKUP($A100,Economática!$A$3:$AI$823,26,FALSE))/Y100),(F100+VLOOKUP($A100,Economática!$A$3:$AI$823,26,FALSE))/Y100,(F100+VLOOKUP($A100,Economática!$A$3:$AI$823,26,FALSE))/Y100))","v":{"$error":"#VALUE!"}},{"$f":"IF($A100=\"\",\"\",IF(OR(-VLOOKUP($A100,Economática!$A$3:$AI$823,27,FALSE)=0,-VLOOKUP($A100,Economática!$A$3:$AI$823,27,FALSE)=\"-\"),1/0,-VLOOKUP($A100,Economática!$A$3:$AI$823,27,FALSE)))","v":{"$error":"#DIV/0!"}},{"$error":"#DIV/0!"},{"$f":"IF($A100=\"\",\"\",IF(OR(VLOOKUP($A100,Economática!$A$3:$AI$823,28,FALSE)=0,VLOOKUP($A100,Economática!$A$3:$AI$823,28,FALSE)=\"-\"),1/0,VLOOKUP($A100,Economática!$A$3:$AI$823,28,FALSE)))","v":143},{"$f":"IF($A100=\"\",\"\",IF(OR(VLOOKUP($A100,Economática!$A$3:$AI$823,29,FALSE)=0,VLOOKUP($A100,Economática!$A$3:$AI$823,29,FALSE)=\"-\"),1/0,VLOOKUP($A100,Economática!$A$3:$AI$823,29,FALSE)))","v":1.6},{"$f":"IF($A100=\"\",\"\",IF(OR(VLOOKUP($A100,Economática!$A$3:$AI$823,30,FALSE)/E100=0,VLOOKUP($A100,Economática!$A$3:$AI$823,30,FALSE)/E100=\"-\",VLOOKUP($A100,Economática!$A$3:$AI$823,30,FALSE)/E100<33.33%,VLOOKUP($A100,Economática!$A$3:$AI$823,30,FALSE)/E100>100%),1/0,VLOOKUP($A100,Economática!$A$3:$AI$823,30,FALSE)/E100))","v":{"$error":"#DIV/0!"}},"IDVL4",{"$f":"IF($A100=\"\",\"\",IF(OR(VLOOKUP($A100,Economática!$A$3:$AI$823,25,FALSE)=0,VLOOKUP($A100,Economática!$A$3:$AI$823,25,FALSE)=\"-\"),1/0,VLOOKUP($A100,Economática!$A$3:$AI$823,25,FALSE)))","v":{"$error":"#DIV/0!"}},{"$f":"CONCATENATE(Economática!B102,\" \",Economática!C102)","v":"Indusval PN"}]
[{"$f":"IF(Economática!AG103=\"\",\"\",Economática!AG103)","v":"APER3"},{"$f":"IF($A101=\"\",\"\",VLOOKUP(VLOOKUP($A101,Economática!$A$3:$AI$823,6,FALSE),Correção!$B$16:$C$36,2,FALSE))","v":"Finanças e Seguros"},{"$f":"IF(Economática!B103=\"\",\"\",Economática!B103)","v":"Alper S.A."},{"$f":"IF($A101=\"\",\"\",IF(OR(VLOOKUP($A101,Economática!$A$3:$AI$823,8,FALSE)=0,VLOOKUP($A101,Economática!$A$3:$AI$823,8,FALSE)=\"-\"),1/0,VLOOKUP($A101,Economática!$A$3:$AI$823,8,FALSE)))","v":24.9},{"$f":"IF(A101=\"\",\"\",IF(ISERROR(VLOOKUP(A101,Correção!$B$2:$G$13,9,FALSE)),VLOOKUP($A101,Economática!$A$3:$AI$823,9,FALSE),VLOOKUP(A101,Correção!$B$2:$G$13,9,FALSE)))","v":7.3680000000000003},{"$f":"IF($A101=\"\",\"\",Economática!G103)","v":183.47},{"$f":"IF($A101=\"\",\"\",IF(OR(VLOOKUP($A101,Economática!$A$3:$AI$823,10,FALSE)=0,VLOOKUP($A101,Economática!$A$3:$AI$823,10,FALSE)=\"-\"),1/0,VLOOKUP($A101,Economática!$A$3:$AI$823,10,FALSE)))","v":93.14},{"$f":"IF($A101=\"\",\"\",IF(OR(VLOOKUP($A101,Economática!$A$3:$AI$823,11,FALSE)=0,VLOOKUP($A101,Economática!$A$3:$AI$823,11,FALSE)=\"-\"),1/0,VLOOKUP($A101,Economática!$A$3:$AI$823,11,FALSE)))","v":93.73},{"$f":"IF($A101=\"\",\"\",IF(OR(VLOOKUP($A101,Economática!$A$3:$AI$823,12,FALSE)=0,VLOOKUP($A101,Economática!$A$3:$AI$823,12,FALSE)=\"-\"),1/0,VLOOKUP($A101,Economática!$A$3:$AI$823,12,FALSE)))","v":87.58},{"$f":"IF($A101=\"\",\"\",IF(OR(VLOOKUP($A101,Economática!$A$3:$AI$823,13,FALSE)=0,VLOOKUP($A101,Economática!$A$3:$AI$823,13,FALSE)=\"-\"),1/0,VLOOKUP($A101,Economática!$A$3:$AI$823,13,FALSE)))","v":-82.59},{"$f":"IF($A101=\"\",\"\",IF(OR(VLOOKUP($A101,Economática!$A$3:$AI$823,14,FALSE)=0,VLOOKUP($A101,Economática!$A$3:$AI$823,14,FALSE)=\"-\"),1/0,VLOOKUP($A101,Economática!$A$3:$AI$823,14,FALSE)))","v":-4.0599999999999996},{"$f":"IF($A101=\"\",\"\",IF(OR(VLOOKUP($A101,Economática!$A$3:$AI$823,15,FALSE)=0,VLOOKUP($A101,Economática!$A$3:$AI$823,15,FALSE)=\"-\"),1/0,VLOOKUP($A101,Economática!$A$3:$AI$823,15,FALSE)))","v":-21.69},{"$f":"IF($A101=\"\",\"\",IF(OR(VLOOKUP($A101,Economática!$A$3:$AI$823,16,FALSE)=0,VLOOKUP($A101,Economática!$A$3:$AI$823,16,FALSE)=\"-\"),1/0,VLOOKUP($A101,Economática!$A$3:$AI$823,16,FALSE)))","v":-22.57},{"$f":"IF($A101=\"\",\"\",IF(OR(VLOOKUP($A101,Economática!$A$3:$AI$823,17,FALSE)=0,VLOOKUP($A101,Economática!$A$3:$AI$823,17,FALSE)=\"-\"),1/0,VLOOKUP($A101,Economática!$A$3:$AI$823,17,FALSE)))","v":-163.72},{"$f":"IF($A101=\"\",\"\",IF(OR(VLOOKUP($A101,Economática!$A$3:$AI$823,18,FALSE)=0,VLOOKUP($A101,Economática!$A$3:$AI$823,18,FALSE)=\"-\"),1/0,VLOOKUP($A101,Economática!$A$3:$AI$823,18,FALSE)))","v":-82.59},{"$f":"IF($A101=\"\",\"\",IF(OR(VLOOKUP($A101,Economática!$A$3:$AI$823,19,FALSE)=0,VLOOKUP($A101,Economática!$A$3:$AI$823,19,FALSE)=\"-\"),1/0,VLOOKUP($A101,Economática!$A$3:$AI$823,19,FALSE)))","v":-163.72},{"$f":"IF($A101=\"\",\"\",VLOOKUP($A101,Economática!$A$3:$AI$823,20,FALSE)/E101)","v":-22.220412595005428},12.64115092290988,1.9697573545200773,{"$error":"#DIV/0!"},{"$f":"IF($A101=\"\",\"\",IF(OR(VLOOKUP($A101,Economática!$A$3:$AI$823,21,FALSE)/100=0,VLOOKUP($A101,Economática!$A$3:$AI$823,21,FALSE)/100=\"-\"),1/0,VLOOKUP($A101,Economática!$A$3:$AI$823,21,FALSE)/100))","v":-0.63826300000000002},{"$f":"IF($A101=\"\",\"\",IF(OR(VLOOKUP($A101,Economática!$A$3:$AI$823,22,FALSE)/100=0,VLOOKUP($A101,Economática!$A$3:$AI$823,22,FALSE)/100=\"-\"),1/0,VLOOKUP($A101,Economática!$A$3:$AI$823,22,FALSE)/100))","v":-0.37520500000000001},{"$f":"IF($A101=\"\",\"\",IF(OR(VLOOKUP($A101,Economática!$A$3:$AI$823,23,FALSE)=0,VLOOKUP($A101,Economática!$A$3:$AI$823,23,FALSE)=\"-\"),1/0,VLOOKUP($A101,Economática!$A$3:$AI$823,23,FALSE)))","v":-69.5},{"$f":"IF($A101=\"\",\"\",IF(OR(VLOOKUP($A101,Economática!$A$3:$AI$823,24,FALSE)=0,VLOOKUP($A101,Economática!$A$3:$AI$823,24,FALSE)=\"-\"),1/0,VLOOKUP($A101,Economática!$A$3:$AI$823,24,FALSE)))","v":-158.30000000000001},{"$f":"IF($A101=\"\",\"\",IF(OR(VLOOKUP($A101,Economática!$A$3:$AI$823,25,FALSE)=0,VLOOKUP($A101,Economática!$A$3:$AI$823,25,FALSE)=\"-\"),1/0,VLOOKUP($A101,Economática!$A$3:$AI$823,25,FALSE)))","v":-158.30000000000001},{"$f":"IF($A101=\"\",\"\",IF(ISERROR((F101+VLOOKUP($A101,Economática!$A$3:$AI$823,26,FALSE))/Y101),(F101+VLOOKUP($A101,Economática!$A$3:$AI$823,26,FALSE))/Y101,(F101+VLOOKUP($A101,Economática!$A$3:$AI$823,26,FALSE))/Y101))","v":-0.93837018319646226},{"$f":"IF($A101=\"\",\"\",IF(OR(-VLOOKUP($A101,Economática!$A$3:$AI$823,27,FALSE)=0,-VLOOKUP($A101,Economática!$A$3:$AI$823,27,FALSE)=\"-\"),1/0,-VLOOKUP($A101,Economática!$A$3:$AI$823,27,FALSE)))","v":{"$error":"#DIV/0!"}},{"$error":"#DIV/0!"},{"$f":"IF($A101=\"\",\"\",IF(OR(VLOOKUP($A101,Economática!$A$3:$AI$823,28,FALSE)=0,VLOOKUP($A101,Economática!$A$3:$AI$823,28,FALSE)=\"-\"),1/0,VLOOKUP($A101,Economática!$A$3:$AI$823,28,FALSE)))","v":1.6},{"$f":"IF($A101=\"\",\"\",IF(OR(VLOOKUP($A101,Economática!$A$3:$AI$823,29,FALSE)=0,VLOOKUP($A101,Economática!$A$3:$AI$823,29,FALSE)=\"-\"),1/0,VLOOKUP($A101,Economática!$A$3:$AI$823,29,FALSE)))","v":106.2},{"$f":"IF($A101=\"\",\"\",IF(OR(VLOOKUP($A101,Economática!$A$3:$AI$823,30,FALSE)/E101=0,VLOOKUP($A101,Economática!$A$3:$AI$823,30,FALSE)/E101=\"-\",VLOOKUP($A101,Economática!$A$3:$AI$823,30,FALSE)/E101<33.33%,VLOOKUP($A101,Economática!$A$3:$AI$823,30,FALSE)/E101>100%),1/0,VLOOKUP($A101,Economática!$A$3:$AI$823,30,FALSE)/E101))","v":{"$error":"#DIV/0!"}},"APER3",{"$f":"IF($A101=\"\",\"\",IF(OR(VLOOKUP($A101,Economática!$A$3:$AI$823,25,FALSE)=0,VLOOKUP($A101,Economática!$A$3:$AI$823,25,FALSE)=\"-\"),1/0,VLOOKUP($A101,Economática!$A$3:$AI$823,25,FALSE)))","v":-158.30000000000001},{"$f":"CONCATENATE(Economática!B103,\" \",Economática!C103)","v":"Alper S.A. ON"}]
[{"$f":"IF(Economática!AG104=\"\",\"\",Economática!AG104)","v":"PPLA11"},{"$f":"IF($A102=\"\",\"\",VLOOKUP(VLOOKUP($A102,Economática!$A$3:$AI$823,6,FALSE),Correção!$B$16:$C$36,2,FALSE))","v":"Finanças e Seguros"},{"$f":"IF(Economática!B104=\"\",\"\",Economática!B104)","v":"Ppla"},{"$f":"IF($A102=\"\",\"\",IF(OR(VLOOKUP($A102,Economática!$A$3:$AI$823,8,FALSE)=0,VLOOKUP($A102,Economática!$A$3:$AI$823,8,FALSE)=\"-\"),1/0,VLOOKUP($A102,Economática!$A$3:$AI$823,8,FALSE)))","v":2.6},{"$f":"IF(A102=\"\",\"\",IF(ISERROR(VLOOKUP(A102,Correção!$B$2:$G$13,9,FALSE)),VLOOKUP($A102,Economática!$A$3:$AI$823,9,FALSE),VLOOKUP(A102,Correção!$B$2:$G$13,9,FALSE)))","v":82.369},{"$f":"IF($A102=\"\",\"\",Economática!G104)","v":71.39},{"$f":"IF($A102=\"\",\"\",IF(OR(VLOOKUP($A102,Economática!$A$3:$AI$823,10,FALSE)=0,VLOOKUP($A102,Economática!$A$3:$AI$823,10,FALSE)=\"-\"),1/0,VLOOKUP($A102,Economática!$A$3:$AI$823,10,FALSE)))","v":10.43},{"$f":"IF($A102=\"\",\"\",IF(OR(VLOOKUP($A102,Economática!$A$3:$AI$823,11,FALSE)=0,VLOOKUP($A102,Economática!$A$3:$AI$823,11,FALSE)=\"-\"),1/0,VLOOKUP($A102,Economática!$A$3:$AI$823,11,FALSE)))","v":{"$error":"#DIV/0!"}},{"$f":"IF($A102=\"\",\"\",IF(OR(VLOOKUP($A102,Economática!$A$3:$AI$823,12,FALSE)=0,VLOOKUP($A102,Economática!$A$3:$AI$823,12,FALSE)=\"-\"),1/0,VLOOKUP($A102,Economática!$A$3:$AI$823,12,FALSE)))","v":{"$error":"#DIV/0!"}},{"$f":"IF($A102=\"\",\"\",IF(OR(VLOOKUP($A102,Economática!$A$3:$AI$823,13,FALSE)=0,VLOOKUP($A102,Economática!$A$3:$AI$823,13,FALSE)=\"-\"),1/0,VLOOKUP($A102,Economática!$A$3:$AI$823,13,FALSE)))","v":-532.05999999999995},{"$f":"IF($A102=\"\",\"\",IF(OR(VLOOKUP($A102,Economática!$A$3:$AI$823,14,FALSE)=0,VLOOKUP($A102,Economática!$A$3:$AI$823,14,FALSE)=\"-\"),1/0,VLOOKUP($A102,Economática!$A$3:$AI$823,14,FALSE)))","v":-104.1},{"$f":"IF($A102=\"\",\"\",IF(OR(VLOOKUP($A102,Economática!$A$3:$AI$823,15,FALSE)=0,VLOOKUP($A102,Economática!$A$3:$AI$823,15,FALSE)=\"-\"),1/0,VLOOKUP($A102,Economática!$A$3:$AI$823,15,FALSE)))","v":-135.94},{"$f":"IF($A102=\"\",\"\",IF(OR(VLOOKUP($A102,Economática!$A$3:$AI$823,16,FALSE)=0,VLOOKUP($A102,Economática!$A$3:$AI$823,16,FALSE)=\"-\"),1/0,VLOOKUP($A102,Economática!$A$3:$AI$823,16,FALSE)))","v":-156.91999999999999},{"$f":"IF($A102=\"\",\"\",IF(OR(VLOOKUP($A102,Economática!$A$3:$AI$823,17,FALSE)=0,VLOOKUP($A102,Economática!$A$3:$AI$823,17,FALSE)=\"-\"),1/0,VLOOKUP($A102,Economática!$A$3:$AI$823,17,FALSE)))","v":{"$error":"#DIV/0!"}},{"$f":"IF($A102=\"\",\"\",IF(OR(VLOOKUP($A102,Economática!$A$3:$AI$823,18,FALSE)=0,VLOOKUP($A102,Economática!$A$3:$AI$823,18,FALSE)=\"-\"),1/0,VLOOKUP($A102,Economática!$A$3:$AI$823,18,FALSE)))","v":-532.05999999999995},{"$f":"IF($A102=\"\",\"\",IF(OR(VLOOKUP($A102,Economática!$A$3:$AI$823,19,FALSE)=0,VLOOKUP($A102,Economática!$A$3:$AI$823,19,FALSE)=\"-\"),1/0,VLOOKUP($A102,Economática!$A$3:$AI$823,19,FALSE)))","v":{"$error":"#DIV/0!"}},{"$f":"IF($A102=\"\",\"\",VLOOKUP($A102,Economática!$A$3:$AI$823,20,FALSE)/E102)","v":-3.1255690854569074},0.12662530806492733,20.533020134228188,{"$error":"#DIV/0!"},{"$f":"IF($A102=\"\",\"\",IF(OR(VLOOKUP($A102,Economática!$A$3:$AI$823,21,FALSE)/100=0,VLOOKUP($A102,Economática!$A$3:$AI$823,21,FALSE)/100=\"-\"),1/0,VLOOKUP($A102,Economática!$A$3:$AI$823,21,FALSE)/100))","v":-1.0307360000000001},{"$f":"IF($A102=\"\",\"\",IF(OR(VLOOKUP($A102,Economática!$A$3:$AI$823,22,FALSE)/100=0,VLOOKUP($A102,Economática!$A$3:$AI$823,22,FALSE)/100=\"-\"),1/0,VLOOKUP($A102,Economática!$A$3:$AI$823,22,FALSE)/100))","v":{"$error":"#VALUE!"}},{"$f":"IF($A102=\"\",\"\",IF(OR(VLOOKUP($A102,Economática!$A$3:$AI$823,23,FALSE)=0,VLOOKUP($A102,Economática!$A$3:$AI$823,23,FALSE)=\"-\"),1/0,VLOOKUP($A102,Economática!$A$3:$AI$823,23,FALSE)))","v":{"$error":"#DIV/0!"}},{"$f":"IF($A102=\"\",\"\",IF(OR(VLOOKUP($A102,Economática!$A$3:$AI$823,24,FALSE)=0,VLOOKUP($A102,Economática!$A$3:$AI$823,24,FALSE)=\"-\"),1/0,VLOOKUP($A102,Economática!$A$3:$AI$823,24,FALSE)))","v":{"$error":"#DIV/0!"}},{"$f":"IF($A102=\"\",\"\",IF(OR(VLOOKUP($A102,Economática!$A$3:$AI$823,25,FALSE)=0,VLOOKUP($A102,Economática!$A$3:$AI$823,25,FALSE)=\"-\"),1/0,VLOOKUP($A102,Economática!$A$3:$AI$823,25,FALSE)))","v":{"$error":"#DIV/0!"}},{"$f":"IF($A102=\"\",\"\",IF(ISERROR((F102+VLOOKUP($A102,Economática!$A$3:$AI$823,26,FALSE))/Y102),(F102+VLOOKUP($A102,Economática!$A$3:$AI$823,26,FALSE))/Y102,(F102+VLOOKUP($A102,Economática!$A$3:$AI$823,26,FALSE))/Y102))","v":{"$error":"#VALUE!"}},{"$f":"IF($A102=\"\",\"\",IF(OR(-VLOOKUP($A102,Economática!$A$3:$AI$823,27,FALSE)=0,-VLOOKUP($A102,Economática!$A$3:$AI$823,27,FALSE)=\"-\"),1/0,-VLOOKUP($A102,Economática!$A$3:$AI$823,27,FALSE)))","v":{"$error":"#DIV/0!"}},{"$error":"#DIV/0!"},{"$f":"IF($A102=\"\",\"\",IF(OR(VLOOKUP($A102,Economática!$A$3:$AI$823,28,FALSE)=0,VLOOKUP($A102,Economática!$A$3:$AI$823,28,FALSE)=\"-\"),1/0,VLOOKUP($A102,Economática!$A$3:$AI$823,28,FALSE)))","v":20.9},{"$f":"IF($A102=\"\",\"\",IF(OR(VLOOKUP($A102,Economática!$A$3:$AI$823,29,FALSE)=0,VLOOKUP($A102,Economática!$A$3:$AI$823,29,FALSE)=\"-\"),1/0,VLOOKUP($A102,Economática!$A$3:$AI$823,29,FALSE)))","v":94},{"$f":"IF($A102=\"\",\"\",IF(OR(VLOOKUP($A102,Economática!$A$3:$AI$823,30,FALSE)/E102=0,VLOOKUP($A102,Economática!$A$3:$AI$823,30,FALSE)/E102=\"-\",VLOOKUP($A102,Economática!$A$3:$AI$823,30,FALSE)/E102<33.33%,VLOOKUP($A102,Economática!$A$3:$AI$823,30,FALSE)/E102>100%),1/0,VLOOKUP($A102,Economática!$A$3:$AI$823,30,FALSE)/E102))","v":0.34114776190071511},"PPLA11",{"$f":"IF($A102=\"\",\"\",IF(OR(VLOOKUP($A102,Economática!$A$3:$AI$823,25,FALSE)=0,VLOOKUP($A102,Economática!$A$3:$AI$823,25,FALSE)=\"-\"),1/0,VLOOKUP($A102,Economática!$A$3:$AI$823,25,FALSE)))","v":{"$error":"#DIV/0!"}},{"$f":"CONCATENATE(Economática!B104,\" \",Economática!C104)","v":"Ppla UNT"}]
[{"$f":"IF(Economática!AG105=\"\",\"\",Economática!AG105)","v":"ABCB4"},{"$f":"IF($A103=\"\",\"\",VLOOKUP(VLOOKUP($A103,Economática!$A$3:$AI$823,6,FALSE),Correção!$B$16:$C$36,2,FALSE))","v":"Finanças e Seguros"},{"$f":"IF(Economática!B105=\"\",\"\",Economática!B105)","v":"Abc Brasil"},{"$f":"IF($A103=\"\",\"\",IF(OR(VLOOKUP($A103,Economática!$A$3:$AI$823,8,FALSE)=0,VLOOKUP($A103,Economática!$A$3:$AI$823,8,FALSE)=\"-\"),1/0,VLOOKUP($A103,Economática!$A$3:$AI$823,8,FALSE)))","v":19.05},{"$f":"IF(A103=\"\",\"\",IF(ISERROR(VLOOKUP(A103,Correção!$B$2:$G$13,9,FALSE)),VLOOKUP($A103,Economática!$A$3:$AI$823,9,FALSE),VLOOKUP(A103,Correção!$B$2:$G$13,9,FALSE)))","v":208.61799999999999},{"$f":"IF($A103=\"\",\"\",Economática!G105)","v":3974.18},{"$f":"IF($A103=\"\",\"\",IF(OR(VLOOKUP($A103,Economática!$A$3:$AI$823,10,FALSE)=0,VLOOKUP($A103,Economática!$A$3:$AI$823,10,FALSE)=\"-\"),1/0,VLOOKUP($A103,Economática!$A$3:$AI$823,10,FALSE)))","v":3665.51},{"$f":"IF($A103=\"\",\"\",IF(OR(VLOOKUP($A103,Economática!$A$3:$AI$823,11,FALSE)=0,VLOOKUP($A103,Economática!$A$3:$AI$823,11,FALSE)=\"-\"),1/0,VLOOKUP($A103,Economática!$A$3:$AI$823,11,FALSE)))","v":2520.92},{"$f":"IF($A103=\"\",\"\",IF(OR(VLOOKUP($A103,Economática!$A$3:$AI$823,12,FALSE)=0,VLOOKUP($A103,Economática!$A$3:$AI$823,12,FALSE)=\"-\"),1/0,VLOOKUP($A103,Economática!$A$3:$AI$823,12,FALSE)))","v":3254.38},{"$f":"IF($A103=\"\",\"\",IF(OR(VLOOKUP($A103,Economática!$A$3:$AI$823,13,FALSE)=0,VLOOKUP($A103,Economática!$A$3:$AI$823,13,FALSE)=\"-\"),1/0,VLOOKUP($A103,Economática!$A$3:$AI$823,13,FALSE)))","v":418.73},{"$f":"IF($A103=\"\",\"\",IF(OR(VLOOKUP($A103,Economática!$A$3:$AI$823,14,FALSE)=0,VLOOKUP($A103,Economática!$A$3:$AI$823,14,FALSE)=\"-\"),1/0,VLOOKUP($A103,Economática!$A$3:$AI$823,14,FALSE)))","v":108.55},{"$f":"IF($A103=\"\",\"\",IF(OR(VLOOKUP($A103,Economática!$A$3:$AI$823,15,FALSE)=0,VLOOKUP($A103,Economática!$A$3:$AI$823,15,FALSE)=\"-\"),1/0,VLOOKUP($A103,Economática!$A$3:$AI$823,15,FALSE)))","v":220.2},{"$f":"IF($A103=\"\",\"\",IF(OR(VLOOKUP($A103,Economática!$A$3:$AI$823,16,FALSE)=0,VLOOKUP($A103,Economática!$A$3:$AI$823,16,FALSE)=\"-\"),1/0,VLOOKUP($A103,Economática!$A$3:$AI$823,16,FALSE)))","v":336.31},{"$f":"IF($A103=\"\",\"\",IF(OR(VLOOKUP($A103,Economática!$A$3:$AI$823,17,FALSE)=0,VLOOKUP($A103,Economática!$A$3:$AI$823,17,FALSE)=\"-\"),1/0,VLOOKUP($A103,Economática!$A$3:$AI$823,17,FALSE)))","v":418.09},{"$f":"IF($A103=\"\",\"\",IF(OR(VLOOKUP($A103,Economática!$A$3:$AI$823,18,FALSE)=0,VLOOKUP($A103,Economática!$A$3:$AI$823,18,FALSE)=\"-\"),1/0,VLOOKUP($A103,Economática!$A$3:$AI$823,18,FALSE)))","v":418.73},{"$f":"IF($A103=\"\",\"\",IF(OR(VLOOKUP($A103,Economática!$A$3:$AI$823,19,FALSE)=0,VLOOKUP($A103,Economática!$A$3:$AI$823,19,FALSE)=\"-\"),1/0,VLOOKUP($A103,Economática!$A$3:$AI$823,19,FALSE)))","v":418.09},{"$f":"IF($A103=\"\",\"\",VLOOKUP($A103,Economática!$A$3:$AI$823,20,FALSE)/E103)","v":2.0040936064960837},17.570439751124066,1.0842073545018291,9.5055440216221392,{"$f":"IF($A103=\"\",\"\",IF(OR(VLOOKUP($A103,Economática!$A$3:$AI$823,21,FALSE)/100=0,VLOOKUP($A103,Economática!$A$3:$AI$823,21,FALSE)/100=\"-\"),1/0,VLOOKUP($A103,Economática!$A$3:$AI$823,21,FALSE)/100))","v":{"$error":"#VALUE!"}},{"$f":"IF($A103=\"\",\"\",IF(OR(VLOOKUP($A103,Economática!$A$3:$AI$823,22,FALSE)/100=0,VLOOKUP($A103,Economática!$A$3:$AI$823,22,FALSE)/100=\"-\"),1/0,VLOOKUP($A103,Economática!$A$3:$AI$823,22,FALSE)/100))","v":{"$error":"#VALUE!"}},{"$f":"IF($A103=\"\",\"\",IF(OR(VLOOKUP($A103,Economática!$A$3:$AI$823,23,FALSE)=0,VLOOKUP($A103,Economática!$A$3:$AI$823,23,FALSE)=\"-\"),1/0,VLOOKUP($A103,Economática!$A$3:$AI$823,23,FALSE)))","v":{"$error":"#DIV/0!"}},{"$f":"IF($A103=\"\",\"\",IF(OR(VLOOKUP($A103,Economática!$A$3:$AI$823,24,FALSE)=0,VLOOKUP($A103,Economática!$A$3:$AI$823,24,FALSE)=\"-\"),1/0,VLOOKUP($A103,Economática!$A$3:$AI$823,24,FALSE)))","v":{"$error":"#DIV/0!"}},{"$f":"IF($A103=\"\",\"\",IF(OR(VLOOKUP($A103,Economática!$A$3:$AI$823,25,FALSE)=0,VLOOKUP($A103,Economática!$A$3:$AI$823,25,FALSE)=\"-\"),1/0,VLOOKUP($A103,Economática!$A$3:$AI$823,25,FALSE)))","v":{"$error":"#DIV/0!"}},{"$f":"IF($A103=\"\",\"\",IF(ISERROR((F103+VLOOKUP($A103,Economática!$A$3:$AI$823,26,FALSE))/Y103),(F103+VLOOKUP($A103,Economática!$A$3:$AI$823,26,FALSE))/Y103,(F103+VLOOKUP($A103,Economática!$A$3:$AI$823,26,FALSE))/Y103))","v":{"$error":"#VALUE!"}},{"$f":"IF($A103=\"\",\"\",IF(OR(-VLOOKUP($A103,Economática!$A$3:$AI$823,27,FALSE)=0,-VLOOKUP($A103,Economática!$A$3:$AI$823,27,FALSE)=\"-\"),1/0,-VLOOKUP($A103,Economática!$A$3:$AI$823,27,FALSE)))","v":220.45},5.5470562480813654E-2,{"$f":"IF($A103=\"\",\"\",IF(OR(VLOOKUP($A103,Economática!$A$3:$AI$823,28,FALSE)=0,VLOOKUP($A103,Economática!$A$3:$AI$823,28,FALSE)=\"-\"),1/0,VLOOKUP($A103,Economática!$A$3:$AI$823,28,FALSE)))","v":4.2},{"$f":"IF($A103=\"\",\"\",IF(OR(VLOOKUP($A103,Economática!$A$3:$AI$823,29,FALSE)=0,VLOOKUP($A103,Economática!$A$3:$AI$823,29,FALSE)=\"-\"),1/0,VLOOKUP($A103,Economática!$A$3:$AI$823,29,FALSE)))","v":25.2},{"$f":"IF($A103=\"\",\"\",IF(OR(VLOOKUP($A103,Economática!$A$3:$AI$823,30,FALSE)/E103=0,VLOOKUP($A103,Economática!$A$3:$AI$823,30,FALSE)/E103=\"-\",VLOOKUP($A103,Economática!$A$3:$AI$823,30,FALSE)/E103<33.33%,VLOOKUP($A103,Economática!$A$3:$AI$823,30,FALSE)/E103>100%),1/0,VLOOKUP($A103,Economática!$A$3:$AI$823,30,FALSE)/E103))","v":0.51098179447602798},"ABCB4",{"$f":"IF($A103=\"\",\"\",IF(OR(VLOOKUP($A103,Economática!$A$3:$AI$823,25,FALSE)=0,VLOOKUP($A103,Economática!$A$3:$AI$823,25,FALSE)=\"-\"),1/0,VLOOKUP($A103,Economática!$A$3:$AI$823,25,FALSE)))","v":{"$error":"#DIV/0!"}},{"$f":"CONCATENATE(Economática!B105,\" \",Economática!C105)","v":"Abc Brasil PN"}]
[{"$f":"IF(Economática!AG106=\"\",\"\",Economática!AG106)","v":"BIDI4"},{"$f":"IF($A104=\"\",\"\",VLOOKUP(VLOOKUP($A104,Economática!$A$3:$AI$823,6,FALSE),Correção!$B$16:$C$36,2,FALSE))","v":"Finanças e Seguros"},{"$f":"IF(Economática!B106=\"\",\"\",Economática!B106)","v":"Banco Inter"},{"$f":"IF($A104=\"\",\"\",IF(OR(VLOOKUP($A104,Economática!$A$3:$AI$823,8,FALSE)=0,VLOOKUP($A104,Economática!$A$3:$AI$823,8,FALSE)=\"-\"),1/0,VLOOKUP($A104,Economática!$A$3:$AI$823,8,FALSE)))","v":52.91},{"$f":"IF(A104=\"\",\"\",IF(ISERROR(VLOOKUP(A104,Correção!$B$2:$G$13,9,FALSE)),VLOOKUP($A104,Economática!$A$3:$AI$823,9,FALSE),VLOOKUP(A104,Correção!$B$2:$G$13,9,FALSE)))","v":101.291},{"$f":"IF($A104=\"\",\"\",Economática!G106)","v":5359.3},{"$f":"IF($A104=\"\",\"\",IF(OR(VLOOKUP($A104,Economática!$A$3:$AI$823,10,FALSE)=0,VLOOKUP($A104,Economática!$A$3:$AI$823,10,FALSE)=\"-\"),1/0,VLOOKUP($A104,Economática!$A$3:$AI$823,10,FALSE)))","v":948.78},{"$f":"IF($A104=\"\",\"\",IF(OR(VLOOKUP($A104,Economática!$A$3:$AI$823,11,FALSE)=0,VLOOKUP($A104,Economática!$A$3:$AI$823,11,FALSE)=\"-\"),1/0,VLOOKUP($A104,Economática!$A$3:$AI$823,11,FALSE)))","v":545.80999999999995},{"$f":"IF($A104=\"\",\"\",IF(OR(VLOOKUP($A104,Economática!$A$3:$AI$823,12,FALSE)=0,VLOOKUP($A104,Economática!$A$3:$AI$823,12,FALSE)=\"-\"),1/0,VLOOKUP($A104,Economática!$A$3:$AI$823,12,FALSE)))","v":646.63},{"$f":"IF($A104=\"\",\"\",IF(OR(VLOOKUP($A104,Economática!$A$3:$AI$823,13,FALSE)=0,VLOOKUP($A104,Economática!$A$3:$AI$823,13,FALSE)=\"-\"),1/0,VLOOKUP($A104,Economática!$A$3:$AI$823,13,FALSE)))","v":48.16},{"$f":"IF($A104=\"\",\"\",IF(OR(VLOOKUP($A104,Economática!$A$3:$AI$823,14,FALSE)=0,VLOOKUP($A104,Economática!$A$3:$AI$823,14,FALSE)=\"-\"),1/0,VLOOKUP($A104,Economática!$A$3:$AI$823,14,FALSE)))","v":11.17},{"$f":"IF($A104=\"\",\"\",IF(OR(VLOOKUP($A104,Economática!$A$3:$AI$823,15,FALSE)=0,VLOOKUP($A104,Economática!$A$3:$AI$823,15,FALSE)=\"-\"),1/0,VLOOKUP($A104,Economática!$A$3:$AI$823,15,FALSE)))","v":28.42},{"$f":"IF($A104=\"\",\"\",IF(OR(VLOOKUP($A104,Economática!$A$3:$AI$823,16,FALSE)=0,VLOOKUP($A104,Economática!$A$3:$AI$823,16,FALSE)=\"-\"),1/0,VLOOKUP($A104,Economática!$A$3:$AI$823,16,FALSE)))","v":46.75},{"$f":"IF($A104=\"\",\"\",IF(OR(VLOOKUP($A104,Economática!$A$3:$AI$823,17,FALSE)=0,VLOOKUP($A104,Economática!$A$3:$AI$823,17,FALSE)=\"-\"),1/0,VLOOKUP($A104,Economática!$A$3:$AI$823,17,FALSE)))","v":69.84},{"$f":"IF($A104=\"\",\"\",IF(OR(VLOOKUP($A104,Economática!$A$3:$AI$823,18,FALSE)=0,VLOOKUP($A104,Economática!$A$3:$AI$823,18,FALSE)=\"-\"),1/0,VLOOKUP($A104,Economática!$A$3:$AI$823,18,FALSE)))","v":48.16},{"$f":"IF($A104=\"\",\"\",IF(OR(VLOOKUP($A104,Economática!$A$3:$AI$823,19,FALSE)=0,VLOOKUP($A104,Economática!$A$3:$AI$823,19,FALSE)=\"-\"),1/0,VLOOKUP($A104,Economática!$A$3:$AI$823,19,FALSE)))","v":69.84},{"$f":"IF($A104=\"\",\"\",VLOOKUP($A104,Economática!$A$3:$AI$823,20,FALSE)/E104)","v":0.68949857341718424},9.3668736610360241,5.6486296190897782,76.736924541809842,{"$f":"IF($A104=\"\",\"\",IF(OR(VLOOKUP($A104,Economática!$A$3:$AI$823,21,FALSE)/100=0,VLOOKUP($A104,Economática!$A$3:$AI$823,21,FALSE)/100=\"-\"),1/0,VLOOKUP($A104,Economática!$A$3:$AI$823,21,FALSE)/100))","v":{"$error":"#VALUE!"}},{"$f":"IF($A104=\"\",\"\",IF(OR(VLOOKUP($A104,Economática!$A$3:$AI$823,22,FALSE)/100=0,VLOOKUP($A104,Economática!$A$3:$AI$823,22,FALSE)/100=\"-\"),1/0,VLOOKUP($A104,Economática!$A$3:$AI$823,22,FALSE)/100))","v":{"$error":"#VALUE!"}},{"$f":"IF($A104=\"\",\"\",IF(OR(VLOOKUP($A104,Economática!$A$3:$AI$823,23,FALSE)=0,VLOOKUP($A104,Economática!$A$3:$AI$823,23,FALSE)=\"-\"),1/0,VLOOKUP($A104,Economática!$A$3:$AI$823,23,FALSE)))","v":{"$error":"#DIV/0!"}},{"$f":"IF($A104=\"\",\"\",IF(OR(VLOOKUP($A104,Economática!$A$3:$AI$823,24,FALSE)=0,VLOOKUP($A104,Economática!$A$3:$AI$823,24,FALSE)=\"-\"),1/0,VLOOKUP($A104,Economática!$A$3:$AI$823,24,FALSE)))","v":{"$error":"#DIV/0!"}},{"$f":"IF($A104=\"\",\"\",IF(OR(VLOOKUP($A104,Economática!$A$3:$AI$823,25,FALSE)=0,VLOOKUP($A104,Economática!$A$3:$AI$823,25,FALSE)=\"-\"),1/0,VLOOKUP($A104,Economática!$A$3:$AI$823,25,FALSE)))","v":{"$error":"#DIV/0!"}},{"$f":"IF($A104=\"\",\"\",IF(ISERROR((F104+VLOOKUP($A104,Economática!$A$3:$AI$823,26,FALSE))/Y104),(F104+VLOOKUP($A104,Economática!$A$3:$AI$823,26,FALSE))/Y104,(F104+VLOOKUP($A104,Economática!$A$3:$AI$823,26,FALSE))/Y104))","v":{"$error":"#VALUE!"}},{"$f":"IF($A104=\"\",\"\",IF(OR(-VLOOKUP($A104,Economática!$A$3:$AI$823,27,FALSE)=0,-VLOOKUP($A104,Economática!$A$3:$AI$823,27,FALSE)=\"-\"),1/0,-VLOOKUP($A104,Economática!$A$3:$AI$823,27,FALSE)))","v":21.18},3.9520086578471066E-3,{"$f":"IF($A104=\"\",\"\",IF(OR(VLOOKUP($A104,Economática!$A$3:$AI$823,28,FALSE)=0,VLOOKUP($A104,Economática!$A$3:$AI$823,28,FALSE)=\"-\"),1/0,VLOOKUP($A104,Economática!$A$3:$AI$823,28,FALSE)))","v":38.9},{"$f":"IF($A104=\"\",\"\",IF(OR(VLOOKUP($A104,Economática!$A$3:$AI$823,29,FALSE)=0,VLOOKUP($A104,Economática!$A$3:$AI$823,29,FALSE)=\"-\"),1/0,VLOOKUP($A104,Economática!$A$3:$AI$823,29,FALSE)))","v":{"$error":"#DIV/0!"}},{"$f":"IF($A104=\"\",\"\",IF(OR(VLOOKUP($A104,Economática!$A$3:$AI$823,30,FALSE)/E104=0,VLOOKUP($A104,Economática!$A$3:$AI$823,30,FALSE)/E104=\"-\",VLOOKUP($A104,Economática!$A$3:$AI$823,30,FALSE)/E104<33.33%,VLOOKUP($A104,Economática!$A$3:$AI$823,30,FALSE)/E104>100%),1/0,VLOOKUP($A104,Economática!$A$3:$AI$823,30,FALSE)/E104))","v":0.50152530827023134},"BIDI4",{"$f":"IF($A104=\"\",\"\",IF(OR(VLOOKUP($A104,Economática!$A$3:$AI$823,25,FALSE)=0,VLOOKUP($A104,Economática!$A$3:$AI$823,25,FALSE)=\"-\"),1/0,VLOOKUP($A104,Economática!$A$3:$AI$823,25,FALSE)))","v":{"$error":"#DIV/0!"}},{"$f":"CONCATENATE(Economática!B106,\" \",Economática!C106)","v":"Banco Inter PN"}]
[{"$f":"IF(Economática!AG107=\"\",\"\",Economática!AG107)","v":"PTBL3"},{"$f":"IF($A105=\"\",\"\",VLOOKUP(VLOOKUP($A105,Economática!$A$3:$AI$823,6,FALSE),Correção!$B$16:$C$36,2,FALSE))","v":"Mineração"},{"$f":"IF(Economática!B107=\"\",\"\",Economática!B107)","v":"Portobello"},{"$f":"IF($A105=\"\",\"\",IF(OR(VLOOKUP($A105,Economática!$A$3:$AI$823,8,FALSE)=0,VLOOKUP($A105,Economática!$A$3:$AI$823,8,FALSE)=\"-\"),1/0,VLOOKUP($A105,Economática!$A$3:$AI$823,8,FALSE)))","v":4.91},{"$f":"IF(A105=\"\",\"\",IF(ISERROR(VLOOKUP(A105,Correção!$B$2:$G$13,9,FALSE)),VLOOKUP($A105,Economática!$A$3:$AI$823,9,FALSE),VLOOKUP(A105,Correção!$B$2:$G$13,9,FALSE)))","v":158.489},{"$f":"IF($A105=\"\",\"\",Economática!G107)","v":778.18},{"$f":"IF($A105=\"\",\"\",IF(OR(VLOOKUP($A105,Economática!$A$3:$AI$823,10,FALSE)=0,VLOOKUP($A105,Economática!$A$3:$AI$823,10,FALSE)=\"-\"),1/0,VLOOKUP($A105,Economática!$A$3:$AI$823,10,FALSE)))","v":362.11},{"$f":"IF($A105=\"\",\"\",IF(OR(VLOOKUP($A105,Economática!$A$3:$AI$823,11,FALSE)=0,VLOOKUP($A105,Economática!$A$3:$AI$823,11,FALSE)=\"-\"),1/0,VLOOKUP($A105,Economática!$A$3:$AI$823,11,FALSE)))","v":1023.94},{"$f":"IF($A105=\"\",\"\",IF(OR(VLOOKUP($A105,Economática!$A$3:$AI$823,12,FALSE)=0,VLOOKUP($A105,Economática!$A$3:$AI$823,12,FALSE)=\"-\"),1/0,VLOOKUP($A105,Economática!$A$3:$AI$823,12,FALSE)))","v":1054.19},{"$f":"IF($A105=\"\",\"\",IF(OR(VLOOKUP($A105,Economática!$A$3:$AI$823,13,FALSE)=0,VLOOKUP($A105,Economática!$A$3:$AI$823,13,FALSE)=\"-\"),1/0,VLOOKUP($A105,Economática!$A$3:$AI$823,13,FALSE)))","v":64.14},{"$f":"IF($A105=\"\",\"\",IF(OR(VLOOKUP($A105,Economática!$A$3:$AI$823,14,FALSE)=0,VLOOKUP($A105,Economática!$A$3:$AI$823,14,FALSE)=\"-\"),1/0,VLOOKUP($A105,Economática!$A$3:$AI$823,14,FALSE)))","v":6.99},{"$f":"IF($A105=\"\",\"\",IF(OR(VLOOKUP($A105,Economática!$A$3:$AI$823,15,FALSE)=0,VLOOKUP($A105,Economática!$A$3:$AI$823,15,FALSE)=\"-\"),1/0,VLOOKUP($A105,Economática!$A$3:$AI$823,15,FALSE)))","v":103.4},{"$f":"IF($A105=\"\",\"\",IF(OR(VLOOKUP($A105,Economática!$A$3:$AI$823,16,FALSE)=0,VLOOKUP($A105,Economática!$A$3:$AI$823,16,FALSE)=\"-\"),1/0,VLOOKUP($A105,Economática!$A$3:$AI$823,16,FALSE)))","v":105.97},{"$f":"IF($A105=\"\",\"\",IF(OR(VLOOKUP($A105,Economática!$A$3:$AI$823,17,FALSE)=0,VLOOKUP($A105,Economática!$A$3:$AI$823,17,FALSE)=\"-\"),1/0,VLOOKUP($A105,Economática!$A$3:$AI$823,17,FALSE)))","v":134.28},{"$f":"IF($A105=\"\",\"\",IF(OR(VLOOKUP($A105,Economática!$A$3:$AI$823,18,FALSE)=0,VLOOKUP($A105,Economática!$A$3:$AI$823,18,FALSE)=\"-\"),1/0,VLOOKUP($A105,Economática!$A$3:$AI$823,18,FALSE)))","v":64.14},{"$f":"IF($A105=\"\",\"\",IF(OR(VLOOKUP($A105,Economática!$A$3:$AI$823,19,FALSE)=0,VLOOKUP($A105,Economática!$A$3:$AI$823,19,FALSE)=\"-\"),1/0,VLOOKUP($A105,Economática!$A$3:$AI$823,19,FALSE)))","v":134.28},{"$f":"IF($A105=\"\",\"\",VLOOKUP($A105,Economática!$A$3:$AI$823,20,FALSE)/E105)","v":0.84725122879190351},2.2847642423133467,2.149018226505758,5.7952114238903789,{"$f":"IF($A105=\"\",\"\",IF(OR(VLOOKUP($A105,Economática!$A$3:$AI$823,21,FALSE)/100=0,VLOOKUP($A105,Economática!$A$3:$AI$823,21,FALSE)/100=\"-\"),1/0,VLOOKUP($A105,Economática!$A$3:$AI$823,21,FALSE)/100))","v":0.47117100000000001},{"$f":"IF($A105=\"\",\"\",IF(OR(VLOOKUP($A105,Economática!$A$3:$AI$823,22,FALSE)/100=0,VLOOKUP($A105,Economática!$A$3:$AI$823,22,FALSE)/100=\"-\"),1/0,VLOOKUP($A105,Economática!$A$3:$AI$823,22,FALSE)/100))","v":1.416693},{"$f":"IF($A105=\"\",\"\",IF(OR(VLOOKUP($A105,Economática!$A$3:$AI$823,23,FALSE)=0,VLOOKUP($A105,Economática!$A$3:$AI$823,23,FALSE)=\"-\"),1/0,VLOOKUP($A105,Economática!$A$3:$AI$823,23,FALSE)))","v":189},{"$f":"IF($A105=\"\",\"\",IF(OR(VLOOKUP($A105,Economática!$A$3:$AI$823,24,FALSE)=0,VLOOKUP($A105,Economática!$A$3:$AI$823,24,FALSE)=\"-\"),1/0,VLOOKUP($A105,Economática!$A$3:$AI$823,24,FALSE)))","v":288},{"$f":"IF($A105=\"\",\"\",IF(OR(VLOOKUP($A105,Economática!$A$3:$AI$823,25,FALSE)=0,VLOOKUP($A105,Economática!$A$3:$AI$823,25,FALSE)=\"-\"),1/0,VLOOKUP($A105,Economática!$A$3:$AI$823,25,FALSE)))","v":288},{"$f":"IF($A105=\"\",\"\",IF(ISERROR((F105+VLOOKUP($A105,Economática!$A$3:$AI$823,26,FALSE))/Y105),(F105+VLOOKUP($A105,Economática!$A$3:$AI$823,26,FALSE))/Y105,(F105+VLOOKUP($A105,Economática!$A$3:$AI$823,26,FALSE))/Y105))","v":4.4833090277777776},{"$f":"IF($A105=\"\",\"\",IF(OR(-VLOOKUP($A105,Economática!$A$3:$AI$823,27,FALSE)=0,-VLOOKUP($A105,Economática!$A$3:$AI$823,27,FALSE)=\"-\"),1/0,-VLOOKUP($A105,Economática!$A$3:$AI$823,27,FALSE)))","v":29.7},3.8165977023310801E-2,{"$f":"IF($A105=\"\",\"\",IF(OR(VLOOKUP($A105,Economática!$A$3:$AI$823,28,FALSE)=0,VLOOKUP($A105,Economática!$A$3:$AI$823,28,FALSE)=\"-\"),1/0,VLOOKUP($A105,Economática!$A$3:$AI$823,28,FALSE)))","v":-5.6},{"$f":"IF($A105=\"\",\"\",IF(OR(VLOOKUP($A105,Economática!$A$3:$AI$823,29,FALSE)=0,VLOOKUP($A105,Economática!$A$3:$AI$823,29,FALSE)=\"-\"),1/0,VLOOKUP($A105,Economática!$A$3:$AI$823,29,FALSE)))","v":-6.8},{"$f":"IF($A105=\"\",\"\",IF(OR(VLOOKUP($A105,Economática!$A$3:$AI$823,30,FALSE)/E105=0,VLOOKUP($A105,Economática!$A$3:$AI$823,30,FALSE)/E105=\"-\",VLOOKUP($A105,Economática!$A$3:$AI$823,30,FALSE)/E105<33.33%,VLOOKUP($A105,Economática!$A$3:$AI$823,30,FALSE)/E105>100%),1/0,VLOOKUP($A105,Economática!$A$3:$AI$823,30,FALSE)/E105))","v":{"$error":"#DIV/0!"}},"PTBL3",{"$f":"IF($A105=\"\",\"\",IF(OR(VLOOKUP($A105,Economática!$A$3:$AI$823,25,FALSE)=0,VLOOKUP($A105,Economática!$A$3:$AI$823,25,FALSE)=\"-\"),1/0,VLOOKUP($A105,Economática!$A$3:$AI$823,25,FALSE)))","v":288},{"$f":"CONCATENATE(Economática!B107,\" \",Economática!C107)","v":"Portobello ON"}]
[{"$f":"IF(Economática!AG108=\"\",\"\",Economática!AG108)","v":"ETER3"},{"$f":"IF($A106=\"\",\"\",VLOOKUP(VLOOKUP($A106,Economática!$A$3:$AI$823,6,FALSE),Correção!$B$16:$C$36,2,FALSE))","v":"Mineração"},{"$f":"IF(Economática!B108=\"\",\"\",Economática!B108)","v":"Eternit"},{"$f":"IF($A106=\"\",\"\",IF(OR(VLOOKUP($A106,Economática!$A$3:$AI$823,8,FALSE)=0,VLOOKUP($A106,Economática!$A$3:$AI$823,8,FALSE)=\"-\"),1/0,VLOOKUP($A106,Economática!$A$3:$AI$823,8,FALSE)))","v":2.0699999999999998},{"$f":"IF(A106=\"\",\"\",IF(ISERROR(VLOOKUP(A106,Correção!$B$2:$G$13,9,FALSE)),VLOOKUP($A106,Economática!$A$3:$AI$823,9,FALSE),VLOOKUP(A106,Correção!$B$2:$G$13,9,FALSE)))","v":29.823},{"$f":"IF($A106=\"\",\"\",Economática!G108)","v":61.73},{"$f":"IF($A106=\"\",\"\",IF(OR(VLOOKUP($A106,Economática!$A$3:$AI$823,10,FALSE)=0,VLOOKUP($A106,Economática!$A$3:$AI$823,10,FALSE)=\"-\"),1/0,VLOOKUP($A106,Economática!$A$3:$AI$823,10,FALSE)))","v":12.23},{"$f":"IF($A106=\"\",\"\",IF(OR(VLOOKUP($A106,Economática!$A$3:$AI$823,11,FALSE)=0,VLOOKUP($A106,Economática!$A$3:$AI$823,11,FALSE)=\"-\"),1/0,VLOOKUP($A106,Economática!$A$3:$AI$823,11,FALSE)))","v":665.74},{"$f":"IF($A106=\"\",\"\",IF(OR(VLOOKUP($A106,Economática!$A$3:$AI$823,12,FALSE)=0,VLOOKUP($A106,Economática!$A$3:$AI$823,12,FALSE)=\"-\"),1/0,VLOOKUP($A106,Economática!$A$3:$AI$823,12,FALSE)))","v":536.91},{"$f":"IF($A106=\"\",\"\",IF(OR(VLOOKUP($A106,Economática!$A$3:$AI$823,13,FALSE)=0,VLOOKUP($A106,Economática!$A$3:$AI$823,13,FALSE)=\"-\"),1/0,VLOOKUP($A106,Economática!$A$3:$AI$823,13,FALSE)))","v":-276.39},{"$f":"IF($A106=\"\",\"\",IF(OR(VLOOKUP($A106,Economática!$A$3:$AI$823,14,FALSE)=0,VLOOKUP($A106,Economática!$A$3:$AI$823,14,FALSE)=\"-\"),1/0,VLOOKUP($A106,Economática!$A$3:$AI$823,14,FALSE)))","v":-11.14},{"$f":"IF($A106=\"\",\"\",IF(OR(VLOOKUP($A106,Economática!$A$3:$AI$823,15,FALSE)=0,VLOOKUP($A106,Economática!$A$3:$AI$823,15,FALSE)=\"-\"),1/0,VLOOKUP($A106,Economática!$A$3:$AI$823,15,FALSE)))","v":-45.91},{"$f":"IF($A106=\"\",\"\",IF(OR(VLOOKUP($A106,Economática!$A$3:$AI$823,16,FALSE)=0,VLOOKUP($A106,Economática!$A$3:$AI$823,16,FALSE)=\"-\"),1/0,VLOOKUP($A106,Economática!$A$3:$AI$823,16,FALSE)))","v":-89.02},{"$f":"IF($A106=\"\",\"\",IF(OR(VLOOKUP($A106,Economática!$A$3:$AI$823,17,FALSE)=0,VLOOKUP($A106,Economática!$A$3:$AI$823,17,FALSE)=\"-\"),1/0,VLOOKUP($A106,Economática!$A$3:$AI$823,17,FALSE)))","v":-149.37},{"$f":"IF($A106=\"\",\"\",IF(OR(VLOOKUP($A106,Economática!$A$3:$AI$823,18,FALSE)=0,VLOOKUP($A106,Economática!$A$3:$AI$823,18,FALSE)=\"-\"),1/0,VLOOKUP($A106,Economática!$A$3:$AI$823,18,FALSE)))","v":-276.39},{"$f":"IF($A106=\"\",\"\",IF(OR(VLOOKUP($A106,Economática!$A$3:$AI$823,19,FALSE)=0,VLOOKUP($A106,Economática!$A$3:$AI$823,19,FALSE)=\"-\"),1/0,VLOOKUP($A106,Economática!$A$3:$AI$823,19,FALSE)))","v":-149.37},{"$f":"IF($A106=\"\",\"\",VLOOKUP($A106,Economática!$A$3:$AI$823,20,FALSE)/E106)","v":-5.008550447641082},0.41008617509975526,5.047719542109566,{"$error":"#DIV/0!"},{"$f":"IF($A106=\"\",\"\",IF(OR(VLOOKUP($A106,Economática!$A$3:$AI$823,21,FALSE)/100=0,VLOOKUP($A106,Economática!$A$3:$AI$823,21,FALSE)/100=\"-\"),1/0,VLOOKUP($A106,Economática!$A$3:$AI$823,21,FALSE)/100))","v":-0.87600100000000003},{"$f":"IF($A106=\"\",\"\",IF(OR(VLOOKUP($A106,Economática!$A$3:$AI$823,22,FALSE)/100=0,VLOOKUP($A106,Economática!$A$3:$AI$823,22,FALSE)/100=\"-\"),1/0,VLOOKUP($A106,Economática!$A$3:$AI$823,22,FALSE)/100))","v":9.9382859999999997},{"$f":"IF($A106=\"\",\"\",IF(OR(VLOOKUP($A106,Economática!$A$3:$AI$823,23,FALSE)=0,VLOOKUP($A106,Economática!$A$3:$AI$823,23,FALSE)=\"-\"),1/0,VLOOKUP($A106,Economática!$A$3:$AI$823,23,FALSE)))","v":-192.9},{"$f":"IF($A106=\"\",\"\",IF(OR(VLOOKUP($A106,Economática!$A$3:$AI$823,24,FALSE)=0,VLOOKUP($A106,Economática!$A$3:$AI$823,24,FALSE)=\"-\"),1/0,VLOOKUP($A106,Economática!$A$3:$AI$823,24,FALSE)))","v":-92.3},{"$f":"IF($A106=\"\",\"\",IF(OR(VLOOKUP($A106,Economática!$A$3:$AI$823,25,FALSE)=0,VLOOKUP($A106,Economática!$A$3:$AI$823,25,FALSE)=\"-\"),1/0,VLOOKUP($A106,Economática!$A$3:$AI$823,25,FALSE)))","v":-92.3},{"$f":"IF($A106=\"\",\"\",IF(ISERROR((F106+VLOOKUP($A106,Economática!$A$3:$AI$823,26,FALSE))/Y106),(F106+VLOOKUP($A106,Economática!$A$3:$AI$823,26,FALSE))/Y106,(F106+VLOOKUP($A106,Economática!$A$3:$AI$823,26,FALSE))/Y106))","v":-1.9878006500541712},{"$f":"IF($A106=\"\",\"\",IF(OR(-VLOOKUP($A106,Economática!$A$3:$AI$823,27,FALSE)=0,-VLOOKUP($A106,Economática!$A$3:$AI$823,27,FALSE)=\"-\"),1/0,-VLOOKUP($A106,Economática!$A$3:$AI$823,27,FALSE)))","v":{"$error":"#DIV/0!"}},{"$error":"#DIV/0!"},{"$f":"IF($A106=\"\",\"\",IF(OR(VLOOKUP($A106,Economática!$A$3:$AI$823,28,FALSE)=0,VLOOKUP($A106,Economática!$A$3:$AI$823,28,FALSE)=\"-\"),1/0,VLOOKUP($A106,Economática!$A$3:$AI$823,28,FALSE)))","v":-24.5},{"$f":"IF($A106=\"\",\"\",IF(OR(VLOOKUP($A106,Economática!$A$3:$AI$823,29,FALSE)=0,VLOOKUP($A106,Economática!$A$3:$AI$823,29,FALSE)=\"-\"),1/0,VLOOKUP($A106,Economática!$A$3:$AI$823,29,FALSE)))","v":-62.5},{"$f":"IF($A106=\"\",\"\",IF(OR(VLOOKUP($A106,Economática!$A$3:$AI$823,30,FALSE)/E106=0,VLOOKUP($A106,Economática!$A$3:$AI$823,30,FALSE)/E106=\"-\",VLOOKUP($A106,Economática!$A$3:$AI$823,30,FALSE)/E106<33.33%,VLOOKUP($A106,Economática!$A$3:$AI$823,30,FALSE)/E106>100%),1/0,VLOOKUP($A106,Economática!$A$3:$AI$823,30,FALSE)/E106))","v":0.99922878315394159},"ETER3",{"$f":"IF($A106=\"\",\"\",IF(OR(VLOOKUP($A106,Economática!$A$3:$AI$823,25,FALSE)=0,VLOOKUP($A106,Economática!$A$3:$AI$823,25,FALSE)=\"-\"),1/0,VLOOKUP($A106,Economática!$A$3:$AI$823,25,FALSE)))","v":-92.3},{"$f":"CONCATENATE(Economática!B108,\" \",Economática!C108)","v":"Eternit ON"}]
[{"$f":"IF(Economática!AG109=\"\",\"\",Economática!AG109)","v":"VALE3"},{"$f":"IF($A107=\"\",\"\",VLOOKUP(VLOOKUP($A107,Economática!$A$3:$AI$823,6,FALSE),Correção!$B$16:$C$36,2,FALSE))","v":"Mineração"},{"$f":"IF(Economática!B109=\"\",\"\",Economática!B109)","v":"Vale"},{"$f":"IF($A107=\"\",\"\",IF(OR(VLOOKUP($A107,Economática!$A$3:$AI$823,8,FALSE)=0,VLOOKUP($A107,Economática!$A$3:$AI$823,8,FALSE)=\"-\"),1/0,VLOOKUP($A107,Economática!$A$3:$AI$823,8,FALSE)))","v":50.93},{"$f":"IF(A107=\"\",\"\",IF(ISERROR(VLOOKUP(A107,Correção!$B$2:$G$13,9,FALSE)),VLOOKUP($A107,Economática!$A$3:$AI$823,9,FALSE),VLOOKUP(A107,Correção!$B$2:$G$13,9,FALSE)))","v":5126.259},{"$f":"IF($A107=\"\",\"\",Economática!G109)","v":261080.37},{"$f":"IF($A107=\"\",\"\",IF(OR(VLOOKUP($A107,Economática!$A$3:$AI$823,10,FALSE)=0,VLOOKUP($A107,Economática!$A$3:$AI$823,10,FALSE)=\"-\"),1/0,VLOOKUP($A107,Economática!$A$3:$AI$823,10,FALSE)))","v":170402.63},{"$f":"IF($A107=\"\",\"\",IF(OR(VLOOKUP($A107,Economática!$A$3:$AI$823,11,FALSE)=0,VLOOKUP($A107,Economática!$A$3:$AI$823,11,FALSE)=\"-\"),1/0,VLOOKUP($A107,Economática!$A$3:$AI$823,11,FALSE)))","v":108532.02},{"$f":"IF($A107=\"\",\"\",IF(OR(VLOOKUP($A107,Economática!$A$3:$AI$823,12,FALSE)=0,VLOOKUP($A107,Economática!$A$3:$AI$823,12,FALSE)=\"-\"),1/0,VLOOKUP($A107,Economática!$A$3:$AI$823,12,FALSE)))","v":134483.13},{"$f":"IF($A107=\"\",\"\",IF(OR(VLOOKUP($A107,Economática!$A$3:$AI$823,13,FALSE)=0,VLOOKUP($A107,Economática!$A$3:$AI$823,13,FALSE)=\"-\"),1/0,VLOOKUP($A107,Economática!$A$3:$AI$823,13,FALSE)))","v":17627.2},{"$f":"IF($A107=\"\",\"\",IF(OR(VLOOKUP($A107,Economática!$A$3:$AI$823,14,FALSE)=0,VLOOKUP($A107,Economática!$A$3:$AI$823,14,FALSE)=\"-\"),1/0,VLOOKUP($A107,Economática!$A$3:$AI$823,14,FALSE)))","v":5112.1099999999997},{"$f":"IF($A107=\"\",\"\",IF(OR(VLOOKUP($A107,Economática!$A$3:$AI$823,15,FALSE)=0,VLOOKUP($A107,Economática!$A$3:$AI$823,15,FALSE)=\"-\"),1/0,VLOOKUP($A107,Economática!$A$3:$AI$823,15,FALSE)))","v":5418.21},{"$f":"IF($A107=\"\",\"\",IF(OR(VLOOKUP($A107,Economática!$A$3:$AI$823,16,FALSE)=0,VLOOKUP($A107,Economática!$A$3:$AI$823,16,FALSE)=\"-\"),1/0,VLOOKUP($A107,Economática!$A$3:$AI$823,16,FALSE)))","v":11171.25},{"$f":"IF($A107=\"\",\"\",IF(OR(VLOOKUP($A107,Economática!$A$3:$AI$823,17,FALSE)=0,VLOOKUP($A107,Economática!$A$3:$AI$823,17,FALSE)=\"-\"),1/0,VLOOKUP($A107,Economática!$A$3:$AI$823,17,FALSE)))","v":25656.53},{"$f":"IF($A107=\"\",\"\",IF(OR(VLOOKUP($A107,Economática!$A$3:$AI$823,18,FALSE)=0,VLOOKUP($A107,Economática!$A$3:$AI$823,18,FALSE)=\"-\"),1/0,VLOOKUP($A107,Economática!$A$3:$AI$823,18,FALSE)))","v":17627.2},{"$f":"IF($A107=\"\",\"\",IF(OR(VLOOKUP($A107,Economática!$A$3:$AI$823,19,FALSE)=0,VLOOKUP($A107,Economática!$A$3:$AI$823,19,FALSE)=\"-\"),1/0,VLOOKUP($A107,Economática!$A$3:$AI$823,19,FALSE)))","v":25656.53},{"$f":"IF($A107=\"\",\"\",VLOOKUP($A107,Economática!$A$3:$AI$823,20,FALSE)/E107)","v":5.0049226931374315},33.241127691753384,1.5321381534428193,10.17598135328511,{"$f":"IF($A107=\"\",\"\",IF(OR(VLOOKUP($A107,Economática!$A$3:$AI$823,21,FALSE)/100=0,VLOOKUP($A107,Economática!$A$3:$AI$823,21,FALSE)/100=\"-\"),1/0,VLOOKUP($A107,Economática!$A$3:$AI$823,21,FALSE)/100))","v":0.17402300000000001},{"$f":"IF($A107=\"\",\"\",IF(OR(VLOOKUP($A107,Economática!$A$3:$AI$823,22,FALSE)/100=0,VLOOKUP($A107,Economática!$A$3:$AI$823,22,FALSE)/100=\"-\"),1/0,VLOOKUP($A107,Economática!$A$3:$AI$823,22,FALSE)/100))","v":0.21600000000000003},{"$f":"IF($A107=\"\",\"\",IF(OR(VLOOKUP($A107,Economática!$A$3:$AI$823,23,FALSE)=0,VLOOKUP($A107,Economática!$A$3:$AI$823,23,FALSE)=\"-\"),1/0,VLOOKUP($A107,Economática!$A$3:$AI$823,23,FALSE)))","v":46376},{"$f":"IF($A107=\"\",\"\",IF(OR(VLOOKUP($A107,Economática!$A$3:$AI$823,24,FALSE)=0,VLOOKUP($A107,Economática!$A$3:$AI$823,24,FALSE)=\"-\"),1/0,VLOOKUP($A107,Economática!$A$3:$AI$823,24,FALSE)))","v":55414.7},{"$f":"IF($A107=\"\",\"\",IF(OR(VLOOKUP($A107,Economática!$A$3:$AI$823,25,FALSE)=0,VLOOKUP($A107,Economática!$A$3:$AI$823,25,FALSE)=\"-\"),1/0,VLOOKUP($A107,Economática!$A$3:$AI$823,25,FALSE)))","v":55414.7},{"$f":"IF($A107=\"\",\"\",IF(ISERROR((F107+VLOOKUP($A107,Economática!$A$3:$AI$823,26,FALSE))/Y107),(F107+VLOOKUP($A107,Economática!$A$3:$AI$823,26,FALSE))/Y107,(F107+VLOOKUP($A107,Economática!$A$3:$AI$823,26,FALSE))/Y107))","v":5.3883856991015024},{"$f":"IF($A107=\"\",\"\",IF(OR(-VLOOKUP($A107,Economática!$A$3:$AI$823,27,FALSE)=0,-VLOOKUP($A107,Economática!$A$3:$AI$823,27,FALSE)=\"-\"),1/0,-VLOOKUP($A107,Economática!$A$3:$AI$823,27,FALSE)))","v":12415.27},4.7553441110873257E-2,{"$f":"IF($A107=\"\",\"\",IF(OR(VLOOKUP($A107,Economática!$A$3:$AI$823,28,FALSE)=0,VLOOKUP($A107,Economática!$A$3:$AI$823,28,FALSE)=\"-\"),1/0,VLOOKUP($A107,Economática!$A$3:$AI$823,28,FALSE)))","v":8.1},{"$f":"IF($A107=\"\",\"\",IF(OR(VLOOKUP($A107,Economática!$A$3:$AI$823,29,FALSE)=0,VLOOKUP($A107,Economática!$A$3:$AI$823,29,FALSE)=\"-\"),1/0,VLOOKUP($A107,Economática!$A$3:$AI$823,29,FALSE)))","v":31.6},{"$f":"IF($A107=\"\",\"\",IF(OR(VLOOKUP($A107,Economática!$A$3:$AI$823,30,FALSE)/E107=0,VLOOKUP($A107,Economática!$A$3:$AI$823,30,FALSE)/E107=\"-\",VLOOKUP($A107,Economática!$A$3:$AI$823,30,FALSE)/E107<33.33%,VLOOKUP($A107,Economática!$A$3:$AI$823,30,FALSE)/E107>100%),1/0,VLOOKUP($A107,Economática!$A$3:$AI$823,30,FALSE)/E107))","v":{"$error":"#DIV/0!"}},"VALE3",{"$f":"IF($A107=\"\",\"\",IF(OR(VLOOKUP($A107,Economática!$A$3:$AI$823,25,FALSE)=0,VLOOKUP($A107,Economática!$A$3:$AI$823,25,FALSE)=\"-\"),1/0,VLOOKUP($A107,Economática!$A$3:$AI$823,25,FALSE)))","v":55414.7},{"$f":"CONCATENATE(Economática!B109,\" \",Economática!C109)","v":"Vale ON"}]
[{"$f":"IF(Economática!AG110=\"\",\"\",Economática!AG110)","v":"MMXM3"},{"$f":"IF($A108=\"\",\"\",VLOOKUP(VLOOKUP($A108,Economática!$A$3:$AI$823,6,FALSE),Correção!$B$16:$C$36,2,FALSE))","v":"Mineração"},{"$f":"IF(Economática!B110=\"\",\"\",Economática!B110)","v":"MMX Miner"},{"$f":"IF($A108=\"\",\"\",IF(OR(VLOOKUP($A108,Economática!$A$3:$AI$823,8,FALSE)=0,VLOOKUP($A108,Economática!$A$3:$AI$823,8,FALSE)=\"-\"),1/0,VLOOKUP($A108,Economática!$A$3:$AI$823,8,FALSE)))","v":2.0699999999999998},{"$f":"IF(A108=\"\",\"\",IF(ISERROR(VLOOKUP(A108,Correção!$B$2:$G$13,9,FALSE)),VLOOKUP($A108,Economática!$A$3:$AI$823,9,FALSE),VLOOKUP(A108,Correção!$B$2:$G$13,9,FALSE)))","v":6.4880000000000004},{"$f":"IF($A108=\"\",\"\",Economática!G110)","v":13.43},{"$f":"IF($A108=\"\",\"\",IF(OR(VLOOKUP($A108,Economática!$A$3:$AI$823,10,FALSE)=0,VLOOKUP($A108,Economática!$A$3:$AI$823,10,FALSE)=\"-\"),1/0,VLOOKUP($A108,Economática!$A$3:$AI$823,10,FALSE)))","v":-611.64},{"$f":"IF($A108=\"\",\"\",IF(OR(VLOOKUP($A108,Economática!$A$3:$AI$823,11,FALSE)=0,VLOOKUP($A108,Economática!$A$3:$AI$823,11,FALSE)=\"-\"),1/0,VLOOKUP($A108,Economática!$A$3:$AI$823,11,FALSE)))","v":0.45},{"$f":"IF($A108=\"\",\"\",IF(OR(VLOOKUP($A108,Economática!$A$3:$AI$823,12,FALSE)=0,VLOOKUP($A108,Economática!$A$3:$AI$823,12,FALSE)=\"-\"),1/0,VLOOKUP($A108,Economática!$A$3:$AI$823,12,FALSE)))","v":2.7},{"$f":"IF($A108=\"\",\"\",IF(OR(VLOOKUP($A108,Economática!$A$3:$AI$823,13,FALSE)=0,VLOOKUP($A108,Economática!$A$3:$AI$823,13,FALSE)=\"-\"),1/0,VLOOKUP($A108,Economática!$A$3:$AI$823,13,FALSE)))","v":-28.1},{"$f":"IF($A108=\"\",\"\",IF(OR(VLOOKUP($A108,Economática!$A$3:$AI$823,14,FALSE)=0,VLOOKUP($A108,Economática!$A$3:$AI$823,14,FALSE)=\"-\"),1/0,VLOOKUP($A108,Economática!$A$3:$AI$823,14,FALSE)))","v":-7.96},{"$f":"IF($A108=\"\",\"\",IF(OR(VLOOKUP($A108,Economática!$A$3:$AI$823,15,FALSE)=0,VLOOKUP($A108,Economática!$A$3:$AI$823,15,FALSE)=\"-\"),1/0,VLOOKUP($A108,Economática!$A$3:$AI$823,15,FALSE)))","v":-45.32},{"$f":"IF($A108=\"\",\"\",IF(OR(VLOOKUP($A108,Economática!$A$3:$AI$823,16,FALSE)=0,VLOOKUP($A108,Economática!$A$3:$AI$823,16,FALSE)=\"-\"),1/0,VLOOKUP($A108,Economática!$A$3:$AI$823,16,FALSE)))","v":-60.6},{"$f":"IF($A108=\"\",\"\",IF(OR(VLOOKUP($A108,Economática!$A$3:$AI$823,17,FALSE)=0,VLOOKUP($A108,Economática!$A$3:$AI$823,17,FALSE)=\"-\"),1/0,VLOOKUP($A108,Economática!$A$3:$AI$823,17,FALSE)))","v":-110.11},{"$f":"IF($A108=\"\",\"\",IF(OR(VLOOKUP($A108,Economática!$A$3:$AI$823,18,FALSE)=0,VLOOKUP($A108,Economática!$A$3:$AI$823,18,FALSE)=\"-\"),1/0,VLOOKUP($A108,Economática!$A$3:$AI$823,18,FALSE)))","v":-28.1},{"$f":"IF($A108=\"\",\"\",IF(OR(VLOOKUP($A108,Economática!$A$3:$AI$823,19,FALSE)=0,VLOOKUP($A108,Economática!$A$3:$AI$823,19,FALSE)=\"-\"),1/0,VLOOKUP($A108,Economática!$A$3:$AI$823,19,FALSE)))","v":-110.11},{"$f":"IF($A108=\"\",\"\",VLOOKUP($A108,Economática!$A$3:$AI$823,20,FALSE)/E108)","v":-16.971331689272503},{"$error":"#DIV/0!"},{"$error":"#DIV/0!"},{"$error":"#DIV/0!"},{"$f":"IF($A108=\"\",\"\",IF(OR(VLOOKUP($A108,Economática!$A$3:$AI$823,21,FALSE)/100=0,VLOOKUP($A108,Economática!$A$3:$AI$823,21,FALSE)/100=\"-\"),1/0,VLOOKUP($A108,Economática!$A$3:$AI$823,21,FALSE)/100))","v":{"$error":"#VALUE!"}},{"$f":"IF($A108=\"\",\"\",IF(OR(VLOOKUP($A108,Economática!$A$3:$AI$823,22,FALSE)/100=0,VLOOKUP($A108,Economática!$A$3:$AI$823,22,FALSE)/100=\"-\"),1/0,VLOOKUP($A108,Economática!$A$3:$AI$823,22,FALSE)/100))","v":-0.28126499999999999},{"$f":"IF($A108=\"\",\"\",IF(OR(VLOOKUP($A108,Economática!$A$3:$AI$823,23,FALSE)=0,VLOOKUP($A108,Economática!$A$3:$AI$823,23,FALSE)=\"-\"),1/0,VLOOKUP($A108,Economática!$A$3:$AI$823,23,FALSE)))","v":-14.5},{"$f":"IF($A108=\"\",\"\",IF(OR(VLOOKUP($A108,Economática!$A$3:$AI$823,24,FALSE)=0,VLOOKUP($A108,Economática!$A$3:$AI$823,24,FALSE)=\"-\"),1/0,VLOOKUP($A108,Economática!$A$3:$AI$823,24,FALSE)))","v":-45.2},{"$f":"IF($A108=\"\",\"\",IF(OR(VLOOKUP($A108,Economática!$A$3:$AI$823,25,FALSE)=0,VLOOKUP($A108,Economática!$A$3:$AI$823,25,FALSE)=\"-\"),1/0,VLOOKUP($A108,Economática!$A$3:$AI$823,25,FALSE)))","v":-45.2},{"$f":"IF($A108=\"\",\"\",IF(ISERROR((F108+VLOOKUP($A108,Economática!$A$3:$AI$823,26,FALSE))/Y108),(F108+VLOOKUP($A108,Economática!$A$3:$AI$823,26,FALSE))/Y108,(F108+VLOOKUP($A108,Economática!$A$3:$AI$823,26,FALSE))/Y108))","v":-4.1104424778761057},{"$f":"IF($A108=\"\",\"\",IF(OR(-VLOOKUP($A108,Economática!$A$3:$AI$823,27,FALSE)=0,-VLOOKUP($A108,Economática!$A$3:$AI$823,27,FALSE)=\"-\"),1/0,-VLOOKUP($A108,Economática!$A$3:$AI$823,27,FALSE)))","v":{"$error":"#DIV/0!"}},{"$error":"#DIV/0!"},{"$f":"IF($A108=\"\",\"\",IF(OR(VLOOKUP($A108,Economática!$A$3:$AI$823,28,FALSE)=0,VLOOKUP($A108,Economática!$A$3:$AI$823,28,FALSE)=\"-\"),1/0,VLOOKUP($A108,Economática!$A$3:$AI$823,28,FALSE)))","v":-1.9},{"$f":"IF($A108=\"\",\"\",IF(OR(VLOOKUP($A108,Economática!$A$3:$AI$823,29,FALSE)=0,VLOOKUP($A108,Economática!$A$3:$AI$823,29,FALSE)=\"-\"),1/0,VLOOKUP($A108,Economática!$A$3:$AI$823,29,FALSE)))","v":-30.1},{"$f":"IF($A108=\"\",\"\",IF(OR(VLOOKUP($A108,Economática!$A$3:$AI$823,30,FALSE)/E108=0,VLOOKUP($A108,Economática!$A$3:$AI$823,30,FALSE)/E108=\"-\",VLOOKUP($A108,Economática!$A$3:$AI$823,30,FALSE)/E108<33.33%,VLOOKUP($A108,Economática!$A$3:$AI$823,30,FALSE)/E108>100%),1/0,VLOOKUP($A108,Economática!$A$3:$AI$823,30,FALSE)/E108))","v":{"$error":"#DIV/0!"}},"MMXM3",{"$f":"IF($A108=\"\",\"\",IF(OR(VLOOKUP($A108,Economática!$A$3:$AI$823,25,FALSE)=0,VLOOKUP($A108,Economática!$A$3:$AI$823,25,FALSE)=\"-\"),1/0,VLOOKUP($A108,Economática!$A$3:$AI$823,25,FALSE)))","v":-45.2},{"$f":"CONCATENATE(Economática!B110,\" \",Economática!C110)","v":"MMX Miner ON"}]
[{"$f":"IF(Economática!AG111=\"\",\"\",Economática!AG111)","v":"WEGE3"},{"$f":"IF($A109=\"\",\"\",VLOOKUP(VLOOKUP($A109,Economática!$A$3:$AI$823,6,FALSE),Correção!$B$16:$C$36,2,FALSE))","v":"Máquinas Industriais"},{"$f":"IF(Economática!B111=\"\",\"\",Economática!B111)","v":"Weg"},{"$f":"IF($A109=\"\",\"\",IF(OR(VLOOKUP($A109,Economática!$A$3:$AI$823,8,FALSE)=0,VLOOKUP($A109,Economática!$A$3:$AI$823,8,FALSE)=\"-\"),1/0,VLOOKUP($A109,Economática!$A$3:$AI$823,8,FALSE)))","v":18},{"$f":"IF(A109=\"\",\"\",IF(ISERROR(VLOOKUP(A109,Correção!$B$2:$G$13,9,FALSE)),VLOOKUP($A109,Economática!$A$3:$AI$823,9,FALSE),VLOOKUP(A109,Correção!$B$2:$G$13,9,FALSE)))","v":2097.165},{"$f":"IF($A109=\"\",\"\",Economática!G111)","v":37748.959999999999},{"$f":"IF($A109=\"\",\"\",IF(OR(VLOOKUP($A109,Economática!$A$3:$AI$823,10,FALSE)=0,VLOOKUP($A109,Economática!$A$3:$AI$823,10,FALSE)=\"-\"),1/0,VLOOKUP($A109,Economática!$A$3:$AI$823,10,FALSE)))","v":7714.27},{"$f":"IF($A109=\"\",\"\",IF(OR(VLOOKUP($A109,Economática!$A$3:$AI$823,11,FALSE)=0,VLOOKUP($A109,Economática!$A$3:$AI$823,11,FALSE)=\"-\"),1/0,VLOOKUP($A109,Economática!$A$3:$AI$823,11,FALSE)))","v":9523.83},{"$f":"IF($A109=\"\",\"\",IF(OR(VLOOKUP($A109,Economática!$A$3:$AI$823,12,FALSE)=0,VLOOKUP($A109,Economática!$A$3:$AI$823,12,FALSE)=\"-\"),1/0,VLOOKUP($A109,Economática!$A$3:$AI$823,12,FALSE)))","v":11970.09},{"$f":"IF($A109=\"\",\"\",IF(OR(VLOOKUP($A109,Economática!$A$3:$AI$823,13,FALSE)=0,VLOOKUP($A109,Economática!$A$3:$AI$823,13,FALSE)=\"-\"),1/0,VLOOKUP($A109,Economática!$A$3:$AI$823,13,FALSE)))","v":1142.1500000000001},{"$f":"IF($A109=\"\",\"\",IF(OR(VLOOKUP($A109,Economática!$A$3:$AI$823,14,FALSE)=0,VLOOKUP($A109,Economática!$A$3:$AI$823,14,FALSE)=\"-\"),1/0,VLOOKUP($A109,Economática!$A$3:$AI$823,14,FALSE)))","v":285},{"$f":"IF($A109=\"\",\"\",IF(OR(VLOOKUP($A109,Economática!$A$3:$AI$823,15,FALSE)=0,VLOOKUP($A109,Economática!$A$3:$AI$823,15,FALSE)=\"-\"),1/0,VLOOKUP($A109,Economática!$A$3:$AI$823,15,FALSE)))","v":621.61},{"$f":"IF($A109=\"\",\"\",IF(OR(VLOOKUP($A109,Economática!$A$3:$AI$823,16,FALSE)=0,VLOOKUP($A109,Economática!$A$3:$AI$823,16,FALSE)=\"-\"),1/0,VLOOKUP($A109,Economática!$A$3:$AI$823,16,FALSE)))","v":1003.04},{"$f":"IF($A109=\"\",\"\",IF(OR(VLOOKUP($A109,Economática!$A$3:$AI$823,17,FALSE)=0,VLOOKUP($A109,Economática!$A$3:$AI$823,17,FALSE)=\"-\"),1/0,VLOOKUP($A109,Economática!$A$3:$AI$823,17,FALSE)))","v":1338.32},{"$f":"IF($A109=\"\",\"\",IF(OR(VLOOKUP($A109,Economática!$A$3:$AI$823,18,FALSE)=0,VLOOKUP($A109,Economática!$A$3:$AI$823,18,FALSE)=\"-\"),1/0,VLOOKUP($A109,Economática!$A$3:$AI$823,18,FALSE)))","v":1142.1500000000001},{"$f":"IF($A109=\"\",\"\",IF(OR(VLOOKUP($A109,Economática!$A$3:$AI$823,19,FALSE)=0,VLOOKUP($A109,Economática!$A$3:$AI$823,19,FALSE)=\"-\"),1/0,VLOOKUP($A109,Economática!$A$3:$AI$823,19,FALSE)))","v":1338.32},{"$f":"IF($A109=\"\",\"\",VLOOKUP($A109,Economática!$A$3:$AI$823,20,FALSE)/E109)","v":0.63815674970734304},3.678427782267967,4.8933949680267865,28.206236176699143,{"$f":"IF($A109=\"\",\"\",IF(OR(VLOOKUP($A109,Economática!$A$3:$AI$823,21,FALSE)/100=0,VLOOKUP($A109,Economática!$A$3:$AI$823,21,FALSE)/100=\"-\"),1/0,VLOOKUP($A109,Economática!$A$3:$AI$823,21,FALSE)/100))","v":0.19641800000000001},{"$f":"IF($A109=\"\",\"\",IF(OR(VLOOKUP($A109,Economática!$A$3:$AI$823,22,FALSE)/100=0,VLOOKUP($A109,Economática!$A$3:$AI$823,22,FALSE)/100=\"-\"),1/0,VLOOKUP($A109,Economática!$A$3:$AI$823,22,FALSE)/100))","v":3.0844E-2},{"$f":"IF($A109=\"\",\"\",IF(OR(VLOOKUP($A109,Economática!$A$3:$AI$823,23,FALSE)=0,VLOOKUP($A109,Economática!$A$3:$AI$823,23,FALSE)=\"-\"),1/0,VLOOKUP($A109,Economática!$A$3:$AI$823,23,FALSE)))","v":1466.3},{"$f":"IF($A109=\"\",\"\",IF(OR(VLOOKUP($A109,Economática!$A$3:$AI$823,24,FALSE)=0,VLOOKUP($A109,Economática!$A$3:$AI$823,24,FALSE)=\"-\"),1/0,VLOOKUP($A109,Economática!$A$3:$AI$823,24,FALSE)))","v":1824.1},{"$f":"IF($A109=\"\",\"\",IF(OR(VLOOKUP($A109,Economática!$A$3:$AI$823,25,FALSE)=0,VLOOKUP($A109,Economática!$A$3:$AI$823,25,FALSE)=\"-\"),1/0,VLOOKUP($A109,Economática!$A$3:$AI$823,25,FALSE)))","v":1824.1},{"$f":"IF($A109=\"\",\"\",IF(ISERROR((F109+VLOOKUP($A109,Economática!$A$3:$AI$823,26,FALSE))/Y109),(F109+VLOOKUP($A109,Economática!$A$3:$AI$823,26,FALSE))/Y109,(F109+VLOOKUP($A109,Economática!$A$3:$AI$823,26,FALSE))/Y109))","v":20.827359245655394},{"$f":"IF($A109=\"\",\"\",IF(OR(-VLOOKUP($A109,Economática!$A$3:$AI$823,27,FALSE)=0,-VLOOKUP($A109,Economática!$A$3:$AI$823,27,FALSE)=\"-\"),1/0,-VLOOKUP($A109,Economática!$A$3:$AI$823,27,FALSE)))","v":604.15},1.6004414426251744E-2,{"$f":"IF($A109=\"\",\"\",IF(OR(VLOOKUP($A109,Economática!$A$3:$AI$823,28,FALSE)=0,VLOOKUP($A109,Economática!$A$3:$AI$823,28,FALSE)=\"-\"),1/0,VLOOKUP($A109,Economática!$A$3:$AI$823,28,FALSE)))","v":-2},{"$f":"IF($A109=\"\",\"\",IF(OR(VLOOKUP($A109,Economática!$A$3:$AI$823,29,FALSE)=0,VLOOKUP($A109,Economática!$A$3:$AI$823,29,FALSE)=\"-\"),1/0,VLOOKUP($A109,Economática!$A$3:$AI$823,29,FALSE)))","v":-0.5},{"$f":"IF($A109=\"\",\"\",IF(OR(VLOOKUP($A109,Economática!$A$3:$AI$823,30,FALSE)/E109=0,VLOOKUP($A109,Economática!$A$3:$AI$823,30,FALSE)/E109=\"-\",VLOOKUP($A109,Economática!$A$3:$AI$823,30,FALSE)/E109<33.33%,VLOOKUP($A109,Economática!$A$3:$AI$823,30,FALSE)/E109>100%),1/0,VLOOKUP($A109,Economática!$A$3:$AI$823,30,FALSE)/E109))","v":{"$error":"#DIV/0!"}},"WEGE3",{"$f":"IF($A109=\"\",\"\",IF(OR(VLOOKUP($A109,Economática!$A$3:$AI$823,25,FALSE)=0,VLOOKUP($A109,Economática!$A$3:$AI$823,25,FALSE)=\"-\"),1/0,VLOOKUP($A109,Economática!$A$3:$AI$823,25,FALSE)))","v":1824.1},{"$f":"CONCATENATE(Economática!B111,\" \",Economática!C111)","v":"Weg ON"}]
[{"$f":"IF(Economática!AG112=\"\",\"\",Economática!AG112)","v":"ROMI3"},{"$f":"IF($A110=\"\",\"\",VLOOKUP(VLOOKUP($A110,Economática!$A$3:$AI$823,6,FALSE),Correção!$B$16:$C$36,2,FALSE))","v":"Máquinas Industriais"},{"$f":"IF(Economática!B112=\"\",\"\",Economática!B112)","v":"Inds Romi"},{"$f":"IF($A110=\"\",\"\",IF(OR(VLOOKUP($A110,Economática!$A$3:$AI$823,8,FALSE)=0,VLOOKUP($A110,Economática!$A$3:$AI$823,8,FALSE)=\"-\"),1/0,VLOOKUP($A110,Economática!$A$3:$AI$823,8,FALSE)))","v":10.96},{"$f":"IF(A110=\"\",\"\",IF(ISERROR(VLOOKUP(A110,Correção!$B$2:$G$13,9,FALSE)),VLOOKUP($A110,Economática!$A$3:$AI$823,9,FALSE),VLOOKUP(A110,Correção!$B$2:$G$13,9,FALSE)))","v":62.857999999999997},{"$f":"IF($A110=\"\",\"\",Economática!G112)","v":688.92},{"$f":"IF($A110=\"\",\"\",IF(OR(VLOOKUP($A110,Economática!$A$3:$AI$823,10,FALSE)=0,VLOOKUP($A110,Economática!$A$3:$AI$823,10,FALSE)=\"-\"),1/0,VLOOKUP($A110,Economática!$A$3:$AI$823,10,FALSE)))","v":695.98},{"$f":"IF($A110=\"\",\"\",IF(OR(VLOOKUP($A110,Economática!$A$3:$AI$823,11,FALSE)=0,VLOOKUP($A110,Economática!$A$3:$AI$823,11,FALSE)=\"-\"),1/0,VLOOKUP($A110,Economática!$A$3:$AI$823,11,FALSE)))","v":672.87},{"$f":"IF($A110=\"\",\"\",IF(OR(VLOOKUP($A110,Economática!$A$3:$AI$823,12,FALSE)=0,VLOOKUP($A110,Economática!$A$3:$AI$823,12,FALSE)=\"-\"),1/0,VLOOKUP($A110,Economática!$A$3:$AI$823,12,FALSE)))","v":743.46},{"$f":"IF($A110=\"\",\"\",IF(OR(VLOOKUP($A110,Economática!$A$3:$AI$823,13,FALSE)=0,VLOOKUP($A110,Economática!$A$3:$AI$823,13,FALSE)=\"-\"),1/0,VLOOKUP($A110,Economática!$A$3:$AI$823,13,FALSE)))","v":37.659999999999997},{"$f":"IF($A110=\"\",\"\",IF(OR(VLOOKUP($A110,Economática!$A$3:$AI$823,14,FALSE)=0,VLOOKUP($A110,Economática!$A$3:$AI$823,14,FALSE)=\"-\"),1/0,VLOOKUP($A110,Economática!$A$3:$AI$823,14,FALSE)))","v":1.8},{"$f":"IF($A110=\"\",\"\",IF(OR(VLOOKUP($A110,Economática!$A$3:$AI$823,15,FALSE)=0,VLOOKUP($A110,Economática!$A$3:$AI$823,15,FALSE)=\"-\"),1/0,VLOOKUP($A110,Economática!$A$3:$AI$823,15,FALSE)))","v":47.2},{"$f":"IF($A110=\"\",\"\",IF(OR(VLOOKUP($A110,Economática!$A$3:$AI$823,16,FALSE)=0,VLOOKUP($A110,Economática!$A$3:$AI$823,16,FALSE)=\"-\"),1/0,VLOOKUP($A110,Economática!$A$3:$AI$823,16,FALSE)))","v":63.09},{"$f":"IF($A110=\"\",\"\",IF(OR(VLOOKUP($A110,Economática!$A$3:$AI$823,17,FALSE)=0,VLOOKUP($A110,Economática!$A$3:$AI$823,17,FALSE)=\"-\"),1/0,VLOOKUP($A110,Economática!$A$3:$AI$823,17,FALSE)))","v":84},{"$f":"IF($A110=\"\",\"\",IF(OR(VLOOKUP($A110,Economática!$A$3:$AI$823,18,FALSE)=0,VLOOKUP($A110,Economática!$A$3:$AI$823,18,FALSE)=\"-\"),1/0,VLOOKUP($A110,Economática!$A$3:$AI$823,18,FALSE)))","v":37.659999999999997},{"$f":"IF($A110=\"\",\"\",IF(OR(VLOOKUP($A110,Economática!$A$3:$AI$823,19,FALSE)=0,VLOOKUP($A110,Economática!$A$3:$AI$823,19,FALSE)=\"-\"),1/0,VLOOKUP($A110,Economática!$A$3:$AI$823,19,FALSE)))","v":84},{"$f":"IF($A110=\"\",\"\",VLOOKUP($A110,Economática!$A$3:$AI$823,20,FALSE)/E110)","v":1.3363454134716346},11.072258105571288,0.98986131785396136,8.2014723809523815,{"$f":"IF($A110=\"\",\"\",IF(OR(VLOOKUP($A110,Economática!$A$3:$AI$823,21,FALSE)/100=0,VLOOKUP($A110,Economática!$A$3:$AI$823,21,FALSE)/100=\"-\"),1/0,VLOOKUP($A110,Economática!$A$3:$AI$823,21,FALSE)/100))","v":0.13092499999999999},{"$f":"IF($A110=\"\",\"\",IF(OR(VLOOKUP($A110,Economática!$A$3:$AI$823,22,FALSE)/100=0,VLOOKUP($A110,Economática!$A$3:$AI$823,22,FALSE)/100=\"-\"),1/0,VLOOKUP($A110,Economática!$A$3:$AI$823,22,FALSE)/100))","v":0.30486099999999999},{"$f":"IF($A110=\"\",\"\",IF(OR(VLOOKUP($A110,Economática!$A$3:$AI$823,23,FALSE)=0,VLOOKUP($A110,Economática!$A$3:$AI$823,23,FALSE)=\"-\"),1/0,VLOOKUP($A110,Economática!$A$3:$AI$823,23,FALSE)))","v":81.5},{"$f":"IF($A110=\"\",\"\",IF(OR(VLOOKUP($A110,Economática!$A$3:$AI$823,24,FALSE)=0,VLOOKUP($A110,Economática!$A$3:$AI$823,24,FALSE)=\"-\"),1/0,VLOOKUP($A110,Economática!$A$3:$AI$823,24,FALSE)))","v":79.3},{"$f":"IF($A110=\"\",\"\",IF(OR(VLOOKUP($A110,Economática!$A$3:$AI$823,25,FALSE)=0,VLOOKUP($A110,Economática!$A$3:$AI$823,25,FALSE)=\"-\"),1/0,VLOOKUP($A110,Economática!$A$3:$AI$823,25,FALSE)))","v":79.3},{"$f":"IF($A110=\"\",\"\",IF(ISERROR((F110+VLOOKUP($A110,Economática!$A$3:$AI$823,26,FALSE))/Y110),(F110+VLOOKUP($A110,Economática!$A$3:$AI$823,26,FALSE))/Y110,(F110+VLOOKUP($A110,Economática!$A$3:$AI$823,26,FALSE))/Y110))","v":11.369382093316521},{"$f":"IF($A110=\"\",\"\",IF(OR(-VLOOKUP($A110,Economática!$A$3:$AI$823,27,FALSE)=0,-VLOOKUP($A110,Economática!$A$3:$AI$823,27,FALSE)=\"-\"),1/0,-VLOOKUP($A110,Economática!$A$3:$AI$823,27,FALSE)))","v":27.3},3.9627242640654939E-2,{"$f":"IF($A110=\"\",\"\",IF(OR(VLOOKUP($A110,Economática!$A$3:$AI$823,28,FALSE)=0,VLOOKUP($A110,Economática!$A$3:$AI$823,28,FALSE)=\"-\"),1/0,VLOOKUP($A110,Economática!$A$3:$AI$823,28,FALSE)))","v":0.6},{"$f":"IF($A110=\"\",\"\",IF(OR(VLOOKUP($A110,Economática!$A$3:$AI$823,29,FALSE)=0,VLOOKUP($A110,Economática!$A$3:$AI$823,29,FALSE)=\"-\"),1/0,VLOOKUP($A110,Economática!$A$3:$AI$823,29,FALSE)))","v":54.9},{"$f":"IF($A110=\"\",\"\",IF(OR(VLOOKUP($A110,Economática!$A$3:$AI$823,30,FALSE)/E110=0,VLOOKUP($A110,Economática!$A$3:$AI$823,30,FALSE)/E110=\"-\",VLOOKUP($A110,Economática!$A$3:$AI$823,30,FALSE)/E110<33.33%,VLOOKUP($A110,Economática!$A$3:$AI$823,30,FALSE)/E110>100%),1/0,VLOOKUP($A110,Economática!$A$3:$AI$823,30,FALSE)/E110))","v":{"$error":"#DIV/0!"}},"ROMI3",{"$f":"IF($A110=\"\",\"\",IF(OR(VLOOKUP($A110,Economática!$A$3:$AI$823,25,FALSE)=0,VLOOKUP($A110,Economática!$A$3:$AI$823,25,FALSE)=\"-\"),1/0,VLOOKUP($A110,Economática!$A$3:$AI$823,25,FALSE)))","v":79.3},{"$f":"CONCATENATE(Economática!B112,\" \",Economática!C112)","v":"Inds Romi ON"}]
[{"$f":"IF(Economática!AG113=\"\",\"\",Economática!AG113)","v":"FRIO3"},{"$f":"IF($A111=\"\",\"\",VLOOKUP(VLOOKUP($A111,Economática!$A$3:$AI$823,6,FALSE),Correção!$B$16:$C$36,2,FALSE))","v":"Máquinas Industriais"},{"$f":"IF(Economática!B113=\"\",\"\",Economática!B113)","v":"Metalfrio"},{"$f":"IF($A111=\"\",\"\",IF(OR(VLOOKUP($A111,Economática!$A$3:$AI$823,8,FALSE)=0,VLOOKUP($A111,Economática!$A$3:$AI$823,8,FALSE)=\"-\"),1/0,VLOOKUP($A111,Economática!$A$3:$AI$823,8,FALSE)))","v":47.62},{"$f":"IF(A111=\"\",\"\",IF(ISERROR(VLOOKUP(A111,Correção!$B$2:$G$13,9,FALSE)),VLOOKUP($A111,Economática!$A$3:$AI$823,9,FALSE),VLOOKUP(A111,Correção!$B$2:$G$13,9,FALSE)))","v":4.1070000000000002},{"$f":"IF($A111=\"\",\"\",Economática!G113)","v":195.56},{"$f":"IF($A111=\"\",\"\",IF(OR(VLOOKUP($A111,Economática!$A$3:$AI$823,10,FALSE)=0,VLOOKUP($A111,Economática!$A$3:$AI$823,10,FALSE)=\"-\"),1/0,VLOOKUP($A111,Economática!$A$3:$AI$823,10,FALSE)))","v":37.76},{"$f":"IF($A111=\"\",\"\",IF(OR(VLOOKUP($A111,Economática!$A$3:$AI$823,11,FALSE)=0,VLOOKUP($A111,Economática!$A$3:$AI$823,11,FALSE)=\"-\"),1/0,VLOOKUP($A111,Economática!$A$3:$AI$823,11,FALSE)))","v":985.75},{"$f":"IF($A111=\"\",\"\",IF(OR(VLOOKUP($A111,Economática!$A$3:$AI$823,12,FALSE)=0,VLOOKUP($A111,Economática!$A$3:$AI$823,12,FALSE)=\"-\"),1/0,VLOOKUP($A111,Economática!$A$3:$AI$823,12,FALSE)))","v":1196.9000000000001},{"$f":"IF($A111=\"\",\"\",IF(OR(VLOOKUP($A111,Economática!$A$3:$AI$823,13,FALSE)=0,VLOOKUP($A111,Economática!$A$3:$AI$823,13,FALSE)=\"-\"),1/0,VLOOKUP($A111,Economática!$A$3:$AI$823,13,FALSE)))","v":-23.92},{"$f":"IF($A111=\"\",\"\",IF(OR(VLOOKUP($A111,Economática!$A$3:$AI$823,14,FALSE)=0,VLOOKUP($A111,Economática!$A$3:$AI$823,14,FALSE)=\"-\"),1/0,VLOOKUP($A111,Economática!$A$3:$AI$823,14,FALSE)))","v":-13.91},{"$f":"IF($A111=\"\",\"\",IF(OR(VLOOKUP($A111,Economática!$A$3:$AI$823,15,FALSE)=0,VLOOKUP($A111,Economática!$A$3:$AI$823,15,FALSE)=\"-\"),1/0,VLOOKUP($A111,Economática!$A$3:$AI$823,15,FALSE)))","v":-33.71},{"$f":"IF($A111=\"\",\"\",IF(OR(VLOOKUP($A111,Economática!$A$3:$AI$823,16,FALSE)=0,VLOOKUP($A111,Economática!$A$3:$AI$823,16,FALSE)=\"-\"),1/0,VLOOKUP($A111,Economática!$A$3:$AI$823,16,FALSE)))","v":-26.42},{"$f":"IF($A111=\"\",\"\",IF(OR(VLOOKUP($A111,Economática!$A$3:$AI$823,17,FALSE)=0,VLOOKUP($A111,Economática!$A$3:$AI$823,17,FALSE)=\"-\"),1/0,VLOOKUP($A111,Economática!$A$3:$AI$823,17,FALSE)))","v":-18.47},{"$f":"IF($A111=\"\",\"\",IF(OR(VLOOKUP($A111,Economática!$A$3:$AI$823,18,FALSE)=0,VLOOKUP($A111,Economática!$A$3:$AI$823,18,FALSE)=\"-\"),1/0,VLOOKUP($A111,Economática!$A$3:$AI$823,18,FALSE)))","v":-23.92},{"$f":"IF($A111=\"\",\"\",IF(OR(VLOOKUP($A111,Economática!$A$3:$AI$823,19,FALSE)=0,VLOOKUP($A111,Economática!$A$3:$AI$823,19,FALSE)=\"-\"),1/0,VLOOKUP($A111,Economática!$A$3:$AI$823,19,FALSE)))","v":-18.47},{"$f":"IF($A111=\"\",\"\",VLOOKUP($A111,Economática!$A$3:$AI$823,20,FALSE)/E111)","v":-4.4971999026053071},9.1940589237886527,5.1794316737288133,{"$error":"#DIV/0!"},{"$f":"IF($A111=\"\",\"\",IF(OR(VLOOKUP($A111,Economática!$A$3:$AI$823,21,FALSE)/100=0,VLOOKUP($A111,Economática!$A$3:$AI$823,21,FALSE)/100=\"-\"),1/0,VLOOKUP($A111,Economática!$A$3:$AI$823,21,FALSE)/100))","v":-5.5087000000000004E-2},{"$f":"IF($A111=\"\",\"\",IF(OR(VLOOKUP($A111,Economática!$A$3:$AI$823,22,FALSE)/100=0,VLOOKUP($A111,Economática!$A$3:$AI$823,22,FALSE)/100=\"-\"),1/0,VLOOKUP($A111,Economática!$A$3:$AI$823,22,FALSE)/100))","v":3.8220290000000001},{"$f":"IF($A111=\"\",\"\",IF(OR(VLOOKUP($A111,Economática!$A$3:$AI$823,23,FALSE)=0,VLOOKUP($A111,Economática!$A$3:$AI$823,23,FALSE)=\"-\"),1/0,VLOOKUP($A111,Economática!$A$3:$AI$823,23,FALSE)))","v":101.5},{"$f":"IF($A111=\"\",\"\",IF(OR(VLOOKUP($A111,Economática!$A$3:$AI$823,24,FALSE)=0,VLOOKUP($A111,Economática!$A$3:$AI$823,24,FALSE)=\"-\"),1/0,VLOOKUP($A111,Economática!$A$3:$AI$823,24,FALSE)))","v":117.8},{"$f":"IF($A111=\"\",\"\",IF(OR(VLOOKUP($A111,Economática!$A$3:$AI$823,25,FALSE)=0,VLOOKUP($A111,Economática!$A$3:$AI$823,25,FALSE)=\"-\"),1/0,VLOOKUP($A111,Economática!$A$3:$AI$823,25,FALSE)))","v":117.8},{"$f":"IF($A111=\"\",\"\",IF(ISERROR((F111+VLOOKUP($A111,Economática!$A$3:$AI$823,26,FALSE))/Y111),(F111+VLOOKUP($A111,Economática!$A$3:$AI$823,26,FALSE))/Y111,(F111+VLOOKUP($A111,Economática!$A$3:$AI$823,26,FALSE))/Y111))","v":4.4973259762309006},{"$f":"IF($A111=\"\",\"\",IF(OR(-VLOOKUP($A111,Economática!$A$3:$AI$823,27,FALSE)=0,-VLOOKUP($A111,Economática!$A$3:$AI$823,27,FALSE)=\"-\"),1/0,-VLOOKUP($A111,Economática!$A$3:$AI$823,27,FALSE)))","v":{"$error":"#DIV/0!"}},{"$error":"#DIV/0!"},{"$f":"IF($A111=\"\",\"\",IF(OR(VLOOKUP($A111,Economática!$A$3:$AI$823,28,FALSE)=0,VLOOKUP($A111,Economática!$A$3:$AI$823,28,FALSE)=\"-\"),1/0,VLOOKUP($A111,Economática!$A$3:$AI$823,28,FALSE)))","v":-19.3},{"$f":"IF($A111=\"\",\"\",IF(OR(VLOOKUP($A111,Economática!$A$3:$AI$823,29,FALSE)=0,VLOOKUP($A111,Economática!$A$3:$AI$823,29,FALSE)=\"-\"),1/0,VLOOKUP($A111,Economática!$A$3:$AI$823,29,FALSE)))","v":13.4},{"$f":"IF($A111=\"\",\"\",IF(OR(VLOOKUP($A111,Economática!$A$3:$AI$823,30,FALSE)/E111=0,VLOOKUP($A111,Economática!$A$3:$AI$823,30,FALSE)/E111=\"-\",VLOOKUP($A111,Economática!$A$3:$AI$823,30,FALSE)/E111<33.33%,VLOOKUP($A111,Economática!$A$3:$AI$823,30,FALSE)/E111>100%),1/0,VLOOKUP($A111,Economática!$A$3:$AI$823,30,FALSE)/E111))","v":0.99829559289018732},"FRIO3",{"$f":"IF($A111=\"\",\"\",IF(OR(VLOOKUP($A111,Economática!$A$3:$AI$823,25,FALSE)=0,VLOOKUP($A111,Economática!$A$3:$AI$823,25,FALSE)=\"-\"),1/0,VLOOKUP($A111,Economática!$A$3:$AI$823,25,FALSE)))","v":117.8},{"$f":"CONCATENATE(Economática!B113,\" \",Economática!C113)","v":"Metalfrio ON"}]
[{"$f":"IF(Economática!AG114=\"\",\"\",Economática!AG114)","v":"BDLL4"},{"$f":"IF($A112=\"\",\"\",VLOOKUP(VLOOKUP($A112,Economática!$A$3:$AI$823,6,FALSE),Correção!$B$16:$C$36,2,FALSE))","v":"Máquinas Industriais"},{"$f":"IF(Economática!B114=\"\",\"\",Economática!B114)","v":"Bardella"},{"$f":"IF($A112=\"\",\"\",IF(OR(VLOOKUP($A112,Economática!$A$3:$AI$823,8,FALSE)=0,VLOOKUP($A112,Economática!$A$3:$AI$823,8,FALSE)=\"-\"),1/0,VLOOKUP($A112,Economática!$A$3:$AI$823,8,FALSE)))","v":13.9},{"$f":"IF(A112=\"\",\"\",IF(ISERROR(VLOOKUP(A112,Correção!$B$2:$G$13,9,FALSE)),VLOOKUP($A112,Economática!$A$3:$AI$823,9,FALSE),VLOOKUP(A112,Correção!$B$2:$G$13,9,FALSE)))","v":1.6},{"$f":"IF($A112=\"\",\"\",Economática!G114)","v":22.24},{"$f":"IF($A112=\"\",\"\",IF(OR(VLOOKUP($A112,Economática!$A$3:$AI$823,10,FALSE)=0,VLOOKUP($A112,Economática!$A$3:$AI$823,10,FALSE)=\"-\"),1/0,VLOOKUP($A112,Economática!$A$3:$AI$823,10,FALSE)))","v":126.62},{"$f":"IF($A112=\"\",\"\",IF(OR(VLOOKUP($A112,Economática!$A$3:$AI$823,11,FALSE)=0,VLOOKUP($A112,Economática!$A$3:$AI$823,11,FALSE)=\"-\"),1/0,VLOOKUP($A112,Economática!$A$3:$AI$823,11,FALSE)))","v":136.63999999999999},{"$f":"IF($A112=\"\",\"\",IF(OR(VLOOKUP($A112,Economática!$A$3:$AI$823,12,FALSE)=0,VLOOKUP($A112,Economática!$A$3:$AI$823,12,FALSE)=\"-\"),1/0,VLOOKUP($A112,Economática!$A$3:$AI$823,12,FALSE)))","v":{"$error":"#DIV/0!"}},{"$f":"IF($A112=\"\",\"\",IF(OR(VLOOKUP($A112,Economática!$A$3:$AI$823,13,FALSE)=0,VLOOKUP($A112,Economática!$A$3:$AI$823,13,FALSE)=\"-\"),1/0,VLOOKUP($A112,Economática!$A$3:$AI$823,13,FALSE)))","v":-97.76},{"$f":"IF($A112=\"\",\"\",IF(OR(VLOOKUP($A112,Economática!$A$3:$AI$823,14,FALSE)=0,VLOOKUP($A112,Economática!$A$3:$AI$823,14,FALSE)=\"-\"),1/0,VLOOKUP($A112,Economática!$A$3:$AI$823,14,FALSE)))","v":-31.62},{"$f":"IF($A112=\"\",\"\",IF(OR(VLOOKUP($A112,Economática!$A$3:$AI$823,15,FALSE)=0,VLOOKUP($A112,Economática!$A$3:$AI$823,15,FALSE)=\"-\"),1/0,VLOOKUP($A112,Economática!$A$3:$AI$823,15,FALSE)))","v":-61.84},{"$f":"IF($A112=\"\",\"\",IF(OR(VLOOKUP($A112,Economática!$A$3:$AI$823,16,FALSE)=0,VLOOKUP($A112,Economática!$A$3:$AI$823,16,FALSE)=\"-\"),1/0,VLOOKUP($A112,Economática!$A$3:$AI$823,16,FALSE)))","v":-85.35},{"$f":"IF($A112=\"\",\"\",IF(OR(VLOOKUP($A112,Economática!$A$3:$AI$823,17,FALSE)=0,VLOOKUP($A112,Economática!$A$3:$AI$823,17,FALSE)=\"-\"),1/0,VLOOKUP($A112,Economática!$A$3:$AI$823,17,FALSE)))","v":{"$error":"#DIV/0!"}},{"$f":"IF($A112=\"\",\"\",IF(OR(VLOOKUP($A112,Economática!$A$3:$AI$823,18,FALSE)=0,VLOOKUP($A112,Economática!$A$3:$AI$823,18,FALSE)=\"-\"),1/0,VLOOKUP($A112,Economática!$A$3:$AI$823,18,FALSE)))","v":-97.76},{"$f":"IF($A112=\"\",\"\",IF(OR(VLOOKUP($A112,Economática!$A$3:$AI$823,19,FALSE)=0,VLOOKUP($A112,Economática!$A$3:$AI$823,19,FALSE)=\"-\"),1/0,VLOOKUP($A112,Economática!$A$3:$AI$823,19,FALSE)))","v":{"$error":"#DIV/0!"}},{"$f":"IF($A112=\"\",\"\",VLOOKUP($A112,Economática!$A$3:$AI$823,20,FALSE)/E112)","v":-72.262500000000003},79.137500000000003,0.17564365818985941,{"$error":"#DIV/0!"},{"$f":"IF($A112=\"\",\"\",IF(OR(VLOOKUP($A112,Economática!$A$3:$AI$823,21,FALSE)/100=0,VLOOKUP($A112,Economática!$A$3:$AI$823,21,FALSE)/100=\"-\"),1/0,VLOOKUP($A112,Economática!$A$3:$AI$823,21,FALSE)/100))","v":-0.47607300000000002},{"$f":"IF($A112=\"\",\"\",IF(OR(VLOOKUP($A112,Economática!$A$3:$AI$823,22,FALSE)/100=0,VLOOKUP($A112,Economática!$A$3:$AI$823,22,FALSE)/100=\"-\"),1/0,VLOOKUP($A112,Economática!$A$3:$AI$823,22,FALSE)/100))","v":1.6460900000000001},{"$f":"IF($A112=\"\",\"\",IF(OR(VLOOKUP($A112,Economática!$A$3:$AI$823,23,FALSE)=0,VLOOKUP($A112,Economática!$A$3:$AI$823,23,FALSE)=\"-\"),1/0,VLOOKUP($A112,Economática!$A$3:$AI$823,23,FALSE)))","v":-47.7},{"$f":"IF($A112=\"\",\"\",IF(OR(VLOOKUP($A112,Economática!$A$3:$AI$823,24,FALSE)=0,VLOOKUP($A112,Economática!$A$3:$AI$823,24,FALSE)=\"-\"),1/0,VLOOKUP($A112,Economática!$A$3:$AI$823,24,FALSE)))","v":{"$error":"#DIV/0!"}},{"$f":"IF($A112=\"\",\"\",IF(OR(VLOOKUP($A112,Economática!$A$3:$AI$823,25,FALSE)=0,VLOOKUP($A112,Economática!$A$3:$AI$823,25,FALSE)=\"-\"),1/0,VLOOKUP($A112,Economática!$A$3:$AI$823,25,FALSE)))","v":-77.2},{"$f":"IF($A112=\"\",\"\",IF(ISERROR((F112+VLOOKUP($A112,Economática!$A$3:$AI$823,26,FALSE))/Y112),(F112+VLOOKUP($A112,Economática!$A$3:$AI$823,26,FALSE))/Y112,(F112+VLOOKUP($A112,Economática!$A$3:$AI$823,26,FALSE))/Y112))","v":-2.9878626943005182},{"$f":"IF($A112=\"\",\"\",IF(OR(-VLOOKUP($A112,Economática!$A$3:$AI$823,27,FALSE)=0,-VLOOKUP($A112,Economática!$A$3:$AI$823,27,FALSE)=\"-\"),1/0,-VLOOKUP($A112,Economática!$A$3:$AI$823,27,FALSE)))","v":{"$error":"#DIV/0!"}},{"$error":"#DIV/0!"},{"$f":"IF($A112=\"\",\"\",IF(OR(VLOOKUP($A112,Economática!$A$3:$AI$823,28,FALSE)=0,VLOOKUP($A112,Economática!$A$3:$AI$823,28,FALSE)=\"-\"),1/0,VLOOKUP($A112,Economática!$A$3:$AI$823,28,FALSE)))","v":-2.7},{"$f":"IF($A112=\"\",\"\",IF(OR(VLOOKUP($A112,Economática!$A$3:$AI$823,29,FALSE)=0,VLOOKUP($A112,Economática!$A$3:$AI$823,29,FALSE)=\"-\"),1/0,VLOOKUP($A112,Economática!$A$3:$AI$823,29,FALSE)))","v":-53.3},{"$f":"IF($A112=\"\",\"\",IF(OR(VLOOKUP($A112,Economática!$A$3:$AI$823,30,FALSE)/E112=0,VLOOKUP($A112,Economática!$A$3:$AI$823,30,FALSE)/E112=\"-\",VLOOKUP($A112,Economática!$A$3:$AI$823,30,FALSE)/E112<33.33%,VLOOKUP($A112,Economática!$A$3:$AI$823,30,FALSE)/E112>100%),1/0,VLOOKUP($A112,Economática!$A$3:$AI$823,30,FALSE)/E112))","v":0.37499999999999994},"BDLL4",{"$f":"IF($A112=\"\",\"\",IF(OR(VLOOKUP($A112,Economática!$A$3:$AI$823,25,FALSE)=0,VLOOKUP($A112,Economática!$A$3:$AI$823,25,FALSE)=\"-\"),1/0,VLOOKUP($A112,Economática!$A$3:$AI$823,25,FALSE)))","v":-77.2},{"$f":"CONCATENATE(Economática!B114,\" \",Economática!C114)","v":"Bardella PN"}]
[{"$f":"IF(Economática!AG115=\"\",\"\",Economática!AG115)","v":"IDNT3"},{"$f":"IF($A113=\"\",\"\",VLOOKUP(VLOOKUP($A113,Economática!$A$3:$AI$823,6,FALSE),Correção!$B$16:$C$36,2,FALSE))","v":"Outros"},{"$f":"IF(Economática!B115=\"\",\"\",Economática!B115)","v":"Ideiasnet"},{"$f":"IF($A113=\"\",\"\",IF(OR(VLOOKUP($A113,Economática!$A$3:$AI$823,8,FALSE)=0,VLOOKUP($A113,Economática!$A$3:$AI$823,8,FALSE)=\"-\"),1/0,VLOOKUP($A113,Economática!$A$3:$AI$823,8,FALSE)))","v":2.98},{"$f":"IF(A113=\"\",\"\",IF(ISERROR(VLOOKUP(A113,Correção!$B$2:$G$13,9,FALSE)),VLOOKUP($A113,Economática!$A$3:$AI$823,9,FALSE),VLOOKUP(A113,Correção!$B$2:$G$13,9,FALSE)))","v":16.344000000000001},{"$f":"IF($A113=\"\",\"\",Economática!G115)","v":48.71},{"$f":"IF($A113=\"\",\"\",IF(OR(VLOOKUP($A113,Economática!$A$3:$AI$823,10,FALSE)=0,VLOOKUP($A113,Economática!$A$3:$AI$823,10,FALSE)=\"-\"),1/0,VLOOKUP($A113,Economática!$A$3:$AI$823,10,FALSE)))","v":13.3},{"$f":"IF($A113=\"\",\"\",IF(OR(VLOOKUP($A113,Economática!$A$3:$AI$823,11,FALSE)=0,VLOOKUP($A113,Economática!$A$3:$AI$823,11,FALSE)=\"-\"),1/0,VLOOKUP($A113,Economática!$A$3:$AI$823,11,FALSE)))","v":0.49},{"$f":"IF($A113=\"\",\"\",IF(OR(VLOOKUP($A113,Economática!$A$3:$AI$823,12,FALSE)=0,VLOOKUP($A113,Economática!$A$3:$AI$823,12,FALSE)=\"-\"),1/0,VLOOKUP($A113,Economática!$A$3:$AI$823,12,FALSE)))","v":{"$error":"#DIV/0!"}},{"$f":"IF($A113=\"\",\"\",IF(OR(VLOOKUP($A113,Economática!$A$3:$AI$823,13,FALSE)=0,VLOOKUP($A113,Economática!$A$3:$AI$823,13,FALSE)=\"-\"),1/0,VLOOKUP($A113,Economática!$A$3:$AI$823,13,FALSE)))","v":18.84},{"$f":"IF($A113=\"\",\"\",IF(OR(VLOOKUP($A113,Economática!$A$3:$AI$823,14,FALSE)=0,VLOOKUP($A113,Economática!$A$3:$AI$823,14,FALSE)=\"-\"),1/0,VLOOKUP($A113,Economática!$A$3:$AI$823,14,FALSE)))","v":-1.7},{"$f":"IF($A113=\"\",\"\",IF(OR(VLOOKUP($A113,Economática!$A$3:$AI$823,15,FALSE)=0,VLOOKUP($A113,Economática!$A$3:$AI$823,15,FALSE)=\"-\"),1/0,VLOOKUP($A113,Economática!$A$3:$AI$823,15,FALSE)))","v":2.99},{"$f":"IF($A113=\"\",\"\",IF(OR(VLOOKUP($A113,Economática!$A$3:$AI$823,16,FALSE)=0,VLOOKUP($A113,Economática!$A$3:$AI$823,16,FALSE)=\"-\"),1/0,VLOOKUP($A113,Economática!$A$3:$AI$823,16,FALSE)))","v":2.27},{"$f":"IF($A113=\"\",\"\",IF(OR(VLOOKUP($A113,Economática!$A$3:$AI$823,17,FALSE)=0,VLOOKUP($A113,Economática!$A$3:$AI$823,17,FALSE)=\"-\"),1/0,VLOOKUP($A113,Economática!$A$3:$AI$823,17,FALSE)))","v":11.3},{"$f":"IF($A113=\"\",\"\",IF(OR(VLOOKUP($A113,Economática!$A$3:$AI$823,18,FALSE)=0,VLOOKUP($A113,Economática!$A$3:$AI$823,18,FALSE)=\"-\"),1/0,VLOOKUP($A113,Economática!$A$3:$AI$823,18,FALSE)))","v":18.84},{"$f":"IF($A113=\"\",\"\",IF(OR(VLOOKUP($A113,Economática!$A$3:$AI$823,19,FALSE)=0,VLOOKUP($A113,Economática!$A$3:$AI$823,19,FALSE)=\"-\"),1/0,VLOOKUP($A113,Economática!$A$3:$AI$823,19,FALSE)))","v":11.3},{"$f":"IF($A113=\"\",\"\",VLOOKUP($A113,Economática!$A$3:$AI$823,20,FALSE)/E113)","v":0.69138521781693585},0.81375428291727847,3.6620390977443611,4.3101876106194688,{"$f":"IF($A113=\"\",\"\",IF(OR(VLOOKUP($A113,Economática!$A$3:$AI$823,21,FALSE)/100=0,VLOOKUP($A113,Economática!$A$3:$AI$823,21,FALSE)/100=\"-\"),1/0,VLOOKUP($A113,Economática!$A$3:$AI$823,21,FALSE)/100))","v":4.7052459999999998},{"$f":"IF($A113=\"\",\"\",IF(OR(VLOOKUP($A113,Economática!$A$3:$AI$823,22,FALSE)/100=0,VLOOKUP($A113,Economática!$A$3:$AI$823,22,FALSE)/100=\"-\"),1/0,VLOOKUP($A113,Economática!$A$3:$AI$823,22,FALSE)/100))","v":-0.27032699999999998},{"$f":"IF($A113=\"\",\"\",IF(OR(VLOOKUP($A113,Economática!$A$3:$AI$823,23,FALSE)=0,VLOOKUP($A113,Economática!$A$3:$AI$823,23,FALSE)=\"-\"),1/0,VLOOKUP($A113,Economática!$A$3:$AI$823,23,FALSE)))","v":23.2},{"$f":"IF($A113=\"\",\"\",IF(OR(VLOOKUP($A113,Economática!$A$3:$AI$823,24,FALSE)=0,VLOOKUP($A113,Economática!$A$3:$AI$823,24,FALSE)=\"-\"),1/0,VLOOKUP($A113,Economática!$A$3:$AI$823,24,FALSE)))","v":9.6},{"$f":"IF($A113=\"\",\"\",IF(OR(VLOOKUP($A113,Economática!$A$3:$AI$823,25,FALSE)=0,VLOOKUP($A113,Economática!$A$3:$AI$823,25,FALSE)=\"-\"),1/0,VLOOKUP($A113,Economática!$A$3:$AI$823,25,FALSE)))","v":9.6},{"$f":"IF($A113=\"\",\"\",IF(ISERROR((F113+VLOOKUP($A113,Economática!$A$3:$AI$823,26,FALSE))/Y113),(F113+VLOOKUP($A113,Economática!$A$3:$AI$823,26,FALSE))/Y113,(F113+VLOOKUP($A113,Economática!$A$3:$AI$823,26,FALSE))/Y113))","v":4.6995833333333339},{"$f":"IF($A113=\"\",\"\",IF(OR(-VLOOKUP($A113,Economática!$A$3:$AI$823,27,FALSE)=0,-VLOOKUP($A113,Economática!$A$3:$AI$823,27,FALSE)=\"-\"),1/0,-VLOOKUP($A113,Economática!$A$3:$AI$823,27,FALSE)))","v":{"$error":"#DIV/0!"}},{"$error":"#DIV/0!"},{"$f":"IF($A113=\"\",\"\",IF(OR(VLOOKUP($A113,Economática!$A$3:$AI$823,28,FALSE)=0,VLOOKUP($A113,Economática!$A$3:$AI$823,28,FALSE)=\"-\"),1/0,VLOOKUP($A113,Economática!$A$3:$AI$823,28,FALSE)))","v":-6.9},{"$f":"IF($A113=\"\",\"\",IF(OR(VLOOKUP($A113,Economática!$A$3:$AI$823,29,FALSE)=0,VLOOKUP($A113,Economática!$A$3:$AI$823,29,FALSE)=\"-\"),1/0,VLOOKUP($A113,Economática!$A$3:$AI$823,29,FALSE)))","v":-71.3},{"$f":"IF($A113=\"\",\"\",IF(OR(VLOOKUP($A113,Economática!$A$3:$AI$823,30,FALSE)/E113=0,VLOOKUP($A113,Economática!$A$3:$AI$823,30,FALSE)/E113=\"-\",VLOOKUP($A113,Economática!$A$3:$AI$823,30,FALSE)/E113<33.33%,VLOOKUP($A113,Economática!$A$3:$AI$823,30,FALSE)/E113>100%),1/0,VLOOKUP($A113,Economática!$A$3:$AI$823,30,FALSE)/E113))","v":0.9973078805677924},"IDNT3",{"$f":"IF($A113=\"\",\"\",IF(OR(VLOOKUP($A113,Economática!$A$3:$AI$823,25,FALSE)=0,VLOOKUP($A113,Economática!$A$3:$AI$823,25,FALSE)=\"-\"),1/0,VLOOKUP($A113,Economática!$A$3:$AI$823,25,FALSE)))","v":9.6},{"$f":"CONCATENATE(Economática!B115,\" \",Economática!C115)","v":"Ideiasnet ON"}]
[{"$f":"IF(Economática!AG116=\"\",\"\",Economática!AG116)","v":"HAPV3"},{"$f":"IF($A114=\"\",\"\",VLOOKUP(VLOOKUP($A114,Economática!$A$3:$AI$823,6,FALSE),Correção!$B$16:$C$36,2,FALSE))","v":"Outros"},{"$f":"IF(Economática!B116=\"\",\"\",Economática!B116)","v":"Hapvida"},{"$f":"IF($A114=\"\",\"\",IF(OR(VLOOKUP($A114,Economática!$A$3:$AI$823,8,FALSE)=0,VLOOKUP($A114,Economática!$A$3:$AI$823,8,FALSE)=\"-\"),1/0,VLOOKUP($A114,Economática!$A$3:$AI$823,8,FALSE)))","v":30.76},{"$f":"IF(A114=\"\",\"\",IF(ISERROR(VLOOKUP(A114,Correção!$B$2:$G$13,9,FALSE)),VLOOKUP($A114,Economática!$A$3:$AI$823,9,FALSE),VLOOKUP(A114,Correção!$B$2:$G$13,9,FALSE)))","v":671.95899999999995},{"$f":"IF($A114=\"\",\"\",Economática!G116)","v":20669.45},{"$f":"IF($A114=\"\",\"\",IF(OR(VLOOKUP($A114,Economática!$A$3:$AI$823,10,FALSE)=0,VLOOKUP($A114,Economática!$A$3:$AI$823,10,FALSE)=\"-\"),1/0,VLOOKUP($A114,Economática!$A$3:$AI$823,10,FALSE)))","v":3602.54},{"$f":"IF($A114=\"\",\"\",IF(OR(VLOOKUP($A114,Economática!$A$3:$AI$823,11,FALSE)=0,VLOOKUP($A114,Economática!$A$3:$AI$823,11,FALSE)=\"-\"),1/0,VLOOKUP($A114,Economática!$A$3:$AI$823,11,FALSE)))","v":3847.98},{"$f":"IF($A114=\"\",\"\",IF(OR(VLOOKUP($A114,Economática!$A$3:$AI$823,12,FALSE)=0,VLOOKUP($A114,Economática!$A$3:$AI$823,12,FALSE)=\"-\"),1/0,VLOOKUP($A114,Economática!$A$3:$AI$823,12,FALSE)))","v":4575.8999999999996},{"$f":"IF($A114=\"\",\"\",IF(OR(VLOOKUP($A114,Economática!$A$3:$AI$823,13,FALSE)=0,VLOOKUP($A114,Economática!$A$3:$AI$823,13,FALSE)=\"-\"),1/0,VLOOKUP($A114,Economática!$A$3:$AI$823,13,FALSE)))","v":648.77},{"$f":"IF($A114=\"\",\"\",IF(OR(VLOOKUP($A114,Economática!$A$3:$AI$823,14,FALSE)=0,VLOOKUP($A114,Economática!$A$3:$AI$823,14,FALSE)=\"-\"),1/0,VLOOKUP($A114,Economática!$A$3:$AI$823,14,FALSE)))","v":213.65},{"$f":"IF($A114=\"\",\"\",IF(OR(VLOOKUP($A114,Economática!$A$3:$AI$823,15,FALSE)=0,VLOOKUP($A114,Economática!$A$3:$AI$823,15,FALSE)=\"-\"),1/0,VLOOKUP($A114,Economática!$A$3:$AI$823,15,FALSE)))","v":363.35},{"$f":"IF($A114=\"\",\"\",IF(OR(VLOOKUP($A114,Economática!$A$3:$AI$823,16,FALSE)=0,VLOOKUP($A114,Economática!$A$3:$AI$823,16,FALSE)=\"-\"),1/0,VLOOKUP($A114,Economática!$A$3:$AI$823,16,FALSE)))","v":553.27},{"$f":"IF($A114=\"\",\"\",IF(OR(VLOOKUP($A114,Economática!$A$3:$AI$823,17,FALSE)=0,VLOOKUP($A114,Economática!$A$3:$AI$823,17,FALSE)=\"-\"),1/0,VLOOKUP($A114,Economática!$A$3:$AI$823,17,FALSE)))","v":787.47},{"$f":"IF($A114=\"\",\"\",IF(OR(VLOOKUP($A114,Economática!$A$3:$AI$823,18,FALSE)=0,VLOOKUP($A114,Economática!$A$3:$AI$823,18,FALSE)=\"-\"),1/0,VLOOKUP($A114,Economática!$A$3:$AI$823,18,FALSE)))","v":648.77},{"$f":"IF($A114=\"\",\"\",IF(OR(VLOOKUP($A114,Economática!$A$3:$AI$823,19,FALSE)=0,VLOOKUP($A114,Economática!$A$3:$AI$823,19,FALSE)=\"-\"),1/0,VLOOKUP($A114,Economática!$A$3:$AI$823,19,FALSE)))","v":787.47},{"$f":"IF($A114=\"\",\"\",VLOOKUP($A114,Economática!$A$3:$AI$823,20,FALSE)/E114)","v":1.1719018571073534},5.3612497191048867,5.7374682418515821,26.247931781528184,{"$f":"IF($A114=\"\",\"\",IF(OR(VLOOKUP($A114,Economática!$A$3:$AI$823,21,FALSE)/100=0,VLOOKUP($A114,Economática!$A$3:$AI$823,21,FALSE)/100=\"-\"),1/0,VLOOKUP($A114,Economática!$A$3:$AI$823,21,FALSE)/100))","v":1.6701889999999999},{"$f":"IF($A114=\"\",\"\",IF(OR(VLOOKUP($A114,Economática!$A$3:$AI$823,22,FALSE)/100=0,VLOOKUP($A114,Economática!$A$3:$AI$823,22,FALSE)/100=\"-\"),1/0,VLOOKUP($A114,Economática!$A$3:$AI$823,22,FALSE)/100))","v":-0.246224},{"$f":"IF($A114=\"\",\"\",IF(OR(VLOOKUP($A114,Economática!$A$3:$AI$823,23,FALSE)=0,VLOOKUP($A114,Economática!$A$3:$AI$823,23,FALSE)=\"-\"),1/0,VLOOKUP($A114,Economática!$A$3:$AI$823,23,FALSE)))","v":824.4},{"$f":"IF($A114=\"\",\"\",IF(OR(VLOOKUP($A114,Economática!$A$3:$AI$823,24,FALSE)=0,VLOOKUP($A114,Economática!$A$3:$AI$823,24,FALSE)=\"-\"),1/0,VLOOKUP($A114,Economática!$A$3:$AI$823,24,FALSE)))","v":913},{"$f":"IF($A114=\"\",\"\",IF(OR(VLOOKUP($A114,Economática!$A$3:$AI$823,25,FALSE)=0,VLOOKUP($A114,Economática!$A$3:$AI$823,25,FALSE)=\"-\"),1/0,VLOOKUP($A114,Economática!$A$3:$AI$823,25,FALSE)))","v":913},{"$f":"IF($A114=\"\",\"\",IF(ISERROR((F114+VLOOKUP($A114,Economática!$A$3:$AI$823,26,FALSE))/Y114),(F114+VLOOKUP($A114,Economática!$A$3:$AI$823,26,FALSE))/Y114,(F114+VLOOKUP($A114,Economática!$A$3:$AI$823,26,FALSE))/Y114))","v":21.666596933187293},{"$f":"IF($A114=\"\",\"\",IF(OR(-VLOOKUP($A114,Economática!$A$3:$AI$823,27,FALSE)=0,-VLOOKUP($A114,Economática!$A$3:$AI$823,27,FALSE)=\"-\"),1/0,-VLOOKUP($A114,Economática!$A$3:$AI$823,27,FALSE)))","v":822.27},3.9781900340841191E-2,{"$f":"IF($A114=\"\",\"\",IF(OR(VLOOKUP($A114,Economática!$A$3:$AI$823,28,FALSE)=0,VLOOKUP($A114,Economática!$A$3:$AI$823,28,FALSE)=\"-\"),1/0,VLOOKUP($A114,Economática!$A$3:$AI$823,28,FALSE)))","v":-5.6},{"$f":"IF($A114=\"\",\"\",IF(OR(VLOOKUP($A114,Economática!$A$3:$AI$823,29,FALSE)=0,VLOOKUP($A114,Economática!$A$3:$AI$823,29,FALSE)=\"-\"),1/0,VLOOKUP($A114,Economática!$A$3:$AI$823,29,FALSE)))","v":{"$error":"#DIV/0!"}},{"$f":"IF($A114=\"\",\"\",IF(OR(VLOOKUP($A114,Economática!$A$3:$AI$823,30,FALSE)/E114=0,VLOOKUP($A114,Economática!$A$3:$AI$823,30,FALSE)/E114=\"-\",VLOOKUP($A114,Economática!$A$3:$AI$823,30,FALSE)/E114<33.33%,VLOOKUP($A114,Economática!$A$3:$AI$823,30,FALSE)/E114>100%),1/0,VLOOKUP($A114,Economática!$A$3:$AI$823,30,FALSE)/E114))","v":{"$error":"#DIV/0!"}},"HAPV3",{"$f":"IF($A114=\"\",\"\",IF(OR(VLOOKUP($A114,Economática!$A$3:$AI$823,25,FALSE)=0,VLOOKUP($A114,Economática!$A$3:$AI$823,25,FALSE)=\"-\"),1/0,VLOOKUP($A114,Economática!$A$3:$AI$823,25,FALSE)))","v":913},{"$f":"CONCATENATE(Economática!B116,\" \",Economática!C116)","v":"Hapvida ON"}]
[{"$f":"IF(Economática!AG117=\"\",\"\",Economática!AG117)","v":"MPLU3"},{"$f":"IF($A115=\"\",\"\",VLOOKUP(VLOOKUP($A115,Economática!$A$3:$AI$823,6,FALSE),Correção!$B$16:$C$36,2,FALSE))","v":"Outros"},{"$f":"IF(Economática!B117=\"\",\"\",Economática!B117)","v":"Multiplus"},{"$f":"IF($A115=\"\",\"\",IF(OR(VLOOKUP($A115,Economática!$A$3:$AI$823,8,FALSE)=0,VLOOKUP($A115,Economática!$A$3:$AI$823,8,FALSE)=\"-\"),1/0,VLOOKUP($A115,Economática!$A$3:$AI$823,8,FALSE)))","v":26.84},{"$f":"IF(A115=\"\",\"\",IF(ISERROR(VLOOKUP(A115,Correção!$B$2:$G$13,9,FALSE)),VLOOKUP($A115,Economática!$A$3:$AI$823,9,FALSE),VLOOKUP(A115,Correção!$B$2:$G$13,9,FALSE)))","v":162.02099999999999},{"$f":"IF($A115=\"\",\"\",Economática!G117)","v":4348.6400000000003},{"$f":"IF($A115=\"\",\"\",IF(OR(VLOOKUP($A115,Economática!$A$3:$AI$823,10,FALSE)=0,VLOOKUP($A115,Economática!$A$3:$AI$823,10,FALSE)=\"-\"),1/0,VLOOKUP($A115,Economática!$A$3:$AI$823,10,FALSE)))","v":250.28},{"$f":"IF($A115=\"\",\"\",IF(OR(VLOOKUP($A115,Economática!$A$3:$AI$823,11,FALSE)=0,VLOOKUP($A115,Economática!$A$3:$AI$823,11,FALSE)=\"-\"),1/0,VLOOKUP($A115,Economática!$A$3:$AI$823,11,FALSE)))","v":2309.77},{"$f":"IF($A115=\"\",\"\",IF(OR(VLOOKUP($A115,Economática!$A$3:$AI$823,12,FALSE)=0,VLOOKUP($A115,Economática!$A$3:$AI$823,12,FALSE)=\"-\"),1/0,VLOOKUP($A115,Economática!$A$3:$AI$823,12,FALSE)))","v":632.26},{"$f":"IF($A115=\"\",\"\",IF(OR(VLOOKUP($A115,Economática!$A$3:$AI$823,13,FALSE)=0,VLOOKUP($A115,Economática!$A$3:$AI$823,13,FALSE)=\"-\"),1/0,VLOOKUP($A115,Economática!$A$3:$AI$823,13,FALSE)))","v":517.20000000000005},{"$f":"IF($A115=\"\",\"\",IF(OR(VLOOKUP($A115,Economática!$A$3:$AI$823,14,FALSE)=0,VLOOKUP($A115,Economática!$A$3:$AI$823,14,FALSE)=\"-\"),1/0,VLOOKUP($A115,Economática!$A$3:$AI$823,14,FALSE)))","v":98.19},{"$f":"IF($A115=\"\",\"\",IF(OR(VLOOKUP($A115,Economática!$A$3:$AI$823,15,FALSE)=0,VLOOKUP($A115,Economática!$A$3:$AI$823,15,FALSE)=\"-\"),1/0,VLOOKUP($A115,Economática!$A$3:$AI$823,15,FALSE)))","v":171.96},{"$f":"IF($A115=\"\",\"\",IF(OR(VLOOKUP($A115,Economática!$A$3:$AI$823,16,FALSE)=0,VLOOKUP($A115,Economática!$A$3:$AI$823,16,FALSE)=\"-\"),1/0,VLOOKUP($A115,Economática!$A$3:$AI$823,16,FALSE)))","v":236.86},{"$f":"IF($A115=\"\",\"\",IF(OR(VLOOKUP($A115,Economática!$A$3:$AI$823,17,FALSE)=0,VLOOKUP($A115,Economática!$A$3:$AI$823,17,FALSE)=\"-\"),1/0,VLOOKUP($A115,Economática!$A$3:$AI$823,17,FALSE)))","v":356.4},{"$f":"IF($A115=\"\",\"\",IF(OR(VLOOKUP($A115,Economática!$A$3:$AI$823,18,FALSE)=0,VLOOKUP($A115,Economática!$A$3:$AI$823,18,FALSE)=\"-\"),1/0,VLOOKUP($A115,Economática!$A$3:$AI$823,18,FALSE)))","v":517.20000000000005},{"$f":"IF($A115=\"\",\"\",IF(OR(VLOOKUP($A115,Economática!$A$3:$AI$823,19,FALSE)=0,VLOOKUP($A115,Economática!$A$3:$AI$823,19,FALSE)=\"-\"),1/0,VLOOKUP($A115,Economática!$A$3:$AI$823,19,FALSE)))","v":356.4},{"$f":"IF($A115=\"\",\"\",VLOOKUP($A115,Economática!$A$3:$AI$823,20,FALSE)/E115)","v":2.1997148517784733},1.5447380277865217,17.375114431836341,12.201581481481481,{"$f":"IF($A115=\"\",\"\",IF(OR(VLOOKUP($A115,Economática!$A$3:$AI$823,21,FALSE)/100=0,VLOOKUP($A115,Economática!$A$3:$AI$823,21,FALSE)/100=\"-\"),1/0,VLOOKUP($A115,Economática!$A$3:$AI$823,21,FALSE)/100))","v":1.4865010000000001},{"$f":"IF($A115=\"\",\"\",IF(OR(VLOOKUP($A115,Economática!$A$3:$AI$823,22,FALSE)/100=0,VLOOKUP($A115,Economática!$A$3:$AI$823,22,FALSE)/100=\"-\"),1/0,VLOOKUP($A115,Economática!$A$3:$AI$823,22,FALSE)/100))","v":-4.4181210000000002},{"$f":"IF($A115=\"\",\"\",IF(OR(VLOOKUP($A115,Economática!$A$3:$AI$823,23,FALSE)=0,VLOOKUP($A115,Economática!$A$3:$AI$823,23,FALSE)=\"-\"),1/0,VLOOKUP($A115,Economática!$A$3:$AI$823,23,FALSE)))","v":610.4},{"$f":"IF($A115=\"\",\"\",IF(OR(VLOOKUP($A115,Economática!$A$3:$AI$823,24,FALSE)=0,VLOOKUP($A115,Economática!$A$3:$AI$823,24,FALSE)=\"-\"),1/0,VLOOKUP($A115,Economática!$A$3:$AI$823,24,FALSE)))","v":444.5},{"$f":"IF($A115=\"\",\"\",IF(OR(VLOOKUP($A115,Economática!$A$3:$AI$823,25,FALSE)=0,VLOOKUP($A115,Economática!$A$3:$AI$823,25,FALSE)=\"-\"),1/0,VLOOKUP($A115,Economática!$A$3:$AI$823,25,FALSE)))","v":444.5},{"$f":"IF($A115=\"\",\"\",IF(ISERROR((F115+VLOOKUP($A115,Economática!$A$3:$AI$823,26,FALSE))/Y115),(F115+VLOOKUP($A115,Economática!$A$3:$AI$823,26,FALSE))/Y115,(F115+VLOOKUP($A115,Economática!$A$3:$AI$823,26,FALSE))/Y115))","v":7.2955613048368964},{"$f":"IF($A115=\"\",\"\",IF(OR(-VLOOKUP($A115,Economática!$A$3:$AI$823,27,FALSE)=0,-VLOOKUP($A115,Economática!$A$3:$AI$823,27,FALSE)=\"-\"),1/0,-VLOOKUP($A115,Economática!$A$3:$AI$823,27,FALSE)))","v":340.77},7.8362430553000462E-2,{"$f":"IF($A115=\"\",\"\",IF(OR(VLOOKUP($A115,Economática!$A$3:$AI$823,28,FALSE)=0,VLOOKUP($A115,Economática!$A$3:$AI$823,28,FALSE)=\"-\"),1/0,VLOOKUP($A115,Economática!$A$3:$AI$823,28,FALSE)))","v":0.6},{"$f":"IF($A115=\"\",\"\",IF(OR(VLOOKUP($A115,Economática!$A$3:$AI$823,29,FALSE)=0,VLOOKUP($A115,Economática!$A$3:$AI$823,29,FALSE)=\"-\"),1/0,VLOOKUP($A115,Economática!$A$3:$AI$823,29,FALSE)))","v":-17.600000000000001},{"$f":"IF($A115=\"\",\"\",IF(OR(VLOOKUP($A115,Economática!$A$3:$AI$823,30,FALSE)/E115=0,VLOOKUP($A115,Economática!$A$3:$AI$823,30,FALSE)/E115=\"-\",VLOOKUP($A115,Economática!$A$3:$AI$823,30,FALSE)/E115<33.33%,VLOOKUP($A115,Economática!$A$3:$AI$823,30,FALSE)/E115>100%),1/0,VLOOKUP($A115,Economática!$A$3:$AI$823,30,FALSE)/E115))","v":{"$error":"#DIV/0!"}},"MPLU3",{"$f":"IF($A115=\"\",\"\",IF(OR(VLOOKUP($A115,Economática!$A$3:$AI$823,25,FALSE)=0,VLOOKUP($A115,Economática!$A$3:$AI$823,25,FALSE)=\"-\"),1/0,VLOOKUP($A115,Economática!$A$3:$AI$823,25,FALSE)))","v":444.5},{"$f":"CONCATENATE(Economática!B117,\" \",Economática!C117)","v":"Multiplus ON"}]
[{"$f":"IF(Economática!AG118=\"\",\"\",Economática!AG118)","v":"SMLS3"},{"$f":"IF($A116=\"\",\"\",VLOOKUP(VLOOKUP($A116,Economática!$A$3:$AI$823,6,FALSE),Correção!$B$16:$C$36,2,FALSE))","v":"Outros"},{"$f":"IF(Economática!B118=\"\",\"\",Economática!B118)","v":"Smiles"},{"$f":"IF($A116=\"\",\"\",IF(OR(VLOOKUP($A116,Economática!$A$3:$AI$823,8,FALSE)=0,VLOOKUP($A116,Economática!$A$3:$AI$823,8,FALSE)=\"-\"),1/0,VLOOKUP($A116,Economática!$A$3:$AI$823,8,FALSE)))","v":47.7},{"$f":"IF(A116=\"\",\"\",IF(ISERROR(VLOOKUP(A116,Correção!$B$2:$G$13,9,FALSE)),VLOOKUP($A116,Economática!$A$3:$AI$823,9,FALSE),VLOOKUP(A116,Correção!$B$2:$G$13,9,FALSE)))","v":124.008},{"$f":"IF($A116=\"\",\"\",Economática!G118)","v":5915.18},{"$f":"IF($A116=\"\",\"\",IF(OR(VLOOKUP($A116,Economática!$A$3:$AI$823,10,FALSE)=0,VLOOKUP($A116,Economática!$A$3:$AI$823,10,FALSE)=\"-\"),1/0,VLOOKUP($A116,Economática!$A$3:$AI$823,10,FALSE)))","v":1014.23},{"$f":"IF($A116=\"\",\"\",IF(OR(VLOOKUP($A116,Economática!$A$3:$AI$823,11,FALSE)=0,VLOOKUP($A116,Economática!$A$3:$AI$823,11,FALSE)=\"-\"),1/0,VLOOKUP($A116,Economática!$A$3:$AI$823,11,FALSE)))","v":1804.13},{"$f":"IF($A116=\"\",\"\",IF(OR(VLOOKUP($A116,Economática!$A$3:$AI$823,12,FALSE)=0,VLOOKUP($A116,Economática!$A$3:$AI$823,12,FALSE)=\"-\"),1/0,VLOOKUP($A116,Economática!$A$3:$AI$823,12,FALSE)))","v":987.44},{"$f":"IF($A116=\"\",\"\",IF(OR(VLOOKUP($A116,Economática!$A$3:$AI$823,13,FALSE)=0,VLOOKUP($A116,Economática!$A$3:$AI$823,13,FALSE)=\"-\"),1/0,VLOOKUP($A116,Economática!$A$3:$AI$823,13,FALSE)))","v":760.62},{"$f":"IF($A116=\"\",\"\",IF(OR(VLOOKUP($A116,Economática!$A$3:$AI$823,14,FALSE)=0,VLOOKUP($A116,Economática!$A$3:$AI$823,14,FALSE)=\"-\"),1/0,VLOOKUP($A116,Economática!$A$3:$AI$823,14,FALSE)))","v":155.01},{"$f":"IF($A116=\"\",\"\",IF(OR(VLOOKUP($A116,Economática!$A$3:$AI$823,15,FALSE)=0,VLOOKUP($A116,Economática!$A$3:$AI$823,15,FALSE)=\"-\"),1/0,VLOOKUP($A116,Economática!$A$3:$AI$823,15,FALSE)))","v":269.17},{"$f":"IF($A116=\"\",\"\",IF(OR(VLOOKUP($A116,Economática!$A$3:$AI$823,16,FALSE)=0,VLOOKUP($A116,Economática!$A$3:$AI$823,16,FALSE)=\"-\"),1/0,VLOOKUP($A116,Economática!$A$3:$AI$823,16,FALSE)))","v":481.28},{"$f":"IF($A116=\"\",\"\",IF(OR(VLOOKUP($A116,Economática!$A$3:$AI$823,17,FALSE)=0,VLOOKUP($A116,Economática!$A$3:$AI$823,17,FALSE)=\"-\"),1/0,VLOOKUP($A116,Economática!$A$3:$AI$823,17,FALSE)))","v":645.84},{"$f":"IF($A116=\"\",\"\",IF(OR(VLOOKUP($A116,Economática!$A$3:$AI$823,18,FALSE)=0,VLOOKUP($A116,Economática!$A$3:$AI$823,18,FALSE)=\"-\"),1/0,VLOOKUP($A116,Economática!$A$3:$AI$823,18,FALSE)))","v":760.62},{"$f":"IF($A116=\"\",\"\",IF(OR(VLOOKUP($A116,Economática!$A$3:$AI$823,19,FALSE)=0,VLOOKUP($A116,Economática!$A$3:$AI$823,19,FALSE)=\"-\"),1/0,VLOOKUP($A116,Economática!$A$3:$AI$823,19,FALSE)))","v":645.84},{"$f":"IF($A116=\"\",\"\",VLOOKUP($A116,Economática!$A$3:$AI$823,20,FALSE)/E116)","v":5.2080510934778408},8.1787465324817763,5.8321895428058719,9.1588963210702339,{"$f":"IF($A116=\"\",\"\",IF(OR(VLOOKUP($A116,Economática!$A$3:$AI$823,21,FALSE)/100=0,VLOOKUP($A116,Economática!$A$3:$AI$823,21,FALSE)/100=\"-\"),1/0,VLOOKUP($A116,Economática!$A$3:$AI$823,21,FALSE)/100))","v":0.74088300000000007},{"$f":"IF($A116=\"\",\"\",IF(OR(VLOOKUP($A116,Economática!$A$3:$AI$823,22,FALSE)/100=0,VLOOKUP($A116,Economática!$A$3:$AI$823,22,FALSE)/100=\"-\"),1/0,VLOOKUP($A116,Economática!$A$3:$AI$823,22,FALSE)/100))","v":-0.66583499999999995},{"$f":"IF($A116=\"\",\"\",IF(OR(VLOOKUP($A116,Economática!$A$3:$AI$823,23,FALSE)=0,VLOOKUP($A116,Economática!$A$3:$AI$823,23,FALSE)=\"-\"),1/0,VLOOKUP($A116,Economática!$A$3:$AI$823,23,FALSE)))","v":663.4},{"$f":"IF($A116=\"\",\"\",IF(OR(VLOOKUP($A116,Economática!$A$3:$AI$823,24,FALSE)=0,VLOOKUP($A116,Economática!$A$3:$AI$823,24,FALSE)=\"-\"),1/0,VLOOKUP($A116,Economática!$A$3:$AI$823,24,FALSE)))","v":759.3},{"$f":"IF($A116=\"\",\"\",IF(OR(VLOOKUP($A116,Economática!$A$3:$AI$823,25,FALSE)=0,VLOOKUP($A116,Economática!$A$3:$AI$823,25,FALSE)=\"-\"),1/0,VLOOKUP($A116,Economática!$A$3:$AI$823,25,FALSE)))","v":759.3},{"$f":"IF($A116=\"\",\"\",IF(ISERROR((F116+VLOOKUP($A116,Economática!$A$3:$AI$823,26,FALSE))/Y116),(F116+VLOOKUP($A116,Economática!$A$3:$AI$823,26,FALSE))/Y116,(F116+VLOOKUP($A116,Economática!$A$3:$AI$823,26,FALSE))/Y116))","v":6.900921901751615},{"$f":"IF($A116=\"\",\"\",IF(OR(-VLOOKUP($A116,Economática!$A$3:$AI$823,27,FALSE)=0,-VLOOKUP($A116,Economática!$A$3:$AI$823,27,FALSE)=\"-\"),1/0,-VLOOKUP($A116,Economática!$A$3:$AI$823,27,FALSE)))","v":462.7},7.8222471674572872E-2,{"$f":"IF($A116=\"\",\"\",IF(OR(VLOOKUP($A116,Economática!$A$3:$AI$823,28,FALSE)=0,VLOOKUP($A116,Economática!$A$3:$AI$823,28,FALSE)=\"-\"),1/0,VLOOKUP($A116,Economática!$A$3:$AI$823,28,FALSE)))","v":-0.6},{"$f":"IF($A116=\"\",\"\",IF(OR(VLOOKUP($A116,Economática!$A$3:$AI$823,29,FALSE)=0,VLOOKUP($A116,Economática!$A$3:$AI$823,29,FALSE)=\"-\"),1/0,VLOOKUP($A116,Economática!$A$3:$AI$823,29,FALSE)))","v":-33.6},{"$f":"IF($A116=\"\",\"\",IF(OR(VLOOKUP($A116,Economática!$A$3:$AI$823,30,FALSE)/E116=0,VLOOKUP($A116,Economática!$A$3:$AI$823,30,FALSE)/E116=\"-\",VLOOKUP($A116,Economática!$A$3:$AI$823,30,FALSE)/E116<33.33%,VLOOKUP($A116,Economática!$A$3:$AI$823,30,FALSE)/E116>100%),1/0,VLOOKUP($A116,Economática!$A$3:$AI$823,30,FALSE)/E116))","v":0.99993548803303012},"SMLS3",{"$f":"IF($A116=\"\",\"\",IF(OR(VLOOKUP($A116,Economática!$A$3:$AI$823,25,FALSE)=0,VLOOKUP($A116,Economática!$A$3:$AI$823,25,FALSE)=\"-\"),1/0,VLOOKUP($A116,Economática!$A$3:$AI$823,25,FALSE)))","v":759.3},{"$f":"CONCATENATE(Economática!B118,\" \",Economática!C118)","v":"Smiles ON"}]
[{"$f":"IF(Economática!AG119=\"\",\"\",Economática!AG119)","v":"LCAM3"},{"$f":"IF($A117=\"\",\"\",VLOOKUP(VLOOKUP($A117,Economática!$A$3:$AI$823,6,FALSE),Correção!$B$16:$C$36,2,FALSE))","v":"Outros"},{"$f":"IF(Economática!B119=\"\",\"\",Economática!B119)","v":"Locamerica"},{"$f":"IF($A117=\"\",\"\",IF(OR(VLOOKUP($A117,Economática!$A$3:$AI$823,8,FALSE)=0,VLOOKUP($A117,Economática!$A$3:$AI$823,8,FALSE)=\"-\"),1/0,VLOOKUP($A117,Economática!$A$3:$AI$823,8,FALSE)))","v":38.99},{"$f":"IF(A117=\"\",\"\",IF(ISERROR(VLOOKUP(A117,Correção!$B$2:$G$13,9,FALSE)),VLOOKUP($A117,Economática!$A$3:$AI$823,9,FALSE),VLOOKUP(A117,Correção!$B$2:$G$13,9,FALSE)))","v":146.74700000000001},{"$f":"IF($A117=\"\",\"\",Economática!G119)","v":5721.68},{"$f":"IF($A117=\"\",\"\",IF(OR(VLOOKUP($A117,Economática!$A$3:$AI$823,10,FALSE)=0,VLOOKUP($A117,Economática!$A$3:$AI$823,10,FALSE)=\"-\"),1/0,VLOOKUP($A117,Economática!$A$3:$AI$823,10,FALSE)))","v":2565.5500000000002},{"$f":"IF($A117=\"\",\"\",IF(OR(VLOOKUP($A117,Economática!$A$3:$AI$823,11,FALSE)=0,VLOOKUP($A117,Economática!$A$3:$AI$823,11,FALSE)=\"-\"),1/0,VLOOKUP($A117,Economática!$A$3:$AI$823,11,FALSE)))","v":1094.6099999999999},{"$f":"IF($A117=\"\",\"\",IF(OR(VLOOKUP($A117,Economática!$A$3:$AI$823,12,FALSE)=0,VLOOKUP($A117,Economática!$A$3:$AI$823,12,FALSE)=\"-\"),1/0,VLOOKUP($A117,Economática!$A$3:$AI$823,12,FALSE)))","v":2917.2},{"$f":"IF($A117=\"\",\"\",IF(OR(VLOOKUP($A117,Economática!$A$3:$AI$823,13,FALSE)=0,VLOOKUP($A117,Economática!$A$3:$AI$823,13,FALSE)=\"-\"),1/0,VLOOKUP($A117,Economática!$A$3:$AI$823,13,FALSE)))","v":60.6},{"$f":"IF($A117=\"\",\"\",IF(OR(VLOOKUP($A117,Economática!$A$3:$AI$823,14,FALSE)=0,VLOOKUP($A117,Economática!$A$3:$AI$823,14,FALSE)=\"-\"),1/0,VLOOKUP($A117,Economática!$A$3:$AI$823,14,FALSE)))","v":18.25},{"$f":"IF($A117=\"\",\"\",IF(OR(VLOOKUP($A117,Economática!$A$3:$AI$823,15,FALSE)=0,VLOOKUP($A117,Economática!$A$3:$AI$823,15,FALSE)=\"-\"),1/0,VLOOKUP($A117,Economática!$A$3:$AI$823,15,FALSE)))","v":66.22},{"$f":"IF($A117=\"\",\"\",IF(OR(VLOOKUP($A117,Economática!$A$3:$AI$823,16,FALSE)=0,VLOOKUP($A117,Economática!$A$3:$AI$823,16,FALSE)=\"-\"),1/0,VLOOKUP($A117,Economática!$A$3:$AI$823,16,FALSE)))","v":126.93},{"$f":"IF($A117=\"\",\"\",IF(OR(VLOOKUP($A117,Economática!$A$3:$AI$823,17,FALSE)=0,VLOOKUP($A117,Economática!$A$3:$AI$823,17,FALSE)=\"-\"),1/0,VLOOKUP($A117,Economática!$A$3:$AI$823,17,FALSE)))","v":189.2},{"$f":"IF($A117=\"\",\"\",IF(OR(VLOOKUP($A117,Economática!$A$3:$AI$823,18,FALSE)=0,VLOOKUP($A117,Economática!$A$3:$AI$823,18,FALSE)=\"-\"),1/0,VLOOKUP($A117,Economática!$A$3:$AI$823,18,FALSE)))","v":60.6},{"$f":"IF($A117=\"\",\"\",IF(OR(VLOOKUP($A117,Economática!$A$3:$AI$823,19,FALSE)=0,VLOOKUP($A117,Economática!$A$3:$AI$823,19,FALSE)=\"-\"),1/0,VLOOKUP($A117,Economática!$A$3:$AI$823,19,FALSE)))","v":189.2},{"$f":"IF($A117=\"\",\"\",VLOOKUP($A117,Economática!$A$3:$AI$823,20,FALSE)/E117)","v":1.2892938186129868},17.482810551493387,2.2301906140983414,30.241361152219881,{"$f":"IF($A117=\"\",\"\",IF(OR(VLOOKUP($A117,Economática!$A$3:$AI$823,21,FALSE)/100=0,VLOOKUP($A117,Economática!$A$3:$AI$823,21,FALSE)/100=\"-\"),1/0,VLOOKUP($A117,Economática!$A$3:$AI$823,21,FALSE)/100))","v":0.39149500000000004},{"$f":"IF($A117=\"\",\"\",IF(OR(VLOOKUP($A117,Economática!$A$3:$AI$823,22,FALSE)/100=0,VLOOKUP($A117,Economática!$A$3:$AI$823,22,FALSE)/100=\"-\"),1/0,VLOOKUP($A117,Economática!$A$3:$AI$823,22,FALSE)/100))","v":0.75214100000000006},{"$f":"IF($A117=\"\",\"\",IF(OR(VLOOKUP($A117,Economática!$A$3:$AI$823,23,FALSE)=0,VLOOKUP($A117,Economática!$A$3:$AI$823,23,FALSE)=\"-\"),1/0,VLOOKUP($A117,Economática!$A$3:$AI$823,23,FALSE)))","v":361.3},{"$f":"IF($A117=\"\",\"\",IF(OR(VLOOKUP($A117,Economática!$A$3:$AI$823,24,FALSE)=0,VLOOKUP($A117,Economática!$A$3:$AI$823,24,FALSE)=\"-\"),1/0,VLOOKUP($A117,Economática!$A$3:$AI$823,24,FALSE)))","v":840.7},{"$f":"IF($A117=\"\",\"\",IF(OR(VLOOKUP($A117,Economática!$A$3:$AI$823,25,FALSE)=0,VLOOKUP($A117,Economática!$A$3:$AI$823,25,FALSE)=\"-\"),1/0,VLOOKUP($A117,Economática!$A$3:$AI$823,25,FALSE)))","v":840.7},{"$f":"IF($A117=\"\",\"\",IF(ISERROR((F117+VLOOKUP($A117,Economática!$A$3:$AI$823,26,FALSE))/Y117),(F117+VLOOKUP($A117,Economática!$A$3:$AI$823,26,FALSE))/Y117,(F117+VLOOKUP($A117,Economática!$A$3:$AI$823,26,FALSE))/Y117))","v":9.101145474009753},{"$f":"IF($A117=\"\",\"\",IF(OR(-VLOOKUP($A117,Economática!$A$3:$AI$823,27,FALSE)=0,-VLOOKUP($A117,Economática!$A$3:$AI$823,27,FALSE)=\"-\"),1/0,-VLOOKUP($A117,Economática!$A$3:$AI$823,27,FALSE)))","v":75.8},1.3247857272689139E-2,{"$f":"IF($A117=\"\",\"\",IF(OR(VLOOKUP($A117,Economática!$A$3:$AI$823,28,FALSE)=0,VLOOKUP($A117,Economática!$A$3:$AI$823,28,FALSE)=\"-\"),1/0,VLOOKUP($A117,Economática!$A$3:$AI$823,28,FALSE)))","v":-0.3},{"$f":"IF($A117=\"\",\"\",IF(OR(VLOOKUP($A117,Economática!$A$3:$AI$823,29,FALSE)=0,VLOOKUP($A117,Economática!$A$3:$AI$823,29,FALSE)=\"-\"),1/0,VLOOKUP($A117,Economática!$A$3:$AI$823,29,FALSE)))","v":111.8},{"$f":"IF($A117=\"\",\"\",IF(OR(VLOOKUP($A117,Economática!$A$3:$AI$823,30,FALSE)/E117=0,VLOOKUP($A117,Economática!$A$3:$AI$823,30,FALSE)/E117=\"-\",VLOOKUP($A117,Economática!$A$3:$AI$823,30,FALSE)/E117<33.33%,VLOOKUP($A117,Economática!$A$3:$AI$823,30,FALSE)/E117>100%),1/0,VLOOKUP($A117,Economática!$A$3:$AI$823,30,FALSE)/E117))","v":0.79660912999925038},"LCAM3",{"$f":"IF($A117=\"\",\"\",IF(OR(VLOOKUP($A117,Economática!$A$3:$AI$823,25,FALSE)=0,VLOOKUP($A117,Economática!$A$3:$AI$823,25,FALSE)=\"-\"),1/0,VLOOKUP($A117,Economática!$A$3:$AI$823,25,FALSE)))","v":840.7},{"$f":"CONCATENATE(Economática!B119,\" \",Economática!C119)","v":"Locamerica ON"}]
[{"$f":"IF(Economática!AG120=\"\",\"\",Economática!AG120)","v":"ODPV3"},{"$f":"IF($A118=\"\",\"\",VLOOKUP(VLOOKUP($A118,Economática!$A$3:$AI$823,6,FALSE),Correção!$B$16:$C$36,2,FALSE))","v":"Outros"},{"$f":"IF(Economática!B120=\"\",\"\",Economática!B120)","v":"Odontoprev"},{"$f":"IF($A118=\"\",\"\",IF(OR(VLOOKUP($A118,Economática!$A$3:$AI$823,8,FALSE)=0,VLOOKUP($A118,Economática!$A$3:$AI$823,8,FALSE)=\"-\"),1/0,VLOOKUP($A118,Economática!$A$3:$AI$823,8,FALSE)))","v":16.399999999999999},{"$f":"IF(A118=\"\",\"\",IF(ISERROR(VLOOKUP(A118,Correção!$B$2:$G$13,9,FALSE)),VLOOKUP($A118,Economática!$A$3:$AI$823,9,FALSE),VLOOKUP(A118,Correção!$B$2:$G$13,9,FALSE)))","v":530.14200000000005},{"$f":"IF($A118=\"\",\"\",Economática!G120)","v":8694.32},{"$f":"IF($A118=\"\",\"\",IF(OR(VLOOKUP($A118,Economática!$A$3:$AI$823,10,FALSE)=0,VLOOKUP($A118,Economática!$A$3:$AI$823,10,FALSE)=\"-\"),1/0,VLOOKUP($A118,Economática!$A$3:$AI$823,10,FALSE)))","v":1027.46},{"$f":"IF($A118=\"\",\"\",IF(OR(VLOOKUP($A118,Economática!$A$3:$AI$823,11,FALSE)=0,VLOOKUP($A118,Economática!$A$3:$AI$823,11,FALSE)=\"-\"),1/0,VLOOKUP($A118,Economática!$A$3:$AI$823,11,FALSE)))","v":1437.28},{"$f":"IF($A118=\"\",\"\",IF(OR(VLOOKUP($A118,Economática!$A$3:$AI$823,12,FALSE)=0,VLOOKUP($A118,Economática!$A$3:$AI$823,12,FALSE)=\"-\"),1/0,VLOOKUP($A118,Economática!$A$3:$AI$823,12,FALSE)))","v":1591.84},{"$f":"IF($A118=\"\",\"\",IF(OR(VLOOKUP($A118,Economática!$A$3:$AI$823,13,FALSE)=0,VLOOKUP($A118,Economática!$A$3:$AI$823,13,FALSE)=\"-\"),1/0,VLOOKUP($A118,Economática!$A$3:$AI$823,13,FALSE)))","v":502.92},{"$f":"IF($A118=\"\",\"\",IF(OR(VLOOKUP($A118,Economática!$A$3:$AI$823,14,FALSE)=0,VLOOKUP($A118,Economática!$A$3:$AI$823,14,FALSE)=\"-\"),1/0,VLOOKUP($A118,Economática!$A$3:$AI$823,14,FALSE)))","v":81.97},{"$f":"IF($A118=\"\",\"\",IF(OR(VLOOKUP($A118,Economática!$A$3:$AI$823,15,FALSE)=0,VLOOKUP($A118,Economática!$A$3:$AI$823,15,FALSE)=\"-\"),1/0,VLOOKUP($A118,Economática!$A$3:$AI$823,15,FALSE)))","v":142.31},{"$f":"IF($A118=\"\",\"\",IF(OR(VLOOKUP($A118,Economática!$A$3:$AI$823,16,FALSE)=0,VLOOKUP($A118,Economática!$A$3:$AI$823,16,FALSE)=\"-\"),1/0,VLOOKUP($A118,Economática!$A$3:$AI$823,16,FALSE)))","v":207.35},{"$f":"IF($A118=\"\",\"\",IF(OR(VLOOKUP($A118,Economática!$A$3:$AI$823,17,FALSE)=0,VLOOKUP($A118,Economática!$A$3:$AI$823,17,FALSE)=\"-\"),1/0,VLOOKUP($A118,Economática!$A$3:$AI$823,17,FALSE)))","v":284.79000000000002},{"$f":"IF($A118=\"\",\"\",IF(OR(VLOOKUP($A118,Economática!$A$3:$AI$823,18,FALSE)=0,VLOOKUP($A118,Economática!$A$3:$AI$823,18,FALSE)=\"-\"),1/0,VLOOKUP($A118,Economática!$A$3:$AI$823,18,FALSE)))","v":502.92},{"$f":"IF($A118=\"\",\"\",IF(OR(VLOOKUP($A118,Economática!$A$3:$AI$823,19,FALSE)=0,VLOOKUP($A118,Economática!$A$3:$AI$823,19,FALSE)=\"-\"),1/0,VLOOKUP($A118,Economática!$A$3:$AI$823,19,FALSE)))","v":284.79000000000002},{"$f":"IF($A118=\"\",\"\",VLOOKUP($A118,Economática!$A$3:$AI$823,20,FALSE)/E118)","v":0.53719569473839079},1.9380845132058957,8.4619632881085387,30.528911829769303,{"$f":"IF($A118=\"\",\"\",IF(OR(VLOOKUP($A118,Economática!$A$3:$AI$823,21,FALSE)/100=0,VLOOKUP($A118,Economática!$A$3:$AI$823,21,FALSE)/100=\"-\"),1/0,VLOOKUP($A118,Economática!$A$3:$AI$823,21,FALSE)/100))","v":0.30787199999999998},{"$f":"IF($A118=\"\",\"\",IF(OR(VLOOKUP($A118,Economática!$A$3:$AI$823,22,FALSE)/100=0,VLOOKUP($A118,Economática!$A$3:$AI$823,22,FALSE)/100=\"-\"),1/0,VLOOKUP($A118,Economática!$A$3:$AI$823,22,FALSE)/100))","v":-0.46674599999999999},{"$f":"IF($A118=\"\",\"\",IF(OR(VLOOKUP($A118,Economática!$A$3:$AI$823,23,FALSE)=0,VLOOKUP($A118,Economática!$A$3:$AI$823,23,FALSE)=\"-\"),1/0,VLOOKUP($A118,Economática!$A$3:$AI$823,23,FALSE)))","v":584.1},{"$f":"IF($A118=\"\",\"\",IF(OR(VLOOKUP($A118,Economática!$A$3:$AI$823,24,FALSE)=0,VLOOKUP($A118,Economática!$A$3:$AI$823,24,FALSE)=\"-\"),1/0,VLOOKUP($A118,Economática!$A$3:$AI$823,24,FALSE)))","v":397.5},{"$f":"IF($A118=\"\",\"\",IF(OR(VLOOKUP($A118,Economática!$A$3:$AI$823,25,FALSE)=0,VLOOKUP($A118,Economática!$A$3:$AI$823,25,FALSE)=\"-\"),1/0,VLOOKUP($A118,Economática!$A$3:$AI$823,25,FALSE)))","v":397.5},{"$f":"IF($A118=\"\",\"\",IF(ISERROR((F118+VLOOKUP($A118,Economática!$A$3:$AI$823,26,FALSE))/Y118),(F118+VLOOKUP($A118,Economática!$A$3:$AI$823,26,FALSE))/Y118,(F118+VLOOKUP($A118,Economática!$A$3:$AI$823,26,FALSE))/Y118))","v":20.661091823899369},{"$f":"IF($A118=\"\",\"\",IF(OR(-VLOOKUP($A118,Economática!$A$3:$AI$823,27,FALSE)=0,-VLOOKUP($A118,Economática!$A$3:$AI$823,27,FALSE)=\"-\"),1/0,-VLOOKUP($A118,Economática!$A$3:$AI$823,27,FALSE)))","v":86.72},9.9743280670598743E-3,{"$f":"IF($A118=\"\",\"\",IF(OR(VLOOKUP($A118,Economática!$A$3:$AI$823,28,FALSE)=0,VLOOKUP($A118,Economática!$A$3:$AI$823,28,FALSE)=\"-\"),1/0,VLOOKUP($A118,Economática!$A$3:$AI$823,28,FALSE)))","v":-1},{"$f":"IF($A118=\"\",\"\",IF(OR(VLOOKUP($A118,Economática!$A$3:$AI$823,29,FALSE)=0,VLOOKUP($A118,Economática!$A$3:$AI$823,29,FALSE)=\"-\"),1/0,VLOOKUP($A118,Economática!$A$3:$AI$823,29,FALSE)))","v":5.4},{"$f":"IF($A118=\"\",\"\",IF(OR(VLOOKUP($A118,Economática!$A$3:$AI$823,30,FALSE)/E118=0,VLOOKUP($A118,Economática!$A$3:$AI$823,30,FALSE)/E118=\"-\",VLOOKUP($A118,Economática!$A$3:$AI$823,30,FALSE)/E118<33.33%,VLOOKUP($A118,Economática!$A$3:$AI$823,30,FALSE)/E118>100%),1/0,VLOOKUP($A118,Economática!$A$3:$AI$823,30,FALSE)/E118))","v":{"$error":"#DIV/0!"}},"ODPV3",{"$f":"IF($A118=\"\",\"\",IF(OR(VLOOKUP($A118,Economática!$A$3:$AI$823,25,FALSE)=0,VLOOKUP($A118,Economática!$A$3:$AI$823,25,FALSE)=\"-\"),1/0,VLOOKUP($A118,Economática!$A$3:$AI$823,25,FALSE)))","v":397.5},{"$f":"CONCATENATE(Economática!B120,\" \",Economática!C120)","v":"Odontoprev ON"}]
[{"$f":"IF(Economática!AG121=\"\",\"\",Economática!AG121)","v":"RENT3"},{"$f":"IF($A119=\"\",\"\",VLOOKUP(VLOOKUP($A119,Economática!$A$3:$AI$823,6,FALSE),Correção!$B$16:$C$36,2,FALSE))","v":"Outros"},{"$f":"IF(Economática!B121=\"\",\"\",Economática!B121)","v":"Localiza"},{"$f":"IF($A119=\"\",\"\",IF(OR(VLOOKUP($A119,Economática!$A$3:$AI$823,8,FALSE)=0,VLOOKUP($A119,Economática!$A$3:$AI$823,8,FALSE)=\"-\"),1/0,VLOOKUP($A119,Economática!$A$3:$AI$823,8,FALSE)))","v":33.06},{"$f":"IF(A119=\"\",\"\",IF(ISERROR(VLOOKUP(A119,Correção!$B$2:$G$13,9,FALSE)),VLOOKUP($A119,Economática!$A$3:$AI$823,9,FALSE),VLOOKUP(A119,Correção!$B$2:$G$13,9,FALSE)))","v":717.18499999999995},{"$f":"IF($A119=\"\",\"\",Economática!G121)","v":23710.14},{"$f":"IF($A119=\"\",\"\",IF(OR(VLOOKUP($A119,Economática!$A$3:$AI$823,10,FALSE)=0,VLOOKUP($A119,Economática!$A$3:$AI$823,10,FALSE)=\"-\"),1/0,VLOOKUP($A119,Economática!$A$3:$AI$823,10,FALSE)))","v":3094.5},{"$f":"IF($A119=\"\",\"\",IF(OR(VLOOKUP($A119,Economática!$A$3:$AI$823,11,FALSE)=0,VLOOKUP($A119,Economática!$A$3:$AI$823,11,FALSE)=\"-\"),1/0,VLOOKUP($A119,Economática!$A$3:$AI$823,11,FALSE)))","v":6058.28},{"$f":"IF($A119=\"\",\"\",IF(OR(VLOOKUP($A119,Economática!$A$3:$AI$823,12,FALSE)=0,VLOOKUP($A119,Economática!$A$3:$AI$823,12,FALSE)=\"-\"),1/0,VLOOKUP($A119,Economática!$A$3:$AI$823,12,FALSE)))","v":7895.8},{"$f":"IF($A119=\"\",\"\",IF(OR(VLOOKUP($A119,Economática!$A$3:$AI$823,13,FALSE)=0,VLOOKUP($A119,Economática!$A$3:$AI$823,13,FALSE)=\"-\"),1/0,VLOOKUP($A119,Economática!$A$3:$AI$823,13,FALSE)))","v":505.68},{"$f":"IF($A119=\"\",\"\",IF(OR(VLOOKUP($A119,Economática!$A$3:$AI$823,14,FALSE)=0,VLOOKUP($A119,Economática!$A$3:$AI$823,14,FALSE)=\"-\"),1/0,VLOOKUP($A119,Economática!$A$3:$AI$823,14,FALSE)))","v":176.01},{"$f":"IF($A119=\"\",\"\",IF(OR(VLOOKUP($A119,Economática!$A$3:$AI$823,15,FALSE)=0,VLOOKUP($A119,Economática!$A$3:$AI$823,15,FALSE)=\"-\"),1/0,VLOOKUP($A119,Economática!$A$3:$AI$823,15,FALSE)))","v":317.91000000000003},{"$f":"IF($A119=\"\",\"\",IF(OR(VLOOKUP($A119,Economática!$A$3:$AI$823,16,FALSE)=0,VLOOKUP($A119,Economática!$A$3:$AI$823,16,FALSE)=\"-\"),1/0,VLOOKUP($A119,Economática!$A$3:$AI$823,16,FALSE)))","v":477.76},{"$f":"IF($A119=\"\",\"\",IF(OR(VLOOKUP($A119,Economática!$A$3:$AI$823,17,FALSE)=0,VLOOKUP($A119,Economática!$A$3:$AI$823,17,FALSE)=\"-\"),1/0,VLOOKUP($A119,Economática!$A$3:$AI$823,17,FALSE)))","v":659.21},{"$f":"IF($A119=\"\",\"\",IF(OR(VLOOKUP($A119,Economática!$A$3:$AI$823,18,FALSE)=0,VLOOKUP($A119,Economática!$A$3:$AI$823,18,FALSE)=\"-\"),1/0,VLOOKUP($A119,Economática!$A$3:$AI$823,18,FALSE)))","v":505.68},{"$f":"IF($A119=\"\",\"\",IF(OR(VLOOKUP($A119,Economática!$A$3:$AI$823,19,FALSE)=0,VLOOKUP($A119,Economática!$A$3:$AI$823,19,FALSE)=\"-\"),1/0,VLOOKUP($A119,Economática!$A$3:$AI$823,19,FALSE)))","v":659.21},{"$f":"IF($A119=\"\",\"\",VLOOKUP($A119,Economática!$A$3:$AI$823,20,FALSE)/E119)","v":0.91916311690846864},4.3147862824794165,7.6620249151720792,35.967500644711095,{"$f":"IF($A119=\"\",\"\",IF(OR(VLOOKUP($A119,Economática!$A$3:$AI$823,21,FALSE)/100=0,VLOOKUP($A119,Economática!$A$3:$AI$823,21,FALSE)/100=\"-\"),1/0,VLOOKUP($A119,Economática!$A$3:$AI$823,21,FALSE)/100))","v":0.253471},{"$f":"IF($A119=\"\",\"\",IF(OR(VLOOKUP($A119,Economática!$A$3:$AI$823,22,FALSE)/100=0,VLOOKUP($A119,Economática!$A$3:$AI$823,22,FALSE)/100=\"-\"),1/0,VLOOKUP($A119,Economática!$A$3:$AI$823,22,FALSE)/100))","v":1.6814310000000001},{"$f":"IF($A119=\"\",\"\",IF(OR(VLOOKUP($A119,Economática!$A$3:$AI$823,23,FALSE)=0,VLOOKUP($A119,Economática!$A$3:$AI$823,23,FALSE)=\"-\"),1/0,VLOOKUP($A119,Economática!$A$3:$AI$823,23,FALSE)))","v":1240.2},{"$f":"IF($A119=\"\",\"\",IF(OR(VLOOKUP($A119,Economática!$A$3:$AI$823,24,FALSE)=0,VLOOKUP($A119,Economática!$A$3:$AI$823,24,FALSE)=\"-\"),1/0,VLOOKUP($A119,Economática!$A$3:$AI$823,24,FALSE)))","v":1590.1},{"$f":"IF($A119=\"\",\"\",IF(OR(VLOOKUP($A119,Economática!$A$3:$AI$823,25,FALSE)=0,VLOOKUP($A119,Economática!$A$3:$AI$823,25,FALSE)=\"-\"),1/0,VLOOKUP($A119,Economática!$A$3:$AI$823,25,FALSE)))","v":1590.1},{"$f":"IF($A119=\"\",\"\",IF(ISERROR((F119+VLOOKUP($A119,Economática!$A$3:$AI$823,26,FALSE))/Y119),(F119+VLOOKUP($A119,Economática!$A$3:$AI$823,26,FALSE))/Y119,(F119+VLOOKUP($A119,Economática!$A$3:$AI$823,26,FALSE))/Y119))","v":18.183341928180617},{"$f":"IF($A119=\"\",\"\",IF(OR(-VLOOKUP($A119,Economática!$A$3:$AI$823,27,FALSE)=0,-VLOOKUP($A119,Economática!$A$3:$AI$823,27,FALSE)=\"-\"),1/0,-VLOOKUP($A119,Economática!$A$3:$AI$823,27,FALSE)))","v":172.31},7.2673548110639584E-3,{"$f":"IF($A119=\"\",\"\",IF(OR(VLOOKUP($A119,Economática!$A$3:$AI$823,28,FALSE)=0,VLOOKUP($A119,Economática!$A$3:$AI$823,28,FALSE)=\"-\"),1/0,VLOOKUP($A119,Economática!$A$3:$AI$823,28,FALSE)))","v":-4},{"$f":"IF($A119=\"\",\"\",IF(OR(VLOOKUP($A119,Economática!$A$3:$AI$823,29,FALSE)=0,VLOOKUP($A119,Economática!$A$3:$AI$823,29,FALSE)=\"-\"),1/0,VLOOKUP($A119,Economática!$A$3:$AI$823,29,FALSE)))","v":52.3},{"$f":"IF($A119=\"\",\"\",IF(OR(VLOOKUP($A119,Economática!$A$3:$AI$823,30,FALSE)/E119=0,VLOOKUP($A119,Economática!$A$3:$AI$823,30,FALSE)/E119=\"-\",VLOOKUP($A119,Economática!$A$3:$AI$823,30,FALSE)/E119<33.33%,VLOOKUP($A119,Economática!$A$3:$AI$823,30,FALSE)/E119>100%),1/0,VLOOKUP($A119,Economática!$A$3:$AI$823,30,FALSE)/E119))","v":0.93016446244692808},"RENT3",{"$f":"IF($A119=\"\",\"\",IF(OR(VLOOKUP($A119,Economática!$A$3:$AI$823,25,FALSE)=0,VLOOKUP($A119,Economática!$A$3:$AI$823,25,FALSE)=\"-\"),1/0,VLOOKUP($A119,Economática!$A$3:$AI$823,25,FALSE)))","v":1590.1},{"$f":"CONCATENATE(Economática!B121,\" \",Economática!C121)","v":"Localiza ON"}]
[{"$f":"IF(Economática!AG122=\"\",\"\",Economática!AG122)","v":"GNDI3"},{"$f":"IF($A120=\"\",\"\",VLOOKUP(VLOOKUP($A120,Economática!$A$3:$AI$823,6,FALSE),Correção!$B$16:$C$36,2,FALSE))","v":"Outros"},{"$f":"IF(Economática!B122=\"\",\"\",Economática!B122)","v":"Intermedica"},{"$f":"IF($A120=\"\",\"\",IF(OR(VLOOKUP($A120,Economática!$A$3:$AI$823,8,FALSE)=0,VLOOKUP($A120,Economática!$A$3:$AI$823,8,FALSE)=\"-\"),1/0,VLOOKUP($A120,Economática!$A$3:$AI$823,8,FALSE)))","v":32.799999999999997},{"$f":"IF(A120=\"\",\"\",IF(ISERROR(VLOOKUP(A120,Correção!$B$2:$G$13,9,FALSE)),VLOOKUP($A120,Economática!$A$3:$AI$823,9,FALSE),VLOOKUP(A120,Correção!$B$2:$G$13,9,FALSE)))","v":528.476},{"$f":"IF($A120=\"\",\"\",Economática!G122)","v":17334},{"$f":"IF($A120=\"\",\"\",IF(OR(VLOOKUP($A120,Economática!$A$3:$AI$823,10,FALSE)=0,VLOOKUP($A120,Economática!$A$3:$AI$823,10,FALSE)=\"-\"),1/0,VLOOKUP($A120,Economática!$A$3:$AI$823,10,FALSE)))","v":2340.0700000000002},{"$f":"IF($A120=\"\",\"\",IF(OR(VLOOKUP($A120,Economática!$A$3:$AI$823,11,FALSE)=0,VLOOKUP($A120,Economática!$A$3:$AI$823,11,FALSE)=\"-\"),1/0,VLOOKUP($A120,Economática!$A$3:$AI$823,11,FALSE)))","v":5304.92},{"$f":"IF($A120=\"\",\"\",IF(OR(VLOOKUP($A120,Economática!$A$3:$AI$823,12,FALSE)=0,VLOOKUP($A120,Economática!$A$3:$AI$823,12,FALSE)=\"-\"),1/0,VLOOKUP($A120,Economática!$A$3:$AI$823,12,FALSE)))","v":6135.22},{"$f":"IF($A120=\"\",\"\",IF(OR(VLOOKUP($A120,Economática!$A$3:$AI$823,13,FALSE)=0,VLOOKUP($A120,Economática!$A$3:$AI$823,13,FALSE)=\"-\"),1/0,VLOOKUP($A120,Economática!$A$3:$AI$823,13,FALSE)))","v":238.17},{"$f":"IF($A120=\"\",\"\",IF(OR(VLOOKUP($A120,Economática!$A$3:$AI$823,14,FALSE)=0,VLOOKUP($A120,Economática!$A$3:$AI$823,14,FALSE)=\"-\"),1/0,VLOOKUP($A120,Economática!$A$3:$AI$823,14,FALSE)))","v":60.26},{"$f":"IF($A120=\"\",\"\",IF(OR(VLOOKUP($A120,Economática!$A$3:$AI$823,15,FALSE)=0,VLOOKUP($A120,Economática!$A$3:$AI$823,15,FALSE)=\"-\"),1/0,VLOOKUP($A120,Economática!$A$3:$AI$823,15,FALSE)))","v":111.54},{"$f":"IF($A120=\"\",\"\",IF(OR(VLOOKUP($A120,Economática!$A$3:$AI$823,16,FALSE)=0,VLOOKUP($A120,Economática!$A$3:$AI$823,16,FALSE)=\"-\"),1/0,VLOOKUP($A120,Economática!$A$3:$AI$823,16,FALSE)))","v":205.69},{"$f":"IF($A120=\"\",\"\",IF(OR(VLOOKUP($A120,Economática!$A$3:$AI$823,17,FALSE)=0,VLOOKUP($A120,Economática!$A$3:$AI$823,17,FALSE)=\"-\"),1/0,VLOOKUP($A120,Economática!$A$3:$AI$823,17,FALSE)))","v":334.07},{"$f":"IF($A120=\"\",\"\",IF(OR(VLOOKUP($A120,Economática!$A$3:$AI$823,18,FALSE)=0,VLOOKUP($A120,Economática!$A$3:$AI$823,18,FALSE)=\"-\"),1/0,VLOOKUP($A120,Economática!$A$3:$AI$823,18,FALSE)))","v":238.17},{"$f":"IF($A120=\"\",\"\",IF(OR(VLOOKUP($A120,Economática!$A$3:$AI$823,19,FALSE)=0,VLOOKUP($A120,Economática!$A$3:$AI$823,19,FALSE)=\"-\"),1/0,VLOOKUP($A120,Economática!$A$3:$AI$823,19,FALSE)))","v":334.07},{"$f":"IF($A120=\"\",\"\",VLOOKUP($A120,Economática!$A$3:$AI$823,20,FALSE)/E120)","v":0.63213845094195387},4.4279588855501482,7.4074761866098013,51.887367318226715,{"$f":"IF($A120=\"\",\"\",IF(OR(VLOOKUP($A120,Economática!$A$3:$AI$823,21,FALSE)/100=0,VLOOKUP($A120,Economática!$A$3:$AI$823,21,FALSE)/100=\"-\"),1/0,VLOOKUP($A120,Economática!$A$3:$AI$823,21,FALSE)/100))","v":0.24725000000000003},{"$f":"IF($A120=\"\",\"\",IF(OR(VLOOKUP($A120,Economática!$A$3:$AI$823,22,FALSE)/100=0,VLOOKUP($A120,Economática!$A$3:$AI$823,22,FALSE)/100=\"-\"),1/0,VLOOKUP($A120,Economática!$A$3:$AI$823,22,FALSE)/100))","v":-0.18528800000000001},{"$f":"IF($A120=\"\",\"\",IF(OR(VLOOKUP($A120,Economática!$A$3:$AI$823,23,FALSE)=0,VLOOKUP($A120,Economática!$A$3:$AI$823,23,FALSE)=\"-\"),1/0,VLOOKUP($A120,Economática!$A$3:$AI$823,23,FALSE)))","v":616.1},{"$f":"IF($A120=\"\",\"\",IF(OR(VLOOKUP($A120,Economática!$A$3:$AI$823,24,FALSE)=0,VLOOKUP($A120,Economática!$A$3:$AI$823,24,FALSE)=\"-\"),1/0,VLOOKUP($A120,Economática!$A$3:$AI$823,24,FALSE)))","v":744.8},{"$f":"IF($A120=\"\",\"\",IF(OR(VLOOKUP($A120,Economática!$A$3:$AI$823,25,FALSE)=0,VLOOKUP($A120,Economática!$A$3:$AI$823,25,FALSE)=\"-\"),1/0,VLOOKUP($A120,Economática!$A$3:$AI$823,25,FALSE)))","v":744.8},{"$f":"IF($A120=\"\",\"\",IF(ISERROR((F120+VLOOKUP($A120,Economática!$A$3:$AI$823,26,FALSE))/Y120),(F120+VLOOKUP($A120,Economática!$A$3:$AI$823,26,FALSE))/Y120,(F120+VLOOKUP($A120,Economática!$A$3:$AI$823,26,FALSE))/Y120))","v":22.69121240601504},{"$f":"IF($A120=\"\",\"\",IF(OR(-VLOOKUP($A120,Economática!$A$3:$AI$823,27,FALSE)=0,-VLOOKUP($A120,Economática!$A$3:$AI$823,27,FALSE)=\"-\"),1/0,-VLOOKUP($A120,Economática!$A$3:$AI$823,27,FALSE)))","v":{"$error":"#DIV/0!"}},{"$error":"#DIV/0!"},{"$f":"IF($A120=\"\",\"\",IF(OR(VLOOKUP($A120,Economática!$A$3:$AI$823,28,FALSE)=0,VLOOKUP($A120,Economática!$A$3:$AI$823,28,FALSE)=\"-\"),1/0,VLOOKUP($A120,Economática!$A$3:$AI$823,28,FALSE)))","v":-0.8},{"$f":"IF($A120=\"\",\"\",IF(OR(VLOOKUP($A120,Economática!$A$3:$AI$823,29,FALSE)=0,VLOOKUP($A120,Economática!$A$3:$AI$823,29,FALSE)=\"-\"),1/0,VLOOKUP($A120,Economática!$A$3:$AI$823,29,FALSE)))","v":{"$error":"#DIV/0!"}},{"$f":"IF($A120=\"\",\"\",IF(OR(VLOOKUP($A120,Economática!$A$3:$AI$823,30,FALSE)/E120=0,VLOOKUP($A120,Economática!$A$3:$AI$823,30,FALSE)/E120=\"-\",VLOOKUP($A120,Economática!$A$3:$AI$823,30,FALSE)/E120<33.33%,VLOOKUP($A120,Economática!$A$3:$AI$823,30,FALSE)/E120>100%),1/0,VLOOKUP($A120,Economática!$A$3:$AI$823,30,FALSE)/E120))","v":{"$error":"#DIV/0!"}},"GNDI3",{"$f":"IF($A120=\"\",\"\",IF(OR(VLOOKUP($A120,Economática!$A$3:$AI$823,25,FALSE)=0,VLOOKUP($A120,Economática!$A$3:$AI$823,25,FALSE)=\"-\"),1/0,VLOOKUP($A120,Economática!$A$3:$AI$823,25,FALSE)))","v":744.8},{"$f":"CONCATENATE(Economática!B122,\" \",Economática!C122)","v":"Intermedica ON"}]
[{"$f":"IF(Economática!AG123=\"\",\"\",Economática!AG123)","v":"ESTC3"},{"$f":"IF($A121=\"\",\"\",VLOOKUP(VLOOKUP($A121,Economática!$A$3:$AI$823,6,FALSE),Correção!$B$16:$C$36,2,FALSE))","v":"Outros"},{"$f":"IF(Economática!B123=\"\",\"\",Economática!B123)","v":"Estacio Part"},{"$f":"IF($A121=\"\",\"\",IF(OR(VLOOKUP($A121,Economática!$A$3:$AI$823,8,FALSE)=0,VLOOKUP($A121,Economática!$A$3:$AI$823,8,FALSE)=\"-\"),1/0,VLOOKUP($A121,Economática!$A$3:$AI$823,8,FALSE)))","v":26.6},{"$f":"IF(A121=\"\",\"\",IF(ISERROR(VLOOKUP(A121,Correção!$B$2:$G$13,9,FALSE)),VLOOKUP($A121,Economática!$A$3:$AI$823,9,FALSE),VLOOKUP(A121,Correção!$B$2:$G$13,9,FALSE)))","v":300.113},{"$f":"IF($A121=\"\",\"\",Economática!G123)","v":7983.01},{"$f":"IF($A121=\"\",\"\",IF(OR(VLOOKUP($A121,Economática!$A$3:$AI$823,10,FALSE)=0,VLOOKUP($A121,Economática!$A$3:$AI$823,10,FALSE)=\"-\"),1/0,VLOOKUP($A121,Economática!$A$3:$AI$823,10,FALSE)))","v":2591.41},{"$f":"IF($A121=\"\",\"\",IF(OR(VLOOKUP($A121,Economática!$A$3:$AI$823,11,FALSE)=0,VLOOKUP($A121,Economática!$A$3:$AI$823,11,FALSE)=\"-\"),1/0,VLOOKUP($A121,Economática!$A$3:$AI$823,11,FALSE)))","v":3378.98},{"$f":"IF($A121=\"\",\"\",IF(OR(VLOOKUP($A121,Economática!$A$3:$AI$823,12,FALSE)=0,VLOOKUP($A121,Economática!$A$3:$AI$823,12,FALSE)=\"-\"),1/0,VLOOKUP($A121,Economática!$A$3:$AI$823,12,FALSE)))","v":3619.38},{"$f":"IF($A121=\"\",\"\",IF(OR(VLOOKUP($A121,Economática!$A$3:$AI$823,13,FALSE)=0,VLOOKUP($A121,Economática!$A$3:$AI$823,13,FALSE)=\"-\"),1/0,VLOOKUP($A121,Economática!$A$3:$AI$823,13,FALSE)))","v":424.59},{"$f":"IF($A121=\"\",\"\",IF(OR(VLOOKUP($A121,Economática!$A$3:$AI$823,14,FALSE)=0,VLOOKUP($A121,Economática!$A$3:$AI$823,14,FALSE)=\"-\"),1/0,VLOOKUP($A121,Economática!$A$3:$AI$823,14,FALSE)))","v":197.36},{"$f":"IF($A121=\"\",\"\",IF(OR(VLOOKUP($A121,Economática!$A$3:$AI$823,15,FALSE)=0,VLOOKUP($A121,Economática!$A$3:$AI$823,15,FALSE)=\"-\"),1/0,VLOOKUP($A121,Economática!$A$3:$AI$823,15,FALSE)))","v":434.25},{"$f":"IF($A121=\"\",\"\",IF(OR(VLOOKUP($A121,Economática!$A$3:$AI$823,16,FALSE)=0,VLOOKUP($A121,Economática!$A$3:$AI$823,16,FALSE)=\"-\"),1/0,VLOOKUP($A121,Economática!$A$3:$AI$823,16,FALSE)))","v":628.57000000000005},{"$f":"IF($A121=\"\",\"\",IF(OR(VLOOKUP($A121,Economática!$A$3:$AI$823,17,FALSE)=0,VLOOKUP($A121,Economática!$A$3:$AI$823,17,FALSE)=\"-\"),1/0,VLOOKUP($A121,Economática!$A$3:$AI$823,17,FALSE)))","v":644.87},{"$f":"IF($A121=\"\",\"\",IF(OR(VLOOKUP($A121,Economática!$A$3:$AI$823,18,FALSE)=0,VLOOKUP($A121,Economática!$A$3:$AI$823,18,FALSE)=\"-\"),1/0,VLOOKUP($A121,Economática!$A$3:$AI$823,18,FALSE)))","v":424.59},{"$f":"IF($A121=\"\",\"\",IF(OR(VLOOKUP($A121,Economática!$A$3:$AI$823,19,FALSE)=0,VLOOKUP($A121,Economática!$A$3:$AI$823,19,FALSE)=\"-\"),1/0,VLOOKUP($A121,Economática!$A$3:$AI$823,19,FALSE)))","v":644.87},{"$f":"IF($A121=\"\",\"\",VLOOKUP($A121,Economática!$A$3:$AI$823,20,FALSE)/E121)","v":2.1487573014164667},8.6347808991946362,3.0805645575188798,12.379248220571588,{"$f":"IF($A121=\"\",\"\",IF(OR(VLOOKUP($A121,Economática!$A$3:$AI$823,21,FALSE)/100=0,VLOOKUP($A121,Economática!$A$3:$AI$823,21,FALSE)/100=\"-\"),1/0,VLOOKUP($A121,Economática!$A$3:$AI$823,21,FALSE)/100))","v":0.23219799999999999},{"$f":"IF($A121=\"\",\"\",IF(OR(VLOOKUP($A121,Economática!$A$3:$AI$823,22,FALSE)/100=0,VLOOKUP($A121,Economática!$A$3:$AI$823,22,FALSE)/100=\"-\"),1/0,VLOOKUP($A121,Economática!$A$3:$AI$823,22,FALSE)/100))","v":-3.2099999999999994E-4},{"$f":"IF($A121=\"\",\"\",IF(OR(VLOOKUP($A121,Economática!$A$3:$AI$823,23,FALSE)=0,VLOOKUP($A121,Economática!$A$3:$AI$823,23,FALSE)=\"-\"),1/0,VLOOKUP($A121,Economática!$A$3:$AI$823,23,FALSE)))","v":737.8},{"$f":"IF($A121=\"\",\"\",IF(OR(VLOOKUP($A121,Economática!$A$3:$AI$823,24,FALSE)=0,VLOOKUP($A121,Economática!$A$3:$AI$823,24,FALSE)=\"-\"),1/0,VLOOKUP($A121,Economática!$A$3:$AI$823,24,FALSE)))","v":967.4},{"$f":"IF($A121=\"\",\"\",IF(OR(VLOOKUP($A121,Economática!$A$3:$AI$823,25,FALSE)=0,VLOOKUP($A121,Economática!$A$3:$AI$823,25,FALSE)=\"-\"),1/0,VLOOKUP($A121,Economática!$A$3:$AI$823,25,FALSE)))","v":967.4},{"$f":"IF($A121=\"\",\"\",IF(ISERROR((F121+VLOOKUP($A121,Economática!$A$3:$AI$823,26,FALSE))/Y121),(F121+VLOOKUP($A121,Economática!$A$3:$AI$823,26,FALSE))/Y121,(F121+VLOOKUP($A121,Economática!$A$3:$AI$823,26,FALSE))/Y121))","v":8.2511670456894777},{"$f":"IF($A121=\"\",\"\",IF(OR(-VLOOKUP($A121,Economática!$A$3:$AI$823,27,FALSE)=0,-VLOOKUP($A121,Economática!$A$3:$AI$823,27,FALSE)=\"-\"),1/0,-VLOOKUP($A121,Economática!$A$3:$AI$823,27,FALSE)))","v":500.84},6.2738240337917653E-2,{"$f":"IF($A121=\"\",\"\",IF(OR(VLOOKUP($A121,Economática!$A$3:$AI$823,28,FALSE)=0,VLOOKUP($A121,Economática!$A$3:$AI$823,28,FALSE)=\"-\"),1/0,VLOOKUP($A121,Economática!$A$3:$AI$823,28,FALSE)))","v":-3.4},{"$f":"IF($A121=\"\",\"\",IF(OR(VLOOKUP($A121,Economática!$A$3:$AI$823,29,FALSE)=0,VLOOKUP($A121,Economática!$A$3:$AI$823,29,FALSE)=\"-\"),1/0,VLOOKUP($A121,Economática!$A$3:$AI$823,29,FALSE)))","v":-13.2},{"$f":"IF($A121=\"\",\"\",IF(OR(VLOOKUP($A121,Economática!$A$3:$AI$823,30,FALSE)/E121=0,VLOOKUP($A121,Economática!$A$3:$AI$823,30,FALSE)/E121=\"-\",VLOOKUP($A121,Economática!$A$3:$AI$823,30,FALSE)/E121<33.33%,VLOOKUP($A121,Economática!$A$3:$AI$823,30,FALSE)/E121>100%),1/0,VLOOKUP($A121,Economática!$A$3:$AI$823,30,FALSE)/E121))","v":{"$error":"#DIV/0!"}},"ESTC3",{"$f":"IF($A121=\"\",\"\",IF(OR(VLOOKUP($A121,Economática!$A$3:$AI$823,25,FALSE)=0,VLOOKUP($A121,Economática!$A$3:$AI$823,25,FALSE)=\"-\"),1/0,VLOOKUP($A121,Economática!$A$3:$AI$823,25,FALSE)))","v":967.4},{"$f":"CONCATENATE(Economática!B123,\" \",Economática!C123)","v":"Estacio Part ON"}]
[{"$f":"IF(Economática!AG124=\"\",\"\",Economática!AG124)","v":"PARD3"},{"$f":"IF($A122=\"\",\"\",VLOOKUP(VLOOKUP($A122,Economática!$A$3:$AI$823,6,FALSE),Correção!$B$16:$C$36,2,FALSE))","v":"Outros"},{"$f":"IF(Economática!B124=\"\",\"\",Economática!B124)","v":"Ihpardini"},{"$f":"IF($A122=\"\",\"\",IF(OR(VLOOKUP($A122,Economática!$A$3:$AI$823,8,FALSE)=0,VLOOKUP($A122,Economática!$A$3:$AI$823,8,FALSE)=\"-\"),1/0,VLOOKUP($A122,Economática!$A$3:$AI$823,8,FALSE)))","v":20.3},{"$f":"IF(A122=\"\",\"\",IF(ISERROR(VLOOKUP(A122,Correção!$B$2:$G$13,9,FALSE)),VLOOKUP($A122,Economática!$A$3:$AI$823,9,FALSE),VLOOKUP(A122,Correção!$B$2:$G$13,9,FALSE)))","v":130.16900000000001},{"$f":"IF($A122=\"\",\"\",Economática!G124)","v":2642.43},{"$f":"IF($A122=\"\",\"\",IF(OR(VLOOKUP($A122,Economática!$A$3:$AI$823,10,FALSE)=0,VLOOKUP($A122,Economática!$A$3:$AI$823,10,FALSE)=\"-\"),1/0,VLOOKUP($A122,Economática!$A$3:$AI$823,10,FALSE)))","v":605.62},{"$f":"IF($A122=\"\",\"\",IF(OR(VLOOKUP($A122,Economática!$A$3:$AI$823,11,FALSE)=0,VLOOKUP($A122,Economática!$A$3:$AI$823,11,FALSE)=\"-\"),1/0,VLOOKUP($A122,Economática!$A$3:$AI$823,11,FALSE)))","v":1117.04},{"$f":"IF($A122=\"\",\"\",IF(OR(VLOOKUP($A122,Economática!$A$3:$AI$823,12,FALSE)=0,VLOOKUP($A122,Economática!$A$3:$AI$823,12,FALSE)=\"-\"),1/0,VLOOKUP($A122,Economática!$A$3:$AI$823,12,FALSE)))","v":1204.71},{"$f":"IF($A122=\"\",\"\",IF(OR(VLOOKUP($A122,Economática!$A$3:$AI$823,13,FALSE)=0,VLOOKUP($A122,Economática!$A$3:$AI$823,13,FALSE)=\"-\"),1/0,VLOOKUP($A122,Economática!$A$3:$AI$823,13,FALSE)))","v":129.54},{"$f":"IF($A122=\"\",\"\",IF(OR(VLOOKUP($A122,Economática!$A$3:$AI$823,14,FALSE)=0,VLOOKUP($A122,Economática!$A$3:$AI$823,14,FALSE)=\"-\"),1/0,VLOOKUP($A122,Economática!$A$3:$AI$823,14,FALSE)))","v":29.53},{"$f":"IF($A122=\"\",\"\",IF(OR(VLOOKUP($A122,Economática!$A$3:$AI$823,15,FALSE)=0,VLOOKUP($A122,Economática!$A$3:$AI$823,15,FALSE)=\"-\"),1/0,VLOOKUP($A122,Economática!$A$3:$AI$823,15,FALSE)))","v":62.64},{"$f":"IF($A122=\"\",\"\",IF(OR(VLOOKUP($A122,Economática!$A$3:$AI$823,16,FALSE)=0,VLOOKUP($A122,Economática!$A$3:$AI$823,16,FALSE)=\"-\"),1/0,VLOOKUP($A122,Economática!$A$3:$AI$823,16,FALSE)))","v":96.72},{"$f":"IF($A122=\"\",\"\",IF(OR(VLOOKUP($A122,Economática!$A$3:$AI$823,17,FALSE)=0,VLOOKUP($A122,Economática!$A$3:$AI$823,17,FALSE)=\"-\"),1/0,VLOOKUP($A122,Economática!$A$3:$AI$823,17,FALSE)))","v":123.12},{"$f":"IF($A122=\"\",\"\",IF(OR(VLOOKUP($A122,Economática!$A$3:$AI$823,18,FALSE)=0,VLOOKUP($A122,Economática!$A$3:$AI$823,18,FALSE)=\"-\"),1/0,VLOOKUP($A122,Economática!$A$3:$AI$823,18,FALSE)))","v":129.54},{"$f":"IF($A122=\"\",\"\",IF(OR(VLOOKUP($A122,Economática!$A$3:$AI$823,19,FALSE)=0,VLOOKUP($A122,Economática!$A$3:$AI$823,19,FALSE)=\"-\"),1/0,VLOOKUP($A122,Economática!$A$3:$AI$823,19,FALSE)))","v":123.12},{"$f":"IF($A122=\"\",\"\",VLOOKUP($A122,Economática!$A$3:$AI$823,20,FALSE)/E122)","v":0.9458473215588965},4.6525670474536946,4.3631826888147689,21.46223765432099,{"$f":"IF($A122=\"\",\"\",IF(OR(VLOOKUP($A122,Economática!$A$3:$AI$823,21,FALSE)/100=0,VLOOKUP($A122,Economática!$A$3:$AI$823,21,FALSE)/100=\"-\"),1/0,VLOOKUP($A122,Economática!$A$3:$AI$823,21,FALSE)/100))","v":0.22945299999999999},{"$f":"IF($A122=\"\",\"\",IF(OR(VLOOKUP($A122,Economática!$A$3:$AI$823,22,FALSE)/100=0,VLOOKUP($A122,Economática!$A$3:$AI$823,22,FALSE)/100=\"-\"),1/0,VLOOKUP($A122,Economática!$A$3:$AI$823,22,FALSE)/100))","v":0.16231899999999999},{"$f":"IF($A122=\"\",\"\",IF(OR(VLOOKUP($A122,Economática!$A$3:$AI$823,23,FALSE)=0,VLOOKUP($A122,Economática!$A$3:$AI$823,23,FALSE)=\"-\"),1/0,VLOOKUP($A122,Economática!$A$3:$AI$823,23,FALSE)))","v":234.7},{"$f":"IF($A122=\"\",\"\",IF(OR(VLOOKUP($A122,Economática!$A$3:$AI$823,24,FALSE)=0,VLOOKUP($A122,Economática!$A$3:$AI$823,24,FALSE)=\"-\"),1/0,VLOOKUP($A122,Economática!$A$3:$AI$823,24,FALSE)))","v":226.1},{"$f":"IF($A122=\"\",\"\",IF(OR(VLOOKUP($A122,Economática!$A$3:$AI$823,25,FALSE)=0,VLOOKUP($A122,Economática!$A$3:$AI$823,25,FALSE)=\"-\"),1/0,VLOOKUP($A122,Economática!$A$3:$AI$823,25,FALSE)))","v":226.1},{"$f":"IF($A122=\"\",\"\",IF(ISERROR((F122+VLOOKUP($A122,Economática!$A$3:$AI$823,26,FALSE))/Y122),(F122+VLOOKUP($A122,Economática!$A$3:$AI$823,26,FALSE))/Y122,(F122+VLOOKUP($A122,Economática!$A$3:$AI$823,26,FALSE))/Y122))","v":12.122636001769129},{"$f":"IF($A122=\"\",\"\",IF(OR(-VLOOKUP($A122,Economática!$A$3:$AI$823,27,FALSE)=0,-VLOOKUP($A122,Economática!$A$3:$AI$823,27,FALSE)=\"-\"),1/0,-VLOOKUP($A122,Economática!$A$3:$AI$823,27,FALSE)))","v":42.48},1.6076111760765659E-2,{"$f":"IF($A122=\"\",\"\",IF(OR(VLOOKUP($A122,Economática!$A$3:$AI$823,28,FALSE)=0,VLOOKUP($A122,Economática!$A$3:$AI$823,28,FALSE)=\"-\"),1/0,VLOOKUP($A122,Economática!$A$3:$AI$823,28,FALSE)))","v":6.4},{"$f":"IF($A122=\"\",\"\",IF(OR(VLOOKUP($A122,Economática!$A$3:$AI$823,29,FALSE)=0,VLOOKUP($A122,Economática!$A$3:$AI$823,29,FALSE)=\"-\"),1/0,VLOOKUP($A122,Economática!$A$3:$AI$823,29,FALSE)))","v":-37.9},{"$f":"IF($A122=\"\",\"\",IF(OR(VLOOKUP($A122,Economática!$A$3:$AI$823,30,FALSE)/E122=0,VLOOKUP($A122,Economática!$A$3:$AI$823,30,FALSE)/E122=\"-\",VLOOKUP($A122,Economática!$A$3:$AI$823,30,FALSE)/E122<33.33%,VLOOKUP($A122,Economática!$A$3:$AI$823,30,FALSE)/E122>100%),1/0,VLOOKUP($A122,Economática!$A$3:$AI$823,30,FALSE)/E122))","v":{"$error":"#DIV/0!"}},"PARD3",{"$f":"IF($A122=\"\",\"\",IF(OR(VLOOKUP($A122,Economática!$A$3:$AI$823,25,FALSE)=0,VLOOKUP($A122,Economática!$A$3:$AI$823,25,FALSE)=\"-\"),1/0,VLOOKUP($A122,Economática!$A$3:$AI$823,25,FALSE)))","v":226.1},{"$f":"CONCATENATE(Economática!B124,\" \",Economática!C124)","v":"Ihpardini ON"}]
[{"$f":"IF(Economática!AG125=\"\",\"\",Economática!AG125)","v":"FLRY3"},{"$f":"IF($A123=\"\",\"\",VLOOKUP(VLOOKUP($A123,Economática!$A$3:$AI$823,6,FALSE),Correção!$B$16:$C$36,2,FALSE))","v":"Outros"},{"$f":"IF(Economática!B125=\"\",\"\",Economática!B125)","v":"Fleury"},{"$f":"IF($A123=\"\",\"\",IF(OR(VLOOKUP($A123,Economática!$A$3:$AI$823,8,FALSE)=0,VLOOKUP($A123,Economática!$A$3:$AI$823,8,FALSE)=\"-\"),1/0,VLOOKUP($A123,Economática!$A$3:$AI$823,8,FALSE)))","v":20.399999999999999},{"$f":"IF(A123=\"\",\"\",IF(ISERROR(VLOOKUP(A123,Correção!$B$2:$G$13,9,FALSE)),VLOOKUP($A123,Economática!$A$3:$AI$823,9,FALSE),VLOOKUP(A123,Correção!$B$2:$G$13,9,FALSE)))","v":316.113},{"$f":"IF($A123=\"\",\"\",Economática!G125)","v":6448.71},{"$f":"IF($A123=\"\",\"\",IF(OR(VLOOKUP($A123,Economática!$A$3:$AI$823,10,FALSE)=0,VLOOKUP($A123,Economática!$A$3:$AI$823,10,FALSE)=\"-\"),1/0,VLOOKUP($A123,Economática!$A$3:$AI$823,10,FALSE)))","v":1749.96},{"$f":"IF($A123=\"\",\"\",IF(OR(VLOOKUP($A123,Economática!$A$3:$AI$823,11,FALSE)=0,VLOOKUP($A123,Economática!$A$3:$AI$823,11,FALSE)=\"-\"),1/0,VLOOKUP($A123,Economática!$A$3:$AI$823,11,FALSE)))","v":2383.0100000000002},{"$f":"IF($A123=\"\",\"\",IF(OR(VLOOKUP($A123,Economática!$A$3:$AI$823,12,FALSE)=0,VLOOKUP($A123,Economática!$A$3:$AI$823,12,FALSE)=\"-\"),1/0,VLOOKUP($A123,Economática!$A$3:$AI$823,12,FALSE)))","v":2664.46},{"$f":"IF($A123=\"\",\"\",IF(OR(VLOOKUP($A123,Economática!$A$3:$AI$823,13,FALSE)=0,VLOOKUP($A123,Economática!$A$3:$AI$823,13,FALSE)=\"-\"),1/0,VLOOKUP($A123,Economática!$A$3:$AI$823,13,FALSE)))","v":320.62},{"$f":"IF($A123=\"\",\"\",IF(OR(VLOOKUP($A123,Economática!$A$3:$AI$823,14,FALSE)=0,VLOOKUP($A123,Economática!$A$3:$AI$823,14,FALSE)=\"-\"),1/0,VLOOKUP($A123,Economática!$A$3:$AI$823,14,FALSE)))","v":96.43},{"$f":"IF($A123=\"\",\"\",IF(OR(VLOOKUP($A123,Economática!$A$3:$AI$823,15,FALSE)=0,VLOOKUP($A123,Economática!$A$3:$AI$823,15,FALSE)=\"-\"),1/0,VLOOKUP($A123,Economática!$A$3:$AI$823,15,FALSE)))","v":183.06},{"$f":"IF($A123=\"\",\"\",IF(OR(VLOOKUP($A123,Economática!$A$3:$AI$823,16,FALSE)=0,VLOOKUP($A123,Economática!$A$3:$AI$823,16,FALSE)=\"-\"),1/0,VLOOKUP($A123,Economática!$A$3:$AI$823,16,FALSE)))","v":273.39999999999998},{"$f":"IF($A123=\"\",\"\",IF(OR(VLOOKUP($A123,Economática!$A$3:$AI$823,17,FALSE)=0,VLOOKUP($A123,Economática!$A$3:$AI$823,17,FALSE)=\"-\"),1/0,VLOOKUP($A123,Economática!$A$3:$AI$823,17,FALSE)))","v":331.59},{"$f":"IF($A123=\"\",\"\",IF(OR(VLOOKUP($A123,Economática!$A$3:$AI$823,18,FALSE)=0,VLOOKUP($A123,Economática!$A$3:$AI$823,18,FALSE)=\"-\"),1/0,VLOOKUP($A123,Economática!$A$3:$AI$823,18,FALSE)))","v":320.62},{"$f":"IF($A123=\"\",\"\",IF(OR(VLOOKUP($A123,Economática!$A$3:$AI$823,19,FALSE)=0,VLOOKUP($A123,Economática!$A$3:$AI$823,19,FALSE)=\"-\"),1/0,VLOOKUP($A123,Economática!$A$3:$AI$823,19,FALSE)))","v":331.59},{"$f":"IF($A123=\"\",\"\",VLOOKUP($A123,Economática!$A$3:$AI$823,20,FALSE)/E123)","v":1.0489603401315353},5.5358685027189649,3.6850586299115404,19.447827739075361,{"$f":"IF($A123=\"\",\"\",IF(OR(VLOOKUP($A123,Economática!$A$3:$AI$823,21,FALSE)/100=0,VLOOKUP($A123,Economática!$A$3:$AI$823,21,FALSE)/100=\"-\"),1/0,VLOOKUP($A123,Economática!$A$3:$AI$823,21,FALSE)/100))","v":0.19430399999999998},{"$f":"IF($A123=\"\",\"\",IF(OR(VLOOKUP($A123,Economática!$A$3:$AI$823,22,FALSE)/100=0,VLOOKUP($A123,Economática!$A$3:$AI$823,22,FALSE)/100=\"-\"),1/0,VLOOKUP($A123,Economática!$A$3:$AI$823,22,FALSE)/100))","v":0.25731700000000002},{"$f":"IF($A123=\"\",\"\",IF(OR(VLOOKUP($A123,Economática!$A$3:$AI$823,23,FALSE)=0,VLOOKUP($A123,Economática!$A$3:$AI$823,23,FALSE)=\"-\"),1/0,VLOOKUP($A123,Economática!$A$3:$AI$823,23,FALSE)))","v":619.6},{"$f":"IF($A123=\"\",\"\",IF(OR(VLOOKUP($A123,Economática!$A$3:$AI$823,24,FALSE)=0,VLOOKUP($A123,Economática!$A$3:$AI$823,24,FALSE)=\"-\"),1/0,VLOOKUP($A123,Economática!$A$3:$AI$823,24,FALSE)))","v":692.5},{"$f":"IF($A123=\"\",\"\",IF(OR(VLOOKUP($A123,Economática!$A$3:$AI$823,25,FALSE)=0,VLOOKUP($A123,Economática!$A$3:$AI$823,25,FALSE)=\"-\"),1/0,VLOOKUP($A123,Economática!$A$3:$AI$823,25,FALSE)))","v":692.5},{"$f":"IF($A123=\"\",\"\",IF(ISERROR((F123+VLOOKUP($A123,Economática!$A$3:$AI$823,26,FALSE))/Y123),(F123+VLOOKUP($A123,Economática!$A$3:$AI$823,26,FALSE))/Y123,(F123+VLOOKUP($A123,Economática!$A$3:$AI$823,26,FALSE))/Y123))","v":9.9624606498194943},{"$f":"IF($A123=\"\",\"\",IF(OR(-VLOOKUP($A123,Economática!$A$3:$AI$823,27,FALSE)=0,-VLOOKUP($A123,Economática!$A$3:$AI$823,27,FALSE)=\"-\"),1/0,-VLOOKUP($A123,Economática!$A$3:$AI$823,27,FALSE)))","v":303.20999999999998},4.7018706066794751E-2,{"$f":"IF($A123=\"\",\"\",IF(OR(VLOOKUP($A123,Economática!$A$3:$AI$823,28,FALSE)=0,VLOOKUP($A123,Economática!$A$3:$AI$823,28,FALSE)=\"-\"),1/0,VLOOKUP($A123,Economática!$A$3:$AI$823,28,FALSE)))","v":5.6},{"$f":"IF($A123=\"\",\"\",IF(OR(VLOOKUP($A123,Economática!$A$3:$AI$823,29,FALSE)=0,VLOOKUP($A123,Economática!$A$3:$AI$823,29,FALSE)=\"-\"),1/0,VLOOKUP($A123,Economática!$A$3:$AI$823,29,FALSE)))","v":-25.7},{"$f":"IF($A123=\"\",\"\",IF(OR(VLOOKUP($A123,Economática!$A$3:$AI$823,30,FALSE)/E123=0,VLOOKUP($A123,Economática!$A$3:$AI$823,30,FALSE)/E123=\"-\",VLOOKUP($A123,Economática!$A$3:$AI$823,30,FALSE)/E123<33.33%,VLOOKUP($A123,Economática!$A$3:$AI$823,30,FALSE)/E123>100%),1/0,VLOOKUP($A123,Economática!$A$3:$AI$823,30,FALSE)/E123))","v":0.99995887546541906},"FLRY3",{"$f":"IF($A123=\"\",\"\",IF(OR(VLOOKUP($A123,Economática!$A$3:$AI$823,25,FALSE)=0,VLOOKUP($A123,Economática!$A$3:$AI$823,25,FALSE)=\"-\"),1/0,VLOOKUP($A123,Economática!$A$3:$AI$823,25,FALSE)))","v":692.5},{"$f":"CONCATENATE(Economática!B125,\" \",Economática!C125)","v":"Fleury ON"}]
[{"$f":"IF(Economática!AG126=\"\",\"\",Economática!AG126)","v":"SAPR4"},{"$f":"IF($A124=\"\",\"\",VLOOKUP(VLOOKUP($A124,Economática!$A$3:$AI$823,6,FALSE),Correção!$B$16:$C$36,2,FALSE))","v":"Outros"},{"$f":"IF(Economática!B126=\"\",\"\",Economática!B126)","v":"Sanepar"},{"$f":"IF($A124=\"\",\"\",IF(OR(VLOOKUP($A124,Economática!$A$3:$AI$823,8,FALSE)=0,VLOOKUP($A124,Economática!$A$3:$AI$823,8,FALSE)=\"-\"),1/0,VLOOKUP($A124,Economática!$A$3:$AI$823,8,FALSE)))","v":13.9},{"$f":"IF(A124=\"\",\"\",IF(ISERROR(VLOOKUP(A124,Correção!$B$2:$G$13,9,FALSE)),VLOOKUP($A124,Economática!$A$3:$AI$823,9,FALSE),VLOOKUP(A124,Correção!$B$2:$G$13,9,FALSE)))","v":503.73500000000001},{"$f":"IF($A124=\"\",\"\",Economática!G126)","v":7967.41},{"$f":"IF($A124=\"\",\"\",IF(OR(VLOOKUP($A124,Economática!$A$3:$AI$823,10,FALSE)=0,VLOOKUP($A124,Economática!$A$3:$AI$823,10,FALSE)=\"-\"),1/0,VLOOKUP($A124,Economática!$A$3:$AI$823,10,FALSE)))","v":5717.19},{"$f":"IF($A124=\"\",\"\",IF(OR(VLOOKUP($A124,Economática!$A$3:$AI$823,11,FALSE)=0,VLOOKUP($A124,Economática!$A$3:$AI$823,11,FALSE)=\"-\"),1/0,VLOOKUP($A124,Economática!$A$3:$AI$823,11,FALSE)))","v":3869.4},{"$f":"IF($A124=\"\",\"\",IF(OR(VLOOKUP($A124,Economática!$A$3:$AI$823,12,FALSE)=0,VLOOKUP($A124,Economática!$A$3:$AI$823,12,FALSE)=\"-\"),1/0,VLOOKUP($A124,Economática!$A$3:$AI$823,12,FALSE)))","v":4162.21},{"$f":"IF($A124=\"\",\"\",IF(OR(VLOOKUP($A124,Economática!$A$3:$AI$823,13,FALSE)=0,VLOOKUP($A124,Economática!$A$3:$AI$823,13,FALSE)=\"-\"),1/0,VLOOKUP($A124,Economática!$A$3:$AI$823,13,FALSE)))","v":686.17},{"$f":"IF($A124=\"\",\"\",IF(OR(VLOOKUP($A124,Economática!$A$3:$AI$823,14,FALSE)=0,VLOOKUP($A124,Economática!$A$3:$AI$823,14,FALSE)=\"-\"),1/0,VLOOKUP($A124,Economática!$A$3:$AI$823,14,FALSE)))","v":186.91},{"$f":"IF($A124=\"\",\"\",IF(OR(VLOOKUP($A124,Economática!$A$3:$AI$823,15,FALSE)=0,VLOOKUP($A124,Economática!$A$3:$AI$823,15,FALSE)=\"-\"),1/0,VLOOKUP($A124,Economática!$A$3:$AI$823,15,FALSE)))","v":440.48},{"$f":"IF($A124=\"\",\"\",IF(OR(VLOOKUP($A124,Economática!$A$3:$AI$823,16,FALSE)=0,VLOOKUP($A124,Economática!$A$3:$AI$823,16,FALSE)=\"-\"),1/0,VLOOKUP($A124,Economática!$A$3:$AI$823,16,FALSE)))","v":572.47},{"$f":"IF($A124=\"\",\"\",IF(OR(VLOOKUP($A124,Economática!$A$3:$AI$823,17,FALSE)=0,VLOOKUP($A124,Economática!$A$3:$AI$823,17,FALSE)=\"-\"),1/0,VLOOKUP($A124,Economática!$A$3:$AI$823,17,FALSE)))","v":892.49},{"$f":"IF($A124=\"\",\"\",IF(OR(VLOOKUP($A124,Economática!$A$3:$AI$823,18,FALSE)=0,VLOOKUP($A124,Economática!$A$3:$AI$823,18,FALSE)=\"-\"),1/0,VLOOKUP($A124,Economática!$A$3:$AI$823,18,FALSE)))","v":686.17},{"$f":"IF($A124=\"\",\"\",IF(OR(VLOOKUP($A124,Economática!$A$3:$AI$823,19,FALSE)=0,VLOOKUP($A124,Economática!$A$3:$AI$823,19,FALSE)=\"-\"),1/0,VLOOKUP($A124,Economática!$A$3:$AI$823,19,FALSE)))","v":892.49},{"$f":"IF($A124=\"\",\"\",VLOOKUP($A124,Economática!$A$3:$AI$823,20,FALSE)/E124)","v":1.7717450643691623},11.349598499210893,1.2247129271547736,7.8453724971708372,{"$f":"IF($A124=\"\",\"\",IF(OR(VLOOKUP($A124,Economática!$A$3:$AI$823,21,FALSE)/100=0,VLOOKUP($A124,Economática!$A$3:$AI$823,21,FALSE)/100=\"-\"),1/0,VLOOKUP($A124,Economática!$A$3:$AI$823,21,FALSE)/100))","v":0.17320900000000003},{"$f":"IF($A124=\"\",\"\",IF(OR(VLOOKUP($A124,Economática!$A$3:$AI$823,22,FALSE)/100=0,VLOOKUP($A124,Economática!$A$3:$AI$823,22,FALSE)/100=\"-\"),1/0,VLOOKUP($A124,Economática!$A$3:$AI$823,22,FALSE)/100))","v":0.42760399999999998},{"$f":"IF($A124=\"\",\"\",IF(OR(VLOOKUP($A124,Economática!$A$3:$AI$823,23,FALSE)=0,VLOOKUP($A124,Economática!$A$3:$AI$823,23,FALSE)=\"-\"),1/0,VLOOKUP($A124,Economática!$A$3:$AI$823,23,FALSE)))","v":1383.5},{"$f":"IF($A124=\"\",\"\",IF(OR(VLOOKUP($A124,Economática!$A$3:$AI$823,24,FALSE)=0,VLOOKUP($A124,Economática!$A$3:$AI$823,24,FALSE)=\"-\"),1/0,VLOOKUP($A124,Economática!$A$3:$AI$823,24,FALSE)))","v":1642},{"$f":"IF($A124=\"\",\"\",IF(OR(VLOOKUP($A124,Economática!$A$3:$AI$823,25,FALSE)=0,VLOOKUP($A124,Economática!$A$3:$AI$823,25,FALSE)=\"-\"),1/0,VLOOKUP($A124,Economática!$A$3:$AI$823,25,FALSE)))","v":1642},{"$f":"IF($A124=\"\",\"\",IF(ISERROR((F124+VLOOKUP($A124,Economática!$A$3:$AI$823,26,FALSE))/Y124),(F124+VLOOKUP($A124,Economática!$A$3:$AI$823,26,FALSE))/Y124,(F124+VLOOKUP($A124,Economática!$A$3:$AI$823,26,FALSE))/Y124))","v":6.341110840438489},{"$f":"IF($A124=\"\",\"\",IF(OR(-VLOOKUP($A124,Economática!$A$3:$AI$823,27,FALSE)=0,-VLOOKUP($A124,Economática!$A$3:$AI$823,27,FALSE)=\"-\"),1/0,-VLOOKUP($A124,Economática!$A$3:$AI$823,27,FALSE)))","v":298.39999999999998},3.7452572416883274E-2,{"$f":"IF($A124=\"\",\"\",IF(OR(VLOOKUP($A124,Economática!$A$3:$AI$823,28,FALSE)=0,VLOOKUP($A124,Economática!$A$3:$AI$823,28,FALSE)=\"-\"),1/0,VLOOKUP($A124,Economática!$A$3:$AI$823,28,FALSE)))","v":1.6},{"$f":"IF($A124=\"\",\"\",IF(OR(VLOOKUP($A124,Economática!$A$3:$AI$823,29,FALSE)=0,VLOOKUP($A124,Economática!$A$3:$AI$823,29,FALSE)=\"-\"),1/0,VLOOKUP($A124,Economática!$A$3:$AI$823,29,FALSE)))","v":31.2},{"$f":"IF($A124=\"\",\"\",IF(OR(VLOOKUP($A124,Economática!$A$3:$AI$823,30,FALSE)/E124=0,VLOOKUP($A124,Economática!$A$3:$AI$823,30,FALSE)/E124=\"-\",VLOOKUP($A124,Economática!$A$3:$AI$823,30,FALSE)/E124<33.33%,VLOOKUP($A124,Economática!$A$3:$AI$823,30,FALSE)/E124>100%),1/0,VLOOKUP($A124,Economática!$A$3:$AI$823,30,FALSE)/E124))","v":0.33331017300763299},"SAPR4",{"$f":"IF($A124=\"\",\"\",IF(OR(VLOOKUP($A124,Economática!$A$3:$AI$823,25,FALSE)=0,VLOOKUP($A124,Economática!$A$3:$AI$823,25,FALSE)=\"-\"),1/0,VLOOKUP($A124,Economática!$A$3:$AI$823,25,FALSE)))","v":1642},{"$f":"CONCATENATE(Economática!B126,\" \",Economática!C126)","v":"Sanepar PN"}]
[{"$f":"IF(Economática!AG127=\"\",\"\",Economática!AG127)","v":"SAPR11"},{"$f":"IF($A125=\"\",\"\",VLOOKUP(VLOOKUP($A125,Economática!$A$3:$AI$823,6,FALSE),Correção!$B$16:$C$36,2,FALSE))","v":"Outros"},{"$f":"IF(Economática!B127=\"\",\"\",Economática!B127)","v":"Sanepar"},{"$f":"IF($A125=\"\",\"\",IF(OR(VLOOKUP($A125,Economática!$A$3:$AI$823,8,FALSE)=0,VLOOKUP($A125,Economática!$A$3:$AI$823,8,FALSE)=\"-\"),1/0,VLOOKUP($A125,Economática!$A$3:$AI$823,8,FALSE)))","v":74.95},{"$f":"IF(A125=\"\",\"\",IF(ISERROR(VLOOKUP(A125,Correção!$B$2:$G$13,9,FALSE)),VLOOKUP($A125,Economática!$A$3:$AI$823,9,FALSE),VLOOKUP(A125,Correção!$B$2:$G$13,9,FALSE)))","v":503.73500000000001},{"$f":"IF($A125=\"\",\"\",Economática!G127)","v":7967.41},{"$f":"IF($A125=\"\",\"\",IF(OR(VLOOKUP($A125,Economática!$A$3:$AI$823,10,FALSE)=0,VLOOKUP($A125,Economática!$A$3:$AI$823,10,FALSE)=\"-\"),1/0,VLOOKUP($A125,Economática!$A$3:$AI$823,10,FALSE)))","v":5717.19},{"$f":"IF($A125=\"\",\"\",IF(OR(VLOOKUP($A125,Economática!$A$3:$AI$823,11,FALSE)=0,VLOOKUP($A125,Economática!$A$3:$AI$823,11,FALSE)=\"-\"),1/0,VLOOKUP($A125,Economática!$A$3:$AI$823,11,FALSE)))","v":3869.4},{"$f":"IF($A125=\"\",\"\",IF(OR(VLOOKUP($A125,Economática!$A$3:$AI$823,12,FALSE)=0,VLOOKUP($A125,Economática!$A$3:$AI$823,12,FALSE)=\"-\"),1/0,VLOOKUP($A125,Economática!$A$3:$AI$823,12,FALSE)))","v":4162.21},{"$f":"IF($A125=\"\",\"\",IF(OR(VLOOKUP($A125,Economática!$A$3:$AI$823,13,FALSE)=0,VLOOKUP($A125,Economática!$A$3:$AI$823,13,FALSE)=\"-\"),1/0,VLOOKUP($A125,Economática!$A$3:$AI$823,13,FALSE)))","v":686.17},{"$f":"IF($A125=\"\",\"\",IF(OR(VLOOKUP($A125,Economática!$A$3:$AI$823,14,FALSE)=0,VLOOKUP($A125,Economática!$A$3:$AI$823,14,FALSE)=\"-\"),1/0,VLOOKUP($A125,Economática!$A$3:$AI$823,14,FALSE)))","v":186.91},{"$f":"IF($A125=\"\",\"\",IF(OR(VLOOKUP($A125,Economática!$A$3:$AI$823,15,FALSE)=0,VLOOKUP($A125,Economática!$A$3:$AI$823,15,FALSE)=\"-\"),1/0,VLOOKUP($A125,Economática!$A$3:$AI$823,15,FALSE)))","v":440.48},{"$f":"IF($A125=\"\",\"\",IF(OR(VLOOKUP($A125,Economática!$A$3:$AI$823,16,FALSE)=0,VLOOKUP($A125,Economática!$A$3:$AI$823,16,FALSE)=\"-\"),1/0,VLOOKUP($A125,Economática!$A$3:$AI$823,16,FALSE)))","v":572.47},{"$f":"IF($A125=\"\",\"\",IF(OR(VLOOKUP($A125,Economática!$A$3:$AI$823,17,FALSE)=0,VLOOKUP($A125,Economática!$A$3:$AI$823,17,FALSE)=\"-\"),1/0,VLOOKUP($A125,Economática!$A$3:$AI$823,17,FALSE)))","v":892.49},{"$f":"IF($A125=\"\",\"\",IF(OR(VLOOKUP($A125,Economática!$A$3:$AI$823,18,FALSE)=0,VLOOKUP($A125,Economática!$A$3:$AI$823,18,FALSE)=\"-\"),1/0,VLOOKUP($A125,Economática!$A$3:$AI$823,18,FALSE)))","v":686.17},{"$f":"IF($A125=\"\",\"\",IF(OR(VLOOKUP($A125,Economática!$A$3:$AI$823,19,FALSE)=0,VLOOKUP($A125,Economática!$A$3:$AI$823,19,FALSE)=\"-\"),1/0,VLOOKUP($A125,Economática!$A$3:$AI$823,19,FALSE)))","v":892.49},{"$f":"IF($A125=\"\",\"\",VLOOKUP($A125,Economática!$A$3:$AI$823,20,FALSE)/E125)","v":1.7717450643691623},11.349598499210893,6.6037578338309562,42.302925803090233,{"$f":"IF($A125=\"\",\"\",IF(OR(VLOOKUP($A125,Economática!$A$3:$AI$823,21,FALSE)/100=0,VLOOKUP($A125,Economática!$A$3:$AI$823,21,FALSE)/100=\"-\"),1/0,VLOOKUP($A125,Economática!$A$3:$AI$823,21,FALSE)/100))","v":0.17320900000000003},{"$f":"IF($A125=\"\",\"\",IF(OR(VLOOKUP($A125,Economática!$A$3:$AI$823,22,FALSE)/100=0,VLOOKUP($A125,Economática!$A$3:$AI$823,22,FALSE)/100=\"-\"),1/0,VLOOKUP($A125,Economática!$A$3:$AI$823,22,FALSE)/100))","v":0.42760399999999998},{"$f":"IF($A125=\"\",\"\",IF(OR(VLOOKUP($A125,Economática!$A$3:$AI$823,23,FALSE)=0,VLOOKUP($A125,Economática!$A$3:$AI$823,23,FALSE)=\"-\"),1/0,VLOOKUP($A125,Economática!$A$3:$AI$823,23,FALSE)))","v":1383.5},{"$f":"IF($A125=\"\",\"\",IF(OR(VLOOKUP($A125,Economática!$A$3:$AI$823,24,FALSE)=0,VLOOKUP($A125,Economática!$A$3:$AI$823,24,FALSE)=\"-\"),1/0,VLOOKUP($A125,Economática!$A$3:$AI$823,24,FALSE)))","v":1642},{"$f":"IF($A125=\"\",\"\",IF(OR(VLOOKUP($A125,Economática!$A$3:$AI$823,25,FALSE)=0,VLOOKUP($A125,Economática!$A$3:$AI$823,25,FALSE)=\"-\"),1/0,VLOOKUP($A125,Economática!$A$3:$AI$823,25,FALSE)))","v":1642},{"$f":"IF($A125=\"\",\"\",IF(ISERROR((F125+VLOOKUP($A125,Economática!$A$3:$AI$823,26,FALSE))/Y125),(F125+VLOOKUP($A125,Economática!$A$3:$AI$823,26,FALSE))/Y125,(F125+VLOOKUP($A125,Economática!$A$3:$AI$823,26,FALSE))/Y125))","v":6.341110840438489},{"$f":"IF($A125=\"\",\"\",IF(OR(-VLOOKUP($A125,Economática!$A$3:$AI$823,27,FALSE)=0,-VLOOKUP($A125,Economática!$A$3:$AI$823,27,FALSE)=\"-\"),1/0,-VLOOKUP($A125,Economática!$A$3:$AI$823,27,FALSE)))","v":298.39999999999998},3.7452572416883274E-2,{"$f":"IF($A125=\"\",\"\",IF(OR(VLOOKUP($A125,Economática!$A$3:$AI$823,28,FALSE)=0,VLOOKUP($A125,Economática!$A$3:$AI$823,28,FALSE)=\"-\"),1/0,VLOOKUP($A125,Economática!$A$3:$AI$823,28,FALSE)))","v":-2.8},{"$f":"IF($A125=\"\",\"\",IF(OR(VLOOKUP($A125,Economática!$A$3:$AI$823,29,FALSE)=0,VLOOKUP($A125,Economática!$A$3:$AI$823,29,FALSE)=\"-\"),1/0,VLOOKUP($A125,Economática!$A$3:$AI$823,29,FALSE)))","v":37},{"$f":"IF($A125=\"\",\"\",IF(OR(VLOOKUP($A125,Economática!$A$3:$AI$823,30,FALSE)/E125=0,VLOOKUP($A125,Economática!$A$3:$AI$823,30,FALSE)/E125=\"-\",VLOOKUP($A125,Economática!$A$3:$AI$823,30,FALSE)/E125<33.33%,VLOOKUP($A125,Economática!$A$3:$AI$823,30,FALSE)/E125>100%),1/0,VLOOKUP($A125,Economática!$A$3:$AI$823,30,FALSE)/E125))","v":0.33331017300763299},"SAPR11",{"$f":"IF($A125=\"\",\"\",IF(OR(VLOOKUP($A125,Economática!$A$3:$AI$823,25,FALSE)=0,VLOOKUP($A125,Economática!$A$3:$AI$823,25,FALSE)=\"-\"),1/0,VLOOKUP($A125,Economática!$A$3:$AI$823,25,FALSE)))","v":1642},{"$f":"CONCATENATE(Economática!B127,\" \",Economática!C127)","v":"Sanepar UNT N2"}]
[{"$f":"IF(Economática!AG128=\"\",\"\",Economática!AG128)","v":"ITSA4"},{"$f":"IF($A126=\"\",\"\",VLOOKUP(VLOOKUP($A126,Economática!$A$3:$AI$823,6,FALSE),Correção!$B$16:$C$36,2,FALSE))","v":"Outros"},{"$f":"IF(Economática!B128=\"\",\"\",Economática!B128)","v":"Itausa"},{"$f":"IF($A126=\"\",\"\",IF(OR(VLOOKUP($A126,Economática!$A$3:$AI$823,8,FALSE)=0,VLOOKUP($A126,Economática!$A$3:$AI$823,8,FALSE)=\"-\"),1/0,VLOOKUP($A126,Economática!$A$3:$AI$823,8,FALSE)))","v":11.98},{"$f":"IF(A126=\"\",\"\",IF(ISERROR(VLOOKUP(A126,Correção!$B$2:$G$13,9,FALSE)),VLOOKUP($A126,Economática!$A$3:$AI$823,9,FALSE),VLOOKUP(A126,Correção!$B$2:$G$13,9,FALSE)))","v":8410.6980000000003},{"$f":"IF($A126=\"\",\"\",Economática!G128)","v":108504.93},{"$f":"IF($A126=\"\",\"\",IF(OR(VLOOKUP($A126,Economática!$A$3:$AI$823,10,FALSE)=0,VLOOKUP($A126,Economática!$A$3:$AI$823,10,FALSE)=\"-\"),1/0,VLOOKUP($A126,Economática!$A$3:$AI$823,10,FALSE)))","v":55143},{"$f":"IF($A126=\"\",\"\",IF(OR(VLOOKUP($A126,Economática!$A$3:$AI$823,11,FALSE)=0,VLOOKUP($A126,Economática!$A$3:$AI$823,11,FALSE)=\"-\"),1/0,VLOOKUP($A126,Economática!$A$3:$AI$823,11,FALSE)))","v":4969},{"$f":"IF($A126=\"\",\"\",IF(OR(VLOOKUP($A126,Economática!$A$3:$AI$823,12,FALSE)=0,VLOOKUP($A126,Economática!$A$3:$AI$823,12,FALSE)=\"-\"),1/0,VLOOKUP($A126,Economática!$A$3:$AI$823,12,FALSE)))","v":5375},{"$f":"IF($A126=\"\",\"\",IF(OR(VLOOKUP($A126,Economática!$A$3:$AI$823,13,FALSE)=0,VLOOKUP($A126,Economática!$A$3:$AI$823,13,FALSE)=\"-\"),1/0,VLOOKUP($A126,Economática!$A$3:$AI$823,13,FALSE)))","v":8403},{"$f":"IF($A126=\"\",\"\",IF(OR(VLOOKUP($A126,Economática!$A$3:$AI$823,14,FALSE)=0,VLOOKUP($A126,Economática!$A$3:$AI$823,14,FALSE)=\"-\"),1/0,VLOOKUP($A126,Economática!$A$3:$AI$823,14,FALSE)))","v":2400},{"$f":"IF($A126=\"\",\"\",IF(OR(VLOOKUP($A126,Economática!$A$3:$AI$823,15,FALSE)=0,VLOOKUP($A126,Economática!$A$3:$AI$823,15,FALSE)=\"-\"),1/0,VLOOKUP($A126,Economática!$A$3:$AI$823,15,FALSE)))","v":4447},{"$f":"IF($A126=\"\",\"\",IF(OR(VLOOKUP($A126,Economática!$A$3:$AI$823,16,FALSE)=0,VLOOKUP($A126,Economática!$A$3:$AI$823,16,FALSE)=\"-\"),1/0,VLOOKUP($A126,Economática!$A$3:$AI$823,16,FALSE)))","v":6929},{"$f":"IF($A126=\"\",\"\",IF(OR(VLOOKUP($A126,Economática!$A$3:$AI$823,17,FALSE)=0,VLOOKUP($A126,Economática!$A$3:$AI$823,17,FALSE)=\"-\"),1/0,VLOOKUP($A126,Economática!$A$3:$AI$823,17,FALSE)))","v":9436},{"$f":"IF($A126=\"\",\"\",IF(OR(VLOOKUP($A126,Economática!$A$3:$AI$823,18,FALSE)=0,VLOOKUP($A126,Economática!$A$3:$AI$823,18,FALSE)=\"-\"),1/0,VLOOKUP($A126,Economática!$A$3:$AI$823,18,FALSE)))","v":8403},{"$f":"IF($A126=\"\",\"\",IF(OR(VLOOKUP($A126,Economática!$A$3:$AI$823,19,FALSE)=0,VLOOKUP($A126,Economática!$A$3:$AI$823,19,FALSE)=\"-\"),1/0,VLOOKUP($A126,Economática!$A$3:$AI$823,19,FALSE)))","v":9436},{"$f":"IF($A126=\"\",\"\",VLOOKUP($A126,Economática!$A$3:$AI$823,20,FALSE)/E126)","v":1.1219045078066052},6.5562929497646927,1.8272520907458789,10.67827066977533,{"$f":"IF($A126=\"\",\"\",IF(OR(VLOOKUP($A126,Economática!$A$3:$AI$823,21,FALSE)/100=0,VLOOKUP($A126,Economática!$A$3:$AI$823,21,FALSE)/100=\"-\"),1/0,VLOOKUP($A126,Economática!$A$3:$AI$823,21,FALSE)/100))","v":0.172708},{"$f":"IF($A126=\"\",\"\",IF(OR(VLOOKUP($A126,Economática!$A$3:$AI$823,22,FALSE)/100=0,VLOOKUP($A126,Economática!$A$3:$AI$823,22,FALSE)/100=\"-\"),1/0,VLOOKUP($A126,Economática!$A$3:$AI$823,22,FALSE)/100))","v":1.0674999999999999E-2},{"$f":"IF($A126=\"\",\"\",IF(OR(VLOOKUP($A126,Economática!$A$3:$AI$823,23,FALSE)=0,VLOOKUP($A126,Economática!$A$3:$AI$823,23,FALSE)=\"-\"),1/0,VLOOKUP($A126,Economática!$A$3:$AI$823,23,FALSE)))","v":9182},{"$f":"IF($A126=\"\",\"\",IF(OR(VLOOKUP($A126,Economática!$A$3:$AI$823,24,FALSE)=0,VLOOKUP($A126,Economática!$A$3:$AI$823,24,FALSE)=\"-\"),1/0,VLOOKUP($A126,Economática!$A$3:$AI$823,24,FALSE)))","v":10752},{"$f":"IF($A126=\"\",\"\",IF(OR(VLOOKUP($A126,Economática!$A$3:$AI$823,25,FALSE)=0,VLOOKUP($A126,Economática!$A$3:$AI$823,25,FALSE)=\"-\"),1/0,VLOOKUP($A126,Economática!$A$3:$AI$823,25,FALSE)))","v":10752},{"$f":"IF($A126=\"\",\"\",IF(ISERROR((F126+VLOOKUP($A126,Economática!$A$3:$AI$823,26,FALSE))/Y126),(F126+VLOOKUP($A126,Economática!$A$3:$AI$823,26,FALSE))/Y126,(F126+VLOOKUP($A126,Economática!$A$3:$AI$823,26,FALSE))/Y126))","v":10.149268043154761},{"$f":"IF($A126=\"\",\"\",IF(OR(-VLOOKUP($A126,Economática!$A$3:$AI$823,27,FALSE)=0,-VLOOKUP($A126,Economática!$A$3:$AI$823,27,FALSE)=\"-\"),1/0,-VLOOKUP($A126,Economática!$A$3:$AI$823,27,FALSE)))","v":6602},6.0845161597726488E-2,{"$f":"IF($A126=\"\",\"\",IF(OR(VLOOKUP($A126,Economática!$A$3:$AI$823,28,FALSE)=0,VLOOKUP($A126,Economática!$A$3:$AI$823,28,FALSE)=\"-\"),1/0,VLOOKUP($A126,Economática!$A$3:$AI$823,28,FALSE)))","v":-3},{"$f":"IF($A126=\"\",\"\",IF(OR(VLOOKUP($A126,Economática!$A$3:$AI$823,29,FALSE)=0,VLOOKUP($A126,Economática!$A$3:$AI$823,29,FALSE)=\"-\"),1/0,VLOOKUP($A126,Economática!$A$3:$AI$823,29,FALSE)))","v":40.799999999999997},{"$f":"IF($A126=\"\",\"\",IF(OR(VLOOKUP($A126,Economática!$A$3:$AI$823,30,FALSE)/E126=0,VLOOKUP($A126,Economática!$A$3:$AI$823,30,FALSE)/E126=\"-\",VLOOKUP($A126,Economática!$A$3:$AI$823,30,FALSE)/E126<33.33%,VLOOKUP($A126,Economática!$A$3:$AI$823,30,FALSE)/E126>100%),1/0,VLOOKUP($A126,Economática!$A$3:$AI$823,30,FALSE)/E126))","v":0.34358622792067911},"ITSA4",{"$f":"IF($A126=\"\",\"\",IF(OR(VLOOKUP($A126,Economática!$A$3:$AI$823,25,FALSE)=0,VLOOKUP($A126,Economática!$A$3:$AI$823,25,FALSE)=\"-\"),1/0,VLOOKUP($A126,Economática!$A$3:$AI$823,25,FALSE)))","v":10752},{"$f":"CONCATENATE(Economática!B128,\" \",Economática!C128)","v":"Itausa PN"}]
[{"$f":"IF(Economática!AG129=\"\",\"\",Economática!AG129)","v":"QUAL3"},{"$f":"IF($A127=\"\",\"\",VLOOKUP(VLOOKUP($A127,Economática!$A$3:$AI$823,6,FALSE),Correção!$B$16:$C$36,2,FALSE))","v":"Outros"},{"$f":"IF(Economática!B129=\"\",\"\",Economática!B129)","v":"Qualicorp"},{"$f":"IF($A127=\"\",\"\",IF(OR(VLOOKUP($A127,Economática!$A$3:$AI$823,8,FALSE)=0,VLOOKUP($A127,Economática!$A$3:$AI$823,8,FALSE)=\"-\"),1/0,VLOOKUP($A127,Economática!$A$3:$AI$823,8,FALSE)))","v":15.68},{"$f":"IF(A127=\"\",\"\",IF(ISERROR(VLOOKUP(A127,Correção!$B$2:$G$13,9,FALSE)),VLOOKUP($A127,Economática!$A$3:$AI$823,9,FALSE),VLOOKUP(A127,Correção!$B$2:$G$13,9,FALSE)))","v":280.536},{"$f":"IF($A127=\"\",\"\",Economática!G129)","v":4398.8},{"$f":"IF($A127=\"\",\"\",IF(OR(VLOOKUP($A127,Economática!$A$3:$AI$823,10,FALSE)=0,VLOOKUP($A127,Economática!$A$3:$AI$823,10,FALSE)=\"-\"),1/0,VLOOKUP($A127,Economática!$A$3:$AI$823,10,FALSE)))","v":2354.4899999999998},{"$f":"IF($A127=\"\",\"\",IF(OR(VLOOKUP($A127,Economática!$A$3:$AI$823,11,FALSE)=0,VLOOKUP($A127,Economática!$A$3:$AI$823,11,FALSE)=\"-\"),1/0,VLOOKUP($A127,Economática!$A$3:$AI$823,11,FALSE)))","v":2075.29},{"$f":"IF($A127=\"\",\"\",IF(OR(VLOOKUP($A127,Economática!$A$3:$AI$823,12,FALSE)=0,VLOOKUP($A127,Economática!$A$3:$AI$823,12,FALSE)=\"-\"),1/0,VLOOKUP($A127,Economática!$A$3:$AI$823,12,FALSE)))","v":1932.12},{"$f":"IF($A127=\"\",\"\",IF(OR(VLOOKUP($A127,Economática!$A$3:$AI$823,13,FALSE)=0,VLOOKUP($A127,Economática!$A$3:$AI$823,13,FALSE)=\"-\"),1/0,VLOOKUP($A127,Economática!$A$3:$AI$823,13,FALSE)))","v":370.71},{"$f":"IF($A127=\"\",\"\",IF(OR(VLOOKUP($A127,Economática!$A$3:$AI$823,14,FALSE)=0,VLOOKUP($A127,Economática!$A$3:$AI$823,14,FALSE)=\"-\"),1/0,VLOOKUP($A127,Economática!$A$3:$AI$823,14,FALSE)))","v":102.7},{"$f":"IF($A127=\"\",\"\",IF(OR(VLOOKUP($A127,Economática!$A$3:$AI$823,15,FALSE)=0,VLOOKUP($A127,Economática!$A$3:$AI$823,15,FALSE)=\"-\"),1/0,VLOOKUP($A127,Economática!$A$3:$AI$823,15,FALSE)))","v":191.28},{"$f":"IF($A127=\"\",\"\",IF(OR(VLOOKUP($A127,Economática!$A$3:$AI$823,16,FALSE)=0,VLOOKUP($A127,Economática!$A$3:$AI$823,16,FALSE)=\"-\"),1/0,VLOOKUP($A127,Economática!$A$3:$AI$823,16,FALSE)))","v":301},{"$f":"IF($A127=\"\",\"\",IF(OR(VLOOKUP($A127,Economática!$A$3:$AI$823,17,FALSE)=0,VLOOKUP($A127,Economática!$A$3:$AI$823,17,FALSE)=\"-\"),1/0,VLOOKUP($A127,Economática!$A$3:$AI$823,17,FALSE)))","v":397.04},{"$f":"IF($A127=\"\",\"\",IF(OR(VLOOKUP($A127,Economática!$A$3:$AI$823,18,FALSE)=0,VLOOKUP($A127,Economática!$A$3:$AI$823,18,FALSE)=\"-\"),1/0,VLOOKUP($A127,Economática!$A$3:$AI$823,18,FALSE)))","v":370.71},{"$f":"IF($A127=\"\",\"\",IF(OR(VLOOKUP($A127,Economática!$A$3:$AI$823,19,FALSE)=0,VLOOKUP($A127,Economática!$A$3:$AI$823,19,FALSE)=\"-\"),1/0,VLOOKUP($A127,Economática!$A$3:$AI$823,19,FALSE)))","v":397.04},{"$f":"IF($A127=\"\",\"\",VLOOKUP($A127,Economática!$A$3:$AI$823,20,FALSE)/E127)","v":1.4152907291755783},8.3928265891008635,1.8682621204592078,11.078995768688293,{"$f":"IF($A127=\"\",\"\",IF(OR(VLOOKUP($A127,Economática!$A$3:$AI$823,21,FALSE)/100=0,VLOOKUP($A127,Economática!$A$3:$AI$823,21,FALSE)/100=\"-\"),1/0,VLOOKUP($A127,Economática!$A$3:$AI$823,21,FALSE)/100))","v":0.16774799999999998},{"$f":"IF($A127=\"\",\"\",IF(OR(VLOOKUP($A127,Economática!$A$3:$AI$823,22,FALSE)/100=0,VLOOKUP($A127,Economática!$A$3:$AI$823,22,FALSE)/100=\"-\"),1/0,VLOOKUP($A127,Economática!$A$3:$AI$823,22,FALSE)/100))","v":5.3594999999999997E-2},{"$f":"IF($A127=\"\",\"\",IF(OR(VLOOKUP($A127,Economática!$A$3:$AI$823,23,FALSE)=0,VLOOKUP($A127,Economática!$A$3:$AI$823,23,FALSE)=\"-\"),1/0,VLOOKUP($A127,Economática!$A$3:$AI$823,23,FALSE)))","v":836.8},{"$f":"IF($A127=\"\",\"\",IF(OR(VLOOKUP($A127,Economática!$A$3:$AI$823,24,FALSE)=0,VLOOKUP($A127,Economática!$A$3:$AI$823,24,FALSE)=\"-\"),1/0,VLOOKUP($A127,Economática!$A$3:$AI$823,24,FALSE)))","v":979.6},{"$f":"IF($A127=\"\",\"\",IF(OR(VLOOKUP($A127,Economática!$A$3:$AI$823,25,FALSE)=0,VLOOKUP($A127,Economática!$A$3:$AI$823,25,FALSE)=\"-\"),1/0,VLOOKUP($A127,Economática!$A$3:$AI$823,25,FALSE)))","v":979.6},{"$f":"IF($A127=\"\",\"\",IF(ISERROR((F127+VLOOKUP($A127,Economática!$A$3:$AI$823,26,FALSE))/Y127),(F127+VLOOKUP($A127,Economática!$A$3:$AI$823,26,FALSE))/Y127,(F127+VLOOKUP($A127,Economática!$A$3:$AI$823,26,FALSE))/Y127))","v":4.6192211106574117},{"$f":"IF($A127=\"\",\"\",IF(OR(-VLOOKUP($A127,Economática!$A$3:$AI$823,27,FALSE)=0,-VLOOKUP($A127,Economática!$A$3:$AI$823,27,FALSE)=\"-\"),1/0,-VLOOKUP($A127,Economática!$A$3:$AI$823,27,FALSE)))","v":354.87},8.0674274802218782E-2,{"$f":"IF($A127=\"\",\"\",IF(OR(VLOOKUP($A127,Economática!$A$3:$AI$823,28,FALSE)=0,VLOOKUP($A127,Economática!$A$3:$AI$823,28,FALSE)=\"-\"),1/0,VLOOKUP($A127,Economática!$A$3:$AI$823,28,FALSE)))","v":1.2},{"$f":"IF($A127=\"\",\"\",IF(OR(VLOOKUP($A127,Economática!$A$3:$AI$823,29,FALSE)=0,VLOOKUP($A127,Economática!$A$3:$AI$823,29,FALSE)=\"-\"),1/0,VLOOKUP($A127,Economática!$A$3:$AI$823,29,FALSE)))","v":-47.6},{"$f":"IF($A127=\"\",\"\",IF(OR(VLOOKUP($A127,Economática!$A$3:$AI$823,30,FALSE)/E127=0,VLOOKUP($A127,Economática!$A$3:$AI$823,30,FALSE)/E127=\"-\",VLOOKUP($A127,Economática!$A$3:$AI$823,30,FALSE)/E127<33.33%,VLOOKUP($A127,Economática!$A$3:$AI$823,30,FALSE)/E127>100%),1/0,VLOOKUP($A127,Economática!$A$3:$AI$823,30,FALSE)/E127))","v":{"$error":"#DIV/0!"}},"QUAL3",{"$f":"IF($A127=\"\",\"\",IF(OR(VLOOKUP($A127,Economática!$A$3:$AI$823,25,FALSE)=0,VLOOKUP($A127,Economática!$A$3:$AI$823,25,FALSE)=\"-\"),1/0,VLOOKUP($A127,Economática!$A$3:$AI$823,25,FALSE)))","v":979.6},{"$f":"CONCATENATE(Economática!B129,\" \",Economática!C129)","v":"Qualicorp ON"}]
[{"$f":"IF(Economática!AG130=\"\",\"\",Economática!AG130)","v":"SBSP3"},{"$f":"IF($A128=\"\",\"\",VLOOKUP(VLOOKUP($A128,Economática!$A$3:$AI$823,6,FALSE),Correção!$B$16:$C$36,2,FALSE))","v":"Outros"},{"$f":"IF(Economática!B130=\"\",\"\",Economática!B130)","v":"Sabesp"},{"$f":"IF($A128=\"\",\"\",IF(OR(VLOOKUP($A128,Economática!$A$3:$AI$823,8,FALSE)=0,VLOOKUP($A128,Economática!$A$3:$AI$823,8,FALSE)=\"-\"),1/0,VLOOKUP($A128,Economática!$A$3:$AI$823,8,FALSE)))","v":42},{"$f":"IF(A128=\"\",\"\",IF(ISERROR(VLOOKUP(A128,Correção!$B$2:$G$13,9,FALSE)),VLOOKUP($A128,Economática!$A$3:$AI$823,9,FALSE),VLOOKUP(A128,Correção!$B$2:$G$13,9,FALSE)))","v":683.51},{"$f":"IF($A128=\"\",\"\",Economática!G130)","v":28707.41},{"$f":"IF($A128=\"\",\"\",IF(OR(VLOOKUP($A128,Economática!$A$3:$AI$823,10,FALSE)=0,VLOOKUP($A128,Economática!$A$3:$AI$823,10,FALSE)=\"-\"),1/0,VLOOKUP($A128,Economática!$A$3:$AI$823,10,FALSE)))","v":19551.689999999999},{"$f":"IF($A128=\"\",\"\",IF(OR(VLOOKUP($A128,Economática!$A$3:$AI$823,11,FALSE)=0,VLOOKUP($A128,Economática!$A$3:$AI$823,11,FALSE)=\"-\"),1/0,VLOOKUP($A128,Economática!$A$3:$AI$823,11,FALSE)))","v":14608.23},{"$f":"IF($A128=\"\",\"\",IF(OR(VLOOKUP($A128,Economática!$A$3:$AI$823,12,FALSE)=0,VLOOKUP($A128,Economática!$A$3:$AI$823,12,FALSE)=\"-\"),1/0,VLOOKUP($A128,Economática!$A$3:$AI$823,12,FALSE)))","v":16085.09},{"$f":"IF($A128=\"\",\"\",IF(OR(VLOOKUP($A128,Economática!$A$3:$AI$823,13,FALSE)=0,VLOOKUP($A128,Economática!$A$3:$AI$823,13,FALSE)=\"-\"),1/0,VLOOKUP($A128,Economática!$A$3:$AI$823,13,FALSE)))","v":2519.31},{"$f":"IF($A128=\"\",\"\",IF(OR(VLOOKUP($A128,Economática!$A$3:$AI$823,14,FALSE)=0,VLOOKUP($A128,Economática!$A$3:$AI$823,14,FALSE)=\"-\"),1/0,VLOOKUP($A128,Economática!$A$3:$AI$823,14,FALSE)))","v":580.42999999999995},{"$f":"IF($A128=\"\",\"\",IF(OR(VLOOKUP($A128,Economática!$A$3:$AI$823,15,FALSE)=0,VLOOKUP($A128,Economática!$A$3:$AI$823,15,FALSE)=\"-\"),1/0,VLOOKUP($A128,Economática!$A$3:$AI$823,15,FALSE)))","v":762.32},{"$f":"IF($A128=\"\",\"\",IF(OR(VLOOKUP($A128,Economática!$A$3:$AI$823,16,FALSE)=0,VLOOKUP($A128,Economática!$A$3:$AI$823,16,FALSE)=\"-\"),1/0,VLOOKUP($A128,Economática!$A$3:$AI$823,16,FALSE)))","v":1327.48},{"$f":"IF($A128=\"\",\"\",IF(OR(VLOOKUP($A128,Economática!$A$3:$AI$823,17,FALSE)=0,VLOOKUP($A128,Economática!$A$3:$AI$823,17,FALSE)=\"-\"),1/0,VLOOKUP($A128,Economática!$A$3:$AI$823,17,FALSE)))","v":2835.07},{"$f":"IF($A128=\"\",\"\",IF(OR(VLOOKUP($A128,Economática!$A$3:$AI$823,18,FALSE)=0,VLOOKUP($A128,Economática!$A$3:$AI$823,18,FALSE)=\"-\"),1/0,VLOOKUP($A128,Economática!$A$3:$AI$823,18,FALSE)))","v":2519.31},{"$f":"IF($A128=\"\",\"\",IF(OR(VLOOKUP($A128,Economática!$A$3:$AI$823,19,FALSE)=0,VLOOKUP($A128,Economática!$A$3:$AI$823,19,FALSE)=\"-\"),1/0,VLOOKUP($A128,Economática!$A$3:$AI$823,19,FALSE)))","v":2835.07},{"$f":"IF($A128=\"\",\"\",VLOOKUP($A128,Economática!$A$3:$AI$823,20,FALSE)/E128)","v":4.1478105660487783},28.6048338722184,1.4682833044100025,10.125824053727067,{"$f":"IF($A128=\"\",\"\",IF(OR(VLOOKUP($A128,Economática!$A$3:$AI$823,21,FALSE)/100=0,VLOOKUP($A128,Economática!$A$3:$AI$823,21,FALSE)/100=\"-\"),1/0,VLOOKUP($A128,Economática!$A$3:$AI$823,21,FALSE)/100))","v":0.16188400000000003},{"$f":"IF($A128=\"\",\"\",IF(OR(VLOOKUP($A128,Economática!$A$3:$AI$823,22,FALSE)/100=0,VLOOKUP($A128,Economática!$A$3:$AI$823,22,FALSE)/100=\"-\"),1/0,VLOOKUP($A128,Economática!$A$3:$AI$823,22,FALSE)/100))","v":0.517787},{"$f":"IF($A128=\"\",\"\",IF(OR(VLOOKUP($A128,Economática!$A$3:$AI$823,23,FALSE)=0,VLOOKUP($A128,Economática!$A$3:$AI$823,23,FALSE)=\"-\"),1/0,VLOOKUP($A128,Economática!$A$3:$AI$823,23,FALSE)))","v":5263.6},{"$f":"IF($A128=\"\",\"\",IF(OR(VLOOKUP($A128,Economática!$A$3:$AI$823,24,FALSE)=0,VLOOKUP($A128,Economática!$A$3:$AI$823,24,FALSE)=\"-\"),1/0,VLOOKUP($A128,Economática!$A$3:$AI$823,24,FALSE)))","v":6569.2},{"$f":"IF($A128=\"\",\"\",IF(OR(VLOOKUP($A128,Economática!$A$3:$AI$823,25,FALSE)=0,VLOOKUP($A128,Economática!$A$3:$AI$823,25,FALSE)=\"-\"),1/0,VLOOKUP($A128,Economática!$A$3:$AI$823,25,FALSE)))","v":6569.2},{"$f":"IF($A128=\"\",\"\",IF(ISERROR((F128+VLOOKUP($A128,Economática!$A$3:$AI$823,26,FALSE))/Y128),(F128+VLOOKUP($A128,Economática!$A$3:$AI$823,26,FALSE))/Y128,(F128+VLOOKUP($A128,Economática!$A$3:$AI$823,26,FALSE))/Y128))","v":5.9110721244595998},{"$f":"IF($A128=\"\",\"\",IF(OR(-VLOOKUP($A128,Economática!$A$3:$AI$823,27,FALSE)=0,-VLOOKUP($A128,Economática!$A$3:$AI$823,27,FALSE)=\"-\"),1/0,-VLOOKUP($A128,Economática!$A$3:$AI$823,27,FALSE)))","v":653.39},2.2760325644145537E-2,{"$f":"IF($A128=\"\",\"\",IF(OR(VLOOKUP($A128,Economática!$A$3:$AI$823,28,FALSE)=0,VLOOKUP($A128,Economática!$A$3:$AI$823,28,FALSE)=\"-\"),1/0,VLOOKUP($A128,Economática!$A$3:$AI$823,28,FALSE)))","v":6.7},{"$f":"IF($A128=\"\",\"\",IF(OR(VLOOKUP($A128,Economática!$A$3:$AI$823,29,FALSE)=0,VLOOKUP($A128,Economática!$A$3:$AI$823,29,FALSE)=\"-\"),1/0,VLOOKUP($A128,Economática!$A$3:$AI$823,29,FALSE)))","v":26},{"$f":"IF($A128=\"\",\"\",IF(OR(VLOOKUP($A128,Economática!$A$3:$AI$823,30,FALSE)/E128=0,VLOOKUP($A128,Economática!$A$3:$AI$823,30,FALSE)/E128=\"-\",VLOOKUP($A128,Economática!$A$3:$AI$823,30,FALSE)/E128<33.33%,VLOOKUP($A128,Economática!$A$3:$AI$823,30,FALSE)/E128>100%),1/0,VLOOKUP($A128,Economática!$A$3:$AI$823,30,FALSE)/E128))","v":0.99998536963614282},"SBSP3",{"$f":"IF($A128=\"\",\"\",IF(OR(VLOOKUP($A128,Economática!$A$3:$AI$823,25,FALSE)=0,VLOOKUP($A128,Economática!$A$3:$AI$823,25,FALSE)=\"-\"),1/0,VLOOKUP($A128,Economática!$A$3:$AI$823,25,FALSE)))","v":6569.2},{"$f":"CONCATENATE(Economática!B130,\" \",Economática!C130)","v":"Sabesp ON"}]
[{"$f":"IF(Economática!AG131=\"\",\"\",Economática!AG131)","v":"CARD3"},{"$f":"IF($A129=\"\",\"\",VLOOKUP(VLOOKUP($A129,Economática!$A$3:$AI$823,6,FALSE),Correção!$B$16:$C$36,2,FALSE))","v":"Outros"},{"$f":"IF(Economática!B131=\"\",\"\",Economática!B131)","v":"Csu Cardsyst"},{"$f":"IF($A129=\"\",\"\",IF(OR(VLOOKUP($A129,Economática!$A$3:$AI$823,8,FALSE)=0,VLOOKUP($A129,Economática!$A$3:$AI$823,8,FALSE)=\"-\"),1/0,VLOOKUP($A129,Economática!$A$3:$AI$823,8,FALSE)))","v":6.75},{"$f":"IF(A129=\"\",\"\",IF(ISERROR(VLOOKUP(A129,Correção!$B$2:$G$13,9,FALSE)),VLOOKUP($A129,Economática!$A$3:$AI$823,9,FALSE),VLOOKUP(A129,Correção!$B$2:$G$13,9,FALSE)))","v":41.093000000000004},{"$f":"IF($A129=\"\",\"\",Economática!G131)","v":277.38},{"$f":"IF($A129=\"\",\"\",IF(OR(VLOOKUP($A129,Economática!$A$3:$AI$823,10,FALSE)=0,VLOOKUP($A129,Economática!$A$3:$AI$823,10,FALSE)=\"-\"),1/0,VLOOKUP($A129,Economática!$A$3:$AI$823,10,FALSE)))","v":240.84},{"$f":"IF($A129=\"\",\"\",IF(OR(VLOOKUP($A129,Economática!$A$3:$AI$823,11,FALSE)=0,VLOOKUP($A129,Economática!$A$3:$AI$823,11,FALSE)=\"-\"),1/0,VLOOKUP($A129,Economática!$A$3:$AI$823,11,FALSE)))","v":486.85},{"$f":"IF($A129=\"\",\"\",IF(OR(VLOOKUP($A129,Economática!$A$3:$AI$823,12,FALSE)=0,VLOOKUP($A129,Economática!$A$3:$AI$823,12,FALSE)=\"-\"),1/0,VLOOKUP($A129,Economática!$A$3:$AI$823,12,FALSE)))","v":419.77},{"$f":"IF($A129=\"\",\"\",IF(OR(VLOOKUP($A129,Economática!$A$3:$AI$823,13,FALSE)=0,VLOOKUP($A129,Economática!$A$3:$AI$823,13,FALSE)=\"-\"),1/0,VLOOKUP($A129,Economática!$A$3:$AI$823,13,FALSE)))","v":45.2},{"$f":"IF($A129=\"\",\"\",IF(OR(VLOOKUP($A129,Economática!$A$3:$AI$823,14,FALSE)=0,VLOOKUP($A129,Economática!$A$3:$AI$823,14,FALSE)=\"-\"),1/0,VLOOKUP($A129,Economática!$A$3:$AI$823,14,FALSE)))","v":8.1},{"$f":"IF($A129=\"\",\"\",IF(OR(VLOOKUP($A129,Economática!$A$3:$AI$823,15,FALSE)=0,VLOOKUP($A129,Economática!$A$3:$AI$823,15,FALSE)=\"-\"),1/0,VLOOKUP($A129,Economática!$A$3:$AI$823,15,FALSE)))","v":16.510000000000002},{"$f":"IF($A129=\"\",\"\",IF(OR(VLOOKUP($A129,Economática!$A$3:$AI$823,16,FALSE)=0,VLOOKUP($A129,Economática!$A$3:$AI$823,16,FALSE)=\"-\"),1/0,VLOOKUP($A129,Economática!$A$3:$AI$823,16,FALSE)))","v":23.53},{"$f":"IF($A129=\"\",\"\",IF(OR(VLOOKUP($A129,Economática!$A$3:$AI$823,17,FALSE)=0,VLOOKUP($A129,Economática!$A$3:$AI$823,17,FALSE)=\"-\"),1/0,VLOOKUP($A129,Economática!$A$3:$AI$823,17,FALSE)))","v":32.799999999999997},{"$f":"IF($A129=\"\",\"\",IF(OR(VLOOKUP($A129,Economática!$A$3:$AI$823,18,FALSE)=0,VLOOKUP($A129,Economática!$A$3:$AI$823,18,FALSE)=\"-\"),1/0,VLOOKUP($A129,Economática!$A$3:$AI$823,18,FALSE)))","v":45.2},{"$f":"IF($A129=\"\",\"\",IF(OR(VLOOKUP($A129,Economática!$A$3:$AI$823,19,FALSE)=0,VLOOKUP($A129,Economática!$A$3:$AI$823,19,FALSE)=\"-\"),1/0,VLOOKUP($A129,Economática!$A$3:$AI$823,19,FALSE)))","v":32.799999999999997},{"$f":"IF($A129=\"\",\"\",VLOOKUP($A129,Economática!$A$3:$AI$823,20,FALSE)/E129)","v":0.79818947265957696},5.8608522132723326,1.1517096412556056,8.4566387195121955,{"$f":"IF($A129=\"\",\"\",IF(OR(VLOOKUP($A129,Economática!$A$3:$AI$823,21,FALSE)/100=0,VLOOKUP($A129,Economática!$A$3:$AI$823,21,FALSE)/100=\"-\"),1/0,VLOOKUP($A129,Economática!$A$3:$AI$823,21,FALSE)/100))","v":0.146505},{"$f":"IF($A129=\"\",\"\",IF(OR(VLOOKUP($A129,Economática!$A$3:$AI$823,22,FALSE)/100=0,VLOOKUP($A129,Economática!$A$3:$AI$823,22,FALSE)/100=\"-\"),1/0,VLOOKUP($A129,Economática!$A$3:$AI$823,22,FALSE)/100))","v":0.10724399999999999},{"$f":"IF($A129=\"\",\"\",IF(OR(VLOOKUP($A129,Economática!$A$3:$AI$823,23,FALSE)=0,VLOOKUP($A129,Economática!$A$3:$AI$823,23,FALSE)=\"-\"),1/0,VLOOKUP($A129,Economática!$A$3:$AI$823,23,FALSE)))","v":100.3},{"$f":"IF($A129=\"\",\"\",IF(OR(VLOOKUP($A129,Economática!$A$3:$AI$823,24,FALSE)=0,VLOOKUP($A129,Economática!$A$3:$AI$823,24,FALSE)=\"-\"),1/0,VLOOKUP($A129,Economática!$A$3:$AI$823,24,FALSE)))","v":81.5},{"$f":"IF($A129=\"\",\"\",IF(OR(VLOOKUP($A129,Economática!$A$3:$AI$823,25,FALSE)=0,VLOOKUP($A129,Economática!$A$3:$AI$823,25,FALSE)=\"-\"),1/0,VLOOKUP($A129,Economática!$A$3:$AI$823,25,FALSE)))","v":81.5},{"$f":"IF($A129=\"\",\"\",IF(ISERROR((F129+VLOOKUP($A129,Economática!$A$3:$AI$823,26,FALSE))/Y129),(F129+VLOOKUP($A129,Economática!$A$3:$AI$823,26,FALSE))/Y129,(F129+VLOOKUP($A129,Economática!$A$3:$AI$823,26,FALSE))/Y129))","v":3.7203435582822082},{"$f":"IF($A129=\"\",\"\",IF(OR(-VLOOKUP($A129,Economática!$A$3:$AI$823,27,FALSE)=0,-VLOOKUP($A129,Economática!$A$3:$AI$823,27,FALSE)=\"-\"),1/0,-VLOOKUP($A129,Economática!$A$3:$AI$823,27,FALSE)))","v":16.079999999999998},5.7971014492753617E-2,{"$f":"IF($A129=\"\",\"\",IF(OR(VLOOKUP($A129,Economática!$A$3:$AI$823,28,FALSE)=0,VLOOKUP($A129,Economática!$A$3:$AI$823,28,FALSE)=\"-\"),1/0,VLOOKUP($A129,Economática!$A$3:$AI$823,28,FALSE)))","v":-7},{"$f":"IF($A129=\"\",\"\",IF(OR(VLOOKUP($A129,Economática!$A$3:$AI$823,29,FALSE)=0,VLOOKUP($A129,Economática!$A$3:$AI$823,29,FALSE)=\"-\"),1/0,VLOOKUP($A129,Economática!$A$3:$AI$823,29,FALSE)))","v":-28.5},{"$f":"IF($A129=\"\",\"\",IF(OR(VLOOKUP($A129,Economática!$A$3:$AI$823,30,FALSE)/E129=0,VLOOKUP($A129,Economática!$A$3:$AI$823,30,FALSE)/E129=\"-\",VLOOKUP($A129,Economática!$A$3:$AI$823,30,FALSE)/E129<33.33%,VLOOKUP($A129,Economática!$A$3:$AI$823,30,FALSE)/E129>100%),1/0,VLOOKUP($A129,Economática!$A$3:$AI$823,30,FALSE)/E129))","v":{"$error":"#DIV/0!"}},"CARD3",{"$f":"IF($A129=\"\",\"\",IF(OR(VLOOKUP($A129,Economática!$A$3:$AI$823,25,FALSE)=0,VLOOKUP($A129,Economática!$A$3:$AI$823,25,FALSE)=\"-\"),1/0,VLOOKUP($A129,Economática!$A$3:$AI$823,25,FALSE)))","v":81.5},{"$f":"CONCATENATE(Economática!B131,\" \",Economática!C131)","v":"Csu Cardsyst ON"}]
[{"$f":"IF(Economática!AG132=\"\",\"\",Economática!AG132)","v":"HYPE3"},{"$f":"IF($A130=\"\",\"\",VLOOKUP(VLOOKUP($A130,Economática!$A$3:$AI$823,6,FALSE),Correção!$B$16:$C$36,2,FALSE))","v":"Outros"},{"$f":"IF(Economática!B132=\"\",\"\",Economática!B132)","v":"Hypera"},{"$f":"IF($A130=\"\",\"\",IF(OR(VLOOKUP($A130,Economática!$A$3:$AI$823,8,FALSE)=0,VLOOKUP($A130,Economática!$A$3:$AI$823,8,FALSE)=\"-\"),1/0,VLOOKUP($A130,Economática!$A$3:$AI$823,8,FALSE)))","v":25.9},{"$f":"IF(A130=\"\",\"\",IF(ISERROR(VLOOKUP(A130,Correção!$B$2:$G$13,9,FALSE)),VLOOKUP($A130,Economática!$A$3:$AI$823,9,FALSE),VLOOKUP(A130,Correção!$B$2:$G$13,9,FALSE)))","v":632.04700000000003},{"$f":"IF($A130=\"\",\"\",Economática!G132)","v":16370.01},{"$f":"IF($A130=\"\",\"\",IF(OR(VLOOKUP($A130,Economática!$A$3:$AI$823,10,FALSE)=0,VLOOKUP($A130,Economática!$A$3:$AI$823,10,FALSE)=\"-\"),1/0,VLOOKUP($A130,Economática!$A$3:$AI$823,10,FALSE)))","v":8267.67},{"$f":"IF($A130=\"\",\"\",IF(OR(VLOOKUP($A130,Economática!$A$3:$AI$823,11,FALSE)=0,VLOOKUP($A130,Economática!$A$3:$AI$823,11,FALSE)=\"-\"),1/0,VLOOKUP($A130,Economática!$A$3:$AI$823,11,FALSE)))","v":3638.46},{"$f":"IF($A130=\"\",\"\",IF(OR(VLOOKUP($A130,Economática!$A$3:$AI$823,12,FALSE)=0,VLOOKUP($A130,Economática!$A$3:$AI$823,12,FALSE)=\"-\"),1/0,VLOOKUP($A130,Economática!$A$3:$AI$823,12,FALSE)))","v":3724.31},{"$f":"IF($A130=\"\",\"\",IF(OR(VLOOKUP($A130,Economática!$A$3:$AI$823,13,FALSE)=0,VLOOKUP($A130,Economática!$A$3:$AI$823,13,FALSE)=\"-\"),1/0,VLOOKUP($A130,Economática!$A$3:$AI$823,13,FALSE)))","v":964.94},{"$f":"IF($A130=\"\",\"\",IF(OR(VLOOKUP($A130,Economática!$A$3:$AI$823,14,FALSE)=0,VLOOKUP($A130,Economática!$A$3:$AI$823,14,FALSE)=\"-\"),1/0,VLOOKUP($A130,Economática!$A$3:$AI$823,14,FALSE)))","v":299.76},{"$f":"IF($A130=\"\",\"\",IF(OR(VLOOKUP($A130,Economática!$A$3:$AI$823,15,FALSE)=0,VLOOKUP($A130,Economática!$A$3:$AI$823,15,FALSE)=\"-\"),1/0,VLOOKUP($A130,Economática!$A$3:$AI$823,15,FALSE)))","v":577.55999999999995},{"$f":"IF($A130=\"\",\"\",IF(OR(VLOOKUP($A130,Economática!$A$3:$AI$823,16,FALSE)=0,VLOOKUP($A130,Economática!$A$3:$AI$823,16,FALSE)=\"-\"),1/0,VLOOKUP($A130,Economática!$A$3:$AI$823,16,FALSE)))","v":819.83},{"$f":"IF($A130=\"\",\"\",IF(OR(VLOOKUP($A130,Economática!$A$3:$AI$823,17,FALSE)=0,VLOOKUP($A130,Economática!$A$3:$AI$823,17,FALSE)=\"-\"),1/0,VLOOKUP($A130,Economática!$A$3:$AI$823,17,FALSE)))","v":1129.5999999999999},{"$f":"IF($A130=\"\",\"\",IF(OR(VLOOKUP($A130,Economática!$A$3:$AI$823,18,FALSE)=0,VLOOKUP($A130,Economática!$A$3:$AI$823,18,FALSE)=\"-\"),1/0,VLOOKUP($A130,Economática!$A$3:$AI$823,18,FALSE)))","v":964.94},{"$f":"IF($A130=\"\",\"\",IF(OR(VLOOKUP($A130,Economática!$A$3:$AI$823,19,FALSE)=0,VLOOKUP($A130,Economática!$A$3:$AI$823,19,FALSE)=\"-\"),1/0,VLOOKUP($A130,Economática!$A$3:$AI$823,19,FALSE)))","v":1129.5999999999999},{"$f":"IF($A130=\"\",\"\",VLOOKUP($A130,Economática!$A$3:$AI$823,20,FALSE)/E130)","v":1.7872088626320508},13.080783549324654,1.9800037132589956,14.49187083923513,{"$f":"IF($A130=\"\",\"\",IF(OR(VLOOKUP($A130,Economática!$A$3:$AI$823,21,FALSE)/100=0,VLOOKUP($A130,Economática!$A$3:$AI$823,21,FALSE)/100=\"-\"),1/0,VLOOKUP($A130,Economática!$A$3:$AI$823,21,FALSE)/100))","v":0.145986},{"$f":"IF($A130=\"\",\"\",IF(OR(VLOOKUP($A130,Economática!$A$3:$AI$823,22,FALSE)/100=0,VLOOKUP($A130,Economática!$A$3:$AI$823,22,FALSE)/100=\"-\"),1/0,VLOOKUP($A130,Economática!$A$3:$AI$823,22,FALSE)/100))","v":-0.130939},{"$f":"IF($A130=\"\",\"\",IF(OR(VLOOKUP($A130,Economática!$A$3:$AI$823,23,FALSE)=0,VLOOKUP($A130,Economática!$A$3:$AI$823,23,FALSE)=\"-\"),1/0,VLOOKUP($A130,Economática!$A$3:$AI$823,23,FALSE)))","v":1236.9000000000001},{"$f":"IF($A130=\"\",\"\",IF(OR(VLOOKUP($A130,Economática!$A$3:$AI$823,24,FALSE)=0,VLOOKUP($A130,Economática!$A$3:$AI$823,24,FALSE)=\"-\"),1/0,VLOOKUP($A130,Economática!$A$3:$AI$823,24,FALSE)))","v":1318.7},{"$f":"IF($A130=\"\",\"\",IF(OR(VLOOKUP($A130,Economática!$A$3:$AI$823,25,FALSE)=0,VLOOKUP($A130,Economática!$A$3:$AI$823,25,FALSE)=\"-\"),1/0,VLOOKUP($A130,Economática!$A$3:$AI$823,25,FALSE)))","v":1318.7},{"$f":"IF($A130=\"\",\"\",IF(ISERROR((F130+VLOOKUP($A130,Economática!$A$3:$AI$823,26,FALSE))/Y130),(F130+VLOOKUP($A130,Economática!$A$3:$AI$823,26,FALSE))/Y130,(F130+VLOOKUP($A130,Economática!$A$3:$AI$823,26,FALSE))/Y130))","v":11.592818685068629},{"$f":"IF($A130=\"\",\"\",IF(OR(-VLOOKUP($A130,Economática!$A$3:$AI$823,27,FALSE)=0,-VLOOKUP($A130,Economática!$A$3:$AI$823,27,FALSE)=\"-\"),1/0,-VLOOKUP($A130,Economática!$A$3:$AI$823,27,FALSE)))","v":633},3.8668272041373221E-2,{"$f":"IF($A130=\"\",\"\",IF(OR(VLOOKUP($A130,Economática!$A$3:$AI$823,28,FALSE)=0,VLOOKUP($A130,Economática!$A$3:$AI$823,28,FALSE)=\"-\"),1/0,VLOOKUP($A130,Economática!$A$3:$AI$823,28,FALSE)))","v":-3.7},{"$f":"IF($A130=\"\",\"\",IF(OR(VLOOKUP($A130,Economática!$A$3:$AI$823,29,FALSE)=0,VLOOKUP($A130,Economática!$A$3:$AI$823,29,FALSE)=\"-\"),1/0,VLOOKUP($A130,Economática!$A$3:$AI$823,29,FALSE)))","v":-23.8},{"$f":"IF($A130=\"\",\"\",IF(OR(VLOOKUP($A130,Economática!$A$3:$AI$823,30,FALSE)/E130=0,VLOOKUP($A130,Economática!$A$3:$AI$823,30,FALSE)/E130=\"-\",VLOOKUP($A130,Economática!$A$3:$AI$823,30,FALSE)/E130<33.33%,VLOOKUP($A130,Economática!$A$3:$AI$823,30,FALSE)/E130>100%),1/0,VLOOKUP($A130,Economática!$A$3:$AI$823,30,FALSE)/E130))","v":{"$error":"#DIV/0!"}},"HYPE3",{"$f":"IF($A130=\"\",\"\",IF(OR(VLOOKUP($A130,Economática!$A$3:$AI$823,25,FALSE)=0,VLOOKUP($A130,Economática!$A$3:$AI$823,25,FALSE)=\"-\"),1/0,VLOOKUP($A130,Economática!$A$3:$AI$823,25,FALSE)))","v":1318.7},{"$f":"CONCATENATE(Economática!B132,\" \",Economática!C132)","v":"Hypera ON"}]
[{"$f":"IF(Economática!AG133=\"\",\"\",Economática!AG133)","v":"BRAP4"},{"$f":"IF($A131=\"\",\"\",VLOOKUP(VLOOKUP($A131,Economática!$A$3:$AI$823,6,FALSE),Correção!$B$16:$C$36,2,FALSE))","v":"Outros"},{"$f":"IF(Economática!B133=\"\",\"\",Economática!B133)","v":"Bradespar"},{"$f":"IF($A131=\"\",\"\",IF(OR(VLOOKUP($A131,Economática!$A$3:$AI$823,8,FALSE)=0,VLOOKUP($A131,Economática!$A$3:$AI$823,8,FALSE)=\"-\"),1/0,VLOOKUP($A131,Economática!$A$3:$AI$823,8,FALSE)))","v":31.9},{"$f":"IF(A131=\"\",\"\",IF(ISERROR(VLOOKUP(A131,Correção!$B$2:$G$13,9,FALSE)),VLOOKUP($A131,Economática!$A$3:$AI$823,9,FALSE),VLOOKUP(A131,Correção!$B$2:$G$13,9,FALSE)))","v":348.03399999999999},{"$f":"IF($A131=\"\",\"\",Economática!G133)","v":10520.75},{"$f":"IF($A131=\"\",\"\",IF(OR(VLOOKUP($A131,Economática!$A$3:$AI$823,10,FALSE)=0,VLOOKUP($A131,Economática!$A$3:$AI$823,10,FALSE)=\"-\"),1/0,VLOOKUP($A131,Economática!$A$3:$AI$823,10,FALSE)))","v":9959.84},{"$f":"IF($A131=\"\",\"\",IF(OR(VLOOKUP($A131,Economática!$A$3:$AI$823,11,FALSE)=0,VLOOKUP($A131,Economática!$A$3:$AI$823,11,FALSE)=\"-\"),1/0,VLOOKUP($A131,Economática!$A$3:$AI$823,11,FALSE)))","v":{"$error":"#DIV/0!"}},{"$f":"IF($A131=\"\",\"\",IF(OR(VLOOKUP($A131,Economática!$A$3:$AI$823,12,FALSE)=0,VLOOKUP($A131,Economática!$A$3:$AI$823,12,FALSE)=\"-\"),1/0,VLOOKUP($A131,Economática!$A$3:$AI$823,12,FALSE)))","v":{"$error":"#DIV/0!"}},{"$f":"IF($A131=\"\",\"\",IF(OR(VLOOKUP($A131,Economática!$A$3:$AI$823,13,FALSE)=0,VLOOKUP($A131,Economática!$A$3:$AI$823,13,FALSE)=\"-\"),1/0,VLOOKUP($A131,Economática!$A$3:$AI$823,13,FALSE)))","v":2328.38},{"$f":"IF($A131=\"\",\"\",IF(OR(VLOOKUP($A131,Economática!$A$3:$AI$823,14,FALSE)=0,VLOOKUP($A131,Economática!$A$3:$AI$823,14,FALSE)=\"-\"),1/0,VLOOKUP($A131,Economática!$A$3:$AI$823,14,FALSE)))","v":-283.51},{"$f":"IF($A131=\"\",\"\",IF(OR(VLOOKUP($A131,Economática!$A$3:$AI$823,15,FALSE)=0,VLOOKUP($A131,Economática!$A$3:$AI$823,15,FALSE)=\"-\"),1/0,VLOOKUP($A131,Economática!$A$3:$AI$823,15,FALSE)))","v":-902.45},{"$f":"IF($A131=\"\",\"\",IF(OR(VLOOKUP($A131,Economática!$A$3:$AI$823,16,FALSE)=0,VLOOKUP($A131,Economática!$A$3:$AI$823,16,FALSE)=\"-\"),1/0,VLOOKUP($A131,Economática!$A$3:$AI$823,16,FALSE)))","v":-779.21},{"$f":"IF($A131=\"\",\"\",IF(OR(VLOOKUP($A131,Economática!$A$3:$AI$823,17,FALSE)=0,VLOOKUP($A131,Economática!$A$3:$AI$823,17,FALSE)=\"-\"),1/0,VLOOKUP($A131,Economática!$A$3:$AI$823,17,FALSE)))","v":1190.5},{"$f":"IF($A131=\"\",\"\",IF(OR(VLOOKUP($A131,Economática!$A$3:$AI$823,18,FALSE)=0,VLOOKUP($A131,Economática!$A$3:$AI$823,18,FALSE)=\"-\"),1/0,VLOOKUP($A131,Economática!$A$3:$AI$823,18,FALSE)))","v":2328.38},{"$f":"IF($A131=\"\",\"\",IF(OR(VLOOKUP($A131,Economática!$A$3:$AI$823,19,FALSE)=0,VLOOKUP($A131,Economática!$A$3:$AI$823,19,FALSE)=\"-\"),1/0,VLOOKUP($A131,Economática!$A$3:$AI$823,19,FALSE)))","v":1190.5},{"$f":"IF($A131=\"\",\"\",VLOOKUP($A131,Economática!$A$3:$AI$823,20,FALSE)/E131)","v":3.4206428107598685},{"$f":"IF($A131=\"\",\"\",IF((G131/E131)<=0,1/0,G131/E131))","v":28.617433928869019},{"$f":"IF($A131=\"\",\"\",D131/R131)","v":1.1147051157448311},{"$f":"IF($A131=\"\",\"\",IF((D131/Q131)<=0,1/0,D131/Q131))","v":9.3257325493490111},{"$f":"IF($A131=\"\",\"\",IF(OR(VLOOKUP($A131,Economática!$A$3:$AI$823,21,FALSE)/100=0,VLOOKUP($A131,Economática!$A$3:$AI$823,21,FALSE)/100=\"-\"),1/0,VLOOKUP($A131,Economática!$A$3:$AI$823,21,FALSE)/100))","v":0.13519100000000001},{"$f":"IF($A131=\"\",\"\",IF(OR(VLOOKUP($A131,Economática!$A$3:$AI$823,22,FALSE)/100=0,VLOOKUP($A131,Economática!$A$3:$AI$823,22,FALSE)/100=\"-\"),1/0,VLOOKUP($A131,Economática!$A$3:$AI$823,22,FALSE)/100))","v":-2.5095999999999997E-2},{"$f":"IF($A131=\"\",\"\",IF(OR(VLOOKUP($A131,Economática!$A$3:$AI$823,23,FALSE)=0,VLOOKUP($A131,Economática!$A$3:$AI$823,23,FALSE)=\"-\"),1/0,VLOOKUP($A131,Economática!$A$3:$AI$823,23,FALSE)))","v":2609.8000000000002},{"$f":"IF($A131=\"\",\"\",IF(OR(VLOOKUP($A131,Economática!$A$3:$AI$823,24,FALSE)=0,VLOOKUP($A131,Economática!$A$3:$AI$823,24,FALSE)=\"-\"),1/0,VLOOKUP($A131,Economática!$A$3:$AI$823,24,FALSE)))","v":1234.3},{"$f":"IF($A131=\"\",\"\",IF(OR(VLOOKUP($A131,Economática!$A$3:$AI$823,25,FALSE)=0,VLOOKUP($A131,Economática!$A$3:$AI$823,25,FALSE)=\"-\"),1/0,VLOOKUP($A131,Economática!$A$3:$AI$823,25,FALSE)))","v":1234.3},{"$f":"IF($A131=\"\",\"\",IF(ISERROR((F131+VLOOKUP($A131,Economática!$A$3:$AI$823,26,FALSE))/Y131),(F131+VLOOKUP($A131,Economática!$A$3:$AI$823,26,FALSE))/Y131,(F131+VLOOKUP($A131,Economática!$A$3:$AI$823,26,FALSE))/Y131))","v":8.3211536903508065},{"$f":"IF($A131=\"\",\"\",IF(OR(-VLOOKUP($A131,Economática!$A$3:$AI$823,27,FALSE)=0,-VLOOKUP($A131,Economática!$A$3:$AI$823,27,FALSE)=\"-\"),1/0,-VLOOKUP($A131,Economática!$A$3:$AI$823,27,FALSE)))","v":719.42},{"$f":"IF(A131=\"\",\"\",AA131/F131)","v":6.8381056483615713E-2},{"$f":"IF($A131=\"\",\"\",IF(OR(VLOOKUP($A131,Economática!$A$3:$AI$823,28,FALSE)=0,VLOOKUP($A131,Economática!$A$3:$AI$823,28,FALSE)=\"-\"),1/0,VLOOKUP($A131,Economática!$A$3:$AI$823,28,FALSE)))","v":10.7},{"$f":"IF($A131=\"\",\"\",IF(OR(VLOOKUP($A131,Economática!$A$3:$AI$823,29,FALSE)=0,VLOOKUP($A131,Economática!$A$3:$AI$823,29,FALSE)=\"-\"),1/0,VLOOKUP($A131,Economática!$A$3:$AI$823,29,FALSE)))","v":17.5},{"$f":"IF($A131=\"\",\"\",IF(OR(VLOOKUP($A131,Economática!$A$3:$AI$823,30,FALSE)/E131=0,VLOOKUP($A131,Economática!$A$3:$AI$823,30,FALSE)/E131=\"-\",VLOOKUP($A131,Economática!$A$3:$AI$823,30,FALSE)/E131<33.33%,VLOOKUP($A131,Economática!$A$3:$AI$823,30,FALSE)/E131>100%),1/0,VLOOKUP($A131,Economática!$A$3:$AI$823,30,FALSE)/E131))","v":0.35111512093646025},{"$f":"IF(A131=\"\",\"\",A131)","v":"BRAP4"},{"$f":"IF($A131=\"\",\"\",IF(OR(VLOOKUP($A131,Economática!$A$3:$AI$823,25,FALSE)=0,VLOOKUP($A131,Economática!$A$3:$AI$823,25,FALSE)=\"-\"),1/0,VLOOKUP($A131,Economática!$A$3:$AI$823,25,FALSE)))","v":1234.3},{"$f":"CONCATENATE(Economática!B133,\" \",Economática!C133)","v":"Bradespar PN"}]
[{"$f":"IF(Economática!AG134=\"\",\"\",Economática!AG134)","v":"SEER3"},{"$f":"IF($A132=\"\",\"\",VLOOKUP(VLOOKUP($A132,Economática!$A$3:$AI$823,6,FALSE),Correção!$B$16:$C$36,2,FALSE))","v":"Outros"},{"$f":"IF(Economática!B134=\"\",\"\",Economática!B134)","v":"Ser Educa"},{"$f":"IF($A132=\"\",\"\",IF(OR(VLOOKUP($A132,Economática!$A$3:$AI$823,8,FALSE)=0,VLOOKUP($A132,Economática!$A$3:$AI$823,8,FALSE)=\"-\"),1/0,VLOOKUP($A132,Economática!$A$3:$AI$823,8,FALSE)))","v":20.36},{"$f":"IF(A132=\"\",\"\",IF(ISERROR(VLOOKUP(A132,Correção!$B$2:$G$13,9,FALSE)),VLOOKUP($A132,Economática!$A$3:$AI$823,9,FALSE),VLOOKUP(A132,Correção!$B$2:$G$13,9,FALSE)))","v":128.72200000000001},{"$f":"IF($A132=\"\",\"\",Economática!G134)","v":2620.77},{"$f":"IF($A132=\"\",\"\",IF(OR(VLOOKUP($A132,Economática!$A$3:$AI$823,10,FALSE)=0,VLOOKUP($A132,Economática!$A$3:$AI$823,10,FALSE)=\"-\"),1/0,VLOOKUP($A132,Economática!$A$3:$AI$823,10,FALSE)))","v":1470.54},{"$f":"IF($A132=\"\",\"\",IF(OR(VLOOKUP($A132,Economática!$A$3:$AI$823,11,FALSE)=0,VLOOKUP($A132,Economática!$A$3:$AI$823,11,FALSE)=\"-\"),1/0,VLOOKUP($A132,Economática!$A$3:$AI$823,11,FALSE)))","v":1231.79},{"$f":"IF($A132=\"\",\"\",IF(OR(VLOOKUP($A132,Economática!$A$3:$AI$823,12,FALSE)=0,VLOOKUP($A132,Economática!$A$3:$AI$823,12,FALSE)=\"-\"),1/0,VLOOKUP($A132,Economática!$A$3:$AI$823,12,FALSE)))","v":1262.49},{"$f":"IF($A132=\"\",\"\",IF(OR(VLOOKUP($A132,Economática!$A$3:$AI$823,13,FALSE)=0,VLOOKUP($A132,Economática!$A$3:$AI$823,13,FALSE)=\"-\"),1/0,VLOOKUP($A132,Economática!$A$3:$AI$823,13,FALSE)))","v":197.48},{"$f":"IF($A132=\"\",\"\",IF(OR(VLOOKUP($A132,Economática!$A$3:$AI$823,14,FALSE)=0,VLOOKUP($A132,Economática!$A$3:$AI$823,14,FALSE)=\"-\"),1/0,VLOOKUP($A132,Economática!$A$3:$AI$823,14,FALSE)))","v":58.22},{"$f":"IF($A132=\"\",\"\",IF(OR(VLOOKUP($A132,Economática!$A$3:$AI$823,15,FALSE)=0,VLOOKUP($A132,Economática!$A$3:$AI$823,15,FALSE)=\"-\"),1/0,VLOOKUP($A132,Economática!$A$3:$AI$823,15,FALSE)))","v":131.24},{"$f":"IF($A132=\"\",\"\",IF(OR(VLOOKUP($A132,Economática!$A$3:$AI$823,16,FALSE)=0,VLOOKUP($A132,Economática!$A$3:$AI$823,16,FALSE)=\"-\"),1/0,VLOOKUP($A132,Economática!$A$3:$AI$823,16,FALSE)))","v":168.17},{"$f":"IF($A132=\"\",\"\",IF(OR(VLOOKUP($A132,Economática!$A$3:$AI$823,17,FALSE)=0,VLOOKUP($A132,Economática!$A$3:$AI$823,17,FALSE)=\"-\"),1/0,VLOOKUP($A132,Economática!$A$3:$AI$823,17,FALSE)))","v":201.28},{"$f":"IF($A132=\"\",\"\",IF(OR(VLOOKUP($A132,Economática!$A$3:$AI$823,18,FALSE)=0,VLOOKUP($A132,Economática!$A$3:$AI$823,18,FALSE)=\"-\"),1/0,VLOOKUP($A132,Economática!$A$3:$AI$823,18,FALSE)))","v":197.48},{"$f":"IF($A132=\"\",\"\",IF(OR(VLOOKUP($A132,Economática!$A$3:$AI$823,19,FALSE)=0,VLOOKUP($A132,Economática!$A$3:$AI$823,19,FALSE)=\"-\"),1/0,VLOOKUP($A132,Economática!$A$3:$AI$823,19,FALSE)))","v":201.28},{"$f":"IF($A132=\"\",\"\",VLOOKUP($A132,Economática!$A$3:$AI$823,20,FALSE)/E132)","v":1.5636798682431907},11.424154379204797,1.7821888013926859,13.020567965023847,{"$f":"IF($A132=\"\",\"\",IF(OR(VLOOKUP($A132,Economática!$A$3:$AI$823,21,FALSE)/100=0,VLOOKUP($A132,Economática!$A$3:$AI$823,21,FALSE)/100=\"-\"),1/0,VLOOKUP($A132,Economática!$A$3:$AI$823,21,FALSE)/100))","v":0.13344},{"$f":"IF($A132=\"\",\"\",IF(OR(VLOOKUP($A132,Economática!$A$3:$AI$823,22,FALSE)/100=0,VLOOKUP($A132,Economática!$A$3:$AI$823,22,FALSE)/100=\"-\"),1/0,VLOOKUP($A132,Economática!$A$3:$AI$823,22,FALSE)/100))","v":-0.41799500000000001},{"$f":"IF($A132=\"\",\"\",IF(OR(VLOOKUP($A132,Economática!$A$3:$AI$823,23,FALSE)=0,VLOOKUP($A132,Economática!$A$3:$AI$823,23,FALSE)=\"-\"),1/0,VLOOKUP($A132,Economática!$A$3:$AI$823,23,FALSE)))","v":321.10000000000002},{"$f":"IF($A132=\"\",\"\",IF(OR(VLOOKUP($A132,Economática!$A$3:$AI$823,24,FALSE)=0,VLOOKUP($A132,Economática!$A$3:$AI$823,24,FALSE)=\"-\"),1/0,VLOOKUP($A132,Economática!$A$3:$AI$823,24,FALSE)))","v":312},{"$f":"IF($A132=\"\",\"\",IF(OR(VLOOKUP($A132,Economática!$A$3:$AI$823,25,FALSE)=0,VLOOKUP($A132,Economática!$A$3:$AI$823,25,FALSE)=\"-\"),1/0,VLOOKUP($A132,Economática!$A$3:$AI$823,25,FALSE)))","v":312},{"$f":"IF($A132=\"\",\"\",IF(ISERROR((F132+VLOOKUP($A132,Economática!$A$3:$AI$823,26,FALSE))/Y132),(F132+VLOOKUP($A132,Economática!$A$3:$AI$823,26,FALSE))/Y132,(F132+VLOOKUP($A132,Economática!$A$3:$AI$823,26,FALSE))/Y132))","v":6.4297756410256417},{"$f":"IF($A132=\"\",\"\",IF(OR(-VLOOKUP($A132,Economática!$A$3:$AI$823,27,FALSE)=0,-VLOOKUP($A132,Economática!$A$3:$AI$823,27,FALSE)=\"-\"),1/0,-VLOOKUP($A132,Economática!$A$3:$AI$823,27,FALSE)))","v":58.53},2.2333131102691195E-2,{"$f":"IF($A132=\"\",\"\",IF(OR(VLOOKUP($A132,Economática!$A$3:$AI$823,28,FALSE)=0,VLOOKUP($A132,Economática!$A$3:$AI$823,28,FALSE)=\"-\"),1/0,VLOOKUP($A132,Economática!$A$3:$AI$823,28,FALSE)))","v":7.3},{"$f":"IF($A132=\"\",\"\",IF(OR(VLOOKUP($A132,Economática!$A$3:$AI$823,29,FALSE)=0,VLOOKUP($A132,Economática!$A$3:$AI$823,29,FALSE)=\"-\"),1/0,VLOOKUP($A132,Economática!$A$3:$AI$823,29,FALSE)))","v":-33.200000000000003},{"$f":"IF($A132=\"\",\"\",IF(OR(VLOOKUP($A132,Economática!$A$3:$AI$823,30,FALSE)/E132=0,VLOOKUP($A132,Economática!$A$3:$AI$823,30,FALSE)/E132=\"-\",VLOOKUP($A132,Economática!$A$3:$AI$823,30,FALSE)/E132<33.33%,VLOOKUP($A132,Economática!$A$3:$AI$823,30,FALSE)/E132>100%),1/0,VLOOKUP($A132,Economática!$A$3:$AI$823,30,FALSE)/E132))","v":{"$error":"#DIV/0!"}},"SEER3",{"$f":"IF($A132=\"\",\"\",IF(OR(VLOOKUP($A132,Economática!$A$3:$AI$823,25,FALSE)=0,VLOOKUP($A132,Economática!$A$3:$AI$823,25,FALSE)=\"-\"),1/0,VLOOKUP($A132,Economática!$A$3:$AI$823,25,FALSE)))","v":312},{"$f":"CONCATENATE(Economática!B134,\" \",Economática!C134)","v":"Ser Educa ON"}]
[{"$f":"IF(Economática!AG135=\"\",\"\",Economática!AG135)","v":"MOVI3"},{"$f":"IF($A133=\"\",\"\",VLOOKUP(VLOOKUP($A133,Economática!$A$3:$AI$823,6,FALSE),Correção!$B$16:$C$36,2,FALSE))","v":"Outros"},{"$f":"IF(Economática!B135=\"\",\"\",Economática!B135)","v":"Movida"},{"$f":"IF($A133=\"\",\"\",IF(OR(VLOOKUP($A133,Economática!$A$3:$AI$823,8,FALSE)=0,VLOOKUP($A133,Economática!$A$3:$AI$823,8,FALSE)=\"-\"),1/0,VLOOKUP($A133,Economática!$A$3:$AI$823,8,FALSE)))","v":10.85},{"$f":"IF(A133=\"\",\"\",IF(ISERROR(VLOOKUP(A133,Correção!$B$2:$G$13,9,FALSE)),VLOOKUP($A133,Economática!$A$3:$AI$823,9,FALSE),VLOOKUP(A133,Correção!$B$2:$G$13,9,FALSE)))","v":262.36799999999999},{"$f":"IF($A133=\"\",\"\",Economática!G135)","v":2846.69},{"$f":"IF($A133=\"\",\"\",IF(OR(VLOOKUP($A133,Economática!$A$3:$AI$823,10,FALSE)=0,VLOOKUP($A133,Economática!$A$3:$AI$823,10,FALSE)=\"-\"),1/0,VLOOKUP($A133,Economática!$A$3:$AI$823,10,FALSE)))","v":1658.84},{"$f":"IF($A133=\"\",\"\",IF(OR(VLOOKUP($A133,Economática!$A$3:$AI$823,11,FALSE)=0,VLOOKUP($A133,Economática!$A$3:$AI$823,11,FALSE)=\"-\"),1/0,VLOOKUP($A133,Economática!$A$3:$AI$823,11,FALSE)))","v":2467.98},{"$f":"IF($A133=\"\",\"\",IF(OR(VLOOKUP($A133,Economática!$A$3:$AI$823,12,FALSE)=0,VLOOKUP($A133,Economática!$A$3:$AI$823,12,FALSE)=\"-\"),1/0,VLOOKUP($A133,Economática!$A$3:$AI$823,12,FALSE)))","v":2538.6},{"$f":"IF($A133=\"\",\"\",IF(OR(VLOOKUP($A133,Economática!$A$3:$AI$823,13,FALSE)=0,VLOOKUP($A133,Economática!$A$3:$AI$823,13,FALSE)=\"-\"),1/0,VLOOKUP($A133,Economática!$A$3:$AI$823,13,FALSE)))","v":66.47},{"$f":"IF($A133=\"\",\"\",IF(OR(VLOOKUP($A133,Economática!$A$3:$AI$823,14,FALSE)=0,VLOOKUP($A133,Economática!$A$3:$AI$823,14,FALSE)=\"-\"),1/0,VLOOKUP($A133,Economática!$A$3:$AI$823,14,FALSE)))","v":26.85},{"$f":"IF($A133=\"\",\"\",IF(OR(VLOOKUP($A133,Economática!$A$3:$AI$823,15,FALSE)=0,VLOOKUP($A133,Economática!$A$3:$AI$823,15,FALSE)=\"-\"),1/0,VLOOKUP($A133,Economática!$A$3:$AI$823,15,FALSE)))","v":66.77},{"$f":"IF($A133=\"\",\"\",IF(OR(VLOOKUP($A133,Economática!$A$3:$AI$823,16,FALSE)=0,VLOOKUP($A133,Economática!$A$3:$AI$823,16,FALSE)=\"-\"),1/0,VLOOKUP($A133,Economática!$A$3:$AI$823,16,FALSE)))","v":108.04},{"$f":"IF($A133=\"\",\"\",IF(OR(VLOOKUP($A133,Economática!$A$3:$AI$823,17,FALSE)=0,VLOOKUP($A133,Economática!$A$3:$AI$823,17,FALSE)=\"-\"),1/0,VLOOKUP($A133,Economática!$A$3:$AI$823,17,FALSE)))","v":159.75},{"$f":"IF($A133=\"\",\"\",IF(OR(VLOOKUP($A133,Economática!$A$3:$AI$823,18,FALSE)=0,VLOOKUP($A133,Economática!$A$3:$AI$823,18,FALSE)=\"-\"),1/0,VLOOKUP($A133,Economática!$A$3:$AI$823,18,FALSE)))","v":66.47},{"$f":"IF($A133=\"\",\"\",IF(OR(VLOOKUP($A133,Economática!$A$3:$AI$823,19,FALSE)=0,VLOOKUP($A133,Economática!$A$3:$AI$823,19,FALSE)=\"-\"),1/0,VLOOKUP($A133,Economática!$A$3:$AI$823,19,FALSE)))","v":159.75},{"$f":"IF($A133=\"\",\"\",VLOOKUP($A133,Economática!$A$3:$AI$823,20,FALSE)/E133)","v":0.60887760702524696},6.3225698255884861,1.7160743652190689,17.819673239436622,{"$f":"IF($A133=\"\",\"\",IF(OR(VLOOKUP($A133,Economática!$A$3:$AI$823,21,FALSE)/100=0,VLOOKUP($A133,Economática!$A$3:$AI$823,21,FALSE)/100=\"-\"),1/0,VLOOKUP($A133,Economática!$A$3:$AI$823,21,FALSE)/100))","v":0.124338},{"$f":"IF($A133=\"\",\"\",IF(OR(VLOOKUP($A133,Economática!$A$3:$AI$823,22,FALSE)/100=0,VLOOKUP($A133,Economática!$A$3:$AI$823,22,FALSE)/100=\"-\"),1/0,VLOOKUP($A133,Economática!$A$3:$AI$823,22,FALSE)/100))","v":0.87638300000000002},{"$f":"IF($A133=\"\",\"\",IF(OR(VLOOKUP($A133,Economática!$A$3:$AI$823,23,FALSE)=0,VLOOKUP($A133,Economática!$A$3:$AI$823,23,FALSE)=\"-\"),1/0,VLOOKUP($A133,Economática!$A$3:$AI$823,23,FALSE)))","v":326.8},{"$f":"IF($A133=\"\",\"\",IF(OR(VLOOKUP($A133,Economática!$A$3:$AI$823,24,FALSE)=0,VLOOKUP($A133,Economática!$A$3:$AI$823,24,FALSE)=\"-\"),1/0,VLOOKUP($A133,Economática!$A$3:$AI$823,24,FALSE)))","v":481.7},{"$f":"IF($A133=\"\",\"\",IF(OR(VLOOKUP($A133,Economática!$A$3:$AI$823,25,FALSE)=0,VLOOKUP($A133,Economática!$A$3:$AI$823,25,FALSE)=\"-\"),1/0,VLOOKUP($A133,Economática!$A$3:$AI$823,25,FALSE)))","v":481.7},{"$f":"IF($A133=\"\",\"\",IF(ISERROR((F133+VLOOKUP($A133,Economática!$A$3:$AI$823,26,FALSE))/Y133),(F133+VLOOKUP($A133,Economática!$A$3:$AI$823,26,FALSE))/Y133,(F133+VLOOKUP($A133,Economática!$A$3:$AI$823,26,FALSE))/Y133))","v":8.9276956611999161},{"$f":"IF($A133=\"\",\"\",IF(OR(-VLOOKUP($A133,Economática!$A$3:$AI$823,27,FALSE)=0,-VLOOKUP($A133,Economática!$A$3:$AI$823,27,FALSE)=\"-\"),1/0,-VLOOKUP($A133,Economática!$A$3:$AI$823,27,FALSE)))","v":23.64},8.304381580010468E-3,{"$f":"IF($A133=\"\",\"\",IF(OR(VLOOKUP($A133,Economática!$A$3:$AI$823,28,FALSE)=0,VLOOKUP($A133,Economática!$A$3:$AI$823,28,FALSE)=\"-\"),1/0,VLOOKUP($A133,Economática!$A$3:$AI$823,28,FALSE)))","v":-6.5},{"$f":"IF($A133=\"\",\"\",IF(OR(VLOOKUP($A133,Economática!$A$3:$AI$823,29,FALSE)=0,VLOOKUP($A133,Economática!$A$3:$AI$823,29,FALSE)=\"-\"),1/0,VLOOKUP($A133,Economática!$A$3:$AI$823,29,FALSE)))","v":61.8},{"$f":"IF($A133=\"\",\"\",IF(OR(VLOOKUP($A133,Economática!$A$3:$AI$823,30,FALSE)/E133=0,VLOOKUP($A133,Economática!$A$3:$AI$823,30,FALSE)/E133=\"-\",VLOOKUP($A133,Economática!$A$3:$AI$823,30,FALSE)/E133<33.33%,VLOOKUP($A133,Economática!$A$3:$AI$823,30,FALSE)/E133>100%),1/0,VLOOKUP($A133,Economática!$A$3:$AI$823,30,FALSE)/E133))","v":{"$error":"#DIV/0!"}},"MOVI3",{"$f":"IF($A133=\"\",\"\",IF(OR(VLOOKUP($A133,Economática!$A$3:$AI$823,25,FALSE)=0,VLOOKUP($A133,Economática!$A$3:$AI$823,25,FALSE)=\"-\"),1/0,VLOOKUP($A133,Economática!$A$3:$AI$823,25,FALSE)))","v":481.7},{"$f":"CONCATENATE(Economática!B135,\" \",Economática!C135)","v":"Movida ON"}]
[{"$f":"IF(Economática!AG136=\"\",\"\",Economática!AG136)","v":"BRML3"},{"$f":"IF($A134=\"\",\"\",VLOOKUP(VLOOKUP($A134,Economática!$A$3:$AI$823,6,FALSE),Correção!$B$16:$C$36,2,FALSE))","v":"Outros"},{"$f":"IF(Economática!B136=\"\",\"\",Economática!B136)","v":"BR Malls Par"},{"$f":"IF($A134=\"\",\"\",IF(OR(VLOOKUP($A134,Economática!$A$3:$AI$823,8,FALSE)=0,VLOOKUP($A134,Economática!$A$3:$AI$823,8,FALSE)=\"-\"),1/0,VLOOKUP($A134,Economática!$A$3:$AI$823,8,FALSE)))","v":12.57},{"$f":"IF(A134=\"\",\"\",IF(ISERROR(VLOOKUP(A134,Correção!$B$2:$G$13,9,FALSE)),VLOOKUP($A134,Economática!$A$3:$AI$823,9,FALSE),VLOOKUP(A134,Correção!$B$2:$G$13,9,FALSE)))","v":842.26199999999994},{"$f":"IF($A134=\"\",\"\",Economática!G136)","v":10587.23},{"$f":"IF($A134=\"\",\"\",IF(OR(VLOOKUP($A134,Economática!$A$3:$AI$823,10,FALSE)=0,VLOOKUP($A134,Economática!$A$3:$AI$823,10,FALSE)=\"-\"),1/0,VLOOKUP($A134,Economática!$A$3:$AI$823,10,FALSE)))","v":10485.1},{"$f":"IF($A134=\"\",\"\",IF(OR(VLOOKUP($A134,Economática!$A$3:$AI$823,11,FALSE)=0,VLOOKUP($A134,Economática!$A$3:$AI$823,11,FALSE)=\"-\"),1/0,VLOOKUP($A134,Economática!$A$3:$AI$823,11,FALSE)))","v":1265.24},{"$f":"IF($A134=\"\",\"\",IF(OR(VLOOKUP($A134,Economática!$A$3:$AI$823,12,FALSE)=0,VLOOKUP($A134,Economática!$A$3:$AI$823,12,FALSE)=\"-\"),1/0,VLOOKUP($A134,Economática!$A$3:$AI$823,12,FALSE)))","v":1196.21},{"$f":"IF($A134=\"\",\"\",IF(OR(VLOOKUP($A134,Economática!$A$3:$AI$823,13,FALSE)=0,VLOOKUP($A134,Economática!$A$3:$AI$823,13,FALSE)=\"-\"),1/0,VLOOKUP($A134,Economática!$A$3:$AI$823,13,FALSE)))","v":-796.28},{"$f":"IF($A134=\"\",\"\",IF(OR(VLOOKUP($A134,Economática!$A$3:$AI$823,14,FALSE)=0,VLOOKUP($A134,Economática!$A$3:$AI$823,14,FALSE)=\"-\"),1/0,VLOOKUP($A134,Economática!$A$3:$AI$823,14,FALSE)))","v":126.53},{"$f":"IF($A134=\"\",\"\",IF(OR(VLOOKUP($A134,Economática!$A$3:$AI$823,15,FALSE)=0,VLOOKUP($A134,Economática!$A$3:$AI$823,15,FALSE)=\"-\"),1/0,VLOOKUP($A134,Economática!$A$3:$AI$823,15,FALSE)))","v":194.12},{"$f":"IF($A134=\"\",\"\",IF(OR(VLOOKUP($A134,Economática!$A$3:$AI$823,16,FALSE)=0,VLOOKUP($A134,Economática!$A$3:$AI$823,16,FALSE)=\"-\"),1/0,VLOOKUP($A134,Economática!$A$3:$AI$823,16,FALSE)))","v":286.35000000000002},{"$f":"IF($A134=\"\",\"\",IF(OR(VLOOKUP($A134,Economática!$A$3:$AI$823,17,FALSE)=0,VLOOKUP($A134,Economática!$A$3:$AI$823,17,FALSE)=\"-\"),1/0,VLOOKUP($A134,Economática!$A$3:$AI$823,17,FALSE)))","v":1014.09},{"$f":"IF($A134=\"\",\"\",IF(OR(VLOOKUP($A134,Economática!$A$3:$AI$823,18,FALSE)=0,VLOOKUP($A134,Economática!$A$3:$AI$823,18,FALSE)=\"-\"),1/0,VLOOKUP($A134,Economática!$A$3:$AI$823,18,FALSE)))","v":-796.28},{"$f":"IF($A134=\"\",\"\",IF(OR(VLOOKUP($A134,Economática!$A$3:$AI$823,19,FALSE)=0,VLOOKUP($A134,Economática!$A$3:$AI$823,19,FALSE)=\"-\"),1/0,VLOOKUP($A134,Economática!$A$3:$AI$823,19,FALSE)))","v":1014.09},{"$f":"IF($A134=\"\",\"\",VLOOKUP($A134,Economática!$A$3:$AI$823,20,FALSE)/E134)","v":1.204007779052124},12.448739228411114,1.009740807431498,10.440131881785641,{"$f":"IF($A134=\"\",\"\",IF(OR(VLOOKUP($A134,Economática!$A$3:$AI$823,21,FALSE)/100=0,VLOOKUP($A134,Economática!$A$3:$AI$823,21,FALSE)/100=\"-\"),1/0,VLOOKUP($A134,Economática!$A$3:$AI$823,21,FALSE)/100))","v":0.105336},{"$f":"IF($A134=\"\",\"\",IF(OR(VLOOKUP($A134,Economática!$A$3:$AI$823,22,FALSE)/100=0,VLOOKUP($A134,Economática!$A$3:$AI$823,22,FALSE)/100=\"-\"),1/0,VLOOKUP($A134,Economática!$A$3:$AI$823,22,FALSE)/100))","v":0.169152},{"$f":"IF($A134=\"\",\"\",IF(OR(VLOOKUP($A134,Economática!$A$3:$AI$823,23,FALSE)=0,VLOOKUP($A134,Economática!$A$3:$AI$823,23,FALSE)=\"-\"),1/0,VLOOKUP($A134,Economática!$A$3:$AI$823,23,FALSE)))","v":-899.5},{"$f":"IF($A134=\"\",\"\",IF(OR(VLOOKUP($A134,Economática!$A$3:$AI$823,24,FALSE)=0,VLOOKUP($A134,Economática!$A$3:$AI$823,24,FALSE)=\"-\"),1/0,VLOOKUP($A134,Economática!$A$3:$AI$823,24,FALSE)))","v":{"$error":"#DIV/0!"}},{"$f":"IF($A134=\"\",\"\",IF(OR(VLOOKUP($A134,Economática!$A$3:$AI$823,25,FALSE)=0,VLOOKUP($A134,Economática!$A$3:$AI$823,25,FALSE)=\"-\"),1/0,VLOOKUP($A134,Economática!$A$3:$AI$823,25,FALSE)))","v":{"$error":"#DIV/0!"}},{"$f":"IF($A134=\"\",\"\",IF(ISERROR((F134+VLOOKUP($A134,Economática!$A$3:$AI$823,26,FALSE))/Y134),(F134+VLOOKUP($A134,Economática!$A$3:$AI$823,26,FALSE))/Y134,(F134+VLOOKUP($A134,Economática!$A$3:$AI$823,26,FALSE))/Y134))","v":{"$error":"#DIV/0!"}},{"$f":"IF($A134=\"\",\"\",IF(OR(-VLOOKUP($A134,Economática!$A$3:$AI$823,27,FALSE)=0,-VLOOKUP($A134,Economática!$A$3:$AI$823,27,FALSE)=\"-\"),1/0,-VLOOKUP($A134,Economática!$A$3:$AI$823,27,FALSE)))","v":{"$error":"#VALUE!"}},{"$error":"#VALUE!"},{"$f":"IF($A134=\"\",\"\",IF(OR(VLOOKUP($A134,Economática!$A$3:$AI$823,28,FALSE)=0,VLOOKUP($A134,Economática!$A$3:$AI$823,28,FALSE)=\"-\"),1/0,VLOOKUP($A134,Economática!$A$3:$AI$823,28,FALSE)))","v":-5.6},{"$f":"IF($A134=\"\",\"\",IF(OR(VLOOKUP($A134,Economática!$A$3:$AI$823,29,FALSE)=0,VLOOKUP($A134,Economática!$A$3:$AI$823,29,FALSE)=\"-\"),1/0,VLOOKUP($A134,Economática!$A$3:$AI$823,29,FALSE)))","v":{"$error":"#DIV/0!"}},{"$f":"IF($A134=\"\",\"\",IF(OR(VLOOKUP($A134,Economática!$A$3:$AI$823,30,FALSE)/E134=0,VLOOKUP($A134,Economática!$A$3:$AI$823,30,FALSE)/E134=\"-\",VLOOKUP($A134,Economática!$A$3:$AI$823,30,FALSE)/E134<33.33%,VLOOKUP($A134,Economática!$A$3:$AI$823,30,FALSE)/E134>100%),1/0,VLOOKUP($A134,Economática!$A$3:$AI$823,30,FALSE)/E134))","v":{"$error":"#DIV/0!"}},"BRML3",{"$f":"IF($A134=\"\",\"\",IF(OR(VLOOKUP($A134,Economática!$A$3:$AI$823,25,FALSE)=0,VLOOKUP($A134,Economática!$A$3:$AI$823,25,FALSE)=\"-\"),1/0,VLOOKUP($A134,Economática!$A$3:$AI$823,25,FALSE)))","v":{"$error":"#DIV/0!"}},{"$f":"CONCATENATE(Economática!B136,\" \",Economática!C136)","v":"BR Malls Par ON"}]
[{"$f":"IF(Economática!AG137=\"\",\"\",Economática!AG137)","v":"VLID3"},{"$f":"IF($A135=\"\",\"\",VLOOKUP(VLOOKUP($A135,Economática!$A$3:$AI$823,6,FALSE),Correção!$B$16:$C$36,2,FALSE))","v":"Outros"},{"$f":"IF(Economática!B137=\"\",\"\",Economática!B137)","v":"Valid"},{"$f":"IF($A135=\"\",\"\",IF(OR(VLOOKUP($A135,Economática!$A$3:$AI$823,8,FALSE)=0,VLOOKUP($A135,Economática!$A$3:$AI$823,8,FALSE)=\"-\"),1/0,VLOOKUP($A135,Economática!$A$3:$AI$823,8,FALSE)))","v":19.28},{"$f":"IF(A135=\"\",\"\",IF(ISERROR(VLOOKUP(A135,Correção!$B$2:$G$13,9,FALSE)),VLOOKUP($A135,Economática!$A$3:$AI$823,9,FALSE),VLOOKUP(A135,Correção!$B$2:$G$13,9,FALSE)))","v":70.405000000000001},{"$f":"IF($A135=\"\",\"\",Economática!G137)","v":1357.41},{"$f":"IF($A135=\"\",\"\",IF(OR(VLOOKUP($A135,Economática!$A$3:$AI$823,10,FALSE)=0,VLOOKUP($A135,Economática!$A$3:$AI$823,10,FALSE)=\"-\"),1/0,VLOOKUP($A135,Economática!$A$3:$AI$823,10,FALSE)))","v":1071.9100000000001},{"$f":"IF($A135=\"\",\"\",IF(OR(VLOOKUP($A135,Economática!$A$3:$AI$823,11,FALSE)=0,VLOOKUP($A135,Economática!$A$3:$AI$823,11,FALSE)=\"-\"),1/0,VLOOKUP($A135,Economática!$A$3:$AI$823,11,FALSE)))","v":1574.47},{"$f":"IF($A135=\"\",\"\",IF(OR(VLOOKUP($A135,Economática!$A$3:$AI$823,12,FALSE)=0,VLOOKUP($A135,Economática!$A$3:$AI$823,12,FALSE)=\"-\"),1/0,VLOOKUP($A135,Economática!$A$3:$AI$823,12,FALSE)))","v":1734.31},{"$f":"IF($A135=\"\",\"\",IF(OR(VLOOKUP($A135,Economática!$A$3:$AI$823,13,FALSE)=0,VLOOKUP($A135,Economática!$A$3:$AI$823,13,FALSE)=\"-\"),1/0,VLOOKUP($A135,Economática!$A$3:$AI$823,13,FALSE)))","v":27.69},{"$f":"IF($A135=\"\",\"\",IF(OR(VLOOKUP($A135,Economática!$A$3:$AI$823,14,FALSE)=0,VLOOKUP($A135,Economática!$A$3:$AI$823,14,FALSE)=\"-\"),1/0,VLOOKUP($A135,Economática!$A$3:$AI$823,14,FALSE)))","v":19.72},{"$f":"IF($A135=\"\",\"\",IF(OR(VLOOKUP($A135,Economática!$A$3:$AI$823,15,FALSE)=0,VLOOKUP($A135,Economática!$A$3:$AI$823,15,FALSE)=\"-\"),1/0,VLOOKUP($A135,Economática!$A$3:$AI$823,15,FALSE)))","v":33.200000000000003},{"$f":"IF($A135=\"\",\"\",IF(OR(VLOOKUP($A135,Economática!$A$3:$AI$823,16,FALSE)=0,VLOOKUP($A135,Economática!$A$3:$AI$823,16,FALSE)=\"-\"),1/0,VLOOKUP($A135,Economática!$A$3:$AI$823,16,FALSE)))","v":56.98},{"$f":"IF($A135=\"\",\"\",IF(OR(VLOOKUP($A135,Economática!$A$3:$AI$823,17,FALSE)=0,VLOOKUP($A135,Economática!$A$3:$AI$823,17,FALSE)=\"-\"),1/0,VLOOKUP($A135,Economática!$A$3:$AI$823,17,FALSE)))","v":100.04},{"$f":"IF($A135=\"\",\"\",IF(OR(VLOOKUP($A135,Economática!$A$3:$AI$823,18,FALSE)=0,VLOOKUP($A135,Economática!$A$3:$AI$823,18,FALSE)=\"-\"),1/0,VLOOKUP($A135,Economática!$A$3:$AI$823,18,FALSE)))","v":27.69},{"$f":"IF($A135=\"\",\"\",IF(OR(VLOOKUP($A135,Economática!$A$3:$AI$823,19,FALSE)=0,VLOOKUP($A135,Economática!$A$3:$AI$823,19,FALSE)=\"-\"),1/0,VLOOKUP($A135,Economática!$A$3:$AI$823,19,FALSE)))","v":100.04},{"$f":"IF($A135=\"\",\"\",VLOOKUP($A135,Economática!$A$3:$AI$823,20,FALSE)/E135)","v":1.4209218095305731},15.224913003337832,1.2663454954240561,13.568656537385047,{"$f":"IF($A135=\"\",\"\",IF(OR(VLOOKUP($A135,Economática!$A$3:$AI$823,21,FALSE)/100=0,VLOOKUP($A135,Economática!$A$3:$AI$823,21,FALSE)/100=\"-\"),1/0,VLOOKUP($A135,Economática!$A$3:$AI$823,21,FALSE)/100))","v":0.10101800000000001},{"$f":"IF($A135=\"\",\"\",IF(OR(VLOOKUP($A135,Economática!$A$3:$AI$823,22,FALSE)/100=0,VLOOKUP($A135,Economática!$A$3:$AI$823,22,FALSE)/100=\"-\"),1/0,VLOOKUP($A135,Economática!$A$3:$AI$823,22,FALSE)/100))","v":0.477076},{"$f":"IF($A135=\"\",\"\",IF(OR(VLOOKUP($A135,Economática!$A$3:$AI$823,23,FALSE)=0,VLOOKUP($A135,Economática!$A$3:$AI$823,23,FALSE)=\"-\"),1/0,VLOOKUP($A135,Economática!$A$3:$AI$823,23,FALSE)))","v":206.7},{"$f":"IF($A135=\"\",\"\",IF(OR(VLOOKUP($A135,Economática!$A$3:$AI$823,24,FALSE)=0,VLOOKUP($A135,Economática!$A$3:$AI$823,24,FALSE)=\"-\"),1/0,VLOOKUP($A135,Economática!$A$3:$AI$823,24,FALSE)))","v":269.8},{"$f":"IF($A135=\"\",\"\",IF(OR(VLOOKUP($A135,Economática!$A$3:$AI$823,25,FALSE)=0,VLOOKUP($A135,Economática!$A$3:$AI$823,25,FALSE)=\"-\"),1/0,VLOOKUP($A135,Economática!$A$3:$AI$823,25,FALSE)))","v":269.8},{"$f":"IF($A135=\"\",\"\",IF(ISERROR((F135+VLOOKUP($A135,Economática!$A$3:$AI$823,26,FALSE))/Y135),(F135+VLOOKUP($A135,Economática!$A$3:$AI$823,26,FALSE))/Y135,(F135+VLOOKUP($A135,Economática!$A$3:$AI$823,26,FALSE))/Y135))","v":6.9558191252779835},{"$f":"IF($A135=\"\",\"\",IF(OR(-VLOOKUP($A135,Economática!$A$3:$AI$823,27,FALSE)=0,-VLOOKUP($A135,Economática!$A$3:$AI$823,27,FALSE)=\"-\"),1/0,-VLOOKUP($A135,Economática!$A$3:$AI$823,27,FALSE)))","v":31.12},2.2926013511024673E-2,{"$f":"IF($A135=\"\",\"\",IF(OR(VLOOKUP($A135,Economática!$A$3:$AI$823,28,FALSE)=0,VLOOKUP($A135,Economática!$A$3:$AI$823,28,FALSE)=\"-\"),1/0,VLOOKUP($A135,Economática!$A$3:$AI$823,28,FALSE)))","v":-2.1},{"$f":"IF($A135=\"\",\"\",IF(OR(VLOOKUP($A135,Economática!$A$3:$AI$823,29,FALSE)=0,VLOOKUP($A135,Economática!$A$3:$AI$823,29,FALSE)=\"-\"),1/0,VLOOKUP($A135,Economática!$A$3:$AI$823,29,FALSE)))","v":10.3},{"$f":"IF($A135=\"\",\"\",IF(OR(VLOOKUP($A135,Economática!$A$3:$AI$823,30,FALSE)/E135=0,VLOOKUP($A135,Economática!$A$3:$AI$823,30,FALSE)/E135=\"-\",VLOOKUP($A135,Economática!$A$3:$AI$823,30,FALSE)/E135<33.33%,VLOOKUP($A135,Economática!$A$3:$AI$823,30,FALSE)/E135>100%),1/0,VLOOKUP($A135,Economática!$A$3:$AI$823,30,FALSE)/E135))","v":{"$error":"#DIV/0!"}},"VLID3",{"$f":"IF($A135=\"\",\"\",IF(OR(VLOOKUP($A135,Economática!$A$3:$AI$823,25,FALSE)=0,VLOOKUP($A135,Economática!$A$3:$AI$823,25,FALSE)=\"-\"),1/0,VLOOKUP($A135,Economática!$A$3:$AI$823,25,FALSE)))","v":269.8},{"$f":"CONCATENATE(Economática!B137,\" \",Economática!C137)","v":"Valid ON"}]
[{"$f":"IF(Economática!AG138=\"\",\"\",Economática!AG138)","v":"SSBR3"},{"$f":"IF($A136=\"\",\"\",VLOOKUP(VLOOKUP($A136,Economática!$A$3:$AI$823,6,FALSE),Correção!$B$16:$C$36,2,FALSE))","v":"Outros"},{"$f":"IF(Economática!B138=\"\",\"\",Economática!B138)","v":"Sierrabrasil"},{"$f":"IF($A136=\"\",\"\",IF(OR(VLOOKUP($A136,Economática!$A$3:$AI$823,8,FALSE)=0,VLOOKUP($A136,Economática!$A$3:$AI$823,8,FALSE)=\"-\"),1/0,VLOOKUP($A136,Economática!$A$3:$AI$823,8,FALSE)))","v":28.7},{"$f":"IF(A136=\"\",\"\",IF(ISERROR(VLOOKUP(A136,Correção!$B$2:$G$13,9,FALSE)),VLOOKUP($A136,Economática!$A$3:$AI$823,9,FALSE),VLOOKUP(A136,Correção!$B$2:$G$13,9,FALSE)))","v":76.424000000000007},{"$f":"IF($A136=\"\",\"\",Economática!G138)","v":2193.36},{"$f":"IF($A136=\"\",\"\",IF(OR(VLOOKUP($A136,Economática!$A$3:$AI$823,10,FALSE)=0,VLOOKUP($A136,Economática!$A$3:$AI$823,10,FALSE)=\"-\"),1/0,VLOOKUP($A136,Economática!$A$3:$AI$823,10,FALSE)))","v":2766.6},{"$f":"IF($A136=\"\",\"\",IF(OR(VLOOKUP($A136,Economática!$A$3:$AI$823,11,FALSE)=0,VLOOKUP($A136,Economática!$A$3:$AI$823,11,FALSE)=\"-\"),1/0,VLOOKUP($A136,Economática!$A$3:$AI$823,11,FALSE)))","v":354.86},{"$f":"IF($A136=\"\",\"\",IF(OR(VLOOKUP($A136,Economática!$A$3:$AI$823,12,FALSE)=0,VLOOKUP($A136,Economática!$A$3:$AI$823,12,FALSE)=\"-\"),1/0,VLOOKUP($A136,Economática!$A$3:$AI$823,12,FALSE)))","v":374.11},{"$f":"IF($A136=\"\",\"\",IF(OR(VLOOKUP($A136,Economática!$A$3:$AI$823,13,FALSE)=0,VLOOKUP($A136,Economática!$A$3:$AI$823,13,FALSE)=\"-\"),1/0,VLOOKUP($A136,Economática!$A$3:$AI$823,13,FALSE)))","v":138.41999999999999},{"$f":"IF($A136=\"\",\"\",IF(OR(VLOOKUP($A136,Economática!$A$3:$AI$823,14,FALSE)=0,VLOOKUP($A136,Economática!$A$3:$AI$823,14,FALSE)=\"-\"),1/0,VLOOKUP($A136,Economática!$A$3:$AI$823,14,FALSE)))","v":24.87},{"$f":"IF($A136=\"\",\"\",IF(OR(VLOOKUP($A136,Economática!$A$3:$AI$823,15,FALSE)=0,VLOOKUP($A136,Economática!$A$3:$AI$823,15,FALSE)=\"-\"),1/0,VLOOKUP($A136,Economática!$A$3:$AI$823,15,FALSE)))","v":66.599999999999994},{"$f":"IF($A136=\"\",\"\",IF(OR(VLOOKUP($A136,Economática!$A$3:$AI$823,16,FALSE)=0,VLOOKUP($A136,Economática!$A$3:$AI$823,16,FALSE)=\"-\"),1/0,VLOOKUP($A136,Economática!$A$3:$AI$823,16,FALSE)))","v":92.55},{"$f":"IF($A136=\"\",\"\",IF(OR(VLOOKUP($A136,Economática!$A$3:$AI$823,17,FALSE)=0,VLOOKUP($A136,Economática!$A$3:$AI$823,17,FALSE)=\"-\"),1/0,VLOOKUP($A136,Economática!$A$3:$AI$823,17,FALSE)))","v":189.26},{"$f":"IF($A136=\"\",\"\",IF(OR(VLOOKUP($A136,Economática!$A$3:$AI$823,18,FALSE)=0,VLOOKUP($A136,Economática!$A$3:$AI$823,18,FALSE)=\"-\"),1/0,VLOOKUP($A136,Economática!$A$3:$AI$823,18,FALSE)))","v":138.41999999999999},{"$f":"IF($A136=\"\",\"\",IF(OR(VLOOKUP($A136,Economática!$A$3:$AI$823,19,FALSE)=0,VLOOKUP($A136,Economática!$A$3:$AI$823,19,FALSE)=\"-\"),1/0,VLOOKUP($A136,Economática!$A$3:$AI$823,19,FALSE)))","v":189.26},{"$f":"IF($A136=\"\",\"\",VLOOKUP($A136,Economática!$A$3:$AI$823,20,FALSE)/E136)","v":2.4764471893645972},36.200669946613623,0.79280300730138087,11.589183134312588,{"$f":"IF($A136=\"\",\"\",IF(OR(VLOOKUP($A136,Economática!$A$3:$AI$823,21,FALSE)/100=0,VLOOKUP($A136,Economática!$A$3:$AI$823,21,FALSE)/100=\"-\"),1/0,VLOOKUP($A136,Economática!$A$3:$AI$823,21,FALSE)/100))","v":0.10036899999999999},{"$f":"IF($A136=\"\",\"\",IF(OR(VLOOKUP($A136,Economática!$A$3:$AI$823,22,FALSE)/100=0,VLOOKUP($A136,Economática!$A$3:$AI$823,22,FALSE)/100=\"-\"),1/0,VLOOKUP($A136,Economática!$A$3:$AI$823,22,FALSE)/100))","v":0.124154},{"$f":"IF($A136=\"\",\"\",IF(OR(VLOOKUP($A136,Economática!$A$3:$AI$823,23,FALSE)=0,VLOOKUP($A136,Economática!$A$3:$AI$823,23,FALSE)=\"-\"),1/0,VLOOKUP($A136,Economática!$A$3:$AI$823,23,FALSE)))","v":384.7},{"$f":"IF($A136=\"\",\"\",IF(OR(VLOOKUP($A136,Economática!$A$3:$AI$823,24,FALSE)=0,VLOOKUP($A136,Economática!$A$3:$AI$823,24,FALSE)=\"-\"),1/0,VLOOKUP($A136,Economática!$A$3:$AI$823,24,FALSE)))","v":562.20000000000005},{"$f":"IF($A136=\"\",\"\",IF(OR(VLOOKUP($A136,Economática!$A$3:$AI$823,25,FALSE)=0,VLOOKUP($A136,Economática!$A$3:$AI$823,25,FALSE)=\"-\"),1/0,VLOOKUP($A136,Economática!$A$3:$AI$823,25,FALSE)))","v":562.20000000000005},{"$f":"IF($A136=\"\",\"\",IF(ISERROR((F136+VLOOKUP($A136,Economática!$A$3:$AI$823,26,FALSE))/Y136),(F136+VLOOKUP($A136,Economática!$A$3:$AI$823,26,FALSE))/Y136,(F136+VLOOKUP($A136,Economática!$A$3:$AI$823,26,FALSE))/Y136))","v":4.7641319815012446},{"$f":"IF($A136=\"\",\"\",IF(OR(-VLOOKUP($A136,Economática!$A$3:$AI$823,27,FALSE)=0,-VLOOKUP($A136,Economática!$A$3:$AI$823,27,FALSE)=\"-\"),1/0,-VLOOKUP($A136,Economática!$A$3:$AI$823,27,FALSE)))","v":34.770000000000003},1.5852390852390853E-2,{"$f":"IF($A136=\"\",\"\",IF(OR(VLOOKUP($A136,Economática!$A$3:$AI$823,28,FALSE)=0,VLOOKUP($A136,Economática!$A$3:$AI$823,28,FALSE)=\"-\"),1/0,VLOOKUP($A136,Economática!$A$3:$AI$823,28,FALSE)))","v":-7.1},{"$f":"IF($A136=\"\",\"\",IF(OR(VLOOKUP($A136,Economática!$A$3:$AI$823,29,FALSE)=0,VLOOKUP($A136,Economática!$A$3:$AI$823,29,FALSE)=\"-\"),1/0,VLOOKUP($A136,Economática!$A$3:$AI$823,29,FALSE)))","v":15.5},{"$f":"IF($A136=\"\",\"\",IF(OR(VLOOKUP($A136,Economática!$A$3:$AI$823,30,FALSE)/E136=0,VLOOKUP($A136,Economática!$A$3:$AI$823,30,FALSE)/E136=\"-\",VLOOKUP($A136,Economática!$A$3:$AI$823,30,FALSE)/E136<33.33%,VLOOKUP($A136,Economática!$A$3:$AI$823,30,FALSE)/E136>100%),1/0,VLOOKUP($A136,Economática!$A$3:$AI$823,30,FALSE)/E136))","v":0.9996859625248613},"SSBR3",{"$f":"IF($A136=\"\",\"\",IF(OR(VLOOKUP($A136,Economática!$A$3:$AI$823,25,FALSE)=0,VLOOKUP($A136,Economática!$A$3:$AI$823,25,FALSE)=\"-\"),1/0,VLOOKUP($A136,Economática!$A$3:$AI$823,25,FALSE)))","v":562.20000000000005},{"$f":"CONCATENATE(Economática!B138,\" \",Economática!C138)","v":"Sierrabrasil ON"}]
[{"$f":"IF(Economática!AG139=\"\",\"\",Economática!AG139)","v":"IGTA3"},{"$f":"IF($A137=\"\",\"\",VLOOKUP(VLOOKUP($A137,Economática!$A$3:$AI$823,6,FALSE),Correção!$B$16:$C$36,2,FALSE))","v":"Outros"},{"$f":"IF(Economática!B139=\"\",\"\",Economática!B139)","v":"Iguatemi"},{"$f":"IF($A137=\"\",\"\",IF(OR(VLOOKUP($A137,Economática!$A$3:$AI$823,8,FALSE)=0,VLOOKUP($A137,Economática!$A$3:$AI$823,8,FALSE)=\"-\"),1/0,VLOOKUP($A137,Economática!$A$3:$AI$823,8,FALSE)))","v":38.92},{"$f":"IF(A137=\"\",\"\",IF(ISERROR(VLOOKUP(A137,Correção!$B$2:$G$13,9,FALSE)),VLOOKUP($A137,Economática!$A$3:$AI$823,9,FALSE),VLOOKUP(A137,Correção!$B$2:$G$13,9,FALSE)))","v":176.297},{"$f":"IF($A137=\"\",\"\",Economática!G139)","v":6861.47},{"$f":"IF($A137=\"\",\"\",IF(OR(VLOOKUP($A137,Economática!$A$3:$AI$823,10,FALSE)=0,VLOOKUP($A137,Economática!$A$3:$AI$823,10,FALSE)=\"-\"),1/0,VLOOKUP($A137,Economática!$A$3:$AI$823,10,FALSE)))","v":2835.66},{"$f":"IF($A137=\"\",\"\",IF(OR(VLOOKUP($A137,Economática!$A$3:$AI$823,11,FALSE)=0,VLOOKUP($A137,Economática!$A$3:$AI$823,11,FALSE)=\"-\"),1/0,VLOOKUP($A137,Economática!$A$3:$AI$823,11,FALSE)))","v":692.16},{"$f":"IF($A137=\"\",\"\",IF(OR(VLOOKUP($A137,Economática!$A$3:$AI$823,12,FALSE)=0,VLOOKUP($A137,Economática!$A$3:$AI$823,12,FALSE)=\"-\"),1/0,VLOOKUP($A137,Economática!$A$3:$AI$823,12,FALSE)))","v":721.53},{"$f":"IF($A137=\"\",\"\",IF(OR(VLOOKUP($A137,Economática!$A$3:$AI$823,13,FALSE)=0,VLOOKUP($A137,Economática!$A$3:$AI$823,13,FALSE)=\"-\"),1/0,VLOOKUP($A137,Economática!$A$3:$AI$823,13,FALSE)))","v":215.73},{"$f":"IF($A137=\"\",\"\",IF(OR(VLOOKUP($A137,Economática!$A$3:$AI$823,14,FALSE)=0,VLOOKUP($A137,Economática!$A$3:$AI$823,14,FALSE)=\"-\"),1/0,VLOOKUP($A137,Economática!$A$3:$AI$823,14,FALSE)))","v":57.34},{"$f":"IF($A137=\"\",\"\",IF(OR(VLOOKUP($A137,Economática!$A$3:$AI$823,15,FALSE)=0,VLOOKUP($A137,Economática!$A$3:$AI$823,15,FALSE)=\"-\"),1/0,VLOOKUP($A137,Economática!$A$3:$AI$823,15,FALSE)))","v":116.94},{"$f":"IF($A137=\"\",\"\",IF(OR(VLOOKUP($A137,Economática!$A$3:$AI$823,16,FALSE)=0,VLOOKUP($A137,Economática!$A$3:$AI$823,16,FALSE)=\"-\"),1/0,VLOOKUP($A137,Economática!$A$3:$AI$823,16,FALSE)))","v":181.42},{"$f":"IF($A137=\"\",\"\",IF(OR(VLOOKUP($A137,Economática!$A$3:$AI$823,17,FALSE)=0,VLOOKUP($A137,Economática!$A$3:$AI$823,17,FALSE)=\"-\"),1/0,VLOOKUP($A137,Economática!$A$3:$AI$823,17,FALSE)))","v":256.36},{"$f":"IF($A137=\"\",\"\",IF(OR(VLOOKUP($A137,Economática!$A$3:$AI$823,18,FALSE)=0,VLOOKUP($A137,Economática!$A$3:$AI$823,18,FALSE)=\"-\"),1/0,VLOOKUP($A137,Economática!$A$3:$AI$823,18,FALSE)))","v":215.73},{"$f":"IF($A137=\"\",\"\",IF(OR(VLOOKUP($A137,Economática!$A$3:$AI$823,19,FALSE)=0,VLOOKUP($A137,Economática!$A$3:$AI$823,19,FALSE)=\"-\"),1/0,VLOOKUP($A137,Economática!$A$3:$AI$823,19,FALSE)))","v":256.36},{"$f":"IF($A137=\"\",\"\",VLOOKUP($A137,Economática!$A$3:$AI$823,20,FALSE)/E137)","v":1.4541370528142852},16.084561847337163,2.4197115451076647,26.76501497893587,{"$f":"IF($A137=\"\",\"\",IF(OR(VLOOKUP($A137,Economática!$A$3:$AI$823,21,FALSE)/100=0,VLOOKUP($A137,Economática!$A$3:$AI$823,21,FALSE)/100=\"-\"),1/0,VLOOKUP($A137,Economática!$A$3:$AI$823,21,FALSE)/100))","v":9.2753999999999989E-2},{"$f":"IF($A137=\"\",\"\",IF(OR(VLOOKUP($A137,Economática!$A$3:$AI$823,22,FALSE)/100=0,VLOOKUP($A137,Economática!$A$3:$AI$823,22,FALSE)/100=\"-\"),1/0,VLOOKUP($A137,Economática!$A$3:$AI$823,22,FALSE)/100))","v":0.55824399999999996},{"$f":"IF($A137=\"\",\"\",IF(OR(VLOOKUP($A137,Economática!$A$3:$AI$823,23,FALSE)=0,VLOOKUP($A137,Economática!$A$3:$AI$823,23,FALSE)=\"-\"),1/0,VLOOKUP($A137,Economática!$A$3:$AI$823,23,FALSE)))","v":540.6},{"$f":"IF($A137=\"\",\"\",IF(OR(VLOOKUP($A137,Economática!$A$3:$AI$823,24,FALSE)=0,VLOOKUP($A137,Economática!$A$3:$AI$823,24,FALSE)=\"-\"),1/0,VLOOKUP($A137,Economática!$A$3:$AI$823,24,FALSE)))","v":558.5},{"$f":"IF($A137=\"\",\"\",IF(OR(VLOOKUP($A137,Economática!$A$3:$AI$823,25,FALSE)=0,VLOOKUP($A137,Economática!$A$3:$AI$823,25,FALSE)=\"-\"),1/0,VLOOKUP($A137,Economática!$A$3:$AI$823,25,FALSE)))","v":558.5},{"$f":"IF($A137=\"\",\"\",IF(ISERROR((F137+VLOOKUP($A137,Economática!$A$3:$AI$823,26,FALSE))/Y137),(F137+VLOOKUP($A137,Economática!$A$3:$AI$823,26,FALSE))/Y137,(F137+VLOOKUP($A137,Economática!$A$3:$AI$823,26,FALSE))/Y137))","v":15.13056042972247},{"$f":"IF($A137=\"\",\"\",IF(OR(-VLOOKUP($A137,Economática!$A$3:$AI$823,27,FALSE)=0,-VLOOKUP($A137,Economática!$A$3:$AI$823,27,FALSE)=\"-\"),1/0,-VLOOKUP($A137,Economática!$A$3:$AI$823,27,FALSE)))","v":120},1.7488963735176281E-2,{"$f":"IF($A137=\"\",\"\",IF(OR(VLOOKUP($A137,Economática!$A$3:$AI$823,28,FALSE)=0,VLOOKUP($A137,Economática!$A$3:$AI$823,28,FALSE)=\"-\"),1/0,VLOOKUP($A137,Economática!$A$3:$AI$823,28,FALSE)))","v":-6.9},{"$f":"IF($A137=\"\",\"\",IF(OR(VLOOKUP($A137,Economática!$A$3:$AI$823,29,FALSE)=0,VLOOKUP($A137,Economática!$A$3:$AI$823,29,FALSE)=\"-\"),1/0,VLOOKUP($A137,Economática!$A$3:$AI$823,29,FALSE)))","v":1.2},{"$f":"IF($A137=\"\",\"\",IF(OR(VLOOKUP($A137,Economática!$A$3:$AI$823,30,FALSE)/E137=0,VLOOKUP($A137,Economática!$A$3:$AI$823,30,FALSE)/E137=\"-\",VLOOKUP($A137,Economática!$A$3:$AI$823,30,FALSE)/E137<33.33%,VLOOKUP($A137,Economática!$A$3:$AI$823,30,FALSE)/E137>100%),1/0,VLOOKUP($A137,Economática!$A$3:$AI$823,30,FALSE)/E137))","v":{"$error":"#DIV/0!"}},"IGTA3",{"$f":"IF($A137=\"\",\"\",IF(OR(VLOOKUP($A137,Economática!$A$3:$AI$823,25,FALSE)=0,VLOOKUP($A137,Economática!$A$3:$AI$823,25,FALSE)=\"-\"),1/0,VLOOKUP($A137,Economática!$A$3:$AI$823,25,FALSE)))","v":558.5},{"$f":"CONCATENATE(Economática!B139,\" \",Economática!C139)","v":"Iguatemi ON"}]
[{"$f":"IF(Economática!AG140=\"\",\"\",Economática!AG140)","v":"CSMG3"},{"$f":"IF($A138=\"\",\"\",VLOOKUP(VLOOKUP($A138,Economática!$A$3:$AI$823,6,FALSE),Correção!$B$16:$C$36,2,FALSE))","v":"Outros"},{"$f":"IF(Economática!B140=\"\",\"\",Economática!B140)","v":"Copasa"},{"$f":"IF($A138=\"\",\"\",IF(OR(VLOOKUP($A138,Economática!$A$3:$AI$823,8,FALSE)=0,VLOOKUP($A138,Economática!$A$3:$AI$823,8,FALSE)=\"-\"),1/0,VLOOKUP($A138,Economática!$A$3:$AI$823,8,FALSE)))","v":61.07},{"$f":"IF(A138=\"\",\"\",IF(ISERROR(VLOOKUP(A138,Correção!$B$2:$G$13,9,FALSE)),VLOOKUP($A138,Economática!$A$3:$AI$823,9,FALSE),VLOOKUP(A138,Correção!$B$2:$G$13,9,FALSE)))","v":126.39400000000001},{"$f":"IF($A138=\"\",\"\",Economática!G140)","v":7718.88},{"$f":"IF($A138=\"\",\"\",IF(OR(VLOOKUP($A138,Economática!$A$3:$AI$823,10,FALSE)=0,VLOOKUP($A138,Economática!$A$3:$AI$823,10,FALSE)=\"-\"),1/0,VLOOKUP($A138,Economática!$A$3:$AI$823,10,FALSE)))","v":6226.63},{"$f":"IF($A138=\"\",\"\",IF(OR(VLOOKUP($A138,Economática!$A$3:$AI$823,11,FALSE)=0,VLOOKUP($A138,Economática!$A$3:$AI$823,11,FALSE)=\"-\"),1/0,VLOOKUP($A138,Economática!$A$3:$AI$823,11,FALSE)))","v":4326.3999999999996},{"$f":"IF($A138=\"\",\"\",IF(OR(VLOOKUP($A138,Economática!$A$3:$AI$823,12,FALSE)=0,VLOOKUP($A138,Economática!$A$3:$AI$823,12,FALSE)=\"-\"),1/0,VLOOKUP($A138,Economática!$A$3:$AI$823,12,FALSE)))","v":4737.29},{"$f":"IF($A138=\"\",\"\",IF(OR(VLOOKUP($A138,Economática!$A$3:$AI$823,13,FALSE)=0,VLOOKUP($A138,Economática!$A$3:$AI$823,13,FALSE)=\"-\"),1/0,VLOOKUP($A138,Economática!$A$3:$AI$823,13,FALSE)))","v":560.44000000000005},{"$f":"IF($A138=\"\",\"\",IF(OR(VLOOKUP($A138,Economática!$A$3:$AI$823,14,FALSE)=0,VLOOKUP($A138,Economática!$A$3:$AI$823,14,FALSE)=\"-\"),1/0,VLOOKUP($A138,Economática!$A$3:$AI$823,14,FALSE)))","v":164.23},{"$f":"IF($A138=\"\",\"\",IF(OR(VLOOKUP($A138,Economática!$A$3:$AI$823,15,FALSE)=0,VLOOKUP($A138,Economática!$A$3:$AI$823,15,FALSE)=\"-\"),1/0,VLOOKUP($A138,Economática!$A$3:$AI$823,15,FALSE)))","v":274.39},{"$f":"IF($A138=\"\",\"\",IF(OR(VLOOKUP($A138,Economática!$A$3:$AI$823,16,FALSE)=0,VLOOKUP($A138,Economática!$A$3:$AI$823,16,FALSE)=\"-\"),1/0,VLOOKUP($A138,Economática!$A$3:$AI$823,16,FALSE)))","v":400.7},{"$f":"IF($A138=\"\",\"\",IF(OR(VLOOKUP($A138,Economática!$A$3:$AI$823,17,FALSE)=0,VLOOKUP($A138,Economática!$A$3:$AI$823,17,FALSE)=\"-\"),1/0,VLOOKUP($A138,Economática!$A$3:$AI$823,17,FALSE)))","v":578.70000000000005},{"$f":"IF($A138=\"\",\"\",IF(OR(VLOOKUP($A138,Economática!$A$3:$AI$823,18,FALSE)=0,VLOOKUP($A138,Economática!$A$3:$AI$823,18,FALSE)=\"-\"),1/0,VLOOKUP($A138,Economática!$A$3:$AI$823,18,FALSE)))","v":560.44000000000005},{"$f":"IF($A138=\"\",\"\",IF(OR(VLOOKUP($A138,Economática!$A$3:$AI$823,19,FALSE)=0,VLOOKUP($A138,Economática!$A$3:$AI$823,19,FALSE)=\"-\"),1/0,VLOOKUP($A138,Economática!$A$3:$AI$823,19,FALSE)))","v":578.70000000000005},{"$f":"IF($A138=\"\",\"\",VLOOKUP($A138,Economática!$A$3:$AI$823,20,FALSE)/E138)","v":4.5785401205753438},49.263651755621311,1.2396563759208432,13.338312735441507,{"$f":"IF($A138=\"\",\"\",IF(OR(VLOOKUP($A138,Economática!$A$3:$AI$823,21,FALSE)/100=0,VLOOKUP($A138,Economática!$A$3:$AI$823,21,FALSE)/100=\"-\"),1/0,VLOOKUP($A138,Economática!$A$3:$AI$823,21,FALSE)/100))","v":9.2675999999999994E-2},{"$f":"IF($A138=\"\",\"\",IF(OR(VLOOKUP($A138,Economática!$A$3:$AI$823,22,FALSE)/100=0,VLOOKUP($A138,Economática!$A$3:$AI$823,22,FALSE)/100=\"-\"),1/0,VLOOKUP($A138,Economática!$A$3:$AI$823,22,FALSE)/100))","v":0.51853000000000005},{"$f":"IF($A138=\"\",\"\",IF(OR(VLOOKUP($A138,Economática!$A$3:$AI$823,23,FALSE)=0,VLOOKUP($A138,Economática!$A$3:$AI$823,23,FALSE)=\"-\"),1/0,VLOOKUP($A138,Economática!$A$3:$AI$823,23,FALSE)))","v":1520.7},{"$f":"IF($A138=\"\",\"\",IF(OR(VLOOKUP($A138,Economática!$A$3:$AI$823,24,FALSE)=0,VLOOKUP($A138,Economática!$A$3:$AI$823,24,FALSE)=\"-\"),1/0,VLOOKUP($A138,Economática!$A$3:$AI$823,24,FALSE)))","v":1490.9},{"$f":"IF($A138=\"\",\"\",IF(OR(VLOOKUP($A138,Economática!$A$3:$AI$823,25,FALSE)=0,VLOOKUP($A138,Economática!$A$3:$AI$823,25,FALSE)=\"-\"),1/0,VLOOKUP($A138,Economática!$A$3:$AI$823,25,FALSE)))","v":1490.9},{"$f":"IF($A138=\"\",\"\",IF(ISERROR((F138+VLOOKUP($A138,Economática!$A$3:$AI$823,26,FALSE))/Y138),(F138+VLOOKUP($A138,Economática!$A$3:$AI$823,26,FALSE))/Y138,(F138+VLOOKUP($A138,Economática!$A$3:$AI$823,26,FALSE))/Y138))","v":7.3429317861694283},{"$f":"IF($A138=\"\",\"\",IF(OR(-VLOOKUP($A138,Economática!$A$3:$AI$823,27,FALSE)=0,-VLOOKUP($A138,Economática!$A$3:$AI$823,27,FALSE)=\"-\"),1/0,-VLOOKUP($A138,Economática!$A$3:$AI$823,27,FALSE)))","v":443.54},5.7461704288705097E-2,{"$f":"IF($A138=\"\",\"\",IF(OR(VLOOKUP($A138,Economática!$A$3:$AI$823,28,FALSE)=0,VLOOKUP($A138,Economática!$A$3:$AI$823,28,FALSE)=\"-\"),1/0,VLOOKUP($A138,Economática!$A$3:$AI$823,28,FALSE)))","v":0.5},{"$f":"IF($A138=\"\",\"\",IF(OR(VLOOKUP($A138,Economática!$A$3:$AI$823,29,FALSE)=0,VLOOKUP($A138,Economática!$A$3:$AI$823,29,FALSE)=\"-\"),1/0,VLOOKUP($A138,Economática!$A$3:$AI$823,29,FALSE)))","v":56.4},{"$f":"IF($A138=\"\",\"\",IF(OR(VLOOKUP($A138,Economática!$A$3:$AI$823,30,FALSE)/E138=0,VLOOKUP($A138,Economática!$A$3:$AI$823,30,FALSE)/E138=\"-\",VLOOKUP($A138,Economática!$A$3:$AI$823,30,FALSE)/E138<33.33%,VLOOKUP($A138,Economática!$A$3:$AI$823,30,FALSE)/E138>100%),1/0,VLOOKUP($A138,Economática!$A$3:$AI$823,30,FALSE)/E138))","v":{"$error":"#DIV/0!"}},"CSMG3",{"$f":"IF($A138=\"\",\"\",IF(OR(VLOOKUP($A138,Economática!$A$3:$AI$823,25,FALSE)=0,VLOOKUP($A138,Economática!$A$3:$AI$823,25,FALSE)=\"-\"),1/0,VLOOKUP($A138,Economática!$A$3:$AI$823,25,FALSE)))","v":1490.9},{"$f":"CONCATENATE(Economática!B140,\" \",Economática!C140)","v":"Copasa ON"}]
[{"$f":"IF(Economática!AG141=\"\",\"\",Economática!AG141)","v":"KROT3"},{"$f":"IF($A139=\"\",\"\",VLOOKUP(VLOOKUP($A139,Economática!$A$3:$AI$823,6,FALSE),Correção!$B$16:$C$36,2,FALSE))","v":"Outros"},{"$f":"IF(Economática!B141=\"\",\"\",Economática!B141)","v":"Kroton"},{"$f":"IF($A139=\"\",\"\",IF(OR(VLOOKUP($A139,Economática!$A$3:$AI$823,8,FALSE)=0,VLOOKUP($A139,Economática!$A$3:$AI$823,8,FALSE)=\"-\"),1/0,VLOOKUP($A139,Economática!$A$3:$AI$823,8,FALSE)))","v":10.6},{"$f":"IF(A139=\"\",\"\",IF(ISERROR(VLOOKUP(A139,Correção!$B$2:$G$13,9,FALSE)),VLOOKUP($A139,Economática!$A$3:$AI$823,9,FALSE),VLOOKUP(A139,Correção!$B$2:$G$13,9,FALSE)))","v":1629.605},{"$f":"IF($A139=\"\",\"\",Economática!G141)","v":17273.82},{"$f":"IF($A139=\"\",\"\",IF(OR(VLOOKUP($A139,Economática!$A$3:$AI$823,10,FALSE)=0,VLOOKUP($A139,Economática!$A$3:$AI$823,10,FALSE)=\"-\"),1/0,VLOOKUP($A139,Economática!$A$3:$AI$823,10,FALSE)))","v":15902.64},{"$f":"IF($A139=\"\",\"\",IF(OR(VLOOKUP($A139,Economática!$A$3:$AI$823,11,FALSE)=0,VLOOKUP($A139,Economática!$A$3:$AI$823,11,FALSE)=\"-\"),1/0,VLOOKUP($A139,Economática!$A$3:$AI$823,11,FALSE)))","v":5557.75},{"$f":"IF($A139=\"\",\"\",IF(OR(VLOOKUP($A139,Economática!$A$3:$AI$823,12,FALSE)=0,VLOOKUP($A139,Economática!$A$3:$AI$823,12,FALSE)=\"-\"),1/0,VLOOKUP($A139,Economática!$A$3:$AI$823,12,FALSE)))","v":6060.71},{"$f":"IF($A139=\"\",\"\",IF(OR(VLOOKUP($A139,Economática!$A$3:$AI$823,13,FALSE)=0,VLOOKUP($A139,Economática!$A$3:$AI$823,13,FALSE)=\"-\"),1/0,VLOOKUP($A139,Economática!$A$3:$AI$823,13,FALSE)))","v":1882.32},{"$f":"IF($A139=\"\",\"\",IF(OR(VLOOKUP($A139,Economática!$A$3:$AI$823,14,FALSE)=0,VLOOKUP($A139,Economática!$A$3:$AI$823,14,FALSE)=\"-\"),1/0,VLOOKUP($A139,Economática!$A$3:$AI$823,14,FALSE)))","v":475.42},{"$f":"IF($A139=\"\",\"\",IF(OR(VLOOKUP($A139,Economática!$A$3:$AI$823,15,FALSE)=0,VLOOKUP($A139,Economática!$A$3:$AI$823,15,FALSE)=\"-\"),1/0,VLOOKUP($A139,Economática!$A$3:$AI$823,15,FALSE)))","v":942.76},{"$f":"IF($A139=\"\",\"\",IF(OR(VLOOKUP($A139,Economática!$A$3:$AI$823,16,FALSE)=0,VLOOKUP($A139,Economática!$A$3:$AI$823,16,FALSE)=\"-\"),1/0,VLOOKUP($A139,Economática!$A$3:$AI$823,16,FALSE)))","v":1290.58},{"$f":"IF($A139=\"\",\"\",IF(OR(VLOOKUP($A139,Economática!$A$3:$AI$823,17,FALSE)=0,VLOOKUP($A139,Economática!$A$3:$AI$823,17,FALSE)=\"-\"),1/0,VLOOKUP($A139,Economática!$A$3:$AI$823,17,FALSE)))","v":1403.75},{"$f":"IF($A139=\"\",\"\",IF(OR(VLOOKUP($A139,Economática!$A$3:$AI$823,18,FALSE)=0,VLOOKUP($A139,Economática!$A$3:$AI$823,18,FALSE)=\"-\"),1/0,VLOOKUP($A139,Economática!$A$3:$AI$823,18,FALSE)))","v":1882.32},{"$f":"IF($A139=\"\",\"\",IF(OR(VLOOKUP($A139,Economática!$A$3:$AI$823,19,FALSE)=0,VLOOKUP($A139,Economática!$A$3:$AI$823,19,FALSE)=\"-\"),1/0,VLOOKUP($A139,Economática!$A$3:$AI$823,19,FALSE)))","v":1403.75},{"$f":"IF($A139=\"\",\"\",VLOOKUP($A139,Economática!$A$3:$AI$823,20,FALSE)/E139)","v":0.86140506441745079},9.7585856695334137,1.0862229793292184,12.305476758682103,{"$f":"IF($A139=\"\",\"\",IF(OR(VLOOKUP($A139,Economática!$A$3:$AI$823,21,FALSE)/100=0,VLOOKUP($A139,Economática!$A$3:$AI$823,21,FALSE)/100=\"-\"),1/0,VLOOKUP($A139,Economática!$A$3:$AI$823,21,FALSE)/100))","v":9.158899999999999E-2},{"$f":"IF($A139=\"\",\"\",IF(OR(VLOOKUP($A139,Economática!$A$3:$AI$823,22,FALSE)/100=0,VLOOKUP($A139,Economática!$A$3:$AI$823,22,FALSE)/100=\"-\"),1/0,VLOOKUP($A139,Economática!$A$3:$AI$823,22,FALSE)/100))","v":0.31860299999999997},{"$f":"IF($A139=\"\",\"\",IF(OR(VLOOKUP($A139,Economática!$A$3:$AI$823,23,FALSE)=0,VLOOKUP($A139,Economática!$A$3:$AI$823,23,FALSE)=\"-\"),1/0,VLOOKUP($A139,Economática!$A$3:$AI$823,23,FALSE)))","v":2111.1999999999998},{"$f":"IF($A139=\"\",\"\",IF(OR(VLOOKUP($A139,Economática!$A$3:$AI$823,24,FALSE)=0,VLOOKUP($A139,Economática!$A$3:$AI$823,24,FALSE)=\"-\"),1/0,VLOOKUP($A139,Economática!$A$3:$AI$823,24,FALSE)))","v":1721.7},{"$f":"IF($A139=\"\",\"\",IF(OR(VLOOKUP($A139,Economática!$A$3:$AI$823,25,FALSE)=0,VLOOKUP($A139,Economática!$A$3:$AI$823,25,FALSE)=\"-\"),1/0,VLOOKUP($A139,Economática!$A$3:$AI$823,25,FALSE)))","v":1721.7},{"$f":"IF($A139=\"\",\"\",IF(ISERROR((F139+VLOOKUP($A139,Economática!$A$3:$AI$823,26,FALSE))/Y139),(F139+VLOOKUP($A139,Economática!$A$3:$AI$823,26,FALSE))/Y139,(F139+VLOOKUP($A139,Economática!$A$3:$AI$823,26,FALSE))/Y139))","v":12.995089736887959},{"$f":"IF($A139=\"\",\"\",IF(OR(-VLOOKUP($A139,Economática!$A$3:$AI$823,27,FALSE)=0,-VLOOKUP($A139,Economática!$A$3:$AI$823,27,FALSE)=\"-\"),1/0,-VLOOKUP($A139,Economática!$A$3:$AI$823,27,FALSE)))","v":638.87},3.6984870746598029E-2,{"$f":"IF($A139=\"\",\"\",IF(OR(VLOOKUP($A139,Economática!$A$3:$AI$823,28,FALSE)=0,VLOOKUP($A139,Economática!$A$3:$AI$823,28,FALSE)=\"-\"),1/0,VLOOKUP($A139,Economática!$A$3:$AI$823,28,FALSE)))","v":-3.4},{"$f":"IF($A139=\"\",\"\",IF(OR(VLOOKUP($A139,Economática!$A$3:$AI$823,29,FALSE)=0,VLOOKUP($A139,Economática!$A$3:$AI$823,29,FALSE)=\"-\"),1/0,VLOOKUP($A139,Economática!$A$3:$AI$823,29,FALSE)))","v":-40.4},{"$f":"IF($A139=\"\",\"\",IF(OR(VLOOKUP($A139,Economática!$A$3:$AI$823,30,FALSE)/E139=0,VLOOKUP($A139,Economática!$A$3:$AI$823,30,FALSE)/E139=\"-\",VLOOKUP($A139,Economática!$A$3:$AI$823,30,FALSE)/E139<33.33%,VLOOKUP($A139,Economática!$A$3:$AI$823,30,FALSE)/E139>100%),1/0,VLOOKUP($A139,Economática!$A$3:$AI$823,30,FALSE)/E139))","v":{"$error":"#DIV/0!"}},"KROT3",{"$f":"IF($A139=\"\",\"\",IF(OR(VLOOKUP($A139,Economática!$A$3:$AI$823,25,FALSE)=0,VLOOKUP($A139,Economática!$A$3:$AI$823,25,FALSE)=\"-\"),1/0,VLOOKUP($A139,Economática!$A$3:$AI$823,25,FALSE)))","v":1721.7},{"$f":"CONCATENATE(Economática!B141,\" \",Economática!C141)","v":"Kroton ON"}]
[{"$f":"IF(Economática!AG142=\"\",\"\",Economática!AG142)","v":"DTEX3"},{"$f":"IF($A140=\"\",\"\",VLOOKUP(VLOOKUP($A140,Economática!$A$3:$AI$823,6,FALSE),Correção!$B$16:$C$36,2,FALSE))","v":"Outros"},{"$f":"IF(Economática!B142=\"\",\"\",Economática!B142)","v":"Duratex"},{"$f":"IF($A140=\"\",\"\",IF(OR(VLOOKUP($A140,Economática!$A$3:$AI$823,8,FALSE)=0,VLOOKUP($A140,Economática!$A$3:$AI$823,8,FALSE)=\"-\"),1/0,VLOOKUP($A140,Economática!$A$3:$AI$823,8,FALSE)))","v":10.97},{"$f":"IF(A140=\"\",\"\",IF(ISERROR(VLOOKUP(A140,Correção!$B$2:$G$13,9,FALSE)),VLOOKUP($A140,Economática!$A$3:$AI$823,9,FALSE),VLOOKUP(A140,Correção!$B$2:$G$13,9,FALSE)))","v":689.46900000000005},{"$f":"IF($A140=\"\",\"\",Economática!G142)","v":7563.47},{"$f":"IF($A140=\"\",\"\",IF(OR(VLOOKUP($A140,Economática!$A$3:$AI$823,10,FALSE)=0,VLOOKUP($A140,Economática!$A$3:$AI$823,10,FALSE)=\"-\"),1/0,VLOOKUP($A140,Economática!$A$3:$AI$823,10,FALSE)))","v":4633.7},{"$f":"IF($A140=\"\",\"\",IF(OR(VLOOKUP($A140,Economática!$A$3:$AI$823,11,FALSE)=0,VLOOKUP($A140,Economática!$A$3:$AI$823,11,FALSE)=\"-\"),1/0,VLOOKUP($A140,Economática!$A$3:$AI$823,11,FALSE)))","v":3990.87},{"$f":"IF($A140=\"\",\"\",IF(OR(VLOOKUP($A140,Economática!$A$3:$AI$823,12,FALSE)=0,VLOOKUP($A140,Economática!$A$3:$AI$823,12,FALSE)=\"-\"),1/0,VLOOKUP($A140,Economática!$A$3:$AI$823,12,FALSE)))","v":4949.3599999999997},{"$f":"IF($A140=\"\",\"\",IF(OR(VLOOKUP($A140,Economática!$A$3:$AI$823,13,FALSE)=0,VLOOKUP($A140,Economática!$A$3:$AI$823,13,FALSE)=\"-\"),1/0,VLOOKUP($A140,Economática!$A$3:$AI$823,13,FALSE)))","v":184.88},{"$f":"IF($A140=\"\",\"\",IF(OR(VLOOKUP($A140,Economática!$A$3:$AI$823,14,FALSE)=0,VLOOKUP($A140,Economática!$A$3:$AI$823,14,FALSE)=\"-\"),1/0,VLOOKUP($A140,Economática!$A$3:$AI$823,14,FALSE)))","v":30.79},{"$f":"IF($A140=\"\",\"\",IF(OR(VLOOKUP($A140,Economática!$A$3:$AI$823,15,FALSE)=0,VLOOKUP($A140,Economática!$A$3:$AI$823,15,FALSE)=\"-\"),1/0,VLOOKUP($A140,Economática!$A$3:$AI$823,15,FALSE)))","v":197.32},{"$f":"IF($A140=\"\",\"\",IF(OR(VLOOKUP($A140,Economática!$A$3:$AI$823,16,FALSE)=0,VLOOKUP($A140,Economática!$A$3:$AI$823,16,FALSE)=\"-\"),1/0,VLOOKUP($A140,Economática!$A$3:$AI$823,16,FALSE)))","v":573.59},{"$f":"IF($A140=\"\",\"\",IF(OR(VLOOKUP($A140,Economática!$A$3:$AI$823,17,FALSE)=0,VLOOKUP($A140,Economática!$A$3:$AI$823,17,FALSE)=\"-\"),1/0,VLOOKUP($A140,Economática!$A$3:$AI$823,17,FALSE)))","v":431.57},{"$f":"IF($A140=\"\",\"\",IF(OR(VLOOKUP($A140,Economática!$A$3:$AI$823,18,FALSE)=0,VLOOKUP($A140,Economática!$A$3:$AI$823,18,FALSE)=\"-\"),1/0,VLOOKUP($A140,Economática!$A$3:$AI$823,18,FALSE)))","v":184.88},{"$f":"IF($A140=\"\",\"\",IF(OR(VLOOKUP($A140,Economática!$A$3:$AI$823,19,FALSE)=0,VLOOKUP($A140,Economática!$A$3:$AI$823,19,FALSE)=\"-\"),1/0,VLOOKUP($A140,Economática!$A$3:$AI$823,19,FALSE)))","v":431.57},{"$f":"IF($A140=\"\",\"\",VLOOKUP($A140,Economática!$A$3:$AI$823,20,FALSE)/E140)","v":0.62594547398070099},6.720679247362825,1.6322754882707127,17.525488171096235,{"$f":"IF($A140=\"\",\"\",IF(OR(VLOOKUP($A140,Economática!$A$3:$AI$823,21,FALSE)/100=0,VLOOKUP($A140,Economática!$A$3:$AI$823,21,FALSE)/100=\"-\"),1/0,VLOOKUP($A140,Economática!$A$3:$AI$823,21,FALSE)/100))","v":9.1553999999999996E-2},{"$f":"IF($A140=\"\",\"\",IF(OR(VLOOKUP($A140,Economática!$A$3:$AI$823,22,FALSE)/100=0,VLOOKUP($A140,Economática!$A$3:$AI$823,22,FALSE)/100=\"-\"),1/0,VLOOKUP($A140,Economática!$A$3:$AI$823,22,FALSE)/100))","v":0.36686300000000005},{"$f":"IF($A140=\"\",\"\",IF(OR(VLOOKUP($A140,Economática!$A$3:$AI$823,23,FALSE)=0,VLOOKUP($A140,Economática!$A$3:$AI$823,23,FALSE)=\"-\"),1/0,VLOOKUP($A140,Economática!$A$3:$AI$823,23,FALSE)))","v":986.8},{"$f":"IF($A140=\"\",\"\",IF(OR(VLOOKUP($A140,Economática!$A$3:$AI$823,24,FALSE)=0,VLOOKUP($A140,Economática!$A$3:$AI$823,24,FALSE)=\"-\"),1/0,VLOOKUP($A140,Economática!$A$3:$AI$823,24,FALSE)))","v":1546},{"$f":"IF($A140=\"\",\"\",IF(OR(VLOOKUP($A140,Economática!$A$3:$AI$823,25,FALSE)=0,VLOOKUP($A140,Economática!$A$3:$AI$823,25,FALSE)=\"-\"),1/0,VLOOKUP($A140,Economática!$A$3:$AI$823,25,FALSE)))","v":1546},{"$f":"IF($A140=\"\",\"\",IF(ISERROR((F140+VLOOKUP($A140,Economática!$A$3:$AI$823,26,FALSE))/Y140),(F140+VLOOKUP($A140,Economática!$A$3:$AI$823,26,FALSE))/Y140,(F140+VLOOKUP($A140,Economática!$A$3:$AI$823,26,FALSE))/Y140))","v":5.9921300129366113},{"$f":"IF($A140=\"\",\"\",IF(OR(-VLOOKUP($A140,Economática!$A$3:$AI$823,27,FALSE)=0,-VLOOKUP($A140,Economática!$A$3:$AI$823,27,FALSE)=\"-\"),1/0,-VLOOKUP($A140,Economática!$A$3:$AI$823,27,FALSE)))","v":60.77},8.0346719164616238E-3,{"$f":"IF($A140=\"\",\"\",IF(OR(VLOOKUP($A140,Economática!$A$3:$AI$823,28,FALSE)=0,VLOOKUP($A140,Economática!$A$3:$AI$823,28,FALSE)=\"-\"),1/0,VLOOKUP($A140,Economática!$A$3:$AI$823,28,FALSE)))","v":-7},{"$f":"IF($A140=\"\",\"\",IF(OR(VLOOKUP($A140,Economática!$A$3:$AI$823,29,FALSE)=0,VLOOKUP($A140,Economática!$A$3:$AI$823,29,FALSE)=\"-\"),1/0,VLOOKUP($A140,Economática!$A$3:$AI$823,29,FALSE)))","v":27.7},{"$f":"IF($A140=\"\",\"\",IF(OR(VLOOKUP($A140,Economática!$A$3:$AI$823,30,FALSE)/E140=0,VLOOKUP($A140,Economática!$A$3:$AI$823,30,FALSE)/E140=\"-\",VLOOKUP($A140,Economática!$A$3:$AI$823,30,FALSE)/E140<33.33%,VLOOKUP($A140,Economática!$A$3:$AI$823,30,FALSE)/E140>100%),1/0,VLOOKUP($A140,Economática!$A$3:$AI$823,30,FALSE)/E140))","v":{"$error":"#DIV/0!"}},"DTEX3",{"$f":"IF($A140=\"\",\"\",IF(OR(VLOOKUP($A140,Economática!$A$3:$AI$823,25,FALSE)=0,VLOOKUP($A140,Economática!$A$3:$AI$823,25,FALSE)=\"-\"),1/0,VLOOKUP($A140,Economática!$A$3:$AI$823,25,FALSE)))","v":1546},{"$f":"CONCATENATE(Economática!B142,\" \",Economática!C142)","v":"Duratex ON"}]
[{"$f":"IF(Economática!AG143=\"\",\"\",Economática!AG143)","v":"MULT3"},{"$f":"IF($A141=\"\",\"\",VLOOKUP(VLOOKUP($A141,Economática!$A$3:$AI$823,6,FALSE),Correção!$B$16:$C$36,2,FALSE))","v":"Outros"},{"$f":"IF(Economática!B143=\"\",\"\",Economática!B143)","v":"Multiplan"},{"$f":"IF($A141=\"\",\"\",IF(OR(VLOOKUP($A141,Economática!$A$3:$AI$823,8,FALSE)=0,VLOOKUP($A141,Economática!$A$3:$AI$823,8,FALSE)=\"-\"),1/0,VLOOKUP($A141,Economática!$A$3:$AI$823,8,FALSE)))","v":23.39},{"$f":"IF(A141=\"\",\"\",IF(ISERROR(VLOOKUP(A141,Correção!$B$2:$G$13,9,FALSE)),VLOOKUP($A141,Economática!$A$3:$AI$823,9,FALSE),VLOOKUP(A141,Correção!$B$2:$G$13,9,FALSE)))","v":594.39700000000005},{"$f":"IF($A141=\"\",\"\",Economática!G143)","v":13902.95},{"$f":"IF($A141=\"\",\"\",IF(OR(VLOOKUP($A141,Economática!$A$3:$AI$823,10,FALSE)=0,VLOOKUP($A141,Economática!$A$3:$AI$823,10,FALSE)=\"-\"),1/0,VLOOKUP($A141,Economática!$A$3:$AI$823,10,FALSE)))","v":5335.98},{"$f":"IF($A141=\"\",\"\",IF(OR(VLOOKUP($A141,Economática!$A$3:$AI$823,11,FALSE)=0,VLOOKUP($A141,Economática!$A$3:$AI$823,11,FALSE)=\"-\"),1/0,VLOOKUP($A141,Economática!$A$3:$AI$823,11,FALSE)))","v":1156.3800000000001},{"$f":"IF($A141=\"\",\"\",IF(OR(VLOOKUP($A141,Economática!$A$3:$AI$823,12,FALSE)=0,VLOOKUP($A141,Economática!$A$3:$AI$823,12,FALSE)=\"-\"),1/0,VLOOKUP($A141,Economática!$A$3:$AI$823,12,FALSE)))","v":1229.1400000000001},{"$f":"IF($A141=\"\",\"\",IF(OR(VLOOKUP($A141,Economática!$A$3:$AI$823,13,FALSE)=0,VLOOKUP($A141,Economática!$A$3:$AI$823,13,FALSE)=\"-\"),1/0,VLOOKUP($A141,Economática!$A$3:$AI$823,13,FALSE)))","v":369.4},{"$f":"IF($A141=\"\",\"\",IF(OR(VLOOKUP($A141,Economática!$A$3:$AI$823,14,FALSE)=0,VLOOKUP($A141,Economática!$A$3:$AI$823,14,FALSE)=\"-\"),1/0,VLOOKUP($A141,Economática!$A$3:$AI$823,14,FALSE)))","v":98.13},{"$f":"IF($A141=\"\",\"\",IF(OR(VLOOKUP($A141,Economática!$A$3:$AI$823,15,FALSE)=0,VLOOKUP($A141,Economática!$A$3:$AI$823,15,FALSE)=\"-\"),1/0,VLOOKUP($A141,Economática!$A$3:$AI$823,15,FALSE)))","v":243.81},{"$f":"IF($A141=\"\",\"\",IF(OR(VLOOKUP($A141,Economática!$A$3:$AI$823,16,FALSE)=0,VLOOKUP($A141,Economática!$A$3:$AI$823,16,FALSE)=\"-\"),1/0,VLOOKUP($A141,Economática!$A$3:$AI$823,16,FALSE)))","v":360.26},{"$f":"IF($A141=\"\",\"\",IF(OR(VLOOKUP($A141,Economática!$A$3:$AI$823,17,FALSE)=0,VLOOKUP($A141,Economática!$A$3:$AI$823,17,FALSE)=\"-\"),1/0,VLOOKUP($A141,Economática!$A$3:$AI$823,17,FALSE)))","v":472.95},{"$f":"IF($A141=\"\",\"\",IF(OR(VLOOKUP($A141,Economática!$A$3:$AI$823,18,FALSE)=0,VLOOKUP($A141,Economática!$A$3:$AI$823,18,FALSE)=\"-\"),1/0,VLOOKUP($A141,Economática!$A$3:$AI$823,18,FALSE)))","v":369.4},{"$f":"IF($A141=\"\",\"\",IF(OR(VLOOKUP($A141,Economática!$A$3:$AI$823,19,FALSE)=0,VLOOKUP($A141,Economática!$A$3:$AI$823,19,FALSE)=\"-\"),1/0,VLOOKUP($A141,Economática!$A$3:$AI$823,19,FALSE)))","v":472.95},{"$f":"IF($A141=\"\",\"\",VLOOKUP($A141,Economática!$A$3:$AI$823,20,FALSE)/E141)","v":0.79568032813086198},8.9771314458181983,2.605509359105544,29.396227571624909,{"$f":"IF($A141=\"\",\"\",IF(OR(VLOOKUP($A141,Economática!$A$3:$AI$823,21,FALSE)/100=0,VLOOKUP($A141,Economática!$A$3:$AI$823,21,FALSE)/100=\"-\"),1/0,VLOOKUP($A141,Economática!$A$3:$AI$823,21,FALSE)/100))","v":9.0489E-2},{"$f":"IF($A141=\"\",\"\",IF(OR(VLOOKUP($A141,Economática!$A$3:$AI$823,22,FALSE)/100=0,VLOOKUP($A141,Economática!$A$3:$AI$823,22,FALSE)/100=\"-\"),1/0,VLOOKUP($A141,Economática!$A$3:$AI$823,22,FALSE)/100))","v":0.36582500000000001},{"$f":"IF($A141=\"\",\"\",IF(OR(VLOOKUP($A141,Economática!$A$3:$AI$823,23,FALSE)=0,VLOOKUP($A141,Economática!$A$3:$AI$823,23,FALSE)=\"-\"),1/0,VLOOKUP($A141,Economática!$A$3:$AI$823,23,FALSE)))","v":818.1},{"$f":"IF($A141=\"\",\"\",IF(OR(VLOOKUP($A141,Economática!$A$3:$AI$823,24,FALSE)=0,VLOOKUP($A141,Economática!$A$3:$AI$823,24,FALSE)=\"-\"),1/0,VLOOKUP($A141,Economática!$A$3:$AI$823,24,FALSE)))","v":939.2},{"$f":"IF($A141=\"\",\"\",IF(OR(VLOOKUP($A141,Economática!$A$3:$AI$823,25,FALSE)=0,VLOOKUP($A141,Economática!$A$3:$AI$823,25,FALSE)=\"-\"),1/0,VLOOKUP($A141,Economática!$A$3:$AI$823,25,FALSE)))","v":939.2},{"$f":"IF($A141=\"\",\"\",IF(ISERROR((F141+VLOOKUP($A141,Economática!$A$3:$AI$823,26,FALSE))/Y141),(F141+VLOOKUP($A141,Economática!$A$3:$AI$823,26,FALSE))/Y141,(F141+VLOOKUP($A141,Economática!$A$3:$AI$823,26,FALSE))/Y141))","v":16.887684199318567},{"$f":"IF($A141=\"\",\"\",IF(OR(-VLOOKUP($A141,Economática!$A$3:$AI$823,27,FALSE)=0,-VLOOKUP($A141,Economática!$A$3:$AI$823,27,FALSE)=\"-\"),1/0,-VLOOKUP($A141,Economática!$A$3:$AI$823,27,FALSE)))","v":301.07},2.1655116360196933E-2,{"$f":"IF($A141=\"\",\"\",IF(OR(VLOOKUP($A141,Economática!$A$3:$AI$823,28,FALSE)=0,VLOOKUP($A141,Economática!$A$3:$AI$823,28,FALSE)=\"-\"),1/0,VLOOKUP($A141,Economática!$A$3:$AI$823,28,FALSE)))","v":-7.1},{"$f":"IF($A141=\"\",\"\",IF(OR(VLOOKUP($A141,Economática!$A$3:$AI$823,29,FALSE)=0,VLOOKUP($A141,Economática!$A$3:$AI$823,29,FALSE)=\"-\"),1/0,VLOOKUP($A141,Economática!$A$3:$AI$823,29,FALSE)))","v":1.2},{"$f":"IF($A141=\"\",\"\",IF(OR(VLOOKUP($A141,Economática!$A$3:$AI$823,30,FALSE)/E141=0,VLOOKUP($A141,Economática!$A$3:$AI$823,30,FALSE)/E141=\"-\",VLOOKUP($A141,Economática!$A$3:$AI$823,30,FALSE)/E141<33.33%,VLOOKUP($A141,Economática!$A$3:$AI$823,30,FALSE)/E141>100%),1/0,VLOOKUP($A141,Economática!$A$3:$AI$823,30,FALSE)/E141))","v":0.95087963095372285},"MULT3",{"$f":"IF($A141=\"\",\"\",IF(OR(VLOOKUP($A141,Economática!$A$3:$AI$823,25,FALSE)=0,VLOOKUP($A141,Economática!$A$3:$AI$823,25,FALSE)=\"-\"),1/0,VLOOKUP($A141,Economática!$A$3:$AI$823,25,FALSE)))","v":939.2},{"$f":"CONCATENATE(Economática!B143,\" \",Economática!C143)","v":"Multiplan ON"}]
[{"$f":"IF(Economática!AG144=\"\",\"\",Economática!AG144)","v":"JPSA4"},{"$f":"IF($A142=\"\",\"\",VLOOKUP(VLOOKUP($A142,Economática!$A$3:$AI$823,6,FALSE),Correção!$B$16:$C$36,2,FALSE))","v":"Outros"},{"$f":"IF(Economática!B144=\"\",\"\",Economática!B144)","v":"Jereissati"},{"$f":"IF($A142=\"\",\"\",IF(OR(VLOOKUP($A142,Economática!$A$3:$AI$823,8,FALSE)=0,VLOOKUP($A142,Economática!$A$3:$AI$823,8,FALSE)=\"-\"),1/0,VLOOKUP($A142,Economática!$A$3:$AI$823,8,FALSE)))","v":{"$error":"#DIV/0!"}},{"$f":"IF(A142=\"\",\"\",IF(ISERROR(VLOOKUP(A142,Correção!$B$2:$G$13,9,FALSE)),VLOOKUP($A142,Economática!$A$3:$AI$823,9,FALSE),VLOOKUP(A142,Correção!$B$2:$G$13,9,FALSE)))","v":87.888999999999996},{"$f":"IF($A142=\"\",\"\",Economática!G144)","v":2130.4299999999998},{"$f":"IF($A142=\"\",\"\",IF(OR(VLOOKUP($A142,Economática!$A$3:$AI$823,10,FALSE)=0,VLOOKUP($A142,Economática!$A$3:$AI$823,10,FALSE)=\"-\"),1/0,VLOOKUP($A142,Economática!$A$3:$AI$823,10,FALSE)))","v":1446.32},{"$f":"IF($A142=\"\",\"\",IF(OR(VLOOKUP($A142,Economática!$A$3:$AI$823,11,FALSE)=0,VLOOKUP($A142,Economática!$A$3:$AI$823,11,FALSE)=\"-\"),1/0,VLOOKUP($A142,Economática!$A$3:$AI$823,11,FALSE)))","v":693.24},{"$f":"IF($A142=\"\",\"\",IF(OR(VLOOKUP($A142,Economática!$A$3:$AI$823,12,FALSE)=0,VLOOKUP($A142,Economática!$A$3:$AI$823,12,FALSE)=\"-\"),1/0,VLOOKUP($A142,Economática!$A$3:$AI$823,12,FALSE)))","v":722.61},{"$f":"IF($A142=\"\",\"\",IF(OR(VLOOKUP($A142,Economática!$A$3:$AI$823,13,FALSE)=0,VLOOKUP($A142,Economática!$A$3:$AI$823,13,FALSE)=\"-\"),1/0,VLOOKUP($A142,Economática!$A$3:$AI$823,13,FALSE)))","v":76.900000000000006},{"$f":"IF($A142=\"\",\"\",IF(OR(VLOOKUP($A142,Economática!$A$3:$AI$823,14,FALSE)=0,VLOOKUP($A142,Economática!$A$3:$AI$823,14,FALSE)=\"-\"),1/0,VLOOKUP($A142,Economática!$A$3:$AI$823,14,FALSE)))","v":22.9},{"$f":"IF($A142=\"\",\"\",IF(OR(VLOOKUP($A142,Economática!$A$3:$AI$823,15,FALSE)=0,VLOOKUP($A142,Economática!$A$3:$AI$823,15,FALSE)=\"-\"),1/0,VLOOKUP($A142,Economática!$A$3:$AI$823,15,FALSE)))","v":47.07},{"$f":"IF($A142=\"\",\"\",IF(OR(VLOOKUP($A142,Economática!$A$3:$AI$823,16,FALSE)=0,VLOOKUP($A142,Economática!$A$3:$AI$823,16,FALSE)=\"-\"),1/0,VLOOKUP($A142,Economática!$A$3:$AI$823,16,FALSE)))","v":80.73},{"$f":"IF($A142=\"\",\"\",IF(OR(VLOOKUP($A142,Economática!$A$3:$AI$823,17,FALSE)=0,VLOOKUP($A142,Economática!$A$3:$AI$823,17,FALSE)=\"-\"),1/0,VLOOKUP($A142,Economática!$A$3:$AI$823,17,FALSE)))","v":110.15},{"$f":"IF($A142=\"\",\"\",IF(OR(VLOOKUP($A142,Economática!$A$3:$AI$823,18,FALSE)=0,VLOOKUP($A142,Economática!$A$3:$AI$823,18,FALSE)=\"-\"),1/0,VLOOKUP($A142,Economática!$A$3:$AI$823,18,FALSE)))","v":76.900000000000006},{"$f":"IF($A142=\"\",\"\",IF(OR(VLOOKUP($A142,Economática!$A$3:$AI$823,19,FALSE)=0,VLOOKUP($A142,Economática!$A$3:$AI$823,19,FALSE)=\"-\"),1/0,VLOOKUP($A142,Economática!$A$3:$AI$823,19,FALSE)))","v":110.15},{"$f":"IF($A142=\"\",\"\",VLOOKUP($A142,Economática!$A$3:$AI$823,20,FALSE)/E142)","v":1.2532853940766195},16.456211812627291,{"$error":"#DIV/0!"},{"$error":"#DIV/0!"},{"$f":"IF($A142=\"\",\"\",IF(OR(VLOOKUP($A142,Economática!$A$3:$AI$823,21,FALSE)/100=0,VLOOKUP($A142,Economática!$A$3:$AI$823,21,FALSE)/100=\"-\"),1/0,VLOOKUP($A142,Economática!$A$3:$AI$823,21,FALSE)/100))","v":8.5086999999999996E-2},{"$f":"IF($A142=\"\",\"\",IF(OR(VLOOKUP($A142,Economática!$A$3:$AI$823,22,FALSE)/100=0,VLOOKUP($A142,Economática!$A$3:$AI$823,22,FALSE)/100=\"-\"),1/0,VLOOKUP($A142,Economática!$A$3:$AI$823,22,FALSE)/100))","v":0.58304},{"$f":"IF($A142=\"\",\"\",IF(OR(VLOOKUP($A142,Economática!$A$3:$AI$823,23,FALSE)=0,VLOOKUP($A142,Economática!$A$3:$AI$823,23,FALSE)=\"-\"),1/0,VLOOKUP($A142,Economática!$A$3:$AI$823,23,FALSE)))","v":510.1},{"$f":"IF($A142=\"\",\"\",IF(OR(VLOOKUP($A142,Economática!$A$3:$AI$823,24,FALSE)=0,VLOOKUP($A142,Economática!$A$3:$AI$823,24,FALSE)=\"-\"),1/0,VLOOKUP($A142,Economática!$A$3:$AI$823,24,FALSE)))","v":544.70000000000005},{"$f":"IF($A142=\"\",\"\",IF(OR(VLOOKUP($A142,Economática!$A$3:$AI$823,25,FALSE)=0,VLOOKUP($A142,Economática!$A$3:$AI$823,25,FALSE)=\"-\"),1/0,VLOOKUP($A142,Economática!$A$3:$AI$823,25,FALSE)))","v":544.70000000000005},{"$f":"IF($A142=\"\",\"\",IF(ISERROR((F142+VLOOKUP($A142,Economática!$A$3:$AI$823,26,FALSE))/Y142),(F142+VLOOKUP($A142,Economática!$A$3:$AI$823,26,FALSE))/Y142,(F142+VLOOKUP($A142,Economática!$A$3:$AI$823,26,FALSE))/Y142))","v":6.9671966219937573},{"$f":"IF($A142=\"\",\"\",IF(OR(-VLOOKUP($A142,Economática!$A$3:$AI$823,27,FALSE)=0,-VLOOKUP($A142,Economática!$A$3:$AI$823,27,FALSE)=\"-\"),1/0,-VLOOKUP($A142,Economática!$A$3:$AI$823,27,FALSE)))","v":34.9},1.6381669428237492E-2,{"$f":"IF($A142=\"\",\"\",IF(OR(VLOOKUP($A142,Economática!$A$3:$AI$823,28,FALSE)=0,VLOOKUP($A142,Economática!$A$3:$AI$823,28,FALSE)=\"-\"),1/0,VLOOKUP($A142,Economática!$A$3:$AI$823,28,FALSE)))","v":{"$error":"#DIV/0!"}},{"$f":"IF($A142=\"\",\"\",IF(OR(VLOOKUP($A142,Economática!$A$3:$AI$823,29,FALSE)=0,VLOOKUP($A142,Economática!$A$3:$AI$823,29,FALSE)=\"-\"),1/0,VLOOKUP($A142,Economática!$A$3:$AI$823,29,FALSE)))","v":12.7},{"$f":"IF($A142=\"\",\"\",IF(OR(VLOOKUP($A142,Economática!$A$3:$AI$823,30,FALSE)/E142=0,VLOOKUP($A142,Economática!$A$3:$AI$823,30,FALSE)/E142=\"-\",VLOOKUP($A142,Economática!$A$3:$AI$823,30,FALSE)/E142<33.33%,VLOOKUP($A142,Economática!$A$3:$AI$823,30,FALSE)/E142>100%),1/0,VLOOKUP($A142,Economática!$A$3:$AI$823,30,FALSE)/E142))","v":{"$error":"#DIV/0!"}},"JPSA4",{"$f":"IF($A142=\"\",\"\",IF(OR(VLOOKUP($A142,Economática!$A$3:$AI$823,25,FALSE)=0,VLOOKUP($A142,Economática!$A$3:$AI$823,25,FALSE)=\"-\"),1/0,VLOOKUP($A142,Economática!$A$3:$AI$823,25,FALSE)))","v":544.70000000000005},{"$f":"CONCATENATE(Economática!B144,\" \",Economática!C144)","v":"Jereissati PN"}]
[{"$f":"IF(Economática!AG145=\"\",\"\",Economática!AG145)","v":"BKBR3"},{"$f":"IF($A143=\"\",\"\",VLOOKUP(VLOOKUP($A143,Economática!$A$3:$AI$823,6,FALSE),Correção!$B$16:$C$36,2,FALSE))","v":"Outros"},{"$f":"IF(Economática!B145=\"\",\"\",Economática!B145)","v":"Bk Brasil"},{"$f":"IF($A143=\"\",\"\",IF(OR(VLOOKUP($A143,Economática!$A$3:$AI$823,8,FALSE)=0,VLOOKUP($A143,Economática!$A$3:$AI$823,8,FALSE)=\"-\"),1/0,VLOOKUP($A143,Economática!$A$3:$AI$823,8,FALSE)))","v":22.11},{"$f":"IF(A143=\"\",\"\",IF(ISERROR(VLOOKUP(A143,Correção!$B$2:$G$13,9,FALSE)),VLOOKUP($A143,Economática!$A$3:$AI$823,9,FALSE),VLOOKUP(A143,Correção!$B$2:$G$13,9,FALSE)))","v":227.07499999999999},{"$f":"IF($A143=\"\",\"\",Economática!G145)","v":5020.63},{"$f":"IF($A143=\"\",\"\",IF(OR(VLOOKUP($A143,Economática!$A$3:$AI$823,10,FALSE)=0,VLOOKUP($A143,Economática!$A$3:$AI$823,10,FALSE)=\"-\"),1/0,VLOOKUP($A143,Economática!$A$3:$AI$823,10,FALSE)))","v":1716.96},{"$f":"IF($A143=\"\",\"\",IF(OR(VLOOKUP($A143,Economática!$A$3:$AI$823,11,FALSE)=0,VLOOKUP($A143,Economática!$A$3:$AI$823,11,FALSE)=\"-\"),1/0,VLOOKUP($A143,Economática!$A$3:$AI$823,11,FALSE)))","v":1783.84},{"$f":"IF($A143=\"\",\"\",IF(OR(VLOOKUP($A143,Economática!$A$3:$AI$823,12,FALSE)=0,VLOOKUP($A143,Economática!$A$3:$AI$823,12,FALSE)=\"-\"),1/0,VLOOKUP($A143,Economática!$A$3:$AI$823,12,FALSE)))","v":2348.33},{"$f":"IF($A143=\"\",\"\",IF(OR(VLOOKUP($A143,Economática!$A$3:$AI$823,13,FALSE)=0,VLOOKUP($A143,Economática!$A$3:$AI$823,13,FALSE)=\"-\"),1/0,VLOOKUP($A143,Economática!$A$3:$AI$823,13,FALSE)))","v":3.82},{"$f":"IF($A143=\"\",\"\",IF(OR(VLOOKUP($A143,Economática!$A$3:$AI$823,14,FALSE)=0,VLOOKUP($A143,Economática!$A$3:$AI$823,14,FALSE)=\"-\"),1/0,VLOOKUP($A143,Economática!$A$3:$AI$823,14,FALSE)))","v":8.81},{"$f":"IF($A143=\"\",\"\",IF(OR(VLOOKUP($A143,Economática!$A$3:$AI$823,15,FALSE)=0,VLOOKUP($A143,Economática!$A$3:$AI$823,15,FALSE)=\"-\"),1/0,VLOOKUP($A143,Economática!$A$3:$AI$823,15,FALSE)))","v":17.38},{"$f":"IF($A143=\"\",\"\",IF(OR(VLOOKUP($A143,Economática!$A$3:$AI$823,16,FALSE)=0,VLOOKUP($A143,Economática!$A$3:$AI$823,16,FALSE)=\"-\"),1/0,VLOOKUP($A143,Economática!$A$3:$AI$823,16,FALSE)))","v":44.41},{"$f":"IF($A143=\"\",\"\",IF(OR(VLOOKUP($A143,Economática!$A$3:$AI$823,17,FALSE)=0,VLOOKUP($A143,Economática!$A$3:$AI$823,17,FALSE)=\"-\"),1/0,VLOOKUP($A143,Economática!$A$3:$AI$823,17,FALSE)))","v":128.04},{"$f":"IF($A143=\"\",\"\",IF(OR(VLOOKUP($A143,Economática!$A$3:$AI$823,18,FALSE)=0,VLOOKUP($A143,Economática!$A$3:$AI$823,18,FALSE)=\"-\"),1/0,VLOOKUP($A143,Economática!$A$3:$AI$823,18,FALSE)))","v":3.82},{"$f":"IF($A143=\"\",\"\",IF(OR(VLOOKUP($A143,Economática!$A$3:$AI$823,19,FALSE)=0,VLOOKUP($A143,Economática!$A$3:$AI$823,19,FALSE)=\"-\"),1/0,VLOOKUP($A143,Economática!$A$3:$AI$823,19,FALSE)))","v":128.04},{"$f":"IF($A143=\"\",\"\",VLOOKUP($A143,Economática!$A$3:$AI$823,20,FALSE)/E143)","v":0.56386656391060219},7.5612022459539805,2.9241381569751184,39.211404639175257,{"$f":"IF($A143=\"\",\"\",IF(OR(VLOOKUP($A143,Economática!$A$3:$AI$823,21,FALSE)/100=0,VLOOKUP($A143,Economática!$A$3:$AI$823,21,FALSE)/100=\"-\"),1/0,VLOOKUP($A143,Economática!$A$3:$AI$823,21,FALSE)/100))","v":7.9172000000000006E-2},{"$f":"IF($A143=\"\",\"\",IF(OR(VLOOKUP($A143,Economática!$A$3:$AI$823,22,FALSE)/100=0,VLOOKUP($A143,Economática!$A$3:$AI$823,22,FALSE)/100=\"-\"),1/0,VLOOKUP($A143,Economática!$A$3:$AI$823,22,FALSE)/100))","v":-0.18140899999999999},{"$f":"IF($A143=\"\",\"\",IF(OR(VLOOKUP($A143,Economática!$A$3:$AI$823,23,FALSE)=0,VLOOKUP($A143,Economática!$A$3:$AI$823,23,FALSE)=\"-\"),1/0,VLOOKUP($A143,Economática!$A$3:$AI$823,23,FALSE)))","v":185},{"$f":"IF($A143=\"\",\"\",IF(OR(VLOOKUP($A143,Economática!$A$3:$AI$823,24,FALSE)=0,VLOOKUP($A143,Economática!$A$3:$AI$823,24,FALSE)=\"-\"),1/0,VLOOKUP($A143,Economática!$A$3:$AI$823,24,FALSE)))","v":260},{"$f":"IF($A143=\"\",\"\",IF(OR(VLOOKUP($A143,Economática!$A$3:$AI$823,25,FALSE)=0,VLOOKUP($A143,Economática!$A$3:$AI$823,25,FALSE)=\"-\"),1/0,VLOOKUP($A143,Economática!$A$3:$AI$823,25,FALSE)))","v":260},{"$f":"IF($A143=\"\",\"\",IF(ISERROR((F143+VLOOKUP($A143,Economática!$A$3:$AI$823,26,FALSE))/Y143),(F143+VLOOKUP($A143,Economática!$A$3:$AI$823,26,FALSE))/Y143,(F143+VLOOKUP($A143,Economática!$A$3:$AI$823,26,FALSE))/Y143))","v":18.112146153846155},{"$f":"IF($A143=\"\",\"\",IF(OR(-VLOOKUP($A143,Economática!$A$3:$AI$823,27,FALSE)=0,-VLOOKUP($A143,Economática!$A$3:$AI$823,27,FALSE)=\"-\"),1/0,-VLOOKUP($A143,Economática!$A$3:$AI$823,27,FALSE)))","v":{"$error":"#DIV/0!"}},{"$error":"#DIV/0!"},{"$f":"IF($A143=\"\",\"\",IF(OR(VLOOKUP($A143,Economática!$A$3:$AI$823,28,FALSE)=0,VLOOKUP($A143,Economática!$A$3:$AI$823,28,FALSE)=\"-\"),1/0,VLOOKUP($A143,Economática!$A$3:$AI$823,28,FALSE)))","v":0.1},{"$f":"IF($A143=\"\",\"\",IF(OR(VLOOKUP($A143,Economática!$A$3:$AI$823,29,FALSE)=0,VLOOKUP($A143,Economática!$A$3:$AI$823,29,FALSE)=\"-\"),1/0,VLOOKUP($A143,Economática!$A$3:$AI$823,29,FALSE)))","v":27.1},{"$f":"IF($A143=\"\",\"\",IF(OR(VLOOKUP($A143,Economática!$A$3:$AI$823,30,FALSE)/E143=0,VLOOKUP($A143,Economática!$A$3:$AI$823,30,FALSE)/E143=\"-\",VLOOKUP($A143,Economática!$A$3:$AI$823,30,FALSE)/E143<33.33%,VLOOKUP($A143,Economática!$A$3:$AI$823,30,FALSE)/E143>100%),1/0,VLOOKUP($A143,Economática!$A$3:$AI$823,30,FALSE)/E143))","v":0.97985247165033584},"BKBR3",{"$f":"IF($A143=\"\",\"\",IF(OR(VLOOKUP($A143,Economática!$A$3:$AI$823,25,FALSE)=0,VLOOKUP($A143,Economática!$A$3:$AI$823,25,FALSE)=\"-\"),1/0,VLOOKUP($A143,Economática!$A$3:$AI$823,25,FALSE)))","v":260},{"$f":"CONCATENATE(Economática!B145,\" \",Economática!C145)","v":"Bk Brasil ON"}]
[{"$f":"IF(Economática!AG146=\"\",\"\",Economática!AG146)","v":"LUXM4"},{"$f":"IF($A144=\"\",\"\",VLOOKUP(VLOOKUP($A144,Economática!$A$3:$AI$823,6,FALSE),Correção!$B$16:$C$36,2,FALSE))","v":"Outros"},{"$f":"IF(Economática!B146=\"\",\"\",Economática!B146)","v":"Trevisa"},{"$f":"IF($A144=\"\",\"\",IF(OR(VLOOKUP($A144,Economática!$A$3:$AI$823,8,FALSE)=0,VLOOKUP($A144,Economática!$A$3:$AI$823,8,FALSE)=\"-\"),1/0,VLOOKUP($A144,Economática!$A$3:$AI$823,8,FALSE)))","v":15},{"$f":"IF(A144=\"\",\"\",IF(ISERROR(VLOOKUP(A144,Correção!$B$2:$G$13,9,FALSE)),VLOOKUP($A144,Economática!$A$3:$AI$823,9,FALSE),VLOOKUP(A144,Correção!$B$2:$G$13,9,FALSE)))","v":5.1959999999999997},{"$f":"IF($A144=\"\",\"\",Economática!G146)","v":77.94},{"$f":"IF($A144=\"\",\"\",IF(OR(VLOOKUP($A144,Economática!$A$3:$AI$823,10,FALSE)=0,VLOOKUP($A144,Economática!$A$3:$AI$823,10,FALSE)=\"-\"),1/0,VLOOKUP($A144,Economática!$A$3:$AI$823,10,FALSE)))","v":105.11},{"$f":"IF($A144=\"\",\"\",IF(OR(VLOOKUP($A144,Economática!$A$3:$AI$823,11,FALSE)=0,VLOOKUP($A144,Economática!$A$3:$AI$823,11,FALSE)=\"-\"),1/0,VLOOKUP($A144,Economática!$A$3:$AI$823,11,FALSE)))","v":102.29},{"$f":"IF($A144=\"\",\"\",IF(OR(VLOOKUP($A144,Economática!$A$3:$AI$823,12,FALSE)=0,VLOOKUP($A144,Economática!$A$3:$AI$823,12,FALSE)=\"-\"),1/0,VLOOKUP($A144,Economática!$A$3:$AI$823,12,FALSE)))","v":129.77000000000001},{"$f":"IF($A144=\"\",\"\",IF(OR(VLOOKUP($A144,Economática!$A$3:$AI$823,13,FALSE)=0,VLOOKUP($A144,Economática!$A$3:$AI$823,13,FALSE)=\"-\"),1/0,VLOOKUP($A144,Economática!$A$3:$AI$823,13,FALSE)))","v":3.89},{"$f":"IF($A144=\"\",\"\",IF(OR(VLOOKUP($A144,Economática!$A$3:$AI$823,14,FALSE)=0,VLOOKUP($A144,Economática!$A$3:$AI$823,14,FALSE)=\"-\"),1/0,VLOOKUP($A144,Economática!$A$3:$AI$823,14,FALSE)))","v":-0.6},{"$f":"IF($A144=\"\",\"\",IF(OR(VLOOKUP($A144,Economática!$A$3:$AI$823,15,FALSE)=0,VLOOKUP($A144,Economática!$A$3:$AI$823,15,FALSE)=\"-\"),1/0,VLOOKUP($A144,Economática!$A$3:$AI$823,15,FALSE)))","v":5.38},{"$f":"IF($A144=\"\",\"\",IF(OR(VLOOKUP($A144,Economática!$A$3:$AI$823,16,FALSE)=0,VLOOKUP($A144,Economática!$A$3:$AI$823,16,FALSE)=\"-\"),1/0,VLOOKUP($A144,Economática!$A$3:$AI$823,16,FALSE)))","v":11.16},{"$f":"IF($A144=\"\",\"\",IF(OR(VLOOKUP($A144,Economática!$A$3:$AI$823,17,FALSE)=0,VLOOKUP($A144,Economática!$A$3:$AI$823,17,FALSE)=\"-\"),1/0,VLOOKUP($A144,Economática!$A$3:$AI$823,17,FALSE)))","v":6.23},{"$f":"IF($A144=\"\",\"\",IF(OR(VLOOKUP($A144,Economática!$A$3:$AI$823,18,FALSE)=0,VLOOKUP($A144,Economática!$A$3:$AI$823,18,FALSE)=\"-\"),1/0,VLOOKUP($A144,Economática!$A$3:$AI$823,18,FALSE)))","v":3.89},{"$f":"IF($A144=\"\",\"\",IF(OR(VLOOKUP($A144,Economática!$A$3:$AI$823,19,FALSE)=0,VLOOKUP($A144,Economática!$A$3:$AI$823,19,FALSE)=\"-\"),1/0,VLOOKUP($A144,Economática!$A$3:$AI$823,19,FALSE)))","v":6.23},{"$f":"IF($A144=\"\",\"\",VLOOKUP($A144,Economática!$A$3:$AI$823,20,FALSE)/E144)","v":1.1989992301770593},20.229022324865284,0.74150889544286924,12.51043338683788,{"$f":"IF($A144=\"\",\"\",IF(OR(VLOOKUP($A144,Economática!$A$3:$AI$823,21,FALSE)/100=0,VLOOKUP($A144,Economática!$A$3:$AI$823,21,FALSE)/100=\"-\"),1/0,VLOOKUP($A144,Economática!$A$3:$AI$823,21,FALSE)/100))","v":6.1619E-2},{"$f":"IF($A144=\"\",\"\",IF(OR(VLOOKUP($A144,Economática!$A$3:$AI$823,22,FALSE)/100=0,VLOOKUP($A144,Economática!$A$3:$AI$823,22,FALSE)/100=\"-\"),1/0,VLOOKUP($A144,Economática!$A$3:$AI$823,22,FALSE)/100))","v":0.28428500000000001},{"$f":"IF($A144=\"\",\"\",IF(OR(VLOOKUP($A144,Economática!$A$3:$AI$823,23,FALSE)=0,VLOOKUP($A144,Economática!$A$3:$AI$823,23,FALSE)=\"-\"),1/0,VLOOKUP($A144,Economática!$A$3:$AI$823,23,FALSE)))","v":28.8},{"$f":"IF($A144=\"\",\"\",IF(OR(VLOOKUP($A144,Economática!$A$3:$AI$823,24,FALSE)=0,VLOOKUP($A144,Economática!$A$3:$AI$823,24,FALSE)=\"-\"),1/0,VLOOKUP($A144,Economática!$A$3:$AI$823,24,FALSE)))","v":31.7},{"$f":"IF($A144=\"\",\"\",IF(OR(VLOOKUP($A144,Economática!$A$3:$AI$823,25,FALSE)=0,VLOOKUP($A144,Economática!$A$3:$AI$823,25,FALSE)=\"-\"),1/0,VLOOKUP($A144,Economática!$A$3:$AI$823,25,FALSE)))","v":31.7},{"$f":"IF($A144=\"\",\"\",IF(ISERROR((F144+VLOOKUP($A144,Economática!$A$3:$AI$823,26,FALSE))/Y144),(F144+VLOOKUP($A144,Economática!$A$3:$AI$823,26,FALSE))/Y144,(F144+VLOOKUP($A144,Economática!$A$3:$AI$823,26,FALSE))/Y144))","v":3.4013249211356467},{"$f":"IF($A144=\"\",\"\",IF(OR(-VLOOKUP($A144,Economática!$A$3:$AI$823,27,FALSE)=0,-VLOOKUP($A144,Economática!$A$3:$AI$823,27,FALSE)=\"-\"),1/0,-VLOOKUP($A144,Economática!$A$3:$AI$823,27,FALSE)))","v":{"$error":"#DIV/0!"}},{"$error":"#DIV/0!"},{"$f":"IF($A144=\"\",\"\",IF(OR(VLOOKUP($A144,Economática!$A$3:$AI$823,28,FALSE)=0,VLOOKUP($A144,Economática!$A$3:$AI$823,28,FALSE)=\"-\"),1/0,VLOOKUP($A144,Economática!$A$3:$AI$823,28,FALSE)))","v":-27.2},{"$f":"IF($A144=\"\",\"\",IF(OR(VLOOKUP($A144,Economática!$A$3:$AI$823,29,FALSE)=0,VLOOKUP($A144,Economática!$A$3:$AI$823,29,FALSE)=\"-\"),1/0,VLOOKUP($A144,Economática!$A$3:$AI$823,29,FALSE)))","v":{"$error":"#DIV/0!"}},{"$f":"IF($A144=\"\",\"\",IF(OR(VLOOKUP($A144,Economática!$A$3:$AI$823,30,FALSE)/E144=0,VLOOKUP($A144,Economática!$A$3:$AI$823,30,FALSE)/E144=\"-\",VLOOKUP($A144,Economática!$A$3:$AI$823,30,FALSE)/E144<33.33%,VLOOKUP($A144,Economática!$A$3:$AI$823,30,FALSE)/E144>100%),1/0,VLOOKUP($A144,Economática!$A$3:$AI$823,30,FALSE)/E144))","v":0.44264819091608931},"LUXM4",{"$f":"IF($A144=\"\",\"\",IF(OR(VLOOKUP($A144,Economática!$A$3:$AI$823,25,FALSE)=0,VLOOKUP($A144,Economática!$A$3:$AI$823,25,FALSE)=\"-\"),1/0,VLOOKUP($A144,Economática!$A$3:$AI$823,25,FALSE)))","v":31.7},{"$f":"CONCATENATE(Economática!B146,\" \",Economática!C146)","v":"Trevisa PN"}]
[{"$f":"IF(Economática!AG147=\"\",\"\",Economática!AG147)","v":"ALSC3"},{"$f":"IF($A145=\"\",\"\",VLOOKUP(VLOOKUP($A145,Economática!$A$3:$AI$823,6,FALSE),Correção!$B$16:$C$36,2,FALSE))","v":"Outros"},{"$f":"IF(Economática!B147=\"\",\"\",Economática!B147)","v":"Aliansce"},{"$f":"IF($A145=\"\",\"\",IF(OR(VLOOKUP($A145,Economática!$A$3:$AI$823,8,FALSE)=0,VLOOKUP($A145,Economática!$A$3:$AI$823,8,FALSE)=\"-\"),1/0,VLOOKUP($A145,Economática!$A$3:$AI$823,8,FALSE)))","v":19.97},{"$f":"IF(A145=\"\",\"\",IF(ISERROR(VLOOKUP(A145,Correção!$B$2:$G$13,9,FALSE)),VLOOKUP($A145,Economática!$A$3:$AI$823,9,FALSE),VLOOKUP(A145,Correção!$B$2:$G$13,9,FALSE)))","v":202.66800000000001},{"$f":"IF($A145=\"\",\"\",Economática!G147)","v":4047.27},{"$f":"IF($A145=\"\",\"\",IF(OR(VLOOKUP($A145,Economática!$A$3:$AI$823,10,FALSE)=0,VLOOKUP($A145,Economática!$A$3:$AI$823,10,FALSE)=\"-\"),1/0,VLOOKUP($A145,Economática!$A$3:$AI$823,10,FALSE)))","v":2553.98},{"$f":"IF($A145=\"\",\"\",IF(OR(VLOOKUP($A145,Economática!$A$3:$AI$823,11,FALSE)=0,VLOOKUP($A145,Economática!$A$3:$AI$823,11,FALSE)=\"-\"),1/0,VLOOKUP($A145,Economática!$A$3:$AI$823,11,FALSE)))","v":507.69},{"$f":"IF($A145=\"\",\"\",IF(OR(VLOOKUP($A145,Economática!$A$3:$AI$823,12,FALSE)=0,VLOOKUP($A145,Economática!$A$3:$AI$823,12,FALSE)=\"-\"),1/0,VLOOKUP($A145,Economática!$A$3:$AI$823,12,FALSE)))","v":508.43},{"$f":"IF($A145=\"\",\"\",IF(OR(VLOOKUP($A145,Economática!$A$3:$AI$823,13,FALSE)=0,VLOOKUP($A145,Economática!$A$3:$AI$823,13,FALSE)=\"-\"),1/0,VLOOKUP($A145,Economática!$A$3:$AI$823,13,FALSE)))","v":94.54},{"$f":"IF($A145=\"\",\"\",IF(OR(VLOOKUP($A145,Economática!$A$3:$AI$823,14,FALSE)=0,VLOOKUP($A145,Economática!$A$3:$AI$823,14,FALSE)=\"-\"),1/0,VLOOKUP($A145,Economática!$A$3:$AI$823,14,FALSE)))","v":6.4},{"$f":"IF($A145=\"\",\"\",IF(OR(VLOOKUP($A145,Economática!$A$3:$AI$823,15,FALSE)=0,VLOOKUP($A145,Economática!$A$3:$AI$823,15,FALSE)=\"-\"),1/0,VLOOKUP($A145,Economática!$A$3:$AI$823,15,FALSE)))","v":31.43},{"$f":"IF($A145=\"\",\"\",IF(OR(VLOOKUP($A145,Economática!$A$3:$AI$823,16,FALSE)=0,VLOOKUP($A145,Economática!$A$3:$AI$823,16,FALSE)=\"-\"),1/0,VLOOKUP($A145,Economática!$A$3:$AI$823,16,FALSE)))","v":52.71},{"$f":"IF($A145=\"\",\"\",IF(OR(VLOOKUP($A145,Economática!$A$3:$AI$823,17,FALSE)=0,VLOOKUP($A145,Economática!$A$3:$AI$823,17,FALSE)=\"-\"),1/0,VLOOKUP($A145,Economática!$A$3:$AI$823,17,FALSE)))","v":113.96},{"$f":"IF($A145=\"\",\"\",IF(OR(VLOOKUP($A145,Economática!$A$3:$AI$823,18,FALSE)=0,VLOOKUP($A145,Economática!$A$3:$AI$823,18,FALSE)=\"-\"),1/0,VLOOKUP($A145,Economática!$A$3:$AI$823,18,FALSE)))","v":94.54},{"$f":"IF($A145=\"\",\"\",IF(OR(VLOOKUP($A145,Economática!$A$3:$AI$823,19,FALSE)=0,VLOOKUP($A145,Economática!$A$3:$AI$823,19,FALSE)=\"-\"),1/0,VLOOKUP($A145,Economática!$A$3:$AI$823,19,FALSE)))","v":113.96},{"$f":"IF($A145=\"\",\"\",VLOOKUP($A145,Economática!$A$3:$AI$823,20,FALSE)/E145)","v":0.56229893224386673},12.601792093473069,1.5846952442853899,35.514917163917168,{"$f":"IF($A145=\"\",\"\",IF(OR(VLOOKUP($A145,Economática!$A$3:$AI$823,21,FALSE)/100=0,VLOOKUP($A145,Economática!$A$3:$AI$823,21,FALSE)/100=\"-\"),1/0,VLOOKUP($A145,Economática!$A$3:$AI$823,21,FALSE)/100))","v":4.7744000000000002E-2},{"$f":"IF($A145=\"\",\"\",IF(OR(VLOOKUP($A145,Economática!$A$3:$AI$823,22,FALSE)/100=0,VLOOKUP($A145,Economática!$A$3:$AI$823,22,FALSE)/100=\"-\"),1/0,VLOOKUP($A145,Economática!$A$3:$AI$823,22,FALSE)/100))","v":-0.21970700000000001},{"$f":"IF($A145=\"\",\"\",IF(OR(VLOOKUP($A145,Economática!$A$3:$AI$823,23,FALSE)=0,VLOOKUP($A145,Economática!$A$3:$AI$823,23,FALSE)=\"-\"),1/0,VLOOKUP($A145,Economática!$A$3:$AI$823,23,FALSE)))","v":388.8},{"$f":"IF($A145=\"\",\"\",IF(OR(VLOOKUP($A145,Economática!$A$3:$AI$823,24,FALSE)=0,VLOOKUP($A145,Economática!$A$3:$AI$823,24,FALSE)=\"-\"),1/0,VLOOKUP($A145,Economática!$A$3:$AI$823,24,FALSE)))","v":394.4},{"$f":"IF($A145=\"\",\"\",IF(OR(VLOOKUP($A145,Economática!$A$3:$AI$823,25,FALSE)=0,VLOOKUP($A145,Economática!$A$3:$AI$823,25,FALSE)=\"-\"),1/0,VLOOKUP($A145,Economática!$A$3:$AI$823,25,FALSE)))","v":394.4},{"$f":"IF($A145=\"\",\"\",IF(ISERROR((F145+VLOOKUP($A145,Economática!$A$3:$AI$823,26,FALSE))/Y145),(F145+VLOOKUP($A145,Economática!$A$3:$AI$823,26,FALSE))/Y145,(F145+VLOOKUP($A145,Economática!$A$3:$AI$823,26,FALSE))/Y145))","v":8.8101597363083162},{"$f":"IF($A145=\"\",\"\",IF(OR(-VLOOKUP($A145,Economática!$A$3:$AI$823,27,FALSE)=0,-VLOOKUP($A145,Economática!$A$3:$AI$823,27,FALSE)=\"-\"),1/0,-VLOOKUP($A145,Economática!$A$3:$AI$823,27,FALSE)))","v":23.64},5.840974286370813E-3,{"$f":"IF($A145=\"\",\"\",IF(OR(VLOOKUP($A145,Economática!$A$3:$AI$823,28,FALSE)=0,VLOOKUP($A145,Economática!$A$3:$AI$823,28,FALSE)=\"-\"),1/0,VLOOKUP($A145,Economática!$A$3:$AI$823,28,FALSE)))","v":-0.6},{"$f":"IF($A145=\"\",\"\",IF(OR(VLOOKUP($A145,Economática!$A$3:$AI$823,29,FALSE)=0,VLOOKUP($A145,Economática!$A$3:$AI$823,29,FALSE)=\"-\"),1/0,VLOOKUP($A145,Economática!$A$3:$AI$823,29,FALSE)))","v":11.5},{"$f":"IF($A145=\"\",\"\",IF(OR(VLOOKUP($A145,Economática!$A$3:$AI$823,30,FALSE)/E145=0,VLOOKUP($A145,Economática!$A$3:$AI$823,30,FALSE)/E145=\"-\",VLOOKUP($A145,Economática!$A$3:$AI$823,30,FALSE)/E145<33.33%,VLOOKUP($A145,Economática!$A$3:$AI$823,30,FALSE)/E145>100%),1/0,VLOOKUP($A145,Economática!$A$3:$AI$823,30,FALSE)/E145))","v":{"$error":"#DIV/0!"}},"ALSC3",{"$f":"IF($A145=\"\",\"\",IF(OR(VLOOKUP($A145,Economática!$A$3:$AI$823,25,FALSE)=0,VLOOKUP($A145,Economática!$A$3:$AI$823,25,FALSE)=\"-\"),1/0,VLOOKUP($A145,Economática!$A$3:$AI$823,25,FALSE)))","v":394.4},{"$f":"CONCATENATE(Economática!B147,\" \",Economática!C147)","v":"Aliansce ON"}]
[{"$f":"IF(Economática!AG148=\"\",\"\",Economática!AG148)","v":"TESA3"},{"$f":"IF($A146=\"\",\"\",VLOOKUP(VLOOKUP($A146,Economática!$A$3:$AI$823,6,FALSE),Correção!$B$16:$C$36,2,FALSE))","v":"Outros"},{"$f":"IF(Economática!B148=\"\",\"\",Economática!B148)","v":"Terra Santa"},{"$f":"IF($A146=\"\",\"\",IF(OR(VLOOKUP($A146,Economática!$A$3:$AI$823,8,FALSE)=0,VLOOKUP($A146,Economática!$A$3:$AI$823,8,FALSE)=\"-\"),1/0,VLOOKUP($A146,Economática!$A$3:$AI$823,8,FALSE)))","v":13.2},{"$f":"IF(A146=\"\",\"\",IF(ISERROR(VLOOKUP(A146,Correção!$B$2:$G$13,9,FALSE)),VLOOKUP($A146,Economática!$A$3:$AI$823,9,FALSE),VLOOKUP(A146,Correção!$B$2:$G$13,9,FALSE)))","v":17.914000000000001},{"$f":"IF($A146=\"\",\"\",Economática!G148)","v":236.46},{"$f":"IF($A146=\"\",\"\",IF(OR(VLOOKUP($A146,Economática!$A$3:$AI$823,10,FALSE)=0,VLOOKUP($A146,Economática!$A$3:$AI$823,10,FALSE)=\"-\"),1/0,VLOOKUP($A146,Economática!$A$3:$AI$823,10,FALSE)))","v":940.01},{"$f":"IF($A146=\"\",\"\",IF(OR(VLOOKUP($A146,Economática!$A$3:$AI$823,11,FALSE)=0,VLOOKUP($A146,Economática!$A$3:$AI$823,11,FALSE)=\"-\"),1/0,VLOOKUP($A146,Economática!$A$3:$AI$823,11,FALSE)))","v":796.32},{"$f":"IF($A146=\"\",\"\",IF(OR(VLOOKUP($A146,Economática!$A$3:$AI$823,12,FALSE)=0,VLOOKUP($A146,Economática!$A$3:$AI$823,12,FALSE)=\"-\"),1/0,VLOOKUP($A146,Economática!$A$3:$AI$823,12,FALSE)))","v":1119.01},{"$f":"IF($A146=\"\",\"\",IF(OR(VLOOKUP($A146,Economática!$A$3:$AI$823,13,FALSE)=0,VLOOKUP($A146,Economática!$A$3:$AI$823,13,FALSE)=\"-\"),1/0,VLOOKUP($A146,Economática!$A$3:$AI$823,13,FALSE)))","v":7.35},{"$f":"IF($A146=\"\",\"\",IF(OR(VLOOKUP($A146,Economática!$A$3:$AI$823,14,FALSE)=0,VLOOKUP($A146,Economática!$A$3:$AI$823,14,FALSE)=\"-\"),1/0,VLOOKUP($A146,Economática!$A$3:$AI$823,14,FALSE)))","v":38.01},{"$f":"IF($A146=\"\",\"\",IF(OR(VLOOKUP($A146,Economática!$A$3:$AI$823,15,FALSE)=0,VLOOKUP($A146,Economática!$A$3:$AI$823,15,FALSE)=\"-\"),1/0,VLOOKUP($A146,Economática!$A$3:$AI$823,15,FALSE)))","v":18.760000000000002},{"$f":"IF($A146=\"\",\"\",IF(OR(VLOOKUP($A146,Economática!$A$3:$AI$823,16,FALSE)=0,VLOOKUP($A146,Economática!$A$3:$AI$823,16,FALSE)=\"-\"),1/0,VLOOKUP($A146,Economática!$A$3:$AI$823,16,FALSE)))","v":31.44},{"$f":"IF($A146=\"\",\"\",IF(OR(VLOOKUP($A146,Economática!$A$3:$AI$823,17,FALSE)=0,VLOOKUP($A146,Economática!$A$3:$AI$823,17,FALSE)=\"-\"),1/0,VLOOKUP($A146,Economática!$A$3:$AI$823,17,FALSE)))","v":42.26},{"$f":"IF($A146=\"\",\"\",IF(OR(VLOOKUP($A146,Economática!$A$3:$AI$823,18,FALSE)=0,VLOOKUP($A146,Economática!$A$3:$AI$823,18,FALSE)=\"-\"),1/0,VLOOKUP($A146,Economática!$A$3:$AI$823,18,FALSE)))","v":7.35},{"$f":"IF($A146=\"\",\"\",IF(OR(VLOOKUP($A146,Economática!$A$3:$AI$823,19,FALSE)=0,VLOOKUP($A146,Economática!$A$3:$AI$823,19,FALSE)=\"-\"),1/0,VLOOKUP($A146,Economática!$A$3:$AI$823,19,FALSE)))","v":42.26},{"$f":"IF($A146=\"\",\"\",VLOOKUP($A146,Economática!$A$3:$AI$823,20,FALSE)/E146)","v":2.3590487886569163},52.473484425588921,0.25155562174870483,5.5954756270705159,{"$f":"IF($A146=\"\",\"\",IF(OR(VLOOKUP($A146,Economática!$A$3:$AI$823,21,FALSE)/100=0,VLOOKUP($A146,Economática!$A$3:$AI$823,21,FALSE)/100=\"-\"),1/0,VLOOKUP($A146,Economática!$A$3:$AI$823,21,FALSE)/100))","v":4.2606000000000005E-2},{"$f":"IF($A146=\"\",\"\",IF(OR(VLOOKUP($A146,Economática!$A$3:$AI$823,22,FALSE)/100=0,VLOOKUP($A146,Economática!$A$3:$AI$823,22,FALSE)/100=\"-\"),1/0,VLOOKUP($A146,Economática!$A$3:$AI$823,22,FALSE)/100))","v":0.90646100000000007},{"$f":"IF($A146=\"\",\"\",IF(OR(VLOOKUP($A146,Economática!$A$3:$AI$823,23,FALSE)=0,VLOOKUP($A146,Economática!$A$3:$AI$823,23,FALSE)=\"-\"),1/0,VLOOKUP($A146,Economática!$A$3:$AI$823,23,FALSE)))","v":85.6},{"$f":"IF($A146=\"\",\"\",IF(OR(VLOOKUP($A146,Economática!$A$3:$AI$823,24,FALSE)=0,VLOOKUP($A146,Economática!$A$3:$AI$823,24,FALSE)=\"-\"),1/0,VLOOKUP($A146,Economática!$A$3:$AI$823,24,FALSE)))","v":172.3},{"$f":"IF($A146=\"\",\"\",IF(OR(VLOOKUP($A146,Economática!$A$3:$AI$823,25,FALSE)=0,VLOOKUP($A146,Economática!$A$3:$AI$823,25,FALSE)=\"-\"),1/0,VLOOKUP($A146,Economática!$A$3:$AI$823,25,FALSE)))","v":172.3},{"$f":"IF($A146=\"\",\"\",IF(ISERROR((F146+VLOOKUP($A146,Economática!$A$3:$AI$823,26,FALSE))/Y146),(F146+VLOOKUP($A146,Economática!$A$3:$AI$823,26,FALSE))/Y146,(F146+VLOOKUP($A146,Economática!$A$3:$AI$823,26,FALSE))/Y146))","v":6.3176900754497964},{"$f":"IF($A146=\"\",\"\",IF(OR(-VLOOKUP($A146,Economática!$A$3:$AI$823,27,FALSE)=0,-VLOOKUP($A146,Economática!$A$3:$AI$823,27,FALSE)=\"-\"),1/0,-VLOOKUP($A146,Economática!$A$3:$AI$823,27,FALSE)))","v":{"$error":"#DIV/0!"}},{"$error":"#DIV/0!"},{"$f":"IF($A146=\"\",\"\",IF(OR(VLOOKUP($A146,Economática!$A$3:$AI$823,28,FALSE)=0,VLOOKUP($A146,Economática!$A$3:$AI$823,28,FALSE)=\"-\"),1/0,VLOOKUP($A146,Economática!$A$3:$AI$823,28,FALSE)))","v":0.8},{"$f":"IF($A146=\"\",\"\",IF(OR(VLOOKUP($A146,Economática!$A$3:$AI$823,29,FALSE)=0,VLOOKUP($A146,Economática!$A$3:$AI$823,29,FALSE)=\"-\"),1/0,VLOOKUP($A146,Economática!$A$3:$AI$823,29,FALSE)))","v":-11.3},{"$f":"IF($A146=\"\",\"\",IF(OR(VLOOKUP($A146,Economática!$A$3:$AI$823,30,FALSE)/E146=0,VLOOKUP($A146,Economática!$A$3:$AI$823,30,FALSE)/E146=\"-\",VLOOKUP($A146,Economática!$A$3:$AI$823,30,FALSE)/E146<33.33%,VLOOKUP($A146,Economática!$A$3:$AI$823,30,FALSE)/E146>100%),1/0,VLOOKUP($A146,Economática!$A$3:$AI$823,30,FALSE)/E146))","v":0.99921848833314708},"TESA3",{"$f":"IF($A146=\"\",\"\",IF(OR(VLOOKUP($A146,Economática!$A$3:$AI$823,25,FALSE)=0,VLOOKUP($A146,Economática!$A$3:$AI$823,25,FALSE)=\"-\"),1/0,VLOOKUP($A146,Economática!$A$3:$AI$823,25,FALSE)))","v":172.3},{"$f":"CONCATENATE(Economática!B148,\" \",Economática!C148)","v":"Terra Santa ON"}]
[{"$f":"IF(Economática!AG149=\"\",\"\",Economática!AG149)","v":"GPCP3"},{"$f":"IF($A147=\"\",\"\",VLOOKUP(VLOOKUP($A147,Economática!$A$3:$AI$823,6,FALSE),Correção!$B$16:$C$36,2,FALSE))","v":"Outros"},{"$f":"IF(Economática!B149=\"\",\"\",Economática!B149)","v":"GPC Part"},{"$f":"IF($A147=\"\",\"\",IF(OR(VLOOKUP($A147,Economática!$A$3:$AI$823,8,FALSE)=0,VLOOKUP($A147,Economática!$A$3:$AI$823,8,FALSE)=\"-\"),1/0,VLOOKUP($A147,Economática!$A$3:$AI$823,8,FALSE)))","v":12.84},{"$f":"IF(A147=\"\",\"\",IF(ISERROR(VLOOKUP(A147,Correção!$B$2:$G$13,9,FALSE)),VLOOKUP($A147,Economática!$A$3:$AI$823,9,FALSE),VLOOKUP(A147,Correção!$B$2:$G$13,9,FALSE)))","v":6.2679999999999998},{"$f":"IF($A147=\"\",\"\",Economática!G149)","v":80.48},{"$f":"IF($A147=\"\",\"\",IF(OR(VLOOKUP($A147,Economática!$A$3:$AI$823,10,FALSE)=0,VLOOKUP($A147,Economática!$A$3:$AI$823,10,FALSE)=\"-\"),1/0,VLOOKUP($A147,Economática!$A$3:$AI$823,10,FALSE)))","v":161.22},{"$f":"IF($A147=\"\",\"\",IF(OR(VLOOKUP($A147,Economática!$A$3:$AI$823,11,FALSE)=0,VLOOKUP($A147,Economática!$A$3:$AI$823,11,FALSE)=\"-\"),1/0,VLOOKUP($A147,Economática!$A$3:$AI$823,11,FALSE)))","v":483.88},{"$f":"IF($A147=\"\",\"\",IF(OR(VLOOKUP($A147,Economática!$A$3:$AI$823,12,FALSE)=0,VLOOKUP($A147,Economática!$A$3:$AI$823,12,FALSE)=\"-\"),1/0,VLOOKUP($A147,Economática!$A$3:$AI$823,12,FALSE)))","v":735.14},{"$f":"IF($A147=\"\",\"\",IF(OR(VLOOKUP($A147,Economática!$A$3:$AI$823,13,FALSE)=0,VLOOKUP($A147,Economática!$A$3:$AI$823,13,FALSE)=\"-\"),1/0,VLOOKUP($A147,Economática!$A$3:$AI$823,13,FALSE)))","v":81.16},{"$f":"IF($A147=\"\",\"\",IF(OR(VLOOKUP($A147,Economática!$A$3:$AI$823,14,FALSE)=0,VLOOKUP($A147,Economática!$A$3:$AI$823,14,FALSE)=\"-\"),1/0,VLOOKUP($A147,Economática!$A$3:$AI$823,14,FALSE)))","v":9.0500000000000007},{"$f":"IF($A147=\"\",\"\",IF(OR(VLOOKUP($A147,Economática!$A$3:$AI$823,15,FALSE)=0,VLOOKUP($A147,Economática!$A$3:$AI$823,15,FALSE)=\"-\"),1/0,VLOOKUP($A147,Economática!$A$3:$AI$823,15,FALSE)))","v":-3.33},{"$f":"IF($A147=\"\",\"\",IF(OR(VLOOKUP($A147,Economática!$A$3:$AI$823,16,FALSE)=0,VLOOKUP($A147,Economática!$A$3:$AI$823,16,FALSE)=\"-\"),1/0,VLOOKUP($A147,Economática!$A$3:$AI$823,16,FALSE)))","v":1.23},{"$f":"IF($A147=\"\",\"\",IF(OR(VLOOKUP($A147,Economática!$A$3:$AI$823,17,FALSE)=0,VLOOKUP($A147,Economática!$A$3:$AI$823,17,FALSE)=\"-\"),1/0,VLOOKUP($A147,Economática!$A$3:$AI$823,17,FALSE)))","v":6.8},{"$f":"IF($A147=\"\",\"\",IF(OR(VLOOKUP($A147,Economática!$A$3:$AI$823,18,FALSE)=0,VLOOKUP($A147,Economática!$A$3:$AI$823,18,FALSE)=\"-\"),1/0,VLOOKUP($A147,Economática!$A$3:$AI$823,18,FALSE)))","v":81.16},{"$f":"IF($A147=\"\",\"\",IF(OR(VLOOKUP($A147,Economática!$A$3:$AI$823,19,FALSE)=0,VLOOKUP($A147,Economática!$A$3:$AI$823,19,FALSE)=\"-\"),1/0,VLOOKUP($A147,Economática!$A$3:$AI$823,19,FALSE)))","v":6.8},{"$f":"IF($A147=\"\",\"\",VLOOKUP($A147,Economática!$A$3:$AI$823,20,FALSE)/E147)","v":1.0848755583918315},25.721123165283984,0.49920059545962037,11.835458823529413,{"$f":"IF($A147=\"\",\"\",IF(OR(VLOOKUP($A147,Economática!$A$3:$AI$823,21,FALSE)/100=0,VLOOKUP($A147,Economática!$A$3:$AI$823,21,FALSE)/100=\"-\"),1/0,VLOOKUP($A147,Economática!$A$3:$AI$823,21,FALSE)/100))","v":4.1346999999999995E-2},{"$f":"IF($A147=\"\",\"\",IF(OR(VLOOKUP($A147,Economática!$A$3:$AI$823,22,FALSE)/100=0,VLOOKUP($A147,Economática!$A$3:$AI$823,22,FALSE)/100=\"-\"),1/0,VLOOKUP($A147,Economática!$A$3:$AI$823,22,FALSE)/100))","v":0.88306600000000002},{"$f":"IF($A147=\"\",\"\",IF(OR(VLOOKUP($A147,Economática!$A$3:$AI$823,23,FALSE)=0,VLOOKUP($A147,Economática!$A$3:$AI$823,23,FALSE)=\"-\"),1/0,VLOOKUP($A147,Economática!$A$3:$AI$823,23,FALSE)))","v":118.9},{"$f":"IF($A147=\"\",\"\",IF(OR(VLOOKUP($A147,Economática!$A$3:$AI$823,24,FALSE)=0,VLOOKUP($A147,Economática!$A$3:$AI$823,24,FALSE)=\"-\"),1/0,VLOOKUP($A147,Economática!$A$3:$AI$823,24,FALSE)))","v":65.2},{"$f":"IF($A147=\"\",\"\",IF(OR(VLOOKUP($A147,Economática!$A$3:$AI$823,25,FALSE)=0,VLOOKUP($A147,Economática!$A$3:$AI$823,25,FALSE)=\"-\"),1/0,VLOOKUP($A147,Economática!$A$3:$AI$823,25,FALSE)))","v":65.2},{"$f":"IF($A147=\"\",\"\",IF(ISERROR((F147+VLOOKUP($A147,Economática!$A$3:$AI$823,26,FALSE))/Y147),(F147+VLOOKUP($A147,Economática!$A$3:$AI$823,26,FALSE))/Y147,(F147+VLOOKUP($A147,Economática!$A$3:$AI$823,26,FALSE))/Y147))","v":3.7758128834355826},{"$f":"IF($A147=\"\",\"\",IF(OR(-VLOOKUP($A147,Economática!$A$3:$AI$823,27,FALSE)=0,-VLOOKUP($A147,Economática!$A$3:$AI$823,27,FALSE)=\"-\"),1/0,-VLOOKUP($A147,Economática!$A$3:$AI$823,27,FALSE)))","v":{"$error":"#DIV/0!"}},{"$error":"#DIV/0!"},{"$f":"IF($A147=\"\",\"\",IF(OR(VLOOKUP($A147,Economática!$A$3:$AI$823,28,FALSE)=0,VLOOKUP($A147,Economática!$A$3:$AI$823,28,FALSE)=\"-\"),1/0,VLOOKUP($A147,Economática!$A$3:$AI$823,28,FALSE)))","v":29.7},{"$f":"IF($A147=\"\",\"\",IF(OR(VLOOKUP($A147,Economática!$A$3:$AI$823,29,FALSE)=0,VLOOKUP($A147,Economática!$A$3:$AI$823,29,FALSE)=\"-\"),1/0,VLOOKUP($A147,Economática!$A$3:$AI$823,29,FALSE)))","v":-21.4},{"$f":"IF($A147=\"\",\"\",IF(OR(VLOOKUP($A147,Economática!$A$3:$AI$823,30,FALSE)/E147=0,VLOOKUP($A147,Economática!$A$3:$AI$823,30,FALSE)/E147=\"-\",VLOOKUP($A147,Economática!$A$3:$AI$823,30,FALSE)/E147<33.33%,VLOOKUP($A147,Economática!$A$3:$AI$823,30,FALSE)/E147>100%),1/0,VLOOKUP($A147,Economática!$A$3:$AI$823,30,FALSE)/E147))","v":0.94128908742820683},"GPCP3",{"$f":"IF($A147=\"\",\"\",IF(OR(VLOOKUP($A147,Economática!$A$3:$AI$823,25,FALSE)=0,VLOOKUP($A147,Economática!$A$3:$AI$823,25,FALSE)=\"-\"),1/0,VLOOKUP($A147,Economática!$A$3:$AI$823,25,FALSE)))","v":65.2},{"$f":"CONCATENATE(Economática!B149,\" \",Economática!C149)","v":"GPC Part ON"}]
[{"$f":"IF(Economática!AG150=\"\",\"\",Economática!AG150)","v":"AALR3"},{"$f":"IF($A148=\"\",\"\",VLOOKUP(VLOOKUP($A148,Economática!$A$3:$AI$823,6,FALSE),Correção!$B$16:$C$36,2,FALSE))","v":"Outros"},{"$f":"IF(Economática!B150=\"\",\"\",Economática!B150)","v":"Alliar"},{"$f":"IF($A148=\"\",\"\",IF(OR(VLOOKUP($A148,Economática!$A$3:$AI$823,8,FALSE)=0,VLOOKUP($A148,Economática!$A$3:$AI$823,8,FALSE)=\"-\"),1/0,VLOOKUP($A148,Economática!$A$3:$AI$823,8,FALSE)))","v":14.52},{"$f":"IF(A148=\"\",\"\",IF(ISERROR(VLOOKUP(A148,Correção!$B$2:$G$13,9,FALSE)),VLOOKUP($A148,Economática!$A$3:$AI$823,9,FALSE),VLOOKUP(A148,Correção!$B$2:$G$13,9,FALSE)))","v":118.062},{"$f":"IF($A148=\"\",\"\",Economática!G150)","v":1714.25},{"$f":"IF($A148=\"\",\"\",IF(OR(VLOOKUP($A148,Economática!$A$3:$AI$823,10,FALSE)=0,VLOOKUP($A148,Economática!$A$3:$AI$823,10,FALSE)=\"-\"),1/0,VLOOKUP($A148,Economática!$A$3:$AI$823,10,FALSE)))","v":1256.95},{"$f":"IF($A148=\"\",\"\",IF(OR(VLOOKUP($A148,Economática!$A$3:$AI$823,11,FALSE)=0,VLOOKUP($A148,Economática!$A$3:$AI$823,11,FALSE)=\"-\"),1/0,VLOOKUP($A148,Economática!$A$3:$AI$823,11,FALSE)))","v":1077.8800000000001},{"$f":"IF($A148=\"\",\"\",IF(OR(VLOOKUP($A148,Economática!$A$3:$AI$823,12,FALSE)=0,VLOOKUP($A148,Economática!$A$3:$AI$823,12,FALSE)=\"-\"),1/0,VLOOKUP($A148,Economática!$A$3:$AI$823,12,FALSE)))","v":1076.92},{"$f":"IF($A148=\"\",\"\",IF(OR(VLOOKUP($A148,Economática!$A$3:$AI$823,13,FALSE)=0,VLOOKUP($A148,Economática!$A$3:$AI$823,13,FALSE)=\"-\"),1/0,VLOOKUP($A148,Economática!$A$3:$AI$823,13,FALSE)))","v":6.65},{"$f":"IF($A148=\"\",\"\",IF(OR(VLOOKUP($A148,Economática!$A$3:$AI$823,14,FALSE)=0,VLOOKUP($A148,Economática!$A$3:$AI$823,14,FALSE)=\"-\"),1/0,VLOOKUP($A148,Economática!$A$3:$AI$823,14,FALSE)))","v":7.1},{"$f":"IF($A148=\"\",\"\",IF(OR(VLOOKUP($A148,Economática!$A$3:$AI$823,15,FALSE)=0,VLOOKUP($A148,Economática!$A$3:$AI$823,15,FALSE)=\"-\"),1/0,VLOOKUP($A148,Economática!$A$3:$AI$823,15,FALSE)))","v":12.37},{"$f":"IF($A148=\"\",\"\",IF(OR(VLOOKUP($A148,Economática!$A$3:$AI$823,16,FALSE)=0,VLOOKUP($A148,Economática!$A$3:$AI$823,16,FALSE)=\"-\"),1/0,VLOOKUP($A148,Economática!$A$3:$AI$823,16,FALSE)))","v":23.59},{"$f":"IF($A148=\"\",\"\",IF(OR(VLOOKUP($A148,Economática!$A$3:$AI$823,17,FALSE)=0,VLOOKUP($A148,Economática!$A$3:$AI$823,17,FALSE)=\"-\"),1/0,VLOOKUP($A148,Economática!$A$3:$AI$823,17,FALSE)))","v":40.090000000000003},{"$f":"IF($A148=\"\",\"\",IF(OR(VLOOKUP($A148,Economática!$A$3:$AI$823,18,FALSE)=0,VLOOKUP($A148,Economática!$A$3:$AI$823,18,FALSE)=\"-\"),1/0,VLOOKUP($A148,Economática!$A$3:$AI$823,18,FALSE)))","v":6.65},{"$f":"IF($A148=\"\",\"\",IF(OR(VLOOKUP($A148,Economática!$A$3:$AI$823,19,FALSE)=0,VLOOKUP($A148,Economática!$A$3:$AI$823,19,FALSE)=\"-\"),1/0,VLOOKUP($A148,Economática!$A$3:$AI$823,19,FALSE)))","v":40.090000000000003},{"$f":"IF($A148=\"\",\"\",VLOOKUP($A148,Economática!$A$3:$AI$823,20,FALSE)/E148)","v":0.33956734597076116},10.646524707357152,1.3638253232029913,42.76029533549513,{"$f":"IF($A148=\"\",\"\",IF(OR(VLOOKUP($A148,Economática!$A$3:$AI$823,21,FALSE)/100=0,VLOOKUP($A148,Economática!$A$3:$AI$823,21,FALSE)/100=\"-\"),1/0,VLOOKUP($A148,Economática!$A$3:$AI$823,21,FALSE)/100))","v":4.0594999999999999E-2},{"$f":"IF($A148=\"\",\"\",IF(OR(VLOOKUP($A148,Economática!$A$3:$AI$823,22,FALSE)/100=0,VLOOKUP($A148,Economática!$A$3:$AI$823,22,FALSE)/100=\"-\"),1/0,VLOOKUP($A148,Economática!$A$3:$AI$823,22,FALSE)/100))","v":0.40958799999999995},{"$f":"IF($A148=\"\",\"\",IF(OR(VLOOKUP($A148,Economática!$A$3:$AI$823,23,FALSE)=0,VLOOKUP($A148,Economática!$A$3:$AI$823,23,FALSE)=\"-\"),1/0,VLOOKUP($A148,Economática!$A$3:$AI$823,23,FALSE)))","v":149.4},{"$f":"IF($A148=\"\",\"\",IF(OR(VLOOKUP($A148,Economática!$A$3:$AI$823,24,FALSE)=0,VLOOKUP($A148,Economática!$A$3:$AI$823,24,FALSE)=\"-\"),1/0,VLOOKUP($A148,Economática!$A$3:$AI$823,24,FALSE)))","v":219.9},{"$f":"IF($A148=\"\",\"\",IF(OR(VLOOKUP($A148,Economática!$A$3:$AI$823,25,FALSE)=0,VLOOKUP($A148,Economática!$A$3:$AI$823,25,FALSE)=\"-\"),1/0,VLOOKUP($A148,Economática!$A$3:$AI$823,25,FALSE)))","v":219.9},{"$f":"IF($A148=\"\",\"\",IF(ISERROR((F148+VLOOKUP($A148,Economática!$A$3:$AI$823,26,FALSE))/Y148),(F148+VLOOKUP($A148,Economática!$A$3:$AI$823,26,FALSE))/Y148,(F148+VLOOKUP($A148,Economática!$A$3:$AI$823,26,FALSE))/Y148))","v":10.216443838108232},{"$f":"IF($A148=\"\",\"\",IF(OR(-VLOOKUP($A148,Economática!$A$3:$AI$823,27,FALSE)=0,-VLOOKUP($A148,Economática!$A$3:$AI$823,27,FALSE)=\"-\"),1/0,-VLOOKUP($A148,Economática!$A$3:$AI$823,27,FALSE)))","v":{"$error":"#DIV/0!"}},{"$error":"#DIV/0!"},{"$f":"IF($A148=\"\",\"\",IF(OR(VLOOKUP($A148,Economática!$A$3:$AI$823,28,FALSE)=0,VLOOKUP($A148,Economática!$A$3:$AI$823,28,FALSE)=\"-\"),1/0,VLOOKUP($A148,Economática!$A$3:$AI$823,28,FALSE)))","v":-8.1},{"$f":"IF($A148=\"\",\"\",IF(OR(VLOOKUP($A148,Economática!$A$3:$AI$823,29,FALSE)=0,VLOOKUP($A148,Economática!$A$3:$AI$823,29,FALSE)=\"-\"),1/0,VLOOKUP($A148,Economática!$A$3:$AI$823,29,FALSE)))","v":-1.9},{"$f":"IF($A148=\"\",\"\",IF(OR(VLOOKUP($A148,Economática!$A$3:$AI$823,30,FALSE)/E148=0,VLOOKUP($A148,Economática!$A$3:$AI$823,30,FALSE)/E148=\"-\",VLOOKUP($A148,Economática!$A$3:$AI$823,30,FALSE)/E148<33.33%,VLOOKUP($A148,Economática!$A$3:$AI$823,30,FALSE)/E148>100%),1/0,VLOOKUP($A148,Economática!$A$3:$AI$823,30,FALSE)/E148))","v":{"$error":"#DIV/0!"}},"AALR3",{"$f":"IF($A148=\"\",\"\",IF(OR(VLOOKUP($A148,Economática!$A$3:$AI$823,25,FALSE)=0,VLOOKUP($A148,Economática!$A$3:$AI$823,25,FALSE)=\"-\"),1/0,VLOOKUP($A148,Economática!$A$3:$AI$823,25,FALSE)))","v":219.9},{"$f":"CONCATENATE(Economática!B150,\" \",Economática!C150)","v":"Alliar ON"}]
[{"$f":"IF(Economática!AG151=\"\",\"\",Economática!AG151)","v":"MOAR3"},{"$f":"IF($A149=\"\",\"\",VLOOKUP(VLOOKUP($A149,Economática!$A$3:$AI$823,6,FALSE),Correção!$B$16:$C$36,2,FALSE))","v":"Outros"},{"$f":"IF(Economática!B151=\"\",\"\",Economática!B151)","v":"Mont Aranha"},{"$f":"IF($A149=\"\",\"\",IF(OR(VLOOKUP($A149,Economática!$A$3:$AI$823,8,FALSE)=0,VLOOKUP($A149,Economática!$A$3:$AI$823,8,FALSE)=\"-\"),1/0,VLOOKUP($A149,Economática!$A$3:$AI$823,8,FALSE)))","v":170},{"$f":"IF(A149=\"\",\"\",IF(ISERROR(VLOOKUP(A149,Correção!$B$2:$G$13,9,FALSE)),VLOOKUP($A149,Economática!$A$3:$AI$823,9,FALSE),VLOOKUP(A149,Correção!$B$2:$G$13,9,FALSE)))","v":12.250999999999999},{"$f":"IF($A149=\"\",\"\",Economática!G151)","v":2082.71},{"$f":"IF($A149=\"\",\"\",IF(OR(VLOOKUP($A149,Economática!$A$3:$AI$823,10,FALSE)=0,VLOOKUP($A149,Economática!$A$3:$AI$823,10,FALSE)=\"-\"),1/0,VLOOKUP($A149,Economática!$A$3:$AI$823,10,FALSE)))","v":1134.1600000000001},{"$f":"IF($A149=\"\",\"\",IF(OR(VLOOKUP($A149,Economática!$A$3:$AI$823,11,FALSE)=0,VLOOKUP($A149,Economática!$A$3:$AI$823,11,FALSE)=\"-\"),1/0,VLOOKUP($A149,Economática!$A$3:$AI$823,11,FALSE)))","v":2.76},{"$f":"IF($A149=\"\",\"\",IF(OR(VLOOKUP($A149,Economática!$A$3:$AI$823,12,FALSE)=0,VLOOKUP($A149,Economática!$A$3:$AI$823,12,FALSE)=\"-\"),1/0,VLOOKUP($A149,Economática!$A$3:$AI$823,12,FALSE)))","v":3.67},{"$f":"IF($A149=\"\",\"\",IF(OR(VLOOKUP($A149,Economática!$A$3:$AI$823,13,FALSE)=0,VLOOKUP($A149,Economática!$A$3:$AI$823,13,FALSE)=\"-\"),1/0,VLOOKUP($A149,Economática!$A$3:$AI$823,13,FALSE)))","v":141.19},{"$f":"IF($A149=\"\",\"\",IF(OR(VLOOKUP($A149,Economática!$A$3:$AI$823,14,FALSE)=0,VLOOKUP($A149,Economática!$A$3:$AI$823,14,FALSE)=\"-\"),1/0,VLOOKUP($A149,Economática!$A$3:$AI$823,14,FALSE)))","v":-9.65},{"$f":"IF($A149=\"\",\"\",IF(OR(VLOOKUP($A149,Economática!$A$3:$AI$823,15,FALSE)=0,VLOOKUP($A149,Economática!$A$3:$AI$823,15,FALSE)=\"-\"),1/0,VLOOKUP($A149,Economática!$A$3:$AI$823,15,FALSE)))","v":-19.16},{"$f":"IF($A149=\"\",\"\",IF(OR(VLOOKUP($A149,Economática!$A$3:$AI$823,16,FALSE)=0,VLOOKUP($A149,Economática!$A$3:$AI$823,16,FALSE)=\"-\"),1/0,VLOOKUP($A149,Economática!$A$3:$AI$823,16,FALSE)))","v":8.35},{"$f":"IF($A149=\"\",\"\",IF(OR(VLOOKUP($A149,Economática!$A$3:$AI$823,17,FALSE)=0,VLOOKUP($A149,Economática!$A$3:$AI$823,17,FALSE)=\"-\"),1/0,VLOOKUP($A149,Economática!$A$3:$AI$823,17,FALSE)))","v":40.81},{"$f":"IF($A149=\"\",\"\",IF(OR(VLOOKUP($A149,Economática!$A$3:$AI$823,18,FALSE)=0,VLOOKUP($A149,Economática!$A$3:$AI$823,18,FALSE)=\"-\"),1/0,VLOOKUP($A149,Economática!$A$3:$AI$823,18,FALSE)))","v":141.19},{"$f":"IF($A149=\"\",\"\",IF(OR(VLOOKUP($A149,Economática!$A$3:$AI$823,19,FALSE)=0,VLOOKUP($A149,Economática!$A$3:$AI$823,19,FALSE)=\"-\"),1/0,VLOOKUP($A149,Economática!$A$3:$AI$823,19,FALSE)))","v":40.81},{"$f":"IF($A149=\"\",\"\",VLOOKUP($A149,Economática!$A$3:$AI$823,20,FALSE)/E149)","v":3.3311566402742638},92.576932495306522,1.8363105734640612,51.033325165400626,{"$f":"IF($A149=\"\",\"\",IF(OR(VLOOKUP($A149,Economática!$A$3:$AI$823,21,FALSE)/100=0,VLOOKUP($A149,Economática!$A$3:$AI$823,21,FALSE)/100=\"-\"),1/0,VLOOKUP($A149,Economática!$A$3:$AI$823,21,FALSE)/100))","v":3.4019000000000001E-2},{"$f":"IF($A149=\"\",\"\",IF(OR(VLOOKUP($A149,Economática!$A$3:$AI$823,22,FALSE)/100=0,VLOOKUP($A149,Economática!$A$3:$AI$823,22,FALSE)/100=\"-\"),1/0,VLOOKUP($A149,Economática!$A$3:$AI$823,22,FALSE)/100))","v":-0.30665500000000001},{"$f":"IF($A149=\"\",\"\",IF(OR(VLOOKUP($A149,Economática!$A$3:$AI$823,23,FALSE)=0,VLOOKUP($A149,Economática!$A$3:$AI$823,23,FALSE)=\"-\"),1/0,VLOOKUP($A149,Economática!$A$3:$AI$823,23,FALSE)))","v":99.6},{"$f":"IF($A149=\"\",\"\",IF(OR(VLOOKUP($A149,Economática!$A$3:$AI$823,24,FALSE)=0,VLOOKUP($A149,Economática!$A$3:$AI$823,24,FALSE)=\"-\"),1/0,VLOOKUP($A149,Economática!$A$3:$AI$823,24,FALSE)))","v":21},{"$f":"IF($A149=\"\",\"\",IF(OR(VLOOKUP($A149,Economática!$A$3:$AI$823,25,FALSE)=0,VLOOKUP($A149,Economática!$A$3:$AI$823,25,FALSE)=\"-\"),1/0,VLOOKUP($A149,Economática!$A$3:$AI$823,25,FALSE)))","v":21},{"$f":"IF($A149=\"\",\"\",IF(ISERROR((F149+VLOOKUP($A149,Economática!$A$3:$AI$823,26,FALSE))/Y149),(F149+VLOOKUP($A149,Economática!$A$3:$AI$823,26,FALSE))/Y149,(F149+VLOOKUP($A149,Economática!$A$3:$AI$823,26,FALSE))/Y149))","v":82.56280952380952},{"$f":"IF($A149=\"\",\"\",IF(OR(-VLOOKUP($A149,Economática!$A$3:$AI$823,27,FALSE)=0,-VLOOKUP($A149,Economática!$A$3:$AI$823,27,FALSE)=\"-\"),1/0,-VLOOKUP($A149,Economática!$A$3:$AI$823,27,FALSE)))","v":188.14},9.0334228001017897E-2,{"$f":"IF($A149=\"\",\"\",IF(OR(VLOOKUP($A149,Economática!$A$3:$AI$823,28,FALSE)=0,VLOOKUP($A149,Economática!$A$3:$AI$823,28,FALSE)=\"-\"),1/0,VLOOKUP($A149,Economática!$A$3:$AI$823,28,FALSE)))","v":-2.9},{"$f":"IF($A149=\"\",\"\",IF(OR(VLOOKUP($A149,Economática!$A$3:$AI$823,29,FALSE)=0,VLOOKUP($A149,Economática!$A$3:$AI$823,29,FALSE)=\"-\"),1/0,VLOOKUP($A149,Economática!$A$3:$AI$823,29,FALSE)))","v":29},{"$f":"IF($A149=\"\",\"\",IF(OR(VLOOKUP($A149,Economática!$A$3:$AI$823,30,FALSE)/E149=0,VLOOKUP($A149,Economática!$A$3:$AI$823,30,FALSE)/E149=\"-\",VLOOKUP($A149,Economática!$A$3:$AI$823,30,FALSE)/E149<33.33%,VLOOKUP($A149,Economática!$A$3:$AI$823,30,FALSE)/E149>100%),1/0,VLOOKUP($A149,Economática!$A$3:$AI$823,30,FALSE)/E149))","v":{"$error":"#DIV/0!"}},"MOAR3",{"$f":"IF($A149=\"\",\"\",IF(OR(VLOOKUP($A149,Economática!$A$3:$AI$823,25,FALSE)=0,VLOOKUP($A149,Economática!$A$3:$AI$823,25,FALSE)=\"-\"),1/0,VLOOKUP($A149,Economática!$A$3:$AI$823,25,FALSE)))","v":21},{"$f":"CONCATENATE(Economática!B151,\" \",Economática!C151)","v":"Mont Aranha ON"}]
[{"$f":"IF(Economática!AG152=\"\",\"\",Economática!AG152)","v":"SHOW3"},{"$f":"IF($A150=\"\",\"\",VLOOKUP(VLOOKUP($A150,Economática!$A$3:$AI$823,6,FALSE),Correção!$B$16:$C$36,2,FALSE))","v":"Outros"},{"$f":"IF(Economática!B152=\"\",\"\",Economática!B152)","v":"Time For Fun"},{"$f":"IF($A150=\"\",\"\",IF(OR(VLOOKUP($A150,Economática!$A$3:$AI$823,8,FALSE)=0,VLOOKUP($A150,Economática!$A$3:$AI$823,8,FALSE)=\"-\"),1/0,VLOOKUP($A150,Economática!$A$3:$AI$823,8,FALSE)))","v":6.78},{"$f":"IF(A150=\"\",\"\",IF(ISERROR(VLOOKUP(A150,Correção!$B$2:$G$13,9,FALSE)),VLOOKUP($A150,Economática!$A$3:$AI$823,9,FALSE),VLOOKUP(A150,Correção!$B$2:$G$13,9,FALSE)))","v":67.286000000000001},{"$f":"IF($A150=\"\",\"\",Economática!G152)","v":456.2},{"$f":"IF($A150=\"\",\"\",IF(OR(VLOOKUP($A150,Economática!$A$3:$AI$823,10,FALSE)=0,VLOOKUP($A150,Economática!$A$3:$AI$823,10,FALSE)=\"-\"),1/0,VLOOKUP($A150,Economática!$A$3:$AI$823,10,FALSE)))","v":329.17},{"$f":"IF($A150=\"\",\"\",IF(OR(VLOOKUP($A150,Economática!$A$3:$AI$823,11,FALSE)=0,VLOOKUP($A150,Economática!$A$3:$AI$823,11,FALSE)=\"-\"),1/0,VLOOKUP($A150,Economática!$A$3:$AI$823,11,FALSE)))","v":652.9},{"$f":"IF($A150=\"\",\"\",IF(OR(VLOOKUP($A150,Economática!$A$3:$AI$823,12,FALSE)=0,VLOOKUP($A150,Economática!$A$3:$AI$823,12,FALSE)=\"-\"),1/0,VLOOKUP($A150,Economática!$A$3:$AI$823,12,FALSE)))","v":598.38},{"$f":"IF($A150=\"\",\"\",IF(OR(VLOOKUP($A150,Economática!$A$3:$AI$823,13,FALSE)=0,VLOOKUP($A150,Economática!$A$3:$AI$823,13,FALSE)=\"-\"),1/0,VLOOKUP($A150,Economática!$A$3:$AI$823,13,FALSE)))","v":44.35},{"$f":"IF($A150=\"\",\"\",IF(OR(VLOOKUP($A150,Economática!$A$3:$AI$823,14,FALSE)=0,VLOOKUP($A150,Economática!$A$3:$AI$823,14,FALSE)=\"-\"),1/0,VLOOKUP($A150,Economática!$A$3:$AI$823,14,FALSE)))","v":4.01},{"$f":"IF($A150=\"\",\"\",IF(OR(VLOOKUP($A150,Economática!$A$3:$AI$823,15,FALSE)=0,VLOOKUP($A150,Economática!$A$3:$AI$823,15,FALSE)=\"-\"),1/0,VLOOKUP($A150,Economática!$A$3:$AI$823,15,FALSE)))","v":7.62},{"$f":"IF($A150=\"\",\"\",IF(OR(VLOOKUP($A150,Economática!$A$3:$AI$823,16,FALSE)=0,VLOOKUP($A150,Economática!$A$3:$AI$823,16,FALSE)=\"-\"),1/0,VLOOKUP($A150,Economática!$A$3:$AI$823,16,FALSE)))","v":20.67},{"$f":"IF($A150=\"\",\"\",IF(OR(VLOOKUP($A150,Economática!$A$3:$AI$823,17,FALSE)=0,VLOOKUP($A150,Economática!$A$3:$AI$823,17,FALSE)=\"-\"),1/0,VLOOKUP($A150,Economática!$A$3:$AI$823,17,FALSE)))","v":8.3800000000000008},{"$f":"IF($A150=\"\",\"\",IF(OR(VLOOKUP($A150,Economática!$A$3:$AI$823,18,FALSE)=0,VLOOKUP($A150,Economática!$A$3:$AI$823,18,FALSE)=\"-\"),1/0,VLOOKUP($A150,Economática!$A$3:$AI$823,18,FALSE)))","v":44.35},{"$f":"IF($A150=\"\",\"\",IF(OR(VLOOKUP($A150,Economática!$A$3:$AI$823,19,FALSE)=0,VLOOKUP($A150,Economática!$A$3:$AI$823,19,FALSE)=\"-\"),1/0,VLOOKUP($A150,Economática!$A$3:$AI$823,19,FALSE)))","v":8.3800000000000008},{"$f":"IF($A150=\"\",\"\",VLOOKUP($A150,Economática!$A$3:$AI$823,20,FALSE)/E150)","v":0.12454299557114408},4.892102368992064,1.3859072211926968,54.439031026252984,{"$f":"IF($A150=\"\",\"\",IF(OR(VLOOKUP($A150,Economática!$A$3:$AI$823,21,FALSE)/100=0,VLOOKUP($A150,Economática!$A$3:$AI$823,21,FALSE)/100=\"-\"),1/0,VLOOKUP($A150,Economática!$A$3:$AI$823,21,FALSE)/100))","v":3.2508000000000002E-2},{"$f":"IF($A150=\"\",\"\",IF(OR(VLOOKUP($A150,Economática!$A$3:$AI$823,22,FALSE)/100=0,VLOOKUP($A150,Economática!$A$3:$AI$823,22,FALSE)/100=\"-\"),1/0,VLOOKUP($A150,Economática!$A$3:$AI$823,22,FALSE)/100))","v":-0.25469999999999998},{"$f":"IF($A150=\"\",\"\",IF(OR(VLOOKUP($A150,Economática!$A$3:$AI$823,23,FALSE)=0,VLOOKUP($A150,Economática!$A$3:$AI$823,23,FALSE)=\"-\"),1/0,VLOOKUP($A150,Economática!$A$3:$AI$823,23,FALSE)))","v":75},{"$f":"IF($A150=\"\",\"\",IF(OR(VLOOKUP($A150,Economática!$A$3:$AI$823,24,FALSE)=0,VLOOKUP($A150,Economática!$A$3:$AI$823,24,FALSE)=\"-\"),1/0,VLOOKUP($A150,Economática!$A$3:$AI$823,24,FALSE)))","v":37.4},{"$f":"IF($A150=\"\",\"\",IF(OR(VLOOKUP($A150,Economática!$A$3:$AI$823,25,FALSE)=0,VLOOKUP($A150,Economática!$A$3:$AI$823,25,FALSE)=\"-\"),1/0,VLOOKUP($A150,Economática!$A$3:$AI$823,25,FALSE)))","v":37.4},{"$f":"IF($A150=\"\",\"\",IF(ISERROR((F150+VLOOKUP($A150,Economática!$A$3:$AI$823,26,FALSE))/Y150),(F150+VLOOKUP($A150,Economática!$A$3:$AI$823,26,FALSE))/Y150,(F150+VLOOKUP($A150,Economática!$A$3:$AI$823,26,FALSE))/Y150))","v":9.92},{"$f":"IF($A150=\"\",\"\",IF(OR(-VLOOKUP($A150,Economática!$A$3:$AI$823,27,FALSE)=0,-VLOOKUP($A150,Economática!$A$3:$AI$823,27,FALSE)=\"-\"),1/0,-VLOOKUP($A150,Economática!$A$3:$AI$823,27,FALSE)))","v":21.07},4.6185883384480493E-2,{"$f":"IF($A150=\"\",\"\",IF(OR(VLOOKUP($A150,Economática!$A$3:$AI$823,28,FALSE)=0,VLOOKUP($A150,Economática!$A$3:$AI$823,28,FALSE)=\"-\"),1/0,VLOOKUP($A150,Economática!$A$3:$AI$823,28,FALSE)))","v":-6.5},{"$f":"IF($A150=\"\",\"\",IF(OR(VLOOKUP($A150,Economática!$A$3:$AI$823,29,FALSE)=0,VLOOKUP($A150,Economática!$A$3:$AI$823,29,FALSE)=\"-\"),1/0,VLOOKUP($A150,Economática!$A$3:$AI$823,29,FALSE)))","v":-4.8},{"$f":"IF($A150=\"\",\"\",IF(OR(VLOOKUP($A150,Economática!$A$3:$AI$823,30,FALSE)/E150=0,VLOOKUP($A150,Economática!$A$3:$AI$823,30,FALSE)/E150=\"-\",VLOOKUP($A150,Economática!$A$3:$AI$823,30,FALSE)/E150<33.33%,VLOOKUP($A150,Economática!$A$3:$AI$823,30,FALSE)/E150>100%),1/0,VLOOKUP($A150,Economática!$A$3:$AI$823,30,FALSE)/E150))","v":{"$error":"#DIV/0!"}},"SHOW3",{"$f":"IF($A150=\"\",\"\",IF(OR(VLOOKUP($A150,Economática!$A$3:$AI$823,25,FALSE)=0,VLOOKUP($A150,Economática!$A$3:$AI$823,25,FALSE)=\"-\"),1/0,VLOOKUP($A150,Economática!$A$3:$AI$823,25,FALSE)))","v":37.4},{"$f":"CONCATENATE(Economática!B152,\" \",Economática!C152)","v":"Time For Fun ON"}]
[{"$f":"IF(Economática!AG153=\"\",\"\",Economática!AG153)","v":"TECN3"},{"$f":"IF($A151=\"\",\"\",VLOOKUP(VLOOKUP($A151,Economática!$A$3:$AI$823,6,FALSE),Correção!$B$16:$C$36,2,FALSE))","v":"Outros"},{"$f":"IF(Economática!B153=\"\",\"\",Economática!B153)","v":"Technos"},{"$f":"IF($A151=\"\",\"\",IF(OR(VLOOKUP($A151,Economática!$A$3:$AI$823,8,FALSE)=0,VLOOKUP($A151,Economática!$A$3:$AI$823,8,FALSE)=\"-\"),1/0,VLOOKUP($A151,Economática!$A$3:$AI$823,8,FALSE)))","v":2.44},{"$f":"IF(A151=\"\",\"\",IF(ISERROR(VLOOKUP(A151,Correção!$B$2:$G$13,9,FALSE)),VLOOKUP($A151,Economática!$A$3:$AI$823,9,FALSE),VLOOKUP(A151,Correção!$B$2:$G$13,9,FALSE)))","v":77.298000000000002},{"$f":"IF($A151=\"\",\"\",Economática!G153)","v":188.61},{"$f":"IF($A151=\"\",\"\",IF(OR(VLOOKUP($A151,Economática!$A$3:$AI$823,10,FALSE)=0,VLOOKUP($A151,Economática!$A$3:$AI$823,10,FALSE)=\"-\"),1/0,VLOOKUP($A151,Economática!$A$3:$AI$823,10,FALSE)))","v":465.69},{"$f":"IF($A151=\"\",\"\",IF(OR(VLOOKUP($A151,Economática!$A$3:$AI$823,11,FALSE)=0,VLOOKUP($A151,Economática!$A$3:$AI$823,11,FALSE)=\"-\"),1/0,VLOOKUP($A151,Economática!$A$3:$AI$823,11,FALSE)))","v":340.08},{"$f":"IF($A151=\"\",\"\",IF(OR(VLOOKUP($A151,Economática!$A$3:$AI$823,12,FALSE)=0,VLOOKUP($A151,Economática!$A$3:$AI$823,12,FALSE)=\"-\"),1/0,VLOOKUP($A151,Economática!$A$3:$AI$823,12,FALSE)))","v":305.7},{"$f":"IF($A151=\"\",\"\",IF(OR(VLOOKUP($A151,Economática!$A$3:$AI$823,13,FALSE)=0,VLOOKUP($A151,Economática!$A$3:$AI$823,13,FALSE)=\"-\"),1/0,VLOOKUP($A151,Economática!$A$3:$AI$823,13,FALSE)))","v":-1.92},{"$f":"IF($A151=\"\",\"\",IF(OR(VLOOKUP($A151,Economática!$A$3:$AI$823,14,FALSE)=0,VLOOKUP($A151,Economática!$A$3:$AI$823,14,FALSE)=\"-\"),1/0,VLOOKUP($A151,Economática!$A$3:$AI$823,14,FALSE)))","v":-15.02},{"$f":"IF($A151=\"\",\"\",IF(OR(VLOOKUP($A151,Economática!$A$3:$AI$823,15,FALSE)=0,VLOOKUP($A151,Economática!$A$3:$AI$823,15,FALSE)=\"-\"),1/0,VLOOKUP($A151,Economática!$A$3:$AI$823,15,FALSE)))","v":-7.54},{"$f":"IF($A151=\"\",\"\",IF(OR(VLOOKUP($A151,Economática!$A$3:$AI$823,16,FALSE)=0,VLOOKUP($A151,Economática!$A$3:$AI$823,16,FALSE)=\"-\"),1/0,VLOOKUP($A151,Economática!$A$3:$AI$823,16,FALSE)))","v":-11.26},{"$f":"IF($A151=\"\",\"\",IF(OR(VLOOKUP($A151,Economática!$A$3:$AI$823,17,FALSE)=0,VLOOKUP($A151,Economática!$A$3:$AI$823,17,FALSE)=\"-\"),1/0,VLOOKUP($A151,Economática!$A$3:$AI$823,17,FALSE)))","v":14.37},{"$f":"IF($A151=\"\",\"\",IF(OR(VLOOKUP($A151,Economática!$A$3:$AI$823,18,FALSE)=0,VLOOKUP($A151,Economática!$A$3:$AI$823,18,FALSE)=\"-\"),1/0,VLOOKUP($A151,Economática!$A$3:$AI$823,18,FALSE)))","v":-1.92},{"$f":"IF($A151=\"\",\"\",IF(OR(VLOOKUP($A151,Economática!$A$3:$AI$823,19,FALSE)=0,VLOOKUP($A151,Economática!$A$3:$AI$823,19,FALSE)=\"-\"),1/0,VLOOKUP($A151,Economática!$A$3:$AI$823,19,FALSE)))","v":14.37},{"$f":"IF($A151=\"\",\"\",VLOOKUP($A151,Economática!$A$3:$AI$823,20,FALSE)/E151)","v":0.18590390437010013},6.0246060700147481,0.40500573342781676,13.125060542797495,{"$f":"IF($A151=\"\",\"\",IF(OR(VLOOKUP($A151,Economática!$A$3:$AI$823,21,FALSE)/100=0,VLOOKUP($A151,Economática!$A$3:$AI$823,21,FALSE)/100=\"-\"),1/0,VLOOKUP($A151,Economática!$A$3:$AI$823,21,FALSE)/100))","v":3.0971000000000002E-2},{"$f":"IF($A151=\"\",\"\",IF(OR(VLOOKUP($A151,Economática!$A$3:$AI$823,22,FALSE)/100=0,VLOOKUP($A151,Economática!$A$3:$AI$823,22,FALSE)/100=\"-\"),1/0,VLOOKUP($A151,Economática!$A$3:$AI$823,22,FALSE)/100))","v":6.2107999999999997E-2},{"$f":"IF($A151=\"\",\"\",IF(OR(VLOOKUP($A151,Economática!$A$3:$AI$823,23,FALSE)=0,VLOOKUP($A151,Economática!$A$3:$AI$823,23,FALSE)=\"-\"),1/0,VLOOKUP($A151,Economática!$A$3:$AI$823,23,FALSE)))","v":9.3000000000000007},{"$f":"IF($A151=\"\",\"\",IF(OR(VLOOKUP($A151,Economática!$A$3:$AI$823,24,FALSE)=0,VLOOKUP($A151,Economática!$A$3:$AI$823,24,FALSE)=\"-\"),1/0,VLOOKUP($A151,Economática!$A$3:$AI$823,24,FALSE)))","v":8.4},{"$f":"IF($A151=\"\",\"\",IF(OR(VLOOKUP($A151,Economática!$A$3:$AI$823,25,FALSE)=0,VLOOKUP($A151,Economática!$A$3:$AI$823,25,FALSE)=\"-\"),1/0,VLOOKUP($A151,Economática!$A$3:$AI$823,25,FALSE)))","v":8.4},{"$f":"IF($A151=\"\",\"\",IF(ISERROR((F151+VLOOKUP($A151,Economática!$A$3:$AI$823,26,FALSE))/Y151),(F151+VLOOKUP($A151,Economática!$A$3:$AI$823,26,FALSE))/Y151,(F151+VLOOKUP($A151,Economática!$A$3:$AI$823,26,FALSE))/Y151))","v":25.896785714285716},{"$f":"IF($A151=\"\",\"\",IF(OR(-VLOOKUP($A151,Economática!$A$3:$AI$823,27,FALSE)=0,-VLOOKUP($A151,Economática!$A$3:$AI$823,27,FALSE)=\"-\"),1/0,-VLOOKUP($A151,Economática!$A$3:$AI$823,27,FALSE)))","v":{"$error":"#DIV/0!"}},{"$error":"#DIV/0!"},{"$f":"IF($A151=\"\",\"\",IF(OR(VLOOKUP($A151,Economática!$A$3:$AI$823,28,FALSE)=0,VLOOKUP($A151,Economática!$A$3:$AI$823,28,FALSE)=\"-\"),1/0,VLOOKUP($A151,Economática!$A$3:$AI$823,28,FALSE)))","v":-1.6},{"$f":"IF($A151=\"\",\"\",IF(OR(VLOOKUP($A151,Economática!$A$3:$AI$823,29,FALSE)=0,VLOOKUP($A151,Economática!$A$3:$AI$823,29,FALSE)=\"-\"),1/0,VLOOKUP($A151,Economática!$A$3:$AI$823,29,FALSE)))","v":-31.3},{"$f":"IF($A151=\"\",\"\",IF(OR(VLOOKUP($A151,Economática!$A$3:$AI$823,30,FALSE)/E151=0,VLOOKUP($A151,Economática!$A$3:$AI$823,30,FALSE)/E151=\"-\",VLOOKUP($A151,Economática!$A$3:$AI$823,30,FALSE)/E151<33.33%,VLOOKUP($A151,Economática!$A$3:$AI$823,30,FALSE)/E151>100%),1/0,VLOOKUP($A151,Economática!$A$3:$AI$823,30,FALSE)/E151))","v":{"$error":"#DIV/0!"}},"TECN3",{"$f":"IF($A151=\"\",\"\",IF(OR(VLOOKUP($A151,Economática!$A$3:$AI$823,25,FALSE)=0,VLOOKUP($A151,Economática!$A$3:$AI$823,25,FALSE)=\"-\"),1/0,VLOOKUP($A151,Economática!$A$3:$AI$823,25,FALSE)))","v":8.4},{"$f":"CONCATENATE(Economática!B153,\" \",Economática!C153)","v":"Technos ON"}]
[{"$f":"IF(Economática!AG154=\"\",\"\",Economática!AG154)","v":"OMGE3"},{"$f":"IF($A152=\"\",\"\",VLOOKUP(VLOOKUP($A152,Economática!$A$3:$AI$823,6,FALSE),Correção!$B$16:$C$36,2,FALSE))","v":"Outros"},{"$f":"IF(Economática!B154=\"\",\"\",Economática!B154)","v":"Omega Ger"},{"$f":"IF($A152=\"\",\"\",IF(OR(VLOOKUP($A152,Economática!$A$3:$AI$823,8,FALSE)=0,VLOOKUP($A152,Economática!$A$3:$AI$823,8,FALSE)=\"-\"),1/0,VLOOKUP($A152,Economática!$A$3:$AI$823,8,FALSE)))","v":19.5},{"$f":"IF(A152=\"\",\"\",IF(ISERROR(VLOOKUP(A152,Correção!$B$2:$G$13,9,FALSE)),VLOOKUP($A152,Economática!$A$3:$AI$823,9,FALSE),VLOOKUP(A152,Correção!$B$2:$G$13,9,FALSE)))","v":136.83799999999999},{"$f":"IF($A152=\"\",\"\",Economática!G154)","v":2668.35},{"$f":"IF($A152=\"\",\"\",IF(OR(VLOOKUP($A152,Economática!$A$3:$AI$823,10,FALSE)=0,VLOOKUP($A152,Economática!$A$3:$AI$823,10,FALSE)=\"-\"),1/0,VLOOKUP($A152,Economática!$A$3:$AI$823,10,FALSE)))","v":1811.96},{"$f":"IF($A152=\"\",\"\",IF(OR(VLOOKUP($A152,Economática!$A$3:$AI$823,11,FALSE)=0,VLOOKUP($A152,Economática!$A$3:$AI$823,11,FALSE)=\"-\"),1/0,VLOOKUP($A152,Economática!$A$3:$AI$823,11,FALSE)))","v":546.11},{"$f":"IF($A152=\"\",\"\",IF(OR(VLOOKUP($A152,Economática!$A$3:$AI$823,12,FALSE)=0,VLOOKUP($A152,Economática!$A$3:$AI$823,12,FALSE)=\"-\"),1/0,VLOOKUP($A152,Economática!$A$3:$AI$823,12,FALSE)))","v":742.02},{"$f":"IF($A152=\"\",\"\",IF(OR(VLOOKUP($A152,Economática!$A$3:$AI$823,13,FALSE)=0,VLOOKUP($A152,Economática!$A$3:$AI$823,13,FALSE)=\"-\"),1/0,VLOOKUP($A152,Economática!$A$3:$AI$823,13,FALSE)))","v":100.38},{"$f":"IF($A152=\"\",\"\",IF(OR(VLOOKUP($A152,Economática!$A$3:$AI$823,14,FALSE)=0,VLOOKUP($A152,Economática!$A$3:$AI$823,14,FALSE)=\"-\"),1/0,VLOOKUP($A152,Economática!$A$3:$AI$823,14,FALSE)))","v":-16.420000000000002},{"$f":"IF($A152=\"\",\"\",IF(OR(VLOOKUP($A152,Economática!$A$3:$AI$823,15,FALSE)=0,VLOOKUP($A152,Economática!$A$3:$AI$823,15,FALSE)=\"-\"),1/0,VLOOKUP($A152,Economática!$A$3:$AI$823,15,FALSE)))","v":-36.159999999999997},{"$f":"IF($A152=\"\",\"\",IF(OR(VLOOKUP($A152,Economática!$A$3:$AI$823,16,FALSE)=0,VLOOKUP($A152,Economática!$A$3:$AI$823,16,FALSE)=\"-\"),1/0,VLOOKUP($A152,Economática!$A$3:$AI$823,16,FALSE)))","v":-11.85},{"$f":"IF($A152=\"\",\"\",IF(OR(VLOOKUP($A152,Economática!$A$3:$AI$823,17,FALSE)=0,VLOOKUP($A152,Economática!$A$3:$AI$823,17,FALSE)=\"-\"),1/0,VLOOKUP($A152,Economática!$A$3:$AI$823,17,FALSE)))","v":41.89},{"$f":"IF($A152=\"\",\"\",IF(OR(VLOOKUP($A152,Economática!$A$3:$AI$823,18,FALSE)=0,VLOOKUP($A152,Economática!$A$3:$AI$823,18,FALSE)=\"-\"),1/0,VLOOKUP($A152,Economática!$A$3:$AI$823,18,FALSE)))","v":100.38},{"$f":"IF($A152=\"\",\"\",IF(OR(VLOOKUP($A152,Economática!$A$3:$AI$823,19,FALSE)=0,VLOOKUP($A152,Economática!$A$3:$AI$823,19,FALSE)=\"-\"),1/0,VLOOKUP($A152,Economática!$A$3:$AI$823,19,FALSE)))","v":41.89},{"$f":"IF($A152=\"\",\"\",VLOOKUP($A152,Economática!$A$3:$AI$823,20,FALSE)/E152)","v":0.30612841462166945},13.241643403148249,1.4726268791805559,63.698758653616608,{"$f":"IF($A152=\"\",\"\",IF(OR(VLOOKUP($A152,Economática!$A$3:$AI$823,21,FALSE)/100=0,VLOOKUP($A152,Economática!$A$3:$AI$823,21,FALSE)/100=\"-\"),1/0,VLOOKUP($A152,Economática!$A$3:$AI$823,21,FALSE)/100))","v":2.7633999999999999E-2},{"$f":"IF($A152=\"\",\"\",IF(OR(VLOOKUP($A152,Economática!$A$3:$AI$823,22,FALSE)/100=0,VLOOKUP($A152,Economática!$A$3:$AI$823,22,FALSE)/100=\"-\"),1/0,VLOOKUP($A152,Economática!$A$3:$AI$823,22,FALSE)/100))","v":1.0313030000000001},{"$f":"IF($A152=\"\",\"\",IF(OR(VLOOKUP($A152,Economática!$A$3:$AI$823,23,FALSE)=0,VLOOKUP($A152,Economática!$A$3:$AI$823,23,FALSE)=\"-\"),1/0,VLOOKUP($A152,Economática!$A$3:$AI$823,23,FALSE)))","v":291.89999999999998},{"$f":"IF($A152=\"\",\"\",IF(OR(VLOOKUP($A152,Economática!$A$3:$AI$823,24,FALSE)=0,VLOOKUP($A152,Economática!$A$3:$AI$823,24,FALSE)=\"-\"),1/0,VLOOKUP($A152,Economática!$A$3:$AI$823,24,FALSE)))","v":393.2},{"$f":"IF($A152=\"\",\"\",IF(OR(VLOOKUP($A152,Economática!$A$3:$AI$823,25,FALSE)=0,VLOOKUP($A152,Economática!$A$3:$AI$823,25,FALSE)=\"-\"),1/0,VLOOKUP($A152,Economática!$A$3:$AI$823,25,FALSE)))","v":393.2},{"$f":"IF($A152=\"\",\"\",IF(ISERROR((F152+VLOOKUP($A152,Economática!$A$3:$AI$823,26,FALSE))/Y152),(F152+VLOOKUP($A152,Economática!$A$3:$AI$823,26,FALSE))/Y152,(F152+VLOOKUP($A152,Economática!$A$3:$AI$823,26,FALSE))/Y152))","v":11.653031536113936},{"$f":"IF($A152=\"\",\"\",IF(OR(-VLOOKUP($A152,Economática!$A$3:$AI$823,27,FALSE)=0,-VLOOKUP($A152,Economática!$A$3:$AI$823,27,FALSE)=\"-\"),1/0,-VLOOKUP($A152,Economática!$A$3:$AI$823,27,FALSE)))","v":10.68},4.0024734386418575E-3,{"$f":"IF($A152=\"\",\"\",IF(OR(VLOOKUP($A152,Economática!$A$3:$AI$823,28,FALSE)=0,VLOOKUP($A152,Economática!$A$3:$AI$823,28,FALSE)=\"-\"),1/0,VLOOKUP($A152,Economática!$A$3:$AI$823,28,FALSE)))","v":-2},{"$f":"IF($A152=\"\",\"\",IF(OR(VLOOKUP($A152,Economática!$A$3:$AI$823,29,FALSE)=0,VLOOKUP($A152,Economática!$A$3:$AI$823,29,FALSE)=\"-\"),1/0,VLOOKUP($A152,Economática!$A$3:$AI$823,29,FALSE)))","v":12},{"$f":"IF($A152=\"\",\"\",IF(OR(VLOOKUP($A152,Economática!$A$3:$AI$823,30,FALSE)/E152=0,VLOOKUP($A152,Economática!$A$3:$AI$823,30,FALSE)/E152=\"-\",VLOOKUP($A152,Economática!$A$3:$AI$823,30,FALSE)/E152<33.33%,VLOOKUP($A152,Economática!$A$3:$AI$823,30,FALSE)/E152>100%),1/0,VLOOKUP($A152,Economática!$A$3:$AI$823,30,FALSE)/E152))","v":0.86087198000555398},"OMGE3",{"$f":"IF($A152=\"\",\"\",IF(OR(VLOOKUP($A152,Economática!$A$3:$AI$823,25,FALSE)=0,VLOOKUP($A152,Economática!$A$3:$AI$823,25,FALSE)=\"-\"),1/0,VLOOKUP($A152,Economática!$A$3:$AI$823,25,FALSE)))","v":393.2},{"$f":"CONCATENATE(Economática!B154,\" \",Economática!C154)","v":"Omega Ger ON"}]
[{"$f":"IF(Economática!AG155=\"\",\"\",Economática!AG155)","v":"CCPR3"},{"$f":"IF($A153=\"\",\"\",VLOOKUP(VLOOKUP($A153,Economática!$A$3:$AI$823,6,FALSE),Correção!$B$16:$C$36,2,FALSE))","v":"Outros"},{"$f":"IF(Economática!B155=\"\",\"\",Economática!B155)","v":"Cyre Com-Ccp"},{"$f":"IF($A153=\"\",\"\",IF(OR(VLOOKUP($A153,Economática!$A$3:$AI$823,8,FALSE)=0,VLOOKUP($A153,Economática!$A$3:$AI$823,8,FALSE)=\"-\"),1/0,VLOOKUP($A153,Economática!$A$3:$AI$823,8,FALSE)))","v":12.7},{"$f":"IF(A153=\"\",\"\",IF(ISERROR(VLOOKUP(A153,Correção!$B$2:$G$13,9,FALSE)),VLOOKUP($A153,Economática!$A$3:$AI$823,9,FALSE),VLOOKUP(A153,Correção!$B$2:$G$13,9,FALSE)))","v":119.664},{"$f":"IF($A153=\"\",\"\",Economática!G155)","v":1519.73},{"$f":"IF($A153=\"\",\"\",IF(OR(VLOOKUP($A153,Economática!$A$3:$AI$823,10,FALSE)=0,VLOOKUP($A153,Economática!$A$3:$AI$823,10,FALSE)=\"-\"),1/0,VLOOKUP($A153,Economática!$A$3:$AI$823,10,FALSE)))","v":1045.42},{"$f":"IF($A153=\"\",\"\",IF(OR(VLOOKUP($A153,Economática!$A$3:$AI$823,11,FALSE)=0,VLOOKUP($A153,Economática!$A$3:$AI$823,11,FALSE)=\"-\"),1/0,VLOOKUP($A153,Economática!$A$3:$AI$823,11,FALSE)))","v":446.27},{"$f":"IF($A153=\"\",\"\",IF(OR(VLOOKUP($A153,Economática!$A$3:$AI$823,12,FALSE)=0,VLOOKUP($A153,Economática!$A$3:$AI$823,12,FALSE)=\"-\"),1/0,VLOOKUP($A153,Economática!$A$3:$AI$823,12,FALSE)))","v":489.77},{"$f":"IF($A153=\"\",\"\",IF(OR(VLOOKUP($A153,Economática!$A$3:$AI$823,13,FALSE)=0,VLOOKUP($A153,Economática!$A$3:$AI$823,13,FALSE)=\"-\"),1/0,VLOOKUP($A153,Economática!$A$3:$AI$823,13,FALSE)))","v":174.2},{"$f":"IF($A153=\"\",\"\",IF(OR(VLOOKUP($A153,Economática!$A$3:$AI$823,14,FALSE)=0,VLOOKUP($A153,Economática!$A$3:$AI$823,14,FALSE)=\"-\"),1/0,VLOOKUP($A153,Economática!$A$3:$AI$823,14,FALSE)))","v":8.99},{"$f":"IF($A153=\"\",\"\",IF(OR(VLOOKUP($A153,Economática!$A$3:$AI$823,15,FALSE)=0,VLOOKUP($A153,Economática!$A$3:$AI$823,15,FALSE)=\"-\"),1/0,VLOOKUP($A153,Economática!$A$3:$AI$823,15,FALSE)))","v":31.99},{"$f":"IF($A153=\"\",\"\",IF(OR(VLOOKUP($A153,Economática!$A$3:$AI$823,16,FALSE)=0,VLOOKUP($A153,Economática!$A$3:$AI$823,16,FALSE)=\"-\"),1/0,VLOOKUP($A153,Economática!$A$3:$AI$823,16,FALSE)))","v":12.89},{"$f":"IF($A153=\"\",\"\",IF(OR(VLOOKUP($A153,Economática!$A$3:$AI$823,17,FALSE)=0,VLOOKUP($A153,Economática!$A$3:$AI$823,17,FALSE)=\"-\"),1/0,VLOOKUP($A153,Economática!$A$3:$AI$823,17,FALSE)))","v":-0.89},{"$f":"IF($A153=\"\",\"\",IF(OR(VLOOKUP($A153,Economática!$A$3:$AI$823,18,FALSE)=0,VLOOKUP($A153,Economática!$A$3:$AI$823,18,FALSE)=\"-\"),1/0,VLOOKUP($A153,Economática!$A$3:$AI$823,18,FALSE)))","v":174.2},{"$f":"IF($A153=\"\",\"\",IF(OR(VLOOKUP($A153,Economática!$A$3:$AI$823,19,FALSE)=0,VLOOKUP($A153,Economática!$A$3:$AI$823,19,FALSE)=\"-\"),1/0,VLOOKUP($A153,Economática!$A$3:$AI$823,19,FALSE)))","v":-0.89},{"$f":"IF($A153=\"\",\"\",VLOOKUP($A153,Economática!$A$3:$AI$823,20,FALSE)/E153)","v":-7.4374916432678167E-3},8.7362949592191477,1.4537054963555316,{"$error":"#DIV/0!"},{"$f":"IF($A153=\"\",\"\",IF(OR(VLOOKUP($A153,Economática!$A$3:$AI$823,21,FALSE)/100=0,VLOOKUP($A153,Economática!$A$3:$AI$823,21,FALSE)/100=\"-\"),1/0,VLOOKUP($A153,Economática!$A$3:$AI$823,21,FALSE)/100))","v":2.6459E-2},{"$f":"IF($A153=\"\",\"\",IF(OR(VLOOKUP($A153,Economática!$A$3:$AI$823,22,FALSE)/100=0,VLOOKUP($A153,Economática!$A$3:$AI$823,22,FALSE)/100=\"-\"),1/0,VLOOKUP($A153,Economática!$A$3:$AI$823,22,FALSE)/100))","v":0.76144499999999993},{"$f":"IF($A153=\"\",\"\",IF(OR(VLOOKUP($A153,Economática!$A$3:$AI$823,23,FALSE)=0,VLOOKUP($A153,Economática!$A$3:$AI$823,23,FALSE)=\"-\"),1/0,VLOOKUP($A153,Economática!$A$3:$AI$823,23,FALSE)))","v":523.1},{"$f":"IF($A153=\"\",\"\",IF(OR(VLOOKUP($A153,Economática!$A$3:$AI$823,24,FALSE)=0,VLOOKUP($A153,Economática!$A$3:$AI$823,24,FALSE)=\"-\"),1/0,VLOOKUP($A153,Economática!$A$3:$AI$823,24,FALSE)))","v":256.89999999999998},{"$f":"IF($A153=\"\",\"\",IF(OR(VLOOKUP($A153,Economática!$A$3:$AI$823,25,FALSE)=0,VLOOKUP($A153,Economática!$A$3:$AI$823,25,FALSE)=\"-\"),1/0,VLOOKUP($A153,Economática!$A$3:$AI$823,25,FALSE)))","v":256.89999999999998},{"$f":"IF($A153=\"\",\"\",IF(ISERROR((F153+VLOOKUP($A153,Economática!$A$3:$AI$823,26,FALSE))/Y153),(F153+VLOOKUP($A153,Economática!$A$3:$AI$823,26,FALSE))/Y153,(F153+VLOOKUP($A153,Economática!$A$3:$AI$823,26,FALSE))/Y153))","v":11.175274425846634},{"$f":"IF($A153=\"\",\"\",IF(OR(-VLOOKUP($A153,Economática!$A$3:$AI$823,27,FALSE)=0,-VLOOKUP($A153,Economática!$A$3:$AI$823,27,FALSE)=\"-\"),1/0,-VLOOKUP($A153,Economática!$A$3:$AI$823,27,FALSE)))","v":120},7.8961394458226128E-2,{"$f":"IF($A153=\"\",\"\",IF(OR(VLOOKUP($A153,Economática!$A$3:$AI$823,28,FALSE)=0,VLOOKUP($A153,Economática!$A$3:$AI$823,28,FALSE)=\"-\"),1/0,VLOOKUP($A153,Economática!$A$3:$AI$823,28,FALSE)))","v":2.8},{"$f":"IF($A153=\"\",\"\",IF(OR(VLOOKUP($A153,Economática!$A$3:$AI$823,29,FALSE)=0,VLOOKUP($A153,Economática!$A$3:$AI$823,29,FALSE)=\"-\"),1/0,VLOOKUP($A153,Economática!$A$3:$AI$823,29,FALSE)))","v":58.3},{"$f":"IF($A153=\"\",\"\",IF(OR(VLOOKUP($A153,Economática!$A$3:$AI$823,30,FALSE)/E153=0,VLOOKUP($A153,Economática!$A$3:$AI$823,30,FALSE)/E153=\"-\",VLOOKUP($A153,Economática!$A$3:$AI$823,30,FALSE)/E153<33.33%,VLOOKUP($A153,Economática!$A$3:$AI$823,30,FALSE)/E153>100%),1/0,VLOOKUP($A153,Economática!$A$3:$AI$823,30,FALSE)/E153))","v":{"$error":"#DIV/0!"}},"CCPR3",{"$f":"IF($A153=\"\",\"\",IF(OR(VLOOKUP($A153,Economática!$A$3:$AI$823,25,FALSE)=0,VLOOKUP($A153,Economática!$A$3:$AI$823,25,FALSE)=\"-\"),1/0,VLOOKUP($A153,Economática!$A$3:$AI$823,25,FALSE)))","v":256.89999999999998},{"$f":"CONCATENATE(Economática!B155,\" \",Economática!C155)","v":"Cyre Com-Ccp ON"}]
[{"$f":"IF(Economática!AG156=\"\",\"\",Economática!AG156)","v":"EUCA4"},{"$f":"IF($A154=\"\",\"\",VLOOKUP(VLOOKUP($A154,Economática!$A$3:$AI$823,6,FALSE),Correção!$B$16:$C$36,2,FALSE))","v":"Outros"},{"$f":"IF(Economática!B156=\"\",\"\",Economática!B156)","v":"Eucatex"},{"$f":"IF($A154=\"\",\"\",IF(OR(VLOOKUP($A154,Economática!$A$3:$AI$823,8,FALSE)=0,VLOOKUP($A154,Economática!$A$3:$AI$823,8,FALSE)=\"-\"),1/0,VLOOKUP($A154,Economática!$A$3:$AI$823,8,FALSE)))","v":3.96},{"$f":"IF(A154=\"\",\"\",IF(ISERROR(VLOOKUP(A154,Correção!$B$2:$G$13,9,FALSE)),VLOOKUP($A154,Economática!$A$3:$AI$823,9,FALSE),VLOOKUP(A154,Correção!$B$2:$G$13,9,FALSE)))","v":92.156000000000006},{"$f":"IF($A154=\"\",\"\",Economática!G156)","v":364.94},{"$f":"IF($A154=\"\",\"\",IF(OR(VLOOKUP($A154,Economática!$A$3:$AI$823,10,FALSE)=0,VLOOKUP($A154,Economática!$A$3:$AI$823,10,FALSE)=\"-\"),1/0,VLOOKUP($A154,Economática!$A$3:$AI$823,10,FALSE)))","v":1262.97},{"$f":"IF($A154=\"\",\"\",IF(OR(VLOOKUP($A154,Economática!$A$3:$AI$823,11,FALSE)=0,VLOOKUP($A154,Economática!$A$3:$AI$823,11,FALSE)=\"-\"),1/0,VLOOKUP($A154,Economática!$A$3:$AI$823,11,FALSE)))","v":1205.3599999999999},{"$f":"IF($A154=\"\",\"\",IF(OR(VLOOKUP($A154,Economática!$A$3:$AI$823,12,FALSE)=0,VLOOKUP($A154,Economática!$A$3:$AI$823,12,FALSE)=\"-\"),1/0,VLOOKUP($A154,Economática!$A$3:$AI$823,12,FALSE)))","v":1262.33},{"$f":"IF($A154=\"\",\"\",IF(OR(VLOOKUP($A154,Economática!$A$3:$AI$823,13,FALSE)=0,VLOOKUP($A154,Economática!$A$3:$AI$823,13,FALSE)=\"-\"),1/0,VLOOKUP($A154,Economática!$A$3:$AI$823,13,FALSE)))","v":41.94},{"$f":"IF($A154=\"\",\"\",IF(OR(VLOOKUP($A154,Economática!$A$3:$AI$823,14,FALSE)=0,VLOOKUP($A154,Economática!$A$3:$AI$823,14,FALSE)=\"-\"),1/0,VLOOKUP($A154,Economática!$A$3:$AI$823,14,FALSE)))","v":1.72},{"$f":"IF($A154=\"\",\"\",IF(OR(VLOOKUP($A154,Economática!$A$3:$AI$823,15,FALSE)=0,VLOOKUP($A154,Economática!$A$3:$AI$823,15,FALSE)=\"-\"),1/0,VLOOKUP($A154,Economática!$A$3:$AI$823,15,FALSE)))","v":-9.93},{"$f":"IF($A154=\"\",\"\",IF(OR(VLOOKUP($A154,Economática!$A$3:$AI$823,16,FALSE)=0,VLOOKUP($A154,Economática!$A$3:$AI$823,16,FALSE)=\"-\"),1/0,VLOOKUP($A154,Economática!$A$3:$AI$823,16,FALSE)))","v":-7.14},{"$f":"IF($A154=\"\",\"\",IF(OR(VLOOKUP($A154,Economática!$A$3:$AI$823,17,FALSE)=0,VLOOKUP($A154,Economática!$A$3:$AI$823,17,FALSE)=\"-\"),1/0,VLOOKUP($A154,Economática!$A$3:$AI$823,17,FALSE)))","v":28.97},{"$f":"IF($A154=\"\",\"\",IF(OR(VLOOKUP($A154,Economática!$A$3:$AI$823,18,FALSE)=0,VLOOKUP($A154,Economática!$A$3:$AI$823,18,FALSE)=\"-\"),1/0,VLOOKUP($A154,Economática!$A$3:$AI$823,18,FALSE)))","v":41.94},{"$f":"IF($A154=\"\",\"\",IF(OR(VLOOKUP($A154,Economática!$A$3:$AI$823,19,FALSE)=0,VLOOKUP($A154,Economática!$A$3:$AI$823,19,FALSE)=\"-\"),1/0,VLOOKUP($A154,Economática!$A$3:$AI$823,19,FALSE)))","v":28.97},{"$f":"IF($A154=\"\",\"\",VLOOKUP($A154,Economática!$A$3:$AI$823,20,FALSE)/E154)","v":0.31435826207734707},13.704696384391683,0.28895204161619042,12.597092164307906,{"$f":"IF($A154=\"\",\"\",IF(OR(VLOOKUP($A154,Economática!$A$3:$AI$823,21,FALSE)/100=0,VLOOKUP($A154,Economática!$A$3:$AI$823,21,FALSE)/100=\"-\"),1/0,VLOOKUP($A154,Economática!$A$3:$AI$823,21,FALSE)/100))","v":2.3414000000000001E-2},{"$f":"IF($A154=\"\",\"\",IF(OR(VLOOKUP($A154,Economática!$A$3:$AI$823,22,FALSE)/100=0,VLOOKUP($A154,Economática!$A$3:$AI$823,22,FALSE)/100=\"-\"),1/0,VLOOKUP($A154,Economática!$A$3:$AI$823,22,FALSE)/100))","v":0.32943399999999995},{"$f":"IF($A154=\"\",\"\",IF(OR(VLOOKUP($A154,Economática!$A$3:$AI$823,23,FALSE)=0,VLOOKUP($A154,Economática!$A$3:$AI$823,23,FALSE)=\"-\"),1/0,VLOOKUP($A154,Economática!$A$3:$AI$823,23,FALSE)))","v":211.8},{"$f":"IF($A154=\"\",\"\",IF(OR(VLOOKUP($A154,Economática!$A$3:$AI$823,24,FALSE)=0,VLOOKUP($A154,Economática!$A$3:$AI$823,24,FALSE)=\"-\"),1/0,VLOOKUP($A154,Economática!$A$3:$AI$823,24,FALSE)))","v":234},{"$f":"IF($A154=\"\",\"\",IF(OR(VLOOKUP($A154,Economática!$A$3:$AI$823,25,FALSE)=0,VLOOKUP($A154,Economática!$A$3:$AI$823,25,FALSE)=\"-\"),1/0,VLOOKUP($A154,Economática!$A$3:$AI$823,25,FALSE)))","v":234},{"$f":"IF($A154=\"\",\"\",IF(ISERROR((F154+VLOOKUP($A154,Economática!$A$3:$AI$823,26,FALSE))/Y154),(F154+VLOOKUP($A154,Economática!$A$3:$AI$823,26,FALSE))/Y154,(F154+VLOOKUP($A154,Economática!$A$3:$AI$823,26,FALSE))/Y154))","v":3.3375726495726492},{"$f":"IF($A154=\"\",\"\",IF(OR(-VLOOKUP($A154,Economática!$A$3:$AI$823,27,FALSE)=0,-VLOOKUP($A154,Economática!$A$3:$AI$823,27,FALSE)=\"-\"),1/0,-VLOOKUP($A154,Economática!$A$3:$AI$823,27,FALSE)))","v":{"$error":"#DIV/0!"}},{"$error":"#DIV/0!"},{"$f":"IF($A154=\"\",\"\",IF(OR(VLOOKUP($A154,Economática!$A$3:$AI$823,28,FALSE)=0,VLOOKUP($A154,Economática!$A$3:$AI$823,28,FALSE)=\"-\"),1/0,VLOOKUP($A154,Economática!$A$3:$AI$823,28,FALSE)))","v":-5.9},{"$f":"IF($A154=\"\",\"\",IF(OR(VLOOKUP($A154,Economática!$A$3:$AI$823,29,FALSE)=0,VLOOKUP($A154,Economática!$A$3:$AI$823,29,FALSE)=\"-\"),1/0,VLOOKUP($A154,Economática!$A$3:$AI$823,29,FALSE)))","v":1.7},{"$f":"IF($A154=\"\",\"\",IF(OR(VLOOKUP($A154,Economática!$A$3:$AI$823,30,FALSE)/E154=0,VLOOKUP($A154,Economática!$A$3:$AI$823,30,FALSE)/E154=\"-\",VLOOKUP($A154,Economática!$A$3:$AI$823,30,FALSE)/E154<33.33%,VLOOKUP($A154,Economática!$A$3:$AI$823,30,FALSE)/E154>100%),1/0,VLOOKUP($A154,Economática!$A$3:$AI$823,30,FALSE)/E154))","v":0.33964147749468293},"EUCA4",{"$f":"IF($A154=\"\",\"\",IF(OR(VLOOKUP($A154,Economática!$A$3:$AI$823,25,FALSE)=0,VLOOKUP($A154,Economática!$A$3:$AI$823,25,FALSE)=\"-\"),1/0,VLOOKUP($A154,Economática!$A$3:$AI$823,25,FALSE)))","v":234},{"$f":"CONCATENATE(Economática!B156,\" \",Economática!C156)","v":"Eucatex PN"}]
[{"$f":"IF(Economática!AG157=\"\",\"\",Economática!AG157)","v":"UCAS3"},{"$f":"IF($A155=\"\",\"\",VLOOKUP(VLOOKUP($A155,Economática!$A$3:$AI$823,6,FALSE),Correção!$B$16:$C$36,2,FALSE))","v":"Outros"},{"$f":"IF(Economática!B157=\"\",\"\",Economática!B157)","v":"Unicasa"},{"$f":"IF($A155=\"\",\"\",IF(OR(VLOOKUP($A155,Economática!$A$3:$AI$823,8,FALSE)=0,VLOOKUP($A155,Economática!$A$3:$AI$823,8,FALSE)=\"-\"),1/0,VLOOKUP($A155,Economática!$A$3:$AI$823,8,FALSE)))","v":2.93},{"$f":"IF(A155=\"\",\"\",IF(ISERROR(VLOOKUP(A155,Correção!$B$2:$G$13,9,FALSE)),VLOOKUP($A155,Economática!$A$3:$AI$823,9,FALSE),VLOOKUP(A155,Correção!$B$2:$G$13,9,FALSE)))","v":66.085999999999999},{"$f":"IF($A155=\"\",\"\",Economática!G157)","v":193.63},{"$f":"IF($A155=\"\",\"\",IF(OR(VLOOKUP($A155,Economática!$A$3:$AI$823,10,FALSE)=0,VLOOKUP($A155,Economática!$A$3:$AI$823,10,FALSE)=\"-\"),1/0,VLOOKUP($A155,Economática!$A$3:$AI$823,10,FALSE)))","v":171.27},{"$f":"IF($A155=\"\",\"\",IF(OR(VLOOKUP($A155,Economática!$A$3:$AI$823,11,FALSE)=0,VLOOKUP($A155,Economática!$A$3:$AI$823,11,FALSE)=\"-\"),1/0,VLOOKUP($A155,Economática!$A$3:$AI$823,11,FALSE)))","v":157.94},{"$f":"IF($A155=\"\",\"\",IF(OR(VLOOKUP($A155,Economática!$A$3:$AI$823,12,FALSE)=0,VLOOKUP($A155,Economática!$A$3:$AI$823,12,FALSE)=\"-\"),1/0,VLOOKUP($A155,Economática!$A$3:$AI$823,12,FALSE)))","v":149.31},{"$f":"IF($A155=\"\",\"\",IF(OR(VLOOKUP($A155,Economática!$A$3:$AI$823,13,FALSE)=0,VLOOKUP($A155,Economática!$A$3:$AI$823,13,FALSE)=\"-\"),1/0,VLOOKUP($A155,Economática!$A$3:$AI$823,13,FALSE)))","v":-6.36},{"$f":"IF($A155=\"\",\"\",IF(OR(VLOOKUP($A155,Economática!$A$3:$AI$823,14,FALSE)=0,VLOOKUP($A155,Economática!$A$3:$AI$823,14,FALSE)=\"-\"),1/0,VLOOKUP($A155,Economática!$A$3:$AI$823,14,FALSE)))","v":-0.37},{"$f":"IF($A155=\"\",\"\",IF(OR(VLOOKUP($A155,Economática!$A$3:$AI$823,15,FALSE)=0,VLOOKUP($A155,Economática!$A$3:$AI$823,15,FALSE)=\"-\"),1/0,VLOOKUP($A155,Economática!$A$3:$AI$823,15,FALSE)))","v":-0.35},{"$f":"IF($A155=\"\",\"\",IF(OR(VLOOKUP($A155,Economática!$A$3:$AI$823,16,FALSE)=0,VLOOKUP($A155,Economática!$A$3:$AI$823,16,FALSE)=\"-\"),1/0,VLOOKUP($A155,Economática!$A$3:$AI$823,16,FALSE)))","v":1.59},{"$f":"IF($A155=\"\",\"\",IF(OR(VLOOKUP($A155,Economática!$A$3:$AI$823,17,FALSE)=0,VLOOKUP($A155,Economática!$A$3:$AI$823,17,FALSE)=\"-\"),1/0,VLOOKUP($A155,Economática!$A$3:$AI$823,17,FALSE)))","v":3.39},{"$f":"IF($A155=\"\",\"\",IF(OR(VLOOKUP($A155,Economática!$A$3:$AI$823,18,FALSE)=0,VLOOKUP($A155,Economática!$A$3:$AI$823,18,FALSE)=\"-\"),1/0,VLOOKUP($A155,Economática!$A$3:$AI$823,18,FALSE)))","v":-6.36},{"$f":"IF($A155=\"\",\"\",IF(OR(VLOOKUP($A155,Economática!$A$3:$AI$823,19,FALSE)=0,VLOOKUP($A155,Economática!$A$3:$AI$823,19,FALSE)=\"-\"),1/0,VLOOKUP($A155,Economática!$A$3:$AI$823,19,FALSE)))","v":3.39},{"$f":"IF($A155=\"\",\"\",VLOOKUP($A155,Economática!$A$3:$AI$823,20,FALSE)/E155)","v":5.1296795085192026E-2},2.591623036649215,1.1305656565656566,57.118578171091443,{"$f":"IF($A155=\"\",\"\",IF(OR(VLOOKUP($A155,Economática!$A$3:$AI$823,21,FALSE)/100=0,VLOOKUP($A155,Economática!$A$3:$AI$823,21,FALSE)/100=\"-\"),1/0,VLOOKUP($A155,Economática!$A$3:$AI$823,21,FALSE)/100))","v":2.0218E-2},{"$f":"IF($A155=\"\",\"\",IF(OR(VLOOKUP($A155,Economática!$A$3:$AI$823,22,FALSE)/100=0,VLOOKUP($A155,Economática!$A$3:$AI$823,22,FALSE)/100=\"-\"),1/0,VLOOKUP($A155,Economática!$A$3:$AI$823,22,FALSE)/100))","v":-0.225159},{"$f":"IF($A155=\"\",\"\",IF(OR(VLOOKUP($A155,Economática!$A$3:$AI$823,23,FALSE)=0,VLOOKUP($A155,Economática!$A$3:$AI$823,23,FALSE)=\"-\"),1/0,VLOOKUP($A155,Economática!$A$3:$AI$823,23,FALSE)))","v":-4.0999999999999996},{"$f":"IF($A155=\"\",\"\",IF(OR(VLOOKUP($A155,Economática!$A$3:$AI$823,24,FALSE)=0,VLOOKUP($A155,Economática!$A$3:$AI$823,24,FALSE)=\"-\"),1/0,VLOOKUP($A155,Economática!$A$3:$AI$823,24,FALSE)))","v":10.5},{"$f":"IF($A155=\"\",\"\",IF(OR(VLOOKUP($A155,Economática!$A$3:$AI$823,25,FALSE)=0,VLOOKUP($A155,Economática!$A$3:$AI$823,25,FALSE)=\"-\"),1/0,VLOOKUP($A155,Economática!$A$3:$AI$823,25,FALSE)))","v":10.5},{"$f":"IF($A155=\"\",\"\",IF(ISERROR((F155+VLOOKUP($A155,Economática!$A$3:$AI$823,26,FALSE))/Y155),(F155+VLOOKUP($A155,Economática!$A$3:$AI$823,26,FALSE))/Y155,(F155+VLOOKUP($A155,Economática!$A$3:$AI$823,26,FALSE))/Y155))","v":14.768380952380951},{"$f":"IF($A155=\"\",\"\",IF(OR(-VLOOKUP($A155,Economática!$A$3:$AI$823,27,FALSE)=0,-VLOOKUP($A155,Economática!$A$3:$AI$823,27,FALSE)=\"-\"),1/0,-VLOOKUP($A155,Economática!$A$3:$AI$823,27,FALSE)))","v":{"$error":"#DIV/0!"}},{"$error":"#DIV/0!"},{"$f":"IF($A155=\"\",\"\",IF(OR(VLOOKUP($A155,Economática!$A$3:$AI$823,28,FALSE)=0,VLOOKUP($A155,Economática!$A$3:$AI$823,28,FALSE)=\"-\"),1/0,VLOOKUP($A155,Economática!$A$3:$AI$823,28,FALSE)))","v":2.4},{"$f":"IF($A155=\"\",\"\",IF(OR(VLOOKUP($A155,Economática!$A$3:$AI$823,29,FALSE)=0,VLOOKUP($A155,Economática!$A$3:$AI$823,29,FALSE)=\"-\"),1/0,VLOOKUP($A155,Economática!$A$3:$AI$823,29,FALSE)))","v":15.4},{"$f":"IF($A155=\"\",\"\",IF(OR(VLOOKUP($A155,Economática!$A$3:$AI$823,30,FALSE)/E155=0,VLOOKUP($A155,Economática!$A$3:$AI$823,30,FALSE)/E155=\"-\",VLOOKUP($A155,Economática!$A$3:$AI$823,30,FALSE)/E155<33.33%,VLOOKUP($A155,Economática!$A$3:$AI$823,30,FALSE)/E155>100%),1/0,VLOOKUP($A155,Economática!$A$3:$AI$823,30,FALSE)/E155))","v":{"$error":"#DIV/0!"}},"UCAS3",{"$f":"IF($A155=\"\",\"\",IF(OR(VLOOKUP($A155,Economática!$A$3:$AI$823,25,FALSE)=0,VLOOKUP($A155,Economática!$A$3:$AI$823,25,FALSE)=\"-\"),1/0,VLOOKUP($A155,Economática!$A$3:$AI$823,25,FALSE)))","v":10.5},{"$f":"CONCATENATE(Economática!B157,\" \",Economática!C157)","v":"Unicasa ON"}]
[{"$f":"IF(Economática!AG158=\"\",\"\",Economática!AG158)","v":"SCAR3"},{"$f":"IF($A156=\"\",\"\",VLOOKUP(VLOOKUP($A156,Economática!$A$3:$AI$823,6,FALSE),Correção!$B$16:$C$36,2,FALSE))","v":"Outros"},{"$f":"IF(Economática!B158=\"\",\"\",Economática!B158)","v":"Sao Carlos"},{"$f":"IF($A156=\"\",\"\",IF(OR(VLOOKUP($A156,Economática!$A$3:$AI$823,8,FALSE)=0,VLOOKUP($A156,Economática!$A$3:$AI$823,8,FALSE)=\"-\"),1/0,VLOOKUP($A156,Economática!$A$3:$AI$823,8,FALSE)))","v":33.799999999999997},{"$f":"IF(A156=\"\",\"\",IF(ISERROR(VLOOKUP(A156,Correção!$B$2:$G$13,9,FALSE)),VLOOKUP($A156,Economática!$A$3:$AI$823,9,FALSE),VLOOKUP(A156,Correção!$B$2:$G$13,9,FALSE)))","v":56.042000000000002},{"$f":"IF($A156=\"\",\"\",Economática!G158)","v":1894.22},{"$f":"IF($A156=\"\",\"\",IF(OR(VLOOKUP($A156,Economática!$A$3:$AI$823,10,FALSE)=0,VLOOKUP($A156,Economática!$A$3:$AI$823,10,FALSE)=\"-\"),1/0,VLOOKUP($A156,Economática!$A$3:$AI$823,10,FALSE)))","v":1400.28},{"$f":"IF($A156=\"\",\"\",IF(OR(VLOOKUP($A156,Economática!$A$3:$AI$823,11,FALSE)=0,VLOOKUP($A156,Economática!$A$3:$AI$823,11,FALSE)=\"-\"),1/0,VLOOKUP($A156,Economática!$A$3:$AI$823,11,FALSE)))","v":552.41999999999996},{"$f":"IF($A156=\"\",\"\",IF(OR(VLOOKUP($A156,Economática!$A$3:$AI$823,12,FALSE)=0,VLOOKUP($A156,Economática!$A$3:$AI$823,12,FALSE)=\"-\"),1/0,VLOOKUP($A156,Economática!$A$3:$AI$823,12,FALSE)))","v":369.22},{"$f":"IF($A156=\"\",\"\",IF(OR(VLOOKUP($A156,Economática!$A$3:$AI$823,13,FALSE)=0,VLOOKUP($A156,Economática!$A$3:$AI$823,13,FALSE)=\"-\"),1/0,VLOOKUP($A156,Economática!$A$3:$AI$823,13,FALSE)))","v":119.23},{"$f":"IF($A156=\"\",\"\",IF(OR(VLOOKUP($A156,Economática!$A$3:$AI$823,14,FALSE)=0,VLOOKUP($A156,Economática!$A$3:$AI$823,14,FALSE)=\"-\"),1/0,VLOOKUP($A156,Economática!$A$3:$AI$823,14,FALSE)))","v":14.69},{"$f":"IF($A156=\"\",\"\",IF(OR(VLOOKUP($A156,Economática!$A$3:$AI$823,15,FALSE)=0,VLOOKUP($A156,Economática!$A$3:$AI$823,15,FALSE)=\"-\"),1/0,VLOOKUP($A156,Economática!$A$3:$AI$823,15,FALSE)))","v":14.22},{"$f":"IF($A156=\"\",\"\",IF(OR(VLOOKUP($A156,Economática!$A$3:$AI$823,16,FALSE)=0,VLOOKUP($A156,Economática!$A$3:$AI$823,16,FALSE)=\"-\"),1/0,VLOOKUP($A156,Economática!$A$3:$AI$823,16,FALSE)))","v":17.62},{"$f":"IF($A156=\"\",\"\",IF(OR(VLOOKUP($A156,Economática!$A$3:$AI$823,17,FALSE)=0,VLOOKUP($A156,Economática!$A$3:$AI$823,17,FALSE)=\"-\"),1/0,VLOOKUP($A156,Economática!$A$3:$AI$823,17,FALSE)))","v":15.65},{"$f":"IF($A156=\"\",\"\",IF(OR(VLOOKUP($A156,Economática!$A$3:$AI$823,18,FALSE)=0,VLOOKUP($A156,Economática!$A$3:$AI$823,18,FALSE)=\"-\"),1/0,VLOOKUP($A156,Economática!$A$3:$AI$823,18,FALSE)))","v":119.23},{"$f":"IF($A156=\"\",\"\",IF(OR(VLOOKUP($A156,Economática!$A$3:$AI$823,19,FALSE)=0,VLOOKUP($A156,Economática!$A$3:$AI$823,19,FALSE)=\"-\"),1/0,VLOOKUP($A156,Economática!$A$3:$AI$823,19,FALSE)))","v":15.65},{"$f":"IF($A156=\"\",\"\",VLOOKUP($A156,Economática!$A$3:$AI$823,20,FALSE)/E156)","v":0.27925484458085009},24.98626030477142,1.3527434513097381,121.03639616613417,{"$f":"IF($A156=\"\",\"\",IF(OR(VLOOKUP($A156,Economática!$A$3:$AI$823,21,FALSE)/100=0,VLOOKUP($A156,Economática!$A$3:$AI$823,21,FALSE)/100=\"-\"),1/0,VLOOKUP($A156,Economática!$A$3:$AI$823,21,FALSE)/100))","v":1.2115000000000001E-2},{"$f":"IF($A156=\"\",\"\",IF(OR(VLOOKUP($A156,Economática!$A$3:$AI$823,22,FALSE)/100=0,VLOOKUP($A156,Economática!$A$3:$AI$823,22,FALSE)/100=\"-\"),1/0,VLOOKUP($A156,Economática!$A$3:$AI$823,22,FALSE)/100))","v":0.688639},{"$f":"IF($A156=\"\",\"\",IF(OR(VLOOKUP($A156,Economática!$A$3:$AI$823,23,FALSE)=0,VLOOKUP($A156,Economática!$A$3:$AI$823,23,FALSE)=\"-\"),1/0,VLOOKUP($A156,Economática!$A$3:$AI$823,23,FALSE)))","v":341.1},{"$f":"IF($A156=\"\",\"\",IF(OR(VLOOKUP($A156,Economática!$A$3:$AI$823,24,FALSE)=0,VLOOKUP($A156,Economática!$A$3:$AI$823,24,FALSE)=\"-\"),1/0,VLOOKUP($A156,Economática!$A$3:$AI$823,24,FALSE)))","v":191.8},{"$f":"IF($A156=\"\",\"\",IF(OR(VLOOKUP($A156,Economática!$A$3:$AI$823,25,FALSE)=0,VLOOKUP($A156,Economática!$A$3:$AI$823,25,FALSE)=\"-\"),1/0,VLOOKUP($A156,Economática!$A$3:$AI$823,25,FALSE)))","v":191.8},{"$f":"IF($A156=\"\",\"\",IF(ISERROR((F156+VLOOKUP($A156,Economática!$A$3:$AI$823,26,FALSE))/Y156),(F156+VLOOKUP($A156,Economática!$A$3:$AI$823,26,FALSE))/Y156,(F156+VLOOKUP($A156,Economática!$A$3:$AI$823,26,FALSE))/Y156))","v":14.915886339937435},{"$f":"IF($A156=\"\",\"\",IF(OR(-VLOOKUP($A156,Economática!$A$3:$AI$823,27,FALSE)=0,-VLOOKUP($A156,Economática!$A$3:$AI$823,27,FALSE)=\"-\"),1/0,-VLOOKUP($A156,Economática!$A$3:$AI$823,27,FALSE)))","v":24.83},1.3108297874586901E-2,{"$f":"IF($A156=\"\",\"\",IF(OR(VLOOKUP($A156,Economática!$A$3:$AI$823,28,FALSE)=0,VLOOKUP($A156,Economática!$A$3:$AI$823,28,FALSE)=\"-\"),1/0,VLOOKUP($A156,Economática!$A$3:$AI$823,28,FALSE)))","v":-1.5},{"$f":"IF($A156=\"\",\"\",IF(OR(VLOOKUP($A156,Economática!$A$3:$AI$823,29,FALSE)=0,VLOOKUP($A156,Economática!$A$3:$AI$823,29,FALSE)=\"-\"),1/0,VLOOKUP($A156,Economática!$A$3:$AI$823,29,FALSE)))","v":-21.4},{"$f":"IF($A156=\"\",\"\",IF(OR(VLOOKUP($A156,Economática!$A$3:$AI$823,30,FALSE)/E156=0,VLOOKUP($A156,Economática!$A$3:$AI$823,30,FALSE)/E156=\"-\",VLOOKUP($A156,Economática!$A$3:$AI$823,30,FALSE)/E156<33.33%,VLOOKUP($A156,Economática!$A$3:$AI$823,30,FALSE)/E156>100%),1/0,VLOOKUP($A156,Economática!$A$3:$AI$823,30,FALSE)/E156))","v":{"$error":"#DIV/0!"}},"SCAR3",{"$f":"IF($A156=\"\",\"\",IF(OR(VLOOKUP($A156,Economática!$A$3:$AI$823,25,FALSE)=0,VLOOKUP($A156,Economática!$A$3:$AI$823,25,FALSE)=\"-\"),1/0,VLOOKUP($A156,Economática!$A$3:$AI$823,25,FALSE)))","v":191.8},{"$f":"CONCATENATE(Economática!B158,\" \",Economática!C158)","v":"Sao Carlos ON"}]
[{"$f":"IF(Economática!AG159=\"\",\"\",Economática!AG159)","v":"ANIM3"},{"$f":"IF($A157=\"\",\"\",VLOOKUP(VLOOKUP($A157,Economática!$A$3:$AI$823,6,FALSE),Correção!$B$16:$C$36,2,FALSE))","v":"Outros"},{"$f":"IF(Economática!B159=\"\",\"\",Economática!B159)","v":"Anima"},{"$f":"IF($A157=\"\",\"\",IF(OR(VLOOKUP($A157,Economática!$A$3:$AI$823,8,FALSE)=0,VLOOKUP($A157,Economática!$A$3:$AI$823,8,FALSE)=\"-\"),1/0,VLOOKUP($A157,Economática!$A$3:$AI$823,8,FALSE)))","v":18.7},{"$f":"IF(A157=\"\",\"\",IF(ISERROR(VLOOKUP(A157,Correção!$B$2:$G$13,9,FALSE)),VLOOKUP($A157,Economática!$A$3:$AI$823,9,FALSE),VLOOKUP(A157,Correção!$B$2:$G$13,9,FALSE)))","v":77.632000000000005},{"$f":"IF($A157=\"\",\"\",Economática!G159)","v":1451.72},{"$f":"IF($A157=\"\",\"\",IF(OR(VLOOKUP($A157,Economática!$A$3:$AI$823,10,FALSE)=0,VLOOKUP($A157,Economática!$A$3:$AI$823,10,FALSE)=\"-\"),1/0,VLOOKUP($A157,Economática!$A$3:$AI$823,10,FALSE)))","v":665.25},{"$f":"IF($A157=\"\",\"\",IF(OR(VLOOKUP($A157,Economática!$A$3:$AI$823,11,FALSE)=0,VLOOKUP($A157,Economática!$A$3:$AI$823,11,FALSE)=\"-\"),1/0,VLOOKUP($A157,Economática!$A$3:$AI$823,11,FALSE)))","v":1045.67},{"$f":"IF($A157=\"\",\"\",IF(OR(VLOOKUP($A157,Economática!$A$3:$AI$823,12,FALSE)=0,VLOOKUP($A157,Economática!$A$3:$AI$823,12,FALSE)=\"-\"),1/0,VLOOKUP($A157,Economática!$A$3:$AI$823,12,FALSE)))","v":1102.46},{"$f":"IF($A157=\"\",\"\",IF(OR(VLOOKUP($A157,Economática!$A$3:$AI$823,13,FALSE)=0,VLOOKUP($A157,Economática!$A$3:$AI$823,13,FALSE)=\"-\"),1/0,VLOOKUP($A157,Economática!$A$3:$AI$823,13,FALSE)))","v":85.15},{"$f":"IF($A157=\"\",\"\",IF(OR(VLOOKUP($A157,Economática!$A$3:$AI$823,14,FALSE)=0,VLOOKUP($A157,Economática!$A$3:$AI$823,14,FALSE)=\"-\"),1/0,VLOOKUP($A157,Economática!$A$3:$AI$823,14,FALSE)))","v":39.94},{"$f":"IF($A157=\"\",\"\",IF(OR(VLOOKUP($A157,Economática!$A$3:$AI$823,15,FALSE)=0,VLOOKUP($A157,Economática!$A$3:$AI$823,15,FALSE)=\"-\"),1/0,VLOOKUP($A157,Economática!$A$3:$AI$823,15,FALSE)))","v":36.96},{"$f":"IF($A157=\"\",\"\",IF(OR(VLOOKUP($A157,Economática!$A$3:$AI$823,16,FALSE)=0,VLOOKUP($A157,Economática!$A$3:$AI$823,16,FALSE)=\"-\"),1/0,VLOOKUP($A157,Economática!$A$3:$AI$823,16,FALSE)))","v":20.309999999999999},{"$f":"IF($A157=\"\",\"\",IF(OR(VLOOKUP($A157,Economática!$A$3:$AI$823,17,FALSE)=0,VLOOKUP($A157,Economática!$A$3:$AI$823,17,FALSE)=\"-\"),1/0,VLOOKUP($A157,Economática!$A$3:$AI$823,17,FALSE)))","v":2.25},{"$f":"IF($A157=\"\",\"\",IF(OR(VLOOKUP($A157,Economática!$A$3:$AI$823,18,FALSE)=0,VLOOKUP($A157,Economática!$A$3:$AI$823,18,FALSE)=\"-\"),1/0,VLOOKUP($A157,Economática!$A$3:$AI$823,18,FALSE)))","v":85.15},{"$f":"IF($A157=\"\",\"\",IF(OR(VLOOKUP($A157,Economática!$A$3:$AI$823,19,FALSE)=0,VLOOKUP($A157,Economática!$A$3:$AI$823,19,FALSE)=\"-\"),1/0,VLOOKUP($A157,Economática!$A$3:$AI$823,19,FALSE)))","v":2.25},{"$f":"IF($A157=\"\",\"\",VLOOKUP($A157,Economática!$A$3:$AI$823,20,FALSE)/E157)","v":2.8982893652102226E-2},8.5692755564715579,2.1822148064637354,645.20817777777779,{"$f":"IF($A157=\"\",\"\",IF(OR(VLOOKUP($A157,Economática!$A$3:$AI$823,21,FALSE)/100=0,VLOOKUP($A157,Economática!$A$3:$AI$823,21,FALSE)/100=\"-\"),1/0,VLOOKUP($A157,Economática!$A$3:$AI$823,21,FALSE)/100))","v":3.2320000000000001E-3},{"$f":"IF($A157=\"\",\"\",IF(OR(VLOOKUP($A157,Economática!$A$3:$AI$823,22,FALSE)/100=0,VLOOKUP($A157,Economática!$A$3:$AI$823,22,FALSE)/100=\"-\"),1/0,VLOOKUP($A157,Economática!$A$3:$AI$823,22,FALSE)/100))","v":0.31772500000000004},{"$f":"IF($A157=\"\",\"\",IF(OR(VLOOKUP($A157,Economática!$A$3:$AI$823,23,FALSE)=0,VLOOKUP($A157,Economática!$A$3:$AI$823,23,FALSE)=\"-\"),1/0,VLOOKUP($A157,Economática!$A$3:$AI$823,23,FALSE)))","v":137.5},{"$f":"IF($A157=\"\",\"\",IF(OR(VLOOKUP($A157,Economática!$A$3:$AI$823,24,FALSE)=0,VLOOKUP($A157,Economática!$A$3:$AI$823,24,FALSE)=\"-\"),1/0,VLOOKUP($A157,Economática!$A$3:$AI$823,24,FALSE)))","v":93},{"$f":"IF($A157=\"\",\"\",IF(OR(VLOOKUP($A157,Economática!$A$3:$AI$823,25,FALSE)=0,VLOOKUP($A157,Economática!$A$3:$AI$823,25,FALSE)=\"-\"),1/0,VLOOKUP($A157,Economática!$A$3:$AI$823,25,FALSE)))","v":93},{"$f":"IF($A157=\"\",\"\",IF(ISERROR((F157+VLOOKUP($A157,Economática!$A$3:$AI$823,26,FALSE))/Y157),(F157+VLOOKUP($A157,Economática!$A$3:$AI$823,26,FALSE))/Y157,(F157+VLOOKUP($A157,Economática!$A$3:$AI$823,26,FALSE))/Y157))","v":17.882645161290323},{"$f":"IF($A157=\"\",\"\",IF(OR(-VLOOKUP($A157,Economática!$A$3:$AI$823,27,FALSE)=0,-VLOOKUP($A157,Economática!$A$3:$AI$823,27,FALSE)=\"-\"),1/0,-VLOOKUP($A157,Economática!$A$3:$AI$823,27,FALSE)))","v":20.21},1.3921417353208608E-2,{"$f":"IF($A157=\"\",\"\",IF(OR(VLOOKUP($A157,Economática!$A$3:$AI$823,28,FALSE)=0,VLOOKUP($A157,Economática!$A$3:$AI$823,28,FALSE)=\"-\"),1/0,VLOOKUP($A157,Economática!$A$3:$AI$823,28,FALSE)))","v":-0.1},{"$f":"IF($A157=\"\",\"\",IF(OR(VLOOKUP($A157,Economática!$A$3:$AI$823,29,FALSE)=0,VLOOKUP($A157,Economática!$A$3:$AI$823,29,FALSE)=\"-\"),1/0,VLOOKUP($A157,Economática!$A$3:$AI$823,29,FALSE)))","v":-33.200000000000003},{"$f":"IF($A157=\"\",\"\",IF(OR(VLOOKUP($A157,Economática!$A$3:$AI$823,30,FALSE)/E157=0,VLOOKUP($A157,Economática!$A$3:$AI$823,30,FALSE)/E157=\"-\",VLOOKUP($A157,Economática!$A$3:$AI$823,30,FALSE)/E157<33.33%,VLOOKUP($A157,Economática!$A$3:$AI$823,30,FALSE)/E157>100%),1/0,VLOOKUP($A157,Economática!$A$3:$AI$823,30,FALSE)/E157))","v":{"$error":"#DIV/0!"}},"ANIM3",{"$f":"IF($A157=\"\",\"\",IF(OR(VLOOKUP($A157,Economática!$A$3:$AI$823,25,FALSE)=0,VLOOKUP($A157,Economática!$A$3:$AI$823,25,FALSE)=\"-\"),1/0,VLOOKUP($A157,Economática!$A$3:$AI$823,25,FALSE)))","v":93},{"$f":"CONCATENATE(Economática!B159,\" \",Economática!C159)","v":"Anima ON"}]
[{"$f":"IF(Economática!AG160=\"\",\"\",Economática!AG160)","v":"BRPR3"},{"$f":"IF($A158=\"\",\"\",VLOOKUP(VLOOKUP($A158,Economática!$A$3:$AI$823,6,FALSE),Correção!$B$16:$C$36,2,FALSE))","v":"Outros"},{"$f":"IF(Economática!B160=\"\",\"\",Economática!B160)","v":"BR Propert"},{"$f":"IF($A158=\"\",\"\",IF(OR(VLOOKUP($A158,Economática!$A$3:$AI$823,8,FALSE)=0,VLOOKUP($A158,Economática!$A$3:$AI$823,8,FALSE)=\"-\"),1/0,VLOOKUP($A158,Economática!$A$3:$AI$823,8,FALSE)))","v":8.9},{"$f":"IF(A158=\"\",\"\",IF(ISERROR(VLOOKUP(A158,Correção!$B$2:$G$13,9,FALSE)),VLOOKUP($A158,Economática!$A$3:$AI$823,9,FALSE),VLOOKUP(A158,Correção!$B$2:$G$13,9,FALSE)))","v":403.42700000000002},{"$f":"IF($A158=\"\",\"\",Economática!G160)","v":3590.5},{"$f":"IF($A158=\"\",\"\",IF(OR(VLOOKUP($A158,Economática!$A$3:$AI$823,10,FALSE)=0,VLOOKUP($A158,Economática!$A$3:$AI$823,10,FALSE)=\"-\"),1/0,VLOOKUP($A158,Economática!$A$3:$AI$823,10,FALSE)))","v":5870.37},{"$f":"IF($A158=\"\",\"\",IF(OR(VLOOKUP($A158,Economática!$A$3:$AI$823,11,FALSE)=0,VLOOKUP($A158,Economática!$A$3:$AI$823,11,FALSE)=\"-\"),1/0,VLOOKUP($A158,Economática!$A$3:$AI$823,11,FALSE)))","v":430.45},{"$f":"IF($A158=\"\",\"\",IF(OR(VLOOKUP($A158,Economática!$A$3:$AI$823,12,FALSE)=0,VLOOKUP($A158,Economática!$A$3:$AI$823,12,FALSE)=\"-\"),1/0,VLOOKUP($A158,Economática!$A$3:$AI$823,12,FALSE)))","v":421.32},{"$f":"IF($A158=\"\",\"\",IF(OR(VLOOKUP($A158,Economática!$A$3:$AI$823,13,FALSE)=0,VLOOKUP($A158,Economática!$A$3:$AI$823,13,FALSE)=\"-\"),1/0,VLOOKUP($A158,Economática!$A$3:$AI$823,13,FALSE)))","v":277.02},{"$f":"IF($A158=\"\",\"\",IF(OR(VLOOKUP($A158,Economática!$A$3:$AI$823,14,FALSE)=0,VLOOKUP($A158,Economática!$A$3:$AI$823,14,FALSE)=\"-\"),1/0,VLOOKUP($A158,Economática!$A$3:$AI$823,14,FALSE)))","v":-11.58},{"$f":"IF($A158=\"\",\"\",IF(OR(VLOOKUP($A158,Economática!$A$3:$AI$823,15,FALSE)=0,VLOOKUP($A158,Economática!$A$3:$AI$823,15,FALSE)=\"-\"),1/0,VLOOKUP($A158,Economática!$A$3:$AI$823,15,FALSE)))","v":-73.319999999999993},{"$f":"IF($A158=\"\",\"\",IF(OR(VLOOKUP($A158,Economática!$A$3:$AI$823,16,FALSE)=0,VLOOKUP($A158,Economática!$A$3:$AI$823,16,FALSE)=\"-\"),1/0,VLOOKUP($A158,Economática!$A$3:$AI$823,16,FALSE)))","v":-110.43},{"$f":"IF($A158=\"\",\"\",IF(OR(VLOOKUP($A158,Economática!$A$3:$AI$823,17,FALSE)=0,VLOOKUP($A158,Economática!$A$3:$AI$823,17,FALSE)=\"-\"),1/0,VLOOKUP($A158,Economática!$A$3:$AI$823,17,FALSE)))","v":13.71},{"$f":"IF($A158=\"\",\"\",IF(OR(VLOOKUP($A158,Economática!$A$3:$AI$823,18,FALSE)=0,VLOOKUP($A158,Economática!$A$3:$AI$823,18,FALSE)=\"-\"),1/0,VLOOKUP($A158,Economática!$A$3:$AI$823,18,FALSE)))","v":277.02},{"$f":"IF($A158=\"\",\"\",IF(OR(VLOOKUP($A158,Economática!$A$3:$AI$823,19,FALSE)=0,VLOOKUP($A158,Economática!$A$3:$AI$823,19,FALSE)=\"-\"),1/0,VLOOKUP($A158,Economática!$A$3:$AI$823,19,FALSE)))","v":13.71},{"$f":"IF($A158=\"\",\"\",VLOOKUP($A158,Economática!$A$3:$AI$823,20,FALSE)/E158)","v":3.3983843421486415E-2},14.55125710475501,0.61163100451930641,261.88915390226111,{"$f":"IF($A158=\"\",\"\",IF(OR(VLOOKUP($A158,Economática!$A$3:$AI$823,21,FALSE)/100=0,VLOOKUP($A158,Economática!$A$3:$AI$823,21,FALSE)/100=\"-\"),1/0,VLOOKUP($A158,Economática!$A$3:$AI$823,21,FALSE)/100))","v":2.3319999999999999E-3},{"$f":"IF($A158=\"\",\"\",IF(OR(VLOOKUP($A158,Economática!$A$3:$AI$823,22,FALSE)/100=0,VLOOKUP($A158,Economática!$A$3:$AI$823,22,FALSE)/100=\"-\"),1/0,VLOOKUP($A158,Economática!$A$3:$AI$823,22,FALSE)/100))","v":0.34438000000000002},{"$f":"IF($A158=\"\",\"\",IF(OR(VLOOKUP($A158,Economática!$A$3:$AI$823,23,FALSE)=0,VLOOKUP($A158,Economática!$A$3:$AI$823,23,FALSE)=\"-\"),1/0,VLOOKUP($A158,Economática!$A$3:$AI$823,23,FALSE)))","v":487.3},{"$f":"IF($A158=\"\",\"\",IF(OR(VLOOKUP($A158,Economática!$A$3:$AI$823,24,FALSE)=0,VLOOKUP($A158,Economática!$A$3:$AI$823,24,FALSE)=\"-\"),1/0,VLOOKUP($A158,Economática!$A$3:$AI$823,24,FALSE)))","v":520.5},{"$f":"IF($A158=\"\",\"\",IF(OR(VLOOKUP($A158,Economática!$A$3:$AI$823,25,FALSE)=0,VLOOKUP($A158,Economática!$A$3:$AI$823,25,FALSE)=\"-\"),1/0,VLOOKUP($A158,Economática!$A$3:$AI$823,25,FALSE)))","v":520.5},{"$f":"IF($A158=\"\",\"\",IF(ISERROR((F158+VLOOKUP($A158,Economática!$A$3:$AI$823,26,FALSE))/Y158),(F158+VLOOKUP($A158,Economática!$A$3:$AI$823,26,FALSE))/Y158,(F158+VLOOKUP($A158,Economática!$A$3:$AI$823,26,FALSE))/Y158))","v":10.782197886647454},{"$f":"IF($A158=\"\",\"\",IF(OR(-VLOOKUP($A158,Economática!$A$3:$AI$823,27,FALSE)=0,-VLOOKUP($A158,Economática!$A$3:$AI$823,27,FALSE)=\"-\"),1/0,-VLOOKUP($A158,Economática!$A$3:$AI$823,27,FALSE)))","v":65.790000000000006},1.8323353293413176E-2,{"$f":"IF($A158=\"\",\"\",IF(OR(VLOOKUP($A158,Economática!$A$3:$AI$823,28,FALSE)=0,VLOOKUP($A158,Economática!$A$3:$AI$823,28,FALSE)=\"-\"),1/0,VLOOKUP($A158,Economática!$A$3:$AI$823,28,FALSE)))","v":1.6},{"$f":"IF($A158=\"\",\"\",IF(OR(VLOOKUP($A158,Economática!$A$3:$AI$823,29,FALSE)=0,VLOOKUP($A158,Economática!$A$3:$AI$823,29,FALSE)=\"-\"),1/0,VLOOKUP($A158,Economática!$A$3:$AI$823,29,FALSE)))","v":-14.5},{"$f":"IF($A158=\"\",\"\",IF(OR(VLOOKUP($A158,Economática!$A$3:$AI$823,30,FALSE)/E158=0,VLOOKUP($A158,Economática!$A$3:$AI$823,30,FALSE)/E158=\"-\",VLOOKUP($A158,Economática!$A$3:$AI$823,30,FALSE)/E158<33.33%,VLOOKUP($A158,Economática!$A$3:$AI$823,30,FALSE)/E158>100%),1/0,VLOOKUP($A158,Economática!$A$3:$AI$823,30,FALSE)/E158))","v":{"$error":"#DIV/0!"}},"BRPR3",{"$f":"IF($A158=\"\",\"\",IF(OR(VLOOKUP($A158,Economática!$A$3:$AI$823,25,FALSE)=0,VLOOKUP($A158,Economática!$A$3:$AI$823,25,FALSE)=\"-\"),1/0,VLOOKUP($A158,Economática!$A$3:$AI$823,25,FALSE)))","v":520.5},{"$f":"CONCATENATE(Economática!B160,\" \",Economática!C160)","v":"BR Propert ON"}]
[{"$f":"IF(Economática!AG161=\"\",\"\",Economática!AG161)","v":"BAHI3"},{"$f":"IF($A159=\"\",\"\",VLOOKUP(VLOOKUP($A159,Economática!$A$3:$AI$823,6,FALSE),Correção!$B$16:$C$36,2,FALSE))","v":"Outros"},{"$f":"IF(Economática!B161=\"\",\"\",Economática!B161)","v":"Bahema"},{"$f":"IF($A159=\"\",\"\",IF(OR(VLOOKUP($A159,Economática!$A$3:$AI$823,8,FALSE)=0,VLOOKUP($A159,Economática!$A$3:$AI$823,8,FALSE)=\"-\"),1/0,VLOOKUP($A159,Economática!$A$3:$AI$823,8,FALSE)))","v":132.5},{"$f":"IF(A159=\"\",\"\",IF(ISERROR(VLOOKUP(A159,Correção!$B$2:$G$13,9,FALSE)),VLOOKUP($A159,Economática!$A$3:$AI$823,9,FALSE),VLOOKUP(A159,Correção!$B$2:$G$13,9,FALSE)))","v":1.1719999999999999},{"$f":"IF($A159=\"\",\"\",Economática!G161)","v":155.29},{"$f":"IF($A159=\"\",\"\",IF(OR(VLOOKUP($A159,Economática!$A$3:$AI$823,10,FALSE)=0,VLOOKUP($A159,Economática!$A$3:$AI$823,10,FALSE)=\"-\"),1/0,VLOOKUP($A159,Economática!$A$3:$AI$823,10,FALSE)))","v":52.57},{"$f":"IF($A159=\"\",\"\",IF(OR(VLOOKUP($A159,Economática!$A$3:$AI$823,11,FALSE)=0,VLOOKUP($A159,Economática!$A$3:$AI$823,11,FALSE)=\"-\"),1/0,VLOOKUP($A159,Economática!$A$3:$AI$823,11,FALSE)))","v":37.64},{"$f":"IF($A159=\"\",\"\",IF(OR(VLOOKUP($A159,Economática!$A$3:$AI$823,12,FALSE)=0,VLOOKUP($A159,Economática!$A$3:$AI$823,12,FALSE)=\"-\"),1/0,VLOOKUP($A159,Economática!$A$3:$AI$823,12,FALSE)))","v":44.11},{"$f":"IF($A159=\"\",\"\",IF(OR(VLOOKUP($A159,Economática!$A$3:$AI$823,13,FALSE)=0,VLOOKUP($A159,Economática!$A$3:$AI$823,13,FALSE)=\"-\"),1/0,VLOOKUP($A159,Economática!$A$3:$AI$823,13,FALSE)))","v":-4.5599999999999996},{"$f":"IF($A159=\"\",\"\",IF(OR(VLOOKUP($A159,Economática!$A$3:$AI$823,14,FALSE)=0,VLOOKUP($A159,Economática!$A$3:$AI$823,14,FALSE)=\"-\"),1/0,VLOOKUP($A159,Economática!$A$3:$AI$823,14,FALSE)))","v":-1.62},{"$f":"IF($A159=\"\",\"\",IF(OR(VLOOKUP($A159,Economática!$A$3:$AI$823,15,FALSE)=0,VLOOKUP($A159,Economática!$A$3:$AI$823,15,FALSE)=\"-\"),1/0,VLOOKUP($A159,Economática!$A$3:$AI$823,15,FALSE)))","v":-0.03},{"$f":"IF($A159=\"\",\"\",IF(OR(VLOOKUP($A159,Economática!$A$3:$AI$823,16,FALSE)=0,VLOOKUP($A159,Economática!$A$3:$AI$823,16,FALSE)=\"-\"),1/0,VLOOKUP($A159,Economática!$A$3:$AI$823,16,FALSE)))","v":-0.11},{"$f":"IF($A159=\"\",\"\",IF(OR(VLOOKUP($A159,Economática!$A$3:$AI$823,17,FALSE)=0,VLOOKUP($A159,Economática!$A$3:$AI$823,17,FALSE)=\"-\"),1/0,VLOOKUP($A159,Economática!$A$3:$AI$823,17,FALSE)))","v":-2.11},{"$f":"IF($A159=\"\",\"\",IF(OR(VLOOKUP($A159,Economática!$A$3:$AI$823,18,FALSE)=0,VLOOKUP($A159,Economática!$A$3:$AI$823,18,FALSE)=\"-\"),1/0,VLOOKUP($A159,Economática!$A$3:$AI$823,18,FALSE)))","v":-4.5599999999999996},{"$f":"IF($A159=\"\",\"\",IF(OR(VLOOKUP($A159,Economática!$A$3:$AI$823,19,FALSE)=0,VLOOKUP($A159,Economática!$A$3:$AI$823,19,FALSE)=\"-\"),1/0,VLOOKUP($A159,Economática!$A$3:$AI$823,19,FALSE)))","v":-2.11},{"$f":"IF($A159=\"\",\"\",VLOOKUP($A159,Economática!$A$3:$AI$823,20,FALSE)/E159)","v":-1.8003412969283277},44.854948805460751,2.9539661403842494,{"$error":"#DIV/0!"},{"$f":"IF($A159=\"\",\"\",IF(OR(VLOOKUP($A159,Economática!$A$3:$AI$823,21,FALSE)/100=0,VLOOKUP($A159,Economática!$A$3:$AI$823,21,FALSE)/100=\"-\"),1/0,VLOOKUP($A159,Economática!$A$3:$AI$823,21,FALSE)/100))","v":-4.3601000000000001E-2},{"$f":"IF($A159=\"\",\"\",IF(OR(VLOOKUP($A159,Economática!$A$3:$AI$823,22,FALSE)/100=0,VLOOKUP($A159,Economática!$A$3:$AI$823,22,FALSE)/100=\"-\"),1/0,VLOOKUP($A159,Economática!$A$3:$AI$823,22,FALSE)/100))","v":-0.28054200000000001},{"$f":"IF($A159=\"\",\"\",IF(OR(VLOOKUP($A159,Economática!$A$3:$AI$823,23,FALSE)=0,VLOOKUP($A159,Economática!$A$3:$AI$823,23,FALSE)=\"-\"),1/0,VLOOKUP($A159,Economática!$A$3:$AI$823,23,FALSE)))","v":-1.3},{"$f":"IF($A159=\"\",\"\",IF(OR(VLOOKUP($A159,Economática!$A$3:$AI$823,24,FALSE)=0,VLOOKUP($A159,Economática!$A$3:$AI$823,24,FALSE)=\"-\"),1/0,VLOOKUP($A159,Economática!$A$3:$AI$823,24,FALSE)))","v":-1.4},{"$f":"IF($A159=\"\",\"\",IF(OR(VLOOKUP($A159,Economática!$A$3:$AI$823,25,FALSE)=0,VLOOKUP($A159,Economática!$A$3:$AI$823,25,FALSE)=\"-\"),1/0,VLOOKUP($A159,Economática!$A$3:$AI$823,25,FALSE)))","v":-1.4},{"$f":"IF($A159=\"\",\"\",IF(ISERROR((F159+VLOOKUP($A159,Economática!$A$3:$AI$823,26,FALSE))/Y159),(F159+VLOOKUP($A159,Economática!$A$3:$AI$823,26,FALSE))/Y159,(F159+VLOOKUP($A159,Economática!$A$3:$AI$823,26,FALSE))/Y159))","v":-99.687142857142845},{"$f":"IF($A159=\"\",\"\",IF(OR(-VLOOKUP($A159,Economática!$A$3:$AI$823,27,FALSE)=0,-VLOOKUP($A159,Economática!$A$3:$AI$823,27,FALSE)=\"-\"),1/0,-VLOOKUP($A159,Economática!$A$3:$AI$823,27,FALSE)))","v":{"$error":"#DIV/0!"}},{"$error":"#DIV/0!"},{"$f":"IF($A159=\"\",\"\",IF(OR(VLOOKUP($A159,Economática!$A$3:$AI$823,28,FALSE)=0,VLOOKUP($A159,Economática!$A$3:$AI$823,28,FALSE)=\"-\"),1/0,VLOOKUP($A159,Economática!$A$3:$AI$823,28,FALSE)))","v":-1.1000000000000001},{"$f":"IF($A159=\"\",\"\",IF(OR(VLOOKUP($A159,Economática!$A$3:$AI$823,29,FALSE)=0,VLOOKUP($A159,Economática!$A$3:$AI$823,29,FALSE)=\"-\"),1/0,VLOOKUP($A159,Economática!$A$3:$AI$823,29,FALSE)))","v":110.4},{"$f":"IF($A159=\"\",\"\",IF(OR(VLOOKUP($A159,Economática!$A$3:$AI$823,30,FALSE)/E159=0,VLOOKUP($A159,Economática!$A$3:$AI$823,30,FALSE)/E159=\"-\",VLOOKUP($A159,Economática!$A$3:$AI$823,30,FALSE)/E159<33.33%,VLOOKUP($A159,Economática!$A$3:$AI$823,30,FALSE)/E159>100%),1/0,VLOOKUP($A159,Economática!$A$3:$AI$823,30,FALSE)/E159))","v":{"$error":"#DIV/0!"}},"BAHI3",{"$f":"IF($A159=\"\",\"\",IF(OR(VLOOKUP($A159,Economática!$A$3:$AI$823,25,FALSE)=0,VLOOKUP($A159,Economática!$A$3:$AI$823,25,FALSE)=\"-\"),1/0,VLOOKUP($A159,Economática!$A$3:$AI$823,25,FALSE)))","v":-1.4},{"$f":"CONCATENATE(Economática!B161,\" \",Economática!C161)","v":"Bahema ON"}]
[{"$f":"IF(Economática!AG162=\"\",\"\",Economática!AG162)","v":"MILS3"},{"$f":"IF($A160=\"\",\"\",VLOOKUP(VLOOKUP($A160,Economática!$A$3:$AI$823,6,FALSE),Correção!$B$16:$C$36,2,FALSE))","v":"Outros"},{"$f":"IF(Economática!B162=\"\",\"\",Economática!B162)","v":"Mills"},{"$f":"IF($A160=\"\",\"\",IF(OR(VLOOKUP($A160,Economática!$A$3:$AI$823,8,FALSE)=0,VLOOKUP($A160,Economática!$A$3:$AI$823,8,FALSE)=\"-\"),1/0,VLOOKUP($A160,Economática!$A$3:$AI$823,8,FALSE)))","v":4.8},{"$f":"IF(A160=\"\",\"\",IF(ISERROR(VLOOKUP(A160,Correção!$B$2:$G$13,9,FALSE)),VLOOKUP($A160,Economática!$A$3:$AI$823,9,FALSE),VLOOKUP(A160,Correção!$B$2:$G$13,9,FALSE)))","v":173.30799999999999},{"$f":"IF($A160=\"\",\"\",Economática!G162)","v":831.88},{"$f":"IF($A160=\"\",\"\",IF(OR(VLOOKUP($A160,Economática!$A$3:$AI$823,10,FALSE)=0,VLOOKUP($A160,Economática!$A$3:$AI$823,10,FALSE)=\"-\"),1/0,VLOOKUP($A160,Economática!$A$3:$AI$823,10,FALSE)))","v":750.31},{"$f":"IF($A160=\"\",\"\",IF(OR(VLOOKUP($A160,Economática!$A$3:$AI$823,11,FALSE)=0,VLOOKUP($A160,Economática!$A$3:$AI$823,11,FALSE)=\"-\"),1/0,VLOOKUP($A160,Economática!$A$3:$AI$823,11,FALSE)))","v":291.27},{"$f":"IF($A160=\"\",\"\",IF(OR(VLOOKUP($A160,Economática!$A$3:$AI$823,12,FALSE)=0,VLOOKUP($A160,Economática!$A$3:$AI$823,12,FALSE)=\"-\"),1/0,VLOOKUP($A160,Economática!$A$3:$AI$823,12,FALSE)))","v":304.19},{"$f":"IF($A160=\"\",\"\",IF(OR(VLOOKUP($A160,Economática!$A$3:$AI$823,13,FALSE)=0,VLOOKUP($A160,Economática!$A$3:$AI$823,13,FALSE)=\"-\"),1/0,VLOOKUP($A160,Economática!$A$3:$AI$823,13,FALSE)))","v":-138.38},{"$f":"IF($A160=\"\",\"\",IF(OR(VLOOKUP($A160,Economática!$A$3:$AI$823,14,FALSE)=0,VLOOKUP($A160,Economática!$A$3:$AI$823,14,FALSE)=\"-\"),1/0,VLOOKUP($A160,Economática!$A$3:$AI$823,14,FALSE)))","v":-30.43},{"$f":"IF($A160=\"\",\"\",IF(OR(VLOOKUP($A160,Economática!$A$3:$AI$823,15,FALSE)=0,VLOOKUP($A160,Economática!$A$3:$AI$823,15,FALSE)=\"-\"),1/0,VLOOKUP($A160,Economática!$A$3:$AI$823,15,FALSE)))","v":-74.09},{"$f":"IF($A160=\"\",\"\",IF(OR(VLOOKUP($A160,Economática!$A$3:$AI$823,16,FALSE)=0,VLOOKUP($A160,Economática!$A$3:$AI$823,16,FALSE)=\"-\"),1/0,VLOOKUP($A160,Economática!$A$3:$AI$823,16,FALSE)))","v":-106.67},{"$f":"IF($A160=\"\",\"\",IF(OR(VLOOKUP($A160,Economática!$A$3:$AI$823,17,FALSE)=0,VLOOKUP($A160,Economática!$A$3:$AI$823,17,FALSE)=\"-\"),1/0,VLOOKUP($A160,Economática!$A$3:$AI$823,17,FALSE)))","v":-94.97},{"$f":"IF($A160=\"\",\"\",IF(OR(VLOOKUP($A160,Economática!$A$3:$AI$823,18,FALSE)=0,VLOOKUP($A160,Economática!$A$3:$AI$823,18,FALSE)=\"-\"),1/0,VLOOKUP($A160,Economática!$A$3:$AI$823,18,FALSE)))","v":-138.38},{"$f":"IF($A160=\"\",\"\",IF(OR(VLOOKUP($A160,Economática!$A$3:$AI$823,19,FALSE)=0,VLOOKUP($A160,Economática!$A$3:$AI$823,19,FALSE)=\"-\"),1/0,VLOOKUP($A160,Economática!$A$3:$AI$823,19,FALSE)))","v":-94.97},{"$f":"IF($A160=\"\",\"\",VLOOKUP($A160,Economática!$A$3:$AI$823,20,FALSE)/E160)","v":-0.54798393611373974},4.3293442887806677,1.1087129319881117,{"$error":"#DIV/0!"},{"$f":"IF($A160=\"\",\"\",IF(OR(VLOOKUP($A160,Economática!$A$3:$AI$823,21,FALSE)/100=0,VLOOKUP($A160,Economática!$A$3:$AI$823,21,FALSE)/100=\"-\"),1/0,VLOOKUP($A160,Economática!$A$3:$AI$823,21,FALSE)/100))","v":-0.11218},{"$f":"IF($A160=\"\",\"\",IF(OR(VLOOKUP($A160,Economática!$A$3:$AI$823,22,FALSE)/100=0,VLOOKUP($A160,Economática!$A$3:$AI$823,22,FALSE)/100=\"-\"),1/0,VLOOKUP($A160,Economática!$A$3:$AI$823,22,FALSE)/100))","v":7.8034999999999993E-2},{"$f":"IF($A160=\"\",\"\",IF(OR(VLOOKUP($A160,Economática!$A$3:$AI$823,23,FALSE)=0,VLOOKUP($A160,Economática!$A$3:$AI$823,23,FALSE)=\"-\"),1/0,VLOOKUP($A160,Economática!$A$3:$AI$823,23,FALSE)))","v":-43.2},{"$f":"IF($A160=\"\",\"\",IF(OR(VLOOKUP($A160,Economática!$A$3:$AI$823,24,FALSE)=0,VLOOKUP($A160,Economática!$A$3:$AI$823,24,FALSE)=\"-\"),1/0,VLOOKUP($A160,Economática!$A$3:$AI$823,24,FALSE)))","v":0.3},{"$f":"IF($A160=\"\",\"\",IF(OR(VLOOKUP($A160,Economática!$A$3:$AI$823,25,FALSE)=0,VLOOKUP($A160,Economática!$A$3:$AI$823,25,FALSE)=\"-\"),1/0,VLOOKUP($A160,Economática!$A$3:$AI$823,25,FALSE)))","v":0.3},{"$f":"IF($A160=\"\",\"\",IF(ISERROR((F160+VLOOKUP($A160,Economática!$A$3:$AI$823,26,FALSE))/Y160),(F160+VLOOKUP($A160,Economática!$A$3:$AI$823,26,FALSE))/Y160,(F160+VLOOKUP($A160,Economática!$A$3:$AI$823,26,FALSE))/Y160))","v":2968.1},{"$f":"IF($A160=\"\",\"\",IF(OR(-VLOOKUP($A160,Economática!$A$3:$AI$823,27,FALSE)=0,-VLOOKUP($A160,Economática!$A$3:$AI$823,27,FALSE)=\"-\"),1/0,-VLOOKUP($A160,Economática!$A$3:$AI$823,27,FALSE)))","v":{"$error":"#DIV/0!"}},{"$error":"#DIV/0!"},{"$f":"IF($A160=\"\",\"\",IF(OR(VLOOKUP($A160,Economática!$A$3:$AI$823,28,FALSE)=0,VLOOKUP($A160,Economática!$A$3:$AI$823,28,FALSE)=\"-\"),1/0,VLOOKUP($A160,Economática!$A$3:$AI$823,28,FALSE)))","v":-11.6},{"$f":"IF($A160=\"\",\"\",IF(OR(VLOOKUP($A160,Economática!$A$3:$AI$823,29,FALSE)=0,VLOOKUP($A160,Economática!$A$3:$AI$823,29,FALSE)=\"-\"),1/0,VLOOKUP($A160,Economática!$A$3:$AI$823,29,FALSE)))","v":16.5},{"$f":"IF($A160=\"\",\"\",IF(OR(VLOOKUP($A160,Economática!$A$3:$AI$823,30,FALSE)/E160=0,VLOOKUP($A160,Economática!$A$3:$AI$823,30,FALSE)/E160=\"-\",VLOOKUP($A160,Economática!$A$3:$AI$823,30,FALSE)/E160<33.33%,VLOOKUP($A160,Economática!$A$3:$AI$823,30,FALSE)/E160>100%),1/0,VLOOKUP($A160,Economática!$A$3:$AI$823,30,FALSE)/E160))","v":{"$error":"#DIV/0!"}},"MILS3",{"$f":"IF($A160=\"\",\"\",IF(OR(VLOOKUP($A160,Economática!$A$3:$AI$823,25,FALSE)=0,VLOOKUP($A160,Economática!$A$3:$AI$823,25,FALSE)=\"-\"),1/0,VLOOKUP($A160,Economática!$A$3:$AI$823,25,FALSE)))","v":0.3},{"$f":"CONCATENATE(Economática!B162,\" \",Economática!C162)","v":"Mills ON"}]
[{"$f":"IF(Economática!AG163=\"\",\"\",Economática!AG163)","v":"BBRK3"},{"$f":"IF($A161=\"\",\"\",VLOOKUP(VLOOKUP($A161,Economática!$A$3:$AI$823,6,FALSE),Correção!$B$16:$C$36,2,FALSE))","v":"Outros"},{"$f":"IF(Economática!B163=\"\",\"\",Economática!B163)","v":"BR Brokers"},{"$f":"IF($A161=\"\",\"\",IF(OR(VLOOKUP($A161,Economática!$A$3:$AI$823,8,FALSE)=0,VLOOKUP($A161,Economática!$A$3:$AI$823,8,FALSE)=\"-\"),1/0,VLOOKUP($A161,Economática!$A$3:$AI$823,8,FALSE)))","v":5.25},{"$f":"IF(A161=\"\",\"\",IF(ISERROR(VLOOKUP(A161,Correção!$B$2:$G$13,9,FALSE)),VLOOKUP($A161,Economática!$A$3:$AI$823,9,FALSE),VLOOKUP(A161,Correção!$B$2:$G$13,9,FALSE)))","v":35.481000000000002},{"$f":"IF($A161=\"\",\"\",Economática!G163)","v":186.28},{"$f":"IF($A161=\"\",\"\",IF(OR(VLOOKUP($A161,Economática!$A$3:$AI$823,10,FALSE)=0,VLOOKUP($A161,Economática!$A$3:$AI$823,10,FALSE)=\"-\"),1/0,VLOOKUP($A161,Economática!$A$3:$AI$823,10,FALSE)))","v":225},{"$f":"IF($A161=\"\",\"\",IF(OR(VLOOKUP($A161,Economática!$A$3:$AI$823,11,FALSE)=0,VLOOKUP($A161,Economática!$A$3:$AI$823,11,FALSE)=\"-\"),1/0,VLOOKUP($A161,Economática!$A$3:$AI$823,11,FALSE)))","v":89.07},{"$f":"IF($A161=\"\",\"\",IF(OR(VLOOKUP($A161,Economática!$A$3:$AI$823,12,FALSE)=0,VLOOKUP($A161,Economática!$A$3:$AI$823,12,FALSE)=\"-\"),1/0,VLOOKUP($A161,Economática!$A$3:$AI$823,12,FALSE)))","v":111.31},{"$f":"IF($A161=\"\",\"\",IF(OR(VLOOKUP($A161,Economática!$A$3:$AI$823,13,FALSE)=0,VLOOKUP($A161,Economática!$A$3:$AI$823,13,FALSE)=\"-\"),1/0,VLOOKUP($A161,Economática!$A$3:$AI$823,13,FALSE)))","v":-106.16},{"$f":"IF($A161=\"\",\"\",IF(OR(VLOOKUP($A161,Economática!$A$3:$AI$823,14,FALSE)=0,VLOOKUP($A161,Economática!$A$3:$AI$823,14,FALSE)=\"-\"),1/0,VLOOKUP($A161,Economática!$A$3:$AI$823,14,FALSE)))","v":-12.84},{"$f":"IF($A161=\"\",\"\",IF(OR(VLOOKUP($A161,Economática!$A$3:$AI$823,15,FALSE)=0,VLOOKUP($A161,Economática!$A$3:$AI$823,15,FALSE)=\"-\"),1/0,VLOOKUP($A161,Economática!$A$3:$AI$823,15,FALSE)))","v":-24.24},{"$f":"IF($A161=\"\",\"\",IF(OR(VLOOKUP($A161,Economática!$A$3:$AI$823,16,FALSE)=0,VLOOKUP($A161,Economática!$A$3:$AI$823,16,FALSE)=\"-\"),1/0,VLOOKUP($A161,Economática!$A$3:$AI$823,16,FALSE)))","v":-37.200000000000003},{"$f":"IF($A161=\"\",\"\",IF(OR(VLOOKUP($A161,Economática!$A$3:$AI$823,17,FALSE)=0,VLOOKUP($A161,Economática!$A$3:$AI$823,17,FALSE)=\"-\"),1/0,VLOOKUP($A161,Economática!$A$3:$AI$823,17,FALSE)))","v":-76.709999999999994},{"$f":"IF($A161=\"\",\"\",IF(OR(VLOOKUP($A161,Economática!$A$3:$AI$823,18,FALSE)=0,VLOOKUP($A161,Economática!$A$3:$AI$823,18,FALSE)=\"-\"),1/0,VLOOKUP($A161,Economática!$A$3:$AI$823,18,FALSE)))","v":-106.16},{"$f":"IF($A161=\"\",\"\",IF(OR(VLOOKUP($A161,Economática!$A$3:$AI$823,19,FALSE)=0,VLOOKUP($A161,Economática!$A$3:$AI$823,19,FALSE)=\"-\"),1/0,VLOOKUP($A161,Economática!$A$3:$AI$823,19,FALSE)))","v":-76.709999999999994},{"$f":"IF($A161=\"\",\"\",VLOOKUP($A161,Economática!$A$3:$AI$823,20,FALSE)/E161)","v":-2.1620021983596853},6.3414221696119046,0.82789000000000001,{"$error":"#DIV/0!"},{"$f":"IF($A161=\"\",\"\",IF(OR(VLOOKUP($A161,Economática!$A$3:$AI$823,21,FALSE)/100=0,VLOOKUP($A161,Economática!$A$3:$AI$823,21,FALSE)/100=\"-\"),1/0,VLOOKUP($A161,Economática!$A$3:$AI$823,21,FALSE)/100))","v":-0.270484},{"$f":"IF($A161=\"\",\"\",IF(OR(VLOOKUP($A161,Economática!$A$3:$AI$823,22,FALSE)/100=0,VLOOKUP($A161,Economática!$A$3:$AI$823,22,FALSE)/100=\"-\"),1/0,VLOOKUP($A161,Economática!$A$3:$AI$823,22,FALSE)/100))","v":-0.22955600000000001},{"$f":"IF($A161=\"\",\"\",IF(OR(VLOOKUP($A161,Economática!$A$3:$AI$823,23,FALSE)=0,VLOOKUP($A161,Economática!$A$3:$AI$823,23,FALSE)=\"-\"),1/0,VLOOKUP($A161,Economática!$A$3:$AI$823,23,FALSE)))","v":-103.8},{"$f":"IF($A161=\"\",\"\",IF(OR(VLOOKUP($A161,Economática!$A$3:$AI$823,24,FALSE)=0,VLOOKUP($A161,Economática!$A$3:$AI$823,24,FALSE)=\"-\"),1/0,VLOOKUP($A161,Economática!$A$3:$AI$823,24,FALSE)))","v":-61.7},{"$f":"IF($A161=\"\",\"\",IF(OR(VLOOKUP($A161,Economática!$A$3:$AI$823,25,FALSE)=0,VLOOKUP($A161,Economática!$A$3:$AI$823,25,FALSE)=\"-\"),1/0,VLOOKUP($A161,Economática!$A$3:$AI$823,25,FALSE)))","v":-61.7},{"$f":"IF($A161=\"\",\"\",IF(ISERROR((F161+VLOOKUP($A161,Economática!$A$3:$AI$823,26,FALSE))/Y161),(F161+VLOOKUP($A161,Economática!$A$3:$AI$823,26,FALSE))/Y161,(F161+VLOOKUP($A161,Economática!$A$3:$AI$823,26,FALSE))/Y161))","v":-2.180680713128039},{"$f":"IF($A161=\"\",\"\",IF(OR(-VLOOKUP($A161,Economática!$A$3:$AI$823,27,FALSE)=0,-VLOOKUP($A161,Economática!$A$3:$AI$823,27,FALSE)=\"-\"),1/0,-VLOOKUP($A161,Economática!$A$3:$AI$823,27,FALSE)))","v":{"$error":"#DIV/0!"}},{"$error":"#DIV/0!"},{"$f":"IF($A161=\"\",\"\",IF(OR(VLOOKUP($A161,Economática!$A$3:$AI$823,28,FALSE)=0,VLOOKUP($A161,Economática!$A$3:$AI$823,28,FALSE)=\"-\"),1/0,VLOOKUP($A161,Economática!$A$3:$AI$823,28,FALSE)))","v":-24.7},{"$f":"IF($A161=\"\",\"\",IF(OR(VLOOKUP($A161,Economática!$A$3:$AI$823,29,FALSE)=0,VLOOKUP($A161,Economática!$A$3:$AI$823,29,FALSE)=\"-\"),1/0,VLOOKUP($A161,Economática!$A$3:$AI$823,29,FALSE)))","v":-47},{"$f":"IF($A161=\"\",\"\",IF(OR(VLOOKUP($A161,Economática!$A$3:$AI$823,30,FALSE)/E161=0,VLOOKUP($A161,Economática!$A$3:$AI$823,30,FALSE)/E161=\"-\",VLOOKUP($A161,Economática!$A$3:$AI$823,30,FALSE)/E161<33.33%,VLOOKUP($A161,Economática!$A$3:$AI$823,30,FALSE)/E161>100%),1/0,VLOOKUP($A161,Economática!$A$3:$AI$823,30,FALSE)/E161))","v":{"$error":"#DIV/0!"}},"BBRK3",{"$f":"IF($A161=\"\",\"\",IF(OR(VLOOKUP($A161,Economática!$A$3:$AI$823,25,FALSE)=0,VLOOKUP($A161,Economática!$A$3:$AI$823,25,FALSE)=\"-\"),1/0,VLOOKUP($A161,Economática!$A$3:$AI$823,25,FALSE)))","v":-61.7},{"$f":"CONCATENATE(Economática!B163,\" \",Economática!C163)","v":"BR Brokers ON"}]
[{"$f":"IF(Economática!AG164=\"\",\"\",Economática!AG164)","v":"GSHP3"},{"$f":"IF($A162=\"\",\"\",VLOOKUP(VLOOKUP($A162,Economática!$A$3:$AI$823,6,FALSE),Correção!$B$16:$C$36,2,FALSE))","v":"Outros"},{"$f":"IF(Economática!B164=\"\",\"\",Economática!B164)","v":"Generalshopp"},{"$f":"IF($A162=\"\",\"\",IF(OR(VLOOKUP($A162,Economática!$A$3:$AI$823,8,FALSE)=0,VLOOKUP($A162,Economática!$A$3:$AI$823,8,FALSE)=\"-\"),1/0,VLOOKUP($A162,Economática!$A$3:$AI$823,8,FALSE)))","v":1.0900000000000001},{"$f":"IF(A162=\"\",\"\",IF(ISERROR(VLOOKUP(A162,Correção!$B$2:$G$13,9,FALSE)),VLOOKUP($A162,Economática!$A$3:$AI$823,9,FALSE),VLOOKUP(A162,Correção!$B$2:$G$13,9,FALSE)))","v":67.512},{"$f":"IF($A162=\"\",\"\",Economática!G164)","v":73.59},{"$f":"IF($A162=\"\",\"\",IF(OR(VLOOKUP($A162,Economática!$A$3:$AI$823,10,FALSE)=0,VLOOKUP($A162,Economática!$A$3:$AI$823,10,FALSE)=\"-\"),1/0,VLOOKUP($A162,Economática!$A$3:$AI$823,10,FALSE)))","v":38.68},{"$f":"IF($A162=\"\",\"\",IF(OR(VLOOKUP($A162,Economática!$A$3:$AI$823,11,FALSE)=0,VLOOKUP($A162,Economática!$A$3:$AI$823,11,FALSE)=\"-\"),1/0,VLOOKUP($A162,Economática!$A$3:$AI$823,11,FALSE)))","v":252.29},{"$f":"IF($A162=\"\",\"\",IF(OR(VLOOKUP($A162,Economática!$A$3:$AI$823,12,FALSE)=0,VLOOKUP($A162,Economática!$A$3:$AI$823,12,FALSE)=\"-\"),1/0,VLOOKUP($A162,Economática!$A$3:$AI$823,12,FALSE)))","v":215.63},{"$f":"IF($A162=\"\",\"\",IF(OR(VLOOKUP($A162,Economática!$A$3:$AI$823,13,FALSE)=0,VLOOKUP($A162,Economática!$A$3:$AI$823,13,FALSE)=\"-\"),1/0,VLOOKUP($A162,Economática!$A$3:$AI$823,13,FALSE)))","v":251.46},{"$f":"IF($A162=\"\",\"\",IF(OR(VLOOKUP($A162,Economática!$A$3:$AI$823,14,FALSE)=0,VLOOKUP($A162,Economática!$A$3:$AI$823,14,FALSE)=\"-\"),1/0,VLOOKUP($A162,Economática!$A$3:$AI$823,14,FALSE)))","v":-64.650000000000006},{"$f":"IF($A162=\"\",\"\",IF(OR(VLOOKUP($A162,Economática!$A$3:$AI$823,15,FALSE)=0,VLOOKUP($A162,Economática!$A$3:$AI$823,15,FALSE)=\"-\"),1/0,VLOOKUP($A162,Economática!$A$3:$AI$823,15,FALSE)))","v":-287.87},{"$f":"IF($A162=\"\",\"\",IF(OR(VLOOKUP($A162,Economática!$A$3:$AI$823,16,FALSE)=0,VLOOKUP($A162,Economática!$A$3:$AI$823,16,FALSE)=\"-\"),1/0,VLOOKUP($A162,Economática!$A$3:$AI$823,16,FALSE)))","v":-349.14},{"$f":"IF($A162=\"\",\"\",IF(OR(VLOOKUP($A162,Economática!$A$3:$AI$823,17,FALSE)=0,VLOOKUP($A162,Economática!$A$3:$AI$823,17,FALSE)=\"-\"),1/0,VLOOKUP($A162,Economática!$A$3:$AI$823,17,FALSE)))","v":-357.05},{"$f":"IF($A162=\"\",\"\",IF(OR(VLOOKUP($A162,Economática!$A$3:$AI$823,18,FALSE)=0,VLOOKUP($A162,Economática!$A$3:$AI$823,18,FALSE)=\"-\"),1/0,VLOOKUP($A162,Economática!$A$3:$AI$823,18,FALSE)))","v":251.46},{"$f":"IF($A162=\"\",\"\",IF(OR(VLOOKUP($A162,Economática!$A$3:$AI$823,19,FALSE)=0,VLOOKUP($A162,Economática!$A$3:$AI$823,19,FALSE)=\"-\"),1/0,VLOOKUP($A162,Economática!$A$3:$AI$823,19,FALSE)))","v":-357.05},{"$f":"IF($A162=\"\",\"\",VLOOKUP($A162,Economática!$A$3:$AI$823,20,FALSE)/E162)","v":-5.2886894181775093},0.57293518189358927,1.9024839710444676,{"$error":"#DIV/0!"},{"$f":"IF($A162=\"\",\"\",IF(OR(VLOOKUP($A162,Economática!$A$3:$AI$823,21,FALSE)/100=0,VLOOKUP($A162,Economática!$A$3:$AI$823,21,FALSE)/100=\"-\"),1/0,VLOOKUP($A162,Economática!$A$3:$AI$823,21,FALSE)/100))","v":-0.29154199999999997},{"$f":"IF($A162=\"\",\"\",IF(OR(VLOOKUP($A162,Economática!$A$3:$AI$823,22,FALSE)/100=0,VLOOKUP($A162,Economática!$A$3:$AI$823,22,FALSE)/100=\"-\"),1/0,VLOOKUP($A162,Economática!$A$3:$AI$823,22,FALSE)/100))","v":18.663443999999998},{"$f":"IF($A162=\"\",\"\",IF(OR(VLOOKUP($A162,Economática!$A$3:$AI$823,23,FALSE)=0,VLOOKUP($A162,Economática!$A$3:$AI$823,23,FALSE)=\"-\"),1/0,VLOOKUP($A162,Economática!$A$3:$AI$823,23,FALSE)))","v":433.1},{"$f":"IF($A162=\"\",\"\",IF(OR(VLOOKUP($A162,Economática!$A$3:$AI$823,24,FALSE)=0,VLOOKUP($A162,Economática!$A$3:$AI$823,24,FALSE)=\"-\"),1/0,VLOOKUP($A162,Economática!$A$3:$AI$823,24,FALSE)))","v":57},{"$f":"IF($A162=\"\",\"\",IF(OR(VLOOKUP($A162,Economática!$A$3:$AI$823,25,FALSE)=0,VLOOKUP($A162,Economática!$A$3:$AI$823,25,FALSE)=\"-\"),1/0,VLOOKUP($A162,Economática!$A$3:$AI$823,25,FALSE)))","v":57},{"$f":"IF($A162=\"\",\"\",IF(ISERROR((F162+VLOOKUP($A162,Economática!$A$3:$AI$823,26,FALSE))/Y162),(F162+VLOOKUP($A162,Economática!$A$3:$AI$823,26,FALSE))/Y162,(F162+VLOOKUP($A162,Economática!$A$3:$AI$823,26,FALSE))/Y162))","v":13.95698245614035},{"$f":"IF($A162=\"\",\"\",IF(OR(-VLOOKUP($A162,Economática!$A$3:$AI$823,27,FALSE)=0,-VLOOKUP($A162,Economática!$A$3:$AI$823,27,FALSE)=\"-\"),1/0,-VLOOKUP($A162,Economática!$A$3:$AI$823,27,FALSE)))","v":{"$error":"#VALUE!"}},{"$error":"#VALUE!"},{"$f":"IF($A162=\"\",\"\",IF(OR(VLOOKUP($A162,Economática!$A$3:$AI$823,28,FALSE)=0,VLOOKUP($A162,Economática!$A$3:$AI$823,28,FALSE)=\"-\"),1/0,VLOOKUP($A162,Economática!$A$3:$AI$823,28,FALSE)))","v":12799.7},{"$f":"IF($A162=\"\",\"\",IF(OR(VLOOKUP($A162,Economática!$A$3:$AI$823,29,FALSE)=0,VLOOKUP($A162,Economática!$A$3:$AI$823,29,FALSE)=\"-\"),1/0,VLOOKUP($A162,Economática!$A$3:$AI$823,29,FALSE)))","v":13567.8},{"$f":"IF($A162=\"\",\"\",IF(OR(VLOOKUP($A162,Economática!$A$3:$AI$823,30,FALSE)/E162=0,VLOOKUP($A162,Economática!$A$3:$AI$823,30,FALSE)/E162=\"-\",VLOOKUP($A162,Economática!$A$3:$AI$823,30,FALSE)/E162<33.33%,VLOOKUP($A162,Economática!$A$3:$AI$823,30,FALSE)/E162>100%),1/0,VLOOKUP($A162,Economática!$A$3:$AI$823,30,FALSE)/E162))","v":{"$error":"#DIV/0!"}},"GSHP3",{"$f":"IF($A162=\"\",\"\",IF(OR(VLOOKUP($A162,Economática!$A$3:$AI$823,25,FALSE)=0,VLOOKUP($A162,Economática!$A$3:$AI$823,25,FALSE)=\"-\"),1/0,VLOOKUP($A162,Economática!$A$3:$AI$823,25,FALSE)))","v":57},{"$f":"CONCATENATE(Economática!B164,\" \",Economática!C164)","v":"Generalshopp ON"}]
[{"$f":"IF(Economática!AG165=\"\",\"\",Economática!AG165)","v":"SEDU3"},{"$f":"IF($A163=\"\",\"\",VLOOKUP(VLOOKUP($A163,Economática!$A$3:$AI$823,6,FALSE),Correção!$B$16:$C$36,2,FALSE))","v":"Outros"},{"$f":"IF(Economática!B165=\"\",\"\",Economática!B165)","v":"Somos Educa"},{"$f":"IF($A163=\"\",\"\",IF(OR(VLOOKUP($A163,Economática!$A$3:$AI$823,8,FALSE)=0,VLOOKUP($A163,Economática!$A$3:$AI$823,8,FALSE)=\"-\"),1/0,VLOOKUP($A163,Economática!$A$3:$AI$823,8,FALSE)))","v":22.37},{"$f":"IF(A163=\"\",\"\",IF(ISERROR(VLOOKUP(A163,Correção!$B$2:$G$13,9,FALSE)),VLOOKUP($A163,Economática!$A$3:$AI$823,9,FALSE),VLOOKUP(A163,Correção!$B$2:$G$13,9,FALSE)))","v":262.12900000000002},{"$f":"IF($A163=\"\",\"\",Economática!G165)","v":5863.82},{"$f":"IF($A163=\"\",\"\",IF(OR(VLOOKUP($A163,Economática!$A$3:$AI$823,10,FALSE)=0,VLOOKUP($A163,Economática!$A$3:$AI$823,10,FALSE)=\"-\"),1/0,VLOOKUP($A163,Economática!$A$3:$AI$823,10,FALSE)))","v":390.94},{"$f":"IF($A163=\"\",\"\",IF(OR(VLOOKUP($A163,Economática!$A$3:$AI$823,11,FALSE)=0,VLOOKUP($A163,Economática!$A$3:$AI$823,11,FALSE)=\"-\"),1/0,VLOOKUP($A163,Economática!$A$3:$AI$823,11,FALSE)))","v":1871.58},{"$f":"IF($A163=\"\",\"\",IF(OR(VLOOKUP($A163,Economática!$A$3:$AI$823,12,FALSE)=0,VLOOKUP($A163,Economática!$A$3:$AI$823,12,FALSE)=\"-\"),1/0,VLOOKUP($A163,Economática!$A$3:$AI$823,12,FALSE)))","v":1866.94},{"$f":"IF($A163=\"\",\"\",IF(OR(VLOOKUP($A163,Economática!$A$3:$AI$823,13,FALSE)=0,VLOOKUP($A163,Economática!$A$3:$AI$823,13,FALSE)=\"-\"),1/0,VLOOKUP($A163,Economática!$A$3:$AI$823,13,FALSE)))","v":11.39},{"$f":"IF($A163=\"\",\"\",IF(OR(VLOOKUP($A163,Economática!$A$3:$AI$823,14,FALSE)=0,VLOOKUP($A163,Economática!$A$3:$AI$823,14,FALSE)=\"-\"),1/0,VLOOKUP($A163,Economática!$A$3:$AI$823,14,FALSE)))","v":113.07},{"$f":"IF($A163=\"\",\"\",IF(OR(VLOOKUP($A163,Economática!$A$3:$AI$823,15,FALSE)=0,VLOOKUP($A163,Economática!$A$3:$AI$823,15,FALSE)=\"-\"),1/0,VLOOKUP($A163,Economática!$A$3:$AI$823,15,FALSE)))","v":65.23},{"$f":"IF($A163=\"\",\"\",IF(OR(VLOOKUP($A163,Economática!$A$3:$AI$823,16,FALSE)=0,VLOOKUP($A163,Economática!$A$3:$AI$823,16,FALSE)=\"-\"),1/0,VLOOKUP($A163,Economática!$A$3:$AI$823,16,FALSE)))","v":-127.46},{"$f":"IF($A163=\"\",\"\",IF(OR(VLOOKUP($A163,Economática!$A$3:$AI$823,17,FALSE)=0,VLOOKUP($A163,Economática!$A$3:$AI$823,17,FALSE)=\"-\"),1/0,VLOOKUP($A163,Economática!$A$3:$AI$823,17,FALSE)))","v":-399.47},{"$f":"IF($A163=\"\",\"\",IF(OR(VLOOKUP($A163,Economática!$A$3:$AI$823,18,FALSE)=0,VLOOKUP($A163,Economática!$A$3:$AI$823,18,FALSE)=\"-\"),1/0,VLOOKUP($A163,Economática!$A$3:$AI$823,18,FALSE)))","v":11.39},{"$f":"IF($A163=\"\",\"\",IF(OR(VLOOKUP($A163,Economática!$A$3:$AI$823,19,FALSE)=0,VLOOKUP($A163,Economática!$A$3:$AI$823,19,FALSE)=\"-\"),1/0,VLOOKUP($A163,Economática!$A$3:$AI$823,19,FALSE)))","v":-399.47},{"$f":"IF($A163=\"\",\"\",VLOOKUP($A163,Economática!$A$3:$AI$823,20,FALSE)/E163)","v":-1.5239443174925322},1.4914030877926516,14.999298434542386,{"$error":"#DIV/0!"},{"$f":"IF($A163=\"\",\"\",IF(OR(VLOOKUP($A163,Economática!$A$3:$AI$823,21,FALSE)/100=0,VLOOKUP($A163,Economática!$A$3:$AI$823,21,FALSE)/100=\"-\"),1/0,VLOOKUP($A163,Economática!$A$3:$AI$823,21,FALSE)/100))","v":-0.46932899999999994},{"$f":"IF($A163=\"\",\"\",IF(OR(VLOOKUP($A163,Economática!$A$3:$AI$823,22,FALSE)/100=0,VLOOKUP($A163,Economática!$A$3:$AI$823,22,FALSE)/100=\"-\"),1/0,VLOOKUP($A163,Economática!$A$3:$AI$823,22,FALSE)/100))","v":4.0748950000000006},{"$f":"IF($A163=\"\",\"\",IF(OR(VLOOKUP($A163,Economática!$A$3:$AI$823,23,FALSE)=0,VLOOKUP($A163,Economática!$A$3:$AI$823,23,FALSE)=\"-\"),1/0,VLOOKUP($A163,Economática!$A$3:$AI$823,23,FALSE)))","v":324.60000000000002},{"$f":"IF($A163=\"\",\"\",IF(OR(VLOOKUP($A163,Economática!$A$3:$AI$823,24,FALSE)=0,VLOOKUP($A163,Economática!$A$3:$AI$823,24,FALSE)=\"-\"),1/0,VLOOKUP($A163,Economática!$A$3:$AI$823,24,FALSE)))","v":-146},{"$f":"IF($A163=\"\",\"\",IF(OR(VLOOKUP($A163,Economática!$A$3:$AI$823,25,FALSE)=0,VLOOKUP($A163,Economática!$A$3:$AI$823,25,FALSE)=\"-\"),1/0,VLOOKUP($A163,Economática!$A$3:$AI$823,25,FALSE)))","v":-146},{"$f":"IF($A163=\"\",\"\",IF(ISERROR((F163+VLOOKUP($A163,Economática!$A$3:$AI$823,26,FALSE))/Y163),(F163+VLOOKUP($A163,Economática!$A$3:$AI$823,26,FALSE))/Y163,(F163+VLOOKUP($A163,Economática!$A$3:$AI$823,26,FALSE))/Y163))","v":-51.152780821917808},{"$f":"IF($A163=\"\",\"\",IF(OR(-VLOOKUP($A163,Economática!$A$3:$AI$823,27,FALSE)=0,-VLOOKUP($A163,Economática!$A$3:$AI$823,27,FALSE)=\"-\"),1/0,-VLOOKUP($A163,Economática!$A$3:$AI$823,27,FALSE)))","v":{"$error":"#DIV/0!"}},{"$error":"#DIV/0!"},{"$f":"IF($A163=\"\",\"\",IF(OR(VLOOKUP($A163,Economática!$A$3:$AI$823,28,FALSE)=0,VLOOKUP($A163,Economática!$A$3:$AI$823,28,FALSE)=\"-\"),1/0,VLOOKUP($A163,Economática!$A$3:$AI$823,28,FALSE)))","v":1.4},{"$f":"IF($A163=\"\",\"\",IF(OR(VLOOKUP($A163,Economática!$A$3:$AI$823,29,FALSE)=0,VLOOKUP($A163,Economática!$A$3:$AI$823,29,FALSE)=\"-\"),1/0,VLOOKUP($A163,Economática!$A$3:$AI$823,29,FALSE)))","v":51.6},{"$f":"IF($A163=\"\",\"\",IF(OR(VLOOKUP($A163,Economática!$A$3:$AI$823,30,FALSE)/E163=0,VLOOKUP($A163,Economática!$A$3:$AI$823,30,FALSE)/E163=\"-\",VLOOKUP($A163,Economática!$A$3:$AI$823,30,FALSE)/E163<33.33%,VLOOKUP($A163,Economática!$A$3:$AI$823,30,FALSE)/E163>100%),1/0,VLOOKUP($A163,Economática!$A$3:$AI$823,30,FALSE)/E163))","v":0.99988936744885148},"SEDU3",{"$f":"IF($A163=\"\",\"\",IF(OR(VLOOKUP($A163,Economática!$A$3:$AI$823,25,FALSE)=0,VLOOKUP($A163,Economática!$A$3:$AI$823,25,FALSE)=\"-\"),1/0,VLOOKUP($A163,Economática!$A$3:$AI$823,25,FALSE)))","v":-146},{"$f":"CONCATENATE(Economática!B165,\" \",Economática!C165)","v":"Somos Educa ON"}]
[{"$f":"IF(Economática!AG166=\"\",\"\",Economática!AG166)","v":"LPSB3"},{"$f":"IF($A164=\"\",\"\",VLOOKUP(VLOOKUP($A164,Economática!$A$3:$AI$823,6,FALSE),Correção!$B$16:$C$36,2,FALSE))","v":"Outros"},{"$f":"IF(Economática!B166=\"\",\"\",Economática!B166)","v":"Lopes Brasil"},{"$f":"IF($A164=\"\",\"\",IF(OR(VLOOKUP($A164,Economática!$A$3:$AI$823,8,FALSE)=0,VLOOKUP($A164,Economática!$A$3:$AI$823,8,FALSE)=\"-\"),1/0,VLOOKUP($A164,Economática!$A$3:$AI$823,8,FALSE)))","v":4.8499999999999996},{"$f":"IF(A164=\"\",\"\",IF(ISERROR(VLOOKUP(A164,Correção!$B$2:$G$13,9,FALSE)),VLOOKUP($A164,Economática!$A$3:$AI$823,9,FALSE),VLOOKUP(A164,Correção!$B$2:$G$13,9,FALSE)))","v":125.663},{"$f":"IF($A164=\"\",\"\",Economática!G166)","v":609.47},{"$f":"IF($A164=\"\",\"\",IF(OR(VLOOKUP($A164,Economática!$A$3:$AI$823,10,FALSE)=0,VLOOKUP($A164,Economática!$A$3:$AI$823,10,FALSE)=\"-\"),1/0,VLOOKUP($A164,Economática!$A$3:$AI$823,10,FALSE)))","v":47.12},{"$f":"IF($A164=\"\",\"\",IF(OR(VLOOKUP($A164,Economática!$A$3:$AI$823,11,FALSE)=0,VLOOKUP($A164,Economática!$A$3:$AI$823,11,FALSE)=\"-\"),1/0,VLOOKUP($A164,Economática!$A$3:$AI$823,11,FALSE)))","v":111.02},{"$f":"IF($A164=\"\",\"\",IF(OR(VLOOKUP($A164,Economática!$A$3:$AI$823,12,FALSE)=0,VLOOKUP($A164,Economática!$A$3:$AI$823,12,FALSE)=\"-\"),1/0,VLOOKUP($A164,Economática!$A$3:$AI$823,12,FALSE)))","v":109.2},{"$f":"IF($A164=\"\",\"\",IF(OR(VLOOKUP($A164,Economática!$A$3:$AI$823,13,FALSE)=0,VLOOKUP($A164,Economática!$A$3:$AI$823,13,FALSE)=\"-\"),1/0,VLOOKUP($A164,Economática!$A$3:$AI$823,13,FALSE)))","v":-63.37},{"$f":"IF($A164=\"\",\"\",IF(OR(VLOOKUP($A164,Economática!$A$3:$AI$823,14,FALSE)=0,VLOOKUP($A164,Economática!$A$3:$AI$823,14,FALSE)=\"-\"),1/0,VLOOKUP($A164,Economática!$A$3:$AI$823,14,FALSE)))","v":-5.51},{"$f":"IF($A164=\"\",\"\",IF(OR(VLOOKUP($A164,Economática!$A$3:$AI$823,15,FALSE)=0,VLOOKUP($A164,Economática!$A$3:$AI$823,15,FALSE)=\"-\"),1/0,VLOOKUP($A164,Economática!$A$3:$AI$823,15,FALSE)))","v":-19.47},{"$f":"IF($A164=\"\",\"\",IF(OR(VLOOKUP($A164,Economática!$A$3:$AI$823,16,FALSE)=0,VLOOKUP($A164,Economática!$A$3:$AI$823,16,FALSE)=\"-\"),1/0,VLOOKUP($A164,Economática!$A$3:$AI$823,16,FALSE)))","v":-30.99},{"$f":"IF($A164=\"\",\"\",IF(OR(VLOOKUP($A164,Economática!$A$3:$AI$823,17,FALSE)=0,VLOOKUP($A164,Economática!$A$3:$AI$823,17,FALSE)=\"-\"),1/0,VLOOKUP($A164,Economática!$A$3:$AI$823,17,FALSE)))","v":-46.67},{"$f":"IF($A164=\"\",\"\",IF(OR(VLOOKUP($A164,Economática!$A$3:$AI$823,18,FALSE)=0,VLOOKUP($A164,Economática!$A$3:$AI$823,18,FALSE)=\"-\"),1/0,VLOOKUP($A164,Economática!$A$3:$AI$823,18,FALSE)))","v":-63.37},{"$f":"IF($A164=\"\",\"\",IF(OR(VLOOKUP($A164,Economática!$A$3:$AI$823,19,FALSE)=0,VLOOKUP($A164,Economática!$A$3:$AI$823,19,FALSE)=\"-\"),1/0,VLOOKUP($A164,Economática!$A$3:$AI$823,19,FALSE)))","v":-46.67},{"$f":"IF($A164=\"\",\"\",VLOOKUP($A164,Economática!$A$3:$AI$823,20,FALSE)/E164)","v":-0.37139014666210424},0.37497115300446432,12.934328310696094,{"$error":"#DIV/0!"},{"$f":"IF($A164=\"\",\"\",IF(OR(VLOOKUP($A164,Economática!$A$3:$AI$823,21,FALSE)/100=0,VLOOKUP($A164,Economática!$A$3:$AI$823,21,FALSE)/100=\"-\"),1/0,VLOOKUP($A164,Economática!$A$3:$AI$823,21,FALSE)/100))","v":-0.60600200000000004},{"$f":"IF($A164=\"\",\"\",IF(OR(VLOOKUP($A164,Economática!$A$3:$AI$823,22,FALSE)/100=0,VLOOKUP($A164,Economática!$A$3:$AI$823,22,FALSE)/100=\"-\"),1/0,VLOOKUP($A164,Economática!$A$3:$AI$823,22,FALSE)/100))","v":-0.64600199999999997},{"$f":"IF($A164=\"\",\"\",IF(OR(VLOOKUP($A164,Economática!$A$3:$AI$823,23,FALSE)=0,VLOOKUP($A164,Economática!$A$3:$AI$823,23,FALSE)=\"-\"),1/0,VLOOKUP($A164,Economática!$A$3:$AI$823,23,FALSE)))","v":-57.5},{"$f":"IF($A164=\"\",\"\",IF(OR(VLOOKUP($A164,Economática!$A$3:$AI$823,24,FALSE)=0,VLOOKUP($A164,Economática!$A$3:$AI$823,24,FALSE)=\"-\"),1/0,VLOOKUP($A164,Economática!$A$3:$AI$823,24,FALSE)))","v":-16.2},{"$f":"IF($A164=\"\",\"\",IF(OR(VLOOKUP($A164,Economática!$A$3:$AI$823,25,FALSE)=0,VLOOKUP($A164,Economática!$A$3:$AI$823,25,FALSE)=\"-\"),1/0,VLOOKUP($A164,Economática!$A$3:$AI$823,25,FALSE)))","v":-16.2},{"$f":"IF($A164=\"\",\"\",IF(ISERROR((F164+VLOOKUP($A164,Economática!$A$3:$AI$823,26,FALSE))/Y164),(F164+VLOOKUP($A164,Economática!$A$3:$AI$823,26,FALSE))/Y164,(F164+VLOOKUP($A164,Economática!$A$3:$AI$823,26,FALSE))/Y164))","v":-36.74679012345679},{"$f":"IF($A164=\"\",\"\",IF(OR(-VLOOKUP($A164,Economática!$A$3:$AI$823,27,FALSE)=0,-VLOOKUP($A164,Economática!$A$3:$AI$823,27,FALSE)=\"-\"),1/0,-VLOOKUP($A164,Economática!$A$3:$AI$823,27,FALSE)))","v":{"$error":"#DIV/0!"}},{"$error":"#DIV/0!"},{"$f":"IF($A164=\"\",\"\",IF(OR(VLOOKUP($A164,Economática!$A$3:$AI$823,28,FALSE)=0,VLOOKUP($A164,Economática!$A$3:$AI$823,28,FALSE)=\"-\"),1/0,VLOOKUP($A164,Economática!$A$3:$AI$823,28,FALSE)))","v":-15.7},{"$f":"IF($A164=\"\",\"\",IF(OR(VLOOKUP($A164,Economática!$A$3:$AI$823,29,FALSE)=0,VLOOKUP($A164,Economática!$A$3:$AI$823,29,FALSE)=\"-\"),1/0,VLOOKUP($A164,Economática!$A$3:$AI$823,29,FALSE)))","v":-13.2},{"$f":"IF($A164=\"\",\"\",IF(OR(VLOOKUP($A164,Economática!$A$3:$AI$823,30,FALSE)/E164=0,VLOOKUP($A164,Economática!$A$3:$AI$823,30,FALSE)/E164=\"-\",VLOOKUP($A164,Economática!$A$3:$AI$823,30,FALSE)/E164<33.33%,VLOOKUP($A164,Economática!$A$3:$AI$823,30,FALSE)/E164>100%),1/0,VLOOKUP($A164,Economática!$A$3:$AI$823,30,FALSE)/E164))","v":{"$error":"#DIV/0!"}},"LPSB3",{"$f":"IF($A164=\"\",\"\",IF(OR(VLOOKUP($A164,Economática!$A$3:$AI$823,25,FALSE)=0,VLOOKUP($A164,Economática!$A$3:$AI$823,25,FALSE)=\"-\"),1/0,VLOOKUP($A164,Economática!$A$3:$AI$823,25,FALSE)))","v":-16.2},{"$f":"CONCATENATE(Economática!B166,\" \",Economática!C166)","v":"Lopes Brasil ON"}]
[{"$f":"IF(Economática!AG167=\"\",\"\",Economática!AG167)","v":"SLED4"},{"$f":"IF($A165=\"\",\"\",VLOOKUP(VLOOKUP($A165,Economática!$A$3:$AI$823,6,FALSE),Correção!$B$16:$C$36,2,FALSE))","v":"Outros"},{"$f":"IF(Economática!B167=\"\",\"\",Economática!B167)","v":"Saraiva Livr"},{"$f":"IF($A165=\"\",\"\",IF(OR(VLOOKUP($A165,Economática!$A$3:$AI$823,8,FALSE)=0,VLOOKUP($A165,Economática!$A$3:$AI$823,8,FALSE)=\"-\"),1/0,VLOOKUP($A165,Economática!$A$3:$AI$823,8,FALSE)))","v":1.95},{"$f":"IF(A165=\"\",\"\",IF(ISERROR(VLOOKUP(A165,Correção!$B$2:$G$13,9,FALSE)),VLOOKUP($A165,Economática!$A$3:$AI$823,9,FALSE),VLOOKUP(A165,Correção!$B$2:$G$13,9,FALSE)))","v":26.542000000000002},{"$f":"IF($A165=\"\",\"\",Economática!G167)","v":51.28},{"$f":"IF($A165=\"\",\"\",IF(OR(VLOOKUP($A165,Economática!$A$3:$AI$823,10,FALSE)=0,VLOOKUP($A165,Economática!$A$3:$AI$823,10,FALSE)=\"-\"),1/0,VLOOKUP($A165,Economática!$A$3:$AI$823,10,FALSE)))","v":120.91},{"$f":"IF($A165=\"\",\"\",IF(OR(VLOOKUP($A165,Economática!$A$3:$AI$823,11,FALSE)=0,VLOOKUP($A165,Economática!$A$3:$AI$823,11,FALSE)=\"-\"),1/0,VLOOKUP($A165,Economática!$A$3:$AI$823,11,FALSE)))","v":1724.89},{"$f":"IF($A165=\"\",\"\",IF(OR(VLOOKUP($A165,Economática!$A$3:$AI$823,12,FALSE)=0,VLOOKUP($A165,Economática!$A$3:$AI$823,12,FALSE)=\"-\"),1/0,VLOOKUP($A165,Economática!$A$3:$AI$823,12,FALSE)))","v":1445.42},{"$f":"IF($A165=\"\",\"\",IF(OR(VLOOKUP($A165,Economática!$A$3:$AI$823,13,FALSE)=0,VLOOKUP($A165,Economática!$A$3:$AI$823,13,FALSE)=\"-\"),1/0,VLOOKUP($A165,Economática!$A$3:$AI$823,13,FALSE)))","v":-52.01},{"$f":"IF($A165=\"\",\"\",IF(OR(VLOOKUP($A165,Economática!$A$3:$AI$823,14,FALSE)=0,VLOOKUP($A165,Economática!$A$3:$AI$823,14,FALSE)=\"-\"),1/0,VLOOKUP($A165,Economática!$A$3:$AI$823,14,FALSE)))","v":1.32},{"$f":"IF($A165=\"\",\"\",IF(OR(VLOOKUP($A165,Economática!$A$3:$AI$823,15,FALSE)=0,VLOOKUP($A165,Economática!$A$3:$AI$823,15,FALSE)=\"-\"),1/0,VLOOKUP($A165,Economática!$A$3:$AI$823,15,FALSE)))","v":-36.340000000000003},{"$f":"IF($A165=\"\",\"\",IF(OR(VLOOKUP($A165,Economática!$A$3:$AI$823,16,FALSE)=0,VLOOKUP($A165,Economática!$A$3:$AI$823,16,FALSE)=\"-\"),1/0,VLOOKUP($A165,Economática!$A$3:$AI$823,16,FALSE)))","v":-102.94},{"$f":"IF($A165=\"\",\"\",IF(OR(VLOOKUP($A165,Economática!$A$3:$AI$823,17,FALSE)=0,VLOOKUP($A165,Economática!$A$3:$AI$823,17,FALSE)=\"-\"),1/0,VLOOKUP($A165,Economática!$A$3:$AI$823,17,FALSE)))","v":-301.73},{"$f":"IF($A165=\"\",\"\",IF(OR(VLOOKUP($A165,Economática!$A$3:$AI$823,18,FALSE)=0,VLOOKUP($A165,Economática!$A$3:$AI$823,18,FALSE)=\"-\"),1/0,VLOOKUP($A165,Economática!$A$3:$AI$823,18,FALSE)))","v":-52.01},{"$f":"IF($A165=\"\",\"\",IF(OR(VLOOKUP($A165,Economática!$A$3:$AI$823,19,FALSE)=0,VLOOKUP($A165,Economática!$A$3:$AI$823,19,FALSE)=\"-\"),1/0,VLOOKUP($A165,Economática!$A$3:$AI$823,19,FALSE)))","v":-301.73},{"$f":"IF($A165=\"\",\"\",VLOOKUP($A165,Economática!$A$3:$AI$823,20,FALSE)/E165)","v":-11.368020495817948},4.5554215959611177,0.42806136795963945,{"$error":"#DIV/0!"},{"$f":"IF($A165=\"\",\"\",IF(OR(VLOOKUP($A165,Economática!$A$3:$AI$823,21,FALSE)/100=0,VLOOKUP($A165,Economática!$A$3:$AI$823,21,FALSE)/100=\"-\"),1/0,VLOOKUP($A165,Economática!$A$3:$AI$823,21,FALSE)/100))","v":-0.71495900000000001},{"$f":"IF($A165=\"\",\"\",IF(OR(VLOOKUP($A165,Economática!$A$3:$AI$823,22,FALSE)/100=0,VLOOKUP($A165,Economática!$A$3:$AI$823,22,FALSE)/100=\"-\"),1/0,VLOOKUP($A165,Economática!$A$3:$AI$823,22,FALSE)/100))","v":0.6404510000000001},{"$f":"IF($A165=\"\",\"\",IF(OR(VLOOKUP($A165,Economática!$A$3:$AI$823,23,FALSE)=0,VLOOKUP($A165,Economática!$A$3:$AI$823,23,FALSE)=\"-\"),1/0,VLOOKUP($A165,Economática!$A$3:$AI$823,23,FALSE)))","v":15.2},{"$f":"IF($A165=\"\",\"\",IF(OR(VLOOKUP($A165,Economática!$A$3:$AI$823,24,FALSE)=0,VLOOKUP($A165,Economática!$A$3:$AI$823,24,FALSE)=\"-\"),1/0,VLOOKUP($A165,Economática!$A$3:$AI$823,24,FALSE)))","v":-167.2},{"$f":"IF($A165=\"\",\"\",IF(OR(VLOOKUP($A165,Economática!$A$3:$AI$823,25,FALSE)=0,VLOOKUP($A165,Economática!$A$3:$AI$823,25,FALSE)=\"-\"),1/0,VLOOKUP($A165,Economática!$A$3:$AI$823,25,FALSE)))","v":-167.2},{"$f":"IF($A165=\"\",\"\",IF(ISERROR((F165+VLOOKUP($A165,Economática!$A$3:$AI$823,26,FALSE))/Y165),(F165+VLOOKUP($A165,Economática!$A$3:$AI$823,26,FALSE))/Y165,(F165+VLOOKUP($A165,Economática!$A$3:$AI$823,26,FALSE))/Y165))","v":-0.76986842105263154},{"$f":"IF($A165=\"\",\"\",IF(OR(-VLOOKUP($A165,Economática!$A$3:$AI$823,27,FALSE)=0,-VLOOKUP($A165,Economática!$A$3:$AI$823,27,FALSE)=\"-\"),1/0,-VLOOKUP($A165,Economática!$A$3:$AI$823,27,FALSE)))","v":{"$error":"#DIV/0!"}},{"$error":"#DIV/0!"},{"$f":"IF($A165=\"\",\"\",IF(OR(VLOOKUP($A165,Economática!$A$3:$AI$823,28,FALSE)=0,VLOOKUP($A165,Economática!$A$3:$AI$823,28,FALSE)=\"-\"),1/0,VLOOKUP($A165,Economática!$A$3:$AI$823,28,FALSE)))","v":-9.3000000000000007},{"$f":"IF($A165=\"\",\"\",IF(OR(VLOOKUP($A165,Economática!$A$3:$AI$823,29,FALSE)=0,VLOOKUP($A165,Economática!$A$3:$AI$823,29,FALSE)=\"-\"),1/0,VLOOKUP($A165,Economática!$A$3:$AI$823,29,FALSE)))","v":-52.1},{"$f":"IF($A165=\"\",\"\",IF(OR(VLOOKUP($A165,Economática!$A$3:$AI$823,30,FALSE)/E165=0,VLOOKUP($A165,Economática!$A$3:$AI$823,30,FALSE)/E165=\"-\",VLOOKUP($A165,Economática!$A$3:$AI$823,30,FALSE)/E165<33.33%,VLOOKUP($A165,Economática!$A$3:$AI$823,30,FALSE)/E165>100%),1/0,VLOOKUP($A165,Economática!$A$3:$AI$823,30,FALSE)/E165))","v":0.36169090498078516},"SLED4",{"$f":"IF($A165=\"\",\"\",IF(OR(VLOOKUP($A165,Economática!$A$3:$AI$823,25,FALSE)=0,VLOOKUP($A165,Economática!$A$3:$AI$823,25,FALSE)=\"-\"),1/0,VLOOKUP($A165,Economática!$A$3:$AI$823,25,FALSE)))","v":-167.2},{"$f":"CONCATENATE(Economática!B167,\" \",Economática!C167)","v":"Saraiva Livr PN"}]
[{"$f":"IF(Economática!AG168=\"\",\"\",Economática!AG168)","v":"HOOT4"},{"$f":"IF($A166=\"\",\"\",VLOOKUP(VLOOKUP($A166,Economática!$A$3:$AI$823,6,FALSE),Correção!$B$16:$C$36,2,FALSE))","v":"Outros"},{"$f":"IF(Economática!B168=\"\",\"\",Economática!B168)","v":"Hoteis Othon"},{"$f":"IF($A166=\"\",\"\",IF(OR(VLOOKUP($A166,Economática!$A$3:$AI$823,8,FALSE)=0,VLOOKUP($A166,Economática!$A$3:$AI$823,8,FALSE)=\"-\"),1/0,VLOOKUP($A166,Economática!$A$3:$AI$823,8,FALSE)))","v":1.9},{"$f":"IF(A166=\"\",\"\",IF(ISERROR(VLOOKUP(A166,Correção!$B$2:$G$13,9,FALSE)),VLOOKUP($A166,Economática!$A$3:$AI$823,9,FALSE),VLOOKUP(A166,Correção!$B$2:$G$13,9,FALSE)))","v":18.372},{"$f":"IF($A166=\"\",\"\",Economática!G168)","v":34.909999999999997},{"$f":"IF($A166=\"\",\"\",IF(OR(VLOOKUP($A166,Economática!$A$3:$AI$823,10,FALSE)=0,VLOOKUP($A166,Economática!$A$3:$AI$823,10,FALSE)=\"-\"),1/0,VLOOKUP($A166,Economática!$A$3:$AI$823,10,FALSE)))","v":-226.26},{"$f":"IF($A166=\"\",\"\",IF(OR(VLOOKUP($A166,Economática!$A$3:$AI$823,11,FALSE)=0,VLOOKUP($A166,Economática!$A$3:$AI$823,11,FALSE)=\"-\"),1/0,VLOOKUP($A166,Economática!$A$3:$AI$823,11,FALSE)))","v":117.45},{"$f":"IF($A166=\"\",\"\",IF(OR(VLOOKUP($A166,Economática!$A$3:$AI$823,12,FALSE)=0,VLOOKUP($A166,Economática!$A$3:$AI$823,12,FALSE)=\"-\"),1/0,VLOOKUP($A166,Economática!$A$3:$AI$823,12,FALSE)))","v":78.540000000000006},{"$f":"IF($A166=\"\",\"\",IF(OR(VLOOKUP($A166,Economática!$A$3:$AI$823,13,FALSE)=0,VLOOKUP($A166,Economática!$A$3:$AI$823,13,FALSE)=\"-\"),1/0,VLOOKUP($A166,Economática!$A$3:$AI$823,13,FALSE)))","v":-40.119999999999997},{"$f":"IF($A166=\"\",\"\",IF(OR(VLOOKUP($A166,Economática!$A$3:$AI$823,14,FALSE)=0,VLOOKUP($A166,Economática!$A$3:$AI$823,14,FALSE)=\"-\"),1/0,VLOOKUP($A166,Economática!$A$3:$AI$823,14,FALSE)))","v":-15.75},{"$f":"IF($A166=\"\",\"\",IF(OR(VLOOKUP($A166,Economática!$A$3:$AI$823,15,FALSE)=0,VLOOKUP($A166,Economática!$A$3:$AI$823,15,FALSE)=\"-\"),1/0,VLOOKUP($A166,Economática!$A$3:$AI$823,15,FALSE)))","v":-34.270000000000003},{"$f":"IF($A166=\"\",\"\",IF(OR(VLOOKUP($A166,Economática!$A$3:$AI$823,16,FALSE)=0,VLOOKUP($A166,Economática!$A$3:$AI$823,16,FALSE)=\"-\"),1/0,VLOOKUP($A166,Economática!$A$3:$AI$823,16,FALSE)))","v":-55.57},{"$f":"IF($A166=\"\",\"\",IF(OR(VLOOKUP($A166,Economática!$A$3:$AI$823,17,FALSE)=0,VLOOKUP($A166,Economática!$A$3:$AI$823,17,FALSE)=\"-\"),1/0,VLOOKUP($A166,Economática!$A$3:$AI$823,17,FALSE)))","v":-94.48},{"$f":"IF($A166=\"\",\"\",IF(OR(VLOOKUP($A166,Economática!$A$3:$AI$823,18,FALSE)=0,VLOOKUP($A166,Economática!$A$3:$AI$823,18,FALSE)=\"-\"),1/0,VLOOKUP($A166,Economática!$A$3:$AI$823,18,FALSE)))","v":-40.119999999999997},{"$f":"IF($A166=\"\",\"\",IF(OR(VLOOKUP($A166,Economática!$A$3:$AI$823,19,FALSE)=0,VLOOKUP($A166,Economática!$A$3:$AI$823,19,FALSE)=\"-\"),1/0,VLOOKUP($A166,Economática!$A$3:$AI$823,19,FALSE)))","v":-94.48},{"$f":"IF($A166=\"\",\"\",VLOOKUP($A166,Economática!$A$3:$AI$823,20,FALSE)/E166)","v":-5.1426083170041368},{"$error":"#DIV/0!"},{"$error":"#DIV/0!"},{"$error":"#DIV/0!"},{"$f":"IF($A166=\"\",\"\",IF(OR(VLOOKUP($A166,Economática!$A$3:$AI$823,21,FALSE)/100=0,VLOOKUP($A166,Economática!$A$3:$AI$823,21,FALSE)/100=\"-\"),1/0,VLOOKUP($A166,Economática!$A$3:$AI$823,21,FALSE)/100))","v":{"$error":"#VALUE!"}},{"$f":"IF($A166=\"\",\"\",IF(OR(VLOOKUP($A166,Economática!$A$3:$AI$823,22,FALSE)/100=0,VLOOKUP($A166,Economática!$A$3:$AI$823,22,FALSE)/100=\"-\"),1/0,VLOOKUP($A166,Economática!$A$3:$AI$823,22,FALSE)/100))","v":-1.7260999999999999E-2},{"$f":"IF($A166=\"\",\"\",IF(OR(VLOOKUP($A166,Economática!$A$3:$AI$823,23,FALSE)=0,VLOOKUP($A166,Economática!$A$3:$AI$823,23,FALSE)=\"-\"),1/0,VLOOKUP($A166,Economática!$A$3:$AI$823,23,FALSE)))","v":-3.9},{"$f":"IF($A166=\"\",\"\",IF(OR(VLOOKUP($A166,Economática!$A$3:$AI$823,24,FALSE)=0,VLOOKUP($A166,Economática!$A$3:$AI$823,24,FALSE)=\"-\"),1/0,VLOOKUP($A166,Economática!$A$3:$AI$823,24,FALSE)))","v":-24},{"$f":"IF($A166=\"\",\"\",IF(OR(VLOOKUP($A166,Economática!$A$3:$AI$823,25,FALSE)=0,VLOOKUP($A166,Economática!$A$3:$AI$823,25,FALSE)=\"-\"),1/0,VLOOKUP($A166,Economática!$A$3:$AI$823,25,FALSE)))","v":-24},{"$f":"IF($A166=\"\",\"\",IF(ISERROR((F166+VLOOKUP($A166,Economática!$A$3:$AI$823,26,FALSE))/Y166),(F166+VLOOKUP($A166,Economática!$A$3:$AI$823,26,FALSE))/Y166,(F166+VLOOKUP($A166,Economática!$A$3:$AI$823,26,FALSE))/Y166))","v":-1.6312916666666666},{"$f":"IF($A166=\"\",\"\",IF(OR(-VLOOKUP($A166,Economática!$A$3:$AI$823,27,FALSE)=0,-VLOOKUP($A166,Economática!$A$3:$AI$823,27,FALSE)=\"-\"),1/0,-VLOOKUP($A166,Economática!$A$3:$AI$823,27,FALSE)))","v":{"$error":"#DIV/0!"}},{"$error":"#DIV/0!"},{"$f":"IF($A166=\"\",\"\",IF(OR(VLOOKUP($A166,Economática!$A$3:$AI$823,28,FALSE)=0,VLOOKUP($A166,Economática!$A$3:$AI$823,28,FALSE)=\"-\"),1/0,VLOOKUP($A166,Economática!$A$3:$AI$823,28,FALSE)))","v":-2.1},{"$f":"IF($A166=\"\",\"\",IF(OR(VLOOKUP($A166,Economática!$A$3:$AI$823,29,FALSE)=0,VLOOKUP($A166,Economática!$A$3:$AI$823,29,FALSE)=\"-\"),1/0,VLOOKUP($A166,Economática!$A$3:$AI$823,29,FALSE)))","v":-29.4},{"$f":"IF($A166=\"\",\"\",IF(OR(VLOOKUP($A166,Economática!$A$3:$AI$823,30,FALSE)/E166=0,VLOOKUP($A166,Economática!$A$3:$AI$823,30,FALSE)/E166=\"-\",VLOOKUP($A166,Economática!$A$3:$AI$823,30,FALSE)/E166<33.33%,VLOOKUP($A166,Economática!$A$3:$AI$823,30,FALSE)/E166>100%),1/0,VLOOKUP($A166,Economática!$A$3:$AI$823,30,FALSE)/E166))","v":0.57152188112344871},"HOOT4",{"$f":"IF($A166=\"\",\"\",IF(OR(VLOOKUP($A166,Economática!$A$3:$AI$823,25,FALSE)=0,VLOOKUP($A166,Economática!$A$3:$AI$823,25,FALSE)=\"-\"),1/0,VLOOKUP($A166,Economática!$A$3:$AI$823,25,FALSE)))","v":-24},{"$f":"CONCATENATE(Economática!B168,\" \",Economática!C168)","v":"Hoteis Othon PN"}]
[{"$f":"IF(Economática!AG169=\"\",\"\",Economática!AG169)","v":"INEP4"},{"$f":"IF($A167=\"\",\"\",VLOOKUP(VLOOKUP($A167,Economática!$A$3:$AI$823,6,FALSE),Correção!$B$16:$C$36,2,FALSE))","v":"Outros"},{"$f":"IF(Economática!B169=\"\",\"\",Economática!B169)","v":"Inepar"},{"$f":"IF($A167=\"\",\"\",IF(OR(VLOOKUP($A167,Economática!$A$3:$AI$823,8,FALSE)=0,VLOOKUP($A167,Economática!$A$3:$AI$823,8,FALSE)=\"-\"),1/0,VLOOKUP($A167,Economática!$A$3:$AI$823,8,FALSE)))","v":12.6},{"$f":"IF(A167=\"\",\"\",IF(ISERROR(VLOOKUP(A167,Correção!$B$2:$G$13,9,FALSE)),VLOOKUP($A167,Economática!$A$3:$AI$823,9,FALSE),VLOOKUP(A167,Correção!$B$2:$G$13,9,FALSE)))","v":7.4630000000000001},{"$f":"IF($A167=\"\",\"\",Economática!G169)","v":95.63},{"$f":"IF($A167=\"\",\"\",IF(OR(VLOOKUP($A167,Economática!$A$3:$AI$823,10,FALSE)=0,VLOOKUP($A167,Economática!$A$3:$AI$823,10,FALSE)=\"-\"),1/0,VLOOKUP($A167,Economática!$A$3:$AI$823,10,FALSE)))","v":-1382.43},{"$f":"IF($A167=\"\",\"\",IF(OR(VLOOKUP($A167,Economática!$A$3:$AI$823,11,FALSE)=0,VLOOKUP($A167,Economática!$A$3:$AI$823,11,FALSE)=\"-\"),1/0,VLOOKUP($A167,Economática!$A$3:$AI$823,11,FALSE)))","v":39.799999999999997},{"$f":"IF($A167=\"\",\"\",IF(OR(VLOOKUP($A167,Economática!$A$3:$AI$823,12,FALSE)=0,VLOOKUP($A167,Economática!$A$3:$AI$823,12,FALSE)=\"-\"),1/0,VLOOKUP($A167,Economática!$A$3:$AI$823,12,FALSE)))","v":{"$error":"#DIV/0!"}},{"$f":"IF($A167=\"\",\"\",IF(OR(VLOOKUP($A167,Economática!$A$3:$AI$823,13,FALSE)=0,VLOOKUP($A167,Economática!$A$3:$AI$823,13,FALSE)=\"-\"),1/0,VLOOKUP($A167,Economática!$A$3:$AI$823,13,FALSE)))","v":-321.06},{"$f":"IF($A167=\"\",\"\",IF(OR(VLOOKUP($A167,Economática!$A$3:$AI$823,14,FALSE)=0,VLOOKUP($A167,Economática!$A$3:$AI$823,14,FALSE)=\"-\"),1/0,VLOOKUP($A167,Economática!$A$3:$AI$823,14,FALSE)))","v":-56.35},{"$f":"IF($A167=\"\",\"\",IF(OR(VLOOKUP($A167,Economática!$A$3:$AI$823,15,FALSE)=0,VLOOKUP($A167,Economática!$A$3:$AI$823,15,FALSE)=\"-\"),1/0,VLOOKUP($A167,Economática!$A$3:$AI$823,15,FALSE)))","v":-52.21},{"$f":"IF($A167=\"\",\"\",IF(OR(VLOOKUP($A167,Economática!$A$3:$AI$823,16,FALSE)=0,VLOOKUP($A167,Economática!$A$3:$AI$823,16,FALSE)=\"-\"),1/0,VLOOKUP($A167,Economática!$A$3:$AI$823,16,FALSE)))","v":-99.18},{"$f":"IF($A167=\"\",\"\",IF(OR(VLOOKUP($A167,Economática!$A$3:$AI$823,17,FALSE)=0,VLOOKUP($A167,Economática!$A$3:$AI$823,17,FALSE)=\"-\"),1/0,VLOOKUP($A167,Economática!$A$3:$AI$823,17,FALSE)))","v":{"$error":"#DIV/0!"}},{"$f":"IF($A167=\"\",\"\",IF(OR(VLOOKUP($A167,Economática!$A$3:$AI$823,18,FALSE)=0,VLOOKUP($A167,Economática!$A$3:$AI$823,18,FALSE)=\"-\"),1/0,VLOOKUP($A167,Economática!$A$3:$AI$823,18,FALSE)))","v":-321.06},{"$f":"IF($A167=\"\",\"\",IF(OR(VLOOKUP($A167,Economática!$A$3:$AI$823,19,FALSE)=0,VLOOKUP($A167,Economática!$A$3:$AI$823,19,FALSE)=\"-\"),1/0,VLOOKUP($A167,Economática!$A$3:$AI$823,19,FALSE)))","v":{"$error":"#DIV/0!"}},{"$f":"IF($A167=\"\",\"\",VLOOKUP($A167,Economática!$A$3:$AI$823,20,FALSE)/E167)","v":-36.170440841484655},{"$error":"#DIV/0!"},{"$error":"#DIV/0!"},{"$error":"#DIV/0!"},{"$f":"IF($A167=\"\",\"\",IF(OR(VLOOKUP($A167,Economática!$A$3:$AI$823,21,FALSE)/100=0,VLOOKUP($A167,Economática!$A$3:$AI$823,21,FALSE)/100=\"-\"),1/0,VLOOKUP($A167,Economática!$A$3:$AI$823,21,FALSE)/100))","v":{"$error":"#VALUE!"}},{"$f":"IF($A167=\"\",\"\",IF(OR(VLOOKUP($A167,Economática!$A$3:$AI$823,22,FALSE)/100=0,VLOOKUP($A167,Economática!$A$3:$AI$823,22,FALSE)/100=\"-\"),1/0,VLOOKUP($A167,Economática!$A$3:$AI$823,22,FALSE)/100))","v":-0.44852300000000001},{"$f":"IF($A167=\"\",\"\",IF(OR(VLOOKUP($A167,Economática!$A$3:$AI$823,23,FALSE)=0,VLOOKUP($A167,Economática!$A$3:$AI$823,23,FALSE)=\"-\"),1/0,VLOOKUP($A167,Economática!$A$3:$AI$823,23,FALSE)))","v":-127},{"$f":"IF($A167=\"\",\"\",IF(OR(VLOOKUP($A167,Economática!$A$3:$AI$823,24,FALSE)=0,VLOOKUP($A167,Economática!$A$3:$AI$823,24,FALSE)=\"-\"),1/0,VLOOKUP($A167,Economática!$A$3:$AI$823,24,FALSE)))","v":{"$error":"#DIV/0!"}},{"$f":"IF($A167=\"\",\"\",IF(OR(VLOOKUP($A167,Economática!$A$3:$AI$823,25,FALSE)=0,VLOOKUP($A167,Economática!$A$3:$AI$823,25,FALSE)=\"-\"),1/0,VLOOKUP($A167,Economática!$A$3:$AI$823,25,FALSE)))","v":-128.30000000000001},{"$f":"IF($A167=\"\",\"\",IF(ISERROR((F167+VLOOKUP($A167,Economática!$A$3:$AI$823,26,FALSE))/Y167),(F167+VLOOKUP($A167,Economática!$A$3:$AI$823,26,FALSE))/Y167,(F167+VLOOKUP($A167,Economática!$A$3:$AI$823,26,FALSE))/Y167))","v":-5.5781917381137953},{"$f":"IF($A167=\"\",\"\",IF(OR(-VLOOKUP($A167,Economática!$A$3:$AI$823,27,FALSE)=0,-VLOOKUP($A167,Economática!$A$3:$AI$823,27,FALSE)=\"-\"),1/0,-VLOOKUP($A167,Economática!$A$3:$AI$823,27,FALSE)))","v":1.25},1.3071211962773189E-2,{"$f":"IF($A167=\"\",\"\",IF(OR(VLOOKUP($A167,Economática!$A$3:$AI$823,28,FALSE)=0,VLOOKUP($A167,Economática!$A$3:$AI$823,28,FALSE)=\"-\"),1/0,VLOOKUP($A167,Economática!$A$3:$AI$823,28,FALSE)))","v":-17.8},{"$f":"IF($A167=\"\",\"\",IF(OR(VLOOKUP($A167,Economática!$A$3:$AI$823,29,FALSE)=0,VLOOKUP($A167,Economática!$A$3:$AI$823,29,FALSE)=\"-\"),1/0,VLOOKUP($A167,Economática!$A$3:$AI$823,29,FALSE)))","v":342.1},{"$f":"IF($A167=\"\",\"\",IF(OR(VLOOKUP($A167,Economática!$A$3:$AI$823,30,FALSE)/E167=0,VLOOKUP($A167,Economática!$A$3:$AI$823,30,FALSE)/E167=\"-\",VLOOKUP($A167,Economática!$A$3:$AI$823,30,FALSE)/E167<33.33%,VLOOKUP($A167,Economática!$A$3:$AI$823,30,FALSE)/E167>100%),1/0,VLOOKUP($A167,Economática!$A$3:$AI$823,30,FALSE)/E167))","v":0.42878199115637144},"INEP4",{"$f":"IF($A167=\"\",\"\",IF(OR(VLOOKUP($A167,Economática!$A$3:$AI$823,25,FALSE)=0,VLOOKUP($A167,Economática!$A$3:$AI$823,25,FALSE)=\"-\"),1/0,VLOOKUP($A167,Economática!$A$3:$AI$823,25,FALSE)))","v":-128.30000000000001},{"$f":"CONCATENATE(Economática!B169,\" \",Economática!C169)","v":"Inepar PN"}]
[{"$f":"IF(Economática!AG170=\"\",\"\",Economática!AG170)","v":"SNSY5"},{"$f":"IF($A168=\"\",\"\",VLOOKUP(VLOOKUP($A168,Economática!$A$3:$AI$823,6,FALSE),Correção!$B$16:$C$36,2,FALSE))","v":"Outros"},{"$f":"IF(Economática!B170=\"\",\"\",Economática!B170)","v":"Sansuy"},{"$f":"IF($A168=\"\",\"\",IF(OR(VLOOKUP($A168,Economática!$A$3:$AI$823,8,FALSE)=0,VLOOKUP($A168,Economática!$A$3:$AI$823,8,FALSE)=\"-\"),1/0,VLOOKUP($A168,Economática!$A$3:$AI$823,8,FALSE)))","v":74.5},{"$f":"IF(A168=\"\",\"\",IF(ISERROR(VLOOKUP(A168,Correção!$B$2:$G$13,9,FALSE)),VLOOKUP($A168,Economática!$A$3:$AI$823,9,FALSE),VLOOKUP(A168,Correção!$B$2:$G$13,9,FALSE)))","v":0.193},{"$f":"IF($A168=\"\",\"\",Economática!G170)","v":14.37},{"$f":"IF($A168=\"\",\"\",IF(OR(VLOOKUP($A168,Economática!$A$3:$AI$823,10,FALSE)=0,VLOOKUP($A168,Economática!$A$3:$AI$823,10,FALSE)=\"-\"),1/0,VLOOKUP($A168,Economática!$A$3:$AI$823,10,FALSE)))","v":-1045.26},{"$f":"IF($A168=\"\",\"\",IF(OR(VLOOKUP($A168,Economática!$A$3:$AI$823,11,FALSE)=0,VLOOKUP($A168,Economática!$A$3:$AI$823,11,FALSE)=\"-\"),1/0,VLOOKUP($A168,Economática!$A$3:$AI$823,11,FALSE)))","v":385.41},{"$f":"IF($A168=\"\",\"\",IF(OR(VLOOKUP($A168,Economática!$A$3:$AI$823,12,FALSE)=0,VLOOKUP($A168,Economática!$A$3:$AI$823,12,FALSE)=\"-\"),1/0,VLOOKUP($A168,Economática!$A$3:$AI$823,12,FALSE)))","v":423.16},{"$f":"IF($A168=\"\",\"\",IF(OR(VLOOKUP($A168,Economática!$A$3:$AI$823,13,FALSE)=0,VLOOKUP($A168,Economática!$A$3:$AI$823,13,FALSE)=\"-\"),1/0,VLOOKUP($A168,Economática!$A$3:$AI$823,13,FALSE)))","v":-153.88999999999999},{"$f":"IF($A168=\"\",\"\",IF(OR(VLOOKUP($A168,Economática!$A$3:$AI$823,14,FALSE)=0,VLOOKUP($A168,Economática!$A$3:$AI$823,14,FALSE)=\"-\"),1/0,VLOOKUP($A168,Economática!$A$3:$AI$823,14,FALSE)))","v":-36.35},{"$f":"IF($A168=\"\",\"\",IF(OR(VLOOKUP($A168,Economática!$A$3:$AI$823,15,FALSE)=0,VLOOKUP($A168,Economática!$A$3:$AI$823,15,FALSE)=\"-\"),1/0,VLOOKUP($A168,Economática!$A$3:$AI$823,15,FALSE)))","v":-77.19},{"$f":"IF($A168=\"\",\"\",IF(OR(VLOOKUP($A168,Economática!$A$3:$AI$823,16,FALSE)=0,VLOOKUP($A168,Economática!$A$3:$AI$823,16,FALSE)=\"-\"),1/0,VLOOKUP($A168,Economática!$A$3:$AI$823,16,FALSE)))","v":-114.22},{"$f":"IF($A168=\"\",\"\",IF(OR(VLOOKUP($A168,Economática!$A$3:$AI$823,17,FALSE)=0,VLOOKUP($A168,Economática!$A$3:$AI$823,17,FALSE)=\"-\"),1/0,VLOOKUP($A168,Economática!$A$3:$AI$823,17,FALSE)))","v":-150.79},{"$f":"IF($A168=\"\",\"\",IF(OR(VLOOKUP($A168,Economática!$A$3:$AI$823,18,FALSE)=0,VLOOKUP($A168,Economática!$A$3:$AI$823,18,FALSE)=\"-\"),1/0,VLOOKUP($A168,Economática!$A$3:$AI$823,18,FALSE)))","v":-153.88999999999999},{"$f":"IF($A168=\"\",\"\",IF(OR(VLOOKUP($A168,Economática!$A$3:$AI$823,19,FALSE)=0,VLOOKUP($A168,Economática!$A$3:$AI$823,19,FALSE)=\"-\"),1/0,VLOOKUP($A168,Economática!$A$3:$AI$823,19,FALSE)))","v":-150.79},{"$f":"IF($A168=\"\",\"\",VLOOKUP($A168,Economática!$A$3:$AI$823,20,FALSE)/E168)","v":-781.29533678756468},{"$error":"#DIV/0!"},{"$error":"#DIV/0!"},{"$error":"#DIV/0!"},{"$f":"IF($A168=\"\",\"\",IF(OR(VLOOKUP($A168,Economática!$A$3:$AI$823,21,FALSE)/100=0,VLOOKUP($A168,Economática!$A$3:$AI$823,21,FALSE)/100=\"-\"),1/0,VLOOKUP($A168,Economática!$A$3:$AI$823,21,FALSE)/100))","v":{"$error":"#VALUE!"}},{"$f":"IF($A168=\"\",\"\",IF(OR(VLOOKUP($A168,Economática!$A$3:$AI$823,22,FALSE)/100=0,VLOOKUP($A168,Economática!$A$3:$AI$823,22,FALSE)/100=\"-\"),1/0,VLOOKUP($A168,Economática!$A$3:$AI$823,22,FALSE)/100))","v":-7.4945999999999999E-2},{"$f":"IF($A168=\"\",\"\",IF(OR(VLOOKUP($A168,Economática!$A$3:$AI$823,23,FALSE)=0,VLOOKUP($A168,Economática!$A$3:$AI$823,23,FALSE)=\"-\"),1/0,VLOOKUP($A168,Economática!$A$3:$AI$823,23,FALSE)))","v":-69.099999999999994},{"$f":"IF($A168=\"\",\"\",IF(OR(VLOOKUP($A168,Economática!$A$3:$AI$823,24,FALSE)=0,VLOOKUP($A168,Economática!$A$3:$AI$823,24,FALSE)=\"-\"),1/0,VLOOKUP($A168,Economática!$A$3:$AI$823,24,FALSE)))","v":-67.599999999999994},{"$f":"IF($A168=\"\",\"\",IF(OR(VLOOKUP($A168,Economática!$A$3:$AI$823,25,FALSE)=0,VLOOKUP($A168,Economática!$A$3:$AI$823,25,FALSE)=\"-\"),1/0,VLOOKUP($A168,Economática!$A$3:$AI$823,25,FALSE)))","v":-67.599999999999994},{"$f":"IF($A168=\"\",\"\",IF(ISERROR((F168+VLOOKUP($A168,Economática!$A$3:$AI$823,26,FALSE))/Y168),(F168+VLOOKUP($A168,Economática!$A$3:$AI$823,26,FALSE))/Y168,(F168+VLOOKUP($A168,Economática!$A$3:$AI$823,26,FALSE))/Y168))","v":-1.3808136094674557},{"$f":"IF($A168=\"\",\"\",IF(OR(-VLOOKUP($A168,Economática!$A$3:$AI$823,27,FALSE)=0,-VLOOKUP($A168,Economática!$A$3:$AI$823,27,FALSE)=\"-\"),1/0,-VLOOKUP($A168,Economática!$A$3:$AI$823,27,FALSE)))","v":{"$error":"#DIV/0!"}},{"$error":"#DIV/0!"},{"$f":"IF($A168=\"\",\"\",IF(OR(VLOOKUP($A168,Economática!$A$3:$AI$823,28,FALSE)=0,VLOOKUP($A168,Economática!$A$3:$AI$823,28,FALSE)=\"-\"),1/0,VLOOKUP($A168,Economática!$A$3:$AI$823,28,FALSE)))","v":0.8},{"$f":"IF($A168=\"\",\"\",IF(OR(VLOOKUP($A168,Economática!$A$3:$AI$823,29,FALSE)=0,VLOOKUP($A168,Economática!$A$3:$AI$823,29,FALSE)=\"-\"),1/0,VLOOKUP($A168,Economática!$A$3:$AI$823,29,FALSE)))","v":{"$error":"#DIV/0!"}},{"$f":"IF($A168=\"\",\"\",IF(OR(VLOOKUP($A168,Economática!$A$3:$AI$823,30,FALSE)/E168=0,VLOOKUP($A168,Economática!$A$3:$AI$823,30,FALSE)/E168=\"-\",VLOOKUP($A168,Economática!$A$3:$AI$823,30,FALSE)/E168<33.33%,VLOOKUP($A168,Economática!$A$3:$AI$823,30,FALSE)/E168>100%),1/0,VLOOKUP($A168,Economática!$A$3:$AI$823,30,FALSE)/E168))","v":0.5181347150259068},"SNSY5",{"$f":"IF($A168=\"\",\"\",IF(OR(VLOOKUP($A168,Economática!$A$3:$AI$823,25,FALSE)=0,VLOOKUP($A168,Economática!$A$3:$AI$823,25,FALSE)=\"-\"),1/0,VLOOKUP($A168,Economática!$A$3:$AI$823,25,FALSE)))","v":-67.599999999999994},{"$f":"CONCATENATE(Economática!B170,\" \",Economática!C170)","v":"Sansuy PNA"}]
[{"$f":"IF(Economática!AG171=\"\",\"\",Economática!AG171)","v":"SUZB5+SUZB3"},{"$f":"IF($A169=\"\",\"\",VLOOKUP(VLOOKUP($A169,Economática!$A$3:$AI$823,6,FALSE),Correção!$B$16:$C$36,2,FALSE))","v":"Papel e Celulose"},{"$f":"IF(Economática!B171=\"\",\"\",Economática!B171)","v":"Suzano Papel"},{"$f":"IF($A169=\"\",\"\",IF(OR(VLOOKUP($A169,Economática!$A$3:$AI$823,8,FALSE)=0,VLOOKUP($A169,Economática!$A$3:$AI$823,8,FALSE)=\"-\"),1/0,VLOOKUP($A169,Economática!$A$3:$AI$823,8,FALSE)))","v":46.55},{"$f":"IF(A169=\"\",\"\",IF(ISERROR(VLOOKUP(A169,Correção!$B$2:$G$13,9,FALSE)),VLOOKUP($A169,Economática!$A$3:$AI$823,9,FALSE),VLOOKUP(A169,Correção!$B$2:$G$13,9,FALSE)))","v":1349.221},{"$f":"IF($A169=\"\",\"\",Economática!G171)","v":62806.26},{"$f":"IF($A169=\"\",\"\",IF(OR(VLOOKUP($A169,Economática!$A$3:$AI$823,10,FALSE)=0,VLOOKUP($A169,Economática!$A$3:$AI$823,10,FALSE)=\"-\"),1/0,VLOOKUP($A169,Economática!$A$3:$AI$823,10,FALSE)))","v":12012.01},{"$f":"IF($A169=\"\",\"\",IF(OR(VLOOKUP($A169,Economática!$A$3:$AI$823,11,FALSE)=0,VLOOKUP($A169,Economática!$A$3:$AI$823,11,FALSE)=\"-\"),1/0,VLOOKUP($A169,Economática!$A$3:$AI$823,11,FALSE)))","v":10520.79},{"$f":"IF($A169=\"\",\"\",IF(OR(VLOOKUP($A169,Economática!$A$3:$AI$823,12,FALSE)=0,VLOOKUP($A169,Economática!$A$3:$AI$823,12,FALSE)=\"-\"),1/0,VLOOKUP($A169,Economática!$A$3:$AI$823,12,FALSE)))","v":13437.33},{"$f":"IF($A169=\"\",\"\",IF(OR(VLOOKUP($A169,Economática!$A$3:$AI$823,13,FALSE)=0,VLOOKUP($A169,Economática!$A$3:$AI$823,13,FALSE)=\"-\"),1/0,VLOOKUP($A169,Economática!$A$3:$AI$823,13,FALSE)))","v":1807.43},{"$f":"IF($A169=\"\",\"\",IF(OR(VLOOKUP($A169,Economática!$A$3:$AI$823,14,FALSE)=0,VLOOKUP($A169,Economática!$A$3:$AI$823,14,FALSE)=\"-\"),1/0,VLOOKUP($A169,Economática!$A$3:$AI$823,14,FALSE)))","v":813.13},{"$f":"IF($A169=\"\",\"\",IF(OR(VLOOKUP($A169,Economática!$A$3:$AI$823,15,FALSE)=0,VLOOKUP($A169,Economática!$A$3:$AI$823,15,FALSE)=\"-\"),1/0,VLOOKUP($A169,Economática!$A$3:$AI$823,15,FALSE)))","v":-1036.43},{"$f":"IF($A169=\"\",\"\",IF(OR(VLOOKUP($A169,Economática!$A$3:$AI$823,16,FALSE)=0,VLOOKUP($A169,Economática!$A$3:$AI$823,16,FALSE)=\"-\"),1/0,VLOOKUP($A169,Economática!$A$3:$AI$823,16,FALSE)))","v":-1144.21},{"$f":"IF($A169=\"\",\"\",IF(OR(VLOOKUP($A169,Economática!$A$3:$AI$823,17,FALSE)=0,VLOOKUP($A169,Economática!$A$3:$AI$823,17,FALSE)=\"-\"),1/0,VLOOKUP($A169,Economática!$A$3:$AI$823,17,FALSE)))","v":318.33999999999997},{"$f":"IF($A169=\"\",\"\",IF(OR(VLOOKUP($A169,Economática!$A$3:$AI$823,18,FALSE)=0,VLOOKUP($A169,Economática!$A$3:$AI$823,18,FALSE)=\"-\"),1/0,VLOOKUP($A169,Economática!$A$3:$AI$823,18,FALSE)))","v":1807.43},{"$f":"IF($A169=\"\",\"\",IF(OR(VLOOKUP($A169,Economática!$A$3:$AI$823,19,FALSE)=0,VLOOKUP($A169,Economática!$A$3:$AI$823,19,FALSE)=\"-\"),1/0,VLOOKUP($A169,Economática!$A$3:$AI$823,19,FALSE)))","v":318.33999999999997},{"$f":"IF($A169=\"\",\"\",VLOOKUP($A169,Economática!$A$3:$AI$823,20,FALSE)/E169)","v":0.23594355557762589},8.9029225012062518,5.2286201518313753,197.29294951938178,{"$f":"IF($A169=\"\",\"\",IF(OR(VLOOKUP($A169,Economática!$A$3:$AI$823,21,FALSE)/100=0,VLOOKUP($A169,Economática!$A$3:$AI$823,21,FALSE)/100=\"-\"),1/0,VLOOKUP($A169,Economática!$A$3:$AI$823,21,FALSE)/100))","v":2.7403E-2},{"$f":"IF($A169=\"\",\"\",IF(OR(VLOOKUP($A169,Economática!$A$3:$AI$823,22,FALSE)/100=0,VLOOKUP($A169,Economática!$A$3:$AI$823,22,FALSE)/100=\"-\"),1/0,VLOOKUP($A169,Economática!$A$3:$AI$823,22,FALSE)/100))","v":0.85244900000000001},{"$f":"IF($A169=\"\",\"\",IF(OR(VLOOKUP($A169,Economática!$A$3:$AI$823,23,FALSE)=0,VLOOKUP($A169,Economática!$A$3:$AI$823,23,FALSE)=\"-\"),1/0,VLOOKUP($A169,Economática!$A$3:$AI$823,23,FALSE)))","v":4660.7},{"$f":"IF($A169=\"\",\"\",IF(OR(VLOOKUP($A169,Economática!$A$3:$AI$823,24,FALSE)=0,VLOOKUP($A169,Economática!$A$3:$AI$823,24,FALSE)=\"-\"),1/0,VLOOKUP($A169,Economática!$A$3:$AI$823,24,FALSE)))","v":6569},{"$f":"IF($A169=\"\",\"\",IF(OR(VLOOKUP($A169,Economática!$A$3:$AI$823,25,FALSE)=0,VLOOKUP($A169,Economática!$A$3:$AI$823,25,FALSE)=\"-\"),1/0,VLOOKUP($A169,Economática!$A$3:$AI$823,25,FALSE)))","v":6569},{"$f":"IF($A169=\"\",\"\",IF(ISERROR((F169+VLOOKUP($A169,Economática!$A$3:$AI$823,26,FALSE))/Y169),(F169+VLOOKUP($A169,Economática!$A$3:$AI$823,26,FALSE))/Y169,(F169+VLOOKUP($A169,Economática!$A$3:$AI$823,26,FALSE))/Y169))","v":11.121594002131223},{"$f":"IF($A169=\"\",\"\",IF(OR(-VLOOKUP($A169,Economática!$A$3:$AI$823,27,FALSE)=0,-VLOOKUP($A169,Economática!$A$3:$AI$823,27,FALSE)=\"-\"),1/0,-VLOOKUP($A169,Economática!$A$3:$AI$823,27,FALSE)))","v":210.21},3.3469593636048381E-3,{"$f":"IF($A169=\"\",\"\",IF(OR(VLOOKUP($A169,Economática!$A$3:$AI$823,28,FALSE)=0,VLOOKUP($A169,Economática!$A$3:$AI$823,28,FALSE)=\"-\"),1/0,VLOOKUP($A169,Economática!$A$3:$AI$823,28,FALSE)))","v":-2.2999999999999998},{"$f":"IF($A169=\"\",\"\",IF(OR(VLOOKUP($A169,Economática!$A$3:$AI$823,29,FALSE)=0,VLOOKUP($A169,Economática!$A$3:$AI$823,29,FALSE)=\"-\"),1/0,VLOOKUP($A169,Economática!$A$3:$AI$823,29,FALSE)))","v":150.30000000000001},{"$f":"IF($A169=\"\",\"\",IF(OR(VLOOKUP($A169,Economática!$A$3:$AI$823,30,FALSE)/E169=0,VLOOKUP($A169,Economática!$A$3:$AI$823,30,FALSE)/E169=\"-\",VLOOKUP($A169,Economática!$A$3:$AI$823,30,FALSE)/E169<33.33%,VLOOKUP($A169,Economática!$A$3:$AI$823,30,FALSE)/E169>100%),1/0,VLOOKUP($A169,Economática!$A$3:$AI$823,30,FALSE)/E169))","v":0.81958404145799679},"SUZB5+SUZB3",{"$f":"IF($A169=\"\",\"\",IF(OR(VLOOKUP($A169,Economática!$A$3:$AI$823,25,FALSE)=0,VLOOKUP($A169,Economática!$A$3:$AI$823,25,FALSE)=\"-\"),1/0,VLOOKUP($A169,Economática!$A$3:$AI$823,25,FALSE)))","v":6569},{"$f":"CONCATENATE(Economática!B171,\" \",Economática!C171)","v":"Suzano Papel ON"}]
[{"$f":"IF(Economática!AG172=\"\",\"\",Economática!AG172)","v":"KLBN11"},{"$f":"IF($A170=\"\",\"\",VLOOKUP(VLOOKUP($A170,Economática!$A$3:$AI$823,6,FALSE),Correção!$B$16:$C$36,2,FALSE))","v":"Papel e Celulose"},{"$f":"IF(Economática!B172=\"\",\"\",Economática!B172)","v":"Klabin S/A"},{"$f":"IF($A170=\"\",\"\",IF(OR(VLOOKUP($A170,Economática!$A$3:$AI$823,8,FALSE)=0,VLOOKUP($A170,Economática!$A$3:$AI$823,8,FALSE)=\"-\"),1/0,VLOOKUP($A170,Economática!$A$3:$AI$823,8,FALSE)))","v":17.03},{"$f":"IF(A170=\"\",\"\",IF(ISERROR(VLOOKUP(A170,Correção!$B$2:$G$13,9,FALSE)),VLOOKUP($A170,Economática!$A$3:$AI$823,9,FALSE),VLOOKUP(A170,Correção!$B$2:$G$13,9,FALSE)))","v":5263.2079999999996},{"$f":"IF($A170=\"\",\"\",Economática!G172)","v":19339.12},{"$f":"IF($A170=\"\",\"\",IF(OR(VLOOKUP($A170,Economática!$A$3:$AI$823,10,FALSE)=0,VLOOKUP($A170,Economática!$A$3:$AI$823,10,FALSE)=\"-\"),1/0,VLOOKUP($A170,Economática!$A$3:$AI$823,10,FALSE)))","v":6292.24},{"$f":"IF($A170=\"\",\"\",IF(OR(VLOOKUP($A170,Economática!$A$3:$AI$823,11,FALSE)=0,VLOOKUP($A170,Economática!$A$3:$AI$823,11,FALSE)=\"-\"),1/0,VLOOKUP($A170,Economática!$A$3:$AI$823,11,FALSE)))","v":8373.3799999999992},{"$f":"IF($A170=\"\",\"\",IF(OR(VLOOKUP($A170,Economática!$A$3:$AI$823,12,FALSE)=0,VLOOKUP($A170,Economática!$A$3:$AI$823,12,FALSE)=\"-\"),1/0,VLOOKUP($A170,Economática!$A$3:$AI$823,12,FALSE)))","v":10016.459999999999},{"$f":"IF($A170=\"\",\"\",IF(OR(VLOOKUP($A170,Economática!$A$3:$AI$823,13,FALSE)=0,VLOOKUP($A170,Economática!$A$3:$AI$823,13,FALSE)=\"-\"),1/0,VLOOKUP($A170,Economática!$A$3:$AI$823,13,FALSE)))","v":532.16999999999996},{"$f":"IF($A170=\"\",\"\",IF(OR(VLOOKUP($A170,Economática!$A$3:$AI$823,14,FALSE)=0,VLOOKUP($A170,Economática!$A$3:$AI$823,14,FALSE)=\"-\"),1/0,VLOOKUP($A170,Economática!$A$3:$AI$823,14,FALSE)))","v":124.66},{"$f":"IF($A170=\"\",\"\",IF(OR(VLOOKUP($A170,Economática!$A$3:$AI$823,15,FALSE)=0,VLOOKUP($A170,Economática!$A$3:$AI$823,15,FALSE)=\"-\"),1/0,VLOOKUP($A170,Economática!$A$3:$AI$823,15,FALSE)))","v":-829.98},{"$f":"IF($A170=\"\",\"\",IF(OR(VLOOKUP($A170,Economática!$A$3:$AI$823,16,FALSE)=0,VLOOKUP($A170,Economática!$A$3:$AI$823,16,FALSE)=\"-\"),1/0,VLOOKUP($A170,Economática!$A$3:$AI$823,16,FALSE)))","v":-726.16},{"$f":"IF($A170=\"\",\"\",IF(OR(VLOOKUP($A170,Economática!$A$3:$AI$823,17,FALSE)=0,VLOOKUP($A170,Economática!$A$3:$AI$823,17,FALSE)=\"-\"),1/0,VLOOKUP($A170,Economática!$A$3:$AI$823,17,FALSE)))","v":137.46},{"$f":"IF($A170=\"\",\"\",IF(OR(VLOOKUP($A170,Economática!$A$3:$AI$823,18,FALSE)=0,VLOOKUP($A170,Economática!$A$3:$AI$823,18,FALSE)=\"-\"),1/0,VLOOKUP($A170,Economática!$A$3:$AI$823,18,FALSE)))","v":532.16999999999996},{"$f":"IF($A170=\"\",\"\",IF(OR(VLOOKUP($A170,Economática!$A$3:$AI$823,19,FALSE)=0,VLOOKUP($A170,Economática!$A$3:$AI$823,19,FALSE)=\"-\"),1/0,VLOOKUP($A170,Economática!$A$3:$AI$823,19,FALSE)))","v":137.46},{"$f":"IF($A170=\"\",\"\",VLOOKUP($A170,Economática!$A$3:$AI$823,20,FALSE)/E170)","v":2.611715136471901E-2},1.1955142187046379,14.244916315970148,652.06192521460787,{"$f":"IF($A170=\"\",\"\",IF(OR(VLOOKUP($A170,Economática!$A$3:$AI$823,21,FALSE)/100=0,VLOOKUP($A170,Economática!$A$3:$AI$823,21,FALSE)/100=\"-\"),1/0,VLOOKUP($A170,Economática!$A$3:$AI$823,21,FALSE)/100))","v":2.5824E-2},{"$f":"IF($A170=\"\",\"\",IF(OR(VLOOKUP($A170,Economática!$A$3:$AI$823,22,FALSE)/100=0,VLOOKUP($A170,Economática!$A$3:$AI$823,22,FALSE)/100=\"-\"),1/0,VLOOKUP($A170,Economática!$A$3:$AI$823,22,FALSE)/100))","v":1.8977549999999999},{"$f":"IF($A170=\"\",\"\",IF(OR(VLOOKUP($A170,Economática!$A$3:$AI$823,23,FALSE)=0,VLOOKUP($A170,Economática!$A$3:$AI$823,23,FALSE)=\"-\"),1/0,VLOOKUP($A170,Economática!$A$3:$AI$823,23,FALSE)))","v":3492.5},{"$f":"IF($A170=\"\",\"\",IF(OR(VLOOKUP($A170,Economática!$A$3:$AI$823,24,FALSE)=0,VLOOKUP($A170,Economática!$A$3:$AI$823,24,FALSE)=\"-\"),1/0,VLOOKUP($A170,Economática!$A$3:$AI$823,24,FALSE)))","v":4657},{"$f":"IF($A170=\"\",\"\",IF(OR(VLOOKUP($A170,Economática!$A$3:$AI$823,25,FALSE)=0,VLOOKUP($A170,Economática!$A$3:$AI$823,25,FALSE)=\"-\"),1/0,VLOOKUP($A170,Economática!$A$3:$AI$823,25,FALSE)))","v":4657},{"$f":"IF($A170=\"\",\"\",IF(ISERROR((F170+VLOOKUP($A170,Economática!$A$3:$AI$823,26,FALSE))/Y170),(F170+VLOOKUP($A170,Economática!$A$3:$AI$823,26,FALSE))/Y170,(F170+VLOOKUP($A170,Economática!$A$3:$AI$823,26,FALSE))/Y170))","v":6.8150285591582564},{"$f":"IF($A170=\"\",\"\",IF(OR(-VLOOKUP($A170,Economática!$A$3:$AI$823,27,FALSE)=0,-VLOOKUP($A170,Economática!$A$3:$AI$823,27,FALSE)=\"-\"),1/0,-VLOOKUP($A170,Economática!$A$3:$AI$823,27,FALSE)))","v":840},4.3435275234860737E-2,{"$f":"IF($A170=\"\",\"\",IF(OR(VLOOKUP($A170,Economática!$A$3:$AI$823,28,FALSE)=0,VLOOKUP($A170,Economática!$A$3:$AI$823,28,FALSE)=\"-\"),1/0,VLOOKUP($A170,Economática!$A$3:$AI$823,28,FALSE)))","v":-5.6},{"$f":"IF($A170=\"\",\"\",IF(OR(VLOOKUP($A170,Economática!$A$3:$AI$823,29,FALSE)=0,VLOOKUP($A170,Economática!$A$3:$AI$823,29,FALSE)=\"-\"),1/0,VLOOKUP($A170,Economática!$A$3:$AI$823,29,FALSE)))","v":2.5},{"$f":"IF($A170=\"\",\"\",IF(OR(VLOOKUP($A170,Economática!$A$3:$AI$823,30,FALSE)/E170=0,VLOOKUP($A170,Economática!$A$3:$AI$823,30,FALSE)/E170=\"-\",VLOOKUP($A170,Economática!$A$3:$AI$823,30,FALSE)/E170<33.33%,VLOOKUP($A170,Economática!$A$3:$AI$823,30,FALSE)/E170>100%),1/0,VLOOKUP($A170,Economática!$A$3:$AI$823,30,FALSE)/E170))","v":0.37707041028969407},"KLBN11",{"$f":"IF($A170=\"\",\"\",IF(OR(VLOOKUP($A170,Economática!$A$3:$AI$823,25,FALSE)=0,VLOOKUP($A170,Economática!$A$3:$AI$823,25,FALSE)=\"-\"),1/0,VLOOKUP($A170,Economática!$A$3:$AI$823,25,FALSE)))","v":4657},{"$f":"CONCATENATE(Economática!B172,\" \",Economática!C172)","v":"Klabin S/A UNT N2"}]
[{"$f":"IF(Economática!AG173=\"\",\"\",Economática!AG173)","v":"CGAS5"},{"$f":"IF($A171=\"\",\"\",VLOOKUP(VLOOKUP($A171,Economática!$A$3:$AI$823,6,FALSE),Correção!$B$16:$C$36,2,FALSE))","v":"Petróleo e Gás"},{"$f":"IF(Economática!B173=\"\",\"\",Economática!B173)","v":"Comgas"},{"$f":"IF($A171=\"\",\"\",IF(OR(VLOOKUP($A171,Economática!$A$3:$AI$823,8,FALSE)=0,VLOOKUP($A171,Economática!$A$3:$AI$823,8,FALSE)=\"-\"),1/0,VLOOKUP($A171,Economática!$A$3:$AI$823,8,FALSE)))","v":81.900000000000006},{"$f":"IF(A171=\"\",\"\",IF(ISERROR(VLOOKUP(A171,Correção!$B$2:$G$13,9,FALSE)),VLOOKUP($A171,Economática!$A$3:$AI$823,9,FALSE),VLOOKUP(A171,Correção!$B$2:$G$13,9,FALSE)))","v":132.023},{"$f":"IF($A171=\"\",\"\",Economática!G173)","v":10274.64},{"$f":"IF($A171=\"\",\"\",IF(OR(VLOOKUP($A171,Economática!$A$3:$AI$823,10,FALSE)=0,VLOOKUP($A171,Economática!$A$3:$AI$823,10,FALSE)=\"-\"),1/0,VLOOKUP($A171,Economática!$A$3:$AI$823,10,FALSE)))","v":2721.32},{"$f":"IF($A171=\"\",\"\",IF(OR(VLOOKUP($A171,Economática!$A$3:$AI$823,11,FALSE)=0,VLOOKUP($A171,Economática!$A$3:$AI$823,11,FALSE)=\"-\"),1/0,VLOOKUP($A171,Economática!$A$3:$AI$823,11,FALSE)))","v":5537.86},{"$f":"IF($A171=\"\",\"\",IF(OR(VLOOKUP($A171,Economática!$A$3:$AI$823,12,FALSE)=0,VLOOKUP($A171,Economática!$A$3:$AI$823,12,FALSE)=\"-\"),1/0,VLOOKUP($A171,Economática!$A$3:$AI$823,12,FALSE)))","v":6840.01},{"$f":"IF($A171=\"\",\"\",IF(OR(VLOOKUP($A171,Economática!$A$3:$AI$823,13,FALSE)=0,VLOOKUP($A171,Economática!$A$3:$AI$823,13,FALSE)=\"-\"),1/0,VLOOKUP($A171,Economática!$A$3:$AI$823,13,FALSE)))","v":640.12},{"$f":"IF($A171=\"\",\"\",IF(OR(VLOOKUP($A171,Economática!$A$3:$AI$823,14,FALSE)=0,VLOOKUP($A171,Economática!$A$3:$AI$823,14,FALSE)=\"-\"),1/0,VLOOKUP($A171,Economática!$A$3:$AI$823,14,FALSE)))","v":179.09},{"$f":"IF($A171=\"\",\"\",IF(OR(VLOOKUP($A171,Economática!$A$3:$AI$823,15,FALSE)=0,VLOOKUP($A171,Economática!$A$3:$AI$823,15,FALSE)=\"-\"),1/0,VLOOKUP($A171,Economática!$A$3:$AI$823,15,FALSE)))","v":293.10000000000002},{"$f":"IF($A171=\"\",\"\",IF(OR(VLOOKUP($A171,Economática!$A$3:$AI$823,16,FALSE)=0,VLOOKUP($A171,Economática!$A$3:$AI$823,16,FALSE)=\"-\"),1/0,VLOOKUP($A171,Economática!$A$3:$AI$823,16,FALSE)))","v":480.59},{"$f":"IF($A171=\"\",\"\",IF(OR(VLOOKUP($A171,Economática!$A$3:$AI$823,17,FALSE)=0,VLOOKUP($A171,Economática!$A$3:$AI$823,17,FALSE)=\"-\"),1/0,VLOOKUP($A171,Economática!$A$3:$AI$823,17,FALSE)))","v":1339.43},{"$f":"IF($A171=\"\",\"\",IF(OR(VLOOKUP($A171,Economática!$A$3:$AI$823,18,FALSE)=0,VLOOKUP($A171,Economática!$A$3:$AI$823,18,FALSE)=\"-\"),1/0,VLOOKUP($A171,Economática!$A$3:$AI$823,18,FALSE)))","v":640.12},{"$f":"IF($A171=\"\",\"\",IF(OR(VLOOKUP($A171,Economática!$A$3:$AI$823,19,FALSE)=0,VLOOKUP($A171,Economática!$A$3:$AI$823,19,FALSE)=\"-\"),1/0,VLOOKUP($A171,Economática!$A$3:$AI$823,19,FALSE)))","v":1339.43},{"$f":"IF($A171=\"\",\"\",VLOOKUP($A171,Economática!$A$3:$AI$823,20,FALSE)/E171)","v":10.145429205517221},20.612469039485546,3.9733231299516412,8.072600807806305,{"$f":"IF($A171=\"\",\"\",IF(OR(VLOOKUP($A171,Economática!$A$3:$AI$823,21,FALSE)/100=0,VLOOKUP($A171,Economática!$A$3:$AI$823,21,FALSE)/100=\"-\"),1/0,VLOOKUP($A171,Economática!$A$3:$AI$823,21,FALSE)/100))","v":0.664045},{"$f":"IF($A171=\"\",\"\",IF(OR(VLOOKUP($A171,Economática!$A$3:$AI$823,22,FALSE)/100=0,VLOOKUP($A171,Economática!$A$3:$AI$823,22,FALSE)/100=\"-\"),1/0,VLOOKUP($A171,Economática!$A$3:$AI$823,22,FALSE)/100))","v":1.120384},{"$f":"IF($A171=\"\",\"\",IF(OR(VLOOKUP($A171,Economática!$A$3:$AI$823,23,FALSE)=0,VLOOKUP($A171,Economática!$A$3:$AI$823,23,FALSE)=\"-\"),1/0,VLOOKUP($A171,Economática!$A$3:$AI$823,23,FALSE)))","v":1518.5},{"$f":"IF($A171=\"\",\"\",IF(OR(VLOOKUP($A171,Economática!$A$3:$AI$823,24,FALSE)=0,VLOOKUP($A171,Economática!$A$3:$AI$823,24,FALSE)=\"-\"),1/0,VLOOKUP($A171,Economática!$A$3:$AI$823,24,FALSE)))","v":2186.3000000000002},{"$f":"IF($A171=\"\",\"\",IF(OR(VLOOKUP($A171,Economática!$A$3:$AI$823,25,FALSE)=0,VLOOKUP($A171,Economática!$A$3:$AI$823,25,FALSE)=\"-\"),1/0,VLOOKUP($A171,Economática!$A$3:$AI$823,25,FALSE)))","v":2186.3000000000002},{"$f":"IF($A171=\"\",\"\",IF(ISERROR((F171+VLOOKUP($A171,Economática!$A$3:$AI$823,26,FALSE))/Y171),(F171+VLOOKUP($A171,Economática!$A$3:$AI$823,26,FALSE))/Y171,(F171+VLOOKUP($A171,Economática!$A$3:$AI$823,26,FALSE))/Y171))","v":6.094116543932671},{"$f":"IF($A171=\"\",\"\",IF(OR(-VLOOKUP($A171,Economática!$A$3:$AI$823,27,FALSE)=0,-VLOOKUP($A171,Economática!$A$3:$AI$823,27,FALSE)=\"-\"),1/0,-VLOOKUP($A171,Economática!$A$3:$AI$823,27,FALSE)))","v":756.77},7.3654162092297151E-2,{"$f":"IF($A171=\"\",\"\",IF(OR(VLOOKUP($A171,Economática!$A$3:$AI$823,28,FALSE)=0,VLOOKUP($A171,Economática!$A$3:$AI$823,28,FALSE)=\"-\"),1/0,VLOOKUP($A171,Economática!$A$3:$AI$823,28,FALSE)))","v":1},{"$f":"IF($A171=\"\",\"\",IF(OR(VLOOKUP($A171,Economática!$A$3:$AI$823,29,FALSE)=0,VLOOKUP($A171,Economática!$A$3:$AI$823,29,FALSE)=\"-\"),1/0,VLOOKUP($A171,Economática!$A$3:$AI$823,29,FALSE)))","v":48},{"$f":"IF($A171=\"\",\"\",IF(OR(VLOOKUP($A171,Economática!$A$3:$AI$823,30,FALSE)/E171=0,VLOOKUP($A171,Economática!$A$3:$AI$823,30,FALSE)/E171=\"-\",VLOOKUP($A171,Economática!$A$3:$AI$823,30,FALSE)/E171<33.33%,VLOOKUP($A171,Economática!$A$3:$AI$823,30,FALSE)/E171>100%),1/0,VLOOKUP($A171,Economática!$A$3:$AI$823,30,FALSE)/E171))","v":0.78395431099126667},"CGAS5",{"$f":"IF($A171=\"\",\"\",IF(OR(VLOOKUP($A171,Economática!$A$3:$AI$823,25,FALSE)=0,VLOOKUP($A171,Economática!$A$3:$AI$823,25,FALSE)=\"-\"),1/0,VLOOKUP($A171,Economática!$A$3:$AI$823,25,FALSE)))","v":2186.3000000000002},{"$f":"CONCATENATE(Economática!B173,\" \",Economática!C173)","v":"Comgas PNA"}]
[{"$f":"IF(Economática!AG174=\"\",\"\",Economática!AG174)","v":"BRDT3"},{"$f":"IF($A172=\"\",\"\",VLOOKUP(VLOOKUP($A172,Economática!$A$3:$AI$823,6,FALSE),Correção!$B$16:$C$36,2,FALSE))","v":"Petróleo e Gás"},{"$f":"IF(Economática!B174=\"\",\"\",Economática!B174)","v":"Petrobras BR"},{"$f":"IF($A172=\"\",\"\",IF(OR(VLOOKUP($A172,Economática!$A$3:$AI$823,8,FALSE)=0,VLOOKUP($A172,Economática!$A$3:$AI$823,8,FALSE)=\"-\"),1/0,VLOOKUP($A172,Economática!$A$3:$AI$823,8,FALSE)))","v":23.15},{"$f":"IF(A172=\"\",\"\",IF(ISERROR(VLOOKUP(A172,Correção!$B$2:$G$13,9,FALSE)),VLOOKUP($A172,Economática!$A$3:$AI$823,9,FALSE),VLOOKUP(A172,Correção!$B$2:$G$13,9,FALSE)))","v":1165},{"$f":"IF($A172=\"\",\"\",Economática!G174)","v":26969.75},{"$f":"IF($A172=\"\",\"\",IF(OR(VLOOKUP($A172,Economática!$A$3:$AI$823,10,FALSE)=0,VLOOKUP($A172,Economática!$A$3:$AI$823,10,FALSE)=\"-\"),1/0,VLOOKUP($A172,Economática!$A$3:$AI$823,10,FALSE)))","v":9686},{"$f":"IF($A172=\"\",\"\",IF(OR(VLOOKUP($A172,Economática!$A$3:$AI$823,11,FALSE)=0,VLOOKUP($A172,Economática!$A$3:$AI$823,11,FALSE)=\"-\"),1/0,VLOOKUP($A172,Economática!$A$3:$AI$823,11,FALSE)))","v":84567},{"$f":"IF($A172=\"\",\"\",IF(OR(VLOOKUP($A172,Economática!$A$3:$AI$823,12,FALSE)=0,VLOOKUP($A172,Economática!$A$3:$AI$823,12,FALSE)=\"-\"),1/0,VLOOKUP($A172,Economática!$A$3:$AI$823,12,FALSE)))","v":97770},{"$f":"IF($A172=\"\",\"\",IF(OR(VLOOKUP($A172,Economática!$A$3:$AI$823,13,FALSE)=0,VLOOKUP($A172,Economática!$A$3:$AI$823,13,FALSE)=\"-\"),1/0,VLOOKUP($A172,Economática!$A$3:$AI$823,13,FALSE)))","v":1151},{"$f":"IF($A172=\"\",\"\",IF(OR(VLOOKUP($A172,Economática!$A$3:$AI$823,14,FALSE)=0,VLOOKUP($A172,Economática!$A$3:$AI$823,14,FALSE)=\"-\"),1/0,VLOOKUP($A172,Economática!$A$3:$AI$823,14,FALSE)))","v":247},{"$f":"IF($A172=\"\",\"\",IF(OR(VLOOKUP($A172,Economática!$A$3:$AI$823,15,FALSE)=0,VLOOKUP($A172,Economática!$A$3:$AI$823,15,FALSE)=\"-\"),1/0,VLOOKUP($A172,Economática!$A$3:$AI$823,15,FALSE)))","v":510},{"$f":"IF($A172=\"\",\"\",IF(OR(VLOOKUP($A172,Economática!$A$3:$AI$823,16,FALSE)=0,VLOOKUP($A172,Economática!$A$3:$AI$823,16,FALSE)=\"-\"),1/0,VLOOKUP($A172,Economática!$A$3:$AI$823,16,FALSE)))","v":1588},{"$f":"IF($A172=\"\",\"\",IF(OR(VLOOKUP($A172,Economática!$A$3:$AI$823,17,FALSE)=0,VLOOKUP($A172,Economática!$A$3:$AI$823,17,FALSE)=\"-\"),1/0,VLOOKUP($A172,Economática!$A$3:$AI$823,17,FALSE)))","v":3193},{"$f":"IF($A172=\"\",\"\",IF(OR(VLOOKUP($A172,Economática!$A$3:$AI$823,18,FALSE)=0,VLOOKUP($A172,Economática!$A$3:$AI$823,18,FALSE)=\"-\"),1/0,VLOOKUP($A172,Economática!$A$3:$AI$823,18,FALSE)))","v":1151},{"$f":"IF($A172=\"\",\"\",IF(OR(VLOOKUP($A172,Economática!$A$3:$AI$823,19,FALSE)=0,VLOOKUP($A172,Economática!$A$3:$AI$823,19,FALSE)=\"-\"),1/0,VLOOKUP($A172,Economática!$A$3:$AI$823,19,FALSE)))","v":3193},{"$f":"IF($A172=\"\",\"\",VLOOKUP($A172,Economática!$A$3:$AI$823,20,FALSE)/E172)","v":2.7407725321888412},8.3141630901287549,2.7844053272764815,8.4465236454744748,{"$f":"IF($A172=\"\",\"\",IF(OR(VLOOKUP($A172,Economática!$A$3:$AI$823,21,FALSE)/100=0,VLOOKUP($A172,Economática!$A$3:$AI$823,21,FALSE)/100=\"-\"),1/0,VLOOKUP($A172,Economática!$A$3:$AI$823,21,FALSE)/100))","v":0.36177199999999998},{"$f":"IF($A172=\"\",\"\",IF(OR(VLOOKUP($A172,Economática!$A$3:$AI$823,22,FALSE)/100=0,VLOOKUP($A172,Economática!$A$3:$AI$823,22,FALSE)/100=\"-\"),1/0,VLOOKUP($A172,Economática!$A$3:$AI$823,22,FALSE)/100))","v":0.25965299999999997},{"$f":"IF($A172=\"\",\"\",IF(OR(VLOOKUP($A172,Economática!$A$3:$AI$823,23,FALSE)=0,VLOOKUP($A172,Economática!$A$3:$AI$823,23,FALSE)=\"-\"),1/0,VLOOKUP($A172,Economática!$A$3:$AI$823,23,FALSE)))","v":2574},{"$f":"IF($A172=\"\",\"\",IF(OR(VLOOKUP($A172,Economática!$A$3:$AI$823,24,FALSE)=0,VLOOKUP($A172,Economática!$A$3:$AI$823,24,FALSE)=\"-\"),1/0,VLOOKUP($A172,Economática!$A$3:$AI$823,24,FALSE)))","v":2803},{"$f":"IF($A172=\"\",\"\",IF(OR(VLOOKUP($A172,Economática!$A$3:$AI$823,25,FALSE)=0,VLOOKUP($A172,Economática!$A$3:$AI$823,25,FALSE)=\"-\"),1/0,VLOOKUP($A172,Economática!$A$3:$AI$823,25,FALSE)))","v":2803},{"$f":"IF($A172=\"\",\"\",IF(ISERROR((F172+VLOOKUP($A172,Economática!$A$3:$AI$823,26,FALSE))/Y172),(F172+VLOOKUP($A172,Economática!$A$3:$AI$823,26,FALSE))/Y172,(F172+VLOOKUP($A172,Economática!$A$3:$AI$823,26,FALSE))/Y172))","v":10.518997502675704},{"$f":"IF($A172=\"\",\"\",IF(OR(-VLOOKUP($A172,Economática!$A$3:$AI$823,27,FALSE)=0,-VLOOKUP($A172,Economática!$A$3:$AI$823,27,FALSE)=\"-\"),1/0,-VLOOKUP($A172,Economática!$A$3:$AI$823,27,FALSE)))","v":1034},3.833925045653E-2,{"$f":"IF($A172=\"\",\"\",IF(OR(VLOOKUP($A172,Economática!$A$3:$AI$823,28,FALSE)=0,VLOOKUP($A172,Economática!$A$3:$AI$823,28,FALSE)=\"-\"),1/0,VLOOKUP($A172,Economática!$A$3:$AI$823,28,FALSE)))","v":-5.3},{"$f":"IF($A172=\"\",\"\",IF(OR(VLOOKUP($A172,Economática!$A$3:$AI$823,29,FALSE)=0,VLOOKUP($A172,Economática!$A$3:$AI$823,29,FALSE)=\"-\"),1/0,VLOOKUP($A172,Economática!$A$3:$AI$823,29,FALSE)))","v":44.4},{"$f":"IF($A172=\"\",\"\",IF(OR(VLOOKUP($A172,Economática!$A$3:$AI$823,30,FALSE)/E172=0,VLOOKUP($A172,Economática!$A$3:$AI$823,30,FALSE)/E172=\"-\",VLOOKUP($A172,Economática!$A$3:$AI$823,30,FALSE)/E172<33.33%,VLOOKUP($A172,Economática!$A$3:$AI$823,30,FALSE)/E172>100%),1/0,VLOOKUP($A172,Economática!$A$3:$AI$823,30,FALSE)/E172))","v":1},"BRDT3",{"$f":"IF($A172=\"\",\"\",IF(OR(VLOOKUP($A172,Economática!$A$3:$AI$823,25,FALSE)=0,VLOOKUP($A172,Economática!$A$3:$AI$823,25,FALSE)=\"-\"),1/0,VLOOKUP($A172,Economática!$A$3:$AI$823,25,FALSE)))","v":2803},{"$f":"CONCATENATE(Economática!B174,\" \",Economática!C174)","v":"Petrobras BR ON"}]
[{"$f":"IF(Economática!AG175=\"\",\"\",Economática!AG175)","v":"PRIO3"},{"$f":"IF($A173=\"\",\"\",VLOOKUP(VLOOKUP($A173,Economática!$A$3:$AI$823,6,FALSE),Correção!$B$16:$C$36,2,FALSE))","v":"Petróleo e Gás"},{"$f":"IF(Economática!B175=\"\",\"\",Economática!B175)","v":"Petrorio"},{"$f":"IF($A173=\"\",\"\",IF(OR(VLOOKUP($A173,Economática!$A$3:$AI$823,8,FALSE)=0,VLOOKUP($A173,Economática!$A$3:$AI$823,8,FALSE)=\"-\"),1/0,VLOOKUP($A173,Economática!$A$3:$AI$823,8,FALSE)))","v":18.899999999999999},{"$f":"IF(A173=\"\",\"\",IF(ISERROR(VLOOKUP(A173,Correção!$B$2:$G$13,9,FALSE)),VLOOKUP($A173,Economática!$A$3:$AI$823,9,FALSE),VLOOKUP(A173,Correção!$B$2:$G$13,9,FALSE)))","v":123.80800000000001},{"$f":"IF($A173=\"\",\"\",Economática!G175)","v":2339.98},{"$f":"IF($A173=\"\",\"\",IF(OR(VLOOKUP($A173,Economática!$A$3:$AI$823,10,FALSE)=0,VLOOKUP($A173,Economática!$A$3:$AI$823,10,FALSE)=\"-\"),1/0,VLOOKUP($A173,Economática!$A$3:$AI$823,10,FALSE)))","v":1006.6},{"$f":"IF($A173=\"\",\"\",IF(OR(VLOOKUP($A173,Economática!$A$3:$AI$823,11,FALSE)=0,VLOOKUP($A173,Economática!$A$3:$AI$823,11,FALSE)=\"-\"),1/0,VLOOKUP($A173,Economática!$A$3:$AI$823,11,FALSE)))","v":533.91999999999996},{"$f":"IF($A173=\"\",\"\",IF(OR(VLOOKUP($A173,Economática!$A$3:$AI$823,12,FALSE)=0,VLOOKUP($A173,Economática!$A$3:$AI$823,12,FALSE)=\"-\"),1/0,VLOOKUP($A173,Economática!$A$3:$AI$823,12,FALSE)))","v":848.92},{"$f":"IF($A173=\"\",\"\",IF(OR(VLOOKUP($A173,Economática!$A$3:$AI$823,13,FALSE)=0,VLOOKUP($A173,Economática!$A$3:$AI$823,13,FALSE)=\"-\"),1/0,VLOOKUP($A173,Economática!$A$3:$AI$823,13,FALSE)))","v":50.85},{"$f":"IF($A173=\"\",\"\",IF(OR(VLOOKUP($A173,Economática!$A$3:$AI$823,14,FALSE)=0,VLOOKUP($A173,Economática!$A$3:$AI$823,14,FALSE)=\"-\"),1/0,VLOOKUP($A173,Economática!$A$3:$AI$823,14,FALSE)))","v":2.69},{"$f":"IF($A173=\"\",\"\",IF(OR(VLOOKUP($A173,Economática!$A$3:$AI$823,15,FALSE)=0,VLOOKUP($A173,Economática!$A$3:$AI$823,15,FALSE)=\"-\"),1/0,VLOOKUP($A173,Economática!$A$3:$AI$823,15,FALSE)))","v":73.25},{"$f":"IF($A173=\"\",\"\",IF(OR(VLOOKUP($A173,Economática!$A$3:$AI$823,16,FALSE)=0,VLOOKUP($A173,Economática!$A$3:$AI$823,16,FALSE)=\"-\"),1/0,VLOOKUP($A173,Economática!$A$3:$AI$823,16,FALSE)))","v":144.71},{"$f":"IF($A173=\"\",\"\",IF(OR(VLOOKUP($A173,Economática!$A$3:$AI$823,17,FALSE)=0,VLOOKUP($A173,Economática!$A$3:$AI$823,17,FALSE)=\"-\"),1/0,VLOOKUP($A173,Economática!$A$3:$AI$823,17,FALSE)))","v":204.88},{"$f":"IF($A173=\"\",\"\",IF(OR(VLOOKUP($A173,Economática!$A$3:$AI$823,18,FALSE)=0,VLOOKUP($A173,Economática!$A$3:$AI$823,18,FALSE)=\"-\"),1/0,VLOOKUP($A173,Economática!$A$3:$AI$823,18,FALSE)))","v":50.85},{"$f":"IF($A173=\"\",\"\",IF(OR(VLOOKUP($A173,Economática!$A$3:$AI$823,19,FALSE)=0,VLOOKUP($A173,Economática!$A$3:$AI$823,19,FALSE)=\"-\"),1/0,VLOOKUP($A173,Economática!$A$3:$AI$823,19,FALSE)))","v":204.88},{"$f":"IF($A173=\"\",\"\",VLOOKUP($A173,Economática!$A$3:$AI$823,20,FALSE)/E173)","v":1.6548203670199018},8.1303308348410432,2.3246286509040335,11.421179226864504,{"$f":"IF($A173=\"\",\"\",IF(OR(VLOOKUP($A173,Economática!$A$3:$AI$823,21,FALSE)/100=0,VLOOKUP($A173,Economática!$A$3:$AI$823,21,FALSE)/100=\"-\"),1/0,VLOOKUP($A173,Economática!$A$3:$AI$823,21,FALSE)/100))","v":0.231987},{"$f":"IF($A173=\"\",\"\",IF(OR(VLOOKUP($A173,Economática!$A$3:$AI$823,22,FALSE)/100=0,VLOOKUP($A173,Economática!$A$3:$AI$823,22,FALSE)/100=\"-\"),1/0,VLOOKUP($A173,Economática!$A$3:$AI$823,22,FALSE)/100))","v":-0.51479399999999997},{"$f":"IF($A173=\"\",\"\",IF(OR(VLOOKUP($A173,Economática!$A$3:$AI$823,23,FALSE)=0,VLOOKUP($A173,Economática!$A$3:$AI$823,23,FALSE)=\"-\"),1/0,VLOOKUP($A173,Economática!$A$3:$AI$823,23,FALSE)))","v":166},{"$f":"IF($A173=\"\",\"\",IF(OR(VLOOKUP($A173,Economática!$A$3:$AI$823,24,FALSE)=0,VLOOKUP($A173,Economática!$A$3:$AI$823,24,FALSE)=\"-\"),1/0,VLOOKUP($A173,Economática!$A$3:$AI$823,24,FALSE)))","v":247.2},{"$f":"IF($A173=\"\",\"\",IF(OR(VLOOKUP($A173,Economática!$A$3:$AI$823,25,FALSE)=0,VLOOKUP($A173,Economática!$A$3:$AI$823,25,FALSE)=\"-\"),1/0,VLOOKUP($A173,Economática!$A$3:$AI$823,25,FALSE)))","v":247.2},{"$f":"IF($A173=\"\",\"\",IF(ISERROR((F173+VLOOKUP($A173,Economática!$A$3:$AI$823,26,FALSE))/Y173),(F173+VLOOKUP($A173,Economática!$A$3:$AI$823,26,FALSE))/Y173,(F173+VLOOKUP($A173,Economática!$A$3:$AI$823,26,FALSE))/Y173))","v":7.3697006472491911},{"$f":"IF($A173=\"\",\"\",IF(OR(-VLOOKUP($A173,Economática!$A$3:$AI$823,27,FALSE)=0,-VLOOKUP($A173,Economática!$A$3:$AI$823,27,FALSE)=\"-\"),1/0,-VLOOKUP($A173,Economática!$A$3:$AI$823,27,FALSE)))","v":{"$error":"#DIV/0!"}},{"$error":"#DIV/0!"},{"$f":"IF($A173=\"\",\"\",IF(OR(VLOOKUP($A173,Economática!$A$3:$AI$823,28,FALSE)=0,VLOOKUP($A173,Economática!$A$3:$AI$823,28,FALSE)=\"-\"),1/0,VLOOKUP($A173,Economática!$A$3:$AI$823,28,FALSE)))","v":25.2},{"$f":"IF($A173=\"\",\"\",IF(OR(VLOOKUP($A173,Economática!$A$3:$AI$823,29,FALSE)=0,VLOOKUP($A173,Economática!$A$3:$AI$823,29,FALSE)=\"-\"),1/0,VLOOKUP($A173,Economática!$A$3:$AI$823,29,FALSE)))","v":131.1},{"$f":"IF($A173=\"\",\"\",IF(OR(VLOOKUP($A173,Economática!$A$3:$AI$823,30,FALSE)/E173=0,VLOOKUP($A173,Economática!$A$3:$AI$823,30,FALSE)/E173=\"-\",VLOOKUP($A173,Economática!$A$3:$AI$823,30,FALSE)/E173<33.33%,VLOOKUP($A173,Economática!$A$3:$AI$823,30,FALSE)/E173>100%),1/0,VLOOKUP($A173,Economática!$A$3:$AI$823,30,FALSE)/E173))","v":{"$error":"#DIV/0!"}},"PRIO3",{"$f":"IF($A173=\"\",\"\",IF(OR(VLOOKUP($A173,Economática!$A$3:$AI$823,25,FALSE)=0,VLOOKUP($A173,Economática!$A$3:$AI$823,25,FALSE)=\"-\"),1/0,VLOOKUP($A173,Economática!$A$3:$AI$823,25,FALSE)))","v":247.2},{"$f":"CONCATENATE(Economática!B175,\" \",Economática!C175)","v":"Petrorio ON"}]
[{"$f":"IF(Economática!AG176=\"\",\"\",Economática!AG176)","v":"CSAN3"},{"$f":"IF($A174=\"\",\"\",VLOOKUP(VLOOKUP($A174,Economática!$A$3:$AI$823,6,FALSE),Correção!$B$16:$C$36,2,FALSE))","v":"Petróleo e Gás"},{"$f":"IF(Economática!B176=\"\",\"\",Economática!B176)","v":"Cosan"},{"$f":"IF($A174=\"\",\"\",IF(OR(VLOOKUP($A174,Economática!$A$3:$AI$823,8,FALSE)=0,VLOOKUP($A174,Economática!$A$3:$AI$823,8,FALSE)=\"-\"),1/0,VLOOKUP($A174,Economática!$A$3:$AI$823,8,FALSE)))","v":42.65},{"$f":"IF(A174=\"\",\"\",IF(ISERROR(VLOOKUP(A174,Correção!$B$2:$G$13,9,FALSE)),VLOOKUP($A174,Economática!$A$3:$AI$823,9,FALSE),VLOOKUP(A174,Correção!$B$2:$G$13,9,FALSE)))","v":392.51600000000002},{"$f":"IF($A174=\"\",\"\",Economática!G176)","v":16740.810000000001},{"$f":"IF($A174=\"\",\"\",IF(OR(VLOOKUP($A174,Economática!$A$3:$AI$823,10,FALSE)=0,VLOOKUP($A174,Economática!$A$3:$AI$823,10,FALSE)=\"-\"),1/0,VLOOKUP($A174,Economática!$A$3:$AI$823,10,FALSE)))","v":9928.7199999999993},{"$f":"IF($A174=\"\",\"\",IF(OR(VLOOKUP($A174,Economática!$A$3:$AI$823,11,FALSE)=0,VLOOKUP($A174,Economática!$A$3:$AI$823,11,FALSE)=\"-\"),1/0,VLOOKUP($A174,Economática!$A$3:$AI$823,11,FALSE)))","v":7670.78},{"$f":"IF($A174=\"\",\"\",IF(OR(VLOOKUP($A174,Economática!$A$3:$AI$823,12,FALSE)=0,VLOOKUP($A174,Economática!$A$3:$AI$823,12,FALSE)=\"-\"),1/0,VLOOKUP($A174,Economática!$A$3:$AI$823,12,FALSE)))","v":10299.1},{"$f":"IF($A174=\"\",\"\",IF(OR(VLOOKUP($A174,Economática!$A$3:$AI$823,13,FALSE)=0,VLOOKUP($A174,Economática!$A$3:$AI$823,13,FALSE)=\"-\"),1/0,VLOOKUP($A174,Economática!$A$3:$AI$823,13,FALSE)))","v":1315.32},{"$f":"IF($A174=\"\",\"\",IF(OR(VLOOKUP($A174,Economática!$A$3:$AI$823,14,FALSE)=0,VLOOKUP($A174,Economática!$A$3:$AI$823,14,FALSE)=\"-\"),1/0,VLOOKUP($A174,Economática!$A$3:$AI$823,14,FALSE)))","v":345.72},{"$f":"IF($A174=\"\",\"\",IF(OR(VLOOKUP($A174,Economática!$A$3:$AI$823,15,FALSE)=0,VLOOKUP($A174,Economática!$A$3:$AI$823,15,FALSE)=\"-\"),1/0,VLOOKUP($A174,Economática!$A$3:$AI$823,15,FALSE)))","v":281.37},{"$f":"IF($A174=\"\",\"\",IF(OR(VLOOKUP($A174,Economática!$A$3:$AI$823,16,FALSE)=0,VLOOKUP($A174,Economática!$A$3:$AI$823,16,FALSE)=\"-\"),1/0,VLOOKUP($A174,Economática!$A$3:$AI$823,16,FALSE)))","v":325.32},{"$f":"IF($A174=\"\",\"\",IF(OR(VLOOKUP($A174,Economática!$A$3:$AI$823,17,FALSE)=0,VLOOKUP($A174,Economática!$A$3:$AI$823,17,FALSE)=\"-\"),1/0,VLOOKUP($A174,Economática!$A$3:$AI$823,17,FALSE)))","v":1652.32},{"$f":"IF($A174=\"\",\"\",IF(OR(VLOOKUP($A174,Economática!$A$3:$AI$823,18,FALSE)=0,VLOOKUP($A174,Economática!$A$3:$AI$823,18,FALSE)=\"-\"),1/0,VLOOKUP($A174,Economática!$A$3:$AI$823,18,FALSE)))","v":1315.32},{"$f":"IF($A174=\"\",\"\",IF(OR(VLOOKUP($A174,Economática!$A$3:$AI$823,19,FALSE)=0,VLOOKUP($A174,Economática!$A$3:$AI$823,19,FALSE)=\"-\"),1/0,VLOOKUP($A174,Economática!$A$3:$AI$823,19,FALSE)))","v":1652.32},{"$f":"IF($A174=\"\",\"\",VLOOKUP($A174,Economática!$A$3:$AI$823,20,FALSE)/E174)","v":4.2095608841423022},25.295070774185,1.6860992554931553,10.131698097220877,{"$f":"IF($A174=\"\",\"\",IF(OR(VLOOKUP($A174,Economática!$A$3:$AI$823,21,FALSE)/100=0,VLOOKUP($A174,Economática!$A$3:$AI$823,21,FALSE)/100=\"-\"),1/0,VLOOKUP($A174,Economática!$A$3:$AI$823,21,FALSE)/100))","v":0.18487899999999999},{"$f":"IF($A174=\"\",\"\",IF(OR(VLOOKUP($A174,Economática!$A$3:$AI$823,22,FALSE)/100=0,VLOOKUP($A174,Economática!$A$3:$AI$823,22,FALSE)/100=\"-\"),1/0,VLOOKUP($A174,Economática!$A$3:$AI$823,22,FALSE)/100))","v":0.66466199999999998},{"$f":"IF($A174=\"\",\"\",IF(OR(VLOOKUP($A174,Economática!$A$3:$AI$823,23,FALSE)=0,VLOOKUP($A174,Economática!$A$3:$AI$823,23,FALSE)=\"-\"),1/0,VLOOKUP($A174,Economática!$A$3:$AI$823,23,FALSE)))","v":3463.3},{"$f":"IF($A174=\"\",\"\",IF(OR(VLOOKUP($A174,Economática!$A$3:$AI$823,24,FALSE)=0,VLOOKUP($A174,Economática!$A$3:$AI$823,24,FALSE)=\"-\"),1/0,VLOOKUP($A174,Economática!$A$3:$AI$823,24,FALSE)))","v":3322.8},{"$f":"IF($A174=\"\",\"\",IF(OR(VLOOKUP($A174,Economática!$A$3:$AI$823,25,FALSE)=0,VLOOKUP($A174,Economática!$A$3:$AI$823,25,FALSE)=\"-\"),1/0,VLOOKUP($A174,Economática!$A$3:$AI$823,25,FALSE)))","v":3322.8},{"$f":"IF($A174=\"\",\"\",IF(ISERROR((F174+VLOOKUP($A174,Economática!$A$3:$AI$823,26,FALSE))/Y174),(F174+VLOOKUP($A174,Economática!$A$3:$AI$823,26,FALSE))/Y174,(F174+VLOOKUP($A174,Economática!$A$3:$AI$823,26,FALSE))/Y174))","v":7.2231253761887562},{"$f":"IF($A174=\"\",\"\",IF(OR(-VLOOKUP($A174,Economática!$A$3:$AI$823,27,FALSE)=0,-VLOOKUP($A174,Economática!$A$3:$AI$823,27,FALSE)=\"-\"),1/0,-VLOOKUP($A174,Economática!$A$3:$AI$823,27,FALSE)))","v":446.3},2.6659402979903598E-2,{"$f":"IF($A174=\"\",\"\",IF(OR(VLOOKUP($A174,Economática!$A$3:$AI$823,28,FALSE)=0,VLOOKUP($A174,Economática!$A$3:$AI$823,28,FALSE)=\"-\"),1/0,VLOOKUP($A174,Economática!$A$3:$AI$823,28,FALSE)))","v":-2.4},{"$f":"IF($A174=\"\",\"\",IF(OR(VLOOKUP($A174,Economática!$A$3:$AI$823,29,FALSE)=0,VLOOKUP($A174,Economática!$A$3:$AI$823,29,FALSE)=\"-\"),1/0,VLOOKUP($A174,Economática!$A$3:$AI$823,29,FALSE)))","v":5.7},{"$f":"IF($A174=\"\",\"\",IF(OR(VLOOKUP($A174,Economática!$A$3:$AI$823,30,FALSE)/E174=0,VLOOKUP($A174,Economática!$A$3:$AI$823,30,FALSE)/E174=\"-\",VLOOKUP($A174,Economática!$A$3:$AI$823,30,FALSE)/E174<33.33%,VLOOKUP($A174,Economática!$A$3:$AI$823,30,FALSE)/E174>100%),1/0,VLOOKUP($A174,Economática!$A$3:$AI$823,30,FALSE)/E174))","v":{"$error":"#DIV/0!"}},"CSAN3",{"$f":"IF($A174=\"\",\"\",IF(OR(VLOOKUP($A174,Economática!$A$3:$AI$823,25,FALSE)=0,VLOOKUP($A174,Economática!$A$3:$AI$823,25,FALSE)=\"-\"),1/0,VLOOKUP($A174,Economática!$A$3:$AI$823,25,FALSE)))","v":3322.8},{"$f":"CONCATENATE(Economática!B176,\" \",Economática!C176)","v":"Cosan ON"}]
[{"$f":"IF(Economática!AG177=\"\",\"\",Economática!AG177)","v":"QGEP3"},{"$f":"IF($A175=\"\",\"\",VLOOKUP(VLOOKUP($A175,Economática!$A$3:$AI$823,6,FALSE),Correção!$B$16:$C$36,2,FALSE))","v":"Petróleo e Gás"},{"$f":"IF(Economática!B177=\"\",\"\",Economática!B177)","v":"Qgep Part"},{"$f":"IF($A175=\"\",\"\",IF(OR(VLOOKUP($A175,Economática!$A$3:$AI$823,8,FALSE)=0,VLOOKUP($A175,Economática!$A$3:$AI$823,8,FALSE)=\"-\"),1/0,VLOOKUP($A175,Economática!$A$3:$AI$823,8,FALSE)))","v":15.3},{"$f":"IF(A175=\"\",\"\",IF(ISERROR(VLOOKUP(A175,Correção!$B$2:$G$13,9,FALSE)),VLOOKUP($A175,Economática!$A$3:$AI$823,9,FALSE),VLOOKUP(A175,Correção!$B$2:$G$13,9,FALSE)))","v":261.47300000000001},{"$f":"IF($A175=\"\",\"\",Economática!G177)","v":4000.53},{"$f":"IF($A175=\"\",\"\",IF(OR(VLOOKUP($A175,Economática!$A$3:$AI$823,10,FALSE)=0,VLOOKUP($A175,Economática!$A$3:$AI$823,10,FALSE)=\"-\"),1/0,VLOOKUP($A175,Economática!$A$3:$AI$823,10,FALSE)))","v":3199.59},{"$f":"IF($A175=\"\",\"\",IF(OR(VLOOKUP($A175,Economática!$A$3:$AI$823,11,FALSE)=0,VLOOKUP($A175,Economática!$A$3:$AI$823,11,FALSE)=\"-\"),1/0,VLOOKUP($A175,Economática!$A$3:$AI$823,11,FALSE)))","v":501.73},{"$f":"IF($A175=\"\",\"\",IF(OR(VLOOKUP($A175,Economática!$A$3:$AI$823,12,FALSE)=0,VLOOKUP($A175,Economática!$A$3:$AI$823,12,FALSE)=\"-\"),1/0,VLOOKUP($A175,Economática!$A$3:$AI$823,12,FALSE)))","v":797.2},{"$f":"IF($A175=\"\",\"\",IF(OR(VLOOKUP($A175,Economática!$A$3:$AI$823,13,FALSE)=0,VLOOKUP($A175,Economática!$A$3:$AI$823,13,FALSE)=\"-\"),1/0,VLOOKUP($A175,Economática!$A$3:$AI$823,13,FALSE)))","v":357.38},{"$f":"IF($A175=\"\",\"\",IF(OR(VLOOKUP($A175,Economática!$A$3:$AI$823,14,FALSE)=0,VLOOKUP($A175,Economática!$A$3:$AI$823,14,FALSE)=\"-\"),1/0,VLOOKUP($A175,Economática!$A$3:$AI$823,14,FALSE)))","v":159.08000000000001},{"$f":"IF($A175=\"\",\"\",IF(OR(VLOOKUP($A175,Economática!$A$3:$AI$823,15,FALSE)=0,VLOOKUP($A175,Economática!$A$3:$AI$823,15,FALSE)=\"-\"),1/0,VLOOKUP($A175,Economática!$A$3:$AI$823,15,FALSE)))","v":244.25},{"$f":"IF($A175=\"\",\"\",IF(OR(VLOOKUP($A175,Economática!$A$3:$AI$823,16,FALSE)=0,VLOOKUP($A175,Economática!$A$3:$AI$823,16,FALSE)=\"-\"),1/0,VLOOKUP($A175,Economática!$A$3:$AI$823,16,FALSE)))","v":299.89999999999998},{"$f":"IF($A175=\"\",\"\",IF(OR(VLOOKUP($A175,Economática!$A$3:$AI$823,17,FALSE)=0,VLOOKUP($A175,Economática!$A$3:$AI$823,17,FALSE)=\"-\"),1/0,VLOOKUP($A175,Economática!$A$3:$AI$823,17,FALSE)))","v":425.22},{"$f":"IF($A175=\"\",\"\",IF(OR(VLOOKUP($A175,Economática!$A$3:$AI$823,18,FALSE)=0,VLOOKUP($A175,Economática!$A$3:$AI$823,18,FALSE)=\"-\"),1/0,VLOOKUP($A175,Economática!$A$3:$AI$823,18,FALSE)))","v":357.38},{"$f":"IF($A175=\"\",\"\",IF(OR(VLOOKUP($A175,Economática!$A$3:$AI$823,19,FALSE)=0,VLOOKUP($A175,Economática!$A$3:$AI$823,19,FALSE)=\"-\"),1/0,VLOOKUP($A175,Economática!$A$3:$AI$823,19,FALSE)))","v":425.22},{"$f":"IF($A175=\"\",\"\",VLOOKUP($A175,Economática!$A$3:$AI$823,20,FALSE)/E175)","v":1.6262482168330956},12.236789266960642,1.2503279795223763,9.4081578947368421,{"$f":"IF($A175=\"\",\"\",IF(OR(VLOOKUP($A175,Economática!$A$3:$AI$823,21,FALSE)/100=0,VLOOKUP($A175,Economática!$A$3:$AI$823,21,FALSE)/100=\"-\"),1/0,VLOOKUP($A175,Economática!$A$3:$AI$823,21,FALSE)/100))","v":0.13672200000000001},{"$f":"IF($A175=\"\",\"\",IF(OR(VLOOKUP($A175,Economática!$A$3:$AI$823,22,FALSE)/100=0,VLOOKUP($A175,Economática!$A$3:$AI$823,22,FALSE)/100=\"-\"),1/0,VLOOKUP($A175,Economática!$A$3:$AI$823,22,FALSE)/100))","v":-0.51269599999999993},{"$f":"IF($A175=\"\",\"\",IF(OR(VLOOKUP($A175,Economática!$A$3:$AI$823,23,FALSE)=0,VLOOKUP($A175,Economática!$A$3:$AI$823,23,FALSE)=\"-\"),1/0,VLOOKUP($A175,Economática!$A$3:$AI$823,23,FALSE)))","v":407.9},{"$f":"IF($A175=\"\",\"\",IF(OR(VLOOKUP($A175,Economática!$A$3:$AI$823,24,FALSE)=0,VLOOKUP($A175,Economática!$A$3:$AI$823,24,FALSE)=\"-\"),1/0,VLOOKUP($A175,Economática!$A$3:$AI$823,24,FALSE)))","v":573.70000000000005},{"$f":"IF($A175=\"\",\"\",IF(OR(VLOOKUP($A175,Economática!$A$3:$AI$823,25,FALSE)=0,VLOOKUP($A175,Economática!$A$3:$AI$823,25,FALSE)=\"-\"),1/0,VLOOKUP($A175,Economática!$A$3:$AI$823,25,FALSE)))","v":573.70000000000005},{"$f":"IF($A175=\"\",\"\",IF(ISERROR((F175+VLOOKUP($A175,Economática!$A$3:$AI$823,26,FALSE))/Y175),(F175+VLOOKUP($A175,Economática!$A$3:$AI$823,26,FALSE))/Y175,(F175+VLOOKUP($A175,Economática!$A$3:$AI$823,26,FALSE))/Y175))","v":4.1138487014118876},{"$f":"IF($A175=\"\",\"\",IF(OR(-VLOOKUP($A175,Economática!$A$3:$AI$823,27,FALSE)=0,-VLOOKUP($A175,Economática!$A$3:$AI$823,27,FALSE)=\"-\"),1/0,-VLOOKUP($A175,Economática!$A$3:$AI$823,27,FALSE)))","v":400},9.99867517553924E-2,{"$f":"IF($A175=\"\",\"\",IF(OR(VLOOKUP($A175,Economática!$A$3:$AI$823,28,FALSE)=0,VLOOKUP($A175,Economática!$A$3:$AI$823,28,FALSE)=\"-\"),1/0,VLOOKUP($A175,Economática!$A$3:$AI$823,28,FALSE)))","v":15.7},{"$f":"IF($A175=\"\",\"\",IF(OR(VLOOKUP($A175,Economática!$A$3:$AI$823,29,FALSE)=0,VLOOKUP($A175,Economática!$A$3:$AI$823,29,FALSE)=\"-\"),1/0,VLOOKUP($A175,Economática!$A$3:$AI$823,29,FALSE)))","v":63.4},{"$f":"IF($A175=\"\",\"\",IF(OR(VLOOKUP($A175,Economática!$A$3:$AI$823,30,FALSE)/E175=0,VLOOKUP($A175,Economática!$A$3:$AI$823,30,FALSE)/E175=\"-\",VLOOKUP($A175,Economática!$A$3:$AI$823,30,FALSE)/E175<33.33%,VLOOKUP($A175,Economática!$A$3:$AI$823,30,FALSE)/E175>100%),1/0,VLOOKUP($A175,Economática!$A$3:$AI$823,30,FALSE)/E175))","v":{"$error":"#DIV/0!"}},"QGEP3",{"$f":"IF($A175=\"\",\"\",IF(OR(VLOOKUP($A175,Economática!$A$3:$AI$823,25,FALSE)=0,VLOOKUP($A175,Economática!$A$3:$AI$823,25,FALSE)=\"-\"),1/0,VLOOKUP($A175,Economática!$A$3:$AI$823,25,FALSE)))","v":573.70000000000005},{"$f":"CONCATENATE(Economática!B177,\" \",Economática!C177)","v":"Qgep Part ON"}]
[{"$f":"IF(Economática!AG178=\"\",\"\",Economática!AG178)","v":"UGPA3"},{"$f":"IF($A176=\"\",\"\",VLOOKUP(VLOOKUP($A176,Economática!$A$3:$AI$823,6,FALSE),Correção!$B$16:$C$36,2,FALSE))","v":"Petróleo e Gás"},{"$f":"IF(Economática!B178=\"\",\"\",Economática!B178)","v":"Ultrapar"},{"$f":"IF($A176=\"\",\"\",IF(OR(VLOOKUP($A176,Economática!$A$3:$AI$823,8,FALSE)=0,VLOOKUP($A176,Economática!$A$3:$AI$823,8,FALSE)=\"-\"),1/0,VLOOKUP($A176,Economática!$A$3:$AI$823,8,FALSE)))","v":47},{"$f":"IF(A176=\"\",\"\",IF(ISERROR(VLOOKUP(A176,Correção!$B$2:$G$13,9,FALSE)),VLOOKUP($A176,Economática!$A$3:$AI$823,9,FALSE),VLOOKUP(A176,Correção!$B$2:$G$13,9,FALSE)))","v":543.01499999999999},{"$f":"IF($A176=\"\",\"\",Economática!G178)","v":25521.7},{"$f":"IF($A176=\"\",\"\",IF(OR(VLOOKUP($A176,Economática!$A$3:$AI$823,10,FALSE)=0,VLOOKUP($A176,Economática!$A$3:$AI$823,10,FALSE)=\"-\"),1/0,VLOOKUP($A176,Economática!$A$3:$AI$823,10,FALSE)))","v":9448.11},{"$f":"IF($A176=\"\",\"\",IF(OR(VLOOKUP($A176,Economática!$A$3:$AI$823,11,FALSE)=0,VLOOKUP($A176,Economática!$A$3:$AI$823,11,FALSE)=\"-\"),1/0,VLOOKUP($A176,Economática!$A$3:$AI$823,11,FALSE)))","v":80007.42},{"$f":"IF($A176=\"\",\"\",IF(OR(VLOOKUP($A176,Economática!$A$3:$AI$823,12,FALSE)=0,VLOOKUP($A176,Economática!$A$3:$AI$823,12,FALSE)=\"-\"),1/0,VLOOKUP($A176,Economática!$A$3:$AI$823,12,FALSE)))","v":90697.98},{"$f":"IF($A176=\"\",\"\",IF(OR(VLOOKUP($A176,Economática!$A$3:$AI$823,13,FALSE)=0,VLOOKUP($A176,Economática!$A$3:$AI$823,13,FALSE)=\"-\"),1/0,VLOOKUP($A176,Economática!$A$3:$AI$823,13,FALSE)))","v":1574.31},{"$f":"IF($A176=\"\",\"\",IF(OR(VLOOKUP($A176,Economática!$A$3:$AI$823,14,FALSE)=0,VLOOKUP($A176,Economática!$A$3:$AI$823,14,FALSE)=\"-\"),1/0,VLOOKUP($A176,Economática!$A$3:$AI$823,14,FALSE)))","v":73.86},{"$f":"IF($A176=\"\",\"\",IF(OR(VLOOKUP($A176,Economática!$A$3:$AI$823,15,FALSE)=0,VLOOKUP($A176,Economática!$A$3:$AI$823,15,FALSE)=\"-\"),1/0,VLOOKUP($A176,Economática!$A$3:$AI$823,15,FALSE)))","v":315.44},{"$f":"IF($A176=\"\",\"\",IF(OR(VLOOKUP($A176,Economática!$A$3:$AI$823,16,FALSE)=0,VLOOKUP($A176,Economática!$A$3:$AI$823,16,FALSE)=\"-\"),1/0,VLOOKUP($A176,Economática!$A$3:$AI$823,16,FALSE)))","v":642.78},{"$f":"IF($A176=\"\",\"\",IF(OR(VLOOKUP($A176,Economática!$A$3:$AI$823,17,FALSE)=0,VLOOKUP($A176,Economática!$A$3:$AI$823,17,FALSE)=\"-\"),1/0,VLOOKUP($A176,Economática!$A$3:$AI$823,17,FALSE)))","v":1150.42},{"$f":"IF($A176=\"\",\"\",IF(OR(VLOOKUP($A176,Economática!$A$3:$AI$823,18,FALSE)=0,VLOOKUP($A176,Economática!$A$3:$AI$823,18,FALSE)=\"-\"),1/0,VLOOKUP($A176,Economática!$A$3:$AI$823,18,FALSE)))","v":1574.31},{"$f":"IF($A176=\"\",\"\",IF(OR(VLOOKUP($A176,Economática!$A$3:$AI$823,19,FALSE)=0,VLOOKUP($A176,Economática!$A$3:$AI$823,19,FALSE)=\"-\"),1/0,VLOOKUP($A176,Economática!$A$3:$AI$823,19,FALSE)))","v":1150.42},{"$f":"IF($A176=\"\",\"\",VLOOKUP($A176,Economática!$A$3:$AI$823,20,FALSE)/E176)","v":2.1185786764638181},17.399353609016327,2.7012497737642764,22.184684723839986,{"$f":"IF($A176=\"\",\"\",IF(OR(VLOOKUP($A176,Economática!$A$3:$AI$823,21,FALSE)/100=0,VLOOKUP($A176,Economática!$A$3:$AI$823,21,FALSE)/100=\"-\"),1/0,VLOOKUP($A176,Economática!$A$3:$AI$823,21,FALSE)/100))","v":0.116484},{"$f":"IF($A176=\"\",\"\",IF(OR(VLOOKUP($A176,Economática!$A$3:$AI$823,22,FALSE)/100=0,VLOOKUP($A176,Economática!$A$3:$AI$823,22,FALSE)/100=\"-\"),1/0,VLOOKUP($A176,Economática!$A$3:$AI$823,22,FALSE)/100))","v":0.85857799999999995},{"$f":"IF($A176=\"\",\"\",IF(OR(VLOOKUP($A176,Economática!$A$3:$AI$823,23,FALSE)=0,VLOOKUP($A176,Economática!$A$3:$AI$823,23,FALSE)=\"-\"),1/0,VLOOKUP($A176,Economática!$A$3:$AI$823,23,FALSE)))","v":4063.5},{"$f":"IF($A176=\"\",\"\",IF(OR(VLOOKUP($A176,Economática!$A$3:$AI$823,24,FALSE)=0,VLOOKUP($A176,Economática!$A$3:$AI$823,24,FALSE)=\"-\"),1/0,VLOOKUP($A176,Economática!$A$3:$AI$823,24,FALSE)))","v":2697.1},{"$f":"IF($A176=\"\",\"\",IF(OR(VLOOKUP($A176,Economática!$A$3:$AI$823,25,FALSE)=0,VLOOKUP($A176,Economática!$A$3:$AI$823,25,FALSE)=\"-\"),1/0,VLOOKUP($A176,Economática!$A$3:$AI$823,25,FALSE)))","v":2697.1},{"$f":"IF($A176=\"\",\"\",IF(ISERROR((F176+VLOOKUP($A176,Economática!$A$3:$AI$823,26,FALSE))/Y176),(F176+VLOOKUP($A176,Economática!$A$3:$AI$823,26,FALSE))/Y176,(F176+VLOOKUP($A176,Economática!$A$3:$AI$823,26,FALSE))/Y176))","v":12.582326202217198},{"$f":"IF($A176=\"\",\"\",IF(OR(-VLOOKUP($A176,Economática!$A$3:$AI$823,27,FALSE)=0,-VLOOKUP($A176,Economática!$A$3:$AI$823,27,FALSE)=\"-\"),1/0,-VLOOKUP($A176,Economática!$A$3:$AI$823,27,FALSE)))","v":789.38},3.0929757813938724E-2,{"$f":"IF($A176=\"\",\"\",IF(OR(VLOOKUP($A176,Economática!$A$3:$AI$823,28,FALSE)=0,VLOOKUP($A176,Economática!$A$3:$AI$823,28,FALSE)=\"-\"),1/0,VLOOKUP($A176,Economática!$A$3:$AI$823,28,FALSE)))","v":-10.8},{"$f":"IF($A176=\"\",\"\",IF(OR(VLOOKUP($A176,Economática!$A$3:$AI$823,29,FALSE)=0,VLOOKUP($A176,Economática!$A$3:$AI$823,29,FALSE)=\"-\"),1/0,VLOOKUP($A176,Economática!$A$3:$AI$823,29,FALSE)))","v":-34.9},{"$f":"IF($A176=\"\",\"\",IF(OR(VLOOKUP($A176,Economática!$A$3:$AI$823,30,FALSE)/E176=0,VLOOKUP($A176,Economática!$A$3:$AI$823,30,FALSE)/E176=\"-\",VLOOKUP($A176,Economática!$A$3:$AI$823,30,FALSE)/E176<33.33%,VLOOKUP($A176,Economática!$A$3:$AI$823,30,FALSE)/E176>100%),1/0,VLOOKUP($A176,Economática!$A$3:$AI$823,30,FALSE)/E176))","v":{"$error":"#DIV/0!"}},"UGPA3",{"$f":"IF($A176=\"\",\"\",IF(OR(VLOOKUP($A176,Economática!$A$3:$AI$823,25,FALSE)=0,VLOOKUP($A176,Economática!$A$3:$AI$823,25,FALSE)=\"-\"),1/0,VLOOKUP($A176,Economática!$A$3:$AI$823,25,FALSE)))","v":2697.1},{"$f":"CONCATENATE(Economática!B178,\" \",Economática!C178)","v":"Ultrapar ON"}]
[{"$f":"IF(Economática!AG179=\"\",\"\",Economática!AG179)","v":"PETR4"},{"$f":"IF($A177=\"\",\"\",VLOOKUP(VLOOKUP($A177,Economática!$A$3:$AI$823,6,FALSE),Correção!$B$16:$C$36,2,FALSE))","v":"Petróleo e Gás"},{"$f":"IF(Economática!B179=\"\",\"\",Economática!B179)","v":"Petrobras"},{"$f":"IF($A177=\"\",\"\",IF(OR(VLOOKUP($A177,Economática!$A$3:$AI$823,8,FALSE)=0,VLOOKUP($A177,Economática!$A$3:$AI$823,8,FALSE)=\"-\"),1/0,VLOOKUP($A177,Economática!$A$3:$AI$823,8,FALSE)))","v":28.06},{"$f":"IF(A177=\"\",\"\",IF(ISERROR(VLOOKUP(A177,Correção!$B$2:$G$13,9,FALSE)),VLOOKUP($A177,Economática!$A$3:$AI$823,9,FALSE),VLOOKUP(A177,Correção!$B$2:$G$13,9,FALSE)))","v":13044.200999999999},{"$f":"IF($A177=\"\",\"\",Economática!G179)","v":389016.77},{"$f":"IF($A177=\"\",\"\",IF(OR(VLOOKUP($A177,Economática!$A$3:$AI$823,10,FALSE)=0,VLOOKUP($A177,Economática!$A$3:$AI$823,10,FALSE)=\"-\"),1/0,VLOOKUP($A177,Economática!$A$3:$AI$823,10,FALSE)))","v":277225},{"$f":"IF($A177=\"\",\"\",IF(OR(VLOOKUP($A177,Economática!$A$3:$AI$823,11,FALSE)=0,VLOOKUP($A177,Economática!$A$3:$AI$823,11,FALSE)=\"-\"),1/0,VLOOKUP($A177,Economática!$A$3:$AI$823,11,FALSE)))","v":283695},{"$f":"IF($A177=\"\",\"\",IF(OR(VLOOKUP($A177,Economática!$A$3:$AI$823,12,FALSE)=0,VLOOKUP($A177,Economática!$A$3:$AI$823,12,FALSE)=\"-\"),1/0,VLOOKUP($A177,Economática!$A$3:$AI$823,12,FALSE)))","v":349836},{"$f":"IF($A177=\"\",\"\",IF(OR(VLOOKUP($A177,Economática!$A$3:$AI$823,13,FALSE)=0,VLOOKUP($A177,Economática!$A$3:$AI$823,13,FALSE)=\"-\"),1/0,VLOOKUP($A177,Economática!$A$3:$AI$823,13,FALSE)))","v":-446},{"$f":"IF($A177=\"\",\"\",IF(OR(VLOOKUP($A177,Economática!$A$3:$AI$823,14,FALSE)=0,VLOOKUP($A177,Economática!$A$3:$AI$823,14,FALSE)=\"-\"),1/0,VLOOKUP($A177,Economática!$A$3:$AI$823,14,FALSE)))","v":6961},{"$f":"IF($A177=\"\",\"\",IF(OR(VLOOKUP($A177,Economática!$A$3:$AI$823,15,FALSE)=0,VLOOKUP($A177,Economática!$A$3:$AI$823,15,FALSE)=\"-\"),1/0,VLOOKUP($A177,Economática!$A$3:$AI$823,15,FALSE)))","v":17033},{"$f":"IF($A177=\"\",\"\",IF(OR(VLOOKUP($A177,Economática!$A$3:$AI$823,16,FALSE)=0,VLOOKUP($A177,Economática!$A$3:$AI$823,16,FALSE)=\"-\"),1/0,VLOOKUP($A177,Economática!$A$3:$AI$823,16,FALSE)))","v":23677},{"$f":"IF($A177=\"\",\"\",IF(OR(VLOOKUP($A177,Economática!$A$3:$AI$823,17,FALSE)=0,VLOOKUP($A177,Economática!$A$3:$AI$823,17,FALSE)=\"-\"),1/0,VLOOKUP($A177,Economática!$A$3:$AI$823,17,FALSE)))","v":25779},{"$f":"IF($A177=\"\",\"\",IF(OR(VLOOKUP($A177,Economática!$A$3:$AI$823,18,FALSE)=0,VLOOKUP($A177,Economática!$A$3:$AI$823,18,FALSE)=\"-\"),1/0,VLOOKUP($A177,Economática!$A$3:$AI$823,18,FALSE)))","v":-446},{"$f":"IF($A177=\"\",\"\",IF(OR(VLOOKUP($A177,Economática!$A$3:$AI$823,19,FALSE)=0,VLOOKUP($A177,Economática!$A$3:$AI$823,19,FALSE)=\"-\"),1/0,VLOOKUP($A177,Economática!$A$3:$AI$823,19,FALSE)))","v":25779},{"$f":"IF($A177=\"\",\"\",VLOOKUP($A177,Economática!$A$3:$AI$823,20,FALSE)/E177)","v":1.9762804942978112},21.252739052395775,1.3203004060239876,14.198389389037587,{"$f":"IF($A177=\"\",\"\",IF(OR(VLOOKUP($A177,Economática!$A$3:$AI$823,21,FALSE)/100=0,VLOOKUP($A177,Economática!$A$3:$AI$823,21,FALSE)/100=\"-\"),1/0,VLOOKUP($A177,Economática!$A$3:$AI$823,21,FALSE)/100))","v":9.9025000000000002E-2},{"$f":"IF($A177=\"\",\"\",IF(OR(VLOOKUP($A177,Economática!$A$3:$AI$823,22,FALSE)/100=0,VLOOKUP($A177,Economática!$A$3:$AI$823,22,FALSE)/100=\"-\"),1/0,VLOOKUP($A177,Economática!$A$3:$AI$823,22,FALSE)/100))","v":0.94808899999999996},{"$f":"IF($A177=\"\",\"\",IF(OR(VLOOKUP($A177,Economática!$A$3:$AI$823,23,FALSE)=0,VLOOKUP($A177,Economática!$A$3:$AI$823,23,FALSE)=\"-\"),1/0,VLOOKUP($A177,Economática!$A$3:$AI$823,23,FALSE)))","v":80251},{"$f":"IF($A177=\"\",\"\",IF(OR(VLOOKUP($A177,Economática!$A$3:$AI$823,24,FALSE)=0,VLOOKUP($A177,Economática!$A$3:$AI$823,24,FALSE)=\"-\"),1/0,VLOOKUP($A177,Economática!$A$3:$AI$823,24,FALSE)))","v":108522},{"$f":"IF($A177=\"\",\"\",IF(OR(VLOOKUP($A177,Economática!$A$3:$AI$823,25,FALSE)=0,VLOOKUP($A177,Economática!$A$3:$AI$823,25,FALSE)=\"-\"),1/0,VLOOKUP($A177,Economática!$A$3:$AI$823,25,FALSE)))","v":108522},{"$f":"IF($A177=\"\",\"\",IF(ISERROR((F177+VLOOKUP($A177,Economática!$A$3:$AI$823,26,FALSE))/Y177),(F177+VLOOKUP($A177,Economática!$A$3:$AI$823,26,FALSE))/Y177,(F177+VLOOKUP($A177,Economática!$A$3:$AI$823,26,FALSE))/Y177))","v":6.0618194467481246},{"$f":"IF($A177=\"\",\"\",IF(OR(-VLOOKUP($A177,Economática!$A$3:$AI$823,27,FALSE)=0,-VLOOKUP($A177,Economática!$A$3:$AI$823,27,FALSE)=\"-\"),1/0,-VLOOKUP($A177,Economática!$A$3:$AI$823,27,FALSE)))","v":2368},6.0871411790293772E-3,{"$f":"IF($A177=\"\",\"\",IF(OR(VLOOKUP($A177,Economática!$A$3:$AI$823,28,FALSE)=0,VLOOKUP($A177,Economática!$A$3:$AI$823,28,FALSE)=\"-\"),1/0,VLOOKUP($A177,Economática!$A$3:$AI$823,28,FALSE)))","v":3.7},{"$f":"IF($A177=\"\",\"\",IF(OR(VLOOKUP($A177,Economática!$A$3:$AI$823,29,FALSE)=0,VLOOKUP($A177,Economática!$A$3:$AI$823,29,FALSE)=\"-\"),1/0,VLOOKUP($A177,Economática!$A$3:$AI$823,29,FALSE)))","v":81.7},{"$f":"IF($A177=\"\",\"\",IF(OR(VLOOKUP($A177,Economática!$A$3:$AI$823,30,FALSE)/E177=0,VLOOKUP($A177,Economática!$A$3:$AI$823,30,FALSE)/E177=\"-\",VLOOKUP($A177,Economática!$A$3:$AI$823,30,FALSE)/E177<33.33%,VLOOKUP($A177,Economática!$A$3:$AI$823,30,FALSE)/E177>100%),1/0,VLOOKUP($A177,Economática!$A$3:$AI$823,30,FALSE)/E177))","v":0.57056005193418902},"PETR4",{"$f":"IF($A177=\"\",\"\",IF(OR(VLOOKUP($A177,Economática!$A$3:$AI$823,25,FALSE)=0,VLOOKUP($A177,Economática!$A$3:$AI$823,25,FALSE)=\"-\"),1/0,VLOOKUP($A177,Economática!$A$3:$AI$823,25,FALSE)))","v":108522},{"$f":"CONCATENATE(Economática!B179,\" \",Economática!C179)","v":"Petrobras PN"}]
[{"$f":"IF(Economática!AG180=\"\",\"\",Economática!AG180)","v":"DMMO3"},{"$f":"IF($A178=\"\",\"\",VLOOKUP(VLOOKUP($A178,Economática!$A$3:$AI$823,6,FALSE),Correção!$B$16:$C$36,2,FALSE))","v":"Petróleo e Gás"},{"$f":"IF(Economática!B180=\"\",\"\",Economática!B180)","v":"Dommo"},{"$f":"IF($A178=\"\",\"\",IF(OR(VLOOKUP($A178,Economática!$A$3:$AI$823,8,FALSE)=0,VLOOKUP($A178,Economática!$A$3:$AI$823,8,FALSE)=\"-\"),1/0,VLOOKUP($A178,Economática!$A$3:$AI$823,8,FALSE)))","v":0.79},{"$f":"IF(A178=\"\",\"\",IF(ISERROR(VLOOKUP(A178,Correção!$B$2:$G$13,9,FALSE)),VLOOKUP($A178,Economática!$A$3:$AI$823,9,FALSE),VLOOKUP(A178,Correção!$B$2:$G$13,9,FALSE)))","v":2700.3989999999999},{"$f":"IF($A178=\"\",\"\",Economática!G180)","v":2133.3200000000002},{"$f":"IF($A178=\"\",\"\",IF(OR(VLOOKUP($A178,Economática!$A$3:$AI$823,10,FALSE)=0,VLOOKUP($A178,Economática!$A$3:$AI$823,10,FALSE)=\"-\"),1/0,VLOOKUP($A178,Economática!$A$3:$AI$823,10,FALSE)))","v":-376.35},{"$f":"IF($A178=\"\",\"\",IF(OR(VLOOKUP($A178,Economática!$A$3:$AI$823,11,FALSE)=0,VLOOKUP($A178,Economática!$A$3:$AI$823,11,FALSE)=\"-\"),1/0,VLOOKUP($A178,Economática!$A$3:$AI$823,11,FALSE)))","v":426.48},{"$f":"IF($A178=\"\",\"\",IF(OR(VLOOKUP($A178,Economática!$A$3:$AI$823,12,FALSE)=0,VLOOKUP($A178,Economática!$A$3:$AI$823,12,FALSE)=\"-\"),1/0,VLOOKUP($A178,Economática!$A$3:$AI$823,12,FALSE)))","v":538.27},{"$f":"IF($A178=\"\",\"\",IF(OR(VLOOKUP($A178,Economática!$A$3:$AI$823,13,FALSE)=0,VLOOKUP($A178,Economática!$A$3:$AI$823,13,FALSE)=\"-\"),1/0,VLOOKUP($A178,Economática!$A$3:$AI$823,13,FALSE)))","v":-1952.74},{"$f":"IF($A178=\"\",\"\",IF(OR(VLOOKUP($A178,Economática!$A$3:$AI$823,14,FALSE)=0,VLOOKUP($A178,Economática!$A$3:$AI$823,14,FALSE)=\"-\"),1/0,VLOOKUP($A178,Economática!$A$3:$AI$823,14,FALSE)))","v":70.23},{"$f":"IF($A178=\"\",\"\",IF(OR(VLOOKUP($A178,Economática!$A$3:$AI$823,15,FALSE)=0,VLOOKUP($A178,Economática!$A$3:$AI$823,15,FALSE)=\"-\"),1/0,VLOOKUP($A178,Economática!$A$3:$AI$823,15,FALSE)))","v":269},{"$f":"IF($A178=\"\",\"\",IF(OR(VLOOKUP($A178,Economática!$A$3:$AI$823,16,FALSE)=0,VLOOKUP($A178,Economática!$A$3:$AI$823,16,FALSE)=\"-\"),1/0,VLOOKUP($A178,Economática!$A$3:$AI$823,16,FALSE)))","v":-341.71},{"$f":"IF($A178=\"\",\"\",IF(OR(VLOOKUP($A178,Economática!$A$3:$AI$823,17,FALSE)=0,VLOOKUP($A178,Economática!$A$3:$AI$823,17,FALSE)=\"-\"),1/0,VLOOKUP($A178,Economática!$A$3:$AI$823,17,FALSE)))","v":-670.98},{"$f":"IF($A178=\"\",\"\",IF(OR(VLOOKUP($A178,Economática!$A$3:$AI$823,18,FALSE)=0,VLOOKUP($A178,Economática!$A$3:$AI$823,18,FALSE)=\"-\"),1/0,VLOOKUP($A178,Economática!$A$3:$AI$823,18,FALSE)))","v":-1952.74},{"$f":"IF($A178=\"\",\"\",IF(OR(VLOOKUP($A178,Economática!$A$3:$AI$823,19,FALSE)=0,VLOOKUP($A178,Economática!$A$3:$AI$823,19,FALSE)=\"-\"),1/0,VLOOKUP($A178,Economática!$A$3:$AI$823,19,FALSE)))","v":-670.98},{"$f":"IF($A178=\"\",\"\",VLOOKUP($A178,Economática!$A$3:$AI$823,20,FALSE)/E178)","v":-0.2484743921176093},{"$error":"#DIV/0!"},{"$error":"#DIV/0!"},{"$error":"#DIV/0!"},{"$f":"IF($A178=\"\",\"\",IF(OR(VLOOKUP($A178,Economática!$A$3:$AI$823,21,FALSE)/100=0,VLOOKUP($A178,Economática!$A$3:$AI$823,21,FALSE)/100=\"-\"),1/0,VLOOKUP($A178,Economática!$A$3:$AI$823,21,FALSE)/100))","v":-1.7098789999999999},{"$f":"IF($A178=\"\",\"\",IF(OR(VLOOKUP($A178,Economática!$A$3:$AI$823,22,FALSE)/100=0,VLOOKUP($A178,Economática!$A$3:$AI$823,22,FALSE)/100=\"-\"),1/0,VLOOKUP($A178,Economática!$A$3:$AI$823,22,FALSE)/100))","v":0.417991},{"$f":"IF($A178=\"\",\"\",IF(OR(VLOOKUP($A178,Economática!$A$3:$AI$823,23,FALSE)=0,VLOOKUP($A178,Economática!$A$3:$AI$823,23,FALSE)=\"-\"),1/0,VLOOKUP($A178,Economática!$A$3:$AI$823,23,FALSE)))","v":-798.3},{"$f":"IF($A178=\"\",\"\",IF(OR(VLOOKUP($A178,Economática!$A$3:$AI$823,24,FALSE)=0,VLOOKUP($A178,Economática!$A$3:$AI$823,24,FALSE)=\"-\"),1/0,VLOOKUP($A178,Economática!$A$3:$AI$823,24,FALSE)))","v":-478.6},{"$f":"IF($A178=\"\",\"\",IF(OR(VLOOKUP($A178,Economática!$A$3:$AI$823,25,FALSE)=0,VLOOKUP($A178,Economática!$A$3:$AI$823,25,FALSE)=\"-\"),1/0,VLOOKUP($A178,Economática!$A$3:$AI$823,25,FALSE)))","v":-478.6},{"$f":"IF($A178=\"\",\"\",IF(ISERROR((F178+VLOOKUP($A178,Economática!$A$3:$AI$823,26,FALSE))/Y178),(F178+VLOOKUP($A178,Economática!$A$3:$AI$823,26,FALSE))/Y178,(F178+VLOOKUP($A178,Economática!$A$3:$AI$823,26,FALSE))/Y178))","v":-4.1287275386544087},{"$f":"IF($A178=\"\",\"\",IF(OR(-VLOOKUP($A178,Economática!$A$3:$AI$823,27,FALSE)=0,-VLOOKUP($A178,Economática!$A$3:$AI$823,27,FALSE)=\"-\"),1/0,-VLOOKUP($A178,Economática!$A$3:$AI$823,27,FALSE)))","v":{"$error":"#DIV/0!"}},{"$error":"#DIV/0!"},{"$f":"IF($A178=\"\",\"\",IF(OR(VLOOKUP($A178,Economática!$A$3:$AI$823,28,FALSE)=0,VLOOKUP($A178,Economática!$A$3:$AI$823,28,FALSE)=\"-\"),1/0,VLOOKUP($A178,Economática!$A$3:$AI$823,28,FALSE)))","v":-11.2},{"$f":"IF($A178=\"\",\"\",IF(OR(VLOOKUP($A178,Economática!$A$3:$AI$823,29,FALSE)=0,VLOOKUP($A178,Economática!$A$3:$AI$823,29,FALSE)=\"-\"),1/0,VLOOKUP($A178,Economática!$A$3:$AI$823,29,FALSE)))","v":-24},{"$f":"IF($A178=\"\",\"\",IF(OR(VLOOKUP($A178,Economática!$A$3:$AI$823,30,FALSE)/E178=0,VLOOKUP($A178,Economática!$A$3:$AI$823,30,FALSE)/E178=\"-\",VLOOKUP($A178,Economática!$A$3:$AI$823,30,FALSE)/E178<33.33%,VLOOKUP($A178,Economática!$A$3:$AI$823,30,FALSE)/E178>100%),1/0,VLOOKUP($A178,Economática!$A$3:$AI$823,30,FALSE)/E178))","v":{"$error":"#DIV/0!"}},"DMMO3",{"$f":"IF($A178=\"\",\"\",IF(OR(VLOOKUP($A178,Economática!$A$3:$AI$823,25,FALSE)=0,VLOOKUP($A178,Economática!$A$3:$AI$823,25,FALSE)=\"-\"),1/0,VLOOKUP($A178,Economática!$A$3:$AI$823,25,FALSE)))","v":-478.6},{"$f":"CONCATENATE(Economática!B180,\" \",Economática!C180)","v":"Dommo ON"}]
[{"$f":"IF(Economática!AG181=\"\",\"\",Economática!AG181)","v":"RPMG3"},{"$f":"IF($A179=\"\",\"\",VLOOKUP(VLOOKUP($A179,Economática!$A$3:$AI$823,6,FALSE),Correção!$B$16:$C$36,2,FALSE))","v":"Petróleo e Gás"},{"$f":"IF(Economática!B181=\"\",\"\",Economática!B181)","v":"Pet Manguinh"},{"$f":"IF($A179=\"\",\"\",IF(OR(VLOOKUP($A179,Economática!$A$3:$AI$823,8,FALSE)=0,VLOOKUP($A179,Economática!$A$3:$AI$823,8,FALSE)=\"-\"),1/0,VLOOKUP($A179,Economática!$A$3:$AI$823,8,FALSE)))","v":2.56},{"$f":"IF(A179=\"\",\"\",IF(ISERROR(VLOOKUP(A179,Correção!$B$2:$G$13,9,FALSE)),VLOOKUP($A179,Economática!$A$3:$AI$823,9,FALSE),VLOOKUP(A179,Correção!$B$2:$G$13,9,FALSE)))","v":67.685000000000002},{"$f":"IF($A179=\"\",\"\",Economática!G181)","v":173.27},{"$f":"IF($A179=\"\",\"\",IF(OR(VLOOKUP($A179,Economática!$A$3:$AI$823,10,FALSE)=0,VLOOKUP($A179,Economática!$A$3:$AI$823,10,FALSE)=\"-\"),1/0,VLOOKUP($A179,Economática!$A$3:$AI$823,10,FALSE)))","v":-2465.0100000000002},{"$f":"IF($A179=\"\",\"\",IF(OR(VLOOKUP($A179,Economática!$A$3:$AI$823,11,FALSE)=0,VLOOKUP($A179,Economática!$A$3:$AI$823,11,FALSE)=\"-\"),1/0,VLOOKUP($A179,Economática!$A$3:$AI$823,11,FALSE)))","v":694.51},{"$f":"IF($A179=\"\",\"\",IF(OR(VLOOKUP($A179,Economática!$A$3:$AI$823,12,FALSE)=0,VLOOKUP($A179,Economática!$A$3:$AI$823,12,FALSE)=\"-\"),1/0,VLOOKUP($A179,Economática!$A$3:$AI$823,12,FALSE)))","v":{"$error":"#DIV/0!"}},{"$f":"IF($A179=\"\",\"\",IF(OR(VLOOKUP($A179,Economática!$A$3:$AI$823,13,FALSE)=0,VLOOKUP($A179,Economática!$A$3:$AI$823,13,FALSE)=\"-\"),1/0,VLOOKUP($A179,Economática!$A$3:$AI$823,13,FALSE)))","v":-236.03},{"$f":"IF($A179=\"\",\"\",IF(OR(VLOOKUP($A179,Economática!$A$3:$AI$823,14,FALSE)=0,VLOOKUP($A179,Economática!$A$3:$AI$823,14,FALSE)=\"-\"),1/0,VLOOKUP($A179,Economática!$A$3:$AI$823,14,FALSE)))","v":-78.069999999999993},{"$f":"IF($A179=\"\",\"\",IF(OR(VLOOKUP($A179,Economática!$A$3:$AI$823,15,FALSE)=0,VLOOKUP($A179,Economática!$A$3:$AI$823,15,FALSE)=\"-\"),1/0,VLOOKUP($A179,Economática!$A$3:$AI$823,15,FALSE)))","v":-67.91},{"$f":"IF($A179=\"\",\"\",IF(OR(VLOOKUP($A179,Economática!$A$3:$AI$823,16,FALSE)=0,VLOOKUP($A179,Economática!$A$3:$AI$823,16,FALSE)=\"-\"),1/0,VLOOKUP($A179,Economática!$A$3:$AI$823,16,FALSE)))","v":-91.01},{"$f":"IF($A179=\"\",\"\",IF(OR(VLOOKUP($A179,Economática!$A$3:$AI$823,17,FALSE)=0,VLOOKUP($A179,Economática!$A$3:$AI$823,17,FALSE)=\"-\"),1/0,VLOOKUP($A179,Economática!$A$3:$AI$823,17,FALSE)))","v":{"$error":"#DIV/0!"}},{"$f":"IF($A179=\"\",\"\",IF(OR(VLOOKUP($A179,Economática!$A$3:$AI$823,18,FALSE)=0,VLOOKUP($A179,Economática!$A$3:$AI$823,18,FALSE)=\"-\"),1/0,VLOOKUP($A179,Economática!$A$3:$AI$823,18,FALSE)))","v":-236.03},{"$f":"IF($A179=\"\",\"\",IF(OR(VLOOKUP($A179,Economática!$A$3:$AI$823,19,FALSE)=0,VLOOKUP($A179,Economática!$A$3:$AI$823,19,FALSE)=\"-\"),1/0,VLOOKUP($A179,Economática!$A$3:$AI$823,19,FALSE)))","v":{"$error":"#DIV/0!"}},{"$f":"IF($A179=\"\",\"\",VLOOKUP($A179,Economática!$A$3:$AI$823,20,FALSE)/E179)","v":-1.9964541626652876},{"$error":"#DIV/0!"},{"$error":"#DIV/0!"},{"$error":"#DIV/0!"},{"$f":"IF($A179=\"\",\"\",IF(OR(VLOOKUP($A179,Economática!$A$3:$AI$823,21,FALSE)/100=0,VLOOKUP($A179,Economática!$A$3:$AI$823,21,FALSE)/100=\"-\"),1/0,VLOOKUP($A179,Economática!$A$3:$AI$823,21,FALSE)/100))","v":{"$error":"#VALUE!"}},{"$f":"IF($A179=\"\",\"\",IF(OR(VLOOKUP($A179,Economática!$A$3:$AI$823,22,FALSE)/100=0,VLOOKUP($A179,Economática!$A$3:$AI$823,22,FALSE)/100=\"-\"),1/0,VLOOKUP($A179,Economática!$A$3:$AI$823,22,FALSE)/100))","v":-1.6505000000000002E-2},{"$f":"IF($A179=\"\",\"\",IF(OR(VLOOKUP($A179,Economática!$A$3:$AI$823,23,FALSE)=0,VLOOKUP($A179,Economática!$A$3:$AI$823,23,FALSE)=\"-\"),1/0,VLOOKUP($A179,Economática!$A$3:$AI$823,23,FALSE)))","v":-270.39999999999998},{"$f":"IF($A179=\"\",\"\",IF(OR(VLOOKUP($A179,Economática!$A$3:$AI$823,24,FALSE)=0,VLOOKUP($A179,Economática!$A$3:$AI$823,24,FALSE)=\"-\"),1/0,VLOOKUP($A179,Economática!$A$3:$AI$823,24,FALSE)))","v":{"$error":"#DIV/0!"}},{"$f":"IF($A179=\"\",\"\",IF(OR(VLOOKUP($A179,Economática!$A$3:$AI$823,25,FALSE)=0,VLOOKUP($A179,Economática!$A$3:$AI$823,25,FALSE)=\"-\"),1/0,VLOOKUP($A179,Economática!$A$3:$AI$823,25,FALSE)))","v":-174},{"$f":"IF($A179=\"\",\"\",IF(ISERROR((F179+VLOOKUP($A179,Economática!$A$3:$AI$823,26,FALSE))/Y179),(F179+VLOOKUP($A179,Economática!$A$3:$AI$823,26,FALSE))/Y179,(F179+VLOOKUP($A179,Economática!$A$3:$AI$823,26,FALSE))/Y179))","v":-1.2297528735632184},{"$f":"IF($A179=\"\",\"\",IF(OR(-VLOOKUP($A179,Economática!$A$3:$AI$823,27,FALSE)=0,-VLOOKUP($A179,Economática!$A$3:$AI$823,27,FALSE)=\"-\"),1/0,-VLOOKUP($A179,Economática!$A$3:$AI$823,27,FALSE)))","v":{"$error":"#DIV/0!"}},{"$error":"#DIV/0!"},{"$f":"IF($A179=\"\",\"\",IF(OR(VLOOKUP($A179,Economática!$A$3:$AI$823,28,FALSE)=0,VLOOKUP($A179,Economática!$A$3:$AI$823,28,FALSE)=\"-\"),1/0,VLOOKUP($A179,Economática!$A$3:$AI$823,28,FALSE)))","v":-12.9},{"$f":"IF($A179=\"\",\"\",IF(OR(VLOOKUP($A179,Economática!$A$3:$AI$823,29,FALSE)=0,VLOOKUP($A179,Economática!$A$3:$AI$823,29,FALSE)=\"-\"),1/0,VLOOKUP($A179,Economática!$A$3:$AI$823,29,FALSE)))","v":-67.599999999999994},{"$f":"IF($A179=\"\",\"\",IF(OR(VLOOKUP($A179,Economática!$A$3:$AI$823,30,FALSE)/E179=0,VLOOKUP($A179,Economática!$A$3:$AI$823,30,FALSE)/E179=\"-\",VLOOKUP($A179,Economática!$A$3:$AI$823,30,FALSE)/E179<33.33%,VLOOKUP($A179,Economática!$A$3:$AI$823,30,FALSE)/E179>100%),1/0,VLOOKUP($A179,Economática!$A$3:$AI$823,30,FALSE)/E179))","v":{"$error":"#DIV/0!"}},"RPMG3",{"$f":"IF($A179=\"\",\"\",IF(OR(VLOOKUP($A179,Economática!$A$3:$AI$823,25,FALSE)=0,VLOOKUP($A179,Economática!$A$3:$AI$823,25,FALSE)=\"-\"),1/0,VLOOKUP($A179,Economática!$A$3:$AI$823,25,FALSE)))","v":-174},{"$f":"CONCATENATE(Economática!B181,\" \",Economática!C181)","v":"Pet Manguinh ON"}]
[{"$f":"IF(Economática!AG182=\"\",\"\",Economática!AG182)","v":"BRKM5"},{"$f":"IF($A180=\"\",\"\",VLOOKUP(VLOOKUP($A180,Economática!$A$3:$AI$823,6,FALSE),Correção!$B$16:$C$36,2,FALSE))","v":"Química"},{"$f":"IF(Economática!B182=\"\",\"\",Economática!B182)","v":"Braskem"},{"$f":"IF($A180=\"\",\"\",IF(OR(VLOOKUP($A180,Economática!$A$3:$AI$823,8,FALSE)=0,VLOOKUP($A180,Economática!$A$3:$AI$823,8,FALSE)=\"-\"),1/0,VLOOKUP($A180,Economática!$A$3:$AI$823,8,FALSE)))","v":50.9},{"$f":"IF(A180=\"\",\"\",IF(ISERROR(VLOOKUP(A180,Correção!$B$2:$G$13,9,FALSE)),VLOOKUP($A180,Economática!$A$3:$AI$823,9,FALSE),VLOOKUP(A180,Correção!$B$2:$G$13,9,FALSE)))","v":795.98400000000004},{"$f":"IF($A180=\"\",\"\",Economática!G182)","v":41482.15},{"$f":"IF($A180=\"\",\"\",IF(OR(VLOOKUP($A180,Economática!$A$3:$AI$823,10,FALSE)=0,VLOOKUP($A180,Economática!$A$3:$AI$823,10,FALSE)=\"-\"),1/0,VLOOKUP($A180,Economática!$A$3:$AI$823,10,FALSE)))","v":6787.65},{"$f":"IF($A180=\"\",\"\",IF(OR(VLOOKUP($A180,Economática!$A$3:$AI$823,11,FALSE)=0,VLOOKUP($A180,Economática!$A$3:$AI$823,11,FALSE)=\"-\"),1/0,VLOOKUP($A180,Economática!$A$3:$AI$823,11,FALSE)))","v":49260.59},{"$f":"IF($A180=\"\",\"\",IF(OR(VLOOKUP($A180,Economática!$A$3:$AI$823,12,FALSE)=0,VLOOKUP($A180,Economática!$A$3:$AI$823,12,FALSE)=\"-\"),1/0,VLOOKUP($A180,Economática!$A$3:$AI$823,12,FALSE)))","v":57999.87},{"$f":"IF($A180=\"\",\"\",IF(OR(VLOOKUP($A180,Economática!$A$3:$AI$823,13,FALSE)=0,VLOOKUP($A180,Economática!$A$3:$AI$823,13,FALSE)=\"-\"),1/0,VLOOKUP($A180,Economática!$A$3:$AI$823,13,FALSE)))","v":4082.99},{"$f":"IF($A180=\"\",\"\",IF(OR(VLOOKUP($A180,Economática!$A$3:$AI$823,14,FALSE)=0,VLOOKUP($A180,Economática!$A$3:$AI$823,14,FALSE)=\"-\"),1/0,VLOOKUP($A180,Economática!$A$3:$AI$823,14,FALSE)))","v":1053.5899999999999},{"$f":"IF($A180=\"\",\"\",IF(OR(VLOOKUP($A180,Economática!$A$3:$AI$823,15,FALSE)=0,VLOOKUP($A180,Economática!$A$3:$AI$823,15,FALSE)=\"-\"),1/0,VLOOKUP($A180,Economática!$A$3:$AI$823,15,FALSE)))","v":1600.84},{"$f":"IF($A180=\"\",\"\",IF(OR(VLOOKUP($A180,Economática!$A$3:$AI$823,16,FALSE)=0,VLOOKUP($A180,Economática!$A$3:$AI$823,16,FALSE)=\"-\"),1/0,VLOOKUP($A180,Economática!$A$3:$AI$823,16,FALSE)))","v":2945.11},{"$f":"IF($A180=\"\",\"\",IF(OR(VLOOKUP($A180,Economática!$A$3:$AI$823,17,FALSE)=0,VLOOKUP($A180,Economática!$A$3:$AI$823,17,FALSE)=\"-\"),1/0,VLOOKUP($A180,Economática!$A$3:$AI$823,17,FALSE)))","v":2866.68},{"$f":"IF($A180=\"\",\"\",IF(OR(VLOOKUP($A180,Economática!$A$3:$AI$823,18,FALSE)=0,VLOOKUP($A180,Economática!$A$3:$AI$823,18,FALSE)=\"-\"),1/0,VLOOKUP($A180,Economática!$A$3:$AI$823,18,FALSE)))","v":4082.99},{"$f":"IF($A180=\"\",\"\",IF(OR(VLOOKUP($A180,Economática!$A$3:$AI$823,19,FALSE)=0,VLOOKUP($A180,Economática!$A$3:$AI$823,19,FALSE)=\"-\"),1/0,VLOOKUP($A180,Economática!$A$3:$AI$823,19,FALSE)))","v":2866.68},{"$f":"IF($A180=\"\",\"\",VLOOKUP($A180,Economática!$A$3:$AI$823,20,FALSE)/E180)","v":3.6014291744557676},8.5273698968823481,5.9690151377870109,14.133278077776383,{"$f":"IF($A180=\"\",\"\",IF(OR(VLOOKUP($A180,Economática!$A$3:$AI$823,21,FALSE)/100=0,VLOOKUP($A180,Economática!$A$3:$AI$823,21,FALSE)/100=\"-\"),1/0,VLOOKUP($A180,Economática!$A$3:$AI$823,21,FALSE)/100))","v":0.51090200000000008},{"$f":"IF($A180=\"\",\"\",IF(OR(VLOOKUP($A180,Economática!$A$3:$AI$823,22,FALSE)/100=0,VLOOKUP($A180,Economática!$A$3:$AI$823,22,FALSE)/100=\"-\"),1/0,VLOOKUP($A180,Economática!$A$3:$AI$823,22,FALSE)/100))","v":2.9198050000000002},{"$f":"IF($A180=\"\",\"\",IF(OR(VLOOKUP($A180,Economática!$A$3:$AI$823,23,FALSE)=0,VLOOKUP($A180,Economática!$A$3:$AI$823,23,FALSE)=\"-\"),1/0,VLOOKUP($A180,Economática!$A$3:$AI$823,23,FALSE)))","v":12287.9},{"$f":"IF($A180=\"\",\"\",IF(OR(VLOOKUP($A180,Economática!$A$3:$AI$823,24,FALSE)=0,VLOOKUP($A180,Economática!$A$3:$AI$823,24,FALSE)=\"-\"),1/0,VLOOKUP($A180,Economática!$A$3:$AI$823,24,FALSE)))","v":11294.5},{"$f":"IF($A180=\"\",\"\",IF(OR(VLOOKUP($A180,Economática!$A$3:$AI$823,25,FALSE)=0,VLOOKUP($A180,Economática!$A$3:$AI$823,25,FALSE)=\"-\"),1/0,VLOOKUP($A180,Economática!$A$3:$AI$823,25,FALSE)))","v":11294.5},{"$f":"IF($A180=\"\",\"\",IF(ISERROR((F180+VLOOKUP($A180,Economática!$A$3:$AI$823,26,FALSE))/Y180),(F180+VLOOKUP($A180,Economática!$A$3:$AI$823,26,FALSE))/Y180,(F180+VLOOKUP($A180,Economática!$A$3:$AI$823,26,FALSE))/Y180))","v":5.2009237239364294},{"$f":"IF($A180=\"\",\"\",IF(OR(-VLOOKUP($A180,Economática!$A$3:$AI$823,27,FALSE)=0,-VLOOKUP($A180,Economática!$A$3:$AI$823,27,FALSE)=\"-\"),1/0,-VLOOKUP($A180,Economática!$A$3:$AI$823,27,FALSE)))","v":1498.45},3.6122766057207739E-2,{"$f":"IF($A180=\"\",\"\",IF(OR(VLOOKUP($A180,Economática!$A$3:$AI$823,28,FALSE)=0,VLOOKUP($A180,Economática!$A$3:$AI$823,28,FALSE)=\"-\"),1/0,VLOOKUP($A180,Economática!$A$3:$AI$823,28,FALSE)))","v":-6.4},{"$f":"IF($A180=\"\",\"\",IF(OR(VLOOKUP($A180,Economática!$A$3:$AI$823,29,FALSE)=0,VLOOKUP($A180,Economática!$A$3:$AI$823,29,FALSE)=\"-\"),1/0,VLOOKUP($A180,Economática!$A$3:$AI$823,29,FALSE)))","v":23.8},{"$f":"IF($A180=\"\",\"\",IF(OR(VLOOKUP($A180,Economática!$A$3:$AI$823,30,FALSE)/E180=0,VLOOKUP($A180,Economática!$A$3:$AI$823,30,FALSE)/E180=\"-\",VLOOKUP($A180,Economática!$A$3:$AI$823,30,FALSE)/E180<33.33%,VLOOKUP($A180,Economática!$A$3:$AI$823,30,FALSE)/E180>100%),1/0,VLOOKUP($A180,Economática!$A$3:$AI$823,30,FALSE)/E180))","v":0.56747371806468472},"BRKM5",{"$f":"IF($A180=\"\",\"\",IF(OR(VLOOKUP($A180,Economática!$A$3:$AI$823,25,FALSE)=0,VLOOKUP($A180,Economática!$A$3:$AI$823,25,FALSE)=\"-\"),1/0,VLOOKUP($A180,Economática!$A$3:$AI$823,25,FALSE)))","v":11294.5},{"$f":"CONCATENATE(Economática!B182,\" \",Economática!C182)","v":"Braskem PNA"}]
[{"$f":"IF(Economática!AG183=\"\",\"\",Economática!AG183)","v":"UNIP6"},{"$f":"IF($A181=\"\",\"\",VLOOKUP(VLOOKUP($A181,Economática!$A$3:$AI$823,6,FALSE),Correção!$B$16:$C$36,2,FALSE))","v":"Química"},{"$f":"IF(Economática!B183=\"\",\"\",Economática!B183)","v":"Unipar"},{"$f":"IF($A181=\"\",\"\",IF(OR(VLOOKUP($A181,Economática!$A$3:$AI$823,8,FALSE)=0,VLOOKUP($A181,Economática!$A$3:$AI$823,8,FALSE)=\"-\"),1/0,VLOOKUP($A181,Economática!$A$3:$AI$823,8,FALSE)))","v":38.15},{"$f":"IF(A181=\"\",\"\",IF(ISERROR(VLOOKUP(A181,Correção!$B$2:$G$13,9,FALSE)),VLOOKUP($A181,Economática!$A$3:$AI$823,9,FALSE),VLOOKUP(A181,Correção!$B$2:$G$13,9,FALSE)))","v":87.155000000000001},{"$f":"IF($A181=\"\",\"\",Economática!G183)","v":3348.19},{"$f":"IF($A181=\"\",\"\",IF(OR(VLOOKUP($A181,Economática!$A$3:$AI$823,10,FALSE)=0,VLOOKUP($A181,Economática!$A$3:$AI$823,10,FALSE)=\"-\"),1/0,VLOOKUP($A181,Economática!$A$3:$AI$823,10,FALSE)))","v":1347.52},{"$f":"IF($A181=\"\",\"\",IF(OR(VLOOKUP($A181,Economática!$A$3:$AI$823,11,FALSE)=0,VLOOKUP($A181,Economática!$A$3:$AI$823,11,FALSE)=\"-\"),1/0,VLOOKUP($A181,Economática!$A$3:$AI$823,11,FALSE)))","v":3019.59},{"$f":"IF($A181=\"\",\"\",IF(OR(VLOOKUP($A181,Economática!$A$3:$AI$823,12,FALSE)=0,VLOOKUP($A181,Economática!$A$3:$AI$823,12,FALSE)=\"-\"),1/0,VLOOKUP($A181,Economática!$A$3:$AI$823,12,FALSE)))","v":3469.13},{"$f":"IF($A181=\"\",\"\",IF(OR(VLOOKUP($A181,Economática!$A$3:$AI$823,13,FALSE)=0,VLOOKUP($A181,Economática!$A$3:$AI$823,13,FALSE)=\"-\"),1/0,VLOOKUP($A181,Economática!$A$3:$AI$823,13,FALSE)))","v":302.66000000000003},{"$f":"IF($A181=\"\",\"\",IF(OR(VLOOKUP($A181,Economática!$A$3:$AI$823,14,FALSE)=0,VLOOKUP($A181,Economática!$A$3:$AI$823,14,FALSE)=\"-\"),1/0,VLOOKUP($A181,Economática!$A$3:$AI$823,14,FALSE)))","v":158.51},{"$f":"IF($A181=\"\",\"\",IF(OR(VLOOKUP($A181,Economática!$A$3:$AI$823,15,FALSE)=0,VLOOKUP($A181,Economática!$A$3:$AI$823,15,FALSE)=\"-\"),1/0,VLOOKUP($A181,Economática!$A$3:$AI$823,15,FALSE)))","v":229.63},{"$f":"IF($A181=\"\",\"\",IF(OR(VLOOKUP($A181,Economática!$A$3:$AI$823,16,FALSE)=0,VLOOKUP($A181,Economática!$A$3:$AI$823,16,FALSE)=\"-\"),1/0,VLOOKUP($A181,Economática!$A$3:$AI$823,16,FALSE)))","v":374.23},{"$f":"IF($A181=\"\",\"\",IF(OR(VLOOKUP($A181,Economática!$A$3:$AI$823,17,FALSE)=0,VLOOKUP($A181,Economática!$A$3:$AI$823,17,FALSE)=\"-\"),1/0,VLOOKUP($A181,Economática!$A$3:$AI$823,17,FALSE)))","v":528.04},{"$f":"IF($A181=\"\",\"\",IF(OR(VLOOKUP($A181,Economática!$A$3:$AI$823,18,FALSE)=0,VLOOKUP($A181,Economática!$A$3:$AI$823,18,FALSE)=\"-\"),1/0,VLOOKUP($A181,Economática!$A$3:$AI$823,18,FALSE)))","v":302.66000000000003},{"$f":"IF($A181=\"\",\"\",IF(OR(VLOOKUP($A181,Economática!$A$3:$AI$823,19,FALSE)=0,VLOOKUP($A181,Economática!$A$3:$AI$823,19,FALSE)=\"-\"),1/0,VLOOKUP($A181,Economática!$A$3:$AI$823,19,FALSE)))","v":528.04},{"$f":"IF($A181=\"\",\"\",VLOOKUP($A181,Economática!$A$3:$AI$823,20,FALSE)/E181)","v":6.0586311743445584},15.461189834203431,2.4674685718950369,6.2968018521324138,{"$f":"IF($A181=\"\",\"\",IF(OR(VLOOKUP($A181,Economática!$A$3:$AI$823,21,FALSE)/100=0,VLOOKUP($A181,Economática!$A$3:$AI$823,21,FALSE)/100=\"-\"),1/0,VLOOKUP($A181,Economática!$A$3:$AI$823,21,FALSE)/100))","v":0.51027599999999995},{"$f":"IF($A181=\"\",\"\",IF(OR(VLOOKUP($A181,Economática!$A$3:$AI$823,22,FALSE)/100=0,VLOOKUP($A181,Economática!$A$3:$AI$823,22,FALSE)/100=\"-\"),1/0,VLOOKUP($A181,Economática!$A$3:$AI$823,22,FALSE)/100))","v":0.11505599999999999},{"$f":"IF($A181=\"\",\"\",IF(OR(VLOOKUP($A181,Economática!$A$3:$AI$823,23,FALSE)=0,VLOOKUP($A181,Economática!$A$3:$AI$823,23,FALSE)=\"-\"),1/0,VLOOKUP($A181,Economática!$A$3:$AI$823,23,FALSE)))","v":575.79999999999995},{"$f":"IF($A181=\"\",\"\",IF(OR(VLOOKUP($A181,Economática!$A$3:$AI$823,24,FALSE)=0,VLOOKUP($A181,Economática!$A$3:$AI$823,24,FALSE)=\"-\"),1/0,VLOOKUP($A181,Economática!$A$3:$AI$823,24,FALSE)))","v":1007},{"$f":"IF($A181=\"\",\"\",IF(OR(VLOOKUP($A181,Economática!$A$3:$AI$823,25,FALSE)=0,VLOOKUP($A181,Economática!$A$3:$AI$823,25,FALSE)=\"-\"),1/0,VLOOKUP($A181,Economática!$A$3:$AI$823,25,FALSE)))","v":1007},{"$f":"IF($A181=\"\",\"\",IF(ISERROR((F181+VLOOKUP($A181,Economática!$A$3:$AI$823,26,FALSE))/Y181),(F181+VLOOKUP($A181,Economática!$A$3:$AI$823,26,FALSE))/Y181,(F181+VLOOKUP($A181,Economática!$A$3:$AI$823,26,FALSE))/Y181))","v":3.4901241310824234},{"$f":"IF($A181=\"\",\"\",IF(OR(-VLOOKUP($A181,Economática!$A$3:$AI$823,27,FALSE)=0,-VLOOKUP($A181,Economática!$A$3:$AI$823,27,FALSE)=\"-\"),1/0,-VLOOKUP($A181,Economática!$A$3:$AI$823,27,FALSE)))","v":206.96},6.1812501680012184E-2,{"$f":"IF($A181=\"\",\"\",IF(OR(VLOOKUP($A181,Economática!$A$3:$AI$823,28,FALSE)=0,VLOOKUP($A181,Economática!$A$3:$AI$823,28,FALSE)=\"-\"),1/0,VLOOKUP($A181,Economática!$A$3:$AI$823,28,FALSE)))","v":-4.2},{"$f":"IF($A181=\"\",\"\",IF(OR(VLOOKUP($A181,Economática!$A$3:$AI$823,29,FALSE)=0,VLOOKUP($A181,Economática!$A$3:$AI$823,29,FALSE)=\"-\"),1/0,VLOOKUP($A181,Economática!$A$3:$AI$823,29,FALSE)))","v":182.9},{"$f":"IF($A181=\"\",\"\",IF(OR(VLOOKUP($A181,Economática!$A$3:$AI$823,30,FALSE)/E181=0,VLOOKUP($A181,Economática!$A$3:$AI$823,30,FALSE)/E181=\"-\",VLOOKUP($A181,Economática!$A$3:$AI$823,30,FALSE)/E181<33.33%,VLOOKUP($A181,Economática!$A$3:$AI$823,30,FALSE)/E181>100%),1/0,VLOOKUP($A181,Economática!$A$3:$AI$823,30,FALSE)/E181))","v":0.34880385520050483},"UNIP6",{"$f":"IF($A181=\"\",\"\",IF(OR(VLOOKUP($A181,Economática!$A$3:$AI$823,25,FALSE)=0,VLOOKUP($A181,Economática!$A$3:$AI$823,25,FALSE)=\"-\"),1/0,VLOOKUP($A181,Economática!$A$3:$AI$823,25,FALSE)))","v":1007},{"$f":"CONCATENATE(Economática!B183,\" \",Economática!C183)","v":"Unipar PNB"}]
[{"$f":"IF(Economática!AG184=\"\",\"\",Economática!AG184)","v":"CRPG5"},{"$f":"IF($A182=\"\",\"\",VLOOKUP(VLOOKUP($A182,Economática!$A$3:$AI$823,6,FALSE),Correção!$B$16:$C$36,2,FALSE))","v":"Química"},{"$f":"IF(Economática!B184=\"\",\"\",Economática!B184)","v":"Cristal"},{"$f":"IF($A182=\"\",\"\",IF(OR(VLOOKUP($A182,Economática!$A$3:$AI$823,8,FALSE)=0,VLOOKUP($A182,Economática!$A$3:$AI$823,8,FALSE)=\"-\"),1/0,VLOOKUP($A182,Economática!$A$3:$AI$823,8,FALSE)))","v":39.799999999999997},{"$f":"IF(A182=\"\",\"\",IF(ISERROR(VLOOKUP(A182,Correção!$B$2:$G$13,9,FALSE)),VLOOKUP($A182,Economática!$A$3:$AI$823,9,FALSE),VLOOKUP(A182,Correção!$B$2:$G$13,9,FALSE)))","v":23.215},{"$f":"IF($A182=\"\",\"\",Economática!G184)","v":921.78},{"$f":"IF($A182=\"\",\"\",IF(OR(VLOOKUP($A182,Economática!$A$3:$AI$823,10,FALSE)=0,VLOOKUP($A182,Economática!$A$3:$AI$823,10,FALSE)=\"-\"),1/0,VLOOKUP($A182,Economática!$A$3:$AI$823,10,FALSE)))","v":509.05},{"$f":"IF($A182=\"\",\"\",IF(OR(VLOOKUP($A182,Economática!$A$3:$AI$823,11,FALSE)=0,VLOOKUP($A182,Economática!$A$3:$AI$823,11,FALSE)=\"-\"),1/0,VLOOKUP($A182,Economática!$A$3:$AI$823,11,FALSE)))","v":568.23},{"$f":"IF($A182=\"\",\"\",IF(OR(VLOOKUP($A182,Economática!$A$3:$AI$823,12,FALSE)=0,VLOOKUP($A182,Economática!$A$3:$AI$823,12,FALSE)=\"-\"),1/0,VLOOKUP($A182,Economática!$A$3:$AI$823,12,FALSE)))","v":636.04999999999995},{"$f":"IF($A182=\"\",\"\",IF(OR(VLOOKUP($A182,Economática!$A$3:$AI$823,13,FALSE)=0,VLOOKUP($A182,Economática!$A$3:$AI$823,13,FALSE)=\"-\"),1/0,VLOOKUP($A182,Economática!$A$3:$AI$823,13,FALSE)))","v":79},{"$f":"IF($A182=\"\",\"\",IF(OR(VLOOKUP($A182,Economática!$A$3:$AI$823,14,FALSE)=0,VLOOKUP($A182,Economática!$A$3:$AI$823,14,FALSE)=\"-\"),1/0,VLOOKUP($A182,Economática!$A$3:$AI$823,14,FALSE)))","v":23.98},{"$f":"IF($A182=\"\",\"\",IF(OR(VLOOKUP($A182,Economática!$A$3:$AI$823,15,FALSE)=0,VLOOKUP($A182,Economática!$A$3:$AI$823,15,FALSE)=\"-\"),1/0,VLOOKUP($A182,Economática!$A$3:$AI$823,15,FALSE)))","v":60.34},{"$f":"IF($A182=\"\",\"\",IF(OR(VLOOKUP($A182,Economática!$A$3:$AI$823,16,FALSE)=0,VLOOKUP($A182,Economática!$A$3:$AI$823,16,FALSE)=\"-\"),1/0,VLOOKUP($A182,Economática!$A$3:$AI$823,16,FALSE)))","v":109.99},{"$f":"IF($A182=\"\",\"\",IF(OR(VLOOKUP($A182,Economática!$A$3:$AI$823,17,FALSE)=0,VLOOKUP($A182,Economática!$A$3:$AI$823,17,FALSE)=\"-\"),1/0,VLOOKUP($A182,Economática!$A$3:$AI$823,17,FALSE)))","v":155.66999999999999},{"$f":"IF($A182=\"\",\"\",IF(OR(VLOOKUP($A182,Economática!$A$3:$AI$823,18,FALSE)=0,VLOOKUP($A182,Economática!$A$3:$AI$823,18,FALSE)=\"-\"),1/0,VLOOKUP($A182,Economática!$A$3:$AI$823,18,FALSE)))","v":79},{"$f":"IF($A182=\"\",\"\",IF(OR(VLOOKUP($A182,Economática!$A$3:$AI$823,19,FALSE)=0,VLOOKUP($A182,Economática!$A$3:$AI$823,19,FALSE)=\"-\"),1/0,VLOOKUP($A182,Economática!$A$3:$AI$823,19,FALSE)))","v":155.66999999999999},{"$f":"IF($A182=\"\",\"\",VLOOKUP($A182,Economática!$A$3:$AI$823,20,FALSE)/E182)","v":6.7055782898987717},21.927632995907818,1.815061388861605,5.935356844607182,{"$f":"IF($A182=\"\",\"\",IF(OR(VLOOKUP($A182,Economática!$A$3:$AI$823,21,FALSE)/100=0,VLOOKUP($A182,Economática!$A$3:$AI$823,21,FALSE)/100=\"-\"),1/0,VLOOKUP($A182,Economática!$A$3:$AI$823,21,FALSE)/100))","v":0.34552500000000003},{"$f":"IF($A182=\"\",\"\",IF(OR(VLOOKUP($A182,Economática!$A$3:$AI$823,22,FALSE)/100=0,VLOOKUP($A182,Economática!$A$3:$AI$823,22,FALSE)/100=\"-\"),1/0,VLOOKUP($A182,Economática!$A$3:$AI$823,22,FALSE)/100))","v":-0.115047},{"$f":"IF($A182=\"\",\"\",IF(OR(VLOOKUP($A182,Economática!$A$3:$AI$823,23,FALSE)=0,VLOOKUP($A182,Economática!$A$3:$AI$823,23,FALSE)=\"-\"),1/0,VLOOKUP($A182,Economática!$A$3:$AI$823,23,FALSE)))","v":112.9},{"$f":"IF($A182=\"\",\"\",IF(OR(VLOOKUP($A182,Economática!$A$3:$AI$823,24,FALSE)=0,VLOOKUP($A182,Economática!$A$3:$AI$823,24,FALSE)=\"-\"),1/0,VLOOKUP($A182,Economática!$A$3:$AI$823,24,FALSE)))","v":172.1},{"$f":"IF($A182=\"\",\"\",IF(OR(VLOOKUP($A182,Economática!$A$3:$AI$823,25,FALSE)=0,VLOOKUP($A182,Economática!$A$3:$AI$823,25,FALSE)=\"-\"),1/0,VLOOKUP($A182,Economática!$A$3:$AI$823,25,FALSE)))","v":172.1},{"$f":"IF($A182=\"\",\"\",IF(ISERROR((F182+VLOOKUP($A182,Economática!$A$3:$AI$823,26,FALSE))/Y182),(F182+VLOOKUP($A182,Economática!$A$3:$AI$823,26,FALSE))/Y182,(F182+VLOOKUP($A182,Economática!$A$3:$AI$823,26,FALSE))/Y182))","v":5.0157757117954676},{"$f":"IF($A182=\"\",\"\",IF(OR(-VLOOKUP($A182,Economática!$A$3:$AI$823,27,FALSE)=0,-VLOOKUP($A182,Economática!$A$3:$AI$823,27,FALSE)=\"-\"),1/0,-VLOOKUP($A182,Economática!$A$3:$AI$823,27,FALSE)))","v":108.19},0.11737073922194016,{"$f":"IF($A182=\"\",\"\",IF(OR(VLOOKUP($A182,Economática!$A$3:$AI$823,28,FALSE)=0,VLOOKUP($A182,Economática!$A$3:$AI$823,28,FALSE)=\"-\"),1/0,VLOOKUP($A182,Economática!$A$3:$AI$823,28,FALSE)))","v":8.1999999999999993},{"$f":"IF($A182=\"\",\"\",IF(OR(VLOOKUP($A182,Economática!$A$3:$AI$823,29,FALSE)=0,VLOOKUP($A182,Economática!$A$3:$AI$823,29,FALSE)=\"-\"),1/0,VLOOKUP($A182,Economática!$A$3:$AI$823,29,FALSE)))","v":209.7},{"$f":"IF($A182=\"\",\"\",IF(OR(VLOOKUP($A182,Economática!$A$3:$AI$823,30,FALSE)/E182=0,VLOOKUP($A182,Economática!$A$3:$AI$823,30,FALSE)/E182=\"-\",VLOOKUP($A182,Economática!$A$3:$AI$823,30,FALSE)/E182<33.33%,VLOOKUP($A182,Economática!$A$3:$AI$823,30,FALSE)/E182>100%),1/0,VLOOKUP($A182,Economática!$A$3:$AI$823,30,FALSE)/E182))","v":0.34891234115873354},"CRPG5",{"$f":"IF($A182=\"\",\"\",IF(OR(VLOOKUP($A182,Economática!$A$3:$AI$823,25,FALSE)=0,VLOOKUP($A182,Economática!$A$3:$AI$823,25,FALSE)=\"-\"),1/0,VLOOKUP($A182,Economática!$A$3:$AI$823,25,FALSE)))","v":172.1},{"$f":"CONCATENATE(Economática!B184,\" \",Economática!C184)","v":"Cristal PNA"}]
[{"$f":"IF(Economática!AG185=\"\",\"\",Economática!AG185)","v":"OFSA3"},{"$f":"IF($A183=\"\",\"\",VLOOKUP(VLOOKUP($A183,Economática!$A$3:$AI$823,6,FALSE),Correção!$B$16:$C$36,2,FALSE))","v":"Química"},{"$f":"IF(Economática!B185=\"\",\"\",Economática!B185)","v":"Ourofino S/A"},{"$f":"IF($A183=\"\",\"\",IF(OR(VLOOKUP($A183,Economática!$A$3:$AI$823,8,FALSE)=0,VLOOKUP($A183,Economática!$A$3:$AI$823,8,FALSE)=\"-\"),1/0,VLOOKUP($A183,Economática!$A$3:$AI$823,8,FALSE)))","v":31.25},{"$f":"IF(A183=\"\",\"\",IF(ISERROR(VLOOKUP(A183,Correção!$B$2:$G$13,9,FALSE)),VLOOKUP($A183,Economática!$A$3:$AI$823,9,FALSE),VLOOKUP(A183,Correção!$B$2:$G$13,9,FALSE)))","v":53.948999999999998},{"$f":"IF($A183=\"\",\"\",Economática!G185)","v":1685.91},{"$f":"IF($A183=\"\",\"\",IF(OR(VLOOKUP($A183,Economática!$A$3:$AI$823,10,FALSE)=0,VLOOKUP($A183,Economática!$A$3:$AI$823,10,FALSE)=\"-\"),1/0,VLOOKUP($A183,Economática!$A$3:$AI$823,10,FALSE)))","v":455.94},{"$f":"IF($A183=\"\",\"\",IF(OR(VLOOKUP($A183,Economática!$A$3:$AI$823,11,FALSE)=0,VLOOKUP($A183,Economática!$A$3:$AI$823,11,FALSE)=\"-\"),1/0,VLOOKUP($A183,Economática!$A$3:$AI$823,11,FALSE)))","v":505.28},{"$f":"IF($A183=\"\",\"\",IF(OR(VLOOKUP($A183,Economática!$A$3:$AI$823,12,FALSE)=0,VLOOKUP($A183,Economática!$A$3:$AI$823,12,FALSE)=\"-\"),1/0,VLOOKUP($A183,Economática!$A$3:$AI$823,12,FALSE)))","v":589.22},{"$f":"IF($A183=\"\",\"\",IF(OR(VLOOKUP($A183,Economática!$A$3:$AI$823,13,FALSE)=0,VLOOKUP($A183,Economática!$A$3:$AI$823,13,FALSE)=\"-\"),1/0,VLOOKUP($A183,Economática!$A$3:$AI$823,13,FALSE)))","v":38.11},{"$f":"IF($A183=\"\",\"\",IF(OR(VLOOKUP($A183,Economática!$A$3:$AI$823,14,FALSE)=0,VLOOKUP($A183,Economática!$A$3:$AI$823,14,FALSE)=\"-\"),1/0,VLOOKUP($A183,Economática!$A$3:$AI$823,14,FALSE)))","v":3.62},{"$f":"IF($A183=\"\",\"\",IF(OR(VLOOKUP($A183,Economática!$A$3:$AI$823,15,FALSE)=0,VLOOKUP($A183,Economática!$A$3:$AI$823,15,FALSE)=\"-\"),1/0,VLOOKUP($A183,Economática!$A$3:$AI$823,15,FALSE)))","v":27.87},{"$f":"IF($A183=\"\",\"\",IF(OR(VLOOKUP($A183,Economática!$A$3:$AI$823,16,FALSE)=0,VLOOKUP($A183,Economática!$A$3:$AI$823,16,FALSE)=\"-\"),1/0,VLOOKUP($A183,Economática!$A$3:$AI$823,16,FALSE)))","v":49.75},{"$f":"IF($A183=\"\",\"\",IF(OR(VLOOKUP($A183,Economática!$A$3:$AI$823,17,FALSE)=0,VLOOKUP($A183,Economática!$A$3:$AI$823,17,FALSE)=\"-\"),1/0,VLOOKUP($A183,Economática!$A$3:$AI$823,17,FALSE)))","v":68.849999999999994},{"$f":"IF($A183=\"\",\"\",IF(OR(VLOOKUP($A183,Economática!$A$3:$AI$823,18,FALSE)=0,VLOOKUP($A183,Economática!$A$3:$AI$823,18,FALSE)=\"-\"),1/0,VLOOKUP($A183,Economática!$A$3:$AI$823,18,FALSE)))","v":38.11},{"$f":"IF($A183=\"\",\"\",IF(OR(VLOOKUP($A183,Economática!$A$3:$AI$823,19,FALSE)=0,VLOOKUP($A183,Economática!$A$3:$AI$823,19,FALSE)=\"-\"),1/0,VLOOKUP($A183,Economática!$A$3:$AI$823,19,FALSE)))","v":68.849999999999994},{"$f":"IF($A183=\"\",\"\",VLOOKUP($A183,Economática!$A$3:$AI$823,20,FALSE)/E183)","v":1.2762053050102875},8.4513151309570151,3.6976493617581259,24.48665577342048,{"$f":"IF($A183=\"\",\"\",IF(OR(VLOOKUP($A183,Economática!$A$3:$AI$823,21,FALSE)/100=0,VLOOKUP($A183,Economática!$A$3:$AI$823,21,FALSE)/100=\"-\"),1/0,VLOOKUP($A183,Economática!$A$3:$AI$823,21,FALSE)/100))","v":0.16977499999999998},{"$f":"IF($A183=\"\",\"\",IF(OR(VLOOKUP($A183,Economática!$A$3:$AI$823,22,FALSE)/100=0,VLOOKUP($A183,Economática!$A$3:$AI$823,22,FALSE)/100=\"-\"),1/0,VLOOKUP($A183,Economática!$A$3:$AI$823,22,FALSE)/100))","v":0.48763599999999996},{"$f":"IF($A183=\"\",\"\",IF(OR(VLOOKUP($A183,Economática!$A$3:$AI$823,23,FALSE)=0,VLOOKUP($A183,Economática!$A$3:$AI$823,23,FALSE)=\"-\"),1/0,VLOOKUP($A183,Economática!$A$3:$AI$823,23,FALSE)))","v":91.2},{"$f":"IF($A183=\"\",\"\",IF(OR(VLOOKUP($A183,Economática!$A$3:$AI$823,24,FALSE)=0,VLOOKUP($A183,Economática!$A$3:$AI$823,24,FALSE)=\"-\"),1/0,VLOOKUP($A183,Economática!$A$3:$AI$823,24,FALSE)))","v":123.5},{"$f":"IF($A183=\"\",\"\",IF(OR(VLOOKUP($A183,Economática!$A$3:$AI$823,25,FALSE)=0,VLOOKUP($A183,Economática!$A$3:$AI$823,25,FALSE)=\"-\"),1/0,VLOOKUP($A183,Economática!$A$3:$AI$823,25,FALSE)))","v":123.5},{"$f":"IF($A183=\"\",\"\",IF(ISERROR((F183+VLOOKUP($A183,Economática!$A$3:$AI$823,26,FALSE))/Y183),(F183+VLOOKUP($A183,Economática!$A$3:$AI$823,26,FALSE))/Y183,(F183+VLOOKUP($A183,Economática!$A$3:$AI$823,26,FALSE))/Y183))","v":15.451465587044535},{"$f":"IF($A183=\"\",\"\",IF(OR(-VLOOKUP($A183,Economática!$A$3:$AI$823,27,FALSE)=0,-VLOOKUP($A183,Economática!$A$3:$AI$823,27,FALSE)=\"-\"),1/0,-VLOOKUP($A183,Economática!$A$3:$AI$823,27,FALSE)))","v":{"$error":"#VALUE!"}},{"$error":"#VALUE!"},{"$f":"IF($A183=\"\",\"\",IF(OR(VLOOKUP($A183,Economática!$A$3:$AI$823,28,FALSE)=0,VLOOKUP($A183,Economática!$A$3:$AI$823,28,FALSE)=\"-\"),1/0,VLOOKUP($A183,Economática!$A$3:$AI$823,28,FALSE)))","v":-3.5},{"$f":"IF($A183=\"\",\"\",IF(OR(VLOOKUP($A183,Economática!$A$3:$AI$823,29,FALSE)=0,VLOOKUP($A183,Economática!$A$3:$AI$823,29,FALSE)=\"-\"),1/0,VLOOKUP($A183,Economática!$A$3:$AI$823,29,FALSE)))","v":31.3},{"$f":"IF($A183=\"\",\"\",IF(OR(VLOOKUP($A183,Economática!$A$3:$AI$823,30,FALSE)/E183=0,VLOOKUP($A183,Economática!$A$3:$AI$823,30,FALSE)/E183=\"-\",VLOOKUP($A183,Economática!$A$3:$AI$823,30,FALSE)/E183<33.33%,VLOOKUP($A183,Economática!$A$3:$AI$823,30,FALSE)/E183>100%),1/0,VLOOKUP($A183,Economática!$A$3:$AI$823,30,FALSE)/E183))","v":0.99909173478655766},"OFSA3",{"$f":"IF($A183=\"\",\"\",IF(OR(VLOOKUP($A183,Economática!$A$3:$AI$823,25,FALSE)=0,VLOOKUP($A183,Economática!$A$3:$AI$823,25,FALSE)=\"-\"),1/0,VLOOKUP($A183,Economática!$A$3:$AI$823,25,FALSE)))","v":123.5},{"$f":"CONCATENATE(Economática!B185,\" \",Economática!C185)","v":"Ourofino S/A ON"}]
[{"$f":"IF(Economática!AG186=\"\",\"\",Economática!AG186)","v":"GBIO33"},{"$f":"IF($A184=\"\",\"\",VLOOKUP(VLOOKUP($A184,Economática!$A$3:$AI$823,6,FALSE),Correção!$B$16:$C$36,2,FALSE))","v":"Química"},{"$f":"IF(Economática!B186=\"\",\"\",Economática!B186)","v":"Biotoscana"},{"$f":"IF($A184=\"\",\"\",IF(OR(VLOOKUP($A184,Economática!$A$3:$AI$823,8,FALSE)=0,VLOOKUP($A184,Economática!$A$3:$AI$823,8,FALSE)=\"-\"),1/0,VLOOKUP($A184,Economática!$A$3:$AI$823,8,FALSE)))","v":8.44},{"$f":"IF(A184=\"\",\"\",IF(ISERROR(VLOOKUP(A184,Correção!$B$2:$G$13,9,FALSE)),VLOOKUP($A184,Economática!$A$3:$AI$823,9,FALSE),VLOOKUP(A184,Correção!$B$2:$G$13,9,FALSE)))","v":105.958},{"$f":"IF($A184=\"\",\"\",Economática!G186)","v":894.28},{"$f":"IF($A184=\"\",\"\",IF(OR(VLOOKUP($A184,Economática!$A$3:$AI$823,10,FALSE)=0,VLOOKUP($A184,Economática!$A$3:$AI$823,10,FALSE)=\"-\"),1/0,VLOOKUP($A184,Economática!$A$3:$AI$823,10,FALSE)))","v":729.24},{"$f":"IF($A184=\"\",\"\",IF(OR(VLOOKUP($A184,Economática!$A$3:$AI$823,11,FALSE)=0,VLOOKUP($A184,Economática!$A$3:$AI$823,11,FALSE)=\"-\"),1/0,VLOOKUP($A184,Economática!$A$3:$AI$823,11,FALSE)))","v":817.55},{"$f":"IF($A184=\"\",\"\",IF(OR(VLOOKUP($A184,Economática!$A$3:$AI$823,12,FALSE)=0,VLOOKUP($A184,Economática!$A$3:$AI$823,12,FALSE)=\"-\"),1/0,VLOOKUP($A184,Economática!$A$3:$AI$823,12,FALSE)))","v":820.96},{"$f":"IF($A184=\"\",\"\",IF(OR(VLOOKUP($A184,Economática!$A$3:$AI$823,13,FALSE)=0,VLOOKUP($A184,Economática!$A$3:$AI$823,13,FALSE)=\"-\"),1/0,VLOOKUP($A184,Economática!$A$3:$AI$823,13,FALSE)))","v":16.93},{"$f":"IF($A184=\"\",\"\",IF(OR(VLOOKUP($A184,Economática!$A$3:$AI$823,14,FALSE)=0,VLOOKUP($A184,Economática!$A$3:$AI$823,14,FALSE)=\"-\"),1/0,VLOOKUP($A184,Economática!$A$3:$AI$823,14,FALSE)))","v":15.96},{"$f":"IF($A184=\"\",\"\",IF(OR(VLOOKUP($A184,Economática!$A$3:$AI$823,15,FALSE)=0,VLOOKUP($A184,Economática!$A$3:$AI$823,15,FALSE)=\"-\"),1/0,VLOOKUP($A184,Economática!$A$3:$AI$823,15,FALSE)))","v":35.909999999999997},{"$f":"IF($A184=\"\",\"\",IF(OR(VLOOKUP($A184,Economática!$A$3:$AI$823,16,FALSE)=0,VLOOKUP($A184,Economática!$A$3:$AI$823,16,FALSE)=\"-\"),1/0,VLOOKUP($A184,Economática!$A$3:$AI$823,16,FALSE)))","v":45},{"$f":"IF($A184=\"\",\"\",IF(OR(VLOOKUP($A184,Economática!$A$3:$AI$823,17,FALSE)=0,VLOOKUP($A184,Economática!$A$3:$AI$823,17,FALSE)=\"-\"),1/0,VLOOKUP($A184,Economática!$A$3:$AI$823,17,FALSE)))","v":63.46},{"$f":"IF($A184=\"\",\"\",IF(OR(VLOOKUP($A184,Economática!$A$3:$AI$823,18,FALSE)=0,VLOOKUP($A184,Economática!$A$3:$AI$823,18,FALSE)=\"-\"),1/0,VLOOKUP($A184,Economática!$A$3:$AI$823,18,FALSE)))","v":16.93},{"$f":"IF($A184=\"\",\"\",IF(OR(VLOOKUP($A184,Economática!$A$3:$AI$823,19,FALSE)=0,VLOOKUP($A184,Economática!$A$3:$AI$823,19,FALSE)=\"-\"),1/0,VLOOKUP($A184,Economática!$A$3:$AI$823,19,FALSE)))","v":63.46},{"$f":"IF($A184=\"\",\"\",VLOOKUP($A184,Economática!$A$3:$AI$823,20,FALSE)/E184)","v":0.59891655184129566},6.8823496102229189,1.2263253798475124,14.092113457295932,{"$f":"IF($A184=\"\",\"\",IF(OR(VLOOKUP($A184,Economática!$A$3:$AI$823,21,FALSE)/100=0,VLOOKUP($A184,Economática!$A$3:$AI$823,21,FALSE)/100=\"-\"),1/0,VLOOKUP($A184,Economática!$A$3:$AI$823,21,FALSE)/100))","v":0.10696},{"$f":"IF($A184=\"\",\"\",IF(OR(VLOOKUP($A184,Economática!$A$3:$AI$823,22,FALSE)/100=0,VLOOKUP($A184,Economática!$A$3:$AI$823,22,FALSE)/100=\"-\"),1/0,VLOOKUP($A184,Economática!$A$3:$AI$823,22,FALSE)/100))","v":0.15771399999999999},{"$f":"IF($A184=\"\",\"\",IF(OR(VLOOKUP($A184,Economática!$A$3:$AI$823,23,FALSE)=0,VLOOKUP($A184,Economática!$A$3:$AI$823,23,FALSE)=\"-\"),1/0,VLOOKUP($A184,Economática!$A$3:$AI$823,23,FALSE)))","v":{"$error":"#DIV/0!"}},{"$f":"IF($A184=\"\",\"\",IF(OR(VLOOKUP($A184,Economática!$A$3:$AI$823,24,FALSE)=0,VLOOKUP($A184,Economática!$A$3:$AI$823,24,FALSE)=\"-\"),1/0,VLOOKUP($A184,Economática!$A$3:$AI$823,24,FALSE)))","v":{"$error":"#DIV/0!"}},{"$f":"IF($A184=\"\",\"\",IF(OR(VLOOKUP($A184,Economática!$A$3:$AI$823,25,FALSE)=0,VLOOKUP($A184,Economática!$A$3:$AI$823,25,FALSE)=\"-\"),1/0,VLOOKUP($A184,Economática!$A$3:$AI$823,25,FALSE)))","v":{"$error":"#DIV/0!"}},{"$f":"IF($A184=\"\",\"\",IF(ISERROR((F184+VLOOKUP($A184,Economática!$A$3:$AI$823,26,FALSE))/Y184),(F184+VLOOKUP($A184,Economática!$A$3:$AI$823,26,FALSE))/Y184,(F184+VLOOKUP($A184,Economática!$A$3:$AI$823,26,FALSE))/Y184))","v":{"$error":"#DIV/0!"}},{"$f":"IF($A184=\"\",\"\",IF(OR(-VLOOKUP($A184,Economática!$A$3:$AI$823,27,FALSE)=0,-VLOOKUP($A184,Economática!$A$3:$AI$823,27,FALSE)=\"-\"),1/0,-VLOOKUP($A184,Economática!$A$3:$AI$823,27,FALSE)))","v":{"$error":"#VALUE!"}},{"$error":"#VALUE!"},{"$f":"IF($A184=\"\",\"\",IF(OR(VLOOKUP($A184,Economática!$A$3:$AI$823,28,FALSE)=0,VLOOKUP($A184,Economática!$A$3:$AI$823,28,FALSE)=\"-\"),1/0,VLOOKUP($A184,Economática!$A$3:$AI$823,28,FALSE)))","v":-3.3},{"$f":"IF($A184=\"\",\"\",IF(OR(VLOOKUP($A184,Economática!$A$3:$AI$823,29,FALSE)=0,VLOOKUP($A184,Economática!$A$3:$AI$823,29,FALSE)=\"-\"),1/0,VLOOKUP($A184,Economática!$A$3:$AI$823,29,FALSE)))","v":-59},{"$f":"IF($A184=\"\",\"\",IF(OR(VLOOKUP($A184,Economática!$A$3:$AI$823,30,FALSE)/E184=0,VLOOKUP($A184,Economática!$A$3:$AI$823,30,FALSE)/E184=\"-\",VLOOKUP($A184,Economática!$A$3:$AI$823,30,FALSE)/E184<33.33%,VLOOKUP($A184,Economática!$A$3:$AI$823,30,FALSE)/E184>100%),1/0,VLOOKUP($A184,Economática!$A$3:$AI$823,30,FALSE)/E184))","v":{"$error":"#DIV/0!"}},"GBIO33",{"$f":"IF($A184=\"\",\"\",IF(OR(VLOOKUP($A184,Economática!$A$3:$AI$823,25,FALSE)=0,VLOOKUP($A184,Economática!$A$3:$AI$823,25,FALSE)=\"-\"),1/0,VLOOKUP($A184,Economática!$A$3:$AI$823,25,FALSE)))","v":{"$error":"#DIV/0!"}},{"$f":"CONCATENATE(Economática!B186,\" \",Economática!C186)","v":"Biotoscana ON"}]
[{"$f":"IF(Economática!AG187=\"\",\"\",Economática!AG187)","v":"FHER3"},{"$f":"IF($A185=\"\",\"\",VLOOKUP(VLOOKUP($A185,Economática!$A$3:$AI$823,6,FALSE),Correção!$B$16:$C$36,2,FALSE))","v":"Química"},{"$f":"IF(Economática!B187=\"\",\"\",Economática!B187)","v":"Fer Heringer"},{"$f":"IF($A185=\"\",\"\",IF(OR(VLOOKUP($A185,Economática!$A$3:$AI$823,8,FALSE)=0,VLOOKUP($A185,Economática!$A$3:$AI$823,8,FALSE)=\"-\"),1/0,VLOOKUP($A185,Economática!$A$3:$AI$823,8,FALSE)))","v":2.21},{"$f":"IF(A185=\"\",\"\",IF(ISERROR(VLOOKUP(A185,Correção!$B$2:$G$13,9,FALSE)),VLOOKUP($A185,Economática!$A$3:$AI$823,9,FALSE),VLOOKUP(A185,Correção!$B$2:$G$13,9,FALSE)))","v":53.856999999999999},{"$f":"IF($A185=\"\",\"\",Economática!G187)","v":119.02},{"$f":"IF($A185=\"\",\"\",IF(OR(VLOOKUP($A185,Economática!$A$3:$AI$823,10,FALSE)=0,VLOOKUP($A185,Economática!$A$3:$AI$823,10,FALSE)=\"-\"),1/0,VLOOKUP($A185,Economática!$A$3:$AI$823,10,FALSE)))","v":-621.84},{"$f":"IF($A185=\"\",\"\",IF(OR(VLOOKUP($A185,Economática!$A$3:$AI$823,11,FALSE)=0,VLOOKUP($A185,Economática!$A$3:$AI$823,11,FALSE)=\"-\"),1/0,VLOOKUP($A185,Economática!$A$3:$AI$823,11,FALSE)))","v":4789.72},{"$f":"IF($A185=\"\",\"\",IF(OR(VLOOKUP($A185,Economática!$A$3:$AI$823,12,FALSE)=0,VLOOKUP($A185,Economática!$A$3:$AI$823,12,FALSE)=\"-\"),1/0,VLOOKUP($A185,Economática!$A$3:$AI$823,12,FALSE)))","v":3688.72},{"$f":"IF($A185=\"\",\"\",IF(OR(VLOOKUP($A185,Economática!$A$3:$AI$823,13,FALSE)=0,VLOOKUP($A185,Economática!$A$3:$AI$823,13,FALSE)=\"-\"),1/0,VLOOKUP($A185,Economática!$A$3:$AI$823,13,FALSE)))","v":-125.6},{"$f":"IF($A185=\"\",\"\",IF(OR(VLOOKUP($A185,Economática!$A$3:$AI$823,14,FALSE)=0,VLOOKUP($A185,Economática!$A$3:$AI$823,14,FALSE)=\"-\"),1/0,VLOOKUP($A185,Economática!$A$3:$AI$823,14,FALSE)))","v":-46.75},{"$f":"IF($A185=\"\",\"\",IF(OR(VLOOKUP($A185,Economática!$A$3:$AI$823,15,FALSE)=0,VLOOKUP($A185,Economática!$A$3:$AI$823,15,FALSE)=\"-\"),1/0,VLOOKUP($A185,Economática!$A$3:$AI$823,15,FALSE)))","v":-324.07},{"$f":"IF($A185=\"\",\"\",IF(OR(VLOOKUP($A185,Economática!$A$3:$AI$823,16,FALSE)=0,VLOOKUP($A185,Economática!$A$3:$AI$823,16,FALSE)=\"-\"),1/0,VLOOKUP($A185,Economática!$A$3:$AI$823,16,FALSE)))","v":-441.45},{"$f":"IF($A185=\"\",\"\",IF(OR(VLOOKUP($A185,Economática!$A$3:$AI$823,17,FALSE)=0,VLOOKUP($A185,Economática!$A$3:$AI$823,17,FALSE)=\"-\"),1/0,VLOOKUP($A185,Economática!$A$3:$AI$823,17,FALSE)))","v":-779.61},{"$f":"IF($A185=\"\",\"\",IF(OR(VLOOKUP($A185,Economática!$A$3:$AI$823,18,FALSE)=0,VLOOKUP($A185,Economática!$A$3:$AI$823,18,FALSE)=\"-\"),1/0,VLOOKUP($A185,Economática!$A$3:$AI$823,18,FALSE)))","v":-125.6},{"$f":"IF($A185=\"\",\"\",IF(OR(VLOOKUP($A185,Economática!$A$3:$AI$823,19,FALSE)=0,VLOOKUP($A185,Economática!$A$3:$AI$823,19,FALSE)=\"-\"),1/0,VLOOKUP($A185,Economática!$A$3:$AI$823,19,FALSE)))","v":-779.61},{"$f":"IF($A185=\"\",\"\",VLOOKUP($A185,Economática!$A$3:$AI$823,20,FALSE)/E185)","v":-14.475555638078616},{"$error":"#DIV/0!"},{"$error":"#DIV/0!"},{"$error":"#DIV/0!"},{"$f":"IF($A185=\"\",\"\",IF(OR(VLOOKUP($A185,Economática!$A$3:$AI$823,21,FALSE)/100=0,VLOOKUP($A185,Economática!$A$3:$AI$823,21,FALSE)/100=\"-\"),1/0,VLOOKUP($A185,Economática!$A$3:$AI$823,21,FALSE)/100))","v":-4.7652549999999998},{"$f":"IF($A185=\"\",\"\",IF(OR(VLOOKUP($A185,Economática!$A$3:$AI$823,22,FALSE)/100=0,VLOOKUP($A185,Economática!$A$3:$AI$823,22,FALSE)/100=\"-\"),1/0,VLOOKUP($A185,Economática!$A$3:$AI$823,22,FALSE)/100))","v":-1.579545},{"$f":"IF($A185=\"\",\"\",IF(OR(VLOOKUP($A185,Economática!$A$3:$AI$823,23,FALSE)=0,VLOOKUP($A185,Economática!$A$3:$AI$823,23,FALSE)=\"-\"),1/0,VLOOKUP($A185,Economática!$A$3:$AI$823,23,FALSE)))","v":91.9},{"$f":"IF($A185=\"\",\"\",IF(OR(VLOOKUP($A185,Economática!$A$3:$AI$823,24,FALSE)=0,VLOOKUP($A185,Economática!$A$3:$AI$823,24,FALSE)=\"-\"),1/0,VLOOKUP($A185,Economática!$A$3:$AI$823,24,FALSE)))","v":-150.4},{"$f":"IF($A185=\"\",\"\",IF(OR(VLOOKUP($A185,Economática!$A$3:$AI$823,25,FALSE)=0,VLOOKUP($A185,Economática!$A$3:$AI$823,25,FALSE)=\"-\"),1/0,VLOOKUP($A185,Economática!$A$3:$AI$823,25,FALSE)))","v":-150.4},{"$f":"IF($A185=\"\",\"\",IF(ISERROR((F185+VLOOKUP($A185,Economática!$A$3:$AI$823,26,FALSE))/Y185),(F185+VLOOKUP($A185,Economática!$A$3:$AI$823,26,FALSE))/Y185,(F185+VLOOKUP($A185,Economática!$A$3:$AI$823,26,FALSE))/Y185))","v":-7.3220611702127663},{"$f":"IF($A185=\"\",\"\",IF(OR(-VLOOKUP($A185,Economática!$A$3:$AI$823,27,FALSE)=0,-VLOOKUP($A185,Economática!$A$3:$AI$823,27,FALSE)=\"-\"),1/0,-VLOOKUP($A185,Economática!$A$3:$AI$823,27,FALSE)))","v":{"$error":"#DIV/0!"}},{"$error":"#DIV/0!"},{"$f":"IF($A185=\"\",\"\",IF(OR(VLOOKUP($A185,Economática!$A$3:$AI$823,28,FALSE)=0,VLOOKUP($A185,Economática!$A$3:$AI$823,28,FALSE)=\"-\"),1/0,VLOOKUP($A185,Economática!$A$3:$AI$823,28,FALSE)))","v":-2.6},{"$f":"IF($A185=\"\",\"\",IF(OR(VLOOKUP($A185,Economática!$A$3:$AI$823,29,FALSE)=0,VLOOKUP($A185,Economática!$A$3:$AI$823,29,FALSE)=\"-\"),1/0,VLOOKUP($A185,Economática!$A$3:$AI$823,29,FALSE)))","v":-13.3},{"$f":"IF($A185=\"\",\"\",IF(OR(VLOOKUP($A185,Economática!$A$3:$AI$823,30,FALSE)/E185=0,VLOOKUP($A185,Economática!$A$3:$AI$823,30,FALSE)/E185=\"-\",VLOOKUP($A185,Economática!$A$3:$AI$823,30,FALSE)/E185<33.33%,VLOOKUP($A185,Economática!$A$3:$AI$823,30,FALSE)/E185>100%),1/0,VLOOKUP($A185,Economática!$A$3:$AI$823,30,FALSE)/E185))","v":{"$error":"#DIV/0!"}},"FHER3",{"$f":"IF($A185=\"\",\"\",IF(OR(VLOOKUP($A185,Economática!$A$3:$AI$823,25,FALSE)=0,VLOOKUP($A185,Economática!$A$3:$AI$823,25,FALSE)=\"-\"),1/0,VLOOKUP($A185,Economática!$A$3:$AI$823,25,FALSE)))","v":-150.4},{"$f":"CONCATENATE(Economática!B187,\" \",Economática!C187)","v":"Fer Heringer ON"}]
[{"$f":"IF(Economática!AG188=\"\",\"\",Economática!AG188)","v":"BOBR4"},{"$f":"IF($A186=\"\",\"\",VLOOKUP(VLOOKUP($A186,Economática!$A$3:$AI$823,6,FALSE),Correção!$B$16:$C$36,2,FALSE))","v":"Química"},{"$f":"IF(Economática!B188=\"\",\"\",Economática!B188)","v":"Bombril"},{"$f":"IF($A186=\"\",\"\",IF(OR(VLOOKUP($A186,Economática!$A$3:$AI$823,8,FALSE)=0,VLOOKUP($A186,Economática!$A$3:$AI$823,8,FALSE)=\"-\"),1/0,VLOOKUP($A186,Economática!$A$3:$AI$823,8,FALSE)))","v":2.27},{"$f":"IF(A186=\"\",\"\",IF(ISERROR(VLOOKUP(A186,Correção!$B$2:$G$13,9,FALSE)),VLOOKUP($A186,Economática!$A$3:$AI$823,9,FALSE),VLOOKUP(A186,Correção!$B$2:$G$13,9,FALSE)))","v":54.064999999999998},{"$f":"IF($A186=\"\",\"\",Economática!G188)","v":122.73},{"$f":"IF($A186=\"\",\"\",IF(OR(VLOOKUP($A186,Economática!$A$3:$AI$823,10,FALSE)=0,VLOOKUP($A186,Economática!$A$3:$AI$823,10,FALSE)=\"-\"),1/0,VLOOKUP($A186,Economática!$A$3:$AI$823,10,FALSE)))","v":-241.39},{"$f":"IF($A186=\"\",\"\",IF(OR(VLOOKUP($A186,Economática!$A$3:$AI$823,11,FALSE)=0,VLOOKUP($A186,Economática!$A$3:$AI$823,11,FALSE)=\"-\"),1/0,VLOOKUP($A186,Economática!$A$3:$AI$823,11,FALSE)))","v":1096.72},{"$f":"IF($A186=\"\",\"\",IF(OR(VLOOKUP($A186,Economática!$A$3:$AI$823,12,FALSE)=0,VLOOKUP($A186,Economática!$A$3:$AI$823,12,FALSE)=\"-\"),1/0,VLOOKUP($A186,Economática!$A$3:$AI$823,12,FALSE)))","v":1046.69},{"$f":"IF($A186=\"\",\"\",IF(OR(VLOOKUP($A186,Economática!$A$3:$AI$823,13,FALSE)=0,VLOOKUP($A186,Economática!$A$3:$AI$823,13,FALSE)=\"-\"),1/0,VLOOKUP($A186,Economática!$A$3:$AI$823,13,FALSE)))","v":126.82},{"$f":"IF($A186=\"\",\"\",IF(OR(VLOOKUP($A186,Economática!$A$3:$AI$823,14,FALSE)=0,VLOOKUP($A186,Economática!$A$3:$AI$823,14,FALSE)=\"-\"),1/0,VLOOKUP($A186,Economática!$A$3:$AI$823,14,FALSE)))","v":-15.75},{"$f":"IF($A186=\"\",\"\",IF(OR(VLOOKUP($A186,Economática!$A$3:$AI$823,15,FALSE)=0,VLOOKUP($A186,Economática!$A$3:$AI$823,15,FALSE)=\"-\"),1/0,VLOOKUP($A186,Economática!$A$3:$AI$823,15,FALSE)))","v":-21.99},{"$f":"IF($A186=\"\",\"\",IF(OR(VLOOKUP($A186,Economática!$A$3:$AI$823,16,FALSE)=0,VLOOKUP($A186,Economática!$A$3:$AI$823,16,FALSE)=\"-\"),1/0,VLOOKUP($A186,Economática!$A$3:$AI$823,16,FALSE)))","v":107.36},{"$f":"IF($A186=\"\",\"\",IF(OR(VLOOKUP($A186,Economática!$A$3:$AI$823,17,FALSE)=0,VLOOKUP($A186,Economática!$A$3:$AI$823,17,FALSE)=\"-\"),1/0,VLOOKUP($A186,Economática!$A$3:$AI$823,17,FALSE)))","v":70.17},{"$f":"IF($A186=\"\",\"\",IF(OR(VLOOKUP($A186,Economática!$A$3:$AI$823,18,FALSE)=0,VLOOKUP($A186,Economática!$A$3:$AI$823,18,FALSE)=\"-\"),1/0,VLOOKUP($A186,Economática!$A$3:$AI$823,18,FALSE)))","v":126.82},{"$f":"IF($A186=\"\",\"\",IF(OR(VLOOKUP($A186,Economática!$A$3:$AI$823,19,FALSE)=0,VLOOKUP($A186,Economática!$A$3:$AI$823,19,FALSE)=\"-\"),1/0,VLOOKUP($A186,Economática!$A$3:$AI$823,19,FALSE)))","v":70.17},{"$f":"IF($A186=\"\",\"\",VLOOKUP($A186,Economática!$A$3:$AI$823,20,FALSE)/E186)","v":1.2978821788587811},{"$error":"#DIV/0!"},{"$error":"#DIV/0!"},1.7490031352429813,{"$f":"IF($A186=\"\",\"\",IF(OR(VLOOKUP($A186,Economática!$A$3:$AI$823,21,FALSE)/100=0,VLOOKUP($A186,Economática!$A$3:$AI$823,21,FALSE)/100=\"-\"),1/0,VLOOKUP($A186,Economática!$A$3:$AI$823,21,FALSE)/100))","v":{"$error":"#VALUE!"}},{"$f":"IF($A186=\"\",\"\",IF(OR(VLOOKUP($A186,Economática!$A$3:$AI$823,22,FALSE)/100=0,VLOOKUP($A186,Economática!$A$3:$AI$823,22,FALSE)/100=\"-\"),1/0,VLOOKUP($A186,Economática!$A$3:$AI$823,22,FALSE)/100))","v":-1.1236550000000001},{"$f":"IF($A186=\"\",\"\",IF(OR(VLOOKUP($A186,Economática!$A$3:$AI$823,23,FALSE)=0,VLOOKUP($A186,Economática!$A$3:$AI$823,23,FALSE)=\"-\"),1/0,VLOOKUP($A186,Economática!$A$3:$AI$823,23,FALSE)))","v":203},{"$f":"IF($A186=\"\",\"\",IF(OR(VLOOKUP($A186,Economática!$A$3:$AI$823,24,FALSE)=0,VLOOKUP($A186,Economática!$A$3:$AI$823,24,FALSE)=\"-\"),1/0,VLOOKUP($A186,Economática!$A$3:$AI$823,24,FALSE)))","v":19.2},{"$f":"IF($A186=\"\",\"\",IF(OR(VLOOKUP($A186,Economática!$A$3:$AI$823,25,FALSE)=0,VLOOKUP($A186,Economática!$A$3:$AI$823,25,FALSE)=\"-\"),1/0,VLOOKUP($A186,Economática!$A$3:$AI$823,25,FALSE)))","v":19.2},{"$f":"IF($A186=\"\",\"\",IF(ISERROR((F186+VLOOKUP($A186,Economática!$A$3:$AI$823,26,FALSE))/Y186),(F186+VLOOKUP($A186,Economática!$A$3:$AI$823,26,FALSE))/Y186,(F186+VLOOKUP($A186,Economática!$A$3:$AI$823,26,FALSE))/Y186))","v":20.519166666666667},{"$f":"IF($A186=\"\",\"\",IF(OR(-VLOOKUP($A186,Economática!$A$3:$AI$823,27,FALSE)=0,-VLOOKUP($A186,Economática!$A$3:$AI$823,27,FALSE)=\"-\"),1/0,-VLOOKUP($A186,Economática!$A$3:$AI$823,27,FALSE)))","v":{"$error":"#DIV/0!"}},{"$error":"#DIV/0!"},{"$f":"IF($A186=\"\",\"\",IF(OR(VLOOKUP($A186,Economática!$A$3:$AI$823,28,FALSE)=0,VLOOKUP($A186,Economática!$A$3:$AI$823,28,FALSE)=\"-\"),1/0,VLOOKUP($A186,Economática!$A$3:$AI$823,28,FALSE)))","v":-15},{"$f":"IF($A186=\"\",\"\",IF(OR(VLOOKUP($A186,Economática!$A$3:$AI$823,29,FALSE)=0,VLOOKUP($A186,Economática!$A$3:$AI$823,29,FALSE)=\"-\"),1/0,VLOOKUP($A186,Economática!$A$3:$AI$823,29,FALSE)))","v":-54},{"$f":"IF($A186=\"\",\"\",IF(OR(VLOOKUP($A186,Economática!$A$3:$AI$823,30,FALSE)/E186=0,VLOOKUP($A186,Economática!$A$3:$AI$823,30,FALSE)/E186=\"-\",VLOOKUP($A186,Economática!$A$3:$AI$823,30,FALSE)/E186<33.33%,VLOOKUP($A186,Economática!$A$3:$AI$823,30,FALSE)/E186>100%),1/0,VLOOKUP($A186,Economática!$A$3:$AI$823,30,FALSE)/E186))","v":0.36992509016924074},"BOBR4",{"$f":"IF($A186=\"\",\"\",IF(OR(VLOOKUP($A186,Economática!$A$3:$AI$823,25,FALSE)=0,VLOOKUP($A186,Economática!$A$3:$AI$823,25,FALSE)=\"-\"),1/0,VLOOKUP($A186,Economática!$A$3:$AI$823,25,FALSE)))","v":19.2},{"$f":"CONCATENATE(Economática!B188,\" \",Economática!C188)","v":"Bombril PN"}]
[{"$f":"IF(Economática!AG189=\"\",\"\",Economática!AG189)","v":"CSNA3"},{"$f":"IF($A187=\"\",\"\",VLOOKUP(VLOOKUP($A187,Economática!$A$3:$AI$823,6,FALSE),Correção!$B$16:$C$36,2,FALSE))","v":"Siderurgia e Metalurgia"},{"$f":"IF(Economática!B189=\"\",\"\",Economática!B189)","v":"Sid Nacional"},{"$f":"IF($A187=\"\",\"\",IF(OR(VLOOKUP($A187,Economática!$A$3:$AI$823,8,FALSE)=0,VLOOKUP($A187,Economática!$A$3:$AI$823,8,FALSE)=\"-\"),1/0,VLOOKUP($A187,Economática!$A$3:$AI$823,8,FALSE)))","v":16.25},{"$f":"IF(A187=\"\",\"\",IF(ISERROR(VLOOKUP(A187,Correção!$B$2:$G$13,9,FALSE)),VLOOKUP($A187,Economática!$A$3:$AI$823,9,FALSE),VLOOKUP(A187,Correção!$B$2:$G$13,9,FALSE)))","v":1380.115},{"$f":"IF($A187=\"\",\"\",Economática!G189)","v":22426.86},{"$f":"IF($A187=\"\",\"\",IF(OR(VLOOKUP($A187,Economática!$A$3:$AI$823,10,FALSE)=0,VLOOKUP($A187,Economática!$A$3:$AI$823,10,FALSE)=\"-\"),1/0,VLOOKUP($A187,Economática!$A$3:$AI$823,10,FALSE)))","v":8702.74},{"$f":"IF($A187=\"\",\"\",IF(OR(VLOOKUP($A187,Economática!$A$3:$AI$823,11,FALSE)=0,VLOOKUP($A187,Economática!$A$3:$AI$823,11,FALSE)=\"-\"),1/0,VLOOKUP($A187,Economática!$A$3:$AI$823,11,FALSE)))","v":18524.599999999999},{"$f":"IF($A187=\"\",\"\",IF(OR(VLOOKUP($A187,Economática!$A$3:$AI$823,12,FALSE)=0,VLOOKUP($A187,Economática!$A$3:$AI$823,12,FALSE)=\"-\"),1/0,VLOOKUP($A187,Economática!$A$3:$AI$823,12,FALSE)))","v":22968.89},{"$f":"IF($A187=\"\",\"\",IF(OR(VLOOKUP($A187,Economática!$A$3:$AI$823,13,FALSE)=0,VLOOKUP($A187,Economática!$A$3:$AI$823,13,FALSE)=\"-\"),1/0,VLOOKUP($A187,Economática!$A$3:$AI$823,13,FALSE)))","v":10.27},{"$f":"IF($A187=\"\",\"\",IF(OR(VLOOKUP($A187,Economática!$A$3:$AI$823,14,FALSE)=0,VLOOKUP($A187,Economática!$A$3:$AI$823,14,FALSE)=\"-\"),1/0,VLOOKUP($A187,Economática!$A$3:$AI$823,14,FALSE)))","v":1471.86},{"$f":"IF($A187=\"\",\"\",IF(OR(VLOOKUP($A187,Economática!$A$3:$AI$823,15,FALSE)=0,VLOOKUP($A187,Economática!$A$3:$AI$823,15,FALSE)=\"-\"),1/0,VLOOKUP($A187,Economática!$A$3:$AI$823,15,FALSE)))","v":2632.31},{"$f":"IF($A187=\"\",\"\",IF(OR(VLOOKUP($A187,Economática!$A$3:$AI$823,16,FALSE)=0,VLOOKUP($A187,Economática!$A$3:$AI$823,16,FALSE)=\"-\"),1/0,VLOOKUP($A187,Economática!$A$3:$AI$823,16,FALSE)))","v":3353.85},{"$f":"IF($A187=\"\",\"\",IF(OR(VLOOKUP($A187,Economática!$A$3:$AI$823,17,FALSE)=0,VLOOKUP($A187,Economática!$A$3:$AI$823,17,FALSE)=\"-\"),1/0,VLOOKUP($A187,Economática!$A$3:$AI$823,17,FALSE)))","v":5074.1400000000003},{"$f":"IF($A187=\"\",\"\",IF(OR(VLOOKUP($A187,Economática!$A$3:$AI$823,18,FALSE)=0,VLOOKUP($A187,Economática!$A$3:$AI$823,18,FALSE)=\"-\"),1/0,VLOOKUP($A187,Economática!$A$3:$AI$823,18,FALSE)))","v":10.27},{"$f":"IF($A187=\"\",\"\",IF(OR(VLOOKUP($A187,Economática!$A$3:$AI$823,19,FALSE)=0,VLOOKUP($A187,Economática!$A$3:$AI$823,19,FALSE)=\"-\"),1/0,VLOOKUP($A187,Economática!$A$3:$AI$823,19,FALSE)))","v":5074.1400000000003},{"$f":"IF($A187=\"\",\"\",VLOOKUP($A187,Economática!$A$3:$AI$823,20,FALSE)/E187)","v":3.6766066595899618},6.3058078493458876,2.5769894021882767,4.4198364156290522,{"$f":"IF($A187=\"\",\"\",IF(OR(VLOOKUP($A187,Economática!$A$3:$AI$823,21,FALSE)/100=0,VLOOKUP($A187,Economática!$A$3:$AI$823,21,FALSE)/100=\"-\"),1/0,VLOOKUP($A187,Economática!$A$3:$AI$823,21,FALSE)/100))","v":0.62746599999999997},{"$f":"IF($A187=\"\",\"\",IF(OR(VLOOKUP($A187,Economática!$A$3:$AI$823,22,FALSE)/100=0,VLOOKUP($A187,Economática!$A$3:$AI$823,22,FALSE)/100=\"-\"),1/0,VLOOKUP($A187,Economática!$A$3:$AI$823,22,FALSE)/100))","v":2.5648880000000003},{"$f":"IF($A187=\"\",\"\",IF(OR(VLOOKUP($A187,Economática!$A$3:$AI$823,23,FALSE)=0,VLOOKUP($A187,Economática!$A$3:$AI$823,23,FALSE)=\"-\"),1/0,VLOOKUP($A187,Economática!$A$3:$AI$823,23,FALSE)))","v":4437.3},{"$f":"IF($A187=\"\",\"\",IF(OR(VLOOKUP($A187,Economática!$A$3:$AI$823,24,FALSE)=0,VLOOKUP($A187,Economática!$A$3:$AI$823,24,FALSE)=\"-\"),1/0,VLOOKUP($A187,Economática!$A$3:$AI$823,24,FALSE)))","v":8219.6},{"$f":"IF($A187=\"\",\"\",IF(OR(VLOOKUP($A187,Economática!$A$3:$AI$823,25,FALSE)=0,VLOOKUP($A187,Economática!$A$3:$AI$823,25,FALSE)=\"-\"),1/0,VLOOKUP($A187,Economática!$A$3:$AI$823,25,FALSE)))","v":8219.6},{"$f":"IF($A187=\"\",\"\",IF(ISERROR((F187+VLOOKUP($A187,Economática!$A$3:$AI$823,26,FALSE))/Y187),(F187+VLOOKUP($A187,Economática!$A$3:$AI$823,26,FALSE))/Y187,(F187+VLOOKUP($A187,Economática!$A$3:$AI$823,26,FALSE))/Y187))","v":5.8531092753905298},{"$f":"IF($A187=\"\",\"\",IF(OR(-VLOOKUP($A187,Economática!$A$3:$AI$823,27,FALSE)=0,-VLOOKUP($A187,Economática!$A$3:$AI$823,27,FALSE)=\"-\"),1/0,-VLOOKUP($A187,Economática!$A$3:$AI$823,27,FALSE)))","v":{"$error":"#DIV/0!"}},{"$error":"#DIV/0!"},{"$f":"IF($A187=\"\",\"\",IF(OR(VLOOKUP($A187,Economática!$A$3:$AI$823,28,FALSE)=0,VLOOKUP($A187,Economática!$A$3:$AI$823,28,FALSE)=\"-\"),1/0,VLOOKUP($A187,Economática!$A$3:$AI$823,28,FALSE)))","v":24.2},{"$f":"IF($A187=\"\",\"\",IF(OR(VLOOKUP($A187,Economática!$A$3:$AI$823,29,FALSE)=0,VLOOKUP($A187,Economática!$A$3:$AI$823,29,FALSE)=\"-\"),1/0,VLOOKUP($A187,Economática!$A$3:$AI$823,29,FALSE)))","v":93.9},{"$f":"IF($A187=\"\",\"\",IF(OR(VLOOKUP($A187,Economática!$A$3:$AI$823,30,FALSE)/E187=0,VLOOKUP($A187,Economática!$A$3:$AI$823,30,FALSE)/E187=\"-\",VLOOKUP($A187,Economática!$A$3:$AI$823,30,FALSE)/E187<33.33%,VLOOKUP($A187,Economática!$A$3:$AI$823,30,FALSE)/E187>100%),1/0,VLOOKUP($A187,Economática!$A$3:$AI$823,30,FALSE)/E187))","v":{"$error":"#DIV/0!"}},"CSNA3",{"$f":"IF($A187=\"\",\"\",IF(OR(VLOOKUP($A187,Economática!$A$3:$AI$823,25,FALSE)=0,VLOOKUP($A187,Economática!$A$3:$AI$823,25,FALSE)=\"-\"),1/0,VLOOKUP($A187,Economática!$A$3:$AI$823,25,FALSE)))","v":8219.6},{"$f":"CONCATENATE(Economática!B189,\" \",Economática!C189)","v":"Sid Nacional ON"}]
[{"$f":"IF(Economática!AG190=\"\",\"\",Economática!AG190)","v":"FESA4"},{"$f":"IF($A188=\"\",\"\",VLOOKUP(VLOOKUP($A188,Economática!$A$3:$AI$823,6,FALSE),Correção!$B$16:$C$36,2,FALSE))","v":"Siderurgia e Metalurgia"},{"$f":"IF(Economática!B190=\"\",\"\",Economática!B190)","v":"Ferbasa"},{"$f":"IF($A188=\"\",\"\",IF(OR(VLOOKUP($A188,Economática!$A$3:$AI$823,8,FALSE)=0,VLOOKUP($A188,Economática!$A$3:$AI$823,8,FALSE)=\"-\"),1/0,VLOOKUP($A188,Economática!$A$3:$AI$823,8,FALSE)))","v":21.71},{"$f":"IF(A188=\"\",\"\",IF(ISERROR(VLOOKUP(A188,Correção!$B$2:$G$13,9,FALSE)),VLOOKUP($A188,Economática!$A$3:$AI$823,9,FALSE),VLOOKUP(A188,Correção!$B$2:$G$13,9,FALSE)))","v":85.096999999999994},{"$f":"IF($A188=\"\",\"\",Economática!G190)","v":2090.88},{"$f":"IF($A188=\"\",\"\",IF(OR(VLOOKUP($A188,Economática!$A$3:$AI$823,10,FALSE)=0,VLOOKUP($A188,Economática!$A$3:$AI$823,10,FALSE)=\"-\"),1/0,VLOOKUP($A188,Economática!$A$3:$AI$823,10,FALSE)))","v":1743.32},{"$f":"IF($A188=\"\",\"\",IF(OR(VLOOKUP($A188,Economática!$A$3:$AI$823,11,FALSE)=0,VLOOKUP($A188,Economática!$A$3:$AI$823,11,FALSE)=\"-\"),1/0,VLOOKUP($A188,Economática!$A$3:$AI$823,11,FALSE)))","v":1108.72},{"$f":"IF($A188=\"\",\"\",IF(OR(VLOOKUP($A188,Economática!$A$3:$AI$823,12,FALSE)=0,VLOOKUP($A188,Economática!$A$3:$AI$823,12,FALSE)=\"-\"),1/0,VLOOKUP($A188,Economática!$A$3:$AI$823,12,FALSE)))","v":1381.06},{"$f":"IF($A188=\"\",\"\",IF(OR(VLOOKUP($A188,Economática!$A$3:$AI$823,13,FALSE)=0,VLOOKUP($A188,Economática!$A$3:$AI$823,13,FALSE)=\"-\"),1/0,VLOOKUP($A188,Economática!$A$3:$AI$823,13,FALSE)))","v":269.85000000000002},{"$f":"IF($A188=\"\",\"\",IF(OR(VLOOKUP($A188,Economática!$A$3:$AI$823,14,FALSE)=0,VLOOKUP($A188,Economática!$A$3:$AI$823,14,FALSE)=\"-\"),1/0,VLOOKUP($A188,Economática!$A$3:$AI$823,14,FALSE)))","v":63.4},{"$f":"IF($A188=\"\",\"\",IF(OR(VLOOKUP($A188,Economática!$A$3:$AI$823,15,FALSE)=0,VLOOKUP($A188,Economática!$A$3:$AI$823,15,FALSE)=\"-\"),1/0,VLOOKUP($A188,Economática!$A$3:$AI$823,15,FALSE)))","v":139.74},{"$f":"IF($A188=\"\",\"\",IF(OR(VLOOKUP($A188,Economática!$A$3:$AI$823,16,FALSE)=0,VLOOKUP($A188,Economática!$A$3:$AI$823,16,FALSE)=\"-\"),1/0,VLOOKUP($A188,Economática!$A$3:$AI$823,16,FALSE)))","v":288.89},{"$f":"IF($A188=\"\",\"\",IF(OR(VLOOKUP($A188,Economática!$A$3:$AI$823,17,FALSE)=0,VLOOKUP($A188,Economática!$A$3:$AI$823,17,FALSE)=\"-\"),1/0,VLOOKUP($A188,Economática!$A$3:$AI$823,17,FALSE)))","v":308.8},{"$f":"IF($A188=\"\",\"\",IF(OR(VLOOKUP($A188,Economática!$A$3:$AI$823,18,FALSE)=0,VLOOKUP($A188,Economática!$A$3:$AI$823,18,FALSE)=\"-\"),1/0,VLOOKUP($A188,Economática!$A$3:$AI$823,18,FALSE)))","v":269.85000000000002},{"$f":"IF($A188=\"\",\"\",IF(OR(VLOOKUP($A188,Economática!$A$3:$AI$823,19,FALSE)=0,VLOOKUP($A188,Economática!$A$3:$AI$823,19,FALSE)=\"-\"),1/0,VLOOKUP($A188,Economática!$A$3:$AI$823,19,FALSE)))","v":308.8},{"$f":"IF($A188=\"\",\"\",VLOOKUP($A188,Economática!$A$3:$AI$823,20,FALSE)/E188)","v":3.6288000752082921},20.486268611114376,1.0597342255007687,5.9826938795336781,{"$f":"IF($A188=\"\",\"\",IF(OR(VLOOKUP($A188,Economática!$A$3:$AI$823,21,FALSE)/100=0,VLOOKUP($A188,Economática!$A$3:$AI$823,21,FALSE)/100=\"-\"),1/0,VLOOKUP($A188,Economática!$A$3:$AI$823,21,FALSE)/100))","v":0.20307099999999997},{"$f":"IF($A188=\"\",\"\",IF(OR(VLOOKUP($A188,Economática!$A$3:$AI$823,22,FALSE)/100=0,VLOOKUP($A188,Economática!$A$3:$AI$823,22,FALSE)/100=\"-\"),1/0,VLOOKUP($A188,Economática!$A$3:$AI$823,22,FALSE)/100))","v":5.9785000000000005E-2},{"$f":"IF($A188=\"\",\"\",IF(OR(VLOOKUP($A188,Economática!$A$3:$AI$823,23,FALSE)=0,VLOOKUP($A188,Economática!$A$3:$AI$823,23,FALSE)=\"-\"),1/0,VLOOKUP($A188,Economática!$A$3:$AI$823,23,FALSE)))","v":356.1},{"$f":"IF($A188=\"\",\"\",IF(OR(VLOOKUP($A188,Economática!$A$3:$AI$823,24,FALSE)=0,VLOOKUP($A188,Economática!$A$3:$AI$823,24,FALSE)=\"-\"),1/0,VLOOKUP($A188,Economática!$A$3:$AI$823,24,FALSE)))","v":522.70000000000005},{"$f":"IF($A188=\"\",\"\",IF(OR(VLOOKUP($A188,Economática!$A$3:$AI$823,25,FALSE)=0,VLOOKUP($A188,Economática!$A$3:$AI$823,25,FALSE)=\"-\"),1/0,VLOOKUP($A188,Economática!$A$3:$AI$823,25,FALSE)))","v":522.70000000000005},{"$f":"IF($A188=\"\",\"\",IF(ISERROR((F188+VLOOKUP($A188,Economática!$A$3:$AI$823,26,FALSE))/Y188),(F188+VLOOKUP($A188,Economática!$A$3:$AI$823,26,FALSE))/Y188,(F188+VLOOKUP($A188,Economática!$A$3:$AI$823,26,FALSE))/Y188))","v":4.2002104457623881},{"$f":"IF($A188=\"\",\"\",IF(OR(-VLOOKUP($A188,Economática!$A$3:$AI$823,27,FALSE)=0,-VLOOKUP($A188,Economática!$A$3:$AI$823,27,FALSE)=\"-\"),1/0,-VLOOKUP($A188,Economática!$A$3:$AI$823,27,FALSE)))","v":108.5},5.1892026323844501E-2,{"$f":"IF($A188=\"\",\"\",IF(OR(VLOOKUP($A188,Economática!$A$3:$AI$823,28,FALSE)=0,VLOOKUP($A188,Economática!$A$3:$AI$823,28,FALSE)=\"-\"),1/0,VLOOKUP($A188,Economática!$A$3:$AI$823,28,FALSE)))","v":-20.8},{"$f":"IF($A188=\"\",\"\",IF(OR(VLOOKUP($A188,Economática!$A$3:$AI$823,29,FALSE)=0,VLOOKUP($A188,Economática!$A$3:$AI$823,29,FALSE)=\"-\"),1/0,VLOOKUP($A188,Economática!$A$3:$AI$823,29,FALSE)))","v":13.7},{"$f":"IF($A188=\"\",\"\",IF(OR(VLOOKUP($A188,Economática!$A$3:$AI$823,30,FALSE)/E188=0,VLOOKUP($A188,Economática!$A$3:$AI$823,30,FALSE)/E188=\"-\",VLOOKUP($A188,Economática!$A$3:$AI$823,30,FALSE)/E188<33.33%,VLOOKUP($A188,Economática!$A$3:$AI$823,30,FALSE)/E188>100%),1/0,VLOOKUP($A188,Economática!$A$3:$AI$823,30,FALSE)/E188))","v":0.34548809006192932},"FESA4",{"$f":"IF($A188=\"\",\"\",IF(OR(VLOOKUP($A188,Economática!$A$3:$AI$823,25,FALSE)=0,VLOOKUP($A188,Economática!$A$3:$AI$823,25,FALSE)=\"-\"),1/0,VLOOKUP($A188,Economática!$A$3:$AI$823,25,FALSE)))","v":522.70000000000005},{"$f":"CONCATENATE(Economática!B190,\" \",Economática!C190)","v":"Ferbasa PN"}]
[{"$f":"IF(Economática!AG191=\"\",\"\",Economática!AG191)","v":"GGBR4"},{"$f":"IF($A189=\"\",\"\",VLOOKUP(VLOOKUP($A189,Economática!$A$3:$AI$823,6,FALSE),Correção!$B$16:$C$36,2,FALSE))","v":"Siderurgia e Metalurgia"},{"$f":"IF(Economática!B191=\"\",\"\",Economática!B191)","v":"Gerdau"},{"$f":"IF($A189=\"\",\"\",IF(OR(VLOOKUP($A189,Economática!$A$3:$AI$823,8,FALSE)=0,VLOOKUP($A189,Economática!$A$3:$AI$823,8,FALSE)=\"-\"),1/0,VLOOKUP($A189,Economática!$A$3:$AI$823,8,FALSE)))","v":15.14},{"$f":"IF(A189=\"\",\"\",IF(ISERROR(VLOOKUP(A189,Correção!$B$2:$G$13,9,FALSE)),VLOOKUP($A189,Economática!$A$3:$AI$823,9,FALSE),VLOOKUP(A189,Correção!$B$2:$G$13,9,FALSE)))","v":1696.164},{"$f":"IF($A189=\"\",\"\",Economática!G191)","v":23998.44},{"$f":"IF($A189=\"\",\"\",IF(OR(VLOOKUP($A189,Economática!$A$3:$AI$823,10,FALSE)=0,VLOOKUP($A189,Economática!$A$3:$AI$823,10,FALSE)=\"-\"),1/0,VLOOKUP($A189,Economática!$A$3:$AI$823,10,FALSE)))","v":25730.6},{"$f":"IF($A189=\"\",\"\",IF(OR(VLOOKUP($A189,Economática!$A$3:$AI$823,11,FALSE)=0,VLOOKUP($A189,Economática!$A$3:$AI$823,11,FALSE)=\"-\"),1/0,VLOOKUP($A189,Economática!$A$3:$AI$823,11,FALSE)))","v":36917.620000000003},{"$f":"IF($A189=\"\",\"\",IF(OR(VLOOKUP($A189,Economática!$A$3:$AI$823,12,FALSE)=0,VLOOKUP($A189,Economática!$A$3:$AI$823,12,FALSE)=\"-\"),1/0,VLOOKUP($A189,Economática!$A$3:$AI$823,12,FALSE)))","v":46159.48},{"$f":"IF($A189=\"\",\"\",IF(OR(VLOOKUP($A189,Economática!$A$3:$AI$823,13,FALSE)=0,VLOOKUP($A189,Economática!$A$3:$AI$823,13,FALSE)=\"-\"),1/0,VLOOKUP($A189,Economática!$A$3:$AI$823,13,FALSE)))","v":-359.36},{"$f":"IF($A189=\"\",\"\",IF(OR(VLOOKUP($A189,Economática!$A$3:$AI$823,14,FALSE)=0,VLOOKUP($A189,Economática!$A$3:$AI$823,14,FALSE)=\"-\"),1/0,VLOOKUP($A189,Economática!$A$3:$AI$823,14,FALSE)))","v":441.03},{"$f":"IF($A189=\"\",\"\",IF(OR(VLOOKUP($A189,Economática!$A$3:$AI$823,15,FALSE)=0,VLOOKUP($A189,Economática!$A$3:$AI$823,15,FALSE)=\"-\"),1/0,VLOOKUP($A189,Economática!$A$3:$AI$823,15,FALSE)))","v":1135.6199999999999},{"$f":"IF($A189=\"\",\"\",IF(OR(VLOOKUP($A189,Economática!$A$3:$AI$823,16,FALSE)=0,VLOOKUP($A189,Economática!$A$3:$AI$823,16,FALSE)=\"-\"),1/0,VLOOKUP($A189,Economática!$A$3:$AI$823,16,FALSE)))","v":1920.53},{"$f":"IF($A189=\"\",\"\",IF(OR(VLOOKUP($A189,Economática!$A$3:$AI$823,17,FALSE)=0,VLOOKUP($A189,Economática!$A$3:$AI$823,17,FALSE)=\"-\"),1/0,VLOOKUP($A189,Economática!$A$3:$AI$823,17,FALSE)))","v":2303.87},{"$f":"IF($A189=\"\",\"\",IF(OR(VLOOKUP($A189,Economática!$A$3:$AI$823,18,FALSE)=0,VLOOKUP($A189,Economática!$A$3:$AI$823,18,FALSE)=\"-\"),1/0,VLOOKUP($A189,Economática!$A$3:$AI$823,18,FALSE)))","v":-359.36},{"$f":"IF($A189=\"\",\"\",IF(OR(VLOOKUP($A189,Economática!$A$3:$AI$823,19,FALSE)=0,VLOOKUP($A189,Economática!$A$3:$AI$823,19,FALSE)=\"-\"),1/0,VLOOKUP($A189,Economática!$A$3:$AI$823,19,FALSE)))","v":2303.87},{"$f":"IF($A189=\"\",\"\",VLOOKUP($A189,Economática!$A$3:$AI$823,20,FALSE)/E189)","v":1.3582825717324503},15.169877441096498,0.99803047577592441,11.146428817598217,{"$f":"IF($A189=\"\",\"\",IF(OR(VLOOKUP($A189,Economática!$A$3:$AI$823,21,FALSE)/100=0,VLOOKUP($A189,Economática!$A$3:$AI$823,21,FALSE)/100=\"-\"),1/0,VLOOKUP($A189,Economática!$A$3:$AI$823,21,FALSE)/100))","v":9.7363000000000005E-2},{"$f":"IF($A189=\"\",\"\",IF(OR(VLOOKUP($A189,Economática!$A$3:$AI$823,22,FALSE)/100=0,VLOOKUP($A189,Economática!$A$3:$AI$823,22,FALSE)/100=\"-\"),1/0,VLOOKUP($A189,Economática!$A$3:$AI$823,22,FALSE)/100))","v":0.44555700000000004},{"$f":"IF($A189=\"\",\"\",IF(OR(VLOOKUP($A189,Economática!$A$3:$AI$823,23,FALSE)=0,VLOOKUP($A189,Economática!$A$3:$AI$823,23,FALSE)=\"-\"),1/0,VLOOKUP($A189,Economática!$A$3:$AI$823,23,FALSE)))","v":3192.6},{"$f":"IF($A189=\"\",\"\",IF(OR(VLOOKUP($A189,Economática!$A$3:$AI$823,24,FALSE)=0,VLOOKUP($A189,Economática!$A$3:$AI$823,24,FALSE)=\"-\"),1/0,VLOOKUP($A189,Economática!$A$3:$AI$823,24,FALSE)))","v":5939},{"$f":"IF($A189=\"\",\"\",IF(OR(VLOOKUP($A189,Economática!$A$3:$AI$823,25,FALSE)=0,VLOOKUP($A189,Economática!$A$3:$AI$823,25,FALSE)=\"-\"),1/0,VLOOKUP($A189,Economática!$A$3:$AI$823,25,FALSE)))","v":5939},{"$f":"IF($A189=\"\",\"\",IF(ISERROR((F189+VLOOKUP($A189,Economática!$A$3:$AI$823,26,FALSE))/Y189),(F189+VLOOKUP($A189,Economática!$A$3:$AI$823,26,FALSE))/Y189,(F189+VLOOKUP($A189,Economática!$A$3:$AI$823,26,FALSE))/Y189))","v":5.9867890217208286},{"$f":"IF($A189=\"\",\"\",IF(OR(-VLOOKUP($A189,Economática!$A$3:$AI$823,27,FALSE)=0,-VLOOKUP($A189,Economática!$A$3:$AI$823,27,FALSE)=\"-\"),1/0,-VLOOKUP($A189,Economática!$A$3:$AI$823,27,FALSE)))","v":592.61},2.4693688423080836E-2,{"$f":"IF($A189=\"\",\"\",IF(OR(VLOOKUP($A189,Economática!$A$3:$AI$823,28,FALSE)=0,VLOOKUP($A189,Economática!$A$3:$AI$823,28,FALSE)=\"-\"),1/0,VLOOKUP($A189,Economática!$A$3:$AI$823,28,FALSE)))","v":0.7},{"$f":"IF($A189=\"\",\"\",IF(OR(VLOOKUP($A189,Economática!$A$3:$AI$823,29,FALSE)=0,VLOOKUP($A189,Economática!$A$3:$AI$823,29,FALSE)=\"-\"),1/0,VLOOKUP($A189,Economática!$A$3:$AI$823,29,FALSE)))","v":26.1},{"$f":"IF($A189=\"\",\"\",IF(OR(VLOOKUP($A189,Economática!$A$3:$AI$823,30,FALSE)/E189=0,VLOOKUP($A189,Economática!$A$3:$AI$823,30,FALSE)/E189=\"-\",VLOOKUP($A189,Economática!$A$3:$AI$823,30,FALSE)/E189<33.33%,VLOOKUP($A189,Economática!$A$3:$AI$823,30,FALSE)/E189>100%),1/0,VLOOKUP($A189,Economática!$A$3:$AI$823,30,FALSE)/E189))","v":0.33817484630023986},"GGBR4",{"$f":"IF($A189=\"\",\"\",IF(OR(VLOOKUP($A189,Economática!$A$3:$AI$823,25,FALSE)=0,VLOOKUP($A189,Economática!$A$3:$AI$823,25,FALSE)=\"-\"),1/0,VLOOKUP($A189,Economática!$A$3:$AI$823,25,FALSE)))","v":5939},{"$f":"CONCATENATE(Economática!B191,\" \",Economática!C191)","v":"Gerdau PN"}]
[{"$f":"IF(Economática!AG192=\"\",\"\",Economática!AG192)","v":"GOAU4"},{"$f":"IF($A190=\"\",\"\",VLOOKUP(VLOOKUP($A190,Economática!$A$3:$AI$823,6,FALSE),Correção!$B$16:$C$36,2,FALSE))","v":"Siderurgia e Metalurgia"},{"$f":"IF(Economática!B192=\"\",\"\",Economática!B192)","v":"Gerdau Met"},{"$f":"IF($A190=\"\",\"\",IF(OR(VLOOKUP($A190,Economática!$A$3:$AI$823,8,FALSE)=0,VLOOKUP($A190,Economática!$A$3:$AI$823,8,FALSE)=\"-\"),1/0,VLOOKUP($A190,Economática!$A$3:$AI$823,8,FALSE)))","v":7.11},{"$f":"IF(A190=\"\",\"\",IF(ISERROR(VLOOKUP(A190,Correção!$B$2:$G$13,9,FALSE)),VLOOKUP($A190,Economática!$A$3:$AI$823,9,FALSE),VLOOKUP(A190,Correção!$B$2:$G$13,9,FALSE)))","v":979.42100000000005},{"$f":"IF($A190=\"\",\"\",Economática!G192)","v":6983.56},{"$f":"IF($A190=\"\",\"\",IF(OR(VLOOKUP($A190,Economática!$A$3:$AI$823,10,FALSE)=0,VLOOKUP($A190,Economática!$A$3:$AI$823,10,FALSE)=\"-\"),1/0,VLOOKUP($A190,Economática!$A$3:$AI$823,10,FALSE)))","v":9345.17},{"$f":"IF($A190=\"\",\"\",IF(OR(VLOOKUP($A190,Economática!$A$3:$AI$823,11,FALSE)=0,VLOOKUP($A190,Economática!$A$3:$AI$823,11,FALSE)=\"-\"),1/0,VLOOKUP($A190,Economática!$A$3:$AI$823,11,FALSE)))","v":36917.620000000003},{"$f":"IF($A190=\"\",\"\",IF(OR(VLOOKUP($A190,Economática!$A$3:$AI$823,12,FALSE)=0,VLOOKUP($A190,Economática!$A$3:$AI$823,12,FALSE)=\"-\"),1/0,VLOOKUP($A190,Economática!$A$3:$AI$823,12,FALSE)))","v":46159.48},{"$f":"IF($A190=\"\",\"\",IF(OR(VLOOKUP($A190,Economática!$A$3:$AI$823,13,FALSE)=0,VLOOKUP($A190,Economática!$A$3:$AI$823,13,FALSE)=\"-\"),1/0,VLOOKUP($A190,Economática!$A$3:$AI$823,13,FALSE)))","v":-203.29},{"$f":"IF($A190=\"\",\"\",IF(OR(VLOOKUP($A190,Economática!$A$3:$AI$823,14,FALSE)=0,VLOOKUP($A190,Economática!$A$3:$AI$823,14,FALSE)=\"-\"),1/0,VLOOKUP($A190,Economática!$A$3:$AI$823,14,FALSE)))","v":146.97},{"$f":"IF($A190=\"\",\"\",IF(OR(VLOOKUP($A190,Economática!$A$3:$AI$823,15,FALSE)=0,VLOOKUP($A190,Economática!$A$3:$AI$823,15,FALSE)=\"-\"),1/0,VLOOKUP($A190,Economática!$A$3:$AI$823,15,FALSE)))","v":397.57},{"$f":"IF($A190=\"\",\"\",IF(OR(VLOOKUP($A190,Economática!$A$3:$AI$823,16,FALSE)=0,VLOOKUP($A190,Economática!$A$3:$AI$823,16,FALSE)=\"-\"),1/0,VLOOKUP($A190,Economática!$A$3:$AI$823,16,FALSE)))","v":680.05},{"$f":"IF($A190=\"\",\"\",IF(OR(VLOOKUP($A190,Economática!$A$3:$AI$823,17,FALSE)=0,VLOOKUP($A190,Economática!$A$3:$AI$823,17,FALSE)=\"-\"),1/0,VLOOKUP($A190,Economática!$A$3:$AI$823,17,FALSE)))","v":799.01},{"$f":"IF($A190=\"\",\"\",IF(OR(VLOOKUP($A190,Economática!$A$3:$AI$823,18,FALSE)=0,VLOOKUP($A190,Economática!$A$3:$AI$823,18,FALSE)=\"-\"),1/0,VLOOKUP($A190,Economática!$A$3:$AI$823,18,FALSE)))","v":-203.29},{"$f":"IF($A190=\"\",\"\",IF(OR(VLOOKUP($A190,Economática!$A$3:$AI$823,19,FALSE)=0,VLOOKUP($A190,Economática!$A$3:$AI$823,19,FALSE)=\"-\"),1/0,VLOOKUP($A190,Economática!$A$3:$AI$823,19,FALSE)))","v":799.01},{"$f":"IF($A190=\"\",\"\",VLOOKUP($A190,Economática!$A$3:$AI$823,20,FALSE)/E190)","v":0.81579831349338017},9.5415250438779644,0.74516389857006349,8.7153894319220058,{"$f":"IF($A190=\"\",\"\",IF(OR(VLOOKUP($A190,Economática!$A$3:$AI$823,21,FALSE)/100=0,VLOOKUP($A190,Economática!$A$3:$AI$823,21,FALSE)/100=\"-\"),1/0,VLOOKUP($A190,Economática!$A$3:$AI$823,21,FALSE)/100))","v":9.5991999999999994E-2},{"$f":"IF($A190=\"\",\"\",IF(OR(VLOOKUP($A190,Economática!$A$3:$AI$823,22,FALSE)/100=0,VLOOKUP($A190,Economática!$A$3:$AI$823,22,FALSE)/100=\"-\"),1/0,VLOOKUP($A190,Economática!$A$3:$AI$823,22,FALSE)/100))","v":0.48102800000000001},{"$f":"IF($A190=\"\",\"\",IF(OR(VLOOKUP($A190,Economática!$A$3:$AI$823,23,FALSE)=0,VLOOKUP($A190,Economática!$A$3:$AI$823,23,FALSE)=\"-\"),1/0,VLOOKUP($A190,Economática!$A$3:$AI$823,23,FALSE)))","v":3184.3},{"$f":"IF($A190=\"\",\"\",IF(OR(VLOOKUP($A190,Economática!$A$3:$AI$823,24,FALSE)=0,VLOOKUP($A190,Economática!$A$3:$AI$823,24,FALSE)=\"-\"),1/0,VLOOKUP($A190,Economática!$A$3:$AI$823,24,FALSE)))","v":5914.5},{"$f":"IF($A190=\"\",\"\",IF(OR(VLOOKUP($A190,Economática!$A$3:$AI$823,25,FALSE)=0,VLOOKUP($A190,Economática!$A$3:$AI$823,25,FALSE)=\"-\"),1/0,VLOOKUP($A190,Economática!$A$3:$AI$823,25,FALSE)))","v":5914.5},{"$f":"IF($A190=\"\",\"\",IF(ISERROR((F190+VLOOKUP($A190,Economática!$A$3:$AI$823,26,FALSE))/Y190),(F190+VLOOKUP($A190,Economática!$A$3:$AI$823,26,FALSE))/Y190,(F190+VLOOKUP($A190,Economática!$A$3:$AI$823,26,FALSE))/Y190))","v":3.2443043367993916},{"$f":"IF($A190=\"\",\"\",IF(OR(-VLOOKUP($A190,Economática!$A$3:$AI$823,27,FALSE)=0,-VLOOKUP($A190,Economática!$A$3:$AI$823,27,FALSE)=\"-\"),1/0,-VLOOKUP($A190,Economática!$A$3:$AI$823,27,FALSE)))","v":195.4},2.7979998739897701E-2,{"$f":"IF($A190=\"\",\"\",IF(OR(VLOOKUP($A190,Economática!$A$3:$AI$823,28,FALSE)=0,VLOOKUP($A190,Economática!$A$3:$AI$823,28,FALSE)=\"-\"),1/0,VLOOKUP($A190,Economática!$A$3:$AI$823,28,FALSE)))","v":-0.3},{"$f":"IF($A190=\"\",\"\",IF(OR(VLOOKUP($A190,Economática!$A$3:$AI$823,29,FALSE)=0,VLOOKUP($A190,Economática!$A$3:$AI$823,29,FALSE)=\"-\"),1/0,VLOOKUP($A190,Economática!$A$3:$AI$823,29,FALSE)))","v":27},{"$f":"IF($A190=\"\",\"\",IF(OR(VLOOKUP($A190,Economática!$A$3:$AI$823,30,FALSE)/E190=0,VLOOKUP($A190,Economática!$A$3:$AI$823,30,FALSE)/E190=\"-\",VLOOKUP($A190,Economática!$A$3:$AI$823,30,FALSE)/E190<33.33%,VLOOKUP($A190,Economática!$A$3:$AI$823,30,FALSE)/E190>100%),1/0,VLOOKUP($A190,Economática!$A$3:$AI$823,30,FALSE)/E190))","v":0.33826107465533206},"GOAU4",{"$f":"IF($A190=\"\",\"\",IF(OR(VLOOKUP($A190,Economática!$A$3:$AI$823,25,FALSE)=0,VLOOKUP($A190,Economática!$A$3:$AI$823,25,FALSE)=\"-\"),1/0,VLOOKUP($A190,Economática!$A$3:$AI$823,25,FALSE)))","v":5914.5},{"$f":"CONCATENATE(Economática!B192,\" \",Economática!C192)","v":"Gerdau Met PN"}]
[{"$f":"IF(Economática!AG193=\"\",\"\",Economática!AG193)","v":"MTSA4"},{"$f":"IF($A191=\"\",\"\",VLOOKUP(VLOOKUP($A191,Economática!$A$3:$AI$823,6,FALSE),Correção!$B$16:$C$36,2,FALSE))","v":"Siderurgia e Metalurgia"},{"$f":"IF(Economática!B193=\"\",\"\",Economática!B193)","v":"Metisa"},{"$f":"IF($A191=\"\",\"\",IF(OR(VLOOKUP($A191,Economática!$A$3:$AI$823,8,FALSE)=0,VLOOKUP($A191,Economática!$A$3:$AI$823,8,FALSE)=\"-\"),1/0,VLOOKUP($A191,Economática!$A$3:$AI$823,8,FALSE)))","v":16.96},{"$f":"IF(A191=\"\",\"\",IF(ISERROR(VLOOKUP(A191,Correção!$B$2:$G$13,9,FALSE)),VLOOKUP($A191,Economática!$A$3:$AI$823,9,FALSE),VLOOKUP(A191,Correção!$B$2:$G$13,9,FALSE)))","v":9.0050000000000008},{"$f":"IF($A191=\"\",\"\",Economática!G193)","v":152.72},{"$f":"IF($A191=\"\",\"\",IF(OR(VLOOKUP($A191,Economática!$A$3:$AI$823,10,FALSE)=0,VLOOKUP($A191,Economática!$A$3:$AI$823,10,FALSE)=\"-\"),1/0,VLOOKUP($A191,Economática!$A$3:$AI$823,10,FALSE)))","v":230.64},{"$f":"IF($A191=\"\",\"\",IF(OR(VLOOKUP($A191,Economática!$A$3:$AI$823,11,FALSE)=0,VLOOKUP($A191,Economática!$A$3:$AI$823,11,FALSE)=\"-\"),1/0,VLOOKUP($A191,Economática!$A$3:$AI$823,11,FALSE)))","v":240.18},{"$f":"IF($A191=\"\",\"\",IF(OR(VLOOKUP($A191,Economática!$A$3:$AI$823,12,FALSE)=0,VLOOKUP($A191,Economática!$A$3:$AI$823,12,FALSE)=\"-\"),1/0,VLOOKUP($A191,Economática!$A$3:$AI$823,12,FALSE)))","v":270.73},{"$f":"IF($A191=\"\",\"\",IF(OR(VLOOKUP($A191,Economática!$A$3:$AI$823,13,FALSE)=0,VLOOKUP($A191,Economática!$A$3:$AI$823,13,FALSE)=\"-\"),1/0,VLOOKUP($A191,Economática!$A$3:$AI$823,13,FALSE)))","v":13.14},{"$f":"IF($A191=\"\",\"\",IF(OR(VLOOKUP($A191,Economática!$A$3:$AI$823,14,FALSE)=0,VLOOKUP($A191,Economática!$A$3:$AI$823,14,FALSE)=\"-\"),1/0,VLOOKUP($A191,Economática!$A$3:$AI$823,14,FALSE)))","v":2.95},{"$f":"IF($A191=\"\",\"\",IF(OR(VLOOKUP($A191,Economática!$A$3:$AI$823,15,FALSE)=0,VLOOKUP($A191,Economática!$A$3:$AI$823,15,FALSE)=\"-\"),1/0,VLOOKUP($A191,Economática!$A$3:$AI$823,15,FALSE)))","v":7.54},{"$f":"IF($A191=\"\",\"\",IF(OR(VLOOKUP($A191,Economática!$A$3:$AI$823,16,FALSE)=0,VLOOKUP($A191,Economática!$A$3:$AI$823,16,FALSE)=\"-\"),1/0,VLOOKUP($A191,Economática!$A$3:$AI$823,16,FALSE)))","v":13.58},{"$f":"IF($A191=\"\",\"\",IF(OR(VLOOKUP($A191,Economática!$A$3:$AI$823,17,FALSE)=0,VLOOKUP($A191,Economática!$A$3:$AI$823,17,FALSE)=\"-\"),1/0,VLOOKUP($A191,Economática!$A$3:$AI$823,17,FALSE)))","v":16.34},{"$f":"IF($A191=\"\",\"\",IF(OR(VLOOKUP($A191,Economática!$A$3:$AI$823,18,FALSE)=0,VLOOKUP($A191,Economática!$A$3:$AI$823,18,FALSE)=\"-\"),1/0,VLOOKUP($A191,Economática!$A$3:$AI$823,18,FALSE)))","v":13.14},{"$f":"IF($A191=\"\",\"\",IF(OR(VLOOKUP($A191,Economática!$A$3:$AI$823,19,FALSE)=0,VLOOKUP($A191,Economática!$A$3:$AI$823,19,FALSE)=\"-\"),1/0,VLOOKUP($A191,Economática!$A$3:$AI$823,19,FALSE)))","v":16.34},{"$f":"IF($A191=\"\",\"\",VLOOKUP($A191,Economática!$A$3:$AI$823,20,FALSE)/E191)","v":1.8145474736257632},25.612437534702938,0.66217828650711086,9.3466829865361092,{"$f":"IF($A191=\"\",\"\",IF(OR(VLOOKUP($A191,Economática!$A$3:$AI$823,21,FALSE)/100=0,VLOOKUP($A191,Economática!$A$3:$AI$823,21,FALSE)/100=\"-\"),1/0,VLOOKUP($A191,Economática!$A$3:$AI$823,21,FALSE)/100))","v":7.4279999999999999E-2},{"$f":"IF($A191=\"\",\"\",IF(OR(VLOOKUP($A191,Economática!$A$3:$AI$823,22,FALSE)/100=0,VLOOKUP($A191,Economática!$A$3:$AI$823,22,FALSE)/100=\"-\"),1/0,VLOOKUP($A191,Economática!$A$3:$AI$823,22,FALSE)/100))","v":-0.16652400000000001},{"$f":"IF($A191=\"\",\"\",IF(OR(VLOOKUP($A191,Economática!$A$3:$AI$823,23,FALSE)=0,VLOOKUP($A191,Economática!$A$3:$AI$823,23,FALSE)=\"-\"),1/0,VLOOKUP($A191,Economática!$A$3:$AI$823,23,FALSE)))","v":15.8},{"$f":"IF($A191=\"\",\"\",IF(OR(VLOOKUP($A191,Economática!$A$3:$AI$823,24,FALSE)=0,VLOOKUP($A191,Economática!$A$3:$AI$823,24,FALSE)=\"-\"),1/0,VLOOKUP($A191,Economática!$A$3:$AI$823,24,FALSE)))","v":24.7},{"$f":"IF($A191=\"\",\"\",IF(OR(VLOOKUP($A191,Economática!$A$3:$AI$823,25,FALSE)=0,VLOOKUP($A191,Economática!$A$3:$AI$823,25,FALSE)=\"-\"),1/0,VLOOKUP($A191,Economática!$A$3:$AI$823,25,FALSE)))","v":24.7},{"$f":"IF($A191=\"\",\"\",IF(ISERROR((F191+VLOOKUP($A191,Economática!$A$3:$AI$823,26,FALSE))/Y191),(F191+VLOOKUP($A191,Economática!$A$3:$AI$823,26,FALSE))/Y191,(F191+VLOOKUP($A191,Economática!$A$3:$AI$823,26,FALSE))/Y191))","v":4.6280566801619436},{"$f":"IF($A191=\"\",\"\",IF(OR(-VLOOKUP($A191,Economática!$A$3:$AI$823,27,FALSE)=0,-VLOOKUP($A191,Economática!$A$3:$AI$823,27,FALSE)=\"-\"),1/0,-VLOOKUP($A191,Economática!$A$3:$AI$823,27,FALSE)))","v":5.6},3.6668412781561022E-2,{"$f":"IF($A191=\"\",\"\",IF(OR(VLOOKUP($A191,Economática!$A$3:$AI$823,28,FALSE)=0,VLOOKUP($A191,Economática!$A$3:$AI$823,28,FALSE)=\"-\"),1/0,VLOOKUP($A191,Economática!$A$3:$AI$823,28,FALSE)))","v":-5.8},{"$f":"IF($A191=\"\",\"\",IF(OR(VLOOKUP($A191,Economática!$A$3:$AI$823,29,FALSE)=0,VLOOKUP($A191,Economática!$A$3:$AI$823,29,FALSE)=\"-\"),1/0,VLOOKUP($A191,Economática!$A$3:$AI$823,29,FALSE)))","v":9.4},{"$f":"IF($A191=\"\",\"\",IF(OR(VLOOKUP($A191,Economática!$A$3:$AI$823,30,FALSE)/E191=0,VLOOKUP($A191,Economática!$A$3:$AI$823,30,FALSE)/E191=\"-\",VLOOKUP($A191,Economática!$A$3:$AI$823,30,FALSE)/E191<33.33%,VLOOKUP($A191,Economática!$A$3:$AI$823,30,FALSE)/E191>100%),1/0,VLOOKUP($A191,Economática!$A$3:$AI$823,30,FALSE)/E191))","v":0.46640755136035533},"MTSA4",{"$f":"IF($A191=\"\",\"\",IF(OR(VLOOKUP($A191,Economática!$A$3:$AI$823,25,FALSE)=0,VLOOKUP($A191,Economática!$A$3:$AI$823,25,FALSE)=\"-\"),1/0,VLOOKUP($A191,Economática!$A$3:$AI$823,25,FALSE)))","v":24.7},{"$f":"CONCATENATE(Economática!B193,\" \",Economática!C193)","v":"Metisa PN"}]
[{"$f":"IF(Economática!AG194=\"\",\"\",Economática!AG194)","v":"USIM5"},{"$f":"IF($A192=\"\",\"\",VLOOKUP(VLOOKUP($A192,Economática!$A$3:$AI$823,6,FALSE),Correção!$B$16:$C$36,2,FALSE))","v":"Siderurgia e Metalurgia"},{"$f":"IF(Economática!B194=\"\",\"\",Economática!B194)","v":"Usiminas"},{"$f":"IF($A192=\"\",\"\",IF(OR(VLOOKUP($A192,Economática!$A$3:$AI$823,8,FALSE)=0,VLOOKUP($A192,Economática!$A$3:$AI$823,8,FALSE)=\"-\"),1/0,VLOOKUP($A192,Economática!$A$3:$AI$823,8,FALSE)))","v":10.039999999999999},{"$f":"IF(A192=\"\",\"\",IF(ISERROR(VLOOKUP(A192,Correção!$B$2:$G$13,9,FALSE)),VLOOKUP($A192,Economática!$A$3:$AI$823,9,FALSE),VLOOKUP(A192,Correção!$B$2:$G$13,9,FALSE)))","v":1229.3019999999999},{"$f":"IF($A192=\"\",\"\",Economática!G194)","v":13473.59},{"$f":"IF($A192=\"\",\"\",IF(OR(VLOOKUP($A192,Economática!$A$3:$AI$823,10,FALSE)=0,VLOOKUP($A192,Economática!$A$3:$AI$823,10,FALSE)=\"-\"),1/0,VLOOKUP($A192,Economática!$A$3:$AI$823,10,FALSE)))","v":14266.3},{"$f":"IF($A192=\"\",\"\",IF(OR(VLOOKUP($A192,Economática!$A$3:$AI$823,11,FALSE)=0,VLOOKUP($A192,Economática!$A$3:$AI$823,11,FALSE)=\"-\"),1/0,VLOOKUP($A192,Economática!$A$3:$AI$823,11,FALSE)))","v":10734.12},{"$f":"IF($A192=\"\",\"\",IF(OR(VLOOKUP($A192,Economática!$A$3:$AI$823,12,FALSE)=0,VLOOKUP($A192,Economática!$A$3:$AI$823,12,FALSE)=\"-\"),1/0,VLOOKUP($A192,Economática!$A$3:$AI$823,12,FALSE)))","v":13736.78},{"$f":"IF($A192=\"\",\"\",IF(OR(VLOOKUP($A192,Economática!$A$3:$AI$823,13,FALSE)=0,VLOOKUP($A192,Economática!$A$3:$AI$823,13,FALSE)=\"-\"),1/0,VLOOKUP($A192,Economática!$A$3:$AI$823,13,FALSE)))","v":233.02},{"$f":"IF($A192=\"\",\"\",IF(OR(VLOOKUP($A192,Economática!$A$3:$AI$823,14,FALSE)=0,VLOOKUP($A192,Economática!$A$3:$AI$823,14,FALSE)=\"-\"),1/0,VLOOKUP($A192,Economática!$A$3:$AI$823,14,FALSE)))","v":140.11000000000001},{"$f":"IF($A192=\"\",\"\",IF(OR(VLOOKUP($A192,Economática!$A$3:$AI$823,15,FALSE)=0,VLOOKUP($A192,Economática!$A$3:$AI$823,15,FALSE)=\"-\"),1/0,VLOOKUP($A192,Economática!$A$3:$AI$823,15,FALSE)))","v":107.94},{"$f":"IF($A192=\"\",\"\",IF(OR(VLOOKUP($A192,Economática!$A$3:$AI$823,16,FALSE)=0,VLOOKUP($A192,Economática!$A$3:$AI$823,16,FALSE)=\"-\"),1/0,VLOOKUP($A192,Economática!$A$3:$AI$823,16,FALSE)))","v":371.86},{"$f":"IF($A192=\"\",\"\",IF(OR(VLOOKUP($A192,Economática!$A$3:$AI$823,17,FALSE)=0,VLOOKUP($A192,Economática!$A$3:$AI$823,17,FALSE)=\"-\"),1/0,VLOOKUP($A192,Economática!$A$3:$AI$823,17,FALSE)))","v":726.66},{"$f":"IF($A192=\"\",\"\",IF(OR(VLOOKUP($A192,Economática!$A$3:$AI$823,18,FALSE)=0,VLOOKUP($A192,Economática!$A$3:$AI$823,18,FALSE)=\"-\"),1/0,VLOOKUP($A192,Economática!$A$3:$AI$823,18,FALSE)))","v":233.02},{"$f":"IF($A192=\"\",\"\",IF(OR(VLOOKUP($A192,Economática!$A$3:$AI$823,19,FALSE)=0,VLOOKUP($A192,Economática!$A$3:$AI$823,19,FALSE)=\"-\"),1/0,VLOOKUP($A192,Economática!$A$3:$AI$823,19,FALSE)))","v":726.66},{"$f":"IF($A192=\"\",\"\",VLOOKUP($A192,Economática!$A$3:$AI$823,20,FALSE)/E192)","v":0.59111593408291863},11.605203603345638,0.86512915612317132,16.984823824071778,{"$f":"IF($A192=\"\",\"\",IF(OR(VLOOKUP($A192,Economática!$A$3:$AI$823,21,FALSE)/100=0,VLOOKUP($A192,Economática!$A$3:$AI$823,21,FALSE)/100=\"-\"),1/0,VLOOKUP($A192,Economática!$A$3:$AI$823,21,FALSE)/100))","v":5.4577000000000001E-2},{"$f":"IF($A192=\"\",\"\",IF(OR(VLOOKUP($A192,Economática!$A$3:$AI$823,22,FALSE)/100=0,VLOOKUP($A192,Economática!$A$3:$AI$823,22,FALSE)/100=\"-\"),1/0,VLOOKUP($A192,Economática!$A$3:$AI$823,22,FALSE)/100))","v":0.26478499999999999},{"$f":"IF($A192=\"\",\"\",IF(OR(VLOOKUP($A192,Economática!$A$3:$AI$823,23,FALSE)=0,VLOOKUP($A192,Economática!$A$3:$AI$823,23,FALSE)=\"-\"),1/0,VLOOKUP($A192,Economática!$A$3:$AI$823,23,FALSE)))","v":2055.6999999999998},{"$f":"IF($A192=\"\",\"\",IF(OR(VLOOKUP($A192,Economática!$A$3:$AI$823,24,FALSE)=0,VLOOKUP($A192,Economática!$A$3:$AI$823,24,FALSE)=\"-\"),1/0,VLOOKUP($A192,Economática!$A$3:$AI$823,24,FALSE)))","v":2171.8000000000002},{"$f":"IF($A192=\"\",\"\",IF(OR(VLOOKUP($A192,Economática!$A$3:$AI$823,25,FALSE)=0,VLOOKUP($A192,Economática!$A$3:$AI$823,25,FALSE)=\"-\"),1/0,VLOOKUP($A192,Economática!$A$3:$AI$823,25,FALSE)))","v":2171.8000000000002},{"$f":"IF($A192=\"\",\"\",IF(ISERROR((F192+VLOOKUP($A192,Economática!$A$3:$AI$823,26,FALSE))/Y192),(F192+VLOOKUP($A192,Economática!$A$3:$AI$823,26,FALSE))/Y192,(F192+VLOOKUP($A192,Economática!$A$3:$AI$823,26,FALSE))/Y192))","v":8.117704668938206},{"$f":"IF($A192=\"\",\"\",IF(OR(-VLOOKUP($A192,Economática!$A$3:$AI$823,27,FALSE)=0,-VLOOKUP($A192,Economática!$A$3:$AI$823,27,FALSE)=\"-\"),1/0,-VLOOKUP($A192,Economática!$A$3:$AI$823,27,FALSE)))","v":55.26},4.1013568024557672E-3,{"$f":"IF($A192=\"\",\"\",IF(OR(VLOOKUP($A192,Economática!$A$3:$AI$823,28,FALSE)=0,VLOOKUP($A192,Economática!$A$3:$AI$823,28,FALSE)=\"-\"),1/0,VLOOKUP($A192,Economática!$A$3:$AI$823,28,FALSE)))","v":3.9},{"$f":"IF($A192=\"\",\"\",IF(OR(VLOOKUP($A192,Economática!$A$3:$AI$823,29,FALSE)=0,VLOOKUP($A192,Economática!$A$3:$AI$823,29,FALSE)=\"-\"),1/0,VLOOKUP($A192,Economática!$A$3:$AI$823,29,FALSE)))","v":11.7},{"$f":"IF($A192=\"\",\"\",IF(OR(VLOOKUP($A192,Economática!$A$3:$AI$823,30,FALSE)/E192=0,VLOOKUP($A192,Economática!$A$3:$AI$823,30,FALSE)/E192=\"-\",VLOOKUP($A192,Economática!$A$3:$AI$823,30,FALSE)/E192<33.33%,VLOOKUP($A192,Economática!$A$3:$AI$823,30,FALSE)/E192>100%),1/0,VLOOKUP($A192,Economática!$A$3:$AI$823,30,FALSE)/E192))","v":0.57374022005983882},"USIM5",{"$f":"IF($A192=\"\",\"\",IF(OR(VLOOKUP($A192,Economática!$A$3:$AI$823,25,FALSE)=0,VLOOKUP($A192,Economática!$A$3:$AI$823,25,FALSE)=\"-\"),1/0,VLOOKUP($A192,Economática!$A$3:$AI$823,25,FALSE)))","v":2171.8000000000002},{"$f":"CONCATENATE(Economática!B194,\" \",Economática!C194)","v":"Usiminas PNA"}]
[{"$f":"IF(Economática!AG195=\"\",\"\",Economática!AG195)","v":"KEPL3"},{"$f":"IF($A193=\"\",\"\",VLOOKUP(VLOOKUP($A193,Economática!$A$3:$AI$823,6,FALSE),Correção!$B$16:$C$36,2,FALSE))","v":"Siderurgia e Metalurgia"},{"$f":"IF(Economática!B195=\"\",\"\",Economática!B195)","v":"Kepler Weber"},{"$f":"IF($A193=\"\",\"\",IF(OR(VLOOKUP($A193,Economática!$A$3:$AI$823,8,FALSE)=0,VLOOKUP($A193,Economática!$A$3:$AI$823,8,FALSE)=\"-\"),1/0,VLOOKUP($A193,Economática!$A$3:$AI$823,8,FALSE)))","v":17.3},{"$f":"IF(A193=\"\",\"\",IF(ISERROR(VLOOKUP(A193,Correção!$B$2:$G$13,9,FALSE)),VLOOKUP($A193,Economática!$A$3:$AI$823,9,FALSE),VLOOKUP(A193,Correção!$B$2:$G$13,9,FALSE)))","v":26.312000000000001},{"$f":"IF($A193=\"\",\"\",Economática!G195)","v":455.2},{"$f":"IF($A193=\"\",\"\",IF(OR(VLOOKUP($A193,Economática!$A$3:$AI$823,10,FALSE)=0,VLOOKUP($A193,Economática!$A$3:$AI$823,10,FALSE)=\"-\"),1/0,VLOOKUP($A193,Economática!$A$3:$AI$823,10,FALSE)))","v":441.03},{"$f":"IF($A193=\"\",\"\",IF(OR(VLOOKUP($A193,Economática!$A$3:$AI$823,11,FALSE)=0,VLOOKUP($A193,Economática!$A$3:$AI$823,11,FALSE)=\"-\"),1/0,VLOOKUP($A193,Economática!$A$3:$AI$823,11,FALSE)))","v":578.38},{"$f":"IF($A193=\"\",\"\",IF(OR(VLOOKUP($A193,Economática!$A$3:$AI$823,12,FALSE)=0,VLOOKUP($A193,Economática!$A$3:$AI$823,12,FALSE)=\"-\"),1/0,VLOOKUP($A193,Economática!$A$3:$AI$823,12,FALSE)))","v":576.29999999999995},{"$f":"IF($A193=\"\",\"\",IF(OR(VLOOKUP($A193,Economática!$A$3:$AI$823,13,FALSE)=0,VLOOKUP($A193,Economática!$A$3:$AI$823,13,FALSE)=\"-\"),1/0,VLOOKUP($A193,Economática!$A$3:$AI$823,13,FALSE)))","v":-34.26},{"$f":"IF($A193=\"\",\"\",IF(OR(VLOOKUP($A193,Economática!$A$3:$AI$823,14,FALSE)=0,VLOOKUP($A193,Economática!$A$3:$AI$823,14,FALSE)=\"-\"),1/0,VLOOKUP($A193,Economática!$A$3:$AI$823,14,FALSE)))","v":-10.6},{"$f":"IF($A193=\"\",\"\",IF(OR(VLOOKUP($A193,Economática!$A$3:$AI$823,15,FALSE)=0,VLOOKUP($A193,Economática!$A$3:$AI$823,15,FALSE)=\"-\"),1/0,VLOOKUP($A193,Economática!$A$3:$AI$823,15,FALSE)))","v":-24.59},{"$f":"IF($A193=\"\",\"\",IF(OR(VLOOKUP($A193,Economática!$A$3:$AI$823,16,FALSE)=0,VLOOKUP($A193,Economática!$A$3:$AI$823,16,FALSE)=\"-\"),1/0,VLOOKUP($A193,Economática!$A$3:$AI$823,16,FALSE)))","v":-20.48},{"$f":"IF($A193=\"\",\"\",IF(OR(VLOOKUP($A193,Economática!$A$3:$AI$823,17,FALSE)=0,VLOOKUP($A193,Economática!$A$3:$AI$823,17,FALSE)=\"-\"),1/0,VLOOKUP($A193,Economática!$A$3:$AI$823,17,FALSE)))","v":8.27},{"$f":"IF($A193=\"\",\"\",IF(OR(VLOOKUP($A193,Economática!$A$3:$AI$823,18,FALSE)=0,VLOOKUP($A193,Economática!$A$3:$AI$823,18,FALSE)=\"-\"),1/0,VLOOKUP($A193,Economática!$A$3:$AI$823,18,FALSE)))","v":-34.26},{"$f":"IF($A193=\"\",\"\",IF(OR(VLOOKUP($A193,Economática!$A$3:$AI$823,19,FALSE)=0,VLOOKUP($A193,Economática!$A$3:$AI$823,19,FALSE)=\"-\"),1/0,VLOOKUP($A193,Economática!$A$3:$AI$823,19,FALSE)))","v":8.27},{"$f":"IF($A193=\"\",\"\",VLOOKUP($A193,Economática!$A$3:$AI$823,20,FALSE)/E193)","v":0.31430525995743386},16.761553663727575,1.0321238917987441,55.042031438935915,{"$f":"IF($A193=\"\",\"\",IF(OR(VLOOKUP($A193,Economática!$A$3:$AI$823,21,FALSE)/100=0,VLOOKUP($A193,Economática!$A$3:$AI$823,21,FALSE)/100=\"-\"),1/0,VLOOKUP($A193,Economática!$A$3:$AI$823,21,FALSE)/100))","v":1.8987E-2},{"$f":"IF($A193=\"\",\"\",IF(OR(VLOOKUP($A193,Economática!$A$3:$AI$823,22,FALSE)/100=0,VLOOKUP($A193,Economática!$A$3:$AI$823,22,FALSE)/100=\"-\"),1/0,VLOOKUP($A193,Economática!$A$3:$AI$823,22,FALSE)/100))","v":3.7587000000000002E-2},{"$f":"IF($A193=\"\",\"\",IF(OR(VLOOKUP($A193,Economática!$A$3:$AI$823,23,FALSE)=0,VLOOKUP($A193,Economática!$A$3:$AI$823,23,FALSE)=\"-\"),1/0,VLOOKUP($A193,Economática!$A$3:$AI$823,23,FALSE)))","v":-12.7},{"$f":"IF($A193=\"\",\"\",IF(OR(VLOOKUP($A193,Economática!$A$3:$AI$823,24,FALSE)=0,VLOOKUP($A193,Economática!$A$3:$AI$823,24,FALSE)=\"-\"),1/0,VLOOKUP($A193,Economática!$A$3:$AI$823,24,FALSE)))","v":48.4},{"$f":"IF($A193=\"\",\"\",IF(OR(VLOOKUP($A193,Economática!$A$3:$AI$823,25,FALSE)=0,VLOOKUP($A193,Economática!$A$3:$AI$823,25,FALSE)=\"-\"),1/0,VLOOKUP($A193,Economática!$A$3:$AI$823,25,FALSE)))","v":48.4},{"$f":"IF($A193=\"\",\"\",IF(ISERROR((F193+VLOOKUP($A193,Economática!$A$3:$AI$823,26,FALSE))/Y193),(F193+VLOOKUP($A193,Economática!$A$3:$AI$823,26,FALSE))/Y193,(F193+VLOOKUP($A193,Economática!$A$3:$AI$823,26,FALSE))/Y193))","v":9.74745867768595},{"$f":"IF($A193=\"\",\"\",IF(OR(-VLOOKUP($A193,Economática!$A$3:$AI$823,27,FALSE)=0,-VLOOKUP($A193,Economática!$A$3:$AI$823,27,FALSE)=\"-\"),1/0,-VLOOKUP($A193,Economática!$A$3:$AI$823,27,FALSE)))","v":{"$error":"#DIV/0!"}},{"$error":"#DIV/0!"},{"$f":"IF($A193=\"\",\"\",IF(OR(VLOOKUP($A193,Economática!$A$3:$AI$823,28,FALSE)=0,VLOOKUP($A193,Economática!$A$3:$AI$823,28,FALSE)=\"-\"),1/0,VLOOKUP($A193,Economática!$A$3:$AI$823,28,FALSE)))","v":0.3},{"$f":"IF($A193=\"\",\"\",IF(OR(VLOOKUP($A193,Economática!$A$3:$AI$823,29,FALSE)=0,VLOOKUP($A193,Economática!$A$3:$AI$823,29,FALSE)=\"-\"),1/0,VLOOKUP($A193,Economática!$A$3:$AI$823,29,FALSE)))","v":-11.4},{"$f":"IF($A193=\"\",\"\",IF(OR(VLOOKUP($A193,Economática!$A$3:$AI$823,30,FALSE)/E193=0,VLOOKUP($A193,Economática!$A$3:$AI$823,30,FALSE)/E193=\"-\",VLOOKUP($A193,Economática!$A$3:$AI$823,30,FALSE)/E193<33.33%,VLOOKUP($A193,Economática!$A$3:$AI$823,30,FALSE)/E193>100%),1/0,VLOOKUP($A193,Economática!$A$3:$AI$823,30,FALSE)/E193))","v":0.99954393432654298},"KEPL3",{"$f":"IF($A193=\"\",\"\",IF(OR(VLOOKUP($A193,Economática!$A$3:$AI$823,25,FALSE)=0,VLOOKUP($A193,Economática!$A$3:$AI$823,25,FALSE)=\"-\"),1/0,VLOOKUP($A193,Economática!$A$3:$AI$823,25,FALSE)))","v":48.4},{"$f":"CONCATENATE(Economática!B195,\" \",Economática!C195)","v":"Kepler Weber ON"}]
[{"$f":"IF(Economática!AG196=\"\",\"\",Economática!AG196)","v":"APTI4"},{"$f":"IF($A194=\"\",\"\",VLOOKUP(VLOOKUP($A194,Economática!$A$3:$AI$823,6,FALSE),Correção!$B$16:$C$36,2,FALSE))","v":"Siderurgia e Metalurgia"},{"$f":"IF(Economática!B196=\"\",\"\",Economática!B196)","v":"Aliperti"},{"$f":"IF($A194=\"\",\"\",IF(OR(VLOOKUP($A194,Economática!$A$3:$AI$823,8,FALSE)=0,VLOOKUP($A194,Economática!$A$3:$AI$823,8,FALSE)=\"-\"),1/0,VLOOKUP($A194,Economática!$A$3:$AI$823,8,FALSE)))","v":{"$error":"#DIV/0!"}},{"$f":"IF(A194=\"\",\"\",IF(ISERROR(VLOOKUP(A194,Correção!$B$2:$G$13,9,FALSE)),VLOOKUP($A194,Economática!$A$3:$AI$823,9,FALSE),VLOOKUP(A194,Correção!$B$2:$G$13,9,FALSE)))","v":1.7999999999999999E-2},{"$f":"IF($A194=\"\",\"\",Economática!G196)","v":"-"},{"$f":"IF($A194=\"\",\"\",IF(OR(VLOOKUP($A194,Economática!$A$3:$AI$823,10,FALSE)=0,VLOOKUP($A194,Economática!$A$3:$AI$823,10,FALSE)=\"-\"),1/0,VLOOKUP($A194,Economática!$A$3:$AI$823,10,FALSE)))","v":232.15},{"$f":"IF($A194=\"\",\"\",IF(OR(VLOOKUP($A194,Economática!$A$3:$AI$823,11,FALSE)=0,VLOOKUP($A194,Economática!$A$3:$AI$823,11,FALSE)=\"-\"),1/0,VLOOKUP($A194,Economática!$A$3:$AI$823,11,FALSE)))","v":33.950000000000003},{"$f":"IF($A194=\"\",\"\",IF(OR(VLOOKUP($A194,Economática!$A$3:$AI$823,12,FALSE)=0,VLOOKUP($A194,Economática!$A$3:$AI$823,12,FALSE)=\"-\"),1/0,VLOOKUP($A194,Economática!$A$3:$AI$823,12,FALSE)))","v":32.01},{"$f":"IF($A194=\"\",\"\",IF(OR(VLOOKUP($A194,Economática!$A$3:$AI$823,13,FALSE)=0,VLOOKUP($A194,Economática!$A$3:$AI$823,13,FALSE)=\"-\"),1/0,VLOOKUP($A194,Economática!$A$3:$AI$823,13,FALSE)))","v":-27.1},{"$f":"IF($A194=\"\",\"\",IF(OR(VLOOKUP($A194,Economática!$A$3:$AI$823,14,FALSE)=0,VLOOKUP($A194,Economática!$A$3:$AI$823,14,FALSE)=\"-\"),1/0,VLOOKUP($A194,Economática!$A$3:$AI$823,14,FALSE)))","v":-3.63},{"$f":"IF($A194=\"\",\"\",IF(OR(VLOOKUP($A194,Economática!$A$3:$AI$823,15,FALSE)=0,VLOOKUP($A194,Economática!$A$3:$AI$823,15,FALSE)=\"-\"),1/0,VLOOKUP($A194,Economática!$A$3:$AI$823,15,FALSE)))","v":-7.5},{"$f":"IF($A194=\"\",\"\",IF(OR(VLOOKUP($A194,Economática!$A$3:$AI$823,16,FALSE)=0,VLOOKUP($A194,Economática!$A$3:$AI$823,16,FALSE)=\"-\"),1/0,VLOOKUP($A194,Economática!$A$3:$AI$823,16,FALSE)))","v":-12.42},{"$f":"IF($A194=\"\",\"\",IF(OR(VLOOKUP($A194,Economática!$A$3:$AI$823,17,FALSE)=0,VLOOKUP($A194,Economática!$A$3:$AI$823,17,FALSE)=\"-\"),1/0,VLOOKUP($A194,Economática!$A$3:$AI$823,17,FALSE)))","v":-11.57},{"$f":"IF($A194=\"\",\"\",IF(OR(VLOOKUP($A194,Economática!$A$3:$AI$823,18,FALSE)=0,VLOOKUP($A194,Economática!$A$3:$AI$823,18,FALSE)=\"-\"),1/0,VLOOKUP($A194,Economática!$A$3:$AI$823,18,FALSE)))","v":-27.1},{"$f":"IF($A194=\"\",\"\",IF(OR(VLOOKUP($A194,Economática!$A$3:$AI$823,19,FALSE)=0,VLOOKUP($A194,Economática!$A$3:$AI$823,19,FALSE)=\"-\"),1/0,VLOOKUP($A194,Economática!$A$3:$AI$823,19,FALSE)))","v":-11.57},{"$f":"IF($A194=\"\",\"\",VLOOKUP($A194,Economática!$A$3:$AI$823,20,FALSE)/E194)","v":-642.77777777777783},12897.222222222223,{"$error":"#DIV/0!"},{"$error":"#DIV/0!"},{"$f":"IF($A194=\"\",\"\",IF(OR(VLOOKUP($A194,Economática!$A$3:$AI$823,21,FALSE)/100=0,VLOOKUP($A194,Economática!$A$3:$AI$823,21,FALSE)/100=\"-\"),1/0,VLOOKUP($A194,Economática!$A$3:$AI$823,21,FALSE)/100))","v":-4.6954000000000003E-2},{"$f":"IF($A194=\"\",\"\",IF(OR(VLOOKUP($A194,Economática!$A$3:$AI$823,22,FALSE)/100=0,VLOOKUP($A194,Economática!$A$3:$AI$823,22,FALSE)/100=\"-\"),1/0,VLOOKUP($A194,Economática!$A$3:$AI$823,22,FALSE)/100))","v":0.23343900000000001},{"$f":"IF($A194=\"\",\"\",IF(OR(VLOOKUP($A194,Economática!$A$3:$AI$823,23,FALSE)=0,VLOOKUP($A194,Economática!$A$3:$AI$823,23,FALSE)=\"-\"),1/0,VLOOKUP($A194,Economática!$A$3:$AI$823,23,FALSE)))","v":-15.6},{"$f":"IF($A194=\"\",\"\",IF(OR(VLOOKUP($A194,Economática!$A$3:$AI$823,24,FALSE)=0,VLOOKUP($A194,Economática!$A$3:$AI$823,24,FALSE)=\"-\"),1/0,VLOOKUP($A194,Economática!$A$3:$AI$823,24,FALSE)))","v":0.8},{"$f":"IF($A194=\"\",\"\",IF(OR(VLOOKUP($A194,Economática!$A$3:$AI$823,25,FALSE)=0,VLOOKUP($A194,Economática!$A$3:$AI$823,25,FALSE)=\"-\"),1/0,VLOOKUP($A194,Economática!$A$3:$AI$823,25,FALSE)))","v":0.8},{"$f":"IF($A194=\"\",\"\",IF(ISERROR((F194+VLOOKUP($A194,Economática!$A$3:$AI$823,26,FALSE))/Y194),(F194+VLOOKUP($A194,Economática!$A$3:$AI$823,26,FALSE))/Y194,(F194+VLOOKUP($A194,Economática!$A$3:$AI$823,26,FALSE))/Y194))","v":{"$error":"#VALUE!"}},{"$f":"IF($A194=\"\",\"\",IF(OR(-VLOOKUP($A194,Economática!$A$3:$AI$823,27,FALSE)=0,-VLOOKUP($A194,Economática!$A$3:$AI$823,27,FALSE)=\"-\"),1/0,-VLOOKUP($A194,Economática!$A$3:$AI$823,27,FALSE)))","v":{"$error":"#DIV/0!"}},{"$error":"#DIV/0!"},{"$f":"IF($A194=\"\",\"\",IF(OR(VLOOKUP($A194,Economática!$A$3:$AI$823,28,FALSE)=0,VLOOKUP($A194,Economática!$A$3:$AI$823,28,FALSE)=\"-\"),1/0,VLOOKUP($A194,Economática!$A$3:$AI$823,28,FALSE)))","v":{"$error":"#DIV/0!"}},{"$f":"IF($A194=\"\",\"\",IF(OR(VLOOKUP($A194,Economática!$A$3:$AI$823,29,FALSE)=0,VLOOKUP($A194,Economática!$A$3:$AI$823,29,FALSE)=\"-\"),1/0,VLOOKUP($A194,Economática!$A$3:$AI$823,29,FALSE)))","v":{"$error":"#DIV/0!"}},{"$f":"IF($A194=\"\",\"\",IF(OR(VLOOKUP($A194,Economática!$A$3:$AI$823,30,FALSE)/E194=0,VLOOKUP($A194,Economática!$A$3:$AI$823,30,FALSE)/E194=\"-\",VLOOKUP($A194,Economática!$A$3:$AI$823,30,FALSE)/E194<33.33%,VLOOKUP($A194,Economática!$A$3:$AI$823,30,FALSE)/E194>100%),1/0,VLOOKUP($A194,Economática!$A$3:$AI$823,30,FALSE)/E194))","v":{"$error":"#DIV/0!"}},"APTI4",{"$f":"IF($A194=\"\",\"\",IF(OR(VLOOKUP($A194,Economática!$A$3:$AI$823,25,FALSE)=0,VLOOKUP($A194,Economática!$A$3:$AI$823,25,FALSE)=\"-\"),1/0,VLOOKUP($A194,Economática!$A$3:$AI$823,25,FALSE)))","v":0.8},{"$f":"CONCATENATE(Economática!B196,\" \",Economática!C196)","v":"Aliperti PN"}]
[{"$f":"IF(Economática!AG197=\"\",\"\",Economática!AG197)","v":"PMAM3"},{"$f":"IF($A195=\"\",\"\",VLOOKUP(VLOOKUP($A195,Economática!$A$3:$AI$823,6,FALSE),Correção!$B$16:$C$36,2,FALSE))","v":"Siderurgia e Metalurgia"},{"$f":"IF(Economática!B197=\"\",\"\",Economática!B197)","v":"Paranapanema"},{"$f":"IF($A195=\"\",\"\",IF(OR(VLOOKUP($A195,Economática!$A$3:$AI$823,8,FALSE)=0,VLOOKUP($A195,Economática!$A$3:$AI$823,8,FALSE)=\"-\"),1/0,VLOOKUP($A195,Economática!$A$3:$AI$823,8,FALSE)))","v":1.46},{"$f":"IF(A195=\"\",\"\",IF(ISERROR(VLOOKUP(A195,Correção!$B$2:$G$13,9,FALSE)),VLOOKUP($A195,Economática!$A$3:$AI$823,9,FALSE),VLOOKUP(A195,Correção!$B$2:$G$13,9,FALSE)))","v":692.346},{"$f":"IF($A195=\"\",\"\",Economática!G197)","v":1010.82},{"$f":"IF($A195=\"\",\"\",IF(OR(VLOOKUP($A195,Economática!$A$3:$AI$823,10,FALSE)=0,VLOOKUP($A195,Economática!$A$3:$AI$823,10,FALSE)=\"-\"),1/0,VLOOKUP($A195,Economática!$A$3:$AI$823,10,FALSE)))","v":602.5},{"$f":"IF($A195=\"\",\"\",IF(OR(VLOOKUP($A195,Economática!$A$3:$AI$823,11,FALSE)=0,VLOOKUP($A195,Economática!$A$3:$AI$823,11,FALSE)=\"-\"),1/0,VLOOKUP($A195,Economática!$A$3:$AI$823,11,FALSE)))","v":3508.46},{"$f":"IF($A195=\"\",\"\",IF(OR(VLOOKUP($A195,Economática!$A$3:$AI$823,12,FALSE)=0,VLOOKUP($A195,Economática!$A$3:$AI$823,12,FALSE)=\"-\"),1/0,VLOOKUP($A195,Economática!$A$3:$AI$823,12,FALSE)))","v":4765.78},{"$f":"IF($A195=\"\",\"\",IF(OR(VLOOKUP($A195,Economática!$A$3:$AI$823,13,FALSE)=0,VLOOKUP($A195,Economática!$A$3:$AI$823,13,FALSE)=\"-\"),1/0,VLOOKUP($A195,Economática!$A$3:$AI$823,13,FALSE)))","v":-135.77000000000001},{"$f":"IF($A195=\"\",\"\",IF(OR(VLOOKUP($A195,Economática!$A$3:$AI$823,14,FALSE)=0,VLOOKUP($A195,Economática!$A$3:$AI$823,14,FALSE)=\"-\"),1/0,VLOOKUP($A195,Economática!$A$3:$AI$823,14,FALSE)))","v":-49.16},{"$f":"IF($A195=\"\",\"\",IF(OR(VLOOKUP($A195,Economática!$A$3:$AI$823,15,FALSE)=0,VLOOKUP($A195,Economática!$A$3:$AI$823,15,FALSE)=\"-\"),1/0,VLOOKUP($A195,Economática!$A$3:$AI$823,15,FALSE)))","v":-337.2},{"$f":"IF($A195=\"\",\"\",IF(OR(VLOOKUP($A195,Economática!$A$3:$AI$823,16,FALSE)=0,VLOOKUP($A195,Economática!$A$3:$AI$823,16,FALSE)=\"-\"),1/0,VLOOKUP($A195,Economática!$A$3:$AI$823,16,FALSE)))","v":-356.04},{"$f":"IF($A195=\"\",\"\",IF(OR(VLOOKUP($A195,Economática!$A$3:$AI$823,17,FALSE)=0,VLOOKUP($A195,Economática!$A$3:$AI$823,17,FALSE)=\"-\"),1/0,VLOOKUP($A195,Economática!$A$3:$AI$823,17,FALSE)))","v":-323.37},{"$f":"IF($A195=\"\",\"\",IF(OR(VLOOKUP($A195,Economática!$A$3:$AI$823,18,FALSE)=0,VLOOKUP($A195,Economática!$A$3:$AI$823,18,FALSE)=\"-\"),1/0,VLOOKUP($A195,Economática!$A$3:$AI$823,18,FALSE)))","v":-135.77000000000001},{"$f":"IF($A195=\"\",\"\",IF(OR(VLOOKUP($A195,Economática!$A$3:$AI$823,19,FALSE)=0,VLOOKUP($A195,Economática!$A$3:$AI$823,19,FALSE)=\"-\"),1/0,VLOOKUP($A195,Economática!$A$3:$AI$823,19,FALSE)))","v":-323.37},{"$f":"IF($A195=\"\",\"\",VLOOKUP($A195,Economática!$A$3:$AI$823,20,FALSE)/E195)","v":-0.46706415578338001},{"$f":"IF($A195=\"\",\"\",IF((G195/E195)<=0,1/0,G195/E195))","v":0.87022962507185708},{"$f":"IF($A195=\"\",\"\",D195/R195)","v":1.6777181078838175},{"$f":"IF($A195=\"\",\"\",IF((D195/Q195)<=0,1/0,D195/Q195))","v":{"$error":"#DIV/0!"}},{"$f":"IF($A195=\"\",\"\",IF(OR(VLOOKUP($A195,Economática!$A$3:$AI$823,21,FALSE)/100=0,VLOOKUP($A195,Economática!$A$3:$AI$823,21,FALSE)/100=\"-\"),1/0,VLOOKUP($A195,Economática!$A$3:$AI$823,21,FALSE)/100))","v":-0.36394500000000002},{"$f":"IF($A195=\"\",\"\",IF(OR(VLOOKUP($A195,Economática!$A$3:$AI$823,22,FALSE)/100=0,VLOOKUP($A195,Economática!$A$3:$AI$823,22,FALSE)/100=\"-\"),1/0,VLOOKUP($A195,Economática!$A$3:$AI$823,22,FALSE)/100))","v":3.1592750000000001},{"$f":"IF($A195=\"\",\"\",IF(OR(VLOOKUP($A195,Economática!$A$3:$AI$823,23,FALSE)=0,VLOOKUP($A195,Economática!$A$3:$AI$823,23,FALSE)=\"-\"),1/0,VLOOKUP($A195,Economática!$A$3:$AI$823,23,FALSE)))","v":-214.7},{"$f":"IF($A195=\"\",\"\",IF(OR(VLOOKUP($A195,Economática!$A$3:$AI$823,24,FALSE)=0,VLOOKUP($A195,Economática!$A$3:$AI$823,24,FALSE)=\"-\"),1/0,VLOOKUP($A195,Economática!$A$3:$AI$823,24,FALSE)))","v":82.7},{"$f":"IF($A195=\"\",\"\",IF(OR(VLOOKUP($A195,Economática!$A$3:$AI$823,25,FALSE)=0,VLOOKUP($A195,Economática!$A$3:$AI$823,25,FALSE)=\"-\"),1/0,VLOOKUP($A195,Economática!$A$3:$AI$823,25,FALSE)))","v":82.7},{"$f":"IF($A195=\"\",\"\",IF(ISERROR((F195+VLOOKUP($A195,Economática!$A$3:$AI$823,26,FALSE))/Y195),(F195+VLOOKUP($A195,Economática!$A$3:$AI$823,26,FALSE))/Y195,(F195+VLOOKUP($A195,Economática!$A$3:$AI$823,26,FALSE))/Y195))","v":35.239105199516324},{"$f":"IF($A195=\"\",\"\",IF(OR(-VLOOKUP($A195,Economática!$A$3:$AI$823,27,FALSE)=0,-VLOOKUP($A195,Economática!$A$3:$AI$823,27,FALSE)=\"-\"),1/0,-VLOOKUP($A195,Economática!$A$3:$AI$823,27,FALSE)))","v":{"$error":"#DIV/0!"}},{"$f":"IF(A195=\"\",\"\",AA195/F195)","v":{"$error":"#DIV/0!"}},{"$f":"IF($A195=\"\",\"\",IF(OR(VLOOKUP($A195,Economática!$A$3:$AI$823,28,FALSE)=0,VLOOKUP($A195,Economática!$A$3:$AI$823,28,FALSE)=\"-\"),1/0,VLOOKUP($A195,Economática!$A$3:$AI$823,28,FALSE)))","v":{"$error":"#DIV/0!"}},{"$f":"IF($A195=\"\",\"\",IF(OR(VLOOKUP($A195,Economática!$A$3:$AI$823,29,FALSE)=0,VLOOKUP($A195,Economática!$A$3:$AI$823,29,FALSE)=\"-\"),1/0,VLOOKUP($A195,Economática!$A$3:$AI$823,29,FALSE)))","v":-8.1999999999999993},{"$f":"IF($A195=\"\",\"\",IF(OR(VLOOKUP($A195,Economática!$A$3:$AI$823,30,FALSE)/E195=0,VLOOKUP($A195,Economática!$A$3:$AI$823,30,FALSE)/E195=\"-\",VLOOKUP($A195,Economática!$A$3:$AI$823,30,FALSE)/E195<33.33%,VLOOKUP($A195,Economática!$A$3:$AI$823,30,FALSE)/E195>100%),1/0,VLOOKUP($A195,Economática!$A$3:$AI$823,30,FALSE)/E195))","v":{"$error":"#DIV/0!"}},{"$f":"IF(A195=\"\",\"\",A195)","v":"PMAM3"},{"$f":"IF($A195=\"\",\"\",IF(OR(VLOOKUP($A195,Economática!$A$3:$AI$823,25,FALSE)=0,VLOOKUP($A195,Economática!$A$3:$AI$823,25,FALSE)=\"-\"),1/0,VLOOKUP($A195,Economática!$A$3:$AI$823,25,FALSE)))","v":82.7},{"$f":"CONCATENATE(Economática!B197,\" \",Economática!C197)","v":"Paranapanema ON"}]
[{"$f":"IF(Economática!AG198=\"\",\"\",Economática!AG198)","v":"LUPA3"},{"$f":"IF($A196=\"\",\"\",VLOOKUP(VLOOKUP($A196,Economática!$A$3:$AI$823,6,FALSE),Correção!$B$16:$C$36,2,FALSE))","v":"Siderurgia e Metalurgia"},{"$f":"IF(Economática!B198=\"\",\"\",Economática!B198)","v":"Lupatech"},{"$f":"IF($A196=\"\",\"\",IF(OR(VLOOKUP($A196,Economática!$A$3:$AI$823,8,FALSE)=0,VLOOKUP($A196,Economática!$A$3:$AI$823,8,FALSE)=\"-\"),1/0,VLOOKUP($A196,Economática!$A$3:$AI$823,8,FALSE)))","v":1.82},{"$f":"IF(A196=\"\",\"\",IF(ISERROR(VLOOKUP(A196,Correção!$B$2:$G$13,9,FALSE)),VLOOKUP($A196,Economática!$A$3:$AI$823,9,FALSE),VLOOKUP(A196,Correção!$B$2:$G$13,9,FALSE)))","v":16.597999999999999},{"$f":"IF($A196=\"\",\"\",Economática!G198)","v":30.21},{"$f":"IF($A196=\"\",\"\",IF(OR(VLOOKUP($A196,Economática!$A$3:$AI$823,10,FALSE)=0,VLOOKUP($A196,Economática!$A$3:$AI$823,10,FALSE)=\"-\"),1/0,VLOOKUP($A196,Economática!$A$3:$AI$823,10,FALSE)))","v":84.61},{"$f":"IF($A196=\"\",\"\",IF(OR(VLOOKUP($A196,Economática!$A$3:$AI$823,11,FALSE)=0,VLOOKUP($A196,Economática!$A$3:$AI$823,11,FALSE)=\"-\"),1/0,VLOOKUP($A196,Economática!$A$3:$AI$823,11,FALSE)))","v":112.37},{"$f":"IF($A196=\"\",\"\",IF(OR(VLOOKUP($A196,Economática!$A$3:$AI$823,12,FALSE)=0,VLOOKUP($A196,Economática!$A$3:$AI$823,12,FALSE)=\"-\"),1/0,VLOOKUP($A196,Economática!$A$3:$AI$823,12,FALSE)))","v":126.55},{"$f":"IF($A196=\"\",\"\",IF(OR(VLOOKUP($A196,Economática!$A$3:$AI$823,13,FALSE)=0,VLOOKUP($A196,Economática!$A$3:$AI$823,13,FALSE)=\"-\"),1/0,VLOOKUP($A196,Economática!$A$3:$AI$823,13,FALSE)))","v":-5.49},{"$f":"IF($A196=\"\",\"\",IF(OR(VLOOKUP($A196,Economática!$A$3:$AI$823,14,FALSE)=0,VLOOKUP($A196,Economática!$A$3:$AI$823,14,FALSE)=\"-\"),1/0,VLOOKUP($A196,Economática!$A$3:$AI$823,14,FALSE)))","v":-20.85},{"$f":"IF($A196=\"\",\"\",IF(OR(VLOOKUP($A196,Economática!$A$3:$AI$823,15,FALSE)=0,VLOOKUP($A196,Economática!$A$3:$AI$823,15,FALSE)=\"-\"),1/0,VLOOKUP($A196,Economática!$A$3:$AI$823,15,FALSE)))","v":-66.25},{"$f":"IF($A196=\"\",\"\",IF(OR(VLOOKUP($A196,Economática!$A$3:$AI$823,16,FALSE)=0,VLOOKUP($A196,Economática!$A$3:$AI$823,16,FALSE)=\"-\"),1/0,VLOOKUP($A196,Economática!$A$3:$AI$823,16,FALSE)))","v":-89.67},{"$f":"IF($A196=\"\",\"\",IF(OR(VLOOKUP($A196,Economática!$A$3:$AI$823,17,FALSE)=0,VLOOKUP($A196,Economática!$A$3:$AI$823,17,FALSE)=\"-\"),1/0,VLOOKUP($A196,Economática!$A$3:$AI$823,17,FALSE)))","v":-96.71},{"$f":"IF($A196=\"\",\"\",IF(OR(VLOOKUP($A196,Economática!$A$3:$AI$823,18,FALSE)=0,VLOOKUP($A196,Economática!$A$3:$AI$823,18,FALSE)=\"-\"),1/0,VLOOKUP($A196,Economática!$A$3:$AI$823,18,FALSE)))","v":-5.49},{"$f":"IF($A196=\"\",\"\",IF(OR(VLOOKUP($A196,Economática!$A$3:$AI$823,19,FALSE)=0,VLOOKUP($A196,Economática!$A$3:$AI$823,19,FALSE)=\"-\"),1/0,VLOOKUP($A196,Economática!$A$3:$AI$823,19,FALSE)))","v":-96.71},{"$f":"IF($A196=\"\",\"\",VLOOKUP($A196,Economática!$A$3:$AI$823,20,FALSE)/E196)","v":-5.8266056151343539},5.0976021207374389,0.35703061103888428,{"$error":"#DIV/0!"},{"$f":"IF($A196=\"\",\"\",IF(OR(VLOOKUP($A196,Economática!$A$3:$AI$823,21,FALSE)/100=0,VLOOKUP($A196,Economática!$A$3:$AI$823,21,FALSE)/100=\"-\"),1/0,VLOOKUP($A196,Economática!$A$3:$AI$823,21,FALSE)/100))","v":-0.90340900000000002},{"$f":"IF($A196=\"\",\"\",IF(OR(VLOOKUP($A196,Economática!$A$3:$AI$823,22,FALSE)/100=0,VLOOKUP($A196,Economática!$A$3:$AI$823,22,FALSE)/100=\"-\"),1/0,VLOOKUP($A196,Economática!$A$3:$AI$823,22,FALSE)/100))","v":1.3100040000000002},{"$f":"IF($A196=\"\",\"\",IF(OR(VLOOKUP($A196,Economática!$A$3:$AI$823,23,FALSE)=0,VLOOKUP($A196,Economática!$A$3:$AI$823,23,FALSE)=\"-\"),1/0,VLOOKUP($A196,Economática!$A$3:$AI$823,23,FALSE)))","v":-40.700000000000003},{"$f":"IF($A196=\"\",\"\",IF(OR(VLOOKUP($A196,Economática!$A$3:$AI$823,24,FALSE)=0,VLOOKUP($A196,Economática!$A$3:$AI$823,24,FALSE)=\"-\"),1/0,VLOOKUP($A196,Economática!$A$3:$AI$823,24,FALSE)))","v":-43.5},{"$f":"IF($A196=\"\",\"\",IF(OR(VLOOKUP($A196,Economática!$A$3:$AI$823,25,FALSE)=0,VLOOKUP($A196,Economática!$A$3:$AI$823,25,FALSE)=\"-\"),1/0,VLOOKUP($A196,Economática!$A$3:$AI$823,25,FALSE)))","v":-43.5},{"$f":"IF($A196=\"\",\"\",IF(ISERROR((F196+VLOOKUP($A196,Economática!$A$3:$AI$823,26,FALSE))/Y196),(F196+VLOOKUP($A196,Economática!$A$3:$AI$823,26,FALSE))/Y196,(F196+VLOOKUP($A196,Economática!$A$3:$AI$823,26,FALSE))/Y196))","v":-4.7056551724137927},{"$f":"IF($A196=\"\",\"\",IF(OR(-VLOOKUP($A196,Economática!$A$3:$AI$823,27,FALSE)=0,-VLOOKUP($A196,Economática!$A$3:$AI$823,27,FALSE)=\"-\"),1/0,-VLOOKUP($A196,Economática!$A$3:$AI$823,27,FALSE)))","v":{"$error":"#DIV/0!"}},{"$error":"#DIV/0!"},{"$f":"IF($A196=\"\",\"\",IF(OR(VLOOKUP($A196,Economática!$A$3:$AI$823,28,FALSE)=0,VLOOKUP($A196,Economática!$A$3:$AI$823,28,FALSE)=\"-\"),1/0,VLOOKUP($A196,Economática!$A$3:$AI$823,28,FALSE)))","v":-7.1},{"$f":"IF($A196=\"\",\"\",IF(OR(VLOOKUP($A196,Economática!$A$3:$AI$823,29,FALSE)=0,VLOOKUP($A196,Economática!$A$3:$AI$823,29,FALSE)=\"-\"),1/0,VLOOKUP($A196,Economática!$A$3:$AI$823,29,FALSE)))","v":-37.200000000000003},{"$f":"IF($A196=\"\",\"\",IF(OR(VLOOKUP($A196,Economática!$A$3:$AI$823,30,FALSE)/E196=0,VLOOKUP($A196,Economática!$A$3:$AI$823,30,FALSE)/E196=\"-\",VLOOKUP($A196,Economática!$A$3:$AI$823,30,FALSE)/E196<33.33%,VLOOKUP($A196,Economática!$A$3:$AI$823,30,FALSE)/E196>100%),1/0,VLOOKUP($A196,Economática!$A$3:$AI$823,30,FALSE)/E196))","v":0.97602120737438247},"LUPA3",{"$f":"IF($A196=\"\",\"\",IF(OR(VLOOKUP($A196,Economática!$A$3:$AI$823,25,FALSE)=0,VLOOKUP($A196,Economática!$A$3:$AI$823,25,FALSE)=\"-\"),1/0,VLOOKUP($A196,Economática!$A$3:$AI$823,25,FALSE)))","v":-43.5},{"$f":"CONCATENATE(Economática!B198,\" \",Economática!C198)","v":"Lupatech ON"}]
[{"$f":"IF(Economática!AG199=\"\",\"\",Economática!AG199)","v":"EALT4"},{"$f":"IF($A197=\"\",\"\",VLOOKUP(VLOOKUP($A197,Economática!$A$3:$AI$823,6,FALSE),Correção!$B$16:$C$36,2,FALSE))","v":"Siderurgia e Metalurgia"},{"$f":"IF(Economática!B199=\"\",\"\",Economática!B199)","v":"Aco Altona"},{"$f":"IF($A197=\"\",\"\",IF(OR(VLOOKUP($A197,Economática!$A$3:$AI$823,8,FALSE)=0,VLOOKUP($A197,Economática!$A$3:$AI$823,8,FALSE)=\"-\"),1/0,VLOOKUP($A197,Economática!$A$3:$AI$823,8,FALSE)))","v":5.21},{"$f":"IF(A197=\"\",\"\",IF(ISERROR(VLOOKUP(A197,Correção!$B$2:$G$13,9,FALSE)),VLOOKUP($A197,Economática!$A$3:$AI$823,9,FALSE),VLOOKUP(A197,Correção!$B$2:$G$13,9,FALSE)))","v":22.5},{"$f":"IF($A197=\"\",\"\",Economática!G199)","v":122.88},{"$f":"IF($A197=\"\",\"\",IF(OR(VLOOKUP($A197,Economática!$A$3:$AI$823,10,FALSE)=0,VLOOKUP($A197,Economática!$A$3:$AI$823,10,FALSE)=\"-\"),1/0,VLOOKUP($A197,Economática!$A$3:$AI$823,10,FALSE)))","v":154.62},{"$f":"IF($A197=\"\",\"\",IF(OR(VLOOKUP($A197,Economática!$A$3:$AI$823,11,FALSE)=0,VLOOKUP($A197,Economática!$A$3:$AI$823,11,FALSE)=\"-\"),1/0,VLOOKUP($A197,Economática!$A$3:$AI$823,11,FALSE)))","v":168.41},{"$f":"IF($A197=\"\",\"\",IF(OR(VLOOKUP($A197,Economática!$A$3:$AI$823,12,FALSE)=0,VLOOKUP($A197,Economática!$A$3:$AI$823,12,FALSE)=\"-\"),1/0,VLOOKUP($A197,Economática!$A$3:$AI$823,12,FALSE)))","v":246.96},{"$f":"IF($A197=\"\",\"\",IF(OR(VLOOKUP($A197,Economática!$A$3:$AI$823,13,FALSE)=0,VLOOKUP($A197,Economática!$A$3:$AI$823,13,FALSE)=\"-\"),1/0,VLOOKUP($A197,Economática!$A$3:$AI$823,13,FALSE)))","v":30.65},{"$f":"IF($A197=\"\",\"\",IF(OR(VLOOKUP($A197,Economática!$A$3:$AI$823,14,FALSE)=0,VLOOKUP($A197,Economática!$A$3:$AI$823,14,FALSE)=\"-\"),1/0,VLOOKUP($A197,Economática!$A$3:$AI$823,14,FALSE)))","v":3.66},{"$f":"IF($A197=\"\",\"\",IF(OR(VLOOKUP($A197,Economática!$A$3:$AI$823,15,FALSE)=0,VLOOKUP($A197,Economática!$A$3:$AI$823,15,FALSE)=\"-\"),1/0,VLOOKUP($A197,Economática!$A$3:$AI$823,15,FALSE)))","v":6.19},{"$f":"IF($A197=\"\",\"\",IF(OR(VLOOKUP($A197,Economática!$A$3:$AI$823,16,FALSE)=0,VLOOKUP($A197,Economática!$A$3:$AI$823,16,FALSE)=\"-\"),1/0,VLOOKUP($A197,Economática!$A$3:$AI$823,16,FALSE)))","v":9.74},{"$f":"IF($A197=\"\",\"\",IF(OR(VLOOKUP($A197,Economática!$A$3:$AI$823,17,FALSE)=0,VLOOKUP($A197,Economática!$A$3:$AI$823,17,FALSE)=\"-\"),1/0,VLOOKUP($A197,Economática!$A$3:$AI$823,17,FALSE)))","v":12.25},{"$f":"IF($A197=\"\",\"\",IF(OR(VLOOKUP($A197,Economática!$A$3:$AI$823,18,FALSE)=0,VLOOKUP($A197,Economática!$A$3:$AI$823,18,FALSE)=\"-\"),1/0,VLOOKUP($A197,Economática!$A$3:$AI$823,18,FALSE)))","v":30.65},{"$f":"IF($A197=\"\",\"\",IF(OR(VLOOKUP($A197,Economática!$A$3:$AI$823,19,FALSE)=0,VLOOKUP($A197,Economática!$A$3:$AI$823,19,FALSE)=\"-\"),1/0,VLOOKUP($A197,Economática!$A$3:$AI$823,19,FALSE)))","v":12.25},{"$f":"IF($A197=\"\",\"\",VLOOKUP($A197,Economática!$A$3:$AI$823,20,FALSE)/E197)","v":0.5444444444444444},6.8719999999999999,0.75814901047729921,9.5693877551020421,{"$f":"IF($A197=\"\",\"\",IF(OR(VLOOKUP($A197,Economática!$A$3:$AI$823,21,FALSE)/100=0,VLOOKUP($A197,Economática!$A$3:$AI$823,21,FALSE)/100=\"-\"),1/0,VLOOKUP($A197,Economática!$A$3:$AI$823,21,FALSE)/100))","v":{"$error":"#VALUE!"}},{"$f":"IF($A197=\"\",\"\",IF(OR(VLOOKUP($A197,Economática!$A$3:$AI$823,22,FALSE)/100=0,VLOOKUP($A197,Economática!$A$3:$AI$823,22,FALSE)/100=\"-\"),1/0,VLOOKUP($A197,Economática!$A$3:$AI$823,22,FALSE)/100))","v":0.49553800000000003},{"$f":"IF($A197=\"\",\"\",IF(OR(VLOOKUP($A197,Economática!$A$3:$AI$823,23,FALSE)=0,VLOOKUP($A197,Economática!$A$3:$AI$823,23,FALSE)=\"-\"),1/0,VLOOKUP($A197,Economática!$A$3:$AI$823,23,FALSE)))","v":57.7},{"$f":"IF($A197=\"\",\"\",IF(OR(VLOOKUP($A197,Economática!$A$3:$AI$823,24,FALSE)=0,VLOOKUP($A197,Economática!$A$3:$AI$823,24,FALSE)=\"-\"),1/0,VLOOKUP($A197,Economática!$A$3:$AI$823,24,FALSE)))","v":30.1},{"$f":"IF($A197=\"\",\"\",IF(OR(VLOOKUP($A197,Economática!$A$3:$AI$823,25,FALSE)=0,VLOOKUP($A197,Economática!$A$3:$AI$823,25,FALSE)=\"-\"),1/0,VLOOKUP($A197,Economática!$A$3:$AI$823,25,FALSE)))","v":30.1},{"$f":"IF($A197=\"\",\"\",IF(ISERROR((F197+VLOOKUP($A197,Economática!$A$3:$AI$823,26,FALSE))/Y197),(F197+VLOOKUP($A197,Economática!$A$3:$AI$823,26,FALSE))/Y197,(F197+VLOOKUP($A197,Economática!$A$3:$AI$823,26,FALSE))/Y197))","v":6.6279734219269102},{"$f":"IF($A197=\"\",\"\",IF(OR(-VLOOKUP($A197,Economática!$A$3:$AI$823,27,FALSE)=0,-VLOOKUP($A197,Economática!$A$3:$AI$823,27,FALSE)=\"-\"),1/0,-VLOOKUP($A197,Economática!$A$3:$AI$823,27,FALSE)))","v":5.81},4.7281901041666664E-2,{"$f":"IF($A197=\"\",\"\",IF(OR(VLOOKUP($A197,Economática!$A$3:$AI$823,28,FALSE)=0,VLOOKUP($A197,Economática!$A$3:$AI$823,28,FALSE)=\"-\"),1/0,VLOOKUP($A197,Economática!$A$3:$AI$823,28,FALSE)))","v":1.2},{"$f":"IF($A197=\"\",\"\",IF(OR(VLOOKUP($A197,Economática!$A$3:$AI$823,29,FALSE)=0,VLOOKUP($A197,Economática!$A$3:$AI$823,29,FALSE)=\"-\"),1/0,VLOOKUP($A197,Economática!$A$3:$AI$823,29,FALSE)))","v":66.2},{"$f":"IF($A197=\"\",\"\",IF(OR(VLOOKUP($A197,Economática!$A$3:$AI$823,30,FALSE)/E197=0,VLOOKUP($A197,Economática!$A$3:$AI$823,30,FALSE)/E197=\"-\",VLOOKUP($A197,Economática!$A$3:$AI$823,30,FALSE)/E197<33.33%,VLOOKUP($A197,Economática!$A$3:$AI$823,30,FALSE)/E197>100%),1/0,VLOOKUP($A197,Economática!$A$3:$AI$823,30,FALSE)/E197))","v":0.43555555555555558},"EALT4",{"$f":"IF($A197=\"\",\"\",IF(OR(VLOOKUP($A197,Economática!$A$3:$AI$823,25,FALSE)=0,VLOOKUP($A197,Economática!$A$3:$AI$823,25,FALSE)=\"-\"),1/0,VLOOKUP($A197,Economática!$A$3:$AI$823,25,FALSE)))","v":30.1},{"$f":"CONCATENATE(Economática!B199,\" \",Economática!C199)","v":"Aco Altona PN"}]
[{"$f":"IF(Economática!AG200=\"\",\"\",Economática!AG200)","v":"FJTA4"},{"$f":"IF($A198=\"\",\"\",VLOOKUP(VLOOKUP($A198,Economática!$A$3:$AI$823,6,FALSE),Correção!$B$16:$C$36,2,FALSE))","v":"Siderurgia e Metalurgia"},{"$f":"IF(Economática!B200=\"\",\"\",Economática!B200)","v":"Forja Taurus"},{"$f":"IF($A198=\"\",\"\",IF(OR(VLOOKUP($A198,Economática!$A$3:$AI$823,8,FALSE)=0,VLOOKUP($A198,Economática!$A$3:$AI$823,8,FALSE)=\"-\"),1/0,VLOOKUP($A198,Economática!$A$3:$AI$823,8,FALSE)))","v":3.87},{"$f":"IF(A198=\"\",\"\",IF(ISERROR(VLOOKUP(A198,Correção!$B$2:$G$13,9,FALSE)),VLOOKUP($A198,Economática!$A$3:$AI$823,9,FALSE),VLOOKUP(A198,Correção!$B$2:$G$13,9,FALSE)))","v":74.863},{"$f":"IF($A198=\"\",\"\",Economática!G200)","v":298.08},{"$f":"IF($A198=\"\",\"\",IF(OR(VLOOKUP($A198,Economática!$A$3:$AI$823,10,FALSE)=0,VLOOKUP($A198,Economática!$A$3:$AI$823,10,FALSE)=\"-\"),1/0,VLOOKUP($A198,Economática!$A$3:$AI$823,10,FALSE)))","v":-406.96},{"$f":"IF($A198=\"\",\"\",IF(OR(VLOOKUP($A198,Economática!$A$3:$AI$823,11,FALSE)=0,VLOOKUP($A198,Economática!$A$3:$AI$823,11,FALSE)=\"-\"),1/0,VLOOKUP($A198,Economática!$A$3:$AI$823,11,FALSE)))","v":784.88},{"$f":"IF($A198=\"\",\"\",IF(OR(VLOOKUP($A198,Economática!$A$3:$AI$823,12,FALSE)=0,VLOOKUP($A198,Economática!$A$3:$AI$823,12,FALSE)=\"-\"),1/0,VLOOKUP($A198,Economática!$A$3:$AI$823,12,FALSE)))","v":845.29},{"$f":"IF($A198=\"\",\"\",IF(OR(VLOOKUP($A198,Economática!$A$3:$AI$823,13,FALSE)=0,VLOOKUP($A198,Economática!$A$3:$AI$823,13,FALSE)=\"-\"),1/0,VLOOKUP($A198,Economática!$A$3:$AI$823,13,FALSE)))","v":-286.02999999999997},{"$f":"IF($A198=\"\",\"\",IF(OR(VLOOKUP($A198,Economática!$A$3:$AI$823,14,FALSE)=0,VLOOKUP($A198,Economática!$A$3:$AI$823,14,FALSE)=\"-\"),1/0,VLOOKUP($A198,Economática!$A$3:$AI$823,14,FALSE)))","v":1.19},{"$f":"IF($A198=\"\",\"\",IF(OR(VLOOKUP($A198,Economática!$A$3:$AI$823,15,FALSE)=0,VLOOKUP($A198,Economática!$A$3:$AI$823,15,FALSE)=\"-\"),1/0,VLOOKUP($A198,Economática!$A$3:$AI$823,15,FALSE)))","v":-92.58},{"$f":"IF($A198=\"\",\"\",IF(OR(VLOOKUP($A198,Economática!$A$3:$AI$823,16,FALSE)=0,VLOOKUP($A198,Economática!$A$3:$AI$823,16,FALSE)=\"-\"),1/0,VLOOKUP($A198,Economática!$A$3:$AI$823,16,FALSE)))","v":-44.61},{"$f":"IF($A198=\"\",\"\",IF(OR(VLOOKUP($A198,Economática!$A$3:$AI$823,17,FALSE)=0,VLOOKUP($A198,Economática!$A$3:$AI$823,17,FALSE)=\"-\"),1/0,VLOOKUP($A198,Economática!$A$3:$AI$823,17,FALSE)))","v":-59.86},{"$f":"IF($A198=\"\",\"\",IF(OR(VLOOKUP($A198,Economática!$A$3:$AI$823,18,FALSE)=0,VLOOKUP($A198,Economática!$A$3:$AI$823,18,FALSE)=\"-\"),1/0,VLOOKUP($A198,Economática!$A$3:$AI$823,18,FALSE)))","v":-286.02999999999997},{"$f":"IF($A198=\"\",\"\",IF(OR(VLOOKUP($A198,Economática!$A$3:$AI$823,19,FALSE)=0,VLOOKUP($A198,Economática!$A$3:$AI$823,19,FALSE)=\"-\"),1/0,VLOOKUP($A198,Economática!$A$3:$AI$823,19,FALSE)))","v":-59.86},{"$f":"IF($A198=\"\",\"\",VLOOKUP($A198,Economática!$A$3:$AI$823,20,FALSE)/E198)","v":-0.79959392490282244},{"$error":"#DIV/0!"},{"$error":"#DIV/0!"},{"$error":"#DIV/0!"},{"$f":"IF($A198=\"\",\"\",IF(OR(VLOOKUP($A198,Economática!$A$3:$AI$823,21,FALSE)/100=0,VLOOKUP($A198,Economática!$A$3:$AI$823,21,FALSE)/100=\"-\"),1/0,VLOOKUP($A198,Economática!$A$3:$AI$823,21,FALSE)/100))","v":{"$error":"#VALUE!"}},{"$f":"IF($A198=\"\",\"\",IF(OR(VLOOKUP($A198,Economática!$A$3:$AI$823,22,FALSE)/100=0,VLOOKUP($A198,Economática!$A$3:$AI$823,22,FALSE)/100=\"-\"),1/0,VLOOKUP($A198,Economática!$A$3:$AI$823,22,FALSE)/100))","v":-1.936599},{"$f":"IF($A198=\"\",\"\",IF(OR(VLOOKUP($A198,Economática!$A$3:$AI$823,23,FALSE)=0,VLOOKUP($A198,Economática!$A$3:$AI$823,23,FALSE)=\"-\"),1/0,VLOOKUP($A198,Economática!$A$3:$AI$823,23,FALSE)))","v":-125.8},{"$f":"IF($A198=\"\",\"\",IF(OR(VLOOKUP($A198,Economática!$A$3:$AI$823,24,FALSE)=0,VLOOKUP($A198,Economática!$A$3:$AI$823,24,FALSE)=\"-\"),1/0,VLOOKUP($A198,Economática!$A$3:$AI$823,24,FALSE)))","v":80.5},{"$f":"IF($A198=\"\",\"\",IF(OR(VLOOKUP($A198,Economática!$A$3:$AI$823,25,FALSE)=0,VLOOKUP($A198,Economática!$A$3:$AI$823,25,FALSE)=\"-\"),1/0,VLOOKUP($A198,Economática!$A$3:$AI$823,25,FALSE)))","v":80.5},{"$f":"IF($A198=\"\",\"\",IF(ISERROR((F198+VLOOKUP($A198,Economática!$A$3:$AI$823,26,FALSE))/Y198),(F198+VLOOKUP($A198,Economática!$A$3:$AI$823,26,FALSE))/Y198,(F198+VLOOKUP($A198,Economática!$A$3:$AI$823,26,FALSE))/Y198))","v":13.493217391304347},{"$f":"IF($A198=\"\",\"\",IF(OR(-VLOOKUP($A198,Economática!$A$3:$AI$823,27,FALSE)=0,-VLOOKUP($A198,Economática!$A$3:$AI$823,27,FALSE)=\"-\"),1/0,-VLOOKUP($A198,Economática!$A$3:$AI$823,27,FALSE)))","v":{"$error":"#DIV/0!"}},{"$error":"#DIV/0!"},{"$f":"IF($A198=\"\",\"\",IF(OR(VLOOKUP($A198,Economática!$A$3:$AI$823,28,FALSE)=0,VLOOKUP($A198,Economática!$A$3:$AI$823,28,FALSE)=\"-\"),1/0,VLOOKUP($A198,Economática!$A$3:$AI$823,28,FALSE)))","v":-7.9},{"$f":"IF($A198=\"\",\"\",IF(OR(VLOOKUP($A198,Economática!$A$3:$AI$823,29,FALSE)=0,VLOOKUP($A198,Economática!$A$3:$AI$823,29,FALSE)=\"-\"),1/0,VLOOKUP($A198,Economática!$A$3:$AI$823,29,FALSE)))","v":120.7},{"$f":"IF($A198=\"\",\"\",IF(OR(VLOOKUP($A198,Economática!$A$3:$AI$823,30,FALSE)/E198=0,VLOOKUP($A198,Economática!$A$3:$AI$823,30,FALSE)/E198=\"-\",VLOOKUP($A198,Economática!$A$3:$AI$823,30,FALSE)/E198<33.33%,VLOOKUP($A198,Economática!$A$3:$AI$823,30,FALSE)/E198>100%),1/0,VLOOKUP($A198,Economática!$A$3:$AI$823,30,FALSE)/E198))","v":0.61979883253409562},"FJTA4",{"$f":"IF($A198=\"\",\"\",IF(OR(VLOOKUP($A198,Economática!$A$3:$AI$823,25,FALSE)=0,VLOOKUP($A198,Economática!$A$3:$AI$823,25,FALSE)=\"-\"),1/0,VLOOKUP($A198,Economática!$A$3:$AI$823,25,FALSE)))","v":80.5},{"$f":"CONCATENATE(Economática!B200,\" \",Economática!C200)","v":"Forja Taurus PN"}]
[{"$f":"IF(Economática!AG201=\"\",\"\",Economática!AG201)","v":"HAGA4"},{"$f":"IF($A199=\"\",\"\",VLOOKUP(VLOOKUP($A199,Economática!$A$3:$AI$823,6,FALSE),Correção!$B$16:$C$36,2,FALSE))","v":"Siderurgia e Metalurgia"},{"$f":"IF(Economática!B201=\"\",\"\",Economática!B201)","v":"Haga S/A"},{"$f":"IF($A199=\"\",\"\",IF(OR(VLOOKUP($A199,Economática!$A$3:$AI$823,8,FALSE)=0,VLOOKUP($A199,Economática!$A$3:$AI$823,8,FALSE)=\"-\"),1/0,VLOOKUP($A199,Economática!$A$3:$AI$823,8,FALSE)))","v":1.5},{"$f":"IF(A199=\"\",\"\",IF(ISERROR(VLOOKUP(A199,Correção!$B$2:$G$13,9,FALSE)),VLOOKUP($A199,Economática!$A$3:$AI$823,9,FALSE),VLOOKUP(A199,Correção!$B$2:$G$13,9,FALSE)))","v":11.9},{"$f":"IF($A199=\"\",\"\",Economática!G201)","v":23.8},{"$f":"IF($A199=\"\",\"\",IF(OR(VLOOKUP($A199,Economática!$A$3:$AI$823,10,FALSE)=0,VLOOKUP($A199,Economática!$A$3:$AI$823,10,FALSE)=\"-\"),1/0,VLOOKUP($A199,Economática!$A$3:$AI$823,10,FALSE)))","v":-76.84},{"$f":"IF($A199=\"\",\"\",IF(OR(VLOOKUP($A199,Economática!$A$3:$AI$823,11,FALSE)=0,VLOOKUP($A199,Economática!$A$3:$AI$823,11,FALSE)=\"-\"),1/0,VLOOKUP($A199,Economática!$A$3:$AI$823,11,FALSE)))","v":24.41},{"$f":"IF($A199=\"\",\"\",IF(OR(VLOOKUP($A199,Economática!$A$3:$AI$823,12,FALSE)=0,VLOOKUP($A199,Economática!$A$3:$AI$823,12,FALSE)=\"-\"),1/0,VLOOKUP($A199,Economática!$A$3:$AI$823,12,FALSE)))","v":22.91},{"$f":"IF($A199=\"\",\"\",IF(OR(VLOOKUP($A199,Economática!$A$3:$AI$823,13,FALSE)=0,VLOOKUP($A199,Economática!$A$3:$AI$823,13,FALSE)=\"-\"),1/0,VLOOKUP($A199,Economática!$A$3:$AI$823,13,FALSE)))","v":-1.41},{"$f":"IF($A199=\"\",\"\",IF(OR(VLOOKUP($A199,Economática!$A$3:$AI$823,14,FALSE)=0,VLOOKUP($A199,Economática!$A$3:$AI$823,14,FALSE)=\"-\"),1/0,VLOOKUP($A199,Economática!$A$3:$AI$823,14,FALSE)))","v":-0.98},{"$f":"IF($A199=\"\",\"\",IF(OR(VLOOKUP($A199,Economática!$A$3:$AI$823,15,FALSE)=0,VLOOKUP($A199,Economática!$A$3:$AI$823,15,FALSE)=\"-\"),1/0,VLOOKUP($A199,Economática!$A$3:$AI$823,15,FALSE)))","v":1.41},{"$f":"IF($A199=\"\",\"\",IF(OR(VLOOKUP($A199,Economática!$A$3:$AI$823,16,FALSE)=0,VLOOKUP($A199,Economática!$A$3:$AI$823,16,FALSE)=\"-\"),1/0,VLOOKUP($A199,Economática!$A$3:$AI$823,16,FALSE)))","v":0.96},{"$f":"IF($A199=\"\",\"\",IF(OR(VLOOKUP($A199,Economática!$A$3:$AI$823,17,FALSE)=0,VLOOKUP($A199,Economática!$A$3:$AI$823,17,FALSE)=\"-\"),1/0,VLOOKUP($A199,Economática!$A$3:$AI$823,17,FALSE)))","v":5.97},{"$f":"IF($A199=\"\",\"\",IF(OR(VLOOKUP($A199,Economática!$A$3:$AI$823,18,FALSE)=0,VLOOKUP($A199,Economática!$A$3:$AI$823,18,FALSE)=\"-\"),1/0,VLOOKUP($A199,Economática!$A$3:$AI$823,18,FALSE)))","v":-1.41},{"$f":"IF($A199=\"\",\"\",IF(OR(VLOOKUP($A199,Economática!$A$3:$AI$823,19,FALSE)=0,VLOOKUP($A199,Economática!$A$3:$AI$823,19,FALSE)=\"-\"),1/0,VLOOKUP($A199,Economática!$A$3:$AI$823,19,FALSE)))","v":5.97},{"$f":"IF($A199=\"\",\"\",VLOOKUP($A199,Economática!$A$3:$AI$823,20,FALSE)/E199)","v":0.50168067226890756},{"$error":"#DIV/0!"},{"$error":"#DIV/0!"},2.9899497487437188,{"$f":"IF($A199=\"\",\"\",IF(OR(VLOOKUP($A199,Economática!$A$3:$AI$823,21,FALSE)/100=0,VLOOKUP($A199,Economática!$A$3:$AI$823,21,FALSE)/100=\"-\"),1/0,VLOOKUP($A199,Economática!$A$3:$AI$823,21,FALSE)/100))","v":{"$error":"#VALUE!"}},{"$f":"IF($A199=\"\",\"\",IF(OR(VLOOKUP($A199,Economática!$A$3:$AI$823,22,FALSE)/100=0,VLOOKUP($A199,Economática!$A$3:$AI$823,22,FALSE)/100=\"-\"),1/0,VLOOKUP($A199,Economática!$A$3:$AI$823,22,FALSE)/100))","v":-0.12134399999999999},{"$f":"IF($A199=\"\",\"\",IF(OR(VLOOKUP($A199,Economática!$A$3:$AI$823,23,FALSE)=0,VLOOKUP($A199,Economática!$A$3:$AI$823,23,FALSE)=\"-\"),1/0,VLOOKUP($A199,Economática!$A$3:$AI$823,23,FALSE)))","v":{"$error":"#DIV/0!"}},{"$f":"IF($A199=\"\",\"\",IF(OR(VLOOKUP($A199,Economática!$A$3:$AI$823,24,FALSE)=0,VLOOKUP($A199,Economática!$A$3:$AI$823,24,FALSE)=\"-\"),1/0,VLOOKUP($A199,Economática!$A$3:$AI$823,24,FALSE)))","v":{"$error":"#DIV/0!"}},{"$f":"IF($A199=\"\",\"\",IF(OR(VLOOKUP($A199,Economática!$A$3:$AI$823,25,FALSE)=0,VLOOKUP($A199,Economática!$A$3:$AI$823,25,FALSE)=\"-\"),1/0,VLOOKUP($A199,Economática!$A$3:$AI$823,25,FALSE)))","v":{"$error":"#DIV/0!"}},{"$f":"IF($A199=\"\",\"\",IF(ISERROR((F199+VLOOKUP($A199,Economática!$A$3:$AI$823,26,FALSE))/Y199),(F199+VLOOKUP($A199,Economática!$A$3:$AI$823,26,FALSE))/Y199,(F199+VLOOKUP($A199,Economática!$A$3:$AI$823,26,FALSE))/Y199))","v":{"$error":"#DIV/0!"}},{"$f":"IF($A199=\"\",\"\",IF(OR(-VLOOKUP($A199,Economática!$A$3:$AI$823,27,FALSE)=0,-VLOOKUP($A199,Economática!$A$3:$AI$823,27,FALSE)=\"-\"),1/0,-VLOOKUP($A199,Economática!$A$3:$AI$823,27,FALSE)))","v":{"$error":"#VALUE!"}},{"$error":"#VALUE!"},{"$f":"IF($A199=\"\",\"\",IF(OR(VLOOKUP($A199,Economática!$A$3:$AI$823,28,FALSE)=0,VLOOKUP($A199,Economática!$A$3:$AI$823,28,FALSE)=\"-\"),1/0,VLOOKUP($A199,Economática!$A$3:$AI$823,28,FALSE)))","v":-2.6},{"$f":"IF($A199=\"\",\"\",IF(OR(VLOOKUP($A199,Economática!$A$3:$AI$823,29,FALSE)=0,VLOOKUP($A199,Economática!$A$3:$AI$823,29,FALSE)=\"-\"),1/0,VLOOKUP($A199,Economática!$A$3:$AI$823,29,FALSE)))","v":-31.8},{"$f":"IF($A199=\"\",\"\",IF(OR(VLOOKUP($A199,Economática!$A$3:$AI$823,30,FALSE)/E199=0,VLOOKUP($A199,Economática!$A$3:$AI$823,30,FALSE)/E199=\"-\",VLOOKUP($A199,Economática!$A$3:$AI$823,30,FALSE)/E199<33.33%,VLOOKUP($A199,Economática!$A$3:$AI$823,30,FALSE)/E199>100%),1/0,VLOOKUP($A199,Economática!$A$3:$AI$823,30,FALSE)/E199))","v":0.33613445378151258},"HAGA4",{"$f":"IF($A199=\"\",\"\",IF(OR(VLOOKUP($A199,Economática!$A$3:$AI$823,25,FALSE)=0,VLOOKUP($A199,Economática!$A$3:$AI$823,25,FALSE)=\"-\"),1/0,VLOOKUP($A199,Economática!$A$3:$AI$823,25,FALSE)))","v":{"$error":"#DIV/0!"}},{"$f":"CONCATENATE(Economática!B201,\" \",Economática!C201)","v":"Haga S/A PN"}]
[{"$f":"IF(Economática!AG202=\"\",\"\",Economática!AG202)","v":"MGEL4"},{"$f":"IF($A200=\"\",\"\",VLOOKUP(VLOOKUP($A200,Economática!$A$3:$AI$823,6,FALSE),Correção!$B$16:$C$36,2,FALSE))","v":"Siderurgia e Metalurgia"},{"$f":"IF(Economática!B202=\"\",\"\",Economática!B202)","v":"Mangels Indl"},{"$f":"IF($A200=\"\",\"\",IF(OR(VLOOKUP($A200,Economática!$A$3:$AI$823,8,FALSE)=0,VLOOKUP($A200,Economática!$A$3:$AI$823,8,FALSE)=\"-\"),1/0,VLOOKUP($A200,Economática!$A$3:$AI$823,8,FALSE)))","v":7},{"$f":"IF(A200=\"\",\"\",IF(ISERROR(VLOOKUP(A200,Correção!$B$2:$G$13,9,FALSE)),VLOOKUP($A200,Economática!$A$3:$AI$823,9,FALSE),VLOOKUP(A200,Correção!$B$2:$G$13,9,FALSE)))","v":5.7830000000000004},{"$f":"IF($A200=\"\",\"\",Economática!G202)","v":40.479999999999997},{"$f":"IF($A200=\"\",\"\",IF(OR(VLOOKUP($A200,Economática!$A$3:$AI$823,10,FALSE)=0,VLOOKUP($A200,Economática!$A$3:$AI$823,10,FALSE)=\"-\"),1/0,VLOOKUP($A200,Economática!$A$3:$AI$823,10,FALSE)))","v":-364.13},{"$f":"IF($A200=\"\",\"\",IF(OR(VLOOKUP($A200,Economática!$A$3:$AI$823,11,FALSE)=0,VLOOKUP($A200,Economática!$A$3:$AI$823,11,FALSE)=\"-\"),1/0,VLOOKUP($A200,Economática!$A$3:$AI$823,11,FALSE)))","v":445.98},{"$f":"IF($A200=\"\",\"\",IF(OR(VLOOKUP($A200,Economática!$A$3:$AI$823,12,FALSE)=0,VLOOKUP($A200,Economática!$A$3:$AI$823,12,FALSE)=\"-\"),1/0,VLOOKUP($A200,Economática!$A$3:$AI$823,12,FALSE)))","v":476.74},{"$f":"IF($A200=\"\",\"\",IF(OR(VLOOKUP($A200,Economática!$A$3:$AI$823,13,FALSE)=0,VLOOKUP($A200,Economática!$A$3:$AI$823,13,FALSE)=\"-\"),1/0,VLOOKUP($A200,Economática!$A$3:$AI$823,13,FALSE)))","v":-8.69},{"$f":"IF($A200=\"\",\"\",IF(OR(VLOOKUP($A200,Economática!$A$3:$AI$823,14,FALSE)=0,VLOOKUP($A200,Economática!$A$3:$AI$823,14,FALSE)=\"-\"),1/0,VLOOKUP($A200,Economática!$A$3:$AI$823,14,FALSE)))","v":-0.44},{"$f":"IF($A200=\"\",\"\",IF(OR(VLOOKUP($A200,Economática!$A$3:$AI$823,15,FALSE)=0,VLOOKUP($A200,Economática!$A$3:$AI$823,15,FALSE)=\"-\"),1/0,VLOOKUP($A200,Economática!$A$3:$AI$823,15,FALSE)))","v":-15.31},{"$f":"IF($A200=\"\",\"\",IF(OR(VLOOKUP($A200,Economática!$A$3:$AI$823,16,FALSE)=0,VLOOKUP($A200,Economática!$A$3:$AI$823,16,FALSE)=\"-\"),1/0,VLOOKUP($A200,Economática!$A$3:$AI$823,16,FALSE)))","v":-18.829999999999998},{"$f":"IF($A200=\"\",\"\",IF(OR(VLOOKUP($A200,Economática!$A$3:$AI$823,17,FALSE)=0,VLOOKUP($A200,Economática!$A$3:$AI$823,17,FALSE)=\"-\"),1/0,VLOOKUP($A200,Economática!$A$3:$AI$823,17,FALSE)))","v":-16.7},{"$f":"IF($A200=\"\",\"\",IF(OR(VLOOKUP($A200,Economática!$A$3:$AI$823,18,FALSE)=0,VLOOKUP($A200,Economática!$A$3:$AI$823,18,FALSE)=\"-\"),1/0,VLOOKUP($A200,Economática!$A$3:$AI$823,18,FALSE)))","v":-8.69},{"$f":"IF($A200=\"\",\"\",IF(OR(VLOOKUP($A200,Economática!$A$3:$AI$823,19,FALSE)=0,VLOOKUP($A200,Economática!$A$3:$AI$823,19,FALSE)=\"-\"),1/0,VLOOKUP($A200,Economática!$A$3:$AI$823,19,FALSE)))","v":-16.7},{"$f":"IF($A200=\"\",\"\",VLOOKUP($A200,Economática!$A$3:$AI$823,20,FALSE)/E200)","v":-2.8877745114992215},{"$error":"#DIV/0!"},{"$error":"#DIV/0!"},{"$error":"#DIV/0!"},{"$f":"IF($A200=\"\",\"\",IF(OR(VLOOKUP($A200,Economática!$A$3:$AI$823,21,FALSE)/100=0,VLOOKUP($A200,Economática!$A$3:$AI$823,21,FALSE)/100=\"-\"),1/0,VLOOKUP($A200,Economática!$A$3:$AI$823,21,FALSE)/100))","v":{"$error":"#VALUE!"}},{"$f":"IF($A200=\"\",\"\",IF(OR(VLOOKUP($A200,Economática!$A$3:$AI$823,22,FALSE)/100=0,VLOOKUP($A200,Economática!$A$3:$AI$823,22,FALSE)/100=\"-\"),1/0,VLOOKUP($A200,Economática!$A$3:$AI$823,22,FALSE)/100))","v":-1.6296219999999999},{"$f":"IF($A200=\"\",\"\",IF(OR(VLOOKUP($A200,Economática!$A$3:$AI$823,23,FALSE)=0,VLOOKUP($A200,Economática!$A$3:$AI$823,23,FALSE)=\"-\"),1/0,VLOOKUP($A200,Economática!$A$3:$AI$823,23,FALSE)))","v":26.8},{"$f":"IF($A200=\"\",\"\",IF(OR(VLOOKUP($A200,Economática!$A$3:$AI$823,24,FALSE)=0,VLOOKUP($A200,Economática!$A$3:$AI$823,24,FALSE)=\"-\"),1/0,VLOOKUP($A200,Economática!$A$3:$AI$823,24,FALSE)))","v":54.3},{"$f":"IF($A200=\"\",\"\",IF(OR(VLOOKUP($A200,Economática!$A$3:$AI$823,25,FALSE)=0,VLOOKUP($A200,Economática!$A$3:$AI$823,25,FALSE)=\"-\"),1/0,VLOOKUP($A200,Economática!$A$3:$AI$823,25,FALSE)))","v":54.3},{"$f":"IF($A200=\"\",\"\",IF(ISERROR((F200+VLOOKUP($A200,Economática!$A$3:$AI$823,26,FALSE))/Y200),(F200+VLOOKUP($A200,Economática!$A$3:$AI$823,26,FALSE))/Y200,(F200+VLOOKUP($A200,Economática!$A$3:$AI$823,26,FALSE))/Y200))","v":11.673406998158379},{"$f":"IF($A200=\"\",\"\",IF(OR(-VLOOKUP($A200,Economática!$A$3:$AI$823,27,FALSE)=0,-VLOOKUP($A200,Economática!$A$3:$AI$823,27,FALSE)=\"-\"),1/0,-VLOOKUP($A200,Economática!$A$3:$AI$823,27,FALSE)))","v":{"$error":"#DIV/0!"}},{"$error":"#DIV/0!"},{"$f":"IF($A200=\"\",\"\",IF(OR(VLOOKUP($A200,Economática!$A$3:$AI$823,28,FALSE)=0,VLOOKUP($A200,Economática!$A$3:$AI$823,28,FALSE)=\"-\"),1/0,VLOOKUP($A200,Economática!$A$3:$AI$823,28,FALSE)))","v":-3.2},{"$f":"IF($A200=\"\",\"\",IF(OR(VLOOKUP($A200,Economática!$A$3:$AI$823,29,FALSE)=0,VLOOKUP($A200,Economática!$A$3:$AI$823,29,FALSE)=\"-\"),1/0,VLOOKUP($A200,Economática!$A$3:$AI$823,29,FALSE)))","v":69.900000000000006},{"$f":"IF($A200=\"\",\"\",IF(OR(VLOOKUP($A200,Economática!$A$3:$AI$823,30,FALSE)/E200=0,VLOOKUP($A200,Economática!$A$3:$AI$823,30,FALSE)/E200=\"-\",VLOOKUP($A200,Economática!$A$3:$AI$823,30,FALSE)/E200<33.33%,VLOOKUP($A200,Economática!$A$3:$AI$823,30,FALSE)/E200>100%),1/0,VLOOKUP($A200,Economática!$A$3:$AI$823,30,FALSE)/E200))","v":0.36313332180529134},"MGEL4",{"$f":"IF($A200=\"\",\"\",IF(OR(VLOOKUP($A200,Economática!$A$3:$AI$823,25,FALSE)=0,VLOOKUP($A200,Economática!$A$3:$AI$823,25,FALSE)=\"-\"),1/0,VLOOKUP($A200,Economática!$A$3:$AI$823,25,FALSE)))","v":54.3},{"$f":"CONCATENATE(Economática!B202,\" \",Economática!C202)","v":"Mangels Indl PN"}]
[{"$f":"IF(Economática!AG203=\"\",\"\",Economática!AG203)","v":"MNDL3"},{"$f":"IF($A201=\"\",\"\",VLOOKUP(VLOOKUP($A201,Economática!$A$3:$AI$823,6,FALSE),Correção!$B$16:$C$36,2,FALSE))","v":"Siderurgia e Metalurgia"},{"$f":"IF(Economática!B203=\"\",\"\",Economática!B203)","v":"Mundial"},{"$f":"IF($A201=\"\",\"\",IF(OR(VLOOKUP($A201,Economática!$A$3:$AI$823,8,FALSE)=0,VLOOKUP($A201,Economática!$A$3:$AI$823,8,FALSE)=\"-\"),1/0,VLOOKUP($A201,Economática!$A$3:$AI$823,8,FALSE)))","v":29.36},{"$f":"IF(A201=\"\",\"\",IF(ISERROR(VLOOKUP(A201,Correção!$B$2:$G$13,9,FALSE)),VLOOKUP($A201,Economática!$A$3:$AI$823,9,FALSE),VLOOKUP(A201,Correção!$B$2:$G$13,9,FALSE)))","v":2.4790000000000001},{"$f":"IF($A201=\"\",\"\",Economática!G203)","v":72.8},{"$f":"IF($A201=\"\",\"\",IF(OR(VLOOKUP($A201,Economática!$A$3:$AI$823,10,FALSE)=0,VLOOKUP($A201,Economática!$A$3:$AI$823,10,FALSE)=\"-\"),1/0,VLOOKUP($A201,Economática!$A$3:$AI$823,10,FALSE)))","v":-134.68},{"$f":"IF($A201=\"\",\"\",IF(OR(VLOOKUP($A201,Economática!$A$3:$AI$823,11,FALSE)=0,VLOOKUP($A201,Economática!$A$3:$AI$823,11,FALSE)=\"-\"),1/0,VLOOKUP($A201,Economática!$A$3:$AI$823,11,FALSE)))","v":437.12},{"$f":"IF($A201=\"\",\"\",IF(OR(VLOOKUP($A201,Economática!$A$3:$AI$823,12,FALSE)=0,VLOOKUP($A201,Economática!$A$3:$AI$823,12,FALSE)=\"-\"),1/0,VLOOKUP($A201,Economática!$A$3:$AI$823,12,FALSE)))","v":469.95},{"$f":"IF($A201=\"\",\"\",IF(OR(VLOOKUP($A201,Economática!$A$3:$AI$823,13,FALSE)=0,VLOOKUP($A201,Economática!$A$3:$AI$823,13,FALSE)=\"-\"),1/0,VLOOKUP($A201,Economática!$A$3:$AI$823,13,FALSE)))","v":-79.16},{"$f":"IF($A201=\"\",\"\",IF(OR(VLOOKUP($A201,Economática!$A$3:$AI$823,14,FALSE)=0,VLOOKUP($A201,Economática!$A$3:$AI$823,14,FALSE)=\"-\"),1/0,VLOOKUP($A201,Economática!$A$3:$AI$823,14,FALSE)))","v":0.87},{"$f":"IF($A201=\"\",\"\",IF(OR(VLOOKUP($A201,Economática!$A$3:$AI$823,15,FALSE)=0,VLOOKUP($A201,Economática!$A$3:$AI$823,15,FALSE)=\"-\"),1/0,VLOOKUP($A201,Economática!$A$3:$AI$823,15,FALSE)))","v":2.25},{"$f":"IF($A201=\"\",\"\",IF(OR(VLOOKUP($A201,Economática!$A$3:$AI$823,16,FALSE)=0,VLOOKUP($A201,Economática!$A$3:$AI$823,16,FALSE)=\"-\"),1/0,VLOOKUP($A201,Economática!$A$3:$AI$823,16,FALSE)))","v":0.53},{"$f":"IF($A201=\"\",\"\",IF(OR(VLOOKUP($A201,Economática!$A$3:$AI$823,17,FALSE)=0,VLOOKUP($A201,Economática!$A$3:$AI$823,17,FALSE)=\"-\"),1/0,VLOOKUP($A201,Economática!$A$3:$AI$823,17,FALSE)))","v":3.06},{"$f":"IF($A201=\"\",\"\",IF(OR(VLOOKUP($A201,Economática!$A$3:$AI$823,18,FALSE)=0,VLOOKUP($A201,Economática!$A$3:$AI$823,18,FALSE)=\"-\"),1/0,VLOOKUP($A201,Economática!$A$3:$AI$823,18,FALSE)))","v":-79.16},{"$f":"IF($A201=\"\",\"\",IF(OR(VLOOKUP($A201,Economática!$A$3:$AI$823,19,FALSE)=0,VLOOKUP($A201,Economática!$A$3:$AI$823,19,FALSE)=\"-\"),1/0,VLOOKUP($A201,Economática!$A$3:$AI$823,19,FALSE)))","v":3.06},{"$f":"IF($A201=\"\",\"\",VLOOKUP($A201,Economática!$A$3:$AI$823,20,FALSE)/E201)","v":1.2343686970552641},{"$error":"#DIV/0!"},{"$error":"#DIV/0!"},23.785437908496736,{"$f":"IF($A201=\"\",\"\",IF(OR(VLOOKUP($A201,Economática!$A$3:$AI$823,21,FALSE)/100=0,VLOOKUP($A201,Economática!$A$3:$AI$823,21,FALSE)/100=\"-\"),1/0,VLOOKUP($A201,Economática!$A$3:$AI$823,21,FALSE)/100))","v":{"$error":"#VALUE!"}},{"$f":"IF($A201=\"\",\"\",IF(OR(VLOOKUP($A201,Economática!$A$3:$AI$823,22,FALSE)/100=0,VLOOKUP($A201,Economática!$A$3:$AI$823,22,FALSE)/100=\"-\"),1/0,VLOOKUP($A201,Economática!$A$3:$AI$823,22,FALSE)/100))","v":-1.3982480000000002},{"$f":"IF($A201=\"\",\"\",IF(OR(VLOOKUP($A201,Economática!$A$3:$AI$823,23,FALSE)=0,VLOOKUP($A201,Economática!$A$3:$AI$823,23,FALSE)=\"-\"),1/0,VLOOKUP($A201,Economática!$A$3:$AI$823,23,FALSE)))","v":42},{"$f":"IF($A201=\"\",\"\",IF(OR(VLOOKUP($A201,Economática!$A$3:$AI$823,24,FALSE)=0,VLOOKUP($A201,Economática!$A$3:$AI$823,24,FALSE)=\"-\"),1/0,VLOOKUP($A201,Economática!$A$3:$AI$823,24,FALSE)))","v":69.400000000000006},{"$f":"IF($A201=\"\",\"\",IF(OR(VLOOKUP($A201,Economática!$A$3:$AI$823,25,FALSE)=0,VLOOKUP($A201,Economática!$A$3:$AI$823,25,FALSE)=\"-\"),1/0,VLOOKUP($A201,Economática!$A$3:$AI$823,25,FALSE)))","v":69.400000000000006},{"$f":"IF($A201=\"\",\"\",IF(ISERROR((F201+VLOOKUP($A201,Economática!$A$3:$AI$823,26,FALSE))/Y201),(F201+VLOOKUP($A201,Economática!$A$3:$AI$823,26,FALSE))/Y201,(F201+VLOOKUP($A201,Economática!$A$3:$AI$823,26,FALSE))/Y201))","v":3.7623775216138324},{"$f":"IF($A201=\"\",\"\",IF(OR(-VLOOKUP($A201,Economática!$A$3:$AI$823,27,FALSE)=0,-VLOOKUP($A201,Economática!$A$3:$AI$823,27,FALSE)=\"-\"),1/0,-VLOOKUP($A201,Economática!$A$3:$AI$823,27,FALSE)))","v":{"$error":"#DIV/0!"}},{"$error":"#DIV/0!"},{"$f":"IF($A201=\"\",\"\",IF(OR(VLOOKUP($A201,Economática!$A$3:$AI$823,28,FALSE)=0,VLOOKUP($A201,Economática!$A$3:$AI$823,28,FALSE)=\"-\"),1/0,VLOOKUP($A201,Economática!$A$3:$AI$823,28,FALSE)))","v":-0.3},{"$f":"IF($A201=\"\",\"\",IF(OR(VLOOKUP($A201,Economática!$A$3:$AI$823,29,FALSE)=0,VLOOKUP($A201,Economática!$A$3:$AI$823,29,FALSE)=\"-\"),1/0,VLOOKUP($A201,Economática!$A$3:$AI$823,29,FALSE)))","v":28.8},{"$f":"IF($A201=\"\",\"\",IF(OR(VLOOKUP($A201,Economática!$A$3:$AI$823,30,FALSE)/E201=0,VLOOKUP($A201,Economática!$A$3:$AI$823,30,FALSE)/E201=\"-\",VLOOKUP($A201,Economática!$A$3:$AI$823,30,FALSE)/E201<33.33%,VLOOKUP($A201,Economática!$A$3:$AI$823,30,FALSE)/E201>100%),1/0,VLOOKUP($A201,Economática!$A$3:$AI$823,30,FALSE)/E201))","v":{"$error":"#DIV/0!"}},"MNDL3",{"$f":"IF($A201=\"\",\"\",IF(OR(VLOOKUP($A201,Economática!$A$3:$AI$823,25,FALSE)=0,VLOOKUP($A201,Economática!$A$3:$AI$823,25,FALSE)=\"-\"),1/0,VLOOKUP($A201,Economática!$A$3:$AI$823,25,FALSE)))","v":69.400000000000006},{"$f":"CONCATENATE(Economática!B203,\" \",Economática!C203)","v":"Mundial ON"}]
[{"$f":"IF(Economática!AG204=\"\",\"\",Economática!AG204)","v":"CIEL3"},{"$f":"IF($A202=\"\",\"\",VLOOKUP(VLOOKUP($A202,Economática!$A$3:$AI$823,6,FALSE),Correção!$B$16:$C$36,2,FALSE))","v":"Software e Dados"},{"$f":"IF(Economática!B204=\"\",\"\",Economática!B204)","v":"Cielo"},{"$f":"IF($A202=\"\",\"\",IF(OR(VLOOKUP($A202,Economática!$A$3:$AI$823,8,FALSE)=0,VLOOKUP($A202,Economática!$A$3:$AI$823,8,FALSE)=\"-\"),1/0,VLOOKUP($A202,Economática!$A$3:$AI$823,8,FALSE)))","v":9.49},{"$f":"IF(A202=\"\",\"\",IF(ISERROR(VLOOKUP(A202,Correção!$B$2:$G$13,9,FALSE)),VLOOKUP($A202,Economática!$A$3:$AI$823,9,FALSE),VLOOKUP(A202,Correção!$B$2:$G$13,9,FALSE)))","v":2714.2339999999999},{"$f":"IF($A202=\"\",\"\",Economática!G204)","v":25758.080000000002},{"$f":"IF($A202=\"\",\"\",IF(OR(VLOOKUP($A202,Economática!$A$3:$AI$823,10,FALSE)=0,VLOOKUP($A202,Economática!$A$3:$AI$823,10,FALSE)=\"-\"),1/0,VLOOKUP($A202,Economática!$A$3:$AI$823,10,FALSE)))","v":11204.09},{"$f":"IF($A202=\"\",\"\",IF(OR(VLOOKUP($A202,Economática!$A$3:$AI$823,11,FALSE)=0,VLOOKUP($A202,Economática!$A$3:$AI$823,11,FALSE)=\"-\"),1/0,VLOOKUP($A202,Economática!$A$3:$AI$823,11,FALSE)))","v":11600.34},{"$f":"IF($A202=\"\",\"\",IF(OR(VLOOKUP($A202,Economática!$A$3:$AI$823,12,FALSE)=0,VLOOKUP($A202,Economática!$A$3:$AI$823,12,FALSE)=\"-\"),1/0,VLOOKUP($A202,Economática!$A$3:$AI$823,12,FALSE)))","v":11685.84},{"$f":"IF($A202=\"\",\"\",IF(OR(VLOOKUP($A202,Economática!$A$3:$AI$823,13,FALSE)=0,VLOOKUP($A202,Economática!$A$3:$AI$823,13,FALSE)=\"-\"),1/0,VLOOKUP($A202,Economática!$A$3:$AI$823,13,FALSE)))","v":4056.08},{"$f":"IF($A202=\"\",\"\",IF(OR(VLOOKUP($A202,Economática!$A$3:$AI$823,14,FALSE)=0,VLOOKUP($A202,Economática!$A$3:$AI$823,14,FALSE)=\"-\"),1/0,VLOOKUP($A202,Economática!$A$3:$AI$823,14,FALSE)))","v":1007.05},{"$f":"IF($A202=\"\",\"\",IF(OR(VLOOKUP($A202,Economática!$A$3:$AI$823,15,FALSE)=0,VLOOKUP($A202,Economática!$A$3:$AI$823,15,FALSE)=\"-\"),1/0,VLOOKUP($A202,Economática!$A$3:$AI$823,15,FALSE)))","v":1824.56},{"$f":"IF($A202=\"\",\"\",IF(OR(VLOOKUP($A202,Economática!$A$3:$AI$823,16,FALSE)=0,VLOOKUP($A202,Economática!$A$3:$AI$823,16,FALSE)=\"-\"),1/0,VLOOKUP($A202,Economática!$A$3:$AI$823,16,FALSE)))","v":2617.7800000000002},{"$f":"IF($A202=\"\",\"\",IF(OR(VLOOKUP($A202,Economática!$A$3:$AI$823,17,FALSE)=0,VLOOKUP($A202,Economática!$A$3:$AI$823,17,FALSE)=\"-\"),1/0,VLOOKUP($A202,Economática!$A$3:$AI$823,17,FALSE)))","v":3341.91},{"$f":"IF($A202=\"\",\"\",IF(OR(VLOOKUP($A202,Economática!$A$3:$AI$823,18,FALSE)=0,VLOOKUP($A202,Economática!$A$3:$AI$823,18,FALSE)=\"-\"),1/0,VLOOKUP($A202,Economática!$A$3:$AI$823,18,FALSE)))","v":4056.08},{"$f":"IF($A202=\"\",\"\",IF(OR(VLOOKUP($A202,Economática!$A$3:$AI$823,19,FALSE)=0,VLOOKUP($A202,Economática!$A$3:$AI$823,19,FALSE)=\"-\"),1/0,VLOOKUP($A202,Economática!$A$3:$AI$823,19,FALSE)))","v":3341.91},{"$f":"IF($A202=\"\",\"\",VLOOKUP($A202,Economática!$A$3:$AI$823,20,FALSE)/E202)","v":1.2312534586185273},4.1279012789612102,2.2989890888059628,7.7075925623371075,{"$f":"IF($A202=\"\",\"\",IF(OR(VLOOKUP($A202,Economática!$A$3:$AI$823,21,FALSE)/100=0,VLOOKUP($A202,Economática!$A$3:$AI$823,21,FALSE)/100=\"-\"),1/0,VLOOKUP($A202,Economática!$A$3:$AI$823,21,FALSE)/100))","v":0.23172000000000001},{"$f":"IF($A202=\"\",\"\",IF(OR(VLOOKUP($A202,Economática!$A$3:$AI$823,22,FALSE)/100=0,VLOOKUP($A202,Economática!$A$3:$AI$823,22,FALSE)/100=\"-\"),1/0,VLOOKUP($A202,Economática!$A$3:$AI$823,22,FALSE)/100))","v":0.33547600000000005},{"$f":"IF($A202=\"\",\"\",IF(OR(VLOOKUP($A202,Economática!$A$3:$AI$823,23,FALSE)=0,VLOOKUP($A202,Economática!$A$3:$AI$823,23,FALSE)=\"-\"),1/0,VLOOKUP($A202,Economática!$A$3:$AI$823,23,FALSE)))","v":5277.9},{"$f":"IF($A202=\"\",\"\",IF(OR(VLOOKUP($A202,Economática!$A$3:$AI$823,24,FALSE)=0,VLOOKUP($A202,Economática!$A$3:$AI$823,24,FALSE)=\"-\"),1/0,VLOOKUP($A202,Economática!$A$3:$AI$823,24,FALSE)))","v":4634.8},{"$f":"IF($A202=\"\",\"\",IF(OR(VLOOKUP($A202,Economática!$A$3:$AI$823,25,FALSE)=0,VLOOKUP($A202,Economática!$A$3:$AI$823,25,FALSE)=\"-\"),1/0,VLOOKUP($A202,Economática!$A$3:$AI$823,25,FALSE)))","v":4634.8},{"$f":"IF($A202=\"\",\"\",IF(ISERROR((F202+VLOOKUP($A202,Economática!$A$3:$AI$823,26,FALSE))/Y202),(F202+VLOOKUP($A202,Economática!$A$3:$AI$823,26,FALSE))/Y202,(F202+VLOOKUP($A202,Economática!$A$3:$AI$823,26,FALSE))/Y202))","v":6.633864028652801},{"$f":"IF($A202=\"\",\"\",IF(OR(-VLOOKUP($A202,Economática!$A$3:$AI$823,27,FALSE)=0,-VLOOKUP($A202,Economática!$A$3:$AI$823,27,FALSE)=\"-\"),1/0,-VLOOKUP($A202,Economática!$A$3:$AI$823,27,FALSE)))","v":7041.57},0.27337324831664467,{"$f":"IF($A202=\"\",\"\",IF(OR(VLOOKUP($A202,Economática!$A$3:$AI$823,28,FALSE)=0,VLOOKUP($A202,Economática!$A$3:$AI$823,28,FALSE)=\"-\"),1/0,VLOOKUP($A202,Economática!$A$3:$AI$823,28,FALSE)))","v":-12.2},{"$f":"IF($A202=\"\",\"\",IF(OR(VLOOKUP($A202,Economática!$A$3:$AI$823,29,FALSE)=0,VLOOKUP($A202,Economática!$A$3:$AI$823,29,FALSE)=\"-\"),1/0,VLOOKUP($A202,Economática!$A$3:$AI$823,29,FALSE)))","v":-54},{"$f":"IF($A202=\"\",\"\",IF(OR(VLOOKUP($A202,Economática!$A$3:$AI$823,30,FALSE)/E202=0,VLOOKUP($A202,Economática!$A$3:$AI$823,30,FALSE)/E202=\"-\",VLOOKUP($A202,Economática!$A$3:$AI$823,30,FALSE)/E202<33.33%,VLOOKUP($A202,Economática!$A$3:$AI$823,30,FALSE)/E202>100%),1/0,VLOOKUP($A202,Economática!$A$3:$AI$823,30,FALSE)/E202))","v":{"$error":"#DIV/0!"}},"CIEL3",{"$f":"IF($A202=\"\",\"\",IF(OR(VLOOKUP($A202,Economática!$A$3:$AI$823,25,FALSE)=0,VLOOKUP($A202,Economática!$A$3:$AI$823,25,FALSE)=\"-\"),1/0,VLOOKUP($A202,Economática!$A$3:$AI$823,25,FALSE)))","v":4634.8},{"$f":"CONCATENATE(Economática!B204,\" \",Economática!C204)","v":"Cielo ON"}]
[{"$f":"IF(Economática!AG205=\"\",\"\",Economática!AG205)","v":"LINX3"},{"$f":"IF($A203=\"\",\"\",VLOOKUP(VLOOKUP($A203,Economática!$A$3:$AI$823,6,FALSE),Correção!$B$16:$C$36,2,FALSE))","v":"Software e Dados"},{"$f":"IF(Economática!B205=\"\",\"\",Economática!B205)","v":"Linx"},{"$f":"IF($A203=\"\",\"\",IF(OR(VLOOKUP($A203,Economática!$A$3:$AI$823,8,FALSE)=0,VLOOKUP($A203,Economática!$A$3:$AI$823,8,FALSE)=\"-\"),1/0,VLOOKUP($A203,Economática!$A$3:$AI$823,8,FALSE)))","v":37},{"$f":"IF(A203=\"\",\"\",IF(ISERROR(VLOOKUP(A203,Correção!$B$2:$G$13,9,FALSE)),VLOOKUP($A203,Economática!$A$3:$AI$823,9,FALSE),VLOOKUP(A203,Correção!$B$2:$G$13,9,FALSE)))","v":158.78100000000001},{"$f":"IF($A203=\"\",\"\",Economática!G205)","v":5874.91},{"$f":"IF($A203=\"\",\"\",IF(OR(VLOOKUP($A203,Economática!$A$3:$AI$823,10,FALSE)=0,VLOOKUP($A203,Economática!$A$3:$AI$823,10,FALSE)=\"-\"),1/0,VLOOKUP($A203,Economática!$A$3:$AI$823,10,FALSE)))","v":1057.21},{"$f":"IF($A203=\"\",\"\",IF(OR(VLOOKUP($A203,Economática!$A$3:$AI$823,11,FALSE)=0,VLOOKUP($A203,Economática!$A$3:$AI$823,11,FALSE)=\"-\"),1/0,VLOOKUP($A203,Economática!$A$3:$AI$823,11,FALSE)))","v":571.59},{"$f":"IF($A203=\"\",\"\",IF(OR(VLOOKUP($A203,Economática!$A$3:$AI$823,12,FALSE)=0,VLOOKUP($A203,Economática!$A$3:$AI$823,12,FALSE)=\"-\"),1/0,VLOOKUP($A203,Economática!$A$3:$AI$823,12,FALSE)))","v":685.56},{"$f":"IF($A203=\"\",\"\",IF(OR(VLOOKUP($A203,Economática!$A$3:$AI$823,13,FALSE)=0,VLOOKUP($A203,Economática!$A$3:$AI$823,13,FALSE)=\"-\"),1/0,VLOOKUP($A203,Economática!$A$3:$AI$823,13,FALSE)))","v":84.85},{"$f":"IF($A203=\"\",\"\",IF(OR(VLOOKUP($A203,Economática!$A$3:$AI$823,14,FALSE)=0,VLOOKUP($A203,Economática!$A$3:$AI$823,14,FALSE)=\"-\"),1/0,VLOOKUP($A203,Economática!$A$3:$AI$823,14,FALSE)))","v":26.45},{"$f":"IF($A203=\"\",\"\",IF(OR(VLOOKUP($A203,Economática!$A$3:$AI$823,15,FALSE)=0,VLOOKUP($A203,Economática!$A$3:$AI$823,15,FALSE)=\"-\"),1/0,VLOOKUP($A203,Economática!$A$3:$AI$823,15,FALSE)))","v":44.8},{"$f":"IF($A203=\"\",\"\",IF(OR(VLOOKUP($A203,Economática!$A$3:$AI$823,16,FALSE)=0,VLOOKUP($A203,Economática!$A$3:$AI$823,16,FALSE)=\"-\"),1/0,VLOOKUP($A203,Economática!$A$3:$AI$823,16,FALSE)))","v":53.84},{"$f":"IF($A203=\"\",\"\",IF(OR(VLOOKUP($A203,Economática!$A$3:$AI$823,17,FALSE)=0,VLOOKUP($A203,Economática!$A$3:$AI$823,17,FALSE)=\"-\"),1/0,VLOOKUP($A203,Economática!$A$3:$AI$823,17,FALSE)))","v":71.06},{"$f":"IF($A203=\"\",\"\",IF(OR(VLOOKUP($A203,Economática!$A$3:$AI$823,18,FALSE)=0,VLOOKUP($A203,Economática!$A$3:$AI$823,18,FALSE)=\"-\"),1/0,VLOOKUP($A203,Economática!$A$3:$AI$823,18,FALSE)))","v":84.85},{"$f":"IF($A203=\"\",\"\",IF(OR(VLOOKUP($A203,Economática!$A$3:$AI$823,19,FALSE)=0,VLOOKUP($A203,Economática!$A$3:$AI$823,19,FALSE)=\"-\"),1/0,VLOOKUP($A203,Economática!$A$3:$AI$823,19,FALSE)))","v":71.06},{"$f":"IF($A203=\"\",\"\",VLOOKUP($A203,Economática!$A$3:$AI$823,20,FALSE)/E203)","v":0.44753465465011555},6.6582903496010228,5.5569820565450572,82.675161835068963,{"$f":"IF($A203=\"\",\"\",IF(OR(VLOOKUP($A203,Economática!$A$3:$AI$823,21,FALSE)/100=0,VLOOKUP($A203,Economática!$A$3:$AI$823,21,FALSE)/100=\"-\"),1/0,VLOOKUP($A203,Economática!$A$3:$AI$823,21,FALSE)/100))","v":6.0704000000000001E-2},{"$f":"IF($A203=\"\",\"\",IF(OR(VLOOKUP($A203,Economática!$A$3:$AI$823,22,FALSE)/100=0,VLOOKUP($A203,Economática!$A$3:$AI$823,22,FALSE)/100=\"-\"),1/0,VLOOKUP($A203,Economática!$A$3:$AI$823,22,FALSE)/100))","v":-0.20170399999999999},{"$f":"IF($A203=\"\",\"\",IF(OR(VLOOKUP($A203,Economática!$A$3:$AI$823,23,FALSE)=0,VLOOKUP($A203,Economática!$A$3:$AI$823,23,FALSE)=\"-\"),1/0,VLOOKUP($A203,Economática!$A$3:$AI$823,23,FALSE)))","v":144.4},{"$f":"IF($A203=\"\",\"\",IF(OR(VLOOKUP($A203,Economática!$A$3:$AI$823,24,FALSE)=0,VLOOKUP($A203,Economática!$A$3:$AI$823,24,FALSE)=\"-\"),1/0,VLOOKUP($A203,Economática!$A$3:$AI$823,24,FALSE)))","v":168.8},{"$f":"IF($A203=\"\",\"\",IF(OR(VLOOKUP($A203,Economática!$A$3:$AI$823,25,FALSE)=0,VLOOKUP($A203,Economática!$A$3:$AI$823,25,FALSE)=\"-\"),1/0,VLOOKUP($A203,Economática!$A$3:$AI$823,25,FALSE)))","v":168.8},{"$f":"IF($A203=\"\",\"\",IF(ISERROR((F203+VLOOKUP($A203,Economática!$A$3:$AI$823,26,FALSE))/Y203),(F203+VLOOKUP($A203,Economática!$A$3:$AI$823,26,FALSE))/Y203,(F203+VLOOKUP($A203,Economática!$A$3:$AI$823,26,FALSE))/Y203))","v":33.540681279620848},{"$f":"IF($A203=\"\",\"\",IF(OR(-VLOOKUP($A203,Economática!$A$3:$AI$823,27,FALSE)=0,-VLOOKUP($A203,Economática!$A$3:$AI$823,27,FALSE)=\"-\"),1/0,-VLOOKUP($A203,Economática!$A$3:$AI$823,27,FALSE)))","v":38},6.4681841934599851E-3,{"$f":"IF($A203=\"\",\"\",IF(OR(VLOOKUP($A203,Economática!$A$3:$AI$823,28,FALSE)=0,VLOOKUP($A203,Economática!$A$3:$AI$823,28,FALSE)=\"-\"),1/0,VLOOKUP($A203,Economática!$A$3:$AI$823,28,FALSE)))","v":29.7},{"$f":"IF($A203=\"\",\"\",IF(OR(VLOOKUP($A203,Economática!$A$3:$AI$823,29,FALSE)=0,VLOOKUP($A203,Economática!$A$3:$AI$823,29,FALSE)=\"-\"),1/0,VLOOKUP($A203,Economática!$A$3:$AI$823,29,FALSE)))","v":74.8},{"$f":"IF($A203=\"\",\"\",IF(OR(VLOOKUP($A203,Economática!$A$3:$AI$823,30,FALSE)/E203=0,VLOOKUP($A203,Economática!$A$3:$AI$823,30,FALSE)/E203=\"-\",VLOOKUP($A203,Economática!$A$3:$AI$823,30,FALSE)/E203<33.33%,VLOOKUP($A203,Economática!$A$3:$AI$823,30,FALSE)/E203>100%),1/0,VLOOKUP($A203,Economática!$A$3:$AI$823,30,FALSE)/E203))","v":{"$error":"#DIV/0!"}},"LINX3",{"$f":"IF($A203=\"\",\"\",IF(OR(VLOOKUP($A203,Economática!$A$3:$AI$823,25,FALSE)=0,VLOOKUP($A203,Economática!$A$3:$AI$823,25,FALSE)=\"-\"),1/0,VLOOKUP($A203,Economática!$A$3:$AI$823,25,FALSE)))","v":168.8},{"$f":"CONCATENATE(Economática!B205,\" \",Economática!C205)","v":"Linx ON"}]
[{"$f":"IF(Economática!AG206=\"\",\"\",Economática!AG206)","v":"TOTS3"},{"$f":"IF($A204=\"\",\"\",VLOOKUP(VLOOKUP($A204,Economática!$A$3:$AI$823,6,FALSE),Correção!$B$16:$C$36,2,FALSE))","v":"Software e Dados"},{"$f":"IF(Economática!B206=\"\",\"\",Economática!B206)","v":"Totvs"},{"$f":"IF($A204=\"\",\"\",IF(OR(VLOOKUP($A204,Economática!$A$3:$AI$823,8,FALSE)=0,VLOOKUP($A204,Economática!$A$3:$AI$823,8,FALSE)=\"-\"),1/0,VLOOKUP($A204,Economática!$A$3:$AI$823,8,FALSE)))","v":39.4},{"$f":"IF(A204=\"\",\"\",IF(ISERROR(VLOOKUP(A204,Correção!$B$2:$G$13,9,FALSE)),VLOOKUP($A204,Economática!$A$3:$AI$823,9,FALSE),VLOOKUP(A204,Correção!$B$2:$G$13,9,FALSE)))","v":163.452},{"$f":"IF($A204=\"\",\"\",Economática!G206)","v":6439.99},{"$f":"IF($A204=\"\",\"\",IF(OR(VLOOKUP($A204,Economática!$A$3:$AI$823,10,FALSE)=0,VLOOKUP($A204,Economática!$A$3:$AI$823,10,FALSE)=\"-\"),1/0,VLOOKUP($A204,Economática!$A$3:$AI$823,10,FALSE)))","v":1287.04},{"$f":"IF($A204=\"\",\"\",IF(OR(VLOOKUP($A204,Economática!$A$3:$AI$823,11,FALSE)=0,VLOOKUP($A204,Economática!$A$3:$AI$823,11,FALSE)=\"-\"),1/0,VLOOKUP($A204,Economática!$A$3:$AI$823,11,FALSE)))","v":2227.33},{"$f":"IF($A204=\"\",\"\",IF(OR(VLOOKUP($A204,Economática!$A$3:$AI$823,12,FALSE)=0,VLOOKUP($A204,Economática!$A$3:$AI$823,12,FALSE)=\"-\"),1/0,VLOOKUP($A204,Economática!$A$3:$AI$823,12,FALSE)))","v":2320.27},{"$f":"IF($A204=\"\",\"\",IF(OR(VLOOKUP($A204,Economática!$A$3:$AI$823,13,FALSE)=0,VLOOKUP($A204,Economática!$A$3:$AI$823,13,FALSE)=\"-\"),1/0,VLOOKUP($A204,Economática!$A$3:$AI$823,13,FALSE)))","v":92.98},{"$f":"IF($A204=\"\",\"\",IF(OR(VLOOKUP($A204,Economática!$A$3:$AI$823,14,FALSE)=0,VLOOKUP($A204,Economática!$A$3:$AI$823,14,FALSE)=\"-\"),1/0,VLOOKUP($A204,Economática!$A$3:$AI$823,14,FALSE)))","v":33.979999999999997},{"$f":"IF($A204=\"\",\"\",IF(OR(VLOOKUP($A204,Economática!$A$3:$AI$823,15,FALSE)=0,VLOOKUP($A204,Economática!$A$3:$AI$823,15,FALSE)=\"-\"),1/0,VLOOKUP($A204,Economática!$A$3:$AI$823,15,FALSE)))","v":65.28},{"$f":"IF($A204=\"\",\"\",IF(OR(VLOOKUP($A204,Economática!$A$3:$AI$823,16,FALSE)=0,VLOOKUP($A204,Economática!$A$3:$AI$823,16,FALSE)=\"-\"),1/0,VLOOKUP($A204,Economática!$A$3:$AI$823,16,FALSE)))","v":101.27},{"$f":"IF($A204=\"\",\"\",IF(OR(VLOOKUP($A204,Economática!$A$3:$AI$823,17,FALSE)=0,VLOOKUP($A204,Economática!$A$3:$AI$823,17,FALSE)=\"-\"),1/0,VLOOKUP($A204,Economática!$A$3:$AI$823,17,FALSE)))","v":59.55},{"$f":"IF($A204=\"\",\"\",IF(OR(VLOOKUP($A204,Economática!$A$3:$AI$823,18,FALSE)=0,VLOOKUP($A204,Economática!$A$3:$AI$823,18,FALSE)=\"-\"),1/0,VLOOKUP($A204,Economática!$A$3:$AI$823,18,FALSE)))","v":92.98},{"$f":"IF($A204=\"\",\"\",IF(OR(VLOOKUP($A204,Economática!$A$3:$AI$823,19,FALSE)=0,VLOOKUP($A204,Economática!$A$3:$AI$823,19,FALSE)=\"-\"),1/0,VLOOKUP($A204,Economática!$A$3:$AI$823,19,FALSE)))","v":59.55},{"$f":"IF($A204=\"\",\"\",VLOOKUP($A204,Economática!$A$3:$AI$823,20,FALSE)/E204)","v":0.36432714191322224},7.8741159484129897,5.0037363252113378,108.14456423173803,{"$f":"IF($A204=\"\",\"\",IF(OR(VLOOKUP($A204,Economática!$A$3:$AI$823,21,FALSE)/100=0,VLOOKUP($A204,Economática!$A$3:$AI$823,21,FALSE)/100=\"-\"),1/0,VLOOKUP($A204,Economática!$A$3:$AI$823,21,FALSE)/100))","v":4.8069000000000001E-2},{"$f":"IF($A204=\"\",\"\",IF(OR(VLOOKUP($A204,Economática!$A$3:$AI$823,22,FALSE)/100=0,VLOOKUP($A204,Economática!$A$3:$AI$823,22,FALSE)/100=\"-\"),1/0,VLOOKUP($A204,Economática!$A$3:$AI$823,22,FALSE)/100))","v":2.0074000000000002E-2},{"$f":"IF($A204=\"\",\"\",IF(OR(VLOOKUP($A204,Economática!$A$3:$AI$823,23,FALSE)=0,VLOOKUP($A204,Economática!$A$3:$AI$823,23,FALSE)=\"-\"),1/0,VLOOKUP($A204,Economática!$A$3:$AI$823,23,FALSE)))","v":294.5},{"$f":"IF($A204=\"\",\"\",IF(OR(VLOOKUP($A204,Economática!$A$3:$AI$823,24,FALSE)=0,VLOOKUP($A204,Economática!$A$3:$AI$823,24,FALSE)=\"-\"),1/0,VLOOKUP($A204,Economática!$A$3:$AI$823,24,FALSE)))","v":259.39999999999998},{"$f":"IF($A204=\"\",\"\",IF(OR(VLOOKUP($A204,Economática!$A$3:$AI$823,25,FALSE)=0,VLOOKUP($A204,Economática!$A$3:$AI$823,25,FALSE)=\"-\"),1/0,VLOOKUP($A204,Economática!$A$3:$AI$823,25,FALSE)))","v":259.39999999999998},{"$f":"IF($A204=\"\",\"\",IF(ISERROR((F204+VLOOKUP($A204,Economática!$A$3:$AI$823,26,FALSE))/Y204),(F204+VLOOKUP($A204,Economática!$A$3:$AI$823,26,FALSE))/Y204,(F204+VLOOKUP($A204,Economática!$A$3:$AI$823,26,FALSE))/Y204))","v":24.926175790285274},{"$f":"IF($A204=\"\",\"\",IF(OR(-VLOOKUP($A204,Economática!$A$3:$AI$823,27,FALSE)=0,-VLOOKUP($A204,Economática!$A$3:$AI$823,27,FALSE)=\"-\"),1/0,-VLOOKUP($A204,Economática!$A$3:$AI$823,27,FALSE)))","v":51.09},7.9332421323635612E-3,{"$f":"IF($A204=\"\",\"\",IF(OR(VLOOKUP($A204,Economática!$A$3:$AI$823,28,FALSE)=0,VLOOKUP($A204,Economática!$A$3:$AI$823,28,FALSE)=\"-\"),1/0,VLOOKUP($A204,Economática!$A$3:$AI$823,28,FALSE)))","v":8.1},{"$f":"IF($A204=\"\",\"\",IF(OR(VLOOKUP($A204,Economática!$A$3:$AI$823,29,FALSE)=0,VLOOKUP($A204,Economática!$A$3:$AI$823,29,FALSE)=\"-\"),1/0,VLOOKUP($A204,Economática!$A$3:$AI$823,29,FALSE)))","v":33.200000000000003},{"$f":"IF($A204=\"\",\"\",IF(OR(VLOOKUP($A204,Economática!$A$3:$AI$823,30,FALSE)/E204=0,VLOOKUP($A204,Economática!$A$3:$AI$823,30,FALSE)/E204=\"-\",VLOOKUP($A204,Economática!$A$3:$AI$823,30,FALSE)/E204<33.33%,VLOOKUP($A204,Economática!$A$3:$AI$823,30,FALSE)/E204>100%),1/0,VLOOKUP($A204,Economática!$A$3:$AI$823,30,FALSE)/E204))","v":{"$error":"#DIV/0!"}},"TOTS3",{"$f":"IF($A204=\"\",\"\",IF(OR(VLOOKUP($A204,Economática!$A$3:$AI$823,25,FALSE)=0,VLOOKUP($A204,Economática!$A$3:$AI$823,25,FALSE)=\"-\"),1/0,VLOOKUP($A204,Economática!$A$3:$AI$823,25,FALSE)))","v":259.39999999999998},{"$f":"CONCATENATE(Economática!B206,\" \",Economática!C206)","v":"Totvs ON"}]
[{"$f":"IF(Economática!AG207=\"\",\"\",Economática!AG207)","v":"SQIA3"},{"$f":"IF($A205=\"\",\"\",VLOOKUP(VLOOKUP($A205,Economática!$A$3:$AI$823,6,FALSE),Correção!$B$16:$C$36,2,FALSE))","v":"Software e Dados"},{"$f":"IF(Economática!B207=\"\",\"\",Economática!B207)","v":"Sinqia"},{"$f":"IF($A205=\"\",\"\",IF(OR(VLOOKUP($A205,Economática!$A$3:$AI$823,8,FALSE)=0,VLOOKUP($A205,Economática!$A$3:$AI$823,8,FALSE)=\"-\"),1/0,VLOOKUP($A205,Economática!$A$3:$AI$823,8,FALSE)))","v":34},{"$f":"IF(A205=\"\",\"\",IF(ISERROR(VLOOKUP(A205,Correção!$B$2:$G$13,9,FALSE)),VLOOKUP($A205,Economática!$A$3:$AI$823,9,FALSE),VLOOKUP(A205,Correção!$B$2:$G$13,9,FALSE)))","v":11.518000000000001},{"$f":"IF($A205=\"\",\"\",Economática!G207)","v":391.6},{"$f":"IF($A205=\"\",\"\",IF(OR(VLOOKUP($A205,Economática!$A$3:$AI$823,10,FALSE)=0,VLOOKUP($A205,Economática!$A$3:$AI$823,10,FALSE)=\"-\"),1/0,VLOOKUP($A205,Economática!$A$3:$AI$823,10,FALSE)))","v":85.35},{"$f":"IF($A205=\"\",\"\",IF(OR(VLOOKUP($A205,Economática!$A$3:$AI$823,11,FALSE)=0,VLOOKUP($A205,Economática!$A$3:$AI$823,11,FALSE)=\"-\"),1/0,VLOOKUP($A205,Economática!$A$3:$AI$823,11,FALSE)))","v":134.91},{"$f":"IF($A205=\"\",\"\",IF(OR(VLOOKUP($A205,Economática!$A$3:$AI$823,12,FALSE)=0,VLOOKUP($A205,Economática!$A$3:$AI$823,12,FALSE)=\"-\"),1/0,VLOOKUP($A205,Economática!$A$3:$AI$823,12,FALSE)))","v":142.11000000000001},{"$f":"IF($A205=\"\",\"\",IF(OR(VLOOKUP($A205,Economática!$A$3:$AI$823,13,FALSE)=0,VLOOKUP($A205,Economática!$A$3:$AI$823,13,FALSE)=\"-\"),1/0,VLOOKUP($A205,Economática!$A$3:$AI$823,13,FALSE)))","v":7.46},{"$f":"IF($A205=\"\",\"\",IF(OR(VLOOKUP($A205,Economática!$A$3:$AI$823,14,FALSE)=0,VLOOKUP($A205,Economática!$A$3:$AI$823,14,FALSE)=\"-\"),1/0,VLOOKUP($A205,Economática!$A$3:$AI$823,14,FALSE)))","v":-1.8},{"$f":"IF($A205=\"\",\"\",IF(OR(VLOOKUP($A205,Economática!$A$3:$AI$823,15,FALSE)=0,VLOOKUP($A205,Economática!$A$3:$AI$823,15,FALSE)=\"-\"),1/0,VLOOKUP($A205,Economática!$A$3:$AI$823,15,FALSE)))","v":0.21},{"$f":"IF($A205=\"\",\"\",IF(OR(VLOOKUP($A205,Economática!$A$3:$AI$823,16,FALSE)=0,VLOOKUP($A205,Economática!$A$3:$AI$823,16,FALSE)=\"-\"),1/0,VLOOKUP($A205,Economática!$A$3:$AI$823,16,FALSE)))","v":1.64},{"$f":"IF($A205=\"\",\"\",IF(OR(VLOOKUP($A205,Economática!$A$3:$AI$823,17,FALSE)=0,VLOOKUP($A205,Economática!$A$3:$AI$823,17,FALSE)=\"-\"),1/0,VLOOKUP($A205,Economática!$A$3:$AI$823,17,FALSE)))","v":2.73},{"$f":"IF($A205=\"\",\"\",IF(OR(VLOOKUP($A205,Economática!$A$3:$AI$823,18,FALSE)=0,VLOOKUP($A205,Economática!$A$3:$AI$823,18,FALSE)=\"-\"),1/0,VLOOKUP($A205,Economática!$A$3:$AI$823,18,FALSE)))","v":7.46},{"$f":"IF($A205=\"\",\"\",IF(OR(VLOOKUP($A205,Economática!$A$3:$AI$823,19,FALSE)=0,VLOOKUP($A205,Economática!$A$3:$AI$823,19,FALSE)=\"-\"),1/0,VLOOKUP($A205,Economática!$A$3:$AI$823,19,FALSE)))","v":2.73},{"$f":"IF($A205=\"\",\"\",VLOOKUP($A205,Economática!$A$3:$AI$823,20,FALSE)/E205)","v":0.23702031602708801},7.4101406494183006,4.5883069712946698,143.44761904761907,{"$f":"IF($A205=\"\",\"\",IF(OR(VLOOKUP($A205,Economática!$A$3:$AI$823,21,FALSE)/100=0,VLOOKUP($A205,Economática!$A$3:$AI$823,21,FALSE)/100=\"-\"),1/0,VLOOKUP($A205,Economática!$A$3:$AI$823,21,FALSE)/100))","v":3.6055000000000004E-2},{"$f":"IF($A205=\"\",\"\",IF(OR(VLOOKUP($A205,Economática!$A$3:$AI$823,22,FALSE)/100=0,VLOOKUP($A205,Economática!$A$3:$AI$823,22,FALSE)/100=\"-\"),1/0,VLOOKUP($A205,Economática!$A$3:$AI$823,22,FALSE)/100))","v":-0.13389599999999999},{"$f":"IF($A205=\"\",\"\",IF(OR(VLOOKUP($A205,Economática!$A$3:$AI$823,23,FALSE)=0,VLOOKUP($A205,Economática!$A$3:$AI$823,23,FALSE)=\"-\"),1/0,VLOOKUP($A205,Economática!$A$3:$AI$823,23,FALSE)))","v":18.2},{"$f":"IF($A205=\"\",\"\",IF(OR(VLOOKUP($A205,Economática!$A$3:$AI$823,24,FALSE)=0,VLOOKUP($A205,Economática!$A$3:$AI$823,24,FALSE)=\"-\"),1/0,VLOOKUP($A205,Economática!$A$3:$AI$823,24,FALSE)))","v":15.3},{"$f":"IF($A205=\"\",\"\",IF(OR(VLOOKUP($A205,Economática!$A$3:$AI$823,25,FALSE)=0,VLOOKUP($A205,Economática!$A$3:$AI$823,25,FALSE)=\"-\"),1/0,VLOOKUP($A205,Economática!$A$3:$AI$823,25,FALSE)))","v":15.3},{"$f":"IF($A205=\"\",\"\",IF(ISERROR((F205+VLOOKUP($A205,Economática!$A$3:$AI$823,26,FALSE))/Y205),(F205+VLOOKUP($A205,Economática!$A$3:$AI$823,26,FALSE))/Y205,(F205+VLOOKUP($A205,Economática!$A$3:$AI$823,26,FALSE))/Y205))","v":24.847843137254902},{"$f":"IF($A205=\"\",\"\",IF(OR(-VLOOKUP($A205,Economática!$A$3:$AI$823,27,FALSE)=0,-VLOOKUP($A205,Economática!$A$3:$AI$823,27,FALSE)=\"-\"),1/0,-VLOOKUP($A205,Economática!$A$3:$AI$823,27,FALSE)))","v":2.09},5.3370786516853926E-3,{"$f":"IF($A205=\"\",\"\",IF(OR(VLOOKUP($A205,Economática!$A$3:$AI$823,28,FALSE)=0,VLOOKUP($A205,Economática!$A$3:$AI$823,28,FALSE)=\"-\"),1/0,VLOOKUP($A205,Economática!$A$3:$AI$823,28,FALSE)))","v":14},{"$f":"IF($A205=\"\",\"\",IF(OR(VLOOKUP($A205,Economática!$A$3:$AI$823,29,FALSE)=0,VLOOKUP($A205,Economática!$A$3:$AI$823,29,FALSE)=\"-\"),1/0,VLOOKUP($A205,Economática!$A$3:$AI$823,29,FALSE)))","v":28.2},{"$f":"IF($A205=\"\",\"\",IF(OR(VLOOKUP($A205,Economática!$A$3:$AI$823,30,FALSE)/E205=0,VLOOKUP($A205,Economática!$A$3:$AI$823,30,FALSE)/E205=\"-\",VLOOKUP($A205,Economática!$A$3:$AI$823,30,FALSE)/E205<33.33%,VLOOKUP($A205,Economática!$A$3:$AI$823,30,FALSE)/E205>100%),1/0,VLOOKUP($A205,Economática!$A$3:$AI$823,30,FALSE)/E205))","v":{"$error":"#DIV/0!"}},"SQIA3",{"$f":"IF($A205=\"\",\"\",IF(OR(VLOOKUP($A205,Economática!$A$3:$AI$823,25,FALSE)=0,VLOOKUP($A205,Economática!$A$3:$AI$823,25,FALSE)=\"-\"),1/0,VLOOKUP($A205,Economática!$A$3:$AI$823,25,FALSE)))","v":15.3},{"$f":"CONCATENATE(Economática!B207,\" \",Economática!C207)","v":"Sinqia ON"}]
[{"$f":"IF(Economática!AG208=\"\",\"\",Economática!AG208)","v":"OIBR4"},{"$f":"IF($A206=\"\",\"\",VLOOKUP(VLOOKUP($A206,Economática!$A$3:$AI$823,6,FALSE),Correção!$B$16:$C$36,2,FALSE))","v":"Telecom"},{"$f":"IF(Economática!B208=\"\",\"\",Economática!B208)","v":"Oi"},{"$f":"IF($A206=\"\",\"\",IF(OR(VLOOKUP($A206,Economática!$A$3:$AI$823,8,FALSE)=0,VLOOKUP($A206,Economática!$A$3:$AI$823,8,FALSE)=\"-\"),1/0,VLOOKUP($A206,Economática!$A$3:$AI$823,8,FALSE)))","v":1.51},{"$f":"IF(A206=\"\",\"\",IF(ISERROR(VLOOKUP(A206,Correção!$B$2:$G$13,9,FALSE)),VLOOKUP($A206,Economática!$A$3:$AI$823,9,FALSE),VLOOKUP(A206,Correção!$B$2:$G$13,9,FALSE)))","v":5954.2049999999999},{"$f":"IF($A206=\"\",\"\",Economática!G208)","v":9048.81},{"$f":"IF($A206=\"\",\"\",IF(OR(VLOOKUP($A206,Economática!$A$3:$AI$823,10,FALSE)=0,VLOOKUP($A206,Economática!$A$3:$AI$823,10,FALSE)=\"-\"),1/0,VLOOKUP($A206,Economática!$A$3:$AI$823,10,FALSE)))","v":25986.86},{"$f":"IF($A206=\"\",\"\",IF(OR(VLOOKUP($A206,Economática!$A$3:$AI$823,11,FALSE)=0,VLOOKUP($A206,Economática!$A$3:$AI$823,11,FALSE)=\"-\"),1/0,VLOOKUP($A206,Economática!$A$3:$AI$823,11,FALSE)))","v":23789.65},{"$f":"IF($A206=\"\",\"\",IF(OR(VLOOKUP($A206,Economática!$A$3:$AI$823,12,FALSE)=0,VLOOKUP($A206,Economática!$A$3:$AI$823,12,FALSE)=\"-\"),1/0,VLOOKUP($A206,Economática!$A$3:$AI$823,12,FALSE)))","v":{"$error":"#DIV/0!"}},{"$f":"IF($A206=\"\",\"\",IF(OR(VLOOKUP($A206,Economática!$A$3:$AI$823,13,FALSE)=0,VLOOKUP($A206,Economática!$A$3:$AI$823,13,FALSE)=\"-\"),1/0,VLOOKUP($A206,Economática!$A$3:$AI$823,13,FALSE)))","v":-6365.02},{"$f":"IF($A206=\"\",\"\",IF(OR(VLOOKUP($A206,Economática!$A$3:$AI$823,14,FALSE)=0,VLOOKUP($A206,Economática!$A$3:$AI$823,14,FALSE)=\"-\"),1/0,VLOOKUP($A206,Economática!$A$3:$AI$823,14,FALSE)))","v":30543.360000000001},{"$f":"IF($A206=\"\",\"\",IF(OR(VLOOKUP($A206,Economática!$A$3:$AI$823,15,FALSE)=0,VLOOKUP($A206,Economática!$A$3:$AI$823,15,FALSE)=\"-\"),1/0,VLOOKUP($A206,Economática!$A$3:$AI$823,15,FALSE)))","v":29285.68},{"$f":"IF($A206=\"\",\"\",IF(OR(VLOOKUP($A206,Economática!$A$3:$AI$823,16,FALSE)=0,VLOOKUP($A206,Economática!$A$3:$AI$823,16,FALSE)=\"-\"),1/0,VLOOKUP($A206,Economática!$A$3:$AI$823,16,FALSE)))","v":27949.29},{"$f":"IF($A206=\"\",\"\",IF(OR(VLOOKUP($A206,Economática!$A$3:$AI$823,17,FALSE)=0,VLOOKUP($A206,Economática!$A$3:$AI$823,17,FALSE)=\"-\"),1/0,VLOOKUP($A206,Economática!$A$3:$AI$823,17,FALSE)))","v":{"$error":"#DIV/0!"}},{"$f":"IF($A206=\"\",\"\",IF(OR(VLOOKUP($A206,Economática!$A$3:$AI$823,18,FALSE)=0,VLOOKUP($A206,Economática!$A$3:$AI$823,18,FALSE)=\"-\"),1/0,VLOOKUP($A206,Economática!$A$3:$AI$823,18,FALSE)))","v":-6365.02},{"$f":"IF($A206=\"\",\"\",IF(OR(VLOOKUP($A206,Economática!$A$3:$AI$823,19,FALSE)=0,VLOOKUP($A206,Economática!$A$3:$AI$823,19,FALSE)=\"-\"),1/0,VLOOKUP($A206,Economática!$A$3:$AI$823,19,FALSE)))","v":{"$error":"#DIV/0!"}},{"$f":"IF($A206=\"\",\"\",VLOOKUP($A206,Economática!$A$3:$AI$823,20,FALSE)/E206)","v":4.2069092347341082},4.3644550363986463,0.3459767570995495,0.35893334411229277,{"$f":"IF($A206=\"\",\"\",IF(OR(VLOOKUP($A206,Economática!$A$3:$AI$823,21,FALSE)/100=0,VLOOKUP($A206,Economática!$A$3:$AI$823,21,FALSE)/100=\"-\"),1/0,VLOOKUP($A206,Economática!$A$3:$AI$823,21,FALSE)/100))","v":2.8750970000000002},{"$f":"IF($A206=\"\",\"\",IF(OR(VLOOKUP($A206,Economática!$A$3:$AI$823,22,FALSE)/100=0,VLOOKUP($A206,Economática!$A$3:$AI$823,22,FALSE)/100=\"-\"),1/0,VLOOKUP($A206,Economática!$A$3:$AI$823,22,FALSE)/100))","v":0.42028100000000002},{"$f":"IF($A206=\"\",\"\",IF(OR(VLOOKUP($A206,Economática!$A$3:$AI$823,23,FALSE)=0,VLOOKUP($A206,Economática!$A$3:$AI$823,23,FALSE)=\"-\"),1/0,VLOOKUP($A206,Economática!$A$3:$AI$823,23,FALSE)))","v":2748.3},{"$f":"IF($A206=\"\",\"\",IF(OR(VLOOKUP($A206,Economática!$A$3:$AI$823,24,FALSE)=0,VLOOKUP($A206,Economática!$A$3:$AI$823,24,FALSE)=\"-\"),1/0,VLOOKUP($A206,Economática!$A$3:$AI$823,24,FALSE)))","v":{"$error":"#DIV/0!"}},{"$f":"IF($A206=\"\",\"\",IF(OR(VLOOKUP($A206,Economática!$A$3:$AI$823,25,FALSE)=0,VLOOKUP($A206,Economática!$A$3:$AI$823,25,FALSE)=\"-\"),1/0,VLOOKUP($A206,Economática!$A$3:$AI$823,25,FALSE)))","v":2553.1},{"$f":"IF($A206=\"\",\"\",IF(ISERROR((F206+VLOOKUP($A206,Economática!$A$3:$AI$823,26,FALSE))/Y206),(F206+VLOOKUP($A206,Economática!$A$3:$AI$823,26,FALSE))/Y206,(F206+VLOOKUP($A206,Economática!$A$3:$AI$823,26,FALSE))/Y206))","v":7.8675065606517567},{"$f":"IF($A206=\"\",\"\",IF(OR(-VLOOKUP($A206,Economática!$A$3:$AI$823,27,FALSE)=0,-VLOOKUP($A206,Economática!$A$3:$AI$823,27,FALSE)=\"-\"),1/0,-VLOOKUP($A206,Economática!$A$3:$AI$823,27,FALSE)))","v":0.06},6.6307061370500652E-6,{"$f":"IF($A206=\"\",\"\",IF(OR(VLOOKUP($A206,Economática!$A$3:$AI$823,28,FALSE)=0,VLOOKUP($A206,Economática!$A$3:$AI$823,28,FALSE)=\"-\"),1/0,VLOOKUP($A206,Economática!$A$3:$AI$823,28,FALSE)))","v":-16.100000000000001},{"$f":"IF($A206=\"\",\"\",IF(OR(VLOOKUP($A206,Economática!$A$3:$AI$823,29,FALSE)=0,VLOOKUP($A206,Economática!$A$3:$AI$823,29,FALSE)=\"-\"),1/0,VLOOKUP($A206,Economática!$A$3:$AI$823,29,FALSE)))","v":-40.4},{"$f":"IF($A206=\"\",\"\",IF(OR(VLOOKUP($A206,Economática!$A$3:$AI$823,30,FALSE)/E206=0,VLOOKUP($A206,Economática!$A$3:$AI$823,30,FALSE)/E206=\"-\",VLOOKUP($A206,Economática!$A$3:$AI$823,30,FALSE)/E206<33.33%,VLOOKUP($A206,Economática!$A$3:$AI$823,30,FALSE)/E206>100%),1/0,VLOOKUP($A206,Economática!$A$3:$AI$823,30,FALSE)/E206))","v":0.36651408542366282},"OIBR4",{"$f":"IF($A206=\"\",\"\",IF(OR(VLOOKUP($A206,Economática!$A$3:$AI$823,25,FALSE)=0,VLOOKUP($A206,Economática!$A$3:$AI$823,25,FALSE)=\"-\"),1/0,VLOOKUP($A206,Economática!$A$3:$AI$823,25,FALSE)))","v":2553.1},{"$f":"CONCATENATE(Economática!B208,\" \",Economática!C208)","v":"Oi PN"}]
[{"$f":"IF(Economática!AG209=\"\",\"\",Economática!AG209)","v":"TIMP3"},{"$f":"IF($A207=\"\",\"\",VLOOKUP(VLOOKUP($A207,Economática!$A$3:$AI$823,6,FALSE),Correção!$B$16:$C$36,2,FALSE))","v":"Telecom"},{"$f":"IF(Economática!B209=\"\",\"\",Economática!B209)","v":"Tim Part S/A"},{"$f":"IF($A207=\"\",\"\",IF(OR(VLOOKUP($A207,Economática!$A$3:$AI$823,8,FALSE)=0,VLOOKUP($A207,Economática!$A$3:$AI$823,8,FALSE)=\"-\"),1/0,VLOOKUP($A207,Economática!$A$3:$AI$823,8,FALSE)))","v":11.79},{"$f":"IF(A207=\"\",\"\",IF(ISERROR(VLOOKUP(A207,Correção!$B$2:$G$13,9,FALSE)),VLOOKUP($A207,Economática!$A$3:$AI$823,9,FALSE),VLOOKUP(A207,Correção!$B$2:$G$13,9,FALSE)))","v":2420.248},{"$f":"IF($A207=\"\",\"\",Economática!G209)","v":28534.73},{"$f":"IF($A207=\"\",\"\",IF(OR(VLOOKUP($A207,Economática!$A$3:$AI$823,10,FALSE)=0,VLOOKUP($A207,Economática!$A$3:$AI$823,10,FALSE)=\"-\"),1/0,VLOOKUP($A207,Economática!$A$3:$AI$823,10,FALSE)))","v":19794.84},{"$f":"IF($A207=\"\",\"\",IF(OR(VLOOKUP($A207,Economática!$A$3:$AI$823,11,FALSE)=0,VLOOKUP($A207,Economática!$A$3:$AI$823,11,FALSE)=\"-\"),1/0,VLOOKUP($A207,Economática!$A$3:$AI$823,11,FALSE)))","v":16233.96},{"$f":"IF($A207=\"\",\"\",IF(OR(VLOOKUP($A207,Economática!$A$3:$AI$823,12,FALSE)=0,VLOOKUP($A207,Economática!$A$3:$AI$823,12,FALSE)=\"-\"),1/0,VLOOKUP($A207,Economática!$A$3:$AI$823,12,FALSE)))","v":16981.330000000002},{"$f":"IF($A207=\"\",\"\",IF(OR(VLOOKUP($A207,Economática!$A$3:$AI$823,13,FALSE)=0,VLOOKUP($A207,Economática!$A$3:$AI$823,13,FALSE)=\"-\"),1/0,VLOOKUP($A207,Economática!$A$3:$AI$823,13,FALSE)))","v":1234.51},{"$f":"IF($A207=\"\",\"\",IF(OR(VLOOKUP($A207,Economática!$A$3:$AI$823,14,FALSE)=0,VLOOKUP($A207,Economática!$A$3:$AI$823,14,FALSE)=\"-\"),1/0,VLOOKUP($A207,Economática!$A$3:$AI$823,14,FALSE)))","v":245.13},{"$f":"IF($A207=\"\",\"\",IF(OR(VLOOKUP($A207,Economática!$A$3:$AI$823,15,FALSE)=0,VLOOKUP($A207,Economática!$A$3:$AI$823,15,FALSE)=\"-\"),1/0,VLOOKUP($A207,Economática!$A$3:$AI$823,15,FALSE)))","v":579.66999999999996},{"$f":"IF($A207=\"\",\"\",IF(OR(VLOOKUP($A207,Economática!$A$3:$AI$823,16,FALSE)=0,VLOOKUP($A207,Economática!$A$3:$AI$823,16,FALSE)=\"-\"),1/0,VLOOKUP($A207,Economática!$A$3:$AI$823,16,FALSE)))","v":1912.92},{"$f":"IF($A207=\"\",\"\",IF(OR(VLOOKUP($A207,Economática!$A$3:$AI$823,17,FALSE)=0,VLOOKUP($A207,Economática!$A$3:$AI$823,17,FALSE)=\"-\"),1/0,VLOOKUP($A207,Economática!$A$3:$AI$823,17,FALSE)))","v":2545.1},{"$f":"IF($A207=\"\",\"\",IF(OR(VLOOKUP($A207,Economática!$A$3:$AI$823,18,FALSE)=0,VLOOKUP($A207,Economática!$A$3:$AI$823,18,FALSE)=\"-\"),1/0,VLOOKUP($A207,Economática!$A$3:$AI$823,18,FALSE)))","v":1234.51},{"$f":"IF($A207=\"\",\"\",IF(OR(VLOOKUP($A207,Economática!$A$3:$AI$823,19,FALSE)=0,VLOOKUP($A207,Economática!$A$3:$AI$823,19,FALSE)=\"-\"),1/0,VLOOKUP($A207,Economática!$A$3:$AI$823,19,FALSE)))","v":2545.1},{"$f":"IF($A207=\"\",\"\",VLOOKUP($A207,Economática!$A$3:$AI$823,20,FALSE)/E207)","v":1.0515864489920042},8.1788477874994623,1.4415233424468195,11.21163173156261,{"$f":"IF($A207=\"\",\"\",IF(OR(VLOOKUP($A207,Economática!$A$3:$AI$823,21,FALSE)/100=0,VLOOKUP($A207,Economática!$A$3:$AI$823,21,FALSE)/100=\"-\"),1/0,VLOOKUP($A207,Economática!$A$3:$AI$823,21,FALSE)/100))","v":0.14021699999999998},{"$f":"IF($A207=\"\",\"\",IF(OR(VLOOKUP($A207,Economática!$A$3:$AI$823,22,FALSE)/100=0,VLOOKUP($A207,Economática!$A$3:$AI$823,22,FALSE)/100=\"-\"),1/0,VLOOKUP($A207,Economática!$A$3:$AI$823,22,FALSE)/100))","v":-9.9699999999999997E-3},{"$f":"IF($A207=\"\",\"\",IF(OR(VLOOKUP($A207,Economática!$A$3:$AI$823,23,FALSE)=0,VLOOKUP($A207,Economática!$A$3:$AI$823,23,FALSE)=\"-\"),1/0,VLOOKUP($A207,Economática!$A$3:$AI$823,23,FALSE)))","v":5947},{"$f":"IF($A207=\"\",\"\",IF(OR(VLOOKUP($A207,Economática!$A$3:$AI$823,24,FALSE)=0,VLOOKUP($A207,Economática!$A$3:$AI$823,24,FALSE)=\"-\"),1/0,VLOOKUP($A207,Economática!$A$3:$AI$823,24,FALSE)))","v":6371.8},{"$f":"IF($A207=\"\",\"\",IF(OR(VLOOKUP($A207,Economática!$A$3:$AI$823,25,FALSE)=0,VLOOKUP($A207,Economática!$A$3:$AI$823,25,FALSE)=\"-\"),1/0,VLOOKUP($A207,Economática!$A$3:$AI$823,25,FALSE)))","v":6371.8},{"$f":"IF($A207=\"\",\"\",IF(ISERROR((F207+VLOOKUP($A207,Economática!$A$3:$AI$823,26,FALSE))/Y207),(F207+VLOOKUP($A207,Economática!$A$3:$AI$823,26,FALSE))/Y207,(F207+VLOOKUP($A207,Economática!$A$3:$AI$823,26,FALSE))/Y207))","v":4.4473109639348376},{"$f":"IF($A207=\"\",\"\",IF(OR(-VLOOKUP($A207,Economática!$A$3:$AI$823,27,FALSE)=0,-VLOOKUP($A207,Economática!$A$3:$AI$823,27,FALSE)=\"-\"),1/0,-VLOOKUP($A207,Economática!$A$3:$AI$823,27,FALSE)))","v":588.25},2.0615229231185996E-2,{"$f":"IF($A207=\"\",\"\",IF(OR(VLOOKUP($A207,Economática!$A$3:$AI$823,28,FALSE)=0,VLOOKUP($A207,Economática!$A$3:$AI$823,28,FALSE)=\"-\"),1/0,VLOOKUP($A207,Economática!$A$3:$AI$823,28,FALSE)))","v":-0.3},{"$f":"IF($A207=\"\",\"\",IF(OR(VLOOKUP($A207,Economática!$A$3:$AI$823,29,FALSE)=0,VLOOKUP($A207,Economática!$A$3:$AI$823,29,FALSE)=\"-\"),1/0,VLOOKUP($A207,Economática!$A$3:$AI$823,29,FALSE)))","v":-7.3},{"$f":"IF($A207=\"\",\"\",IF(OR(VLOOKUP($A207,Economática!$A$3:$AI$823,30,FALSE)/E207=0,VLOOKUP($A207,Economática!$A$3:$AI$823,30,FALSE)/E207=\"-\",VLOOKUP($A207,Economática!$A$3:$AI$823,30,FALSE)/E207<33.33%,VLOOKUP($A207,Economática!$A$3:$AI$823,30,FALSE)/E207>100%),1/0,VLOOKUP($A207,Economática!$A$3:$AI$823,30,FALSE)/E207))","v":{"$error":"#DIV/0!"}},"TIMP3",{"$f":"IF($A207=\"\",\"\",IF(OR(VLOOKUP($A207,Economática!$A$3:$AI$823,25,FALSE)=0,VLOOKUP($A207,Economática!$A$3:$AI$823,25,FALSE)=\"-\"),1/0,VLOOKUP($A207,Economática!$A$3:$AI$823,25,FALSE)))","v":6371.8},{"$f":"CONCATENATE(Economática!B209,\" \",Economática!C209)","v":"Tim Part S/A ON"}]
[{"$f":"IF(Economática!AG210=\"\",\"\",Economática!AG210)","v":"VIVT4"},{"$f":"IF($A208=\"\",\"\",VLOOKUP(VLOOKUP($A208,Economática!$A$3:$AI$823,6,FALSE),Correção!$B$16:$C$36,2,FALSE))","v":"Telecom"},{"$f":"IF(Economática!B210=\"\",\"\",Economática!B210)","v":"Telef Brasil"},{"$f":"IF($A208=\"\",\"\",IF(OR(VLOOKUP($A208,Economática!$A$3:$AI$823,8,FALSE)=0,VLOOKUP($A208,Economática!$A$3:$AI$823,8,FALSE)=\"-\"),1/0,VLOOKUP($A208,Economática!$A$3:$AI$823,8,FALSE)))","v":47.5},{"$f":"IF(A208=\"\",\"\",IF(ISERROR(VLOOKUP(A208,Correção!$B$2:$G$13,9,FALSE)),VLOOKUP($A208,Economática!$A$3:$AI$823,9,FALSE),VLOOKUP(A208,Correção!$B$2:$G$13,9,FALSE)))","v":1688.694},{"$f":"IF($A208=\"\",\"\",Economática!G210)","v":78220.23},{"$f":"IF($A208=\"\",\"\",IF(OR(VLOOKUP($A208,Economática!$A$3:$AI$823,10,FALSE)=0,VLOOKUP($A208,Economática!$A$3:$AI$823,10,FALSE)=\"-\"),1/0,VLOOKUP($A208,Economática!$A$3:$AI$823,10,FALSE)))","v":71607.03},{"$f":"IF($A208=\"\",\"\",IF(OR(VLOOKUP($A208,Economática!$A$3:$AI$823,11,FALSE)=0,VLOOKUP($A208,Economática!$A$3:$AI$823,11,FALSE)=\"-\"),1/0,VLOOKUP($A208,Economática!$A$3:$AI$823,11,FALSE)))","v":43206.83},{"$f":"IF($A208=\"\",\"\",IF(OR(VLOOKUP($A208,Economática!$A$3:$AI$823,12,FALSE)=0,VLOOKUP($A208,Economática!$A$3:$AI$823,12,FALSE)=\"-\"),1/0,VLOOKUP($A208,Economática!$A$3:$AI$823,12,FALSE)))","v":43462.74},{"$f":"IF($A208=\"\",\"\",IF(OR(VLOOKUP($A208,Economática!$A$3:$AI$823,13,FALSE)=0,VLOOKUP($A208,Economática!$A$3:$AI$823,13,FALSE)=\"-\"),1/0,VLOOKUP($A208,Economática!$A$3:$AI$823,13,FALSE)))","v":4608.79},{"$f":"IF($A208=\"\",\"\",IF(OR(VLOOKUP($A208,Economática!$A$3:$AI$823,14,FALSE)=0,VLOOKUP($A208,Economática!$A$3:$AI$823,14,FALSE)=\"-\"),1/0,VLOOKUP($A208,Economática!$A$3:$AI$823,14,FALSE)))","v":1098.02},{"$f":"IF($A208=\"\",\"\",IF(OR(VLOOKUP($A208,Economática!$A$3:$AI$823,15,FALSE)=0,VLOOKUP($A208,Economática!$A$3:$AI$823,15,FALSE)=\"-\"),1/0,VLOOKUP($A208,Economática!$A$3:$AI$823,15,FALSE)))","v":4264.32},{"$f":"IF($A208=\"\",\"\",IF(OR(VLOOKUP($A208,Economática!$A$3:$AI$823,16,FALSE)=0,VLOOKUP($A208,Economática!$A$3:$AI$823,16,FALSE)=\"-\"),1/0,VLOOKUP($A208,Economática!$A$3:$AI$823,16,FALSE)))","v":7441.58},{"$f":"IF($A208=\"\",\"\",IF(OR(VLOOKUP($A208,Economática!$A$3:$AI$823,17,FALSE)=0,VLOOKUP($A208,Economática!$A$3:$AI$823,17,FALSE)=\"-\"),1/0,VLOOKUP($A208,Economática!$A$3:$AI$823,17,FALSE)))","v":8928.26},{"$f":"IF($A208=\"\",\"\",IF(OR(VLOOKUP($A208,Economática!$A$3:$AI$823,18,FALSE)=0,VLOOKUP($A208,Economática!$A$3:$AI$823,18,FALSE)=\"-\"),1/0,VLOOKUP($A208,Economática!$A$3:$AI$823,18,FALSE)))","v":4608.79},{"$f":"IF($A208=\"\",\"\",IF(OR(VLOOKUP($A208,Economática!$A$3:$AI$823,19,FALSE)=0,VLOOKUP($A208,Economática!$A$3:$AI$823,19,FALSE)=\"-\"),1/0,VLOOKUP($A208,Economática!$A$3:$AI$823,19,FALSE)))","v":8928.26},{"$f":"IF($A208=\"\",\"\",VLOOKUP($A208,Economática!$A$3:$AI$823,20,FALSE)/E208)","v":5.2870798380286779},42.40379251658382,1.1201828228317807,8.984165447690815,{"$f":"IF($A208=\"\",\"\",IF(OR(VLOOKUP($A208,Economática!$A$3:$AI$823,21,FALSE)/100=0,VLOOKUP($A208,Economática!$A$3:$AI$823,21,FALSE)/100=\"-\"),1/0,VLOOKUP($A208,Economática!$A$3:$AI$823,21,FALSE)/100))","v":0.12853600000000001},{"$f":"IF($A208=\"\",\"\",IF(OR(VLOOKUP($A208,Economática!$A$3:$AI$823,22,FALSE)/100=0,VLOOKUP($A208,Economática!$A$3:$AI$823,22,FALSE)/100=\"-\"),1/0,VLOOKUP($A208,Economática!$A$3:$AI$823,22,FALSE)/100))","v":3.8517000000000003E-2},{"$f":"IF($A208=\"\",\"\",IF(OR(VLOOKUP($A208,Economática!$A$3:$AI$823,23,FALSE)=0,VLOOKUP($A208,Economática!$A$3:$AI$823,23,FALSE)=\"-\"),1/0,VLOOKUP($A208,Economática!$A$3:$AI$823,23,FALSE)))","v":14487.6},{"$f":"IF($A208=\"\",\"\",IF(OR(VLOOKUP($A208,Economática!$A$3:$AI$823,24,FALSE)=0,VLOOKUP($A208,Economática!$A$3:$AI$823,24,FALSE)=\"-\"),1/0,VLOOKUP($A208,Economática!$A$3:$AI$823,24,FALSE)))","v":17819},{"$f":"IF($A208=\"\",\"\",IF(OR(VLOOKUP($A208,Economática!$A$3:$AI$823,25,FALSE)=0,VLOOKUP($A208,Economática!$A$3:$AI$823,25,FALSE)=\"-\"),1/0,VLOOKUP($A208,Economática!$A$3:$AI$823,25,FALSE)))","v":17819},{"$f":"IF($A208=\"\",\"\",IF(ISERROR((F208+VLOOKUP($A208,Economática!$A$3:$AI$823,26,FALSE))/Y208),(F208+VLOOKUP($A208,Economática!$A$3:$AI$823,26,FALSE))/Y208,(F208+VLOOKUP($A208,Economática!$A$3:$AI$823,26,FALSE))/Y208))","v":4.5444940232336268},{"$f":"IF($A208=\"\",\"\",IF(OR(-VLOOKUP($A208,Economática!$A$3:$AI$823,27,FALSE)=0,-VLOOKUP($A208,Economática!$A$3:$AI$823,27,FALSE)=\"-\"),1/0,-VLOOKUP($A208,Economática!$A$3:$AI$823,27,FALSE)))","v":4136.88},5.2887596980985614E-2,{"$f":"IF($A208=\"\",\"\",IF(OR(VLOOKUP($A208,Economática!$A$3:$AI$823,28,FALSE)=0,VLOOKUP($A208,Economática!$A$3:$AI$823,28,FALSE)=\"-\"),1/0,VLOOKUP($A208,Economática!$A$3:$AI$823,28,FALSE)))","v":2.5},{"$f":"IF($A208=\"\",\"\",IF(OR(VLOOKUP($A208,Economática!$A$3:$AI$823,29,FALSE)=0,VLOOKUP($A208,Economática!$A$3:$AI$823,29,FALSE)=\"-\"),1/0,VLOOKUP($A208,Economática!$A$3:$AI$823,29,FALSE)))","v":8.3000000000000007},{"$f":"IF($A208=\"\",\"\",IF(OR(VLOOKUP($A208,Economática!$A$3:$AI$823,30,FALSE)/E208=0,VLOOKUP($A208,Economática!$A$3:$AI$823,30,FALSE)/E208=\"-\",VLOOKUP($A208,Economática!$A$3:$AI$823,30,FALSE)/E208<33.33%,VLOOKUP($A208,Economática!$A$3:$AI$823,30,FALSE)/E208>100%),1/0,VLOOKUP($A208,Economática!$A$3:$AI$823,30,FALSE)/E208))","v":0.33848642797333328},"VIVT4",{"$f":"IF($A208=\"\",\"\",IF(OR(VLOOKUP($A208,Economática!$A$3:$AI$823,25,FALSE)=0,VLOOKUP($A208,Economática!$A$3:$AI$823,25,FALSE)=\"-\"),1/0,VLOOKUP($A208,Economática!$A$3:$AI$823,25,FALSE)))","v":17819},{"$f":"CONCATENATE(Economática!B210,\" \",Economática!C210)","v":"Telef Brasil PN"}]
[{"$f":"IF(Economática!AG211=\"\",\"\",Economática!AG211)","v":"TELB4"},{"$f":"IF($A209=\"\",\"\",VLOOKUP(VLOOKUP($A209,Economática!$A$3:$AI$823,6,FALSE),Correção!$B$16:$C$36,2,FALSE))","v":"Telecom"},{"$f":"IF(Economática!B211=\"\",\"\",Economática!B211)","v":"Telebras"},{"$f":"IF($A209=\"\",\"\",IF(OR(VLOOKUP($A209,Economática!$A$3:$AI$823,8,FALSE)=0,VLOOKUP($A209,Economática!$A$3:$AI$823,8,FALSE)=\"-\"),1/0,VLOOKUP($A209,Economática!$A$3:$AI$823,8,FALSE)))","v":28.6},{"$f":"IF(A209=\"\",\"\",IF(ISERROR(VLOOKUP(A209,Correção!$B$2:$G$13,9,FALSE)),VLOOKUP($A209,Economática!$A$3:$AI$823,9,FALSE),VLOOKUP(A209,Correção!$B$2:$G$13,9,FALSE)))","v":49.604999999999997},{"$f":"IF($A209=\"\",\"\",Economática!G211)","v":1866.42},{"$f":"IF($A209=\"\",\"\",IF(OR(VLOOKUP($A209,Economática!$A$3:$AI$823,10,FALSE)=0,VLOOKUP($A209,Economática!$A$3:$AI$823,10,FALSE)=\"-\"),1/0,VLOOKUP($A209,Economática!$A$3:$AI$823,10,FALSE)))","v":370.43},{"$f":"IF($A209=\"\",\"\",IF(OR(VLOOKUP($A209,Economática!$A$3:$AI$823,11,FALSE)=0,VLOOKUP($A209,Economática!$A$3:$AI$823,11,FALSE)=\"-\"),1/0,VLOOKUP($A209,Economática!$A$3:$AI$823,11,FALSE)))","v":73.290000000000006},{"$f":"IF($A209=\"\",\"\",IF(OR(VLOOKUP($A209,Economática!$A$3:$AI$823,12,FALSE)=0,VLOOKUP($A209,Economática!$A$3:$AI$823,12,FALSE)=\"-\"),1/0,VLOOKUP($A209,Economática!$A$3:$AI$823,12,FALSE)))","v":199.65},{"$f":"IF($A209=\"\",\"\",IF(OR(VLOOKUP($A209,Economática!$A$3:$AI$823,13,FALSE)=0,VLOOKUP($A209,Economática!$A$3:$AI$823,13,FALSE)=\"-\"),1/0,VLOOKUP($A209,Economática!$A$3:$AI$823,13,FALSE)))","v":-243.82},{"$f":"IF($A209=\"\",\"\",IF(OR(VLOOKUP($A209,Economática!$A$3:$AI$823,14,FALSE)=0,VLOOKUP($A209,Economática!$A$3:$AI$823,14,FALSE)=\"-\"),1/0,VLOOKUP($A209,Economática!$A$3:$AI$823,14,FALSE)))","v":-62.67},{"$f":"IF($A209=\"\",\"\",IF(OR(VLOOKUP($A209,Economática!$A$3:$AI$823,15,FALSE)=0,VLOOKUP($A209,Economática!$A$3:$AI$823,15,FALSE)=\"-\"),1/0,VLOOKUP($A209,Economática!$A$3:$AI$823,15,FALSE)))","v":-124.01},{"$f":"IF($A209=\"\",\"\",IF(OR(VLOOKUP($A209,Economática!$A$3:$AI$823,16,FALSE)=0,VLOOKUP($A209,Economática!$A$3:$AI$823,16,FALSE)=\"-\"),1/0,VLOOKUP($A209,Economática!$A$3:$AI$823,16,FALSE)))","v":-228.1},{"$f":"IF($A209=\"\",\"\",IF(OR(VLOOKUP($A209,Economática!$A$3:$AI$823,17,FALSE)=0,VLOOKUP($A209,Economática!$A$3:$AI$823,17,FALSE)=\"-\"),1/0,VLOOKUP($A209,Economática!$A$3:$AI$823,17,FALSE)))","v":-224.85},{"$f":"IF($A209=\"\",\"\",IF(OR(VLOOKUP($A209,Economática!$A$3:$AI$823,18,FALSE)=0,VLOOKUP($A209,Economática!$A$3:$AI$823,18,FALSE)=\"-\"),1/0,VLOOKUP($A209,Economática!$A$3:$AI$823,18,FALSE)))","v":-243.82},{"$f":"IF($A209=\"\",\"\",IF(OR(VLOOKUP($A209,Economática!$A$3:$AI$823,19,FALSE)=0,VLOOKUP($A209,Economática!$A$3:$AI$823,19,FALSE)=\"-\"),1/0,VLOOKUP($A209,Economática!$A$3:$AI$823,19,FALSE)))","v":-224.85},{"$f":"IF($A209=\"\",\"\",VLOOKUP($A209,Economática!$A$3:$AI$823,20,FALSE)/E209)","v":-4.5328091926217118},7.467593992541075,3.8298814890802579,{"$error":"#DIV/0!"},{"$f":"IF($A209=\"\",\"\",IF(OR(VLOOKUP($A209,Economática!$A$3:$AI$823,21,FALSE)/100=0,VLOOKUP($A209,Economática!$A$3:$AI$823,21,FALSE)/100=\"-\"),1/0,VLOOKUP($A209,Economática!$A$3:$AI$823,21,FALSE)/100))","v":-0.38121899999999997},{"$f":"IF($A209=\"\",\"\",IF(OR(VLOOKUP($A209,Economática!$A$3:$AI$823,22,FALSE)/100=0,VLOOKUP($A209,Economática!$A$3:$AI$823,22,FALSE)/100=\"-\"),1/0,VLOOKUP($A209,Economática!$A$3:$AI$823,22,FALSE)/100))","v":0.26410400000000001},{"$f":"IF($A209=\"\",\"\",IF(OR(VLOOKUP($A209,Economática!$A$3:$AI$823,23,FALSE)=0,VLOOKUP($A209,Economática!$A$3:$AI$823,23,FALSE)=\"-\"),1/0,VLOOKUP($A209,Economática!$A$3:$AI$823,23,FALSE)))","v":-150.80000000000001},{"$f":"IF($A209=\"\",\"\",IF(OR(VLOOKUP($A209,Economática!$A$3:$AI$823,24,FALSE)=0,VLOOKUP($A209,Economática!$A$3:$AI$823,24,FALSE)=\"-\"),1/0,VLOOKUP($A209,Economática!$A$3:$AI$823,24,FALSE)))","v":-62.8},{"$f":"IF($A209=\"\",\"\",IF(OR(VLOOKUP($A209,Economática!$A$3:$AI$823,25,FALSE)=0,VLOOKUP($A209,Economática!$A$3:$AI$823,25,FALSE)=\"-\"),1/0,VLOOKUP($A209,Economática!$A$3:$AI$823,25,FALSE)))","v":-62.8},{"$f":"IF($A209=\"\",\"\",IF(ISERROR((F209+VLOOKUP($A209,Economática!$A$3:$AI$823,26,FALSE))/Y209),(F209+VLOOKUP($A209,Economática!$A$3:$AI$823,26,FALSE))/Y209,(F209+VLOOKUP($A209,Economática!$A$3:$AI$823,26,FALSE))/Y209))","v":-31.277914012738858},{"$f":"IF($A209=\"\",\"\",IF(OR(-VLOOKUP($A209,Economática!$A$3:$AI$823,27,FALSE)=0,-VLOOKUP($A209,Economática!$A$3:$AI$823,27,FALSE)=\"-\"),1/0,-VLOOKUP($A209,Economática!$A$3:$AI$823,27,FALSE)))","v":0.01},5.3578508588634927E-6,{"$f":"IF($A209=\"\",\"\",IF(OR(VLOOKUP($A209,Economática!$A$3:$AI$823,28,FALSE)=0,VLOOKUP($A209,Economática!$A$3:$AI$823,28,FALSE)=\"-\"),1/0,VLOOKUP($A209,Economática!$A$3:$AI$823,28,FALSE)))","v":5.0999999999999996},{"$f":"IF($A209=\"\",\"\",IF(OR(VLOOKUP($A209,Economática!$A$3:$AI$823,29,FALSE)=0,VLOOKUP($A209,Economática!$A$3:$AI$823,29,FALSE)=\"-\"),1/0,VLOOKUP($A209,Economática!$A$3:$AI$823,29,FALSE)))","v":30.1},{"$f":"IF($A209=\"\",\"\",IF(OR(VLOOKUP($A209,Economática!$A$3:$AI$823,30,FALSE)/E209=0,VLOOKUP($A209,Economática!$A$3:$AI$823,30,FALSE)/E209=\"-\",VLOOKUP($A209,Economática!$A$3:$AI$823,30,FALSE)/E209<33.33%,VLOOKUP($A209,Economática!$A$3:$AI$823,30,FALSE)/E209>100%),1/0,VLOOKUP($A209,Economática!$A$3:$AI$823,30,FALSE)/E209))","v":0.79225884487450859},"TELB4",{"$f":"IF($A209=\"\",\"\",IF(OR(VLOOKUP($A209,Economática!$A$3:$AI$823,25,FALSE)=0,VLOOKUP($A209,Economática!$A$3:$AI$823,25,FALSE)=\"-\"),1/0,VLOOKUP($A209,Economática!$A$3:$AI$823,25,FALSE)))","v":-62.8},{"$f":"CONCATENATE(Economática!B211,\" \",Economática!C211)","v":"Telebras PN"}]
[{"$f":"IF(Economática!AG212=\"\",\"\",Economática!AG212)","v":"CAMB4"},{"$f":"IF($A210=\"\",\"\",VLOOKUP(VLOOKUP($A210,Economática!$A$3:$AI$823,6,FALSE),Correção!$B$16:$C$36,2,FALSE))","v":"Têxtil"},{"$f":"IF(Economática!B212=\"\",\"\",Economática!B212)","v":"Cambuci"},{"$f":"IF($A210=\"\",\"\",IF(OR(VLOOKUP($A210,Economática!$A$3:$AI$823,8,FALSE)=0,VLOOKUP($A210,Economática!$A$3:$AI$823,8,FALSE)=\"-\"),1/0,VLOOKUP($A210,Economática!$A$3:$AI$823,8,FALSE)))","v":34},{"$f":"IF(A210=\"\",\"\",IF(ISERROR(VLOOKUP(A210,Correção!$B$2:$G$13,9,FALSE)),VLOOKUP($A210,Economática!$A$3:$AI$823,9,FALSE),VLOOKUP(A210,Correção!$B$2:$G$13,9,FALSE)))","v":3.855},{"$f":"IF($A210=\"\",\"\",Economática!G212)","v":131.07},{"$f":"IF($A210=\"\",\"\",IF(OR(VLOOKUP($A210,Economática!$A$3:$AI$823,10,FALSE)=0,VLOOKUP($A210,Economática!$A$3:$AI$823,10,FALSE)=\"-\"),1/0,VLOOKUP($A210,Economática!$A$3:$AI$823,10,FALSE)))","v":24.35},{"$f":"IF($A210=\"\",\"\",IF(OR(VLOOKUP($A210,Economática!$A$3:$AI$823,11,FALSE)=0,VLOOKUP($A210,Economática!$A$3:$AI$823,11,FALSE)=\"-\"),1/0,VLOOKUP($A210,Economática!$A$3:$AI$823,11,FALSE)))","v":259.45999999999998},{"$f":"IF($A210=\"\",\"\",IF(OR(VLOOKUP($A210,Economática!$A$3:$AI$823,12,FALSE)=0,VLOOKUP($A210,Economática!$A$3:$AI$823,12,FALSE)=\"-\"),1/0,VLOOKUP($A210,Economática!$A$3:$AI$823,12,FALSE)))","v":247.49},{"$f":"IF($A210=\"\",\"\",IF(OR(VLOOKUP($A210,Economática!$A$3:$AI$823,13,FALSE)=0,VLOOKUP($A210,Economática!$A$3:$AI$823,13,FALSE)=\"-\"),1/0,VLOOKUP($A210,Economática!$A$3:$AI$823,13,FALSE)))","v":44.73},{"$f":"IF($A210=\"\",\"\",IF(OR(VLOOKUP($A210,Economática!$A$3:$AI$823,14,FALSE)=0,VLOOKUP($A210,Economática!$A$3:$AI$823,14,FALSE)=\"-\"),1/0,VLOOKUP($A210,Economática!$A$3:$AI$823,14,FALSE)))","v":4.41},{"$f":"IF($A210=\"\",\"\",IF(OR(VLOOKUP($A210,Economática!$A$3:$AI$823,15,FALSE)=0,VLOOKUP($A210,Economática!$A$3:$AI$823,15,FALSE)=\"-\"),1/0,VLOOKUP($A210,Economática!$A$3:$AI$823,15,FALSE)))","v":6.94},{"$f":"IF($A210=\"\",\"\",IF(OR(VLOOKUP($A210,Economática!$A$3:$AI$823,16,FALSE)=0,VLOOKUP($A210,Economática!$A$3:$AI$823,16,FALSE)=\"-\"),1/0,VLOOKUP($A210,Economática!$A$3:$AI$823,16,FALSE)))","v":12.22},{"$f":"IF($A210=\"\",\"\",IF(OR(VLOOKUP($A210,Economática!$A$3:$AI$823,17,FALSE)=0,VLOOKUP($A210,Economática!$A$3:$AI$823,17,FALSE)=\"-\"),1/0,VLOOKUP($A210,Economática!$A$3:$AI$823,17,FALSE)))","v":16.64},{"$f":"IF($A210=\"\",\"\",IF(OR(VLOOKUP($A210,Economática!$A$3:$AI$823,18,FALSE)=0,VLOOKUP($A210,Economática!$A$3:$AI$823,18,FALSE)=\"-\"),1/0,VLOOKUP($A210,Economática!$A$3:$AI$823,18,FALSE)))","v":44.73},{"$f":"IF($A210=\"\",\"\",IF(OR(VLOOKUP($A210,Economática!$A$3:$AI$823,19,FALSE)=0,VLOOKUP($A210,Economática!$A$3:$AI$823,19,FALSE)=\"-\"),1/0,VLOOKUP($A210,Economática!$A$3:$AI$823,19,FALSE)))","v":16.64},{"$f":"IF($A210=\"\",\"\",VLOOKUP($A210,Economática!$A$3:$AI$823,20,FALSE)/E210)","v":4.3164721141374836},6.3164721141374844,5.3827515400410668,7.876802884615385,{"$f":"IF($A210=\"\",\"\",IF(OR(VLOOKUP($A210,Economática!$A$3:$AI$823,21,FALSE)/100=0,VLOOKUP($A210,Economática!$A$3:$AI$823,21,FALSE)/100=\"-\"),1/0,VLOOKUP($A210,Economática!$A$3:$AI$823,21,FALSE)/100))","v":2.4780470000000001},{"$f":"IF($A210=\"\",\"\",IF(OR(VLOOKUP($A210,Economática!$A$3:$AI$823,22,FALSE)/100=0,VLOOKUP($A210,Economática!$A$3:$AI$823,22,FALSE)/100=\"-\"),1/0,VLOOKUP($A210,Economática!$A$3:$AI$823,22,FALSE)/100))","v":2.2073269999999998},{"$f":"IF($A210=\"\",\"\",IF(OR(VLOOKUP($A210,Economática!$A$3:$AI$823,23,FALSE)=0,VLOOKUP($A210,Economática!$A$3:$AI$823,23,FALSE)=\"-\"),1/0,VLOOKUP($A210,Economática!$A$3:$AI$823,23,FALSE)))","v":26.3},{"$f":"IF($A210=\"\",\"\",IF(OR(VLOOKUP($A210,Economática!$A$3:$AI$823,24,FALSE)=0,VLOOKUP($A210,Economática!$A$3:$AI$823,24,FALSE)=\"-\"),1/0,VLOOKUP($A210,Economática!$A$3:$AI$823,24,FALSE)))","v":36},{"$f":"IF($A210=\"\",\"\",IF(OR(VLOOKUP($A210,Economática!$A$3:$AI$823,25,FALSE)=0,VLOOKUP($A210,Economática!$A$3:$AI$823,25,FALSE)=\"-\"),1/0,VLOOKUP($A210,Economática!$A$3:$AI$823,25,FALSE)))","v":36},{"$f":"IF($A210=\"\",\"\",IF(ISERROR((F210+VLOOKUP($A210,Economática!$A$3:$AI$823,26,FALSE))/Y210),(F210+VLOOKUP($A210,Economática!$A$3:$AI$823,26,FALSE))/Y210,(F210+VLOOKUP($A210,Economática!$A$3:$AI$823,26,FALSE))/Y210))","v":5.1186388888888885},{"$f":"IF($A210=\"\",\"\",IF(OR(-VLOOKUP($A210,Economática!$A$3:$AI$823,27,FALSE)=0,-VLOOKUP($A210,Economática!$A$3:$AI$823,27,FALSE)=\"-\"),1/0,-VLOOKUP($A210,Economática!$A$3:$AI$823,27,FALSE)))","v":{"$error":"#DIV/0!"}},{"$error":"#DIV/0!"},{"$f":"IF($A210=\"\",\"\",IF(OR(VLOOKUP($A210,Economática!$A$3:$AI$823,28,FALSE)=0,VLOOKUP($A210,Economática!$A$3:$AI$823,28,FALSE)=\"-\"),1/0,VLOOKUP($A210,Economática!$A$3:$AI$823,28,FALSE)))","v":{"$error":"#DIV/0!"}},{"$f":"IF($A210=\"\",\"\",IF(OR(VLOOKUP($A210,Economática!$A$3:$AI$823,29,FALSE)=0,VLOOKUP($A210,Economática!$A$3:$AI$823,29,FALSE)=\"-\"),1/0,VLOOKUP($A210,Economática!$A$3:$AI$823,29,FALSE)))","v":297.60000000000002},{"$f":"IF($A210=\"\",\"\",IF(OR(VLOOKUP($A210,Economática!$A$3:$AI$823,30,FALSE)/E210=0,VLOOKUP($A210,Economática!$A$3:$AI$823,30,FALSE)/E210=\"-\",VLOOKUP($A210,Economática!$A$3:$AI$823,30,FALSE)/E210<33.33%,VLOOKUP($A210,Economática!$A$3:$AI$823,30,FALSE)/E210>100%),1/0,VLOOKUP($A210,Economática!$A$3:$AI$823,30,FALSE)/E210))","v":0.33722438391699094},"CAMB4",{"$f":"IF($A210=\"\",\"\",IF(OR(VLOOKUP($A210,Economática!$A$3:$AI$823,25,FALSE)=0,VLOOKUP($A210,Economática!$A$3:$AI$823,25,FALSE)=\"-\"),1/0,VLOOKUP($A210,Economática!$A$3:$AI$823,25,FALSE)))","v":36},{"$f":"CONCATENATE(Economática!B212,\" \",Economática!C212)","v":"Cambuci PN"}]
[{"$f":"IF(Economática!AG213=\"\",\"\",Economática!AG213)","v":"GUAR3"},{"$f":"IF($A211=\"\",\"\",VLOOKUP(VLOOKUP($A211,Economática!$A$3:$AI$823,6,FALSE),Correção!$B$16:$C$36,2,FALSE))","v":"Têxtil"},{"$f":"IF(Economática!B213=\"\",\"\",Economática!B213)","v":"Guararapes"},{"$f":"IF($A211=\"\",\"\",IF(OR(VLOOKUP($A211,Economática!$A$3:$AI$823,8,FALSE)=0,VLOOKUP($A211,Economática!$A$3:$AI$823,8,FALSE)=\"-\"),1/0,VLOOKUP($A211,Economática!$A$3:$AI$823,8,FALSE)))","v":144},{"$f":"IF(A211=\"\",\"\",IF(ISERROR(VLOOKUP(A211,Correção!$B$2:$G$13,9,FALSE)),VLOOKUP($A211,Economática!$A$3:$AI$823,9,FALSE),VLOOKUP(A211,Correção!$B$2:$G$13,9,FALSE)))","v":62.4},{"$f":"IF($A211=\"\",\"\",Economática!G213)","v":8985.6},{"$f":"IF($A211=\"\",\"\",IF(OR(VLOOKUP($A211,Economática!$A$3:$AI$823,10,FALSE)=0,VLOOKUP($A211,Economática!$A$3:$AI$823,10,FALSE)=\"-\"),1/0,VLOOKUP($A211,Economática!$A$3:$AI$823,10,FALSE)))","v":4929.1499999999996},{"$f":"IF($A211=\"\",\"\",IF(OR(VLOOKUP($A211,Economática!$A$3:$AI$823,11,FALSE)=0,VLOOKUP($A211,Economática!$A$3:$AI$823,11,FALSE)=\"-\"),1/0,VLOOKUP($A211,Economática!$A$3:$AI$823,11,FALSE)))","v":6444.66},{"$f":"IF($A211=\"\",\"\",IF(OR(VLOOKUP($A211,Economática!$A$3:$AI$823,12,FALSE)=0,VLOOKUP($A211,Economática!$A$3:$AI$823,12,FALSE)=\"-\"),1/0,VLOOKUP($A211,Economática!$A$3:$AI$823,12,FALSE)))","v":7192.6},{"$f":"IF($A211=\"\",\"\",IF(OR(VLOOKUP($A211,Economática!$A$3:$AI$823,13,FALSE)=0,VLOOKUP($A211,Economática!$A$3:$AI$823,13,FALSE)=\"-\"),1/0,VLOOKUP($A211,Economática!$A$3:$AI$823,13,FALSE)))","v":570.33000000000004},{"$f":"IF($A211=\"\",\"\",IF(OR(VLOOKUP($A211,Economática!$A$3:$AI$823,14,FALSE)=0,VLOOKUP($A211,Economática!$A$3:$AI$823,14,FALSE)=\"-\"),1/0,VLOOKUP($A211,Economática!$A$3:$AI$823,14,FALSE)))","v":51.13},{"$f":"IF($A211=\"\",\"\",IF(OR(VLOOKUP($A211,Economática!$A$3:$AI$823,15,FALSE)=0,VLOOKUP($A211,Economática!$A$3:$AI$823,15,FALSE)=\"-\"),1/0,VLOOKUP($A211,Economática!$A$3:$AI$823,15,FALSE)))","v":140.19999999999999},{"$f":"IF($A211=\"\",\"\",IF(OR(VLOOKUP($A211,Economática!$A$3:$AI$823,16,FALSE)=0,VLOOKUP($A211,Economática!$A$3:$AI$823,16,FALSE)=\"-\"),1/0,VLOOKUP($A211,Economática!$A$3:$AI$823,16,FALSE)))","v":223.53},{"$f":"IF($A211=\"\",\"\",IF(OR(VLOOKUP($A211,Economática!$A$3:$AI$823,17,FALSE)=0,VLOOKUP($A211,Economática!$A$3:$AI$823,17,FALSE)=\"-\"),1/0,VLOOKUP($A211,Economática!$A$3:$AI$823,17,FALSE)))","v":1235.67},{"$f":"IF($A211=\"\",\"\",IF(OR(VLOOKUP($A211,Economática!$A$3:$AI$823,18,FALSE)=0,VLOOKUP($A211,Economática!$A$3:$AI$823,18,FALSE)=\"-\"),1/0,VLOOKUP($A211,Economática!$A$3:$AI$823,18,FALSE)))","v":570.33000000000004},{"$f":"IF($A211=\"\",\"\",IF(OR(VLOOKUP($A211,Economática!$A$3:$AI$823,19,FALSE)=0,VLOOKUP($A211,Economática!$A$3:$AI$823,19,FALSE)=\"-\"),1/0,VLOOKUP($A211,Economática!$A$3:$AI$823,19,FALSE)))","v":1235.67},{"$f":"IF($A211=\"\",\"\",VLOOKUP($A211,Economática!$A$3:$AI$823,20,FALSE)/E211)","v":19.802403846153847},78.992788461538453,1.8229512187699708,7.2718444244822642,{"$f":"IF($A211=\"\",\"\",IF(OR(VLOOKUP($A211,Economática!$A$3:$AI$823,21,FALSE)/100=0,VLOOKUP($A211,Economática!$A$3:$AI$823,21,FALSE)/100=\"-\"),1/0,VLOOKUP($A211,Economática!$A$3:$AI$823,21,FALSE)/100))","v":0.30699700000000002},{"$f":"IF($A211=\"\",\"\",IF(OR(VLOOKUP($A211,Economática!$A$3:$AI$823,22,FALSE)/100=0,VLOOKUP($A211,Economática!$A$3:$AI$823,22,FALSE)/100=\"-\"),1/0,VLOOKUP($A211,Economática!$A$3:$AI$823,22,FALSE)/100))","v":0.198903},{"$f":"IF($A211=\"\",\"\",IF(OR(VLOOKUP($A211,Economática!$A$3:$AI$823,23,FALSE)=0,VLOOKUP($A211,Economática!$A$3:$AI$823,23,FALSE)=\"-\"),1/0,VLOOKUP($A211,Economática!$A$3:$AI$823,23,FALSE)))","v":1188.7},{"$f":"IF($A211=\"\",\"\",IF(OR(VLOOKUP($A211,Economática!$A$3:$AI$823,24,FALSE)=0,VLOOKUP($A211,Economática!$A$3:$AI$823,24,FALSE)=\"-\"),1/0,VLOOKUP($A211,Economática!$A$3:$AI$823,24,FALSE)))","v":1701.3},{"$f":"IF($A211=\"\",\"\",IF(OR(VLOOKUP($A211,Economática!$A$3:$AI$823,25,FALSE)=0,VLOOKUP($A211,Economática!$A$3:$AI$823,25,FALSE)=\"-\"),1/0,VLOOKUP($A211,Economática!$A$3:$AI$823,25,FALSE)))","v":1701.3},{"$f":"IF($A211=\"\",\"\",IF(ISERROR((F211+VLOOKUP($A211,Economática!$A$3:$AI$823,26,FALSE))/Y211),(F211+VLOOKUP($A211,Economática!$A$3:$AI$823,26,FALSE))/Y211,(F211+VLOOKUP($A211,Economática!$A$3:$AI$823,26,FALSE))/Y211))","v":5.857885734438371},{"$f":"IF($A211=\"\",\"\",IF(OR(-VLOOKUP($A211,Economática!$A$3:$AI$823,27,FALSE)=0,-VLOOKUP($A211,Economática!$A$3:$AI$823,27,FALSE)=\"-\"),1/0,-VLOOKUP($A211,Economática!$A$3:$AI$823,27,FALSE)))","v":139.97},1.5577145655270654E-2,{"$f":"IF($A211=\"\",\"\",IF(OR(VLOOKUP($A211,Economática!$A$3:$AI$823,28,FALSE)=0,VLOOKUP($A211,Economática!$A$3:$AI$823,28,FALSE)=\"-\"),1/0,VLOOKUP($A211,Economática!$A$3:$AI$823,28,FALSE)))","v":-1.1000000000000001},{"$f":"IF($A211=\"\",\"\",IF(OR(VLOOKUP($A211,Economática!$A$3:$AI$823,29,FALSE)=0,VLOOKUP($A211,Economática!$A$3:$AI$823,29,FALSE)=\"-\"),1/0,VLOOKUP($A211,Economática!$A$3:$AI$823,29,FALSE)))","v":-0.5},{"$f":"IF($A211=\"\",\"\",IF(OR(VLOOKUP($A211,Economática!$A$3:$AI$823,30,FALSE)/E211=0,VLOOKUP($A211,Economática!$A$3:$AI$823,30,FALSE)/E211=\"-\",VLOOKUP($A211,Economática!$A$3:$AI$823,30,FALSE)/E211<33.33%,VLOOKUP($A211,Economática!$A$3:$AI$823,30,FALSE)/E211>100%),1/0,VLOOKUP($A211,Economática!$A$3:$AI$823,30,FALSE)/E211))","v":0.5},"GUAR3",{"$f":"IF($A211=\"\",\"\",IF(OR(VLOOKUP($A211,Economática!$A$3:$AI$823,25,FALSE)=0,VLOOKUP($A211,Economática!$A$3:$AI$823,25,FALSE)=\"-\"),1/0,VLOOKUP($A211,Economática!$A$3:$AI$823,25,FALSE)))","v":1701.3},{"$f":"CONCATENATE(Economática!B213,\" \",Economática!C213)","v":"Guararapes ON"}]
[{"$f":"IF(Economática!AG214=\"\",\"\",Economática!AG214)","v":"CEDO4"},{"$f":"IF($A212=\"\",\"\",VLOOKUP(VLOOKUP($A212,Economática!$A$3:$AI$823,6,FALSE),Correção!$B$16:$C$36,2,FALSE))","v":"Têxtil"},{"$f":"IF(Economática!B214=\"\",\"\",Economática!B214)","v":"Cedro"},{"$f":"IF($A212=\"\",\"\",IF(OR(VLOOKUP($A212,Economática!$A$3:$AI$823,8,FALSE)=0,VLOOKUP($A212,Economática!$A$3:$AI$823,8,FALSE)=\"-\"),1/0,VLOOKUP($A212,Economática!$A$3:$AI$823,8,FALSE)))","v":6.22},{"$f":"IF(A212=\"\",\"\",IF(ISERROR(VLOOKUP(A212,Correção!$B$2:$G$13,9,FALSE)),VLOOKUP($A212,Economática!$A$3:$AI$823,9,FALSE),VLOOKUP(A212,Correção!$B$2:$G$13,9,FALSE)))","v":10},{"$f":"IF($A212=\"\",\"\",Economática!G214)","v":60.94},{"$f":"IF($A212=\"\",\"\",IF(OR(VLOOKUP($A212,Economática!$A$3:$AI$823,10,FALSE)=0,VLOOKUP($A212,Economática!$A$3:$AI$823,10,FALSE)=\"-\"),1/0,VLOOKUP($A212,Economática!$A$3:$AI$823,10,FALSE)))","v":190.19},{"$f":"IF($A212=\"\",\"\",IF(OR(VLOOKUP($A212,Economática!$A$3:$AI$823,11,FALSE)=0,VLOOKUP($A212,Economática!$A$3:$AI$823,11,FALSE)=\"-\"),1/0,VLOOKUP($A212,Economática!$A$3:$AI$823,11,FALSE)))","v":635.04},{"$f":"IF($A212=\"\",\"\",IF(OR(VLOOKUP($A212,Economática!$A$3:$AI$823,12,FALSE)=0,VLOOKUP($A212,Economática!$A$3:$AI$823,12,FALSE)=\"-\"),1/0,VLOOKUP($A212,Economática!$A$3:$AI$823,12,FALSE)))","v":649.69000000000005},{"$f":"IF($A212=\"\",\"\",IF(OR(VLOOKUP($A212,Economática!$A$3:$AI$823,13,FALSE)=0,VLOOKUP($A212,Economática!$A$3:$AI$823,13,FALSE)=\"-\"),1/0,VLOOKUP($A212,Economática!$A$3:$AI$823,13,FALSE)))","v":82.7},{"$f":"IF($A212=\"\",\"\",IF(OR(VLOOKUP($A212,Economática!$A$3:$AI$823,14,FALSE)=0,VLOOKUP($A212,Economática!$A$3:$AI$823,14,FALSE)=\"-\"),1/0,VLOOKUP($A212,Economática!$A$3:$AI$823,14,FALSE)))","v":0.01},{"$f":"IF($A212=\"\",\"\",IF(OR(VLOOKUP($A212,Economática!$A$3:$AI$823,15,FALSE)=0,VLOOKUP($A212,Economática!$A$3:$AI$823,15,FALSE)=\"-\"),1/0,VLOOKUP($A212,Economática!$A$3:$AI$823,15,FALSE)))","v":0.93},{"$f":"IF($A212=\"\",\"\",IF(OR(VLOOKUP($A212,Economática!$A$3:$AI$823,16,FALSE)=0,VLOOKUP($A212,Economática!$A$3:$AI$823,16,FALSE)=\"-\"),1/0,VLOOKUP($A212,Economática!$A$3:$AI$823,16,FALSE)))","v":-7.8},{"$f":"IF($A212=\"\",\"\",IF(OR(VLOOKUP($A212,Economática!$A$3:$AI$823,17,FALSE)=0,VLOOKUP($A212,Economática!$A$3:$AI$823,17,FALSE)=\"-\"),1/0,VLOOKUP($A212,Economática!$A$3:$AI$823,17,FALSE)))","v":48.61},{"$f":"IF($A212=\"\",\"\",IF(OR(VLOOKUP($A212,Economática!$A$3:$AI$823,18,FALSE)=0,VLOOKUP($A212,Economática!$A$3:$AI$823,18,FALSE)=\"-\"),1/0,VLOOKUP($A212,Economática!$A$3:$AI$823,18,FALSE)))","v":82.7},{"$f":"IF($A212=\"\",\"\",IF(OR(VLOOKUP($A212,Economática!$A$3:$AI$823,19,FALSE)=0,VLOOKUP($A212,Economática!$A$3:$AI$823,19,FALSE)=\"-\"),1/0,VLOOKUP($A212,Economática!$A$3:$AI$823,19,FALSE)))","v":48.61},{"$f":"IF($A212=\"\",\"\",VLOOKUP($A212,Economática!$A$3:$AI$823,20,FALSE)/E212)","v":4.8609999999999998},19.018999999999998,0.32704137967295865,1.2795721045052459,{"$f":"IF($A212=\"\",\"\",IF(OR(VLOOKUP($A212,Economática!$A$3:$AI$823,21,FALSE)/100=0,VLOOKUP($A212,Economática!$A$3:$AI$823,21,FALSE)/100=\"-\"),1/0,VLOOKUP($A212,Economática!$A$3:$AI$823,21,FALSE)/100))","v":0.280696},{"$f":"IF($A212=\"\",\"\",IF(OR(VLOOKUP($A212,Economática!$A$3:$AI$823,22,FALSE)/100=0,VLOOKUP($A212,Economática!$A$3:$AI$823,22,FALSE)/100=\"-\"),1/0,VLOOKUP($A212,Economática!$A$3:$AI$823,22,FALSE)/100))","v":1.1925870000000001},{"$f":"IF($A212=\"\",\"\",IF(OR(VLOOKUP($A212,Economática!$A$3:$AI$823,23,FALSE)=0,VLOOKUP($A212,Economática!$A$3:$AI$823,23,FALSE)=\"-\"),1/0,VLOOKUP($A212,Economática!$A$3:$AI$823,23,FALSE)))","v":101.5},{"$f":"IF($A212=\"\",\"\",IF(OR(VLOOKUP($A212,Economática!$A$3:$AI$823,24,FALSE)=0,VLOOKUP($A212,Economática!$A$3:$AI$823,24,FALSE)=\"-\"),1/0,VLOOKUP($A212,Economática!$A$3:$AI$823,24,FALSE)))","v":80.5},{"$f":"IF($A212=\"\",\"\",IF(OR(VLOOKUP($A212,Economática!$A$3:$AI$823,25,FALSE)=0,VLOOKUP($A212,Economática!$A$3:$AI$823,25,FALSE)=\"-\"),1/0,VLOOKUP($A212,Economática!$A$3:$AI$823,25,FALSE)))","v":80.5},{"$f":"IF($A212=\"\",\"\",IF(ISERROR((F212+VLOOKUP($A212,Economática!$A$3:$AI$823,26,FALSE))/Y212),(F212+VLOOKUP($A212,Economática!$A$3:$AI$823,26,FALSE))/Y212,(F212+VLOOKUP($A212,Economática!$A$3:$AI$823,26,FALSE))/Y212))","v":3.8488695652173912},{"$f":"IF($A212=\"\",\"\",IF(OR(-VLOOKUP($A212,Economática!$A$3:$AI$823,27,FALSE)=0,-VLOOKUP($A212,Economática!$A$3:$AI$823,27,FALSE)=\"-\"),1/0,-VLOOKUP($A212,Economática!$A$3:$AI$823,27,FALSE)))","v":{"$error":"#DIV/0!"}},{"$error":"#DIV/0!"},{"$f":"IF($A212=\"\",\"\",IF(OR(VLOOKUP($A212,Economática!$A$3:$AI$823,28,FALSE)=0,VLOOKUP($A212,Economática!$A$3:$AI$823,28,FALSE)=\"-\"),1/0,VLOOKUP($A212,Economática!$A$3:$AI$823,28,FALSE)))","v":-2.5},{"$f":"IF($A212=\"\",\"\",IF(OR(VLOOKUP($A212,Economática!$A$3:$AI$823,29,FALSE)=0,VLOOKUP($A212,Economática!$A$3:$AI$823,29,FALSE)=\"-\"),1/0,VLOOKUP($A212,Economática!$A$3:$AI$823,29,FALSE)))","v":-8.8000000000000007},{"$f":"IF($A212=\"\",\"\",IF(OR(VLOOKUP($A212,Economática!$A$3:$AI$823,30,FALSE)/E212=0,VLOOKUP($A212,Economática!$A$3:$AI$823,30,FALSE)/E212=\"-\",VLOOKUP($A212,Economática!$A$3:$AI$823,30,FALSE)/E212<33.33%,VLOOKUP($A212,Economática!$A$3:$AI$823,30,FALSE)/E212>100%),1/0,VLOOKUP($A212,Economática!$A$3:$AI$823,30,FALSE)/E212))","v":0.57000000000000006},"CEDO4",{"$f":"IF($A212=\"\",\"\",IF(OR(VLOOKUP($A212,Economática!$A$3:$AI$823,25,FALSE)=0,VLOOKUP($A212,Economática!$A$3:$AI$823,25,FALSE)=\"-\"),1/0,VLOOKUP($A212,Economática!$A$3:$AI$823,25,FALSE)))","v":80.5},{"$f":"CONCATENATE(Economática!B214,\" \",Economática!C214)","v":"Cedro PN"}]
[{"$f":"IF(Economática!AG215=\"\",\"\",Economática!AG215)","v":"ARZZ3"},{"$f":"IF($A213=\"\",\"\",VLOOKUP(VLOOKUP($A213,Economática!$A$3:$AI$823,6,FALSE),Correção!$B$16:$C$36,2,FALSE))","v":"Têxtil"},{"$f":"IF(Economática!B215=\"\",\"\",Economática!B215)","v":"Arezzo Co"},{"$f":"IF($A213=\"\",\"\",IF(OR(VLOOKUP($A213,Economática!$A$3:$AI$823,8,FALSE)=0,VLOOKUP($A213,Economática!$A$3:$AI$823,8,FALSE)=\"-\"),1/0,VLOOKUP($A213,Economática!$A$3:$AI$823,8,FALSE)))","v":49.98},{"$f":"IF(A213=\"\",\"\",IF(ISERROR(VLOOKUP(A213,Correção!$B$2:$G$13,9,FALSE)),VLOOKUP($A213,Economática!$A$3:$AI$823,9,FALSE),VLOOKUP(A213,Correção!$B$2:$G$13,9,FALSE)))","v":90.251000000000005},{"$f":"IF($A213=\"\",\"\",Economática!G215)","v":4510.74},{"$f":"IF($A213=\"\",\"\",IF(OR(VLOOKUP($A213,Economática!$A$3:$AI$823,10,FALSE)=0,VLOOKUP($A213,Economática!$A$3:$AI$823,10,FALSE)=\"-\"),1/0,VLOOKUP($A213,Economática!$A$3:$AI$823,10,FALSE)))","v":711.34},{"$f":"IF($A213=\"\",\"\",IF(OR(VLOOKUP($A213,Economática!$A$3:$AI$823,11,FALSE)=0,VLOOKUP($A213,Economática!$A$3:$AI$823,11,FALSE)=\"-\"),1/0,VLOOKUP($A213,Economática!$A$3:$AI$823,11,FALSE)))","v":1360.47},{"$f":"IF($A213=\"\",\"\",IF(OR(VLOOKUP($A213,Economática!$A$3:$AI$823,12,FALSE)=0,VLOOKUP($A213,Economática!$A$3:$AI$823,12,FALSE)=\"-\"),1/0,VLOOKUP($A213,Economática!$A$3:$AI$823,12,FALSE)))","v":1526.66},{"$f":"IF($A213=\"\",\"\",IF(OR(VLOOKUP($A213,Economática!$A$3:$AI$823,13,FALSE)=0,VLOOKUP($A213,Economática!$A$3:$AI$823,13,FALSE)=\"-\"),1/0,VLOOKUP($A213,Economática!$A$3:$AI$823,13,FALSE)))","v":154.47},{"$f":"IF($A213=\"\",\"\",IF(OR(VLOOKUP($A213,Economática!$A$3:$AI$823,14,FALSE)=0,VLOOKUP($A213,Economática!$A$3:$AI$823,14,FALSE)=\"-\"),1/0,VLOOKUP($A213,Economática!$A$3:$AI$823,14,FALSE)))","v":27.11},{"$f":"IF($A213=\"\",\"\",IF(OR(VLOOKUP($A213,Economática!$A$3:$AI$823,15,FALSE)=0,VLOOKUP($A213,Economática!$A$3:$AI$823,15,FALSE)=\"-\"),1/0,VLOOKUP($A213,Economática!$A$3:$AI$823,15,FALSE)))","v":60.24},{"$f":"IF($A213=\"\",\"\",IF(OR(VLOOKUP($A213,Economática!$A$3:$AI$823,16,FALSE)=0,VLOOKUP($A213,Economática!$A$3:$AI$823,16,FALSE)=\"-\"),1/0,VLOOKUP($A213,Economática!$A$3:$AI$823,16,FALSE)))","v":100.4},{"$f":"IF($A213=\"\",\"\",IF(OR(VLOOKUP($A213,Economática!$A$3:$AI$823,17,FALSE)=0,VLOOKUP($A213,Economática!$A$3:$AI$823,17,FALSE)=\"-\"),1/0,VLOOKUP($A213,Economática!$A$3:$AI$823,17,FALSE)))","v":142.63999999999999},{"$f":"IF($A213=\"\",\"\",IF(OR(VLOOKUP($A213,Economática!$A$3:$AI$823,18,FALSE)=0,VLOOKUP($A213,Economática!$A$3:$AI$823,18,FALSE)=\"-\"),1/0,VLOOKUP($A213,Economática!$A$3:$AI$823,18,FALSE)))","v":154.47},{"$f":"IF($A213=\"\",\"\",IF(OR(VLOOKUP($A213,Economática!$A$3:$AI$823,19,FALSE)=0,VLOOKUP($A213,Economática!$A$3:$AI$823,19,FALSE)=\"-\"),1/0,VLOOKUP($A213,Economática!$A$3:$AI$823,19,FALSE)))","v":142.63999999999999},{"$f":"IF($A213=\"\",\"\",VLOOKUP($A213,Economática!$A$3:$AI$823,20,FALSE)/E213)","v":1.580481102702463},7.8817963235864426,6.3411940562881313,31.623282249018509,{"$f":"IF($A213=\"\",\"\",IF(OR(VLOOKUP($A213,Economática!$A$3:$AI$823,21,FALSE)/100=0,VLOOKUP($A213,Economática!$A$3:$AI$823,21,FALSE)/100=\"-\"),1/0,VLOOKUP($A213,Economática!$A$3:$AI$823,21,FALSE)/100))","v":0.21451499999999998},{"$f":"IF($A213=\"\",\"\",IF(OR(VLOOKUP($A213,Economática!$A$3:$AI$823,22,FALSE)/100=0,VLOOKUP($A213,Economática!$A$3:$AI$823,22,FALSE)/100=\"-\"),1/0,VLOOKUP($A213,Economática!$A$3:$AI$823,22,FALSE)/100))","v":-0.17485700000000001},{"$f":"IF($A213=\"\",\"\",IF(OR(VLOOKUP($A213,Economática!$A$3:$AI$823,23,FALSE)=0,VLOOKUP($A213,Economática!$A$3:$AI$823,23,FALSE)=\"-\"),1/0,VLOOKUP($A213,Economática!$A$3:$AI$823,23,FALSE)))","v":206.3},{"$f":"IF($A213=\"\",\"\",IF(OR(VLOOKUP($A213,Economática!$A$3:$AI$823,24,FALSE)=0,VLOOKUP($A213,Economática!$A$3:$AI$823,24,FALSE)=\"-\"),1/0,VLOOKUP($A213,Economática!$A$3:$AI$823,24,FALSE)))","v":232.2},{"$f":"IF($A213=\"\",\"\",IF(OR(VLOOKUP($A213,Economática!$A$3:$AI$823,25,FALSE)=0,VLOOKUP($A213,Economática!$A$3:$AI$823,25,FALSE)=\"-\"),1/0,VLOOKUP($A213,Economática!$A$3:$AI$823,25,FALSE)))","v":232.2},{"$f":"IF($A213=\"\",\"\",IF(ISERROR((F213+VLOOKUP($A213,Economática!$A$3:$AI$823,26,FALSE))/Y213),(F213+VLOOKUP($A213,Economática!$A$3:$AI$823,26,FALSE))/Y213,(F213+VLOOKUP($A213,Economática!$A$3:$AI$823,26,FALSE))/Y213))","v":18.890426356589149},{"$f":"IF($A213=\"\",\"\",IF(OR(-VLOOKUP($A213,Economática!$A$3:$AI$823,27,FALSE)=0,-VLOOKUP($A213,Economática!$A$3:$AI$823,27,FALSE)=\"-\"),1/0,-VLOOKUP($A213,Economática!$A$3:$AI$823,27,FALSE)))","v":41.92},9.2933753663478735E-3,{"$f":"IF($A213=\"\",\"\",IF(OR(VLOOKUP($A213,Economática!$A$3:$AI$823,28,FALSE)=0,VLOOKUP($A213,Economática!$A$3:$AI$823,28,FALSE)=\"-\"),1/0,VLOOKUP($A213,Economática!$A$3:$AI$823,28,FALSE)))","v":-7.4},{"$f":"IF($A213=\"\",\"\",IF(OR(VLOOKUP($A213,Economática!$A$3:$AI$823,29,FALSE)=0,VLOOKUP($A213,Economática!$A$3:$AI$823,29,FALSE)=\"-\"),1/0,VLOOKUP($A213,Economática!$A$3:$AI$823,29,FALSE)))","v":-4.5999999999999996},{"$f":"IF($A213=\"\",\"\",IF(OR(VLOOKUP($A213,Economática!$A$3:$AI$823,30,FALSE)/E213=0,VLOOKUP($A213,Economática!$A$3:$AI$823,30,FALSE)/E213=\"-\",VLOOKUP($A213,Economática!$A$3:$AI$823,30,FALSE)/E213<33.33%,VLOOKUP($A213,Economática!$A$3:$AI$823,30,FALSE)/E213>100%),1/0,VLOOKUP($A213,Economática!$A$3:$AI$823,30,FALSE)/E213))","v":{"$error":"#DIV/0!"}},"ARZZ3",{"$f":"IF($A213=\"\",\"\",IF(OR(VLOOKUP($A213,Economática!$A$3:$AI$823,25,FALSE)=0,VLOOKUP($A213,Economática!$A$3:$AI$823,25,FALSE)=\"-\"),1/0,VLOOKUP($A213,Economática!$A$3:$AI$823,25,FALSE)))","v":232.2},{"$f":"CONCATENATE(Economática!B215,\" \",Economática!C215)","v":"Arezzo Co ON"}]
[{"$f":"IF(Economática!AG216=\"\",\"\",Economática!AG216)","v":"HGTX3"},{"$f":"IF($A214=\"\",\"\",VLOOKUP(VLOOKUP($A214,Economática!$A$3:$AI$823,6,FALSE),Correção!$B$16:$C$36,2,FALSE))","v":"Têxtil"},{"$f":"IF(Economática!B216=\"\",\"\",Economática!B216)","v":"Cia Hering"},{"$f":"IF($A214=\"\",\"\",IF(OR(VLOOKUP($A214,Economática!$A$3:$AI$823,8,FALSE)=0,VLOOKUP($A214,Economática!$A$3:$AI$823,8,FALSE)=\"-\"),1/0,VLOOKUP($A214,Economática!$A$3:$AI$823,8,FALSE)))","v":29.89},{"$f":"IF(A214=\"\",\"\",IF(ISERROR(VLOOKUP(A214,Correção!$B$2:$G$13,9,FALSE)),VLOOKUP($A214,Economática!$A$3:$AI$823,9,FALSE),VLOOKUP(A214,Correção!$B$2:$G$13,9,FALSE)))","v":161.40299999999999},{"$f":"IF($A214=\"\",\"\",Economática!G216)","v":4824.34},{"$f":"IF($A214=\"\",\"\",IF(OR(VLOOKUP($A214,Economática!$A$3:$AI$823,10,FALSE)=0,VLOOKUP($A214,Economática!$A$3:$AI$823,10,FALSE)=\"-\"),1/0,VLOOKUP($A214,Economática!$A$3:$AI$823,10,FALSE)))","v":1320.08},{"$f":"IF($A214=\"\",\"\",IF(OR(VLOOKUP($A214,Economática!$A$3:$AI$823,11,FALSE)=0,VLOOKUP($A214,Economática!$A$3:$AI$823,11,FALSE)=\"-\"),1/0,VLOOKUP($A214,Economática!$A$3:$AI$823,11,FALSE)))","v":1562.32},{"$f":"IF($A214=\"\",\"\",IF(OR(VLOOKUP($A214,Economática!$A$3:$AI$823,12,FALSE)=0,VLOOKUP($A214,Economática!$A$3:$AI$823,12,FALSE)=\"-\"),1/0,VLOOKUP($A214,Economática!$A$3:$AI$823,12,FALSE)))","v":1539.57},{"$f":"IF($A214=\"\",\"\",IF(OR(VLOOKUP($A214,Economática!$A$3:$AI$823,13,FALSE)=0,VLOOKUP($A214,Economática!$A$3:$AI$823,13,FALSE)=\"-\"),1/0,VLOOKUP($A214,Economática!$A$3:$AI$823,13,FALSE)))","v":263.77999999999997},{"$f":"IF($A214=\"\",\"\",IF(OR(VLOOKUP($A214,Economática!$A$3:$AI$823,14,FALSE)=0,VLOOKUP($A214,Economática!$A$3:$AI$823,14,FALSE)=\"-\"),1/0,VLOOKUP($A214,Economática!$A$3:$AI$823,14,FALSE)))","v":34.31},{"$f":"IF($A214=\"\",\"\",IF(OR(VLOOKUP($A214,Economática!$A$3:$AI$823,15,FALSE)=0,VLOOKUP($A214,Economática!$A$3:$AI$823,15,FALSE)=\"-\"),1/0,VLOOKUP($A214,Economática!$A$3:$AI$823,15,FALSE)))","v":91.6},{"$f":"IF($A214=\"\",\"\",IF(OR(VLOOKUP($A214,Economática!$A$3:$AI$823,16,FALSE)=0,VLOOKUP($A214,Economática!$A$3:$AI$823,16,FALSE)=\"-\"),1/0,VLOOKUP($A214,Economática!$A$3:$AI$823,16,FALSE)))","v":144.02000000000001},{"$f":"IF($A214=\"\",\"\",IF(OR(VLOOKUP($A214,Economática!$A$3:$AI$823,17,FALSE)=0,VLOOKUP($A214,Economática!$A$3:$AI$823,17,FALSE)=\"-\"),1/0,VLOOKUP($A214,Economática!$A$3:$AI$823,17,FALSE)))","v":239.51},{"$f":"IF($A214=\"\",\"\",IF(OR(VLOOKUP($A214,Economática!$A$3:$AI$823,18,FALSE)=0,VLOOKUP($A214,Economática!$A$3:$AI$823,18,FALSE)=\"-\"),1/0,VLOOKUP($A214,Economática!$A$3:$AI$823,18,FALSE)))","v":263.77999999999997},{"$f":"IF($A214=\"\",\"\",IF(OR(VLOOKUP($A214,Economática!$A$3:$AI$823,19,FALSE)=0,VLOOKUP($A214,Economática!$A$3:$AI$823,19,FALSE)=\"-\"),1/0,VLOOKUP($A214,Economática!$A$3:$AI$823,19,FALSE)))","v":239.51},{"$f":"IF($A214=\"\",\"\",VLOOKUP($A214,Economática!$A$3:$AI$823,20,FALSE)/E214)","v":1.4839253297646264},8.1787823026833451,3.6545782604084605,20.142522942674628,{"$f":"IF($A214=\"\",\"\",IF(OR(VLOOKUP($A214,Economática!$A$3:$AI$823,21,FALSE)/100=0,VLOOKUP($A214,Economática!$A$3:$AI$823,21,FALSE)/100=\"-\"),1/0,VLOOKUP($A214,Economática!$A$3:$AI$823,21,FALSE)/100))","v":0.194267},{"$f":"IF($A214=\"\",\"\",IF(OR(VLOOKUP($A214,Economática!$A$3:$AI$823,22,FALSE)/100=0,VLOOKUP($A214,Economática!$A$3:$AI$823,22,FALSE)/100=\"-\"),1/0,VLOOKUP($A214,Economática!$A$3:$AI$823,22,FALSE)/100))","v":-0.24281900000000001},{"$f":"IF($A214=\"\",\"\",IF(OR(VLOOKUP($A214,Economática!$A$3:$AI$823,23,FALSE)=0,VLOOKUP($A214,Economática!$A$3:$AI$823,23,FALSE)=\"-\"),1/0,VLOOKUP($A214,Economática!$A$3:$AI$823,23,FALSE)))","v":260.89999999999998},{"$f":"IF($A214=\"\",\"\",IF(OR(VLOOKUP($A214,Economática!$A$3:$AI$823,24,FALSE)=0,VLOOKUP($A214,Economática!$A$3:$AI$823,24,FALSE)=\"-\"),1/0,VLOOKUP($A214,Economática!$A$3:$AI$823,24,FALSE)))","v":259.60000000000002},{"$f":"IF($A214=\"\",\"\",IF(OR(VLOOKUP($A214,Economática!$A$3:$AI$823,25,FALSE)=0,VLOOKUP($A214,Economática!$A$3:$AI$823,25,FALSE)=\"-\"),1/0,VLOOKUP($A214,Economática!$A$3:$AI$823,25,FALSE)))","v":259.60000000000002},{"$f":"IF($A214=\"\",\"\",IF(ISERROR((F214+VLOOKUP($A214,Economática!$A$3:$AI$823,26,FALSE))/Y214),(F214+VLOOKUP($A214,Economática!$A$3:$AI$823,26,FALSE))/Y214,(F214+VLOOKUP($A214,Economática!$A$3:$AI$823,26,FALSE))/Y214))","v":17.348998459167952},{"$f":"IF($A214=\"\",\"\",IF(OR(-VLOOKUP($A214,Economática!$A$3:$AI$823,27,FALSE)=0,-VLOOKUP($A214,Economática!$A$3:$AI$823,27,FALSE)=\"-\"),1/0,-VLOOKUP($A214,Economática!$A$3:$AI$823,27,FALSE)))","v":109.99},2.2798973538349285E-2,{"$f":"IF($A214=\"\",\"\",IF(OR(VLOOKUP($A214,Economática!$A$3:$AI$823,28,FALSE)=0,VLOOKUP($A214,Economática!$A$3:$AI$823,28,FALSE)=\"-\"),1/0,VLOOKUP($A214,Economática!$A$3:$AI$823,28,FALSE)))","v":-1},{"$f":"IF($A214=\"\",\"\",IF(OR(VLOOKUP($A214,Economática!$A$3:$AI$823,29,FALSE)=0,VLOOKUP($A214,Economática!$A$3:$AI$823,29,FALSE)=\"-\"),1/0,VLOOKUP($A214,Economática!$A$3:$AI$823,29,FALSE)))","v":21.8},{"$f":"IF($A214=\"\",\"\",IF(OR(VLOOKUP($A214,Economática!$A$3:$AI$823,30,FALSE)/E214=0,VLOOKUP($A214,Economática!$A$3:$AI$823,30,FALSE)/E214=\"-\",VLOOKUP($A214,Economática!$A$3:$AI$823,30,FALSE)/E214<33.33%,VLOOKUP($A214,Economática!$A$3:$AI$823,30,FALSE)/E214>100%),1/0,VLOOKUP($A214,Economática!$A$3:$AI$823,30,FALSE)/E214))","v":{"$error":"#DIV/0!"}},"HGTX3",{"$f":"IF($A214=\"\",\"\",IF(OR(VLOOKUP($A214,Economática!$A$3:$AI$823,25,FALSE)=0,VLOOKUP($A214,Economática!$A$3:$AI$823,25,FALSE)=\"-\"),1/0,VLOOKUP($A214,Economática!$A$3:$AI$823,25,FALSE)))","v":259.60000000000002},{"$f":"CONCATENATE(Economática!B216,\" \",Economática!C216)","v":"Cia Hering ON"}]
[{"$f":"IF(Economática!AG217=\"\",\"\",Economática!AG217)","v":"VULC3"},{"$f":"IF($A215=\"\",\"\",VLOOKUP(VLOOKUP($A215,Economática!$A$3:$AI$823,6,FALSE),Correção!$B$16:$C$36,2,FALSE))","v":"Têxtil"},{"$f":"IF(Economática!B217=\"\",\"\",Economática!B217)","v":"Vulcabras"},{"$f":"IF($A215=\"\",\"\",IF(OR(VLOOKUP($A215,Economática!$A$3:$AI$823,8,FALSE)=0,VLOOKUP($A215,Economática!$A$3:$AI$823,8,FALSE)=\"-\"),1/0,VLOOKUP($A215,Economática!$A$3:$AI$823,8,FALSE)))","v":6.75},{"$f":"IF(A215=\"\",\"\",IF(ISERROR(VLOOKUP(A215,Correção!$B$2:$G$13,9,FALSE)),VLOOKUP($A215,Economática!$A$3:$AI$823,9,FALSE),VLOOKUP(A215,Correção!$B$2:$G$13,9,FALSE)))","v":245.756},{"$f":"IF($A215=\"\",\"\",Economática!G217)","v":1658.85},{"$f":"IF($A215=\"\",\"\",IF(OR(VLOOKUP($A215,Economática!$A$3:$AI$823,10,FALSE)=0,VLOOKUP($A215,Economática!$A$3:$AI$823,10,FALSE)=\"-\"),1/0,VLOOKUP($A215,Economática!$A$3:$AI$823,10,FALSE)))","v":941.16},{"$f":"IF($A215=\"\",\"\",IF(OR(VLOOKUP($A215,Economática!$A$3:$AI$823,11,FALSE)=0,VLOOKUP($A215,Economática!$A$3:$AI$823,11,FALSE)=\"-\"),1/0,VLOOKUP($A215,Economática!$A$3:$AI$823,11,FALSE)))","v":1263.08},{"$f":"IF($A215=\"\",\"\",IF(OR(VLOOKUP($A215,Economática!$A$3:$AI$823,12,FALSE)=0,VLOOKUP($A215,Economática!$A$3:$AI$823,12,FALSE)=\"-\"),1/0,VLOOKUP($A215,Economática!$A$3:$AI$823,12,FALSE)))","v":1248.96},{"$f":"IF($A215=\"\",\"\",IF(OR(VLOOKUP($A215,Economática!$A$3:$AI$823,13,FALSE)=0,VLOOKUP($A215,Economática!$A$3:$AI$823,13,FALSE)=\"-\"),1/0,VLOOKUP($A215,Economática!$A$3:$AI$823,13,FALSE)))","v":188.91},{"$f":"IF($A215=\"\",\"\",IF(OR(VLOOKUP($A215,Economática!$A$3:$AI$823,14,FALSE)=0,VLOOKUP($A215,Economática!$A$3:$AI$823,14,FALSE)=\"-\"),1/0,VLOOKUP($A215,Economática!$A$3:$AI$823,14,FALSE)))","v":33.42},{"$f":"IF($A215=\"\",\"\",IF(OR(VLOOKUP($A215,Economática!$A$3:$AI$823,15,FALSE)=0,VLOOKUP($A215,Economática!$A$3:$AI$823,15,FALSE)=\"-\"),1/0,VLOOKUP($A215,Economática!$A$3:$AI$823,15,FALSE)))","v":66.459999999999994},{"$f":"IF($A215=\"\",\"\",IF(OR(VLOOKUP($A215,Economática!$A$3:$AI$823,16,FALSE)=0,VLOOKUP($A215,Economática!$A$3:$AI$823,16,FALSE)=\"-\"),1/0,VLOOKUP($A215,Economática!$A$3:$AI$823,16,FALSE)))","v":105.97},{"$f":"IF($A215=\"\",\"\",IF(OR(VLOOKUP($A215,Economática!$A$3:$AI$823,17,FALSE)=0,VLOOKUP($A215,Economática!$A$3:$AI$823,17,FALSE)=\"-\"),1/0,VLOOKUP($A215,Economática!$A$3:$AI$823,17,FALSE)))","v":152.11000000000001},{"$f":"IF($A215=\"\",\"\",IF(OR(VLOOKUP($A215,Economática!$A$3:$AI$823,18,FALSE)=0,VLOOKUP($A215,Economática!$A$3:$AI$823,18,FALSE)=\"-\"),1/0,VLOOKUP($A215,Economática!$A$3:$AI$823,18,FALSE)))","v":188.91},{"$f":"IF($A215=\"\",\"\",IF(OR(VLOOKUP($A215,Economática!$A$3:$AI$823,19,FALSE)=0,VLOOKUP($A215,Economática!$A$3:$AI$823,19,FALSE)=\"-\"),1/0,VLOOKUP($A215,Economática!$A$3:$AI$823,19,FALSE)))","v":152.11000000000001},{"$f":"IF($A215=\"\",\"\",VLOOKUP($A215,Economática!$A$3:$AI$823,20,FALSE)/E215)","v":0.61894724849037264},3.8296521753283743,1.7625621573377535,10.905614358030371,{"$f":"IF($A215=\"\",\"\",IF(OR(VLOOKUP($A215,Economática!$A$3:$AI$823,21,FALSE)/100=0,VLOOKUP($A215,Economática!$A$3:$AI$823,21,FALSE)/100=\"-\"),1/0,VLOOKUP($A215,Economática!$A$3:$AI$823,21,FALSE)/100))","v":0.19388100000000003},{"$f":"IF($A215=\"\",\"\",IF(OR(VLOOKUP($A215,Economática!$A$3:$AI$823,22,FALSE)/100=0,VLOOKUP($A215,Economática!$A$3:$AI$823,22,FALSE)/100=\"-\"),1/0,VLOOKUP($A215,Economática!$A$3:$AI$823,22,FALSE)/100))","v":-9.1559999999999992E-3},{"$f":"IF($A215=\"\",\"\",IF(OR(VLOOKUP($A215,Economática!$A$3:$AI$823,23,FALSE)=0,VLOOKUP($A215,Economática!$A$3:$AI$823,23,FALSE)=\"-\"),1/0,VLOOKUP($A215,Economática!$A$3:$AI$823,23,FALSE)))","v":296.5},{"$f":"IF($A215=\"\",\"\",IF(OR(VLOOKUP($A215,Economática!$A$3:$AI$823,24,FALSE)=0,VLOOKUP($A215,Economática!$A$3:$AI$823,24,FALSE)=\"-\"),1/0,VLOOKUP($A215,Economática!$A$3:$AI$823,24,FALSE)))","v":218},{"$f":"IF($A215=\"\",\"\",IF(OR(VLOOKUP($A215,Economática!$A$3:$AI$823,25,FALSE)=0,VLOOKUP($A215,Economática!$A$3:$AI$823,25,FALSE)=\"-\"),1/0,VLOOKUP($A215,Economática!$A$3:$AI$823,25,FALSE)))","v":218},{"$f":"IF($A215=\"\",\"\",IF(ISERROR((F215+VLOOKUP($A215,Economática!$A$3:$AI$823,26,FALSE))/Y215),(F215+VLOOKUP($A215,Economática!$A$3:$AI$823,26,FALSE))/Y215,(F215+VLOOKUP($A215,Economática!$A$3:$AI$823,26,FALSE))/Y215))","v":7.5698623853211009},{"$f":"IF($A215=\"\",\"\",IF(OR(-VLOOKUP($A215,Economática!$A$3:$AI$823,27,FALSE)=0,-VLOOKUP($A215,Economática!$A$3:$AI$823,27,FALSE)=\"-\"),1/0,-VLOOKUP($A215,Economática!$A$3:$AI$823,27,FALSE)))","v":{"$error":"#DIV/0!"}},{"$error":"#DIV/0!"},{"$f":"IF($A215=\"\",\"\",IF(OR(VLOOKUP($A215,Economática!$A$3:$AI$823,28,FALSE)=0,VLOOKUP($A215,Economática!$A$3:$AI$823,28,FALSE)=\"-\"),1/0,VLOOKUP($A215,Economática!$A$3:$AI$823,28,FALSE)))","v":-15.2},{"$f":"IF($A215=\"\",\"\",IF(OR(VLOOKUP($A215,Economática!$A$3:$AI$823,29,FALSE)=0,VLOOKUP($A215,Economática!$A$3:$AI$823,29,FALSE)=\"-\"),1/0,VLOOKUP($A215,Economática!$A$3:$AI$823,29,FALSE)))","v":-25.8},{"$f":"IF($A215=\"\",\"\",IF(OR(VLOOKUP($A215,Economática!$A$3:$AI$823,30,FALSE)/E215=0,VLOOKUP($A215,Economática!$A$3:$AI$823,30,FALSE)/E215=\"-\",VLOOKUP($A215,Economática!$A$3:$AI$823,30,FALSE)/E215<33.33%,VLOOKUP($A215,Economática!$A$3:$AI$823,30,FALSE)/E215>100%),1/0,VLOOKUP($A215,Economática!$A$3:$AI$823,30,FALSE)/E215))","v":{"$error":"#DIV/0!"}},"VULC3",{"$f":"IF($A215=\"\",\"\",IF(OR(VLOOKUP($A215,Economática!$A$3:$AI$823,25,FALSE)=0,VLOOKUP($A215,Economática!$A$3:$AI$823,25,FALSE)=\"-\"),1/0,VLOOKUP($A215,Economática!$A$3:$AI$823,25,FALSE)))","v":218},{"$f":"CONCATENATE(Economática!B217,\" \",Economática!C217)","v":"Vulcabras ON"}]
[{"$f":"IF(Economática!AG218=\"\",\"\",Economática!AG218)","v":"GRND3"},{"$f":"IF($A216=\"\",\"\",VLOOKUP(VLOOKUP($A216,Economática!$A$3:$AI$823,6,FALSE),Correção!$B$16:$C$36,2,FALSE))","v":"Têxtil"},{"$f":"IF(Economática!B218=\"\",\"\",Economática!B218)","v":"Grendene"},{"$f":"IF($A216=\"\",\"\",IF(OR(VLOOKUP($A216,Economática!$A$3:$AI$823,8,FALSE)=0,VLOOKUP($A216,Economática!$A$3:$AI$823,8,FALSE)=\"-\"),1/0,VLOOKUP($A216,Economática!$A$3:$AI$823,8,FALSE)))","v":8.3800000000000008},{"$f":"IF(A216=\"\",\"\",IF(ISERROR(VLOOKUP(A216,Correção!$B$2:$G$13,9,FALSE)),VLOOKUP($A216,Economática!$A$3:$AI$823,9,FALSE),VLOOKUP(A216,Correção!$B$2:$G$13,9,FALSE)))","v":900.255},{"$f":"IF($A216=\"\",\"\",Economática!G218)","v":7544.14},{"$f":"IF($A216=\"\",\"\",IF(OR(VLOOKUP($A216,Economática!$A$3:$AI$823,10,FALSE)=0,VLOOKUP($A216,Economática!$A$3:$AI$823,10,FALSE)=\"-\"),1/0,VLOOKUP($A216,Economática!$A$3:$AI$823,10,FALSE)))","v":3465.04},{"$f":"IF($A216=\"\",\"\",IF(OR(VLOOKUP($A216,Economática!$A$3:$AI$823,11,FALSE)=0,VLOOKUP($A216,Economática!$A$3:$AI$823,11,FALSE)=\"-\"),1/0,VLOOKUP($A216,Economática!$A$3:$AI$823,11,FALSE)))","v":2251.9699999999998},{"$f":"IF($A216=\"\",\"\",IF(OR(VLOOKUP($A216,Economática!$A$3:$AI$823,12,FALSE)=0,VLOOKUP($A216,Economática!$A$3:$AI$823,12,FALSE)=\"-\"),1/0,VLOOKUP($A216,Economática!$A$3:$AI$823,12,FALSE)))","v":2333.4499999999998},{"$f":"IF($A216=\"\",\"\",IF(OR(VLOOKUP($A216,Economática!$A$3:$AI$823,13,FALSE)=0,VLOOKUP($A216,Economática!$A$3:$AI$823,13,FALSE)=\"-\"),1/0,VLOOKUP($A216,Economática!$A$3:$AI$823,13,FALSE)))","v":660.93},{"$f":"IF($A216=\"\",\"\",IF(OR(VLOOKUP($A216,Economática!$A$3:$AI$823,14,FALSE)=0,VLOOKUP($A216,Economática!$A$3:$AI$823,14,FALSE)=\"-\"),1/0,VLOOKUP($A216,Economática!$A$3:$AI$823,14,FALSE)))","v":156.06},{"$f":"IF($A216=\"\",\"\",IF(OR(VLOOKUP($A216,Economática!$A$3:$AI$823,15,FALSE)=0,VLOOKUP($A216,Economática!$A$3:$AI$823,15,FALSE)=\"-\"),1/0,VLOOKUP($A216,Economática!$A$3:$AI$823,15,FALSE)))","v":221.86},{"$f":"IF($A216=\"\",\"\",IF(OR(VLOOKUP($A216,Economática!$A$3:$AI$823,16,FALSE)=0,VLOOKUP($A216,Economática!$A$3:$AI$823,16,FALSE)=\"-\"),1/0,VLOOKUP($A216,Economática!$A$3:$AI$823,16,FALSE)))","v":334.22},{"$f":"IF($A216=\"\",\"\",IF(OR(VLOOKUP($A216,Economática!$A$3:$AI$823,17,FALSE)=0,VLOOKUP($A216,Economática!$A$3:$AI$823,17,FALSE)=\"-\"),1/0,VLOOKUP($A216,Economática!$A$3:$AI$823,17,FALSE)))","v":585.53},{"$f":"IF($A216=\"\",\"\",IF(OR(VLOOKUP($A216,Economática!$A$3:$AI$823,18,FALSE)=0,VLOOKUP($A216,Economática!$A$3:$AI$823,18,FALSE)=\"-\"),1/0,VLOOKUP($A216,Economática!$A$3:$AI$823,18,FALSE)))","v":660.93},{"$f":"IF($A216=\"\",\"\",IF(OR(VLOOKUP($A216,Economática!$A$3:$AI$823,19,FALSE)=0,VLOOKUP($A216,Economática!$A$3:$AI$823,19,FALSE)=\"-\"),1/0,VLOOKUP($A216,Economática!$A$3:$AI$823,19,FALSE)))","v":585.53},{"$f":"IF($A216=\"\",\"\",VLOOKUP($A216,Economática!$A$3:$AI$823,20,FALSE)/E216)","v":0.6504046075834069},3.8489539075039851,2.1772149527855378,12.884287568527661,{"$f":"IF($A216=\"\",\"\",IF(OR(VLOOKUP($A216,Economática!$A$3:$AI$823,21,FALSE)/100=0,VLOOKUP($A216,Economática!$A$3:$AI$823,21,FALSE)/100=\"-\"),1/0,VLOOKUP($A216,Economática!$A$3:$AI$823,21,FALSE)/100))","v":0.181977},{"$f":"IF($A216=\"\",\"\",IF(OR(VLOOKUP($A216,Economática!$A$3:$AI$823,22,FALSE)/100=0,VLOOKUP($A216,Economática!$A$3:$AI$823,22,FALSE)/100=\"-\"),1/0,VLOOKUP($A216,Economática!$A$3:$AI$823,22,FALSE)/100))","v":-0.40765700000000005},{"$f":"IF($A216=\"\",\"\",IF(OR(VLOOKUP($A216,Economática!$A$3:$AI$823,23,FALSE)=0,VLOOKUP($A216,Economática!$A$3:$AI$823,23,FALSE)=\"-\"),1/0,VLOOKUP($A216,Economática!$A$3:$AI$823,23,FALSE)))","v":526.20000000000005},{"$f":"IF($A216=\"\",\"\",IF(OR(VLOOKUP($A216,Economática!$A$3:$AI$823,24,FALSE)=0,VLOOKUP($A216,Economática!$A$3:$AI$823,24,FALSE)=\"-\"),1/0,VLOOKUP($A216,Economática!$A$3:$AI$823,24,FALSE)))","v":522.70000000000005},{"$f":"IF($A216=\"\",\"\",IF(OR(VLOOKUP($A216,Economática!$A$3:$AI$823,25,FALSE)=0,VLOOKUP($A216,Economática!$A$3:$AI$823,25,FALSE)=\"-\"),1/0,VLOOKUP($A216,Economática!$A$3:$AI$823,25,FALSE)))","v":522.70000000000005},{"$f":"IF($A216=\"\",\"\",IF(ISERROR((F216+VLOOKUP($A216,Economática!$A$3:$AI$823,26,FALSE))/Y216),(F216+VLOOKUP($A216,Economática!$A$3:$AI$823,26,FALSE))/Y216,(F216+VLOOKUP($A216,Economática!$A$3:$AI$823,26,FALSE))/Y216))","v":11.730612205854218},{"$f":"IF($A216=\"\",\"\",IF(OR(-VLOOKUP($A216,Economática!$A$3:$AI$823,27,FALSE)=0,-VLOOKUP($A216,Economática!$A$3:$AI$823,27,FALSE)=\"-\"),1/0,-VLOOKUP($A216,Economática!$A$3:$AI$823,27,FALSE)))","v":321.27},4.2585370897146653E-2,{"$f":"IF($A216=\"\",\"\",IF(OR(VLOOKUP($A216,Economática!$A$3:$AI$823,28,FALSE)=0,VLOOKUP($A216,Economática!$A$3:$AI$823,28,FALSE)=\"-\"),1/0,VLOOKUP($A216,Economática!$A$3:$AI$823,28,FALSE)))","v":-3.3},{"$f":"IF($A216=\"\",\"\",IF(OR(VLOOKUP($A216,Economática!$A$3:$AI$823,29,FALSE)=0,VLOOKUP($A216,Economática!$A$3:$AI$823,29,FALSE)=\"-\"),1/0,VLOOKUP($A216,Economática!$A$3:$AI$823,29,FALSE)))","v":-7.8},{"$f":"IF($A216=\"\",\"\",IF(OR(VLOOKUP($A216,Economática!$A$3:$AI$823,30,FALSE)/E216=0,VLOOKUP($A216,Economática!$A$3:$AI$823,30,FALSE)/E216=\"-\",VLOOKUP($A216,Economática!$A$3:$AI$823,30,FALSE)/E216<33.33%,VLOOKUP($A216,Economática!$A$3:$AI$823,30,FALSE)/E216>100%),1/0,VLOOKUP($A216,Economática!$A$3:$AI$823,30,FALSE)/E216))","v":{"$error":"#DIV/0!"}},"GRND3",{"$f":"IF($A216=\"\",\"\",IF(OR(VLOOKUP($A216,Economática!$A$3:$AI$823,25,FALSE)=0,VLOOKUP($A216,Economática!$A$3:$AI$823,25,FALSE)=\"-\"),1/0,VLOOKUP($A216,Economática!$A$3:$AI$823,25,FALSE)))","v":522.70000000000005},{"$f":"CONCATENATE(Economática!B218,\" \",Economática!C218)","v":"Grendene ON"}]
[{"$f":"IF(Economática!AG219=\"\",\"\",Economática!AG219)","v":"ALPA4"},{"$f":"IF($A217=\"\",\"\",VLOOKUP(VLOOKUP($A217,Economática!$A$3:$AI$823,6,FALSE),Correção!$B$16:$C$36,2,FALSE))","v":"Têxtil"},{"$f":"IF(Economática!B219=\"\",\"\",Economática!B219)","v":"Alpargatas"},{"$f":"IF($A217=\"\",\"\",IF(OR(VLOOKUP($A217,Economática!$A$3:$AI$823,8,FALSE)=0,VLOOKUP($A217,Economática!$A$3:$AI$823,8,FALSE)=\"-\"),1/0,VLOOKUP($A217,Economática!$A$3:$AI$823,8,FALSE)))","v":15.38},{"$f":"IF(A217=\"\",\"\",IF(ISERROR(VLOOKUP(A217,Correção!$B$2:$G$13,9,FALSE)),VLOOKUP($A217,Economática!$A$3:$AI$823,9,FALSE),VLOOKUP(A217,Correção!$B$2:$G$13,9,FALSE)))","v":578.81700000000001},{"$f":"IF($A217=\"\",\"\",Economática!G219)","v":8962.6},{"$f":"IF($A217=\"\",\"\",IF(OR(VLOOKUP($A217,Economática!$A$3:$AI$823,10,FALSE)=0,VLOOKUP($A217,Economática!$A$3:$AI$823,10,FALSE)=\"-\"),1/0,VLOOKUP($A217,Economática!$A$3:$AI$823,10,FALSE)))","v":2380.81},{"$f":"IF($A217=\"\",\"\",IF(OR(VLOOKUP($A217,Economática!$A$3:$AI$823,11,FALSE)=0,VLOOKUP($A217,Economática!$A$3:$AI$823,11,FALSE)=\"-\"),1/0,VLOOKUP($A217,Economática!$A$3:$AI$823,11,FALSE)))","v":3721.86},{"$f":"IF($A217=\"\",\"\",IF(OR(VLOOKUP($A217,Economática!$A$3:$AI$823,12,FALSE)=0,VLOOKUP($A217,Economática!$A$3:$AI$823,12,FALSE)=\"-\"),1/0,VLOOKUP($A217,Economática!$A$3:$AI$823,12,FALSE)))","v":3904.51},{"$f":"IF($A217=\"\",\"\",IF(OR(VLOOKUP($A217,Economática!$A$3:$AI$823,13,FALSE)=0,VLOOKUP($A217,Economática!$A$3:$AI$823,13,FALSE)=\"-\"),1/0,VLOOKUP($A217,Economática!$A$3:$AI$823,13,FALSE)))","v":362.29},{"$f":"IF($A217=\"\",\"\",IF(OR(VLOOKUP($A217,Economática!$A$3:$AI$823,14,FALSE)=0,VLOOKUP($A217,Economática!$A$3:$AI$823,14,FALSE)=\"-\"),1/0,VLOOKUP($A217,Economática!$A$3:$AI$823,14,FALSE)))","v":114.07},{"$f":"IF($A217=\"\",\"\",IF(OR(VLOOKUP($A217,Economática!$A$3:$AI$823,15,FALSE)=0,VLOOKUP($A217,Economática!$A$3:$AI$823,15,FALSE)=\"-\"),1/0,VLOOKUP($A217,Economática!$A$3:$AI$823,15,FALSE)))","v":136.61000000000001},{"$f":"IF($A217=\"\",\"\",IF(OR(VLOOKUP($A217,Economática!$A$3:$AI$823,16,FALSE)=0,VLOOKUP($A217,Economática!$A$3:$AI$823,16,FALSE)=\"-\"),1/0,VLOOKUP($A217,Economática!$A$3:$AI$823,16,FALSE)))","v":257.77999999999997},{"$f":"IF($A217=\"\",\"\",IF(OR(VLOOKUP($A217,Economática!$A$3:$AI$823,17,FALSE)=0,VLOOKUP($A217,Economática!$A$3:$AI$823,17,FALSE)=\"-\"),1/0,VLOOKUP($A217,Economática!$A$3:$AI$823,17,FALSE)))","v":331.5},{"$f":"IF($A217=\"\",\"\",IF(OR(VLOOKUP($A217,Economática!$A$3:$AI$823,18,FALSE)=0,VLOOKUP($A217,Economática!$A$3:$AI$823,18,FALSE)=\"-\"),1/0,VLOOKUP($A217,Economática!$A$3:$AI$823,18,FALSE)))","v":362.29},{"$f":"IF($A217=\"\",\"\",IF(OR(VLOOKUP($A217,Economática!$A$3:$AI$823,19,FALSE)=0,VLOOKUP($A217,Economática!$A$3:$AI$823,19,FALSE)=\"-\"),1/0,VLOOKUP($A217,Economática!$A$3:$AI$823,19,FALSE)))","v":331.5},{"$f":"IF($A217=\"\",\"\",VLOOKUP($A217,Economática!$A$3:$AI$823,20,FALSE)/E217)","v":0.57271987519371403},4.113234407420653,3.7391498943636829,26.854315113122176,{"$f":"IF($A217=\"\",\"\",IF(OR(VLOOKUP($A217,Economática!$A$3:$AI$823,21,FALSE)/100=0,VLOOKUP($A217,Economática!$A$3:$AI$823,21,FALSE)/100=\"-\"),1/0,VLOOKUP($A217,Economática!$A$3:$AI$823,21,FALSE)/100))","v":0.14310300000000001},{"$f":"IF($A217=\"\",\"\",IF(OR(VLOOKUP($A217,Economática!$A$3:$AI$823,22,FALSE)/100=0,VLOOKUP($A217,Economática!$A$3:$AI$823,22,FALSE)/100=\"-\"),1/0,VLOOKUP($A217,Economática!$A$3:$AI$823,22,FALSE)/100))","v":2.9149999999999999E-2},{"$f":"IF($A217=\"\",\"\",IF(OR(VLOOKUP($A217,Economática!$A$3:$AI$823,23,FALSE)=0,VLOOKUP($A217,Economática!$A$3:$AI$823,23,FALSE)=\"-\"),1/0,VLOOKUP($A217,Economática!$A$3:$AI$823,23,FALSE)))","v":486.2},{"$f":"IF($A217=\"\",\"\",IF(OR(VLOOKUP($A217,Economática!$A$3:$AI$823,24,FALSE)=0,VLOOKUP($A217,Economática!$A$3:$AI$823,24,FALSE)=\"-\"),1/0,VLOOKUP($A217,Economática!$A$3:$AI$823,24,FALSE)))","v":564.70000000000005},{"$f":"IF($A217=\"\",\"\",IF(OR(VLOOKUP($A217,Economática!$A$3:$AI$823,25,FALSE)=0,VLOOKUP($A217,Economática!$A$3:$AI$823,25,FALSE)=\"-\"),1/0,VLOOKUP($A217,Economática!$A$3:$AI$823,25,FALSE)))","v":564.70000000000005},{"$f":"IF($A217=\"\",\"\",IF(ISERROR((F217+VLOOKUP($A217,Economática!$A$3:$AI$823,26,FALSE))/Y217),(F217+VLOOKUP($A217,Economática!$A$3:$AI$823,26,FALSE))/Y217,(F217+VLOOKUP($A217,Economática!$A$3:$AI$823,26,FALSE))/Y217))","v":15.998930405525055},{"$f":"IF($A217=\"\",\"\",IF(OR(-VLOOKUP($A217,Economática!$A$3:$AI$823,27,FALSE)=0,-VLOOKUP($A217,Economática!$A$3:$AI$823,27,FALSE)=\"-\"),1/0,-VLOOKUP($A217,Economática!$A$3:$AI$823,27,FALSE)))","v":206.41},2.3030147501840983E-2,{"$f":"IF($A217=\"\",\"\",IF(OR(VLOOKUP($A217,Economática!$A$3:$AI$823,28,FALSE)=0,VLOOKUP($A217,Economática!$A$3:$AI$823,28,FALSE)=\"-\"),1/0,VLOOKUP($A217,Economática!$A$3:$AI$823,28,FALSE)))","v":0.2},{"$f":"IF($A217=\"\",\"\",IF(OR(VLOOKUP($A217,Economática!$A$3:$AI$823,29,FALSE)=0,VLOOKUP($A217,Economática!$A$3:$AI$823,29,FALSE)=\"-\"),1/0,VLOOKUP($A217,Economática!$A$3:$AI$823,29,FALSE)))","v":13.7},{"$f":"IF($A217=\"\",\"\",IF(OR(VLOOKUP($A217,Economática!$A$3:$AI$823,30,FALSE)/E217=0,VLOOKUP($A217,Economática!$A$3:$AI$823,30,FALSE)/E217=\"-\",VLOOKUP($A217,Economática!$A$3:$AI$823,30,FALSE)/E217<33.33%,VLOOKUP($A217,Economática!$A$3:$AI$823,30,FALSE)/E217>100%),1/0,VLOOKUP($A217,Economática!$A$3:$AI$823,30,FALSE)/E217))","v":0.41740308249412161},"ALPA4",{"$f":"IF($A217=\"\",\"\",IF(OR(VLOOKUP($A217,Economática!$A$3:$AI$823,25,FALSE)=0,VLOOKUP($A217,Economática!$A$3:$AI$823,25,FALSE)=\"-\"),1/0,VLOOKUP($A217,Economática!$A$3:$AI$823,25,FALSE)))","v":564.70000000000005},{"$f":"CONCATENATE(Economática!B219,\" \",Economática!C219)","v":"Alpargatas PN"}]
[{"$f":"IF(Economática!AG220=\"\",\"\",Economática!AG220)","v":"PTNT4"},{"$f":"IF($A218=\"\",\"\",VLOOKUP(VLOOKUP($A218,Economática!$A$3:$AI$823,6,FALSE),Correção!$B$16:$C$36,2,FALSE))","v":"Têxtil"},{"$f":"IF(Economática!B220=\"\",\"\",Economática!B220)","v":"Pettenati"},{"$f":"IF($A218=\"\",\"\",IF(OR(VLOOKUP($A218,Economática!$A$3:$AI$823,8,FALSE)=0,VLOOKUP($A218,Economática!$A$3:$AI$823,8,FALSE)=\"-\"),1/0,VLOOKUP($A218,Economática!$A$3:$AI$823,8,FALSE)))","v":3.25},{"$f":"IF(A218=\"\",\"\",IF(ISERROR(VLOOKUP(A218,Correção!$B$2:$G$13,9,FALSE)),VLOOKUP($A218,Economática!$A$3:$AI$823,9,FALSE),VLOOKUP(A218,Correção!$B$2:$G$13,9,FALSE)))","v":48.045999999999999},{"$f":"IF($A218=\"\",\"\",Economática!G220)","v":156.15},{"$f":"IF($A218=\"\",\"\",IF(OR(VLOOKUP($A218,Economática!$A$3:$AI$823,10,FALSE)=0,VLOOKUP($A218,Economática!$A$3:$AI$823,10,FALSE)=\"-\"),1/0,VLOOKUP($A218,Economática!$A$3:$AI$823,10,FALSE)))","v":191.75},{"$f":"IF($A218=\"\",\"\",IF(OR(VLOOKUP($A218,Economática!$A$3:$AI$823,11,FALSE)=0,VLOOKUP($A218,Economática!$A$3:$AI$823,11,FALSE)=\"-\"),1/0,VLOOKUP($A218,Economática!$A$3:$AI$823,11,FALSE)))","v":203.73},{"$f":"IF($A218=\"\",\"\",IF(OR(VLOOKUP($A218,Economática!$A$3:$AI$823,12,FALSE)=0,VLOOKUP($A218,Economática!$A$3:$AI$823,12,FALSE)=\"-\"),1/0,VLOOKUP($A218,Economática!$A$3:$AI$823,12,FALSE)))","v":246.65},{"$f":"IF($A218=\"\",\"\",IF(OR(VLOOKUP($A218,Economática!$A$3:$AI$823,13,FALSE)=0,VLOOKUP($A218,Economática!$A$3:$AI$823,13,FALSE)=\"-\"),1/0,VLOOKUP($A218,Economática!$A$3:$AI$823,13,FALSE)))","v":6.17},{"$f":"IF($A218=\"\",\"\",IF(OR(VLOOKUP($A218,Economática!$A$3:$AI$823,14,FALSE)=0,VLOOKUP($A218,Economática!$A$3:$AI$823,14,FALSE)=\"-\"),1/0,VLOOKUP($A218,Economática!$A$3:$AI$823,14,FALSE)))","v":11.33},{"$f":"IF($A218=\"\",\"\",IF(OR(VLOOKUP($A218,Economática!$A$3:$AI$823,15,FALSE)=0,VLOOKUP($A218,Economática!$A$3:$AI$823,15,FALSE)=\"-\"),1/0,VLOOKUP($A218,Economática!$A$3:$AI$823,15,FALSE)))","v":18},{"$f":"IF($A218=\"\",\"\",IF(OR(VLOOKUP($A218,Economática!$A$3:$AI$823,16,FALSE)=0,VLOOKUP($A218,Economática!$A$3:$AI$823,16,FALSE)=\"-\"),1/0,VLOOKUP($A218,Economática!$A$3:$AI$823,16,FALSE)))","v":7.48},{"$f":"IF($A218=\"\",\"\",IF(OR(VLOOKUP($A218,Economática!$A$3:$AI$823,17,FALSE)=0,VLOOKUP($A218,Economática!$A$3:$AI$823,17,FALSE)=\"-\"),1/0,VLOOKUP($A218,Economática!$A$3:$AI$823,17,FALSE)))","v":3.93},{"$f":"IF($A218=\"\",\"\",IF(OR(VLOOKUP($A218,Economática!$A$3:$AI$823,18,FALSE)=0,VLOOKUP($A218,Economática!$A$3:$AI$823,18,FALSE)=\"-\"),1/0,VLOOKUP($A218,Economática!$A$3:$AI$823,18,FALSE)))","v":6.17},{"$f":"IF($A218=\"\",\"\",IF(OR(VLOOKUP($A218,Economática!$A$3:$AI$823,19,FALSE)=0,VLOOKUP($A218,Economática!$A$3:$AI$823,19,FALSE)=\"-\"),1/0,VLOOKUP($A218,Economática!$A$3:$AI$823,19,FALSE)))","v":3.93},{"$f":"IF($A218=\"\",\"\",VLOOKUP($A218,Economática!$A$3:$AI$823,20,FALSE)/E218)","v":0.32801898180909961},3.9909669899679474,0.8143389830508474,9.9079631979695435,{"$f":"IF($A218=\"\",\"\",IF(OR(VLOOKUP($A218,Economática!$A$3:$AI$823,21,FALSE)/100=0,VLOOKUP($A218,Economática!$A$3:$AI$823,21,FALSE)/100=\"-\"),1/0,VLOOKUP($A218,Economática!$A$3:$AI$823,21,FALSE)/100))","v":0.138292},{"$f":"IF($A218=\"\",\"\",IF(OR(VLOOKUP($A218,Economática!$A$3:$AI$823,22,FALSE)/100=0,VLOOKUP($A218,Economática!$A$3:$AI$823,22,FALSE)/100=\"-\"),1/0,VLOOKUP($A218,Economática!$A$3:$AI$823,22,FALSE)/100))","v":0.26080999999999999},{"$f":"IF($A218=\"\",\"\",IF(OR(VLOOKUP($A218,Economática!$A$3:$AI$823,23,FALSE)=0,VLOOKUP($A218,Economática!$A$3:$AI$823,23,FALSE)=\"-\"),1/0,VLOOKUP($A218,Economática!$A$3:$AI$823,23,FALSE)))","v":25.6},{"$f":"IF($A218=\"\",\"\",IF(OR(VLOOKUP($A218,Economática!$A$3:$AI$823,24,FALSE)=0,VLOOKUP($A218,Economática!$A$3:$AI$823,24,FALSE)=\"-\"),1/0,VLOOKUP($A218,Economática!$A$3:$AI$823,24,FALSE)))","v":24.1},{"$f":"IF($A218=\"\",\"\",IF(OR(VLOOKUP($A218,Economática!$A$3:$AI$823,25,FALSE)=0,VLOOKUP($A218,Economática!$A$3:$AI$823,25,FALSE)=\"-\"),1/0,VLOOKUP($A218,Economática!$A$3:$AI$823,25,FALSE)))","v":60},{"$f":"IF($A218=\"\",\"\",IF(ISERROR((F218+VLOOKUP($A218,Economática!$A$3:$AI$823,26,FALSE))/Y218),(F218+VLOOKUP($A218,Economática!$A$3:$AI$823,26,FALSE))/Y218,(F218+VLOOKUP($A218,Economática!$A$3:$AI$823,26,FALSE))/Y218))","v":3.6275166666666667},{"$f":"IF($A218=\"\",\"\",IF(OR(-VLOOKUP($A218,Economática!$A$3:$AI$823,27,FALSE)=0,-VLOOKUP($A218,Economática!$A$3:$AI$823,27,FALSE)=\"-\"),1/0,-VLOOKUP($A218,Economática!$A$3:$AI$823,27,FALSE)))","v":{"$error":"#VALUE!"}},{"$error":"#VALUE!"},{"$f":"IF($A218=\"\",\"\",IF(OR(VLOOKUP($A218,Economática!$A$3:$AI$823,28,FALSE)=0,VLOOKUP($A218,Economática!$A$3:$AI$823,28,FALSE)=\"-\"),1/0,VLOOKUP($A218,Economática!$A$3:$AI$823,28,FALSE)))","v":7.6},{"$f":"IF($A218=\"\",\"\",IF(OR(VLOOKUP($A218,Economática!$A$3:$AI$823,29,FALSE)=0,VLOOKUP($A218,Economática!$A$3:$AI$823,29,FALSE)=\"-\"),1/0,VLOOKUP($A218,Economática!$A$3:$AI$823,29,FALSE)))","v":-2},{"$f":"IF($A218=\"\",\"\",IF(OR(VLOOKUP($A218,Economática!$A$3:$AI$823,30,FALSE)/E218=0,VLOOKUP($A218,Economática!$A$3:$AI$823,30,FALSE)/E218=\"-\",VLOOKUP($A218,Economática!$A$3:$AI$823,30,FALSE)/E218<33.33%,VLOOKUP($A218,Economática!$A$3:$AI$823,30,FALSE)/E218>100%),1/0,VLOOKUP($A218,Economática!$A$3:$AI$823,30,FALSE)/E218))","v":{"$error":"#DIV/0!"}},"PTNT4",{"$f":"IF($A218=\"\",\"\",IF(OR(VLOOKUP($A218,Economática!$A$3:$AI$823,25,FALSE)=0,VLOOKUP($A218,Economática!$A$3:$AI$823,25,FALSE)=\"-\"),1/0,VLOOKUP($A218,Economática!$A$3:$AI$823,25,FALSE)))","v":60},{"$f":"CONCATENATE(Economática!B220,\" \",Economática!C220)","v":"Pettenati PN"}]
[{"$f":"IF(Economática!AG221=\"\",\"\",Economática!AG221)","v":"CTSA3"},{"$f":"IF($A219=\"\",\"\",VLOOKUP(VLOOKUP($A219,Economática!$A$3:$AI$823,6,FALSE),Correção!$B$16:$C$36,2,FALSE))","v":"Têxtil"},{"$f":"IF(Economática!B221=\"\",\"\",Economática!B221)","v":"Santanense"},{"$f":"IF($A219=\"\",\"\",IF(OR(VLOOKUP($A219,Economática!$A$3:$AI$823,8,FALSE)=0,VLOOKUP($A219,Economática!$A$3:$AI$823,8,FALSE)=\"-\"),1/0,VLOOKUP($A219,Economática!$A$3:$AI$823,8,FALSE)))","v":5.0199999999999996},{"$f":"IF(A219=\"\",\"\",IF(ISERROR(VLOOKUP(A219,Correção!$B$2:$G$13,9,FALSE)),VLOOKUP($A219,Economática!$A$3:$AI$823,9,FALSE),VLOOKUP(A219,Correção!$B$2:$G$13,9,FALSE)))","v":39.298999999999999},{"$f":"IF($A219=\"\",\"\",Economática!G221)","v":198.27},{"$f":"IF($A219=\"\",\"\",IF(OR(VLOOKUP($A219,Economática!$A$3:$AI$823,10,FALSE)=0,VLOOKUP($A219,Economática!$A$3:$AI$823,10,FALSE)=\"-\"),1/0,VLOOKUP($A219,Economática!$A$3:$AI$823,10,FALSE)))","v":205.43},{"$f":"IF($A219=\"\",\"\",IF(OR(VLOOKUP($A219,Economática!$A$3:$AI$823,11,FALSE)=0,VLOOKUP($A219,Economática!$A$3:$AI$823,11,FALSE)=\"-\"),1/0,VLOOKUP($A219,Economática!$A$3:$AI$823,11,FALSE)))","v":418.54},{"$f":"IF($A219=\"\",\"\",IF(OR(VLOOKUP($A219,Economática!$A$3:$AI$823,12,FALSE)=0,VLOOKUP($A219,Economática!$A$3:$AI$823,12,FALSE)=\"-\"),1/0,VLOOKUP($A219,Economática!$A$3:$AI$823,12,FALSE)))","v":{"$error":"#DIV/0!"}},{"$f":"IF($A219=\"\",\"\",IF(OR(VLOOKUP($A219,Economática!$A$3:$AI$823,13,FALSE)=0,VLOOKUP($A219,Economática!$A$3:$AI$823,13,FALSE)=\"-\"),1/0,VLOOKUP($A219,Economática!$A$3:$AI$823,13,FALSE)))","v":19.940000000000001},{"$f":"IF($A219=\"\",\"\",IF(OR(VLOOKUP($A219,Economática!$A$3:$AI$823,14,FALSE)=0,VLOOKUP($A219,Economática!$A$3:$AI$823,14,FALSE)=\"-\"),1/0,VLOOKUP($A219,Economática!$A$3:$AI$823,14,FALSE)))","v":7.83},{"$f":"IF($A219=\"\",\"\",IF(OR(VLOOKUP($A219,Economática!$A$3:$AI$823,15,FALSE)=0,VLOOKUP($A219,Economática!$A$3:$AI$823,15,FALSE)=\"-\"),1/0,VLOOKUP($A219,Economática!$A$3:$AI$823,15,FALSE)))","v":13.96},{"$f":"IF($A219=\"\",\"\",IF(OR(VLOOKUP($A219,Economática!$A$3:$AI$823,16,FALSE)=0,VLOOKUP($A219,Economática!$A$3:$AI$823,16,FALSE)=\"-\"),1/0,VLOOKUP($A219,Economática!$A$3:$AI$823,16,FALSE)))","v":19.45},{"$f":"IF($A219=\"\",\"\",IF(OR(VLOOKUP($A219,Economática!$A$3:$AI$823,17,FALSE)=0,VLOOKUP($A219,Economática!$A$3:$AI$823,17,FALSE)=\"-\"),1/0,VLOOKUP($A219,Economática!$A$3:$AI$823,17,FALSE)))","v":{"$error":"#DIV/0!"}},{"$f":"IF($A219=\"\",\"\",IF(OR(VLOOKUP($A219,Economática!$A$3:$AI$823,18,FALSE)=0,VLOOKUP($A219,Economática!$A$3:$AI$823,18,FALSE)=\"-\"),1/0,VLOOKUP($A219,Economática!$A$3:$AI$823,18,FALSE)))","v":19.940000000000001},{"$f":"IF($A219=\"\",\"\",IF(OR(VLOOKUP($A219,Economática!$A$3:$AI$823,19,FALSE)=0,VLOOKUP($A219,Economática!$A$3:$AI$823,19,FALSE)=\"-\"),1/0,VLOOKUP($A219,Economática!$A$3:$AI$823,19,FALSE)))","v":{"$error":"#DIV/0!"}},{"$f":"IF($A219=\"\",\"\",VLOOKUP($A219,Economática!$A$3:$AI$823,20,FALSE)/E219)","v":0.67126389984477974},5.2273594747957963,0.96033188920800261,7.4784298711144803,{"$f":"IF($A219=\"\",\"\",IF(OR(VLOOKUP($A219,Economática!$A$3:$AI$823,21,FALSE)/100=0,VLOOKUP($A219,Economática!$A$3:$AI$823,21,FALSE)/100=\"-\"),1/0,VLOOKUP($A219,Economática!$A$3:$AI$823,21,FALSE)/100))","v":0.101274},{"$f":"IF($A219=\"\",\"\",IF(OR(VLOOKUP($A219,Economática!$A$3:$AI$823,22,FALSE)/100=0,VLOOKUP($A219,Economática!$A$3:$AI$823,22,FALSE)/100=\"-\"),1/0,VLOOKUP($A219,Economática!$A$3:$AI$823,22,FALSE)/100))","v":1.2192940000000001},{"$f":"IF($A219=\"\",\"\",IF(OR(VLOOKUP($A219,Economática!$A$3:$AI$823,23,FALSE)=0,VLOOKUP($A219,Economática!$A$3:$AI$823,23,FALSE)=\"-\"),1/0,VLOOKUP($A219,Economática!$A$3:$AI$823,23,FALSE)))","v":47.8},{"$f":"IF($A219=\"\",\"\",IF(OR(VLOOKUP($A219,Economática!$A$3:$AI$823,24,FALSE)=0,VLOOKUP($A219,Economática!$A$3:$AI$823,24,FALSE)=\"-\"),1/0,VLOOKUP($A219,Economática!$A$3:$AI$823,24,FALSE)))","v":{"$error":"#DIV/0!"}},{"$f":"IF($A219=\"\",\"\",IF(OR(VLOOKUP($A219,Economática!$A$3:$AI$823,25,FALSE)=0,VLOOKUP($A219,Economática!$A$3:$AI$823,25,FALSE)=\"-\"),1/0,VLOOKUP($A219,Economática!$A$3:$AI$823,25,FALSE)))","v":55.4},{"$f":"IF($A219=\"\",\"\",IF(ISERROR((F219+VLOOKUP($A219,Economática!$A$3:$AI$823,26,FALSE))/Y219),(F219+VLOOKUP($A219,Economática!$A$3:$AI$823,26,FALSE))/Y219,(F219+VLOOKUP($A219,Economática!$A$3:$AI$823,26,FALSE))/Y219))","v":8.1002166064981953},{"$f":"IF($A219=\"\",\"\",IF(OR(-VLOOKUP($A219,Economática!$A$3:$AI$823,27,FALSE)=0,-VLOOKUP($A219,Economática!$A$3:$AI$823,27,FALSE)=\"-\"),1/0,-VLOOKUP($A219,Economática!$A$3:$AI$823,27,FALSE)))","v":11.95},6.0271347152872336E-2,{"$f":"IF($A219=\"\",\"\",IF(OR(VLOOKUP($A219,Economática!$A$3:$AI$823,28,FALSE)=0,VLOOKUP($A219,Economática!$A$3:$AI$823,28,FALSE)=\"-\"),1/0,VLOOKUP($A219,Economática!$A$3:$AI$823,28,FALSE)))","v":-2.5},{"$f":"IF($A219=\"\",\"\",IF(OR(VLOOKUP($A219,Economática!$A$3:$AI$823,29,FALSE)=0,VLOOKUP($A219,Economática!$A$3:$AI$823,29,FALSE)=\"-\"),1/0,VLOOKUP($A219,Economática!$A$3:$AI$823,29,FALSE)))","v":97.3},{"$f":"IF($A219=\"\",\"\",IF(OR(VLOOKUP($A219,Economática!$A$3:$AI$823,30,FALSE)/E219=0,VLOOKUP($A219,Economática!$A$3:$AI$823,30,FALSE)/E219=\"-\",VLOOKUP($A219,Economática!$A$3:$AI$823,30,FALSE)/E219<33.33%,VLOOKUP($A219,Economática!$A$3:$AI$823,30,FALSE)/E219>100%),1/0,VLOOKUP($A219,Economática!$A$3:$AI$823,30,FALSE)/E219))","v":0.96694572380976618},"CTSA3",{"$f":"IF($A219=\"\",\"\",IF(OR(VLOOKUP($A219,Economática!$A$3:$AI$823,25,FALSE)=0,VLOOKUP($A219,Economática!$A$3:$AI$823,25,FALSE)=\"-\"),1/0,VLOOKUP($A219,Economática!$A$3:$AI$823,25,FALSE)))","v":55.4},{"$f":"CONCATENATE(Economática!B221,\" \",Economática!C221)","v":"Santanense ON"}]
[{"$f":"IF(Economática!AG222=\"\",\"\",Economática!AG222)","v":"DOHL4"},{"$f":"IF($A220=\"\",\"\",VLOOKUP(VLOOKUP($A220,Economática!$A$3:$AI$823,6,FALSE),Correção!$B$16:$C$36,2,FALSE))","v":"Têxtil"},{"$f":"IF(Economática!B222=\"\",\"\",Economática!B222)","v":"Dohler"},{"$f":"IF($A220=\"\",\"\",IF(OR(VLOOKUP($A220,Economática!$A$3:$AI$823,8,FALSE)=0,VLOOKUP($A220,Economática!$A$3:$AI$823,8,FALSE)=\"-\"),1/0,VLOOKUP($A220,Economática!$A$3:$AI$823,8,FALSE)))","v":7.6},{"$f":"IF(A220=\"\",\"\",IF(ISERROR(VLOOKUP(A220,Correção!$B$2:$G$13,9,FALSE)),VLOOKUP($A220,Economática!$A$3:$AI$823,9,FALSE),VLOOKUP(A220,Correção!$B$2:$G$13,9,FALSE)))","v":60.515999999999998},{"$f":"IF($A220=\"\",\"\",Economática!G222)","v":459.92},{"$f":"IF($A220=\"\",\"\",IF(OR(VLOOKUP($A220,Economática!$A$3:$AI$823,10,FALSE)=0,VLOOKUP($A220,Economática!$A$3:$AI$823,10,FALSE)=\"-\"),1/0,VLOOKUP($A220,Economática!$A$3:$AI$823,10,FALSE)))","v":570.80999999999995},{"$f":"IF($A220=\"\",\"\",IF(OR(VLOOKUP($A220,Economática!$A$3:$AI$823,11,FALSE)=0,VLOOKUP($A220,Economática!$A$3:$AI$823,11,FALSE)=\"-\"),1/0,VLOOKUP($A220,Economática!$A$3:$AI$823,11,FALSE)))","v":460.01},{"$f":"IF($A220=\"\",\"\",IF(OR(VLOOKUP($A220,Economática!$A$3:$AI$823,12,FALSE)=0,VLOOKUP($A220,Economática!$A$3:$AI$823,12,FALSE)=\"-\"),1/0,VLOOKUP($A220,Economática!$A$3:$AI$823,12,FALSE)))","v":480.71},{"$f":"IF($A220=\"\",\"\",IF(OR(VLOOKUP($A220,Economática!$A$3:$AI$823,13,FALSE)=0,VLOOKUP($A220,Economática!$A$3:$AI$823,13,FALSE)=\"-\"),1/0,VLOOKUP($A220,Economática!$A$3:$AI$823,13,FALSE)))","v":34.14},{"$f":"IF($A220=\"\",\"\",IF(OR(VLOOKUP($A220,Economática!$A$3:$AI$823,14,FALSE)=0,VLOOKUP($A220,Economática!$A$3:$AI$823,14,FALSE)=\"-\"),1/0,VLOOKUP($A220,Economática!$A$3:$AI$823,14,FALSE)))","v":9.58},{"$f":"IF($A220=\"\",\"\",IF(OR(VLOOKUP($A220,Economática!$A$3:$AI$823,15,FALSE)=0,VLOOKUP($A220,Economática!$A$3:$AI$823,15,FALSE)=\"-\"),1/0,VLOOKUP($A220,Economática!$A$3:$AI$823,15,FALSE)))","v":16.940000000000001},{"$f":"IF($A220=\"\",\"\",IF(OR(VLOOKUP($A220,Economática!$A$3:$AI$823,16,FALSE)=0,VLOOKUP($A220,Economática!$A$3:$AI$823,16,FALSE)=\"-\"),1/0,VLOOKUP($A220,Economática!$A$3:$AI$823,16,FALSE)))","v":43.13},{"$f":"IF($A220=\"\",\"\",IF(OR(VLOOKUP($A220,Economática!$A$3:$AI$823,17,FALSE)=0,VLOOKUP($A220,Economática!$A$3:$AI$823,17,FALSE)=\"-\"),1/0,VLOOKUP($A220,Economática!$A$3:$AI$823,17,FALSE)))","v":49.57},{"$f":"IF($A220=\"\",\"\",IF(OR(VLOOKUP($A220,Economática!$A$3:$AI$823,18,FALSE)=0,VLOOKUP($A220,Economática!$A$3:$AI$823,18,FALSE)=\"-\"),1/0,VLOOKUP($A220,Economática!$A$3:$AI$823,18,FALSE)))","v":34.14},{"$f":"IF($A220=\"\",\"\",IF(OR(VLOOKUP($A220,Economática!$A$3:$AI$823,19,FALSE)=0,VLOOKUP($A220,Economática!$A$3:$AI$823,19,FALSE)=\"-\"),1/0,VLOOKUP($A220,Economática!$A$3:$AI$823,19,FALSE)))","v":49.57},{"$f":"IF($A220=\"\",\"\",VLOOKUP($A220,Economática!$A$3:$AI$823,20,FALSE)/E220)","v":0.81912221561240006},9.4323815189371398,0.80573500814631838,9.2782247327012293,{"$f":"IF($A220=\"\",\"\",IF(OR(VLOOKUP($A220,Economática!$A$3:$AI$823,21,FALSE)/100=0,VLOOKUP($A220,Economática!$A$3:$AI$823,21,FALSE)/100=\"-\"),1/0,VLOOKUP($A220,Economática!$A$3:$AI$823,21,FALSE)/100))","v":9.2905999999999989E-2},{"$f":"IF($A220=\"\",\"\",IF(OR(VLOOKUP($A220,Economática!$A$3:$AI$823,22,FALSE)/100=0,VLOOKUP($A220,Economática!$A$3:$AI$823,22,FALSE)/100=\"-\"),1/0,VLOOKUP($A220,Economática!$A$3:$AI$823,22,FALSE)/100))","v":-2.8262999999999996E-2},{"$f":"IF($A220=\"\",\"\",IF(OR(VLOOKUP($A220,Economática!$A$3:$AI$823,23,FALSE)=0,VLOOKUP($A220,Economática!$A$3:$AI$823,23,FALSE)=\"-\"),1/0,VLOOKUP($A220,Economática!$A$3:$AI$823,23,FALSE)))","v":44.4},{"$f":"IF($A220=\"\",\"\",IF(OR(VLOOKUP($A220,Economática!$A$3:$AI$823,24,FALSE)=0,VLOOKUP($A220,Economática!$A$3:$AI$823,24,FALSE)=\"-\"),1/0,VLOOKUP($A220,Economática!$A$3:$AI$823,24,FALSE)))","v":45.8},{"$f":"IF($A220=\"\",\"\",IF(OR(VLOOKUP($A220,Economática!$A$3:$AI$823,25,FALSE)=0,VLOOKUP($A220,Economática!$A$3:$AI$823,25,FALSE)=\"-\"),1/0,VLOOKUP($A220,Economática!$A$3:$AI$823,25,FALSE)))","v":45.8},{"$f":"IF($A220=\"\",\"\",IF(ISERROR((F220+VLOOKUP($A220,Economática!$A$3:$AI$823,26,FALSE))/Y220),(F220+VLOOKUP($A220,Economática!$A$3:$AI$823,26,FALSE))/Y220,(F220+VLOOKUP($A220,Economática!$A$3:$AI$823,26,FALSE))/Y220))","v":9.689563318777294},{"$f":"IF($A220=\"\",\"\",IF(OR(-VLOOKUP($A220,Economática!$A$3:$AI$823,27,FALSE)=0,-VLOOKUP($A220,Economática!$A$3:$AI$823,27,FALSE)=\"-\"),1/0,-VLOOKUP($A220,Economática!$A$3:$AI$823,27,FALSE)))","v":9.59},2.0851452426508956E-2,{"$f":"IF($A220=\"\",\"\",IF(OR(VLOOKUP($A220,Economática!$A$3:$AI$823,28,FALSE)=0,VLOOKUP($A220,Economática!$A$3:$AI$823,28,FALSE)=\"-\"),1/0,VLOOKUP($A220,Economática!$A$3:$AI$823,28,FALSE)))","v":10.1},{"$f":"IF($A220=\"\",\"\",IF(OR(VLOOKUP($A220,Economática!$A$3:$AI$823,29,FALSE)=0,VLOOKUP($A220,Economática!$A$3:$AI$823,29,FALSE)=\"-\"),1/0,VLOOKUP($A220,Economática!$A$3:$AI$823,29,FALSE)))","v":35.700000000000003},{"$f":"IF($A220=\"\",\"\",IF(OR(VLOOKUP($A220,Economática!$A$3:$AI$823,30,FALSE)/E220=0,VLOOKUP($A220,Economática!$A$3:$AI$823,30,FALSE)/E220=\"-\",VLOOKUP($A220,Economática!$A$3:$AI$823,30,FALSE)/E220<33.33%,VLOOKUP($A220,Economática!$A$3:$AI$823,30,FALSE)/E220>100%),1/0,VLOOKUP($A220,Economática!$A$3:$AI$823,30,FALSE)/E220))","v":0.72047061934033974},"DOHL4",{"$f":"IF($A220=\"\",\"\",IF(OR(VLOOKUP($A220,Economática!$A$3:$AI$823,25,FALSE)=0,VLOOKUP($A220,Economática!$A$3:$AI$823,25,FALSE)=\"-\"),1/0,VLOOKUP($A220,Economática!$A$3:$AI$823,25,FALSE)))","v":45.8},{"$f":"CONCATENATE(Economática!B222,\" \",Economática!C222)","v":"Dohler PN"}]
[{"$f":"IF(Economática!AG223=\"\",\"\",Economática!AG223)","v":"CTNM4"},{"$f":"IF($A221=\"\",\"\",VLOOKUP(VLOOKUP($A221,Economática!$A$3:$AI$823,6,FALSE),Correção!$B$16:$C$36,2,FALSE))","v":"Têxtil"},{"$f":"IF(Economática!B223=\"\",\"\",Economática!B223)","v":"Coteminas"},{"$f":"IF($A221=\"\",\"\",IF(OR(VLOOKUP($A221,Economática!$A$3:$AI$823,8,FALSE)=0,VLOOKUP($A221,Economática!$A$3:$AI$823,8,FALSE)=\"-\"),1/0,VLOOKUP($A221,Economática!$A$3:$AI$823,8,FALSE)))","v":10.4},{"$f":"IF(A221=\"\",\"\",IF(ISERROR(VLOOKUP(A221,Correção!$B$2:$G$13,9,FALSE)),VLOOKUP($A221,Economática!$A$3:$AI$823,9,FALSE),VLOOKUP(A221,Correção!$B$2:$G$13,9,FALSE)))","v":30.635999999999999},{"$f":"IF($A221=\"\",\"\",Economática!G223)","v":333.22},{"$f":"IF($A221=\"\",\"\",IF(OR(VLOOKUP($A221,Economática!$A$3:$AI$823,10,FALSE)=0,VLOOKUP($A221,Economática!$A$3:$AI$823,10,FALSE)=\"-\"),1/0,VLOOKUP($A221,Economática!$A$3:$AI$823,10,FALSE)))","v":852.11},{"$f":"IF($A221=\"\",\"\",IF(OR(VLOOKUP($A221,Economática!$A$3:$AI$823,11,FALSE)=0,VLOOKUP($A221,Economática!$A$3:$AI$823,11,FALSE)=\"-\"),1/0,VLOOKUP($A221,Economática!$A$3:$AI$823,11,FALSE)))","v":2577.73},{"$f":"IF($A221=\"\",\"\",IF(OR(VLOOKUP($A221,Economática!$A$3:$AI$823,12,FALSE)=0,VLOOKUP($A221,Economática!$A$3:$AI$823,12,FALSE)=\"-\"),1/0,VLOOKUP($A221,Economática!$A$3:$AI$823,12,FALSE)))","v":{"$error":"#DIV/0!"}},{"$f":"IF($A221=\"\",\"\",IF(OR(VLOOKUP($A221,Economática!$A$3:$AI$823,13,FALSE)=0,VLOOKUP($A221,Economática!$A$3:$AI$823,13,FALSE)=\"-\"),1/0,VLOOKUP($A221,Economática!$A$3:$AI$823,13,FALSE)))","v":49.81},{"$f":"IF($A221=\"\",\"\",IF(OR(VLOOKUP($A221,Economática!$A$3:$AI$823,14,FALSE)=0,VLOOKUP($A221,Economática!$A$3:$AI$823,14,FALSE)=\"-\"),1/0,VLOOKUP($A221,Economática!$A$3:$AI$823,14,FALSE)))","v":-5.43},{"$f":"IF($A221=\"\",\"\",IF(OR(VLOOKUP($A221,Economática!$A$3:$AI$823,15,FALSE)=0,VLOOKUP($A221,Economática!$A$3:$AI$823,15,FALSE)=\"-\"),1/0,VLOOKUP($A221,Economática!$A$3:$AI$823,15,FALSE)))","v":-5.13},{"$f":"IF($A221=\"\",\"\",IF(OR(VLOOKUP($A221,Economática!$A$3:$AI$823,16,FALSE)=0,VLOOKUP($A221,Economática!$A$3:$AI$823,16,FALSE)=\"-\"),1/0,VLOOKUP($A221,Economática!$A$3:$AI$823,16,FALSE)))","v":13.83},{"$f":"IF($A221=\"\",\"\",IF(OR(VLOOKUP($A221,Economática!$A$3:$AI$823,17,FALSE)=0,VLOOKUP($A221,Economática!$A$3:$AI$823,17,FALSE)=\"-\"),1/0,VLOOKUP($A221,Economática!$A$3:$AI$823,17,FALSE)))","v":{"$error":"#DIV/0!"}},{"$f":"IF($A221=\"\",\"\",IF(OR(VLOOKUP($A221,Economática!$A$3:$AI$823,18,FALSE)=0,VLOOKUP($A221,Economática!$A$3:$AI$823,18,FALSE)=\"-\"),1/0,VLOOKUP($A221,Economática!$A$3:$AI$823,18,FALSE)))","v":49.81},{"$f":"IF($A221=\"\",\"\",IF(OR(VLOOKUP($A221,Economática!$A$3:$AI$823,19,FALSE)=0,VLOOKUP($A221,Economática!$A$3:$AI$823,19,FALSE)=\"-\"),1/0,VLOOKUP($A221,Economática!$A$3:$AI$823,19,FALSE)))","v":{"$error":"#DIV/0!"}},{"$f":"IF($A221=\"\",\"\",VLOOKUP($A221,Economática!$A$3:$AI$823,20,FALSE)/E221)","v":2.1393132262697483},27.814009661835751,0.37391228831958312,4.8613732072017086,{"$f":"IF($A221=\"\",\"\",IF(OR(VLOOKUP($A221,Economática!$A$3:$AI$823,21,FALSE)/100=0,VLOOKUP($A221,Economática!$A$3:$AI$823,21,FALSE)/100=\"-\"),1/0,VLOOKUP($A221,Economática!$A$3:$AI$823,21,FALSE)/100))","v":6.2826000000000007E-2},{"$f":"IF($A221=\"\",\"\",IF(OR(VLOOKUP($A221,Economática!$A$3:$AI$823,22,FALSE)/100=0,VLOOKUP($A221,Economática!$A$3:$AI$823,22,FALSE)/100=\"-\"),1/0,VLOOKUP($A221,Economática!$A$3:$AI$823,22,FALSE)/100))","v":0.90794799999999998},{"$f":"IF($A221=\"\",\"\",IF(OR(VLOOKUP($A221,Economática!$A$3:$AI$823,23,FALSE)=0,VLOOKUP($A221,Economática!$A$3:$AI$823,23,FALSE)=\"-\"),1/0,VLOOKUP($A221,Economática!$A$3:$AI$823,23,FALSE)))","v":356.7},{"$f":"IF($A221=\"\",\"\",IF(OR(VLOOKUP($A221,Economática!$A$3:$AI$823,24,FALSE)=0,VLOOKUP($A221,Economática!$A$3:$AI$823,24,FALSE)=\"-\"),1/0,VLOOKUP($A221,Economática!$A$3:$AI$823,24,FALSE)))","v":{"$error":"#DIV/0!"}},{"$f":"IF($A221=\"\",\"\",IF(OR(VLOOKUP($A221,Economática!$A$3:$AI$823,25,FALSE)=0,VLOOKUP($A221,Economática!$A$3:$AI$823,25,FALSE)=\"-\"),1/0,VLOOKUP($A221,Economática!$A$3:$AI$823,25,FALSE)))","v":370.2},{"$f":"IF($A221=\"\",\"\",IF(ISERROR((F221+VLOOKUP($A221,Economática!$A$3:$AI$823,26,FALSE))/Y221),(F221+VLOOKUP($A221,Economática!$A$3:$AI$823,26,FALSE))/Y221,(F221+VLOOKUP($A221,Economática!$A$3:$AI$823,26,FALSE))/Y221))","v":4.6102566180443008},{"$f":"IF($A221=\"\",\"\",IF(OR(-VLOOKUP($A221,Economática!$A$3:$AI$823,27,FALSE)=0,-VLOOKUP($A221,Economática!$A$3:$AI$823,27,FALSE)=\"-\"),1/0,-VLOOKUP($A221,Economática!$A$3:$AI$823,27,FALSE)))","v":{"$error":"#DIV/0!"}},{"$error":"#DIV/0!"},{"$f":"IF($A221=\"\",\"\",IF(OR(VLOOKUP($A221,Economática!$A$3:$AI$823,28,FALSE)=0,VLOOKUP($A221,Economática!$A$3:$AI$823,28,FALSE)=\"-\"),1/0,VLOOKUP($A221,Economática!$A$3:$AI$823,28,FALSE)))","v":3.9},{"$f":"IF($A221=\"\",\"\",IF(OR(VLOOKUP($A221,Economática!$A$3:$AI$823,29,FALSE)=0,VLOOKUP($A221,Economática!$A$3:$AI$823,29,FALSE)=\"-\"),1/0,VLOOKUP($A221,Economática!$A$3:$AI$823,29,FALSE)))","v":66.7},{"$f":"IF($A221=\"\",\"\",IF(OR(VLOOKUP($A221,Economática!$A$3:$AI$823,30,FALSE)/E221=0,VLOOKUP($A221,Economática!$A$3:$AI$823,30,FALSE)/E221=\"-\",VLOOKUP($A221,Economática!$A$3:$AI$823,30,FALSE)/E221<33.33%,VLOOKUP($A221,Economática!$A$3:$AI$823,30,FALSE)/E221>100%),1/0,VLOOKUP($A221,Economática!$A$3:$AI$823,30,FALSE)/E221))","v":0.45371458414936677},"CTNM4",{"$f":"IF($A221=\"\",\"\",IF(OR(VLOOKUP($A221,Economática!$A$3:$AI$823,25,FALSE)=0,VLOOKUP($A221,Economática!$A$3:$AI$823,25,FALSE)=\"-\"),1/0,VLOOKUP($A221,Economática!$A$3:$AI$823,25,FALSE)))","v":370.2},{"$f":"CONCATENATE(Economática!B223,\" \",Economática!C223)","v":"Coteminas PN"}]
[{"$f":"IF(Economática!AG224=\"\",\"\",Economática!AG224)","v":"LLIS3"},{"$f":"IF($A222=\"\",\"\",VLOOKUP(VLOOKUP($A222,Economática!$A$3:$AI$823,6,FALSE),Correção!$B$16:$C$36,2,FALSE))","v":"Têxtil"},{"$f":"IF(Economática!B224=\"\",\"\",Economática!B224)","v":"Le Lis Blanc"},{"$f":"IF($A222=\"\",\"\",IF(OR(VLOOKUP($A222,Economática!$A$3:$AI$823,8,FALSE)=0,VLOOKUP($A222,Economática!$A$3:$AI$823,8,FALSE)=\"-\"),1/0,VLOOKUP($A222,Economática!$A$3:$AI$823,8,FALSE)))","v":32},{"$f":"IF(A222=\"\",\"\",IF(ISERROR(VLOOKUP(A222,Correção!$B$2:$G$13,9,FALSE)),VLOOKUP($A222,Economática!$A$3:$AI$823,9,FALSE),VLOOKUP(A222,Correção!$B$2:$G$13,9,FALSE)))","v":51.600999999999999},{"$f":"IF($A222=\"\",\"\",Economática!G224)","v":1651.23},{"$f":"IF($A222=\"\",\"\",IF(OR(VLOOKUP($A222,Economática!$A$3:$AI$823,10,FALSE)=0,VLOOKUP($A222,Economática!$A$3:$AI$823,10,FALSE)=\"-\"),1/0,VLOOKUP($A222,Economática!$A$3:$AI$823,10,FALSE)))","v":2225.87},{"$f":"IF($A222=\"\",\"\",IF(OR(VLOOKUP($A222,Economática!$A$3:$AI$823,11,FALSE)=0,VLOOKUP($A222,Economática!$A$3:$AI$823,11,FALSE)=\"-\"),1/0,VLOOKUP($A222,Economática!$A$3:$AI$823,11,FALSE)))","v":1249.82},{"$f":"IF($A222=\"\",\"\",IF(OR(VLOOKUP($A222,Economática!$A$3:$AI$823,12,FALSE)=0,VLOOKUP($A222,Economática!$A$3:$AI$823,12,FALSE)=\"-\"),1/0,VLOOKUP($A222,Economática!$A$3:$AI$823,12,FALSE)))","v":1244.1500000000001},{"$f":"IF($A222=\"\",\"\",IF(OR(VLOOKUP($A222,Economática!$A$3:$AI$823,13,FALSE)=0,VLOOKUP($A222,Economática!$A$3:$AI$823,13,FALSE)=\"-\"),1/0,VLOOKUP($A222,Economática!$A$3:$AI$823,13,FALSE)))","v":420.57},{"$f":"IF($A222=\"\",\"\",IF(OR(VLOOKUP($A222,Economática!$A$3:$AI$823,14,FALSE)=0,VLOOKUP($A222,Economática!$A$3:$AI$823,14,FALSE)=\"-\"),1/0,VLOOKUP($A222,Economática!$A$3:$AI$823,14,FALSE)))","v":20.37},{"$f":"IF($A222=\"\",\"\",IF(OR(VLOOKUP($A222,Economática!$A$3:$AI$823,15,FALSE)=0,VLOOKUP($A222,Economática!$A$3:$AI$823,15,FALSE)=\"-\"),1/0,VLOOKUP($A222,Economática!$A$3:$AI$823,15,FALSE)))","v":50.62},{"$f":"IF($A222=\"\",\"\",IF(OR(VLOOKUP($A222,Economática!$A$3:$AI$823,16,FALSE)=0,VLOOKUP($A222,Economática!$A$3:$AI$823,16,FALSE)=\"-\"),1/0,VLOOKUP($A222,Economática!$A$3:$AI$823,16,FALSE)))","v":58.46},{"$f":"IF($A222=\"\",\"\",IF(OR(VLOOKUP($A222,Economática!$A$3:$AI$823,17,FALSE)=0,VLOOKUP($A222,Economática!$A$3:$AI$823,17,FALSE)=\"-\"),1/0,VLOOKUP($A222,Economática!$A$3:$AI$823,17,FALSE)))","v":103.46},{"$f":"IF($A222=\"\",\"\",IF(OR(VLOOKUP($A222,Economática!$A$3:$AI$823,18,FALSE)=0,VLOOKUP($A222,Economática!$A$3:$AI$823,18,FALSE)=\"-\"),1/0,VLOOKUP($A222,Economática!$A$3:$AI$823,18,FALSE)))","v":420.57},{"$f":"IF($A222=\"\",\"\",IF(OR(VLOOKUP($A222,Economática!$A$3:$AI$823,19,FALSE)=0,VLOOKUP($A222,Economática!$A$3:$AI$823,19,FALSE)=\"-\"),1/0,VLOOKUP($A222,Economática!$A$3:$AI$823,19,FALSE)))","v":103.46},{"$f":"IF($A222=\"\",\"\",VLOOKUP($A222,Economática!$A$3:$AI$823,20,FALSE)/E222)","v":2.0049999031026529},43.13617953140443,0.74183667509782691,15.960100521940848,{"$f":"IF($A222=\"\",\"\",IF(OR(VLOOKUP($A222,Economática!$A$3:$AI$823,21,FALSE)/100=0,VLOOKUP($A222,Economática!$A$3:$AI$823,21,FALSE)/100=\"-\"),1/0,VLOOKUP($A222,Economática!$A$3:$AI$823,21,FALSE)/100))","v":4.8201000000000001E-2},{"$f":"IF($A222=\"\",\"\",IF(OR(VLOOKUP($A222,Economática!$A$3:$AI$823,22,FALSE)/100=0,VLOOKUP($A222,Economática!$A$3:$AI$823,22,FALSE)/100=\"-\"),1/0,VLOOKUP($A222,Economática!$A$3:$AI$823,22,FALSE)/100))","v":0.388152},{"$f":"IF($A222=\"\",\"\",IF(OR(VLOOKUP($A222,Economática!$A$3:$AI$823,23,FALSE)=0,VLOOKUP($A222,Economática!$A$3:$AI$823,23,FALSE)=\"-\"),1/0,VLOOKUP($A222,Economática!$A$3:$AI$823,23,FALSE)))","v":262.60000000000002},{"$f":"IF($A222=\"\",\"\",IF(OR(VLOOKUP($A222,Economática!$A$3:$AI$823,24,FALSE)=0,VLOOKUP($A222,Economática!$A$3:$AI$823,24,FALSE)=\"-\"),1/0,VLOOKUP($A222,Economática!$A$3:$AI$823,24,FALSE)))","v":350.6},{"$f":"IF($A222=\"\",\"\",IF(OR(VLOOKUP($A222,Economática!$A$3:$AI$823,25,FALSE)=0,VLOOKUP($A222,Economática!$A$3:$AI$823,25,FALSE)=\"-\"),1/0,VLOOKUP($A222,Economática!$A$3:$AI$823,25,FALSE)))","v":350.6},{"$f":"IF($A222=\"\",\"\",IF(ISERROR((F222+VLOOKUP($A222,Economática!$A$3:$AI$823,26,FALSE))/Y222),(F222+VLOOKUP($A222,Economática!$A$3:$AI$823,26,FALSE))/Y222,(F222+VLOOKUP($A222,Economática!$A$3:$AI$823,26,FALSE))/Y222))","v":7.1740074158585276},{"$f":"IF($A222=\"\",\"\",IF(OR(-VLOOKUP($A222,Economática!$A$3:$AI$823,27,FALSE)=0,-VLOOKUP($A222,Economática!$A$3:$AI$823,27,FALSE)=\"-\"),1/0,-VLOOKUP($A222,Economática!$A$3:$AI$823,27,FALSE)))","v":96.52},5.8453395347710491E-2,{"$f":"IF($A222=\"\",\"\",IF(OR(VLOOKUP($A222,Economática!$A$3:$AI$823,28,FALSE)=0,VLOOKUP($A222,Economática!$A$3:$AI$823,28,FALSE)=\"-\"),1/0,VLOOKUP($A222,Economática!$A$3:$AI$823,28,FALSE)))","v":-3.1},{"$f":"IF($A222=\"\",\"\",IF(OR(VLOOKUP($A222,Economática!$A$3:$AI$823,29,FALSE)=0,VLOOKUP($A222,Economática!$A$3:$AI$823,29,FALSE)=\"-\"),1/0,VLOOKUP($A222,Economática!$A$3:$AI$823,29,FALSE)))","v":4.9000000000000004},{"$f":"IF($A222=\"\",\"\",IF(OR(VLOOKUP($A222,Economática!$A$3:$AI$823,30,FALSE)/E222=0,VLOOKUP($A222,Economática!$A$3:$AI$823,30,FALSE)/E222=\"-\",VLOOKUP($A222,Economática!$A$3:$AI$823,30,FALSE)/E222<33.33%,VLOOKUP($A222,Economática!$A$3:$AI$823,30,FALSE)/E222>100%),1/0,VLOOKUP($A222,Economática!$A$3:$AI$823,30,FALSE)/E222))","v":0.99998062053060988},"LLIS3",{"$f":"IF($A222=\"\",\"\",IF(OR(VLOOKUP($A222,Economática!$A$3:$AI$823,25,FALSE)=0,VLOOKUP($A222,Economática!$A$3:$AI$823,25,FALSE)=\"-\"),1/0,VLOOKUP($A222,Economática!$A$3:$AI$823,25,FALSE)))","v":350.6},{"$f":"CONCATENATE(Economática!B224,\" \",Economática!C224)","v":"Le Lis Blanc ON"}]
[{"$f":"IF(Economática!AG225=\"\",\"\",Economática!AG225)","v":"SGPS3"},{"$f":"IF($A223=\"\",\"\",VLOOKUP(VLOOKUP($A223,Economática!$A$3:$AI$823,6,FALSE),Correção!$B$16:$C$36,2,FALSE))","v":"Têxtil"},{"$f":"IF(Economática!B225=\"\",\"\",Economática!B225)","v":"Springs"},{"$f":"IF($A223=\"\",\"\",IF(OR(VLOOKUP($A223,Economática!$A$3:$AI$823,8,FALSE)=0,VLOOKUP($A223,Economática!$A$3:$AI$823,8,FALSE)=\"-\"),1/0,VLOOKUP($A223,Economática!$A$3:$AI$823,8,FALSE)))","v":8.89},{"$f":"IF(A223=\"\",\"\",IF(ISERROR(VLOOKUP(A223,Correção!$B$2:$G$13,9,FALSE)),VLOOKUP($A223,Economática!$A$3:$AI$823,9,FALSE),VLOOKUP(A223,Correção!$B$2:$G$13,9,FALSE)))","v":50},{"$f":"IF($A223=\"\",\"\",Economática!G225)","v":444.5},{"$f":"IF($A223=\"\",\"\",IF(OR(VLOOKUP($A223,Economática!$A$3:$AI$823,10,FALSE)=0,VLOOKUP($A223,Economática!$A$3:$AI$823,10,FALSE)=\"-\"),1/0,VLOOKUP($A223,Economática!$A$3:$AI$823,10,FALSE)))","v":1160.5899999999999},{"$f":"IF($A223=\"\",\"\",IF(OR(VLOOKUP($A223,Economática!$A$3:$AI$823,11,FALSE)=0,VLOOKUP($A223,Economática!$A$3:$AI$823,11,FALSE)=\"-\"),1/0,VLOOKUP($A223,Economática!$A$3:$AI$823,11,FALSE)))","v":2198.6999999999998},{"$f":"IF($A223=\"\",\"\",IF(OR(VLOOKUP($A223,Economática!$A$3:$AI$823,12,FALSE)=0,VLOOKUP($A223,Economática!$A$3:$AI$823,12,FALSE)=\"-\"),1/0,VLOOKUP($A223,Economática!$A$3:$AI$823,12,FALSE)))","v":{"$error":"#DIV/0!"}},{"$f":"IF($A223=\"\",\"\",IF(OR(VLOOKUP($A223,Economática!$A$3:$AI$823,13,FALSE)=0,VLOOKUP($A223,Economática!$A$3:$AI$823,13,FALSE)=\"-\"),1/0,VLOOKUP($A223,Economática!$A$3:$AI$823,13,FALSE)))","v":21.04},{"$f":"IF($A223=\"\",\"\",IF(OR(VLOOKUP($A223,Economática!$A$3:$AI$823,14,FALSE)=0,VLOOKUP($A223,Economática!$A$3:$AI$823,14,FALSE)=\"-\"),1/0,VLOOKUP($A223,Economática!$A$3:$AI$823,14,FALSE)))","v":-6.95},{"$f":"IF($A223=\"\",\"\",IF(OR(VLOOKUP($A223,Economática!$A$3:$AI$823,15,FALSE)=0,VLOOKUP($A223,Economática!$A$3:$AI$823,15,FALSE)=\"-\"),1/0,VLOOKUP($A223,Economática!$A$3:$AI$823,15,FALSE)))","v":2},{"$f":"IF($A223=\"\",\"\",IF(OR(VLOOKUP($A223,Economática!$A$3:$AI$823,16,FALSE)=0,VLOOKUP($A223,Economática!$A$3:$AI$823,16,FALSE)=\"-\"),1/0,VLOOKUP($A223,Economática!$A$3:$AI$823,16,FALSE)))","v":-7.36},{"$f":"IF($A223=\"\",\"\",IF(OR(VLOOKUP($A223,Economática!$A$3:$AI$823,17,FALSE)=0,VLOOKUP($A223,Economática!$A$3:$AI$823,17,FALSE)=\"-\"),1/0,VLOOKUP($A223,Economática!$A$3:$AI$823,17,FALSE)))","v":{"$error":"#DIV/0!"}},{"$f":"IF($A223=\"\",\"\",IF(OR(VLOOKUP($A223,Economática!$A$3:$AI$823,18,FALSE)=0,VLOOKUP($A223,Economática!$A$3:$AI$823,18,FALSE)=\"-\"),1/0,VLOOKUP($A223,Economática!$A$3:$AI$823,18,FALSE)))","v":21.04},{"$f":"IF($A223=\"\",\"\",IF(OR(VLOOKUP($A223,Economática!$A$3:$AI$823,19,FALSE)=0,VLOOKUP($A223,Economática!$A$3:$AI$823,19,FALSE)=\"-\"),1/0,VLOOKUP($A223,Economática!$A$3:$AI$823,19,FALSE)))","v":{"$error":"#DIV/0!"}},{"$f":"IF($A223=\"\",\"\",VLOOKUP($A223,Economática!$A$3:$AI$823,20,FALSE)/E223)","v":0.1484},23.211799999999997,0.38299485606458794,59.905660377358494,{"$f":"IF($A223=\"\",\"\",IF(OR(VLOOKUP($A223,Economática!$A$3:$AI$823,21,FALSE)/100=0,VLOOKUP($A223,Economática!$A$3:$AI$823,21,FALSE)/100=\"-\"),1/0,VLOOKUP($A223,Economática!$A$3:$AI$823,21,FALSE)/100))","v":7.4110000000000001E-3},{"$f":"IF($A223=\"\",\"\",IF(OR(VLOOKUP($A223,Economática!$A$3:$AI$823,22,FALSE)/100=0,VLOOKUP($A223,Economática!$A$3:$AI$823,22,FALSE)/100=\"-\"),1/0,VLOOKUP($A223,Economática!$A$3:$AI$823,22,FALSE)/100))","v":0.85102999999999995},{"$f":"IF($A223=\"\",\"\",IF(OR(VLOOKUP($A223,Economática!$A$3:$AI$823,23,FALSE)=0,VLOOKUP($A223,Economática!$A$3:$AI$823,23,FALSE)=\"-\"),1/0,VLOOKUP($A223,Economática!$A$3:$AI$823,23,FALSE)))","v":254.6},{"$f":"IF($A223=\"\",\"\",IF(OR(VLOOKUP($A223,Economática!$A$3:$AI$823,24,FALSE)=0,VLOOKUP($A223,Economática!$A$3:$AI$823,24,FALSE)=\"-\"),1/0,VLOOKUP($A223,Economática!$A$3:$AI$823,24,FALSE)))","v":{"$error":"#DIV/0!"}},{"$f":"IF($A223=\"\",\"\",IF(OR(VLOOKUP($A223,Economática!$A$3:$AI$823,25,FALSE)=0,VLOOKUP($A223,Economática!$A$3:$AI$823,25,FALSE)=\"-\"),1/0,VLOOKUP($A223,Economática!$A$3:$AI$823,25,FALSE)))","v":244.6},{"$f":"IF($A223=\"\",\"\",IF(ISERROR((F223+VLOOKUP($A223,Economática!$A$3:$AI$823,26,FALSE))/Y223),(F223+VLOOKUP($A223,Economática!$A$3:$AI$823,26,FALSE))/Y223,(F223+VLOOKUP($A223,Economática!$A$3:$AI$823,26,FALSE))/Y223))","v":5.855269828291088},{"$f":"IF($A223=\"\",\"\",IF(OR(-VLOOKUP($A223,Economática!$A$3:$AI$823,27,FALSE)=0,-VLOOKUP($A223,Economática!$A$3:$AI$823,27,FALSE)=\"-\"),1/0,-VLOOKUP($A223,Economática!$A$3:$AI$823,27,FALSE)))","v":{"$error":"#DIV/0!"}},{"$error":"#DIV/0!"},{"$f":"IF($A223=\"\",\"\",IF(OR(VLOOKUP($A223,Economática!$A$3:$AI$823,28,FALSE)=0,VLOOKUP($A223,Economática!$A$3:$AI$823,28,FALSE)=\"-\"),1/0,VLOOKUP($A223,Economática!$A$3:$AI$823,28,FALSE)))","v":5.7},{"$f":"IF($A223=\"\",\"\",IF(OR(VLOOKUP($A223,Economática!$A$3:$AI$823,29,FALSE)=0,VLOOKUP($A223,Economática!$A$3:$AI$823,29,FALSE)=\"-\"),1/0,VLOOKUP($A223,Economática!$A$3:$AI$823,29,FALSE)))","v":-17.8},{"$f":"IF($A223=\"\",\"\",IF(OR(VLOOKUP($A223,Economática!$A$3:$AI$823,30,FALSE)/E223=0,VLOOKUP($A223,Economática!$A$3:$AI$823,30,FALSE)/E223=\"-\",VLOOKUP($A223,Economática!$A$3:$AI$823,30,FALSE)/E223<33.33%,VLOOKUP($A223,Economática!$A$3:$AI$823,30,FALSE)/E223>100%),1/0,VLOOKUP($A223,Economática!$A$3:$AI$823,30,FALSE)/E223))","v":1},"SGPS3",{"$f":"IF($A223=\"\",\"\",IF(OR(VLOOKUP($A223,Economática!$A$3:$AI$823,25,FALSE)=0,VLOOKUP($A223,Economática!$A$3:$AI$823,25,FALSE)=\"-\"),1/0,VLOOKUP($A223,Economática!$A$3:$AI$823,25,FALSE)))","v":244.6},{"$f":"CONCATENATE(Economática!B225,\" \",Economática!C225)","v":"Springs ON"}]
[{"$f":"IF(Economática!AG226=\"\",\"\",Economática!AG226)","v":"CTKA4"},{"$f":"IF($A224=\"\",\"\",VLOOKUP(VLOOKUP($A224,Economática!$A$3:$AI$823,6,FALSE),Correção!$B$16:$C$36,2,FALSE))","v":"Têxtil"},{"$f":"IF(Economática!B226=\"\",\"\",Economática!B226)","v":"Karsten"},{"$f":"IF($A224=\"\",\"\",IF(OR(VLOOKUP($A224,Economática!$A$3:$AI$823,8,FALSE)=0,VLOOKUP($A224,Economática!$A$3:$AI$823,8,FALSE)=\"-\"),1/0,VLOOKUP($A224,Economática!$A$3:$AI$823,8,FALSE)))","v":3.3},{"$f":"IF(A224=\"\",\"\",IF(ISERROR(VLOOKUP(A224,Correção!$B$2:$G$13,9,FALSE)),VLOOKUP($A224,Economática!$A$3:$AI$823,9,FALSE),VLOOKUP(A224,Correção!$B$2:$G$13,9,FALSE)))","v":6.2050000000000001},{"$f":"IF($A224=\"\",\"\",Economática!G226)","v":20.48},{"$f":"IF($A224=\"\",\"\",IF(OR(VLOOKUP($A224,Economática!$A$3:$AI$823,10,FALSE)=0,VLOOKUP($A224,Economática!$A$3:$AI$823,10,FALSE)=\"-\"),1/0,VLOOKUP($A224,Economática!$A$3:$AI$823,10,FALSE)))","v":-260.17},{"$f":"IF($A224=\"\",\"\",IF(OR(VLOOKUP($A224,Economática!$A$3:$AI$823,11,FALSE)=0,VLOOKUP($A224,Economática!$A$3:$AI$823,11,FALSE)=\"-\"),1/0,VLOOKUP($A224,Economática!$A$3:$AI$823,11,FALSE)))","v":309.77999999999997},{"$f":"IF($A224=\"\",\"\",IF(OR(VLOOKUP($A224,Economática!$A$3:$AI$823,12,FALSE)=0,VLOOKUP($A224,Economática!$A$3:$AI$823,12,FALSE)=\"-\"),1/0,VLOOKUP($A224,Economática!$A$3:$AI$823,12,FALSE)))","v":316.64},{"$f":"IF($A224=\"\",\"\",IF(OR(VLOOKUP($A224,Economática!$A$3:$AI$823,13,FALSE)=0,VLOOKUP($A224,Economática!$A$3:$AI$823,13,FALSE)=\"-\"),1/0,VLOOKUP($A224,Economática!$A$3:$AI$823,13,FALSE)))","v":-0.53},{"$f":"IF($A224=\"\",\"\",IF(OR(VLOOKUP($A224,Economática!$A$3:$AI$823,14,FALSE)=0,VLOOKUP($A224,Economática!$A$3:$AI$823,14,FALSE)=\"-\"),1/0,VLOOKUP($A224,Economática!$A$3:$AI$823,14,FALSE)))","v":-20},{"$f":"IF($A224=\"\",\"\",IF(OR(VLOOKUP($A224,Economática!$A$3:$AI$823,15,FALSE)=0,VLOOKUP($A224,Economática!$A$3:$AI$823,15,FALSE)=\"-\"),1/0,VLOOKUP($A224,Economática!$A$3:$AI$823,15,FALSE)))","v":-28.93},{"$f":"IF($A224=\"\",\"\",IF(OR(VLOOKUP($A224,Economática!$A$3:$AI$823,16,FALSE)=0,VLOOKUP($A224,Economática!$A$3:$AI$823,16,FALSE)=\"-\"),1/0,VLOOKUP($A224,Economática!$A$3:$AI$823,16,FALSE)))","v":-47.92},{"$f":"IF($A224=\"\",\"\",IF(OR(VLOOKUP($A224,Economática!$A$3:$AI$823,17,FALSE)=0,VLOOKUP($A224,Economática!$A$3:$AI$823,17,FALSE)=\"-\"),1/0,VLOOKUP($A224,Economática!$A$3:$AI$823,17,FALSE)))","v":-52.68},{"$f":"IF($A224=\"\",\"\",IF(OR(VLOOKUP($A224,Economática!$A$3:$AI$823,18,FALSE)=0,VLOOKUP($A224,Economática!$A$3:$AI$823,18,FALSE)=\"-\"),1/0,VLOOKUP($A224,Economática!$A$3:$AI$823,18,FALSE)))","v":-0.53},{"$f":"IF($A224=\"\",\"\",IF(OR(VLOOKUP($A224,Economática!$A$3:$AI$823,19,FALSE)=0,VLOOKUP($A224,Economática!$A$3:$AI$823,19,FALSE)=\"-\"),1/0,VLOOKUP($A224,Economática!$A$3:$AI$823,19,FALSE)))","v":-52.68},{"$f":"IF($A224=\"\",\"\",VLOOKUP($A224,Economática!$A$3:$AI$823,20,FALSE)/E224)","v":-8.4899274778404514},{"$error":"#DIV/0!"},{"$error":"#DIV/0!"},{"$error":"#DIV/0!"},{"$f":"IF($A224=\"\",\"\",IF(OR(VLOOKUP($A224,Economática!$A$3:$AI$823,21,FALSE)/100=0,VLOOKUP($A224,Economática!$A$3:$AI$823,21,FALSE)/100=\"-\"),1/0,VLOOKUP($A224,Economática!$A$3:$AI$823,21,FALSE)/100))","v":{"$error":"#VALUE!"}},{"$f":"IF($A224=\"\",\"\",IF(OR(VLOOKUP($A224,Economática!$A$3:$AI$823,22,FALSE)/100=0,VLOOKUP($A224,Economática!$A$3:$AI$823,22,FALSE)/100=\"-\"),1/0,VLOOKUP($A224,Economática!$A$3:$AI$823,22,FALSE)/100))","v":-1.851534},{"$f":"IF($A224=\"\",\"\",IF(OR(VLOOKUP($A224,Economática!$A$3:$AI$823,23,FALSE)=0,VLOOKUP($A224,Economática!$A$3:$AI$823,23,FALSE)=\"-\"),1/0,VLOOKUP($A224,Economática!$A$3:$AI$823,23,FALSE)))","v":53.1},{"$f":"IF($A224=\"\",\"\",IF(OR(VLOOKUP($A224,Economática!$A$3:$AI$823,24,FALSE)=0,VLOOKUP($A224,Economática!$A$3:$AI$823,24,FALSE)=\"-\"),1/0,VLOOKUP($A224,Economática!$A$3:$AI$823,24,FALSE)))","v":54.8},{"$f":"IF($A224=\"\",\"\",IF(OR(VLOOKUP($A224,Economática!$A$3:$AI$823,25,FALSE)=0,VLOOKUP($A224,Economática!$A$3:$AI$823,25,FALSE)=\"-\"),1/0,VLOOKUP($A224,Economática!$A$3:$AI$823,25,FALSE)))","v":54.8},{"$f":"IF($A224=\"\",\"\",IF(ISERROR((F224+VLOOKUP($A224,Economática!$A$3:$AI$823,26,FALSE))/Y224),(F224+VLOOKUP($A224,Economática!$A$3:$AI$823,26,FALSE))/Y224,(F224+VLOOKUP($A224,Economática!$A$3:$AI$823,26,FALSE))/Y224))","v":9.1640145985401471},{"$f":"IF($A224=\"\",\"\",IF(OR(-VLOOKUP($A224,Economática!$A$3:$AI$823,27,FALSE)=0,-VLOOKUP($A224,Economática!$A$3:$AI$823,27,FALSE)=\"-\"),1/0,-VLOOKUP($A224,Economática!$A$3:$AI$823,27,FALSE)))","v":{"$error":"#DIV/0!"}},{"$error":"#DIV/0!"},{"$f":"IF($A224=\"\",\"\",IF(OR(VLOOKUP($A224,Economática!$A$3:$AI$823,28,FALSE)=0,VLOOKUP($A224,Economática!$A$3:$AI$823,28,FALSE)=\"-\"),1/0,VLOOKUP($A224,Economática!$A$3:$AI$823,28,FALSE)))","v":-17.5},{"$f":"IF($A224=\"\",\"\",IF(OR(VLOOKUP($A224,Economática!$A$3:$AI$823,29,FALSE)=0,VLOOKUP($A224,Economática!$A$3:$AI$823,29,FALSE)=\"-\"),1/0,VLOOKUP($A224,Economática!$A$3:$AI$823,29,FALSE)))","v":18.3},{"$f":"IF($A224=\"\",\"\",IF(OR(VLOOKUP($A224,Economática!$A$3:$AI$823,30,FALSE)/E224=0,VLOOKUP($A224,Economática!$A$3:$AI$823,30,FALSE)/E224=\"-\",VLOOKUP($A224,Economática!$A$3:$AI$823,30,FALSE)/E224<33.33%,VLOOKUP($A224,Economática!$A$3:$AI$823,30,FALSE)/E224>100%),1/0,VLOOKUP($A224,Economática!$A$3:$AI$823,30,FALSE)/E224))","v":0.46736502820306203},"CTKA4",{"$f":"IF($A224=\"\",\"\",IF(OR(VLOOKUP($A224,Economática!$A$3:$AI$823,25,FALSE)=0,VLOOKUP($A224,Economática!$A$3:$AI$823,25,FALSE)=\"-\"),1/0,VLOOKUP($A224,Economática!$A$3:$AI$823,25,FALSE)))","v":54.8},{"$f":"CONCATENATE(Economática!B226,\" \",Economática!C226)","v":"Karsten PN"}]
[{"$f":"IF(Economática!AG227=\"\",\"\",Economática!AG227)","v":"TEKA4"},{"$f":"IF($A225=\"\",\"\",VLOOKUP(VLOOKUP($A225,Economática!$A$3:$AI$823,6,FALSE),Correção!$B$16:$C$36,2,FALSE))","v":"Têxtil"},{"$f":"IF(Economática!B227=\"\",\"\",Economática!B227)","v":"Teka"},{"$f":"IF($A225=\"\",\"\",IF(OR(VLOOKUP($A225,Economática!$A$3:$AI$823,8,FALSE)=0,VLOOKUP($A225,Economática!$A$3:$AI$823,8,FALSE)=\"-\"),1/0,VLOOKUP($A225,Economática!$A$3:$AI$823,8,FALSE)))","v":8.82},{"$f":"IF(A225=\"\",\"\",IF(ISERROR(VLOOKUP(A225,Correção!$B$2:$G$13,9,FALSE)),VLOOKUP($A225,Economática!$A$3:$AI$823,9,FALSE),VLOOKUP(A225,Correção!$B$2:$G$13,9,FALSE)))","v":0.503},{"$f":"IF($A225=\"\",\"\",Economática!G227)","v":4.6100000000000003},{"$f":"IF($A225=\"\",\"\",IF(OR(VLOOKUP($A225,Economática!$A$3:$AI$823,10,FALSE)=0,VLOOKUP($A225,Economática!$A$3:$AI$823,10,FALSE)=\"-\"),1/0,VLOOKUP($A225,Economática!$A$3:$AI$823,10,FALSE)))","v":-1435.22},{"$f":"IF($A225=\"\",\"\",IF(OR(VLOOKUP($A225,Economática!$A$3:$AI$823,11,FALSE)=0,VLOOKUP($A225,Economática!$A$3:$AI$823,11,FALSE)=\"-\"),1/0,VLOOKUP($A225,Economática!$A$3:$AI$823,11,FALSE)))","v":132.02000000000001},{"$f":"IF($A225=\"\",\"\",IF(OR(VLOOKUP($A225,Economática!$A$3:$AI$823,12,FALSE)=0,VLOOKUP($A225,Economática!$A$3:$AI$823,12,FALSE)=\"-\"),1/0,VLOOKUP($A225,Economática!$A$3:$AI$823,12,FALSE)))","v":149.16},{"$f":"IF($A225=\"\",\"\",IF(OR(VLOOKUP($A225,Economática!$A$3:$AI$823,13,FALSE)=0,VLOOKUP($A225,Economática!$A$3:$AI$823,13,FALSE)=\"-\"),1/0,VLOOKUP($A225,Economática!$A$3:$AI$823,13,FALSE)))","v":-168.36},{"$f":"IF($A225=\"\",\"\",IF(OR(VLOOKUP($A225,Economática!$A$3:$AI$823,14,FALSE)=0,VLOOKUP($A225,Economática!$A$3:$AI$823,14,FALSE)=\"-\"),1/0,VLOOKUP($A225,Economática!$A$3:$AI$823,14,FALSE)))","v":-41.27},{"$f":"IF($A225=\"\",\"\",IF(OR(VLOOKUP($A225,Economática!$A$3:$AI$823,15,FALSE)=0,VLOOKUP($A225,Economática!$A$3:$AI$823,15,FALSE)=\"-\"),1/0,VLOOKUP($A225,Economática!$A$3:$AI$823,15,FALSE)))","v":-87.96},{"$f":"IF($A225=\"\",\"\",IF(OR(VLOOKUP($A225,Economática!$A$3:$AI$823,16,FALSE)=0,VLOOKUP($A225,Economática!$A$3:$AI$823,16,FALSE)=\"-\"),1/0,VLOOKUP($A225,Economática!$A$3:$AI$823,16,FALSE)))","v":-134.25},{"$f":"IF($A225=\"\",\"\",IF(OR(VLOOKUP($A225,Economática!$A$3:$AI$823,17,FALSE)=0,VLOOKUP($A225,Economática!$A$3:$AI$823,17,FALSE)=\"-\"),1/0,VLOOKUP($A225,Economática!$A$3:$AI$823,17,FALSE)))","v":-125.61},{"$f":"IF($A225=\"\",\"\",IF(OR(VLOOKUP($A225,Economática!$A$3:$AI$823,18,FALSE)=0,VLOOKUP($A225,Economática!$A$3:$AI$823,18,FALSE)=\"-\"),1/0,VLOOKUP($A225,Economática!$A$3:$AI$823,18,FALSE)))","v":-168.36},{"$f":"IF($A225=\"\",\"\",IF(OR(VLOOKUP($A225,Economática!$A$3:$AI$823,19,FALSE)=0,VLOOKUP($A225,Economática!$A$3:$AI$823,19,FALSE)=\"-\"),1/0,VLOOKUP($A225,Economática!$A$3:$AI$823,19,FALSE)))","v":-125.61},{"$f":"IF($A225=\"\",\"\",VLOOKUP($A225,Economática!$A$3:$AI$823,20,FALSE)/E225)","v":-249.72166998011929},{"$error":"#DIV/0!"},{"$error":"#DIV/0!"},{"$error":"#DIV/0!"},{"$f":"IF($A225=\"\",\"\",IF(OR(VLOOKUP($A225,Economática!$A$3:$AI$823,21,FALSE)/100=0,VLOOKUP($A225,Economática!$A$3:$AI$823,21,FALSE)/100=\"-\"),1/0,VLOOKUP($A225,Economática!$A$3:$AI$823,21,FALSE)/100))","v":{"$error":"#VALUE!"}},{"$f":"IF($A225=\"\",\"\",IF(OR(VLOOKUP($A225,Economática!$A$3:$AI$823,22,FALSE)/100=0,VLOOKUP($A225,Economática!$A$3:$AI$823,22,FALSE)/100=\"-\"),1/0,VLOOKUP($A225,Economática!$A$3:$AI$823,22,FALSE)/100))","v":-0.29666399999999998},{"$f":"IF($A225=\"\",\"\",IF(OR(VLOOKUP($A225,Economática!$A$3:$AI$823,23,FALSE)=0,VLOOKUP($A225,Economática!$A$3:$AI$823,23,FALSE)=\"-\"),1/0,VLOOKUP($A225,Economática!$A$3:$AI$823,23,FALSE)))","v":-13.9},{"$f":"IF($A225=\"\",\"\",IF(OR(VLOOKUP($A225,Economática!$A$3:$AI$823,24,FALSE)=0,VLOOKUP($A225,Economática!$A$3:$AI$823,24,FALSE)=\"-\"),1/0,VLOOKUP($A225,Economática!$A$3:$AI$823,24,FALSE)))","v":-12.5},{"$f":"IF($A225=\"\",\"\",IF(OR(VLOOKUP($A225,Economática!$A$3:$AI$823,25,FALSE)=0,VLOOKUP($A225,Economática!$A$3:$AI$823,25,FALSE)=\"-\"),1/0,VLOOKUP($A225,Economática!$A$3:$AI$823,25,FALSE)))","v":-12.5},{"$f":"IF($A225=\"\",\"\",IF(ISERROR((F225+VLOOKUP($A225,Economática!$A$3:$AI$823,26,FALSE))/Y225),(F225+VLOOKUP($A225,Economática!$A$3:$AI$823,26,FALSE))/Y225,(F225+VLOOKUP($A225,Economática!$A$3:$AI$823,26,FALSE))/Y225))","v":-34.429600000000001},{"$f":"IF($A225=\"\",\"\",IF(OR(-VLOOKUP($A225,Economática!$A$3:$AI$823,27,FALSE)=0,-VLOOKUP($A225,Economática!$A$3:$AI$823,27,FALSE)=\"-\"),1/0,-VLOOKUP($A225,Economática!$A$3:$AI$823,27,FALSE)))","v":{"$error":"#DIV/0!"}},{"$error":"#DIV/0!"},{"$f":"IF($A225=\"\",\"\",IF(OR(VLOOKUP($A225,Economática!$A$3:$AI$823,28,FALSE)=0,VLOOKUP($A225,Economática!$A$3:$AI$823,28,FALSE)=\"-\"),1/0,VLOOKUP($A225,Economática!$A$3:$AI$823,28,FALSE)))","v":0.7},{"$f":"IF($A225=\"\",\"\",IF(OR(VLOOKUP($A225,Economática!$A$3:$AI$823,29,FALSE)=0,VLOOKUP($A225,Economática!$A$3:$AI$823,29,FALSE)=\"-\"),1/0,VLOOKUP($A225,Economática!$A$3:$AI$823,29,FALSE)))","v":25.1},{"$f":"IF($A225=\"\",\"\",IF(OR(VLOOKUP($A225,Economática!$A$3:$AI$823,30,FALSE)/E225=0,VLOOKUP($A225,Economática!$A$3:$AI$823,30,FALSE)/E225=\"-\",VLOOKUP($A225,Economática!$A$3:$AI$823,30,FALSE)/E225<33.33%,VLOOKUP($A225,Economática!$A$3:$AI$823,30,FALSE)/E225>100%),1/0,VLOOKUP($A225,Economática!$A$3:$AI$823,30,FALSE)/E225))","v":0.39761431411530818},"TEKA4",{"$f":"IF($A225=\"\",\"\",IF(OR(VLOOKUP($A225,Economática!$A$3:$AI$823,25,FALSE)=0,VLOOKUP($A225,Economática!$A$3:$AI$823,25,FALSE)=\"-\"),1/0,VLOOKUP($A225,Economática!$A$3:$AI$823,25,FALSE)))","v":-12.5},{"$f":"CONCATENATE(Economática!B227,\" \",Economática!C227)","v":"Teka PN"}]
[{"$f":"IF(Economática!AG228=\"\",\"\",Economática!AG228)","v":"TXRX4"},{"$f":"IF($A226=\"\",\"\",VLOOKUP(VLOOKUP($A226,Economática!$A$3:$AI$823,6,FALSE),Correção!$B$16:$C$36,2,FALSE))","v":"Têxtil"},{"$f":"IF(Economática!B228=\"\",\"\",Economática!B228)","v":"Tex Renaux"},{"$f":"IF($A226=\"\",\"\",IF(OR(VLOOKUP($A226,Economática!$A$3:$AI$823,8,FALSE)=0,VLOOKUP($A226,Economática!$A$3:$AI$823,8,FALSE)=\"-\"),1/0,VLOOKUP($A226,Economática!$A$3:$AI$823,8,FALSE)))","v":2.2999999999999998},{"$f":"IF(A226=\"\",\"\",IF(ISERROR(VLOOKUP(A226,Correção!$B$2:$G$13,9,FALSE)),VLOOKUP($A226,Economática!$A$3:$AI$823,9,FALSE),VLOOKUP(A226,Correção!$B$2:$G$13,9,FALSE)))","v":4.2590000000000003},{"$f":"IF($A226=\"\",\"\",Economática!G228)","v":9.8000000000000007},{"$f":"IF($A226=\"\",\"\",IF(OR(VLOOKUP($A226,Economática!$A$3:$AI$823,10,FALSE)=0,VLOOKUP($A226,Economática!$A$3:$AI$823,10,FALSE)=\"-\"),1/0,VLOOKUP($A226,Economática!$A$3:$AI$823,10,FALSE)))","v":-312.81},{"$f":"IF($A226=\"\",\"\",IF(OR(VLOOKUP($A226,Economática!$A$3:$AI$823,11,FALSE)=0,VLOOKUP($A226,Economática!$A$3:$AI$823,11,FALSE)=\"-\"),1/0,VLOOKUP($A226,Economática!$A$3:$AI$823,11,FALSE)))","v":84.95},{"$f":"IF($A226=\"\",\"\",IF(OR(VLOOKUP($A226,Economática!$A$3:$AI$823,12,FALSE)=0,VLOOKUP($A226,Economática!$A$3:$AI$823,12,FALSE)=\"-\"),1/0,VLOOKUP($A226,Economática!$A$3:$AI$823,12,FALSE)))","v":87.33},{"$f":"IF($A226=\"\",\"\",IF(OR(VLOOKUP($A226,Economática!$A$3:$AI$823,13,FALSE)=0,VLOOKUP($A226,Economática!$A$3:$AI$823,13,FALSE)=\"-\"),1/0,VLOOKUP($A226,Economática!$A$3:$AI$823,13,FALSE)))","v":96.72},{"$f":"IF($A226=\"\",\"\",IF(OR(VLOOKUP($A226,Economática!$A$3:$AI$823,14,FALSE)=0,VLOOKUP($A226,Economática!$A$3:$AI$823,14,FALSE)=\"-\"),1/0,VLOOKUP($A226,Economática!$A$3:$AI$823,14,FALSE)))","v":-4.5999999999999996},{"$f":"IF($A226=\"\",\"\",IF(OR(VLOOKUP($A226,Economática!$A$3:$AI$823,15,FALSE)=0,VLOOKUP($A226,Economática!$A$3:$AI$823,15,FALSE)=\"-\"),1/0,VLOOKUP($A226,Economática!$A$3:$AI$823,15,FALSE)))","v":-5.0599999999999996},{"$f":"IF($A226=\"\",\"\",IF(OR(VLOOKUP($A226,Economática!$A$3:$AI$823,16,FALSE)=0,VLOOKUP($A226,Economática!$A$3:$AI$823,16,FALSE)=\"-\"),1/0,VLOOKUP($A226,Economática!$A$3:$AI$823,16,FALSE)))","v":-9.42},{"$f":"IF($A226=\"\",\"\",IF(OR(VLOOKUP($A226,Economática!$A$3:$AI$823,17,FALSE)=0,VLOOKUP($A226,Economática!$A$3:$AI$823,17,FALSE)=\"-\"),1/0,VLOOKUP($A226,Economática!$A$3:$AI$823,17,FALSE)))","v":-11.44},{"$f":"IF($A226=\"\",\"\",IF(OR(VLOOKUP($A226,Economática!$A$3:$AI$823,18,FALSE)=0,VLOOKUP($A226,Economática!$A$3:$AI$823,18,FALSE)=\"-\"),1/0,VLOOKUP($A226,Economática!$A$3:$AI$823,18,FALSE)))","v":96.72},{"$f":"IF($A226=\"\",\"\",IF(OR(VLOOKUP($A226,Economática!$A$3:$AI$823,19,FALSE)=0,VLOOKUP($A226,Economática!$A$3:$AI$823,19,FALSE)=\"-\"),1/0,VLOOKUP($A226,Economática!$A$3:$AI$823,19,FALSE)))","v":-11.44},{"$f":"IF($A226=\"\",\"\",VLOOKUP($A226,Economática!$A$3:$AI$823,20,FALSE)/E226)","v":-2.6860765437896217},{"$error":"#DIV/0!"},{"$error":"#DIV/0!"},{"$error":"#DIV/0!"},{"$f":"IF($A226=\"\",\"\",IF(OR(VLOOKUP($A226,Economática!$A$3:$AI$823,21,FALSE)/100=0,VLOOKUP($A226,Economática!$A$3:$AI$823,21,FALSE)/100=\"-\"),1/0,VLOOKUP($A226,Economática!$A$3:$AI$823,21,FALSE)/100))","v":{"$error":"#VALUE!"}},{"$f":"IF($A226=\"\",\"\",IF(OR(VLOOKUP($A226,Economática!$A$3:$AI$823,22,FALSE)/100=0,VLOOKUP($A226,Economática!$A$3:$AI$823,22,FALSE)/100=\"-\"),1/0,VLOOKUP($A226,Economática!$A$3:$AI$823,22,FALSE)/100))","v":-0.601692},{"$f":"IF($A226=\"\",\"\",IF(OR(VLOOKUP($A226,Economática!$A$3:$AI$823,23,FALSE)=0,VLOOKUP($A226,Economática!$A$3:$AI$823,23,FALSE)=\"-\"),1/0,VLOOKUP($A226,Economática!$A$3:$AI$823,23,FALSE)))","v":{"$error":"#DIV/0!"}},{"$f":"IF($A226=\"\",\"\",IF(OR(VLOOKUP($A226,Economática!$A$3:$AI$823,24,FALSE)=0,VLOOKUP($A226,Economática!$A$3:$AI$823,24,FALSE)=\"-\"),1/0,VLOOKUP($A226,Economática!$A$3:$AI$823,24,FALSE)))","v":{"$error":"#DIV/0!"}},{"$f":"IF($A226=\"\",\"\",IF(OR(VLOOKUP($A226,Economática!$A$3:$AI$823,25,FALSE)=0,VLOOKUP($A226,Economática!$A$3:$AI$823,25,FALSE)=\"-\"),1/0,VLOOKUP($A226,Economática!$A$3:$AI$823,25,FALSE)))","v":{"$error":"#DIV/0!"}},{"$f":"IF($A226=\"\",\"\",IF(ISERROR((F226+VLOOKUP($A226,Economática!$A$3:$AI$823,26,FALSE))/Y226),(F226+VLOOKUP($A226,Economática!$A$3:$AI$823,26,FALSE))/Y226,(F226+VLOOKUP($A226,Economática!$A$3:$AI$823,26,FALSE))/Y226))","v":{"$error":"#DIV/0!"}},{"$f":"IF($A226=\"\",\"\",IF(OR(-VLOOKUP($A226,Economática!$A$3:$AI$823,27,FALSE)=0,-VLOOKUP($A226,Economática!$A$3:$AI$823,27,FALSE)=\"-\"),1/0,-VLOOKUP($A226,Economática!$A$3:$AI$823,27,FALSE)))","v":{"$error":"#VALUE!"}},{"$error":"#VALUE!"},{"$f":"IF($A226=\"\",\"\",IF(OR(VLOOKUP($A226,Economática!$A$3:$AI$823,28,FALSE)=0,VLOOKUP($A226,Economática!$A$3:$AI$823,28,FALSE)=\"-\"),1/0,VLOOKUP($A226,Economática!$A$3:$AI$823,28,FALSE)))","v":-18.399999999999999},{"$f":"IF($A226=\"\",\"\",IF(OR(VLOOKUP($A226,Economática!$A$3:$AI$823,29,FALSE)=0,VLOOKUP($A226,Economática!$A$3:$AI$823,29,FALSE)=\"-\"),1/0,VLOOKUP($A226,Economática!$A$3:$AI$823,29,FALSE)))","v":-0.4},{"$f":"IF($A226=\"\",\"\",IF(OR(VLOOKUP($A226,Economática!$A$3:$AI$823,30,FALSE)/E226=0,VLOOKUP($A226,Economática!$A$3:$AI$823,30,FALSE)/E226=\"-\",VLOOKUP($A226,Economática!$A$3:$AI$823,30,FALSE)/E226<33.33%,VLOOKUP($A226,Economática!$A$3:$AI$823,30,FALSE)/E226>100%),1/0,VLOOKUP($A226,Economática!$A$3:$AI$823,30,FALSE)/E226))","v":0.35219535102136651},"TXRX4",{"$f":"IF($A226=\"\",\"\",IF(OR(VLOOKUP($A226,Economática!$A$3:$AI$823,25,FALSE)=0,VLOOKUP($A226,Economática!$A$3:$AI$823,25,FALSE)=\"-\"),1/0,VLOOKUP($A226,Economática!$A$3:$AI$823,25,FALSE)))","v":{"$error":"#DIV/0!"}},{"$f":"CONCATENATE(Economática!B228,\" \",Economática!C228)","v":"Tex Renaux PN"}]
[{"$f":"IF(Economática!AG229=\"\",\"\",Economática!AG229)","v":"TPIS3"},{"$f":"IF($A227=\"\",\"\",VLOOKUP(VLOOKUP($A227,Economática!$A$3:$AI$823,6,FALSE),Correção!$B$16:$C$36,2,FALSE))","v":"Transportes"},{"$f":"IF(Economática!B229=\"\",\"\",Economática!B229)","v":"Triunfo Part"},{"$f":"IF($A227=\"\",\"\",IF(OR(VLOOKUP($A227,Economática!$A$3:$AI$823,8,FALSE)=0,VLOOKUP($A227,Economática!$A$3:$AI$823,8,FALSE)=\"-\"),1/0,VLOOKUP($A227,Economática!$A$3:$AI$823,8,FALSE)))","v":1.74},{"$f":"IF(A227=\"\",\"\",IF(ISERROR(VLOOKUP(A227,Correção!$B$2:$G$13,9,FALSE)),VLOOKUP($A227,Economática!$A$3:$AI$823,9,FALSE),VLOOKUP(A227,Correção!$B$2:$G$13,9,FALSE)))","v":173.50700000000001},{"$f":"IF($A227=\"\",\"\",Economática!G229)","v":301.89999999999998},{"$f":"IF($A227=\"\",\"\",IF(OR(VLOOKUP($A227,Economática!$A$3:$AI$823,10,FALSE)=0,VLOOKUP($A227,Economática!$A$3:$AI$823,10,FALSE)=\"-\"),1/0,VLOOKUP($A227,Economática!$A$3:$AI$823,10,FALSE)))","v":1170.1199999999999},{"$f":"IF($A227=\"\",\"\",IF(OR(VLOOKUP($A227,Economática!$A$3:$AI$823,11,FALSE)=0,VLOOKUP($A227,Economática!$A$3:$AI$823,11,FALSE)=\"-\"),1/0,VLOOKUP($A227,Economática!$A$3:$AI$823,11,FALSE)))","v":1492.74},{"$f":"IF($A227=\"\",\"\",IF(OR(VLOOKUP($A227,Economática!$A$3:$AI$823,12,FALSE)=0,VLOOKUP($A227,Economática!$A$3:$AI$823,12,FALSE)=\"-\"),1/0,VLOOKUP($A227,Economática!$A$3:$AI$823,12,FALSE)))","v":{"$error":"#DIV/0!"}},{"$f":"IF($A227=\"\",\"\",IF(OR(VLOOKUP($A227,Economática!$A$3:$AI$823,13,FALSE)=0,VLOOKUP($A227,Economática!$A$3:$AI$823,13,FALSE)=\"-\"),1/0,VLOOKUP($A227,Economática!$A$3:$AI$823,13,FALSE)))","v":-6.64},{"$f":"IF($A227=\"\",\"\",IF(OR(VLOOKUP($A227,Economática!$A$3:$AI$823,14,FALSE)=0,VLOOKUP($A227,Economática!$A$3:$AI$823,14,FALSE)=\"-\"),1/0,VLOOKUP($A227,Economática!$A$3:$AI$823,14,FALSE)))","v":25.8},{"$f":"IF($A227=\"\",\"\",IF(OR(VLOOKUP($A227,Economática!$A$3:$AI$823,15,FALSE)=0,VLOOKUP($A227,Economática!$A$3:$AI$823,15,FALSE)=\"-\"),1/0,VLOOKUP($A227,Economática!$A$3:$AI$823,15,FALSE)))","v":-14.8},{"$f":"IF($A227=\"\",\"\",IF(OR(VLOOKUP($A227,Economática!$A$3:$AI$823,16,FALSE)=0,VLOOKUP($A227,Economática!$A$3:$AI$823,16,FALSE)=\"-\"),1/0,VLOOKUP($A227,Economática!$A$3:$AI$823,16,FALSE)))","v":-71.33},{"$f":"IF($A227=\"\",\"\",IF(OR(VLOOKUP($A227,Economática!$A$3:$AI$823,17,FALSE)=0,VLOOKUP($A227,Economática!$A$3:$AI$823,17,FALSE)=\"-\"),1/0,VLOOKUP($A227,Economática!$A$3:$AI$823,17,FALSE)))","v":{"$error":"#DIV/0!"}},{"$f":"IF($A227=\"\",\"\",IF(OR(VLOOKUP($A227,Economática!$A$3:$AI$823,18,FALSE)=0,VLOOKUP($A227,Economática!$A$3:$AI$823,18,FALSE)=\"-\"),1/0,VLOOKUP($A227,Economática!$A$3:$AI$823,18,FALSE)))","v":-6.64},{"$f":"IF($A227=\"\",\"\",IF(OR(VLOOKUP($A227,Economática!$A$3:$AI$823,19,FALSE)=0,VLOOKUP($A227,Economática!$A$3:$AI$823,19,FALSE)=\"-\"),1/0,VLOOKUP($A227,Economática!$A$3:$AI$823,19,FALSE)))","v":{"$error":"#DIV/0!"}},{"$f":"IF($A227=\"\",\"\",VLOOKUP($A227,Economática!$A$3:$AI$823,20,FALSE)/E227)","v":4.2785017319185972},6.7439354031825793,0.2580095887601272,0.40668442109517072,{"$f":"IF($A227=\"\",\"\",IF(OR(VLOOKUP($A227,Economática!$A$3:$AI$823,21,FALSE)/100=0,VLOOKUP($A227,Economática!$A$3:$AI$823,21,FALSE)/100=\"-\"),1/0,VLOOKUP($A227,Economática!$A$3:$AI$823,21,FALSE)/100))","v":1.2558830000000001},{"$f":"IF($A227=\"\",\"\",IF(OR(VLOOKUP($A227,Economática!$A$3:$AI$823,22,FALSE)/100=0,VLOOKUP($A227,Economática!$A$3:$AI$823,22,FALSE)/100=\"-\"),1/0,VLOOKUP($A227,Economática!$A$3:$AI$823,22,FALSE)/100))","v":1.349253},{"$f":"IF($A227=\"\",\"\",IF(OR(VLOOKUP($A227,Economática!$A$3:$AI$823,23,FALSE)=0,VLOOKUP($A227,Economática!$A$3:$AI$823,23,FALSE)=\"-\"),1/0,VLOOKUP($A227,Economática!$A$3:$AI$823,23,FALSE)))","v":784.1},{"$f":"IF($A227=\"\",\"\",IF(OR(VLOOKUP($A227,Economática!$A$3:$AI$823,24,FALSE)=0,VLOOKUP($A227,Economática!$A$3:$AI$823,24,FALSE)=\"-\"),1/0,VLOOKUP($A227,Economática!$A$3:$AI$823,24,FALSE)))","v":{"$error":"#DIV/0!"}},{"$f":"IF($A227=\"\",\"\",IF(OR(VLOOKUP($A227,Economática!$A$3:$AI$823,25,FALSE)=0,VLOOKUP($A227,Economática!$A$3:$AI$823,25,FALSE)=\"-\"),1/0,VLOOKUP($A227,Economática!$A$3:$AI$823,25,FALSE)))","v":1284.5},{"$f":"IF($A227=\"\",\"\",IF(ISERROR((F227+VLOOKUP($A227,Economática!$A$3:$AI$823,26,FALSE))/Y227),(F227+VLOOKUP($A227,Economática!$A$3:$AI$823,26,FALSE))/Y227,(F227+VLOOKUP($A227,Economática!$A$3:$AI$823,26,FALSE))/Y227))","v":1.5786547294667186},{"$f":"IF($A227=\"\",\"\",IF(OR(-VLOOKUP($A227,Economática!$A$3:$AI$823,27,FALSE)=0,-VLOOKUP($A227,Economática!$A$3:$AI$823,27,FALSE)=\"-\"),1/0,-VLOOKUP($A227,Economática!$A$3:$AI$823,27,FALSE)))","v":80.209999999999994},0.26568400132494202,{"$f":"IF($A227=\"\",\"\",IF(OR(VLOOKUP($A227,Economática!$A$3:$AI$823,28,FALSE)=0,VLOOKUP($A227,Economática!$A$3:$AI$823,28,FALSE)=\"-\"),1/0,VLOOKUP($A227,Economática!$A$3:$AI$823,28,FALSE)))","v":-3.9},{"$f":"IF($A227=\"\",\"\",IF(OR(VLOOKUP($A227,Economática!$A$3:$AI$823,29,FALSE)=0,VLOOKUP($A227,Economática!$A$3:$AI$823,29,FALSE)=\"-\"),1/0,VLOOKUP($A227,Economática!$A$3:$AI$823,29,FALSE)))","v":-43.9},{"$f":"IF($A227=\"\",\"\",IF(OR(VLOOKUP($A227,Economática!$A$3:$AI$823,30,FALSE)/E227=0,VLOOKUP($A227,Economática!$A$3:$AI$823,30,FALSE)/E227=\"-\",VLOOKUP($A227,Economática!$A$3:$AI$823,30,FALSE)/E227<33.33%,VLOOKUP($A227,Economática!$A$3:$AI$823,30,FALSE)/E227>100%),1/0,VLOOKUP($A227,Economática!$A$3:$AI$823,30,FALSE)/E227))","v":{"$error":"#DIV/0!"}},"TPIS3",{"$f":"IF($A227=\"\",\"\",IF(OR(VLOOKUP($A227,Economática!$A$3:$AI$823,25,FALSE)=0,VLOOKUP($A227,Economática!$A$3:$AI$823,25,FALSE)=\"-\"),1/0,VLOOKUP($A227,Economática!$A$3:$AI$823,25,FALSE)))","v":1284.5},{"$f":"CONCATENATE(Economática!B229,\" \",Economática!C229)","v":"Triunfo Part ON"}]
[{"$f":"IF(Economática!AG230=\"\",\"\",Economática!AG230)","v":"ECOR3"},{"$f":"IF($A228=\"\",\"\",VLOOKUP(VLOOKUP($A228,Economática!$A$3:$AI$823,6,FALSE),Correção!$B$16:$C$36,2,FALSE))","v":"Transportes"},{"$f":"IF(Economática!B230=\"\",\"\",Economática!B230)","v":"Ecorodovias"},{"$f":"IF($A228=\"\",\"\",IF(OR(VLOOKUP($A228,Economática!$A$3:$AI$823,8,FALSE)=0,VLOOKUP($A228,Economática!$A$3:$AI$823,8,FALSE)=\"-\"),1/0,VLOOKUP($A228,Economática!$A$3:$AI$823,8,FALSE)))","v":9.59},{"$f":"IF(A228=\"\",\"\",IF(ISERROR(VLOOKUP(A228,Correção!$B$2:$G$13,9,FALSE)),VLOOKUP($A228,Economática!$A$3:$AI$823,9,FALSE),VLOOKUP(A228,Correção!$B$2:$G$13,9,FALSE)))","v":556.46299999999997},{"$f":"IF($A228=\"\",\"\",Economática!G230)","v":5336.48},{"$f":"IF($A228=\"\",\"\",IF(OR(VLOOKUP($A228,Economática!$A$3:$AI$823,10,FALSE)=0,VLOOKUP($A228,Economática!$A$3:$AI$823,10,FALSE)=\"-\"),1/0,VLOOKUP($A228,Economática!$A$3:$AI$823,10,FALSE)))","v":640.32000000000005},{"$f":"IF($A228=\"\",\"\",IF(OR(VLOOKUP($A228,Economática!$A$3:$AI$823,11,FALSE)=0,VLOOKUP($A228,Economática!$A$3:$AI$823,11,FALSE)=\"-\"),1/0,VLOOKUP($A228,Economática!$A$3:$AI$823,11,FALSE)))","v":3200.7},{"$f":"IF($A228=\"\",\"\",IF(OR(VLOOKUP($A228,Economática!$A$3:$AI$823,12,FALSE)=0,VLOOKUP($A228,Economática!$A$3:$AI$823,12,FALSE)=\"-\"),1/0,VLOOKUP($A228,Economática!$A$3:$AI$823,12,FALSE)))","v":3169.27},{"$f":"IF($A228=\"\",\"\",IF(OR(VLOOKUP($A228,Economática!$A$3:$AI$823,13,FALSE)=0,VLOOKUP($A228,Economática!$A$3:$AI$823,13,FALSE)=\"-\"),1/0,VLOOKUP($A228,Economática!$A$3:$AI$823,13,FALSE)))","v":392.49},{"$f":"IF($A228=\"\",\"\",IF(OR(VLOOKUP($A228,Economática!$A$3:$AI$823,14,FALSE)=0,VLOOKUP($A228,Economática!$A$3:$AI$823,14,FALSE)=\"-\"),1/0,VLOOKUP($A228,Economática!$A$3:$AI$823,14,FALSE)))","v":145.58000000000001},{"$f":"IF($A228=\"\",\"\",IF(OR(VLOOKUP($A228,Economática!$A$3:$AI$823,15,FALSE)=0,VLOOKUP($A228,Economática!$A$3:$AI$823,15,FALSE)=\"-\"),1/0,VLOOKUP($A228,Economática!$A$3:$AI$823,15,FALSE)))","v":224.4},{"$f":"IF($A228=\"\",\"\",IF(OR(VLOOKUP($A228,Economática!$A$3:$AI$823,16,FALSE)=0,VLOOKUP($A228,Economática!$A$3:$AI$823,16,FALSE)=\"-\"),1/0,VLOOKUP($A228,Economática!$A$3:$AI$823,16,FALSE)))","v":317.93},{"$f":"IF($A228=\"\",\"\",IF(OR(VLOOKUP($A228,Economática!$A$3:$AI$823,17,FALSE)=0,VLOOKUP($A228,Economática!$A$3:$AI$823,17,FALSE)=\"-\"),1/0,VLOOKUP($A228,Economática!$A$3:$AI$823,17,FALSE)))","v":374.51},{"$f":"IF($A228=\"\",\"\",IF(OR(VLOOKUP($A228,Economática!$A$3:$AI$823,18,FALSE)=0,VLOOKUP($A228,Economática!$A$3:$AI$823,18,FALSE)=\"-\"),1/0,VLOOKUP($A228,Economática!$A$3:$AI$823,18,FALSE)))","v":392.49},{"$f":"IF($A228=\"\",\"\",IF(OR(VLOOKUP($A228,Economática!$A$3:$AI$823,19,FALSE)=0,VLOOKUP($A228,Economática!$A$3:$AI$823,19,FALSE)=\"-\"),1/0,VLOOKUP($A228,Economática!$A$3:$AI$823,19,FALSE)))","v":374.51},{"$f":"IF($A228=\"\",\"\",VLOOKUP($A228,Economática!$A$3:$AI$823,20,FALSE)/E228)","v":0.67301869126968017},1.1506964524146261,8.3340832240129927,14.249232784171316,{"$f":"IF($A228=\"\",\"\",IF(OR(VLOOKUP($A228,Economática!$A$3:$AI$823,21,FALSE)/100=0,VLOOKUP($A228,Economática!$A$3:$AI$823,21,FALSE)/100=\"-\"),1/0,VLOOKUP($A228,Economática!$A$3:$AI$823,21,FALSE)/100))","v":0.50508900000000001},{"$f":"IF($A228=\"\",\"\",IF(OR(VLOOKUP($A228,Economática!$A$3:$AI$823,22,FALSE)/100=0,VLOOKUP($A228,Economática!$A$3:$AI$823,22,FALSE)/100=\"-\"),1/0,VLOOKUP($A228,Economática!$A$3:$AI$823,22,FALSE)/100))","v":7.4907960000000005},{"$f":"IF($A228=\"\",\"\",IF(OR(VLOOKUP($A228,Economática!$A$3:$AI$823,23,FALSE)=0,VLOOKUP($A228,Economática!$A$3:$AI$823,23,FALSE)=\"-\"),1/0,VLOOKUP($A228,Economática!$A$3:$AI$823,23,FALSE)))","v":1630.2},{"$f":"IF($A228=\"\",\"\",IF(OR(VLOOKUP($A228,Economática!$A$3:$AI$823,24,FALSE)=0,VLOOKUP($A228,Economática!$A$3:$AI$823,24,FALSE)=\"-\"),1/0,VLOOKUP($A228,Economática!$A$3:$AI$823,24,FALSE)))","v":1617.9},{"$f":"IF($A228=\"\",\"\",IF(OR(VLOOKUP($A228,Economática!$A$3:$AI$823,25,FALSE)=0,VLOOKUP($A228,Economática!$A$3:$AI$823,25,FALSE)=\"-\"),1/0,VLOOKUP($A228,Economática!$A$3:$AI$823,25,FALSE)))","v":1617.9},{"$f":"IF($A228=\"\",\"\",IF(ISERROR((F228+VLOOKUP($A228,Economática!$A$3:$AI$823,26,FALSE))/Y228),(F228+VLOOKUP($A228,Economática!$A$3:$AI$823,26,FALSE))/Y228,(F228+VLOOKUP($A228,Economática!$A$3:$AI$823,26,FALSE))/Y228))","v":6.2630440694727723},{"$f":"IF($A228=\"\",\"\",IF(OR(-VLOOKUP($A228,Economática!$A$3:$AI$823,27,FALSE)=0,-VLOOKUP($A228,Economática!$A$3:$AI$823,27,FALSE)=\"-\"),1/0,-VLOOKUP($A228,Economática!$A$3:$AI$823,27,FALSE)))","v":401.83},7.5298698767727046E-2,{"$f":"IF($A228=\"\",\"\",IF(OR(VLOOKUP($A228,Economática!$A$3:$AI$823,28,FALSE)=0,VLOOKUP($A228,Economática!$A$3:$AI$823,28,FALSE)=\"-\"),1/0,VLOOKUP($A228,Economática!$A$3:$AI$823,28,FALSE)))","v":-15.3},{"$f":"IF($A228=\"\",\"\",IF(OR(VLOOKUP($A228,Economática!$A$3:$AI$823,29,FALSE)=0,VLOOKUP($A228,Economática!$A$3:$AI$823,29,FALSE)=\"-\"),1/0,VLOOKUP($A228,Economática!$A$3:$AI$823,29,FALSE)))","v":-15.9},{"$f":"IF($A228=\"\",\"\",IF(OR(VLOOKUP($A228,Economática!$A$3:$AI$823,30,FALSE)/E228=0,VLOOKUP($A228,Economática!$A$3:$AI$823,30,FALSE)/E228=\"-\",VLOOKUP($A228,Economática!$A$3:$AI$823,30,FALSE)/E228<33.33%,VLOOKUP($A228,Economática!$A$3:$AI$823,30,FALSE)/E228>100%),1/0,VLOOKUP($A228,Economática!$A$3:$AI$823,30,FALSE)/E228))","v":{"$error":"#DIV/0!"}},"ECOR3",{"$f":"IF($A228=\"\",\"\",IF(OR(VLOOKUP($A228,Economática!$A$3:$AI$823,25,FALSE)=0,VLOOKUP($A228,Economática!$A$3:$AI$823,25,FALSE)=\"-\"),1/0,VLOOKUP($A228,Economática!$A$3:$AI$823,25,FALSE)))","v":1617.9},{"$f":"CONCATENATE(Economática!B230,\" \",Economática!C230)","v":"Ecorodovias ON"}]
[{"$f":"IF(Economática!AG231=\"\",\"\",Economática!AG231)","v":"CVCB3"},{"$f":"IF($A229=\"\",\"\",VLOOKUP(VLOOKUP($A229,Economática!$A$3:$AI$823,6,FALSE),Correção!$B$16:$C$36,2,FALSE))","v":"Transportes"},{"$f":"IF(Economática!B231=\"\",\"\",Economática!B231)","v":"Cvc Brasil"},{"$f":"IF($A229=\"\",\"\",IF(OR(VLOOKUP($A229,Economática!$A$3:$AI$823,8,FALSE)=0,VLOOKUP($A229,Economática!$A$3:$AI$823,8,FALSE)=\"-\"),1/0,VLOOKUP($A229,Economática!$A$3:$AI$823,8,FALSE)))","v":54.75},{"$f":"IF(A229=\"\",\"\",IF(ISERROR(VLOOKUP(A229,Correção!$B$2:$G$13,9,FALSE)),VLOOKUP($A229,Economática!$A$3:$AI$823,9,FALSE),VLOOKUP(A229,Correção!$B$2:$G$13,9,FALSE)))","v":144.95699999999999},{"$f":"IF($A229=\"\",\"\",Economática!G231)","v":7936.38},{"$f":"IF($A229=\"\",\"\",IF(OR(VLOOKUP($A229,Economática!$A$3:$AI$823,10,FALSE)=0,VLOOKUP($A229,Economática!$A$3:$AI$823,10,FALSE)=\"-\"),1/0,VLOOKUP($A229,Economática!$A$3:$AI$823,10,FALSE)))","v":1087.94},{"$f":"IF($A229=\"\",\"\",IF(OR(VLOOKUP($A229,Economática!$A$3:$AI$823,11,FALSE)=0,VLOOKUP($A229,Economática!$A$3:$AI$823,11,FALSE)=\"-\"),1/0,VLOOKUP($A229,Economática!$A$3:$AI$823,11,FALSE)))","v":1185.1500000000001},{"$f":"IF($A229=\"\",\"\",IF(OR(VLOOKUP($A229,Economática!$A$3:$AI$823,12,FALSE)=0,VLOOKUP($A229,Economática!$A$3:$AI$823,12,FALSE)=\"-\"),1/0,VLOOKUP($A229,Economática!$A$3:$AI$823,12,FALSE)))","v":1692.57},{"$f":"IF($A229=\"\",\"\",IF(OR(VLOOKUP($A229,Economática!$A$3:$AI$823,13,FALSE)=0,VLOOKUP($A229,Economática!$A$3:$AI$823,13,FALSE)=\"-\"),1/0,VLOOKUP($A229,Economática!$A$3:$AI$823,13,FALSE)))","v":223.89},{"$f":"IF($A229=\"\",\"\",IF(OR(VLOOKUP($A229,Economática!$A$3:$AI$823,14,FALSE)=0,VLOOKUP($A229,Economática!$A$3:$AI$823,14,FALSE)=\"-\"),1/0,VLOOKUP($A229,Economática!$A$3:$AI$823,14,FALSE)))","v":81.52},{"$f":"IF($A229=\"\",\"\",IF(OR(VLOOKUP($A229,Economática!$A$3:$AI$823,15,FALSE)=0,VLOOKUP($A229,Economática!$A$3:$AI$823,15,FALSE)=\"-\"),1/0,VLOOKUP($A229,Economática!$A$3:$AI$823,15,FALSE)))","v":106.25},{"$f":"IF($A229=\"\",\"\",IF(OR(VLOOKUP($A229,Economática!$A$3:$AI$823,16,FALSE)=0,VLOOKUP($A229,Economática!$A$3:$AI$823,16,FALSE)=\"-\"),1/0,VLOOKUP($A229,Economática!$A$3:$AI$823,16,FALSE)))","v":188.81},{"$f":"IF($A229=\"\",\"\",IF(OR(VLOOKUP($A229,Economática!$A$3:$AI$823,17,FALSE)=0,VLOOKUP($A229,Economática!$A$3:$AI$823,17,FALSE)=\"-\"),1/0,VLOOKUP($A229,Economática!$A$3:$AI$823,17,FALSE)))","v":270.27999999999997},{"$f":"IF($A229=\"\",\"\",IF(OR(VLOOKUP($A229,Economática!$A$3:$AI$823,18,FALSE)=0,VLOOKUP($A229,Economática!$A$3:$AI$823,18,FALSE)=\"-\"),1/0,VLOOKUP($A229,Economática!$A$3:$AI$823,18,FALSE)))","v":223.89},{"$f":"IF($A229=\"\",\"\",IF(OR(VLOOKUP($A229,Economática!$A$3:$AI$823,19,FALSE)=0,VLOOKUP($A229,Economática!$A$3:$AI$823,19,FALSE)=\"-\"),1/0,VLOOKUP($A229,Economática!$A$3:$AI$823,19,FALSE)))","v":270.27999999999997},{"$f":"IF($A229=\"\",\"\",VLOOKUP($A229,Economática!$A$3:$AI$823,20,FALSE)/E229)","v":1.8645529363880322},7.5052601806052834,7.2948836792470164,29.363607185141337,{"$f":"IF($A229=\"\",\"\",IF(OR(VLOOKUP($A229,Economática!$A$3:$AI$823,21,FALSE)/100=0,VLOOKUP($A229,Economática!$A$3:$AI$823,21,FALSE)/100=\"-\"),1/0,VLOOKUP($A229,Economática!$A$3:$AI$823,21,FALSE)/100))","v":0.33288899999999999},{"$f":"IF($A229=\"\",\"\",IF(OR(VLOOKUP($A229,Economática!$A$3:$AI$823,22,FALSE)/100=0,VLOOKUP($A229,Economática!$A$3:$AI$823,22,FALSE)/100=\"-\"),1/0,VLOOKUP($A229,Economática!$A$3:$AI$823,22,FALSE)/100))","v":0.95715500000000009},{"$f":"IF($A229=\"\",\"\",IF(OR(VLOOKUP($A229,Economática!$A$3:$AI$823,23,FALSE)=0,VLOOKUP($A229,Economática!$A$3:$AI$823,23,FALSE)=\"-\"),1/0,VLOOKUP($A229,Economática!$A$3:$AI$823,23,FALSE)))","v":561.20000000000005},{"$f":"IF($A229=\"\",\"\",IF(OR(VLOOKUP($A229,Economática!$A$3:$AI$823,24,FALSE)=0,VLOOKUP($A229,Economática!$A$3:$AI$823,24,FALSE)=\"-\"),1/0,VLOOKUP($A229,Economática!$A$3:$AI$823,24,FALSE)))","v":659.1},{"$f":"IF($A229=\"\",\"\",IF(OR(VLOOKUP($A229,Economática!$A$3:$AI$823,25,FALSE)=0,VLOOKUP($A229,Economática!$A$3:$AI$823,25,FALSE)=\"-\"),1/0,VLOOKUP($A229,Economática!$A$3:$AI$823,25,FALSE)))","v":659.1},{"$f":"IF($A229=\"\",\"\",IF(ISERROR((F229+VLOOKUP($A229,Economática!$A$3:$AI$823,26,FALSE))/Y229),(F229+VLOOKUP($A229,Economática!$A$3:$AI$823,26,FALSE))/Y229,(F229+VLOOKUP($A229,Economática!$A$3:$AI$823,26,FALSE))/Y229))","v":13.660606888180853},{"$f":"IF($A229=\"\",\"\",IF(OR(-VLOOKUP($A229,Economática!$A$3:$AI$823,27,FALSE)=0,-VLOOKUP($A229,Economática!$A$3:$AI$823,27,FALSE)=\"-\"),1/0,-VLOOKUP($A229,Economática!$A$3:$AI$823,27,FALSE)))","v":72.59},9.1464874413775561E-3,{"$f":"IF($A229=\"\",\"\",IF(OR(VLOOKUP($A229,Economática!$A$3:$AI$823,28,FALSE)=0,VLOOKUP($A229,Economática!$A$3:$AI$823,28,FALSE)=\"-\"),1/0,VLOOKUP($A229,Economática!$A$3:$AI$823,28,FALSE)))","v":-6.3},{"$f":"IF($A229=\"\",\"\",IF(OR(VLOOKUP($A229,Economática!$A$3:$AI$823,29,FALSE)=0,VLOOKUP($A229,Economática!$A$3:$AI$823,29,FALSE)=\"-\"),1/0,VLOOKUP($A229,Economática!$A$3:$AI$823,29,FALSE)))","v":13.9},{"$f":"IF($A229=\"\",\"\",IF(OR(VLOOKUP($A229,Economática!$A$3:$AI$823,30,FALSE)/E229=0,VLOOKUP($A229,Economática!$A$3:$AI$823,30,FALSE)/E229=\"-\",VLOOKUP($A229,Economática!$A$3:$AI$823,30,FALSE)/E229<33.33%,VLOOKUP($A229,Economática!$A$3:$AI$823,30,FALSE)/E229>100%),1/0,VLOOKUP($A229,Economática!$A$3:$AI$823,30,FALSE)/E229))","v":{"$error":"#DIV/0!"}},"CVCB3",{"$f":"IF($A229=\"\",\"\",IF(OR(VLOOKUP($A229,Economática!$A$3:$AI$823,25,FALSE)=0,VLOOKUP($A229,Economática!$A$3:$AI$823,25,FALSE)=\"-\"),1/0,VLOOKUP($A229,Economática!$A$3:$AI$823,25,FALSE)))","v":659.1},{"$f":"CONCATENATE(Economática!B231,\" \",Economática!C231)","v":"Cvc Brasil ON"}]
[{"$f":"IF(Economática!AG232=\"\",\"\",Economática!AG232)","v":"TGMA3"},{"$f":"IF($A230=\"\",\"\",VLOOKUP(VLOOKUP($A230,Economática!$A$3:$AI$823,6,FALSE),Correção!$B$16:$C$36,2,FALSE))","v":"Transportes"},{"$f":"IF(Economática!B232=\"\",\"\",Economática!B232)","v":"Tegma"},{"$f":"IF($A230=\"\",\"\",IF(OR(VLOOKUP($A230,Economática!$A$3:$AI$823,8,FALSE)=0,VLOOKUP($A230,Economática!$A$3:$AI$823,8,FALSE)=\"-\"),1/0,VLOOKUP($A230,Economática!$A$3:$AI$823,8,FALSE)))","v":26.38},{"$f":"IF(A230=\"\",\"\",IF(ISERROR(VLOOKUP(A230,Correção!$B$2:$G$13,9,FALSE)),VLOOKUP($A230,Economática!$A$3:$AI$823,9,FALSE),VLOOKUP(A230,Correção!$B$2:$G$13,9,FALSE)))","v":65.938000000000002},{"$f":"IF($A230=\"\",\"\",Economática!G232)","v":1739.44},{"$f":"IF($A230=\"\",\"\",IF(OR(VLOOKUP($A230,Economática!$A$3:$AI$823,10,FALSE)=0,VLOOKUP($A230,Economática!$A$3:$AI$823,10,FALSE)=\"-\"),1/0,VLOOKUP($A230,Economática!$A$3:$AI$823,10,FALSE)))","v":484.37},{"$f":"IF($A230=\"\",\"\",IF(OR(VLOOKUP($A230,Economática!$A$3:$AI$823,11,FALSE)=0,VLOOKUP($A230,Economática!$A$3:$AI$823,11,FALSE)=\"-\"),1/0,VLOOKUP($A230,Economática!$A$3:$AI$823,11,FALSE)))","v":1083.98},{"$f":"IF($A230=\"\",\"\",IF(OR(VLOOKUP($A230,Economática!$A$3:$AI$823,12,FALSE)=0,VLOOKUP($A230,Economática!$A$3:$AI$823,12,FALSE)=\"-\"),1/0,VLOOKUP($A230,Economática!$A$3:$AI$823,12,FALSE)))","v":1253.78},{"$f":"IF($A230=\"\",\"\",IF(OR(VLOOKUP($A230,Economática!$A$3:$AI$823,13,FALSE)=0,VLOOKUP($A230,Economática!$A$3:$AI$823,13,FALSE)=\"-\"),1/0,VLOOKUP($A230,Economática!$A$3:$AI$823,13,FALSE)))","v":103.76},{"$f":"IF($A230=\"\",\"\",IF(OR(VLOOKUP($A230,Economática!$A$3:$AI$823,14,FALSE)=0,VLOOKUP($A230,Economática!$A$3:$AI$823,14,FALSE)=\"-\"),1/0,VLOOKUP($A230,Economática!$A$3:$AI$823,14,FALSE)))","v":14},{"$f":"IF($A230=\"\",\"\",IF(OR(VLOOKUP($A230,Economática!$A$3:$AI$823,15,FALSE)=0,VLOOKUP($A230,Economática!$A$3:$AI$823,15,FALSE)=\"-\"),1/0,VLOOKUP($A230,Economática!$A$3:$AI$823,15,FALSE)))","v":42.18},{"$f":"IF($A230=\"\",\"\",IF(OR(VLOOKUP($A230,Economática!$A$3:$AI$823,16,FALSE)=0,VLOOKUP($A230,Economática!$A$3:$AI$823,16,FALSE)=\"-\"),1/0,VLOOKUP($A230,Economática!$A$3:$AI$823,16,FALSE)))","v":73.290000000000006},{"$f":"IF($A230=\"\",\"\",IF(OR(VLOOKUP($A230,Economática!$A$3:$AI$823,17,FALSE)=0,VLOOKUP($A230,Economática!$A$3:$AI$823,17,FALSE)=\"-\"),1/0,VLOOKUP($A230,Economática!$A$3:$AI$823,17,FALSE)))","v":108.25},{"$f":"IF($A230=\"\",\"\",IF(OR(VLOOKUP($A230,Economática!$A$3:$AI$823,18,FALSE)=0,VLOOKUP($A230,Economática!$A$3:$AI$823,18,FALSE)=\"-\"),1/0,VLOOKUP($A230,Economática!$A$3:$AI$823,18,FALSE)))","v":103.76},{"$f":"IF($A230=\"\",\"\",IF(OR(VLOOKUP($A230,Economática!$A$3:$AI$823,19,FALSE)=0,VLOOKUP($A230,Economática!$A$3:$AI$823,19,FALSE)=\"-\"),1/0,VLOOKUP($A230,Economática!$A$3:$AI$823,19,FALSE)))","v":108.25},{"$f":"IF($A230=\"\",\"\",VLOOKUP($A230,Economática!$A$3:$AI$823,20,FALSE)/E230)","v":1.6416937122751676},7.3458400315447845,3.5911481718520966,16.068770808314088,{"$f":"IF($A230=\"\",\"\",IF(OR(VLOOKUP($A230,Economática!$A$3:$AI$823,21,FALSE)/100=0,VLOOKUP($A230,Economática!$A$3:$AI$823,21,FALSE)/100=\"-\"),1/0,VLOOKUP($A230,Economática!$A$3:$AI$823,21,FALSE)/100))","v":0.24119299999999999},{"$f":"IF($A230=\"\",\"\",IF(OR(VLOOKUP($A230,Economática!$A$3:$AI$823,22,FALSE)/100=0,VLOOKUP($A230,Economática!$A$3:$AI$823,22,FALSE)/100=\"-\"),1/0,VLOOKUP($A230,Economática!$A$3:$AI$823,22,FALSE)/100))","v":0.15826299999999999},{"$f":"IF($A230=\"\",\"\",IF(OR(VLOOKUP($A230,Economática!$A$3:$AI$823,23,FALSE)=0,VLOOKUP($A230,Economática!$A$3:$AI$823,23,FALSE)=\"-\"),1/0,VLOOKUP($A230,Economática!$A$3:$AI$823,23,FALSE)))","v":136.9},{"$f":"IF($A230=\"\",\"\",IF(OR(VLOOKUP($A230,Economática!$A$3:$AI$823,24,FALSE)=0,VLOOKUP($A230,Economática!$A$3:$AI$823,24,FALSE)=\"-\"),1/0,VLOOKUP($A230,Economática!$A$3:$AI$823,24,FALSE)))","v":182.7},{"$f":"IF($A230=\"\",\"\",IF(OR(VLOOKUP($A230,Economática!$A$3:$AI$823,25,FALSE)=0,VLOOKUP($A230,Economática!$A$3:$AI$823,25,FALSE)=\"-\"),1/0,VLOOKUP($A230,Economática!$A$3:$AI$823,25,FALSE)))","v":182.7},{"$f":"IF($A230=\"\",\"\",IF(ISERROR((F230+VLOOKUP($A230,Economática!$A$3:$AI$823,26,FALSE))/Y230),(F230+VLOOKUP($A230,Economática!$A$3:$AI$823,26,FALSE))/Y230,(F230+VLOOKUP($A230,Economática!$A$3:$AI$823,26,FALSE))/Y230))","v":9.9403284072249587},{"$f":"IF($A230=\"\",\"\",IF(OR(-VLOOKUP($A230,Economática!$A$3:$AI$823,27,FALSE)=0,-VLOOKUP($A230,Economática!$A$3:$AI$823,27,FALSE)=\"-\"),1/0,-VLOOKUP($A230,Economática!$A$3:$AI$823,27,FALSE)))","v":75.5},4.3404773950236855E-2,{"$f":"IF($A230=\"\",\"\",IF(OR(VLOOKUP($A230,Economática!$A$3:$AI$823,28,FALSE)=0,VLOOKUP($A230,Economática!$A$3:$AI$823,28,FALSE)=\"-\"),1/0,VLOOKUP($A230,Economática!$A$3:$AI$823,28,FALSE)))","v":-4.2},{"$f":"IF($A230=\"\",\"\",IF(OR(VLOOKUP($A230,Economática!$A$3:$AI$823,29,FALSE)=0,VLOOKUP($A230,Economática!$A$3:$AI$823,29,FALSE)=\"-\"),1/0,VLOOKUP($A230,Economática!$A$3:$AI$823,29,FALSE)))","v":40.299999999999997},{"$f":"IF($A230=\"\",\"\",IF(OR(VLOOKUP($A230,Economática!$A$3:$AI$823,30,FALSE)/E230=0,VLOOKUP($A230,Economática!$A$3:$AI$823,30,FALSE)/E230=\"-\",VLOOKUP($A230,Economática!$A$3:$AI$823,30,FALSE)/E230<33.33%,VLOOKUP($A230,Economática!$A$3:$AI$823,30,FALSE)/E230>100%),1/0,VLOOKUP($A230,Economática!$A$3:$AI$823,30,FALSE)/E230))","v":{"$error":"#DIV/0!"}},"TGMA3",{"$f":"IF($A230=\"\",\"\",IF(OR(VLOOKUP($A230,Economática!$A$3:$AI$823,25,FALSE)=0,VLOOKUP($A230,Economática!$A$3:$AI$823,25,FALSE)=\"-\"),1/0,VLOOKUP($A230,Economática!$A$3:$AI$823,25,FALSE)))","v":182.7},{"$f":"CONCATENATE(Economática!B232,\" \",Economática!C232)","v":"Tegma ON"}]
[{"$f":"IF(Economática!AG233=\"\",\"\",Economática!AG233)","v":"JSLG3"},{"$f":"IF($A231=\"\",\"\",VLOOKUP(VLOOKUP($A231,Economática!$A$3:$AI$823,6,FALSE),Correção!$B$16:$C$36,2,FALSE))","v":"Transportes"},{"$f":"IF(Economática!B233=\"\",\"\",Economática!B233)","v":"JSL"},{"$f":"IF($A231=\"\",\"\",IF(OR(VLOOKUP($A231,Economática!$A$3:$AI$823,8,FALSE)=0,VLOOKUP($A231,Economática!$A$3:$AI$823,8,FALSE)=\"-\"),1/0,VLOOKUP($A231,Economática!$A$3:$AI$823,8,FALSE)))","v":9.92},{"$f":"IF(A231=\"\",\"\",IF(ISERROR(VLOOKUP(A231,Correção!$B$2:$G$13,9,FALSE)),VLOOKUP($A231,Economática!$A$3:$AI$823,9,FALSE),VLOOKUP(A231,Correção!$B$2:$G$13,9,FALSE)))","v":205.11500000000001},{"$f":"IF($A231=\"\",\"\",Economática!G233)","v":2034.74},{"$f":"IF($A231=\"\",\"\",IF(OR(VLOOKUP($A231,Economática!$A$3:$AI$823,10,FALSE)=0,VLOOKUP($A231,Economática!$A$3:$AI$823,10,FALSE)=\"-\"),1/0,VLOOKUP($A231,Economática!$A$3:$AI$823,10,FALSE)))","v":753.15},{"$f":"IF($A231=\"\",\"\",IF(OR(VLOOKUP($A231,Economática!$A$3:$AI$823,11,FALSE)=0,VLOOKUP($A231,Economática!$A$3:$AI$823,11,FALSE)=\"-\"),1/0,VLOOKUP($A231,Economática!$A$3:$AI$823,11,FALSE)))","v":7255.8},{"$f":"IF($A231=\"\",\"\",IF(OR(VLOOKUP($A231,Economática!$A$3:$AI$823,12,FALSE)=0,VLOOKUP($A231,Economática!$A$3:$AI$823,12,FALSE)=\"-\"),1/0,VLOOKUP($A231,Economática!$A$3:$AI$823,12,FALSE)))","v":8075.39},{"$f":"IF($A231=\"\",\"\",IF(OR(VLOOKUP($A231,Economática!$A$3:$AI$823,13,FALSE)=0,VLOOKUP($A231,Economática!$A$3:$AI$823,13,FALSE)=\"-\"),1/0,VLOOKUP($A231,Economática!$A$3:$AI$823,13,FALSE)))","v":-2.74},{"$f":"IF($A231=\"\",\"\",IF(OR(VLOOKUP($A231,Economática!$A$3:$AI$823,14,FALSE)=0,VLOOKUP($A231,Economática!$A$3:$AI$823,14,FALSE)=\"-\"),1/0,VLOOKUP($A231,Economática!$A$3:$AI$823,14,FALSE)))","v":13.58},{"$f":"IF($A231=\"\",\"\",IF(OR(VLOOKUP($A231,Economática!$A$3:$AI$823,15,FALSE)=0,VLOOKUP($A231,Economática!$A$3:$AI$823,15,FALSE)=\"-\"),1/0,VLOOKUP($A231,Economática!$A$3:$AI$823,15,FALSE)))","v":46.89},{"$f":"IF($A231=\"\",\"\",IF(OR(VLOOKUP($A231,Economática!$A$3:$AI$823,16,FALSE)=0,VLOOKUP($A231,Economática!$A$3:$AI$823,16,FALSE)=\"-\"),1/0,VLOOKUP($A231,Economática!$A$3:$AI$823,16,FALSE)))","v":86.09},{"$f":"IF($A231=\"\",\"\",IF(OR(VLOOKUP($A231,Economática!$A$3:$AI$823,17,FALSE)=0,VLOOKUP($A231,Economática!$A$3:$AI$823,17,FALSE)=\"-\"),1/0,VLOOKUP($A231,Economática!$A$3:$AI$823,17,FALSE)))","v":131.27000000000001},{"$f":"IF($A231=\"\",\"\",IF(OR(VLOOKUP($A231,Economática!$A$3:$AI$823,18,FALSE)=0,VLOOKUP($A231,Economática!$A$3:$AI$823,18,FALSE)=\"-\"),1/0,VLOOKUP($A231,Economática!$A$3:$AI$823,18,FALSE)))","v":-2.74},{"$f":"IF($A231=\"\",\"\",IF(OR(VLOOKUP($A231,Economática!$A$3:$AI$823,19,FALSE)=0,VLOOKUP($A231,Economática!$A$3:$AI$823,19,FALSE)=\"-\"),1/0,VLOOKUP($A231,Economática!$A$3:$AI$823,19,FALSE)))","v":131.27000000000001},{"$f":"IF($A231=\"\",\"\",VLOOKUP($A231,Economática!$A$3:$AI$823,20,FALSE)/E231)","v":0.63998244887014599},3.6718426248689755,2.7016408417977829,15.500425078083341,{"$f":"IF($A231=\"\",\"\",IF(OR(VLOOKUP($A231,Economática!$A$3:$AI$823,21,FALSE)/100=0,VLOOKUP($A231,Economática!$A$3:$AI$823,21,FALSE)/100=\"-\"),1/0,VLOOKUP($A231,Economática!$A$3:$AI$823,21,FALSE)/100))","v":0.159057},{"$f":"IF($A231=\"\",\"\",IF(OR(VLOOKUP($A231,Economática!$A$3:$AI$823,22,FALSE)/100=0,VLOOKUP($A231,Economática!$A$3:$AI$823,22,FALSE)/100=\"-\"),1/0,VLOOKUP($A231,Economática!$A$3:$AI$823,22,FALSE)/100))","v":5.7285680000000001},{"$f":"IF($A231=\"\",\"\",IF(OR(VLOOKUP($A231,Economática!$A$3:$AI$823,23,FALSE)=0,VLOOKUP($A231,Economática!$A$3:$AI$823,23,FALSE)=\"-\"),1/0,VLOOKUP($A231,Economática!$A$3:$AI$823,23,FALSE)))","v":1230.2},{"$f":"IF($A231=\"\",\"\",IF(OR(VLOOKUP($A231,Economática!$A$3:$AI$823,24,FALSE)=0,VLOOKUP($A231,Economática!$A$3:$AI$823,24,FALSE)=\"-\"),1/0,VLOOKUP($A231,Economática!$A$3:$AI$823,24,FALSE)))","v":1597.5},{"$f":"IF($A231=\"\",\"\",IF(OR(VLOOKUP($A231,Economática!$A$3:$AI$823,25,FALSE)=0,VLOOKUP($A231,Economática!$A$3:$AI$823,25,FALSE)=\"-\"),1/0,VLOOKUP($A231,Economática!$A$3:$AI$823,25,FALSE)))","v":1597.5},{"$f":"IF($A231=\"\",\"\",IF(ISERROR((F231+VLOOKUP($A231,Economática!$A$3:$AI$823,26,FALSE))/Y231),(F231+VLOOKUP($A231,Economática!$A$3:$AI$823,26,FALSE))/Y231,(F231+VLOOKUP($A231,Economática!$A$3:$AI$823,26,FALSE))/Y231))","v":5.7507680751173718},{"$f":"IF($A231=\"\",\"\",IF(OR(-VLOOKUP($A231,Economática!$A$3:$AI$823,27,FALSE)=0,-VLOOKUP($A231,Economática!$A$3:$AI$823,27,FALSE)=\"-\"),1/0,-VLOOKUP($A231,Economática!$A$3:$AI$823,27,FALSE)))","v":{"$error":"#DIV/0!"}},{"$error":"#DIV/0!"},{"$f":"IF($A231=\"\",\"\",IF(OR(VLOOKUP($A231,Economática!$A$3:$AI$823,28,FALSE)=0,VLOOKUP($A231,Economática!$A$3:$AI$823,28,FALSE)=\"-\"),1/0,VLOOKUP($A231,Economática!$A$3:$AI$823,28,FALSE)))","v":2.6},{"$f":"IF($A231=\"\",\"\",IF(OR(VLOOKUP($A231,Economática!$A$3:$AI$823,29,FALSE)=0,VLOOKUP($A231,Economática!$A$3:$AI$823,29,FALSE)=\"-\"),1/0,VLOOKUP($A231,Economática!$A$3:$AI$823,29,FALSE)))","v":23},{"$f":"IF($A231=\"\",\"\",IF(OR(VLOOKUP($A231,Economática!$A$3:$AI$823,30,FALSE)/E231=0,VLOOKUP($A231,Economática!$A$3:$AI$823,30,FALSE)/E231=\"-\",VLOOKUP($A231,Economática!$A$3:$AI$823,30,FALSE)/E231<33.33%,VLOOKUP($A231,Economática!$A$3:$AI$823,30,FALSE)/E231>100%),1/0,VLOOKUP($A231,Economática!$A$3:$AI$823,30,FALSE)/E231))","v":{"$error":"#DIV/0!"}},"JSLG3",{"$f":"IF($A231=\"\",\"\",IF(OR(VLOOKUP($A231,Economática!$A$3:$AI$823,25,FALSE)=0,VLOOKUP($A231,Economática!$A$3:$AI$823,25,FALSE)=\"-\"),1/0,VLOOKUP($A231,Economática!$A$3:$AI$823,25,FALSE)))","v":1597.5},{"$f":"CONCATENATE(Economática!B233,\" \",Economática!C233)","v":"JSL ON"}]
[{"$f":"IF(Economática!AG234=\"\",\"\",Economática!AG234)","v":"AZUL4"},{"$f":"IF($A232=\"\",\"\",VLOOKUP(VLOOKUP($A232,Economática!$A$3:$AI$823,6,FALSE),Correção!$B$16:$C$36,2,FALSE))","v":"Transportes"},{"$f":"IF(Economática!B234=\"\",\"\",Economática!B234)","v":"Azul S.A."},{"$f":"IF($A232=\"\",\"\",IF(OR(VLOOKUP($A232,Economática!$A$3:$AI$823,8,FALSE)=0,VLOOKUP($A232,Economática!$A$3:$AI$823,8,FALSE)=\"-\"),1/0,VLOOKUP($A232,Economática!$A$3:$AI$823,8,FALSE)))","v":38.270000000000003},{"$f":"IF(A232=\"\",\"\",IF(ISERROR(VLOOKUP(A232,Correção!$B$2:$G$13,9,FALSE)),VLOOKUP($A232,Economática!$A$3:$AI$823,9,FALSE),VLOOKUP(A232,Correção!$B$2:$G$13,9,FALSE)))","v":338.37900000000002},{"$f":"IF($A232=\"\",\"\",Economática!G234)","v":12949.76},{"$f":"IF($A232=\"\",\"\",IF(OR(VLOOKUP($A232,Economática!$A$3:$AI$823,10,FALSE)=0,VLOOKUP($A232,Economática!$A$3:$AI$823,10,FALSE)=\"-\"),1/0,VLOOKUP($A232,Economática!$A$3:$AI$823,10,FALSE)))","v":3163.7},{"$f":"IF($A232=\"\",\"\",IF(OR(VLOOKUP($A232,Economática!$A$3:$AI$823,11,FALSE)=0,VLOOKUP($A232,Economática!$A$3:$AI$823,11,FALSE)=\"-\"),1/0,VLOOKUP($A232,Economática!$A$3:$AI$823,11,FALSE)))","v":7789.5},{"$f":"IF($A232=\"\",\"\",IF(OR(VLOOKUP($A232,Economática!$A$3:$AI$823,12,FALSE)=0,VLOOKUP($A232,Economática!$A$3:$AI$823,12,FALSE)=\"-\"),1/0,VLOOKUP($A232,Economática!$A$3:$AI$823,12,FALSE)))","v":9153.36},{"$f":"IF($A232=\"\",\"\",IF(OR(VLOOKUP($A232,Economática!$A$3:$AI$823,13,FALSE)=0,VLOOKUP($A232,Economática!$A$3:$AI$823,13,FALSE)=\"-\"),1/0,VLOOKUP($A232,Economática!$A$3:$AI$823,13,FALSE)))","v":529.04},{"$f":"IF($A232=\"\",\"\",IF(OR(VLOOKUP($A232,Economática!$A$3:$AI$823,14,FALSE)=0,VLOOKUP($A232,Economática!$A$3:$AI$823,14,FALSE)=\"-\"),1/0,VLOOKUP($A232,Economática!$A$3:$AI$823,14,FALSE)))","v":210.55},{"$f":"IF($A232=\"\",\"\",IF(OR(VLOOKUP($A232,Economática!$A$3:$AI$823,15,FALSE)=0,VLOOKUP($A232,Economática!$A$3:$AI$823,15,FALSE)=\"-\"),1/0,VLOOKUP($A232,Economática!$A$3:$AI$823,15,FALSE)))","v":165.54},{"$f":"IF($A232=\"\",\"\",IF(OR(VLOOKUP($A232,Economática!$A$3:$AI$823,16,FALSE)=0,VLOOKUP($A232,Economática!$A$3:$AI$823,16,FALSE)=\"-\"),1/0,VLOOKUP($A232,Economática!$A$3:$AI$823,16,FALSE)))","v":282.11},{"$f":"IF($A232=\"\",\"\",IF(OR(VLOOKUP($A232,Economática!$A$3:$AI$823,17,FALSE)=0,VLOOKUP($A232,Economática!$A$3:$AI$823,17,FALSE)=\"-\"),1/0,VLOOKUP($A232,Economática!$A$3:$AI$823,17,FALSE)))","v":420.28},{"$f":"IF($A232=\"\",\"\",IF(OR(VLOOKUP($A232,Economática!$A$3:$AI$823,18,FALSE)=0,VLOOKUP($A232,Economática!$A$3:$AI$823,18,FALSE)=\"-\"),1/0,VLOOKUP($A232,Economática!$A$3:$AI$823,18,FALSE)))","v":529.04},{"$f":"IF($A232=\"\",\"\",IF(OR(VLOOKUP($A232,Economática!$A$3:$AI$823,19,FALSE)=0,VLOOKUP($A232,Economática!$A$3:$AI$823,19,FALSE)=\"-\"),1/0,VLOOKUP($A232,Economática!$A$3:$AI$823,19,FALSE)))","v":420.28},{"$f":"IF($A232=\"\",\"\",VLOOKUP($A232,Economática!$A$3:$AI$823,20,FALSE)/E232)","v":1.2420392518448247},9.349575476019492,4.0932339760407128,30.812230727134299,{"$f":"IF($A232=\"\",\"\",IF(OR(VLOOKUP($A232,Economática!$A$3:$AI$823,21,FALSE)/100=0,VLOOKUP($A232,Economática!$A$3:$AI$823,21,FALSE)/100=\"-\"),1/0,VLOOKUP($A232,Economática!$A$3:$AI$823,21,FALSE)/100))","v":0.14831899999999998},{"$f":"IF($A232=\"\",\"\",IF(OR(VLOOKUP($A232,Economática!$A$3:$AI$823,22,FALSE)/100=0,VLOOKUP($A232,Economática!$A$3:$AI$823,22,FALSE)/100=\"-\"),1/0,VLOOKUP($A232,Economática!$A$3:$AI$823,22,FALSE)/100))","v":0.63832299999999997},{"$f":"IF($A232=\"\",\"\",IF(OR(VLOOKUP($A232,Economática!$A$3:$AI$823,23,FALSE)=0,VLOOKUP($A232,Economática!$A$3:$AI$823,23,FALSE)=\"-\"),1/0,VLOOKUP($A232,Economática!$A$3:$AI$823,23,FALSE)))","v":1164.8},{"$f":"IF($A232=\"\",\"\",IF(OR(VLOOKUP($A232,Economática!$A$3:$AI$823,24,FALSE)=0,VLOOKUP($A232,Economática!$A$3:$AI$823,24,FALSE)=\"-\"),1/0,VLOOKUP($A232,Economática!$A$3:$AI$823,24,FALSE)))","v":850.4},{"$f":"IF($A232=\"\",\"\",IF(OR(VLOOKUP($A232,Economática!$A$3:$AI$823,25,FALSE)=0,VLOOKUP($A232,Economática!$A$3:$AI$823,25,FALSE)=\"-\"),1/0,VLOOKUP($A232,Economática!$A$3:$AI$823,25,FALSE)))","v":850.4},{"$f":"IF($A232=\"\",\"\",IF(ISERROR((F232+VLOOKUP($A232,Economática!$A$3:$AI$823,26,FALSE))/Y232),(F232+VLOOKUP($A232,Economática!$A$3:$AI$823,26,FALSE))/Y232,(F232+VLOOKUP($A232,Economática!$A$3:$AI$823,26,FALSE))/Y232))","v":17.602567027281278},{"$f":"IF($A232=\"\",\"\",IF(OR(-VLOOKUP($A232,Economática!$A$3:$AI$823,27,FALSE)=0,-VLOOKUP($A232,Economática!$A$3:$AI$823,27,FALSE)=\"-\"),1/0,-VLOOKUP($A232,Economática!$A$3:$AI$823,27,FALSE)))","v":{"$error":"#DIV/0!"}},{"$error":"#DIV/0!"},{"$f":"IF($A232=\"\",\"\",IF(OR(VLOOKUP($A232,Economática!$A$3:$AI$823,28,FALSE)=0,VLOOKUP($A232,Economática!$A$3:$AI$823,28,FALSE)=\"-\"),1/0,VLOOKUP($A232,Economática!$A$3:$AI$823,28,FALSE)))","v":1.6},{"$f":"IF($A232=\"\",\"\",IF(OR(VLOOKUP($A232,Economática!$A$3:$AI$823,29,FALSE)=0,VLOOKUP($A232,Economática!$A$3:$AI$823,29,FALSE)=\"-\"),1/0,VLOOKUP($A232,Economática!$A$3:$AI$823,29,FALSE)))","v":42.3},{"$f":"IF($A232=\"\",\"\",IF(OR(VLOOKUP($A232,Economática!$A$3:$AI$823,30,FALSE)/E232=0,VLOOKUP($A232,Economática!$A$3:$AI$823,30,FALSE)/E232=\"-\",VLOOKUP($A232,Economática!$A$3:$AI$823,30,FALSE)/E232<33.33%,VLOOKUP($A232,Economática!$A$3:$AI$823,30,FALSE)/E232>100%),1/0,VLOOKUP($A232,Economática!$A$3:$AI$823,30,FALSE)/E232))","v":{"$error":"#DIV/0!"}},"AZUL4",{"$f":"IF($A232=\"\",\"\",IF(OR(VLOOKUP($A232,Economática!$A$3:$AI$823,25,FALSE)=0,VLOOKUP($A232,Economática!$A$3:$AI$823,25,FALSE)=\"-\"),1/0,VLOOKUP($A232,Economática!$A$3:$AI$823,25,FALSE)))","v":850.4},{"$f":"CONCATENATE(Economática!B234,\" \",Economática!C234)","v":"Azul S.A. PN"}]
[{"$f":"IF(Economática!AG235=\"\",\"\",Economática!AG235)","v":"CCRO3"},{"$f":"IF($A233=\"\",\"\",VLOOKUP(VLOOKUP($A233,Economática!$A$3:$AI$823,6,FALSE),Correção!$B$16:$C$36,2,FALSE))","v":"Transportes"},{"$f":"IF(Economática!B235=\"\",\"\",Economática!B235)","v":"CCR SA"},{"$f":"IF($A233=\"\",\"\",IF(OR(VLOOKUP($A233,Economática!$A$3:$AI$823,8,FALSE)=0,VLOOKUP($A233,Economática!$A$3:$AI$823,8,FALSE)=\"-\"),1/0,VLOOKUP($A233,Economática!$A$3:$AI$823,8,FALSE)))","v":11.74},{"$f":"IF(A233=\"\",\"\",IF(ISERROR(VLOOKUP(A233,Correção!$B$2:$G$13,9,FALSE)),VLOOKUP($A233,Economática!$A$3:$AI$823,9,FALSE),VLOOKUP(A233,Correção!$B$2:$G$13,9,FALSE)))","v":2020},{"$f":"IF($A233=\"\",\"\",Economática!G235)","v":23714.799999999999},{"$f":"IF($A233=\"\",\"\",IF(OR(VLOOKUP($A233,Economática!$A$3:$AI$823,10,FALSE)=0,VLOOKUP($A233,Economática!$A$3:$AI$823,10,FALSE)=\"-\"),1/0,VLOOKUP($A233,Economática!$A$3:$AI$823,10,FALSE)))","v":8231.49},{"$f":"IF($A233=\"\",\"\",IF(OR(VLOOKUP($A233,Economática!$A$3:$AI$823,11,FALSE)=0,VLOOKUP($A233,Economática!$A$3:$AI$823,11,FALSE)=\"-\"),1/0,VLOOKUP($A233,Economática!$A$3:$AI$823,11,FALSE)))","v":10561},{"$f":"IF($A233=\"\",\"\",IF(OR(VLOOKUP($A233,Economática!$A$3:$AI$823,12,FALSE)=0,VLOOKUP($A233,Economática!$A$3:$AI$823,12,FALSE)=\"-\"),1/0,VLOOKUP($A233,Economática!$A$3:$AI$823,12,FALSE)))","v":9715.86},{"$f":"IF($A233=\"\",\"\",IF(OR(VLOOKUP($A233,Economática!$A$3:$AI$823,13,FALSE)=0,VLOOKUP($A233,Economática!$A$3:$AI$823,13,FALSE)=\"-\"),1/0,VLOOKUP($A233,Economática!$A$3:$AI$823,13,FALSE)))","v":1797.47},{"$f":"IF($A233=\"\",\"\",IF(OR(VLOOKUP($A233,Economática!$A$3:$AI$823,14,FALSE)=0,VLOOKUP($A233,Economática!$A$3:$AI$823,14,FALSE)=\"-\"),1/0,VLOOKUP($A233,Economática!$A$3:$AI$823,14,FALSE)))","v":446.75},{"$f":"IF($A233=\"\",\"\",IF(OR(VLOOKUP($A233,Economática!$A$3:$AI$823,15,FALSE)=0,VLOOKUP($A233,Economática!$A$3:$AI$823,15,FALSE)=\"-\"),1/0,VLOOKUP($A233,Economática!$A$3:$AI$823,15,FALSE)))","v":724.45},{"$f":"IF($A233=\"\",\"\",IF(OR(VLOOKUP($A233,Economática!$A$3:$AI$823,16,FALSE)=0,VLOOKUP($A233,Economática!$A$3:$AI$823,16,FALSE)=\"-\"),1/0,VLOOKUP($A233,Economática!$A$3:$AI$823,16,FALSE)))","v":1089.8},{"$f":"IF($A233=\"\",\"\",IF(OR(VLOOKUP($A233,Economática!$A$3:$AI$823,17,FALSE)=0,VLOOKUP($A233,Economática!$A$3:$AI$823,17,FALSE)=\"-\"),1/0,VLOOKUP($A233,Economática!$A$3:$AI$823,17,FALSE)))","v":782.74},{"$f":"IF($A233=\"\",\"\",IF(OR(VLOOKUP($A233,Economática!$A$3:$AI$823,18,FALSE)=0,VLOOKUP($A233,Economática!$A$3:$AI$823,18,FALSE)=\"-\"),1/0,VLOOKUP($A233,Economática!$A$3:$AI$823,18,FALSE)))","v":1797.47},{"$f":"IF($A233=\"\",\"\",IF(OR(VLOOKUP($A233,Economática!$A$3:$AI$823,19,FALSE)=0,VLOOKUP($A233,Economática!$A$3:$AI$823,19,FALSE)=\"-\"),1/0,VLOOKUP($A233,Economática!$A$3:$AI$823,19,FALSE)))","v":782.74},{"$f":"IF($A233=\"\",\"\",VLOOKUP($A233,Economática!$A$3:$AI$823,20,FALSE)/E233)","v":0.38749504950495051},4.0749950495049507,2.8809850950435463,30.297161254056263,{"$f":"IF($A233=\"\",\"\",IF(OR(VLOOKUP($A233,Economática!$A$3:$AI$823,21,FALSE)/100=0,VLOOKUP($A233,Economática!$A$3:$AI$823,21,FALSE)/100=\"-\"),1/0,VLOOKUP($A233,Economática!$A$3:$AI$823,21,FALSE)/100))","v":7.4912000000000006E-2},{"$f":"IF($A233=\"\",\"\",IF(OR(VLOOKUP($A233,Economática!$A$3:$AI$823,22,FALSE)/100=0,VLOOKUP($A233,Economática!$A$3:$AI$823,22,FALSE)/100=\"-\"),1/0,VLOOKUP($A233,Economática!$A$3:$AI$823,22,FALSE)/100))","v":1.6606899999999998},{"$f":"IF($A233=\"\",\"\",IF(OR(VLOOKUP($A233,Economática!$A$3:$AI$823,23,FALSE)=0,VLOOKUP($A233,Economática!$A$3:$AI$823,23,FALSE)=\"-\"),1/0,VLOOKUP($A233,Economática!$A$3:$AI$823,23,FALSE)))","v":5052.3},{"$f":"IF($A233=\"\",\"\",IF(OR(VLOOKUP($A233,Economática!$A$3:$AI$823,24,FALSE)=0,VLOOKUP($A233,Economática!$A$3:$AI$823,24,FALSE)=\"-\"),1/0,VLOOKUP($A233,Economática!$A$3:$AI$823,24,FALSE)))","v":3817.8},{"$f":"IF($A233=\"\",\"\",IF(OR(VLOOKUP($A233,Economática!$A$3:$AI$823,25,FALSE)=0,VLOOKUP($A233,Economática!$A$3:$AI$823,25,FALSE)=\"-\"),1/0,VLOOKUP($A233,Economática!$A$3:$AI$823,25,FALSE)))","v":3817.8},{"$f":"IF($A233=\"\",\"\",IF(ISERROR((F233+VLOOKUP($A233,Economática!$A$3:$AI$823,26,FALSE))/Y233),(F233+VLOOKUP($A233,Economática!$A$3:$AI$823,26,FALSE))/Y233,(F233+VLOOKUP($A233,Economática!$A$3:$AI$823,26,FALSE))/Y233))","v":9.8797626905547684},{"$f":"IF($A233=\"\",\"\",IF(OR(-VLOOKUP($A233,Economática!$A$3:$AI$823,27,FALSE)=0,-VLOOKUP($A233,Economática!$A$3:$AI$823,27,FALSE)=\"-\"),1/0,-VLOOKUP($A233,Economática!$A$3:$AI$823,27,FALSE)))","v":1199.98},5.060046890549362E-2,{"$f":"IF($A233=\"\",\"\",IF(OR(VLOOKUP($A233,Economática!$A$3:$AI$823,28,FALSE)=0,VLOOKUP($A233,Economática!$A$3:$AI$823,28,FALSE)=\"-\"),1/0,VLOOKUP($A233,Economática!$A$3:$AI$823,28,FALSE)))","v":-17.5},{"$f":"IF($A233=\"\",\"\",IF(OR(VLOOKUP($A233,Economática!$A$3:$AI$823,29,FALSE)=0,VLOOKUP($A233,Economática!$A$3:$AI$823,29,FALSE)=\"-\"),1/0,VLOOKUP($A233,Economática!$A$3:$AI$823,29,FALSE)))","v":-23.3},{"$f":"IF($A233=\"\",\"\",IF(OR(VLOOKUP($A233,Economática!$A$3:$AI$823,30,FALSE)/E233=0,VLOOKUP($A233,Economática!$A$3:$AI$823,30,FALSE)/E233=\"-\",VLOOKUP($A233,Economática!$A$3:$AI$823,30,FALSE)/E233<33.33%,VLOOKUP($A233,Economática!$A$3:$AI$823,30,FALSE)/E233>100%),1/0,VLOOKUP($A233,Economática!$A$3:$AI$823,30,FALSE)/E233))","v":1},"CCRO3",{"$f":"IF($A233=\"\",\"\",IF(OR(VLOOKUP($A233,Economática!$A$3:$AI$823,25,FALSE)=0,VLOOKUP($A233,Economática!$A$3:$AI$823,25,FALSE)=\"-\"),1/0,VLOOKUP($A233,Economática!$A$3:$AI$823,25,FALSE)))","v":3817.8},{"$f":"CONCATENATE(Economática!B235,\" \",Economática!C235)","v":"CCR SA ON"}]
[{"$f":"IF(Economática!AG236=\"\",\"\",Economática!AG236)","v":"RAIL3"},{"$f":"IF($A234=\"\",\"\",VLOOKUP(VLOOKUP($A234,Economática!$A$3:$AI$823,6,FALSE),Correção!$B$16:$C$36,2,FALSE))","v":"Transportes"},{"$f":"IF(Economática!B236=\"\",\"\",Economática!B236)","v":"Rumo S.A."},{"$f":"IF($A234=\"\",\"\",IF(OR(VLOOKUP($A234,Economática!$A$3:$AI$823,8,FALSE)=0,VLOOKUP($A234,Economática!$A$3:$AI$823,8,FALSE)=\"-\"),1/0,VLOOKUP($A234,Economática!$A$3:$AI$823,8,FALSE)))","v":19.149999999999999},{"$f":"IF(A234=\"\",\"\",IF(ISERROR(VLOOKUP(A234,Correção!$B$2:$G$13,9,FALSE)),VLOOKUP($A234,Economática!$A$3:$AI$823,9,FALSE),VLOOKUP(A234,Correção!$B$2:$G$13,9,FALSE)))","v":1559.0160000000001},{"$f":"IF($A234=\"\",\"\",Economática!G236)","v":29855.15},{"$f":"IF($A234=\"\",\"\",IF(OR(VLOOKUP($A234,Economática!$A$3:$AI$823,10,FALSE)=0,VLOOKUP($A234,Economática!$A$3:$AI$823,10,FALSE)=\"-\"),1/0,VLOOKUP($A234,Economática!$A$3:$AI$823,10,FALSE)))","v":8028.2},{"$f":"IF($A234=\"\",\"\",IF(OR(VLOOKUP($A234,Economática!$A$3:$AI$823,11,FALSE)=0,VLOOKUP($A234,Economática!$A$3:$AI$823,11,FALSE)=\"-\"),1/0,VLOOKUP($A234,Economática!$A$3:$AI$823,11,FALSE)))","v":5946.35},{"$f":"IF($A234=\"\",\"\",IF(OR(VLOOKUP($A234,Economática!$A$3:$AI$823,12,FALSE)=0,VLOOKUP($A234,Economática!$A$3:$AI$823,12,FALSE)=\"-\"),1/0,VLOOKUP($A234,Economática!$A$3:$AI$823,12,FALSE)))","v":6584.94},{"$f":"IF($A234=\"\",\"\",IF(OR(VLOOKUP($A234,Economática!$A$3:$AI$823,13,FALSE)=0,VLOOKUP($A234,Economática!$A$3:$AI$823,13,FALSE)=\"-\"),1/0,VLOOKUP($A234,Economática!$A$3:$AI$823,13,FALSE)))","v":-260.81},{"$f":"IF($A234=\"\",\"\",IF(OR(VLOOKUP($A234,Economática!$A$3:$AI$823,14,FALSE)=0,VLOOKUP($A234,Economática!$A$3:$AI$823,14,FALSE)=\"-\"),1/0,VLOOKUP($A234,Economática!$A$3:$AI$823,14,FALSE)))","v":-58.96},{"$f":"IF($A234=\"\",\"\",IF(OR(VLOOKUP($A234,Economática!$A$3:$AI$823,15,FALSE)=0,VLOOKUP($A234,Economática!$A$3:$AI$823,15,FALSE)=\"-\"),1/0,VLOOKUP($A234,Economática!$A$3:$AI$823,15,FALSE)))","v":-94.7},{"$f":"IF($A234=\"\",\"\",IF(OR(VLOOKUP($A234,Economática!$A$3:$AI$823,16,FALSE)=0,VLOOKUP($A234,Economática!$A$3:$AI$823,16,FALSE)=\"-\"),1/0,VLOOKUP($A234,Economática!$A$3:$AI$823,16,FALSE)))","v":131.09},{"$f":"IF($A234=\"\",\"\",IF(OR(VLOOKUP($A234,Economática!$A$3:$AI$823,17,FALSE)=0,VLOOKUP($A234,Economática!$A$3:$AI$823,17,FALSE)=\"-\"),1/0,VLOOKUP($A234,Economática!$A$3:$AI$823,17,FALSE)))","v":264.36},{"$f":"IF($A234=\"\",\"\",IF(OR(VLOOKUP($A234,Economática!$A$3:$AI$823,18,FALSE)=0,VLOOKUP($A234,Economática!$A$3:$AI$823,18,FALSE)=\"-\"),1/0,VLOOKUP($A234,Economática!$A$3:$AI$823,18,FALSE)))","v":-260.81},{"$f":"IF($A234=\"\",\"\",IF(OR(VLOOKUP($A234,Economática!$A$3:$AI$823,19,FALSE)=0,VLOOKUP($A234,Economática!$A$3:$AI$823,19,FALSE)=\"-\"),1/0,VLOOKUP($A234,Economática!$A$3:$AI$823,19,FALSE)))","v":264.36},{"$f":"IF($A234=\"\",\"\",VLOOKUP($A234,Economática!$A$3:$AI$823,20,FALSE)/E234)","v":0.16956849705198665},5.149530216495533,3.7187858299494279,112.93371311847478,{"$f":"IF($A234=\"\",\"\",IF(OR(VLOOKUP($A234,Economática!$A$3:$AI$823,21,FALSE)/100=0,VLOOKUP($A234,Economática!$A$3:$AI$823,21,FALSE)/100=\"-\"),1/0,VLOOKUP($A234,Economática!$A$3:$AI$823,21,FALSE)/100))","v":3.4037999999999999E-2},{"$f":"IF($A234=\"\",\"\",IF(OR(VLOOKUP($A234,Economática!$A$3:$AI$823,22,FALSE)/100=0,VLOOKUP($A234,Economática!$A$3:$AI$823,22,FALSE)/100=\"-\"),1/0,VLOOKUP($A234,Economática!$A$3:$AI$823,22,FALSE)/100))","v":1.2601959999999999},{"$f":"IF($A234=\"\",\"\",IF(OR(VLOOKUP($A234,Economática!$A$3:$AI$823,23,FALSE)=0,VLOOKUP($A234,Economática!$A$3:$AI$823,23,FALSE)=\"-\"),1/0,VLOOKUP($A234,Economática!$A$3:$AI$823,23,FALSE)))","v":2757},{"$f":"IF($A234=\"\",\"\",IF(OR(VLOOKUP($A234,Economática!$A$3:$AI$823,24,FALSE)=0,VLOOKUP($A234,Economática!$A$3:$AI$823,24,FALSE)=\"-\"),1/0,VLOOKUP($A234,Economática!$A$3:$AI$823,24,FALSE)))","v":3242},{"$f":"IF($A234=\"\",\"\",IF(OR(VLOOKUP($A234,Economática!$A$3:$AI$823,25,FALSE)=0,VLOOKUP($A234,Economática!$A$3:$AI$823,25,FALSE)=\"-\"),1/0,VLOOKUP($A234,Economática!$A$3:$AI$823,25,FALSE)))","v":3242},{"$f":"IF($A234=\"\",\"\",IF(ISERROR((F234+VLOOKUP($A234,Economática!$A$3:$AI$823,26,FALSE))/Y234),(F234+VLOOKUP($A234,Economática!$A$3:$AI$823,26,FALSE))/Y234,(F234+VLOOKUP($A234,Economática!$A$3:$AI$823,26,FALSE))/Y234))","v":12.433067242442936},{"$f":"IF($A234=\"\",\"\",IF(OR(-VLOOKUP($A234,Economática!$A$3:$AI$823,27,FALSE)=0,-VLOOKUP($A234,Economática!$A$3:$AI$823,27,FALSE)=\"-\"),1/0,-VLOOKUP($A234,Economática!$A$3:$AI$823,27,FALSE)))","v":{"$error":"#DIV/0!"}},{"$error":"#DIV/0!"},{"$f":"IF($A234=\"\",\"\",IF(OR(VLOOKUP($A234,Economática!$A$3:$AI$823,28,FALSE)=0,VLOOKUP($A234,Economática!$A$3:$AI$823,28,FALSE)=\"-\"),1/0,VLOOKUP($A234,Economática!$A$3:$AI$823,28,FALSE)))","v":-1.6},{"$f":"IF($A234=\"\",\"\",IF(OR(VLOOKUP($A234,Economática!$A$3:$AI$823,29,FALSE)=0,VLOOKUP($A234,Economática!$A$3:$AI$823,29,FALSE)=\"-\"),1/0,VLOOKUP($A234,Economática!$A$3:$AI$823,29,FALSE)))","v":47.6},{"$f":"IF($A234=\"\",\"\",IF(OR(VLOOKUP($A234,Economática!$A$3:$AI$823,30,FALSE)/E234=0,VLOOKUP($A234,Economática!$A$3:$AI$823,30,FALSE)/E234=\"-\",VLOOKUP($A234,Economática!$A$3:$AI$823,30,FALSE)/E234<33.33%,VLOOKUP($A234,Economática!$A$3:$AI$823,30,FALSE)/E234>100%),1/0,VLOOKUP($A234,Economática!$A$3:$AI$823,30,FALSE)/E234))","v":0.99998973711623229},"RAIL3",{"$f":"IF($A234=\"\",\"\",IF(OR(VLOOKUP($A234,Economática!$A$3:$AI$823,25,FALSE)=0,VLOOKUP($A234,Economática!$A$3:$AI$823,25,FALSE)=\"-\"),1/0,VLOOKUP($A234,Economática!$A$3:$AI$823,25,FALSE)))","v":3242},{"$f":"CONCATENATE(Economática!B236,\" \",Economática!C236)","v":"Rumo S.A. ON"}]
[{"$f":"IF(Economática!AG237=\"\",\"\",Economática!AG237)","v":"GOLL4"},{"$f":"IF($A235=\"\",\"\",VLOOKUP(VLOOKUP($A235,Economática!$A$3:$AI$823,6,FALSE),Correção!$B$16:$C$36,2,FALSE))","v":"Transportes"},{"$f":"IF(Economática!B237=\"\",\"\",Economática!B237)","v":"Gol"},{"$f":"IF($A235=\"\",\"\",IF(OR(VLOOKUP($A235,Economática!$A$3:$AI$823,8,FALSE)=0,VLOOKUP($A235,Economática!$A$3:$AI$823,8,FALSE)=\"-\"),1/0,VLOOKUP($A235,Economática!$A$3:$AI$823,8,FALSE)))","v":25.9},{"$f":"IF(A235=\"\",\"\",IF(ISERROR(VLOOKUP(A235,Correção!$B$2:$G$13,9,FALSE)),VLOOKUP($A235,Economática!$A$3:$AI$823,9,FALSE),VLOOKUP(A235,Correção!$B$2:$G$13,9,FALSE)))","v":347.71899999999999},{"$f":"IF($A235=\"\",\"\",Economática!G237)","v":9005.92},{"$f":"IF($A235=\"\",\"\",IF(OR(VLOOKUP($A235,Economática!$A$3:$AI$823,10,FALSE)=0,VLOOKUP($A235,Economática!$A$3:$AI$823,10,FALSE)=\"-\"),1/0,VLOOKUP($A235,Economática!$A$3:$AI$823,10,FALSE)))","v":-4985.41},{"$f":"IF($A235=\"\",\"\",IF(OR(VLOOKUP($A235,Economática!$A$3:$AI$823,11,FALSE)=0,VLOOKUP($A235,Economática!$A$3:$AI$823,11,FALSE)=\"-\"),1/0,VLOOKUP($A235,Economática!$A$3:$AI$823,11,FALSE)))","v":10576.02},{"$f":"IF($A235=\"\",\"\",IF(OR(VLOOKUP($A235,Economática!$A$3:$AI$823,12,FALSE)=0,VLOOKUP($A235,Economática!$A$3:$AI$823,12,FALSE)=\"-\"),1/0,VLOOKUP($A235,Economática!$A$3:$AI$823,12,FALSE)))","v":11411.35},{"$f":"IF($A235=\"\",\"\",IF(OR(VLOOKUP($A235,Economática!$A$3:$AI$823,13,FALSE)=0,VLOOKUP($A235,Economática!$A$3:$AI$823,13,FALSE)=\"-\"),1/0,VLOOKUP($A235,Economática!$A$3:$AI$823,13,FALSE)))","v":19.18},{"$f":"IF($A235=\"\",\"\",IF(OR(VLOOKUP($A235,Economática!$A$3:$AI$823,14,FALSE)=0,VLOOKUP($A235,Economática!$A$3:$AI$823,14,FALSE)=\"-\"),1/0,VLOOKUP($A235,Economática!$A$3:$AI$823,14,FALSE)))","v":147.47},{"$f":"IF($A235=\"\",\"\",IF(OR(VLOOKUP($A235,Economática!$A$3:$AI$823,15,FALSE)=0,VLOOKUP($A235,Economática!$A$3:$AI$823,15,FALSE)=\"-\"),1/0,VLOOKUP($A235,Economática!$A$3:$AI$823,15,FALSE)))","v":-1178.51},{"$f":"IF($A235=\"\",\"\",IF(OR(VLOOKUP($A235,Economática!$A$3:$AI$823,16,FALSE)=0,VLOOKUP($A235,Economática!$A$3:$AI$823,16,FALSE)=\"-\"),1/0,VLOOKUP($A235,Economática!$A$3:$AI$823,16,FALSE)))","v":-1587.75},{"$f":"IF($A235=\"\",\"\",IF(OR(VLOOKUP($A235,Economática!$A$3:$AI$823,17,FALSE)=0,VLOOKUP($A235,Economática!$A$3:$AI$823,17,FALSE)=\"-\"),1/0,VLOOKUP($A235,Economática!$A$3:$AI$823,17,FALSE)))","v":-1085.3900000000001},{"$f":"IF($A235=\"\",\"\",IF(OR(VLOOKUP($A235,Economática!$A$3:$AI$823,18,FALSE)=0,VLOOKUP($A235,Economática!$A$3:$AI$823,18,FALSE)=\"-\"),1/0,VLOOKUP($A235,Economática!$A$3:$AI$823,18,FALSE)))","v":19.18},{"$f":"IF($A235=\"\",\"\",IF(OR(VLOOKUP($A235,Economática!$A$3:$AI$823,19,FALSE)=0,VLOOKUP($A235,Economática!$A$3:$AI$823,19,FALSE)=\"-\"),1/0,VLOOKUP($A235,Economática!$A$3:$AI$823,19,FALSE)))","v":-1085.3900000000001},{"$f":"IF($A235=\"\",\"\",VLOOKUP($A235,Economática!$A$3:$AI$823,20,FALSE)/E235)","v":-3.121457268656588},{"$error":"#DIV/0!"},{"$error":"#DIV/0!"},{"$error":"#DIV/0!"},{"$f":"IF($A235=\"\",\"\",IF(OR(VLOOKUP($A235,Economática!$A$3:$AI$823,21,FALSE)/100=0,VLOOKUP($A235,Economática!$A$3:$AI$823,21,FALSE)/100=\"-\"),1/0,VLOOKUP($A235,Economática!$A$3:$AI$823,21,FALSE)/100))","v":{"$error":"#VALUE!"}},{"$f":"IF($A235=\"\",\"\",IF(OR(VLOOKUP($A235,Economática!$A$3:$AI$823,22,FALSE)/100=0,VLOOKUP($A235,Economática!$A$3:$AI$823,22,FALSE)/100=\"-\"),1/0,VLOOKUP($A235,Economática!$A$3:$AI$823,22,FALSE)/100))","v":-1.2828999999999999},{"$f":"IF($A235=\"\",\"\",IF(OR(VLOOKUP($A235,Economática!$A$3:$AI$823,23,FALSE)=0,VLOOKUP($A235,Economática!$A$3:$AI$823,23,FALSE)=\"-\"),1/0,VLOOKUP($A235,Economática!$A$3:$AI$823,23,FALSE)))","v":1495.2},{"$f":"IF($A235=\"\",\"\",IF(OR(VLOOKUP($A235,Economática!$A$3:$AI$823,24,FALSE)=0,VLOOKUP($A235,Economática!$A$3:$AI$823,24,FALSE)=\"-\"),1/0,VLOOKUP($A235,Economática!$A$3:$AI$823,24,FALSE)))","v":2068.5},{"$f":"IF($A235=\"\",\"\",IF(OR(VLOOKUP($A235,Economática!$A$3:$AI$823,25,FALSE)=0,VLOOKUP($A235,Economática!$A$3:$AI$823,25,FALSE)=\"-\"),1/0,VLOOKUP($A235,Economática!$A$3:$AI$823,25,FALSE)))","v":2068.5},{"$f":"IF($A235=\"\",\"\",IF(ISERROR((F235+VLOOKUP($A235,Economática!$A$3:$AI$823,26,FALSE))/Y235),(F235+VLOOKUP($A235,Economática!$A$3:$AI$823,26,FALSE))/Y235,(F235+VLOOKUP($A235,Economática!$A$3:$AI$823,26,FALSE))/Y235))","v":7.148095721537346},{"$f":"IF($A235=\"\",\"\",IF(OR(-VLOOKUP($A235,Economática!$A$3:$AI$823,27,FALSE)=0,-VLOOKUP($A235,Economática!$A$3:$AI$823,27,FALSE)=\"-\"),1/0,-VLOOKUP($A235,Economática!$A$3:$AI$823,27,FALSE)))","v":{"$error":"#DIV/0!"}},{"$error":"#DIV/0!"},{"$f":"IF($A235=\"\",\"\",IF(OR(VLOOKUP($A235,Economática!$A$3:$AI$823,28,FALSE)=0,VLOOKUP($A235,Economática!$A$3:$AI$823,28,FALSE)=\"-\"),1/0,VLOOKUP($A235,Economática!$A$3:$AI$823,28,FALSE)))","v":-2.9},{"$f":"IF($A235=\"\",\"\",IF(OR(VLOOKUP($A235,Economática!$A$3:$AI$823,29,FALSE)=0,VLOOKUP($A235,Economática!$A$3:$AI$823,29,FALSE)=\"-\"),1/0,VLOOKUP($A235,Economática!$A$3:$AI$823,29,FALSE)))","v":77.400000000000006},{"$f":"IF($A235=\"\",\"\",IF(OR(VLOOKUP($A235,Economática!$A$3:$AI$823,30,FALSE)/E235=0,VLOOKUP($A235,Economática!$A$3:$AI$823,30,FALSE)/E235=\"-\",VLOOKUP($A235,Economática!$A$3:$AI$823,30,FALSE)/E235<33.33%,VLOOKUP($A235,Economática!$A$3:$AI$823,30,FALSE)/E235>100%),1/0,VLOOKUP($A235,Economática!$A$3:$AI$823,30,FALSE)/E235))","v":{"$error":"#DIV/0!"}},"GOLL4",{"$f":"IF($A235=\"\",\"\",IF(OR(VLOOKUP($A235,Economática!$A$3:$AI$823,25,FALSE)=0,VLOOKUP($A235,Economática!$A$3:$AI$823,25,FALSE)=\"-\"),1/0,VLOOKUP($A235,Economática!$A$3:$AI$823,25,FALSE)))","v":2068.5},{"$f":"CONCATENATE(Economática!B237,\" \",Economática!C237)","v":"Gol PN"}]
[{"$f":"IF(Economática!AG238=\"\",\"\",Economática!AG238)","v":"LOGN3"},{"$f":"IF($A236=\"\",\"\",VLOOKUP(VLOOKUP($A236,Economática!$A$3:$AI$823,6,FALSE),Correção!$B$16:$C$36,2,FALSE))","v":"Transportes"},{"$f":"IF(Economática!B238=\"\",\"\",Economática!B238)","v":"Log-In"},{"$f":"IF($A236=\"\",\"\",IF(OR(VLOOKUP($A236,Economática!$A$3:$AI$823,8,FALSE)=0,VLOOKUP($A236,Economática!$A$3:$AI$823,8,FALSE)=\"-\"),1/0,VLOOKUP($A236,Economática!$A$3:$AI$823,8,FALSE)))","v":8.36},{"$f":"IF(A236=\"\",\"\",IF(ISERROR(VLOOKUP(A236,Correção!$B$2:$G$13,9,FALSE)),VLOOKUP($A236,Economática!$A$3:$AI$823,9,FALSE),VLOOKUP(A236,Correção!$B$2:$G$13,9,FALSE)))","v":36.856000000000002},{"$f":"IF($A236=\"\",\"\",Economática!G238)","v":308.12},{"$f":"IF($A236=\"\",\"\",IF(OR(VLOOKUP($A236,Economática!$A$3:$AI$823,10,FALSE)=0,VLOOKUP($A236,Economática!$A$3:$AI$823,10,FALSE)=\"-\"),1/0,VLOOKUP($A236,Economática!$A$3:$AI$823,10,FALSE)))","v":-354.75},{"$f":"IF($A236=\"\",\"\",IF(OR(VLOOKUP($A236,Economática!$A$3:$AI$823,11,FALSE)=0,VLOOKUP($A236,Economática!$A$3:$AI$823,11,FALSE)=\"-\"),1/0,VLOOKUP($A236,Economática!$A$3:$AI$823,11,FALSE)))","v":872.17},{"$f":"IF($A236=\"\",\"\",IF(OR(VLOOKUP($A236,Economática!$A$3:$AI$823,12,FALSE)=0,VLOOKUP($A236,Economática!$A$3:$AI$823,12,FALSE)=\"-\"),1/0,VLOOKUP($A236,Economática!$A$3:$AI$823,12,FALSE)))","v":977.43},{"$f":"IF($A236=\"\",\"\",IF(OR(VLOOKUP($A236,Economática!$A$3:$AI$823,13,FALSE)=0,VLOOKUP($A236,Economática!$A$3:$AI$823,13,FALSE)=\"-\"),1/0,VLOOKUP($A236,Economática!$A$3:$AI$823,13,FALSE)))","v":-606.87},{"$f":"IF($A236=\"\",\"\",IF(OR(VLOOKUP($A236,Economática!$A$3:$AI$823,14,FALSE)=0,VLOOKUP($A236,Economática!$A$3:$AI$823,14,FALSE)=\"-\"),1/0,VLOOKUP($A236,Economática!$A$3:$AI$823,14,FALSE)))","v":41.72},{"$f":"IF($A236=\"\",\"\",IF(OR(VLOOKUP($A236,Economática!$A$3:$AI$823,15,FALSE)=0,VLOOKUP($A236,Economática!$A$3:$AI$823,15,FALSE)=\"-\"),1/0,VLOOKUP($A236,Economática!$A$3:$AI$823,15,FALSE)))","v":-11.21},{"$f":"IF($A236=\"\",\"\",IF(OR(VLOOKUP($A236,Economática!$A$3:$AI$823,16,FALSE)=0,VLOOKUP($A236,Economática!$A$3:$AI$823,16,FALSE)=\"-\"),1/0,VLOOKUP($A236,Economática!$A$3:$AI$823,16,FALSE)))","v":-9.19},{"$f":"IF($A236=\"\",\"\",IF(OR(VLOOKUP($A236,Economática!$A$3:$AI$823,17,FALSE)=0,VLOOKUP($A236,Economática!$A$3:$AI$823,17,FALSE)=\"-\"),1/0,VLOOKUP($A236,Economática!$A$3:$AI$823,17,FALSE)))","v":6},{"$f":"IF($A236=\"\",\"\",IF(OR(VLOOKUP($A236,Economática!$A$3:$AI$823,18,FALSE)=0,VLOOKUP($A236,Economática!$A$3:$AI$823,18,FALSE)=\"-\"),1/0,VLOOKUP($A236,Economática!$A$3:$AI$823,18,FALSE)))","v":-606.87},{"$f":"IF($A236=\"\",\"\",IF(OR(VLOOKUP($A236,Economática!$A$3:$AI$823,19,FALSE)=0,VLOOKUP($A236,Economática!$A$3:$AI$823,19,FALSE)=\"-\"),1/0,VLOOKUP($A236,Economática!$A$3:$AI$823,19,FALSE)))","v":6},{"$f":"IF($A236=\"\",\"\",VLOOKUP($A236,Economática!$A$3:$AI$823,20,FALSE)/E236)","v":0.16279574560451487},{"$error":"#DIV/0!"},{"$error":"#DIV/0!"},51.352693333333328,{"$f":"IF($A236=\"\",\"\",IF(OR(VLOOKUP($A236,Economática!$A$3:$AI$823,21,FALSE)/100=0,VLOOKUP($A236,Economática!$A$3:$AI$823,21,FALSE)/100=\"-\"),1/0,VLOOKUP($A236,Economática!$A$3:$AI$823,21,FALSE)/100))","v":{"$error":"#VALUE!"}},{"$f":"IF($A236=\"\",\"\",IF(OR(VLOOKUP($A236,Economática!$A$3:$AI$823,22,FALSE)/100=0,VLOOKUP($A236,Economática!$A$3:$AI$823,22,FALSE)/100=\"-\"),1/0,VLOOKUP($A236,Economática!$A$3:$AI$823,22,FALSE)/100))","v":-3.4718110000000002},{"$f":"IF($A236=\"\",\"\",IF(OR(VLOOKUP($A236,Economática!$A$3:$AI$823,23,FALSE)=0,VLOOKUP($A236,Economática!$A$3:$AI$823,23,FALSE)=\"-\"),1/0,VLOOKUP($A236,Economática!$A$3:$AI$823,23,FALSE)))","v":-442.7},{"$f":"IF($A236=\"\",\"\",IF(OR(VLOOKUP($A236,Economática!$A$3:$AI$823,24,FALSE)=0,VLOOKUP($A236,Economática!$A$3:$AI$823,24,FALSE)=\"-\"),1/0,VLOOKUP($A236,Economática!$A$3:$AI$823,24,FALSE)))","v":198},{"$f":"IF($A236=\"\",\"\",IF(OR(VLOOKUP($A236,Economática!$A$3:$AI$823,25,FALSE)=0,VLOOKUP($A236,Economática!$A$3:$AI$823,25,FALSE)=\"-\"),1/0,VLOOKUP($A236,Economática!$A$3:$AI$823,25,FALSE)))","v":198},{"$f":"IF($A236=\"\",\"\",IF(ISERROR((F236+VLOOKUP($A236,Economática!$A$3:$AI$823,26,FALSE))/Y236),(F236+VLOOKUP($A236,Economática!$A$3:$AI$823,26,FALSE))/Y236,(F236+VLOOKUP($A236,Economática!$A$3:$AI$823,26,FALSE))/Y236))","v":7.7743333333333347},{"$f":"IF($A236=\"\",\"\",IF(OR(-VLOOKUP($A236,Economática!$A$3:$AI$823,27,FALSE)=0,-VLOOKUP($A236,Economática!$A$3:$AI$823,27,FALSE)=\"-\"),1/0,-VLOOKUP($A236,Economática!$A$3:$AI$823,27,FALSE)))","v":{"$error":"#DIV/0!"}},{"$error":"#DIV/0!"},{"$f":"IF($A236=\"\",\"\",IF(OR(VLOOKUP($A236,Economática!$A$3:$AI$823,28,FALSE)=0,VLOOKUP($A236,Economática!$A$3:$AI$823,28,FALSE)=\"-\"),1/0,VLOOKUP($A236,Economática!$A$3:$AI$823,28,FALSE)))","v":-6.4},{"$f":"IF($A236=\"\",\"\",IF(OR(VLOOKUP($A236,Economática!$A$3:$AI$823,29,FALSE)=0,VLOOKUP($A236,Economática!$A$3:$AI$823,29,FALSE)=\"-\"),1/0,VLOOKUP($A236,Economática!$A$3:$AI$823,29,FALSE)))","v":173.9},{"$f":"IF($A236=\"\",\"\",IF(OR(VLOOKUP($A236,Economática!$A$3:$AI$823,30,FALSE)/E236=0,VLOOKUP($A236,Economática!$A$3:$AI$823,30,FALSE)/E236=\"-\",VLOOKUP($A236,Economática!$A$3:$AI$823,30,FALSE)/E236<33.33%,VLOOKUP($A236,Economática!$A$3:$AI$823,30,FALSE)/E236>100%),1/0,VLOOKUP($A236,Economática!$A$3:$AI$823,30,FALSE)/E236))","v":{"$error":"#DIV/0!"}},"LOGN3",{"$f":"IF($A236=\"\",\"\",IF(OR(VLOOKUP($A236,Economática!$A$3:$AI$823,25,FALSE)=0,VLOOKUP($A236,Economática!$A$3:$AI$823,25,FALSE)=\"-\"),1/0,VLOOKUP($A236,Economática!$A$3:$AI$823,25,FALSE)))","v":198},{"$f":"CONCATENATE(Economática!B238,\" \",Economática!C238)","v":"Log-In ON"}]
[{"$f":"IF(Economática!AG239=\"\",\"\",Economática!AG239)","v":"LEVE3"},{"$f":"IF($A237=\"\",\"\",VLOOKUP(VLOOKUP($A237,Economática!$A$3:$AI$823,6,FALSE),Correção!$B$16:$C$36,2,FALSE))","v":"Veículos e peças"},{"$f":"IF(Economática!B239=\"\",\"\",Economática!B239)","v":"Metal Leve"},{"$f":"IF($A237=\"\",\"\",IF(OR(VLOOKUP($A237,Economática!$A$3:$AI$823,8,FALSE)=0,VLOOKUP($A237,Economática!$A$3:$AI$823,8,FALSE)=\"-\"),1/0,VLOOKUP($A237,Economática!$A$3:$AI$823,8,FALSE)))","v":24.3},{"$f":"IF(A237=\"\",\"\",IF(ISERROR(VLOOKUP(A237,Correção!$B$2:$G$13,9,FALSE)),VLOOKUP($A237,Economática!$A$3:$AI$823,9,FALSE),VLOOKUP(A237,Correção!$B$2:$G$13,9,FALSE)))","v":128.309},{"$f":"IF($A237=\"\",\"\",Economática!G239)","v":3117.9},{"$f":"IF($A237=\"\",\"\",IF(OR(VLOOKUP($A237,Economática!$A$3:$AI$823,10,FALSE)=0,VLOOKUP($A237,Economática!$A$3:$AI$823,10,FALSE)=\"-\"),1/0,VLOOKUP($A237,Economática!$A$3:$AI$823,10,FALSE)))","v":1356.36},{"$f":"IF($A237=\"\",\"\",IF(OR(VLOOKUP($A237,Economática!$A$3:$AI$823,11,FALSE)=0,VLOOKUP($A237,Economática!$A$3:$AI$823,11,FALSE)=\"-\"),1/0,VLOOKUP($A237,Economática!$A$3:$AI$823,11,FALSE)))","v":2264.44},{"$f":"IF($A237=\"\",\"\",IF(OR(VLOOKUP($A237,Economática!$A$3:$AI$823,12,FALSE)=0,VLOOKUP($A237,Economática!$A$3:$AI$823,12,FALSE)=\"-\"),1/0,VLOOKUP($A237,Economática!$A$3:$AI$823,12,FALSE)))","v":2591.65},{"$f":"IF($A237=\"\",\"\",IF(OR(VLOOKUP($A237,Economática!$A$3:$AI$823,13,FALSE)=0,VLOOKUP($A237,Economática!$A$3:$AI$823,13,FALSE)=\"-\"),1/0,VLOOKUP($A237,Economática!$A$3:$AI$823,13,FALSE)))","v":237.31},{"$f":"IF($A237=\"\",\"\",IF(OR(VLOOKUP($A237,Economática!$A$3:$AI$823,14,FALSE)=0,VLOOKUP($A237,Economática!$A$3:$AI$823,14,FALSE)=\"-\"),1/0,VLOOKUP($A237,Economática!$A$3:$AI$823,14,FALSE)))","v":71.38},{"$f":"IF($A237=\"\",\"\",IF(OR(VLOOKUP($A237,Economática!$A$3:$AI$823,15,FALSE)=0,VLOOKUP($A237,Economática!$A$3:$AI$823,15,FALSE)=\"-\"),1/0,VLOOKUP($A237,Economática!$A$3:$AI$823,15,FALSE)))","v":131.59},{"$f":"IF($A237=\"\",\"\",IF(OR(VLOOKUP($A237,Economática!$A$3:$AI$823,16,FALSE)=0,VLOOKUP($A237,Economática!$A$3:$AI$823,16,FALSE)=\"-\"),1/0,VLOOKUP($A237,Economática!$A$3:$AI$823,16,FALSE)))","v":223.81},{"$f":"IF($A237=\"\",\"\",IF(OR(VLOOKUP($A237,Economática!$A$3:$AI$823,17,FALSE)=0,VLOOKUP($A237,Economática!$A$3:$AI$823,17,FALSE)=\"-\"),1/0,VLOOKUP($A237,Economática!$A$3:$AI$823,17,FALSE)))","v":291.68},{"$f":"IF($A237=\"\",\"\",IF(OR(VLOOKUP($A237,Economática!$A$3:$AI$823,18,FALSE)=0,VLOOKUP($A237,Economática!$A$3:$AI$823,18,FALSE)=\"-\"),1/0,VLOOKUP($A237,Economática!$A$3:$AI$823,18,FALSE)))","v":237.31},{"$f":"IF($A237=\"\",\"\",IF(OR(VLOOKUP($A237,Economática!$A$3:$AI$823,19,FALSE)=0,VLOOKUP($A237,Economática!$A$3:$AI$823,19,FALSE)=\"-\"),1/0,VLOOKUP($A237,Economática!$A$3:$AI$823,19,FALSE)))","v":291.68},{"$f":"IF($A237=\"\",\"\",VLOOKUP($A237,Economática!$A$3:$AI$823,20,FALSE)/E237)","v":2.2732622029631595},10.571043340685376,2.2987324161726979,10.689484023587493,{"$f":"IF($A237=\"\",\"\",IF(OR(VLOOKUP($A237,Economática!$A$3:$AI$823,21,FALSE)/100=0,VLOOKUP($A237,Economática!$A$3:$AI$823,21,FALSE)/100=\"-\"),1/0,VLOOKUP($A237,Economática!$A$3:$AI$823,21,FALSE)/100))","v":0.21704100000000001},{"$f":"IF($A237=\"\",\"\",IF(OR(VLOOKUP($A237,Economática!$A$3:$AI$823,22,FALSE)/100=0,VLOOKUP($A237,Economática!$A$3:$AI$823,22,FALSE)/100=\"-\"),1/0,VLOOKUP($A237,Economática!$A$3:$AI$823,22,FALSE)/100))","v":0.14341300000000001},{"$f":"IF($A237=\"\",\"\",IF(OR(VLOOKUP($A237,Economática!$A$3:$AI$823,23,FALSE)=0,VLOOKUP($A237,Economática!$A$3:$AI$823,23,FALSE)=\"-\"),1/0,VLOOKUP($A237,Economática!$A$3:$AI$823,23,FALSE)))","v":405.4},{"$f":"IF($A237=\"\",\"\",IF(OR(VLOOKUP($A237,Economática!$A$3:$AI$823,24,FALSE)=0,VLOOKUP($A237,Economática!$A$3:$AI$823,24,FALSE)=\"-\"),1/0,VLOOKUP($A237,Economática!$A$3:$AI$823,24,FALSE)))","v":466.8},{"$f":"IF($A237=\"\",\"\",IF(OR(VLOOKUP($A237,Economática!$A$3:$AI$823,25,FALSE)=0,VLOOKUP($A237,Economática!$A$3:$AI$823,25,FALSE)=\"-\"),1/0,VLOOKUP($A237,Economática!$A$3:$AI$823,25,FALSE)))","v":466.8},{"$f":"IF($A237=\"\",\"\",IF(ISERROR((F237+VLOOKUP($A237,Economática!$A$3:$AI$823,26,FALSE))/Y237),(F237+VLOOKUP($A237,Economática!$A$3:$AI$823,26,FALSE))/Y237,(F237+VLOOKUP($A237,Economática!$A$3:$AI$823,26,FALSE))/Y237))","v":7.0949657240788353},{"$f":"IF($A237=\"\",\"\",IF(OR(-VLOOKUP($A237,Economática!$A$3:$AI$823,27,FALSE)=0,-VLOOKUP($A237,Economática!$A$3:$AI$823,27,FALSE)=\"-\"),1/0,-VLOOKUP($A237,Economática!$A$3:$AI$823,27,FALSE)))","v":229.89},7.3732319830655244E-2,{"$f":"IF($A237=\"\",\"\",IF(OR(VLOOKUP($A237,Economática!$A$3:$AI$823,28,FALSE)=0,VLOOKUP($A237,Economática!$A$3:$AI$823,28,FALSE)=\"-\"),1/0,VLOOKUP($A237,Economática!$A$3:$AI$823,28,FALSE)))","v":-7.7},{"$f":"IF($A237=\"\",\"\",IF(OR(VLOOKUP($A237,Economática!$A$3:$AI$823,29,FALSE)=0,VLOOKUP($A237,Economática!$A$3:$AI$823,29,FALSE)=\"-\"),1/0,VLOOKUP($A237,Economática!$A$3:$AI$823,29,FALSE)))","v":9.9},{"$f":"IF($A237=\"\",\"\",IF(OR(VLOOKUP($A237,Economática!$A$3:$AI$823,30,FALSE)/E237=0,VLOOKUP($A237,Economática!$A$3:$AI$823,30,FALSE)/E237=\"-\",VLOOKUP($A237,Economática!$A$3:$AI$823,30,FALSE)/E237<33.33%,VLOOKUP($A237,Economática!$A$3:$AI$823,30,FALSE)/E237>100%),1/0,VLOOKUP($A237,Economática!$A$3:$AI$823,30,FALSE)/E237))","v":0.99992985682999647},"LEVE3",{"$f":"IF($A237=\"\",\"\",IF(OR(VLOOKUP($A237,Economática!$A$3:$AI$823,25,FALSE)=0,VLOOKUP($A237,Economática!$A$3:$AI$823,25,FALSE)=\"-\"),1/0,VLOOKUP($A237,Economática!$A$3:$AI$823,25,FALSE)))","v":466.8},{"$f":"CONCATENATE(Economática!B239,\" \",Economática!C239)","v":"Metal Leve ON"}]
[{"$f":"IF(Economática!AG240=\"\",\"\",Economática!AG240)","v":"SHUL4"},{"$f":"IF($A238=\"\",\"\",VLOOKUP(VLOOKUP($A238,Economática!$A$3:$AI$823,6,FALSE),Correção!$B$16:$C$36,2,FALSE))","v":"Veículos e peças"},{"$f":"IF(Economática!B240=\"\",\"\",Economática!B240)","v":"Schulz"},{"$f":"IF($A238=\"\",\"\",IF(OR(VLOOKUP($A238,Economática!$A$3:$AI$823,8,FALSE)=0,VLOOKUP($A238,Economática!$A$3:$AI$823,8,FALSE)=\"-\"),1/0,VLOOKUP($A238,Economática!$A$3:$AI$823,8,FALSE)))","v":7.47},{"$f":"IF(A238=\"\",\"\",IF(ISERROR(VLOOKUP(A238,Correção!$B$2:$G$13,9,FALSE)),VLOOKUP($A238,Economática!$A$3:$AI$823,9,FALSE),VLOOKUP(A238,Correção!$B$2:$G$13,9,FALSE)))","v":88.950999999999993},{"$f":"IF($A238=\"\",\"\",Economática!G240)","v":664.46},{"$f":"IF($A238=\"\",\"\",IF(OR(VLOOKUP($A238,Economática!$A$3:$AI$823,10,FALSE)=0,VLOOKUP($A238,Economática!$A$3:$AI$823,10,FALSE)=\"-\"),1/0,VLOOKUP($A238,Economática!$A$3:$AI$823,10,FALSE)))","v":540.71},{"$f":"IF($A238=\"\",\"\",IF(OR(VLOOKUP($A238,Economática!$A$3:$AI$823,11,FALSE)=0,VLOOKUP($A238,Economática!$A$3:$AI$823,11,FALSE)=\"-\"),1/0,VLOOKUP($A238,Economática!$A$3:$AI$823,11,FALSE)))","v":686.77},{"$f":"IF($A238=\"\",\"\",IF(OR(VLOOKUP($A238,Economática!$A$3:$AI$823,12,FALSE)=0,VLOOKUP($A238,Economática!$A$3:$AI$823,12,FALSE)=\"-\"),1/0,VLOOKUP($A238,Economática!$A$3:$AI$823,12,FALSE)))","v":946.59},{"$f":"IF($A238=\"\",\"\",IF(OR(VLOOKUP($A238,Economática!$A$3:$AI$823,13,FALSE)=0,VLOOKUP($A238,Economática!$A$3:$AI$823,13,FALSE)=\"-\"),1/0,VLOOKUP($A238,Economática!$A$3:$AI$823,13,FALSE)))","v":40.119999999999997},{"$f":"IF($A238=\"\",\"\",IF(OR(VLOOKUP($A238,Economática!$A$3:$AI$823,14,FALSE)=0,VLOOKUP($A238,Economática!$A$3:$AI$823,14,FALSE)=\"-\"),1/0,VLOOKUP($A238,Economática!$A$3:$AI$823,14,FALSE)))","v":12.29},{"$f":"IF($A238=\"\",\"\",IF(OR(VLOOKUP($A238,Economática!$A$3:$AI$823,15,FALSE)=0,VLOOKUP($A238,Economática!$A$3:$AI$823,15,FALSE)=\"-\"),1/0,VLOOKUP($A238,Economática!$A$3:$AI$823,15,FALSE)))","v":27.91},{"$f":"IF($A238=\"\",\"\",IF(OR(VLOOKUP($A238,Economática!$A$3:$AI$823,16,FALSE)=0,VLOOKUP($A238,Economática!$A$3:$AI$823,16,FALSE)=\"-\"),1/0,VLOOKUP($A238,Economática!$A$3:$AI$823,16,FALSE)))","v":50.08},{"$f":"IF($A238=\"\",\"\",IF(OR(VLOOKUP($A238,Economática!$A$3:$AI$823,17,FALSE)=0,VLOOKUP($A238,Economática!$A$3:$AI$823,17,FALSE)=\"-\"),1/0,VLOOKUP($A238,Economática!$A$3:$AI$823,17,FALSE)))","v":70.22},{"$f":"IF($A238=\"\",\"\",IF(OR(VLOOKUP($A238,Economática!$A$3:$AI$823,18,FALSE)=0,VLOOKUP($A238,Economática!$A$3:$AI$823,18,FALSE)=\"-\"),1/0,VLOOKUP($A238,Economática!$A$3:$AI$823,18,FALSE)))","v":40.119999999999997},{"$f":"IF($A238=\"\",\"\",IF(OR(VLOOKUP($A238,Economática!$A$3:$AI$823,19,FALSE)=0,VLOOKUP($A238,Economática!$A$3:$AI$823,19,FALSE)=\"-\"),1/0,VLOOKUP($A238,Economática!$A$3:$AI$823,19,FALSE)))","v":70.22},{"$f":"IF($A238=\"\",\"\",VLOOKUP($A238,Economática!$A$3:$AI$823,20,FALSE)/E238)","v":0.78942339040595388},6.0787399804386695,1.2288730927854115,9.4626028197094829,{"$f":"IF($A238=\"\",\"\",IF(OR(VLOOKUP($A238,Economática!$A$3:$AI$823,21,FALSE)/100=0,VLOOKUP($A238,Economática!$A$3:$AI$823,21,FALSE)/100=\"-\"),1/0,VLOOKUP($A238,Economática!$A$3:$AI$823,21,FALSE)/100))","v":0.144121},{"$f":"IF($A238=\"\",\"\",IF(OR(VLOOKUP($A238,Economática!$A$3:$AI$823,22,FALSE)/100=0,VLOOKUP($A238,Economática!$A$3:$AI$823,22,FALSE)/100=\"-\"),1/0,VLOOKUP($A238,Economática!$A$3:$AI$823,22,FALSE)/100))","v":0.39951300000000001},{"$f":"IF($A238=\"\",\"\",IF(OR(VLOOKUP($A238,Economática!$A$3:$AI$823,23,FALSE)=0,VLOOKUP($A238,Economática!$A$3:$AI$823,23,FALSE)=\"-\"),1/0,VLOOKUP($A238,Economática!$A$3:$AI$823,23,FALSE)))","v":91.3},{"$f":"IF($A238=\"\",\"\",IF(OR(VLOOKUP($A238,Economática!$A$3:$AI$823,24,FALSE)=0,VLOOKUP($A238,Economática!$A$3:$AI$823,24,FALSE)=\"-\"),1/0,VLOOKUP($A238,Economática!$A$3:$AI$823,24,FALSE)))","v":122},{"$f":"IF($A238=\"\",\"\",IF(OR(VLOOKUP($A238,Economática!$A$3:$AI$823,25,FALSE)=0,VLOOKUP($A238,Economática!$A$3:$AI$823,25,FALSE)=\"-\"),1/0,VLOOKUP($A238,Economática!$A$3:$AI$823,25,FALSE)))","v":122},{"$f":"IF($A238=\"\",\"\",IF(ISERROR((F238+VLOOKUP($A238,Economática!$A$3:$AI$823,26,FALSE))/Y238),(F238+VLOOKUP($A238,Economática!$A$3:$AI$823,26,FALSE))/Y238,(F238+VLOOKUP($A238,Economática!$A$3:$AI$823,26,FALSE))/Y238))","v":7.2170409836065579},{"$f":"IF($A238=\"\",\"\",IF(OR(-VLOOKUP($A238,Economática!$A$3:$AI$823,27,FALSE)=0,-VLOOKUP($A238,Economática!$A$3:$AI$823,27,FALSE)=\"-\"),1/0,-VLOOKUP($A238,Economática!$A$3:$AI$823,27,FALSE)))","v":17.57},2.6442524756945487E-2,{"$f":"IF($A238=\"\",\"\",IF(OR(VLOOKUP($A238,Economática!$A$3:$AI$823,28,FALSE)=0,VLOOKUP($A238,Economática!$A$3:$AI$823,28,FALSE)=\"-\"),1/0,VLOOKUP($A238,Economática!$A$3:$AI$823,28,FALSE)))","v":4.2},{"$f":"IF($A238=\"\",\"\",IF(OR(VLOOKUP($A238,Economática!$A$3:$AI$823,29,FALSE)=0,VLOOKUP($A238,Economática!$A$3:$AI$823,29,FALSE)=\"-\"),1/0,VLOOKUP($A238,Economática!$A$3:$AI$823,29,FALSE)))","v":58.4},{"$f":"IF($A238=\"\",\"\",IF(OR(VLOOKUP($A238,Economática!$A$3:$AI$823,30,FALSE)/E238=0,VLOOKUP($A238,Economática!$A$3:$AI$823,30,FALSE)/E238=\"-\",VLOOKUP($A238,Economática!$A$3:$AI$823,30,FALSE)/E238<33.33%,VLOOKUP($A238,Economática!$A$3:$AI$823,30,FALSE)/E238>100%),1/0,VLOOKUP($A238,Economática!$A$3:$AI$823,30,FALSE)/E238))","v":0.42944992186709541},"SHUL4",{"$f":"IF($A238=\"\",\"\",IF(OR(VLOOKUP($A238,Economática!$A$3:$AI$823,25,FALSE)=0,VLOOKUP($A238,Economática!$A$3:$AI$823,25,FALSE)=\"-\"),1/0,VLOOKUP($A238,Economática!$A$3:$AI$823,25,FALSE)))","v":122},{"$f":"CONCATENATE(Economática!B240,\" \",Economática!C240)","v":"Schulz PN"}]
[{"$f":"IF(Economática!AG241=\"\",\"\",Economática!AG241)","v":"TUPY3"},{"$f":"IF($A239=\"\",\"\",VLOOKUP(VLOOKUP($A239,Economática!$A$3:$AI$823,6,FALSE),Correção!$B$16:$C$36,2,FALSE))","v":"Veículos e peças"},{"$f":"IF(Economática!B241=\"\",\"\",Economática!B241)","v":"Tupy"},{"$f":"IF($A239=\"\",\"\",IF(OR(VLOOKUP($A239,Economática!$A$3:$AI$823,8,FALSE)=0,VLOOKUP($A239,Economática!$A$3:$AI$823,8,FALSE)=\"-\"),1/0,VLOOKUP($A239,Economática!$A$3:$AI$823,8,FALSE)))","v":18.12},{"$f":"IF(A239=\"\",\"\",IF(ISERROR(VLOOKUP(A239,Correção!$B$2:$G$13,9,FALSE)),VLOOKUP($A239,Economática!$A$3:$AI$823,9,FALSE),VLOOKUP(A239,Correção!$B$2:$G$13,9,FALSE)))","v":144.16399999999999},{"$f":"IF($A239=\"\",\"\",Economática!G241)","v":2612.25},{"$f":"IF($A239=\"\",\"\",IF(OR(VLOOKUP($A239,Economática!$A$3:$AI$823,10,FALSE)=0,VLOOKUP($A239,Economática!$A$3:$AI$823,10,FALSE)=\"-\"),1/0,VLOOKUP($A239,Economática!$A$3:$AI$823,10,FALSE)))","v":2199.96},{"$f":"IF($A239=\"\",\"\",IF(OR(VLOOKUP($A239,Economática!$A$3:$AI$823,11,FALSE)=0,VLOOKUP($A239,Economática!$A$3:$AI$823,11,FALSE)=\"-\"),1/0,VLOOKUP($A239,Economática!$A$3:$AI$823,11,FALSE)))","v":3706.15},{"$f":"IF($A239=\"\",\"\",IF(OR(VLOOKUP($A239,Economática!$A$3:$AI$823,12,FALSE)=0,VLOOKUP($A239,Economática!$A$3:$AI$823,12,FALSE)=\"-\"),1/0,VLOOKUP($A239,Economática!$A$3:$AI$823,12,FALSE)))","v":4828.22},{"$f":"IF($A239=\"\",\"\",IF(OR(VLOOKUP($A239,Economática!$A$3:$AI$823,13,FALSE)=0,VLOOKUP($A239,Economática!$A$3:$AI$823,13,FALSE)=\"-\"),1/0,VLOOKUP($A239,Economática!$A$3:$AI$823,13,FALSE)))","v":153.4},{"$f":"IF($A239=\"\",\"\",IF(OR(VLOOKUP($A239,Economática!$A$3:$AI$823,14,FALSE)=0,VLOOKUP($A239,Economática!$A$3:$AI$823,14,FALSE)=\"-\"),1/0,VLOOKUP($A239,Economática!$A$3:$AI$823,14,FALSE)))","v":56.89},{"$f":"IF($A239=\"\",\"\",IF(OR(VLOOKUP($A239,Economática!$A$3:$AI$823,15,FALSE)=0,VLOOKUP($A239,Economática!$A$3:$AI$823,15,FALSE)=\"-\"),1/0,VLOOKUP($A239,Economática!$A$3:$AI$823,15,FALSE)))","v":105.17},{"$f":"IF($A239=\"\",\"\",IF(OR(VLOOKUP($A239,Economática!$A$3:$AI$823,16,FALSE)=0,VLOOKUP($A239,Economática!$A$3:$AI$823,16,FALSE)=\"-\"),1/0,VLOOKUP($A239,Economática!$A$3:$AI$823,16,FALSE)))","v":193.81},{"$f":"IF($A239=\"\",\"\",IF(OR(VLOOKUP($A239,Economática!$A$3:$AI$823,17,FALSE)=0,VLOOKUP($A239,Economática!$A$3:$AI$823,17,FALSE)=\"-\"),1/0,VLOOKUP($A239,Economática!$A$3:$AI$823,17,FALSE)))","v":271.72000000000003},{"$f":"IF($A239=\"\",\"\",IF(OR(VLOOKUP($A239,Economática!$A$3:$AI$823,18,FALSE)=0,VLOOKUP($A239,Economática!$A$3:$AI$823,18,FALSE)=\"-\"),1/0,VLOOKUP($A239,Economática!$A$3:$AI$823,18,FALSE)))","v":153.4},{"$f":"IF($A239=\"\",\"\",IF(OR(VLOOKUP($A239,Economática!$A$3:$AI$823,19,FALSE)=0,VLOOKUP($A239,Economática!$A$3:$AI$823,19,FALSE)=\"-\"),1/0,VLOOKUP($A239,Economática!$A$3:$AI$823,19,FALSE)))","v":271.72000000000003},{"$f":"IF($A239=\"\",\"\",VLOOKUP($A239,Economática!$A$3:$AI$823,20,FALSE)/E239)","v":1.8847978690935328},15.260120418412365,1.1874087165221185,9.6137629913145872,{"$f":"IF($A239=\"\",\"\",IF(OR(VLOOKUP($A239,Economática!$A$3:$AI$823,21,FALSE)/100=0,VLOOKUP($A239,Economática!$A$3:$AI$823,21,FALSE)/100=\"-\"),1/0,VLOOKUP($A239,Economática!$A$3:$AI$823,21,FALSE)/100))","v":0.13700300000000001},{"$f":"IF($A239=\"\",\"\",IF(OR(VLOOKUP($A239,Economática!$A$3:$AI$823,22,FALSE)/100=0,VLOOKUP($A239,Economática!$A$3:$AI$823,22,FALSE)/100=\"-\"),1/0,VLOOKUP($A239,Economática!$A$3:$AI$823,22,FALSE)/100))","v":0.31509199999999998},{"$f":"IF($A239=\"\",\"\",IF(OR(VLOOKUP($A239,Economática!$A$3:$AI$823,23,FALSE)=0,VLOOKUP($A239,Economática!$A$3:$AI$823,23,FALSE)=\"-\"),1/0,VLOOKUP($A239,Economática!$A$3:$AI$823,23,FALSE)))","v":447.4},{"$f":"IF($A239=\"\",\"\",IF(OR(VLOOKUP($A239,Economática!$A$3:$AI$823,24,FALSE)=0,VLOOKUP($A239,Economática!$A$3:$AI$823,24,FALSE)=\"-\"),1/0,VLOOKUP($A239,Economática!$A$3:$AI$823,24,FALSE)))","v":649.29999999999995},{"$f":"IF($A239=\"\",\"\",IF(OR(VLOOKUP($A239,Economática!$A$3:$AI$823,25,FALSE)=0,VLOOKUP($A239,Economática!$A$3:$AI$823,25,FALSE)=\"-\"),1/0,VLOOKUP($A239,Economática!$A$3:$AI$823,25,FALSE)))","v":649.29999999999995},{"$f":"IF($A239=\"\",\"\",IF(ISERROR((F239+VLOOKUP($A239,Economática!$A$3:$AI$823,26,FALSE))/Y239),(F239+VLOOKUP($A239,Economática!$A$3:$AI$823,26,FALSE))/Y239,(F239+VLOOKUP($A239,Economática!$A$3:$AI$823,26,FALSE))/Y239))","v":5.0907746804250733},{"$f":"IF($A239=\"\",\"\",IF(OR(-VLOOKUP($A239,Economática!$A$3:$AI$823,27,FALSE)=0,-VLOOKUP($A239,Economática!$A$3:$AI$823,27,FALSE)=\"-\"),1/0,-VLOOKUP($A239,Economática!$A$3:$AI$823,27,FALSE)))","v":174.95},6.6972916068523305E-2,{"$f":"IF($A239=\"\",\"\",IF(OR(VLOOKUP($A239,Economática!$A$3:$AI$823,28,FALSE)=0,VLOOKUP($A239,Economática!$A$3:$AI$823,28,FALSE)=\"-\"),1/0,VLOOKUP($A239,Economática!$A$3:$AI$823,28,FALSE)))","v":3.4},{"$f":"IF($A239=\"\",\"\",IF(OR(VLOOKUP($A239,Economática!$A$3:$AI$823,29,FALSE)=0,VLOOKUP($A239,Economática!$A$3:$AI$823,29,FALSE)=\"-\"),1/0,VLOOKUP($A239,Economática!$A$3:$AI$823,29,FALSE)))","v":11.1},{"$f":"IF($A239=\"\",\"\",IF(OR(VLOOKUP($A239,Economática!$A$3:$AI$823,30,FALSE)/E239=0,VLOOKUP($A239,Economática!$A$3:$AI$823,30,FALSE)/E239=\"-\",VLOOKUP($A239,Economática!$A$3:$AI$823,30,FALSE)/E239<33.33%,VLOOKUP($A239,Economática!$A$3:$AI$823,30,FALSE)/E239>100%),1/0,VLOOKUP($A239,Economática!$A$3:$AI$823,30,FALSE)/E239))","v":{"$error":"#DIV/0!"}},"TUPY3",{"$f":"IF($A239=\"\",\"\",IF(OR(VLOOKUP($A239,Economática!$A$3:$AI$823,25,FALSE)=0,VLOOKUP($A239,Economática!$A$3:$AI$823,25,FALSE)=\"-\"),1/0,VLOOKUP($A239,Economática!$A$3:$AI$823,25,FALSE)))","v":649.29999999999995},{"$f":"CONCATENATE(Economática!B241,\" \",Economática!C241)","v":"Tupy ON"}]
[{"$f":"IF(Economática!AG242=\"\",\"\",Economática!AG242)","v":"RAPT4"},{"$f":"IF($A240=\"\",\"\",VLOOKUP(VLOOKUP($A240,Economática!$A$3:$AI$823,6,FALSE),Correção!$B$16:$C$36,2,FALSE))","v":"Veículos e peças"},{"$f":"IF(Economática!B242=\"\",\"\",Economática!B242)","v":"Randon Part"},{"$f":"IF($A240=\"\",\"\",IF(OR(VLOOKUP($A240,Economática!$A$3:$AI$823,8,FALSE)=0,VLOOKUP($A240,Economática!$A$3:$AI$823,8,FALSE)=\"-\"),1/0,VLOOKUP($A240,Economática!$A$3:$AI$823,8,FALSE)))","v":9.6999999999999993},{"$f":"IF(A240=\"\",\"\",IF(ISERROR(VLOOKUP(A240,Correção!$B$2:$G$13,9,FALSE)),VLOOKUP($A240,Economática!$A$3:$AI$823,9,FALSE),VLOOKUP(A240,Correção!$B$2:$G$13,9,FALSE)))","v":342.43099999999998},{"$f":"IF($A240=\"\",\"\",Economática!G242)","v":3053.59},{"$f":"IF($A240=\"\",\"\",IF(OR(VLOOKUP($A240,Economática!$A$3:$AI$823,10,FALSE)=0,VLOOKUP($A240,Economática!$A$3:$AI$823,10,FALSE)=\"-\"),1/0,VLOOKUP($A240,Economática!$A$3:$AI$823,10,FALSE)))","v":1527.31},{"$f":"IF($A240=\"\",\"\",IF(OR(VLOOKUP($A240,Economática!$A$3:$AI$823,11,FALSE)=0,VLOOKUP($A240,Economática!$A$3:$AI$823,11,FALSE)=\"-\"),1/0,VLOOKUP($A240,Economática!$A$3:$AI$823,11,FALSE)))","v":2936.76},{"$f":"IF($A240=\"\",\"\",IF(OR(VLOOKUP($A240,Economática!$A$3:$AI$823,12,FALSE)=0,VLOOKUP($A240,Economática!$A$3:$AI$823,12,FALSE)=\"-\"),1/0,VLOOKUP($A240,Economática!$A$3:$AI$823,12,FALSE)))","v":4262.6000000000004},{"$f":"IF($A240=\"\",\"\",IF(OR(VLOOKUP($A240,Economática!$A$3:$AI$823,13,FALSE)=0,VLOOKUP($A240,Economática!$A$3:$AI$823,13,FALSE)=\"-\"),1/0,VLOOKUP($A240,Economática!$A$3:$AI$823,13,FALSE)))","v":46.71},{"$f":"IF($A240=\"\",\"\",IF(OR(VLOOKUP($A240,Economática!$A$3:$AI$823,14,FALSE)=0,VLOOKUP($A240,Economática!$A$3:$AI$823,14,FALSE)=\"-\"),1/0,VLOOKUP($A240,Economática!$A$3:$AI$823,14,FALSE)))","v":43.2},{"$f":"IF($A240=\"\",\"\",IF(OR(VLOOKUP($A240,Economática!$A$3:$AI$823,15,FALSE)=0,VLOOKUP($A240,Economática!$A$3:$AI$823,15,FALSE)=\"-\"),1/0,VLOOKUP($A240,Economática!$A$3:$AI$823,15,FALSE)))","v":74.63},{"$f":"IF($A240=\"\",\"\",IF(OR(VLOOKUP($A240,Economática!$A$3:$AI$823,16,FALSE)=0,VLOOKUP($A240,Economática!$A$3:$AI$823,16,FALSE)=\"-\"),1/0,VLOOKUP($A240,Economática!$A$3:$AI$823,16,FALSE)))","v":116.28},{"$f":"IF($A240=\"\",\"\",IF(OR(VLOOKUP($A240,Economática!$A$3:$AI$823,17,FALSE)=0,VLOOKUP($A240,Economática!$A$3:$AI$823,17,FALSE)=\"-\"),1/0,VLOOKUP($A240,Economática!$A$3:$AI$823,17,FALSE)))","v":151.72},{"$f":"IF($A240=\"\",\"\",IF(OR(VLOOKUP($A240,Economática!$A$3:$AI$823,18,FALSE)=0,VLOOKUP($A240,Economática!$A$3:$AI$823,18,FALSE)=\"-\"),1/0,VLOOKUP($A240,Economática!$A$3:$AI$823,18,FALSE)))","v":46.71},{"$f":"IF($A240=\"\",\"\",IF(OR(VLOOKUP($A240,Economática!$A$3:$AI$823,19,FALSE)=0,VLOOKUP($A240,Economática!$A$3:$AI$823,19,FALSE)=\"-\"),1/0,VLOOKUP($A240,Economática!$A$3:$AI$823,19,FALSE)))","v":151.72},{"$f":"IF($A240=\"\",\"\",VLOOKUP($A240,Economática!$A$3:$AI$823,20,FALSE)/E240)","v":0.44306736247594408},4.4601978208748623,2.1747914306853224,21.892833509095698,{"$f":"IF($A240=\"\",\"\",IF(OR(VLOOKUP($A240,Economática!$A$3:$AI$823,21,FALSE)/100=0,VLOOKUP($A240,Economática!$A$3:$AI$823,21,FALSE)/100=\"-\"),1/0,VLOOKUP($A240,Economática!$A$3:$AI$823,21,FALSE)/100))","v":0.118918},{"$f":"IF($A240=\"\",\"\",IF(OR(VLOOKUP($A240,Economática!$A$3:$AI$823,22,FALSE)/100=0,VLOOKUP($A240,Economática!$A$3:$AI$823,22,FALSE)/100=\"-\"),1/0,VLOOKUP($A240,Economática!$A$3:$AI$823,22,FALSE)/100))","v":0.54322000000000004},{"$f":"IF($A240=\"\",\"\",IF(OR(VLOOKUP($A240,Economática!$A$3:$AI$823,23,FALSE)=0,VLOOKUP($A240,Economática!$A$3:$AI$823,23,FALSE)=\"-\"),1/0,VLOOKUP($A240,Economática!$A$3:$AI$823,23,FALSE)))","v":308.2},{"$f":"IF($A240=\"\",\"\",IF(OR(VLOOKUP($A240,Economática!$A$3:$AI$823,24,FALSE)=0,VLOOKUP($A240,Economática!$A$3:$AI$823,24,FALSE)=\"-\"),1/0,VLOOKUP($A240,Economática!$A$3:$AI$823,24,FALSE)))","v":559.70000000000005},{"$f":"IF($A240=\"\",\"\",IF(OR(VLOOKUP($A240,Economática!$A$3:$AI$823,25,FALSE)=0,VLOOKUP($A240,Economática!$A$3:$AI$823,25,FALSE)=\"-\"),1/0,VLOOKUP($A240,Economática!$A$3:$AI$823,25,FALSE)))","v":559.70000000000005},{"$f":"IF($A240=\"\",\"\",IF(ISERROR((F240+VLOOKUP($A240,Economática!$A$3:$AI$823,26,FALSE))/Y240),(F240+VLOOKUP($A240,Economática!$A$3:$AI$823,26,FALSE))/Y240,(F240+VLOOKUP($A240,Economática!$A$3:$AI$823,26,FALSE))/Y240))","v":7.4405109880292999},{"$f":"IF($A240=\"\",\"\",IF(OR(-VLOOKUP($A240,Economática!$A$3:$AI$823,27,FALSE)=0,-VLOOKUP($A240,Economática!$A$3:$AI$823,27,FALSE)=\"-\"),1/0,-VLOOKUP($A240,Economática!$A$3:$AI$823,27,FALSE)))","v":34.92},1.14357199231069E-2,{"$f":"IF($A240=\"\",\"\",IF(OR(VLOOKUP($A240,Economática!$A$3:$AI$823,28,FALSE)=0,VLOOKUP($A240,Economática!$A$3:$AI$823,28,FALSE)=\"-\"),1/0,VLOOKUP($A240,Economática!$A$3:$AI$823,28,FALSE)))","v":0.5},{"$f":"IF($A240=\"\",\"\",IF(OR(VLOOKUP($A240,Economática!$A$3:$AI$823,29,FALSE)=0,VLOOKUP($A240,Economática!$A$3:$AI$823,29,FALSE)=\"-\"),1/0,VLOOKUP($A240,Economática!$A$3:$AI$823,29,FALSE)))","v":37.1},{"$f":"IF($A240=\"\",\"\",IF(OR(VLOOKUP($A240,Economática!$A$3:$AI$823,30,FALSE)/E240=0,VLOOKUP($A240,Economática!$A$3:$AI$823,30,FALSE)/E240=\"-\",VLOOKUP($A240,Economática!$A$3:$AI$823,30,FALSE)/E240<33.33%,VLOOKUP($A240,Economática!$A$3:$AI$823,30,FALSE)/E240>100%),1/0,VLOOKUP($A240,Economática!$A$3:$AI$823,30,FALSE)/E240))","v":0.34021452496999399},"RAPT4",{"$f":"IF($A240=\"\",\"\",IF(OR(VLOOKUP($A240,Economática!$A$3:$AI$823,25,FALSE)=0,VLOOKUP($A240,Economática!$A$3:$AI$823,25,FALSE)=\"-\"),1/0,VLOOKUP($A240,Economática!$A$3:$AI$823,25,FALSE)))","v":559.70000000000005},{"$f":"CONCATENATE(Economática!B242,\" \",Economática!C242)","v":"Randon Part PN"}]
[{"$f":"IF(Economática!AG243=\"\",\"\",Economática!AG243)","v":"MYPK3"},{"$f":"IF($A241=\"\",\"\",VLOOKUP(VLOOKUP($A241,Economática!$A$3:$AI$823,6,FALSE),Correção!$B$16:$C$36,2,FALSE))","v":"Veículos e peças"},{"$f":"IF(Economática!B243=\"\",\"\",Economática!B243)","v":"Iochp-Maxion"},{"$f":"IF($A241=\"\",\"\",IF(OR(VLOOKUP($A241,Economática!$A$3:$AI$823,8,FALSE)=0,VLOOKUP($A241,Economática!$A$3:$AI$823,8,FALSE)=\"-\"),1/0,VLOOKUP($A241,Economática!$A$3:$AI$823,8,FALSE)))","v":21.45},{"$f":"IF(A241=\"\",\"\",IF(ISERROR(VLOOKUP(A241,Correção!$B$2:$G$13,9,FALSE)),VLOOKUP($A241,Economática!$A$3:$AI$823,9,FALSE),VLOOKUP(A241,Correção!$B$2:$G$13,9,FALSE)))","v":149.351},{"$f":"IF($A241=\"\",\"\",Economática!G243)","v":3203.58},{"$f":"IF($A241=\"\",\"\",IF(OR(VLOOKUP($A241,Economática!$A$3:$AI$823,10,FALSE)=0,VLOOKUP($A241,Economática!$A$3:$AI$823,10,FALSE)=\"-\"),1/0,VLOOKUP($A241,Economática!$A$3:$AI$823,10,FALSE)))","v":2921.95},{"$f":"IF($A241=\"\",\"\",IF(OR(VLOOKUP($A241,Economática!$A$3:$AI$823,11,FALSE)=0,VLOOKUP($A241,Economática!$A$3:$AI$823,11,FALSE)=\"-\"),1/0,VLOOKUP($A241,Economática!$A$3:$AI$823,11,FALSE)))","v":7487.94},{"$f":"IF($A241=\"\",\"\",IF(OR(VLOOKUP($A241,Economática!$A$3:$AI$823,12,FALSE)=0,VLOOKUP($A241,Economática!$A$3:$AI$823,12,FALSE)=\"-\"),1/0,VLOOKUP($A241,Economática!$A$3:$AI$823,12,FALSE)))","v":9616.2999999999993},{"$f":"IF($A241=\"\",\"\",IF(OR(VLOOKUP($A241,Economática!$A$3:$AI$823,13,FALSE)=0,VLOOKUP($A241,Economática!$A$3:$AI$823,13,FALSE)=\"-\"),1/0,VLOOKUP($A241,Economática!$A$3:$AI$823,13,FALSE)))","v":6.4},{"$f":"IF($A241=\"\",\"\",IF(OR(VLOOKUP($A241,Economática!$A$3:$AI$823,14,FALSE)=0,VLOOKUP($A241,Economática!$A$3:$AI$823,14,FALSE)=\"-\"),1/0,VLOOKUP($A241,Economática!$A$3:$AI$823,14,FALSE)))","v":-12.97},{"$f":"IF($A241=\"\",\"\",IF(OR(VLOOKUP($A241,Economática!$A$3:$AI$823,15,FALSE)=0,VLOOKUP($A241,Economática!$A$3:$AI$823,15,FALSE)=\"-\"),1/0,VLOOKUP($A241,Economática!$A$3:$AI$823,15,FALSE)))","v":31.17},{"$f":"IF($A241=\"\",\"\",IF(OR(VLOOKUP($A241,Economática!$A$3:$AI$823,16,FALSE)=0,VLOOKUP($A241,Economática!$A$3:$AI$823,16,FALSE)=\"-\"),1/0,VLOOKUP($A241,Economática!$A$3:$AI$823,16,FALSE)))","v":124.65},{"$f":"IF($A241=\"\",\"\",IF(OR(VLOOKUP($A241,Economática!$A$3:$AI$823,17,FALSE)=0,VLOOKUP($A241,Economática!$A$3:$AI$823,17,FALSE)=\"-\"),1/0,VLOOKUP($A241,Economática!$A$3:$AI$823,17,FALSE)))","v":201.33},{"$f":"IF($A241=\"\",\"\",IF(OR(VLOOKUP($A241,Economática!$A$3:$AI$823,18,FALSE)=0,VLOOKUP($A241,Economática!$A$3:$AI$823,18,FALSE)=\"-\"),1/0,VLOOKUP($A241,Economática!$A$3:$AI$823,18,FALSE)))","v":6.4},{"$f":"IF($A241=\"\",\"\",IF(OR(VLOOKUP($A241,Economática!$A$3:$AI$823,19,FALSE)=0,VLOOKUP($A241,Economática!$A$3:$AI$823,19,FALSE)=\"-\"),1/0,VLOOKUP($A241,Economática!$A$3:$AI$823,19,FALSE)))","v":201.33},{"$f":"IF($A241=\"\",\"\",VLOOKUP($A241,Economática!$A$3:$AI$823,20,FALSE)/E241)","v":1.3480324872280736},19.564314935956236,1.0963839045842674,15.91207942184473,{"$f":"IF($A241=\"\",\"\",IF(OR(VLOOKUP($A241,Economática!$A$3:$AI$823,21,FALSE)/100=0,VLOOKUP($A241,Economática!$A$3:$AI$823,21,FALSE)/100=\"-\"),1/0,VLOOKUP($A241,Economática!$A$3:$AI$823,21,FALSE)/100))","v":0.116381},{"$f":"IF($A241=\"\",\"\",IF(OR(VLOOKUP($A241,Economática!$A$3:$AI$823,22,FALSE)/100=0,VLOOKUP($A241,Economática!$A$3:$AI$823,22,FALSE)/100=\"-\"),1/0,VLOOKUP($A241,Economática!$A$3:$AI$823,22,FALSE)/100))","v":0.72746},{"$f":"IF($A241=\"\",\"\",IF(OR(VLOOKUP($A241,Economática!$A$3:$AI$823,23,FALSE)=0,VLOOKUP($A241,Economática!$A$3:$AI$823,23,FALSE)=\"-\"),1/0,VLOOKUP($A241,Economática!$A$3:$AI$823,23,FALSE)))","v":798.6},{"$f":"IF($A241=\"\",\"\",IF(OR(VLOOKUP($A241,Economática!$A$3:$AI$823,24,FALSE)=0,VLOOKUP($A241,Economática!$A$3:$AI$823,24,FALSE)=\"-\"),1/0,VLOOKUP($A241,Economática!$A$3:$AI$823,24,FALSE)))","v":1057.0999999999999},{"$f":"IF($A241=\"\",\"\",IF(OR(VLOOKUP($A241,Economática!$A$3:$AI$823,25,FALSE)=0,VLOOKUP($A241,Economática!$A$3:$AI$823,25,FALSE)=\"-\"),1/0,VLOOKUP($A241,Economática!$A$3:$AI$823,25,FALSE)))","v":1057.0999999999999},{"$f":"IF($A241=\"\",\"\",IF(ISERROR((F241+VLOOKUP($A241,Economática!$A$3:$AI$823,26,FALSE))/Y241),(F241+VLOOKUP($A241,Economática!$A$3:$AI$823,26,FALSE))/Y241,(F241+VLOOKUP($A241,Economática!$A$3:$AI$823,26,FALSE))/Y241))","v":5.23165452653486},{"$f":"IF($A241=\"\",\"\",IF(OR(-VLOOKUP($A241,Economática!$A$3:$AI$823,27,FALSE)=0,-VLOOKUP($A241,Economática!$A$3:$AI$823,27,FALSE)=\"-\"),1/0,-VLOOKUP($A241,Economática!$A$3:$AI$823,27,FALSE)))","v":36.25},1.1315465822610954E-2,{"$f":"IF($A241=\"\",\"\",IF(OR(VLOOKUP($A241,Economática!$A$3:$AI$823,28,FALSE)=0,VLOOKUP($A241,Economática!$A$3:$AI$823,28,FALSE)=\"-\"),1/0,VLOOKUP($A241,Economática!$A$3:$AI$823,28,FALSE)))","v":-1.2},{"$f":"IF($A241=\"\",\"\",IF(OR(VLOOKUP($A241,Economática!$A$3:$AI$823,29,FALSE)=0,VLOOKUP($A241,Economática!$A$3:$AI$823,29,FALSE)=\"-\"),1/0,VLOOKUP($A241,Economática!$A$3:$AI$823,29,FALSE)))","v":-2.5},{"$f":"IF($A241=\"\",\"\",IF(OR(VLOOKUP($A241,Economática!$A$3:$AI$823,30,FALSE)/E241=0,VLOOKUP($A241,Economática!$A$3:$AI$823,30,FALSE)/E241=\"-\",VLOOKUP($A241,Economática!$A$3:$AI$823,30,FALSE)/E241<33.33%,VLOOKUP($A241,Economática!$A$3:$AI$823,30,FALSE)/E241>100%),1/0,VLOOKUP($A241,Economática!$A$3:$AI$823,30,FALSE)/E241))","v":{"$error":"#DIV/0!"}},"MYPK3",{"$f":"IF($A241=\"\",\"\",IF(OR(VLOOKUP($A241,Economática!$A$3:$AI$823,25,FALSE)=0,VLOOKUP($A241,Economática!$A$3:$AI$823,25,FALSE)=\"-\"),1/0,VLOOKUP($A241,Economática!$A$3:$AI$823,25,FALSE)))","v":1057.0999999999999},{"$f":"CONCATENATE(Economática!B243,\" \",Economática!C243)","v":"Iochp-Maxion ON"}]
[{"$f":"IF(Economática!AG244=\"\",\"\",Economática!AG244)","v":"FRAS3"},{"$f":"IF($A242=\"\",\"\",VLOOKUP(VLOOKUP($A242,Economática!$A$3:$AI$823,6,FALSE),Correção!$B$16:$C$36,2,FALSE))","v":"Veículos e peças"},{"$f":"IF(Economática!B244=\"\",\"\",Economática!B244)","v":"Fras-Le"},{"$f":"IF($A242=\"\",\"\",IF(OR(VLOOKUP($A242,Economática!$A$3:$AI$823,8,FALSE)=0,VLOOKUP($A242,Economática!$A$3:$AI$823,8,FALSE)=\"-\"),1/0,VLOOKUP($A242,Economática!$A$3:$AI$823,8,FALSE)))","v":5.0999999999999996},{"$f":"IF(A242=\"\",\"\",IF(ISERROR(VLOOKUP(A242,Correção!$B$2:$G$13,9,FALSE)),VLOOKUP($A242,Economática!$A$3:$AI$823,9,FALSE),VLOOKUP(A242,Correção!$B$2:$G$13,9,FALSE)))","v":214.566},{"$f":"IF($A242=\"\",\"\",Economática!G244)","v":1094.29},{"$f":"IF($A242=\"\",\"\",IF(OR(VLOOKUP($A242,Economática!$A$3:$AI$823,10,FALSE)=0,VLOOKUP($A242,Economática!$A$3:$AI$823,10,FALSE)=\"-\"),1/0,VLOOKUP($A242,Economática!$A$3:$AI$823,10,FALSE)))","v":807.13},{"$f":"IF($A242=\"\",\"\",IF(OR(VLOOKUP($A242,Economática!$A$3:$AI$823,11,FALSE)=0,VLOOKUP($A242,Economática!$A$3:$AI$823,11,FALSE)=\"-\"),1/0,VLOOKUP($A242,Economática!$A$3:$AI$823,11,FALSE)))","v":832.83},{"$f":"IF($A242=\"\",\"\",IF(OR(VLOOKUP($A242,Economática!$A$3:$AI$823,12,FALSE)=0,VLOOKUP($A242,Economática!$A$3:$AI$823,12,FALSE)=\"-\"),1/0,VLOOKUP($A242,Economática!$A$3:$AI$823,12,FALSE)))","v":1141.1500000000001},{"$f":"IF($A242=\"\",\"\",IF(OR(VLOOKUP($A242,Economática!$A$3:$AI$823,13,FALSE)=0,VLOOKUP($A242,Economática!$A$3:$AI$823,13,FALSE)=\"-\"),1/0,VLOOKUP($A242,Economática!$A$3:$AI$823,13,FALSE)))","v":64.069999999999993},{"$f":"IF($A242=\"\",\"\",IF(OR(VLOOKUP($A242,Economática!$A$3:$AI$823,14,FALSE)=0,VLOOKUP($A242,Economática!$A$3:$AI$823,14,FALSE)=\"-\"),1/0,VLOOKUP($A242,Economática!$A$3:$AI$823,14,FALSE)))","v":45.19},{"$f":"IF($A242=\"\",\"\",IF(OR(VLOOKUP($A242,Economática!$A$3:$AI$823,15,FALSE)=0,VLOOKUP($A242,Economática!$A$3:$AI$823,15,FALSE)=\"-\"),1/0,VLOOKUP($A242,Economática!$A$3:$AI$823,15,FALSE)))","v":63.95},{"$f":"IF($A242=\"\",\"\",IF(OR(VLOOKUP($A242,Economática!$A$3:$AI$823,16,FALSE)=0,VLOOKUP($A242,Economática!$A$3:$AI$823,16,FALSE)=\"-\"),1/0,VLOOKUP($A242,Economática!$A$3:$AI$823,16,FALSE)))","v":74.45},{"$f":"IF($A242=\"\",\"\",IF(OR(VLOOKUP($A242,Economática!$A$3:$AI$823,17,FALSE)=0,VLOOKUP($A242,Economática!$A$3:$AI$823,17,FALSE)=\"-\"),1/0,VLOOKUP($A242,Economática!$A$3:$AI$823,17,FALSE)))","v":93.33},{"$f":"IF($A242=\"\",\"\",IF(OR(VLOOKUP($A242,Economática!$A$3:$AI$823,18,FALSE)=0,VLOOKUP($A242,Economática!$A$3:$AI$823,18,FALSE)=\"-\"),1/0,VLOOKUP($A242,Economática!$A$3:$AI$823,18,FALSE)))","v":64.069999999999993},{"$f":"IF($A242=\"\",\"\",IF(OR(VLOOKUP($A242,Economática!$A$3:$AI$823,19,FALSE)=0,VLOOKUP($A242,Economática!$A$3:$AI$823,19,FALSE)=\"-\"),1/0,VLOOKUP($A242,Economática!$A$3:$AI$823,19,FALSE)))","v":93.33},{"$f":"IF($A242=\"\",\"\",VLOOKUP($A242,Economática!$A$3:$AI$823,20,FALSE)/E242)","v":0.43497105785632389},3.7616863808804748,1.3557749061489475,11.724918032786885,{"$f":"IF($A242=\"\",\"\",IF(OR(VLOOKUP($A242,Economática!$A$3:$AI$823,21,FALSE)/100=0,VLOOKUP($A242,Economática!$A$3:$AI$823,21,FALSE)/100=\"-\"),1/0,VLOOKUP($A242,Economática!$A$3:$AI$823,21,FALSE)/100))","v":0.11310199999999999},{"$f":"IF($A242=\"\",\"\",IF(OR(VLOOKUP($A242,Economática!$A$3:$AI$823,22,FALSE)/100=0,VLOOKUP($A242,Economática!$A$3:$AI$823,22,FALSE)/100=\"-\"),1/0,VLOOKUP($A242,Economática!$A$3:$AI$823,22,FALSE)/100))","v":0.170791},{"$f":"IF($A242=\"\",\"\",IF(OR(VLOOKUP($A242,Economática!$A$3:$AI$823,23,FALSE)=0,VLOOKUP($A242,Economática!$A$3:$AI$823,23,FALSE)=\"-\"),1/0,VLOOKUP($A242,Economática!$A$3:$AI$823,23,FALSE)))","v":106.4},{"$f":"IF($A242=\"\",\"\",IF(OR(VLOOKUP($A242,Economática!$A$3:$AI$823,24,FALSE)=0,VLOOKUP($A242,Economática!$A$3:$AI$823,24,FALSE)=\"-\"),1/0,VLOOKUP($A242,Economática!$A$3:$AI$823,24,FALSE)))","v":183.8},{"$f":"IF($A242=\"\",\"\",IF(OR(VLOOKUP($A242,Economática!$A$3:$AI$823,25,FALSE)=0,VLOOKUP($A242,Economática!$A$3:$AI$823,25,FALSE)=\"-\"),1/0,VLOOKUP($A242,Economática!$A$3:$AI$823,25,FALSE)))","v":183.8},{"$f":"IF($A242=\"\",\"\",IF(ISERROR((F242+VLOOKUP($A242,Economática!$A$3:$AI$823,26,FALSE))/Y242),(F242+VLOOKUP($A242,Economática!$A$3:$AI$823,26,FALSE))/Y242,(F242+VLOOKUP($A242,Economática!$A$3:$AI$823,26,FALSE))/Y242))","v":6.7217573449401522},{"$f":"IF($A242=\"\",\"\",IF(OR(-VLOOKUP($A242,Economática!$A$3:$AI$823,27,FALSE)=0,-VLOOKUP($A242,Economática!$A$3:$AI$823,27,FALSE)=\"-\"),1/0,-VLOOKUP($A242,Economática!$A$3:$AI$823,27,FALSE)))","v":45.99},4.2027250546016144E-2,{"$f":"IF($A242=\"\",\"\",IF(OR(VLOOKUP($A242,Economática!$A$3:$AI$823,28,FALSE)=0,VLOOKUP($A242,Economática!$A$3:$AI$823,28,FALSE)=\"-\"),1/0,VLOOKUP($A242,Economática!$A$3:$AI$823,28,FALSE)))","v":1.8},{"$f":"IF($A242=\"\",\"\",IF(OR(VLOOKUP($A242,Economática!$A$3:$AI$823,29,FALSE)=0,VLOOKUP($A242,Economática!$A$3:$AI$823,29,FALSE)=\"-\"),1/0,VLOOKUP($A242,Economática!$A$3:$AI$823,29,FALSE)))","v":{"$error":"#DIV/0!"}},{"$f":"IF($A242=\"\",\"\",IF(OR(VLOOKUP($A242,Economática!$A$3:$AI$823,30,FALSE)/E242=0,VLOOKUP($A242,Economática!$A$3:$AI$823,30,FALSE)/E242=\"-\",VLOOKUP($A242,Economática!$A$3:$AI$823,30,FALSE)/E242<33.33%,VLOOKUP($A242,Economática!$A$3:$AI$823,30,FALSE)/E242>100%),1/0,VLOOKUP($A242,Economática!$A$3:$AI$823,30,FALSE)/E242))","v":{"$error":"#DIV/0!"}},"FRAS3",{"$f":"IF($A242=\"\",\"\",IF(OR(VLOOKUP($A242,Economática!$A$3:$AI$823,25,FALSE)=0,VLOOKUP($A242,Economática!$A$3:$AI$823,25,FALSE)=\"-\"),1/0,VLOOKUP($A242,Economática!$A$3:$AI$823,25,FALSE)))","v":183.8},{"$f":"CONCATENATE(Economática!B244,\" \",Economática!C244)","v":"Fras-Le ON"}]
[{"$f":"IF(Economática!AG245=\"\",\"\",Economática!AG245)","v":"POMO4"},{"$f":"IF($A243=\"\",\"\",VLOOKUP(VLOOKUP($A243,Economática!$A$3:$AI$823,6,FALSE),Correção!$B$16:$C$36,2,FALSE))","v":"Veículos e peças"},{"$f":"IF(Economática!B245=\"\",\"\",Economática!B245)","v":"Marcopolo"},{"$f":"IF($A243=\"\",\"\",IF(OR(VLOOKUP($A243,Economática!$A$3:$AI$823,8,FALSE)=0,VLOOKUP($A243,Economática!$A$3:$AI$823,8,FALSE)=\"-\"),1/0,VLOOKUP($A243,Economática!$A$3:$AI$823,8,FALSE)))","v":3.9},{"$f":"IF(A243=\"\",\"\",IF(ISERROR(VLOOKUP(A243,Correção!$B$2:$G$13,9,FALSE)),VLOOKUP($A243,Economática!$A$3:$AI$823,9,FALSE),VLOOKUP(A243,Correção!$B$2:$G$13,9,FALSE)))","v":942.91600000000005},{"$f":"IF($A243=\"\",\"\",Economática!G245)","v":3564.63},{"$f":"IF($A243=\"\",\"\",IF(OR(VLOOKUP($A243,Economática!$A$3:$AI$823,10,FALSE)=0,VLOOKUP($A243,Economática!$A$3:$AI$823,10,FALSE)=\"-\"),1/0,VLOOKUP($A243,Economática!$A$3:$AI$823,10,FALSE)))","v":2105.62},{"$f":"IF($A243=\"\",\"\",IF(OR(VLOOKUP($A243,Economática!$A$3:$AI$823,11,FALSE)=0,VLOOKUP($A243,Economática!$A$3:$AI$823,11,FALSE)=\"-\"),1/0,VLOOKUP($A243,Economática!$A$3:$AI$823,11,FALSE)))","v":2875.99},{"$f":"IF($A243=\"\",\"\",IF(OR(VLOOKUP($A243,Economática!$A$3:$AI$823,12,FALSE)=0,VLOOKUP($A243,Economática!$A$3:$AI$823,12,FALSE)=\"-\"),1/0,VLOOKUP($A243,Economática!$A$3:$AI$823,12,FALSE)))","v":4197.47},{"$f":"IF($A243=\"\",\"\",IF(OR(VLOOKUP($A243,Economática!$A$3:$AI$823,13,FALSE)=0,VLOOKUP($A243,Economática!$A$3:$AI$823,13,FALSE)=\"-\"),1/0,VLOOKUP($A243,Economática!$A$3:$AI$823,13,FALSE)))","v":72.17},{"$f":"IF($A243=\"\",\"\",IF(OR(VLOOKUP($A243,Economática!$A$3:$AI$823,14,FALSE)=0,VLOOKUP($A243,Economática!$A$3:$AI$823,14,FALSE)=\"-\"),1/0,VLOOKUP($A243,Economática!$A$3:$AI$823,14,FALSE)))","v":30.2},{"$f":"IF($A243=\"\",\"\",IF(OR(VLOOKUP($A243,Economática!$A$3:$AI$823,15,FALSE)=0,VLOOKUP($A243,Economática!$A$3:$AI$823,15,FALSE)=\"-\"),1/0,VLOOKUP($A243,Economática!$A$3:$AI$823,15,FALSE)))","v":53.41},{"$f":"IF($A243=\"\",\"\",IF(OR(VLOOKUP($A243,Economática!$A$3:$AI$823,16,FALSE)=0,VLOOKUP($A243,Economática!$A$3:$AI$823,16,FALSE)=\"-\"),1/0,VLOOKUP($A243,Economática!$A$3:$AI$823,16,FALSE)))","v":117.1},{"$f":"IF($A243=\"\",\"\",IF(OR(VLOOKUP($A243,Economática!$A$3:$AI$823,17,FALSE)=0,VLOOKUP($A243,Economática!$A$3:$AI$823,17,FALSE)=\"-\"),1/0,VLOOKUP($A243,Economática!$A$3:$AI$823,17,FALSE)))","v":186.73},{"$f":"IF($A243=\"\",\"\",IF(OR(VLOOKUP($A243,Economática!$A$3:$AI$823,18,FALSE)=0,VLOOKUP($A243,Economática!$A$3:$AI$823,18,FALSE)=\"-\"),1/0,VLOOKUP($A243,Economática!$A$3:$AI$823,18,FALSE)))","v":72.17},{"$f":"IF($A243=\"\",\"\",IF(OR(VLOOKUP($A243,Economática!$A$3:$AI$823,19,FALSE)=0,VLOOKUP($A243,Economática!$A$3:$AI$823,19,FALSE)=\"-\"),1/0,VLOOKUP($A243,Economática!$A$3:$AI$823,19,FALSE)))","v":186.73},{"$f":"IF($A243=\"\",\"\",VLOOKUP($A243,Economática!$A$3:$AI$823,20,FALSE)/E243)","v":0.19803460753662042},2.2330939341362326,1.7464558657307587,19.693527553151611,{"$f":"IF($A243=\"\",\"\",IF(OR(VLOOKUP($A243,Economática!$A$3:$AI$823,21,FALSE)/100=0,VLOOKUP($A243,Economática!$A$3:$AI$823,21,FALSE)/100=\"-\"),1/0,VLOOKUP($A243,Economática!$A$3:$AI$823,21,FALSE)/100))","v":9.9007000000000012E-2},{"$f":"IF($A243=\"\",\"\",IF(OR(VLOOKUP($A243,Economática!$A$3:$AI$823,22,FALSE)/100=0,VLOOKUP($A243,Economática!$A$3:$AI$823,22,FALSE)/100=\"-\"),1/0,VLOOKUP($A243,Economática!$A$3:$AI$823,22,FALSE)/100))","v":0.45879600000000004},{"$f":"IF($A243=\"\",\"\",IF(OR(VLOOKUP($A243,Economática!$A$3:$AI$823,23,FALSE)=0,VLOOKUP($A243,Economática!$A$3:$AI$823,23,FALSE)=\"-\"),1/0,VLOOKUP($A243,Economática!$A$3:$AI$823,23,FALSE)))","v":119.7},{"$f":"IF($A243=\"\",\"\",IF(OR(VLOOKUP($A243,Economática!$A$3:$AI$823,24,FALSE)=0,VLOOKUP($A243,Economática!$A$3:$AI$823,24,FALSE)=\"-\"),1/0,VLOOKUP($A243,Economática!$A$3:$AI$823,24,FALSE)))","v":362.1},{"$f":"IF($A243=\"\",\"\",IF(OR(VLOOKUP($A243,Economática!$A$3:$AI$823,25,FALSE)=0,VLOOKUP($A243,Economática!$A$3:$AI$823,25,FALSE)=\"-\"),1/0,VLOOKUP($A243,Economática!$A$3:$AI$823,25,FALSE)))","v":362.1},{"$f":"IF($A243=\"\",\"\",IF(ISERROR((F243+VLOOKUP($A243,Economática!$A$3:$AI$823,26,FALSE))/Y243),(F243+VLOOKUP($A243,Economática!$A$3:$AI$823,26,FALSE))/Y243,(F243+VLOOKUP($A243,Economática!$A$3:$AI$823,26,FALSE))/Y243))","v":12.54899199116266},{"$f":"IF($A243=\"\",\"\",IF(OR(-VLOOKUP($A243,Economática!$A$3:$AI$823,27,FALSE)=0,-VLOOKUP($A243,Economática!$A$3:$AI$823,27,FALSE)=\"-\"),1/0,-VLOOKUP($A243,Economática!$A$3:$AI$823,27,FALSE)))","v":33.89},9.5072980926491669E-3,{"$f":"IF($A243=\"\",\"\",IF(OR(VLOOKUP($A243,Economática!$A$3:$AI$823,28,FALSE)=0,VLOOKUP($A243,Economática!$A$3:$AI$823,28,FALSE)=\"-\"),1/0,VLOOKUP($A243,Economática!$A$3:$AI$823,28,FALSE)))","v":-3.7},{"$f":"IF($A243=\"\",\"\",IF(OR(VLOOKUP($A243,Economática!$A$3:$AI$823,29,FALSE)=0,VLOOKUP($A243,Economática!$A$3:$AI$823,29,FALSE)=\"-\"),1/0,VLOOKUP($A243,Economática!$A$3:$AI$823,29,FALSE)))","v":0.9},{"$f":"IF($A243=\"\",\"\",IF(OR(VLOOKUP($A243,Economática!$A$3:$AI$823,30,FALSE)/E243=0,VLOOKUP($A243,Economática!$A$3:$AI$823,30,FALSE)/E243=\"-\",VLOOKUP($A243,Economática!$A$3:$AI$823,30,FALSE)/E243<33.33%,VLOOKUP($A243,Economática!$A$3:$AI$823,30,FALSE)/E243>100%),1/0,VLOOKUP($A243,Economática!$A$3:$AI$823,30,FALSE)/E243))","v":0.36228041522256488},"POMO4",{"$f":"IF($A243=\"\",\"\",IF(OR(VLOOKUP($A243,Economática!$A$3:$AI$823,25,FALSE)=0,VLOOKUP($A243,Economática!$A$3:$AI$823,25,FALSE)=\"-\"),1/0,VLOOKUP($A243,Economática!$A$3:$AI$823,25,FALSE)))","v":362.1},{"$f":"CONCATENATE(Economática!B245,\" \",Economática!C245)","v":"Marcopolo PN"}]
[{"$f":"IF(Economática!AG246=\"\",\"\",Economática!AG246)","v":"EMBR3"},{"$f":"IF($A244=\"\",\"\",VLOOKUP(VLOOKUP($A244,Economática!$A$3:$AI$823,6,FALSE),Correção!$B$16:$C$36,2,FALSE))","v":"Veículos e peças"},{"$f":"IF(Economática!B246=\"\",\"\",Economática!B246)","v":"Embraer"},{"$f":"IF($A244=\"\",\"\",IF(OR(VLOOKUP($A244,Economática!$A$3:$AI$823,8,FALSE)=0,VLOOKUP($A244,Economática!$A$3:$AI$823,8,FALSE)=\"-\"),1/0,VLOOKUP($A244,Economática!$A$3:$AI$823,8,FALSE)))","v":18.45},{"$f":"IF(A244=\"\",\"\",IF(ISERROR(VLOOKUP(A244,Correção!$B$2:$G$13,9,FALSE)),VLOOKUP($A244,Economática!$A$3:$AI$823,9,FALSE),VLOOKUP(A244,Correção!$B$2:$G$13,9,FALSE)))","v":735.78700000000003},{"$f":"IF($A244=\"\",\"\",Economática!G246)","v":13575.27},{"$f":"IF($A244=\"\",\"\",IF(OR(VLOOKUP($A244,Economática!$A$3:$AI$823,10,FALSE)=0,VLOOKUP($A244,Economática!$A$3:$AI$823,10,FALSE)=\"-\"),1/0,VLOOKUP($A244,Economática!$A$3:$AI$823,10,FALSE)))","v":14901.26},{"$f":"IF($A244=\"\",\"\",IF(OR(VLOOKUP($A244,Economática!$A$3:$AI$823,11,FALSE)=0,VLOOKUP($A244,Economática!$A$3:$AI$823,11,FALSE)=\"-\"),1/0,VLOOKUP($A244,Economática!$A$3:$AI$823,11,FALSE)))","v":18713.05},{"$f":"IF($A244=\"\",\"\",IF(OR(VLOOKUP($A244,Economática!$A$3:$AI$823,12,FALSE)=0,VLOOKUP($A244,Economática!$A$3:$AI$823,12,FALSE)=\"-\"),1/0,VLOOKUP($A244,Economática!$A$3:$AI$823,12,FALSE)))","v":18721.62},{"$f":"IF($A244=\"\",\"\",IF(OR(VLOOKUP($A244,Economática!$A$3:$AI$823,13,FALSE)=0,VLOOKUP($A244,Economática!$A$3:$AI$823,13,FALSE)=\"-\"),1/0,VLOOKUP($A244,Economática!$A$3:$AI$823,13,FALSE)))","v":795.79},{"$f":"IF($A244=\"\",\"\",IF(OR(VLOOKUP($A244,Economática!$A$3:$AI$823,14,FALSE)=0,VLOOKUP($A244,Economática!$A$3:$AI$823,14,FALSE)=\"-\"),1/0,VLOOKUP($A244,Economática!$A$3:$AI$823,14,FALSE)))","v":-40.11},{"$f":"IF($A244=\"\",\"\",IF(OR(VLOOKUP($A244,Economática!$A$3:$AI$823,15,FALSE)=0,VLOOKUP($A244,Economática!$A$3:$AI$823,15,FALSE)=\"-\"),1/0,VLOOKUP($A244,Economática!$A$3:$AI$823,15,FALSE)))","v":-507.08},{"$f":"IF($A244=\"\",\"\",IF(OR(VLOOKUP($A244,Economática!$A$3:$AI$823,16,FALSE)=0,VLOOKUP($A244,Economática!$A$3:$AI$823,16,FALSE)=\"-\"),1/0,VLOOKUP($A244,Economática!$A$3:$AI$823,16,FALSE)))","v":-590.89},{"$f":"IF($A244=\"\",\"\",IF(OR(VLOOKUP($A244,Economática!$A$3:$AI$823,17,FALSE)=0,VLOOKUP($A244,Economática!$A$3:$AI$823,17,FALSE)=\"-\"),1/0,VLOOKUP($A244,Economática!$A$3:$AI$823,17,FALSE)))","v":-669.03},{"$f":"IF($A244=\"\",\"\",IF(OR(VLOOKUP($A244,Economática!$A$3:$AI$823,18,FALSE)=0,VLOOKUP($A244,Economática!$A$3:$AI$823,18,FALSE)=\"-\"),1/0,VLOOKUP($A244,Economática!$A$3:$AI$823,18,FALSE)))","v":795.79},{"$f":"IF($A244=\"\",\"\",IF(OR(VLOOKUP($A244,Economática!$A$3:$AI$823,19,FALSE)=0,VLOOKUP($A244,Economática!$A$3:$AI$823,19,FALSE)=\"-\"),1/0,VLOOKUP($A244,Economática!$A$3:$AI$823,19,FALSE)))","v":-669.03},{"$f":"IF($A244=\"\",\"\",VLOOKUP($A244,Economática!$A$3:$AI$823,20,FALSE)/E244)","v":-0.9092712972640179},20.252138186730669,0.91101491753046393,{"$error":"#DIV/0!"},{"$f":"IF($A244=\"\",\"\",IF(OR(VLOOKUP($A244,Economática!$A$3:$AI$823,21,FALSE)/100=0,VLOOKUP($A244,Economática!$A$3:$AI$823,21,FALSE)/100=\"-\"),1/0,VLOOKUP($A244,Economática!$A$3:$AI$823,21,FALSE)/100))","v":-4.6519000000000005E-2},{"$f":"IF($A244=\"\",\"\",IF(OR(VLOOKUP($A244,Economática!$A$3:$AI$823,22,FALSE)/100=0,VLOOKUP($A244,Economática!$A$3:$AI$823,22,FALSE)/100=\"-\"),1/0,VLOOKUP($A244,Economática!$A$3:$AI$823,22,FALSE)/100))","v":0.15823200000000001},{"$f":"IF($A244=\"\",\"\",IF(OR(VLOOKUP($A244,Economática!$A$3:$AI$823,23,FALSE)=0,VLOOKUP($A244,Economática!$A$3:$AI$823,23,FALSE)=\"-\"),1/0,VLOOKUP($A244,Economática!$A$3:$AI$823,23,FALSE)))","v":2057.5},{"$f":"IF($A244=\"\",\"\",IF(OR(VLOOKUP($A244,Economática!$A$3:$AI$823,24,FALSE)=0,VLOOKUP($A244,Economática!$A$3:$AI$823,24,FALSE)=\"-\"),1/0,VLOOKUP($A244,Economática!$A$3:$AI$823,24,FALSE)))","v":1097.9000000000001},{"$f":"IF($A244=\"\",\"\",IF(OR(VLOOKUP($A244,Economática!$A$3:$AI$823,25,FALSE)=0,VLOOKUP($A244,Economática!$A$3:$AI$823,25,FALSE)=\"-\"),1/0,VLOOKUP($A244,Economática!$A$3:$AI$823,25,FALSE)))","v":1097.9000000000001},{"$f":"IF($A244=\"\",\"\",IF(ISERROR((F244+VLOOKUP($A244,Economática!$A$3:$AI$823,26,FALSE))/Y244),(F244+VLOOKUP($A244,Economática!$A$3:$AI$823,26,FALSE))/Y244,(F244+VLOOKUP($A244,Economática!$A$3:$AI$823,26,FALSE))/Y244))","v":14.565075143455688},{"$f":"IF($A244=\"\",\"\",IF(OR(-VLOOKUP($A244,Economática!$A$3:$AI$823,27,FALSE)=0,-VLOOKUP($A244,Economática!$A$3:$AI$823,27,FALSE)=\"-\"),1/0,-VLOOKUP($A244,Economática!$A$3:$AI$823,27,FALSE)))","v":139.65},1.0287088212610136E-2,{"$f":"IF($A244=\"\",\"\",IF(OR(VLOOKUP($A244,Economática!$A$3:$AI$823,28,FALSE)=0,VLOOKUP($A244,Economática!$A$3:$AI$823,28,FALSE)=\"-\"),1/0,VLOOKUP($A244,Economática!$A$3:$AI$823,28,FALSE)))","v":-3.3},{"$f":"IF($A244=\"\",\"\",IF(OR(VLOOKUP($A244,Economática!$A$3:$AI$823,29,FALSE)=0,VLOOKUP($A244,Economática!$A$3:$AI$823,29,FALSE)=\"-\"),1/0,VLOOKUP($A244,Economática!$A$3:$AI$823,29,FALSE)))","v":-7.2},{"$f":"IF($A244=\"\",\"\",IF(OR(VLOOKUP($A244,Economática!$A$3:$AI$823,30,FALSE)/E244=0,VLOOKUP($A244,Economática!$A$3:$AI$823,30,FALSE)/E244=\"-\",VLOOKUP($A244,Economática!$A$3:$AI$823,30,FALSE)/E244<33.33%,VLOOKUP($A244,Economática!$A$3:$AI$823,30,FALSE)/E244>100%),1/0,VLOOKUP($A244,Economática!$A$3:$AI$823,30,FALSE)/E244))","v":{"$error":"#DIV/0!"}},"EMBR3",{"$f":"IF($A244=\"\",\"\",IF(OR(VLOOKUP($A244,Economática!$A$3:$AI$823,25,FALSE)=0,VLOOKUP($A244,Economática!$A$3:$AI$823,25,FALSE)=\"-\"),1/0,VLOOKUP($A244,Economática!$A$3:$AI$823,25,FALSE)))","v":1097.9000000000001},{"$f":"CONCATENATE(Economática!B246,\" \",Economática!C246)","v":"Embraer ON"}]
[{"$f":"IF(Economática!#REF!=\"\",\"\",Economática!#REF!)","v":{"$error":"#REF!"}},{"$f":"IF($A245=\"\",\"\",VLOOKUP(VLOOKUP($A245,Economática!$A$3:$AI$823,6,FALSE),Correção!$B$16:$C$36,2,FALSE))","v":{"$error":"#REF!"}},{"$f":"IF(Economática!#REF!=\"\",\"\",Economática!#REF!)","v":{"$error":"#REF!"}},{"$f":"IF($A245=\"\",\"\",IF(OR(VLOOKUP($A245,Economática!$A$3:$AI$823,8,FALSE)=0,VLOOKUP($A245,Economática!$A$3:$AI$823,8,FALSE)=\"-\"),1/0,VLOOKUP($A245,Economática!$A$3:$AI$823,8,FALSE)))","v":{"$error":"#REF!"}},{"$f":"IF(A245=\"\",\"\",IF(ISERROR(VLOOKUP(A245,Correção!$B$2:$G$13,9,FALSE)),VLOOKUP($A245,Economática!$A$3:$AI$823,9,FALSE),VLOOKUP(A245,Correção!$B$2:$G$13,9,FALSE)))","v":{"$error":"#REF!"}},{"$f":"IF($A245=\"\",\"\",Economática!#REF!)","v":{"$error":"#REF!"}},{"$f":"IF($A245=\"\",\"\",IF(OR(VLOOKUP($A245,Economática!$A$3:$AI$823,10,FALSE)=0,VLOOKUP($A245,Economática!$A$3:$AI$823,10,FALSE)=\"-\"),1/0,VLOOKUP($A245,Economática!$A$3:$AI$823,10,FALSE)))","v":{"$error":"#REF!"}},{"$f":"IF($A245=\"\",\"\",IF(OR(VLOOKUP($A245,Economática!$A$3:$AI$823,11,FALSE)=0,VLOOKUP($A245,Economática!$A$3:$AI$823,11,FALSE)=\"-\"),1/0,VLOOKUP($A245,Economática!$A$3:$AI$823,11,FALSE)))","v":{"$error":"#REF!"}},{"$f":"IF($A245=\"\",\"\",IF(OR(VLOOKUP($A245,Economática!$A$3:$AI$823,12,FALSE)=0,VLOOKUP($A245,Economática!$A$3:$AI$823,12,FALSE)=\"-\"),1/0,VLOOKUP($A245,Economática!$A$3:$AI$823,12,FALSE)))","v":{"$error":"#REF!"}},{"$f":"IF($A245=\"\",\"\",IF(OR(VLOOKUP($A245,Economática!$A$3:$AI$823,13,FALSE)=0,VLOOKUP($A245,Economática!$A$3:$AI$823,13,FALSE)=\"-\"),1/0,VLOOKUP($A245,Economática!$A$3:$AI$823,13,FALSE)))","v":{"$error":"#REF!"}},{"$f":"IF($A245=\"\",\"\",IF(OR(VLOOKUP($A245,Economática!$A$3:$AI$823,14,FALSE)=0,VLOOKUP($A245,Economática!$A$3:$AI$823,14,FALSE)=\"-\"),1/0,VLOOKUP($A245,Economática!$A$3:$AI$823,14,FALSE)))","v":{"$error":"#REF!"}},{"$f":"IF($A245=\"\",\"\",IF(OR(VLOOKUP($A245,Economática!$A$3:$AI$823,15,FALSE)=0,VLOOKUP($A245,Economática!$A$3:$AI$823,15,FALSE)=\"-\"),1/0,VLOOKUP($A245,Economática!$A$3:$AI$823,15,FALSE)))","v":{"$error":"#REF!"}},{"$f":"IF($A245=\"\",\"\",IF(OR(VLOOKUP($A245,Economática!$A$3:$AI$823,16,FALSE)=0,VLOOKUP($A245,Economática!$A$3:$AI$823,16,FALSE)=\"-\"),1/0,VLOOKUP($A245,Economática!$A$3:$AI$823,16,FALSE)))","v":{"$error":"#REF!"}},{"$f":"IF($A245=\"\",\"\",IF(OR(VLOOKUP($A245,Economática!$A$3:$AI$823,17,FALSE)=0,VLOOKUP($A245,Economática!$A$3:$AI$823,17,FALSE)=\"-\"),1/0,VLOOKUP($A245,Economática!$A$3:$AI$823,17,FALSE)))","v":{"$error":"#REF!"}},{"$f":"IF($A245=\"\",\"\",IF(OR(VLOOKUP($A245,Economática!$A$3:$AI$823,18,FALSE)=0,VLOOKUP($A245,Economática!$A$3:$AI$823,18,FALSE)=\"-\"),1/0,VLOOKUP($A245,Economática!$A$3:$AI$823,18,FALSE)))","v":{"$error":"#REF!"}},{"$f":"IF($A245=\"\",\"\",IF(OR(VLOOKUP($A245,Economática!$A$3:$AI$823,19,FALSE)=0,VLOOKUP($A245,Economática!$A$3:$AI$823,19,FALSE)=\"-\"),1/0,VLOOKUP($A245,Economática!$A$3:$AI$823,19,FALSE)))","v":{"$error":"#REF!"}},{"$f":"IF($A245=\"\",\"\",VLOOKUP($A245,Economática!$A$3:$AI$823,20,FALSE)/E245)","v":{"$error":"#REF!"}},{"$error":"#REF!"},{"$error":"#REF!"},{"$error":"#REF!"},{"$f":"IF($A245=\"\",\"\",IF(OR(VLOOKUP($A245,Economática!$A$3:$AI$823,21,FALSE)/100=0,VLOOKUP($A245,Economática!$A$3:$AI$823,21,FALSE)/100=\"-\"),1/0,VLOOKUP($A245,Economática!$A$3:$AI$823,21,FALSE)/100))","v":{"$error":"#REF!"}},{"$f":"IF($A245=\"\",\"\",IF(OR(VLOOKUP($A245,Economática!$A$3:$AI$823,22,FALSE)/100=0,VLOOKUP($A245,Economática!$A$3:$AI$823,22,FALSE)/100=\"-\"),1/0,VLOOKUP($A245,Economática!$A$3:$AI$823,22,FALSE)/100))","v":{"$error":"#REF!"}},{"$f":"IF($A245=\"\",\"\",IF(OR(VLOOKUP($A245,Economática!$A$3:$AI$823,23,FALSE)=0,VLOOKUP($A245,Economática!$A$3:$AI$823,23,FALSE)=\"-\"),1/0,VLOOKUP($A245,Economática!$A$3:$AI$823,23,FALSE)))","v":{"$error":"#REF!"}},{"$f":"IF($A245=\"\",\"\",IF(OR(VLOOKUP($A245,Economática!$A$3:$AI$823,24,FALSE)=0,VLOOKUP($A245,Economática!$A$3:$AI$823,24,FALSE)=\"-\"),1/0,VLOOKUP($A245,Economática!$A$3:$AI$823,24,FALSE)))","v":{"$error":"#REF!"}},{"$f":"IF($A245=\"\",\"\",IF(OR(VLOOKUP($A245,Economática!$A$3:$AI$823,25,FALSE)=0,VLOOKUP($A245,Economática!$A$3:$AI$823,25,FALSE)=\"-\"),1/0,VLOOKUP($A245,Economática!$A$3:$AI$823,25,FALSE)))","v":{"$error":"#REF!"}},{"$f":"IF($A245=\"\",\"\",IF(ISERROR((F245+VLOOKUP($A245,Economática!$A$3:$AI$823,26,FALSE))/Y245),(F245+VLOOKUP($A245,Economática!$A$3:$AI$823,26,FALSE))/Y245,(F245+VLOOKUP($A245,Economática!$A$3:$AI$823,26,FALSE))/Y245))","v":{"$error":"#REF!"}},{"$f":"IF($A245=\"\",\"\",IF(OR(-VLOOKUP($A245,Economática!$A$3:$AI$823,27,FALSE)=0,-VLOOKUP($A245,Economática!$A$3:$AI$823,27,FALSE)=\"-\"),1/0,-VLOOKUP($A245,Economática!$A$3:$AI$823,27,FALSE)))","v":{"$error":"#REF!"}},{"$error":"#REF!"},{"$f":"IF($A245=\"\",\"\",IF(OR(VLOOKUP($A245,Economática!$A$3:$AI$823,28,FALSE)=0,VLOOKUP($A245,Economática!$A$3:$AI$823,28,FALSE)=\"-\"),1/0,VLOOKUP($A245,Economática!$A$3:$AI$823,28,FALSE)))","v":{"$error":"#REF!"}},{"$f":"IF($A245=\"\",\"\",IF(OR(VLOOKUP($A245,Economática!$A$3:$AI$823,29,FALSE)=0,VLOOKUP($A245,Economática!$A$3:$AI$823,29,FALSE)=\"-\"),1/0,VLOOKUP($A245,Economática!$A$3:$AI$823,29,FALSE)))","v":{"$error":"#REF!"}},{"$f":"IF($A245=\"\",\"\",IF(OR(VLOOKUP($A245,Economática!$A$3:$AI$823,30,FALSE)/E245=0,VLOOKUP($A245,Economática!$A$3:$AI$823,30,FALSE)/E245=\"-\",VLOOKUP($A245,Economática!$A$3:$AI$823,30,FALSE)/E245<33.33%,VLOOKUP($A245,Economática!$A$3:$AI$823,30,FALSE)/E245>100%),1/0,VLOOKUP($A245,Economática!$A$3:$AI$823,30,FALSE)/E245))","v":{"$error":"#REF!"}},{"$error":"#REF!"},{"$f":"IF($A245=\"\",\"\",IF(OR(VLOOKUP($A245,Economática!$A$3:$AI$823,25,FALSE)=0,VLOOKUP($A245,Economática!$A$3:$AI$823,25,FALSE)=\"-\"),1/0,VLOOKUP($A245,Economática!$A$3:$AI$823,25,FALSE)))","v":{"$error":"#REF!"}},{"$f":"CONCATENATE(Economática!#REF!,\" \",Economática!#REF!)","v":{"$error":"#REF!"}}]
[{"$f":"IF(Economática!#REF!=\"\",\"\",Economática!#REF!)","v":{"$error":"#REF!"}},{"$f":"IF($A246=\"\",\"\",VLOOKUP(VLOOKUP($A246,Economática!$A$3:$AI$823,6,FALSE),Correção!$B$16:$C$36,2,FALSE))","v":{"$error":"#REF!"}},{"$f":"IF(Economática!#REF!=\"\",\"\",Economática!#REF!)","v":{"$error":"#REF!"}},{"$f":"IF($A246=\"\",\"\",IF(OR(VLOOKUP($A246,Economática!$A$3:$AI$823,8,FALSE)=0,VLOOKUP($A246,Economática!$A$3:$AI$823,8,FALSE)=\"-\"),1/0,VLOOKUP($A246,Economática!$A$3:$AI$823,8,FALSE)))","v":{"$error":"#REF!"}},{"$f":"IF(A246=\"\",\"\",IF(ISERROR(VLOOKUP(A246,Correção!$B$2:$G$13,9,FALSE)),VLOOKUP($A246,Economática!$A$3:$AI$823,9,FALSE),VLOOKUP(A246,Correção!$B$2:$G$13,9,FALSE)))","v":{"$error":"#REF!"}},{"$f":"IF($A246=\"\",\"\",Economática!#REF!)","v":{"$error":"#REF!"}},{"$f":"IF($A246=\"\",\"\",IF(OR(VLOOKUP($A246,Economática!$A$3:$AI$823,10,FALSE)=0,VLOOKUP($A246,Economática!$A$3:$AI$823,10,FALSE)=\"-\"),1/0,VLOOKUP($A246,Economática!$A$3:$AI$823,10,FALSE)))","v":{"$error":"#REF!"}},{"$f":"IF($A246=\"\",\"\",IF(OR(VLOOKUP($A246,Economática!$A$3:$AI$823,11,FALSE)=0,VLOOKUP($A246,Economática!$A$3:$AI$823,11,FALSE)=\"-\"),1/0,VLOOKUP($A246,Economática!$A$3:$AI$823,11,FALSE)))","v":{"$error":"#REF!"}},{"$f":"IF($A246=\"\",\"\",IF(OR(VLOOKUP($A246,Economática!$A$3:$AI$823,12,FALSE)=0,VLOOKUP($A246,Economática!$A$3:$AI$823,12,FALSE)=\"-\"),1/0,VLOOKUP($A246,Economática!$A$3:$AI$823,12,FALSE)))","v":{"$error":"#REF!"}},{"$f":"IF($A246=\"\",\"\",IF(OR(VLOOKUP($A246,Economática!$A$3:$AI$823,13,FALSE)=0,VLOOKUP($A246,Economática!$A$3:$AI$823,13,FALSE)=\"-\"),1/0,VLOOKUP($A246,Economática!$A$3:$AI$823,13,FALSE)))","v":{"$error":"#REF!"}},{"$f":"IF($A246=\"\",\"\",IF(OR(VLOOKUP($A246,Economática!$A$3:$AI$823,14,FALSE)=0,VLOOKUP($A246,Economática!$A$3:$AI$823,14,FALSE)=\"-\"),1/0,VLOOKUP($A246,Economática!$A$3:$AI$823,14,FALSE)))","v":{"$error":"#REF!"}},{"$f":"IF($A246=\"\",\"\",IF(OR(VLOOKUP($A246,Economática!$A$3:$AI$823,15,FALSE)=0,VLOOKUP($A246,Economática!$A$3:$AI$823,15,FALSE)=\"-\"),1/0,VLOOKUP($A246,Economática!$A$3:$AI$823,15,FALSE)))","v":{"$error":"#REF!"}},{"$f":"IF($A246=\"\",\"\",IF(OR(VLOOKUP($A246,Economática!$A$3:$AI$823,16,FALSE)=0,VLOOKUP($A246,Economática!$A$3:$AI$823,16,FALSE)=\"-\"),1/0,VLOOKUP($A246,Economática!$A$3:$AI$823,16,FALSE)))","v":{"$error":"#REF!"}},{"$f":"IF($A246=\"\",\"\",IF(OR(VLOOKUP($A246,Economática!$A$3:$AI$823,17,FALSE)=0,VLOOKUP($A246,Economática!$A$3:$AI$823,17,FALSE)=\"-\"),1/0,VLOOKUP($A246,Economática!$A$3:$AI$823,17,FALSE)))","v":{"$error":"#REF!"}},{"$f":"IF($A246=\"\",\"\",IF(OR(VLOOKUP($A246,Economática!$A$3:$AI$823,18,FALSE)=0,VLOOKUP($A246,Economática!$A$3:$AI$823,18,FALSE)=\"-\"),1/0,VLOOKUP($A246,Economática!$A$3:$AI$823,18,FALSE)))","v":{"$error":"#REF!"}},{"$f":"IF($A246=\"\",\"\",IF(OR(VLOOKUP($A246,Economática!$A$3:$AI$823,19,FALSE)=0,VLOOKUP($A246,Economática!$A$3:$AI$823,19,FALSE)=\"-\"),1/0,VLOOKUP($A246,Economática!$A$3:$AI$823,19,FALSE)))","v":{"$error":"#REF!"}},{"$f":"IF($A246=\"\",\"\",VLOOKUP($A246,Economática!$A$3:$AI$823,20,FALSE)/E246)","v":{"$error":"#REF!"}},{"$error":"#REF!"},{"$error":"#REF!"},{"$error":"#REF!"},{"$f":"IF($A246=\"\",\"\",IF(OR(VLOOKUP($A246,Economática!$A$3:$AI$823,21,FALSE)/100=0,VLOOKUP($A246,Economática!$A$3:$AI$823,21,FALSE)/100=\"-\"),1/0,VLOOKUP($A246,Economática!$A$3:$AI$823,21,FALSE)/100))","v":{"$error":"#REF!"}},{"$f":"IF($A246=\"\",\"\",IF(OR(VLOOKUP($A246,Economática!$A$3:$AI$823,22,FALSE)/100=0,VLOOKUP($A246,Economática!$A$3:$AI$823,22,FALSE)/100=\"-\"),1/0,VLOOKUP($A246,Economática!$A$3:$AI$823,22,FALSE)/100))","v":{"$error":"#REF!"}},{"$f":"IF($A246=\"\",\"\",IF(OR(VLOOKUP($A246,Economática!$A$3:$AI$823,23,FALSE)=0,VLOOKUP($A246,Economática!$A$3:$AI$823,23,FALSE)=\"-\"),1/0,VLOOKUP($A246,Economática!$A$3:$AI$823,23,FALSE)))","v":{"$error":"#REF!"}},{"$f":"IF($A246=\"\",\"\",IF(OR(VLOOKUP($A246,Economática!$A$3:$AI$823,24,FALSE)=0,VLOOKUP($A246,Economática!$A$3:$AI$823,24,FALSE)=\"-\"),1/0,VLOOKUP($A246,Economática!$A$3:$AI$823,24,FALSE)))","v":{"$error":"#REF!"}},{"$f":"IF($A246=\"\",\"\",IF(OR(VLOOKUP($A246,Economática!$A$3:$AI$823,25,FALSE)=0,VLOOKUP($A246,Economática!$A$3:$AI$823,25,FALSE)=\"-\"),1/0,VLOOKUP($A246,Economática!$A$3:$AI$823,25,FALSE)))","v":{"$error":"#REF!"}},{"$f":"IF($A246=\"\",\"\",IF(ISERROR((F246+VLOOKUP($A246,Economática!$A$3:$AI$823,26,FALSE))/Y246),(F246+VLOOKUP($A246,Economática!$A$3:$AI$823,26,FALSE))/Y246,(F246+VLOOKUP($A246,Economática!$A$3:$AI$823,26,FALSE))/Y246))","v":{"$error":"#REF!"}},{"$f":"IF($A246=\"\",\"\",IF(OR(-VLOOKUP($A246,Economática!$A$3:$AI$823,27,FALSE)=0,-VLOOKUP($A246,Economática!$A$3:$AI$823,27,FALSE)=\"-\"),1/0,-VLOOKUP($A246,Economática!$A$3:$AI$823,27,FALSE)))","v":{"$error":"#REF!"}},{"$error":"#REF!"},{"$f":"IF($A246=\"\",\"\",IF(OR(VLOOKUP($A246,Economática!$A$3:$AI$823,28,FALSE)=0,VLOOKUP($A246,Economática!$A$3:$AI$823,28,FALSE)=\"-\"),1/0,VLOOKUP($A246,Economática!$A$3:$AI$823,28,FALSE)))","v":{"$error":"#REF!"}},{"$f":"IF($A246=\"\",\"\",IF(OR(VLOOKUP($A246,Economática!$A$3:$AI$823,29,FALSE)=0,VLOOKUP($A246,Economática!$A$3:$AI$823,29,FALSE)=\"-\"),1/0,VLOOKUP($A246,Economática!$A$3:$AI$823,29,FALSE)))","v":{"$error":"#REF!"}},{"$f":"IF($A246=\"\",\"\",IF(OR(VLOOKUP($A246,Economática!$A$3:$AI$823,30,FALSE)/E246=0,VLOOKUP($A246,Economática!$A$3:$AI$823,30,FALSE)/E246=\"-\",VLOOKUP($A246,Economática!$A$3:$AI$823,30,FALSE)/E246<33.33%,VLOOKUP($A246,Economática!$A$3:$AI$823,30,FALSE)/E246>100%),1/0,VLOOKUP($A246,Economática!$A$3:$AI$823,30,FALSE)/E246))","v":{"$error":"#REF!"}},{"$error":"#REF!"},{"$f":"IF($A246=\"\",\"\",IF(OR(VLOOKUP($A246,Economática!$A$3:$AI$823,25,FALSE)=0,VLOOKUP($A246,Economática!$A$3:$AI$823,25,FALSE)=\"-\"),1/0,VLOOKUP($A246,Economática!$A$3:$AI$823,25,FALSE)))","v":{"$error":"#REF!"}},{"$f":"CONCATENATE(Economática!#REF!,\" \",Economática!#REF!)","v":{"$error":"#REF!"}}]
[{"$f":"IF(Economática!#REF!=\"\",\"\",Economática!#REF!)","v":{"$error":"#REF!"}},{"$f":"IF($A247=\"\",\"\",VLOOKUP(VLOOKUP($A247,Economática!$A$3:$AI$823,6,FALSE),Correção!$B$16:$C$36,2,FALSE))","v":{"$error":"#REF!"}},{"$f":"IF(Economática!#REF!=\"\",\"\",Economática!#REF!)","v":{"$error":"#REF!"}},{"$f":"IF($A247=\"\",\"\",IF(OR(VLOOKUP($A247,Economática!$A$3:$AI$823,8,FALSE)=0,VLOOKUP($A247,Economática!$A$3:$AI$823,8,FALSE)=\"-\"),1/0,VLOOKUP($A247,Economática!$A$3:$AI$823,8,FALSE)))","v":{"$error":"#REF!"}},{"$f":"IF(A247=\"\",\"\",IF(ISERROR(VLOOKUP(A247,Correção!$B$2:$G$13,9,FALSE)),VLOOKUP($A247,Economática!$A$3:$AI$823,9,FALSE),VLOOKUP(A247,Correção!$B$2:$G$13,9,FALSE)))","v":{"$error":"#REF!"}},{"$f":"IF($A247=\"\",\"\",Economática!#REF!)","v":{"$error":"#REF!"}},{"$f":"IF($A247=\"\",\"\",IF(OR(VLOOKUP($A247,Economática!$A$3:$AI$823,10,FALSE)=0,VLOOKUP($A247,Economática!$A$3:$AI$823,10,FALSE)=\"-\"),1/0,VLOOKUP($A247,Economática!$A$3:$AI$823,10,FALSE)))","v":{"$error":"#REF!"}},{"$f":"IF($A247=\"\",\"\",IF(OR(VLOOKUP($A247,Economática!$A$3:$AI$823,11,FALSE)=0,VLOOKUP($A247,Economática!$A$3:$AI$823,11,FALSE)=\"-\"),1/0,VLOOKUP($A247,Economática!$A$3:$AI$823,11,FALSE)))","v":{"$error":"#REF!"}},{"$f":"IF($A247=\"\",\"\",IF(OR(VLOOKUP($A247,Economática!$A$3:$AI$823,12,FALSE)=0,VLOOKUP($A247,Economática!$A$3:$AI$823,12,FALSE)=\"-\"),1/0,VLOOKUP($A247,Economática!$A$3:$AI$823,12,FALSE)))","v":{"$error":"#REF!"}},{"$f":"IF($A247=\"\",\"\",IF(OR(VLOOKUP($A247,Economática!$A$3:$AI$823,13,FALSE)=0,VLOOKUP($A247,Economática!$A$3:$AI$823,13,FALSE)=\"-\"),1/0,VLOOKUP($A247,Economática!$A$3:$AI$823,13,FALSE)))","v":{"$error":"#REF!"}},{"$f":"IF($A247=\"\",\"\",IF(OR(VLOOKUP($A247,Economática!$A$3:$AI$823,14,FALSE)=0,VLOOKUP($A247,Economática!$A$3:$AI$823,14,FALSE)=\"-\"),1/0,VLOOKUP($A247,Economática!$A$3:$AI$823,14,FALSE)))","v":{"$error":"#REF!"}},{"$f":"IF($A247=\"\",\"\",IF(OR(VLOOKUP($A247,Economática!$A$3:$AI$823,15,FALSE)=0,VLOOKUP($A247,Economática!$A$3:$AI$823,15,FALSE)=\"-\"),1/0,VLOOKUP($A247,Economática!$A$3:$AI$823,15,FALSE)))","v":{"$error":"#REF!"}},{"$f":"IF($A247=\"\",\"\",IF(OR(VLOOKUP($A247,Economática!$A$3:$AI$823,16,FALSE)=0,VLOOKUP($A247,Economática!$A$3:$AI$823,16,FALSE)=\"-\"),1/0,VLOOKUP($A247,Economática!$A$3:$AI$823,16,FALSE)))","v":{"$error":"#REF!"}},{"$f":"IF($A247=\"\",\"\",IF(OR(VLOOKUP($A247,Economática!$A$3:$AI$823,17,FALSE)=0,VLOOKUP($A247,Economática!$A$3:$AI$823,17,FALSE)=\"-\"),1/0,VLOOKUP($A247,Economática!$A$3:$AI$823,17,FALSE)))","v":{"$error":"#REF!"}},{"$f":"IF($A247=\"\",\"\",IF(OR(VLOOKUP($A247,Economática!$A$3:$AI$823,18,FALSE)=0,VLOOKUP($A247,Economática!$A$3:$AI$823,18,FALSE)=\"-\"),1/0,VLOOKUP($A247,Economática!$A$3:$AI$823,18,FALSE)))","v":{"$error":"#REF!"}},{"$f":"IF($A247=\"\",\"\",IF(OR(VLOOKUP($A247,Economática!$A$3:$AI$823,19,FALSE)=0,VLOOKUP($A247,Economática!$A$3:$AI$823,19,FALSE)=\"-\"),1/0,VLOOKUP($A247,Economática!$A$3:$AI$823,19,FALSE)))","v":{"$error":"#REF!"}},{"$f":"IF($A247=\"\",\"\",VLOOKUP($A247,Economática!$A$3:$AI$823,20,FALSE)/E247)","v":{"$error":"#REF!"}},{"$error":"#REF!"},{"$error":"#REF!"},{"$error":"#REF!"},{"$f":"IF($A247=\"\",\"\",IF(OR(VLOOKUP($A247,Economática!$A$3:$AI$823,21,FALSE)/100=0,VLOOKUP($A247,Economática!$A$3:$AI$823,21,FALSE)/100=\"-\"),1/0,VLOOKUP($A247,Economática!$A$3:$AI$823,21,FALSE)/100))","v":{"$error":"#REF!"}},{"$f":"IF($A247=\"\",\"\",IF(OR(VLOOKUP($A247,Economática!$A$3:$AI$823,22,FALSE)/100=0,VLOOKUP($A247,Economática!$A$3:$AI$823,22,FALSE)/100=\"-\"),1/0,VLOOKUP($A247,Economática!$A$3:$AI$823,22,FALSE)/100))","v":{"$error":"#REF!"}},{"$f":"IF($A247=\"\",\"\",IF(OR(VLOOKUP($A247,Economática!$A$3:$AI$823,23,FALSE)=0,VLOOKUP($A247,Economática!$A$3:$AI$823,23,FALSE)=\"-\"),1/0,VLOOKUP($A247,Economática!$A$3:$AI$823,23,FALSE)))","v":{"$error":"#REF!"}},{"$f":"IF($A247=\"\",\"\",IF(OR(VLOOKUP($A247,Economática!$A$3:$AI$823,24,FALSE)=0,VLOOKUP($A247,Economática!$A$3:$AI$823,24,FALSE)=\"-\"),1/0,VLOOKUP($A247,Economática!$A$3:$AI$823,24,FALSE)))","v":{"$error":"#REF!"}},{"$f":"IF($A247=\"\",\"\",IF(OR(VLOOKUP($A247,Economática!$A$3:$AI$823,25,FALSE)=0,VLOOKUP($A247,Economática!$A$3:$AI$823,25,FALSE)=\"-\"),1/0,VLOOKUP($A247,Economática!$A$3:$AI$823,25,FALSE)))","v":{"$error":"#REF!"}},{"$f":"IF($A247=\"\",\"\",IF(ISERROR((F247+VLOOKUP($A247,Economática!$A$3:$AI$823,26,FALSE))/Y247),(F247+VLOOKUP($A247,Economática!$A$3:$AI$823,26,FALSE))/Y247,(F247+VLOOKUP($A247,Economática!$A$3:$AI$823,26,FALSE))/Y247))","v":{"$error":"#REF!"}},{"$f":"IF($A247=\"\",\"\",IF(OR(-VLOOKUP($A247,Economática!$A$3:$AI$823,27,FALSE)=0,-VLOOKUP($A247,Economática!$A$3:$AI$823,27,FALSE)=\"-\"),1/0,-VLOOKUP($A247,Economática!$A$3:$AI$823,27,FALSE)))","v":{"$error":"#REF!"}},{"$error":"#REF!"},{"$f":"IF($A247=\"\",\"\",IF(OR(VLOOKUP($A247,Economática!$A$3:$AI$823,28,FALSE)=0,VLOOKUP($A247,Economática!$A$3:$AI$823,28,FALSE)=\"-\"),1/0,VLOOKUP($A247,Economática!$A$3:$AI$823,28,FALSE)))","v":{"$error":"#REF!"}},{"$f":"IF($A247=\"\",\"\",IF(OR(VLOOKUP($A247,Economática!$A$3:$AI$823,29,FALSE)=0,VLOOKUP($A247,Economática!$A$3:$AI$823,29,FALSE)=\"-\"),1/0,VLOOKUP($A247,Economática!$A$3:$AI$823,29,FALSE)))","v":{"$error":"#REF!"}},{"$f":"IF($A247=\"\",\"\",IF(OR(VLOOKUP($A247,Economática!$A$3:$AI$823,30,FALSE)/E247=0,VLOOKUP($A247,Economática!$A$3:$AI$823,30,FALSE)/E247=\"-\",VLOOKUP($A247,Economática!$A$3:$AI$823,30,FALSE)/E247<33.33%,VLOOKUP($A247,Economática!$A$3:$AI$823,30,FALSE)/E247>100%),1/0,VLOOKUP($A247,Economática!$A$3:$AI$823,30,FALSE)/E247))","v":{"$error":"#REF!"}},{"$error":"#REF!"},{"$f":"IF($A247=\"\",\"\",IF(OR(VLOOKUP($A247,Economática!$A$3:$AI$823,25,FALSE)=0,VLOOKUP($A247,Economática!$A$3:$AI$823,25,FALSE)=\"-\"),1/0,VLOOKUP($A247,Economática!$A$3:$AI$823,25,FALSE)))","v":{"$error":"#REF!"}},{"$f":"CONCATENATE(Economática!#REF!,\" \",Economática!#REF!)","v":{"$error":"#REF!"}}]
[{"$f":"IF(Economática!#REF!=\"\",\"\",Economática!#REF!)","v":{"$error":"#REF!"}},{"$f":"IF($A248=\"\",\"\",VLOOKUP(VLOOKUP($A248,Economática!$A$3:$AI$823,6,FALSE),Correção!$B$16:$C$36,2,FALSE))","v":{"$error":"#REF!"}},{"$f":"IF(Economática!#REF!=\"\",\"\",Economática!#REF!)","v":{"$error":"#REF!"}},{"$f":"IF($A248=\"\",\"\",IF(OR(VLOOKUP($A248,Economática!$A$3:$AI$823,8,FALSE)=0,VLOOKUP($A248,Economática!$A$3:$AI$823,8,FALSE)=\"-\"),1/0,VLOOKUP($A248,Economática!$A$3:$AI$823,8,FALSE)))","v":{"$error":"#REF!"}},{"$f":"IF(A248=\"\",\"\",IF(ISERROR(VLOOKUP(A248,Correção!$B$2:$G$13,9,FALSE)),VLOOKUP($A248,Economática!$A$3:$AI$823,9,FALSE),VLOOKUP(A248,Correção!$B$2:$G$13,9,FALSE)))","v":{"$error":"#REF!"}},{"$f":"IF($A248=\"\",\"\",Economática!#REF!)","v":{"$error":"#REF!"}},{"$f":"IF($A248=\"\",\"\",IF(OR(VLOOKUP($A248,Economática!$A$3:$AI$823,10,FALSE)=0,VLOOKUP($A248,Economática!$A$3:$AI$823,10,FALSE)=\"-\"),1/0,VLOOKUP($A248,Economática!$A$3:$AI$823,10,FALSE)))","v":{"$error":"#REF!"}},{"$f":"IF($A248=\"\",\"\",IF(OR(VLOOKUP($A248,Economática!$A$3:$AI$823,11,FALSE)=0,VLOOKUP($A248,Economática!$A$3:$AI$823,11,FALSE)=\"-\"),1/0,VLOOKUP($A248,Economática!$A$3:$AI$823,11,FALSE)))","v":{"$error":"#REF!"}},{"$f":"IF($A248=\"\",\"\",IF(OR(VLOOKUP($A248,Economática!$A$3:$AI$823,12,FALSE)=0,VLOOKUP($A248,Economática!$A$3:$AI$823,12,FALSE)=\"-\"),1/0,VLOOKUP($A248,Economática!$A$3:$AI$823,12,FALSE)))","v":{"$error":"#REF!"}},{"$f":"IF($A248=\"\",\"\",IF(OR(VLOOKUP($A248,Economática!$A$3:$AI$823,13,FALSE)=0,VLOOKUP($A248,Economática!$A$3:$AI$823,13,FALSE)=\"-\"),1/0,VLOOKUP($A248,Economática!$A$3:$AI$823,13,FALSE)))","v":{"$error":"#REF!"}},{"$f":"IF($A248=\"\",\"\",IF(OR(VLOOKUP($A248,Economática!$A$3:$AI$823,14,FALSE)=0,VLOOKUP($A248,Economática!$A$3:$AI$823,14,FALSE)=\"-\"),1/0,VLOOKUP($A248,Economática!$A$3:$AI$823,14,FALSE)))","v":{"$error":"#REF!"}},{"$f":"IF($A248=\"\",\"\",IF(OR(VLOOKUP($A248,Economática!$A$3:$AI$823,15,FALSE)=0,VLOOKUP($A248,Economática!$A$3:$AI$823,15,FALSE)=\"-\"),1/0,VLOOKUP($A248,Economática!$A$3:$AI$823,15,FALSE)))","v":{"$error":"#REF!"}},{"$f":"IF($A248=\"\",\"\",IF(OR(VLOOKUP($A248,Economática!$A$3:$AI$823,16,FALSE)=0,VLOOKUP($A248,Economática!$A$3:$AI$823,16,FALSE)=\"-\"),1/0,VLOOKUP($A248,Economática!$A$3:$AI$823,16,FALSE)))","v":{"$error":"#REF!"}},{"$f":"IF($A248=\"\",\"\",IF(OR(VLOOKUP($A248,Economática!$A$3:$AI$823,17,FALSE)=0,VLOOKUP($A248,Economática!$A$3:$AI$823,17,FALSE)=\"-\"),1/0,VLOOKUP($A248,Economática!$A$3:$AI$823,17,FALSE)))","v":{"$error":"#REF!"}},{"$f":"IF($A248=\"\",\"\",IF(OR(VLOOKUP($A248,Economática!$A$3:$AI$823,18,FALSE)=0,VLOOKUP($A248,Economática!$A$3:$AI$823,18,FALSE)=\"-\"),1/0,VLOOKUP($A248,Economática!$A$3:$AI$823,18,FALSE)))","v":{"$error":"#REF!"}},{"$f":"IF($A248=\"\",\"\",IF(OR(VLOOKUP($A248,Economática!$A$3:$AI$823,19,FALSE)=0,VLOOKUP($A248,Economática!$A$3:$AI$823,19,FALSE)=\"-\"),1/0,VLOOKUP($A248,Economática!$A$3:$AI$823,19,FALSE)))","v":{"$error":"#REF!"}},{"$f":"IF($A248=\"\",\"\",VLOOKUP($A248,Economática!$A$3:$AI$823,20,FALSE)/E248)","v":{"$error":"#REF!"}},{"$error":"#REF!"},{"$error":"#REF!"},{"$error":"#REF!"},{"$f":"IF($A248=\"\",\"\",IF(OR(VLOOKUP($A248,Economática!$A$3:$AI$823,21,FALSE)/100=0,VLOOKUP($A248,Economática!$A$3:$AI$823,21,FALSE)/100=\"-\"),1/0,VLOOKUP($A248,Economática!$A$3:$AI$823,21,FALSE)/100))","v":{"$error":"#REF!"}},{"$f":"IF($A248=\"\",\"\",IF(OR(VLOOKUP($A248,Economática!$A$3:$AI$823,22,FALSE)/100=0,VLOOKUP($A248,Economática!$A$3:$AI$823,22,FALSE)/100=\"-\"),1/0,VLOOKUP($A248,Economática!$A$3:$AI$823,22,FALSE)/100))","v":{"$error":"#REF!"}},{"$f":"IF($A248=\"\",\"\",IF(OR(VLOOKUP($A248,Economática!$A$3:$AI$823,23,FALSE)=0,VLOOKUP($A248,Economática!$A$3:$AI$823,23,FALSE)=\"-\"),1/0,VLOOKUP($A248,Economática!$A$3:$AI$823,23,FALSE)))","v":{"$error":"#REF!"}},{"$f":"IF($A248=\"\",\"\",IF(OR(VLOOKUP($A248,Economática!$A$3:$AI$823,24,FALSE)=0,VLOOKUP($A248,Economática!$A$3:$AI$823,24,FALSE)=\"-\"),1/0,VLOOKUP($A248,Economática!$A$3:$AI$823,24,FALSE)))","v":{"$error":"#REF!"}},{"$f":"IF($A248=\"\",\"\",IF(OR(VLOOKUP($A248,Economática!$A$3:$AI$823,25,FALSE)=0,VLOOKUP($A248,Economática!$A$3:$AI$823,25,FALSE)=\"-\"),1/0,VLOOKUP($A248,Economática!$A$3:$AI$823,25,FALSE)))","v":{"$error":"#REF!"}},{"$f":"IF($A248=\"\",\"\",IF(ISERROR((F248+VLOOKUP($A248,Economática!$A$3:$AI$823,26,FALSE))/Y248),(F248+VLOOKUP($A248,Economática!$A$3:$AI$823,26,FALSE))/Y248,(F248+VLOOKUP($A248,Economática!$A$3:$AI$823,26,FALSE))/Y248))","v":{"$error":"#REF!"}},{"$f":"IF($A248=\"\",\"\",IF(OR(-VLOOKUP($A248,Economática!$A$3:$AI$823,27,FALSE)=0,-VLOOKUP($A248,Economática!$A$3:$AI$823,27,FALSE)=\"-\"),1/0,-VLOOKUP($A248,Economática!$A$3:$AI$823,27,FALSE)))","v":{"$error":"#REF!"}},{"$error":"#REF!"},{"$f":"IF($A248=\"\",\"\",IF(OR(VLOOKUP($A248,Economática!$A$3:$AI$823,28,FALSE)=0,VLOOKUP($A248,Economática!$A$3:$AI$823,28,FALSE)=\"-\"),1/0,VLOOKUP($A248,Economática!$A$3:$AI$823,28,FALSE)))","v":{"$error":"#REF!"}},{"$f":"IF($A248=\"\",\"\",IF(OR(VLOOKUP($A248,Economática!$A$3:$AI$823,29,FALSE)=0,VLOOKUP($A248,Economática!$A$3:$AI$823,29,FALSE)=\"-\"),1/0,VLOOKUP($A248,Economática!$A$3:$AI$823,29,FALSE)))","v":{"$error":"#REF!"}},{"$f":"IF($A248=\"\",\"\",IF(OR(VLOOKUP($A248,Economática!$A$3:$AI$823,30,FALSE)/E248=0,VLOOKUP($A248,Economática!$A$3:$AI$823,30,FALSE)/E248=\"-\",VLOOKUP($A248,Economática!$A$3:$AI$823,30,FALSE)/E248<33.33%,VLOOKUP($A248,Economática!$A$3:$AI$823,30,FALSE)/E248>100%),1/0,VLOOKUP($A248,Economática!$A$3:$AI$823,30,FALSE)/E248))","v":{"$error":"#REF!"}},{"$error":"#REF!"},{"$f":"IF($A248=\"\",\"\",IF(OR(VLOOKUP($A248,Economática!$A$3:$AI$823,25,FALSE)=0,VLOOKUP($A248,Economática!$A$3:$AI$823,25,FALSE)=\"-\"),1/0,VLOOKUP($A248,Economática!$A$3:$AI$823,25,FALSE)))","v":{"$error":"#REF!"}},{"$f":"CONCATENATE(Economática!#REF!,\" \",Economática!#REF!)","v":{"$error":"#REF!"}}]
[{"$f":"IF(Economática!#REF!=\"\",\"\",Economática!#REF!)","v":{"$error":"#REF!"}},{"$f":"IF($A249=\"\",\"\",VLOOKUP(VLOOKUP($A249,Economática!$A$3:$AI$823,6,FALSE),Correção!$B$16:$C$36,2,FALSE))","v":{"$error":"#REF!"}},{"$f":"IF(Economática!#REF!=\"\",\"\",Economática!#REF!)","v":{"$error":"#REF!"}},{"$f":"IF($A249=\"\",\"\",IF(OR(VLOOKUP($A249,Economática!$A$3:$AI$823,8,FALSE)=0,VLOOKUP($A249,Economática!$A$3:$AI$823,8,FALSE)=\"-\"),1/0,VLOOKUP($A249,Economática!$A$3:$AI$823,8,FALSE)))","v":{"$error":"#REF!"}},{"$f":"IF(A249=\"\",\"\",IF(ISERROR(VLOOKUP(A249,Correção!$B$2:$G$13,9,FALSE)),VLOOKUP($A249,Economática!$A$3:$AI$823,9,FALSE),VLOOKUP(A249,Correção!$B$2:$G$13,9,FALSE)))","v":{"$error":"#REF!"}},{"$f":"IF($A249=\"\",\"\",Economática!#REF!)","v":{"$error":"#REF!"}},{"$f":"IF($A249=\"\",\"\",IF(OR(VLOOKUP($A249,Economática!$A$3:$AI$823,10,FALSE)=0,VLOOKUP($A249,Economática!$A$3:$AI$823,10,FALSE)=\"-\"),1/0,VLOOKUP($A249,Economática!$A$3:$AI$823,10,FALSE)))","v":{"$error":"#REF!"}},{"$f":"IF($A249=\"\",\"\",IF(OR(VLOOKUP($A249,Economática!$A$3:$AI$823,11,FALSE)=0,VLOOKUP($A249,Economática!$A$3:$AI$823,11,FALSE)=\"-\"),1/0,VLOOKUP($A249,Economática!$A$3:$AI$823,11,FALSE)))","v":{"$error":"#REF!"}},{"$f":"IF($A249=\"\",\"\",IF(OR(VLOOKUP($A249,Economática!$A$3:$AI$823,12,FALSE)=0,VLOOKUP($A249,Economática!$A$3:$AI$823,12,FALSE)=\"-\"),1/0,VLOOKUP($A249,Economática!$A$3:$AI$823,12,FALSE)))","v":{"$error":"#REF!"}},{"$f":"IF($A249=\"\",\"\",IF(OR(VLOOKUP($A249,Economática!$A$3:$AI$823,13,FALSE)=0,VLOOKUP($A249,Economática!$A$3:$AI$823,13,FALSE)=\"-\"),1/0,VLOOKUP($A249,Economática!$A$3:$AI$823,13,FALSE)))","v":{"$error":"#REF!"}},{"$f":"IF($A249=\"\",\"\",IF(OR(VLOOKUP($A249,Economática!$A$3:$AI$823,14,FALSE)=0,VLOOKUP($A249,Economática!$A$3:$AI$823,14,FALSE)=\"-\"),1/0,VLOOKUP($A249,Economática!$A$3:$AI$823,14,FALSE)))","v":{"$error":"#REF!"}},{"$f":"IF($A249=\"\",\"\",IF(OR(VLOOKUP($A249,Economática!$A$3:$AI$823,15,FALSE)=0,VLOOKUP($A249,Economática!$A$3:$AI$823,15,FALSE)=\"-\"),1/0,VLOOKUP($A249,Economática!$A$3:$AI$823,15,FALSE)))","v":{"$error":"#REF!"}},{"$f":"IF($A249=\"\",\"\",IF(OR(VLOOKUP($A249,Economática!$A$3:$AI$823,16,FALSE)=0,VLOOKUP($A249,Economática!$A$3:$AI$823,16,FALSE)=\"-\"),1/0,VLOOKUP($A249,Economática!$A$3:$AI$823,16,FALSE)))","v":{"$error":"#REF!"}},{"$f":"IF($A249=\"\",\"\",IF(OR(VLOOKUP($A249,Economática!$A$3:$AI$823,17,FALSE)=0,VLOOKUP($A249,Economática!$A$3:$AI$823,17,FALSE)=\"-\"),1/0,VLOOKUP($A249,Economática!$A$3:$AI$823,17,FALSE)))","v":{"$error":"#REF!"}},{"$f":"IF($A249=\"\",\"\",IF(OR(VLOOKUP($A249,Economática!$A$3:$AI$823,18,FALSE)=0,VLOOKUP($A249,Economática!$A$3:$AI$823,18,FALSE)=\"-\"),1/0,VLOOKUP($A249,Economática!$A$3:$AI$823,18,FALSE)))","v":{"$error":"#REF!"}},{"$f":"IF($A249=\"\",\"\",IF(OR(VLOOKUP($A249,Economática!$A$3:$AI$823,19,FALSE)=0,VLOOKUP($A249,Economática!$A$3:$AI$823,19,FALSE)=\"-\"),1/0,VLOOKUP($A249,Economática!$A$3:$AI$823,19,FALSE)))","v":{"$error":"#REF!"}},{"$f":"IF($A249=\"\",\"\",VLOOKUP($A249,Economática!$A$3:$AI$823,20,FALSE)/E249)","v":{"$error":"#REF!"}},{"$error":"#REF!"},{"$error":"#REF!"},{"$error":"#REF!"},{"$f":"IF($A249=\"\",\"\",IF(OR(VLOOKUP($A249,Economática!$A$3:$AI$823,21,FALSE)/100=0,VLOOKUP($A249,Economática!$A$3:$AI$823,21,FALSE)/100=\"-\"),1/0,VLOOKUP($A249,Economática!$A$3:$AI$823,21,FALSE)/100))","v":{"$error":"#REF!"}},{"$f":"IF($A249=\"\",\"\",IF(OR(VLOOKUP($A249,Economática!$A$3:$AI$823,22,FALSE)/100=0,VLOOKUP($A249,Economática!$A$3:$AI$823,22,FALSE)/100=\"-\"),1/0,VLOOKUP($A249,Economática!$A$3:$AI$823,22,FALSE)/100))","v":{"$error":"#REF!"}},{"$f":"IF($A249=\"\",\"\",IF(OR(VLOOKUP($A249,Economática!$A$3:$AI$823,23,FALSE)=0,VLOOKUP($A249,Economática!$A$3:$AI$823,23,FALSE)=\"-\"),1/0,VLOOKUP($A249,Economática!$A$3:$AI$823,23,FALSE)))","v":{"$error":"#REF!"}},{"$f":"IF($A249=\"\",\"\",IF(OR(VLOOKUP($A249,Economática!$A$3:$AI$823,24,FALSE)=0,VLOOKUP($A249,Economática!$A$3:$AI$823,24,FALSE)=\"-\"),1/0,VLOOKUP($A249,Economática!$A$3:$AI$823,24,FALSE)))","v":{"$error":"#REF!"}},{"$f":"IF($A249=\"\",\"\",IF(OR(VLOOKUP($A249,Economática!$A$3:$AI$823,25,FALSE)=0,VLOOKUP($A249,Economática!$A$3:$AI$823,25,FALSE)=\"-\"),1/0,VLOOKUP($A249,Economática!$A$3:$AI$823,25,FALSE)))","v":{"$error":"#REF!"}},{"$f":"IF($A249=\"\",\"\",IF(ISERROR((F249+VLOOKUP($A249,Economática!$A$3:$AI$823,26,FALSE))/Y249),(F249+VLOOKUP($A249,Economática!$A$3:$AI$823,26,FALSE))/Y249,(F249+VLOOKUP($A249,Economática!$A$3:$AI$823,26,FALSE))/Y249))","v":{"$error":"#REF!"}},{"$f":"IF($A249=\"\",\"\",IF(OR(-VLOOKUP($A249,Economática!$A$3:$AI$823,27,FALSE)=0,-VLOOKUP($A249,Economática!$A$3:$AI$823,27,FALSE)=\"-\"),1/0,-VLOOKUP($A249,Economática!$A$3:$AI$823,27,FALSE)))","v":{"$error":"#REF!"}},{"$error":"#REF!"},{"$f":"IF($A249=\"\",\"\",IF(OR(VLOOKUP($A249,Economática!$A$3:$AI$823,28,FALSE)=0,VLOOKUP($A249,Economática!$A$3:$AI$823,28,FALSE)=\"-\"),1/0,VLOOKUP($A249,Economática!$A$3:$AI$823,28,FALSE)))","v":{"$error":"#REF!"}},{"$f":"IF($A249=\"\",\"\",IF(OR(VLOOKUP($A249,Economática!$A$3:$AI$823,29,FALSE)=0,VLOOKUP($A249,Economática!$A$3:$AI$823,29,FALSE)=\"-\"),1/0,VLOOKUP($A249,Economática!$A$3:$AI$823,29,FALSE)))","v":{"$error":"#REF!"}},{"$f":"IF($A249=\"\",\"\",IF(OR(VLOOKUP($A249,Economática!$A$3:$AI$823,30,FALSE)/E249=0,VLOOKUP($A249,Economática!$A$3:$AI$823,30,FALSE)/E249=\"-\",VLOOKUP($A249,Economática!$A$3:$AI$823,30,FALSE)/E249<33.33%,VLOOKUP($A249,Economática!$A$3:$AI$823,30,FALSE)/E249>100%),1/0,VLOOKUP($A249,Economática!$A$3:$AI$823,30,FALSE)/E249))","v":{"$error":"#REF!"}},{"$error":"#REF!"},{"$f":"IF($A249=\"\",\"\",IF(OR(VLOOKUP($A249,Economática!$A$3:$AI$823,25,FALSE)=0,VLOOKUP($A249,Economática!$A$3:$AI$823,25,FALSE)=\"-\"),1/0,VLOOKUP($A249,Economática!$A$3:$AI$823,25,FALSE)))","v":{"$error":"#REF!"}},{"$f":"CONCATENATE(Economática!#REF!,\" \",Economática!#REF!)","v":{"$error":"#REF!"}}]
[{"$f":"IF(Economática!#REF!=\"\",\"\",Economática!#REF!)","v":{"$error":"#REF!"}},{"$f":"IF($A250=\"\",\"\",VLOOKUP(VLOOKUP($A250,Economática!$A$3:$AI$823,6,FALSE),Correção!$B$16:$C$36,2,FALSE))","v":{"$error":"#REF!"}},{"$f":"IF(Economática!#REF!=\"\",\"\",Economática!#REF!)","v":{"$error":"#REF!"}},{"$f":"IF($A250=\"\",\"\",IF(OR(VLOOKUP($A250,Economática!$A$3:$AI$823,8,FALSE)=0,VLOOKUP($A250,Economática!$A$3:$AI$823,8,FALSE)=\"-\"),1/0,VLOOKUP($A250,Economática!$A$3:$AI$823,8,FALSE)))","v":{"$error":"#REF!"}},{"$f":"IF(A250=\"\",\"\",IF(ISERROR(VLOOKUP(A250,Correção!$B$2:$G$13,9,FALSE)),VLOOKUP($A250,Economática!$A$3:$AI$823,9,FALSE),VLOOKUP(A250,Correção!$B$2:$G$13,9,FALSE)))","v":{"$error":"#REF!"}},{"$f":"IF($A250=\"\",\"\",Economática!#REF!)","v":{"$error":"#REF!"}},{"$f":"IF($A250=\"\",\"\",IF(OR(VLOOKUP($A250,Economática!$A$3:$AI$823,10,FALSE)=0,VLOOKUP($A250,Economática!$A$3:$AI$823,10,FALSE)=\"-\"),1/0,VLOOKUP($A250,Economática!$A$3:$AI$823,10,FALSE)))","v":{"$error":"#REF!"}},{"$f":"IF($A250=\"\",\"\",IF(OR(VLOOKUP($A250,Economática!$A$3:$AI$823,11,FALSE)=0,VLOOKUP($A250,Economática!$A$3:$AI$823,11,FALSE)=\"-\"),1/0,VLOOKUP($A250,Economática!$A$3:$AI$823,11,FALSE)))","v":{"$error":"#REF!"}},{"$f":"IF($A250=\"\",\"\",IF(OR(VLOOKUP($A250,Economática!$A$3:$AI$823,12,FALSE)=0,VLOOKUP($A250,Economática!$A$3:$AI$823,12,FALSE)=\"-\"),1/0,VLOOKUP($A250,Economática!$A$3:$AI$823,12,FALSE)))","v":{"$error":"#REF!"}},{"$f":"IF($A250=\"\",\"\",IF(OR(VLOOKUP($A250,Economática!$A$3:$AI$823,13,FALSE)=0,VLOOKUP($A250,Economática!$A$3:$AI$823,13,FALSE)=\"-\"),1/0,VLOOKUP($A250,Economática!$A$3:$AI$823,13,FALSE)))","v":{"$error":"#REF!"}},{"$f":"IF($A250=\"\",\"\",IF(OR(VLOOKUP($A250,Economática!$A$3:$AI$823,14,FALSE)=0,VLOOKUP($A250,Economática!$A$3:$AI$823,14,FALSE)=\"-\"),1/0,VLOOKUP($A250,Economática!$A$3:$AI$823,14,FALSE)))","v":{"$error":"#REF!"}},{"$f":"IF($A250=\"\",\"\",IF(OR(VLOOKUP($A250,Economática!$A$3:$AI$823,15,FALSE)=0,VLOOKUP($A250,Economática!$A$3:$AI$823,15,FALSE)=\"-\"),1/0,VLOOKUP($A250,Economática!$A$3:$AI$823,15,FALSE)))","v":{"$error":"#REF!"}},{"$f":"IF($A250=\"\",\"\",IF(OR(VLOOKUP($A250,Economática!$A$3:$AI$823,16,FALSE)=0,VLOOKUP($A250,Economática!$A$3:$AI$823,16,FALSE)=\"-\"),1/0,VLOOKUP($A250,Economática!$A$3:$AI$823,16,FALSE)))","v":{"$error":"#REF!"}},{"$f":"IF($A250=\"\",\"\",IF(OR(VLOOKUP($A250,Economática!$A$3:$AI$823,17,FALSE)=0,VLOOKUP($A250,Economática!$A$3:$AI$823,17,FALSE)=\"-\"),1/0,VLOOKUP($A250,Economática!$A$3:$AI$823,17,FALSE)))","v":{"$error":"#REF!"}},{"$f":"IF($A250=\"\",\"\",IF(OR(VLOOKUP($A250,Economática!$A$3:$AI$823,18,FALSE)=0,VLOOKUP($A250,Economática!$A$3:$AI$823,18,FALSE)=\"-\"),1/0,VLOOKUP($A250,Economática!$A$3:$AI$823,18,FALSE)))","v":{"$error":"#REF!"}},{"$f":"IF($A250=\"\",\"\",IF(OR(VLOOKUP($A250,Economática!$A$3:$AI$823,19,FALSE)=0,VLOOKUP($A250,Economática!$A$3:$AI$823,19,FALSE)=\"-\"),1/0,VLOOKUP($A250,Economática!$A$3:$AI$823,19,FALSE)))","v":{"$error":"#REF!"}},{"$f":"IF($A250=\"\",\"\",VLOOKUP($A250,Economática!$A$3:$AI$823,20,FALSE)/E250)","v":{"$error":"#REF!"}},{"$error":"#REF!"},{"$error":"#REF!"},{"$error":"#REF!"},{"$f":"IF($A250=\"\",\"\",IF(OR(VLOOKUP($A250,Economática!$A$3:$AI$823,21,FALSE)/100=0,VLOOKUP($A250,Economática!$A$3:$AI$823,21,FALSE)/100=\"-\"),1/0,VLOOKUP($A250,Economática!$A$3:$AI$823,21,FALSE)/100))","v":{"$error":"#REF!"}},{"$f":"IF($A250=\"\",\"\",IF(OR(VLOOKUP($A250,Economática!$A$3:$AI$823,22,FALSE)/100=0,VLOOKUP($A250,Economática!$A$3:$AI$823,22,FALSE)/100=\"-\"),1/0,VLOOKUP($A250,Economática!$A$3:$AI$823,22,FALSE)/100))","v":{"$error":"#REF!"}},{"$f":"IF($A250=\"\",\"\",IF(OR(VLOOKUP($A250,Economática!$A$3:$AI$823,23,FALSE)=0,VLOOKUP($A250,Economática!$A$3:$AI$823,23,FALSE)=\"-\"),1/0,VLOOKUP($A250,Economática!$A$3:$AI$823,23,FALSE)))","v":{"$error":"#REF!"}},{"$f":"IF($A250=\"\",\"\",IF(OR(VLOOKUP($A250,Economática!$A$3:$AI$823,24,FALSE)=0,VLOOKUP($A250,Economática!$A$3:$AI$823,24,FALSE)=\"-\"),1/0,VLOOKUP($A250,Economática!$A$3:$AI$823,24,FALSE)))","v":{"$error":"#REF!"}},{"$f":"IF($A250=\"\",\"\",IF(OR(VLOOKUP($A250,Economática!$A$3:$AI$823,25,FALSE)=0,VLOOKUP($A250,Economática!$A$3:$AI$823,25,FALSE)=\"-\"),1/0,VLOOKUP($A250,Economática!$A$3:$AI$823,25,FALSE)))","v":{"$error":"#REF!"}},{"$f":"IF($A250=\"\",\"\",IF(ISERROR((F250+VLOOKUP($A250,Economática!$A$3:$AI$823,26,FALSE))/Y250),(F250+VLOOKUP($A250,Economática!$A$3:$AI$823,26,FALSE))/Y250,(F250+VLOOKUP($A250,Economática!$A$3:$AI$823,26,FALSE))/Y250))","v":{"$error":"#REF!"}},{"$f":"IF($A250=\"\",\"\",IF(OR(-VLOOKUP($A250,Economática!$A$3:$AI$823,27,FALSE)=0,-VLOOKUP($A250,Economática!$A$3:$AI$823,27,FALSE)=\"-\"),1/0,-VLOOKUP($A250,Economática!$A$3:$AI$823,27,FALSE)))","v":{"$error":"#REF!"}},{"$error":"#REF!"},{"$f":"IF($A250=\"\",\"\",IF(OR(VLOOKUP($A250,Economática!$A$3:$AI$823,28,FALSE)=0,VLOOKUP($A250,Economática!$A$3:$AI$823,28,FALSE)=\"-\"),1/0,VLOOKUP($A250,Economática!$A$3:$AI$823,28,FALSE)))","v":{"$error":"#REF!"}},{"$f":"IF($A250=\"\",\"\",IF(OR(VLOOKUP($A250,Economática!$A$3:$AI$823,29,FALSE)=0,VLOOKUP($A250,Economática!$A$3:$AI$823,29,FALSE)=\"-\"),1/0,VLOOKUP($A250,Economática!$A$3:$AI$823,29,FALSE)))","v":{"$error":"#REF!"}},{"$f":"IF($A250=\"\",\"\",IF(OR(VLOOKUP($A250,Economática!$A$3:$AI$823,30,FALSE)/E250=0,VLOOKUP($A250,Economática!$A$3:$AI$823,30,FALSE)/E250=\"-\",VLOOKUP($A250,Economática!$A$3:$AI$823,30,FALSE)/E250<33.33%,VLOOKUP($A250,Economática!$A$3:$AI$823,30,FALSE)/E250>100%),1/0,VLOOKUP($A250,Economática!$A$3:$AI$823,30,FALSE)/E250))","v":{"$error":"#REF!"}},{"$error":"#REF!"},{"$f":"IF($A250=\"\",\"\",IF(OR(VLOOKUP($A250,Economática!$A$3:$AI$823,25,FALSE)=0,VLOOKUP($A250,Economática!$A$3:$AI$823,25,FALSE)=\"-\"),1/0,VLOOKUP($A250,Economática!$A$3:$AI$823,25,FALSE)))","v":{"$error":"#REF!"}},{"$f":"CONCATENATE(Economática!#REF!,\" \",Economática!#REF!)","v":{"$error":"#REF!"}}]
[{"$f":"IF(Economática!#REF!=\"\",\"\",Economática!#REF!)","v":{"$error":"#REF!"}},{"$f":"IF($A251=\"\",\"\",VLOOKUP(VLOOKUP($A251,Economática!$A$3:$AI$823,6,FALSE),Correção!$B$16:$C$36,2,FALSE))","v":{"$error":"#REF!"}},{"$f":"IF(Economática!#REF!=\"\",\"\",Economática!#REF!)","v":{"$error":"#REF!"}},{"$f":"IF($A251=\"\",\"\",IF(OR(VLOOKUP($A251,Economática!$A$3:$AI$823,8,FALSE)=0,VLOOKUP($A251,Economática!$A$3:$AI$823,8,FALSE)=\"-\"),1/0,VLOOKUP($A251,Economática!$A$3:$AI$823,8,FALSE)))","v":{"$error":"#REF!"}},{"$f":"IF(A251=\"\",\"\",IF(ISERROR(VLOOKUP(A251,Correção!$B$2:$G$13,9,FALSE)),VLOOKUP($A251,Economática!$A$3:$AI$823,9,FALSE),VLOOKUP(A251,Correção!$B$2:$G$13,9,FALSE)))","v":{"$error":"#REF!"}},{"$f":"IF($A251=\"\",\"\",Economática!#REF!)","v":{"$error":"#REF!"}},{"$f":"IF($A251=\"\",\"\",IF(OR(VLOOKUP($A251,Economática!$A$3:$AI$823,10,FALSE)=0,VLOOKUP($A251,Economática!$A$3:$AI$823,10,FALSE)=\"-\"),1/0,VLOOKUP($A251,Economática!$A$3:$AI$823,10,FALSE)))","v":{"$error":"#REF!"}},{"$f":"IF($A251=\"\",\"\",IF(OR(VLOOKUP($A251,Economática!$A$3:$AI$823,11,FALSE)=0,VLOOKUP($A251,Economática!$A$3:$AI$823,11,FALSE)=\"-\"),1/0,VLOOKUP($A251,Economática!$A$3:$AI$823,11,FALSE)))","v":{"$error":"#REF!"}},{"$f":"IF($A251=\"\",\"\",IF(OR(VLOOKUP($A251,Economática!$A$3:$AI$823,12,FALSE)=0,VLOOKUP($A251,Economática!$A$3:$AI$823,12,FALSE)=\"-\"),1/0,VLOOKUP($A251,Economática!$A$3:$AI$823,12,FALSE)))","v":{"$error":"#REF!"}},{"$f":"IF($A251=\"\",\"\",IF(OR(VLOOKUP($A251,Economática!$A$3:$AI$823,13,FALSE)=0,VLOOKUP($A251,Economática!$A$3:$AI$823,13,FALSE)=\"-\"),1/0,VLOOKUP($A251,Economática!$A$3:$AI$823,13,FALSE)))","v":{"$error":"#REF!"}},{"$f":"IF($A251=\"\",\"\",IF(OR(VLOOKUP($A251,Economática!$A$3:$AI$823,14,FALSE)=0,VLOOKUP($A251,Economática!$A$3:$AI$823,14,FALSE)=\"-\"),1/0,VLOOKUP($A251,Economática!$A$3:$AI$823,14,FALSE)))","v":{"$error":"#REF!"}},{"$f":"IF($A251=\"\",\"\",IF(OR(VLOOKUP($A251,Economática!$A$3:$AI$823,15,FALSE)=0,VLOOKUP($A251,Economática!$A$3:$AI$823,15,FALSE)=\"-\"),1/0,VLOOKUP($A251,Economática!$A$3:$AI$823,15,FALSE)))","v":{"$error":"#REF!"}},{"$f":"IF($A251=\"\",\"\",IF(OR(VLOOKUP($A251,Economática!$A$3:$AI$823,16,FALSE)=0,VLOOKUP($A251,Economática!$A$3:$AI$823,16,FALSE)=\"-\"),1/0,VLOOKUP($A251,Economática!$A$3:$AI$823,16,FALSE)))","v":{"$error":"#REF!"}},{"$f":"IF($A251=\"\",\"\",IF(OR(VLOOKUP($A251,Economática!$A$3:$AI$823,17,FALSE)=0,VLOOKUP($A251,Economática!$A$3:$AI$823,17,FALSE)=\"-\"),1/0,VLOOKUP($A251,Economática!$A$3:$AI$823,17,FALSE)))","v":{"$error":"#REF!"}},{"$f":"IF($A251=\"\",\"\",IF(OR(VLOOKUP($A251,Economática!$A$3:$AI$823,18,FALSE)=0,VLOOKUP($A251,Economática!$A$3:$AI$823,18,FALSE)=\"-\"),1/0,VLOOKUP($A251,Economática!$A$3:$AI$823,18,FALSE)))","v":{"$error":"#REF!"}},{"$f":"IF($A251=\"\",\"\",IF(OR(VLOOKUP($A251,Economática!$A$3:$AI$823,19,FALSE)=0,VLOOKUP($A251,Economática!$A$3:$AI$823,19,FALSE)=\"-\"),1/0,VLOOKUP($A251,Economática!$A$3:$AI$823,19,FALSE)))","v":{"$error":"#REF!"}},{"$f":"IF($A251=\"\",\"\",VLOOKUP($A251,Economática!$A$3:$AI$823,20,FALSE)/E251)","v":{"$error":"#REF!"}},{"$error":"#REF!"},{"$error":"#REF!"},{"$error":"#REF!"},{"$f":"IF($A251=\"\",\"\",IF(OR(VLOOKUP($A251,Economática!$A$3:$AI$823,21,FALSE)/100=0,VLOOKUP($A251,Economática!$A$3:$AI$823,21,FALSE)/100=\"-\"),1/0,VLOOKUP($A251,Economática!$A$3:$AI$823,21,FALSE)/100))","v":{"$error":"#REF!"}},{"$f":"IF($A251=\"\",\"\",IF(OR(VLOOKUP($A251,Economática!$A$3:$AI$823,22,FALSE)/100=0,VLOOKUP($A251,Economática!$A$3:$AI$823,22,FALSE)/100=\"-\"),1/0,VLOOKUP($A251,Economática!$A$3:$AI$823,22,FALSE)/100))","v":{"$error":"#REF!"}},{"$f":"IF($A251=\"\",\"\",IF(OR(VLOOKUP($A251,Economática!$A$3:$AI$823,23,FALSE)=0,VLOOKUP($A251,Economática!$A$3:$AI$823,23,FALSE)=\"-\"),1/0,VLOOKUP($A251,Economática!$A$3:$AI$823,23,FALSE)))","v":{"$error":"#REF!"}},{"$f":"IF($A251=\"\",\"\",IF(OR(VLOOKUP($A251,Economática!$A$3:$AI$823,24,FALSE)=0,VLOOKUP($A251,Economática!$A$3:$AI$823,24,FALSE)=\"-\"),1/0,VLOOKUP($A251,Economática!$A$3:$AI$823,24,FALSE)))","v":{"$error":"#REF!"}},{"$f":"IF($A251=\"\",\"\",IF(OR(VLOOKUP($A251,Economática!$A$3:$AI$823,25,FALSE)=0,VLOOKUP($A251,Economática!$A$3:$AI$823,25,FALSE)=\"-\"),1/0,VLOOKUP($A251,Economática!$A$3:$AI$823,25,FALSE)))","v":{"$error":"#REF!"}},{"$f":"IF($A251=\"\",\"\",IF(ISERROR((F251+VLOOKUP($A251,Economática!$A$3:$AI$823,26,FALSE))/Y251),(F251+VLOOKUP($A251,Economática!$A$3:$AI$823,26,FALSE))/Y251,(F251+VLOOKUP($A251,Economática!$A$3:$AI$823,26,FALSE))/Y251))","v":{"$error":"#REF!"}},{"$f":"IF($A251=\"\",\"\",IF(OR(-VLOOKUP($A251,Economática!$A$3:$AI$823,27,FALSE)=0,-VLOOKUP($A251,Economática!$A$3:$AI$823,27,FALSE)=\"-\"),1/0,-VLOOKUP($A251,Economática!$A$3:$AI$823,27,FALSE)))","v":{"$error":"#REF!"}},{"$error":"#REF!"},{"$f":"IF($A251=\"\",\"\",IF(OR(VLOOKUP($A251,Economática!$A$3:$AI$823,28,FALSE)=0,VLOOKUP($A251,Economática!$A$3:$AI$823,28,FALSE)=\"-\"),1/0,VLOOKUP($A251,Economática!$A$3:$AI$823,28,FALSE)))","v":{"$error":"#REF!"}},{"$f":"IF($A251=\"\",\"\",IF(OR(VLOOKUP($A251,Economática!$A$3:$AI$823,29,FALSE)=0,VLOOKUP($A251,Economática!$A$3:$AI$823,29,FALSE)=\"-\"),1/0,VLOOKUP($A251,Economática!$A$3:$AI$823,29,FALSE)))","v":{"$error":"#REF!"}},{"$f":"IF($A251=\"\",\"\",IF(OR(VLOOKUP($A251,Economática!$A$3:$AI$823,30,FALSE)/E251=0,VLOOKUP($A251,Economática!$A$3:$AI$823,30,FALSE)/E251=\"-\",VLOOKUP($A251,Economática!$A$3:$AI$823,30,FALSE)/E251<33.33%,VLOOKUP($A251,Economática!$A$3:$AI$823,30,FALSE)/E251>100%),1/0,VLOOKUP($A251,Economática!$A$3:$AI$823,30,FALSE)/E251))","v":{"$error":"#REF!"}},{"$error":"#REF!"},{"$f":"IF($A251=\"\",\"\",IF(OR(VLOOKUP($A251,Economática!$A$3:$AI$823,25,FALSE)=0,VLOOKUP($A251,Economática!$A$3:$AI$823,25,FALSE)=\"-\"),1/0,VLOOKUP($A251,Economática!$A$3:$AI$823,25,FALSE)))","v":{"$error":"#REF!"}},{"$f":"CONCATENATE(Economática!#REF!,\" \",Economática!#REF!)","v":{"$error":"#REF!"}}]
[{"$f":"IF(Economática!#REF!=\"\",\"\",Economática!#REF!)","v":{"$error":"#REF!"}},{"$f":"IF($A252=\"\",\"\",VLOOKUP(VLOOKUP($A252,Economática!$A$3:$AI$823,6,FALSE),Correção!$B$16:$C$36,2,FALSE))","v":{"$error":"#REF!"}},{"$f":"IF(Economática!#REF!=\"\",\"\",Economática!#REF!)","v":{"$error":"#REF!"}},{"$f":"IF($A252=\"\",\"\",IF(OR(VLOOKUP($A252,Economática!$A$3:$AI$823,8,FALSE)=0,VLOOKUP($A252,Economática!$A$3:$AI$823,8,FALSE)=\"-\"),1/0,VLOOKUP($A252,Economática!$A$3:$AI$823,8,FALSE)))","v":{"$error":"#REF!"}},{"$f":"IF(A252=\"\",\"\",IF(ISERROR(VLOOKUP(A252,Correção!$B$2:$G$13,9,FALSE)),VLOOKUP($A252,Economática!$A$3:$AI$823,9,FALSE),VLOOKUP(A252,Correção!$B$2:$G$13,9,FALSE)))","v":{"$error":"#REF!"}},{"$f":"IF($A252=\"\",\"\",Economática!#REF!)","v":{"$error":"#REF!"}},{"$f":"IF($A252=\"\",\"\",IF(OR(VLOOKUP($A252,Economática!$A$3:$AI$823,10,FALSE)=0,VLOOKUP($A252,Economática!$A$3:$AI$823,10,FALSE)=\"-\"),1/0,VLOOKUP($A252,Economática!$A$3:$AI$823,10,FALSE)))","v":{"$error":"#REF!"}},{"$f":"IF($A252=\"\",\"\",IF(OR(VLOOKUP($A252,Economática!$A$3:$AI$823,11,FALSE)=0,VLOOKUP($A252,Economática!$A$3:$AI$823,11,FALSE)=\"-\"),1/0,VLOOKUP($A252,Economática!$A$3:$AI$823,11,FALSE)))","v":{"$error":"#REF!"}},{"$f":"IF($A252=\"\",\"\",IF(OR(VLOOKUP($A252,Economática!$A$3:$AI$823,12,FALSE)=0,VLOOKUP($A252,Economática!$A$3:$AI$823,12,FALSE)=\"-\"),1/0,VLOOKUP($A252,Economática!$A$3:$AI$823,12,FALSE)))","v":{"$error":"#REF!"}},{"$f":"IF($A252=\"\",\"\",IF(OR(VLOOKUP($A252,Economática!$A$3:$AI$823,13,FALSE)=0,VLOOKUP($A252,Economática!$A$3:$AI$823,13,FALSE)=\"-\"),1/0,VLOOKUP($A252,Economática!$A$3:$AI$823,13,FALSE)))","v":{"$error":"#REF!"}},{"$f":"IF($A252=\"\",\"\",IF(OR(VLOOKUP($A252,Economática!$A$3:$AI$823,14,FALSE)=0,VLOOKUP($A252,Economática!$A$3:$AI$823,14,FALSE)=\"-\"),1/0,VLOOKUP($A252,Economática!$A$3:$AI$823,14,FALSE)))","v":{"$error":"#REF!"}},{"$f":"IF($A252=\"\",\"\",IF(OR(VLOOKUP($A252,Economática!$A$3:$AI$823,15,FALSE)=0,VLOOKUP($A252,Economática!$A$3:$AI$823,15,FALSE)=\"-\"),1/0,VLOOKUP($A252,Economática!$A$3:$AI$823,15,FALSE)))","v":{"$error":"#REF!"}},{"$f":"IF($A252=\"\",\"\",IF(OR(VLOOKUP($A252,Economática!$A$3:$AI$823,16,FALSE)=0,VLOOKUP($A252,Economática!$A$3:$AI$823,16,FALSE)=\"-\"),1/0,VLOOKUP($A252,Economática!$A$3:$AI$823,16,FALSE)))","v":{"$error":"#REF!"}},{"$f":"IF($A252=\"\",\"\",IF(OR(VLOOKUP($A252,Economática!$A$3:$AI$823,17,FALSE)=0,VLOOKUP($A252,Economática!$A$3:$AI$823,17,FALSE)=\"-\"),1/0,VLOOKUP($A252,Economática!$A$3:$AI$823,17,FALSE)))","v":{"$error":"#REF!"}},{"$f":"IF($A252=\"\",\"\",IF(OR(VLOOKUP($A252,Economática!$A$3:$AI$823,18,FALSE)=0,VLOOKUP($A252,Economática!$A$3:$AI$823,18,FALSE)=\"-\"),1/0,VLOOKUP($A252,Economática!$A$3:$AI$823,18,FALSE)))","v":{"$error":"#REF!"}},{"$f":"IF($A252=\"\",\"\",IF(OR(VLOOKUP($A252,Economática!$A$3:$AI$823,19,FALSE)=0,VLOOKUP($A252,Economática!$A$3:$AI$823,19,FALSE)=\"-\"),1/0,VLOOKUP($A252,Economática!$A$3:$AI$823,19,FALSE)))","v":{"$error":"#REF!"}},{"$f":"IF($A252=\"\",\"\",VLOOKUP($A252,Economática!$A$3:$AI$823,20,FALSE)/E252)","v":{"$error":"#REF!"}},{"$error":"#REF!"},{"$error":"#REF!"},{"$error":"#REF!"},{"$f":"IF($A252=\"\",\"\",IF(OR(VLOOKUP($A252,Economática!$A$3:$AI$823,21,FALSE)/100=0,VLOOKUP($A252,Economática!$A$3:$AI$823,21,FALSE)/100=\"-\"),1/0,VLOOKUP($A252,Economática!$A$3:$AI$823,21,FALSE)/100))","v":{"$error":"#REF!"}},{"$f":"IF($A252=\"\",\"\",IF(OR(VLOOKUP($A252,Economática!$A$3:$AI$823,22,FALSE)/100=0,VLOOKUP($A252,Economática!$A$3:$AI$823,22,FALSE)/100=\"-\"),1/0,VLOOKUP($A252,Economática!$A$3:$AI$823,22,FALSE)/100))","v":{"$error":"#REF!"}},{"$f":"IF($A252=\"\",\"\",IF(OR(VLOOKUP($A252,Economática!$A$3:$AI$823,23,FALSE)=0,VLOOKUP($A252,Economática!$A$3:$AI$823,23,FALSE)=\"-\"),1/0,VLOOKUP($A252,Economática!$A$3:$AI$823,23,FALSE)))","v":{"$error":"#REF!"}},{"$f":"IF($A252=\"\",\"\",IF(OR(VLOOKUP($A252,Economática!$A$3:$AI$823,24,FALSE)=0,VLOOKUP($A252,Economática!$A$3:$AI$823,24,FALSE)=\"-\"),1/0,VLOOKUP($A252,Economática!$A$3:$AI$823,24,FALSE)))","v":{"$error":"#REF!"}},{"$f":"IF($A252=\"\",\"\",IF(OR(VLOOKUP($A252,Economática!$A$3:$AI$823,25,FALSE)=0,VLOOKUP($A252,Economática!$A$3:$AI$823,25,FALSE)=\"-\"),1/0,VLOOKUP($A252,Economática!$A$3:$AI$823,25,FALSE)))","v":{"$error":"#REF!"}},{"$f":"IF($A252=\"\",\"\",IF(ISERROR((F252+VLOOKUP($A252,Economática!$A$3:$AI$823,26,FALSE))/Y252),(F252+VLOOKUP($A252,Economática!$A$3:$AI$823,26,FALSE))/Y252,(F252+VLOOKUP($A252,Economática!$A$3:$AI$823,26,FALSE))/Y252))","v":{"$error":"#REF!"}},{"$f":"IF($A252=\"\",\"\",IF(OR(-VLOOKUP($A252,Economática!$A$3:$AI$823,27,FALSE)=0,-VLOOKUP($A252,Economática!$A$3:$AI$823,27,FALSE)=\"-\"),1/0,-VLOOKUP($A252,Economática!$A$3:$AI$823,27,FALSE)))","v":{"$error":"#REF!"}},{"$error":"#REF!"},{"$f":"IF($A252=\"\",\"\",IF(OR(VLOOKUP($A252,Economática!$A$3:$AI$823,28,FALSE)=0,VLOOKUP($A252,Economática!$A$3:$AI$823,28,FALSE)=\"-\"),1/0,VLOOKUP($A252,Economática!$A$3:$AI$823,28,FALSE)))","v":{"$error":"#REF!"}},{"$f":"IF($A252=\"\",\"\",IF(OR(VLOOKUP($A252,Economática!$A$3:$AI$823,29,FALSE)=0,VLOOKUP($A252,Economática!$A$3:$AI$823,29,FALSE)=\"-\"),1/0,VLOOKUP($A252,Economática!$A$3:$AI$823,29,FALSE)))","v":{"$error":"#REF!"}},{"$f":"IF($A252=\"\",\"\",IF(OR(VLOOKUP($A252,Economática!$A$3:$AI$823,30,FALSE)/E252=0,VLOOKUP($A252,Economática!$A$3:$AI$823,30,FALSE)/E252=\"-\",VLOOKUP($A252,Economática!$A$3:$AI$823,30,FALSE)/E252<33.33%,VLOOKUP($A252,Economática!$A$3:$AI$823,30,FALSE)/E252>100%),1/0,VLOOKUP($A252,Economática!$A$3:$AI$823,30,FALSE)/E252))","v":{"$error":"#REF!"}},{"$error":"#REF!"},{"$f":"IF($A252=\"\",\"\",IF(OR(VLOOKUP($A252,Economática!$A$3:$AI$823,25,FALSE)=0,VLOOKUP($A252,Economática!$A$3:$AI$823,25,FALSE)=\"-\"),1/0,VLOOKUP($A252,Economática!$A$3:$AI$823,25,FALSE)))","v":{"$error":"#REF!"}},{"$f":"CONCATENATE(Economática!#REF!,\" \",Economática!#REF!)","v":{"$error":"#REF!"}}]
[{"$f":"IF(Economática!#REF!=\"\",\"\",Economática!#REF!)","v":{"$error":"#REF!"}},{"$f":"IF($A253=\"\",\"\",VLOOKUP(VLOOKUP($A253,Economática!$A$3:$AI$823,6,FALSE),Correção!$B$16:$C$36,2,FALSE))","v":{"$error":"#REF!"}},{"$f":"IF(Economática!#REF!=\"\",\"\",Economática!#REF!)","v":{"$error":"#REF!"}},{"$f":"IF($A253=\"\",\"\",IF(OR(VLOOKUP($A253,Economática!$A$3:$AI$823,8,FALSE)=0,VLOOKUP($A253,Economática!$A$3:$AI$823,8,FALSE)=\"-\"),1/0,VLOOKUP($A253,Economática!$A$3:$AI$823,8,FALSE)))","v":{"$error":"#REF!"}},{"$f":"IF(A253=\"\",\"\",IF(ISERROR(VLOOKUP(A253,Correção!$B$2:$G$13,9,FALSE)),VLOOKUP($A253,Economática!$A$3:$AI$823,9,FALSE),VLOOKUP(A253,Correção!$B$2:$G$13,9,FALSE)))","v":{"$error":"#REF!"}},{"$f":"IF($A253=\"\",\"\",Economática!#REF!)","v":{"$error":"#REF!"}},{"$f":"IF($A253=\"\",\"\",IF(OR(VLOOKUP($A253,Economática!$A$3:$AI$823,10,FALSE)=0,VLOOKUP($A253,Economática!$A$3:$AI$823,10,FALSE)=\"-\"),1/0,VLOOKUP($A253,Economática!$A$3:$AI$823,10,FALSE)))","v":{"$error":"#REF!"}},{"$f":"IF($A253=\"\",\"\",IF(OR(VLOOKUP($A253,Economática!$A$3:$AI$823,11,FALSE)=0,VLOOKUP($A253,Economática!$A$3:$AI$823,11,FALSE)=\"-\"),1/0,VLOOKUP($A253,Economática!$A$3:$AI$823,11,FALSE)))","v":{"$error":"#REF!"}},{"$f":"IF($A253=\"\",\"\",IF(OR(VLOOKUP($A253,Economática!$A$3:$AI$823,12,FALSE)=0,VLOOKUP($A253,Economática!$A$3:$AI$823,12,FALSE)=\"-\"),1/0,VLOOKUP($A253,Economática!$A$3:$AI$823,12,FALSE)))","v":{"$error":"#REF!"}},{"$f":"IF($A253=\"\",\"\",IF(OR(VLOOKUP($A253,Economática!$A$3:$AI$823,13,FALSE)=0,VLOOKUP($A253,Economática!$A$3:$AI$823,13,FALSE)=\"-\"),1/0,VLOOKUP($A253,Economática!$A$3:$AI$823,13,FALSE)))","v":{"$error":"#REF!"}},{"$f":"IF($A253=\"\",\"\",IF(OR(VLOOKUP($A253,Economática!$A$3:$AI$823,14,FALSE)=0,VLOOKUP($A253,Economática!$A$3:$AI$823,14,FALSE)=\"-\"),1/0,VLOOKUP($A253,Economática!$A$3:$AI$823,14,FALSE)))","v":{"$error":"#REF!"}},{"$f":"IF($A253=\"\",\"\",IF(OR(VLOOKUP($A253,Economática!$A$3:$AI$823,15,FALSE)=0,VLOOKUP($A253,Economática!$A$3:$AI$823,15,FALSE)=\"-\"),1/0,VLOOKUP($A253,Economática!$A$3:$AI$823,15,FALSE)))","v":{"$error":"#REF!"}},{"$f":"IF($A253=\"\",\"\",IF(OR(VLOOKUP($A253,Economática!$A$3:$AI$823,16,FALSE)=0,VLOOKUP($A253,Economática!$A$3:$AI$823,16,FALSE)=\"-\"),1/0,VLOOKUP($A253,Economática!$A$3:$AI$823,16,FALSE)))","v":{"$error":"#REF!"}},{"$f":"IF($A253=\"\",\"\",IF(OR(VLOOKUP($A253,Economática!$A$3:$AI$823,17,FALSE)=0,VLOOKUP($A253,Economática!$A$3:$AI$823,17,FALSE)=\"-\"),1/0,VLOOKUP($A253,Economática!$A$3:$AI$823,17,FALSE)))","v":{"$error":"#REF!"}},{"$f":"IF($A253=\"\",\"\",IF(OR(VLOOKUP($A253,Economática!$A$3:$AI$823,18,FALSE)=0,VLOOKUP($A253,Economática!$A$3:$AI$823,18,FALSE)=\"-\"),1/0,VLOOKUP($A253,Economática!$A$3:$AI$823,18,FALSE)))","v":{"$error":"#REF!"}},{"$f":"IF($A253=\"\",\"\",IF(OR(VLOOKUP($A253,Economática!$A$3:$AI$823,19,FALSE)=0,VLOOKUP($A253,Economática!$A$3:$AI$823,19,FALSE)=\"-\"),1/0,VLOOKUP($A253,Economática!$A$3:$AI$823,19,FALSE)))","v":{"$error":"#REF!"}},{"$f":"IF($A253=\"\",\"\",VLOOKUP($A253,Economática!$A$3:$AI$823,20,FALSE)/E253)","v":{"$error":"#REF!"}},{"$error":"#REF!"},{"$error":"#REF!"},{"$error":"#REF!"},{"$f":"IF($A253=\"\",\"\",IF(OR(VLOOKUP($A253,Economática!$A$3:$AI$823,21,FALSE)/100=0,VLOOKUP($A253,Economática!$A$3:$AI$823,21,FALSE)/100=\"-\"),1/0,VLOOKUP($A253,Economática!$A$3:$AI$823,21,FALSE)/100))","v":{"$error":"#REF!"}},{"$f":"IF($A253=\"\",\"\",IF(OR(VLOOKUP($A253,Economática!$A$3:$AI$823,22,FALSE)/100=0,VLOOKUP($A253,Economática!$A$3:$AI$823,22,FALSE)/100=\"-\"),1/0,VLOOKUP($A253,Economática!$A$3:$AI$823,22,FALSE)/100))","v":{"$error":"#REF!"}},{"$f":"IF($A253=\"\",\"\",IF(OR(VLOOKUP($A253,Economática!$A$3:$AI$823,23,FALSE)=0,VLOOKUP($A253,Economática!$A$3:$AI$823,23,FALSE)=\"-\"),1/0,VLOOKUP($A253,Economática!$A$3:$AI$823,23,FALSE)))","v":{"$error":"#REF!"}},{"$f":"IF($A253=\"\",\"\",IF(OR(VLOOKUP($A253,Economática!$A$3:$AI$823,24,FALSE)=0,VLOOKUP($A253,Economática!$A$3:$AI$823,24,FALSE)=\"-\"),1/0,VLOOKUP($A253,Economática!$A$3:$AI$823,24,FALSE)))","v":{"$error":"#REF!"}},{"$f":"IF($A253=\"\",\"\",IF(OR(VLOOKUP($A253,Economática!$A$3:$AI$823,25,FALSE)=0,VLOOKUP($A253,Economática!$A$3:$AI$823,25,FALSE)=\"-\"),1/0,VLOOKUP($A253,Economática!$A$3:$AI$823,25,FALSE)))","v":{"$error":"#REF!"}},{"$f":"IF($A253=\"\",\"\",IF(ISERROR((F253+VLOOKUP($A253,Economática!$A$3:$AI$823,26,FALSE))/Y253),(F253+VLOOKUP($A253,Economática!$A$3:$AI$823,26,FALSE))/Y253,(F253+VLOOKUP($A253,Economática!$A$3:$AI$823,26,FALSE))/Y253))","v":{"$error":"#REF!"}},{"$f":"IF($A253=\"\",\"\",IF(OR(-VLOOKUP($A253,Economática!$A$3:$AI$823,27,FALSE)=0,-VLOOKUP($A253,Economática!$A$3:$AI$823,27,FALSE)=\"-\"),1/0,-VLOOKUP($A253,Economática!$A$3:$AI$823,27,FALSE)))","v":{"$error":"#REF!"}},{"$error":"#REF!"},{"$f":"IF($A253=\"\",\"\",IF(OR(VLOOKUP($A253,Economática!$A$3:$AI$823,28,FALSE)=0,VLOOKUP($A253,Economática!$A$3:$AI$823,28,FALSE)=\"-\"),1/0,VLOOKUP($A253,Economática!$A$3:$AI$823,28,FALSE)))","v":{"$error":"#REF!"}},{"$f":"IF($A253=\"\",\"\",IF(OR(VLOOKUP($A253,Economática!$A$3:$AI$823,29,FALSE)=0,VLOOKUP($A253,Economática!$A$3:$AI$823,29,FALSE)=\"-\"),1/0,VLOOKUP($A253,Economática!$A$3:$AI$823,29,FALSE)))","v":{"$error":"#REF!"}},{"$f":"IF($A253=\"\",\"\",IF(OR(VLOOKUP($A253,Economática!$A$3:$AI$823,30,FALSE)/E253=0,VLOOKUP($A253,Economática!$A$3:$AI$823,30,FALSE)/E253=\"-\",VLOOKUP($A253,Economática!$A$3:$AI$823,30,FALSE)/E253<33.33%,VLOOKUP($A253,Economática!$A$3:$AI$823,30,FALSE)/E253>100%),1/0,VLOOKUP($A253,Economática!$A$3:$AI$823,30,FALSE)/E253))","v":{"$error":"#REF!"}},{"$error":"#REF!"},{"$f":"IF($A253=\"\",\"\",IF(OR(VLOOKUP($A253,Economática!$A$3:$AI$823,25,FALSE)=0,VLOOKUP($A253,Economática!$A$3:$AI$823,25,FALSE)=\"-\"),1/0,VLOOKUP($A253,Economática!$A$3:$AI$823,25,FALSE)))","v":{"$error":"#REF!"}},{"$f":"CONCATENATE(Economática!#REF!,\" \",Economática!#REF!)","v":{"$error":"#REF!"}}]
[{"$f":"IF(Economática!#REF!=\"\",\"\",Economática!#REF!)","v":{"$error":"#REF!"}},{"$f":"IF($A254=\"\",\"\",VLOOKUP(VLOOKUP($A254,Economática!$A$3:$AI$823,6,FALSE),Correção!$B$16:$C$36,2,FALSE))","v":{"$error":"#REF!"}},{"$f":"IF(Economática!#REF!=\"\",\"\",Economática!#REF!)","v":{"$error":"#REF!"}},{"$f":"IF($A254=\"\",\"\",IF(OR(VLOOKUP($A254,Economática!$A$3:$AI$823,8,FALSE)=0,VLOOKUP($A254,Economática!$A$3:$AI$823,8,FALSE)=\"-\"),1/0,VLOOKUP($A254,Economática!$A$3:$AI$823,8,FALSE)))","v":{"$error":"#REF!"}},{"$f":"IF(A254=\"\",\"\",IF(ISERROR(VLOOKUP(A254,Correção!$B$2:$G$13,9,FALSE)),VLOOKUP($A254,Economática!$A$3:$AI$823,9,FALSE),VLOOKUP(A254,Correção!$B$2:$G$13,9,FALSE)))","v":{"$error":"#REF!"}},{"$f":"IF($A254=\"\",\"\",Economática!#REF!)","v":{"$error":"#REF!"}},{"$f":"IF($A254=\"\",\"\",IF(OR(VLOOKUP($A254,Economática!$A$3:$AI$823,10,FALSE)=0,VLOOKUP($A254,Economática!$A$3:$AI$823,10,FALSE)=\"-\"),1/0,VLOOKUP($A254,Economática!$A$3:$AI$823,10,FALSE)))","v":{"$error":"#REF!"}},{"$f":"IF($A254=\"\",\"\",IF(OR(VLOOKUP($A254,Economática!$A$3:$AI$823,11,FALSE)=0,VLOOKUP($A254,Economática!$A$3:$AI$823,11,FALSE)=\"-\"),1/0,VLOOKUP($A254,Economática!$A$3:$AI$823,11,FALSE)))","v":{"$error":"#REF!"}},{"$f":"IF($A254=\"\",\"\",IF(OR(VLOOKUP($A254,Economática!$A$3:$AI$823,12,FALSE)=0,VLOOKUP($A254,Economática!$A$3:$AI$823,12,FALSE)=\"-\"),1/0,VLOOKUP($A254,Economática!$A$3:$AI$823,12,FALSE)))","v":{"$error":"#REF!"}},{"$f":"IF($A254=\"\",\"\",IF(OR(VLOOKUP($A254,Economática!$A$3:$AI$823,13,FALSE)=0,VLOOKUP($A254,Economática!$A$3:$AI$823,13,FALSE)=\"-\"),1/0,VLOOKUP($A254,Economática!$A$3:$AI$823,13,FALSE)))","v":{"$error":"#REF!"}},{"$f":"IF($A254=\"\",\"\",IF(OR(VLOOKUP($A254,Economática!$A$3:$AI$823,14,FALSE)=0,VLOOKUP($A254,Economática!$A$3:$AI$823,14,FALSE)=\"-\"),1/0,VLOOKUP($A254,Economática!$A$3:$AI$823,14,FALSE)))","v":{"$error":"#REF!"}},{"$f":"IF($A254=\"\",\"\",IF(OR(VLOOKUP($A254,Economática!$A$3:$AI$823,15,FALSE)=0,VLOOKUP($A254,Economática!$A$3:$AI$823,15,FALSE)=\"-\"),1/0,VLOOKUP($A254,Economática!$A$3:$AI$823,15,FALSE)))","v":{"$error":"#REF!"}},{"$f":"IF($A254=\"\",\"\",IF(OR(VLOOKUP($A254,Economática!$A$3:$AI$823,16,FALSE)=0,VLOOKUP($A254,Economática!$A$3:$AI$823,16,FALSE)=\"-\"),1/0,VLOOKUP($A254,Economática!$A$3:$AI$823,16,FALSE)))","v":{"$error":"#REF!"}},{"$f":"IF($A254=\"\",\"\",IF(OR(VLOOKUP($A254,Economática!$A$3:$AI$823,17,FALSE)=0,VLOOKUP($A254,Economática!$A$3:$AI$823,17,FALSE)=\"-\"),1/0,VLOOKUP($A254,Economática!$A$3:$AI$823,17,FALSE)))","v":{"$error":"#REF!"}},{"$f":"IF($A254=\"\",\"\",IF(OR(VLOOKUP($A254,Economática!$A$3:$AI$823,18,FALSE)=0,VLOOKUP($A254,Economática!$A$3:$AI$823,18,FALSE)=\"-\"),1/0,VLOOKUP($A254,Economática!$A$3:$AI$823,18,FALSE)))","v":{"$error":"#REF!"}},{"$f":"IF($A254=\"\",\"\",IF(OR(VLOOKUP($A254,Economática!$A$3:$AI$823,19,FALSE)=0,VLOOKUP($A254,Economática!$A$3:$AI$823,19,FALSE)=\"-\"),1/0,VLOOKUP($A254,Economática!$A$3:$AI$823,19,FALSE)))","v":{"$error":"#REF!"}},{"$f":"IF($A254=\"\",\"\",VLOOKUP($A254,Economática!$A$3:$AI$823,20,FALSE)/E254)","v":{"$error":"#REF!"}},{"$error":"#REF!"},{"$error":"#REF!"},{"$error":"#REF!"},{"$f":"IF($A254=\"\",\"\",IF(OR(VLOOKUP($A254,Economática!$A$3:$AI$823,21,FALSE)/100=0,VLOOKUP($A254,Economática!$A$3:$AI$823,21,FALSE)/100=\"-\"),1/0,VLOOKUP($A254,Economática!$A$3:$AI$823,21,FALSE)/100))","v":{"$error":"#REF!"}},{"$f":"IF($A254=\"\",\"\",IF(OR(VLOOKUP($A254,Economática!$A$3:$AI$823,22,FALSE)/100=0,VLOOKUP($A254,Economática!$A$3:$AI$823,22,FALSE)/100=\"-\"),1/0,VLOOKUP($A254,Economática!$A$3:$AI$823,22,FALSE)/100))","v":{"$error":"#REF!"}},{"$f":"IF($A254=\"\",\"\",IF(OR(VLOOKUP($A254,Economática!$A$3:$AI$823,23,FALSE)=0,VLOOKUP($A254,Economática!$A$3:$AI$823,23,FALSE)=\"-\"),1/0,VLOOKUP($A254,Economática!$A$3:$AI$823,23,FALSE)))","v":{"$error":"#REF!"}},{"$f":"IF($A254=\"\",\"\",IF(OR(VLOOKUP($A254,Economática!$A$3:$AI$823,24,FALSE)=0,VLOOKUP($A254,Economática!$A$3:$AI$823,24,FALSE)=\"-\"),1/0,VLOOKUP($A254,Economática!$A$3:$AI$823,24,FALSE)))","v":{"$error":"#REF!"}},{"$f":"IF($A254=\"\",\"\",IF(OR(VLOOKUP($A254,Economática!$A$3:$AI$823,25,FALSE)=0,VLOOKUP($A254,Economática!$A$3:$AI$823,25,FALSE)=\"-\"),1/0,VLOOKUP($A254,Economática!$A$3:$AI$823,25,FALSE)))","v":{"$error":"#REF!"}},{"$f":"IF($A254=\"\",\"\",IF(ISERROR((F254+VLOOKUP($A254,Economática!$A$3:$AI$823,26,FALSE))/Y254),(F254+VLOOKUP($A254,Economática!$A$3:$AI$823,26,FALSE))/Y254,(F254+VLOOKUP($A254,Economática!$A$3:$AI$823,26,FALSE))/Y254))","v":{"$error":"#REF!"}},{"$f":"IF($A254=\"\",\"\",IF(OR(-VLOOKUP($A254,Economática!$A$3:$AI$823,27,FALSE)=0,-VLOOKUP($A254,Economática!$A$3:$AI$823,27,FALSE)=\"-\"),1/0,-VLOOKUP($A254,Economática!$A$3:$AI$823,27,FALSE)))","v":{"$error":"#REF!"}},{"$error":"#REF!"},{"$f":"IF($A254=\"\",\"\",IF(OR(VLOOKUP($A254,Economática!$A$3:$AI$823,28,FALSE)=0,VLOOKUP($A254,Economática!$A$3:$AI$823,28,FALSE)=\"-\"),1/0,VLOOKUP($A254,Economática!$A$3:$AI$823,28,FALSE)))","v":{"$error":"#REF!"}},{"$f":"IF($A254=\"\",\"\",IF(OR(VLOOKUP($A254,Economática!$A$3:$AI$823,29,FALSE)=0,VLOOKUP($A254,Economática!$A$3:$AI$823,29,FALSE)=\"-\"),1/0,VLOOKUP($A254,Economática!$A$3:$AI$823,29,FALSE)))","v":{"$error":"#REF!"}},{"$f":"IF($A254=\"\",\"\",IF(OR(VLOOKUP($A254,Economática!$A$3:$AI$823,30,FALSE)/E254=0,VLOOKUP($A254,Economática!$A$3:$AI$823,30,FALSE)/E254=\"-\",VLOOKUP($A254,Economática!$A$3:$AI$823,30,FALSE)/E254<33.33%,VLOOKUP($A254,Economática!$A$3:$AI$823,30,FALSE)/E254>100%),1/0,VLOOKUP($A254,Economática!$A$3:$AI$823,30,FALSE)/E254))","v":{"$error":"#REF!"}},{"$error":"#REF!"},{"$f":"IF($A254=\"\",\"\",IF(OR(VLOOKUP($A254,Economática!$A$3:$AI$823,25,FALSE)=0,VLOOKUP($A254,Economática!$A$3:$AI$823,25,FALSE)=\"-\"),1/0,VLOOKUP($A254,Economática!$A$3:$AI$823,25,FALSE)))","v":{"$error":"#REF!"}},{"$f":"CONCATENATE(Economática!#REF!,\" \",Economática!#REF!)","v":{"$error":"#REF!"}}]
[{"$f":"IF(Economática!#REF!=\"\",\"\",Economática!#REF!)","v":{"$error":"#REF!"}},{"$f":"IF($A255=\"\",\"\",VLOOKUP(VLOOKUP($A255,Economática!$A$3:$AI$823,6,FALSE),Correção!$B$16:$C$36,2,FALSE))","v":{"$error":"#REF!"}},{"$f":"IF(Economática!#REF!=\"\",\"\",Economática!#REF!)","v":{"$error":"#REF!"}},{"$f":"IF($A255=\"\",\"\",IF(OR(VLOOKUP($A255,Economática!$A$3:$AI$823,8,FALSE)=0,VLOOKUP($A255,Economática!$A$3:$AI$823,8,FALSE)=\"-\"),1/0,VLOOKUP($A255,Economática!$A$3:$AI$823,8,FALSE)))","v":{"$error":"#REF!"}},{"$f":"IF(A255=\"\",\"\",IF(ISERROR(VLOOKUP(A255,Correção!$B$2:$G$13,9,FALSE)),VLOOKUP($A255,Economática!$A$3:$AI$823,9,FALSE),VLOOKUP(A255,Correção!$B$2:$G$13,9,FALSE)))","v":{"$error":"#REF!"}},{"$f":"IF($A255=\"\",\"\",Economática!#REF!)","v":{"$error":"#REF!"}},{"$f":"IF($A255=\"\",\"\",IF(OR(VLOOKUP($A255,Economática!$A$3:$AI$823,10,FALSE)=0,VLOOKUP($A255,Economática!$A$3:$AI$823,10,FALSE)=\"-\"),1/0,VLOOKUP($A255,Economática!$A$3:$AI$823,10,FALSE)))","v":{"$error":"#REF!"}},{"$f":"IF($A255=\"\",\"\",IF(OR(VLOOKUP($A255,Economática!$A$3:$AI$823,11,FALSE)=0,VLOOKUP($A255,Economática!$A$3:$AI$823,11,FALSE)=\"-\"),1/0,VLOOKUP($A255,Economática!$A$3:$AI$823,11,FALSE)))","v":{"$error":"#REF!"}},{"$f":"IF($A255=\"\",\"\",IF(OR(VLOOKUP($A255,Economática!$A$3:$AI$823,12,FALSE)=0,VLOOKUP($A255,Economática!$A$3:$AI$823,12,FALSE)=\"-\"),1/0,VLOOKUP($A255,Economática!$A$3:$AI$823,12,FALSE)))","v":{"$error":"#REF!"}},{"$f":"IF($A255=\"\",\"\",IF(OR(VLOOKUP($A255,Economática!$A$3:$AI$823,13,FALSE)=0,VLOOKUP($A255,Economática!$A$3:$AI$823,13,FALSE)=\"-\"),1/0,VLOOKUP($A255,Economática!$A$3:$AI$823,13,FALSE)))","v":{"$error":"#REF!"}},{"$f":"IF($A255=\"\",\"\",IF(OR(VLOOKUP($A255,Economática!$A$3:$AI$823,14,FALSE)=0,VLOOKUP($A255,Economática!$A$3:$AI$823,14,FALSE)=\"-\"),1/0,VLOOKUP($A255,Economática!$A$3:$AI$823,14,FALSE)))","v":{"$error":"#REF!"}},{"$f":"IF($A255=\"\",\"\",IF(OR(VLOOKUP($A255,Economática!$A$3:$AI$823,15,FALSE)=0,VLOOKUP($A255,Economática!$A$3:$AI$823,15,FALSE)=\"-\"),1/0,VLOOKUP($A255,Economática!$A$3:$AI$823,15,FALSE)))","v":{"$error":"#REF!"}},{"$f":"IF($A255=\"\",\"\",IF(OR(VLOOKUP($A255,Economática!$A$3:$AI$823,16,FALSE)=0,VLOOKUP($A255,Economática!$A$3:$AI$823,16,FALSE)=\"-\"),1/0,VLOOKUP($A255,Economática!$A$3:$AI$823,16,FALSE)))","v":{"$error":"#REF!"}},{"$f":"IF($A255=\"\",\"\",IF(OR(VLOOKUP($A255,Economática!$A$3:$AI$823,17,FALSE)=0,VLOOKUP($A255,Economática!$A$3:$AI$823,17,FALSE)=\"-\"),1/0,VLOOKUP($A255,Economática!$A$3:$AI$823,17,FALSE)))","v":{"$error":"#REF!"}},{"$f":"IF($A255=\"\",\"\",IF(OR(VLOOKUP($A255,Economática!$A$3:$AI$823,18,FALSE)=0,VLOOKUP($A255,Economática!$A$3:$AI$823,18,FALSE)=\"-\"),1/0,VLOOKUP($A255,Economática!$A$3:$AI$823,18,FALSE)))","v":{"$error":"#REF!"}},{"$f":"IF($A255=\"\",\"\",IF(OR(VLOOKUP($A255,Economática!$A$3:$AI$823,19,FALSE)=0,VLOOKUP($A255,Economática!$A$3:$AI$823,19,FALSE)=\"-\"),1/0,VLOOKUP($A255,Economática!$A$3:$AI$823,19,FALSE)))","v":{"$error":"#REF!"}},{"$f":"IF($A255=\"\",\"\",VLOOKUP($A255,Economática!$A$3:$AI$823,20,FALSE)/E255)","v":{"$error":"#REF!"}},{"$f":"IF($A255=\"\",\"\",IF((G255/E255)<=0,1/0,G255/E255))","v":{"$error":"#REF!"}},{"$f":"IF($A255=\"\",\"\",D255/R255)","v":{"$error":"#REF!"}},{"$f":"IF($A255=\"\",\"\",IF((D255/Q255)<=0,1/0,D255/Q255))","v":{"$error":"#REF!"}},{"$f":"IF($A255=\"\",\"\",IF(OR(VLOOKUP($A255,Economática!$A$3:$AI$823,21,FALSE)/100=0,VLOOKUP($A255,Economática!$A$3:$AI$823,21,FALSE)/100=\"-\"),1/0,VLOOKUP($A255,Economática!$A$3:$AI$823,21,FALSE)/100))","v":{"$error":"#REF!"}},{"$f":"IF($A255=\"\",\"\",IF(OR(VLOOKUP($A255,Economática!$A$3:$AI$823,22,FALSE)/100=0,VLOOKUP($A255,Economática!$A$3:$AI$823,22,FALSE)/100=\"-\"),1/0,VLOOKUP($A255,Economática!$A$3:$AI$823,22,FALSE)/100))","v":{"$error":"#REF!"}},{"$f":"IF($A255=\"\",\"\",IF(OR(VLOOKUP($A255,Economática!$A$3:$AI$823,23,FALSE)=0,VLOOKUP($A255,Economática!$A$3:$AI$823,23,FALSE)=\"-\"),1/0,VLOOKUP($A255,Economática!$A$3:$AI$823,23,FALSE)))","v":{"$error":"#REF!"}},{"$f":"IF($A255=\"\",\"\",IF(OR(VLOOKUP($A255,Economática!$A$3:$AI$823,24,FALSE)=0,VLOOKUP($A255,Economática!$A$3:$AI$823,24,FALSE)=\"-\"),1/0,VLOOKUP($A255,Economática!$A$3:$AI$823,24,FALSE)))","v":{"$error":"#REF!"}},{"$f":"IF($A255=\"\",\"\",IF(OR(VLOOKUP($A255,Economática!$A$3:$AI$823,25,FALSE)=0,VLOOKUP($A255,Economática!$A$3:$AI$823,25,FALSE)=\"-\"),1/0,VLOOKUP($A255,Economática!$A$3:$AI$823,25,FALSE)))","v":{"$error":"#REF!"}},{"$f":"IF($A255=\"\",\"\",IF(ISERROR((F255+VLOOKUP($A255,Economática!$A$3:$AI$823,26,FALSE))/Y255),(F255+VLOOKUP($A255,Economática!$A$3:$AI$823,26,FALSE))/Y255,(F255+VLOOKUP($A255,Economática!$A$3:$AI$823,26,FALSE))/Y255))","v":{"$error":"#REF!"}},{"$f":"IF($A255=\"\",\"\",IF(OR(-VLOOKUP($A255,Economática!$A$3:$AI$823,27,FALSE)=0,-VLOOKUP($A255,Economática!$A$3:$AI$823,27,FALSE)=\"-\"),1/0,-VLOOKUP($A255,Economática!$A$3:$AI$823,27,FALSE)))","v":{"$error":"#REF!"}},{"$f":"IF(A255=\"\",\"\",AA255/F255)","v":{"$error":"#REF!"}},{"$f":"IF($A255=\"\",\"\",IF(OR(VLOOKUP($A255,Economática!$A$3:$AI$823,28,FALSE)=0,VLOOKUP($A255,Economática!$A$3:$AI$823,28,FALSE)=\"-\"),1/0,VLOOKUP($A255,Economática!$A$3:$AI$823,28,FALSE)))","v":{"$error":"#REF!"}},{"$f":"IF($A255=\"\",\"\",IF(OR(VLOOKUP($A255,Economática!$A$3:$AI$823,29,FALSE)=0,VLOOKUP($A255,Economática!$A$3:$AI$823,29,FALSE)=\"-\"),1/0,VLOOKUP($A255,Economática!$A$3:$AI$823,29,FALSE)))","v":{"$error":"#REF!"}},{"$f":"IF($A255=\"\",\"\",IF(OR(VLOOKUP($A255,Economática!$A$3:$AI$823,30,FALSE)/E255=0,VLOOKUP($A255,Economática!$A$3:$AI$823,30,FALSE)/E255=\"-\",VLOOKUP($A255,Economática!$A$3:$AI$823,30,FALSE)/E255<33.33%,VLOOKUP($A255,Economática!$A$3:$AI$823,30,FALSE)/E255>100%),1/0,VLOOKUP($A255,Economática!$A$3:$AI$823,30,FALSE)/E255))","v":{"$error":"#REF!"}},{"$f":"IF(A255=\"\",\"\",A255)","v":{"$error":"#REF!"}},{"$f":"IF($A255=\"\",\"\",IF(OR(VLOOKUP($A255,Economática!$A$3:$AI$823,25,FALSE)=0,VLOOKUP($A255,Economática!$A$3:$AI$823,25,FALSE)=\"-\"),1/0,VLOOKUP($A255,Economática!$A$3:$AI$823,25,FALSE)))","v":{"$error":"#REF!"}},{"$f":"CONCATENATE(Economática!#REF!,\" \",Economática!#REF!)","v":{"$error":"#REF!"}}]
[{"$f":"IF(Economática!#REF!=\"\",\"\",Economática!#REF!)","v":{"$error":"#REF!"}},{"$f":"IF($A256=\"\",\"\",VLOOKUP(VLOOKUP($A256,Economática!$A$3:$AI$823,6,FALSE),Correção!$B$16:$C$36,2,FALSE))","v":{"$error":"#REF!"}},{"$f":"IF(Economática!#REF!=\"\",\"\",Economática!#REF!)","v":{"$error":"#REF!"}},{"$f":"IF($A256=\"\",\"\",IF(OR(VLOOKUP($A256,Economática!$A$3:$AI$823,8,FALSE)=0,VLOOKUP($A256,Economática!$A$3:$AI$823,8,FALSE)=\"-\"),1/0,VLOOKUP($A256,Economática!$A$3:$AI$823,8,FALSE)))","v":{"$error":"#REF!"}},{"$f":"IF(A256=\"\",\"\",IF(ISERROR(VLOOKUP(A256,Correção!$B$2:$G$13,9,FALSE)),VLOOKUP($A256,Economática!$A$3:$AI$823,9,FALSE),VLOOKUP(A256,Correção!$B$2:$G$13,9,FALSE)))","v":{"$error":"#REF!"}},{"$f":"IF($A256=\"\",\"\",Economática!#REF!)","v":{"$error":"#REF!"}},{"$f":"IF($A256=\"\",\"\",IF(OR(VLOOKUP($A256,Economática!$A$3:$AI$823,10,FALSE)=0,VLOOKUP($A256,Economática!$A$3:$AI$823,10,FALSE)=\"-\"),1/0,VLOOKUP($A256,Economática!$A$3:$AI$823,10,FALSE)))","v":{"$error":"#REF!"}},{"$f":"IF($A256=\"\",\"\",IF(OR(VLOOKUP($A256,Economática!$A$3:$AI$823,11,FALSE)=0,VLOOKUP($A256,Economática!$A$3:$AI$823,11,FALSE)=\"-\"),1/0,VLOOKUP($A256,Economática!$A$3:$AI$823,11,FALSE)))","v":{"$error":"#REF!"}},{"$f":"IF($A256=\"\",\"\",IF(OR(VLOOKUP($A256,Economática!$A$3:$AI$823,12,FALSE)=0,VLOOKUP($A256,Economática!$A$3:$AI$823,12,FALSE)=\"-\"),1/0,VLOOKUP($A256,Economática!$A$3:$AI$823,12,FALSE)))","v":{"$error":"#REF!"}},{"$f":"IF($A256=\"\",\"\",IF(OR(VLOOKUP($A256,Economática!$A$3:$AI$823,13,FALSE)=0,VLOOKUP($A256,Economática!$A$3:$AI$823,13,FALSE)=\"-\"),1/0,VLOOKUP($A256,Economática!$A$3:$AI$823,13,FALSE)))","v":{"$error":"#REF!"}},{"$f":"IF($A256=\"\",\"\",IF(OR(VLOOKUP($A256,Economática!$A$3:$AI$823,14,FALSE)=0,VLOOKUP($A256,Economática!$A$3:$AI$823,14,FALSE)=\"-\"),1/0,VLOOKUP($A256,Economática!$A$3:$AI$823,14,FALSE)))","v":{"$error":"#REF!"}},{"$f":"IF($A256=\"\",\"\",IF(OR(VLOOKUP($A256,Economática!$A$3:$AI$823,15,FALSE)=0,VLOOKUP($A256,Economática!$A$3:$AI$823,15,FALSE)=\"-\"),1/0,VLOOKUP($A256,Economática!$A$3:$AI$823,15,FALSE)))","v":{"$error":"#REF!"}},{"$f":"IF($A256=\"\",\"\",IF(OR(VLOOKUP($A256,Economática!$A$3:$AI$823,16,FALSE)=0,VLOOKUP($A256,Economática!$A$3:$AI$823,16,FALSE)=\"-\"),1/0,VLOOKUP($A256,Economática!$A$3:$AI$823,16,FALSE)))","v":{"$error":"#REF!"}},{"$f":"IF($A256=\"\",\"\",IF(OR(VLOOKUP($A256,Economática!$A$3:$AI$823,17,FALSE)=0,VLOOKUP($A256,Economática!$A$3:$AI$823,17,FALSE)=\"-\"),1/0,VLOOKUP($A256,Economática!$A$3:$AI$823,17,FALSE)))","v":{"$error":"#REF!"}},{"$f":"IF($A256=\"\",\"\",IF(OR(VLOOKUP($A256,Economática!$A$3:$AI$823,18,FALSE)=0,VLOOKUP($A256,Economática!$A$3:$AI$823,18,FALSE)=\"-\"),1/0,VLOOKUP($A256,Economática!$A$3:$AI$823,18,FALSE)))","v":{"$error":"#REF!"}},{"$f":"IF($A256=\"\",\"\",IF(OR(VLOOKUP($A256,Economática!$A$3:$AI$823,19,FALSE)=0,VLOOKUP($A256,Economática!$A$3:$AI$823,19,FALSE)=\"-\"),1/0,VLOOKUP($A256,Economática!$A$3:$AI$823,19,FALSE)))","v":{"$error":"#REF!"}},{"$f":"IF($A256=\"\",\"\",VLOOKUP($A256,Economática!$A$3:$AI$823,20,FALSE)/E256)","v":{"$error":"#REF!"}},{"$error":"#REF!"},{"$error":"#REF!"},{"$error":"#REF!"},{"$f":"IF($A256=\"\",\"\",IF(OR(VLOOKUP($A256,Economática!$A$3:$AI$823,21,FALSE)/100=0,VLOOKUP($A256,Economática!$A$3:$AI$823,21,FALSE)/100=\"-\"),1/0,VLOOKUP($A256,Economática!$A$3:$AI$823,21,FALSE)/100))","v":{"$error":"#REF!"}},{"$f":"IF($A256=\"\",\"\",IF(OR(VLOOKUP($A256,Economática!$A$3:$AI$823,22,FALSE)/100=0,VLOOKUP($A256,Economática!$A$3:$AI$823,22,FALSE)/100=\"-\"),1/0,VLOOKUP($A256,Economática!$A$3:$AI$823,22,FALSE)/100))","v":{"$error":"#REF!"}},{"$f":"IF($A256=\"\",\"\",IF(OR(VLOOKUP($A256,Economática!$A$3:$AI$823,23,FALSE)=0,VLOOKUP($A256,Economática!$A$3:$AI$823,23,FALSE)=\"-\"),1/0,VLOOKUP($A256,Economática!$A$3:$AI$823,23,FALSE)))","v":{"$error":"#REF!"}},{"$f":"IF($A256=\"\",\"\",IF(OR(VLOOKUP($A256,Economática!$A$3:$AI$823,24,FALSE)=0,VLOOKUP($A256,Economática!$A$3:$AI$823,24,FALSE)=\"-\"),1/0,VLOOKUP($A256,Economática!$A$3:$AI$823,24,FALSE)))","v":{"$error":"#REF!"}},{"$f":"IF($A256=\"\",\"\",IF(OR(VLOOKUP($A256,Economática!$A$3:$AI$823,25,FALSE)=0,VLOOKUP($A256,Economática!$A$3:$AI$823,25,FALSE)=\"-\"),1/0,VLOOKUP($A256,Economática!$A$3:$AI$823,25,FALSE)))","v":{"$error":"#REF!"}},{"$f":"IF($A256=\"\",\"\",IF(ISERROR((F256+VLOOKUP($A256,Economática!$A$3:$AI$823,26,FALSE))/Y256),(F256+VLOOKUP($A256,Economática!$A$3:$AI$823,26,FALSE))/Y256,(F256+VLOOKUP($A256,Economática!$A$3:$AI$823,26,FALSE))/Y256))","v":{"$error":"#REF!"}},{"$f":"IF($A256=\"\",\"\",IF(OR(-VLOOKUP($A256,Economática!$A$3:$AI$823,27,FALSE)=0,-VLOOKUP($A256,Economática!$A$3:$AI$823,27,FALSE)=\"-\"),1/0,-VLOOKUP($A256,Economática!$A$3:$AI$823,27,FALSE)))","v":{"$error":"#REF!"}},{"$error":"#REF!"},{"$f":"IF($A256=\"\",\"\",IF(OR(VLOOKUP($A256,Economática!$A$3:$AI$823,28,FALSE)=0,VLOOKUP($A256,Economática!$A$3:$AI$823,28,FALSE)=\"-\"),1/0,VLOOKUP($A256,Economática!$A$3:$AI$823,28,FALSE)))","v":{"$error":"#REF!"}},{"$f":"IF($A256=\"\",\"\",IF(OR(VLOOKUP($A256,Economática!$A$3:$AI$823,29,FALSE)=0,VLOOKUP($A256,Economática!$A$3:$AI$823,29,FALSE)=\"-\"),1/0,VLOOKUP($A256,Economática!$A$3:$AI$823,29,FALSE)))","v":{"$error":"#REF!"}},{"$f":"IF($A256=\"\",\"\",IF(OR(VLOOKUP($A256,Economática!$A$3:$AI$823,30,FALSE)/E256=0,VLOOKUP($A256,Economática!$A$3:$AI$823,30,FALSE)/E256=\"-\",VLOOKUP($A256,Economática!$A$3:$AI$823,30,FALSE)/E256<33.33%,VLOOKUP($A256,Economática!$A$3:$AI$823,30,FALSE)/E256>100%),1/0,VLOOKUP($A256,Economática!$A$3:$AI$823,30,FALSE)/E256))","v":{"$error":"#REF!"}},{"$error":"#REF!"},{"$f":"IF($A256=\"\",\"\",IF(OR(VLOOKUP($A256,Economática!$A$3:$AI$823,25,FALSE)=0,VLOOKUP($A256,Economática!$A$3:$AI$823,25,FALSE)=\"-\"),1/0,VLOOKUP($A256,Economática!$A$3:$AI$823,25,FALSE)))","v":{"$error":"#REF!"}},{"$f":"CONCATENATE(Economática!#REF!,\" \",Economática!#REF!)","v":{"$error":"#REF!"}}]
[{"$f":"IF(Economática!#REF!=\"\",\"\",Economática!#REF!)","v":{"$error":"#REF!"}},{"$f":"IF($A257=\"\",\"\",VLOOKUP(VLOOKUP($A257,Economática!$A$3:$AI$823,6,FALSE),Correção!$B$16:$C$36,2,FALSE))","v":{"$error":"#REF!"}},{"$f":"IF(Economática!#REF!=\"\",\"\",Economática!#REF!)","v":{"$error":"#REF!"}},{"$f":"IF($A257=\"\",\"\",IF(OR(VLOOKUP($A257,Economática!$A$3:$AI$823,8,FALSE)=0,VLOOKUP($A257,Economática!$A$3:$AI$823,8,FALSE)=\"-\"),1/0,VLOOKUP($A257,Economática!$A$3:$AI$823,8,FALSE)))","v":{"$error":"#REF!"}},{"$f":"IF(A257=\"\",\"\",IF(ISERROR(VLOOKUP(A257,Correção!$B$2:$G$13,9,FALSE)),VLOOKUP($A257,Economática!$A$3:$AI$823,9,FALSE),VLOOKUP(A257,Correção!$B$2:$G$13,9,FALSE)))","v":{"$error":"#REF!"}},{"$f":"IF($A257=\"\",\"\",Economática!#REF!)","v":{"$error":"#REF!"}},{"$f":"IF($A257=\"\",\"\",IF(OR(VLOOKUP($A257,Economática!$A$3:$AI$823,10,FALSE)=0,VLOOKUP($A257,Economática!$A$3:$AI$823,10,FALSE)=\"-\"),1/0,VLOOKUP($A257,Economática!$A$3:$AI$823,10,FALSE)))","v":{"$error":"#REF!"}},{"$f":"IF($A257=\"\",\"\",IF(OR(VLOOKUP($A257,Economática!$A$3:$AI$823,11,FALSE)=0,VLOOKUP($A257,Economática!$A$3:$AI$823,11,FALSE)=\"-\"),1/0,VLOOKUP($A257,Economática!$A$3:$AI$823,11,FALSE)))","v":{"$error":"#REF!"}},{"$f":"IF($A257=\"\",\"\",IF(OR(VLOOKUP($A257,Economática!$A$3:$AI$823,12,FALSE)=0,VLOOKUP($A257,Economática!$A$3:$AI$823,12,FALSE)=\"-\"),1/0,VLOOKUP($A257,Economática!$A$3:$AI$823,12,FALSE)))","v":{"$error":"#REF!"}},{"$f":"IF($A257=\"\",\"\",IF(OR(VLOOKUP($A257,Economática!$A$3:$AI$823,13,FALSE)=0,VLOOKUP($A257,Economática!$A$3:$AI$823,13,FALSE)=\"-\"),1/0,VLOOKUP($A257,Economática!$A$3:$AI$823,13,FALSE)))","v":{"$error":"#REF!"}},{"$f":"IF($A257=\"\",\"\",IF(OR(VLOOKUP($A257,Economática!$A$3:$AI$823,14,FALSE)=0,VLOOKUP($A257,Economática!$A$3:$AI$823,14,FALSE)=\"-\"),1/0,VLOOKUP($A257,Economática!$A$3:$AI$823,14,FALSE)))","v":{"$error":"#REF!"}},{"$f":"IF($A257=\"\",\"\",IF(OR(VLOOKUP($A257,Economática!$A$3:$AI$823,15,FALSE)=0,VLOOKUP($A257,Economática!$A$3:$AI$823,15,FALSE)=\"-\"),1/0,VLOOKUP($A257,Economática!$A$3:$AI$823,15,FALSE)))","v":{"$error":"#REF!"}},{"$f":"IF($A257=\"\",\"\",IF(OR(VLOOKUP($A257,Economática!$A$3:$AI$823,16,FALSE)=0,VLOOKUP($A257,Economática!$A$3:$AI$823,16,FALSE)=\"-\"),1/0,VLOOKUP($A257,Economática!$A$3:$AI$823,16,FALSE)))","v":{"$error":"#REF!"}},{"$f":"IF($A257=\"\",\"\",IF(OR(VLOOKUP($A257,Economática!$A$3:$AI$823,17,FALSE)=0,VLOOKUP($A257,Economática!$A$3:$AI$823,17,FALSE)=\"-\"),1/0,VLOOKUP($A257,Economática!$A$3:$AI$823,17,FALSE)))","v":{"$error":"#REF!"}},{"$f":"IF($A257=\"\",\"\",IF(OR(VLOOKUP($A257,Economática!$A$3:$AI$823,18,FALSE)=0,VLOOKUP($A257,Economática!$A$3:$AI$823,18,FALSE)=\"-\"),1/0,VLOOKUP($A257,Economática!$A$3:$AI$823,18,FALSE)))","v":{"$error":"#REF!"}},{"$f":"IF($A257=\"\",\"\",IF(OR(VLOOKUP($A257,Economática!$A$3:$AI$823,19,FALSE)=0,VLOOKUP($A257,Economática!$A$3:$AI$823,19,FALSE)=\"-\"),1/0,VLOOKUP($A257,Economática!$A$3:$AI$823,19,FALSE)))","v":{"$error":"#REF!"}},{"$f":"IF($A257=\"\",\"\",VLOOKUP($A257,Economática!$A$3:$AI$823,20,FALSE)/E257)","v":{"$error":"#REF!"}},{"$error":"#REF!"},{"$error":"#REF!"},{"$error":"#REF!"},{"$f":"IF($A257=\"\",\"\",IF(OR(VLOOKUP($A257,Economática!$A$3:$AI$823,21,FALSE)/100=0,VLOOKUP($A257,Economática!$A$3:$AI$823,21,FALSE)/100=\"-\"),1/0,VLOOKUP($A257,Economática!$A$3:$AI$823,21,FALSE)/100))","v":{"$error":"#REF!"}},{"$f":"IF($A257=\"\",\"\",IF(OR(VLOOKUP($A257,Economática!$A$3:$AI$823,22,FALSE)/100=0,VLOOKUP($A257,Economática!$A$3:$AI$823,22,FALSE)/100=\"-\"),1/0,VLOOKUP($A257,Economática!$A$3:$AI$823,22,FALSE)/100))","v":{"$error":"#REF!"}},{"$f":"IF($A257=\"\",\"\",IF(OR(VLOOKUP($A257,Economática!$A$3:$AI$823,23,FALSE)=0,VLOOKUP($A257,Economática!$A$3:$AI$823,23,FALSE)=\"-\"),1/0,VLOOKUP($A257,Economática!$A$3:$AI$823,23,FALSE)))","v":{"$error":"#REF!"}},{"$f":"IF($A257=\"\",\"\",IF(OR(VLOOKUP($A257,Economática!$A$3:$AI$823,24,FALSE)=0,VLOOKUP($A257,Economática!$A$3:$AI$823,24,FALSE)=\"-\"),1/0,VLOOKUP($A257,Economática!$A$3:$AI$823,24,FALSE)))","v":{"$error":"#REF!"}},{"$f":"IF($A257=\"\",\"\",IF(OR(VLOOKUP($A257,Economática!$A$3:$AI$823,25,FALSE)=0,VLOOKUP($A257,Economática!$A$3:$AI$823,25,FALSE)=\"-\"),1/0,VLOOKUP($A257,Economática!$A$3:$AI$823,25,FALSE)))","v":{"$error":"#REF!"}},{"$f":"IF($A257=\"\",\"\",IF(ISERROR((F257+VLOOKUP($A257,Economática!$A$3:$AI$823,26,FALSE))/Y257),(F257+VLOOKUP($A257,Economática!$A$3:$AI$823,26,FALSE))/Y257,(F257+VLOOKUP($A257,Economática!$A$3:$AI$823,26,FALSE))/Y257))","v":{"$error":"#REF!"}},{"$f":"IF($A257=\"\",\"\",IF(OR(-VLOOKUP($A257,Economática!$A$3:$AI$823,27,FALSE)=0,-VLOOKUP($A257,Economática!$A$3:$AI$823,27,FALSE)=\"-\"),1/0,-VLOOKUP($A257,Economática!$A$3:$AI$823,27,FALSE)))","v":{"$error":"#REF!"}},{"$error":"#REF!"},{"$f":"IF($A257=\"\",\"\",IF(OR(VLOOKUP($A257,Economática!$A$3:$AI$823,28,FALSE)=0,VLOOKUP($A257,Economática!$A$3:$AI$823,28,FALSE)=\"-\"),1/0,VLOOKUP($A257,Economática!$A$3:$AI$823,28,FALSE)))","v":{"$error":"#REF!"}},{"$f":"IF($A257=\"\",\"\",IF(OR(VLOOKUP($A257,Economática!$A$3:$AI$823,29,FALSE)=0,VLOOKUP($A257,Economática!$A$3:$AI$823,29,FALSE)=\"-\"),1/0,VLOOKUP($A257,Economática!$A$3:$AI$823,29,FALSE)))","v":{"$error":"#REF!"}},{"$f":"IF($A257=\"\",\"\",IF(OR(VLOOKUP($A257,Economática!$A$3:$AI$823,30,FALSE)/E257=0,VLOOKUP($A257,Economática!$A$3:$AI$823,30,FALSE)/E257=\"-\",VLOOKUP($A257,Economática!$A$3:$AI$823,30,FALSE)/E257<33.33%,VLOOKUP($A257,Economática!$A$3:$AI$823,30,FALSE)/E257>100%),1/0,VLOOKUP($A257,Economática!$A$3:$AI$823,30,FALSE)/E257))","v":{"$error":"#REF!"}},{"$error":"#REF!"},{"$f":"IF($A257=\"\",\"\",IF(OR(VLOOKUP($A257,Economática!$A$3:$AI$823,25,FALSE)=0,VLOOKUP($A257,Economática!$A$3:$AI$823,25,FALSE)=\"-\"),1/0,VLOOKUP($A257,Economática!$A$3:$AI$823,25,FALSE)))","v":{"$error":"#REF!"}},{"$f":"CONCATENATE(Economática!#REF!,\" \",Economática!#REF!)","v":{"$error":"#REF!"}}]
[{"$f":"IF(Economática!#REF!=\"\",\"\",Economática!#REF!)","v":{"$error":"#REF!"}},{"$f":"IF($A258=\"\",\"\",VLOOKUP(VLOOKUP($A258,Economática!$A$3:$AI$823,6,FALSE),Correção!$B$16:$C$36,2,FALSE))","v":{"$error":"#REF!"}},{"$f":"IF(Economática!#REF!=\"\",\"\",Economática!#REF!)","v":{"$error":"#REF!"}},{"$f":"IF($A258=\"\",\"\",IF(OR(VLOOKUP($A258,Economática!$A$3:$AI$823,8,FALSE)=0,VLOOKUP($A258,Economática!$A$3:$AI$823,8,FALSE)=\"-\"),1/0,VLOOKUP($A258,Economática!$A$3:$AI$823,8,FALSE)))","v":{"$error":"#REF!"}},{"$f":"IF(A258=\"\",\"\",IF(ISERROR(VLOOKUP(A258,Correção!$B$2:$G$13,9,FALSE)),VLOOKUP($A258,Economática!$A$3:$AI$823,9,FALSE),VLOOKUP(A258,Correção!$B$2:$G$13,9,FALSE)))","v":{"$error":"#REF!"}},{"$f":"IF($A258=\"\",\"\",Economática!#REF!)","v":{"$error":"#REF!"}},{"$f":"IF($A258=\"\",\"\",IF(OR(VLOOKUP($A258,Economática!$A$3:$AI$823,10,FALSE)=0,VLOOKUP($A258,Economática!$A$3:$AI$823,10,FALSE)=\"-\"),1/0,VLOOKUP($A258,Economática!$A$3:$AI$823,10,FALSE)))","v":{"$error":"#REF!"}},{"$f":"IF($A258=\"\",\"\",IF(OR(VLOOKUP($A258,Economática!$A$3:$AI$823,11,FALSE)=0,VLOOKUP($A258,Economática!$A$3:$AI$823,11,FALSE)=\"-\"),1/0,VLOOKUP($A258,Economática!$A$3:$AI$823,11,FALSE)))","v":{"$error":"#REF!"}},{"$f":"IF($A258=\"\",\"\",IF(OR(VLOOKUP($A258,Economática!$A$3:$AI$823,12,FALSE)=0,VLOOKUP($A258,Economática!$A$3:$AI$823,12,FALSE)=\"-\"),1/0,VLOOKUP($A258,Economática!$A$3:$AI$823,12,FALSE)))","v":{"$error":"#REF!"}},{"$f":"IF($A258=\"\",\"\",IF(OR(VLOOKUP($A258,Economática!$A$3:$AI$823,13,FALSE)=0,VLOOKUP($A258,Economática!$A$3:$AI$823,13,FALSE)=\"-\"),1/0,VLOOKUP($A258,Economática!$A$3:$AI$823,13,FALSE)))","v":{"$error":"#REF!"}},{"$f":"IF($A258=\"\",\"\",IF(OR(VLOOKUP($A258,Economática!$A$3:$AI$823,14,FALSE)=0,VLOOKUP($A258,Economática!$A$3:$AI$823,14,FALSE)=\"-\"),1/0,VLOOKUP($A258,Economática!$A$3:$AI$823,14,FALSE)))","v":{"$error":"#REF!"}},{"$f":"IF($A258=\"\",\"\",IF(OR(VLOOKUP($A258,Economática!$A$3:$AI$823,15,FALSE)=0,VLOOKUP($A258,Economática!$A$3:$AI$823,15,FALSE)=\"-\"),1/0,VLOOKUP($A258,Economática!$A$3:$AI$823,15,FALSE)))","v":{"$error":"#REF!"}},{"$f":"IF($A258=\"\",\"\",IF(OR(VLOOKUP($A258,Economática!$A$3:$AI$823,16,FALSE)=0,VLOOKUP($A258,Economática!$A$3:$AI$823,16,FALSE)=\"-\"),1/0,VLOOKUP($A258,Economática!$A$3:$AI$823,16,FALSE)))","v":{"$error":"#REF!"}},{"$f":"IF($A258=\"\",\"\",IF(OR(VLOOKUP($A258,Economática!$A$3:$AI$823,17,FALSE)=0,VLOOKUP($A258,Economática!$A$3:$AI$823,17,FALSE)=\"-\"),1/0,VLOOKUP($A258,Economática!$A$3:$AI$823,17,FALSE)))","v":{"$error":"#REF!"}},{"$f":"IF($A258=\"\",\"\",IF(OR(VLOOKUP($A258,Economática!$A$3:$AI$823,18,FALSE)=0,VLOOKUP($A258,Economática!$A$3:$AI$823,18,FALSE)=\"-\"),1/0,VLOOKUP($A258,Economática!$A$3:$AI$823,18,FALSE)))","v":{"$error":"#REF!"}},{"$f":"IF($A258=\"\",\"\",IF(OR(VLOOKUP($A258,Economática!$A$3:$AI$823,19,FALSE)=0,VLOOKUP($A258,Economática!$A$3:$AI$823,19,FALSE)=\"-\"),1/0,VLOOKUP($A258,Economática!$A$3:$AI$823,19,FALSE)))","v":{"$error":"#REF!"}},{"$f":"IF($A258=\"\",\"\",VLOOKUP($A258,Economática!$A$3:$AI$823,20,FALSE)/E258)","v":{"$error":"#REF!"}},{"$error":"#REF!"},{"$error":"#REF!"},{"$error":"#REF!"},{"$f":"IF($A258=\"\",\"\",IF(OR(VLOOKUP($A258,Economática!$A$3:$AI$823,21,FALSE)/100=0,VLOOKUP($A258,Economática!$A$3:$AI$823,21,FALSE)/100=\"-\"),1/0,VLOOKUP($A258,Economática!$A$3:$AI$823,21,FALSE)/100))","v":{"$error":"#REF!"}},{"$f":"IF($A258=\"\",\"\",IF(OR(VLOOKUP($A258,Economática!$A$3:$AI$823,22,FALSE)/100=0,VLOOKUP($A258,Economática!$A$3:$AI$823,22,FALSE)/100=\"-\"),1/0,VLOOKUP($A258,Economática!$A$3:$AI$823,22,FALSE)/100))","v":{"$error":"#REF!"}},{"$f":"IF($A258=\"\",\"\",IF(OR(VLOOKUP($A258,Economática!$A$3:$AI$823,23,FALSE)=0,VLOOKUP($A258,Economática!$A$3:$AI$823,23,FALSE)=\"-\"),1/0,VLOOKUP($A258,Economática!$A$3:$AI$823,23,FALSE)))","v":{"$error":"#REF!"}},{"$f":"IF($A258=\"\",\"\",IF(OR(VLOOKUP($A258,Economática!$A$3:$AI$823,24,FALSE)=0,VLOOKUP($A258,Economática!$A$3:$AI$823,24,FALSE)=\"-\"),1/0,VLOOKUP($A258,Economática!$A$3:$AI$823,24,FALSE)))","v":{"$error":"#REF!"}},{"$f":"IF($A258=\"\",\"\",IF(OR(VLOOKUP($A258,Economática!$A$3:$AI$823,25,FALSE)=0,VLOOKUP($A258,Economática!$A$3:$AI$823,25,FALSE)=\"-\"),1/0,VLOOKUP($A258,Economática!$A$3:$AI$823,25,FALSE)))","v":{"$error":"#REF!"}},{"$f":"IF($A258=\"\",\"\",IF(ISERROR((F258+VLOOKUP($A258,Economática!$A$3:$AI$823,26,FALSE))/Y258),(F258+VLOOKUP($A258,Economática!$A$3:$AI$823,26,FALSE))/Y258,(F258+VLOOKUP($A258,Economática!$A$3:$AI$823,26,FALSE))/Y258))","v":{"$error":"#REF!"}},{"$f":"IF($A258=\"\",\"\",IF(OR(-VLOOKUP($A258,Economática!$A$3:$AI$823,27,FALSE)=0,-VLOOKUP($A258,Economática!$A$3:$AI$823,27,FALSE)=\"-\"),1/0,-VLOOKUP($A258,Economática!$A$3:$AI$823,27,FALSE)))","v":{"$error":"#REF!"}},{"$error":"#REF!"},{"$f":"IF($A258=\"\",\"\",IF(OR(VLOOKUP($A258,Economática!$A$3:$AI$823,28,FALSE)=0,VLOOKUP($A258,Economática!$A$3:$AI$823,28,FALSE)=\"-\"),1/0,VLOOKUP($A258,Economática!$A$3:$AI$823,28,FALSE)))","v":{"$error":"#REF!"}},{"$f":"IF($A258=\"\",\"\",IF(OR(VLOOKUP($A258,Economática!$A$3:$AI$823,29,FALSE)=0,VLOOKUP($A258,Economática!$A$3:$AI$823,29,FALSE)=\"-\"),1/0,VLOOKUP($A258,Economática!$A$3:$AI$823,29,FALSE)))","v":{"$error":"#REF!"}},{"$f":"IF($A258=\"\",\"\",IF(OR(VLOOKUP($A258,Economática!$A$3:$AI$823,30,FALSE)/E258=0,VLOOKUP($A258,Economática!$A$3:$AI$823,30,FALSE)/E258=\"-\",VLOOKUP($A258,Economática!$A$3:$AI$823,30,FALSE)/E258<33.33%,VLOOKUP($A258,Economática!$A$3:$AI$823,30,FALSE)/E258>100%),1/0,VLOOKUP($A258,Economática!$A$3:$AI$823,30,FALSE)/E258))","v":{"$error":"#REF!"}},{"$error":"#REF!"},{"$f":"IF($A258=\"\",\"\",IF(OR(VLOOKUP($A258,Economática!$A$3:$AI$823,25,FALSE)=0,VLOOKUP($A258,Economática!$A$3:$AI$823,25,FALSE)=\"-\"),1/0,VLOOKUP($A258,Economática!$A$3:$AI$823,25,FALSE)))","v":{"$error":"#REF!"}},{"$f":"CONCATENATE(Economática!#REF!,\" \",Economática!#REF!)","v":{"$error":"#REF!"}}]
[{"$f":"IF(Economática!#REF!=\"\",\"\",Economática!#REF!)","v":{"$error":"#REF!"}},{"$f":"IF($A259=\"\",\"\",VLOOKUP(VLOOKUP($A259,Economática!$A$3:$AI$823,6,FALSE),Correção!$B$16:$C$36,2,FALSE))","v":{"$error":"#REF!"}},{"$f":"IF(Economática!#REF!=\"\",\"\",Economática!#REF!)","v":{"$error":"#REF!"}},{"$f":"IF($A259=\"\",\"\",IF(OR(VLOOKUP($A259,Economática!$A$3:$AI$823,8,FALSE)=0,VLOOKUP($A259,Economática!$A$3:$AI$823,8,FALSE)=\"-\"),1/0,VLOOKUP($A259,Economática!$A$3:$AI$823,8,FALSE)))","v":{"$error":"#REF!"}},{"$f":"IF(A259=\"\",\"\",IF(ISERROR(VLOOKUP(A259,Correção!$B$2:$G$13,9,FALSE)),VLOOKUP($A259,Economática!$A$3:$AI$823,9,FALSE),VLOOKUP(A259,Correção!$B$2:$G$13,9,FALSE)))","v":{"$error":"#REF!"}},{"$f":"IF($A259=\"\",\"\",Economática!#REF!)","v":{"$error":"#REF!"}},{"$f":"IF($A259=\"\",\"\",IF(OR(VLOOKUP($A259,Economática!$A$3:$AI$823,10,FALSE)=0,VLOOKUP($A259,Economática!$A$3:$AI$823,10,FALSE)=\"-\"),1/0,VLOOKUP($A259,Economática!$A$3:$AI$823,10,FALSE)))","v":{"$error":"#REF!"}},{"$f":"IF($A259=\"\",\"\",IF(OR(VLOOKUP($A259,Economática!$A$3:$AI$823,11,FALSE)=0,VLOOKUP($A259,Economática!$A$3:$AI$823,11,FALSE)=\"-\"),1/0,VLOOKUP($A259,Economática!$A$3:$AI$823,11,FALSE)))","v":{"$error":"#REF!"}},{"$f":"IF($A259=\"\",\"\",IF(OR(VLOOKUP($A259,Economática!$A$3:$AI$823,12,FALSE)=0,VLOOKUP($A259,Economática!$A$3:$AI$823,12,FALSE)=\"-\"),1/0,VLOOKUP($A259,Economática!$A$3:$AI$823,12,FALSE)))","v":{"$error":"#REF!"}},{"$f":"IF($A259=\"\",\"\",IF(OR(VLOOKUP($A259,Economática!$A$3:$AI$823,13,FALSE)=0,VLOOKUP($A259,Economática!$A$3:$AI$823,13,FALSE)=\"-\"),1/0,VLOOKUP($A259,Economática!$A$3:$AI$823,13,FALSE)))","v":{"$error":"#REF!"}},{"$f":"IF($A259=\"\",\"\",IF(OR(VLOOKUP($A259,Economática!$A$3:$AI$823,14,FALSE)=0,VLOOKUP($A259,Economática!$A$3:$AI$823,14,FALSE)=\"-\"),1/0,VLOOKUP($A259,Economática!$A$3:$AI$823,14,FALSE)))","v":{"$error":"#REF!"}},{"$f":"IF($A259=\"\",\"\",IF(OR(VLOOKUP($A259,Economática!$A$3:$AI$823,15,FALSE)=0,VLOOKUP($A259,Economática!$A$3:$AI$823,15,FALSE)=\"-\"),1/0,VLOOKUP($A259,Economática!$A$3:$AI$823,15,FALSE)))","v":{"$error":"#REF!"}},{"$f":"IF($A259=\"\",\"\",IF(OR(VLOOKUP($A259,Economática!$A$3:$AI$823,16,FALSE)=0,VLOOKUP($A259,Economática!$A$3:$AI$823,16,FALSE)=\"-\"),1/0,VLOOKUP($A259,Economática!$A$3:$AI$823,16,FALSE)))","v":{"$error":"#REF!"}},{"$f":"IF($A259=\"\",\"\",IF(OR(VLOOKUP($A259,Economática!$A$3:$AI$823,17,FALSE)=0,VLOOKUP($A259,Economática!$A$3:$AI$823,17,FALSE)=\"-\"),1/0,VLOOKUP($A259,Economática!$A$3:$AI$823,17,FALSE)))","v":{"$error":"#REF!"}},{"$f":"IF($A259=\"\",\"\",IF(OR(VLOOKUP($A259,Economática!$A$3:$AI$823,18,FALSE)=0,VLOOKUP($A259,Economática!$A$3:$AI$823,18,FALSE)=\"-\"),1/0,VLOOKUP($A259,Economática!$A$3:$AI$823,18,FALSE)))","v":{"$error":"#REF!"}},{"$f":"IF($A259=\"\",\"\",IF(OR(VLOOKUP($A259,Economática!$A$3:$AI$823,19,FALSE)=0,VLOOKUP($A259,Economática!$A$3:$AI$823,19,FALSE)=\"-\"),1/0,VLOOKUP($A259,Economática!$A$3:$AI$823,19,FALSE)))","v":{"$error":"#REF!"}},{"$f":"IF($A259=\"\",\"\",VLOOKUP($A259,Economática!$A$3:$AI$823,20,FALSE)/E259)","v":{"$error":"#REF!"}},{"$error":"#REF!"},{"$error":"#REF!"},{"$error":"#REF!"},{"$f":"IF($A259=\"\",\"\",IF(OR(VLOOKUP($A259,Economática!$A$3:$AI$823,21,FALSE)/100=0,VLOOKUP($A259,Economática!$A$3:$AI$823,21,FALSE)/100=\"-\"),1/0,VLOOKUP($A259,Economática!$A$3:$AI$823,21,FALSE)/100))","v":{"$error":"#REF!"}},{"$f":"IF($A259=\"\",\"\",IF(OR(VLOOKUP($A259,Economática!$A$3:$AI$823,22,FALSE)/100=0,VLOOKUP($A259,Economática!$A$3:$AI$823,22,FALSE)/100=\"-\"),1/0,VLOOKUP($A259,Economática!$A$3:$AI$823,22,FALSE)/100))","v":{"$error":"#REF!"}},{"$f":"IF($A259=\"\",\"\",IF(OR(VLOOKUP($A259,Economática!$A$3:$AI$823,23,FALSE)=0,VLOOKUP($A259,Economática!$A$3:$AI$823,23,FALSE)=\"-\"),1/0,VLOOKUP($A259,Economática!$A$3:$AI$823,23,FALSE)))","v":{"$error":"#REF!"}},{"$f":"IF($A259=\"\",\"\",IF(OR(VLOOKUP($A259,Economática!$A$3:$AI$823,24,FALSE)=0,VLOOKUP($A259,Economática!$A$3:$AI$823,24,FALSE)=\"-\"),1/0,VLOOKUP($A259,Economática!$A$3:$AI$823,24,FALSE)))","v":{"$error":"#REF!"}},{"$f":"IF($A259=\"\",\"\",IF(OR(VLOOKUP($A259,Economática!$A$3:$AI$823,25,FALSE)=0,VLOOKUP($A259,Economática!$A$3:$AI$823,25,FALSE)=\"-\"),1/0,VLOOKUP($A259,Economática!$A$3:$AI$823,25,FALSE)))","v":{"$error":"#REF!"}},{"$f":"IF($A259=\"\",\"\",IF(ISERROR((F259+VLOOKUP($A259,Economática!$A$3:$AI$823,26,FALSE))/Y259),(F259+VLOOKUP($A259,Economática!$A$3:$AI$823,26,FALSE))/Y259,(F259+VLOOKUP($A259,Economática!$A$3:$AI$823,26,FALSE))/Y259))","v":{"$error":"#REF!"}},{"$f":"IF($A259=\"\",\"\",IF(OR(-VLOOKUP($A259,Economática!$A$3:$AI$823,27,FALSE)=0,-VLOOKUP($A259,Economática!$A$3:$AI$823,27,FALSE)=\"-\"),1/0,-VLOOKUP($A259,Economática!$A$3:$AI$823,27,FALSE)))","v":{"$error":"#REF!"}},{"$error":"#REF!"},{"$f":"IF($A259=\"\",\"\",IF(OR(VLOOKUP($A259,Economática!$A$3:$AI$823,28,FALSE)=0,VLOOKUP($A259,Economática!$A$3:$AI$823,28,FALSE)=\"-\"),1/0,VLOOKUP($A259,Economática!$A$3:$AI$823,28,FALSE)))","v":{"$error":"#REF!"}},{"$f":"IF($A259=\"\",\"\",IF(OR(VLOOKUP($A259,Economática!$A$3:$AI$823,29,FALSE)=0,VLOOKUP($A259,Economática!$A$3:$AI$823,29,FALSE)=\"-\"),1/0,VLOOKUP($A259,Economática!$A$3:$AI$823,29,FALSE)))","v":{"$error":"#REF!"}},{"$f":"IF($A259=\"\",\"\",IF(OR(VLOOKUP($A259,Economática!$A$3:$AI$823,30,FALSE)/E259=0,VLOOKUP($A259,Economática!$A$3:$AI$823,30,FALSE)/E259=\"-\",VLOOKUP($A259,Economática!$A$3:$AI$823,30,FALSE)/E259<33.33%,VLOOKUP($A259,Economática!$A$3:$AI$823,30,FALSE)/E259>100%),1/0,VLOOKUP($A259,Economática!$A$3:$AI$823,30,FALSE)/E259))","v":{"$error":"#REF!"}},{"$error":"#REF!"},{"$f":"IF($A259=\"\",\"\",IF(OR(VLOOKUP($A259,Economática!$A$3:$AI$823,25,FALSE)=0,VLOOKUP($A259,Economática!$A$3:$AI$823,25,FALSE)=\"-\"),1/0,VLOOKUP($A259,Economática!$A$3:$AI$823,25,FALSE)))","v":{"$error":"#REF!"}},{"$f":"CONCATENATE(Economática!#REF!,\" \",Economática!#REF!)","v":{"$error":"#REF!"}}]
[{"$f":"IF(Economática!#REF!=\"\",\"\",Economática!#REF!)","v":{"$error":"#REF!"}},{"$f":"IF($A260=\"\",\"\",VLOOKUP(VLOOKUP($A260,Economática!$A$3:$AI$823,6,FALSE),Correção!$B$16:$C$36,2,FALSE))","v":{"$error":"#REF!"}},{"$f":"IF(Economática!#REF!=\"\",\"\",Economática!#REF!)","v":{"$error":"#REF!"}},{"$f":"IF($A260=\"\",\"\",IF(OR(VLOOKUP($A260,Economática!$A$3:$AI$823,8,FALSE)=0,VLOOKUP($A260,Economática!$A$3:$AI$823,8,FALSE)=\"-\"),1/0,VLOOKUP($A260,Economática!$A$3:$AI$823,8,FALSE)))","v":{"$error":"#REF!"}},{"$f":"IF(A260=\"\",\"\",IF(ISERROR(VLOOKUP(A260,Correção!$B$2:$G$13,9,FALSE)),VLOOKUP($A260,Economática!$A$3:$AI$823,9,FALSE),VLOOKUP(A260,Correção!$B$2:$G$13,9,FALSE)))","v":{"$error":"#REF!"}},{"$f":"IF($A260=\"\",\"\",Economática!#REF!)","v":{"$error":"#REF!"}},{"$f":"IF($A260=\"\",\"\",IF(OR(VLOOKUP($A260,Economática!$A$3:$AI$823,10,FALSE)=0,VLOOKUP($A260,Economática!$A$3:$AI$823,10,FALSE)=\"-\"),1/0,VLOOKUP($A260,Economática!$A$3:$AI$823,10,FALSE)))","v":{"$error":"#REF!"}},{"$f":"IF($A260=\"\",\"\",IF(OR(VLOOKUP($A260,Economática!$A$3:$AI$823,11,FALSE)=0,VLOOKUP($A260,Economática!$A$3:$AI$823,11,FALSE)=\"-\"),1/0,VLOOKUP($A260,Economática!$A$3:$AI$823,11,FALSE)))","v":{"$error":"#REF!"}},{"$f":"IF($A260=\"\",\"\",IF(OR(VLOOKUP($A260,Economática!$A$3:$AI$823,12,FALSE)=0,VLOOKUP($A260,Economática!$A$3:$AI$823,12,FALSE)=\"-\"),1/0,VLOOKUP($A260,Economática!$A$3:$AI$823,12,FALSE)))","v":{"$error":"#REF!"}},{"$f":"IF($A260=\"\",\"\",IF(OR(VLOOKUP($A260,Economática!$A$3:$AI$823,13,FALSE)=0,VLOOKUP($A260,Economática!$A$3:$AI$823,13,FALSE)=\"-\"),1/0,VLOOKUP($A260,Economática!$A$3:$AI$823,13,FALSE)))","v":{"$error":"#REF!"}},{"$f":"IF($A260=\"\",\"\",IF(OR(VLOOKUP($A260,Economática!$A$3:$AI$823,14,FALSE)=0,VLOOKUP($A260,Economática!$A$3:$AI$823,14,FALSE)=\"-\"),1/0,VLOOKUP($A260,Economática!$A$3:$AI$823,14,FALSE)))","v":{"$error":"#REF!"}},{"$f":"IF($A260=\"\",\"\",IF(OR(VLOOKUP($A260,Economática!$A$3:$AI$823,15,FALSE)=0,VLOOKUP($A260,Economática!$A$3:$AI$823,15,FALSE)=\"-\"),1/0,VLOOKUP($A260,Economática!$A$3:$AI$823,15,FALSE)))","v":{"$error":"#REF!"}},{"$f":"IF($A260=\"\",\"\",IF(OR(VLOOKUP($A260,Economática!$A$3:$AI$823,16,FALSE)=0,VLOOKUP($A260,Economática!$A$3:$AI$823,16,FALSE)=\"-\"),1/0,VLOOKUP($A260,Economática!$A$3:$AI$823,16,FALSE)))","v":{"$error":"#REF!"}},{"$f":"IF($A260=\"\",\"\",IF(OR(VLOOKUP($A260,Economática!$A$3:$AI$823,17,FALSE)=0,VLOOKUP($A260,Economática!$A$3:$AI$823,17,FALSE)=\"-\"),1/0,VLOOKUP($A260,Economática!$A$3:$AI$823,17,FALSE)))","v":{"$error":"#REF!"}},{"$f":"IF($A260=\"\",\"\",IF(OR(VLOOKUP($A260,Economática!$A$3:$AI$823,18,FALSE)=0,VLOOKUP($A260,Economática!$A$3:$AI$823,18,FALSE)=\"-\"),1/0,VLOOKUP($A260,Economática!$A$3:$AI$823,18,FALSE)))","v":{"$error":"#REF!"}},{"$f":"IF($A260=\"\",\"\",IF(OR(VLOOKUP($A260,Economática!$A$3:$AI$823,19,FALSE)=0,VLOOKUP($A260,Economática!$A$3:$AI$823,19,FALSE)=\"-\"),1/0,VLOOKUP($A260,Economática!$A$3:$AI$823,19,FALSE)))","v":{"$error":"#REF!"}},{"$f":"IF($A260=\"\",\"\",VLOOKUP($A260,Economática!$A$3:$AI$823,20,FALSE)/E260)","v":{"$error":"#REF!"}},{"$error":"#REF!"},{"$error":"#REF!"},{"$error":"#REF!"},{"$f":"IF($A260=\"\",\"\",IF(OR(VLOOKUP($A260,Economática!$A$3:$AI$823,21,FALSE)/100=0,VLOOKUP($A260,Economática!$A$3:$AI$823,21,FALSE)/100=\"-\"),1/0,VLOOKUP($A260,Economática!$A$3:$AI$823,21,FALSE)/100))","v":{"$error":"#REF!"}},{"$f":"IF($A260=\"\",\"\",IF(OR(VLOOKUP($A260,Economática!$A$3:$AI$823,22,FALSE)/100=0,VLOOKUP($A260,Economática!$A$3:$AI$823,22,FALSE)/100=\"-\"),1/0,VLOOKUP($A260,Economática!$A$3:$AI$823,22,FALSE)/100))","v":{"$error":"#REF!"}},{"$f":"IF($A260=\"\",\"\",IF(OR(VLOOKUP($A260,Economática!$A$3:$AI$823,23,FALSE)=0,VLOOKUP($A260,Economática!$A$3:$AI$823,23,FALSE)=\"-\"),1/0,VLOOKUP($A260,Economática!$A$3:$AI$823,23,FALSE)))","v":{"$error":"#REF!"}},{"$f":"IF($A260=\"\",\"\",IF(OR(VLOOKUP($A260,Economática!$A$3:$AI$823,24,FALSE)=0,VLOOKUP($A260,Economática!$A$3:$AI$823,24,FALSE)=\"-\"),1/0,VLOOKUP($A260,Economática!$A$3:$AI$823,24,FALSE)))","v":{"$error":"#REF!"}},{"$f":"IF($A260=\"\",\"\",IF(OR(VLOOKUP($A260,Economática!$A$3:$AI$823,25,FALSE)=0,VLOOKUP($A260,Economática!$A$3:$AI$823,25,FALSE)=\"-\"),1/0,VLOOKUP($A260,Economática!$A$3:$AI$823,25,FALSE)))","v":{"$error":"#REF!"}},{"$f":"IF($A260=\"\",\"\",IF(ISERROR((F260+VLOOKUP($A260,Economática!$A$3:$AI$823,26,FALSE))/Y260),(F260+VLOOKUP($A260,Economática!$A$3:$AI$823,26,FALSE))/Y260,(F260+VLOOKUP($A260,Economática!$A$3:$AI$823,26,FALSE))/Y260))","v":{"$error":"#REF!"}},{"$f":"IF($A260=\"\",\"\",IF(OR(-VLOOKUP($A260,Economática!$A$3:$AI$823,27,FALSE)=0,-VLOOKUP($A260,Economática!$A$3:$AI$823,27,FALSE)=\"-\"),1/0,-VLOOKUP($A260,Economática!$A$3:$AI$823,27,FALSE)))","v":{"$error":"#REF!"}},{"$error":"#REF!"},{"$f":"IF($A260=\"\",\"\",IF(OR(VLOOKUP($A260,Economática!$A$3:$AI$823,28,FALSE)=0,VLOOKUP($A260,Economática!$A$3:$AI$823,28,FALSE)=\"-\"),1/0,VLOOKUP($A260,Economática!$A$3:$AI$823,28,FALSE)))","v":{"$error":"#REF!"}},{"$f":"IF($A260=\"\",\"\",IF(OR(VLOOKUP($A260,Economática!$A$3:$AI$823,29,FALSE)=0,VLOOKUP($A260,Economática!$A$3:$AI$823,29,FALSE)=\"-\"),1/0,VLOOKUP($A260,Economática!$A$3:$AI$823,29,FALSE)))","v":{"$error":"#REF!"}},{"$f":"IF($A260=\"\",\"\",IF(OR(VLOOKUP($A260,Economática!$A$3:$AI$823,30,FALSE)/E260=0,VLOOKUP($A260,Economática!$A$3:$AI$823,30,FALSE)/E260=\"-\",VLOOKUP($A260,Economática!$A$3:$AI$823,30,FALSE)/E260<33.33%,VLOOKUP($A260,Economática!$A$3:$AI$823,30,FALSE)/E260>100%),1/0,VLOOKUP($A260,Economática!$A$3:$AI$823,30,FALSE)/E260))","v":{"$error":"#REF!"}},{"$error":"#REF!"},{"$f":"IF($A260=\"\",\"\",IF(OR(VLOOKUP($A260,Economática!$A$3:$AI$823,25,FALSE)=0,VLOOKUP($A260,Economática!$A$3:$AI$823,25,FALSE)=\"-\"),1/0,VLOOKUP($A260,Economática!$A$3:$AI$823,25,FALSE)))","v":{"$error":"#REF!"}},{"$f":"CONCATENATE(Economática!#REF!,\" \",Economática!#REF!)","v":{"$error":"#REF!"}}]
[{"$f":"IF(Economática!#REF!=\"\",\"\",Economática!#REF!)","v":{"$error":"#REF!"}},{"$f":"IF($A261=\"\",\"\",VLOOKUP(VLOOKUP($A261,Economática!$A$3:$AI$823,6,FALSE),Correção!$B$16:$C$36,2,FALSE))","v":{"$error":"#REF!"}},{"$f":"IF(Economática!#REF!=\"\",\"\",Economática!#REF!)","v":{"$error":"#REF!"}},{"$f":"IF($A261=\"\",\"\",IF(OR(VLOOKUP($A261,Economática!$A$3:$AI$823,8,FALSE)=0,VLOOKUP($A261,Economática!$A$3:$AI$823,8,FALSE)=\"-\"),1/0,VLOOKUP($A261,Economática!$A$3:$AI$823,8,FALSE)))","v":{"$error":"#REF!"}},{"$f":"IF(A261=\"\",\"\",IF(ISERROR(VLOOKUP(A261,Correção!$B$2:$G$13,9,FALSE)),VLOOKUP($A261,Economática!$A$3:$AI$823,9,FALSE),VLOOKUP(A261,Correção!$B$2:$G$13,9,FALSE)))","v":{"$error":"#REF!"}},{"$f":"IF($A261=\"\",\"\",Economática!#REF!)","v":{"$error":"#REF!"}},{"$f":"IF($A261=\"\",\"\",IF(OR(VLOOKUP($A261,Economática!$A$3:$AI$823,10,FALSE)=0,VLOOKUP($A261,Economática!$A$3:$AI$823,10,FALSE)=\"-\"),1/0,VLOOKUP($A261,Economática!$A$3:$AI$823,10,FALSE)))","v":{"$error":"#REF!"}},{"$f":"IF($A261=\"\",\"\",IF(OR(VLOOKUP($A261,Economática!$A$3:$AI$823,11,FALSE)=0,VLOOKUP($A261,Economática!$A$3:$AI$823,11,FALSE)=\"-\"),1/0,VLOOKUP($A261,Economática!$A$3:$AI$823,11,FALSE)))","v":{"$error":"#REF!"}},{"$f":"IF($A261=\"\",\"\",IF(OR(VLOOKUP($A261,Economática!$A$3:$AI$823,12,FALSE)=0,VLOOKUP($A261,Economática!$A$3:$AI$823,12,FALSE)=\"-\"),1/0,VLOOKUP($A261,Economática!$A$3:$AI$823,12,FALSE)))","v":{"$error":"#REF!"}},{"$f":"IF($A261=\"\",\"\",IF(OR(VLOOKUP($A261,Economática!$A$3:$AI$823,13,FALSE)=0,VLOOKUP($A261,Economática!$A$3:$AI$823,13,FALSE)=\"-\"),1/0,VLOOKUP($A261,Economática!$A$3:$AI$823,13,FALSE)))","v":{"$error":"#REF!"}},{"$f":"IF($A261=\"\",\"\",IF(OR(VLOOKUP($A261,Economática!$A$3:$AI$823,14,FALSE)=0,VLOOKUP($A261,Economática!$A$3:$AI$823,14,FALSE)=\"-\"),1/0,VLOOKUP($A261,Economática!$A$3:$AI$823,14,FALSE)))","v":{"$error":"#REF!"}},{"$f":"IF($A261=\"\",\"\",IF(OR(VLOOKUP($A261,Economática!$A$3:$AI$823,15,FALSE)=0,VLOOKUP($A261,Economática!$A$3:$AI$823,15,FALSE)=\"-\"),1/0,VLOOKUP($A261,Economática!$A$3:$AI$823,15,FALSE)))","v":{"$error":"#REF!"}},{"$f":"IF($A261=\"\",\"\",IF(OR(VLOOKUP($A261,Economática!$A$3:$AI$823,16,FALSE)=0,VLOOKUP($A261,Economática!$A$3:$AI$823,16,FALSE)=\"-\"),1/0,VLOOKUP($A261,Economática!$A$3:$AI$823,16,FALSE)))","v":{"$error":"#REF!"}},{"$f":"IF($A261=\"\",\"\",IF(OR(VLOOKUP($A261,Economática!$A$3:$AI$823,17,FALSE)=0,VLOOKUP($A261,Economática!$A$3:$AI$823,17,FALSE)=\"-\"),1/0,VLOOKUP($A261,Economática!$A$3:$AI$823,17,FALSE)))","v":{"$error":"#REF!"}},{"$f":"IF($A261=\"\",\"\",IF(OR(VLOOKUP($A261,Economática!$A$3:$AI$823,18,FALSE)=0,VLOOKUP($A261,Economática!$A$3:$AI$823,18,FALSE)=\"-\"),1/0,VLOOKUP($A261,Economática!$A$3:$AI$823,18,FALSE)))","v":{"$error":"#REF!"}},{"$f":"IF($A261=\"\",\"\",IF(OR(VLOOKUP($A261,Economática!$A$3:$AI$823,19,FALSE)=0,VLOOKUP($A261,Economática!$A$3:$AI$823,19,FALSE)=\"-\"),1/0,VLOOKUP($A261,Economática!$A$3:$AI$823,19,FALSE)))","v":{"$error":"#REF!"}},{"$f":"IF($A261=\"\",\"\",VLOOKUP($A261,Economática!$A$3:$AI$823,20,FALSE)/E261)","v":{"$error":"#REF!"}},{"$error":"#REF!"},{"$error":"#REF!"},{"$error":"#REF!"},{"$f":"IF($A261=\"\",\"\",IF(OR(VLOOKUP($A261,Economática!$A$3:$AI$823,21,FALSE)/100=0,VLOOKUP($A261,Economática!$A$3:$AI$823,21,FALSE)/100=\"-\"),1/0,VLOOKUP($A261,Economática!$A$3:$AI$823,21,FALSE)/100))","v":{"$error":"#REF!"}},{"$f":"IF($A261=\"\",\"\",IF(OR(VLOOKUP($A261,Economática!$A$3:$AI$823,22,FALSE)/100=0,VLOOKUP($A261,Economática!$A$3:$AI$823,22,FALSE)/100=\"-\"),1/0,VLOOKUP($A261,Economática!$A$3:$AI$823,22,FALSE)/100))","v":{"$error":"#REF!"}},{"$f":"IF($A261=\"\",\"\",IF(OR(VLOOKUP($A261,Economática!$A$3:$AI$823,23,FALSE)=0,VLOOKUP($A261,Economática!$A$3:$AI$823,23,FALSE)=\"-\"),1/0,VLOOKUP($A261,Economática!$A$3:$AI$823,23,FALSE)))","v":{"$error":"#REF!"}},{"$f":"IF($A261=\"\",\"\",IF(OR(VLOOKUP($A261,Economática!$A$3:$AI$823,24,FALSE)=0,VLOOKUP($A261,Economática!$A$3:$AI$823,24,FALSE)=\"-\"),1/0,VLOOKUP($A261,Economática!$A$3:$AI$823,24,FALSE)))","v":{"$error":"#REF!"}},{"$f":"IF($A261=\"\",\"\",IF(OR(VLOOKUP($A261,Economática!$A$3:$AI$823,25,FALSE)=0,VLOOKUP($A261,Economática!$A$3:$AI$823,25,FALSE)=\"-\"),1/0,VLOOKUP($A261,Economática!$A$3:$AI$823,25,FALSE)))","v":{"$error":"#REF!"}},{"$f":"IF($A261=\"\",\"\",IF(ISERROR((F261+VLOOKUP($A261,Economática!$A$3:$AI$823,26,FALSE))/Y261),(F261+VLOOKUP($A261,Economática!$A$3:$AI$823,26,FALSE))/Y261,(F261+VLOOKUP($A261,Economática!$A$3:$AI$823,26,FALSE))/Y261))","v":{"$error":"#REF!"}},{"$f":"IF($A261=\"\",\"\",IF(OR(-VLOOKUP($A261,Economática!$A$3:$AI$823,27,FALSE)=0,-VLOOKUP($A261,Economática!$A$3:$AI$823,27,FALSE)=\"-\"),1/0,-VLOOKUP($A261,Economática!$A$3:$AI$823,27,FALSE)))","v":{"$error":"#REF!"}},{"$error":"#REF!"},{"$f":"IF($A261=\"\",\"\",IF(OR(VLOOKUP($A261,Economática!$A$3:$AI$823,28,FALSE)=0,VLOOKUP($A261,Economática!$A$3:$AI$823,28,FALSE)=\"-\"),1/0,VLOOKUP($A261,Economática!$A$3:$AI$823,28,FALSE)))","v":{"$error":"#REF!"}},{"$f":"IF($A261=\"\",\"\",IF(OR(VLOOKUP($A261,Economática!$A$3:$AI$823,29,FALSE)=0,VLOOKUP($A261,Economática!$A$3:$AI$823,29,FALSE)=\"-\"),1/0,VLOOKUP($A261,Economática!$A$3:$AI$823,29,FALSE)))","v":{"$error":"#REF!"}},{"$f":"IF($A261=\"\",\"\",IF(OR(VLOOKUP($A261,Economática!$A$3:$AI$823,30,FALSE)/E261=0,VLOOKUP($A261,Economática!$A$3:$AI$823,30,FALSE)/E261=\"-\",VLOOKUP($A261,Economática!$A$3:$AI$823,30,FALSE)/E261<33.33%,VLOOKUP($A261,Economática!$A$3:$AI$823,30,FALSE)/E261>100%),1/0,VLOOKUP($A261,Economática!$A$3:$AI$823,30,FALSE)/E261))","v":{"$error":"#REF!"}},{"$error":"#REF!"},{"$f":"IF($A261=\"\",\"\",IF(OR(VLOOKUP($A261,Economática!$A$3:$AI$823,25,FALSE)=0,VLOOKUP($A261,Economática!$A$3:$AI$823,25,FALSE)=\"-\"),1/0,VLOOKUP($A261,Economática!$A$3:$AI$823,25,FALSE)))","v":{"$error":"#REF!"}},{"$f":"CONCATENATE(Economática!#REF!,\" \",Economática!#REF!)","v":{"$error":"#REF!"}}]
[{"$f":"IF(Economática!#REF!=\"\",\"\",Economática!#REF!)","v":{"$error":"#REF!"}},{"$f":"IF($A262=\"\",\"\",VLOOKUP(VLOOKUP($A262,Economática!$A$3:$AI$823,6,FALSE),Correção!$B$16:$C$36,2,FALSE))","v":{"$error":"#REF!"}},{"$f":"IF(Economática!#REF!=\"\",\"\",Economática!#REF!)","v":{"$error":"#REF!"}},{"$f":"IF($A262=\"\",\"\",IF(OR(VLOOKUP($A262,Economática!$A$3:$AI$823,8,FALSE)=0,VLOOKUP($A262,Economática!$A$3:$AI$823,8,FALSE)=\"-\"),1/0,VLOOKUP($A262,Economática!$A$3:$AI$823,8,FALSE)))","v":{"$error":"#REF!"}},{"$f":"IF(A262=\"\",\"\",IF(ISERROR(VLOOKUP(A262,Correção!$B$2:$G$13,9,FALSE)),VLOOKUP($A262,Economática!$A$3:$AI$823,9,FALSE),VLOOKUP(A262,Correção!$B$2:$G$13,9,FALSE)))","v":{"$error":"#REF!"}},{"$f":"IF($A262=\"\",\"\",Economática!#REF!)","v":{"$error":"#REF!"}},{"$f":"IF($A262=\"\",\"\",IF(OR(VLOOKUP($A262,Economática!$A$3:$AI$823,10,FALSE)=0,VLOOKUP($A262,Economática!$A$3:$AI$823,10,FALSE)=\"-\"),1/0,VLOOKUP($A262,Economática!$A$3:$AI$823,10,FALSE)))","v":{"$error":"#REF!"}},{"$f":"IF($A262=\"\",\"\",IF(OR(VLOOKUP($A262,Economática!$A$3:$AI$823,11,FALSE)=0,VLOOKUP($A262,Economática!$A$3:$AI$823,11,FALSE)=\"-\"),1/0,VLOOKUP($A262,Economática!$A$3:$AI$823,11,FALSE)))","v":{"$error":"#REF!"}},{"$f":"IF($A262=\"\",\"\",IF(OR(VLOOKUP($A262,Economática!$A$3:$AI$823,12,FALSE)=0,VLOOKUP($A262,Economática!$A$3:$AI$823,12,FALSE)=\"-\"),1/0,VLOOKUP($A262,Economática!$A$3:$AI$823,12,FALSE)))","v":{"$error":"#REF!"}},{"$f":"IF($A262=\"\",\"\",IF(OR(VLOOKUP($A262,Economática!$A$3:$AI$823,13,FALSE)=0,VLOOKUP($A262,Economática!$A$3:$AI$823,13,FALSE)=\"-\"),1/0,VLOOKUP($A262,Economática!$A$3:$AI$823,13,FALSE)))","v":{"$error":"#REF!"}},{"$f":"IF($A262=\"\",\"\",IF(OR(VLOOKUP($A262,Economática!$A$3:$AI$823,14,FALSE)=0,VLOOKUP($A262,Economática!$A$3:$AI$823,14,FALSE)=\"-\"),1/0,VLOOKUP($A262,Economática!$A$3:$AI$823,14,FALSE)))","v":{"$error":"#REF!"}},{"$f":"IF($A262=\"\",\"\",IF(OR(VLOOKUP($A262,Economática!$A$3:$AI$823,15,FALSE)=0,VLOOKUP($A262,Economática!$A$3:$AI$823,15,FALSE)=\"-\"),1/0,VLOOKUP($A262,Economática!$A$3:$AI$823,15,FALSE)))","v":{"$error":"#REF!"}},{"$f":"IF($A262=\"\",\"\",IF(OR(VLOOKUP($A262,Economática!$A$3:$AI$823,16,FALSE)=0,VLOOKUP($A262,Economática!$A$3:$AI$823,16,FALSE)=\"-\"),1/0,VLOOKUP($A262,Economática!$A$3:$AI$823,16,FALSE)))","v":{"$error":"#REF!"}},{"$f":"IF($A262=\"\",\"\",IF(OR(VLOOKUP($A262,Economática!$A$3:$AI$823,17,FALSE)=0,VLOOKUP($A262,Economática!$A$3:$AI$823,17,FALSE)=\"-\"),1/0,VLOOKUP($A262,Economática!$A$3:$AI$823,17,FALSE)))","v":{"$error":"#REF!"}},{"$f":"IF($A262=\"\",\"\",IF(OR(VLOOKUP($A262,Economática!$A$3:$AI$823,18,FALSE)=0,VLOOKUP($A262,Economática!$A$3:$AI$823,18,FALSE)=\"-\"),1/0,VLOOKUP($A262,Economática!$A$3:$AI$823,18,FALSE)))","v":{"$error":"#REF!"}},{"$f":"IF($A262=\"\",\"\",IF(OR(VLOOKUP($A262,Economática!$A$3:$AI$823,19,FALSE)=0,VLOOKUP($A262,Economática!$A$3:$AI$823,19,FALSE)=\"-\"),1/0,VLOOKUP($A262,Economática!$A$3:$AI$823,19,FALSE)))","v":{"$error":"#REF!"}},{"$f":"IF($A262=\"\",\"\",VLOOKUP($A262,Economática!$A$3:$AI$823,20,FALSE)/E262)","v":{"$error":"#REF!"}},{"$error":"#REF!"},{"$error":"#REF!"},{"$error":"#REF!"},{"$f":"IF($A262=\"\",\"\",IF(OR(VLOOKUP($A262,Economática!$A$3:$AI$823,21,FALSE)/100=0,VLOOKUP($A262,Economática!$A$3:$AI$823,21,FALSE)/100=\"-\"),1/0,VLOOKUP($A262,Economática!$A$3:$AI$823,21,FALSE)/100))","v":{"$error":"#REF!"}},{"$f":"IF($A262=\"\",\"\",IF(OR(VLOOKUP($A262,Economática!$A$3:$AI$823,22,FALSE)/100=0,VLOOKUP($A262,Economática!$A$3:$AI$823,22,FALSE)/100=\"-\"),1/0,VLOOKUP($A262,Economática!$A$3:$AI$823,22,FALSE)/100))","v":{"$error":"#REF!"}},{"$f":"IF($A262=\"\",\"\",IF(OR(VLOOKUP($A262,Economática!$A$3:$AI$823,23,FALSE)=0,VLOOKUP($A262,Economática!$A$3:$AI$823,23,FALSE)=\"-\"),1/0,VLOOKUP($A262,Economática!$A$3:$AI$823,23,FALSE)))","v":{"$error":"#REF!"}},{"$f":"IF($A262=\"\",\"\",IF(OR(VLOOKUP($A262,Economática!$A$3:$AI$823,24,FALSE)=0,VLOOKUP($A262,Economática!$A$3:$AI$823,24,FALSE)=\"-\"),1/0,VLOOKUP($A262,Economática!$A$3:$AI$823,24,FALSE)))","v":{"$error":"#REF!"}},{"$f":"IF($A262=\"\",\"\",IF(OR(VLOOKUP($A262,Economática!$A$3:$AI$823,25,FALSE)=0,VLOOKUP($A262,Economática!$A$3:$AI$823,25,FALSE)=\"-\"),1/0,VLOOKUP($A262,Economática!$A$3:$AI$823,25,FALSE)))","v":{"$error":"#REF!"}},{"$f":"IF($A262=\"\",\"\",IF(ISERROR((F262+VLOOKUP($A262,Economática!$A$3:$AI$823,26,FALSE))/Y262),(F262+VLOOKUP($A262,Economática!$A$3:$AI$823,26,FALSE))/Y262,(F262+VLOOKUP($A262,Economática!$A$3:$AI$823,26,FALSE))/Y262))","v":{"$error":"#REF!"}},{"$f":"IF($A262=\"\",\"\",IF(OR(-VLOOKUP($A262,Economática!$A$3:$AI$823,27,FALSE)=0,-VLOOKUP($A262,Economática!$A$3:$AI$823,27,FALSE)=\"-\"),1/0,-VLOOKUP($A262,Economática!$A$3:$AI$823,27,FALSE)))","v":{"$error":"#REF!"}},{"$error":"#REF!"},{"$f":"IF($A262=\"\",\"\",IF(OR(VLOOKUP($A262,Economática!$A$3:$AI$823,28,FALSE)=0,VLOOKUP($A262,Economática!$A$3:$AI$823,28,FALSE)=\"-\"),1/0,VLOOKUP($A262,Economática!$A$3:$AI$823,28,FALSE)))","v":{"$error":"#REF!"}},{"$f":"IF($A262=\"\",\"\",IF(OR(VLOOKUP($A262,Economática!$A$3:$AI$823,29,FALSE)=0,VLOOKUP($A262,Economática!$A$3:$AI$823,29,FALSE)=\"-\"),1/0,VLOOKUP($A262,Economática!$A$3:$AI$823,29,FALSE)))","v":{"$error":"#REF!"}},{"$f":"IF($A262=\"\",\"\",IF(OR(VLOOKUP($A262,Economática!$A$3:$AI$823,30,FALSE)/E262=0,VLOOKUP($A262,Economática!$A$3:$AI$823,30,FALSE)/E262=\"-\",VLOOKUP($A262,Economática!$A$3:$AI$823,30,FALSE)/E262<33.33%,VLOOKUP($A262,Economática!$A$3:$AI$823,30,FALSE)/E262>100%),1/0,VLOOKUP($A262,Economática!$A$3:$AI$823,30,FALSE)/E262))","v":{"$error":"#REF!"}},{"$error":"#REF!"},{"$f":"IF($A262=\"\",\"\",IF(OR(VLOOKUP($A262,Economática!$A$3:$AI$823,25,FALSE)=0,VLOOKUP($A262,Economática!$A$3:$AI$823,25,FALSE)=\"-\"),1/0,VLOOKUP($A262,Economática!$A$3:$AI$823,25,FALSE)))","v":{"$error":"#REF!"}},{"$f":"CONCATENATE(Economática!#REF!,\" \",Economática!#REF!)","v":{"$error":"#REF!"}}]
[{"$f":"IF(Economática!#REF!=\"\",\"\",Economática!#REF!)","v":{"$error":"#REF!"}},{"$f":"IF($A263=\"\",\"\",VLOOKUP(VLOOKUP($A263,Economática!$A$3:$AI$823,6,FALSE),Correção!$B$16:$C$36,2,FALSE))","v":{"$error":"#REF!"}},{"$f":"IF(Economática!#REF!=\"\",\"\",Economática!#REF!)","v":{"$error":"#REF!"}},{"$f":"IF($A263=\"\",\"\",IF(OR(VLOOKUP($A263,Economática!$A$3:$AI$823,8,FALSE)=0,VLOOKUP($A263,Economática!$A$3:$AI$823,8,FALSE)=\"-\"),1/0,VLOOKUP($A263,Economática!$A$3:$AI$823,8,FALSE)))","v":{"$error":"#REF!"}},{"$f":"IF(A263=\"\",\"\",IF(ISERROR(VLOOKUP(A263,Correção!$B$2:$G$13,9,FALSE)),VLOOKUP($A263,Economática!$A$3:$AI$823,9,FALSE),VLOOKUP(A263,Correção!$B$2:$G$13,9,FALSE)))","v":{"$error":"#REF!"}},{"$f":"IF($A263=\"\",\"\",Economática!#REF!)","v":{"$error":"#REF!"}},{"$f":"IF($A263=\"\",\"\",IF(OR(VLOOKUP($A263,Economática!$A$3:$AI$823,10,FALSE)=0,VLOOKUP($A263,Economática!$A$3:$AI$823,10,FALSE)=\"-\"),1/0,VLOOKUP($A263,Economática!$A$3:$AI$823,10,FALSE)))","v":{"$error":"#REF!"}},{"$f":"IF($A263=\"\",\"\",IF(OR(VLOOKUP($A263,Economática!$A$3:$AI$823,11,FALSE)=0,VLOOKUP($A263,Economática!$A$3:$AI$823,11,FALSE)=\"-\"),1/0,VLOOKUP($A263,Economática!$A$3:$AI$823,11,FALSE)))","v":{"$error":"#REF!"}},{"$f":"IF($A263=\"\",\"\",IF(OR(VLOOKUP($A263,Economática!$A$3:$AI$823,12,FALSE)=0,VLOOKUP($A263,Economática!$A$3:$AI$823,12,FALSE)=\"-\"),1/0,VLOOKUP($A263,Economática!$A$3:$AI$823,12,FALSE)))","v":{"$error":"#REF!"}},{"$f":"IF($A263=\"\",\"\",IF(OR(VLOOKUP($A263,Economática!$A$3:$AI$823,13,FALSE)=0,VLOOKUP($A263,Economática!$A$3:$AI$823,13,FALSE)=\"-\"),1/0,VLOOKUP($A263,Economática!$A$3:$AI$823,13,FALSE)))","v":{"$error":"#REF!"}},{"$f":"IF($A263=\"\",\"\",IF(OR(VLOOKUP($A263,Economática!$A$3:$AI$823,14,FALSE)=0,VLOOKUP($A263,Economática!$A$3:$AI$823,14,FALSE)=\"-\"),1/0,VLOOKUP($A263,Economática!$A$3:$AI$823,14,FALSE)))","v":{"$error":"#REF!"}},{"$f":"IF($A263=\"\",\"\",IF(OR(VLOOKUP($A263,Economática!$A$3:$AI$823,15,FALSE)=0,VLOOKUP($A263,Economática!$A$3:$AI$823,15,FALSE)=\"-\"),1/0,VLOOKUP($A263,Economática!$A$3:$AI$823,15,FALSE)))","v":{"$error":"#REF!"}},{"$f":"IF($A263=\"\",\"\",IF(OR(VLOOKUP($A263,Economática!$A$3:$AI$823,16,FALSE)=0,VLOOKUP($A263,Economática!$A$3:$AI$823,16,FALSE)=\"-\"),1/0,VLOOKUP($A263,Economática!$A$3:$AI$823,16,FALSE)))","v":{"$error":"#REF!"}},{"$f":"IF($A263=\"\",\"\",IF(OR(VLOOKUP($A263,Economática!$A$3:$AI$823,17,FALSE)=0,VLOOKUP($A263,Economática!$A$3:$AI$823,17,FALSE)=\"-\"),1/0,VLOOKUP($A263,Economática!$A$3:$AI$823,17,FALSE)))","v":{"$error":"#REF!"}},{"$f":"IF($A263=\"\",\"\",IF(OR(VLOOKUP($A263,Economática!$A$3:$AI$823,18,FALSE)=0,VLOOKUP($A263,Economática!$A$3:$AI$823,18,FALSE)=\"-\"),1/0,VLOOKUP($A263,Economática!$A$3:$AI$823,18,FALSE)))","v":{"$error":"#REF!"}},{"$f":"IF($A263=\"\",\"\",IF(OR(VLOOKUP($A263,Economática!$A$3:$AI$823,19,FALSE)=0,VLOOKUP($A263,Economática!$A$3:$AI$823,19,FALSE)=\"-\"),1/0,VLOOKUP($A263,Economática!$A$3:$AI$823,19,FALSE)))","v":{"$error":"#REF!"}},{"$f":"IF($A263=\"\",\"\",VLOOKUP($A263,Economática!$A$3:$AI$823,20,FALSE)/E263)","v":{"$error":"#REF!"}},{"$error":"#REF!"},{"$error":"#REF!"},{"$error":"#REF!"},{"$f":"IF($A263=\"\",\"\",IF(OR(VLOOKUP($A263,Economática!$A$3:$AI$823,21,FALSE)/100=0,VLOOKUP($A263,Economática!$A$3:$AI$823,21,FALSE)/100=\"-\"),1/0,VLOOKUP($A263,Economática!$A$3:$AI$823,21,FALSE)/100))","v":{"$error":"#REF!"}},{"$f":"IF($A263=\"\",\"\",IF(OR(VLOOKUP($A263,Economática!$A$3:$AI$823,22,FALSE)/100=0,VLOOKUP($A263,Economática!$A$3:$AI$823,22,FALSE)/100=\"-\"),1/0,VLOOKUP($A263,Economática!$A$3:$AI$823,22,FALSE)/100))","v":{"$error":"#REF!"}},{"$f":"IF($A263=\"\",\"\",IF(OR(VLOOKUP($A263,Economática!$A$3:$AI$823,23,FALSE)=0,VLOOKUP($A263,Economática!$A$3:$AI$823,23,FALSE)=\"-\"),1/0,VLOOKUP($A263,Economática!$A$3:$AI$823,23,FALSE)))","v":{"$error":"#REF!"}},{"$f":"IF($A263=\"\",\"\",IF(OR(VLOOKUP($A263,Economática!$A$3:$AI$823,24,FALSE)=0,VLOOKUP($A263,Economática!$A$3:$AI$823,24,FALSE)=\"-\"),1/0,VLOOKUP($A263,Economática!$A$3:$AI$823,24,FALSE)))","v":{"$error":"#REF!"}},{"$f":"IF($A263=\"\",\"\",IF(OR(VLOOKUP($A263,Economática!$A$3:$AI$823,25,FALSE)=0,VLOOKUP($A263,Economática!$A$3:$AI$823,25,FALSE)=\"-\"),1/0,VLOOKUP($A263,Economática!$A$3:$AI$823,25,FALSE)))","v":{"$error":"#REF!"}},{"$f":"IF($A263=\"\",\"\",IF(ISERROR((F263+VLOOKUP($A263,Economática!$A$3:$AI$823,26,FALSE))/Y263),(F263+VLOOKUP($A263,Economática!$A$3:$AI$823,26,FALSE))/Y263,(F263+VLOOKUP($A263,Economática!$A$3:$AI$823,26,FALSE))/Y263))","v":{"$error":"#REF!"}},{"$f":"IF($A263=\"\",\"\",IF(OR(-VLOOKUP($A263,Economática!$A$3:$AI$823,27,FALSE)=0,-VLOOKUP($A263,Economática!$A$3:$AI$823,27,FALSE)=\"-\"),1/0,-VLOOKUP($A263,Economática!$A$3:$AI$823,27,FALSE)))","v":{"$error":"#REF!"}},{"$error":"#REF!"},{"$f":"IF($A263=\"\",\"\",IF(OR(VLOOKUP($A263,Economática!$A$3:$AI$823,28,FALSE)=0,VLOOKUP($A263,Economática!$A$3:$AI$823,28,FALSE)=\"-\"),1/0,VLOOKUP($A263,Economática!$A$3:$AI$823,28,FALSE)))","v":{"$error":"#REF!"}},{"$f":"IF($A263=\"\",\"\",IF(OR(VLOOKUP($A263,Economática!$A$3:$AI$823,29,FALSE)=0,VLOOKUP($A263,Economática!$A$3:$AI$823,29,FALSE)=\"-\"),1/0,VLOOKUP($A263,Economática!$A$3:$AI$823,29,FALSE)))","v":{"$error":"#REF!"}},{"$f":"IF($A263=\"\",\"\",IF(OR(VLOOKUP($A263,Economática!$A$3:$AI$823,30,FALSE)/E263=0,VLOOKUP($A263,Economática!$A$3:$AI$823,30,FALSE)/E263=\"-\",VLOOKUP($A263,Economática!$A$3:$AI$823,30,FALSE)/E263<33.33%,VLOOKUP($A263,Economática!$A$3:$AI$823,30,FALSE)/E263>100%),1/0,VLOOKUP($A263,Economática!$A$3:$AI$823,30,FALSE)/E263))","v":{"$error":"#REF!"}},{"$error":"#REF!"},{"$f":"IF($A263=\"\",\"\",IF(OR(VLOOKUP($A263,Economática!$A$3:$AI$823,25,FALSE)=0,VLOOKUP($A263,Economática!$A$3:$AI$823,25,FALSE)=\"-\"),1/0,VLOOKUP($A263,Economática!$A$3:$AI$823,25,FALSE)))","v":{"$error":"#REF!"}},{"$f":"CONCATENATE(Economática!#REF!,\" \",Economática!#REF!)","v":{"$error":"#REF!"}}]
[{"$f":"IF(Economática!#REF!=\"\",\"\",Economática!#REF!)","v":{"$error":"#REF!"}},{"$f":"IF($A264=\"\",\"\",VLOOKUP(VLOOKUP($A264,Economática!$A$3:$AI$823,6,FALSE),Correção!$B$16:$C$36,2,FALSE))","v":{"$error":"#REF!"}},{"$f":"IF(Economática!#REF!=\"\",\"\",Economática!#REF!)","v":{"$error":"#REF!"}},{"$f":"IF($A264=\"\",\"\",IF(OR(VLOOKUP($A264,Economática!$A$3:$AI$823,8,FALSE)=0,VLOOKUP($A264,Economática!$A$3:$AI$823,8,FALSE)=\"-\"),1/0,VLOOKUP($A264,Economática!$A$3:$AI$823,8,FALSE)))","v":{"$error":"#REF!"}},{"$f":"IF(A264=\"\",\"\",IF(ISERROR(VLOOKUP(A264,Correção!$B$2:$G$13,9,FALSE)),VLOOKUP($A264,Economática!$A$3:$AI$823,9,FALSE),VLOOKUP(A264,Correção!$B$2:$G$13,9,FALSE)))","v":{"$error":"#REF!"}},{"$f":"IF($A264=\"\",\"\",Economática!#REF!)","v":{"$error":"#REF!"}},{"$f":"IF($A264=\"\",\"\",IF(OR(VLOOKUP($A264,Economática!$A$3:$AI$823,10,FALSE)=0,VLOOKUP($A264,Economática!$A$3:$AI$823,10,FALSE)=\"-\"),1/0,VLOOKUP($A264,Economática!$A$3:$AI$823,10,FALSE)))","v":{"$error":"#REF!"}},{"$f":"IF($A264=\"\",\"\",IF(OR(VLOOKUP($A264,Economática!$A$3:$AI$823,11,FALSE)=0,VLOOKUP($A264,Economática!$A$3:$AI$823,11,FALSE)=\"-\"),1/0,VLOOKUP($A264,Economática!$A$3:$AI$823,11,FALSE)))","v":{"$error":"#REF!"}},{"$f":"IF($A264=\"\",\"\",IF(OR(VLOOKUP($A264,Economática!$A$3:$AI$823,12,FALSE)=0,VLOOKUP($A264,Economática!$A$3:$AI$823,12,FALSE)=\"-\"),1/0,VLOOKUP($A264,Economática!$A$3:$AI$823,12,FALSE)))","v":{"$error":"#REF!"}},{"$f":"IF($A264=\"\",\"\",IF(OR(VLOOKUP($A264,Economática!$A$3:$AI$823,13,FALSE)=0,VLOOKUP($A264,Economática!$A$3:$AI$823,13,FALSE)=\"-\"),1/0,VLOOKUP($A264,Economática!$A$3:$AI$823,13,FALSE)))","v":{"$error":"#REF!"}},{"$f":"IF($A264=\"\",\"\",IF(OR(VLOOKUP($A264,Economática!$A$3:$AI$823,14,FALSE)=0,VLOOKUP($A264,Economática!$A$3:$AI$823,14,FALSE)=\"-\"),1/0,VLOOKUP($A264,Economática!$A$3:$AI$823,14,FALSE)))","v":{"$error":"#REF!"}},{"$f":"IF($A264=\"\",\"\",IF(OR(VLOOKUP($A264,Economática!$A$3:$AI$823,15,FALSE)=0,VLOOKUP($A264,Economática!$A$3:$AI$823,15,FALSE)=\"-\"),1/0,VLOOKUP($A264,Economática!$A$3:$AI$823,15,FALSE)))","v":{"$error":"#REF!"}},{"$f":"IF($A264=\"\",\"\",IF(OR(VLOOKUP($A264,Economática!$A$3:$AI$823,16,FALSE)=0,VLOOKUP($A264,Economática!$A$3:$AI$823,16,FALSE)=\"-\"),1/0,VLOOKUP($A264,Economática!$A$3:$AI$823,16,FALSE)))","v":{"$error":"#REF!"}},{"$f":"IF($A264=\"\",\"\",IF(OR(VLOOKUP($A264,Economática!$A$3:$AI$823,17,FALSE)=0,VLOOKUP($A264,Economática!$A$3:$AI$823,17,FALSE)=\"-\"),1/0,VLOOKUP($A264,Economática!$A$3:$AI$823,17,FALSE)))","v":{"$error":"#REF!"}},{"$f":"IF($A264=\"\",\"\",IF(OR(VLOOKUP($A264,Economática!$A$3:$AI$823,18,FALSE)=0,VLOOKUP($A264,Economática!$A$3:$AI$823,18,FALSE)=\"-\"),1/0,VLOOKUP($A264,Economática!$A$3:$AI$823,18,FALSE)))","v":{"$error":"#REF!"}},{"$f":"IF($A264=\"\",\"\",IF(OR(VLOOKUP($A264,Economática!$A$3:$AI$823,19,FALSE)=0,VLOOKUP($A264,Economática!$A$3:$AI$823,19,FALSE)=\"-\"),1/0,VLOOKUP($A264,Economática!$A$3:$AI$823,19,FALSE)))","v":{"$error":"#REF!"}},{"$f":"IF($A264=\"\",\"\",VLOOKUP($A264,Economática!$A$3:$AI$823,20,FALSE)/E264)","v":{"$error":"#REF!"}},{"$error":"#REF!"},{"$error":"#REF!"},{"$error":"#REF!"},{"$f":"IF($A264=\"\",\"\",IF(OR(VLOOKUP($A264,Economática!$A$3:$AI$823,21,FALSE)/100=0,VLOOKUP($A264,Economática!$A$3:$AI$823,21,FALSE)/100=\"-\"),1/0,VLOOKUP($A264,Economática!$A$3:$AI$823,21,FALSE)/100))","v":{"$error":"#REF!"}},{"$f":"IF($A264=\"\",\"\",IF(OR(VLOOKUP($A264,Economática!$A$3:$AI$823,22,FALSE)/100=0,VLOOKUP($A264,Economática!$A$3:$AI$823,22,FALSE)/100=\"-\"),1/0,VLOOKUP($A264,Economática!$A$3:$AI$823,22,FALSE)/100))","v":{"$error":"#REF!"}},{"$f":"IF($A264=\"\",\"\",IF(OR(VLOOKUP($A264,Economática!$A$3:$AI$823,23,FALSE)=0,VLOOKUP($A264,Economática!$A$3:$AI$823,23,FALSE)=\"-\"),1/0,VLOOKUP($A264,Economática!$A$3:$AI$823,23,FALSE)))","v":{"$error":"#REF!"}},{"$f":"IF($A264=\"\",\"\",IF(OR(VLOOKUP($A264,Economática!$A$3:$AI$823,24,FALSE)=0,VLOOKUP($A264,Economática!$A$3:$AI$823,24,FALSE)=\"-\"),1/0,VLOOKUP($A264,Economática!$A$3:$AI$823,24,FALSE)))","v":{"$error":"#REF!"}},{"$f":"IF($A264=\"\",\"\",IF(OR(VLOOKUP($A264,Economática!$A$3:$AI$823,25,FALSE)=0,VLOOKUP($A264,Economática!$A$3:$AI$823,25,FALSE)=\"-\"),1/0,VLOOKUP($A264,Economática!$A$3:$AI$823,25,FALSE)))","v":{"$error":"#REF!"}},{"$f":"IF($A264=\"\",\"\",IF(ISERROR((F264+VLOOKUP($A264,Economática!$A$3:$AI$823,26,FALSE))/Y264),(F264+VLOOKUP($A264,Economática!$A$3:$AI$823,26,FALSE))/Y264,(F264+VLOOKUP($A264,Economática!$A$3:$AI$823,26,FALSE))/Y264))","v":{"$error":"#REF!"}},{"$f":"IF($A264=\"\",\"\",IF(OR(-VLOOKUP($A264,Economática!$A$3:$AI$823,27,FALSE)=0,-VLOOKUP($A264,Economática!$A$3:$AI$823,27,FALSE)=\"-\"),1/0,-VLOOKUP($A264,Economática!$A$3:$AI$823,27,FALSE)))","v":{"$error":"#REF!"}},{"$error":"#REF!"},{"$f":"IF($A264=\"\",\"\",IF(OR(VLOOKUP($A264,Economática!$A$3:$AI$823,28,FALSE)=0,VLOOKUP($A264,Economática!$A$3:$AI$823,28,FALSE)=\"-\"),1/0,VLOOKUP($A264,Economática!$A$3:$AI$823,28,FALSE)))","v":{"$error":"#REF!"}},{"$f":"IF($A264=\"\",\"\",IF(OR(VLOOKUP($A264,Economática!$A$3:$AI$823,29,FALSE)=0,VLOOKUP($A264,Economática!$A$3:$AI$823,29,FALSE)=\"-\"),1/0,VLOOKUP($A264,Economática!$A$3:$AI$823,29,FALSE)))","v":{"$error":"#REF!"}},{"$f":"IF($A264=\"\",\"\",IF(OR(VLOOKUP($A264,Economática!$A$3:$AI$823,30,FALSE)/E264=0,VLOOKUP($A264,Economática!$A$3:$AI$823,30,FALSE)/E264=\"-\",VLOOKUP($A264,Economática!$A$3:$AI$823,30,FALSE)/E264<33.33%,VLOOKUP($A264,Economática!$A$3:$AI$823,30,FALSE)/E264>100%),1/0,VLOOKUP($A264,Economática!$A$3:$AI$823,30,FALSE)/E264))","v":{"$error":"#REF!"}},{"$error":"#REF!"},{"$f":"IF($A264=\"\",\"\",IF(OR(VLOOKUP($A264,Economática!$A$3:$AI$823,25,FALSE)=0,VLOOKUP($A264,Economática!$A$3:$AI$823,25,FALSE)=\"-\"),1/0,VLOOKUP($A264,Economática!$A$3:$AI$823,25,FALSE)))","v":{"$error":"#REF!"}},{"$f":"CONCATENATE(Economática!#REF!,\" \",Economática!#REF!)","v":{"$error":"#REF!"}}]
[{"$f":"IF(Economática!#REF!=\"\",\"\",Economática!#REF!)","v":{"$error":"#REF!"}},{"$f":"IF($A265=\"\",\"\",VLOOKUP(VLOOKUP($A265,Economática!$A$3:$AI$823,6,FALSE),Correção!$B$16:$C$36,2,FALSE))","v":{"$error":"#REF!"}},{"$f":"IF(Economática!#REF!=\"\",\"\",Economática!#REF!)","v":{"$error":"#REF!"}},{"$f":"IF($A265=\"\",\"\",IF(OR(VLOOKUP($A265,Economática!$A$3:$AI$823,8,FALSE)=0,VLOOKUP($A265,Economática!$A$3:$AI$823,8,FALSE)=\"-\"),1/0,VLOOKUP($A265,Economática!$A$3:$AI$823,8,FALSE)))","v":{"$error":"#REF!"}},{"$f":"IF(A265=\"\",\"\",IF(ISERROR(VLOOKUP(A265,Correção!$B$2:$G$13,9,FALSE)),VLOOKUP($A265,Economática!$A$3:$AI$823,9,FALSE),VLOOKUP(A265,Correção!$B$2:$G$13,9,FALSE)))","v":{"$error":"#REF!"}},{"$f":"IF($A265=\"\",\"\",Economática!#REF!)","v":{"$error":"#REF!"}},{"$f":"IF($A265=\"\",\"\",IF(OR(VLOOKUP($A265,Economática!$A$3:$AI$823,10,FALSE)=0,VLOOKUP($A265,Economática!$A$3:$AI$823,10,FALSE)=\"-\"),1/0,VLOOKUP($A265,Economática!$A$3:$AI$823,10,FALSE)))","v":{"$error":"#REF!"}},{"$f":"IF($A265=\"\",\"\",IF(OR(VLOOKUP($A265,Economática!$A$3:$AI$823,11,FALSE)=0,VLOOKUP($A265,Economática!$A$3:$AI$823,11,FALSE)=\"-\"),1/0,VLOOKUP($A265,Economática!$A$3:$AI$823,11,FALSE)))","v":{"$error":"#REF!"}},{"$f":"IF($A265=\"\",\"\",IF(OR(VLOOKUP($A265,Economática!$A$3:$AI$823,12,FALSE)=0,VLOOKUP($A265,Economática!$A$3:$AI$823,12,FALSE)=\"-\"),1/0,VLOOKUP($A265,Economática!$A$3:$AI$823,12,FALSE)))","v":{"$error":"#REF!"}},{"$f":"IF($A265=\"\",\"\",IF(OR(VLOOKUP($A265,Economática!$A$3:$AI$823,13,FALSE)=0,VLOOKUP($A265,Economática!$A$3:$AI$823,13,FALSE)=\"-\"),1/0,VLOOKUP($A265,Economática!$A$3:$AI$823,13,FALSE)))","v":{"$error":"#REF!"}},{"$f":"IF($A265=\"\",\"\",IF(OR(VLOOKUP($A265,Economática!$A$3:$AI$823,14,FALSE)=0,VLOOKUP($A265,Economática!$A$3:$AI$823,14,FALSE)=\"-\"),1/0,VLOOKUP($A265,Economática!$A$3:$AI$823,14,FALSE)))","v":{"$error":"#REF!"}},{"$f":"IF($A265=\"\",\"\",IF(OR(VLOOKUP($A265,Economática!$A$3:$AI$823,15,FALSE)=0,VLOOKUP($A265,Economática!$A$3:$AI$823,15,FALSE)=\"-\"),1/0,VLOOKUP($A265,Economática!$A$3:$AI$823,15,FALSE)))","v":{"$error":"#REF!"}},{"$f":"IF($A265=\"\",\"\",IF(OR(VLOOKUP($A265,Economática!$A$3:$AI$823,16,FALSE)=0,VLOOKUP($A265,Economática!$A$3:$AI$823,16,FALSE)=\"-\"),1/0,VLOOKUP($A265,Economática!$A$3:$AI$823,16,FALSE)))","v":{"$error":"#REF!"}},{"$f":"IF($A265=\"\",\"\",IF(OR(VLOOKUP($A265,Economática!$A$3:$AI$823,17,FALSE)=0,VLOOKUP($A265,Economática!$A$3:$AI$823,17,FALSE)=\"-\"),1/0,VLOOKUP($A265,Economática!$A$3:$AI$823,17,FALSE)))","v":{"$error":"#REF!"}},{"$f":"IF($A265=\"\",\"\",IF(OR(VLOOKUP($A265,Economática!$A$3:$AI$823,18,FALSE)=0,VLOOKUP($A265,Economática!$A$3:$AI$823,18,FALSE)=\"-\"),1/0,VLOOKUP($A265,Economática!$A$3:$AI$823,18,FALSE)))","v":{"$error":"#REF!"}},{"$f":"IF($A265=\"\",\"\",IF(OR(VLOOKUP($A265,Economática!$A$3:$AI$823,19,FALSE)=0,VLOOKUP($A265,Economática!$A$3:$AI$823,19,FALSE)=\"-\"),1/0,VLOOKUP($A265,Economática!$A$3:$AI$823,19,FALSE)))","v":{"$error":"#REF!"}},{"$f":"IF($A265=\"\",\"\",VLOOKUP($A265,Economática!$A$3:$AI$823,20,FALSE)/E265)","v":{"$error":"#REF!"}},{"$error":"#REF!"},{"$error":"#REF!"},{"$error":"#REF!"},{"$f":"IF($A265=\"\",\"\",IF(OR(VLOOKUP($A265,Economática!$A$3:$AI$823,21,FALSE)/100=0,VLOOKUP($A265,Economática!$A$3:$AI$823,21,FALSE)/100=\"-\"),1/0,VLOOKUP($A265,Economática!$A$3:$AI$823,21,FALSE)/100))","v":{"$error":"#REF!"}},{"$f":"IF($A265=\"\",\"\",IF(OR(VLOOKUP($A265,Economática!$A$3:$AI$823,22,FALSE)/100=0,VLOOKUP($A265,Economática!$A$3:$AI$823,22,FALSE)/100=\"-\"),1/0,VLOOKUP($A265,Economática!$A$3:$AI$823,22,FALSE)/100))","v":{"$error":"#REF!"}},{"$f":"IF($A265=\"\",\"\",IF(OR(VLOOKUP($A265,Economática!$A$3:$AI$823,23,FALSE)=0,VLOOKUP($A265,Economática!$A$3:$AI$823,23,FALSE)=\"-\"),1/0,VLOOKUP($A265,Economática!$A$3:$AI$823,23,FALSE)))","v":{"$error":"#REF!"}},{"$f":"IF($A265=\"\",\"\",IF(OR(VLOOKUP($A265,Economática!$A$3:$AI$823,24,FALSE)=0,VLOOKUP($A265,Economática!$A$3:$AI$823,24,FALSE)=\"-\"),1/0,VLOOKUP($A265,Economática!$A$3:$AI$823,24,FALSE)))","v":{"$error":"#REF!"}},{"$f":"IF($A265=\"\",\"\",IF(OR(VLOOKUP($A265,Economática!$A$3:$AI$823,25,FALSE)=0,VLOOKUP($A265,Economática!$A$3:$AI$823,25,FALSE)=\"-\"),1/0,VLOOKUP($A265,Economática!$A$3:$AI$823,25,FALSE)))","v":{"$error":"#REF!"}},{"$f":"IF($A265=\"\",\"\",IF(ISERROR((F265+VLOOKUP($A265,Economática!$A$3:$AI$823,26,FALSE))/Y265),(F265+VLOOKUP($A265,Economática!$A$3:$AI$823,26,FALSE))/Y265,(F265+VLOOKUP($A265,Economática!$A$3:$AI$823,26,FALSE))/Y265))","v":{"$error":"#REF!"}},{"$f":"IF($A265=\"\",\"\",IF(OR(-VLOOKUP($A265,Economática!$A$3:$AI$823,27,FALSE)=0,-VLOOKUP($A265,Economática!$A$3:$AI$823,27,FALSE)=\"-\"),1/0,-VLOOKUP($A265,Economática!$A$3:$AI$823,27,FALSE)))","v":{"$error":"#REF!"}},{"$error":"#REF!"},{"$f":"IF($A265=\"\",\"\",IF(OR(VLOOKUP($A265,Economática!$A$3:$AI$823,28,FALSE)=0,VLOOKUP($A265,Economática!$A$3:$AI$823,28,FALSE)=\"-\"),1/0,VLOOKUP($A265,Economática!$A$3:$AI$823,28,FALSE)))","v":{"$error":"#REF!"}},{"$f":"IF($A265=\"\",\"\",IF(OR(VLOOKUP($A265,Economática!$A$3:$AI$823,29,FALSE)=0,VLOOKUP($A265,Economática!$A$3:$AI$823,29,FALSE)=\"-\"),1/0,VLOOKUP($A265,Economática!$A$3:$AI$823,29,FALSE)))","v":{"$error":"#REF!"}},{"$f":"IF($A265=\"\",\"\",IF(OR(VLOOKUP($A265,Economática!$A$3:$AI$823,30,FALSE)/E265=0,VLOOKUP($A265,Economática!$A$3:$AI$823,30,FALSE)/E265=\"-\",VLOOKUP($A265,Economática!$A$3:$AI$823,30,FALSE)/E265<33.33%,VLOOKUP($A265,Economática!$A$3:$AI$823,30,FALSE)/E265>100%),1/0,VLOOKUP($A265,Economática!$A$3:$AI$823,30,FALSE)/E265))","v":{"$error":"#REF!"}},{"$error":"#REF!"},{"$f":"IF($A265=\"\",\"\",IF(OR(VLOOKUP($A265,Economática!$A$3:$AI$823,25,FALSE)=0,VLOOKUP($A265,Economática!$A$3:$AI$823,25,FALSE)=\"-\"),1/0,VLOOKUP($A265,Economática!$A$3:$AI$823,25,FALSE)))","v":{"$error":"#REF!"}},{"$f":"CONCATENATE(Economática!#REF!,\" \",Economática!#REF!)","v":{"$error":"#REF!"}}]
[{"$f":"IF(Economática!#REF!=\"\",\"\",Economática!#REF!)","v":{"$error":"#REF!"}},{"$f":"IF($A266=\"\",\"\",VLOOKUP(VLOOKUP($A266,Economática!$A$3:$AI$823,6,FALSE),Correção!$B$16:$C$36,2,FALSE))","v":{"$error":"#REF!"}},{"$f":"IF(Economática!#REF!=\"\",\"\",Economática!#REF!)","v":{"$error":"#REF!"}},{"$f":"IF($A266=\"\",\"\",IF(OR(VLOOKUP($A266,Economática!$A$3:$AI$823,8,FALSE)=0,VLOOKUP($A266,Economática!$A$3:$AI$823,8,FALSE)=\"-\"),1/0,VLOOKUP($A266,Economática!$A$3:$AI$823,8,FALSE)))","v":{"$error":"#REF!"}},{"$f":"IF(A266=\"\",\"\",IF(ISERROR(VLOOKUP(A266,Correção!$B$2:$G$13,9,FALSE)),VLOOKUP($A266,Economática!$A$3:$AI$823,9,FALSE),VLOOKUP(A266,Correção!$B$2:$G$13,9,FALSE)))","v":{"$error":"#REF!"}},{"$f":"IF($A266=\"\",\"\",Economática!#REF!)","v":{"$error":"#REF!"}},{"$f":"IF($A266=\"\",\"\",IF(OR(VLOOKUP($A266,Economática!$A$3:$AI$823,10,FALSE)=0,VLOOKUP($A266,Economática!$A$3:$AI$823,10,FALSE)=\"-\"),1/0,VLOOKUP($A266,Economática!$A$3:$AI$823,10,FALSE)))","v":{"$error":"#REF!"}},{"$f":"IF($A266=\"\",\"\",IF(OR(VLOOKUP($A266,Economática!$A$3:$AI$823,11,FALSE)=0,VLOOKUP($A266,Economática!$A$3:$AI$823,11,FALSE)=\"-\"),1/0,VLOOKUP($A266,Economática!$A$3:$AI$823,11,FALSE)))","v":{"$error":"#REF!"}},{"$f":"IF($A266=\"\",\"\",IF(OR(VLOOKUP($A266,Economática!$A$3:$AI$823,12,FALSE)=0,VLOOKUP($A266,Economática!$A$3:$AI$823,12,FALSE)=\"-\"),1/0,VLOOKUP($A266,Economática!$A$3:$AI$823,12,FALSE)))","v":{"$error":"#REF!"}},{"$f":"IF($A266=\"\",\"\",IF(OR(VLOOKUP($A266,Economática!$A$3:$AI$823,13,FALSE)=0,VLOOKUP($A266,Economática!$A$3:$AI$823,13,FALSE)=\"-\"),1/0,VLOOKUP($A266,Economática!$A$3:$AI$823,13,FALSE)))","v":{"$error":"#REF!"}},{"$f":"IF($A266=\"\",\"\",IF(OR(VLOOKUP($A266,Economática!$A$3:$AI$823,14,FALSE)=0,VLOOKUP($A266,Economática!$A$3:$AI$823,14,FALSE)=\"-\"),1/0,VLOOKUP($A266,Economática!$A$3:$AI$823,14,FALSE)))","v":{"$error":"#REF!"}},{"$f":"IF($A266=\"\",\"\",IF(OR(VLOOKUP($A266,Economática!$A$3:$AI$823,15,FALSE)=0,VLOOKUP($A266,Economática!$A$3:$AI$823,15,FALSE)=\"-\"),1/0,VLOOKUP($A266,Economática!$A$3:$AI$823,15,FALSE)))","v":{"$error":"#REF!"}},{"$f":"IF($A266=\"\",\"\",IF(OR(VLOOKUP($A266,Economática!$A$3:$AI$823,16,FALSE)=0,VLOOKUP($A266,Economática!$A$3:$AI$823,16,FALSE)=\"-\"),1/0,VLOOKUP($A266,Economática!$A$3:$AI$823,16,FALSE)))","v":{"$error":"#REF!"}},{"$f":"IF($A266=\"\",\"\",IF(OR(VLOOKUP($A266,Economática!$A$3:$AI$823,17,FALSE)=0,VLOOKUP($A266,Economática!$A$3:$AI$823,17,FALSE)=\"-\"),1/0,VLOOKUP($A266,Economática!$A$3:$AI$823,17,FALSE)))","v":{"$error":"#REF!"}},{"$f":"IF($A266=\"\",\"\",IF(OR(VLOOKUP($A266,Economática!$A$3:$AI$823,18,FALSE)=0,VLOOKUP($A266,Economática!$A$3:$AI$823,18,FALSE)=\"-\"),1/0,VLOOKUP($A266,Economática!$A$3:$AI$823,18,FALSE)))","v":{"$error":"#REF!"}},{"$f":"IF($A266=\"\",\"\",IF(OR(VLOOKUP($A266,Economática!$A$3:$AI$823,19,FALSE)=0,VLOOKUP($A266,Economática!$A$3:$AI$823,19,FALSE)=\"-\"),1/0,VLOOKUP($A266,Economática!$A$3:$AI$823,19,FALSE)))","v":{"$error":"#REF!"}},{"$f":"IF($A266=\"\",\"\",VLOOKUP($A266,Economática!$A$3:$AI$823,20,FALSE)/E266)","v":{"$error":"#REF!"}},{"$error":"#REF!"},{"$error":"#REF!"},{"$error":"#REF!"},{"$f":"IF($A266=\"\",\"\",IF(OR(VLOOKUP($A266,Economática!$A$3:$AI$823,21,FALSE)/100=0,VLOOKUP($A266,Economática!$A$3:$AI$823,21,FALSE)/100=\"-\"),1/0,VLOOKUP($A266,Economática!$A$3:$AI$823,21,FALSE)/100))","v":{"$error":"#REF!"}},{"$f":"IF($A266=\"\",\"\",IF(OR(VLOOKUP($A266,Economática!$A$3:$AI$823,22,FALSE)/100=0,VLOOKUP($A266,Economática!$A$3:$AI$823,22,FALSE)/100=\"-\"),1/0,VLOOKUP($A266,Economática!$A$3:$AI$823,22,FALSE)/100))","v":{"$error":"#REF!"}},{"$f":"IF($A266=\"\",\"\",IF(OR(VLOOKUP($A266,Economática!$A$3:$AI$823,23,FALSE)=0,VLOOKUP($A266,Economática!$A$3:$AI$823,23,FALSE)=\"-\"),1/0,VLOOKUP($A266,Economática!$A$3:$AI$823,23,FALSE)))","v":{"$error":"#REF!"}},{"$f":"IF($A266=\"\",\"\",IF(OR(VLOOKUP($A266,Economática!$A$3:$AI$823,24,FALSE)=0,VLOOKUP($A266,Economática!$A$3:$AI$823,24,FALSE)=\"-\"),1/0,VLOOKUP($A266,Economática!$A$3:$AI$823,24,FALSE)))","v":{"$error":"#REF!"}},{"$f":"IF($A266=\"\",\"\",IF(OR(VLOOKUP($A266,Economática!$A$3:$AI$823,25,FALSE)=0,VLOOKUP($A266,Economática!$A$3:$AI$823,25,FALSE)=\"-\"),1/0,VLOOKUP($A266,Economática!$A$3:$AI$823,25,FALSE)))","v":{"$error":"#REF!"}},{"$f":"IF($A266=\"\",\"\",IF(ISERROR((F266+VLOOKUP($A266,Economática!$A$3:$AI$823,26,FALSE))/Y266),(F266+VLOOKUP($A266,Economática!$A$3:$AI$823,26,FALSE))/Y266,(F266+VLOOKUP($A266,Economática!$A$3:$AI$823,26,FALSE))/Y266))","v":{"$error":"#REF!"}},{"$f":"IF($A266=\"\",\"\",IF(OR(-VLOOKUP($A266,Economática!$A$3:$AI$823,27,FALSE)=0,-VLOOKUP($A266,Economática!$A$3:$AI$823,27,FALSE)=\"-\"),1/0,-VLOOKUP($A266,Economática!$A$3:$AI$823,27,FALSE)))","v":{"$error":"#REF!"}},{"$error":"#REF!"},{"$f":"IF($A266=\"\",\"\",IF(OR(VLOOKUP($A266,Economática!$A$3:$AI$823,28,FALSE)=0,VLOOKUP($A266,Economática!$A$3:$AI$823,28,FALSE)=\"-\"),1/0,VLOOKUP($A266,Economática!$A$3:$AI$823,28,FALSE)))","v":{"$error":"#REF!"}},{"$f":"IF($A266=\"\",\"\",IF(OR(VLOOKUP($A266,Economática!$A$3:$AI$823,29,FALSE)=0,VLOOKUP($A266,Economática!$A$3:$AI$823,29,FALSE)=\"-\"),1/0,VLOOKUP($A266,Economática!$A$3:$AI$823,29,FALSE)))","v":{"$error":"#REF!"}},{"$f":"IF($A266=\"\",\"\",IF(OR(VLOOKUP($A266,Economática!$A$3:$AI$823,30,FALSE)/E266=0,VLOOKUP($A266,Economática!$A$3:$AI$823,30,FALSE)/E266=\"-\",VLOOKUP($A266,Economática!$A$3:$AI$823,30,FALSE)/E266<33.33%,VLOOKUP($A266,Economática!$A$3:$AI$823,30,FALSE)/E266>100%),1/0,VLOOKUP($A266,Economática!$A$3:$AI$823,30,FALSE)/E266))","v":{"$error":"#REF!"}},{"$error":"#REF!"},{"$f":"IF($A266=\"\",\"\",IF(OR(VLOOKUP($A266,Economática!$A$3:$AI$823,25,FALSE)=0,VLOOKUP($A266,Economática!$A$3:$AI$823,25,FALSE)=\"-\"),1/0,VLOOKUP($A266,Economática!$A$3:$AI$823,25,FALSE)))","v":{"$error":"#REF!"}},{"$f":"CONCATENATE(Economática!#REF!,\" \",Economática!#REF!)","v":{"$error":"#REF!"}}]
[{"$f":"IF(Economática!#REF!=\"\",\"\",Economática!#REF!)","v":{"$error":"#REF!"}},{"$f":"IF($A267=\"\",\"\",VLOOKUP(VLOOKUP($A267,Economática!$A$3:$AI$823,6,FALSE),Correção!$B$16:$C$36,2,FALSE))","v":{"$error":"#REF!"}},{"$f":"IF(Economática!#REF!=\"\",\"\",Economática!#REF!)","v":{"$error":"#REF!"}},{"$f":"IF($A267=\"\",\"\",IF(OR(VLOOKUP($A267,Economática!$A$3:$AI$823,8,FALSE)=0,VLOOKUP($A267,Economática!$A$3:$AI$823,8,FALSE)=\"-\"),1/0,VLOOKUP($A267,Economática!$A$3:$AI$823,8,FALSE)))","v":{"$error":"#REF!"}},{"$f":"IF(A267=\"\",\"\",IF(ISERROR(VLOOKUP(A267,Correção!$B$2:$G$13,9,FALSE)),VLOOKUP($A267,Economática!$A$3:$AI$823,9,FALSE),VLOOKUP(A267,Correção!$B$2:$G$13,9,FALSE)))","v":{"$error":"#REF!"}},{"$f":"IF($A267=\"\",\"\",Economática!#REF!)","v":{"$error":"#REF!"}},{"$f":"IF($A267=\"\",\"\",IF(OR(VLOOKUP($A267,Economática!$A$3:$AI$823,10,FALSE)=0,VLOOKUP($A267,Economática!$A$3:$AI$823,10,FALSE)=\"-\"),1/0,VLOOKUP($A267,Economática!$A$3:$AI$823,10,FALSE)))","v":{"$error":"#REF!"}},{"$f":"IF($A267=\"\",\"\",IF(OR(VLOOKUP($A267,Economática!$A$3:$AI$823,11,FALSE)=0,VLOOKUP($A267,Economática!$A$3:$AI$823,11,FALSE)=\"-\"),1/0,VLOOKUP($A267,Economática!$A$3:$AI$823,11,FALSE)))","v":{"$error":"#REF!"}},{"$f":"IF($A267=\"\",\"\",IF(OR(VLOOKUP($A267,Economática!$A$3:$AI$823,12,FALSE)=0,VLOOKUP($A267,Economática!$A$3:$AI$823,12,FALSE)=\"-\"),1/0,VLOOKUP($A267,Economática!$A$3:$AI$823,12,FALSE)))","v":{"$error":"#REF!"}},{"$f":"IF($A267=\"\",\"\",IF(OR(VLOOKUP($A267,Economática!$A$3:$AI$823,13,FALSE)=0,VLOOKUP($A267,Economática!$A$3:$AI$823,13,FALSE)=\"-\"),1/0,VLOOKUP($A267,Economática!$A$3:$AI$823,13,FALSE)))","v":{"$error":"#REF!"}},{"$f":"IF($A267=\"\",\"\",IF(OR(VLOOKUP($A267,Economática!$A$3:$AI$823,14,FALSE)=0,VLOOKUP($A267,Economática!$A$3:$AI$823,14,FALSE)=\"-\"),1/0,VLOOKUP($A267,Economática!$A$3:$AI$823,14,FALSE)))","v":{"$error":"#REF!"}},{"$f":"IF($A267=\"\",\"\",IF(OR(VLOOKUP($A267,Economática!$A$3:$AI$823,15,FALSE)=0,VLOOKUP($A267,Economática!$A$3:$AI$823,15,FALSE)=\"-\"),1/0,VLOOKUP($A267,Economática!$A$3:$AI$823,15,FALSE)))","v":{"$error":"#REF!"}},{"$f":"IF($A267=\"\",\"\",IF(OR(VLOOKUP($A267,Economática!$A$3:$AI$823,16,FALSE)=0,VLOOKUP($A267,Economática!$A$3:$AI$823,16,FALSE)=\"-\"),1/0,VLOOKUP($A267,Economática!$A$3:$AI$823,16,FALSE)))","v":{"$error":"#REF!"}},{"$f":"IF($A267=\"\",\"\",IF(OR(VLOOKUP($A267,Economática!$A$3:$AI$823,17,FALSE)=0,VLOOKUP($A267,Economática!$A$3:$AI$823,17,FALSE)=\"-\"),1/0,VLOOKUP($A267,Economática!$A$3:$AI$823,17,FALSE)))","v":{"$error":"#REF!"}},{"$f":"IF($A267=\"\",\"\",IF(OR(VLOOKUP($A267,Economática!$A$3:$AI$823,18,FALSE)=0,VLOOKUP($A267,Economática!$A$3:$AI$823,18,FALSE)=\"-\"),1/0,VLOOKUP($A267,Economática!$A$3:$AI$823,18,FALSE)))","v":{"$error":"#REF!"}},{"$f":"IF($A267=\"\",\"\",IF(OR(VLOOKUP($A267,Economática!$A$3:$AI$823,19,FALSE)=0,VLOOKUP($A267,Economática!$A$3:$AI$823,19,FALSE)=\"-\"),1/0,VLOOKUP($A267,Economática!$A$3:$AI$823,19,FALSE)))","v":{"$error":"#REF!"}},{"$f":"IF($A267=\"\",\"\",VLOOKUP($A267,Economática!$A$3:$AI$823,20,FALSE)/E267)","v":{"$error":"#REF!"}},{"$error":"#REF!"},{"$error":"#REF!"},{"$error":"#REF!"},{"$f":"IF($A267=\"\",\"\",IF(OR(VLOOKUP($A267,Economática!$A$3:$AI$823,21,FALSE)/100=0,VLOOKUP($A267,Economática!$A$3:$AI$823,21,FALSE)/100=\"-\"),1/0,VLOOKUP($A267,Economática!$A$3:$AI$823,21,FALSE)/100))","v":{"$error":"#REF!"}},{"$f":"IF($A267=\"\",\"\",IF(OR(VLOOKUP($A267,Economática!$A$3:$AI$823,22,FALSE)/100=0,VLOOKUP($A267,Economática!$A$3:$AI$823,22,FALSE)/100=\"-\"),1/0,VLOOKUP($A267,Economática!$A$3:$AI$823,22,FALSE)/100))","v":{"$error":"#REF!"}},{"$f":"IF($A267=\"\",\"\",IF(OR(VLOOKUP($A267,Economática!$A$3:$AI$823,23,FALSE)=0,VLOOKUP($A267,Economática!$A$3:$AI$823,23,FALSE)=\"-\"),1/0,VLOOKUP($A267,Economática!$A$3:$AI$823,23,FALSE)))","v":{"$error":"#REF!"}},{"$f":"IF($A267=\"\",\"\",IF(OR(VLOOKUP($A267,Economática!$A$3:$AI$823,24,FALSE)=0,VLOOKUP($A267,Economática!$A$3:$AI$823,24,FALSE)=\"-\"),1/0,VLOOKUP($A267,Economática!$A$3:$AI$823,24,FALSE)))","v":{"$error":"#REF!"}},{"$f":"IF($A267=\"\",\"\",IF(OR(VLOOKUP($A267,Economática!$A$3:$AI$823,25,FALSE)=0,VLOOKUP($A267,Economática!$A$3:$AI$823,25,FALSE)=\"-\"),1/0,VLOOKUP($A267,Economática!$A$3:$AI$823,25,FALSE)))","v":{"$error":"#REF!"}},{"$f":"IF($A267=\"\",\"\",IF(ISERROR((F267+VLOOKUP($A267,Economática!$A$3:$AI$823,26,FALSE))/Y267),(F267+VLOOKUP($A267,Economática!$A$3:$AI$823,26,FALSE))/Y267,(F267+VLOOKUP($A267,Economática!$A$3:$AI$823,26,FALSE))/Y267))","v":{"$error":"#REF!"}},{"$f":"IF($A267=\"\",\"\",IF(OR(-VLOOKUP($A267,Economática!$A$3:$AI$823,27,FALSE)=0,-VLOOKUP($A267,Economática!$A$3:$AI$823,27,FALSE)=\"-\"),1/0,-VLOOKUP($A267,Economática!$A$3:$AI$823,27,FALSE)))","v":{"$error":"#REF!"}},{"$error":"#REF!"},{"$f":"IF($A267=\"\",\"\",IF(OR(VLOOKUP($A267,Economática!$A$3:$AI$823,28,FALSE)=0,VLOOKUP($A267,Economática!$A$3:$AI$823,28,FALSE)=\"-\"),1/0,VLOOKUP($A267,Economática!$A$3:$AI$823,28,FALSE)))","v":{"$error":"#REF!"}},{"$f":"IF($A267=\"\",\"\",IF(OR(VLOOKUP($A267,Economática!$A$3:$AI$823,29,FALSE)=0,VLOOKUP($A267,Economática!$A$3:$AI$823,29,FALSE)=\"-\"),1/0,VLOOKUP($A267,Economática!$A$3:$AI$823,29,FALSE)))","v":{"$error":"#REF!"}},{"$f":"IF($A267=\"\",\"\",IF(OR(VLOOKUP($A267,Economática!$A$3:$AI$823,30,FALSE)/E267=0,VLOOKUP($A267,Economática!$A$3:$AI$823,30,FALSE)/E267=\"-\",VLOOKUP($A267,Economática!$A$3:$AI$823,30,FALSE)/E267<33.33%,VLOOKUP($A267,Economática!$A$3:$AI$823,30,FALSE)/E267>100%),1/0,VLOOKUP($A267,Economática!$A$3:$AI$823,30,FALSE)/E267))","v":{"$error":"#REF!"}},{"$error":"#REF!"},{"$f":"IF($A267=\"\",\"\",IF(OR(VLOOKUP($A267,Economática!$A$3:$AI$823,25,FALSE)=0,VLOOKUP($A267,Economática!$A$3:$AI$823,25,FALSE)=\"-\"),1/0,VLOOKUP($A267,Economática!$A$3:$AI$823,25,FALSE)))","v":{"$error":"#REF!"}},{"$f":"CONCATENATE(Economática!#REF!,\" \",Economática!#REF!)","v":{"$error":"#REF!"}}]
[{"$f":"IF(Economática!#REF!=\"\",\"\",Economática!#REF!)","v":{"$error":"#REF!"}},{"$f":"IF($A268=\"\",\"\",VLOOKUP(VLOOKUP($A268,Economática!$A$3:$AI$823,6,FALSE),Correção!$B$16:$C$36,2,FALSE))","v":{"$error":"#REF!"}},{"$f":"IF(Economática!#REF!=\"\",\"\",Economática!#REF!)","v":{"$error":"#REF!"}},{"$f":"IF($A268=\"\",\"\",IF(OR(VLOOKUP($A268,Economática!$A$3:$AI$823,8,FALSE)=0,VLOOKUP($A268,Economática!$A$3:$AI$823,8,FALSE)=\"-\"),1/0,VLOOKUP($A268,Economática!$A$3:$AI$823,8,FALSE)))","v":{"$error":"#REF!"}},{"$f":"IF(A268=\"\",\"\",IF(ISERROR(VLOOKUP(A268,Correção!$B$2:$G$13,9,FALSE)),VLOOKUP($A268,Economática!$A$3:$AI$823,9,FALSE),VLOOKUP(A268,Correção!$B$2:$G$13,9,FALSE)))","v":{"$error":"#REF!"}},{"$f":"IF($A268=\"\",\"\",Economática!#REF!)","v":{"$error":"#REF!"}},{"$f":"IF($A268=\"\",\"\",IF(OR(VLOOKUP($A268,Economática!$A$3:$AI$823,10,FALSE)=0,VLOOKUP($A268,Economática!$A$3:$AI$823,10,FALSE)=\"-\"),1/0,VLOOKUP($A268,Economática!$A$3:$AI$823,10,FALSE)))","v":{"$error":"#REF!"}},{"$f":"IF($A268=\"\",\"\",IF(OR(VLOOKUP($A268,Economática!$A$3:$AI$823,11,FALSE)=0,VLOOKUP($A268,Economática!$A$3:$AI$823,11,FALSE)=\"-\"),1/0,VLOOKUP($A268,Economática!$A$3:$AI$823,11,FALSE)))","v":{"$error":"#REF!"}},{"$f":"IF($A268=\"\",\"\",IF(OR(VLOOKUP($A268,Economática!$A$3:$AI$823,12,FALSE)=0,VLOOKUP($A268,Economática!$A$3:$AI$823,12,FALSE)=\"-\"),1/0,VLOOKUP($A268,Economática!$A$3:$AI$823,12,FALSE)))","v":{"$error":"#REF!"}},{"$f":"IF($A268=\"\",\"\",IF(OR(VLOOKUP($A268,Economática!$A$3:$AI$823,13,FALSE)=0,VLOOKUP($A268,Economática!$A$3:$AI$823,13,FALSE)=\"-\"),1/0,VLOOKUP($A268,Economática!$A$3:$AI$823,13,FALSE)))","v":{"$error":"#REF!"}},{"$f":"IF($A268=\"\",\"\",IF(OR(VLOOKUP($A268,Economática!$A$3:$AI$823,14,FALSE)=0,VLOOKUP($A268,Economática!$A$3:$AI$823,14,FALSE)=\"-\"),1/0,VLOOKUP($A268,Economática!$A$3:$AI$823,14,FALSE)))","v":{"$error":"#REF!"}},{"$f":"IF($A268=\"\",\"\",IF(OR(VLOOKUP($A268,Economática!$A$3:$AI$823,15,FALSE)=0,VLOOKUP($A268,Economática!$A$3:$AI$823,15,FALSE)=\"-\"),1/0,VLOOKUP($A268,Economática!$A$3:$AI$823,15,FALSE)))","v":{"$error":"#REF!"}},{"$f":"IF($A268=\"\",\"\",IF(OR(VLOOKUP($A268,Economática!$A$3:$AI$823,16,FALSE)=0,VLOOKUP($A268,Economática!$A$3:$AI$823,16,FALSE)=\"-\"),1/0,VLOOKUP($A268,Economática!$A$3:$AI$823,16,FALSE)))","v":{"$error":"#REF!"}},{"$f":"IF($A268=\"\",\"\",IF(OR(VLOOKUP($A268,Economática!$A$3:$AI$823,17,FALSE)=0,VLOOKUP($A268,Economática!$A$3:$AI$823,17,FALSE)=\"-\"),1/0,VLOOKUP($A268,Economática!$A$3:$AI$823,17,FALSE)))","v":{"$error":"#REF!"}},{"$f":"IF($A268=\"\",\"\",IF(OR(VLOOKUP($A268,Economática!$A$3:$AI$823,18,FALSE)=0,VLOOKUP($A268,Economática!$A$3:$AI$823,18,FALSE)=\"-\"),1/0,VLOOKUP($A268,Economática!$A$3:$AI$823,18,FALSE)))","v":{"$error":"#REF!"}},{"$f":"IF($A268=\"\",\"\",IF(OR(VLOOKUP($A268,Economática!$A$3:$AI$823,19,FALSE)=0,VLOOKUP($A268,Economática!$A$3:$AI$823,19,FALSE)=\"-\"),1/0,VLOOKUP($A268,Economática!$A$3:$AI$823,19,FALSE)))","v":{"$error":"#REF!"}},{"$f":"IF($A268=\"\",\"\",VLOOKUP($A268,Economática!$A$3:$AI$823,20,FALSE)/E268)","v":{"$error":"#REF!"}},{"$error":"#REF!"},{"$error":"#REF!"},{"$error":"#REF!"},{"$f":"IF($A268=\"\",\"\",IF(OR(VLOOKUP($A268,Economática!$A$3:$AI$823,21,FALSE)/100=0,VLOOKUP($A268,Economática!$A$3:$AI$823,21,FALSE)/100=\"-\"),1/0,VLOOKUP($A268,Economática!$A$3:$AI$823,21,FALSE)/100))","v":{"$error":"#REF!"}},{"$f":"IF($A268=\"\",\"\",IF(OR(VLOOKUP($A268,Economática!$A$3:$AI$823,22,FALSE)/100=0,VLOOKUP($A268,Economática!$A$3:$AI$823,22,FALSE)/100=\"-\"),1/0,VLOOKUP($A268,Economática!$A$3:$AI$823,22,FALSE)/100))","v":{"$error":"#REF!"}},{"$f":"IF($A268=\"\",\"\",IF(OR(VLOOKUP($A268,Economática!$A$3:$AI$823,23,FALSE)=0,VLOOKUP($A268,Economática!$A$3:$AI$823,23,FALSE)=\"-\"),1/0,VLOOKUP($A268,Economática!$A$3:$AI$823,23,FALSE)))","v":{"$error":"#REF!"}},{"$f":"IF($A268=\"\",\"\",IF(OR(VLOOKUP($A268,Economática!$A$3:$AI$823,24,FALSE)=0,VLOOKUP($A268,Economática!$A$3:$AI$823,24,FALSE)=\"-\"),1/0,VLOOKUP($A268,Economática!$A$3:$AI$823,24,FALSE)))","v":{"$error":"#REF!"}},{"$f":"IF($A268=\"\",\"\",IF(OR(VLOOKUP($A268,Economática!$A$3:$AI$823,25,FALSE)=0,VLOOKUP($A268,Economática!$A$3:$AI$823,25,FALSE)=\"-\"),1/0,VLOOKUP($A268,Economática!$A$3:$AI$823,25,FALSE)))","v":{"$error":"#REF!"}},{"$f":"IF($A268=\"\",\"\",IF(ISERROR((F268+VLOOKUP($A268,Economática!$A$3:$AI$823,26,FALSE))/Y268),(F268+VLOOKUP($A268,Economática!$A$3:$AI$823,26,FALSE))/Y268,(F268+VLOOKUP($A268,Economática!$A$3:$AI$823,26,FALSE))/Y268))","v":{"$error":"#REF!"}},{"$f":"IF($A268=\"\",\"\",IF(OR(-VLOOKUP($A268,Economática!$A$3:$AI$823,27,FALSE)=0,-VLOOKUP($A268,Economática!$A$3:$AI$823,27,FALSE)=\"-\"),1/0,-VLOOKUP($A268,Economática!$A$3:$AI$823,27,FALSE)))","v":{"$error":"#REF!"}},{"$error":"#REF!"},{"$f":"IF($A268=\"\",\"\",IF(OR(VLOOKUP($A268,Economática!$A$3:$AI$823,28,FALSE)=0,VLOOKUP($A268,Economática!$A$3:$AI$823,28,FALSE)=\"-\"),1/0,VLOOKUP($A268,Economática!$A$3:$AI$823,28,FALSE)))","v":{"$error":"#REF!"}},{"$f":"IF($A268=\"\",\"\",IF(OR(VLOOKUP($A268,Economática!$A$3:$AI$823,29,FALSE)=0,VLOOKUP($A268,Economática!$A$3:$AI$823,29,FALSE)=\"-\"),1/0,VLOOKUP($A268,Economática!$A$3:$AI$823,29,FALSE)))","v":{"$error":"#REF!"}},{"$f":"IF($A268=\"\",\"\",IF(OR(VLOOKUP($A268,Economática!$A$3:$AI$823,30,FALSE)/E268=0,VLOOKUP($A268,Economática!$A$3:$AI$823,30,FALSE)/E268=\"-\",VLOOKUP($A268,Economática!$A$3:$AI$823,30,FALSE)/E268<33.33%,VLOOKUP($A268,Economática!$A$3:$AI$823,30,FALSE)/E268>100%),1/0,VLOOKUP($A268,Economática!$A$3:$AI$823,30,FALSE)/E268))","v":{"$error":"#REF!"}},{"$error":"#REF!"},{"$f":"IF($A268=\"\",\"\",IF(OR(VLOOKUP($A268,Economática!$A$3:$AI$823,25,FALSE)=0,VLOOKUP($A268,Economática!$A$3:$AI$823,25,FALSE)=\"-\"),1/0,VLOOKUP($A268,Economática!$A$3:$AI$823,25,FALSE)))","v":{"$error":"#REF!"}},{"$f":"CONCATENATE(Economática!#REF!,\" \",Economática!#REF!)","v":{"$error":"#REF!"}}]
[{"$f":"IF(Economática!AG247=\"\",\"\",Economática!AG247)","v":"PLAS3"},{"$f":"IF($A269=\"\",\"\",VLOOKUP(VLOOKUP($A269,Economática!$A$3:$AI$823,6,FALSE),Correção!$B$16:$C$36,2,FALSE))","v":"Veículos e peças"},{"$f":"IF(Economática!B247=\"\",\"\",Economática!B247)","v":"Plascar Part"},{"$f":"IF($A269=\"\",\"\",IF(OR(VLOOKUP($A269,Economática!$A$3:$AI$823,8,FALSE)=0,VLOOKUP($A269,Economática!$A$3:$AI$823,8,FALSE)=\"-\"),1/0,VLOOKUP($A269,Economática!$A$3:$AI$823,8,FALSE)))","v":7.6},{"$f":"IF(A269=\"\",\"\",IF(ISERROR(VLOOKUP(A269,Correção!$B$2:$G$13,9,FALSE)),VLOOKUP($A269,Economática!$A$3:$AI$823,9,FALSE),VLOOKUP(A269,Correção!$B$2:$G$13,9,FALSE)))","v":12.425000000000001},{"$f":"IF($A269=\"\",\"\",Economática!G247)","v":94.43},{"$f":"IF($A269=\"\",\"\",IF(OR(VLOOKUP($A269,Economática!$A$3:$AI$823,10,FALSE)=0,VLOOKUP($A269,Economática!$A$3:$AI$823,10,FALSE)=\"-\"),1/0,VLOOKUP($A269,Economática!$A$3:$AI$823,10,FALSE)))","v":-514.30999999999995},{"$f":"IF($A269=\"\",\"\",IF(OR(VLOOKUP($A269,Economática!$A$3:$AI$823,11,FALSE)=0,VLOOKUP($A269,Economática!$A$3:$AI$823,11,FALSE)=\"-\"),1/0,VLOOKUP($A269,Economática!$A$3:$AI$823,11,FALSE)))","v":389.18},{"$f":"IF($A269=\"\",\"\",IF(OR(VLOOKUP($A269,Economática!$A$3:$AI$823,12,FALSE)=0,VLOOKUP($A269,Economática!$A$3:$AI$823,12,FALSE)=\"-\"),1/0,VLOOKUP($A269,Economática!$A$3:$AI$823,12,FALSE)))","v":346.82},{"$f":"IF($A269=\"\",\"\",IF(OR(VLOOKUP($A269,Economática!$A$3:$AI$823,13,FALSE)=0,VLOOKUP($A269,Economática!$A$3:$AI$823,13,FALSE)=\"-\"),1/0,VLOOKUP($A269,Economática!$A$3:$AI$823,13,FALSE)))","v":-71.95},{"$f":"IF($A269=\"\",\"\",IF(OR(VLOOKUP($A269,Economática!$A$3:$AI$823,14,FALSE)=0,VLOOKUP($A269,Economática!$A$3:$AI$823,14,FALSE)=\"-\"),1/0,VLOOKUP($A269,Economática!$A$3:$AI$823,14,FALSE)))","v":-39.43},{"$f":"IF($A269=\"\",\"\",IF(OR(VLOOKUP($A269,Economática!$A$3:$AI$823,15,FALSE)=0,VLOOKUP($A269,Economática!$A$3:$AI$823,15,FALSE)=\"-\"),1/0,VLOOKUP($A269,Economática!$A$3:$AI$823,15,FALSE)))","v":-75.680000000000007},{"$f":"IF($A269=\"\",\"\",IF(OR(VLOOKUP($A269,Economática!$A$3:$AI$823,16,FALSE)=0,VLOOKUP($A269,Economática!$A$3:$AI$823,16,FALSE)=\"-\"),1/0,VLOOKUP($A269,Economática!$A$3:$AI$823,16,FALSE)))","v":-141.46},{"$f":"IF($A269=\"\",\"\",IF(OR(VLOOKUP($A269,Economática!$A$3:$AI$823,17,FALSE)=0,VLOOKUP($A269,Economática!$A$3:$AI$823,17,FALSE)=\"-\"),1/0,VLOOKUP($A269,Economática!$A$3:$AI$823,17,FALSE)))","v":-257.25},{"$f":"IF($A269=\"\",\"\",IF(OR(VLOOKUP($A269,Economática!$A$3:$AI$823,18,FALSE)=0,VLOOKUP($A269,Economática!$A$3:$AI$823,18,FALSE)=\"-\"),1/0,VLOOKUP($A269,Economática!$A$3:$AI$823,18,FALSE)))","v":-71.95},{"$f":"IF($A269=\"\",\"\",IF(OR(VLOOKUP($A269,Economática!$A$3:$AI$823,19,FALSE)=0,VLOOKUP($A269,Economática!$A$3:$AI$823,19,FALSE)=\"-\"),1/0,VLOOKUP($A269,Economática!$A$3:$AI$823,19,FALSE)))","v":-257.25},{"$f":"IF($A269=\"\",\"\",VLOOKUP($A269,Economática!$A$3:$AI$823,20,FALSE)/E269)","v":-20.704225352112676},{"$error":"#DIV/0!"},{"$error":"#DIV/0!"},{"$error":"#DIV/0!"},{"$f":"IF($A269=\"\",\"\",IF(OR(VLOOKUP($A269,Economática!$A$3:$AI$823,21,FALSE)/100=0,VLOOKUP($A269,Economática!$A$3:$AI$823,21,FALSE)/100=\"-\"),1/0,VLOOKUP($A269,Economática!$A$3:$AI$823,21,FALSE)/100))","v":{"$error":"#VALUE!"}},{"$f":"IF($A269=\"\",\"\",IF(OR(VLOOKUP($A269,Economática!$A$3:$AI$823,22,FALSE)/100=0,VLOOKUP($A269,Economática!$A$3:$AI$823,22,FALSE)/100=\"-\"),1/0,VLOOKUP($A269,Economática!$A$3:$AI$823,22,FALSE)/100))","v":-0.86272199999999999},{"$f":"IF($A269=\"\",\"\",IF(OR(VLOOKUP($A269,Economática!$A$3:$AI$823,23,FALSE)=0,VLOOKUP($A269,Economática!$A$3:$AI$823,23,FALSE)=\"-\"),1/0,VLOOKUP($A269,Economática!$A$3:$AI$823,23,FALSE)))","v":0.7},{"$f":"IF($A269=\"\",\"\",IF(OR(VLOOKUP($A269,Economática!$A$3:$AI$823,24,FALSE)=0,VLOOKUP($A269,Economática!$A$3:$AI$823,24,FALSE)=\"-\"),1/0,VLOOKUP($A269,Economática!$A$3:$AI$823,24,FALSE)))","v":-85.3},{"$f":"IF($A269=\"\",\"\",IF(OR(VLOOKUP($A269,Economática!$A$3:$AI$823,25,FALSE)=0,VLOOKUP($A269,Economática!$A$3:$AI$823,25,FALSE)=\"-\"),1/0,VLOOKUP($A269,Economática!$A$3:$AI$823,25,FALSE)))","v":-85.3},{"$f":"IF($A269=\"\",\"\",IF(ISERROR((F269+VLOOKUP($A269,Economática!$A$3:$AI$823,26,FALSE))/Y269),(F269+VLOOKUP($A269,Economática!$A$3:$AI$823,26,FALSE))/Y269,(F269+VLOOKUP($A269,Economática!$A$3:$AI$823,26,FALSE))/Y269))","v":-6.3143259085580317},{"$f":"IF($A269=\"\",\"\",IF(OR(-VLOOKUP($A269,Economática!$A$3:$AI$823,27,FALSE)=0,-VLOOKUP($A269,Economática!$A$3:$AI$823,27,FALSE)=\"-\"),1/0,-VLOOKUP($A269,Economática!$A$3:$AI$823,27,FALSE)))","v":{"$error":"#DIV/0!"}},{"$error":"#DIV/0!"},{"$f":"IF($A269=\"\",\"\",IF(OR(VLOOKUP($A269,Economática!$A$3:$AI$823,28,FALSE)=0,VLOOKUP($A269,Economática!$A$3:$AI$823,28,FALSE)=\"-\"),1/0,VLOOKUP($A269,Economática!$A$3:$AI$823,28,FALSE)))","v":-17.5},{"$f":"IF($A269=\"\",\"\",IF(OR(VLOOKUP($A269,Economática!$A$3:$AI$823,29,FALSE)=0,VLOOKUP($A269,Economática!$A$3:$AI$823,29,FALSE)=\"-\"),1/0,VLOOKUP($A269,Economática!$A$3:$AI$823,29,FALSE)))","v":31},{"$f":"IF($A269=\"\",\"\",IF(OR(VLOOKUP($A269,Economática!$A$3:$AI$823,30,FALSE)/E269=0,VLOOKUP($A269,Economática!$A$3:$AI$823,30,FALSE)/E269=\"-\",VLOOKUP($A269,Economática!$A$3:$AI$823,30,FALSE)/E269<33.33%,VLOOKUP($A269,Economática!$A$3:$AI$823,30,FALSE)/E269>100%),1/0,VLOOKUP($A269,Economática!$A$3:$AI$823,30,FALSE)/E269))","v":0.40241448692152915},"PLAS3",{"$f":"IF($A269=\"\",\"\",IF(OR(VLOOKUP($A269,Economática!$A$3:$AI$823,25,FALSE)=0,VLOOKUP($A269,Economática!$A$3:$AI$823,25,FALSE)=\"-\"),1/0,VLOOKUP($A269,Economática!$A$3:$AI$823,25,FALSE)))","v":-85.3},{"$f":"CONCATENATE(Economática!B247,\" \",Economática!C247)","v":"Plascar Part ON"}]
[{"$f":"IF(Economática!AG248=\"\",\"\",Economática!AG248)","v":"RCSL4"},{"$f":"IF($A270=\"\",\"\",VLOOKUP(VLOOKUP($A270,Economática!$A$3:$AI$823,6,FALSE),Correção!$B$16:$C$36,2,FALSE))","v":"Veículos e peças"},{"$f":"IF(Economática!B248=\"\",\"\",Economática!B248)","v":"Recrusul"},{"$f":"IF($A270=\"\",\"\",IF(OR(VLOOKUP($A270,Economática!$A$3:$AI$823,8,FALSE)=0,VLOOKUP($A270,Economática!$A$3:$AI$823,8,FALSE)=\"-\"),1/0,VLOOKUP($A270,Economática!$A$3:$AI$823,8,FALSE)))","v":1.51},{"$f":"IF(A270=\"\",\"\",IF(ISERROR(VLOOKUP(A270,Correção!$B$2:$G$13,9,FALSE)),VLOOKUP($A270,Economática!$A$3:$AI$823,9,FALSE),VLOOKUP(A270,Correção!$B$2:$G$13,9,FALSE)))","v":5.0810000000000004},{"$f":"IF($A270=\"\",\"\",Economática!G248)","v":9.02},{"$f":"IF($A270=\"\",\"\",IF(OR(VLOOKUP($A270,Economática!$A$3:$AI$823,10,FALSE)=0,VLOOKUP($A270,Economática!$A$3:$AI$823,10,FALSE)=\"-\"),1/0,VLOOKUP($A270,Economática!$A$3:$AI$823,10,FALSE)))","v":-63.73},{"$f":"IF($A270=\"\",\"\",IF(OR(VLOOKUP($A270,Economática!$A$3:$AI$823,11,FALSE)=0,VLOOKUP($A270,Economática!$A$3:$AI$823,11,FALSE)=\"-\"),1/0,VLOOKUP($A270,Economática!$A$3:$AI$823,11,FALSE)))","v":0.04},{"$f":"IF($A270=\"\",\"\",IF(OR(VLOOKUP($A270,Economática!$A$3:$AI$823,12,FALSE)=0,VLOOKUP($A270,Economática!$A$3:$AI$823,12,FALSE)=\"-\"),1/0,VLOOKUP($A270,Economática!$A$3:$AI$823,12,FALSE)))","v":4.46},{"$f":"IF($A270=\"\",\"\",IF(OR(VLOOKUP($A270,Economática!$A$3:$AI$823,13,FALSE)=0,VLOOKUP($A270,Economática!$A$3:$AI$823,13,FALSE)=\"-\"),1/0,VLOOKUP($A270,Economática!$A$3:$AI$823,13,FALSE)))","v":-36.9},{"$f":"IF($A270=\"\",\"\",IF(OR(VLOOKUP($A270,Economática!$A$3:$AI$823,14,FALSE)=0,VLOOKUP($A270,Economática!$A$3:$AI$823,14,FALSE)=\"-\"),1/0,VLOOKUP($A270,Economática!$A$3:$AI$823,14,FALSE)))","v":-4.16},{"$f":"IF($A270=\"\",\"\",IF(OR(VLOOKUP($A270,Economática!$A$3:$AI$823,15,FALSE)=0,VLOOKUP($A270,Economática!$A$3:$AI$823,15,FALSE)=\"-\"),1/0,VLOOKUP($A270,Economática!$A$3:$AI$823,15,FALSE)))","v":-7.62},{"$f":"IF($A270=\"\",\"\",IF(OR(VLOOKUP($A270,Economática!$A$3:$AI$823,16,FALSE)=0,VLOOKUP($A270,Economática!$A$3:$AI$823,16,FALSE)=\"-\"),1/0,VLOOKUP($A270,Economática!$A$3:$AI$823,16,FALSE)))","v":-10.69},{"$f":"IF($A270=\"\",\"\",IF(OR(VLOOKUP($A270,Economática!$A$3:$AI$823,17,FALSE)=0,VLOOKUP($A270,Economática!$A$3:$AI$823,17,FALSE)=\"-\"),1/0,VLOOKUP($A270,Economática!$A$3:$AI$823,17,FALSE)))","v":-13.05},{"$f":"IF($A270=\"\",\"\",IF(OR(VLOOKUP($A270,Economática!$A$3:$AI$823,18,FALSE)=0,VLOOKUP($A270,Economática!$A$3:$AI$823,18,FALSE)=\"-\"),1/0,VLOOKUP($A270,Economática!$A$3:$AI$823,18,FALSE)))","v":-36.9},{"$f":"IF($A270=\"\",\"\",IF(OR(VLOOKUP($A270,Economática!$A$3:$AI$823,19,FALSE)=0,VLOOKUP($A270,Economática!$A$3:$AI$823,19,FALSE)=\"-\"),1/0,VLOOKUP($A270,Economática!$A$3:$AI$823,19,FALSE)))","v":-13.05},{"$f":"IF($A270=\"\",\"\",VLOOKUP($A270,Economática!$A$3:$AI$823,20,FALSE)/E270)","v":-2.5683920488092893},{"$error":"#DIV/0!"},{"$error":"#DIV/0!"},{"$error":"#DIV/0!"},{"$f":"IF($A270=\"\",\"\",IF(OR(VLOOKUP($A270,Economática!$A$3:$AI$823,21,FALSE)/100=0,VLOOKUP($A270,Economática!$A$3:$AI$823,21,FALSE)/100=\"-\"),1/0,VLOOKUP($A270,Economática!$A$3:$AI$823,21,FALSE)/100))","v":{"$error":"#VALUE!"}},{"$f":"IF($A270=\"\",\"\",IF(OR(VLOOKUP($A270,Economática!$A$3:$AI$823,22,FALSE)/100=0,VLOOKUP($A270,Economática!$A$3:$AI$823,22,FALSE)/100=\"-\"),1/0,VLOOKUP($A270,Economática!$A$3:$AI$823,22,FALSE)/100))","v":4.4393000000000002E-2},{"$f":"IF($A270=\"\",\"\",IF(OR(VLOOKUP($A270,Economática!$A$3:$AI$823,23,FALSE)=0,VLOOKUP($A270,Economática!$A$3:$AI$823,23,FALSE)=\"-\"),1/0,VLOOKUP($A270,Economática!$A$3:$AI$823,23,FALSE)))","v":-26},{"$f":"IF($A270=\"\",\"\",IF(OR(VLOOKUP($A270,Economática!$A$3:$AI$823,24,FALSE)=0,VLOOKUP($A270,Economática!$A$3:$AI$823,24,FALSE)=\"-\"),1/0,VLOOKUP($A270,Economática!$A$3:$AI$823,24,FALSE)))","v":-4.7},{"$f":"IF($A270=\"\",\"\",IF(OR(VLOOKUP($A270,Economática!$A$3:$AI$823,25,FALSE)=0,VLOOKUP($A270,Economática!$A$3:$AI$823,25,FALSE)=\"-\"),1/0,VLOOKUP($A270,Economática!$A$3:$AI$823,25,FALSE)))","v":-4.7},{"$f":"IF($A270=\"\",\"\",IF(ISERROR((F270+VLOOKUP($A270,Economática!$A$3:$AI$823,26,FALSE))/Y270),(F270+VLOOKUP($A270,Economática!$A$3:$AI$823,26,FALSE))/Y270,(F270+VLOOKUP($A270,Economática!$A$3:$AI$823,26,FALSE))/Y270))","v":-1.31531914893617},{"$f":"IF($A270=\"\",\"\",IF(OR(-VLOOKUP($A270,Economática!$A$3:$AI$823,27,FALSE)=0,-VLOOKUP($A270,Economática!$A$3:$AI$823,27,FALSE)=\"-\"),1/0,-VLOOKUP($A270,Economática!$A$3:$AI$823,27,FALSE)))","v":{"$error":"#DIV/0!"}},{"$error":"#DIV/0!"},{"$f":"IF($A270=\"\",\"\",IF(OR(VLOOKUP($A270,Economática!$A$3:$AI$823,28,FALSE)=0,VLOOKUP($A270,Economática!$A$3:$AI$823,28,FALSE)=\"-\"),1/0,VLOOKUP($A270,Economática!$A$3:$AI$823,28,FALSE)))","v":-4.4000000000000004},{"$f":"IF($A270=\"\",\"\",IF(OR(VLOOKUP($A270,Economática!$A$3:$AI$823,29,FALSE)=0,VLOOKUP($A270,Economática!$A$3:$AI$823,29,FALSE)=\"-\"),1/0,VLOOKUP($A270,Economática!$A$3:$AI$823,29,FALSE)))","v":-3.8},{"$f":"IF($A270=\"\",\"\",IF(OR(VLOOKUP($A270,Economática!$A$3:$AI$823,30,FALSE)/E270=0,VLOOKUP($A270,Economática!$A$3:$AI$823,30,FALSE)/E270=\"-\",VLOOKUP($A270,Economática!$A$3:$AI$823,30,FALSE)/E270<33.33%,VLOOKUP($A270,Economática!$A$3:$AI$823,30,FALSE)/E270>100%),1/0,VLOOKUP($A270,Economática!$A$3:$AI$823,30,FALSE)/E270))","v":0.33457980712458174},"RCSL4",{"$f":"IF($A270=\"\",\"\",IF(OR(VLOOKUP($A270,Economática!$A$3:$AI$823,25,FALSE)=0,VLOOKUP($A270,Economática!$A$3:$AI$823,25,FALSE)=\"-\"),1/0,VLOOKUP($A270,Economática!$A$3:$AI$823,25,FALSE)))","v":-4.7},{"$f":"CONCATENATE(Economática!B248,\" \",Economática!C248)","v":"Recrusul PN"}]
[{"$f":"IF(Economática!AG249=\"\",\"\",Economática!AG249)","v":""},{"$f":"IF($A271=\"\",\"\",VLOOKUP(VLOOKUP($A271,Economática!$A$3:$AI$823,6,FALSE),Correção!$B$16:$C$36,2,FALSE))","v":""},{"$f":"IF(Economática!B249=\"\",\"\",Economática!B249)","v":""},{"$f":"IF($A271=\"\",\"\",IF(OR(VLOOKUP($A271,Economática!$A$3:$AI$823,8,FALSE)=0,VLOOKUP($A271,Economática!$A$3:$AI$823,8,FALSE)=\"-\"),1/0,VLOOKUP($A271,Economática!$A$3:$AI$823,8,FALSE)))","v":""},{"$f":"IF(A271=\"\",\"\",IF(ISERROR(VLOOKUP(A271,Correção!$B$2:$G$13,9,FALSE)),VLOOKUP($A271,Economática!$A$3:$AI$823,9,FALSE),VLOOKUP(A271,Correção!$B$2:$G$13,9,FALSE)))","v":""},{"$f":"IF($A271=\"\",\"\",Economática!G249)","v":""},{"$f":"IF($A271=\"\",\"\",IF(OR(VLOOKUP($A271,Economática!$A$3:$AI$823,10,FALSE)=0,VLOOKUP($A271,Economática!$A$3:$AI$823,10,FALSE)=\"-\"),1/0,VLOOKUP($A271,Economática!$A$3:$AI$823,10,FALSE)))","v":""},{"$f":"IF($A271=\"\",\"\",IF(OR(VLOOKUP($A271,Economática!$A$3:$AI$823,11,FALSE)=0,VLOOKUP($A271,Economática!$A$3:$AI$823,11,FALSE)=\"-\"),1/0,VLOOKUP($A271,Economática!$A$3:$AI$823,11,FALSE)))","v":""},{"$f":"IF($A271=\"\",\"\",IF(OR(VLOOKUP($A271,Economática!$A$3:$AI$823,12,FALSE)=0,VLOOKUP($A271,Economática!$A$3:$AI$823,12,FALSE)=\"-\"),1/0,VLOOKUP($A271,Economática!$A$3:$AI$823,12,FALSE)))","v":""},{"$f":"IF($A271=\"\",\"\",IF(OR(VLOOKUP($A271,Economática!$A$3:$AI$823,13,FALSE)=0,VLOOKUP($A271,Economática!$A$3:$AI$823,13,FALSE)=\"-\"),1/0,VLOOKUP($A271,Economática!$A$3:$AI$823,13,FALSE)))","v":""},{"$f":"IF($A271=\"\",\"\",IF(OR(VLOOKUP($A271,Economática!$A$3:$AI$823,14,FALSE)=0,VLOOKUP($A271,Economática!$A$3:$AI$823,14,FALSE)=\"-\"),1/0,VLOOKUP($A271,Economática!$A$3:$AI$823,14,FALSE)))","v":""},{"$f":"IF($A271=\"\",\"\",IF(OR(VLOOKUP($A271,Economática!$A$3:$AI$823,15,FALSE)=0,VLOOKUP($A271,Economática!$A$3:$AI$823,15,FALSE)=\"-\"),1/0,VLOOKUP($A271,Economática!$A$3:$AI$823,15,FALSE)))","v":""},{"$f":"IF($A271=\"\",\"\",IF(OR(VLOOKUP($A271,Economática!$A$3:$AI$823,16,FALSE)=0,VLOOKUP($A271,Economática!$A$3:$AI$823,16,FALSE)=\"-\"),1/0,VLOOKUP($A271,Economática!$A$3:$AI$823,16,FALSE)))","v":""},{"$f":"IF($A271=\"\",\"\",IF(OR(VLOOKUP($A271,Economática!$A$3:$AI$823,17,FALSE)=0,VLOOKUP($A271,Economática!$A$3:$AI$823,17,FALSE)=\"-\"),1/0,VLOOKUP($A271,Economática!$A$3:$AI$823,17,FALSE)))","v":""},{"$f":"IF($A271=\"\",\"\",IF(OR(VLOOKUP($A271,Economática!$A$3:$AI$823,18,FALSE)=0,VLOOKUP($A271,Economática!$A$3:$AI$823,18,FALSE)=\"-\"),1/0,VLOOKUP($A271,Economática!$A$3:$AI$823,18,FALSE)))","v":""},{"$f":"IF($A271=\"\",\"\",IF(OR(VLOOKUP($A271,Economática!$A$3:$AI$823,19,FALSE)=0,VLOOKUP($A271,Economática!$A$3:$AI$823,19,FALSE)=\"-\"),1/0,VLOOKUP($A271,Economática!$A$3:$AI$823,19,FALSE)))","v":""},{"$f":"IF($A271=\"\",\"\",VLOOKUP($A271,Economática!$A$3:$AI$823,20,FALSE)/E271)","v":""},"","","",{"$f":"IF($A271=\"\",\"\",IF(OR(VLOOKUP($A271,Economática!$A$3:$AI$823,21,FALSE)/100=0,VLOOKUP($A271,Economática!$A$3:$AI$823,21,FALSE)/100=\"-\"),1/0,VLOOKUP($A271,Economática!$A$3:$AI$823,21,FALSE)/100))","v":""},{"$f":"IF($A271=\"\",\"\",IF(OR(VLOOKUP($A271,Economática!$A$3:$AI$823,22,FALSE)/100=0,VLOOKUP($A271,Economática!$A$3:$AI$823,22,FALSE)/100=\"-\"),1/0,VLOOKUP($A271,Economática!$A$3:$AI$823,22,FALSE)/100))","v":""},{"$f":"IF($A271=\"\",\"\",IF(OR(VLOOKUP($A271,Economática!$A$3:$AI$823,23,FALSE)=0,VLOOKUP($A271,Economática!$A$3:$AI$823,23,FALSE)=\"-\"),1/0,VLOOKUP($A271,Economática!$A$3:$AI$823,23,FALSE)))","v":""},{"$f":"IF($A271=\"\",\"\",IF(OR(VLOOKUP($A271,Economática!$A$3:$AI$823,24,FALSE)=0,VLOOKUP($A271,Economática!$A$3:$AI$823,24,FALSE)=\"-\"),1/0,VLOOKUP($A271,Economática!$A$3:$AI$823,24,FALSE)))","v":""},{"$f":"IF($A271=\"\",\"\",IF(OR(VLOOKUP($A271,Economática!$A$3:$AI$823,25,FALSE)=0,VLOOKUP($A271,Economática!$A$3:$AI$823,25,FALSE)=\"-\"),1/0,VLOOKUP($A271,Economática!$A$3:$AI$823,25,FALSE)))","v":""},{"$f":"IF($A271=\"\",\"\",IF(ISERROR((F271+VLOOKUP($A271,Economática!$A$3:$AI$823,26,FALSE))/Y271),(F271+VLOOKUP($A271,Economática!$A$3:$AI$823,26,FALSE))/Y271,(F271+VLOOKUP($A271,Economática!$A$3:$AI$823,26,FALSE))/Y271))","v":""},{"$f":"IF($A271=\"\",\"\",IF(OR(-VLOOKUP($A271,Economática!$A$3:$AI$823,27,FALSE)=0,-VLOOKUP($A271,Economática!$A$3:$AI$823,27,FALSE)=\"-\"),1/0,-VLOOKUP($A271,Economática!$A$3:$AI$823,27,FALSE)))","v":""},"",{"$f":"IF($A271=\"\",\"\",IF(OR(VLOOKUP($A271,Economática!$A$3:$AI$823,28,FALSE)=0,VLOOKUP($A271,Economática!$A$3:$AI$823,28,FALSE)=\"-\"),1/0,VLOOKUP($A271,Economática!$A$3:$AI$823,28,FALSE)))","v":""},{"$f":"IF($A271=\"\",\"\",IF(OR(VLOOKUP($A271,Economática!$A$3:$AI$823,29,FALSE)=0,VLOOKUP($A271,Economática!$A$3:$AI$823,29,FALSE)=\"-\"),1/0,VLOOKUP($A271,Economática!$A$3:$AI$823,29,FALSE)))","v":""},{"$f":"IF($A271=\"\",\"\",IF(OR(VLOOKUP($A271,Economática!$A$3:$AI$823,30,FALSE)/E271=0,VLOOKUP($A271,Economática!$A$3:$AI$823,30,FALSE)/E271=\"-\",VLOOKUP($A271,Economática!$A$3:$AI$823,30,FALSE)/E271<33.33%,VLOOKUP($A271,Economática!$A$3:$AI$823,30,FALSE)/E271>100%),1/0,VLOOKUP($A271,Economática!$A$3:$AI$823,30,FALSE)/E271))","v":""},"",{"$f":"IF($A271=\"\",\"\",IF(OR(VLOOKUP($A271,Economática!$A$3:$AI$823,25,FALSE)=0,VLOOKUP($A271,Economática!$A$3:$AI$823,25,FALSE)=\"-\"),1/0,VLOOKUP($A271,Economática!$A$3:$AI$823,25,FALSE)))","v":""},{"$f":"CONCATENATE(Economática!B249,\" \",Economática!C249)","v":" "}]
[{"$f":"IF(Economática!AG250=\"\",\"\",Economática!AG250)","v":""},{"$f":"IF($A272=\"\",\"\",VLOOKUP(VLOOKUP($A272,Economática!$A$3:$AI$823,6,FALSE),Correção!$B$16:$C$36,2,FALSE))","v":""},{"$f":"IF(Economática!B250=\"\",\"\",Economática!B250)","v":""},{"$f":"IF($A272=\"\",\"\",IF(OR(VLOOKUP($A272,Economática!$A$3:$AI$823,8,FALSE)=0,VLOOKUP($A272,Economática!$A$3:$AI$823,8,FALSE)=\"-\"),1/0,VLOOKUP($A272,Economática!$A$3:$AI$823,8,FALSE)))","v":""},{"$f":"IF(A272=\"\",\"\",IF(ISERROR(VLOOKUP(A272,Correção!$B$2:$G$13,9,FALSE)),VLOOKUP($A272,Economática!$A$3:$AI$823,9,FALSE),VLOOKUP(A272,Correção!$B$2:$G$13,9,FALSE)))","v":""},{"$f":"IF($A272=\"\",\"\",Economática!G250)","v":""},{"$f":"IF($A272=\"\",\"\",IF(OR(VLOOKUP($A272,Economática!$A$3:$AI$823,10,FALSE)=0,VLOOKUP($A272,Economática!$A$3:$AI$823,10,FALSE)=\"-\"),1/0,VLOOKUP($A272,Economática!$A$3:$AI$823,10,FALSE)))","v":""},{"$f":"IF($A272=\"\",\"\",IF(OR(VLOOKUP($A272,Economática!$A$3:$AI$823,11,FALSE)=0,VLOOKUP($A272,Economática!$A$3:$AI$823,11,FALSE)=\"-\"),1/0,VLOOKUP($A272,Economática!$A$3:$AI$823,11,FALSE)))","v":""},{"$f":"IF($A272=\"\",\"\",IF(OR(VLOOKUP($A272,Economática!$A$3:$AI$823,12,FALSE)=0,VLOOKUP($A272,Economática!$A$3:$AI$823,12,FALSE)=\"-\"),1/0,VLOOKUP($A272,Economática!$A$3:$AI$823,12,FALSE)))","v":""},{"$f":"IF($A272=\"\",\"\",IF(OR(VLOOKUP($A272,Economática!$A$3:$AI$823,13,FALSE)=0,VLOOKUP($A272,Economática!$A$3:$AI$823,13,FALSE)=\"-\"),1/0,VLOOKUP($A272,Economática!$A$3:$AI$823,13,FALSE)))","v":""},{"$f":"IF($A272=\"\",\"\",IF(OR(VLOOKUP($A272,Economática!$A$3:$AI$823,14,FALSE)=0,VLOOKUP($A272,Economática!$A$3:$AI$823,14,FALSE)=\"-\"),1/0,VLOOKUP($A272,Economática!$A$3:$AI$823,14,FALSE)))","v":""},{"$f":"IF($A272=\"\",\"\",IF(OR(VLOOKUP($A272,Economática!$A$3:$AI$823,15,FALSE)=0,VLOOKUP($A272,Economática!$A$3:$AI$823,15,FALSE)=\"-\"),1/0,VLOOKUP($A272,Economática!$A$3:$AI$823,15,FALSE)))","v":""},{"$f":"IF($A272=\"\",\"\",IF(OR(VLOOKUP($A272,Economática!$A$3:$AI$823,16,FALSE)=0,VLOOKUP($A272,Economática!$A$3:$AI$823,16,FALSE)=\"-\"),1/0,VLOOKUP($A272,Economática!$A$3:$AI$823,16,FALSE)))","v":""},{"$f":"IF($A272=\"\",\"\",IF(OR(VLOOKUP($A272,Economática!$A$3:$AI$823,17,FALSE)=0,VLOOKUP($A272,Economática!$A$3:$AI$823,17,FALSE)=\"-\"),1/0,VLOOKUP($A272,Economática!$A$3:$AI$823,17,FALSE)))","v":""},{"$f":"IF($A272=\"\",\"\",IF(OR(VLOOKUP($A272,Economática!$A$3:$AI$823,18,FALSE)=0,VLOOKUP($A272,Economática!$A$3:$AI$823,18,FALSE)=\"-\"),1/0,VLOOKUP($A272,Economática!$A$3:$AI$823,18,FALSE)))","v":""},{"$f":"IF($A272=\"\",\"\",IF(OR(VLOOKUP($A272,Economática!$A$3:$AI$823,19,FALSE)=0,VLOOKUP($A272,Economática!$A$3:$AI$823,19,FALSE)=\"-\"),1/0,VLOOKUP($A272,Economática!$A$3:$AI$823,19,FALSE)))","v":""},{"$f":"IF($A272=\"\",\"\",VLOOKUP($A272,Economática!$A$3:$AI$823,20,FALSE)/E272)","v":""},"","","",{"$f":"IF($A272=\"\",\"\",IF(OR(VLOOKUP($A272,Economática!$A$3:$AI$823,21,FALSE)/100=0,VLOOKUP($A272,Economática!$A$3:$AI$823,21,FALSE)/100=\"-\"),1/0,VLOOKUP($A272,Economática!$A$3:$AI$823,21,FALSE)/100))","v":""},{"$f":"IF($A272=\"\",\"\",IF(OR(VLOOKUP($A272,Economática!$A$3:$AI$823,22,FALSE)/100=0,VLOOKUP($A272,Economática!$A$3:$AI$823,22,FALSE)/100=\"-\"),1/0,VLOOKUP($A272,Economática!$A$3:$AI$823,22,FALSE)/100))","v":""},{"$f":"IF($A272=\"\",\"\",IF(OR(VLOOKUP($A272,Economática!$A$3:$AI$823,23,FALSE)=0,VLOOKUP($A272,Economática!$A$3:$AI$823,23,FALSE)=\"-\"),1/0,VLOOKUP($A272,Economática!$A$3:$AI$823,23,FALSE)))","v":""},{"$f":"IF($A272=\"\",\"\",IF(OR(VLOOKUP($A272,Economática!$A$3:$AI$823,24,FALSE)=0,VLOOKUP($A272,Economática!$A$3:$AI$823,24,FALSE)=\"-\"),1/0,VLOOKUP($A272,Economática!$A$3:$AI$823,24,FALSE)))","v":""},{"$f":"IF($A272=\"\",\"\",IF(OR(VLOOKUP($A272,Economática!$A$3:$AI$823,25,FALSE)=0,VLOOKUP($A272,Economática!$A$3:$AI$823,25,FALSE)=\"-\"),1/0,VLOOKUP($A272,Economática!$A$3:$AI$823,25,FALSE)))","v":""},{"$f":"IF($A272=\"\",\"\",IF(ISERROR((F272+VLOOKUP($A272,Economática!$A$3:$AI$823,26,FALSE))/Y272),(F272+VLOOKUP($A272,Economática!$A$3:$AI$823,26,FALSE))/Y272,(F272+VLOOKUP($A272,Economática!$A$3:$AI$823,26,FALSE))/Y272))","v":""},{"$f":"IF($A272=\"\",\"\",IF(OR(-VLOOKUP($A272,Economática!$A$3:$AI$823,27,FALSE)=0,-VLOOKUP($A272,Economática!$A$3:$AI$823,27,FALSE)=\"-\"),1/0,-VLOOKUP($A272,Economática!$A$3:$AI$823,27,FALSE)))","v":""},"",{"$f":"IF($A272=\"\",\"\",IF(OR(VLOOKUP($A272,Economática!$A$3:$AI$823,28,FALSE)=0,VLOOKUP($A272,Economática!$A$3:$AI$823,28,FALSE)=\"-\"),1/0,VLOOKUP($A272,Economática!$A$3:$AI$823,28,FALSE)))","v":""},{"$f":"IF($A272=\"\",\"\",IF(OR(VLOOKUP($A272,Economática!$A$3:$AI$823,29,FALSE)=0,VLOOKUP($A272,Economática!$A$3:$AI$823,29,FALSE)=\"-\"),1/0,VLOOKUP($A272,Economática!$A$3:$AI$823,29,FALSE)))","v":""},{"$f":"IF($A272=\"\",\"\",IF(OR(VLOOKUP($A272,Economática!$A$3:$AI$823,30,FALSE)/E272=0,VLOOKUP($A272,Economática!$A$3:$AI$823,30,FALSE)/E272=\"-\",VLOOKUP($A272,Economática!$A$3:$AI$823,30,FALSE)/E272<33.33%,VLOOKUP($A272,Economática!$A$3:$AI$823,30,FALSE)/E272>100%),1/0,VLOOKUP($A272,Economática!$A$3:$AI$823,30,FALSE)/E272))","v":""},"",{"$f":"IF($A272=\"\",\"\",IF(OR(VLOOKUP($A272,Economática!$A$3:$AI$823,25,FALSE)=0,VLOOKUP($A272,Economática!$A$3:$AI$823,25,FALSE)=\"-\"),1/0,VLOOKUP($A272,Economática!$A$3:$AI$823,25,FALSE)))","v":""},{"$f":"CONCATENATE(Economática!B250,\" \",Economática!C250)","v":" "}]
[{"$f":"IF(Economática!AG251=\"\",\"\",Economática!AG251)","v":""},{"$f":"IF($A273=\"\",\"\",VLOOKUP(VLOOKUP($A273,Economática!$A$3:$AI$823,6,FALSE),Correção!$B$16:$C$36,2,FALSE))","v":""},{"$f":"IF(Economática!B251=\"\",\"\",Economática!B251)","v":""},{"$f":"IF($A273=\"\",\"\",IF(OR(VLOOKUP($A273,Economática!$A$3:$AI$823,8,FALSE)=0,VLOOKUP($A273,Economática!$A$3:$AI$823,8,FALSE)=\"-\"),1/0,VLOOKUP($A273,Economática!$A$3:$AI$823,8,FALSE)))","v":""},{"$f":"IF(A273=\"\",\"\",IF(ISERROR(VLOOKUP(A273,Correção!$B$2:$G$13,9,FALSE)),VLOOKUP($A273,Economática!$A$3:$AI$823,9,FALSE),VLOOKUP(A273,Correção!$B$2:$G$13,9,FALSE)))","v":""},{"$f":"IF($A273=\"\",\"\",Economática!G251)","v":""},{"$f":"IF($A273=\"\",\"\",IF(OR(VLOOKUP($A273,Economática!$A$3:$AI$823,10,FALSE)=0,VLOOKUP($A273,Economática!$A$3:$AI$823,10,FALSE)=\"-\"),1/0,VLOOKUP($A273,Economática!$A$3:$AI$823,10,FALSE)))","v":""},{"$f":"IF($A273=\"\",\"\",IF(OR(VLOOKUP($A273,Economática!$A$3:$AI$823,11,FALSE)=0,VLOOKUP($A273,Economática!$A$3:$AI$823,11,FALSE)=\"-\"),1/0,VLOOKUP($A273,Economática!$A$3:$AI$823,11,FALSE)))","v":""},{"$f":"IF($A273=\"\",\"\",IF(OR(VLOOKUP($A273,Economática!$A$3:$AI$823,12,FALSE)=0,VLOOKUP($A273,Economática!$A$3:$AI$823,12,FALSE)=\"-\"),1/0,VLOOKUP($A273,Economática!$A$3:$AI$823,12,FALSE)))","v":""},{"$f":"IF($A273=\"\",\"\",IF(OR(VLOOKUP($A273,Economática!$A$3:$AI$823,13,FALSE)=0,VLOOKUP($A273,Economática!$A$3:$AI$823,13,FALSE)=\"-\"),1/0,VLOOKUP($A273,Economática!$A$3:$AI$823,13,FALSE)))","v":""},{"$f":"IF($A273=\"\",\"\",IF(OR(VLOOKUP($A273,Economática!$A$3:$AI$823,14,FALSE)=0,VLOOKUP($A273,Economática!$A$3:$AI$823,14,FALSE)=\"-\"),1/0,VLOOKUP($A273,Economática!$A$3:$AI$823,14,FALSE)))","v":""},{"$f":"IF($A273=\"\",\"\",IF(OR(VLOOKUP($A273,Economática!$A$3:$AI$823,15,FALSE)=0,VLOOKUP($A273,Economática!$A$3:$AI$823,15,FALSE)=\"-\"),1/0,VLOOKUP($A273,Economática!$A$3:$AI$823,15,FALSE)))","v":""},{"$f":"IF($A273=\"\",\"\",IF(OR(VLOOKUP($A273,Economática!$A$3:$AI$823,16,FALSE)=0,VLOOKUP($A273,Economática!$A$3:$AI$823,16,FALSE)=\"-\"),1/0,VLOOKUP($A273,Economática!$A$3:$AI$823,16,FALSE)))","v":""},{"$f":"IF($A273=\"\",\"\",IF(OR(VLOOKUP($A273,Economática!$A$3:$AI$823,17,FALSE)=0,VLOOKUP($A273,Economática!$A$3:$AI$823,17,FALSE)=\"-\"),1/0,VLOOKUP($A273,Economática!$A$3:$AI$823,17,FALSE)))","v":""},{"$f":"IF($A273=\"\",\"\",IF(OR(VLOOKUP($A273,Economática!$A$3:$AI$823,18,FALSE)=0,VLOOKUP($A273,Economática!$A$3:$AI$823,18,FALSE)=\"-\"),1/0,VLOOKUP($A273,Economática!$A$3:$AI$823,18,FALSE)))","v":""},{"$f":"IF($A273=\"\",\"\",IF(OR(VLOOKUP($A273,Economática!$A$3:$AI$823,19,FALSE)=0,VLOOKUP($A273,Economática!$A$3:$AI$823,19,FALSE)=\"-\"),1/0,VLOOKUP($A273,Economática!$A$3:$AI$823,19,FALSE)))","v":""},{"$f":"IF($A273=\"\",\"\",VLOOKUP($A273,Economática!$A$3:$AI$823,20,FALSE)/E273)","v":""},"","","",{"$f":"IF($A273=\"\",\"\",IF(OR(VLOOKUP($A273,Economática!$A$3:$AI$823,21,FALSE)/100=0,VLOOKUP($A273,Economática!$A$3:$AI$823,21,FALSE)/100=\"-\"),1/0,VLOOKUP($A273,Economática!$A$3:$AI$823,21,FALSE)/100))","v":""},{"$f":"IF($A273=\"\",\"\",IF(OR(VLOOKUP($A273,Economática!$A$3:$AI$823,22,FALSE)/100=0,VLOOKUP($A273,Economática!$A$3:$AI$823,22,FALSE)/100=\"-\"),1/0,VLOOKUP($A273,Economática!$A$3:$AI$823,22,FALSE)/100))","v":""},{"$f":"IF($A273=\"\",\"\",IF(OR(VLOOKUP($A273,Economática!$A$3:$AI$823,23,FALSE)=0,VLOOKUP($A273,Economática!$A$3:$AI$823,23,FALSE)=\"-\"),1/0,VLOOKUP($A273,Economática!$A$3:$AI$823,23,FALSE)))","v":""},{"$f":"IF($A273=\"\",\"\",IF(OR(VLOOKUP($A273,Economática!$A$3:$AI$823,24,FALSE)=0,VLOOKUP($A273,Economática!$A$3:$AI$823,24,FALSE)=\"-\"),1/0,VLOOKUP($A273,Economática!$A$3:$AI$823,24,FALSE)))","v":""},{"$f":"IF($A273=\"\",\"\",IF(OR(VLOOKUP($A273,Economática!$A$3:$AI$823,25,FALSE)=0,VLOOKUP($A273,Economática!$A$3:$AI$823,25,FALSE)=\"-\"),1/0,VLOOKUP($A273,Economática!$A$3:$AI$823,25,FALSE)))","v":""},{"$f":"IF($A273=\"\",\"\",IF(ISERROR((F273+VLOOKUP($A273,Economática!$A$3:$AI$823,26,FALSE))/Y273),(F273+VLOOKUP($A273,Economática!$A$3:$AI$823,26,FALSE))/Y273,(F273+VLOOKUP($A273,Economática!$A$3:$AI$823,26,FALSE))/Y273))","v":""},{"$f":"IF($A273=\"\",\"\",IF(OR(-VLOOKUP($A273,Economática!$A$3:$AI$823,27,FALSE)=0,-VLOOKUP($A273,Economática!$A$3:$AI$823,27,FALSE)=\"-\"),1/0,-VLOOKUP($A273,Economática!$A$3:$AI$823,27,FALSE)))","v":""},"",{"$f":"IF($A273=\"\",\"\",IF(OR(VLOOKUP($A273,Economática!$A$3:$AI$823,28,FALSE)=0,VLOOKUP($A273,Economática!$A$3:$AI$823,28,FALSE)=\"-\"),1/0,VLOOKUP($A273,Economática!$A$3:$AI$823,28,FALSE)))","v":""},{"$f":"IF($A273=\"\",\"\",IF(OR(VLOOKUP($A273,Economática!$A$3:$AI$823,29,FALSE)=0,VLOOKUP($A273,Economática!$A$3:$AI$823,29,FALSE)=\"-\"),1/0,VLOOKUP($A273,Economática!$A$3:$AI$823,29,FALSE)))","v":""},{"$f":"IF($A273=\"\",\"\",IF(OR(VLOOKUP($A273,Economática!$A$3:$AI$823,30,FALSE)/E273=0,VLOOKUP($A273,Economática!$A$3:$AI$823,30,FALSE)/E273=\"-\",VLOOKUP($A273,Economática!$A$3:$AI$823,30,FALSE)/E273<33.33%,VLOOKUP($A273,Economática!$A$3:$AI$823,30,FALSE)/E273>100%),1/0,VLOOKUP($A273,Economática!$A$3:$AI$823,30,FALSE)/E273))","v":""},"",{"$f":"IF($A273=\"\",\"\",IF(OR(VLOOKUP($A273,Economática!$A$3:$AI$823,25,FALSE)=0,VLOOKUP($A273,Economática!$A$3:$AI$823,25,FALSE)=\"-\"),1/0,VLOOKUP($A273,Economática!$A$3:$AI$823,25,FALSE)))","v":""},{"$f":"CONCATENATE(Economática!B251,\" \",Economática!C251)","v":" "}]
[{"$f":"IF(Economática!AG252=\"\",\"\",Economática!AG252)","v":""},{"$f":"IF($A274=\"\",\"\",VLOOKUP(VLOOKUP($A274,Economática!$A$3:$AI$823,6,FALSE),Correção!$B$16:$C$36,2,FALSE))","v":""},{"$f":"IF(Economática!B252=\"\",\"\",Economática!B252)","v":""},{"$f":"IF($A274=\"\",\"\",IF(OR(VLOOKUP($A274,Economática!$A$3:$AI$823,8,FALSE)=0,VLOOKUP($A274,Economática!$A$3:$AI$823,8,FALSE)=\"-\"),1/0,VLOOKUP($A274,Economática!$A$3:$AI$823,8,FALSE)))","v":""},{"$f":"IF(A274=\"\",\"\",IF(ISERROR(VLOOKUP(A274,Correção!$B$2:$G$13,9,FALSE)),VLOOKUP($A274,Economática!$A$3:$AI$823,9,FALSE),VLOOKUP(A274,Correção!$B$2:$G$13,9,FALSE)))","v":""},{"$f":"IF($A274=\"\",\"\",Economática!G252)","v":""},{"$f":"IF($A274=\"\",\"\",IF(OR(VLOOKUP($A274,Economática!$A$3:$AI$823,10,FALSE)=0,VLOOKUP($A274,Economática!$A$3:$AI$823,10,FALSE)=\"-\"),1/0,VLOOKUP($A274,Economática!$A$3:$AI$823,10,FALSE)))","v":""},{"$f":"IF($A274=\"\",\"\",IF(OR(VLOOKUP($A274,Economática!$A$3:$AI$823,11,FALSE)=0,VLOOKUP($A274,Economática!$A$3:$AI$823,11,FALSE)=\"-\"),1/0,VLOOKUP($A274,Economática!$A$3:$AI$823,11,FALSE)))","v":""},{"$f":"IF($A274=\"\",\"\",IF(OR(VLOOKUP($A274,Economática!$A$3:$AI$823,12,FALSE)=0,VLOOKUP($A274,Economática!$A$3:$AI$823,12,FALSE)=\"-\"),1/0,VLOOKUP($A274,Economática!$A$3:$AI$823,12,FALSE)))","v":""},{"$f":"IF($A274=\"\",\"\",IF(OR(VLOOKUP($A274,Economática!$A$3:$AI$823,13,FALSE)=0,VLOOKUP($A274,Economática!$A$3:$AI$823,13,FALSE)=\"-\"),1/0,VLOOKUP($A274,Economática!$A$3:$AI$823,13,FALSE)))","v":""},{"$f":"IF($A274=\"\",\"\",IF(OR(VLOOKUP($A274,Economática!$A$3:$AI$823,14,FALSE)=0,VLOOKUP($A274,Economática!$A$3:$AI$823,14,FALSE)=\"-\"),1/0,VLOOKUP($A274,Economática!$A$3:$AI$823,14,FALSE)))","v":""},{"$f":"IF($A274=\"\",\"\",IF(OR(VLOOKUP($A274,Economática!$A$3:$AI$823,15,FALSE)=0,VLOOKUP($A274,Economática!$A$3:$AI$823,15,FALSE)=\"-\"),1/0,VLOOKUP($A274,Economática!$A$3:$AI$823,15,FALSE)))","v":""},{"$f":"IF($A274=\"\",\"\",IF(OR(VLOOKUP($A274,Economática!$A$3:$AI$823,16,FALSE)=0,VLOOKUP($A274,Economática!$A$3:$AI$823,16,FALSE)=\"-\"),1/0,VLOOKUP($A274,Economática!$A$3:$AI$823,16,FALSE)))","v":""},{"$f":"IF($A274=\"\",\"\",IF(OR(VLOOKUP($A274,Economática!$A$3:$AI$823,17,FALSE)=0,VLOOKUP($A274,Economática!$A$3:$AI$823,17,FALSE)=\"-\"),1/0,VLOOKUP($A274,Economática!$A$3:$AI$823,17,FALSE)))","v":""},{"$f":"IF($A274=\"\",\"\",IF(OR(VLOOKUP($A274,Economática!$A$3:$AI$823,18,FALSE)=0,VLOOKUP($A274,Economática!$A$3:$AI$823,18,FALSE)=\"-\"),1/0,VLOOKUP($A274,Economática!$A$3:$AI$823,18,FALSE)))","v":""},{"$f":"IF($A274=\"\",\"\",IF(OR(VLOOKUP($A274,Economática!$A$3:$AI$823,19,FALSE)=0,VLOOKUP($A274,Economática!$A$3:$AI$823,19,FALSE)=\"-\"),1/0,VLOOKUP($A274,Economática!$A$3:$AI$823,19,FALSE)))","v":""},{"$f":"IF($A274=\"\",\"\",VLOOKUP($A274,Economática!$A$3:$AI$823,20,FALSE)/E274)","v":""},"","","",{"$f":"IF($A274=\"\",\"\",IF(OR(VLOOKUP($A274,Economática!$A$3:$AI$823,21,FALSE)/100=0,VLOOKUP($A274,Economática!$A$3:$AI$823,21,FALSE)/100=\"-\"),1/0,VLOOKUP($A274,Economática!$A$3:$AI$823,21,FALSE)/100))","v":""},{"$f":"IF($A274=\"\",\"\",IF(OR(VLOOKUP($A274,Economática!$A$3:$AI$823,22,FALSE)/100=0,VLOOKUP($A274,Economática!$A$3:$AI$823,22,FALSE)/100=\"-\"),1/0,VLOOKUP($A274,Economática!$A$3:$AI$823,22,FALSE)/100))","v":""},{"$f":"IF($A274=\"\",\"\",IF(OR(VLOOKUP($A274,Economática!$A$3:$AI$823,23,FALSE)=0,VLOOKUP($A274,Economática!$A$3:$AI$823,23,FALSE)=\"-\"),1/0,VLOOKUP($A274,Economática!$A$3:$AI$823,23,FALSE)))","v":""},{"$f":"IF($A274=\"\",\"\",IF(OR(VLOOKUP($A274,Economática!$A$3:$AI$823,24,FALSE)=0,VLOOKUP($A274,Economática!$A$3:$AI$823,24,FALSE)=\"-\"),1/0,VLOOKUP($A274,Economática!$A$3:$AI$823,24,FALSE)))","v":""},{"$f":"IF($A274=\"\",\"\",IF(OR(VLOOKUP($A274,Economática!$A$3:$AI$823,25,FALSE)=0,VLOOKUP($A274,Economática!$A$3:$AI$823,25,FALSE)=\"-\"),1/0,VLOOKUP($A274,Economática!$A$3:$AI$823,25,FALSE)))","v":""},{"$f":"IF($A274=\"\",\"\",IF(ISERROR((F274+VLOOKUP($A274,Economática!$A$3:$AI$823,26,FALSE))/Y274),(F274+VLOOKUP($A274,Economática!$A$3:$AI$823,26,FALSE))/Y274,(F274+VLOOKUP($A274,Economática!$A$3:$AI$823,26,FALSE))/Y274))","v":""},{"$f":"IF($A274=\"\",\"\",IF(OR(-VLOOKUP($A274,Economática!$A$3:$AI$823,27,FALSE)=0,-VLOOKUP($A274,Economática!$A$3:$AI$823,27,FALSE)=\"-\"),1/0,-VLOOKUP($A274,Economática!$A$3:$AI$823,27,FALSE)))","v":""},"",{"$f":"IF($A274=\"\",\"\",IF(OR(VLOOKUP($A274,Economática!$A$3:$AI$823,28,FALSE)=0,VLOOKUP($A274,Economática!$A$3:$AI$823,28,FALSE)=\"-\"),1/0,VLOOKUP($A274,Economática!$A$3:$AI$823,28,FALSE)))","v":""},{"$f":"IF($A274=\"\",\"\",IF(OR(VLOOKUP($A274,Economática!$A$3:$AI$823,29,FALSE)=0,VLOOKUP($A274,Economática!$A$3:$AI$823,29,FALSE)=\"-\"),1/0,VLOOKUP($A274,Economática!$A$3:$AI$823,29,FALSE)))","v":""},{"$f":"IF($A274=\"\",\"\",IF(OR(VLOOKUP($A274,Economática!$A$3:$AI$823,30,FALSE)/E274=0,VLOOKUP($A274,Economática!$A$3:$AI$823,30,FALSE)/E274=\"-\",VLOOKUP($A274,Economática!$A$3:$AI$823,30,FALSE)/E274<33.33%,VLOOKUP($A274,Economática!$A$3:$AI$823,30,FALSE)/E274>100%),1/0,VLOOKUP($A274,Economática!$A$3:$AI$823,30,FALSE)/E274))","v":""},"",{"$f":"IF($A274=\"\",\"\",IF(OR(VLOOKUP($A274,Economática!$A$3:$AI$823,25,FALSE)=0,VLOOKUP($A274,Economática!$A$3:$AI$823,25,FALSE)=\"-\"),1/0,VLOOKUP($A274,Economática!$A$3:$AI$823,25,FALSE)))","v":""},{"$f":"CONCATENATE(Economática!B252,\" \",Economática!C252)","v":" "}]
[{"$f":"IF(Economática!AG253=\"\",\"\",Economática!AG253)","v":""},{"$f":"IF($A275=\"\",\"\",VLOOKUP(VLOOKUP($A275,Economática!$A$3:$AI$823,6,FALSE),Correção!$B$16:$C$36,2,FALSE))","v":""},{"$f":"IF(Economática!B253=\"\",\"\",Economática!B253)","v":""},{"$f":"IF($A275=\"\",\"\",IF(OR(VLOOKUP($A275,Economática!$A$3:$AI$823,8,FALSE)=0,VLOOKUP($A275,Economática!$A$3:$AI$823,8,FALSE)=\"-\"),1/0,VLOOKUP($A275,Economática!$A$3:$AI$823,8,FALSE)))","v":""},{"$f":"IF(A275=\"\",\"\",IF(ISERROR(VLOOKUP(A275,Correção!$B$2:$G$13,9,FALSE)),VLOOKUP($A275,Economática!$A$3:$AI$823,9,FALSE),VLOOKUP(A275,Correção!$B$2:$G$13,9,FALSE)))","v":""},{"$f":"IF($A275=\"\",\"\",Economática!G253)","v":""},{"$f":"IF($A275=\"\",\"\",IF(OR(VLOOKUP($A275,Economática!$A$3:$AI$823,10,FALSE)=0,VLOOKUP($A275,Economática!$A$3:$AI$823,10,FALSE)=\"-\"),1/0,VLOOKUP($A275,Economática!$A$3:$AI$823,10,FALSE)))","v":""},{"$f":"IF($A275=\"\",\"\",IF(OR(VLOOKUP($A275,Economática!$A$3:$AI$823,11,FALSE)=0,VLOOKUP($A275,Economática!$A$3:$AI$823,11,FALSE)=\"-\"),1/0,VLOOKUP($A275,Economática!$A$3:$AI$823,11,FALSE)))","v":""},{"$f":"IF($A275=\"\",\"\",IF(OR(VLOOKUP($A275,Economática!$A$3:$AI$823,12,FALSE)=0,VLOOKUP($A275,Economática!$A$3:$AI$823,12,FALSE)=\"-\"),1/0,VLOOKUP($A275,Economática!$A$3:$AI$823,12,FALSE)))","v":""},{"$f":"IF($A275=\"\",\"\",IF(OR(VLOOKUP($A275,Economática!$A$3:$AI$823,13,FALSE)=0,VLOOKUP($A275,Economática!$A$3:$AI$823,13,FALSE)=\"-\"),1/0,VLOOKUP($A275,Economática!$A$3:$AI$823,13,FALSE)))","v":""},{"$f":"IF($A275=\"\",\"\",IF(OR(VLOOKUP($A275,Economática!$A$3:$AI$823,14,FALSE)=0,VLOOKUP($A275,Economática!$A$3:$AI$823,14,FALSE)=\"-\"),1/0,VLOOKUP($A275,Economática!$A$3:$AI$823,14,FALSE)))","v":""},{"$f":"IF($A275=\"\",\"\",IF(OR(VLOOKUP($A275,Economática!$A$3:$AI$823,15,FALSE)=0,VLOOKUP($A275,Economática!$A$3:$AI$823,15,FALSE)=\"-\"),1/0,VLOOKUP($A275,Economática!$A$3:$AI$823,15,FALSE)))","v":""},{"$f":"IF($A275=\"\",\"\",IF(OR(VLOOKUP($A275,Economática!$A$3:$AI$823,16,FALSE)=0,VLOOKUP($A275,Economática!$A$3:$AI$823,16,FALSE)=\"-\"),1/0,VLOOKUP($A275,Economática!$A$3:$AI$823,16,FALSE)))","v":""},{"$f":"IF($A275=\"\",\"\",IF(OR(VLOOKUP($A275,Economática!$A$3:$AI$823,17,FALSE)=0,VLOOKUP($A275,Economática!$A$3:$AI$823,17,FALSE)=\"-\"),1/0,VLOOKUP($A275,Economática!$A$3:$AI$823,17,FALSE)))","v":""},{"$f":"IF($A275=\"\",\"\",IF(OR(VLOOKUP($A275,Economática!$A$3:$AI$823,18,FALSE)=0,VLOOKUP($A275,Economática!$A$3:$AI$823,18,FALSE)=\"-\"),1/0,VLOOKUP($A275,Economática!$A$3:$AI$823,18,FALSE)))","v":""},{"$f":"IF($A275=\"\",\"\",IF(OR(VLOOKUP($A275,Economática!$A$3:$AI$823,19,FALSE)=0,VLOOKUP($A275,Economática!$A$3:$AI$823,19,FALSE)=\"-\"),1/0,VLOOKUP($A275,Economática!$A$3:$AI$823,19,FALSE)))","v":""},{"$f":"IF($A275=\"\",\"\",VLOOKUP($A275,Economática!$A$3:$AI$823,20,FALSE)/E275)","v":""},"","","",{"$f":"IF($A275=\"\",\"\",IF(OR(VLOOKUP($A275,Economática!$A$3:$AI$823,21,FALSE)/100=0,VLOOKUP($A275,Economática!$A$3:$AI$823,21,FALSE)/100=\"-\"),1/0,VLOOKUP($A275,Economática!$A$3:$AI$823,21,FALSE)/100))","v":""},{"$f":"IF($A275=\"\",\"\",IF(OR(VLOOKUP($A275,Economática!$A$3:$AI$823,22,FALSE)/100=0,VLOOKUP($A275,Economática!$A$3:$AI$823,22,FALSE)/100=\"-\"),1/0,VLOOKUP($A275,Economática!$A$3:$AI$823,22,FALSE)/100))","v":""},{"$f":"IF($A275=\"\",\"\",IF(OR(VLOOKUP($A275,Economática!$A$3:$AI$823,23,FALSE)=0,VLOOKUP($A275,Economática!$A$3:$AI$823,23,FALSE)=\"-\"),1/0,VLOOKUP($A275,Economática!$A$3:$AI$823,23,FALSE)))","v":""},{"$f":"IF($A275=\"\",\"\",IF(OR(VLOOKUP($A275,Economática!$A$3:$AI$823,24,FALSE)=0,VLOOKUP($A275,Economática!$A$3:$AI$823,24,FALSE)=\"-\"),1/0,VLOOKUP($A275,Economática!$A$3:$AI$823,24,FALSE)))","v":""},{"$f":"IF($A275=\"\",\"\",IF(OR(VLOOKUP($A275,Economática!$A$3:$AI$823,25,FALSE)=0,VLOOKUP($A275,Economática!$A$3:$AI$823,25,FALSE)=\"-\"),1/0,VLOOKUP($A275,Economática!$A$3:$AI$823,25,FALSE)))","v":""},{"$f":"IF($A275=\"\",\"\",IF(ISERROR((F275+VLOOKUP($A275,Economática!$A$3:$AI$823,26,FALSE))/Y275),(F275+VLOOKUP($A275,Economática!$A$3:$AI$823,26,FALSE))/Y275,(F275+VLOOKUP($A275,Economática!$A$3:$AI$823,26,FALSE))/Y275))","v":""},{"$f":"IF($A275=\"\",\"\",IF(OR(-VLOOKUP($A275,Economática!$A$3:$AI$823,27,FALSE)=0,-VLOOKUP($A275,Economática!$A$3:$AI$823,27,FALSE)=\"-\"),1/0,-VLOOKUP($A275,Economática!$A$3:$AI$823,27,FALSE)))","v":""},"",{"$f":"IF($A275=\"\",\"\",IF(OR(VLOOKUP($A275,Economática!$A$3:$AI$823,28,FALSE)=0,VLOOKUP($A275,Economática!$A$3:$AI$823,28,FALSE)=\"-\"),1/0,VLOOKUP($A275,Economática!$A$3:$AI$823,28,FALSE)))","v":""},{"$f":"IF($A275=\"\",\"\",IF(OR(VLOOKUP($A275,Economática!$A$3:$AI$823,29,FALSE)=0,VLOOKUP($A275,Economática!$A$3:$AI$823,29,FALSE)=\"-\"),1/0,VLOOKUP($A275,Economática!$A$3:$AI$823,29,FALSE)))","v":""},{"$f":"IF($A275=\"\",\"\",IF(OR(VLOOKUP($A275,Economática!$A$3:$AI$823,30,FALSE)/E275=0,VLOOKUP($A275,Economática!$A$3:$AI$823,30,FALSE)/E275=\"-\",VLOOKUP($A275,Economática!$A$3:$AI$823,30,FALSE)/E275<33.33%,VLOOKUP($A275,Economática!$A$3:$AI$823,30,FALSE)/E275>100%),1/0,VLOOKUP($A275,Economática!$A$3:$AI$823,30,FALSE)/E275))","v":""},"",{"$f":"IF($A275=\"\",\"\",IF(OR(VLOOKUP($A275,Economática!$A$3:$AI$823,25,FALSE)=0,VLOOKUP($A275,Economática!$A$3:$AI$823,25,FALSE)=\"-\"),1/0,VLOOKUP($A275,Economática!$A$3:$AI$823,25,FALSE)))","v":""},{"$f":"CONCATENATE(Economática!B253,\" \",Economática!C253)","v":" "}]
[{"$f":"IF(Economática!AG254=\"\",\"\",Economática!AG254)","v":""},{"$f":"IF($A276=\"\",\"\",VLOOKUP(VLOOKUP($A276,Economática!$A$3:$AI$823,6,FALSE),Correção!$B$16:$C$36,2,FALSE))","v":""},{"$f":"IF(Economática!B254=\"\",\"\",Economática!B254)","v":""},{"$f":"IF($A276=\"\",\"\",IF(OR(VLOOKUP($A276,Economática!$A$3:$AI$823,8,FALSE)=0,VLOOKUP($A276,Economática!$A$3:$AI$823,8,FALSE)=\"-\"),1/0,VLOOKUP($A276,Economática!$A$3:$AI$823,8,FALSE)))","v":""},{"$f":"IF(A276=\"\",\"\",IF(ISERROR(VLOOKUP(A276,Correção!$B$2:$G$13,9,FALSE)),VLOOKUP($A276,Economática!$A$3:$AI$823,9,FALSE),VLOOKUP(A276,Correção!$B$2:$G$13,9,FALSE)))","v":""},{"$f":"IF($A276=\"\",\"\",Economática!G254)","v":""},{"$f":"IF($A276=\"\",\"\",IF(OR(VLOOKUP($A276,Economática!$A$3:$AI$823,10,FALSE)=0,VLOOKUP($A276,Economática!$A$3:$AI$823,10,FALSE)=\"-\"),1/0,VLOOKUP($A276,Economática!$A$3:$AI$823,10,FALSE)))","v":""},{"$f":"IF($A276=\"\",\"\",IF(OR(VLOOKUP($A276,Economática!$A$3:$AI$823,11,FALSE)=0,VLOOKUP($A276,Economática!$A$3:$AI$823,11,FALSE)=\"-\"),1/0,VLOOKUP($A276,Economática!$A$3:$AI$823,11,FALSE)))","v":""},{"$f":"IF($A276=\"\",\"\",IF(OR(VLOOKUP($A276,Economática!$A$3:$AI$823,12,FALSE)=0,VLOOKUP($A276,Economática!$A$3:$AI$823,12,FALSE)=\"-\"),1/0,VLOOKUP($A276,Economática!$A$3:$AI$823,12,FALSE)))","v":""},{"$f":"IF($A276=\"\",\"\",IF(OR(VLOOKUP($A276,Economática!$A$3:$AI$823,13,FALSE)=0,VLOOKUP($A276,Economática!$A$3:$AI$823,13,FALSE)=\"-\"),1/0,VLOOKUP($A276,Economática!$A$3:$AI$823,13,FALSE)))","v":""},{"$f":"IF($A276=\"\",\"\",IF(OR(VLOOKUP($A276,Economática!$A$3:$AI$823,14,FALSE)=0,VLOOKUP($A276,Economática!$A$3:$AI$823,14,FALSE)=\"-\"),1/0,VLOOKUP($A276,Economática!$A$3:$AI$823,14,FALSE)))","v":""},{"$f":"IF($A276=\"\",\"\",IF(OR(VLOOKUP($A276,Economática!$A$3:$AI$823,15,FALSE)=0,VLOOKUP($A276,Economática!$A$3:$AI$823,15,FALSE)=\"-\"),1/0,VLOOKUP($A276,Economática!$A$3:$AI$823,15,FALSE)))","v":""},{"$f":"IF($A276=\"\",\"\",IF(OR(VLOOKUP($A276,Economática!$A$3:$AI$823,16,FALSE)=0,VLOOKUP($A276,Economática!$A$3:$AI$823,16,FALSE)=\"-\"),1/0,VLOOKUP($A276,Economática!$A$3:$AI$823,16,FALSE)))","v":""},{"$f":"IF($A276=\"\",\"\",IF(OR(VLOOKUP($A276,Economática!$A$3:$AI$823,17,FALSE)=0,VLOOKUP($A276,Economática!$A$3:$AI$823,17,FALSE)=\"-\"),1/0,VLOOKUP($A276,Economática!$A$3:$AI$823,17,FALSE)))","v":""},{"$f":"IF($A276=\"\",\"\",IF(OR(VLOOKUP($A276,Economática!$A$3:$AI$823,18,FALSE)=0,VLOOKUP($A276,Economática!$A$3:$AI$823,18,FALSE)=\"-\"),1/0,VLOOKUP($A276,Economática!$A$3:$AI$823,18,FALSE)))","v":""},{"$f":"IF($A276=\"\",\"\",IF(OR(VLOOKUP($A276,Economática!$A$3:$AI$823,19,FALSE)=0,VLOOKUP($A276,Economática!$A$3:$AI$823,19,FALSE)=\"-\"),1/0,VLOOKUP($A276,Economática!$A$3:$AI$823,19,FALSE)))","v":""},{"$f":"IF($A276=\"\",\"\",VLOOKUP($A276,Economática!$A$3:$AI$823,20,FALSE)/E276)","v":""},"","","",{"$f":"IF($A276=\"\",\"\",IF(OR(VLOOKUP($A276,Economática!$A$3:$AI$823,21,FALSE)/100=0,VLOOKUP($A276,Economática!$A$3:$AI$823,21,FALSE)/100=\"-\"),1/0,VLOOKUP($A276,Economática!$A$3:$AI$823,21,FALSE)/100))","v":""},{"$f":"IF($A276=\"\",\"\",IF(OR(VLOOKUP($A276,Economática!$A$3:$AI$823,22,FALSE)/100=0,VLOOKUP($A276,Economática!$A$3:$AI$823,22,FALSE)/100=\"-\"),1/0,VLOOKUP($A276,Economática!$A$3:$AI$823,22,FALSE)/100))","v":""},{"$f":"IF($A276=\"\",\"\",IF(OR(VLOOKUP($A276,Economática!$A$3:$AI$823,23,FALSE)=0,VLOOKUP($A276,Economática!$A$3:$AI$823,23,FALSE)=\"-\"),1/0,VLOOKUP($A276,Economática!$A$3:$AI$823,23,FALSE)))","v":""},{"$f":"IF($A276=\"\",\"\",IF(OR(VLOOKUP($A276,Economática!$A$3:$AI$823,24,FALSE)=0,VLOOKUP($A276,Economática!$A$3:$AI$823,24,FALSE)=\"-\"),1/0,VLOOKUP($A276,Economática!$A$3:$AI$823,24,FALSE)))","v":""},{"$f":"IF($A276=\"\",\"\",IF(OR(VLOOKUP($A276,Economática!$A$3:$AI$823,25,FALSE)=0,VLOOKUP($A276,Economática!$A$3:$AI$823,25,FALSE)=\"-\"),1/0,VLOOKUP($A276,Economática!$A$3:$AI$823,25,FALSE)))","v":""},{"$f":"IF($A276=\"\",\"\",IF(ISERROR((F276+VLOOKUP($A276,Economática!$A$3:$AI$823,26,FALSE))/Y276),(F276+VLOOKUP($A276,Economática!$A$3:$AI$823,26,FALSE))/Y276,(F276+VLOOKUP($A276,Economática!$A$3:$AI$823,26,FALSE))/Y276))","v":""},{"$f":"IF($A276=\"\",\"\",IF(OR(-VLOOKUP($A276,Economática!$A$3:$AI$823,27,FALSE)=0,-VLOOKUP($A276,Economática!$A$3:$AI$823,27,FALSE)=\"-\"),1/0,-VLOOKUP($A276,Economática!$A$3:$AI$823,27,FALSE)))","v":""},"",{"$f":"IF($A276=\"\",\"\",IF(OR(VLOOKUP($A276,Economática!$A$3:$AI$823,28,FALSE)=0,VLOOKUP($A276,Economática!$A$3:$AI$823,28,FALSE)=\"-\"),1/0,VLOOKUP($A276,Economática!$A$3:$AI$823,28,FALSE)))","v":""},{"$f":"IF($A276=\"\",\"\",IF(OR(VLOOKUP($A276,Economática!$A$3:$AI$823,29,FALSE)=0,VLOOKUP($A276,Economática!$A$3:$AI$823,29,FALSE)=\"-\"),1/0,VLOOKUP($A276,Economática!$A$3:$AI$823,29,FALSE)))","v":""},{"$f":"IF($A276=\"\",\"\",IF(OR(VLOOKUP($A276,Economática!$A$3:$AI$823,30,FALSE)/E276=0,VLOOKUP($A276,Economática!$A$3:$AI$823,30,FALSE)/E276=\"-\",VLOOKUP($A276,Economática!$A$3:$AI$823,30,FALSE)/E276<33.33%,VLOOKUP($A276,Economática!$A$3:$AI$823,30,FALSE)/E276>100%),1/0,VLOOKUP($A276,Economática!$A$3:$AI$823,30,FALSE)/E276))","v":""},"",{"$f":"IF($A276=\"\",\"\",IF(OR(VLOOKUP($A276,Economática!$A$3:$AI$823,25,FALSE)=0,VLOOKUP($A276,Economática!$A$3:$AI$823,25,FALSE)=\"-\"),1/0,VLOOKUP($A276,Economática!$A$3:$AI$823,25,FALSE)))","v":""},{"$f":"CONCATENATE(Economática!B254,\" \",Economática!C254)","v":" "}]
[{"$f":"IF(Economática!AG255=\"\",\"\",Economática!AG255)","v":""},{"$f":"IF($A277=\"\",\"\",VLOOKUP(VLOOKUP($A277,Economática!$A$3:$AI$823,6,FALSE),Correção!$B$16:$C$36,2,FALSE))","v":""},{"$f":"IF(Economática!B255=\"\",\"\",Economática!B255)","v":""},{"$f":"IF($A277=\"\",\"\",IF(OR(VLOOKUP($A277,Economática!$A$3:$AI$823,8,FALSE)=0,VLOOKUP($A277,Economática!$A$3:$AI$823,8,FALSE)=\"-\"),1/0,VLOOKUP($A277,Economática!$A$3:$AI$823,8,FALSE)))","v":""},{"$f":"IF(A277=\"\",\"\",IF(ISERROR(VLOOKUP(A277,Correção!$B$2:$G$13,9,FALSE)),VLOOKUP($A277,Economática!$A$3:$AI$823,9,FALSE),VLOOKUP(A277,Correção!$B$2:$G$13,9,FALSE)))","v":""},{"$f":"IF($A277=\"\",\"\",Economática!G255)","v":""},{"$f":"IF($A277=\"\",\"\",IF(OR(VLOOKUP($A277,Economática!$A$3:$AI$823,10,FALSE)=0,VLOOKUP($A277,Economática!$A$3:$AI$823,10,FALSE)=\"-\"),1/0,VLOOKUP($A277,Economática!$A$3:$AI$823,10,FALSE)))","v":""},{"$f":"IF($A277=\"\",\"\",IF(OR(VLOOKUP($A277,Economática!$A$3:$AI$823,11,FALSE)=0,VLOOKUP($A277,Economática!$A$3:$AI$823,11,FALSE)=\"-\"),1/0,VLOOKUP($A277,Economática!$A$3:$AI$823,11,FALSE)))","v":""},{"$f":"IF($A277=\"\",\"\",IF(OR(VLOOKUP($A277,Economática!$A$3:$AI$823,12,FALSE)=0,VLOOKUP($A277,Economática!$A$3:$AI$823,12,FALSE)=\"-\"),1/0,VLOOKUP($A277,Economática!$A$3:$AI$823,12,FALSE)))","v":""},{"$f":"IF($A277=\"\",\"\",IF(OR(VLOOKUP($A277,Economática!$A$3:$AI$823,13,FALSE)=0,VLOOKUP($A277,Economática!$A$3:$AI$823,13,FALSE)=\"-\"),1/0,VLOOKUP($A277,Economática!$A$3:$AI$823,13,FALSE)))","v":""},{"$f":"IF($A277=\"\",\"\",IF(OR(VLOOKUP($A277,Economática!$A$3:$AI$823,14,FALSE)=0,VLOOKUP($A277,Economática!$A$3:$AI$823,14,FALSE)=\"-\"),1/0,VLOOKUP($A277,Economática!$A$3:$AI$823,14,FALSE)))","v":""},{"$f":"IF($A277=\"\",\"\",IF(OR(VLOOKUP($A277,Economática!$A$3:$AI$823,15,FALSE)=0,VLOOKUP($A277,Economática!$A$3:$AI$823,15,FALSE)=\"-\"),1/0,VLOOKUP($A277,Economática!$A$3:$AI$823,15,FALSE)))","v":""},{"$f":"IF($A277=\"\",\"\",IF(OR(VLOOKUP($A277,Economática!$A$3:$AI$823,16,FALSE)=0,VLOOKUP($A277,Economática!$A$3:$AI$823,16,FALSE)=\"-\"),1/0,VLOOKUP($A277,Economática!$A$3:$AI$823,16,FALSE)))","v":""},{"$f":"IF($A277=\"\",\"\",IF(OR(VLOOKUP($A277,Economática!$A$3:$AI$823,17,FALSE)=0,VLOOKUP($A277,Economática!$A$3:$AI$823,17,FALSE)=\"-\"),1/0,VLOOKUP($A277,Economática!$A$3:$AI$823,17,FALSE)))","v":""},{"$f":"IF($A277=\"\",\"\",IF(OR(VLOOKUP($A277,Economática!$A$3:$AI$823,18,FALSE)=0,VLOOKUP($A277,Economática!$A$3:$AI$823,18,FALSE)=\"-\"),1/0,VLOOKUP($A277,Economática!$A$3:$AI$823,18,FALSE)))","v":""},{"$f":"IF($A277=\"\",\"\",IF(OR(VLOOKUP($A277,Economática!$A$3:$AI$823,19,FALSE)=0,VLOOKUP($A277,Economática!$A$3:$AI$823,19,FALSE)=\"-\"),1/0,VLOOKUP($A277,Economática!$A$3:$AI$823,19,FALSE)))","v":""},{"$f":"IF($A277=\"\",\"\",VLOOKUP($A277,Economática!$A$3:$AI$823,20,FALSE)/E277)","v":""},"","","",{"$f":"IF($A277=\"\",\"\",IF(OR(VLOOKUP($A277,Economática!$A$3:$AI$823,21,FALSE)/100=0,VLOOKUP($A277,Economática!$A$3:$AI$823,21,FALSE)/100=\"-\"),1/0,VLOOKUP($A277,Economática!$A$3:$AI$823,21,FALSE)/100))","v":""},{"$f":"IF($A277=\"\",\"\",IF(OR(VLOOKUP($A277,Economática!$A$3:$AI$823,22,FALSE)/100=0,VLOOKUP($A277,Economática!$A$3:$AI$823,22,FALSE)/100=\"-\"),1/0,VLOOKUP($A277,Economática!$A$3:$AI$823,22,FALSE)/100))","v":""},{"$f":"IF($A277=\"\",\"\",IF(OR(VLOOKUP($A277,Economática!$A$3:$AI$823,23,FALSE)=0,VLOOKUP($A277,Economática!$A$3:$AI$823,23,FALSE)=\"-\"),1/0,VLOOKUP($A277,Economática!$A$3:$AI$823,23,FALSE)))","v":""},{"$f":"IF($A277=\"\",\"\",IF(OR(VLOOKUP($A277,Economática!$A$3:$AI$823,24,FALSE)=0,VLOOKUP($A277,Economática!$A$3:$AI$823,24,FALSE)=\"-\"),1/0,VLOOKUP($A277,Economática!$A$3:$AI$823,24,FALSE)))","v":""},{"$f":"IF($A277=\"\",\"\",IF(OR(VLOOKUP($A277,Economática!$A$3:$AI$823,25,FALSE)=0,VLOOKUP($A277,Economática!$A$3:$AI$823,25,FALSE)=\"-\"),1/0,VLOOKUP($A277,Economática!$A$3:$AI$823,25,FALSE)))","v":""},{"$f":"IF($A277=\"\",\"\",IF(ISERROR((F277+VLOOKUP($A277,Economática!$A$3:$AI$823,26,FALSE))/Y277),(F277+VLOOKUP($A277,Economática!$A$3:$AI$823,26,FALSE))/Y277,(F277+VLOOKUP($A277,Economática!$A$3:$AI$823,26,FALSE))/Y277))","v":""},{"$f":"IF($A277=\"\",\"\",IF(OR(-VLOOKUP($A277,Economática!$A$3:$AI$823,27,FALSE)=0,-VLOOKUP($A277,Economática!$A$3:$AI$823,27,FALSE)=\"-\"),1/0,-VLOOKUP($A277,Economática!$A$3:$AI$823,27,FALSE)))","v":""},"",{"$f":"IF($A277=\"\",\"\",IF(OR(VLOOKUP($A277,Economática!$A$3:$AI$823,28,FALSE)=0,VLOOKUP($A277,Economática!$A$3:$AI$823,28,FALSE)=\"-\"),1/0,VLOOKUP($A277,Economática!$A$3:$AI$823,28,FALSE)))","v":""},{"$f":"IF($A277=\"\",\"\",IF(OR(VLOOKUP($A277,Economática!$A$3:$AI$823,29,FALSE)=0,VLOOKUP($A277,Economática!$A$3:$AI$823,29,FALSE)=\"-\"),1/0,VLOOKUP($A277,Economática!$A$3:$AI$823,29,FALSE)))","v":""},{"$f":"IF($A277=\"\",\"\",IF(OR(VLOOKUP($A277,Economática!$A$3:$AI$823,30,FALSE)/E277=0,VLOOKUP($A277,Economática!$A$3:$AI$823,30,FALSE)/E277=\"-\",VLOOKUP($A277,Economática!$A$3:$AI$823,30,FALSE)/E277<33.33%,VLOOKUP($A277,Economática!$A$3:$AI$823,30,FALSE)/E277>100%),1/0,VLOOKUP($A277,Economática!$A$3:$AI$823,30,FALSE)/E277))","v":""},"",{"$f":"IF($A277=\"\",\"\",IF(OR(VLOOKUP($A277,Economática!$A$3:$AI$823,25,FALSE)=0,VLOOKUP($A277,Economática!$A$3:$AI$823,25,FALSE)=\"-\"),1/0,VLOOKUP($A277,Economática!$A$3:$AI$823,25,FALSE)))","v":""},{"$f":"CONCATENATE(Economática!B255,\" \",Economática!C255)","v":" "}]
[{"$f":"IF(Economática!AG256=\"\",\"\",Economática!AG256)","v":""},{"$f":"IF($A278=\"\",\"\",VLOOKUP(VLOOKUP($A278,Economática!$A$3:$AI$823,6,FALSE),Correção!$B$16:$C$36,2,FALSE))","v":""},{"$f":"IF(Economática!B256=\"\",\"\",Economática!B256)","v":""},{"$f":"IF($A278=\"\",\"\",IF(OR(VLOOKUP($A278,Economática!$A$3:$AI$823,8,FALSE)=0,VLOOKUP($A278,Economática!$A$3:$AI$823,8,FALSE)=\"-\"),1/0,VLOOKUP($A278,Economática!$A$3:$AI$823,8,FALSE)))","v":""},{"$f":"IF(A278=\"\",\"\",IF(ISERROR(VLOOKUP(A278,Correção!$B$2:$G$13,9,FALSE)),VLOOKUP($A278,Economática!$A$3:$AI$823,9,FALSE),VLOOKUP(A278,Correção!$B$2:$G$13,9,FALSE)))","v":""},{"$f":"IF($A278=\"\",\"\",Economática!G256)","v":""},{"$f":"IF($A278=\"\",\"\",IF(OR(VLOOKUP($A278,Economática!$A$3:$AI$823,10,FALSE)=0,VLOOKUP($A278,Economática!$A$3:$AI$823,10,FALSE)=\"-\"),1/0,VLOOKUP($A278,Economática!$A$3:$AI$823,10,FALSE)))","v":""},{"$f":"IF($A278=\"\",\"\",IF(OR(VLOOKUP($A278,Economática!$A$3:$AI$823,11,FALSE)=0,VLOOKUP($A278,Economática!$A$3:$AI$823,11,FALSE)=\"-\"),1/0,VLOOKUP($A278,Economática!$A$3:$AI$823,11,FALSE)))","v":""},{"$f":"IF($A278=\"\",\"\",IF(OR(VLOOKUP($A278,Economática!$A$3:$AI$823,12,FALSE)=0,VLOOKUP($A278,Economática!$A$3:$AI$823,12,FALSE)=\"-\"),1/0,VLOOKUP($A278,Economática!$A$3:$AI$823,12,FALSE)))","v":""},{"$f":"IF($A278=\"\",\"\",IF(OR(VLOOKUP($A278,Economática!$A$3:$AI$823,13,FALSE)=0,VLOOKUP($A278,Economática!$A$3:$AI$823,13,FALSE)=\"-\"),1/0,VLOOKUP($A278,Economática!$A$3:$AI$823,13,FALSE)))","v":""},{"$f":"IF($A278=\"\",\"\",IF(OR(VLOOKUP($A278,Economática!$A$3:$AI$823,14,FALSE)=0,VLOOKUP($A278,Economática!$A$3:$AI$823,14,FALSE)=\"-\"),1/0,VLOOKUP($A278,Economática!$A$3:$AI$823,14,FALSE)))","v":""},{"$f":"IF($A278=\"\",\"\",IF(OR(VLOOKUP($A278,Economática!$A$3:$AI$823,15,FALSE)=0,VLOOKUP($A278,Economática!$A$3:$AI$823,15,FALSE)=\"-\"),1/0,VLOOKUP($A278,Economática!$A$3:$AI$823,15,FALSE)))","v":""},{"$f":"IF($A278=\"\",\"\",IF(OR(VLOOKUP($A278,Economática!$A$3:$AI$823,16,FALSE)=0,VLOOKUP($A278,Economática!$A$3:$AI$823,16,FALSE)=\"-\"),1/0,VLOOKUP($A278,Economática!$A$3:$AI$823,16,FALSE)))","v":""},{"$f":"IF($A278=\"\",\"\",IF(OR(VLOOKUP($A278,Economática!$A$3:$AI$823,17,FALSE)=0,VLOOKUP($A278,Economática!$A$3:$AI$823,17,FALSE)=\"-\"),1/0,VLOOKUP($A278,Economática!$A$3:$AI$823,17,FALSE)))","v":""},{"$f":"IF($A278=\"\",\"\",IF(OR(VLOOKUP($A278,Economática!$A$3:$AI$823,18,FALSE)=0,VLOOKUP($A278,Economática!$A$3:$AI$823,18,FALSE)=\"-\"),1/0,VLOOKUP($A278,Economática!$A$3:$AI$823,18,FALSE)))","v":""},{"$f":"IF($A278=\"\",\"\",IF(OR(VLOOKUP($A278,Economática!$A$3:$AI$823,19,FALSE)=0,VLOOKUP($A278,Economática!$A$3:$AI$823,19,FALSE)=\"-\"),1/0,VLOOKUP($A278,Economática!$A$3:$AI$823,19,FALSE)))","v":""},{"$f":"IF($A278=\"\",\"\",VLOOKUP($A278,Economática!$A$3:$AI$823,20,FALSE)/E278)","v":""},"","","",{"$f":"IF($A278=\"\",\"\",IF(OR(VLOOKUP($A278,Economática!$A$3:$AI$823,21,FALSE)/100=0,VLOOKUP($A278,Economática!$A$3:$AI$823,21,FALSE)/100=\"-\"),1/0,VLOOKUP($A278,Economática!$A$3:$AI$823,21,FALSE)/100))","v":""},{"$f":"IF($A278=\"\",\"\",IF(OR(VLOOKUP($A278,Economática!$A$3:$AI$823,22,FALSE)/100=0,VLOOKUP($A278,Economática!$A$3:$AI$823,22,FALSE)/100=\"-\"),1/0,VLOOKUP($A278,Economática!$A$3:$AI$823,22,FALSE)/100))","v":""},{"$f":"IF($A278=\"\",\"\",IF(OR(VLOOKUP($A278,Economática!$A$3:$AI$823,23,FALSE)=0,VLOOKUP($A278,Economática!$A$3:$AI$823,23,FALSE)=\"-\"),1/0,VLOOKUP($A278,Economática!$A$3:$AI$823,23,FALSE)))","v":""},{"$f":"IF($A278=\"\",\"\",IF(OR(VLOOKUP($A278,Economática!$A$3:$AI$823,24,FALSE)=0,VLOOKUP($A278,Economática!$A$3:$AI$823,24,FALSE)=\"-\"),1/0,VLOOKUP($A278,Economática!$A$3:$AI$823,24,FALSE)))","v":""},{"$f":"IF($A278=\"\",\"\",IF(OR(VLOOKUP($A278,Economática!$A$3:$AI$823,25,FALSE)=0,VLOOKUP($A278,Economática!$A$3:$AI$823,25,FALSE)=\"-\"),1/0,VLOOKUP($A278,Economática!$A$3:$AI$823,25,FALSE)))","v":""},{"$f":"IF($A278=\"\",\"\",IF(ISERROR((F278+VLOOKUP($A278,Economática!$A$3:$AI$823,26,FALSE))/Y278),(F278+VLOOKUP($A278,Economática!$A$3:$AI$823,26,FALSE))/Y278,(F278+VLOOKUP($A278,Economática!$A$3:$AI$823,26,FALSE))/Y278))","v":""},{"$f":"IF($A278=\"\",\"\",IF(OR(-VLOOKUP($A278,Economática!$A$3:$AI$823,27,FALSE)=0,-VLOOKUP($A278,Economática!$A$3:$AI$823,27,FALSE)=\"-\"),1/0,-VLOOKUP($A278,Economática!$A$3:$AI$823,27,FALSE)))","v":""},"",{"$f":"IF($A278=\"\",\"\",IF(OR(VLOOKUP($A278,Economática!$A$3:$AI$823,28,FALSE)=0,VLOOKUP($A278,Economática!$A$3:$AI$823,28,FALSE)=\"-\"),1/0,VLOOKUP($A278,Economática!$A$3:$AI$823,28,FALSE)))","v":""},{"$f":"IF($A278=\"\",\"\",IF(OR(VLOOKUP($A278,Economática!$A$3:$AI$823,29,FALSE)=0,VLOOKUP($A278,Economática!$A$3:$AI$823,29,FALSE)=\"-\"),1/0,VLOOKUP($A278,Economática!$A$3:$AI$823,29,FALSE)))","v":""},{"$f":"IF($A278=\"\",\"\",IF(OR(VLOOKUP($A278,Economática!$A$3:$AI$823,30,FALSE)/E278=0,VLOOKUP($A278,Economática!$A$3:$AI$823,30,FALSE)/E278=\"-\",VLOOKUP($A278,Economática!$A$3:$AI$823,30,FALSE)/E278<33.33%,VLOOKUP($A278,Economática!$A$3:$AI$823,30,FALSE)/E278>100%),1/0,VLOOKUP($A278,Economática!$A$3:$AI$823,30,FALSE)/E278))","v":""},"",{"$f":"IF($A278=\"\",\"\",IF(OR(VLOOKUP($A278,Economática!$A$3:$AI$823,25,FALSE)=0,VLOOKUP($A278,Economática!$A$3:$AI$823,25,FALSE)=\"-\"),1/0,VLOOKUP($A278,Economática!$A$3:$AI$823,25,FALSE)))","v":""},{"$f":"CONCATENATE(Economática!B256,\" \",Economática!C256)","v":" "}]
[{"$f":"IF(Economática!AG257=\"\",\"\",Economática!AG257)","v":""},{"$f":"IF($A279=\"\",\"\",VLOOKUP(VLOOKUP($A279,Economática!$A$3:$AI$823,6,FALSE),Correção!$B$16:$C$36,2,FALSE))","v":""},{"$f":"IF(Economática!B257=\"\",\"\",Economática!B257)","v":""},{"$f":"IF($A279=\"\",\"\",IF(OR(VLOOKUP($A279,Economática!$A$3:$AI$823,8,FALSE)=0,VLOOKUP($A279,Economática!$A$3:$AI$823,8,FALSE)=\"-\"),1/0,VLOOKUP($A279,Economática!$A$3:$AI$823,8,FALSE)))","v":""},{"$f":"IF(A279=\"\",\"\",IF(ISERROR(VLOOKUP(A279,Correção!$B$2:$G$13,9,FALSE)),VLOOKUP($A279,Economática!$A$3:$AI$823,9,FALSE),VLOOKUP(A279,Correção!$B$2:$G$13,9,FALSE)))","v":""},{"$f":"IF($A279=\"\",\"\",Economática!G257)","v":""},{"$f":"IF($A279=\"\",\"\",IF(OR(VLOOKUP($A279,Economática!$A$3:$AI$823,10,FALSE)=0,VLOOKUP($A279,Economática!$A$3:$AI$823,10,FALSE)=\"-\"),1/0,VLOOKUP($A279,Economática!$A$3:$AI$823,10,FALSE)))","v":""},{"$f":"IF($A279=\"\",\"\",IF(OR(VLOOKUP($A279,Economática!$A$3:$AI$823,11,FALSE)=0,VLOOKUP($A279,Economática!$A$3:$AI$823,11,FALSE)=\"-\"),1/0,VLOOKUP($A279,Economática!$A$3:$AI$823,11,FALSE)))","v":""},{"$f":"IF($A279=\"\",\"\",IF(OR(VLOOKUP($A279,Economática!$A$3:$AI$823,12,FALSE)=0,VLOOKUP($A279,Economática!$A$3:$AI$823,12,FALSE)=\"-\"),1/0,VLOOKUP($A279,Economática!$A$3:$AI$823,12,FALSE)))","v":""},{"$f":"IF($A279=\"\",\"\",IF(OR(VLOOKUP($A279,Economática!$A$3:$AI$823,13,FALSE)=0,VLOOKUP($A279,Economática!$A$3:$AI$823,13,FALSE)=\"-\"),1/0,VLOOKUP($A279,Economática!$A$3:$AI$823,13,FALSE)))","v":""},{"$f":"IF($A279=\"\",\"\",IF(OR(VLOOKUP($A279,Economática!$A$3:$AI$823,14,FALSE)=0,VLOOKUP($A279,Economática!$A$3:$AI$823,14,FALSE)=\"-\"),1/0,VLOOKUP($A279,Economática!$A$3:$AI$823,14,FALSE)))","v":""},{"$f":"IF($A279=\"\",\"\",IF(OR(VLOOKUP($A279,Economática!$A$3:$AI$823,15,FALSE)=0,VLOOKUP($A279,Economática!$A$3:$AI$823,15,FALSE)=\"-\"),1/0,VLOOKUP($A279,Economática!$A$3:$AI$823,15,FALSE)))","v":""},{"$f":"IF($A279=\"\",\"\",IF(OR(VLOOKUP($A279,Economática!$A$3:$AI$823,16,FALSE)=0,VLOOKUP($A279,Economática!$A$3:$AI$823,16,FALSE)=\"-\"),1/0,VLOOKUP($A279,Economática!$A$3:$AI$823,16,FALSE)))","v":""},{"$f":"IF($A279=\"\",\"\",IF(OR(VLOOKUP($A279,Economática!$A$3:$AI$823,17,FALSE)=0,VLOOKUP($A279,Economática!$A$3:$AI$823,17,FALSE)=\"-\"),1/0,VLOOKUP($A279,Economática!$A$3:$AI$823,17,FALSE)))","v":""},{"$f":"IF($A279=\"\",\"\",IF(OR(VLOOKUP($A279,Economática!$A$3:$AI$823,18,FALSE)=0,VLOOKUP($A279,Economática!$A$3:$AI$823,18,FALSE)=\"-\"),1/0,VLOOKUP($A279,Economática!$A$3:$AI$823,18,FALSE)))","v":""},{"$f":"IF($A279=\"\",\"\",IF(OR(VLOOKUP($A279,Economática!$A$3:$AI$823,19,FALSE)=0,VLOOKUP($A279,Economática!$A$3:$AI$823,19,FALSE)=\"-\"),1/0,VLOOKUP($A279,Economática!$A$3:$AI$823,19,FALSE)))","v":""},{"$f":"IF($A279=\"\",\"\",VLOOKUP($A279,Economática!$A$3:$AI$823,20,FALSE)/E279)","v":""},"","","",{"$f":"IF($A279=\"\",\"\",IF(OR(VLOOKUP($A279,Economática!$A$3:$AI$823,21,FALSE)/100=0,VLOOKUP($A279,Economática!$A$3:$AI$823,21,FALSE)/100=\"-\"),1/0,VLOOKUP($A279,Economática!$A$3:$AI$823,21,FALSE)/100))","v":""},{"$f":"IF($A279=\"\",\"\",IF(OR(VLOOKUP($A279,Economática!$A$3:$AI$823,22,FALSE)/100=0,VLOOKUP($A279,Economática!$A$3:$AI$823,22,FALSE)/100=\"-\"),1/0,VLOOKUP($A279,Economática!$A$3:$AI$823,22,FALSE)/100))","v":""},{"$f":"IF($A279=\"\",\"\",IF(OR(VLOOKUP($A279,Economática!$A$3:$AI$823,23,FALSE)=0,VLOOKUP($A279,Economática!$A$3:$AI$823,23,FALSE)=\"-\"),1/0,VLOOKUP($A279,Economática!$A$3:$AI$823,23,FALSE)))","v":""},{"$f":"IF($A279=\"\",\"\",IF(OR(VLOOKUP($A279,Economática!$A$3:$AI$823,24,FALSE)=0,VLOOKUP($A279,Economática!$A$3:$AI$823,24,FALSE)=\"-\"),1/0,VLOOKUP($A279,Economática!$A$3:$AI$823,24,FALSE)))","v":""},{"$f":"IF($A279=\"\",\"\",IF(OR(VLOOKUP($A279,Economática!$A$3:$AI$823,25,FALSE)=0,VLOOKUP($A279,Economática!$A$3:$AI$823,25,FALSE)=\"-\"),1/0,VLOOKUP($A279,Economática!$A$3:$AI$823,25,FALSE)))","v":""},{"$f":"IF($A279=\"\",\"\",IF(ISERROR((F279+VLOOKUP($A279,Economática!$A$3:$AI$823,26,FALSE))/Y279),(F279+VLOOKUP($A279,Economática!$A$3:$AI$823,26,FALSE))/Y279,(F279+VLOOKUP($A279,Economática!$A$3:$AI$823,26,FALSE))/Y279))","v":""},{"$f":"IF($A279=\"\",\"\",IF(OR(-VLOOKUP($A279,Economática!$A$3:$AI$823,27,FALSE)=0,-VLOOKUP($A279,Economática!$A$3:$AI$823,27,FALSE)=\"-\"),1/0,-VLOOKUP($A279,Economática!$A$3:$AI$823,27,FALSE)))","v":""},"",{"$f":"IF($A279=\"\",\"\",IF(OR(VLOOKUP($A279,Economática!$A$3:$AI$823,28,FALSE)=0,VLOOKUP($A279,Economática!$A$3:$AI$823,28,FALSE)=\"-\"),1/0,VLOOKUP($A279,Economática!$A$3:$AI$823,28,FALSE)))","v":""},{"$f":"IF($A279=\"\",\"\",IF(OR(VLOOKUP($A279,Economática!$A$3:$AI$823,29,FALSE)=0,VLOOKUP($A279,Economática!$A$3:$AI$823,29,FALSE)=\"-\"),1/0,VLOOKUP($A279,Economática!$A$3:$AI$823,29,FALSE)))","v":""},{"$f":"IF($A279=\"\",\"\",IF(OR(VLOOKUP($A279,Economática!$A$3:$AI$823,30,FALSE)/E279=0,VLOOKUP($A279,Economática!$A$3:$AI$823,30,FALSE)/E279=\"-\",VLOOKUP($A279,Economática!$A$3:$AI$823,30,FALSE)/E279<33.33%,VLOOKUP($A279,Economática!$A$3:$AI$823,30,FALSE)/E279>100%),1/0,VLOOKUP($A279,Economática!$A$3:$AI$823,30,FALSE)/E279))","v":""},"",{"$f":"IF($A279=\"\",\"\",IF(OR(VLOOKUP($A279,Economática!$A$3:$AI$823,25,FALSE)=0,VLOOKUP($A279,Economática!$A$3:$AI$823,25,FALSE)=\"-\"),1/0,VLOOKUP($A279,Economática!$A$3:$AI$823,25,FALSE)))","v":""},{"$f":"CONCATENATE(Economática!B257,\" \",Economática!C257)","v":" "}]
[{"$f":"IF(Economática!AG258=\"\",\"\",Economática!AG258)","v":""},{"$f":"IF($A280=\"\",\"\",VLOOKUP(VLOOKUP($A280,Economática!$A$3:$AI$823,6,FALSE),Correção!$B$16:$C$36,2,FALSE))","v":""},{"$f":"IF(Economática!B258=\"\",\"\",Economática!B258)","v":""},{"$f":"IF($A280=\"\",\"\",IF(OR(VLOOKUP($A280,Economática!$A$3:$AI$823,8,FALSE)=0,VLOOKUP($A280,Economática!$A$3:$AI$823,8,FALSE)=\"-\"),1/0,VLOOKUP($A280,Economática!$A$3:$AI$823,8,FALSE)))","v":""},{"$f":"IF(A280=\"\",\"\",IF(ISERROR(VLOOKUP(A280,Correção!$B$2:$G$13,9,FALSE)),VLOOKUP($A280,Economática!$A$3:$AI$823,9,FALSE),VLOOKUP(A280,Correção!$B$2:$G$13,9,FALSE)))","v":""},{"$f":"IF($A280=\"\",\"\",Economática!G258)","v":""},{"$f":"IF($A280=\"\",\"\",IF(OR(VLOOKUP($A280,Economática!$A$3:$AI$823,10,FALSE)=0,VLOOKUP($A280,Economática!$A$3:$AI$823,10,FALSE)=\"-\"),1/0,VLOOKUP($A280,Economática!$A$3:$AI$823,10,FALSE)))","v":""},{"$f":"IF($A280=\"\",\"\",IF(OR(VLOOKUP($A280,Economática!$A$3:$AI$823,11,FALSE)=0,VLOOKUP($A280,Economática!$A$3:$AI$823,11,FALSE)=\"-\"),1/0,VLOOKUP($A280,Economática!$A$3:$AI$823,11,FALSE)))","v":""},{"$f":"IF($A280=\"\",\"\",IF(OR(VLOOKUP($A280,Economática!$A$3:$AI$823,12,FALSE)=0,VLOOKUP($A280,Economática!$A$3:$AI$823,12,FALSE)=\"-\"),1/0,VLOOKUP($A280,Economática!$A$3:$AI$823,12,FALSE)))","v":""},{"$f":"IF($A280=\"\",\"\",IF(OR(VLOOKUP($A280,Economática!$A$3:$AI$823,13,FALSE)=0,VLOOKUP($A280,Economática!$A$3:$AI$823,13,FALSE)=\"-\"),1/0,VLOOKUP($A280,Economática!$A$3:$AI$823,13,FALSE)))","v":""},{"$f":"IF($A280=\"\",\"\",IF(OR(VLOOKUP($A280,Economática!$A$3:$AI$823,14,FALSE)=0,VLOOKUP($A280,Economática!$A$3:$AI$823,14,FALSE)=\"-\"),1/0,VLOOKUP($A280,Economática!$A$3:$AI$823,14,FALSE)))","v":""},{"$f":"IF($A280=\"\",\"\",IF(OR(VLOOKUP($A280,Economática!$A$3:$AI$823,15,FALSE)=0,VLOOKUP($A280,Economática!$A$3:$AI$823,15,FALSE)=\"-\"),1/0,VLOOKUP($A280,Economática!$A$3:$AI$823,15,FALSE)))","v":""},{"$f":"IF($A280=\"\",\"\",IF(OR(VLOOKUP($A280,Economática!$A$3:$AI$823,16,FALSE)=0,VLOOKUP($A280,Economática!$A$3:$AI$823,16,FALSE)=\"-\"),1/0,VLOOKUP($A280,Economática!$A$3:$AI$823,16,FALSE)))","v":""},{"$f":"IF($A280=\"\",\"\",IF(OR(VLOOKUP($A280,Economática!$A$3:$AI$823,17,FALSE)=0,VLOOKUP($A280,Economática!$A$3:$AI$823,17,FALSE)=\"-\"),1/0,VLOOKUP($A280,Economática!$A$3:$AI$823,17,FALSE)))","v":""},{"$f":"IF($A280=\"\",\"\",IF(OR(VLOOKUP($A280,Economática!$A$3:$AI$823,18,FALSE)=0,VLOOKUP($A280,Economática!$A$3:$AI$823,18,FALSE)=\"-\"),1/0,VLOOKUP($A280,Economática!$A$3:$AI$823,18,FALSE)))","v":""},{"$f":"IF($A280=\"\",\"\",IF(OR(VLOOKUP($A280,Economática!$A$3:$AI$823,19,FALSE)=0,VLOOKUP($A280,Economática!$A$3:$AI$823,19,FALSE)=\"-\"),1/0,VLOOKUP($A280,Economática!$A$3:$AI$823,19,FALSE)))","v":""},{"$f":"IF($A280=\"\",\"\",VLOOKUP($A280,Economática!$A$3:$AI$823,20,FALSE)/E280)","v":""},"","","",{"$f":"IF($A280=\"\",\"\",IF(OR(VLOOKUP($A280,Economática!$A$3:$AI$823,21,FALSE)/100=0,VLOOKUP($A280,Economática!$A$3:$AI$823,21,FALSE)/100=\"-\"),1/0,VLOOKUP($A280,Economática!$A$3:$AI$823,21,FALSE)/100))","v":""},{"$f":"IF($A280=\"\",\"\",IF(OR(VLOOKUP($A280,Economática!$A$3:$AI$823,22,FALSE)/100=0,VLOOKUP($A280,Economática!$A$3:$AI$823,22,FALSE)/100=\"-\"),1/0,VLOOKUP($A280,Economática!$A$3:$AI$823,22,FALSE)/100))","v":""},{"$f":"IF($A280=\"\",\"\",IF(OR(VLOOKUP($A280,Economática!$A$3:$AI$823,23,FALSE)=0,VLOOKUP($A280,Economática!$A$3:$AI$823,23,FALSE)=\"-\"),1/0,VLOOKUP($A280,Economática!$A$3:$AI$823,23,FALSE)))","v":""},{"$f":"IF($A280=\"\",\"\",IF(OR(VLOOKUP($A280,Economática!$A$3:$AI$823,24,FALSE)=0,VLOOKUP($A280,Economática!$A$3:$AI$823,24,FALSE)=\"-\"),1/0,VLOOKUP($A280,Economática!$A$3:$AI$823,24,FALSE)))","v":""},{"$f":"IF($A280=\"\",\"\",IF(OR(VLOOKUP($A280,Economática!$A$3:$AI$823,25,FALSE)=0,VLOOKUP($A280,Economática!$A$3:$AI$823,25,FALSE)=\"-\"),1/0,VLOOKUP($A280,Economática!$A$3:$AI$823,25,FALSE)))","v":""},{"$f":"IF($A280=\"\",\"\",IF(ISERROR((F280+VLOOKUP($A280,Economática!$A$3:$AI$823,26,FALSE))/Y280),(F280+VLOOKUP($A280,Economática!$A$3:$AI$823,26,FALSE))/Y280,(F280+VLOOKUP($A280,Economática!$A$3:$AI$823,26,FALSE))/Y280))","v":""},{"$f":"IF($A280=\"\",\"\",IF(OR(-VLOOKUP($A280,Economática!$A$3:$AI$823,27,FALSE)=0,-VLOOKUP($A280,Economática!$A$3:$AI$823,27,FALSE)=\"-\"),1/0,-VLOOKUP($A280,Economática!$A$3:$AI$823,27,FALSE)))","v":""},"",{"$f":"IF($A280=\"\",\"\",IF(OR(VLOOKUP($A280,Economática!$A$3:$AI$823,28,FALSE)=0,VLOOKUP($A280,Economática!$A$3:$AI$823,28,FALSE)=\"-\"),1/0,VLOOKUP($A280,Economática!$A$3:$AI$823,28,FALSE)))","v":""},{"$f":"IF($A280=\"\",\"\",IF(OR(VLOOKUP($A280,Economática!$A$3:$AI$823,29,FALSE)=0,VLOOKUP($A280,Economática!$A$3:$AI$823,29,FALSE)=\"-\"),1/0,VLOOKUP($A280,Economática!$A$3:$AI$823,29,FALSE)))","v":""},{"$f":"IF($A280=\"\",\"\",IF(OR(VLOOKUP($A280,Economática!$A$3:$AI$823,30,FALSE)/E280=0,VLOOKUP($A280,Economática!$A$3:$AI$823,30,FALSE)/E280=\"-\",VLOOKUP($A280,Economática!$A$3:$AI$823,30,FALSE)/E280<33.33%,VLOOKUP($A280,Economática!$A$3:$AI$823,30,FALSE)/E280>100%),1/0,VLOOKUP($A280,Economática!$A$3:$AI$823,30,FALSE)/E280))","v":""},"",{"$f":"IF($A280=\"\",\"\",IF(OR(VLOOKUP($A280,Economática!$A$3:$AI$823,25,FALSE)=0,VLOOKUP($A280,Economática!$A$3:$AI$823,25,FALSE)=\"-\"),1/0,VLOOKUP($A280,Economática!$A$3:$AI$823,25,FALSE)))","v":""},{"$f":"CONCATENATE(Economática!B258,\" \",Economática!C258)","v":" "}]
[{"$f":"IF(Economática!AG259=\"\",\"\",Economática!AG259)","v":""},{"$f":"IF($A281=\"\",\"\",VLOOKUP(VLOOKUP($A281,Economática!$A$3:$AI$823,6,FALSE),Correção!$B$16:$C$36,2,FALSE))","v":""},{"$f":"IF(Economática!B259=\"\",\"\",Economática!B259)","v":""},{"$f":"IF($A281=\"\",\"\",IF(OR(VLOOKUP($A281,Economática!$A$3:$AI$823,8,FALSE)=0,VLOOKUP($A281,Economática!$A$3:$AI$823,8,FALSE)=\"-\"),1/0,VLOOKUP($A281,Economática!$A$3:$AI$823,8,FALSE)))","v":""},{"$f":"IF(A281=\"\",\"\",IF(ISERROR(VLOOKUP(A281,Correção!$B$2:$G$13,9,FALSE)),VLOOKUP($A281,Economática!$A$3:$AI$823,9,FALSE),VLOOKUP(A281,Correção!$B$2:$G$13,9,FALSE)))","v":""},{"$f":"IF($A281=\"\",\"\",Economática!G259)","v":""},{"$f":"IF($A281=\"\",\"\",IF(OR(VLOOKUP($A281,Economática!$A$3:$AI$823,10,FALSE)=0,VLOOKUP($A281,Economática!$A$3:$AI$823,10,FALSE)=\"-\"),1/0,VLOOKUP($A281,Economática!$A$3:$AI$823,10,FALSE)))","v":""},{"$f":"IF($A281=\"\",\"\",IF(OR(VLOOKUP($A281,Economática!$A$3:$AI$823,11,FALSE)=0,VLOOKUP($A281,Economática!$A$3:$AI$823,11,FALSE)=\"-\"),1/0,VLOOKUP($A281,Economática!$A$3:$AI$823,11,FALSE)))","v":""},{"$f":"IF($A281=\"\",\"\",IF(OR(VLOOKUP($A281,Economática!$A$3:$AI$823,12,FALSE)=0,VLOOKUP($A281,Economática!$A$3:$AI$823,12,FALSE)=\"-\"),1/0,VLOOKUP($A281,Economática!$A$3:$AI$823,12,FALSE)))","v":""},{"$f":"IF($A281=\"\",\"\",IF(OR(VLOOKUP($A281,Economática!$A$3:$AI$823,13,FALSE)=0,VLOOKUP($A281,Economática!$A$3:$AI$823,13,FALSE)=\"-\"),1/0,VLOOKUP($A281,Economática!$A$3:$AI$823,13,FALSE)))","v":""},{"$f":"IF($A281=\"\",\"\",IF(OR(VLOOKUP($A281,Economática!$A$3:$AI$823,14,FALSE)=0,VLOOKUP($A281,Economática!$A$3:$AI$823,14,FALSE)=\"-\"),1/0,VLOOKUP($A281,Economática!$A$3:$AI$823,14,FALSE)))","v":""},{"$f":"IF($A281=\"\",\"\",IF(OR(VLOOKUP($A281,Economática!$A$3:$AI$823,15,FALSE)=0,VLOOKUP($A281,Economática!$A$3:$AI$823,15,FALSE)=\"-\"),1/0,VLOOKUP($A281,Economática!$A$3:$AI$823,15,FALSE)))","v":""},{"$f":"IF($A281=\"\",\"\",IF(OR(VLOOKUP($A281,Economática!$A$3:$AI$823,16,FALSE)=0,VLOOKUP($A281,Economática!$A$3:$AI$823,16,FALSE)=\"-\"),1/0,VLOOKUP($A281,Economática!$A$3:$AI$823,16,FALSE)))","v":""},{"$f":"IF($A281=\"\",\"\",IF(OR(VLOOKUP($A281,Economática!$A$3:$AI$823,17,FALSE)=0,VLOOKUP($A281,Economática!$A$3:$AI$823,17,FALSE)=\"-\"),1/0,VLOOKUP($A281,Economática!$A$3:$AI$823,17,FALSE)))","v":""},{"$f":"IF($A281=\"\",\"\",IF(OR(VLOOKUP($A281,Economática!$A$3:$AI$823,18,FALSE)=0,VLOOKUP($A281,Economática!$A$3:$AI$823,18,FALSE)=\"-\"),1/0,VLOOKUP($A281,Economática!$A$3:$AI$823,18,FALSE)))","v":""},{"$f":"IF($A281=\"\",\"\",IF(OR(VLOOKUP($A281,Economática!$A$3:$AI$823,19,FALSE)=0,VLOOKUP($A281,Economática!$A$3:$AI$823,19,FALSE)=\"-\"),1/0,VLOOKUP($A281,Economática!$A$3:$AI$823,19,FALSE)))","v":""},{"$f":"IF($A281=\"\",\"\",VLOOKUP($A281,Economática!$A$3:$AI$823,20,FALSE)/E281)","v":""},"","","",{"$f":"IF($A281=\"\",\"\",IF(OR(VLOOKUP($A281,Economática!$A$3:$AI$823,21,FALSE)/100=0,VLOOKUP($A281,Economática!$A$3:$AI$823,21,FALSE)/100=\"-\"),1/0,VLOOKUP($A281,Economática!$A$3:$AI$823,21,FALSE)/100))","v":""},{"$f":"IF($A281=\"\",\"\",IF(OR(VLOOKUP($A281,Economática!$A$3:$AI$823,22,FALSE)/100=0,VLOOKUP($A281,Economática!$A$3:$AI$823,22,FALSE)/100=\"-\"),1/0,VLOOKUP($A281,Economática!$A$3:$AI$823,22,FALSE)/100))","v":""},{"$f":"IF($A281=\"\",\"\",IF(OR(VLOOKUP($A281,Economática!$A$3:$AI$823,23,FALSE)=0,VLOOKUP($A281,Economática!$A$3:$AI$823,23,FALSE)=\"-\"),1/0,VLOOKUP($A281,Economática!$A$3:$AI$823,23,FALSE)))","v":""},{"$f":"IF($A281=\"\",\"\",IF(OR(VLOOKUP($A281,Economática!$A$3:$AI$823,24,FALSE)=0,VLOOKUP($A281,Economática!$A$3:$AI$823,24,FALSE)=\"-\"),1/0,VLOOKUP($A281,Economática!$A$3:$AI$823,24,FALSE)))","v":""},{"$f":"IF($A281=\"\",\"\",IF(OR(VLOOKUP($A281,Economática!$A$3:$AI$823,25,FALSE)=0,VLOOKUP($A281,Economática!$A$3:$AI$823,25,FALSE)=\"-\"),1/0,VLOOKUP($A281,Economática!$A$3:$AI$823,25,FALSE)))","v":""},{"$f":"IF($A281=\"\",\"\",IF(ISERROR((F281+VLOOKUP($A281,Economática!$A$3:$AI$823,26,FALSE))/Y281),(F281+VLOOKUP($A281,Economática!$A$3:$AI$823,26,FALSE))/Y281,(F281+VLOOKUP($A281,Economática!$A$3:$AI$823,26,FALSE))/Y281))","v":""},{"$f":"IF($A281=\"\",\"\",IF(OR(-VLOOKUP($A281,Economática!$A$3:$AI$823,27,FALSE)=0,-VLOOKUP($A281,Economática!$A$3:$AI$823,27,FALSE)=\"-\"),1/0,-VLOOKUP($A281,Economática!$A$3:$AI$823,27,FALSE)))","v":""},"",{"$f":"IF($A281=\"\",\"\",IF(OR(VLOOKUP($A281,Economática!$A$3:$AI$823,28,FALSE)=0,VLOOKUP($A281,Economática!$A$3:$AI$823,28,FALSE)=\"-\"),1/0,VLOOKUP($A281,Economática!$A$3:$AI$823,28,FALSE)))","v":""},{"$f":"IF($A281=\"\",\"\",IF(OR(VLOOKUP($A281,Economática!$A$3:$AI$823,29,FALSE)=0,VLOOKUP($A281,Economática!$A$3:$AI$823,29,FALSE)=\"-\"),1/0,VLOOKUP($A281,Economática!$A$3:$AI$823,29,FALSE)))","v":""},{"$f":"IF($A281=\"\",\"\",IF(OR(VLOOKUP($A281,Economática!$A$3:$AI$823,30,FALSE)/E281=0,VLOOKUP($A281,Economática!$A$3:$AI$823,30,FALSE)/E281=\"-\",VLOOKUP($A281,Economática!$A$3:$AI$823,30,FALSE)/E281<33.33%,VLOOKUP($A281,Economática!$A$3:$AI$823,30,FALSE)/E281>100%),1/0,VLOOKUP($A281,Economática!$A$3:$AI$823,30,FALSE)/E281))","v":""},"",{"$f":"IF($A281=\"\",\"\",IF(OR(VLOOKUP($A281,Economática!$A$3:$AI$823,25,FALSE)=0,VLOOKUP($A281,Economática!$A$3:$AI$823,25,FALSE)=\"-\"),1/0,VLOOKUP($A281,Economática!$A$3:$AI$823,25,FALSE)))","v":""},{"$f":"CONCATENATE(Economática!B259,\" \",Economática!C259)","v":" "}]
[{"$f":"IF(Economática!AG260=\"\",\"\",Economática!AG260)","v":""},{"$f":"IF($A282=\"\",\"\",VLOOKUP(VLOOKUP($A282,Economática!$A$3:$AI$823,6,FALSE),Correção!$B$16:$C$36,2,FALSE))","v":""},{"$f":"IF(Economática!B260=\"\",\"\",Economática!B260)","v":""},{"$f":"IF($A282=\"\",\"\",IF(OR(VLOOKUP($A282,Economática!$A$3:$AI$823,8,FALSE)=0,VLOOKUP($A282,Economática!$A$3:$AI$823,8,FALSE)=\"-\"),1/0,VLOOKUP($A282,Economática!$A$3:$AI$823,8,FALSE)))","v":""},{"$f":"IF(A282=\"\",\"\",IF(ISERROR(VLOOKUP(A282,Correção!$B$2:$G$13,9,FALSE)),VLOOKUP($A282,Economática!$A$3:$AI$823,9,FALSE),VLOOKUP(A282,Correção!$B$2:$G$13,9,FALSE)))","v":""},{"$f":"IF($A282=\"\",\"\",Economática!G260)","v":""},{"$f":"IF($A282=\"\",\"\",IF(OR(VLOOKUP($A282,Economática!$A$3:$AI$823,10,FALSE)=0,VLOOKUP($A282,Economática!$A$3:$AI$823,10,FALSE)=\"-\"),1/0,VLOOKUP($A282,Economática!$A$3:$AI$823,10,FALSE)))","v":""},{"$f":"IF($A282=\"\",\"\",IF(OR(VLOOKUP($A282,Economática!$A$3:$AI$823,11,FALSE)=0,VLOOKUP($A282,Economática!$A$3:$AI$823,11,FALSE)=\"-\"),1/0,VLOOKUP($A282,Economática!$A$3:$AI$823,11,FALSE)))","v":""},{"$f":"IF($A282=\"\",\"\",IF(OR(VLOOKUP($A282,Economática!$A$3:$AI$823,12,FALSE)=0,VLOOKUP($A282,Economática!$A$3:$AI$823,12,FALSE)=\"-\"),1/0,VLOOKUP($A282,Economática!$A$3:$AI$823,12,FALSE)))","v":""},{"$f":"IF($A282=\"\",\"\",IF(OR(VLOOKUP($A282,Economática!$A$3:$AI$823,13,FALSE)=0,VLOOKUP($A282,Economática!$A$3:$AI$823,13,FALSE)=\"-\"),1/0,VLOOKUP($A282,Economática!$A$3:$AI$823,13,FALSE)))","v":""},{"$f":"IF($A282=\"\",\"\",IF(OR(VLOOKUP($A282,Economática!$A$3:$AI$823,14,FALSE)=0,VLOOKUP($A282,Economática!$A$3:$AI$823,14,FALSE)=\"-\"),1/0,VLOOKUP($A282,Economática!$A$3:$AI$823,14,FALSE)))","v":""},{"$f":"IF($A282=\"\",\"\",IF(OR(VLOOKUP($A282,Economática!$A$3:$AI$823,15,FALSE)=0,VLOOKUP($A282,Economática!$A$3:$AI$823,15,FALSE)=\"-\"),1/0,VLOOKUP($A282,Economática!$A$3:$AI$823,15,FALSE)))","v":""},{"$f":"IF($A282=\"\",\"\",IF(OR(VLOOKUP($A282,Economática!$A$3:$AI$823,16,FALSE)=0,VLOOKUP($A282,Economática!$A$3:$AI$823,16,FALSE)=\"-\"),1/0,VLOOKUP($A282,Economática!$A$3:$AI$823,16,FALSE)))","v":""},{"$f":"IF($A282=\"\",\"\",IF(OR(VLOOKUP($A282,Economática!$A$3:$AI$823,17,FALSE)=0,VLOOKUP($A282,Economática!$A$3:$AI$823,17,FALSE)=\"-\"),1/0,VLOOKUP($A282,Economática!$A$3:$AI$823,17,FALSE)))","v":""},{"$f":"IF($A282=\"\",\"\",IF(OR(VLOOKUP($A282,Economática!$A$3:$AI$823,18,FALSE)=0,VLOOKUP($A282,Economática!$A$3:$AI$823,18,FALSE)=\"-\"),1/0,VLOOKUP($A282,Economática!$A$3:$AI$823,18,FALSE)))","v":""},{"$f":"IF($A282=\"\",\"\",IF(OR(VLOOKUP($A282,Economática!$A$3:$AI$823,19,FALSE)=0,VLOOKUP($A282,Economática!$A$3:$AI$823,19,FALSE)=\"-\"),1/0,VLOOKUP($A282,Economática!$A$3:$AI$823,19,FALSE)))","v":""},{"$f":"IF($A282=\"\",\"\",VLOOKUP($A282,Economática!$A$3:$AI$823,20,FALSE)/E282)","v":""},"","","",{"$f":"IF($A282=\"\",\"\",IF(OR(VLOOKUP($A282,Economática!$A$3:$AI$823,21,FALSE)/100=0,VLOOKUP($A282,Economática!$A$3:$AI$823,21,FALSE)/100=\"-\"),1/0,VLOOKUP($A282,Economática!$A$3:$AI$823,21,FALSE)/100))","v":""},{"$f":"IF($A282=\"\",\"\",IF(OR(VLOOKUP($A282,Economática!$A$3:$AI$823,22,FALSE)/100=0,VLOOKUP($A282,Economática!$A$3:$AI$823,22,FALSE)/100=\"-\"),1/0,VLOOKUP($A282,Economática!$A$3:$AI$823,22,FALSE)/100))","v":""},{"$f":"IF($A282=\"\",\"\",IF(OR(VLOOKUP($A282,Economática!$A$3:$AI$823,23,FALSE)=0,VLOOKUP($A282,Economática!$A$3:$AI$823,23,FALSE)=\"-\"),1/0,VLOOKUP($A282,Economática!$A$3:$AI$823,23,FALSE)))","v":""},{"$f":"IF($A282=\"\",\"\",IF(OR(VLOOKUP($A282,Economática!$A$3:$AI$823,24,FALSE)=0,VLOOKUP($A282,Economática!$A$3:$AI$823,24,FALSE)=\"-\"),1/0,VLOOKUP($A282,Economática!$A$3:$AI$823,24,FALSE)))","v":""},{"$f":"IF($A282=\"\",\"\",IF(OR(VLOOKUP($A282,Economática!$A$3:$AI$823,25,FALSE)=0,VLOOKUP($A282,Economática!$A$3:$AI$823,25,FALSE)=\"-\"),1/0,VLOOKUP($A282,Economática!$A$3:$AI$823,25,FALSE)))","v":""},{"$f":"IF($A282=\"\",\"\",IF(ISERROR((F282+VLOOKUP($A282,Economática!$A$3:$AI$823,26,FALSE))/Y282),(F282+VLOOKUP($A282,Economática!$A$3:$AI$823,26,FALSE))/Y282,(F282+VLOOKUP($A282,Economática!$A$3:$AI$823,26,FALSE))/Y282))","v":""},{"$f":"IF($A282=\"\",\"\",IF(OR(-VLOOKUP($A282,Economática!$A$3:$AI$823,27,FALSE)=0,-VLOOKUP($A282,Economática!$A$3:$AI$823,27,FALSE)=\"-\"),1/0,-VLOOKUP($A282,Economática!$A$3:$AI$823,27,FALSE)))","v":""},"",{"$f":"IF($A282=\"\",\"\",IF(OR(VLOOKUP($A282,Economática!$A$3:$AI$823,28,FALSE)=0,VLOOKUP($A282,Economática!$A$3:$AI$823,28,FALSE)=\"-\"),1/0,VLOOKUP($A282,Economática!$A$3:$AI$823,28,FALSE)))","v":""},{"$f":"IF($A282=\"\",\"\",IF(OR(VLOOKUP($A282,Economática!$A$3:$AI$823,29,FALSE)=0,VLOOKUP($A282,Economática!$A$3:$AI$823,29,FALSE)=\"-\"),1/0,VLOOKUP($A282,Economática!$A$3:$AI$823,29,FALSE)))","v":""},{"$f":"IF($A282=\"\",\"\",IF(OR(VLOOKUP($A282,Economática!$A$3:$AI$823,30,FALSE)/E282=0,VLOOKUP($A282,Economática!$A$3:$AI$823,30,FALSE)/E282=\"-\",VLOOKUP($A282,Economática!$A$3:$AI$823,30,FALSE)/E282<33.33%,VLOOKUP($A282,Economática!$A$3:$AI$823,30,FALSE)/E282>100%),1/0,VLOOKUP($A282,Economática!$A$3:$AI$823,30,FALSE)/E282))","v":""},"",{"$f":"IF($A282=\"\",\"\",IF(OR(VLOOKUP($A282,Economática!$A$3:$AI$823,25,FALSE)=0,VLOOKUP($A282,Economática!$A$3:$AI$823,25,FALSE)=\"-\"),1/0,VLOOKUP($A282,Economática!$A$3:$AI$823,25,FALSE)))","v":""},{"$f":"CONCATENATE(Economática!B260,\" \",Economática!C260)","v":" "}]
[{"$f":"IF(Economática!AG261=\"\",\"\",Economática!AG261)","v":""},{"$f":"IF($A283=\"\",\"\",VLOOKUP(VLOOKUP($A283,Economática!$A$3:$AI$823,6,FALSE),Correção!$B$16:$C$36,2,FALSE))","v":""},{"$f":"IF(Economática!B261=\"\",\"\",Economática!B261)","v":""},{"$f":"IF($A283=\"\",\"\",IF(OR(VLOOKUP($A283,Economática!$A$3:$AI$823,8,FALSE)=0,VLOOKUP($A283,Economática!$A$3:$AI$823,8,FALSE)=\"-\"),1/0,VLOOKUP($A283,Economática!$A$3:$AI$823,8,FALSE)))","v":""},{"$f":"IF(A283=\"\",\"\",IF(ISERROR(VLOOKUP(A283,Correção!$B$2:$G$13,9,FALSE)),VLOOKUP($A283,Economática!$A$3:$AI$823,9,FALSE),VLOOKUP(A283,Correção!$B$2:$G$13,9,FALSE)))","v":""},{"$f":"IF($A283=\"\",\"\",Economática!G261)","v":""},{"$f":"IF($A283=\"\",\"\",IF(OR(VLOOKUP($A283,Economática!$A$3:$AI$823,10,FALSE)=0,VLOOKUP($A283,Economática!$A$3:$AI$823,10,FALSE)=\"-\"),1/0,VLOOKUP($A283,Economática!$A$3:$AI$823,10,FALSE)))","v":""},{"$f":"IF($A283=\"\",\"\",IF(OR(VLOOKUP($A283,Economática!$A$3:$AI$823,11,FALSE)=0,VLOOKUP($A283,Economática!$A$3:$AI$823,11,FALSE)=\"-\"),1/0,VLOOKUP($A283,Economática!$A$3:$AI$823,11,FALSE)))","v":""},{"$f":"IF($A283=\"\",\"\",IF(OR(VLOOKUP($A283,Economática!$A$3:$AI$823,12,FALSE)=0,VLOOKUP($A283,Economática!$A$3:$AI$823,12,FALSE)=\"-\"),1/0,VLOOKUP($A283,Economática!$A$3:$AI$823,12,FALSE)))","v":""},{"$f":"IF($A283=\"\",\"\",IF(OR(VLOOKUP($A283,Economática!$A$3:$AI$823,13,FALSE)=0,VLOOKUP($A283,Economática!$A$3:$AI$823,13,FALSE)=\"-\"),1/0,VLOOKUP($A283,Economática!$A$3:$AI$823,13,FALSE)))","v":""},{"$f":"IF($A283=\"\",\"\",IF(OR(VLOOKUP($A283,Economática!$A$3:$AI$823,14,FALSE)=0,VLOOKUP($A283,Economática!$A$3:$AI$823,14,FALSE)=\"-\"),1/0,VLOOKUP($A283,Economática!$A$3:$AI$823,14,FALSE)))","v":""},{"$f":"IF($A283=\"\",\"\",IF(OR(VLOOKUP($A283,Economática!$A$3:$AI$823,15,FALSE)=0,VLOOKUP($A283,Economática!$A$3:$AI$823,15,FALSE)=\"-\"),1/0,VLOOKUP($A283,Economática!$A$3:$AI$823,15,FALSE)))","v":""},{"$f":"IF($A283=\"\",\"\",IF(OR(VLOOKUP($A283,Economática!$A$3:$AI$823,16,FALSE)=0,VLOOKUP($A283,Economática!$A$3:$AI$823,16,FALSE)=\"-\"),1/0,VLOOKUP($A283,Economática!$A$3:$AI$823,16,FALSE)))","v":""},{"$f":"IF($A283=\"\",\"\",IF(OR(VLOOKUP($A283,Economática!$A$3:$AI$823,17,FALSE)=0,VLOOKUP($A283,Economática!$A$3:$AI$823,17,FALSE)=\"-\"),1/0,VLOOKUP($A283,Economática!$A$3:$AI$823,17,FALSE)))","v":""},{"$f":"IF($A283=\"\",\"\",IF(OR(VLOOKUP($A283,Economática!$A$3:$AI$823,18,FALSE)=0,VLOOKUP($A283,Economática!$A$3:$AI$823,18,FALSE)=\"-\"),1/0,VLOOKUP($A283,Economática!$A$3:$AI$823,18,FALSE)))","v":""},{"$f":"IF($A283=\"\",\"\",IF(OR(VLOOKUP($A283,Economática!$A$3:$AI$823,19,FALSE)=0,VLOOKUP($A283,Economática!$A$3:$AI$823,19,FALSE)=\"-\"),1/0,VLOOKUP($A283,Economática!$A$3:$AI$823,19,FALSE)))","v":""},{"$f":"IF($A283=\"\",\"\",VLOOKUP($A283,Economática!$A$3:$AI$823,20,FALSE)/E283)","v":""},"","","",{"$f":"IF($A283=\"\",\"\",IF(OR(VLOOKUP($A283,Economática!$A$3:$AI$823,21,FALSE)/100=0,VLOOKUP($A283,Economática!$A$3:$AI$823,21,FALSE)/100=\"-\"),1/0,VLOOKUP($A283,Economática!$A$3:$AI$823,21,FALSE)/100))","v":""},{"$f":"IF($A283=\"\",\"\",IF(OR(VLOOKUP($A283,Economática!$A$3:$AI$823,22,FALSE)/100=0,VLOOKUP($A283,Economática!$A$3:$AI$823,22,FALSE)/100=\"-\"),1/0,VLOOKUP($A283,Economática!$A$3:$AI$823,22,FALSE)/100))","v":""},{"$f":"IF($A283=\"\",\"\",IF(OR(VLOOKUP($A283,Economática!$A$3:$AI$823,23,FALSE)=0,VLOOKUP($A283,Economática!$A$3:$AI$823,23,FALSE)=\"-\"),1/0,VLOOKUP($A283,Economática!$A$3:$AI$823,23,FALSE)))","v":""},{"$f":"IF($A283=\"\",\"\",IF(OR(VLOOKUP($A283,Economática!$A$3:$AI$823,24,FALSE)=0,VLOOKUP($A283,Economática!$A$3:$AI$823,24,FALSE)=\"-\"),1/0,VLOOKUP($A283,Economática!$A$3:$AI$823,24,FALSE)))","v":""},{"$f":"IF($A283=\"\",\"\",IF(OR(VLOOKUP($A283,Economática!$A$3:$AI$823,25,FALSE)=0,VLOOKUP($A283,Economática!$A$3:$AI$823,25,FALSE)=\"-\"),1/0,VLOOKUP($A283,Economática!$A$3:$AI$823,25,FALSE)))","v":""},{"$f":"IF($A283=\"\",\"\",IF(ISERROR((F283+VLOOKUP($A283,Economática!$A$3:$AI$823,26,FALSE))/Y283),(F283+VLOOKUP($A283,Economática!$A$3:$AI$823,26,FALSE))/Y283,(F283+VLOOKUP($A283,Economática!$A$3:$AI$823,26,FALSE))/Y283))","v":""},{"$f":"IF($A283=\"\",\"\",IF(OR(-VLOOKUP($A283,Economática!$A$3:$AI$823,27,FALSE)=0,-VLOOKUP($A283,Economática!$A$3:$AI$823,27,FALSE)=\"-\"),1/0,-VLOOKUP($A283,Economática!$A$3:$AI$823,27,FALSE)))","v":""},"",{"$f":"IF($A283=\"\",\"\",IF(OR(VLOOKUP($A283,Economática!$A$3:$AI$823,28,FALSE)=0,VLOOKUP($A283,Economática!$A$3:$AI$823,28,FALSE)=\"-\"),1/0,VLOOKUP($A283,Economática!$A$3:$AI$823,28,FALSE)))","v":""},{"$f":"IF($A283=\"\",\"\",IF(OR(VLOOKUP($A283,Economática!$A$3:$AI$823,29,FALSE)=0,VLOOKUP($A283,Economática!$A$3:$AI$823,29,FALSE)=\"-\"),1/0,VLOOKUP($A283,Economática!$A$3:$AI$823,29,FALSE)))","v":""},{"$f":"IF($A283=\"\",\"\",IF(OR(VLOOKUP($A283,Economática!$A$3:$AI$823,30,FALSE)/E283=0,VLOOKUP($A283,Economática!$A$3:$AI$823,30,FALSE)/E283=\"-\",VLOOKUP($A283,Economática!$A$3:$AI$823,30,FALSE)/E283<33.33%,VLOOKUP($A283,Economática!$A$3:$AI$823,30,FALSE)/E283>100%),1/0,VLOOKUP($A283,Economática!$A$3:$AI$823,30,FALSE)/E283))","v":""},"",{"$f":"IF($A283=\"\",\"\",IF(OR(VLOOKUP($A283,Economática!$A$3:$AI$823,25,FALSE)=0,VLOOKUP($A283,Economática!$A$3:$AI$823,25,FALSE)=\"-\"),1/0,VLOOKUP($A283,Economática!$A$3:$AI$823,25,FALSE)))","v":""},{"$f":"CONCATENATE(Economática!B261,\" \",Economática!C261)","v":" "}]
[{"$f":"IF(Economática!AG262=\"\",\"\",Economática!AG262)","v":""},{"$f":"IF($A284=\"\",\"\",VLOOKUP(VLOOKUP($A284,Economática!$A$3:$AI$823,6,FALSE),Correção!$B$16:$C$36,2,FALSE))","v":""},{"$f":"IF(Economática!B262=\"\",\"\",Economática!B262)","v":""},{"$f":"IF($A284=\"\",\"\",IF(OR(VLOOKUP($A284,Economática!$A$3:$AI$823,8,FALSE)=0,VLOOKUP($A284,Economática!$A$3:$AI$823,8,FALSE)=\"-\"),1/0,VLOOKUP($A284,Economática!$A$3:$AI$823,8,FALSE)))","v":""},{"$f":"IF(A284=\"\",\"\",IF(ISERROR(VLOOKUP(A284,Correção!$B$2:$G$13,9,FALSE)),VLOOKUP($A284,Economática!$A$3:$AI$823,9,FALSE),VLOOKUP(A284,Correção!$B$2:$G$13,9,FALSE)))","v":""},{"$f":"IF($A284=\"\",\"\",Economática!G262)","v":""},{"$f":"IF($A284=\"\",\"\",IF(OR(VLOOKUP($A284,Economática!$A$3:$AI$823,10,FALSE)=0,VLOOKUP($A284,Economática!$A$3:$AI$823,10,FALSE)=\"-\"),1/0,VLOOKUP($A284,Economática!$A$3:$AI$823,10,FALSE)))","v":""},{"$f":"IF($A284=\"\",\"\",IF(OR(VLOOKUP($A284,Economática!$A$3:$AI$823,11,FALSE)=0,VLOOKUP($A284,Economática!$A$3:$AI$823,11,FALSE)=\"-\"),1/0,VLOOKUP($A284,Economática!$A$3:$AI$823,11,FALSE)))","v":""},{"$f":"IF($A284=\"\",\"\",IF(OR(VLOOKUP($A284,Economática!$A$3:$AI$823,12,FALSE)=0,VLOOKUP($A284,Economática!$A$3:$AI$823,12,FALSE)=\"-\"),1/0,VLOOKUP($A284,Economática!$A$3:$AI$823,12,FALSE)))","v":""},{"$f":"IF($A284=\"\",\"\",IF(OR(VLOOKUP($A284,Economática!$A$3:$AI$823,13,FALSE)=0,VLOOKUP($A284,Economática!$A$3:$AI$823,13,FALSE)=\"-\"),1/0,VLOOKUP($A284,Economática!$A$3:$AI$823,13,FALSE)))","v":""},{"$f":"IF($A284=\"\",\"\",IF(OR(VLOOKUP($A284,Economática!$A$3:$AI$823,14,FALSE)=0,VLOOKUP($A284,Economática!$A$3:$AI$823,14,FALSE)=\"-\"),1/0,VLOOKUP($A284,Economática!$A$3:$AI$823,14,FALSE)))","v":""},{"$f":"IF($A284=\"\",\"\",IF(OR(VLOOKUP($A284,Economática!$A$3:$AI$823,15,FALSE)=0,VLOOKUP($A284,Economática!$A$3:$AI$823,15,FALSE)=\"-\"),1/0,VLOOKUP($A284,Economática!$A$3:$AI$823,15,FALSE)))","v":""},{"$f":"IF($A284=\"\",\"\",IF(OR(VLOOKUP($A284,Economática!$A$3:$AI$823,16,FALSE)=0,VLOOKUP($A284,Economática!$A$3:$AI$823,16,FALSE)=\"-\"),1/0,VLOOKUP($A284,Economática!$A$3:$AI$823,16,FALSE)))","v":""},{"$f":"IF($A284=\"\",\"\",IF(OR(VLOOKUP($A284,Economática!$A$3:$AI$823,17,FALSE)=0,VLOOKUP($A284,Economática!$A$3:$AI$823,17,FALSE)=\"-\"),1/0,VLOOKUP($A284,Economática!$A$3:$AI$823,17,FALSE)))","v":""},{"$f":"IF($A284=\"\",\"\",IF(OR(VLOOKUP($A284,Economática!$A$3:$AI$823,18,FALSE)=0,VLOOKUP($A284,Economática!$A$3:$AI$823,18,FALSE)=\"-\"),1/0,VLOOKUP($A284,Economática!$A$3:$AI$823,18,FALSE)))","v":""},{"$f":"IF($A284=\"\",\"\",IF(OR(VLOOKUP($A284,Economática!$A$3:$AI$823,19,FALSE)=0,VLOOKUP($A284,Economática!$A$3:$AI$823,19,FALSE)=\"-\"),1/0,VLOOKUP($A284,Economática!$A$3:$AI$823,19,FALSE)))","v":""},{"$f":"IF($A284=\"\",\"\",VLOOKUP($A284,Economática!$A$3:$AI$823,20,FALSE)/E284)","v":""},"","","",{"$f":"IF($A284=\"\",\"\",IF(OR(VLOOKUP($A284,Economática!$A$3:$AI$823,21,FALSE)/100=0,VLOOKUP($A284,Economática!$A$3:$AI$823,21,FALSE)/100=\"-\"),1/0,VLOOKUP($A284,Economática!$A$3:$AI$823,21,FALSE)/100))","v":""},{"$f":"IF($A284=\"\",\"\",IF(OR(VLOOKUP($A284,Economática!$A$3:$AI$823,22,FALSE)/100=0,VLOOKUP($A284,Economática!$A$3:$AI$823,22,FALSE)/100=\"-\"),1/0,VLOOKUP($A284,Economática!$A$3:$AI$823,22,FALSE)/100))","v":""},{"$f":"IF($A284=\"\",\"\",IF(OR(VLOOKUP($A284,Economática!$A$3:$AI$823,23,FALSE)=0,VLOOKUP($A284,Economática!$A$3:$AI$823,23,FALSE)=\"-\"),1/0,VLOOKUP($A284,Economática!$A$3:$AI$823,23,FALSE)))","v":""},{"$f":"IF($A284=\"\",\"\",IF(OR(VLOOKUP($A284,Economática!$A$3:$AI$823,24,FALSE)=0,VLOOKUP($A284,Economática!$A$3:$AI$823,24,FALSE)=\"-\"),1/0,VLOOKUP($A284,Economática!$A$3:$AI$823,24,FALSE)))","v":""},{"$f":"IF($A284=\"\",\"\",IF(OR(VLOOKUP($A284,Economática!$A$3:$AI$823,25,FALSE)=0,VLOOKUP($A284,Economática!$A$3:$AI$823,25,FALSE)=\"-\"),1/0,VLOOKUP($A284,Economática!$A$3:$AI$823,25,FALSE)))","v":""},{"$f":"IF($A284=\"\",\"\",IF(ISERROR((F284+VLOOKUP($A284,Economática!$A$3:$AI$823,26,FALSE))/Y284),(F284+VLOOKUP($A284,Economática!$A$3:$AI$823,26,FALSE))/Y284,(F284+VLOOKUP($A284,Economática!$A$3:$AI$823,26,FALSE))/Y284))","v":""},{"$f":"IF($A284=\"\",\"\",IF(OR(-VLOOKUP($A284,Economática!$A$3:$AI$823,27,FALSE)=0,-VLOOKUP($A284,Economática!$A$3:$AI$823,27,FALSE)=\"-\"),1/0,-VLOOKUP($A284,Economática!$A$3:$AI$823,27,FALSE)))","v":""},"",{"$f":"IF($A284=\"\",\"\",IF(OR(VLOOKUP($A284,Economática!$A$3:$AI$823,28,FALSE)=0,VLOOKUP($A284,Economática!$A$3:$AI$823,28,FALSE)=\"-\"),1/0,VLOOKUP($A284,Economática!$A$3:$AI$823,28,FALSE)))","v":""},{"$f":"IF($A284=\"\",\"\",IF(OR(VLOOKUP($A284,Economática!$A$3:$AI$823,29,FALSE)=0,VLOOKUP($A284,Economática!$A$3:$AI$823,29,FALSE)=\"-\"),1/0,VLOOKUP($A284,Economática!$A$3:$AI$823,29,FALSE)))","v":""},{"$f":"IF($A284=\"\",\"\",IF(OR(VLOOKUP($A284,Economática!$A$3:$AI$823,30,FALSE)/E284=0,VLOOKUP($A284,Economática!$A$3:$AI$823,30,FALSE)/E284=\"-\",VLOOKUP($A284,Economática!$A$3:$AI$823,30,FALSE)/E284<33.33%,VLOOKUP($A284,Economática!$A$3:$AI$823,30,FALSE)/E284>100%),1/0,VLOOKUP($A284,Economática!$A$3:$AI$823,30,FALSE)/E284))","v":""},"",{"$f":"IF($A284=\"\",\"\",IF(OR(VLOOKUP($A284,Economática!$A$3:$AI$823,25,FALSE)=0,VLOOKUP($A284,Economática!$A$3:$AI$823,25,FALSE)=\"-\"),1/0,VLOOKUP($A284,Economática!$A$3:$AI$823,25,FALSE)))","v":""},{"$f":"CONCATENATE(Economática!B262,\" \",Economática!C262)","v":" "}]
[{"$f":"IF(Economática!AG263=\"\",\"\",Economática!AG263)","v":""},{"$f":"IF($A285=\"\",\"\",VLOOKUP(VLOOKUP($A285,Economática!$A$3:$AI$823,6,FALSE),Correção!$B$16:$C$36,2,FALSE))","v":""},{"$f":"IF(Economática!B263=\"\",\"\",Economática!B263)","v":""},{"$f":"IF($A285=\"\",\"\",IF(OR(VLOOKUP($A285,Economática!$A$3:$AI$823,8,FALSE)=0,VLOOKUP($A285,Economática!$A$3:$AI$823,8,FALSE)=\"-\"),1/0,VLOOKUP($A285,Economática!$A$3:$AI$823,8,FALSE)))","v":""},{"$f":"IF(A285=\"\",\"\",IF(ISERROR(VLOOKUP(A285,Correção!$B$2:$G$13,9,FALSE)),VLOOKUP($A285,Economática!$A$3:$AI$823,9,FALSE),VLOOKUP(A285,Correção!$B$2:$G$13,9,FALSE)))","v":""},{"$f":"IF($A285=\"\",\"\",Economática!G263)","v":""},{"$f":"IF($A285=\"\",\"\",IF(OR(VLOOKUP($A285,Economática!$A$3:$AI$823,10,FALSE)=0,VLOOKUP($A285,Economática!$A$3:$AI$823,10,FALSE)=\"-\"),1/0,VLOOKUP($A285,Economática!$A$3:$AI$823,10,FALSE)))","v":""},{"$f":"IF($A285=\"\",\"\",IF(OR(VLOOKUP($A285,Economática!$A$3:$AI$823,11,FALSE)=0,VLOOKUP($A285,Economática!$A$3:$AI$823,11,FALSE)=\"-\"),1/0,VLOOKUP($A285,Economática!$A$3:$AI$823,11,FALSE)))","v":""},{"$f":"IF($A285=\"\",\"\",IF(OR(VLOOKUP($A285,Economática!$A$3:$AI$823,12,FALSE)=0,VLOOKUP($A285,Economática!$A$3:$AI$823,12,FALSE)=\"-\"),1/0,VLOOKUP($A285,Economática!$A$3:$AI$823,12,FALSE)))","v":""},{"$f":"IF($A285=\"\",\"\",IF(OR(VLOOKUP($A285,Economática!$A$3:$AI$823,13,FALSE)=0,VLOOKUP($A285,Economática!$A$3:$AI$823,13,FALSE)=\"-\"),1/0,VLOOKUP($A285,Economática!$A$3:$AI$823,13,FALSE)))","v":""},{"$f":"IF($A285=\"\",\"\",IF(OR(VLOOKUP($A285,Economática!$A$3:$AI$823,14,FALSE)=0,VLOOKUP($A285,Economática!$A$3:$AI$823,14,FALSE)=\"-\"),1/0,VLOOKUP($A285,Economática!$A$3:$AI$823,14,FALSE)))","v":""},{"$f":"IF($A285=\"\",\"\",IF(OR(VLOOKUP($A285,Economática!$A$3:$AI$823,15,FALSE)=0,VLOOKUP($A285,Economática!$A$3:$AI$823,15,FALSE)=\"-\"),1/0,VLOOKUP($A285,Economática!$A$3:$AI$823,15,FALSE)))","v":""},{"$f":"IF($A285=\"\",\"\",IF(OR(VLOOKUP($A285,Economática!$A$3:$AI$823,16,FALSE)=0,VLOOKUP($A285,Economática!$A$3:$AI$823,16,FALSE)=\"-\"),1/0,VLOOKUP($A285,Economática!$A$3:$AI$823,16,FALSE)))","v":""},{"$f":"IF($A285=\"\",\"\",IF(OR(VLOOKUP($A285,Economática!$A$3:$AI$823,17,FALSE)=0,VLOOKUP($A285,Economática!$A$3:$AI$823,17,FALSE)=\"-\"),1/0,VLOOKUP($A285,Economática!$A$3:$AI$823,17,FALSE)))","v":""},{"$f":"IF($A285=\"\",\"\",IF(OR(VLOOKUP($A285,Economática!$A$3:$AI$823,18,FALSE)=0,VLOOKUP($A285,Economática!$A$3:$AI$823,18,FALSE)=\"-\"),1/0,VLOOKUP($A285,Economática!$A$3:$AI$823,18,FALSE)))","v":""},{"$f":"IF($A285=\"\",\"\",IF(OR(VLOOKUP($A285,Economática!$A$3:$AI$823,19,FALSE)=0,VLOOKUP($A285,Economática!$A$3:$AI$823,19,FALSE)=\"-\"),1/0,VLOOKUP($A285,Economática!$A$3:$AI$823,19,FALSE)))","v":""},{"$f":"IF($A285=\"\",\"\",VLOOKUP($A285,Economática!$A$3:$AI$823,20,FALSE)/E285)","v":""},"","","",{"$f":"IF($A285=\"\",\"\",IF(OR(VLOOKUP($A285,Economática!$A$3:$AI$823,21,FALSE)/100=0,VLOOKUP($A285,Economática!$A$3:$AI$823,21,FALSE)/100=\"-\"),1/0,VLOOKUP($A285,Economática!$A$3:$AI$823,21,FALSE)/100))","v":""},{"$f":"IF($A285=\"\",\"\",IF(OR(VLOOKUP($A285,Economática!$A$3:$AI$823,22,FALSE)/100=0,VLOOKUP($A285,Economática!$A$3:$AI$823,22,FALSE)/100=\"-\"),1/0,VLOOKUP($A285,Economática!$A$3:$AI$823,22,FALSE)/100))","v":""},{"$f":"IF($A285=\"\",\"\",IF(OR(VLOOKUP($A285,Economática!$A$3:$AI$823,23,FALSE)=0,VLOOKUP($A285,Economática!$A$3:$AI$823,23,FALSE)=\"-\"),1/0,VLOOKUP($A285,Economática!$A$3:$AI$823,23,FALSE)))","v":""},{"$f":"IF($A285=\"\",\"\",IF(OR(VLOOKUP($A285,Economática!$A$3:$AI$823,24,FALSE)=0,VLOOKUP($A285,Economática!$A$3:$AI$823,24,FALSE)=\"-\"),1/0,VLOOKUP($A285,Economática!$A$3:$AI$823,24,FALSE)))","v":""},{"$f":"IF($A285=\"\",\"\",IF(OR(VLOOKUP($A285,Economática!$A$3:$AI$823,25,FALSE)=0,VLOOKUP($A285,Economática!$A$3:$AI$823,25,FALSE)=\"-\"),1/0,VLOOKUP($A285,Economática!$A$3:$AI$823,25,FALSE)))","v":""},{"$f":"IF($A285=\"\",\"\",IF(ISERROR((F285+VLOOKUP($A285,Economática!$A$3:$AI$823,26,FALSE))/Y285),(F285+VLOOKUP($A285,Economática!$A$3:$AI$823,26,FALSE))/Y285,(F285+VLOOKUP($A285,Economática!$A$3:$AI$823,26,FALSE))/Y285))","v":""},{"$f":"IF($A285=\"\",\"\",IF(OR(-VLOOKUP($A285,Economática!$A$3:$AI$823,27,FALSE)=0,-VLOOKUP($A285,Economática!$A$3:$AI$823,27,FALSE)=\"-\"),1/0,-VLOOKUP($A285,Economática!$A$3:$AI$823,27,FALSE)))","v":""},"",{"$f":"IF($A285=\"\",\"\",IF(OR(VLOOKUP($A285,Economática!$A$3:$AI$823,28,FALSE)=0,VLOOKUP($A285,Economática!$A$3:$AI$823,28,FALSE)=\"-\"),1/0,VLOOKUP($A285,Economática!$A$3:$AI$823,28,FALSE)))","v":""},{"$f":"IF($A285=\"\",\"\",IF(OR(VLOOKUP($A285,Economática!$A$3:$AI$823,29,FALSE)=0,VLOOKUP($A285,Economática!$A$3:$AI$823,29,FALSE)=\"-\"),1/0,VLOOKUP($A285,Economática!$A$3:$AI$823,29,FALSE)))","v":""},{"$f":"IF($A285=\"\",\"\",IF(OR(VLOOKUP($A285,Economática!$A$3:$AI$823,30,FALSE)/E285=0,VLOOKUP($A285,Economática!$A$3:$AI$823,30,FALSE)/E285=\"-\",VLOOKUP($A285,Economática!$A$3:$AI$823,30,FALSE)/E285<33.33%,VLOOKUP($A285,Economática!$A$3:$AI$823,30,FALSE)/E285>100%),1/0,VLOOKUP($A285,Economática!$A$3:$AI$823,30,FALSE)/E285))","v":""},"",{"$f":"IF($A285=\"\",\"\",IF(OR(VLOOKUP($A285,Economática!$A$3:$AI$823,25,FALSE)=0,VLOOKUP($A285,Economática!$A$3:$AI$823,25,FALSE)=\"-\"),1/0,VLOOKUP($A285,Economática!$A$3:$AI$823,25,FALSE)))","v":""},{"$f":"CONCATENATE(Economática!B263,\" \",Economática!C263)","v":" "}]
[{"$f":"IF(Economática!AG264=\"\",\"\",Economática!AG264)","v":""},{"$f":"IF($A286=\"\",\"\",VLOOKUP(VLOOKUP($A286,Economática!$A$3:$AI$823,6,FALSE),Correção!$B$16:$C$36,2,FALSE))","v":""},{"$f":"IF(Economática!B264=\"\",\"\",Economática!B264)","v":""},{"$f":"IF($A286=\"\",\"\",IF(OR(VLOOKUP($A286,Economática!$A$3:$AI$823,8,FALSE)=0,VLOOKUP($A286,Economática!$A$3:$AI$823,8,FALSE)=\"-\"),1/0,VLOOKUP($A286,Economática!$A$3:$AI$823,8,FALSE)))","v":""},{"$f":"IF(A286=\"\",\"\",IF(ISERROR(VLOOKUP(A286,Correção!$B$2:$G$13,9,FALSE)),VLOOKUP($A286,Economática!$A$3:$AI$823,9,FALSE),VLOOKUP(A286,Correção!$B$2:$G$13,9,FALSE)))","v":""},{"$f":"IF($A286=\"\",\"\",Economática!G264)","v":""},{"$f":"IF($A286=\"\",\"\",IF(OR(VLOOKUP($A286,Economática!$A$3:$AI$823,10,FALSE)=0,VLOOKUP($A286,Economática!$A$3:$AI$823,10,FALSE)=\"-\"),1/0,VLOOKUP($A286,Economática!$A$3:$AI$823,10,FALSE)))","v":""},{"$f":"IF($A286=\"\",\"\",IF(OR(VLOOKUP($A286,Economática!$A$3:$AI$823,11,FALSE)=0,VLOOKUP($A286,Economática!$A$3:$AI$823,11,FALSE)=\"-\"),1/0,VLOOKUP($A286,Economática!$A$3:$AI$823,11,FALSE)))","v":""},{"$f":"IF($A286=\"\",\"\",IF(OR(VLOOKUP($A286,Economática!$A$3:$AI$823,12,FALSE)=0,VLOOKUP($A286,Economática!$A$3:$AI$823,12,FALSE)=\"-\"),1/0,VLOOKUP($A286,Economática!$A$3:$AI$823,12,FALSE)))","v":""},{"$f":"IF($A286=\"\",\"\",IF(OR(VLOOKUP($A286,Economática!$A$3:$AI$823,13,FALSE)=0,VLOOKUP($A286,Economática!$A$3:$AI$823,13,FALSE)=\"-\"),1/0,VLOOKUP($A286,Economática!$A$3:$AI$823,13,FALSE)))","v":""},{"$f":"IF($A286=\"\",\"\",IF(OR(VLOOKUP($A286,Economática!$A$3:$AI$823,14,FALSE)=0,VLOOKUP($A286,Economática!$A$3:$AI$823,14,FALSE)=\"-\"),1/0,VLOOKUP($A286,Economática!$A$3:$AI$823,14,FALSE)))","v":""},{"$f":"IF($A286=\"\",\"\",IF(OR(VLOOKUP($A286,Economática!$A$3:$AI$823,15,FALSE)=0,VLOOKUP($A286,Economática!$A$3:$AI$823,15,FALSE)=\"-\"),1/0,VLOOKUP($A286,Economática!$A$3:$AI$823,15,FALSE)))","v":""},{"$f":"IF($A286=\"\",\"\",IF(OR(VLOOKUP($A286,Economática!$A$3:$AI$823,16,FALSE)=0,VLOOKUP($A286,Economática!$A$3:$AI$823,16,FALSE)=\"-\"),1/0,VLOOKUP($A286,Economática!$A$3:$AI$823,16,FALSE)))","v":""},{"$f":"IF($A286=\"\",\"\",IF(OR(VLOOKUP($A286,Economática!$A$3:$AI$823,17,FALSE)=0,VLOOKUP($A286,Economática!$A$3:$AI$823,17,FALSE)=\"-\"),1/0,VLOOKUP($A286,Economática!$A$3:$AI$823,17,FALSE)))","v":""},{"$f":"IF($A286=\"\",\"\",IF(OR(VLOOKUP($A286,Economática!$A$3:$AI$823,18,FALSE)=0,VLOOKUP($A286,Economática!$A$3:$AI$823,18,FALSE)=\"-\"),1/0,VLOOKUP($A286,Economática!$A$3:$AI$823,18,FALSE)))","v":""},{"$f":"IF($A286=\"\",\"\",IF(OR(VLOOKUP($A286,Economática!$A$3:$AI$823,19,FALSE)=0,VLOOKUP($A286,Economática!$A$3:$AI$823,19,FALSE)=\"-\"),1/0,VLOOKUP($A286,Economática!$A$3:$AI$823,19,FALSE)))","v":""},{"$f":"IF($A286=\"\",\"\",VLOOKUP($A286,Economática!$A$3:$AI$823,20,FALSE)/E286)","v":""},"","","",{"$f":"IF($A286=\"\",\"\",IF(OR(VLOOKUP($A286,Economática!$A$3:$AI$823,21,FALSE)/100=0,VLOOKUP($A286,Economática!$A$3:$AI$823,21,FALSE)/100=\"-\"),1/0,VLOOKUP($A286,Economática!$A$3:$AI$823,21,FALSE)/100))","v":""},{"$f":"IF($A286=\"\",\"\",IF(OR(VLOOKUP($A286,Economática!$A$3:$AI$823,22,FALSE)/100=0,VLOOKUP($A286,Economática!$A$3:$AI$823,22,FALSE)/100=\"-\"),1/0,VLOOKUP($A286,Economática!$A$3:$AI$823,22,FALSE)/100))","v":""},{"$f":"IF($A286=\"\",\"\",IF(OR(VLOOKUP($A286,Economática!$A$3:$AI$823,23,FALSE)=0,VLOOKUP($A286,Economática!$A$3:$AI$823,23,FALSE)=\"-\"),1/0,VLOOKUP($A286,Economática!$A$3:$AI$823,23,FALSE)))","v":""},{"$f":"IF($A286=\"\",\"\",IF(OR(VLOOKUP($A286,Economática!$A$3:$AI$823,24,FALSE)=0,VLOOKUP($A286,Economática!$A$3:$AI$823,24,FALSE)=\"-\"),1/0,VLOOKUP($A286,Economática!$A$3:$AI$823,24,FALSE)))","v":""},{"$f":"IF($A286=\"\",\"\",IF(OR(VLOOKUP($A286,Economática!$A$3:$AI$823,25,FALSE)=0,VLOOKUP($A286,Economática!$A$3:$AI$823,25,FALSE)=\"-\"),1/0,VLOOKUP($A286,Economática!$A$3:$AI$823,25,FALSE)))","v":""},{"$f":"IF($A286=\"\",\"\",IF(ISERROR((F286+VLOOKUP($A286,Economática!$A$3:$AI$823,26,FALSE))/Y286),(F286+VLOOKUP($A286,Economática!$A$3:$AI$823,26,FALSE))/Y286,(F286+VLOOKUP($A286,Economática!$A$3:$AI$823,26,FALSE))/Y286))","v":""},{"$f":"IF($A286=\"\",\"\",IF(OR(-VLOOKUP($A286,Economática!$A$3:$AI$823,27,FALSE)=0,-VLOOKUP($A286,Economática!$A$3:$AI$823,27,FALSE)=\"-\"),1/0,-VLOOKUP($A286,Economática!$A$3:$AI$823,27,FALSE)))","v":""},"",{"$f":"IF($A286=\"\",\"\",IF(OR(VLOOKUP($A286,Economática!$A$3:$AI$823,28,FALSE)=0,VLOOKUP($A286,Economática!$A$3:$AI$823,28,FALSE)=\"-\"),1/0,VLOOKUP($A286,Economática!$A$3:$AI$823,28,FALSE)))","v":""},{"$f":"IF($A286=\"\",\"\",IF(OR(VLOOKUP($A286,Economática!$A$3:$AI$823,29,FALSE)=0,VLOOKUP($A286,Economática!$A$3:$AI$823,29,FALSE)=\"-\"),1/0,VLOOKUP($A286,Economática!$A$3:$AI$823,29,FALSE)))","v":""},{"$f":"IF($A286=\"\",\"\",IF(OR(VLOOKUP($A286,Economática!$A$3:$AI$823,30,FALSE)/E286=0,VLOOKUP($A286,Economática!$A$3:$AI$823,30,FALSE)/E286=\"-\",VLOOKUP($A286,Economática!$A$3:$AI$823,30,FALSE)/E286<33.33%,VLOOKUP($A286,Economática!$A$3:$AI$823,30,FALSE)/E286>100%),1/0,VLOOKUP($A286,Economática!$A$3:$AI$823,30,FALSE)/E286))","v":""},"",{"$f":"IF($A286=\"\",\"\",IF(OR(VLOOKUP($A286,Economática!$A$3:$AI$823,25,FALSE)=0,VLOOKUP($A286,Economática!$A$3:$AI$823,25,FALSE)=\"-\"),1/0,VLOOKUP($A286,Economática!$A$3:$AI$823,25,FALSE)))","v":""},{"$f":"CONCATENATE(Economática!B264,\" \",Economática!C264)","v":" "}]
[{"$f":"IF(Economática!AG265=\"\",\"\",Economática!AG265)","v":""},{"$f":"IF($A287=\"\",\"\",VLOOKUP(VLOOKUP($A287,Economática!$A$3:$AI$823,6,FALSE),Correção!$B$16:$C$36,2,FALSE))","v":""},{"$f":"IF(Economática!B265=\"\",\"\",Economática!B265)","v":""},{"$f":"IF($A287=\"\",\"\",IF(OR(VLOOKUP($A287,Economática!$A$3:$AI$823,8,FALSE)=0,VLOOKUP($A287,Economática!$A$3:$AI$823,8,FALSE)=\"-\"),1/0,VLOOKUP($A287,Economática!$A$3:$AI$823,8,FALSE)))","v":""},{"$f":"IF(A287=\"\",\"\",IF(ISERROR(VLOOKUP(A287,Correção!$B$2:$G$13,9,FALSE)),VLOOKUP($A287,Economática!$A$3:$AI$823,9,FALSE),VLOOKUP(A287,Correção!$B$2:$G$13,9,FALSE)))","v":""},{"$f":"IF($A287=\"\",\"\",Economática!G265)","v":""},{"$f":"IF($A287=\"\",\"\",IF(OR(VLOOKUP($A287,Economática!$A$3:$AI$823,10,FALSE)=0,VLOOKUP($A287,Economática!$A$3:$AI$823,10,FALSE)=\"-\"),1/0,VLOOKUP($A287,Economática!$A$3:$AI$823,10,FALSE)))","v":""},{"$f":"IF($A287=\"\",\"\",IF(OR(VLOOKUP($A287,Economática!$A$3:$AI$823,11,FALSE)=0,VLOOKUP($A287,Economática!$A$3:$AI$823,11,FALSE)=\"-\"),1/0,VLOOKUP($A287,Economática!$A$3:$AI$823,11,FALSE)))","v":""},{"$f":"IF($A287=\"\",\"\",IF(OR(VLOOKUP($A287,Economática!$A$3:$AI$823,12,FALSE)=0,VLOOKUP($A287,Economática!$A$3:$AI$823,12,FALSE)=\"-\"),1/0,VLOOKUP($A287,Economática!$A$3:$AI$823,12,FALSE)))","v":""},{"$f":"IF($A287=\"\",\"\",IF(OR(VLOOKUP($A287,Economática!$A$3:$AI$823,13,FALSE)=0,VLOOKUP($A287,Economática!$A$3:$AI$823,13,FALSE)=\"-\"),1/0,VLOOKUP($A287,Economática!$A$3:$AI$823,13,FALSE)))","v":""},{"$f":"IF($A287=\"\",\"\",IF(OR(VLOOKUP($A287,Economática!$A$3:$AI$823,14,FALSE)=0,VLOOKUP($A287,Economática!$A$3:$AI$823,14,FALSE)=\"-\"),1/0,VLOOKUP($A287,Economática!$A$3:$AI$823,14,FALSE)))","v":""},{"$f":"IF($A287=\"\",\"\",IF(OR(VLOOKUP($A287,Economática!$A$3:$AI$823,15,FALSE)=0,VLOOKUP($A287,Economática!$A$3:$AI$823,15,FALSE)=\"-\"),1/0,VLOOKUP($A287,Economática!$A$3:$AI$823,15,FALSE)))","v":""},{"$f":"IF($A287=\"\",\"\",IF(OR(VLOOKUP($A287,Economática!$A$3:$AI$823,16,FALSE)=0,VLOOKUP($A287,Economática!$A$3:$AI$823,16,FALSE)=\"-\"),1/0,VLOOKUP($A287,Economática!$A$3:$AI$823,16,FALSE)))","v":""},{"$f":"IF($A287=\"\",\"\",IF(OR(VLOOKUP($A287,Economática!$A$3:$AI$823,17,FALSE)=0,VLOOKUP($A287,Economática!$A$3:$AI$823,17,FALSE)=\"-\"),1/0,VLOOKUP($A287,Economática!$A$3:$AI$823,17,FALSE)))","v":""},{"$f":"IF($A287=\"\",\"\",IF(OR(VLOOKUP($A287,Economática!$A$3:$AI$823,18,FALSE)=0,VLOOKUP($A287,Economática!$A$3:$AI$823,18,FALSE)=\"-\"),1/0,VLOOKUP($A287,Economática!$A$3:$AI$823,18,FALSE)))","v":""},{"$f":"IF($A287=\"\",\"\",IF(OR(VLOOKUP($A287,Economática!$A$3:$AI$823,19,FALSE)=0,VLOOKUP($A287,Economática!$A$3:$AI$823,19,FALSE)=\"-\"),1/0,VLOOKUP($A287,Economática!$A$3:$AI$823,19,FALSE)))","v":""},{"$f":"IF($A287=\"\",\"\",VLOOKUP($A287,Economática!$A$3:$AI$823,20,FALSE)/E287)","v":""},"","","",{"$f":"IF($A287=\"\",\"\",IF(OR(VLOOKUP($A287,Economática!$A$3:$AI$823,21,FALSE)/100=0,VLOOKUP($A287,Economática!$A$3:$AI$823,21,FALSE)/100=\"-\"),1/0,VLOOKUP($A287,Economática!$A$3:$AI$823,21,FALSE)/100))","v":""},{"$f":"IF($A287=\"\",\"\",IF(OR(VLOOKUP($A287,Economática!$A$3:$AI$823,22,FALSE)/100=0,VLOOKUP($A287,Economática!$A$3:$AI$823,22,FALSE)/100=\"-\"),1/0,VLOOKUP($A287,Economática!$A$3:$AI$823,22,FALSE)/100))","v":""},{"$f":"IF($A287=\"\",\"\",IF(OR(VLOOKUP($A287,Economática!$A$3:$AI$823,23,FALSE)=0,VLOOKUP($A287,Economática!$A$3:$AI$823,23,FALSE)=\"-\"),1/0,VLOOKUP($A287,Economática!$A$3:$AI$823,23,FALSE)))","v":""},{"$f":"IF($A287=\"\",\"\",IF(OR(VLOOKUP($A287,Economática!$A$3:$AI$823,24,FALSE)=0,VLOOKUP($A287,Economática!$A$3:$AI$823,24,FALSE)=\"-\"),1/0,VLOOKUP($A287,Economática!$A$3:$AI$823,24,FALSE)))","v":""},{"$f":"IF($A287=\"\",\"\",IF(OR(VLOOKUP($A287,Economática!$A$3:$AI$823,25,FALSE)=0,VLOOKUP($A287,Economática!$A$3:$AI$823,25,FALSE)=\"-\"),1/0,VLOOKUP($A287,Economática!$A$3:$AI$823,25,FALSE)))","v":""},{"$f":"IF($A287=\"\",\"\",IF(ISERROR((F287+VLOOKUP($A287,Economática!$A$3:$AI$823,26,FALSE))/Y287),(F287+VLOOKUP($A287,Economática!$A$3:$AI$823,26,FALSE))/Y287,(F287+VLOOKUP($A287,Economática!$A$3:$AI$823,26,FALSE))/Y287))","v":""},{"$f":"IF($A287=\"\",\"\",IF(OR(-VLOOKUP($A287,Economática!$A$3:$AI$823,27,FALSE)=0,-VLOOKUP($A287,Economática!$A$3:$AI$823,27,FALSE)=\"-\"),1/0,-VLOOKUP($A287,Economática!$A$3:$AI$823,27,FALSE)))","v":""},"",{"$f":"IF($A287=\"\",\"\",IF(OR(VLOOKUP($A287,Economática!$A$3:$AI$823,28,FALSE)=0,VLOOKUP($A287,Economática!$A$3:$AI$823,28,FALSE)=\"-\"),1/0,VLOOKUP($A287,Economática!$A$3:$AI$823,28,FALSE)))","v":""},{"$f":"IF($A287=\"\",\"\",IF(OR(VLOOKUP($A287,Economática!$A$3:$AI$823,29,FALSE)=0,VLOOKUP($A287,Economática!$A$3:$AI$823,29,FALSE)=\"-\"),1/0,VLOOKUP($A287,Economática!$A$3:$AI$823,29,FALSE)))","v":""},{"$f":"IF($A287=\"\",\"\",IF(OR(VLOOKUP($A287,Economática!$A$3:$AI$823,30,FALSE)/E287=0,VLOOKUP($A287,Economática!$A$3:$AI$823,30,FALSE)/E287=\"-\",VLOOKUP($A287,Economática!$A$3:$AI$823,30,FALSE)/E287<33.33%,VLOOKUP($A287,Economática!$A$3:$AI$823,30,FALSE)/E287>100%),1/0,VLOOKUP($A287,Economática!$A$3:$AI$823,30,FALSE)/E287))","v":""},"",{"$f":"IF($A287=\"\",\"\",IF(OR(VLOOKUP($A287,Economática!$A$3:$AI$823,25,FALSE)=0,VLOOKUP($A287,Economática!$A$3:$AI$823,25,FALSE)=\"-\"),1/0,VLOOKUP($A287,Economática!$A$3:$AI$823,25,FALSE)))","v":""},{"$f":"CONCATENATE(Economática!B265,\" \",Economática!C265)","v":" "}]
[{"$f":"IF(Economática!AG266=\"\",\"\",Economática!AG266)","v":""},{"$f":"IF($A288=\"\",\"\",VLOOKUP(VLOOKUP($A288,Economática!$A$3:$AI$823,6,FALSE),Correção!$B$16:$C$36,2,FALSE))","v":""},{"$f":"IF(Economática!B266=\"\",\"\",Economática!B266)","v":""},{"$f":"IF($A288=\"\",\"\",IF(OR(VLOOKUP($A288,Economática!$A$3:$AI$823,8,FALSE)=0,VLOOKUP($A288,Economática!$A$3:$AI$823,8,FALSE)=\"-\"),1/0,VLOOKUP($A288,Economática!$A$3:$AI$823,8,FALSE)))","v":""},{"$f":"IF(A288=\"\",\"\",IF(ISERROR(VLOOKUP(A288,Correção!$B$2:$G$13,9,FALSE)),VLOOKUP($A288,Economática!$A$3:$AI$823,9,FALSE),VLOOKUP(A288,Correção!$B$2:$G$13,9,FALSE)))","v":""},{"$f":"IF($A288=\"\",\"\",Economática!G266)","v":""},{"$f":"IF($A288=\"\",\"\",IF(OR(VLOOKUP($A288,Economática!$A$3:$AI$823,10,FALSE)=0,VLOOKUP($A288,Economática!$A$3:$AI$823,10,FALSE)=\"-\"),1/0,VLOOKUP($A288,Economática!$A$3:$AI$823,10,FALSE)))","v":""},{"$f":"IF($A288=\"\",\"\",IF(OR(VLOOKUP($A288,Economática!$A$3:$AI$823,11,FALSE)=0,VLOOKUP($A288,Economática!$A$3:$AI$823,11,FALSE)=\"-\"),1/0,VLOOKUP($A288,Economática!$A$3:$AI$823,11,FALSE)))","v":""},{"$f":"IF($A288=\"\",\"\",IF(OR(VLOOKUP($A288,Economática!$A$3:$AI$823,12,FALSE)=0,VLOOKUP($A288,Economática!$A$3:$AI$823,12,FALSE)=\"-\"),1/0,VLOOKUP($A288,Economática!$A$3:$AI$823,12,FALSE)))","v":""},{"$f":"IF($A288=\"\",\"\",IF(OR(VLOOKUP($A288,Economática!$A$3:$AI$823,13,FALSE)=0,VLOOKUP($A288,Economática!$A$3:$AI$823,13,FALSE)=\"-\"),1/0,VLOOKUP($A288,Economática!$A$3:$AI$823,13,FALSE)))","v":""},{"$f":"IF($A288=\"\",\"\",IF(OR(VLOOKUP($A288,Economática!$A$3:$AI$823,14,FALSE)=0,VLOOKUP($A288,Economática!$A$3:$AI$823,14,FALSE)=\"-\"),1/0,VLOOKUP($A288,Economática!$A$3:$AI$823,14,FALSE)))","v":""},{"$f":"IF($A288=\"\",\"\",IF(OR(VLOOKUP($A288,Economática!$A$3:$AI$823,15,FALSE)=0,VLOOKUP($A288,Economática!$A$3:$AI$823,15,FALSE)=\"-\"),1/0,VLOOKUP($A288,Economática!$A$3:$AI$823,15,FALSE)))","v":""},{"$f":"IF($A288=\"\",\"\",IF(OR(VLOOKUP($A288,Economática!$A$3:$AI$823,16,FALSE)=0,VLOOKUP($A288,Economática!$A$3:$AI$823,16,FALSE)=\"-\"),1/0,VLOOKUP($A288,Economática!$A$3:$AI$823,16,FALSE)))","v":""},{"$f":"IF($A288=\"\",\"\",IF(OR(VLOOKUP($A288,Economática!$A$3:$AI$823,17,FALSE)=0,VLOOKUP($A288,Economática!$A$3:$AI$823,17,FALSE)=\"-\"),1/0,VLOOKUP($A288,Economática!$A$3:$AI$823,17,FALSE)))","v":""},{"$f":"IF($A288=\"\",\"\",IF(OR(VLOOKUP($A288,Economática!$A$3:$AI$823,18,FALSE)=0,VLOOKUP($A288,Economática!$A$3:$AI$823,18,FALSE)=\"-\"),1/0,VLOOKUP($A288,Economática!$A$3:$AI$823,18,FALSE)))","v":""},{"$f":"IF($A288=\"\",\"\",IF(OR(VLOOKUP($A288,Economática!$A$3:$AI$823,19,FALSE)=0,VLOOKUP($A288,Economática!$A$3:$AI$823,19,FALSE)=\"-\"),1/0,VLOOKUP($A288,Economática!$A$3:$AI$823,19,FALSE)))","v":""},{"$f":"IF($A288=\"\",\"\",VLOOKUP($A288,Economática!$A$3:$AI$823,20,FALSE)/E288)","v":""},"","","",{"$f":"IF($A288=\"\",\"\",IF(OR(VLOOKUP($A288,Economática!$A$3:$AI$823,21,FALSE)/100=0,VLOOKUP($A288,Economática!$A$3:$AI$823,21,FALSE)/100=\"-\"),1/0,VLOOKUP($A288,Economática!$A$3:$AI$823,21,FALSE)/100))","v":""},{"$f":"IF($A288=\"\",\"\",IF(OR(VLOOKUP($A288,Economática!$A$3:$AI$823,22,FALSE)/100=0,VLOOKUP($A288,Economática!$A$3:$AI$823,22,FALSE)/100=\"-\"),1/0,VLOOKUP($A288,Economática!$A$3:$AI$823,22,FALSE)/100))","v":""},{"$f":"IF($A288=\"\",\"\",IF(OR(VLOOKUP($A288,Economática!$A$3:$AI$823,23,FALSE)=0,VLOOKUP($A288,Economática!$A$3:$AI$823,23,FALSE)=\"-\"),1/0,VLOOKUP($A288,Economática!$A$3:$AI$823,23,FALSE)))","v":""},{"$f":"IF($A288=\"\",\"\",IF(OR(VLOOKUP($A288,Economática!$A$3:$AI$823,24,FALSE)=0,VLOOKUP($A288,Economática!$A$3:$AI$823,24,FALSE)=\"-\"),1/0,VLOOKUP($A288,Economática!$A$3:$AI$823,24,FALSE)))","v":""},{"$f":"IF($A288=\"\",\"\",IF(OR(VLOOKUP($A288,Economática!$A$3:$AI$823,25,FALSE)=0,VLOOKUP($A288,Economática!$A$3:$AI$823,25,FALSE)=\"-\"),1/0,VLOOKUP($A288,Economática!$A$3:$AI$823,25,FALSE)))","v":""},{"$f":"IF($A288=\"\",\"\",IF(ISERROR((F288+VLOOKUP($A288,Economática!$A$3:$AI$823,26,FALSE))/Y288),(F288+VLOOKUP($A288,Economática!$A$3:$AI$823,26,FALSE))/Y288,(F288+VLOOKUP($A288,Economática!$A$3:$AI$823,26,FALSE))/Y288))","v":""},{"$f":"IF($A288=\"\",\"\",IF(OR(-VLOOKUP($A288,Economática!$A$3:$AI$823,27,FALSE)=0,-VLOOKUP($A288,Economática!$A$3:$AI$823,27,FALSE)=\"-\"),1/0,-VLOOKUP($A288,Economática!$A$3:$AI$823,27,FALSE)))","v":""},"",{"$f":"IF($A288=\"\",\"\",IF(OR(VLOOKUP($A288,Economática!$A$3:$AI$823,28,FALSE)=0,VLOOKUP($A288,Economática!$A$3:$AI$823,28,FALSE)=\"-\"),1/0,VLOOKUP($A288,Economática!$A$3:$AI$823,28,FALSE)))","v":""},{"$f":"IF($A288=\"\",\"\",IF(OR(VLOOKUP($A288,Economática!$A$3:$AI$823,29,FALSE)=0,VLOOKUP($A288,Economática!$A$3:$AI$823,29,FALSE)=\"-\"),1/0,VLOOKUP($A288,Economática!$A$3:$AI$823,29,FALSE)))","v":""},{"$f":"IF($A288=\"\",\"\",IF(OR(VLOOKUP($A288,Economática!$A$3:$AI$823,30,FALSE)/E288=0,VLOOKUP($A288,Economática!$A$3:$AI$823,30,FALSE)/E288=\"-\",VLOOKUP($A288,Economática!$A$3:$AI$823,30,FALSE)/E288<33.33%,VLOOKUP($A288,Economática!$A$3:$AI$823,30,FALSE)/E288>100%),1/0,VLOOKUP($A288,Economática!$A$3:$AI$823,30,FALSE)/E288))","v":""},"",{"$f":"IF($A288=\"\",\"\",IF(OR(VLOOKUP($A288,Economática!$A$3:$AI$823,25,FALSE)=0,VLOOKUP($A288,Economática!$A$3:$AI$823,25,FALSE)=\"-\"),1/0,VLOOKUP($A288,Economática!$A$3:$AI$823,25,FALSE)))","v":""},{"$f":"CONCATENATE(Economática!B266,\" \",Economática!C266)","v":" "}]
[{"$f":"IF(Economática!AG267=\"\",\"\",Economática!AG267)","v":""},{"$f":"IF($A289=\"\",\"\",VLOOKUP(VLOOKUP($A289,Economática!$A$3:$AI$823,6,FALSE),Correção!$B$16:$C$36,2,FALSE))","v":""},{"$f":"IF(Economática!B267=\"\",\"\",Economática!B267)","v":""},{"$f":"IF($A289=\"\",\"\",IF(OR(VLOOKUP($A289,Economática!$A$3:$AI$823,8,FALSE)=0,VLOOKUP($A289,Economática!$A$3:$AI$823,8,FALSE)=\"-\"),1/0,VLOOKUP($A289,Economática!$A$3:$AI$823,8,FALSE)))","v":""},{"$f":"IF(A289=\"\",\"\",IF(ISERROR(VLOOKUP(A289,Correção!$B$2:$G$13,9,FALSE)),VLOOKUP($A289,Economática!$A$3:$AI$823,9,FALSE),VLOOKUP(A289,Correção!$B$2:$G$13,9,FALSE)))","v":""},{"$f":"IF($A289=\"\",\"\",Economática!G267)","v":""},{"$f":"IF($A289=\"\",\"\",IF(OR(VLOOKUP($A289,Economática!$A$3:$AI$823,10,FALSE)=0,VLOOKUP($A289,Economática!$A$3:$AI$823,10,FALSE)=\"-\"),1/0,VLOOKUP($A289,Economática!$A$3:$AI$823,10,FALSE)))","v":""},{"$f":"IF($A289=\"\",\"\",IF(OR(VLOOKUP($A289,Economática!$A$3:$AI$823,11,FALSE)=0,VLOOKUP($A289,Economática!$A$3:$AI$823,11,FALSE)=\"-\"),1/0,VLOOKUP($A289,Economática!$A$3:$AI$823,11,FALSE)))","v":""},{"$f":"IF($A289=\"\",\"\",IF(OR(VLOOKUP($A289,Economática!$A$3:$AI$823,12,FALSE)=0,VLOOKUP($A289,Economática!$A$3:$AI$823,12,FALSE)=\"-\"),1/0,VLOOKUP($A289,Economática!$A$3:$AI$823,12,FALSE)))","v":""},{"$f":"IF($A289=\"\",\"\",IF(OR(VLOOKUP($A289,Economática!$A$3:$AI$823,13,FALSE)=0,VLOOKUP($A289,Economática!$A$3:$AI$823,13,FALSE)=\"-\"),1/0,VLOOKUP($A289,Economática!$A$3:$AI$823,13,FALSE)))","v":""},{"$f":"IF($A289=\"\",\"\",IF(OR(VLOOKUP($A289,Economática!$A$3:$AI$823,14,FALSE)=0,VLOOKUP($A289,Economática!$A$3:$AI$823,14,FALSE)=\"-\"),1/0,VLOOKUP($A289,Economática!$A$3:$AI$823,14,FALSE)))","v":""},{"$f":"IF($A289=\"\",\"\",IF(OR(VLOOKUP($A289,Economática!$A$3:$AI$823,15,FALSE)=0,VLOOKUP($A289,Economática!$A$3:$AI$823,15,FALSE)=\"-\"),1/0,VLOOKUP($A289,Economática!$A$3:$AI$823,15,FALSE)))","v":""},{"$f":"IF($A289=\"\",\"\",IF(OR(VLOOKUP($A289,Economática!$A$3:$AI$823,16,FALSE)=0,VLOOKUP($A289,Economática!$A$3:$AI$823,16,FALSE)=\"-\"),1/0,VLOOKUP($A289,Economática!$A$3:$AI$823,16,FALSE)))","v":""},{"$f":"IF($A289=\"\",\"\",IF(OR(VLOOKUP($A289,Economática!$A$3:$AI$823,17,FALSE)=0,VLOOKUP($A289,Economática!$A$3:$AI$823,17,FALSE)=\"-\"),1/0,VLOOKUP($A289,Economática!$A$3:$AI$823,17,FALSE)))","v":""},{"$f":"IF($A289=\"\",\"\",IF(OR(VLOOKUP($A289,Economática!$A$3:$AI$823,18,FALSE)=0,VLOOKUP($A289,Economática!$A$3:$AI$823,18,FALSE)=\"-\"),1/0,VLOOKUP($A289,Economática!$A$3:$AI$823,18,FALSE)))","v":""},{"$f":"IF($A289=\"\",\"\",IF(OR(VLOOKUP($A289,Economática!$A$3:$AI$823,19,FALSE)=0,VLOOKUP($A289,Economática!$A$3:$AI$823,19,FALSE)=\"-\"),1/0,VLOOKUP($A289,Economática!$A$3:$AI$823,19,FALSE)))","v":""},{"$f":"IF($A289=\"\",\"\",VLOOKUP($A289,Economática!$A$3:$AI$823,20,FALSE)/E289)","v":""},"","","",{"$f":"IF($A289=\"\",\"\",IF(OR(VLOOKUP($A289,Economática!$A$3:$AI$823,21,FALSE)/100=0,VLOOKUP($A289,Economática!$A$3:$AI$823,21,FALSE)/100=\"-\"),1/0,VLOOKUP($A289,Economática!$A$3:$AI$823,21,FALSE)/100))","v":""},{"$f":"IF($A289=\"\",\"\",IF(OR(VLOOKUP($A289,Economática!$A$3:$AI$823,22,FALSE)/100=0,VLOOKUP($A289,Economática!$A$3:$AI$823,22,FALSE)/100=\"-\"),1/0,VLOOKUP($A289,Economática!$A$3:$AI$823,22,FALSE)/100))","v":""},{"$f":"IF($A289=\"\",\"\",IF(OR(VLOOKUP($A289,Economática!$A$3:$AI$823,23,FALSE)=0,VLOOKUP($A289,Economática!$A$3:$AI$823,23,FALSE)=\"-\"),1/0,VLOOKUP($A289,Economática!$A$3:$AI$823,23,FALSE)))","v":""},{"$f":"IF($A289=\"\",\"\",IF(OR(VLOOKUP($A289,Economática!$A$3:$AI$823,24,FALSE)=0,VLOOKUP($A289,Economática!$A$3:$AI$823,24,FALSE)=\"-\"),1/0,VLOOKUP($A289,Economática!$A$3:$AI$823,24,FALSE)))","v":""},{"$f":"IF($A289=\"\",\"\",IF(OR(VLOOKUP($A289,Economática!$A$3:$AI$823,25,FALSE)=0,VLOOKUP($A289,Economática!$A$3:$AI$823,25,FALSE)=\"-\"),1/0,VLOOKUP($A289,Economática!$A$3:$AI$823,25,FALSE)))","v":""},{"$f":"IF($A289=\"\",\"\",IF(ISERROR((F289+VLOOKUP($A289,Economática!$A$3:$AI$823,26,FALSE))/Y289),(F289+VLOOKUP($A289,Economática!$A$3:$AI$823,26,FALSE))/Y289,(F289+VLOOKUP($A289,Economática!$A$3:$AI$823,26,FALSE))/Y289))","v":""},{"$f":"IF($A289=\"\",\"\",IF(OR(-VLOOKUP($A289,Economática!$A$3:$AI$823,27,FALSE)=0,-VLOOKUP($A289,Economática!$A$3:$AI$823,27,FALSE)=\"-\"),1/0,-VLOOKUP($A289,Economática!$A$3:$AI$823,27,FALSE)))","v":""},"",{"$f":"IF($A289=\"\",\"\",IF(OR(VLOOKUP($A289,Economática!$A$3:$AI$823,28,FALSE)=0,VLOOKUP($A289,Economática!$A$3:$AI$823,28,FALSE)=\"-\"),1/0,VLOOKUP($A289,Economática!$A$3:$AI$823,28,FALSE)))","v":""},{"$f":"IF($A289=\"\",\"\",IF(OR(VLOOKUP($A289,Economática!$A$3:$AI$823,29,FALSE)=0,VLOOKUP($A289,Economática!$A$3:$AI$823,29,FALSE)=\"-\"),1/0,VLOOKUP($A289,Economática!$A$3:$AI$823,29,FALSE)))","v":""},{"$f":"IF($A289=\"\",\"\",IF(OR(VLOOKUP($A289,Economática!$A$3:$AI$823,30,FALSE)/E289=0,VLOOKUP($A289,Economática!$A$3:$AI$823,30,FALSE)/E289=\"-\",VLOOKUP($A289,Economática!$A$3:$AI$823,30,FALSE)/E289<33.33%,VLOOKUP($A289,Economática!$A$3:$AI$823,30,FALSE)/E289>100%),1/0,VLOOKUP($A289,Economática!$A$3:$AI$823,30,FALSE)/E289))","v":""},"",{"$f":"IF($A289=\"\",\"\",IF(OR(VLOOKUP($A289,Economática!$A$3:$AI$823,25,FALSE)=0,VLOOKUP($A289,Economática!$A$3:$AI$823,25,FALSE)=\"-\"),1/0,VLOOKUP($A289,Economática!$A$3:$AI$823,25,FALSE)))","v":""},{"$f":"CONCATENATE(Economática!B267,\" \",Economática!C267)","v":" "}]
[{"$f":"IF(Economática!AG268=\"\",\"\",Economática!AG268)","v":""},{"$f":"IF($A290=\"\",\"\",VLOOKUP(VLOOKUP($A290,Economática!$A$3:$AI$823,6,FALSE),Correção!$B$16:$C$36,2,FALSE))","v":""},{"$f":"IF(Economática!B268=\"\",\"\",Economática!B268)","v":""},{"$f":"IF($A290=\"\",\"\",IF(OR(VLOOKUP($A290,Economática!$A$3:$AI$823,8,FALSE)=0,VLOOKUP($A290,Economática!$A$3:$AI$823,8,FALSE)=\"-\"),1/0,VLOOKUP($A290,Economática!$A$3:$AI$823,8,FALSE)))","v":""},{"$f":"IF(A290=\"\",\"\",IF(ISERROR(VLOOKUP(A290,Correção!$B$2:$G$13,9,FALSE)),VLOOKUP($A290,Economática!$A$3:$AI$823,9,FALSE),VLOOKUP(A290,Correção!$B$2:$G$13,9,FALSE)))","v":""},{"$f":"IF($A290=\"\",\"\",Economática!G268)","v":""},{"$f":"IF($A290=\"\",\"\",IF(OR(VLOOKUP($A290,Economática!$A$3:$AI$823,10,FALSE)=0,VLOOKUP($A290,Economática!$A$3:$AI$823,10,FALSE)=\"-\"),1/0,VLOOKUP($A290,Economática!$A$3:$AI$823,10,FALSE)))","v":""},{"$f":"IF($A290=\"\",\"\",IF(OR(VLOOKUP($A290,Economática!$A$3:$AI$823,11,FALSE)=0,VLOOKUP($A290,Economática!$A$3:$AI$823,11,FALSE)=\"-\"),1/0,VLOOKUP($A290,Economática!$A$3:$AI$823,11,FALSE)))","v":""},{"$f":"IF($A290=\"\",\"\",IF(OR(VLOOKUP($A290,Economática!$A$3:$AI$823,12,FALSE)=0,VLOOKUP($A290,Economática!$A$3:$AI$823,12,FALSE)=\"-\"),1/0,VLOOKUP($A290,Economática!$A$3:$AI$823,12,FALSE)))","v":""},{"$f":"IF($A290=\"\",\"\",IF(OR(VLOOKUP($A290,Economática!$A$3:$AI$823,13,FALSE)=0,VLOOKUP($A290,Economática!$A$3:$AI$823,13,FALSE)=\"-\"),1/0,VLOOKUP($A290,Economática!$A$3:$AI$823,13,FALSE)))","v":""},{"$f":"IF($A290=\"\",\"\",IF(OR(VLOOKUP($A290,Economática!$A$3:$AI$823,14,FALSE)=0,VLOOKUP($A290,Economática!$A$3:$AI$823,14,FALSE)=\"-\"),1/0,VLOOKUP($A290,Economática!$A$3:$AI$823,14,FALSE)))","v":""},{"$f":"IF($A290=\"\",\"\",IF(OR(VLOOKUP($A290,Economática!$A$3:$AI$823,15,FALSE)=0,VLOOKUP($A290,Economática!$A$3:$AI$823,15,FALSE)=\"-\"),1/0,VLOOKUP($A290,Economática!$A$3:$AI$823,15,FALSE)))","v":""},{"$f":"IF($A290=\"\",\"\",IF(OR(VLOOKUP($A290,Economática!$A$3:$AI$823,16,FALSE)=0,VLOOKUP($A290,Economática!$A$3:$AI$823,16,FALSE)=\"-\"),1/0,VLOOKUP($A290,Economática!$A$3:$AI$823,16,FALSE)))","v":""},{"$f":"IF($A290=\"\",\"\",IF(OR(VLOOKUP($A290,Economática!$A$3:$AI$823,17,FALSE)=0,VLOOKUP($A290,Economática!$A$3:$AI$823,17,FALSE)=\"-\"),1/0,VLOOKUP($A290,Economática!$A$3:$AI$823,17,FALSE)))","v":""},{"$f":"IF($A290=\"\",\"\",IF(OR(VLOOKUP($A290,Economática!$A$3:$AI$823,18,FALSE)=0,VLOOKUP($A290,Economática!$A$3:$AI$823,18,FALSE)=\"-\"),1/0,VLOOKUP($A290,Economática!$A$3:$AI$823,18,FALSE)))","v":""},{"$f":"IF($A290=\"\",\"\",IF(OR(VLOOKUP($A290,Economática!$A$3:$AI$823,19,FALSE)=0,VLOOKUP($A290,Economática!$A$3:$AI$823,19,FALSE)=\"-\"),1/0,VLOOKUP($A290,Economática!$A$3:$AI$823,19,FALSE)))","v":""},{"$f":"IF($A290=\"\",\"\",VLOOKUP($A290,Economática!$A$3:$AI$823,20,FALSE)/E290)","v":""},"","","",{"$f":"IF($A290=\"\",\"\",IF(OR(VLOOKUP($A290,Economática!$A$3:$AI$823,21,FALSE)/100=0,VLOOKUP($A290,Economática!$A$3:$AI$823,21,FALSE)/100=\"-\"),1/0,VLOOKUP($A290,Economática!$A$3:$AI$823,21,FALSE)/100))","v":""},{"$f":"IF($A290=\"\",\"\",IF(OR(VLOOKUP($A290,Economática!$A$3:$AI$823,22,FALSE)/100=0,VLOOKUP($A290,Economática!$A$3:$AI$823,22,FALSE)/100=\"-\"),1/0,VLOOKUP($A290,Economática!$A$3:$AI$823,22,FALSE)/100))","v":""},{"$f":"IF($A290=\"\",\"\",IF(OR(VLOOKUP($A290,Economática!$A$3:$AI$823,23,FALSE)=0,VLOOKUP($A290,Economática!$A$3:$AI$823,23,FALSE)=\"-\"),1/0,VLOOKUP($A290,Economática!$A$3:$AI$823,23,FALSE)))","v":""},{"$f":"IF($A290=\"\",\"\",IF(OR(VLOOKUP($A290,Economática!$A$3:$AI$823,24,FALSE)=0,VLOOKUP($A290,Economática!$A$3:$AI$823,24,FALSE)=\"-\"),1/0,VLOOKUP($A290,Economática!$A$3:$AI$823,24,FALSE)))","v":""},{"$f":"IF($A290=\"\",\"\",IF(OR(VLOOKUP($A290,Economática!$A$3:$AI$823,25,FALSE)=0,VLOOKUP($A290,Economática!$A$3:$AI$823,25,FALSE)=\"-\"),1/0,VLOOKUP($A290,Economática!$A$3:$AI$823,25,FALSE)))","v":""},{"$f":"IF($A290=\"\",\"\",IF(ISERROR((F290+VLOOKUP($A290,Economática!$A$3:$AI$823,26,FALSE))/Y290),(F290+VLOOKUP($A290,Economática!$A$3:$AI$823,26,FALSE))/Y290,(F290+VLOOKUP($A290,Economática!$A$3:$AI$823,26,FALSE))/Y290))","v":""},{"$f":"IF($A290=\"\",\"\",IF(OR(-VLOOKUP($A290,Economática!$A$3:$AI$823,27,FALSE)=0,-VLOOKUP($A290,Economática!$A$3:$AI$823,27,FALSE)=\"-\"),1/0,-VLOOKUP($A290,Economática!$A$3:$AI$823,27,FALSE)))","v":""},"",{"$f":"IF($A290=\"\",\"\",IF(OR(VLOOKUP($A290,Economática!$A$3:$AI$823,28,FALSE)=0,VLOOKUP($A290,Economática!$A$3:$AI$823,28,FALSE)=\"-\"),1/0,VLOOKUP($A290,Economática!$A$3:$AI$823,28,FALSE)))","v":""},{"$f":"IF($A290=\"\",\"\",IF(OR(VLOOKUP($A290,Economática!$A$3:$AI$823,29,FALSE)=0,VLOOKUP($A290,Economática!$A$3:$AI$823,29,FALSE)=\"-\"),1/0,VLOOKUP($A290,Economática!$A$3:$AI$823,29,FALSE)))","v":""},{"$f":"IF($A290=\"\",\"\",IF(OR(VLOOKUP($A290,Economática!$A$3:$AI$823,30,FALSE)/E290=0,VLOOKUP($A290,Economática!$A$3:$AI$823,30,FALSE)/E290=\"-\",VLOOKUP($A290,Economática!$A$3:$AI$823,30,FALSE)/E290<33.33%,VLOOKUP($A290,Economática!$A$3:$AI$823,30,FALSE)/E290>100%),1/0,VLOOKUP($A290,Economática!$A$3:$AI$823,30,FALSE)/E290))","v":""},"",{"$f":"IF($A290=\"\",\"\",IF(OR(VLOOKUP($A290,Economática!$A$3:$AI$823,25,FALSE)=0,VLOOKUP($A290,Economática!$A$3:$AI$823,25,FALSE)=\"-\"),1/0,VLOOKUP($A290,Economática!$A$3:$AI$823,25,FALSE)))","v":""},{"$f":"CONCATENATE(Economática!B268,\" \",Economática!C268)","v":" "}]
[{"$f":"IF(Economática!AG269=\"\",\"\",Economática!AG269)","v":""},{"$f":"IF($A291=\"\",\"\",VLOOKUP(VLOOKUP($A291,Economática!$A$3:$AI$823,6,FALSE),Correção!$B$16:$C$36,2,FALSE))","v":""},{"$f":"IF(Economática!B269=\"\",\"\",Economática!B269)","v":""},{"$f":"IF($A291=\"\",\"\",IF(OR(VLOOKUP($A291,Economática!$A$3:$AI$823,8,FALSE)=0,VLOOKUP($A291,Economática!$A$3:$AI$823,8,FALSE)=\"-\"),1/0,VLOOKUP($A291,Economática!$A$3:$AI$823,8,FALSE)))","v":""},{"$f":"IF(A291=\"\",\"\",IF(ISERROR(VLOOKUP(A291,Correção!$B$2:$G$13,9,FALSE)),VLOOKUP($A291,Economática!$A$3:$AI$823,9,FALSE),VLOOKUP(A291,Correção!$B$2:$G$13,9,FALSE)))","v":""},{"$f":"IF($A291=\"\",\"\",Economática!G269)","v":""},{"$f":"IF($A291=\"\",\"\",IF(OR(VLOOKUP($A291,Economática!$A$3:$AI$823,10,FALSE)=0,VLOOKUP($A291,Economática!$A$3:$AI$823,10,FALSE)=\"-\"),1/0,VLOOKUP($A291,Economática!$A$3:$AI$823,10,FALSE)))","v":""},{"$f":"IF($A291=\"\",\"\",IF(OR(VLOOKUP($A291,Economática!$A$3:$AI$823,11,FALSE)=0,VLOOKUP($A291,Economática!$A$3:$AI$823,11,FALSE)=\"-\"),1/0,VLOOKUP($A291,Economática!$A$3:$AI$823,11,FALSE)))","v":""},{"$f":"IF($A291=\"\",\"\",IF(OR(VLOOKUP($A291,Economática!$A$3:$AI$823,12,FALSE)=0,VLOOKUP($A291,Economática!$A$3:$AI$823,12,FALSE)=\"-\"),1/0,VLOOKUP($A291,Economática!$A$3:$AI$823,12,FALSE)))","v":""},{"$f":"IF($A291=\"\",\"\",IF(OR(VLOOKUP($A291,Economática!$A$3:$AI$823,13,FALSE)=0,VLOOKUP($A291,Economática!$A$3:$AI$823,13,FALSE)=\"-\"),1/0,VLOOKUP($A291,Economática!$A$3:$AI$823,13,FALSE)))","v":""},{"$f":"IF($A291=\"\",\"\",IF(OR(VLOOKUP($A291,Economática!$A$3:$AI$823,14,FALSE)=0,VLOOKUP($A291,Economática!$A$3:$AI$823,14,FALSE)=\"-\"),1/0,VLOOKUP($A291,Economática!$A$3:$AI$823,14,FALSE)))","v":""},{"$f":"IF($A291=\"\",\"\",IF(OR(VLOOKUP($A291,Economática!$A$3:$AI$823,15,FALSE)=0,VLOOKUP($A291,Economática!$A$3:$AI$823,15,FALSE)=\"-\"),1/0,VLOOKUP($A291,Economática!$A$3:$AI$823,15,FALSE)))","v":""},{"$f":"IF($A291=\"\",\"\",IF(OR(VLOOKUP($A291,Economática!$A$3:$AI$823,16,FALSE)=0,VLOOKUP($A291,Economática!$A$3:$AI$823,16,FALSE)=\"-\"),1/0,VLOOKUP($A291,Economática!$A$3:$AI$823,16,FALSE)))","v":""},{"$f":"IF($A291=\"\",\"\",IF(OR(VLOOKUP($A291,Economática!$A$3:$AI$823,17,FALSE)=0,VLOOKUP($A291,Economática!$A$3:$AI$823,17,FALSE)=\"-\"),1/0,VLOOKUP($A291,Economática!$A$3:$AI$823,17,FALSE)))","v":""},{"$f":"IF($A291=\"\",\"\",IF(OR(VLOOKUP($A291,Economática!$A$3:$AI$823,18,FALSE)=0,VLOOKUP($A291,Economática!$A$3:$AI$823,18,FALSE)=\"-\"),1/0,VLOOKUP($A291,Economática!$A$3:$AI$823,18,FALSE)))","v":""},{"$f":"IF($A291=\"\",\"\",IF(OR(VLOOKUP($A291,Economática!$A$3:$AI$823,19,FALSE)=0,VLOOKUP($A291,Economática!$A$3:$AI$823,19,FALSE)=\"-\"),1/0,VLOOKUP($A291,Economática!$A$3:$AI$823,19,FALSE)))","v":""},{"$f":"IF($A291=\"\",\"\",VLOOKUP($A291,Economática!$A$3:$AI$823,20,FALSE)/E291)","v":""},"","","",{"$f":"IF($A291=\"\",\"\",IF(OR(VLOOKUP($A291,Economática!$A$3:$AI$823,21,FALSE)/100=0,VLOOKUP($A291,Economática!$A$3:$AI$823,21,FALSE)/100=\"-\"),1/0,VLOOKUP($A291,Economática!$A$3:$AI$823,21,FALSE)/100))","v":""},{"$f":"IF($A291=\"\",\"\",IF(OR(VLOOKUP($A291,Economática!$A$3:$AI$823,22,FALSE)/100=0,VLOOKUP($A291,Economática!$A$3:$AI$823,22,FALSE)/100=\"-\"),1/0,VLOOKUP($A291,Economática!$A$3:$AI$823,22,FALSE)/100))","v":""},{"$f":"IF($A291=\"\",\"\",IF(OR(VLOOKUP($A291,Economática!$A$3:$AI$823,23,FALSE)=0,VLOOKUP($A291,Economática!$A$3:$AI$823,23,FALSE)=\"-\"),1/0,VLOOKUP($A291,Economática!$A$3:$AI$823,23,FALSE)))","v":""},{"$f":"IF($A291=\"\",\"\",IF(OR(VLOOKUP($A291,Economática!$A$3:$AI$823,24,FALSE)=0,VLOOKUP($A291,Economática!$A$3:$AI$823,24,FALSE)=\"-\"),1/0,VLOOKUP($A291,Economática!$A$3:$AI$823,24,FALSE)))","v":""},{"$f":"IF($A291=\"\",\"\",IF(OR(VLOOKUP($A291,Economática!$A$3:$AI$823,25,FALSE)=0,VLOOKUP($A291,Economática!$A$3:$AI$823,25,FALSE)=\"-\"),1/0,VLOOKUP($A291,Economática!$A$3:$AI$823,25,FALSE)))","v":""},{"$f":"IF($A291=\"\",\"\",IF(ISERROR((F291+VLOOKUP($A291,Economática!$A$3:$AI$823,26,FALSE))/Y291),(F291+VLOOKUP($A291,Economática!$A$3:$AI$823,26,FALSE))/Y291,(F291+VLOOKUP($A291,Economática!$A$3:$AI$823,26,FALSE))/Y291))","v":""},{"$f":"IF($A291=\"\",\"\",IF(OR(-VLOOKUP($A291,Economática!$A$3:$AI$823,27,FALSE)=0,-VLOOKUP($A291,Economática!$A$3:$AI$823,27,FALSE)=\"-\"),1/0,-VLOOKUP($A291,Economática!$A$3:$AI$823,27,FALSE)))","v":""},"",{"$f":"IF($A291=\"\",\"\",IF(OR(VLOOKUP($A291,Economática!$A$3:$AI$823,28,FALSE)=0,VLOOKUP($A291,Economática!$A$3:$AI$823,28,FALSE)=\"-\"),1/0,VLOOKUP($A291,Economática!$A$3:$AI$823,28,FALSE)))","v":""},{"$f":"IF($A291=\"\",\"\",IF(OR(VLOOKUP($A291,Economática!$A$3:$AI$823,29,FALSE)=0,VLOOKUP($A291,Economática!$A$3:$AI$823,29,FALSE)=\"-\"),1/0,VLOOKUP($A291,Economática!$A$3:$AI$823,29,FALSE)))","v":""},{"$f":"IF($A291=\"\",\"\",IF(OR(VLOOKUP($A291,Economática!$A$3:$AI$823,30,FALSE)/E291=0,VLOOKUP($A291,Economática!$A$3:$AI$823,30,FALSE)/E291=\"-\",VLOOKUP($A291,Economática!$A$3:$AI$823,30,FALSE)/E291<33.33%,VLOOKUP($A291,Economática!$A$3:$AI$823,30,FALSE)/E291>100%),1/0,VLOOKUP($A291,Economática!$A$3:$AI$823,30,FALSE)/E291))","v":""},"",{"$f":"IF($A291=\"\",\"\",IF(OR(VLOOKUP($A291,Economática!$A$3:$AI$823,25,FALSE)=0,VLOOKUP($A291,Economática!$A$3:$AI$823,25,FALSE)=\"-\"),1/0,VLOOKUP($A291,Economática!$A$3:$AI$823,25,FALSE)))","v":""},{"$f":"CONCATENATE(Economática!B269,\" \",Economática!C269)","v":" "}]
[{"$f":"IF(Economática!AG270=\"\",\"\",Economática!AG270)","v":""},{"$f":"IF($A292=\"\",\"\",VLOOKUP(VLOOKUP($A292,Economática!$A$3:$AI$823,6,FALSE),Correção!$B$16:$C$36,2,FALSE))","v":""},{"$f":"IF(Economática!B270=\"\",\"\",Economática!B270)","v":""},{"$f":"IF($A292=\"\",\"\",IF(OR(VLOOKUP($A292,Economática!$A$3:$AI$823,8,FALSE)=0,VLOOKUP($A292,Economática!$A$3:$AI$823,8,FALSE)=\"-\"),1/0,VLOOKUP($A292,Economática!$A$3:$AI$823,8,FALSE)))","v":""},{"$f":"IF(A292=\"\",\"\",IF(ISERROR(VLOOKUP(A292,Correção!$B$2:$G$13,9,FALSE)),VLOOKUP($A292,Economática!$A$3:$AI$823,9,FALSE),VLOOKUP(A292,Correção!$B$2:$G$13,9,FALSE)))","v":""},{"$f":"IF($A292=\"\",\"\",Economática!G270)","v":""},{"$f":"IF($A292=\"\",\"\",IF(OR(VLOOKUP($A292,Economática!$A$3:$AI$823,10,FALSE)=0,VLOOKUP($A292,Economática!$A$3:$AI$823,10,FALSE)=\"-\"),1/0,VLOOKUP($A292,Economática!$A$3:$AI$823,10,FALSE)))","v":""},{"$f":"IF($A292=\"\",\"\",IF(OR(VLOOKUP($A292,Economática!$A$3:$AI$823,11,FALSE)=0,VLOOKUP($A292,Economática!$A$3:$AI$823,11,FALSE)=\"-\"),1/0,VLOOKUP($A292,Economática!$A$3:$AI$823,11,FALSE)))","v":""},{"$f":"IF($A292=\"\",\"\",IF(OR(VLOOKUP($A292,Economática!$A$3:$AI$823,12,FALSE)=0,VLOOKUP($A292,Economática!$A$3:$AI$823,12,FALSE)=\"-\"),1/0,VLOOKUP($A292,Economática!$A$3:$AI$823,12,FALSE)))","v":""},{"$f":"IF($A292=\"\",\"\",IF(OR(VLOOKUP($A292,Economática!$A$3:$AI$823,13,FALSE)=0,VLOOKUP($A292,Economática!$A$3:$AI$823,13,FALSE)=\"-\"),1/0,VLOOKUP($A292,Economática!$A$3:$AI$823,13,FALSE)))","v":""},{"$f":"IF($A292=\"\",\"\",IF(OR(VLOOKUP($A292,Economática!$A$3:$AI$823,14,FALSE)=0,VLOOKUP($A292,Economática!$A$3:$AI$823,14,FALSE)=\"-\"),1/0,VLOOKUP($A292,Economática!$A$3:$AI$823,14,FALSE)))","v":""},{"$f":"IF($A292=\"\",\"\",IF(OR(VLOOKUP($A292,Economática!$A$3:$AI$823,15,FALSE)=0,VLOOKUP($A292,Economática!$A$3:$AI$823,15,FALSE)=\"-\"),1/0,VLOOKUP($A292,Economática!$A$3:$AI$823,15,FALSE)))","v":""},{"$f":"IF($A292=\"\",\"\",IF(OR(VLOOKUP($A292,Economática!$A$3:$AI$823,16,FALSE)=0,VLOOKUP($A292,Economática!$A$3:$AI$823,16,FALSE)=\"-\"),1/0,VLOOKUP($A292,Economática!$A$3:$AI$823,16,FALSE)))","v":""},{"$f":"IF($A292=\"\",\"\",IF(OR(VLOOKUP($A292,Economática!$A$3:$AI$823,17,FALSE)=0,VLOOKUP($A292,Economática!$A$3:$AI$823,17,FALSE)=\"-\"),1/0,VLOOKUP($A292,Economática!$A$3:$AI$823,17,FALSE)))","v":""},{"$f":"IF($A292=\"\",\"\",IF(OR(VLOOKUP($A292,Economática!$A$3:$AI$823,18,FALSE)=0,VLOOKUP($A292,Economática!$A$3:$AI$823,18,FALSE)=\"-\"),1/0,VLOOKUP($A292,Economática!$A$3:$AI$823,18,FALSE)))","v":""},{"$f":"IF($A292=\"\",\"\",IF(OR(VLOOKUP($A292,Economática!$A$3:$AI$823,19,FALSE)=0,VLOOKUP($A292,Economática!$A$3:$AI$823,19,FALSE)=\"-\"),1/0,VLOOKUP($A292,Economática!$A$3:$AI$823,19,FALSE)))","v":""},{"$f":"IF($A292=\"\",\"\",VLOOKUP($A292,Economática!$A$3:$AI$823,20,FALSE)/E292)","v":""},"","","",{"$f":"IF($A292=\"\",\"\",IF(OR(VLOOKUP($A292,Economática!$A$3:$AI$823,21,FALSE)/100=0,VLOOKUP($A292,Economática!$A$3:$AI$823,21,FALSE)/100=\"-\"),1/0,VLOOKUP($A292,Economática!$A$3:$AI$823,21,FALSE)/100))","v":""},{"$f":"IF($A292=\"\",\"\",IF(OR(VLOOKUP($A292,Economática!$A$3:$AI$823,22,FALSE)/100=0,VLOOKUP($A292,Economática!$A$3:$AI$823,22,FALSE)/100=\"-\"),1/0,VLOOKUP($A292,Economática!$A$3:$AI$823,22,FALSE)/100))","v":""},{"$f":"IF($A292=\"\",\"\",IF(OR(VLOOKUP($A292,Economática!$A$3:$AI$823,23,FALSE)=0,VLOOKUP($A292,Economática!$A$3:$AI$823,23,FALSE)=\"-\"),1/0,VLOOKUP($A292,Economática!$A$3:$AI$823,23,FALSE)))","v":""},{"$f":"IF($A292=\"\",\"\",IF(OR(VLOOKUP($A292,Economática!$A$3:$AI$823,24,FALSE)=0,VLOOKUP($A292,Economática!$A$3:$AI$823,24,FALSE)=\"-\"),1/0,VLOOKUP($A292,Economática!$A$3:$AI$823,24,FALSE)))","v":""},{"$f":"IF($A292=\"\",\"\",IF(OR(VLOOKUP($A292,Economática!$A$3:$AI$823,25,FALSE)=0,VLOOKUP($A292,Economática!$A$3:$AI$823,25,FALSE)=\"-\"),1/0,VLOOKUP($A292,Economática!$A$3:$AI$823,25,FALSE)))","v":""},{"$f":"IF($A292=\"\",\"\",IF(ISERROR((F292+VLOOKUP($A292,Economática!$A$3:$AI$823,26,FALSE))/Y292),(F292+VLOOKUP($A292,Economática!$A$3:$AI$823,26,FALSE))/Y292,(F292+VLOOKUP($A292,Economática!$A$3:$AI$823,26,FALSE))/Y292))","v":""},{"$f":"IF($A292=\"\",\"\",IF(OR(-VLOOKUP($A292,Economática!$A$3:$AI$823,27,FALSE)=0,-VLOOKUP($A292,Economática!$A$3:$AI$823,27,FALSE)=\"-\"),1/0,-VLOOKUP($A292,Economática!$A$3:$AI$823,27,FALSE)))","v":""},"",{"$f":"IF($A292=\"\",\"\",IF(OR(VLOOKUP($A292,Economática!$A$3:$AI$823,28,FALSE)=0,VLOOKUP($A292,Economática!$A$3:$AI$823,28,FALSE)=\"-\"),1/0,VLOOKUP($A292,Economática!$A$3:$AI$823,28,FALSE)))","v":""},{"$f":"IF($A292=\"\",\"\",IF(OR(VLOOKUP($A292,Economática!$A$3:$AI$823,29,FALSE)=0,VLOOKUP($A292,Economática!$A$3:$AI$823,29,FALSE)=\"-\"),1/0,VLOOKUP($A292,Economática!$A$3:$AI$823,29,FALSE)))","v":""},{"$f":"IF($A292=\"\",\"\",IF(OR(VLOOKUP($A292,Economática!$A$3:$AI$823,30,FALSE)/E292=0,VLOOKUP($A292,Economática!$A$3:$AI$823,30,FALSE)/E292=\"-\",VLOOKUP($A292,Economática!$A$3:$AI$823,30,FALSE)/E292<33.33%,VLOOKUP($A292,Economática!$A$3:$AI$823,30,FALSE)/E292>100%),1/0,VLOOKUP($A292,Economática!$A$3:$AI$823,30,FALSE)/E292))","v":""},"",{"$f":"IF($A292=\"\",\"\",IF(OR(VLOOKUP($A292,Economática!$A$3:$AI$823,25,FALSE)=0,VLOOKUP($A292,Economática!$A$3:$AI$823,25,FALSE)=\"-\"),1/0,VLOOKUP($A292,Economática!$A$3:$AI$823,25,FALSE)))","v":""},{"$f":"CONCATENATE(Economática!B270,\" \",Economática!C270)","v":" "}]
[{"$f":"IF(Economática!AG271=\"\",\"\",Economática!AG271)","v":""},{"$f":"IF($A293=\"\",\"\",VLOOKUP(VLOOKUP($A293,Economática!$A$3:$AI$823,6,FALSE),Correção!$B$16:$C$36,2,FALSE))","v":""},{"$f":"IF(Economática!B271=\"\",\"\",Economática!B271)","v":""},{"$f":"IF($A293=\"\",\"\",IF(OR(VLOOKUP($A293,Economática!$A$3:$AI$823,8,FALSE)=0,VLOOKUP($A293,Economática!$A$3:$AI$823,8,FALSE)=\"-\"),1/0,VLOOKUP($A293,Economática!$A$3:$AI$823,8,FALSE)))","v":""},{"$f":"IF(A293=\"\",\"\",IF(ISERROR(VLOOKUP(A293,Correção!$B$2:$G$13,9,FALSE)),VLOOKUP($A293,Economática!$A$3:$AI$823,9,FALSE),VLOOKUP(A293,Correção!$B$2:$G$13,9,FALSE)))","v":""},{"$f":"IF($A293=\"\",\"\",Economática!G271)","v":""},{"$f":"IF($A293=\"\",\"\",IF(OR(VLOOKUP($A293,Economática!$A$3:$AI$823,10,FALSE)=0,VLOOKUP($A293,Economática!$A$3:$AI$823,10,FALSE)=\"-\"),1/0,VLOOKUP($A293,Economática!$A$3:$AI$823,10,FALSE)))","v":""},{"$f":"IF($A293=\"\",\"\",IF(OR(VLOOKUP($A293,Economática!$A$3:$AI$823,11,FALSE)=0,VLOOKUP($A293,Economática!$A$3:$AI$823,11,FALSE)=\"-\"),1/0,VLOOKUP($A293,Economática!$A$3:$AI$823,11,FALSE)))","v":""},{"$f":"IF($A293=\"\",\"\",IF(OR(VLOOKUP($A293,Economática!$A$3:$AI$823,12,FALSE)=0,VLOOKUP($A293,Economática!$A$3:$AI$823,12,FALSE)=\"-\"),1/0,VLOOKUP($A293,Economática!$A$3:$AI$823,12,FALSE)))","v":""},{"$f":"IF($A293=\"\",\"\",IF(OR(VLOOKUP($A293,Economática!$A$3:$AI$823,13,FALSE)=0,VLOOKUP($A293,Economática!$A$3:$AI$823,13,FALSE)=\"-\"),1/0,VLOOKUP($A293,Economática!$A$3:$AI$823,13,FALSE)))","v":""},{"$f":"IF($A293=\"\",\"\",IF(OR(VLOOKUP($A293,Economática!$A$3:$AI$823,14,FALSE)=0,VLOOKUP($A293,Economática!$A$3:$AI$823,14,FALSE)=\"-\"),1/0,VLOOKUP($A293,Economática!$A$3:$AI$823,14,FALSE)))","v":""},{"$f":"IF($A293=\"\",\"\",IF(OR(VLOOKUP($A293,Economática!$A$3:$AI$823,15,FALSE)=0,VLOOKUP($A293,Economática!$A$3:$AI$823,15,FALSE)=\"-\"),1/0,VLOOKUP($A293,Economática!$A$3:$AI$823,15,FALSE)))","v":""},{"$f":"IF($A293=\"\",\"\",IF(OR(VLOOKUP($A293,Economática!$A$3:$AI$823,16,FALSE)=0,VLOOKUP($A293,Economática!$A$3:$AI$823,16,FALSE)=\"-\"),1/0,VLOOKUP($A293,Economática!$A$3:$AI$823,16,FALSE)))","v":""},{"$f":"IF($A293=\"\",\"\",IF(OR(VLOOKUP($A293,Economática!$A$3:$AI$823,17,FALSE)=0,VLOOKUP($A293,Economática!$A$3:$AI$823,17,FALSE)=\"-\"),1/0,VLOOKUP($A293,Economática!$A$3:$AI$823,17,FALSE)))","v":""},{"$f":"IF($A293=\"\",\"\",IF(OR(VLOOKUP($A293,Economática!$A$3:$AI$823,18,FALSE)=0,VLOOKUP($A293,Economática!$A$3:$AI$823,18,FALSE)=\"-\"),1/0,VLOOKUP($A293,Economática!$A$3:$AI$823,18,FALSE)))","v":""},{"$f":"IF($A293=\"\",\"\",IF(OR(VLOOKUP($A293,Economática!$A$3:$AI$823,19,FALSE)=0,VLOOKUP($A293,Economática!$A$3:$AI$823,19,FALSE)=\"-\"),1/0,VLOOKUP($A293,Economática!$A$3:$AI$823,19,FALSE)))","v":""},{"$f":"IF($A293=\"\",\"\",VLOOKUP($A293,Economática!$A$3:$AI$823,20,FALSE)/E293)","v":""},"","","",{"$f":"IF($A293=\"\",\"\",IF(OR(VLOOKUP($A293,Economática!$A$3:$AI$823,21,FALSE)/100=0,VLOOKUP($A293,Economática!$A$3:$AI$823,21,FALSE)/100=\"-\"),1/0,VLOOKUP($A293,Economática!$A$3:$AI$823,21,FALSE)/100))","v":""},{"$f":"IF($A293=\"\",\"\",IF(OR(VLOOKUP($A293,Economática!$A$3:$AI$823,22,FALSE)/100=0,VLOOKUP($A293,Economática!$A$3:$AI$823,22,FALSE)/100=\"-\"),1/0,VLOOKUP($A293,Economática!$A$3:$AI$823,22,FALSE)/100))","v":""},{"$f":"IF($A293=\"\",\"\",IF(OR(VLOOKUP($A293,Economática!$A$3:$AI$823,23,FALSE)=0,VLOOKUP($A293,Economática!$A$3:$AI$823,23,FALSE)=\"-\"),1/0,VLOOKUP($A293,Economática!$A$3:$AI$823,23,FALSE)))","v":""},{"$f":"IF($A293=\"\",\"\",IF(OR(VLOOKUP($A293,Economática!$A$3:$AI$823,24,FALSE)=0,VLOOKUP($A293,Economática!$A$3:$AI$823,24,FALSE)=\"-\"),1/0,VLOOKUP($A293,Economática!$A$3:$AI$823,24,FALSE)))","v":""},{"$f":"IF($A293=\"\",\"\",IF(OR(VLOOKUP($A293,Economática!$A$3:$AI$823,25,FALSE)=0,VLOOKUP($A293,Economática!$A$3:$AI$823,25,FALSE)=\"-\"),1/0,VLOOKUP($A293,Economática!$A$3:$AI$823,25,FALSE)))","v":""},{"$f":"IF($A293=\"\",\"\",IF(ISERROR((F293+VLOOKUP($A293,Economática!$A$3:$AI$823,26,FALSE))/Y293),(F293+VLOOKUP($A293,Economática!$A$3:$AI$823,26,FALSE))/Y293,(F293+VLOOKUP($A293,Economática!$A$3:$AI$823,26,FALSE))/Y293))","v":""},{"$f":"IF($A293=\"\",\"\",IF(OR(-VLOOKUP($A293,Economática!$A$3:$AI$823,27,FALSE)=0,-VLOOKUP($A293,Economática!$A$3:$AI$823,27,FALSE)=\"-\"),1/0,-VLOOKUP($A293,Economática!$A$3:$AI$823,27,FALSE)))","v":""},"",{"$f":"IF($A293=\"\",\"\",IF(OR(VLOOKUP($A293,Economática!$A$3:$AI$823,28,FALSE)=0,VLOOKUP($A293,Economática!$A$3:$AI$823,28,FALSE)=\"-\"),1/0,VLOOKUP($A293,Economática!$A$3:$AI$823,28,FALSE)))","v":""},{"$f":"IF($A293=\"\",\"\",IF(OR(VLOOKUP($A293,Economática!$A$3:$AI$823,29,FALSE)=0,VLOOKUP($A293,Economática!$A$3:$AI$823,29,FALSE)=\"-\"),1/0,VLOOKUP($A293,Economática!$A$3:$AI$823,29,FALSE)))","v":""},{"$f":"IF($A293=\"\",\"\",IF(OR(VLOOKUP($A293,Economática!$A$3:$AI$823,30,FALSE)/E293=0,VLOOKUP($A293,Economática!$A$3:$AI$823,30,FALSE)/E293=\"-\",VLOOKUP($A293,Economática!$A$3:$AI$823,30,FALSE)/E293<33.33%,VLOOKUP($A293,Economática!$A$3:$AI$823,30,FALSE)/E293>100%),1/0,VLOOKUP($A293,Economática!$A$3:$AI$823,30,FALSE)/E293))","v":""},"",{"$f":"IF($A293=\"\",\"\",IF(OR(VLOOKUP($A293,Economática!$A$3:$AI$823,25,FALSE)=0,VLOOKUP($A293,Economática!$A$3:$AI$823,25,FALSE)=\"-\"),1/0,VLOOKUP($A293,Economática!$A$3:$AI$823,25,FALSE)))","v":""},{"$f":"CONCATENATE(Economática!B271,\" \",Economática!C271)","v":" "}]
[{"$f":"IF(Economática!AG272=\"\",\"\",Economática!AG272)","v":""},{"$f":"IF($A294=\"\",\"\",VLOOKUP(VLOOKUP($A294,Economática!$A$3:$AI$823,6,FALSE),Correção!$B$16:$C$36,2,FALSE))","v":""},{"$f":"IF(Economática!B272=\"\",\"\",Economática!B272)","v":""},{"$f":"IF($A294=\"\",\"\",IF(OR(VLOOKUP($A294,Economática!$A$3:$AI$823,8,FALSE)=0,VLOOKUP($A294,Economática!$A$3:$AI$823,8,FALSE)=\"-\"),1/0,VLOOKUP($A294,Economática!$A$3:$AI$823,8,FALSE)))","v":""},{"$f":"IF(A294=\"\",\"\",IF(ISERROR(VLOOKUP(A294,Correção!$B$2:$G$13,9,FALSE)),VLOOKUP($A294,Economática!$A$3:$AI$823,9,FALSE),VLOOKUP(A294,Correção!$B$2:$G$13,9,FALSE)))","v":""},{"$f":"IF($A294=\"\",\"\",Economática!G272)","v":""},{"$f":"IF($A294=\"\",\"\",IF(OR(VLOOKUP($A294,Economática!$A$3:$AI$823,10,FALSE)=0,VLOOKUP($A294,Economática!$A$3:$AI$823,10,FALSE)=\"-\"),1/0,VLOOKUP($A294,Economática!$A$3:$AI$823,10,FALSE)))","v":""},{"$f":"IF($A294=\"\",\"\",IF(OR(VLOOKUP($A294,Economática!$A$3:$AI$823,11,FALSE)=0,VLOOKUP($A294,Economática!$A$3:$AI$823,11,FALSE)=\"-\"),1/0,VLOOKUP($A294,Economática!$A$3:$AI$823,11,FALSE)))","v":""},{"$f":"IF($A294=\"\",\"\",IF(OR(VLOOKUP($A294,Economática!$A$3:$AI$823,12,FALSE)=0,VLOOKUP($A294,Economática!$A$3:$AI$823,12,FALSE)=\"-\"),1/0,VLOOKUP($A294,Economática!$A$3:$AI$823,12,FALSE)))","v":""},{"$f":"IF($A294=\"\",\"\",IF(OR(VLOOKUP($A294,Economática!$A$3:$AI$823,13,FALSE)=0,VLOOKUP($A294,Economática!$A$3:$AI$823,13,FALSE)=\"-\"),1/0,VLOOKUP($A294,Economática!$A$3:$AI$823,13,FALSE)))","v":""},{"$f":"IF($A294=\"\",\"\",IF(OR(VLOOKUP($A294,Economática!$A$3:$AI$823,14,FALSE)=0,VLOOKUP($A294,Economática!$A$3:$AI$823,14,FALSE)=\"-\"),1/0,VLOOKUP($A294,Economática!$A$3:$AI$823,14,FALSE)))","v":""},{"$f":"IF($A294=\"\",\"\",IF(OR(VLOOKUP($A294,Economática!$A$3:$AI$823,15,FALSE)=0,VLOOKUP($A294,Economática!$A$3:$AI$823,15,FALSE)=\"-\"),1/0,VLOOKUP($A294,Economática!$A$3:$AI$823,15,FALSE)))","v":""},{"$f":"IF($A294=\"\",\"\",IF(OR(VLOOKUP($A294,Economática!$A$3:$AI$823,16,FALSE)=0,VLOOKUP($A294,Economática!$A$3:$AI$823,16,FALSE)=\"-\"),1/0,VLOOKUP($A294,Economática!$A$3:$AI$823,16,FALSE)))","v":""},{"$f":"IF($A294=\"\",\"\",IF(OR(VLOOKUP($A294,Economática!$A$3:$AI$823,17,FALSE)=0,VLOOKUP($A294,Economática!$A$3:$AI$823,17,FALSE)=\"-\"),1/0,VLOOKUP($A294,Economática!$A$3:$AI$823,17,FALSE)))","v":""},{"$f":"IF($A294=\"\",\"\",IF(OR(VLOOKUP($A294,Economática!$A$3:$AI$823,18,FALSE)=0,VLOOKUP($A294,Economática!$A$3:$AI$823,18,FALSE)=\"-\"),1/0,VLOOKUP($A294,Economática!$A$3:$AI$823,18,FALSE)))","v":""},{"$f":"IF($A294=\"\",\"\",IF(OR(VLOOKUP($A294,Economática!$A$3:$AI$823,19,FALSE)=0,VLOOKUP($A294,Economática!$A$3:$AI$823,19,FALSE)=\"-\"),1/0,VLOOKUP($A294,Economática!$A$3:$AI$823,19,FALSE)))","v":""},{"$f":"IF($A294=\"\",\"\",VLOOKUP($A294,Economática!$A$3:$AI$823,20,FALSE)/E294)","v":""},"","","",{"$f":"IF($A294=\"\",\"\",IF(OR(VLOOKUP($A294,Economática!$A$3:$AI$823,21,FALSE)/100=0,VLOOKUP($A294,Economática!$A$3:$AI$823,21,FALSE)/100=\"-\"),1/0,VLOOKUP($A294,Economática!$A$3:$AI$823,21,FALSE)/100))","v":""},{"$f":"IF($A294=\"\",\"\",IF(OR(VLOOKUP($A294,Economática!$A$3:$AI$823,22,FALSE)/100=0,VLOOKUP($A294,Economática!$A$3:$AI$823,22,FALSE)/100=\"-\"),1/0,VLOOKUP($A294,Economática!$A$3:$AI$823,22,FALSE)/100))","v":""},{"$f":"IF($A294=\"\",\"\",IF(OR(VLOOKUP($A294,Economática!$A$3:$AI$823,23,FALSE)=0,VLOOKUP($A294,Economática!$A$3:$AI$823,23,FALSE)=\"-\"),1/0,VLOOKUP($A294,Economática!$A$3:$AI$823,23,FALSE)))","v":""},{"$f":"IF($A294=\"\",\"\",IF(OR(VLOOKUP($A294,Economática!$A$3:$AI$823,24,FALSE)=0,VLOOKUP($A294,Economática!$A$3:$AI$823,24,FALSE)=\"-\"),1/0,VLOOKUP($A294,Economática!$A$3:$AI$823,24,FALSE)))","v":""},{"$f":"IF($A294=\"\",\"\",IF(OR(VLOOKUP($A294,Economática!$A$3:$AI$823,25,FALSE)=0,VLOOKUP($A294,Economática!$A$3:$AI$823,25,FALSE)=\"-\"),1/0,VLOOKUP($A294,Economática!$A$3:$AI$823,25,FALSE)))","v":""},{"$f":"IF($A294=\"\",\"\",IF(ISERROR((F294+VLOOKUP($A294,Economática!$A$3:$AI$823,26,FALSE))/Y294),(F294+VLOOKUP($A294,Economática!$A$3:$AI$823,26,FALSE))/Y294,(F294+VLOOKUP($A294,Economática!$A$3:$AI$823,26,FALSE))/Y294))","v":""},{"$f":"IF($A294=\"\",\"\",IF(OR(-VLOOKUP($A294,Economática!$A$3:$AI$823,27,FALSE)=0,-VLOOKUP($A294,Economática!$A$3:$AI$823,27,FALSE)=\"-\"),1/0,-VLOOKUP($A294,Economática!$A$3:$AI$823,27,FALSE)))","v":""},"",{"$f":"IF($A294=\"\",\"\",IF(OR(VLOOKUP($A294,Economática!$A$3:$AI$823,28,FALSE)=0,VLOOKUP($A294,Economática!$A$3:$AI$823,28,FALSE)=\"-\"),1/0,VLOOKUP($A294,Economática!$A$3:$AI$823,28,FALSE)))","v":""},{"$f":"IF($A294=\"\",\"\",IF(OR(VLOOKUP($A294,Economática!$A$3:$AI$823,29,FALSE)=0,VLOOKUP($A294,Economática!$A$3:$AI$823,29,FALSE)=\"-\"),1/0,VLOOKUP($A294,Economática!$A$3:$AI$823,29,FALSE)))","v":""},{"$f":"IF($A294=\"\",\"\",IF(OR(VLOOKUP($A294,Economática!$A$3:$AI$823,30,FALSE)/E294=0,VLOOKUP($A294,Economática!$A$3:$AI$823,30,FALSE)/E294=\"-\",VLOOKUP($A294,Economática!$A$3:$AI$823,30,FALSE)/E294<33.33%,VLOOKUP($A294,Economática!$A$3:$AI$823,30,FALSE)/E294>100%),1/0,VLOOKUP($A294,Economática!$A$3:$AI$823,30,FALSE)/E294))","v":""},"",{"$f":"IF($A294=\"\",\"\",IF(OR(VLOOKUP($A294,Economática!$A$3:$AI$823,25,FALSE)=0,VLOOKUP($A294,Economática!$A$3:$AI$823,25,FALSE)=\"-\"),1/0,VLOOKUP($A294,Economática!$A$3:$AI$823,25,FALSE)))","v":""},{"$f":"CONCATENATE(Economática!B272,\" \",Economática!C272)","v":" "}]
[{"$f":"IF(Economática!AG273=\"\",\"\",Economática!AG273)","v":""},{"$f":"IF($A295=\"\",\"\",VLOOKUP(VLOOKUP($A295,Economática!$A$3:$AI$823,6,FALSE),Correção!$B$16:$C$36,2,FALSE))","v":""},{"$f":"IF(Economática!B273=\"\",\"\",Economática!B273)","v":""},{"$f":"IF($A295=\"\",\"\",IF(OR(VLOOKUP($A295,Economática!$A$3:$AI$823,8,FALSE)=0,VLOOKUP($A295,Economática!$A$3:$AI$823,8,FALSE)=\"-\"),1/0,VLOOKUP($A295,Economática!$A$3:$AI$823,8,FALSE)))","v":""},{"$f":"IF(A295=\"\",\"\",IF(ISERROR(VLOOKUP(A295,Correção!$B$2:$G$13,9,FALSE)),VLOOKUP($A295,Economática!$A$3:$AI$823,9,FALSE),VLOOKUP(A295,Correção!$B$2:$G$13,9,FALSE)))","v":""},{"$f":"IF($A295=\"\",\"\",Economática!G273)","v":""},{"$f":"IF($A295=\"\",\"\",IF(OR(VLOOKUP($A295,Economática!$A$3:$AI$823,10,FALSE)=0,VLOOKUP($A295,Economática!$A$3:$AI$823,10,FALSE)=\"-\"),1/0,VLOOKUP($A295,Economática!$A$3:$AI$823,10,FALSE)))","v":""},{"$f":"IF($A295=\"\",\"\",IF(OR(VLOOKUP($A295,Economática!$A$3:$AI$823,11,FALSE)=0,VLOOKUP($A295,Economática!$A$3:$AI$823,11,FALSE)=\"-\"),1/0,VLOOKUP($A295,Economática!$A$3:$AI$823,11,FALSE)))","v":""},{"$f":"IF($A295=\"\",\"\",IF(OR(VLOOKUP($A295,Economática!$A$3:$AI$823,12,FALSE)=0,VLOOKUP($A295,Economática!$A$3:$AI$823,12,FALSE)=\"-\"),1/0,VLOOKUP($A295,Economática!$A$3:$AI$823,12,FALSE)))","v":""},{"$f":"IF($A295=\"\",\"\",IF(OR(VLOOKUP($A295,Economática!$A$3:$AI$823,13,FALSE)=0,VLOOKUP($A295,Economática!$A$3:$AI$823,13,FALSE)=\"-\"),1/0,VLOOKUP($A295,Economática!$A$3:$AI$823,13,FALSE)))","v":""},{"$f":"IF($A295=\"\",\"\",IF(OR(VLOOKUP($A295,Economática!$A$3:$AI$823,14,FALSE)=0,VLOOKUP($A295,Economática!$A$3:$AI$823,14,FALSE)=\"-\"),1/0,VLOOKUP($A295,Economática!$A$3:$AI$823,14,FALSE)))","v":""},{"$f":"IF($A295=\"\",\"\",IF(OR(VLOOKUP($A295,Economática!$A$3:$AI$823,15,FALSE)=0,VLOOKUP($A295,Economática!$A$3:$AI$823,15,FALSE)=\"-\"),1/0,VLOOKUP($A295,Economática!$A$3:$AI$823,15,FALSE)))","v":""},{"$f":"IF($A295=\"\",\"\",IF(OR(VLOOKUP($A295,Economática!$A$3:$AI$823,16,FALSE)=0,VLOOKUP($A295,Economática!$A$3:$AI$823,16,FALSE)=\"-\"),1/0,VLOOKUP($A295,Economática!$A$3:$AI$823,16,FALSE)))","v":""},{"$f":"IF($A295=\"\",\"\",IF(OR(VLOOKUP($A295,Economática!$A$3:$AI$823,17,FALSE)=0,VLOOKUP($A295,Economática!$A$3:$AI$823,17,FALSE)=\"-\"),1/0,VLOOKUP($A295,Economática!$A$3:$AI$823,17,FALSE)))","v":""},{"$f":"IF($A295=\"\",\"\",IF(OR(VLOOKUP($A295,Economática!$A$3:$AI$823,18,FALSE)=0,VLOOKUP($A295,Economática!$A$3:$AI$823,18,FALSE)=\"-\"),1/0,VLOOKUP($A295,Economática!$A$3:$AI$823,18,FALSE)))","v":""},{"$f":"IF($A295=\"\",\"\",IF(OR(VLOOKUP($A295,Economática!$A$3:$AI$823,19,FALSE)=0,VLOOKUP($A295,Economática!$A$3:$AI$823,19,FALSE)=\"-\"),1/0,VLOOKUP($A295,Economática!$A$3:$AI$823,19,FALSE)))","v":""},{"$f":"IF($A295=\"\",\"\",VLOOKUP($A295,Economática!$A$3:$AI$823,20,FALSE)/E295)","v":""},"","","",{"$f":"IF($A295=\"\",\"\",IF(OR(VLOOKUP($A295,Economática!$A$3:$AI$823,21,FALSE)/100=0,VLOOKUP($A295,Economática!$A$3:$AI$823,21,FALSE)/100=\"-\"),1/0,VLOOKUP($A295,Economática!$A$3:$AI$823,21,FALSE)/100))","v":""},{"$f":"IF($A295=\"\",\"\",IF(OR(VLOOKUP($A295,Economática!$A$3:$AI$823,22,FALSE)/100=0,VLOOKUP($A295,Economática!$A$3:$AI$823,22,FALSE)/100=\"-\"),1/0,VLOOKUP($A295,Economática!$A$3:$AI$823,22,FALSE)/100))","v":""},{"$f":"IF($A295=\"\",\"\",IF(OR(VLOOKUP($A295,Economática!$A$3:$AI$823,23,FALSE)=0,VLOOKUP($A295,Economática!$A$3:$AI$823,23,FALSE)=\"-\"),1/0,VLOOKUP($A295,Economática!$A$3:$AI$823,23,FALSE)))","v":""},{"$f":"IF($A295=\"\",\"\",IF(OR(VLOOKUP($A295,Economática!$A$3:$AI$823,24,FALSE)=0,VLOOKUP($A295,Economática!$A$3:$AI$823,24,FALSE)=\"-\"),1/0,VLOOKUP($A295,Economática!$A$3:$AI$823,24,FALSE)))","v":""},{"$f":"IF($A295=\"\",\"\",IF(OR(VLOOKUP($A295,Economática!$A$3:$AI$823,25,FALSE)=0,VLOOKUP($A295,Economática!$A$3:$AI$823,25,FALSE)=\"-\"),1/0,VLOOKUP($A295,Economática!$A$3:$AI$823,25,FALSE)))","v":""},{"$f":"IF($A295=\"\",\"\",IF(ISERROR((F295+VLOOKUP($A295,Economática!$A$3:$AI$823,26,FALSE))/Y295),(F295+VLOOKUP($A295,Economática!$A$3:$AI$823,26,FALSE))/Y295,(F295+VLOOKUP($A295,Economática!$A$3:$AI$823,26,FALSE))/Y295))","v":""},{"$f":"IF($A295=\"\",\"\",IF(OR(-VLOOKUP($A295,Economática!$A$3:$AI$823,27,FALSE)=0,-VLOOKUP($A295,Economática!$A$3:$AI$823,27,FALSE)=\"-\"),1/0,-VLOOKUP($A295,Economática!$A$3:$AI$823,27,FALSE)))","v":""},"",{"$f":"IF($A295=\"\",\"\",IF(OR(VLOOKUP($A295,Economática!$A$3:$AI$823,28,FALSE)=0,VLOOKUP($A295,Economática!$A$3:$AI$823,28,FALSE)=\"-\"),1/0,VLOOKUP($A295,Economática!$A$3:$AI$823,28,FALSE)))","v":""},{"$f":"IF($A295=\"\",\"\",IF(OR(VLOOKUP($A295,Economática!$A$3:$AI$823,29,FALSE)=0,VLOOKUP($A295,Economática!$A$3:$AI$823,29,FALSE)=\"-\"),1/0,VLOOKUP($A295,Economática!$A$3:$AI$823,29,FALSE)))","v":""},{"$f":"IF($A295=\"\",\"\",IF(OR(VLOOKUP($A295,Economática!$A$3:$AI$823,30,FALSE)/E295=0,VLOOKUP($A295,Economática!$A$3:$AI$823,30,FALSE)/E295=\"-\",VLOOKUP($A295,Economática!$A$3:$AI$823,30,FALSE)/E295<33.33%,VLOOKUP($A295,Economática!$A$3:$AI$823,30,FALSE)/E295>100%),1/0,VLOOKUP($A295,Economática!$A$3:$AI$823,30,FALSE)/E295))","v":""},"",{"$f":"IF($A295=\"\",\"\",IF(OR(VLOOKUP($A295,Economática!$A$3:$AI$823,25,FALSE)=0,VLOOKUP($A295,Economática!$A$3:$AI$823,25,FALSE)=\"-\"),1/0,VLOOKUP($A295,Economática!$A$3:$AI$823,25,FALSE)))","v":""},{"$f":"CONCATENATE(Economática!B273,\" \",Economática!C273)","v":" "}]
[{"$f":"IF(Economática!AG274=\"\",\"\",Economática!AG274)","v":""},{"$f":"IF($A296=\"\",\"\",VLOOKUP(VLOOKUP($A296,Economática!$A$3:$AI$823,6,FALSE),Correção!$B$16:$C$36,2,FALSE))","v":""},{"$f":"IF(Economática!B274=\"\",\"\",Economática!B274)","v":""},{"$f":"IF($A296=\"\",\"\",IF(OR(VLOOKUP($A296,Economática!$A$3:$AI$823,8,FALSE)=0,VLOOKUP($A296,Economática!$A$3:$AI$823,8,FALSE)=\"-\"),1/0,VLOOKUP($A296,Economática!$A$3:$AI$823,8,FALSE)))","v":""},{"$f":"IF(A296=\"\",\"\",IF(ISERROR(VLOOKUP(A296,Correção!$B$2:$G$13,9,FALSE)),VLOOKUP($A296,Economática!$A$3:$AI$823,9,FALSE),VLOOKUP(A296,Correção!$B$2:$G$13,9,FALSE)))","v":""},{"$f":"IF($A296=\"\",\"\",Economática!G274)","v":""},{"$f":"IF($A296=\"\",\"\",IF(OR(VLOOKUP($A296,Economática!$A$3:$AI$823,10,FALSE)=0,VLOOKUP($A296,Economática!$A$3:$AI$823,10,FALSE)=\"-\"),1/0,VLOOKUP($A296,Economática!$A$3:$AI$823,10,FALSE)))","v":""},{"$f":"IF($A296=\"\",\"\",IF(OR(VLOOKUP($A296,Economática!$A$3:$AI$823,11,FALSE)=0,VLOOKUP($A296,Economática!$A$3:$AI$823,11,FALSE)=\"-\"),1/0,VLOOKUP($A296,Economática!$A$3:$AI$823,11,FALSE)))","v":""},{"$f":"IF($A296=\"\",\"\",IF(OR(VLOOKUP($A296,Economática!$A$3:$AI$823,12,FALSE)=0,VLOOKUP($A296,Economática!$A$3:$AI$823,12,FALSE)=\"-\"),1/0,VLOOKUP($A296,Economática!$A$3:$AI$823,12,FALSE)))","v":""},{"$f":"IF($A296=\"\",\"\",IF(OR(VLOOKUP($A296,Economática!$A$3:$AI$823,13,FALSE)=0,VLOOKUP($A296,Economática!$A$3:$AI$823,13,FALSE)=\"-\"),1/0,VLOOKUP($A296,Economática!$A$3:$AI$823,13,FALSE)))","v":""},{"$f":"IF($A296=\"\",\"\",IF(OR(VLOOKUP($A296,Economática!$A$3:$AI$823,14,FALSE)=0,VLOOKUP($A296,Economática!$A$3:$AI$823,14,FALSE)=\"-\"),1/0,VLOOKUP($A296,Economática!$A$3:$AI$823,14,FALSE)))","v":""},{"$f":"IF($A296=\"\",\"\",IF(OR(VLOOKUP($A296,Economática!$A$3:$AI$823,15,FALSE)=0,VLOOKUP($A296,Economática!$A$3:$AI$823,15,FALSE)=\"-\"),1/0,VLOOKUP($A296,Economática!$A$3:$AI$823,15,FALSE)))","v":""},{"$f":"IF($A296=\"\",\"\",IF(OR(VLOOKUP($A296,Economática!$A$3:$AI$823,16,FALSE)=0,VLOOKUP($A296,Economática!$A$3:$AI$823,16,FALSE)=\"-\"),1/0,VLOOKUP($A296,Economática!$A$3:$AI$823,16,FALSE)))","v":""},{"$f":"IF($A296=\"\",\"\",IF(OR(VLOOKUP($A296,Economática!$A$3:$AI$823,17,FALSE)=0,VLOOKUP($A296,Economática!$A$3:$AI$823,17,FALSE)=\"-\"),1/0,VLOOKUP($A296,Economática!$A$3:$AI$823,17,FALSE)))","v":""},{"$f":"IF($A296=\"\",\"\",IF(OR(VLOOKUP($A296,Economática!$A$3:$AI$823,18,FALSE)=0,VLOOKUP($A296,Economática!$A$3:$AI$823,18,FALSE)=\"-\"),1/0,VLOOKUP($A296,Economática!$A$3:$AI$823,18,FALSE)))","v":""},{"$f":"IF($A296=\"\",\"\",IF(OR(VLOOKUP($A296,Economática!$A$3:$AI$823,19,FALSE)=0,VLOOKUP($A296,Economática!$A$3:$AI$823,19,FALSE)=\"-\"),1/0,VLOOKUP($A296,Economática!$A$3:$AI$823,19,FALSE)))","v":""},{"$f":"IF($A296=\"\",\"\",VLOOKUP($A296,Economática!$A$3:$AI$823,20,FALSE)/E296)","v":""},"","","",{"$f":"IF($A296=\"\",\"\",IF(OR(VLOOKUP($A296,Economática!$A$3:$AI$823,21,FALSE)/100=0,VLOOKUP($A296,Economática!$A$3:$AI$823,21,FALSE)/100=\"-\"),1/0,VLOOKUP($A296,Economática!$A$3:$AI$823,21,FALSE)/100))","v":""},{"$f":"IF($A296=\"\",\"\",IF(OR(VLOOKUP($A296,Economática!$A$3:$AI$823,22,FALSE)/100=0,VLOOKUP($A296,Economática!$A$3:$AI$823,22,FALSE)/100=\"-\"),1/0,VLOOKUP($A296,Economática!$A$3:$AI$823,22,FALSE)/100))","v":""},{"$f":"IF($A296=\"\",\"\",IF(OR(VLOOKUP($A296,Economática!$A$3:$AI$823,23,FALSE)=0,VLOOKUP($A296,Economática!$A$3:$AI$823,23,FALSE)=\"-\"),1/0,VLOOKUP($A296,Economática!$A$3:$AI$823,23,FALSE)))","v":""},{"$f":"IF($A296=\"\",\"\",IF(OR(VLOOKUP($A296,Economática!$A$3:$AI$823,24,FALSE)=0,VLOOKUP($A296,Economática!$A$3:$AI$823,24,FALSE)=\"-\"),1/0,VLOOKUP($A296,Economática!$A$3:$AI$823,24,FALSE)))","v":""},{"$f":"IF($A296=\"\",\"\",IF(OR(VLOOKUP($A296,Economática!$A$3:$AI$823,25,FALSE)=0,VLOOKUP($A296,Economática!$A$3:$AI$823,25,FALSE)=\"-\"),1/0,VLOOKUP($A296,Economática!$A$3:$AI$823,25,FALSE)))","v":""},{"$f":"IF($A296=\"\",\"\",IF(ISERROR((F296+VLOOKUP($A296,Economática!$A$3:$AI$823,26,FALSE))/Y296),(F296+VLOOKUP($A296,Economática!$A$3:$AI$823,26,FALSE))/Y296,(F296+VLOOKUP($A296,Economática!$A$3:$AI$823,26,FALSE))/Y296))","v":""},{"$f":"IF($A296=\"\",\"\",IF(OR(-VLOOKUP($A296,Economática!$A$3:$AI$823,27,FALSE)=0,-VLOOKUP($A296,Economática!$A$3:$AI$823,27,FALSE)=\"-\"),1/0,-VLOOKUP($A296,Economática!$A$3:$AI$823,27,FALSE)))","v":""},"",{"$f":"IF($A296=\"\",\"\",IF(OR(VLOOKUP($A296,Economática!$A$3:$AI$823,28,FALSE)=0,VLOOKUP($A296,Economática!$A$3:$AI$823,28,FALSE)=\"-\"),1/0,VLOOKUP($A296,Economática!$A$3:$AI$823,28,FALSE)))","v":""},{"$f":"IF($A296=\"\",\"\",IF(OR(VLOOKUP($A296,Economática!$A$3:$AI$823,29,FALSE)=0,VLOOKUP($A296,Economática!$A$3:$AI$823,29,FALSE)=\"-\"),1/0,VLOOKUP($A296,Economática!$A$3:$AI$823,29,FALSE)))","v":""},{"$f":"IF($A296=\"\",\"\",IF(OR(VLOOKUP($A296,Economática!$A$3:$AI$823,30,FALSE)/E296=0,VLOOKUP($A296,Economática!$A$3:$AI$823,30,FALSE)/E296=\"-\",VLOOKUP($A296,Economática!$A$3:$AI$823,30,FALSE)/E296<33.33%,VLOOKUP($A296,Economática!$A$3:$AI$823,30,FALSE)/E296>100%),1/0,VLOOKUP($A296,Economática!$A$3:$AI$823,30,FALSE)/E296))","v":""},"",{"$f":"IF($A296=\"\",\"\",IF(OR(VLOOKUP($A296,Economática!$A$3:$AI$823,25,FALSE)=0,VLOOKUP($A296,Economática!$A$3:$AI$823,25,FALSE)=\"-\"),1/0,VLOOKUP($A296,Economática!$A$3:$AI$823,25,FALSE)))","v":""},{"$f":"CONCATENATE(Economática!B274,\" \",Economática!C274)","v":" "}]
[{"$f":"IF(Economática!AG275=\"\",\"\",Economática!AG275)","v":""},{"$f":"IF($A297=\"\",\"\",VLOOKUP(VLOOKUP($A297,Economática!$A$3:$AI$823,6,FALSE),Correção!$B$16:$C$36,2,FALSE))","v":""},{"$f":"IF(Economática!B275=\"\",\"\",Economática!B275)","v":""},{"$f":"IF($A297=\"\",\"\",IF(OR(VLOOKUP($A297,Economática!$A$3:$AI$823,8,FALSE)=0,VLOOKUP($A297,Economática!$A$3:$AI$823,8,FALSE)=\"-\"),1/0,VLOOKUP($A297,Economática!$A$3:$AI$823,8,FALSE)))","v":""},{"$f":"IF(A297=\"\",\"\",IF(ISERROR(VLOOKUP(A297,Correção!$B$2:$G$13,9,FALSE)),VLOOKUP($A297,Economática!$A$3:$AI$823,9,FALSE),VLOOKUP(A297,Correção!$B$2:$G$13,9,FALSE)))","v":""},{"$f":"IF($A297=\"\",\"\",Economática!G275)","v":""},{"$f":"IF($A297=\"\",\"\",IF(OR(VLOOKUP($A297,Economática!$A$3:$AI$823,10,FALSE)=0,VLOOKUP($A297,Economática!$A$3:$AI$823,10,FALSE)=\"-\"),1/0,VLOOKUP($A297,Economática!$A$3:$AI$823,10,FALSE)))","v":""},{"$f":"IF($A297=\"\",\"\",IF(OR(VLOOKUP($A297,Economática!$A$3:$AI$823,11,FALSE)=0,VLOOKUP($A297,Economática!$A$3:$AI$823,11,FALSE)=\"-\"),1/0,VLOOKUP($A297,Economática!$A$3:$AI$823,11,FALSE)))","v":""},{"$f":"IF($A297=\"\",\"\",IF(OR(VLOOKUP($A297,Economática!$A$3:$AI$823,12,FALSE)=0,VLOOKUP($A297,Economática!$A$3:$AI$823,12,FALSE)=\"-\"),1/0,VLOOKUP($A297,Economática!$A$3:$AI$823,12,FALSE)))","v":""},{"$f":"IF($A297=\"\",\"\",IF(OR(VLOOKUP($A297,Economática!$A$3:$AI$823,13,FALSE)=0,VLOOKUP($A297,Economática!$A$3:$AI$823,13,FALSE)=\"-\"),1/0,VLOOKUP($A297,Economática!$A$3:$AI$823,13,FALSE)))","v":""},{"$f":"IF($A297=\"\",\"\",IF(OR(VLOOKUP($A297,Economática!$A$3:$AI$823,14,FALSE)=0,VLOOKUP($A297,Economática!$A$3:$AI$823,14,FALSE)=\"-\"),1/0,VLOOKUP($A297,Economática!$A$3:$AI$823,14,FALSE)))","v":""},{"$f":"IF($A297=\"\",\"\",IF(OR(VLOOKUP($A297,Economática!$A$3:$AI$823,15,FALSE)=0,VLOOKUP($A297,Economática!$A$3:$AI$823,15,FALSE)=\"-\"),1/0,VLOOKUP($A297,Economática!$A$3:$AI$823,15,FALSE)))","v":""},{"$f":"IF($A297=\"\",\"\",IF(OR(VLOOKUP($A297,Economática!$A$3:$AI$823,16,FALSE)=0,VLOOKUP($A297,Economática!$A$3:$AI$823,16,FALSE)=\"-\"),1/0,VLOOKUP($A297,Economática!$A$3:$AI$823,16,FALSE)))","v":""},{"$f":"IF($A297=\"\",\"\",IF(OR(VLOOKUP($A297,Economática!$A$3:$AI$823,17,FALSE)=0,VLOOKUP($A297,Economática!$A$3:$AI$823,17,FALSE)=\"-\"),1/0,VLOOKUP($A297,Economática!$A$3:$AI$823,17,FALSE)))","v":""},{"$f":"IF($A297=\"\",\"\",IF(OR(VLOOKUP($A297,Economática!$A$3:$AI$823,18,FALSE)=0,VLOOKUP($A297,Economática!$A$3:$AI$823,18,FALSE)=\"-\"),1/0,VLOOKUP($A297,Economática!$A$3:$AI$823,18,FALSE)))","v":""},{"$f":"IF($A297=\"\",\"\",IF(OR(VLOOKUP($A297,Economática!$A$3:$AI$823,19,FALSE)=0,VLOOKUP($A297,Economática!$A$3:$AI$823,19,FALSE)=\"-\"),1/0,VLOOKUP($A297,Economática!$A$3:$AI$823,19,FALSE)))","v":""},{"$f":"IF($A297=\"\",\"\",VLOOKUP($A297,Economática!$A$3:$AI$823,20,FALSE)/E297)","v":""},"","","",{"$f":"IF($A297=\"\",\"\",IF(OR(VLOOKUP($A297,Economática!$A$3:$AI$823,21,FALSE)/100=0,VLOOKUP($A297,Economática!$A$3:$AI$823,21,FALSE)/100=\"-\"),1/0,VLOOKUP($A297,Economática!$A$3:$AI$823,21,FALSE)/100))","v":""},{"$f":"IF($A297=\"\",\"\",IF(OR(VLOOKUP($A297,Economática!$A$3:$AI$823,22,FALSE)/100=0,VLOOKUP($A297,Economática!$A$3:$AI$823,22,FALSE)/100=\"-\"),1/0,VLOOKUP($A297,Economática!$A$3:$AI$823,22,FALSE)/100))","v":""},{"$f":"IF($A297=\"\",\"\",IF(OR(VLOOKUP($A297,Economática!$A$3:$AI$823,23,FALSE)=0,VLOOKUP($A297,Economática!$A$3:$AI$823,23,FALSE)=\"-\"),1/0,VLOOKUP($A297,Economática!$A$3:$AI$823,23,FALSE)))","v":""},{"$f":"IF($A297=\"\",\"\",IF(OR(VLOOKUP($A297,Economática!$A$3:$AI$823,24,FALSE)=0,VLOOKUP($A297,Economática!$A$3:$AI$823,24,FALSE)=\"-\"),1/0,VLOOKUP($A297,Economática!$A$3:$AI$823,24,FALSE)))","v":""},{"$f":"IF($A297=\"\",\"\",IF(OR(VLOOKUP($A297,Economática!$A$3:$AI$823,25,FALSE)=0,VLOOKUP($A297,Economática!$A$3:$AI$823,25,FALSE)=\"-\"),1/0,VLOOKUP($A297,Economática!$A$3:$AI$823,25,FALSE)))","v":""},{"$f":"IF($A297=\"\",\"\",IF(ISERROR((F297+VLOOKUP($A297,Economática!$A$3:$AI$823,26,FALSE))/Y297),(F297+VLOOKUP($A297,Economática!$A$3:$AI$823,26,FALSE))/Y297,(F297+VLOOKUP($A297,Economática!$A$3:$AI$823,26,FALSE))/Y297))","v":""},{"$f":"IF($A297=\"\",\"\",IF(OR(-VLOOKUP($A297,Economática!$A$3:$AI$823,27,FALSE)=0,-VLOOKUP($A297,Economática!$A$3:$AI$823,27,FALSE)=\"-\"),1/0,-VLOOKUP($A297,Economática!$A$3:$AI$823,27,FALSE)))","v":""},"",{"$f":"IF($A297=\"\",\"\",IF(OR(VLOOKUP($A297,Economática!$A$3:$AI$823,28,FALSE)=0,VLOOKUP($A297,Economática!$A$3:$AI$823,28,FALSE)=\"-\"),1/0,VLOOKUP($A297,Economática!$A$3:$AI$823,28,FALSE)))","v":""},{"$f":"IF($A297=\"\",\"\",IF(OR(VLOOKUP($A297,Economática!$A$3:$AI$823,29,FALSE)=0,VLOOKUP($A297,Economática!$A$3:$AI$823,29,FALSE)=\"-\"),1/0,VLOOKUP($A297,Economática!$A$3:$AI$823,29,FALSE)))","v":""},{"$f":"IF($A297=\"\",\"\",IF(OR(VLOOKUP($A297,Economática!$A$3:$AI$823,30,FALSE)/E297=0,VLOOKUP($A297,Economática!$A$3:$AI$823,30,FALSE)/E297=\"-\",VLOOKUP($A297,Economática!$A$3:$AI$823,30,FALSE)/E297<33.33%,VLOOKUP($A297,Economática!$A$3:$AI$823,30,FALSE)/E297>100%),1/0,VLOOKUP($A297,Economática!$A$3:$AI$823,30,FALSE)/E297))","v":""},"",{"$f":"IF($A297=\"\",\"\",IF(OR(VLOOKUP($A297,Economática!$A$3:$AI$823,25,FALSE)=0,VLOOKUP($A297,Economática!$A$3:$AI$823,25,FALSE)=\"-\"),1/0,VLOOKUP($A297,Economática!$A$3:$AI$823,25,FALSE)))","v":""},{"$f":"CONCATENATE(Economática!B275,\" \",Economática!C275)","v":" "}]
[{"$f":"IF(Economática!AG276=\"\",\"\",Economática!AG276)","v":""},{"$f":"IF($A298=\"\",\"\",VLOOKUP(VLOOKUP($A298,Economática!$A$3:$AI$823,6,FALSE),Correção!$B$16:$C$36,2,FALSE))","v":""},{"$f":"IF(Economática!B276=\"\",\"\",Economática!B276)","v":""},{"$f":"IF($A298=\"\",\"\",IF(OR(VLOOKUP($A298,Economática!$A$3:$AI$823,8,FALSE)=0,VLOOKUP($A298,Economática!$A$3:$AI$823,8,FALSE)=\"-\"),1/0,VLOOKUP($A298,Economática!$A$3:$AI$823,8,FALSE)))","v":""},{"$f":"IF(A298=\"\",\"\",IF(ISERROR(VLOOKUP(A298,Correção!$B$2:$G$13,9,FALSE)),VLOOKUP($A298,Economática!$A$3:$AI$823,9,FALSE),VLOOKUP(A298,Correção!$B$2:$G$13,9,FALSE)))","v":""},{"$f":"IF($A298=\"\",\"\",Economática!G276)","v":""},{"$f":"IF($A298=\"\",\"\",IF(OR(VLOOKUP($A298,Economática!$A$3:$AI$823,10,FALSE)=0,VLOOKUP($A298,Economática!$A$3:$AI$823,10,FALSE)=\"-\"),1/0,VLOOKUP($A298,Economática!$A$3:$AI$823,10,FALSE)))","v":""},{"$f":"IF($A298=\"\",\"\",IF(OR(VLOOKUP($A298,Economática!$A$3:$AI$823,11,FALSE)=0,VLOOKUP($A298,Economática!$A$3:$AI$823,11,FALSE)=\"-\"),1/0,VLOOKUP($A298,Economática!$A$3:$AI$823,11,FALSE)))","v":""},{"$f":"IF($A298=\"\",\"\",IF(OR(VLOOKUP($A298,Economática!$A$3:$AI$823,12,FALSE)=0,VLOOKUP($A298,Economática!$A$3:$AI$823,12,FALSE)=\"-\"),1/0,VLOOKUP($A298,Economática!$A$3:$AI$823,12,FALSE)))","v":""},{"$f":"IF($A298=\"\",\"\",IF(OR(VLOOKUP($A298,Economática!$A$3:$AI$823,13,FALSE)=0,VLOOKUP($A298,Economática!$A$3:$AI$823,13,FALSE)=\"-\"),1/0,VLOOKUP($A298,Economática!$A$3:$AI$823,13,FALSE)))","v":""},{"$f":"IF($A298=\"\",\"\",IF(OR(VLOOKUP($A298,Economática!$A$3:$AI$823,14,FALSE)=0,VLOOKUP($A298,Economática!$A$3:$AI$823,14,FALSE)=\"-\"),1/0,VLOOKUP($A298,Economática!$A$3:$AI$823,14,FALSE)))","v":""},{"$f":"IF($A298=\"\",\"\",IF(OR(VLOOKUP($A298,Economática!$A$3:$AI$823,15,FALSE)=0,VLOOKUP($A298,Economática!$A$3:$AI$823,15,FALSE)=\"-\"),1/0,VLOOKUP($A298,Economática!$A$3:$AI$823,15,FALSE)))","v":""},{"$f":"IF($A298=\"\",\"\",IF(OR(VLOOKUP($A298,Economática!$A$3:$AI$823,16,FALSE)=0,VLOOKUP($A298,Economática!$A$3:$AI$823,16,FALSE)=\"-\"),1/0,VLOOKUP($A298,Economática!$A$3:$AI$823,16,FALSE)))","v":""},{"$f":"IF($A298=\"\",\"\",IF(OR(VLOOKUP($A298,Economática!$A$3:$AI$823,17,FALSE)=0,VLOOKUP($A298,Economática!$A$3:$AI$823,17,FALSE)=\"-\"),1/0,VLOOKUP($A298,Economática!$A$3:$AI$823,17,FALSE)))","v":""},{"$f":"IF($A298=\"\",\"\",IF(OR(VLOOKUP($A298,Economática!$A$3:$AI$823,18,FALSE)=0,VLOOKUP($A298,Economática!$A$3:$AI$823,18,FALSE)=\"-\"),1/0,VLOOKUP($A298,Economática!$A$3:$AI$823,18,FALSE)))","v":""},{"$f":"IF($A298=\"\",\"\",IF(OR(VLOOKUP($A298,Economática!$A$3:$AI$823,19,FALSE)=0,VLOOKUP($A298,Economática!$A$3:$AI$823,19,FALSE)=\"-\"),1/0,VLOOKUP($A298,Economática!$A$3:$AI$823,19,FALSE)))","v":""},{"$f":"IF($A298=\"\",\"\",VLOOKUP($A298,Economática!$A$3:$AI$823,20,FALSE)/E298)","v":""},"","","",{"$f":"IF($A298=\"\",\"\",IF(OR(VLOOKUP($A298,Economática!$A$3:$AI$823,21,FALSE)/100=0,VLOOKUP($A298,Economática!$A$3:$AI$823,21,FALSE)/100=\"-\"),1/0,VLOOKUP($A298,Economática!$A$3:$AI$823,21,FALSE)/100))","v":""},{"$f":"IF($A298=\"\",\"\",IF(OR(VLOOKUP($A298,Economática!$A$3:$AI$823,22,FALSE)/100=0,VLOOKUP($A298,Economática!$A$3:$AI$823,22,FALSE)/100=\"-\"),1/0,VLOOKUP($A298,Economática!$A$3:$AI$823,22,FALSE)/100))","v":""},{"$f":"IF($A298=\"\",\"\",IF(OR(VLOOKUP($A298,Economática!$A$3:$AI$823,23,FALSE)=0,VLOOKUP($A298,Economática!$A$3:$AI$823,23,FALSE)=\"-\"),1/0,VLOOKUP($A298,Economática!$A$3:$AI$823,23,FALSE)))","v":""},{"$f":"IF($A298=\"\",\"\",IF(OR(VLOOKUP($A298,Economática!$A$3:$AI$823,24,FALSE)=0,VLOOKUP($A298,Economática!$A$3:$AI$823,24,FALSE)=\"-\"),1/0,VLOOKUP($A298,Economática!$A$3:$AI$823,24,FALSE)))","v":""},{"$f":"IF($A298=\"\",\"\",IF(OR(VLOOKUP($A298,Economática!$A$3:$AI$823,25,FALSE)=0,VLOOKUP($A298,Economática!$A$3:$AI$823,25,FALSE)=\"-\"),1/0,VLOOKUP($A298,Economática!$A$3:$AI$823,25,FALSE)))","v":""},{"$f":"IF($A298=\"\",\"\",IF(ISERROR((F298+VLOOKUP($A298,Economática!$A$3:$AI$823,26,FALSE))/Y298),(F298+VLOOKUP($A298,Economática!$A$3:$AI$823,26,FALSE))/Y298,(F298+VLOOKUP($A298,Economática!$A$3:$AI$823,26,FALSE))/Y298))","v":""},{"$f":"IF($A298=\"\",\"\",IF(OR(-VLOOKUP($A298,Economática!$A$3:$AI$823,27,FALSE)=0,-VLOOKUP($A298,Economática!$A$3:$AI$823,27,FALSE)=\"-\"),1/0,-VLOOKUP($A298,Economática!$A$3:$AI$823,27,FALSE)))","v":""},"",{"$f":"IF($A298=\"\",\"\",IF(OR(VLOOKUP($A298,Economática!$A$3:$AI$823,28,FALSE)=0,VLOOKUP($A298,Economática!$A$3:$AI$823,28,FALSE)=\"-\"),1/0,VLOOKUP($A298,Economática!$A$3:$AI$823,28,FALSE)))","v":""},{"$f":"IF($A298=\"\",\"\",IF(OR(VLOOKUP($A298,Economática!$A$3:$AI$823,29,FALSE)=0,VLOOKUP($A298,Economática!$A$3:$AI$823,29,FALSE)=\"-\"),1/0,VLOOKUP($A298,Economática!$A$3:$AI$823,29,FALSE)))","v":""},{"$f":"IF($A298=\"\",\"\",IF(OR(VLOOKUP($A298,Economática!$A$3:$AI$823,30,FALSE)/E298=0,VLOOKUP($A298,Economática!$A$3:$AI$823,30,FALSE)/E298=\"-\",VLOOKUP($A298,Economática!$A$3:$AI$823,30,FALSE)/E298<33.33%,VLOOKUP($A298,Economática!$A$3:$AI$823,30,FALSE)/E298>100%),1/0,VLOOKUP($A298,Economática!$A$3:$AI$823,30,FALSE)/E298))","v":""},"",{"$f":"IF($A298=\"\",\"\",IF(OR(VLOOKUP($A298,Economática!$A$3:$AI$823,25,FALSE)=0,VLOOKUP($A298,Economática!$A$3:$AI$823,25,FALSE)=\"-\"),1/0,VLOOKUP($A298,Economática!$A$3:$AI$823,25,FALSE)))","v":""},{"$f":"CONCATENATE(Economática!B276,\" \",Economática!C276)","v":" "}]
[{"$f":"IF(Economática!AG277=\"\",\"\",Economática!AG277)","v":""},{"$f":"IF($A299=\"\",\"\",VLOOKUP(VLOOKUP($A299,Economática!$A$3:$AI$823,6,FALSE),Correção!$B$16:$C$36,2,FALSE))","v":""},{"$f":"IF(Economática!B277=\"\",\"\",Economática!B277)","v":""},{"$f":"IF($A299=\"\",\"\",IF(OR(VLOOKUP($A299,Economática!$A$3:$AI$823,8,FALSE)=0,VLOOKUP($A299,Economática!$A$3:$AI$823,8,FALSE)=\"-\"),1/0,VLOOKUP($A299,Economática!$A$3:$AI$823,8,FALSE)))","v":""},{"$f":"IF(A299=\"\",\"\",IF(ISERROR(VLOOKUP(A299,Correção!$B$2:$G$13,9,FALSE)),VLOOKUP($A299,Economática!$A$3:$AI$823,9,FALSE),VLOOKUP(A299,Correção!$B$2:$G$13,9,FALSE)))","v":""},{"$f":"IF($A299=\"\",\"\",Economática!G277)","v":""},{"$f":"IF($A299=\"\",\"\",IF(OR(VLOOKUP($A299,Economática!$A$3:$AI$823,10,FALSE)=0,VLOOKUP($A299,Economática!$A$3:$AI$823,10,FALSE)=\"-\"),1/0,VLOOKUP($A299,Economática!$A$3:$AI$823,10,FALSE)))","v":""},{"$f":"IF($A299=\"\",\"\",IF(OR(VLOOKUP($A299,Economática!$A$3:$AI$823,11,FALSE)=0,VLOOKUP($A299,Economática!$A$3:$AI$823,11,FALSE)=\"-\"),1/0,VLOOKUP($A299,Economática!$A$3:$AI$823,11,FALSE)))","v":""},{"$f":"IF($A299=\"\",\"\",IF(OR(VLOOKUP($A299,Economática!$A$3:$AI$823,12,FALSE)=0,VLOOKUP($A299,Economática!$A$3:$AI$823,12,FALSE)=\"-\"),1/0,VLOOKUP($A299,Economática!$A$3:$AI$823,12,FALSE)))","v":""},{"$f":"IF($A299=\"\",\"\",IF(OR(VLOOKUP($A299,Economática!$A$3:$AI$823,13,FALSE)=0,VLOOKUP($A299,Economática!$A$3:$AI$823,13,FALSE)=\"-\"),1/0,VLOOKUP($A299,Economática!$A$3:$AI$823,13,FALSE)))","v":""},{"$f":"IF($A299=\"\",\"\",IF(OR(VLOOKUP($A299,Economática!$A$3:$AI$823,14,FALSE)=0,VLOOKUP($A299,Economática!$A$3:$AI$823,14,FALSE)=\"-\"),1/0,VLOOKUP($A299,Economática!$A$3:$AI$823,14,FALSE)))","v":""},{"$f":"IF($A299=\"\",\"\",IF(OR(VLOOKUP($A299,Economática!$A$3:$AI$823,15,FALSE)=0,VLOOKUP($A299,Economática!$A$3:$AI$823,15,FALSE)=\"-\"),1/0,VLOOKUP($A299,Economática!$A$3:$AI$823,15,FALSE)))","v":""},{"$f":"IF($A299=\"\",\"\",IF(OR(VLOOKUP($A299,Economática!$A$3:$AI$823,16,FALSE)=0,VLOOKUP($A299,Economática!$A$3:$AI$823,16,FALSE)=\"-\"),1/0,VLOOKUP($A299,Economática!$A$3:$AI$823,16,FALSE)))","v":""},{"$f":"IF($A299=\"\",\"\",IF(OR(VLOOKUP($A299,Economática!$A$3:$AI$823,17,FALSE)=0,VLOOKUP($A299,Economática!$A$3:$AI$823,17,FALSE)=\"-\"),1/0,VLOOKUP($A299,Economática!$A$3:$AI$823,17,FALSE)))","v":""},{"$f":"IF($A299=\"\",\"\",IF(OR(VLOOKUP($A299,Economática!$A$3:$AI$823,18,FALSE)=0,VLOOKUP($A299,Economática!$A$3:$AI$823,18,FALSE)=\"-\"),1/0,VLOOKUP($A299,Economática!$A$3:$AI$823,18,FALSE)))","v":""},{"$f":"IF($A299=\"\",\"\",IF(OR(VLOOKUP($A299,Economática!$A$3:$AI$823,19,FALSE)=0,VLOOKUP($A299,Economática!$A$3:$AI$823,19,FALSE)=\"-\"),1/0,VLOOKUP($A299,Economática!$A$3:$AI$823,19,FALSE)))","v":""},{"$f":"IF($A299=\"\",\"\",VLOOKUP($A299,Economática!$A$3:$AI$823,20,FALSE)/E299)","v":""},"","","",{"$f":"IF($A299=\"\",\"\",IF(OR(VLOOKUP($A299,Economática!$A$3:$AI$823,21,FALSE)/100=0,VLOOKUP($A299,Economática!$A$3:$AI$823,21,FALSE)/100=\"-\"),1/0,VLOOKUP($A299,Economática!$A$3:$AI$823,21,FALSE)/100))","v":""},{"$f":"IF($A299=\"\",\"\",IF(OR(VLOOKUP($A299,Economática!$A$3:$AI$823,22,FALSE)/100=0,VLOOKUP($A299,Economática!$A$3:$AI$823,22,FALSE)/100=\"-\"),1/0,VLOOKUP($A299,Economática!$A$3:$AI$823,22,FALSE)/100))","v":""},{"$f":"IF($A299=\"\",\"\",IF(OR(VLOOKUP($A299,Economática!$A$3:$AI$823,23,FALSE)=0,VLOOKUP($A299,Economática!$A$3:$AI$823,23,FALSE)=\"-\"),1/0,VLOOKUP($A299,Economática!$A$3:$AI$823,23,FALSE)))","v":""},{"$f":"IF($A299=\"\",\"\",IF(OR(VLOOKUP($A299,Economática!$A$3:$AI$823,24,FALSE)=0,VLOOKUP($A299,Economática!$A$3:$AI$823,24,FALSE)=\"-\"),1/0,VLOOKUP($A299,Economática!$A$3:$AI$823,24,FALSE)))","v":""},{"$f":"IF($A299=\"\",\"\",IF(OR(VLOOKUP($A299,Economática!$A$3:$AI$823,25,FALSE)=0,VLOOKUP($A299,Economática!$A$3:$AI$823,25,FALSE)=\"-\"),1/0,VLOOKUP($A299,Economática!$A$3:$AI$823,25,FALSE)))","v":""},{"$f":"IF($A299=\"\",\"\",IF(ISERROR((F299+VLOOKUP($A299,Economática!$A$3:$AI$823,26,FALSE))/Y299),(F299+VLOOKUP($A299,Economática!$A$3:$AI$823,26,FALSE))/Y299,(F299+VLOOKUP($A299,Economática!$A$3:$AI$823,26,FALSE))/Y299))","v":""},{"$f":"IF($A299=\"\",\"\",IF(OR(-VLOOKUP($A299,Economática!$A$3:$AI$823,27,FALSE)=0,-VLOOKUP($A299,Economática!$A$3:$AI$823,27,FALSE)=\"-\"),1/0,-VLOOKUP($A299,Economática!$A$3:$AI$823,27,FALSE)))","v":""},"",{"$f":"IF($A299=\"\",\"\",IF(OR(VLOOKUP($A299,Economática!$A$3:$AI$823,28,FALSE)=0,VLOOKUP($A299,Economática!$A$3:$AI$823,28,FALSE)=\"-\"),1/0,VLOOKUP($A299,Economática!$A$3:$AI$823,28,FALSE)))","v":""},{"$f":"IF($A299=\"\",\"\",IF(OR(VLOOKUP($A299,Economática!$A$3:$AI$823,29,FALSE)=0,VLOOKUP($A299,Economática!$A$3:$AI$823,29,FALSE)=\"-\"),1/0,VLOOKUP($A299,Economática!$A$3:$AI$823,29,FALSE)))","v":""},{"$f":"IF($A299=\"\",\"\",IF(OR(VLOOKUP($A299,Economática!$A$3:$AI$823,30,FALSE)/E299=0,VLOOKUP($A299,Economática!$A$3:$AI$823,30,FALSE)/E299=\"-\",VLOOKUP($A299,Economática!$A$3:$AI$823,30,FALSE)/E299<33.33%,VLOOKUP($A299,Economática!$A$3:$AI$823,30,FALSE)/E299>100%),1/0,VLOOKUP($A299,Economática!$A$3:$AI$823,30,FALSE)/E299))","v":""},"",{"$f":"IF($A299=\"\",\"\",IF(OR(VLOOKUP($A299,Economática!$A$3:$AI$823,25,FALSE)=0,VLOOKUP($A299,Economática!$A$3:$AI$823,25,FALSE)=\"-\"),1/0,VLOOKUP($A299,Economática!$A$3:$AI$823,25,FALSE)))","v":""},{"$f":"CONCATENATE(Economática!B277,\" \",Economática!C277)","v":" "}]
[{"$f":"IF(Economática!AG278=\"\",\"\",Economática!AG278)","v":""},{"$f":"IF($A300=\"\",\"\",VLOOKUP(VLOOKUP($A300,Economática!$A$3:$AI$823,6,FALSE),Correção!$B$16:$C$36,2,FALSE))","v":""},{"$f":"IF(Economática!B278=\"\",\"\",Economática!B278)","v":""},{"$f":"IF($A300=\"\",\"\",IF(OR(VLOOKUP($A300,Economática!$A$3:$AI$823,8,FALSE)=0,VLOOKUP($A300,Economática!$A$3:$AI$823,8,FALSE)=\"-\"),1/0,VLOOKUP($A300,Economática!$A$3:$AI$823,8,FALSE)))","v":""},{"$f":"IF(A300=\"\",\"\",IF(ISERROR(VLOOKUP(A300,Correção!$B$2:$G$13,9,FALSE)),VLOOKUP($A300,Economática!$A$3:$AI$823,9,FALSE),VLOOKUP(A300,Correção!$B$2:$G$13,9,FALSE)))","v":""},{"$f":"IF($A300=\"\",\"\",Economática!G278)","v":""},{"$f":"IF($A300=\"\",\"\",IF(OR(VLOOKUP($A300,Economática!$A$3:$AI$823,10,FALSE)=0,VLOOKUP($A300,Economática!$A$3:$AI$823,10,FALSE)=\"-\"),1/0,VLOOKUP($A300,Economática!$A$3:$AI$823,10,FALSE)))","v":""},{"$f":"IF($A300=\"\",\"\",IF(OR(VLOOKUP($A300,Economática!$A$3:$AI$823,11,FALSE)=0,VLOOKUP($A300,Economática!$A$3:$AI$823,11,FALSE)=\"-\"),1/0,VLOOKUP($A300,Economática!$A$3:$AI$823,11,FALSE)))","v":""},{"$f":"IF($A300=\"\",\"\",IF(OR(VLOOKUP($A300,Economática!$A$3:$AI$823,12,FALSE)=0,VLOOKUP($A300,Economática!$A$3:$AI$823,12,FALSE)=\"-\"),1/0,VLOOKUP($A300,Economática!$A$3:$AI$823,12,FALSE)))","v":""},{"$f":"IF($A300=\"\",\"\",IF(OR(VLOOKUP($A300,Economática!$A$3:$AI$823,13,FALSE)=0,VLOOKUP($A300,Economática!$A$3:$AI$823,13,FALSE)=\"-\"),1/0,VLOOKUP($A300,Economática!$A$3:$AI$823,13,FALSE)))","v":""},{"$f":"IF($A300=\"\",\"\",IF(OR(VLOOKUP($A300,Economática!$A$3:$AI$823,14,FALSE)=0,VLOOKUP($A300,Economática!$A$3:$AI$823,14,FALSE)=\"-\"),1/0,VLOOKUP($A300,Economática!$A$3:$AI$823,14,FALSE)))","v":""},{"$f":"IF($A300=\"\",\"\",IF(OR(VLOOKUP($A300,Economática!$A$3:$AI$823,15,FALSE)=0,VLOOKUP($A300,Economática!$A$3:$AI$823,15,FALSE)=\"-\"),1/0,VLOOKUP($A300,Economática!$A$3:$AI$823,15,FALSE)))","v":""},{"$f":"IF($A300=\"\",\"\",IF(OR(VLOOKUP($A300,Economática!$A$3:$AI$823,16,FALSE)=0,VLOOKUP($A300,Economática!$A$3:$AI$823,16,FALSE)=\"-\"),1/0,VLOOKUP($A300,Economática!$A$3:$AI$823,16,FALSE)))","v":""},{"$f":"IF($A300=\"\",\"\",IF(OR(VLOOKUP($A300,Economática!$A$3:$AI$823,17,FALSE)=0,VLOOKUP($A300,Economática!$A$3:$AI$823,17,FALSE)=\"-\"),1/0,VLOOKUP($A300,Economática!$A$3:$AI$823,17,FALSE)))","v":""},{"$f":"IF($A300=\"\",\"\",IF(OR(VLOOKUP($A300,Economática!$A$3:$AI$823,18,FALSE)=0,VLOOKUP($A300,Economática!$A$3:$AI$823,18,FALSE)=\"-\"),1/0,VLOOKUP($A300,Economática!$A$3:$AI$823,18,FALSE)))","v":""},{"$f":"IF($A300=\"\",\"\",IF(OR(VLOOKUP($A300,Economática!$A$3:$AI$823,19,FALSE)=0,VLOOKUP($A300,Economática!$A$3:$AI$823,19,FALSE)=\"-\"),1/0,VLOOKUP($A300,Economática!$A$3:$AI$823,19,FALSE)))","v":""},{"$f":"IF($A300=\"\",\"\",VLOOKUP($A300,Economática!$A$3:$AI$823,20,FALSE)/E300)","v":""},"","","",{"$f":"IF($A300=\"\",\"\",IF(OR(VLOOKUP($A300,Economática!$A$3:$AI$823,21,FALSE)/100=0,VLOOKUP($A300,Economática!$A$3:$AI$823,21,FALSE)/100=\"-\"),1/0,VLOOKUP($A300,Economática!$A$3:$AI$823,21,FALSE)/100))","v":""},{"$f":"IF($A300=\"\",\"\",IF(OR(VLOOKUP($A300,Economática!$A$3:$AI$823,22,FALSE)/100=0,VLOOKUP($A300,Economática!$A$3:$AI$823,22,FALSE)/100=\"-\"),1/0,VLOOKUP($A300,Economática!$A$3:$AI$823,22,FALSE)/100))","v":""},{"$f":"IF($A300=\"\",\"\",IF(OR(VLOOKUP($A300,Economática!$A$3:$AI$823,23,FALSE)=0,VLOOKUP($A300,Economática!$A$3:$AI$823,23,FALSE)=\"-\"),1/0,VLOOKUP($A300,Economática!$A$3:$AI$823,23,FALSE)))","v":""},{"$f":"IF($A300=\"\",\"\",IF(OR(VLOOKUP($A300,Economática!$A$3:$AI$823,24,FALSE)=0,VLOOKUP($A300,Economática!$A$3:$AI$823,24,FALSE)=\"-\"),1/0,VLOOKUP($A300,Economática!$A$3:$AI$823,24,FALSE)))","v":""},{"$f":"IF($A300=\"\",\"\",IF(OR(VLOOKUP($A300,Economática!$A$3:$AI$823,25,FALSE)=0,VLOOKUP($A300,Economática!$A$3:$AI$823,25,FALSE)=\"-\"),1/0,VLOOKUP($A300,Economática!$A$3:$AI$823,25,FALSE)))","v":""},{"$f":"IF($A300=\"\",\"\",IF(ISERROR((F300+VLOOKUP($A300,Economática!$A$3:$AI$823,26,FALSE))/Y300),(F300+VLOOKUP($A300,Economática!$A$3:$AI$823,26,FALSE))/Y300,(F300+VLOOKUP($A300,Economática!$A$3:$AI$823,26,FALSE))/Y300))","v":""},{"$f":"IF($A300=\"\",\"\",IF(OR(-VLOOKUP($A300,Economática!$A$3:$AI$823,27,FALSE)=0,-VLOOKUP($A300,Economática!$A$3:$AI$823,27,FALSE)=\"-\"),1/0,-VLOOKUP($A300,Economática!$A$3:$AI$823,27,FALSE)))","v":""},"",{"$f":"IF($A300=\"\",\"\",IF(OR(VLOOKUP($A300,Economática!$A$3:$AI$823,28,FALSE)=0,VLOOKUP($A300,Economática!$A$3:$AI$823,28,FALSE)=\"-\"),1/0,VLOOKUP($A300,Economática!$A$3:$AI$823,28,FALSE)))","v":""},{"$f":"IF($A300=\"\",\"\",IF(OR(VLOOKUP($A300,Economática!$A$3:$AI$823,29,FALSE)=0,VLOOKUP($A300,Economática!$A$3:$AI$823,29,FALSE)=\"-\"),1/0,VLOOKUP($A300,Economática!$A$3:$AI$823,29,FALSE)))","v":""},{"$f":"IF($A300=\"\",\"\",IF(OR(VLOOKUP($A300,Economática!$A$3:$AI$823,30,FALSE)/E300=0,VLOOKUP($A300,Economática!$A$3:$AI$823,30,FALSE)/E300=\"-\",VLOOKUP($A300,Economática!$A$3:$AI$823,30,FALSE)/E300<33.33%,VLOOKUP($A300,Economática!$A$3:$AI$823,30,FALSE)/E300>100%),1/0,VLOOKUP($A300,Economática!$A$3:$AI$823,30,FALSE)/E300))","v":""},"",{"$f":"IF($A300=\"\",\"\",IF(OR(VLOOKUP($A300,Economática!$A$3:$AI$823,25,FALSE)=0,VLOOKUP($A300,Economática!$A$3:$AI$823,25,FALSE)=\"-\"),1/0,VLOOKUP($A300,Economática!$A$3:$AI$823,25,FALSE)))","v":""},{"$f":"CONCATENATE(Economática!B278,\" \",Economática!C278)","v":" "}]
[{"$f":"IF(Economática!AG279=\"\",\"\",Economática!AG279)","v":""},{"$f":"IF($A301=\"\",\"\",VLOOKUP(VLOOKUP($A301,Economática!$A$3:$AI$823,6,FALSE),Correção!$B$16:$C$36,2,FALSE))","v":""},{"$f":"IF(Economática!B279=\"\",\"\",Economática!B279)","v":""},{"$f":"IF($A301=\"\",\"\",IF(OR(VLOOKUP($A301,Economática!$A$3:$AI$823,8,FALSE)=0,VLOOKUP($A301,Economática!$A$3:$AI$823,8,FALSE)=\"-\"),1/0,VLOOKUP($A301,Economática!$A$3:$AI$823,8,FALSE)))","v":""},{"$f":"IF(A301=\"\",\"\",IF(ISERROR(VLOOKUP(A301,Correção!$B$2:$G$13,9,FALSE)),VLOOKUP($A301,Economática!$A$3:$AI$823,9,FALSE),VLOOKUP(A301,Correção!$B$2:$G$13,9,FALSE)))","v":""},{"$f":"IF($A301=\"\",\"\",Economática!G279)","v":""},{"$f":"IF($A301=\"\",\"\",IF(OR(VLOOKUP($A301,Economática!$A$3:$AI$823,10,FALSE)=0,VLOOKUP($A301,Economática!$A$3:$AI$823,10,FALSE)=\"-\"),1/0,VLOOKUP($A301,Economática!$A$3:$AI$823,10,FALSE)))","v":""},{"$f":"IF($A301=\"\",\"\",IF(OR(VLOOKUP($A301,Economática!$A$3:$AI$823,11,FALSE)=0,VLOOKUP($A301,Economática!$A$3:$AI$823,11,FALSE)=\"-\"),1/0,VLOOKUP($A301,Economática!$A$3:$AI$823,11,FALSE)))","v":""},{"$f":"IF($A301=\"\",\"\",IF(OR(VLOOKUP($A301,Economática!$A$3:$AI$823,12,FALSE)=0,VLOOKUP($A301,Economática!$A$3:$AI$823,12,FALSE)=\"-\"),1/0,VLOOKUP($A301,Economática!$A$3:$AI$823,12,FALSE)))","v":""},{"$f":"IF($A301=\"\",\"\",IF(OR(VLOOKUP($A301,Economática!$A$3:$AI$823,13,FALSE)=0,VLOOKUP($A301,Economática!$A$3:$AI$823,13,FALSE)=\"-\"),1/0,VLOOKUP($A301,Economática!$A$3:$AI$823,13,FALSE)))","v":""},{"$f":"IF($A301=\"\",\"\",IF(OR(VLOOKUP($A301,Economática!$A$3:$AI$823,14,FALSE)=0,VLOOKUP($A301,Economática!$A$3:$AI$823,14,FALSE)=\"-\"),1/0,VLOOKUP($A301,Economática!$A$3:$AI$823,14,FALSE)))","v":""},{"$f":"IF($A301=\"\",\"\",IF(OR(VLOOKUP($A301,Economática!$A$3:$AI$823,15,FALSE)=0,VLOOKUP($A301,Economática!$A$3:$AI$823,15,FALSE)=\"-\"),1/0,VLOOKUP($A301,Economática!$A$3:$AI$823,15,FALSE)))","v":""},{"$f":"IF($A301=\"\",\"\",IF(OR(VLOOKUP($A301,Economática!$A$3:$AI$823,16,FALSE)=0,VLOOKUP($A301,Economática!$A$3:$AI$823,16,FALSE)=\"-\"),1/0,VLOOKUP($A301,Economática!$A$3:$AI$823,16,FALSE)))","v":""},{"$f":"IF($A301=\"\",\"\",IF(OR(VLOOKUP($A301,Economática!$A$3:$AI$823,17,FALSE)=0,VLOOKUP($A301,Economática!$A$3:$AI$823,17,FALSE)=\"-\"),1/0,VLOOKUP($A301,Economática!$A$3:$AI$823,17,FALSE)))","v":""},{"$f":"IF($A301=\"\",\"\",IF(OR(VLOOKUP($A301,Economática!$A$3:$AI$823,18,FALSE)=0,VLOOKUP($A301,Economática!$A$3:$AI$823,18,FALSE)=\"-\"),1/0,VLOOKUP($A301,Economática!$A$3:$AI$823,18,FALSE)))","v":""},{"$f":"IF($A301=\"\",\"\",IF(OR(VLOOKUP($A301,Economática!$A$3:$AI$823,19,FALSE)=0,VLOOKUP($A301,Economática!$A$3:$AI$823,19,FALSE)=\"-\"),1/0,VLOOKUP($A301,Economática!$A$3:$AI$823,19,FALSE)))","v":""},{"$f":"IF($A301=\"\",\"\",VLOOKUP($A301,Economática!$A$3:$AI$823,20,FALSE)/E301)","v":""},"","","",{"$f":"IF($A301=\"\",\"\",IF(OR(VLOOKUP($A301,Economática!$A$3:$AI$823,21,FALSE)/100=0,VLOOKUP($A301,Economática!$A$3:$AI$823,21,FALSE)/100=\"-\"),1/0,VLOOKUP($A301,Economática!$A$3:$AI$823,21,FALSE)/100))","v":""},{"$f":"IF($A301=\"\",\"\",IF(OR(VLOOKUP($A301,Economática!$A$3:$AI$823,22,FALSE)/100=0,VLOOKUP($A301,Economática!$A$3:$AI$823,22,FALSE)/100=\"-\"),1/0,VLOOKUP($A301,Economática!$A$3:$AI$823,22,FALSE)/100))","v":""},{"$f":"IF($A301=\"\",\"\",IF(OR(VLOOKUP($A301,Economática!$A$3:$AI$823,23,FALSE)=0,VLOOKUP($A301,Economática!$A$3:$AI$823,23,FALSE)=\"-\"),1/0,VLOOKUP($A301,Economática!$A$3:$AI$823,23,FALSE)))","v":""},{"$f":"IF($A301=\"\",\"\",IF(OR(VLOOKUP($A301,Economática!$A$3:$AI$823,24,FALSE)=0,VLOOKUP($A301,Economática!$A$3:$AI$823,24,FALSE)=\"-\"),1/0,VLOOKUP($A301,Economática!$A$3:$AI$823,24,FALSE)))","v":""},{"$f":"IF($A301=\"\",\"\",IF(OR(VLOOKUP($A301,Economática!$A$3:$AI$823,25,FALSE)=0,VLOOKUP($A301,Economática!$A$3:$AI$823,25,FALSE)=\"-\"),1/0,VLOOKUP($A301,Economática!$A$3:$AI$823,25,FALSE)))","v":""},{"$f":"IF($A301=\"\",\"\",IF(ISERROR((F301+VLOOKUP($A301,Economática!$A$3:$AI$823,26,FALSE))/Y301),(F301+VLOOKUP($A301,Economática!$A$3:$AI$823,26,FALSE))/Y301,(F301+VLOOKUP($A301,Economática!$A$3:$AI$823,26,FALSE))/Y301))","v":""},{"$f":"IF($A301=\"\",\"\",IF(OR(-VLOOKUP($A301,Economática!$A$3:$AI$823,27,FALSE)=0,-VLOOKUP($A301,Economática!$A$3:$AI$823,27,FALSE)=\"-\"),1/0,-VLOOKUP($A301,Economática!$A$3:$AI$823,27,FALSE)))","v":""},"",{"$f":"IF($A301=\"\",\"\",IF(OR(VLOOKUP($A301,Economática!$A$3:$AI$823,28,FALSE)=0,VLOOKUP($A301,Economática!$A$3:$AI$823,28,FALSE)=\"-\"),1/0,VLOOKUP($A301,Economática!$A$3:$AI$823,28,FALSE)))","v":""},{"$f":"IF($A301=\"\",\"\",IF(OR(VLOOKUP($A301,Economática!$A$3:$AI$823,29,FALSE)=0,VLOOKUP($A301,Economática!$A$3:$AI$823,29,FALSE)=\"-\"),1/0,VLOOKUP($A301,Economática!$A$3:$AI$823,29,FALSE)))","v":""},{"$f":"IF($A301=\"\",\"\",IF(OR(VLOOKUP($A301,Economática!$A$3:$AI$823,30,FALSE)/E301=0,VLOOKUP($A301,Economática!$A$3:$AI$823,30,FALSE)/E301=\"-\",VLOOKUP($A301,Economática!$A$3:$AI$823,30,FALSE)/E301<33.33%,VLOOKUP($A301,Economática!$A$3:$AI$823,30,FALSE)/E301>100%),1/0,VLOOKUP($A301,Economática!$A$3:$AI$823,30,FALSE)/E301))","v":""},"",{"$f":"IF($A301=\"\",\"\",IF(OR(VLOOKUP($A301,Economática!$A$3:$AI$823,25,FALSE)=0,VLOOKUP($A301,Economática!$A$3:$AI$823,25,FALSE)=\"-\"),1/0,VLOOKUP($A301,Economática!$A$3:$AI$823,25,FALSE)))","v":""},{"$f":"CONCATENATE(Economática!B279,\" \",Economática!C279)","v":" "}]
[{"$f":"IF(Economática!AG280=\"\",\"\",Economática!AG280)","v":""},{"$f":"IF($A302=\"\",\"\",VLOOKUP(VLOOKUP($A302,Economática!$A$3:$AI$823,6,FALSE),Correção!$B$16:$C$36,2,FALSE))","v":""},{"$f":"IF(Economática!B280=\"\",\"\",Economática!B280)","v":""},{"$f":"IF($A302=\"\",\"\",IF(OR(VLOOKUP($A302,Economática!$A$3:$AI$823,8,FALSE)=0,VLOOKUP($A302,Economática!$A$3:$AI$823,8,FALSE)=\"-\"),1/0,VLOOKUP($A302,Economática!$A$3:$AI$823,8,FALSE)))","v":""},{"$f":"IF(A302=\"\",\"\",IF(ISERROR(VLOOKUP(A302,Correção!$B$2:$G$13,9,FALSE)),VLOOKUP($A302,Economática!$A$3:$AI$823,9,FALSE),VLOOKUP(A302,Correção!$B$2:$G$13,9,FALSE)))","v":""},{"$f":"IF($A302=\"\",\"\",Economática!G280)","v":""},{"$f":"IF($A302=\"\",\"\",IF(OR(VLOOKUP($A302,Economática!$A$3:$AI$823,10,FALSE)=0,VLOOKUP($A302,Economática!$A$3:$AI$823,10,FALSE)=\"-\"),1/0,VLOOKUP($A302,Economática!$A$3:$AI$823,10,FALSE)))","v":""},{"$f":"IF($A302=\"\",\"\",IF(OR(VLOOKUP($A302,Economática!$A$3:$AI$823,11,FALSE)=0,VLOOKUP($A302,Economática!$A$3:$AI$823,11,FALSE)=\"-\"),1/0,VLOOKUP($A302,Economática!$A$3:$AI$823,11,FALSE)))","v":""},{"$f":"IF($A302=\"\",\"\",IF(OR(VLOOKUP($A302,Economática!$A$3:$AI$823,12,FALSE)=0,VLOOKUP($A302,Economática!$A$3:$AI$823,12,FALSE)=\"-\"),1/0,VLOOKUP($A302,Economática!$A$3:$AI$823,12,FALSE)))","v":""},{"$f":"IF($A302=\"\",\"\",IF(OR(VLOOKUP($A302,Economática!$A$3:$AI$823,13,FALSE)=0,VLOOKUP($A302,Economática!$A$3:$AI$823,13,FALSE)=\"-\"),1/0,VLOOKUP($A302,Economática!$A$3:$AI$823,13,FALSE)))","v":""},{"$f":"IF($A302=\"\",\"\",IF(OR(VLOOKUP($A302,Economática!$A$3:$AI$823,14,FALSE)=0,VLOOKUP($A302,Economática!$A$3:$AI$823,14,FALSE)=\"-\"),1/0,VLOOKUP($A302,Economática!$A$3:$AI$823,14,FALSE)))","v":""},{"$f":"IF($A302=\"\",\"\",IF(OR(VLOOKUP($A302,Economática!$A$3:$AI$823,15,FALSE)=0,VLOOKUP($A302,Economática!$A$3:$AI$823,15,FALSE)=\"-\"),1/0,VLOOKUP($A302,Economática!$A$3:$AI$823,15,FALSE)))","v":""},{"$f":"IF($A302=\"\",\"\",IF(OR(VLOOKUP($A302,Economática!$A$3:$AI$823,16,FALSE)=0,VLOOKUP($A302,Economática!$A$3:$AI$823,16,FALSE)=\"-\"),1/0,VLOOKUP($A302,Economática!$A$3:$AI$823,16,FALSE)))","v":""},{"$f":"IF($A302=\"\",\"\",IF(OR(VLOOKUP($A302,Economática!$A$3:$AI$823,17,FALSE)=0,VLOOKUP($A302,Economática!$A$3:$AI$823,17,FALSE)=\"-\"),1/0,VLOOKUP($A302,Economática!$A$3:$AI$823,17,FALSE)))","v":""},{"$f":"IF($A302=\"\",\"\",IF(OR(VLOOKUP($A302,Economática!$A$3:$AI$823,18,FALSE)=0,VLOOKUP($A302,Economática!$A$3:$AI$823,18,FALSE)=\"-\"),1/0,VLOOKUP($A302,Economática!$A$3:$AI$823,18,FALSE)))","v":""},{"$f":"IF($A302=\"\",\"\",IF(OR(VLOOKUP($A302,Economática!$A$3:$AI$823,19,FALSE)=0,VLOOKUP($A302,Economática!$A$3:$AI$823,19,FALSE)=\"-\"),1/0,VLOOKUP($A302,Economática!$A$3:$AI$823,19,FALSE)))","v":""},{"$f":"IF($A302=\"\",\"\",VLOOKUP($A302,Economática!$A$3:$AI$823,20,FALSE)/E302)","v":""},"","","",{"$f":"IF($A302=\"\",\"\",IF(OR(VLOOKUP($A302,Economática!$A$3:$AI$823,21,FALSE)/100=0,VLOOKUP($A302,Economática!$A$3:$AI$823,21,FALSE)/100=\"-\"),1/0,VLOOKUP($A302,Economática!$A$3:$AI$823,21,FALSE)/100))","v":""},{"$f":"IF($A302=\"\",\"\",IF(OR(VLOOKUP($A302,Economática!$A$3:$AI$823,22,FALSE)/100=0,VLOOKUP($A302,Economática!$A$3:$AI$823,22,FALSE)/100=\"-\"),1/0,VLOOKUP($A302,Economática!$A$3:$AI$823,22,FALSE)/100))","v":""},{"$f":"IF($A302=\"\",\"\",IF(OR(VLOOKUP($A302,Economática!$A$3:$AI$823,23,FALSE)=0,VLOOKUP($A302,Economática!$A$3:$AI$823,23,FALSE)=\"-\"),1/0,VLOOKUP($A302,Economática!$A$3:$AI$823,23,FALSE)))","v":""},{"$f":"IF($A302=\"\",\"\",IF(OR(VLOOKUP($A302,Economática!$A$3:$AI$823,24,FALSE)=0,VLOOKUP($A302,Economática!$A$3:$AI$823,24,FALSE)=\"-\"),1/0,VLOOKUP($A302,Economática!$A$3:$AI$823,24,FALSE)))","v":""},{"$f":"IF($A302=\"\",\"\",IF(OR(VLOOKUP($A302,Economática!$A$3:$AI$823,25,FALSE)=0,VLOOKUP($A302,Economática!$A$3:$AI$823,25,FALSE)=\"-\"),1/0,VLOOKUP($A302,Economática!$A$3:$AI$823,25,FALSE)))","v":""},{"$f":"IF($A302=\"\",\"\",IF(ISERROR((F302+VLOOKUP($A302,Economática!$A$3:$AI$823,26,FALSE))/Y302),(F302+VLOOKUP($A302,Economática!$A$3:$AI$823,26,FALSE))/Y302,(F302+VLOOKUP($A302,Economática!$A$3:$AI$823,26,FALSE))/Y302))","v":""},{"$f":"IF($A302=\"\",\"\",IF(OR(-VLOOKUP($A302,Economática!$A$3:$AI$823,27,FALSE)=0,-VLOOKUP($A302,Economática!$A$3:$AI$823,27,FALSE)=\"-\"),1/0,-VLOOKUP($A302,Economática!$A$3:$AI$823,27,FALSE)))","v":""},"",{"$f":"IF($A302=\"\",\"\",IF(OR(VLOOKUP($A302,Economática!$A$3:$AI$823,28,FALSE)=0,VLOOKUP($A302,Economática!$A$3:$AI$823,28,FALSE)=\"-\"),1/0,VLOOKUP($A302,Economática!$A$3:$AI$823,28,FALSE)))","v":""},{"$f":"IF($A302=\"\",\"\",IF(OR(VLOOKUP($A302,Economática!$A$3:$AI$823,29,FALSE)=0,VLOOKUP($A302,Economática!$A$3:$AI$823,29,FALSE)=\"-\"),1/0,VLOOKUP($A302,Economática!$A$3:$AI$823,29,FALSE)))","v":""},{"$f":"IF($A302=\"\",\"\",IF(OR(VLOOKUP($A302,Economática!$A$3:$AI$823,30,FALSE)/E302=0,VLOOKUP($A302,Economática!$A$3:$AI$823,30,FALSE)/E302=\"-\",VLOOKUP($A302,Economática!$A$3:$AI$823,30,FALSE)/E302<33.33%,VLOOKUP($A302,Economática!$A$3:$AI$823,30,FALSE)/E302>100%),1/0,VLOOKUP($A302,Economática!$A$3:$AI$823,30,FALSE)/E302))","v":""},"",{"$f":"IF($A302=\"\",\"\",IF(OR(VLOOKUP($A302,Economática!$A$3:$AI$823,25,FALSE)=0,VLOOKUP($A302,Economática!$A$3:$AI$823,25,FALSE)=\"-\"),1/0,VLOOKUP($A302,Economática!$A$3:$AI$823,25,FALSE)))","v":""},{"$f":"CONCATENATE(Economática!B280,\" \",Economática!C280)","v":" "}]
[{"$f":"IF(Economática!AG281=\"\",\"\",Economática!AG281)","v":""},{"$f":"IF($A303=\"\",\"\",VLOOKUP(VLOOKUP($A303,Economática!$A$3:$AI$823,6,FALSE),Correção!$B$16:$C$36,2,FALSE))","v":""},{"$f":"IF(Economática!B281=\"\",\"\",Economática!B281)","v":""},{"$f":"IF($A303=\"\",\"\",IF(OR(VLOOKUP($A303,Economática!$A$3:$AI$823,8,FALSE)=0,VLOOKUP($A303,Economática!$A$3:$AI$823,8,FALSE)=\"-\"),1/0,VLOOKUP($A303,Economática!$A$3:$AI$823,8,FALSE)))","v":""},{"$f":"IF(A303=\"\",\"\",IF(ISERROR(VLOOKUP(A303,Correção!$B$2:$G$13,9,FALSE)),VLOOKUP($A303,Economática!$A$3:$AI$823,9,FALSE),VLOOKUP(A303,Correção!$B$2:$G$13,9,FALSE)))","v":""},{"$f":"IF($A303=\"\",\"\",Economática!G281)","v":""},{"$f":"IF($A303=\"\",\"\",IF(OR(VLOOKUP($A303,Economática!$A$3:$AI$823,10,FALSE)=0,VLOOKUP($A303,Economática!$A$3:$AI$823,10,FALSE)=\"-\"),1/0,VLOOKUP($A303,Economática!$A$3:$AI$823,10,FALSE)))","v":""},{"$f":"IF($A303=\"\",\"\",IF(OR(VLOOKUP($A303,Economática!$A$3:$AI$823,11,FALSE)=0,VLOOKUP($A303,Economática!$A$3:$AI$823,11,FALSE)=\"-\"),1/0,VLOOKUP($A303,Economática!$A$3:$AI$823,11,FALSE)))","v":""},{"$f":"IF($A303=\"\",\"\",IF(OR(VLOOKUP($A303,Economática!$A$3:$AI$823,12,FALSE)=0,VLOOKUP($A303,Economática!$A$3:$AI$823,12,FALSE)=\"-\"),1/0,VLOOKUP($A303,Economática!$A$3:$AI$823,12,FALSE)))","v":""},{"$f":"IF($A303=\"\",\"\",IF(OR(VLOOKUP($A303,Economática!$A$3:$AI$823,13,FALSE)=0,VLOOKUP($A303,Economática!$A$3:$AI$823,13,FALSE)=\"-\"),1/0,VLOOKUP($A303,Economática!$A$3:$AI$823,13,FALSE)))","v":""},{"$f":"IF($A303=\"\",\"\",IF(OR(VLOOKUP($A303,Economática!$A$3:$AI$823,14,FALSE)=0,VLOOKUP($A303,Economática!$A$3:$AI$823,14,FALSE)=\"-\"),1/0,VLOOKUP($A303,Economática!$A$3:$AI$823,14,FALSE)))","v":""},{"$f":"IF($A303=\"\",\"\",IF(OR(VLOOKUP($A303,Economática!$A$3:$AI$823,15,FALSE)=0,VLOOKUP($A303,Economática!$A$3:$AI$823,15,FALSE)=\"-\"),1/0,VLOOKUP($A303,Economática!$A$3:$AI$823,15,FALSE)))","v":""},{"$f":"IF($A303=\"\",\"\",IF(OR(VLOOKUP($A303,Economática!$A$3:$AI$823,16,FALSE)=0,VLOOKUP($A303,Economática!$A$3:$AI$823,16,FALSE)=\"-\"),1/0,VLOOKUP($A303,Economática!$A$3:$AI$823,16,FALSE)))","v":""},{"$f":"IF($A303=\"\",\"\",IF(OR(VLOOKUP($A303,Economática!$A$3:$AI$823,17,FALSE)=0,VLOOKUP($A303,Economática!$A$3:$AI$823,17,FALSE)=\"-\"),1/0,VLOOKUP($A303,Economática!$A$3:$AI$823,17,FALSE)))","v":""},{"$f":"IF($A303=\"\",\"\",IF(OR(VLOOKUP($A303,Economática!$A$3:$AI$823,18,FALSE)=0,VLOOKUP($A303,Economática!$A$3:$AI$823,18,FALSE)=\"-\"),1/0,VLOOKUP($A303,Economática!$A$3:$AI$823,18,FALSE)))","v":""},{"$f":"IF($A303=\"\",\"\",IF(OR(VLOOKUP($A303,Economática!$A$3:$AI$823,19,FALSE)=0,VLOOKUP($A303,Economática!$A$3:$AI$823,19,FALSE)=\"-\"),1/0,VLOOKUP($A303,Economática!$A$3:$AI$823,19,FALSE)))","v":""},{"$f":"IF($A303=\"\",\"\",VLOOKUP($A303,Economática!$A$3:$AI$823,20,FALSE)/E303)","v":""},"","","",{"$f":"IF($A303=\"\",\"\",IF(OR(VLOOKUP($A303,Economática!$A$3:$AI$823,21,FALSE)/100=0,VLOOKUP($A303,Economática!$A$3:$AI$823,21,FALSE)/100=\"-\"),1/0,VLOOKUP($A303,Economática!$A$3:$AI$823,21,FALSE)/100))","v":""},{"$f":"IF($A303=\"\",\"\",IF(OR(VLOOKUP($A303,Economática!$A$3:$AI$823,22,FALSE)/100=0,VLOOKUP($A303,Economática!$A$3:$AI$823,22,FALSE)/100=\"-\"),1/0,VLOOKUP($A303,Economática!$A$3:$AI$823,22,FALSE)/100))","v":""},{"$f":"IF($A303=\"\",\"\",IF(OR(VLOOKUP($A303,Economática!$A$3:$AI$823,23,FALSE)=0,VLOOKUP($A303,Economática!$A$3:$AI$823,23,FALSE)=\"-\"),1/0,VLOOKUP($A303,Economática!$A$3:$AI$823,23,FALSE)))","v":""},{"$f":"IF($A303=\"\",\"\",IF(OR(VLOOKUP($A303,Economática!$A$3:$AI$823,24,FALSE)=0,VLOOKUP($A303,Economática!$A$3:$AI$823,24,FALSE)=\"-\"),1/0,VLOOKUP($A303,Economática!$A$3:$AI$823,24,FALSE)))","v":""},{"$f":"IF($A303=\"\",\"\",IF(OR(VLOOKUP($A303,Economática!$A$3:$AI$823,25,FALSE)=0,VLOOKUP($A303,Economática!$A$3:$AI$823,25,FALSE)=\"-\"),1/0,VLOOKUP($A303,Economática!$A$3:$AI$823,25,FALSE)))","v":""},{"$f":"IF($A303=\"\",\"\",IF(ISERROR((F303+VLOOKUP($A303,Economática!$A$3:$AI$823,26,FALSE))/Y303),(F303+VLOOKUP($A303,Economática!$A$3:$AI$823,26,FALSE))/Y303,(F303+VLOOKUP($A303,Economática!$A$3:$AI$823,26,FALSE))/Y303))","v":""},{"$f":"IF($A303=\"\",\"\",IF(OR(-VLOOKUP($A303,Economática!$A$3:$AI$823,27,FALSE)=0,-VLOOKUP($A303,Economática!$A$3:$AI$823,27,FALSE)=\"-\"),1/0,-VLOOKUP($A303,Economática!$A$3:$AI$823,27,FALSE)))","v":""},"",{"$f":"IF($A303=\"\",\"\",IF(OR(VLOOKUP($A303,Economática!$A$3:$AI$823,28,FALSE)=0,VLOOKUP($A303,Economática!$A$3:$AI$823,28,FALSE)=\"-\"),1/0,VLOOKUP($A303,Economática!$A$3:$AI$823,28,FALSE)))","v":""},{"$f":"IF($A303=\"\",\"\",IF(OR(VLOOKUP($A303,Economática!$A$3:$AI$823,29,FALSE)=0,VLOOKUP($A303,Economática!$A$3:$AI$823,29,FALSE)=\"-\"),1/0,VLOOKUP($A303,Economática!$A$3:$AI$823,29,FALSE)))","v":""},{"$f":"IF($A303=\"\",\"\",IF(OR(VLOOKUP($A303,Economática!$A$3:$AI$823,30,FALSE)/E303=0,VLOOKUP($A303,Economática!$A$3:$AI$823,30,FALSE)/E303=\"-\",VLOOKUP($A303,Economática!$A$3:$AI$823,30,FALSE)/E303<33.33%,VLOOKUP($A303,Economática!$A$3:$AI$823,30,FALSE)/E303>100%),1/0,VLOOKUP($A303,Economática!$A$3:$AI$823,30,FALSE)/E303))","v":""},"",{"$f":"IF($A303=\"\",\"\",IF(OR(VLOOKUP($A303,Economática!$A$3:$AI$823,25,FALSE)=0,VLOOKUP($A303,Economática!$A$3:$AI$823,25,FALSE)=\"-\"),1/0,VLOOKUP($A303,Economática!$A$3:$AI$823,25,FALSE)))","v":""},{"$f":"CONCATENATE(Economática!B281,\" \",Economática!C281)","v":" "}]
[{"$f":"IF(Economática!AG282=\"\",\"\",Economática!AG282)","v":""},{"$f":"IF($A304=\"\",\"\",VLOOKUP(VLOOKUP($A304,Economática!$A$3:$AI$823,6,FALSE),Correção!$B$16:$C$36,2,FALSE))","v":""},{"$f":"IF(Economática!B282=\"\",\"\",Economática!B282)","v":""},{"$f":"IF($A304=\"\",\"\",IF(OR(VLOOKUP($A304,Economática!$A$3:$AI$823,8,FALSE)=0,VLOOKUP($A304,Economática!$A$3:$AI$823,8,FALSE)=\"-\"),1/0,VLOOKUP($A304,Economática!$A$3:$AI$823,8,FALSE)))","v":""},{"$f":"IF(A304=\"\",\"\",IF(ISERROR(VLOOKUP(A304,Correção!$B$2:$G$13,9,FALSE)),VLOOKUP($A304,Economática!$A$3:$AI$823,9,FALSE),VLOOKUP(A304,Correção!$B$2:$G$13,9,FALSE)))","v":""},{"$f":"IF($A304=\"\",\"\",Economática!G282)","v":""},{"$f":"IF($A304=\"\",\"\",IF(OR(VLOOKUP($A304,Economática!$A$3:$AI$823,10,FALSE)=0,VLOOKUP($A304,Economática!$A$3:$AI$823,10,FALSE)=\"-\"),1/0,VLOOKUP($A304,Economática!$A$3:$AI$823,10,FALSE)))","v":""},{"$f":"IF($A304=\"\",\"\",IF(OR(VLOOKUP($A304,Economática!$A$3:$AI$823,11,FALSE)=0,VLOOKUP($A304,Economática!$A$3:$AI$823,11,FALSE)=\"-\"),1/0,VLOOKUP($A304,Economática!$A$3:$AI$823,11,FALSE)))","v":""},{"$f":"IF($A304=\"\",\"\",IF(OR(VLOOKUP($A304,Economática!$A$3:$AI$823,12,FALSE)=0,VLOOKUP($A304,Economática!$A$3:$AI$823,12,FALSE)=\"-\"),1/0,VLOOKUP($A304,Economática!$A$3:$AI$823,12,FALSE)))","v":""},{"$f":"IF($A304=\"\",\"\",IF(OR(VLOOKUP($A304,Economática!$A$3:$AI$823,13,FALSE)=0,VLOOKUP($A304,Economática!$A$3:$AI$823,13,FALSE)=\"-\"),1/0,VLOOKUP($A304,Economática!$A$3:$AI$823,13,FALSE)))","v":""},{"$f":"IF($A304=\"\",\"\",IF(OR(VLOOKUP($A304,Economática!$A$3:$AI$823,14,FALSE)=0,VLOOKUP($A304,Economática!$A$3:$AI$823,14,FALSE)=\"-\"),1/0,VLOOKUP($A304,Economática!$A$3:$AI$823,14,FALSE)))","v":""},{"$f":"IF($A304=\"\",\"\",IF(OR(VLOOKUP($A304,Economática!$A$3:$AI$823,15,FALSE)=0,VLOOKUP($A304,Economática!$A$3:$AI$823,15,FALSE)=\"-\"),1/0,VLOOKUP($A304,Economática!$A$3:$AI$823,15,FALSE)))","v":""},{"$f":"IF($A304=\"\",\"\",IF(OR(VLOOKUP($A304,Economática!$A$3:$AI$823,16,FALSE)=0,VLOOKUP($A304,Economática!$A$3:$AI$823,16,FALSE)=\"-\"),1/0,VLOOKUP($A304,Economática!$A$3:$AI$823,16,FALSE)))","v":""},{"$f":"IF($A304=\"\",\"\",IF(OR(VLOOKUP($A304,Economática!$A$3:$AI$823,17,FALSE)=0,VLOOKUP($A304,Economática!$A$3:$AI$823,17,FALSE)=\"-\"),1/0,VLOOKUP($A304,Economática!$A$3:$AI$823,17,FALSE)))","v":""},{"$f":"IF($A304=\"\",\"\",IF(OR(VLOOKUP($A304,Economática!$A$3:$AI$823,18,FALSE)=0,VLOOKUP($A304,Economática!$A$3:$AI$823,18,FALSE)=\"-\"),1/0,VLOOKUP($A304,Economática!$A$3:$AI$823,18,FALSE)))","v":""},{"$f":"IF($A304=\"\",\"\",IF(OR(VLOOKUP($A304,Economática!$A$3:$AI$823,19,FALSE)=0,VLOOKUP($A304,Economática!$A$3:$AI$823,19,FALSE)=\"-\"),1/0,VLOOKUP($A304,Economática!$A$3:$AI$823,19,FALSE)))","v":""},{"$f":"IF($A304=\"\",\"\",VLOOKUP($A304,Economática!$A$3:$AI$823,20,FALSE)/E304)","v":""},"","","",{"$f":"IF($A304=\"\",\"\",IF(OR(VLOOKUP($A304,Economática!$A$3:$AI$823,21,FALSE)/100=0,VLOOKUP($A304,Economática!$A$3:$AI$823,21,FALSE)/100=\"-\"),1/0,VLOOKUP($A304,Economática!$A$3:$AI$823,21,FALSE)/100))","v":""},{"$f":"IF($A304=\"\",\"\",IF(OR(VLOOKUP($A304,Economática!$A$3:$AI$823,22,FALSE)/100=0,VLOOKUP($A304,Economática!$A$3:$AI$823,22,FALSE)/100=\"-\"),1/0,VLOOKUP($A304,Economática!$A$3:$AI$823,22,FALSE)/100))","v":""},{"$f":"IF($A304=\"\",\"\",IF(OR(VLOOKUP($A304,Economática!$A$3:$AI$823,23,FALSE)=0,VLOOKUP($A304,Economática!$A$3:$AI$823,23,FALSE)=\"-\"),1/0,VLOOKUP($A304,Economática!$A$3:$AI$823,23,FALSE)))","v":""},{"$f":"IF($A304=\"\",\"\",IF(OR(VLOOKUP($A304,Economática!$A$3:$AI$823,24,FALSE)=0,VLOOKUP($A304,Economática!$A$3:$AI$823,24,FALSE)=\"-\"),1/0,VLOOKUP($A304,Economática!$A$3:$AI$823,24,FALSE)))","v":""},{"$f":"IF($A304=\"\",\"\",IF(OR(VLOOKUP($A304,Economática!$A$3:$AI$823,25,FALSE)=0,VLOOKUP($A304,Economática!$A$3:$AI$823,25,FALSE)=\"-\"),1/0,VLOOKUP($A304,Economática!$A$3:$AI$823,25,FALSE)))","v":""},{"$f":"IF($A304=\"\",\"\",IF(ISERROR((F304+VLOOKUP($A304,Economática!$A$3:$AI$823,26,FALSE))/Y304),(F304+VLOOKUP($A304,Economática!$A$3:$AI$823,26,FALSE))/Y304,(F304+VLOOKUP($A304,Economática!$A$3:$AI$823,26,FALSE))/Y304))","v":""},{"$f":"IF($A304=\"\",\"\",IF(OR(-VLOOKUP($A304,Economática!$A$3:$AI$823,27,FALSE)=0,-VLOOKUP($A304,Economática!$A$3:$AI$823,27,FALSE)=\"-\"),1/0,-VLOOKUP($A304,Economática!$A$3:$AI$823,27,FALSE)))","v":""},"",{"$f":"IF($A304=\"\",\"\",IF(OR(VLOOKUP($A304,Economática!$A$3:$AI$823,28,FALSE)=0,VLOOKUP($A304,Economática!$A$3:$AI$823,28,FALSE)=\"-\"),1/0,VLOOKUP($A304,Economática!$A$3:$AI$823,28,FALSE)))","v":""},{"$f":"IF($A304=\"\",\"\",IF(OR(VLOOKUP($A304,Economática!$A$3:$AI$823,29,FALSE)=0,VLOOKUP($A304,Economática!$A$3:$AI$823,29,FALSE)=\"-\"),1/0,VLOOKUP($A304,Economática!$A$3:$AI$823,29,FALSE)))","v":""},{"$f":"IF($A304=\"\",\"\",IF(OR(VLOOKUP($A304,Economática!$A$3:$AI$823,30,FALSE)/E304=0,VLOOKUP($A304,Economática!$A$3:$AI$823,30,FALSE)/E304=\"-\",VLOOKUP($A304,Economática!$A$3:$AI$823,30,FALSE)/E304<33.33%,VLOOKUP($A304,Economática!$A$3:$AI$823,30,FALSE)/E304>100%),1/0,VLOOKUP($A304,Economática!$A$3:$AI$823,30,FALSE)/E304))","v":""},"",{"$f":"IF($A304=\"\",\"\",IF(OR(VLOOKUP($A304,Economática!$A$3:$AI$823,25,FALSE)=0,VLOOKUP($A304,Economática!$A$3:$AI$823,25,FALSE)=\"-\"),1/0,VLOOKUP($A304,Economática!$A$3:$AI$823,25,FALSE)))","v":""},{"$f":"CONCATENATE(Economática!B282,\" \",Economática!C282)","v":" "}]
[{"$f":"IF(Economática!AG283=\"\",\"\",Economática!AG283)","v":""},{"$f":"IF($A305=\"\",\"\",VLOOKUP(VLOOKUP($A305,Economática!$A$3:$AI$823,6,FALSE),Correção!$B$16:$C$36,2,FALSE))","v":""},{"$f":"IF(Economática!B283=\"\",\"\",Economática!B283)","v":""},{"$f":"IF($A305=\"\",\"\",IF(OR(VLOOKUP($A305,Economática!$A$3:$AI$823,8,FALSE)=0,VLOOKUP($A305,Economática!$A$3:$AI$823,8,FALSE)=\"-\"),1/0,VLOOKUP($A305,Economática!$A$3:$AI$823,8,FALSE)))","v":""},{"$f":"IF(A305=\"\",\"\",IF(ISERROR(VLOOKUP(A305,Correção!$B$2:$G$13,9,FALSE)),VLOOKUP($A305,Economática!$A$3:$AI$823,9,FALSE),VLOOKUP(A305,Correção!$B$2:$G$13,9,FALSE)))","v":""},{"$f":"IF($A305=\"\",\"\",Economática!G283)","v":""},{"$f":"IF($A305=\"\",\"\",IF(OR(VLOOKUP($A305,Economática!$A$3:$AI$823,10,FALSE)=0,VLOOKUP($A305,Economática!$A$3:$AI$823,10,FALSE)=\"-\"),1/0,VLOOKUP($A305,Economática!$A$3:$AI$823,10,FALSE)))","v":""},{"$f":"IF($A305=\"\",\"\",IF(OR(VLOOKUP($A305,Economática!$A$3:$AI$823,11,FALSE)=0,VLOOKUP($A305,Economática!$A$3:$AI$823,11,FALSE)=\"-\"),1/0,VLOOKUP($A305,Economática!$A$3:$AI$823,11,FALSE)))","v":""},{"$f":"IF($A305=\"\",\"\",IF(OR(VLOOKUP($A305,Economática!$A$3:$AI$823,12,FALSE)=0,VLOOKUP($A305,Economática!$A$3:$AI$823,12,FALSE)=\"-\"),1/0,VLOOKUP($A305,Economática!$A$3:$AI$823,12,FALSE)))","v":""},{"$f":"IF($A305=\"\",\"\",IF(OR(VLOOKUP($A305,Economática!$A$3:$AI$823,13,FALSE)=0,VLOOKUP($A305,Economática!$A$3:$AI$823,13,FALSE)=\"-\"),1/0,VLOOKUP($A305,Economática!$A$3:$AI$823,13,FALSE)))","v":""},{"$f":"IF($A305=\"\",\"\",IF(OR(VLOOKUP($A305,Economática!$A$3:$AI$823,14,FALSE)=0,VLOOKUP($A305,Economática!$A$3:$AI$823,14,FALSE)=\"-\"),1/0,VLOOKUP($A305,Economática!$A$3:$AI$823,14,FALSE)))","v":""},{"$f":"IF($A305=\"\",\"\",IF(OR(VLOOKUP($A305,Economática!$A$3:$AI$823,15,FALSE)=0,VLOOKUP($A305,Economática!$A$3:$AI$823,15,FALSE)=\"-\"),1/0,VLOOKUP($A305,Economática!$A$3:$AI$823,15,FALSE)))","v":""},{"$f":"IF($A305=\"\",\"\",IF(OR(VLOOKUP($A305,Economática!$A$3:$AI$823,16,FALSE)=0,VLOOKUP($A305,Economática!$A$3:$AI$823,16,FALSE)=\"-\"),1/0,VLOOKUP($A305,Economática!$A$3:$AI$823,16,FALSE)))","v":""},{"$f":"IF($A305=\"\",\"\",IF(OR(VLOOKUP($A305,Economática!$A$3:$AI$823,17,FALSE)=0,VLOOKUP($A305,Economática!$A$3:$AI$823,17,FALSE)=\"-\"),1/0,VLOOKUP($A305,Economática!$A$3:$AI$823,17,FALSE)))","v":""},{"$f":"IF($A305=\"\",\"\",IF(OR(VLOOKUP($A305,Economática!$A$3:$AI$823,18,FALSE)=0,VLOOKUP($A305,Economática!$A$3:$AI$823,18,FALSE)=\"-\"),1/0,VLOOKUP($A305,Economática!$A$3:$AI$823,18,FALSE)))","v":""},{"$f":"IF($A305=\"\",\"\",IF(OR(VLOOKUP($A305,Economática!$A$3:$AI$823,19,FALSE)=0,VLOOKUP($A305,Economática!$A$3:$AI$823,19,FALSE)=\"-\"),1/0,VLOOKUP($A305,Economática!$A$3:$AI$823,19,FALSE)))","v":""},{"$f":"IF($A305=\"\",\"\",VLOOKUP($A305,Economática!$A$3:$AI$823,20,FALSE)/E305)","v":""},"","","",{"$f":"IF($A305=\"\",\"\",IF(OR(VLOOKUP($A305,Economática!$A$3:$AI$823,21,FALSE)/100=0,VLOOKUP($A305,Economática!$A$3:$AI$823,21,FALSE)/100=\"-\"),1/0,VLOOKUP($A305,Economática!$A$3:$AI$823,21,FALSE)/100))","v":""},{"$f":"IF($A305=\"\",\"\",IF(OR(VLOOKUP($A305,Economática!$A$3:$AI$823,22,FALSE)/100=0,VLOOKUP($A305,Economática!$A$3:$AI$823,22,FALSE)/100=\"-\"),1/0,VLOOKUP($A305,Economática!$A$3:$AI$823,22,FALSE)/100))","v":""},{"$f":"IF($A305=\"\",\"\",IF(OR(VLOOKUP($A305,Economática!$A$3:$AI$823,23,FALSE)=0,VLOOKUP($A305,Economática!$A$3:$AI$823,23,FALSE)=\"-\"),1/0,VLOOKUP($A305,Economática!$A$3:$AI$823,23,FALSE)))","v":""},{"$f":"IF($A305=\"\",\"\",IF(OR(VLOOKUP($A305,Economática!$A$3:$AI$823,24,FALSE)=0,VLOOKUP($A305,Economática!$A$3:$AI$823,24,FALSE)=\"-\"),1/0,VLOOKUP($A305,Economática!$A$3:$AI$823,24,FALSE)))","v":""},{"$f":"IF($A305=\"\",\"\",IF(OR(VLOOKUP($A305,Economática!$A$3:$AI$823,25,FALSE)=0,VLOOKUP($A305,Economática!$A$3:$AI$823,25,FALSE)=\"-\"),1/0,VLOOKUP($A305,Economática!$A$3:$AI$823,25,FALSE)))","v":""},{"$f":"IF($A305=\"\",\"\",IF(ISERROR((F305+VLOOKUP($A305,Economática!$A$3:$AI$823,26,FALSE))/Y305),(F305+VLOOKUP($A305,Economática!$A$3:$AI$823,26,FALSE))/Y305,(F305+VLOOKUP($A305,Economática!$A$3:$AI$823,26,FALSE))/Y305))","v":""},{"$f":"IF($A305=\"\",\"\",IF(OR(-VLOOKUP($A305,Economática!$A$3:$AI$823,27,FALSE)=0,-VLOOKUP($A305,Economática!$A$3:$AI$823,27,FALSE)=\"-\"),1/0,-VLOOKUP($A305,Economática!$A$3:$AI$823,27,FALSE)))","v":""},"",{"$f":"IF($A305=\"\",\"\",IF(OR(VLOOKUP($A305,Economática!$A$3:$AI$823,28,FALSE)=0,VLOOKUP($A305,Economática!$A$3:$AI$823,28,FALSE)=\"-\"),1/0,VLOOKUP($A305,Economática!$A$3:$AI$823,28,FALSE)))","v":""},{"$f":"IF($A305=\"\",\"\",IF(OR(VLOOKUP($A305,Economática!$A$3:$AI$823,29,FALSE)=0,VLOOKUP($A305,Economática!$A$3:$AI$823,29,FALSE)=\"-\"),1/0,VLOOKUP($A305,Economática!$A$3:$AI$823,29,FALSE)))","v":""},{"$f":"IF($A305=\"\",\"\",IF(OR(VLOOKUP($A305,Economática!$A$3:$AI$823,30,FALSE)/E305=0,VLOOKUP($A305,Economática!$A$3:$AI$823,30,FALSE)/E305=\"-\",VLOOKUP($A305,Economática!$A$3:$AI$823,30,FALSE)/E305<33.33%,VLOOKUP($A305,Economática!$A$3:$AI$823,30,FALSE)/E305>100%),1/0,VLOOKUP($A305,Economática!$A$3:$AI$823,30,FALSE)/E305))","v":""},"",{"$f":"IF($A305=\"\",\"\",IF(OR(VLOOKUP($A305,Economática!$A$3:$AI$823,25,FALSE)=0,VLOOKUP($A305,Economática!$A$3:$AI$823,25,FALSE)=\"-\"),1/0,VLOOKUP($A305,Economática!$A$3:$AI$823,25,FALSE)))","v":""},{"$f":"CONCATENATE(Economática!B283,\" \",Economática!C283)","v":" "}]
[{"$f":"IF(Economática!AG284=\"\",\"\",Economática!AG284)","v":""},{"$f":"IF($A306=\"\",\"\",VLOOKUP(VLOOKUP($A306,Economática!$A$3:$AI$823,6,FALSE),Correção!$B$16:$C$36,2,FALSE))","v":""},{"$f":"IF(Economática!B284=\"\",\"\",Economática!B284)","v":""},{"$f":"IF($A306=\"\",\"\",IF(OR(VLOOKUP($A306,Economática!$A$3:$AI$823,8,FALSE)=0,VLOOKUP($A306,Economática!$A$3:$AI$823,8,FALSE)=\"-\"),1/0,VLOOKUP($A306,Economática!$A$3:$AI$823,8,FALSE)))","v":""},{"$f":"IF(A306=\"\",\"\",IF(ISERROR(VLOOKUP(A306,Correção!$B$2:$G$13,9,FALSE)),VLOOKUP($A306,Economática!$A$3:$AI$823,9,FALSE),VLOOKUP(A306,Correção!$B$2:$G$13,9,FALSE)))","v":""},{"$f":"IF($A306=\"\",\"\",Economática!G284)","v":""},{"$f":"IF($A306=\"\",\"\",IF(OR(VLOOKUP($A306,Economática!$A$3:$AI$823,10,FALSE)=0,VLOOKUP($A306,Economática!$A$3:$AI$823,10,FALSE)=\"-\"),1/0,VLOOKUP($A306,Economática!$A$3:$AI$823,10,FALSE)))","v":""},{"$f":"IF($A306=\"\",\"\",IF(OR(VLOOKUP($A306,Economática!$A$3:$AI$823,11,FALSE)=0,VLOOKUP($A306,Economática!$A$3:$AI$823,11,FALSE)=\"-\"),1/0,VLOOKUP($A306,Economática!$A$3:$AI$823,11,FALSE)))","v":""},{"$f":"IF($A306=\"\",\"\",IF(OR(VLOOKUP($A306,Economática!$A$3:$AI$823,12,FALSE)=0,VLOOKUP($A306,Economática!$A$3:$AI$823,12,FALSE)=\"-\"),1/0,VLOOKUP($A306,Economática!$A$3:$AI$823,12,FALSE)))","v":""},{"$f":"IF($A306=\"\",\"\",IF(OR(VLOOKUP($A306,Economática!$A$3:$AI$823,13,FALSE)=0,VLOOKUP($A306,Economática!$A$3:$AI$823,13,FALSE)=\"-\"),1/0,VLOOKUP($A306,Economática!$A$3:$AI$823,13,FALSE)))","v":""},{"$f":"IF($A306=\"\",\"\",IF(OR(VLOOKUP($A306,Economática!$A$3:$AI$823,14,FALSE)=0,VLOOKUP($A306,Economática!$A$3:$AI$823,14,FALSE)=\"-\"),1/0,VLOOKUP($A306,Economática!$A$3:$AI$823,14,FALSE)))","v":""},{"$f":"IF($A306=\"\",\"\",IF(OR(VLOOKUP($A306,Economática!$A$3:$AI$823,15,FALSE)=0,VLOOKUP($A306,Economática!$A$3:$AI$823,15,FALSE)=\"-\"),1/0,VLOOKUP($A306,Economática!$A$3:$AI$823,15,FALSE)))","v":""},{"$f":"IF($A306=\"\",\"\",IF(OR(VLOOKUP($A306,Economática!$A$3:$AI$823,16,FALSE)=0,VLOOKUP($A306,Economática!$A$3:$AI$823,16,FALSE)=\"-\"),1/0,VLOOKUP($A306,Economática!$A$3:$AI$823,16,FALSE)))","v":""},{"$f":"IF($A306=\"\",\"\",IF(OR(VLOOKUP($A306,Economática!$A$3:$AI$823,17,FALSE)=0,VLOOKUP($A306,Economática!$A$3:$AI$823,17,FALSE)=\"-\"),1/0,VLOOKUP($A306,Economática!$A$3:$AI$823,17,FALSE)))","v":""},{"$f":"IF($A306=\"\",\"\",IF(OR(VLOOKUP($A306,Economática!$A$3:$AI$823,18,FALSE)=0,VLOOKUP($A306,Economática!$A$3:$AI$823,18,FALSE)=\"-\"),1/0,VLOOKUP($A306,Economática!$A$3:$AI$823,18,FALSE)))","v":""},{"$f":"IF($A306=\"\",\"\",IF(OR(VLOOKUP($A306,Economática!$A$3:$AI$823,19,FALSE)=0,VLOOKUP($A306,Economática!$A$3:$AI$823,19,FALSE)=\"-\"),1/0,VLOOKUP($A306,Economática!$A$3:$AI$823,19,FALSE)))","v":""},{"$f":"IF($A306=\"\",\"\",VLOOKUP($A306,Economática!$A$3:$AI$823,20,FALSE)/E306)","v":""},"","","",{"$f":"IF($A306=\"\",\"\",IF(OR(VLOOKUP($A306,Economática!$A$3:$AI$823,21,FALSE)/100=0,VLOOKUP($A306,Economática!$A$3:$AI$823,21,FALSE)/100=\"-\"),1/0,VLOOKUP($A306,Economática!$A$3:$AI$823,21,FALSE)/100))","v":""},{"$f":"IF($A306=\"\",\"\",IF(OR(VLOOKUP($A306,Economática!$A$3:$AI$823,22,FALSE)/100=0,VLOOKUP($A306,Economática!$A$3:$AI$823,22,FALSE)/100=\"-\"),1/0,VLOOKUP($A306,Economática!$A$3:$AI$823,22,FALSE)/100))","v":""},{"$f":"IF($A306=\"\",\"\",IF(OR(VLOOKUP($A306,Economática!$A$3:$AI$823,23,FALSE)=0,VLOOKUP($A306,Economática!$A$3:$AI$823,23,FALSE)=\"-\"),1/0,VLOOKUP($A306,Economática!$A$3:$AI$823,23,FALSE)))","v":""},{"$f":"IF($A306=\"\",\"\",IF(OR(VLOOKUP($A306,Economática!$A$3:$AI$823,24,FALSE)=0,VLOOKUP($A306,Economática!$A$3:$AI$823,24,FALSE)=\"-\"),1/0,VLOOKUP($A306,Economática!$A$3:$AI$823,24,FALSE)))","v":""},{"$f":"IF($A306=\"\",\"\",IF(OR(VLOOKUP($A306,Economática!$A$3:$AI$823,25,FALSE)=0,VLOOKUP($A306,Economática!$A$3:$AI$823,25,FALSE)=\"-\"),1/0,VLOOKUP($A306,Economática!$A$3:$AI$823,25,FALSE)))","v":""},{"$f":"IF($A306=\"\",\"\",IF(ISERROR((F306+VLOOKUP($A306,Economática!$A$3:$AI$823,26,FALSE))/Y306),(F306+VLOOKUP($A306,Economática!$A$3:$AI$823,26,FALSE))/Y306,(F306+VLOOKUP($A306,Economática!$A$3:$AI$823,26,FALSE))/Y306))","v":""},{"$f":"IF($A306=\"\",\"\",IF(OR(-VLOOKUP($A306,Economática!$A$3:$AI$823,27,FALSE)=0,-VLOOKUP($A306,Economática!$A$3:$AI$823,27,FALSE)=\"-\"),1/0,-VLOOKUP($A306,Economática!$A$3:$AI$823,27,FALSE)))","v":""},"",{"$f":"IF($A306=\"\",\"\",IF(OR(VLOOKUP($A306,Economática!$A$3:$AI$823,28,FALSE)=0,VLOOKUP($A306,Economática!$A$3:$AI$823,28,FALSE)=\"-\"),1/0,VLOOKUP($A306,Economática!$A$3:$AI$823,28,FALSE)))","v":""},{"$f":"IF($A306=\"\",\"\",IF(OR(VLOOKUP($A306,Economática!$A$3:$AI$823,29,FALSE)=0,VLOOKUP($A306,Economática!$A$3:$AI$823,29,FALSE)=\"-\"),1/0,VLOOKUP($A306,Economática!$A$3:$AI$823,29,FALSE)))","v":""},{"$f":"IF($A306=\"\",\"\",IF(OR(VLOOKUP($A306,Economática!$A$3:$AI$823,30,FALSE)/E306=0,VLOOKUP($A306,Economática!$A$3:$AI$823,30,FALSE)/E306=\"-\",VLOOKUP($A306,Economática!$A$3:$AI$823,30,FALSE)/E306<33.33%,VLOOKUP($A306,Economática!$A$3:$AI$823,30,FALSE)/E306>100%),1/0,VLOOKUP($A306,Economática!$A$3:$AI$823,30,FALSE)/E306))","v":""},"",{"$f":"IF($A306=\"\",\"\",IF(OR(VLOOKUP($A306,Economática!$A$3:$AI$823,25,FALSE)=0,VLOOKUP($A306,Economática!$A$3:$AI$823,25,FALSE)=\"-\"),1/0,VLOOKUP($A306,Economática!$A$3:$AI$823,25,FALSE)))","v":""},{"$f":"CONCATENATE(Economática!B284,\" \",Economática!C284)","v":" "}]
[{"$f":"IF(Economática!AG285=\"\",\"\",Economática!AG285)","v":""},{"$f":"IF($A307=\"\",\"\",VLOOKUP(VLOOKUP($A307,Economática!$A$3:$AI$823,6,FALSE),Correção!$B$16:$C$36,2,FALSE))","v":""},{"$f":"IF(Economática!B285=\"\",\"\",Economática!B285)","v":""},{"$f":"IF($A307=\"\",\"\",IF(OR(VLOOKUP($A307,Economática!$A$3:$AI$823,8,FALSE)=0,VLOOKUP($A307,Economática!$A$3:$AI$823,8,FALSE)=\"-\"),1/0,VLOOKUP($A307,Economática!$A$3:$AI$823,8,FALSE)))","v":""},{"$f":"IF(A307=\"\",\"\",IF(ISERROR(VLOOKUP(A307,Correção!$B$2:$G$13,9,FALSE)),VLOOKUP($A307,Economática!$A$3:$AI$823,9,FALSE),VLOOKUP(A307,Correção!$B$2:$G$13,9,FALSE)))","v":""},{"$f":"IF($A307=\"\",\"\",Economática!G285)","v":""},{"$f":"IF($A307=\"\",\"\",IF(OR(VLOOKUP($A307,Economática!$A$3:$AI$823,10,FALSE)=0,VLOOKUP($A307,Economática!$A$3:$AI$823,10,FALSE)=\"-\"),1/0,VLOOKUP($A307,Economática!$A$3:$AI$823,10,FALSE)))","v":""},{"$f":"IF($A307=\"\",\"\",IF(OR(VLOOKUP($A307,Economática!$A$3:$AI$823,11,FALSE)=0,VLOOKUP($A307,Economática!$A$3:$AI$823,11,FALSE)=\"-\"),1/0,VLOOKUP($A307,Economática!$A$3:$AI$823,11,FALSE)))","v":""},{"$f":"IF($A307=\"\",\"\",IF(OR(VLOOKUP($A307,Economática!$A$3:$AI$823,12,FALSE)=0,VLOOKUP($A307,Economática!$A$3:$AI$823,12,FALSE)=\"-\"),1/0,VLOOKUP($A307,Economática!$A$3:$AI$823,12,FALSE)))","v":""},{"$f":"IF($A307=\"\",\"\",IF(OR(VLOOKUP($A307,Economática!$A$3:$AI$823,13,FALSE)=0,VLOOKUP($A307,Economática!$A$3:$AI$823,13,FALSE)=\"-\"),1/0,VLOOKUP($A307,Economática!$A$3:$AI$823,13,FALSE)))","v":""},{"$f":"IF($A307=\"\",\"\",IF(OR(VLOOKUP($A307,Economática!$A$3:$AI$823,14,FALSE)=0,VLOOKUP($A307,Economática!$A$3:$AI$823,14,FALSE)=\"-\"),1/0,VLOOKUP($A307,Economática!$A$3:$AI$823,14,FALSE)))","v":""},{"$f":"IF($A307=\"\",\"\",IF(OR(VLOOKUP($A307,Economática!$A$3:$AI$823,15,FALSE)=0,VLOOKUP($A307,Economática!$A$3:$AI$823,15,FALSE)=\"-\"),1/0,VLOOKUP($A307,Economática!$A$3:$AI$823,15,FALSE)))","v":""},{"$f":"IF($A307=\"\",\"\",IF(OR(VLOOKUP($A307,Economática!$A$3:$AI$823,16,FALSE)=0,VLOOKUP($A307,Economática!$A$3:$AI$823,16,FALSE)=\"-\"),1/0,VLOOKUP($A307,Economática!$A$3:$AI$823,16,FALSE)))","v":""},{"$f":"IF($A307=\"\",\"\",IF(OR(VLOOKUP($A307,Economática!$A$3:$AI$823,17,FALSE)=0,VLOOKUP($A307,Economática!$A$3:$AI$823,17,FALSE)=\"-\"),1/0,VLOOKUP($A307,Economática!$A$3:$AI$823,17,FALSE)))","v":""},{"$f":"IF($A307=\"\",\"\",IF(OR(VLOOKUP($A307,Economática!$A$3:$AI$823,18,FALSE)=0,VLOOKUP($A307,Economática!$A$3:$AI$823,18,FALSE)=\"-\"),1/0,VLOOKUP($A307,Economática!$A$3:$AI$823,18,FALSE)))","v":""},{"$f":"IF($A307=\"\",\"\",IF(OR(VLOOKUP($A307,Economática!$A$3:$AI$823,19,FALSE)=0,VLOOKUP($A307,Economática!$A$3:$AI$823,19,FALSE)=\"-\"),1/0,VLOOKUP($A307,Economática!$A$3:$AI$823,19,FALSE)))","v":""},{"$f":"IF($A307=\"\",\"\",VLOOKUP($A307,Economática!$A$3:$AI$823,20,FALSE)/E307)","v":""},"","","",{"$f":"IF($A307=\"\",\"\",IF(OR(VLOOKUP($A307,Economática!$A$3:$AI$823,21,FALSE)/100=0,VLOOKUP($A307,Economática!$A$3:$AI$823,21,FALSE)/100=\"-\"),1/0,VLOOKUP($A307,Economática!$A$3:$AI$823,21,FALSE)/100))","v":""},{"$f":"IF($A307=\"\",\"\",IF(OR(VLOOKUP($A307,Economática!$A$3:$AI$823,22,FALSE)/100=0,VLOOKUP($A307,Economática!$A$3:$AI$823,22,FALSE)/100=\"-\"),1/0,VLOOKUP($A307,Economática!$A$3:$AI$823,22,FALSE)/100))","v":""},{"$f":"IF($A307=\"\",\"\",IF(OR(VLOOKUP($A307,Economática!$A$3:$AI$823,23,FALSE)=0,VLOOKUP($A307,Economática!$A$3:$AI$823,23,FALSE)=\"-\"),1/0,VLOOKUP($A307,Economática!$A$3:$AI$823,23,FALSE)))","v":""},{"$f":"IF($A307=\"\",\"\",IF(OR(VLOOKUP($A307,Economática!$A$3:$AI$823,24,FALSE)=0,VLOOKUP($A307,Economática!$A$3:$AI$823,24,FALSE)=\"-\"),1/0,VLOOKUP($A307,Economática!$A$3:$AI$823,24,FALSE)))","v":""},{"$f":"IF($A307=\"\",\"\",IF(OR(VLOOKUP($A307,Economática!$A$3:$AI$823,25,FALSE)=0,VLOOKUP($A307,Economática!$A$3:$AI$823,25,FALSE)=\"-\"),1/0,VLOOKUP($A307,Economática!$A$3:$AI$823,25,FALSE)))","v":""},{"$f":"IF($A307=\"\",\"\",IF(ISERROR((F307+VLOOKUP($A307,Economática!$A$3:$AI$823,26,FALSE))/Y307),(F307+VLOOKUP($A307,Economática!$A$3:$AI$823,26,FALSE))/Y307,(F307+VLOOKUP($A307,Economática!$A$3:$AI$823,26,FALSE))/Y307))","v":""},{"$f":"IF($A307=\"\",\"\",IF(OR(-VLOOKUP($A307,Economática!$A$3:$AI$823,27,FALSE)=0,-VLOOKUP($A307,Economática!$A$3:$AI$823,27,FALSE)=\"-\"),1/0,-VLOOKUP($A307,Economática!$A$3:$AI$823,27,FALSE)))","v":""},"",{"$f":"IF($A307=\"\",\"\",IF(OR(VLOOKUP($A307,Economática!$A$3:$AI$823,28,FALSE)=0,VLOOKUP($A307,Economática!$A$3:$AI$823,28,FALSE)=\"-\"),1/0,VLOOKUP($A307,Economática!$A$3:$AI$823,28,FALSE)))","v":""},{"$f":"IF($A307=\"\",\"\",IF(OR(VLOOKUP($A307,Economática!$A$3:$AI$823,29,FALSE)=0,VLOOKUP($A307,Economática!$A$3:$AI$823,29,FALSE)=\"-\"),1/0,VLOOKUP($A307,Economática!$A$3:$AI$823,29,FALSE)))","v":""},{"$f":"IF($A307=\"\",\"\",IF(OR(VLOOKUP($A307,Economática!$A$3:$AI$823,30,FALSE)/E307=0,VLOOKUP($A307,Economática!$A$3:$AI$823,30,FALSE)/E307=\"-\",VLOOKUP($A307,Economática!$A$3:$AI$823,30,FALSE)/E307<33.33%,VLOOKUP($A307,Economática!$A$3:$AI$823,30,FALSE)/E307>100%),1/0,VLOOKUP($A307,Economática!$A$3:$AI$823,30,FALSE)/E307))","v":""},"",{"$f":"IF($A307=\"\",\"\",IF(OR(VLOOKUP($A307,Economática!$A$3:$AI$823,25,FALSE)=0,VLOOKUP($A307,Economática!$A$3:$AI$823,25,FALSE)=\"-\"),1/0,VLOOKUP($A307,Economática!$A$3:$AI$823,25,FALSE)))","v":""},{"$f":"CONCATENATE(Economática!B285,\" \",Economática!C285)","v":" "}]
[{"$f":"IF(Economática!AG286=\"\",\"\",Economática!AG286)","v":""},{"$f":"IF($A308=\"\",\"\",VLOOKUP(VLOOKUP($A308,Economática!$A$3:$AI$823,6,FALSE),Correção!$B$16:$C$36,2,FALSE))","v":""},{"$f":"IF(Economática!B286=\"\",\"\",Economática!B286)","v":""},{"$f":"IF($A308=\"\",\"\",IF(OR(VLOOKUP($A308,Economática!$A$3:$AI$823,8,FALSE)=0,VLOOKUP($A308,Economática!$A$3:$AI$823,8,FALSE)=\"-\"),1/0,VLOOKUP($A308,Economática!$A$3:$AI$823,8,FALSE)))","v":""},{"$f":"IF(A308=\"\",\"\",IF(ISERROR(VLOOKUP(A308,Correção!$B$2:$G$13,9,FALSE)),VLOOKUP($A308,Economática!$A$3:$AI$823,9,FALSE),VLOOKUP(A308,Correção!$B$2:$G$13,9,FALSE)))","v":""},{"$f":"IF($A308=\"\",\"\",Economática!G286)","v":""},{"$f":"IF($A308=\"\",\"\",IF(OR(VLOOKUP($A308,Economática!$A$3:$AI$823,10,FALSE)=0,VLOOKUP($A308,Economática!$A$3:$AI$823,10,FALSE)=\"-\"),1/0,VLOOKUP($A308,Economática!$A$3:$AI$823,10,FALSE)))","v":""},{"$f":"IF($A308=\"\",\"\",IF(OR(VLOOKUP($A308,Economática!$A$3:$AI$823,11,FALSE)=0,VLOOKUP($A308,Economática!$A$3:$AI$823,11,FALSE)=\"-\"),1/0,VLOOKUP($A308,Economática!$A$3:$AI$823,11,FALSE)))","v":""},{"$f":"IF($A308=\"\",\"\",IF(OR(VLOOKUP($A308,Economática!$A$3:$AI$823,12,FALSE)=0,VLOOKUP($A308,Economática!$A$3:$AI$823,12,FALSE)=\"-\"),1/0,VLOOKUP($A308,Economática!$A$3:$AI$823,12,FALSE)))","v":""},{"$f":"IF($A308=\"\",\"\",IF(OR(VLOOKUP($A308,Economática!$A$3:$AI$823,13,FALSE)=0,VLOOKUP($A308,Economática!$A$3:$AI$823,13,FALSE)=\"-\"),1/0,VLOOKUP($A308,Economática!$A$3:$AI$823,13,FALSE)))","v":""},{"$f":"IF($A308=\"\",\"\",IF(OR(VLOOKUP($A308,Economática!$A$3:$AI$823,14,FALSE)=0,VLOOKUP($A308,Economática!$A$3:$AI$823,14,FALSE)=\"-\"),1/0,VLOOKUP($A308,Economática!$A$3:$AI$823,14,FALSE)))","v":""},{"$f":"IF($A308=\"\",\"\",IF(OR(VLOOKUP($A308,Economática!$A$3:$AI$823,15,FALSE)=0,VLOOKUP($A308,Economática!$A$3:$AI$823,15,FALSE)=\"-\"),1/0,VLOOKUP($A308,Economática!$A$3:$AI$823,15,FALSE)))","v":""},{"$f":"IF($A308=\"\",\"\",IF(OR(VLOOKUP($A308,Economática!$A$3:$AI$823,16,FALSE)=0,VLOOKUP($A308,Economática!$A$3:$AI$823,16,FALSE)=\"-\"),1/0,VLOOKUP($A308,Economática!$A$3:$AI$823,16,FALSE)))","v":""},{"$f":"IF($A308=\"\",\"\",IF(OR(VLOOKUP($A308,Economática!$A$3:$AI$823,17,FALSE)=0,VLOOKUP($A308,Economática!$A$3:$AI$823,17,FALSE)=\"-\"),1/0,VLOOKUP($A308,Economática!$A$3:$AI$823,17,FALSE)))","v":""},{"$f":"IF($A308=\"\",\"\",IF(OR(VLOOKUP($A308,Economática!$A$3:$AI$823,18,FALSE)=0,VLOOKUP($A308,Economática!$A$3:$AI$823,18,FALSE)=\"-\"),1/0,VLOOKUP($A308,Economática!$A$3:$AI$823,18,FALSE)))","v":""},{"$f":"IF($A308=\"\",\"\",IF(OR(VLOOKUP($A308,Economática!$A$3:$AI$823,19,FALSE)=0,VLOOKUP($A308,Economática!$A$3:$AI$823,19,FALSE)=\"-\"),1/0,VLOOKUP($A308,Economática!$A$3:$AI$823,19,FALSE)))","v":""},{"$f":"IF($A308=\"\",\"\",VLOOKUP($A308,Economática!$A$3:$AI$823,20,FALSE)/E308)","v":""},"","","",{"$f":"IF($A308=\"\",\"\",IF(OR(VLOOKUP($A308,Economática!$A$3:$AI$823,21,FALSE)/100=0,VLOOKUP($A308,Economática!$A$3:$AI$823,21,FALSE)/100=\"-\"),1/0,VLOOKUP($A308,Economática!$A$3:$AI$823,21,FALSE)/100))","v":""},{"$f":"IF($A308=\"\",\"\",IF(OR(VLOOKUP($A308,Economática!$A$3:$AI$823,22,FALSE)/100=0,VLOOKUP($A308,Economática!$A$3:$AI$823,22,FALSE)/100=\"-\"),1/0,VLOOKUP($A308,Economática!$A$3:$AI$823,22,FALSE)/100))","v":""},{"$f":"IF($A308=\"\",\"\",IF(OR(VLOOKUP($A308,Economática!$A$3:$AI$823,23,FALSE)=0,VLOOKUP($A308,Economática!$A$3:$AI$823,23,FALSE)=\"-\"),1/0,VLOOKUP($A308,Economática!$A$3:$AI$823,23,FALSE)))","v":""},{"$f":"IF($A308=\"\",\"\",IF(OR(VLOOKUP($A308,Economática!$A$3:$AI$823,24,FALSE)=0,VLOOKUP($A308,Economática!$A$3:$AI$823,24,FALSE)=\"-\"),1/0,VLOOKUP($A308,Economática!$A$3:$AI$823,24,FALSE)))","v":""},{"$f":"IF($A308=\"\",\"\",IF(OR(VLOOKUP($A308,Economática!$A$3:$AI$823,25,FALSE)=0,VLOOKUP($A308,Economática!$A$3:$AI$823,25,FALSE)=\"-\"),1/0,VLOOKUP($A308,Economática!$A$3:$AI$823,25,FALSE)))","v":""},{"$f":"IF($A308=\"\",\"\",IF(ISERROR((F308+VLOOKUP($A308,Economática!$A$3:$AI$823,26,FALSE))/Y308),(F308+VLOOKUP($A308,Economática!$A$3:$AI$823,26,FALSE))/Y308,(F308+VLOOKUP($A308,Economática!$A$3:$AI$823,26,FALSE))/Y308))","v":""},{"$f":"IF($A308=\"\",\"\",IF(OR(-VLOOKUP($A308,Economática!$A$3:$AI$823,27,FALSE)=0,-VLOOKUP($A308,Economática!$A$3:$AI$823,27,FALSE)=\"-\"),1/0,-VLOOKUP($A308,Economática!$A$3:$AI$823,27,FALSE)))","v":""},"",{"$f":"IF($A308=\"\",\"\",IF(OR(VLOOKUP($A308,Economática!$A$3:$AI$823,28,FALSE)=0,VLOOKUP($A308,Economática!$A$3:$AI$823,28,FALSE)=\"-\"),1/0,VLOOKUP($A308,Economática!$A$3:$AI$823,28,FALSE)))","v":""},{"$f":"IF($A308=\"\",\"\",IF(OR(VLOOKUP($A308,Economática!$A$3:$AI$823,29,FALSE)=0,VLOOKUP($A308,Economática!$A$3:$AI$823,29,FALSE)=\"-\"),1/0,VLOOKUP($A308,Economática!$A$3:$AI$823,29,FALSE)))","v":""},{"$f":"IF($A308=\"\",\"\",IF(OR(VLOOKUP($A308,Economática!$A$3:$AI$823,30,FALSE)/E308=0,VLOOKUP($A308,Economática!$A$3:$AI$823,30,FALSE)/E308=\"-\",VLOOKUP($A308,Economática!$A$3:$AI$823,30,FALSE)/E308<33.33%,VLOOKUP($A308,Economática!$A$3:$AI$823,30,FALSE)/E308>100%),1/0,VLOOKUP($A308,Economática!$A$3:$AI$823,30,FALSE)/E308))","v":""},"",{"$f":"IF($A308=\"\",\"\",IF(OR(VLOOKUP($A308,Economática!$A$3:$AI$823,25,FALSE)=0,VLOOKUP($A308,Economática!$A$3:$AI$823,25,FALSE)=\"-\"),1/0,VLOOKUP($A308,Economática!$A$3:$AI$823,25,FALSE)))","v":""},{"$f":"CONCATENATE(Economática!B286,\" \",Economática!C286)","v":" "}]
[{"$f":"IF(Economática!AG287=\"\",\"\",Economática!AG287)","v":""},{"$f":"IF($A309=\"\",\"\",VLOOKUP(VLOOKUP($A309,Economática!$A$3:$AI$823,6,FALSE),Correção!$B$16:$C$36,2,FALSE))","v":""},{"$f":"IF(Economática!B287=\"\",\"\",Economática!B287)","v":""},{"$f":"IF($A309=\"\",\"\",IF(OR(VLOOKUP($A309,Economática!$A$3:$AI$823,8,FALSE)=0,VLOOKUP($A309,Economática!$A$3:$AI$823,8,FALSE)=\"-\"),1/0,VLOOKUP($A309,Economática!$A$3:$AI$823,8,FALSE)))","v":""},{"$f":"IF(A309=\"\",\"\",IF(ISERROR(VLOOKUP(A309,Correção!$B$2:$G$13,9,FALSE)),VLOOKUP($A309,Economática!$A$3:$AI$823,9,FALSE),VLOOKUP(A309,Correção!$B$2:$G$13,9,FALSE)))","v":""},{"$f":"IF($A309=\"\",\"\",Economática!G287)","v":""},{"$f":"IF($A309=\"\",\"\",IF(OR(VLOOKUP($A309,Economática!$A$3:$AI$823,10,FALSE)=0,VLOOKUP($A309,Economática!$A$3:$AI$823,10,FALSE)=\"-\"),1/0,VLOOKUP($A309,Economática!$A$3:$AI$823,10,FALSE)))","v":""},{"$f":"IF($A309=\"\",\"\",IF(OR(VLOOKUP($A309,Economática!$A$3:$AI$823,11,FALSE)=0,VLOOKUP($A309,Economática!$A$3:$AI$823,11,FALSE)=\"-\"),1/0,VLOOKUP($A309,Economática!$A$3:$AI$823,11,FALSE)))","v":""},{"$f":"IF($A309=\"\",\"\",IF(OR(VLOOKUP($A309,Economática!$A$3:$AI$823,12,FALSE)=0,VLOOKUP($A309,Economática!$A$3:$AI$823,12,FALSE)=\"-\"),1/0,VLOOKUP($A309,Economática!$A$3:$AI$823,12,FALSE)))","v":""},{"$f":"IF($A309=\"\",\"\",IF(OR(VLOOKUP($A309,Economática!$A$3:$AI$823,13,FALSE)=0,VLOOKUP($A309,Economática!$A$3:$AI$823,13,FALSE)=\"-\"),1/0,VLOOKUP($A309,Economática!$A$3:$AI$823,13,FALSE)))","v":""},{"$f":"IF($A309=\"\",\"\",IF(OR(VLOOKUP($A309,Economática!$A$3:$AI$823,14,FALSE)=0,VLOOKUP($A309,Economática!$A$3:$AI$823,14,FALSE)=\"-\"),1/0,VLOOKUP($A309,Economática!$A$3:$AI$823,14,FALSE)))","v":""},{"$f":"IF($A309=\"\",\"\",IF(OR(VLOOKUP($A309,Economática!$A$3:$AI$823,15,FALSE)=0,VLOOKUP($A309,Economática!$A$3:$AI$823,15,FALSE)=\"-\"),1/0,VLOOKUP($A309,Economática!$A$3:$AI$823,15,FALSE)))","v":""},{"$f":"IF($A309=\"\",\"\",IF(OR(VLOOKUP($A309,Economática!$A$3:$AI$823,16,FALSE)=0,VLOOKUP($A309,Economática!$A$3:$AI$823,16,FALSE)=\"-\"),1/0,VLOOKUP($A309,Economática!$A$3:$AI$823,16,FALSE)))","v":""},{"$f":"IF($A309=\"\",\"\",IF(OR(VLOOKUP($A309,Economática!$A$3:$AI$823,17,FALSE)=0,VLOOKUP($A309,Economática!$A$3:$AI$823,17,FALSE)=\"-\"),1/0,VLOOKUP($A309,Economática!$A$3:$AI$823,17,FALSE)))","v":""},{"$f":"IF($A309=\"\",\"\",IF(OR(VLOOKUP($A309,Economática!$A$3:$AI$823,18,FALSE)=0,VLOOKUP($A309,Economática!$A$3:$AI$823,18,FALSE)=\"-\"),1/0,VLOOKUP($A309,Economática!$A$3:$AI$823,18,FALSE)))","v":""},{"$f":"IF($A309=\"\",\"\",IF(OR(VLOOKUP($A309,Economática!$A$3:$AI$823,19,FALSE)=0,VLOOKUP($A309,Economática!$A$3:$AI$823,19,FALSE)=\"-\"),1/0,VLOOKUP($A309,Economática!$A$3:$AI$823,19,FALSE)))","v":""},{"$f":"IF($A309=\"\",\"\",VLOOKUP($A309,Economática!$A$3:$AI$823,20,FALSE)/E309)","v":""},"","","",{"$f":"IF($A309=\"\",\"\",IF(OR(VLOOKUP($A309,Economática!$A$3:$AI$823,21,FALSE)/100=0,VLOOKUP($A309,Economática!$A$3:$AI$823,21,FALSE)/100=\"-\"),1/0,VLOOKUP($A309,Economática!$A$3:$AI$823,21,FALSE)/100))","v":""},{"$f":"IF($A309=\"\",\"\",IF(OR(VLOOKUP($A309,Economática!$A$3:$AI$823,22,FALSE)/100=0,VLOOKUP($A309,Economática!$A$3:$AI$823,22,FALSE)/100=\"-\"),1/0,VLOOKUP($A309,Economática!$A$3:$AI$823,22,FALSE)/100))","v":""},{"$f":"IF($A309=\"\",\"\",IF(OR(VLOOKUP($A309,Economática!$A$3:$AI$823,23,FALSE)=0,VLOOKUP($A309,Economática!$A$3:$AI$823,23,FALSE)=\"-\"),1/0,VLOOKUP($A309,Economática!$A$3:$AI$823,23,FALSE)))","v":""},{"$f":"IF($A309=\"\",\"\",IF(OR(VLOOKUP($A309,Economática!$A$3:$AI$823,24,FALSE)=0,VLOOKUP($A309,Economática!$A$3:$AI$823,24,FALSE)=\"-\"),1/0,VLOOKUP($A309,Economática!$A$3:$AI$823,24,FALSE)))","v":""},{"$f":"IF($A309=\"\",\"\",IF(OR(VLOOKUP($A309,Economática!$A$3:$AI$823,25,FALSE)=0,VLOOKUP($A309,Economática!$A$3:$AI$823,25,FALSE)=\"-\"),1/0,VLOOKUP($A309,Economática!$A$3:$AI$823,25,FALSE)))","v":""},{"$f":"IF($A309=\"\",\"\",IF(ISERROR((F309+VLOOKUP($A309,Economática!$A$3:$AI$823,26,FALSE))/Y309),(F309+VLOOKUP($A309,Economática!$A$3:$AI$823,26,FALSE))/Y309,(F309+VLOOKUP($A309,Economática!$A$3:$AI$823,26,FALSE))/Y309))","v":""},{"$f":"IF($A309=\"\",\"\",IF(OR(-VLOOKUP($A309,Economática!$A$3:$AI$823,27,FALSE)=0,-VLOOKUP($A309,Economática!$A$3:$AI$823,27,FALSE)=\"-\"),1/0,-VLOOKUP($A309,Economática!$A$3:$AI$823,27,FALSE)))","v":""},"",{"$f":"IF($A309=\"\",\"\",IF(OR(VLOOKUP($A309,Economática!$A$3:$AI$823,28,FALSE)=0,VLOOKUP($A309,Economática!$A$3:$AI$823,28,FALSE)=\"-\"),1/0,VLOOKUP($A309,Economática!$A$3:$AI$823,28,FALSE)))","v":""},{"$f":"IF($A309=\"\",\"\",IF(OR(VLOOKUP($A309,Economática!$A$3:$AI$823,29,FALSE)=0,VLOOKUP($A309,Economática!$A$3:$AI$823,29,FALSE)=\"-\"),1/0,VLOOKUP($A309,Economática!$A$3:$AI$823,29,FALSE)))","v":""},{"$f":"IF($A309=\"\",\"\",IF(OR(VLOOKUP($A309,Economática!$A$3:$AI$823,30,FALSE)/E309=0,VLOOKUP($A309,Economática!$A$3:$AI$823,30,FALSE)/E309=\"-\",VLOOKUP($A309,Economática!$A$3:$AI$823,30,FALSE)/E309<33.33%,VLOOKUP($A309,Economática!$A$3:$AI$823,30,FALSE)/E309>100%),1/0,VLOOKUP($A309,Economática!$A$3:$AI$823,30,FALSE)/E309))","v":""},"",{"$f":"IF($A309=\"\",\"\",IF(OR(VLOOKUP($A309,Economática!$A$3:$AI$823,25,FALSE)=0,VLOOKUP($A309,Economática!$A$3:$AI$823,25,FALSE)=\"-\"),1/0,VLOOKUP($A309,Economática!$A$3:$AI$823,25,FALSE)))","v":""},{"$f":"CONCATENATE(Economática!B287,\" \",Economática!C287)","v":" "}]
[{"$f":"IF(Economática!AG288=\"\",\"\",Economática!AG288)","v":""},{"$f":"IF($A310=\"\",\"\",VLOOKUP(VLOOKUP($A310,Economática!$A$3:$AI$823,6,FALSE),Correção!$B$16:$C$36,2,FALSE))","v":""},{"$f":"IF(Economática!B288=\"\",\"\",Economática!B288)","v":""},{"$f":"IF($A310=\"\",\"\",IF(OR(VLOOKUP($A310,Economática!$A$3:$AI$823,8,FALSE)=0,VLOOKUP($A310,Economática!$A$3:$AI$823,8,FALSE)=\"-\"),1/0,VLOOKUP($A310,Economática!$A$3:$AI$823,8,FALSE)))","v":""},{"$f":"IF(A310=\"\",\"\",IF(ISERROR(VLOOKUP(A310,Correção!$B$2:$G$13,9,FALSE)),VLOOKUP($A310,Economática!$A$3:$AI$823,9,FALSE),VLOOKUP(A310,Correção!$B$2:$G$13,9,FALSE)))","v":""},{"$f":"IF($A310=\"\",\"\",Economática!G288)","v":""},{"$f":"IF($A310=\"\",\"\",IF(OR(VLOOKUP($A310,Economática!$A$3:$AI$823,10,FALSE)=0,VLOOKUP($A310,Economática!$A$3:$AI$823,10,FALSE)=\"-\"),1/0,VLOOKUP($A310,Economática!$A$3:$AI$823,10,FALSE)))","v":""},{"$f":"IF($A310=\"\",\"\",IF(OR(VLOOKUP($A310,Economática!$A$3:$AI$823,11,FALSE)=0,VLOOKUP($A310,Economática!$A$3:$AI$823,11,FALSE)=\"-\"),1/0,VLOOKUP($A310,Economática!$A$3:$AI$823,11,FALSE)))","v":""},{"$f":"IF($A310=\"\",\"\",IF(OR(VLOOKUP($A310,Economática!$A$3:$AI$823,12,FALSE)=0,VLOOKUP($A310,Economática!$A$3:$AI$823,12,FALSE)=\"-\"),1/0,VLOOKUP($A310,Economática!$A$3:$AI$823,12,FALSE)))","v":""},{"$f":"IF($A310=\"\",\"\",IF(OR(VLOOKUP($A310,Economática!$A$3:$AI$823,13,FALSE)=0,VLOOKUP($A310,Economática!$A$3:$AI$823,13,FALSE)=\"-\"),1/0,VLOOKUP($A310,Economática!$A$3:$AI$823,13,FALSE)))","v":""},{"$f":"IF($A310=\"\",\"\",IF(OR(VLOOKUP($A310,Economática!$A$3:$AI$823,14,FALSE)=0,VLOOKUP($A310,Economática!$A$3:$AI$823,14,FALSE)=\"-\"),1/0,VLOOKUP($A310,Economática!$A$3:$AI$823,14,FALSE)))","v":""},{"$f":"IF($A310=\"\",\"\",IF(OR(VLOOKUP($A310,Economática!$A$3:$AI$823,15,FALSE)=0,VLOOKUP($A310,Economática!$A$3:$AI$823,15,FALSE)=\"-\"),1/0,VLOOKUP($A310,Economática!$A$3:$AI$823,15,FALSE)))","v":""},{"$f":"IF($A310=\"\",\"\",IF(OR(VLOOKUP($A310,Economática!$A$3:$AI$823,16,FALSE)=0,VLOOKUP($A310,Economática!$A$3:$AI$823,16,FALSE)=\"-\"),1/0,VLOOKUP($A310,Economática!$A$3:$AI$823,16,FALSE)))","v":""},{"$f":"IF($A310=\"\",\"\",IF(OR(VLOOKUP($A310,Economática!$A$3:$AI$823,17,FALSE)=0,VLOOKUP($A310,Economática!$A$3:$AI$823,17,FALSE)=\"-\"),1/0,VLOOKUP($A310,Economática!$A$3:$AI$823,17,FALSE)))","v":""},{"$f":"IF($A310=\"\",\"\",IF(OR(VLOOKUP($A310,Economática!$A$3:$AI$823,18,FALSE)=0,VLOOKUP($A310,Economática!$A$3:$AI$823,18,FALSE)=\"-\"),1/0,VLOOKUP($A310,Economática!$A$3:$AI$823,18,FALSE)))","v":""},{"$f":"IF($A310=\"\",\"\",IF(OR(VLOOKUP($A310,Economática!$A$3:$AI$823,19,FALSE)=0,VLOOKUP($A310,Economática!$A$3:$AI$823,19,FALSE)=\"-\"),1/0,VLOOKUP($A310,Economática!$A$3:$AI$823,19,FALSE)))","v":""},{"$f":"IF($A310=\"\",\"\",VLOOKUP($A310,Economática!$A$3:$AI$823,20,FALSE)/E310)","v":""},"","","",{"$f":"IF($A310=\"\",\"\",IF(OR(VLOOKUP($A310,Economática!$A$3:$AI$823,21,FALSE)/100=0,VLOOKUP($A310,Economática!$A$3:$AI$823,21,FALSE)/100=\"-\"),1/0,VLOOKUP($A310,Economática!$A$3:$AI$823,21,FALSE)/100))","v":""},{"$f":"IF($A310=\"\",\"\",IF(OR(VLOOKUP($A310,Economática!$A$3:$AI$823,22,FALSE)/100=0,VLOOKUP($A310,Economática!$A$3:$AI$823,22,FALSE)/100=\"-\"),1/0,VLOOKUP($A310,Economática!$A$3:$AI$823,22,FALSE)/100))","v":""},{"$f":"IF($A310=\"\",\"\",IF(OR(VLOOKUP($A310,Economática!$A$3:$AI$823,23,FALSE)=0,VLOOKUP($A310,Economática!$A$3:$AI$823,23,FALSE)=\"-\"),1/0,VLOOKUP($A310,Economática!$A$3:$AI$823,23,FALSE)))","v":""},{"$f":"IF($A310=\"\",\"\",IF(OR(VLOOKUP($A310,Economática!$A$3:$AI$823,24,FALSE)=0,VLOOKUP($A310,Economática!$A$3:$AI$823,24,FALSE)=\"-\"),1/0,VLOOKUP($A310,Economática!$A$3:$AI$823,24,FALSE)))","v":""},{"$f":"IF($A310=\"\",\"\",IF(OR(VLOOKUP($A310,Economática!$A$3:$AI$823,25,FALSE)=0,VLOOKUP($A310,Economática!$A$3:$AI$823,25,FALSE)=\"-\"),1/0,VLOOKUP($A310,Economática!$A$3:$AI$823,25,FALSE)))","v":""},{"$f":"IF($A310=\"\",\"\",IF(ISERROR((F310+VLOOKUP($A310,Economática!$A$3:$AI$823,26,FALSE))/Y310),(F310+VLOOKUP($A310,Economática!$A$3:$AI$823,26,FALSE))/Y310,(F310+VLOOKUP($A310,Economática!$A$3:$AI$823,26,FALSE))/Y310))","v":""},{"$f":"IF($A310=\"\",\"\",IF(OR(-VLOOKUP($A310,Economática!$A$3:$AI$823,27,FALSE)=0,-VLOOKUP($A310,Economática!$A$3:$AI$823,27,FALSE)=\"-\"),1/0,-VLOOKUP($A310,Economática!$A$3:$AI$823,27,FALSE)))","v":""},"",{"$f":"IF($A310=\"\",\"\",IF(OR(VLOOKUP($A310,Economática!$A$3:$AI$823,28,FALSE)=0,VLOOKUP($A310,Economática!$A$3:$AI$823,28,FALSE)=\"-\"),1/0,VLOOKUP($A310,Economática!$A$3:$AI$823,28,FALSE)))","v":""},{"$f":"IF($A310=\"\",\"\",IF(OR(VLOOKUP($A310,Economática!$A$3:$AI$823,29,FALSE)=0,VLOOKUP($A310,Economática!$A$3:$AI$823,29,FALSE)=\"-\"),1/0,VLOOKUP($A310,Economática!$A$3:$AI$823,29,FALSE)))","v":""},{"$f":"IF($A310=\"\",\"\",IF(OR(VLOOKUP($A310,Economática!$A$3:$AI$823,30,FALSE)/E310=0,VLOOKUP($A310,Economática!$A$3:$AI$823,30,FALSE)/E310=\"-\",VLOOKUP($A310,Economática!$A$3:$AI$823,30,FALSE)/E310<33.33%,VLOOKUP($A310,Economática!$A$3:$AI$823,30,FALSE)/E310>100%),1/0,VLOOKUP($A310,Economática!$A$3:$AI$823,30,FALSE)/E310))","v":""},"",{"$f":"IF($A310=\"\",\"\",IF(OR(VLOOKUP($A310,Economática!$A$3:$AI$823,25,FALSE)=0,VLOOKUP($A310,Economática!$A$3:$AI$823,25,FALSE)=\"-\"),1/0,VLOOKUP($A310,Economática!$A$3:$AI$823,25,FALSE)))","v":""},{"$f":"CONCATENATE(Economática!B288,\" \",Economática!C288)","v":" "}]
[{"$f":"IF(Economática!AG289=\"\",\"\",Economática!AG289)","v":""},{"$f":"IF($A311=\"\",\"\",VLOOKUP(VLOOKUP($A311,Economática!$A$3:$AI$823,6,FALSE),Correção!$B$16:$C$36,2,FALSE))","v":""},{"$f":"IF(Economática!B289=\"\",\"\",Economática!B289)","v":""},{"$f":"IF($A311=\"\",\"\",IF(OR(VLOOKUP($A311,Economática!$A$3:$AI$823,8,FALSE)=0,VLOOKUP($A311,Economática!$A$3:$AI$823,8,FALSE)=\"-\"),1/0,VLOOKUP($A311,Economática!$A$3:$AI$823,8,FALSE)))","v":""},{"$f":"IF(A311=\"\",\"\",IF(ISERROR(VLOOKUP(A311,Correção!$B$2:$G$13,9,FALSE)),VLOOKUP($A311,Economática!$A$3:$AI$823,9,FALSE),VLOOKUP(A311,Correção!$B$2:$G$13,9,FALSE)))","v":""},{"$f":"IF($A311=\"\",\"\",Economática!G289)","v":""},{"$f":"IF($A311=\"\",\"\",IF(OR(VLOOKUP($A311,Economática!$A$3:$AI$823,10,FALSE)=0,VLOOKUP($A311,Economática!$A$3:$AI$823,10,FALSE)=\"-\"),1/0,VLOOKUP($A311,Economática!$A$3:$AI$823,10,FALSE)))","v":""},{"$f":"IF($A311=\"\",\"\",IF(OR(VLOOKUP($A311,Economática!$A$3:$AI$823,11,FALSE)=0,VLOOKUP($A311,Economática!$A$3:$AI$823,11,FALSE)=\"-\"),1/0,VLOOKUP($A311,Economática!$A$3:$AI$823,11,FALSE)))","v":""},{"$f":"IF($A311=\"\",\"\",IF(OR(VLOOKUP($A311,Economática!$A$3:$AI$823,12,FALSE)=0,VLOOKUP($A311,Economática!$A$3:$AI$823,12,FALSE)=\"-\"),1/0,VLOOKUP($A311,Economática!$A$3:$AI$823,12,FALSE)))","v":""},{"$f":"IF($A311=\"\",\"\",IF(OR(VLOOKUP($A311,Economática!$A$3:$AI$823,13,FALSE)=0,VLOOKUP($A311,Economática!$A$3:$AI$823,13,FALSE)=\"-\"),1/0,VLOOKUP($A311,Economática!$A$3:$AI$823,13,FALSE)))","v":""},{"$f":"IF($A311=\"\",\"\",IF(OR(VLOOKUP($A311,Economática!$A$3:$AI$823,14,FALSE)=0,VLOOKUP($A311,Economática!$A$3:$AI$823,14,FALSE)=\"-\"),1/0,VLOOKUP($A311,Economática!$A$3:$AI$823,14,FALSE)))","v":""},{"$f":"IF($A311=\"\",\"\",IF(OR(VLOOKUP($A311,Economática!$A$3:$AI$823,15,FALSE)=0,VLOOKUP($A311,Economática!$A$3:$AI$823,15,FALSE)=\"-\"),1/0,VLOOKUP($A311,Economática!$A$3:$AI$823,15,FALSE)))","v":""},{"$f":"IF($A311=\"\",\"\",IF(OR(VLOOKUP($A311,Economática!$A$3:$AI$823,16,FALSE)=0,VLOOKUP($A311,Economática!$A$3:$AI$823,16,FALSE)=\"-\"),1/0,VLOOKUP($A311,Economática!$A$3:$AI$823,16,FALSE)))","v":""},{"$f":"IF($A311=\"\",\"\",IF(OR(VLOOKUP($A311,Economática!$A$3:$AI$823,17,FALSE)=0,VLOOKUP($A311,Economática!$A$3:$AI$823,17,FALSE)=\"-\"),1/0,VLOOKUP($A311,Economática!$A$3:$AI$823,17,FALSE)))","v":""},{"$f":"IF($A311=\"\",\"\",IF(OR(VLOOKUP($A311,Economática!$A$3:$AI$823,18,FALSE)=0,VLOOKUP($A311,Economática!$A$3:$AI$823,18,FALSE)=\"-\"),1/0,VLOOKUP($A311,Economática!$A$3:$AI$823,18,FALSE)))","v":""},{"$f":"IF($A311=\"\",\"\",IF(OR(VLOOKUP($A311,Economática!$A$3:$AI$823,19,FALSE)=0,VLOOKUP($A311,Economática!$A$3:$AI$823,19,FALSE)=\"-\"),1/0,VLOOKUP($A311,Economática!$A$3:$AI$823,19,FALSE)))","v":""},{"$f":"IF($A311=\"\",\"\",VLOOKUP($A311,Economática!$A$3:$AI$823,20,FALSE)/E311)","v":""},"","","",{"$f":"IF($A311=\"\",\"\",IF(OR(VLOOKUP($A311,Economática!$A$3:$AI$823,21,FALSE)/100=0,VLOOKUP($A311,Economática!$A$3:$AI$823,21,FALSE)/100=\"-\"),1/0,VLOOKUP($A311,Economática!$A$3:$AI$823,21,FALSE)/100))","v":""},{"$f":"IF($A311=\"\",\"\",IF(OR(VLOOKUP($A311,Economática!$A$3:$AI$823,22,FALSE)/100=0,VLOOKUP($A311,Economática!$A$3:$AI$823,22,FALSE)/100=\"-\"),1/0,VLOOKUP($A311,Economática!$A$3:$AI$823,22,FALSE)/100))","v":""},{"$f":"IF($A311=\"\",\"\",IF(OR(VLOOKUP($A311,Economática!$A$3:$AI$823,23,FALSE)=0,VLOOKUP($A311,Economática!$A$3:$AI$823,23,FALSE)=\"-\"),1/0,VLOOKUP($A311,Economática!$A$3:$AI$823,23,FALSE)))","v":""},{"$f":"IF($A311=\"\",\"\",IF(OR(VLOOKUP($A311,Economática!$A$3:$AI$823,24,FALSE)=0,VLOOKUP($A311,Economática!$A$3:$AI$823,24,FALSE)=\"-\"),1/0,VLOOKUP($A311,Economática!$A$3:$AI$823,24,FALSE)))","v":""},{"$f":"IF($A311=\"\",\"\",IF(OR(VLOOKUP($A311,Economática!$A$3:$AI$823,25,FALSE)=0,VLOOKUP($A311,Economática!$A$3:$AI$823,25,FALSE)=\"-\"),1/0,VLOOKUP($A311,Economática!$A$3:$AI$823,25,FALSE)))","v":""},{"$f":"IF($A311=\"\",\"\",IF(ISERROR((F311+VLOOKUP($A311,Economática!$A$3:$AI$823,26,FALSE))/Y311),(F311+VLOOKUP($A311,Economática!$A$3:$AI$823,26,FALSE))/Y311,(F311+VLOOKUP($A311,Economática!$A$3:$AI$823,26,FALSE))/Y311))","v":""},{"$f":"IF($A311=\"\",\"\",IF(OR(-VLOOKUP($A311,Economática!$A$3:$AI$823,27,FALSE)=0,-VLOOKUP($A311,Economática!$A$3:$AI$823,27,FALSE)=\"-\"),1/0,-VLOOKUP($A311,Economática!$A$3:$AI$823,27,FALSE)))","v":""},"",{"$f":"IF($A311=\"\",\"\",IF(OR(VLOOKUP($A311,Economática!$A$3:$AI$823,28,FALSE)=0,VLOOKUP($A311,Economática!$A$3:$AI$823,28,FALSE)=\"-\"),1/0,VLOOKUP($A311,Economática!$A$3:$AI$823,28,FALSE)))","v":""},{"$f":"IF($A311=\"\",\"\",IF(OR(VLOOKUP($A311,Economática!$A$3:$AI$823,29,FALSE)=0,VLOOKUP($A311,Economática!$A$3:$AI$823,29,FALSE)=\"-\"),1/0,VLOOKUP($A311,Economática!$A$3:$AI$823,29,FALSE)))","v":""},{"$f":"IF($A311=\"\",\"\",IF(OR(VLOOKUP($A311,Economática!$A$3:$AI$823,30,FALSE)/E311=0,VLOOKUP($A311,Economática!$A$3:$AI$823,30,FALSE)/E311=\"-\",VLOOKUP($A311,Economática!$A$3:$AI$823,30,FALSE)/E311<33.33%,VLOOKUP($A311,Economática!$A$3:$AI$823,30,FALSE)/E311>100%),1/0,VLOOKUP($A311,Economática!$A$3:$AI$823,30,FALSE)/E311))","v":""},"",{"$f":"IF($A311=\"\",\"\",IF(OR(VLOOKUP($A311,Economática!$A$3:$AI$823,25,FALSE)=0,VLOOKUP($A311,Economática!$A$3:$AI$823,25,FALSE)=\"-\"),1/0,VLOOKUP($A311,Economática!$A$3:$AI$823,25,FALSE)))","v":""},{"$f":"CONCATENATE(Economática!B289,\" \",Economática!C289)","v":" "}]
[{"$f":"IF(Economática!AG290=\"\",\"\",Economática!AG290)","v":""},{"$f":"IF($A312=\"\",\"\",VLOOKUP(VLOOKUP($A312,Economática!$A$3:$AI$823,6,FALSE),Correção!$B$16:$C$36,2,FALSE))","v":""},{"$f":"IF(Economática!B290=\"\",\"\",Economática!B290)","v":""},{"$f":"IF($A312=\"\",\"\",IF(OR(VLOOKUP($A312,Economática!$A$3:$AI$823,8,FALSE)=0,VLOOKUP($A312,Economática!$A$3:$AI$823,8,FALSE)=\"-\"),1/0,VLOOKUP($A312,Economática!$A$3:$AI$823,8,FALSE)))","v":""},{"$f":"IF(A312=\"\",\"\",IF(ISERROR(VLOOKUP(A312,Correção!$B$2:$G$13,9,FALSE)),VLOOKUP($A312,Economática!$A$3:$AI$823,9,FALSE),VLOOKUP(A312,Correção!$B$2:$G$13,9,FALSE)))","v":""},{"$f":"IF($A312=\"\",\"\",Economática!G290)","v":""},{"$f":"IF($A312=\"\",\"\",IF(OR(VLOOKUP($A312,Economática!$A$3:$AI$823,10,FALSE)=0,VLOOKUP($A312,Economática!$A$3:$AI$823,10,FALSE)=\"-\"),1/0,VLOOKUP($A312,Economática!$A$3:$AI$823,10,FALSE)))","v":""},{"$f":"IF($A312=\"\",\"\",IF(OR(VLOOKUP($A312,Economática!$A$3:$AI$823,11,FALSE)=0,VLOOKUP($A312,Economática!$A$3:$AI$823,11,FALSE)=\"-\"),1/0,VLOOKUP($A312,Economática!$A$3:$AI$823,11,FALSE)))","v":""},{"$f":"IF($A312=\"\",\"\",IF(OR(VLOOKUP($A312,Economática!$A$3:$AI$823,12,FALSE)=0,VLOOKUP($A312,Economática!$A$3:$AI$823,12,FALSE)=\"-\"),1/0,VLOOKUP($A312,Economática!$A$3:$AI$823,12,FALSE)))","v":""},{"$f":"IF($A312=\"\",\"\",IF(OR(VLOOKUP($A312,Economática!$A$3:$AI$823,13,FALSE)=0,VLOOKUP($A312,Economática!$A$3:$AI$823,13,FALSE)=\"-\"),1/0,VLOOKUP($A312,Economática!$A$3:$AI$823,13,FALSE)))","v":""},{"$f":"IF($A312=\"\",\"\",IF(OR(VLOOKUP($A312,Economática!$A$3:$AI$823,14,FALSE)=0,VLOOKUP($A312,Economática!$A$3:$AI$823,14,FALSE)=\"-\"),1/0,VLOOKUP($A312,Economática!$A$3:$AI$823,14,FALSE)))","v":""},{"$f":"IF($A312=\"\",\"\",IF(OR(VLOOKUP($A312,Economática!$A$3:$AI$823,15,FALSE)=0,VLOOKUP($A312,Economática!$A$3:$AI$823,15,FALSE)=\"-\"),1/0,VLOOKUP($A312,Economática!$A$3:$AI$823,15,FALSE)))","v":""},{"$f":"IF($A312=\"\",\"\",IF(OR(VLOOKUP($A312,Economática!$A$3:$AI$823,16,FALSE)=0,VLOOKUP($A312,Economática!$A$3:$AI$823,16,FALSE)=\"-\"),1/0,VLOOKUP($A312,Economática!$A$3:$AI$823,16,FALSE)))","v":""},{"$f":"IF($A312=\"\",\"\",IF(OR(VLOOKUP($A312,Economática!$A$3:$AI$823,17,FALSE)=0,VLOOKUP($A312,Economática!$A$3:$AI$823,17,FALSE)=\"-\"),1/0,VLOOKUP($A312,Economática!$A$3:$AI$823,17,FALSE)))","v":""},{"$f":"IF($A312=\"\",\"\",IF(OR(VLOOKUP($A312,Economática!$A$3:$AI$823,18,FALSE)=0,VLOOKUP($A312,Economática!$A$3:$AI$823,18,FALSE)=\"-\"),1/0,VLOOKUP($A312,Economática!$A$3:$AI$823,18,FALSE)))","v":""},{"$f":"IF($A312=\"\",\"\",IF(OR(VLOOKUP($A312,Economática!$A$3:$AI$823,19,FALSE)=0,VLOOKUP($A312,Economática!$A$3:$AI$823,19,FALSE)=\"-\"),1/0,VLOOKUP($A312,Economática!$A$3:$AI$823,19,FALSE)))","v":""},{"$f":"IF($A312=\"\",\"\",VLOOKUP($A312,Economática!$A$3:$AI$823,20,FALSE)/E312)","v":""},"","","",{"$f":"IF($A312=\"\",\"\",IF(OR(VLOOKUP($A312,Economática!$A$3:$AI$823,21,FALSE)/100=0,VLOOKUP($A312,Economática!$A$3:$AI$823,21,FALSE)/100=\"-\"),1/0,VLOOKUP($A312,Economática!$A$3:$AI$823,21,FALSE)/100))","v":""},{"$f":"IF($A312=\"\",\"\",IF(OR(VLOOKUP($A312,Economática!$A$3:$AI$823,22,FALSE)/100=0,VLOOKUP($A312,Economática!$A$3:$AI$823,22,FALSE)/100=\"-\"),1/0,VLOOKUP($A312,Economática!$A$3:$AI$823,22,FALSE)/100))","v":""},{"$f":"IF($A312=\"\",\"\",IF(OR(VLOOKUP($A312,Economática!$A$3:$AI$823,23,FALSE)=0,VLOOKUP($A312,Economática!$A$3:$AI$823,23,FALSE)=\"-\"),1/0,VLOOKUP($A312,Economática!$A$3:$AI$823,23,FALSE)))","v":""},{"$f":"IF($A312=\"\",\"\",IF(OR(VLOOKUP($A312,Economática!$A$3:$AI$823,24,FALSE)=0,VLOOKUP($A312,Economática!$A$3:$AI$823,24,FALSE)=\"-\"),1/0,VLOOKUP($A312,Economática!$A$3:$AI$823,24,FALSE)))","v":""},{"$f":"IF($A312=\"\",\"\",IF(OR(VLOOKUP($A312,Economática!$A$3:$AI$823,25,FALSE)=0,VLOOKUP($A312,Economática!$A$3:$AI$823,25,FALSE)=\"-\"),1/0,VLOOKUP($A312,Economática!$A$3:$AI$823,25,FALSE)))","v":""},{"$f":"IF($A312=\"\",\"\",IF(ISERROR((F312+VLOOKUP($A312,Economática!$A$3:$AI$823,26,FALSE))/Y312),(F312+VLOOKUP($A312,Economática!$A$3:$AI$823,26,FALSE))/Y312,(F312+VLOOKUP($A312,Economática!$A$3:$AI$823,26,FALSE))/Y312))","v":""},{"$f":"IF($A312=\"\",\"\",IF(OR(-VLOOKUP($A312,Economática!$A$3:$AI$823,27,FALSE)=0,-VLOOKUP($A312,Economática!$A$3:$AI$823,27,FALSE)=\"-\"),1/0,-VLOOKUP($A312,Economática!$A$3:$AI$823,27,FALSE)))","v":""},"",{"$f":"IF($A312=\"\",\"\",IF(OR(VLOOKUP($A312,Economática!$A$3:$AI$823,28,FALSE)=0,VLOOKUP($A312,Economática!$A$3:$AI$823,28,FALSE)=\"-\"),1/0,VLOOKUP($A312,Economática!$A$3:$AI$823,28,FALSE)))","v":""},{"$f":"IF($A312=\"\",\"\",IF(OR(VLOOKUP($A312,Economática!$A$3:$AI$823,29,FALSE)=0,VLOOKUP($A312,Economática!$A$3:$AI$823,29,FALSE)=\"-\"),1/0,VLOOKUP($A312,Economática!$A$3:$AI$823,29,FALSE)))","v":""},{"$f":"IF($A312=\"\",\"\",IF(OR(VLOOKUP($A312,Economática!$A$3:$AI$823,30,FALSE)/E312=0,VLOOKUP($A312,Economática!$A$3:$AI$823,30,FALSE)/E312=\"-\",VLOOKUP($A312,Economática!$A$3:$AI$823,30,FALSE)/E312<33.33%,VLOOKUP($A312,Economática!$A$3:$AI$823,30,FALSE)/E312>100%),1/0,VLOOKUP($A312,Economática!$A$3:$AI$823,30,FALSE)/E312))","v":""},"",{"$f":"IF($A312=\"\",\"\",IF(OR(VLOOKUP($A312,Economática!$A$3:$AI$823,25,FALSE)=0,VLOOKUP($A312,Economática!$A$3:$AI$823,25,FALSE)=\"-\"),1/0,VLOOKUP($A312,Economática!$A$3:$AI$823,25,FALSE)))","v":""},{"$f":"CONCATENATE(Economática!B290,\" \",Economática!C290)","v":" "}]
[{"$f":"IF(Economática!AG291=\"\",\"\",Economática!AG291)","v":""},{"$f":"IF($A313=\"\",\"\",VLOOKUP(VLOOKUP($A313,Economática!$A$3:$AI$823,6,FALSE),Correção!$B$16:$C$36,2,FALSE))","v":""},{"$f":"IF(Economática!B291=\"\",\"\",Economática!B291)","v":""},{"$f":"IF($A313=\"\",\"\",IF(OR(VLOOKUP($A313,Economática!$A$3:$AI$823,8,FALSE)=0,VLOOKUP($A313,Economática!$A$3:$AI$823,8,FALSE)=\"-\"),1/0,VLOOKUP($A313,Economática!$A$3:$AI$823,8,FALSE)))","v":""},{"$f":"IF(A313=\"\",\"\",IF(ISERROR(VLOOKUP(A313,Correção!$B$2:$G$13,9,FALSE)),VLOOKUP($A313,Economática!$A$3:$AI$823,9,FALSE),VLOOKUP(A313,Correção!$B$2:$G$13,9,FALSE)))","v":""},{"$f":"IF($A313=\"\",\"\",Economática!G291)","v":""},{"$f":"IF($A313=\"\",\"\",IF(OR(VLOOKUP($A313,Economática!$A$3:$AI$823,10,FALSE)=0,VLOOKUP($A313,Economática!$A$3:$AI$823,10,FALSE)=\"-\"),1/0,VLOOKUP($A313,Economática!$A$3:$AI$823,10,FALSE)))","v":""},{"$f":"IF($A313=\"\",\"\",IF(OR(VLOOKUP($A313,Economática!$A$3:$AI$823,11,FALSE)=0,VLOOKUP($A313,Economática!$A$3:$AI$823,11,FALSE)=\"-\"),1/0,VLOOKUP($A313,Economática!$A$3:$AI$823,11,FALSE)))","v":""},{"$f":"IF($A313=\"\",\"\",IF(OR(VLOOKUP($A313,Economática!$A$3:$AI$823,12,FALSE)=0,VLOOKUP($A313,Economática!$A$3:$AI$823,12,FALSE)=\"-\"),1/0,VLOOKUP($A313,Economática!$A$3:$AI$823,12,FALSE)))","v":""},{"$f":"IF($A313=\"\",\"\",IF(OR(VLOOKUP($A313,Economática!$A$3:$AI$823,13,FALSE)=0,VLOOKUP($A313,Economática!$A$3:$AI$823,13,FALSE)=\"-\"),1/0,VLOOKUP($A313,Economática!$A$3:$AI$823,13,FALSE)))","v":""},{"$f":"IF($A313=\"\",\"\",IF(OR(VLOOKUP($A313,Economática!$A$3:$AI$823,14,FALSE)=0,VLOOKUP($A313,Economática!$A$3:$AI$823,14,FALSE)=\"-\"),1/0,VLOOKUP($A313,Economática!$A$3:$AI$823,14,FALSE)))","v":""},{"$f":"IF($A313=\"\",\"\",IF(OR(VLOOKUP($A313,Economática!$A$3:$AI$823,15,FALSE)=0,VLOOKUP($A313,Economática!$A$3:$AI$823,15,FALSE)=\"-\"),1/0,VLOOKUP($A313,Economática!$A$3:$AI$823,15,FALSE)))","v":""},{"$f":"IF($A313=\"\",\"\",IF(OR(VLOOKUP($A313,Economática!$A$3:$AI$823,16,FALSE)=0,VLOOKUP($A313,Economática!$A$3:$AI$823,16,FALSE)=\"-\"),1/0,VLOOKUP($A313,Economática!$A$3:$AI$823,16,FALSE)))","v":""},{"$f":"IF($A313=\"\",\"\",IF(OR(VLOOKUP($A313,Economática!$A$3:$AI$823,17,FALSE)=0,VLOOKUP($A313,Economática!$A$3:$AI$823,17,FALSE)=\"-\"),1/0,VLOOKUP($A313,Economática!$A$3:$AI$823,17,FALSE)))","v":""},{"$f":"IF($A313=\"\",\"\",IF(OR(VLOOKUP($A313,Economática!$A$3:$AI$823,18,FALSE)=0,VLOOKUP($A313,Economática!$A$3:$AI$823,18,FALSE)=\"-\"),1/0,VLOOKUP($A313,Economática!$A$3:$AI$823,18,FALSE)))","v":""},{"$f":"IF($A313=\"\",\"\",IF(OR(VLOOKUP($A313,Economática!$A$3:$AI$823,19,FALSE)=0,VLOOKUP($A313,Economática!$A$3:$AI$823,19,FALSE)=\"-\"),1/0,VLOOKUP($A313,Economática!$A$3:$AI$823,19,FALSE)))","v":""},{"$f":"IF($A313=\"\",\"\",VLOOKUP($A313,Economática!$A$3:$AI$823,20,FALSE)/E313)","v":""},"","","",{"$f":"IF($A313=\"\",\"\",IF(OR(VLOOKUP($A313,Economática!$A$3:$AI$823,21,FALSE)/100=0,VLOOKUP($A313,Economática!$A$3:$AI$823,21,FALSE)/100=\"-\"),1/0,VLOOKUP($A313,Economática!$A$3:$AI$823,21,FALSE)/100))","v":""},{"$f":"IF($A313=\"\",\"\",IF(OR(VLOOKUP($A313,Economática!$A$3:$AI$823,22,FALSE)/100=0,VLOOKUP($A313,Economática!$A$3:$AI$823,22,FALSE)/100=\"-\"),1/0,VLOOKUP($A313,Economática!$A$3:$AI$823,22,FALSE)/100))","v":""},{"$f":"IF($A313=\"\",\"\",IF(OR(VLOOKUP($A313,Economática!$A$3:$AI$823,23,FALSE)=0,VLOOKUP($A313,Economática!$A$3:$AI$823,23,FALSE)=\"-\"),1/0,VLOOKUP($A313,Economática!$A$3:$AI$823,23,FALSE)))","v":""},{"$f":"IF($A313=\"\",\"\",IF(OR(VLOOKUP($A313,Economática!$A$3:$AI$823,24,FALSE)=0,VLOOKUP($A313,Economática!$A$3:$AI$823,24,FALSE)=\"-\"),1/0,VLOOKUP($A313,Economática!$A$3:$AI$823,24,FALSE)))","v":""},{"$f":"IF($A313=\"\",\"\",IF(OR(VLOOKUP($A313,Economática!$A$3:$AI$823,25,FALSE)=0,VLOOKUP($A313,Economática!$A$3:$AI$823,25,FALSE)=\"-\"),1/0,VLOOKUP($A313,Economática!$A$3:$AI$823,25,FALSE)))","v":""},{"$f":"IF($A313=\"\",\"\",IF(ISERROR((F313+VLOOKUP($A313,Economática!$A$3:$AI$823,26,FALSE))/Y313),(F313+VLOOKUP($A313,Economática!$A$3:$AI$823,26,FALSE))/Y313,(F313+VLOOKUP($A313,Economática!$A$3:$AI$823,26,FALSE))/Y313))","v":""},{"$f":"IF($A313=\"\",\"\",IF(OR(-VLOOKUP($A313,Economática!$A$3:$AI$823,27,FALSE)=0,-VLOOKUP($A313,Economática!$A$3:$AI$823,27,FALSE)=\"-\"),1/0,-VLOOKUP($A313,Economática!$A$3:$AI$823,27,FALSE)))","v":""},"",{"$f":"IF($A313=\"\",\"\",IF(OR(VLOOKUP($A313,Economática!$A$3:$AI$823,28,FALSE)=0,VLOOKUP($A313,Economática!$A$3:$AI$823,28,FALSE)=\"-\"),1/0,VLOOKUP($A313,Economática!$A$3:$AI$823,28,FALSE)))","v":""},{"$f":"IF($A313=\"\",\"\",IF(OR(VLOOKUP($A313,Economática!$A$3:$AI$823,29,FALSE)=0,VLOOKUP($A313,Economática!$A$3:$AI$823,29,FALSE)=\"-\"),1/0,VLOOKUP($A313,Economática!$A$3:$AI$823,29,FALSE)))","v":""},{"$f":"IF($A313=\"\",\"\",IF(OR(VLOOKUP($A313,Economática!$A$3:$AI$823,30,FALSE)/E313=0,VLOOKUP($A313,Economática!$A$3:$AI$823,30,FALSE)/E313=\"-\",VLOOKUP($A313,Economática!$A$3:$AI$823,30,FALSE)/E313<33.33%,VLOOKUP($A313,Economática!$A$3:$AI$823,30,FALSE)/E313>100%),1/0,VLOOKUP($A313,Economática!$A$3:$AI$823,30,FALSE)/E313))","v":""},"",{"$f":"IF($A313=\"\",\"\",IF(OR(VLOOKUP($A313,Economática!$A$3:$AI$823,25,FALSE)=0,VLOOKUP($A313,Economática!$A$3:$AI$823,25,FALSE)=\"-\"),1/0,VLOOKUP($A313,Economática!$A$3:$AI$823,25,FALSE)))","v":""},{"$f":"CONCATENATE(Economática!B291,\" \",Economática!C291)","v":" "}]
[{"$f":"IF(Economática!AG292=\"\",\"\",Economática!AG292)","v":""},{"$f":"IF($A314=\"\",\"\",VLOOKUP(VLOOKUP($A314,Economática!$A$3:$AI$823,6,FALSE),Correção!$B$16:$C$36,2,FALSE))","v":""},{"$f":"IF(Economática!B292=\"\",\"\",Economática!B292)","v":""},{"$f":"IF($A314=\"\",\"\",IF(OR(VLOOKUP($A314,Economática!$A$3:$AI$823,8,FALSE)=0,VLOOKUP($A314,Economática!$A$3:$AI$823,8,FALSE)=\"-\"),1/0,VLOOKUP($A314,Economática!$A$3:$AI$823,8,FALSE)))","v":""},{"$f":"IF(A314=\"\",\"\",IF(ISERROR(VLOOKUP(A314,Correção!$B$2:$G$13,9,FALSE)),VLOOKUP($A314,Economática!$A$3:$AI$823,9,FALSE),VLOOKUP(A314,Correção!$B$2:$G$13,9,FALSE)))","v":""},{"$f":"IF($A314=\"\",\"\",Economática!G292)","v":""},{"$f":"IF($A314=\"\",\"\",IF(OR(VLOOKUP($A314,Economática!$A$3:$AI$823,10,FALSE)=0,VLOOKUP($A314,Economática!$A$3:$AI$823,10,FALSE)=\"-\"),1/0,VLOOKUP($A314,Economática!$A$3:$AI$823,10,FALSE)))","v":""},{"$f":"IF($A314=\"\",\"\",IF(OR(VLOOKUP($A314,Economática!$A$3:$AI$823,11,FALSE)=0,VLOOKUP($A314,Economática!$A$3:$AI$823,11,FALSE)=\"-\"),1/0,VLOOKUP($A314,Economática!$A$3:$AI$823,11,FALSE)))","v":""},{"$f":"IF($A314=\"\",\"\",IF(OR(VLOOKUP($A314,Economática!$A$3:$AI$823,12,FALSE)=0,VLOOKUP($A314,Economática!$A$3:$AI$823,12,FALSE)=\"-\"),1/0,VLOOKUP($A314,Economática!$A$3:$AI$823,12,FALSE)))","v":""},{"$f":"IF($A314=\"\",\"\",IF(OR(VLOOKUP($A314,Economática!$A$3:$AI$823,13,FALSE)=0,VLOOKUP($A314,Economática!$A$3:$AI$823,13,FALSE)=\"-\"),1/0,VLOOKUP($A314,Economática!$A$3:$AI$823,13,FALSE)))","v":""},{"$f":"IF($A314=\"\",\"\",IF(OR(VLOOKUP($A314,Economática!$A$3:$AI$823,14,FALSE)=0,VLOOKUP($A314,Economática!$A$3:$AI$823,14,FALSE)=\"-\"),1/0,VLOOKUP($A314,Economática!$A$3:$AI$823,14,FALSE)))","v":""},{"$f":"IF($A314=\"\",\"\",IF(OR(VLOOKUP($A314,Economática!$A$3:$AI$823,15,FALSE)=0,VLOOKUP($A314,Economática!$A$3:$AI$823,15,FALSE)=\"-\"),1/0,VLOOKUP($A314,Economática!$A$3:$AI$823,15,FALSE)))","v":""},{"$f":"IF($A314=\"\",\"\",IF(OR(VLOOKUP($A314,Economática!$A$3:$AI$823,16,FALSE)=0,VLOOKUP($A314,Economática!$A$3:$AI$823,16,FALSE)=\"-\"),1/0,VLOOKUP($A314,Economática!$A$3:$AI$823,16,FALSE)))","v":""},{"$f":"IF($A314=\"\",\"\",IF(OR(VLOOKUP($A314,Economática!$A$3:$AI$823,17,FALSE)=0,VLOOKUP($A314,Economática!$A$3:$AI$823,17,FALSE)=\"-\"),1/0,VLOOKUP($A314,Economática!$A$3:$AI$823,17,FALSE)))","v":""},{"$f":"IF($A314=\"\",\"\",IF(OR(VLOOKUP($A314,Economática!$A$3:$AI$823,18,FALSE)=0,VLOOKUP($A314,Economática!$A$3:$AI$823,18,FALSE)=\"-\"),1/0,VLOOKUP($A314,Economática!$A$3:$AI$823,18,FALSE)))","v":""},{"$f":"IF($A314=\"\",\"\",IF(OR(VLOOKUP($A314,Economática!$A$3:$AI$823,19,FALSE)=0,VLOOKUP($A314,Economática!$A$3:$AI$823,19,FALSE)=\"-\"),1/0,VLOOKUP($A314,Economática!$A$3:$AI$823,19,FALSE)))","v":""},{"$f":"IF($A314=\"\",\"\",VLOOKUP($A314,Economática!$A$3:$AI$823,20,FALSE)/E314)","v":""},"","","",{"$f":"IF($A314=\"\",\"\",IF(OR(VLOOKUP($A314,Economática!$A$3:$AI$823,21,FALSE)/100=0,VLOOKUP($A314,Economática!$A$3:$AI$823,21,FALSE)/100=\"-\"),1/0,VLOOKUP($A314,Economática!$A$3:$AI$823,21,FALSE)/100))","v":""},{"$f":"IF($A314=\"\",\"\",IF(OR(VLOOKUP($A314,Economática!$A$3:$AI$823,22,FALSE)/100=0,VLOOKUP($A314,Economática!$A$3:$AI$823,22,FALSE)/100=\"-\"),1/0,VLOOKUP($A314,Economática!$A$3:$AI$823,22,FALSE)/100))","v":""},{"$f":"IF($A314=\"\",\"\",IF(OR(VLOOKUP($A314,Economática!$A$3:$AI$823,23,FALSE)=0,VLOOKUP($A314,Economática!$A$3:$AI$823,23,FALSE)=\"-\"),1/0,VLOOKUP($A314,Economática!$A$3:$AI$823,23,FALSE)))","v":""},{"$f":"IF($A314=\"\",\"\",IF(OR(VLOOKUP($A314,Economática!$A$3:$AI$823,24,FALSE)=0,VLOOKUP($A314,Economática!$A$3:$AI$823,24,FALSE)=\"-\"),1/0,VLOOKUP($A314,Economática!$A$3:$AI$823,24,FALSE)))","v":""},{"$f":"IF($A314=\"\",\"\",IF(OR(VLOOKUP($A314,Economática!$A$3:$AI$823,25,FALSE)=0,VLOOKUP($A314,Economática!$A$3:$AI$823,25,FALSE)=\"-\"),1/0,VLOOKUP($A314,Economática!$A$3:$AI$823,25,FALSE)))","v":""},{"$f":"IF($A314=\"\",\"\",IF(ISERROR((F314+VLOOKUP($A314,Economática!$A$3:$AI$823,26,FALSE))/Y314),(F314+VLOOKUP($A314,Economática!$A$3:$AI$823,26,FALSE))/Y314,(F314+VLOOKUP($A314,Economática!$A$3:$AI$823,26,FALSE))/Y314))","v":""},{"$f":"IF($A314=\"\",\"\",IF(OR(-VLOOKUP($A314,Economática!$A$3:$AI$823,27,FALSE)=0,-VLOOKUP($A314,Economática!$A$3:$AI$823,27,FALSE)=\"-\"),1/0,-VLOOKUP($A314,Economática!$A$3:$AI$823,27,FALSE)))","v":""},"",{"$f":"IF($A314=\"\",\"\",IF(OR(VLOOKUP($A314,Economática!$A$3:$AI$823,28,FALSE)=0,VLOOKUP($A314,Economática!$A$3:$AI$823,28,FALSE)=\"-\"),1/0,VLOOKUP($A314,Economática!$A$3:$AI$823,28,FALSE)))","v":""},{"$f":"IF($A314=\"\",\"\",IF(OR(VLOOKUP($A314,Economática!$A$3:$AI$823,29,FALSE)=0,VLOOKUP($A314,Economática!$A$3:$AI$823,29,FALSE)=\"-\"),1/0,VLOOKUP($A314,Economática!$A$3:$AI$823,29,FALSE)))","v":""},{"$f":"IF($A314=\"\",\"\",IF(OR(VLOOKUP($A314,Economática!$A$3:$AI$823,30,FALSE)/E314=0,VLOOKUP($A314,Economática!$A$3:$AI$823,30,FALSE)/E314=\"-\",VLOOKUP($A314,Economática!$A$3:$AI$823,30,FALSE)/E314<33.33%,VLOOKUP($A314,Economática!$A$3:$AI$823,30,FALSE)/E314>100%),1/0,VLOOKUP($A314,Economática!$A$3:$AI$823,30,FALSE)/E314))","v":""},"",{"$f":"IF($A314=\"\",\"\",IF(OR(VLOOKUP($A314,Economática!$A$3:$AI$823,25,FALSE)=0,VLOOKUP($A314,Economática!$A$3:$AI$823,25,FALSE)=\"-\"),1/0,VLOOKUP($A314,Economática!$A$3:$AI$823,25,FALSE)))","v":""},{"$f":"CONCATENATE(Economática!B292,\" \",Economática!C292)","v":" "}]
[{"$f":"IF(Economática!AG293=\"\",\"\",Economática!AG293)","v":""},{"$f":"IF($A315=\"\",\"\",VLOOKUP(VLOOKUP($A315,Economática!$A$3:$AI$823,6,FALSE),Correção!$B$16:$C$36,2,FALSE))","v":""},{"$f":"IF(Economática!B293=\"\",\"\",Economática!B293)","v":""},{"$f":"IF($A315=\"\",\"\",IF(OR(VLOOKUP($A315,Economática!$A$3:$AI$823,8,FALSE)=0,VLOOKUP($A315,Economática!$A$3:$AI$823,8,FALSE)=\"-\"),1/0,VLOOKUP($A315,Economática!$A$3:$AI$823,8,FALSE)))","v":""},{"$f":"IF(A315=\"\",\"\",IF(ISERROR(VLOOKUP(A315,Correção!$B$2:$G$13,9,FALSE)),VLOOKUP($A315,Economática!$A$3:$AI$823,9,FALSE),VLOOKUP(A315,Correção!$B$2:$G$13,9,FALSE)))","v":""},{"$f":"IF($A315=\"\",\"\",Economática!G293)","v":""},{"$f":"IF($A315=\"\",\"\",IF(OR(VLOOKUP($A315,Economática!$A$3:$AI$823,10,FALSE)=0,VLOOKUP($A315,Economática!$A$3:$AI$823,10,FALSE)=\"-\"),1/0,VLOOKUP($A315,Economática!$A$3:$AI$823,10,FALSE)))","v":""},{"$f":"IF($A315=\"\",\"\",IF(OR(VLOOKUP($A315,Economática!$A$3:$AI$823,11,FALSE)=0,VLOOKUP($A315,Economática!$A$3:$AI$823,11,FALSE)=\"-\"),1/0,VLOOKUP($A315,Economática!$A$3:$AI$823,11,FALSE)))","v":""},{"$f":"IF($A315=\"\",\"\",IF(OR(VLOOKUP($A315,Economática!$A$3:$AI$823,12,FALSE)=0,VLOOKUP($A315,Economática!$A$3:$AI$823,12,FALSE)=\"-\"),1/0,VLOOKUP($A315,Economática!$A$3:$AI$823,12,FALSE)))","v":""},{"$f":"IF($A315=\"\",\"\",IF(OR(VLOOKUP($A315,Economática!$A$3:$AI$823,13,FALSE)=0,VLOOKUP($A315,Economática!$A$3:$AI$823,13,FALSE)=\"-\"),1/0,VLOOKUP($A315,Economática!$A$3:$AI$823,13,FALSE)))","v":""},{"$f":"IF($A315=\"\",\"\",IF(OR(VLOOKUP($A315,Economática!$A$3:$AI$823,14,FALSE)=0,VLOOKUP($A315,Economática!$A$3:$AI$823,14,FALSE)=\"-\"),1/0,VLOOKUP($A315,Economática!$A$3:$AI$823,14,FALSE)))","v":""},{"$f":"IF($A315=\"\",\"\",IF(OR(VLOOKUP($A315,Economática!$A$3:$AI$823,15,FALSE)=0,VLOOKUP($A315,Economática!$A$3:$AI$823,15,FALSE)=\"-\"),1/0,VLOOKUP($A315,Economática!$A$3:$AI$823,15,FALSE)))","v":""},{"$f":"IF($A315=\"\",\"\",IF(OR(VLOOKUP($A315,Economática!$A$3:$AI$823,16,FALSE)=0,VLOOKUP($A315,Economática!$A$3:$AI$823,16,FALSE)=\"-\"),1/0,VLOOKUP($A315,Economática!$A$3:$AI$823,16,FALSE)))","v":""},{"$f":"IF($A315=\"\",\"\",IF(OR(VLOOKUP($A315,Economática!$A$3:$AI$823,17,FALSE)=0,VLOOKUP($A315,Economática!$A$3:$AI$823,17,FALSE)=\"-\"),1/0,VLOOKUP($A315,Economática!$A$3:$AI$823,17,FALSE)))","v":""},{"$f":"IF($A315=\"\",\"\",IF(OR(VLOOKUP($A315,Economática!$A$3:$AI$823,18,FALSE)=0,VLOOKUP($A315,Economática!$A$3:$AI$823,18,FALSE)=\"-\"),1/0,VLOOKUP($A315,Economática!$A$3:$AI$823,18,FALSE)))","v":""},{"$f":"IF($A315=\"\",\"\",IF(OR(VLOOKUP($A315,Economática!$A$3:$AI$823,19,FALSE)=0,VLOOKUP($A315,Economática!$A$3:$AI$823,19,FALSE)=\"-\"),1/0,VLOOKUP($A315,Economática!$A$3:$AI$823,19,FALSE)))","v":""},{"$f":"IF($A315=\"\",\"\",VLOOKUP($A315,Economática!$A$3:$AI$823,20,FALSE)/E315)","v":""},"","","",{"$f":"IF($A315=\"\",\"\",IF(OR(VLOOKUP($A315,Economática!$A$3:$AI$823,21,FALSE)/100=0,VLOOKUP($A315,Economática!$A$3:$AI$823,21,FALSE)/100=\"-\"),1/0,VLOOKUP($A315,Economática!$A$3:$AI$823,21,FALSE)/100))","v":""},{"$f":"IF($A315=\"\",\"\",IF(OR(VLOOKUP($A315,Economática!$A$3:$AI$823,22,FALSE)/100=0,VLOOKUP($A315,Economática!$A$3:$AI$823,22,FALSE)/100=\"-\"),1/0,VLOOKUP($A315,Economática!$A$3:$AI$823,22,FALSE)/100))","v":""},{"$f":"IF($A315=\"\",\"\",IF(OR(VLOOKUP($A315,Economática!$A$3:$AI$823,23,FALSE)=0,VLOOKUP($A315,Economática!$A$3:$AI$823,23,FALSE)=\"-\"),1/0,VLOOKUP($A315,Economática!$A$3:$AI$823,23,FALSE)))","v":""},{"$f":"IF($A315=\"\",\"\",IF(OR(VLOOKUP($A315,Economática!$A$3:$AI$823,24,FALSE)=0,VLOOKUP($A315,Economática!$A$3:$AI$823,24,FALSE)=\"-\"),1/0,VLOOKUP($A315,Economática!$A$3:$AI$823,24,FALSE)))","v":""},{"$f":"IF($A315=\"\",\"\",IF(OR(VLOOKUP($A315,Economática!$A$3:$AI$823,25,FALSE)=0,VLOOKUP($A315,Economática!$A$3:$AI$823,25,FALSE)=\"-\"),1/0,VLOOKUP($A315,Economática!$A$3:$AI$823,25,FALSE)))","v":""},{"$f":"IF($A315=\"\",\"\",IF(ISERROR((F315+VLOOKUP($A315,Economática!$A$3:$AI$823,26,FALSE))/Y315),(F315+VLOOKUP($A315,Economática!$A$3:$AI$823,26,FALSE))/Y315,(F315+VLOOKUP($A315,Economática!$A$3:$AI$823,26,FALSE))/Y315))","v":""},{"$f":"IF($A315=\"\",\"\",IF(OR(-VLOOKUP($A315,Economática!$A$3:$AI$823,27,FALSE)=0,-VLOOKUP($A315,Economática!$A$3:$AI$823,27,FALSE)=\"-\"),1/0,-VLOOKUP($A315,Economática!$A$3:$AI$823,27,FALSE)))","v":""},"",{"$f":"IF($A315=\"\",\"\",IF(OR(VLOOKUP($A315,Economática!$A$3:$AI$823,28,FALSE)=0,VLOOKUP($A315,Economática!$A$3:$AI$823,28,FALSE)=\"-\"),1/0,VLOOKUP($A315,Economática!$A$3:$AI$823,28,FALSE)))","v":""},{"$f":"IF($A315=\"\",\"\",IF(OR(VLOOKUP($A315,Economática!$A$3:$AI$823,29,FALSE)=0,VLOOKUP($A315,Economática!$A$3:$AI$823,29,FALSE)=\"-\"),1/0,VLOOKUP($A315,Economática!$A$3:$AI$823,29,FALSE)))","v":""},{"$f":"IF($A315=\"\",\"\",IF(OR(VLOOKUP($A315,Economática!$A$3:$AI$823,30,FALSE)/E315=0,VLOOKUP($A315,Economática!$A$3:$AI$823,30,FALSE)/E315=\"-\",VLOOKUP($A315,Economática!$A$3:$AI$823,30,FALSE)/E315<33.33%,VLOOKUP($A315,Economática!$A$3:$AI$823,30,FALSE)/E315>100%),1/0,VLOOKUP($A315,Economática!$A$3:$AI$823,30,FALSE)/E315))","v":""},"",{"$f":"IF($A315=\"\",\"\",IF(OR(VLOOKUP($A315,Economática!$A$3:$AI$823,25,FALSE)=0,VLOOKUP($A315,Economática!$A$3:$AI$823,25,FALSE)=\"-\"),1/0,VLOOKUP($A315,Economática!$A$3:$AI$823,25,FALSE)))","v":""},{"$f":"CONCATENATE(Economática!B293,\" \",Economática!C293)","v":" "}]
[{"$f":"IF(Economática!AG294=\"\",\"\",Economática!AG294)","v":""},{"$f":"IF($A316=\"\",\"\",VLOOKUP(VLOOKUP($A316,Economática!$A$3:$AI$823,6,FALSE),Correção!$B$16:$C$36,2,FALSE))","v":""},{"$f":"IF(Economática!B294=\"\",\"\",Economática!B294)","v":""},{"$f":"IF($A316=\"\",\"\",IF(OR(VLOOKUP($A316,Economática!$A$3:$AI$823,8,FALSE)=0,VLOOKUP($A316,Economática!$A$3:$AI$823,8,FALSE)=\"-\"),1/0,VLOOKUP($A316,Economática!$A$3:$AI$823,8,FALSE)))","v":""},{"$f":"IF(A316=\"\",\"\",IF(ISERROR(VLOOKUP(A316,Correção!$B$2:$G$13,9,FALSE)),VLOOKUP($A316,Economática!$A$3:$AI$823,9,FALSE),VLOOKUP(A316,Correção!$B$2:$G$13,9,FALSE)))","v":""},{"$f":"IF($A316=\"\",\"\",Economática!G294)","v":""},{"$f":"IF($A316=\"\",\"\",IF(OR(VLOOKUP($A316,Economática!$A$3:$AI$823,10,FALSE)=0,VLOOKUP($A316,Economática!$A$3:$AI$823,10,FALSE)=\"-\"),1/0,VLOOKUP($A316,Economática!$A$3:$AI$823,10,FALSE)))","v":""},{"$f":"IF($A316=\"\",\"\",IF(OR(VLOOKUP($A316,Economática!$A$3:$AI$823,11,FALSE)=0,VLOOKUP($A316,Economática!$A$3:$AI$823,11,FALSE)=\"-\"),1/0,VLOOKUP($A316,Economática!$A$3:$AI$823,11,FALSE)))","v":""},{"$f":"IF($A316=\"\",\"\",IF(OR(VLOOKUP($A316,Economática!$A$3:$AI$823,12,FALSE)=0,VLOOKUP($A316,Economática!$A$3:$AI$823,12,FALSE)=\"-\"),1/0,VLOOKUP($A316,Economática!$A$3:$AI$823,12,FALSE)))","v":""},{"$f":"IF($A316=\"\",\"\",IF(OR(VLOOKUP($A316,Economática!$A$3:$AI$823,13,FALSE)=0,VLOOKUP($A316,Economática!$A$3:$AI$823,13,FALSE)=\"-\"),1/0,VLOOKUP($A316,Economática!$A$3:$AI$823,13,FALSE)))","v":""},{"$f":"IF($A316=\"\",\"\",IF(OR(VLOOKUP($A316,Economática!$A$3:$AI$823,14,FALSE)=0,VLOOKUP($A316,Economática!$A$3:$AI$823,14,FALSE)=\"-\"),1/0,VLOOKUP($A316,Economática!$A$3:$AI$823,14,FALSE)))","v":""},{"$f":"IF($A316=\"\",\"\",IF(OR(VLOOKUP($A316,Economática!$A$3:$AI$823,15,FALSE)=0,VLOOKUP($A316,Economática!$A$3:$AI$823,15,FALSE)=\"-\"),1/0,VLOOKUP($A316,Economática!$A$3:$AI$823,15,FALSE)))","v":""},{"$f":"IF($A316=\"\",\"\",IF(OR(VLOOKUP($A316,Economática!$A$3:$AI$823,16,FALSE)=0,VLOOKUP($A316,Economática!$A$3:$AI$823,16,FALSE)=\"-\"),1/0,VLOOKUP($A316,Economática!$A$3:$AI$823,16,FALSE)))","v":""},{"$f":"IF($A316=\"\",\"\",IF(OR(VLOOKUP($A316,Economática!$A$3:$AI$823,17,FALSE)=0,VLOOKUP($A316,Economática!$A$3:$AI$823,17,FALSE)=\"-\"),1/0,VLOOKUP($A316,Economática!$A$3:$AI$823,17,FALSE)))","v":""},{"$f":"IF($A316=\"\",\"\",IF(OR(VLOOKUP($A316,Economática!$A$3:$AI$823,18,FALSE)=0,VLOOKUP($A316,Economática!$A$3:$AI$823,18,FALSE)=\"-\"),1/0,VLOOKUP($A316,Economática!$A$3:$AI$823,18,FALSE)))","v":""},{"$f":"IF($A316=\"\",\"\",IF(OR(VLOOKUP($A316,Economática!$A$3:$AI$823,19,FALSE)=0,VLOOKUP($A316,Economática!$A$3:$AI$823,19,FALSE)=\"-\"),1/0,VLOOKUP($A316,Economática!$A$3:$AI$823,19,FALSE)))","v":""},{"$f":"IF($A316=\"\",\"\",VLOOKUP($A316,Economática!$A$3:$AI$823,20,FALSE)/E316)","v":""},"","","",{"$f":"IF($A316=\"\",\"\",IF(OR(VLOOKUP($A316,Economática!$A$3:$AI$823,21,FALSE)/100=0,VLOOKUP($A316,Economática!$A$3:$AI$823,21,FALSE)/100=\"-\"),1/0,VLOOKUP($A316,Economática!$A$3:$AI$823,21,FALSE)/100))","v":""},{"$f":"IF($A316=\"\",\"\",IF(OR(VLOOKUP($A316,Economática!$A$3:$AI$823,22,FALSE)/100=0,VLOOKUP($A316,Economática!$A$3:$AI$823,22,FALSE)/100=\"-\"),1/0,VLOOKUP($A316,Economática!$A$3:$AI$823,22,FALSE)/100))","v":""},{"$f":"IF($A316=\"\",\"\",IF(OR(VLOOKUP($A316,Economática!$A$3:$AI$823,23,FALSE)=0,VLOOKUP($A316,Economática!$A$3:$AI$823,23,FALSE)=\"-\"),1/0,VLOOKUP($A316,Economática!$A$3:$AI$823,23,FALSE)))","v":""},{"$f":"IF($A316=\"\",\"\",IF(OR(VLOOKUP($A316,Economática!$A$3:$AI$823,24,FALSE)=0,VLOOKUP($A316,Economática!$A$3:$AI$823,24,FALSE)=\"-\"),1/0,VLOOKUP($A316,Economática!$A$3:$AI$823,24,FALSE)))","v":""},{"$f":"IF($A316=\"\",\"\",IF(OR(VLOOKUP($A316,Economática!$A$3:$AI$823,25,FALSE)=0,VLOOKUP($A316,Economática!$A$3:$AI$823,25,FALSE)=\"-\"),1/0,VLOOKUP($A316,Economática!$A$3:$AI$823,25,FALSE)))","v":""},{"$f":"IF($A316=\"\",\"\",IF(ISERROR((F316+VLOOKUP($A316,Economática!$A$3:$AI$823,26,FALSE))/Y316),(F316+VLOOKUP($A316,Economática!$A$3:$AI$823,26,FALSE))/Y316,(F316+VLOOKUP($A316,Economática!$A$3:$AI$823,26,FALSE))/Y316))","v":""},{"$f":"IF($A316=\"\",\"\",IF(OR(-VLOOKUP($A316,Economática!$A$3:$AI$823,27,FALSE)=0,-VLOOKUP($A316,Economática!$A$3:$AI$823,27,FALSE)=\"-\"),1/0,-VLOOKUP($A316,Economática!$A$3:$AI$823,27,FALSE)))","v":""},"",{"$f":"IF($A316=\"\",\"\",IF(OR(VLOOKUP($A316,Economática!$A$3:$AI$823,28,FALSE)=0,VLOOKUP($A316,Economática!$A$3:$AI$823,28,FALSE)=\"-\"),1/0,VLOOKUP($A316,Economática!$A$3:$AI$823,28,FALSE)))","v":""},{"$f":"IF($A316=\"\",\"\",IF(OR(VLOOKUP($A316,Economática!$A$3:$AI$823,29,FALSE)=0,VLOOKUP($A316,Economática!$A$3:$AI$823,29,FALSE)=\"-\"),1/0,VLOOKUP($A316,Economática!$A$3:$AI$823,29,FALSE)))","v":""},{"$f":"IF($A316=\"\",\"\",IF(OR(VLOOKUP($A316,Economática!$A$3:$AI$823,30,FALSE)/E316=0,VLOOKUP($A316,Economática!$A$3:$AI$823,30,FALSE)/E316=\"-\",VLOOKUP($A316,Economática!$A$3:$AI$823,30,FALSE)/E316<33.33%,VLOOKUP($A316,Economática!$A$3:$AI$823,30,FALSE)/E316>100%),1/0,VLOOKUP($A316,Economática!$A$3:$AI$823,30,FALSE)/E316))","v":""},"",{"$f":"IF($A316=\"\",\"\",IF(OR(VLOOKUP($A316,Economática!$A$3:$AI$823,25,FALSE)=0,VLOOKUP($A316,Economática!$A$3:$AI$823,25,FALSE)=\"-\"),1/0,VLOOKUP($A316,Economática!$A$3:$AI$823,25,FALSE)))","v":""},{"$f":"CONCATENATE(Economática!B294,\" \",Economática!C294)","v":" "}]
[{"$f":"IF(Economática!AG295=\"\",\"\",Economática!AG295)","v":""},{"$f":"IF($A317=\"\",\"\",VLOOKUP(VLOOKUP($A317,Economática!$A$3:$AI$823,6,FALSE),Correção!$B$16:$C$36,2,FALSE))","v":""},{"$f":"IF(Economática!B295=\"\",\"\",Economática!B295)","v":""},{"$f":"IF($A317=\"\",\"\",IF(OR(VLOOKUP($A317,Economática!$A$3:$AI$823,8,FALSE)=0,VLOOKUP($A317,Economática!$A$3:$AI$823,8,FALSE)=\"-\"),1/0,VLOOKUP($A317,Economática!$A$3:$AI$823,8,FALSE)))","v":""},{"$f":"IF(A317=\"\",\"\",IF(ISERROR(VLOOKUP(A317,Correção!$B$2:$G$13,9,FALSE)),VLOOKUP($A317,Economática!$A$3:$AI$823,9,FALSE),VLOOKUP(A317,Correção!$B$2:$G$13,9,FALSE)))","v":""},{"$f":"IF($A317=\"\",\"\",Economática!G295)","v":""},{"$f":"IF($A317=\"\",\"\",IF(OR(VLOOKUP($A317,Economática!$A$3:$AI$823,10,FALSE)=0,VLOOKUP($A317,Economática!$A$3:$AI$823,10,FALSE)=\"-\"),1/0,VLOOKUP($A317,Economática!$A$3:$AI$823,10,FALSE)))","v":""},{"$f":"IF($A317=\"\",\"\",IF(OR(VLOOKUP($A317,Economática!$A$3:$AI$823,11,FALSE)=0,VLOOKUP($A317,Economática!$A$3:$AI$823,11,FALSE)=\"-\"),1/0,VLOOKUP($A317,Economática!$A$3:$AI$823,11,FALSE)))","v":""},{"$f":"IF($A317=\"\",\"\",IF(OR(VLOOKUP($A317,Economática!$A$3:$AI$823,12,FALSE)=0,VLOOKUP($A317,Economática!$A$3:$AI$823,12,FALSE)=\"-\"),1/0,VLOOKUP($A317,Economática!$A$3:$AI$823,12,FALSE)))","v":""},{"$f":"IF($A317=\"\",\"\",IF(OR(VLOOKUP($A317,Economática!$A$3:$AI$823,13,FALSE)=0,VLOOKUP($A317,Economática!$A$3:$AI$823,13,FALSE)=\"-\"),1/0,VLOOKUP($A317,Economática!$A$3:$AI$823,13,FALSE)))","v":""},{"$f":"IF($A317=\"\",\"\",IF(OR(VLOOKUP($A317,Economática!$A$3:$AI$823,14,FALSE)=0,VLOOKUP($A317,Economática!$A$3:$AI$823,14,FALSE)=\"-\"),1/0,VLOOKUP($A317,Economática!$A$3:$AI$823,14,FALSE)))","v":""},{"$f":"IF($A317=\"\",\"\",IF(OR(VLOOKUP($A317,Economática!$A$3:$AI$823,15,FALSE)=0,VLOOKUP($A317,Economática!$A$3:$AI$823,15,FALSE)=\"-\"),1/0,VLOOKUP($A317,Economática!$A$3:$AI$823,15,FALSE)))","v":""},{"$f":"IF($A317=\"\",\"\",IF(OR(VLOOKUP($A317,Economática!$A$3:$AI$823,16,FALSE)=0,VLOOKUP($A317,Economática!$A$3:$AI$823,16,FALSE)=\"-\"),1/0,VLOOKUP($A317,Economática!$A$3:$AI$823,16,FALSE)))","v":""},{"$f":"IF($A317=\"\",\"\",IF(OR(VLOOKUP($A317,Economática!$A$3:$AI$823,17,FALSE)=0,VLOOKUP($A317,Economática!$A$3:$AI$823,17,FALSE)=\"-\"),1/0,VLOOKUP($A317,Economática!$A$3:$AI$823,17,FALSE)))","v":""},{"$f":"IF($A317=\"\",\"\",IF(OR(VLOOKUP($A317,Economática!$A$3:$AI$823,18,FALSE)=0,VLOOKUP($A317,Economática!$A$3:$AI$823,18,FALSE)=\"-\"),1/0,VLOOKUP($A317,Economática!$A$3:$AI$823,18,FALSE)))","v":""},{"$f":"IF($A317=\"\",\"\",IF(OR(VLOOKUP($A317,Economática!$A$3:$AI$823,19,FALSE)=0,VLOOKUP($A317,Economática!$A$3:$AI$823,19,FALSE)=\"-\"),1/0,VLOOKUP($A317,Economática!$A$3:$AI$823,19,FALSE)))","v":""},{"$f":"IF($A317=\"\",\"\",VLOOKUP($A317,Economática!$A$3:$AI$823,20,FALSE)/E317)","v":""},"","","",{"$f":"IF($A317=\"\",\"\",IF(OR(VLOOKUP($A317,Economática!$A$3:$AI$823,21,FALSE)/100=0,VLOOKUP($A317,Economática!$A$3:$AI$823,21,FALSE)/100=\"-\"),1/0,VLOOKUP($A317,Economática!$A$3:$AI$823,21,FALSE)/100))","v":""},{"$f":"IF($A317=\"\",\"\",IF(OR(VLOOKUP($A317,Economática!$A$3:$AI$823,22,FALSE)/100=0,VLOOKUP($A317,Economática!$A$3:$AI$823,22,FALSE)/100=\"-\"),1/0,VLOOKUP($A317,Economática!$A$3:$AI$823,22,FALSE)/100))","v":""},{"$f":"IF($A317=\"\",\"\",IF(OR(VLOOKUP($A317,Economática!$A$3:$AI$823,23,FALSE)=0,VLOOKUP($A317,Economática!$A$3:$AI$823,23,FALSE)=\"-\"),1/0,VLOOKUP($A317,Economática!$A$3:$AI$823,23,FALSE)))","v":""},{"$f":"IF($A317=\"\",\"\",IF(OR(VLOOKUP($A317,Economática!$A$3:$AI$823,24,FALSE)=0,VLOOKUP($A317,Economática!$A$3:$AI$823,24,FALSE)=\"-\"),1/0,VLOOKUP($A317,Economática!$A$3:$AI$823,24,FALSE)))","v":""},{"$f":"IF($A317=\"\",\"\",IF(OR(VLOOKUP($A317,Economática!$A$3:$AI$823,25,FALSE)=0,VLOOKUP($A317,Economática!$A$3:$AI$823,25,FALSE)=\"-\"),1/0,VLOOKUP($A317,Economática!$A$3:$AI$823,25,FALSE)))","v":""},{"$f":"IF($A317=\"\",\"\",IF(ISERROR((F317+VLOOKUP($A317,Economática!$A$3:$AI$823,26,FALSE))/Y317),(F317+VLOOKUP($A317,Economática!$A$3:$AI$823,26,FALSE))/Y317,(F317+VLOOKUP($A317,Economática!$A$3:$AI$823,26,FALSE))/Y317))","v":""},{"$f":"IF($A317=\"\",\"\",IF(OR(-VLOOKUP($A317,Economática!$A$3:$AI$823,27,FALSE)=0,-VLOOKUP($A317,Economática!$A$3:$AI$823,27,FALSE)=\"-\"),1/0,-VLOOKUP($A317,Economática!$A$3:$AI$823,27,FALSE)))","v":""},"",{"$f":"IF($A317=\"\",\"\",IF(OR(VLOOKUP($A317,Economática!$A$3:$AI$823,28,FALSE)=0,VLOOKUP($A317,Economática!$A$3:$AI$823,28,FALSE)=\"-\"),1/0,VLOOKUP($A317,Economática!$A$3:$AI$823,28,FALSE)))","v":""},{"$f":"IF($A317=\"\",\"\",IF(OR(VLOOKUP($A317,Economática!$A$3:$AI$823,29,FALSE)=0,VLOOKUP($A317,Economática!$A$3:$AI$823,29,FALSE)=\"-\"),1/0,VLOOKUP($A317,Economática!$A$3:$AI$823,29,FALSE)))","v":""},{"$f":"IF($A317=\"\",\"\",IF(OR(VLOOKUP($A317,Economática!$A$3:$AI$823,30,FALSE)/E317=0,VLOOKUP($A317,Economática!$A$3:$AI$823,30,FALSE)/E317=\"-\",VLOOKUP($A317,Economática!$A$3:$AI$823,30,FALSE)/E317<33.33%,VLOOKUP($A317,Economática!$A$3:$AI$823,30,FALSE)/E317>100%),1/0,VLOOKUP($A317,Economática!$A$3:$AI$823,30,FALSE)/E317))","v":""},"",{"$f":"IF($A317=\"\",\"\",IF(OR(VLOOKUP($A317,Economática!$A$3:$AI$823,25,FALSE)=0,VLOOKUP($A317,Economática!$A$3:$AI$823,25,FALSE)=\"-\"),1/0,VLOOKUP($A317,Economática!$A$3:$AI$823,25,FALSE)))","v":""},{"$f":"CONCATENATE(Economática!B295,\" \",Economática!C295)","v":" "}]
[{"$f":"IF(Economática!AG296=\"\",\"\",Economática!AG296)","v":""},{"$f":"IF($A318=\"\",\"\",VLOOKUP(VLOOKUP($A318,Economática!$A$3:$AI$823,6,FALSE),Correção!$B$16:$C$36,2,FALSE))","v":""},{"$f":"IF(Economática!B296=\"\",\"\",Economática!B296)","v":""},{"$f":"IF($A318=\"\",\"\",IF(OR(VLOOKUP($A318,Economática!$A$3:$AI$823,8,FALSE)=0,VLOOKUP($A318,Economática!$A$3:$AI$823,8,FALSE)=\"-\"),1/0,VLOOKUP($A318,Economática!$A$3:$AI$823,8,FALSE)))","v":""},{"$f":"IF(A318=\"\",\"\",IF(ISERROR(VLOOKUP(A318,Correção!$B$2:$G$13,9,FALSE)),VLOOKUP($A318,Economática!$A$3:$AI$823,9,FALSE),VLOOKUP(A318,Correção!$B$2:$G$13,9,FALSE)))","v":""},{"$f":"IF($A318=\"\",\"\",Economática!G296)","v":""},{"$f":"IF($A318=\"\",\"\",IF(OR(VLOOKUP($A318,Economática!$A$3:$AI$823,10,FALSE)=0,VLOOKUP($A318,Economática!$A$3:$AI$823,10,FALSE)=\"-\"),1/0,VLOOKUP($A318,Economática!$A$3:$AI$823,10,FALSE)))","v":""},{"$f":"IF($A318=\"\",\"\",IF(OR(VLOOKUP($A318,Economática!$A$3:$AI$823,11,FALSE)=0,VLOOKUP($A318,Economática!$A$3:$AI$823,11,FALSE)=\"-\"),1/0,VLOOKUP($A318,Economática!$A$3:$AI$823,11,FALSE)))","v":""},{"$f":"IF($A318=\"\",\"\",IF(OR(VLOOKUP($A318,Economática!$A$3:$AI$823,12,FALSE)=0,VLOOKUP($A318,Economática!$A$3:$AI$823,12,FALSE)=\"-\"),1/0,VLOOKUP($A318,Economática!$A$3:$AI$823,12,FALSE)))","v":""},{"$f":"IF($A318=\"\",\"\",IF(OR(VLOOKUP($A318,Economática!$A$3:$AI$823,13,FALSE)=0,VLOOKUP($A318,Economática!$A$3:$AI$823,13,FALSE)=\"-\"),1/0,VLOOKUP($A318,Economática!$A$3:$AI$823,13,FALSE)))","v":""},{"$f":"IF($A318=\"\",\"\",IF(OR(VLOOKUP($A318,Economática!$A$3:$AI$823,14,FALSE)=0,VLOOKUP($A318,Economática!$A$3:$AI$823,14,FALSE)=\"-\"),1/0,VLOOKUP($A318,Economática!$A$3:$AI$823,14,FALSE)))","v":""},{"$f":"IF($A318=\"\",\"\",IF(OR(VLOOKUP($A318,Economática!$A$3:$AI$823,15,FALSE)=0,VLOOKUP($A318,Economática!$A$3:$AI$823,15,FALSE)=\"-\"),1/0,VLOOKUP($A318,Economática!$A$3:$AI$823,15,FALSE)))","v":""},{"$f":"IF($A318=\"\",\"\",IF(OR(VLOOKUP($A318,Economática!$A$3:$AI$823,16,FALSE)=0,VLOOKUP($A318,Economática!$A$3:$AI$823,16,FALSE)=\"-\"),1/0,VLOOKUP($A318,Economática!$A$3:$AI$823,16,FALSE)))","v":""},{"$f":"IF($A318=\"\",\"\",IF(OR(VLOOKUP($A318,Economática!$A$3:$AI$823,17,FALSE)=0,VLOOKUP($A318,Economática!$A$3:$AI$823,17,FALSE)=\"-\"),1/0,VLOOKUP($A318,Economática!$A$3:$AI$823,17,FALSE)))","v":""},{"$f":"IF($A318=\"\",\"\",IF(OR(VLOOKUP($A318,Economática!$A$3:$AI$823,18,FALSE)=0,VLOOKUP($A318,Economática!$A$3:$AI$823,18,FALSE)=\"-\"),1/0,VLOOKUP($A318,Economática!$A$3:$AI$823,18,FALSE)))","v":""},{"$f":"IF($A318=\"\",\"\",IF(OR(VLOOKUP($A318,Economática!$A$3:$AI$823,19,FALSE)=0,VLOOKUP($A318,Economática!$A$3:$AI$823,19,FALSE)=\"-\"),1/0,VLOOKUP($A318,Economática!$A$3:$AI$823,19,FALSE)))","v":""},{"$f":"IF($A318=\"\",\"\",VLOOKUP($A318,Economática!$A$3:$AI$823,20,FALSE)/E318)","v":""},"","","",{"$f":"IF($A318=\"\",\"\",IF(OR(VLOOKUP($A318,Economática!$A$3:$AI$823,21,FALSE)/100=0,VLOOKUP($A318,Economática!$A$3:$AI$823,21,FALSE)/100=\"-\"),1/0,VLOOKUP($A318,Economática!$A$3:$AI$823,21,FALSE)/100))","v":""},{"$f":"IF($A318=\"\",\"\",IF(OR(VLOOKUP($A318,Economática!$A$3:$AI$823,22,FALSE)/100=0,VLOOKUP($A318,Economática!$A$3:$AI$823,22,FALSE)/100=\"-\"),1/0,VLOOKUP($A318,Economática!$A$3:$AI$823,22,FALSE)/100))","v":""},{"$f":"IF($A318=\"\",\"\",IF(OR(VLOOKUP($A318,Economática!$A$3:$AI$823,23,FALSE)=0,VLOOKUP($A318,Economática!$A$3:$AI$823,23,FALSE)=\"-\"),1/0,VLOOKUP($A318,Economática!$A$3:$AI$823,23,FALSE)))","v":""},{"$f":"IF($A318=\"\",\"\",IF(OR(VLOOKUP($A318,Economática!$A$3:$AI$823,24,FALSE)=0,VLOOKUP($A318,Economática!$A$3:$AI$823,24,FALSE)=\"-\"),1/0,VLOOKUP($A318,Economática!$A$3:$AI$823,24,FALSE)))","v":""},{"$f":"IF($A318=\"\",\"\",IF(OR(VLOOKUP($A318,Economática!$A$3:$AI$823,25,FALSE)=0,VLOOKUP($A318,Economática!$A$3:$AI$823,25,FALSE)=\"-\"),1/0,VLOOKUP($A318,Economática!$A$3:$AI$823,25,FALSE)))","v":""},{"$f":"IF($A318=\"\",\"\",IF(ISERROR((F318+VLOOKUP($A318,Economática!$A$3:$AI$823,26,FALSE))/Y318),(F318+VLOOKUP($A318,Economática!$A$3:$AI$823,26,FALSE))/Y318,(F318+VLOOKUP($A318,Economática!$A$3:$AI$823,26,FALSE))/Y318))","v":""},{"$f":"IF($A318=\"\",\"\",IF(OR(-VLOOKUP($A318,Economática!$A$3:$AI$823,27,FALSE)=0,-VLOOKUP($A318,Economática!$A$3:$AI$823,27,FALSE)=\"-\"),1/0,-VLOOKUP($A318,Economática!$A$3:$AI$823,27,FALSE)))","v":""},"",{"$f":"IF($A318=\"\",\"\",IF(OR(VLOOKUP($A318,Economática!$A$3:$AI$823,28,FALSE)=0,VLOOKUP($A318,Economática!$A$3:$AI$823,28,FALSE)=\"-\"),1/0,VLOOKUP($A318,Economática!$A$3:$AI$823,28,FALSE)))","v":""},{"$f":"IF($A318=\"\",\"\",IF(OR(VLOOKUP($A318,Economática!$A$3:$AI$823,29,FALSE)=0,VLOOKUP($A318,Economática!$A$3:$AI$823,29,FALSE)=\"-\"),1/0,VLOOKUP($A318,Economática!$A$3:$AI$823,29,FALSE)))","v":""},{"$f":"IF($A318=\"\",\"\",IF(OR(VLOOKUP($A318,Economática!$A$3:$AI$823,30,FALSE)/E318=0,VLOOKUP($A318,Economática!$A$3:$AI$823,30,FALSE)/E318=\"-\",VLOOKUP($A318,Economática!$A$3:$AI$823,30,FALSE)/E318<33.33%,VLOOKUP($A318,Economática!$A$3:$AI$823,30,FALSE)/E318>100%),1/0,VLOOKUP($A318,Economática!$A$3:$AI$823,30,FALSE)/E318))","v":""},"",{"$f":"IF($A318=\"\",\"\",IF(OR(VLOOKUP($A318,Economática!$A$3:$AI$823,25,FALSE)=0,VLOOKUP($A318,Economática!$A$3:$AI$823,25,FALSE)=\"-\"),1/0,VLOOKUP($A318,Economática!$A$3:$AI$823,25,FALSE)))","v":""},{"$f":"CONCATENATE(Economática!B296,\" \",Economática!C296)","v":" "}]
[{"$f":"IF(Economática!AG297=\"\",\"\",Economática!AG297)","v":""},{"$f":"IF($A319=\"\",\"\",VLOOKUP(VLOOKUP($A319,Economática!$A$3:$AI$823,6,FALSE),Correção!$B$16:$C$36,2,FALSE))","v":""},{"$f":"IF(Economática!B297=\"\",\"\",Economática!B297)","v":""},{"$f":"IF($A319=\"\",\"\",IF(OR(VLOOKUP($A319,Economática!$A$3:$AI$823,8,FALSE)=0,VLOOKUP($A319,Economática!$A$3:$AI$823,8,FALSE)=\"-\"),1/0,VLOOKUP($A319,Economática!$A$3:$AI$823,8,FALSE)))","v":""},{"$f":"IF(A319=\"\",\"\",IF(ISERROR(VLOOKUP(A319,Correção!$B$2:$G$13,9,FALSE)),VLOOKUP($A319,Economática!$A$3:$AI$823,9,FALSE),VLOOKUP(A319,Correção!$B$2:$G$13,9,FALSE)))","v":""},{"$f":"IF($A319=\"\",\"\",Economática!G297)","v":""},{"$f":"IF($A319=\"\",\"\",IF(OR(VLOOKUP($A319,Economática!$A$3:$AI$823,10,FALSE)=0,VLOOKUP($A319,Economática!$A$3:$AI$823,10,FALSE)=\"-\"),1/0,VLOOKUP($A319,Economática!$A$3:$AI$823,10,FALSE)))","v":""},{"$f":"IF($A319=\"\",\"\",IF(OR(VLOOKUP($A319,Economática!$A$3:$AI$823,11,FALSE)=0,VLOOKUP($A319,Economática!$A$3:$AI$823,11,FALSE)=\"-\"),1/0,VLOOKUP($A319,Economática!$A$3:$AI$823,11,FALSE)))","v":""},{"$f":"IF($A319=\"\",\"\",IF(OR(VLOOKUP($A319,Economática!$A$3:$AI$823,12,FALSE)=0,VLOOKUP($A319,Economática!$A$3:$AI$823,12,FALSE)=\"-\"),1/0,VLOOKUP($A319,Economática!$A$3:$AI$823,12,FALSE)))","v":""},{"$f":"IF($A319=\"\",\"\",IF(OR(VLOOKUP($A319,Economática!$A$3:$AI$823,13,FALSE)=0,VLOOKUP($A319,Economática!$A$3:$AI$823,13,FALSE)=\"-\"),1/0,VLOOKUP($A319,Economática!$A$3:$AI$823,13,FALSE)))","v":""},{"$f":"IF($A319=\"\",\"\",IF(OR(VLOOKUP($A319,Economática!$A$3:$AI$823,14,FALSE)=0,VLOOKUP($A319,Economática!$A$3:$AI$823,14,FALSE)=\"-\"),1/0,VLOOKUP($A319,Economática!$A$3:$AI$823,14,FALSE)))","v":""},{"$f":"IF($A319=\"\",\"\",IF(OR(VLOOKUP($A319,Economática!$A$3:$AI$823,15,FALSE)=0,VLOOKUP($A319,Economática!$A$3:$AI$823,15,FALSE)=\"-\"),1/0,VLOOKUP($A319,Economática!$A$3:$AI$823,15,FALSE)))","v":""},{"$f":"IF($A319=\"\",\"\",IF(OR(VLOOKUP($A319,Economática!$A$3:$AI$823,16,FALSE)=0,VLOOKUP($A319,Economática!$A$3:$AI$823,16,FALSE)=\"-\"),1/0,VLOOKUP($A319,Economática!$A$3:$AI$823,16,FALSE)))","v":""},{"$f":"IF($A319=\"\",\"\",IF(OR(VLOOKUP($A319,Economática!$A$3:$AI$823,17,FALSE)=0,VLOOKUP($A319,Economática!$A$3:$AI$823,17,FALSE)=\"-\"),1/0,VLOOKUP($A319,Economática!$A$3:$AI$823,17,FALSE)))","v":""},{"$f":"IF($A319=\"\",\"\",IF(OR(VLOOKUP($A319,Economática!$A$3:$AI$823,18,FALSE)=0,VLOOKUP($A319,Economática!$A$3:$AI$823,18,FALSE)=\"-\"),1/0,VLOOKUP($A319,Economática!$A$3:$AI$823,18,FALSE)))","v":""},{"$f":"IF($A319=\"\",\"\",IF(OR(VLOOKUP($A319,Economática!$A$3:$AI$823,19,FALSE)=0,VLOOKUP($A319,Economática!$A$3:$AI$823,19,FALSE)=\"-\"),1/0,VLOOKUP($A319,Economática!$A$3:$AI$823,19,FALSE)))","v":""},{"$f":"IF($A319=\"\",\"\",VLOOKUP($A319,Economática!$A$3:$AI$823,20,FALSE)/E319)","v":""},{"$f":"IF($A319=\"\",\"\",IF((G319/E319)<=0,1/0,G319/E319))","v":""},{"$f":"IF($A319=\"\",\"\",D319/R319)","v":""},{"$f":"IF($A319=\"\",\"\",IF((D319/Q319)<=0,1/0,D319/Q319))","v":""},{"$f":"IF($A319=\"\",\"\",IF(OR(VLOOKUP($A319,Economática!$A$3:$AI$823,21,FALSE)/100=0,VLOOKUP($A319,Economática!$A$3:$AI$823,21,FALSE)/100=\"-\"),1/0,VLOOKUP($A319,Economática!$A$3:$AI$823,21,FALSE)/100))","v":""},{"$f":"IF($A319=\"\",\"\",IF(OR(VLOOKUP($A319,Economática!$A$3:$AI$823,22,FALSE)/100=0,VLOOKUP($A319,Economática!$A$3:$AI$823,22,FALSE)/100=\"-\"),1/0,VLOOKUP($A319,Economática!$A$3:$AI$823,22,FALSE)/100))","v":""},{"$f":"IF($A319=\"\",\"\",IF(OR(VLOOKUP($A319,Economática!$A$3:$AI$823,23,FALSE)=0,VLOOKUP($A319,Economática!$A$3:$AI$823,23,FALSE)=\"-\"),1/0,VLOOKUP($A319,Economática!$A$3:$AI$823,23,FALSE)))","v":""},{"$f":"IF($A319=\"\",\"\",IF(OR(VLOOKUP($A319,Economática!$A$3:$AI$823,24,FALSE)=0,VLOOKUP($A319,Economática!$A$3:$AI$823,24,FALSE)=\"-\"),1/0,VLOOKUP($A319,Economática!$A$3:$AI$823,24,FALSE)))","v":""},{"$f":"IF($A319=\"\",\"\",IF(OR(VLOOKUP($A319,Economática!$A$3:$AI$823,25,FALSE)=0,VLOOKUP($A319,Economática!$A$3:$AI$823,25,FALSE)=\"-\"),1/0,VLOOKUP($A319,Economática!$A$3:$AI$823,25,FALSE)))","v":""},{"$f":"IF($A319=\"\",\"\",IF(ISERROR((F319+VLOOKUP($A319,Economática!$A$3:$AI$823,26,FALSE))/Y319),(F319+VLOOKUP($A319,Economática!$A$3:$AI$823,26,FALSE))/Y319,(F319+VLOOKUP($A319,Economática!$A$3:$AI$823,26,FALSE))/Y319))","v":""},{"$f":"IF($A319=\"\",\"\",IF(OR(-VLOOKUP($A319,Economática!$A$3:$AI$823,27,FALSE)=0,-VLOOKUP($A319,Economática!$A$3:$AI$823,27,FALSE)=\"-\"),1/0,-VLOOKUP($A319,Economática!$A$3:$AI$823,27,FALSE)))","v":""},{"$f":"IF(A319=\"\",\"\",AA319/F319)","v":""},{"$f":"IF($A319=\"\",\"\",IF(OR(VLOOKUP($A319,Economática!$A$3:$AI$823,28,FALSE)=0,VLOOKUP($A319,Economática!$A$3:$AI$823,28,FALSE)=\"-\"),1/0,VLOOKUP($A319,Economática!$A$3:$AI$823,28,FALSE)))","v":""},{"$f":"IF($A319=\"\",\"\",IF(OR(VLOOKUP($A319,Economática!$A$3:$AI$823,29,FALSE)=0,VLOOKUP($A319,Economática!$A$3:$AI$823,29,FALSE)=\"-\"),1/0,VLOOKUP($A319,Economática!$A$3:$AI$823,29,FALSE)))","v":""},{"$f":"IF($A319=\"\",\"\",IF(OR(VLOOKUP($A319,Economática!$A$3:$AI$823,30,FALSE)/E319=0,VLOOKUP($A319,Economática!$A$3:$AI$823,30,FALSE)/E319=\"-\",VLOOKUP($A319,Economática!$A$3:$AI$823,30,FALSE)/E319<33.33%,VLOOKUP($A319,Economática!$A$3:$AI$823,30,FALSE)/E319>100%),1/0,VLOOKUP($A319,Economática!$A$3:$AI$823,30,FALSE)/E319))","v":""},{"$f":"IF(A319=\"\",\"\",A319)","v":""},{"$f":"IF($A319=\"\",\"\",IF(OR(VLOOKUP($A319,Economática!$A$3:$AI$823,25,FALSE)=0,VLOOKUP($A319,Economática!$A$3:$AI$823,25,FALSE)=\"-\"),1/0,VLOOKUP($A319,Economática!$A$3:$AI$823,25,FALSE)))","v":""},{"$f":"CONCATENATE(Economática!B297,\" \",Economática!C297)","v":" "}]
[{"$f":"IF(Economática!AG298=\"\",\"\",Economática!AG298)","v":""},{"$f":"IF($A320=\"\",\"\",VLOOKUP(VLOOKUP($A320,Economática!$A$3:$AI$823,6,FALSE),Correção!$B$16:$C$36,2,FALSE))","v":""},{"$f":"IF(Economática!B298=\"\",\"\",Economática!B298)","v":""},{"$f":"IF($A320=\"\",\"\",IF(OR(VLOOKUP($A320,Economática!$A$3:$AI$823,8,FALSE)=0,VLOOKUP($A320,Economática!$A$3:$AI$823,8,FALSE)=\"-\"),1/0,VLOOKUP($A320,Economática!$A$3:$AI$823,8,FALSE)))","v":""},{"$f":"IF(A320=\"\",\"\",IF(ISERROR(VLOOKUP(A320,Correção!$B$2:$G$13,9,FALSE)),VLOOKUP($A320,Economática!$A$3:$AI$823,9,FALSE),VLOOKUP(A320,Correção!$B$2:$G$13,9,FALSE)))","v":""},{"$f":"IF($A320=\"\",\"\",Economática!G298)","v":""},{"$f":"IF($A320=\"\",\"\",IF(OR(VLOOKUP($A320,Economática!$A$3:$AI$823,10,FALSE)=0,VLOOKUP($A320,Economática!$A$3:$AI$823,10,FALSE)=\"-\"),1/0,VLOOKUP($A320,Economática!$A$3:$AI$823,10,FALSE)))","v":""},{"$f":"IF($A320=\"\",\"\",IF(OR(VLOOKUP($A320,Economática!$A$3:$AI$823,11,FALSE)=0,VLOOKUP($A320,Economática!$A$3:$AI$823,11,FALSE)=\"-\"),1/0,VLOOKUP($A320,Economática!$A$3:$AI$823,11,FALSE)))","v":""},{"$f":"IF($A320=\"\",\"\",IF(OR(VLOOKUP($A320,Economática!$A$3:$AI$823,12,FALSE)=0,VLOOKUP($A320,Economática!$A$3:$AI$823,12,FALSE)=\"-\"),1/0,VLOOKUP($A320,Economática!$A$3:$AI$823,12,FALSE)))","v":""},{"$f":"IF($A320=\"\",\"\",IF(OR(VLOOKUP($A320,Economática!$A$3:$AI$823,13,FALSE)=0,VLOOKUP($A320,Economática!$A$3:$AI$823,13,FALSE)=\"-\"),1/0,VLOOKUP($A320,Economática!$A$3:$AI$823,13,FALSE)))","v":""},{"$f":"IF($A320=\"\",\"\",IF(OR(VLOOKUP($A320,Economática!$A$3:$AI$823,14,FALSE)=0,VLOOKUP($A320,Economática!$A$3:$AI$823,14,FALSE)=\"-\"),1/0,VLOOKUP($A320,Economática!$A$3:$AI$823,14,FALSE)))","v":""},{"$f":"IF($A320=\"\",\"\",IF(OR(VLOOKUP($A320,Economática!$A$3:$AI$823,15,FALSE)=0,VLOOKUP($A320,Economática!$A$3:$AI$823,15,FALSE)=\"-\"),1/0,VLOOKUP($A320,Economática!$A$3:$AI$823,15,FALSE)))","v":""},{"$f":"IF($A320=\"\",\"\",IF(OR(VLOOKUP($A320,Economática!$A$3:$AI$823,16,FALSE)=0,VLOOKUP($A320,Economática!$A$3:$AI$823,16,FALSE)=\"-\"),1/0,VLOOKUP($A320,Economática!$A$3:$AI$823,16,FALSE)))","v":""},{"$f":"IF($A320=\"\",\"\",IF(OR(VLOOKUP($A320,Economática!$A$3:$AI$823,17,FALSE)=0,VLOOKUP($A320,Economática!$A$3:$AI$823,17,FALSE)=\"-\"),1/0,VLOOKUP($A320,Economática!$A$3:$AI$823,17,FALSE)))","v":""},{"$f":"IF($A320=\"\",\"\",IF(OR(VLOOKUP($A320,Economática!$A$3:$AI$823,18,FALSE)=0,VLOOKUP($A320,Economática!$A$3:$AI$823,18,FALSE)=\"-\"),1/0,VLOOKUP($A320,Economática!$A$3:$AI$823,18,FALSE)))","v":""},{"$f":"IF($A320=\"\",\"\",IF(OR(VLOOKUP($A320,Economática!$A$3:$AI$823,19,FALSE)=0,VLOOKUP($A320,Economática!$A$3:$AI$823,19,FALSE)=\"-\"),1/0,VLOOKUP($A320,Economática!$A$3:$AI$823,19,FALSE)))","v":""},{"$f":"IF($A320=\"\",\"\",VLOOKUP($A320,Economática!$A$3:$AI$823,20,FALSE)/E320)","v":""},"","","",{"$f":"IF($A320=\"\",\"\",IF(OR(VLOOKUP($A320,Economática!$A$3:$AI$823,21,FALSE)/100=0,VLOOKUP($A320,Economática!$A$3:$AI$823,21,FALSE)/100=\"-\"),1/0,VLOOKUP($A320,Economática!$A$3:$AI$823,21,FALSE)/100))","v":""},{"$f":"IF($A320=\"\",\"\",IF(OR(VLOOKUP($A320,Economática!$A$3:$AI$823,22,FALSE)/100=0,VLOOKUP($A320,Economática!$A$3:$AI$823,22,FALSE)/100=\"-\"),1/0,VLOOKUP($A320,Economática!$A$3:$AI$823,22,FALSE)/100))","v":""},{"$f":"IF($A320=\"\",\"\",IF(OR(VLOOKUP($A320,Economática!$A$3:$AI$823,23,FALSE)=0,VLOOKUP($A320,Economática!$A$3:$AI$823,23,FALSE)=\"-\"),1/0,VLOOKUP($A320,Economática!$A$3:$AI$823,23,FALSE)))","v":""},{"$f":"IF($A320=\"\",\"\",IF(OR(VLOOKUP($A320,Economática!$A$3:$AI$823,24,FALSE)=0,VLOOKUP($A320,Economática!$A$3:$AI$823,24,FALSE)=\"-\"),1/0,VLOOKUP($A320,Economática!$A$3:$AI$823,24,FALSE)))","v":""},{"$f":"IF($A320=\"\",\"\",IF(OR(VLOOKUP($A320,Economática!$A$3:$AI$823,25,FALSE)=0,VLOOKUP($A320,Economática!$A$3:$AI$823,25,FALSE)=\"-\"),1/0,VLOOKUP($A320,Economática!$A$3:$AI$823,25,FALSE)))","v":""},{"$f":"IF($A320=\"\",\"\",IF(ISERROR((F320+VLOOKUP($A320,Economática!$A$3:$AI$823,26,FALSE))/Y320),(F320+VLOOKUP($A320,Economática!$A$3:$AI$823,26,FALSE))/Y320,(F320+VLOOKUP($A320,Economática!$A$3:$AI$823,26,FALSE))/Y320))","v":""},{"$f":"IF($A320=\"\",\"\",IF(OR(-VLOOKUP($A320,Economática!$A$3:$AI$823,27,FALSE)=0,-VLOOKUP($A320,Economática!$A$3:$AI$823,27,FALSE)=\"-\"),1/0,-VLOOKUP($A320,Economática!$A$3:$AI$823,27,FALSE)))","v":""},"",{"$f":"IF($A320=\"\",\"\",IF(OR(VLOOKUP($A320,Economática!$A$3:$AI$823,28,FALSE)=0,VLOOKUP($A320,Economática!$A$3:$AI$823,28,FALSE)=\"-\"),1/0,VLOOKUP($A320,Economática!$A$3:$AI$823,28,FALSE)))","v":""},{"$f":"IF($A320=\"\",\"\",IF(OR(VLOOKUP($A320,Economática!$A$3:$AI$823,29,FALSE)=0,VLOOKUP($A320,Economática!$A$3:$AI$823,29,FALSE)=\"-\"),1/0,VLOOKUP($A320,Economática!$A$3:$AI$823,29,FALSE)))","v":""},{"$f":"IF($A320=\"\",\"\",IF(OR(VLOOKUP($A320,Economática!$A$3:$AI$823,30,FALSE)/E320=0,VLOOKUP($A320,Economática!$A$3:$AI$823,30,FALSE)/E320=\"-\",VLOOKUP($A320,Economática!$A$3:$AI$823,30,FALSE)/E320<33.33%,VLOOKUP($A320,Economática!$A$3:$AI$823,30,FALSE)/E320>100%),1/0,VLOOKUP($A320,Economática!$A$3:$AI$823,30,FALSE)/E320))","v":""},"",{"$f":"IF($A320=\"\",\"\",IF(OR(VLOOKUP($A320,Economática!$A$3:$AI$823,25,FALSE)=0,VLOOKUP($A320,Economática!$A$3:$AI$823,25,FALSE)=\"-\"),1/0,VLOOKUP($A320,Economática!$A$3:$AI$823,25,FALSE)))","v":""},{"$f":"CONCATENATE(Economática!B298,\" \",Economática!C298)","v":" "}]
[{"$f":"IF(Economática!AG299=\"\",\"\",Economática!AG299)","v":""},{"$f":"IF($A321=\"\",\"\",VLOOKUP(VLOOKUP($A321,Economática!$A$3:$AI$823,6,FALSE),Correção!$B$16:$C$36,2,FALSE))","v":""},{"$f":"IF(Economática!B299=\"\",\"\",Economática!B299)","v":""},{"$f":"IF($A321=\"\",\"\",IF(OR(VLOOKUP($A321,Economática!$A$3:$AI$823,8,FALSE)=0,VLOOKUP($A321,Economática!$A$3:$AI$823,8,FALSE)=\"-\"),1/0,VLOOKUP($A321,Economática!$A$3:$AI$823,8,FALSE)))","v":""},{"$f":"IF(A321=\"\",\"\",IF(ISERROR(VLOOKUP(A321,Correção!$B$2:$G$13,9,FALSE)),VLOOKUP($A321,Economática!$A$3:$AI$823,9,FALSE),VLOOKUP(A321,Correção!$B$2:$G$13,9,FALSE)))","v":""},{"$f":"IF($A321=\"\",\"\",Economática!G299)","v":""},{"$f":"IF($A321=\"\",\"\",IF(OR(VLOOKUP($A321,Economática!$A$3:$AI$823,10,FALSE)=0,VLOOKUP($A321,Economática!$A$3:$AI$823,10,FALSE)=\"-\"),1/0,VLOOKUP($A321,Economática!$A$3:$AI$823,10,FALSE)))","v":""},{"$f":"IF($A321=\"\",\"\",IF(OR(VLOOKUP($A321,Economática!$A$3:$AI$823,11,FALSE)=0,VLOOKUP($A321,Economática!$A$3:$AI$823,11,FALSE)=\"-\"),1/0,VLOOKUP($A321,Economática!$A$3:$AI$823,11,FALSE)))","v":""},{"$f":"IF($A321=\"\",\"\",IF(OR(VLOOKUP($A321,Economática!$A$3:$AI$823,12,FALSE)=0,VLOOKUP($A321,Economática!$A$3:$AI$823,12,FALSE)=\"-\"),1/0,VLOOKUP($A321,Economática!$A$3:$AI$823,12,FALSE)))","v":""},{"$f":"IF($A321=\"\",\"\",IF(OR(VLOOKUP($A321,Economática!$A$3:$AI$823,13,FALSE)=0,VLOOKUP($A321,Economática!$A$3:$AI$823,13,FALSE)=\"-\"),1/0,VLOOKUP($A321,Economática!$A$3:$AI$823,13,FALSE)))","v":""},{"$f":"IF($A321=\"\",\"\",IF(OR(VLOOKUP($A321,Economática!$A$3:$AI$823,14,FALSE)=0,VLOOKUP($A321,Economática!$A$3:$AI$823,14,FALSE)=\"-\"),1/0,VLOOKUP($A321,Economática!$A$3:$AI$823,14,FALSE)))","v":""},{"$f":"IF($A321=\"\",\"\",IF(OR(VLOOKUP($A321,Economática!$A$3:$AI$823,15,FALSE)=0,VLOOKUP($A321,Economática!$A$3:$AI$823,15,FALSE)=\"-\"),1/0,VLOOKUP($A321,Economática!$A$3:$AI$823,15,FALSE)))","v":""},{"$f":"IF($A321=\"\",\"\",IF(OR(VLOOKUP($A321,Economática!$A$3:$AI$823,16,FALSE)=0,VLOOKUP($A321,Economática!$A$3:$AI$823,16,FALSE)=\"-\"),1/0,VLOOKUP($A321,Economática!$A$3:$AI$823,16,FALSE)))","v":""},{"$f":"IF($A321=\"\",\"\",IF(OR(VLOOKUP($A321,Economática!$A$3:$AI$823,17,FALSE)=0,VLOOKUP($A321,Economática!$A$3:$AI$823,17,FALSE)=\"-\"),1/0,VLOOKUP($A321,Economática!$A$3:$AI$823,17,FALSE)))","v":""},{"$f":"IF($A321=\"\",\"\",IF(OR(VLOOKUP($A321,Economática!$A$3:$AI$823,18,FALSE)=0,VLOOKUP($A321,Economática!$A$3:$AI$823,18,FALSE)=\"-\"),1/0,VLOOKUP($A321,Economática!$A$3:$AI$823,18,FALSE)))","v":""},{"$f":"IF($A321=\"\",\"\",IF(OR(VLOOKUP($A321,Economática!$A$3:$AI$823,19,FALSE)=0,VLOOKUP($A321,Economática!$A$3:$AI$823,19,FALSE)=\"-\"),1/0,VLOOKUP($A321,Economática!$A$3:$AI$823,19,FALSE)))","v":""},{"$f":"IF($A321=\"\",\"\",VLOOKUP($A321,Economática!$A$3:$AI$823,20,FALSE)/E321)","v":""},"","","",{"$f":"IF($A321=\"\",\"\",IF(OR(VLOOKUP($A321,Economática!$A$3:$AI$823,21,FALSE)/100=0,VLOOKUP($A321,Economática!$A$3:$AI$823,21,FALSE)/100=\"-\"),1/0,VLOOKUP($A321,Economática!$A$3:$AI$823,21,FALSE)/100))","v":""},{"$f":"IF($A321=\"\",\"\",IF(OR(VLOOKUP($A321,Economática!$A$3:$AI$823,22,FALSE)/100=0,VLOOKUP($A321,Economática!$A$3:$AI$823,22,FALSE)/100=\"-\"),1/0,VLOOKUP($A321,Economática!$A$3:$AI$823,22,FALSE)/100))","v":""},{"$f":"IF($A321=\"\",\"\",IF(OR(VLOOKUP($A321,Economática!$A$3:$AI$823,23,FALSE)=0,VLOOKUP($A321,Economática!$A$3:$AI$823,23,FALSE)=\"-\"),1/0,VLOOKUP($A321,Economática!$A$3:$AI$823,23,FALSE)))","v":""},{"$f":"IF($A321=\"\",\"\",IF(OR(VLOOKUP($A321,Economática!$A$3:$AI$823,24,FALSE)=0,VLOOKUP($A321,Economática!$A$3:$AI$823,24,FALSE)=\"-\"),1/0,VLOOKUP($A321,Economática!$A$3:$AI$823,24,FALSE)))","v":""},{"$f":"IF($A321=\"\",\"\",IF(OR(VLOOKUP($A321,Economática!$A$3:$AI$823,25,FALSE)=0,VLOOKUP($A321,Economática!$A$3:$AI$823,25,FALSE)=\"-\"),1/0,VLOOKUP($A321,Economática!$A$3:$AI$823,25,FALSE)))","v":""},{"$f":"IF($A321=\"\",\"\",IF(ISERROR((F321+VLOOKUP($A321,Economática!$A$3:$AI$823,26,FALSE))/Y321),(F321+VLOOKUP($A321,Economática!$A$3:$AI$823,26,FALSE))/Y321,(F321+VLOOKUP($A321,Economática!$A$3:$AI$823,26,FALSE))/Y321))","v":""},{"$f":"IF($A321=\"\",\"\",IF(OR(-VLOOKUP($A321,Economática!$A$3:$AI$823,27,FALSE)=0,-VLOOKUP($A321,Economática!$A$3:$AI$823,27,FALSE)=\"-\"),1/0,-VLOOKUP($A321,Economática!$A$3:$AI$823,27,FALSE)))","v":""},"",{"$f":"IF($A321=\"\",\"\",IF(OR(VLOOKUP($A321,Economática!$A$3:$AI$823,28,FALSE)=0,VLOOKUP($A321,Economática!$A$3:$AI$823,28,FALSE)=\"-\"),1/0,VLOOKUP($A321,Economática!$A$3:$AI$823,28,FALSE)))","v":""},{"$f":"IF($A321=\"\",\"\",IF(OR(VLOOKUP($A321,Economática!$A$3:$AI$823,29,FALSE)=0,VLOOKUP($A321,Economática!$A$3:$AI$823,29,FALSE)=\"-\"),1/0,VLOOKUP($A321,Economática!$A$3:$AI$823,29,FALSE)))","v":""},{"$f":"IF($A321=\"\",\"\",IF(OR(VLOOKUP($A321,Economática!$A$3:$AI$823,30,FALSE)/E321=0,VLOOKUP($A321,Economática!$A$3:$AI$823,30,FALSE)/E321=\"-\",VLOOKUP($A321,Economática!$A$3:$AI$823,30,FALSE)/E321<33.33%,VLOOKUP($A321,Economática!$A$3:$AI$823,30,FALSE)/E321>100%),1/0,VLOOKUP($A321,Economática!$A$3:$AI$823,30,FALSE)/E321))","v":""},"",{"$f":"IF($A321=\"\",\"\",IF(OR(VLOOKUP($A321,Economática!$A$3:$AI$823,25,FALSE)=0,VLOOKUP($A321,Economática!$A$3:$AI$823,25,FALSE)=\"-\"),1/0,VLOOKUP($A321,Economática!$A$3:$AI$823,25,FALSE)))","v":""},{"$f":"CONCATENATE(Economática!B299,\" \",Economática!C299)","v":" "}]
[{"$f":"IF(Economática!AG300=\"\",\"\",Economática!AG300)","v":""},{"$f":"IF($A322=\"\",\"\",VLOOKUP(VLOOKUP($A322,Economática!$A$3:$AI$823,6,FALSE),Correção!$B$16:$C$36,2,FALSE))","v":""},{"$f":"IF(Economática!B300=\"\",\"\",Economática!B300)","v":""},{"$f":"IF($A322=\"\",\"\",IF(OR(VLOOKUP($A322,Economática!$A$3:$AI$823,8,FALSE)=0,VLOOKUP($A322,Economática!$A$3:$AI$823,8,FALSE)=\"-\"),1/0,VLOOKUP($A322,Economática!$A$3:$AI$823,8,FALSE)))","v":""},{"$f":"IF(A322=\"\",\"\",IF(ISERROR(VLOOKUP(A322,Correção!$B$2:$G$13,9,FALSE)),VLOOKUP($A322,Economática!$A$3:$AI$823,9,FALSE),VLOOKUP(A322,Correção!$B$2:$G$13,9,FALSE)))","v":""},{"$f":"IF($A322=\"\",\"\",Economática!G300)","v":""},{"$f":"IF($A322=\"\",\"\",IF(OR(VLOOKUP($A322,Economática!$A$3:$AI$823,10,FALSE)=0,VLOOKUP($A322,Economática!$A$3:$AI$823,10,FALSE)=\"-\"),1/0,VLOOKUP($A322,Economática!$A$3:$AI$823,10,FALSE)))","v":""},{"$f":"IF($A322=\"\",\"\",IF(OR(VLOOKUP($A322,Economática!$A$3:$AI$823,11,FALSE)=0,VLOOKUP($A322,Economática!$A$3:$AI$823,11,FALSE)=\"-\"),1/0,VLOOKUP($A322,Economática!$A$3:$AI$823,11,FALSE)))","v":""},{"$f":"IF($A322=\"\",\"\",IF(OR(VLOOKUP($A322,Economática!$A$3:$AI$823,12,FALSE)=0,VLOOKUP($A322,Economática!$A$3:$AI$823,12,FALSE)=\"-\"),1/0,VLOOKUP($A322,Economática!$A$3:$AI$823,12,FALSE)))","v":""},{"$f":"IF($A322=\"\",\"\",IF(OR(VLOOKUP($A322,Economática!$A$3:$AI$823,13,FALSE)=0,VLOOKUP($A322,Economática!$A$3:$AI$823,13,FALSE)=\"-\"),1/0,VLOOKUP($A322,Economática!$A$3:$AI$823,13,FALSE)))","v":""},{"$f":"IF($A322=\"\",\"\",IF(OR(VLOOKUP($A322,Economática!$A$3:$AI$823,14,FALSE)=0,VLOOKUP($A322,Economática!$A$3:$AI$823,14,FALSE)=\"-\"),1/0,VLOOKUP($A322,Economática!$A$3:$AI$823,14,FALSE)))","v":""},{"$f":"IF($A322=\"\",\"\",IF(OR(VLOOKUP($A322,Economática!$A$3:$AI$823,15,FALSE)=0,VLOOKUP($A322,Economática!$A$3:$AI$823,15,FALSE)=\"-\"),1/0,VLOOKUP($A322,Economática!$A$3:$AI$823,15,FALSE)))","v":""},{"$f":"IF($A322=\"\",\"\",IF(OR(VLOOKUP($A322,Economática!$A$3:$AI$823,16,FALSE)=0,VLOOKUP($A322,Economática!$A$3:$AI$823,16,FALSE)=\"-\"),1/0,VLOOKUP($A322,Economática!$A$3:$AI$823,16,FALSE)))","v":""},{"$f":"IF($A322=\"\",\"\",IF(OR(VLOOKUP($A322,Economática!$A$3:$AI$823,17,FALSE)=0,VLOOKUP($A322,Economática!$A$3:$AI$823,17,FALSE)=\"-\"),1/0,VLOOKUP($A322,Economática!$A$3:$AI$823,17,FALSE)))","v":""},{"$f":"IF($A322=\"\",\"\",IF(OR(VLOOKUP($A322,Economática!$A$3:$AI$823,18,FALSE)=0,VLOOKUP($A322,Economática!$A$3:$AI$823,18,FALSE)=\"-\"),1/0,VLOOKUP($A322,Economática!$A$3:$AI$823,18,FALSE)))","v":""},{"$f":"IF($A322=\"\",\"\",IF(OR(VLOOKUP($A322,Economática!$A$3:$AI$823,19,FALSE)=0,VLOOKUP($A322,Economática!$A$3:$AI$823,19,FALSE)=\"-\"),1/0,VLOOKUP($A322,Economática!$A$3:$AI$823,19,FALSE)))","v":""},{"$f":"IF($A322=\"\",\"\",VLOOKUP($A322,Economática!$A$3:$AI$823,20,FALSE)/E322)","v":""},"","","",{"$f":"IF($A322=\"\",\"\",IF(OR(VLOOKUP($A322,Economática!$A$3:$AI$823,21,FALSE)/100=0,VLOOKUP($A322,Economática!$A$3:$AI$823,21,FALSE)/100=\"-\"),1/0,VLOOKUP($A322,Economática!$A$3:$AI$823,21,FALSE)/100))","v":""},{"$f":"IF($A322=\"\",\"\",IF(OR(VLOOKUP($A322,Economática!$A$3:$AI$823,22,FALSE)/100=0,VLOOKUP($A322,Economática!$A$3:$AI$823,22,FALSE)/100=\"-\"),1/0,VLOOKUP($A322,Economática!$A$3:$AI$823,22,FALSE)/100))","v":""},{"$f":"IF($A322=\"\",\"\",IF(OR(VLOOKUP($A322,Economática!$A$3:$AI$823,23,FALSE)=0,VLOOKUP($A322,Economática!$A$3:$AI$823,23,FALSE)=\"-\"),1/0,VLOOKUP($A322,Economática!$A$3:$AI$823,23,FALSE)))","v":""},{"$f":"IF($A322=\"\",\"\",IF(OR(VLOOKUP($A322,Economática!$A$3:$AI$823,24,FALSE)=0,VLOOKUP($A322,Economática!$A$3:$AI$823,24,FALSE)=\"-\"),1/0,VLOOKUP($A322,Economática!$A$3:$AI$823,24,FALSE)))","v":""},{"$f":"IF($A322=\"\",\"\",IF(OR(VLOOKUP($A322,Economática!$A$3:$AI$823,25,FALSE)=0,VLOOKUP($A322,Economática!$A$3:$AI$823,25,FALSE)=\"-\"),1/0,VLOOKUP($A322,Economática!$A$3:$AI$823,25,FALSE)))","v":""},{"$f":"IF($A322=\"\",\"\",IF(ISERROR((F322+VLOOKUP($A322,Economática!$A$3:$AI$823,26,FALSE))/Y322),(F322+VLOOKUP($A322,Economática!$A$3:$AI$823,26,FALSE))/Y322,(F322+VLOOKUP($A322,Economática!$A$3:$AI$823,26,FALSE))/Y322))","v":""},{"$f":"IF($A322=\"\",\"\",IF(OR(-VLOOKUP($A322,Economática!$A$3:$AI$823,27,FALSE)=0,-VLOOKUP($A322,Economática!$A$3:$AI$823,27,FALSE)=\"-\"),1/0,-VLOOKUP($A322,Economática!$A$3:$AI$823,27,FALSE)))","v":""},"",{"$f":"IF($A322=\"\",\"\",IF(OR(VLOOKUP($A322,Economática!$A$3:$AI$823,28,FALSE)=0,VLOOKUP($A322,Economática!$A$3:$AI$823,28,FALSE)=\"-\"),1/0,VLOOKUP($A322,Economática!$A$3:$AI$823,28,FALSE)))","v":""},{"$f":"IF($A322=\"\",\"\",IF(OR(VLOOKUP($A322,Economática!$A$3:$AI$823,29,FALSE)=0,VLOOKUP($A322,Economática!$A$3:$AI$823,29,FALSE)=\"-\"),1/0,VLOOKUP($A322,Economática!$A$3:$AI$823,29,FALSE)))","v":""},{"$f":"IF($A322=\"\",\"\",IF(OR(VLOOKUP($A322,Economática!$A$3:$AI$823,30,FALSE)/E322=0,VLOOKUP($A322,Economática!$A$3:$AI$823,30,FALSE)/E322=\"-\",VLOOKUP($A322,Economática!$A$3:$AI$823,30,FALSE)/E322<33.33%,VLOOKUP($A322,Economática!$A$3:$AI$823,30,FALSE)/E322>100%),1/0,VLOOKUP($A322,Economática!$A$3:$AI$823,30,FALSE)/E322))","v":""},"",{"$f":"IF($A322=\"\",\"\",IF(OR(VLOOKUP($A322,Economática!$A$3:$AI$823,25,FALSE)=0,VLOOKUP($A322,Economática!$A$3:$AI$823,25,FALSE)=\"-\"),1/0,VLOOKUP($A322,Economática!$A$3:$AI$823,25,FALSE)))","v":""},{"$f":"CONCATENATE(Economática!B300,\" \",Economática!C300)","v":" "}]
[{"$f":"IF(Economática!AG301=\"\",\"\",Economática!AG301)","v":""},{"$f":"IF($A323=\"\",\"\",VLOOKUP(VLOOKUP($A323,Economática!$A$3:$AI$823,6,FALSE),Correção!$B$16:$C$36,2,FALSE))","v":""},{"$f":"IF(Economática!B301=\"\",\"\",Economática!B301)","v":""},{"$f":"IF($A323=\"\",\"\",IF(OR(VLOOKUP($A323,Economática!$A$3:$AI$823,8,FALSE)=0,VLOOKUP($A323,Economática!$A$3:$AI$823,8,FALSE)=\"-\"),1/0,VLOOKUP($A323,Economática!$A$3:$AI$823,8,FALSE)))","v":""},{"$f":"IF(A323=\"\",\"\",IF(ISERROR(VLOOKUP(A323,Correção!$B$2:$G$13,9,FALSE)),VLOOKUP($A323,Economática!$A$3:$AI$823,9,FALSE),VLOOKUP(A323,Correção!$B$2:$G$13,9,FALSE)))","v":""},{"$f":"IF($A323=\"\",\"\",Economática!G301)","v":""},{"$f":"IF($A323=\"\",\"\",IF(OR(VLOOKUP($A323,Economática!$A$3:$AI$823,10,FALSE)=0,VLOOKUP($A323,Economática!$A$3:$AI$823,10,FALSE)=\"-\"),1/0,VLOOKUP($A323,Economática!$A$3:$AI$823,10,FALSE)))","v":""},{"$f":"IF($A323=\"\",\"\",IF(OR(VLOOKUP($A323,Economática!$A$3:$AI$823,11,FALSE)=0,VLOOKUP($A323,Economática!$A$3:$AI$823,11,FALSE)=\"-\"),1/0,VLOOKUP($A323,Economática!$A$3:$AI$823,11,FALSE)))","v":""},{"$f":"IF($A323=\"\",\"\",IF(OR(VLOOKUP($A323,Economática!$A$3:$AI$823,12,FALSE)=0,VLOOKUP($A323,Economática!$A$3:$AI$823,12,FALSE)=\"-\"),1/0,VLOOKUP($A323,Economática!$A$3:$AI$823,12,FALSE)))","v":""},{"$f":"IF($A323=\"\",\"\",IF(OR(VLOOKUP($A323,Economática!$A$3:$AI$823,13,FALSE)=0,VLOOKUP($A323,Economática!$A$3:$AI$823,13,FALSE)=\"-\"),1/0,VLOOKUP($A323,Economática!$A$3:$AI$823,13,FALSE)))","v":""},{"$f":"IF($A323=\"\",\"\",IF(OR(VLOOKUP($A323,Economática!$A$3:$AI$823,14,FALSE)=0,VLOOKUP($A323,Economática!$A$3:$AI$823,14,FALSE)=\"-\"),1/0,VLOOKUP($A323,Economática!$A$3:$AI$823,14,FALSE)))","v":""},{"$f":"IF($A323=\"\",\"\",IF(OR(VLOOKUP($A323,Economática!$A$3:$AI$823,15,FALSE)=0,VLOOKUP($A323,Economática!$A$3:$AI$823,15,FALSE)=\"-\"),1/0,VLOOKUP($A323,Economática!$A$3:$AI$823,15,FALSE)))","v":""},{"$f":"IF($A323=\"\",\"\",IF(OR(VLOOKUP($A323,Economática!$A$3:$AI$823,16,FALSE)=0,VLOOKUP($A323,Economática!$A$3:$AI$823,16,FALSE)=\"-\"),1/0,VLOOKUP($A323,Economática!$A$3:$AI$823,16,FALSE)))","v":""},{"$f":"IF($A323=\"\",\"\",IF(OR(VLOOKUP($A323,Economática!$A$3:$AI$823,17,FALSE)=0,VLOOKUP($A323,Economática!$A$3:$AI$823,17,FALSE)=\"-\"),1/0,VLOOKUP($A323,Economática!$A$3:$AI$823,17,FALSE)))","v":""},{"$f":"IF($A323=\"\",\"\",IF(OR(VLOOKUP($A323,Economática!$A$3:$AI$823,18,FALSE)=0,VLOOKUP($A323,Economática!$A$3:$AI$823,18,FALSE)=\"-\"),1/0,VLOOKUP($A323,Economática!$A$3:$AI$823,18,FALSE)))","v":""},{"$f":"IF($A323=\"\",\"\",IF(OR(VLOOKUP($A323,Economática!$A$3:$AI$823,19,FALSE)=0,VLOOKUP($A323,Economática!$A$3:$AI$823,19,FALSE)=\"-\"),1/0,VLOOKUP($A323,Economática!$A$3:$AI$823,19,FALSE)))","v":""},{"$f":"IF($A323=\"\",\"\",VLOOKUP($A323,Economática!$A$3:$AI$823,20,FALSE)/E323)","v":""},"","","",{"$f":"IF($A323=\"\",\"\",IF(OR(VLOOKUP($A323,Economática!$A$3:$AI$823,21,FALSE)/100=0,VLOOKUP($A323,Economática!$A$3:$AI$823,21,FALSE)/100=\"-\"),1/0,VLOOKUP($A323,Economática!$A$3:$AI$823,21,FALSE)/100))","v":""},{"$f":"IF($A323=\"\",\"\",IF(OR(VLOOKUP($A323,Economática!$A$3:$AI$823,22,FALSE)/100=0,VLOOKUP($A323,Economática!$A$3:$AI$823,22,FALSE)/100=\"-\"),1/0,VLOOKUP($A323,Economática!$A$3:$AI$823,22,FALSE)/100))","v":""},{"$f":"IF($A323=\"\",\"\",IF(OR(VLOOKUP($A323,Economática!$A$3:$AI$823,23,FALSE)=0,VLOOKUP($A323,Economática!$A$3:$AI$823,23,FALSE)=\"-\"),1/0,VLOOKUP($A323,Economática!$A$3:$AI$823,23,FALSE)))","v":""},{"$f":"IF($A323=\"\",\"\",IF(OR(VLOOKUP($A323,Economática!$A$3:$AI$823,24,FALSE)=0,VLOOKUP($A323,Economática!$A$3:$AI$823,24,FALSE)=\"-\"),1/0,VLOOKUP($A323,Economática!$A$3:$AI$823,24,FALSE)))","v":""},{"$f":"IF($A323=\"\",\"\",IF(OR(VLOOKUP($A323,Economática!$A$3:$AI$823,25,FALSE)=0,VLOOKUP($A323,Economática!$A$3:$AI$823,25,FALSE)=\"-\"),1/0,VLOOKUP($A323,Economática!$A$3:$AI$823,25,FALSE)))","v":""},{"$f":"IF($A323=\"\",\"\",IF(ISERROR((F323+VLOOKUP($A323,Economática!$A$3:$AI$823,26,FALSE))/Y323),(F323+VLOOKUP($A323,Economática!$A$3:$AI$823,26,FALSE))/Y323,(F323+VLOOKUP($A323,Economática!$A$3:$AI$823,26,FALSE))/Y323))","v":""},{"$f":"IF($A323=\"\",\"\",IF(OR(-VLOOKUP($A323,Economática!$A$3:$AI$823,27,FALSE)=0,-VLOOKUP($A323,Economática!$A$3:$AI$823,27,FALSE)=\"-\"),1/0,-VLOOKUP($A323,Economática!$A$3:$AI$823,27,FALSE)))","v":""},"",{"$f":"IF($A323=\"\",\"\",IF(OR(VLOOKUP($A323,Economática!$A$3:$AI$823,28,FALSE)=0,VLOOKUP($A323,Economática!$A$3:$AI$823,28,FALSE)=\"-\"),1/0,VLOOKUP($A323,Economática!$A$3:$AI$823,28,FALSE)))","v":""},{"$f":"IF($A323=\"\",\"\",IF(OR(VLOOKUP($A323,Economática!$A$3:$AI$823,29,FALSE)=0,VLOOKUP($A323,Economática!$A$3:$AI$823,29,FALSE)=\"-\"),1/0,VLOOKUP($A323,Economática!$A$3:$AI$823,29,FALSE)))","v":""},{"$f":"IF($A323=\"\",\"\",IF(OR(VLOOKUP($A323,Economática!$A$3:$AI$823,30,FALSE)/E323=0,VLOOKUP($A323,Economática!$A$3:$AI$823,30,FALSE)/E323=\"-\",VLOOKUP($A323,Economática!$A$3:$AI$823,30,FALSE)/E323<33.33%,VLOOKUP($A323,Economática!$A$3:$AI$823,30,FALSE)/E323>100%),1/0,VLOOKUP($A323,Economática!$A$3:$AI$823,30,FALSE)/E323))","v":""},"",{"$f":"IF($A323=\"\",\"\",IF(OR(VLOOKUP($A323,Economática!$A$3:$AI$823,25,FALSE)=0,VLOOKUP($A323,Economática!$A$3:$AI$823,25,FALSE)=\"-\"),1/0,VLOOKUP($A323,Economática!$A$3:$AI$823,25,FALSE)))","v":""},{"$f":"CONCATENATE(Economática!B301,\" \",Economática!C301)","v":" "}]
[{"$f":"IF(Economática!AG302=\"\",\"\",Economática!AG302)","v":""},{"$f":"IF($A324=\"\",\"\",VLOOKUP(VLOOKUP($A324,Economática!$A$3:$AI$823,6,FALSE),Correção!$B$16:$C$36,2,FALSE))","v":""},{"$f":"IF(Economática!B302=\"\",\"\",Economática!B302)","v":""},{"$f":"IF($A324=\"\",\"\",IF(OR(VLOOKUP($A324,Economática!$A$3:$AI$823,8,FALSE)=0,VLOOKUP($A324,Economática!$A$3:$AI$823,8,FALSE)=\"-\"),1/0,VLOOKUP($A324,Economática!$A$3:$AI$823,8,FALSE)))","v":""},{"$f":"IF(A324=\"\",\"\",IF(ISERROR(VLOOKUP(A324,Correção!$B$2:$G$13,9,FALSE)),VLOOKUP($A324,Economática!$A$3:$AI$823,9,FALSE),VLOOKUP(A324,Correção!$B$2:$G$13,9,FALSE)))","v":""},{"$f":"IF($A324=\"\",\"\",Economática!G302)","v":""},{"$f":"IF($A324=\"\",\"\",IF(OR(VLOOKUP($A324,Economática!$A$3:$AI$823,10,FALSE)=0,VLOOKUP($A324,Economática!$A$3:$AI$823,10,FALSE)=\"-\"),1/0,VLOOKUP($A324,Economática!$A$3:$AI$823,10,FALSE)))","v":""},{"$f":"IF($A324=\"\",\"\",IF(OR(VLOOKUP($A324,Economática!$A$3:$AI$823,11,FALSE)=0,VLOOKUP($A324,Economática!$A$3:$AI$823,11,FALSE)=\"-\"),1/0,VLOOKUP($A324,Economática!$A$3:$AI$823,11,FALSE)))","v":""},{"$f":"IF($A324=\"\",\"\",IF(OR(VLOOKUP($A324,Economática!$A$3:$AI$823,12,FALSE)=0,VLOOKUP($A324,Economática!$A$3:$AI$823,12,FALSE)=\"-\"),1/0,VLOOKUP($A324,Economática!$A$3:$AI$823,12,FALSE)))","v":""},{"$f":"IF($A324=\"\",\"\",IF(OR(VLOOKUP($A324,Economática!$A$3:$AI$823,13,FALSE)=0,VLOOKUP($A324,Economática!$A$3:$AI$823,13,FALSE)=\"-\"),1/0,VLOOKUP($A324,Economática!$A$3:$AI$823,13,FALSE)))","v":""},{"$f":"IF($A324=\"\",\"\",IF(OR(VLOOKUP($A324,Economática!$A$3:$AI$823,14,FALSE)=0,VLOOKUP($A324,Economática!$A$3:$AI$823,14,FALSE)=\"-\"),1/0,VLOOKUP($A324,Economática!$A$3:$AI$823,14,FALSE)))","v":""},{"$f":"IF($A324=\"\",\"\",IF(OR(VLOOKUP($A324,Economática!$A$3:$AI$823,15,FALSE)=0,VLOOKUP($A324,Economática!$A$3:$AI$823,15,FALSE)=\"-\"),1/0,VLOOKUP($A324,Economática!$A$3:$AI$823,15,FALSE)))","v":""},{"$f":"IF($A324=\"\",\"\",IF(OR(VLOOKUP($A324,Economática!$A$3:$AI$823,16,FALSE)=0,VLOOKUP($A324,Economática!$A$3:$AI$823,16,FALSE)=\"-\"),1/0,VLOOKUP($A324,Economática!$A$3:$AI$823,16,FALSE)))","v":""},{"$f":"IF($A324=\"\",\"\",IF(OR(VLOOKUP($A324,Economática!$A$3:$AI$823,17,FALSE)=0,VLOOKUP($A324,Economática!$A$3:$AI$823,17,FALSE)=\"-\"),1/0,VLOOKUP($A324,Economática!$A$3:$AI$823,17,FALSE)))","v":""},{"$f":"IF($A324=\"\",\"\",IF(OR(VLOOKUP($A324,Economática!$A$3:$AI$823,18,FALSE)=0,VLOOKUP($A324,Economática!$A$3:$AI$823,18,FALSE)=\"-\"),1/0,VLOOKUP($A324,Economática!$A$3:$AI$823,18,FALSE)))","v":""},{"$f":"IF($A324=\"\",\"\",IF(OR(VLOOKUP($A324,Economática!$A$3:$AI$823,19,FALSE)=0,VLOOKUP($A324,Economática!$A$3:$AI$823,19,FALSE)=\"-\"),1/0,VLOOKUP($A324,Economática!$A$3:$AI$823,19,FALSE)))","v":""},{"$f":"IF($A324=\"\",\"\",VLOOKUP($A324,Economática!$A$3:$AI$823,20,FALSE)/E324)","v":""},"","","",{"$f":"IF($A324=\"\",\"\",IF(OR(VLOOKUP($A324,Economática!$A$3:$AI$823,21,FALSE)/100=0,VLOOKUP($A324,Economática!$A$3:$AI$823,21,FALSE)/100=\"-\"),1/0,VLOOKUP($A324,Economática!$A$3:$AI$823,21,FALSE)/100))","v":""},{"$f":"IF($A324=\"\",\"\",IF(OR(VLOOKUP($A324,Economática!$A$3:$AI$823,22,FALSE)/100=0,VLOOKUP($A324,Economática!$A$3:$AI$823,22,FALSE)/100=\"-\"),1/0,VLOOKUP($A324,Economática!$A$3:$AI$823,22,FALSE)/100))","v":""},{"$f":"IF($A324=\"\",\"\",IF(OR(VLOOKUP($A324,Economática!$A$3:$AI$823,23,FALSE)=0,VLOOKUP($A324,Economática!$A$3:$AI$823,23,FALSE)=\"-\"),1/0,VLOOKUP($A324,Economática!$A$3:$AI$823,23,FALSE)))","v":""},{"$f":"IF($A324=\"\",\"\",IF(OR(VLOOKUP($A324,Economática!$A$3:$AI$823,24,FALSE)=0,VLOOKUP($A324,Economática!$A$3:$AI$823,24,FALSE)=\"-\"),1/0,VLOOKUP($A324,Economática!$A$3:$AI$823,24,FALSE)))","v":""},{"$f":"IF($A324=\"\",\"\",IF(OR(VLOOKUP($A324,Economática!$A$3:$AI$823,25,FALSE)=0,VLOOKUP($A324,Economática!$A$3:$AI$823,25,FALSE)=\"-\"),1/0,VLOOKUP($A324,Economática!$A$3:$AI$823,25,FALSE)))","v":""},{"$f":"IF($A324=\"\",\"\",IF(ISERROR((F324+VLOOKUP($A324,Economática!$A$3:$AI$823,26,FALSE))/Y324),(F324+VLOOKUP($A324,Economática!$A$3:$AI$823,26,FALSE))/Y324,(F324+VLOOKUP($A324,Economática!$A$3:$AI$823,26,FALSE))/Y324))","v":""},{"$f":"IF($A324=\"\",\"\",IF(OR(-VLOOKUP($A324,Economática!$A$3:$AI$823,27,FALSE)=0,-VLOOKUP($A324,Economática!$A$3:$AI$823,27,FALSE)=\"-\"),1/0,-VLOOKUP($A324,Economática!$A$3:$AI$823,27,FALSE)))","v":""},"",{"$f":"IF($A324=\"\",\"\",IF(OR(VLOOKUP($A324,Economática!$A$3:$AI$823,28,FALSE)=0,VLOOKUP($A324,Economática!$A$3:$AI$823,28,FALSE)=\"-\"),1/0,VLOOKUP($A324,Economática!$A$3:$AI$823,28,FALSE)))","v":""},{"$f":"IF($A324=\"\",\"\",IF(OR(VLOOKUP($A324,Economática!$A$3:$AI$823,29,FALSE)=0,VLOOKUP($A324,Economática!$A$3:$AI$823,29,FALSE)=\"-\"),1/0,VLOOKUP($A324,Economática!$A$3:$AI$823,29,FALSE)))","v":""},{"$f":"IF($A324=\"\",\"\",IF(OR(VLOOKUP($A324,Economática!$A$3:$AI$823,30,FALSE)/E324=0,VLOOKUP($A324,Economática!$A$3:$AI$823,30,FALSE)/E324=\"-\",VLOOKUP($A324,Economática!$A$3:$AI$823,30,FALSE)/E324<33.33%,VLOOKUP($A324,Economática!$A$3:$AI$823,30,FALSE)/E324>100%),1/0,VLOOKUP($A324,Economática!$A$3:$AI$823,30,FALSE)/E324))","v":""},"",{"$f":"IF($A324=\"\",\"\",IF(OR(VLOOKUP($A324,Economática!$A$3:$AI$823,25,FALSE)=0,VLOOKUP($A324,Economática!$A$3:$AI$823,25,FALSE)=\"-\"),1/0,VLOOKUP($A324,Economática!$A$3:$AI$823,25,FALSE)))","v":""},{"$f":"CONCATENATE(Economática!B302,\" \",Economática!C302)","v":" "}]
[{"$f":"IF(Economática!AG303=\"\",\"\",Economática!AG303)","v":""},{"$f":"IF($A325=\"\",\"\",VLOOKUP(VLOOKUP($A325,Economática!$A$3:$AI$823,6,FALSE),Correção!$B$16:$C$36,2,FALSE))","v":""},{"$f":"IF(Economática!B303=\"\",\"\",Economática!B303)","v":""},{"$f":"IF($A325=\"\",\"\",IF(OR(VLOOKUP($A325,Economática!$A$3:$AI$823,8,FALSE)=0,VLOOKUP($A325,Economática!$A$3:$AI$823,8,FALSE)=\"-\"),1/0,VLOOKUP($A325,Economática!$A$3:$AI$823,8,FALSE)))","v":""},{"$f":"IF(A325=\"\",\"\",IF(ISERROR(VLOOKUP(A325,Correção!$B$2:$G$13,9,FALSE)),VLOOKUP($A325,Economática!$A$3:$AI$823,9,FALSE),VLOOKUP(A325,Correção!$B$2:$G$13,9,FALSE)))","v":""},{"$f":"IF($A325=\"\",\"\",Economática!G303)","v":""},{"$f":"IF($A325=\"\",\"\",IF(OR(VLOOKUP($A325,Economática!$A$3:$AI$823,10,FALSE)=0,VLOOKUP($A325,Economática!$A$3:$AI$823,10,FALSE)=\"-\"),1/0,VLOOKUP($A325,Economática!$A$3:$AI$823,10,FALSE)))","v":""},{"$f":"IF($A325=\"\",\"\",IF(OR(VLOOKUP($A325,Economática!$A$3:$AI$823,11,FALSE)=0,VLOOKUP($A325,Economática!$A$3:$AI$823,11,FALSE)=\"-\"),1/0,VLOOKUP($A325,Economática!$A$3:$AI$823,11,FALSE)))","v":""},{"$f":"IF($A325=\"\",\"\",IF(OR(VLOOKUP($A325,Economática!$A$3:$AI$823,12,FALSE)=0,VLOOKUP($A325,Economática!$A$3:$AI$823,12,FALSE)=\"-\"),1/0,VLOOKUP($A325,Economática!$A$3:$AI$823,12,FALSE)))","v":""},{"$f":"IF($A325=\"\",\"\",IF(OR(VLOOKUP($A325,Economática!$A$3:$AI$823,13,FALSE)=0,VLOOKUP($A325,Economática!$A$3:$AI$823,13,FALSE)=\"-\"),1/0,VLOOKUP($A325,Economática!$A$3:$AI$823,13,FALSE)))","v":""},{"$f":"IF($A325=\"\",\"\",IF(OR(VLOOKUP($A325,Economática!$A$3:$AI$823,14,FALSE)=0,VLOOKUP($A325,Economática!$A$3:$AI$823,14,FALSE)=\"-\"),1/0,VLOOKUP($A325,Economática!$A$3:$AI$823,14,FALSE)))","v":""},{"$f":"IF($A325=\"\",\"\",IF(OR(VLOOKUP($A325,Economática!$A$3:$AI$823,15,FALSE)=0,VLOOKUP($A325,Economática!$A$3:$AI$823,15,FALSE)=\"-\"),1/0,VLOOKUP($A325,Economática!$A$3:$AI$823,15,FALSE)))","v":""},{"$f":"IF($A325=\"\",\"\",IF(OR(VLOOKUP($A325,Economática!$A$3:$AI$823,16,FALSE)=0,VLOOKUP($A325,Economática!$A$3:$AI$823,16,FALSE)=\"-\"),1/0,VLOOKUP($A325,Economática!$A$3:$AI$823,16,FALSE)))","v":""},{"$f":"IF($A325=\"\",\"\",IF(OR(VLOOKUP($A325,Economática!$A$3:$AI$823,17,FALSE)=0,VLOOKUP($A325,Economática!$A$3:$AI$823,17,FALSE)=\"-\"),1/0,VLOOKUP($A325,Economática!$A$3:$AI$823,17,FALSE)))","v":""},{"$f":"IF($A325=\"\",\"\",IF(OR(VLOOKUP($A325,Economática!$A$3:$AI$823,18,FALSE)=0,VLOOKUP($A325,Economática!$A$3:$AI$823,18,FALSE)=\"-\"),1/0,VLOOKUP($A325,Economática!$A$3:$AI$823,18,FALSE)))","v":""},{"$f":"IF($A325=\"\",\"\",IF(OR(VLOOKUP($A325,Economática!$A$3:$AI$823,19,FALSE)=0,VLOOKUP($A325,Economática!$A$3:$AI$823,19,FALSE)=\"-\"),1/0,VLOOKUP($A325,Economática!$A$3:$AI$823,19,FALSE)))","v":""},{"$f":"IF($A325=\"\",\"\",VLOOKUP($A325,Economática!$A$3:$AI$823,20,FALSE)/E325)","v":""},"","","",{"$f":"IF($A325=\"\",\"\",IF(OR(VLOOKUP($A325,Economática!$A$3:$AI$823,21,FALSE)/100=0,VLOOKUP($A325,Economática!$A$3:$AI$823,21,FALSE)/100=\"-\"),1/0,VLOOKUP($A325,Economática!$A$3:$AI$823,21,FALSE)/100))","v":""},{"$f":"IF($A325=\"\",\"\",IF(OR(VLOOKUP($A325,Economática!$A$3:$AI$823,22,FALSE)/100=0,VLOOKUP($A325,Economática!$A$3:$AI$823,22,FALSE)/100=\"-\"),1/0,VLOOKUP($A325,Economática!$A$3:$AI$823,22,FALSE)/100))","v":""},{"$f":"IF($A325=\"\",\"\",IF(OR(VLOOKUP($A325,Economática!$A$3:$AI$823,23,FALSE)=0,VLOOKUP($A325,Economática!$A$3:$AI$823,23,FALSE)=\"-\"),1/0,VLOOKUP($A325,Economática!$A$3:$AI$823,23,FALSE)))","v":""},{"$f":"IF($A325=\"\",\"\",IF(OR(VLOOKUP($A325,Economática!$A$3:$AI$823,24,FALSE)=0,VLOOKUP($A325,Economática!$A$3:$AI$823,24,FALSE)=\"-\"),1/0,VLOOKUP($A325,Economática!$A$3:$AI$823,24,FALSE)))","v":""},{"$f":"IF($A325=\"\",\"\",IF(OR(VLOOKUP($A325,Economática!$A$3:$AI$823,25,FALSE)=0,VLOOKUP($A325,Economática!$A$3:$AI$823,25,FALSE)=\"-\"),1/0,VLOOKUP($A325,Economática!$A$3:$AI$823,25,FALSE)))","v":""},{"$f":"IF($A325=\"\",\"\",IF(ISERROR((F325+VLOOKUP($A325,Economática!$A$3:$AI$823,26,FALSE))/Y325),(F325+VLOOKUP($A325,Economática!$A$3:$AI$823,26,FALSE))/Y325,(F325+VLOOKUP($A325,Economática!$A$3:$AI$823,26,FALSE))/Y325))","v":""},{"$f":"IF($A325=\"\",\"\",IF(OR(-VLOOKUP($A325,Economática!$A$3:$AI$823,27,FALSE)=0,-VLOOKUP($A325,Economática!$A$3:$AI$823,27,FALSE)=\"-\"),1/0,-VLOOKUP($A325,Economática!$A$3:$AI$823,27,FALSE)))","v":""},"",{"$f":"IF($A325=\"\",\"\",IF(OR(VLOOKUP($A325,Economática!$A$3:$AI$823,28,FALSE)=0,VLOOKUP($A325,Economática!$A$3:$AI$823,28,FALSE)=\"-\"),1/0,VLOOKUP($A325,Economática!$A$3:$AI$823,28,FALSE)))","v":""},{"$f":"IF($A325=\"\",\"\",IF(OR(VLOOKUP($A325,Economática!$A$3:$AI$823,29,FALSE)=0,VLOOKUP($A325,Economática!$A$3:$AI$823,29,FALSE)=\"-\"),1/0,VLOOKUP($A325,Economática!$A$3:$AI$823,29,FALSE)))","v":""},{"$f":"IF($A325=\"\",\"\",IF(OR(VLOOKUP($A325,Economática!$A$3:$AI$823,30,FALSE)/E325=0,VLOOKUP($A325,Economática!$A$3:$AI$823,30,FALSE)/E325=\"-\",VLOOKUP($A325,Economática!$A$3:$AI$823,30,FALSE)/E325<33.33%,VLOOKUP($A325,Economática!$A$3:$AI$823,30,FALSE)/E325>100%),1/0,VLOOKUP($A325,Economática!$A$3:$AI$823,30,FALSE)/E325))","v":""},"",{"$f":"IF($A325=\"\",\"\",IF(OR(VLOOKUP($A325,Economática!$A$3:$AI$823,25,FALSE)=0,VLOOKUP($A325,Economática!$A$3:$AI$823,25,FALSE)=\"-\"),1/0,VLOOKUP($A325,Economática!$A$3:$AI$823,25,FALSE)))","v":""},{"$f":"CONCATENATE(Economática!B303,\" \",Economática!C303)","v":" "}]
[{"$f":"IF(Economática!AG304=\"\",\"\",Economática!AG304)","v":""},{"$f":"IF($A326=\"\",\"\",VLOOKUP(VLOOKUP($A326,Economática!$A$3:$AI$823,6,FALSE),Correção!$B$16:$C$36,2,FALSE))","v":""},{"$f":"IF(Economática!B304=\"\",\"\",Economática!B304)","v":""},{"$f":"IF($A326=\"\",\"\",IF(OR(VLOOKUP($A326,Economática!$A$3:$AI$823,8,FALSE)=0,VLOOKUP($A326,Economática!$A$3:$AI$823,8,FALSE)=\"-\"),1/0,VLOOKUP($A326,Economática!$A$3:$AI$823,8,FALSE)))","v":""},{"$f":"IF(A326=\"\",\"\",IF(ISERROR(VLOOKUP(A326,Correção!$B$2:$G$13,9,FALSE)),VLOOKUP($A326,Economática!$A$3:$AI$823,9,FALSE),VLOOKUP(A326,Correção!$B$2:$G$13,9,FALSE)))","v":""},{"$f":"IF($A326=\"\",\"\",Economática!G304)","v":""},{"$f":"IF($A326=\"\",\"\",IF(OR(VLOOKUP($A326,Economática!$A$3:$AI$823,10,FALSE)=0,VLOOKUP($A326,Economática!$A$3:$AI$823,10,FALSE)=\"-\"),1/0,VLOOKUP($A326,Economática!$A$3:$AI$823,10,FALSE)))","v":""},{"$f":"IF($A326=\"\",\"\",IF(OR(VLOOKUP($A326,Economática!$A$3:$AI$823,11,FALSE)=0,VLOOKUP($A326,Economática!$A$3:$AI$823,11,FALSE)=\"-\"),1/0,VLOOKUP($A326,Economática!$A$3:$AI$823,11,FALSE)))","v":""},{"$f":"IF($A326=\"\",\"\",IF(OR(VLOOKUP($A326,Economática!$A$3:$AI$823,12,FALSE)=0,VLOOKUP($A326,Economática!$A$3:$AI$823,12,FALSE)=\"-\"),1/0,VLOOKUP($A326,Economática!$A$3:$AI$823,12,FALSE)))","v":""},{"$f":"IF($A326=\"\",\"\",IF(OR(VLOOKUP($A326,Economática!$A$3:$AI$823,13,FALSE)=0,VLOOKUP($A326,Economática!$A$3:$AI$823,13,FALSE)=\"-\"),1/0,VLOOKUP($A326,Economática!$A$3:$AI$823,13,FALSE)))","v":""},{"$f":"IF($A326=\"\",\"\",IF(OR(VLOOKUP($A326,Economática!$A$3:$AI$823,14,FALSE)=0,VLOOKUP($A326,Economática!$A$3:$AI$823,14,FALSE)=\"-\"),1/0,VLOOKUP($A326,Economática!$A$3:$AI$823,14,FALSE)))","v":""},{"$f":"IF($A326=\"\",\"\",IF(OR(VLOOKUP($A326,Economática!$A$3:$AI$823,15,FALSE)=0,VLOOKUP($A326,Economática!$A$3:$AI$823,15,FALSE)=\"-\"),1/0,VLOOKUP($A326,Economática!$A$3:$AI$823,15,FALSE)))","v":""},{"$f":"IF($A326=\"\",\"\",IF(OR(VLOOKUP($A326,Economática!$A$3:$AI$823,16,FALSE)=0,VLOOKUP($A326,Economática!$A$3:$AI$823,16,FALSE)=\"-\"),1/0,VLOOKUP($A326,Economática!$A$3:$AI$823,16,FALSE)))","v":""},{"$f":"IF($A326=\"\",\"\",IF(OR(VLOOKUP($A326,Economática!$A$3:$AI$823,17,FALSE)=0,VLOOKUP($A326,Economática!$A$3:$AI$823,17,FALSE)=\"-\"),1/0,VLOOKUP($A326,Economática!$A$3:$AI$823,17,FALSE)))","v":""},{"$f":"IF($A326=\"\",\"\",IF(OR(VLOOKUP($A326,Economática!$A$3:$AI$823,18,FALSE)=0,VLOOKUP($A326,Economática!$A$3:$AI$823,18,FALSE)=\"-\"),1/0,VLOOKUP($A326,Economática!$A$3:$AI$823,18,FALSE)))","v":""},{"$f":"IF($A326=\"\",\"\",IF(OR(VLOOKUP($A326,Economática!$A$3:$AI$823,19,FALSE)=0,VLOOKUP($A326,Economática!$A$3:$AI$823,19,FALSE)=\"-\"),1/0,VLOOKUP($A326,Economática!$A$3:$AI$823,19,FALSE)))","v":""},{"$f":"IF($A326=\"\",\"\",VLOOKUP($A326,Economática!$A$3:$AI$823,20,FALSE)/E326)","v":""},"","","",{"$f":"IF($A326=\"\",\"\",IF(OR(VLOOKUP($A326,Economática!$A$3:$AI$823,21,FALSE)/100=0,VLOOKUP($A326,Economática!$A$3:$AI$823,21,FALSE)/100=\"-\"),1/0,VLOOKUP($A326,Economática!$A$3:$AI$823,21,FALSE)/100))","v":""},{"$f":"IF($A326=\"\",\"\",IF(OR(VLOOKUP($A326,Economática!$A$3:$AI$823,22,FALSE)/100=0,VLOOKUP($A326,Economática!$A$3:$AI$823,22,FALSE)/100=\"-\"),1/0,VLOOKUP($A326,Economática!$A$3:$AI$823,22,FALSE)/100))","v":""},{"$f":"IF($A326=\"\",\"\",IF(OR(VLOOKUP($A326,Economática!$A$3:$AI$823,23,FALSE)=0,VLOOKUP($A326,Economática!$A$3:$AI$823,23,FALSE)=\"-\"),1/0,VLOOKUP($A326,Economática!$A$3:$AI$823,23,FALSE)))","v":""},{"$f":"IF($A326=\"\",\"\",IF(OR(VLOOKUP($A326,Economática!$A$3:$AI$823,24,FALSE)=0,VLOOKUP($A326,Economática!$A$3:$AI$823,24,FALSE)=\"-\"),1/0,VLOOKUP($A326,Economática!$A$3:$AI$823,24,FALSE)))","v":""},{"$f":"IF($A326=\"\",\"\",IF(OR(VLOOKUP($A326,Economática!$A$3:$AI$823,25,FALSE)=0,VLOOKUP($A326,Economática!$A$3:$AI$823,25,FALSE)=\"-\"),1/0,VLOOKUP($A326,Economática!$A$3:$AI$823,25,FALSE)))","v":""},{"$f":"IF($A326=\"\",\"\",IF(ISERROR((F326+VLOOKUP($A326,Economática!$A$3:$AI$823,26,FALSE))/Y326),(F326+VLOOKUP($A326,Economática!$A$3:$AI$823,26,FALSE))/Y326,(F326+VLOOKUP($A326,Economática!$A$3:$AI$823,26,FALSE))/Y326))","v":""},{"$f":"IF($A326=\"\",\"\",IF(OR(-VLOOKUP($A326,Economática!$A$3:$AI$823,27,FALSE)=0,-VLOOKUP($A326,Economática!$A$3:$AI$823,27,FALSE)=\"-\"),1/0,-VLOOKUP($A326,Economática!$A$3:$AI$823,27,FALSE)))","v":""},"",{"$f":"IF($A326=\"\",\"\",IF(OR(VLOOKUP($A326,Economática!$A$3:$AI$823,28,FALSE)=0,VLOOKUP($A326,Economática!$A$3:$AI$823,28,FALSE)=\"-\"),1/0,VLOOKUP($A326,Economática!$A$3:$AI$823,28,FALSE)))","v":""},{"$f":"IF($A326=\"\",\"\",IF(OR(VLOOKUP($A326,Economática!$A$3:$AI$823,29,FALSE)=0,VLOOKUP($A326,Economática!$A$3:$AI$823,29,FALSE)=\"-\"),1/0,VLOOKUP($A326,Economática!$A$3:$AI$823,29,FALSE)))","v":""},{"$f":"IF($A326=\"\",\"\",IF(OR(VLOOKUP($A326,Economática!$A$3:$AI$823,30,FALSE)/E326=0,VLOOKUP($A326,Economática!$A$3:$AI$823,30,FALSE)/E326=\"-\",VLOOKUP($A326,Economática!$A$3:$AI$823,30,FALSE)/E326<33.33%,VLOOKUP($A326,Economática!$A$3:$AI$823,30,FALSE)/E326>100%),1/0,VLOOKUP($A326,Economática!$A$3:$AI$823,30,FALSE)/E326))","v":""},"",{"$f":"IF($A326=\"\",\"\",IF(OR(VLOOKUP($A326,Economática!$A$3:$AI$823,25,FALSE)=0,VLOOKUP($A326,Economática!$A$3:$AI$823,25,FALSE)=\"-\"),1/0,VLOOKUP($A326,Economática!$A$3:$AI$823,25,FALSE)))","v":""},{"$f":"CONCATENATE(Economática!B304,\" \",Economática!C304)","v":" "}]
[{"$f":"IF(Economática!AG305=\"\",\"\",Economática!AG305)","v":""},{"$f":"IF($A327=\"\",\"\",VLOOKUP(VLOOKUP($A327,Economática!$A$3:$AI$823,6,FALSE),Correção!$B$16:$C$36,2,FALSE))","v":""},{"$f":"IF(Economática!B305=\"\",\"\",Economática!B305)","v":""},{"$f":"IF($A327=\"\",\"\",IF(OR(VLOOKUP($A327,Economática!$A$3:$AI$823,8,FALSE)=0,VLOOKUP($A327,Economática!$A$3:$AI$823,8,FALSE)=\"-\"),1/0,VLOOKUP($A327,Economática!$A$3:$AI$823,8,FALSE)))","v":""},{"$f":"IF(A327=\"\",\"\",IF(ISERROR(VLOOKUP(A327,Correção!$B$2:$G$13,9,FALSE)),VLOOKUP($A327,Economática!$A$3:$AI$823,9,FALSE),VLOOKUP(A327,Correção!$B$2:$G$13,9,FALSE)))","v":""},{"$f":"IF($A327=\"\",\"\",Economática!G305)","v":""},{"$f":"IF($A327=\"\",\"\",IF(OR(VLOOKUP($A327,Economática!$A$3:$AI$823,10,FALSE)=0,VLOOKUP($A327,Economática!$A$3:$AI$823,10,FALSE)=\"-\"),1/0,VLOOKUP($A327,Economática!$A$3:$AI$823,10,FALSE)))","v":""},{"$f":"IF($A327=\"\",\"\",IF(OR(VLOOKUP($A327,Economática!$A$3:$AI$823,11,FALSE)=0,VLOOKUP($A327,Economática!$A$3:$AI$823,11,FALSE)=\"-\"),1/0,VLOOKUP($A327,Economática!$A$3:$AI$823,11,FALSE)))","v":""},{"$f":"IF($A327=\"\",\"\",IF(OR(VLOOKUP($A327,Economática!$A$3:$AI$823,12,FALSE)=0,VLOOKUP($A327,Economática!$A$3:$AI$823,12,FALSE)=\"-\"),1/0,VLOOKUP($A327,Economática!$A$3:$AI$823,12,FALSE)))","v":""},{"$f":"IF($A327=\"\",\"\",IF(OR(VLOOKUP($A327,Economática!$A$3:$AI$823,13,FALSE)=0,VLOOKUP($A327,Economática!$A$3:$AI$823,13,FALSE)=\"-\"),1/0,VLOOKUP($A327,Economática!$A$3:$AI$823,13,FALSE)))","v":""},{"$f":"IF($A327=\"\",\"\",IF(OR(VLOOKUP($A327,Economática!$A$3:$AI$823,14,FALSE)=0,VLOOKUP($A327,Economática!$A$3:$AI$823,14,FALSE)=\"-\"),1/0,VLOOKUP($A327,Economática!$A$3:$AI$823,14,FALSE)))","v":""},{"$f":"IF($A327=\"\",\"\",IF(OR(VLOOKUP($A327,Economática!$A$3:$AI$823,15,FALSE)=0,VLOOKUP($A327,Economática!$A$3:$AI$823,15,FALSE)=\"-\"),1/0,VLOOKUP($A327,Economática!$A$3:$AI$823,15,FALSE)))","v":""},{"$f":"IF($A327=\"\",\"\",IF(OR(VLOOKUP($A327,Economática!$A$3:$AI$823,16,FALSE)=0,VLOOKUP($A327,Economática!$A$3:$AI$823,16,FALSE)=\"-\"),1/0,VLOOKUP($A327,Economática!$A$3:$AI$823,16,FALSE)))","v":""},{"$f":"IF($A327=\"\",\"\",IF(OR(VLOOKUP($A327,Economática!$A$3:$AI$823,17,FALSE)=0,VLOOKUP($A327,Economática!$A$3:$AI$823,17,FALSE)=\"-\"),1/0,VLOOKUP($A327,Economática!$A$3:$AI$823,17,FALSE)))","v":""},{"$f":"IF($A327=\"\",\"\",IF(OR(VLOOKUP($A327,Economática!$A$3:$AI$823,18,FALSE)=0,VLOOKUP($A327,Economática!$A$3:$AI$823,18,FALSE)=\"-\"),1/0,VLOOKUP($A327,Economática!$A$3:$AI$823,18,FALSE)))","v":""},{"$f":"IF($A327=\"\",\"\",IF(OR(VLOOKUP($A327,Economática!$A$3:$AI$823,19,FALSE)=0,VLOOKUP($A327,Economática!$A$3:$AI$823,19,FALSE)=\"-\"),1/0,VLOOKUP($A327,Economática!$A$3:$AI$823,19,FALSE)))","v":""},{"$f":"IF($A327=\"\",\"\",VLOOKUP($A327,Economática!$A$3:$AI$823,20,FALSE)/E327)","v":""},"","","",{"$f":"IF($A327=\"\",\"\",IF(OR(VLOOKUP($A327,Economática!$A$3:$AI$823,21,FALSE)/100=0,VLOOKUP($A327,Economática!$A$3:$AI$823,21,FALSE)/100=\"-\"),1/0,VLOOKUP($A327,Economática!$A$3:$AI$823,21,FALSE)/100))","v":""},{"$f":"IF($A327=\"\",\"\",IF(OR(VLOOKUP($A327,Economática!$A$3:$AI$823,22,FALSE)/100=0,VLOOKUP($A327,Economática!$A$3:$AI$823,22,FALSE)/100=\"-\"),1/0,VLOOKUP($A327,Economática!$A$3:$AI$823,22,FALSE)/100))","v":""},{"$f":"IF($A327=\"\",\"\",IF(OR(VLOOKUP($A327,Economática!$A$3:$AI$823,23,FALSE)=0,VLOOKUP($A327,Economática!$A$3:$AI$823,23,FALSE)=\"-\"),1/0,VLOOKUP($A327,Economática!$A$3:$AI$823,23,FALSE)))","v":""},{"$f":"IF($A327=\"\",\"\",IF(OR(VLOOKUP($A327,Economática!$A$3:$AI$823,24,FALSE)=0,VLOOKUP($A327,Economática!$A$3:$AI$823,24,FALSE)=\"-\"),1/0,VLOOKUP($A327,Economática!$A$3:$AI$823,24,FALSE)))","v":""},{"$f":"IF($A327=\"\",\"\",IF(OR(VLOOKUP($A327,Economática!$A$3:$AI$823,25,FALSE)=0,VLOOKUP($A327,Economática!$A$3:$AI$823,25,FALSE)=\"-\"),1/0,VLOOKUP($A327,Economática!$A$3:$AI$823,25,FALSE)))","v":""},{"$f":"IF($A327=\"\",\"\",IF(ISERROR((F327+VLOOKUP($A327,Economática!$A$3:$AI$823,26,FALSE))/Y327),(F327+VLOOKUP($A327,Economática!$A$3:$AI$823,26,FALSE))/Y327,(F327+VLOOKUP($A327,Economática!$A$3:$AI$823,26,FALSE))/Y327))","v":""},{"$f":"IF($A327=\"\",\"\",IF(OR(-VLOOKUP($A327,Economática!$A$3:$AI$823,27,FALSE)=0,-VLOOKUP($A327,Economática!$A$3:$AI$823,27,FALSE)=\"-\"),1/0,-VLOOKUP($A327,Economática!$A$3:$AI$823,27,FALSE)))","v":""},"",{"$f":"IF($A327=\"\",\"\",IF(OR(VLOOKUP($A327,Economática!$A$3:$AI$823,28,FALSE)=0,VLOOKUP($A327,Economática!$A$3:$AI$823,28,FALSE)=\"-\"),1/0,VLOOKUP($A327,Economática!$A$3:$AI$823,28,FALSE)))","v":""},{"$f":"IF($A327=\"\",\"\",IF(OR(VLOOKUP($A327,Economática!$A$3:$AI$823,29,FALSE)=0,VLOOKUP($A327,Economática!$A$3:$AI$823,29,FALSE)=\"-\"),1/0,VLOOKUP($A327,Economática!$A$3:$AI$823,29,FALSE)))","v":""},{"$f":"IF($A327=\"\",\"\",IF(OR(VLOOKUP($A327,Economática!$A$3:$AI$823,30,FALSE)/E327=0,VLOOKUP($A327,Economática!$A$3:$AI$823,30,FALSE)/E327=\"-\",VLOOKUP($A327,Economática!$A$3:$AI$823,30,FALSE)/E327<33.33%,VLOOKUP($A327,Economática!$A$3:$AI$823,30,FALSE)/E327>100%),1/0,VLOOKUP($A327,Economática!$A$3:$AI$823,30,FALSE)/E327))","v":""},"",{"$f":"IF($A327=\"\",\"\",IF(OR(VLOOKUP($A327,Economática!$A$3:$AI$823,25,FALSE)=0,VLOOKUP($A327,Economática!$A$3:$AI$823,25,FALSE)=\"-\"),1/0,VLOOKUP($A327,Economática!$A$3:$AI$823,25,FALSE)))","v":""},{"$f":"CONCATENATE(Economática!B305,\" \",Economática!C305)","v":" "}]
[{"$f":"IF(Economática!AG306=\"\",\"\",Economática!AG306)","v":""},{"$f":"IF($A328=\"\",\"\",VLOOKUP(VLOOKUP($A328,Economática!$A$3:$AI$823,6,FALSE),Correção!$B$16:$C$36,2,FALSE))","v":""},{"$f":"IF(Economática!B306=\"\",\"\",Economática!B306)","v":""},{"$f":"IF($A328=\"\",\"\",IF(OR(VLOOKUP($A328,Economática!$A$3:$AI$823,8,FALSE)=0,VLOOKUP($A328,Economática!$A$3:$AI$823,8,FALSE)=\"-\"),1/0,VLOOKUP($A328,Economática!$A$3:$AI$823,8,FALSE)))","v":""},{"$f":"IF(A328=\"\",\"\",IF(ISERROR(VLOOKUP(A328,Correção!$B$2:$G$13,9,FALSE)),VLOOKUP($A328,Economática!$A$3:$AI$823,9,FALSE),VLOOKUP(A328,Correção!$B$2:$G$13,9,FALSE)))","v":""},{"$f":"IF($A328=\"\",\"\",Economática!G306)","v":""},{"$f":"IF($A328=\"\",\"\",IF(OR(VLOOKUP($A328,Economática!$A$3:$AI$823,10,FALSE)=0,VLOOKUP($A328,Economática!$A$3:$AI$823,10,FALSE)=\"-\"),1/0,VLOOKUP($A328,Economática!$A$3:$AI$823,10,FALSE)))","v":""},{"$f":"IF($A328=\"\",\"\",IF(OR(VLOOKUP($A328,Economática!$A$3:$AI$823,11,FALSE)=0,VLOOKUP($A328,Economática!$A$3:$AI$823,11,FALSE)=\"-\"),1/0,VLOOKUP($A328,Economática!$A$3:$AI$823,11,FALSE)))","v":""},{"$f":"IF($A328=\"\",\"\",IF(OR(VLOOKUP($A328,Economática!$A$3:$AI$823,12,FALSE)=0,VLOOKUP($A328,Economática!$A$3:$AI$823,12,FALSE)=\"-\"),1/0,VLOOKUP($A328,Economática!$A$3:$AI$823,12,FALSE)))","v":""},{"$f":"IF($A328=\"\",\"\",IF(OR(VLOOKUP($A328,Economática!$A$3:$AI$823,13,FALSE)=0,VLOOKUP($A328,Economática!$A$3:$AI$823,13,FALSE)=\"-\"),1/0,VLOOKUP($A328,Economática!$A$3:$AI$823,13,FALSE)))","v":""},{"$f":"IF($A328=\"\",\"\",IF(OR(VLOOKUP($A328,Economática!$A$3:$AI$823,14,FALSE)=0,VLOOKUP($A328,Economática!$A$3:$AI$823,14,FALSE)=\"-\"),1/0,VLOOKUP($A328,Economática!$A$3:$AI$823,14,FALSE)))","v":""},{"$f":"IF($A328=\"\",\"\",IF(OR(VLOOKUP($A328,Economática!$A$3:$AI$823,15,FALSE)=0,VLOOKUP($A328,Economática!$A$3:$AI$823,15,FALSE)=\"-\"),1/0,VLOOKUP($A328,Economática!$A$3:$AI$823,15,FALSE)))","v":""},{"$f":"IF($A328=\"\",\"\",IF(OR(VLOOKUP($A328,Economática!$A$3:$AI$823,16,FALSE)=0,VLOOKUP($A328,Economática!$A$3:$AI$823,16,FALSE)=\"-\"),1/0,VLOOKUP($A328,Economática!$A$3:$AI$823,16,FALSE)))","v":""},{"$f":"IF($A328=\"\",\"\",IF(OR(VLOOKUP($A328,Economática!$A$3:$AI$823,17,FALSE)=0,VLOOKUP($A328,Economática!$A$3:$AI$823,17,FALSE)=\"-\"),1/0,VLOOKUP($A328,Economática!$A$3:$AI$823,17,FALSE)))","v":""},{"$f":"IF($A328=\"\",\"\",IF(OR(VLOOKUP($A328,Economática!$A$3:$AI$823,18,FALSE)=0,VLOOKUP($A328,Economática!$A$3:$AI$823,18,FALSE)=\"-\"),1/0,VLOOKUP($A328,Economática!$A$3:$AI$823,18,FALSE)))","v":""},{"$f":"IF($A328=\"\",\"\",IF(OR(VLOOKUP($A328,Economática!$A$3:$AI$823,19,FALSE)=0,VLOOKUP($A328,Economática!$A$3:$AI$823,19,FALSE)=\"-\"),1/0,VLOOKUP($A328,Economática!$A$3:$AI$823,19,FALSE)))","v":""},{"$f":"IF($A328=\"\",\"\",VLOOKUP($A328,Economática!$A$3:$AI$823,20,FALSE)/E328)","v":""},"","","",{"$f":"IF($A328=\"\",\"\",IF(OR(VLOOKUP($A328,Economática!$A$3:$AI$823,21,FALSE)/100=0,VLOOKUP($A328,Economática!$A$3:$AI$823,21,FALSE)/100=\"-\"),1/0,VLOOKUP($A328,Economática!$A$3:$AI$823,21,FALSE)/100))","v":""},{"$f":"IF($A328=\"\",\"\",IF(OR(VLOOKUP($A328,Economática!$A$3:$AI$823,22,FALSE)/100=0,VLOOKUP($A328,Economática!$A$3:$AI$823,22,FALSE)/100=\"-\"),1/0,VLOOKUP($A328,Economática!$A$3:$AI$823,22,FALSE)/100))","v":""},{"$f":"IF($A328=\"\",\"\",IF(OR(VLOOKUP($A328,Economática!$A$3:$AI$823,23,FALSE)=0,VLOOKUP($A328,Economática!$A$3:$AI$823,23,FALSE)=\"-\"),1/0,VLOOKUP($A328,Economática!$A$3:$AI$823,23,FALSE)))","v":""},{"$f":"IF($A328=\"\",\"\",IF(OR(VLOOKUP($A328,Economática!$A$3:$AI$823,24,FALSE)=0,VLOOKUP($A328,Economática!$A$3:$AI$823,24,FALSE)=\"-\"),1/0,VLOOKUP($A328,Economática!$A$3:$AI$823,24,FALSE)))","v":""},{"$f":"IF($A328=\"\",\"\",IF(OR(VLOOKUP($A328,Economática!$A$3:$AI$823,25,FALSE)=0,VLOOKUP($A328,Economática!$A$3:$AI$823,25,FALSE)=\"-\"),1/0,VLOOKUP($A328,Economática!$A$3:$AI$823,25,FALSE)))","v":""},{"$f":"IF($A328=\"\",\"\",IF(ISERROR((F328+VLOOKUP($A328,Economática!$A$3:$AI$823,26,FALSE))/Y328),(F328+VLOOKUP($A328,Economática!$A$3:$AI$823,26,FALSE))/Y328,(F328+VLOOKUP($A328,Economática!$A$3:$AI$823,26,FALSE))/Y328))","v":""},{"$f":"IF($A328=\"\",\"\",IF(OR(-VLOOKUP($A328,Economática!$A$3:$AI$823,27,FALSE)=0,-VLOOKUP($A328,Economática!$A$3:$AI$823,27,FALSE)=\"-\"),1/0,-VLOOKUP($A328,Economática!$A$3:$AI$823,27,FALSE)))","v":""},"",{"$f":"IF($A328=\"\",\"\",IF(OR(VLOOKUP($A328,Economática!$A$3:$AI$823,28,FALSE)=0,VLOOKUP($A328,Economática!$A$3:$AI$823,28,FALSE)=\"-\"),1/0,VLOOKUP($A328,Economática!$A$3:$AI$823,28,FALSE)))","v":""},{"$f":"IF($A328=\"\",\"\",IF(OR(VLOOKUP($A328,Economática!$A$3:$AI$823,29,FALSE)=0,VLOOKUP($A328,Economática!$A$3:$AI$823,29,FALSE)=\"-\"),1/0,VLOOKUP($A328,Economática!$A$3:$AI$823,29,FALSE)))","v":""},{"$f":"IF($A328=\"\",\"\",IF(OR(VLOOKUP($A328,Economática!$A$3:$AI$823,30,FALSE)/E328=0,VLOOKUP($A328,Economática!$A$3:$AI$823,30,FALSE)/E328=\"-\",VLOOKUP($A328,Economática!$A$3:$AI$823,30,FALSE)/E328<33.33%,VLOOKUP($A328,Economática!$A$3:$AI$823,30,FALSE)/E328>100%),1/0,VLOOKUP($A328,Economática!$A$3:$AI$823,30,FALSE)/E328))","v":""},"",{"$f":"IF($A328=\"\",\"\",IF(OR(VLOOKUP($A328,Economática!$A$3:$AI$823,25,FALSE)=0,VLOOKUP($A328,Economática!$A$3:$AI$823,25,FALSE)=\"-\"),1/0,VLOOKUP($A328,Economática!$A$3:$AI$823,25,FALSE)))","v":""},{"$f":"CONCATENATE(Economática!B306,\" \",Economática!C306)","v":" "}]
[{"$f":"IF(Economática!AG307=\"\",\"\",Economática!AG307)","v":""},{"$f":"IF($A329=\"\",\"\",VLOOKUP(VLOOKUP($A329,Economática!$A$3:$AI$823,6,FALSE),Correção!$B$16:$C$36,2,FALSE))","v":""},{"$f":"IF(Economática!B307=\"\",\"\",Economática!B307)","v":""},{"$f":"IF($A329=\"\",\"\",IF(OR(VLOOKUP($A329,Economática!$A$3:$AI$823,8,FALSE)=0,VLOOKUP($A329,Economática!$A$3:$AI$823,8,FALSE)=\"-\"),1/0,VLOOKUP($A329,Economática!$A$3:$AI$823,8,FALSE)))","v":""},{"$f":"IF(A329=\"\",\"\",IF(ISERROR(VLOOKUP(A329,Correção!$B$2:$G$13,9,FALSE)),VLOOKUP($A329,Economática!$A$3:$AI$823,9,FALSE),VLOOKUP(A329,Correção!$B$2:$G$13,9,FALSE)))","v":""},{"$f":"IF($A329=\"\",\"\",Economática!G307)","v":""},{"$f":"IF($A329=\"\",\"\",IF(OR(VLOOKUP($A329,Economática!$A$3:$AI$823,10,FALSE)=0,VLOOKUP($A329,Economática!$A$3:$AI$823,10,FALSE)=\"-\"),1/0,VLOOKUP($A329,Economática!$A$3:$AI$823,10,FALSE)))","v":""},{"$f":"IF($A329=\"\",\"\",IF(OR(VLOOKUP($A329,Economática!$A$3:$AI$823,11,FALSE)=0,VLOOKUP($A329,Economática!$A$3:$AI$823,11,FALSE)=\"-\"),1/0,VLOOKUP($A329,Economática!$A$3:$AI$823,11,FALSE)))","v":""},{"$f":"IF($A329=\"\",\"\",IF(OR(VLOOKUP($A329,Economática!$A$3:$AI$823,12,FALSE)=0,VLOOKUP($A329,Economática!$A$3:$AI$823,12,FALSE)=\"-\"),1/0,VLOOKUP($A329,Economática!$A$3:$AI$823,12,FALSE)))","v":""},{"$f":"IF($A329=\"\",\"\",IF(OR(VLOOKUP($A329,Economática!$A$3:$AI$823,13,FALSE)=0,VLOOKUP($A329,Economática!$A$3:$AI$823,13,FALSE)=\"-\"),1/0,VLOOKUP($A329,Economática!$A$3:$AI$823,13,FALSE)))","v":""},{"$f":"IF($A329=\"\",\"\",IF(OR(VLOOKUP($A329,Economática!$A$3:$AI$823,14,FALSE)=0,VLOOKUP($A329,Economática!$A$3:$AI$823,14,FALSE)=\"-\"),1/0,VLOOKUP($A329,Economática!$A$3:$AI$823,14,FALSE)))","v":""},{"$f":"IF($A329=\"\",\"\",IF(OR(VLOOKUP($A329,Economática!$A$3:$AI$823,15,FALSE)=0,VLOOKUP($A329,Economática!$A$3:$AI$823,15,FALSE)=\"-\"),1/0,VLOOKUP($A329,Economática!$A$3:$AI$823,15,FALSE)))","v":""},{"$f":"IF($A329=\"\",\"\",IF(OR(VLOOKUP($A329,Economática!$A$3:$AI$823,16,FALSE)=0,VLOOKUP($A329,Economática!$A$3:$AI$823,16,FALSE)=\"-\"),1/0,VLOOKUP($A329,Economática!$A$3:$AI$823,16,FALSE)))","v":""},{"$f":"IF($A329=\"\",\"\",IF(OR(VLOOKUP($A329,Economática!$A$3:$AI$823,17,FALSE)=0,VLOOKUP($A329,Economática!$A$3:$AI$823,17,FALSE)=\"-\"),1/0,VLOOKUP($A329,Economática!$A$3:$AI$823,17,FALSE)))","v":""},{"$f":"IF($A329=\"\",\"\",IF(OR(VLOOKUP($A329,Economática!$A$3:$AI$823,18,FALSE)=0,VLOOKUP($A329,Economática!$A$3:$AI$823,18,FALSE)=\"-\"),1/0,VLOOKUP($A329,Economática!$A$3:$AI$823,18,FALSE)))","v":""},{"$f":"IF($A329=\"\",\"\",IF(OR(VLOOKUP($A329,Economática!$A$3:$AI$823,19,FALSE)=0,VLOOKUP($A329,Economática!$A$3:$AI$823,19,FALSE)=\"-\"),1/0,VLOOKUP($A329,Economática!$A$3:$AI$823,19,FALSE)))","v":""},{"$f":"IF($A329=\"\",\"\",VLOOKUP($A329,Economática!$A$3:$AI$823,20,FALSE)/E329)","v":""},"","","",{"$f":"IF($A329=\"\",\"\",IF(OR(VLOOKUP($A329,Economática!$A$3:$AI$823,21,FALSE)/100=0,VLOOKUP($A329,Economática!$A$3:$AI$823,21,FALSE)/100=\"-\"),1/0,VLOOKUP($A329,Economática!$A$3:$AI$823,21,FALSE)/100))","v":""},{"$f":"IF($A329=\"\",\"\",IF(OR(VLOOKUP($A329,Economática!$A$3:$AI$823,22,FALSE)/100=0,VLOOKUP($A329,Economática!$A$3:$AI$823,22,FALSE)/100=\"-\"),1/0,VLOOKUP($A329,Economática!$A$3:$AI$823,22,FALSE)/100))","v":""},{"$f":"IF($A329=\"\",\"\",IF(OR(VLOOKUP($A329,Economática!$A$3:$AI$823,23,FALSE)=0,VLOOKUP($A329,Economática!$A$3:$AI$823,23,FALSE)=\"-\"),1/0,VLOOKUP($A329,Economática!$A$3:$AI$823,23,FALSE)))","v":""},{"$f":"IF($A329=\"\",\"\",IF(OR(VLOOKUP($A329,Economática!$A$3:$AI$823,24,FALSE)=0,VLOOKUP($A329,Economática!$A$3:$AI$823,24,FALSE)=\"-\"),1/0,VLOOKUP($A329,Economática!$A$3:$AI$823,24,FALSE)))","v":""},{"$f":"IF($A329=\"\",\"\",IF(OR(VLOOKUP($A329,Economática!$A$3:$AI$823,25,FALSE)=0,VLOOKUP($A329,Economática!$A$3:$AI$823,25,FALSE)=\"-\"),1/0,VLOOKUP($A329,Economática!$A$3:$AI$823,25,FALSE)))","v":""},{"$f":"IF($A329=\"\",\"\",IF(ISERROR((F329+VLOOKUP($A329,Economática!$A$3:$AI$823,26,FALSE))/Y329),(F329+VLOOKUP($A329,Economática!$A$3:$AI$823,26,FALSE))/Y329,(F329+VLOOKUP($A329,Economática!$A$3:$AI$823,26,FALSE))/Y329))","v":""},{"$f":"IF($A329=\"\",\"\",IF(OR(-VLOOKUP($A329,Economática!$A$3:$AI$823,27,FALSE)=0,-VLOOKUP($A329,Economática!$A$3:$AI$823,27,FALSE)=\"-\"),1/0,-VLOOKUP($A329,Economática!$A$3:$AI$823,27,FALSE)))","v":""},"",{"$f":"IF($A329=\"\",\"\",IF(OR(VLOOKUP($A329,Economática!$A$3:$AI$823,28,FALSE)=0,VLOOKUP($A329,Economática!$A$3:$AI$823,28,FALSE)=\"-\"),1/0,VLOOKUP($A329,Economática!$A$3:$AI$823,28,FALSE)))","v":""},{"$f":"IF($A329=\"\",\"\",IF(OR(VLOOKUP($A329,Economática!$A$3:$AI$823,29,FALSE)=0,VLOOKUP($A329,Economática!$A$3:$AI$823,29,FALSE)=\"-\"),1/0,VLOOKUP($A329,Economática!$A$3:$AI$823,29,FALSE)))","v":""},{"$f":"IF($A329=\"\",\"\",IF(OR(VLOOKUP($A329,Economática!$A$3:$AI$823,30,FALSE)/E329=0,VLOOKUP($A329,Economática!$A$3:$AI$823,30,FALSE)/E329=\"-\",VLOOKUP($A329,Economática!$A$3:$AI$823,30,FALSE)/E329<33.33%,VLOOKUP($A329,Economática!$A$3:$AI$823,30,FALSE)/E329>100%),1/0,VLOOKUP($A329,Economática!$A$3:$AI$823,30,FALSE)/E329))","v":""},"",{"$f":"IF($A329=\"\",\"\",IF(OR(VLOOKUP($A329,Economática!$A$3:$AI$823,25,FALSE)=0,VLOOKUP($A329,Economática!$A$3:$AI$823,25,FALSE)=\"-\"),1/0,VLOOKUP($A329,Economática!$A$3:$AI$823,25,FALSE)))","v":""},{"$f":"CONCATENATE(Economática!B307,\" \",Economática!C307)","v":" "}]
[{"$f":"IF(Economática!AG308=\"\",\"\",Economática!AG308)","v":""},{"$f":"IF($A330=\"\",\"\",VLOOKUP(VLOOKUP($A330,Economática!$A$3:$AI$823,6,FALSE),Correção!$B$16:$C$36,2,FALSE))","v":""},{"$f":"IF(Economática!B308=\"\",\"\",Economática!B308)","v":""},{"$f":"IF($A330=\"\",\"\",IF(OR(VLOOKUP($A330,Economática!$A$3:$AI$823,8,FALSE)=0,VLOOKUP($A330,Economática!$A$3:$AI$823,8,FALSE)=\"-\"),1/0,VLOOKUP($A330,Economática!$A$3:$AI$823,8,FALSE)))","v":""},{"$f":"IF(A330=\"\",\"\",IF(ISERROR(VLOOKUP(A330,Correção!$B$2:$G$13,9,FALSE)),VLOOKUP($A330,Economática!$A$3:$AI$823,9,FALSE),VLOOKUP(A330,Correção!$B$2:$G$13,9,FALSE)))","v":""},{"$f":"IF($A330=\"\",\"\",Economática!G308)","v":""},{"$f":"IF($A330=\"\",\"\",IF(OR(VLOOKUP($A330,Economática!$A$3:$AI$823,10,FALSE)=0,VLOOKUP($A330,Economática!$A$3:$AI$823,10,FALSE)=\"-\"),1/0,VLOOKUP($A330,Economática!$A$3:$AI$823,10,FALSE)))","v":""},{"$f":"IF($A330=\"\",\"\",IF(OR(VLOOKUP($A330,Economática!$A$3:$AI$823,11,FALSE)=0,VLOOKUP($A330,Economática!$A$3:$AI$823,11,FALSE)=\"-\"),1/0,VLOOKUP($A330,Economática!$A$3:$AI$823,11,FALSE)))","v":""},{"$f":"IF($A330=\"\",\"\",IF(OR(VLOOKUP($A330,Economática!$A$3:$AI$823,12,FALSE)=0,VLOOKUP($A330,Economática!$A$3:$AI$823,12,FALSE)=\"-\"),1/0,VLOOKUP($A330,Economática!$A$3:$AI$823,12,FALSE)))","v":""},{"$f":"IF($A330=\"\",\"\",IF(OR(VLOOKUP($A330,Economática!$A$3:$AI$823,13,FALSE)=0,VLOOKUP($A330,Economática!$A$3:$AI$823,13,FALSE)=\"-\"),1/0,VLOOKUP($A330,Economática!$A$3:$AI$823,13,FALSE)))","v":""},{"$f":"IF($A330=\"\",\"\",IF(OR(VLOOKUP($A330,Economática!$A$3:$AI$823,14,FALSE)=0,VLOOKUP($A330,Economática!$A$3:$AI$823,14,FALSE)=\"-\"),1/0,VLOOKUP($A330,Economática!$A$3:$AI$823,14,FALSE)))","v":""},{"$f":"IF($A330=\"\",\"\",IF(OR(VLOOKUP($A330,Economática!$A$3:$AI$823,15,FALSE)=0,VLOOKUP($A330,Economática!$A$3:$AI$823,15,FALSE)=\"-\"),1/0,VLOOKUP($A330,Economática!$A$3:$AI$823,15,FALSE)))","v":""},{"$f":"IF($A330=\"\",\"\",IF(OR(VLOOKUP($A330,Economática!$A$3:$AI$823,16,FALSE)=0,VLOOKUP($A330,Economática!$A$3:$AI$823,16,FALSE)=\"-\"),1/0,VLOOKUP($A330,Economática!$A$3:$AI$823,16,FALSE)))","v":""},{"$f":"IF($A330=\"\",\"\",IF(OR(VLOOKUP($A330,Economática!$A$3:$AI$823,17,FALSE)=0,VLOOKUP($A330,Economática!$A$3:$AI$823,17,FALSE)=\"-\"),1/0,VLOOKUP($A330,Economática!$A$3:$AI$823,17,FALSE)))","v":""},{"$f":"IF($A330=\"\",\"\",IF(OR(VLOOKUP($A330,Economática!$A$3:$AI$823,18,FALSE)=0,VLOOKUP($A330,Economática!$A$3:$AI$823,18,FALSE)=\"-\"),1/0,VLOOKUP($A330,Economática!$A$3:$AI$823,18,FALSE)))","v":""},{"$f":"IF($A330=\"\",\"\",IF(OR(VLOOKUP($A330,Economática!$A$3:$AI$823,19,FALSE)=0,VLOOKUP($A330,Economática!$A$3:$AI$823,19,FALSE)=\"-\"),1/0,VLOOKUP($A330,Economática!$A$3:$AI$823,19,FALSE)))","v":""},{"$f":"IF($A330=\"\",\"\",VLOOKUP($A330,Economática!$A$3:$AI$823,20,FALSE)/E330)","v":""},"","","",{"$f":"IF($A330=\"\",\"\",IF(OR(VLOOKUP($A330,Economática!$A$3:$AI$823,21,FALSE)/100=0,VLOOKUP($A330,Economática!$A$3:$AI$823,21,FALSE)/100=\"-\"),1/0,VLOOKUP($A330,Economática!$A$3:$AI$823,21,FALSE)/100))","v":""},{"$f":"IF($A330=\"\",\"\",IF(OR(VLOOKUP($A330,Economática!$A$3:$AI$823,22,FALSE)/100=0,VLOOKUP($A330,Economática!$A$3:$AI$823,22,FALSE)/100=\"-\"),1/0,VLOOKUP($A330,Economática!$A$3:$AI$823,22,FALSE)/100))","v":""},{"$f":"IF($A330=\"\",\"\",IF(OR(VLOOKUP($A330,Economática!$A$3:$AI$823,23,FALSE)=0,VLOOKUP($A330,Economática!$A$3:$AI$823,23,FALSE)=\"-\"),1/0,VLOOKUP($A330,Economática!$A$3:$AI$823,23,FALSE)))","v":""},{"$f":"IF($A330=\"\",\"\",IF(OR(VLOOKUP($A330,Economática!$A$3:$AI$823,24,FALSE)=0,VLOOKUP($A330,Economática!$A$3:$AI$823,24,FALSE)=\"-\"),1/0,VLOOKUP($A330,Economática!$A$3:$AI$823,24,FALSE)))","v":""},{"$f":"IF($A330=\"\",\"\",IF(OR(VLOOKUP($A330,Economática!$A$3:$AI$823,25,FALSE)=0,VLOOKUP($A330,Economática!$A$3:$AI$823,25,FALSE)=\"-\"),1/0,VLOOKUP($A330,Economática!$A$3:$AI$823,25,FALSE)))","v":""},{"$f":"IF($A330=\"\",\"\",IF(ISERROR((F330+VLOOKUP($A330,Economática!$A$3:$AI$823,26,FALSE))/Y330),(F330+VLOOKUP($A330,Economática!$A$3:$AI$823,26,FALSE))/Y330,(F330+VLOOKUP($A330,Economática!$A$3:$AI$823,26,FALSE))/Y330))","v":""},{"$f":"IF($A330=\"\",\"\",IF(OR(-VLOOKUP($A330,Economática!$A$3:$AI$823,27,FALSE)=0,-VLOOKUP($A330,Economática!$A$3:$AI$823,27,FALSE)=\"-\"),1/0,-VLOOKUP($A330,Economática!$A$3:$AI$823,27,FALSE)))","v":""},"",{"$f":"IF($A330=\"\",\"\",IF(OR(VLOOKUP($A330,Economática!$A$3:$AI$823,28,FALSE)=0,VLOOKUP($A330,Economática!$A$3:$AI$823,28,FALSE)=\"-\"),1/0,VLOOKUP($A330,Economática!$A$3:$AI$823,28,FALSE)))","v":""},{"$f":"IF($A330=\"\",\"\",IF(OR(VLOOKUP($A330,Economática!$A$3:$AI$823,29,FALSE)=0,VLOOKUP($A330,Economática!$A$3:$AI$823,29,FALSE)=\"-\"),1/0,VLOOKUP($A330,Economática!$A$3:$AI$823,29,FALSE)))","v":""},{"$f":"IF($A330=\"\",\"\",IF(OR(VLOOKUP($A330,Economática!$A$3:$AI$823,30,FALSE)/E330=0,VLOOKUP($A330,Economática!$A$3:$AI$823,30,FALSE)/E330=\"-\",VLOOKUP($A330,Economática!$A$3:$AI$823,30,FALSE)/E330<33.33%,VLOOKUP($A330,Economática!$A$3:$AI$823,30,FALSE)/E330>100%),1/0,VLOOKUP($A330,Economática!$A$3:$AI$823,30,FALSE)/E330))","v":""},"",{"$f":"IF($A330=\"\",\"\",IF(OR(VLOOKUP($A330,Economática!$A$3:$AI$823,25,FALSE)=0,VLOOKUP($A330,Economática!$A$3:$AI$823,25,FALSE)=\"-\"),1/0,VLOOKUP($A330,Economática!$A$3:$AI$823,25,FALSE)))","v":""},{"$f":"CONCATENATE(Economática!B308,\" \",Economática!C308)","v":" "}]
[{"$f":"IF(Economática!AG309=\"\",\"\",Economática!AG309)","v":""},{"$f":"IF($A331=\"\",\"\",VLOOKUP(VLOOKUP($A331,Economática!$A$3:$AI$823,6,FALSE),Correção!$B$16:$C$36,2,FALSE))","v":""},{"$f":"IF(Economática!B309=\"\",\"\",Economática!B309)","v":""},{"$f":"IF($A331=\"\",\"\",IF(OR(VLOOKUP($A331,Economática!$A$3:$AI$823,8,FALSE)=0,VLOOKUP($A331,Economática!$A$3:$AI$823,8,FALSE)=\"-\"),1/0,VLOOKUP($A331,Economática!$A$3:$AI$823,8,FALSE)))","v":""},{"$f":"IF(A331=\"\",\"\",IF(ISERROR(VLOOKUP(A331,Correção!$B$2:$G$13,9,FALSE)),VLOOKUP($A331,Economática!$A$3:$AI$823,9,FALSE),VLOOKUP(A331,Correção!$B$2:$G$13,9,FALSE)))","v":""},{"$f":"IF($A331=\"\",\"\",Economática!G309)","v":""},{"$f":"IF($A331=\"\",\"\",IF(OR(VLOOKUP($A331,Economática!$A$3:$AI$823,10,FALSE)=0,VLOOKUP($A331,Economática!$A$3:$AI$823,10,FALSE)=\"-\"),1/0,VLOOKUP($A331,Economática!$A$3:$AI$823,10,FALSE)))","v":""},{"$f":"IF($A331=\"\",\"\",IF(OR(VLOOKUP($A331,Economática!$A$3:$AI$823,11,FALSE)=0,VLOOKUP($A331,Economática!$A$3:$AI$823,11,FALSE)=\"-\"),1/0,VLOOKUP($A331,Economática!$A$3:$AI$823,11,FALSE)))","v":""},{"$f":"IF($A331=\"\",\"\",IF(OR(VLOOKUP($A331,Economática!$A$3:$AI$823,12,FALSE)=0,VLOOKUP($A331,Economática!$A$3:$AI$823,12,FALSE)=\"-\"),1/0,VLOOKUP($A331,Economática!$A$3:$AI$823,12,FALSE)))","v":""},{"$f":"IF($A331=\"\",\"\",IF(OR(VLOOKUP($A331,Economática!$A$3:$AI$823,13,FALSE)=0,VLOOKUP($A331,Economática!$A$3:$AI$823,13,FALSE)=\"-\"),1/0,VLOOKUP($A331,Economática!$A$3:$AI$823,13,FALSE)))","v":""},{"$f":"IF($A331=\"\",\"\",IF(OR(VLOOKUP($A331,Economática!$A$3:$AI$823,14,FALSE)=0,VLOOKUP($A331,Economática!$A$3:$AI$823,14,FALSE)=\"-\"),1/0,VLOOKUP($A331,Economática!$A$3:$AI$823,14,FALSE)))","v":""},{"$f":"IF($A331=\"\",\"\",IF(OR(VLOOKUP($A331,Economática!$A$3:$AI$823,15,FALSE)=0,VLOOKUP($A331,Economática!$A$3:$AI$823,15,FALSE)=\"-\"),1/0,VLOOKUP($A331,Economática!$A$3:$AI$823,15,FALSE)))","v":""},{"$f":"IF($A331=\"\",\"\",IF(OR(VLOOKUP($A331,Economática!$A$3:$AI$823,16,FALSE)=0,VLOOKUP($A331,Economática!$A$3:$AI$823,16,FALSE)=\"-\"),1/0,VLOOKUP($A331,Economática!$A$3:$AI$823,16,FALSE)))","v":""},{"$f":"IF($A331=\"\",\"\",IF(OR(VLOOKUP($A331,Economática!$A$3:$AI$823,17,FALSE)=0,VLOOKUP($A331,Economática!$A$3:$AI$823,17,FALSE)=\"-\"),1/0,VLOOKUP($A331,Economática!$A$3:$AI$823,17,FALSE)))","v":""},{"$f":"IF($A331=\"\",\"\",IF(OR(VLOOKUP($A331,Economática!$A$3:$AI$823,18,FALSE)=0,VLOOKUP($A331,Economática!$A$3:$AI$823,18,FALSE)=\"-\"),1/0,VLOOKUP($A331,Economática!$A$3:$AI$823,18,FALSE)))","v":""},{"$f":"IF($A331=\"\",\"\",IF(OR(VLOOKUP($A331,Economática!$A$3:$AI$823,19,FALSE)=0,VLOOKUP($A331,Economática!$A$3:$AI$823,19,FALSE)=\"-\"),1/0,VLOOKUP($A331,Economática!$A$3:$AI$823,19,FALSE)))","v":""},{"$f":"IF($A331=\"\",\"\",VLOOKUP($A331,Economática!$A$3:$AI$823,20,FALSE)/E331)","v":""},"","","",{"$f":"IF($A331=\"\",\"\",IF(OR(VLOOKUP($A331,Economática!$A$3:$AI$823,21,FALSE)/100=0,VLOOKUP($A331,Economática!$A$3:$AI$823,21,FALSE)/100=\"-\"),1/0,VLOOKUP($A331,Economática!$A$3:$AI$823,21,FALSE)/100))","v":""},{"$f":"IF($A331=\"\",\"\",IF(OR(VLOOKUP($A331,Economática!$A$3:$AI$823,22,FALSE)/100=0,VLOOKUP($A331,Economática!$A$3:$AI$823,22,FALSE)/100=\"-\"),1/0,VLOOKUP($A331,Economática!$A$3:$AI$823,22,FALSE)/100))","v":""},{"$f":"IF($A331=\"\",\"\",IF(OR(VLOOKUP($A331,Economática!$A$3:$AI$823,23,FALSE)=0,VLOOKUP($A331,Economática!$A$3:$AI$823,23,FALSE)=\"-\"),1/0,VLOOKUP($A331,Economática!$A$3:$AI$823,23,FALSE)))","v":""},{"$f":"IF($A331=\"\",\"\",IF(OR(VLOOKUP($A331,Economática!$A$3:$AI$823,24,FALSE)=0,VLOOKUP($A331,Economática!$A$3:$AI$823,24,FALSE)=\"-\"),1/0,VLOOKUP($A331,Economática!$A$3:$AI$823,24,FALSE)))","v":""},{"$f":"IF($A331=\"\",\"\",IF(OR(VLOOKUP($A331,Economática!$A$3:$AI$823,25,FALSE)=0,VLOOKUP($A331,Economática!$A$3:$AI$823,25,FALSE)=\"-\"),1/0,VLOOKUP($A331,Economática!$A$3:$AI$823,25,FALSE)))","v":""},{"$f":"IF($A331=\"\",\"\",IF(ISERROR((F331+VLOOKUP($A331,Economática!$A$3:$AI$823,26,FALSE))/Y331),(F331+VLOOKUP($A331,Economática!$A$3:$AI$823,26,FALSE))/Y331,(F331+VLOOKUP($A331,Economática!$A$3:$AI$823,26,FALSE))/Y331))","v":""},{"$f":"IF($A331=\"\",\"\",IF(OR(-VLOOKUP($A331,Economática!$A$3:$AI$823,27,FALSE)=0,-VLOOKUP($A331,Economática!$A$3:$AI$823,27,FALSE)=\"-\"),1/0,-VLOOKUP($A331,Economática!$A$3:$AI$823,27,FALSE)))","v":""},"",{"$f":"IF($A331=\"\",\"\",IF(OR(VLOOKUP($A331,Economática!$A$3:$AI$823,28,FALSE)=0,VLOOKUP($A331,Economática!$A$3:$AI$823,28,FALSE)=\"-\"),1/0,VLOOKUP($A331,Economática!$A$3:$AI$823,28,FALSE)))","v":""},{"$f":"IF($A331=\"\",\"\",IF(OR(VLOOKUP($A331,Economática!$A$3:$AI$823,29,FALSE)=0,VLOOKUP($A331,Economática!$A$3:$AI$823,29,FALSE)=\"-\"),1/0,VLOOKUP($A331,Economática!$A$3:$AI$823,29,FALSE)))","v":""},{"$f":"IF($A331=\"\",\"\",IF(OR(VLOOKUP($A331,Economática!$A$3:$AI$823,30,FALSE)/E331=0,VLOOKUP($A331,Economática!$A$3:$AI$823,30,FALSE)/E331=\"-\",VLOOKUP($A331,Economática!$A$3:$AI$823,30,FALSE)/E331<33.33%,VLOOKUP($A331,Economática!$A$3:$AI$823,30,FALSE)/E331>100%),1/0,VLOOKUP($A331,Economática!$A$3:$AI$823,30,FALSE)/E331))","v":""},"",{"$f":"IF($A331=\"\",\"\",IF(OR(VLOOKUP($A331,Economática!$A$3:$AI$823,25,FALSE)=0,VLOOKUP($A331,Economática!$A$3:$AI$823,25,FALSE)=\"-\"),1/0,VLOOKUP($A331,Economática!$A$3:$AI$823,25,FALSE)))","v":""},{"$f":"CONCATENATE(Economática!B309,\" \",Economática!C309)","v":" "}]
[{"$f":"IF(Economática!AG310=\"\",\"\",Economática!AG310)","v":""},{"$f":"IF($A332=\"\",\"\",VLOOKUP(VLOOKUP($A332,Economática!$A$3:$AI$823,6,FALSE),Correção!$B$16:$C$36,2,FALSE))","v":""},{"$f":"IF(Economática!B310=\"\",\"\",Economática!B310)","v":""},{"$f":"IF($A332=\"\",\"\",IF(OR(VLOOKUP($A332,Economática!$A$3:$AI$823,8,FALSE)=0,VLOOKUP($A332,Economática!$A$3:$AI$823,8,FALSE)=\"-\"),1/0,VLOOKUP($A332,Economática!$A$3:$AI$823,8,FALSE)))","v":""},{"$f":"IF(A332=\"\",\"\",IF(ISERROR(VLOOKUP(A332,Correção!$B$2:$G$13,9,FALSE)),VLOOKUP($A332,Economática!$A$3:$AI$823,9,FALSE),VLOOKUP(A332,Correção!$B$2:$G$13,9,FALSE)))","v":""},{"$f":"IF($A332=\"\",\"\",Economática!G310)","v":""},{"$f":"IF($A332=\"\",\"\",IF(OR(VLOOKUP($A332,Economática!$A$3:$AI$823,10,FALSE)=0,VLOOKUP($A332,Economática!$A$3:$AI$823,10,FALSE)=\"-\"),1/0,VLOOKUP($A332,Economática!$A$3:$AI$823,10,FALSE)))","v":""},{"$f":"IF($A332=\"\",\"\",IF(OR(VLOOKUP($A332,Economática!$A$3:$AI$823,11,FALSE)=0,VLOOKUP($A332,Economática!$A$3:$AI$823,11,FALSE)=\"-\"),1/0,VLOOKUP($A332,Economática!$A$3:$AI$823,11,FALSE)))","v":""},{"$f":"IF($A332=\"\",\"\",IF(OR(VLOOKUP($A332,Economática!$A$3:$AI$823,12,FALSE)=0,VLOOKUP($A332,Economática!$A$3:$AI$823,12,FALSE)=\"-\"),1/0,VLOOKUP($A332,Economática!$A$3:$AI$823,12,FALSE)))","v":""},{"$f":"IF($A332=\"\",\"\",IF(OR(VLOOKUP($A332,Economática!$A$3:$AI$823,13,FALSE)=0,VLOOKUP($A332,Economática!$A$3:$AI$823,13,FALSE)=\"-\"),1/0,VLOOKUP($A332,Economática!$A$3:$AI$823,13,FALSE)))","v":""},{"$f":"IF($A332=\"\",\"\",IF(OR(VLOOKUP($A332,Economática!$A$3:$AI$823,14,FALSE)=0,VLOOKUP($A332,Economática!$A$3:$AI$823,14,FALSE)=\"-\"),1/0,VLOOKUP($A332,Economática!$A$3:$AI$823,14,FALSE)))","v":""},{"$f":"IF($A332=\"\",\"\",IF(OR(VLOOKUP($A332,Economática!$A$3:$AI$823,15,FALSE)=0,VLOOKUP($A332,Economática!$A$3:$AI$823,15,FALSE)=\"-\"),1/0,VLOOKUP($A332,Economática!$A$3:$AI$823,15,FALSE)))","v":""},{"$f":"IF($A332=\"\",\"\",IF(OR(VLOOKUP($A332,Economática!$A$3:$AI$823,16,FALSE)=0,VLOOKUP($A332,Economática!$A$3:$AI$823,16,FALSE)=\"-\"),1/0,VLOOKUP($A332,Economática!$A$3:$AI$823,16,FALSE)))","v":""},{"$f":"IF($A332=\"\",\"\",IF(OR(VLOOKUP($A332,Economática!$A$3:$AI$823,17,FALSE)=0,VLOOKUP($A332,Economática!$A$3:$AI$823,17,FALSE)=\"-\"),1/0,VLOOKUP($A332,Economática!$A$3:$AI$823,17,FALSE)))","v":""},{"$f":"IF($A332=\"\",\"\",IF(OR(VLOOKUP($A332,Economática!$A$3:$AI$823,18,FALSE)=0,VLOOKUP($A332,Economática!$A$3:$AI$823,18,FALSE)=\"-\"),1/0,VLOOKUP($A332,Economática!$A$3:$AI$823,18,FALSE)))","v":""},{"$f":"IF($A332=\"\",\"\",IF(OR(VLOOKUP($A332,Economática!$A$3:$AI$823,19,FALSE)=0,VLOOKUP($A332,Economática!$A$3:$AI$823,19,FALSE)=\"-\"),1/0,VLOOKUP($A332,Economática!$A$3:$AI$823,19,FALSE)))","v":""},{"$f":"IF($A332=\"\",\"\",VLOOKUP($A332,Economática!$A$3:$AI$823,20,FALSE)/E332)","v":""},"","","",{"$f":"IF($A332=\"\",\"\",IF(OR(VLOOKUP($A332,Economática!$A$3:$AI$823,21,FALSE)/100=0,VLOOKUP($A332,Economática!$A$3:$AI$823,21,FALSE)/100=\"-\"),1/0,VLOOKUP($A332,Economática!$A$3:$AI$823,21,FALSE)/100))","v":""},{"$f":"IF($A332=\"\",\"\",IF(OR(VLOOKUP($A332,Economática!$A$3:$AI$823,22,FALSE)/100=0,VLOOKUP($A332,Economática!$A$3:$AI$823,22,FALSE)/100=\"-\"),1/0,VLOOKUP($A332,Economática!$A$3:$AI$823,22,FALSE)/100))","v":""},{"$f":"IF($A332=\"\",\"\",IF(OR(VLOOKUP($A332,Economática!$A$3:$AI$823,23,FALSE)=0,VLOOKUP($A332,Economática!$A$3:$AI$823,23,FALSE)=\"-\"),1/0,VLOOKUP($A332,Economática!$A$3:$AI$823,23,FALSE)))","v":""},{"$f":"IF($A332=\"\",\"\",IF(OR(VLOOKUP($A332,Economática!$A$3:$AI$823,24,FALSE)=0,VLOOKUP($A332,Economática!$A$3:$AI$823,24,FALSE)=\"-\"),1/0,VLOOKUP($A332,Economática!$A$3:$AI$823,24,FALSE)))","v":""},{"$f":"IF($A332=\"\",\"\",IF(OR(VLOOKUP($A332,Economática!$A$3:$AI$823,25,FALSE)=0,VLOOKUP($A332,Economática!$A$3:$AI$823,25,FALSE)=\"-\"),1/0,VLOOKUP($A332,Economática!$A$3:$AI$823,25,FALSE)))","v":""},{"$f":"IF($A332=\"\",\"\",IF(ISERROR((F332+VLOOKUP($A332,Economática!$A$3:$AI$823,26,FALSE))/Y332),(F332+VLOOKUP($A332,Economática!$A$3:$AI$823,26,FALSE))/Y332,(F332+VLOOKUP($A332,Economática!$A$3:$AI$823,26,FALSE))/Y332))","v":""},{"$f":"IF($A332=\"\",\"\",IF(OR(-VLOOKUP($A332,Economática!$A$3:$AI$823,27,FALSE)=0,-VLOOKUP($A332,Economática!$A$3:$AI$823,27,FALSE)=\"-\"),1/0,-VLOOKUP($A332,Economática!$A$3:$AI$823,27,FALSE)))","v":""},"",{"$f":"IF($A332=\"\",\"\",IF(OR(VLOOKUP($A332,Economática!$A$3:$AI$823,28,FALSE)=0,VLOOKUP($A332,Economática!$A$3:$AI$823,28,FALSE)=\"-\"),1/0,VLOOKUP($A332,Economática!$A$3:$AI$823,28,FALSE)))","v":""},{"$f":"IF($A332=\"\",\"\",IF(OR(VLOOKUP($A332,Economática!$A$3:$AI$823,29,FALSE)=0,VLOOKUP($A332,Economática!$A$3:$AI$823,29,FALSE)=\"-\"),1/0,VLOOKUP($A332,Economática!$A$3:$AI$823,29,FALSE)))","v":""},{"$f":"IF($A332=\"\",\"\",IF(OR(VLOOKUP($A332,Economática!$A$3:$AI$823,30,FALSE)/E332=0,VLOOKUP($A332,Economática!$A$3:$AI$823,30,FALSE)/E332=\"-\",VLOOKUP($A332,Economática!$A$3:$AI$823,30,FALSE)/E332<33.33%,VLOOKUP($A332,Economática!$A$3:$AI$823,30,FALSE)/E332>100%),1/0,VLOOKUP($A332,Economática!$A$3:$AI$823,30,FALSE)/E332))","v":""},"",{"$f":"IF($A332=\"\",\"\",IF(OR(VLOOKUP($A332,Economática!$A$3:$AI$823,25,FALSE)=0,VLOOKUP($A332,Economática!$A$3:$AI$823,25,FALSE)=\"-\"),1/0,VLOOKUP($A332,Economática!$A$3:$AI$823,25,FALSE)))","v":""},{"$f":"CONCATENATE(Economática!B310,\" \",Economática!C310)","v":" "}]
[{"$f":"IF(Economática!AG311=\"\",\"\",Economática!AG311)","v":""},{"$f":"IF($A333=\"\",\"\",VLOOKUP(VLOOKUP($A333,Economática!$A$3:$AI$823,6,FALSE),Correção!$B$16:$C$36,2,FALSE))","v":""},{"$f":"IF(Economática!B311=\"\",\"\",Economática!B311)","v":""},{"$f":"IF($A333=\"\",\"\",IF(OR(VLOOKUP($A333,Economática!$A$3:$AI$823,8,FALSE)=0,VLOOKUP($A333,Economática!$A$3:$AI$823,8,FALSE)=\"-\"),1/0,VLOOKUP($A333,Economática!$A$3:$AI$823,8,FALSE)))","v":""},{"$f":"IF(A333=\"\",\"\",IF(ISERROR(VLOOKUP(A333,Correção!$B$2:$G$13,9,FALSE)),VLOOKUP($A333,Economática!$A$3:$AI$823,9,FALSE),VLOOKUP(A333,Correção!$B$2:$G$13,9,FALSE)))","v":""},{"$f":"IF($A333=\"\",\"\",Economática!G311)","v":""},{"$f":"IF($A333=\"\",\"\",IF(OR(VLOOKUP($A333,Economática!$A$3:$AI$823,10,FALSE)=0,VLOOKUP($A333,Economática!$A$3:$AI$823,10,FALSE)=\"-\"),1/0,VLOOKUP($A333,Economática!$A$3:$AI$823,10,FALSE)))","v":""},{"$f":"IF($A333=\"\",\"\",IF(OR(VLOOKUP($A333,Economática!$A$3:$AI$823,11,FALSE)=0,VLOOKUP($A333,Economática!$A$3:$AI$823,11,FALSE)=\"-\"),1/0,VLOOKUP($A333,Economática!$A$3:$AI$823,11,FALSE)))","v":""},{"$f":"IF($A333=\"\",\"\",IF(OR(VLOOKUP($A333,Economática!$A$3:$AI$823,12,FALSE)=0,VLOOKUP($A333,Economática!$A$3:$AI$823,12,FALSE)=\"-\"),1/0,VLOOKUP($A333,Economática!$A$3:$AI$823,12,FALSE)))","v":""},{"$f":"IF($A333=\"\",\"\",IF(OR(VLOOKUP($A333,Economática!$A$3:$AI$823,13,FALSE)=0,VLOOKUP($A333,Economática!$A$3:$AI$823,13,FALSE)=\"-\"),1/0,VLOOKUP($A333,Economática!$A$3:$AI$823,13,FALSE)))","v":""},{"$f":"IF($A333=\"\",\"\",IF(OR(VLOOKUP($A333,Economática!$A$3:$AI$823,14,FALSE)=0,VLOOKUP($A333,Economática!$A$3:$AI$823,14,FALSE)=\"-\"),1/0,VLOOKUP($A333,Economática!$A$3:$AI$823,14,FALSE)))","v":""},{"$f":"IF($A333=\"\",\"\",IF(OR(VLOOKUP($A333,Economática!$A$3:$AI$823,15,FALSE)=0,VLOOKUP($A333,Economática!$A$3:$AI$823,15,FALSE)=\"-\"),1/0,VLOOKUP($A333,Economática!$A$3:$AI$823,15,FALSE)))","v":""},{"$f":"IF($A333=\"\",\"\",IF(OR(VLOOKUP($A333,Economática!$A$3:$AI$823,16,FALSE)=0,VLOOKUP($A333,Economática!$A$3:$AI$823,16,FALSE)=\"-\"),1/0,VLOOKUP($A333,Economática!$A$3:$AI$823,16,FALSE)))","v":""},{"$f":"IF($A333=\"\",\"\",IF(OR(VLOOKUP($A333,Economática!$A$3:$AI$823,17,FALSE)=0,VLOOKUP($A333,Economática!$A$3:$AI$823,17,FALSE)=\"-\"),1/0,VLOOKUP($A333,Economática!$A$3:$AI$823,17,FALSE)))","v":""},{"$f":"IF($A333=\"\",\"\",IF(OR(VLOOKUP($A333,Economática!$A$3:$AI$823,18,FALSE)=0,VLOOKUP($A333,Economática!$A$3:$AI$823,18,FALSE)=\"-\"),1/0,VLOOKUP($A333,Economática!$A$3:$AI$823,18,FALSE)))","v":""},{"$f":"IF($A333=\"\",\"\",IF(OR(VLOOKUP($A333,Economática!$A$3:$AI$823,19,FALSE)=0,VLOOKUP($A333,Economática!$A$3:$AI$823,19,FALSE)=\"-\"),1/0,VLOOKUP($A333,Economática!$A$3:$AI$823,19,FALSE)))","v":""},{"$f":"IF($A333=\"\",\"\",VLOOKUP($A333,Economática!$A$3:$AI$823,20,FALSE)/E333)","v":""},"","","",{"$f":"IF($A333=\"\",\"\",IF(OR(VLOOKUP($A333,Economática!$A$3:$AI$823,21,FALSE)/100=0,VLOOKUP($A333,Economática!$A$3:$AI$823,21,FALSE)/100=\"-\"),1/0,VLOOKUP($A333,Economática!$A$3:$AI$823,21,FALSE)/100))","v":""},{"$f":"IF($A333=\"\",\"\",IF(OR(VLOOKUP($A333,Economática!$A$3:$AI$823,22,FALSE)/100=0,VLOOKUP($A333,Economática!$A$3:$AI$823,22,FALSE)/100=\"-\"),1/0,VLOOKUP($A333,Economática!$A$3:$AI$823,22,FALSE)/100))","v":""},{"$f":"IF($A333=\"\",\"\",IF(OR(VLOOKUP($A333,Economática!$A$3:$AI$823,23,FALSE)=0,VLOOKUP($A333,Economática!$A$3:$AI$823,23,FALSE)=\"-\"),1/0,VLOOKUP($A333,Economática!$A$3:$AI$823,23,FALSE)))","v":""},{"$f":"IF($A333=\"\",\"\",IF(OR(VLOOKUP($A333,Economática!$A$3:$AI$823,24,FALSE)=0,VLOOKUP($A333,Economática!$A$3:$AI$823,24,FALSE)=\"-\"),1/0,VLOOKUP($A333,Economática!$A$3:$AI$823,24,FALSE)))","v":""},{"$f":"IF($A333=\"\",\"\",IF(OR(VLOOKUP($A333,Economática!$A$3:$AI$823,25,FALSE)=0,VLOOKUP($A333,Economática!$A$3:$AI$823,25,FALSE)=\"-\"),1/0,VLOOKUP($A333,Economática!$A$3:$AI$823,25,FALSE)))","v":""},{"$f":"IF($A333=\"\",\"\",IF(ISERROR((F333+VLOOKUP($A333,Economática!$A$3:$AI$823,26,FALSE))/Y333),(F333+VLOOKUP($A333,Economática!$A$3:$AI$823,26,FALSE))/Y333,(F333+VLOOKUP($A333,Economática!$A$3:$AI$823,26,FALSE))/Y333))","v":""},{"$f":"IF($A333=\"\",\"\",IF(OR(-VLOOKUP($A333,Economática!$A$3:$AI$823,27,FALSE)=0,-VLOOKUP($A333,Economática!$A$3:$AI$823,27,FALSE)=\"-\"),1/0,-VLOOKUP($A333,Economática!$A$3:$AI$823,27,FALSE)))","v":""},"",{"$f":"IF($A333=\"\",\"\",IF(OR(VLOOKUP($A333,Economática!$A$3:$AI$823,28,FALSE)=0,VLOOKUP($A333,Economática!$A$3:$AI$823,28,FALSE)=\"-\"),1/0,VLOOKUP($A333,Economática!$A$3:$AI$823,28,FALSE)))","v":""},{"$f":"IF($A333=\"\",\"\",IF(OR(VLOOKUP($A333,Economática!$A$3:$AI$823,29,FALSE)=0,VLOOKUP($A333,Economática!$A$3:$AI$823,29,FALSE)=\"-\"),1/0,VLOOKUP($A333,Economática!$A$3:$AI$823,29,FALSE)))","v":""},{"$f":"IF($A333=\"\",\"\",IF(OR(VLOOKUP($A333,Economática!$A$3:$AI$823,30,FALSE)/E333=0,VLOOKUP($A333,Economática!$A$3:$AI$823,30,FALSE)/E333=\"-\",VLOOKUP($A333,Economática!$A$3:$AI$823,30,FALSE)/E333<33.33%,VLOOKUP($A333,Economática!$A$3:$AI$823,30,FALSE)/E333>100%),1/0,VLOOKUP($A333,Economática!$A$3:$AI$823,30,FALSE)/E333))","v":""},"",{"$f":"IF($A333=\"\",\"\",IF(OR(VLOOKUP($A333,Economática!$A$3:$AI$823,25,FALSE)=0,VLOOKUP($A333,Economática!$A$3:$AI$823,25,FALSE)=\"-\"),1/0,VLOOKUP($A333,Economática!$A$3:$AI$823,25,FALSE)))","v":""},{"$f":"CONCATENATE(Economática!B311,\" \",Economática!C311)","v":" "}]
[{"$f":"IF(Economática!AG312=\"\",\"\",Economática!AG312)","v":""},{"$f":"IF($A334=\"\",\"\",VLOOKUP(VLOOKUP($A334,Economática!$A$3:$AI$823,6,FALSE),Correção!$B$16:$C$36,2,FALSE))","v":""},{"$f":"IF(Economática!B312=\"\",\"\",Economática!B312)","v":""},{"$f":"IF($A334=\"\",\"\",IF(OR(VLOOKUP($A334,Economática!$A$3:$AI$823,8,FALSE)=0,VLOOKUP($A334,Economática!$A$3:$AI$823,8,FALSE)=\"-\"),1/0,VLOOKUP($A334,Economática!$A$3:$AI$823,8,FALSE)))","v":""},{"$f":"IF(A334=\"\",\"\",IF(ISERROR(VLOOKUP(A334,Correção!$B$2:$G$13,9,FALSE)),VLOOKUP($A334,Economática!$A$3:$AI$823,9,FALSE),VLOOKUP(A334,Correção!$B$2:$G$13,9,FALSE)))","v":""},{"$f":"IF($A334=\"\",\"\",Economática!G312)","v":""},{"$f":"IF($A334=\"\",\"\",IF(OR(VLOOKUP($A334,Economática!$A$3:$AI$823,10,FALSE)=0,VLOOKUP($A334,Economática!$A$3:$AI$823,10,FALSE)=\"-\"),1/0,VLOOKUP($A334,Economática!$A$3:$AI$823,10,FALSE)))","v":""},{"$f":"IF($A334=\"\",\"\",IF(OR(VLOOKUP($A334,Economática!$A$3:$AI$823,11,FALSE)=0,VLOOKUP($A334,Economática!$A$3:$AI$823,11,FALSE)=\"-\"),1/0,VLOOKUP($A334,Economática!$A$3:$AI$823,11,FALSE)))","v":""},{"$f":"IF($A334=\"\",\"\",IF(OR(VLOOKUP($A334,Economática!$A$3:$AI$823,12,FALSE)=0,VLOOKUP($A334,Economática!$A$3:$AI$823,12,FALSE)=\"-\"),1/0,VLOOKUP($A334,Economática!$A$3:$AI$823,12,FALSE)))","v":""},{"$f":"IF($A334=\"\",\"\",IF(OR(VLOOKUP($A334,Economática!$A$3:$AI$823,13,FALSE)=0,VLOOKUP($A334,Economática!$A$3:$AI$823,13,FALSE)=\"-\"),1/0,VLOOKUP($A334,Economática!$A$3:$AI$823,13,FALSE)))","v":""},{"$f":"IF($A334=\"\",\"\",IF(OR(VLOOKUP($A334,Economática!$A$3:$AI$823,14,FALSE)=0,VLOOKUP($A334,Economática!$A$3:$AI$823,14,FALSE)=\"-\"),1/0,VLOOKUP($A334,Economática!$A$3:$AI$823,14,FALSE)))","v":""},{"$f":"IF($A334=\"\",\"\",IF(OR(VLOOKUP($A334,Economática!$A$3:$AI$823,15,FALSE)=0,VLOOKUP($A334,Economática!$A$3:$AI$823,15,FALSE)=\"-\"),1/0,VLOOKUP($A334,Economática!$A$3:$AI$823,15,FALSE)))","v":""},{"$f":"IF($A334=\"\",\"\",IF(OR(VLOOKUP($A334,Economática!$A$3:$AI$823,16,FALSE)=0,VLOOKUP($A334,Economática!$A$3:$AI$823,16,FALSE)=\"-\"),1/0,VLOOKUP($A334,Economática!$A$3:$AI$823,16,FALSE)))","v":""},{"$f":"IF($A334=\"\",\"\",IF(OR(VLOOKUP($A334,Economática!$A$3:$AI$823,17,FALSE)=0,VLOOKUP($A334,Economática!$A$3:$AI$823,17,FALSE)=\"-\"),1/0,VLOOKUP($A334,Economática!$A$3:$AI$823,17,FALSE)))","v":""},{"$f":"IF($A334=\"\",\"\",IF(OR(VLOOKUP($A334,Economática!$A$3:$AI$823,18,FALSE)=0,VLOOKUP($A334,Economática!$A$3:$AI$823,18,FALSE)=\"-\"),1/0,VLOOKUP($A334,Economática!$A$3:$AI$823,18,FALSE)))","v":""},{"$f":"IF($A334=\"\",\"\",IF(OR(VLOOKUP($A334,Economática!$A$3:$AI$823,19,FALSE)=0,VLOOKUP($A334,Economática!$A$3:$AI$823,19,FALSE)=\"-\"),1/0,VLOOKUP($A334,Economática!$A$3:$AI$823,19,FALSE)))","v":""},{"$f":"IF($A334=\"\",\"\",VLOOKUP($A334,Economática!$A$3:$AI$823,20,FALSE)/E334)","v":""},"","","",{"$f":"IF($A334=\"\",\"\",IF(OR(VLOOKUP($A334,Economática!$A$3:$AI$823,21,FALSE)/100=0,VLOOKUP($A334,Economática!$A$3:$AI$823,21,FALSE)/100=\"-\"),1/0,VLOOKUP($A334,Economática!$A$3:$AI$823,21,FALSE)/100))","v":""},{"$f":"IF($A334=\"\",\"\",IF(OR(VLOOKUP($A334,Economática!$A$3:$AI$823,22,FALSE)/100=0,VLOOKUP($A334,Economática!$A$3:$AI$823,22,FALSE)/100=\"-\"),1/0,VLOOKUP($A334,Economática!$A$3:$AI$823,22,FALSE)/100))","v":""},{"$f":"IF($A334=\"\",\"\",IF(OR(VLOOKUP($A334,Economática!$A$3:$AI$823,23,FALSE)=0,VLOOKUP($A334,Economática!$A$3:$AI$823,23,FALSE)=\"-\"),1/0,VLOOKUP($A334,Economática!$A$3:$AI$823,23,FALSE)))","v":""},{"$f":"IF($A334=\"\",\"\",IF(OR(VLOOKUP($A334,Economática!$A$3:$AI$823,24,FALSE)=0,VLOOKUP($A334,Economática!$A$3:$AI$823,24,FALSE)=\"-\"),1/0,VLOOKUP($A334,Economática!$A$3:$AI$823,24,FALSE)))","v":""},{"$f":"IF($A334=\"\",\"\",IF(OR(VLOOKUP($A334,Economática!$A$3:$AI$823,25,FALSE)=0,VLOOKUP($A334,Economática!$A$3:$AI$823,25,FALSE)=\"-\"),1/0,VLOOKUP($A334,Economática!$A$3:$AI$823,25,FALSE)))","v":""},{"$f":"IF($A334=\"\",\"\",IF(ISERROR((F334+VLOOKUP($A334,Economática!$A$3:$AI$823,26,FALSE))/Y334),(F334+VLOOKUP($A334,Economática!$A$3:$AI$823,26,FALSE))/Y334,(F334+VLOOKUP($A334,Economática!$A$3:$AI$823,26,FALSE))/Y334))","v":""},{"$f":"IF($A334=\"\",\"\",IF(OR(-VLOOKUP($A334,Economática!$A$3:$AI$823,27,FALSE)=0,-VLOOKUP($A334,Economática!$A$3:$AI$823,27,FALSE)=\"-\"),1/0,-VLOOKUP($A334,Economática!$A$3:$AI$823,27,FALSE)))","v":""},"",{"$f":"IF($A334=\"\",\"\",IF(OR(VLOOKUP($A334,Economática!$A$3:$AI$823,28,FALSE)=0,VLOOKUP($A334,Economática!$A$3:$AI$823,28,FALSE)=\"-\"),1/0,VLOOKUP($A334,Economática!$A$3:$AI$823,28,FALSE)))","v":""},{"$f":"IF($A334=\"\",\"\",IF(OR(VLOOKUP($A334,Economática!$A$3:$AI$823,29,FALSE)=0,VLOOKUP($A334,Economática!$A$3:$AI$823,29,FALSE)=\"-\"),1/0,VLOOKUP($A334,Economática!$A$3:$AI$823,29,FALSE)))","v":""},{"$f":"IF($A334=\"\",\"\",IF(OR(VLOOKUP($A334,Economática!$A$3:$AI$823,30,FALSE)/E334=0,VLOOKUP($A334,Economática!$A$3:$AI$823,30,FALSE)/E334=\"-\",VLOOKUP($A334,Economática!$A$3:$AI$823,30,FALSE)/E334<33.33%,VLOOKUP($A334,Economática!$A$3:$AI$823,30,FALSE)/E334>100%),1/0,VLOOKUP($A334,Economática!$A$3:$AI$823,30,FALSE)/E334))","v":""},"",{"$f":"IF($A334=\"\",\"\",IF(OR(VLOOKUP($A334,Economática!$A$3:$AI$823,25,FALSE)=0,VLOOKUP($A334,Economática!$A$3:$AI$823,25,FALSE)=\"-\"),1/0,VLOOKUP($A334,Economática!$A$3:$AI$823,25,FALSE)))","v":""},{"$f":"CONCATENATE(Economática!B312,\" \",Economática!C312)","v":" "}]
[{"$f":"IF(Economática!AG313=\"\",\"\",Economática!AG313)","v":""},{"$f":"IF($A335=\"\",\"\",VLOOKUP(VLOOKUP($A335,Economática!$A$3:$AI$823,6,FALSE),Correção!$B$16:$C$36,2,FALSE))","v":""},{"$f":"IF(Economática!B313=\"\",\"\",Economática!B313)","v":""},{"$f":"IF($A335=\"\",\"\",IF(OR(VLOOKUP($A335,Economática!$A$3:$AI$823,8,FALSE)=0,VLOOKUP($A335,Economática!$A$3:$AI$823,8,FALSE)=\"-\"),1/0,VLOOKUP($A335,Economática!$A$3:$AI$823,8,FALSE)))","v":""},{"$f":"IF(A335=\"\",\"\",IF(ISERROR(VLOOKUP(A335,Correção!$B$2:$G$13,9,FALSE)),VLOOKUP($A335,Economática!$A$3:$AI$823,9,FALSE),VLOOKUP(A335,Correção!$B$2:$G$13,9,FALSE)))","v":""},{"$f":"IF($A335=\"\",\"\",Economática!G313)","v":""},{"$f":"IF($A335=\"\",\"\",IF(OR(VLOOKUP($A335,Economática!$A$3:$AI$823,10,FALSE)=0,VLOOKUP($A335,Economática!$A$3:$AI$823,10,FALSE)=\"-\"),1/0,VLOOKUP($A335,Economática!$A$3:$AI$823,10,FALSE)))","v":""},{"$f":"IF($A335=\"\",\"\",IF(OR(VLOOKUP($A335,Economática!$A$3:$AI$823,11,FALSE)=0,VLOOKUP($A335,Economática!$A$3:$AI$823,11,FALSE)=\"-\"),1/0,VLOOKUP($A335,Economática!$A$3:$AI$823,11,FALSE)))","v":""},{"$f":"IF($A335=\"\",\"\",IF(OR(VLOOKUP($A335,Economática!$A$3:$AI$823,12,FALSE)=0,VLOOKUP($A335,Economática!$A$3:$AI$823,12,FALSE)=\"-\"),1/0,VLOOKUP($A335,Economática!$A$3:$AI$823,12,FALSE)))","v":""},{"$f":"IF($A335=\"\",\"\",IF(OR(VLOOKUP($A335,Economática!$A$3:$AI$823,13,FALSE)=0,VLOOKUP($A335,Economática!$A$3:$AI$823,13,FALSE)=\"-\"),1/0,VLOOKUP($A335,Economática!$A$3:$AI$823,13,FALSE)))","v":""},{"$f":"IF($A335=\"\",\"\",IF(OR(VLOOKUP($A335,Economática!$A$3:$AI$823,14,FALSE)=0,VLOOKUP($A335,Economática!$A$3:$AI$823,14,FALSE)=\"-\"),1/0,VLOOKUP($A335,Economática!$A$3:$AI$823,14,FALSE)))","v":""},{"$f":"IF($A335=\"\",\"\",IF(OR(VLOOKUP($A335,Economática!$A$3:$AI$823,15,FALSE)=0,VLOOKUP($A335,Economática!$A$3:$AI$823,15,FALSE)=\"-\"),1/0,VLOOKUP($A335,Economática!$A$3:$AI$823,15,FALSE)))","v":""},{"$f":"IF($A335=\"\",\"\",IF(OR(VLOOKUP($A335,Economática!$A$3:$AI$823,16,FALSE)=0,VLOOKUP($A335,Economática!$A$3:$AI$823,16,FALSE)=\"-\"),1/0,VLOOKUP($A335,Economática!$A$3:$AI$823,16,FALSE)))","v":""},{"$f":"IF($A335=\"\",\"\",IF(OR(VLOOKUP($A335,Economática!$A$3:$AI$823,17,FALSE)=0,VLOOKUP($A335,Economática!$A$3:$AI$823,17,FALSE)=\"-\"),1/0,VLOOKUP($A335,Economática!$A$3:$AI$823,17,FALSE)))","v":""},{"$f":"IF($A335=\"\",\"\",IF(OR(VLOOKUP($A335,Economática!$A$3:$AI$823,18,FALSE)=0,VLOOKUP($A335,Economática!$A$3:$AI$823,18,FALSE)=\"-\"),1/0,VLOOKUP($A335,Economática!$A$3:$AI$823,18,FALSE)))","v":""},{"$f":"IF($A335=\"\",\"\",IF(OR(VLOOKUP($A335,Economática!$A$3:$AI$823,19,FALSE)=0,VLOOKUP($A335,Economática!$A$3:$AI$823,19,FALSE)=\"-\"),1/0,VLOOKUP($A335,Economática!$A$3:$AI$823,19,FALSE)))","v":""},{"$f":"IF($A335=\"\",\"\",VLOOKUP($A335,Economática!$A$3:$AI$823,20,FALSE)/E335)","v":""},"","","",{"$f":"IF($A335=\"\",\"\",IF(OR(VLOOKUP($A335,Economática!$A$3:$AI$823,21,FALSE)/100=0,VLOOKUP($A335,Economática!$A$3:$AI$823,21,FALSE)/100=\"-\"),1/0,VLOOKUP($A335,Economática!$A$3:$AI$823,21,FALSE)/100))","v":""},{"$f":"IF($A335=\"\",\"\",IF(OR(VLOOKUP($A335,Economática!$A$3:$AI$823,22,FALSE)/100=0,VLOOKUP($A335,Economática!$A$3:$AI$823,22,FALSE)/100=\"-\"),1/0,VLOOKUP($A335,Economática!$A$3:$AI$823,22,FALSE)/100))","v":""},{"$f":"IF($A335=\"\",\"\",IF(OR(VLOOKUP($A335,Economática!$A$3:$AI$823,23,FALSE)=0,VLOOKUP($A335,Economática!$A$3:$AI$823,23,FALSE)=\"-\"),1/0,VLOOKUP($A335,Economática!$A$3:$AI$823,23,FALSE)))","v":""},{"$f":"IF($A335=\"\",\"\",IF(OR(VLOOKUP($A335,Economática!$A$3:$AI$823,24,FALSE)=0,VLOOKUP($A335,Economática!$A$3:$AI$823,24,FALSE)=\"-\"),1/0,VLOOKUP($A335,Economática!$A$3:$AI$823,24,FALSE)))","v":""},{"$f":"IF($A335=\"\",\"\",IF(OR(VLOOKUP($A335,Economática!$A$3:$AI$823,25,FALSE)=0,VLOOKUP($A335,Economática!$A$3:$AI$823,25,FALSE)=\"-\"),1/0,VLOOKUP($A335,Economática!$A$3:$AI$823,25,FALSE)))","v":""},{"$f":"IF($A335=\"\",\"\",IF(ISERROR((F335+VLOOKUP($A335,Economática!$A$3:$AI$823,26,FALSE))/Y335),(F335+VLOOKUP($A335,Economática!$A$3:$AI$823,26,FALSE))/Y335,(F335+VLOOKUP($A335,Economática!$A$3:$AI$823,26,FALSE))/Y335))","v":""},{"$f":"IF($A335=\"\",\"\",IF(OR(-VLOOKUP($A335,Economática!$A$3:$AI$823,27,FALSE)=0,-VLOOKUP($A335,Economática!$A$3:$AI$823,27,FALSE)=\"-\"),1/0,-VLOOKUP($A335,Economática!$A$3:$AI$823,27,FALSE)))","v":""},"",{"$f":"IF($A335=\"\",\"\",IF(OR(VLOOKUP($A335,Economática!$A$3:$AI$823,28,FALSE)=0,VLOOKUP($A335,Economática!$A$3:$AI$823,28,FALSE)=\"-\"),1/0,VLOOKUP($A335,Economática!$A$3:$AI$823,28,FALSE)))","v":""},{"$f":"IF($A335=\"\",\"\",IF(OR(VLOOKUP($A335,Economática!$A$3:$AI$823,29,FALSE)=0,VLOOKUP($A335,Economática!$A$3:$AI$823,29,FALSE)=\"-\"),1/0,VLOOKUP($A335,Economática!$A$3:$AI$823,29,FALSE)))","v":""},{"$f":"IF($A335=\"\",\"\",IF(OR(VLOOKUP($A335,Economática!$A$3:$AI$823,30,FALSE)/E335=0,VLOOKUP($A335,Economática!$A$3:$AI$823,30,FALSE)/E335=\"-\",VLOOKUP($A335,Economática!$A$3:$AI$823,30,FALSE)/E335<33.33%,VLOOKUP($A335,Economática!$A$3:$AI$823,30,FALSE)/E335>100%),1/0,VLOOKUP($A335,Economática!$A$3:$AI$823,30,FALSE)/E335))","v":""},"",{"$f":"IF($A335=\"\",\"\",IF(OR(VLOOKUP($A335,Economática!$A$3:$AI$823,25,FALSE)=0,VLOOKUP($A335,Economática!$A$3:$AI$823,25,FALSE)=\"-\"),1/0,VLOOKUP($A335,Economática!$A$3:$AI$823,25,FALSE)))","v":""},{"$f":"CONCATENATE(Economática!B313,\" \",Economática!C313)","v":" "}]
[{"$f":"IF(Economática!AG314=\"\",\"\",Economática!AG314)","v":""},{"$f":"IF($A336=\"\",\"\",VLOOKUP(VLOOKUP($A336,Economática!$A$3:$AI$823,6,FALSE),Correção!$B$16:$C$36,2,FALSE))","v":""},{"$f":"IF(Economática!B314=\"\",\"\",Economática!B314)","v":""},{"$f":"IF($A336=\"\",\"\",IF(OR(VLOOKUP($A336,Economática!$A$3:$AI$823,8,FALSE)=0,VLOOKUP($A336,Economática!$A$3:$AI$823,8,FALSE)=\"-\"),1/0,VLOOKUP($A336,Economática!$A$3:$AI$823,8,FALSE)))","v":""},{"$f":"IF(A336=\"\",\"\",IF(ISERROR(VLOOKUP(A336,Correção!$B$2:$G$13,9,FALSE)),VLOOKUP($A336,Economática!$A$3:$AI$823,9,FALSE),VLOOKUP(A336,Correção!$B$2:$G$13,9,FALSE)))","v":""},{"$f":"IF($A336=\"\",\"\",Economática!G314)","v":""},{"$f":"IF($A336=\"\",\"\",IF(OR(VLOOKUP($A336,Economática!$A$3:$AI$823,10,FALSE)=0,VLOOKUP($A336,Economática!$A$3:$AI$823,10,FALSE)=\"-\"),1/0,VLOOKUP($A336,Economática!$A$3:$AI$823,10,FALSE)))","v":""},{"$f":"IF($A336=\"\",\"\",IF(OR(VLOOKUP($A336,Economática!$A$3:$AI$823,11,FALSE)=0,VLOOKUP($A336,Economática!$A$3:$AI$823,11,FALSE)=\"-\"),1/0,VLOOKUP($A336,Economática!$A$3:$AI$823,11,FALSE)))","v":""},{"$f":"IF($A336=\"\",\"\",IF(OR(VLOOKUP($A336,Economática!$A$3:$AI$823,12,FALSE)=0,VLOOKUP($A336,Economática!$A$3:$AI$823,12,FALSE)=\"-\"),1/0,VLOOKUP($A336,Economática!$A$3:$AI$823,12,FALSE)))","v":""},{"$f":"IF($A336=\"\",\"\",IF(OR(VLOOKUP($A336,Economática!$A$3:$AI$823,13,FALSE)=0,VLOOKUP($A336,Economática!$A$3:$AI$823,13,FALSE)=\"-\"),1/0,VLOOKUP($A336,Economática!$A$3:$AI$823,13,FALSE)))","v":""},{"$f":"IF($A336=\"\",\"\",IF(OR(VLOOKUP($A336,Economática!$A$3:$AI$823,14,FALSE)=0,VLOOKUP($A336,Economática!$A$3:$AI$823,14,FALSE)=\"-\"),1/0,VLOOKUP($A336,Economática!$A$3:$AI$823,14,FALSE)))","v":""},{"$f":"IF($A336=\"\",\"\",IF(OR(VLOOKUP($A336,Economática!$A$3:$AI$823,15,FALSE)=0,VLOOKUP($A336,Economática!$A$3:$AI$823,15,FALSE)=\"-\"),1/0,VLOOKUP($A336,Economática!$A$3:$AI$823,15,FALSE)))","v":""},{"$f":"IF($A336=\"\",\"\",IF(OR(VLOOKUP($A336,Economática!$A$3:$AI$823,16,FALSE)=0,VLOOKUP($A336,Economática!$A$3:$AI$823,16,FALSE)=\"-\"),1/0,VLOOKUP($A336,Economática!$A$3:$AI$823,16,FALSE)))","v":""},{"$f":"IF($A336=\"\",\"\",IF(OR(VLOOKUP($A336,Economática!$A$3:$AI$823,17,FALSE)=0,VLOOKUP($A336,Economática!$A$3:$AI$823,17,FALSE)=\"-\"),1/0,VLOOKUP($A336,Economática!$A$3:$AI$823,17,FALSE)))","v":""},{"$f":"IF($A336=\"\",\"\",IF(OR(VLOOKUP($A336,Economática!$A$3:$AI$823,18,FALSE)=0,VLOOKUP($A336,Economática!$A$3:$AI$823,18,FALSE)=\"-\"),1/0,VLOOKUP($A336,Economática!$A$3:$AI$823,18,FALSE)))","v":""},{"$f":"IF($A336=\"\",\"\",IF(OR(VLOOKUP($A336,Economática!$A$3:$AI$823,19,FALSE)=0,VLOOKUP($A336,Economática!$A$3:$AI$823,19,FALSE)=\"-\"),1/0,VLOOKUP($A336,Economática!$A$3:$AI$823,19,FALSE)))","v":""},{"$f":"IF($A336=\"\",\"\",VLOOKUP($A336,Economática!$A$3:$AI$823,20,FALSE)/E336)","v":""},"","","",{"$f":"IF($A336=\"\",\"\",IF(OR(VLOOKUP($A336,Economática!$A$3:$AI$823,21,FALSE)/100=0,VLOOKUP($A336,Economática!$A$3:$AI$823,21,FALSE)/100=\"-\"),1/0,VLOOKUP($A336,Economática!$A$3:$AI$823,21,FALSE)/100))","v":""},{"$f":"IF($A336=\"\",\"\",IF(OR(VLOOKUP($A336,Economática!$A$3:$AI$823,22,FALSE)/100=0,VLOOKUP($A336,Economática!$A$3:$AI$823,22,FALSE)/100=\"-\"),1/0,VLOOKUP($A336,Economática!$A$3:$AI$823,22,FALSE)/100))","v":""},{"$f":"IF($A336=\"\",\"\",IF(OR(VLOOKUP($A336,Economática!$A$3:$AI$823,23,FALSE)=0,VLOOKUP($A336,Economática!$A$3:$AI$823,23,FALSE)=\"-\"),1/0,VLOOKUP($A336,Economática!$A$3:$AI$823,23,FALSE)))","v":""},{"$f":"IF($A336=\"\",\"\",IF(OR(VLOOKUP($A336,Economática!$A$3:$AI$823,24,FALSE)=0,VLOOKUP($A336,Economática!$A$3:$AI$823,24,FALSE)=\"-\"),1/0,VLOOKUP($A336,Economática!$A$3:$AI$823,24,FALSE)))","v":""},{"$f":"IF($A336=\"\",\"\",IF(OR(VLOOKUP($A336,Economática!$A$3:$AI$823,25,FALSE)=0,VLOOKUP($A336,Economática!$A$3:$AI$823,25,FALSE)=\"-\"),1/0,VLOOKUP($A336,Economática!$A$3:$AI$823,25,FALSE)))","v":""},{"$f":"IF($A336=\"\",\"\",IF(ISERROR((F336+VLOOKUP($A336,Economática!$A$3:$AI$823,26,FALSE))/Y336),(F336+VLOOKUP($A336,Economática!$A$3:$AI$823,26,FALSE))/Y336,(F336+VLOOKUP($A336,Economática!$A$3:$AI$823,26,FALSE))/Y336))","v":""},{"$f":"IF($A336=\"\",\"\",IF(OR(-VLOOKUP($A336,Economática!$A$3:$AI$823,27,FALSE)=0,-VLOOKUP($A336,Economática!$A$3:$AI$823,27,FALSE)=\"-\"),1/0,-VLOOKUP($A336,Economática!$A$3:$AI$823,27,FALSE)))","v":""},"",{"$f":"IF($A336=\"\",\"\",IF(OR(VLOOKUP($A336,Economática!$A$3:$AI$823,28,FALSE)=0,VLOOKUP($A336,Economática!$A$3:$AI$823,28,FALSE)=\"-\"),1/0,VLOOKUP($A336,Economática!$A$3:$AI$823,28,FALSE)))","v":""},{"$f":"IF($A336=\"\",\"\",IF(OR(VLOOKUP($A336,Economática!$A$3:$AI$823,29,FALSE)=0,VLOOKUP($A336,Economática!$A$3:$AI$823,29,FALSE)=\"-\"),1/0,VLOOKUP($A336,Economática!$A$3:$AI$823,29,FALSE)))","v":""},{"$f":"IF($A336=\"\",\"\",IF(OR(VLOOKUP($A336,Economática!$A$3:$AI$823,30,FALSE)/E336=0,VLOOKUP($A336,Economática!$A$3:$AI$823,30,FALSE)/E336=\"-\",VLOOKUP($A336,Economática!$A$3:$AI$823,30,FALSE)/E336<33.33%,VLOOKUP($A336,Economática!$A$3:$AI$823,30,FALSE)/E336>100%),1/0,VLOOKUP($A336,Economática!$A$3:$AI$823,30,FALSE)/E336))","v":""},"",{"$f":"IF($A336=\"\",\"\",IF(OR(VLOOKUP($A336,Economática!$A$3:$AI$823,25,FALSE)=0,VLOOKUP($A336,Economática!$A$3:$AI$823,25,FALSE)=\"-\"),1/0,VLOOKUP($A336,Economática!$A$3:$AI$823,25,FALSE)))","v":""},{"$f":"CONCATENATE(Economática!B314,\" \",Economática!C314)","v":" "}]
[{"$f":"IF(Economática!AG315=\"\",\"\",Economática!AG315)","v":""},{"$f":"IF($A337=\"\",\"\",VLOOKUP(VLOOKUP($A337,Economática!$A$3:$AI$823,6,FALSE),Correção!$B$16:$C$36,2,FALSE))","v":""},{"$f":"IF(Economática!B315=\"\",\"\",Economática!B315)","v":""},{"$f":"IF($A337=\"\",\"\",IF(OR(VLOOKUP($A337,Economática!$A$3:$AI$823,8,FALSE)=0,VLOOKUP($A337,Economática!$A$3:$AI$823,8,FALSE)=\"-\"),1/0,VLOOKUP($A337,Economática!$A$3:$AI$823,8,FALSE)))","v":""},{"$f":"IF(A337=\"\",\"\",IF(ISERROR(VLOOKUP(A337,Correção!$B$2:$G$13,9,FALSE)),VLOOKUP($A337,Economática!$A$3:$AI$823,9,FALSE),VLOOKUP(A337,Correção!$B$2:$G$13,9,FALSE)))","v":""},{"$f":"IF($A337=\"\",\"\",Economática!G315)","v":""},{"$f":"IF($A337=\"\",\"\",IF(OR(VLOOKUP($A337,Economática!$A$3:$AI$823,10,FALSE)=0,VLOOKUP($A337,Economática!$A$3:$AI$823,10,FALSE)=\"-\"),1/0,VLOOKUP($A337,Economática!$A$3:$AI$823,10,FALSE)))","v":""},{"$f":"IF($A337=\"\",\"\",IF(OR(VLOOKUP($A337,Economática!$A$3:$AI$823,11,FALSE)=0,VLOOKUP($A337,Economática!$A$3:$AI$823,11,FALSE)=\"-\"),1/0,VLOOKUP($A337,Economática!$A$3:$AI$823,11,FALSE)))","v":""},{"$f":"IF($A337=\"\",\"\",IF(OR(VLOOKUP($A337,Economática!$A$3:$AI$823,12,FALSE)=0,VLOOKUP($A337,Economática!$A$3:$AI$823,12,FALSE)=\"-\"),1/0,VLOOKUP($A337,Economática!$A$3:$AI$823,12,FALSE)))","v":""},{"$f":"IF($A337=\"\",\"\",IF(OR(VLOOKUP($A337,Economática!$A$3:$AI$823,13,FALSE)=0,VLOOKUP($A337,Economática!$A$3:$AI$823,13,FALSE)=\"-\"),1/0,VLOOKUP($A337,Economática!$A$3:$AI$823,13,FALSE)))","v":""},{"$f":"IF($A337=\"\",\"\",IF(OR(VLOOKUP($A337,Economática!$A$3:$AI$823,14,FALSE)=0,VLOOKUP($A337,Economática!$A$3:$AI$823,14,FALSE)=\"-\"),1/0,VLOOKUP($A337,Economática!$A$3:$AI$823,14,FALSE)))","v":""},{"$f":"IF($A337=\"\",\"\",IF(OR(VLOOKUP($A337,Economática!$A$3:$AI$823,15,FALSE)=0,VLOOKUP($A337,Economática!$A$3:$AI$823,15,FALSE)=\"-\"),1/0,VLOOKUP($A337,Economática!$A$3:$AI$823,15,FALSE)))","v":""},{"$f":"IF($A337=\"\",\"\",IF(OR(VLOOKUP($A337,Economática!$A$3:$AI$823,16,FALSE)=0,VLOOKUP($A337,Economática!$A$3:$AI$823,16,FALSE)=\"-\"),1/0,VLOOKUP($A337,Economática!$A$3:$AI$823,16,FALSE)))","v":""},{"$f":"IF($A337=\"\",\"\",IF(OR(VLOOKUP($A337,Economática!$A$3:$AI$823,17,FALSE)=0,VLOOKUP($A337,Economática!$A$3:$AI$823,17,FALSE)=\"-\"),1/0,VLOOKUP($A337,Economática!$A$3:$AI$823,17,FALSE)))","v":""},{"$f":"IF($A337=\"\",\"\",IF(OR(VLOOKUP($A337,Economática!$A$3:$AI$823,18,FALSE)=0,VLOOKUP($A337,Economática!$A$3:$AI$823,18,FALSE)=\"-\"),1/0,VLOOKUP($A337,Economática!$A$3:$AI$823,18,FALSE)))","v":""},{"$f":"IF($A337=\"\",\"\",IF(OR(VLOOKUP($A337,Economática!$A$3:$AI$823,19,FALSE)=0,VLOOKUP($A337,Economática!$A$3:$AI$823,19,FALSE)=\"-\"),1/0,VLOOKUP($A337,Economática!$A$3:$AI$823,19,FALSE)))","v":""},{"$f":"IF($A337=\"\",\"\",VLOOKUP($A337,Economática!$A$3:$AI$823,20,FALSE)/E337)","v":""},"","","",{"$f":"IF($A337=\"\",\"\",IF(OR(VLOOKUP($A337,Economática!$A$3:$AI$823,21,FALSE)/100=0,VLOOKUP($A337,Economática!$A$3:$AI$823,21,FALSE)/100=\"-\"),1/0,VLOOKUP($A337,Economática!$A$3:$AI$823,21,FALSE)/100))","v":""},{"$f":"IF($A337=\"\",\"\",IF(OR(VLOOKUP($A337,Economática!$A$3:$AI$823,22,FALSE)/100=0,VLOOKUP($A337,Economática!$A$3:$AI$823,22,FALSE)/100=\"-\"),1/0,VLOOKUP($A337,Economática!$A$3:$AI$823,22,FALSE)/100))","v":""},{"$f":"IF($A337=\"\",\"\",IF(OR(VLOOKUP($A337,Economática!$A$3:$AI$823,23,FALSE)=0,VLOOKUP($A337,Economática!$A$3:$AI$823,23,FALSE)=\"-\"),1/0,VLOOKUP($A337,Economática!$A$3:$AI$823,23,FALSE)))","v":""},{"$f":"IF($A337=\"\",\"\",IF(OR(VLOOKUP($A337,Economática!$A$3:$AI$823,24,FALSE)=0,VLOOKUP($A337,Economática!$A$3:$AI$823,24,FALSE)=\"-\"),1/0,VLOOKUP($A337,Economática!$A$3:$AI$823,24,FALSE)))","v":""},{"$f":"IF($A337=\"\",\"\",IF(OR(VLOOKUP($A337,Economática!$A$3:$AI$823,25,FALSE)=0,VLOOKUP($A337,Economática!$A$3:$AI$823,25,FALSE)=\"-\"),1/0,VLOOKUP($A337,Economática!$A$3:$AI$823,25,FALSE)))","v":""},{"$f":"IF($A337=\"\",\"\",IF(ISERROR((F337+VLOOKUP($A337,Economática!$A$3:$AI$823,26,FALSE))/Y337),(F337+VLOOKUP($A337,Economática!$A$3:$AI$823,26,FALSE))/Y337,(F337+VLOOKUP($A337,Economática!$A$3:$AI$823,26,FALSE))/Y337))","v":""},{"$f":"IF($A337=\"\",\"\",IF(OR(-VLOOKUP($A337,Economática!$A$3:$AI$823,27,FALSE)=0,-VLOOKUP($A337,Economática!$A$3:$AI$823,27,FALSE)=\"-\"),1/0,-VLOOKUP($A337,Economática!$A$3:$AI$823,27,FALSE)))","v":""},"",{"$f":"IF($A337=\"\",\"\",IF(OR(VLOOKUP($A337,Economática!$A$3:$AI$823,28,FALSE)=0,VLOOKUP($A337,Economática!$A$3:$AI$823,28,FALSE)=\"-\"),1/0,VLOOKUP($A337,Economática!$A$3:$AI$823,28,FALSE)))","v":""},{"$f":"IF($A337=\"\",\"\",IF(OR(VLOOKUP($A337,Economática!$A$3:$AI$823,29,FALSE)=0,VLOOKUP($A337,Economática!$A$3:$AI$823,29,FALSE)=\"-\"),1/0,VLOOKUP($A337,Economática!$A$3:$AI$823,29,FALSE)))","v":""},{"$f":"IF($A337=\"\",\"\",IF(OR(VLOOKUP($A337,Economática!$A$3:$AI$823,30,FALSE)/E337=0,VLOOKUP($A337,Economática!$A$3:$AI$823,30,FALSE)/E337=\"-\",VLOOKUP($A337,Economática!$A$3:$AI$823,30,FALSE)/E337<33.33%,VLOOKUP($A337,Economática!$A$3:$AI$823,30,FALSE)/E337>100%),1/0,VLOOKUP($A337,Economática!$A$3:$AI$823,30,FALSE)/E337))","v":""},"",{"$f":"IF($A337=\"\",\"\",IF(OR(VLOOKUP($A337,Economática!$A$3:$AI$823,25,FALSE)=0,VLOOKUP($A337,Economática!$A$3:$AI$823,25,FALSE)=\"-\"),1/0,VLOOKUP($A337,Economática!$A$3:$AI$823,25,FALSE)))","v":""},{"$f":"CONCATENATE(Economática!B315,\" \",Economática!C315)","v":" "}]
[{"$f":"IF(Economática!AG316=\"\",\"\",Economática!AG316)","v":""},{"$f":"IF($A338=\"\",\"\",VLOOKUP(VLOOKUP($A338,Economática!$A$3:$AI$823,6,FALSE),Correção!$B$16:$C$36,2,FALSE))","v":""},{"$f":"IF(Economática!B316=\"\",\"\",Economática!B316)","v":""},{"$f":"IF($A338=\"\",\"\",IF(OR(VLOOKUP($A338,Economática!$A$3:$AI$823,8,FALSE)=0,VLOOKUP($A338,Economática!$A$3:$AI$823,8,FALSE)=\"-\"),1/0,VLOOKUP($A338,Economática!$A$3:$AI$823,8,FALSE)))","v":""},{"$f":"IF(A338=\"\",\"\",IF(ISERROR(VLOOKUP(A338,Correção!$B$2:$G$13,9,FALSE)),VLOOKUP($A338,Economática!$A$3:$AI$823,9,FALSE),VLOOKUP(A338,Correção!$B$2:$G$13,9,FALSE)))","v":""},{"$f":"IF($A338=\"\",\"\",Economática!G316)","v":""},{"$f":"IF($A338=\"\",\"\",IF(OR(VLOOKUP($A338,Economática!$A$3:$AI$823,10,FALSE)=0,VLOOKUP($A338,Economática!$A$3:$AI$823,10,FALSE)=\"-\"),1/0,VLOOKUP($A338,Economática!$A$3:$AI$823,10,FALSE)))","v":""},{"$f":"IF($A338=\"\",\"\",IF(OR(VLOOKUP($A338,Economática!$A$3:$AI$823,11,FALSE)=0,VLOOKUP($A338,Economática!$A$3:$AI$823,11,FALSE)=\"-\"),1/0,VLOOKUP($A338,Economática!$A$3:$AI$823,11,FALSE)))","v":""},{"$f":"IF($A338=\"\",\"\",IF(OR(VLOOKUP($A338,Economática!$A$3:$AI$823,12,FALSE)=0,VLOOKUP($A338,Economática!$A$3:$AI$823,12,FALSE)=\"-\"),1/0,VLOOKUP($A338,Economática!$A$3:$AI$823,12,FALSE)))","v":""},{"$f":"IF($A338=\"\",\"\",IF(OR(VLOOKUP($A338,Economática!$A$3:$AI$823,13,FALSE)=0,VLOOKUP($A338,Economática!$A$3:$AI$823,13,FALSE)=\"-\"),1/0,VLOOKUP($A338,Economática!$A$3:$AI$823,13,FALSE)))","v":""},{"$f":"IF($A338=\"\",\"\",IF(OR(VLOOKUP($A338,Economática!$A$3:$AI$823,14,FALSE)=0,VLOOKUP($A338,Economática!$A$3:$AI$823,14,FALSE)=\"-\"),1/0,VLOOKUP($A338,Economática!$A$3:$AI$823,14,FALSE)))","v":""},{"$f":"IF($A338=\"\",\"\",IF(OR(VLOOKUP($A338,Economática!$A$3:$AI$823,15,FALSE)=0,VLOOKUP($A338,Economática!$A$3:$AI$823,15,FALSE)=\"-\"),1/0,VLOOKUP($A338,Economática!$A$3:$AI$823,15,FALSE)))","v":""},{"$f":"IF($A338=\"\",\"\",IF(OR(VLOOKUP($A338,Economática!$A$3:$AI$823,16,FALSE)=0,VLOOKUP($A338,Economática!$A$3:$AI$823,16,FALSE)=\"-\"),1/0,VLOOKUP($A338,Economática!$A$3:$AI$823,16,FALSE)))","v":""},{"$f":"IF($A338=\"\",\"\",IF(OR(VLOOKUP($A338,Economática!$A$3:$AI$823,17,FALSE)=0,VLOOKUP($A338,Economática!$A$3:$AI$823,17,FALSE)=\"-\"),1/0,VLOOKUP($A338,Economática!$A$3:$AI$823,17,FALSE)))","v":""},{"$f":"IF($A338=\"\",\"\",IF(OR(VLOOKUP($A338,Economática!$A$3:$AI$823,18,FALSE)=0,VLOOKUP($A338,Economática!$A$3:$AI$823,18,FALSE)=\"-\"),1/0,VLOOKUP($A338,Economática!$A$3:$AI$823,18,FALSE)))","v":""},{"$f":"IF($A338=\"\",\"\",IF(OR(VLOOKUP($A338,Economática!$A$3:$AI$823,19,FALSE)=0,VLOOKUP($A338,Economática!$A$3:$AI$823,19,FALSE)=\"-\"),1/0,VLOOKUP($A338,Economática!$A$3:$AI$823,19,FALSE)))","v":""},{"$f":"IF($A338=\"\",\"\",VLOOKUP($A338,Economática!$A$3:$AI$823,20,FALSE)/E338)","v":""},"","","",{"$f":"IF($A338=\"\",\"\",IF(OR(VLOOKUP($A338,Economática!$A$3:$AI$823,21,FALSE)/100=0,VLOOKUP($A338,Economática!$A$3:$AI$823,21,FALSE)/100=\"-\"),1/0,VLOOKUP($A338,Economática!$A$3:$AI$823,21,FALSE)/100))","v":""},{"$f":"IF($A338=\"\",\"\",IF(OR(VLOOKUP($A338,Economática!$A$3:$AI$823,22,FALSE)/100=0,VLOOKUP($A338,Economática!$A$3:$AI$823,22,FALSE)/100=\"-\"),1/0,VLOOKUP($A338,Economática!$A$3:$AI$823,22,FALSE)/100))","v":""},{"$f":"IF($A338=\"\",\"\",IF(OR(VLOOKUP($A338,Economática!$A$3:$AI$823,23,FALSE)=0,VLOOKUP($A338,Economática!$A$3:$AI$823,23,FALSE)=\"-\"),1/0,VLOOKUP($A338,Economática!$A$3:$AI$823,23,FALSE)))","v":""},{"$f":"IF($A338=\"\",\"\",IF(OR(VLOOKUP($A338,Economática!$A$3:$AI$823,24,FALSE)=0,VLOOKUP($A338,Economática!$A$3:$AI$823,24,FALSE)=\"-\"),1/0,VLOOKUP($A338,Economática!$A$3:$AI$823,24,FALSE)))","v":""},{"$f":"IF($A338=\"\",\"\",IF(OR(VLOOKUP($A338,Economática!$A$3:$AI$823,25,FALSE)=0,VLOOKUP($A338,Economática!$A$3:$AI$823,25,FALSE)=\"-\"),1/0,VLOOKUP($A338,Economática!$A$3:$AI$823,25,FALSE)))","v":""},{"$f":"IF($A338=\"\",\"\",IF(ISERROR((F338+VLOOKUP($A338,Economática!$A$3:$AI$823,26,FALSE))/Y338),(F338+VLOOKUP($A338,Economática!$A$3:$AI$823,26,FALSE))/Y338,(F338+VLOOKUP($A338,Economática!$A$3:$AI$823,26,FALSE))/Y338))","v":""},{"$f":"IF($A338=\"\",\"\",IF(OR(-VLOOKUP($A338,Economática!$A$3:$AI$823,27,FALSE)=0,-VLOOKUP($A338,Economática!$A$3:$AI$823,27,FALSE)=\"-\"),1/0,-VLOOKUP($A338,Economática!$A$3:$AI$823,27,FALSE)))","v":""},"",{"$f":"IF($A338=\"\",\"\",IF(OR(VLOOKUP($A338,Economática!$A$3:$AI$823,28,FALSE)=0,VLOOKUP($A338,Economática!$A$3:$AI$823,28,FALSE)=\"-\"),1/0,VLOOKUP($A338,Economática!$A$3:$AI$823,28,FALSE)))","v":""},{"$f":"IF($A338=\"\",\"\",IF(OR(VLOOKUP($A338,Economática!$A$3:$AI$823,29,FALSE)=0,VLOOKUP($A338,Economática!$A$3:$AI$823,29,FALSE)=\"-\"),1/0,VLOOKUP($A338,Economática!$A$3:$AI$823,29,FALSE)))","v":""},{"$f":"IF($A338=\"\",\"\",IF(OR(VLOOKUP($A338,Economática!$A$3:$AI$823,30,FALSE)/E338=0,VLOOKUP($A338,Economática!$A$3:$AI$823,30,FALSE)/E338=\"-\",VLOOKUP($A338,Economática!$A$3:$AI$823,30,FALSE)/E338<33.33%,VLOOKUP($A338,Economática!$A$3:$AI$823,30,FALSE)/E338>100%),1/0,VLOOKUP($A338,Economática!$A$3:$AI$823,30,FALSE)/E338))","v":""},"",{"$f":"IF($A338=\"\",\"\",IF(OR(VLOOKUP($A338,Economática!$A$3:$AI$823,25,FALSE)=0,VLOOKUP($A338,Economática!$A$3:$AI$823,25,FALSE)=\"-\"),1/0,VLOOKUP($A338,Economática!$A$3:$AI$823,25,FALSE)))","v":""},{"$f":"CONCATENATE(Economática!B316,\" \",Economática!C316)","v":" "}]
[{"$f":"IF(Economática!AG317=\"\",\"\",Economática!AG317)","v":""},{"$f":"IF($A339=\"\",\"\",VLOOKUP(VLOOKUP($A339,Economática!$A$3:$AI$823,6,FALSE),Correção!$B$16:$C$36,2,FALSE))","v":""},{"$f":"IF(Economática!B317=\"\",\"\",Economática!B317)","v":""},{"$f":"IF($A339=\"\",\"\",IF(OR(VLOOKUP($A339,Economática!$A$3:$AI$823,8,FALSE)=0,VLOOKUP($A339,Economática!$A$3:$AI$823,8,FALSE)=\"-\"),1/0,VLOOKUP($A339,Economática!$A$3:$AI$823,8,FALSE)))","v":""},{"$f":"IF(A339=\"\",\"\",IF(ISERROR(VLOOKUP(A339,Correção!$B$2:$G$13,9,FALSE)),VLOOKUP($A339,Economática!$A$3:$AI$823,9,FALSE),VLOOKUP(A339,Correção!$B$2:$G$13,9,FALSE)))","v":""},{"$f":"IF($A339=\"\",\"\",Economática!G317)","v":""},{"$f":"IF($A339=\"\",\"\",IF(OR(VLOOKUP($A339,Economática!$A$3:$AI$823,10,FALSE)=0,VLOOKUP($A339,Economática!$A$3:$AI$823,10,FALSE)=\"-\"),1/0,VLOOKUP($A339,Economática!$A$3:$AI$823,10,FALSE)))","v":""},{"$f":"IF($A339=\"\",\"\",IF(OR(VLOOKUP($A339,Economática!$A$3:$AI$823,11,FALSE)=0,VLOOKUP($A339,Economática!$A$3:$AI$823,11,FALSE)=\"-\"),1/0,VLOOKUP($A339,Economática!$A$3:$AI$823,11,FALSE)))","v":""},{"$f":"IF($A339=\"\",\"\",IF(OR(VLOOKUP($A339,Economática!$A$3:$AI$823,12,FALSE)=0,VLOOKUP($A339,Economática!$A$3:$AI$823,12,FALSE)=\"-\"),1/0,VLOOKUP($A339,Economática!$A$3:$AI$823,12,FALSE)))","v":""},{"$f":"IF($A339=\"\",\"\",IF(OR(VLOOKUP($A339,Economática!$A$3:$AI$823,13,FALSE)=0,VLOOKUP($A339,Economática!$A$3:$AI$823,13,FALSE)=\"-\"),1/0,VLOOKUP($A339,Economática!$A$3:$AI$823,13,FALSE)))","v":""},{"$f":"IF($A339=\"\",\"\",IF(OR(VLOOKUP($A339,Economática!$A$3:$AI$823,14,FALSE)=0,VLOOKUP($A339,Economática!$A$3:$AI$823,14,FALSE)=\"-\"),1/0,VLOOKUP($A339,Economática!$A$3:$AI$823,14,FALSE)))","v":""},{"$f":"IF($A339=\"\",\"\",IF(OR(VLOOKUP($A339,Economática!$A$3:$AI$823,15,FALSE)=0,VLOOKUP($A339,Economática!$A$3:$AI$823,15,FALSE)=\"-\"),1/0,VLOOKUP($A339,Economática!$A$3:$AI$823,15,FALSE)))","v":""},{"$f":"IF($A339=\"\",\"\",IF(OR(VLOOKUP($A339,Economática!$A$3:$AI$823,16,FALSE)=0,VLOOKUP($A339,Economática!$A$3:$AI$823,16,FALSE)=\"-\"),1/0,VLOOKUP($A339,Economática!$A$3:$AI$823,16,FALSE)))","v":""},{"$f":"IF($A339=\"\",\"\",IF(OR(VLOOKUP($A339,Economática!$A$3:$AI$823,17,FALSE)=0,VLOOKUP($A339,Economática!$A$3:$AI$823,17,FALSE)=\"-\"),1/0,VLOOKUP($A339,Economática!$A$3:$AI$823,17,FALSE)))","v":""},{"$f":"IF($A339=\"\",\"\",IF(OR(VLOOKUP($A339,Economática!$A$3:$AI$823,18,FALSE)=0,VLOOKUP($A339,Economática!$A$3:$AI$823,18,FALSE)=\"-\"),1/0,VLOOKUP($A339,Economática!$A$3:$AI$823,18,FALSE)))","v":""},{"$f":"IF($A339=\"\",\"\",IF(OR(VLOOKUP($A339,Economática!$A$3:$AI$823,19,FALSE)=0,VLOOKUP($A339,Economática!$A$3:$AI$823,19,FALSE)=\"-\"),1/0,VLOOKUP($A339,Economática!$A$3:$AI$823,19,FALSE)))","v":""},{"$f":"IF($A339=\"\",\"\",VLOOKUP($A339,Economática!$A$3:$AI$823,20,FALSE)/E339)","v":""},"","","",{"$f":"IF($A339=\"\",\"\",IF(OR(VLOOKUP($A339,Economática!$A$3:$AI$823,21,FALSE)/100=0,VLOOKUP($A339,Economática!$A$3:$AI$823,21,FALSE)/100=\"-\"),1/0,VLOOKUP($A339,Economática!$A$3:$AI$823,21,FALSE)/100))","v":""},{"$f":"IF($A339=\"\",\"\",IF(OR(VLOOKUP($A339,Economática!$A$3:$AI$823,22,FALSE)/100=0,VLOOKUP($A339,Economática!$A$3:$AI$823,22,FALSE)/100=\"-\"),1/0,VLOOKUP($A339,Economática!$A$3:$AI$823,22,FALSE)/100))","v":""},{"$f":"IF($A339=\"\",\"\",IF(OR(VLOOKUP($A339,Economática!$A$3:$AI$823,23,FALSE)=0,VLOOKUP($A339,Economática!$A$3:$AI$823,23,FALSE)=\"-\"),1/0,VLOOKUP($A339,Economática!$A$3:$AI$823,23,FALSE)))","v":""},{"$f":"IF($A339=\"\",\"\",IF(OR(VLOOKUP($A339,Economática!$A$3:$AI$823,24,FALSE)=0,VLOOKUP($A339,Economática!$A$3:$AI$823,24,FALSE)=\"-\"),1/0,VLOOKUP($A339,Economática!$A$3:$AI$823,24,FALSE)))","v":""},{"$f":"IF($A339=\"\",\"\",IF(OR(VLOOKUP($A339,Economática!$A$3:$AI$823,25,FALSE)=0,VLOOKUP($A339,Economática!$A$3:$AI$823,25,FALSE)=\"-\"),1/0,VLOOKUP($A339,Economática!$A$3:$AI$823,25,FALSE)))","v":""},{"$f":"IF($A339=\"\",\"\",IF(ISERROR((F339+VLOOKUP($A339,Economática!$A$3:$AI$823,26,FALSE))/Y339),(F339+VLOOKUP($A339,Economática!$A$3:$AI$823,26,FALSE))/Y339,(F339+VLOOKUP($A339,Economática!$A$3:$AI$823,26,FALSE))/Y339))","v":""},{"$f":"IF($A339=\"\",\"\",IF(OR(-VLOOKUP($A339,Economática!$A$3:$AI$823,27,FALSE)=0,-VLOOKUP($A339,Economática!$A$3:$AI$823,27,FALSE)=\"-\"),1/0,-VLOOKUP($A339,Economática!$A$3:$AI$823,27,FALSE)))","v":""},"",{"$f":"IF($A339=\"\",\"\",IF(OR(VLOOKUP($A339,Economática!$A$3:$AI$823,28,FALSE)=0,VLOOKUP($A339,Economática!$A$3:$AI$823,28,FALSE)=\"-\"),1/0,VLOOKUP($A339,Economática!$A$3:$AI$823,28,FALSE)))","v":""},{"$f":"IF($A339=\"\",\"\",IF(OR(VLOOKUP($A339,Economática!$A$3:$AI$823,29,FALSE)=0,VLOOKUP($A339,Economática!$A$3:$AI$823,29,FALSE)=\"-\"),1/0,VLOOKUP($A339,Economática!$A$3:$AI$823,29,FALSE)))","v":""},{"$f":"IF($A339=\"\",\"\",IF(OR(VLOOKUP($A339,Economática!$A$3:$AI$823,30,FALSE)/E339=0,VLOOKUP($A339,Economática!$A$3:$AI$823,30,FALSE)/E339=\"-\",VLOOKUP($A339,Economática!$A$3:$AI$823,30,FALSE)/E339<33.33%,VLOOKUP($A339,Economática!$A$3:$AI$823,30,FALSE)/E339>100%),1/0,VLOOKUP($A339,Economática!$A$3:$AI$823,30,FALSE)/E339))","v":""},"",{"$f":"IF($A339=\"\",\"\",IF(OR(VLOOKUP($A339,Economática!$A$3:$AI$823,25,FALSE)=0,VLOOKUP($A339,Economática!$A$3:$AI$823,25,FALSE)=\"-\"),1/0,VLOOKUP($A339,Economática!$A$3:$AI$823,25,FALSE)))","v":""},{"$f":"CONCATENATE(Economática!B317,\" \",Economática!C317)","v":" "}]
[{"$f":"IF(Economática!AG318=\"\",\"\",Economática!AG318)","v":""},{"$f":"IF($A340=\"\",\"\",VLOOKUP(VLOOKUP($A340,Economática!$A$3:$AI$823,6,FALSE),Correção!$B$16:$C$36,2,FALSE))","v":""},{"$f":"IF(Economática!B318=\"\",\"\",Economática!B318)","v":""},{"$f":"IF($A340=\"\",\"\",IF(OR(VLOOKUP($A340,Economática!$A$3:$AI$823,8,FALSE)=0,VLOOKUP($A340,Economática!$A$3:$AI$823,8,FALSE)=\"-\"),1/0,VLOOKUP($A340,Economática!$A$3:$AI$823,8,FALSE)))","v":""},{"$f":"IF(A340=\"\",\"\",IF(ISERROR(VLOOKUP(A340,Correção!$B$2:$G$13,9,FALSE)),VLOOKUP($A340,Economática!$A$3:$AI$823,9,FALSE),VLOOKUP(A340,Correção!$B$2:$G$13,9,FALSE)))","v":""},{"$f":"IF($A340=\"\",\"\",Economática!G318)","v":""},{"$f":"IF($A340=\"\",\"\",IF(OR(VLOOKUP($A340,Economática!$A$3:$AI$823,10,FALSE)=0,VLOOKUP($A340,Economática!$A$3:$AI$823,10,FALSE)=\"-\"),1/0,VLOOKUP($A340,Economática!$A$3:$AI$823,10,FALSE)))","v":""},{"$f":"IF($A340=\"\",\"\",IF(OR(VLOOKUP($A340,Economática!$A$3:$AI$823,11,FALSE)=0,VLOOKUP($A340,Economática!$A$3:$AI$823,11,FALSE)=\"-\"),1/0,VLOOKUP($A340,Economática!$A$3:$AI$823,11,FALSE)))","v":""},{"$f":"IF($A340=\"\",\"\",IF(OR(VLOOKUP($A340,Economática!$A$3:$AI$823,12,FALSE)=0,VLOOKUP($A340,Economática!$A$3:$AI$823,12,FALSE)=\"-\"),1/0,VLOOKUP($A340,Economática!$A$3:$AI$823,12,FALSE)))","v":""},{"$f":"IF($A340=\"\",\"\",IF(OR(VLOOKUP($A340,Economática!$A$3:$AI$823,13,FALSE)=0,VLOOKUP($A340,Economática!$A$3:$AI$823,13,FALSE)=\"-\"),1/0,VLOOKUP($A340,Economática!$A$3:$AI$823,13,FALSE)))","v":""},{"$f":"IF($A340=\"\",\"\",IF(OR(VLOOKUP($A340,Economática!$A$3:$AI$823,14,FALSE)=0,VLOOKUP($A340,Economática!$A$3:$AI$823,14,FALSE)=\"-\"),1/0,VLOOKUP($A340,Economática!$A$3:$AI$823,14,FALSE)))","v":""},{"$f":"IF($A340=\"\",\"\",IF(OR(VLOOKUP($A340,Economática!$A$3:$AI$823,15,FALSE)=0,VLOOKUP($A340,Economática!$A$3:$AI$823,15,FALSE)=\"-\"),1/0,VLOOKUP($A340,Economática!$A$3:$AI$823,15,FALSE)))","v":""},{"$f":"IF($A340=\"\",\"\",IF(OR(VLOOKUP($A340,Economática!$A$3:$AI$823,16,FALSE)=0,VLOOKUP($A340,Economática!$A$3:$AI$823,16,FALSE)=\"-\"),1/0,VLOOKUP($A340,Economática!$A$3:$AI$823,16,FALSE)))","v":""},{"$f":"IF($A340=\"\",\"\",IF(OR(VLOOKUP($A340,Economática!$A$3:$AI$823,17,FALSE)=0,VLOOKUP($A340,Economática!$A$3:$AI$823,17,FALSE)=\"-\"),1/0,VLOOKUP($A340,Economática!$A$3:$AI$823,17,FALSE)))","v":""},{"$f":"IF($A340=\"\",\"\",IF(OR(VLOOKUP($A340,Economática!$A$3:$AI$823,18,FALSE)=0,VLOOKUP($A340,Economática!$A$3:$AI$823,18,FALSE)=\"-\"),1/0,VLOOKUP($A340,Economática!$A$3:$AI$823,18,FALSE)))","v":""},{"$f":"IF($A340=\"\",\"\",IF(OR(VLOOKUP($A340,Economática!$A$3:$AI$823,19,FALSE)=0,VLOOKUP($A340,Economática!$A$3:$AI$823,19,FALSE)=\"-\"),1/0,VLOOKUP($A340,Economática!$A$3:$AI$823,19,FALSE)))","v":""},{"$f":"IF($A340=\"\",\"\",VLOOKUP($A340,Economática!$A$3:$AI$823,20,FALSE)/E340)","v":""},"","","",{"$f":"IF($A340=\"\",\"\",IF(OR(VLOOKUP($A340,Economática!$A$3:$AI$823,21,FALSE)/100=0,VLOOKUP($A340,Economática!$A$3:$AI$823,21,FALSE)/100=\"-\"),1/0,VLOOKUP($A340,Economática!$A$3:$AI$823,21,FALSE)/100))","v":""},{"$f":"IF($A340=\"\",\"\",IF(OR(VLOOKUP($A340,Economática!$A$3:$AI$823,22,FALSE)/100=0,VLOOKUP($A340,Economática!$A$3:$AI$823,22,FALSE)/100=\"-\"),1/0,VLOOKUP($A340,Economática!$A$3:$AI$823,22,FALSE)/100))","v":""},{"$f":"IF($A340=\"\",\"\",IF(OR(VLOOKUP($A340,Economática!$A$3:$AI$823,23,FALSE)=0,VLOOKUP($A340,Economática!$A$3:$AI$823,23,FALSE)=\"-\"),1/0,VLOOKUP($A340,Economática!$A$3:$AI$823,23,FALSE)))","v":""},{"$f":"IF($A340=\"\",\"\",IF(OR(VLOOKUP($A340,Economática!$A$3:$AI$823,24,FALSE)=0,VLOOKUP($A340,Economática!$A$3:$AI$823,24,FALSE)=\"-\"),1/0,VLOOKUP($A340,Economática!$A$3:$AI$823,24,FALSE)))","v":""},{"$f":"IF($A340=\"\",\"\",IF(OR(VLOOKUP($A340,Economática!$A$3:$AI$823,25,FALSE)=0,VLOOKUP($A340,Economática!$A$3:$AI$823,25,FALSE)=\"-\"),1/0,VLOOKUP($A340,Economática!$A$3:$AI$823,25,FALSE)))","v":""},{"$f":"IF($A340=\"\",\"\",IF(ISERROR((F340+VLOOKUP($A340,Economática!$A$3:$AI$823,26,FALSE))/Y340),(F340+VLOOKUP($A340,Economática!$A$3:$AI$823,26,FALSE))/Y340,(F340+VLOOKUP($A340,Economática!$A$3:$AI$823,26,FALSE))/Y340))","v":""},{"$f":"IF($A340=\"\",\"\",IF(OR(-VLOOKUP($A340,Economática!$A$3:$AI$823,27,FALSE)=0,-VLOOKUP($A340,Economática!$A$3:$AI$823,27,FALSE)=\"-\"),1/0,-VLOOKUP($A340,Economática!$A$3:$AI$823,27,FALSE)))","v":""},"",{"$f":"IF($A340=\"\",\"\",IF(OR(VLOOKUP($A340,Economática!$A$3:$AI$823,28,FALSE)=0,VLOOKUP($A340,Economática!$A$3:$AI$823,28,FALSE)=\"-\"),1/0,VLOOKUP($A340,Economática!$A$3:$AI$823,28,FALSE)))","v":""},{"$f":"IF($A340=\"\",\"\",IF(OR(VLOOKUP($A340,Economática!$A$3:$AI$823,29,FALSE)=0,VLOOKUP($A340,Economática!$A$3:$AI$823,29,FALSE)=\"-\"),1/0,VLOOKUP($A340,Economática!$A$3:$AI$823,29,FALSE)))","v":""},{"$f":"IF($A340=\"\",\"\",IF(OR(VLOOKUP($A340,Economática!$A$3:$AI$823,30,FALSE)/E340=0,VLOOKUP($A340,Economática!$A$3:$AI$823,30,FALSE)/E340=\"-\",VLOOKUP($A340,Economática!$A$3:$AI$823,30,FALSE)/E340<33.33%,VLOOKUP($A340,Economática!$A$3:$AI$823,30,FALSE)/E340>100%),1/0,VLOOKUP($A340,Economática!$A$3:$AI$823,30,FALSE)/E340))","v":""},"",{"$f":"IF($A340=\"\",\"\",IF(OR(VLOOKUP($A340,Economática!$A$3:$AI$823,25,FALSE)=0,VLOOKUP($A340,Economática!$A$3:$AI$823,25,FALSE)=\"-\"),1/0,VLOOKUP($A340,Economática!$A$3:$AI$823,25,FALSE)))","v":""},{"$f":"CONCATENATE(Economática!B318,\" \",Economática!C318)","v":" "}]
[{"$f":"IF(Economática!AG319=\"\",\"\",Economática!AG319)","v":""},{"$f":"IF($A341=\"\",\"\",VLOOKUP(VLOOKUP($A341,Economática!$A$3:$AI$823,6,FALSE),Correção!$B$16:$C$36,2,FALSE))","v":""},{"$f":"IF(Economática!B319=\"\",\"\",Economática!B319)","v":""},{"$f":"IF($A341=\"\",\"\",IF(OR(VLOOKUP($A341,Economática!$A$3:$AI$823,8,FALSE)=0,VLOOKUP($A341,Economática!$A$3:$AI$823,8,FALSE)=\"-\"),1/0,VLOOKUP($A341,Economática!$A$3:$AI$823,8,FALSE)))","v":""},{"$f":"IF(A341=\"\",\"\",IF(ISERROR(VLOOKUP(A341,Correção!$B$2:$G$13,9,FALSE)),VLOOKUP($A341,Economática!$A$3:$AI$823,9,FALSE),VLOOKUP(A341,Correção!$B$2:$G$13,9,FALSE)))","v":""},{"$f":"IF($A341=\"\",\"\",Economática!G319)","v":""},{"$f":"IF($A341=\"\",\"\",IF(OR(VLOOKUP($A341,Economática!$A$3:$AI$823,10,FALSE)=0,VLOOKUP($A341,Economática!$A$3:$AI$823,10,FALSE)=\"-\"),1/0,VLOOKUP($A341,Economática!$A$3:$AI$823,10,FALSE)))","v":""},{"$f":"IF($A341=\"\",\"\",IF(OR(VLOOKUP($A341,Economática!$A$3:$AI$823,11,FALSE)=0,VLOOKUP($A341,Economática!$A$3:$AI$823,11,FALSE)=\"-\"),1/0,VLOOKUP($A341,Economática!$A$3:$AI$823,11,FALSE)))","v":""},{"$f":"IF($A341=\"\",\"\",IF(OR(VLOOKUP($A341,Economática!$A$3:$AI$823,12,FALSE)=0,VLOOKUP($A341,Economática!$A$3:$AI$823,12,FALSE)=\"-\"),1/0,VLOOKUP($A341,Economática!$A$3:$AI$823,12,FALSE)))","v":""},{"$f":"IF($A341=\"\",\"\",IF(OR(VLOOKUP($A341,Economática!$A$3:$AI$823,13,FALSE)=0,VLOOKUP($A341,Economática!$A$3:$AI$823,13,FALSE)=\"-\"),1/0,VLOOKUP($A341,Economática!$A$3:$AI$823,13,FALSE)))","v":""},{"$f":"IF($A341=\"\",\"\",IF(OR(VLOOKUP($A341,Economática!$A$3:$AI$823,14,FALSE)=0,VLOOKUP($A341,Economática!$A$3:$AI$823,14,FALSE)=\"-\"),1/0,VLOOKUP($A341,Economática!$A$3:$AI$823,14,FALSE)))","v":""},{"$f":"IF($A341=\"\",\"\",IF(OR(VLOOKUP($A341,Economática!$A$3:$AI$823,15,FALSE)=0,VLOOKUP($A341,Economática!$A$3:$AI$823,15,FALSE)=\"-\"),1/0,VLOOKUP($A341,Economática!$A$3:$AI$823,15,FALSE)))","v":""},{"$f":"IF($A341=\"\",\"\",IF(OR(VLOOKUP($A341,Economática!$A$3:$AI$823,16,FALSE)=0,VLOOKUP($A341,Economática!$A$3:$AI$823,16,FALSE)=\"-\"),1/0,VLOOKUP($A341,Economática!$A$3:$AI$823,16,FALSE)))","v":""},{"$f":"IF($A341=\"\",\"\",IF(OR(VLOOKUP($A341,Economática!$A$3:$AI$823,17,FALSE)=0,VLOOKUP($A341,Economática!$A$3:$AI$823,17,FALSE)=\"-\"),1/0,VLOOKUP($A341,Economática!$A$3:$AI$823,17,FALSE)))","v":""},{"$f":"IF($A341=\"\",\"\",IF(OR(VLOOKUP($A341,Economática!$A$3:$AI$823,18,FALSE)=0,VLOOKUP($A341,Economática!$A$3:$AI$823,18,FALSE)=\"-\"),1/0,VLOOKUP($A341,Economática!$A$3:$AI$823,18,FALSE)))","v":""},{"$f":"IF($A341=\"\",\"\",IF(OR(VLOOKUP($A341,Economática!$A$3:$AI$823,19,FALSE)=0,VLOOKUP($A341,Economática!$A$3:$AI$823,19,FALSE)=\"-\"),1/0,VLOOKUP($A341,Economática!$A$3:$AI$823,19,FALSE)))","v":""},{"$f":"IF($A341=\"\",\"\",VLOOKUP($A341,Economática!$A$3:$AI$823,20,FALSE)/E341)","v":""},"","","",{"$f":"IF($A341=\"\",\"\",IF(OR(VLOOKUP($A341,Economática!$A$3:$AI$823,21,FALSE)/100=0,VLOOKUP($A341,Economática!$A$3:$AI$823,21,FALSE)/100=\"-\"),1/0,VLOOKUP($A341,Economática!$A$3:$AI$823,21,FALSE)/100))","v":""},{"$f":"IF($A341=\"\",\"\",IF(OR(VLOOKUP($A341,Economática!$A$3:$AI$823,22,FALSE)/100=0,VLOOKUP($A341,Economática!$A$3:$AI$823,22,FALSE)/100=\"-\"),1/0,VLOOKUP($A341,Economática!$A$3:$AI$823,22,FALSE)/100))","v":""},{"$f":"IF($A341=\"\",\"\",IF(OR(VLOOKUP($A341,Economática!$A$3:$AI$823,23,FALSE)=0,VLOOKUP($A341,Economática!$A$3:$AI$823,23,FALSE)=\"-\"),1/0,VLOOKUP($A341,Economática!$A$3:$AI$823,23,FALSE)))","v":""},{"$f":"IF($A341=\"\",\"\",IF(OR(VLOOKUP($A341,Economática!$A$3:$AI$823,24,FALSE)=0,VLOOKUP($A341,Economática!$A$3:$AI$823,24,FALSE)=\"-\"),1/0,VLOOKUP($A341,Economática!$A$3:$AI$823,24,FALSE)))","v":""},{"$f":"IF($A341=\"\",\"\",IF(OR(VLOOKUP($A341,Economática!$A$3:$AI$823,25,FALSE)=0,VLOOKUP($A341,Economática!$A$3:$AI$823,25,FALSE)=\"-\"),1/0,VLOOKUP($A341,Economática!$A$3:$AI$823,25,FALSE)))","v":""},{"$f":"IF($A341=\"\",\"\",IF(ISERROR((F341+VLOOKUP($A341,Economática!$A$3:$AI$823,26,FALSE))/Y341),(F341+VLOOKUP($A341,Economática!$A$3:$AI$823,26,FALSE))/Y341,(F341+VLOOKUP($A341,Economática!$A$3:$AI$823,26,FALSE))/Y341))","v":""},{"$f":"IF($A341=\"\",\"\",IF(OR(-VLOOKUP($A341,Economática!$A$3:$AI$823,27,FALSE)=0,-VLOOKUP($A341,Economática!$A$3:$AI$823,27,FALSE)=\"-\"),1/0,-VLOOKUP($A341,Economática!$A$3:$AI$823,27,FALSE)))","v":""},"",{"$f":"IF($A341=\"\",\"\",IF(OR(VLOOKUP($A341,Economática!$A$3:$AI$823,28,FALSE)=0,VLOOKUP($A341,Economática!$A$3:$AI$823,28,FALSE)=\"-\"),1/0,VLOOKUP($A341,Economática!$A$3:$AI$823,28,FALSE)))","v":""},{"$f":"IF($A341=\"\",\"\",IF(OR(VLOOKUP($A341,Economática!$A$3:$AI$823,29,FALSE)=0,VLOOKUP($A341,Economática!$A$3:$AI$823,29,FALSE)=\"-\"),1/0,VLOOKUP($A341,Economática!$A$3:$AI$823,29,FALSE)))","v":""},{"$f":"IF($A341=\"\",\"\",IF(OR(VLOOKUP($A341,Economática!$A$3:$AI$823,30,FALSE)/E341=0,VLOOKUP($A341,Economática!$A$3:$AI$823,30,FALSE)/E341=\"-\",VLOOKUP($A341,Economática!$A$3:$AI$823,30,FALSE)/E341<33.33%,VLOOKUP($A341,Economática!$A$3:$AI$823,30,FALSE)/E341>100%),1/0,VLOOKUP($A341,Economática!$A$3:$AI$823,30,FALSE)/E341))","v":""},"",{"$f":"IF($A341=\"\",\"\",IF(OR(VLOOKUP($A341,Economática!$A$3:$AI$823,25,FALSE)=0,VLOOKUP($A341,Economática!$A$3:$AI$823,25,FALSE)=\"-\"),1/0,VLOOKUP($A341,Economática!$A$3:$AI$823,25,FALSE)))","v":""},{"$f":"CONCATENATE(Economática!B319,\" \",Economática!C319)","v":" "}]
[{"$f":"IF(Economática!AG320=\"\",\"\",Economática!AG320)","v":""},{"$f":"IF($A342=\"\",\"\",VLOOKUP(VLOOKUP($A342,Economática!$A$3:$AI$823,6,FALSE),Correção!$B$16:$C$36,2,FALSE))","v":""},{"$f":"IF(Economática!B320=\"\",\"\",Economática!B320)","v":""},{"$f":"IF($A342=\"\",\"\",IF(OR(VLOOKUP($A342,Economática!$A$3:$AI$823,8,FALSE)=0,VLOOKUP($A342,Economática!$A$3:$AI$823,8,FALSE)=\"-\"),1/0,VLOOKUP($A342,Economática!$A$3:$AI$823,8,FALSE)))","v":""},{"$f":"IF(A342=\"\",\"\",IF(ISERROR(VLOOKUP(A342,Correção!$B$2:$G$13,9,FALSE)),VLOOKUP($A342,Economática!$A$3:$AI$823,9,FALSE),VLOOKUP(A342,Correção!$B$2:$G$13,9,FALSE)))","v":""},{"$f":"IF($A342=\"\",\"\",Economática!G320)","v":""},{"$f":"IF($A342=\"\",\"\",IF(OR(VLOOKUP($A342,Economática!$A$3:$AI$823,10,FALSE)=0,VLOOKUP($A342,Economática!$A$3:$AI$823,10,FALSE)=\"-\"),1/0,VLOOKUP($A342,Economática!$A$3:$AI$823,10,FALSE)))","v":""},{"$f":"IF($A342=\"\",\"\",IF(OR(VLOOKUP($A342,Economática!$A$3:$AI$823,11,FALSE)=0,VLOOKUP($A342,Economática!$A$3:$AI$823,11,FALSE)=\"-\"),1/0,VLOOKUP($A342,Economática!$A$3:$AI$823,11,FALSE)))","v":""},{"$f":"IF($A342=\"\",\"\",IF(OR(VLOOKUP($A342,Economática!$A$3:$AI$823,12,FALSE)=0,VLOOKUP($A342,Economática!$A$3:$AI$823,12,FALSE)=\"-\"),1/0,VLOOKUP($A342,Economática!$A$3:$AI$823,12,FALSE)))","v":""},{"$f":"IF($A342=\"\",\"\",IF(OR(VLOOKUP($A342,Economática!$A$3:$AI$823,13,FALSE)=0,VLOOKUP($A342,Economática!$A$3:$AI$823,13,FALSE)=\"-\"),1/0,VLOOKUP($A342,Economática!$A$3:$AI$823,13,FALSE)))","v":""},{"$f":"IF($A342=\"\",\"\",IF(OR(VLOOKUP($A342,Economática!$A$3:$AI$823,14,FALSE)=0,VLOOKUP($A342,Economática!$A$3:$AI$823,14,FALSE)=\"-\"),1/0,VLOOKUP($A342,Economática!$A$3:$AI$823,14,FALSE)))","v":""},{"$f":"IF($A342=\"\",\"\",IF(OR(VLOOKUP($A342,Economática!$A$3:$AI$823,15,FALSE)=0,VLOOKUP($A342,Economática!$A$3:$AI$823,15,FALSE)=\"-\"),1/0,VLOOKUP($A342,Economática!$A$3:$AI$823,15,FALSE)))","v":""},{"$f":"IF($A342=\"\",\"\",IF(OR(VLOOKUP($A342,Economática!$A$3:$AI$823,16,FALSE)=0,VLOOKUP($A342,Economática!$A$3:$AI$823,16,FALSE)=\"-\"),1/0,VLOOKUP($A342,Economática!$A$3:$AI$823,16,FALSE)))","v":""},{"$f":"IF($A342=\"\",\"\",IF(OR(VLOOKUP($A342,Economática!$A$3:$AI$823,17,FALSE)=0,VLOOKUP($A342,Economática!$A$3:$AI$823,17,FALSE)=\"-\"),1/0,VLOOKUP($A342,Economática!$A$3:$AI$823,17,FALSE)))","v":""},{"$f":"IF($A342=\"\",\"\",IF(OR(VLOOKUP($A342,Economática!$A$3:$AI$823,18,FALSE)=0,VLOOKUP($A342,Economática!$A$3:$AI$823,18,FALSE)=\"-\"),1/0,VLOOKUP($A342,Economática!$A$3:$AI$823,18,FALSE)))","v":""},{"$f":"IF($A342=\"\",\"\",IF(OR(VLOOKUP($A342,Economática!$A$3:$AI$823,19,FALSE)=0,VLOOKUP($A342,Economática!$A$3:$AI$823,19,FALSE)=\"-\"),1/0,VLOOKUP($A342,Economática!$A$3:$AI$823,19,FALSE)))","v":""},{"$f":"IF($A342=\"\",\"\",VLOOKUP($A342,Economática!$A$3:$AI$823,20,FALSE)/E342)","v":""},"","","",{"$f":"IF($A342=\"\",\"\",IF(OR(VLOOKUP($A342,Economática!$A$3:$AI$823,21,FALSE)/100=0,VLOOKUP($A342,Economática!$A$3:$AI$823,21,FALSE)/100=\"-\"),1/0,VLOOKUP($A342,Economática!$A$3:$AI$823,21,FALSE)/100))","v":""},{"$f":"IF($A342=\"\",\"\",IF(OR(VLOOKUP($A342,Economática!$A$3:$AI$823,22,FALSE)/100=0,VLOOKUP($A342,Economática!$A$3:$AI$823,22,FALSE)/100=\"-\"),1/0,VLOOKUP($A342,Economática!$A$3:$AI$823,22,FALSE)/100))","v":""},{"$f":"IF($A342=\"\",\"\",IF(OR(VLOOKUP($A342,Economática!$A$3:$AI$823,23,FALSE)=0,VLOOKUP($A342,Economática!$A$3:$AI$823,23,FALSE)=\"-\"),1/0,VLOOKUP($A342,Economática!$A$3:$AI$823,23,FALSE)))","v":""},{"$f":"IF($A342=\"\",\"\",IF(OR(VLOOKUP($A342,Economática!$A$3:$AI$823,24,FALSE)=0,VLOOKUP($A342,Economática!$A$3:$AI$823,24,FALSE)=\"-\"),1/0,VLOOKUP($A342,Economática!$A$3:$AI$823,24,FALSE)))","v":""},{"$f":"IF($A342=\"\",\"\",IF(OR(VLOOKUP($A342,Economática!$A$3:$AI$823,25,FALSE)=0,VLOOKUP($A342,Economática!$A$3:$AI$823,25,FALSE)=\"-\"),1/0,VLOOKUP($A342,Economática!$A$3:$AI$823,25,FALSE)))","v":""},{"$f":"IF($A342=\"\",\"\",IF(ISERROR((F342+VLOOKUP($A342,Economática!$A$3:$AI$823,26,FALSE))/Y342),(F342+VLOOKUP($A342,Economática!$A$3:$AI$823,26,FALSE))/Y342,(F342+VLOOKUP($A342,Economática!$A$3:$AI$823,26,FALSE))/Y342))","v":""},{"$f":"IF($A342=\"\",\"\",IF(OR(-VLOOKUP($A342,Economática!$A$3:$AI$823,27,FALSE)=0,-VLOOKUP($A342,Economática!$A$3:$AI$823,27,FALSE)=\"-\"),1/0,-VLOOKUP($A342,Economática!$A$3:$AI$823,27,FALSE)))","v":""},"",{"$f":"IF($A342=\"\",\"\",IF(OR(VLOOKUP($A342,Economática!$A$3:$AI$823,28,FALSE)=0,VLOOKUP($A342,Economática!$A$3:$AI$823,28,FALSE)=\"-\"),1/0,VLOOKUP($A342,Economática!$A$3:$AI$823,28,FALSE)))","v":""},{"$f":"IF($A342=\"\",\"\",IF(OR(VLOOKUP($A342,Economática!$A$3:$AI$823,29,FALSE)=0,VLOOKUP($A342,Economática!$A$3:$AI$823,29,FALSE)=\"-\"),1/0,VLOOKUP($A342,Economática!$A$3:$AI$823,29,FALSE)))","v":""},{"$f":"IF($A342=\"\",\"\",IF(OR(VLOOKUP($A342,Economática!$A$3:$AI$823,30,FALSE)/E342=0,VLOOKUP($A342,Economática!$A$3:$AI$823,30,FALSE)/E342=\"-\",VLOOKUP($A342,Economática!$A$3:$AI$823,30,FALSE)/E342<33.33%,VLOOKUP($A342,Economática!$A$3:$AI$823,30,FALSE)/E342>100%),1/0,VLOOKUP($A342,Economática!$A$3:$AI$823,30,FALSE)/E342))","v":""},"",{"$f":"IF($A342=\"\",\"\",IF(OR(VLOOKUP($A342,Economática!$A$3:$AI$823,25,FALSE)=0,VLOOKUP($A342,Economática!$A$3:$AI$823,25,FALSE)=\"-\"),1/0,VLOOKUP($A342,Economática!$A$3:$AI$823,25,FALSE)))","v":""},{"$f":"CONCATENATE(Economática!B320,\" \",Economática!C320)","v":" "}]
[{"$f":"IF(Economática!AG321=\"\",\"\",Economática!AG321)","v":""},{"$f":"IF($A343=\"\",\"\",VLOOKUP(VLOOKUP($A343,Economática!$A$3:$AI$823,6,FALSE),Correção!$B$16:$C$36,2,FALSE))","v":""},{"$f":"IF(Economática!B321=\"\",\"\",Economática!B321)","v":""},{"$f":"IF($A343=\"\",\"\",IF(OR(VLOOKUP($A343,Economática!$A$3:$AI$823,8,FALSE)=0,VLOOKUP($A343,Economática!$A$3:$AI$823,8,FALSE)=\"-\"),1/0,VLOOKUP($A343,Economática!$A$3:$AI$823,8,FALSE)))","v":""},{"$f":"IF(A343=\"\",\"\",IF(ISERROR(VLOOKUP(A343,Correção!$B$2:$G$13,9,FALSE)),VLOOKUP($A343,Economática!$A$3:$AI$823,9,FALSE),VLOOKUP(A343,Correção!$B$2:$G$13,9,FALSE)))","v":""},{"$f":"IF($A343=\"\",\"\",Economática!G321)","v":""},{"$f":"IF($A343=\"\",\"\",IF(OR(VLOOKUP($A343,Economática!$A$3:$AI$823,10,FALSE)=0,VLOOKUP($A343,Economática!$A$3:$AI$823,10,FALSE)=\"-\"),1/0,VLOOKUP($A343,Economática!$A$3:$AI$823,10,FALSE)))","v":""},{"$f":"IF($A343=\"\",\"\",IF(OR(VLOOKUP($A343,Economática!$A$3:$AI$823,11,FALSE)=0,VLOOKUP($A343,Economática!$A$3:$AI$823,11,FALSE)=\"-\"),1/0,VLOOKUP($A343,Economática!$A$3:$AI$823,11,FALSE)))","v":""},{"$f":"IF($A343=\"\",\"\",IF(OR(VLOOKUP($A343,Economática!$A$3:$AI$823,12,FALSE)=0,VLOOKUP($A343,Economática!$A$3:$AI$823,12,FALSE)=\"-\"),1/0,VLOOKUP($A343,Economática!$A$3:$AI$823,12,FALSE)))","v":""},{"$f":"IF($A343=\"\",\"\",IF(OR(VLOOKUP($A343,Economática!$A$3:$AI$823,13,FALSE)=0,VLOOKUP($A343,Economática!$A$3:$AI$823,13,FALSE)=\"-\"),1/0,VLOOKUP($A343,Economática!$A$3:$AI$823,13,FALSE)))","v":""},{"$f":"IF($A343=\"\",\"\",IF(OR(VLOOKUP($A343,Economática!$A$3:$AI$823,14,FALSE)=0,VLOOKUP($A343,Economática!$A$3:$AI$823,14,FALSE)=\"-\"),1/0,VLOOKUP($A343,Economática!$A$3:$AI$823,14,FALSE)))","v":""},{"$f":"IF($A343=\"\",\"\",IF(OR(VLOOKUP($A343,Economática!$A$3:$AI$823,15,FALSE)=0,VLOOKUP($A343,Economática!$A$3:$AI$823,15,FALSE)=\"-\"),1/0,VLOOKUP($A343,Economática!$A$3:$AI$823,15,FALSE)))","v":""},{"$f":"IF($A343=\"\",\"\",IF(OR(VLOOKUP($A343,Economática!$A$3:$AI$823,16,FALSE)=0,VLOOKUP($A343,Economática!$A$3:$AI$823,16,FALSE)=\"-\"),1/0,VLOOKUP($A343,Economática!$A$3:$AI$823,16,FALSE)))","v":""},{"$f":"IF($A343=\"\",\"\",IF(OR(VLOOKUP($A343,Economática!$A$3:$AI$823,17,FALSE)=0,VLOOKUP($A343,Economática!$A$3:$AI$823,17,FALSE)=\"-\"),1/0,VLOOKUP($A343,Economática!$A$3:$AI$823,17,FALSE)))","v":""},{"$f":"IF($A343=\"\",\"\",IF(OR(VLOOKUP($A343,Economática!$A$3:$AI$823,18,FALSE)=0,VLOOKUP($A343,Economática!$A$3:$AI$823,18,FALSE)=\"-\"),1/0,VLOOKUP($A343,Economática!$A$3:$AI$823,18,FALSE)))","v":""},{"$f":"IF($A343=\"\",\"\",IF(OR(VLOOKUP($A343,Economática!$A$3:$AI$823,19,FALSE)=0,VLOOKUP($A343,Economática!$A$3:$AI$823,19,FALSE)=\"-\"),1/0,VLOOKUP($A343,Economática!$A$3:$AI$823,19,FALSE)))","v":""},{"$f":"IF($A343=\"\",\"\",VLOOKUP($A343,Economática!$A$3:$AI$823,20,FALSE)/E343)","v":""},"","","",{"$f":"IF($A343=\"\",\"\",IF(OR(VLOOKUP($A343,Economática!$A$3:$AI$823,21,FALSE)/100=0,VLOOKUP($A343,Economática!$A$3:$AI$823,21,FALSE)/100=\"-\"),1/0,VLOOKUP($A343,Economática!$A$3:$AI$823,21,FALSE)/100))","v":""},{"$f":"IF($A343=\"\",\"\",IF(OR(VLOOKUP($A343,Economática!$A$3:$AI$823,22,FALSE)/100=0,VLOOKUP($A343,Economática!$A$3:$AI$823,22,FALSE)/100=\"-\"),1/0,VLOOKUP($A343,Economática!$A$3:$AI$823,22,FALSE)/100))","v":""},{"$f":"IF($A343=\"\",\"\",IF(OR(VLOOKUP($A343,Economática!$A$3:$AI$823,23,FALSE)=0,VLOOKUP($A343,Economática!$A$3:$AI$823,23,FALSE)=\"-\"),1/0,VLOOKUP($A343,Economática!$A$3:$AI$823,23,FALSE)))","v":""},{"$f":"IF($A343=\"\",\"\",IF(OR(VLOOKUP($A343,Economática!$A$3:$AI$823,24,FALSE)=0,VLOOKUP($A343,Economática!$A$3:$AI$823,24,FALSE)=\"-\"),1/0,VLOOKUP($A343,Economática!$A$3:$AI$823,24,FALSE)))","v":""},{"$f":"IF($A343=\"\",\"\",IF(OR(VLOOKUP($A343,Economática!$A$3:$AI$823,25,FALSE)=0,VLOOKUP($A343,Economática!$A$3:$AI$823,25,FALSE)=\"-\"),1/0,VLOOKUP($A343,Economática!$A$3:$AI$823,25,FALSE)))","v":""},{"$f":"IF($A343=\"\",\"\",IF(ISERROR((F343+VLOOKUP($A343,Economática!$A$3:$AI$823,26,FALSE))/Y343),(F343+VLOOKUP($A343,Economática!$A$3:$AI$823,26,FALSE))/Y343,(F343+VLOOKUP($A343,Economática!$A$3:$AI$823,26,FALSE))/Y343))","v":""},{"$f":"IF($A343=\"\",\"\",IF(OR(-VLOOKUP($A343,Economática!$A$3:$AI$823,27,FALSE)=0,-VLOOKUP($A343,Economática!$A$3:$AI$823,27,FALSE)=\"-\"),1/0,-VLOOKUP($A343,Economática!$A$3:$AI$823,27,FALSE)))","v":""},"",{"$f":"IF($A343=\"\",\"\",IF(OR(VLOOKUP($A343,Economática!$A$3:$AI$823,28,FALSE)=0,VLOOKUP($A343,Economática!$A$3:$AI$823,28,FALSE)=\"-\"),1/0,VLOOKUP($A343,Economática!$A$3:$AI$823,28,FALSE)))","v":""},{"$f":"IF($A343=\"\",\"\",IF(OR(VLOOKUP($A343,Economática!$A$3:$AI$823,29,FALSE)=0,VLOOKUP($A343,Economática!$A$3:$AI$823,29,FALSE)=\"-\"),1/0,VLOOKUP($A343,Economática!$A$3:$AI$823,29,FALSE)))","v":""},{"$f":"IF($A343=\"\",\"\",IF(OR(VLOOKUP($A343,Economática!$A$3:$AI$823,30,FALSE)/E343=0,VLOOKUP($A343,Economática!$A$3:$AI$823,30,FALSE)/E343=\"-\",VLOOKUP($A343,Economática!$A$3:$AI$823,30,FALSE)/E343<33.33%,VLOOKUP($A343,Economática!$A$3:$AI$823,30,FALSE)/E343>100%),1/0,VLOOKUP($A343,Economática!$A$3:$AI$823,30,FALSE)/E343))","v":""},"",{"$f":"IF($A343=\"\",\"\",IF(OR(VLOOKUP($A343,Economática!$A$3:$AI$823,25,FALSE)=0,VLOOKUP($A343,Economática!$A$3:$AI$823,25,FALSE)=\"-\"),1/0,VLOOKUP($A343,Economática!$A$3:$AI$823,25,FALSE)))","v":""},{"$f":"CONCATENATE(Economática!B321,\" \",Economática!C321)","v":" "}]
[{"$f":"IF(Economática!AG322=\"\",\"\",Economática!AG322)","v":""},{"$f":"IF($A344=\"\",\"\",VLOOKUP(VLOOKUP($A344,Economática!$A$3:$AI$823,6,FALSE),Correção!$B$16:$C$36,2,FALSE))","v":""},{"$f":"IF(Economática!B322=\"\",\"\",Economática!B322)","v":""},{"$f":"IF($A344=\"\",\"\",IF(OR(VLOOKUP($A344,Economática!$A$3:$AI$823,8,FALSE)=0,VLOOKUP($A344,Economática!$A$3:$AI$823,8,FALSE)=\"-\"),1/0,VLOOKUP($A344,Economática!$A$3:$AI$823,8,FALSE)))","v":""},{"$f":"IF(A344=\"\",\"\",IF(ISERROR(VLOOKUP(A344,Correção!$B$2:$G$13,9,FALSE)),VLOOKUP($A344,Economática!$A$3:$AI$823,9,FALSE),VLOOKUP(A344,Correção!$B$2:$G$13,9,FALSE)))","v":""},{"$f":"IF($A344=\"\",\"\",Economática!G322)","v":""},{"$f":"IF($A344=\"\",\"\",IF(OR(VLOOKUP($A344,Economática!$A$3:$AI$823,10,FALSE)=0,VLOOKUP($A344,Economática!$A$3:$AI$823,10,FALSE)=\"-\"),1/0,VLOOKUP($A344,Economática!$A$3:$AI$823,10,FALSE)))","v":""},{"$f":"IF($A344=\"\",\"\",IF(OR(VLOOKUP($A344,Economática!$A$3:$AI$823,11,FALSE)=0,VLOOKUP($A344,Economática!$A$3:$AI$823,11,FALSE)=\"-\"),1/0,VLOOKUP($A344,Economática!$A$3:$AI$823,11,FALSE)))","v":""},{"$f":"IF($A344=\"\",\"\",IF(OR(VLOOKUP($A344,Economática!$A$3:$AI$823,12,FALSE)=0,VLOOKUP($A344,Economática!$A$3:$AI$823,12,FALSE)=\"-\"),1/0,VLOOKUP($A344,Economática!$A$3:$AI$823,12,FALSE)))","v":""},{"$f":"IF($A344=\"\",\"\",IF(OR(VLOOKUP($A344,Economática!$A$3:$AI$823,13,FALSE)=0,VLOOKUP($A344,Economática!$A$3:$AI$823,13,FALSE)=\"-\"),1/0,VLOOKUP($A344,Economática!$A$3:$AI$823,13,FALSE)))","v":""},{"$f":"IF($A344=\"\",\"\",IF(OR(VLOOKUP($A344,Economática!$A$3:$AI$823,14,FALSE)=0,VLOOKUP($A344,Economática!$A$3:$AI$823,14,FALSE)=\"-\"),1/0,VLOOKUP($A344,Economática!$A$3:$AI$823,14,FALSE)))","v":""},{"$f":"IF($A344=\"\",\"\",IF(OR(VLOOKUP($A344,Economática!$A$3:$AI$823,15,FALSE)=0,VLOOKUP($A344,Economática!$A$3:$AI$823,15,FALSE)=\"-\"),1/0,VLOOKUP($A344,Economática!$A$3:$AI$823,15,FALSE)))","v":""},{"$f":"IF($A344=\"\",\"\",IF(OR(VLOOKUP($A344,Economática!$A$3:$AI$823,16,FALSE)=0,VLOOKUP($A344,Economática!$A$3:$AI$823,16,FALSE)=\"-\"),1/0,VLOOKUP($A344,Economática!$A$3:$AI$823,16,FALSE)))","v":""},{"$f":"IF($A344=\"\",\"\",IF(OR(VLOOKUP($A344,Economática!$A$3:$AI$823,17,FALSE)=0,VLOOKUP($A344,Economática!$A$3:$AI$823,17,FALSE)=\"-\"),1/0,VLOOKUP($A344,Economática!$A$3:$AI$823,17,FALSE)))","v":""},{"$f":"IF($A344=\"\",\"\",IF(OR(VLOOKUP($A344,Economática!$A$3:$AI$823,18,FALSE)=0,VLOOKUP($A344,Economática!$A$3:$AI$823,18,FALSE)=\"-\"),1/0,VLOOKUP($A344,Economática!$A$3:$AI$823,18,FALSE)))","v":""},{"$f":"IF($A344=\"\",\"\",IF(OR(VLOOKUP($A344,Economática!$A$3:$AI$823,19,FALSE)=0,VLOOKUP($A344,Economática!$A$3:$AI$823,19,FALSE)=\"-\"),1/0,VLOOKUP($A344,Economática!$A$3:$AI$823,19,FALSE)))","v":""},{"$f":"IF($A344=\"\",\"\",VLOOKUP($A344,Economática!$A$3:$AI$823,20,FALSE)/E344)","v":""},"","","",{"$f":"IF($A344=\"\",\"\",IF(OR(VLOOKUP($A344,Economática!$A$3:$AI$823,21,FALSE)/100=0,VLOOKUP($A344,Economática!$A$3:$AI$823,21,FALSE)/100=\"-\"),1/0,VLOOKUP($A344,Economática!$A$3:$AI$823,21,FALSE)/100))","v":""},{"$f":"IF($A344=\"\",\"\",IF(OR(VLOOKUP($A344,Economática!$A$3:$AI$823,22,FALSE)/100=0,VLOOKUP($A344,Economática!$A$3:$AI$823,22,FALSE)/100=\"-\"),1/0,VLOOKUP($A344,Economática!$A$3:$AI$823,22,FALSE)/100))","v":""},{"$f":"IF($A344=\"\",\"\",IF(OR(VLOOKUP($A344,Economática!$A$3:$AI$823,23,FALSE)=0,VLOOKUP($A344,Economática!$A$3:$AI$823,23,FALSE)=\"-\"),1/0,VLOOKUP($A344,Economática!$A$3:$AI$823,23,FALSE)))","v":""},{"$f":"IF($A344=\"\",\"\",IF(OR(VLOOKUP($A344,Economática!$A$3:$AI$823,24,FALSE)=0,VLOOKUP($A344,Economática!$A$3:$AI$823,24,FALSE)=\"-\"),1/0,VLOOKUP($A344,Economática!$A$3:$AI$823,24,FALSE)))","v":""},{"$f":"IF($A344=\"\",\"\",IF(OR(VLOOKUP($A344,Economática!$A$3:$AI$823,25,FALSE)=0,VLOOKUP($A344,Economática!$A$3:$AI$823,25,FALSE)=\"-\"),1/0,VLOOKUP($A344,Economática!$A$3:$AI$823,25,FALSE)))","v":""},{"$f":"IF($A344=\"\",\"\",IF(ISERROR((F344+VLOOKUP($A344,Economática!$A$3:$AI$823,26,FALSE))/Y344),(F344+VLOOKUP($A344,Economática!$A$3:$AI$823,26,FALSE))/Y344,(F344+VLOOKUP($A344,Economática!$A$3:$AI$823,26,FALSE))/Y344))","v":""},{"$f":"IF($A344=\"\",\"\",IF(OR(-VLOOKUP($A344,Economática!$A$3:$AI$823,27,FALSE)=0,-VLOOKUP($A344,Economática!$A$3:$AI$823,27,FALSE)=\"-\"),1/0,-VLOOKUP($A344,Economática!$A$3:$AI$823,27,FALSE)))","v":""},"",{"$f":"IF($A344=\"\",\"\",IF(OR(VLOOKUP($A344,Economática!$A$3:$AI$823,28,FALSE)=0,VLOOKUP($A344,Economática!$A$3:$AI$823,28,FALSE)=\"-\"),1/0,VLOOKUP($A344,Economática!$A$3:$AI$823,28,FALSE)))","v":""},{"$f":"IF($A344=\"\",\"\",IF(OR(VLOOKUP($A344,Economática!$A$3:$AI$823,29,FALSE)=0,VLOOKUP($A344,Economática!$A$3:$AI$823,29,FALSE)=\"-\"),1/0,VLOOKUP($A344,Economática!$A$3:$AI$823,29,FALSE)))","v":""},{"$f":"IF($A344=\"\",\"\",IF(OR(VLOOKUP($A344,Economática!$A$3:$AI$823,30,FALSE)/E344=0,VLOOKUP($A344,Economática!$A$3:$AI$823,30,FALSE)/E344=\"-\",VLOOKUP($A344,Economática!$A$3:$AI$823,30,FALSE)/E344<33.33%,VLOOKUP($A344,Economática!$A$3:$AI$823,30,FALSE)/E344>100%),1/0,VLOOKUP($A344,Economática!$A$3:$AI$823,30,FALSE)/E344))","v":""},"",{"$f":"IF($A344=\"\",\"\",IF(OR(VLOOKUP($A344,Economática!$A$3:$AI$823,25,FALSE)=0,VLOOKUP($A344,Economática!$A$3:$AI$823,25,FALSE)=\"-\"),1/0,VLOOKUP($A344,Economática!$A$3:$AI$823,25,FALSE)))","v":""},{"$f":"CONCATENATE(Economática!B322,\" \",Economática!C322)","v":" "}]
[{"$f":"IF(Economática!AG323=\"\",\"\",Economática!AG323)","v":""},{"$f":"IF($A345=\"\",\"\",VLOOKUP(VLOOKUP($A345,Economática!$A$3:$AI$823,6,FALSE),Correção!$B$16:$C$36,2,FALSE))","v":""},{"$f":"IF(Economática!B323=\"\",\"\",Economática!B323)","v":""},{"$f":"IF($A345=\"\",\"\",IF(OR(VLOOKUP($A345,Economática!$A$3:$AI$823,8,FALSE)=0,VLOOKUP($A345,Economática!$A$3:$AI$823,8,FALSE)=\"-\"),1/0,VLOOKUP($A345,Economática!$A$3:$AI$823,8,FALSE)))","v":""},{"$f":"IF(A345=\"\",\"\",IF(ISERROR(VLOOKUP(A345,Correção!$B$2:$G$13,9,FALSE)),VLOOKUP($A345,Economática!$A$3:$AI$823,9,FALSE),VLOOKUP(A345,Correção!$B$2:$G$13,9,FALSE)))","v":""},{"$f":"IF($A345=\"\",\"\",Economática!G323)","v":""},{"$f":"IF($A345=\"\",\"\",IF(OR(VLOOKUP($A345,Economática!$A$3:$AI$823,10,FALSE)=0,VLOOKUP($A345,Economática!$A$3:$AI$823,10,FALSE)=\"-\"),1/0,VLOOKUP($A345,Economática!$A$3:$AI$823,10,FALSE)))","v":""},{"$f":"IF($A345=\"\",\"\",IF(OR(VLOOKUP($A345,Economática!$A$3:$AI$823,11,FALSE)=0,VLOOKUP($A345,Economática!$A$3:$AI$823,11,FALSE)=\"-\"),1/0,VLOOKUP($A345,Economática!$A$3:$AI$823,11,FALSE)))","v":""},{"$f":"IF($A345=\"\",\"\",IF(OR(VLOOKUP($A345,Economática!$A$3:$AI$823,12,FALSE)=0,VLOOKUP($A345,Economática!$A$3:$AI$823,12,FALSE)=\"-\"),1/0,VLOOKUP($A345,Economática!$A$3:$AI$823,12,FALSE)))","v":""},{"$f":"IF($A345=\"\",\"\",IF(OR(VLOOKUP($A345,Economática!$A$3:$AI$823,13,FALSE)=0,VLOOKUP($A345,Economática!$A$3:$AI$823,13,FALSE)=\"-\"),1/0,VLOOKUP($A345,Economática!$A$3:$AI$823,13,FALSE)))","v":""},{"$f":"IF($A345=\"\",\"\",IF(OR(VLOOKUP($A345,Economática!$A$3:$AI$823,14,FALSE)=0,VLOOKUP($A345,Economática!$A$3:$AI$823,14,FALSE)=\"-\"),1/0,VLOOKUP($A345,Economática!$A$3:$AI$823,14,FALSE)))","v":""},{"$f":"IF($A345=\"\",\"\",IF(OR(VLOOKUP($A345,Economática!$A$3:$AI$823,15,FALSE)=0,VLOOKUP($A345,Economática!$A$3:$AI$823,15,FALSE)=\"-\"),1/0,VLOOKUP($A345,Economática!$A$3:$AI$823,15,FALSE)))","v":""},{"$f":"IF($A345=\"\",\"\",IF(OR(VLOOKUP($A345,Economática!$A$3:$AI$823,16,FALSE)=0,VLOOKUP($A345,Economática!$A$3:$AI$823,16,FALSE)=\"-\"),1/0,VLOOKUP($A345,Economática!$A$3:$AI$823,16,FALSE)))","v":""},{"$f":"IF($A345=\"\",\"\",IF(OR(VLOOKUP($A345,Economática!$A$3:$AI$823,17,FALSE)=0,VLOOKUP($A345,Economática!$A$3:$AI$823,17,FALSE)=\"-\"),1/0,VLOOKUP($A345,Economática!$A$3:$AI$823,17,FALSE)))","v":""},{"$f":"IF($A345=\"\",\"\",IF(OR(VLOOKUP($A345,Economática!$A$3:$AI$823,18,FALSE)=0,VLOOKUP($A345,Economática!$A$3:$AI$823,18,FALSE)=\"-\"),1/0,VLOOKUP($A345,Economática!$A$3:$AI$823,18,FALSE)))","v":""},{"$f":"IF($A345=\"\",\"\",IF(OR(VLOOKUP($A345,Economática!$A$3:$AI$823,19,FALSE)=0,VLOOKUP($A345,Economática!$A$3:$AI$823,19,FALSE)=\"-\"),1/0,VLOOKUP($A345,Economática!$A$3:$AI$823,19,FALSE)))","v":""},{"$f":"IF($A345=\"\",\"\",VLOOKUP($A345,Economática!$A$3:$AI$823,20,FALSE)/E345)","v":""},"","","",{"$f":"IF($A345=\"\",\"\",IF(OR(VLOOKUP($A345,Economática!$A$3:$AI$823,21,FALSE)/100=0,VLOOKUP($A345,Economática!$A$3:$AI$823,21,FALSE)/100=\"-\"),1/0,VLOOKUP($A345,Economática!$A$3:$AI$823,21,FALSE)/100))","v":""},{"$f":"IF($A345=\"\",\"\",IF(OR(VLOOKUP($A345,Economática!$A$3:$AI$823,22,FALSE)/100=0,VLOOKUP($A345,Economática!$A$3:$AI$823,22,FALSE)/100=\"-\"),1/0,VLOOKUP($A345,Economática!$A$3:$AI$823,22,FALSE)/100))","v":""},{"$f":"IF($A345=\"\",\"\",IF(OR(VLOOKUP($A345,Economática!$A$3:$AI$823,23,FALSE)=0,VLOOKUP($A345,Economática!$A$3:$AI$823,23,FALSE)=\"-\"),1/0,VLOOKUP($A345,Economática!$A$3:$AI$823,23,FALSE)))","v":""},{"$f":"IF($A345=\"\",\"\",IF(OR(VLOOKUP($A345,Economática!$A$3:$AI$823,24,FALSE)=0,VLOOKUP($A345,Economática!$A$3:$AI$823,24,FALSE)=\"-\"),1/0,VLOOKUP($A345,Economática!$A$3:$AI$823,24,FALSE)))","v":""},{"$f":"IF($A345=\"\",\"\",IF(OR(VLOOKUP($A345,Economática!$A$3:$AI$823,25,FALSE)=0,VLOOKUP($A345,Economática!$A$3:$AI$823,25,FALSE)=\"-\"),1/0,VLOOKUP($A345,Economática!$A$3:$AI$823,25,FALSE)))","v":""},{"$f":"IF($A345=\"\",\"\",IF(ISERROR((F345+VLOOKUP($A345,Economática!$A$3:$AI$823,26,FALSE))/Y345),(F345+VLOOKUP($A345,Economática!$A$3:$AI$823,26,FALSE))/Y345,(F345+VLOOKUP($A345,Economática!$A$3:$AI$823,26,FALSE))/Y345))","v":""},{"$f":"IF($A345=\"\",\"\",IF(OR(-VLOOKUP($A345,Economática!$A$3:$AI$823,27,FALSE)=0,-VLOOKUP($A345,Economática!$A$3:$AI$823,27,FALSE)=\"-\"),1/0,-VLOOKUP($A345,Economática!$A$3:$AI$823,27,FALSE)))","v":""},"",{"$f":"IF($A345=\"\",\"\",IF(OR(VLOOKUP($A345,Economática!$A$3:$AI$823,28,FALSE)=0,VLOOKUP($A345,Economática!$A$3:$AI$823,28,FALSE)=\"-\"),1/0,VLOOKUP($A345,Economática!$A$3:$AI$823,28,FALSE)))","v":""},{"$f":"IF($A345=\"\",\"\",IF(OR(VLOOKUP($A345,Economática!$A$3:$AI$823,29,FALSE)=0,VLOOKUP($A345,Economática!$A$3:$AI$823,29,FALSE)=\"-\"),1/0,VLOOKUP($A345,Economática!$A$3:$AI$823,29,FALSE)))","v":""},{"$f":"IF($A345=\"\",\"\",IF(OR(VLOOKUP($A345,Economática!$A$3:$AI$823,30,FALSE)/E345=0,VLOOKUP($A345,Economática!$A$3:$AI$823,30,FALSE)/E345=\"-\",VLOOKUP($A345,Economática!$A$3:$AI$823,30,FALSE)/E345<33.33%,VLOOKUP($A345,Economática!$A$3:$AI$823,30,FALSE)/E345>100%),1/0,VLOOKUP($A345,Economática!$A$3:$AI$823,30,FALSE)/E345))","v":""},"",{"$f":"IF($A345=\"\",\"\",IF(OR(VLOOKUP($A345,Economática!$A$3:$AI$823,25,FALSE)=0,VLOOKUP($A345,Economática!$A$3:$AI$823,25,FALSE)=\"-\"),1/0,VLOOKUP($A345,Economática!$A$3:$AI$823,25,FALSE)))","v":""},{"$f":"CONCATENATE(Economática!B323,\" \",Economática!C323)","v":" "}]
[{"$f":"IF(Economática!AG324=\"\",\"\",Economática!AG324)","v":""},{"$f":"IF($A346=\"\",\"\",VLOOKUP(VLOOKUP($A346,Economática!$A$3:$AI$823,6,FALSE),Correção!$B$16:$C$36,2,FALSE))","v":""},{"$f":"IF(Economática!B324=\"\",\"\",Economática!B324)","v":""},{"$f":"IF($A346=\"\",\"\",IF(OR(VLOOKUP($A346,Economática!$A$3:$AI$823,8,FALSE)=0,VLOOKUP($A346,Economática!$A$3:$AI$823,8,FALSE)=\"-\"),1/0,VLOOKUP($A346,Economática!$A$3:$AI$823,8,FALSE)))","v":""},{"$f":"IF(A346=\"\",\"\",IF(ISERROR(VLOOKUP(A346,Correção!$B$2:$G$13,9,FALSE)),VLOOKUP($A346,Economática!$A$3:$AI$823,9,FALSE),VLOOKUP(A346,Correção!$B$2:$G$13,9,FALSE)))","v":""},{"$f":"IF($A346=\"\",\"\",Economática!G324)","v":""},{"$f":"IF($A346=\"\",\"\",IF(OR(VLOOKUP($A346,Economática!$A$3:$AI$823,10,FALSE)=0,VLOOKUP($A346,Economática!$A$3:$AI$823,10,FALSE)=\"-\"),1/0,VLOOKUP($A346,Economática!$A$3:$AI$823,10,FALSE)))","v":""},{"$f":"IF($A346=\"\",\"\",IF(OR(VLOOKUP($A346,Economática!$A$3:$AI$823,11,FALSE)=0,VLOOKUP($A346,Economática!$A$3:$AI$823,11,FALSE)=\"-\"),1/0,VLOOKUP($A346,Economática!$A$3:$AI$823,11,FALSE)))","v":""},{"$f":"IF($A346=\"\",\"\",IF(OR(VLOOKUP($A346,Economática!$A$3:$AI$823,12,FALSE)=0,VLOOKUP($A346,Economática!$A$3:$AI$823,12,FALSE)=\"-\"),1/0,VLOOKUP($A346,Economática!$A$3:$AI$823,12,FALSE)))","v":""},{"$f":"IF($A346=\"\",\"\",IF(OR(VLOOKUP($A346,Economática!$A$3:$AI$823,13,FALSE)=0,VLOOKUP($A346,Economática!$A$3:$AI$823,13,FALSE)=\"-\"),1/0,VLOOKUP($A346,Economática!$A$3:$AI$823,13,FALSE)))","v":""},{"$f":"IF($A346=\"\",\"\",IF(OR(VLOOKUP($A346,Economática!$A$3:$AI$823,14,FALSE)=0,VLOOKUP($A346,Economática!$A$3:$AI$823,14,FALSE)=\"-\"),1/0,VLOOKUP($A346,Economática!$A$3:$AI$823,14,FALSE)))","v":""},{"$f":"IF($A346=\"\",\"\",IF(OR(VLOOKUP($A346,Economática!$A$3:$AI$823,15,FALSE)=0,VLOOKUP($A346,Economática!$A$3:$AI$823,15,FALSE)=\"-\"),1/0,VLOOKUP($A346,Economática!$A$3:$AI$823,15,FALSE)))","v":""},{"$f":"IF($A346=\"\",\"\",IF(OR(VLOOKUP($A346,Economática!$A$3:$AI$823,16,FALSE)=0,VLOOKUP($A346,Economática!$A$3:$AI$823,16,FALSE)=\"-\"),1/0,VLOOKUP($A346,Economática!$A$3:$AI$823,16,FALSE)))","v":""},{"$f":"IF($A346=\"\",\"\",IF(OR(VLOOKUP($A346,Economática!$A$3:$AI$823,17,FALSE)=0,VLOOKUP($A346,Economática!$A$3:$AI$823,17,FALSE)=\"-\"),1/0,VLOOKUP($A346,Economática!$A$3:$AI$823,17,FALSE)))","v":""},{"$f":"IF($A346=\"\",\"\",IF(OR(VLOOKUP($A346,Economática!$A$3:$AI$823,18,FALSE)=0,VLOOKUP($A346,Economática!$A$3:$AI$823,18,FALSE)=\"-\"),1/0,VLOOKUP($A346,Economática!$A$3:$AI$823,18,FALSE)))","v":""},{"$f":"IF($A346=\"\",\"\",IF(OR(VLOOKUP($A346,Economática!$A$3:$AI$823,19,FALSE)=0,VLOOKUP($A346,Economática!$A$3:$AI$823,19,FALSE)=\"-\"),1/0,VLOOKUP($A346,Economática!$A$3:$AI$823,19,FALSE)))","v":""},{"$f":"IF($A346=\"\",\"\",VLOOKUP($A346,Economática!$A$3:$AI$823,20,FALSE)/E346)","v":""},"","","",{"$f":"IF($A346=\"\",\"\",IF(OR(VLOOKUP($A346,Economática!$A$3:$AI$823,21,FALSE)/100=0,VLOOKUP($A346,Economática!$A$3:$AI$823,21,FALSE)/100=\"-\"),1/0,VLOOKUP($A346,Economática!$A$3:$AI$823,21,FALSE)/100))","v":""},{"$f":"IF($A346=\"\",\"\",IF(OR(VLOOKUP($A346,Economática!$A$3:$AI$823,22,FALSE)/100=0,VLOOKUP($A346,Economática!$A$3:$AI$823,22,FALSE)/100=\"-\"),1/0,VLOOKUP($A346,Economática!$A$3:$AI$823,22,FALSE)/100))","v":""},{"$f":"IF($A346=\"\",\"\",IF(OR(VLOOKUP($A346,Economática!$A$3:$AI$823,23,FALSE)=0,VLOOKUP($A346,Economática!$A$3:$AI$823,23,FALSE)=\"-\"),1/0,VLOOKUP($A346,Economática!$A$3:$AI$823,23,FALSE)))","v":""},{"$f":"IF($A346=\"\",\"\",IF(OR(VLOOKUP($A346,Economática!$A$3:$AI$823,24,FALSE)=0,VLOOKUP($A346,Economática!$A$3:$AI$823,24,FALSE)=\"-\"),1/0,VLOOKUP($A346,Economática!$A$3:$AI$823,24,FALSE)))","v":""},{"$f":"IF($A346=\"\",\"\",IF(OR(VLOOKUP($A346,Economática!$A$3:$AI$823,25,FALSE)=0,VLOOKUP($A346,Economática!$A$3:$AI$823,25,FALSE)=\"-\"),1/0,VLOOKUP($A346,Economática!$A$3:$AI$823,25,FALSE)))","v":""},{"$f":"IF($A346=\"\",\"\",IF(ISERROR((F346+VLOOKUP($A346,Economática!$A$3:$AI$823,26,FALSE))/Y346),(F346+VLOOKUP($A346,Economática!$A$3:$AI$823,26,FALSE))/Y346,(F346+VLOOKUP($A346,Economática!$A$3:$AI$823,26,FALSE))/Y346))","v":""},{"$f":"IF($A346=\"\",\"\",IF(OR(-VLOOKUP($A346,Economática!$A$3:$AI$823,27,FALSE)=0,-VLOOKUP($A346,Economática!$A$3:$AI$823,27,FALSE)=\"-\"),1/0,-VLOOKUP($A346,Economática!$A$3:$AI$823,27,FALSE)))","v":""},"",{"$f":"IF($A346=\"\",\"\",IF(OR(VLOOKUP($A346,Economática!$A$3:$AI$823,28,FALSE)=0,VLOOKUP($A346,Economática!$A$3:$AI$823,28,FALSE)=\"-\"),1/0,VLOOKUP($A346,Economática!$A$3:$AI$823,28,FALSE)))","v":""},{"$f":"IF($A346=\"\",\"\",IF(OR(VLOOKUP($A346,Economática!$A$3:$AI$823,29,FALSE)=0,VLOOKUP($A346,Economática!$A$3:$AI$823,29,FALSE)=\"-\"),1/0,VLOOKUP($A346,Economática!$A$3:$AI$823,29,FALSE)))","v":""},{"$f":"IF($A346=\"\",\"\",IF(OR(VLOOKUP($A346,Economática!$A$3:$AI$823,30,FALSE)/E346=0,VLOOKUP($A346,Economática!$A$3:$AI$823,30,FALSE)/E346=\"-\",VLOOKUP($A346,Economática!$A$3:$AI$823,30,FALSE)/E346<33.33%,VLOOKUP($A346,Economática!$A$3:$AI$823,30,FALSE)/E346>100%),1/0,VLOOKUP($A346,Economática!$A$3:$AI$823,30,FALSE)/E346))","v":""},"",{"$f":"IF($A346=\"\",\"\",IF(OR(VLOOKUP($A346,Economática!$A$3:$AI$823,25,FALSE)=0,VLOOKUP($A346,Economática!$A$3:$AI$823,25,FALSE)=\"-\"),1/0,VLOOKUP($A346,Economática!$A$3:$AI$823,25,FALSE)))","v":""},{"$f":"CONCATENATE(Economática!B324,\" \",Economática!C324)","v":" "}]
[{"$f":"IF(Economática!AG325=\"\",\"\",Economática!AG325)","v":""},{"$f":"IF($A347=\"\",\"\",VLOOKUP(VLOOKUP($A347,Economática!$A$3:$AI$823,6,FALSE),Correção!$B$16:$C$36,2,FALSE))","v":""},{"$f":"IF(Economática!B325=\"\",\"\",Economática!B325)","v":""},{"$f":"IF($A347=\"\",\"\",IF(OR(VLOOKUP($A347,Economática!$A$3:$AI$823,8,FALSE)=0,VLOOKUP($A347,Economática!$A$3:$AI$823,8,FALSE)=\"-\"),1/0,VLOOKUP($A347,Economática!$A$3:$AI$823,8,FALSE)))","v":""},{"$f":"IF(A347=\"\",\"\",IF(ISERROR(VLOOKUP(A347,Correção!$B$2:$G$13,9,FALSE)),VLOOKUP($A347,Economática!$A$3:$AI$823,9,FALSE),VLOOKUP(A347,Correção!$B$2:$G$13,9,FALSE)))","v":""},{"$f":"IF($A347=\"\",\"\",Economática!G325)","v":""},{"$f":"IF($A347=\"\",\"\",IF(OR(VLOOKUP($A347,Economática!$A$3:$AI$823,10,FALSE)=0,VLOOKUP($A347,Economática!$A$3:$AI$823,10,FALSE)=\"-\"),1/0,VLOOKUP($A347,Economática!$A$3:$AI$823,10,FALSE)))","v":""},{"$f":"IF($A347=\"\",\"\",IF(OR(VLOOKUP($A347,Economática!$A$3:$AI$823,11,FALSE)=0,VLOOKUP($A347,Economática!$A$3:$AI$823,11,FALSE)=\"-\"),1/0,VLOOKUP($A347,Economática!$A$3:$AI$823,11,FALSE)))","v":""},{"$f":"IF($A347=\"\",\"\",IF(OR(VLOOKUP($A347,Economática!$A$3:$AI$823,12,FALSE)=0,VLOOKUP($A347,Economática!$A$3:$AI$823,12,FALSE)=\"-\"),1/0,VLOOKUP($A347,Economática!$A$3:$AI$823,12,FALSE)))","v":""},{"$f":"IF($A347=\"\",\"\",IF(OR(VLOOKUP($A347,Economática!$A$3:$AI$823,13,FALSE)=0,VLOOKUP($A347,Economática!$A$3:$AI$823,13,FALSE)=\"-\"),1/0,VLOOKUP($A347,Economática!$A$3:$AI$823,13,FALSE)))","v":""},{"$f":"IF($A347=\"\",\"\",IF(OR(VLOOKUP($A347,Economática!$A$3:$AI$823,14,FALSE)=0,VLOOKUP($A347,Economática!$A$3:$AI$823,14,FALSE)=\"-\"),1/0,VLOOKUP($A347,Economática!$A$3:$AI$823,14,FALSE)))","v":""},{"$f":"IF($A347=\"\",\"\",IF(OR(VLOOKUP($A347,Economática!$A$3:$AI$823,15,FALSE)=0,VLOOKUP($A347,Economática!$A$3:$AI$823,15,FALSE)=\"-\"),1/0,VLOOKUP($A347,Economática!$A$3:$AI$823,15,FALSE)))","v":""},{"$f":"IF($A347=\"\",\"\",IF(OR(VLOOKUP($A347,Economática!$A$3:$AI$823,16,FALSE)=0,VLOOKUP($A347,Economática!$A$3:$AI$823,16,FALSE)=\"-\"),1/0,VLOOKUP($A347,Economática!$A$3:$AI$823,16,FALSE)))","v":""},{"$f":"IF($A347=\"\",\"\",IF(OR(VLOOKUP($A347,Economática!$A$3:$AI$823,17,FALSE)=0,VLOOKUP($A347,Economática!$A$3:$AI$823,17,FALSE)=\"-\"),1/0,VLOOKUP($A347,Economática!$A$3:$AI$823,17,FALSE)))","v":""},{"$f":"IF($A347=\"\",\"\",IF(OR(VLOOKUP($A347,Economática!$A$3:$AI$823,18,FALSE)=0,VLOOKUP($A347,Economática!$A$3:$AI$823,18,FALSE)=\"-\"),1/0,VLOOKUP($A347,Economática!$A$3:$AI$823,18,FALSE)))","v":""},{"$f":"IF($A347=\"\",\"\",IF(OR(VLOOKUP($A347,Economática!$A$3:$AI$823,19,FALSE)=0,VLOOKUP($A347,Economática!$A$3:$AI$823,19,FALSE)=\"-\"),1/0,VLOOKUP($A347,Economática!$A$3:$AI$823,19,FALSE)))","v":""},{"$f":"IF($A347=\"\",\"\",VLOOKUP($A347,Economática!$A$3:$AI$823,20,FALSE)/E347)","v":""},"","","",{"$f":"IF($A347=\"\",\"\",IF(OR(VLOOKUP($A347,Economática!$A$3:$AI$823,21,FALSE)/100=0,VLOOKUP($A347,Economática!$A$3:$AI$823,21,FALSE)/100=\"-\"),1/0,VLOOKUP($A347,Economática!$A$3:$AI$823,21,FALSE)/100))","v":""},{"$f":"IF($A347=\"\",\"\",IF(OR(VLOOKUP($A347,Economática!$A$3:$AI$823,22,FALSE)/100=0,VLOOKUP($A347,Economática!$A$3:$AI$823,22,FALSE)/100=\"-\"),1/0,VLOOKUP($A347,Economática!$A$3:$AI$823,22,FALSE)/100))","v":""},{"$f":"IF($A347=\"\",\"\",IF(OR(VLOOKUP($A347,Economática!$A$3:$AI$823,23,FALSE)=0,VLOOKUP($A347,Economática!$A$3:$AI$823,23,FALSE)=\"-\"),1/0,VLOOKUP($A347,Economática!$A$3:$AI$823,23,FALSE)))","v":""},{"$f":"IF($A347=\"\",\"\",IF(OR(VLOOKUP($A347,Economática!$A$3:$AI$823,24,FALSE)=0,VLOOKUP($A347,Economática!$A$3:$AI$823,24,FALSE)=\"-\"),1/0,VLOOKUP($A347,Economática!$A$3:$AI$823,24,FALSE)))","v":""},{"$f":"IF($A347=\"\",\"\",IF(OR(VLOOKUP($A347,Economática!$A$3:$AI$823,25,FALSE)=0,VLOOKUP($A347,Economática!$A$3:$AI$823,25,FALSE)=\"-\"),1/0,VLOOKUP($A347,Economática!$A$3:$AI$823,25,FALSE)))","v":""},{"$f":"IF($A347=\"\",\"\",IF(ISERROR((F347+VLOOKUP($A347,Economática!$A$3:$AI$823,26,FALSE))/Y347),(F347+VLOOKUP($A347,Economática!$A$3:$AI$823,26,FALSE))/Y347,(F347+VLOOKUP($A347,Economática!$A$3:$AI$823,26,FALSE))/Y347))","v":""},{"$f":"IF($A347=\"\",\"\",IF(OR(-VLOOKUP($A347,Economática!$A$3:$AI$823,27,FALSE)=0,-VLOOKUP($A347,Economática!$A$3:$AI$823,27,FALSE)=\"-\"),1/0,-VLOOKUP($A347,Economática!$A$3:$AI$823,27,FALSE)))","v":""},"",{"$f":"IF($A347=\"\",\"\",IF(OR(VLOOKUP($A347,Economática!$A$3:$AI$823,28,FALSE)=0,VLOOKUP($A347,Economática!$A$3:$AI$823,28,FALSE)=\"-\"),1/0,VLOOKUP($A347,Economática!$A$3:$AI$823,28,FALSE)))","v":""},{"$f":"IF($A347=\"\",\"\",IF(OR(VLOOKUP($A347,Economática!$A$3:$AI$823,29,FALSE)=0,VLOOKUP($A347,Economática!$A$3:$AI$823,29,FALSE)=\"-\"),1/0,VLOOKUP($A347,Economática!$A$3:$AI$823,29,FALSE)))","v":""},{"$f":"IF($A347=\"\",\"\",IF(OR(VLOOKUP($A347,Economática!$A$3:$AI$823,30,FALSE)/E347=0,VLOOKUP($A347,Economática!$A$3:$AI$823,30,FALSE)/E347=\"-\",VLOOKUP($A347,Economática!$A$3:$AI$823,30,FALSE)/E347<33.33%,VLOOKUP($A347,Economática!$A$3:$AI$823,30,FALSE)/E347>100%),1/0,VLOOKUP($A347,Economática!$A$3:$AI$823,30,FALSE)/E347))","v":""},"",{"$f":"IF($A347=\"\",\"\",IF(OR(VLOOKUP($A347,Economática!$A$3:$AI$823,25,FALSE)=0,VLOOKUP($A347,Economática!$A$3:$AI$823,25,FALSE)=\"-\"),1/0,VLOOKUP($A347,Economática!$A$3:$AI$823,25,FALSE)))","v":""},{"$f":"CONCATENATE(Economática!B325,\" \",Economática!C325)","v":" "}]
[{"$f":"IF(Economática!AG326=\"\",\"\",Economática!AG326)","v":""},{"$f":"IF($A348=\"\",\"\",VLOOKUP(VLOOKUP($A348,Economática!$A$3:$AI$823,6,FALSE),Correção!$B$16:$C$36,2,FALSE))","v":""},{"$f":"IF(Economática!B326=\"\",\"\",Economática!B326)","v":""},{"$f":"IF($A348=\"\",\"\",IF(OR(VLOOKUP($A348,Economática!$A$3:$AI$823,8,FALSE)=0,VLOOKUP($A348,Economática!$A$3:$AI$823,8,FALSE)=\"-\"),1/0,VLOOKUP($A348,Economática!$A$3:$AI$823,8,FALSE)))","v":""},{"$f":"IF(A348=\"\",\"\",IF(ISERROR(VLOOKUP(A348,Correção!$B$2:$G$13,9,FALSE)),VLOOKUP($A348,Economática!$A$3:$AI$823,9,FALSE),VLOOKUP(A348,Correção!$B$2:$G$13,9,FALSE)))","v":""},{"$f":"IF($A348=\"\",\"\",Economática!G326)","v":""},{"$f":"IF($A348=\"\",\"\",IF(OR(VLOOKUP($A348,Economática!$A$3:$AI$823,10,FALSE)=0,VLOOKUP($A348,Economática!$A$3:$AI$823,10,FALSE)=\"-\"),1/0,VLOOKUP($A348,Economática!$A$3:$AI$823,10,FALSE)))","v":""},{"$f":"IF($A348=\"\",\"\",IF(OR(VLOOKUP($A348,Economática!$A$3:$AI$823,11,FALSE)=0,VLOOKUP($A348,Economática!$A$3:$AI$823,11,FALSE)=\"-\"),1/0,VLOOKUP($A348,Economática!$A$3:$AI$823,11,FALSE)))","v":""},{"$f":"IF($A348=\"\",\"\",IF(OR(VLOOKUP($A348,Economática!$A$3:$AI$823,12,FALSE)=0,VLOOKUP($A348,Economática!$A$3:$AI$823,12,FALSE)=\"-\"),1/0,VLOOKUP($A348,Economática!$A$3:$AI$823,12,FALSE)))","v":""},{"$f":"IF($A348=\"\",\"\",IF(OR(VLOOKUP($A348,Economática!$A$3:$AI$823,13,FALSE)=0,VLOOKUP($A348,Economática!$A$3:$AI$823,13,FALSE)=\"-\"),1/0,VLOOKUP($A348,Economática!$A$3:$AI$823,13,FALSE)))","v":""},{"$f":"IF($A348=\"\",\"\",IF(OR(VLOOKUP($A348,Economática!$A$3:$AI$823,14,FALSE)=0,VLOOKUP($A348,Economática!$A$3:$AI$823,14,FALSE)=\"-\"),1/0,VLOOKUP($A348,Economática!$A$3:$AI$823,14,FALSE)))","v":""},{"$f":"IF($A348=\"\",\"\",IF(OR(VLOOKUP($A348,Economática!$A$3:$AI$823,15,FALSE)=0,VLOOKUP($A348,Economática!$A$3:$AI$823,15,FALSE)=\"-\"),1/0,VLOOKUP($A348,Economática!$A$3:$AI$823,15,FALSE)))","v":""},{"$f":"IF($A348=\"\",\"\",IF(OR(VLOOKUP($A348,Economática!$A$3:$AI$823,16,FALSE)=0,VLOOKUP($A348,Economática!$A$3:$AI$823,16,FALSE)=\"-\"),1/0,VLOOKUP($A348,Economática!$A$3:$AI$823,16,FALSE)))","v":""},{"$f":"IF($A348=\"\",\"\",IF(OR(VLOOKUP($A348,Economática!$A$3:$AI$823,17,FALSE)=0,VLOOKUP($A348,Economática!$A$3:$AI$823,17,FALSE)=\"-\"),1/0,VLOOKUP($A348,Economática!$A$3:$AI$823,17,FALSE)))","v":""},{"$f":"IF($A348=\"\",\"\",IF(OR(VLOOKUP($A348,Economática!$A$3:$AI$823,18,FALSE)=0,VLOOKUP($A348,Economática!$A$3:$AI$823,18,FALSE)=\"-\"),1/0,VLOOKUP($A348,Economática!$A$3:$AI$823,18,FALSE)))","v":""},{"$f":"IF($A348=\"\",\"\",IF(OR(VLOOKUP($A348,Economática!$A$3:$AI$823,19,FALSE)=0,VLOOKUP($A348,Economática!$A$3:$AI$823,19,FALSE)=\"-\"),1/0,VLOOKUP($A348,Economática!$A$3:$AI$823,19,FALSE)))","v":""},{"$f":"IF($A348=\"\",\"\",VLOOKUP($A348,Economática!$A$3:$AI$823,20,FALSE)/E348)","v":""},"","","",{"$f":"IF($A348=\"\",\"\",IF(OR(VLOOKUP($A348,Economática!$A$3:$AI$823,21,FALSE)/100=0,VLOOKUP($A348,Economática!$A$3:$AI$823,21,FALSE)/100=\"-\"),1/0,VLOOKUP($A348,Economática!$A$3:$AI$823,21,FALSE)/100))","v":""},{"$f":"IF($A348=\"\",\"\",IF(OR(VLOOKUP($A348,Economática!$A$3:$AI$823,22,FALSE)/100=0,VLOOKUP($A348,Economática!$A$3:$AI$823,22,FALSE)/100=\"-\"),1/0,VLOOKUP($A348,Economática!$A$3:$AI$823,22,FALSE)/100))","v":""},{"$f":"IF($A348=\"\",\"\",IF(OR(VLOOKUP($A348,Economática!$A$3:$AI$823,23,FALSE)=0,VLOOKUP($A348,Economática!$A$3:$AI$823,23,FALSE)=\"-\"),1/0,VLOOKUP($A348,Economática!$A$3:$AI$823,23,FALSE)))","v":""},{"$f":"IF($A348=\"\",\"\",IF(OR(VLOOKUP($A348,Economática!$A$3:$AI$823,24,FALSE)=0,VLOOKUP($A348,Economática!$A$3:$AI$823,24,FALSE)=\"-\"),1/0,VLOOKUP($A348,Economática!$A$3:$AI$823,24,FALSE)))","v":""},{"$f":"IF($A348=\"\",\"\",IF(OR(VLOOKUP($A348,Economática!$A$3:$AI$823,25,FALSE)=0,VLOOKUP($A348,Economática!$A$3:$AI$823,25,FALSE)=\"-\"),1/0,VLOOKUP($A348,Economática!$A$3:$AI$823,25,FALSE)))","v":""},{"$f":"IF($A348=\"\",\"\",IF(ISERROR((F348+VLOOKUP($A348,Economática!$A$3:$AI$823,26,FALSE))/Y348),(F348+VLOOKUP($A348,Economática!$A$3:$AI$823,26,FALSE))/Y348,(F348+VLOOKUP($A348,Economática!$A$3:$AI$823,26,FALSE))/Y348))","v":""},{"$f":"IF($A348=\"\",\"\",IF(OR(-VLOOKUP($A348,Economática!$A$3:$AI$823,27,FALSE)=0,-VLOOKUP($A348,Economática!$A$3:$AI$823,27,FALSE)=\"-\"),1/0,-VLOOKUP($A348,Economática!$A$3:$AI$823,27,FALSE)))","v":""},"",{"$f":"IF($A348=\"\",\"\",IF(OR(VLOOKUP($A348,Economática!$A$3:$AI$823,28,FALSE)=0,VLOOKUP($A348,Economática!$A$3:$AI$823,28,FALSE)=\"-\"),1/0,VLOOKUP($A348,Economática!$A$3:$AI$823,28,FALSE)))","v":""},{"$f":"IF($A348=\"\",\"\",IF(OR(VLOOKUP($A348,Economática!$A$3:$AI$823,29,FALSE)=0,VLOOKUP($A348,Economática!$A$3:$AI$823,29,FALSE)=\"-\"),1/0,VLOOKUP($A348,Economática!$A$3:$AI$823,29,FALSE)))","v":""},{"$f":"IF($A348=\"\",\"\",IF(OR(VLOOKUP($A348,Economática!$A$3:$AI$823,30,FALSE)/E348=0,VLOOKUP($A348,Economática!$A$3:$AI$823,30,FALSE)/E348=\"-\",VLOOKUP($A348,Economática!$A$3:$AI$823,30,FALSE)/E348<33.33%,VLOOKUP($A348,Economática!$A$3:$AI$823,30,FALSE)/E348>100%),1/0,VLOOKUP($A348,Economática!$A$3:$AI$823,30,FALSE)/E348))","v":""},"",{"$f":"IF($A348=\"\",\"\",IF(OR(VLOOKUP($A348,Economática!$A$3:$AI$823,25,FALSE)=0,VLOOKUP($A348,Economática!$A$3:$AI$823,25,FALSE)=\"-\"),1/0,VLOOKUP($A348,Economática!$A$3:$AI$823,25,FALSE)))","v":""},{"$f":"CONCATENATE(Economática!B326,\" \",Economática!C326)","v":" "}]
[{"$f":"IF(Economática!AG327=\"\",\"\",Economática!AG327)","v":""},{"$f":"IF($A349=\"\",\"\",VLOOKUP(VLOOKUP($A349,Economática!$A$3:$AI$823,6,FALSE),Correção!$B$16:$C$36,2,FALSE))","v":""},{"$f":"IF(Economática!B327=\"\",\"\",Economática!B327)","v":""},{"$f":"IF($A349=\"\",\"\",IF(OR(VLOOKUP($A349,Economática!$A$3:$AI$823,8,FALSE)=0,VLOOKUP($A349,Economática!$A$3:$AI$823,8,FALSE)=\"-\"),1/0,VLOOKUP($A349,Economática!$A$3:$AI$823,8,FALSE)))","v":""},{"$f":"IF(A349=\"\",\"\",IF(ISERROR(VLOOKUP(A349,Correção!$B$2:$G$13,9,FALSE)),VLOOKUP($A349,Economática!$A$3:$AI$823,9,FALSE),VLOOKUP(A349,Correção!$B$2:$G$13,9,FALSE)))","v":""},{"$f":"IF($A349=\"\",\"\",Economática!G327)","v":""},{"$f":"IF($A349=\"\",\"\",IF(OR(VLOOKUP($A349,Economática!$A$3:$AI$823,10,FALSE)=0,VLOOKUP($A349,Economática!$A$3:$AI$823,10,FALSE)=\"-\"),1/0,VLOOKUP($A349,Economática!$A$3:$AI$823,10,FALSE)))","v":""},{"$f":"IF($A349=\"\",\"\",IF(OR(VLOOKUP($A349,Economática!$A$3:$AI$823,11,FALSE)=0,VLOOKUP($A349,Economática!$A$3:$AI$823,11,FALSE)=\"-\"),1/0,VLOOKUP($A349,Economática!$A$3:$AI$823,11,FALSE)))","v":""},{"$f":"IF($A349=\"\",\"\",IF(OR(VLOOKUP($A349,Economática!$A$3:$AI$823,12,FALSE)=0,VLOOKUP($A349,Economática!$A$3:$AI$823,12,FALSE)=\"-\"),1/0,VLOOKUP($A349,Economática!$A$3:$AI$823,12,FALSE)))","v":""},{"$f":"IF($A349=\"\",\"\",IF(OR(VLOOKUP($A349,Economática!$A$3:$AI$823,13,FALSE)=0,VLOOKUP($A349,Economática!$A$3:$AI$823,13,FALSE)=\"-\"),1/0,VLOOKUP($A349,Economática!$A$3:$AI$823,13,FALSE)))","v":""},{"$f":"IF($A349=\"\",\"\",IF(OR(VLOOKUP($A349,Economática!$A$3:$AI$823,14,FALSE)=0,VLOOKUP($A349,Economática!$A$3:$AI$823,14,FALSE)=\"-\"),1/0,VLOOKUP($A349,Economática!$A$3:$AI$823,14,FALSE)))","v":""},{"$f":"IF($A349=\"\",\"\",IF(OR(VLOOKUP($A349,Economática!$A$3:$AI$823,15,FALSE)=0,VLOOKUP($A349,Economática!$A$3:$AI$823,15,FALSE)=\"-\"),1/0,VLOOKUP($A349,Economática!$A$3:$AI$823,15,FALSE)))","v":""},{"$f":"IF($A349=\"\",\"\",IF(OR(VLOOKUP($A349,Economática!$A$3:$AI$823,16,FALSE)=0,VLOOKUP($A349,Economática!$A$3:$AI$823,16,FALSE)=\"-\"),1/0,VLOOKUP($A349,Economática!$A$3:$AI$823,16,FALSE)))","v":""},{"$f":"IF($A349=\"\",\"\",IF(OR(VLOOKUP($A349,Economática!$A$3:$AI$823,17,FALSE)=0,VLOOKUP($A349,Economática!$A$3:$AI$823,17,FALSE)=\"-\"),1/0,VLOOKUP($A349,Economática!$A$3:$AI$823,17,FALSE)))","v":""},{"$f":"IF($A349=\"\",\"\",IF(OR(VLOOKUP($A349,Economática!$A$3:$AI$823,18,FALSE)=0,VLOOKUP($A349,Economática!$A$3:$AI$823,18,FALSE)=\"-\"),1/0,VLOOKUP($A349,Economática!$A$3:$AI$823,18,FALSE)))","v":""},{"$f":"IF($A349=\"\",\"\",IF(OR(VLOOKUP($A349,Economática!$A$3:$AI$823,19,FALSE)=0,VLOOKUP($A349,Economática!$A$3:$AI$823,19,FALSE)=\"-\"),1/0,VLOOKUP($A349,Economática!$A$3:$AI$823,19,FALSE)))","v":""},{"$f":"IF($A349=\"\",\"\",VLOOKUP($A349,Economática!$A$3:$AI$823,20,FALSE)/E349)","v":""},"","","",{"$f":"IF($A349=\"\",\"\",IF(OR(VLOOKUP($A349,Economática!$A$3:$AI$823,21,FALSE)/100=0,VLOOKUP($A349,Economática!$A$3:$AI$823,21,FALSE)/100=\"-\"),1/0,VLOOKUP($A349,Economática!$A$3:$AI$823,21,FALSE)/100))","v":""},{"$f":"IF($A349=\"\",\"\",IF(OR(VLOOKUP($A349,Economática!$A$3:$AI$823,22,FALSE)/100=0,VLOOKUP($A349,Economática!$A$3:$AI$823,22,FALSE)/100=\"-\"),1/0,VLOOKUP($A349,Economática!$A$3:$AI$823,22,FALSE)/100))","v":""},{"$f":"IF($A349=\"\",\"\",IF(OR(VLOOKUP($A349,Economática!$A$3:$AI$823,23,FALSE)=0,VLOOKUP($A349,Economática!$A$3:$AI$823,23,FALSE)=\"-\"),1/0,VLOOKUP($A349,Economática!$A$3:$AI$823,23,FALSE)))","v":""},{"$f":"IF($A349=\"\",\"\",IF(OR(VLOOKUP($A349,Economática!$A$3:$AI$823,24,FALSE)=0,VLOOKUP($A349,Economática!$A$3:$AI$823,24,FALSE)=\"-\"),1/0,VLOOKUP($A349,Economática!$A$3:$AI$823,24,FALSE)))","v":""},{"$f":"IF($A349=\"\",\"\",IF(OR(VLOOKUP($A349,Economática!$A$3:$AI$823,25,FALSE)=0,VLOOKUP($A349,Economática!$A$3:$AI$823,25,FALSE)=\"-\"),1/0,VLOOKUP($A349,Economática!$A$3:$AI$823,25,FALSE)))","v":""},{"$f":"IF($A349=\"\",\"\",IF(ISERROR((F349+VLOOKUP($A349,Economática!$A$3:$AI$823,26,FALSE))/Y349),(F349+VLOOKUP($A349,Economática!$A$3:$AI$823,26,FALSE))/Y349,(F349+VLOOKUP($A349,Economática!$A$3:$AI$823,26,FALSE))/Y349))","v":""},{"$f":"IF($A349=\"\",\"\",IF(OR(-VLOOKUP($A349,Economática!$A$3:$AI$823,27,FALSE)=0,-VLOOKUP($A349,Economática!$A$3:$AI$823,27,FALSE)=\"-\"),1/0,-VLOOKUP($A349,Economática!$A$3:$AI$823,27,FALSE)))","v":""},"",{"$f":"IF($A349=\"\",\"\",IF(OR(VLOOKUP($A349,Economática!$A$3:$AI$823,28,FALSE)=0,VLOOKUP($A349,Economática!$A$3:$AI$823,28,FALSE)=\"-\"),1/0,VLOOKUP($A349,Economática!$A$3:$AI$823,28,FALSE)))","v":""},{"$f":"IF($A349=\"\",\"\",IF(OR(VLOOKUP($A349,Economática!$A$3:$AI$823,29,FALSE)=0,VLOOKUP($A349,Economática!$A$3:$AI$823,29,FALSE)=\"-\"),1/0,VLOOKUP($A349,Economática!$A$3:$AI$823,29,FALSE)))","v":""},{"$f":"IF($A349=\"\",\"\",IF(OR(VLOOKUP($A349,Economática!$A$3:$AI$823,30,FALSE)/E349=0,VLOOKUP($A349,Economática!$A$3:$AI$823,30,FALSE)/E349=\"-\",VLOOKUP($A349,Economática!$A$3:$AI$823,30,FALSE)/E349<33.33%,VLOOKUP($A349,Economática!$A$3:$AI$823,30,FALSE)/E349>100%),1/0,VLOOKUP($A349,Economática!$A$3:$AI$823,30,FALSE)/E349))","v":""},"",{"$f":"IF($A349=\"\",\"\",IF(OR(VLOOKUP($A349,Economática!$A$3:$AI$823,25,FALSE)=0,VLOOKUP($A349,Economática!$A$3:$AI$823,25,FALSE)=\"-\"),1/0,VLOOKUP($A349,Economática!$A$3:$AI$823,25,FALSE)))","v":""},{"$f":"CONCATENATE(Economática!B327,\" \",Economática!C327)","v":" "}]
[{"$f":"IF(Economática!AG328=\"\",\"\",Economática!AG328)","v":""},{"$f":"IF($A350=\"\",\"\",VLOOKUP(VLOOKUP($A350,Economática!$A$3:$AI$823,6,FALSE),Correção!$B$16:$C$36,2,FALSE))","v":""},{"$f":"IF(Economática!B328=\"\",\"\",Economática!B328)","v":""},{"$f":"IF($A350=\"\",\"\",IF(OR(VLOOKUP($A350,Economática!$A$3:$AI$823,8,FALSE)=0,VLOOKUP($A350,Economática!$A$3:$AI$823,8,FALSE)=\"-\"),1/0,VLOOKUP($A350,Economática!$A$3:$AI$823,8,FALSE)))","v":""},{"$f":"IF(A350=\"\",\"\",IF(ISERROR(VLOOKUP(A350,Correção!$B$2:$G$13,9,FALSE)),VLOOKUP($A350,Economática!$A$3:$AI$823,9,FALSE),VLOOKUP(A350,Correção!$B$2:$G$13,9,FALSE)))","v":""},{"$f":"IF($A350=\"\",\"\",Economática!G328)","v":""},{"$f":"IF($A350=\"\",\"\",IF(OR(VLOOKUP($A350,Economática!$A$3:$AI$823,10,FALSE)=0,VLOOKUP($A350,Economática!$A$3:$AI$823,10,FALSE)=\"-\"),1/0,VLOOKUP($A350,Economática!$A$3:$AI$823,10,FALSE)))","v":""},{"$f":"IF($A350=\"\",\"\",IF(OR(VLOOKUP($A350,Economática!$A$3:$AI$823,11,FALSE)=0,VLOOKUP($A350,Economática!$A$3:$AI$823,11,FALSE)=\"-\"),1/0,VLOOKUP($A350,Economática!$A$3:$AI$823,11,FALSE)))","v":""},{"$f":"IF($A350=\"\",\"\",IF(OR(VLOOKUP($A350,Economática!$A$3:$AI$823,12,FALSE)=0,VLOOKUP($A350,Economática!$A$3:$AI$823,12,FALSE)=\"-\"),1/0,VLOOKUP($A350,Economática!$A$3:$AI$823,12,FALSE)))","v":""},{"$f":"IF($A350=\"\",\"\",IF(OR(VLOOKUP($A350,Economática!$A$3:$AI$823,13,FALSE)=0,VLOOKUP($A350,Economática!$A$3:$AI$823,13,FALSE)=\"-\"),1/0,VLOOKUP($A350,Economática!$A$3:$AI$823,13,FALSE)))","v":""},{"$f":"IF($A350=\"\",\"\",IF(OR(VLOOKUP($A350,Economática!$A$3:$AI$823,14,FALSE)=0,VLOOKUP($A350,Economática!$A$3:$AI$823,14,FALSE)=\"-\"),1/0,VLOOKUP($A350,Economática!$A$3:$AI$823,14,FALSE)))","v":""},{"$f":"IF($A350=\"\",\"\",IF(OR(VLOOKUP($A350,Economática!$A$3:$AI$823,15,FALSE)=0,VLOOKUP($A350,Economática!$A$3:$AI$823,15,FALSE)=\"-\"),1/0,VLOOKUP($A350,Economática!$A$3:$AI$823,15,FALSE)))","v":""},{"$f":"IF($A350=\"\",\"\",IF(OR(VLOOKUP($A350,Economática!$A$3:$AI$823,16,FALSE)=0,VLOOKUP($A350,Economática!$A$3:$AI$823,16,FALSE)=\"-\"),1/0,VLOOKUP($A350,Economática!$A$3:$AI$823,16,FALSE)))","v":""},{"$f":"IF($A350=\"\",\"\",IF(OR(VLOOKUP($A350,Economática!$A$3:$AI$823,17,FALSE)=0,VLOOKUP($A350,Economática!$A$3:$AI$823,17,FALSE)=\"-\"),1/0,VLOOKUP($A350,Economática!$A$3:$AI$823,17,FALSE)))","v":""},{"$f":"IF($A350=\"\",\"\",IF(OR(VLOOKUP($A350,Economática!$A$3:$AI$823,18,FALSE)=0,VLOOKUP($A350,Economática!$A$3:$AI$823,18,FALSE)=\"-\"),1/0,VLOOKUP($A350,Economática!$A$3:$AI$823,18,FALSE)))","v":""},{"$f":"IF($A350=\"\",\"\",IF(OR(VLOOKUP($A350,Economática!$A$3:$AI$823,19,FALSE)=0,VLOOKUP($A350,Economática!$A$3:$AI$823,19,FALSE)=\"-\"),1/0,VLOOKUP($A350,Economática!$A$3:$AI$823,19,FALSE)))","v":""},{"$f":"IF($A350=\"\",\"\",VLOOKUP($A350,Economática!$A$3:$AI$823,20,FALSE)/E350)","v":""},"","","",{"$f":"IF($A350=\"\",\"\",IF(OR(VLOOKUP($A350,Economática!$A$3:$AI$823,21,FALSE)/100=0,VLOOKUP($A350,Economática!$A$3:$AI$823,21,FALSE)/100=\"-\"),1/0,VLOOKUP($A350,Economática!$A$3:$AI$823,21,FALSE)/100))","v":""},{"$f":"IF($A350=\"\",\"\",IF(OR(VLOOKUP($A350,Economática!$A$3:$AI$823,22,FALSE)/100=0,VLOOKUP($A350,Economática!$A$3:$AI$823,22,FALSE)/100=\"-\"),1/0,VLOOKUP($A350,Economática!$A$3:$AI$823,22,FALSE)/100))","v":""},{"$f":"IF($A350=\"\",\"\",IF(OR(VLOOKUP($A350,Economática!$A$3:$AI$823,23,FALSE)=0,VLOOKUP($A350,Economática!$A$3:$AI$823,23,FALSE)=\"-\"),1/0,VLOOKUP($A350,Economática!$A$3:$AI$823,23,FALSE)))","v":""},{"$f":"IF($A350=\"\",\"\",IF(OR(VLOOKUP($A350,Economática!$A$3:$AI$823,24,FALSE)=0,VLOOKUP($A350,Economática!$A$3:$AI$823,24,FALSE)=\"-\"),1/0,VLOOKUP($A350,Economática!$A$3:$AI$823,24,FALSE)))","v":""},{"$f":"IF($A350=\"\",\"\",IF(OR(VLOOKUP($A350,Economática!$A$3:$AI$823,25,FALSE)=0,VLOOKUP($A350,Economática!$A$3:$AI$823,25,FALSE)=\"-\"),1/0,VLOOKUP($A350,Economática!$A$3:$AI$823,25,FALSE)))","v":""},{"$f":"IF($A350=\"\",\"\",IF(ISERROR((F350+VLOOKUP($A350,Economática!$A$3:$AI$823,26,FALSE))/Y350),(F350+VLOOKUP($A350,Economática!$A$3:$AI$823,26,FALSE))/Y350,(F350+VLOOKUP($A350,Economática!$A$3:$AI$823,26,FALSE))/Y350))","v":""},{"$f":"IF($A350=\"\",\"\",IF(OR(-VLOOKUP($A350,Economática!$A$3:$AI$823,27,FALSE)=0,-VLOOKUP($A350,Economática!$A$3:$AI$823,27,FALSE)=\"-\"),1/0,-VLOOKUP($A350,Economática!$A$3:$AI$823,27,FALSE)))","v":""},"",{"$f":"IF($A350=\"\",\"\",IF(OR(VLOOKUP($A350,Economática!$A$3:$AI$823,28,FALSE)=0,VLOOKUP($A350,Economática!$A$3:$AI$823,28,FALSE)=\"-\"),1/0,VLOOKUP($A350,Economática!$A$3:$AI$823,28,FALSE)))","v":""},{"$f":"IF($A350=\"\",\"\",IF(OR(VLOOKUP($A350,Economática!$A$3:$AI$823,29,FALSE)=0,VLOOKUP($A350,Economática!$A$3:$AI$823,29,FALSE)=\"-\"),1/0,VLOOKUP($A350,Economática!$A$3:$AI$823,29,FALSE)))","v":""},{"$f":"IF($A350=\"\",\"\",IF(OR(VLOOKUP($A350,Economática!$A$3:$AI$823,30,FALSE)/E350=0,VLOOKUP($A350,Economática!$A$3:$AI$823,30,FALSE)/E350=\"-\",VLOOKUP($A350,Economática!$A$3:$AI$823,30,FALSE)/E350<33.33%,VLOOKUP($A350,Economática!$A$3:$AI$823,30,FALSE)/E350>100%),1/0,VLOOKUP($A350,Economática!$A$3:$AI$823,30,FALSE)/E350))","v":""},"",{"$f":"IF($A350=\"\",\"\",IF(OR(VLOOKUP($A350,Economática!$A$3:$AI$823,25,FALSE)=0,VLOOKUP($A350,Economática!$A$3:$AI$823,25,FALSE)=\"-\"),1/0,VLOOKUP($A350,Economática!$A$3:$AI$823,25,FALSE)))","v":""},{"$f":"CONCATENATE(Economática!B328,\" \",Economática!C328)","v":" "}]
[{"$f":"IF(Economática!AG329=\"\",\"\",Economática!AG329)","v":""},{"$f":"IF($A351=\"\",\"\",VLOOKUP(VLOOKUP($A351,Economática!$A$3:$AI$823,6,FALSE),Correção!$B$16:$C$36,2,FALSE))","v":""},{"$f":"IF(Economática!B329=\"\",\"\",Economática!B329)","v":""},{"$f":"IF($A351=\"\",\"\",IF(OR(VLOOKUP($A351,Economática!$A$3:$AI$823,8,FALSE)=0,VLOOKUP($A351,Economática!$A$3:$AI$823,8,FALSE)=\"-\"),1/0,VLOOKUP($A351,Economática!$A$3:$AI$823,8,FALSE)))","v":""},{"$f":"IF(A351=\"\",\"\",IF(ISERROR(VLOOKUP(A351,Correção!$B$2:$G$13,9,FALSE)),VLOOKUP($A351,Economática!$A$3:$AI$823,9,FALSE),VLOOKUP(A351,Correção!$B$2:$G$13,9,FALSE)))","v":""},{"$f":"IF($A351=\"\",\"\",Economática!G329)","v":""},{"$f":"IF($A351=\"\",\"\",IF(OR(VLOOKUP($A351,Economática!$A$3:$AI$823,10,FALSE)=0,VLOOKUP($A351,Economática!$A$3:$AI$823,10,FALSE)=\"-\"),1/0,VLOOKUP($A351,Economática!$A$3:$AI$823,10,FALSE)))","v":""},{"$f":"IF($A351=\"\",\"\",IF(OR(VLOOKUP($A351,Economática!$A$3:$AI$823,11,FALSE)=0,VLOOKUP($A351,Economática!$A$3:$AI$823,11,FALSE)=\"-\"),1/0,VLOOKUP($A351,Economática!$A$3:$AI$823,11,FALSE)))","v":""},{"$f":"IF($A351=\"\",\"\",IF(OR(VLOOKUP($A351,Economática!$A$3:$AI$823,12,FALSE)=0,VLOOKUP($A351,Economática!$A$3:$AI$823,12,FALSE)=\"-\"),1/0,VLOOKUP($A351,Economática!$A$3:$AI$823,12,FALSE)))","v":""},{"$f":"IF($A351=\"\",\"\",IF(OR(VLOOKUP($A351,Economática!$A$3:$AI$823,13,FALSE)=0,VLOOKUP($A351,Economática!$A$3:$AI$823,13,FALSE)=\"-\"),1/0,VLOOKUP($A351,Economática!$A$3:$AI$823,13,FALSE)))","v":""},{"$f":"IF($A351=\"\",\"\",IF(OR(VLOOKUP($A351,Economática!$A$3:$AI$823,14,FALSE)=0,VLOOKUP($A351,Economática!$A$3:$AI$823,14,FALSE)=\"-\"),1/0,VLOOKUP($A351,Economática!$A$3:$AI$823,14,FALSE)))","v":""},{"$f":"IF($A351=\"\",\"\",IF(OR(VLOOKUP($A351,Economática!$A$3:$AI$823,15,FALSE)=0,VLOOKUP($A351,Economática!$A$3:$AI$823,15,FALSE)=\"-\"),1/0,VLOOKUP($A351,Economática!$A$3:$AI$823,15,FALSE)))","v":""},{"$f":"IF($A351=\"\",\"\",IF(OR(VLOOKUP($A351,Economática!$A$3:$AI$823,16,FALSE)=0,VLOOKUP($A351,Economática!$A$3:$AI$823,16,FALSE)=\"-\"),1/0,VLOOKUP($A351,Economática!$A$3:$AI$823,16,FALSE)))","v":""},{"$f":"IF($A351=\"\",\"\",IF(OR(VLOOKUP($A351,Economática!$A$3:$AI$823,17,FALSE)=0,VLOOKUP($A351,Economática!$A$3:$AI$823,17,FALSE)=\"-\"),1/0,VLOOKUP($A351,Economática!$A$3:$AI$823,17,FALSE)))","v":""},{"$f":"IF($A351=\"\",\"\",IF(OR(VLOOKUP($A351,Economática!$A$3:$AI$823,18,FALSE)=0,VLOOKUP($A351,Economática!$A$3:$AI$823,18,FALSE)=\"-\"),1/0,VLOOKUP($A351,Economática!$A$3:$AI$823,18,FALSE)))","v":""},{"$f":"IF($A351=\"\",\"\",IF(OR(VLOOKUP($A351,Economática!$A$3:$AI$823,19,FALSE)=0,VLOOKUP($A351,Economática!$A$3:$AI$823,19,FALSE)=\"-\"),1/0,VLOOKUP($A351,Economática!$A$3:$AI$823,19,FALSE)))","v":""},{"$f":"IF($A351=\"\",\"\",VLOOKUP($A351,Economática!$A$3:$AI$823,20,FALSE)/E351)","v":""},"","","",{"$f":"IF($A351=\"\",\"\",IF(OR(VLOOKUP($A351,Economática!$A$3:$AI$823,21,FALSE)/100=0,VLOOKUP($A351,Economática!$A$3:$AI$823,21,FALSE)/100=\"-\"),1/0,VLOOKUP($A351,Economática!$A$3:$AI$823,21,FALSE)/100))","v":""},{"$f":"IF($A351=\"\",\"\",IF(OR(VLOOKUP($A351,Economática!$A$3:$AI$823,22,FALSE)/100=0,VLOOKUP($A351,Economática!$A$3:$AI$823,22,FALSE)/100=\"-\"),1/0,VLOOKUP($A351,Economática!$A$3:$AI$823,22,FALSE)/100))","v":""},{"$f":"IF($A351=\"\",\"\",IF(OR(VLOOKUP($A351,Economática!$A$3:$AI$823,23,FALSE)=0,VLOOKUP($A351,Economática!$A$3:$AI$823,23,FALSE)=\"-\"),1/0,VLOOKUP($A351,Economática!$A$3:$AI$823,23,FALSE)))","v":""},{"$f":"IF($A351=\"\",\"\",IF(OR(VLOOKUP($A351,Economática!$A$3:$AI$823,24,FALSE)=0,VLOOKUP($A351,Economática!$A$3:$AI$823,24,FALSE)=\"-\"),1/0,VLOOKUP($A351,Economática!$A$3:$AI$823,24,FALSE)))","v":""},{"$f":"IF($A351=\"\",\"\",IF(OR(VLOOKUP($A351,Economática!$A$3:$AI$823,25,FALSE)=0,VLOOKUP($A351,Economática!$A$3:$AI$823,25,FALSE)=\"-\"),1/0,VLOOKUP($A351,Economática!$A$3:$AI$823,25,FALSE)))","v":""},{"$f":"IF($A351=\"\",\"\",IF(ISERROR((F351+VLOOKUP($A351,Economática!$A$3:$AI$823,26,FALSE))/Y351),(F351+VLOOKUP($A351,Economática!$A$3:$AI$823,26,FALSE))/Y351,(F351+VLOOKUP($A351,Economática!$A$3:$AI$823,26,FALSE))/Y351))","v":""},{"$f":"IF($A351=\"\",\"\",IF(OR(-VLOOKUP($A351,Economática!$A$3:$AI$823,27,FALSE)=0,-VLOOKUP($A351,Economática!$A$3:$AI$823,27,FALSE)=\"-\"),1/0,-VLOOKUP($A351,Economática!$A$3:$AI$823,27,FALSE)))","v":""},"",{"$f":"IF($A351=\"\",\"\",IF(OR(VLOOKUP($A351,Economática!$A$3:$AI$823,28,FALSE)=0,VLOOKUP($A351,Economática!$A$3:$AI$823,28,FALSE)=\"-\"),1/0,VLOOKUP($A351,Economática!$A$3:$AI$823,28,FALSE)))","v":""},{"$f":"IF($A351=\"\",\"\",IF(OR(VLOOKUP($A351,Economática!$A$3:$AI$823,29,FALSE)=0,VLOOKUP($A351,Economática!$A$3:$AI$823,29,FALSE)=\"-\"),1/0,VLOOKUP($A351,Economática!$A$3:$AI$823,29,FALSE)))","v":""},{"$f":"IF($A351=\"\",\"\",IF(OR(VLOOKUP($A351,Economática!$A$3:$AI$823,30,FALSE)/E351=0,VLOOKUP($A351,Economática!$A$3:$AI$823,30,FALSE)/E351=\"-\",VLOOKUP($A351,Economática!$A$3:$AI$823,30,FALSE)/E351<33.33%,VLOOKUP($A351,Economática!$A$3:$AI$823,30,FALSE)/E351>100%),1/0,VLOOKUP($A351,Economática!$A$3:$AI$823,30,FALSE)/E351))","v":""},"",{"$f":"IF($A351=\"\",\"\",IF(OR(VLOOKUP($A351,Economática!$A$3:$AI$823,25,FALSE)=0,VLOOKUP($A351,Economática!$A$3:$AI$823,25,FALSE)=\"-\"),1/0,VLOOKUP($A351,Economática!$A$3:$AI$823,25,FALSE)))","v":""},{"$f":"CONCATENATE(Economática!B329,\" \",Economática!C329)","v":" "}]
[{"$f":"IF(Economática!AG330=\"\",\"\",Economática!AG330)","v":""},{"$f":"IF($A352=\"\",\"\",VLOOKUP(VLOOKUP($A352,Economática!$A$3:$AI$823,6,FALSE),Correção!$B$16:$C$36,2,FALSE))","v":""},{"$f":"IF(Economática!B330=\"\",\"\",Economática!B330)","v":""},{"$f":"IF($A352=\"\",\"\",IF(OR(VLOOKUP($A352,Economática!$A$3:$AI$823,8,FALSE)=0,VLOOKUP($A352,Economática!$A$3:$AI$823,8,FALSE)=\"-\"),1/0,VLOOKUP($A352,Economática!$A$3:$AI$823,8,FALSE)))","v":""},{"$f":"IF(A352=\"\",\"\",IF(ISERROR(VLOOKUP(A352,Correção!$B$2:$G$13,9,FALSE)),VLOOKUP($A352,Economática!$A$3:$AI$823,9,FALSE),VLOOKUP(A352,Correção!$B$2:$G$13,9,FALSE)))","v":""},{"$f":"IF($A352=\"\",\"\",Economática!G330)","v":""},{"$f":"IF($A352=\"\",\"\",IF(OR(VLOOKUP($A352,Economática!$A$3:$AI$823,10,FALSE)=0,VLOOKUP($A352,Economática!$A$3:$AI$823,10,FALSE)=\"-\"),1/0,VLOOKUP($A352,Economática!$A$3:$AI$823,10,FALSE)))","v":""},{"$f":"IF($A352=\"\",\"\",IF(OR(VLOOKUP($A352,Economática!$A$3:$AI$823,11,FALSE)=0,VLOOKUP($A352,Economática!$A$3:$AI$823,11,FALSE)=\"-\"),1/0,VLOOKUP($A352,Economática!$A$3:$AI$823,11,FALSE)))","v":""},{"$f":"IF($A352=\"\",\"\",IF(OR(VLOOKUP($A352,Economática!$A$3:$AI$823,12,FALSE)=0,VLOOKUP($A352,Economática!$A$3:$AI$823,12,FALSE)=\"-\"),1/0,VLOOKUP($A352,Economática!$A$3:$AI$823,12,FALSE)))","v":""},{"$f":"IF($A352=\"\",\"\",IF(OR(VLOOKUP($A352,Economática!$A$3:$AI$823,13,FALSE)=0,VLOOKUP($A352,Economática!$A$3:$AI$823,13,FALSE)=\"-\"),1/0,VLOOKUP($A352,Economática!$A$3:$AI$823,13,FALSE)))","v":""},{"$f":"IF($A352=\"\",\"\",IF(OR(VLOOKUP($A352,Economática!$A$3:$AI$823,14,FALSE)=0,VLOOKUP($A352,Economática!$A$3:$AI$823,14,FALSE)=\"-\"),1/0,VLOOKUP($A352,Economática!$A$3:$AI$823,14,FALSE)))","v":""},{"$f":"IF($A352=\"\",\"\",IF(OR(VLOOKUP($A352,Economática!$A$3:$AI$823,15,FALSE)=0,VLOOKUP($A352,Economática!$A$3:$AI$823,15,FALSE)=\"-\"),1/0,VLOOKUP($A352,Economática!$A$3:$AI$823,15,FALSE)))","v":""},{"$f":"IF($A352=\"\",\"\",IF(OR(VLOOKUP($A352,Economática!$A$3:$AI$823,16,FALSE)=0,VLOOKUP($A352,Economática!$A$3:$AI$823,16,FALSE)=\"-\"),1/0,VLOOKUP($A352,Economática!$A$3:$AI$823,16,FALSE)))","v":""},{"$f":"IF($A352=\"\",\"\",IF(OR(VLOOKUP($A352,Economática!$A$3:$AI$823,17,FALSE)=0,VLOOKUP($A352,Economática!$A$3:$AI$823,17,FALSE)=\"-\"),1/0,VLOOKUP($A352,Economática!$A$3:$AI$823,17,FALSE)))","v":""},{"$f":"IF($A352=\"\",\"\",IF(OR(VLOOKUP($A352,Economática!$A$3:$AI$823,18,FALSE)=0,VLOOKUP($A352,Economática!$A$3:$AI$823,18,FALSE)=\"-\"),1/0,VLOOKUP($A352,Economática!$A$3:$AI$823,18,FALSE)))","v":""},{"$f":"IF($A352=\"\",\"\",IF(OR(VLOOKUP($A352,Economática!$A$3:$AI$823,19,FALSE)=0,VLOOKUP($A352,Economática!$A$3:$AI$823,19,FALSE)=\"-\"),1/0,VLOOKUP($A352,Economática!$A$3:$AI$823,19,FALSE)))","v":""},{"$f":"IF($A352=\"\",\"\",VLOOKUP($A352,Economática!$A$3:$AI$823,20,FALSE)/E352)","v":""},"","","",{"$f":"IF($A352=\"\",\"\",IF(OR(VLOOKUP($A352,Economática!$A$3:$AI$823,21,FALSE)/100=0,VLOOKUP($A352,Economática!$A$3:$AI$823,21,FALSE)/100=\"-\"),1/0,VLOOKUP($A352,Economática!$A$3:$AI$823,21,FALSE)/100))","v":""},{"$f":"IF($A352=\"\",\"\",IF(OR(VLOOKUP($A352,Economática!$A$3:$AI$823,22,FALSE)/100=0,VLOOKUP($A352,Economática!$A$3:$AI$823,22,FALSE)/100=\"-\"),1/0,VLOOKUP($A352,Economática!$A$3:$AI$823,22,FALSE)/100))","v":""},{"$f":"IF($A352=\"\",\"\",IF(OR(VLOOKUP($A352,Economática!$A$3:$AI$823,23,FALSE)=0,VLOOKUP($A352,Economática!$A$3:$AI$823,23,FALSE)=\"-\"),1/0,VLOOKUP($A352,Economática!$A$3:$AI$823,23,FALSE)))","v":""},{"$f":"IF($A352=\"\",\"\",IF(OR(VLOOKUP($A352,Economática!$A$3:$AI$823,24,FALSE)=0,VLOOKUP($A352,Economática!$A$3:$AI$823,24,FALSE)=\"-\"),1/0,VLOOKUP($A352,Economática!$A$3:$AI$823,24,FALSE)))","v":""},{"$f":"IF($A352=\"\",\"\",IF(OR(VLOOKUP($A352,Economática!$A$3:$AI$823,25,FALSE)=0,VLOOKUP($A352,Economática!$A$3:$AI$823,25,FALSE)=\"-\"),1/0,VLOOKUP($A352,Economática!$A$3:$AI$823,25,FALSE)))","v":""},{"$f":"IF($A352=\"\",\"\",IF(ISERROR((F352+VLOOKUP($A352,Economática!$A$3:$AI$823,26,FALSE))/Y352),(F352+VLOOKUP($A352,Economática!$A$3:$AI$823,26,FALSE))/Y352,(F352+VLOOKUP($A352,Economática!$A$3:$AI$823,26,FALSE))/Y352))","v":""},{"$f":"IF($A352=\"\",\"\",IF(OR(-VLOOKUP($A352,Economática!$A$3:$AI$823,27,FALSE)=0,-VLOOKUP($A352,Economática!$A$3:$AI$823,27,FALSE)=\"-\"),1/0,-VLOOKUP($A352,Economática!$A$3:$AI$823,27,FALSE)))","v":""},"",{"$f":"IF($A352=\"\",\"\",IF(OR(VLOOKUP($A352,Economática!$A$3:$AI$823,28,FALSE)=0,VLOOKUP($A352,Economática!$A$3:$AI$823,28,FALSE)=\"-\"),1/0,VLOOKUP($A352,Economática!$A$3:$AI$823,28,FALSE)))","v":""},{"$f":"IF($A352=\"\",\"\",IF(OR(VLOOKUP($A352,Economática!$A$3:$AI$823,29,FALSE)=0,VLOOKUP($A352,Economática!$A$3:$AI$823,29,FALSE)=\"-\"),1/0,VLOOKUP($A352,Economática!$A$3:$AI$823,29,FALSE)))","v":""},{"$f":"IF($A352=\"\",\"\",IF(OR(VLOOKUP($A352,Economática!$A$3:$AI$823,30,FALSE)/E352=0,VLOOKUP($A352,Economática!$A$3:$AI$823,30,FALSE)/E352=\"-\",VLOOKUP($A352,Economática!$A$3:$AI$823,30,FALSE)/E352<33.33%,VLOOKUP($A352,Economática!$A$3:$AI$823,30,FALSE)/E352>100%),1/0,VLOOKUP($A352,Economática!$A$3:$AI$823,30,FALSE)/E352))","v":""},"",{"$f":"IF($A352=\"\",\"\",IF(OR(VLOOKUP($A352,Economática!$A$3:$AI$823,25,FALSE)=0,VLOOKUP($A352,Economática!$A$3:$AI$823,25,FALSE)=\"-\"),1/0,VLOOKUP($A352,Economática!$A$3:$AI$823,25,FALSE)))","v":""},{"$f":"CONCATENATE(Economática!B330,\" \",Economática!C330)","v":" "}]
[{"$f":"IF(Economática!AG331=\"\",\"\",Economática!AG331)","v":""},{"$f":"IF($A353=\"\",\"\",VLOOKUP(VLOOKUP($A353,Economática!$A$3:$AI$823,6,FALSE),Correção!$B$16:$C$36,2,FALSE))","v":""},{"$f":"IF(Economática!B331=\"\",\"\",Economática!B331)","v":""},{"$f":"IF($A353=\"\",\"\",IF(OR(VLOOKUP($A353,Economática!$A$3:$AI$823,8,FALSE)=0,VLOOKUP($A353,Economática!$A$3:$AI$823,8,FALSE)=\"-\"),1/0,VLOOKUP($A353,Economática!$A$3:$AI$823,8,FALSE)))","v":""},{"$f":"IF(A353=\"\",\"\",IF(ISERROR(VLOOKUP(A353,Correção!$B$2:$G$13,9,FALSE)),VLOOKUP($A353,Economática!$A$3:$AI$823,9,FALSE),VLOOKUP(A353,Correção!$B$2:$G$13,9,FALSE)))","v":""},{"$f":"IF($A353=\"\",\"\",Economática!G331)","v":""},{"$f":"IF($A353=\"\",\"\",IF(OR(VLOOKUP($A353,Economática!$A$3:$AI$823,10,FALSE)=0,VLOOKUP($A353,Economática!$A$3:$AI$823,10,FALSE)=\"-\"),1/0,VLOOKUP($A353,Economática!$A$3:$AI$823,10,FALSE)))","v":""},{"$f":"IF($A353=\"\",\"\",IF(OR(VLOOKUP($A353,Economática!$A$3:$AI$823,11,FALSE)=0,VLOOKUP($A353,Economática!$A$3:$AI$823,11,FALSE)=\"-\"),1/0,VLOOKUP($A353,Economática!$A$3:$AI$823,11,FALSE)))","v":""},{"$f":"IF($A353=\"\",\"\",IF(OR(VLOOKUP($A353,Economática!$A$3:$AI$823,12,FALSE)=0,VLOOKUP($A353,Economática!$A$3:$AI$823,12,FALSE)=\"-\"),1/0,VLOOKUP($A353,Economática!$A$3:$AI$823,12,FALSE)))","v":""},{"$f":"IF($A353=\"\",\"\",IF(OR(VLOOKUP($A353,Economática!$A$3:$AI$823,13,FALSE)=0,VLOOKUP($A353,Economática!$A$3:$AI$823,13,FALSE)=\"-\"),1/0,VLOOKUP($A353,Economática!$A$3:$AI$823,13,FALSE)))","v":""},{"$f":"IF($A353=\"\",\"\",IF(OR(VLOOKUP($A353,Economática!$A$3:$AI$823,14,FALSE)=0,VLOOKUP($A353,Economática!$A$3:$AI$823,14,FALSE)=\"-\"),1/0,VLOOKUP($A353,Economática!$A$3:$AI$823,14,FALSE)))","v":""},{"$f":"IF($A353=\"\",\"\",IF(OR(VLOOKUP($A353,Economática!$A$3:$AI$823,15,FALSE)=0,VLOOKUP($A353,Economática!$A$3:$AI$823,15,FALSE)=\"-\"),1/0,VLOOKUP($A353,Economática!$A$3:$AI$823,15,FALSE)))","v":""},{"$f":"IF($A353=\"\",\"\",IF(OR(VLOOKUP($A353,Economática!$A$3:$AI$823,16,FALSE)=0,VLOOKUP($A353,Economática!$A$3:$AI$823,16,FALSE)=\"-\"),1/0,VLOOKUP($A353,Economática!$A$3:$AI$823,16,FALSE)))","v":""},{"$f":"IF($A353=\"\",\"\",IF(OR(VLOOKUP($A353,Economática!$A$3:$AI$823,17,FALSE)=0,VLOOKUP($A353,Economática!$A$3:$AI$823,17,FALSE)=\"-\"),1/0,VLOOKUP($A353,Economática!$A$3:$AI$823,17,FALSE)))","v":""},{"$f":"IF($A353=\"\",\"\",IF(OR(VLOOKUP($A353,Economática!$A$3:$AI$823,18,FALSE)=0,VLOOKUP($A353,Economática!$A$3:$AI$823,18,FALSE)=\"-\"),1/0,VLOOKUP($A353,Economática!$A$3:$AI$823,18,FALSE)))","v":""},{"$f":"IF($A353=\"\",\"\",IF(OR(VLOOKUP($A353,Economática!$A$3:$AI$823,19,FALSE)=0,VLOOKUP($A353,Economática!$A$3:$AI$823,19,FALSE)=\"-\"),1/0,VLOOKUP($A353,Economática!$A$3:$AI$823,19,FALSE)))","v":""},{"$f":"IF($A353=\"\",\"\",VLOOKUP($A353,Economática!$A$3:$AI$823,20,FALSE)/E353)","v":""},"","","",{"$f":"IF($A353=\"\",\"\",IF(OR(VLOOKUP($A353,Economática!$A$3:$AI$823,21,FALSE)/100=0,VLOOKUP($A353,Economática!$A$3:$AI$823,21,FALSE)/100=\"-\"),1/0,VLOOKUP($A353,Economática!$A$3:$AI$823,21,FALSE)/100))","v":""},{"$f":"IF($A353=\"\",\"\",IF(OR(VLOOKUP($A353,Economática!$A$3:$AI$823,22,FALSE)/100=0,VLOOKUP($A353,Economática!$A$3:$AI$823,22,FALSE)/100=\"-\"),1/0,VLOOKUP($A353,Economática!$A$3:$AI$823,22,FALSE)/100))","v":""},{"$f":"IF($A353=\"\",\"\",IF(OR(VLOOKUP($A353,Economática!$A$3:$AI$823,23,FALSE)=0,VLOOKUP($A353,Economática!$A$3:$AI$823,23,FALSE)=\"-\"),1/0,VLOOKUP($A353,Economática!$A$3:$AI$823,23,FALSE)))","v":""},{"$f":"IF($A353=\"\",\"\",IF(OR(VLOOKUP($A353,Economática!$A$3:$AI$823,24,FALSE)=0,VLOOKUP($A353,Economática!$A$3:$AI$823,24,FALSE)=\"-\"),1/0,VLOOKUP($A353,Economática!$A$3:$AI$823,24,FALSE)))","v":""},{"$f":"IF($A353=\"\",\"\",IF(OR(VLOOKUP($A353,Economática!$A$3:$AI$823,25,FALSE)=0,VLOOKUP($A353,Economática!$A$3:$AI$823,25,FALSE)=\"-\"),1/0,VLOOKUP($A353,Economática!$A$3:$AI$823,25,FALSE)))","v":""},{"$f":"IF($A353=\"\",\"\",IF(ISERROR((F353+VLOOKUP($A353,Economática!$A$3:$AI$823,26,FALSE))/Y353),(F353+VLOOKUP($A353,Economática!$A$3:$AI$823,26,FALSE))/Y353,(F353+VLOOKUP($A353,Economática!$A$3:$AI$823,26,FALSE))/Y353))","v":""},{"$f":"IF($A353=\"\",\"\",IF(OR(-VLOOKUP($A353,Economática!$A$3:$AI$823,27,FALSE)=0,-VLOOKUP($A353,Economática!$A$3:$AI$823,27,FALSE)=\"-\"),1/0,-VLOOKUP($A353,Economática!$A$3:$AI$823,27,FALSE)))","v":""},"",{"$f":"IF($A353=\"\",\"\",IF(OR(VLOOKUP($A353,Economática!$A$3:$AI$823,28,FALSE)=0,VLOOKUP($A353,Economática!$A$3:$AI$823,28,FALSE)=\"-\"),1/0,VLOOKUP($A353,Economática!$A$3:$AI$823,28,FALSE)))","v":""},{"$f":"IF($A353=\"\",\"\",IF(OR(VLOOKUP($A353,Economática!$A$3:$AI$823,29,FALSE)=0,VLOOKUP($A353,Economática!$A$3:$AI$823,29,FALSE)=\"-\"),1/0,VLOOKUP($A353,Economática!$A$3:$AI$823,29,FALSE)))","v":""},{"$f":"IF($A353=\"\",\"\",IF(OR(VLOOKUP($A353,Economática!$A$3:$AI$823,30,FALSE)/E353=0,VLOOKUP($A353,Economática!$A$3:$AI$823,30,FALSE)/E353=\"-\",VLOOKUP($A353,Economática!$A$3:$AI$823,30,FALSE)/E353<33.33%,VLOOKUP($A353,Economática!$A$3:$AI$823,30,FALSE)/E353>100%),1/0,VLOOKUP($A353,Economática!$A$3:$AI$823,30,FALSE)/E353))","v":""},"",{"$f":"IF($A353=\"\",\"\",IF(OR(VLOOKUP($A353,Economática!$A$3:$AI$823,25,FALSE)=0,VLOOKUP($A353,Economática!$A$3:$AI$823,25,FALSE)=\"-\"),1/0,VLOOKUP($A353,Economática!$A$3:$AI$823,25,FALSE)))","v":""},{"$f":"CONCATENATE(Economática!B331,\" \",Economática!C331)","v":" "}]
[{"$f":"IF(Economática!AG332=\"\",\"\",Economática!AG332)","v":""},{"$f":"IF($A354=\"\",\"\",VLOOKUP(VLOOKUP($A354,Economática!$A$3:$AI$823,6,FALSE),Correção!$B$16:$C$36,2,FALSE))","v":""},{"$f":"IF(Economática!B332=\"\",\"\",Economática!B332)","v":""},{"$f":"IF($A354=\"\",\"\",IF(OR(VLOOKUP($A354,Economática!$A$3:$AI$823,8,FALSE)=0,VLOOKUP($A354,Economática!$A$3:$AI$823,8,FALSE)=\"-\"),1/0,VLOOKUP($A354,Economática!$A$3:$AI$823,8,FALSE)))","v":""},{"$f":"IF(A354=\"\",\"\",IF(ISERROR(VLOOKUP(A354,Correção!$B$2:$G$13,9,FALSE)),VLOOKUP($A354,Economática!$A$3:$AI$823,9,FALSE),VLOOKUP(A354,Correção!$B$2:$G$13,9,FALSE)))","v":""},{"$f":"IF($A354=\"\",\"\",Economática!G332)","v":""},{"$f":"IF($A354=\"\",\"\",IF(OR(VLOOKUP($A354,Economática!$A$3:$AI$823,10,FALSE)=0,VLOOKUP($A354,Economática!$A$3:$AI$823,10,FALSE)=\"-\"),1/0,VLOOKUP($A354,Economática!$A$3:$AI$823,10,FALSE)))","v":""},{"$f":"IF($A354=\"\",\"\",IF(OR(VLOOKUP($A354,Economática!$A$3:$AI$823,11,FALSE)=0,VLOOKUP($A354,Economática!$A$3:$AI$823,11,FALSE)=\"-\"),1/0,VLOOKUP($A354,Economática!$A$3:$AI$823,11,FALSE)))","v":""},{"$f":"IF($A354=\"\",\"\",IF(OR(VLOOKUP($A354,Economática!$A$3:$AI$823,12,FALSE)=0,VLOOKUP($A354,Economática!$A$3:$AI$823,12,FALSE)=\"-\"),1/0,VLOOKUP($A354,Economática!$A$3:$AI$823,12,FALSE)))","v":""},{"$f":"IF($A354=\"\",\"\",IF(OR(VLOOKUP($A354,Economática!$A$3:$AI$823,13,FALSE)=0,VLOOKUP($A354,Economática!$A$3:$AI$823,13,FALSE)=\"-\"),1/0,VLOOKUP($A354,Economática!$A$3:$AI$823,13,FALSE)))","v":""},{"$f":"IF($A354=\"\",\"\",IF(OR(VLOOKUP($A354,Economática!$A$3:$AI$823,14,FALSE)=0,VLOOKUP($A354,Economática!$A$3:$AI$823,14,FALSE)=\"-\"),1/0,VLOOKUP($A354,Economática!$A$3:$AI$823,14,FALSE)))","v":""},{"$f":"IF($A354=\"\",\"\",IF(OR(VLOOKUP($A354,Economática!$A$3:$AI$823,15,FALSE)=0,VLOOKUP($A354,Economática!$A$3:$AI$823,15,FALSE)=\"-\"),1/0,VLOOKUP($A354,Economática!$A$3:$AI$823,15,FALSE)))","v":""},{"$f":"IF($A354=\"\",\"\",IF(OR(VLOOKUP($A354,Economática!$A$3:$AI$823,16,FALSE)=0,VLOOKUP($A354,Economática!$A$3:$AI$823,16,FALSE)=\"-\"),1/0,VLOOKUP($A354,Economática!$A$3:$AI$823,16,FALSE)))","v":""},{"$f":"IF($A354=\"\",\"\",IF(OR(VLOOKUP($A354,Economática!$A$3:$AI$823,17,FALSE)=0,VLOOKUP($A354,Economática!$A$3:$AI$823,17,FALSE)=\"-\"),1/0,VLOOKUP($A354,Economática!$A$3:$AI$823,17,FALSE)))","v":""},{"$f":"IF($A354=\"\",\"\",IF(OR(VLOOKUP($A354,Economática!$A$3:$AI$823,18,FALSE)=0,VLOOKUP($A354,Economática!$A$3:$AI$823,18,FALSE)=\"-\"),1/0,VLOOKUP($A354,Economática!$A$3:$AI$823,18,FALSE)))","v":""},{"$f":"IF($A354=\"\",\"\",IF(OR(VLOOKUP($A354,Economática!$A$3:$AI$823,19,FALSE)=0,VLOOKUP($A354,Economática!$A$3:$AI$823,19,FALSE)=\"-\"),1/0,VLOOKUP($A354,Economática!$A$3:$AI$823,19,FALSE)))","v":""},{"$f":"IF($A354=\"\",\"\",VLOOKUP($A354,Economática!$A$3:$AI$823,20,FALSE)/E354)","v":""},"","","",{"$f":"IF($A354=\"\",\"\",IF(OR(VLOOKUP($A354,Economática!$A$3:$AI$823,21,FALSE)/100=0,VLOOKUP($A354,Economática!$A$3:$AI$823,21,FALSE)/100=\"-\"),1/0,VLOOKUP($A354,Economática!$A$3:$AI$823,21,FALSE)/100))","v":""},{"$f":"IF($A354=\"\",\"\",IF(OR(VLOOKUP($A354,Economática!$A$3:$AI$823,22,FALSE)/100=0,VLOOKUP($A354,Economática!$A$3:$AI$823,22,FALSE)/100=\"-\"),1/0,VLOOKUP($A354,Economática!$A$3:$AI$823,22,FALSE)/100))","v":""},{"$f":"IF($A354=\"\",\"\",IF(OR(VLOOKUP($A354,Economática!$A$3:$AI$823,23,FALSE)=0,VLOOKUP($A354,Economática!$A$3:$AI$823,23,FALSE)=\"-\"),1/0,VLOOKUP($A354,Economática!$A$3:$AI$823,23,FALSE)))","v":""},{"$f":"IF($A354=\"\",\"\",IF(OR(VLOOKUP($A354,Economática!$A$3:$AI$823,24,FALSE)=0,VLOOKUP($A354,Economática!$A$3:$AI$823,24,FALSE)=\"-\"),1/0,VLOOKUP($A354,Economática!$A$3:$AI$823,24,FALSE)))","v":""},{"$f":"IF($A354=\"\",\"\",IF(OR(VLOOKUP($A354,Economática!$A$3:$AI$823,25,FALSE)=0,VLOOKUP($A354,Economática!$A$3:$AI$823,25,FALSE)=\"-\"),1/0,VLOOKUP($A354,Economática!$A$3:$AI$823,25,FALSE)))","v":""},{"$f":"IF($A354=\"\",\"\",IF(ISERROR((F354+VLOOKUP($A354,Economática!$A$3:$AI$823,26,FALSE))/Y354),(F354+VLOOKUP($A354,Economática!$A$3:$AI$823,26,FALSE))/Y354,(F354+VLOOKUP($A354,Economática!$A$3:$AI$823,26,FALSE))/Y354))","v":""},{"$f":"IF($A354=\"\",\"\",IF(OR(-VLOOKUP($A354,Economática!$A$3:$AI$823,27,FALSE)=0,-VLOOKUP($A354,Economática!$A$3:$AI$823,27,FALSE)=\"-\"),1/0,-VLOOKUP($A354,Economática!$A$3:$AI$823,27,FALSE)))","v":""},"",{"$f":"IF($A354=\"\",\"\",IF(OR(VLOOKUP($A354,Economática!$A$3:$AI$823,28,FALSE)=0,VLOOKUP($A354,Economática!$A$3:$AI$823,28,FALSE)=\"-\"),1/0,VLOOKUP($A354,Economática!$A$3:$AI$823,28,FALSE)))","v":""},{"$f":"IF($A354=\"\",\"\",IF(OR(VLOOKUP($A354,Economática!$A$3:$AI$823,29,FALSE)=0,VLOOKUP($A354,Economática!$A$3:$AI$823,29,FALSE)=\"-\"),1/0,VLOOKUP($A354,Economática!$A$3:$AI$823,29,FALSE)))","v":""},{"$f":"IF($A354=\"\",\"\",IF(OR(VLOOKUP($A354,Economática!$A$3:$AI$823,30,FALSE)/E354=0,VLOOKUP($A354,Economática!$A$3:$AI$823,30,FALSE)/E354=\"-\",VLOOKUP($A354,Economática!$A$3:$AI$823,30,FALSE)/E354<33.33%,VLOOKUP($A354,Economática!$A$3:$AI$823,30,FALSE)/E354>100%),1/0,VLOOKUP($A354,Economática!$A$3:$AI$823,30,FALSE)/E354))","v":""},"",{"$f":"IF($A354=\"\",\"\",IF(OR(VLOOKUP($A354,Economática!$A$3:$AI$823,25,FALSE)=0,VLOOKUP($A354,Economática!$A$3:$AI$823,25,FALSE)=\"-\"),1/0,VLOOKUP($A354,Economática!$A$3:$AI$823,25,FALSE)))","v":""},{"$f":"CONCATENATE(Economática!B332,\" \",Economática!C332)","v":" "}]
[{"$f":"IF(Economática!AG333=\"\",\"\",Economática!AG333)","v":""},{"$f":"IF($A355=\"\",\"\",VLOOKUP(VLOOKUP($A355,Economática!$A$3:$AI$823,6,FALSE),Correção!$B$16:$C$36,2,FALSE))","v":""},{"$f":"IF(Economática!B333=\"\",\"\",Economática!B333)","v":""},{"$f":"IF($A355=\"\",\"\",IF(OR(VLOOKUP($A355,Economática!$A$3:$AI$823,8,FALSE)=0,VLOOKUP($A355,Economática!$A$3:$AI$823,8,FALSE)=\"-\"),1/0,VLOOKUP($A355,Economática!$A$3:$AI$823,8,FALSE)))","v":""},{"$f":"IF(A355=\"\",\"\",IF(ISERROR(VLOOKUP(A355,Correção!$B$2:$G$13,9,FALSE)),VLOOKUP($A355,Economática!$A$3:$AI$823,9,FALSE),VLOOKUP(A355,Correção!$B$2:$G$13,9,FALSE)))","v":""},{"$f":"IF($A355=\"\",\"\",Economática!G333)","v":""},{"$f":"IF($A355=\"\",\"\",IF(OR(VLOOKUP($A355,Economática!$A$3:$AI$823,10,FALSE)=0,VLOOKUP($A355,Economática!$A$3:$AI$823,10,FALSE)=\"-\"),1/0,VLOOKUP($A355,Economática!$A$3:$AI$823,10,FALSE)))","v":""},{"$f":"IF($A355=\"\",\"\",IF(OR(VLOOKUP($A355,Economática!$A$3:$AI$823,11,FALSE)=0,VLOOKUP($A355,Economática!$A$3:$AI$823,11,FALSE)=\"-\"),1/0,VLOOKUP($A355,Economática!$A$3:$AI$823,11,FALSE)))","v":""},{"$f":"IF($A355=\"\",\"\",IF(OR(VLOOKUP($A355,Economática!$A$3:$AI$823,12,FALSE)=0,VLOOKUP($A355,Economática!$A$3:$AI$823,12,FALSE)=\"-\"),1/0,VLOOKUP($A355,Economática!$A$3:$AI$823,12,FALSE)))","v":""},{"$f":"IF($A355=\"\",\"\",IF(OR(VLOOKUP($A355,Economática!$A$3:$AI$823,13,FALSE)=0,VLOOKUP($A355,Economática!$A$3:$AI$823,13,FALSE)=\"-\"),1/0,VLOOKUP($A355,Economática!$A$3:$AI$823,13,FALSE)))","v":""},{"$f":"IF($A355=\"\",\"\",IF(OR(VLOOKUP($A355,Economática!$A$3:$AI$823,14,FALSE)=0,VLOOKUP($A355,Economática!$A$3:$AI$823,14,FALSE)=\"-\"),1/0,VLOOKUP($A355,Economática!$A$3:$AI$823,14,FALSE)))","v":""},{"$f":"IF($A355=\"\",\"\",IF(OR(VLOOKUP($A355,Economática!$A$3:$AI$823,15,FALSE)=0,VLOOKUP($A355,Economática!$A$3:$AI$823,15,FALSE)=\"-\"),1/0,VLOOKUP($A355,Economática!$A$3:$AI$823,15,FALSE)))","v":""},{"$f":"IF($A355=\"\",\"\",IF(OR(VLOOKUP($A355,Economática!$A$3:$AI$823,16,FALSE)=0,VLOOKUP($A355,Economática!$A$3:$AI$823,16,FALSE)=\"-\"),1/0,VLOOKUP($A355,Economática!$A$3:$AI$823,16,FALSE)))","v":""},{"$f":"IF($A355=\"\",\"\",IF(OR(VLOOKUP($A355,Economática!$A$3:$AI$823,17,FALSE)=0,VLOOKUP($A355,Economática!$A$3:$AI$823,17,FALSE)=\"-\"),1/0,VLOOKUP($A355,Economática!$A$3:$AI$823,17,FALSE)))","v":""},{"$f":"IF($A355=\"\",\"\",IF(OR(VLOOKUP($A355,Economática!$A$3:$AI$823,18,FALSE)=0,VLOOKUP($A355,Economática!$A$3:$AI$823,18,FALSE)=\"-\"),1/0,VLOOKUP($A355,Economática!$A$3:$AI$823,18,FALSE)))","v":""},{"$f":"IF($A355=\"\",\"\",IF(OR(VLOOKUP($A355,Economática!$A$3:$AI$823,19,FALSE)=0,VLOOKUP($A355,Economática!$A$3:$AI$823,19,FALSE)=\"-\"),1/0,VLOOKUP($A355,Economática!$A$3:$AI$823,19,FALSE)))","v":""},{"$f":"IF($A355=\"\",\"\",VLOOKUP($A355,Economática!$A$3:$AI$823,20,FALSE)/E355)","v":""},"","","",{"$f":"IF($A355=\"\",\"\",IF(OR(VLOOKUP($A355,Economática!$A$3:$AI$823,21,FALSE)/100=0,VLOOKUP($A355,Economática!$A$3:$AI$823,21,FALSE)/100=\"-\"),1/0,VLOOKUP($A355,Economática!$A$3:$AI$823,21,FALSE)/100))","v":""},{"$f":"IF($A355=\"\",\"\",IF(OR(VLOOKUP($A355,Economática!$A$3:$AI$823,22,FALSE)/100=0,VLOOKUP($A355,Economática!$A$3:$AI$823,22,FALSE)/100=\"-\"),1/0,VLOOKUP($A355,Economática!$A$3:$AI$823,22,FALSE)/100))","v":""},{"$f":"IF($A355=\"\",\"\",IF(OR(VLOOKUP($A355,Economática!$A$3:$AI$823,23,FALSE)=0,VLOOKUP($A355,Economática!$A$3:$AI$823,23,FALSE)=\"-\"),1/0,VLOOKUP($A355,Economática!$A$3:$AI$823,23,FALSE)))","v":""},{"$f":"IF($A355=\"\",\"\",IF(OR(VLOOKUP($A355,Economática!$A$3:$AI$823,24,FALSE)=0,VLOOKUP($A355,Economática!$A$3:$AI$823,24,FALSE)=\"-\"),1/0,VLOOKUP($A355,Economática!$A$3:$AI$823,24,FALSE)))","v":""},{"$f":"IF($A355=\"\",\"\",IF(OR(VLOOKUP($A355,Economática!$A$3:$AI$823,25,FALSE)=0,VLOOKUP($A355,Economática!$A$3:$AI$823,25,FALSE)=\"-\"),1/0,VLOOKUP($A355,Economática!$A$3:$AI$823,25,FALSE)))","v":""},{"$f":"IF($A355=\"\",\"\",IF(ISERROR((F355+VLOOKUP($A355,Economática!$A$3:$AI$823,26,FALSE))/Y355),(F355+VLOOKUP($A355,Economática!$A$3:$AI$823,26,FALSE))/Y355,(F355+VLOOKUP($A355,Economática!$A$3:$AI$823,26,FALSE))/Y355))","v":""},{"$f":"IF($A355=\"\",\"\",IF(OR(-VLOOKUP($A355,Economática!$A$3:$AI$823,27,FALSE)=0,-VLOOKUP($A355,Economática!$A$3:$AI$823,27,FALSE)=\"-\"),1/0,-VLOOKUP($A355,Economática!$A$3:$AI$823,27,FALSE)))","v":""},"",{"$f":"IF($A355=\"\",\"\",IF(OR(VLOOKUP($A355,Economática!$A$3:$AI$823,28,FALSE)=0,VLOOKUP($A355,Economática!$A$3:$AI$823,28,FALSE)=\"-\"),1/0,VLOOKUP($A355,Economática!$A$3:$AI$823,28,FALSE)))","v":""},{"$f":"IF($A355=\"\",\"\",IF(OR(VLOOKUP($A355,Economática!$A$3:$AI$823,29,FALSE)=0,VLOOKUP($A355,Economática!$A$3:$AI$823,29,FALSE)=\"-\"),1/0,VLOOKUP($A355,Economática!$A$3:$AI$823,29,FALSE)))","v":""},{"$f":"IF($A355=\"\",\"\",IF(OR(VLOOKUP($A355,Economática!$A$3:$AI$823,30,FALSE)/E355=0,VLOOKUP($A355,Economática!$A$3:$AI$823,30,FALSE)/E355=\"-\",VLOOKUP($A355,Economática!$A$3:$AI$823,30,FALSE)/E355<33.33%,VLOOKUP($A355,Economática!$A$3:$AI$823,30,FALSE)/E355>100%),1/0,VLOOKUP($A355,Economática!$A$3:$AI$823,30,FALSE)/E355))","v":""},"",{"$f":"IF($A355=\"\",\"\",IF(OR(VLOOKUP($A355,Economática!$A$3:$AI$823,25,FALSE)=0,VLOOKUP($A355,Economática!$A$3:$AI$823,25,FALSE)=\"-\"),1/0,VLOOKUP($A355,Economática!$A$3:$AI$823,25,FALSE)))","v":""},{"$f":"CONCATENATE(Economática!B333,\" \",Economática!C333)","v":" "}]
[{"$f":"IF(Economática!AG334=\"\",\"\",Economática!AG334)","v":""},{"$f":"IF($A356=\"\",\"\",VLOOKUP(VLOOKUP($A356,Economática!$A$3:$AI$823,6,FALSE),Correção!$B$16:$C$36,2,FALSE))","v":""},{"$f":"IF(Economática!B334=\"\",\"\",Economática!B334)","v":""},{"$f":"IF($A356=\"\",\"\",IF(OR(VLOOKUP($A356,Economática!$A$3:$AI$823,8,FALSE)=0,VLOOKUP($A356,Economática!$A$3:$AI$823,8,FALSE)=\"-\"),1/0,VLOOKUP($A356,Economática!$A$3:$AI$823,8,FALSE)))","v":""},{"$f":"IF(A356=\"\",\"\",IF(ISERROR(VLOOKUP(A356,Correção!$B$2:$G$13,9,FALSE)),VLOOKUP($A356,Economática!$A$3:$AI$823,9,FALSE),VLOOKUP(A356,Correção!$B$2:$G$13,9,FALSE)))","v":""},{"$f":"IF($A356=\"\",\"\",Economática!G334)","v":""},{"$f":"IF($A356=\"\",\"\",IF(OR(VLOOKUP($A356,Economática!$A$3:$AI$823,10,FALSE)=0,VLOOKUP($A356,Economática!$A$3:$AI$823,10,FALSE)=\"-\"),1/0,VLOOKUP($A356,Economática!$A$3:$AI$823,10,FALSE)))","v":""},{"$f":"IF($A356=\"\",\"\",IF(OR(VLOOKUP($A356,Economática!$A$3:$AI$823,11,FALSE)=0,VLOOKUP($A356,Economática!$A$3:$AI$823,11,FALSE)=\"-\"),1/0,VLOOKUP($A356,Economática!$A$3:$AI$823,11,FALSE)))","v":""},{"$f":"IF($A356=\"\",\"\",IF(OR(VLOOKUP($A356,Economática!$A$3:$AI$823,12,FALSE)=0,VLOOKUP($A356,Economática!$A$3:$AI$823,12,FALSE)=\"-\"),1/0,VLOOKUP($A356,Economática!$A$3:$AI$823,12,FALSE)))","v":""},{"$f":"IF($A356=\"\",\"\",IF(OR(VLOOKUP($A356,Economática!$A$3:$AI$823,13,FALSE)=0,VLOOKUP($A356,Economática!$A$3:$AI$823,13,FALSE)=\"-\"),1/0,VLOOKUP($A356,Economática!$A$3:$AI$823,13,FALSE)))","v":""},{"$f":"IF($A356=\"\",\"\",IF(OR(VLOOKUP($A356,Economática!$A$3:$AI$823,14,FALSE)=0,VLOOKUP($A356,Economática!$A$3:$AI$823,14,FALSE)=\"-\"),1/0,VLOOKUP($A356,Economática!$A$3:$AI$823,14,FALSE)))","v":""},{"$f":"IF($A356=\"\",\"\",IF(OR(VLOOKUP($A356,Economática!$A$3:$AI$823,15,FALSE)=0,VLOOKUP($A356,Economática!$A$3:$AI$823,15,FALSE)=\"-\"),1/0,VLOOKUP($A356,Economática!$A$3:$AI$823,15,FALSE)))","v":""},{"$f":"IF($A356=\"\",\"\",IF(OR(VLOOKUP($A356,Economática!$A$3:$AI$823,16,FALSE)=0,VLOOKUP($A356,Economática!$A$3:$AI$823,16,FALSE)=\"-\"),1/0,VLOOKUP($A356,Economática!$A$3:$AI$823,16,FALSE)))","v":""},{"$f":"IF($A356=\"\",\"\",IF(OR(VLOOKUP($A356,Economática!$A$3:$AI$823,17,FALSE)=0,VLOOKUP($A356,Economática!$A$3:$AI$823,17,FALSE)=\"-\"),1/0,VLOOKUP($A356,Economática!$A$3:$AI$823,17,FALSE)))","v":""},{"$f":"IF($A356=\"\",\"\",IF(OR(VLOOKUP($A356,Economática!$A$3:$AI$823,18,FALSE)=0,VLOOKUP($A356,Economática!$A$3:$AI$823,18,FALSE)=\"-\"),1/0,VLOOKUP($A356,Economática!$A$3:$AI$823,18,FALSE)))","v":""},{"$f":"IF($A356=\"\",\"\",IF(OR(VLOOKUP($A356,Economática!$A$3:$AI$823,19,FALSE)=0,VLOOKUP($A356,Economática!$A$3:$AI$823,19,FALSE)=\"-\"),1/0,VLOOKUP($A356,Economática!$A$3:$AI$823,19,FALSE)))","v":""},{"$f":"IF($A356=\"\",\"\",VLOOKUP($A356,Economática!$A$3:$AI$823,20,FALSE)/E356)","v":""},"","","",{"$f":"IF($A356=\"\",\"\",IF(OR(VLOOKUP($A356,Economática!$A$3:$AI$823,21,FALSE)/100=0,VLOOKUP($A356,Economática!$A$3:$AI$823,21,FALSE)/100=\"-\"),1/0,VLOOKUP($A356,Economática!$A$3:$AI$823,21,FALSE)/100))","v":""},{"$f":"IF($A356=\"\",\"\",IF(OR(VLOOKUP($A356,Economática!$A$3:$AI$823,22,FALSE)/100=0,VLOOKUP($A356,Economática!$A$3:$AI$823,22,FALSE)/100=\"-\"),1/0,VLOOKUP($A356,Economática!$A$3:$AI$823,22,FALSE)/100))","v":""},{"$f":"IF($A356=\"\",\"\",IF(OR(VLOOKUP($A356,Economática!$A$3:$AI$823,23,FALSE)=0,VLOOKUP($A356,Economática!$A$3:$AI$823,23,FALSE)=\"-\"),1/0,VLOOKUP($A356,Economática!$A$3:$AI$823,23,FALSE)))","v":""},{"$f":"IF($A356=\"\",\"\",IF(OR(VLOOKUP($A356,Economática!$A$3:$AI$823,24,FALSE)=0,VLOOKUP($A356,Economática!$A$3:$AI$823,24,FALSE)=\"-\"),1/0,VLOOKUP($A356,Economática!$A$3:$AI$823,24,FALSE)))","v":""},{"$f":"IF($A356=\"\",\"\",IF(OR(VLOOKUP($A356,Economática!$A$3:$AI$823,25,FALSE)=0,VLOOKUP($A356,Economática!$A$3:$AI$823,25,FALSE)=\"-\"),1/0,VLOOKUP($A356,Economática!$A$3:$AI$823,25,FALSE)))","v":""},{"$f":"IF($A356=\"\",\"\",IF(ISERROR((F356+VLOOKUP($A356,Economática!$A$3:$AI$823,26,FALSE))/Y356),(F356+VLOOKUP($A356,Economática!$A$3:$AI$823,26,FALSE))/Y356,(F356+VLOOKUP($A356,Economática!$A$3:$AI$823,26,FALSE))/Y356))","v":""},{"$f":"IF($A356=\"\",\"\",IF(OR(-VLOOKUP($A356,Economática!$A$3:$AI$823,27,FALSE)=0,-VLOOKUP($A356,Economática!$A$3:$AI$823,27,FALSE)=\"-\"),1/0,-VLOOKUP($A356,Economática!$A$3:$AI$823,27,FALSE)))","v":""},"",{"$f":"IF($A356=\"\",\"\",IF(OR(VLOOKUP($A356,Economática!$A$3:$AI$823,28,FALSE)=0,VLOOKUP($A356,Economática!$A$3:$AI$823,28,FALSE)=\"-\"),1/0,VLOOKUP($A356,Economática!$A$3:$AI$823,28,FALSE)))","v":""},{"$f":"IF($A356=\"\",\"\",IF(OR(VLOOKUP($A356,Economática!$A$3:$AI$823,29,FALSE)=0,VLOOKUP($A356,Economática!$A$3:$AI$823,29,FALSE)=\"-\"),1/0,VLOOKUP($A356,Economática!$A$3:$AI$823,29,FALSE)))","v":""},{"$f":"IF($A356=\"\",\"\",IF(OR(VLOOKUP($A356,Economática!$A$3:$AI$823,30,FALSE)/E356=0,VLOOKUP($A356,Economática!$A$3:$AI$823,30,FALSE)/E356=\"-\",VLOOKUP($A356,Economática!$A$3:$AI$823,30,FALSE)/E356<33.33%,VLOOKUP($A356,Economática!$A$3:$AI$823,30,FALSE)/E356>100%),1/0,VLOOKUP($A356,Economática!$A$3:$AI$823,30,FALSE)/E356))","v":""},"",{"$f":"IF($A356=\"\",\"\",IF(OR(VLOOKUP($A356,Economática!$A$3:$AI$823,25,FALSE)=0,VLOOKUP($A356,Economática!$A$3:$AI$823,25,FALSE)=\"-\"),1/0,VLOOKUP($A356,Economática!$A$3:$AI$823,25,FALSE)))","v":""},{"$f":"CONCATENATE(Economática!B334,\" \",Economática!C334)","v":" "}]
[{"$f":"IF(Economática!AG335=\"\",\"\",Economática!AG335)","v":""},{"$f":"IF($A357=\"\",\"\",VLOOKUP(VLOOKUP($A357,Economática!$A$3:$AI$823,6,FALSE),Correção!$B$16:$C$36,2,FALSE))","v":""},{"$f":"IF(Economática!B335=\"\",\"\",Economática!B335)","v":""},{"$f":"IF($A357=\"\",\"\",IF(OR(VLOOKUP($A357,Economática!$A$3:$AI$823,8,FALSE)=0,VLOOKUP($A357,Economática!$A$3:$AI$823,8,FALSE)=\"-\"),1/0,VLOOKUP($A357,Economática!$A$3:$AI$823,8,FALSE)))","v":""},{"$f":"IF(A357=\"\",\"\",IF(ISERROR(VLOOKUP(A357,Correção!$B$2:$G$13,9,FALSE)),VLOOKUP($A357,Economática!$A$3:$AI$823,9,FALSE),VLOOKUP(A357,Correção!$B$2:$G$13,9,FALSE)))","v":""},{"$f":"IF($A357=\"\",\"\",Economática!G335)","v":""},{"$f":"IF($A357=\"\",\"\",IF(OR(VLOOKUP($A357,Economática!$A$3:$AI$823,10,FALSE)=0,VLOOKUP($A357,Economática!$A$3:$AI$823,10,FALSE)=\"-\"),1/0,VLOOKUP($A357,Economática!$A$3:$AI$823,10,FALSE)))","v":""},{"$f":"IF($A357=\"\",\"\",IF(OR(VLOOKUP($A357,Economática!$A$3:$AI$823,11,FALSE)=0,VLOOKUP($A357,Economática!$A$3:$AI$823,11,FALSE)=\"-\"),1/0,VLOOKUP($A357,Economática!$A$3:$AI$823,11,FALSE)))","v":""},{"$f":"IF($A357=\"\",\"\",IF(OR(VLOOKUP($A357,Economática!$A$3:$AI$823,12,FALSE)=0,VLOOKUP($A357,Economática!$A$3:$AI$823,12,FALSE)=\"-\"),1/0,VLOOKUP($A357,Economática!$A$3:$AI$823,12,FALSE)))","v":""},{"$f":"IF($A357=\"\",\"\",IF(OR(VLOOKUP($A357,Economática!$A$3:$AI$823,13,FALSE)=0,VLOOKUP($A357,Economática!$A$3:$AI$823,13,FALSE)=\"-\"),1/0,VLOOKUP($A357,Economática!$A$3:$AI$823,13,FALSE)))","v":""},{"$f":"IF($A357=\"\",\"\",IF(OR(VLOOKUP($A357,Economática!$A$3:$AI$823,14,FALSE)=0,VLOOKUP($A357,Economática!$A$3:$AI$823,14,FALSE)=\"-\"),1/0,VLOOKUP($A357,Economática!$A$3:$AI$823,14,FALSE)))","v":""},{"$f":"IF($A357=\"\",\"\",IF(OR(VLOOKUP($A357,Economática!$A$3:$AI$823,15,FALSE)=0,VLOOKUP($A357,Economática!$A$3:$AI$823,15,FALSE)=\"-\"),1/0,VLOOKUP($A357,Economática!$A$3:$AI$823,15,FALSE)))","v":""},{"$f":"IF($A357=\"\",\"\",IF(OR(VLOOKUP($A357,Economática!$A$3:$AI$823,16,FALSE)=0,VLOOKUP($A357,Economática!$A$3:$AI$823,16,FALSE)=\"-\"),1/0,VLOOKUP($A357,Economática!$A$3:$AI$823,16,FALSE)))","v":""},{"$f":"IF($A357=\"\",\"\",IF(OR(VLOOKUP($A357,Economática!$A$3:$AI$823,17,FALSE)=0,VLOOKUP($A357,Economática!$A$3:$AI$823,17,FALSE)=\"-\"),1/0,VLOOKUP($A357,Economática!$A$3:$AI$823,17,FALSE)))","v":""},{"$f":"IF($A357=\"\",\"\",IF(OR(VLOOKUP($A357,Economática!$A$3:$AI$823,18,FALSE)=0,VLOOKUP($A357,Economática!$A$3:$AI$823,18,FALSE)=\"-\"),1/0,VLOOKUP($A357,Economática!$A$3:$AI$823,18,FALSE)))","v":""},{"$f":"IF($A357=\"\",\"\",IF(OR(VLOOKUP($A357,Economática!$A$3:$AI$823,19,FALSE)=0,VLOOKUP($A357,Economática!$A$3:$AI$823,19,FALSE)=\"-\"),1/0,VLOOKUP($A357,Economática!$A$3:$AI$823,19,FALSE)))","v":""},{"$f":"IF($A357=\"\",\"\",VLOOKUP($A357,Economática!$A$3:$AI$823,20,FALSE)/E357)","v":""},"","","",{"$f":"IF($A357=\"\",\"\",IF(OR(VLOOKUP($A357,Economática!$A$3:$AI$823,21,FALSE)/100=0,VLOOKUP($A357,Economática!$A$3:$AI$823,21,FALSE)/100=\"-\"),1/0,VLOOKUP($A357,Economática!$A$3:$AI$823,21,FALSE)/100))","v":""},{"$f":"IF($A357=\"\",\"\",IF(OR(VLOOKUP($A357,Economática!$A$3:$AI$823,22,FALSE)/100=0,VLOOKUP($A357,Economática!$A$3:$AI$823,22,FALSE)/100=\"-\"),1/0,VLOOKUP($A357,Economática!$A$3:$AI$823,22,FALSE)/100))","v":""},{"$f":"IF($A357=\"\",\"\",IF(OR(VLOOKUP($A357,Economática!$A$3:$AI$823,23,FALSE)=0,VLOOKUP($A357,Economática!$A$3:$AI$823,23,FALSE)=\"-\"),1/0,VLOOKUP($A357,Economática!$A$3:$AI$823,23,FALSE)))","v":""},{"$f":"IF($A357=\"\",\"\",IF(OR(VLOOKUP($A357,Economática!$A$3:$AI$823,24,FALSE)=0,VLOOKUP($A357,Economática!$A$3:$AI$823,24,FALSE)=\"-\"),1/0,VLOOKUP($A357,Economática!$A$3:$AI$823,24,FALSE)))","v":""},{"$f":"IF($A357=\"\",\"\",IF(OR(VLOOKUP($A357,Economática!$A$3:$AI$823,25,FALSE)=0,VLOOKUP($A357,Economática!$A$3:$AI$823,25,FALSE)=\"-\"),1/0,VLOOKUP($A357,Economática!$A$3:$AI$823,25,FALSE)))","v":""},{"$f":"IF($A357=\"\",\"\",IF(ISERROR((F357+VLOOKUP($A357,Economática!$A$3:$AI$823,26,FALSE))/Y357),(F357+VLOOKUP($A357,Economática!$A$3:$AI$823,26,FALSE))/Y357,(F357+VLOOKUP($A357,Economática!$A$3:$AI$823,26,FALSE))/Y357))","v":""},{"$f":"IF($A357=\"\",\"\",IF(OR(-VLOOKUP($A357,Economática!$A$3:$AI$823,27,FALSE)=0,-VLOOKUP($A357,Economática!$A$3:$AI$823,27,FALSE)=\"-\"),1/0,-VLOOKUP($A357,Economática!$A$3:$AI$823,27,FALSE)))","v":""},"",{"$f":"IF($A357=\"\",\"\",IF(OR(VLOOKUP($A357,Economática!$A$3:$AI$823,28,FALSE)=0,VLOOKUP($A357,Economática!$A$3:$AI$823,28,FALSE)=\"-\"),1/0,VLOOKUP($A357,Economática!$A$3:$AI$823,28,FALSE)))","v":""},{"$f":"IF($A357=\"\",\"\",IF(OR(VLOOKUP($A357,Economática!$A$3:$AI$823,29,FALSE)=0,VLOOKUP($A357,Economática!$A$3:$AI$823,29,FALSE)=\"-\"),1/0,VLOOKUP($A357,Economática!$A$3:$AI$823,29,FALSE)))","v":""},{"$f":"IF($A357=\"\",\"\",IF(OR(VLOOKUP($A357,Economática!$A$3:$AI$823,30,FALSE)/E357=0,VLOOKUP($A357,Economática!$A$3:$AI$823,30,FALSE)/E357=\"-\",VLOOKUP($A357,Economática!$A$3:$AI$823,30,FALSE)/E357<33.33%,VLOOKUP($A357,Economática!$A$3:$AI$823,30,FALSE)/E357>100%),1/0,VLOOKUP($A357,Economática!$A$3:$AI$823,30,FALSE)/E357))","v":""},"",{"$f":"IF($A357=\"\",\"\",IF(OR(VLOOKUP($A357,Economática!$A$3:$AI$823,25,FALSE)=0,VLOOKUP($A357,Economática!$A$3:$AI$823,25,FALSE)=\"-\"),1/0,VLOOKUP($A357,Economática!$A$3:$AI$823,25,FALSE)))","v":""},{"$f":"CONCATENATE(Economática!B335,\" \",Economática!C335)","v":" "}]
[{"$f":"IF(Economática!AG336=\"\",\"\",Economática!AG336)","v":""},{"$f":"IF($A358=\"\",\"\",VLOOKUP(VLOOKUP($A358,Economática!$A$3:$AI$823,6,FALSE),Correção!$B$16:$C$36,2,FALSE))","v":""},{"$f":"IF(Economática!B336=\"\",\"\",Economática!B336)","v":""},{"$f":"IF($A358=\"\",\"\",IF(OR(VLOOKUP($A358,Economática!$A$3:$AI$823,8,FALSE)=0,VLOOKUP($A358,Economática!$A$3:$AI$823,8,FALSE)=\"-\"),1/0,VLOOKUP($A358,Economática!$A$3:$AI$823,8,FALSE)))","v":""},{"$f":"IF(A358=\"\",\"\",IF(ISERROR(VLOOKUP(A358,Correção!$B$2:$G$13,9,FALSE)),VLOOKUP($A358,Economática!$A$3:$AI$823,9,FALSE),VLOOKUP(A358,Correção!$B$2:$G$13,9,FALSE)))","v":""},{"$f":"IF($A358=\"\",\"\",Economática!G336)","v":""},{"$f":"IF($A358=\"\",\"\",IF(OR(VLOOKUP($A358,Economática!$A$3:$AI$823,10,FALSE)=0,VLOOKUP($A358,Economática!$A$3:$AI$823,10,FALSE)=\"-\"),1/0,VLOOKUP($A358,Economática!$A$3:$AI$823,10,FALSE)))","v":""},{"$f":"IF($A358=\"\",\"\",IF(OR(VLOOKUP($A358,Economática!$A$3:$AI$823,11,FALSE)=0,VLOOKUP($A358,Economática!$A$3:$AI$823,11,FALSE)=\"-\"),1/0,VLOOKUP($A358,Economática!$A$3:$AI$823,11,FALSE)))","v":""},{"$f":"IF($A358=\"\",\"\",IF(OR(VLOOKUP($A358,Economática!$A$3:$AI$823,12,FALSE)=0,VLOOKUP($A358,Economática!$A$3:$AI$823,12,FALSE)=\"-\"),1/0,VLOOKUP($A358,Economática!$A$3:$AI$823,12,FALSE)))","v":""},{"$f":"IF($A358=\"\",\"\",IF(OR(VLOOKUP($A358,Economática!$A$3:$AI$823,13,FALSE)=0,VLOOKUP($A358,Economática!$A$3:$AI$823,13,FALSE)=\"-\"),1/0,VLOOKUP($A358,Economática!$A$3:$AI$823,13,FALSE)))","v":""},{"$f":"IF($A358=\"\",\"\",IF(OR(VLOOKUP($A358,Economática!$A$3:$AI$823,14,FALSE)=0,VLOOKUP($A358,Economática!$A$3:$AI$823,14,FALSE)=\"-\"),1/0,VLOOKUP($A358,Economática!$A$3:$AI$823,14,FALSE)))","v":""},{"$f":"IF($A358=\"\",\"\",IF(OR(VLOOKUP($A358,Economática!$A$3:$AI$823,15,FALSE)=0,VLOOKUP($A358,Economática!$A$3:$AI$823,15,FALSE)=\"-\"),1/0,VLOOKUP($A358,Economática!$A$3:$AI$823,15,FALSE)))","v":""},{"$f":"IF($A358=\"\",\"\",IF(OR(VLOOKUP($A358,Economática!$A$3:$AI$823,16,FALSE)=0,VLOOKUP($A358,Economática!$A$3:$AI$823,16,FALSE)=\"-\"),1/0,VLOOKUP($A358,Economática!$A$3:$AI$823,16,FALSE)))","v":""},{"$f":"IF($A358=\"\",\"\",IF(OR(VLOOKUP($A358,Economática!$A$3:$AI$823,17,FALSE)=0,VLOOKUP($A358,Economática!$A$3:$AI$823,17,FALSE)=\"-\"),1/0,VLOOKUP($A358,Economática!$A$3:$AI$823,17,FALSE)))","v":""},{"$f":"IF($A358=\"\",\"\",IF(OR(VLOOKUP($A358,Economática!$A$3:$AI$823,18,FALSE)=0,VLOOKUP($A358,Economática!$A$3:$AI$823,18,FALSE)=\"-\"),1/0,VLOOKUP($A358,Economática!$A$3:$AI$823,18,FALSE)))","v":""},{"$f":"IF($A358=\"\",\"\",IF(OR(VLOOKUP($A358,Economática!$A$3:$AI$823,19,FALSE)=0,VLOOKUP($A358,Economática!$A$3:$AI$823,19,FALSE)=\"-\"),1/0,VLOOKUP($A358,Economática!$A$3:$AI$823,19,FALSE)))","v":""},{"$f":"IF($A358=\"\",\"\",VLOOKUP($A358,Economática!$A$3:$AI$823,20,FALSE)/E358)","v":""},"","","",{"$f":"IF($A358=\"\",\"\",IF(OR(VLOOKUP($A358,Economática!$A$3:$AI$823,21,FALSE)/100=0,VLOOKUP($A358,Economática!$A$3:$AI$823,21,FALSE)/100=\"-\"),1/0,VLOOKUP($A358,Economática!$A$3:$AI$823,21,FALSE)/100))","v":""},{"$f":"IF($A358=\"\",\"\",IF(OR(VLOOKUP($A358,Economática!$A$3:$AI$823,22,FALSE)/100=0,VLOOKUP($A358,Economática!$A$3:$AI$823,22,FALSE)/100=\"-\"),1/0,VLOOKUP($A358,Economática!$A$3:$AI$823,22,FALSE)/100))","v":""},{"$f":"IF($A358=\"\",\"\",IF(OR(VLOOKUP($A358,Economática!$A$3:$AI$823,23,FALSE)=0,VLOOKUP($A358,Economática!$A$3:$AI$823,23,FALSE)=\"-\"),1/0,VLOOKUP($A358,Economática!$A$3:$AI$823,23,FALSE)))","v":""},{"$f":"IF($A358=\"\",\"\",IF(OR(VLOOKUP($A358,Economática!$A$3:$AI$823,24,FALSE)=0,VLOOKUP($A358,Economática!$A$3:$AI$823,24,FALSE)=\"-\"),1/0,VLOOKUP($A358,Economática!$A$3:$AI$823,24,FALSE)))","v":""},{"$f":"IF($A358=\"\",\"\",IF(OR(VLOOKUP($A358,Economática!$A$3:$AI$823,25,FALSE)=0,VLOOKUP($A358,Economática!$A$3:$AI$823,25,FALSE)=\"-\"),1/0,VLOOKUP($A358,Economática!$A$3:$AI$823,25,FALSE)))","v":""},{"$f":"IF($A358=\"\",\"\",IF(ISERROR((F358+VLOOKUP($A358,Economática!$A$3:$AI$823,26,FALSE))/Y358),(F358+VLOOKUP($A358,Economática!$A$3:$AI$823,26,FALSE))/Y358,(F358+VLOOKUP($A358,Economática!$A$3:$AI$823,26,FALSE))/Y358))","v":""},{"$f":"IF($A358=\"\",\"\",IF(OR(-VLOOKUP($A358,Economática!$A$3:$AI$823,27,FALSE)=0,-VLOOKUP($A358,Economática!$A$3:$AI$823,27,FALSE)=\"-\"),1/0,-VLOOKUP($A358,Economática!$A$3:$AI$823,27,FALSE)))","v":""},"",{"$f":"IF($A358=\"\",\"\",IF(OR(VLOOKUP($A358,Economática!$A$3:$AI$823,28,FALSE)=0,VLOOKUP($A358,Economática!$A$3:$AI$823,28,FALSE)=\"-\"),1/0,VLOOKUP($A358,Economática!$A$3:$AI$823,28,FALSE)))","v":""},{"$f":"IF($A358=\"\",\"\",IF(OR(VLOOKUP($A358,Economática!$A$3:$AI$823,29,FALSE)=0,VLOOKUP($A358,Economática!$A$3:$AI$823,29,FALSE)=\"-\"),1/0,VLOOKUP($A358,Economática!$A$3:$AI$823,29,FALSE)))","v":""},{"$f":"IF($A358=\"\",\"\",IF(OR(VLOOKUP($A358,Economática!$A$3:$AI$823,30,FALSE)/E358=0,VLOOKUP($A358,Economática!$A$3:$AI$823,30,FALSE)/E358=\"-\",VLOOKUP($A358,Economática!$A$3:$AI$823,30,FALSE)/E358<33.33%,VLOOKUP($A358,Economática!$A$3:$AI$823,30,FALSE)/E358>100%),1/0,VLOOKUP($A358,Economática!$A$3:$AI$823,30,FALSE)/E358))","v":""},"",{"$f":"IF($A358=\"\",\"\",IF(OR(VLOOKUP($A358,Economática!$A$3:$AI$823,25,FALSE)=0,VLOOKUP($A358,Economática!$A$3:$AI$823,25,FALSE)=\"-\"),1/0,VLOOKUP($A358,Economática!$A$3:$AI$823,25,FALSE)))","v":""},{"$f":"CONCATENATE(Economática!B336,\" \",Economática!C336)","v":" "}]
[{"$f":"IF(Economática!AG337=\"\",\"\",Economática!AG337)","v":""},{"$f":"IF($A359=\"\",\"\",VLOOKUP(VLOOKUP($A359,Economática!$A$3:$AI$823,6,FALSE),Correção!$B$16:$C$36,2,FALSE))","v":""},{"$f":"IF(Economática!B337=\"\",\"\",Economática!B337)","v":""},{"$f":"IF($A359=\"\",\"\",IF(OR(VLOOKUP($A359,Economática!$A$3:$AI$823,8,FALSE)=0,VLOOKUP($A359,Economática!$A$3:$AI$823,8,FALSE)=\"-\"),1/0,VLOOKUP($A359,Economática!$A$3:$AI$823,8,FALSE)))","v":""},{"$f":"IF(A359=\"\",\"\",IF(ISERROR(VLOOKUP(A359,Correção!$B$2:$G$13,9,FALSE)),VLOOKUP($A359,Economática!$A$3:$AI$823,9,FALSE),VLOOKUP(A359,Correção!$B$2:$G$13,9,FALSE)))","v":""},{"$f":"IF($A359=\"\",\"\",Economática!G337)","v":""},{"$f":"IF($A359=\"\",\"\",IF(OR(VLOOKUP($A359,Economática!$A$3:$AI$823,10,FALSE)=0,VLOOKUP($A359,Economática!$A$3:$AI$823,10,FALSE)=\"-\"),1/0,VLOOKUP($A359,Economática!$A$3:$AI$823,10,FALSE)))","v":""},{"$f":"IF($A359=\"\",\"\",IF(OR(VLOOKUP($A359,Economática!$A$3:$AI$823,11,FALSE)=0,VLOOKUP($A359,Economática!$A$3:$AI$823,11,FALSE)=\"-\"),1/0,VLOOKUP($A359,Economática!$A$3:$AI$823,11,FALSE)))","v":""},{"$f":"IF($A359=\"\",\"\",IF(OR(VLOOKUP($A359,Economática!$A$3:$AI$823,12,FALSE)=0,VLOOKUP($A359,Economática!$A$3:$AI$823,12,FALSE)=\"-\"),1/0,VLOOKUP($A359,Economática!$A$3:$AI$823,12,FALSE)))","v":""},{"$f":"IF($A359=\"\",\"\",IF(OR(VLOOKUP($A359,Economática!$A$3:$AI$823,13,FALSE)=0,VLOOKUP($A359,Economática!$A$3:$AI$823,13,FALSE)=\"-\"),1/0,VLOOKUP($A359,Economática!$A$3:$AI$823,13,FALSE)))","v":""},{"$f":"IF($A359=\"\",\"\",IF(OR(VLOOKUP($A359,Economática!$A$3:$AI$823,14,FALSE)=0,VLOOKUP($A359,Economática!$A$3:$AI$823,14,FALSE)=\"-\"),1/0,VLOOKUP($A359,Economática!$A$3:$AI$823,14,FALSE)))","v":""},{"$f":"IF($A359=\"\",\"\",IF(OR(VLOOKUP($A359,Economática!$A$3:$AI$823,15,FALSE)=0,VLOOKUP($A359,Economática!$A$3:$AI$823,15,FALSE)=\"-\"),1/0,VLOOKUP($A359,Economática!$A$3:$AI$823,15,FALSE)))","v":""},{"$f":"IF($A359=\"\",\"\",IF(OR(VLOOKUP($A359,Economática!$A$3:$AI$823,16,FALSE)=0,VLOOKUP($A359,Economática!$A$3:$AI$823,16,FALSE)=\"-\"),1/0,VLOOKUP($A359,Economática!$A$3:$AI$823,16,FALSE)))","v":""},{"$f":"IF($A359=\"\",\"\",IF(OR(VLOOKUP($A359,Economática!$A$3:$AI$823,17,FALSE)=0,VLOOKUP($A359,Economática!$A$3:$AI$823,17,FALSE)=\"-\"),1/0,VLOOKUP($A359,Economática!$A$3:$AI$823,17,FALSE)))","v":""},{"$f":"IF($A359=\"\",\"\",IF(OR(VLOOKUP($A359,Economática!$A$3:$AI$823,18,FALSE)=0,VLOOKUP($A359,Economática!$A$3:$AI$823,18,FALSE)=\"-\"),1/0,VLOOKUP($A359,Economática!$A$3:$AI$823,18,FALSE)))","v":""},{"$f":"IF($A359=\"\",\"\",IF(OR(VLOOKUP($A359,Economática!$A$3:$AI$823,19,FALSE)=0,VLOOKUP($A359,Economática!$A$3:$AI$823,19,FALSE)=\"-\"),1/0,VLOOKUP($A359,Economática!$A$3:$AI$823,19,FALSE)))","v":""},{"$f":"IF($A359=\"\",\"\",VLOOKUP($A359,Economática!$A$3:$AI$823,20,FALSE)/E359)","v":""},"","","",{"$f":"IF($A359=\"\",\"\",IF(OR(VLOOKUP($A359,Economática!$A$3:$AI$823,21,FALSE)/100=0,VLOOKUP($A359,Economática!$A$3:$AI$823,21,FALSE)/100=\"-\"),1/0,VLOOKUP($A359,Economática!$A$3:$AI$823,21,FALSE)/100))","v":""},{"$f":"IF($A359=\"\",\"\",IF(OR(VLOOKUP($A359,Economática!$A$3:$AI$823,22,FALSE)/100=0,VLOOKUP($A359,Economática!$A$3:$AI$823,22,FALSE)/100=\"-\"),1/0,VLOOKUP($A359,Economática!$A$3:$AI$823,22,FALSE)/100))","v":""},{"$f":"IF($A359=\"\",\"\",IF(OR(VLOOKUP($A359,Economática!$A$3:$AI$823,23,FALSE)=0,VLOOKUP($A359,Economática!$A$3:$AI$823,23,FALSE)=\"-\"),1/0,VLOOKUP($A359,Economática!$A$3:$AI$823,23,FALSE)))","v":""},{"$f":"IF($A359=\"\",\"\",IF(OR(VLOOKUP($A359,Economática!$A$3:$AI$823,24,FALSE)=0,VLOOKUP($A359,Economática!$A$3:$AI$823,24,FALSE)=\"-\"),1/0,VLOOKUP($A359,Economática!$A$3:$AI$823,24,FALSE)))","v":""},{"$f":"IF($A359=\"\",\"\",IF(OR(VLOOKUP($A359,Economática!$A$3:$AI$823,25,FALSE)=0,VLOOKUP($A359,Economática!$A$3:$AI$823,25,FALSE)=\"-\"),1/0,VLOOKUP($A359,Economática!$A$3:$AI$823,25,FALSE)))","v":""},{"$f":"IF($A359=\"\",\"\",IF(ISERROR((F359+VLOOKUP($A359,Economática!$A$3:$AI$823,26,FALSE))/Y359),(F359+VLOOKUP($A359,Economática!$A$3:$AI$823,26,FALSE))/Y359,(F359+VLOOKUP($A359,Economática!$A$3:$AI$823,26,FALSE))/Y359))","v":""},{"$f":"IF($A359=\"\",\"\",IF(OR(-VLOOKUP($A359,Economática!$A$3:$AI$823,27,FALSE)=0,-VLOOKUP($A359,Economática!$A$3:$AI$823,27,FALSE)=\"-\"),1/0,-VLOOKUP($A359,Economática!$A$3:$AI$823,27,FALSE)))","v":""},"",{"$f":"IF($A359=\"\",\"\",IF(OR(VLOOKUP($A359,Economática!$A$3:$AI$823,28,FALSE)=0,VLOOKUP($A359,Economática!$A$3:$AI$823,28,FALSE)=\"-\"),1/0,VLOOKUP($A359,Economática!$A$3:$AI$823,28,FALSE)))","v":""},{"$f":"IF($A359=\"\",\"\",IF(OR(VLOOKUP($A359,Economática!$A$3:$AI$823,29,FALSE)=0,VLOOKUP($A359,Economática!$A$3:$AI$823,29,FALSE)=\"-\"),1/0,VLOOKUP($A359,Economática!$A$3:$AI$823,29,FALSE)))","v":""},{"$f":"IF($A359=\"\",\"\",IF(OR(VLOOKUP($A359,Economática!$A$3:$AI$823,30,FALSE)/E359=0,VLOOKUP($A359,Economática!$A$3:$AI$823,30,FALSE)/E359=\"-\",VLOOKUP($A359,Economática!$A$3:$AI$823,30,FALSE)/E359<33.33%,VLOOKUP($A359,Economática!$A$3:$AI$823,30,FALSE)/E359>100%),1/0,VLOOKUP($A359,Economática!$A$3:$AI$823,30,FALSE)/E359))","v":""},"",{"$f":"IF($A359=\"\",\"\",IF(OR(VLOOKUP($A359,Economática!$A$3:$AI$823,25,FALSE)=0,VLOOKUP($A359,Economática!$A$3:$AI$823,25,FALSE)=\"-\"),1/0,VLOOKUP($A359,Economática!$A$3:$AI$823,25,FALSE)))","v":""},{"$f":"CONCATENATE(Economática!B337,\" \",Economática!C337)","v":" "}]
[{"$f":"IF(Economática!AG338=\"\",\"\",Economática!AG338)","v":""},{"$f":"IF($A360=\"\",\"\",VLOOKUP(VLOOKUP($A360,Economática!$A$3:$AI$823,6,FALSE),Correção!$B$16:$C$36,2,FALSE))","v":""},{"$f":"IF(Economática!B338=\"\",\"\",Economática!B338)","v":""},{"$f":"IF($A360=\"\",\"\",IF(OR(VLOOKUP($A360,Economática!$A$3:$AI$823,8,FALSE)=0,VLOOKUP($A360,Economática!$A$3:$AI$823,8,FALSE)=\"-\"),1/0,VLOOKUP($A360,Economática!$A$3:$AI$823,8,FALSE)))","v":""},{"$f":"IF(A360=\"\",\"\",IF(ISERROR(VLOOKUP(A360,Correção!$B$2:$G$13,9,FALSE)),VLOOKUP($A360,Economática!$A$3:$AI$823,9,FALSE),VLOOKUP(A360,Correção!$B$2:$G$13,9,FALSE)))","v":""},{"$f":"IF($A360=\"\",\"\",Economática!G338)","v":""},{"$f":"IF($A360=\"\",\"\",IF(OR(VLOOKUP($A360,Economática!$A$3:$AI$823,10,FALSE)=0,VLOOKUP($A360,Economática!$A$3:$AI$823,10,FALSE)=\"-\"),1/0,VLOOKUP($A360,Economática!$A$3:$AI$823,10,FALSE)))","v":""},{"$f":"IF($A360=\"\",\"\",IF(OR(VLOOKUP($A360,Economática!$A$3:$AI$823,11,FALSE)=0,VLOOKUP($A360,Economática!$A$3:$AI$823,11,FALSE)=\"-\"),1/0,VLOOKUP($A360,Economática!$A$3:$AI$823,11,FALSE)))","v":""},{"$f":"IF($A360=\"\",\"\",IF(OR(VLOOKUP($A360,Economática!$A$3:$AI$823,12,FALSE)=0,VLOOKUP($A360,Economática!$A$3:$AI$823,12,FALSE)=\"-\"),1/0,VLOOKUP($A360,Economática!$A$3:$AI$823,12,FALSE)))","v":""},{"$f":"IF($A360=\"\",\"\",IF(OR(VLOOKUP($A360,Economática!$A$3:$AI$823,13,FALSE)=0,VLOOKUP($A360,Economática!$A$3:$AI$823,13,FALSE)=\"-\"),1/0,VLOOKUP($A360,Economática!$A$3:$AI$823,13,FALSE)))","v":""},{"$f":"IF($A360=\"\",\"\",IF(OR(VLOOKUP($A360,Economática!$A$3:$AI$823,14,FALSE)=0,VLOOKUP($A360,Economática!$A$3:$AI$823,14,FALSE)=\"-\"),1/0,VLOOKUP($A360,Economática!$A$3:$AI$823,14,FALSE)))","v":""},{"$f":"IF($A360=\"\",\"\",IF(OR(VLOOKUP($A360,Economática!$A$3:$AI$823,15,FALSE)=0,VLOOKUP($A360,Economática!$A$3:$AI$823,15,FALSE)=\"-\"),1/0,VLOOKUP($A360,Economática!$A$3:$AI$823,15,FALSE)))","v":""},{"$f":"IF($A360=\"\",\"\",IF(OR(VLOOKUP($A360,Economática!$A$3:$AI$823,16,FALSE)=0,VLOOKUP($A360,Economática!$A$3:$AI$823,16,FALSE)=\"-\"),1/0,VLOOKUP($A360,Economática!$A$3:$AI$823,16,FALSE)))","v":""},{"$f":"IF($A360=\"\",\"\",IF(OR(VLOOKUP($A360,Economática!$A$3:$AI$823,17,FALSE)=0,VLOOKUP($A360,Economática!$A$3:$AI$823,17,FALSE)=\"-\"),1/0,VLOOKUP($A360,Economática!$A$3:$AI$823,17,FALSE)))","v":""},{"$f":"IF($A360=\"\",\"\",IF(OR(VLOOKUP($A360,Economática!$A$3:$AI$823,18,FALSE)=0,VLOOKUP($A360,Economática!$A$3:$AI$823,18,FALSE)=\"-\"),1/0,VLOOKUP($A360,Economática!$A$3:$AI$823,18,FALSE)))","v":""},{"$f":"IF($A360=\"\",\"\",IF(OR(VLOOKUP($A360,Economática!$A$3:$AI$823,19,FALSE)=0,VLOOKUP($A360,Economática!$A$3:$AI$823,19,FALSE)=\"-\"),1/0,VLOOKUP($A360,Economática!$A$3:$AI$823,19,FALSE)))","v":""},{"$f":"IF($A360=\"\",\"\",VLOOKUP($A360,Economática!$A$3:$AI$823,20,FALSE)/E360)","v":""},"","","",{"$f":"IF($A360=\"\",\"\",IF(OR(VLOOKUP($A360,Economática!$A$3:$AI$823,21,FALSE)/100=0,VLOOKUP($A360,Economática!$A$3:$AI$823,21,FALSE)/100=\"-\"),1/0,VLOOKUP($A360,Economática!$A$3:$AI$823,21,FALSE)/100))","v":""},{"$f":"IF($A360=\"\",\"\",IF(OR(VLOOKUP($A360,Economática!$A$3:$AI$823,22,FALSE)/100=0,VLOOKUP($A360,Economática!$A$3:$AI$823,22,FALSE)/100=\"-\"),1/0,VLOOKUP($A360,Economática!$A$3:$AI$823,22,FALSE)/100))","v":""},{"$f":"IF($A360=\"\",\"\",IF(OR(VLOOKUP($A360,Economática!$A$3:$AI$823,23,FALSE)=0,VLOOKUP($A360,Economática!$A$3:$AI$823,23,FALSE)=\"-\"),1/0,VLOOKUP($A360,Economática!$A$3:$AI$823,23,FALSE)))","v":""},{"$f":"IF($A360=\"\",\"\",IF(OR(VLOOKUP($A360,Economática!$A$3:$AI$823,24,FALSE)=0,VLOOKUP($A360,Economática!$A$3:$AI$823,24,FALSE)=\"-\"),1/0,VLOOKUP($A360,Economática!$A$3:$AI$823,24,FALSE)))","v":""},{"$f":"IF($A360=\"\",\"\",IF(OR(VLOOKUP($A360,Economática!$A$3:$AI$823,25,FALSE)=0,VLOOKUP($A360,Economática!$A$3:$AI$823,25,FALSE)=\"-\"),1/0,VLOOKUP($A360,Economática!$A$3:$AI$823,25,FALSE)))","v":""},{"$f":"IF($A360=\"\",\"\",IF(ISERROR((F360+VLOOKUP($A360,Economática!$A$3:$AI$823,26,FALSE))/Y360),(F360+VLOOKUP($A360,Economática!$A$3:$AI$823,26,FALSE))/Y360,(F360+VLOOKUP($A360,Economática!$A$3:$AI$823,26,FALSE))/Y360))","v":""},{"$f":"IF($A360=\"\",\"\",IF(OR(-VLOOKUP($A360,Economática!$A$3:$AI$823,27,FALSE)=0,-VLOOKUP($A360,Economática!$A$3:$AI$823,27,FALSE)=\"-\"),1/0,-VLOOKUP($A360,Economática!$A$3:$AI$823,27,FALSE)))","v":""},"",{"$f":"IF($A360=\"\",\"\",IF(OR(VLOOKUP($A360,Economática!$A$3:$AI$823,28,FALSE)=0,VLOOKUP($A360,Economática!$A$3:$AI$823,28,FALSE)=\"-\"),1/0,VLOOKUP($A360,Economática!$A$3:$AI$823,28,FALSE)))","v":""},{"$f":"IF($A360=\"\",\"\",IF(OR(VLOOKUP($A360,Economática!$A$3:$AI$823,29,FALSE)=0,VLOOKUP($A360,Economática!$A$3:$AI$823,29,FALSE)=\"-\"),1/0,VLOOKUP($A360,Economática!$A$3:$AI$823,29,FALSE)))","v":""},{"$f":"IF($A360=\"\",\"\",IF(OR(VLOOKUP($A360,Economática!$A$3:$AI$823,30,FALSE)/E360=0,VLOOKUP($A360,Economática!$A$3:$AI$823,30,FALSE)/E360=\"-\",VLOOKUP($A360,Economática!$A$3:$AI$823,30,FALSE)/E360<33.33%,VLOOKUP($A360,Economática!$A$3:$AI$823,30,FALSE)/E360>100%),1/0,VLOOKUP($A360,Economática!$A$3:$AI$823,30,FALSE)/E360))","v":""},"",{"$f":"IF($A360=\"\",\"\",IF(OR(VLOOKUP($A360,Economática!$A$3:$AI$823,25,FALSE)=0,VLOOKUP($A360,Economática!$A$3:$AI$823,25,FALSE)=\"-\"),1/0,VLOOKUP($A360,Economática!$A$3:$AI$823,25,FALSE)))","v":""},{"$f":"CONCATENATE(Economática!B338,\" \",Economática!C338)","v":" "}]
[{"$f":"IF(Economática!AG339=\"\",\"\",Economática!AG339)","v":""},{"$f":"IF($A361=\"\",\"\",VLOOKUP(VLOOKUP($A361,Economática!$A$3:$AI$823,6,FALSE),Correção!$B$16:$C$36,2,FALSE))","v":""},{"$f":"IF(Economática!B339=\"\",\"\",Economática!B339)","v":""},{"$f":"IF($A361=\"\",\"\",IF(OR(VLOOKUP($A361,Economática!$A$3:$AI$823,8,FALSE)=0,VLOOKUP($A361,Economática!$A$3:$AI$823,8,FALSE)=\"-\"),1/0,VLOOKUP($A361,Economática!$A$3:$AI$823,8,FALSE)))","v":""},{"$f":"IF(A361=\"\",\"\",IF(ISERROR(VLOOKUP(A361,Correção!$B$2:$G$13,9,FALSE)),VLOOKUP($A361,Economática!$A$3:$AI$823,9,FALSE),VLOOKUP(A361,Correção!$B$2:$G$13,9,FALSE)))","v":""},{"$f":"IF($A361=\"\",\"\",Economática!G339)","v":""},{"$f":"IF($A361=\"\",\"\",IF(OR(VLOOKUP($A361,Economática!$A$3:$AI$823,10,FALSE)=0,VLOOKUP($A361,Economática!$A$3:$AI$823,10,FALSE)=\"-\"),1/0,VLOOKUP($A361,Economática!$A$3:$AI$823,10,FALSE)))","v":""},{"$f":"IF($A361=\"\",\"\",IF(OR(VLOOKUP($A361,Economática!$A$3:$AI$823,11,FALSE)=0,VLOOKUP($A361,Economática!$A$3:$AI$823,11,FALSE)=\"-\"),1/0,VLOOKUP($A361,Economática!$A$3:$AI$823,11,FALSE)))","v":""},{"$f":"IF($A361=\"\",\"\",IF(OR(VLOOKUP($A361,Economática!$A$3:$AI$823,12,FALSE)=0,VLOOKUP($A361,Economática!$A$3:$AI$823,12,FALSE)=\"-\"),1/0,VLOOKUP($A361,Economática!$A$3:$AI$823,12,FALSE)))","v":""},{"$f":"IF($A361=\"\",\"\",IF(OR(VLOOKUP($A361,Economática!$A$3:$AI$823,13,FALSE)=0,VLOOKUP($A361,Economática!$A$3:$AI$823,13,FALSE)=\"-\"),1/0,VLOOKUP($A361,Economática!$A$3:$AI$823,13,FALSE)))","v":""},{"$f":"IF($A361=\"\",\"\",IF(OR(VLOOKUP($A361,Economática!$A$3:$AI$823,14,FALSE)=0,VLOOKUP($A361,Economática!$A$3:$AI$823,14,FALSE)=\"-\"),1/0,VLOOKUP($A361,Economática!$A$3:$AI$823,14,FALSE)))","v":""},{"$f":"IF($A361=\"\",\"\",IF(OR(VLOOKUP($A361,Economática!$A$3:$AI$823,15,FALSE)=0,VLOOKUP($A361,Economática!$A$3:$AI$823,15,FALSE)=\"-\"),1/0,VLOOKUP($A361,Economática!$A$3:$AI$823,15,FALSE)))","v":""},{"$f":"IF($A361=\"\",\"\",IF(OR(VLOOKUP($A361,Economática!$A$3:$AI$823,16,FALSE)=0,VLOOKUP($A361,Economática!$A$3:$AI$823,16,FALSE)=\"-\"),1/0,VLOOKUP($A361,Economática!$A$3:$AI$823,16,FALSE)))","v":""},{"$f":"IF($A361=\"\",\"\",IF(OR(VLOOKUP($A361,Economática!$A$3:$AI$823,17,FALSE)=0,VLOOKUP($A361,Economática!$A$3:$AI$823,17,FALSE)=\"-\"),1/0,VLOOKUP($A361,Economática!$A$3:$AI$823,17,FALSE)))","v":""},{"$f":"IF($A361=\"\",\"\",IF(OR(VLOOKUP($A361,Economática!$A$3:$AI$823,18,FALSE)=0,VLOOKUP($A361,Economática!$A$3:$AI$823,18,FALSE)=\"-\"),1/0,VLOOKUP($A361,Economática!$A$3:$AI$823,18,FALSE)))","v":""},{"$f":"IF($A361=\"\",\"\",IF(OR(VLOOKUP($A361,Economática!$A$3:$AI$823,19,FALSE)=0,VLOOKUP($A361,Economática!$A$3:$AI$823,19,FALSE)=\"-\"),1/0,VLOOKUP($A361,Economática!$A$3:$AI$823,19,FALSE)))","v":""},{"$f":"IF($A361=\"\",\"\",VLOOKUP($A361,Economática!$A$3:$AI$823,20,FALSE)/E361)","v":""},"","","",{"$f":"IF($A361=\"\",\"\",IF(OR(VLOOKUP($A361,Economática!$A$3:$AI$823,21,FALSE)/100=0,VLOOKUP($A361,Economática!$A$3:$AI$823,21,FALSE)/100=\"-\"),1/0,VLOOKUP($A361,Economática!$A$3:$AI$823,21,FALSE)/100))","v":""},{"$f":"IF($A361=\"\",\"\",IF(OR(VLOOKUP($A361,Economática!$A$3:$AI$823,22,FALSE)/100=0,VLOOKUP($A361,Economática!$A$3:$AI$823,22,FALSE)/100=\"-\"),1/0,VLOOKUP($A361,Economática!$A$3:$AI$823,22,FALSE)/100))","v":""},{"$f":"IF($A361=\"\",\"\",IF(OR(VLOOKUP($A361,Economática!$A$3:$AI$823,23,FALSE)=0,VLOOKUP($A361,Economática!$A$3:$AI$823,23,FALSE)=\"-\"),1/0,VLOOKUP($A361,Economática!$A$3:$AI$823,23,FALSE)))","v":""},{"$f":"IF($A361=\"\",\"\",IF(OR(VLOOKUP($A361,Economática!$A$3:$AI$823,24,FALSE)=0,VLOOKUP($A361,Economática!$A$3:$AI$823,24,FALSE)=\"-\"),1/0,VLOOKUP($A361,Economática!$A$3:$AI$823,24,FALSE)))","v":""},{"$f":"IF($A361=\"\",\"\",IF(OR(VLOOKUP($A361,Economática!$A$3:$AI$823,25,FALSE)=0,VLOOKUP($A361,Economática!$A$3:$AI$823,25,FALSE)=\"-\"),1/0,VLOOKUP($A361,Economática!$A$3:$AI$823,25,FALSE)))","v":""},{"$f":"IF($A361=\"\",\"\",IF(ISERROR((F361+VLOOKUP($A361,Economática!$A$3:$AI$823,26,FALSE))/Y361),(F361+VLOOKUP($A361,Economática!$A$3:$AI$823,26,FALSE))/Y361,(F361+VLOOKUP($A361,Economática!$A$3:$AI$823,26,FALSE))/Y361))","v":""},{"$f":"IF($A361=\"\",\"\",IF(OR(-VLOOKUP($A361,Economática!$A$3:$AI$823,27,FALSE)=0,-VLOOKUP($A361,Economática!$A$3:$AI$823,27,FALSE)=\"-\"),1/0,-VLOOKUP($A361,Economática!$A$3:$AI$823,27,FALSE)))","v":""},"",{"$f":"IF($A361=\"\",\"\",IF(OR(VLOOKUP($A361,Economática!$A$3:$AI$823,28,FALSE)=0,VLOOKUP($A361,Economática!$A$3:$AI$823,28,FALSE)=\"-\"),1/0,VLOOKUP($A361,Economática!$A$3:$AI$823,28,FALSE)))","v":""},{"$f":"IF($A361=\"\",\"\",IF(OR(VLOOKUP($A361,Economática!$A$3:$AI$823,29,FALSE)=0,VLOOKUP($A361,Economática!$A$3:$AI$823,29,FALSE)=\"-\"),1/0,VLOOKUP($A361,Economática!$A$3:$AI$823,29,FALSE)))","v":""},{"$f":"IF($A361=\"\",\"\",IF(OR(VLOOKUP($A361,Economática!$A$3:$AI$823,30,FALSE)/E361=0,VLOOKUP($A361,Economática!$A$3:$AI$823,30,FALSE)/E361=\"-\",VLOOKUP($A361,Economática!$A$3:$AI$823,30,FALSE)/E361<33.33%,VLOOKUP($A361,Economática!$A$3:$AI$823,30,FALSE)/E361>100%),1/0,VLOOKUP($A361,Economática!$A$3:$AI$823,30,FALSE)/E361))","v":""},"",{"$f":"IF($A361=\"\",\"\",IF(OR(VLOOKUP($A361,Economática!$A$3:$AI$823,25,FALSE)=0,VLOOKUP($A361,Economática!$A$3:$AI$823,25,FALSE)=\"-\"),1/0,VLOOKUP($A361,Economática!$A$3:$AI$823,25,FALSE)))","v":""},{"$f":"CONCATENATE(Economática!B339,\" \",Economática!C339)","v":" "}]
[{"$f":"IF(Economática!AG340=\"\",\"\",Economática!AG340)","v":""},{"$f":"IF($A362=\"\",\"\",VLOOKUP(VLOOKUP($A362,Economática!$A$3:$AI$823,6,FALSE),Correção!$B$16:$C$36,2,FALSE))","v":""},{"$f":"IF(Economática!B340=\"\",\"\",Economática!B340)","v":""},{"$f":"IF($A362=\"\",\"\",IF(OR(VLOOKUP($A362,Economática!$A$3:$AI$823,8,FALSE)=0,VLOOKUP($A362,Economática!$A$3:$AI$823,8,FALSE)=\"-\"),1/0,VLOOKUP($A362,Economática!$A$3:$AI$823,8,FALSE)))","v":""},{"$f":"IF(A362=\"\",\"\",IF(ISERROR(VLOOKUP(A362,Correção!$B$2:$G$13,9,FALSE)),VLOOKUP($A362,Economática!$A$3:$AI$823,9,FALSE),VLOOKUP(A362,Correção!$B$2:$G$13,9,FALSE)))","v":""},{"$f":"IF($A362=\"\",\"\",Economática!G340)","v":""},{"$f":"IF($A362=\"\",\"\",IF(OR(VLOOKUP($A362,Economática!$A$3:$AI$823,10,FALSE)=0,VLOOKUP($A362,Economática!$A$3:$AI$823,10,FALSE)=\"-\"),1/0,VLOOKUP($A362,Economática!$A$3:$AI$823,10,FALSE)))","v":""},{"$f":"IF($A362=\"\",\"\",IF(OR(VLOOKUP($A362,Economática!$A$3:$AI$823,11,FALSE)=0,VLOOKUP($A362,Economática!$A$3:$AI$823,11,FALSE)=\"-\"),1/0,VLOOKUP($A362,Economática!$A$3:$AI$823,11,FALSE)))","v":""},{"$f":"IF($A362=\"\",\"\",IF(OR(VLOOKUP($A362,Economática!$A$3:$AI$823,12,FALSE)=0,VLOOKUP($A362,Economática!$A$3:$AI$823,12,FALSE)=\"-\"),1/0,VLOOKUP($A362,Economática!$A$3:$AI$823,12,FALSE)))","v":""},{"$f":"IF($A362=\"\",\"\",IF(OR(VLOOKUP($A362,Economática!$A$3:$AI$823,13,FALSE)=0,VLOOKUP($A362,Economática!$A$3:$AI$823,13,FALSE)=\"-\"),1/0,VLOOKUP($A362,Economática!$A$3:$AI$823,13,FALSE)))","v":""},{"$f":"IF($A362=\"\",\"\",IF(OR(VLOOKUP($A362,Economática!$A$3:$AI$823,14,FALSE)=0,VLOOKUP($A362,Economática!$A$3:$AI$823,14,FALSE)=\"-\"),1/0,VLOOKUP($A362,Economática!$A$3:$AI$823,14,FALSE)))","v":""},{"$f":"IF($A362=\"\",\"\",IF(OR(VLOOKUP($A362,Economática!$A$3:$AI$823,15,FALSE)=0,VLOOKUP($A362,Economática!$A$3:$AI$823,15,FALSE)=\"-\"),1/0,VLOOKUP($A362,Economática!$A$3:$AI$823,15,FALSE)))","v":""},{"$f":"IF($A362=\"\",\"\",IF(OR(VLOOKUP($A362,Economática!$A$3:$AI$823,16,FALSE)=0,VLOOKUP($A362,Economática!$A$3:$AI$823,16,FALSE)=\"-\"),1/0,VLOOKUP($A362,Economática!$A$3:$AI$823,16,FALSE)))","v":""},{"$f":"IF($A362=\"\",\"\",IF(OR(VLOOKUP($A362,Economática!$A$3:$AI$823,17,FALSE)=0,VLOOKUP($A362,Economática!$A$3:$AI$823,17,FALSE)=\"-\"),1/0,VLOOKUP($A362,Economática!$A$3:$AI$823,17,FALSE)))","v":""},{"$f":"IF($A362=\"\",\"\",IF(OR(VLOOKUP($A362,Economática!$A$3:$AI$823,18,FALSE)=0,VLOOKUP($A362,Economática!$A$3:$AI$823,18,FALSE)=\"-\"),1/0,VLOOKUP($A362,Economática!$A$3:$AI$823,18,FALSE)))","v":""},{"$f":"IF($A362=\"\",\"\",IF(OR(VLOOKUP($A362,Economática!$A$3:$AI$823,19,FALSE)=0,VLOOKUP($A362,Economática!$A$3:$AI$823,19,FALSE)=\"-\"),1/0,VLOOKUP($A362,Economática!$A$3:$AI$823,19,FALSE)))","v":""},{"$f":"IF($A362=\"\",\"\",VLOOKUP($A362,Economática!$A$3:$AI$823,20,FALSE)/E362)","v":""},"","","",{"$f":"IF($A362=\"\",\"\",IF(OR(VLOOKUP($A362,Economática!$A$3:$AI$823,21,FALSE)/100=0,VLOOKUP($A362,Economática!$A$3:$AI$823,21,FALSE)/100=\"-\"),1/0,VLOOKUP($A362,Economática!$A$3:$AI$823,21,FALSE)/100))","v":""},{"$f":"IF($A362=\"\",\"\",IF(OR(VLOOKUP($A362,Economática!$A$3:$AI$823,22,FALSE)/100=0,VLOOKUP($A362,Economática!$A$3:$AI$823,22,FALSE)/100=\"-\"),1/0,VLOOKUP($A362,Economática!$A$3:$AI$823,22,FALSE)/100))","v":""},{"$f":"IF($A362=\"\",\"\",IF(OR(VLOOKUP($A362,Economática!$A$3:$AI$823,23,FALSE)=0,VLOOKUP($A362,Economática!$A$3:$AI$823,23,FALSE)=\"-\"),1/0,VLOOKUP($A362,Economática!$A$3:$AI$823,23,FALSE)))","v":""},{"$f":"IF($A362=\"\",\"\",IF(OR(VLOOKUP($A362,Economática!$A$3:$AI$823,24,FALSE)=0,VLOOKUP($A362,Economática!$A$3:$AI$823,24,FALSE)=\"-\"),1/0,VLOOKUP($A362,Economática!$A$3:$AI$823,24,FALSE)))","v":""},{"$f":"IF($A362=\"\",\"\",IF(OR(VLOOKUP($A362,Economática!$A$3:$AI$823,25,FALSE)=0,VLOOKUP($A362,Economática!$A$3:$AI$823,25,FALSE)=\"-\"),1/0,VLOOKUP($A362,Economática!$A$3:$AI$823,25,FALSE)))","v":""},{"$f":"IF($A362=\"\",\"\",IF(ISERROR((F362+VLOOKUP($A362,Economática!$A$3:$AI$823,26,FALSE))/Y362),(F362+VLOOKUP($A362,Economática!$A$3:$AI$823,26,FALSE))/Y362,(F362+VLOOKUP($A362,Economática!$A$3:$AI$823,26,FALSE))/Y362))","v":""},{"$f":"IF($A362=\"\",\"\",IF(OR(-VLOOKUP($A362,Economática!$A$3:$AI$823,27,FALSE)=0,-VLOOKUP($A362,Economática!$A$3:$AI$823,27,FALSE)=\"-\"),1/0,-VLOOKUP($A362,Economática!$A$3:$AI$823,27,FALSE)))","v":""},"",{"$f":"IF($A362=\"\",\"\",IF(OR(VLOOKUP($A362,Economática!$A$3:$AI$823,28,FALSE)=0,VLOOKUP($A362,Economática!$A$3:$AI$823,28,FALSE)=\"-\"),1/0,VLOOKUP($A362,Economática!$A$3:$AI$823,28,FALSE)))","v":""},{"$f":"IF($A362=\"\",\"\",IF(OR(VLOOKUP($A362,Economática!$A$3:$AI$823,29,FALSE)=0,VLOOKUP($A362,Economática!$A$3:$AI$823,29,FALSE)=\"-\"),1/0,VLOOKUP($A362,Economática!$A$3:$AI$823,29,FALSE)))","v":""},{"$f":"IF($A362=\"\",\"\",IF(OR(VLOOKUP($A362,Economática!$A$3:$AI$823,30,FALSE)/E362=0,VLOOKUP($A362,Economática!$A$3:$AI$823,30,FALSE)/E362=\"-\",VLOOKUP($A362,Economática!$A$3:$AI$823,30,FALSE)/E362<33.33%,VLOOKUP($A362,Economática!$A$3:$AI$823,30,FALSE)/E362>100%),1/0,VLOOKUP($A362,Economática!$A$3:$AI$823,30,FALSE)/E362))","v":""},"",{"$f":"IF($A362=\"\",\"\",IF(OR(VLOOKUP($A362,Economática!$A$3:$AI$823,25,FALSE)=0,VLOOKUP($A362,Economática!$A$3:$AI$823,25,FALSE)=\"-\"),1/0,VLOOKUP($A362,Economática!$A$3:$AI$823,25,FALSE)))","v":""},{"$f":"CONCATENATE(Economática!B340,\" \",Economática!C340)","v":" "}]
[{"$f":"IF(Economática!AG341=\"\",\"\",Economática!AG341)","v":""},{"$f":"IF($A363=\"\",\"\",VLOOKUP(VLOOKUP($A363,Economática!$A$3:$AI$823,6,FALSE),Correção!$B$16:$C$36,2,FALSE))","v":""},{"$f":"IF(Economática!B341=\"\",\"\",Economática!B341)","v":""},{"$f":"IF($A363=\"\",\"\",IF(OR(VLOOKUP($A363,Economática!$A$3:$AI$823,8,FALSE)=0,VLOOKUP($A363,Economática!$A$3:$AI$823,8,FALSE)=\"-\"),1/0,VLOOKUP($A363,Economática!$A$3:$AI$823,8,FALSE)))","v":""},{"$f":"IF(A363=\"\",\"\",IF(ISERROR(VLOOKUP(A363,Correção!$B$2:$G$13,9,FALSE)),VLOOKUP($A363,Economática!$A$3:$AI$823,9,FALSE),VLOOKUP(A363,Correção!$B$2:$G$13,9,FALSE)))","v":""},{"$f":"IF($A363=\"\",\"\",Economática!G341)","v":""},{"$f":"IF($A363=\"\",\"\",IF(OR(VLOOKUP($A363,Economática!$A$3:$AI$823,10,FALSE)=0,VLOOKUP($A363,Economática!$A$3:$AI$823,10,FALSE)=\"-\"),1/0,VLOOKUP($A363,Economática!$A$3:$AI$823,10,FALSE)))","v":""},{"$f":"IF($A363=\"\",\"\",IF(OR(VLOOKUP($A363,Economática!$A$3:$AI$823,11,FALSE)=0,VLOOKUP($A363,Economática!$A$3:$AI$823,11,FALSE)=\"-\"),1/0,VLOOKUP($A363,Economática!$A$3:$AI$823,11,FALSE)))","v":""},{"$f":"IF($A363=\"\",\"\",IF(OR(VLOOKUP($A363,Economática!$A$3:$AI$823,12,FALSE)=0,VLOOKUP($A363,Economática!$A$3:$AI$823,12,FALSE)=\"-\"),1/0,VLOOKUP($A363,Economática!$A$3:$AI$823,12,FALSE)))","v":""},{"$f":"IF($A363=\"\",\"\",IF(OR(VLOOKUP($A363,Economática!$A$3:$AI$823,13,FALSE)=0,VLOOKUP($A363,Economática!$A$3:$AI$823,13,FALSE)=\"-\"),1/0,VLOOKUP($A363,Economática!$A$3:$AI$823,13,FALSE)))","v":""},{"$f":"IF($A363=\"\",\"\",IF(OR(VLOOKUP($A363,Economática!$A$3:$AI$823,14,FALSE)=0,VLOOKUP($A363,Economática!$A$3:$AI$823,14,FALSE)=\"-\"),1/0,VLOOKUP($A363,Economática!$A$3:$AI$823,14,FALSE)))","v":""},{"$f":"IF($A363=\"\",\"\",IF(OR(VLOOKUP($A363,Economática!$A$3:$AI$823,15,FALSE)=0,VLOOKUP($A363,Economática!$A$3:$AI$823,15,FALSE)=\"-\"),1/0,VLOOKUP($A363,Economática!$A$3:$AI$823,15,FALSE)))","v":""},{"$f":"IF($A363=\"\",\"\",IF(OR(VLOOKUP($A363,Economática!$A$3:$AI$823,16,FALSE)=0,VLOOKUP($A363,Economática!$A$3:$AI$823,16,FALSE)=\"-\"),1/0,VLOOKUP($A363,Economática!$A$3:$AI$823,16,FALSE)))","v":""},{"$f":"IF($A363=\"\",\"\",IF(OR(VLOOKUP($A363,Economática!$A$3:$AI$823,17,FALSE)=0,VLOOKUP($A363,Economática!$A$3:$AI$823,17,FALSE)=\"-\"),1/0,VLOOKUP($A363,Economática!$A$3:$AI$823,17,FALSE)))","v":""},{"$f":"IF($A363=\"\",\"\",IF(OR(VLOOKUP($A363,Economática!$A$3:$AI$823,18,FALSE)=0,VLOOKUP($A363,Economática!$A$3:$AI$823,18,FALSE)=\"-\"),1/0,VLOOKUP($A363,Economática!$A$3:$AI$823,18,FALSE)))","v":""},{"$f":"IF($A363=\"\",\"\",IF(OR(VLOOKUP($A363,Economática!$A$3:$AI$823,19,FALSE)=0,VLOOKUP($A363,Economática!$A$3:$AI$823,19,FALSE)=\"-\"),1/0,VLOOKUP($A363,Economática!$A$3:$AI$823,19,FALSE)))","v":""},{"$f":"IF($A363=\"\",\"\",VLOOKUP($A363,Economática!$A$3:$AI$823,20,FALSE)/E363)","v":""},"","","",{"$f":"IF($A363=\"\",\"\",IF(OR(VLOOKUP($A363,Economática!$A$3:$AI$823,21,FALSE)/100=0,VLOOKUP($A363,Economática!$A$3:$AI$823,21,FALSE)/100=\"-\"),1/0,VLOOKUP($A363,Economática!$A$3:$AI$823,21,FALSE)/100))","v":""},{"$f":"IF($A363=\"\",\"\",IF(OR(VLOOKUP($A363,Economática!$A$3:$AI$823,22,FALSE)/100=0,VLOOKUP($A363,Economática!$A$3:$AI$823,22,FALSE)/100=\"-\"),1/0,VLOOKUP($A363,Economática!$A$3:$AI$823,22,FALSE)/100))","v":""},{"$f":"IF($A363=\"\",\"\",IF(OR(VLOOKUP($A363,Economática!$A$3:$AI$823,23,FALSE)=0,VLOOKUP($A363,Economática!$A$3:$AI$823,23,FALSE)=\"-\"),1/0,VLOOKUP($A363,Economática!$A$3:$AI$823,23,FALSE)))","v":""},{"$f":"IF($A363=\"\",\"\",IF(OR(VLOOKUP($A363,Economática!$A$3:$AI$823,24,FALSE)=0,VLOOKUP($A363,Economática!$A$3:$AI$823,24,FALSE)=\"-\"),1/0,VLOOKUP($A363,Economática!$A$3:$AI$823,24,FALSE)))","v":""},{"$f":"IF($A363=\"\",\"\",IF(OR(VLOOKUP($A363,Economática!$A$3:$AI$823,25,FALSE)=0,VLOOKUP($A363,Economática!$A$3:$AI$823,25,FALSE)=\"-\"),1/0,VLOOKUP($A363,Economática!$A$3:$AI$823,25,FALSE)))","v":""},{"$f":"IF($A363=\"\",\"\",IF(ISERROR((F363+VLOOKUP($A363,Economática!$A$3:$AI$823,26,FALSE))/Y363),(F363+VLOOKUP($A363,Economática!$A$3:$AI$823,26,FALSE))/Y363,(F363+VLOOKUP($A363,Economática!$A$3:$AI$823,26,FALSE))/Y363))","v":""},{"$f":"IF($A363=\"\",\"\",IF(OR(-VLOOKUP($A363,Economática!$A$3:$AI$823,27,FALSE)=0,-VLOOKUP($A363,Economática!$A$3:$AI$823,27,FALSE)=\"-\"),1/0,-VLOOKUP($A363,Economática!$A$3:$AI$823,27,FALSE)))","v":""},"",{"$f":"IF($A363=\"\",\"\",IF(OR(VLOOKUP($A363,Economática!$A$3:$AI$823,28,FALSE)=0,VLOOKUP($A363,Economática!$A$3:$AI$823,28,FALSE)=\"-\"),1/0,VLOOKUP($A363,Economática!$A$3:$AI$823,28,FALSE)))","v":""},{"$f":"IF($A363=\"\",\"\",IF(OR(VLOOKUP($A363,Economática!$A$3:$AI$823,29,FALSE)=0,VLOOKUP($A363,Economática!$A$3:$AI$823,29,FALSE)=\"-\"),1/0,VLOOKUP($A363,Economática!$A$3:$AI$823,29,FALSE)))","v":""},{"$f":"IF($A363=\"\",\"\",IF(OR(VLOOKUP($A363,Economática!$A$3:$AI$823,30,FALSE)/E363=0,VLOOKUP($A363,Economática!$A$3:$AI$823,30,FALSE)/E363=\"-\",VLOOKUP($A363,Economática!$A$3:$AI$823,30,FALSE)/E363<33.33%,VLOOKUP($A363,Economática!$A$3:$AI$823,30,FALSE)/E363>100%),1/0,VLOOKUP($A363,Economática!$A$3:$AI$823,30,FALSE)/E363))","v":""},"",{"$f":"IF($A363=\"\",\"\",IF(OR(VLOOKUP($A363,Economática!$A$3:$AI$823,25,FALSE)=0,VLOOKUP($A363,Economática!$A$3:$AI$823,25,FALSE)=\"-\"),1/0,VLOOKUP($A363,Economática!$A$3:$AI$823,25,FALSE)))","v":""},{"$f":"CONCATENATE(Economática!B341,\" \",Economática!C341)","v":" "}]
[{"$f":"IF(Economática!AG342=\"\",\"\",Economática!AG342)","v":""},{"$f":"IF($A364=\"\",\"\",VLOOKUP(VLOOKUP($A364,Economática!$A$3:$AI$823,6,FALSE),Correção!$B$16:$C$36,2,FALSE))","v":""},{"$f":"IF(Economática!B342=\"\",\"\",Economática!B342)","v":""},{"$f":"IF($A364=\"\",\"\",IF(OR(VLOOKUP($A364,Economática!$A$3:$AI$823,8,FALSE)=0,VLOOKUP($A364,Economática!$A$3:$AI$823,8,FALSE)=\"-\"),1/0,VLOOKUP($A364,Economática!$A$3:$AI$823,8,FALSE)))","v":""},{"$f":"IF(A364=\"\",\"\",IF(ISERROR(VLOOKUP(A364,Correção!$B$2:$G$13,9,FALSE)),VLOOKUP($A364,Economática!$A$3:$AI$823,9,FALSE),VLOOKUP(A364,Correção!$B$2:$G$13,9,FALSE)))","v":""},{"$f":"IF($A364=\"\",\"\",Economática!G342)","v":""},{"$f":"IF($A364=\"\",\"\",IF(OR(VLOOKUP($A364,Economática!$A$3:$AI$823,10,FALSE)=0,VLOOKUP($A364,Economática!$A$3:$AI$823,10,FALSE)=\"-\"),1/0,VLOOKUP($A364,Economática!$A$3:$AI$823,10,FALSE)))","v":""},{"$f":"IF($A364=\"\",\"\",IF(OR(VLOOKUP($A364,Economática!$A$3:$AI$823,11,FALSE)=0,VLOOKUP($A364,Economática!$A$3:$AI$823,11,FALSE)=\"-\"),1/0,VLOOKUP($A364,Economática!$A$3:$AI$823,11,FALSE)))","v":""},{"$f":"IF($A364=\"\",\"\",IF(OR(VLOOKUP($A364,Economática!$A$3:$AI$823,12,FALSE)=0,VLOOKUP($A364,Economática!$A$3:$AI$823,12,FALSE)=\"-\"),1/0,VLOOKUP($A364,Economática!$A$3:$AI$823,12,FALSE)))","v":""},{"$f":"IF($A364=\"\",\"\",IF(OR(VLOOKUP($A364,Economática!$A$3:$AI$823,13,FALSE)=0,VLOOKUP($A364,Economática!$A$3:$AI$823,13,FALSE)=\"-\"),1/0,VLOOKUP($A364,Economática!$A$3:$AI$823,13,FALSE)))","v":""},{"$f":"IF($A364=\"\",\"\",IF(OR(VLOOKUP($A364,Economática!$A$3:$AI$823,14,FALSE)=0,VLOOKUP($A364,Economática!$A$3:$AI$823,14,FALSE)=\"-\"),1/0,VLOOKUP($A364,Economática!$A$3:$AI$823,14,FALSE)))","v":""},{"$f":"IF($A364=\"\",\"\",IF(OR(VLOOKUP($A364,Economática!$A$3:$AI$823,15,FALSE)=0,VLOOKUP($A364,Economática!$A$3:$AI$823,15,FALSE)=\"-\"),1/0,VLOOKUP($A364,Economática!$A$3:$AI$823,15,FALSE)))","v":""},{"$f":"IF($A364=\"\",\"\",IF(OR(VLOOKUP($A364,Economática!$A$3:$AI$823,16,FALSE)=0,VLOOKUP($A364,Economática!$A$3:$AI$823,16,FALSE)=\"-\"),1/0,VLOOKUP($A364,Economática!$A$3:$AI$823,16,FALSE)))","v":""},{"$f":"IF($A364=\"\",\"\",IF(OR(VLOOKUP($A364,Economática!$A$3:$AI$823,17,FALSE)=0,VLOOKUP($A364,Economática!$A$3:$AI$823,17,FALSE)=\"-\"),1/0,VLOOKUP($A364,Economática!$A$3:$AI$823,17,FALSE)))","v":""},{"$f":"IF($A364=\"\",\"\",IF(OR(VLOOKUP($A364,Economática!$A$3:$AI$823,18,FALSE)=0,VLOOKUP($A364,Economática!$A$3:$AI$823,18,FALSE)=\"-\"),1/0,VLOOKUP($A364,Economática!$A$3:$AI$823,18,FALSE)))","v":""},{"$f":"IF($A364=\"\",\"\",IF(OR(VLOOKUP($A364,Economática!$A$3:$AI$823,19,FALSE)=0,VLOOKUP($A364,Economática!$A$3:$AI$823,19,FALSE)=\"-\"),1/0,VLOOKUP($A364,Economática!$A$3:$AI$823,19,FALSE)))","v":""},{"$f":"IF($A364=\"\",\"\",VLOOKUP($A364,Economática!$A$3:$AI$823,20,FALSE)/E364)","v":""},"","","",{"$f":"IF($A364=\"\",\"\",IF(OR(VLOOKUP($A364,Economática!$A$3:$AI$823,21,FALSE)/100=0,VLOOKUP($A364,Economática!$A$3:$AI$823,21,FALSE)/100=\"-\"),1/0,VLOOKUP($A364,Economática!$A$3:$AI$823,21,FALSE)/100))","v":""},{"$f":"IF($A364=\"\",\"\",IF(OR(VLOOKUP($A364,Economática!$A$3:$AI$823,22,FALSE)/100=0,VLOOKUP($A364,Economática!$A$3:$AI$823,22,FALSE)/100=\"-\"),1/0,VLOOKUP($A364,Economática!$A$3:$AI$823,22,FALSE)/100))","v":""},{"$f":"IF($A364=\"\",\"\",IF(OR(VLOOKUP($A364,Economática!$A$3:$AI$823,23,FALSE)=0,VLOOKUP($A364,Economática!$A$3:$AI$823,23,FALSE)=\"-\"),1/0,VLOOKUP($A364,Economática!$A$3:$AI$823,23,FALSE)))","v":""},{"$f":"IF($A364=\"\",\"\",IF(OR(VLOOKUP($A364,Economática!$A$3:$AI$823,24,FALSE)=0,VLOOKUP($A364,Economática!$A$3:$AI$823,24,FALSE)=\"-\"),1/0,VLOOKUP($A364,Economática!$A$3:$AI$823,24,FALSE)))","v":""},{"$f":"IF($A364=\"\",\"\",IF(OR(VLOOKUP($A364,Economática!$A$3:$AI$823,25,FALSE)=0,VLOOKUP($A364,Economática!$A$3:$AI$823,25,FALSE)=\"-\"),1/0,VLOOKUP($A364,Economática!$A$3:$AI$823,25,FALSE)))","v":""},{"$f":"IF($A364=\"\",\"\",IF(ISERROR((F364+VLOOKUP($A364,Economática!$A$3:$AI$823,26,FALSE))/Y364),(F364+VLOOKUP($A364,Economática!$A$3:$AI$823,26,FALSE))/Y364,(F364+VLOOKUP($A364,Economática!$A$3:$AI$823,26,FALSE))/Y364))","v":""},{"$f":"IF($A364=\"\",\"\",IF(OR(-VLOOKUP($A364,Economática!$A$3:$AI$823,27,FALSE)=0,-VLOOKUP($A364,Economática!$A$3:$AI$823,27,FALSE)=\"-\"),1/0,-VLOOKUP($A364,Economática!$A$3:$AI$823,27,FALSE)))","v":""},"",{"$f":"IF($A364=\"\",\"\",IF(OR(VLOOKUP($A364,Economática!$A$3:$AI$823,28,FALSE)=0,VLOOKUP($A364,Economática!$A$3:$AI$823,28,FALSE)=\"-\"),1/0,VLOOKUP($A364,Economática!$A$3:$AI$823,28,FALSE)))","v":""},{"$f":"IF($A364=\"\",\"\",IF(OR(VLOOKUP($A364,Economática!$A$3:$AI$823,29,FALSE)=0,VLOOKUP($A364,Economática!$A$3:$AI$823,29,FALSE)=\"-\"),1/0,VLOOKUP($A364,Economática!$A$3:$AI$823,29,FALSE)))","v":""},{"$f":"IF($A364=\"\",\"\",IF(OR(VLOOKUP($A364,Economática!$A$3:$AI$823,30,FALSE)/E364=0,VLOOKUP($A364,Economática!$A$3:$AI$823,30,FALSE)/E364=\"-\",VLOOKUP($A364,Economática!$A$3:$AI$823,30,FALSE)/E364<33.33%,VLOOKUP($A364,Economática!$A$3:$AI$823,30,FALSE)/E364>100%),1/0,VLOOKUP($A364,Economática!$A$3:$AI$823,30,FALSE)/E364))","v":""},"",{"$f":"IF($A364=\"\",\"\",IF(OR(VLOOKUP($A364,Economática!$A$3:$AI$823,25,FALSE)=0,VLOOKUP($A364,Economática!$A$3:$AI$823,25,FALSE)=\"-\"),1/0,VLOOKUP($A364,Economática!$A$3:$AI$823,25,FALSE)))","v":""},{"$f":"CONCATENATE(Economática!B342,\" \",Economática!C342)","v":" "}]
[{"$f":"IF(Economática!AG343=\"\",\"\",Economática!AG343)","v":""},{"$f":"IF($A365=\"\",\"\",VLOOKUP(VLOOKUP($A365,Economática!$A$3:$AI$823,6,FALSE),Correção!$B$16:$C$36,2,FALSE))","v":""},{"$f":"IF(Economática!B343=\"\",\"\",Economática!B343)","v":""},{"$f":"IF($A365=\"\",\"\",IF(OR(VLOOKUP($A365,Economática!$A$3:$AI$823,8,FALSE)=0,VLOOKUP($A365,Economática!$A$3:$AI$823,8,FALSE)=\"-\"),1/0,VLOOKUP($A365,Economática!$A$3:$AI$823,8,FALSE)))","v":""},{"$f":"IF(A365=\"\",\"\",IF(ISERROR(VLOOKUP(A365,Correção!$B$2:$G$13,9,FALSE)),VLOOKUP($A365,Economática!$A$3:$AI$823,9,FALSE),VLOOKUP(A365,Correção!$B$2:$G$13,9,FALSE)))","v":""},{"$f":"IF($A365=\"\",\"\",Economática!G343)","v":""},{"$f":"IF($A365=\"\",\"\",IF(OR(VLOOKUP($A365,Economática!$A$3:$AI$823,10,FALSE)=0,VLOOKUP($A365,Economática!$A$3:$AI$823,10,FALSE)=\"-\"),1/0,VLOOKUP($A365,Economática!$A$3:$AI$823,10,FALSE)))","v":""},{"$f":"IF($A365=\"\",\"\",IF(OR(VLOOKUP($A365,Economática!$A$3:$AI$823,11,FALSE)=0,VLOOKUP($A365,Economática!$A$3:$AI$823,11,FALSE)=\"-\"),1/0,VLOOKUP($A365,Economática!$A$3:$AI$823,11,FALSE)))","v":""},{"$f":"IF($A365=\"\",\"\",IF(OR(VLOOKUP($A365,Economática!$A$3:$AI$823,12,FALSE)=0,VLOOKUP($A365,Economática!$A$3:$AI$823,12,FALSE)=\"-\"),1/0,VLOOKUP($A365,Economática!$A$3:$AI$823,12,FALSE)))","v":""},{"$f":"IF($A365=\"\",\"\",IF(OR(VLOOKUP($A365,Economática!$A$3:$AI$823,13,FALSE)=0,VLOOKUP($A365,Economática!$A$3:$AI$823,13,FALSE)=\"-\"),1/0,VLOOKUP($A365,Economática!$A$3:$AI$823,13,FALSE)))","v":""},{"$f":"IF($A365=\"\",\"\",IF(OR(VLOOKUP($A365,Economática!$A$3:$AI$823,14,FALSE)=0,VLOOKUP($A365,Economática!$A$3:$AI$823,14,FALSE)=\"-\"),1/0,VLOOKUP($A365,Economática!$A$3:$AI$823,14,FALSE)))","v":""},{"$f":"IF($A365=\"\",\"\",IF(OR(VLOOKUP($A365,Economática!$A$3:$AI$823,15,FALSE)=0,VLOOKUP($A365,Economática!$A$3:$AI$823,15,FALSE)=\"-\"),1/0,VLOOKUP($A365,Economática!$A$3:$AI$823,15,FALSE)))","v":""},{"$f":"IF($A365=\"\",\"\",IF(OR(VLOOKUP($A365,Economática!$A$3:$AI$823,16,FALSE)=0,VLOOKUP($A365,Economática!$A$3:$AI$823,16,FALSE)=\"-\"),1/0,VLOOKUP($A365,Economática!$A$3:$AI$823,16,FALSE)))","v":""},{"$f":"IF($A365=\"\",\"\",IF(OR(VLOOKUP($A365,Economática!$A$3:$AI$823,17,FALSE)=0,VLOOKUP($A365,Economática!$A$3:$AI$823,17,FALSE)=\"-\"),1/0,VLOOKUP($A365,Economática!$A$3:$AI$823,17,FALSE)))","v":""},{"$f":"IF($A365=\"\",\"\",IF(OR(VLOOKUP($A365,Economática!$A$3:$AI$823,18,FALSE)=0,VLOOKUP($A365,Economática!$A$3:$AI$823,18,FALSE)=\"-\"),1/0,VLOOKUP($A365,Economática!$A$3:$AI$823,18,FALSE)))","v":""},{"$f":"IF($A365=\"\",\"\",IF(OR(VLOOKUP($A365,Economática!$A$3:$AI$823,19,FALSE)=0,VLOOKUP($A365,Economática!$A$3:$AI$823,19,FALSE)=\"-\"),1/0,VLOOKUP($A365,Economática!$A$3:$AI$823,19,FALSE)))","v":""},{"$f":"IF($A365=\"\",\"\",VLOOKUP($A365,Economática!$A$3:$AI$823,20,FALSE)/E365)","v":""},"","","",{"$f":"IF($A365=\"\",\"\",IF(OR(VLOOKUP($A365,Economática!$A$3:$AI$823,21,FALSE)/100=0,VLOOKUP($A365,Economática!$A$3:$AI$823,21,FALSE)/100=\"-\"),1/0,VLOOKUP($A365,Economática!$A$3:$AI$823,21,FALSE)/100))","v":""},{"$f":"IF($A365=\"\",\"\",IF(OR(VLOOKUP($A365,Economática!$A$3:$AI$823,22,FALSE)/100=0,VLOOKUP($A365,Economática!$A$3:$AI$823,22,FALSE)/100=\"-\"),1/0,VLOOKUP($A365,Economática!$A$3:$AI$823,22,FALSE)/100))","v":""},{"$f":"IF($A365=\"\",\"\",IF(OR(VLOOKUP($A365,Economática!$A$3:$AI$823,23,FALSE)=0,VLOOKUP($A365,Economática!$A$3:$AI$823,23,FALSE)=\"-\"),1/0,VLOOKUP($A365,Economática!$A$3:$AI$823,23,FALSE)))","v":""},{"$f":"IF($A365=\"\",\"\",IF(OR(VLOOKUP($A365,Economática!$A$3:$AI$823,24,FALSE)=0,VLOOKUP($A365,Economática!$A$3:$AI$823,24,FALSE)=\"-\"),1/0,VLOOKUP($A365,Economática!$A$3:$AI$823,24,FALSE)))","v":""},{"$f":"IF($A365=\"\",\"\",IF(OR(VLOOKUP($A365,Economática!$A$3:$AI$823,25,FALSE)=0,VLOOKUP($A365,Economática!$A$3:$AI$823,25,FALSE)=\"-\"),1/0,VLOOKUP($A365,Economática!$A$3:$AI$823,25,FALSE)))","v":""},{"$f":"IF($A365=\"\",\"\",IF(ISERROR((F365+VLOOKUP($A365,Economática!$A$3:$AI$823,26,FALSE))/Y365),(F365+VLOOKUP($A365,Economática!$A$3:$AI$823,26,FALSE))/Y365,(F365+VLOOKUP($A365,Economática!$A$3:$AI$823,26,FALSE))/Y365))","v":""},{"$f":"IF($A365=\"\",\"\",IF(OR(-VLOOKUP($A365,Economática!$A$3:$AI$823,27,FALSE)=0,-VLOOKUP($A365,Economática!$A$3:$AI$823,27,FALSE)=\"-\"),1/0,-VLOOKUP($A365,Economática!$A$3:$AI$823,27,FALSE)))","v":""},"",{"$f":"IF($A365=\"\",\"\",IF(OR(VLOOKUP($A365,Economática!$A$3:$AI$823,28,FALSE)=0,VLOOKUP($A365,Economática!$A$3:$AI$823,28,FALSE)=\"-\"),1/0,VLOOKUP($A365,Economática!$A$3:$AI$823,28,FALSE)))","v":""},{"$f":"IF($A365=\"\",\"\",IF(OR(VLOOKUP($A365,Economática!$A$3:$AI$823,29,FALSE)=0,VLOOKUP($A365,Economática!$A$3:$AI$823,29,FALSE)=\"-\"),1/0,VLOOKUP($A365,Economática!$A$3:$AI$823,29,FALSE)))","v":""},{"$f":"IF($A365=\"\",\"\",IF(OR(VLOOKUP($A365,Economática!$A$3:$AI$823,30,FALSE)/E365=0,VLOOKUP($A365,Economática!$A$3:$AI$823,30,FALSE)/E365=\"-\",VLOOKUP($A365,Economática!$A$3:$AI$823,30,FALSE)/E365<33.33%,VLOOKUP($A365,Economática!$A$3:$AI$823,30,FALSE)/E365>100%),1/0,VLOOKUP($A365,Economática!$A$3:$AI$823,30,FALSE)/E365))","v":""},"",{"$f":"IF($A365=\"\",\"\",IF(OR(VLOOKUP($A365,Economática!$A$3:$AI$823,25,FALSE)=0,VLOOKUP($A365,Economática!$A$3:$AI$823,25,FALSE)=\"-\"),1/0,VLOOKUP($A365,Economática!$A$3:$AI$823,25,FALSE)))","v":""},{"$f":"CONCATENATE(Economática!B343,\" \",Economática!C343)","v":" "}]
[{"$f":"IF(Economática!AG344=\"\",\"\",Economática!AG344)","v":""},{"$f":"IF($A366=\"\",\"\",VLOOKUP(VLOOKUP($A366,Economática!$A$3:$AI$823,6,FALSE),Correção!$B$16:$C$36,2,FALSE))","v":""},{"$f":"IF(Economática!B344=\"\",\"\",Economática!B344)","v":""},{"$f":"IF($A366=\"\",\"\",IF(OR(VLOOKUP($A366,Economática!$A$3:$AI$823,8,FALSE)=0,VLOOKUP($A366,Economática!$A$3:$AI$823,8,FALSE)=\"-\"),1/0,VLOOKUP($A366,Economática!$A$3:$AI$823,8,FALSE)))","v":""},{"$f":"IF(A366=\"\",\"\",IF(ISERROR(VLOOKUP(A366,Correção!$B$2:$G$13,9,FALSE)),VLOOKUP($A366,Economática!$A$3:$AI$823,9,FALSE),VLOOKUP(A366,Correção!$B$2:$G$13,9,FALSE)))","v":""},{"$f":"IF($A366=\"\",\"\",Economática!G344)","v":""},{"$f":"IF($A366=\"\",\"\",IF(OR(VLOOKUP($A366,Economática!$A$3:$AI$823,10,FALSE)=0,VLOOKUP($A366,Economática!$A$3:$AI$823,10,FALSE)=\"-\"),1/0,VLOOKUP($A366,Economática!$A$3:$AI$823,10,FALSE)))","v":""},{"$f":"IF($A366=\"\",\"\",IF(OR(VLOOKUP($A366,Economática!$A$3:$AI$823,11,FALSE)=0,VLOOKUP($A366,Economática!$A$3:$AI$823,11,FALSE)=\"-\"),1/0,VLOOKUP($A366,Economática!$A$3:$AI$823,11,FALSE)))","v":""},{"$f":"IF($A366=\"\",\"\",IF(OR(VLOOKUP($A366,Economática!$A$3:$AI$823,12,FALSE)=0,VLOOKUP($A366,Economática!$A$3:$AI$823,12,FALSE)=\"-\"),1/0,VLOOKUP($A366,Economática!$A$3:$AI$823,12,FALSE)))","v":""},{"$f":"IF($A366=\"\",\"\",IF(OR(VLOOKUP($A366,Economática!$A$3:$AI$823,13,FALSE)=0,VLOOKUP($A366,Economática!$A$3:$AI$823,13,FALSE)=\"-\"),1/0,VLOOKUP($A366,Economática!$A$3:$AI$823,13,FALSE)))","v":""},{"$f":"IF($A366=\"\",\"\",IF(OR(VLOOKUP($A366,Economática!$A$3:$AI$823,14,FALSE)=0,VLOOKUP($A366,Economática!$A$3:$AI$823,14,FALSE)=\"-\"),1/0,VLOOKUP($A366,Economática!$A$3:$AI$823,14,FALSE)))","v":""},{"$f":"IF($A366=\"\",\"\",IF(OR(VLOOKUP($A366,Economática!$A$3:$AI$823,15,FALSE)=0,VLOOKUP($A366,Economática!$A$3:$AI$823,15,FALSE)=\"-\"),1/0,VLOOKUP($A366,Economática!$A$3:$AI$823,15,FALSE)))","v":""},{"$f":"IF($A366=\"\",\"\",IF(OR(VLOOKUP($A366,Economática!$A$3:$AI$823,16,FALSE)=0,VLOOKUP($A366,Economática!$A$3:$AI$823,16,FALSE)=\"-\"),1/0,VLOOKUP($A366,Economática!$A$3:$AI$823,16,FALSE)))","v":""},{"$f":"IF($A366=\"\",\"\",IF(OR(VLOOKUP($A366,Economática!$A$3:$AI$823,17,FALSE)=0,VLOOKUP($A366,Economática!$A$3:$AI$823,17,FALSE)=\"-\"),1/0,VLOOKUP($A366,Economática!$A$3:$AI$823,17,FALSE)))","v":""},{"$f":"IF($A366=\"\",\"\",IF(OR(VLOOKUP($A366,Economática!$A$3:$AI$823,18,FALSE)=0,VLOOKUP($A366,Economática!$A$3:$AI$823,18,FALSE)=\"-\"),1/0,VLOOKUP($A366,Economática!$A$3:$AI$823,18,FALSE)))","v":""},{"$f":"IF($A366=\"\",\"\",IF(OR(VLOOKUP($A366,Economática!$A$3:$AI$823,19,FALSE)=0,VLOOKUP($A366,Economática!$A$3:$AI$823,19,FALSE)=\"-\"),1/0,VLOOKUP($A366,Economática!$A$3:$AI$823,19,FALSE)))","v":""},{"$f":"IF($A366=\"\",\"\",VLOOKUP($A366,Economática!$A$3:$AI$823,20,FALSE)/E366)","v":""},"","","",{"$f":"IF($A366=\"\",\"\",IF(OR(VLOOKUP($A366,Economática!$A$3:$AI$823,21,FALSE)/100=0,VLOOKUP($A366,Economática!$A$3:$AI$823,21,FALSE)/100=\"-\"),1/0,VLOOKUP($A366,Economática!$A$3:$AI$823,21,FALSE)/100))","v":""},{"$f":"IF($A366=\"\",\"\",IF(OR(VLOOKUP($A366,Economática!$A$3:$AI$823,22,FALSE)/100=0,VLOOKUP($A366,Economática!$A$3:$AI$823,22,FALSE)/100=\"-\"),1/0,VLOOKUP($A366,Economática!$A$3:$AI$823,22,FALSE)/100))","v":""},{"$f":"IF($A366=\"\",\"\",IF(OR(VLOOKUP($A366,Economática!$A$3:$AI$823,23,FALSE)=0,VLOOKUP($A366,Economática!$A$3:$AI$823,23,FALSE)=\"-\"),1/0,VLOOKUP($A366,Economática!$A$3:$AI$823,23,FALSE)))","v":""},{"$f":"IF($A366=\"\",\"\",IF(OR(VLOOKUP($A366,Economática!$A$3:$AI$823,24,FALSE)=0,VLOOKUP($A366,Economática!$A$3:$AI$823,24,FALSE)=\"-\"),1/0,VLOOKUP($A366,Economática!$A$3:$AI$823,24,FALSE)))","v":""},{"$f":"IF($A366=\"\",\"\",IF(OR(VLOOKUP($A366,Economática!$A$3:$AI$823,25,FALSE)=0,VLOOKUP($A366,Economática!$A$3:$AI$823,25,FALSE)=\"-\"),1/0,VLOOKUP($A366,Economática!$A$3:$AI$823,25,FALSE)))","v":""},{"$f":"IF($A366=\"\",\"\",IF(ISERROR((F366+VLOOKUP($A366,Economática!$A$3:$AI$823,26,FALSE))/Y366),(F366+VLOOKUP($A366,Economática!$A$3:$AI$823,26,FALSE))/Y366,(F366+VLOOKUP($A366,Economática!$A$3:$AI$823,26,FALSE))/Y366))","v":""},{"$f":"IF($A366=\"\",\"\",IF(OR(-VLOOKUP($A366,Economática!$A$3:$AI$823,27,FALSE)=0,-VLOOKUP($A366,Economática!$A$3:$AI$823,27,FALSE)=\"-\"),1/0,-VLOOKUP($A366,Economática!$A$3:$AI$823,27,FALSE)))","v":""},"",{"$f":"IF($A366=\"\",\"\",IF(OR(VLOOKUP($A366,Economática!$A$3:$AI$823,28,FALSE)=0,VLOOKUP($A366,Economática!$A$3:$AI$823,28,FALSE)=\"-\"),1/0,VLOOKUP($A366,Economática!$A$3:$AI$823,28,FALSE)))","v":""},{"$f":"IF($A366=\"\",\"\",IF(OR(VLOOKUP($A366,Economática!$A$3:$AI$823,29,FALSE)=0,VLOOKUP($A366,Economática!$A$3:$AI$823,29,FALSE)=\"-\"),1/0,VLOOKUP($A366,Economática!$A$3:$AI$823,29,FALSE)))","v":""},{"$f":"IF($A366=\"\",\"\",IF(OR(VLOOKUP($A366,Economática!$A$3:$AI$823,30,FALSE)/E366=0,VLOOKUP($A366,Economática!$A$3:$AI$823,30,FALSE)/E366=\"-\",VLOOKUP($A366,Economática!$A$3:$AI$823,30,FALSE)/E366<33.33%,VLOOKUP($A366,Economática!$A$3:$AI$823,30,FALSE)/E366>100%),1/0,VLOOKUP($A366,Economática!$A$3:$AI$823,30,FALSE)/E366))","v":""},"",{"$f":"IF($A366=\"\",\"\",IF(OR(VLOOKUP($A366,Economática!$A$3:$AI$823,25,FALSE)=0,VLOOKUP($A366,Economática!$A$3:$AI$823,25,FALSE)=\"-\"),1/0,VLOOKUP($A366,Economática!$A$3:$AI$823,25,FALSE)))","v":""},{"$f":"CONCATENATE(Economática!B344,\" \",Economática!C344)","v":" "}]
[{"$f":"IF(Economática!AG345=\"\",\"\",Economática!AG345)","v":""},{"$f":"IF($A367=\"\",\"\",VLOOKUP(VLOOKUP($A367,Economática!$A$3:$AI$823,6,FALSE),Correção!$B$16:$C$36,2,FALSE))","v":""},{"$f":"IF(Economática!B345=\"\",\"\",Economática!B345)","v":""},{"$f":"IF($A367=\"\",\"\",IF(OR(VLOOKUP($A367,Economática!$A$3:$AI$823,8,FALSE)=0,VLOOKUP($A367,Economática!$A$3:$AI$823,8,FALSE)=\"-\"),1/0,VLOOKUP($A367,Economática!$A$3:$AI$823,8,FALSE)))","v":""},{"$f":"IF(A367=\"\",\"\",IF(ISERROR(VLOOKUP(A367,Correção!$B$2:$G$13,9,FALSE)),VLOOKUP($A367,Economática!$A$3:$AI$823,9,FALSE),VLOOKUP(A367,Correção!$B$2:$G$13,9,FALSE)))","v":""},{"$f":"IF($A367=\"\",\"\",Economática!G345)","v":""},{"$f":"IF($A367=\"\",\"\",IF(OR(VLOOKUP($A367,Economática!$A$3:$AI$823,10,FALSE)=0,VLOOKUP($A367,Economática!$A$3:$AI$823,10,FALSE)=\"-\"),1/0,VLOOKUP($A367,Economática!$A$3:$AI$823,10,FALSE)))","v":""},{"$f":"IF($A367=\"\",\"\",IF(OR(VLOOKUP($A367,Economática!$A$3:$AI$823,11,FALSE)=0,VLOOKUP($A367,Economática!$A$3:$AI$823,11,FALSE)=\"-\"),1/0,VLOOKUP($A367,Economática!$A$3:$AI$823,11,FALSE)))","v":""},{"$f":"IF($A367=\"\",\"\",IF(OR(VLOOKUP($A367,Economática!$A$3:$AI$823,12,FALSE)=0,VLOOKUP($A367,Economática!$A$3:$AI$823,12,FALSE)=\"-\"),1/0,VLOOKUP($A367,Economática!$A$3:$AI$823,12,FALSE)))","v":""},{"$f":"IF($A367=\"\",\"\",IF(OR(VLOOKUP($A367,Economática!$A$3:$AI$823,13,FALSE)=0,VLOOKUP($A367,Economática!$A$3:$AI$823,13,FALSE)=\"-\"),1/0,VLOOKUP($A367,Economática!$A$3:$AI$823,13,FALSE)))","v":""},{"$f":"IF($A367=\"\",\"\",IF(OR(VLOOKUP($A367,Economática!$A$3:$AI$823,14,FALSE)=0,VLOOKUP($A367,Economática!$A$3:$AI$823,14,FALSE)=\"-\"),1/0,VLOOKUP($A367,Economática!$A$3:$AI$823,14,FALSE)))","v":""},{"$f":"IF($A367=\"\",\"\",IF(OR(VLOOKUP($A367,Economática!$A$3:$AI$823,15,FALSE)=0,VLOOKUP($A367,Economática!$A$3:$AI$823,15,FALSE)=\"-\"),1/0,VLOOKUP($A367,Economática!$A$3:$AI$823,15,FALSE)))","v":""},{"$f":"IF($A367=\"\",\"\",IF(OR(VLOOKUP($A367,Economática!$A$3:$AI$823,16,FALSE)=0,VLOOKUP($A367,Economática!$A$3:$AI$823,16,FALSE)=\"-\"),1/0,VLOOKUP($A367,Economática!$A$3:$AI$823,16,FALSE)))","v":""},{"$f":"IF($A367=\"\",\"\",IF(OR(VLOOKUP($A367,Economática!$A$3:$AI$823,17,FALSE)=0,VLOOKUP($A367,Economática!$A$3:$AI$823,17,FALSE)=\"-\"),1/0,VLOOKUP($A367,Economática!$A$3:$AI$823,17,FALSE)))","v":""},{"$f":"IF($A367=\"\",\"\",IF(OR(VLOOKUP($A367,Economática!$A$3:$AI$823,18,FALSE)=0,VLOOKUP($A367,Economática!$A$3:$AI$823,18,FALSE)=\"-\"),1/0,VLOOKUP($A367,Economática!$A$3:$AI$823,18,FALSE)))","v":""},{"$f":"IF($A367=\"\",\"\",IF(OR(VLOOKUP($A367,Economática!$A$3:$AI$823,19,FALSE)=0,VLOOKUP($A367,Economática!$A$3:$AI$823,19,FALSE)=\"-\"),1/0,VLOOKUP($A367,Economática!$A$3:$AI$823,19,FALSE)))","v":""},{"$f":"IF($A367=\"\",\"\",VLOOKUP($A367,Economática!$A$3:$AI$823,20,FALSE)/E367)","v":""},"","","",{"$f":"IF($A367=\"\",\"\",IF(OR(VLOOKUP($A367,Economática!$A$3:$AI$823,21,FALSE)/100=0,VLOOKUP($A367,Economática!$A$3:$AI$823,21,FALSE)/100=\"-\"),1/0,VLOOKUP($A367,Economática!$A$3:$AI$823,21,FALSE)/100))","v":""},{"$f":"IF($A367=\"\",\"\",IF(OR(VLOOKUP($A367,Economática!$A$3:$AI$823,22,FALSE)/100=0,VLOOKUP($A367,Economática!$A$3:$AI$823,22,FALSE)/100=\"-\"),1/0,VLOOKUP($A367,Economática!$A$3:$AI$823,22,FALSE)/100))","v":""},{"$f":"IF($A367=\"\",\"\",IF(OR(VLOOKUP($A367,Economática!$A$3:$AI$823,23,FALSE)=0,VLOOKUP($A367,Economática!$A$3:$AI$823,23,FALSE)=\"-\"),1/0,VLOOKUP($A367,Economática!$A$3:$AI$823,23,FALSE)))","v":""},{"$f":"IF($A367=\"\",\"\",IF(OR(VLOOKUP($A367,Economática!$A$3:$AI$823,24,FALSE)=0,VLOOKUP($A367,Economática!$A$3:$AI$823,24,FALSE)=\"-\"),1/0,VLOOKUP($A367,Economática!$A$3:$AI$823,24,FALSE)))","v":""},{"$f":"IF($A367=\"\",\"\",IF(OR(VLOOKUP($A367,Economática!$A$3:$AI$823,25,FALSE)=0,VLOOKUP($A367,Economática!$A$3:$AI$823,25,FALSE)=\"-\"),1/0,VLOOKUP($A367,Economática!$A$3:$AI$823,25,FALSE)))","v":""},{"$f":"IF($A367=\"\",\"\",IF(ISERROR((F367+VLOOKUP($A367,Economática!$A$3:$AI$823,26,FALSE))/Y367),(F367+VLOOKUP($A367,Economática!$A$3:$AI$823,26,FALSE))/Y367,(F367+VLOOKUP($A367,Economática!$A$3:$AI$823,26,FALSE))/Y367))","v":""},{"$f":"IF($A367=\"\",\"\",IF(OR(-VLOOKUP($A367,Economática!$A$3:$AI$823,27,FALSE)=0,-VLOOKUP($A367,Economática!$A$3:$AI$823,27,FALSE)=\"-\"),1/0,-VLOOKUP($A367,Economática!$A$3:$AI$823,27,FALSE)))","v":""},"",{"$f":"IF($A367=\"\",\"\",IF(OR(VLOOKUP($A367,Economática!$A$3:$AI$823,28,FALSE)=0,VLOOKUP($A367,Economática!$A$3:$AI$823,28,FALSE)=\"-\"),1/0,VLOOKUP($A367,Economática!$A$3:$AI$823,28,FALSE)))","v":""},{"$f":"IF($A367=\"\",\"\",IF(OR(VLOOKUP($A367,Economática!$A$3:$AI$823,29,FALSE)=0,VLOOKUP($A367,Economática!$A$3:$AI$823,29,FALSE)=\"-\"),1/0,VLOOKUP($A367,Economática!$A$3:$AI$823,29,FALSE)))","v":""},{"$f":"IF($A367=\"\",\"\",IF(OR(VLOOKUP($A367,Economática!$A$3:$AI$823,30,FALSE)/E367=0,VLOOKUP($A367,Economática!$A$3:$AI$823,30,FALSE)/E367=\"-\",VLOOKUP($A367,Economática!$A$3:$AI$823,30,FALSE)/E367<33.33%,VLOOKUP($A367,Economática!$A$3:$AI$823,30,FALSE)/E367>100%),1/0,VLOOKUP($A367,Economática!$A$3:$AI$823,30,FALSE)/E367))","v":""},"",{"$f":"IF($A367=\"\",\"\",IF(OR(VLOOKUP($A367,Economática!$A$3:$AI$823,25,FALSE)=0,VLOOKUP($A367,Economática!$A$3:$AI$823,25,FALSE)=\"-\"),1/0,VLOOKUP($A367,Economática!$A$3:$AI$823,25,FALSE)))","v":""},{"$f":"CONCATENATE(Economática!B345,\" \",Economática!C345)","v":" "}]
[{"$f":"IF(Economática!AG346=\"\",\"\",Economática!AG346)","v":""},{"$f":"IF($A368=\"\",\"\",VLOOKUP(VLOOKUP($A368,Economática!$A$3:$AI$823,6,FALSE),Correção!$B$16:$C$36,2,FALSE))","v":""},{"$f":"IF(Economática!B346=\"\",\"\",Economática!B346)","v":""},{"$f":"IF($A368=\"\",\"\",IF(OR(VLOOKUP($A368,Economática!$A$3:$AI$823,8,FALSE)=0,VLOOKUP($A368,Economática!$A$3:$AI$823,8,FALSE)=\"-\"),1/0,VLOOKUP($A368,Economática!$A$3:$AI$823,8,FALSE)))","v":""},{"$f":"IF(A368=\"\",\"\",IF(ISERROR(VLOOKUP(A368,Correção!$B$2:$G$13,9,FALSE)),VLOOKUP($A368,Economática!$A$3:$AI$823,9,FALSE),VLOOKUP(A368,Correção!$B$2:$G$13,9,FALSE)))","v":""},{"$f":"IF($A368=\"\",\"\",Economática!G346)","v":""},{"$f":"IF($A368=\"\",\"\",IF(OR(VLOOKUP($A368,Economática!$A$3:$AI$823,10,FALSE)=0,VLOOKUP($A368,Economática!$A$3:$AI$823,10,FALSE)=\"-\"),1/0,VLOOKUP($A368,Economática!$A$3:$AI$823,10,FALSE)))","v":""},{"$f":"IF($A368=\"\",\"\",IF(OR(VLOOKUP($A368,Economática!$A$3:$AI$823,11,FALSE)=0,VLOOKUP($A368,Economática!$A$3:$AI$823,11,FALSE)=\"-\"),1/0,VLOOKUP($A368,Economática!$A$3:$AI$823,11,FALSE)))","v":""},{"$f":"IF($A368=\"\",\"\",IF(OR(VLOOKUP($A368,Economática!$A$3:$AI$823,12,FALSE)=0,VLOOKUP($A368,Economática!$A$3:$AI$823,12,FALSE)=\"-\"),1/0,VLOOKUP($A368,Economática!$A$3:$AI$823,12,FALSE)))","v":""},{"$f":"IF($A368=\"\",\"\",IF(OR(VLOOKUP($A368,Economática!$A$3:$AI$823,13,FALSE)=0,VLOOKUP($A368,Economática!$A$3:$AI$823,13,FALSE)=\"-\"),1/0,VLOOKUP($A368,Economática!$A$3:$AI$823,13,FALSE)))","v":""},{"$f":"IF($A368=\"\",\"\",IF(OR(VLOOKUP($A368,Economática!$A$3:$AI$823,14,FALSE)=0,VLOOKUP($A368,Economática!$A$3:$AI$823,14,FALSE)=\"-\"),1/0,VLOOKUP($A368,Economática!$A$3:$AI$823,14,FALSE)))","v":""},{"$f":"IF($A368=\"\",\"\",IF(OR(VLOOKUP($A368,Economática!$A$3:$AI$823,15,FALSE)=0,VLOOKUP($A368,Economática!$A$3:$AI$823,15,FALSE)=\"-\"),1/0,VLOOKUP($A368,Economática!$A$3:$AI$823,15,FALSE)))","v":""},{"$f":"IF($A368=\"\",\"\",IF(OR(VLOOKUP($A368,Economática!$A$3:$AI$823,16,FALSE)=0,VLOOKUP($A368,Economática!$A$3:$AI$823,16,FALSE)=\"-\"),1/0,VLOOKUP($A368,Economática!$A$3:$AI$823,16,FALSE)))","v":""},{"$f":"IF($A368=\"\",\"\",IF(OR(VLOOKUP($A368,Economática!$A$3:$AI$823,17,FALSE)=0,VLOOKUP($A368,Economática!$A$3:$AI$823,17,FALSE)=\"-\"),1/0,VLOOKUP($A368,Economática!$A$3:$AI$823,17,FALSE)))","v":""},{"$f":"IF($A368=\"\",\"\",IF(OR(VLOOKUP($A368,Economática!$A$3:$AI$823,18,FALSE)=0,VLOOKUP($A368,Economática!$A$3:$AI$823,18,FALSE)=\"-\"),1/0,VLOOKUP($A368,Economática!$A$3:$AI$823,18,FALSE)))","v":""},{"$f":"IF($A368=\"\",\"\",IF(OR(VLOOKUP($A368,Economática!$A$3:$AI$823,19,FALSE)=0,VLOOKUP($A368,Economática!$A$3:$AI$823,19,FALSE)=\"-\"),1/0,VLOOKUP($A368,Economática!$A$3:$AI$823,19,FALSE)))","v":""},{"$f":"IF($A368=\"\",\"\",VLOOKUP($A368,Economática!$A$3:$AI$823,20,FALSE)/E368)","v":""},"","","",{"$f":"IF($A368=\"\",\"\",IF(OR(VLOOKUP($A368,Economática!$A$3:$AI$823,21,FALSE)/100=0,VLOOKUP($A368,Economática!$A$3:$AI$823,21,FALSE)/100=\"-\"),1/0,VLOOKUP($A368,Economática!$A$3:$AI$823,21,FALSE)/100))","v":""},{"$f":"IF($A368=\"\",\"\",IF(OR(VLOOKUP($A368,Economática!$A$3:$AI$823,22,FALSE)/100=0,VLOOKUP($A368,Economática!$A$3:$AI$823,22,FALSE)/100=\"-\"),1/0,VLOOKUP($A368,Economática!$A$3:$AI$823,22,FALSE)/100))","v":""},{"$f":"IF($A368=\"\",\"\",IF(OR(VLOOKUP($A368,Economática!$A$3:$AI$823,23,FALSE)=0,VLOOKUP($A368,Economática!$A$3:$AI$823,23,FALSE)=\"-\"),1/0,VLOOKUP($A368,Economática!$A$3:$AI$823,23,FALSE)))","v":""},{"$f":"IF($A368=\"\",\"\",IF(OR(VLOOKUP($A368,Economática!$A$3:$AI$823,24,FALSE)=0,VLOOKUP($A368,Economática!$A$3:$AI$823,24,FALSE)=\"-\"),1/0,VLOOKUP($A368,Economática!$A$3:$AI$823,24,FALSE)))","v":""},{"$f":"IF($A368=\"\",\"\",IF(OR(VLOOKUP($A368,Economática!$A$3:$AI$823,25,FALSE)=0,VLOOKUP($A368,Economática!$A$3:$AI$823,25,FALSE)=\"-\"),1/0,VLOOKUP($A368,Economática!$A$3:$AI$823,25,FALSE)))","v":""},{"$f":"IF($A368=\"\",\"\",IF(ISERROR((F368+VLOOKUP($A368,Economática!$A$3:$AI$823,26,FALSE))/Y368),(F368+VLOOKUP($A368,Economática!$A$3:$AI$823,26,FALSE))/Y368,(F368+VLOOKUP($A368,Economática!$A$3:$AI$823,26,FALSE))/Y368))","v":""},{"$f":"IF($A368=\"\",\"\",IF(OR(-VLOOKUP($A368,Economática!$A$3:$AI$823,27,FALSE)=0,-VLOOKUP($A368,Economática!$A$3:$AI$823,27,FALSE)=\"-\"),1/0,-VLOOKUP($A368,Economática!$A$3:$AI$823,27,FALSE)))","v":""},"",{"$f":"IF($A368=\"\",\"\",IF(OR(VLOOKUP($A368,Economática!$A$3:$AI$823,28,FALSE)=0,VLOOKUP($A368,Economática!$A$3:$AI$823,28,FALSE)=\"-\"),1/0,VLOOKUP($A368,Economática!$A$3:$AI$823,28,FALSE)))","v":""},{"$f":"IF($A368=\"\",\"\",IF(OR(VLOOKUP($A368,Economática!$A$3:$AI$823,29,FALSE)=0,VLOOKUP($A368,Economática!$A$3:$AI$823,29,FALSE)=\"-\"),1/0,VLOOKUP($A368,Economática!$A$3:$AI$823,29,FALSE)))","v":""},{"$f":"IF($A368=\"\",\"\",IF(OR(VLOOKUP($A368,Economática!$A$3:$AI$823,30,FALSE)/E368=0,VLOOKUP($A368,Economática!$A$3:$AI$823,30,FALSE)/E368=\"-\",VLOOKUP($A368,Economática!$A$3:$AI$823,30,FALSE)/E368<33.33%,VLOOKUP($A368,Economática!$A$3:$AI$823,30,FALSE)/E368>100%),1/0,VLOOKUP($A368,Economática!$A$3:$AI$823,30,FALSE)/E368))","v":""},"",{"$f":"IF($A368=\"\",\"\",IF(OR(VLOOKUP($A368,Economática!$A$3:$AI$823,25,FALSE)=0,VLOOKUP($A368,Economática!$A$3:$AI$823,25,FALSE)=\"-\"),1/0,VLOOKUP($A368,Economática!$A$3:$AI$823,25,FALSE)))","v":""},{"$f":"CONCATENATE(Economática!B346,\" \",Economática!C346)","v":" "}]
[{"$f":"IF(Economática!AG347=\"\",\"\",Economática!AG347)","v":""},{"$f":"IF($A369=\"\",\"\",VLOOKUP(VLOOKUP($A369,Economática!$A$3:$AI$823,6,FALSE),Correção!$B$16:$C$36,2,FALSE))","v":""},{"$f":"IF(Economática!B347=\"\",\"\",Economática!B347)","v":""},{"$f":"IF($A369=\"\",\"\",IF(OR(VLOOKUP($A369,Economática!$A$3:$AI$823,8,FALSE)=0,VLOOKUP($A369,Economática!$A$3:$AI$823,8,FALSE)=\"-\"),1/0,VLOOKUP($A369,Economática!$A$3:$AI$823,8,FALSE)))","v":""},{"$f":"IF(A369=\"\",\"\",IF(ISERROR(VLOOKUP(A369,Correção!$B$2:$G$13,9,FALSE)),VLOOKUP($A369,Economática!$A$3:$AI$823,9,FALSE),VLOOKUP(A369,Correção!$B$2:$G$13,9,FALSE)))","v":""},{"$f":"IF($A369=\"\",\"\",Economática!G347)","v":""},{"$f":"IF($A369=\"\",\"\",IF(OR(VLOOKUP($A369,Economática!$A$3:$AI$823,10,FALSE)=0,VLOOKUP($A369,Economática!$A$3:$AI$823,10,FALSE)=\"-\"),1/0,VLOOKUP($A369,Economática!$A$3:$AI$823,10,FALSE)))","v":""},{"$f":"IF($A369=\"\",\"\",IF(OR(VLOOKUP($A369,Economática!$A$3:$AI$823,11,FALSE)=0,VLOOKUP($A369,Economática!$A$3:$AI$823,11,FALSE)=\"-\"),1/0,VLOOKUP($A369,Economática!$A$3:$AI$823,11,FALSE)))","v":""},{"$f":"IF($A369=\"\",\"\",IF(OR(VLOOKUP($A369,Economática!$A$3:$AI$823,12,FALSE)=0,VLOOKUP($A369,Economática!$A$3:$AI$823,12,FALSE)=\"-\"),1/0,VLOOKUP($A369,Economática!$A$3:$AI$823,12,FALSE)))","v":""},{"$f":"IF($A369=\"\",\"\",IF(OR(VLOOKUP($A369,Economática!$A$3:$AI$823,13,FALSE)=0,VLOOKUP($A369,Economática!$A$3:$AI$823,13,FALSE)=\"-\"),1/0,VLOOKUP($A369,Economática!$A$3:$AI$823,13,FALSE)))","v":""},{"$f":"IF($A369=\"\",\"\",IF(OR(VLOOKUP($A369,Economática!$A$3:$AI$823,14,FALSE)=0,VLOOKUP($A369,Economática!$A$3:$AI$823,14,FALSE)=\"-\"),1/0,VLOOKUP($A369,Economática!$A$3:$AI$823,14,FALSE)))","v":""},{"$f":"IF($A369=\"\",\"\",IF(OR(VLOOKUP($A369,Economática!$A$3:$AI$823,15,FALSE)=0,VLOOKUP($A369,Economática!$A$3:$AI$823,15,FALSE)=\"-\"),1/0,VLOOKUP($A369,Economática!$A$3:$AI$823,15,FALSE)))","v":""},{"$f":"IF($A369=\"\",\"\",IF(OR(VLOOKUP($A369,Economática!$A$3:$AI$823,16,FALSE)=0,VLOOKUP($A369,Economática!$A$3:$AI$823,16,FALSE)=\"-\"),1/0,VLOOKUP($A369,Economática!$A$3:$AI$823,16,FALSE)))","v":""},{"$f":"IF($A369=\"\",\"\",IF(OR(VLOOKUP($A369,Economática!$A$3:$AI$823,17,FALSE)=0,VLOOKUP($A369,Economática!$A$3:$AI$823,17,FALSE)=\"-\"),1/0,VLOOKUP($A369,Economática!$A$3:$AI$823,17,FALSE)))","v":""},{"$f":"IF($A369=\"\",\"\",IF(OR(VLOOKUP($A369,Economática!$A$3:$AI$823,18,FALSE)=0,VLOOKUP($A369,Economática!$A$3:$AI$823,18,FALSE)=\"-\"),1/0,VLOOKUP($A369,Economática!$A$3:$AI$823,18,FALSE)))","v":""},{"$f":"IF($A369=\"\",\"\",IF(OR(VLOOKUP($A369,Economática!$A$3:$AI$823,19,FALSE)=0,VLOOKUP($A369,Economática!$A$3:$AI$823,19,FALSE)=\"-\"),1/0,VLOOKUP($A369,Economática!$A$3:$AI$823,19,FALSE)))","v":""},{"$f":"IF($A369=\"\",\"\",VLOOKUP($A369,Economática!$A$3:$AI$823,20,FALSE)/E369)","v":""},"","","",{"$f":"IF($A369=\"\",\"\",IF(OR(VLOOKUP($A369,Economática!$A$3:$AI$823,21,FALSE)/100=0,VLOOKUP($A369,Economática!$A$3:$AI$823,21,FALSE)/100=\"-\"),1/0,VLOOKUP($A369,Economática!$A$3:$AI$823,21,FALSE)/100))","v":""},{"$f":"IF($A369=\"\",\"\",IF(OR(VLOOKUP($A369,Economática!$A$3:$AI$823,22,FALSE)/100=0,VLOOKUP($A369,Economática!$A$3:$AI$823,22,FALSE)/100=\"-\"),1/0,VLOOKUP($A369,Economática!$A$3:$AI$823,22,FALSE)/100))","v":""},{"$f":"IF($A369=\"\",\"\",IF(OR(VLOOKUP($A369,Economática!$A$3:$AI$823,23,FALSE)=0,VLOOKUP($A369,Economática!$A$3:$AI$823,23,FALSE)=\"-\"),1/0,VLOOKUP($A369,Economática!$A$3:$AI$823,23,FALSE)))","v":""},{"$f":"IF($A369=\"\",\"\",IF(OR(VLOOKUP($A369,Economática!$A$3:$AI$823,24,FALSE)=0,VLOOKUP($A369,Economática!$A$3:$AI$823,24,FALSE)=\"-\"),1/0,VLOOKUP($A369,Economática!$A$3:$AI$823,24,FALSE)))","v":""},{"$f":"IF($A369=\"\",\"\",IF(OR(VLOOKUP($A369,Economática!$A$3:$AI$823,25,FALSE)=0,VLOOKUP($A369,Economática!$A$3:$AI$823,25,FALSE)=\"-\"),1/0,VLOOKUP($A369,Economática!$A$3:$AI$823,25,FALSE)))","v":""},{"$f":"IF($A369=\"\",\"\",IF(ISERROR((F369+VLOOKUP($A369,Economática!$A$3:$AI$823,26,FALSE))/Y369),(F369+VLOOKUP($A369,Economática!$A$3:$AI$823,26,FALSE))/Y369,(F369+VLOOKUP($A369,Economática!$A$3:$AI$823,26,FALSE))/Y369))","v":""},{"$f":"IF($A369=\"\",\"\",IF(OR(-VLOOKUP($A369,Economática!$A$3:$AI$823,27,FALSE)=0,-VLOOKUP($A369,Economática!$A$3:$AI$823,27,FALSE)=\"-\"),1/0,-VLOOKUP($A369,Economática!$A$3:$AI$823,27,FALSE)))","v":""},"",{"$f":"IF($A369=\"\",\"\",IF(OR(VLOOKUP($A369,Economática!$A$3:$AI$823,28,FALSE)=0,VLOOKUP($A369,Economática!$A$3:$AI$823,28,FALSE)=\"-\"),1/0,VLOOKUP($A369,Economática!$A$3:$AI$823,28,FALSE)))","v":""},{"$f":"IF($A369=\"\",\"\",IF(OR(VLOOKUP($A369,Economática!$A$3:$AI$823,29,FALSE)=0,VLOOKUP($A369,Economática!$A$3:$AI$823,29,FALSE)=\"-\"),1/0,VLOOKUP($A369,Economática!$A$3:$AI$823,29,FALSE)))","v":""},{"$f":"IF($A369=\"\",\"\",IF(OR(VLOOKUP($A369,Economática!$A$3:$AI$823,30,FALSE)/E369=0,VLOOKUP($A369,Economática!$A$3:$AI$823,30,FALSE)/E369=\"-\",VLOOKUP($A369,Economática!$A$3:$AI$823,30,FALSE)/E369<33.33%,VLOOKUP($A369,Economática!$A$3:$AI$823,30,FALSE)/E369>100%),1/0,VLOOKUP($A369,Economática!$A$3:$AI$823,30,FALSE)/E369))","v":""},"",{"$f":"IF($A369=\"\",\"\",IF(OR(VLOOKUP($A369,Economática!$A$3:$AI$823,25,FALSE)=0,VLOOKUP($A369,Economática!$A$3:$AI$823,25,FALSE)=\"-\"),1/0,VLOOKUP($A369,Economática!$A$3:$AI$823,25,FALSE)))","v":""},{"$f":"CONCATENATE(Economática!B347,\" \",Economática!C347)","v":" "}]
[{"$f":"IF(Economática!AG348=\"\",\"\",Economática!AG348)","v":""},{"$f":"IF($A370=\"\",\"\",VLOOKUP(VLOOKUP($A370,Economática!$A$3:$AI$823,6,FALSE),Correção!$B$16:$C$36,2,FALSE))","v":""},{"$f":"IF(Economática!B348=\"\",\"\",Economática!B348)","v":""},{"$f":"IF($A370=\"\",\"\",IF(OR(VLOOKUP($A370,Economática!$A$3:$AI$823,8,FALSE)=0,VLOOKUP($A370,Economática!$A$3:$AI$823,8,FALSE)=\"-\"),1/0,VLOOKUP($A370,Economática!$A$3:$AI$823,8,FALSE)))","v":""},{"$f":"IF(A370=\"\",\"\",IF(ISERROR(VLOOKUP(A370,Correção!$B$2:$G$13,9,FALSE)),VLOOKUP($A370,Economática!$A$3:$AI$823,9,FALSE),VLOOKUP(A370,Correção!$B$2:$G$13,9,FALSE)))","v":""},{"$f":"IF($A370=\"\",\"\",Economática!G348)","v":""},{"$f":"IF($A370=\"\",\"\",IF(OR(VLOOKUP($A370,Economática!$A$3:$AI$823,10,FALSE)=0,VLOOKUP($A370,Economática!$A$3:$AI$823,10,FALSE)=\"-\"),1/0,VLOOKUP($A370,Economática!$A$3:$AI$823,10,FALSE)))","v":""},{"$f":"IF($A370=\"\",\"\",IF(OR(VLOOKUP($A370,Economática!$A$3:$AI$823,11,FALSE)=0,VLOOKUP($A370,Economática!$A$3:$AI$823,11,FALSE)=\"-\"),1/0,VLOOKUP($A370,Economática!$A$3:$AI$823,11,FALSE)))","v":""},{"$f":"IF($A370=\"\",\"\",IF(OR(VLOOKUP($A370,Economática!$A$3:$AI$823,12,FALSE)=0,VLOOKUP($A370,Economática!$A$3:$AI$823,12,FALSE)=\"-\"),1/0,VLOOKUP($A370,Economática!$A$3:$AI$823,12,FALSE)))","v":""},{"$f":"IF($A370=\"\",\"\",IF(OR(VLOOKUP($A370,Economática!$A$3:$AI$823,13,FALSE)=0,VLOOKUP($A370,Economática!$A$3:$AI$823,13,FALSE)=\"-\"),1/0,VLOOKUP($A370,Economática!$A$3:$AI$823,13,FALSE)))","v":""},{"$f":"IF($A370=\"\",\"\",IF(OR(VLOOKUP($A370,Economática!$A$3:$AI$823,14,FALSE)=0,VLOOKUP($A370,Economática!$A$3:$AI$823,14,FALSE)=\"-\"),1/0,VLOOKUP($A370,Economática!$A$3:$AI$823,14,FALSE)))","v":""},{"$f":"IF($A370=\"\",\"\",IF(OR(VLOOKUP($A370,Economática!$A$3:$AI$823,15,FALSE)=0,VLOOKUP($A370,Economática!$A$3:$AI$823,15,FALSE)=\"-\"),1/0,VLOOKUP($A370,Economática!$A$3:$AI$823,15,FALSE)))","v":""},{"$f":"IF($A370=\"\",\"\",IF(OR(VLOOKUP($A370,Economática!$A$3:$AI$823,16,FALSE)=0,VLOOKUP($A370,Economática!$A$3:$AI$823,16,FALSE)=\"-\"),1/0,VLOOKUP($A370,Economática!$A$3:$AI$823,16,FALSE)))","v":""},{"$f":"IF($A370=\"\",\"\",IF(OR(VLOOKUP($A370,Economática!$A$3:$AI$823,17,FALSE)=0,VLOOKUP($A370,Economática!$A$3:$AI$823,17,FALSE)=\"-\"),1/0,VLOOKUP($A370,Economática!$A$3:$AI$823,17,FALSE)))","v":""},{"$f":"IF($A370=\"\",\"\",IF(OR(VLOOKUP($A370,Economática!$A$3:$AI$823,18,FALSE)=0,VLOOKUP($A370,Economática!$A$3:$AI$823,18,FALSE)=\"-\"),1/0,VLOOKUP($A370,Economática!$A$3:$AI$823,18,FALSE)))","v":""},{"$f":"IF($A370=\"\",\"\",IF(OR(VLOOKUP($A370,Economática!$A$3:$AI$823,19,FALSE)=0,VLOOKUP($A370,Economática!$A$3:$AI$823,19,FALSE)=\"-\"),1/0,VLOOKUP($A370,Economática!$A$3:$AI$823,19,FALSE)))","v":""},{"$f":"IF($A370=\"\",\"\",VLOOKUP($A370,Economática!$A$3:$AI$823,20,FALSE)/E370)","v":""},"","","",{"$f":"IF($A370=\"\",\"\",IF(OR(VLOOKUP($A370,Economática!$A$3:$AI$823,21,FALSE)/100=0,VLOOKUP($A370,Economática!$A$3:$AI$823,21,FALSE)/100=\"-\"),1/0,VLOOKUP($A370,Economática!$A$3:$AI$823,21,FALSE)/100))","v":""},{"$f":"IF($A370=\"\",\"\",IF(OR(VLOOKUP($A370,Economática!$A$3:$AI$823,22,FALSE)/100=0,VLOOKUP($A370,Economática!$A$3:$AI$823,22,FALSE)/100=\"-\"),1/0,VLOOKUP($A370,Economática!$A$3:$AI$823,22,FALSE)/100))","v":""},{"$f":"IF($A370=\"\",\"\",IF(OR(VLOOKUP($A370,Economática!$A$3:$AI$823,23,FALSE)=0,VLOOKUP($A370,Economática!$A$3:$AI$823,23,FALSE)=\"-\"),1/0,VLOOKUP($A370,Economática!$A$3:$AI$823,23,FALSE)))","v":""},{"$f":"IF($A370=\"\",\"\",IF(OR(VLOOKUP($A370,Economática!$A$3:$AI$823,24,FALSE)=0,VLOOKUP($A370,Economática!$A$3:$AI$823,24,FALSE)=\"-\"),1/0,VLOOKUP($A370,Economática!$A$3:$AI$823,24,FALSE)))","v":""},{"$f":"IF($A370=\"\",\"\",IF(OR(VLOOKUP($A370,Economática!$A$3:$AI$823,25,FALSE)=0,VLOOKUP($A370,Economática!$A$3:$AI$823,25,FALSE)=\"-\"),1/0,VLOOKUP($A370,Economática!$A$3:$AI$823,25,FALSE)))","v":""},{"$f":"IF($A370=\"\",\"\",IF(ISERROR((F370+VLOOKUP($A370,Economática!$A$3:$AI$823,26,FALSE))/Y370),(F370+VLOOKUP($A370,Economática!$A$3:$AI$823,26,FALSE))/Y370,(F370+VLOOKUP($A370,Economática!$A$3:$AI$823,26,FALSE))/Y370))","v":""},{"$f":"IF($A370=\"\",\"\",IF(OR(-VLOOKUP($A370,Economática!$A$3:$AI$823,27,FALSE)=0,-VLOOKUP($A370,Economática!$A$3:$AI$823,27,FALSE)=\"-\"),1/0,-VLOOKUP($A370,Economática!$A$3:$AI$823,27,FALSE)))","v":""},"",{"$f":"IF($A370=\"\",\"\",IF(OR(VLOOKUP($A370,Economática!$A$3:$AI$823,28,FALSE)=0,VLOOKUP($A370,Economática!$A$3:$AI$823,28,FALSE)=\"-\"),1/0,VLOOKUP($A370,Economática!$A$3:$AI$823,28,FALSE)))","v":""},{"$f":"IF($A370=\"\",\"\",IF(OR(VLOOKUP($A370,Economática!$A$3:$AI$823,29,FALSE)=0,VLOOKUP($A370,Economática!$A$3:$AI$823,29,FALSE)=\"-\"),1/0,VLOOKUP($A370,Economática!$A$3:$AI$823,29,FALSE)))","v":""},{"$f":"IF($A370=\"\",\"\",IF(OR(VLOOKUP($A370,Economática!$A$3:$AI$823,30,FALSE)/E370=0,VLOOKUP($A370,Economática!$A$3:$AI$823,30,FALSE)/E370=\"-\",VLOOKUP($A370,Economática!$A$3:$AI$823,30,FALSE)/E370<33.33%,VLOOKUP($A370,Economática!$A$3:$AI$823,30,FALSE)/E370>100%),1/0,VLOOKUP($A370,Economática!$A$3:$AI$823,30,FALSE)/E370))","v":""},"",{"$f":"IF($A370=\"\",\"\",IF(OR(VLOOKUP($A370,Economática!$A$3:$AI$823,25,FALSE)=0,VLOOKUP($A370,Economática!$A$3:$AI$823,25,FALSE)=\"-\"),1/0,VLOOKUP($A370,Economática!$A$3:$AI$823,25,FALSE)))","v":""},{"$f":"CONCATENATE(Economática!B348,\" \",Economática!C348)","v":" "}]
[{"$f":"IF(Economática!AG349=\"\",\"\",Economática!AG349)","v":""},{"$f":"IF($A371=\"\",\"\",VLOOKUP(VLOOKUP($A371,Economática!$A$3:$AI$823,6,FALSE),Correção!$B$16:$C$36,2,FALSE))","v":""},{"$f":"IF(Economática!B349=\"\",\"\",Economática!B349)","v":""},{"$f":"IF($A371=\"\",\"\",IF(OR(VLOOKUP($A371,Economática!$A$3:$AI$823,8,FALSE)=0,VLOOKUP($A371,Economática!$A$3:$AI$823,8,FALSE)=\"-\"),1/0,VLOOKUP($A371,Economática!$A$3:$AI$823,8,FALSE)))","v":""},{"$f":"IF(A371=\"\",\"\",IF(ISERROR(VLOOKUP(A371,Correção!$B$2:$G$13,9,FALSE)),VLOOKUP($A371,Economática!$A$3:$AI$823,9,FALSE),VLOOKUP(A371,Correção!$B$2:$G$13,9,FALSE)))","v":""},{"$f":"IF($A371=\"\",\"\",Economática!G349)","v":""},{"$f":"IF($A371=\"\",\"\",IF(OR(VLOOKUP($A371,Economática!$A$3:$AI$823,10,FALSE)=0,VLOOKUP($A371,Economática!$A$3:$AI$823,10,FALSE)=\"-\"),1/0,VLOOKUP($A371,Economática!$A$3:$AI$823,10,FALSE)))","v":""},{"$f":"IF($A371=\"\",\"\",IF(OR(VLOOKUP($A371,Economática!$A$3:$AI$823,11,FALSE)=0,VLOOKUP($A371,Economática!$A$3:$AI$823,11,FALSE)=\"-\"),1/0,VLOOKUP($A371,Economática!$A$3:$AI$823,11,FALSE)))","v":""},{"$f":"IF($A371=\"\",\"\",IF(OR(VLOOKUP($A371,Economática!$A$3:$AI$823,12,FALSE)=0,VLOOKUP($A371,Economática!$A$3:$AI$823,12,FALSE)=\"-\"),1/0,VLOOKUP($A371,Economática!$A$3:$AI$823,12,FALSE)))","v":""},{"$f":"IF($A371=\"\",\"\",IF(OR(VLOOKUP($A371,Economática!$A$3:$AI$823,13,FALSE)=0,VLOOKUP($A371,Economática!$A$3:$AI$823,13,FALSE)=\"-\"),1/0,VLOOKUP($A371,Economática!$A$3:$AI$823,13,FALSE)))","v":""},{"$f":"IF($A371=\"\",\"\",IF(OR(VLOOKUP($A371,Economática!$A$3:$AI$823,14,FALSE)=0,VLOOKUP($A371,Economática!$A$3:$AI$823,14,FALSE)=\"-\"),1/0,VLOOKUP($A371,Economática!$A$3:$AI$823,14,FALSE)))","v":""},{"$f":"IF($A371=\"\",\"\",IF(OR(VLOOKUP($A371,Economática!$A$3:$AI$823,15,FALSE)=0,VLOOKUP($A371,Economática!$A$3:$AI$823,15,FALSE)=\"-\"),1/0,VLOOKUP($A371,Economática!$A$3:$AI$823,15,FALSE)))","v":""},{"$f":"IF($A371=\"\",\"\",IF(OR(VLOOKUP($A371,Economática!$A$3:$AI$823,16,FALSE)=0,VLOOKUP($A371,Economática!$A$3:$AI$823,16,FALSE)=\"-\"),1/0,VLOOKUP($A371,Economática!$A$3:$AI$823,16,FALSE)))","v":""},{"$f":"IF($A371=\"\",\"\",IF(OR(VLOOKUP($A371,Economática!$A$3:$AI$823,17,FALSE)=0,VLOOKUP($A371,Economática!$A$3:$AI$823,17,FALSE)=\"-\"),1/0,VLOOKUP($A371,Economática!$A$3:$AI$823,17,FALSE)))","v":""},{"$f":"IF($A371=\"\",\"\",IF(OR(VLOOKUP($A371,Economática!$A$3:$AI$823,18,FALSE)=0,VLOOKUP($A371,Economática!$A$3:$AI$823,18,FALSE)=\"-\"),1/0,VLOOKUP($A371,Economática!$A$3:$AI$823,18,FALSE)))","v":""},{"$f":"IF($A371=\"\",\"\",IF(OR(VLOOKUP($A371,Economática!$A$3:$AI$823,19,FALSE)=0,VLOOKUP($A371,Economática!$A$3:$AI$823,19,FALSE)=\"-\"),1/0,VLOOKUP($A371,Economática!$A$3:$AI$823,19,FALSE)))","v":""},{"$f":"IF($A371=\"\",\"\",VLOOKUP($A371,Economática!$A$3:$AI$823,20,FALSE)/E371)","v":""},"","","",{"$f":"IF($A371=\"\",\"\",IF(OR(VLOOKUP($A371,Economática!$A$3:$AI$823,21,FALSE)/100=0,VLOOKUP($A371,Economática!$A$3:$AI$823,21,FALSE)/100=\"-\"),1/0,VLOOKUP($A371,Economática!$A$3:$AI$823,21,FALSE)/100))","v":""},{"$f":"IF($A371=\"\",\"\",IF(OR(VLOOKUP($A371,Economática!$A$3:$AI$823,22,FALSE)/100=0,VLOOKUP($A371,Economática!$A$3:$AI$823,22,FALSE)/100=\"-\"),1/0,VLOOKUP($A371,Economática!$A$3:$AI$823,22,FALSE)/100))","v":""},{"$f":"IF($A371=\"\",\"\",IF(OR(VLOOKUP($A371,Economática!$A$3:$AI$823,23,FALSE)=0,VLOOKUP($A371,Economática!$A$3:$AI$823,23,FALSE)=\"-\"),1/0,VLOOKUP($A371,Economática!$A$3:$AI$823,23,FALSE)))","v":""},{"$f":"IF($A371=\"\",\"\",IF(OR(VLOOKUP($A371,Economática!$A$3:$AI$823,24,FALSE)=0,VLOOKUP($A371,Economática!$A$3:$AI$823,24,FALSE)=\"-\"),1/0,VLOOKUP($A371,Economática!$A$3:$AI$823,24,FALSE)))","v":""},{"$f":"IF($A371=\"\",\"\",IF(OR(VLOOKUP($A371,Economática!$A$3:$AI$823,25,FALSE)=0,VLOOKUP($A371,Economática!$A$3:$AI$823,25,FALSE)=\"-\"),1/0,VLOOKUP($A371,Economática!$A$3:$AI$823,25,FALSE)))","v":""},{"$f":"IF($A371=\"\",\"\",IF(ISERROR((F371+VLOOKUP($A371,Economática!$A$3:$AI$823,26,FALSE))/Y371),(F371+VLOOKUP($A371,Economática!$A$3:$AI$823,26,FALSE))/Y371,(F371+VLOOKUP($A371,Economática!$A$3:$AI$823,26,FALSE))/Y371))","v":""},{"$f":"IF($A371=\"\",\"\",IF(OR(-VLOOKUP($A371,Economática!$A$3:$AI$823,27,FALSE)=0,-VLOOKUP($A371,Economática!$A$3:$AI$823,27,FALSE)=\"-\"),1/0,-VLOOKUP($A371,Economática!$A$3:$AI$823,27,FALSE)))","v":""},"",{"$f":"IF($A371=\"\",\"\",IF(OR(VLOOKUP($A371,Economática!$A$3:$AI$823,28,FALSE)=0,VLOOKUP($A371,Economática!$A$3:$AI$823,28,FALSE)=\"-\"),1/0,VLOOKUP($A371,Economática!$A$3:$AI$823,28,FALSE)))","v":""},{"$f":"IF($A371=\"\",\"\",IF(OR(VLOOKUP($A371,Economática!$A$3:$AI$823,29,FALSE)=0,VLOOKUP($A371,Economática!$A$3:$AI$823,29,FALSE)=\"-\"),1/0,VLOOKUP($A371,Economática!$A$3:$AI$823,29,FALSE)))","v":""},{"$f":"IF($A371=\"\",\"\",IF(OR(VLOOKUP($A371,Economática!$A$3:$AI$823,30,FALSE)/E371=0,VLOOKUP($A371,Economática!$A$3:$AI$823,30,FALSE)/E371=\"-\",VLOOKUP($A371,Economática!$A$3:$AI$823,30,FALSE)/E371<33.33%,VLOOKUP($A371,Economática!$A$3:$AI$823,30,FALSE)/E371>100%),1/0,VLOOKUP($A371,Economática!$A$3:$AI$823,30,FALSE)/E371))","v":""},"",{"$f":"IF($A371=\"\",\"\",IF(OR(VLOOKUP($A371,Economática!$A$3:$AI$823,25,FALSE)=0,VLOOKUP($A371,Economática!$A$3:$AI$823,25,FALSE)=\"-\"),1/0,VLOOKUP($A371,Economática!$A$3:$AI$823,25,FALSE)))","v":""},{"$f":"CONCATENATE(Economática!B349,\" \",Economática!C349)","v":" "}]
[{"$f":"IF(Economática!AG350=\"\",\"\",Economática!AG350)","v":""},{"$f":"IF($A372=\"\",\"\",VLOOKUP(VLOOKUP($A372,Economática!$A$3:$AI$823,6,FALSE),Correção!$B$16:$C$36,2,FALSE))","v":""},{"$f":"IF(Economática!B350=\"\",\"\",Economática!B350)","v":""},{"$f":"IF($A372=\"\",\"\",IF(OR(VLOOKUP($A372,Economática!$A$3:$AI$823,8,FALSE)=0,VLOOKUP($A372,Economática!$A$3:$AI$823,8,FALSE)=\"-\"),1/0,VLOOKUP($A372,Economática!$A$3:$AI$823,8,FALSE)))","v":""},{"$f":"IF(A372=\"\",\"\",IF(ISERROR(VLOOKUP(A372,Correção!$B$2:$G$13,9,FALSE)),VLOOKUP($A372,Economática!$A$3:$AI$823,9,FALSE),VLOOKUP(A372,Correção!$B$2:$G$13,9,FALSE)))","v":""},{"$f":"IF($A372=\"\",\"\",Economática!G350)","v":""},{"$f":"IF($A372=\"\",\"\",IF(OR(VLOOKUP($A372,Economática!$A$3:$AI$823,10,FALSE)=0,VLOOKUP($A372,Economática!$A$3:$AI$823,10,FALSE)=\"-\"),1/0,VLOOKUP($A372,Economática!$A$3:$AI$823,10,FALSE)))","v":""},{"$f":"IF($A372=\"\",\"\",IF(OR(VLOOKUP($A372,Economática!$A$3:$AI$823,11,FALSE)=0,VLOOKUP($A372,Economática!$A$3:$AI$823,11,FALSE)=\"-\"),1/0,VLOOKUP($A372,Economática!$A$3:$AI$823,11,FALSE)))","v":""},{"$f":"IF($A372=\"\",\"\",IF(OR(VLOOKUP($A372,Economática!$A$3:$AI$823,12,FALSE)=0,VLOOKUP($A372,Economática!$A$3:$AI$823,12,FALSE)=\"-\"),1/0,VLOOKUP($A372,Economática!$A$3:$AI$823,12,FALSE)))","v":""},{"$f":"IF($A372=\"\",\"\",IF(OR(VLOOKUP($A372,Economática!$A$3:$AI$823,13,FALSE)=0,VLOOKUP($A372,Economática!$A$3:$AI$823,13,FALSE)=\"-\"),1/0,VLOOKUP($A372,Economática!$A$3:$AI$823,13,FALSE)))","v":""},{"$f":"IF($A372=\"\",\"\",IF(OR(VLOOKUP($A372,Economática!$A$3:$AI$823,14,FALSE)=0,VLOOKUP($A372,Economática!$A$3:$AI$823,14,FALSE)=\"-\"),1/0,VLOOKUP($A372,Economática!$A$3:$AI$823,14,FALSE)))","v":""},{"$f":"IF($A372=\"\",\"\",IF(OR(VLOOKUP($A372,Economática!$A$3:$AI$823,15,FALSE)=0,VLOOKUP($A372,Economática!$A$3:$AI$823,15,FALSE)=\"-\"),1/0,VLOOKUP($A372,Economática!$A$3:$AI$823,15,FALSE)))","v":""},{"$f":"IF($A372=\"\",\"\",IF(OR(VLOOKUP($A372,Economática!$A$3:$AI$823,16,FALSE)=0,VLOOKUP($A372,Economática!$A$3:$AI$823,16,FALSE)=\"-\"),1/0,VLOOKUP($A372,Economática!$A$3:$AI$823,16,FALSE)))","v":""},{"$f":"IF($A372=\"\",\"\",IF(OR(VLOOKUP($A372,Economática!$A$3:$AI$823,17,FALSE)=0,VLOOKUP($A372,Economática!$A$3:$AI$823,17,FALSE)=\"-\"),1/0,VLOOKUP($A372,Economática!$A$3:$AI$823,17,FALSE)))","v":""},{"$f":"IF($A372=\"\",\"\",IF(OR(VLOOKUP($A372,Economática!$A$3:$AI$823,18,FALSE)=0,VLOOKUP($A372,Economática!$A$3:$AI$823,18,FALSE)=\"-\"),1/0,VLOOKUP($A372,Economática!$A$3:$AI$823,18,FALSE)))","v":""},{"$f":"IF($A372=\"\",\"\",IF(OR(VLOOKUP($A372,Economática!$A$3:$AI$823,19,FALSE)=0,VLOOKUP($A372,Economática!$A$3:$AI$823,19,FALSE)=\"-\"),1/0,VLOOKUP($A372,Economática!$A$3:$AI$823,19,FALSE)))","v":""},{"$f":"IF($A372=\"\",\"\",VLOOKUP($A372,Economática!$A$3:$AI$823,20,FALSE)/E372)","v":""},"","","",{"$f":"IF($A372=\"\",\"\",IF(OR(VLOOKUP($A372,Economática!$A$3:$AI$823,21,FALSE)/100=0,VLOOKUP($A372,Economática!$A$3:$AI$823,21,FALSE)/100=\"-\"),1/0,VLOOKUP($A372,Economática!$A$3:$AI$823,21,FALSE)/100))","v":""},{"$f":"IF($A372=\"\",\"\",IF(OR(VLOOKUP($A372,Economática!$A$3:$AI$823,22,FALSE)/100=0,VLOOKUP($A372,Economática!$A$3:$AI$823,22,FALSE)/100=\"-\"),1/0,VLOOKUP($A372,Economática!$A$3:$AI$823,22,FALSE)/100))","v":""},{"$f":"IF($A372=\"\",\"\",IF(OR(VLOOKUP($A372,Economática!$A$3:$AI$823,23,FALSE)=0,VLOOKUP($A372,Economática!$A$3:$AI$823,23,FALSE)=\"-\"),1/0,VLOOKUP($A372,Economática!$A$3:$AI$823,23,FALSE)))","v":""},{"$f":"IF($A372=\"\",\"\",IF(OR(VLOOKUP($A372,Economática!$A$3:$AI$823,24,FALSE)=0,VLOOKUP($A372,Economática!$A$3:$AI$823,24,FALSE)=\"-\"),1/0,VLOOKUP($A372,Economática!$A$3:$AI$823,24,FALSE)))","v":""},{"$f":"IF($A372=\"\",\"\",IF(OR(VLOOKUP($A372,Economática!$A$3:$AI$823,25,FALSE)=0,VLOOKUP($A372,Economática!$A$3:$AI$823,25,FALSE)=\"-\"),1/0,VLOOKUP($A372,Economática!$A$3:$AI$823,25,FALSE)))","v":""},{"$f":"IF($A372=\"\",\"\",IF(ISERROR((F372+VLOOKUP($A372,Economática!$A$3:$AI$823,26,FALSE))/Y372),(F372+VLOOKUP($A372,Economática!$A$3:$AI$823,26,FALSE))/Y372,(F372+VLOOKUP($A372,Economática!$A$3:$AI$823,26,FALSE))/Y372))","v":""},{"$f":"IF($A372=\"\",\"\",IF(OR(-VLOOKUP($A372,Economática!$A$3:$AI$823,27,FALSE)=0,-VLOOKUP($A372,Economática!$A$3:$AI$823,27,FALSE)=\"-\"),1/0,-VLOOKUP($A372,Economática!$A$3:$AI$823,27,FALSE)))","v":""},"",{"$f":"IF($A372=\"\",\"\",IF(OR(VLOOKUP($A372,Economática!$A$3:$AI$823,28,FALSE)=0,VLOOKUP($A372,Economática!$A$3:$AI$823,28,FALSE)=\"-\"),1/0,VLOOKUP($A372,Economática!$A$3:$AI$823,28,FALSE)))","v":""},{"$f":"IF($A372=\"\",\"\",IF(OR(VLOOKUP($A372,Economática!$A$3:$AI$823,29,FALSE)=0,VLOOKUP($A372,Economática!$A$3:$AI$823,29,FALSE)=\"-\"),1/0,VLOOKUP($A372,Economática!$A$3:$AI$823,29,FALSE)))","v":""},{"$f":"IF($A372=\"\",\"\",IF(OR(VLOOKUP($A372,Economática!$A$3:$AI$823,30,FALSE)/E372=0,VLOOKUP($A372,Economática!$A$3:$AI$823,30,FALSE)/E372=\"-\",VLOOKUP($A372,Economática!$A$3:$AI$823,30,FALSE)/E372<33.33%,VLOOKUP($A372,Economática!$A$3:$AI$823,30,FALSE)/E372>100%),1/0,VLOOKUP($A372,Economática!$A$3:$AI$823,30,FALSE)/E372))","v":""},"",{"$f":"IF($A372=\"\",\"\",IF(OR(VLOOKUP($A372,Economática!$A$3:$AI$823,25,FALSE)=0,VLOOKUP($A372,Economática!$A$3:$AI$823,25,FALSE)=\"-\"),1/0,VLOOKUP($A372,Economática!$A$3:$AI$823,25,FALSE)))","v":""},{"$f":"CONCATENATE(Economática!B350,\" \",Economática!C350)","v":" "}]
[{"$f":"IF(Economática!AG351=\"\",\"\",Economática!AG351)","v":""},{"$f":"IF($A373=\"\",\"\",VLOOKUP(VLOOKUP($A373,Economática!$A$3:$AI$823,6,FALSE),Correção!$B$16:$C$36,2,FALSE))","v":""},{"$f":"IF(Economática!B351=\"\",\"\",Economática!B351)","v":""},{"$f":"IF($A373=\"\",\"\",IF(OR(VLOOKUP($A373,Economática!$A$3:$AI$823,8,FALSE)=0,VLOOKUP($A373,Economática!$A$3:$AI$823,8,FALSE)=\"-\"),1/0,VLOOKUP($A373,Economática!$A$3:$AI$823,8,FALSE)))","v":""},{"$f":"IF(A373=\"\",\"\",IF(ISERROR(VLOOKUP(A373,Correção!$B$2:$G$13,9,FALSE)),VLOOKUP($A373,Economática!$A$3:$AI$823,9,FALSE),VLOOKUP(A373,Correção!$B$2:$G$13,9,FALSE)))","v":""},{"$f":"IF($A373=\"\",\"\",Economática!G351)","v":""},{"$f":"IF($A373=\"\",\"\",IF(OR(VLOOKUP($A373,Economática!$A$3:$AI$823,10,FALSE)=0,VLOOKUP($A373,Economática!$A$3:$AI$823,10,FALSE)=\"-\"),1/0,VLOOKUP($A373,Economática!$A$3:$AI$823,10,FALSE)))","v":""},{"$f":"IF($A373=\"\",\"\",IF(OR(VLOOKUP($A373,Economática!$A$3:$AI$823,11,FALSE)=0,VLOOKUP($A373,Economática!$A$3:$AI$823,11,FALSE)=\"-\"),1/0,VLOOKUP($A373,Economática!$A$3:$AI$823,11,FALSE)))","v":""},{"$f":"IF($A373=\"\",\"\",IF(OR(VLOOKUP($A373,Economática!$A$3:$AI$823,12,FALSE)=0,VLOOKUP($A373,Economática!$A$3:$AI$823,12,FALSE)=\"-\"),1/0,VLOOKUP($A373,Economática!$A$3:$AI$823,12,FALSE)))","v":""},{"$f":"IF($A373=\"\",\"\",IF(OR(VLOOKUP($A373,Economática!$A$3:$AI$823,13,FALSE)=0,VLOOKUP($A373,Economática!$A$3:$AI$823,13,FALSE)=\"-\"),1/0,VLOOKUP($A373,Economática!$A$3:$AI$823,13,FALSE)))","v":""},{"$f":"IF($A373=\"\",\"\",IF(OR(VLOOKUP($A373,Economática!$A$3:$AI$823,14,FALSE)=0,VLOOKUP($A373,Economática!$A$3:$AI$823,14,FALSE)=\"-\"),1/0,VLOOKUP($A373,Economática!$A$3:$AI$823,14,FALSE)))","v":""},{"$f":"IF($A373=\"\",\"\",IF(OR(VLOOKUP($A373,Economática!$A$3:$AI$823,15,FALSE)=0,VLOOKUP($A373,Economática!$A$3:$AI$823,15,FALSE)=\"-\"),1/0,VLOOKUP($A373,Economática!$A$3:$AI$823,15,FALSE)))","v":""},{"$f":"IF($A373=\"\",\"\",IF(OR(VLOOKUP($A373,Economática!$A$3:$AI$823,16,FALSE)=0,VLOOKUP($A373,Economática!$A$3:$AI$823,16,FALSE)=\"-\"),1/0,VLOOKUP($A373,Economática!$A$3:$AI$823,16,FALSE)))","v":""},{"$f":"IF($A373=\"\",\"\",IF(OR(VLOOKUP($A373,Economática!$A$3:$AI$823,17,FALSE)=0,VLOOKUP($A373,Economática!$A$3:$AI$823,17,FALSE)=\"-\"),1/0,VLOOKUP($A373,Economática!$A$3:$AI$823,17,FALSE)))","v":""},{"$f":"IF($A373=\"\",\"\",IF(OR(VLOOKUP($A373,Economática!$A$3:$AI$823,18,FALSE)=0,VLOOKUP($A373,Economática!$A$3:$AI$823,18,FALSE)=\"-\"),1/0,VLOOKUP($A373,Economática!$A$3:$AI$823,18,FALSE)))","v":""},{"$f":"IF($A373=\"\",\"\",IF(OR(VLOOKUP($A373,Economática!$A$3:$AI$823,19,FALSE)=0,VLOOKUP($A373,Economática!$A$3:$AI$823,19,FALSE)=\"-\"),1/0,VLOOKUP($A373,Economática!$A$3:$AI$823,19,FALSE)))","v":""},{"$f":"IF($A373=\"\",\"\",VLOOKUP($A373,Economática!$A$3:$AI$823,20,FALSE)/E373)","v":""},"","","",{"$f":"IF($A373=\"\",\"\",IF(OR(VLOOKUP($A373,Economática!$A$3:$AI$823,21,FALSE)/100=0,VLOOKUP($A373,Economática!$A$3:$AI$823,21,FALSE)/100=\"-\"),1/0,VLOOKUP($A373,Economática!$A$3:$AI$823,21,FALSE)/100))","v":""},{"$f":"IF($A373=\"\",\"\",IF(OR(VLOOKUP($A373,Economática!$A$3:$AI$823,22,FALSE)/100=0,VLOOKUP($A373,Economática!$A$3:$AI$823,22,FALSE)/100=\"-\"),1/0,VLOOKUP($A373,Economática!$A$3:$AI$823,22,FALSE)/100))","v":""},{"$f":"IF($A373=\"\",\"\",IF(OR(VLOOKUP($A373,Economática!$A$3:$AI$823,23,FALSE)=0,VLOOKUP($A373,Economática!$A$3:$AI$823,23,FALSE)=\"-\"),1/0,VLOOKUP($A373,Economática!$A$3:$AI$823,23,FALSE)))","v":""},{"$f":"IF($A373=\"\",\"\",IF(OR(VLOOKUP($A373,Economática!$A$3:$AI$823,24,FALSE)=0,VLOOKUP($A373,Economática!$A$3:$AI$823,24,FALSE)=\"-\"),1/0,VLOOKUP($A373,Economática!$A$3:$AI$823,24,FALSE)))","v":""},{"$f":"IF($A373=\"\",\"\",IF(OR(VLOOKUP($A373,Economática!$A$3:$AI$823,25,FALSE)=0,VLOOKUP($A373,Economática!$A$3:$AI$823,25,FALSE)=\"-\"),1/0,VLOOKUP($A373,Economática!$A$3:$AI$823,25,FALSE)))","v":""},{"$f":"IF($A373=\"\",\"\",IF(ISERROR((F373+VLOOKUP($A373,Economática!$A$3:$AI$823,26,FALSE))/Y373),(F373+VLOOKUP($A373,Economática!$A$3:$AI$823,26,FALSE))/Y373,(F373+VLOOKUP($A373,Economática!$A$3:$AI$823,26,FALSE))/Y373))","v":""},{"$f":"IF($A373=\"\",\"\",IF(OR(-VLOOKUP($A373,Economática!$A$3:$AI$823,27,FALSE)=0,-VLOOKUP($A373,Economática!$A$3:$AI$823,27,FALSE)=\"-\"),1/0,-VLOOKUP($A373,Economática!$A$3:$AI$823,27,FALSE)))","v":""},"",{"$f":"IF($A373=\"\",\"\",IF(OR(VLOOKUP($A373,Economática!$A$3:$AI$823,28,FALSE)=0,VLOOKUP($A373,Economática!$A$3:$AI$823,28,FALSE)=\"-\"),1/0,VLOOKUP($A373,Economática!$A$3:$AI$823,28,FALSE)))","v":""},{"$f":"IF($A373=\"\",\"\",IF(OR(VLOOKUP($A373,Economática!$A$3:$AI$823,29,FALSE)=0,VLOOKUP($A373,Economática!$A$3:$AI$823,29,FALSE)=\"-\"),1/0,VLOOKUP($A373,Economática!$A$3:$AI$823,29,FALSE)))","v":""},{"$f":"IF($A373=\"\",\"\",IF(OR(VLOOKUP($A373,Economática!$A$3:$AI$823,30,FALSE)/E373=0,VLOOKUP($A373,Economática!$A$3:$AI$823,30,FALSE)/E373=\"-\",VLOOKUP($A373,Economática!$A$3:$AI$823,30,FALSE)/E373<33.33%,VLOOKUP($A373,Economática!$A$3:$AI$823,30,FALSE)/E373>100%),1/0,VLOOKUP($A373,Economática!$A$3:$AI$823,30,FALSE)/E373))","v":""},"",{"$f":"IF($A373=\"\",\"\",IF(OR(VLOOKUP($A373,Economática!$A$3:$AI$823,25,FALSE)=0,VLOOKUP($A373,Economática!$A$3:$AI$823,25,FALSE)=\"-\"),1/0,VLOOKUP($A373,Economática!$A$3:$AI$823,25,FALSE)))","v":""},{"$f":"CONCATENATE(Economática!B351,\" \",Economática!C351)","v":" "}]
[{"$f":"IF(Economática!AG352=\"\",\"\",Economática!AG352)","v":""},{"$f":"IF($A374=\"\",\"\",VLOOKUP(VLOOKUP($A374,Economática!$A$3:$AI$823,6,FALSE),Correção!$B$16:$C$36,2,FALSE))","v":""},{"$f":"IF(Economática!B352=\"\",\"\",Economática!B352)","v":""},{"$f":"IF($A374=\"\",\"\",IF(OR(VLOOKUP($A374,Economática!$A$3:$AI$823,8,FALSE)=0,VLOOKUP($A374,Economática!$A$3:$AI$823,8,FALSE)=\"-\"),1/0,VLOOKUP($A374,Economática!$A$3:$AI$823,8,FALSE)))","v":""},{"$f":"IF(A374=\"\",\"\",IF(ISERROR(VLOOKUP(A374,Correção!$B$2:$G$13,9,FALSE)),VLOOKUP($A374,Economática!$A$3:$AI$823,9,FALSE),VLOOKUP(A374,Correção!$B$2:$G$13,9,FALSE)))","v":""},{"$f":"IF($A374=\"\",\"\",Economática!G352)","v":""},{"$f":"IF($A374=\"\",\"\",IF(OR(VLOOKUP($A374,Economática!$A$3:$AI$823,10,FALSE)=0,VLOOKUP($A374,Economática!$A$3:$AI$823,10,FALSE)=\"-\"),1/0,VLOOKUP($A374,Economática!$A$3:$AI$823,10,FALSE)))","v":""},{"$f":"IF($A374=\"\",\"\",IF(OR(VLOOKUP($A374,Economática!$A$3:$AI$823,11,FALSE)=0,VLOOKUP($A374,Economática!$A$3:$AI$823,11,FALSE)=\"-\"),1/0,VLOOKUP($A374,Economática!$A$3:$AI$823,11,FALSE)))","v":""},{"$f":"IF($A374=\"\",\"\",IF(OR(VLOOKUP($A374,Economática!$A$3:$AI$823,12,FALSE)=0,VLOOKUP($A374,Economática!$A$3:$AI$823,12,FALSE)=\"-\"),1/0,VLOOKUP($A374,Economática!$A$3:$AI$823,12,FALSE)))","v":""},{"$f":"IF($A374=\"\",\"\",IF(OR(VLOOKUP($A374,Economática!$A$3:$AI$823,13,FALSE)=0,VLOOKUP($A374,Economática!$A$3:$AI$823,13,FALSE)=\"-\"),1/0,VLOOKUP($A374,Economática!$A$3:$AI$823,13,FALSE)))","v":""},{"$f":"IF($A374=\"\",\"\",IF(OR(VLOOKUP($A374,Economática!$A$3:$AI$823,14,FALSE)=0,VLOOKUP($A374,Economática!$A$3:$AI$823,14,FALSE)=\"-\"),1/0,VLOOKUP($A374,Economática!$A$3:$AI$823,14,FALSE)))","v":""},{"$f":"IF($A374=\"\",\"\",IF(OR(VLOOKUP($A374,Economática!$A$3:$AI$823,15,FALSE)=0,VLOOKUP($A374,Economática!$A$3:$AI$823,15,FALSE)=\"-\"),1/0,VLOOKUP($A374,Economática!$A$3:$AI$823,15,FALSE)))","v":""},{"$f":"IF($A374=\"\",\"\",IF(OR(VLOOKUP($A374,Economática!$A$3:$AI$823,16,FALSE)=0,VLOOKUP($A374,Economática!$A$3:$AI$823,16,FALSE)=\"-\"),1/0,VLOOKUP($A374,Economática!$A$3:$AI$823,16,FALSE)))","v":""},{"$f":"IF($A374=\"\",\"\",IF(OR(VLOOKUP($A374,Economática!$A$3:$AI$823,17,FALSE)=0,VLOOKUP($A374,Economática!$A$3:$AI$823,17,FALSE)=\"-\"),1/0,VLOOKUP($A374,Economática!$A$3:$AI$823,17,FALSE)))","v":""},{"$f":"IF($A374=\"\",\"\",IF(OR(VLOOKUP($A374,Economática!$A$3:$AI$823,18,FALSE)=0,VLOOKUP($A374,Economática!$A$3:$AI$823,18,FALSE)=\"-\"),1/0,VLOOKUP($A374,Economática!$A$3:$AI$823,18,FALSE)))","v":""},{"$f":"IF($A374=\"\",\"\",IF(OR(VLOOKUP($A374,Economática!$A$3:$AI$823,19,FALSE)=0,VLOOKUP($A374,Economática!$A$3:$AI$823,19,FALSE)=\"-\"),1/0,VLOOKUP($A374,Economática!$A$3:$AI$823,19,FALSE)))","v":""},{"$f":"IF($A374=\"\",\"\",VLOOKUP($A374,Economática!$A$3:$AI$823,20,FALSE)/E374)","v":""},"","","",{"$f":"IF($A374=\"\",\"\",IF(OR(VLOOKUP($A374,Economática!$A$3:$AI$823,21,FALSE)/100=0,VLOOKUP($A374,Economática!$A$3:$AI$823,21,FALSE)/100=\"-\"),1/0,VLOOKUP($A374,Economática!$A$3:$AI$823,21,FALSE)/100))","v":""},{"$f":"IF($A374=\"\",\"\",IF(OR(VLOOKUP($A374,Economática!$A$3:$AI$823,22,FALSE)/100=0,VLOOKUP($A374,Economática!$A$3:$AI$823,22,FALSE)/100=\"-\"),1/0,VLOOKUP($A374,Economática!$A$3:$AI$823,22,FALSE)/100))","v":""},{"$f":"IF($A374=\"\",\"\",IF(OR(VLOOKUP($A374,Economática!$A$3:$AI$823,23,FALSE)=0,VLOOKUP($A374,Economática!$A$3:$AI$823,23,FALSE)=\"-\"),1/0,VLOOKUP($A374,Economática!$A$3:$AI$823,23,FALSE)))","v":""},{"$f":"IF($A374=\"\",\"\",IF(OR(VLOOKUP($A374,Economática!$A$3:$AI$823,24,FALSE)=0,VLOOKUP($A374,Economática!$A$3:$AI$823,24,FALSE)=\"-\"),1/0,VLOOKUP($A374,Economática!$A$3:$AI$823,24,FALSE)))","v":""},{"$f":"IF($A374=\"\",\"\",IF(OR(VLOOKUP($A374,Economática!$A$3:$AI$823,25,FALSE)=0,VLOOKUP($A374,Economática!$A$3:$AI$823,25,FALSE)=\"-\"),1/0,VLOOKUP($A374,Economática!$A$3:$AI$823,25,FALSE)))","v":""},{"$f":"IF($A374=\"\",\"\",IF(ISERROR((F374+VLOOKUP($A374,Economática!$A$3:$AI$823,26,FALSE))/Y374),(F374+VLOOKUP($A374,Economática!$A$3:$AI$823,26,FALSE))/Y374,(F374+VLOOKUP($A374,Economática!$A$3:$AI$823,26,FALSE))/Y374))","v":""},{"$f":"IF($A374=\"\",\"\",IF(OR(-VLOOKUP($A374,Economática!$A$3:$AI$823,27,FALSE)=0,-VLOOKUP($A374,Economática!$A$3:$AI$823,27,FALSE)=\"-\"),1/0,-VLOOKUP($A374,Economática!$A$3:$AI$823,27,FALSE)))","v":""},"",{"$f":"IF($A374=\"\",\"\",IF(OR(VLOOKUP($A374,Economática!$A$3:$AI$823,28,FALSE)=0,VLOOKUP($A374,Economática!$A$3:$AI$823,28,FALSE)=\"-\"),1/0,VLOOKUP($A374,Economática!$A$3:$AI$823,28,FALSE)))","v":""},{"$f":"IF($A374=\"\",\"\",IF(OR(VLOOKUP($A374,Economática!$A$3:$AI$823,29,FALSE)=0,VLOOKUP($A374,Economática!$A$3:$AI$823,29,FALSE)=\"-\"),1/0,VLOOKUP($A374,Economática!$A$3:$AI$823,29,FALSE)))","v":""},{"$f":"IF($A374=\"\",\"\",IF(OR(VLOOKUP($A374,Economática!$A$3:$AI$823,30,FALSE)/E374=0,VLOOKUP($A374,Economática!$A$3:$AI$823,30,FALSE)/E374=\"-\",VLOOKUP($A374,Economática!$A$3:$AI$823,30,FALSE)/E374<33.33%,VLOOKUP($A374,Economática!$A$3:$AI$823,30,FALSE)/E374>100%),1/0,VLOOKUP($A374,Economática!$A$3:$AI$823,30,FALSE)/E374))","v":""},"",{"$f":"IF($A374=\"\",\"\",IF(OR(VLOOKUP($A374,Economática!$A$3:$AI$823,25,FALSE)=0,VLOOKUP($A374,Economática!$A$3:$AI$823,25,FALSE)=\"-\"),1/0,VLOOKUP($A374,Economática!$A$3:$AI$823,25,FALSE)))","v":""},{"$f":"CONCATENATE(Economática!B352,\" \",Economática!C352)","v":" "}]
[{"$f":"IF(Economática!AG353=\"\",\"\",Economática!AG353)","v":""},{"$f":"IF($A375=\"\",\"\",VLOOKUP(VLOOKUP($A375,Economática!$A$3:$AI$823,6,FALSE),Correção!$B$16:$C$36,2,FALSE))","v":""},{"$f":"IF(Economática!B353=\"\",\"\",Economática!B353)","v":""},{"$f":"IF($A375=\"\",\"\",IF(OR(VLOOKUP($A375,Economática!$A$3:$AI$823,8,FALSE)=0,VLOOKUP($A375,Economática!$A$3:$AI$823,8,FALSE)=\"-\"),1/0,VLOOKUP($A375,Economática!$A$3:$AI$823,8,FALSE)))","v":""},{"$f":"IF(A375=\"\",\"\",IF(ISERROR(VLOOKUP(A375,Correção!$B$2:$G$13,9,FALSE)),VLOOKUP($A375,Economática!$A$3:$AI$823,9,FALSE),VLOOKUP(A375,Correção!$B$2:$G$13,9,FALSE)))","v":""},{"$f":"IF($A375=\"\",\"\",Economática!G353)","v":""},{"$f":"IF($A375=\"\",\"\",IF(OR(VLOOKUP($A375,Economática!$A$3:$AI$823,10,FALSE)=0,VLOOKUP($A375,Economática!$A$3:$AI$823,10,FALSE)=\"-\"),1/0,VLOOKUP($A375,Economática!$A$3:$AI$823,10,FALSE)))","v":""},{"$f":"IF($A375=\"\",\"\",IF(OR(VLOOKUP($A375,Economática!$A$3:$AI$823,11,FALSE)=0,VLOOKUP($A375,Economática!$A$3:$AI$823,11,FALSE)=\"-\"),1/0,VLOOKUP($A375,Economática!$A$3:$AI$823,11,FALSE)))","v":""},{"$f":"IF($A375=\"\",\"\",IF(OR(VLOOKUP($A375,Economática!$A$3:$AI$823,12,FALSE)=0,VLOOKUP($A375,Economática!$A$3:$AI$823,12,FALSE)=\"-\"),1/0,VLOOKUP($A375,Economática!$A$3:$AI$823,12,FALSE)))","v":""},{"$f":"IF($A375=\"\",\"\",IF(OR(VLOOKUP($A375,Economática!$A$3:$AI$823,13,FALSE)=0,VLOOKUP($A375,Economática!$A$3:$AI$823,13,FALSE)=\"-\"),1/0,VLOOKUP($A375,Economática!$A$3:$AI$823,13,FALSE)))","v":""},{"$f":"IF($A375=\"\",\"\",IF(OR(VLOOKUP($A375,Economática!$A$3:$AI$823,14,FALSE)=0,VLOOKUP($A375,Economática!$A$3:$AI$823,14,FALSE)=\"-\"),1/0,VLOOKUP($A375,Economática!$A$3:$AI$823,14,FALSE)))","v":""},{"$f":"IF($A375=\"\",\"\",IF(OR(VLOOKUP($A375,Economática!$A$3:$AI$823,15,FALSE)=0,VLOOKUP($A375,Economática!$A$3:$AI$823,15,FALSE)=\"-\"),1/0,VLOOKUP($A375,Economática!$A$3:$AI$823,15,FALSE)))","v":""},{"$f":"IF($A375=\"\",\"\",IF(OR(VLOOKUP($A375,Economática!$A$3:$AI$823,16,FALSE)=0,VLOOKUP($A375,Economática!$A$3:$AI$823,16,FALSE)=\"-\"),1/0,VLOOKUP($A375,Economática!$A$3:$AI$823,16,FALSE)))","v":""},{"$f":"IF($A375=\"\",\"\",IF(OR(VLOOKUP($A375,Economática!$A$3:$AI$823,17,FALSE)=0,VLOOKUP($A375,Economática!$A$3:$AI$823,17,FALSE)=\"-\"),1/0,VLOOKUP($A375,Economática!$A$3:$AI$823,17,FALSE)))","v":""},{"$f":"IF($A375=\"\",\"\",IF(OR(VLOOKUP($A375,Economática!$A$3:$AI$823,18,FALSE)=0,VLOOKUP($A375,Economática!$A$3:$AI$823,18,FALSE)=\"-\"),1/0,VLOOKUP($A375,Economática!$A$3:$AI$823,18,FALSE)))","v":""},{"$f":"IF($A375=\"\",\"\",IF(OR(VLOOKUP($A375,Economática!$A$3:$AI$823,19,FALSE)=0,VLOOKUP($A375,Economática!$A$3:$AI$823,19,FALSE)=\"-\"),1/0,VLOOKUP($A375,Economática!$A$3:$AI$823,19,FALSE)))","v":""},{"$f":"IF($A375=\"\",\"\",VLOOKUP($A375,Economática!$A$3:$AI$823,20,FALSE)/E375)","v":""},"","","",{"$f":"IF($A375=\"\",\"\",IF(OR(VLOOKUP($A375,Economática!$A$3:$AI$823,21,FALSE)/100=0,VLOOKUP($A375,Economática!$A$3:$AI$823,21,FALSE)/100=\"-\"),1/0,VLOOKUP($A375,Economática!$A$3:$AI$823,21,FALSE)/100))","v":""},{"$f":"IF($A375=\"\",\"\",IF(OR(VLOOKUP($A375,Economática!$A$3:$AI$823,22,FALSE)/100=0,VLOOKUP($A375,Economática!$A$3:$AI$823,22,FALSE)/100=\"-\"),1/0,VLOOKUP($A375,Economática!$A$3:$AI$823,22,FALSE)/100))","v":""},{"$f":"IF($A375=\"\",\"\",IF(OR(VLOOKUP($A375,Economática!$A$3:$AI$823,23,FALSE)=0,VLOOKUP($A375,Economática!$A$3:$AI$823,23,FALSE)=\"-\"),1/0,VLOOKUP($A375,Economática!$A$3:$AI$823,23,FALSE)))","v":""},{"$f":"IF($A375=\"\",\"\",IF(OR(VLOOKUP($A375,Economática!$A$3:$AI$823,24,FALSE)=0,VLOOKUP($A375,Economática!$A$3:$AI$823,24,FALSE)=\"-\"),1/0,VLOOKUP($A375,Economática!$A$3:$AI$823,24,FALSE)))","v":""},{"$f":"IF($A375=\"\",\"\",IF(OR(VLOOKUP($A375,Economática!$A$3:$AI$823,25,FALSE)=0,VLOOKUP($A375,Economática!$A$3:$AI$823,25,FALSE)=\"-\"),1/0,VLOOKUP($A375,Economática!$A$3:$AI$823,25,FALSE)))","v":""},{"$f":"IF($A375=\"\",\"\",IF(ISERROR((F375+VLOOKUP($A375,Economática!$A$3:$AI$823,26,FALSE))/Y375),(F375+VLOOKUP($A375,Economática!$A$3:$AI$823,26,FALSE))/Y375,(F375+VLOOKUP($A375,Economática!$A$3:$AI$823,26,FALSE))/Y375))","v":""},{"$f":"IF($A375=\"\",\"\",IF(OR(-VLOOKUP($A375,Economática!$A$3:$AI$823,27,FALSE)=0,-VLOOKUP($A375,Economática!$A$3:$AI$823,27,FALSE)=\"-\"),1/0,-VLOOKUP($A375,Economática!$A$3:$AI$823,27,FALSE)))","v":""},"",{"$f":"IF($A375=\"\",\"\",IF(OR(VLOOKUP($A375,Economática!$A$3:$AI$823,28,FALSE)=0,VLOOKUP($A375,Economática!$A$3:$AI$823,28,FALSE)=\"-\"),1/0,VLOOKUP($A375,Economática!$A$3:$AI$823,28,FALSE)))","v":""},{"$f":"IF($A375=\"\",\"\",IF(OR(VLOOKUP($A375,Economática!$A$3:$AI$823,29,FALSE)=0,VLOOKUP($A375,Economática!$A$3:$AI$823,29,FALSE)=\"-\"),1/0,VLOOKUP($A375,Economática!$A$3:$AI$823,29,FALSE)))","v":""},{"$f":"IF($A375=\"\",\"\",IF(OR(VLOOKUP($A375,Economática!$A$3:$AI$823,30,FALSE)/E375=0,VLOOKUP($A375,Economática!$A$3:$AI$823,30,FALSE)/E375=\"-\",VLOOKUP($A375,Economática!$A$3:$AI$823,30,FALSE)/E375<33.33%,VLOOKUP($A375,Economática!$A$3:$AI$823,30,FALSE)/E375>100%),1/0,VLOOKUP($A375,Economática!$A$3:$AI$823,30,FALSE)/E375))","v":""},"",{"$f":"IF($A375=\"\",\"\",IF(OR(VLOOKUP($A375,Economática!$A$3:$AI$823,25,FALSE)=0,VLOOKUP($A375,Economática!$A$3:$AI$823,25,FALSE)=\"-\"),1/0,VLOOKUP($A375,Economática!$A$3:$AI$823,25,FALSE)))","v":""},{"$f":"CONCATENATE(Economática!B353,\" \",Economática!C353)","v":" "}]
[{"$f":"IF(Economática!AG354=\"\",\"\",Economática!AG354)","v":""},{"$f":"IF($A376=\"\",\"\",VLOOKUP(VLOOKUP($A376,Economática!$A$3:$AI$823,6,FALSE),Correção!$B$16:$C$36,2,FALSE))","v":""},{"$f":"IF(Economática!B354=\"\",\"\",Economática!B354)","v":""},{"$f":"IF($A376=\"\",\"\",IF(OR(VLOOKUP($A376,Economática!$A$3:$AI$823,8,FALSE)=0,VLOOKUP($A376,Economática!$A$3:$AI$823,8,FALSE)=\"-\"),1/0,VLOOKUP($A376,Economática!$A$3:$AI$823,8,FALSE)))","v":""},{"$f":"IF(A376=\"\",\"\",IF(ISERROR(VLOOKUP(A376,Correção!$B$2:$G$13,9,FALSE)),VLOOKUP($A376,Economática!$A$3:$AI$823,9,FALSE),VLOOKUP(A376,Correção!$B$2:$G$13,9,FALSE)))","v":""},{"$f":"IF($A376=\"\",\"\",Economática!G354)","v":""},{"$f":"IF($A376=\"\",\"\",IF(OR(VLOOKUP($A376,Economática!$A$3:$AI$823,10,FALSE)=0,VLOOKUP($A376,Economática!$A$3:$AI$823,10,FALSE)=\"-\"),1/0,VLOOKUP($A376,Economática!$A$3:$AI$823,10,FALSE)))","v":""},{"$f":"IF($A376=\"\",\"\",IF(OR(VLOOKUP($A376,Economática!$A$3:$AI$823,11,FALSE)=0,VLOOKUP($A376,Economática!$A$3:$AI$823,11,FALSE)=\"-\"),1/0,VLOOKUP($A376,Economática!$A$3:$AI$823,11,FALSE)))","v":""},{"$f":"IF($A376=\"\",\"\",IF(OR(VLOOKUP($A376,Economática!$A$3:$AI$823,12,FALSE)=0,VLOOKUP($A376,Economática!$A$3:$AI$823,12,FALSE)=\"-\"),1/0,VLOOKUP($A376,Economática!$A$3:$AI$823,12,FALSE)))","v":""},{"$f":"IF($A376=\"\",\"\",IF(OR(VLOOKUP($A376,Economática!$A$3:$AI$823,13,FALSE)=0,VLOOKUP($A376,Economática!$A$3:$AI$823,13,FALSE)=\"-\"),1/0,VLOOKUP($A376,Economática!$A$3:$AI$823,13,FALSE)))","v":""},{"$f":"IF($A376=\"\",\"\",IF(OR(VLOOKUP($A376,Economática!$A$3:$AI$823,14,FALSE)=0,VLOOKUP($A376,Economática!$A$3:$AI$823,14,FALSE)=\"-\"),1/0,VLOOKUP($A376,Economática!$A$3:$AI$823,14,FALSE)))","v":""},{"$f":"IF($A376=\"\",\"\",IF(OR(VLOOKUP($A376,Economática!$A$3:$AI$823,15,FALSE)=0,VLOOKUP($A376,Economática!$A$3:$AI$823,15,FALSE)=\"-\"),1/0,VLOOKUP($A376,Economática!$A$3:$AI$823,15,FALSE)))","v":""},{"$f":"IF($A376=\"\",\"\",IF(OR(VLOOKUP($A376,Economática!$A$3:$AI$823,16,FALSE)=0,VLOOKUP($A376,Economática!$A$3:$AI$823,16,FALSE)=\"-\"),1/0,VLOOKUP($A376,Economática!$A$3:$AI$823,16,FALSE)))","v":""},{"$f":"IF($A376=\"\",\"\",IF(OR(VLOOKUP($A376,Economática!$A$3:$AI$823,17,FALSE)=0,VLOOKUP($A376,Economática!$A$3:$AI$823,17,FALSE)=\"-\"),1/0,VLOOKUP($A376,Economática!$A$3:$AI$823,17,FALSE)))","v":""},{"$f":"IF($A376=\"\",\"\",IF(OR(VLOOKUP($A376,Economática!$A$3:$AI$823,18,FALSE)=0,VLOOKUP($A376,Economática!$A$3:$AI$823,18,FALSE)=\"-\"),1/0,VLOOKUP($A376,Economática!$A$3:$AI$823,18,FALSE)))","v":""},{"$f":"IF($A376=\"\",\"\",IF(OR(VLOOKUP($A376,Economática!$A$3:$AI$823,19,FALSE)=0,VLOOKUP($A376,Economática!$A$3:$AI$823,19,FALSE)=\"-\"),1/0,VLOOKUP($A376,Economática!$A$3:$AI$823,19,FALSE)))","v":""},{"$f":"IF($A376=\"\",\"\",VLOOKUP($A376,Economática!$A$3:$AI$823,20,FALSE)/E376)","v":""},"","","",{"$f":"IF($A376=\"\",\"\",IF(OR(VLOOKUP($A376,Economática!$A$3:$AI$823,21,FALSE)/100=0,VLOOKUP($A376,Economática!$A$3:$AI$823,21,FALSE)/100=\"-\"),1/0,VLOOKUP($A376,Economática!$A$3:$AI$823,21,FALSE)/100))","v":""},{"$f":"IF($A376=\"\",\"\",IF(OR(VLOOKUP($A376,Economática!$A$3:$AI$823,22,FALSE)/100=0,VLOOKUP($A376,Economática!$A$3:$AI$823,22,FALSE)/100=\"-\"),1/0,VLOOKUP($A376,Economática!$A$3:$AI$823,22,FALSE)/100))","v":""},{"$f":"IF($A376=\"\",\"\",IF(OR(VLOOKUP($A376,Economática!$A$3:$AI$823,23,FALSE)=0,VLOOKUP($A376,Economática!$A$3:$AI$823,23,FALSE)=\"-\"),1/0,VLOOKUP($A376,Economática!$A$3:$AI$823,23,FALSE)))","v":""},{"$f":"IF($A376=\"\",\"\",IF(OR(VLOOKUP($A376,Economática!$A$3:$AI$823,24,FALSE)=0,VLOOKUP($A376,Economática!$A$3:$AI$823,24,FALSE)=\"-\"),1/0,VLOOKUP($A376,Economática!$A$3:$AI$823,24,FALSE)))","v":""},{"$f":"IF($A376=\"\",\"\",IF(OR(VLOOKUP($A376,Economática!$A$3:$AI$823,25,FALSE)=0,VLOOKUP($A376,Economática!$A$3:$AI$823,25,FALSE)=\"-\"),1/0,VLOOKUP($A376,Economática!$A$3:$AI$823,25,FALSE)))","v":""},{"$f":"IF($A376=\"\",\"\",IF(ISERROR((F376+VLOOKUP($A376,Economática!$A$3:$AI$823,26,FALSE))/Y376),(F376+VLOOKUP($A376,Economática!$A$3:$AI$823,26,FALSE))/Y376,(F376+VLOOKUP($A376,Economática!$A$3:$AI$823,26,FALSE))/Y376))","v":""},{"$f":"IF($A376=\"\",\"\",IF(OR(-VLOOKUP($A376,Economática!$A$3:$AI$823,27,FALSE)=0,-VLOOKUP($A376,Economática!$A$3:$AI$823,27,FALSE)=\"-\"),1/0,-VLOOKUP($A376,Economática!$A$3:$AI$823,27,FALSE)))","v":""},"",{"$f":"IF($A376=\"\",\"\",IF(OR(VLOOKUP($A376,Economática!$A$3:$AI$823,28,FALSE)=0,VLOOKUP($A376,Economática!$A$3:$AI$823,28,FALSE)=\"-\"),1/0,VLOOKUP($A376,Economática!$A$3:$AI$823,28,FALSE)))","v":""},{"$f":"IF($A376=\"\",\"\",IF(OR(VLOOKUP($A376,Economática!$A$3:$AI$823,29,FALSE)=0,VLOOKUP($A376,Economática!$A$3:$AI$823,29,FALSE)=\"-\"),1/0,VLOOKUP($A376,Economática!$A$3:$AI$823,29,FALSE)))","v":""},{"$f":"IF($A376=\"\",\"\",IF(OR(VLOOKUP($A376,Economática!$A$3:$AI$823,30,FALSE)/E376=0,VLOOKUP($A376,Economática!$A$3:$AI$823,30,FALSE)/E376=\"-\",VLOOKUP($A376,Economática!$A$3:$AI$823,30,FALSE)/E376<33.33%,VLOOKUP($A376,Economática!$A$3:$AI$823,30,FALSE)/E376>100%),1/0,VLOOKUP($A376,Economática!$A$3:$AI$823,30,FALSE)/E376))","v":""},"",{"$f":"IF($A376=\"\",\"\",IF(OR(VLOOKUP($A376,Economática!$A$3:$AI$823,25,FALSE)=0,VLOOKUP($A376,Economática!$A$3:$AI$823,25,FALSE)=\"-\"),1/0,VLOOKUP($A376,Economática!$A$3:$AI$823,25,FALSE)))","v":""},{"$f":"CONCATENATE(Economática!B354,\" \",Economática!C354)","v":" "}]
[{"$f":"IF(Economática!AG355=\"\",\"\",Economática!AG355)","v":""},{"$f":"IF($A377=\"\",\"\",VLOOKUP(VLOOKUP($A377,Economática!$A$3:$AI$823,6,FALSE),Correção!$B$16:$C$36,2,FALSE))","v":""},{"$f":"IF(Economática!B355=\"\",\"\",Economática!B355)","v":""},{"$f":"IF($A377=\"\",\"\",IF(OR(VLOOKUP($A377,Economática!$A$3:$AI$823,8,FALSE)=0,VLOOKUP($A377,Economática!$A$3:$AI$823,8,FALSE)=\"-\"),1/0,VLOOKUP($A377,Economática!$A$3:$AI$823,8,FALSE)))","v":""},{"$f":"IF(A377=\"\",\"\",IF(ISERROR(VLOOKUP(A377,Correção!$B$2:$G$13,9,FALSE)),VLOOKUP($A377,Economática!$A$3:$AI$823,9,FALSE),VLOOKUP(A377,Correção!$B$2:$G$13,9,FALSE)))","v":""},{"$f":"IF($A377=\"\",\"\",Economática!G355)","v":""},{"$f":"IF($A377=\"\",\"\",IF(OR(VLOOKUP($A377,Economática!$A$3:$AI$823,10,FALSE)=0,VLOOKUP($A377,Economática!$A$3:$AI$823,10,FALSE)=\"-\"),1/0,VLOOKUP($A377,Economática!$A$3:$AI$823,10,FALSE)))","v":""},{"$f":"IF($A377=\"\",\"\",IF(OR(VLOOKUP($A377,Economática!$A$3:$AI$823,11,FALSE)=0,VLOOKUP($A377,Economática!$A$3:$AI$823,11,FALSE)=\"-\"),1/0,VLOOKUP($A377,Economática!$A$3:$AI$823,11,FALSE)))","v":""},{"$f":"IF($A377=\"\",\"\",IF(OR(VLOOKUP($A377,Economática!$A$3:$AI$823,12,FALSE)=0,VLOOKUP($A377,Economática!$A$3:$AI$823,12,FALSE)=\"-\"),1/0,VLOOKUP($A377,Economática!$A$3:$AI$823,12,FALSE)))","v":""},{"$f":"IF($A377=\"\",\"\",IF(OR(VLOOKUP($A377,Economática!$A$3:$AI$823,13,FALSE)=0,VLOOKUP($A377,Economática!$A$3:$AI$823,13,FALSE)=\"-\"),1/0,VLOOKUP($A377,Economática!$A$3:$AI$823,13,FALSE)))","v":""},{"$f":"IF($A377=\"\",\"\",IF(OR(VLOOKUP($A377,Economática!$A$3:$AI$823,14,FALSE)=0,VLOOKUP($A377,Economática!$A$3:$AI$823,14,FALSE)=\"-\"),1/0,VLOOKUP($A377,Economática!$A$3:$AI$823,14,FALSE)))","v":""},{"$f":"IF($A377=\"\",\"\",IF(OR(VLOOKUP($A377,Economática!$A$3:$AI$823,15,FALSE)=0,VLOOKUP($A377,Economática!$A$3:$AI$823,15,FALSE)=\"-\"),1/0,VLOOKUP($A377,Economática!$A$3:$AI$823,15,FALSE)))","v":""},{"$f":"IF($A377=\"\",\"\",IF(OR(VLOOKUP($A377,Economática!$A$3:$AI$823,16,FALSE)=0,VLOOKUP($A377,Economática!$A$3:$AI$823,16,FALSE)=\"-\"),1/0,VLOOKUP($A377,Economática!$A$3:$AI$823,16,FALSE)))","v":""},{"$f":"IF($A377=\"\",\"\",IF(OR(VLOOKUP($A377,Economática!$A$3:$AI$823,17,FALSE)=0,VLOOKUP($A377,Economática!$A$3:$AI$823,17,FALSE)=\"-\"),1/0,VLOOKUP($A377,Economática!$A$3:$AI$823,17,FALSE)))","v":""},{"$f":"IF($A377=\"\",\"\",IF(OR(VLOOKUP($A377,Economática!$A$3:$AI$823,18,FALSE)=0,VLOOKUP($A377,Economática!$A$3:$AI$823,18,FALSE)=\"-\"),1/0,VLOOKUP($A377,Economática!$A$3:$AI$823,18,FALSE)))","v":""},{"$f":"IF($A377=\"\",\"\",IF(OR(VLOOKUP($A377,Economática!$A$3:$AI$823,19,FALSE)=0,VLOOKUP($A377,Economática!$A$3:$AI$823,19,FALSE)=\"-\"),1/0,VLOOKUP($A377,Economática!$A$3:$AI$823,19,FALSE)))","v":""},{"$f":"IF($A377=\"\",\"\",VLOOKUP($A377,Economática!$A$3:$AI$823,20,FALSE)/E377)","v":""},"","","",{"$f":"IF($A377=\"\",\"\",IF(OR(VLOOKUP($A377,Economática!$A$3:$AI$823,21,FALSE)/100=0,VLOOKUP($A377,Economática!$A$3:$AI$823,21,FALSE)/100=\"-\"),1/0,VLOOKUP($A377,Economática!$A$3:$AI$823,21,FALSE)/100))","v":""},{"$f":"IF($A377=\"\",\"\",IF(OR(VLOOKUP($A377,Economática!$A$3:$AI$823,22,FALSE)/100=0,VLOOKUP($A377,Economática!$A$3:$AI$823,22,FALSE)/100=\"-\"),1/0,VLOOKUP($A377,Economática!$A$3:$AI$823,22,FALSE)/100))","v":""},{"$f":"IF($A377=\"\",\"\",IF(OR(VLOOKUP($A377,Economática!$A$3:$AI$823,23,FALSE)=0,VLOOKUP($A377,Economática!$A$3:$AI$823,23,FALSE)=\"-\"),1/0,VLOOKUP($A377,Economática!$A$3:$AI$823,23,FALSE)))","v":""},{"$f":"IF($A377=\"\",\"\",IF(OR(VLOOKUP($A377,Economática!$A$3:$AI$823,24,FALSE)=0,VLOOKUP($A377,Economática!$A$3:$AI$823,24,FALSE)=\"-\"),1/0,VLOOKUP($A377,Economática!$A$3:$AI$823,24,FALSE)))","v":""},{"$f":"IF($A377=\"\",\"\",IF(OR(VLOOKUP($A377,Economática!$A$3:$AI$823,25,FALSE)=0,VLOOKUP($A377,Economática!$A$3:$AI$823,25,FALSE)=\"-\"),1/0,VLOOKUP($A377,Economática!$A$3:$AI$823,25,FALSE)))","v":""},{"$f":"IF($A377=\"\",\"\",IF(ISERROR((F377+VLOOKUP($A377,Economática!$A$3:$AI$823,26,FALSE))/Y377),(F377+VLOOKUP($A377,Economática!$A$3:$AI$823,26,FALSE))/Y377,(F377+VLOOKUP($A377,Economática!$A$3:$AI$823,26,FALSE))/Y377))","v":""},{"$f":"IF($A377=\"\",\"\",IF(OR(-VLOOKUP($A377,Economática!$A$3:$AI$823,27,FALSE)=0,-VLOOKUP($A377,Economática!$A$3:$AI$823,27,FALSE)=\"-\"),1/0,-VLOOKUP($A377,Economática!$A$3:$AI$823,27,FALSE)))","v":""},"",{"$f":"IF($A377=\"\",\"\",IF(OR(VLOOKUP($A377,Economática!$A$3:$AI$823,28,FALSE)=0,VLOOKUP($A377,Economática!$A$3:$AI$823,28,FALSE)=\"-\"),1/0,VLOOKUP($A377,Economática!$A$3:$AI$823,28,FALSE)))","v":""},{"$f":"IF($A377=\"\",\"\",IF(OR(VLOOKUP($A377,Economática!$A$3:$AI$823,29,FALSE)=0,VLOOKUP($A377,Economática!$A$3:$AI$823,29,FALSE)=\"-\"),1/0,VLOOKUP($A377,Economática!$A$3:$AI$823,29,FALSE)))","v":""},{"$f":"IF($A377=\"\",\"\",IF(OR(VLOOKUP($A377,Economática!$A$3:$AI$823,30,FALSE)/E377=0,VLOOKUP($A377,Economática!$A$3:$AI$823,30,FALSE)/E377=\"-\",VLOOKUP($A377,Economática!$A$3:$AI$823,30,FALSE)/E377<33.33%,VLOOKUP($A377,Economática!$A$3:$AI$823,30,FALSE)/E377>100%),1/0,VLOOKUP($A377,Economática!$A$3:$AI$823,30,FALSE)/E377))","v":""},"",{"$f":"IF($A377=\"\",\"\",IF(OR(VLOOKUP($A377,Economática!$A$3:$AI$823,25,FALSE)=0,VLOOKUP($A377,Economática!$A$3:$AI$823,25,FALSE)=\"-\"),1/0,VLOOKUP($A377,Economática!$A$3:$AI$823,25,FALSE)))","v":""},{"$f":"CONCATENATE(Economática!B355,\" \",Economática!C355)","v":" "}]
[{"$f":"IF(Economática!AG356=\"\",\"\",Economática!AG356)","v":""},{"$f":"IF($A378=\"\",\"\",VLOOKUP(VLOOKUP($A378,Economática!$A$3:$AI$823,6,FALSE),Correção!$B$16:$C$36,2,FALSE))","v":""},{"$f":"IF(Economática!B356=\"\",\"\",Economática!B356)","v":""},{"$f":"IF($A378=\"\",\"\",IF(OR(VLOOKUP($A378,Economática!$A$3:$AI$823,8,FALSE)=0,VLOOKUP($A378,Economática!$A$3:$AI$823,8,FALSE)=\"-\"),1/0,VLOOKUP($A378,Economática!$A$3:$AI$823,8,FALSE)))","v":""},{"$f":"IF(A378=\"\",\"\",IF(ISERROR(VLOOKUP(A378,Correção!$B$2:$G$13,9,FALSE)),VLOOKUP($A378,Economática!$A$3:$AI$823,9,FALSE),VLOOKUP(A378,Correção!$B$2:$G$13,9,FALSE)))","v":""},{"$f":"IF($A378=\"\",\"\",Economática!G356)","v":""},{"$f":"IF($A378=\"\",\"\",IF(OR(VLOOKUP($A378,Economática!$A$3:$AI$823,10,FALSE)=0,VLOOKUP($A378,Economática!$A$3:$AI$823,10,FALSE)=\"-\"),1/0,VLOOKUP($A378,Economática!$A$3:$AI$823,10,FALSE)))","v":""},{"$f":"IF($A378=\"\",\"\",IF(OR(VLOOKUP($A378,Economática!$A$3:$AI$823,11,FALSE)=0,VLOOKUP($A378,Economática!$A$3:$AI$823,11,FALSE)=\"-\"),1/0,VLOOKUP($A378,Economática!$A$3:$AI$823,11,FALSE)))","v":""},{"$f":"IF($A378=\"\",\"\",IF(OR(VLOOKUP($A378,Economática!$A$3:$AI$823,12,FALSE)=0,VLOOKUP($A378,Economática!$A$3:$AI$823,12,FALSE)=\"-\"),1/0,VLOOKUP($A378,Economática!$A$3:$AI$823,12,FALSE)))","v":""},{"$f":"IF($A378=\"\",\"\",IF(OR(VLOOKUP($A378,Economática!$A$3:$AI$823,13,FALSE)=0,VLOOKUP($A378,Economática!$A$3:$AI$823,13,FALSE)=\"-\"),1/0,VLOOKUP($A378,Economática!$A$3:$AI$823,13,FALSE)))","v":""},{"$f":"IF($A378=\"\",\"\",IF(OR(VLOOKUP($A378,Economática!$A$3:$AI$823,14,FALSE)=0,VLOOKUP($A378,Economática!$A$3:$AI$823,14,FALSE)=\"-\"),1/0,VLOOKUP($A378,Economática!$A$3:$AI$823,14,FALSE)))","v":""},{"$f":"IF($A378=\"\",\"\",IF(OR(VLOOKUP($A378,Economática!$A$3:$AI$823,15,FALSE)=0,VLOOKUP($A378,Economática!$A$3:$AI$823,15,FALSE)=\"-\"),1/0,VLOOKUP($A378,Economática!$A$3:$AI$823,15,FALSE)))","v":""},{"$f":"IF($A378=\"\",\"\",IF(OR(VLOOKUP($A378,Economática!$A$3:$AI$823,16,FALSE)=0,VLOOKUP($A378,Economática!$A$3:$AI$823,16,FALSE)=\"-\"),1/0,VLOOKUP($A378,Economática!$A$3:$AI$823,16,FALSE)))","v":""},{"$f":"IF($A378=\"\",\"\",IF(OR(VLOOKUP($A378,Economática!$A$3:$AI$823,17,FALSE)=0,VLOOKUP($A378,Economática!$A$3:$AI$823,17,FALSE)=\"-\"),1/0,VLOOKUP($A378,Economática!$A$3:$AI$823,17,FALSE)))","v":""},{"$f":"IF($A378=\"\",\"\",IF(OR(VLOOKUP($A378,Economática!$A$3:$AI$823,18,FALSE)=0,VLOOKUP($A378,Economática!$A$3:$AI$823,18,FALSE)=\"-\"),1/0,VLOOKUP($A378,Economática!$A$3:$AI$823,18,FALSE)))","v":""},{"$f":"IF($A378=\"\",\"\",IF(OR(VLOOKUP($A378,Economática!$A$3:$AI$823,19,FALSE)=0,VLOOKUP($A378,Economática!$A$3:$AI$823,19,FALSE)=\"-\"),1/0,VLOOKUP($A378,Economática!$A$3:$AI$823,19,FALSE)))","v":""},{"$f":"IF($A378=\"\",\"\",VLOOKUP($A378,Economática!$A$3:$AI$823,20,FALSE)/E378)","v":""},"","","",{"$f":"IF($A378=\"\",\"\",IF(OR(VLOOKUP($A378,Economática!$A$3:$AI$823,21,FALSE)/100=0,VLOOKUP($A378,Economática!$A$3:$AI$823,21,FALSE)/100=\"-\"),1/0,VLOOKUP($A378,Economática!$A$3:$AI$823,21,FALSE)/100))","v":""},{"$f":"IF($A378=\"\",\"\",IF(OR(VLOOKUP($A378,Economática!$A$3:$AI$823,22,FALSE)/100=0,VLOOKUP($A378,Economática!$A$3:$AI$823,22,FALSE)/100=\"-\"),1/0,VLOOKUP($A378,Economática!$A$3:$AI$823,22,FALSE)/100))","v":""},{"$f":"IF($A378=\"\",\"\",IF(OR(VLOOKUP($A378,Economática!$A$3:$AI$823,23,FALSE)=0,VLOOKUP($A378,Economática!$A$3:$AI$823,23,FALSE)=\"-\"),1/0,VLOOKUP($A378,Economática!$A$3:$AI$823,23,FALSE)))","v":""},{"$f":"IF($A378=\"\",\"\",IF(OR(VLOOKUP($A378,Economática!$A$3:$AI$823,24,FALSE)=0,VLOOKUP($A378,Economática!$A$3:$AI$823,24,FALSE)=\"-\"),1/0,VLOOKUP($A378,Economática!$A$3:$AI$823,24,FALSE)))","v":""},{"$f":"IF($A378=\"\",\"\",IF(OR(VLOOKUP($A378,Economática!$A$3:$AI$823,25,FALSE)=0,VLOOKUP($A378,Economática!$A$3:$AI$823,25,FALSE)=\"-\"),1/0,VLOOKUP($A378,Economática!$A$3:$AI$823,25,FALSE)))","v":""},{"$f":"IF($A378=\"\",\"\",IF(ISERROR((F378+VLOOKUP($A378,Economática!$A$3:$AI$823,26,FALSE))/Y378),(F378+VLOOKUP($A378,Economática!$A$3:$AI$823,26,FALSE))/Y378,(F378+VLOOKUP($A378,Economática!$A$3:$AI$823,26,FALSE))/Y378))","v":""},{"$f":"IF($A378=\"\",\"\",IF(OR(-VLOOKUP($A378,Economática!$A$3:$AI$823,27,FALSE)=0,-VLOOKUP($A378,Economática!$A$3:$AI$823,27,FALSE)=\"-\"),1/0,-VLOOKUP($A378,Economática!$A$3:$AI$823,27,FALSE)))","v":""},"",{"$f":"IF($A378=\"\",\"\",IF(OR(VLOOKUP($A378,Economática!$A$3:$AI$823,28,FALSE)=0,VLOOKUP($A378,Economática!$A$3:$AI$823,28,FALSE)=\"-\"),1/0,VLOOKUP($A378,Economática!$A$3:$AI$823,28,FALSE)))","v":""},{"$f":"IF($A378=\"\",\"\",IF(OR(VLOOKUP($A378,Economática!$A$3:$AI$823,29,FALSE)=0,VLOOKUP($A378,Economática!$A$3:$AI$823,29,FALSE)=\"-\"),1/0,VLOOKUP($A378,Economática!$A$3:$AI$823,29,FALSE)))","v":""},{"$f":"IF($A378=\"\",\"\",IF(OR(VLOOKUP($A378,Economática!$A$3:$AI$823,30,FALSE)/E378=0,VLOOKUP($A378,Economática!$A$3:$AI$823,30,FALSE)/E378=\"-\",VLOOKUP($A378,Economática!$A$3:$AI$823,30,FALSE)/E378<33.33%,VLOOKUP($A378,Economática!$A$3:$AI$823,30,FALSE)/E378>100%),1/0,VLOOKUP($A378,Economática!$A$3:$AI$823,30,FALSE)/E378))","v":""},"",{"$f":"IF($A378=\"\",\"\",IF(OR(VLOOKUP($A378,Economática!$A$3:$AI$823,25,FALSE)=0,VLOOKUP($A378,Economática!$A$3:$AI$823,25,FALSE)=\"-\"),1/0,VLOOKUP($A378,Economática!$A$3:$AI$823,25,FALSE)))","v":""},{"$f":"CONCATENATE(Economática!B356,\" \",Economática!C356)","v":" "}]
[{"$f":"IF(Economática!AG357=\"\",\"\",Economática!AG357)","v":""},{"$f":"IF($A379=\"\",\"\",VLOOKUP(VLOOKUP($A379,Economática!$A$3:$AI$823,6,FALSE),Correção!$B$16:$C$36,2,FALSE))","v":""},{"$f":"IF(Economática!B357=\"\",\"\",Economática!B357)","v":""},{"$f":"IF($A379=\"\",\"\",IF(OR(VLOOKUP($A379,Economática!$A$3:$AI$823,8,FALSE)=0,VLOOKUP($A379,Economática!$A$3:$AI$823,8,FALSE)=\"-\"),1/0,VLOOKUP($A379,Economática!$A$3:$AI$823,8,FALSE)))","v":""},{"$f":"IF(A379=\"\",\"\",IF(ISERROR(VLOOKUP(A379,Correção!$B$2:$G$13,9,FALSE)),VLOOKUP($A379,Economática!$A$3:$AI$823,9,FALSE),VLOOKUP(A379,Correção!$B$2:$G$13,9,FALSE)))","v":""},{"$f":"IF($A379=\"\",\"\",Economática!G357)","v":""},{"$f":"IF($A379=\"\",\"\",IF(OR(VLOOKUP($A379,Economática!$A$3:$AI$823,10,FALSE)=0,VLOOKUP($A379,Economática!$A$3:$AI$823,10,FALSE)=\"-\"),1/0,VLOOKUP($A379,Economática!$A$3:$AI$823,10,FALSE)))","v":""},{"$f":"IF($A379=\"\",\"\",IF(OR(VLOOKUP($A379,Economática!$A$3:$AI$823,11,FALSE)=0,VLOOKUP($A379,Economática!$A$3:$AI$823,11,FALSE)=\"-\"),1/0,VLOOKUP($A379,Economática!$A$3:$AI$823,11,FALSE)))","v":""},{"$f":"IF($A379=\"\",\"\",IF(OR(VLOOKUP($A379,Economática!$A$3:$AI$823,12,FALSE)=0,VLOOKUP($A379,Economática!$A$3:$AI$823,12,FALSE)=\"-\"),1/0,VLOOKUP($A379,Economática!$A$3:$AI$823,12,FALSE)))","v":""},{"$f":"IF($A379=\"\",\"\",IF(OR(VLOOKUP($A379,Economática!$A$3:$AI$823,13,FALSE)=0,VLOOKUP($A379,Economática!$A$3:$AI$823,13,FALSE)=\"-\"),1/0,VLOOKUP($A379,Economática!$A$3:$AI$823,13,FALSE)))","v":""},{"$f":"IF($A379=\"\",\"\",IF(OR(VLOOKUP($A379,Economática!$A$3:$AI$823,14,FALSE)=0,VLOOKUP($A379,Economática!$A$3:$AI$823,14,FALSE)=\"-\"),1/0,VLOOKUP($A379,Economática!$A$3:$AI$823,14,FALSE)))","v":""},{"$f":"IF($A379=\"\",\"\",IF(OR(VLOOKUP($A379,Economática!$A$3:$AI$823,15,FALSE)=0,VLOOKUP($A379,Economática!$A$3:$AI$823,15,FALSE)=\"-\"),1/0,VLOOKUP($A379,Economática!$A$3:$AI$823,15,FALSE)))","v":""},{"$f":"IF($A379=\"\",\"\",IF(OR(VLOOKUP($A379,Economática!$A$3:$AI$823,16,FALSE)=0,VLOOKUP($A379,Economática!$A$3:$AI$823,16,FALSE)=\"-\"),1/0,VLOOKUP($A379,Economática!$A$3:$AI$823,16,FALSE)))","v":""},{"$f":"IF($A379=\"\",\"\",IF(OR(VLOOKUP($A379,Economática!$A$3:$AI$823,17,FALSE)=0,VLOOKUP($A379,Economática!$A$3:$AI$823,17,FALSE)=\"-\"),1/0,VLOOKUP($A379,Economática!$A$3:$AI$823,17,FALSE)))","v":""},{"$f":"IF($A379=\"\",\"\",IF(OR(VLOOKUP($A379,Economática!$A$3:$AI$823,18,FALSE)=0,VLOOKUP($A379,Economática!$A$3:$AI$823,18,FALSE)=\"-\"),1/0,VLOOKUP($A379,Economática!$A$3:$AI$823,18,FALSE)))","v":""},{"$f":"IF($A379=\"\",\"\",IF(OR(VLOOKUP($A379,Economática!$A$3:$AI$823,19,FALSE)=0,VLOOKUP($A379,Economática!$A$3:$AI$823,19,FALSE)=\"-\"),1/0,VLOOKUP($A379,Economática!$A$3:$AI$823,19,FALSE)))","v":""},{"$f":"IF($A379=\"\",\"\",VLOOKUP($A379,Economática!$A$3:$AI$823,20,FALSE)/E379)","v":""},"","","",{"$f":"IF($A379=\"\",\"\",IF(OR(VLOOKUP($A379,Economática!$A$3:$AI$823,21,FALSE)/100=0,VLOOKUP($A379,Economática!$A$3:$AI$823,21,FALSE)/100=\"-\"),1/0,VLOOKUP($A379,Economática!$A$3:$AI$823,21,FALSE)/100))","v":""},{"$f":"IF($A379=\"\",\"\",IF(OR(VLOOKUP($A379,Economática!$A$3:$AI$823,22,FALSE)/100=0,VLOOKUP($A379,Economática!$A$3:$AI$823,22,FALSE)/100=\"-\"),1/0,VLOOKUP($A379,Economática!$A$3:$AI$823,22,FALSE)/100))","v":""},{"$f":"IF($A379=\"\",\"\",IF(OR(VLOOKUP($A379,Economática!$A$3:$AI$823,23,FALSE)=0,VLOOKUP($A379,Economática!$A$3:$AI$823,23,FALSE)=\"-\"),1/0,VLOOKUP($A379,Economática!$A$3:$AI$823,23,FALSE)))","v":""},{"$f":"IF($A379=\"\",\"\",IF(OR(VLOOKUP($A379,Economática!$A$3:$AI$823,24,FALSE)=0,VLOOKUP($A379,Economática!$A$3:$AI$823,24,FALSE)=\"-\"),1/0,VLOOKUP($A379,Economática!$A$3:$AI$823,24,FALSE)))","v":""},{"$f":"IF($A379=\"\",\"\",IF(OR(VLOOKUP($A379,Economática!$A$3:$AI$823,25,FALSE)=0,VLOOKUP($A379,Economática!$A$3:$AI$823,25,FALSE)=\"-\"),1/0,VLOOKUP($A379,Economática!$A$3:$AI$823,25,FALSE)))","v":""},{"$f":"IF($A379=\"\",\"\",IF(ISERROR((F379+VLOOKUP($A379,Economática!$A$3:$AI$823,26,FALSE))/Y379),(F379+VLOOKUP($A379,Economática!$A$3:$AI$823,26,FALSE))/Y379,(F379+VLOOKUP($A379,Economática!$A$3:$AI$823,26,FALSE))/Y379))","v":""},{"$f":"IF($A379=\"\",\"\",IF(OR(-VLOOKUP($A379,Economática!$A$3:$AI$823,27,FALSE)=0,-VLOOKUP($A379,Economática!$A$3:$AI$823,27,FALSE)=\"-\"),1/0,-VLOOKUP($A379,Economática!$A$3:$AI$823,27,FALSE)))","v":""},"",{"$f":"IF($A379=\"\",\"\",IF(OR(VLOOKUP($A379,Economática!$A$3:$AI$823,28,FALSE)=0,VLOOKUP($A379,Economática!$A$3:$AI$823,28,FALSE)=\"-\"),1/0,VLOOKUP($A379,Economática!$A$3:$AI$823,28,FALSE)))","v":""},{"$f":"IF($A379=\"\",\"\",IF(OR(VLOOKUP($A379,Economática!$A$3:$AI$823,29,FALSE)=0,VLOOKUP($A379,Economática!$A$3:$AI$823,29,FALSE)=\"-\"),1/0,VLOOKUP($A379,Economática!$A$3:$AI$823,29,FALSE)))","v":""},{"$f":"IF($A379=\"\",\"\",IF(OR(VLOOKUP($A379,Economática!$A$3:$AI$823,30,FALSE)/E379=0,VLOOKUP($A379,Economática!$A$3:$AI$823,30,FALSE)/E379=\"-\",VLOOKUP($A379,Economática!$A$3:$AI$823,30,FALSE)/E379<33.33%,VLOOKUP($A379,Economática!$A$3:$AI$823,30,FALSE)/E379>100%),1/0,VLOOKUP($A379,Economática!$A$3:$AI$823,30,FALSE)/E379))","v":""},"",{"$f":"IF($A379=\"\",\"\",IF(OR(VLOOKUP($A379,Economática!$A$3:$AI$823,25,FALSE)=0,VLOOKUP($A379,Economática!$A$3:$AI$823,25,FALSE)=\"-\"),1/0,VLOOKUP($A379,Economática!$A$3:$AI$823,25,FALSE)))","v":""},{"$f":"CONCATENATE(Economática!B357,\" \",Economática!C357)","v":" "}]
[{"$f":"IF(Economática!AG358=\"\",\"\",Economática!AG358)","v":""},{"$f":"IF($A380=\"\",\"\",VLOOKUP(VLOOKUP($A380,Economática!$A$3:$AI$823,6,FALSE),Correção!$B$16:$C$36,2,FALSE))","v":""},{"$f":"IF(Economática!B358=\"\",\"\",Economática!B358)","v":""},{"$f":"IF($A380=\"\",\"\",IF(OR(VLOOKUP($A380,Economática!$A$3:$AI$823,8,FALSE)=0,VLOOKUP($A380,Economática!$A$3:$AI$823,8,FALSE)=\"-\"),1/0,VLOOKUP($A380,Economática!$A$3:$AI$823,8,FALSE)))","v":""},{"$f":"IF(A380=\"\",\"\",IF(ISERROR(VLOOKUP(A380,Correção!$B$2:$G$13,9,FALSE)),VLOOKUP($A380,Economática!$A$3:$AI$823,9,FALSE),VLOOKUP(A380,Correção!$B$2:$G$13,9,FALSE)))","v":""},{"$f":"IF($A380=\"\",\"\",Economática!G358)","v":""},{"$f":"IF($A380=\"\",\"\",IF(OR(VLOOKUP($A380,Economática!$A$3:$AI$823,10,FALSE)=0,VLOOKUP($A380,Economática!$A$3:$AI$823,10,FALSE)=\"-\"),1/0,VLOOKUP($A380,Economática!$A$3:$AI$823,10,FALSE)))","v":""},{"$f":"IF($A380=\"\",\"\",IF(OR(VLOOKUP($A380,Economática!$A$3:$AI$823,11,FALSE)=0,VLOOKUP($A380,Economática!$A$3:$AI$823,11,FALSE)=\"-\"),1/0,VLOOKUP($A380,Economática!$A$3:$AI$823,11,FALSE)))","v":""},{"$f":"IF($A380=\"\",\"\",IF(OR(VLOOKUP($A380,Economática!$A$3:$AI$823,12,FALSE)=0,VLOOKUP($A380,Economática!$A$3:$AI$823,12,FALSE)=\"-\"),1/0,VLOOKUP($A380,Economática!$A$3:$AI$823,12,FALSE)))","v":""},{"$f":"IF($A380=\"\",\"\",IF(OR(VLOOKUP($A380,Economática!$A$3:$AI$823,13,FALSE)=0,VLOOKUP($A380,Economática!$A$3:$AI$823,13,FALSE)=\"-\"),1/0,VLOOKUP($A380,Economática!$A$3:$AI$823,13,FALSE)))","v":""},{"$f":"IF($A380=\"\",\"\",IF(OR(VLOOKUP($A380,Economática!$A$3:$AI$823,14,FALSE)=0,VLOOKUP($A380,Economática!$A$3:$AI$823,14,FALSE)=\"-\"),1/0,VLOOKUP($A380,Economática!$A$3:$AI$823,14,FALSE)))","v":""},{"$f":"IF($A380=\"\",\"\",IF(OR(VLOOKUP($A380,Economática!$A$3:$AI$823,15,FALSE)=0,VLOOKUP($A380,Economática!$A$3:$AI$823,15,FALSE)=\"-\"),1/0,VLOOKUP($A380,Economática!$A$3:$AI$823,15,FALSE)))","v":""},{"$f":"IF($A380=\"\",\"\",IF(OR(VLOOKUP($A380,Economática!$A$3:$AI$823,16,FALSE)=0,VLOOKUP($A380,Economática!$A$3:$AI$823,16,FALSE)=\"-\"),1/0,VLOOKUP($A380,Economática!$A$3:$AI$823,16,FALSE)))","v":""},{"$f":"IF($A380=\"\",\"\",IF(OR(VLOOKUP($A380,Economática!$A$3:$AI$823,17,FALSE)=0,VLOOKUP($A380,Economática!$A$3:$AI$823,17,FALSE)=\"-\"),1/0,VLOOKUP($A380,Economática!$A$3:$AI$823,17,FALSE)))","v":""},{"$f":"IF($A380=\"\",\"\",IF(OR(VLOOKUP($A380,Economática!$A$3:$AI$823,18,FALSE)=0,VLOOKUP($A380,Economática!$A$3:$AI$823,18,FALSE)=\"-\"),1/0,VLOOKUP($A380,Economática!$A$3:$AI$823,18,FALSE)))","v":""},{"$f":"IF($A380=\"\",\"\",IF(OR(VLOOKUP($A380,Economática!$A$3:$AI$823,19,FALSE)=0,VLOOKUP($A380,Economática!$A$3:$AI$823,19,FALSE)=\"-\"),1/0,VLOOKUP($A380,Economática!$A$3:$AI$823,19,FALSE)))","v":""},{"$f":"IF($A380=\"\",\"\",VLOOKUP($A380,Economática!$A$3:$AI$823,20,FALSE)/E380)","v":""},"","","",{"$f":"IF($A380=\"\",\"\",IF(OR(VLOOKUP($A380,Economática!$A$3:$AI$823,21,FALSE)/100=0,VLOOKUP($A380,Economática!$A$3:$AI$823,21,FALSE)/100=\"-\"),1/0,VLOOKUP($A380,Economática!$A$3:$AI$823,21,FALSE)/100))","v":""},{"$f":"IF($A380=\"\",\"\",IF(OR(VLOOKUP($A380,Economática!$A$3:$AI$823,22,FALSE)/100=0,VLOOKUP($A380,Economática!$A$3:$AI$823,22,FALSE)/100=\"-\"),1/0,VLOOKUP($A380,Economática!$A$3:$AI$823,22,FALSE)/100))","v":""},{"$f":"IF($A380=\"\",\"\",IF(OR(VLOOKUP($A380,Economática!$A$3:$AI$823,23,FALSE)=0,VLOOKUP($A380,Economática!$A$3:$AI$823,23,FALSE)=\"-\"),1/0,VLOOKUP($A380,Economática!$A$3:$AI$823,23,FALSE)))","v":""},{"$f":"IF($A380=\"\",\"\",IF(OR(VLOOKUP($A380,Economática!$A$3:$AI$823,24,FALSE)=0,VLOOKUP($A380,Economática!$A$3:$AI$823,24,FALSE)=\"-\"),1/0,VLOOKUP($A380,Economática!$A$3:$AI$823,24,FALSE)))","v":""},{"$f":"IF($A380=\"\",\"\",IF(OR(VLOOKUP($A380,Economática!$A$3:$AI$823,25,FALSE)=0,VLOOKUP($A380,Economática!$A$3:$AI$823,25,FALSE)=\"-\"),1/0,VLOOKUP($A380,Economática!$A$3:$AI$823,25,FALSE)))","v":""},{"$f":"IF($A380=\"\",\"\",IF(ISERROR((F380+VLOOKUP($A380,Economática!$A$3:$AI$823,26,FALSE))/Y380),(F380+VLOOKUP($A380,Economática!$A$3:$AI$823,26,FALSE))/Y380,(F380+VLOOKUP($A380,Economática!$A$3:$AI$823,26,FALSE))/Y380))","v":""},{"$f":"IF($A380=\"\",\"\",IF(OR(-VLOOKUP($A380,Economática!$A$3:$AI$823,27,FALSE)=0,-VLOOKUP($A380,Economática!$A$3:$AI$823,27,FALSE)=\"-\"),1/0,-VLOOKUP($A380,Economática!$A$3:$AI$823,27,FALSE)))","v":""},"",{"$f":"IF($A380=\"\",\"\",IF(OR(VLOOKUP($A380,Economática!$A$3:$AI$823,28,FALSE)=0,VLOOKUP($A380,Economática!$A$3:$AI$823,28,FALSE)=\"-\"),1/0,VLOOKUP($A380,Economática!$A$3:$AI$823,28,FALSE)))","v":""},{"$f":"IF($A380=\"\",\"\",IF(OR(VLOOKUP($A380,Economática!$A$3:$AI$823,29,FALSE)=0,VLOOKUP($A380,Economática!$A$3:$AI$823,29,FALSE)=\"-\"),1/0,VLOOKUP($A380,Economática!$A$3:$AI$823,29,FALSE)))","v":""},{"$f":"IF($A380=\"\",\"\",IF(OR(VLOOKUP($A380,Economática!$A$3:$AI$823,30,FALSE)/E380=0,VLOOKUP($A380,Economática!$A$3:$AI$823,30,FALSE)/E380=\"-\",VLOOKUP($A380,Economática!$A$3:$AI$823,30,FALSE)/E380<33.33%,VLOOKUP($A380,Economática!$A$3:$AI$823,30,FALSE)/E380>100%),1/0,VLOOKUP($A380,Economática!$A$3:$AI$823,30,FALSE)/E380))","v":""},"",{"$f":"IF($A380=\"\",\"\",IF(OR(VLOOKUP($A380,Economática!$A$3:$AI$823,25,FALSE)=0,VLOOKUP($A380,Economática!$A$3:$AI$823,25,FALSE)=\"-\"),1/0,VLOOKUP($A380,Economática!$A$3:$AI$823,25,FALSE)))","v":""},{"$f":"CONCATENATE(Economática!B358,\" \",Economática!C358)","v":" "}]
[{"$f":"IF(Economática!AG359=\"\",\"\",Economática!AG359)","v":""},{"$f":"IF($A381=\"\",\"\",VLOOKUP(VLOOKUP($A381,Economática!$A$3:$AI$823,6,FALSE),Correção!$B$16:$C$36,2,FALSE))","v":""},{"$f":"IF(Economática!B359=\"\",\"\",Economática!B359)","v":""},{"$f":"IF($A381=\"\",\"\",IF(OR(VLOOKUP($A381,Economática!$A$3:$AI$823,8,FALSE)=0,VLOOKUP($A381,Economática!$A$3:$AI$823,8,FALSE)=\"-\"),1/0,VLOOKUP($A381,Economática!$A$3:$AI$823,8,FALSE)))","v":""},{"$f":"IF(A381=\"\",\"\",IF(ISERROR(VLOOKUP(A381,Correção!$B$2:$G$13,9,FALSE)),VLOOKUP($A381,Economática!$A$3:$AI$823,9,FALSE),VLOOKUP(A381,Correção!$B$2:$G$13,9,FALSE)))","v":""},{"$f":"IF($A381=\"\",\"\",Economática!G359)","v":""},{"$f":"IF($A381=\"\",\"\",IF(OR(VLOOKUP($A381,Economática!$A$3:$AI$823,10,FALSE)=0,VLOOKUP($A381,Economática!$A$3:$AI$823,10,FALSE)=\"-\"),1/0,VLOOKUP($A381,Economática!$A$3:$AI$823,10,FALSE)))","v":""},{"$f":"IF($A381=\"\",\"\",IF(OR(VLOOKUP($A381,Economática!$A$3:$AI$823,11,FALSE)=0,VLOOKUP($A381,Economática!$A$3:$AI$823,11,FALSE)=\"-\"),1/0,VLOOKUP($A381,Economática!$A$3:$AI$823,11,FALSE)))","v":""},{"$f":"IF($A381=\"\",\"\",IF(OR(VLOOKUP($A381,Economática!$A$3:$AI$823,12,FALSE)=0,VLOOKUP($A381,Economática!$A$3:$AI$823,12,FALSE)=\"-\"),1/0,VLOOKUP($A381,Economática!$A$3:$AI$823,12,FALSE)))","v":""},{"$f":"IF($A381=\"\",\"\",IF(OR(VLOOKUP($A381,Economática!$A$3:$AI$823,13,FALSE)=0,VLOOKUP($A381,Economática!$A$3:$AI$823,13,FALSE)=\"-\"),1/0,VLOOKUP($A381,Economática!$A$3:$AI$823,13,FALSE)))","v":""},{"$f":"IF($A381=\"\",\"\",IF(OR(VLOOKUP($A381,Economática!$A$3:$AI$823,14,FALSE)=0,VLOOKUP($A381,Economática!$A$3:$AI$823,14,FALSE)=\"-\"),1/0,VLOOKUP($A381,Economática!$A$3:$AI$823,14,FALSE)))","v":""},{"$f":"IF($A381=\"\",\"\",IF(OR(VLOOKUP($A381,Economática!$A$3:$AI$823,15,FALSE)=0,VLOOKUP($A381,Economática!$A$3:$AI$823,15,FALSE)=\"-\"),1/0,VLOOKUP($A381,Economática!$A$3:$AI$823,15,FALSE)))","v":""},{"$f":"IF($A381=\"\",\"\",IF(OR(VLOOKUP($A381,Economática!$A$3:$AI$823,16,FALSE)=0,VLOOKUP($A381,Economática!$A$3:$AI$823,16,FALSE)=\"-\"),1/0,VLOOKUP($A381,Economática!$A$3:$AI$823,16,FALSE)))","v":""},{"$f":"IF($A381=\"\",\"\",IF(OR(VLOOKUP($A381,Economática!$A$3:$AI$823,17,FALSE)=0,VLOOKUP($A381,Economática!$A$3:$AI$823,17,FALSE)=\"-\"),1/0,VLOOKUP($A381,Economática!$A$3:$AI$823,17,FALSE)))","v":""},{"$f":"IF($A381=\"\",\"\",IF(OR(VLOOKUP($A381,Economática!$A$3:$AI$823,18,FALSE)=0,VLOOKUP($A381,Economática!$A$3:$AI$823,18,FALSE)=\"-\"),1/0,VLOOKUP($A381,Economática!$A$3:$AI$823,18,FALSE)))","v":""},{"$f":"IF($A381=\"\",\"\",IF(OR(VLOOKUP($A381,Economática!$A$3:$AI$823,19,FALSE)=0,VLOOKUP($A381,Economática!$A$3:$AI$823,19,FALSE)=\"-\"),1/0,VLOOKUP($A381,Economática!$A$3:$AI$823,19,FALSE)))","v":""},{"$f":"IF($A381=\"\",\"\",VLOOKUP($A381,Economática!$A$3:$AI$823,20,FALSE)/E381)","v":""},"","","",{"$f":"IF($A381=\"\",\"\",IF(OR(VLOOKUP($A381,Economática!$A$3:$AI$823,21,FALSE)/100=0,VLOOKUP($A381,Economática!$A$3:$AI$823,21,FALSE)/100=\"-\"),1/0,VLOOKUP($A381,Economática!$A$3:$AI$823,21,FALSE)/100))","v":""},{"$f":"IF($A381=\"\",\"\",IF(OR(VLOOKUP($A381,Economática!$A$3:$AI$823,22,FALSE)/100=0,VLOOKUP($A381,Economática!$A$3:$AI$823,22,FALSE)/100=\"-\"),1/0,VLOOKUP($A381,Economática!$A$3:$AI$823,22,FALSE)/100))","v":""},{"$f":"IF($A381=\"\",\"\",IF(OR(VLOOKUP($A381,Economática!$A$3:$AI$823,23,FALSE)=0,VLOOKUP($A381,Economática!$A$3:$AI$823,23,FALSE)=\"-\"),1/0,VLOOKUP($A381,Economática!$A$3:$AI$823,23,FALSE)))","v":""},{"$f":"IF($A381=\"\",\"\",IF(OR(VLOOKUP($A381,Economática!$A$3:$AI$823,24,FALSE)=0,VLOOKUP($A381,Economática!$A$3:$AI$823,24,FALSE)=\"-\"),1/0,VLOOKUP($A381,Economática!$A$3:$AI$823,24,FALSE)))","v":""},{"$f":"IF($A381=\"\",\"\",IF(OR(VLOOKUP($A381,Economática!$A$3:$AI$823,25,FALSE)=0,VLOOKUP($A381,Economática!$A$3:$AI$823,25,FALSE)=\"-\"),1/0,VLOOKUP($A381,Economática!$A$3:$AI$823,25,FALSE)))","v":""},{"$f":"IF($A381=\"\",\"\",IF(ISERROR((F381+VLOOKUP($A381,Economática!$A$3:$AI$823,26,FALSE))/Y381),(F381+VLOOKUP($A381,Economática!$A$3:$AI$823,26,FALSE))/Y381,(F381+VLOOKUP($A381,Economática!$A$3:$AI$823,26,FALSE))/Y381))","v":""},{"$f":"IF($A381=\"\",\"\",IF(OR(-VLOOKUP($A381,Economática!$A$3:$AI$823,27,FALSE)=0,-VLOOKUP($A381,Economática!$A$3:$AI$823,27,FALSE)=\"-\"),1/0,-VLOOKUP($A381,Economática!$A$3:$AI$823,27,FALSE)))","v":""},"",{"$f":"IF($A381=\"\",\"\",IF(OR(VLOOKUP($A381,Economática!$A$3:$AI$823,28,FALSE)=0,VLOOKUP($A381,Economática!$A$3:$AI$823,28,FALSE)=\"-\"),1/0,VLOOKUP($A381,Economática!$A$3:$AI$823,28,FALSE)))","v":""},{"$f":"IF($A381=\"\",\"\",IF(OR(VLOOKUP($A381,Economática!$A$3:$AI$823,29,FALSE)=0,VLOOKUP($A381,Economática!$A$3:$AI$823,29,FALSE)=\"-\"),1/0,VLOOKUP($A381,Economática!$A$3:$AI$823,29,FALSE)))","v":""},{"$f":"IF($A381=\"\",\"\",IF(OR(VLOOKUP($A381,Economática!$A$3:$AI$823,30,FALSE)/E381=0,VLOOKUP($A381,Economática!$A$3:$AI$823,30,FALSE)/E381=\"-\",VLOOKUP($A381,Economática!$A$3:$AI$823,30,FALSE)/E381<33.33%,VLOOKUP($A381,Economática!$A$3:$AI$823,30,FALSE)/E381>100%),1/0,VLOOKUP($A381,Economática!$A$3:$AI$823,30,FALSE)/E381))","v":""},"",{"$f":"IF($A381=\"\",\"\",IF(OR(VLOOKUP($A381,Economática!$A$3:$AI$823,25,FALSE)=0,VLOOKUP($A381,Economática!$A$3:$AI$823,25,FALSE)=\"-\"),1/0,VLOOKUP($A381,Economática!$A$3:$AI$823,25,FALSE)))","v":""},{"$f":"CONCATENATE(Economática!B359,\" \",Economática!C359)","v":" "}]
[{"$f":"IF(Economática!AG360=\"\",\"\",Economática!AG360)","v":""},{"$f":"IF($A382=\"\",\"\",VLOOKUP(VLOOKUP($A382,Economática!$A$3:$AI$823,6,FALSE),Correção!$B$16:$C$36,2,FALSE))","v":""},{"$f":"IF(Economática!B360=\"\",\"\",Economática!B360)","v":""},{"$f":"IF($A382=\"\",\"\",IF(OR(VLOOKUP($A382,Economática!$A$3:$AI$823,8,FALSE)=0,VLOOKUP($A382,Economática!$A$3:$AI$823,8,FALSE)=\"-\"),1/0,VLOOKUP($A382,Economática!$A$3:$AI$823,8,FALSE)))","v":""},{"$f":"IF(A382=\"\",\"\",IF(ISERROR(VLOOKUP(A382,Correção!$B$2:$G$13,9,FALSE)),VLOOKUP($A382,Economática!$A$3:$AI$823,9,FALSE),VLOOKUP(A382,Correção!$B$2:$G$13,9,FALSE)))","v":""},{"$f":"IF($A382=\"\",\"\",Economática!G360)","v":""},{"$f":"IF($A382=\"\",\"\",IF(OR(VLOOKUP($A382,Economática!$A$3:$AI$823,10,FALSE)=0,VLOOKUP($A382,Economática!$A$3:$AI$823,10,FALSE)=\"-\"),1/0,VLOOKUP($A382,Economática!$A$3:$AI$823,10,FALSE)))","v":""},{"$f":"IF($A382=\"\",\"\",IF(OR(VLOOKUP($A382,Economática!$A$3:$AI$823,11,FALSE)=0,VLOOKUP($A382,Economática!$A$3:$AI$823,11,FALSE)=\"-\"),1/0,VLOOKUP($A382,Economática!$A$3:$AI$823,11,FALSE)))","v":""},{"$f":"IF($A382=\"\",\"\",IF(OR(VLOOKUP($A382,Economática!$A$3:$AI$823,12,FALSE)=0,VLOOKUP($A382,Economática!$A$3:$AI$823,12,FALSE)=\"-\"),1/0,VLOOKUP($A382,Economática!$A$3:$AI$823,12,FALSE)))","v":""},{"$f":"IF($A382=\"\",\"\",IF(OR(VLOOKUP($A382,Economática!$A$3:$AI$823,13,FALSE)=0,VLOOKUP($A382,Economática!$A$3:$AI$823,13,FALSE)=\"-\"),1/0,VLOOKUP($A382,Economática!$A$3:$AI$823,13,FALSE)))","v":""},{"$f":"IF($A382=\"\",\"\",IF(OR(VLOOKUP($A382,Economática!$A$3:$AI$823,14,FALSE)=0,VLOOKUP($A382,Economática!$A$3:$AI$823,14,FALSE)=\"-\"),1/0,VLOOKUP($A382,Economática!$A$3:$AI$823,14,FALSE)))","v":""},{"$f":"IF($A382=\"\",\"\",IF(OR(VLOOKUP($A382,Economática!$A$3:$AI$823,15,FALSE)=0,VLOOKUP($A382,Economática!$A$3:$AI$823,15,FALSE)=\"-\"),1/0,VLOOKUP($A382,Economática!$A$3:$AI$823,15,FALSE)))","v":""},{"$f":"IF($A382=\"\",\"\",IF(OR(VLOOKUP($A382,Economática!$A$3:$AI$823,16,FALSE)=0,VLOOKUP($A382,Economática!$A$3:$AI$823,16,FALSE)=\"-\"),1/0,VLOOKUP($A382,Economática!$A$3:$AI$823,16,FALSE)))","v":""},{"$f":"IF($A382=\"\",\"\",IF(OR(VLOOKUP($A382,Economática!$A$3:$AI$823,17,FALSE)=0,VLOOKUP($A382,Economática!$A$3:$AI$823,17,FALSE)=\"-\"),1/0,VLOOKUP($A382,Economática!$A$3:$AI$823,17,FALSE)))","v":""},{"$f":"IF($A382=\"\",\"\",IF(OR(VLOOKUP($A382,Economática!$A$3:$AI$823,18,FALSE)=0,VLOOKUP($A382,Economática!$A$3:$AI$823,18,FALSE)=\"-\"),1/0,VLOOKUP($A382,Economática!$A$3:$AI$823,18,FALSE)))","v":""},{"$f":"IF($A382=\"\",\"\",IF(OR(VLOOKUP($A382,Economática!$A$3:$AI$823,19,FALSE)=0,VLOOKUP($A382,Economática!$A$3:$AI$823,19,FALSE)=\"-\"),1/0,VLOOKUP($A382,Economática!$A$3:$AI$823,19,FALSE)))","v":""},{"$f":"IF($A382=\"\",\"\",VLOOKUP($A382,Economática!$A$3:$AI$823,20,FALSE)/E382)","v":""},"","","",{"$f":"IF($A382=\"\",\"\",IF(OR(VLOOKUP($A382,Economática!$A$3:$AI$823,21,FALSE)/100=0,VLOOKUP($A382,Economática!$A$3:$AI$823,21,FALSE)/100=\"-\"),1/0,VLOOKUP($A382,Economática!$A$3:$AI$823,21,FALSE)/100))","v":""},{"$f":"IF($A382=\"\",\"\",IF(OR(VLOOKUP($A382,Economática!$A$3:$AI$823,22,FALSE)/100=0,VLOOKUP($A382,Economática!$A$3:$AI$823,22,FALSE)/100=\"-\"),1/0,VLOOKUP($A382,Economática!$A$3:$AI$823,22,FALSE)/100))","v":""},{"$f":"IF($A382=\"\",\"\",IF(OR(VLOOKUP($A382,Economática!$A$3:$AI$823,23,FALSE)=0,VLOOKUP($A382,Economática!$A$3:$AI$823,23,FALSE)=\"-\"),1/0,VLOOKUP($A382,Economática!$A$3:$AI$823,23,FALSE)))","v":""},{"$f":"IF($A382=\"\",\"\",IF(OR(VLOOKUP($A382,Economática!$A$3:$AI$823,24,FALSE)=0,VLOOKUP($A382,Economática!$A$3:$AI$823,24,FALSE)=\"-\"),1/0,VLOOKUP($A382,Economática!$A$3:$AI$823,24,FALSE)))","v":""},{"$f":"IF($A382=\"\",\"\",IF(OR(VLOOKUP($A382,Economática!$A$3:$AI$823,25,FALSE)=0,VLOOKUP($A382,Economática!$A$3:$AI$823,25,FALSE)=\"-\"),1/0,VLOOKUP($A382,Economática!$A$3:$AI$823,25,FALSE)))","v":""},{"$f":"IF($A382=\"\",\"\",IF(ISERROR((F382+VLOOKUP($A382,Economática!$A$3:$AI$823,26,FALSE))/Y382),(F382+VLOOKUP($A382,Economática!$A$3:$AI$823,26,FALSE))/Y382,(F382+VLOOKUP($A382,Economática!$A$3:$AI$823,26,FALSE))/Y382))","v":""},{"$f":"IF($A382=\"\",\"\",IF(OR(-VLOOKUP($A382,Economática!$A$3:$AI$823,27,FALSE)=0,-VLOOKUP($A382,Economática!$A$3:$AI$823,27,FALSE)=\"-\"),1/0,-VLOOKUP($A382,Economática!$A$3:$AI$823,27,FALSE)))","v":""},"",{"$f":"IF($A382=\"\",\"\",IF(OR(VLOOKUP($A382,Economática!$A$3:$AI$823,28,FALSE)=0,VLOOKUP($A382,Economática!$A$3:$AI$823,28,FALSE)=\"-\"),1/0,VLOOKUP($A382,Economática!$A$3:$AI$823,28,FALSE)))","v":""},{"$f":"IF($A382=\"\",\"\",IF(OR(VLOOKUP($A382,Economática!$A$3:$AI$823,29,FALSE)=0,VLOOKUP($A382,Economática!$A$3:$AI$823,29,FALSE)=\"-\"),1/0,VLOOKUP($A382,Economática!$A$3:$AI$823,29,FALSE)))","v":""},{"$f":"IF($A382=\"\",\"\",IF(OR(VLOOKUP($A382,Economática!$A$3:$AI$823,30,FALSE)/E382=0,VLOOKUP($A382,Economática!$A$3:$AI$823,30,FALSE)/E382=\"-\",VLOOKUP($A382,Economática!$A$3:$AI$823,30,FALSE)/E382<33.33%,VLOOKUP($A382,Economática!$A$3:$AI$823,30,FALSE)/E382>100%),1/0,VLOOKUP($A382,Economática!$A$3:$AI$823,30,FALSE)/E382))","v":""},"",{"$f":"IF($A382=\"\",\"\",IF(OR(VLOOKUP($A382,Economática!$A$3:$AI$823,25,FALSE)=0,VLOOKUP($A382,Economática!$A$3:$AI$823,25,FALSE)=\"-\"),1/0,VLOOKUP($A382,Economática!$A$3:$AI$823,25,FALSE)))","v":""},{"$f":"CONCATENATE(Economática!B360,\" \",Economática!C360)","v":" "}]
[{"$f":"IF(Economática!AG361=\"\",\"\",Economática!AG361)","v":""},{"$f":"IF($A383=\"\",\"\",VLOOKUP(VLOOKUP($A383,Economática!$A$3:$AI$823,6,FALSE),Correção!$B$16:$C$36,2,FALSE))","v":""},{"$f":"IF(Economática!B361=\"\",\"\",Economática!B361)","v":""},{"$f":"IF($A383=\"\",\"\",IF(OR(VLOOKUP($A383,Economática!$A$3:$AI$823,8,FALSE)=0,VLOOKUP($A383,Economática!$A$3:$AI$823,8,FALSE)=\"-\"),1/0,VLOOKUP($A383,Economática!$A$3:$AI$823,8,FALSE)))","v":""},{"$f":"IF(A383=\"\",\"\",IF(ISERROR(VLOOKUP(A383,Correção!$B$2:$G$13,9,FALSE)),VLOOKUP($A383,Economática!$A$3:$AI$823,9,FALSE),VLOOKUP(A383,Correção!$B$2:$G$13,9,FALSE)))","v":""},{"$f":"IF($A383=\"\",\"\",Economática!G361)","v":""},{"$f":"IF($A383=\"\",\"\",IF(OR(VLOOKUP($A383,Economática!$A$3:$AI$823,10,FALSE)=0,VLOOKUP($A383,Economática!$A$3:$AI$823,10,FALSE)=\"-\"),1/0,VLOOKUP($A383,Economática!$A$3:$AI$823,10,FALSE)))","v":""},{"$f":"IF($A383=\"\",\"\",IF(OR(VLOOKUP($A383,Economática!$A$3:$AI$823,11,FALSE)=0,VLOOKUP($A383,Economática!$A$3:$AI$823,11,FALSE)=\"-\"),1/0,VLOOKUP($A383,Economática!$A$3:$AI$823,11,FALSE)))","v":""},{"$f":"IF($A383=\"\",\"\",IF(OR(VLOOKUP($A383,Economática!$A$3:$AI$823,12,FALSE)=0,VLOOKUP($A383,Economática!$A$3:$AI$823,12,FALSE)=\"-\"),1/0,VLOOKUP($A383,Economática!$A$3:$AI$823,12,FALSE)))","v":""},{"$f":"IF($A383=\"\",\"\",IF(OR(VLOOKUP($A383,Economática!$A$3:$AI$823,13,FALSE)=0,VLOOKUP($A383,Economática!$A$3:$AI$823,13,FALSE)=\"-\"),1/0,VLOOKUP($A383,Economática!$A$3:$AI$823,13,FALSE)))","v":""},{"$f":"IF($A383=\"\",\"\",IF(OR(VLOOKUP($A383,Economática!$A$3:$AI$823,14,FALSE)=0,VLOOKUP($A383,Economática!$A$3:$AI$823,14,FALSE)=\"-\"),1/0,VLOOKUP($A383,Economática!$A$3:$AI$823,14,FALSE)))","v":""},{"$f":"IF($A383=\"\",\"\",IF(OR(VLOOKUP($A383,Economática!$A$3:$AI$823,15,FALSE)=0,VLOOKUP($A383,Economática!$A$3:$AI$823,15,FALSE)=\"-\"),1/0,VLOOKUP($A383,Economática!$A$3:$AI$823,15,FALSE)))","v":""},{"$f":"IF($A383=\"\",\"\",IF(OR(VLOOKUP($A383,Economática!$A$3:$AI$823,16,FALSE)=0,VLOOKUP($A383,Economática!$A$3:$AI$823,16,FALSE)=\"-\"),1/0,VLOOKUP($A383,Economática!$A$3:$AI$823,16,FALSE)))","v":""},{"$f":"IF($A383=\"\",\"\",IF(OR(VLOOKUP($A383,Economática!$A$3:$AI$823,17,FALSE)=0,VLOOKUP($A383,Economática!$A$3:$AI$823,17,FALSE)=\"-\"),1/0,VLOOKUP($A383,Economática!$A$3:$AI$823,17,FALSE)))","v":""},{"$f":"IF($A383=\"\",\"\",IF(OR(VLOOKUP($A383,Economática!$A$3:$AI$823,18,FALSE)=0,VLOOKUP($A383,Economática!$A$3:$AI$823,18,FALSE)=\"-\"),1/0,VLOOKUP($A383,Economática!$A$3:$AI$823,18,FALSE)))","v":""},{"$f":"IF($A383=\"\",\"\",IF(OR(VLOOKUP($A383,Economática!$A$3:$AI$823,19,FALSE)=0,VLOOKUP($A383,Economática!$A$3:$AI$823,19,FALSE)=\"-\"),1/0,VLOOKUP($A383,Economática!$A$3:$AI$823,19,FALSE)))","v":""},{"$f":"IF($A383=\"\",\"\",VLOOKUP($A383,Economática!$A$3:$AI$823,20,FALSE)/E383)","v":""},{"$f":"IF($A383=\"\",\"\",IF((G383/E383)<=0,1/0,G383/E383))","v":""},{"$f":"IF($A383=\"\",\"\",D383/R383)","v":""},{"$f":"IF($A383=\"\",\"\",IF((D383/Q383)<=0,1/0,D383/Q383))","v":""},{"$f":"IF($A383=\"\",\"\",IF(OR(VLOOKUP($A383,Economática!$A$3:$AI$823,21,FALSE)/100=0,VLOOKUP($A383,Economática!$A$3:$AI$823,21,FALSE)/100=\"-\"),1/0,VLOOKUP($A383,Economática!$A$3:$AI$823,21,FALSE)/100))","v":""},{"$f":"IF($A383=\"\",\"\",IF(OR(VLOOKUP($A383,Economática!$A$3:$AI$823,22,FALSE)/100=0,VLOOKUP($A383,Economática!$A$3:$AI$823,22,FALSE)/100=\"-\"),1/0,VLOOKUP($A383,Economática!$A$3:$AI$823,22,FALSE)/100))","v":""},{"$f":"IF($A383=\"\",\"\",IF(OR(VLOOKUP($A383,Economática!$A$3:$AI$823,23,FALSE)=0,VLOOKUP($A383,Economática!$A$3:$AI$823,23,FALSE)=\"-\"),1/0,VLOOKUP($A383,Economática!$A$3:$AI$823,23,FALSE)))","v":""},{"$f":"IF($A383=\"\",\"\",IF(OR(VLOOKUP($A383,Economática!$A$3:$AI$823,24,FALSE)=0,VLOOKUP($A383,Economática!$A$3:$AI$823,24,FALSE)=\"-\"),1/0,VLOOKUP($A383,Economática!$A$3:$AI$823,24,FALSE)))","v":""},{"$f":"IF($A383=\"\",\"\",IF(OR(VLOOKUP($A383,Economática!$A$3:$AI$823,25,FALSE)=0,VLOOKUP($A383,Economática!$A$3:$AI$823,25,FALSE)=\"-\"),1/0,VLOOKUP($A383,Economática!$A$3:$AI$823,25,FALSE)))","v":""},{"$f":"IF($A383=\"\",\"\",IF(ISERROR((F383+VLOOKUP($A383,Economática!$A$3:$AI$823,26,FALSE))/Y383),(F383+VLOOKUP($A383,Economática!$A$3:$AI$823,26,FALSE))/Y383,(F383+VLOOKUP($A383,Economática!$A$3:$AI$823,26,FALSE))/Y383))","v":""},{"$f":"IF($A383=\"\",\"\",IF(OR(-VLOOKUP($A383,Economática!$A$3:$AI$823,27,FALSE)=0,-VLOOKUP($A383,Economática!$A$3:$AI$823,27,FALSE)=\"-\"),1/0,-VLOOKUP($A383,Economática!$A$3:$AI$823,27,FALSE)))","v":""},{"$f":"IF(A383=\"\",\"\",AA383/F383)","v":""},{"$f":"IF($A383=\"\",\"\",IF(OR(VLOOKUP($A383,Economática!$A$3:$AI$823,28,FALSE)=0,VLOOKUP($A383,Economática!$A$3:$AI$823,28,FALSE)=\"-\"),1/0,VLOOKUP($A383,Economática!$A$3:$AI$823,28,FALSE)))","v":""},{"$f":"IF($A383=\"\",\"\",IF(OR(VLOOKUP($A383,Economática!$A$3:$AI$823,29,FALSE)=0,VLOOKUP($A383,Economática!$A$3:$AI$823,29,FALSE)=\"-\"),1/0,VLOOKUP($A383,Economática!$A$3:$AI$823,29,FALSE)))","v":""},{"$f":"IF($A383=\"\",\"\",IF(OR(VLOOKUP($A383,Economática!$A$3:$AI$823,30,FALSE)/E383=0,VLOOKUP($A383,Economática!$A$3:$AI$823,30,FALSE)/E383=\"-\",VLOOKUP($A383,Economática!$A$3:$AI$823,30,FALSE)/E383<33.33%,VLOOKUP($A383,Economática!$A$3:$AI$823,30,FALSE)/E383>100%),1/0,VLOOKUP($A383,Economática!$A$3:$AI$823,30,FALSE)/E383))","v":""},{"$f":"IF(A383=\"\",\"\",A383)","v":""},{"$f":"IF($A383=\"\",\"\",IF(OR(VLOOKUP($A383,Economática!$A$3:$AI$823,25,FALSE)=0,VLOOKUP($A383,Economática!$A$3:$AI$823,25,FALSE)=\"-\"),1/0,VLOOKUP($A383,Economática!$A$3:$AI$823,25,FALSE)))","v":""},{"$f":"CONCATENATE(Economática!B361,\" \",Economática!C361)","v":" "}]
[{"$f":"IF(Economática!AG362=\"\",\"\",Economática!AG362)","v":""},{"$f":"IF($A384=\"\",\"\",VLOOKUP(VLOOKUP($A384,Economática!$A$3:$AI$823,6,FALSE),Correção!$B$16:$C$36,2,FALSE))","v":""},{"$f":"IF(Economática!B362=\"\",\"\",Economática!B362)","v":""},{"$f":"IF($A384=\"\",\"\",IF(OR(VLOOKUP($A384,Economática!$A$3:$AI$823,8,FALSE)=0,VLOOKUP($A384,Economática!$A$3:$AI$823,8,FALSE)=\"-\"),1/0,VLOOKUP($A384,Economática!$A$3:$AI$823,8,FALSE)))","v":""},{"$f":"IF(A384=\"\",\"\",IF(ISERROR(VLOOKUP(A384,Correção!$B$2:$G$13,9,FALSE)),VLOOKUP($A384,Economática!$A$3:$AI$823,9,FALSE),VLOOKUP(A384,Correção!$B$2:$G$13,9,FALSE)))","v":""},{"$f":"IF($A384=\"\",\"\",Economática!G362)","v":""},{"$f":"IF($A384=\"\",\"\",IF(OR(VLOOKUP($A384,Economática!$A$3:$AI$823,10,FALSE)=0,VLOOKUP($A384,Economática!$A$3:$AI$823,10,FALSE)=\"-\"),1/0,VLOOKUP($A384,Economática!$A$3:$AI$823,10,FALSE)))","v":""},{"$f":"IF($A384=\"\",\"\",IF(OR(VLOOKUP($A384,Economática!$A$3:$AI$823,11,FALSE)=0,VLOOKUP($A384,Economática!$A$3:$AI$823,11,FALSE)=\"-\"),1/0,VLOOKUP($A384,Economática!$A$3:$AI$823,11,FALSE)))","v":""},{"$f":"IF($A384=\"\",\"\",IF(OR(VLOOKUP($A384,Economática!$A$3:$AI$823,12,FALSE)=0,VLOOKUP($A384,Economática!$A$3:$AI$823,12,FALSE)=\"-\"),1/0,VLOOKUP($A384,Economática!$A$3:$AI$823,12,FALSE)))","v":""},{"$f":"IF($A384=\"\",\"\",IF(OR(VLOOKUP($A384,Economática!$A$3:$AI$823,13,FALSE)=0,VLOOKUP($A384,Economática!$A$3:$AI$823,13,FALSE)=\"-\"),1/0,VLOOKUP($A384,Economática!$A$3:$AI$823,13,FALSE)))","v":""},{"$f":"IF($A384=\"\",\"\",IF(OR(VLOOKUP($A384,Economática!$A$3:$AI$823,14,FALSE)=0,VLOOKUP($A384,Economática!$A$3:$AI$823,14,FALSE)=\"-\"),1/0,VLOOKUP($A384,Economática!$A$3:$AI$823,14,FALSE)))","v":""},{"$f":"IF($A384=\"\",\"\",IF(OR(VLOOKUP($A384,Economática!$A$3:$AI$823,15,FALSE)=0,VLOOKUP($A384,Economática!$A$3:$AI$823,15,FALSE)=\"-\"),1/0,VLOOKUP($A384,Economática!$A$3:$AI$823,15,FALSE)))","v":""},{"$f":"IF($A384=\"\",\"\",IF(OR(VLOOKUP($A384,Economática!$A$3:$AI$823,16,FALSE)=0,VLOOKUP($A384,Economática!$A$3:$AI$823,16,FALSE)=\"-\"),1/0,VLOOKUP($A384,Economática!$A$3:$AI$823,16,FALSE)))","v":""},{"$f":"IF($A384=\"\",\"\",IF(OR(VLOOKUP($A384,Economática!$A$3:$AI$823,17,FALSE)=0,VLOOKUP($A384,Economática!$A$3:$AI$823,17,FALSE)=\"-\"),1/0,VLOOKUP($A384,Economática!$A$3:$AI$823,17,FALSE)))","v":""},{"$f":"IF($A384=\"\",\"\",IF(OR(VLOOKUP($A384,Economática!$A$3:$AI$823,18,FALSE)=0,VLOOKUP($A384,Economática!$A$3:$AI$823,18,FALSE)=\"-\"),1/0,VLOOKUP($A384,Economática!$A$3:$AI$823,18,FALSE)))","v":""},{"$f":"IF($A384=\"\",\"\",IF(OR(VLOOKUP($A384,Economática!$A$3:$AI$823,19,FALSE)=0,VLOOKUP($A384,Economática!$A$3:$AI$823,19,FALSE)=\"-\"),1/0,VLOOKUP($A384,Economática!$A$3:$AI$823,19,FALSE)))","v":""},{"$f":"IF($A384=\"\",\"\",VLOOKUP($A384,Economática!$A$3:$AI$823,20,FALSE)/E384)","v":""},"","","",{"$f":"IF($A384=\"\",\"\",IF(OR(VLOOKUP($A384,Economática!$A$3:$AI$823,21,FALSE)/100=0,VLOOKUP($A384,Economática!$A$3:$AI$823,21,FALSE)/100=\"-\"),1/0,VLOOKUP($A384,Economática!$A$3:$AI$823,21,FALSE)/100))","v":""},{"$f":"IF($A384=\"\",\"\",IF(OR(VLOOKUP($A384,Economática!$A$3:$AI$823,22,FALSE)/100=0,VLOOKUP($A384,Economática!$A$3:$AI$823,22,FALSE)/100=\"-\"),1/0,VLOOKUP($A384,Economática!$A$3:$AI$823,22,FALSE)/100))","v":""},{"$f":"IF($A384=\"\",\"\",IF(OR(VLOOKUP($A384,Economática!$A$3:$AI$823,23,FALSE)=0,VLOOKUP($A384,Economática!$A$3:$AI$823,23,FALSE)=\"-\"),1/0,VLOOKUP($A384,Economática!$A$3:$AI$823,23,FALSE)))","v":""},{"$f":"IF($A384=\"\",\"\",IF(OR(VLOOKUP($A384,Economática!$A$3:$AI$823,24,FALSE)=0,VLOOKUP($A384,Economática!$A$3:$AI$823,24,FALSE)=\"-\"),1/0,VLOOKUP($A384,Economática!$A$3:$AI$823,24,FALSE)))","v":""},{"$f":"IF($A384=\"\",\"\",IF(OR(VLOOKUP($A384,Economática!$A$3:$AI$823,25,FALSE)=0,VLOOKUP($A384,Economática!$A$3:$AI$823,25,FALSE)=\"-\"),1/0,VLOOKUP($A384,Economática!$A$3:$AI$823,25,FALSE)))","v":""},{"$f":"IF($A384=\"\",\"\",IF(ISERROR((F384+VLOOKUP($A384,Economática!$A$3:$AI$823,26,FALSE))/Y384),(F384+VLOOKUP($A384,Economática!$A$3:$AI$823,26,FALSE))/Y384,(F384+VLOOKUP($A384,Economática!$A$3:$AI$823,26,FALSE))/Y384))","v":""},{"$f":"IF($A384=\"\",\"\",IF(OR(-VLOOKUP($A384,Economática!$A$3:$AI$823,27,FALSE)=0,-VLOOKUP($A384,Economática!$A$3:$AI$823,27,FALSE)=\"-\"),1/0,-VLOOKUP($A384,Economática!$A$3:$AI$823,27,FALSE)))","v":""},"",{"$f":"IF($A384=\"\",\"\",IF(OR(VLOOKUP($A384,Economática!$A$3:$AI$823,28,FALSE)=0,VLOOKUP($A384,Economática!$A$3:$AI$823,28,FALSE)=\"-\"),1/0,VLOOKUP($A384,Economática!$A$3:$AI$823,28,FALSE)))","v":""},{"$f":"IF($A384=\"\",\"\",IF(OR(VLOOKUP($A384,Economática!$A$3:$AI$823,29,FALSE)=0,VLOOKUP($A384,Economática!$A$3:$AI$823,29,FALSE)=\"-\"),1/0,VLOOKUP($A384,Economática!$A$3:$AI$823,29,FALSE)))","v":""},{"$f":"IF($A384=\"\",\"\",IF(OR(VLOOKUP($A384,Economática!$A$3:$AI$823,30,FALSE)/E384=0,VLOOKUP($A384,Economática!$A$3:$AI$823,30,FALSE)/E384=\"-\",VLOOKUP($A384,Economática!$A$3:$AI$823,30,FALSE)/E384<33.33%,VLOOKUP($A384,Economática!$A$3:$AI$823,30,FALSE)/E384>100%),1/0,VLOOKUP($A384,Economática!$A$3:$AI$823,30,FALSE)/E384))","v":""},"",{"$f":"IF($A384=\"\",\"\",IF(OR(VLOOKUP($A384,Economática!$A$3:$AI$823,25,FALSE)=0,VLOOKUP($A384,Economática!$A$3:$AI$823,25,FALSE)=\"-\"),1/0,VLOOKUP($A384,Economática!$A$3:$AI$823,25,FALSE)))","v":""},{"$f":"CONCATENATE(Economática!B362,\" \",Economática!C362)","v":" "}]
[{"$f":"IF(Economática!AG363=\"\",\"\",Economática!AG363)","v":""},{"$f":"IF($A385=\"\",\"\",VLOOKUP(VLOOKUP($A385,Economática!$A$3:$AI$823,6,FALSE),Correção!$B$16:$C$36,2,FALSE))","v":""},{"$f":"IF(Economática!B363=\"\",\"\",Economática!B363)","v":""},{"$f":"IF($A385=\"\",\"\",IF(OR(VLOOKUP($A385,Economática!$A$3:$AI$823,8,FALSE)=0,VLOOKUP($A385,Economática!$A$3:$AI$823,8,FALSE)=\"-\"),1/0,VLOOKUP($A385,Economática!$A$3:$AI$823,8,FALSE)))","v":""},{"$f":"IF(A385=\"\",\"\",IF(ISERROR(VLOOKUP(A385,Correção!$B$2:$G$13,9,FALSE)),VLOOKUP($A385,Economática!$A$3:$AI$823,9,FALSE),VLOOKUP(A385,Correção!$B$2:$G$13,9,FALSE)))","v":""},{"$f":"IF($A385=\"\",\"\",Economática!G363)","v":""},{"$f":"IF($A385=\"\",\"\",IF(OR(VLOOKUP($A385,Economática!$A$3:$AI$823,10,FALSE)=0,VLOOKUP($A385,Economática!$A$3:$AI$823,10,FALSE)=\"-\"),1/0,VLOOKUP($A385,Economática!$A$3:$AI$823,10,FALSE)))","v":""},{"$f":"IF($A385=\"\",\"\",IF(OR(VLOOKUP($A385,Economática!$A$3:$AI$823,11,FALSE)=0,VLOOKUP($A385,Economática!$A$3:$AI$823,11,FALSE)=\"-\"),1/0,VLOOKUP($A385,Economática!$A$3:$AI$823,11,FALSE)))","v":""},{"$f":"IF($A385=\"\",\"\",IF(OR(VLOOKUP($A385,Economática!$A$3:$AI$823,12,FALSE)=0,VLOOKUP($A385,Economática!$A$3:$AI$823,12,FALSE)=\"-\"),1/0,VLOOKUP($A385,Economática!$A$3:$AI$823,12,FALSE)))","v":""},{"$f":"IF($A385=\"\",\"\",IF(OR(VLOOKUP($A385,Economática!$A$3:$AI$823,13,FALSE)=0,VLOOKUP($A385,Economática!$A$3:$AI$823,13,FALSE)=\"-\"),1/0,VLOOKUP($A385,Economática!$A$3:$AI$823,13,FALSE)))","v":""},{"$f":"IF($A385=\"\",\"\",IF(OR(VLOOKUP($A385,Economática!$A$3:$AI$823,14,FALSE)=0,VLOOKUP($A385,Economática!$A$3:$AI$823,14,FALSE)=\"-\"),1/0,VLOOKUP($A385,Economática!$A$3:$AI$823,14,FALSE)))","v":""},{"$f":"IF($A385=\"\",\"\",IF(OR(VLOOKUP($A385,Economática!$A$3:$AI$823,15,FALSE)=0,VLOOKUP($A385,Economática!$A$3:$AI$823,15,FALSE)=\"-\"),1/0,VLOOKUP($A385,Economática!$A$3:$AI$823,15,FALSE)))","v":""},{"$f":"IF($A385=\"\",\"\",IF(OR(VLOOKUP($A385,Economática!$A$3:$AI$823,16,FALSE)=0,VLOOKUP($A385,Economática!$A$3:$AI$823,16,FALSE)=\"-\"),1/0,VLOOKUP($A385,Economática!$A$3:$AI$823,16,FALSE)))","v":""},{"$f":"IF($A385=\"\",\"\",IF(OR(VLOOKUP($A385,Economática!$A$3:$AI$823,17,FALSE)=0,VLOOKUP($A385,Economática!$A$3:$AI$823,17,FALSE)=\"-\"),1/0,VLOOKUP($A385,Economática!$A$3:$AI$823,17,FALSE)))","v":""},{"$f":"IF($A385=\"\",\"\",IF(OR(VLOOKUP($A385,Economática!$A$3:$AI$823,18,FALSE)=0,VLOOKUP($A385,Economática!$A$3:$AI$823,18,FALSE)=\"-\"),1/0,VLOOKUP($A385,Economática!$A$3:$AI$823,18,FALSE)))","v":""},{"$f":"IF($A385=\"\",\"\",IF(OR(VLOOKUP($A385,Economática!$A$3:$AI$823,19,FALSE)=0,VLOOKUP($A385,Economática!$A$3:$AI$823,19,FALSE)=\"-\"),1/0,VLOOKUP($A385,Economática!$A$3:$AI$823,19,FALSE)))","v":""},{"$f":"IF($A385=\"\",\"\",VLOOKUP($A385,Economática!$A$3:$AI$823,20,FALSE)/E385)","v":""},"","","",{"$f":"IF($A385=\"\",\"\",IF(OR(VLOOKUP($A385,Economática!$A$3:$AI$823,21,FALSE)/100=0,VLOOKUP($A385,Economática!$A$3:$AI$823,21,FALSE)/100=\"-\"),1/0,VLOOKUP($A385,Economática!$A$3:$AI$823,21,FALSE)/100))","v":""},{"$f":"IF($A385=\"\",\"\",IF(OR(VLOOKUP($A385,Economática!$A$3:$AI$823,22,FALSE)/100=0,VLOOKUP($A385,Economática!$A$3:$AI$823,22,FALSE)/100=\"-\"),1/0,VLOOKUP($A385,Economática!$A$3:$AI$823,22,FALSE)/100))","v":""},{"$f":"IF($A385=\"\",\"\",IF(OR(VLOOKUP($A385,Economática!$A$3:$AI$823,23,FALSE)=0,VLOOKUP($A385,Economática!$A$3:$AI$823,23,FALSE)=\"-\"),1/0,VLOOKUP($A385,Economática!$A$3:$AI$823,23,FALSE)))","v":""},{"$f":"IF($A385=\"\",\"\",IF(OR(VLOOKUP($A385,Economática!$A$3:$AI$823,24,FALSE)=0,VLOOKUP($A385,Economática!$A$3:$AI$823,24,FALSE)=\"-\"),1/0,VLOOKUP($A385,Economática!$A$3:$AI$823,24,FALSE)))","v":""},{"$f":"IF($A385=\"\",\"\",IF(OR(VLOOKUP($A385,Economática!$A$3:$AI$823,25,FALSE)=0,VLOOKUP($A385,Economática!$A$3:$AI$823,25,FALSE)=\"-\"),1/0,VLOOKUP($A385,Economática!$A$3:$AI$823,25,FALSE)))","v":""},{"$f":"IF($A385=\"\",\"\",IF(ISERROR((F385+VLOOKUP($A385,Economática!$A$3:$AI$823,26,FALSE))/Y385),(F385+VLOOKUP($A385,Economática!$A$3:$AI$823,26,FALSE))/Y385,(F385+VLOOKUP($A385,Economática!$A$3:$AI$823,26,FALSE))/Y385))","v":""},{"$f":"IF($A385=\"\",\"\",IF(OR(-VLOOKUP($A385,Economática!$A$3:$AI$823,27,FALSE)=0,-VLOOKUP($A385,Economática!$A$3:$AI$823,27,FALSE)=\"-\"),1/0,-VLOOKUP($A385,Economática!$A$3:$AI$823,27,FALSE)))","v":""},"",{"$f":"IF($A385=\"\",\"\",IF(OR(VLOOKUP($A385,Economática!$A$3:$AI$823,28,FALSE)=0,VLOOKUP($A385,Economática!$A$3:$AI$823,28,FALSE)=\"-\"),1/0,VLOOKUP($A385,Economática!$A$3:$AI$823,28,FALSE)))","v":""},{"$f":"IF($A385=\"\",\"\",IF(OR(VLOOKUP($A385,Economática!$A$3:$AI$823,29,FALSE)=0,VLOOKUP($A385,Economática!$A$3:$AI$823,29,FALSE)=\"-\"),1/0,VLOOKUP($A385,Economática!$A$3:$AI$823,29,FALSE)))","v":""},{"$f":"IF($A385=\"\",\"\",IF(OR(VLOOKUP($A385,Economática!$A$3:$AI$823,30,FALSE)/E385=0,VLOOKUP($A385,Economática!$A$3:$AI$823,30,FALSE)/E385=\"-\",VLOOKUP($A385,Economática!$A$3:$AI$823,30,FALSE)/E385<33.33%,VLOOKUP($A385,Economática!$A$3:$AI$823,30,FALSE)/E385>100%),1/0,VLOOKUP($A385,Economática!$A$3:$AI$823,30,FALSE)/E385))","v":""},"",{"$f":"IF($A385=\"\",\"\",IF(OR(VLOOKUP($A385,Economática!$A$3:$AI$823,25,FALSE)=0,VLOOKUP($A385,Economática!$A$3:$AI$823,25,FALSE)=\"-\"),1/0,VLOOKUP($A385,Economática!$A$3:$AI$823,25,FALSE)))","v":""},{"$f":"CONCATENATE(Economática!B363,\" \",Economática!C363)","v":" "}]
[{"$f":"IF(Economática!AG364=\"\",\"\",Economática!AG364)","v":""},{"$f":"IF($A386=\"\",\"\",VLOOKUP(VLOOKUP($A386,Economática!$A$3:$AI$823,6,FALSE),Correção!$B$16:$C$36,2,FALSE))","v":""},{"$f":"IF(Economática!B364=\"\",\"\",Economática!B364)","v":""},{"$f":"IF($A386=\"\",\"\",IF(OR(VLOOKUP($A386,Economática!$A$3:$AI$823,8,FALSE)=0,VLOOKUP($A386,Economática!$A$3:$AI$823,8,FALSE)=\"-\"),1/0,VLOOKUP($A386,Economática!$A$3:$AI$823,8,FALSE)))","v":""},{"$f":"IF(A386=\"\",\"\",IF(ISERROR(VLOOKUP(A386,Correção!$B$2:$G$13,9,FALSE)),VLOOKUP($A386,Economática!$A$3:$AI$823,9,FALSE),VLOOKUP(A386,Correção!$B$2:$G$13,9,FALSE)))","v":""},{"$f":"IF($A386=\"\",\"\",Economática!G364)","v":""},{"$f":"IF($A386=\"\",\"\",IF(OR(VLOOKUP($A386,Economática!$A$3:$AI$823,10,FALSE)=0,VLOOKUP($A386,Economática!$A$3:$AI$823,10,FALSE)=\"-\"),1/0,VLOOKUP($A386,Economática!$A$3:$AI$823,10,FALSE)))","v":""},{"$f":"IF($A386=\"\",\"\",IF(OR(VLOOKUP($A386,Economática!$A$3:$AI$823,11,FALSE)=0,VLOOKUP($A386,Economática!$A$3:$AI$823,11,FALSE)=\"-\"),1/0,VLOOKUP($A386,Economática!$A$3:$AI$823,11,FALSE)))","v":""},{"$f":"IF($A386=\"\",\"\",IF(OR(VLOOKUP($A386,Economática!$A$3:$AI$823,12,FALSE)=0,VLOOKUP($A386,Economática!$A$3:$AI$823,12,FALSE)=\"-\"),1/0,VLOOKUP($A386,Economática!$A$3:$AI$823,12,FALSE)))","v":""},{"$f":"IF($A386=\"\",\"\",IF(OR(VLOOKUP($A386,Economática!$A$3:$AI$823,13,FALSE)=0,VLOOKUP($A386,Economática!$A$3:$AI$823,13,FALSE)=\"-\"),1/0,VLOOKUP($A386,Economática!$A$3:$AI$823,13,FALSE)))","v":""},{"$f":"IF($A386=\"\",\"\",IF(OR(VLOOKUP($A386,Economática!$A$3:$AI$823,14,FALSE)=0,VLOOKUP($A386,Economática!$A$3:$AI$823,14,FALSE)=\"-\"),1/0,VLOOKUP($A386,Economática!$A$3:$AI$823,14,FALSE)))","v":""},{"$f":"IF($A386=\"\",\"\",IF(OR(VLOOKUP($A386,Economática!$A$3:$AI$823,15,FALSE)=0,VLOOKUP($A386,Economática!$A$3:$AI$823,15,FALSE)=\"-\"),1/0,VLOOKUP($A386,Economática!$A$3:$AI$823,15,FALSE)))","v":""},{"$f":"IF($A386=\"\",\"\",IF(OR(VLOOKUP($A386,Economática!$A$3:$AI$823,16,FALSE)=0,VLOOKUP($A386,Economática!$A$3:$AI$823,16,FALSE)=\"-\"),1/0,VLOOKUP($A386,Economática!$A$3:$AI$823,16,FALSE)))","v":""},{"$f":"IF($A386=\"\",\"\",IF(OR(VLOOKUP($A386,Economática!$A$3:$AI$823,17,FALSE)=0,VLOOKUP($A386,Economática!$A$3:$AI$823,17,FALSE)=\"-\"),1/0,VLOOKUP($A386,Economática!$A$3:$AI$823,17,FALSE)))","v":""},{"$f":"IF($A386=\"\",\"\",IF(OR(VLOOKUP($A386,Economática!$A$3:$AI$823,18,FALSE)=0,VLOOKUP($A386,Economática!$A$3:$AI$823,18,FALSE)=\"-\"),1/0,VLOOKUP($A386,Economática!$A$3:$AI$823,18,FALSE)))","v":""},{"$f":"IF($A386=\"\",\"\",IF(OR(VLOOKUP($A386,Economática!$A$3:$AI$823,19,FALSE)=0,VLOOKUP($A386,Economática!$A$3:$AI$823,19,FALSE)=\"-\"),1/0,VLOOKUP($A386,Economática!$A$3:$AI$823,19,FALSE)))","v":""},{"$f":"IF($A386=\"\",\"\",VLOOKUP($A386,Economática!$A$3:$AI$823,20,FALSE)/E386)","v":""},"","","",{"$f":"IF($A386=\"\",\"\",IF(OR(VLOOKUP($A386,Economática!$A$3:$AI$823,21,FALSE)/100=0,VLOOKUP($A386,Economática!$A$3:$AI$823,21,FALSE)/100=\"-\"),1/0,VLOOKUP($A386,Economática!$A$3:$AI$823,21,FALSE)/100))","v":""},{"$f":"IF($A386=\"\",\"\",IF(OR(VLOOKUP($A386,Economática!$A$3:$AI$823,22,FALSE)/100=0,VLOOKUP($A386,Economática!$A$3:$AI$823,22,FALSE)/100=\"-\"),1/0,VLOOKUP($A386,Economática!$A$3:$AI$823,22,FALSE)/100))","v":""},{"$f":"IF($A386=\"\",\"\",IF(OR(VLOOKUP($A386,Economática!$A$3:$AI$823,23,FALSE)=0,VLOOKUP($A386,Economática!$A$3:$AI$823,23,FALSE)=\"-\"),1/0,VLOOKUP($A386,Economática!$A$3:$AI$823,23,FALSE)))","v":""},{"$f":"IF($A386=\"\",\"\",IF(OR(VLOOKUP($A386,Economática!$A$3:$AI$823,24,FALSE)=0,VLOOKUP($A386,Economática!$A$3:$AI$823,24,FALSE)=\"-\"),1/0,VLOOKUP($A386,Economática!$A$3:$AI$823,24,FALSE)))","v":""},{"$f":"IF($A386=\"\",\"\",IF(OR(VLOOKUP($A386,Economática!$A$3:$AI$823,25,FALSE)=0,VLOOKUP($A386,Economática!$A$3:$AI$823,25,FALSE)=\"-\"),1/0,VLOOKUP($A386,Economática!$A$3:$AI$823,25,FALSE)))","v":""},{"$f":"IF($A386=\"\",\"\",IF(ISERROR((F386+VLOOKUP($A386,Economática!$A$3:$AI$823,26,FALSE))/Y386),(F386+VLOOKUP($A386,Economática!$A$3:$AI$823,26,FALSE))/Y386,(F386+VLOOKUP($A386,Economática!$A$3:$AI$823,26,FALSE))/Y386))","v":""},{"$f":"IF($A386=\"\",\"\",IF(OR(-VLOOKUP($A386,Economática!$A$3:$AI$823,27,FALSE)=0,-VLOOKUP($A386,Economática!$A$3:$AI$823,27,FALSE)=\"-\"),1/0,-VLOOKUP($A386,Economática!$A$3:$AI$823,27,FALSE)))","v":""},"",{"$f":"IF($A386=\"\",\"\",IF(OR(VLOOKUP($A386,Economática!$A$3:$AI$823,28,FALSE)=0,VLOOKUP($A386,Economática!$A$3:$AI$823,28,FALSE)=\"-\"),1/0,VLOOKUP($A386,Economática!$A$3:$AI$823,28,FALSE)))","v":""},{"$f":"IF($A386=\"\",\"\",IF(OR(VLOOKUP($A386,Economática!$A$3:$AI$823,29,FALSE)=0,VLOOKUP($A386,Economática!$A$3:$AI$823,29,FALSE)=\"-\"),1/0,VLOOKUP($A386,Economática!$A$3:$AI$823,29,FALSE)))","v":""},{"$f":"IF($A386=\"\",\"\",IF(OR(VLOOKUP($A386,Economática!$A$3:$AI$823,30,FALSE)/E386=0,VLOOKUP($A386,Economática!$A$3:$AI$823,30,FALSE)/E386=\"-\",VLOOKUP($A386,Economática!$A$3:$AI$823,30,FALSE)/E386<33.33%,VLOOKUP($A386,Economática!$A$3:$AI$823,30,FALSE)/E386>100%),1/0,VLOOKUP($A386,Economática!$A$3:$AI$823,30,FALSE)/E386))","v":""},"",{"$f":"IF($A386=\"\",\"\",IF(OR(VLOOKUP($A386,Economática!$A$3:$AI$823,25,FALSE)=0,VLOOKUP($A386,Economática!$A$3:$AI$823,25,FALSE)=\"-\"),1/0,VLOOKUP($A386,Economática!$A$3:$AI$823,25,FALSE)))","v":""},{"$f":"CONCATENATE(Economática!B364,\" \",Economática!C364)","v":" "}]
[{"$f":"IF(Economática!AG365=\"\",\"\",Economática!AG365)","v":""},{"$f":"IF($A387=\"\",\"\",VLOOKUP(VLOOKUP($A387,Economática!$A$3:$AI$823,6,FALSE),Correção!$B$16:$C$36,2,FALSE))","v":""},{"$f":"IF(Economática!B365=\"\",\"\",Economática!B365)","v":""},{"$f":"IF($A387=\"\",\"\",IF(OR(VLOOKUP($A387,Economática!$A$3:$AI$823,8,FALSE)=0,VLOOKUP($A387,Economática!$A$3:$AI$823,8,FALSE)=\"-\"),1/0,VLOOKUP($A387,Economática!$A$3:$AI$823,8,FALSE)))","v":""},{"$f":"IF(A387=\"\",\"\",IF(ISERROR(VLOOKUP(A387,Correção!$B$2:$G$13,9,FALSE)),VLOOKUP($A387,Economática!$A$3:$AI$823,9,FALSE),VLOOKUP(A387,Correção!$B$2:$G$13,9,FALSE)))","v":""},{"$f":"IF($A387=\"\",\"\",Economática!G365)","v":""},{"$f":"IF($A387=\"\",\"\",IF(OR(VLOOKUP($A387,Economática!$A$3:$AI$823,10,FALSE)=0,VLOOKUP($A387,Economática!$A$3:$AI$823,10,FALSE)=\"-\"),1/0,VLOOKUP($A387,Economática!$A$3:$AI$823,10,FALSE)))","v":""},{"$f":"IF($A387=\"\",\"\",IF(OR(VLOOKUP($A387,Economática!$A$3:$AI$823,11,FALSE)=0,VLOOKUP($A387,Economática!$A$3:$AI$823,11,FALSE)=\"-\"),1/0,VLOOKUP($A387,Economática!$A$3:$AI$823,11,FALSE)))","v":""},{"$f":"IF($A387=\"\",\"\",IF(OR(VLOOKUP($A387,Economática!$A$3:$AI$823,12,FALSE)=0,VLOOKUP($A387,Economática!$A$3:$AI$823,12,FALSE)=\"-\"),1/0,VLOOKUP($A387,Economática!$A$3:$AI$823,12,FALSE)))","v":""},{"$f":"IF($A387=\"\",\"\",IF(OR(VLOOKUP($A387,Economática!$A$3:$AI$823,13,FALSE)=0,VLOOKUP($A387,Economática!$A$3:$AI$823,13,FALSE)=\"-\"),1/0,VLOOKUP($A387,Economática!$A$3:$AI$823,13,FALSE)))","v":""},{"$f":"IF($A387=\"\",\"\",IF(OR(VLOOKUP($A387,Economática!$A$3:$AI$823,14,FALSE)=0,VLOOKUP($A387,Economática!$A$3:$AI$823,14,FALSE)=\"-\"),1/0,VLOOKUP($A387,Economática!$A$3:$AI$823,14,FALSE)))","v":""},{"$f":"IF($A387=\"\",\"\",IF(OR(VLOOKUP($A387,Economática!$A$3:$AI$823,15,FALSE)=0,VLOOKUP($A387,Economática!$A$3:$AI$823,15,FALSE)=\"-\"),1/0,VLOOKUP($A387,Economática!$A$3:$AI$823,15,FALSE)))","v":""},{"$f":"IF($A387=\"\",\"\",IF(OR(VLOOKUP($A387,Economática!$A$3:$AI$823,16,FALSE)=0,VLOOKUP($A387,Economática!$A$3:$AI$823,16,FALSE)=\"-\"),1/0,VLOOKUP($A387,Economática!$A$3:$AI$823,16,FALSE)))","v":""},{"$f":"IF($A387=\"\",\"\",IF(OR(VLOOKUP($A387,Economática!$A$3:$AI$823,17,FALSE)=0,VLOOKUP($A387,Economática!$A$3:$AI$823,17,FALSE)=\"-\"),1/0,VLOOKUP($A387,Economática!$A$3:$AI$823,17,FALSE)))","v":""},{"$f":"IF($A387=\"\",\"\",IF(OR(VLOOKUP($A387,Economática!$A$3:$AI$823,18,FALSE)=0,VLOOKUP($A387,Economática!$A$3:$AI$823,18,FALSE)=\"-\"),1/0,VLOOKUP($A387,Economática!$A$3:$AI$823,18,FALSE)))","v":""},{"$f":"IF($A387=\"\",\"\",IF(OR(VLOOKUP($A387,Economática!$A$3:$AI$823,19,FALSE)=0,VLOOKUP($A387,Economática!$A$3:$AI$823,19,FALSE)=\"-\"),1/0,VLOOKUP($A387,Economática!$A$3:$AI$823,19,FALSE)))","v":""},{"$f":"IF($A387=\"\",\"\",VLOOKUP($A387,Economática!$A$3:$AI$823,20,FALSE)/E387)","v":""},"","","",{"$f":"IF($A387=\"\",\"\",IF(OR(VLOOKUP($A387,Economática!$A$3:$AI$823,21,FALSE)/100=0,VLOOKUP($A387,Economática!$A$3:$AI$823,21,FALSE)/100=\"-\"),1/0,VLOOKUP($A387,Economática!$A$3:$AI$823,21,FALSE)/100))","v":""},{"$f":"IF($A387=\"\",\"\",IF(OR(VLOOKUP($A387,Economática!$A$3:$AI$823,22,FALSE)/100=0,VLOOKUP($A387,Economática!$A$3:$AI$823,22,FALSE)/100=\"-\"),1/0,VLOOKUP($A387,Economática!$A$3:$AI$823,22,FALSE)/100))","v":""},{"$f":"IF($A387=\"\",\"\",IF(OR(VLOOKUP($A387,Economática!$A$3:$AI$823,23,FALSE)=0,VLOOKUP($A387,Economática!$A$3:$AI$823,23,FALSE)=\"-\"),1/0,VLOOKUP($A387,Economática!$A$3:$AI$823,23,FALSE)))","v":""},{"$f":"IF($A387=\"\",\"\",IF(OR(VLOOKUP($A387,Economática!$A$3:$AI$823,24,FALSE)=0,VLOOKUP($A387,Economática!$A$3:$AI$823,24,FALSE)=\"-\"),1/0,VLOOKUP($A387,Economática!$A$3:$AI$823,24,FALSE)))","v":""},{"$f":"IF($A387=\"\",\"\",IF(OR(VLOOKUP($A387,Economática!$A$3:$AI$823,25,FALSE)=0,VLOOKUP($A387,Economática!$A$3:$AI$823,25,FALSE)=\"-\"),1/0,VLOOKUP($A387,Economática!$A$3:$AI$823,25,FALSE)))","v":""},{"$f":"IF($A387=\"\",\"\",IF(ISERROR((F387+VLOOKUP($A387,Economática!$A$3:$AI$823,26,FALSE))/Y387),(F387+VLOOKUP($A387,Economática!$A$3:$AI$823,26,FALSE))/Y387,(F387+VLOOKUP($A387,Economática!$A$3:$AI$823,26,FALSE))/Y387))","v":""},{"$f":"IF($A387=\"\",\"\",IF(OR(-VLOOKUP($A387,Economática!$A$3:$AI$823,27,FALSE)=0,-VLOOKUP($A387,Economática!$A$3:$AI$823,27,FALSE)=\"-\"),1/0,-VLOOKUP($A387,Economática!$A$3:$AI$823,27,FALSE)))","v":""},"",{"$f":"IF($A387=\"\",\"\",IF(OR(VLOOKUP($A387,Economática!$A$3:$AI$823,28,FALSE)=0,VLOOKUP($A387,Economática!$A$3:$AI$823,28,FALSE)=\"-\"),1/0,VLOOKUP($A387,Economática!$A$3:$AI$823,28,FALSE)))","v":""},{"$f":"IF($A387=\"\",\"\",IF(OR(VLOOKUP($A387,Economática!$A$3:$AI$823,29,FALSE)=0,VLOOKUP($A387,Economática!$A$3:$AI$823,29,FALSE)=\"-\"),1/0,VLOOKUP($A387,Economática!$A$3:$AI$823,29,FALSE)))","v":""},{"$f":"IF($A387=\"\",\"\",IF(OR(VLOOKUP($A387,Economática!$A$3:$AI$823,30,FALSE)/E387=0,VLOOKUP($A387,Economática!$A$3:$AI$823,30,FALSE)/E387=\"-\",VLOOKUP($A387,Economática!$A$3:$AI$823,30,FALSE)/E387<33.33%,VLOOKUP($A387,Economática!$A$3:$AI$823,30,FALSE)/E387>100%),1/0,VLOOKUP($A387,Economática!$A$3:$AI$823,30,FALSE)/E387))","v":""},"",{"$f":"IF($A387=\"\",\"\",IF(OR(VLOOKUP($A387,Economática!$A$3:$AI$823,25,FALSE)=0,VLOOKUP($A387,Economática!$A$3:$AI$823,25,FALSE)=\"-\"),1/0,VLOOKUP($A387,Economática!$A$3:$AI$823,25,FALSE)))","v":""},{"$f":"CONCATENATE(Economática!B365,\" \",Economática!C365)","v":" "}]
[{"$f":"IF(Economática!AG366=\"\",\"\",Economática!AG366)","v":""},{"$f":"IF($A388=\"\",\"\",VLOOKUP(VLOOKUP($A388,Economática!$A$3:$AI$823,6,FALSE),Correção!$B$16:$C$36,2,FALSE))","v":""},{"$f":"IF(Economática!B366=\"\",\"\",Economática!B366)","v":""},{"$f":"IF($A388=\"\",\"\",IF(OR(VLOOKUP($A388,Economática!$A$3:$AI$823,8,FALSE)=0,VLOOKUP($A388,Economática!$A$3:$AI$823,8,FALSE)=\"-\"),1/0,VLOOKUP($A388,Economática!$A$3:$AI$823,8,FALSE)))","v":""},{"$f":"IF(A388=\"\",\"\",IF(ISERROR(VLOOKUP(A388,Correção!$B$2:$G$13,9,FALSE)),VLOOKUP($A388,Economática!$A$3:$AI$823,9,FALSE),VLOOKUP(A388,Correção!$B$2:$G$13,9,FALSE)))","v":""},{"$f":"IF($A388=\"\",\"\",Economática!G366)","v":""},{"$f":"IF($A388=\"\",\"\",IF(OR(VLOOKUP($A388,Economática!$A$3:$AI$823,10,FALSE)=0,VLOOKUP($A388,Economática!$A$3:$AI$823,10,FALSE)=\"-\"),1/0,VLOOKUP($A388,Economática!$A$3:$AI$823,10,FALSE)))","v":""},{"$f":"IF($A388=\"\",\"\",IF(OR(VLOOKUP($A388,Economática!$A$3:$AI$823,11,FALSE)=0,VLOOKUP($A388,Economática!$A$3:$AI$823,11,FALSE)=\"-\"),1/0,VLOOKUP($A388,Economática!$A$3:$AI$823,11,FALSE)))","v":""},{"$f":"IF($A388=\"\",\"\",IF(OR(VLOOKUP($A388,Economática!$A$3:$AI$823,12,FALSE)=0,VLOOKUP($A388,Economática!$A$3:$AI$823,12,FALSE)=\"-\"),1/0,VLOOKUP($A388,Economática!$A$3:$AI$823,12,FALSE)))","v":""},{"$f":"IF($A388=\"\",\"\",IF(OR(VLOOKUP($A388,Economática!$A$3:$AI$823,13,FALSE)=0,VLOOKUP($A388,Economática!$A$3:$AI$823,13,FALSE)=\"-\"),1/0,VLOOKUP($A388,Economática!$A$3:$AI$823,13,FALSE)))","v":""},{"$f":"IF($A388=\"\",\"\",IF(OR(VLOOKUP($A388,Economática!$A$3:$AI$823,14,FALSE)=0,VLOOKUP($A388,Economática!$A$3:$AI$823,14,FALSE)=\"-\"),1/0,VLOOKUP($A388,Economática!$A$3:$AI$823,14,FALSE)))","v":""},{"$f":"IF($A388=\"\",\"\",IF(OR(VLOOKUP($A388,Economática!$A$3:$AI$823,15,FALSE)=0,VLOOKUP($A388,Economática!$A$3:$AI$823,15,FALSE)=\"-\"),1/0,VLOOKUP($A388,Economática!$A$3:$AI$823,15,FALSE)))","v":""},{"$f":"IF($A388=\"\",\"\",IF(OR(VLOOKUP($A388,Economática!$A$3:$AI$823,16,FALSE)=0,VLOOKUP($A388,Economática!$A$3:$AI$823,16,FALSE)=\"-\"),1/0,VLOOKUP($A388,Economática!$A$3:$AI$823,16,FALSE)))","v":""},{"$f":"IF($A388=\"\",\"\",IF(OR(VLOOKUP($A388,Economática!$A$3:$AI$823,17,FALSE)=0,VLOOKUP($A388,Economática!$A$3:$AI$823,17,FALSE)=\"-\"),1/0,VLOOKUP($A388,Economática!$A$3:$AI$823,17,FALSE)))","v":""},{"$f":"IF($A388=\"\",\"\",IF(OR(VLOOKUP($A388,Economática!$A$3:$AI$823,18,FALSE)=0,VLOOKUP($A388,Economática!$A$3:$AI$823,18,FALSE)=\"-\"),1/0,VLOOKUP($A388,Economática!$A$3:$AI$823,18,FALSE)))","v":""},{"$f":"IF($A388=\"\",\"\",IF(OR(VLOOKUP($A388,Economática!$A$3:$AI$823,19,FALSE)=0,VLOOKUP($A388,Economática!$A$3:$AI$823,19,FALSE)=\"-\"),1/0,VLOOKUP($A388,Economática!$A$3:$AI$823,19,FALSE)))","v":""},{"$f":"IF($A388=\"\",\"\",VLOOKUP($A388,Economática!$A$3:$AI$823,20,FALSE)/E388)","v":""},"","","",{"$f":"IF($A388=\"\",\"\",IF(OR(VLOOKUP($A388,Economática!$A$3:$AI$823,21,FALSE)/100=0,VLOOKUP($A388,Economática!$A$3:$AI$823,21,FALSE)/100=\"-\"),1/0,VLOOKUP($A388,Economática!$A$3:$AI$823,21,FALSE)/100))","v":""},{"$f":"IF($A388=\"\",\"\",IF(OR(VLOOKUP($A388,Economática!$A$3:$AI$823,22,FALSE)/100=0,VLOOKUP($A388,Economática!$A$3:$AI$823,22,FALSE)/100=\"-\"),1/0,VLOOKUP($A388,Economática!$A$3:$AI$823,22,FALSE)/100))","v":""},{"$f":"IF($A388=\"\",\"\",IF(OR(VLOOKUP($A388,Economática!$A$3:$AI$823,23,FALSE)=0,VLOOKUP($A388,Economática!$A$3:$AI$823,23,FALSE)=\"-\"),1/0,VLOOKUP($A388,Economática!$A$3:$AI$823,23,FALSE)))","v":""},{"$f":"IF($A388=\"\",\"\",IF(OR(VLOOKUP($A388,Economática!$A$3:$AI$823,24,FALSE)=0,VLOOKUP($A388,Economática!$A$3:$AI$823,24,FALSE)=\"-\"),1/0,VLOOKUP($A388,Economática!$A$3:$AI$823,24,FALSE)))","v":""},{"$f":"IF($A388=\"\",\"\",IF(OR(VLOOKUP($A388,Economática!$A$3:$AI$823,25,FALSE)=0,VLOOKUP($A388,Economática!$A$3:$AI$823,25,FALSE)=\"-\"),1/0,VLOOKUP($A388,Economática!$A$3:$AI$823,25,FALSE)))","v":""},{"$f":"IF($A388=\"\",\"\",IF(ISERROR((F388+VLOOKUP($A388,Economática!$A$3:$AI$823,26,FALSE))/Y388),(F388+VLOOKUP($A388,Economática!$A$3:$AI$823,26,FALSE))/Y388,(F388+VLOOKUP($A388,Economática!$A$3:$AI$823,26,FALSE))/Y388))","v":""},{"$f":"IF($A388=\"\",\"\",IF(OR(-VLOOKUP($A388,Economática!$A$3:$AI$823,27,FALSE)=0,-VLOOKUP($A388,Economática!$A$3:$AI$823,27,FALSE)=\"-\"),1/0,-VLOOKUP($A388,Economática!$A$3:$AI$823,27,FALSE)))","v":""},"",{"$f":"IF($A388=\"\",\"\",IF(OR(VLOOKUP($A388,Economática!$A$3:$AI$823,28,FALSE)=0,VLOOKUP($A388,Economática!$A$3:$AI$823,28,FALSE)=\"-\"),1/0,VLOOKUP($A388,Economática!$A$3:$AI$823,28,FALSE)))","v":""},{"$f":"IF($A388=\"\",\"\",IF(OR(VLOOKUP($A388,Economática!$A$3:$AI$823,29,FALSE)=0,VLOOKUP($A388,Economática!$A$3:$AI$823,29,FALSE)=\"-\"),1/0,VLOOKUP($A388,Economática!$A$3:$AI$823,29,FALSE)))","v":""},{"$f":"IF($A388=\"\",\"\",IF(OR(VLOOKUP($A388,Economática!$A$3:$AI$823,30,FALSE)/E388=0,VLOOKUP($A388,Economática!$A$3:$AI$823,30,FALSE)/E388=\"-\",VLOOKUP($A388,Economática!$A$3:$AI$823,30,FALSE)/E388<33.33%,VLOOKUP($A388,Economática!$A$3:$AI$823,30,FALSE)/E388>100%),1/0,VLOOKUP($A388,Economática!$A$3:$AI$823,30,FALSE)/E388))","v":""},"",{"$f":"IF($A388=\"\",\"\",IF(OR(VLOOKUP($A388,Economática!$A$3:$AI$823,25,FALSE)=0,VLOOKUP($A388,Economática!$A$3:$AI$823,25,FALSE)=\"-\"),1/0,VLOOKUP($A388,Economática!$A$3:$AI$823,25,FALSE)))","v":""},{"$f":"CONCATENATE(Economática!B366,\" \",Economática!C366)","v":" "}]
[{"$f":"IF(Economática!AG367=\"\",\"\",Economática!AG367)","v":""},{"$f":"IF($A389=\"\",\"\",VLOOKUP(VLOOKUP($A389,Economática!$A$3:$AI$823,6,FALSE),Correção!$B$16:$C$36,2,FALSE))","v":""},{"$f":"IF(Economática!B367=\"\",\"\",Economática!B367)","v":""},{"$f":"IF($A389=\"\",\"\",IF(OR(VLOOKUP($A389,Economática!$A$3:$AI$823,8,FALSE)=0,VLOOKUP($A389,Economática!$A$3:$AI$823,8,FALSE)=\"-\"),1/0,VLOOKUP($A389,Economática!$A$3:$AI$823,8,FALSE)))","v":""},{"$f":"IF(A389=\"\",\"\",IF(ISERROR(VLOOKUP(A389,Correção!$B$2:$G$13,9,FALSE)),VLOOKUP($A389,Economática!$A$3:$AI$823,9,FALSE),VLOOKUP(A389,Correção!$B$2:$G$13,9,FALSE)))","v":""},{"$f":"IF($A389=\"\",\"\",Economática!G367)","v":""},{"$f":"IF($A389=\"\",\"\",IF(OR(VLOOKUP($A389,Economática!$A$3:$AI$823,10,FALSE)=0,VLOOKUP($A389,Economática!$A$3:$AI$823,10,FALSE)=\"-\"),1/0,VLOOKUP($A389,Economática!$A$3:$AI$823,10,FALSE)))","v":""},{"$f":"IF($A389=\"\",\"\",IF(OR(VLOOKUP($A389,Economática!$A$3:$AI$823,11,FALSE)=0,VLOOKUP($A389,Economática!$A$3:$AI$823,11,FALSE)=\"-\"),1/0,VLOOKUP($A389,Economática!$A$3:$AI$823,11,FALSE)))","v":""},{"$f":"IF($A389=\"\",\"\",IF(OR(VLOOKUP($A389,Economática!$A$3:$AI$823,12,FALSE)=0,VLOOKUP($A389,Economática!$A$3:$AI$823,12,FALSE)=\"-\"),1/0,VLOOKUP($A389,Economática!$A$3:$AI$823,12,FALSE)))","v":""},{"$f":"IF($A389=\"\",\"\",IF(OR(VLOOKUP($A389,Economática!$A$3:$AI$823,13,FALSE)=0,VLOOKUP($A389,Economática!$A$3:$AI$823,13,FALSE)=\"-\"),1/0,VLOOKUP($A389,Economática!$A$3:$AI$823,13,FALSE)))","v":""},{"$f":"IF($A389=\"\",\"\",IF(OR(VLOOKUP($A389,Economática!$A$3:$AI$823,14,FALSE)=0,VLOOKUP($A389,Economática!$A$3:$AI$823,14,FALSE)=\"-\"),1/0,VLOOKUP($A389,Economática!$A$3:$AI$823,14,FALSE)))","v":""},{"$f":"IF($A389=\"\",\"\",IF(OR(VLOOKUP($A389,Economática!$A$3:$AI$823,15,FALSE)=0,VLOOKUP($A389,Economática!$A$3:$AI$823,15,FALSE)=\"-\"),1/0,VLOOKUP($A389,Economática!$A$3:$AI$823,15,FALSE)))","v":""},{"$f":"IF($A389=\"\",\"\",IF(OR(VLOOKUP($A389,Economática!$A$3:$AI$823,16,FALSE)=0,VLOOKUP($A389,Economática!$A$3:$AI$823,16,FALSE)=\"-\"),1/0,VLOOKUP($A389,Economática!$A$3:$AI$823,16,FALSE)))","v":""},{"$f":"IF($A389=\"\",\"\",IF(OR(VLOOKUP($A389,Economática!$A$3:$AI$823,17,FALSE)=0,VLOOKUP($A389,Economática!$A$3:$AI$823,17,FALSE)=\"-\"),1/0,VLOOKUP($A389,Economática!$A$3:$AI$823,17,FALSE)))","v":""},{"$f":"IF($A389=\"\",\"\",IF(OR(VLOOKUP($A389,Economática!$A$3:$AI$823,18,FALSE)=0,VLOOKUP($A389,Economática!$A$3:$AI$823,18,FALSE)=\"-\"),1/0,VLOOKUP($A389,Economática!$A$3:$AI$823,18,FALSE)))","v":""},{"$f":"IF($A389=\"\",\"\",IF(OR(VLOOKUP($A389,Economática!$A$3:$AI$823,19,FALSE)=0,VLOOKUP($A389,Economática!$A$3:$AI$823,19,FALSE)=\"-\"),1/0,VLOOKUP($A389,Economática!$A$3:$AI$823,19,FALSE)))","v":""},{"$f":"IF($A389=\"\",\"\",VLOOKUP($A389,Economática!$A$3:$AI$823,20,FALSE)/E389)","v":""},"","","",{"$f":"IF($A389=\"\",\"\",IF(OR(VLOOKUP($A389,Economática!$A$3:$AI$823,21,FALSE)/100=0,VLOOKUP($A389,Economática!$A$3:$AI$823,21,FALSE)/100=\"-\"),1/0,VLOOKUP($A389,Economática!$A$3:$AI$823,21,FALSE)/100))","v":""},{"$f":"IF($A389=\"\",\"\",IF(OR(VLOOKUP($A389,Economática!$A$3:$AI$823,22,FALSE)/100=0,VLOOKUP($A389,Economática!$A$3:$AI$823,22,FALSE)/100=\"-\"),1/0,VLOOKUP($A389,Economática!$A$3:$AI$823,22,FALSE)/100))","v":""},{"$f":"IF($A389=\"\",\"\",IF(OR(VLOOKUP($A389,Economática!$A$3:$AI$823,23,FALSE)=0,VLOOKUP($A389,Economática!$A$3:$AI$823,23,FALSE)=\"-\"),1/0,VLOOKUP($A389,Economática!$A$3:$AI$823,23,FALSE)))","v":""},{"$f":"IF($A389=\"\",\"\",IF(OR(VLOOKUP($A389,Economática!$A$3:$AI$823,24,FALSE)=0,VLOOKUP($A389,Economática!$A$3:$AI$823,24,FALSE)=\"-\"),1/0,VLOOKUP($A389,Economática!$A$3:$AI$823,24,FALSE)))","v":""},{"$f":"IF($A389=\"\",\"\",IF(OR(VLOOKUP($A389,Economática!$A$3:$AI$823,25,FALSE)=0,VLOOKUP($A389,Economática!$A$3:$AI$823,25,FALSE)=\"-\"),1/0,VLOOKUP($A389,Economática!$A$3:$AI$823,25,FALSE)))","v":""},{"$f":"IF($A389=\"\",\"\",IF(ISERROR((F389+VLOOKUP($A389,Economática!$A$3:$AI$823,26,FALSE))/Y389),(F389+VLOOKUP($A389,Economática!$A$3:$AI$823,26,FALSE))/Y389,(F389+VLOOKUP($A389,Economática!$A$3:$AI$823,26,FALSE))/Y389))","v":""},{"$f":"IF($A389=\"\",\"\",IF(OR(-VLOOKUP($A389,Economática!$A$3:$AI$823,27,FALSE)=0,-VLOOKUP($A389,Economática!$A$3:$AI$823,27,FALSE)=\"-\"),1/0,-VLOOKUP($A389,Economática!$A$3:$AI$823,27,FALSE)))","v":""},"",{"$f":"IF($A389=\"\",\"\",IF(OR(VLOOKUP($A389,Economática!$A$3:$AI$823,28,FALSE)=0,VLOOKUP($A389,Economática!$A$3:$AI$823,28,FALSE)=\"-\"),1/0,VLOOKUP($A389,Economática!$A$3:$AI$823,28,FALSE)))","v":""},{"$f":"IF($A389=\"\",\"\",IF(OR(VLOOKUP($A389,Economática!$A$3:$AI$823,29,FALSE)=0,VLOOKUP($A389,Economática!$A$3:$AI$823,29,FALSE)=\"-\"),1/0,VLOOKUP($A389,Economática!$A$3:$AI$823,29,FALSE)))","v":""},{"$f":"IF($A389=\"\",\"\",IF(OR(VLOOKUP($A389,Economática!$A$3:$AI$823,30,FALSE)/E389=0,VLOOKUP($A389,Economática!$A$3:$AI$823,30,FALSE)/E389=\"-\",VLOOKUP($A389,Economática!$A$3:$AI$823,30,FALSE)/E389<33.33%,VLOOKUP($A389,Economática!$A$3:$AI$823,30,FALSE)/E389>100%),1/0,VLOOKUP($A389,Economática!$A$3:$AI$823,30,FALSE)/E389))","v":""},"",{"$f":"IF($A389=\"\",\"\",IF(OR(VLOOKUP($A389,Economática!$A$3:$AI$823,25,FALSE)=0,VLOOKUP($A389,Economática!$A$3:$AI$823,25,FALSE)=\"-\"),1/0,VLOOKUP($A389,Economática!$A$3:$AI$823,25,FALSE)))","v":""},{"$f":"CONCATENATE(Economática!B367,\" \",Economática!C367)","v":" "}]
[{"$f":"IF(Economática!AG368=\"\",\"\",Economática!AG368)","v":""},{"$f":"IF($A390=\"\",\"\",VLOOKUP(VLOOKUP($A390,Economática!$A$3:$AI$823,6,FALSE),Correção!$B$16:$C$36,2,FALSE))","v":""},{"$f":"IF(Economática!B368=\"\",\"\",Economática!B368)","v":""},{"$f":"IF($A390=\"\",\"\",IF(OR(VLOOKUP($A390,Economática!$A$3:$AI$823,8,FALSE)=0,VLOOKUP($A390,Economática!$A$3:$AI$823,8,FALSE)=\"-\"),1/0,VLOOKUP($A390,Economática!$A$3:$AI$823,8,FALSE)))","v":""},{"$f":"IF(A390=\"\",\"\",IF(ISERROR(VLOOKUP(A390,Correção!$B$2:$G$13,9,FALSE)),VLOOKUP($A390,Economática!$A$3:$AI$823,9,FALSE),VLOOKUP(A390,Correção!$B$2:$G$13,9,FALSE)))","v":""},{"$f":"IF($A390=\"\",\"\",Economática!G368)","v":""},{"$f":"IF($A390=\"\",\"\",IF(OR(VLOOKUP($A390,Economática!$A$3:$AI$823,10,FALSE)=0,VLOOKUP($A390,Economática!$A$3:$AI$823,10,FALSE)=\"-\"),1/0,VLOOKUP($A390,Economática!$A$3:$AI$823,10,FALSE)))","v":""},{"$f":"IF($A390=\"\",\"\",IF(OR(VLOOKUP($A390,Economática!$A$3:$AI$823,11,FALSE)=0,VLOOKUP($A390,Economática!$A$3:$AI$823,11,FALSE)=\"-\"),1/0,VLOOKUP($A390,Economática!$A$3:$AI$823,11,FALSE)))","v":""},{"$f":"IF($A390=\"\",\"\",IF(OR(VLOOKUP($A390,Economática!$A$3:$AI$823,12,FALSE)=0,VLOOKUP($A390,Economática!$A$3:$AI$823,12,FALSE)=\"-\"),1/0,VLOOKUP($A390,Economática!$A$3:$AI$823,12,FALSE)))","v":""},{"$f":"IF($A390=\"\",\"\",IF(OR(VLOOKUP($A390,Economática!$A$3:$AI$823,13,FALSE)=0,VLOOKUP($A390,Economática!$A$3:$AI$823,13,FALSE)=\"-\"),1/0,VLOOKUP($A390,Economática!$A$3:$AI$823,13,FALSE)))","v":""},{"$f":"IF($A390=\"\",\"\",IF(OR(VLOOKUP($A390,Economática!$A$3:$AI$823,14,FALSE)=0,VLOOKUP($A390,Economática!$A$3:$AI$823,14,FALSE)=\"-\"),1/0,VLOOKUP($A390,Economática!$A$3:$AI$823,14,FALSE)))","v":""},{"$f":"IF($A390=\"\",\"\",IF(OR(VLOOKUP($A390,Economática!$A$3:$AI$823,15,FALSE)=0,VLOOKUP($A390,Economática!$A$3:$AI$823,15,FALSE)=\"-\"),1/0,VLOOKUP($A390,Economática!$A$3:$AI$823,15,FALSE)))","v":""},{"$f":"IF($A390=\"\",\"\",IF(OR(VLOOKUP($A390,Economática!$A$3:$AI$823,16,FALSE)=0,VLOOKUP($A390,Economática!$A$3:$AI$823,16,FALSE)=\"-\"),1/0,VLOOKUP($A390,Economática!$A$3:$AI$823,16,FALSE)))","v":""},{"$f":"IF($A390=\"\",\"\",IF(OR(VLOOKUP($A390,Economática!$A$3:$AI$823,17,FALSE)=0,VLOOKUP($A390,Economática!$A$3:$AI$823,17,FALSE)=\"-\"),1/0,VLOOKUP($A390,Economática!$A$3:$AI$823,17,FALSE)))","v":""},{"$f":"IF($A390=\"\",\"\",IF(OR(VLOOKUP($A390,Economática!$A$3:$AI$823,18,FALSE)=0,VLOOKUP($A390,Economática!$A$3:$AI$823,18,FALSE)=\"-\"),1/0,VLOOKUP($A390,Economática!$A$3:$AI$823,18,FALSE)))","v":""},{"$f":"IF($A390=\"\",\"\",IF(OR(VLOOKUP($A390,Economática!$A$3:$AI$823,19,FALSE)=0,VLOOKUP($A390,Economática!$A$3:$AI$823,19,FALSE)=\"-\"),1/0,VLOOKUP($A390,Economática!$A$3:$AI$823,19,FALSE)))","v":""},{"$f":"IF($A390=\"\",\"\",VLOOKUP($A390,Economática!$A$3:$AI$823,20,FALSE)/E390)","v":""},"","","",{"$f":"IF($A390=\"\",\"\",IF(OR(VLOOKUP($A390,Economática!$A$3:$AI$823,21,FALSE)/100=0,VLOOKUP($A390,Economática!$A$3:$AI$823,21,FALSE)/100=\"-\"),1/0,VLOOKUP($A390,Economática!$A$3:$AI$823,21,FALSE)/100))","v":""},{"$f":"IF($A390=\"\",\"\",IF(OR(VLOOKUP($A390,Economática!$A$3:$AI$823,22,FALSE)/100=0,VLOOKUP($A390,Economática!$A$3:$AI$823,22,FALSE)/100=\"-\"),1/0,VLOOKUP($A390,Economática!$A$3:$AI$823,22,FALSE)/100))","v":""},{"$f":"IF($A390=\"\",\"\",IF(OR(VLOOKUP($A390,Economática!$A$3:$AI$823,23,FALSE)=0,VLOOKUP($A390,Economática!$A$3:$AI$823,23,FALSE)=\"-\"),1/0,VLOOKUP($A390,Economática!$A$3:$AI$823,23,FALSE)))","v":""},{"$f":"IF($A390=\"\",\"\",IF(OR(VLOOKUP($A390,Economática!$A$3:$AI$823,24,FALSE)=0,VLOOKUP($A390,Economática!$A$3:$AI$823,24,FALSE)=\"-\"),1/0,VLOOKUP($A390,Economática!$A$3:$AI$823,24,FALSE)))","v":""},{"$f":"IF($A390=\"\",\"\",IF(OR(VLOOKUP($A390,Economática!$A$3:$AI$823,25,FALSE)=0,VLOOKUP($A390,Economática!$A$3:$AI$823,25,FALSE)=\"-\"),1/0,VLOOKUP($A390,Economática!$A$3:$AI$823,25,FALSE)))","v":""},{"$f":"IF($A390=\"\",\"\",IF(ISERROR((F390+VLOOKUP($A390,Economática!$A$3:$AI$823,26,FALSE))/Y390),(F390+VLOOKUP($A390,Economática!$A$3:$AI$823,26,FALSE))/Y390,(F390+VLOOKUP($A390,Economática!$A$3:$AI$823,26,FALSE))/Y390))","v":""},{"$f":"IF($A390=\"\",\"\",IF(OR(-VLOOKUP($A390,Economática!$A$3:$AI$823,27,FALSE)=0,-VLOOKUP($A390,Economática!$A$3:$AI$823,27,FALSE)=\"-\"),1/0,-VLOOKUP($A390,Economática!$A$3:$AI$823,27,FALSE)))","v":""},"",{"$f":"IF($A390=\"\",\"\",IF(OR(VLOOKUP($A390,Economática!$A$3:$AI$823,28,FALSE)=0,VLOOKUP($A390,Economática!$A$3:$AI$823,28,FALSE)=\"-\"),1/0,VLOOKUP($A390,Economática!$A$3:$AI$823,28,FALSE)))","v":""},{"$f":"IF($A390=\"\",\"\",IF(OR(VLOOKUP($A390,Economática!$A$3:$AI$823,29,FALSE)=0,VLOOKUP($A390,Economática!$A$3:$AI$823,29,FALSE)=\"-\"),1/0,VLOOKUP($A390,Economática!$A$3:$AI$823,29,FALSE)))","v":""},{"$f":"IF($A390=\"\",\"\",IF(OR(VLOOKUP($A390,Economática!$A$3:$AI$823,30,FALSE)/E390=0,VLOOKUP($A390,Economática!$A$3:$AI$823,30,FALSE)/E390=\"-\",VLOOKUP($A390,Economática!$A$3:$AI$823,30,FALSE)/E390<33.33%,VLOOKUP($A390,Economática!$A$3:$AI$823,30,FALSE)/E390>100%),1/0,VLOOKUP($A390,Economática!$A$3:$AI$823,30,FALSE)/E390))","v":""},"",{"$f":"IF($A390=\"\",\"\",IF(OR(VLOOKUP($A390,Economática!$A$3:$AI$823,25,FALSE)=0,VLOOKUP($A390,Economática!$A$3:$AI$823,25,FALSE)=\"-\"),1/0,VLOOKUP($A390,Economática!$A$3:$AI$823,25,FALSE)))","v":""},{"$f":"CONCATENATE(Economática!B368,\" \",Economática!C368)","v":" "}]
[{"$f":"IF(Economática!AG369=\"\",\"\",Economática!AG369)","v":""},{"$f":"IF($A391=\"\",\"\",VLOOKUP(VLOOKUP($A391,Economática!$A$3:$AI$823,6,FALSE),Correção!$B$16:$C$36,2,FALSE))","v":""},{"$f":"IF(Economática!B369=\"\",\"\",Economática!B369)","v":""},{"$f":"IF($A391=\"\",\"\",IF(OR(VLOOKUP($A391,Economática!$A$3:$AI$823,8,FALSE)=0,VLOOKUP($A391,Economática!$A$3:$AI$823,8,FALSE)=\"-\"),1/0,VLOOKUP($A391,Economática!$A$3:$AI$823,8,FALSE)))","v":""},{"$f":"IF(A391=\"\",\"\",IF(ISERROR(VLOOKUP(A391,Correção!$B$2:$G$13,9,FALSE)),VLOOKUP($A391,Economática!$A$3:$AI$823,9,FALSE),VLOOKUP(A391,Correção!$B$2:$G$13,9,FALSE)))","v":""},{"$f":"IF($A391=\"\",\"\",Economática!G369)","v":""},{"$f":"IF($A391=\"\",\"\",IF(OR(VLOOKUP($A391,Economática!$A$3:$AI$823,10,FALSE)=0,VLOOKUP($A391,Economática!$A$3:$AI$823,10,FALSE)=\"-\"),1/0,VLOOKUP($A391,Economática!$A$3:$AI$823,10,FALSE)))","v":""},{"$f":"IF($A391=\"\",\"\",IF(OR(VLOOKUP($A391,Economática!$A$3:$AI$823,11,FALSE)=0,VLOOKUP($A391,Economática!$A$3:$AI$823,11,FALSE)=\"-\"),1/0,VLOOKUP($A391,Economática!$A$3:$AI$823,11,FALSE)))","v":""},{"$f":"IF($A391=\"\",\"\",IF(OR(VLOOKUP($A391,Economática!$A$3:$AI$823,12,FALSE)=0,VLOOKUP($A391,Economática!$A$3:$AI$823,12,FALSE)=\"-\"),1/0,VLOOKUP($A391,Economática!$A$3:$AI$823,12,FALSE)))","v":""},{"$f":"IF($A391=\"\",\"\",IF(OR(VLOOKUP($A391,Economática!$A$3:$AI$823,13,FALSE)=0,VLOOKUP($A391,Economática!$A$3:$AI$823,13,FALSE)=\"-\"),1/0,VLOOKUP($A391,Economática!$A$3:$AI$823,13,FALSE)))","v":""},{"$f":"IF($A391=\"\",\"\",IF(OR(VLOOKUP($A391,Economática!$A$3:$AI$823,14,FALSE)=0,VLOOKUP($A391,Economática!$A$3:$AI$823,14,FALSE)=\"-\"),1/0,VLOOKUP($A391,Economática!$A$3:$AI$823,14,FALSE)))","v":""},{"$f":"IF($A391=\"\",\"\",IF(OR(VLOOKUP($A391,Economática!$A$3:$AI$823,15,FALSE)=0,VLOOKUP($A391,Economática!$A$3:$AI$823,15,FALSE)=\"-\"),1/0,VLOOKUP($A391,Economática!$A$3:$AI$823,15,FALSE)))","v":""},{"$f":"IF($A391=\"\",\"\",IF(OR(VLOOKUP($A391,Economática!$A$3:$AI$823,16,FALSE)=0,VLOOKUP($A391,Economática!$A$3:$AI$823,16,FALSE)=\"-\"),1/0,VLOOKUP($A391,Economática!$A$3:$AI$823,16,FALSE)))","v":""},{"$f":"IF($A391=\"\",\"\",IF(OR(VLOOKUP($A391,Economática!$A$3:$AI$823,17,FALSE)=0,VLOOKUP($A391,Economática!$A$3:$AI$823,17,FALSE)=\"-\"),1/0,VLOOKUP($A391,Economática!$A$3:$AI$823,17,FALSE)))","v":""},{"$f":"IF($A391=\"\",\"\",IF(OR(VLOOKUP($A391,Economática!$A$3:$AI$823,18,FALSE)=0,VLOOKUP($A391,Economática!$A$3:$AI$823,18,FALSE)=\"-\"),1/0,VLOOKUP($A391,Economática!$A$3:$AI$823,18,FALSE)))","v":""},{"$f":"IF($A391=\"\",\"\",IF(OR(VLOOKUP($A391,Economática!$A$3:$AI$823,19,FALSE)=0,VLOOKUP($A391,Economática!$A$3:$AI$823,19,FALSE)=\"-\"),1/0,VLOOKUP($A391,Economática!$A$3:$AI$823,19,FALSE)))","v":""},{"$f":"IF($A391=\"\",\"\",VLOOKUP($A391,Economática!$A$3:$AI$823,20,FALSE)/E391)","v":""},"","","",{"$f":"IF($A391=\"\",\"\",IF(OR(VLOOKUP($A391,Economática!$A$3:$AI$823,21,FALSE)/100=0,VLOOKUP($A391,Economática!$A$3:$AI$823,21,FALSE)/100=\"-\"),1/0,VLOOKUP($A391,Economática!$A$3:$AI$823,21,FALSE)/100))","v":""},{"$f":"IF($A391=\"\",\"\",IF(OR(VLOOKUP($A391,Economática!$A$3:$AI$823,22,FALSE)/100=0,VLOOKUP($A391,Economática!$A$3:$AI$823,22,FALSE)/100=\"-\"),1/0,VLOOKUP($A391,Economática!$A$3:$AI$823,22,FALSE)/100))","v":""},{"$f":"IF($A391=\"\",\"\",IF(OR(VLOOKUP($A391,Economática!$A$3:$AI$823,23,FALSE)=0,VLOOKUP($A391,Economática!$A$3:$AI$823,23,FALSE)=\"-\"),1/0,VLOOKUP($A391,Economática!$A$3:$AI$823,23,FALSE)))","v":""},{"$f":"IF($A391=\"\",\"\",IF(OR(VLOOKUP($A391,Economática!$A$3:$AI$823,24,FALSE)=0,VLOOKUP($A391,Economática!$A$3:$AI$823,24,FALSE)=\"-\"),1/0,VLOOKUP($A391,Economática!$A$3:$AI$823,24,FALSE)))","v":""},{"$f":"IF($A391=\"\",\"\",IF(OR(VLOOKUP($A391,Economática!$A$3:$AI$823,25,FALSE)=0,VLOOKUP($A391,Economática!$A$3:$AI$823,25,FALSE)=\"-\"),1/0,VLOOKUP($A391,Economática!$A$3:$AI$823,25,FALSE)))","v":""},{"$f":"IF($A391=\"\",\"\",IF(ISERROR((F391+VLOOKUP($A391,Economática!$A$3:$AI$823,26,FALSE))/Y391),(F391+VLOOKUP($A391,Economática!$A$3:$AI$823,26,FALSE))/Y391,(F391+VLOOKUP($A391,Economática!$A$3:$AI$823,26,FALSE))/Y391))","v":""},{"$f":"IF($A391=\"\",\"\",IF(OR(-VLOOKUP($A391,Economática!$A$3:$AI$823,27,FALSE)=0,-VLOOKUP($A391,Economática!$A$3:$AI$823,27,FALSE)=\"-\"),1/0,-VLOOKUP($A391,Economática!$A$3:$AI$823,27,FALSE)))","v":""},"",{"$f":"IF($A391=\"\",\"\",IF(OR(VLOOKUP($A391,Economática!$A$3:$AI$823,28,FALSE)=0,VLOOKUP($A391,Economática!$A$3:$AI$823,28,FALSE)=\"-\"),1/0,VLOOKUP($A391,Economática!$A$3:$AI$823,28,FALSE)))","v":""},{"$f":"IF($A391=\"\",\"\",IF(OR(VLOOKUP($A391,Economática!$A$3:$AI$823,29,FALSE)=0,VLOOKUP($A391,Economática!$A$3:$AI$823,29,FALSE)=\"-\"),1/0,VLOOKUP($A391,Economática!$A$3:$AI$823,29,FALSE)))","v":""},{"$f":"IF($A391=\"\",\"\",IF(OR(VLOOKUP($A391,Economática!$A$3:$AI$823,30,FALSE)/E391=0,VLOOKUP($A391,Economática!$A$3:$AI$823,30,FALSE)/E391=\"-\",VLOOKUP($A391,Economática!$A$3:$AI$823,30,FALSE)/E391<33.33%,VLOOKUP($A391,Economática!$A$3:$AI$823,30,FALSE)/E391>100%),1/0,VLOOKUP($A391,Economática!$A$3:$AI$823,30,FALSE)/E391))","v":""},"",{"$f":"IF($A391=\"\",\"\",IF(OR(VLOOKUP($A391,Economática!$A$3:$AI$823,25,FALSE)=0,VLOOKUP($A391,Economática!$A$3:$AI$823,25,FALSE)=\"-\"),1/0,VLOOKUP($A391,Economática!$A$3:$AI$823,25,FALSE)))","v":""},{"$f":"CONCATENATE(Economática!B369,\" \",Economática!C369)","v":" "}]
[{"$f":"IF(Economática!AG370=\"\",\"\",Economática!AG370)","v":""},{"$f":"IF($A392=\"\",\"\",VLOOKUP(VLOOKUP($A392,Economática!$A$3:$AI$823,6,FALSE),Correção!$B$16:$C$36,2,FALSE))","v":""},{"$f":"IF(Economática!B370=\"\",\"\",Economática!B370)","v":""},{"$f":"IF($A392=\"\",\"\",IF(OR(VLOOKUP($A392,Economática!$A$3:$AI$823,8,FALSE)=0,VLOOKUP($A392,Economática!$A$3:$AI$823,8,FALSE)=\"-\"),1/0,VLOOKUP($A392,Economática!$A$3:$AI$823,8,FALSE)))","v":""},{"$f":"IF(A392=\"\",\"\",IF(ISERROR(VLOOKUP(A392,Correção!$B$2:$G$13,9,FALSE)),VLOOKUP($A392,Economática!$A$3:$AI$823,9,FALSE),VLOOKUP(A392,Correção!$B$2:$G$13,9,FALSE)))","v":""},{"$f":"IF($A392=\"\",\"\",Economática!G370)","v":""},{"$f":"IF($A392=\"\",\"\",IF(OR(VLOOKUP($A392,Economática!$A$3:$AI$823,10,FALSE)=0,VLOOKUP($A392,Economática!$A$3:$AI$823,10,FALSE)=\"-\"),1/0,VLOOKUP($A392,Economática!$A$3:$AI$823,10,FALSE)))","v":""},{"$f":"IF($A392=\"\",\"\",IF(OR(VLOOKUP($A392,Economática!$A$3:$AI$823,11,FALSE)=0,VLOOKUP($A392,Economática!$A$3:$AI$823,11,FALSE)=\"-\"),1/0,VLOOKUP($A392,Economática!$A$3:$AI$823,11,FALSE)))","v":""},{"$f":"IF($A392=\"\",\"\",IF(OR(VLOOKUP($A392,Economática!$A$3:$AI$823,12,FALSE)=0,VLOOKUP($A392,Economática!$A$3:$AI$823,12,FALSE)=\"-\"),1/0,VLOOKUP($A392,Economática!$A$3:$AI$823,12,FALSE)))","v":""},{"$f":"IF($A392=\"\",\"\",IF(OR(VLOOKUP($A392,Economática!$A$3:$AI$823,13,FALSE)=0,VLOOKUP($A392,Economática!$A$3:$AI$823,13,FALSE)=\"-\"),1/0,VLOOKUP($A392,Economática!$A$3:$AI$823,13,FALSE)))","v":""},{"$f":"IF($A392=\"\",\"\",IF(OR(VLOOKUP($A392,Economática!$A$3:$AI$823,14,FALSE)=0,VLOOKUP($A392,Economática!$A$3:$AI$823,14,FALSE)=\"-\"),1/0,VLOOKUP($A392,Economática!$A$3:$AI$823,14,FALSE)))","v":""},{"$f":"IF($A392=\"\",\"\",IF(OR(VLOOKUP($A392,Economática!$A$3:$AI$823,15,FALSE)=0,VLOOKUP($A392,Economática!$A$3:$AI$823,15,FALSE)=\"-\"),1/0,VLOOKUP($A392,Economática!$A$3:$AI$823,15,FALSE)))","v":""},{"$f":"IF($A392=\"\",\"\",IF(OR(VLOOKUP($A392,Economática!$A$3:$AI$823,16,FALSE)=0,VLOOKUP($A392,Economática!$A$3:$AI$823,16,FALSE)=\"-\"),1/0,VLOOKUP($A392,Economática!$A$3:$AI$823,16,FALSE)))","v":""},{"$f":"IF($A392=\"\",\"\",IF(OR(VLOOKUP($A392,Economática!$A$3:$AI$823,17,FALSE)=0,VLOOKUP($A392,Economática!$A$3:$AI$823,17,FALSE)=\"-\"),1/0,VLOOKUP($A392,Economática!$A$3:$AI$823,17,FALSE)))","v":""},{"$f":"IF($A392=\"\",\"\",IF(OR(VLOOKUP($A392,Economática!$A$3:$AI$823,18,FALSE)=0,VLOOKUP($A392,Economática!$A$3:$AI$823,18,FALSE)=\"-\"),1/0,VLOOKUP($A392,Economática!$A$3:$AI$823,18,FALSE)))","v":""},{"$f":"IF($A392=\"\",\"\",IF(OR(VLOOKUP($A392,Economática!$A$3:$AI$823,19,FALSE)=0,VLOOKUP($A392,Economática!$A$3:$AI$823,19,FALSE)=\"-\"),1/0,VLOOKUP($A392,Economática!$A$3:$AI$823,19,FALSE)))","v":""},{"$f":"IF($A392=\"\",\"\",VLOOKUP($A392,Economática!$A$3:$AI$823,20,FALSE)/E392)","v":""},"","","",{"$f":"IF($A392=\"\",\"\",IF(OR(VLOOKUP($A392,Economática!$A$3:$AI$823,21,FALSE)/100=0,VLOOKUP($A392,Economática!$A$3:$AI$823,21,FALSE)/100=\"-\"),1/0,VLOOKUP($A392,Economática!$A$3:$AI$823,21,FALSE)/100))","v":""},{"$f":"IF($A392=\"\",\"\",IF(OR(VLOOKUP($A392,Economática!$A$3:$AI$823,22,FALSE)/100=0,VLOOKUP($A392,Economática!$A$3:$AI$823,22,FALSE)/100=\"-\"),1/0,VLOOKUP($A392,Economática!$A$3:$AI$823,22,FALSE)/100))","v":""},{"$f":"IF($A392=\"\",\"\",IF(OR(VLOOKUP($A392,Economática!$A$3:$AI$823,23,FALSE)=0,VLOOKUP($A392,Economática!$A$3:$AI$823,23,FALSE)=\"-\"),1/0,VLOOKUP($A392,Economática!$A$3:$AI$823,23,FALSE)))","v":""},{"$f":"IF($A392=\"\",\"\",IF(OR(VLOOKUP($A392,Economática!$A$3:$AI$823,24,FALSE)=0,VLOOKUP($A392,Economática!$A$3:$AI$823,24,FALSE)=\"-\"),1/0,VLOOKUP($A392,Economática!$A$3:$AI$823,24,FALSE)))","v":""},{"$f":"IF($A392=\"\",\"\",IF(OR(VLOOKUP($A392,Economática!$A$3:$AI$823,25,FALSE)=0,VLOOKUP($A392,Economática!$A$3:$AI$823,25,FALSE)=\"-\"),1/0,VLOOKUP($A392,Economática!$A$3:$AI$823,25,FALSE)))","v":""},{"$f":"IF($A392=\"\",\"\",IF(ISERROR((F392+VLOOKUP($A392,Economática!$A$3:$AI$823,26,FALSE))/Y392),(F392+VLOOKUP($A392,Economática!$A$3:$AI$823,26,FALSE))/Y392,(F392+VLOOKUP($A392,Economática!$A$3:$AI$823,26,FALSE))/Y392))","v":""},{"$f":"IF($A392=\"\",\"\",IF(OR(-VLOOKUP($A392,Economática!$A$3:$AI$823,27,FALSE)=0,-VLOOKUP($A392,Economática!$A$3:$AI$823,27,FALSE)=\"-\"),1/0,-VLOOKUP($A392,Economática!$A$3:$AI$823,27,FALSE)))","v":""},"",{"$f":"IF($A392=\"\",\"\",IF(OR(VLOOKUP($A392,Economática!$A$3:$AI$823,28,FALSE)=0,VLOOKUP($A392,Economática!$A$3:$AI$823,28,FALSE)=\"-\"),1/0,VLOOKUP($A392,Economática!$A$3:$AI$823,28,FALSE)))","v":""},{"$f":"IF($A392=\"\",\"\",IF(OR(VLOOKUP($A392,Economática!$A$3:$AI$823,29,FALSE)=0,VLOOKUP($A392,Economática!$A$3:$AI$823,29,FALSE)=\"-\"),1/0,VLOOKUP($A392,Economática!$A$3:$AI$823,29,FALSE)))","v":""},{"$f":"IF($A392=\"\",\"\",IF(OR(VLOOKUP($A392,Economática!$A$3:$AI$823,30,FALSE)/E392=0,VLOOKUP($A392,Economática!$A$3:$AI$823,30,FALSE)/E392=\"-\",VLOOKUP($A392,Economática!$A$3:$AI$823,30,FALSE)/E392<33.33%,VLOOKUP($A392,Economática!$A$3:$AI$823,30,FALSE)/E392>100%),1/0,VLOOKUP($A392,Economática!$A$3:$AI$823,30,FALSE)/E392))","v":""},"",{"$f":"IF($A392=\"\",\"\",IF(OR(VLOOKUP($A392,Economática!$A$3:$AI$823,25,FALSE)=0,VLOOKUP($A392,Economática!$A$3:$AI$823,25,FALSE)=\"-\"),1/0,VLOOKUP($A392,Economática!$A$3:$AI$823,25,FALSE)))","v":""},{"$f":"CONCATENATE(Economática!B370,\" \",Economática!C370)","v":" "}]
[{"$f":"IF(Economática!AG371=\"\",\"\",Economática!AG371)","v":""},{"$f":"IF($A393=\"\",\"\",VLOOKUP(VLOOKUP($A393,Economática!$A$3:$AI$823,6,FALSE),Correção!$B$16:$C$36,2,FALSE))","v":""},{"$f":"IF(Economática!B371=\"\",\"\",Economática!B371)","v":""},{"$f":"IF($A393=\"\",\"\",IF(OR(VLOOKUP($A393,Economática!$A$3:$AI$823,8,FALSE)=0,VLOOKUP($A393,Economática!$A$3:$AI$823,8,FALSE)=\"-\"),1/0,VLOOKUP($A393,Economática!$A$3:$AI$823,8,FALSE)))","v":""},{"$f":"IF(A393=\"\",\"\",IF(ISERROR(VLOOKUP(A393,Correção!$B$2:$G$13,9,FALSE)),VLOOKUP($A393,Economática!$A$3:$AI$823,9,FALSE),VLOOKUP(A393,Correção!$B$2:$G$13,9,FALSE)))","v":""},{"$f":"IF($A393=\"\",\"\",Economática!G371)","v":""},{"$f":"IF($A393=\"\",\"\",IF(OR(VLOOKUP($A393,Economática!$A$3:$AI$823,10,FALSE)=0,VLOOKUP($A393,Economática!$A$3:$AI$823,10,FALSE)=\"-\"),1/0,VLOOKUP($A393,Economática!$A$3:$AI$823,10,FALSE)))","v":""},{"$f":"IF($A393=\"\",\"\",IF(OR(VLOOKUP($A393,Economática!$A$3:$AI$823,11,FALSE)=0,VLOOKUP($A393,Economática!$A$3:$AI$823,11,FALSE)=\"-\"),1/0,VLOOKUP($A393,Economática!$A$3:$AI$823,11,FALSE)))","v":""},{"$f":"IF($A393=\"\",\"\",IF(OR(VLOOKUP($A393,Economática!$A$3:$AI$823,12,FALSE)=0,VLOOKUP($A393,Economática!$A$3:$AI$823,12,FALSE)=\"-\"),1/0,VLOOKUP($A393,Economática!$A$3:$AI$823,12,FALSE)))","v":""},{"$f":"IF($A393=\"\",\"\",IF(OR(VLOOKUP($A393,Economática!$A$3:$AI$823,13,FALSE)=0,VLOOKUP($A393,Economática!$A$3:$AI$823,13,FALSE)=\"-\"),1/0,VLOOKUP($A393,Economática!$A$3:$AI$823,13,FALSE)))","v":""},{"$f":"IF($A393=\"\",\"\",IF(OR(VLOOKUP($A393,Economática!$A$3:$AI$823,14,FALSE)=0,VLOOKUP($A393,Economática!$A$3:$AI$823,14,FALSE)=\"-\"),1/0,VLOOKUP($A393,Economática!$A$3:$AI$823,14,FALSE)))","v":""},{"$f":"IF($A393=\"\",\"\",IF(OR(VLOOKUP($A393,Economática!$A$3:$AI$823,15,FALSE)=0,VLOOKUP($A393,Economática!$A$3:$AI$823,15,FALSE)=\"-\"),1/0,VLOOKUP($A393,Economática!$A$3:$AI$823,15,FALSE)))","v":""},{"$f":"IF($A393=\"\",\"\",IF(OR(VLOOKUP($A393,Economática!$A$3:$AI$823,16,FALSE)=0,VLOOKUP($A393,Economática!$A$3:$AI$823,16,FALSE)=\"-\"),1/0,VLOOKUP($A393,Economática!$A$3:$AI$823,16,FALSE)))","v":""},{"$f":"IF($A393=\"\",\"\",IF(OR(VLOOKUP($A393,Economática!$A$3:$AI$823,17,FALSE)=0,VLOOKUP($A393,Economática!$A$3:$AI$823,17,FALSE)=\"-\"),1/0,VLOOKUP($A393,Economática!$A$3:$AI$823,17,FALSE)))","v":""},{"$f":"IF($A393=\"\",\"\",IF(OR(VLOOKUP($A393,Economática!$A$3:$AI$823,18,FALSE)=0,VLOOKUP($A393,Economática!$A$3:$AI$823,18,FALSE)=\"-\"),1/0,VLOOKUP($A393,Economática!$A$3:$AI$823,18,FALSE)))","v":""},{"$f":"IF($A393=\"\",\"\",IF(OR(VLOOKUP($A393,Economática!$A$3:$AI$823,19,FALSE)=0,VLOOKUP($A393,Economática!$A$3:$AI$823,19,FALSE)=\"-\"),1/0,VLOOKUP($A393,Economática!$A$3:$AI$823,19,FALSE)))","v":""},{"$f":"IF($A393=\"\",\"\",VLOOKUP($A393,Economática!$A$3:$AI$823,20,FALSE)/E393)","v":""},"","","",{"$f":"IF($A393=\"\",\"\",IF(OR(VLOOKUP($A393,Economática!$A$3:$AI$823,21,FALSE)/100=0,VLOOKUP($A393,Economática!$A$3:$AI$823,21,FALSE)/100=\"-\"),1/0,VLOOKUP($A393,Economática!$A$3:$AI$823,21,FALSE)/100))","v":""},{"$f":"IF($A393=\"\",\"\",IF(OR(VLOOKUP($A393,Economática!$A$3:$AI$823,22,FALSE)/100=0,VLOOKUP($A393,Economática!$A$3:$AI$823,22,FALSE)/100=\"-\"),1/0,VLOOKUP($A393,Economática!$A$3:$AI$823,22,FALSE)/100))","v":""},{"$f":"IF($A393=\"\",\"\",IF(OR(VLOOKUP($A393,Economática!$A$3:$AI$823,23,FALSE)=0,VLOOKUP($A393,Economática!$A$3:$AI$823,23,FALSE)=\"-\"),1/0,VLOOKUP($A393,Economática!$A$3:$AI$823,23,FALSE)))","v":""},{"$f":"IF($A393=\"\",\"\",IF(OR(VLOOKUP($A393,Economática!$A$3:$AI$823,24,FALSE)=0,VLOOKUP($A393,Economática!$A$3:$AI$823,24,FALSE)=\"-\"),1/0,VLOOKUP($A393,Economática!$A$3:$AI$823,24,FALSE)))","v":""},{"$f":"IF($A393=\"\",\"\",IF(OR(VLOOKUP($A393,Economática!$A$3:$AI$823,25,FALSE)=0,VLOOKUP($A393,Economática!$A$3:$AI$823,25,FALSE)=\"-\"),1/0,VLOOKUP($A393,Economática!$A$3:$AI$823,25,FALSE)))","v":""},{"$f":"IF($A393=\"\",\"\",IF(ISERROR((F393+VLOOKUP($A393,Economática!$A$3:$AI$823,26,FALSE))/Y393),(F393+VLOOKUP($A393,Economática!$A$3:$AI$823,26,FALSE))/Y393,(F393+VLOOKUP($A393,Economática!$A$3:$AI$823,26,FALSE))/Y393))","v":""},{"$f":"IF($A393=\"\",\"\",IF(OR(-VLOOKUP($A393,Economática!$A$3:$AI$823,27,FALSE)=0,-VLOOKUP($A393,Economática!$A$3:$AI$823,27,FALSE)=\"-\"),1/0,-VLOOKUP($A393,Economática!$A$3:$AI$823,27,FALSE)))","v":""},"",{"$f":"IF($A393=\"\",\"\",IF(OR(VLOOKUP($A393,Economática!$A$3:$AI$823,28,FALSE)=0,VLOOKUP($A393,Economática!$A$3:$AI$823,28,FALSE)=\"-\"),1/0,VLOOKUP($A393,Economática!$A$3:$AI$823,28,FALSE)))","v":""},{"$f":"IF($A393=\"\",\"\",IF(OR(VLOOKUP($A393,Economática!$A$3:$AI$823,29,FALSE)=0,VLOOKUP($A393,Economática!$A$3:$AI$823,29,FALSE)=\"-\"),1/0,VLOOKUP($A393,Economática!$A$3:$AI$823,29,FALSE)))","v":""},{"$f":"IF($A393=\"\",\"\",IF(OR(VLOOKUP($A393,Economática!$A$3:$AI$823,30,FALSE)/E393=0,VLOOKUP($A393,Economática!$A$3:$AI$823,30,FALSE)/E393=\"-\",VLOOKUP($A393,Economática!$A$3:$AI$823,30,FALSE)/E393<33.33%,VLOOKUP($A393,Economática!$A$3:$AI$823,30,FALSE)/E393>100%),1/0,VLOOKUP($A393,Economática!$A$3:$AI$823,30,FALSE)/E393))","v":""},"",{"$f":"IF($A393=\"\",\"\",IF(OR(VLOOKUP($A393,Economática!$A$3:$AI$823,25,FALSE)=0,VLOOKUP($A393,Economática!$A$3:$AI$823,25,FALSE)=\"-\"),1/0,VLOOKUP($A393,Economática!$A$3:$AI$823,25,FALSE)))","v":""},{"$f":"CONCATENATE(Economática!B371,\" \",Economática!C371)","v":" "}]
[{"$f":"IF(Economática!AG372=\"\",\"\",Economática!AG372)","v":""},{"$f":"IF($A394=\"\",\"\",VLOOKUP(VLOOKUP($A394,Economática!$A$3:$AI$823,6,FALSE),Correção!$B$16:$C$36,2,FALSE))","v":""},{"$f":"IF(Economática!B372=\"\",\"\",Economática!B372)","v":""},{"$f":"IF($A394=\"\",\"\",IF(OR(VLOOKUP($A394,Economática!$A$3:$AI$823,8,FALSE)=0,VLOOKUP($A394,Economática!$A$3:$AI$823,8,FALSE)=\"-\"),1/0,VLOOKUP($A394,Economática!$A$3:$AI$823,8,FALSE)))","v":""},{"$f":"IF(A394=\"\",\"\",IF(ISERROR(VLOOKUP(A394,Correção!$B$2:$G$13,9,FALSE)),VLOOKUP($A394,Economática!$A$3:$AI$823,9,FALSE),VLOOKUP(A394,Correção!$B$2:$G$13,9,FALSE)))","v":""},{"$f":"IF($A394=\"\",\"\",Economática!G372)","v":""},{"$f":"IF($A394=\"\",\"\",IF(OR(VLOOKUP($A394,Economática!$A$3:$AI$823,10,FALSE)=0,VLOOKUP($A394,Economática!$A$3:$AI$823,10,FALSE)=\"-\"),1/0,VLOOKUP($A394,Economática!$A$3:$AI$823,10,FALSE)))","v":""},{"$f":"IF($A394=\"\",\"\",IF(OR(VLOOKUP($A394,Economática!$A$3:$AI$823,11,FALSE)=0,VLOOKUP($A394,Economática!$A$3:$AI$823,11,FALSE)=\"-\"),1/0,VLOOKUP($A394,Economática!$A$3:$AI$823,11,FALSE)))","v":""},{"$f":"IF($A394=\"\",\"\",IF(OR(VLOOKUP($A394,Economática!$A$3:$AI$823,12,FALSE)=0,VLOOKUP($A394,Economática!$A$3:$AI$823,12,FALSE)=\"-\"),1/0,VLOOKUP($A394,Economática!$A$3:$AI$823,12,FALSE)))","v":""},{"$f":"IF($A394=\"\",\"\",IF(OR(VLOOKUP($A394,Economática!$A$3:$AI$823,13,FALSE)=0,VLOOKUP($A394,Economática!$A$3:$AI$823,13,FALSE)=\"-\"),1/0,VLOOKUP($A394,Economática!$A$3:$AI$823,13,FALSE)))","v":""},{"$f":"IF($A394=\"\",\"\",IF(OR(VLOOKUP($A394,Economática!$A$3:$AI$823,14,FALSE)=0,VLOOKUP($A394,Economática!$A$3:$AI$823,14,FALSE)=\"-\"),1/0,VLOOKUP($A394,Economática!$A$3:$AI$823,14,FALSE)))","v":""},{"$f":"IF($A394=\"\",\"\",IF(OR(VLOOKUP($A394,Economática!$A$3:$AI$823,15,FALSE)=0,VLOOKUP($A394,Economática!$A$3:$AI$823,15,FALSE)=\"-\"),1/0,VLOOKUP($A394,Economática!$A$3:$AI$823,15,FALSE)))","v":""},{"$f":"IF($A394=\"\",\"\",IF(OR(VLOOKUP($A394,Economática!$A$3:$AI$823,16,FALSE)=0,VLOOKUP($A394,Economática!$A$3:$AI$823,16,FALSE)=\"-\"),1/0,VLOOKUP($A394,Economática!$A$3:$AI$823,16,FALSE)))","v":""},{"$f":"IF($A394=\"\",\"\",IF(OR(VLOOKUP($A394,Economática!$A$3:$AI$823,17,FALSE)=0,VLOOKUP($A394,Economática!$A$3:$AI$823,17,FALSE)=\"-\"),1/0,VLOOKUP($A394,Economática!$A$3:$AI$823,17,FALSE)))","v":""},{"$f":"IF($A394=\"\",\"\",IF(OR(VLOOKUP($A394,Economática!$A$3:$AI$823,18,FALSE)=0,VLOOKUP($A394,Economática!$A$3:$AI$823,18,FALSE)=\"-\"),1/0,VLOOKUP($A394,Economática!$A$3:$AI$823,18,FALSE)))","v":""},{"$f":"IF($A394=\"\",\"\",IF(OR(VLOOKUP($A394,Economática!$A$3:$AI$823,19,FALSE)=0,VLOOKUP($A394,Economática!$A$3:$AI$823,19,FALSE)=\"-\"),1/0,VLOOKUP($A394,Economática!$A$3:$AI$823,19,FALSE)))","v":""},{"$f":"IF($A394=\"\",\"\",VLOOKUP($A394,Economática!$A$3:$AI$823,20,FALSE)/E394)","v":""},"","","",{"$f":"IF($A394=\"\",\"\",IF(OR(VLOOKUP($A394,Economática!$A$3:$AI$823,21,FALSE)/100=0,VLOOKUP($A394,Economática!$A$3:$AI$823,21,FALSE)/100=\"-\"),1/0,VLOOKUP($A394,Economática!$A$3:$AI$823,21,FALSE)/100))","v":""},{"$f":"IF($A394=\"\",\"\",IF(OR(VLOOKUP($A394,Economática!$A$3:$AI$823,22,FALSE)/100=0,VLOOKUP($A394,Economática!$A$3:$AI$823,22,FALSE)/100=\"-\"),1/0,VLOOKUP($A394,Economática!$A$3:$AI$823,22,FALSE)/100))","v":""},{"$f":"IF($A394=\"\",\"\",IF(OR(VLOOKUP($A394,Economática!$A$3:$AI$823,23,FALSE)=0,VLOOKUP($A394,Economática!$A$3:$AI$823,23,FALSE)=\"-\"),1/0,VLOOKUP($A394,Economática!$A$3:$AI$823,23,FALSE)))","v":""},{"$f":"IF($A394=\"\",\"\",IF(OR(VLOOKUP($A394,Economática!$A$3:$AI$823,24,FALSE)=0,VLOOKUP($A394,Economática!$A$3:$AI$823,24,FALSE)=\"-\"),1/0,VLOOKUP($A394,Economática!$A$3:$AI$823,24,FALSE)))","v":""},{"$f":"IF($A394=\"\",\"\",IF(OR(VLOOKUP($A394,Economática!$A$3:$AI$823,25,FALSE)=0,VLOOKUP($A394,Economática!$A$3:$AI$823,25,FALSE)=\"-\"),1/0,VLOOKUP($A394,Economática!$A$3:$AI$823,25,FALSE)))","v":""},{"$f":"IF($A394=\"\",\"\",IF(ISERROR((F394+VLOOKUP($A394,Economática!$A$3:$AI$823,26,FALSE))/Y394),(F394+VLOOKUP($A394,Economática!$A$3:$AI$823,26,FALSE))/Y394,(F394+VLOOKUP($A394,Economática!$A$3:$AI$823,26,FALSE))/Y394))","v":""},{"$f":"IF($A394=\"\",\"\",IF(OR(-VLOOKUP($A394,Economática!$A$3:$AI$823,27,FALSE)=0,-VLOOKUP($A394,Economática!$A$3:$AI$823,27,FALSE)=\"-\"),1/0,-VLOOKUP($A394,Economática!$A$3:$AI$823,27,FALSE)))","v":""},"",{"$f":"IF($A394=\"\",\"\",IF(OR(VLOOKUP($A394,Economática!$A$3:$AI$823,28,FALSE)=0,VLOOKUP($A394,Economática!$A$3:$AI$823,28,FALSE)=\"-\"),1/0,VLOOKUP($A394,Economática!$A$3:$AI$823,28,FALSE)))","v":""},{"$f":"IF($A394=\"\",\"\",IF(OR(VLOOKUP($A394,Economática!$A$3:$AI$823,29,FALSE)=0,VLOOKUP($A394,Economática!$A$3:$AI$823,29,FALSE)=\"-\"),1/0,VLOOKUP($A394,Economática!$A$3:$AI$823,29,FALSE)))","v":""},{"$f":"IF($A394=\"\",\"\",IF(OR(VLOOKUP($A394,Economática!$A$3:$AI$823,30,FALSE)/E394=0,VLOOKUP($A394,Economática!$A$3:$AI$823,30,FALSE)/E394=\"-\",VLOOKUP($A394,Economática!$A$3:$AI$823,30,FALSE)/E394<33.33%,VLOOKUP($A394,Economática!$A$3:$AI$823,30,FALSE)/E394>100%),1/0,VLOOKUP($A394,Economática!$A$3:$AI$823,30,FALSE)/E394))","v":""},"",{"$f":"IF($A394=\"\",\"\",IF(OR(VLOOKUP($A394,Economática!$A$3:$AI$823,25,FALSE)=0,VLOOKUP($A394,Economática!$A$3:$AI$823,25,FALSE)=\"-\"),1/0,VLOOKUP($A394,Economática!$A$3:$AI$823,25,FALSE)))","v":""},{"$f":"CONCATENATE(Economática!B372,\" \",Economática!C372)","v":" "}]
[{"$f":"IF(Economática!AG373=\"\",\"\",Economática!AG373)","v":""},{"$f":"IF($A395=\"\",\"\",VLOOKUP(VLOOKUP($A395,Economática!$A$3:$AI$823,6,FALSE),Correção!$B$16:$C$36,2,FALSE))","v":""},{"$f":"IF(Economática!B373=\"\",\"\",Economática!B373)","v":""},{"$f":"IF($A395=\"\",\"\",IF(OR(VLOOKUP($A395,Economática!$A$3:$AI$823,8,FALSE)=0,VLOOKUP($A395,Economática!$A$3:$AI$823,8,FALSE)=\"-\"),1/0,VLOOKUP($A395,Economática!$A$3:$AI$823,8,FALSE)))","v":""},{"$f":"IF(A395=\"\",\"\",IF(ISERROR(VLOOKUP(A395,Correção!$B$2:$G$13,9,FALSE)),VLOOKUP($A395,Economática!$A$3:$AI$823,9,FALSE),VLOOKUP(A395,Correção!$B$2:$G$13,9,FALSE)))","v":""},{"$f":"IF($A395=\"\",\"\",Economática!G373)","v":""},{"$f":"IF($A395=\"\",\"\",IF(OR(VLOOKUP($A395,Economática!$A$3:$AI$823,10,FALSE)=0,VLOOKUP($A395,Economática!$A$3:$AI$823,10,FALSE)=\"-\"),1/0,VLOOKUP($A395,Economática!$A$3:$AI$823,10,FALSE)))","v":""},{"$f":"IF($A395=\"\",\"\",IF(OR(VLOOKUP($A395,Economática!$A$3:$AI$823,11,FALSE)=0,VLOOKUP($A395,Economática!$A$3:$AI$823,11,FALSE)=\"-\"),1/0,VLOOKUP($A395,Economática!$A$3:$AI$823,11,FALSE)))","v":""},{"$f":"IF($A395=\"\",\"\",IF(OR(VLOOKUP($A395,Economática!$A$3:$AI$823,12,FALSE)=0,VLOOKUP($A395,Economática!$A$3:$AI$823,12,FALSE)=\"-\"),1/0,VLOOKUP($A395,Economática!$A$3:$AI$823,12,FALSE)))","v":""},{"$f":"IF($A395=\"\",\"\",IF(OR(VLOOKUP($A395,Economática!$A$3:$AI$823,13,FALSE)=0,VLOOKUP($A395,Economática!$A$3:$AI$823,13,FALSE)=\"-\"),1/0,VLOOKUP($A395,Economática!$A$3:$AI$823,13,FALSE)))","v":""},{"$f":"IF($A395=\"\",\"\",IF(OR(VLOOKUP($A395,Economática!$A$3:$AI$823,14,FALSE)=0,VLOOKUP($A395,Economática!$A$3:$AI$823,14,FALSE)=\"-\"),1/0,VLOOKUP($A395,Economática!$A$3:$AI$823,14,FALSE)))","v":""},{"$f":"IF($A395=\"\",\"\",IF(OR(VLOOKUP($A395,Economática!$A$3:$AI$823,15,FALSE)=0,VLOOKUP($A395,Economática!$A$3:$AI$823,15,FALSE)=\"-\"),1/0,VLOOKUP($A395,Economática!$A$3:$AI$823,15,FALSE)))","v":""},{"$f":"IF($A395=\"\",\"\",IF(OR(VLOOKUP($A395,Economática!$A$3:$AI$823,16,FALSE)=0,VLOOKUP($A395,Economática!$A$3:$AI$823,16,FALSE)=\"-\"),1/0,VLOOKUP($A395,Economática!$A$3:$AI$823,16,FALSE)))","v":""},{"$f":"IF($A395=\"\",\"\",IF(OR(VLOOKUP($A395,Economática!$A$3:$AI$823,17,FALSE)=0,VLOOKUP($A395,Economática!$A$3:$AI$823,17,FALSE)=\"-\"),1/0,VLOOKUP($A395,Economática!$A$3:$AI$823,17,FALSE)))","v":""},{"$f":"IF($A395=\"\",\"\",IF(OR(VLOOKUP($A395,Economática!$A$3:$AI$823,18,FALSE)=0,VLOOKUP($A395,Economática!$A$3:$AI$823,18,FALSE)=\"-\"),1/0,VLOOKUP($A395,Economática!$A$3:$AI$823,18,FALSE)))","v":""},{"$f":"IF($A395=\"\",\"\",IF(OR(VLOOKUP($A395,Economática!$A$3:$AI$823,19,FALSE)=0,VLOOKUP($A395,Economática!$A$3:$AI$823,19,FALSE)=\"-\"),1/0,VLOOKUP($A395,Economática!$A$3:$AI$823,19,FALSE)))","v":""},{"$f":"IF($A395=\"\",\"\",VLOOKUP($A395,Economática!$A$3:$AI$823,20,FALSE)/E395)","v":""},"","","",{"$f":"IF($A395=\"\",\"\",IF(OR(VLOOKUP($A395,Economática!$A$3:$AI$823,21,FALSE)/100=0,VLOOKUP($A395,Economática!$A$3:$AI$823,21,FALSE)/100=\"-\"),1/0,VLOOKUP($A395,Economática!$A$3:$AI$823,21,FALSE)/100))","v":""},{"$f":"IF($A395=\"\",\"\",IF(OR(VLOOKUP($A395,Economática!$A$3:$AI$823,22,FALSE)/100=0,VLOOKUP($A395,Economática!$A$3:$AI$823,22,FALSE)/100=\"-\"),1/0,VLOOKUP($A395,Economática!$A$3:$AI$823,22,FALSE)/100))","v":""},{"$f":"IF($A395=\"\",\"\",IF(OR(VLOOKUP($A395,Economática!$A$3:$AI$823,23,FALSE)=0,VLOOKUP($A395,Economática!$A$3:$AI$823,23,FALSE)=\"-\"),1/0,VLOOKUP($A395,Economática!$A$3:$AI$823,23,FALSE)))","v":""},{"$f":"IF($A395=\"\",\"\",IF(OR(VLOOKUP($A395,Economática!$A$3:$AI$823,24,FALSE)=0,VLOOKUP($A395,Economática!$A$3:$AI$823,24,FALSE)=\"-\"),1/0,VLOOKUP($A395,Economática!$A$3:$AI$823,24,FALSE)))","v":""},{"$f":"IF($A395=\"\",\"\",IF(OR(VLOOKUP($A395,Economática!$A$3:$AI$823,25,FALSE)=0,VLOOKUP($A395,Economática!$A$3:$AI$823,25,FALSE)=\"-\"),1/0,VLOOKUP($A395,Economática!$A$3:$AI$823,25,FALSE)))","v":""},{"$f":"IF($A395=\"\",\"\",IF(ISERROR((F395+VLOOKUP($A395,Economática!$A$3:$AI$823,26,FALSE))/Y395),(F395+VLOOKUP($A395,Economática!$A$3:$AI$823,26,FALSE))/Y395,(F395+VLOOKUP($A395,Economática!$A$3:$AI$823,26,FALSE))/Y395))","v":""},{"$f":"IF($A395=\"\",\"\",IF(OR(-VLOOKUP($A395,Economática!$A$3:$AI$823,27,FALSE)=0,-VLOOKUP($A395,Economática!$A$3:$AI$823,27,FALSE)=\"-\"),1/0,-VLOOKUP($A395,Economática!$A$3:$AI$823,27,FALSE)))","v":""},"",{"$f":"IF($A395=\"\",\"\",IF(OR(VLOOKUP($A395,Economática!$A$3:$AI$823,28,FALSE)=0,VLOOKUP($A395,Economática!$A$3:$AI$823,28,FALSE)=\"-\"),1/0,VLOOKUP($A395,Economática!$A$3:$AI$823,28,FALSE)))","v":""},{"$f":"IF($A395=\"\",\"\",IF(OR(VLOOKUP($A395,Economática!$A$3:$AI$823,29,FALSE)=0,VLOOKUP($A395,Economática!$A$3:$AI$823,29,FALSE)=\"-\"),1/0,VLOOKUP($A395,Economática!$A$3:$AI$823,29,FALSE)))","v":""},{"$f":"IF($A395=\"\",\"\",IF(OR(VLOOKUP($A395,Economática!$A$3:$AI$823,30,FALSE)/E395=0,VLOOKUP($A395,Economática!$A$3:$AI$823,30,FALSE)/E395=\"-\",VLOOKUP($A395,Economática!$A$3:$AI$823,30,FALSE)/E395<33.33%,VLOOKUP($A395,Economática!$A$3:$AI$823,30,FALSE)/E395>100%),1/0,VLOOKUP($A395,Economática!$A$3:$AI$823,30,FALSE)/E395))","v":""},"",{"$f":"IF($A395=\"\",\"\",IF(OR(VLOOKUP($A395,Economática!$A$3:$AI$823,25,FALSE)=0,VLOOKUP($A395,Economática!$A$3:$AI$823,25,FALSE)=\"-\"),1/0,VLOOKUP($A395,Economática!$A$3:$AI$823,25,FALSE)))","v":""},{"$f":"CONCATENATE(Economática!B373,\" \",Economática!C373)","v":" "}]
[{"$f":"IF(Economática!AG374=\"\",\"\",Economática!AG374)","v":""},{"$f":"IF($A396=\"\",\"\",VLOOKUP(VLOOKUP($A396,Economática!$A$3:$AI$823,6,FALSE),Correção!$B$16:$C$36,2,FALSE))","v":""},{"$f":"IF(Economática!B374=\"\",\"\",Economática!B374)","v":""},{"$f":"IF($A396=\"\",\"\",IF(OR(VLOOKUP($A396,Economática!$A$3:$AI$823,8,FALSE)=0,VLOOKUP($A396,Economática!$A$3:$AI$823,8,FALSE)=\"-\"),1/0,VLOOKUP($A396,Economática!$A$3:$AI$823,8,FALSE)))","v":""},{"$f":"IF(A396=\"\",\"\",IF(ISERROR(VLOOKUP(A396,Correção!$B$2:$G$13,9,FALSE)),VLOOKUP($A396,Economática!$A$3:$AI$823,9,FALSE),VLOOKUP(A396,Correção!$B$2:$G$13,9,FALSE)))","v":""},{"$f":"IF($A396=\"\",\"\",Economática!G374)","v":""},{"$f":"IF($A396=\"\",\"\",IF(OR(VLOOKUP($A396,Economática!$A$3:$AI$823,10,FALSE)=0,VLOOKUP($A396,Economática!$A$3:$AI$823,10,FALSE)=\"-\"),1/0,VLOOKUP($A396,Economática!$A$3:$AI$823,10,FALSE)))","v":""},{"$f":"IF($A396=\"\",\"\",IF(OR(VLOOKUP($A396,Economática!$A$3:$AI$823,11,FALSE)=0,VLOOKUP($A396,Economática!$A$3:$AI$823,11,FALSE)=\"-\"),1/0,VLOOKUP($A396,Economática!$A$3:$AI$823,11,FALSE)))","v":""},{"$f":"IF($A396=\"\",\"\",IF(OR(VLOOKUP($A396,Economática!$A$3:$AI$823,12,FALSE)=0,VLOOKUP($A396,Economática!$A$3:$AI$823,12,FALSE)=\"-\"),1/0,VLOOKUP($A396,Economática!$A$3:$AI$823,12,FALSE)))","v":""},{"$f":"IF($A396=\"\",\"\",IF(OR(VLOOKUP($A396,Economática!$A$3:$AI$823,13,FALSE)=0,VLOOKUP($A396,Economática!$A$3:$AI$823,13,FALSE)=\"-\"),1/0,VLOOKUP($A396,Economática!$A$3:$AI$823,13,FALSE)))","v":""},{"$f":"IF($A396=\"\",\"\",IF(OR(VLOOKUP($A396,Economática!$A$3:$AI$823,14,FALSE)=0,VLOOKUP($A396,Economática!$A$3:$AI$823,14,FALSE)=\"-\"),1/0,VLOOKUP($A396,Economática!$A$3:$AI$823,14,FALSE)))","v":""},{"$f":"IF($A396=\"\",\"\",IF(OR(VLOOKUP($A396,Economática!$A$3:$AI$823,15,FALSE)=0,VLOOKUP($A396,Economática!$A$3:$AI$823,15,FALSE)=\"-\"),1/0,VLOOKUP($A396,Economática!$A$3:$AI$823,15,FALSE)))","v":""},{"$f":"IF($A396=\"\",\"\",IF(OR(VLOOKUP($A396,Economática!$A$3:$AI$823,16,FALSE)=0,VLOOKUP($A396,Economática!$A$3:$AI$823,16,FALSE)=\"-\"),1/0,VLOOKUP($A396,Economática!$A$3:$AI$823,16,FALSE)))","v":""},{"$f":"IF($A396=\"\",\"\",IF(OR(VLOOKUP($A396,Economática!$A$3:$AI$823,17,FALSE)=0,VLOOKUP($A396,Economática!$A$3:$AI$823,17,FALSE)=\"-\"),1/0,VLOOKUP($A396,Economática!$A$3:$AI$823,17,FALSE)))","v":""},{"$f":"IF($A396=\"\",\"\",IF(OR(VLOOKUP($A396,Economática!$A$3:$AI$823,18,FALSE)=0,VLOOKUP($A396,Economática!$A$3:$AI$823,18,FALSE)=\"-\"),1/0,VLOOKUP($A396,Economática!$A$3:$AI$823,18,FALSE)))","v":""},{"$f":"IF($A396=\"\",\"\",IF(OR(VLOOKUP($A396,Economática!$A$3:$AI$823,19,FALSE)=0,VLOOKUP($A396,Economática!$A$3:$AI$823,19,FALSE)=\"-\"),1/0,VLOOKUP($A396,Economática!$A$3:$AI$823,19,FALSE)))","v":""},{"$f":"IF($A396=\"\",\"\",VLOOKUP($A396,Economática!$A$3:$AI$823,20,FALSE)/E396)","v":""},"","","",{"$f":"IF($A396=\"\",\"\",IF(OR(VLOOKUP($A396,Economática!$A$3:$AI$823,21,FALSE)/100=0,VLOOKUP($A396,Economática!$A$3:$AI$823,21,FALSE)/100=\"-\"),1/0,VLOOKUP($A396,Economática!$A$3:$AI$823,21,FALSE)/100))","v":""},{"$f":"IF($A396=\"\",\"\",IF(OR(VLOOKUP($A396,Economática!$A$3:$AI$823,22,FALSE)/100=0,VLOOKUP($A396,Economática!$A$3:$AI$823,22,FALSE)/100=\"-\"),1/0,VLOOKUP($A396,Economática!$A$3:$AI$823,22,FALSE)/100))","v":""},{"$f":"IF($A396=\"\",\"\",IF(OR(VLOOKUP($A396,Economática!$A$3:$AI$823,23,FALSE)=0,VLOOKUP($A396,Economática!$A$3:$AI$823,23,FALSE)=\"-\"),1/0,VLOOKUP($A396,Economática!$A$3:$AI$823,23,FALSE)))","v":""},{"$f":"IF($A396=\"\",\"\",IF(OR(VLOOKUP($A396,Economática!$A$3:$AI$823,24,FALSE)=0,VLOOKUP($A396,Economática!$A$3:$AI$823,24,FALSE)=\"-\"),1/0,VLOOKUP($A396,Economática!$A$3:$AI$823,24,FALSE)))","v":""},{"$f":"IF($A396=\"\",\"\",IF(OR(VLOOKUP($A396,Economática!$A$3:$AI$823,25,FALSE)=0,VLOOKUP($A396,Economática!$A$3:$AI$823,25,FALSE)=\"-\"),1/0,VLOOKUP($A396,Economática!$A$3:$AI$823,25,FALSE)))","v":""},{"$f":"IF($A396=\"\",\"\",IF(ISERROR((F396+VLOOKUP($A396,Economática!$A$3:$AI$823,26,FALSE))/Y396),(F396+VLOOKUP($A396,Economática!$A$3:$AI$823,26,FALSE))/Y396,(F396+VLOOKUP($A396,Economática!$A$3:$AI$823,26,FALSE))/Y396))","v":""},{"$f":"IF($A396=\"\",\"\",IF(OR(-VLOOKUP($A396,Economática!$A$3:$AI$823,27,FALSE)=0,-VLOOKUP($A396,Economática!$A$3:$AI$823,27,FALSE)=\"-\"),1/0,-VLOOKUP($A396,Economática!$A$3:$AI$823,27,FALSE)))","v":""},"",{"$f":"IF($A396=\"\",\"\",IF(OR(VLOOKUP($A396,Economática!$A$3:$AI$823,28,FALSE)=0,VLOOKUP($A396,Economática!$A$3:$AI$823,28,FALSE)=\"-\"),1/0,VLOOKUP($A396,Economática!$A$3:$AI$823,28,FALSE)))","v":""},{"$f":"IF($A396=\"\",\"\",IF(OR(VLOOKUP($A396,Economática!$A$3:$AI$823,29,FALSE)=0,VLOOKUP($A396,Economática!$A$3:$AI$823,29,FALSE)=\"-\"),1/0,VLOOKUP($A396,Economática!$A$3:$AI$823,29,FALSE)))","v":""},{"$f":"IF($A396=\"\",\"\",IF(OR(VLOOKUP($A396,Economática!$A$3:$AI$823,30,FALSE)/E396=0,VLOOKUP($A396,Economática!$A$3:$AI$823,30,FALSE)/E396=\"-\",VLOOKUP($A396,Economática!$A$3:$AI$823,30,FALSE)/E396<33.33%,VLOOKUP($A396,Economática!$A$3:$AI$823,30,FALSE)/E396>100%),1/0,VLOOKUP($A396,Economática!$A$3:$AI$823,30,FALSE)/E396))","v":""},"",{"$f":"IF($A396=\"\",\"\",IF(OR(VLOOKUP($A396,Economática!$A$3:$AI$823,25,FALSE)=0,VLOOKUP($A396,Economática!$A$3:$AI$823,25,FALSE)=\"-\"),1/0,VLOOKUP($A396,Economática!$A$3:$AI$823,25,FALSE)))","v":""},{"$f":"CONCATENATE(Economática!B374,\" \",Economática!C374)","v":" "}]
[{"$f":"IF(Economática!AG375=\"\",\"\",Economática!AG375)","v":""},{"$f":"IF($A397=\"\",\"\",VLOOKUP(VLOOKUP($A397,Economática!$A$3:$AI$823,6,FALSE),Correção!$B$16:$C$36,2,FALSE))","v":""},{"$f":"IF(Economática!B375=\"\",\"\",Economática!B375)","v":""},{"$f":"IF($A397=\"\",\"\",IF(OR(VLOOKUP($A397,Economática!$A$3:$AI$823,8,FALSE)=0,VLOOKUP($A397,Economática!$A$3:$AI$823,8,FALSE)=\"-\"),1/0,VLOOKUP($A397,Economática!$A$3:$AI$823,8,FALSE)))","v":""},{"$f":"IF(A397=\"\",\"\",IF(ISERROR(VLOOKUP(A397,Correção!$B$2:$G$13,9,FALSE)),VLOOKUP($A397,Economática!$A$3:$AI$823,9,FALSE),VLOOKUP(A397,Correção!$B$2:$G$13,9,FALSE)))","v":""},{"$f":"IF($A397=\"\",\"\",Economática!G375)","v":""},{"$f":"IF($A397=\"\",\"\",IF(OR(VLOOKUP($A397,Economática!$A$3:$AI$823,10,FALSE)=0,VLOOKUP($A397,Economática!$A$3:$AI$823,10,FALSE)=\"-\"),1/0,VLOOKUP($A397,Economática!$A$3:$AI$823,10,FALSE)))","v":""},{"$f":"IF($A397=\"\",\"\",IF(OR(VLOOKUP($A397,Economática!$A$3:$AI$823,11,FALSE)=0,VLOOKUP($A397,Economática!$A$3:$AI$823,11,FALSE)=\"-\"),1/0,VLOOKUP($A397,Economática!$A$3:$AI$823,11,FALSE)))","v":""},{"$f":"IF($A397=\"\",\"\",IF(OR(VLOOKUP($A397,Economática!$A$3:$AI$823,12,FALSE)=0,VLOOKUP($A397,Economática!$A$3:$AI$823,12,FALSE)=\"-\"),1/0,VLOOKUP($A397,Economática!$A$3:$AI$823,12,FALSE)))","v":""},{"$f":"IF($A397=\"\",\"\",IF(OR(VLOOKUP($A397,Economática!$A$3:$AI$823,13,FALSE)=0,VLOOKUP($A397,Economática!$A$3:$AI$823,13,FALSE)=\"-\"),1/0,VLOOKUP($A397,Economática!$A$3:$AI$823,13,FALSE)))","v":""},{"$f":"IF($A397=\"\",\"\",IF(OR(VLOOKUP($A397,Economática!$A$3:$AI$823,14,FALSE)=0,VLOOKUP($A397,Economática!$A$3:$AI$823,14,FALSE)=\"-\"),1/0,VLOOKUP($A397,Economática!$A$3:$AI$823,14,FALSE)))","v":""},{"$f":"IF($A397=\"\",\"\",IF(OR(VLOOKUP($A397,Economática!$A$3:$AI$823,15,FALSE)=0,VLOOKUP($A397,Economática!$A$3:$AI$823,15,FALSE)=\"-\"),1/0,VLOOKUP($A397,Economática!$A$3:$AI$823,15,FALSE)))","v":""},{"$f":"IF($A397=\"\",\"\",IF(OR(VLOOKUP($A397,Economática!$A$3:$AI$823,16,FALSE)=0,VLOOKUP($A397,Economática!$A$3:$AI$823,16,FALSE)=\"-\"),1/0,VLOOKUP($A397,Economática!$A$3:$AI$823,16,FALSE)))","v":""},{"$f":"IF($A397=\"\",\"\",IF(OR(VLOOKUP($A397,Economática!$A$3:$AI$823,17,FALSE)=0,VLOOKUP($A397,Economática!$A$3:$AI$823,17,FALSE)=\"-\"),1/0,VLOOKUP($A397,Economática!$A$3:$AI$823,17,FALSE)))","v":""},{"$f":"IF($A397=\"\",\"\",IF(OR(VLOOKUP($A397,Economática!$A$3:$AI$823,18,FALSE)=0,VLOOKUP($A397,Economática!$A$3:$AI$823,18,FALSE)=\"-\"),1/0,VLOOKUP($A397,Economática!$A$3:$AI$823,18,FALSE)))","v":""},{"$f":"IF($A397=\"\",\"\",IF(OR(VLOOKUP($A397,Economática!$A$3:$AI$823,19,FALSE)=0,VLOOKUP($A397,Economática!$A$3:$AI$823,19,FALSE)=\"-\"),1/0,VLOOKUP($A397,Economática!$A$3:$AI$823,19,FALSE)))","v":""},{"$f":"IF($A397=\"\",\"\",VLOOKUP($A397,Economática!$A$3:$AI$823,20,FALSE)/E397)","v":""},"","","",{"$f":"IF($A397=\"\",\"\",IF(OR(VLOOKUP($A397,Economática!$A$3:$AI$823,21,FALSE)/100=0,VLOOKUP($A397,Economática!$A$3:$AI$823,21,FALSE)/100=\"-\"),1/0,VLOOKUP($A397,Economática!$A$3:$AI$823,21,FALSE)/100))","v":""},{"$f":"IF($A397=\"\",\"\",IF(OR(VLOOKUP($A397,Economática!$A$3:$AI$823,22,FALSE)/100=0,VLOOKUP($A397,Economática!$A$3:$AI$823,22,FALSE)/100=\"-\"),1/0,VLOOKUP($A397,Economática!$A$3:$AI$823,22,FALSE)/100))","v":""},{"$f":"IF($A397=\"\",\"\",IF(OR(VLOOKUP($A397,Economática!$A$3:$AI$823,23,FALSE)=0,VLOOKUP($A397,Economática!$A$3:$AI$823,23,FALSE)=\"-\"),1/0,VLOOKUP($A397,Economática!$A$3:$AI$823,23,FALSE)))","v":""},{"$f":"IF($A397=\"\",\"\",IF(OR(VLOOKUP($A397,Economática!$A$3:$AI$823,24,FALSE)=0,VLOOKUP($A397,Economática!$A$3:$AI$823,24,FALSE)=\"-\"),1/0,VLOOKUP($A397,Economática!$A$3:$AI$823,24,FALSE)))","v":""},{"$f":"IF($A397=\"\",\"\",IF(OR(VLOOKUP($A397,Economática!$A$3:$AI$823,25,FALSE)=0,VLOOKUP($A397,Economática!$A$3:$AI$823,25,FALSE)=\"-\"),1/0,VLOOKUP($A397,Economática!$A$3:$AI$823,25,FALSE)))","v":""},{"$f":"IF($A397=\"\",\"\",IF(ISERROR((F397+VLOOKUP($A397,Economática!$A$3:$AI$823,26,FALSE))/Y397),(F397+VLOOKUP($A397,Economática!$A$3:$AI$823,26,FALSE))/Y397,(F397+VLOOKUP($A397,Economática!$A$3:$AI$823,26,FALSE))/Y397))","v":""},{"$f":"IF($A397=\"\",\"\",IF(OR(-VLOOKUP($A397,Economática!$A$3:$AI$823,27,FALSE)=0,-VLOOKUP($A397,Economática!$A$3:$AI$823,27,FALSE)=\"-\"),1/0,-VLOOKUP($A397,Economática!$A$3:$AI$823,27,FALSE)))","v":""},"",{"$f":"IF($A397=\"\",\"\",IF(OR(VLOOKUP($A397,Economática!$A$3:$AI$823,28,FALSE)=0,VLOOKUP($A397,Economática!$A$3:$AI$823,28,FALSE)=\"-\"),1/0,VLOOKUP($A397,Economática!$A$3:$AI$823,28,FALSE)))","v":""},{"$f":"IF($A397=\"\",\"\",IF(OR(VLOOKUP($A397,Economática!$A$3:$AI$823,29,FALSE)=0,VLOOKUP($A397,Economática!$A$3:$AI$823,29,FALSE)=\"-\"),1/0,VLOOKUP($A397,Economática!$A$3:$AI$823,29,FALSE)))","v":""},{"$f":"IF($A397=\"\",\"\",IF(OR(VLOOKUP($A397,Economática!$A$3:$AI$823,30,FALSE)/E397=0,VLOOKUP($A397,Economática!$A$3:$AI$823,30,FALSE)/E397=\"-\",VLOOKUP($A397,Economática!$A$3:$AI$823,30,FALSE)/E397<33.33%,VLOOKUP($A397,Economática!$A$3:$AI$823,30,FALSE)/E397>100%),1/0,VLOOKUP($A397,Economática!$A$3:$AI$823,30,FALSE)/E397))","v":""},"",{"$f":"IF($A397=\"\",\"\",IF(OR(VLOOKUP($A397,Economática!$A$3:$AI$823,25,FALSE)=0,VLOOKUP($A397,Economática!$A$3:$AI$823,25,FALSE)=\"-\"),1/0,VLOOKUP($A397,Economática!$A$3:$AI$823,25,FALSE)))","v":""},{"$f":"CONCATENATE(Economática!B375,\" \",Economática!C375)","v":" "}]
[{"$f":"IF(Economática!AG376=\"\",\"\",Economática!AG376)","v":""},{"$f":"IF($A398=\"\",\"\",VLOOKUP(VLOOKUP($A398,Economática!$A$3:$AI$823,6,FALSE),Correção!$B$16:$C$36,2,FALSE))","v":""},{"$f":"IF(Economática!B376=\"\",\"\",Economática!B376)","v":""},{"$f":"IF($A398=\"\",\"\",IF(OR(VLOOKUP($A398,Economática!$A$3:$AI$823,8,FALSE)=0,VLOOKUP($A398,Economática!$A$3:$AI$823,8,FALSE)=\"-\"),1/0,VLOOKUP($A398,Economática!$A$3:$AI$823,8,FALSE)))","v":""},{"$f":"IF(A398=\"\",\"\",IF(ISERROR(VLOOKUP(A398,Correção!$B$2:$G$13,9,FALSE)),VLOOKUP($A398,Economática!$A$3:$AI$823,9,FALSE),VLOOKUP(A398,Correção!$B$2:$G$13,9,FALSE)))","v":""},{"$f":"IF($A398=\"\",\"\",Economática!G376)","v":""},{"$f":"IF($A398=\"\",\"\",IF(OR(VLOOKUP($A398,Economática!$A$3:$AI$823,10,FALSE)=0,VLOOKUP($A398,Economática!$A$3:$AI$823,10,FALSE)=\"-\"),1/0,VLOOKUP($A398,Economática!$A$3:$AI$823,10,FALSE)))","v":""},{"$f":"IF($A398=\"\",\"\",IF(OR(VLOOKUP($A398,Economática!$A$3:$AI$823,11,FALSE)=0,VLOOKUP($A398,Economática!$A$3:$AI$823,11,FALSE)=\"-\"),1/0,VLOOKUP($A398,Economática!$A$3:$AI$823,11,FALSE)))","v":""},{"$f":"IF($A398=\"\",\"\",IF(OR(VLOOKUP($A398,Economática!$A$3:$AI$823,12,FALSE)=0,VLOOKUP($A398,Economática!$A$3:$AI$823,12,FALSE)=\"-\"),1/0,VLOOKUP($A398,Economática!$A$3:$AI$823,12,FALSE)))","v":""},{"$f":"IF($A398=\"\",\"\",IF(OR(VLOOKUP($A398,Economática!$A$3:$AI$823,13,FALSE)=0,VLOOKUP($A398,Economática!$A$3:$AI$823,13,FALSE)=\"-\"),1/0,VLOOKUP($A398,Economática!$A$3:$AI$823,13,FALSE)))","v":""},{"$f":"IF($A398=\"\",\"\",IF(OR(VLOOKUP($A398,Economática!$A$3:$AI$823,14,FALSE)=0,VLOOKUP($A398,Economática!$A$3:$AI$823,14,FALSE)=\"-\"),1/0,VLOOKUP($A398,Economática!$A$3:$AI$823,14,FALSE)))","v":""},{"$f":"IF($A398=\"\",\"\",IF(OR(VLOOKUP($A398,Economática!$A$3:$AI$823,15,FALSE)=0,VLOOKUP($A398,Economática!$A$3:$AI$823,15,FALSE)=\"-\"),1/0,VLOOKUP($A398,Economática!$A$3:$AI$823,15,FALSE)))","v":""},{"$f":"IF($A398=\"\",\"\",IF(OR(VLOOKUP($A398,Economática!$A$3:$AI$823,16,FALSE)=0,VLOOKUP($A398,Economática!$A$3:$AI$823,16,FALSE)=\"-\"),1/0,VLOOKUP($A398,Economática!$A$3:$AI$823,16,FALSE)))","v":""},{"$f":"IF($A398=\"\",\"\",IF(OR(VLOOKUP($A398,Economática!$A$3:$AI$823,17,FALSE)=0,VLOOKUP($A398,Economática!$A$3:$AI$823,17,FALSE)=\"-\"),1/0,VLOOKUP($A398,Economática!$A$3:$AI$823,17,FALSE)))","v":""},{"$f":"IF($A398=\"\",\"\",IF(OR(VLOOKUP($A398,Economática!$A$3:$AI$823,18,FALSE)=0,VLOOKUP($A398,Economática!$A$3:$AI$823,18,FALSE)=\"-\"),1/0,VLOOKUP($A398,Economática!$A$3:$AI$823,18,FALSE)))","v":""},{"$f":"IF($A398=\"\",\"\",IF(OR(VLOOKUP($A398,Economática!$A$3:$AI$823,19,FALSE)=0,VLOOKUP($A398,Economática!$A$3:$AI$823,19,FALSE)=\"-\"),1/0,VLOOKUP($A398,Economática!$A$3:$AI$823,19,FALSE)))","v":""},{"$f":"IF($A398=\"\",\"\",VLOOKUP($A398,Economática!$A$3:$AI$823,20,FALSE)/E398)","v":""},"","","",{"$f":"IF($A398=\"\",\"\",IF(OR(VLOOKUP($A398,Economática!$A$3:$AI$823,21,FALSE)/100=0,VLOOKUP($A398,Economática!$A$3:$AI$823,21,FALSE)/100=\"-\"),1/0,VLOOKUP($A398,Economática!$A$3:$AI$823,21,FALSE)/100))","v":""},{"$f":"IF($A398=\"\",\"\",IF(OR(VLOOKUP($A398,Economática!$A$3:$AI$823,22,FALSE)/100=0,VLOOKUP($A398,Economática!$A$3:$AI$823,22,FALSE)/100=\"-\"),1/0,VLOOKUP($A398,Economática!$A$3:$AI$823,22,FALSE)/100))","v":""},{"$f":"IF($A398=\"\",\"\",IF(OR(VLOOKUP($A398,Economática!$A$3:$AI$823,23,FALSE)=0,VLOOKUP($A398,Economática!$A$3:$AI$823,23,FALSE)=\"-\"),1/0,VLOOKUP($A398,Economática!$A$3:$AI$823,23,FALSE)))","v":""},{"$f":"IF($A398=\"\",\"\",IF(OR(VLOOKUP($A398,Economática!$A$3:$AI$823,24,FALSE)=0,VLOOKUP($A398,Economática!$A$3:$AI$823,24,FALSE)=\"-\"),1/0,VLOOKUP($A398,Economática!$A$3:$AI$823,24,FALSE)))","v":""},{"$f":"IF($A398=\"\",\"\",IF(OR(VLOOKUP($A398,Economática!$A$3:$AI$823,25,FALSE)=0,VLOOKUP($A398,Economática!$A$3:$AI$823,25,FALSE)=\"-\"),1/0,VLOOKUP($A398,Economática!$A$3:$AI$823,25,FALSE)))","v":""},{"$f":"IF($A398=\"\",\"\",IF(ISERROR((F398+VLOOKUP($A398,Economática!$A$3:$AI$823,26,FALSE))/Y398),(F398+VLOOKUP($A398,Economática!$A$3:$AI$823,26,FALSE))/Y398,(F398+VLOOKUP($A398,Economática!$A$3:$AI$823,26,FALSE))/Y398))","v":""},{"$f":"IF($A398=\"\",\"\",IF(OR(-VLOOKUP($A398,Economática!$A$3:$AI$823,27,FALSE)=0,-VLOOKUP($A398,Economática!$A$3:$AI$823,27,FALSE)=\"-\"),1/0,-VLOOKUP($A398,Economática!$A$3:$AI$823,27,FALSE)))","v":""},"",{"$f":"IF($A398=\"\",\"\",IF(OR(VLOOKUP($A398,Economática!$A$3:$AI$823,28,FALSE)=0,VLOOKUP($A398,Economática!$A$3:$AI$823,28,FALSE)=\"-\"),1/0,VLOOKUP($A398,Economática!$A$3:$AI$823,28,FALSE)))","v":""},{"$f":"IF($A398=\"\",\"\",IF(OR(VLOOKUP($A398,Economática!$A$3:$AI$823,29,FALSE)=0,VLOOKUP($A398,Economática!$A$3:$AI$823,29,FALSE)=\"-\"),1/0,VLOOKUP($A398,Economática!$A$3:$AI$823,29,FALSE)))","v":""},{"$f":"IF($A398=\"\",\"\",IF(OR(VLOOKUP($A398,Economática!$A$3:$AI$823,30,FALSE)/E398=0,VLOOKUP($A398,Economática!$A$3:$AI$823,30,FALSE)/E398=\"-\",VLOOKUP($A398,Economática!$A$3:$AI$823,30,FALSE)/E398<33.33%,VLOOKUP($A398,Economática!$A$3:$AI$823,30,FALSE)/E398>100%),1/0,VLOOKUP($A398,Economática!$A$3:$AI$823,30,FALSE)/E398))","v":""},"",{"$f":"IF($A398=\"\",\"\",IF(OR(VLOOKUP($A398,Economática!$A$3:$AI$823,25,FALSE)=0,VLOOKUP($A398,Economática!$A$3:$AI$823,25,FALSE)=\"-\"),1/0,VLOOKUP($A398,Economática!$A$3:$AI$823,25,FALSE)))","v":""},{"$f":"CONCATENATE(Economática!B376,\" \",Economática!C376)","v":" "}]
[{"$f":"IF(Economática!AG377=\"\",\"\",Economática!AG377)","v":""},{"$f":"IF($A399=\"\",\"\",VLOOKUP(VLOOKUP($A399,Economática!$A$3:$AI$823,6,FALSE),Correção!$B$16:$C$36,2,FALSE))","v":""},{"$f":"IF(Economática!B377=\"\",\"\",Economática!B377)","v":""},{"$f":"IF($A399=\"\",\"\",IF(OR(VLOOKUP($A399,Economática!$A$3:$AI$823,8,FALSE)=0,VLOOKUP($A399,Economática!$A$3:$AI$823,8,FALSE)=\"-\"),1/0,VLOOKUP($A399,Economática!$A$3:$AI$823,8,FALSE)))","v":""},{"$f":"IF(A399=\"\",\"\",IF(ISERROR(VLOOKUP(A399,Correção!$B$2:$G$13,9,FALSE)),VLOOKUP($A399,Economática!$A$3:$AI$823,9,FALSE),VLOOKUP(A399,Correção!$B$2:$G$13,9,FALSE)))","v":""},{"$f":"IF($A399=\"\",\"\",Economática!G377)","v":""},{"$f":"IF($A399=\"\",\"\",IF(OR(VLOOKUP($A399,Economática!$A$3:$AI$823,10,FALSE)=0,VLOOKUP($A399,Economática!$A$3:$AI$823,10,FALSE)=\"-\"),1/0,VLOOKUP($A399,Economática!$A$3:$AI$823,10,FALSE)))","v":""},{"$f":"IF($A399=\"\",\"\",IF(OR(VLOOKUP($A399,Economática!$A$3:$AI$823,11,FALSE)=0,VLOOKUP($A399,Economática!$A$3:$AI$823,11,FALSE)=\"-\"),1/0,VLOOKUP($A399,Economática!$A$3:$AI$823,11,FALSE)))","v":""},{"$f":"IF($A399=\"\",\"\",IF(OR(VLOOKUP($A399,Economática!$A$3:$AI$823,12,FALSE)=0,VLOOKUP($A399,Economática!$A$3:$AI$823,12,FALSE)=\"-\"),1/0,VLOOKUP($A399,Economática!$A$3:$AI$823,12,FALSE)))","v":""},{"$f":"IF($A399=\"\",\"\",IF(OR(VLOOKUP($A399,Economática!$A$3:$AI$823,13,FALSE)=0,VLOOKUP($A399,Economática!$A$3:$AI$823,13,FALSE)=\"-\"),1/0,VLOOKUP($A399,Economática!$A$3:$AI$823,13,FALSE)))","v":""},{"$f":"IF($A399=\"\",\"\",IF(OR(VLOOKUP($A399,Economática!$A$3:$AI$823,14,FALSE)=0,VLOOKUP($A399,Economática!$A$3:$AI$823,14,FALSE)=\"-\"),1/0,VLOOKUP($A399,Economática!$A$3:$AI$823,14,FALSE)))","v":""},{"$f":"IF($A399=\"\",\"\",IF(OR(VLOOKUP($A399,Economática!$A$3:$AI$823,15,FALSE)=0,VLOOKUP($A399,Economática!$A$3:$AI$823,15,FALSE)=\"-\"),1/0,VLOOKUP($A399,Economática!$A$3:$AI$823,15,FALSE)))","v":""},{"$f":"IF($A399=\"\",\"\",IF(OR(VLOOKUP($A399,Economática!$A$3:$AI$823,16,FALSE)=0,VLOOKUP($A399,Economática!$A$3:$AI$823,16,FALSE)=\"-\"),1/0,VLOOKUP($A399,Economática!$A$3:$AI$823,16,FALSE)))","v":""},{"$f":"IF($A399=\"\",\"\",IF(OR(VLOOKUP($A399,Economática!$A$3:$AI$823,17,FALSE)=0,VLOOKUP($A399,Economática!$A$3:$AI$823,17,FALSE)=\"-\"),1/0,VLOOKUP($A399,Economática!$A$3:$AI$823,17,FALSE)))","v":""},{"$f":"IF($A399=\"\",\"\",IF(OR(VLOOKUP($A399,Economática!$A$3:$AI$823,18,FALSE)=0,VLOOKUP($A399,Economática!$A$3:$AI$823,18,FALSE)=\"-\"),1/0,VLOOKUP($A399,Economática!$A$3:$AI$823,18,FALSE)))","v":""},{"$f":"IF($A399=\"\",\"\",IF(OR(VLOOKUP($A399,Economática!$A$3:$AI$823,19,FALSE)=0,VLOOKUP($A399,Economática!$A$3:$AI$823,19,FALSE)=\"-\"),1/0,VLOOKUP($A399,Economática!$A$3:$AI$823,19,FALSE)))","v":""},{"$f":"IF($A399=\"\",\"\",VLOOKUP($A399,Economática!$A$3:$AI$823,20,FALSE)/E399)","v":""},"","","",{"$f":"IF($A399=\"\",\"\",IF(OR(VLOOKUP($A399,Economática!$A$3:$AI$823,21,FALSE)/100=0,VLOOKUP($A399,Economática!$A$3:$AI$823,21,FALSE)/100=\"-\"),1/0,VLOOKUP($A399,Economática!$A$3:$AI$823,21,FALSE)/100))","v":""},{"$f":"IF($A399=\"\",\"\",IF(OR(VLOOKUP($A399,Economática!$A$3:$AI$823,22,FALSE)/100=0,VLOOKUP($A399,Economática!$A$3:$AI$823,22,FALSE)/100=\"-\"),1/0,VLOOKUP($A399,Economática!$A$3:$AI$823,22,FALSE)/100))","v":""},{"$f":"IF($A399=\"\",\"\",IF(OR(VLOOKUP($A399,Economática!$A$3:$AI$823,23,FALSE)=0,VLOOKUP($A399,Economática!$A$3:$AI$823,23,FALSE)=\"-\"),1/0,VLOOKUP($A399,Economática!$A$3:$AI$823,23,FALSE)))","v":""},{"$f":"IF($A399=\"\",\"\",IF(OR(VLOOKUP($A399,Economática!$A$3:$AI$823,24,FALSE)=0,VLOOKUP($A399,Economática!$A$3:$AI$823,24,FALSE)=\"-\"),1/0,VLOOKUP($A399,Economática!$A$3:$AI$823,24,FALSE)))","v":""},{"$f":"IF($A399=\"\",\"\",IF(OR(VLOOKUP($A399,Economática!$A$3:$AI$823,25,FALSE)=0,VLOOKUP($A399,Economática!$A$3:$AI$823,25,FALSE)=\"-\"),1/0,VLOOKUP($A399,Economática!$A$3:$AI$823,25,FALSE)))","v":""},{"$f":"IF($A399=\"\",\"\",IF(ISERROR((F399+VLOOKUP($A399,Economática!$A$3:$AI$823,26,FALSE))/Y399),(F399+VLOOKUP($A399,Economática!$A$3:$AI$823,26,FALSE))/Y399,(F399+VLOOKUP($A399,Economática!$A$3:$AI$823,26,FALSE))/Y399))","v":""},{"$f":"IF($A399=\"\",\"\",IF(OR(-VLOOKUP($A399,Economática!$A$3:$AI$823,27,FALSE)=0,-VLOOKUP($A399,Economática!$A$3:$AI$823,27,FALSE)=\"-\"),1/0,-VLOOKUP($A399,Economática!$A$3:$AI$823,27,FALSE)))","v":""},"",{"$f":"IF($A399=\"\",\"\",IF(OR(VLOOKUP($A399,Economática!$A$3:$AI$823,28,FALSE)=0,VLOOKUP($A399,Economática!$A$3:$AI$823,28,FALSE)=\"-\"),1/0,VLOOKUP($A399,Economática!$A$3:$AI$823,28,FALSE)))","v":""},{"$f":"IF($A399=\"\",\"\",IF(OR(VLOOKUP($A399,Economática!$A$3:$AI$823,29,FALSE)=0,VLOOKUP($A399,Economática!$A$3:$AI$823,29,FALSE)=\"-\"),1/0,VLOOKUP($A399,Economática!$A$3:$AI$823,29,FALSE)))","v":""},{"$f":"IF($A399=\"\",\"\",IF(OR(VLOOKUP($A399,Economática!$A$3:$AI$823,30,FALSE)/E399=0,VLOOKUP($A399,Economática!$A$3:$AI$823,30,FALSE)/E399=\"-\",VLOOKUP($A399,Economática!$A$3:$AI$823,30,FALSE)/E399<33.33%,VLOOKUP($A399,Economática!$A$3:$AI$823,30,FALSE)/E399>100%),1/0,VLOOKUP($A399,Economática!$A$3:$AI$823,30,FALSE)/E399))","v":""},"",{"$f":"IF($A399=\"\",\"\",IF(OR(VLOOKUP($A399,Economática!$A$3:$AI$823,25,FALSE)=0,VLOOKUP($A399,Economática!$A$3:$AI$823,25,FALSE)=\"-\"),1/0,VLOOKUP($A399,Economática!$A$3:$AI$823,25,FALSE)))","v":""},{"$f":"CONCATENATE(Economática!B377,\" \",Economática!C377)","v":" "}]
[{"$f":"IF(Economática!AG378=\"\",\"\",Economática!AG378)","v":""},{"$f":"IF($A400=\"\",\"\",VLOOKUP(VLOOKUP($A400,Economática!$A$3:$AI$823,6,FALSE),Correção!$B$16:$C$36,2,FALSE))","v":""},{"$f":"IF(Economática!B378=\"\",\"\",Economática!B378)","v":""},{"$f":"IF($A400=\"\",\"\",IF(OR(VLOOKUP($A400,Economática!$A$3:$AI$823,8,FALSE)=0,VLOOKUP($A400,Economática!$A$3:$AI$823,8,FALSE)=\"-\"),1/0,VLOOKUP($A400,Economática!$A$3:$AI$823,8,FALSE)))","v":""},{"$f":"IF(A400=\"\",\"\",IF(ISERROR(VLOOKUP(A400,Correção!$B$2:$G$13,9,FALSE)),VLOOKUP($A400,Economática!$A$3:$AI$823,9,FALSE),VLOOKUP(A400,Correção!$B$2:$G$13,9,FALSE)))","v":""},{"$f":"IF($A400=\"\",\"\",Economática!G378)","v":""},{"$f":"IF($A400=\"\",\"\",IF(OR(VLOOKUP($A400,Economática!$A$3:$AI$823,10,FALSE)=0,VLOOKUP($A400,Economática!$A$3:$AI$823,10,FALSE)=\"-\"),1/0,VLOOKUP($A400,Economática!$A$3:$AI$823,10,FALSE)))","v":""},{"$f":"IF($A400=\"\",\"\",IF(OR(VLOOKUP($A400,Economática!$A$3:$AI$823,11,FALSE)=0,VLOOKUP($A400,Economática!$A$3:$AI$823,11,FALSE)=\"-\"),1/0,VLOOKUP($A400,Economática!$A$3:$AI$823,11,FALSE)))","v":""},{"$f":"IF($A400=\"\",\"\",IF(OR(VLOOKUP($A400,Economática!$A$3:$AI$823,12,FALSE)=0,VLOOKUP($A400,Economática!$A$3:$AI$823,12,FALSE)=\"-\"),1/0,VLOOKUP($A400,Economática!$A$3:$AI$823,12,FALSE)))","v":""},{"$f":"IF($A400=\"\",\"\",IF(OR(VLOOKUP($A400,Economática!$A$3:$AI$823,13,FALSE)=0,VLOOKUP($A400,Economática!$A$3:$AI$823,13,FALSE)=\"-\"),1/0,VLOOKUP($A400,Economática!$A$3:$AI$823,13,FALSE)))","v":""},{"$f":"IF($A400=\"\",\"\",IF(OR(VLOOKUP($A400,Economática!$A$3:$AI$823,14,FALSE)=0,VLOOKUP($A400,Economática!$A$3:$AI$823,14,FALSE)=\"-\"),1/0,VLOOKUP($A400,Economática!$A$3:$AI$823,14,FALSE)))","v":""},{"$f":"IF($A400=\"\",\"\",IF(OR(VLOOKUP($A400,Economática!$A$3:$AI$823,15,FALSE)=0,VLOOKUP($A400,Economática!$A$3:$AI$823,15,FALSE)=\"-\"),1/0,VLOOKUP($A400,Economática!$A$3:$AI$823,15,FALSE)))","v":""},{"$f":"IF($A400=\"\",\"\",IF(OR(VLOOKUP($A400,Economática!$A$3:$AI$823,16,FALSE)=0,VLOOKUP($A400,Economática!$A$3:$AI$823,16,FALSE)=\"-\"),1/0,VLOOKUP($A400,Economática!$A$3:$AI$823,16,FALSE)))","v":""},{"$f":"IF($A400=\"\",\"\",IF(OR(VLOOKUP($A400,Economática!$A$3:$AI$823,17,FALSE)=0,VLOOKUP($A400,Economática!$A$3:$AI$823,17,FALSE)=\"-\"),1/0,VLOOKUP($A400,Economática!$A$3:$AI$823,17,FALSE)))","v":""},{"$f":"IF($A400=\"\",\"\",IF(OR(VLOOKUP($A400,Economática!$A$3:$AI$823,18,FALSE)=0,VLOOKUP($A400,Economática!$A$3:$AI$823,18,FALSE)=\"-\"),1/0,VLOOKUP($A400,Economática!$A$3:$AI$823,18,FALSE)))","v":""},{"$f":"IF($A400=\"\",\"\",IF(OR(VLOOKUP($A400,Economática!$A$3:$AI$823,19,FALSE)=0,VLOOKUP($A400,Economática!$A$3:$AI$823,19,FALSE)=\"-\"),1/0,VLOOKUP($A400,Economática!$A$3:$AI$823,19,FALSE)))","v":""},{"$f":"IF($A400=\"\",\"\",VLOOKUP($A400,Economática!$A$3:$AI$823,20,FALSE)/E400)","v":""},"","","",{"$f":"IF($A400=\"\",\"\",IF(OR(VLOOKUP($A400,Economática!$A$3:$AI$823,21,FALSE)/100=0,VLOOKUP($A400,Economática!$A$3:$AI$823,21,FALSE)/100=\"-\"),1/0,VLOOKUP($A400,Economática!$A$3:$AI$823,21,FALSE)/100))","v":""},{"$f":"IF($A400=\"\",\"\",IF(OR(VLOOKUP($A400,Economática!$A$3:$AI$823,22,FALSE)/100=0,VLOOKUP($A400,Economática!$A$3:$AI$823,22,FALSE)/100=\"-\"),1/0,VLOOKUP($A400,Economática!$A$3:$AI$823,22,FALSE)/100))","v":""},{"$f":"IF($A400=\"\",\"\",IF(OR(VLOOKUP($A400,Economática!$A$3:$AI$823,23,FALSE)=0,VLOOKUP($A400,Economática!$A$3:$AI$823,23,FALSE)=\"-\"),1/0,VLOOKUP($A400,Economática!$A$3:$AI$823,23,FALSE)))","v":""},{"$f":"IF($A400=\"\",\"\",IF(OR(VLOOKUP($A400,Economática!$A$3:$AI$823,24,FALSE)=0,VLOOKUP($A400,Economática!$A$3:$AI$823,24,FALSE)=\"-\"),1/0,VLOOKUP($A400,Economática!$A$3:$AI$823,24,FALSE)))","v":""},{"$f":"IF($A400=\"\",\"\",IF(OR(VLOOKUP($A400,Economática!$A$3:$AI$823,25,FALSE)=0,VLOOKUP($A400,Economática!$A$3:$AI$823,25,FALSE)=\"-\"),1/0,VLOOKUP($A400,Economática!$A$3:$AI$823,25,FALSE)))","v":""},{"$f":"IF($A400=\"\",\"\",IF(ISERROR((F400+VLOOKUP($A400,Economática!$A$3:$AI$823,26,FALSE))/Y400),(F400+VLOOKUP($A400,Economática!$A$3:$AI$823,26,FALSE))/Y400,(F400+VLOOKUP($A400,Economática!$A$3:$AI$823,26,FALSE))/Y400))","v":""},{"$f":"IF($A400=\"\",\"\",IF(OR(-VLOOKUP($A400,Economática!$A$3:$AI$823,27,FALSE)=0,-VLOOKUP($A400,Economática!$A$3:$AI$823,27,FALSE)=\"-\"),1/0,-VLOOKUP($A400,Economática!$A$3:$AI$823,27,FALSE)))","v":""},"",{"$f":"IF($A400=\"\",\"\",IF(OR(VLOOKUP($A400,Economática!$A$3:$AI$823,28,FALSE)=0,VLOOKUP($A400,Economática!$A$3:$AI$823,28,FALSE)=\"-\"),1/0,VLOOKUP($A400,Economática!$A$3:$AI$823,28,FALSE)))","v":""},{"$f":"IF($A400=\"\",\"\",IF(OR(VLOOKUP($A400,Economática!$A$3:$AI$823,29,FALSE)=0,VLOOKUP($A400,Economática!$A$3:$AI$823,29,FALSE)=\"-\"),1/0,VLOOKUP($A400,Economática!$A$3:$AI$823,29,FALSE)))","v":""},{"$f":"IF($A400=\"\",\"\",IF(OR(VLOOKUP($A400,Economática!$A$3:$AI$823,30,FALSE)/E400=0,VLOOKUP($A400,Economática!$A$3:$AI$823,30,FALSE)/E400=\"-\",VLOOKUP($A400,Economática!$A$3:$AI$823,30,FALSE)/E400<33.33%,VLOOKUP($A400,Economática!$A$3:$AI$823,30,FALSE)/E400>100%),1/0,VLOOKUP($A400,Economática!$A$3:$AI$823,30,FALSE)/E400))","v":""},"",{"$f":"IF($A400=\"\",\"\",IF(OR(VLOOKUP($A400,Economática!$A$3:$AI$823,25,FALSE)=0,VLOOKUP($A400,Economática!$A$3:$AI$823,25,FALSE)=\"-\"),1/0,VLOOKUP($A400,Economática!$A$3:$AI$823,25,FALSE)))","v":""},{"$f":"CONCATENATE(Economática!B378,\" \",Economática!C378)","v":" "}]
[{"$f":"IF(Economática!AG379=\"\",\"\",Economática!AG379)","v":""},{"$f":"IF($A401=\"\",\"\",VLOOKUP(VLOOKUP($A401,Economática!$A$3:$AI$823,6,FALSE),Correção!$B$16:$C$36,2,FALSE))","v":""},{"$f":"IF(Economática!B379=\"\",\"\",Economática!B379)","v":""},{"$f":"IF($A401=\"\",\"\",IF(OR(VLOOKUP($A401,Economática!$A$3:$AI$823,8,FALSE)=0,VLOOKUP($A401,Economática!$A$3:$AI$823,8,FALSE)=\"-\"),1/0,VLOOKUP($A401,Economática!$A$3:$AI$823,8,FALSE)))","v":""},{"$f":"IF(A401=\"\",\"\",IF(ISERROR(VLOOKUP(A401,Correção!$B$2:$G$13,9,FALSE)),VLOOKUP($A401,Economática!$A$3:$AI$823,9,FALSE),VLOOKUP(A401,Correção!$B$2:$G$13,9,FALSE)))","v":""},{"$f":"IF($A401=\"\",\"\",Economática!G379)","v":""},{"$f":"IF($A401=\"\",\"\",IF(OR(VLOOKUP($A401,Economática!$A$3:$AI$823,10,FALSE)=0,VLOOKUP($A401,Economática!$A$3:$AI$823,10,FALSE)=\"-\"),1/0,VLOOKUP($A401,Economática!$A$3:$AI$823,10,FALSE)))","v":""},{"$f":"IF($A401=\"\",\"\",IF(OR(VLOOKUP($A401,Economática!$A$3:$AI$823,11,FALSE)=0,VLOOKUP($A401,Economática!$A$3:$AI$823,11,FALSE)=\"-\"),1/0,VLOOKUP($A401,Economática!$A$3:$AI$823,11,FALSE)))","v":""},{"$f":"IF($A401=\"\",\"\",IF(OR(VLOOKUP($A401,Economática!$A$3:$AI$823,12,FALSE)=0,VLOOKUP($A401,Economática!$A$3:$AI$823,12,FALSE)=\"-\"),1/0,VLOOKUP($A401,Economática!$A$3:$AI$823,12,FALSE)))","v":""},{"$f":"IF($A401=\"\",\"\",IF(OR(VLOOKUP($A401,Economática!$A$3:$AI$823,13,FALSE)=0,VLOOKUP($A401,Economática!$A$3:$AI$823,13,FALSE)=\"-\"),1/0,VLOOKUP($A401,Economática!$A$3:$AI$823,13,FALSE)))","v":""},{"$f":"IF($A401=\"\",\"\",IF(OR(VLOOKUP($A401,Economática!$A$3:$AI$823,14,FALSE)=0,VLOOKUP($A401,Economática!$A$3:$AI$823,14,FALSE)=\"-\"),1/0,VLOOKUP($A401,Economática!$A$3:$AI$823,14,FALSE)))","v":""},{"$f":"IF($A401=\"\",\"\",IF(OR(VLOOKUP($A401,Economática!$A$3:$AI$823,15,FALSE)=0,VLOOKUP($A401,Economática!$A$3:$AI$823,15,FALSE)=\"-\"),1/0,VLOOKUP($A401,Economática!$A$3:$AI$823,15,FALSE)))","v":""},{"$f":"IF($A401=\"\",\"\",IF(OR(VLOOKUP($A401,Economática!$A$3:$AI$823,16,FALSE)=0,VLOOKUP($A401,Economática!$A$3:$AI$823,16,FALSE)=\"-\"),1/0,VLOOKUP($A401,Economática!$A$3:$AI$823,16,FALSE)))","v":""},{"$f":"IF($A401=\"\",\"\",IF(OR(VLOOKUP($A401,Economática!$A$3:$AI$823,17,FALSE)=0,VLOOKUP($A401,Economática!$A$3:$AI$823,17,FALSE)=\"-\"),1/0,VLOOKUP($A401,Economática!$A$3:$AI$823,17,FALSE)))","v":""},{"$f":"IF($A401=\"\",\"\",IF(OR(VLOOKUP($A401,Economática!$A$3:$AI$823,18,FALSE)=0,VLOOKUP($A401,Economática!$A$3:$AI$823,18,FALSE)=\"-\"),1/0,VLOOKUP($A401,Economática!$A$3:$AI$823,18,FALSE)))","v":""},{"$f":"IF($A401=\"\",\"\",IF(OR(VLOOKUP($A401,Economática!$A$3:$AI$823,19,FALSE)=0,VLOOKUP($A401,Economática!$A$3:$AI$823,19,FALSE)=\"-\"),1/0,VLOOKUP($A401,Economática!$A$3:$AI$823,19,FALSE)))","v":""},{"$f":"IF($A401=\"\",\"\",VLOOKUP($A401,Economática!$A$3:$AI$823,20,FALSE)/E401)","v":""},"","","",{"$f":"IF($A401=\"\",\"\",IF(OR(VLOOKUP($A401,Economática!$A$3:$AI$823,21,FALSE)/100=0,VLOOKUP($A401,Economática!$A$3:$AI$823,21,FALSE)/100=\"-\"),1/0,VLOOKUP($A401,Economática!$A$3:$AI$823,21,FALSE)/100))","v":""},{"$f":"IF($A401=\"\",\"\",IF(OR(VLOOKUP($A401,Economática!$A$3:$AI$823,22,FALSE)/100=0,VLOOKUP($A401,Economática!$A$3:$AI$823,22,FALSE)/100=\"-\"),1/0,VLOOKUP($A401,Economática!$A$3:$AI$823,22,FALSE)/100))","v":""},{"$f":"IF($A401=\"\",\"\",IF(OR(VLOOKUP($A401,Economática!$A$3:$AI$823,23,FALSE)=0,VLOOKUP($A401,Economática!$A$3:$AI$823,23,FALSE)=\"-\"),1/0,VLOOKUP($A401,Economática!$A$3:$AI$823,23,FALSE)))","v":""},{"$f":"IF($A401=\"\",\"\",IF(OR(VLOOKUP($A401,Economática!$A$3:$AI$823,24,FALSE)=0,VLOOKUP($A401,Economática!$A$3:$AI$823,24,FALSE)=\"-\"),1/0,VLOOKUP($A401,Economática!$A$3:$AI$823,24,FALSE)))","v":""},{"$f":"IF($A401=\"\",\"\",IF(OR(VLOOKUP($A401,Economática!$A$3:$AI$823,25,FALSE)=0,VLOOKUP($A401,Economática!$A$3:$AI$823,25,FALSE)=\"-\"),1/0,VLOOKUP($A401,Economática!$A$3:$AI$823,25,FALSE)))","v":""},{"$f":"IF($A401=\"\",\"\",IF(ISERROR((F401+VLOOKUP($A401,Economática!$A$3:$AI$823,26,FALSE))/Y401),(F401+VLOOKUP($A401,Economática!$A$3:$AI$823,26,FALSE))/Y401,(F401+VLOOKUP($A401,Economática!$A$3:$AI$823,26,FALSE))/Y401))","v":""},{"$f":"IF($A401=\"\",\"\",IF(OR(-VLOOKUP($A401,Economática!$A$3:$AI$823,27,FALSE)=0,-VLOOKUP($A401,Economática!$A$3:$AI$823,27,FALSE)=\"-\"),1/0,-VLOOKUP($A401,Economática!$A$3:$AI$823,27,FALSE)))","v":""},"",{"$f":"IF($A401=\"\",\"\",IF(OR(VLOOKUP($A401,Economática!$A$3:$AI$823,28,FALSE)=0,VLOOKUP($A401,Economática!$A$3:$AI$823,28,FALSE)=\"-\"),1/0,VLOOKUP($A401,Economática!$A$3:$AI$823,28,FALSE)))","v":""},{"$f":"IF($A401=\"\",\"\",IF(OR(VLOOKUP($A401,Economática!$A$3:$AI$823,29,FALSE)=0,VLOOKUP($A401,Economática!$A$3:$AI$823,29,FALSE)=\"-\"),1/0,VLOOKUP($A401,Economática!$A$3:$AI$823,29,FALSE)))","v":""},{"$f":"IF($A401=\"\",\"\",IF(OR(VLOOKUP($A401,Economática!$A$3:$AI$823,30,FALSE)/E401=0,VLOOKUP($A401,Economática!$A$3:$AI$823,30,FALSE)/E401=\"-\",VLOOKUP($A401,Economática!$A$3:$AI$823,30,FALSE)/E401<33.33%,VLOOKUP($A401,Economática!$A$3:$AI$823,30,FALSE)/E401>100%),1/0,VLOOKUP($A401,Economática!$A$3:$AI$823,30,FALSE)/E401))","v":""},"",{"$f":"IF($A401=\"\",\"\",IF(OR(VLOOKUP($A401,Economática!$A$3:$AI$823,25,FALSE)=0,VLOOKUP($A401,Economática!$A$3:$AI$823,25,FALSE)=\"-\"),1/0,VLOOKUP($A401,Economática!$A$3:$AI$823,25,FALSE)))","v":""},{"$f":"CONCATENATE(Economática!B379,\" \",Economática!C379)","v":" "}]
[{"$f":"IF(Economática!AG380=\"\",\"\",Economática!AG380)","v":""},{"$f":"IF($A402=\"\",\"\",VLOOKUP(VLOOKUP($A402,Economática!$A$3:$AI$823,6,FALSE),Correção!$B$16:$C$36,2,FALSE))","v":""},{"$f":"IF(Economática!B380=\"\",\"\",Economática!B380)","v":""},{"$f":"IF($A402=\"\",\"\",IF(OR(VLOOKUP($A402,Economática!$A$3:$AI$823,8,FALSE)=0,VLOOKUP($A402,Economática!$A$3:$AI$823,8,FALSE)=\"-\"),1/0,VLOOKUP($A402,Economática!$A$3:$AI$823,8,FALSE)))","v":""},{"$f":"IF(A402=\"\",\"\",IF(ISERROR(VLOOKUP(A402,Correção!$B$2:$G$13,9,FALSE)),VLOOKUP($A402,Economática!$A$3:$AI$823,9,FALSE),VLOOKUP(A402,Correção!$B$2:$G$13,9,FALSE)))","v":""},{"$f":"IF($A402=\"\",\"\",Economática!G380)","v":""},{"$f":"IF($A402=\"\",\"\",IF(OR(VLOOKUP($A402,Economática!$A$3:$AI$823,10,FALSE)=0,VLOOKUP($A402,Economática!$A$3:$AI$823,10,FALSE)=\"-\"),1/0,VLOOKUP($A402,Economática!$A$3:$AI$823,10,FALSE)))","v":""},{"$f":"IF($A402=\"\",\"\",IF(OR(VLOOKUP($A402,Economática!$A$3:$AI$823,11,FALSE)=0,VLOOKUP($A402,Economática!$A$3:$AI$823,11,FALSE)=\"-\"),1/0,VLOOKUP($A402,Economática!$A$3:$AI$823,11,FALSE)))","v":""},{"$f":"IF($A402=\"\",\"\",IF(OR(VLOOKUP($A402,Economática!$A$3:$AI$823,12,FALSE)=0,VLOOKUP($A402,Economática!$A$3:$AI$823,12,FALSE)=\"-\"),1/0,VLOOKUP($A402,Economática!$A$3:$AI$823,12,FALSE)))","v":""},{"$f":"IF($A402=\"\",\"\",IF(OR(VLOOKUP($A402,Economática!$A$3:$AI$823,13,FALSE)=0,VLOOKUP($A402,Economática!$A$3:$AI$823,13,FALSE)=\"-\"),1/0,VLOOKUP($A402,Economática!$A$3:$AI$823,13,FALSE)))","v":""},{"$f":"IF($A402=\"\",\"\",IF(OR(VLOOKUP($A402,Economática!$A$3:$AI$823,14,FALSE)=0,VLOOKUP($A402,Economática!$A$3:$AI$823,14,FALSE)=\"-\"),1/0,VLOOKUP($A402,Economática!$A$3:$AI$823,14,FALSE)))","v":""},{"$f":"IF($A402=\"\",\"\",IF(OR(VLOOKUP($A402,Economática!$A$3:$AI$823,15,FALSE)=0,VLOOKUP($A402,Economática!$A$3:$AI$823,15,FALSE)=\"-\"),1/0,VLOOKUP($A402,Economática!$A$3:$AI$823,15,FALSE)))","v":""},{"$f":"IF($A402=\"\",\"\",IF(OR(VLOOKUP($A402,Economática!$A$3:$AI$823,16,FALSE)=0,VLOOKUP($A402,Economática!$A$3:$AI$823,16,FALSE)=\"-\"),1/0,VLOOKUP($A402,Economática!$A$3:$AI$823,16,FALSE)))","v":""},{"$f":"IF($A402=\"\",\"\",IF(OR(VLOOKUP($A402,Economática!$A$3:$AI$823,17,FALSE)=0,VLOOKUP($A402,Economática!$A$3:$AI$823,17,FALSE)=\"-\"),1/0,VLOOKUP($A402,Economática!$A$3:$AI$823,17,FALSE)))","v":""},{"$f":"IF($A402=\"\",\"\",IF(OR(VLOOKUP($A402,Economática!$A$3:$AI$823,18,FALSE)=0,VLOOKUP($A402,Economática!$A$3:$AI$823,18,FALSE)=\"-\"),1/0,VLOOKUP($A402,Economática!$A$3:$AI$823,18,FALSE)))","v":""},{"$f":"IF($A402=\"\",\"\",IF(OR(VLOOKUP($A402,Economática!$A$3:$AI$823,19,FALSE)=0,VLOOKUP($A402,Economática!$A$3:$AI$823,19,FALSE)=\"-\"),1/0,VLOOKUP($A402,Economática!$A$3:$AI$823,19,FALSE)))","v":""},{"$f":"IF($A402=\"\",\"\",VLOOKUP($A402,Economática!$A$3:$AI$823,20,FALSE)/E402)","v":""},"","","",{"$f":"IF($A402=\"\",\"\",IF(OR(VLOOKUP($A402,Economática!$A$3:$AI$823,21,FALSE)/100=0,VLOOKUP($A402,Economática!$A$3:$AI$823,21,FALSE)/100=\"-\"),1/0,VLOOKUP($A402,Economática!$A$3:$AI$823,21,FALSE)/100))","v":""},{"$f":"IF($A402=\"\",\"\",IF(OR(VLOOKUP($A402,Economática!$A$3:$AI$823,22,FALSE)/100=0,VLOOKUP($A402,Economática!$A$3:$AI$823,22,FALSE)/100=\"-\"),1/0,VLOOKUP($A402,Economática!$A$3:$AI$823,22,FALSE)/100))","v":""},{"$f":"IF($A402=\"\",\"\",IF(OR(VLOOKUP($A402,Economática!$A$3:$AI$823,23,FALSE)=0,VLOOKUP($A402,Economática!$A$3:$AI$823,23,FALSE)=\"-\"),1/0,VLOOKUP($A402,Economática!$A$3:$AI$823,23,FALSE)))","v":""},{"$f":"IF($A402=\"\",\"\",IF(OR(VLOOKUP($A402,Economática!$A$3:$AI$823,24,FALSE)=0,VLOOKUP($A402,Economática!$A$3:$AI$823,24,FALSE)=\"-\"),1/0,VLOOKUP($A402,Economática!$A$3:$AI$823,24,FALSE)))","v":""},{"$f":"IF($A402=\"\",\"\",IF(OR(VLOOKUP($A402,Economática!$A$3:$AI$823,25,FALSE)=0,VLOOKUP($A402,Economática!$A$3:$AI$823,25,FALSE)=\"-\"),1/0,VLOOKUP($A402,Economática!$A$3:$AI$823,25,FALSE)))","v":""},{"$f":"IF($A402=\"\",\"\",IF(ISERROR((F402+VLOOKUP($A402,Economática!$A$3:$AI$823,26,FALSE))/Y402),(F402+VLOOKUP($A402,Economática!$A$3:$AI$823,26,FALSE))/Y402,(F402+VLOOKUP($A402,Economática!$A$3:$AI$823,26,FALSE))/Y402))","v":""},{"$f":"IF($A402=\"\",\"\",IF(OR(-VLOOKUP($A402,Economática!$A$3:$AI$823,27,FALSE)=0,-VLOOKUP($A402,Economática!$A$3:$AI$823,27,FALSE)=\"-\"),1/0,-VLOOKUP($A402,Economática!$A$3:$AI$823,27,FALSE)))","v":""},"",{"$f":"IF($A402=\"\",\"\",IF(OR(VLOOKUP($A402,Economática!$A$3:$AI$823,28,FALSE)=0,VLOOKUP($A402,Economática!$A$3:$AI$823,28,FALSE)=\"-\"),1/0,VLOOKUP($A402,Economática!$A$3:$AI$823,28,FALSE)))","v":""},{"$f":"IF($A402=\"\",\"\",IF(OR(VLOOKUP($A402,Economática!$A$3:$AI$823,29,FALSE)=0,VLOOKUP($A402,Economática!$A$3:$AI$823,29,FALSE)=\"-\"),1/0,VLOOKUP($A402,Economática!$A$3:$AI$823,29,FALSE)))","v":""},{"$f":"IF($A402=\"\",\"\",IF(OR(VLOOKUP($A402,Economática!$A$3:$AI$823,30,FALSE)/E402=0,VLOOKUP($A402,Economática!$A$3:$AI$823,30,FALSE)/E402=\"-\",VLOOKUP($A402,Economática!$A$3:$AI$823,30,FALSE)/E402<33.33%,VLOOKUP($A402,Economática!$A$3:$AI$823,30,FALSE)/E402>100%),1/0,VLOOKUP($A402,Economática!$A$3:$AI$823,30,FALSE)/E402))","v":""},"",{"$f":"IF($A402=\"\",\"\",IF(OR(VLOOKUP($A402,Economática!$A$3:$AI$823,25,FALSE)=0,VLOOKUP($A402,Economática!$A$3:$AI$823,25,FALSE)=\"-\"),1/0,VLOOKUP($A402,Economática!$A$3:$AI$823,25,FALSE)))","v":""},{"$f":"CONCATENATE(Economática!B380,\" \",Economática!C380)","v":" "}]
[{"$f":"IF(Economática!AG381=\"\",\"\",Economática!AG381)","v":""},{"$f":"IF($A403=\"\",\"\",VLOOKUP(VLOOKUP($A403,Economática!$A$3:$AI$823,6,FALSE),Correção!$B$16:$C$36,2,FALSE))","v":""},{"$f":"IF(Economática!B381=\"\",\"\",Economática!B381)","v":""},{"$f":"IF($A403=\"\",\"\",IF(OR(VLOOKUP($A403,Economática!$A$3:$AI$823,8,FALSE)=0,VLOOKUP($A403,Economática!$A$3:$AI$823,8,FALSE)=\"-\"),1/0,VLOOKUP($A403,Economática!$A$3:$AI$823,8,FALSE)))","v":""},{"$f":"IF(A403=\"\",\"\",IF(ISERROR(VLOOKUP(A403,Correção!$B$2:$G$13,9,FALSE)),VLOOKUP($A403,Economática!$A$3:$AI$823,9,FALSE),VLOOKUP(A403,Correção!$B$2:$G$13,9,FALSE)))","v":""},{"$f":"IF($A403=\"\",\"\",Economática!G381)","v":""},{"$f":"IF($A403=\"\",\"\",IF(OR(VLOOKUP($A403,Economática!$A$3:$AI$823,10,FALSE)=0,VLOOKUP($A403,Economática!$A$3:$AI$823,10,FALSE)=\"-\"),1/0,VLOOKUP($A403,Economática!$A$3:$AI$823,10,FALSE)))","v":""},{"$f":"IF($A403=\"\",\"\",IF(OR(VLOOKUP($A403,Economática!$A$3:$AI$823,11,FALSE)=0,VLOOKUP($A403,Economática!$A$3:$AI$823,11,FALSE)=\"-\"),1/0,VLOOKUP($A403,Economática!$A$3:$AI$823,11,FALSE)))","v":""},{"$f":"IF($A403=\"\",\"\",IF(OR(VLOOKUP($A403,Economática!$A$3:$AI$823,12,FALSE)=0,VLOOKUP($A403,Economática!$A$3:$AI$823,12,FALSE)=\"-\"),1/0,VLOOKUP($A403,Economática!$A$3:$AI$823,12,FALSE)))","v":""},{"$f":"IF($A403=\"\",\"\",IF(OR(VLOOKUP($A403,Economática!$A$3:$AI$823,13,FALSE)=0,VLOOKUP($A403,Economática!$A$3:$AI$823,13,FALSE)=\"-\"),1/0,VLOOKUP($A403,Economática!$A$3:$AI$823,13,FALSE)))","v":""},{"$f":"IF($A403=\"\",\"\",IF(OR(VLOOKUP($A403,Economática!$A$3:$AI$823,14,FALSE)=0,VLOOKUP($A403,Economática!$A$3:$AI$823,14,FALSE)=\"-\"),1/0,VLOOKUP($A403,Economática!$A$3:$AI$823,14,FALSE)))","v":""},{"$f":"IF($A403=\"\",\"\",IF(OR(VLOOKUP($A403,Economática!$A$3:$AI$823,15,FALSE)=0,VLOOKUP($A403,Economática!$A$3:$AI$823,15,FALSE)=\"-\"),1/0,VLOOKUP($A403,Economática!$A$3:$AI$823,15,FALSE)))","v":""},{"$f":"IF($A403=\"\",\"\",IF(OR(VLOOKUP($A403,Economática!$A$3:$AI$823,16,FALSE)=0,VLOOKUP($A403,Economática!$A$3:$AI$823,16,FALSE)=\"-\"),1/0,VLOOKUP($A403,Economática!$A$3:$AI$823,16,FALSE)))","v":""},{"$f":"IF($A403=\"\",\"\",IF(OR(VLOOKUP($A403,Economática!$A$3:$AI$823,17,FALSE)=0,VLOOKUP($A403,Economática!$A$3:$AI$823,17,FALSE)=\"-\"),1/0,VLOOKUP($A403,Economática!$A$3:$AI$823,17,FALSE)))","v":""},{"$f":"IF($A403=\"\",\"\",IF(OR(VLOOKUP($A403,Economática!$A$3:$AI$823,18,FALSE)=0,VLOOKUP($A403,Economática!$A$3:$AI$823,18,FALSE)=\"-\"),1/0,VLOOKUP($A403,Economática!$A$3:$AI$823,18,FALSE)))","v":""},{"$f":"IF($A403=\"\",\"\",IF(OR(VLOOKUP($A403,Economática!$A$3:$AI$823,19,FALSE)=0,VLOOKUP($A403,Economática!$A$3:$AI$823,19,FALSE)=\"-\"),1/0,VLOOKUP($A403,Economática!$A$3:$AI$823,19,FALSE)))","v":""},{"$f":"IF($A403=\"\",\"\",VLOOKUP($A403,Economática!$A$3:$AI$823,20,FALSE)/E403)","v":""},"","","",{"$f":"IF($A403=\"\",\"\",IF(OR(VLOOKUP($A403,Economática!$A$3:$AI$823,21,FALSE)/100=0,VLOOKUP($A403,Economática!$A$3:$AI$823,21,FALSE)/100=\"-\"),1/0,VLOOKUP($A403,Economática!$A$3:$AI$823,21,FALSE)/100))","v":""},{"$f":"IF($A403=\"\",\"\",IF(OR(VLOOKUP($A403,Economática!$A$3:$AI$823,22,FALSE)/100=0,VLOOKUP($A403,Economática!$A$3:$AI$823,22,FALSE)/100=\"-\"),1/0,VLOOKUP($A403,Economática!$A$3:$AI$823,22,FALSE)/100))","v":""},{"$f":"IF($A403=\"\",\"\",IF(OR(VLOOKUP($A403,Economática!$A$3:$AI$823,23,FALSE)=0,VLOOKUP($A403,Economática!$A$3:$AI$823,23,FALSE)=\"-\"),1/0,VLOOKUP($A403,Economática!$A$3:$AI$823,23,FALSE)))","v":""},{"$f":"IF($A403=\"\",\"\",IF(OR(VLOOKUP($A403,Economática!$A$3:$AI$823,24,FALSE)=0,VLOOKUP($A403,Economática!$A$3:$AI$823,24,FALSE)=\"-\"),1/0,VLOOKUP($A403,Economática!$A$3:$AI$823,24,FALSE)))","v":""},{"$f":"IF($A403=\"\",\"\",IF(OR(VLOOKUP($A403,Economática!$A$3:$AI$823,25,FALSE)=0,VLOOKUP($A403,Economática!$A$3:$AI$823,25,FALSE)=\"-\"),1/0,VLOOKUP($A403,Economática!$A$3:$AI$823,25,FALSE)))","v":""},{"$f":"IF($A403=\"\",\"\",IF(ISERROR((F403+VLOOKUP($A403,Economática!$A$3:$AI$823,26,FALSE))/Y403),(F403+VLOOKUP($A403,Economática!$A$3:$AI$823,26,FALSE))/Y403,(F403+VLOOKUP($A403,Economática!$A$3:$AI$823,26,FALSE))/Y403))","v":""},{"$f":"IF($A403=\"\",\"\",IF(OR(-VLOOKUP($A403,Economática!$A$3:$AI$823,27,FALSE)=0,-VLOOKUP($A403,Economática!$A$3:$AI$823,27,FALSE)=\"-\"),1/0,-VLOOKUP($A403,Economática!$A$3:$AI$823,27,FALSE)))","v":""},"",{"$f":"IF($A403=\"\",\"\",IF(OR(VLOOKUP($A403,Economática!$A$3:$AI$823,28,FALSE)=0,VLOOKUP($A403,Economática!$A$3:$AI$823,28,FALSE)=\"-\"),1/0,VLOOKUP($A403,Economática!$A$3:$AI$823,28,FALSE)))","v":""},{"$f":"IF($A403=\"\",\"\",IF(OR(VLOOKUP($A403,Economática!$A$3:$AI$823,29,FALSE)=0,VLOOKUP($A403,Economática!$A$3:$AI$823,29,FALSE)=\"-\"),1/0,VLOOKUP($A403,Economática!$A$3:$AI$823,29,FALSE)))","v":""},{"$f":"IF($A403=\"\",\"\",IF(OR(VLOOKUP($A403,Economática!$A$3:$AI$823,30,FALSE)/E403=0,VLOOKUP($A403,Economática!$A$3:$AI$823,30,FALSE)/E403=\"-\",VLOOKUP($A403,Economática!$A$3:$AI$823,30,FALSE)/E403<33.33%,VLOOKUP($A403,Economática!$A$3:$AI$823,30,FALSE)/E403>100%),1/0,VLOOKUP($A403,Economática!$A$3:$AI$823,30,FALSE)/E403))","v":""},"",{"$f":"IF($A403=\"\",\"\",IF(OR(VLOOKUP($A403,Economática!$A$3:$AI$823,25,FALSE)=0,VLOOKUP($A403,Economática!$A$3:$AI$823,25,FALSE)=\"-\"),1/0,VLOOKUP($A403,Economática!$A$3:$AI$823,25,FALSE)))","v":""},{"$f":"CONCATENATE(Economática!B381,\" \",Economática!C381)","v":" "}]
[{"$f":"IF(Economática!AG382=\"\",\"\",Economática!AG382)","v":""},{"$f":"IF($A404=\"\",\"\",VLOOKUP(VLOOKUP($A404,Economática!$A$3:$AI$823,6,FALSE),Correção!$B$16:$C$36,2,FALSE))","v":""},{"$f":"IF(Economática!B382=\"\",\"\",Economática!B382)","v":""},{"$f":"IF($A404=\"\",\"\",IF(OR(VLOOKUP($A404,Economática!$A$3:$AI$823,8,FALSE)=0,VLOOKUP($A404,Economática!$A$3:$AI$823,8,FALSE)=\"-\"),1/0,VLOOKUP($A404,Economática!$A$3:$AI$823,8,FALSE)))","v":""},{"$f":"IF(A404=\"\",\"\",IF(ISERROR(VLOOKUP(A404,Correção!$B$2:$G$13,9,FALSE)),VLOOKUP($A404,Economática!$A$3:$AI$823,9,FALSE),VLOOKUP(A404,Correção!$B$2:$G$13,9,FALSE)))","v":""},{"$f":"IF($A404=\"\",\"\",Economática!G382)","v":""},{"$f":"IF($A404=\"\",\"\",IF(OR(VLOOKUP($A404,Economática!$A$3:$AI$823,10,FALSE)=0,VLOOKUP($A404,Economática!$A$3:$AI$823,10,FALSE)=\"-\"),1/0,VLOOKUP($A404,Economática!$A$3:$AI$823,10,FALSE)))","v":""},{"$f":"IF($A404=\"\",\"\",IF(OR(VLOOKUP($A404,Economática!$A$3:$AI$823,11,FALSE)=0,VLOOKUP($A404,Economática!$A$3:$AI$823,11,FALSE)=\"-\"),1/0,VLOOKUP($A404,Economática!$A$3:$AI$823,11,FALSE)))","v":""},{"$f":"IF($A404=\"\",\"\",IF(OR(VLOOKUP($A404,Economática!$A$3:$AI$823,12,FALSE)=0,VLOOKUP($A404,Economática!$A$3:$AI$823,12,FALSE)=\"-\"),1/0,VLOOKUP($A404,Economática!$A$3:$AI$823,12,FALSE)))","v":""},{"$f":"IF($A404=\"\",\"\",IF(OR(VLOOKUP($A404,Economática!$A$3:$AI$823,13,FALSE)=0,VLOOKUP($A404,Economática!$A$3:$AI$823,13,FALSE)=\"-\"),1/0,VLOOKUP($A404,Economática!$A$3:$AI$823,13,FALSE)))","v":""},{"$f":"IF($A404=\"\",\"\",IF(OR(VLOOKUP($A404,Economática!$A$3:$AI$823,14,FALSE)=0,VLOOKUP($A404,Economática!$A$3:$AI$823,14,FALSE)=\"-\"),1/0,VLOOKUP($A404,Economática!$A$3:$AI$823,14,FALSE)))","v":""},{"$f":"IF($A404=\"\",\"\",IF(OR(VLOOKUP($A404,Economática!$A$3:$AI$823,15,FALSE)=0,VLOOKUP($A404,Economática!$A$3:$AI$823,15,FALSE)=\"-\"),1/0,VLOOKUP($A404,Economática!$A$3:$AI$823,15,FALSE)))","v":""},{"$f":"IF($A404=\"\",\"\",IF(OR(VLOOKUP($A404,Economática!$A$3:$AI$823,16,FALSE)=0,VLOOKUP($A404,Economática!$A$3:$AI$823,16,FALSE)=\"-\"),1/0,VLOOKUP($A404,Economática!$A$3:$AI$823,16,FALSE)))","v":""},{"$f":"IF($A404=\"\",\"\",IF(OR(VLOOKUP($A404,Economática!$A$3:$AI$823,17,FALSE)=0,VLOOKUP($A404,Economática!$A$3:$AI$823,17,FALSE)=\"-\"),1/0,VLOOKUP($A404,Economática!$A$3:$AI$823,17,FALSE)))","v":""},{"$f":"IF($A404=\"\",\"\",IF(OR(VLOOKUP($A404,Economática!$A$3:$AI$823,18,FALSE)=0,VLOOKUP($A404,Economática!$A$3:$AI$823,18,FALSE)=\"-\"),1/0,VLOOKUP($A404,Economática!$A$3:$AI$823,18,FALSE)))","v":""},{"$f":"IF($A404=\"\",\"\",IF(OR(VLOOKUP($A404,Economática!$A$3:$AI$823,19,FALSE)=0,VLOOKUP($A404,Economática!$A$3:$AI$823,19,FALSE)=\"-\"),1/0,VLOOKUP($A404,Economática!$A$3:$AI$823,19,FALSE)))","v":""},{"$f":"IF($A404=\"\",\"\",VLOOKUP($A404,Economática!$A$3:$AI$823,20,FALSE)/E404)","v":""},"","","",{"$f":"IF($A404=\"\",\"\",IF(OR(VLOOKUP($A404,Economática!$A$3:$AI$823,21,FALSE)/100=0,VLOOKUP($A404,Economática!$A$3:$AI$823,21,FALSE)/100=\"-\"),1/0,VLOOKUP($A404,Economática!$A$3:$AI$823,21,FALSE)/100))","v":""},{"$f":"IF($A404=\"\",\"\",IF(OR(VLOOKUP($A404,Economática!$A$3:$AI$823,22,FALSE)/100=0,VLOOKUP($A404,Economática!$A$3:$AI$823,22,FALSE)/100=\"-\"),1/0,VLOOKUP($A404,Economática!$A$3:$AI$823,22,FALSE)/100))","v":""},{"$f":"IF($A404=\"\",\"\",IF(OR(VLOOKUP($A404,Economática!$A$3:$AI$823,23,FALSE)=0,VLOOKUP($A404,Economática!$A$3:$AI$823,23,FALSE)=\"-\"),1/0,VLOOKUP($A404,Economática!$A$3:$AI$823,23,FALSE)))","v":""},{"$f":"IF($A404=\"\",\"\",IF(OR(VLOOKUP($A404,Economática!$A$3:$AI$823,24,FALSE)=0,VLOOKUP($A404,Economática!$A$3:$AI$823,24,FALSE)=\"-\"),1/0,VLOOKUP($A404,Economática!$A$3:$AI$823,24,FALSE)))","v":""},{"$f":"IF($A404=\"\",\"\",IF(OR(VLOOKUP($A404,Economática!$A$3:$AI$823,25,FALSE)=0,VLOOKUP($A404,Economática!$A$3:$AI$823,25,FALSE)=\"-\"),1/0,VLOOKUP($A404,Economática!$A$3:$AI$823,25,FALSE)))","v":""},{"$f":"IF($A404=\"\",\"\",IF(ISERROR((F404+VLOOKUP($A404,Economática!$A$3:$AI$823,26,FALSE))/Y404),(F404+VLOOKUP($A404,Economática!$A$3:$AI$823,26,FALSE))/Y404,(F404+VLOOKUP($A404,Economática!$A$3:$AI$823,26,FALSE))/Y404))","v":""},{"$f":"IF($A404=\"\",\"\",IF(OR(-VLOOKUP($A404,Economática!$A$3:$AI$823,27,FALSE)=0,-VLOOKUP($A404,Economática!$A$3:$AI$823,27,FALSE)=\"-\"),1/0,-VLOOKUP($A404,Economática!$A$3:$AI$823,27,FALSE)))","v":""},"",{"$f":"IF($A404=\"\",\"\",IF(OR(VLOOKUP($A404,Economática!$A$3:$AI$823,28,FALSE)=0,VLOOKUP($A404,Economática!$A$3:$AI$823,28,FALSE)=\"-\"),1/0,VLOOKUP($A404,Economática!$A$3:$AI$823,28,FALSE)))","v":""},{"$f":"IF($A404=\"\",\"\",IF(OR(VLOOKUP($A404,Economática!$A$3:$AI$823,29,FALSE)=0,VLOOKUP($A404,Economática!$A$3:$AI$823,29,FALSE)=\"-\"),1/0,VLOOKUP($A404,Economática!$A$3:$AI$823,29,FALSE)))","v":""},{"$f":"IF($A404=\"\",\"\",IF(OR(VLOOKUP($A404,Economática!$A$3:$AI$823,30,FALSE)/E404=0,VLOOKUP($A404,Economática!$A$3:$AI$823,30,FALSE)/E404=\"-\",VLOOKUP($A404,Economática!$A$3:$AI$823,30,FALSE)/E404<33.33%,VLOOKUP($A404,Economática!$A$3:$AI$823,30,FALSE)/E404>100%),1/0,VLOOKUP($A404,Economática!$A$3:$AI$823,30,FALSE)/E404))","v":""},"",{"$f":"IF($A404=\"\",\"\",IF(OR(VLOOKUP($A404,Economática!$A$3:$AI$823,25,FALSE)=0,VLOOKUP($A404,Economática!$A$3:$AI$823,25,FALSE)=\"-\"),1/0,VLOOKUP($A404,Economática!$A$3:$AI$823,25,FALSE)))","v":""},{"$f":"CONCATENATE(Economática!B382,\" \",Economática!C382)","v":" "}]
[{"$f":"IF(Economática!AG383=\"\",\"\",Economática!AG383)","v":""},{"$f":"IF($A405=\"\",\"\",VLOOKUP(VLOOKUP($A405,Economática!$A$3:$AI$823,6,FALSE),Correção!$B$16:$C$36,2,FALSE))","v":""},{"$f":"IF(Economática!B383=\"\",\"\",Economática!B383)","v":""},{"$f":"IF($A405=\"\",\"\",IF(OR(VLOOKUP($A405,Economática!$A$3:$AI$823,8,FALSE)=0,VLOOKUP($A405,Economática!$A$3:$AI$823,8,FALSE)=\"-\"),1/0,VLOOKUP($A405,Economática!$A$3:$AI$823,8,FALSE)))","v":""},{"$f":"IF(A405=\"\",\"\",IF(ISERROR(VLOOKUP(A405,Correção!$B$2:$G$13,9,FALSE)),VLOOKUP($A405,Economática!$A$3:$AI$823,9,FALSE),VLOOKUP(A405,Correção!$B$2:$G$13,9,FALSE)))","v":""},{"$f":"IF($A405=\"\",\"\",Economática!G383)","v":""},{"$f":"IF($A405=\"\",\"\",IF(OR(VLOOKUP($A405,Economática!$A$3:$AI$823,10,FALSE)=0,VLOOKUP($A405,Economática!$A$3:$AI$823,10,FALSE)=\"-\"),1/0,VLOOKUP($A405,Economática!$A$3:$AI$823,10,FALSE)))","v":""},{"$f":"IF($A405=\"\",\"\",IF(OR(VLOOKUP($A405,Economática!$A$3:$AI$823,11,FALSE)=0,VLOOKUP($A405,Economática!$A$3:$AI$823,11,FALSE)=\"-\"),1/0,VLOOKUP($A405,Economática!$A$3:$AI$823,11,FALSE)))","v":""},{"$f":"IF($A405=\"\",\"\",IF(OR(VLOOKUP($A405,Economática!$A$3:$AI$823,12,FALSE)=0,VLOOKUP($A405,Economática!$A$3:$AI$823,12,FALSE)=\"-\"),1/0,VLOOKUP($A405,Economática!$A$3:$AI$823,12,FALSE)))","v":""},{"$f":"IF($A405=\"\",\"\",IF(OR(VLOOKUP($A405,Economática!$A$3:$AI$823,13,FALSE)=0,VLOOKUP($A405,Economática!$A$3:$AI$823,13,FALSE)=\"-\"),1/0,VLOOKUP($A405,Economática!$A$3:$AI$823,13,FALSE)))","v":""},{"$f":"IF($A405=\"\",\"\",IF(OR(VLOOKUP($A405,Economática!$A$3:$AI$823,14,FALSE)=0,VLOOKUP($A405,Economática!$A$3:$AI$823,14,FALSE)=\"-\"),1/0,VLOOKUP($A405,Economática!$A$3:$AI$823,14,FALSE)))","v":""},{"$f":"IF($A405=\"\",\"\",IF(OR(VLOOKUP($A405,Economática!$A$3:$AI$823,15,FALSE)=0,VLOOKUP($A405,Economática!$A$3:$AI$823,15,FALSE)=\"-\"),1/0,VLOOKUP($A405,Economática!$A$3:$AI$823,15,FALSE)))","v":""},{"$f":"IF($A405=\"\",\"\",IF(OR(VLOOKUP($A405,Economática!$A$3:$AI$823,16,FALSE)=0,VLOOKUP($A405,Economática!$A$3:$AI$823,16,FALSE)=\"-\"),1/0,VLOOKUP($A405,Economática!$A$3:$AI$823,16,FALSE)))","v":""},{"$f":"IF($A405=\"\",\"\",IF(OR(VLOOKUP($A405,Economática!$A$3:$AI$823,17,FALSE)=0,VLOOKUP($A405,Economática!$A$3:$AI$823,17,FALSE)=\"-\"),1/0,VLOOKUP($A405,Economática!$A$3:$AI$823,17,FALSE)))","v":""},{"$f":"IF($A405=\"\",\"\",IF(OR(VLOOKUP($A405,Economática!$A$3:$AI$823,18,FALSE)=0,VLOOKUP($A405,Economática!$A$3:$AI$823,18,FALSE)=\"-\"),1/0,VLOOKUP($A405,Economática!$A$3:$AI$823,18,FALSE)))","v":""},{"$f":"IF($A405=\"\",\"\",IF(OR(VLOOKUP($A405,Economática!$A$3:$AI$823,19,FALSE)=0,VLOOKUP($A405,Economática!$A$3:$AI$823,19,FALSE)=\"-\"),1/0,VLOOKUP($A405,Economática!$A$3:$AI$823,19,FALSE)))","v":""},{"$f":"IF($A405=\"\",\"\",VLOOKUP($A405,Economática!$A$3:$AI$823,20,FALSE)/E405)","v":""},"","","",{"$f":"IF($A405=\"\",\"\",IF(OR(VLOOKUP($A405,Economática!$A$3:$AI$823,21,FALSE)/100=0,VLOOKUP($A405,Economática!$A$3:$AI$823,21,FALSE)/100=\"-\"),1/0,VLOOKUP($A405,Economática!$A$3:$AI$823,21,FALSE)/100))","v":""},{"$f":"IF($A405=\"\",\"\",IF(OR(VLOOKUP($A405,Economática!$A$3:$AI$823,22,FALSE)/100=0,VLOOKUP($A405,Economática!$A$3:$AI$823,22,FALSE)/100=\"-\"),1/0,VLOOKUP($A405,Economática!$A$3:$AI$823,22,FALSE)/100))","v":""},{"$f":"IF($A405=\"\",\"\",IF(OR(VLOOKUP($A405,Economática!$A$3:$AI$823,23,FALSE)=0,VLOOKUP($A405,Economática!$A$3:$AI$823,23,FALSE)=\"-\"),1/0,VLOOKUP($A405,Economática!$A$3:$AI$823,23,FALSE)))","v":""},{"$f":"IF($A405=\"\",\"\",IF(OR(VLOOKUP($A405,Economática!$A$3:$AI$823,24,FALSE)=0,VLOOKUP($A405,Economática!$A$3:$AI$823,24,FALSE)=\"-\"),1/0,VLOOKUP($A405,Economática!$A$3:$AI$823,24,FALSE)))","v":""},{"$f":"IF($A405=\"\",\"\",IF(OR(VLOOKUP($A405,Economática!$A$3:$AI$823,25,FALSE)=0,VLOOKUP($A405,Economática!$A$3:$AI$823,25,FALSE)=\"-\"),1/0,VLOOKUP($A405,Economática!$A$3:$AI$823,25,FALSE)))","v":""},{"$f":"IF($A405=\"\",\"\",IF(ISERROR((F405+VLOOKUP($A405,Economática!$A$3:$AI$823,26,FALSE))/Y405),(F405+VLOOKUP($A405,Economática!$A$3:$AI$823,26,FALSE))/Y405,(F405+VLOOKUP($A405,Economática!$A$3:$AI$823,26,FALSE))/Y405))","v":""},{"$f":"IF($A405=\"\",\"\",IF(OR(-VLOOKUP($A405,Economática!$A$3:$AI$823,27,FALSE)=0,-VLOOKUP($A405,Economática!$A$3:$AI$823,27,FALSE)=\"-\"),1/0,-VLOOKUP($A405,Economática!$A$3:$AI$823,27,FALSE)))","v":""},"",{"$f":"IF($A405=\"\",\"\",IF(OR(VLOOKUP($A405,Economática!$A$3:$AI$823,28,FALSE)=0,VLOOKUP($A405,Economática!$A$3:$AI$823,28,FALSE)=\"-\"),1/0,VLOOKUP($A405,Economática!$A$3:$AI$823,28,FALSE)))","v":""},{"$f":"IF($A405=\"\",\"\",IF(OR(VLOOKUP($A405,Economática!$A$3:$AI$823,29,FALSE)=0,VLOOKUP($A405,Economática!$A$3:$AI$823,29,FALSE)=\"-\"),1/0,VLOOKUP($A405,Economática!$A$3:$AI$823,29,FALSE)))","v":""},{"$f":"IF($A405=\"\",\"\",IF(OR(VLOOKUP($A405,Economática!$A$3:$AI$823,30,FALSE)/E405=0,VLOOKUP($A405,Economática!$A$3:$AI$823,30,FALSE)/E405=\"-\",VLOOKUP($A405,Economática!$A$3:$AI$823,30,FALSE)/E405<33.33%,VLOOKUP($A405,Economática!$A$3:$AI$823,30,FALSE)/E405>100%),1/0,VLOOKUP($A405,Economática!$A$3:$AI$823,30,FALSE)/E405))","v":""},"",{"$f":"IF($A405=\"\",\"\",IF(OR(VLOOKUP($A405,Economática!$A$3:$AI$823,25,FALSE)=0,VLOOKUP($A405,Economática!$A$3:$AI$823,25,FALSE)=\"-\"),1/0,VLOOKUP($A405,Economática!$A$3:$AI$823,25,FALSE)))","v":""},{"$f":"CONCATENATE(Economática!B383,\" \",Economática!C383)","v":" "}]
[{"$f":"IF(Economática!AG384=\"\",\"\",Economática!AG384)","v":""},{"$f":"IF($A406=\"\",\"\",VLOOKUP(VLOOKUP($A406,Economática!$A$3:$AI$823,6,FALSE),Correção!$B$16:$C$36,2,FALSE))","v":""},{"$f":"IF(Economática!B384=\"\",\"\",Economática!B384)","v":""},{"$f":"IF($A406=\"\",\"\",IF(OR(VLOOKUP($A406,Economática!$A$3:$AI$823,8,FALSE)=0,VLOOKUP($A406,Economática!$A$3:$AI$823,8,FALSE)=\"-\"),1/0,VLOOKUP($A406,Economática!$A$3:$AI$823,8,FALSE)))","v":""},{"$f":"IF(A406=\"\",\"\",IF(ISERROR(VLOOKUP(A406,Correção!$B$2:$G$13,9,FALSE)),VLOOKUP($A406,Economática!$A$3:$AI$823,9,FALSE),VLOOKUP(A406,Correção!$B$2:$G$13,9,FALSE)))","v":""},{"$f":"IF($A406=\"\",\"\",Economática!G384)","v":""},{"$f":"IF($A406=\"\",\"\",IF(OR(VLOOKUP($A406,Economática!$A$3:$AI$823,10,FALSE)=0,VLOOKUP($A406,Economática!$A$3:$AI$823,10,FALSE)=\"-\"),1/0,VLOOKUP($A406,Economática!$A$3:$AI$823,10,FALSE)))","v":""},{"$f":"IF($A406=\"\",\"\",IF(OR(VLOOKUP($A406,Economática!$A$3:$AI$823,11,FALSE)=0,VLOOKUP($A406,Economática!$A$3:$AI$823,11,FALSE)=\"-\"),1/0,VLOOKUP($A406,Economática!$A$3:$AI$823,11,FALSE)))","v":""},{"$f":"IF($A406=\"\",\"\",IF(OR(VLOOKUP($A406,Economática!$A$3:$AI$823,12,FALSE)=0,VLOOKUP($A406,Economática!$A$3:$AI$823,12,FALSE)=\"-\"),1/0,VLOOKUP($A406,Economática!$A$3:$AI$823,12,FALSE)))","v":""},{"$f":"IF($A406=\"\",\"\",IF(OR(VLOOKUP($A406,Economática!$A$3:$AI$823,13,FALSE)=0,VLOOKUP($A406,Economática!$A$3:$AI$823,13,FALSE)=\"-\"),1/0,VLOOKUP($A406,Economática!$A$3:$AI$823,13,FALSE)))","v":""},{"$f":"IF($A406=\"\",\"\",IF(OR(VLOOKUP($A406,Economática!$A$3:$AI$823,14,FALSE)=0,VLOOKUP($A406,Economática!$A$3:$AI$823,14,FALSE)=\"-\"),1/0,VLOOKUP($A406,Economática!$A$3:$AI$823,14,FALSE)))","v":""},{"$f":"IF($A406=\"\",\"\",IF(OR(VLOOKUP($A406,Economática!$A$3:$AI$823,15,FALSE)=0,VLOOKUP($A406,Economática!$A$3:$AI$823,15,FALSE)=\"-\"),1/0,VLOOKUP($A406,Economática!$A$3:$AI$823,15,FALSE)))","v":""},{"$f":"IF($A406=\"\",\"\",IF(OR(VLOOKUP($A406,Economática!$A$3:$AI$823,16,FALSE)=0,VLOOKUP($A406,Economática!$A$3:$AI$823,16,FALSE)=\"-\"),1/0,VLOOKUP($A406,Economática!$A$3:$AI$823,16,FALSE)))","v":""},{"$f":"IF($A406=\"\",\"\",IF(OR(VLOOKUP($A406,Economática!$A$3:$AI$823,17,FALSE)=0,VLOOKUP($A406,Economática!$A$3:$AI$823,17,FALSE)=\"-\"),1/0,VLOOKUP($A406,Economática!$A$3:$AI$823,17,FALSE)))","v":""},{"$f":"IF($A406=\"\",\"\",IF(OR(VLOOKUP($A406,Economática!$A$3:$AI$823,18,FALSE)=0,VLOOKUP($A406,Economática!$A$3:$AI$823,18,FALSE)=\"-\"),1/0,VLOOKUP($A406,Economática!$A$3:$AI$823,18,FALSE)))","v":""},{"$f":"IF($A406=\"\",\"\",IF(OR(VLOOKUP($A406,Economática!$A$3:$AI$823,19,FALSE)=0,VLOOKUP($A406,Economática!$A$3:$AI$823,19,FALSE)=\"-\"),1/0,VLOOKUP($A406,Economática!$A$3:$AI$823,19,FALSE)))","v":""},{"$f":"IF($A406=\"\",\"\",VLOOKUP($A406,Economática!$A$3:$AI$823,20,FALSE)/E406)","v":""},"","","",{"$f":"IF($A406=\"\",\"\",IF(OR(VLOOKUP($A406,Economática!$A$3:$AI$823,21,FALSE)/100=0,VLOOKUP($A406,Economática!$A$3:$AI$823,21,FALSE)/100=\"-\"),1/0,VLOOKUP($A406,Economática!$A$3:$AI$823,21,FALSE)/100))","v":""},{"$f":"IF($A406=\"\",\"\",IF(OR(VLOOKUP($A406,Economática!$A$3:$AI$823,22,FALSE)/100=0,VLOOKUP($A406,Economática!$A$3:$AI$823,22,FALSE)/100=\"-\"),1/0,VLOOKUP($A406,Economática!$A$3:$AI$823,22,FALSE)/100))","v":""},{"$f":"IF($A406=\"\",\"\",IF(OR(VLOOKUP($A406,Economática!$A$3:$AI$823,23,FALSE)=0,VLOOKUP($A406,Economática!$A$3:$AI$823,23,FALSE)=\"-\"),1/0,VLOOKUP($A406,Economática!$A$3:$AI$823,23,FALSE)))","v":""},{"$f":"IF($A406=\"\",\"\",IF(OR(VLOOKUP($A406,Economática!$A$3:$AI$823,24,FALSE)=0,VLOOKUP($A406,Economática!$A$3:$AI$823,24,FALSE)=\"-\"),1/0,VLOOKUP($A406,Economática!$A$3:$AI$823,24,FALSE)))","v":""},{"$f":"IF($A406=\"\",\"\",IF(OR(VLOOKUP($A406,Economática!$A$3:$AI$823,25,FALSE)=0,VLOOKUP($A406,Economática!$A$3:$AI$823,25,FALSE)=\"-\"),1/0,VLOOKUP($A406,Economática!$A$3:$AI$823,25,FALSE)))","v":""},{"$f":"IF($A406=\"\",\"\",IF(ISERROR((F406+VLOOKUP($A406,Economática!$A$3:$AI$823,26,FALSE))/Y406),(F406+VLOOKUP($A406,Economática!$A$3:$AI$823,26,FALSE))/Y406,(F406+VLOOKUP($A406,Economática!$A$3:$AI$823,26,FALSE))/Y406))","v":""},{"$f":"IF($A406=\"\",\"\",IF(OR(-VLOOKUP($A406,Economática!$A$3:$AI$823,27,FALSE)=0,-VLOOKUP($A406,Economática!$A$3:$AI$823,27,FALSE)=\"-\"),1/0,-VLOOKUP($A406,Economática!$A$3:$AI$823,27,FALSE)))","v":""},"",{"$f":"IF($A406=\"\",\"\",IF(OR(VLOOKUP($A406,Economática!$A$3:$AI$823,28,FALSE)=0,VLOOKUP($A406,Economática!$A$3:$AI$823,28,FALSE)=\"-\"),1/0,VLOOKUP($A406,Economática!$A$3:$AI$823,28,FALSE)))","v":""},{"$f":"IF($A406=\"\",\"\",IF(OR(VLOOKUP($A406,Economática!$A$3:$AI$823,29,FALSE)=0,VLOOKUP($A406,Economática!$A$3:$AI$823,29,FALSE)=\"-\"),1/0,VLOOKUP($A406,Economática!$A$3:$AI$823,29,FALSE)))","v":""},{"$f":"IF($A406=\"\",\"\",IF(OR(VLOOKUP($A406,Economática!$A$3:$AI$823,30,FALSE)/E406=0,VLOOKUP($A406,Economática!$A$3:$AI$823,30,FALSE)/E406=\"-\",VLOOKUP($A406,Economática!$A$3:$AI$823,30,FALSE)/E406<33.33%,VLOOKUP($A406,Economática!$A$3:$AI$823,30,FALSE)/E406>100%),1/0,VLOOKUP($A406,Economática!$A$3:$AI$823,30,FALSE)/E406))","v":""},"",{"$f":"IF($A406=\"\",\"\",IF(OR(VLOOKUP($A406,Economática!$A$3:$AI$823,25,FALSE)=0,VLOOKUP($A406,Economática!$A$3:$AI$823,25,FALSE)=\"-\"),1/0,VLOOKUP($A406,Economática!$A$3:$AI$823,25,FALSE)))","v":""},{"$f":"CONCATENATE(Economática!B384,\" \",Economática!C384)","v":" "}]
[{"$f":"IF(Economática!AG385=\"\",\"\",Economática!AG385)","v":""},{"$f":"IF($A407=\"\",\"\",VLOOKUP(VLOOKUP($A407,Economática!$A$3:$AI$823,6,FALSE),Correção!$B$16:$C$36,2,FALSE))","v":""},{"$f":"IF(Economática!B385=\"\",\"\",Economática!B385)","v":""},{"$f":"IF($A407=\"\",\"\",IF(OR(VLOOKUP($A407,Economática!$A$3:$AI$823,8,FALSE)=0,VLOOKUP($A407,Economática!$A$3:$AI$823,8,FALSE)=\"-\"),1/0,VLOOKUP($A407,Economática!$A$3:$AI$823,8,FALSE)))","v":""},{"$f":"IF(A407=\"\",\"\",IF(ISERROR(VLOOKUP(A407,Correção!$B$2:$G$13,9,FALSE)),VLOOKUP($A407,Economática!$A$3:$AI$823,9,FALSE),VLOOKUP(A407,Correção!$B$2:$G$13,9,FALSE)))","v":""},{"$f":"IF($A407=\"\",\"\",Economática!G385)","v":""},{"$f":"IF($A407=\"\",\"\",IF(OR(VLOOKUP($A407,Economática!$A$3:$AI$823,10,FALSE)=0,VLOOKUP($A407,Economática!$A$3:$AI$823,10,FALSE)=\"-\"),1/0,VLOOKUP($A407,Economática!$A$3:$AI$823,10,FALSE)))","v":""},{"$f":"IF($A407=\"\",\"\",IF(OR(VLOOKUP($A407,Economática!$A$3:$AI$823,11,FALSE)=0,VLOOKUP($A407,Economática!$A$3:$AI$823,11,FALSE)=\"-\"),1/0,VLOOKUP($A407,Economática!$A$3:$AI$823,11,FALSE)))","v":""},{"$f":"IF($A407=\"\",\"\",IF(OR(VLOOKUP($A407,Economática!$A$3:$AI$823,12,FALSE)=0,VLOOKUP($A407,Economática!$A$3:$AI$823,12,FALSE)=\"-\"),1/0,VLOOKUP($A407,Economática!$A$3:$AI$823,12,FALSE)))","v":""},{"$f":"IF($A407=\"\",\"\",IF(OR(VLOOKUP($A407,Economática!$A$3:$AI$823,13,FALSE)=0,VLOOKUP($A407,Economática!$A$3:$AI$823,13,FALSE)=\"-\"),1/0,VLOOKUP($A407,Economática!$A$3:$AI$823,13,FALSE)))","v":""},{"$f":"IF($A407=\"\",\"\",IF(OR(VLOOKUP($A407,Economática!$A$3:$AI$823,14,FALSE)=0,VLOOKUP($A407,Economática!$A$3:$AI$823,14,FALSE)=\"-\"),1/0,VLOOKUP($A407,Economática!$A$3:$AI$823,14,FALSE)))","v":""},{"$f":"IF($A407=\"\",\"\",IF(OR(VLOOKUP($A407,Economática!$A$3:$AI$823,15,FALSE)=0,VLOOKUP($A407,Economática!$A$3:$AI$823,15,FALSE)=\"-\"),1/0,VLOOKUP($A407,Economática!$A$3:$AI$823,15,FALSE)))","v":""},{"$f":"IF($A407=\"\",\"\",IF(OR(VLOOKUP($A407,Economática!$A$3:$AI$823,16,FALSE)=0,VLOOKUP($A407,Economática!$A$3:$AI$823,16,FALSE)=\"-\"),1/0,VLOOKUP($A407,Economática!$A$3:$AI$823,16,FALSE)))","v":""},{"$f":"IF($A407=\"\",\"\",IF(OR(VLOOKUP($A407,Economática!$A$3:$AI$823,17,FALSE)=0,VLOOKUP($A407,Economática!$A$3:$AI$823,17,FALSE)=\"-\"),1/0,VLOOKUP($A407,Economática!$A$3:$AI$823,17,FALSE)))","v":""},{"$f":"IF($A407=\"\",\"\",IF(OR(VLOOKUP($A407,Economática!$A$3:$AI$823,18,FALSE)=0,VLOOKUP($A407,Economática!$A$3:$AI$823,18,FALSE)=\"-\"),1/0,VLOOKUP($A407,Economática!$A$3:$AI$823,18,FALSE)))","v":""},{"$f":"IF($A407=\"\",\"\",IF(OR(VLOOKUP($A407,Economática!$A$3:$AI$823,19,FALSE)=0,VLOOKUP($A407,Economática!$A$3:$AI$823,19,FALSE)=\"-\"),1/0,VLOOKUP($A407,Economática!$A$3:$AI$823,19,FALSE)))","v":""},{"$f":"IF($A407=\"\",\"\",VLOOKUP($A407,Economática!$A$3:$AI$823,20,FALSE)/E407)","v":""},"","","",{"$f":"IF($A407=\"\",\"\",IF(OR(VLOOKUP($A407,Economática!$A$3:$AI$823,21,FALSE)/100=0,VLOOKUP($A407,Economática!$A$3:$AI$823,21,FALSE)/100=\"-\"),1/0,VLOOKUP($A407,Economática!$A$3:$AI$823,21,FALSE)/100))","v":""},{"$f":"IF($A407=\"\",\"\",IF(OR(VLOOKUP($A407,Economática!$A$3:$AI$823,22,FALSE)/100=0,VLOOKUP($A407,Economática!$A$3:$AI$823,22,FALSE)/100=\"-\"),1/0,VLOOKUP($A407,Economática!$A$3:$AI$823,22,FALSE)/100))","v":""},{"$f":"IF($A407=\"\",\"\",IF(OR(VLOOKUP($A407,Economática!$A$3:$AI$823,23,FALSE)=0,VLOOKUP($A407,Economática!$A$3:$AI$823,23,FALSE)=\"-\"),1/0,VLOOKUP($A407,Economática!$A$3:$AI$823,23,FALSE)))","v":""},{"$f":"IF($A407=\"\",\"\",IF(OR(VLOOKUP($A407,Economática!$A$3:$AI$823,24,FALSE)=0,VLOOKUP($A407,Economática!$A$3:$AI$823,24,FALSE)=\"-\"),1/0,VLOOKUP($A407,Economática!$A$3:$AI$823,24,FALSE)))","v":""},{"$f":"IF($A407=\"\",\"\",IF(OR(VLOOKUP($A407,Economática!$A$3:$AI$823,25,FALSE)=0,VLOOKUP($A407,Economática!$A$3:$AI$823,25,FALSE)=\"-\"),1/0,VLOOKUP($A407,Economática!$A$3:$AI$823,25,FALSE)))","v":""},{"$f":"IF($A407=\"\",\"\",IF(ISERROR((F407+VLOOKUP($A407,Economática!$A$3:$AI$823,26,FALSE))/Y407),(F407+VLOOKUP($A407,Economática!$A$3:$AI$823,26,FALSE))/Y407,(F407+VLOOKUP($A407,Economática!$A$3:$AI$823,26,FALSE))/Y407))","v":""},{"$f":"IF($A407=\"\",\"\",IF(OR(-VLOOKUP($A407,Economática!$A$3:$AI$823,27,FALSE)=0,-VLOOKUP($A407,Economática!$A$3:$AI$823,27,FALSE)=\"-\"),1/0,-VLOOKUP($A407,Economática!$A$3:$AI$823,27,FALSE)))","v":""},"",{"$f":"IF($A407=\"\",\"\",IF(OR(VLOOKUP($A407,Economática!$A$3:$AI$823,28,FALSE)=0,VLOOKUP($A407,Economática!$A$3:$AI$823,28,FALSE)=\"-\"),1/0,VLOOKUP($A407,Economática!$A$3:$AI$823,28,FALSE)))","v":""},{"$f":"IF($A407=\"\",\"\",IF(OR(VLOOKUP($A407,Economática!$A$3:$AI$823,29,FALSE)=0,VLOOKUP($A407,Economática!$A$3:$AI$823,29,FALSE)=\"-\"),1/0,VLOOKUP($A407,Economática!$A$3:$AI$823,29,FALSE)))","v":""},{"$f":"IF($A407=\"\",\"\",IF(OR(VLOOKUP($A407,Economática!$A$3:$AI$823,30,FALSE)/E407=0,VLOOKUP($A407,Economática!$A$3:$AI$823,30,FALSE)/E407=\"-\",VLOOKUP($A407,Economática!$A$3:$AI$823,30,FALSE)/E407<33.33%,VLOOKUP($A407,Economática!$A$3:$AI$823,30,FALSE)/E407>100%),1/0,VLOOKUP($A407,Economática!$A$3:$AI$823,30,FALSE)/E407))","v":""},"",{"$f":"IF($A407=\"\",\"\",IF(OR(VLOOKUP($A407,Economática!$A$3:$AI$823,25,FALSE)=0,VLOOKUP($A407,Economática!$A$3:$AI$823,25,FALSE)=\"-\"),1/0,VLOOKUP($A407,Economática!$A$3:$AI$823,25,FALSE)))","v":""},{"$f":"CONCATENATE(Economática!B385,\" \",Economática!C385)","v":" "}]
[{"$f":"IF(Economática!AG386=\"\",\"\",Economática!AG386)","v":""},{"$f":"IF($A408=\"\",\"\",VLOOKUP(VLOOKUP($A408,Economática!$A$3:$AI$823,6,FALSE),Correção!$B$16:$C$36,2,FALSE))","v":""},{"$f":"IF(Economática!B386=\"\",\"\",Economática!B386)","v":""},{"$f":"IF($A408=\"\",\"\",IF(OR(VLOOKUP($A408,Economática!$A$3:$AI$823,8,FALSE)=0,VLOOKUP($A408,Economática!$A$3:$AI$823,8,FALSE)=\"-\"),1/0,VLOOKUP($A408,Economática!$A$3:$AI$823,8,FALSE)))","v":""},{"$f":"IF(A408=\"\",\"\",IF(ISERROR(VLOOKUP(A408,Correção!$B$2:$G$13,9,FALSE)),VLOOKUP($A408,Economática!$A$3:$AI$823,9,FALSE),VLOOKUP(A408,Correção!$B$2:$G$13,9,FALSE)))","v":""},{"$f":"IF($A408=\"\",\"\",Economática!G386)","v":""},{"$f":"IF($A408=\"\",\"\",IF(OR(VLOOKUP($A408,Economática!$A$3:$AI$823,10,FALSE)=0,VLOOKUP($A408,Economática!$A$3:$AI$823,10,FALSE)=\"-\"),1/0,VLOOKUP($A408,Economática!$A$3:$AI$823,10,FALSE)))","v":""},{"$f":"IF($A408=\"\",\"\",IF(OR(VLOOKUP($A408,Economática!$A$3:$AI$823,11,FALSE)=0,VLOOKUP($A408,Economática!$A$3:$AI$823,11,FALSE)=\"-\"),1/0,VLOOKUP($A408,Economática!$A$3:$AI$823,11,FALSE)))","v":""},{"$f":"IF($A408=\"\",\"\",IF(OR(VLOOKUP($A408,Economática!$A$3:$AI$823,12,FALSE)=0,VLOOKUP($A408,Economática!$A$3:$AI$823,12,FALSE)=\"-\"),1/0,VLOOKUP($A408,Economática!$A$3:$AI$823,12,FALSE)))","v":""},{"$f":"IF($A408=\"\",\"\",IF(OR(VLOOKUP($A408,Economática!$A$3:$AI$823,13,FALSE)=0,VLOOKUP($A408,Economática!$A$3:$AI$823,13,FALSE)=\"-\"),1/0,VLOOKUP($A408,Economática!$A$3:$AI$823,13,FALSE)))","v":""},{"$f":"IF($A408=\"\",\"\",IF(OR(VLOOKUP($A408,Economática!$A$3:$AI$823,14,FALSE)=0,VLOOKUP($A408,Economática!$A$3:$AI$823,14,FALSE)=\"-\"),1/0,VLOOKUP($A408,Economática!$A$3:$AI$823,14,FALSE)))","v":""},{"$f":"IF($A408=\"\",\"\",IF(OR(VLOOKUP($A408,Economática!$A$3:$AI$823,15,FALSE)=0,VLOOKUP($A408,Economática!$A$3:$AI$823,15,FALSE)=\"-\"),1/0,VLOOKUP($A408,Economática!$A$3:$AI$823,15,FALSE)))","v":""},{"$f":"IF($A408=\"\",\"\",IF(OR(VLOOKUP($A408,Economática!$A$3:$AI$823,16,FALSE)=0,VLOOKUP($A408,Economática!$A$3:$AI$823,16,FALSE)=\"-\"),1/0,VLOOKUP($A408,Economática!$A$3:$AI$823,16,FALSE)))","v":""},{"$f":"IF($A408=\"\",\"\",IF(OR(VLOOKUP($A408,Economática!$A$3:$AI$823,17,FALSE)=0,VLOOKUP($A408,Economática!$A$3:$AI$823,17,FALSE)=\"-\"),1/0,VLOOKUP($A408,Economática!$A$3:$AI$823,17,FALSE)))","v":""},{"$f":"IF($A408=\"\",\"\",IF(OR(VLOOKUP($A408,Economática!$A$3:$AI$823,18,FALSE)=0,VLOOKUP($A408,Economática!$A$3:$AI$823,18,FALSE)=\"-\"),1/0,VLOOKUP($A408,Economática!$A$3:$AI$823,18,FALSE)))","v":""},{"$f":"IF($A408=\"\",\"\",IF(OR(VLOOKUP($A408,Economática!$A$3:$AI$823,19,FALSE)=0,VLOOKUP($A408,Economática!$A$3:$AI$823,19,FALSE)=\"-\"),1/0,VLOOKUP($A408,Economática!$A$3:$AI$823,19,FALSE)))","v":""},{"$f":"IF($A408=\"\",\"\",VLOOKUP($A408,Economática!$A$3:$AI$823,20,FALSE)/E408)","v":""},"","","",{"$f":"IF($A408=\"\",\"\",IF(OR(VLOOKUP($A408,Economática!$A$3:$AI$823,21,FALSE)/100=0,VLOOKUP($A408,Economática!$A$3:$AI$823,21,FALSE)/100=\"-\"),1/0,VLOOKUP($A408,Economática!$A$3:$AI$823,21,FALSE)/100))","v":""},{"$f":"IF($A408=\"\",\"\",IF(OR(VLOOKUP($A408,Economática!$A$3:$AI$823,22,FALSE)/100=0,VLOOKUP($A408,Economática!$A$3:$AI$823,22,FALSE)/100=\"-\"),1/0,VLOOKUP($A408,Economática!$A$3:$AI$823,22,FALSE)/100))","v":""},{"$f":"IF($A408=\"\",\"\",IF(OR(VLOOKUP($A408,Economática!$A$3:$AI$823,23,FALSE)=0,VLOOKUP($A408,Economática!$A$3:$AI$823,23,FALSE)=\"-\"),1/0,VLOOKUP($A408,Economática!$A$3:$AI$823,23,FALSE)))","v":""},{"$f":"IF($A408=\"\",\"\",IF(OR(VLOOKUP($A408,Economática!$A$3:$AI$823,24,FALSE)=0,VLOOKUP($A408,Economática!$A$3:$AI$823,24,FALSE)=\"-\"),1/0,VLOOKUP($A408,Economática!$A$3:$AI$823,24,FALSE)))","v":""},{"$f":"IF($A408=\"\",\"\",IF(OR(VLOOKUP($A408,Economática!$A$3:$AI$823,25,FALSE)=0,VLOOKUP($A408,Economática!$A$3:$AI$823,25,FALSE)=\"-\"),1/0,VLOOKUP($A408,Economática!$A$3:$AI$823,25,FALSE)))","v":""},{"$f":"IF($A408=\"\",\"\",IF(ISERROR((F408+VLOOKUP($A408,Economática!$A$3:$AI$823,26,FALSE))/Y408),(F408+VLOOKUP($A408,Economática!$A$3:$AI$823,26,FALSE))/Y408,(F408+VLOOKUP($A408,Economática!$A$3:$AI$823,26,FALSE))/Y408))","v":""},{"$f":"IF($A408=\"\",\"\",IF(OR(-VLOOKUP($A408,Economática!$A$3:$AI$823,27,FALSE)=0,-VLOOKUP($A408,Economática!$A$3:$AI$823,27,FALSE)=\"-\"),1/0,-VLOOKUP($A408,Economática!$A$3:$AI$823,27,FALSE)))","v":""},"",{"$f":"IF($A408=\"\",\"\",IF(OR(VLOOKUP($A408,Economática!$A$3:$AI$823,28,FALSE)=0,VLOOKUP($A408,Economática!$A$3:$AI$823,28,FALSE)=\"-\"),1/0,VLOOKUP($A408,Economática!$A$3:$AI$823,28,FALSE)))","v":""},{"$f":"IF($A408=\"\",\"\",IF(OR(VLOOKUP($A408,Economática!$A$3:$AI$823,29,FALSE)=0,VLOOKUP($A408,Economática!$A$3:$AI$823,29,FALSE)=\"-\"),1/0,VLOOKUP($A408,Economática!$A$3:$AI$823,29,FALSE)))","v":""},{"$f":"IF($A408=\"\",\"\",IF(OR(VLOOKUP($A408,Economática!$A$3:$AI$823,30,FALSE)/E408=0,VLOOKUP($A408,Economática!$A$3:$AI$823,30,FALSE)/E408=\"-\",VLOOKUP($A408,Economática!$A$3:$AI$823,30,FALSE)/E408<33.33%,VLOOKUP($A408,Economática!$A$3:$AI$823,30,FALSE)/E408>100%),1/0,VLOOKUP($A408,Economática!$A$3:$AI$823,30,FALSE)/E408))","v":""},"",{"$f":"IF($A408=\"\",\"\",IF(OR(VLOOKUP($A408,Economática!$A$3:$AI$823,25,FALSE)=0,VLOOKUP($A408,Economática!$A$3:$AI$823,25,FALSE)=\"-\"),1/0,VLOOKUP($A408,Economática!$A$3:$AI$823,25,FALSE)))","v":""},{"$f":"CONCATENATE(Economática!B386,\" \",Economática!C386)","v":" "}]
[{"$f":"IF(Economática!AG387=\"\",\"\",Economática!AG387)","v":""},{"$f":"IF($A409=\"\",\"\",VLOOKUP(VLOOKUP($A409,Economática!$A$3:$AI$823,6,FALSE),Correção!$B$16:$C$36,2,FALSE))","v":""},{"$f":"IF(Economática!B387=\"\",\"\",Economática!B387)","v":""},{"$f":"IF($A409=\"\",\"\",IF(OR(VLOOKUP($A409,Economática!$A$3:$AI$823,8,FALSE)=0,VLOOKUP($A409,Economática!$A$3:$AI$823,8,FALSE)=\"-\"),1/0,VLOOKUP($A409,Economática!$A$3:$AI$823,8,FALSE)))","v":""},{"$f":"IF(A409=\"\",\"\",IF(ISERROR(VLOOKUP(A409,Correção!$B$2:$G$13,9,FALSE)),VLOOKUP($A409,Economática!$A$3:$AI$823,9,FALSE),VLOOKUP(A409,Correção!$B$2:$G$13,9,FALSE)))","v":""},{"$f":"IF($A409=\"\",\"\",Economática!G387)","v":""},{"$f":"IF($A409=\"\",\"\",IF(OR(VLOOKUP($A409,Economática!$A$3:$AI$823,10,FALSE)=0,VLOOKUP($A409,Economática!$A$3:$AI$823,10,FALSE)=\"-\"),1/0,VLOOKUP($A409,Economática!$A$3:$AI$823,10,FALSE)))","v":""},{"$f":"IF($A409=\"\",\"\",IF(OR(VLOOKUP($A409,Economática!$A$3:$AI$823,11,FALSE)=0,VLOOKUP($A409,Economática!$A$3:$AI$823,11,FALSE)=\"-\"),1/0,VLOOKUP($A409,Economática!$A$3:$AI$823,11,FALSE)))","v":""},{"$f":"IF($A409=\"\",\"\",IF(OR(VLOOKUP($A409,Economática!$A$3:$AI$823,12,FALSE)=0,VLOOKUP($A409,Economática!$A$3:$AI$823,12,FALSE)=\"-\"),1/0,VLOOKUP($A409,Economática!$A$3:$AI$823,12,FALSE)))","v":""},{"$f":"IF($A409=\"\",\"\",IF(OR(VLOOKUP($A409,Economática!$A$3:$AI$823,13,FALSE)=0,VLOOKUP($A409,Economática!$A$3:$AI$823,13,FALSE)=\"-\"),1/0,VLOOKUP($A409,Economática!$A$3:$AI$823,13,FALSE)))","v":""},{"$f":"IF($A409=\"\",\"\",IF(OR(VLOOKUP($A409,Economática!$A$3:$AI$823,14,FALSE)=0,VLOOKUP($A409,Economática!$A$3:$AI$823,14,FALSE)=\"-\"),1/0,VLOOKUP($A409,Economática!$A$3:$AI$823,14,FALSE)))","v":""},{"$f":"IF($A409=\"\",\"\",IF(OR(VLOOKUP($A409,Economática!$A$3:$AI$823,15,FALSE)=0,VLOOKUP($A409,Economática!$A$3:$AI$823,15,FALSE)=\"-\"),1/0,VLOOKUP($A409,Economática!$A$3:$AI$823,15,FALSE)))","v":""},{"$f":"IF($A409=\"\",\"\",IF(OR(VLOOKUP($A409,Economática!$A$3:$AI$823,16,FALSE)=0,VLOOKUP($A409,Economática!$A$3:$AI$823,16,FALSE)=\"-\"),1/0,VLOOKUP($A409,Economática!$A$3:$AI$823,16,FALSE)))","v":""},{"$f":"IF($A409=\"\",\"\",IF(OR(VLOOKUP($A409,Economática!$A$3:$AI$823,17,FALSE)=0,VLOOKUP($A409,Economática!$A$3:$AI$823,17,FALSE)=\"-\"),1/0,VLOOKUP($A409,Economática!$A$3:$AI$823,17,FALSE)))","v":""},{"$f":"IF($A409=\"\",\"\",IF(OR(VLOOKUP($A409,Economática!$A$3:$AI$823,18,FALSE)=0,VLOOKUP($A409,Economática!$A$3:$AI$823,18,FALSE)=\"-\"),1/0,VLOOKUP($A409,Economática!$A$3:$AI$823,18,FALSE)))","v":""},{"$f":"IF($A409=\"\",\"\",IF(OR(VLOOKUP($A409,Economática!$A$3:$AI$823,19,FALSE)=0,VLOOKUP($A409,Economática!$A$3:$AI$823,19,FALSE)=\"-\"),1/0,VLOOKUP($A409,Economática!$A$3:$AI$823,19,FALSE)))","v":""},{"$f":"IF($A409=\"\",\"\",VLOOKUP($A409,Economática!$A$3:$AI$823,20,FALSE)/E409)","v":""},"","","",{"$f":"IF($A409=\"\",\"\",IF(OR(VLOOKUP($A409,Economática!$A$3:$AI$823,21,FALSE)/100=0,VLOOKUP($A409,Economática!$A$3:$AI$823,21,FALSE)/100=\"-\"),1/0,VLOOKUP($A409,Economática!$A$3:$AI$823,21,FALSE)/100))","v":""},{"$f":"IF($A409=\"\",\"\",IF(OR(VLOOKUP($A409,Economática!$A$3:$AI$823,22,FALSE)/100=0,VLOOKUP($A409,Economática!$A$3:$AI$823,22,FALSE)/100=\"-\"),1/0,VLOOKUP($A409,Economática!$A$3:$AI$823,22,FALSE)/100))","v":""},{"$f":"IF($A409=\"\",\"\",IF(OR(VLOOKUP($A409,Economática!$A$3:$AI$823,23,FALSE)=0,VLOOKUP($A409,Economática!$A$3:$AI$823,23,FALSE)=\"-\"),1/0,VLOOKUP($A409,Economática!$A$3:$AI$823,23,FALSE)))","v":""},{"$f":"IF($A409=\"\",\"\",IF(OR(VLOOKUP($A409,Economática!$A$3:$AI$823,24,FALSE)=0,VLOOKUP($A409,Economática!$A$3:$AI$823,24,FALSE)=\"-\"),1/0,VLOOKUP($A409,Economática!$A$3:$AI$823,24,FALSE)))","v":""},{"$f":"IF($A409=\"\",\"\",IF(OR(VLOOKUP($A409,Economática!$A$3:$AI$823,25,FALSE)=0,VLOOKUP($A409,Economática!$A$3:$AI$823,25,FALSE)=\"-\"),1/0,VLOOKUP($A409,Economática!$A$3:$AI$823,25,FALSE)))","v":""},{"$f":"IF($A409=\"\",\"\",IF(ISERROR((F409+VLOOKUP($A409,Economática!$A$3:$AI$823,26,FALSE))/Y409),(F409+VLOOKUP($A409,Economática!$A$3:$AI$823,26,FALSE))/Y409,(F409+VLOOKUP($A409,Economática!$A$3:$AI$823,26,FALSE))/Y409))","v":""},{"$f":"IF($A409=\"\",\"\",IF(OR(-VLOOKUP($A409,Economática!$A$3:$AI$823,27,FALSE)=0,-VLOOKUP($A409,Economática!$A$3:$AI$823,27,FALSE)=\"-\"),1/0,-VLOOKUP($A409,Economática!$A$3:$AI$823,27,FALSE)))","v":""},"",{"$f":"IF($A409=\"\",\"\",IF(OR(VLOOKUP($A409,Economática!$A$3:$AI$823,28,FALSE)=0,VLOOKUP($A409,Economática!$A$3:$AI$823,28,FALSE)=\"-\"),1/0,VLOOKUP($A409,Economática!$A$3:$AI$823,28,FALSE)))","v":""},{"$f":"IF($A409=\"\",\"\",IF(OR(VLOOKUP($A409,Economática!$A$3:$AI$823,29,FALSE)=0,VLOOKUP($A409,Economática!$A$3:$AI$823,29,FALSE)=\"-\"),1/0,VLOOKUP($A409,Economática!$A$3:$AI$823,29,FALSE)))","v":""},{"$f":"IF($A409=\"\",\"\",IF(OR(VLOOKUP($A409,Economática!$A$3:$AI$823,30,FALSE)/E409=0,VLOOKUP($A409,Economática!$A$3:$AI$823,30,FALSE)/E409=\"-\",VLOOKUP($A409,Economática!$A$3:$AI$823,30,FALSE)/E409<33.33%,VLOOKUP($A409,Economática!$A$3:$AI$823,30,FALSE)/E409>100%),1/0,VLOOKUP($A409,Economática!$A$3:$AI$823,30,FALSE)/E409))","v":""},"",{"$f":"IF($A409=\"\",\"\",IF(OR(VLOOKUP($A409,Economática!$A$3:$AI$823,25,FALSE)=0,VLOOKUP($A409,Economática!$A$3:$AI$823,25,FALSE)=\"-\"),1/0,VLOOKUP($A409,Economática!$A$3:$AI$823,25,FALSE)))","v":""},{"$f":"CONCATENATE(Economática!B387,\" \",Economática!C387)","v":" "}]
[{"$f":"IF(Economática!AG388=\"\",\"\",Economática!AG388)","v":""},{"$f":"IF($A410=\"\",\"\",VLOOKUP(VLOOKUP($A410,Economática!$A$3:$AI$823,6,FALSE),Correção!$B$16:$C$36,2,FALSE))","v":""},{"$f":"IF(Economática!B388=\"\",\"\",Economática!B388)","v":""},{"$f":"IF($A410=\"\",\"\",IF(OR(VLOOKUP($A410,Economática!$A$3:$AI$823,8,FALSE)=0,VLOOKUP($A410,Economática!$A$3:$AI$823,8,FALSE)=\"-\"),1/0,VLOOKUP($A410,Economática!$A$3:$AI$823,8,FALSE)))","v":""},{"$f":"IF(A410=\"\",\"\",IF(ISERROR(VLOOKUP(A410,Correção!$B$2:$G$13,9,FALSE)),VLOOKUP($A410,Economática!$A$3:$AI$823,9,FALSE),VLOOKUP(A410,Correção!$B$2:$G$13,9,FALSE)))","v":""},{"$f":"IF($A410=\"\",\"\",Economática!G388)","v":""},{"$f":"IF($A410=\"\",\"\",IF(OR(VLOOKUP($A410,Economática!$A$3:$AI$823,10,FALSE)=0,VLOOKUP($A410,Economática!$A$3:$AI$823,10,FALSE)=\"-\"),1/0,VLOOKUP($A410,Economática!$A$3:$AI$823,10,FALSE)))","v":""},{"$f":"IF($A410=\"\",\"\",IF(OR(VLOOKUP($A410,Economática!$A$3:$AI$823,11,FALSE)=0,VLOOKUP($A410,Economática!$A$3:$AI$823,11,FALSE)=\"-\"),1/0,VLOOKUP($A410,Economática!$A$3:$AI$823,11,FALSE)))","v":""},{"$f":"IF($A410=\"\",\"\",IF(OR(VLOOKUP($A410,Economática!$A$3:$AI$823,12,FALSE)=0,VLOOKUP($A410,Economática!$A$3:$AI$823,12,FALSE)=\"-\"),1/0,VLOOKUP($A410,Economática!$A$3:$AI$823,12,FALSE)))","v":""},{"$f":"IF($A410=\"\",\"\",IF(OR(VLOOKUP($A410,Economática!$A$3:$AI$823,13,FALSE)=0,VLOOKUP($A410,Economática!$A$3:$AI$823,13,FALSE)=\"-\"),1/0,VLOOKUP($A410,Economática!$A$3:$AI$823,13,FALSE)))","v":""},{"$f":"IF($A410=\"\",\"\",IF(OR(VLOOKUP($A410,Economática!$A$3:$AI$823,14,FALSE)=0,VLOOKUP($A410,Economática!$A$3:$AI$823,14,FALSE)=\"-\"),1/0,VLOOKUP($A410,Economática!$A$3:$AI$823,14,FALSE)))","v":""},{"$f":"IF($A410=\"\",\"\",IF(OR(VLOOKUP($A410,Economática!$A$3:$AI$823,15,FALSE)=0,VLOOKUP($A410,Economática!$A$3:$AI$823,15,FALSE)=\"-\"),1/0,VLOOKUP($A410,Economática!$A$3:$AI$823,15,FALSE)))","v":""},{"$f":"IF($A410=\"\",\"\",IF(OR(VLOOKUP($A410,Economática!$A$3:$AI$823,16,FALSE)=0,VLOOKUP($A410,Economática!$A$3:$AI$823,16,FALSE)=\"-\"),1/0,VLOOKUP($A410,Economática!$A$3:$AI$823,16,FALSE)))","v":""},{"$f":"IF($A410=\"\",\"\",IF(OR(VLOOKUP($A410,Economática!$A$3:$AI$823,17,FALSE)=0,VLOOKUP($A410,Economática!$A$3:$AI$823,17,FALSE)=\"-\"),1/0,VLOOKUP($A410,Economática!$A$3:$AI$823,17,FALSE)))","v":""},{"$f":"IF($A410=\"\",\"\",IF(OR(VLOOKUP($A410,Economática!$A$3:$AI$823,18,FALSE)=0,VLOOKUP($A410,Economática!$A$3:$AI$823,18,FALSE)=\"-\"),1/0,VLOOKUP($A410,Economática!$A$3:$AI$823,18,FALSE)))","v":""},{"$f":"IF($A410=\"\",\"\",IF(OR(VLOOKUP($A410,Economática!$A$3:$AI$823,19,FALSE)=0,VLOOKUP($A410,Economática!$A$3:$AI$823,19,FALSE)=\"-\"),1/0,VLOOKUP($A410,Economática!$A$3:$AI$823,19,FALSE)))","v":""},{"$f":"IF($A410=\"\",\"\",VLOOKUP($A410,Economática!$A$3:$AI$823,20,FALSE)/E410)","v":""},"","","",{"$f":"IF($A410=\"\",\"\",IF(OR(VLOOKUP($A410,Economática!$A$3:$AI$823,21,FALSE)/100=0,VLOOKUP($A410,Economática!$A$3:$AI$823,21,FALSE)/100=\"-\"),1/0,VLOOKUP($A410,Economática!$A$3:$AI$823,21,FALSE)/100))","v":""},{"$f":"IF($A410=\"\",\"\",IF(OR(VLOOKUP($A410,Economática!$A$3:$AI$823,22,FALSE)/100=0,VLOOKUP($A410,Economática!$A$3:$AI$823,22,FALSE)/100=\"-\"),1/0,VLOOKUP($A410,Economática!$A$3:$AI$823,22,FALSE)/100))","v":""},{"$f":"IF($A410=\"\",\"\",IF(OR(VLOOKUP($A410,Economática!$A$3:$AI$823,23,FALSE)=0,VLOOKUP($A410,Economática!$A$3:$AI$823,23,FALSE)=\"-\"),1/0,VLOOKUP($A410,Economática!$A$3:$AI$823,23,FALSE)))","v":""},{"$f":"IF($A410=\"\",\"\",IF(OR(VLOOKUP($A410,Economática!$A$3:$AI$823,24,FALSE)=0,VLOOKUP($A410,Economática!$A$3:$AI$823,24,FALSE)=\"-\"),1/0,VLOOKUP($A410,Economática!$A$3:$AI$823,24,FALSE)))","v":""},{"$f":"IF($A410=\"\",\"\",IF(OR(VLOOKUP($A410,Economática!$A$3:$AI$823,25,FALSE)=0,VLOOKUP($A410,Economática!$A$3:$AI$823,25,FALSE)=\"-\"),1/0,VLOOKUP($A410,Economática!$A$3:$AI$823,25,FALSE)))","v":""},{"$f":"IF($A410=\"\",\"\",IF(ISERROR((F410+VLOOKUP($A410,Economática!$A$3:$AI$823,26,FALSE))/Y410),(F410+VLOOKUP($A410,Economática!$A$3:$AI$823,26,FALSE))/Y410,(F410+VLOOKUP($A410,Economática!$A$3:$AI$823,26,FALSE))/Y410))","v":""},{"$f":"IF($A410=\"\",\"\",IF(OR(-VLOOKUP($A410,Economática!$A$3:$AI$823,27,FALSE)=0,-VLOOKUP($A410,Economática!$A$3:$AI$823,27,FALSE)=\"-\"),1/0,-VLOOKUP($A410,Economática!$A$3:$AI$823,27,FALSE)))","v":""},"",{"$f":"IF($A410=\"\",\"\",IF(OR(VLOOKUP($A410,Economática!$A$3:$AI$823,28,FALSE)=0,VLOOKUP($A410,Economática!$A$3:$AI$823,28,FALSE)=\"-\"),1/0,VLOOKUP($A410,Economática!$A$3:$AI$823,28,FALSE)))","v":""},{"$f":"IF($A410=\"\",\"\",IF(OR(VLOOKUP($A410,Economática!$A$3:$AI$823,29,FALSE)=0,VLOOKUP($A410,Economática!$A$3:$AI$823,29,FALSE)=\"-\"),1/0,VLOOKUP($A410,Economática!$A$3:$AI$823,29,FALSE)))","v":""},{"$f":"IF($A410=\"\",\"\",IF(OR(VLOOKUP($A410,Economática!$A$3:$AI$823,30,FALSE)/E410=0,VLOOKUP($A410,Economática!$A$3:$AI$823,30,FALSE)/E410=\"-\",VLOOKUP($A410,Economática!$A$3:$AI$823,30,FALSE)/E410<33.33%,VLOOKUP($A410,Economática!$A$3:$AI$823,30,FALSE)/E410>100%),1/0,VLOOKUP($A410,Economática!$A$3:$AI$823,30,FALSE)/E410))","v":""},"",{"$f":"IF($A410=\"\",\"\",IF(OR(VLOOKUP($A410,Economática!$A$3:$AI$823,25,FALSE)=0,VLOOKUP($A410,Economática!$A$3:$AI$823,25,FALSE)=\"-\"),1/0,VLOOKUP($A410,Economática!$A$3:$AI$823,25,FALSE)))","v":""},{"$f":"CONCATENATE(Economática!B388,\" \",Economática!C388)","v":" "}]
[{"$f":"IF(Economática!AG389=\"\",\"\",Economática!AG389)","v":""},{"$f":"IF($A411=\"\",\"\",VLOOKUP(VLOOKUP($A411,Economática!$A$3:$AI$823,6,FALSE),Correção!$B$16:$C$36,2,FALSE))","v":""},{"$f":"IF(Economática!B389=\"\",\"\",Economática!B389)","v":""},{"$f":"IF($A411=\"\",\"\",IF(OR(VLOOKUP($A411,Economática!$A$3:$AI$823,8,FALSE)=0,VLOOKUP($A411,Economática!$A$3:$AI$823,8,FALSE)=\"-\"),1/0,VLOOKUP($A411,Economática!$A$3:$AI$823,8,FALSE)))","v":""},{"$f":"IF(A411=\"\",\"\",IF(ISERROR(VLOOKUP(A411,Correção!$B$2:$G$13,9,FALSE)),VLOOKUP($A411,Economática!$A$3:$AI$823,9,FALSE),VLOOKUP(A411,Correção!$B$2:$G$13,9,FALSE)))","v":""},{"$f":"IF($A411=\"\",\"\",Economática!G389)","v":""},{"$f":"IF($A411=\"\",\"\",IF(OR(VLOOKUP($A411,Economática!$A$3:$AI$823,10,FALSE)=0,VLOOKUP($A411,Economática!$A$3:$AI$823,10,FALSE)=\"-\"),1/0,VLOOKUP($A411,Economática!$A$3:$AI$823,10,FALSE)))","v":""},{"$f":"IF($A411=\"\",\"\",IF(OR(VLOOKUP($A411,Economática!$A$3:$AI$823,11,FALSE)=0,VLOOKUP($A411,Economática!$A$3:$AI$823,11,FALSE)=\"-\"),1/0,VLOOKUP($A411,Economática!$A$3:$AI$823,11,FALSE)))","v":""},{"$f":"IF($A411=\"\",\"\",IF(OR(VLOOKUP($A411,Economática!$A$3:$AI$823,12,FALSE)=0,VLOOKUP($A411,Economática!$A$3:$AI$823,12,FALSE)=\"-\"),1/0,VLOOKUP($A411,Economática!$A$3:$AI$823,12,FALSE)))","v":""},{"$f":"IF($A411=\"\",\"\",IF(OR(VLOOKUP($A411,Economática!$A$3:$AI$823,13,FALSE)=0,VLOOKUP($A411,Economática!$A$3:$AI$823,13,FALSE)=\"-\"),1/0,VLOOKUP($A411,Economática!$A$3:$AI$823,13,FALSE)))","v":""},{"$f":"IF($A411=\"\",\"\",IF(OR(VLOOKUP($A411,Economática!$A$3:$AI$823,14,FALSE)=0,VLOOKUP($A411,Economática!$A$3:$AI$823,14,FALSE)=\"-\"),1/0,VLOOKUP($A411,Economática!$A$3:$AI$823,14,FALSE)))","v":""},{"$f":"IF($A411=\"\",\"\",IF(OR(VLOOKUP($A411,Economática!$A$3:$AI$823,15,FALSE)=0,VLOOKUP($A411,Economática!$A$3:$AI$823,15,FALSE)=\"-\"),1/0,VLOOKUP($A411,Economática!$A$3:$AI$823,15,FALSE)))","v":""},{"$f":"IF($A411=\"\",\"\",IF(OR(VLOOKUP($A411,Economática!$A$3:$AI$823,16,FALSE)=0,VLOOKUP($A411,Economática!$A$3:$AI$823,16,FALSE)=\"-\"),1/0,VLOOKUP($A411,Economática!$A$3:$AI$823,16,FALSE)))","v":""},{"$f":"IF($A411=\"\",\"\",IF(OR(VLOOKUP($A411,Economática!$A$3:$AI$823,17,FALSE)=0,VLOOKUP($A411,Economática!$A$3:$AI$823,17,FALSE)=\"-\"),1/0,VLOOKUP($A411,Economática!$A$3:$AI$823,17,FALSE)))","v":""},{"$f":"IF($A411=\"\",\"\",IF(OR(VLOOKUP($A411,Economática!$A$3:$AI$823,18,FALSE)=0,VLOOKUP($A411,Economática!$A$3:$AI$823,18,FALSE)=\"-\"),1/0,VLOOKUP($A411,Economática!$A$3:$AI$823,18,FALSE)))","v":""},{"$f":"IF($A411=\"\",\"\",IF(OR(VLOOKUP($A411,Economática!$A$3:$AI$823,19,FALSE)=0,VLOOKUP($A411,Economática!$A$3:$AI$823,19,FALSE)=\"-\"),1/0,VLOOKUP($A411,Economática!$A$3:$AI$823,19,FALSE)))","v":""},{"$f":"IF($A411=\"\",\"\",VLOOKUP($A411,Economática!$A$3:$AI$823,20,FALSE)/E411)","v":""},"","","",{"$f":"IF($A411=\"\",\"\",IF(OR(VLOOKUP($A411,Economática!$A$3:$AI$823,21,FALSE)/100=0,VLOOKUP($A411,Economática!$A$3:$AI$823,21,FALSE)/100=\"-\"),1/0,VLOOKUP($A411,Economática!$A$3:$AI$823,21,FALSE)/100))","v":""},{"$f":"IF($A411=\"\",\"\",IF(OR(VLOOKUP($A411,Economática!$A$3:$AI$823,22,FALSE)/100=0,VLOOKUP($A411,Economática!$A$3:$AI$823,22,FALSE)/100=\"-\"),1/0,VLOOKUP($A411,Economática!$A$3:$AI$823,22,FALSE)/100))","v":""},{"$f":"IF($A411=\"\",\"\",IF(OR(VLOOKUP($A411,Economática!$A$3:$AI$823,23,FALSE)=0,VLOOKUP($A411,Economática!$A$3:$AI$823,23,FALSE)=\"-\"),1/0,VLOOKUP($A411,Economática!$A$3:$AI$823,23,FALSE)))","v":""},{"$f":"IF($A411=\"\",\"\",IF(OR(VLOOKUP($A411,Economática!$A$3:$AI$823,24,FALSE)=0,VLOOKUP($A411,Economática!$A$3:$AI$823,24,FALSE)=\"-\"),1/0,VLOOKUP($A411,Economática!$A$3:$AI$823,24,FALSE)))","v":""},{"$f":"IF($A411=\"\",\"\",IF(OR(VLOOKUP($A411,Economática!$A$3:$AI$823,25,FALSE)=0,VLOOKUP($A411,Economática!$A$3:$AI$823,25,FALSE)=\"-\"),1/0,VLOOKUP($A411,Economática!$A$3:$AI$823,25,FALSE)))","v":""},{"$f":"IF($A411=\"\",\"\",IF(ISERROR((F411+VLOOKUP($A411,Economática!$A$3:$AI$823,26,FALSE))/Y411),(F411+VLOOKUP($A411,Economática!$A$3:$AI$823,26,FALSE))/Y411,(F411+VLOOKUP($A411,Economática!$A$3:$AI$823,26,FALSE))/Y411))","v":""},{"$f":"IF($A411=\"\",\"\",IF(OR(-VLOOKUP($A411,Economática!$A$3:$AI$823,27,FALSE)=0,-VLOOKUP($A411,Economática!$A$3:$AI$823,27,FALSE)=\"-\"),1/0,-VLOOKUP($A411,Economática!$A$3:$AI$823,27,FALSE)))","v":""},"",{"$f":"IF($A411=\"\",\"\",IF(OR(VLOOKUP($A411,Economática!$A$3:$AI$823,28,FALSE)=0,VLOOKUP($A411,Economática!$A$3:$AI$823,28,FALSE)=\"-\"),1/0,VLOOKUP($A411,Economática!$A$3:$AI$823,28,FALSE)))","v":""},{"$f":"IF($A411=\"\",\"\",IF(OR(VLOOKUP($A411,Economática!$A$3:$AI$823,29,FALSE)=0,VLOOKUP($A411,Economática!$A$3:$AI$823,29,FALSE)=\"-\"),1/0,VLOOKUP($A411,Economática!$A$3:$AI$823,29,FALSE)))","v":""},{"$f":"IF($A411=\"\",\"\",IF(OR(VLOOKUP($A411,Economática!$A$3:$AI$823,30,FALSE)/E411=0,VLOOKUP($A411,Economática!$A$3:$AI$823,30,FALSE)/E411=\"-\",VLOOKUP($A411,Economática!$A$3:$AI$823,30,FALSE)/E411<33.33%,VLOOKUP($A411,Economática!$A$3:$AI$823,30,FALSE)/E411>100%),1/0,VLOOKUP($A411,Economática!$A$3:$AI$823,30,FALSE)/E411))","v":""},"",{"$f":"IF($A411=\"\",\"\",IF(OR(VLOOKUP($A411,Economática!$A$3:$AI$823,25,FALSE)=0,VLOOKUP($A411,Economática!$A$3:$AI$823,25,FALSE)=\"-\"),1/0,VLOOKUP($A411,Economática!$A$3:$AI$823,25,FALSE)))","v":""},{"$f":"CONCATENATE(Economática!B389,\" \",Economática!C389)","v":" "}]
[{"$f":"IF(Economática!AG390=\"\",\"\",Economática!AG390)","v":""},{"$f":"IF($A412=\"\",\"\",VLOOKUP(VLOOKUP($A412,Economática!$A$3:$AI$823,6,FALSE),Correção!$B$16:$C$36,2,FALSE))","v":""},{"$f":"IF(Economática!B390=\"\",\"\",Economática!B390)","v":""},{"$f":"IF($A412=\"\",\"\",IF(OR(VLOOKUP($A412,Economática!$A$3:$AI$823,8,FALSE)=0,VLOOKUP($A412,Economática!$A$3:$AI$823,8,FALSE)=\"-\"),1/0,VLOOKUP($A412,Economática!$A$3:$AI$823,8,FALSE)))","v":""},{"$f":"IF(A412=\"\",\"\",IF(ISERROR(VLOOKUP(A412,Correção!$B$2:$G$13,9,FALSE)),VLOOKUP($A412,Economática!$A$3:$AI$823,9,FALSE),VLOOKUP(A412,Correção!$B$2:$G$13,9,FALSE)))","v":""},{"$f":"IF($A412=\"\",\"\",Economática!G390)","v":""},{"$f":"IF($A412=\"\",\"\",IF(OR(VLOOKUP($A412,Economática!$A$3:$AI$823,10,FALSE)=0,VLOOKUP($A412,Economática!$A$3:$AI$823,10,FALSE)=\"-\"),1/0,VLOOKUP($A412,Economática!$A$3:$AI$823,10,FALSE)))","v":""},{"$f":"IF($A412=\"\",\"\",IF(OR(VLOOKUP($A412,Economática!$A$3:$AI$823,11,FALSE)=0,VLOOKUP($A412,Economática!$A$3:$AI$823,11,FALSE)=\"-\"),1/0,VLOOKUP($A412,Economática!$A$3:$AI$823,11,FALSE)))","v":""},{"$f":"IF($A412=\"\",\"\",IF(OR(VLOOKUP($A412,Economática!$A$3:$AI$823,12,FALSE)=0,VLOOKUP($A412,Economática!$A$3:$AI$823,12,FALSE)=\"-\"),1/0,VLOOKUP($A412,Economática!$A$3:$AI$823,12,FALSE)))","v":""},{"$f":"IF($A412=\"\",\"\",IF(OR(VLOOKUP($A412,Economática!$A$3:$AI$823,13,FALSE)=0,VLOOKUP($A412,Economática!$A$3:$AI$823,13,FALSE)=\"-\"),1/0,VLOOKUP($A412,Economática!$A$3:$AI$823,13,FALSE)))","v":""},{"$f":"IF($A412=\"\",\"\",IF(OR(VLOOKUP($A412,Economática!$A$3:$AI$823,14,FALSE)=0,VLOOKUP($A412,Economática!$A$3:$AI$823,14,FALSE)=\"-\"),1/0,VLOOKUP($A412,Economática!$A$3:$AI$823,14,FALSE)))","v":""},{"$f":"IF($A412=\"\",\"\",IF(OR(VLOOKUP($A412,Economática!$A$3:$AI$823,15,FALSE)=0,VLOOKUP($A412,Economática!$A$3:$AI$823,15,FALSE)=\"-\"),1/0,VLOOKUP($A412,Economática!$A$3:$AI$823,15,FALSE)))","v":""},{"$f":"IF($A412=\"\",\"\",IF(OR(VLOOKUP($A412,Economática!$A$3:$AI$823,16,FALSE)=0,VLOOKUP($A412,Economática!$A$3:$AI$823,16,FALSE)=\"-\"),1/0,VLOOKUP($A412,Economática!$A$3:$AI$823,16,FALSE)))","v":""},{"$f":"IF($A412=\"\",\"\",IF(OR(VLOOKUP($A412,Economática!$A$3:$AI$823,17,FALSE)=0,VLOOKUP($A412,Economática!$A$3:$AI$823,17,FALSE)=\"-\"),1/0,VLOOKUP($A412,Economática!$A$3:$AI$823,17,FALSE)))","v":""},{"$f":"IF($A412=\"\",\"\",IF(OR(VLOOKUP($A412,Economática!$A$3:$AI$823,18,FALSE)=0,VLOOKUP($A412,Economática!$A$3:$AI$823,18,FALSE)=\"-\"),1/0,VLOOKUP($A412,Economática!$A$3:$AI$823,18,FALSE)))","v":""},{"$f":"IF($A412=\"\",\"\",IF(OR(VLOOKUP($A412,Economática!$A$3:$AI$823,19,FALSE)=0,VLOOKUP($A412,Economática!$A$3:$AI$823,19,FALSE)=\"-\"),1/0,VLOOKUP($A412,Economática!$A$3:$AI$823,19,FALSE)))","v":""},{"$f":"IF($A412=\"\",\"\",VLOOKUP($A412,Economática!$A$3:$AI$823,20,FALSE)/E412)","v":""},"","","",{"$f":"IF($A412=\"\",\"\",IF(OR(VLOOKUP($A412,Economática!$A$3:$AI$823,21,FALSE)/100=0,VLOOKUP($A412,Economática!$A$3:$AI$823,21,FALSE)/100=\"-\"),1/0,VLOOKUP($A412,Economática!$A$3:$AI$823,21,FALSE)/100))","v":""},{"$f":"IF($A412=\"\",\"\",IF(OR(VLOOKUP($A412,Economática!$A$3:$AI$823,22,FALSE)/100=0,VLOOKUP($A412,Economática!$A$3:$AI$823,22,FALSE)/100=\"-\"),1/0,VLOOKUP($A412,Economática!$A$3:$AI$823,22,FALSE)/100))","v":""},{"$f":"IF($A412=\"\",\"\",IF(OR(VLOOKUP($A412,Economática!$A$3:$AI$823,23,FALSE)=0,VLOOKUP($A412,Economática!$A$3:$AI$823,23,FALSE)=\"-\"),1/0,VLOOKUP($A412,Economática!$A$3:$AI$823,23,FALSE)))","v":""},{"$f":"IF($A412=\"\",\"\",IF(OR(VLOOKUP($A412,Economática!$A$3:$AI$823,24,FALSE)=0,VLOOKUP($A412,Economática!$A$3:$AI$823,24,FALSE)=\"-\"),1/0,VLOOKUP($A412,Economática!$A$3:$AI$823,24,FALSE)))","v":""},{"$f":"IF($A412=\"\",\"\",IF(OR(VLOOKUP($A412,Economática!$A$3:$AI$823,25,FALSE)=0,VLOOKUP($A412,Economática!$A$3:$AI$823,25,FALSE)=\"-\"),1/0,VLOOKUP($A412,Economática!$A$3:$AI$823,25,FALSE)))","v":""},{"$f":"IF($A412=\"\",\"\",IF(ISERROR((F412+VLOOKUP($A412,Economática!$A$3:$AI$823,26,FALSE))/Y412),(F412+VLOOKUP($A412,Economática!$A$3:$AI$823,26,FALSE))/Y412,(F412+VLOOKUP($A412,Economática!$A$3:$AI$823,26,FALSE))/Y412))","v":""},{"$f":"IF($A412=\"\",\"\",IF(OR(-VLOOKUP($A412,Economática!$A$3:$AI$823,27,FALSE)=0,-VLOOKUP($A412,Economática!$A$3:$AI$823,27,FALSE)=\"-\"),1/0,-VLOOKUP($A412,Economática!$A$3:$AI$823,27,FALSE)))","v":""},"",{"$f":"IF($A412=\"\",\"\",IF(OR(VLOOKUP($A412,Economática!$A$3:$AI$823,28,FALSE)=0,VLOOKUP($A412,Economática!$A$3:$AI$823,28,FALSE)=\"-\"),1/0,VLOOKUP($A412,Economática!$A$3:$AI$823,28,FALSE)))","v":""},{"$f":"IF($A412=\"\",\"\",IF(OR(VLOOKUP($A412,Economática!$A$3:$AI$823,29,FALSE)=0,VLOOKUP($A412,Economática!$A$3:$AI$823,29,FALSE)=\"-\"),1/0,VLOOKUP($A412,Economática!$A$3:$AI$823,29,FALSE)))","v":""},{"$f":"IF($A412=\"\",\"\",IF(OR(VLOOKUP($A412,Economática!$A$3:$AI$823,30,FALSE)/E412=0,VLOOKUP($A412,Economática!$A$3:$AI$823,30,FALSE)/E412=\"-\",VLOOKUP($A412,Economática!$A$3:$AI$823,30,FALSE)/E412<33.33%,VLOOKUP($A412,Economática!$A$3:$AI$823,30,FALSE)/E412>100%),1/0,VLOOKUP($A412,Economática!$A$3:$AI$823,30,FALSE)/E412))","v":""},"",{"$f":"IF($A412=\"\",\"\",IF(OR(VLOOKUP($A412,Economática!$A$3:$AI$823,25,FALSE)=0,VLOOKUP($A412,Economática!$A$3:$AI$823,25,FALSE)=\"-\"),1/0,VLOOKUP($A412,Economática!$A$3:$AI$823,25,FALSE)))","v":""},{"$f":"CONCATENATE(Economática!B390,\" \",Economática!C390)","v":" "}]
[{"$f":"IF(Economática!AG391=\"\",\"\",Economática!AG391)","v":""},{"$f":"IF($A413=\"\",\"\",VLOOKUP(VLOOKUP($A413,Economática!$A$3:$AI$823,6,FALSE),Correção!$B$16:$C$36,2,FALSE))","v":""},{"$f":"IF(Economática!B391=\"\",\"\",Economática!B391)","v":""},{"$f":"IF($A413=\"\",\"\",IF(OR(VLOOKUP($A413,Economática!$A$3:$AI$823,8,FALSE)=0,VLOOKUP($A413,Economática!$A$3:$AI$823,8,FALSE)=\"-\"),1/0,VLOOKUP($A413,Economática!$A$3:$AI$823,8,FALSE)))","v":""},{"$f":"IF(A413=\"\",\"\",IF(ISERROR(VLOOKUP(A413,Correção!$B$2:$G$13,9,FALSE)),VLOOKUP($A413,Economática!$A$3:$AI$823,9,FALSE),VLOOKUP(A413,Correção!$B$2:$G$13,9,FALSE)))","v":""},{"$f":"IF($A413=\"\",\"\",Economática!G391)","v":""},{"$f":"IF($A413=\"\",\"\",IF(OR(VLOOKUP($A413,Economática!$A$3:$AI$823,10,FALSE)=0,VLOOKUP($A413,Economática!$A$3:$AI$823,10,FALSE)=\"-\"),1/0,VLOOKUP($A413,Economática!$A$3:$AI$823,10,FALSE)))","v":""},{"$f":"IF($A413=\"\",\"\",IF(OR(VLOOKUP($A413,Economática!$A$3:$AI$823,11,FALSE)=0,VLOOKUP($A413,Economática!$A$3:$AI$823,11,FALSE)=\"-\"),1/0,VLOOKUP($A413,Economática!$A$3:$AI$823,11,FALSE)))","v":""},{"$f":"IF($A413=\"\",\"\",IF(OR(VLOOKUP($A413,Economática!$A$3:$AI$823,12,FALSE)=0,VLOOKUP($A413,Economática!$A$3:$AI$823,12,FALSE)=\"-\"),1/0,VLOOKUP($A413,Economática!$A$3:$AI$823,12,FALSE)))","v":""},{"$f":"IF($A413=\"\",\"\",IF(OR(VLOOKUP($A413,Economática!$A$3:$AI$823,13,FALSE)=0,VLOOKUP($A413,Economática!$A$3:$AI$823,13,FALSE)=\"-\"),1/0,VLOOKUP($A413,Economática!$A$3:$AI$823,13,FALSE)))","v":""},{"$f":"IF($A413=\"\",\"\",IF(OR(VLOOKUP($A413,Economática!$A$3:$AI$823,14,FALSE)=0,VLOOKUP($A413,Economática!$A$3:$AI$823,14,FALSE)=\"-\"),1/0,VLOOKUP($A413,Economática!$A$3:$AI$823,14,FALSE)))","v":""},{"$f":"IF($A413=\"\",\"\",IF(OR(VLOOKUP($A413,Economática!$A$3:$AI$823,15,FALSE)=0,VLOOKUP($A413,Economática!$A$3:$AI$823,15,FALSE)=\"-\"),1/0,VLOOKUP($A413,Economática!$A$3:$AI$823,15,FALSE)))","v":""},{"$f":"IF($A413=\"\",\"\",IF(OR(VLOOKUP($A413,Economática!$A$3:$AI$823,16,FALSE)=0,VLOOKUP($A413,Economática!$A$3:$AI$823,16,FALSE)=\"-\"),1/0,VLOOKUP($A413,Economática!$A$3:$AI$823,16,FALSE)))","v":""},{"$f":"IF($A413=\"\",\"\",IF(OR(VLOOKUP($A413,Economática!$A$3:$AI$823,17,FALSE)=0,VLOOKUP($A413,Economática!$A$3:$AI$823,17,FALSE)=\"-\"),1/0,VLOOKUP($A413,Economática!$A$3:$AI$823,17,FALSE)))","v":""},{"$f":"IF($A413=\"\",\"\",IF(OR(VLOOKUP($A413,Economática!$A$3:$AI$823,18,FALSE)=0,VLOOKUP($A413,Economática!$A$3:$AI$823,18,FALSE)=\"-\"),1/0,VLOOKUP($A413,Economática!$A$3:$AI$823,18,FALSE)))","v":""},{"$f":"IF($A413=\"\",\"\",IF(OR(VLOOKUP($A413,Economática!$A$3:$AI$823,19,FALSE)=0,VLOOKUP($A413,Economática!$A$3:$AI$823,19,FALSE)=\"-\"),1/0,VLOOKUP($A413,Economática!$A$3:$AI$823,19,FALSE)))","v":""},{"$f":"IF($A413=\"\",\"\",VLOOKUP($A413,Economática!$A$3:$AI$823,20,FALSE)/E413)","v":""},"","","",{"$f":"IF($A413=\"\",\"\",IF(OR(VLOOKUP($A413,Economática!$A$3:$AI$823,21,FALSE)/100=0,VLOOKUP($A413,Economática!$A$3:$AI$823,21,FALSE)/100=\"-\"),1/0,VLOOKUP($A413,Economática!$A$3:$AI$823,21,FALSE)/100))","v":""},{"$f":"IF($A413=\"\",\"\",IF(OR(VLOOKUP($A413,Economática!$A$3:$AI$823,22,FALSE)/100=0,VLOOKUP($A413,Economática!$A$3:$AI$823,22,FALSE)/100=\"-\"),1/0,VLOOKUP($A413,Economática!$A$3:$AI$823,22,FALSE)/100))","v":""},{"$f":"IF($A413=\"\",\"\",IF(OR(VLOOKUP($A413,Economática!$A$3:$AI$823,23,FALSE)=0,VLOOKUP($A413,Economática!$A$3:$AI$823,23,FALSE)=\"-\"),1/0,VLOOKUP($A413,Economática!$A$3:$AI$823,23,FALSE)))","v":""},{"$f":"IF($A413=\"\",\"\",IF(OR(VLOOKUP($A413,Economática!$A$3:$AI$823,24,FALSE)=0,VLOOKUP($A413,Economática!$A$3:$AI$823,24,FALSE)=\"-\"),1/0,VLOOKUP($A413,Economática!$A$3:$AI$823,24,FALSE)))","v":""},{"$f":"IF($A413=\"\",\"\",IF(OR(VLOOKUP($A413,Economática!$A$3:$AI$823,25,FALSE)=0,VLOOKUP($A413,Economática!$A$3:$AI$823,25,FALSE)=\"-\"),1/0,VLOOKUP($A413,Economática!$A$3:$AI$823,25,FALSE)))","v":""},{"$f":"IF($A413=\"\",\"\",IF(ISERROR((F413+VLOOKUP($A413,Economática!$A$3:$AI$823,26,FALSE))/Y413),(F413+VLOOKUP($A413,Economática!$A$3:$AI$823,26,FALSE))/Y413,(F413+VLOOKUP($A413,Economática!$A$3:$AI$823,26,FALSE))/Y413))","v":""},{"$f":"IF($A413=\"\",\"\",IF(OR(-VLOOKUP($A413,Economática!$A$3:$AI$823,27,FALSE)=0,-VLOOKUP($A413,Economática!$A$3:$AI$823,27,FALSE)=\"-\"),1/0,-VLOOKUP($A413,Economática!$A$3:$AI$823,27,FALSE)))","v":""},"",{"$f":"IF($A413=\"\",\"\",IF(OR(VLOOKUP($A413,Economática!$A$3:$AI$823,28,FALSE)=0,VLOOKUP($A413,Economática!$A$3:$AI$823,28,FALSE)=\"-\"),1/0,VLOOKUP($A413,Economática!$A$3:$AI$823,28,FALSE)))","v":""},{"$f":"IF($A413=\"\",\"\",IF(OR(VLOOKUP($A413,Economática!$A$3:$AI$823,29,FALSE)=0,VLOOKUP($A413,Economática!$A$3:$AI$823,29,FALSE)=\"-\"),1/0,VLOOKUP($A413,Economática!$A$3:$AI$823,29,FALSE)))","v":""},{"$f":"IF($A413=\"\",\"\",IF(OR(VLOOKUP($A413,Economática!$A$3:$AI$823,30,FALSE)/E413=0,VLOOKUP($A413,Economática!$A$3:$AI$823,30,FALSE)/E413=\"-\",VLOOKUP($A413,Economática!$A$3:$AI$823,30,FALSE)/E413<33.33%,VLOOKUP($A413,Economática!$A$3:$AI$823,30,FALSE)/E413>100%),1/0,VLOOKUP($A413,Economática!$A$3:$AI$823,30,FALSE)/E413))","v":""},"",{"$f":"IF($A413=\"\",\"\",IF(OR(VLOOKUP($A413,Economática!$A$3:$AI$823,25,FALSE)=0,VLOOKUP($A413,Economática!$A$3:$AI$823,25,FALSE)=\"-\"),1/0,VLOOKUP($A413,Economática!$A$3:$AI$823,25,FALSE)))","v":""},{"$f":"CONCATENATE(Economática!B391,\" \",Economática!C391)","v":" "}]
[{"$f":"IF(Economática!AG392=\"\",\"\",Economática!AG392)","v":""},{"$f":"IF($A414=\"\",\"\",VLOOKUP(VLOOKUP($A414,Economática!$A$3:$AI$823,6,FALSE),Correção!$B$16:$C$36,2,FALSE))","v":""},{"$f":"IF(Economática!B392=\"\",\"\",Economática!B392)","v":""},{"$f":"IF($A414=\"\",\"\",IF(OR(VLOOKUP($A414,Economática!$A$3:$AI$823,8,FALSE)=0,VLOOKUP($A414,Economática!$A$3:$AI$823,8,FALSE)=\"-\"),1/0,VLOOKUP($A414,Economática!$A$3:$AI$823,8,FALSE)))","v":""},{"$f":"IF(A414=\"\",\"\",IF(ISERROR(VLOOKUP(A414,Correção!$B$2:$G$13,9,FALSE)),VLOOKUP($A414,Economática!$A$3:$AI$823,9,FALSE),VLOOKUP(A414,Correção!$B$2:$G$13,9,FALSE)))","v":""},{"$f":"IF($A414=\"\",\"\",Economática!G392)","v":""},{"$f":"IF($A414=\"\",\"\",IF(OR(VLOOKUP($A414,Economática!$A$3:$AI$823,10,FALSE)=0,VLOOKUP($A414,Economática!$A$3:$AI$823,10,FALSE)=\"-\"),1/0,VLOOKUP($A414,Economática!$A$3:$AI$823,10,FALSE)))","v":""},{"$f":"IF($A414=\"\",\"\",IF(OR(VLOOKUP($A414,Economática!$A$3:$AI$823,11,FALSE)=0,VLOOKUP($A414,Economática!$A$3:$AI$823,11,FALSE)=\"-\"),1/0,VLOOKUP($A414,Economática!$A$3:$AI$823,11,FALSE)))","v":""},{"$f":"IF($A414=\"\",\"\",IF(OR(VLOOKUP($A414,Economática!$A$3:$AI$823,12,FALSE)=0,VLOOKUP($A414,Economática!$A$3:$AI$823,12,FALSE)=\"-\"),1/0,VLOOKUP($A414,Economática!$A$3:$AI$823,12,FALSE)))","v":""},{"$f":"IF($A414=\"\",\"\",IF(OR(VLOOKUP($A414,Economática!$A$3:$AI$823,13,FALSE)=0,VLOOKUP($A414,Economática!$A$3:$AI$823,13,FALSE)=\"-\"),1/0,VLOOKUP($A414,Economática!$A$3:$AI$823,13,FALSE)))","v":""},{"$f":"IF($A414=\"\",\"\",IF(OR(VLOOKUP($A414,Economática!$A$3:$AI$823,14,FALSE)=0,VLOOKUP($A414,Economática!$A$3:$AI$823,14,FALSE)=\"-\"),1/0,VLOOKUP($A414,Economática!$A$3:$AI$823,14,FALSE)))","v":""},{"$f":"IF($A414=\"\",\"\",IF(OR(VLOOKUP($A414,Economática!$A$3:$AI$823,15,FALSE)=0,VLOOKUP($A414,Economática!$A$3:$AI$823,15,FALSE)=\"-\"),1/0,VLOOKUP($A414,Economática!$A$3:$AI$823,15,FALSE)))","v":""},{"$f":"IF($A414=\"\",\"\",IF(OR(VLOOKUP($A414,Economática!$A$3:$AI$823,16,FALSE)=0,VLOOKUP($A414,Economática!$A$3:$AI$823,16,FALSE)=\"-\"),1/0,VLOOKUP($A414,Economática!$A$3:$AI$823,16,FALSE)))","v":""},{"$f":"IF($A414=\"\",\"\",IF(OR(VLOOKUP($A414,Economática!$A$3:$AI$823,17,FALSE)=0,VLOOKUP($A414,Economática!$A$3:$AI$823,17,FALSE)=\"-\"),1/0,VLOOKUP($A414,Economática!$A$3:$AI$823,17,FALSE)))","v":""},{"$f":"IF($A414=\"\",\"\",IF(OR(VLOOKUP($A414,Economática!$A$3:$AI$823,18,FALSE)=0,VLOOKUP($A414,Economática!$A$3:$AI$823,18,FALSE)=\"-\"),1/0,VLOOKUP($A414,Economática!$A$3:$AI$823,18,FALSE)))","v":""},{"$f":"IF($A414=\"\",\"\",IF(OR(VLOOKUP($A414,Economática!$A$3:$AI$823,19,FALSE)=0,VLOOKUP($A414,Economática!$A$3:$AI$823,19,FALSE)=\"-\"),1/0,VLOOKUP($A414,Economática!$A$3:$AI$823,19,FALSE)))","v":""},{"$f":"IF($A414=\"\",\"\",VLOOKUP($A414,Economática!$A$3:$AI$823,20,FALSE)/E414)","v":""},"","","",{"$f":"IF($A414=\"\",\"\",IF(OR(VLOOKUP($A414,Economática!$A$3:$AI$823,21,FALSE)/100=0,VLOOKUP($A414,Economática!$A$3:$AI$823,21,FALSE)/100=\"-\"),1/0,VLOOKUP($A414,Economática!$A$3:$AI$823,21,FALSE)/100))","v":""},{"$f":"IF($A414=\"\",\"\",IF(OR(VLOOKUP($A414,Economática!$A$3:$AI$823,22,FALSE)/100=0,VLOOKUP($A414,Economática!$A$3:$AI$823,22,FALSE)/100=\"-\"),1/0,VLOOKUP($A414,Economática!$A$3:$AI$823,22,FALSE)/100))","v":""},{"$f":"IF($A414=\"\",\"\",IF(OR(VLOOKUP($A414,Economática!$A$3:$AI$823,23,FALSE)=0,VLOOKUP($A414,Economática!$A$3:$AI$823,23,FALSE)=\"-\"),1/0,VLOOKUP($A414,Economática!$A$3:$AI$823,23,FALSE)))","v":""},{"$f":"IF($A414=\"\",\"\",IF(OR(VLOOKUP($A414,Economática!$A$3:$AI$823,24,FALSE)=0,VLOOKUP($A414,Economática!$A$3:$AI$823,24,FALSE)=\"-\"),1/0,VLOOKUP($A414,Economática!$A$3:$AI$823,24,FALSE)))","v":""},{"$f":"IF($A414=\"\",\"\",IF(OR(VLOOKUP($A414,Economática!$A$3:$AI$823,25,FALSE)=0,VLOOKUP($A414,Economática!$A$3:$AI$823,25,FALSE)=\"-\"),1/0,VLOOKUP($A414,Economática!$A$3:$AI$823,25,FALSE)))","v":""},{"$f":"IF($A414=\"\",\"\",IF(ISERROR((F414+VLOOKUP($A414,Economática!$A$3:$AI$823,26,FALSE))/Y414),(F414+VLOOKUP($A414,Economática!$A$3:$AI$823,26,FALSE))/Y414,(F414+VLOOKUP($A414,Economática!$A$3:$AI$823,26,FALSE))/Y414))","v":""},{"$f":"IF($A414=\"\",\"\",IF(OR(-VLOOKUP($A414,Economática!$A$3:$AI$823,27,FALSE)=0,-VLOOKUP($A414,Economática!$A$3:$AI$823,27,FALSE)=\"-\"),1/0,-VLOOKUP($A414,Economática!$A$3:$AI$823,27,FALSE)))","v":""},"",{"$f":"IF($A414=\"\",\"\",IF(OR(VLOOKUP($A414,Economática!$A$3:$AI$823,28,FALSE)=0,VLOOKUP($A414,Economática!$A$3:$AI$823,28,FALSE)=\"-\"),1/0,VLOOKUP($A414,Economática!$A$3:$AI$823,28,FALSE)))","v":""},{"$f":"IF($A414=\"\",\"\",IF(OR(VLOOKUP($A414,Economática!$A$3:$AI$823,29,FALSE)=0,VLOOKUP($A414,Economática!$A$3:$AI$823,29,FALSE)=\"-\"),1/0,VLOOKUP($A414,Economática!$A$3:$AI$823,29,FALSE)))","v":""},{"$f":"IF($A414=\"\",\"\",IF(OR(VLOOKUP($A414,Economática!$A$3:$AI$823,30,FALSE)/E414=0,VLOOKUP($A414,Economática!$A$3:$AI$823,30,FALSE)/E414=\"-\",VLOOKUP($A414,Economática!$A$3:$AI$823,30,FALSE)/E414<33.33%,VLOOKUP($A414,Economática!$A$3:$AI$823,30,FALSE)/E414>100%),1/0,VLOOKUP($A414,Economática!$A$3:$AI$823,30,FALSE)/E414))","v":""},"",{"$f":"IF($A414=\"\",\"\",IF(OR(VLOOKUP($A414,Economática!$A$3:$AI$823,25,FALSE)=0,VLOOKUP($A414,Economática!$A$3:$AI$823,25,FALSE)=\"-\"),1/0,VLOOKUP($A414,Economática!$A$3:$AI$823,25,FALSE)))","v":""},{"$f":"CONCATENATE(Economática!B392,\" \",Economática!C392)","v":" "}]
[{"$f":"IF(Economática!AG393=\"\",\"\",Economática!AG393)","v":""},{"$f":"IF($A415=\"\",\"\",VLOOKUP(VLOOKUP($A415,Economática!$A$3:$AI$823,6,FALSE),Correção!$B$16:$C$36,2,FALSE))","v":""},{"$f":"IF(Economática!B393=\"\",\"\",Economática!B393)","v":""},{"$f":"IF($A415=\"\",\"\",IF(OR(VLOOKUP($A415,Economática!$A$3:$AI$823,8,FALSE)=0,VLOOKUP($A415,Economática!$A$3:$AI$823,8,FALSE)=\"-\"),1/0,VLOOKUP($A415,Economática!$A$3:$AI$823,8,FALSE)))","v":""},{"$f":"IF(A415=\"\",\"\",IF(ISERROR(VLOOKUP(A415,Correção!$B$2:$G$13,9,FALSE)),VLOOKUP($A415,Economática!$A$3:$AI$823,9,FALSE),VLOOKUP(A415,Correção!$B$2:$G$13,9,FALSE)))","v":""},{"$f":"IF($A415=\"\",\"\",Economática!G393)","v":""},{"$f":"IF($A415=\"\",\"\",IF(OR(VLOOKUP($A415,Economática!$A$3:$AI$823,10,FALSE)=0,VLOOKUP($A415,Economática!$A$3:$AI$823,10,FALSE)=\"-\"),1/0,VLOOKUP($A415,Economática!$A$3:$AI$823,10,FALSE)))","v":""},{"$f":"IF($A415=\"\",\"\",IF(OR(VLOOKUP($A415,Economática!$A$3:$AI$823,11,FALSE)=0,VLOOKUP($A415,Economática!$A$3:$AI$823,11,FALSE)=\"-\"),1/0,VLOOKUP($A415,Economática!$A$3:$AI$823,11,FALSE)))","v":""},{"$f":"IF($A415=\"\",\"\",IF(OR(VLOOKUP($A415,Economática!$A$3:$AI$823,12,FALSE)=0,VLOOKUP($A415,Economática!$A$3:$AI$823,12,FALSE)=\"-\"),1/0,VLOOKUP($A415,Economática!$A$3:$AI$823,12,FALSE)))","v":""},{"$f":"IF($A415=\"\",\"\",IF(OR(VLOOKUP($A415,Economática!$A$3:$AI$823,13,FALSE)=0,VLOOKUP($A415,Economática!$A$3:$AI$823,13,FALSE)=\"-\"),1/0,VLOOKUP($A415,Economática!$A$3:$AI$823,13,FALSE)))","v":""},{"$f":"IF($A415=\"\",\"\",IF(OR(VLOOKUP($A415,Economática!$A$3:$AI$823,14,FALSE)=0,VLOOKUP($A415,Economática!$A$3:$AI$823,14,FALSE)=\"-\"),1/0,VLOOKUP($A415,Economática!$A$3:$AI$823,14,FALSE)))","v":""},{"$f":"IF($A415=\"\",\"\",IF(OR(VLOOKUP($A415,Economática!$A$3:$AI$823,15,FALSE)=0,VLOOKUP($A415,Economática!$A$3:$AI$823,15,FALSE)=\"-\"),1/0,VLOOKUP($A415,Economática!$A$3:$AI$823,15,FALSE)))","v":""},{"$f":"IF($A415=\"\",\"\",IF(OR(VLOOKUP($A415,Economática!$A$3:$AI$823,16,FALSE)=0,VLOOKUP($A415,Economática!$A$3:$AI$823,16,FALSE)=\"-\"),1/0,VLOOKUP($A415,Economática!$A$3:$AI$823,16,FALSE)))","v":""},{"$f":"IF($A415=\"\",\"\",IF(OR(VLOOKUP($A415,Economática!$A$3:$AI$823,17,FALSE)=0,VLOOKUP($A415,Economática!$A$3:$AI$823,17,FALSE)=\"-\"),1/0,VLOOKUP($A415,Economática!$A$3:$AI$823,17,FALSE)))","v":""},{"$f":"IF($A415=\"\",\"\",IF(OR(VLOOKUP($A415,Economática!$A$3:$AI$823,18,FALSE)=0,VLOOKUP($A415,Economática!$A$3:$AI$823,18,FALSE)=\"-\"),1/0,VLOOKUP($A415,Economática!$A$3:$AI$823,18,FALSE)))","v":""},{"$f":"IF($A415=\"\",\"\",IF(OR(VLOOKUP($A415,Economática!$A$3:$AI$823,19,FALSE)=0,VLOOKUP($A415,Economática!$A$3:$AI$823,19,FALSE)=\"-\"),1/0,VLOOKUP($A415,Economática!$A$3:$AI$823,19,FALSE)))","v":""},{"$f":"IF($A415=\"\",\"\",VLOOKUP($A415,Economática!$A$3:$AI$823,20,FALSE)/E415)","v":""},"","","",{"$f":"IF($A415=\"\",\"\",IF(OR(VLOOKUP($A415,Economática!$A$3:$AI$823,21,FALSE)/100=0,VLOOKUP($A415,Economática!$A$3:$AI$823,21,FALSE)/100=\"-\"),1/0,VLOOKUP($A415,Economática!$A$3:$AI$823,21,FALSE)/100))","v":""},{"$f":"IF($A415=\"\",\"\",IF(OR(VLOOKUP($A415,Economática!$A$3:$AI$823,22,FALSE)/100=0,VLOOKUP($A415,Economática!$A$3:$AI$823,22,FALSE)/100=\"-\"),1/0,VLOOKUP($A415,Economática!$A$3:$AI$823,22,FALSE)/100))","v":""},{"$f":"IF($A415=\"\",\"\",IF(OR(VLOOKUP($A415,Economática!$A$3:$AI$823,23,FALSE)=0,VLOOKUP($A415,Economática!$A$3:$AI$823,23,FALSE)=\"-\"),1/0,VLOOKUP($A415,Economática!$A$3:$AI$823,23,FALSE)))","v":""},{"$f":"IF($A415=\"\",\"\",IF(OR(VLOOKUP($A415,Economática!$A$3:$AI$823,24,FALSE)=0,VLOOKUP($A415,Economática!$A$3:$AI$823,24,FALSE)=\"-\"),1/0,VLOOKUP($A415,Economática!$A$3:$AI$823,24,FALSE)))","v":""},{"$f":"IF($A415=\"\",\"\",IF(OR(VLOOKUP($A415,Economática!$A$3:$AI$823,25,FALSE)=0,VLOOKUP($A415,Economática!$A$3:$AI$823,25,FALSE)=\"-\"),1/0,VLOOKUP($A415,Economática!$A$3:$AI$823,25,FALSE)))","v":""},{"$f":"IF($A415=\"\",\"\",IF(ISERROR((F415+VLOOKUP($A415,Economática!$A$3:$AI$823,26,FALSE))/Y415),(F415+VLOOKUP($A415,Economática!$A$3:$AI$823,26,FALSE))/Y415,(F415+VLOOKUP($A415,Economática!$A$3:$AI$823,26,FALSE))/Y415))","v":""},{"$f":"IF($A415=\"\",\"\",IF(OR(-VLOOKUP($A415,Economática!$A$3:$AI$823,27,FALSE)=0,-VLOOKUP($A415,Economática!$A$3:$AI$823,27,FALSE)=\"-\"),1/0,-VLOOKUP($A415,Economática!$A$3:$AI$823,27,FALSE)))","v":""},"",{"$f":"IF($A415=\"\",\"\",IF(OR(VLOOKUP($A415,Economática!$A$3:$AI$823,28,FALSE)=0,VLOOKUP($A415,Economática!$A$3:$AI$823,28,FALSE)=\"-\"),1/0,VLOOKUP($A415,Economática!$A$3:$AI$823,28,FALSE)))","v":""},{"$f":"IF($A415=\"\",\"\",IF(OR(VLOOKUP($A415,Economática!$A$3:$AI$823,29,FALSE)=0,VLOOKUP($A415,Economática!$A$3:$AI$823,29,FALSE)=\"-\"),1/0,VLOOKUP($A415,Economática!$A$3:$AI$823,29,FALSE)))","v":""},{"$f":"IF($A415=\"\",\"\",IF(OR(VLOOKUP($A415,Economática!$A$3:$AI$823,30,FALSE)/E415=0,VLOOKUP($A415,Economática!$A$3:$AI$823,30,FALSE)/E415=\"-\",VLOOKUP($A415,Economática!$A$3:$AI$823,30,FALSE)/E415<33.33%,VLOOKUP($A415,Economática!$A$3:$AI$823,30,FALSE)/E415>100%),1/0,VLOOKUP($A415,Economática!$A$3:$AI$823,30,FALSE)/E415))","v":""},"",{"$f":"IF($A415=\"\",\"\",IF(OR(VLOOKUP($A415,Economática!$A$3:$AI$823,25,FALSE)=0,VLOOKUP($A415,Economática!$A$3:$AI$823,25,FALSE)=\"-\"),1/0,VLOOKUP($A415,Economática!$A$3:$AI$823,25,FALSE)))","v":""},{"$f":"CONCATENATE(Economática!B393,\" \",Economática!C393)","v":" "}]
[{"$f":"IF(Economática!AG394=\"\",\"\",Economática!AG394)","v":""},{"$f":"IF($A416=\"\",\"\",VLOOKUP(VLOOKUP($A416,Economática!$A$3:$AI$823,6,FALSE),Correção!$B$16:$C$36,2,FALSE))","v":""},{"$f":"IF(Economática!B394=\"\",\"\",Economática!B394)","v":""},{"$f":"IF($A416=\"\",\"\",IF(OR(VLOOKUP($A416,Economática!$A$3:$AI$823,8,FALSE)=0,VLOOKUP($A416,Economática!$A$3:$AI$823,8,FALSE)=\"-\"),1/0,VLOOKUP($A416,Economática!$A$3:$AI$823,8,FALSE)))","v":""},{"$f":"IF(A416=\"\",\"\",IF(ISERROR(VLOOKUP(A416,Correção!$B$2:$G$13,9,FALSE)),VLOOKUP($A416,Economática!$A$3:$AI$823,9,FALSE),VLOOKUP(A416,Correção!$B$2:$G$13,9,FALSE)))","v":""},{"$f":"IF($A416=\"\",\"\",Economática!G394)","v":""},{"$f":"IF($A416=\"\",\"\",IF(OR(VLOOKUP($A416,Economática!$A$3:$AI$823,10,FALSE)=0,VLOOKUP($A416,Economática!$A$3:$AI$823,10,FALSE)=\"-\"),1/0,VLOOKUP($A416,Economática!$A$3:$AI$823,10,FALSE)))","v":""},{"$f":"IF($A416=\"\",\"\",IF(OR(VLOOKUP($A416,Economática!$A$3:$AI$823,11,FALSE)=0,VLOOKUP($A416,Economática!$A$3:$AI$823,11,FALSE)=\"-\"),1/0,VLOOKUP($A416,Economática!$A$3:$AI$823,11,FALSE)))","v":""},{"$f":"IF($A416=\"\",\"\",IF(OR(VLOOKUP($A416,Economática!$A$3:$AI$823,12,FALSE)=0,VLOOKUP($A416,Economática!$A$3:$AI$823,12,FALSE)=\"-\"),1/0,VLOOKUP($A416,Economática!$A$3:$AI$823,12,FALSE)))","v":""},{"$f":"IF($A416=\"\",\"\",IF(OR(VLOOKUP($A416,Economática!$A$3:$AI$823,13,FALSE)=0,VLOOKUP($A416,Economática!$A$3:$AI$823,13,FALSE)=\"-\"),1/0,VLOOKUP($A416,Economática!$A$3:$AI$823,13,FALSE)))","v":""},{"$f":"IF($A416=\"\",\"\",IF(OR(VLOOKUP($A416,Economática!$A$3:$AI$823,14,FALSE)=0,VLOOKUP($A416,Economática!$A$3:$AI$823,14,FALSE)=\"-\"),1/0,VLOOKUP($A416,Economática!$A$3:$AI$823,14,FALSE)))","v":""},{"$f":"IF($A416=\"\",\"\",IF(OR(VLOOKUP($A416,Economática!$A$3:$AI$823,15,FALSE)=0,VLOOKUP($A416,Economática!$A$3:$AI$823,15,FALSE)=\"-\"),1/0,VLOOKUP($A416,Economática!$A$3:$AI$823,15,FALSE)))","v":""},{"$f":"IF($A416=\"\",\"\",IF(OR(VLOOKUP($A416,Economática!$A$3:$AI$823,16,FALSE)=0,VLOOKUP($A416,Economática!$A$3:$AI$823,16,FALSE)=\"-\"),1/0,VLOOKUP($A416,Economática!$A$3:$AI$823,16,FALSE)))","v":""},{"$f":"IF($A416=\"\",\"\",IF(OR(VLOOKUP($A416,Economática!$A$3:$AI$823,17,FALSE)=0,VLOOKUP($A416,Economática!$A$3:$AI$823,17,FALSE)=\"-\"),1/0,VLOOKUP($A416,Economática!$A$3:$AI$823,17,FALSE)))","v":""},{"$f":"IF($A416=\"\",\"\",IF(OR(VLOOKUP($A416,Economática!$A$3:$AI$823,18,FALSE)=0,VLOOKUP($A416,Economática!$A$3:$AI$823,18,FALSE)=\"-\"),1/0,VLOOKUP($A416,Economática!$A$3:$AI$823,18,FALSE)))","v":""},{"$f":"IF($A416=\"\",\"\",IF(OR(VLOOKUP($A416,Economática!$A$3:$AI$823,19,FALSE)=0,VLOOKUP($A416,Economática!$A$3:$AI$823,19,FALSE)=\"-\"),1/0,VLOOKUP($A416,Economática!$A$3:$AI$823,19,FALSE)))","v":""},{"$f":"IF($A416=\"\",\"\",VLOOKUP($A416,Economática!$A$3:$AI$823,20,FALSE)/E416)","v":""},"","","",{"$f":"IF($A416=\"\",\"\",IF(OR(VLOOKUP($A416,Economática!$A$3:$AI$823,21,FALSE)/100=0,VLOOKUP($A416,Economática!$A$3:$AI$823,21,FALSE)/100=\"-\"),1/0,VLOOKUP($A416,Economática!$A$3:$AI$823,21,FALSE)/100))","v":""},{"$f":"IF($A416=\"\",\"\",IF(OR(VLOOKUP($A416,Economática!$A$3:$AI$823,22,FALSE)/100=0,VLOOKUP($A416,Economática!$A$3:$AI$823,22,FALSE)/100=\"-\"),1/0,VLOOKUP($A416,Economática!$A$3:$AI$823,22,FALSE)/100))","v":""},{"$f":"IF($A416=\"\",\"\",IF(OR(VLOOKUP($A416,Economática!$A$3:$AI$823,23,FALSE)=0,VLOOKUP($A416,Economática!$A$3:$AI$823,23,FALSE)=\"-\"),1/0,VLOOKUP($A416,Economática!$A$3:$AI$823,23,FALSE)))","v":""},{"$f":"IF($A416=\"\",\"\",IF(OR(VLOOKUP($A416,Economática!$A$3:$AI$823,24,FALSE)=0,VLOOKUP($A416,Economática!$A$3:$AI$823,24,FALSE)=\"-\"),1/0,VLOOKUP($A416,Economática!$A$3:$AI$823,24,FALSE)))","v":""},{"$f":"IF($A416=\"\",\"\",IF(OR(VLOOKUP($A416,Economática!$A$3:$AI$823,25,FALSE)=0,VLOOKUP($A416,Economática!$A$3:$AI$823,25,FALSE)=\"-\"),1/0,VLOOKUP($A416,Economática!$A$3:$AI$823,25,FALSE)))","v":""},{"$f":"IF($A416=\"\",\"\",IF(ISERROR((F416+VLOOKUP($A416,Economática!$A$3:$AI$823,26,FALSE))/Y416),(F416+VLOOKUP($A416,Economática!$A$3:$AI$823,26,FALSE))/Y416,(F416+VLOOKUP($A416,Economática!$A$3:$AI$823,26,FALSE))/Y416))","v":""},{"$f":"IF($A416=\"\",\"\",IF(OR(-VLOOKUP($A416,Economática!$A$3:$AI$823,27,FALSE)=0,-VLOOKUP($A416,Economática!$A$3:$AI$823,27,FALSE)=\"-\"),1/0,-VLOOKUP($A416,Economática!$A$3:$AI$823,27,FALSE)))","v":""},"",{"$f":"IF($A416=\"\",\"\",IF(OR(VLOOKUP($A416,Economática!$A$3:$AI$823,28,FALSE)=0,VLOOKUP($A416,Economática!$A$3:$AI$823,28,FALSE)=\"-\"),1/0,VLOOKUP($A416,Economática!$A$3:$AI$823,28,FALSE)))","v":""},{"$f":"IF($A416=\"\",\"\",IF(OR(VLOOKUP($A416,Economática!$A$3:$AI$823,29,FALSE)=0,VLOOKUP($A416,Economática!$A$3:$AI$823,29,FALSE)=\"-\"),1/0,VLOOKUP($A416,Economática!$A$3:$AI$823,29,FALSE)))","v":""},{"$f":"IF($A416=\"\",\"\",IF(OR(VLOOKUP($A416,Economática!$A$3:$AI$823,30,FALSE)/E416=0,VLOOKUP($A416,Economática!$A$3:$AI$823,30,FALSE)/E416=\"-\",VLOOKUP($A416,Economática!$A$3:$AI$823,30,FALSE)/E416<33.33%,VLOOKUP($A416,Economática!$A$3:$AI$823,30,FALSE)/E416>100%),1/0,VLOOKUP($A416,Economática!$A$3:$AI$823,30,FALSE)/E416))","v":""},"",{"$f":"IF($A416=\"\",\"\",IF(OR(VLOOKUP($A416,Economática!$A$3:$AI$823,25,FALSE)=0,VLOOKUP($A416,Economática!$A$3:$AI$823,25,FALSE)=\"-\"),1/0,VLOOKUP($A416,Economática!$A$3:$AI$823,25,FALSE)))","v":""},{"$f":"CONCATENATE(Economática!B394,\" \",Economática!C394)","v":" "}]
[{"$f":"IF(Economática!AG395=\"\",\"\",Economática!AG395)","v":""},{"$f":"IF($A417=\"\",\"\",VLOOKUP(VLOOKUP($A417,Economática!$A$3:$AI$823,6,FALSE),Correção!$B$16:$C$36,2,FALSE))","v":""},{"$f":"IF(Economática!B395=\"\",\"\",Economática!B395)","v":""},{"$f":"IF($A417=\"\",\"\",IF(OR(VLOOKUP($A417,Economática!$A$3:$AI$823,8,FALSE)=0,VLOOKUP($A417,Economática!$A$3:$AI$823,8,FALSE)=\"-\"),1/0,VLOOKUP($A417,Economática!$A$3:$AI$823,8,FALSE)))","v":""},{"$f":"IF(A417=\"\",\"\",IF(ISERROR(VLOOKUP(A417,Correção!$B$2:$G$13,9,FALSE)),VLOOKUP($A417,Economática!$A$3:$AI$823,9,FALSE),VLOOKUP(A417,Correção!$B$2:$G$13,9,FALSE)))","v":""},{"$f":"IF($A417=\"\",\"\",Economática!G395)","v":""},{"$f":"IF($A417=\"\",\"\",IF(OR(VLOOKUP($A417,Economática!$A$3:$AI$823,10,FALSE)=0,VLOOKUP($A417,Economática!$A$3:$AI$823,10,FALSE)=\"-\"),1/0,VLOOKUP($A417,Economática!$A$3:$AI$823,10,FALSE)))","v":""},{"$f":"IF($A417=\"\",\"\",IF(OR(VLOOKUP($A417,Economática!$A$3:$AI$823,11,FALSE)=0,VLOOKUP($A417,Economática!$A$3:$AI$823,11,FALSE)=\"-\"),1/0,VLOOKUP($A417,Economática!$A$3:$AI$823,11,FALSE)))","v":""},{"$f":"IF($A417=\"\",\"\",IF(OR(VLOOKUP($A417,Economática!$A$3:$AI$823,12,FALSE)=0,VLOOKUP($A417,Economática!$A$3:$AI$823,12,FALSE)=\"-\"),1/0,VLOOKUP($A417,Economática!$A$3:$AI$823,12,FALSE)))","v":""},{"$f":"IF($A417=\"\",\"\",IF(OR(VLOOKUP($A417,Economática!$A$3:$AI$823,13,FALSE)=0,VLOOKUP($A417,Economática!$A$3:$AI$823,13,FALSE)=\"-\"),1/0,VLOOKUP($A417,Economática!$A$3:$AI$823,13,FALSE)))","v":""},{"$f":"IF($A417=\"\",\"\",IF(OR(VLOOKUP($A417,Economática!$A$3:$AI$823,14,FALSE)=0,VLOOKUP($A417,Economática!$A$3:$AI$823,14,FALSE)=\"-\"),1/0,VLOOKUP($A417,Economática!$A$3:$AI$823,14,FALSE)))","v":""},{"$f":"IF($A417=\"\",\"\",IF(OR(VLOOKUP($A417,Economática!$A$3:$AI$823,15,FALSE)=0,VLOOKUP($A417,Economática!$A$3:$AI$823,15,FALSE)=\"-\"),1/0,VLOOKUP($A417,Economática!$A$3:$AI$823,15,FALSE)))","v":""},{"$f":"IF($A417=\"\",\"\",IF(OR(VLOOKUP($A417,Economática!$A$3:$AI$823,16,FALSE)=0,VLOOKUP($A417,Economática!$A$3:$AI$823,16,FALSE)=\"-\"),1/0,VLOOKUP($A417,Economática!$A$3:$AI$823,16,FALSE)))","v":""},{"$f":"IF($A417=\"\",\"\",IF(OR(VLOOKUP($A417,Economática!$A$3:$AI$823,17,FALSE)=0,VLOOKUP($A417,Economática!$A$3:$AI$823,17,FALSE)=\"-\"),1/0,VLOOKUP($A417,Economática!$A$3:$AI$823,17,FALSE)))","v":""},{"$f":"IF($A417=\"\",\"\",IF(OR(VLOOKUP($A417,Economática!$A$3:$AI$823,18,FALSE)=0,VLOOKUP($A417,Economática!$A$3:$AI$823,18,FALSE)=\"-\"),1/0,VLOOKUP($A417,Economática!$A$3:$AI$823,18,FALSE)))","v":""},{"$f":"IF($A417=\"\",\"\",IF(OR(VLOOKUP($A417,Economática!$A$3:$AI$823,19,FALSE)=0,VLOOKUP($A417,Economática!$A$3:$AI$823,19,FALSE)=\"-\"),1/0,VLOOKUP($A417,Economática!$A$3:$AI$823,19,FALSE)))","v":""},{"$f":"IF($A417=\"\",\"\",VLOOKUP($A417,Economática!$A$3:$AI$823,20,FALSE)/E417)","v":""},"","","",{"$f":"IF($A417=\"\",\"\",IF(OR(VLOOKUP($A417,Economática!$A$3:$AI$823,21,FALSE)/100=0,VLOOKUP($A417,Economática!$A$3:$AI$823,21,FALSE)/100=\"-\"),1/0,VLOOKUP($A417,Economática!$A$3:$AI$823,21,FALSE)/100))","v":""},{"$f":"IF($A417=\"\",\"\",IF(OR(VLOOKUP($A417,Economática!$A$3:$AI$823,22,FALSE)/100=0,VLOOKUP($A417,Economática!$A$3:$AI$823,22,FALSE)/100=\"-\"),1/0,VLOOKUP($A417,Economática!$A$3:$AI$823,22,FALSE)/100))","v":""},{"$f":"IF($A417=\"\",\"\",IF(OR(VLOOKUP($A417,Economática!$A$3:$AI$823,23,FALSE)=0,VLOOKUP($A417,Economática!$A$3:$AI$823,23,FALSE)=\"-\"),1/0,VLOOKUP($A417,Economática!$A$3:$AI$823,23,FALSE)))","v":""},{"$f":"IF($A417=\"\",\"\",IF(OR(VLOOKUP($A417,Economática!$A$3:$AI$823,24,FALSE)=0,VLOOKUP($A417,Economática!$A$3:$AI$823,24,FALSE)=\"-\"),1/0,VLOOKUP($A417,Economática!$A$3:$AI$823,24,FALSE)))","v":""},{"$f":"IF($A417=\"\",\"\",IF(OR(VLOOKUP($A417,Economática!$A$3:$AI$823,25,FALSE)=0,VLOOKUP($A417,Economática!$A$3:$AI$823,25,FALSE)=\"-\"),1/0,VLOOKUP($A417,Economática!$A$3:$AI$823,25,FALSE)))","v":""},{"$f":"IF($A417=\"\",\"\",IF(ISERROR((F417+VLOOKUP($A417,Economática!$A$3:$AI$823,26,FALSE))/Y417),(F417+VLOOKUP($A417,Economática!$A$3:$AI$823,26,FALSE))/Y417,(F417+VLOOKUP($A417,Economática!$A$3:$AI$823,26,FALSE))/Y417))","v":""},{"$f":"IF($A417=\"\",\"\",IF(OR(-VLOOKUP($A417,Economática!$A$3:$AI$823,27,FALSE)=0,-VLOOKUP($A417,Economática!$A$3:$AI$823,27,FALSE)=\"-\"),1/0,-VLOOKUP($A417,Economática!$A$3:$AI$823,27,FALSE)))","v":""},"",{"$f":"IF($A417=\"\",\"\",IF(OR(VLOOKUP($A417,Economática!$A$3:$AI$823,28,FALSE)=0,VLOOKUP($A417,Economática!$A$3:$AI$823,28,FALSE)=\"-\"),1/0,VLOOKUP($A417,Economática!$A$3:$AI$823,28,FALSE)))","v":""},{"$f":"IF($A417=\"\",\"\",IF(OR(VLOOKUP($A417,Economática!$A$3:$AI$823,29,FALSE)=0,VLOOKUP($A417,Economática!$A$3:$AI$823,29,FALSE)=\"-\"),1/0,VLOOKUP($A417,Economática!$A$3:$AI$823,29,FALSE)))","v":""},{"$f":"IF($A417=\"\",\"\",IF(OR(VLOOKUP($A417,Economática!$A$3:$AI$823,30,FALSE)/E417=0,VLOOKUP($A417,Economática!$A$3:$AI$823,30,FALSE)/E417=\"-\",VLOOKUP($A417,Economática!$A$3:$AI$823,30,FALSE)/E417<33.33%,VLOOKUP($A417,Economática!$A$3:$AI$823,30,FALSE)/E417>100%),1/0,VLOOKUP($A417,Economática!$A$3:$AI$823,30,FALSE)/E417))","v":""},"",{"$f":"IF($A417=\"\",\"\",IF(OR(VLOOKUP($A417,Economática!$A$3:$AI$823,25,FALSE)=0,VLOOKUP($A417,Economática!$A$3:$AI$823,25,FALSE)=\"-\"),1/0,VLOOKUP($A417,Economática!$A$3:$AI$823,25,FALSE)))","v":""},{"$f":"CONCATENATE(Economática!B395,\" \",Economática!C395)","v":" "}]
[{"$f":"IF(Economática!AG396=\"\",\"\",Economática!AG396)","v":""},{"$f":"IF($A418=\"\",\"\",VLOOKUP(VLOOKUP($A418,Economática!$A$3:$AI$823,6,FALSE),Correção!$B$16:$C$36,2,FALSE))","v":""},{"$f":"IF(Economática!B396=\"\",\"\",Economática!B396)","v":""},{"$f":"IF($A418=\"\",\"\",IF(OR(VLOOKUP($A418,Economática!$A$3:$AI$823,8,FALSE)=0,VLOOKUP($A418,Economática!$A$3:$AI$823,8,FALSE)=\"-\"),1/0,VLOOKUP($A418,Economática!$A$3:$AI$823,8,FALSE)))","v":""},{"$f":"IF(A418=\"\",\"\",IF(ISERROR(VLOOKUP(A418,Correção!$B$2:$G$13,9,FALSE)),VLOOKUP($A418,Economática!$A$3:$AI$823,9,FALSE),VLOOKUP(A418,Correção!$B$2:$G$13,9,FALSE)))","v":""},{"$f":"IF($A418=\"\",\"\",Economática!G396)","v":""},{"$f":"IF($A418=\"\",\"\",IF(OR(VLOOKUP($A418,Economática!$A$3:$AI$823,10,FALSE)=0,VLOOKUP($A418,Economática!$A$3:$AI$823,10,FALSE)=\"-\"),1/0,VLOOKUP($A418,Economática!$A$3:$AI$823,10,FALSE)))","v":""},{"$f":"IF($A418=\"\",\"\",IF(OR(VLOOKUP($A418,Economática!$A$3:$AI$823,11,FALSE)=0,VLOOKUP($A418,Economática!$A$3:$AI$823,11,FALSE)=\"-\"),1/0,VLOOKUP($A418,Economática!$A$3:$AI$823,11,FALSE)))","v":""},{"$f":"IF($A418=\"\",\"\",IF(OR(VLOOKUP($A418,Economática!$A$3:$AI$823,12,FALSE)=0,VLOOKUP($A418,Economática!$A$3:$AI$823,12,FALSE)=\"-\"),1/0,VLOOKUP($A418,Economática!$A$3:$AI$823,12,FALSE)))","v":""},{"$f":"IF($A418=\"\",\"\",IF(OR(VLOOKUP($A418,Economática!$A$3:$AI$823,13,FALSE)=0,VLOOKUP($A418,Economática!$A$3:$AI$823,13,FALSE)=\"-\"),1/0,VLOOKUP($A418,Economática!$A$3:$AI$823,13,FALSE)))","v":""},{"$f":"IF($A418=\"\",\"\",IF(OR(VLOOKUP($A418,Economática!$A$3:$AI$823,14,FALSE)=0,VLOOKUP($A418,Economática!$A$3:$AI$823,14,FALSE)=\"-\"),1/0,VLOOKUP($A418,Economática!$A$3:$AI$823,14,FALSE)))","v":""},{"$f":"IF($A418=\"\",\"\",IF(OR(VLOOKUP($A418,Economática!$A$3:$AI$823,15,FALSE)=0,VLOOKUP($A418,Economática!$A$3:$AI$823,15,FALSE)=\"-\"),1/0,VLOOKUP($A418,Economática!$A$3:$AI$823,15,FALSE)))","v":""},{"$f":"IF($A418=\"\",\"\",IF(OR(VLOOKUP($A418,Economática!$A$3:$AI$823,16,FALSE)=0,VLOOKUP($A418,Economática!$A$3:$AI$823,16,FALSE)=\"-\"),1/0,VLOOKUP($A418,Economática!$A$3:$AI$823,16,FALSE)))","v":""},{"$f":"IF($A418=\"\",\"\",IF(OR(VLOOKUP($A418,Economática!$A$3:$AI$823,17,FALSE)=0,VLOOKUP($A418,Economática!$A$3:$AI$823,17,FALSE)=\"-\"),1/0,VLOOKUP($A418,Economática!$A$3:$AI$823,17,FALSE)))","v":""},{"$f":"IF($A418=\"\",\"\",IF(OR(VLOOKUP($A418,Economática!$A$3:$AI$823,18,FALSE)=0,VLOOKUP($A418,Economática!$A$3:$AI$823,18,FALSE)=\"-\"),1/0,VLOOKUP($A418,Economática!$A$3:$AI$823,18,FALSE)))","v":""},{"$f":"IF($A418=\"\",\"\",IF(OR(VLOOKUP($A418,Economática!$A$3:$AI$823,19,FALSE)=0,VLOOKUP($A418,Economática!$A$3:$AI$823,19,FALSE)=\"-\"),1/0,VLOOKUP($A418,Economática!$A$3:$AI$823,19,FALSE)))","v":""},{"$f":"IF($A418=\"\",\"\",VLOOKUP($A418,Economática!$A$3:$AI$823,20,FALSE)/E418)","v":""},"","","",{"$f":"IF($A418=\"\",\"\",IF(OR(VLOOKUP($A418,Economática!$A$3:$AI$823,21,FALSE)/100=0,VLOOKUP($A418,Economática!$A$3:$AI$823,21,FALSE)/100=\"-\"),1/0,VLOOKUP($A418,Economática!$A$3:$AI$823,21,FALSE)/100))","v":""},{"$f":"IF($A418=\"\",\"\",IF(OR(VLOOKUP($A418,Economática!$A$3:$AI$823,22,FALSE)/100=0,VLOOKUP($A418,Economática!$A$3:$AI$823,22,FALSE)/100=\"-\"),1/0,VLOOKUP($A418,Economática!$A$3:$AI$823,22,FALSE)/100))","v":""},{"$f":"IF($A418=\"\",\"\",IF(OR(VLOOKUP($A418,Economática!$A$3:$AI$823,23,FALSE)=0,VLOOKUP($A418,Economática!$A$3:$AI$823,23,FALSE)=\"-\"),1/0,VLOOKUP($A418,Economática!$A$3:$AI$823,23,FALSE)))","v":""},{"$f":"IF($A418=\"\",\"\",IF(OR(VLOOKUP($A418,Economática!$A$3:$AI$823,24,FALSE)=0,VLOOKUP($A418,Economática!$A$3:$AI$823,24,FALSE)=\"-\"),1/0,VLOOKUP($A418,Economática!$A$3:$AI$823,24,FALSE)))","v":""},{"$f":"IF($A418=\"\",\"\",IF(OR(VLOOKUP($A418,Economática!$A$3:$AI$823,25,FALSE)=0,VLOOKUP($A418,Economática!$A$3:$AI$823,25,FALSE)=\"-\"),1/0,VLOOKUP($A418,Economática!$A$3:$AI$823,25,FALSE)))","v":""},{"$f":"IF($A418=\"\",\"\",IF(ISERROR((F418+VLOOKUP($A418,Economática!$A$3:$AI$823,26,FALSE))/Y418),(F418+VLOOKUP($A418,Economática!$A$3:$AI$823,26,FALSE))/Y418,(F418+VLOOKUP($A418,Economática!$A$3:$AI$823,26,FALSE))/Y418))","v":""},{"$f":"IF($A418=\"\",\"\",IF(OR(-VLOOKUP($A418,Economática!$A$3:$AI$823,27,FALSE)=0,-VLOOKUP($A418,Economática!$A$3:$AI$823,27,FALSE)=\"-\"),1/0,-VLOOKUP($A418,Economática!$A$3:$AI$823,27,FALSE)))","v":""},"",{"$f":"IF($A418=\"\",\"\",IF(OR(VLOOKUP($A418,Economática!$A$3:$AI$823,28,FALSE)=0,VLOOKUP($A418,Economática!$A$3:$AI$823,28,FALSE)=\"-\"),1/0,VLOOKUP($A418,Economática!$A$3:$AI$823,28,FALSE)))","v":""},{"$f":"IF($A418=\"\",\"\",IF(OR(VLOOKUP($A418,Economática!$A$3:$AI$823,29,FALSE)=0,VLOOKUP($A418,Economática!$A$3:$AI$823,29,FALSE)=\"-\"),1/0,VLOOKUP($A418,Economática!$A$3:$AI$823,29,FALSE)))","v":""},{"$f":"IF($A418=\"\",\"\",IF(OR(VLOOKUP($A418,Economática!$A$3:$AI$823,30,FALSE)/E418=0,VLOOKUP($A418,Economática!$A$3:$AI$823,30,FALSE)/E418=\"-\",VLOOKUP($A418,Economática!$A$3:$AI$823,30,FALSE)/E418<33.33%,VLOOKUP($A418,Economática!$A$3:$AI$823,30,FALSE)/E418>100%),1/0,VLOOKUP($A418,Economática!$A$3:$AI$823,30,FALSE)/E418))","v":""},"",{"$f":"IF($A418=\"\",\"\",IF(OR(VLOOKUP($A418,Economática!$A$3:$AI$823,25,FALSE)=0,VLOOKUP($A418,Economática!$A$3:$AI$823,25,FALSE)=\"-\"),1/0,VLOOKUP($A418,Economática!$A$3:$AI$823,25,FALSE)))","v":""},{"$f":"CONCATENATE(Economática!B396,\" \",Economática!C396)","v":" "}]
[{"$f":"IF(Economática!AG397=\"\",\"\",Economática!AG397)","v":""},{"$f":"IF($A419=\"\",\"\",VLOOKUP(VLOOKUP($A419,Economática!$A$3:$AI$823,6,FALSE),Correção!$B$16:$C$36,2,FALSE))","v":""},{"$f":"IF(Economática!B397=\"\",\"\",Economática!B397)","v":""},{"$f":"IF($A419=\"\",\"\",IF(OR(VLOOKUP($A419,Economática!$A$3:$AI$823,8,FALSE)=0,VLOOKUP($A419,Economática!$A$3:$AI$823,8,FALSE)=\"-\"),1/0,VLOOKUP($A419,Economática!$A$3:$AI$823,8,FALSE)))","v":""},{"$f":"IF(A419=\"\",\"\",IF(ISERROR(VLOOKUP(A419,Correção!$B$2:$G$13,9,FALSE)),VLOOKUP($A419,Economática!$A$3:$AI$823,9,FALSE),VLOOKUP(A419,Correção!$B$2:$G$13,9,FALSE)))","v":""},{"$f":"IF($A419=\"\",\"\",Economática!G397)","v":""},{"$f":"IF($A419=\"\",\"\",IF(OR(VLOOKUP($A419,Economática!$A$3:$AI$823,10,FALSE)=0,VLOOKUP($A419,Economática!$A$3:$AI$823,10,FALSE)=\"-\"),1/0,VLOOKUP($A419,Economática!$A$3:$AI$823,10,FALSE)))","v":""},{"$f":"IF($A419=\"\",\"\",IF(OR(VLOOKUP($A419,Economática!$A$3:$AI$823,11,FALSE)=0,VLOOKUP($A419,Economática!$A$3:$AI$823,11,FALSE)=\"-\"),1/0,VLOOKUP($A419,Economática!$A$3:$AI$823,11,FALSE)))","v":""},{"$f":"IF($A419=\"\",\"\",IF(OR(VLOOKUP($A419,Economática!$A$3:$AI$823,12,FALSE)=0,VLOOKUP($A419,Economática!$A$3:$AI$823,12,FALSE)=\"-\"),1/0,VLOOKUP($A419,Economática!$A$3:$AI$823,12,FALSE)))","v":""},{"$f":"IF($A419=\"\",\"\",IF(OR(VLOOKUP($A419,Economática!$A$3:$AI$823,13,FALSE)=0,VLOOKUP($A419,Economática!$A$3:$AI$823,13,FALSE)=\"-\"),1/0,VLOOKUP($A419,Economática!$A$3:$AI$823,13,FALSE)))","v":""},{"$f":"IF($A419=\"\",\"\",IF(OR(VLOOKUP($A419,Economática!$A$3:$AI$823,14,FALSE)=0,VLOOKUP($A419,Economática!$A$3:$AI$823,14,FALSE)=\"-\"),1/0,VLOOKUP($A419,Economática!$A$3:$AI$823,14,FALSE)))","v":""},{"$f":"IF($A419=\"\",\"\",IF(OR(VLOOKUP($A419,Economática!$A$3:$AI$823,15,FALSE)=0,VLOOKUP($A419,Economática!$A$3:$AI$823,15,FALSE)=\"-\"),1/0,VLOOKUP($A419,Economática!$A$3:$AI$823,15,FALSE)))","v":""},{"$f":"IF($A419=\"\",\"\",IF(OR(VLOOKUP($A419,Economática!$A$3:$AI$823,16,FALSE)=0,VLOOKUP($A419,Economática!$A$3:$AI$823,16,FALSE)=\"-\"),1/0,VLOOKUP($A419,Economática!$A$3:$AI$823,16,FALSE)))","v":""},{"$f":"IF($A419=\"\",\"\",IF(OR(VLOOKUP($A419,Economática!$A$3:$AI$823,17,FALSE)=0,VLOOKUP($A419,Economática!$A$3:$AI$823,17,FALSE)=\"-\"),1/0,VLOOKUP($A419,Economática!$A$3:$AI$823,17,FALSE)))","v":""},{"$f":"IF($A419=\"\",\"\",IF(OR(VLOOKUP($A419,Economática!$A$3:$AI$823,18,FALSE)=0,VLOOKUP($A419,Economática!$A$3:$AI$823,18,FALSE)=\"-\"),1/0,VLOOKUP($A419,Economática!$A$3:$AI$823,18,FALSE)))","v":""},{"$f":"IF($A419=\"\",\"\",IF(OR(VLOOKUP($A419,Economática!$A$3:$AI$823,19,FALSE)=0,VLOOKUP($A419,Economática!$A$3:$AI$823,19,FALSE)=\"-\"),1/0,VLOOKUP($A419,Economática!$A$3:$AI$823,19,FALSE)))","v":""},{"$f":"IF($A419=\"\",\"\",VLOOKUP($A419,Economática!$A$3:$AI$823,20,FALSE)/E419)","v":""},"","","",{"$f":"IF($A419=\"\",\"\",IF(OR(VLOOKUP($A419,Economática!$A$3:$AI$823,21,FALSE)/100=0,VLOOKUP($A419,Economática!$A$3:$AI$823,21,FALSE)/100=\"-\"),1/0,VLOOKUP($A419,Economática!$A$3:$AI$823,21,FALSE)/100))","v":""},{"$f":"IF($A419=\"\",\"\",IF(OR(VLOOKUP($A419,Economática!$A$3:$AI$823,22,FALSE)/100=0,VLOOKUP($A419,Economática!$A$3:$AI$823,22,FALSE)/100=\"-\"),1/0,VLOOKUP($A419,Economática!$A$3:$AI$823,22,FALSE)/100))","v":""},{"$f":"IF($A419=\"\",\"\",IF(OR(VLOOKUP($A419,Economática!$A$3:$AI$823,23,FALSE)=0,VLOOKUP($A419,Economática!$A$3:$AI$823,23,FALSE)=\"-\"),1/0,VLOOKUP($A419,Economática!$A$3:$AI$823,23,FALSE)))","v":""},{"$f":"IF($A419=\"\",\"\",IF(OR(VLOOKUP($A419,Economática!$A$3:$AI$823,24,FALSE)=0,VLOOKUP($A419,Economática!$A$3:$AI$823,24,FALSE)=\"-\"),1/0,VLOOKUP($A419,Economática!$A$3:$AI$823,24,FALSE)))","v":""},{"$f":"IF($A419=\"\",\"\",IF(OR(VLOOKUP($A419,Economática!$A$3:$AI$823,25,FALSE)=0,VLOOKUP($A419,Economática!$A$3:$AI$823,25,FALSE)=\"-\"),1/0,VLOOKUP($A419,Economática!$A$3:$AI$823,25,FALSE)))","v":""},{"$f":"IF($A419=\"\",\"\",IF(ISERROR((F419+VLOOKUP($A419,Economática!$A$3:$AI$823,26,FALSE))/Y419),(F419+VLOOKUP($A419,Economática!$A$3:$AI$823,26,FALSE))/Y419,(F419+VLOOKUP($A419,Economática!$A$3:$AI$823,26,FALSE))/Y419))","v":""},{"$f":"IF($A419=\"\",\"\",IF(OR(-VLOOKUP($A419,Economática!$A$3:$AI$823,27,FALSE)=0,-VLOOKUP($A419,Economática!$A$3:$AI$823,27,FALSE)=\"-\"),1/0,-VLOOKUP($A419,Economática!$A$3:$AI$823,27,FALSE)))","v":""},"",{"$f":"IF($A419=\"\",\"\",IF(OR(VLOOKUP($A419,Economática!$A$3:$AI$823,28,FALSE)=0,VLOOKUP($A419,Economática!$A$3:$AI$823,28,FALSE)=\"-\"),1/0,VLOOKUP($A419,Economática!$A$3:$AI$823,28,FALSE)))","v":""},{"$f":"IF($A419=\"\",\"\",IF(OR(VLOOKUP($A419,Economática!$A$3:$AI$823,29,FALSE)=0,VLOOKUP($A419,Economática!$A$3:$AI$823,29,FALSE)=\"-\"),1/0,VLOOKUP($A419,Economática!$A$3:$AI$823,29,FALSE)))","v":""},{"$f":"IF($A419=\"\",\"\",IF(OR(VLOOKUP($A419,Economática!$A$3:$AI$823,30,FALSE)/E419=0,VLOOKUP($A419,Economática!$A$3:$AI$823,30,FALSE)/E419=\"-\",VLOOKUP($A419,Economática!$A$3:$AI$823,30,FALSE)/E419<33.33%,VLOOKUP($A419,Economática!$A$3:$AI$823,30,FALSE)/E419>100%),1/0,VLOOKUP($A419,Economática!$A$3:$AI$823,30,FALSE)/E419))","v":""},"",{"$f":"IF($A419=\"\",\"\",IF(OR(VLOOKUP($A419,Economática!$A$3:$AI$823,25,FALSE)=0,VLOOKUP($A419,Economática!$A$3:$AI$823,25,FALSE)=\"-\"),1/0,VLOOKUP($A419,Economática!$A$3:$AI$823,25,FALSE)))","v":""},{"$f":"CONCATENATE(Economática!B397,\" \",Economática!C397)","v":" "}]
[{"$f":"IF(Economática!AG398=\"\",\"\",Economática!AG398)","v":""},{"$f":"IF($A420=\"\",\"\",VLOOKUP(VLOOKUP($A420,Economática!$A$3:$AI$823,6,FALSE),Correção!$B$16:$C$36,2,FALSE))","v":""},{"$f":"IF(Economática!B398=\"\",\"\",Economática!B398)","v":""},{"$f":"IF($A420=\"\",\"\",IF(OR(VLOOKUP($A420,Economática!$A$3:$AI$823,8,FALSE)=0,VLOOKUP($A420,Economática!$A$3:$AI$823,8,FALSE)=\"-\"),1/0,VLOOKUP($A420,Economática!$A$3:$AI$823,8,FALSE)))","v":""},{"$f":"IF(A420=\"\",\"\",IF(ISERROR(VLOOKUP(A420,Correção!$B$2:$G$13,9,FALSE)),VLOOKUP($A420,Economática!$A$3:$AI$823,9,FALSE),VLOOKUP(A420,Correção!$B$2:$G$13,9,FALSE)))","v":""},{"$f":"IF($A420=\"\",\"\",Economática!G398)","v":""},{"$f":"IF($A420=\"\",\"\",IF(OR(VLOOKUP($A420,Economática!$A$3:$AI$823,10,FALSE)=0,VLOOKUP($A420,Economática!$A$3:$AI$823,10,FALSE)=\"-\"),1/0,VLOOKUP($A420,Economática!$A$3:$AI$823,10,FALSE)))","v":""},{"$f":"IF($A420=\"\",\"\",IF(OR(VLOOKUP($A420,Economática!$A$3:$AI$823,11,FALSE)=0,VLOOKUP($A420,Economática!$A$3:$AI$823,11,FALSE)=\"-\"),1/0,VLOOKUP($A420,Economática!$A$3:$AI$823,11,FALSE)))","v":""},{"$f":"IF($A420=\"\",\"\",IF(OR(VLOOKUP($A420,Economática!$A$3:$AI$823,12,FALSE)=0,VLOOKUP($A420,Economática!$A$3:$AI$823,12,FALSE)=\"-\"),1/0,VLOOKUP($A420,Economática!$A$3:$AI$823,12,FALSE)))","v":""},{"$f":"IF($A420=\"\",\"\",IF(OR(VLOOKUP($A420,Economática!$A$3:$AI$823,13,FALSE)=0,VLOOKUP($A420,Economática!$A$3:$AI$823,13,FALSE)=\"-\"),1/0,VLOOKUP($A420,Economática!$A$3:$AI$823,13,FALSE)))","v":""},{"$f":"IF($A420=\"\",\"\",IF(OR(VLOOKUP($A420,Economática!$A$3:$AI$823,14,FALSE)=0,VLOOKUP($A420,Economática!$A$3:$AI$823,14,FALSE)=\"-\"),1/0,VLOOKUP($A420,Economática!$A$3:$AI$823,14,FALSE)))","v":""},{"$f":"IF($A420=\"\",\"\",IF(OR(VLOOKUP($A420,Economática!$A$3:$AI$823,15,FALSE)=0,VLOOKUP($A420,Economática!$A$3:$AI$823,15,FALSE)=\"-\"),1/0,VLOOKUP($A420,Economática!$A$3:$AI$823,15,FALSE)))","v":""},{"$f":"IF($A420=\"\",\"\",IF(OR(VLOOKUP($A420,Economática!$A$3:$AI$823,16,FALSE)=0,VLOOKUP($A420,Economática!$A$3:$AI$823,16,FALSE)=\"-\"),1/0,VLOOKUP($A420,Economática!$A$3:$AI$823,16,FALSE)))","v":""},{"$f":"IF($A420=\"\",\"\",IF(OR(VLOOKUP($A420,Economática!$A$3:$AI$823,17,FALSE)=0,VLOOKUP($A420,Economática!$A$3:$AI$823,17,FALSE)=\"-\"),1/0,VLOOKUP($A420,Economática!$A$3:$AI$823,17,FALSE)))","v":""},{"$f":"IF($A420=\"\",\"\",IF(OR(VLOOKUP($A420,Economática!$A$3:$AI$823,18,FALSE)=0,VLOOKUP($A420,Economática!$A$3:$AI$823,18,FALSE)=\"-\"),1/0,VLOOKUP($A420,Economática!$A$3:$AI$823,18,FALSE)))","v":""},{"$f":"IF($A420=\"\",\"\",IF(OR(VLOOKUP($A420,Economática!$A$3:$AI$823,19,FALSE)=0,VLOOKUP($A420,Economática!$A$3:$AI$823,19,FALSE)=\"-\"),1/0,VLOOKUP($A420,Economática!$A$3:$AI$823,19,FALSE)))","v":""},{"$f":"IF($A420=\"\",\"\",VLOOKUP($A420,Economática!$A$3:$AI$823,20,FALSE)/E420)","v":""},"","","",{"$f":"IF($A420=\"\",\"\",IF(OR(VLOOKUP($A420,Economática!$A$3:$AI$823,21,FALSE)/100=0,VLOOKUP($A420,Economática!$A$3:$AI$823,21,FALSE)/100=\"-\"),1/0,VLOOKUP($A420,Economática!$A$3:$AI$823,21,FALSE)/100))","v":""},{"$f":"IF($A420=\"\",\"\",IF(OR(VLOOKUP($A420,Economática!$A$3:$AI$823,22,FALSE)/100=0,VLOOKUP($A420,Economática!$A$3:$AI$823,22,FALSE)/100=\"-\"),1/0,VLOOKUP($A420,Economática!$A$3:$AI$823,22,FALSE)/100))","v":""},{"$f":"IF($A420=\"\",\"\",IF(OR(VLOOKUP($A420,Economática!$A$3:$AI$823,23,FALSE)=0,VLOOKUP($A420,Economática!$A$3:$AI$823,23,FALSE)=\"-\"),1/0,VLOOKUP($A420,Economática!$A$3:$AI$823,23,FALSE)))","v":""},{"$f":"IF($A420=\"\",\"\",IF(OR(VLOOKUP($A420,Economática!$A$3:$AI$823,24,FALSE)=0,VLOOKUP($A420,Economática!$A$3:$AI$823,24,FALSE)=\"-\"),1/0,VLOOKUP($A420,Economática!$A$3:$AI$823,24,FALSE)))","v":""},{"$f":"IF($A420=\"\",\"\",IF(OR(VLOOKUP($A420,Economática!$A$3:$AI$823,25,FALSE)=0,VLOOKUP($A420,Economática!$A$3:$AI$823,25,FALSE)=\"-\"),1/0,VLOOKUP($A420,Economática!$A$3:$AI$823,25,FALSE)))","v":""},{"$f":"IF($A420=\"\",\"\",IF(ISERROR((F420+VLOOKUP($A420,Economática!$A$3:$AI$823,26,FALSE))/Y420),(F420+VLOOKUP($A420,Economática!$A$3:$AI$823,26,FALSE))/Y420,(F420+VLOOKUP($A420,Economática!$A$3:$AI$823,26,FALSE))/Y420))","v":""},{"$f":"IF($A420=\"\",\"\",IF(OR(-VLOOKUP($A420,Economática!$A$3:$AI$823,27,FALSE)=0,-VLOOKUP($A420,Economática!$A$3:$AI$823,27,FALSE)=\"-\"),1/0,-VLOOKUP($A420,Economática!$A$3:$AI$823,27,FALSE)))","v":""},"",{"$f":"IF($A420=\"\",\"\",IF(OR(VLOOKUP($A420,Economática!$A$3:$AI$823,28,FALSE)=0,VLOOKUP($A420,Economática!$A$3:$AI$823,28,FALSE)=\"-\"),1/0,VLOOKUP($A420,Economática!$A$3:$AI$823,28,FALSE)))","v":""},{"$f":"IF($A420=\"\",\"\",IF(OR(VLOOKUP($A420,Economática!$A$3:$AI$823,29,FALSE)=0,VLOOKUP($A420,Economática!$A$3:$AI$823,29,FALSE)=\"-\"),1/0,VLOOKUP($A420,Economática!$A$3:$AI$823,29,FALSE)))","v":""},{"$f":"IF($A420=\"\",\"\",IF(OR(VLOOKUP($A420,Economática!$A$3:$AI$823,30,FALSE)/E420=0,VLOOKUP($A420,Economática!$A$3:$AI$823,30,FALSE)/E420=\"-\",VLOOKUP($A420,Economática!$A$3:$AI$823,30,FALSE)/E420<33.33%,VLOOKUP($A420,Economática!$A$3:$AI$823,30,FALSE)/E420>100%),1/0,VLOOKUP($A420,Economática!$A$3:$AI$823,30,FALSE)/E420))","v":""},"",{"$f":"IF($A420=\"\",\"\",IF(OR(VLOOKUP($A420,Economática!$A$3:$AI$823,25,FALSE)=0,VLOOKUP($A420,Economática!$A$3:$AI$823,25,FALSE)=\"-\"),1/0,VLOOKUP($A420,Economática!$A$3:$AI$823,25,FALSE)))","v":""},{"$f":"CONCATENATE(Economática!B398,\" \",Economática!C398)","v":" "}]
[{"$f":"IF(Economática!AG399=\"\",\"\",Economática!AG399)","v":""},{"$f":"IF($A421=\"\",\"\",VLOOKUP(VLOOKUP($A421,Economática!$A$3:$AI$823,6,FALSE),Correção!$B$16:$C$36,2,FALSE))","v":""},{"$f":"IF(Economática!B399=\"\",\"\",Economática!B399)","v":""},{"$f":"IF($A421=\"\",\"\",IF(OR(VLOOKUP($A421,Economática!$A$3:$AI$823,8,FALSE)=0,VLOOKUP($A421,Economática!$A$3:$AI$823,8,FALSE)=\"-\"),1/0,VLOOKUP($A421,Economática!$A$3:$AI$823,8,FALSE)))","v":""},{"$f":"IF(A421=\"\",\"\",IF(ISERROR(VLOOKUP(A421,Correção!$B$2:$G$13,9,FALSE)),VLOOKUP($A421,Economática!$A$3:$AI$823,9,FALSE),VLOOKUP(A421,Correção!$B$2:$G$13,9,FALSE)))","v":""},{"$f":"IF($A421=\"\",\"\",Economática!G399)","v":""},{"$f":"IF($A421=\"\",\"\",IF(OR(VLOOKUP($A421,Economática!$A$3:$AI$823,10,FALSE)=0,VLOOKUP($A421,Economática!$A$3:$AI$823,10,FALSE)=\"-\"),1/0,VLOOKUP($A421,Economática!$A$3:$AI$823,10,FALSE)))","v":""},{"$f":"IF($A421=\"\",\"\",IF(OR(VLOOKUP($A421,Economática!$A$3:$AI$823,11,FALSE)=0,VLOOKUP($A421,Economática!$A$3:$AI$823,11,FALSE)=\"-\"),1/0,VLOOKUP($A421,Economática!$A$3:$AI$823,11,FALSE)))","v":""},{"$f":"IF($A421=\"\",\"\",IF(OR(VLOOKUP($A421,Economática!$A$3:$AI$823,12,FALSE)=0,VLOOKUP($A421,Economática!$A$3:$AI$823,12,FALSE)=\"-\"),1/0,VLOOKUP($A421,Economática!$A$3:$AI$823,12,FALSE)))","v":""},{"$f":"IF($A421=\"\",\"\",IF(OR(VLOOKUP($A421,Economática!$A$3:$AI$823,13,FALSE)=0,VLOOKUP($A421,Economática!$A$3:$AI$823,13,FALSE)=\"-\"),1/0,VLOOKUP($A421,Economática!$A$3:$AI$823,13,FALSE)))","v":""},{"$f":"IF($A421=\"\",\"\",IF(OR(VLOOKUP($A421,Economática!$A$3:$AI$823,14,FALSE)=0,VLOOKUP($A421,Economática!$A$3:$AI$823,14,FALSE)=\"-\"),1/0,VLOOKUP($A421,Economática!$A$3:$AI$823,14,FALSE)))","v":""},{"$f":"IF($A421=\"\",\"\",IF(OR(VLOOKUP($A421,Economática!$A$3:$AI$823,15,FALSE)=0,VLOOKUP($A421,Economática!$A$3:$AI$823,15,FALSE)=\"-\"),1/0,VLOOKUP($A421,Economática!$A$3:$AI$823,15,FALSE)))","v":""},{"$f":"IF($A421=\"\",\"\",IF(OR(VLOOKUP($A421,Economática!$A$3:$AI$823,16,FALSE)=0,VLOOKUP($A421,Economática!$A$3:$AI$823,16,FALSE)=\"-\"),1/0,VLOOKUP($A421,Economática!$A$3:$AI$823,16,FALSE)))","v":""},{"$f":"IF($A421=\"\",\"\",IF(OR(VLOOKUP($A421,Economática!$A$3:$AI$823,17,FALSE)=0,VLOOKUP($A421,Economática!$A$3:$AI$823,17,FALSE)=\"-\"),1/0,VLOOKUP($A421,Economática!$A$3:$AI$823,17,FALSE)))","v":""},{"$f":"IF($A421=\"\",\"\",IF(OR(VLOOKUP($A421,Economática!$A$3:$AI$823,18,FALSE)=0,VLOOKUP($A421,Economática!$A$3:$AI$823,18,FALSE)=\"-\"),1/0,VLOOKUP($A421,Economática!$A$3:$AI$823,18,FALSE)))","v":""},{"$f":"IF($A421=\"\",\"\",IF(OR(VLOOKUP($A421,Economática!$A$3:$AI$823,19,FALSE)=0,VLOOKUP($A421,Economática!$A$3:$AI$823,19,FALSE)=\"-\"),1/0,VLOOKUP($A421,Economática!$A$3:$AI$823,19,FALSE)))","v":""},{"$f":"IF($A421=\"\",\"\",VLOOKUP($A421,Economática!$A$3:$AI$823,20,FALSE)/E421)","v":""},"","","",{"$f":"IF($A421=\"\",\"\",IF(OR(VLOOKUP($A421,Economática!$A$3:$AI$823,21,FALSE)/100=0,VLOOKUP($A421,Economática!$A$3:$AI$823,21,FALSE)/100=\"-\"),1/0,VLOOKUP($A421,Economática!$A$3:$AI$823,21,FALSE)/100))","v":""},{"$f":"IF($A421=\"\",\"\",IF(OR(VLOOKUP($A421,Economática!$A$3:$AI$823,22,FALSE)/100=0,VLOOKUP($A421,Economática!$A$3:$AI$823,22,FALSE)/100=\"-\"),1/0,VLOOKUP($A421,Economática!$A$3:$AI$823,22,FALSE)/100))","v":""},{"$f":"IF($A421=\"\",\"\",IF(OR(VLOOKUP($A421,Economática!$A$3:$AI$823,23,FALSE)=0,VLOOKUP($A421,Economática!$A$3:$AI$823,23,FALSE)=\"-\"),1/0,VLOOKUP($A421,Economática!$A$3:$AI$823,23,FALSE)))","v":""},{"$f":"IF($A421=\"\",\"\",IF(OR(VLOOKUP($A421,Economática!$A$3:$AI$823,24,FALSE)=0,VLOOKUP($A421,Economática!$A$3:$AI$823,24,FALSE)=\"-\"),1/0,VLOOKUP($A421,Economática!$A$3:$AI$823,24,FALSE)))","v":""},{"$f":"IF($A421=\"\",\"\",IF(OR(VLOOKUP($A421,Economática!$A$3:$AI$823,25,FALSE)=0,VLOOKUP($A421,Economática!$A$3:$AI$823,25,FALSE)=\"-\"),1/0,VLOOKUP($A421,Economática!$A$3:$AI$823,25,FALSE)))","v":""},{"$f":"IF($A421=\"\",\"\",IF(ISERROR((F421+VLOOKUP($A421,Economática!$A$3:$AI$823,26,FALSE))/Y421),(F421+VLOOKUP($A421,Economática!$A$3:$AI$823,26,FALSE))/Y421,(F421+VLOOKUP($A421,Economática!$A$3:$AI$823,26,FALSE))/Y421))","v":""},{"$f":"IF($A421=\"\",\"\",IF(OR(-VLOOKUP($A421,Economática!$A$3:$AI$823,27,FALSE)=0,-VLOOKUP($A421,Economática!$A$3:$AI$823,27,FALSE)=\"-\"),1/0,-VLOOKUP($A421,Economática!$A$3:$AI$823,27,FALSE)))","v":""},"",{"$f":"IF($A421=\"\",\"\",IF(OR(VLOOKUP($A421,Economática!$A$3:$AI$823,28,FALSE)=0,VLOOKUP($A421,Economática!$A$3:$AI$823,28,FALSE)=\"-\"),1/0,VLOOKUP($A421,Economática!$A$3:$AI$823,28,FALSE)))","v":""},{"$f":"IF($A421=\"\",\"\",IF(OR(VLOOKUP($A421,Economática!$A$3:$AI$823,29,FALSE)=0,VLOOKUP($A421,Economática!$A$3:$AI$823,29,FALSE)=\"-\"),1/0,VLOOKUP($A421,Economática!$A$3:$AI$823,29,FALSE)))","v":""},{"$f":"IF($A421=\"\",\"\",IF(OR(VLOOKUP($A421,Economática!$A$3:$AI$823,30,FALSE)/E421=0,VLOOKUP($A421,Economática!$A$3:$AI$823,30,FALSE)/E421=\"-\",VLOOKUP($A421,Economática!$A$3:$AI$823,30,FALSE)/E421<33.33%,VLOOKUP($A421,Economática!$A$3:$AI$823,30,FALSE)/E421>100%),1/0,VLOOKUP($A421,Economática!$A$3:$AI$823,30,FALSE)/E421))","v":""},"",{"$f":"IF($A421=\"\",\"\",IF(OR(VLOOKUP($A421,Economática!$A$3:$AI$823,25,FALSE)=0,VLOOKUP($A421,Economática!$A$3:$AI$823,25,FALSE)=\"-\"),1/0,VLOOKUP($A421,Economática!$A$3:$AI$823,25,FALSE)))","v":""},{"$f":"CONCATENATE(Economática!B399,\" \",Economática!C399)","v":" "}]
[{"$f":"IF(Economática!AG400=\"\",\"\",Economática!AG400)","v":""},{"$f":"IF($A422=\"\",\"\",VLOOKUP(VLOOKUP($A422,Economática!$A$3:$AI$823,6,FALSE),Correção!$B$16:$C$36,2,FALSE))","v":""},{"$f":"IF(Economática!B400=\"\",\"\",Economática!B400)","v":""},{"$f":"IF($A422=\"\",\"\",IF(OR(VLOOKUP($A422,Economática!$A$3:$AI$823,8,FALSE)=0,VLOOKUP($A422,Economática!$A$3:$AI$823,8,FALSE)=\"-\"),1/0,VLOOKUP($A422,Economática!$A$3:$AI$823,8,FALSE)))","v":""},{"$f":"IF(A422=\"\",\"\",IF(ISERROR(VLOOKUP(A422,Correção!$B$2:$G$13,9,FALSE)),VLOOKUP($A422,Economática!$A$3:$AI$823,9,FALSE),VLOOKUP(A422,Correção!$B$2:$G$13,9,FALSE)))","v":""},{"$f":"IF($A422=\"\",\"\",Economática!G400)","v":""},{"$f":"IF($A422=\"\",\"\",IF(OR(VLOOKUP($A422,Economática!$A$3:$AI$823,10,FALSE)=0,VLOOKUP($A422,Economática!$A$3:$AI$823,10,FALSE)=\"-\"),1/0,VLOOKUP($A422,Economática!$A$3:$AI$823,10,FALSE)))","v":""},{"$f":"IF($A422=\"\",\"\",IF(OR(VLOOKUP($A422,Economática!$A$3:$AI$823,11,FALSE)=0,VLOOKUP($A422,Economática!$A$3:$AI$823,11,FALSE)=\"-\"),1/0,VLOOKUP($A422,Economática!$A$3:$AI$823,11,FALSE)))","v":""},{"$f":"IF($A422=\"\",\"\",IF(OR(VLOOKUP($A422,Economática!$A$3:$AI$823,12,FALSE)=0,VLOOKUP($A422,Economática!$A$3:$AI$823,12,FALSE)=\"-\"),1/0,VLOOKUP($A422,Economática!$A$3:$AI$823,12,FALSE)))","v":""},{"$f":"IF($A422=\"\",\"\",IF(OR(VLOOKUP($A422,Economática!$A$3:$AI$823,13,FALSE)=0,VLOOKUP($A422,Economática!$A$3:$AI$823,13,FALSE)=\"-\"),1/0,VLOOKUP($A422,Economática!$A$3:$AI$823,13,FALSE)))","v":""},{"$f":"IF($A422=\"\",\"\",IF(OR(VLOOKUP($A422,Economática!$A$3:$AI$823,14,FALSE)=0,VLOOKUP($A422,Economática!$A$3:$AI$823,14,FALSE)=\"-\"),1/0,VLOOKUP($A422,Economática!$A$3:$AI$823,14,FALSE)))","v":""},{"$f":"IF($A422=\"\",\"\",IF(OR(VLOOKUP($A422,Economática!$A$3:$AI$823,15,FALSE)=0,VLOOKUP($A422,Economática!$A$3:$AI$823,15,FALSE)=\"-\"),1/0,VLOOKUP($A422,Economática!$A$3:$AI$823,15,FALSE)))","v":""},{"$f":"IF($A422=\"\",\"\",IF(OR(VLOOKUP($A422,Economática!$A$3:$AI$823,16,FALSE)=0,VLOOKUP($A422,Economática!$A$3:$AI$823,16,FALSE)=\"-\"),1/0,VLOOKUP($A422,Economática!$A$3:$AI$823,16,FALSE)))","v":""},{"$f":"IF($A422=\"\",\"\",IF(OR(VLOOKUP($A422,Economática!$A$3:$AI$823,17,FALSE)=0,VLOOKUP($A422,Economática!$A$3:$AI$823,17,FALSE)=\"-\"),1/0,VLOOKUP($A422,Economática!$A$3:$AI$823,17,FALSE)))","v":""},{"$f":"IF($A422=\"\",\"\",IF(OR(VLOOKUP($A422,Economática!$A$3:$AI$823,18,FALSE)=0,VLOOKUP($A422,Economática!$A$3:$AI$823,18,FALSE)=\"-\"),1/0,VLOOKUP($A422,Economática!$A$3:$AI$823,18,FALSE)))","v":""},{"$f":"IF($A422=\"\",\"\",IF(OR(VLOOKUP($A422,Economática!$A$3:$AI$823,19,FALSE)=0,VLOOKUP($A422,Economática!$A$3:$AI$823,19,FALSE)=\"-\"),1/0,VLOOKUP($A422,Economática!$A$3:$AI$823,19,FALSE)))","v":""},{"$f":"IF($A422=\"\",\"\",VLOOKUP($A422,Economática!$A$3:$AI$823,20,FALSE)/E422)","v":""},"","","",{"$f":"IF($A422=\"\",\"\",IF(OR(VLOOKUP($A422,Economática!$A$3:$AI$823,21,FALSE)/100=0,VLOOKUP($A422,Economática!$A$3:$AI$823,21,FALSE)/100=\"-\"),1/0,VLOOKUP($A422,Economática!$A$3:$AI$823,21,FALSE)/100))","v":""},{"$f":"IF($A422=\"\",\"\",IF(OR(VLOOKUP($A422,Economática!$A$3:$AI$823,22,FALSE)/100=0,VLOOKUP($A422,Economática!$A$3:$AI$823,22,FALSE)/100=\"-\"),1/0,VLOOKUP($A422,Economática!$A$3:$AI$823,22,FALSE)/100))","v":""},{"$f":"IF($A422=\"\",\"\",IF(OR(VLOOKUP($A422,Economática!$A$3:$AI$823,23,FALSE)=0,VLOOKUP($A422,Economática!$A$3:$AI$823,23,FALSE)=\"-\"),1/0,VLOOKUP($A422,Economática!$A$3:$AI$823,23,FALSE)))","v":""},{"$f":"IF($A422=\"\",\"\",IF(OR(VLOOKUP($A422,Economática!$A$3:$AI$823,24,FALSE)=0,VLOOKUP($A422,Economática!$A$3:$AI$823,24,FALSE)=\"-\"),1/0,VLOOKUP($A422,Economática!$A$3:$AI$823,24,FALSE)))","v":""},{"$f":"IF($A422=\"\",\"\",IF(OR(VLOOKUP($A422,Economática!$A$3:$AI$823,25,FALSE)=0,VLOOKUP($A422,Economática!$A$3:$AI$823,25,FALSE)=\"-\"),1/0,VLOOKUP($A422,Economática!$A$3:$AI$823,25,FALSE)))","v":""},{"$f":"IF($A422=\"\",\"\",IF(ISERROR((F422+VLOOKUP($A422,Economática!$A$3:$AI$823,26,FALSE))/Y422),(F422+VLOOKUP($A422,Economática!$A$3:$AI$823,26,FALSE))/Y422,(F422+VLOOKUP($A422,Economática!$A$3:$AI$823,26,FALSE))/Y422))","v":""},{"$f":"IF($A422=\"\",\"\",IF(OR(-VLOOKUP($A422,Economática!$A$3:$AI$823,27,FALSE)=0,-VLOOKUP($A422,Economática!$A$3:$AI$823,27,FALSE)=\"-\"),1/0,-VLOOKUP($A422,Economática!$A$3:$AI$823,27,FALSE)))","v":""},"",{"$f":"IF($A422=\"\",\"\",IF(OR(VLOOKUP($A422,Economática!$A$3:$AI$823,28,FALSE)=0,VLOOKUP($A422,Economática!$A$3:$AI$823,28,FALSE)=\"-\"),1/0,VLOOKUP($A422,Economática!$A$3:$AI$823,28,FALSE)))","v":""},{"$f":"IF($A422=\"\",\"\",IF(OR(VLOOKUP($A422,Economática!$A$3:$AI$823,29,FALSE)=0,VLOOKUP($A422,Economática!$A$3:$AI$823,29,FALSE)=\"-\"),1/0,VLOOKUP($A422,Economática!$A$3:$AI$823,29,FALSE)))","v":""},{"$f":"IF($A422=\"\",\"\",IF(OR(VLOOKUP($A422,Economática!$A$3:$AI$823,30,FALSE)/E422=0,VLOOKUP($A422,Economática!$A$3:$AI$823,30,FALSE)/E422=\"-\",VLOOKUP($A422,Economática!$A$3:$AI$823,30,FALSE)/E422<33.33%,VLOOKUP($A422,Economática!$A$3:$AI$823,30,FALSE)/E422>100%),1/0,VLOOKUP($A422,Economática!$A$3:$AI$823,30,FALSE)/E422))","v":""},"",{"$f":"IF($A422=\"\",\"\",IF(OR(VLOOKUP($A422,Economática!$A$3:$AI$823,25,FALSE)=0,VLOOKUP($A422,Economática!$A$3:$AI$823,25,FALSE)=\"-\"),1/0,VLOOKUP($A422,Economática!$A$3:$AI$823,25,FALSE)))","v":""},{"$f":"CONCATENATE(Economática!B400,\" \",Economática!C400)","v":" "}]
[{"$f":"IF(Economática!AG401=\"\",\"\",Economática!AG401)","v":""},{"$f":"IF($A423=\"\",\"\",VLOOKUP(VLOOKUP($A423,Economática!$A$3:$AI$823,6,FALSE),Correção!$B$16:$C$36,2,FALSE))","v":""},{"$f":"IF(Economática!B401=\"\",\"\",Economática!B401)","v":""},{"$f":"IF($A423=\"\",\"\",IF(OR(VLOOKUP($A423,Economática!$A$3:$AI$823,8,FALSE)=0,VLOOKUP($A423,Economática!$A$3:$AI$823,8,FALSE)=\"-\"),1/0,VLOOKUP($A423,Economática!$A$3:$AI$823,8,FALSE)))","v":""},{"$f":"IF(A423=\"\",\"\",IF(ISERROR(VLOOKUP(A423,Correção!$B$2:$G$13,9,FALSE)),VLOOKUP($A423,Economática!$A$3:$AI$823,9,FALSE),VLOOKUP(A423,Correção!$B$2:$G$13,9,FALSE)))","v":""},{"$f":"IF($A423=\"\",\"\",Economática!G401)","v":""},{"$f":"IF($A423=\"\",\"\",IF(OR(VLOOKUP($A423,Economática!$A$3:$AI$823,10,FALSE)=0,VLOOKUP($A423,Economática!$A$3:$AI$823,10,FALSE)=\"-\"),1/0,VLOOKUP($A423,Economática!$A$3:$AI$823,10,FALSE)))","v":""},{"$f":"IF($A423=\"\",\"\",IF(OR(VLOOKUP($A423,Economática!$A$3:$AI$823,11,FALSE)=0,VLOOKUP($A423,Economática!$A$3:$AI$823,11,FALSE)=\"-\"),1/0,VLOOKUP($A423,Economática!$A$3:$AI$823,11,FALSE)))","v":""},{"$f":"IF($A423=\"\",\"\",IF(OR(VLOOKUP($A423,Economática!$A$3:$AI$823,12,FALSE)=0,VLOOKUP($A423,Economática!$A$3:$AI$823,12,FALSE)=\"-\"),1/0,VLOOKUP($A423,Economática!$A$3:$AI$823,12,FALSE)))","v":""},{"$f":"IF($A423=\"\",\"\",IF(OR(VLOOKUP($A423,Economática!$A$3:$AI$823,13,FALSE)=0,VLOOKUP($A423,Economática!$A$3:$AI$823,13,FALSE)=\"-\"),1/0,VLOOKUP($A423,Economática!$A$3:$AI$823,13,FALSE)))","v":""},{"$f":"IF($A423=\"\",\"\",IF(OR(VLOOKUP($A423,Economática!$A$3:$AI$823,14,FALSE)=0,VLOOKUP($A423,Economática!$A$3:$AI$823,14,FALSE)=\"-\"),1/0,VLOOKUP($A423,Economática!$A$3:$AI$823,14,FALSE)))","v":""},{"$f":"IF($A423=\"\",\"\",IF(OR(VLOOKUP($A423,Economática!$A$3:$AI$823,15,FALSE)=0,VLOOKUP($A423,Economática!$A$3:$AI$823,15,FALSE)=\"-\"),1/0,VLOOKUP($A423,Economática!$A$3:$AI$823,15,FALSE)))","v":""},{"$f":"IF($A423=\"\",\"\",IF(OR(VLOOKUP($A423,Economática!$A$3:$AI$823,16,FALSE)=0,VLOOKUP($A423,Economática!$A$3:$AI$823,16,FALSE)=\"-\"),1/0,VLOOKUP($A423,Economática!$A$3:$AI$823,16,FALSE)))","v":""},{"$f":"IF($A423=\"\",\"\",IF(OR(VLOOKUP($A423,Economática!$A$3:$AI$823,17,FALSE)=0,VLOOKUP($A423,Economática!$A$3:$AI$823,17,FALSE)=\"-\"),1/0,VLOOKUP($A423,Economática!$A$3:$AI$823,17,FALSE)))","v":""},{"$f":"IF($A423=\"\",\"\",IF(OR(VLOOKUP($A423,Economática!$A$3:$AI$823,18,FALSE)=0,VLOOKUP($A423,Economática!$A$3:$AI$823,18,FALSE)=\"-\"),1/0,VLOOKUP($A423,Economática!$A$3:$AI$823,18,FALSE)))","v":""},{"$f":"IF($A423=\"\",\"\",IF(OR(VLOOKUP($A423,Economática!$A$3:$AI$823,19,FALSE)=0,VLOOKUP($A423,Economática!$A$3:$AI$823,19,FALSE)=\"-\"),1/0,VLOOKUP($A423,Economática!$A$3:$AI$823,19,FALSE)))","v":""},{"$f":"IF($A423=\"\",\"\",VLOOKUP($A423,Economática!$A$3:$AI$823,20,FALSE)/E423)","v":""},"","","",{"$f":"IF($A423=\"\",\"\",IF(OR(VLOOKUP($A423,Economática!$A$3:$AI$823,21,FALSE)/100=0,VLOOKUP($A423,Economática!$A$3:$AI$823,21,FALSE)/100=\"-\"),1/0,VLOOKUP($A423,Economática!$A$3:$AI$823,21,FALSE)/100))","v":""},{"$f":"IF($A423=\"\",\"\",IF(OR(VLOOKUP($A423,Economática!$A$3:$AI$823,22,FALSE)/100=0,VLOOKUP($A423,Economática!$A$3:$AI$823,22,FALSE)/100=\"-\"),1/0,VLOOKUP($A423,Economática!$A$3:$AI$823,22,FALSE)/100))","v":""},{"$f":"IF($A423=\"\",\"\",IF(OR(VLOOKUP($A423,Economática!$A$3:$AI$823,23,FALSE)=0,VLOOKUP($A423,Economática!$A$3:$AI$823,23,FALSE)=\"-\"),1/0,VLOOKUP($A423,Economática!$A$3:$AI$823,23,FALSE)))","v":""},{"$f":"IF($A423=\"\",\"\",IF(OR(VLOOKUP($A423,Economática!$A$3:$AI$823,24,FALSE)=0,VLOOKUP($A423,Economática!$A$3:$AI$823,24,FALSE)=\"-\"),1/0,VLOOKUP($A423,Economática!$A$3:$AI$823,24,FALSE)))","v":""},{"$f":"IF($A423=\"\",\"\",IF(OR(VLOOKUP($A423,Economática!$A$3:$AI$823,25,FALSE)=0,VLOOKUP($A423,Economática!$A$3:$AI$823,25,FALSE)=\"-\"),1/0,VLOOKUP($A423,Economática!$A$3:$AI$823,25,FALSE)))","v":""},{"$f":"IF($A423=\"\",\"\",IF(ISERROR((F423+VLOOKUP($A423,Economática!$A$3:$AI$823,26,FALSE))/Y423),(F423+VLOOKUP($A423,Economática!$A$3:$AI$823,26,FALSE))/Y423,(F423+VLOOKUP($A423,Economática!$A$3:$AI$823,26,FALSE))/Y423))","v":""},{"$f":"IF($A423=\"\",\"\",IF(OR(-VLOOKUP($A423,Economática!$A$3:$AI$823,27,FALSE)=0,-VLOOKUP($A423,Economática!$A$3:$AI$823,27,FALSE)=\"-\"),1/0,-VLOOKUP($A423,Economática!$A$3:$AI$823,27,FALSE)))","v":""},"",{"$f":"IF($A423=\"\",\"\",IF(OR(VLOOKUP($A423,Economática!$A$3:$AI$823,28,FALSE)=0,VLOOKUP($A423,Economática!$A$3:$AI$823,28,FALSE)=\"-\"),1/0,VLOOKUP($A423,Economática!$A$3:$AI$823,28,FALSE)))","v":""},{"$f":"IF($A423=\"\",\"\",IF(OR(VLOOKUP($A423,Economática!$A$3:$AI$823,29,FALSE)=0,VLOOKUP($A423,Economática!$A$3:$AI$823,29,FALSE)=\"-\"),1/0,VLOOKUP($A423,Economática!$A$3:$AI$823,29,FALSE)))","v":""},{"$f":"IF($A423=\"\",\"\",IF(OR(VLOOKUP($A423,Economática!$A$3:$AI$823,30,FALSE)/E423=0,VLOOKUP($A423,Economática!$A$3:$AI$823,30,FALSE)/E423=\"-\",VLOOKUP($A423,Economática!$A$3:$AI$823,30,FALSE)/E423<33.33%,VLOOKUP($A423,Economática!$A$3:$AI$823,30,FALSE)/E423>100%),1/0,VLOOKUP($A423,Economática!$A$3:$AI$823,30,FALSE)/E423))","v":""},"",{"$f":"IF($A423=\"\",\"\",IF(OR(VLOOKUP($A423,Economática!$A$3:$AI$823,25,FALSE)=0,VLOOKUP($A423,Economática!$A$3:$AI$823,25,FALSE)=\"-\"),1/0,VLOOKUP($A423,Economática!$A$3:$AI$823,25,FALSE)))","v":""},{"$f":"CONCATENATE(Economática!B401,\" \",Economática!C401)","v":" "}]
[{"$f":"IF(Economática!AG402=\"\",\"\",Economática!AG402)","v":""},{"$f":"IF($A424=\"\",\"\",VLOOKUP(VLOOKUP($A424,Economática!$A$3:$AI$823,6,FALSE),Correção!$B$16:$C$36,2,FALSE))","v":""},{"$f":"IF(Economática!B402=\"\",\"\",Economática!B402)","v":""},{"$f":"IF($A424=\"\",\"\",IF(OR(VLOOKUP($A424,Economática!$A$3:$AI$823,8,FALSE)=0,VLOOKUP($A424,Economática!$A$3:$AI$823,8,FALSE)=\"-\"),1/0,VLOOKUP($A424,Economática!$A$3:$AI$823,8,FALSE)))","v":""},{"$f":"IF(A424=\"\",\"\",IF(ISERROR(VLOOKUP(A424,Correção!$B$2:$G$13,9,FALSE)),VLOOKUP($A424,Economática!$A$3:$AI$823,9,FALSE),VLOOKUP(A424,Correção!$B$2:$G$13,9,FALSE)))","v":""},{"$f":"IF($A424=\"\",\"\",Economática!G402)","v":""},{"$f":"IF($A424=\"\",\"\",IF(OR(VLOOKUP($A424,Economática!$A$3:$AI$823,10,FALSE)=0,VLOOKUP($A424,Economática!$A$3:$AI$823,10,FALSE)=\"-\"),1/0,VLOOKUP($A424,Economática!$A$3:$AI$823,10,FALSE)))","v":""},{"$f":"IF($A424=\"\",\"\",IF(OR(VLOOKUP($A424,Economática!$A$3:$AI$823,11,FALSE)=0,VLOOKUP($A424,Economática!$A$3:$AI$823,11,FALSE)=\"-\"),1/0,VLOOKUP($A424,Economática!$A$3:$AI$823,11,FALSE)))","v":""},{"$f":"IF($A424=\"\",\"\",IF(OR(VLOOKUP($A424,Economática!$A$3:$AI$823,12,FALSE)=0,VLOOKUP($A424,Economática!$A$3:$AI$823,12,FALSE)=\"-\"),1/0,VLOOKUP($A424,Economática!$A$3:$AI$823,12,FALSE)))","v":""},{"$f":"IF($A424=\"\",\"\",IF(OR(VLOOKUP($A424,Economática!$A$3:$AI$823,13,FALSE)=0,VLOOKUP($A424,Economática!$A$3:$AI$823,13,FALSE)=\"-\"),1/0,VLOOKUP($A424,Economática!$A$3:$AI$823,13,FALSE)))","v":""},{"$f":"IF($A424=\"\",\"\",IF(OR(VLOOKUP($A424,Economática!$A$3:$AI$823,14,FALSE)=0,VLOOKUP($A424,Economática!$A$3:$AI$823,14,FALSE)=\"-\"),1/0,VLOOKUP($A424,Economática!$A$3:$AI$823,14,FALSE)))","v":""},{"$f":"IF($A424=\"\",\"\",IF(OR(VLOOKUP($A424,Economática!$A$3:$AI$823,15,FALSE)=0,VLOOKUP($A424,Economática!$A$3:$AI$823,15,FALSE)=\"-\"),1/0,VLOOKUP($A424,Economática!$A$3:$AI$823,15,FALSE)))","v":""},{"$f":"IF($A424=\"\",\"\",IF(OR(VLOOKUP($A424,Economática!$A$3:$AI$823,16,FALSE)=0,VLOOKUP($A424,Economática!$A$3:$AI$823,16,FALSE)=\"-\"),1/0,VLOOKUP($A424,Economática!$A$3:$AI$823,16,FALSE)))","v":""},{"$f":"IF($A424=\"\",\"\",IF(OR(VLOOKUP($A424,Economática!$A$3:$AI$823,17,FALSE)=0,VLOOKUP($A424,Economática!$A$3:$AI$823,17,FALSE)=\"-\"),1/0,VLOOKUP($A424,Economática!$A$3:$AI$823,17,FALSE)))","v":""},{"$f":"IF($A424=\"\",\"\",IF(OR(VLOOKUP($A424,Economática!$A$3:$AI$823,18,FALSE)=0,VLOOKUP($A424,Economática!$A$3:$AI$823,18,FALSE)=\"-\"),1/0,VLOOKUP($A424,Economática!$A$3:$AI$823,18,FALSE)))","v":""},{"$f":"IF($A424=\"\",\"\",IF(OR(VLOOKUP($A424,Economática!$A$3:$AI$823,19,FALSE)=0,VLOOKUP($A424,Economática!$A$3:$AI$823,19,FALSE)=\"-\"),1/0,VLOOKUP($A424,Economática!$A$3:$AI$823,19,FALSE)))","v":""},{"$f":"IF($A424=\"\",\"\",VLOOKUP($A424,Economática!$A$3:$AI$823,20,FALSE)/E424)","v":""},"","","",{"$f":"IF($A424=\"\",\"\",IF(OR(VLOOKUP($A424,Economática!$A$3:$AI$823,21,FALSE)/100=0,VLOOKUP($A424,Economática!$A$3:$AI$823,21,FALSE)/100=\"-\"),1/0,VLOOKUP($A424,Economática!$A$3:$AI$823,21,FALSE)/100))","v":""},{"$f":"IF($A424=\"\",\"\",IF(OR(VLOOKUP($A424,Economática!$A$3:$AI$823,22,FALSE)/100=0,VLOOKUP($A424,Economática!$A$3:$AI$823,22,FALSE)/100=\"-\"),1/0,VLOOKUP($A424,Economática!$A$3:$AI$823,22,FALSE)/100))","v":""},{"$f":"IF($A424=\"\",\"\",IF(OR(VLOOKUP($A424,Economática!$A$3:$AI$823,23,FALSE)=0,VLOOKUP($A424,Economática!$A$3:$AI$823,23,FALSE)=\"-\"),1/0,VLOOKUP($A424,Economática!$A$3:$AI$823,23,FALSE)))","v":""},{"$f":"IF($A424=\"\",\"\",IF(OR(VLOOKUP($A424,Economática!$A$3:$AI$823,24,FALSE)=0,VLOOKUP($A424,Economática!$A$3:$AI$823,24,FALSE)=\"-\"),1/0,VLOOKUP($A424,Economática!$A$3:$AI$823,24,FALSE)))","v":""},{"$f":"IF($A424=\"\",\"\",IF(OR(VLOOKUP($A424,Economática!$A$3:$AI$823,25,FALSE)=0,VLOOKUP($A424,Economática!$A$3:$AI$823,25,FALSE)=\"-\"),1/0,VLOOKUP($A424,Economática!$A$3:$AI$823,25,FALSE)))","v":""},{"$f":"IF($A424=\"\",\"\",IF(ISERROR((F424+VLOOKUP($A424,Economática!$A$3:$AI$823,26,FALSE))/Y424),(F424+VLOOKUP($A424,Economática!$A$3:$AI$823,26,FALSE))/Y424,(F424+VLOOKUP($A424,Economática!$A$3:$AI$823,26,FALSE))/Y424))","v":""},{"$f":"IF($A424=\"\",\"\",IF(OR(-VLOOKUP($A424,Economática!$A$3:$AI$823,27,FALSE)=0,-VLOOKUP($A424,Economática!$A$3:$AI$823,27,FALSE)=\"-\"),1/0,-VLOOKUP($A424,Economática!$A$3:$AI$823,27,FALSE)))","v":""},"",{"$f":"IF($A424=\"\",\"\",IF(OR(VLOOKUP($A424,Economática!$A$3:$AI$823,28,FALSE)=0,VLOOKUP($A424,Economática!$A$3:$AI$823,28,FALSE)=\"-\"),1/0,VLOOKUP($A424,Economática!$A$3:$AI$823,28,FALSE)))","v":""},{"$f":"IF($A424=\"\",\"\",IF(OR(VLOOKUP($A424,Economática!$A$3:$AI$823,29,FALSE)=0,VLOOKUP($A424,Economática!$A$3:$AI$823,29,FALSE)=\"-\"),1/0,VLOOKUP($A424,Economática!$A$3:$AI$823,29,FALSE)))","v":""},{"$f":"IF($A424=\"\",\"\",IF(OR(VLOOKUP($A424,Economática!$A$3:$AI$823,30,FALSE)/E424=0,VLOOKUP($A424,Economática!$A$3:$AI$823,30,FALSE)/E424=\"-\",VLOOKUP($A424,Economática!$A$3:$AI$823,30,FALSE)/E424<33.33%,VLOOKUP($A424,Economática!$A$3:$AI$823,30,FALSE)/E424>100%),1/0,VLOOKUP($A424,Economática!$A$3:$AI$823,30,FALSE)/E424))","v":""},"",{"$f":"IF($A424=\"\",\"\",IF(OR(VLOOKUP($A424,Economática!$A$3:$AI$823,25,FALSE)=0,VLOOKUP($A424,Economática!$A$3:$AI$823,25,FALSE)=\"-\"),1/0,VLOOKUP($A424,Economática!$A$3:$AI$823,25,FALSE)))","v":""},{"$f":"CONCATENATE(Economática!B402,\" \",Economática!C402)","v":" "}]
[{"$f":"IF(Economática!AG403=\"\",\"\",Economática!AG403)","v":""},{"$f":"IF($A425=\"\",\"\",VLOOKUP(VLOOKUP($A425,Economática!$A$3:$AI$823,6,FALSE),Correção!$B$16:$C$36,2,FALSE))","v":""},{"$f":"IF(Economática!B403=\"\",\"\",Economática!B403)","v":""},{"$f":"IF($A425=\"\",\"\",IF(OR(VLOOKUP($A425,Economática!$A$3:$AI$823,8,FALSE)=0,VLOOKUP($A425,Economática!$A$3:$AI$823,8,FALSE)=\"-\"),1/0,VLOOKUP($A425,Economática!$A$3:$AI$823,8,FALSE)))","v":""},{"$f":"IF(A425=\"\",\"\",IF(ISERROR(VLOOKUP(A425,Correção!$B$2:$G$13,9,FALSE)),VLOOKUP($A425,Economática!$A$3:$AI$823,9,FALSE),VLOOKUP(A425,Correção!$B$2:$G$13,9,FALSE)))","v":""},{"$f":"IF($A425=\"\",\"\",Economática!G403)","v":""},{"$f":"IF($A425=\"\",\"\",IF(OR(VLOOKUP($A425,Economática!$A$3:$AI$823,10,FALSE)=0,VLOOKUP($A425,Economática!$A$3:$AI$823,10,FALSE)=\"-\"),1/0,VLOOKUP($A425,Economática!$A$3:$AI$823,10,FALSE)))","v":""},{"$f":"IF($A425=\"\",\"\",IF(OR(VLOOKUP($A425,Economática!$A$3:$AI$823,11,FALSE)=0,VLOOKUP($A425,Economática!$A$3:$AI$823,11,FALSE)=\"-\"),1/0,VLOOKUP($A425,Economática!$A$3:$AI$823,11,FALSE)))","v":""},{"$f":"IF($A425=\"\",\"\",IF(OR(VLOOKUP($A425,Economática!$A$3:$AI$823,12,FALSE)=0,VLOOKUP($A425,Economática!$A$3:$AI$823,12,FALSE)=\"-\"),1/0,VLOOKUP($A425,Economática!$A$3:$AI$823,12,FALSE)))","v":""},{"$f":"IF($A425=\"\",\"\",IF(OR(VLOOKUP($A425,Economática!$A$3:$AI$823,13,FALSE)=0,VLOOKUP($A425,Economática!$A$3:$AI$823,13,FALSE)=\"-\"),1/0,VLOOKUP($A425,Economática!$A$3:$AI$823,13,FALSE)))","v":""},{"$f":"IF($A425=\"\",\"\",IF(OR(VLOOKUP($A425,Economática!$A$3:$AI$823,14,FALSE)=0,VLOOKUP($A425,Economática!$A$3:$AI$823,14,FALSE)=\"-\"),1/0,VLOOKUP($A425,Economática!$A$3:$AI$823,14,FALSE)))","v":""},{"$f":"IF($A425=\"\",\"\",IF(OR(VLOOKUP($A425,Economática!$A$3:$AI$823,15,FALSE)=0,VLOOKUP($A425,Economática!$A$3:$AI$823,15,FALSE)=\"-\"),1/0,VLOOKUP($A425,Economática!$A$3:$AI$823,15,FALSE)))","v":""},{"$f":"IF($A425=\"\",\"\",IF(OR(VLOOKUP($A425,Economática!$A$3:$AI$823,16,FALSE)=0,VLOOKUP($A425,Economática!$A$3:$AI$823,16,FALSE)=\"-\"),1/0,VLOOKUP($A425,Economática!$A$3:$AI$823,16,FALSE)))","v":""},{"$f":"IF($A425=\"\",\"\",IF(OR(VLOOKUP($A425,Economática!$A$3:$AI$823,17,FALSE)=0,VLOOKUP($A425,Economática!$A$3:$AI$823,17,FALSE)=\"-\"),1/0,VLOOKUP($A425,Economática!$A$3:$AI$823,17,FALSE)))","v":""},{"$f":"IF($A425=\"\",\"\",IF(OR(VLOOKUP($A425,Economática!$A$3:$AI$823,18,FALSE)=0,VLOOKUP($A425,Economática!$A$3:$AI$823,18,FALSE)=\"-\"),1/0,VLOOKUP($A425,Economática!$A$3:$AI$823,18,FALSE)))","v":""},{"$f":"IF($A425=\"\",\"\",IF(OR(VLOOKUP($A425,Economática!$A$3:$AI$823,19,FALSE)=0,VLOOKUP($A425,Economática!$A$3:$AI$823,19,FALSE)=\"-\"),1/0,VLOOKUP($A425,Economática!$A$3:$AI$823,19,FALSE)))","v":""},{"$f":"IF($A425=\"\",\"\",VLOOKUP($A425,Economática!$A$3:$AI$823,20,FALSE)/E425)","v":""},"","","",{"$f":"IF($A425=\"\",\"\",IF(OR(VLOOKUP($A425,Economática!$A$3:$AI$823,21,FALSE)/100=0,VLOOKUP($A425,Economática!$A$3:$AI$823,21,FALSE)/100=\"-\"),1/0,VLOOKUP($A425,Economática!$A$3:$AI$823,21,FALSE)/100))","v":""},{"$f":"IF($A425=\"\",\"\",IF(OR(VLOOKUP($A425,Economática!$A$3:$AI$823,22,FALSE)/100=0,VLOOKUP($A425,Economática!$A$3:$AI$823,22,FALSE)/100=\"-\"),1/0,VLOOKUP($A425,Economática!$A$3:$AI$823,22,FALSE)/100))","v":""},{"$f":"IF($A425=\"\",\"\",IF(OR(VLOOKUP($A425,Economática!$A$3:$AI$823,23,FALSE)=0,VLOOKUP($A425,Economática!$A$3:$AI$823,23,FALSE)=\"-\"),1/0,VLOOKUP($A425,Economática!$A$3:$AI$823,23,FALSE)))","v":""},{"$f":"IF($A425=\"\",\"\",IF(OR(VLOOKUP($A425,Economática!$A$3:$AI$823,24,FALSE)=0,VLOOKUP($A425,Economática!$A$3:$AI$823,24,FALSE)=\"-\"),1/0,VLOOKUP($A425,Economática!$A$3:$AI$823,24,FALSE)))","v":""},{"$f":"IF($A425=\"\",\"\",IF(OR(VLOOKUP($A425,Economática!$A$3:$AI$823,25,FALSE)=0,VLOOKUP($A425,Economática!$A$3:$AI$823,25,FALSE)=\"-\"),1/0,VLOOKUP($A425,Economática!$A$3:$AI$823,25,FALSE)))","v":""},{"$f":"IF($A425=\"\",\"\",IF(ISERROR((F425+VLOOKUP($A425,Economática!$A$3:$AI$823,26,FALSE))/Y425),(F425+VLOOKUP($A425,Economática!$A$3:$AI$823,26,FALSE))/Y425,(F425+VLOOKUP($A425,Economática!$A$3:$AI$823,26,FALSE))/Y425))","v":""},{"$f":"IF($A425=\"\",\"\",IF(OR(-VLOOKUP($A425,Economática!$A$3:$AI$823,27,FALSE)=0,-VLOOKUP($A425,Economática!$A$3:$AI$823,27,FALSE)=\"-\"),1/0,-VLOOKUP($A425,Economática!$A$3:$AI$823,27,FALSE)))","v":""},"",{"$f":"IF($A425=\"\",\"\",IF(OR(VLOOKUP($A425,Economática!$A$3:$AI$823,28,FALSE)=0,VLOOKUP($A425,Economática!$A$3:$AI$823,28,FALSE)=\"-\"),1/0,VLOOKUP($A425,Economática!$A$3:$AI$823,28,FALSE)))","v":""},{"$f":"IF($A425=\"\",\"\",IF(OR(VLOOKUP($A425,Economática!$A$3:$AI$823,29,FALSE)=0,VLOOKUP($A425,Economática!$A$3:$AI$823,29,FALSE)=\"-\"),1/0,VLOOKUP($A425,Economática!$A$3:$AI$823,29,FALSE)))","v":""},{"$f":"IF($A425=\"\",\"\",IF(OR(VLOOKUP($A425,Economática!$A$3:$AI$823,30,FALSE)/E425=0,VLOOKUP($A425,Economática!$A$3:$AI$823,30,FALSE)/E425=\"-\",VLOOKUP($A425,Economática!$A$3:$AI$823,30,FALSE)/E425<33.33%,VLOOKUP($A425,Economática!$A$3:$AI$823,30,FALSE)/E425>100%),1/0,VLOOKUP($A425,Economática!$A$3:$AI$823,30,FALSE)/E425))","v":""},"",{"$f":"IF($A425=\"\",\"\",IF(OR(VLOOKUP($A425,Economática!$A$3:$AI$823,25,FALSE)=0,VLOOKUP($A425,Economática!$A$3:$AI$823,25,FALSE)=\"-\"),1/0,VLOOKUP($A425,Economática!$A$3:$AI$823,25,FALSE)))","v":""},{"$f":"CONCATENATE(Economática!B403,\" \",Economática!C403)","v":" "}]
[{"$f":"IF(Economática!AG404=\"\",\"\",Economática!AG404)","v":""},{"$f":"IF($A426=\"\",\"\",VLOOKUP(VLOOKUP($A426,Economática!$A$3:$AI$823,6,FALSE),Correção!$B$16:$C$36,2,FALSE))","v":""},{"$f":"IF(Economática!B404=\"\",\"\",Economática!B404)","v":""},{"$f":"IF($A426=\"\",\"\",IF(OR(VLOOKUP($A426,Economática!$A$3:$AI$823,8,FALSE)=0,VLOOKUP($A426,Economática!$A$3:$AI$823,8,FALSE)=\"-\"),1/0,VLOOKUP($A426,Economática!$A$3:$AI$823,8,FALSE)))","v":""},{"$f":"IF(A426=\"\",\"\",IF(ISERROR(VLOOKUP(A426,Correção!$B$2:$G$13,9,FALSE)),VLOOKUP($A426,Economática!$A$3:$AI$823,9,FALSE),VLOOKUP(A426,Correção!$B$2:$G$13,9,FALSE)))","v":""},{"$f":"IF($A426=\"\",\"\",Economática!G404)","v":""},{"$f":"IF($A426=\"\",\"\",IF(OR(VLOOKUP($A426,Economática!$A$3:$AI$823,10,FALSE)=0,VLOOKUP($A426,Economática!$A$3:$AI$823,10,FALSE)=\"-\"),1/0,VLOOKUP($A426,Economática!$A$3:$AI$823,10,FALSE)))","v":""},{"$f":"IF($A426=\"\",\"\",IF(OR(VLOOKUP($A426,Economática!$A$3:$AI$823,11,FALSE)=0,VLOOKUP($A426,Economática!$A$3:$AI$823,11,FALSE)=\"-\"),1/0,VLOOKUP($A426,Economática!$A$3:$AI$823,11,FALSE)))","v":""},{"$f":"IF($A426=\"\",\"\",IF(OR(VLOOKUP($A426,Economática!$A$3:$AI$823,12,FALSE)=0,VLOOKUP($A426,Economática!$A$3:$AI$823,12,FALSE)=\"-\"),1/0,VLOOKUP($A426,Economática!$A$3:$AI$823,12,FALSE)))","v":""},{"$f":"IF($A426=\"\",\"\",IF(OR(VLOOKUP($A426,Economática!$A$3:$AI$823,13,FALSE)=0,VLOOKUP($A426,Economática!$A$3:$AI$823,13,FALSE)=\"-\"),1/0,VLOOKUP($A426,Economática!$A$3:$AI$823,13,FALSE)))","v":""},{"$f":"IF($A426=\"\",\"\",IF(OR(VLOOKUP($A426,Economática!$A$3:$AI$823,14,FALSE)=0,VLOOKUP($A426,Economática!$A$3:$AI$823,14,FALSE)=\"-\"),1/0,VLOOKUP($A426,Economática!$A$3:$AI$823,14,FALSE)))","v":""},{"$f":"IF($A426=\"\",\"\",IF(OR(VLOOKUP($A426,Economática!$A$3:$AI$823,15,FALSE)=0,VLOOKUP($A426,Economática!$A$3:$AI$823,15,FALSE)=\"-\"),1/0,VLOOKUP($A426,Economática!$A$3:$AI$823,15,FALSE)))","v":""},{"$f":"IF($A426=\"\",\"\",IF(OR(VLOOKUP($A426,Economática!$A$3:$AI$823,16,FALSE)=0,VLOOKUP($A426,Economática!$A$3:$AI$823,16,FALSE)=\"-\"),1/0,VLOOKUP($A426,Economática!$A$3:$AI$823,16,FALSE)))","v":""},{"$f":"IF($A426=\"\",\"\",IF(OR(VLOOKUP($A426,Economática!$A$3:$AI$823,17,FALSE)=0,VLOOKUP($A426,Economática!$A$3:$AI$823,17,FALSE)=\"-\"),1/0,VLOOKUP($A426,Economática!$A$3:$AI$823,17,FALSE)))","v":""},{"$f":"IF($A426=\"\",\"\",IF(OR(VLOOKUP($A426,Economática!$A$3:$AI$823,18,FALSE)=0,VLOOKUP($A426,Economática!$A$3:$AI$823,18,FALSE)=\"-\"),1/0,VLOOKUP($A426,Economática!$A$3:$AI$823,18,FALSE)))","v":""},{"$f":"IF($A426=\"\",\"\",IF(OR(VLOOKUP($A426,Economática!$A$3:$AI$823,19,FALSE)=0,VLOOKUP($A426,Economática!$A$3:$AI$823,19,FALSE)=\"-\"),1/0,VLOOKUP($A426,Economática!$A$3:$AI$823,19,FALSE)))","v":""},{"$f":"IF($A426=\"\",\"\",VLOOKUP($A426,Economática!$A$3:$AI$823,20,FALSE)/E426)","v":""},"","","",{"$f":"IF($A426=\"\",\"\",IF(OR(VLOOKUP($A426,Economática!$A$3:$AI$823,21,FALSE)/100=0,VLOOKUP($A426,Economática!$A$3:$AI$823,21,FALSE)/100=\"-\"),1/0,VLOOKUP($A426,Economática!$A$3:$AI$823,21,FALSE)/100))","v":""},{"$f":"IF($A426=\"\",\"\",IF(OR(VLOOKUP($A426,Economática!$A$3:$AI$823,22,FALSE)/100=0,VLOOKUP($A426,Economática!$A$3:$AI$823,22,FALSE)/100=\"-\"),1/0,VLOOKUP($A426,Economática!$A$3:$AI$823,22,FALSE)/100))","v":""},{"$f":"IF($A426=\"\",\"\",IF(OR(VLOOKUP($A426,Economática!$A$3:$AI$823,23,FALSE)=0,VLOOKUP($A426,Economática!$A$3:$AI$823,23,FALSE)=\"-\"),1/0,VLOOKUP($A426,Economática!$A$3:$AI$823,23,FALSE)))","v":""},{"$f":"IF($A426=\"\",\"\",IF(OR(VLOOKUP($A426,Economática!$A$3:$AI$823,24,FALSE)=0,VLOOKUP($A426,Economática!$A$3:$AI$823,24,FALSE)=\"-\"),1/0,VLOOKUP($A426,Economática!$A$3:$AI$823,24,FALSE)))","v":""},{"$f":"IF($A426=\"\",\"\",IF(OR(VLOOKUP($A426,Economática!$A$3:$AI$823,25,FALSE)=0,VLOOKUP($A426,Economática!$A$3:$AI$823,25,FALSE)=\"-\"),1/0,VLOOKUP($A426,Economática!$A$3:$AI$823,25,FALSE)))","v":""},{"$f":"IF($A426=\"\",\"\",IF(ISERROR((F426+VLOOKUP($A426,Economática!$A$3:$AI$823,26,FALSE))/Y426),(F426+VLOOKUP($A426,Economática!$A$3:$AI$823,26,FALSE))/Y426,(F426+VLOOKUP($A426,Economática!$A$3:$AI$823,26,FALSE))/Y426))","v":""},{"$f":"IF($A426=\"\",\"\",IF(OR(-VLOOKUP($A426,Economática!$A$3:$AI$823,27,FALSE)=0,-VLOOKUP($A426,Economática!$A$3:$AI$823,27,FALSE)=\"-\"),1/0,-VLOOKUP($A426,Economática!$A$3:$AI$823,27,FALSE)))","v":""},"",{"$f":"IF($A426=\"\",\"\",IF(OR(VLOOKUP($A426,Economática!$A$3:$AI$823,28,FALSE)=0,VLOOKUP($A426,Economática!$A$3:$AI$823,28,FALSE)=\"-\"),1/0,VLOOKUP($A426,Economática!$A$3:$AI$823,28,FALSE)))","v":""},{"$f":"IF($A426=\"\",\"\",IF(OR(VLOOKUP($A426,Economática!$A$3:$AI$823,29,FALSE)=0,VLOOKUP($A426,Economática!$A$3:$AI$823,29,FALSE)=\"-\"),1/0,VLOOKUP($A426,Economática!$A$3:$AI$823,29,FALSE)))","v":""},{"$f":"IF($A426=\"\",\"\",IF(OR(VLOOKUP($A426,Economática!$A$3:$AI$823,30,FALSE)/E426=0,VLOOKUP($A426,Economática!$A$3:$AI$823,30,FALSE)/E426=\"-\",VLOOKUP($A426,Economática!$A$3:$AI$823,30,FALSE)/E426<33.33%,VLOOKUP($A426,Economática!$A$3:$AI$823,30,FALSE)/E426>100%),1/0,VLOOKUP($A426,Economática!$A$3:$AI$823,30,FALSE)/E426))","v":""},"",{"$f":"IF($A426=\"\",\"\",IF(OR(VLOOKUP($A426,Economática!$A$3:$AI$823,25,FALSE)=0,VLOOKUP($A426,Economática!$A$3:$AI$823,25,FALSE)=\"-\"),1/0,VLOOKUP($A426,Economática!$A$3:$AI$823,25,FALSE)))","v":""},{"$f":"CONCATENATE(Economática!B404,\" \",Economática!C404)","v":" "}]
[{"$f":"IF(Economática!AG405=\"\",\"\",Economática!AG405)","v":""},{"$f":"IF($A427=\"\",\"\",VLOOKUP(VLOOKUP($A427,Economática!$A$3:$AI$823,6,FALSE),Correção!$B$16:$C$36,2,FALSE))","v":""},{"$f":"IF(Economática!B405=\"\",\"\",Economática!B405)","v":""},{"$f":"IF($A427=\"\",\"\",IF(OR(VLOOKUP($A427,Economática!$A$3:$AI$823,8,FALSE)=0,VLOOKUP($A427,Economática!$A$3:$AI$823,8,FALSE)=\"-\"),1/0,VLOOKUP($A427,Economática!$A$3:$AI$823,8,FALSE)))","v":""},{"$f":"IF(A427=\"\",\"\",IF(ISERROR(VLOOKUP(A427,Correção!$B$2:$G$13,9,FALSE)),VLOOKUP($A427,Economática!$A$3:$AI$823,9,FALSE),VLOOKUP(A427,Correção!$B$2:$G$13,9,FALSE)))","v":""},{"$f":"IF($A427=\"\",\"\",Economática!G405)","v":""},{"$f":"IF($A427=\"\",\"\",IF(OR(VLOOKUP($A427,Economática!$A$3:$AI$823,10,FALSE)=0,VLOOKUP($A427,Economática!$A$3:$AI$823,10,FALSE)=\"-\"),1/0,VLOOKUP($A427,Economática!$A$3:$AI$823,10,FALSE)))","v":""},{"$f":"IF($A427=\"\",\"\",IF(OR(VLOOKUP($A427,Economática!$A$3:$AI$823,11,FALSE)=0,VLOOKUP($A427,Economática!$A$3:$AI$823,11,FALSE)=\"-\"),1/0,VLOOKUP($A427,Economática!$A$3:$AI$823,11,FALSE)))","v":""},{"$f":"IF($A427=\"\",\"\",IF(OR(VLOOKUP($A427,Economática!$A$3:$AI$823,12,FALSE)=0,VLOOKUP($A427,Economática!$A$3:$AI$823,12,FALSE)=\"-\"),1/0,VLOOKUP($A427,Economática!$A$3:$AI$823,12,FALSE)))","v":""},{"$f":"IF($A427=\"\",\"\",IF(OR(VLOOKUP($A427,Economática!$A$3:$AI$823,13,FALSE)=0,VLOOKUP($A427,Economática!$A$3:$AI$823,13,FALSE)=\"-\"),1/0,VLOOKUP($A427,Economática!$A$3:$AI$823,13,FALSE)))","v":""},{"$f":"IF($A427=\"\",\"\",IF(OR(VLOOKUP($A427,Economática!$A$3:$AI$823,14,FALSE)=0,VLOOKUP($A427,Economática!$A$3:$AI$823,14,FALSE)=\"-\"),1/0,VLOOKUP($A427,Economática!$A$3:$AI$823,14,FALSE)))","v":""},{"$f":"IF($A427=\"\",\"\",IF(OR(VLOOKUP($A427,Economática!$A$3:$AI$823,15,FALSE)=0,VLOOKUP($A427,Economática!$A$3:$AI$823,15,FALSE)=\"-\"),1/0,VLOOKUP($A427,Economática!$A$3:$AI$823,15,FALSE)))","v":""},{"$f":"IF($A427=\"\",\"\",IF(OR(VLOOKUP($A427,Economática!$A$3:$AI$823,16,FALSE)=0,VLOOKUP($A427,Economática!$A$3:$AI$823,16,FALSE)=\"-\"),1/0,VLOOKUP($A427,Economática!$A$3:$AI$823,16,FALSE)))","v":""},{"$f":"IF($A427=\"\",\"\",IF(OR(VLOOKUP($A427,Economática!$A$3:$AI$823,17,FALSE)=0,VLOOKUP($A427,Economática!$A$3:$AI$823,17,FALSE)=\"-\"),1/0,VLOOKUP($A427,Economática!$A$3:$AI$823,17,FALSE)))","v":""},{"$f":"IF($A427=\"\",\"\",IF(OR(VLOOKUP($A427,Economática!$A$3:$AI$823,18,FALSE)=0,VLOOKUP($A427,Economática!$A$3:$AI$823,18,FALSE)=\"-\"),1/0,VLOOKUP($A427,Economática!$A$3:$AI$823,18,FALSE)))","v":""},{"$f":"IF($A427=\"\",\"\",IF(OR(VLOOKUP($A427,Economática!$A$3:$AI$823,19,FALSE)=0,VLOOKUP($A427,Economática!$A$3:$AI$823,19,FALSE)=\"-\"),1/0,VLOOKUP($A427,Economática!$A$3:$AI$823,19,FALSE)))","v":""},{"$f":"IF($A427=\"\",\"\",VLOOKUP($A427,Economática!$A$3:$AI$823,20,FALSE)/E427)","v":""},"","","",{"$f":"IF($A427=\"\",\"\",IF(OR(VLOOKUP($A427,Economática!$A$3:$AI$823,21,FALSE)/100=0,VLOOKUP($A427,Economática!$A$3:$AI$823,21,FALSE)/100=\"-\"),1/0,VLOOKUP($A427,Economática!$A$3:$AI$823,21,FALSE)/100))","v":""},{"$f":"IF($A427=\"\",\"\",IF(OR(VLOOKUP($A427,Economática!$A$3:$AI$823,22,FALSE)/100=0,VLOOKUP($A427,Economática!$A$3:$AI$823,22,FALSE)/100=\"-\"),1/0,VLOOKUP($A427,Economática!$A$3:$AI$823,22,FALSE)/100))","v":""},{"$f":"IF($A427=\"\",\"\",IF(OR(VLOOKUP($A427,Economática!$A$3:$AI$823,23,FALSE)=0,VLOOKUP($A427,Economática!$A$3:$AI$823,23,FALSE)=\"-\"),1/0,VLOOKUP($A427,Economática!$A$3:$AI$823,23,FALSE)))","v":""},{"$f":"IF($A427=\"\",\"\",IF(OR(VLOOKUP($A427,Economática!$A$3:$AI$823,24,FALSE)=0,VLOOKUP($A427,Economática!$A$3:$AI$823,24,FALSE)=\"-\"),1/0,VLOOKUP($A427,Economática!$A$3:$AI$823,24,FALSE)))","v":""},{"$f":"IF($A427=\"\",\"\",IF(OR(VLOOKUP($A427,Economática!$A$3:$AI$823,25,FALSE)=0,VLOOKUP($A427,Economática!$A$3:$AI$823,25,FALSE)=\"-\"),1/0,VLOOKUP($A427,Economática!$A$3:$AI$823,25,FALSE)))","v":""},{"$f":"IF($A427=\"\",\"\",IF(ISERROR((F427+VLOOKUP($A427,Economática!$A$3:$AI$823,26,FALSE))/Y427),(F427+VLOOKUP($A427,Economática!$A$3:$AI$823,26,FALSE))/Y427,(F427+VLOOKUP($A427,Economática!$A$3:$AI$823,26,FALSE))/Y427))","v":""},{"$f":"IF($A427=\"\",\"\",IF(OR(-VLOOKUP($A427,Economática!$A$3:$AI$823,27,FALSE)=0,-VLOOKUP($A427,Economática!$A$3:$AI$823,27,FALSE)=\"-\"),1/0,-VLOOKUP($A427,Economática!$A$3:$AI$823,27,FALSE)))","v":""},"",{"$f":"IF($A427=\"\",\"\",IF(OR(VLOOKUP($A427,Economática!$A$3:$AI$823,28,FALSE)=0,VLOOKUP($A427,Economática!$A$3:$AI$823,28,FALSE)=\"-\"),1/0,VLOOKUP($A427,Economática!$A$3:$AI$823,28,FALSE)))","v":""},{"$f":"IF($A427=\"\",\"\",IF(OR(VLOOKUP($A427,Economática!$A$3:$AI$823,29,FALSE)=0,VLOOKUP($A427,Economática!$A$3:$AI$823,29,FALSE)=\"-\"),1/0,VLOOKUP($A427,Economática!$A$3:$AI$823,29,FALSE)))","v":""},{"$f":"IF($A427=\"\",\"\",IF(OR(VLOOKUP($A427,Economática!$A$3:$AI$823,30,FALSE)/E427=0,VLOOKUP($A427,Economática!$A$3:$AI$823,30,FALSE)/E427=\"-\",VLOOKUP($A427,Economática!$A$3:$AI$823,30,FALSE)/E427<33.33%,VLOOKUP($A427,Economática!$A$3:$AI$823,30,FALSE)/E427>100%),1/0,VLOOKUP($A427,Economática!$A$3:$AI$823,30,FALSE)/E427))","v":""},"",{"$f":"IF($A427=\"\",\"\",IF(OR(VLOOKUP($A427,Economática!$A$3:$AI$823,25,FALSE)=0,VLOOKUP($A427,Economática!$A$3:$AI$823,25,FALSE)=\"-\"),1/0,VLOOKUP($A427,Economática!$A$3:$AI$823,25,FALSE)))","v":""},{"$f":"CONCATENATE(Economática!B405,\" \",Economática!C405)","v":" "}]
[{"$f":"IF(Economática!AG406=\"\",\"\",Economática!AG406)","v":""},{"$f":"IF($A428=\"\",\"\",VLOOKUP(VLOOKUP($A428,Economática!$A$3:$AI$823,6,FALSE),Correção!$B$16:$C$36,2,FALSE))","v":""},{"$f":"IF(Economática!B406=\"\",\"\",Economática!B406)","v":""},{"$f":"IF($A428=\"\",\"\",IF(OR(VLOOKUP($A428,Economática!$A$3:$AI$823,8,FALSE)=0,VLOOKUP($A428,Economática!$A$3:$AI$823,8,FALSE)=\"-\"),1/0,VLOOKUP($A428,Economática!$A$3:$AI$823,8,FALSE)))","v":""},{"$f":"IF(A428=\"\",\"\",IF(ISERROR(VLOOKUP(A428,Correção!$B$2:$G$13,9,FALSE)),VLOOKUP($A428,Economática!$A$3:$AI$823,9,FALSE),VLOOKUP(A428,Correção!$B$2:$G$13,9,FALSE)))","v":""},{"$f":"IF($A428=\"\",\"\",Economática!G406)","v":""},{"$f":"IF($A428=\"\",\"\",IF(OR(VLOOKUP($A428,Economática!$A$3:$AI$823,10,FALSE)=0,VLOOKUP($A428,Economática!$A$3:$AI$823,10,FALSE)=\"-\"),1/0,VLOOKUP($A428,Economática!$A$3:$AI$823,10,FALSE)))","v":""},{"$f":"IF($A428=\"\",\"\",IF(OR(VLOOKUP($A428,Economática!$A$3:$AI$823,11,FALSE)=0,VLOOKUP($A428,Economática!$A$3:$AI$823,11,FALSE)=\"-\"),1/0,VLOOKUP($A428,Economática!$A$3:$AI$823,11,FALSE)))","v":""},{"$f":"IF($A428=\"\",\"\",IF(OR(VLOOKUP($A428,Economática!$A$3:$AI$823,12,FALSE)=0,VLOOKUP($A428,Economática!$A$3:$AI$823,12,FALSE)=\"-\"),1/0,VLOOKUP($A428,Economática!$A$3:$AI$823,12,FALSE)))","v":""},{"$f":"IF($A428=\"\",\"\",IF(OR(VLOOKUP($A428,Economática!$A$3:$AI$823,13,FALSE)=0,VLOOKUP($A428,Economática!$A$3:$AI$823,13,FALSE)=\"-\"),1/0,VLOOKUP($A428,Economática!$A$3:$AI$823,13,FALSE)))","v":""},{"$f":"IF($A428=\"\",\"\",IF(OR(VLOOKUP($A428,Economática!$A$3:$AI$823,14,FALSE)=0,VLOOKUP($A428,Economática!$A$3:$AI$823,14,FALSE)=\"-\"),1/0,VLOOKUP($A428,Economática!$A$3:$AI$823,14,FALSE)))","v":""},{"$f":"IF($A428=\"\",\"\",IF(OR(VLOOKUP($A428,Economática!$A$3:$AI$823,15,FALSE)=0,VLOOKUP($A428,Economática!$A$3:$AI$823,15,FALSE)=\"-\"),1/0,VLOOKUP($A428,Economática!$A$3:$AI$823,15,FALSE)))","v":""},{"$f":"IF($A428=\"\",\"\",IF(OR(VLOOKUP($A428,Economática!$A$3:$AI$823,16,FALSE)=0,VLOOKUP($A428,Economática!$A$3:$AI$823,16,FALSE)=\"-\"),1/0,VLOOKUP($A428,Economática!$A$3:$AI$823,16,FALSE)))","v":""},{"$f":"IF($A428=\"\",\"\",IF(OR(VLOOKUP($A428,Economática!$A$3:$AI$823,17,FALSE)=0,VLOOKUP($A428,Economática!$A$3:$AI$823,17,FALSE)=\"-\"),1/0,VLOOKUP($A428,Economática!$A$3:$AI$823,17,FALSE)))","v":""},{"$f":"IF($A428=\"\",\"\",IF(OR(VLOOKUP($A428,Economática!$A$3:$AI$823,18,FALSE)=0,VLOOKUP($A428,Economática!$A$3:$AI$823,18,FALSE)=\"-\"),1/0,VLOOKUP($A428,Economática!$A$3:$AI$823,18,FALSE)))","v":""},{"$f":"IF($A428=\"\",\"\",IF(OR(VLOOKUP($A428,Economática!$A$3:$AI$823,19,FALSE)=0,VLOOKUP($A428,Economática!$A$3:$AI$823,19,FALSE)=\"-\"),1/0,VLOOKUP($A428,Economática!$A$3:$AI$823,19,FALSE)))","v":""},{"$f":"IF($A428=\"\",\"\",VLOOKUP($A428,Economática!$A$3:$AI$823,20,FALSE)/E428)","v":""},"","","",{"$f":"IF($A428=\"\",\"\",IF(OR(VLOOKUP($A428,Economática!$A$3:$AI$823,21,FALSE)/100=0,VLOOKUP($A428,Economática!$A$3:$AI$823,21,FALSE)/100=\"-\"),1/0,VLOOKUP($A428,Economática!$A$3:$AI$823,21,FALSE)/100))","v":""},{"$f":"IF($A428=\"\",\"\",IF(OR(VLOOKUP($A428,Economática!$A$3:$AI$823,22,FALSE)/100=0,VLOOKUP($A428,Economática!$A$3:$AI$823,22,FALSE)/100=\"-\"),1/0,VLOOKUP($A428,Economática!$A$3:$AI$823,22,FALSE)/100))","v":""},{"$f":"IF($A428=\"\",\"\",IF(OR(VLOOKUP($A428,Economática!$A$3:$AI$823,23,FALSE)=0,VLOOKUP($A428,Economática!$A$3:$AI$823,23,FALSE)=\"-\"),1/0,VLOOKUP($A428,Economática!$A$3:$AI$823,23,FALSE)))","v":""},{"$f":"IF($A428=\"\",\"\",IF(OR(VLOOKUP($A428,Economática!$A$3:$AI$823,24,FALSE)=0,VLOOKUP($A428,Economática!$A$3:$AI$823,24,FALSE)=\"-\"),1/0,VLOOKUP($A428,Economática!$A$3:$AI$823,24,FALSE)))","v":""},{"$f":"IF($A428=\"\",\"\",IF(OR(VLOOKUP($A428,Economática!$A$3:$AI$823,25,FALSE)=0,VLOOKUP($A428,Economática!$A$3:$AI$823,25,FALSE)=\"-\"),1/0,VLOOKUP($A428,Economática!$A$3:$AI$823,25,FALSE)))","v":""},{"$f":"IF($A428=\"\",\"\",IF(ISERROR((F428+VLOOKUP($A428,Economática!$A$3:$AI$823,26,FALSE))/Y428),(F428+VLOOKUP($A428,Economática!$A$3:$AI$823,26,FALSE))/Y428,(F428+VLOOKUP($A428,Economática!$A$3:$AI$823,26,FALSE))/Y428))","v":""},{"$f":"IF($A428=\"\",\"\",IF(OR(-VLOOKUP($A428,Economática!$A$3:$AI$823,27,FALSE)=0,-VLOOKUP($A428,Economática!$A$3:$AI$823,27,FALSE)=\"-\"),1/0,-VLOOKUP($A428,Economática!$A$3:$AI$823,27,FALSE)))","v":""},"",{"$f":"IF($A428=\"\",\"\",IF(OR(VLOOKUP($A428,Economática!$A$3:$AI$823,28,FALSE)=0,VLOOKUP($A428,Economática!$A$3:$AI$823,28,FALSE)=\"-\"),1/0,VLOOKUP($A428,Economática!$A$3:$AI$823,28,FALSE)))","v":""},{"$f":"IF($A428=\"\",\"\",IF(OR(VLOOKUP($A428,Economática!$A$3:$AI$823,29,FALSE)=0,VLOOKUP($A428,Economática!$A$3:$AI$823,29,FALSE)=\"-\"),1/0,VLOOKUP($A428,Economática!$A$3:$AI$823,29,FALSE)))","v":""},{"$f":"IF($A428=\"\",\"\",IF(OR(VLOOKUP($A428,Economática!$A$3:$AI$823,30,FALSE)/E428=0,VLOOKUP($A428,Economática!$A$3:$AI$823,30,FALSE)/E428=\"-\",VLOOKUP($A428,Economática!$A$3:$AI$823,30,FALSE)/E428<33.33%,VLOOKUP($A428,Economática!$A$3:$AI$823,30,FALSE)/E428>100%),1/0,VLOOKUP($A428,Economática!$A$3:$AI$823,30,FALSE)/E428))","v":""},"",{"$f":"IF($A428=\"\",\"\",IF(OR(VLOOKUP($A428,Economática!$A$3:$AI$823,25,FALSE)=0,VLOOKUP($A428,Economática!$A$3:$AI$823,25,FALSE)=\"-\"),1/0,VLOOKUP($A428,Economática!$A$3:$AI$823,25,FALSE)))","v":""},{"$f":"CONCATENATE(Economática!B406,\" \",Economática!C406)","v":" "}]
[{"$f":"IF(Economática!AG407=\"\",\"\",Economática!AG407)","v":""},{"$f":"IF($A429=\"\",\"\",VLOOKUP(VLOOKUP($A429,Economática!$A$3:$AI$823,6,FALSE),Correção!$B$16:$C$36,2,FALSE))","v":""},{"$f":"IF(Economática!B407=\"\",\"\",Economática!B407)","v":""},{"$f":"IF($A429=\"\",\"\",IF(OR(VLOOKUP($A429,Economática!$A$3:$AI$823,8,FALSE)=0,VLOOKUP($A429,Economática!$A$3:$AI$823,8,FALSE)=\"-\"),1/0,VLOOKUP($A429,Economática!$A$3:$AI$823,8,FALSE)))","v":""},{"$f":"IF(A429=\"\",\"\",IF(ISERROR(VLOOKUP(A429,Correção!$B$2:$G$13,9,FALSE)),VLOOKUP($A429,Economática!$A$3:$AI$823,9,FALSE),VLOOKUP(A429,Correção!$B$2:$G$13,9,FALSE)))","v":""},{"$f":"IF($A429=\"\",\"\",Economática!G407)","v":""},{"$f":"IF($A429=\"\",\"\",IF(OR(VLOOKUP($A429,Economática!$A$3:$AI$823,10,FALSE)=0,VLOOKUP($A429,Economática!$A$3:$AI$823,10,FALSE)=\"-\"),1/0,VLOOKUP($A429,Economática!$A$3:$AI$823,10,FALSE)))","v":""},{"$f":"IF($A429=\"\",\"\",IF(OR(VLOOKUP($A429,Economática!$A$3:$AI$823,11,FALSE)=0,VLOOKUP($A429,Economática!$A$3:$AI$823,11,FALSE)=\"-\"),1/0,VLOOKUP($A429,Economática!$A$3:$AI$823,11,FALSE)))","v":""},{"$f":"IF($A429=\"\",\"\",IF(OR(VLOOKUP($A429,Economática!$A$3:$AI$823,12,FALSE)=0,VLOOKUP($A429,Economática!$A$3:$AI$823,12,FALSE)=\"-\"),1/0,VLOOKUP($A429,Economática!$A$3:$AI$823,12,FALSE)))","v":""},{"$f":"IF($A429=\"\",\"\",IF(OR(VLOOKUP($A429,Economática!$A$3:$AI$823,13,FALSE)=0,VLOOKUP($A429,Economática!$A$3:$AI$823,13,FALSE)=\"-\"),1/0,VLOOKUP($A429,Economática!$A$3:$AI$823,13,FALSE)))","v":""},{"$f":"IF($A429=\"\",\"\",IF(OR(VLOOKUP($A429,Economática!$A$3:$AI$823,14,FALSE)=0,VLOOKUP($A429,Economática!$A$3:$AI$823,14,FALSE)=\"-\"),1/0,VLOOKUP($A429,Economática!$A$3:$AI$823,14,FALSE)))","v":""},{"$f":"IF($A429=\"\",\"\",IF(OR(VLOOKUP($A429,Economática!$A$3:$AI$823,15,FALSE)=0,VLOOKUP($A429,Economática!$A$3:$AI$823,15,FALSE)=\"-\"),1/0,VLOOKUP($A429,Economática!$A$3:$AI$823,15,FALSE)))","v":""},{"$f":"IF($A429=\"\",\"\",IF(OR(VLOOKUP($A429,Economática!$A$3:$AI$823,16,FALSE)=0,VLOOKUP($A429,Economática!$A$3:$AI$823,16,FALSE)=\"-\"),1/0,VLOOKUP($A429,Economática!$A$3:$AI$823,16,FALSE)))","v":""},{"$f":"IF($A429=\"\",\"\",IF(OR(VLOOKUP($A429,Economática!$A$3:$AI$823,17,FALSE)=0,VLOOKUP($A429,Economática!$A$3:$AI$823,17,FALSE)=\"-\"),1/0,VLOOKUP($A429,Economática!$A$3:$AI$823,17,FALSE)))","v":""},{"$f":"IF($A429=\"\",\"\",IF(OR(VLOOKUP($A429,Economática!$A$3:$AI$823,18,FALSE)=0,VLOOKUP($A429,Economática!$A$3:$AI$823,18,FALSE)=\"-\"),1/0,VLOOKUP($A429,Economática!$A$3:$AI$823,18,FALSE)))","v":""},{"$f":"IF($A429=\"\",\"\",IF(OR(VLOOKUP($A429,Economática!$A$3:$AI$823,19,FALSE)=0,VLOOKUP($A429,Economática!$A$3:$AI$823,19,FALSE)=\"-\"),1/0,VLOOKUP($A429,Economática!$A$3:$AI$823,19,FALSE)))","v":""},{"$f":"IF($A429=\"\",\"\",VLOOKUP($A429,Economática!$A$3:$AI$823,20,FALSE)/E429)","v":""},"","","",{"$f":"IF($A429=\"\",\"\",IF(OR(VLOOKUP($A429,Economática!$A$3:$AI$823,21,FALSE)/100=0,VLOOKUP($A429,Economática!$A$3:$AI$823,21,FALSE)/100=\"-\"),1/0,VLOOKUP($A429,Economática!$A$3:$AI$823,21,FALSE)/100))","v":""},{"$f":"IF($A429=\"\",\"\",IF(OR(VLOOKUP($A429,Economática!$A$3:$AI$823,22,FALSE)/100=0,VLOOKUP($A429,Economática!$A$3:$AI$823,22,FALSE)/100=\"-\"),1/0,VLOOKUP($A429,Economática!$A$3:$AI$823,22,FALSE)/100))","v":""},{"$f":"IF($A429=\"\",\"\",IF(OR(VLOOKUP($A429,Economática!$A$3:$AI$823,23,FALSE)=0,VLOOKUP($A429,Economática!$A$3:$AI$823,23,FALSE)=\"-\"),1/0,VLOOKUP($A429,Economática!$A$3:$AI$823,23,FALSE)))","v":""},{"$f":"IF($A429=\"\",\"\",IF(OR(VLOOKUP($A429,Economática!$A$3:$AI$823,24,FALSE)=0,VLOOKUP($A429,Economática!$A$3:$AI$823,24,FALSE)=\"-\"),1/0,VLOOKUP($A429,Economática!$A$3:$AI$823,24,FALSE)))","v":""},{"$f":"IF($A429=\"\",\"\",IF(OR(VLOOKUP($A429,Economática!$A$3:$AI$823,25,FALSE)=0,VLOOKUP($A429,Economática!$A$3:$AI$823,25,FALSE)=\"-\"),1/0,VLOOKUP($A429,Economática!$A$3:$AI$823,25,FALSE)))","v":""},{"$f":"IF($A429=\"\",\"\",IF(ISERROR((F429+VLOOKUP($A429,Economática!$A$3:$AI$823,26,FALSE))/Y429),(F429+VLOOKUP($A429,Economática!$A$3:$AI$823,26,FALSE))/Y429,(F429+VLOOKUP($A429,Economática!$A$3:$AI$823,26,FALSE))/Y429))","v":""},{"$f":"IF($A429=\"\",\"\",IF(OR(-VLOOKUP($A429,Economática!$A$3:$AI$823,27,FALSE)=0,-VLOOKUP($A429,Economática!$A$3:$AI$823,27,FALSE)=\"-\"),1/0,-VLOOKUP($A429,Economática!$A$3:$AI$823,27,FALSE)))","v":""},"",{"$f":"IF($A429=\"\",\"\",IF(OR(VLOOKUP($A429,Economática!$A$3:$AI$823,28,FALSE)=0,VLOOKUP($A429,Economática!$A$3:$AI$823,28,FALSE)=\"-\"),1/0,VLOOKUP($A429,Economática!$A$3:$AI$823,28,FALSE)))","v":""},{"$f":"IF($A429=\"\",\"\",IF(OR(VLOOKUP($A429,Economática!$A$3:$AI$823,29,FALSE)=0,VLOOKUP($A429,Economática!$A$3:$AI$823,29,FALSE)=\"-\"),1/0,VLOOKUP($A429,Economática!$A$3:$AI$823,29,FALSE)))","v":""},{"$f":"IF($A429=\"\",\"\",IF(OR(VLOOKUP($A429,Economática!$A$3:$AI$823,30,FALSE)/E429=0,VLOOKUP($A429,Economática!$A$3:$AI$823,30,FALSE)/E429=\"-\",VLOOKUP($A429,Economática!$A$3:$AI$823,30,FALSE)/E429<33.33%,VLOOKUP($A429,Economática!$A$3:$AI$823,30,FALSE)/E429>100%),1/0,VLOOKUP($A429,Economática!$A$3:$AI$823,30,FALSE)/E429))","v":""},"",{"$f":"IF($A429=\"\",\"\",IF(OR(VLOOKUP($A429,Economática!$A$3:$AI$823,25,FALSE)=0,VLOOKUP($A429,Economática!$A$3:$AI$823,25,FALSE)=\"-\"),1/0,VLOOKUP($A429,Economática!$A$3:$AI$823,25,FALSE)))","v":""},{"$f":"CONCATENATE(Economática!B407,\" \",Economática!C407)","v":" "}]
[{"$f":"IF(Economática!AG408=\"\",\"\",Economática!AG408)","v":""},{"$f":"IF($A430=\"\",\"\",VLOOKUP(VLOOKUP($A430,Economática!$A$3:$AI$823,6,FALSE),Correção!$B$16:$C$36,2,FALSE))","v":""},{"$f":"IF(Economática!B408=\"\",\"\",Economática!B408)","v":""},{"$f":"IF($A430=\"\",\"\",IF(OR(VLOOKUP($A430,Economática!$A$3:$AI$823,8,FALSE)=0,VLOOKUP($A430,Economática!$A$3:$AI$823,8,FALSE)=\"-\"),1/0,VLOOKUP($A430,Economática!$A$3:$AI$823,8,FALSE)))","v":""},{"$f":"IF(A430=\"\",\"\",IF(ISERROR(VLOOKUP(A430,Correção!$B$2:$G$13,9,FALSE)),VLOOKUP($A430,Economática!$A$3:$AI$823,9,FALSE),VLOOKUP(A430,Correção!$B$2:$G$13,9,FALSE)))","v":""},{"$f":"IF($A430=\"\",\"\",Economática!G408)","v":""},{"$f":"IF($A430=\"\",\"\",IF(OR(VLOOKUP($A430,Economática!$A$3:$AI$823,10,FALSE)=0,VLOOKUP($A430,Economática!$A$3:$AI$823,10,FALSE)=\"-\"),1/0,VLOOKUP($A430,Economática!$A$3:$AI$823,10,FALSE)))","v":""},{"$f":"IF($A430=\"\",\"\",IF(OR(VLOOKUP($A430,Economática!$A$3:$AI$823,11,FALSE)=0,VLOOKUP($A430,Economática!$A$3:$AI$823,11,FALSE)=\"-\"),1/0,VLOOKUP($A430,Economática!$A$3:$AI$823,11,FALSE)))","v":""},{"$f":"IF($A430=\"\",\"\",IF(OR(VLOOKUP($A430,Economática!$A$3:$AI$823,12,FALSE)=0,VLOOKUP($A430,Economática!$A$3:$AI$823,12,FALSE)=\"-\"),1/0,VLOOKUP($A430,Economática!$A$3:$AI$823,12,FALSE)))","v":""},{"$f":"IF($A430=\"\",\"\",IF(OR(VLOOKUP($A430,Economática!$A$3:$AI$823,13,FALSE)=0,VLOOKUP($A430,Economática!$A$3:$AI$823,13,FALSE)=\"-\"),1/0,VLOOKUP($A430,Economática!$A$3:$AI$823,13,FALSE)))","v":""},{"$f":"IF($A430=\"\",\"\",IF(OR(VLOOKUP($A430,Economática!$A$3:$AI$823,14,FALSE)=0,VLOOKUP($A430,Economática!$A$3:$AI$823,14,FALSE)=\"-\"),1/0,VLOOKUP($A430,Economática!$A$3:$AI$823,14,FALSE)))","v":""},{"$f":"IF($A430=\"\",\"\",IF(OR(VLOOKUP($A430,Economática!$A$3:$AI$823,15,FALSE)=0,VLOOKUP($A430,Economática!$A$3:$AI$823,15,FALSE)=\"-\"),1/0,VLOOKUP($A430,Economática!$A$3:$AI$823,15,FALSE)))","v":""},{"$f":"IF($A430=\"\",\"\",IF(OR(VLOOKUP($A430,Economática!$A$3:$AI$823,16,FALSE)=0,VLOOKUP($A430,Economática!$A$3:$AI$823,16,FALSE)=\"-\"),1/0,VLOOKUP($A430,Economática!$A$3:$AI$823,16,FALSE)))","v":""},{"$f":"IF($A430=\"\",\"\",IF(OR(VLOOKUP($A430,Economática!$A$3:$AI$823,17,FALSE)=0,VLOOKUP($A430,Economática!$A$3:$AI$823,17,FALSE)=\"-\"),1/0,VLOOKUP($A430,Economática!$A$3:$AI$823,17,FALSE)))","v":""},{"$f":"IF($A430=\"\",\"\",IF(OR(VLOOKUP($A430,Economática!$A$3:$AI$823,18,FALSE)=0,VLOOKUP($A430,Economática!$A$3:$AI$823,18,FALSE)=\"-\"),1/0,VLOOKUP($A430,Economática!$A$3:$AI$823,18,FALSE)))","v":""},{"$f":"IF($A430=\"\",\"\",IF(OR(VLOOKUP($A430,Economática!$A$3:$AI$823,19,FALSE)=0,VLOOKUP($A430,Economática!$A$3:$AI$823,19,FALSE)=\"-\"),1/0,VLOOKUP($A430,Economática!$A$3:$AI$823,19,FALSE)))","v":""},{"$f":"IF($A430=\"\",\"\",VLOOKUP($A430,Economática!$A$3:$AI$823,20,FALSE)/E430)","v":""},"","","",{"$f":"IF($A430=\"\",\"\",IF(OR(VLOOKUP($A430,Economática!$A$3:$AI$823,21,FALSE)/100=0,VLOOKUP($A430,Economática!$A$3:$AI$823,21,FALSE)/100=\"-\"),1/0,VLOOKUP($A430,Economática!$A$3:$AI$823,21,FALSE)/100))","v":""},{"$f":"IF($A430=\"\",\"\",IF(OR(VLOOKUP($A430,Economática!$A$3:$AI$823,22,FALSE)/100=0,VLOOKUP($A430,Economática!$A$3:$AI$823,22,FALSE)/100=\"-\"),1/0,VLOOKUP($A430,Economática!$A$3:$AI$823,22,FALSE)/100))","v":""},{"$f":"IF($A430=\"\",\"\",IF(OR(VLOOKUP($A430,Economática!$A$3:$AI$823,23,FALSE)=0,VLOOKUP($A430,Economática!$A$3:$AI$823,23,FALSE)=\"-\"),1/0,VLOOKUP($A430,Economática!$A$3:$AI$823,23,FALSE)))","v":""},{"$f":"IF($A430=\"\",\"\",IF(OR(VLOOKUP($A430,Economática!$A$3:$AI$823,24,FALSE)=0,VLOOKUP($A430,Economática!$A$3:$AI$823,24,FALSE)=\"-\"),1/0,VLOOKUP($A430,Economática!$A$3:$AI$823,24,FALSE)))","v":""},{"$f":"IF($A430=\"\",\"\",IF(OR(VLOOKUP($A430,Economática!$A$3:$AI$823,25,FALSE)=0,VLOOKUP($A430,Economática!$A$3:$AI$823,25,FALSE)=\"-\"),1/0,VLOOKUP($A430,Economática!$A$3:$AI$823,25,FALSE)))","v":""},{"$f":"IF($A430=\"\",\"\",IF(ISERROR((F430+VLOOKUP($A430,Economática!$A$3:$AI$823,26,FALSE))/Y430),(F430+VLOOKUP($A430,Economática!$A$3:$AI$823,26,FALSE))/Y430,(F430+VLOOKUP($A430,Economática!$A$3:$AI$823,26,FALSE))/Y430))","v":""},{"$f":"IF($A430=\"\",\"\",IF(OR(-VLOOKUP($A430,Economática!$A$3:$AI$823,27,FALSE)=0,-VLOOKUP($A430,Economática!$A$3:$AI$823,27,FALSE)=\"-\"),1/0,-VLOOKUP($A430,Economática!$A$3:$AI$823,27,FALSE)))","v":""},"",{"$f":"IF($A430=\"\",\"\",IF(OR(VLOOKUP($A430,Economática!$A$3:$AI$823,28,FALSE)=0,VLOOKUP($A430,Economática!$A$3:$AI$823,28,FALSE)=\"-\"),1/0,VLOOKUP($A430,Economática!$A$3:$AI$823,28,FALSE)))","v":""},{"$f":"IF($A430=\"\",\"\",IF(OR(VLOOKUP($A430,Economática!$A$3:$AI$823,29,FALSE)=0,VLOOKUP($A430,Economática!$A$3:$AI$823,29,FALSE)=\"-\"),1/0,VLOOKUP($A430,Economática!$A$3:$AI$823,29,FALSE)))","v":""},{"$f":"IF($A430=\"\",\"\",IF(OR(VLOOKUP($A430,Economática!$A$3:$AI$823,30,FALSE)/E430=0,VLOOKUP($A430,Economática!$A$3:$AI$823,30,FALSE)/E430=\"-\",VLOOKUP($A430,Economática!$A$3:$AI$823,30,FALSE)/E430<33.33%,VLOOKUP($A430,Economática!$A$3:$AI$823,30,FALSE)/E430>100%),1/0,VLOOKUP($A430,Economática!$A$3:$AI$823,30,FALSE)/E430))","v":""},"",{"$f":"IF($A430=\"\",\"\",IF(OR(VLOOKUP($A430,Economática!$A$3:$AI$823,25,FALSE)=0,VLOOKUP($A430,Economática!$A$3:$AI$823,25,FALSE)=\"-\"),1/0,VLOOKUP($A430,Economática!$A$3:$AI$823,25,FALSE)))","v":""},{"$f":"CONCATENATE(Economática!B408,\" \",Economática!C408)","v":" "}]
[{"$f":"IF(Economática!AG409=\"\",\"\",Economática!AG409)","v":""},{"$f":"IF($A431=\"\",\"\",VLOOKUP(VLOOKUP($A431,Economática!$A$3:$AI$823,6,FALSE),Correção!$B$16:$C$36,2,FALSE))","v":""},{"$f":"IF(Economática!B409=\"\",\"\",Economática!B409)","v":""},{"$f":"IF($A431=\"\",\"\",IF(OR(VLOOKUP($A431,Economática!$A$3:$AI$823,8,FALSE)=0,VLOOKUP($A431,Economática!$A$3:$AI$823,8,FALSE)=\"-\"),1/0,VLOOKUP($A431,Economática!$A$3:$AI$823,8,FALSE)))","v":""},{"$f":"IF(A431=\"\",\"\",IF(ISERROR(VLOOKUP(A431,Correção!$B$2:$G$13,9,FALSE)),VLOOKUP($A431,Economática!$A$3:$AI$823,9,FALSE),VLOOKUP(A431,Correção!$B$2:$G$13,9,FALSE)))","v":""},{"$f":"IF($A431=\"\",\"\",Economática!G409)","v":""},{"$f":"IF($A431=\"\",\"\",IF(OR(VLOOKUP($A431,Economática!$A$3:$AI$823,10,FALSE)=0,VLOOKUP($A431,Economática!$A$3:$AI$823,10,FALSE)=\"-\"),1/0,VLOOKUP($A431,Economática!$A$3:$AI$823,10,FALSE)))","v":""},{"$f":"IF($A431=\"\",\"\",IF(OR(VLOOKUP($A431,Economática!$A$3:$AI$823,11,FALSE)=0,VLOOKUP($A431,Economática!$A$3:$AI$823,11,FALSE)=\"-\"),1/0,VLOOKUP($A431,Economática!$A$3:$AI$823,11,FALSE)))","v":""},{"$f":"IF($A431=\"\",\"\",IF(OR(VLOOKUP($A431,Economática!$A$3:$AI$823,12,FALSE)=0,VLOOKUP($A431,Economática!$A$3:$AI$823,12,FALSE)=\"-\"),1/0,VLOOKUP($A431,Economática!$A$3:$AI$823,12,FALSE)))","v":""},{"$f":"IF($A431=\"\",\"\",IF(OR(VLOOKUP($A431,Economática!$A$3:$AI$823,13,FALSE)=0,VLOOKUP($A431,Economática!$A$3:$AI$823,13,FALSE)=\"-\"),1/0,VLOOKUP($A431,Economática!$A$3:$AI$823,13,FALSE)))","v":""},{"$f":"IF($A431=\"\",\"\",IF(OR(VLOOKUP($A431,Economática!$A$3:$AI$823,14,FALSE)=0,VLOOKUP($A431,Economática!$A$3:$AI$823,14,FALSE)=\"-\"),1/0,VLOOKUP($A431,Economática!$A$3:$AI$823,14,FALSE)))","v":""},{"$f":"IF($A431=\"\",\"\",IF(OR(VLOOKUP($A431,Economática!$A$3:$AI$823,15,FALSE)=0,VLOOKUP($A431,Economática!$A$3:$AI$823,15,FALSE)=\"-\"),1/0,VLOOKUP($A431,Economática!$A$3:$AI$823,15,FALSE)))","v":""},{"$f":"IF($A431=\"\",\"\",IF(OR(VLOOKUP($A431,Economática!$A$3:$AI$823,16,FALSE)=0,VLOOKUP($A431,Economática!$A$3:$AI$823,16,FALSE)=\"-\"),1/0,VLOOKUP($A431,Economática!$A$3:$AI$823,16,FALSE)))","v":""},{"$f":"IF($A431=\"\",\"\",IF(OR(VLOOKUP($A431,Economática!$A$3:$AI$823,17,FALSE)=0,VLOOKUP($A431,Economática!$A$3:$AI$823,17,FALSE)=\"-\"),1/0,VLOOKUP($A431,Economática!$A$3:$AI$823,17,FALSE)))","v":""},{"$f":"IF($A431=\"\",\"\",IF(OR(VLOOKUP($A431,Economática!$A$3:$AI$823,18,FALSE)=0,VLOOKUP($A431,Economática!$A$3:$AI$823,18,FALSE)=\"-\"),1/0,VLOOKUP($A431,Economática!$A$3:$AI$823,18,FALSE)))","v":""},{"$f":"IF($A431=\"\",\"\",IF(OR(VLOOKUP($A431,Economática!$A$3:$AI$823,19,FALSE)=0,VLOOKUP($A431,Economática!$A$3:$AI$823,19,FALSE)=\"-\"),1/0,VLOOKUP($A431,Economática!$A$3:$AI$823,19,FALSE)))","v":""},{"$f":"IF($A431=\"\",\"\",VLOOKUP($A431,Economática!$A$3:$AI$823,20,FALSE)/E431)","v":""},"","","",{"$f":"IF($A431=\"\",\"\",IF(OR(VLOOKUP($A431,Economática!$A$3:$AI$823,21,FALSE)/100=0,VLOOKUP($A431,Economática!$A$3:$AI$823,21,FALSE)/100=\"-\"),1/0,VLOOKUP($A431,Economática!$A$3:$AI$823,21,FALSE)/100))","v":""},{"$f":"IF($A431=\"\",\"\",IF(OR(VLOOKUP($A431,Economática!$A$3:$AI$823,22,FALSE)/100=0,VLOOKUP($A431,Economática!$A$3:$AI$823,22,FALSE)/100=\"-\"),1/0,VLOOKUP($A431,Economática!$A$3:$AI$823,22,FALSE)/100))","v":""},{"$f":"IF($A431=\"\",\"\",IF(OR(VLOOKUP($A431,Economática!$A$3:$AI$823,23,FALSE)=0,VLOOKUP($A431,Economática!$A$3:$AI$823,23,FALSE)=\"-\"),1/0,VLOOKUP($A431,Economática!$A$3:$AI$823,23,FALSE)))","v":""},{"$f":"IF($A431=\"\",\"\",IF(OR(VLOOKUP($A431,Economática!$A$3:$AI$823,24,FALSE)=0,VLOOKUP($A431,Economática!$A$3:$AI$823,24,FALSE)=\"-\"),1/0,VLOOKUP($A431,Economática!$A$3:$AI$823,24,FALSE)))","v":""},{"$f":"IF($A431=\"\",\"\",IF(OR(VLOOKUP($A431,Economática!$A$3:$AI$823,25,FALSE)=0,VLOOKUP($A431,Economática!$A$3:$AI$823,25,FALSE)=\"-\"),1/0,VLOOKUP($A431,Economática!$A$3:$AI$823,25,FALSE)))","v":""},{"$f":"IF($A431=\"\",\"\",IF(ISERROR((F431+VLOOKUP($A431,Economática!$A$3:$AI$823,26,FALSE))/Y431),(F431+VLOOKUP($A431,Economática!$A$3:$AI$823,26,FALSE))/Y431,(F431+VLOOKUP($A431,Economática!$A$3:$AI$823,26,FALSE))/Y431))","v":""},{"$f":"IF($A431=\"\",\"\",IF(OR(-VLOOKUP($A431,Economática!$A$3:$AI$823,27,FALSE)=0,-VLOOKUP($A431,Economática!$A$3:$AI$823,27,FALSE)=\"-\"),1/0,-VLOOKUP($A431,Economática!$A$3:$AI$823,27,FALSE)))","v":""},"",{"$f":"IF($A431=\"\",\"\",IF(OR(VLOOKUP($A431,Economática!$A$3:$AI$823,28,FALSE)=0,VLOOKUP($A431,Economática!$A$3:$AI$823,28,FALSE)=\"-\"),1/0,VLOOKUP($A431,Economática!$A$3:$AI$823,28,FALSE)))","v":""},{"$f":"IF($A431=\"\",\"\",IF(OR(VLOOKUP($A431,Economática!$A$3:$AI$823,29,FALSE)=0,VLOOKUP($A431,Economática!$A$3:$AI$823,29,FALSE)=\"-\"),1/0,VLOOKUP($A431,Economática!$A$3:$AI$823,29,FALSE)))","v":""},{"$f":"IF($A431=\"\",\"\",IF(OR(VLOOKUP($A431,Economática!$A$3:$AI$823,30,FALSE)/E431=0,VLOOKUP($A431,Economática!$A$3:$AI$823,30,FALSE)/E431=\"-\",VLOOKUP($A431,Economática!$A$3:$AI$823,30,FALSE)/E431<33.33%,VLOOKUP($A431,Economática!$A$3:$AI$823,30,FALSE)/E431>100%),1/0,VLOOKUP($A431,Economática!$A$3:$AI$823,30,FALSE)/E431))","v":""},"",{"$f":"IF($A431=\"\",\"\",IF(OR(VLOOKUP($A431,Economática!$A$3:$AI$823,25,FALSE)=0,VLOOKUP($A431,Economática!$A$3:$AI$823,25,FALSE)=\"-\"),1/0,VLOOKUP($A431,Economática!$A$3:$AI$823,25,FALSE)))","v":""},{"$f":"CONCATENATE(Economática!B409,\" \",Economática!C409)","v":" "}]
[{"$f":"IF(Economática!AG410=\"\",\"\",Economática!AG410)","v":""},{"$f":"IF($A432=\"\",\"\",VLOOKUP(VLOOKUP($A432,Economática!$A$3:$AI$823,6,FALSE),Correção!$B$16:$C$36,2,FALSE))","v":""},{"$f":"IF(Economática!B410=\"\",\"\",Economática!B410)","v":""},{"$f":"IF($A432=\"\",\"\",IF(OR(VLOOKUP($A432,Economática!$A$3:$AI$823,8,FALSE)=0,VLOOKUP($A432,Economática!$A$3:$AI$823,8,FALSE)=\"-\"),1/0,VLOOKUP($A432,Economática!$A$3:$AI$823,8,FALSE)))","v":""},{"$f":"IF(A432=\"\",\"\",IF(ISERROR(VLOOKUP(A432,Correção!$B$2:$G$13,9,FALSE)),VLOOKUP($A432,Economática!$A$3:$AI$823,9,FALSE),VLOOKUP(A432,Correção!$B$2:$G$13,9,FALSE)))","v":""},{"$f":"IF($A432=\"\",\"\",Economática!G410)","v":""},{"$f":"IF($A432=\"\",\"\",IF(OR(VLOOKUP($A432,Economática!$A$3:$AI$823,10,FALSE)=0,VLOOKUP($A432,Economática!$A$3:$AI$823,10,FALSE)=\"-\"),1/0,VLOOKUP($A432,Economática!$A$3:$AI$823,10,FALSE)))","v":""},{"$f":"IF($A432=\"\",\"\",IF(OR(VLOOKUP($A432,Economática!$A$3:$AI$823,11,FALSE)=0,VLOOKUP($A432,Economática!$A$3:$AI$823,11,FALSE)=\"-\"),1/0,VLOOKUP($A432,Economática!$A$3:$AI$823,11,FALSE)))","v":""},{"$f":"IF($A432=\"\",\"\",IF(OR(VLOOKUP($A432,Economática!$A$3:$AI$823,12,FALSE)=0,VLOOKUP($A432,Economática!$A$3:$AI$823,12,FALSE)=\"-\"),1/0,VLOOKUP($A432,Economática!$A$3:$AI$823,12,FALSE)))","v":""},{"$f":"IF($A432=\"\",\"\",IF(OR(VLOOKUP($A432,Economática!$A$3:$AI$823,13,FALSE)=0,VLOOKUP($A432,Economática!$A$3:$AI$823,13,FALSE)=\"-\"),1/0,VLOOKUP($A432,Economática!$A$3:$AI$823,13,FALSE)))","v":""},{"$f":"IF($A432=\"\",\"\",IF(OR(VLOOKUP($A432,Economática!$A$3:$AI$823,14,FALSE)=0,VLOOKUP($A432,Economática!$A$3:$AI$823,14,FALSE)=\"-\"),1/0,VLOOKUP($A432,Economática!$A$3:$AI$823,14,FALSE)))","v":""},{"$f":"IF($A432=\"\",\"\",IF(OR(VLOOKUP($A432,Economática!$A$3:$AI$823,15,FALSE)=0,VLOOKUP($A432,Economática!$A$3:$AI$823,15,FALSE)=\"-\"),1/0,VLOOKUP($A432,Economática!$A$3:$AI$823,15,FALSE)))","v":""},{"$f":"IF($A432=\"\",\"\",IF(OR(VLOOKUP($A432,Economática!$A$3:$AI$823,16,FALSE)=0,VLOOKUP($A432,Economática!$A$3:$AI$823,16,FALSE)=\"-\"),1/0,VLOOKUP($A432,Economática!$A$3:$AI$823,16,FALSE)))","v":""},{"$f":"IF($A432=\"\",\"\",IF(OR(VLOOKUP($A432,Economática!$A$3:$AI$823,17,FALSE)=0,VLOOKUP($A432,Economática!$A$3:$AI$823,17,FALSE)=\"-\"),1/0,VLOOKUP($A432,Economática!$A$3:$AI$823,17,FALSE)))","v":""},{"$f":"IF($A432=\"\",\"\",IF(OR(VLOOKUP($A432,Economática!$A$3:$AI$823,18,FALSE)=0,VLOOKUP($A432,Economática!$A$3:$AI$823,18,FALSE)=\"-\"),1/0,VLOOKUP($A432,Economática!$A$3:$AI$823,18,FALSE)))","v":""},{"$f":"IF($A432=\"\",\"\",IF(OR(VLOOKUP($A432,Economática!$A$3:$AI$823,19,FALSE)=0,VLOOKUP($A432,Economática!$A$3:$AI$823,19,FALSE)=\"-\"),1/0,VLOOKUP($A432,Economática!$A$3:$AI$823,19,FALSE)))","v":""},{"$f":"IF($A432=\"\",\"\",VLOOKUP($A432,Economática!$A$3:$AI$823,20,FALSE)/E432)","v":""},"","","",{"$f":"IF($A432=\"\",\"\",IF(OR(VLOOKUP($A432,Economática!$A$3:$AI$823,21,FALSE)/100=0,VLOOKUP($A432,Economática!$A$3:$AI$823,21,FALSE)/100=\"-\"),1/0,VLOOKUP($A432,Economática!$A$3:$AI$823,21,FALSE)/100))","v":""},{"$f":"IF($A432=\"\",\"\",IF(OR(VLOOKUP($A432,Economática!$A$3:$AI$823,22,FALSE)/100=0,VLOOKUP($A432,Economática!$A$3:$AI$823,22,FALSE)/100=\"-\"),1/0,VLOOKUP($A432,Economática!$A$3:$AI$823,22,FALSE)/100))","v":""},{"$f":"IF($A432=\"\",\"\",IF(OR(VLOOKUP($A432,Economática!$A$3:$AI$823,23,FALSE)=0,VLOOKUP($A432,Economática!$A$3:$AI$823,23,FALSE)=\"-\"),1/0,VLOOKUP($A432,Economática!$A$3:$AI$823,23,FALSE)))","v":""},{"$f":"IF($A432=\"\",\"\",IF(OR(VLOOKUP($A432,Economática!$A$3:$AI$823,24,FALSE)=0,VLOOKUP($A432,Economática!$A$3:$AI$823,24,FALSE)=\"-\"),1/0,VLOOKUP($A432,Economática!$A$3:$AI$823,24,FALSE)))","v":""},{"$f":"IF($A432=\"\",\"\",IF(OR(VLOOKUP($A432,Economática!$A$3:$AI$823,25,FALSE)=0,VLOOKUP($A432,Economática!$A$3:$AI$823,25,FALSE)=\"-\"),1/0,VLOOKUP($A432,Economática!$A$3:$AI$823,25,FALSE)))","v":""},{"$f":"IF($A432=\"\",\"\",IF(ISERROR((F432+VLOOKUP($A432,Economática!$A$3:$AI$823,26,FALSE))/Y432),(F432+VLOOKUP($A432,Economática!$A$3:$AI$823,26,FALSE))/Y432,(F432+VLOOKUP($A432,Economática!$A$3:$AI$823,26,FALSE))/Y432))","v":""},{"$f":"IF($A432=\"\",\"\",IF(OR(-VLOOKUP($A432,Economática!$A$3:$AI$823,27,FALSE)=0,-VLOOKUP($A432,Economática!$A$3:$AI$823,27,FALSE)=\"-\"),1/0,-VLOOKUP($A432,Economática!$A$3:$AI$823,27,FALSE)))","v":""},"",{"$f":"IF($A432=\"\",\"\",IF(OR(VLOOKUP($A432,Economática!$A$3:$AI$823,28,FALSE)=0,VLOOKUP($A432,Economática!$A$3:$AI$823,28,FALSE)=\"-\"),1/0,VLOOKUP($A432,Economática!$A$3:$AI$823,28,FALSE)))","v":""},{"$f":"IF($A432=\"\",\"\",IF(OR(VLOOKUP($A432,Economática!$A$3:$AI$823,29,FALSE)=0,VLOOKUP($A432,Economática!$A$3:$AI$823,29,FALSE)=\"-\"),1/0,VLOOKUP($A432,Economática!$A$3:$AI$823,29,FALSE)))","v":""},{"$f":"IF($A432=\"\",\"\",IF(OR(VLOOKUP($A432,Economática!$A$3:$AI$823,30,FALSE)/E432=0,VLOOKUP($A432,Economática!$A$3:$AI$823,30,FALSE)/E432=\"-\",VLOOKUP($A432,Economática!$A$3:$AI$823,30,FALSE)/E432<33.33%,VLOOKUP($A432,Economática!$A$3:$AI$823,30,FALSE)/E432>100%),1/0,VLOOKUP($A432,Economática!$A$3:$AI$823,30,FALSE)/E432))","v":""},"",{"$f":"IF($A432=\"\",\"\",IF(OR(VLOOKUP($A432,Economática!$A$3:$AI$823,25,FALSE)=0,VLOOKUP($A432,Economática!$A$3:$AI$823,25,FALSE)=\"-\"),1/0,VLOOKUP($A432,Economática!$A$3:$AI$823,25,FALSE)))","v":""},{"$f":"CONCATENATE(Economática!B410,\" \",Economática!C410)","v":" "}]
[{"$f":"IF(Economática!AG411=\"\",\"\",Economática!AG411)","v":""},{"$f":"IF($A433=\"\",\"\",VLOOKUP(VLOOKUP($A433,Economática!$A$3:$AI$823,6,FALSE),Correção!$B$16:$C$36,2,FALSE))","v":""},{"$f":"IF(Economática!B411=\"\",\"\",Economática!B411)","v":""},{"$f":"IF($A433=\"\",\"\",IF(OR(VLOOKUP($A433,Economática!$A$3:$AI$823,8,FALSE)=0,VLOOKUP($A433,Economática!$A$3:$AI$823,8,FALSE)=\"-\"),1/0,VLOOKUP($A433,Economática!$A$3:$AI$823,8,FALSE)))","v":""},{"$f":"IF(A433=\"\",\"\",IF(ISERROR(VLOOKUP(A433,Correção!$B$2:$G$13,9,FALSE)),VLOOKUP($A433,Economática!$A$3:$AI$823,9,FALSE),VLOOKUP(A433,Correção!$B$2:$G$13,9,FALSE)))","v":""},{"$f":"IF($A433=\"\",\"\",Economática!G411)","v":""},{"$f":"IF($A433=\"\",\"\",IF(OR(VLOOKUP($A433,Economática!$A$3:$AI$823,10,FALSE)=0,VLOOKUP($A433,Economática!$A$3:$AI$823,10,FALSE)=\"-\"),1/0,VLOOKUP($A433,Economática!$A$3:$AI$823,10,FALSE)))","v":""},{"$f":"IF($A433=\"\",\"\",IF(OR(VLOOKUP($A433,Economática!$A$3:$AI$823,11,FALSE)=0,VLOOKUP($A433,Economática!$A$3:$AI$823,11,FALSE)=\"-\"),1/0,VLOOKUP($A433,Economática!$A$3:$AI$823,11,FALSE)))","v":""},{"$f":"IF($A433=\"\",\"\",IF(OR(VLOOKUP($A433,Economática!$A$3:$AI$823,12,FALSE)=0,VLOOKUP($A433,Economática!$A$3:$AI$823,12,FALSE)=\"-\"),1/0,VLOOKUP($A433,Economática!$A$3:$AI$823,12,FALSE)))","v":""},{"$f":"IF($A433=\"\",\"\",IF(OR(VLOOKUP($A433,Economática!$A$3:$AI$823,13,FALSE)=0,VLOOKUP($A433,Economática!$A$3:$AI$823,13,FALSE)=\"-\"),1/0,VLOOKUP($A433,Economática!$A$3:$AI$823,13,FALSE)))","v":""},{"$f":"IF($A433=\"\",\"\",IF(OR(VLOOKUP($A433,Economática!$A$3:$AI$823,14,FALSE)=0,VLOOKUP($A433,Economática!$A$3:$AI$823,14,FALSE)=\"-\"),1/0,VLOOKUP($A433,Economática!$A$3:$AI$823,14,FALSE)))","v":""},{"$f":"IF($A433=\"\",\"\",IF(OR(VLOOKUP($A433,Economática!$A$3:$AI$823,15,FALSE)=0,VLOOKUP($A433,Economática!$A$3:$AI$823,15,FALSE)=\"-\"),1/0,VLOOKUP($A433,Economática!$A$3:$AI$823,15,FALSE)))","v":""},{"$f":"IF($A433=\"\",\"\",IF(OR(VLOOKUP($A433,Economática!$A$3:$AI$823,16,FALSE)=0,VLOOKUP($A433,Economática!$A$3:$AI$823,16,FALSE)=\"-\"),1/0,VLOOKUP($A433,Economática!$A$3:$AI$823,16,FALSE)))","v":""},{"$f":"IF($A433=\"\",\"\",IF(OR(VLOOKUP($A433,Economática!$A$3:$AI$823,17,FALSE)=0,VLOOKUP($A433,Economática!$A$3:$AI$823,17,FALSE)=\"-\"),1/0,VLOOKUP($A433,Economática!$A$3:$AI$823,17,FALSE)))","v":""},{"$f":"IF($A433=\"\",\"\",IF(OR(VLOOKUP($A433,Economática!$A$3:$AI$823,18,FALSE)=0,VLOOKUP($A433,Economática!$A$3:$AI$823,18,FALSE)=\"-\"),1/0,VLOOKUP($A433,Economática!$A$3:$AI$823,18,FALSE)))","v":""},{"$f":"IF($A433=\"\",\"\",IF(OR(VLOOKUP($A433,Economática!$A$3:$AI$823,19,FALSE)=0,VLOOKUP($A433,Economática!$A$3:$AI$823,19,FALSE)=\"-\"),1/0,VLOOKUP($A433,Economática!$A$3:$AI$823,19,FALSE)))","v":""},{"$f":"IF($A433=\"\",\"\",VLOOKUP($A433,Economática!$A$3:$AI$823,20,FALSE)/E433)","v":""},"","","",{"$f":"IF($A433=\"\",\"\",IF(OR(VLOOKUP($A433,Economática!$A$3:$AI$823,21,FALSE)/100=0,VLOOKUP($A433,Economática!$A$3:$AI$823,21,FALSE)/100=\"-\"),1/0,VLOOKUP($A433,Economática!$A$3:$AI$823,21,FALSE)/100))","v":""},{"$f":"IF($A433=\"\",\"\",IF(OR(VLOOKUP($A433,Economática!$A$3:$AI$823,22,FALSE)/100=0,VLOOKUP($A433,Economática!$A$3:$AI$823,22,FALSE)/100=\"-\"),1/0,VLOOKUP($A433,Economática!$A$3:$AI$823,22,FALSE)/100))","v":""},{"$f":"IF($A433=\"\",\"\",IF(OR(VLOOKUP($A433,Economática!$A$3:$AI$823,23,FALSE)=0,VLOOKUP($A433,Economática!$A$3:$AI$823,23,FALSE)=\"-\"),1/0,VLOOKUP($A433,Economática!$A$3:$AI$823,23,FALSE)))","v":""},{"$f":"IF($A433=\"\",\"\",IF(OR(VLOOKUP($A433,Economática!$A$3:$AI$823,24,FALSE)=0,VLOOKUP($A433,Economática!$A$3:$AI$823,24,FALSE)=\"-\"),1/0,VLOOKUP($A433,Economática!$A$3:$AI$823,24,FALSE)))","v":""},{"$f":"IF($A433=\"\",\"\",IF(OR(VLOOKUP($A433,Economática!$A$3:$AI$823,25,FALSE)=0,VLOOKUP($A433,Economática!$A$3:$AI$823,25,FALSE)=\"-\"),1/0,VLOOKUP($A433,Economática!$A$3:$AI$823,25,FALSE)))","v":""},{"$f":"IF($A433=\"\",\"\",IF(ISERROR((F433+VLOOKUP($A433,Economática!$A$3:$AI$823,26,FALSE))/Y433),(F433+VLOOKUP($A433,Economática!$A$3:$AI$823,26,FALSE))/Y433,(F433+VLOOKUP($A433,Economática!$A$3:$AI$823,26,FALSE))/Y433))","v":""},{"$f":"IF($A433=\"\",\"\",IF(OR(-VLOOKUP($A433,Economática!$A$3:$AI$823,27,FALSE)=0,-VLOOKUP($A433,Economática!$A$3:$AI$823,27,FALSE)=\"-\"),1/0,-VLOOKUP($A433,Economática!$A$3:$AI$823,27,FALSE)))","v":""},"",{"$f":"IF($A433=\"\",\"\",IF(OR(VLOOKUP($A433,Economática!$A$3:$AI$823,28,FALSE)=0,VLOOKUP($A433,Economática!$A$3:$AI$823,28,FALSE)=\"-\"),1/0,VLOOKUP($A433,Economática!$A$3:$AI$823,28,FALSE)))","v":""},{"$f":"IF($A433=\"\",\"\",IF(OR(VLOOKUP($A433,Economática!$A$3:$AI$823,29,FALSE)=0,VLOOKUP($A433,Economática!$A$3:$AI$823,29,FALSE)=\"-\"),1/0,VLOOKUP($A433,Economática!$A$3:$AI$823,29,FALSE)))","v":""},{"$f":"IF($A433=\"\",\"\",IF(OR(VLOOKUP($A433,Economática!$A$3:$AI$823,30,FALSE)/E433=0,VLOOKUP($A433,Economática!$A$3:$AI$823,30,FALSE)/E433=\"-\",VLOOKUP($A433,Economática!$A$3:$AI$823,30,FALSE)/E433<33.33%,VLOOKUP($A433,Economática!$A$3:$AI$823,30,FALSE)/E433>100%),1/0,VLOOKUP($A433,Economática!$A$3:$AI$823,30,FALSE)/E433))","v":""},"",{"$f":"IF($A433=\"\",\"\",IF(OR(VLOOKUP($A433,Economática!$A$3:$AI$823,25,FALSE)=0,VLOOKUP($A433,Economática!$A$3:$AI$823,25,FALSE)=\"-\"),1/0,VLOOKUP($A433,Economática!$A$3:$AI$823,25,FALSE)))","v":""},{"$f":"CONCATENATE(Economática!B411,\" \",Economática!C411)","v":" "}]
[{"$f":"IF(Economática!AG412=\"\",\"\",Economática!AG412)","v":""},{"$f":"IF($A434=\"\",\"\",VLOOKUP(VLOOKUP($A434,Economática!$A$3:$AI$823,6,FALSE),Correção!$B$16:$C$36,2,FALSE))","v":""},{"$f":"IF(Economática!B412=\"\",\"\",Economática!B412)","v":""},{"$f":"IF($A434=\"\",\"\",IF(OR(VLOOKUP($A434,Economática!$A$3:$AI$823,8,FALSE)=0,VLOOKUP($A434,Economática!$A$3:$AI$823,8,FALSE)=\"-\"),1/0,VLOOKUP($A434,Economática!$A$3:$AI$823,8,FALSE)))","v":""},{"$f":"IF(A434=\"\",\"\",IF(ISERROR(VLOOKUP(A434,Correção!$B$2:$G$13,9,FALSE)),VLOOKUP($A434,Economática!$A$3:$AI$823,9,FALSE),VLOOKUP(A434,Correção!$B$2:$G$13,9,FALSE)))","v":""},{"$f":"IF($A434=\"\",\"\",Economática!G412)","v":""},{"$f":"IF($A434=\"\",\"\",IF(OR(VLOOKUP($A434,Economática!$A$3:$AI$823,10,FALSE)=0,VLOOKUP($A434,Economática!$A$3:$AI$823,10,FALSE)=\"-\"),1/0,VLOOKUP($A434,Economática!$A$3:$AI$823,10,FALSE)))","v":""},{"$f":"IF($A434=\"\",\"\",IF(OR(VLOOKUP($A434,Economática!$A$3:$AI$823,11,FALSE)=0,VLOOKUP($A434,Economática!$A$3:$AI$823,11,FALSE)=\"-\"),1/0,VLOOKUP($A434,Economática!$A$3:$AI$823,11,FALSE)))","v":""},{"$f":"IF($A434=\"\",\"\",IF(OR(VLOOKUP($A434,Economática!$A$3:$AI$823,12,FALSE)=0,VLOOKUP($A434,Economática!$A$3:$AI$823,12,FALSE)=\"-\"),1/0,VLOOKUP($A434,Economática!$A$3:$AI$823,12,FALSE)))","v":""},{"$f":"IF($A434=\"\",\"\",IF(OR(VLOOKUP($A434,Economática!$A$3:$AI$823,13,FALSE)=0,VLOOKUP($A434,Economática!$A$3:$AI$823,13,FALSE)=\"-\"),1/0,VLOOKUP($A434,Economática!$A$3:$AI$823,13,FALSE)))","v":""},{"$f":"IF($A434=\"\",\"\",IF(OR(VLOOKUP($A434,Economática!$A$3:$AI$823,14,FALSE)=0,VLOOKUP($A434,Economática!$A$3:$AI$823,14,FALSE)=\"-\"),1/0,VLOOKUP($A434,Economática!$A$3:$AI$823,14,FALSE)))","v":""},{"$f":"IF($A434=\"\",\"\",IF(OR(VLOOKUP($A434,Economática!$A$3:$AI$823,15,FALSE)=0,VLOOKUP($A434,Economática!$A$3:$AI$823,15,FALSE)=\"-\"),1/0,VLOOKUP($A434,Economática!$A$3:$AI$823,15,FALSE)))","v":""},{"$f":"IF($A434=\"\",\"\",IF(OR(VLOOKUP($A434,Economática!$A$3:$AI$823,16,FALSE)=0,VLOOKUP($A434,Economática!$A$3:$AI$823,16,FALSE)=\"-\"),1/0,VLOOKUP($A434,Economática!$A$3:$AI$823,16,FALSE)))","v":""},{"$f":"IF($A434=\"\",\"\",IF(OR(VLOOKUP($A434,Economática!$A$3:$AI$823,17,FALSE)=0,VLOOKUP($A434,Economática!$A$3:$AI$823,17,FALSE)=\"-\"),1/0,VLOOKUP($A434,Economática!$A$3:$AI$823,17,FALSE)))","v":""},{"$f":"IF($A434=\"\",\"\",IF(OR(VLOOKUP($A434,Economática!$A$3:$AI$823,18,FALSE)=0,VLOOKUP($A434,Economática!$A$3:$AI$823,18,FALSE)=\"-\"),1/0,VLOOKUP($A434,Economática!$A$3:$AI$823,18,FALSE)))","v":""},{"$f":"IF($A434=\"\",\"\",IF(OR(VLOOKUP($A434,Economática!$A$3:$AI$823,19,FALSE)=0,VLOOKUP($A434,Economática!$A$3:$AI$823,19,FALSE)=\"-\"),1/0,VLOOKUP($A434,Economática!$A$3:$AI$823,19,FALSE)))","v":""},{"$f":"IF($A434=\"\",\"\",VLOOKUP($A434,Economática!$A$3:$AI$823,20,FALSE)/E434)","v":""},"","","",{"$f":"IF($A434=\"\",\"\",IF(OR(VLOOKUP($A434,Economática!$A$3:$AI$823,21,FALSE)/100=0,VLOOKUP($A434,Economática!$A$3:$AI$823,21,FALSE)/100=\"-\"),1/0,VLOOKUP($A434,Economática!$A$3:$AI$823,21,FALSE)/100))","v":""},{"$f":"IF($A434=\"\",\"\",IF(OR(VLOOKUP($A434,Economática!$A$3:$AI$823,22,FALSE)/100=0,VLOOKUP($A434,Economática!$A$3:$AI$823,22,FALSE)/100=\"-\"),1/0,VLOOKUP($A434,Economática!$A$3:$AI$823,22,FALSE)/100))","v":""},{"$f":"IF($A434=\"\",\"\",IF(OR(VLOOKUP($A434,Economática!$A$3:$AI$823,23,FALSE)=0,VLOOKUP($A434,Economática!$A$3:$AI$823,23,FALSE)=\"-\"),1/0,VLOOKUP($A434,Economática!$A$3:$AI$823,23,FALSE)))","v":""},{"$f":"IF($A434=\"\",\"\",IF(OR(VLOOKUP($A434,Economática!$A$3:$AI$823,24,FALSE)=0,VLOOKUP($A434,Economática!$A$3:$AI$823,24,FALSE)=\"-\"),1/0,VLOOKUP($A434,Economática!$A$3:$AI$823,24,FALSE)))","v":""},{"$f":"IF($A434=\"\",\"\",IF(OR(VLOOKUP($A434,Economática!$A$3:$AI$823,25,FALSE)=0,VLOOKUP($A434,Economática!$A$3:$AI$823,25,FALSE)=\"-\"),1/0,VLOOKUP($A434,Economática!$A$3:$AI$823,25,FALSE)))","v":""},{"$f":"IF($A434=\"\",\"\",IF(ISERROR((F434+VLOOKUP($A434,Economática!$A$3:$AI$823,26,FALSE))/Y434),(F434+VLOOKUP($A434,Economática!$A$3:$AI$823,26,FALSE))/Y434,(F434+VLOOKUP($A434,Economática!$A$3:$AI$823,26,FALSE))/Y434))","v":""},{"$f":"IF($A434=\"\",\"\",IF(OR(-VLOOKUP($A434,Economática!$A$3:$AI$823,27,FALSE)=0,-VLOOKUP($A434,Economática!$A$3:$AI$823,27,FALSE)=\"-\"),1/0,-VLOOKUP($A434,Economática!$A$3:$AI$823,27,FALSE)))","v":""},"",{"$f":"IF($A434=\"\",\"\",IF(OR(VLOOKUP($A434,Economática!$A$3:$AI$823,28,FALSE)=0,VLOOKUP($A434,Economática!$A$3:$AI$823,28,FALSE)=\"-\"),1/0,VLOOKUP($A434,Economática!$A$3:$AI$823,28,FALSE)))","v":""},{"$f":"IF($A434=\"\",\"\",IF(OR(VLOOKUP($A434,Economática!$A$3:$AI$823,29,FALSE)=0,VLOOKUP($A434,Economática!$A$3:$AI$823,29,FALSE)=\"-\"),1/0,VLOOKUP($A434,Economática!$A$3:$AI$823,29,FALSE)))","v":""},{"$f":"IF($A434=\"\",\"\",IF(OR(VLOOKUP($A434,Economática!$A$3:$AI$823,30,FALSE)/E434=0,VLOOKUP($A434,Economática!$A$3:$AI$823,30,FALSE)/E434=\"-\",VLOOKUP($A434,Economática!$A$3:$AI$823,30,FALSE)/E434<33.33%,VLOOKUP($A434,Economática!$A$3:$AI$823,30,FALSE)/E434>100%),1/0,VLOOKUP($A434,Economática!$A$3:$AI$823,30,FALSE)/E434))","v":""},"",{"$f":"IF($A434=\"\",\"\",IF(OR(VLOOKUP($A434,Economática!$A$3:$AI$823,25,FALSE)=0,VLOOKUP($A434,Economática!$A$3:$AI$823,25,FALSE)=\"-\"),1/0,VLOOKUP($A434,Economática!$A$3:$AI$823,25,FALSE)))","v":""},{"$f":"CONCATENATE(Economática!B412,\" \",Economática!C412)","v":" "}]
[{"$f":"IF(Economática!AG413=\"\",\"\",Economática!AG413)","v":""},{"$f":"IF($A435=\"\",\"\",VLOOKUP(VLOOKUP($A435,Economática!$A$3:$AI$823,6,FALSE),Correção!$B$16:$C$36,2,FALSE))","v":""},{"$f":"IF(Economática!B413=\"\",\"\",Economática!B413)","v":""},{"$f":"IF($A435=\"\",\"\",IF(OR(VLOOKUP($A435,Economática!$A$3:$AI$823,8,FALSE)=0,VLOOKUP($A435,Economática!$A$3:$AI$823,8,FALSE)=\"-\"),1/0,VLOOKUP($A435,Economática!$A$3:$AI$823,8,FALSE)))","v":""},{"$f":"IF(A435=\"\",\"\",IF(ISERROR(VLOOKUP(A435,Correção!$B$2:$G$13,9,FALSE)),VLOOKUP($A435,Economática!$A$3:$AI$823,9,FALSE),VLOOKUP(A435,Correção!$B$2:$G$13,9,FALSE)))","v":""},{"$f":"IF($A435=\"\",\"\",Economática!G413)","v":""},{"$f":"IF($A435=\"\",\"\",IF(OR(VLOOKUP($A435,Economática!$A$3:$AI$823,10,FALSE)=0,VLOOKUP($A435,Economática!$A$3:$AI$823,10,FALSE)=\"-\"),1/0,VLOOKUP($A435,Economática!$A$3:$AI$823,10,FALSE)))","v":""},{"$f":"IF($A435=\"\",\"\",IF(OR(VLOOKUP($A435,Economática!$A$3:$AI$823,11,FALSE)=0,VLOOKUP($A435,Economática!$A$3:$AI$823,11,FALSE)=\"-\"),1/0,VLOOKUP($A435,Economática!$A$3:$AI$823,11,FALSE)))","v":""},{"$f":"IF($A435=\"\",\"\",IF(OR(VLOOKUP($A435,Economática!$A$3:$AI$823,12,FALSE)=0,VLOOKUP($A435,Economática!$A$3:$AI$823,12,FALSE)=\"-\"),1/0,VLOOKUP($A435,Economática!$A$3:$AI$823,12,FALSE)))","v":""},{"$f":"IF($A435=\"\",\"\",IF(OR(VLOOKUP($A435,Economática!$A$3:$AI$823,13,FALSE)=0,VLOOKUP($A435,Economática!$A$3:$AI$823,13,FALSE)=\"-\"),1/0,VLOOKUP($A435,Economática!$A$3:$AI$823,13,FALSE)))","v":""},{"$f":"IF($A435=\"\",\"\",IF(OR(VLOOKUP($A435,Economática!$A$3:$AI$823,14,FALSE)=0,VLOOKUP($A435,Economática!$A$3:$AI$823,14,FALSE)=\"-\"),1/0,VLOOKUP($A435,Economática!$A$3:$AI$823,14,FALSE)))","v":""},{"$f":"IF($A435=\"\",\"\",IF(OR(VLOOKUP($A435,Economática!$A$3:$AI$823,15,FALSE)=0,VLOOKUP($A435,Economática!$A$3:$AI$823,15,FALSE)=\"-\"),1/0,VLOOKUP($A435,Economática!$A$3:$AI$823,15,FALSE)))","v":""},{"$f":"IF($A435=\"\",\"\",IF(OR(VLOOKUP($A435,Economática!$A$3:$AI$823,16,FALSE)=0,VLOOKUP($A435,Economática!$A$3:$AI$823,16,FALSE)=\"-\"),1/0,VLOOKUP($A435,Economática!$A$3:$AI$823,16,FALSE)))","v":""},{"$f":"IF($A435=\"\",\"\",IF(OR(VLOOKUP($A435,Economática!$A$3:$AI$823,17,FALSE)=0,VLOOKUP($A435,Economática!$A$3:$AI$823,17,FALSE)=\"-\"),1/0,VLOOKUP($A435,Economática!$A$3:$AI$823,17,FALSE)))","v":""},{"$f":"IF($A435=\"\",\"\",IF(OR(VLOOKUP($A435,Economática!$A$3:$AI$823,18,FALSE)=0,VLOOKUP($A435,Economática!$A$3:$AI$823,18,FALSE)=\"-\"),1/0,VLOOKUP($A435,Economática!$A$3:$AI$823,18,FALSE)))","v":""},{"$f":"IF($A435=\"\",\"\",IF(OR(VLOOKUP($A435,Economática!$A$3:$AI$823,19,FALSE)=0,VLOOKUP($A435,Economática!$A$3:$AI$823,19,FALSE)=\"-\"),1/0,VLOOKUP($A435,Economática!$A$3:$AI$823,19,FALSE)))","v":""},{"$f":"IF($A435=\"\",\"\",VLOOKUP($A435,Economática!$A$3:$AI$823,20,FALSE)/E435)","v":""},"","","",{"$f":"IF($A435=\"\",\"\",IF(OR(VLOOKUP($A435,Economática!$A$3:$AI$823,21,FALSE)/100=0,VLOOKUP($A435,Economática!$A$3:$AI$823,21,FALSE)/100=\"-\"),1/0,VLOOKUP($A435,Economática!$A$3:$AI$823,21,FALSE)/100))","v":""},{"$f":"IF($A435=\"\",\"\",IF(OR(VLOOKUP($A435,Economática!$A$3:$AI$823,22,FALSE)/100=0,VLOOKUP($A435,Economática!$A$3:$AI$823,22,FALSE)/100=\"-\"),1/0,VLOOKUP($A435,Economática!$A$3:$AI$823,22,FALSE)/100))","v":""},{"$f":"IF($A435=\"\",\"\",IF(OR(VLOOKUP($A435,Economática!$A$3:$AI$823,23,FALSE)=0,VLOOKUP($A435,Economática!$A$3:$AI$823,23,FALSE)=\"-\"),1/0,VLOOKUP($A435,Economática!$A$3:$AI$823,23,FALSE)))","v":""},{"$f":"IF($A435=\"\",\"\",IF(OR(VLOOKUP($A435,Economática!$A$3:$AI$823,24,FALSE)=0,VLOOKUP($A435,Economática!$A$3:$AI$823,24,FALSE)=\"-\"),1/0,VLOOKUP($A435,Economática!$A$3:$AI$823,24,FALSE)))","v":""},{"$f":"IF($A435=\"\",\"\",IF(OR(VLOOKUP($A435,Economática!$A$3:$AI$823,25,FALSE)=0,VLOOKUP($A435,Economática!$A$3:$AI$823,25,FALSE)=\"-\"),1/0,VLOOKUP($A435,Economática!$A$3:$AI$823,25,FALSE)))","v":""},{"$f":"IF($A435=\"\",\"\",IF(ISERROR((F435+VLOOKUP($A435,Economática!$A$3:$AI$823,26,FALSE))/Y435),(F435+VLOOKUP($A435,Economática!$A$3:$AI$823,26,FALSE))/Y435,(F435+VLOOKUP($A435,Economática!$A$3:$AI$823,26,FALSE))/Y435))","v":""},{"$f":"IF($A435=\"\",\"\",IF(OR(-VLOOKUP($A435,Economática!$A$3:$AI$823,27,FALSE)=0,-VLOOKUP($A435,Economática!$A$3:$AI$823,27,FALSE)=\"-\"),1/0,-VLOOKUP($A435,Economática!$A$3:$AI$823,27,FALSE)))","v":""},"",{"$f":"IF($A435=\"\",\"\",IF(OR(VLOOKUP($A435,Economática!$A$3:$AI$823,28,FALSE)=0,VLOOKUP($A435,Economática!$A$3:$AI$823,28,FALSE)=\"-\"),1/0,VLOOKUP($A435,Economática!$A$3:$AI$823,28,FALSE)))","v":""},{"$f":"IF($A435=\"\",\"\",IF(OR(VLOOKUP($A435,Economática!$A$3:$AI$823,29,FALSE)=0,VLOOKUP($A435,Economática!$A$3:$AI$823,29,FALSE)=\"-\"),1/0,VLOOKUP($A435,Economática!$A$3:$AI$823,29,FALSE)))","v":""},{"$f":"IF($A435=\"\",\"\",IF(OR(VLOOKUP($A435,Economática!$A$3:$AI$823,30,FALSE)/E435=0,VLOOKUP($A435,Economática!$A$3:$AI$823,30,FALSE)/E435=\"-\",VLOOKUP($A435,Economática!$A$3:$AI$823,30,FALSE)/E435<33.33%,VLOOKUP($A435,Economática!$A$3:$AI$823,30,FALSE)/E435>100%),1/0,VLOOKUP($A435,Economática!$A$3:$AI$823,30,FALSE)/E435))","v":""},"",{"$f":"IF($A435=\"\",\"\",IF(OR(VLOOKUP($A435,Economática!$A$3:$AI$823,25,FALSE)=0,VLOOKUP($A435,Economática!$A$3:$AI$823,25,FALSE)=\"-\"),1/0,VLOOKUP($A435,Economática!$A$3:$AI$823,25,FALSE)))","v":""},{"$f":"CONCATENATE(Economática!B413,\" \",Economática!C413)","v":" "}]
[{"$f":"IF(Economática!AG414=\"\",\"\",Economática!AG414)","v":""},{"$f":"IF($A436=\"\",\"\",VLOOKUP(VLOOKUP($A436,Economática!$A$3:$AI$823,6,FALSE),Correção!$B$16:$C$36,2,FALSE))","v":""},{"$f":"IF(Economática!B414=\"\",\"\",Economática!B414)","v":""},{"$f":"IF($A436=\"\",\"\",IF(OR(VLOOKUP($A436,Economática!$A$3:$AI$823,8,FALSE)=0,VLOOKUP($A436,Economática!$A$3:$AI$823,8,FALSE)=\"-\"),1/0,VLOOKUP($A436,Economática!$A$3:$AI$823,8,FALSE)))","v":""},{"$f":"IF(A436=\"\",\"\",IF(ISERROR(VLOOKUP(A436,Correção!$B$2:$G$13,9,FALSE)),VLOOKUP($A436,Economática!$A$3:$AI$823,9,FALSE),VLOOKUP(A436,Correção!$B$2:$G$13,9,FALSE)))","v":""},{"$f":"IF($A436=\"\",\"\",Economática!G414)","v":""},{"$f":"IF($A436=\"\",\"\",IF(OR(VLOOKUP($A436,Economática!$A$3:$AI$823,10,FALSE)=0,VLOOKUP($A436,Economática!$A$3:$AI$823,10,FALSE)=\"-\"),1/0,VLOOKUP($A436,Economática!$A$3:$AI$823,10,FALSE)))","v":""},{"$f":"IF($A436=\"\",\"\",IF(OR(VLOOKUP($A436,Economática!$A$3:$AI$823,11,FALSE)=0,VLOOKUP($A436,Economática!$A$3:$AI$823,11,FALSE)=\"-\"),1/0,VLOOKUP($A436,Economática!$A$3:$AI$823,11,FALSE)))","v":""},{"$f":"IF($A436=\"\",\"\",IF(OR(VLOOKUP($A436,Economática!$A$3:$AI$823,12,FALSE)=0,VLOOKUP($A436,Economática!$A$3:$AI$823,12,FALSE)=\"-\"),1/0,VLOOKUP($A436,Economática!$A$3:$AI$823,12,FALSE)))","v":""},{"$f":"IF($A436=\"\",\"\",IF(OR(VLOOKUP($A436,Economática!$A$3:$AI$823,13,FALSE)=0,VLOOKUP($A436,Economática!$A$3:$AI$823,13,FALSE)=\"-\"),1/0,VLOOKUP($A436,Economática!$A$3:$AI$823,13,FALSE)))","v":""},{"$f":"IF($A436=\"\",\"\",IF(OR(VLOOKUP($A436,Economática!$A$3:$AI$823,14,FALSE)=0,VLOOKUP($A436,Economática!$A$3:$AI$823,14,FALSE)=\"-\"),1/0,VLOOKUP($A436,Economática!$A$3:$AI$823,14,FALSE)))","v":""},{"$f":"IF($A436=\"\",\"\",IF(OR(VLOOKUP($A436,Economática!$A$3:$AI$823,15,FALSE)=0,VLOOKUP($A436,Economática!$A$3:$AI$823,15,FALSE)=\"-\"),1/0,VLOOKUP($A436,Economática!$A$3:$AI$823,15,FALSE)))","v":""},{"$f":"IF($A436=\"\",\"\",IF(OR(VLOOKUP($A436,Economática!$A$3:$AI$823,16,FALSE)=0,VLOOKUP($A436,Economática!$A$3:$AI$823,16,FALSE)=\"-\"),1/0,VLOOKUP($A436,Economática!$A$3:$AI$823,16,FALSE)))","v":""},{"$f":"IF($A436=\"\",\"\",IF(OR(VLOOKUP($A436,Economática!$A$3:$AI$823,17,FALSE)=0,VLOOKUP($A436,Economática!$A$3:$AI$823,17,FALSE)=\"-\"),1/0,VLOOKUP($A436,Economática!$A$3:$AI$823,17,FALSE)))","v":""},{"$f":"IF($A436=\"\",\"\",IF(OR(VLOOKUP($A436,Economática!$A$3:$AI$823,18,FALSE)=0,VLOOKUP($A436,Economática!$A$3:$AI$823,18,FALSE)=\"-\"),1/0,VLOOKUP($A436,Economática!$A$3:$AI$823,18,FALSE)))","v":""},{"$f":"IF($A436=\"\",\"\",IF(OR(VLOOKUP($A436,Economática!$A$3:$AI$823,19,FALSE)=0,VLOOKUP($A436,Economática!$A$3:$AI$823,19,FALSE)=\"-\"),1/0,VLOOKUP($A436,Economática!$A$3:$AI$823,19,FALSE)))","v":""},{"$f":"IF($A436=\"\",\"\",VLOOKUP($A436,Economática!$A$3:$AI$823,20,FALSE)/E436)","v":""},"","","",{"$f":"IF($A436=\"\",\"\",IF(OR(VLOOKUP($A436,Economática!$A$3:$AI$823,21,FALSE)/100=0,VLOOKUP($A436,Economática!$A$3:$AI$823,21,FALSE)/100=\"-\"),1/0,VLOOKUP($A436,Economática!$A$3:$AI$823,21,FALSE)/100))","v":""},{"$f":"IF($A436=\"\",\"\",IF(OR(VLOOKUP($A436,Economática!$A$3:$AI$823,22,FALSE)/100=0,VLOOKUP($A436,Economática!$A$3:$AI$823,22,FALSE)/100=\"-\"),1/0,VLOOKUP($A436,Economática!$A$3:$AI$823,22,FALSE)/100))","v":""},{"$f":"IF($A436=\"\",\"\",IF(OR(VLOOKUP($A436,Economática!$A$3:$AI$823,23,FALSE)=0,VLOOKUP($A436,Economática!$A$3:$AI$823,23,FALSE)=\"-\"),1/0,VLOOKUP($A436,Economática!$A$3:$AI$823,23,FALSE)))","v":""},{"$f":"IF($A436=\"\",\"\",IF(OR(VLOOKUP($A436,Economática!$A$3:$AI$823,24,FALSE)=0,VLOOKUP($A436,Economática!$A$3:$AI$823,24,FALSE)=\"-\"),1/0,VLOOKUP($A436,Economática!$A$3:$AI$823,24,FALSE)))","v":""},{"$f":"IF($A436=\"\",\"\",IF(OR(VLOOKUP($A436,Economática!$A$3:$AI$823,25,FALSE)=0,VLOOKUP($A436,Economática!$A$3:$AI$823,25,FALSE)=\"-\"),1/0,VLOOKUP($A436,Economática!$A$3:$AI$823,25,FALSE)))","v":""},{"$f":"IF($A436=\"\",\"\",IF(ISERROR((F436+VLOOKUP($A436,Economática!$A$3:$AI$823,26,FALSE))/Y436),(F436+VLOOKUP($A436,Economática!$A$3:$AI$823,26,FALSE))/Y436,(F436+VLOOKUP($A436,Economática!$A$3:$AI$823,26,FALSE))/Y436))","v":""},{"$f":"IF($A436=\"\",\"\",IF(OR(-VLOOKUP($A436,Economática!$A$3:$AI$823,27,FALSE)=0,-VLOOKUP($A436,Economática!$A$3:$AI$823,27,FALSE)=\"-\"),1/0,-VLOOKUP($A436,Economática!$A$3:$AI$823,27,FALSE)))","v":""},"",{"$f":"IF($A436=\"\",\"\",IF(OR(VLOOKUP($A436,Economática!$A$3:$AI$823,28,FALSE)=0,VLOOKUP($A436,Economática!$A$3:$AI$823,28,FALSE)=\"-\"),1/0,VLOOKUP($A436,Economática!$A$3:$AI$823,28,FALSE)))","v":""},{"$f":"IF($A436=\"\",\"\",IF(OR(VLOOKUP($A436,Economática!$A$3:$AI$823,29,FALSE)=0,VLOOKUP($A436,Economática!$A$3:$AI$823,29,FALSE)=\"-\"),1/0,VLOOKUP($A436,Economática!$A$3:$AI$823,29,FALSE)))","v":""},{"$f":"IF($A436=\"\",\"\",IF(OR(VLOOKUP($A436,Economática!$A$3:$AI$823,30,FALSE)/E436=0,VLOOKUP($A436,Economática!$A$3:$AI$823,30,FALSE)/E436=\"-\",VLOOKUP($A436,Economática!$A$3:$AI$823,30,FALSE)/E436<33.33%,VLOOKUP($A436,Economática!$A$3:$AI$823,30,FALSE)/E436>100%),1/0,VLOOKUP($A436,Economática!$A$3:$AI$823,30,FALSE)/E436))","v":""},"",{"$f":"IF($A436=\"\",\"\",IF(OR(VLOOKUP($A436,Economática!$A$3:$AI$823,25,FALSE)=0,VLOOKUP($A436,Economática!$A$3:$AI$823,25,FALSE)=\"-\"),1/0,VLOOKUP($A436,Economática!$A$3:$AI$823,25,FALSE)))","v":""},{"$f":"CONCATENATE(Economática!B414,\" \",Economática!C414)","v":" "}]
[{"$f":"IF(Economática!AG415=\"\",\"\",Economática!AG415)","v":""},{"$f":"IF($A437=\"\",\"\",VLOOKUP(VLOOKUP($A437,Economática!$A$3:$AI$823,6,FALSE),Correção!$B$16:$C$36,2,FALSE))","v":""},{"$f":"IF(Economática!B415=\"\",\"\",Economática!B415)","v":""},{"$f":"IF($A437=\"\",\"\",IF(OR(VLOOKUP($A437,Economática!$A$3:$AI$823,8,FALSE)=0,VLOOKUP($A437,Economática!$A$3:$AI$823,8,FALSE)=\"-\"),1/0,VLOOKUP($A437,Economática!$A$3:$AI$823,8,FALSE)))","v":""},{"$f":"IF(A437=\"\",\"\",IF(ISERROR(VLOOKUP(A437,Correção!$B$2:$G$13,9,FALSE)),VLOOKUP($A437,Economática!$A$3:$AI$823,9,FALSE),VLOOKUP(A437,Correção!$B$2:$G$13,9,FALSE)))","v":""},{"$f":"IF($A437=\"\",\"\",Economática!G415)","v":""},{"$f":"IF($A437=\"\",\"\",IF(OR(VLOOKUP($A437,Economática!$A$3:$AI$823,10,FALSE)=0,VLOOKUP($A437,Economática!$A$3:$AI$823,10,FALSE)=\"-\"),1/0,VLOOKUP($A437,Economática!$A$3:$AI$823,10,FALSE)))","v":""},{"$f":"IF($A437=\"\",\"\",IF(OR(VLOOKUP($A437,Economática!$A$3:$AI$823,11,FALSE)=0,VLOOKUP($A437,Economática!$A$3:$AI$823,11,FALSE)=\"-\"),1/0,VLOOKUP($A437,Economática!$A$3:$AI$823,11,FALSE)))","v":""},{"$f":"IF($A437=\"\",\"\",IF(OR(VLOOKUP($A437,Economática!$A$3:$AI$823,12,FALSE)=0,VLOOKUP($A437,Economática!$A$3:$AI$823,12,FALSE)=\"-\"),1/0,VLOOKUP($A437,Economática!$A$3:$AI$823,12,FALSE)))","v":""},{"$f":"IF($A437=\"\",\"\",IF(OR(VLOOKUP($A437,Economática!$A$3:$AI$823,13,FALSE)=0,VLOOKUP($A437,Economática!$A$3:$AI$823,13,FALSE)=\"-\"),1/0,VLOOKUP($A437,Economática!$A$3:$AI$823,13,FALSE)))","v":""},{"$f":"IF($A437=\"\",\"\",IF(OR(VLOOKUP($A437,Economática!$A$3:$AI$823,14,FALSE)=0,VLOOKUP($A437,Economática!$A$3:$AI$823,14,FALSE)=\"-\"),1/0,VLOOKUP($A437,Economática!$A$3:$AI$823,14,FALSE)))","v":""},{"$f":"IF($A437=\"\",\"\",IF(OR(VLOOKUP($A437,Economática!$A$3:$AI$823,15,FALSE)=0,VLOOKUP($A437,Economática!$A$3:$AI$823,15,FALSE)=\"-\"),1/0,VLOOKUP($A437,Economática!$A$3:$AI$823,15,FALSE)))","v":""},{"$f":"IF($A437=\"\",\"\",IF(OR(VLOOKUP($A437,Economática!$A$3:$AI$823,16,FALSE)=0,VLOOKUP($A437,Economática!$A$3:$AI$823,16,FALSE)=\"-\"),1/0,VLOOKUP($A437,Economática!$A$3:$AI$823,16,FALSE)))","v":""},{"$f":"IF($A437=\"\",\"\",IF(OR(VLOOKUP($A437,Economática!$A$3:$AI$823,17,FALSE)=0,VLOOKUP($A437,Economática!$A$3:$AI$823,17,FALSE)=\"-\"),1/0,VLOOKUP($A437,Economática!$A$3:$AI$823,17,FALSE)))","v":""},{"$f":"IF($A437=\"\",\"\",IF(OR(VLOOKUP($A437,Economática!$A$3:$AI$823,18,FALSE)=0,VLOOKUP($A437,Economática!$A$3:$AI$823,18,FALSE)=\"-\"),1/0,VLOOKUP($A437,Economática!$A$3:$AI$823,18,FALSE)))","v":""},{"$f":"IF($A437=\"\",\"\",IF(OR(VLOOKUP($A437,Economática!$A$3:$AI$823,19,FALSE)=0,VLOOKUP($A437,Economática!$A$3:$AI$823,19,FALSE)=\"-\"),1/0,VLOOKUP($A437,Economática!$A$3:$AI$823,19,FALSE)))","v":""},{"$f":"IF($A437=\"\",\"\",VLOOKUP($A437,Economática!$A$3:$AI$823,20,FALSE)/E437)","v":""},"","","",{"$f":"IF($A437=\"\",\"\",IF(OR(VLOOKUP($A437,Economática!$A$3:$AI$823,21,FALSE)/100=0,VLOOKUP($A437,Economática!$A$3:$AI$823,21,FALSE)/100=\"-\"),1/0,VLOOKUP($A437,Economática!$A$3:$AI$823,21,FALSE)/100))","v":""},{"$f":"IF($A437=\"\",\"\",IF(OR(VLOOKUP($A437,Economática!$A$3:$AI$823,22,FALSE)/100=0,VLOOKUP($A437,Economática!$A$3:$AI$823,22,FALSE)/100=\"-\"),1/0,VLOOKUP($A437,Economática!$A$3:$AI$823,22,FALSE)/100))","v":""},{"$f":"IF($A437=\"\",\"\",IF(OR(VLOOKUP($A437,Economática!$A$3:$AI$823,23,FALSE)=0,VLOOKUP($A437,Economática!$A$3:$AI$823,23,FALSE)=\"-\"),1/0,VLOOKUP($A437,Economática!$A$3:$AI$823,23,FALSE)))","v":""},{"$f":"IF($A437=\"\",\"\",IF(OR(VLOOKUP($A437,Economática!$A$3:$AI$823,24,FALSE)=0,VLOOKUP($A437,Economática!$A$3:$AI$823,24,FALSE)=\"-\"),1/0,VLOOKUP($A437,Economática!$A$3:$AI$823,24,FALSE)))","v":""},{"$f":"IF($A437=\"\",\"\",IF(OR(VLOOKUP($A437,Economática!$A$3:$AI$823,25,FALSE)=0,VLOOKUP($A437,Economática!$A$3:$AI$823,25,FALSE)=\"-\"),1/0,VLOOKUP($A437,Economática!$A$3:$AI$823,25,FALSE)))","v":""},{"$f":"IF($A437=\"\",\"\",IF(ISERROR((F437+VLOOKUP($A437,Economática!$A$3:$AI$823,26,FALSE))/Y437),(F437+VLOOKUP($A437,Economática!$A$3:$AI$823,26,FALSE))/Y437,(F437+VLOOKUP($A437,Economática!$A$3:$AI$823,26,FALSE))/Y437))","v":""},{"$f":"IF($A437=\"\",\"\",IF(OR(-VLOOKUP($A437,Economática!$A$3:$AI$823,27,FALSE)=0,-VLOOKUP($A437,Economática!$A$3:$AI$823,27,FALSE)=\"-\"),1/0,-VLOOKUP($A437,Economática!$A$3:$AI$823,27,FALSE)))","v":""},"",{"$f":"IF($A437=\"\",\"\",IF(OR(VLOOKUP($A437,Economática!$A$3:$AI$823,28,FALSE)=0,VLOOKUP($A437,Economática!$A$3:$AI$823,28,FALSE)=\"-\"),1/0,VLOOKUP($A437,Economática!$A$3:$AI$823,28,FALSE)))","v":""},{"$f":"IF($A437=\"\",\"\",IF(OR(VLOOKUP($A437,Economática!$A$3:$AI$823,29,FALSE)=0,VLOOKUP($A437,Economática!$A$3:$AI$823,29,FALSE)=\"-\"),1/0,VLOOKUP($A437,Economática!$A$3:$AI$823,29,FALSE)))","v":""},{"$f":"IF($A437=\"\",\"\",IF(OR(VLOOKUP($A437,Economática!$A$3:$AI$823,30,FALSE)/E437=0,VLOOKUP($A437,Economática!$A$3:$AI$823,30,FALSE)/E437=\"-\",VLOOKUP($A437,Economática!$A$3:$AI$823,30,FALSE)/E437<33.33%,VLOOKUP($A437,Economática!$A$3:$AI$823,30,FALSE)/E437>100%),1/0,VLOOKUP($A437,Economática!$A$3:$AI$823,30,FALSE)/E437))","v":""},"",{"$f":"IF($A437=\"\",\"\",IF(OR(VLOOKUP($A437,Economática!$A$3:$AI$823,25,FALSE)=0,VLOOKUP($A437,Economática!$A$3:$AI$823,25,FALSE)=\"-\"),1/0,VLOOKUP($A437,Economática!$A$3:$AI$823,25,FALSE)))","v":""},{"$f":"CONCATENATE(Economática!B415,\" \",Economática!C415)","v":" "}]
[{"$f":"IF(Economática!AG416=\"\",\"\",Economática!AG416)","v":""},{"$f":"IF($A438=\"\",\"\",VLOOKUP(VLOOKUP($A438,Economática!$A$3:$AI$823,6,FALSE),Correção!$B$16:$C$36,2,FALSE))","v":""},{"$f":"IF(Economática!B416=\"\",\"\",Economática!B416)","v":""},{"$f":"IF($A438=\"\",\"\",IF(OR(VLOOKUP($A438,Economática!$A$3:$AI$823,8,FALSE)=0,VLOOKUP($A438,Economática!$A$3:$AI$823,8,FALSE)=\"-\"),1/0,VLOOKUP($A438,Economática!$A$3:$AI$823,8,FALSE)))","v":""},{"$f":"IF(A438=\"\",\"\",IF(ISERROR(VLOOKUP(A438,Correção!$B$2:$G$13,9,FALSE)),VLOOKUP($A438,Economática!$A$3:$AI$823,9,FALSE),VLOOKUP(A438,Correção!$B$2:$G$13,9,FALSE)))","v":""},{"$f":"IF($A438=\"\",\"\",Economática!G416)","v":""},{"$f":"IF($A438=\"\",\"\",IF(OR(VLOOKUP($A438,Economática!$A$3:$AI$823,10,FALSE)=0,VLOOKUP($A438,Economática!$A$3:$AI$823,10,FALSE)=\"-\"),1/0,VLOOKUP($A438,Economática!$A$3:$AI$823,10,FALSE)))","v":""},{"$f":"IF($A438=\"\",\"\",IF(OR(VLOOKUP($A438,Economática!$A$3:$AI$823,11,FALSE)=0,VLOOKUP($A438,Economática!$A$3:$AI$823,11,FALSE)=\"-\"),1/0,VLOOKUP($A438,Economática!$A$3:$AI$823,11,FALSE)))","v":""},{"$f":"IF($A438=\"\",\"\",IF(OR(VLOOKUP($A438,Economática!$A$3:$AI$823,12,FALSE)=0,VLOOKUP($A438,Economática!$A$3:$AI$823,12,FALSE)=\"-\"),1/0,VLOOKUP($A438,Economática!$A$3:$AI$823,12,FALSE)))","v":""},{"$f":"IF($A438=\"\",\"\",IF(OR(VLOOKUP($A438,Economática!$A$3:$AI$823,13,FALSE)=0,VLOOKUP($A438,Economática!$A$3:$AI$823,13,FALSE)=\"-\"),1/0,VLOOKUP($A438,Economática!$A$3:$AI$823,13,FALSE)))","v":""},{"$f":"IF($A438=\"\",\"\",IF(OR(VLOOKUP($A438,Economática!$A$3:$AI$823,14,FALSE)=0,VLOOKUP($A438,Economática!$A$3:$AI$823,14,FALSE)=\"-\"),1/0,VLOOKUP($A438,Economática!$A$3:$AI$823,14,FALSE)))","v":""},{"$f":"IF($A438=\"\",\"\",IF(OR(VLOOKUP($A438,Economática!$A$3:$AI$823,15,FALSE)=0,VLOOKUP($A438,Economática!$A$3:$AI$823,15,FALSE)=\"-\"),1/0,VLOOKUP($A438,Economática!$A$3:$AI$823,15,FALSE)))","v":""},{"$f":"IF($A438=\"\",\"\",IF(OR(VLOOKUP($A438,Economática!$A$3:$AI$823,16,FALSE)=0,VLOOKUP($A438,Economática!$A$3:$AI$823,16,FALSE)=\"-\"),1/0,VLOOKUP($A438,Economática!$A$3:$AI$823,16,FALSE)))","v":""},{"$f":"IF($A438=\"\",\"\",IF(OR(VLOOKUP($A438,Economática!$A$3:$AI$823,17,FALSE)=0,VLOOKUP($A438,Economática!$A$3:$AI$823,17,FALSE)=\"-\"),1/0,VLOOKUP($A438,Economática!$A$3:$AI$823,17,FALSE)))","v":""},{"$f":"IF($A438=\"\",\"\",IF(OR(VLOOKUP($A438,Economática!$A$3:$AI$823,18,FALSE)=0,VLOOKUP($A438,Economática!$A$3:$AI$823,18,FALSE)=\"-\"),1/0,VLOOKUP($A438,Economática!$A$3:$AI$823,18,FALSE)))","v":""},{"$f":"IF($A438=\"\",\"\",IF(OR(VLOOKUP($A438,Economática!$A$3:$AI$823,19,FALSE)=0,VLOOKUP($A438,Economática!$A$3:$AI$823,19,FALSE)=\"-\"),1/0,VLOOKUP($A438,Economática!$A$3:$AI$823,19,FALSE)))","v":""},{"$f":"IF($A438=\"\",\"\",VLOOKUP($A438,Economática!$A$3:$AI$823,20,FALSE)/E438)","v":""},"","","",{"$f":"IF($A438=\"\",\"\",IF(OR(VLOOKUP($A438,Economática!$A$3:$AI$823,21,FALSE)/100=0,VLOOKUP($A438,Economática!$A$3:$AI$823,21,FALSE)/100=\"-\"),1/0,VLOOKUP($A438,Economática!$A$3:$AI$823,21,FALSE)/100))","v":""},{"$f":"IF($A438=\"\",\"\",IF(OR(VLOOKUP($A438,Economática!$A$3:$AI$823,22,FALSE)/100=0,VLOOKUP($A438,Economática!$A$3:$AI$823,22,FALSE)/100=\"-\"),1/0,VLOOKUP($A438,Economática!$A$3:$AI$823,22,FALSE)/100))","v":""},{"$f":"IF($A438=\"\",\"\",IF(OR(VLOOKUP($A438,Economática!$A$3:$AI$823,23,FALSE)=0,VLOOKUP($A438,Economática!$A$3:$AI$823,23,FALSE)=\"-\"),1/0,VLOOKUP($A438,Economática!$A$3:$AI$823,23,FALSE)))","v":""},{"$f":"IF($A438=\"\",\"\",IF(OR(VLOOKUP($A438,Economática!$A$3:$AI$823,24,FALSE)=0,VLOOKUP($A438,Economática!$A$3:$AI$823,24,FALSE)=\"-\"),1/0,VLOOKUP($A438,Economática!$A$3:$AI$823,24,FALSE)))","v":""},{"$f":"IF($A438=\"\",\"\",IF(OR(VLOOKUP($A438,Economática!$A$3:$AI$823,25,FALSE)=0,VLOOKUP($A438,Economática!$A$3:$AI$823,25,FALSE)=\"-\"),1/0,VLOOKUP($A438,Economática!$A$3:$AI$823,25,FALSE)))","v":""},{"$f":"IF($A438=\"\",\"\",IF(ISERROR((F438+VLOOKUP($A438,Economática!$A$3:$AI$823,26,FALSE))/Y438),(F438+VLOOKUP($A438,Economática!$A$3:$AI$823,26,FALSE))/Y438,(F438+VLOOKUP($A438,Economática!$A$3:$AI$823,26,FALSE))/Y438))","v":""},{"$f":"IF($A438=\"\",\"\",IF(OR(-VLOOKUP($A438,Economática!$A$3:$AI$823,27,FALSE)=0,-VLOOKUP($A438,Economática!$A$3:$AI$823,27,FALSE)=\"-\"),1/0,-VLOOKUP($A438,Economática!$A$3:$AI$823,27,FALSE)))","v":""},"",{"$f":"IF($A438=\"\",\"\",IF(OR(VLOOKUP($A438,Economática!$A$3:$AI$823,28,FALSE)=0,VLOOKUP($A438,Economática!$A$3:$AI$823,28,FALSE)=\"-\"),1/0,VLOOKUP($A438,Economática!$A$3:$AI$823,28,FALSE)))","v":""},{"$f":"IF($A438=\"\",\"\",IF(OR(VLOOKUP($A438,Economática!$A$3:$AI$823,29,FALSE)=0,VLOOKUP($A438,Economática!$A$3:$AI$823,29,FALSE)=\"-\"),1/0,VLOOKUP($A438,Economática!$A$3:$AI$823,29,FALSE)))","v":""},{"$f":"IF($A438=\"\",\"\",IF(OR(VLOOKUP($A438,Economática!$A$3:$AI$823,30,FALSE)/E438=0,VLOOKUP($A438,Economática!$A$3:$AI$823,30,FALSE)/E438=\"-\",VLOOKUP($A438,Economática!$A$3:$AI$823,30,FALSE)/E438<33.33%,VLOOKUP($A438,Economática!$A$3:$AI$823,30,FALSE)/E438>100%),1/0,VLOOKUP($A438,Economática!$A$3:$AI$823,30,FALSE)/E438))","v":""},"",{"$f":"IF($A438=\"\",\"\",IF(OR(VLOOKUP($A438,Economática!$A$3:$AI$823,25,FALSE)=0,VLOOKUP($A438,Economática!$A$3:$AI$823,25,FALSE)=\"-\"),1/0,VLOOKUP($A438,Economática!$A$3:$AI$823,25,FALSE)))","v":""},{"$f":"CONCATENATE(Economática!B416,\" \",Economática!C416)","v":" "}]
[{"$f":"IF(Economática!AG417=\"\",\"\",Economática!AG417)","v":""},{"$f":"IF($A439=\"\",\"\",VLOOKUP(VLOOKUP($A439,Economática!$A$3:$AI$823,6,FALSE),Correção!$B$16:$C$36,2,FALSE))","v":""},{"$f":"IF(Economática!B417=\"\",\"\",Economática!B417)","v":""},{"$f":"IF($A439=\"\",\"\",IF(OR(VLOOKUP($A439,Economática!$A$3:$AI$823,8,FALSE)=0,VLOOKUP($A439,Economática!$A$3:$AI$823,8,FALSE)=\"-\"),1/0,VLOOKUP($A439,Economática!$A$3:$AI$823,8,FALSE)))","v":""},{"$f":"IF(A439=\"\",\"\",IF(ISERROR(VLOOKUP(A439,Correção!$B$2:$G$13,9,FALSE)),VLOOKUP($A439,Economática!$A$3:$AI$823,9,FALSE),VLOOKUP(A439,Correção!$B$2:$G$13,9,FALSE)))","v":""},{"$f":"IF($A439=\"\",\"\",Economática!G417)","v":""},{"$f":"IF($A439=\"\",\"\",IF(OR(VLOOKUP($A439,Economática!$A$3:$AI$823,10,FALSE)=0,VLOOKUP($A439,Economática!$A$3:$AI$823,10,FALSE)=\"-\"),1/0,VLOOKUP($A439,Economática!$A$3:$AI$823,10,FALSE)))","v":""},{"$f":"IF($A439=\"\",\"\",IF(OR(VLOOKUP($A439,Economática!$A$3:$AI$823,11,FALSE)=0,VLOOKUP($A439,Economática!$A$3:$AI$823,11,FALSE)=\"-\"),1/0,VLOOKUP($A439,Economática!$A$3:$AI$823,11,FALSE)))","v":""},{"$f":"IF($A439=\"\",\"\",IF(OR(VLOOKUP($A439,Economática!$A$3:$AI$823,12,FALSE)=0,VLOOKUP($A439,Economática!$A$3:$AI$823,12,FALSE)=\"-\"),1/0,VLOOKUP($A439,Economática!$A$3:$AI$823,12,FALSE)))","v":""},{"$f":"IF($A439=\"\",\"\",IF(OR(VLOOKUP($A439,Economática!$A$3:$AI$823,13,FALSE)=0,VLOOKUP($A439,Economática!$A$3:$AI$823,13,FALSE)=\"-\"),1/0,VLOOKUP($A439,Economática!$A$3:$AI$823,13,FALSE)))","v":""},{"$f":"IF($A439=\"\",\"\",IF(OR(VLOOKUP($A439,Economática!$A$3:$AI$823,14,FALSE)=0,VLOOKUP($A439,Economática!$A$3:$AI$823,14,FALSE)=\"-\"),1/0,VLOOKUP($A439,Economática!$A$3:$AI$823,14,FALSE)))","v":""},{"$f":"IF($A439=\"\",\"\",IF(OR(VLOOKUP($A439,Economática!$A$3:$AI$823,15,FALSE)=0,VLOOKUP($A439,Economática!$A$3:$AI$823,15,FALSE)=\"-\"),1/0,VLOOKUP($A439,Economática!$A$3:$AI$823,15,FALSE)))","v":""},{"$f":"IF($A439=\"\",\"\",IF(OR(VLOOKUP($A439,Economática!$A$3:$AI$823,16,FALSE)=0,VLOOKUP($A439,Economática!$A$3:$AI$823,16,FALSE)=\"-\"),1/0,VLOOKUP($A439,Economática!$A$3:$AI$823,16,FALSE)))","v":""},{"$f":"IF($A439=\"\",\"\",IF(OR(VLOOKUP($A439,Economática!$A$3:$AI$823,17,FALSE)=0,VLOOKUP($A439,Economática!$A$3:$AI$823,17,FALSE)=\"-\"),1/0,VLOOKUP($A439,Economática!$A$3:$AI$823,17,FALSE)))","v":""},{"$f":"IF($A439=\"\",\"\",IF(OR(VLOOKUP($A439,Economática!$A$3:$AI$823,18,FALSE)=0,VLOOKUP($A439,Economática!$A$3:$AI$823,18,FALSE)=\"-\"),1/0,VLOOKUP($A439,Economática!$A$3:$AI$823,18,FALSE)))","v":""},{"$f":"IF($A439=\"\",\"\",IF(OR(VLOOKUP($A439,Economática!$A$3:$AI$823,19,FALSE)=0,VLOOKUP($A439,Economática!$A$3:$AI$823,19,FALSE)=\"-\"),1/0,VLOOKUP($A439,Economática!$A$3:$AI$823,19,FALSE)))","v":""},{"$f":"IF($A439=\"\",\"\",VLOOKUP($A439,Economática!$A$3:$AI$823,20,FALSE)/E439)","v":""},"","","",{"$f":"IF($A439=\"\",\"\",IF(OR(VLOOKUP($A439,Economática!$A$3:$AI$823,21,FALSE)/100=0,VLOOKUP($A439,Economática!$A$3:$AI$823,21,FALSE)/100=\"-\"),1/0,VLOOKUP($A439,Economática!$A$3:$AI$823,21,FALSE)/100))","v":""},{"$f":"IF($A439=\"\",\"\",IF(OR(VLOOKUP($A439,Economática!$A$3:$AI$823,22,FALSE)/100=0,VLOOKUP($A439,Economática!$A$3:$AI$823,22,FALSE)/100=\"-\"),1/0,VLOOKUP($A439,Economática!$A$3:$AI$823,22,FALSE)/100))","v":""},{"$f":"IF($A439=\"\",\"\",IF(OR(VLOOKUP($A439,Economática!$A$3:$AI$823,23,FALSE)=0,VLOOKUP($A439,Economática!$A$3:$AI$823,23,FALSE)=\"-\"),1/0,VLOOKUP($A439,Economática!$A$3:$AI$823,23,FALSE)))","v":""},{"$f":"IF($A439=\"\",\"\",IF(OR(VLOOKUP($A439,Economática!$A$3:$AI$823,24,FALSE)=0,VLOOKUP($A439,Economática!$A$3:$AI$823,24,FALSE)=\"-\"),1/0,VLOOKUP($A439,Economática!$A$3:$AI$823,24,FALSE)))","v":""},{"$f":"IF($A439=\"\",\"\",IF(OR(VLOOKUP($A439,Economática!$A$3:$AI$823,25,FALSE)=0,VLOOKUP($A439,Economática!$A$3:$AI$823,25,FALSE)=\"-\"),1/0,VLOOKUP($A439,Economática!$A$3:$AI$823,25,FALSE)))","v":""},{"$f":"IF($A439=\"\",\"\",IF(ISERROR((F439+VLOOKUP($A439,Economática!$A$3:$AI$823,26,FALSE))/Y439),(F439+VLOOKUP($A439,Economática!$A$3:$AI$823,26,FALSE))/Y439,(F439+VLOOKUP($A439,Economática!$A$3:$AI$823,26,FALSE))/Y439))","v":""},{"$f":"IF($A439=\"\",\"\",IF(OR(-VLOOKUP($A439,Economática!$A$3:$AI$823,27,FALSE)=0,-VLOOKUP($A439,Economática!$A$3:$AI$823,27,FALSE)=\"-\"),1/0,-VLOOKUP($A439,Economática!$A$3:$AI$823,27,FALSE)))","v":""},"",{"$f":"IF($A439=\"\",\"\",IF(OR(VLOOKUP($A439,Economática!$A$3:$AI$823,28,FALSE)=0,VLOOKUP($A439,Economática!$A$3:$AI$823,28,FALSE)=\"-\"),1/0,VLOOKUP($A439,Economática!$A$3:$AI$823,28,FALSE)))","v":""},{"$f":"IF($A439=\"\",\"\",IF(OR(VLOOKUP($A439,Economática!$A$3:$AI$823,29,FALSE)=0,VLOOKUP($A439,Economática!$A$3:$AI$823,29,FALSE)=\"-\"),1/0,VLOOKUP($A439,Economática!$A$3:$AI$823,29,FALSE)))","v":""},{"$f":"IF($A439=\"\",\"\",IF(OR(VLOOKUP($A439,Economática!$A$3:$AI$823,30,FALSE)/E439=0,VLOOKUP($A439,Economática!$A$3:$AI$823,30,FALSE)/E439=\"-\",VLOOKUP($A439,Economática!$A$3:$AI$823,30,FALSE)/E439<33.33%,VLOOKUP($A439,Economática!$A$3:$AI$823,30,FALSE)/E439>100%),1/0,VLOOKUP($A439,Economática!$A$3:$AI$823,30,FALSE)/E439))","v":""},"",{"$f":"IF($A439=\"\",\"\",IF(OR(VLOOKUP($A439,Economática!$A$3:$AI$823,25,FALSE)=0,VLOOKUP($A439,Economática!$A$3:$AI$823,25,FALSE)=\"-\"),1/0,VLOOKUP($A439,Economática!$A$3:$AI$823,25,FALSE)))","v":""},{"$f":"CONCATENATE(Economática!B417,\" \",Economática!C417)","v":" "}]
[{"$f":"IF(Economática!AG418=\"\",\"\",Economática!AG418)","v":""},{"$f":"IF($A440=\"\",\"\",VLOOKUP(VLOOKUP($A440,Economática!$A$3:$AI$823,6,FALSE),Correção!$B$16:$C$36,2,FALSE))","v":""},{"$f":"IF(Economática!B418=\"\",\"\",Economática!B418)","v":""},{"$f":"IF($A440=\"\",\"\",IF(OR(VLOOKUP($A440,Economática!$A$3:$AI$823,8,FALSE)=0,VLOOKUP($A440,Economática!$A$3:$AI$823,8,FALSE)=\"-\"),1/0,VLOOKUP($A440,Economática!$A$3:$AI$823,8,FALSE)))","v":""},{"$f":"IF(A440=\"\",\"\",IF(ISERROR(VLOOKUP(A440,Correção!$B$2:$G$13,9,FALSE)),VLOOKUP($A440,Economática!$A$3:$AI$823,9,FALSE),VLOOKUP(A440,Correção!$B$2:$G$13,9,FALSE)))","v":""},{"$f":"IF($A440=\"\",\"\",Economática!G418)","v":""},{"$f":"IF($A440=\"\",\"\",IF(OR(VLOOKUP($A440,Economática!$A$3:$AI$823,10,FALSE)=0,VLOOKUP($A440,Economática!$A$3:$AI$823,10,FALSE)=\"-\"),1/0,VLOOKUP($A440,Economática!$A$3:$AI$823,10,FALSE)))","v":""},{"$f":"IF($A440=\"\",\"\",IF(OR(VLOOKUP($A440,Economática!$A$3:$AI$823,11,FALSE)=0,VLOOKUP($A440,Economática!$A$3:$AI$823,11,FALSE)=\"-\"),1/0,VLOOKUP($A440,Economática!$A$3:$AI$823,11,FALSE)))","v":""},{"$f":"IF($A440=\"\",\"\",IF(OR(VLOOKUP($A440,Economática!$A$3:$AI$823,12,FALSE)=0,VLOOKUP($A440,Economática!$A$3:$AI$823,12,FALSE)=\"-\"),1/0,VLOOKUP($A440,Economática!$A$3:$AI$823,12,FALSE)))","v":""},{"$f":"IF($A440=\"\",\"\",IF(OR(VLOOKUP($A440,Economática!$A$3:$AI$823,13,FALSE)=0,VLOOKUP($A440,Economática!$A$3:$AI$823,13,FALSE)=\"-\"),1/0,VLOOKUP($A440,Economática!$A$3:$AI$823,13,FALSE)))","v":""},{"$f":"IF($A440=\"\",\"\",IF(OR(VLOOKUP($A440,Economática!$A$3:$AI$823,14,FALSE)=0,VLOOKUP($A440,Economática!$A$3:$AI$823,14,FALSE)=\"-\"),1/0,VLOOKUP($A440,Economática!$A$3:$AI$823,14,FALSE)))","v":""},{"$f":"IF($A440=\"\",\"\",IF(OR(VLOOKUP($A440,Economática!$A$3:$AI$823,15,FALSE)=0,VLOOKUP($A440,Economática!$A$3:$AI$823,15,FALSE)=\"-\"),1/0,VLOOKUP($A440,Economática!$A$3:$AI$823,15,FALSE)))","v":""},{"$f":"IF($A440=\"\",\"\",IF(OR(VLOOKUP($A440,Economática!$A$3:$AI$823,16,FALSE)=0,VLOOKUP($A440,Economática!$A$3:$AI$823,16,FALSE)=\"-\"),1/0,VLOOKUP($A440,Economática!$A$3:$AI$823,16,FALSE)))","v":""},{"$f":"IF($A440=\"\",\"\",IF(OR(VLOOKUP($A440,Economática!$A$3:$AI$823,17,FALSE)=0,VLOOKUP($A440,Economática!$A$3:$AI$823,17,FALSE)=\"-\"),1/0,VLOOKUP($A440,Economática!$A$3:$AI$823,17,FALSE)))","v":""},{"$f":"IF($A440=\"\",\"\",IF(OR(VLOOKUP($A440,Economática!$A$3:$AI$823,18,FALSE)=0,VLOOKUP($A440,Economática!$A$3:$AI$823,18,FALSE)=\"-\"),1/0,VLOOKUP($A440,Economática!$A$3:$AI$823,18,FALSE)))","v":""},{"$f":"IF($A440=\"\",\"\",IF(OR(VLOOKUP($A440,Economática!$A$3:$AI$823,19,FALSE)=0,VLOOKUP($A440,Economática!$A$3:$AI$823,19,FALSE)=\"-\"),1/0,VLOOKUP($A440,Economática!$A$3:$AI$823,19,FALSE)))","v":""},{"$f":"IF($A440=\"\",\"\",VLOOKUP($A440,Economática!$A$3:$AI$823,20,FALSE)/E440)","v":""},"","","",{"$f":"IF($A440=\"\",\"\",IF(OR(VLOOKUP($A440,Economática!$A$3:$AI$823,21,FALSE)/100=0,VLOOKUP($A440,Economática!$A$3:$AI$823,21,FALSE)/100=\"-\"),1/0,VLOOKUP($A440,Economática!$A$3:$AI$823,21,FALSE)/100))","v":""},{"$f":"IF($A440=\"\",\"\",IF(OR(VLOOKUP($A440,Economática!$A$3:$AI$823,22,FALSE)/100=0,VLOOKUP($A440,Economática!$A$3:$AI$823,22,FALSE)/100=\"-\"),1/0,VLOOKUP($A440,Economática!$A$3:$AI$823,22,FALSE)/100))","v":""},{"$f":"IF($A440=\"\",\"\",IF(OR(VLOOKUP($A440,Economática!$A$3:$AI$823,23,FALSE)=0,VLOOKUP($A440,Economática!$A$3:$AI$823,23,FALSE)=\"-\"),1/0,VLOOKUP($A440,Economática!$A$3:$AI$823,23,FALSE)))","v":""},{"$f":"IF($A440=\"\",\"\",IF(OR(VLOOKUP($A440,Economática!$A$3:$AI$823,24,FALSE)=0,VLOOKUP($A440,Economática!$A$3:$AI$823,24,FALSE)=\"-\"),1/0,VLOOKUP($A440,Economática!$A$3:$AI$823,24,FALSE)))","v":""},{"$f":"IF($A440=\"\",\"\",IF(OR(VLOOKUP($A440,Economática!$A$3:$AI$823,25,FALSE)=0,VLOOKUP($A440,Economática!$A$3:$AI$823,25,FALSE)=\"-\"),1/0,VLOOKUP($A440,Economática!$A$3:$AI$823,25,FALSE)))","v":""},{"$f":"IF($A440=\"\",\"\",IF(ISERROR((F440+VLOOKUP($A440,Economática!$A$3:$AI$823,26,FALSE))/Y440),(F440+VLOOKUP($A440,Economática!$A$3:$AI$823,26,FALSE))/Y440,(F440+VLOOKUP($A440,Economática!$A$3:$AI$823,26,FALSE))/Y440))","v":""},{"$f":"IF($A440=\"\",\"\",IF(OR(-VLOOKUP($A440,Economática!$A$3:$AI$823,27,FALSE)=0,-VLOOKUP($A440,Economática!$A$3:$AI$823,27,FALSE)=\"-\"),1/0,-VLOOKUP($A440,Economática!$A$3:$AI$823,27,FALSE)))","v":""},"",{"$f":"IF($A440=\"\",\"\",IF(OR(VLOOKUP($A440,Economática!$A$3:$AI$823,28,FALSE)=0,VLOOKUP($A440,Economática!$A$3:$AI$823,28,FALSE)=\"-\"),1/0,VLOOKUP($A440,Economática!$A$3:$AI$823,28,FALSE)))","v":""},{"$f":"IF($A440=\"\",\"\",IF(OR(VLOOKUP($A440,Economática!$A$3:$AI$823,29,FALSE)=0,VLOOKUP($A440,Economática!$A$3:$AI$823,29,FALSE)=\"-\"),1/0,VLOOKUP($A440,Economática!$A$3:$AI$823,29,FALSE)))","v":""},{"$f":"IF($A440=\"\",\"\",IF(OR(VLOOKUP($A440,Economática!$A$3:$AI$823,30,FALSE)/E440=0,VLOOKUP($A440,Economática!$A$3:$AI$823,30,FALSE)/E440=\"-\",VLOOKUP($A440,Economática!$A$3:$AI$823,30,FALSE)/E440<33.33%,VLOOKUP($A440,Economática!$A$3:$AI$823,30,FALSE)/E440>100%),1/0,VLOOKUP($A440,Economática!$A$3:$AI$823,30,FALSE)/E440))","v":""},"",{"$f":"IF($A440=\"\",\"\",IF(OR(VLOOKUP($A440,Economática!$A$3:$AI$823,25,FALSE)=0,VLOOKUP($A440,Economática!$A$3:$AI$823,25,FALSE)=\"-\"),1/0,VLOOKUP($A440,Economática!$A$3:$AI$823,25,FALSE)))","v":""},{"$f":"CONCATENATE(Economática!B418,\" \",Economática!C418)","v":" "}]
[{"$f":"IF(Economática!AG419=\"\",\"\",Economática!AG419)","v":""},{"$f":"IF($A441=\"\",\"\",VLOOKUP(VLOOKUP($A441,Economática!$A$3:$AI$823,6,FALSE),Correção!$B$16:$C$36,2,FALSE))","v":""},{"$f":"IF(Economática!B419=\"\",\"\",Economática!B419)","v":""},{"$f":"IF($A441=\"\",\"\",IF(OR(VLOOKUP($A441,Economática!$A$3:$AI$823,8,FALSE)=0,VLOOKUP($A441,Economática!$A$3:$AI$823,8,FALSE)=\"-\"),1/0,VLOOKUP($A441,Economática!$A$3:$AI$823,8,FALSE)))","v":""},{"$f":"IF(A441=\"\",\"\",IF(ISERROR(VLOOKUP(A441,Correção!$B$2:$G$13,9,FALSE)),VLOOKUP($A441,Economática!$A$3:$AI$823,9,FALSE),VLOOKUP(A441,Correção!$B$2:$G$13,9,FALSE)))","v":""},{"$f":"IF($A441=\"\",\"\",Economática!G419)","v":""},{"$f":"IF($A441=\"\",\"\",IF(OR(VLOOKUP($A441,Economática!$A$3:$AI$823,10,FALSE)=0,VLOOKUP($A441,Economática!$A$3:$AI$823,10,FALSE)=\"-\"),1/0,VLOOKUP($A441,Economática!$A$3:$AI$823,10,FALSE)))","v":""},{"$f":"IF($A441=\"\",\"\",IF(OR(VLOOKUP($A441,Economática!$A$3:$AI$823,11,FALSE)=0,VLOOKUP($A441,Economática!$A$3:$AI$823,11,FALSE)=\"-\"),1/0,VLOOKUP($A441,Economática!$A$3:$AI$823,11,FALSE)))","v":""},{"$f":"IF($A441=\"\",\"\",IF(OR(VLOOKUP($A441,Economática!$A$3:$AI$823,12,FALSE)=0,VLOOKUP($A441,Economática!$A$3:$AI$823,12,FALSE)=\"-\"),1/0,VLOOKUP($A441,Economática!$A$3:$AI$823,12,FALSE)))","v":""},{"$f":"IF($A441=\"\",\"\",IF(OR(VLOOKUP($A441,Economática!$A$3:$AI$823,13,FALSE)=0,VLOOKUP($A441,Economática!$A$3:$AI$823,13,FALSE)=\"-\"),1/0,VLOOKUP($A441,Economática!$A$3:$AI$823,13,FALSE)))","v":""},{"$f":"IF($A441=\"\",\"\",IF(OR(VLOOKUP($A441,Economática!$A$3:$AI$823,14,FALSE)=0,VLOOKUP($A441,Economática!$A$3:$AI$823,14,FALSE)=\"-\"),1/0,VLOOKUP($A441,Economática!$A$3:$AI$823,14,FALSE)))","v":""},{"$f":"IF($A441=\"\",\"\",IF(OR(VLOOKUP($A441,Economática!$A$3:$AI$823,15,FALSE)=0,VLOOKUP($A441,Economática!$A$3:$AI$823,15,FALSE)=\"-\"),1/0,VLOOKUP($A441,Economática!$A$3:$AI$823,15,FALSE)))","v":""},{"$f":"IF($A441=\"\",\"\",IF(OR(VLOOKUP($A441,Economática!$A$3:$AI$823,16,FALSE)=0,VLOOKUP($A441,Economática!$A$3:$AI$823,16,FALSE)=\"-\"),1/0,VLOOKUP($A441,Economática!$A$3:$AI$823,16,FALSE)))","v":""},{"$f":"IF($A441=\"\",\"\",IF(OR(VLOOKUP($A441,Economática!$A$3:$AI$823,17,FALSE)=0,VLOOKUP($A441,Economática!$A$3:$AI$823,17,FALSE)=\"-\"),1/0,VLOOKUP($A441,Economática!$A$3:$AI$823,17,FALSE)))","v":""},{"$f":"IF($A441=\"\",\"\",IF(OR(VLOOKUP($A441,Economática!$A$3:$AI$823,18,FALSE)=0,VLOOKUP($A441,Economática!$A$3:$AI$823,18,FALSE)=\"-\"),1/0,VLOOKUP($A441,Economática!$A$3:$AI$823,18,FALSE)))","v":""},{"$f":"IF($A441=\"\",\"\",IF(OR(VLOOKUP($A441,Economática!$A$3:$AI$823,19,FALSE)=0,VLOOKUP($A441,Economática!$A$3:$AI$823,19,FALSE)=\"-\"),1/0,VLOOKUP($A441,Economática!$A$3:$AI$823,19,FALSE)))","v":""},{"$f":"IF($A441=\"\",\"\",VLOOKUP($A441,Economática!$A$3:$AI$823,20,FALSE)/E441)","v":""},"","","",{"$f":"IF($A441=\"\",\"\",IF(OR(VLOOKUP($A441,Economática!$A$3:$AI$823,21,FALSE)/100=0,VLOOKUP($A441,Economática!$A$3:$AI$823,21,FALSE)/100=\"-\"),1/0,VLOOKUP($A441,Economática!$A$3:$AI$823,21,FALSE)/100))","v":""},{"$f":"IF($A441=\"\",\"\",IF(OR(VLOOKUP($A441,Economática!$A$3:$AI$823,22,FALSE)/100=0,VLOOKUP($A441,Economática!$A$3:$AI$823,22,FALSE)/100=\"-\"),1/0,VLOOKUP($A441,Economática!$A$3:$AI$823,22,FALSE)/100))","v":""},{"$f":"IF($A441=\"\",\"\",IF(OR(VLOOKUP($A441,Economática!$A$3:$AI$823,23,FALSE)=0,VLOOKUP($A441,Economática!$A$3:$AI$823,23,FALSE)=\"-\"),1/0,VLOOKUP($A441,Economática!$A$3:$AI$823,23,FALSE)))","v":""},{"$f":"IF($A441=\"\",\"\",IF(OR(VLOOKUP($A441,Economática!$A$3:$AI$823,24,FALSE)=0,VLOOKUP($A441,Economática!$A$3:$AI$823,24,FALSE)=\"-\"),1/0,VLOOKUP($A441,Economática!$A$3:$AI$823,24,FALSE)))","v":""},{"$f":"IF($A441=\"\",\"\",IF(OR(VLOOKUP($A441,Economática!$A$3:$AI$823,25,FALSE)=0,VLOOKUP($A441,Economática!$A$3:$AI$823,25,FALSE)=\"-\"),1/0,VLOOKUP($A441,Economática!$A$3:$AI$823,25,FALSE)))","v":""},{"$f":"IF($A441=\"\",\"\",IF(ISERROR((F441+VLOOKUP($A441,Economática!$A$3:$AI$823,26,FALSE))/Y441),(F441+VLOOKUP($A441,Economática!$A$3:$AI$823,26,FALSE))/Y441,(F441+VLOOKUP($A441,Economática!$A$3:$AI$823,26,FALSE))/Y441))","v":""},{"$f":"IF($A441=\"\",\"\",IF(OR(-VLOOKUP($A441,Economática!$A$3:$AI$823,27,FALSE)=0,-VLOOKUP($A441,Economática!$A$3:$AI$823,27,FALSE)=\"-\"),1/0,-VLOOKUP($A441,Economática!$A$3:$AI$823,27,FALSE)))","v":""},"",{"$f":"IF($A441=\"\",\"\",IF(OR(VLOOKUP($A441,Economática!$A$3:$AI$823,28,FALSE)=0,VLOOKUP($A441,Economática!$A$3:$AI$823,28,FALSE)=\"-\"),1/0,VLOOKUP($A441,Economática!$A$3:$AI$823,28,FALSE)))","v":""},{"$f":"IF($A441=\"\",\"\",IF(OR(VLOOKUP($A441,Economática!$A$3:$AI$823,29,FALSE)=0,VLOOKUP($A441,Economática!$A$3:$AI$823,29,FALSE)=\"-\"),1/0,VLOOKUP($A441,Economática!$A$3:$AI$823,29,FALSE)))","v":""},{"$f":"IF($A441=\"\",\"\",IF(OR(VLOOKUP($A441,Economática!$A$3:$AI$823,30,FALSE)/E441=0,VLOOKUP($A441,Economática!$A$3:$AI$823,30,FALSE)/E441=\"-\",VLOOKUP($A441,Economática!$A$3:$AI$823,30,FALSE)/E441<33.33%,VLOOKUP($A441,Economática!$A$3:$AI$823,30,FALSE)/E441>100%),1/0,VLOOKUP($A441,Economática!$A$3:$AI$823,30,FALSE)/E441))","v":""},"",{"$f":"IF($A441=\"\",\"\",IF(OR(VLOOKUP($A441,Economática!$A$3:$AI$823,25,FALSE)=0,VLOOKUP($A441,Economática!$A$3:$AI$823,25,FALSE)=\"-\"),1/0,VLOOKUP($A441,Economática!$A$3:$AI$823,25,FALSE)))","v":""},{"$f":"CONCATENATE(Economática!B419,\" \",Economática!C419)","v":" "}]
[{"$f":"IF(Economática!AG420=\"\",\"\",Economática!AG420)","v":""},{"$f":"IF($A442=\"\",\"\",VLOOKUP(VLOOKUP($A442,Economática!$A$3:$AI$823,6,FALSE),Correção!$B$16:$C$36,2,FALSE))","v":""},{"$f":"IF(Economática!B420=\"\",\"\",Economática!B420)","v":""},{"$f":"IF($A442=\"\",\"\",IF(OR(VLOOKUP($A442,Economática!$A$3:$AI$823,8,FALSE)=0,VLOOKUP($A442,Economática!$A$3:$AI$823,8,FALSE)=\"-\"),1/0,VLOOKUP($A442,Economática!$A$3:$AI$823,8,FALSE)))","v":""},{"$f":"IF(A442=\"\",\"\",IF(ISERROR(VLOOKUP(A442,Correção!$B$2:$G$13,9,FALSE)),VLOOKUP($A442,Economática!$A$3:$AI$823,9,FALSE),VLOOKUP(A442,Correção!$B$2:$G$13,9,FALSE)))","v":""},{"$f":"IF($A442=\"\",\"\",Economática!G420)","v":""},{"$f":"IF($A442=\"\",\"\",IF(OR(VLOOKUP($A442,Economática!$A$3:$AI$823,10,FALSE)=0,VLOOKUP($A442,Economática!$A$3:$AI$823,10,FALSE)=\"-\"),1/0,VLOOKUP($A442,Economática!$A$3:$AI$823,10,FALSE)))","v":""},{"$f":"IF($A442=\"\",\"\",IF(OR(VLOOKUP($A442,Economática!$A$3:$AI$823,11,FALSE)=0,VLOOKUP($A442,Economática!$A$3:$AI$823,11,FALSE)=\"-\"),1/0,VLOOKUP($A442,Economática!$A$3:$AI$823,11,FALSE)))","v":""},{"$f":"IF($A442=\"\",\"\",IF(OR(VLOOKUP($A442,Economática!$A$3:$AI$823,12,FALSE)=0,VLOOKUP($A442,Economática!$A$3:$AI$823,12,FALSE)=\"-\"),1/0,VLOOKUP($A442,Economática!$A$3:$AI$823,12,FALSE)))","v":""},{"$f":"IF($A442=\"\",\"\",IF(OR(VLOOKUP($A442,Economática!$A$3:$AI$823,13,FALSE)=0,VLOOKUP($A442,Economática!$A$3:$AI$823,13,FALSE)=\"-\"),1/0,VLOOKUP($A442,Economática!$A$3:$AI$823,13,FALSE)))","v":""},{"$f":"IF($A442=\"\",\"\",IF(OR(VLOOKUP($A442,Economática!$A$3:$AI$823,14,FALSE)=0,VLOOKUP($A442,Economática!$A$3:$AI$823,14,FALSE)=\"-\"),1/0,VLOOKUP($A442,Economática!$A$3:$AI$823,14,FALSE)))","v":""},{"$f":"IF($A442=\"\",\"\",IF(OR(VLOOKUP($A442,Economática!$A$3:$AI$823,15,FALSE)=0,VLOOKUP($A442,Economática!$A$3:$AI$823,15,FALSE)=\"-\"),1/0,VLOOKUP($A442,Economática!$A$3:$AI$823,15,FALSE)))","v":""},{"$f":"IF($A442=\"\",\"\",IF(OR(VLOOKUP($A442,Economática!$A$3:$AI$823,16,FALSE)=0,VLOOKUP($A442,Economática!$A$3:$AI$823,16,FALSE)=\"-\"),1/0,VLOOKUP($A442,Economática!$A$3:$AI$823,16,FALSE)))","v":""},{"$f":"IF($A442=\"\",\"\",IF(OR(VLOOKUP($A442,Economática!$A$3:$AI$823,17,FALSE)=0,VLOOKUP($A442,Economática!$A$3:$AI$823,17,FALSE)=\"-\"),1/0,VLOOKUP($A442,Economática!$A$3:$AI$823,17,FALSE)))","v":""},{"$f":"IF($A442=\"\",\"\",IF(OR(VLOOKUP($A442,Economática!$A$3:$AI$823,18,FALSE)=0,VLOOKUP($A442,Economática!$A$3:$AI$823,18,FALSE)=\"-\"),1/0,VLOOKUP($A442,Economática!$A$3:$AI$823,18,FALSE)))","v":""},{"$f":"IF($A442=\"\",\"\",IF(OR(VLOOKUP($A442,Economática!$A$3:$AI$823,19,FALSE)=0,VLOOKUP($A442,Economática!$A$3:$AI$823,19,FALSE)=\"-\"),1/0,VLOOKUP($A442,Economática!$A$3:$AI$823,19,FALSE)))","v":""},{"$f":"IF($A442=\"\",\"\",VLOOKUP($A442,Economática!$A$3:$AI$823,20,FALSE)/E442)","v":""},"","","",{"$f":"IF($A442=\"\",\"\",IF(OR(VLOOKUP($A442,Economática!$A$3:$AI$823,21,FALSE)/100=0,VLOOKUP($A442,Economática!$A$3:$AI$823,21,FALSE)/100=\"-\"),1/0,VLOOKUP($A442,Economática!$A$3:$AI$823,21,FALSE)/100))","v":""},{"$f":"IF($A442=\"\",\"\",IF(OR(VLOOKUP($A442,Economática!$A$3:$AI$823,22,FALSE)/100=0,VLOOKUP($A442,Economática!$A$3:$AI$823,22,FALSE)/100=\"-\"),1/0,VLOOKUP($A442,Economática!$A$3:$AI$823,22,FALSE)/100))","v":""},{"$f":"IF($A442=\"\",\"\",IF(OR(VLOOKUP($A442,Economática!$A$3:$AI$823,23,FALSE)=0,VLOOKUP($A442,Economática!$A$3:$AI$823,23,FALSE)=\"-\"),1/0,VLOOKUP($A442,Economática!$A$3:$AI$823,23,FALSE)))","v":""},{"$f":"IF($A442=\"\",\"\",IF(OR(VLOOKUP($A442,Economática!$A$3:$AI$823,24,FALSE)=0,VLOOKUP($A442,Economática!$A$3:$AI$823,24,FALSE)=\"-\"),1/0,VLOOKUP($A442,Economática!$A$3:$AI$823,24,FALSE)))","v":""},{"$f":"IF($A442=\"\",\"\",IF(OR(VLOOKUP($A442,Economática!$A$3:$AI$823,25,FALSE)=0,VLOOKUP($A442,Economática!$A$3:$AI$823,25,FALSE)=\"-\"),1/0,VLOOKUP($A442,Economática!$A$3:$AI$823,25,FALSE)))","v":""},{"$f":"IF($A442=\"\",\"\",IF(ISERROR((F442+VLOOKUP($A442,Economática!$A$3:$AI$823,26,FALSE))/Y442),(F442+VLOOKUP($A442,Economática!$A$3:$AI$823,26,FALSE))/Y442,(F442+VLOOKUP($A442,Economática!$A$3:$AI$823,26,FALSE))/Y442))","v":""},{"$f":"IF($A442=\"\",\"\",IF(OR(-VLOOKUP($A442,Economática!$A$3:$AI$823,27,FALSE)=0,-VLOOKUP($A442,Economática!$A$3:$AI$823,27,FALSE)=\"-\"),1/0,-VLOOKUP($A442,Economática!$A$3:$AI$823,27,FALSE)))","v":""},"",{"$f":"IF($A442=\"\",\"\",IF(OR(VLOOKUP($A442,Economática!$A$3:$AI$823,28,FALSE)=0,VLOOKUP($A442,Economática!$A$3:$AI$823,28,FALSE)=\"-\"),1/0,VLOOKUP($A442,Economática!$A$3:$AI$823,28,FALSE)))","v":""},{"$f":"IF($A442=\"\",\"\",IF(OR(VLOOKUP($A442,Economática!$A$3:$AI$823,29,FALSE)=0,VLOOKUP($A442,Economática!$A$3:$AI$823,29,FALSE)=\"-\"),1/0,VLOOKUP($A442,Economática!$A$3:$AI$823,29,FALSE)))","v":""},{"$f":"IF($A442=\"\",\"\",IF(OR(VLOOKUP($A442,Economática!$A$3:$AI$823,30,FALSE)/E442=0,VLOOKUP($A442,Economática!$A$3:$AI$823,30,FALSE)/E442=\"-\",VLOOKUP($A442,Economática!$A$3:$AI$823,30,FALSE)/E442<33.33%,VLOOKUP($A442,Economática!$A$3:$AI$823,30,FALSE)/E442>100%),1/0,VLOOKUP($A442,Economática!$A$3:$AI$823,30,FALSE)/E442))","v":""},"",{"$f":"IF($A442=\"\",\"\",IF(OR(VLOOKUP($A442,Economática!$A$3:$AI$823,25,FALSE)=0,VLOOKUP($A442,Economática!$A$3:$AI$823,25,FALSE)=\"-\"),1/0,VLOOKUP($A442,Economática!$A$3:$AI$823,25,FALSE)))","v":""},{"$f":"CONCATENATE(Economática!B420,\" \",Economática!C420)","v":" "}]
[{"$f":"IF(Economática!AG421=\"\",\"\",Economática!AG421)","v":""},{"$f":"IF($A443=\"\",\"\",VLOOKUP(VLOOKUP($A443,Economática!$A$3:$AI$823,6,FALSE),Correção!$B$16:$C$36,2,FALSE))","v":""},{"$f":"IF(Economática!B421=\"\",\"\",Economática!B421)","v":""},{"$f":"IF($A443=\"\",\"\",IF(OR(VLOOKUP($A443,Economática!$A$3:$AI$823,8,FALSE)=0,VLOOKUP($A443,Economática!$A$3:$AI$823,8,FALSE)=\"-\"),1/0,VLOOKUP($A443,Economática!$A$3:$AI$823,8,FALSE)))","v":""},{"$f":"IF(A443=\"\",\"\",IF(ISERROR(VLOOKUP(A443,Correção!$B$2:$G$13,9,FALSE)),VLOOKUP($A443,Economática!$A$3:$AI$823,9,FALSE),VLOOKUP(A443,Correção!$B$2:$G$13,9,FALSE)))","v":""},{"$f":"IF($A443=\"\",\"\",Economática!G421)","v":""},{"$f":"IF($A443=\"\",\"\",IF(OR(VLOOKUP($A443,Economática!$A$3:$AI$823,10,FALSE)=0,VLOOKUP($A443,Economática!$A$3:$AI$823,10,FALSE)=\"-\"),1/0,VLOOKUP($A443,Economática!$A$3:$AI$823,10,FALSE)))","v":""},{"$f":"IF($A443=\"\",\"\",IF(OR(VLOOKUP($A443,Economática!$A$3:$AI$823,11,FALSE)=0,VLOOKUP($A443,Economática!$A$3:$AI$823,11,FALSE)=\"-\"),1/0,VLOOKUP($A443,Economática!$A$3:$AI$823,11,FALSE)))","v":""},{"$f":"IF($A443=\"\",\"\",IF(OR(VLOOKUP($A443,Economática!$A$3:$AI$823,12,FALSE)=0,VLOOKUP($A443,Economática!$A$3:$AI$823,12,FALSE)=\"-\"),1/0,VLOOKUP($A443,Economática!$A$3:$AI$823,12,FALSE)))","v":""},{"$f":"IF($A443=\"\",\"\",IF(OR(VLOOKUP($A443,Economática!$A$3:$AI$823,13,FALSE)=0,VLOOKUP($A443,Economática!$A$3:$AI$823,13,FALSE)=\"-\"),1/0,VLOOKUP($A443,Economática!$A$3:$AI$823,13,FALSE)))","v":""},{"$f":"IF($A443=\"\",\"\",IF(OR(VLOOKUP($A443,Economática!$A$3:$AI$823,14,FALSE)=0,VLOOKUP($A443,Economática!$A$3:$AI$823,14,FALSE)=\"-\"),1/0,VLOOKUP($A443,Economática!$A$3:$AI$823,14,FALSE)))","v":""},{"$f":"IF($A443=\"\",\"\",IF(OR(VLOOKUP($A443,Economática!$A$3:$AI$823,15,FALSE)=0,VLOOKUP($A443,Economática!$A$3:$AI$823,15,FALSE)=\"-\"),1/0,VLOOKUP($A443,Economática!$A$3:$AI$823,15,FALSE)))","v":""},{"$f":"IF($A443=\"\",\"\",IF(OR(VLOOKUP($A443,Economática!$A$3:$AI$823,16,FALSE)=0,VLOOKUP($A443,Economática!$A$3:$AI$823,16,FALSE)=\"-\"),1/0,VLOOKUP($A443,Economática!$A$3:$AI$823,16,FALSE)))","v":""},{"$f":"IF($A443=\"\",\"\",IF(OR(VLOOKUP($A443,Economática!$A$3:$AI$823,17,FALSE)=0,VLOOKUP($A443,Economática!$A$3:$AI$823,17,FALSE)=\"-\"),1/0,VLOOKUP($A443,Economática!$A$3:$AI$823,17,FALSE)))","v":""},{"$f":"IF($A443=\"\",\"\",IF(OR(VLOOKUP($A443,Economática!$A$3:$AI$823,18,FALSE)=0,VLOOKUP($A443,Economática!$A$3:$AI$823,18,FALSE)=\"-\"),1/0,VLOOKUP($A443,Economática!$A$3:$AI$823,18,FALSE)))","v":""},{"$f":"IF($A443=\"\",\"\",IF(OR(VLOOKUP($A443,Economática!$A$3:$AI$823,19,FALSE)=0,VLOOKUP($A443,Economática!$A$3:$AI$823,19,FALSE)=\"-\"),1/0,VLOOKUP($A443,Economática!$A$3:$AI$823,19,FALSE)))","v":""},{"$f":"IF($A443=\"\",\"\",VLOOKUP($A443,Economática!$A$3:$AI$823,20,FALSE)/E443)","v":""},"","","",{"$f":"IF($A443=\"\",\"\",IF(OR(VLOOKUP($A443,Economática!$A$3:$AI$823,21,FALSE)/100=0,VLOOKUP($A443,Economática!$A$3:$AI$823,21,FALSE)/100=\"-\"),1/0,VLOOKUP($A443,Economática!$A$3:$AI$823,21,FALSE)/100))","v":""},{"$f":"IF($A443=\"\",\"\",IF(OR(VLOOKUP($A443,Economática!$A$3:$AI$823,22,FALSE)/100=0,VLOOKUP($A443,Economática!$A$3:$AI$823,22,FALSE)/100=\"-\"),1/0,VLOOKUP($A443,Economática!$A$3:$AI$823,22,FALSE)/100))","v":""},{"$f":"IF($A443=\"\",\"\",IF(OR(VLOOKUP($A443,Economática!$A$3:$AI$823,23,FALSE)=0,VLOOKUP($A443,Economática!$A$3:$AI$823,23,FALSE)=\"-\"),1/0,VLOOKUP($A443,Economática!$A$3:$AI$823,23,FALSE)))","v":""},{"$f":"IF($A443=\"\",\"\",IF(OR(VLOOKUP($A443,Economática!$A$3:$AI$823,24,FALSE)=0,VLOOKUP($A443,Economática!$A$3:$AI$823,24,FALSE)=\"-\"),1/0,VLOOKUP($A443,Economática!$A$3:$AI$823,24,FALSE)))","v":""},{"$f":"IF($A443=\"\",\"\",IF(OR(VLOOKUP($A443,Economática!$A$3:$AI$823,25,FALSE)=0,VLOOKUP($A443,Economática!$A$3:$AI$823,25,FALSE)=\"-\"),1/0,VLOOKUP($A443,Economática!$A$3:$AI$823,25,FALSE)))","v":""},{"$f":"IF($A443=\"\",\"\",IF(ISERROR((F443+VLOOKUP($A443,Economática!$A$3:$AI$823,26,FALSE))/Y443),(F443+VLOOKUP($A443,Economática!$A$3:$AI$823,26,FALSE))/Y443,(F443+VLOOKUP($A443,Economática!$A$3:$AI$823,26,FALSE))/Y443))","v":""},{"$f":"IF($A443=\"\",\"\",IF(OR(-VLOOKUP($A443,Economática!$A$3:$AI$823,27,FALSE)=0,-VLOOKUP($A443,Economática!$A$3:$AI$823,27,FALSE)=\"-\"),1/0,-VLOOKUP($A443,Economática!$A$3:$AI$823,27,FALSE)))","v":""},"",{"$f":"IF($A443=\"\",\"\",IF(OR(VLOOKUP($A443,Economática!$A$3:$AI$823,28,FALSE)=0,VLOOKUP($A443,Economática!$A$3:$AI$823,28,FALSE)=\"-\"),1/0,VLOOKUP($A443,Economática!$A$3:$AI$823,28,FALSE)))","v":""},{"$f":"IF($A443=\"\",\"\",IF(OR(VLOOKUP($A443,Economática!$A$3:$AI$823,29,FALSE)=0,VLOOKUP($A443,Economática!$A$3:$AI$823,29,FALSE)=\"-\"),1/0,VLOOKUP($A443,Economática!$A$3:$AI$823,29,FALSE)))","v":""},{"$f":"IF($A443=\"\",\"\",IF(OR(VLOOKUP($A443,Economática!$A$3:$AI$823,30,FALSE)/E443=0,VLOOKUP($A443,Economática!$A$3:$AI$823,30,FALSE)/E443=\"-\",VLOOKUP($A443,Economática!$A$3:$AI$823,30,FALSE)/E443<33.33%,VLOOKUP($A443,Economática!$A$3:$AI$823,30,FALSE)/E443>100%),1/0,VLOOKUP($A443,Economática!$A$3:$AI$823,30,FALSE)/E443))","v":""},"",{"$f":"IF($A443=\"\",\"\",IF(OR(VLOOKUP($A443,Economática!$A$3:$AI$823,25,FALSE)=0,VLOOKUP($A443,Economática!$A$3:$AI$823,25,FALSE)=\"-\"),1/0,VLOOKUP($A443,Economática!$A$3:$AI$823,25,FALSE)))","v":""},{"$f":"CONCATENATE(Economática!B421,\" \",Economática!C421)","v":" "}]
[{"$f":"IF(Economática!AG422=\"\",\"\",Economática!AG422)","v":""},{"$f":"IF($A444=\"\",\"\",VLOOKUP(VLOOKUP($A444,Economática!$A$3:$AI$823,6,FALSE),Correção!$B$16:$C$36,2,FALSE))","v":""},{"$f":"IF(Economática!B422=\"\",\"\",Economática!B422)","v":""},{"$f":"IF($A444=\"\",\"\",IF(OR(VLOOKUP($A444,Economática!$A$3:$AI$823,8,FALSE)=0,VLOOKUP($A444,Economática!$A$3:$AI$823,8,FALSE)=\"-\"),1/0,VLOOKUP($A444,Economática!$A$3:$AI$823,8,FALSE)))","v":""},{"$f":"IF(A444=\"\",\"\",IF(ISERROR(VLOOKUP(A444,Correção!$B$2:$G$13,9,FALSE)),VLOOKUP($A444,Economática!$A$3:$AI$823,9,FALSE),VLOOKUP(A444,Correção!$B$2:$G$13,9,FALSE)))","v":""},{"$f":"IF($A444=\"\",\"\",Economática!G422)","v":""},{"$f":"IF($A444=\"\",\"\",IF(OR(VLOOKUP($A444,Economática!$A$3:$AI$823,10,FALSE)=0,VLOOKUP($A444,Economática!$A$3:$AI$823,10,FALSE)=\"-\"),1/0,VLOOKUP($A444,Economática!$A$3:$AI$823,10,FALSE)))","v":""},{"$f":"IF($A444=\"\",\"\",IF(OR(VLOOKUP($A444,Economática!$A$3:$AI$823,11,FALSE)=0,VLOOKUP($A444,Economática!$A$3:$AI$823,11,FALSE)=\"-\"),1/0,VLOOKUP($A444,Economática!$A$3:$AI$823,11,FALSE)))","v":""},{"$f":"IF($A444=\"\",\"\",IF(OR(VLOOKUP($A444,Economática!$A$3:$AI$823,12,FALSE)=0,VLOOKUP($A444,Economática!$A$3:$AI$823,12,FALSE)=\"-\"),1/0,VLOOKUP($A444,Economática!$A$3:$AI$823,12,FALSE)))","v":""},{"$f":"IF($A444=\"\",\"\",IF(OR(VLOOKUP($A444,Economática!$A$3:$AI$823,13,FALSE)=0,VLOOKUP($A444,Economática!$A$3:$AI$823,13,FALSE)=\"-\"),1/0,VLOOKUP($A444,Economática!$A$3:$AI$823,13,FALSE)))","v":""},{"$f":"IF($A444=\"\",\"\",IF(OR(VLOOKUP($A444,Economática!$A$3:$AI$823,14,FALSE)=0,VLOOKUP($A444,Economática!$A$3:$AI$823,14,FALSE)=\"-\"),1/0,VLOOKUP($A444,Economática!$A$3:$AI$823,14,FALSE)))","v":""},{"$f":"IF($A444=\"\",\"\",IF(OR(VLOOKUP($A444,Economática!$A$3:$AI$823,15,FALSE)=0,VLOOKUP($A444,Economática!$A$3:$AI$823,15,FALSE)=\"-\"),1/0,VLOOKUP($A444,Economática!$A$3:$AI$823,15,FALSE)))","v":""},{"$f":"IF($A444=\"\",\"\",IF(OR(VLOOKUP($A444,Economática!$A$3:$AI$823,16,FALSE)=0,VLOOKUP($A444,Economática!$A$3:$AI$823,16,FALSE)=\"-\"),1/0,VLOOKUP($A444,Economática!$A$3:$AI$823,16,FALSE)))","v":""},{"$f":"IF($A444=\"\",\"\",IF(OR(VLOOKUP($A444,Economática!$A$3:$AI$823,17,FALSE)=0,VLOOKUP($A444,Economática!$A$3:$AI$823,17,FALSE)=\"-\"),1/0,VLOOKUP($A444,Economática!$A$3:$AI$823,17,FALSE)))","v":""},{"$f":"IF($A444=\"\",\"\",IF(OR(VLOOKUP($A444,Economática!$A$3:$AI$823,18,FALSE)=0,VLOOKUP($A444,Economática!$A$3:$AI$823,18,FALSE)=\"-\"),1/0,VLOOKUP($A444,Economática!$A$3:$AI$823,18,FALSE)))","v":""},{"$f":"IF($A444=\"\",\"\",IF(OR(VLOOKUP($A444,Economática!$A$3:$AI$823,19,FALSE)=0,VLOOKUP($A444,Economática!$A$3:$AI$823,19,FALSE)=\"-\"),1/0,VLOOKUP($A444,Economática!$A$3:$AI$823,19,FALSE)))","v":""},{"$f":"IF($A444=\"\",\"\",VLOOKUP($A444,Economática!$A$3:$AI$823,20,FALSE)/E444)","v":""},"","","",{"$f":"IF($A444=\"\",\"\",IF(OR(VLOOKUP($A444,Economática!$A$3:$AI$823,21,FALSE)/100=0,VLOOKUP($A444,Economática!$A$3:$AI$823,21,FALSE)/100=\"-\"),1/0,VLOOKUP($A444,Economática!$A$3:$AI$823,21,FALSE)/100))","v":""},{"$f":"IF($A444=\"\",\"\",IF(OR(VLOOKUP($A444,Economática!$A$3:$AI$823,22,FALSE)/100=0,VLOOKUP($A444,Economática!$A$3:$AI$823,22,FALSE)/100=\"-\"),1/0,VLOOKUP($A444,Economática!$A$3:$AI$823,22,FALSE)/100))","v":""},{"$f":"IF($A444=\"\",\"\",IF(OR(VLOOKUP($A444,Economática!$A$3:$AI$823,23,FALSE)=0,VLOOKUP($A444,Economática!$A$3:$AI$823,23,FALSE)=\"-\"),1/0,VLOOKUP($A444,Economática!$A$3:$AI$823,23,FALSE)))","v":""},{"$f":"IF($A444=\"\",\"\",IF(OR(VLOOKUP($A444,Economática!$A$3:$AI$823,24,FALSE)=0,VLOOKUP($A444,Economática!$A$3:$AI$823,24,FALSE)=\"-\"),1/0,VLOOKUP($A444,Economática!$A$3:$AI$823,24,FALSE)))","v":""},{"$f":"IF($A444=\"\",\"\",IF(OR(VLOOKUP($A444,Economática!$A$3:$AI$823,25,FALSE)=0,VLOOKUP($A444,Economática!$A$3:$AI$823,25,FALSE)=\"-\"),1/0,VLOOKUP($A444,Economática!$A$3:$AI$823,25,FALSE)))","v":""},{"$f":"IF($A444=\"\",\"\",IF(ISERROR((F444+VLOOKUP($A444,Economática!$A$3:$AI$823,26,FALSE))/Y444),(F444+VLOOKUP($A444,Economática!$A$3:$AI$823,26,FALSE))/Y444,(F444+VLOOKUP($A444,Economática!$A$3:$AI$823,26,FALSE))/Y444))","v":""},{"$f":"IF($A444=\"\",\"\",IF(OR(-VLOOKUP($A444,Economática!$A$3:$AI$823,27,FALSE)=0,-VLOOKUP($A444,Economática!$A$3:$AI$823,27,FALSE)=\"-\"),1/0,-VLOOKUP($A444,Economática!$A$3:$AI$823,27,FALSE)))","v":""},"",{"$f":"IF($A444=\"\",\"\",IF(OR(VLOOKUP($A444,Economática!$A$3:$AI$823,28,FALSE)=0,VLOOKUP($A444,Economática!$A$3:$AI$823,28,FALSE)=\"-\"),1/0,VLOOKUP($A444,Economática!$A$3:$AI$823,28,FALSE)))","v":""},{"$f":"IF($A444=\"\",\"\",IF(OR(VLOOKUP($A444,Economática!$A$3:$AI$823,29,FALSE)=0,VLOOKUP($A444,Economática!$A$3:$AI$823,29,FALSE)=\"-\"),1/0,VLOOKUP($A444,Economática!$A$3:$AI$823,29,FALSE)))","v":""},{"$f":"IF($A444=\"\",\"\",IF(OR(VLOOKUP($A444,Economática!$A$3:$AI$823,30,FALSE)/E444=0,VLOOKUP($A444,Economática!$A$3:$AI$823,30,FALSE)/E444=\"-\",VLOOKUP($A444,Economática!$A$3:$AI$823,30,FALSE)/E444<33.33%,VLOOKUP($A444,Economática!$A$3:$AI$823,30,FALSE)/E444>100%),1/0,VLOOKUP($A444,Economática!$A$3:$AI$823,30,FALSE)/E444))","v":""},"",{"$f":"IF($A444=\"\",\"\",IF(OR(VLOOKUP($A444,Economática!$A$3:$AI$823,25,FALSE)=0,VLOOKUP($A444,Economática!$A$3:$AI$823,25,FALSE)=\"-\"),1/0,VLOOKUP($A444,Economática!$A$3:$AI$823,25,FALSE)))","v":""},{"$f":"CONCATENATE(Economática!B422,\" \",Economática!C422)","v":" "}]
[{"$f":"IF(Economática!AG423=\"\",\"\",Economática!AG423)","v":""},{"$f":"IF($A445=\"\",\"\",VLOOKUP(VLOOKUP($A445,Economática!$A$3:$AI$823,6,FALSE),Correção!$B$16:$C$36,2,FALSE))","v":""},{"$f":"IF(Economática!B423=\"\",\"\",Economática!B423)","v":""},{"$f":"IF($A445=\"\",\"\",IF(OR(VLOOKUP($A445,Economática!$A$3:$AI$823,8,FALSE)=0,VLOOKUP($A445,Economática!$A$3:$AI$823,8,FALSE)=\"-\"),1/0,VLOOKUP($A445,Economática!$A$3:$AI$823,8,FALSE)))","v":""},{"$f":"IF(A445=\"\",\"\",IF(ISERROR(VLOOKUP(A445,Correção!$B$2:$G$13,9,FALSE)),VLOOKUP($A445,Economática!$A$3:$AI$823,9,FALSE),VLOOKUP(A445,Correção!$B$2:$G$13,9,FALSE)))","v":""},{"$f":"IF($A445=\"\",\"\",Economática!G423)","v":""},{"$f":"IF($A445=\"\",\"\",IF(OR(VLOOKUP($A445,Economática!$A$3:$AI$823,10,FALSE)=0,VLOOKUP($A445,Economática!$A$3:$AI$823,10,FALSE)=\"-\"),1/0,VLOOKUP($A445,Economática!$A$3:$AI$823,10,FALSE)))","v":""},{"$f":"IF($A445=\"\",\"\",IF(OR(VLOOKUP($A445,Economática!$A$3:$AI$823,11,FALSE)=0,VLOOKUP($A445,Economática!$A$3:$AI$823,11,FALSE)=\"-\"),1/0,VLOOKUP($A445,Economática!$A$3:$AI$823,11,FALSE)))","v":""},{"$f":"IF($A445=\"\",\"\",IF(OR(VLOOKUP($A445,Economática!$A$3:$AI$823,12,FALSE)=0,VLOOKUP($A445,Economática!$A$3:$AI$823,12,FALSE)=\"-\"),1/0,VLOOKUP($A445,Economática!$A$3:$AI$823,12,FALSE)))","v":""},{"$f":"IF($A445=\"\",\"\",IF(OR(VLOOKUP($A445,Economática!$A$3:$AI$823,13,FALSE)=0,VLOOKUP($A445,Economática!$A$3:$AI$823,13,FALSE)=\"-\"),1/0,VLOOKUP($A445,Economática!$A$3:$AI$823,13,FALSE)))","v":""},{"$f":"IF($A445=\"\",\"\",IF(OR(VLOOKUP($A445,Economática!$A$3:$AI$823,14,FALSE)=0,VLOOKUP($A445,Economática!$A$3:$AI$823,14,FALSE)=\"-\"),1/0,VLOOKUP($A445,Economática!$A$3:$AI$823,14,FALSE)))","v":""},{"$f":"IF($A445=\"\",\"\",IF(OR(VLOOKUP($A445,Economática!$A$3:$AI$823,15,FALSE)=0,VLOOKUP($A445,Economática!$A$3:$AI$823,15,FALSE)=\"-\"),1/0,VLOOKUP($A445,Economática!$A$3:$AI$823,15,FALSE)))","v":""},{"$f":"IF($A445=\"\",\"\",IF(OR(VLOOKUP($A445,Economática!$A$3:$AI$823,16,FALSE)=0,VLOOKUP($A445,Economática!$A$3:$AI$823,16,FALSE)=\"-\"),1/0,VLOOKUP($A445,Economática!$A$3:$AI$823,16,FALSE)))","v":""},{"$f":"IF($A445=\"\",\"\",IF(OR(VLOOKUP($A445,Economática!$A$3:$AI$823,17,FALSE)=0,VLOOKUP($A445,Economática!$A$3:$AI$823,17,FALSE)=\"-\"),1/0,VLOOKUP($A445,Economática!$A$3:$AI$823,17,FALSE)))","v":""},{"$f":"IF($A445=\"\",\"\",IF(OR(VLOOKUP($A445,Economática!$A$3:$AI$823,18,FALSE)=0,VLOOKUP($A445,Economática!$A$3:$AI$823,18,FALSE)=\"-\"),1/0,VLOOKUP($A445,Economática!$A$3:$AI$823,18,FALSE)))","v":""},{"$f":"IF($A445=\"\",\"\",IF(OR(VLOOKUP($A445,Economática!$A$3:$AI$823,19,FALSE)=0,VLOOKUP($A445,Economática!$A$3:$AI$823,19,FALSE)=\"-\"),1/0,VLOOKUP($A445,Economática!$A$3:$AI$823,19,FALSE)))","v":""},{"$f":"IF($A445=\"\",\"\",VLOOKUP($A445,Economática!$A$3:$AI$823,20,FALSE)/E445)","v":""},"","","",{"$f":"IF($A445=\"\",\"\",IF(OR(VLOOKUP($A445,Economática!$A$3:$AI$823,21,FALSE)/100=0,VLOOKUP($A445,Economática!$A$3:$AI$823,21,FALSE)/100=\"-\"),1/0,VLOOKUP($A445,Economática!$A$3:$AI$823,21,FALSE)/100))","v":""},{"$f":"IF($A445=\"\",\"\",IF(OR(VLOOKUP($A445,Economática!$A$3:$AI$823,22,FALSE)/100=0,VLOOKUP($A445,Economática!$A$3:$AI$823,22,FALSE)/100=\"-\"),1/0,VLOOKUP($A445,Economática!$A$3:$AI$823,22,FALSE)/100))","v":""},{"$f":"IF($A445=\"\",\"\",IF(OR(VLOOKUP($A445,Economática!$A$3:$AI$823,23,FALSE)=0,VLOOKUP($A445,Economática!$A$3:$AI$823,23,FALSE)=\"-\"),1/0,VLOOKUP($A445,Economática!$A$3:$AI$823,23,FALSE)))","v":""},{"$f":"IF($A445=\"\",\"\",IF(OR(VLOOKUP($A445,Economática!$A$3:$AI$823,24,FALSE)=0,VLOOKUP($A445,Economática!$A$3:$AI$823,24,FALSE)=\"-\"),1/0,VLOOKUP($A445,Economática!$A$3:$AI$823,24,FALSE)))","v":""},{"$f":"IF($A445=\"\",\"\",IF(OR(VLOOKUP($A445,Economática!$A$3:$AI$823,25,FALSE)=0,VLOOKUP($A445,Economática!$A$3:$AI$823,25,FALSE)=\"-\"),1/0,VLOOKUP($A445,Economática!$A$3:$AI$823,25,FALSE)))","v":""},{"$f":"IF($A445=\"\",\"\",IF(ISERROR((F445+VLOOKUP($A445,Economática!$A$3:$AI$823,26,FALSE))/Y445),(F445+VLOOKUP($A445,Economática!$A$3:$AI$823,26,FALSE))/Y445,(F445+VLOOKUP($A445,Economática!$A$3:$AI$823,26,FALSE))/Y445))","v":""},{"$f":"IF($A445=\"\",\"\",IF(OR(-VLOOKUP($A445,Economática!$A$3:$AI$823,27,FALSE)=0,-VLOOKUP($A445,Economática!$A$3:$AI$823,27,FALSE)=\"-\"),1/0,-VLOOKUP($A445,Economática!$A$3:$AI$823,27,FALSE)))","v":""},"",{"$f":"IF($A445=\"\",\"\",IF(OR(VLOOKUP($A445,Economática!$A$3:$AI$823,28,FALSE)=0,VLOOKUP($A445,Economática!$A$3:$AI$823,28,FALSE)=\"-\"),1/0,VLOOKUP($A445,Economática!$A$3:$AI$823,28,FALSE)))","v":""},{"$f":"IF($A445=\"\",\"\",IF(OR(VLOOKUP($A445,Economática!$A$3:$AI$823,29,FALSE)=0,VLOOKUP($A445,Economática!$A$3:$AI$823,29,FALSE)=\"-\"),1/0,VLOOKUP($A445,Economática!$A$3:$AI$823,29,FALSE)))","v":""},{"$f":"IF($A445=\"\",\"\",IF(OR(VLOOKUP($A445,Economática!$A$3:$AI$823,30,FALSE)/E445=0,VLOOKUP($A445,Economática!$A$3:$AI$823,30,FALSE)/E445=\"-\",VLOOKUP($A445,Economática!$A$3:$AI$823,30,FALSE)/E445<33.33%,VLOOKUP($A445,Economática!$A$3:$AI$823,30,FALSE)/E445>100%),1/0,VLOOKUP($A445,Economática!$A$3:$AI$823,30,FALSE)/E445))","v":""},"",{"$f":"IF($A445=\"\",\"\",IF(OR(VLOOKUP($A445,Economática!$A$3:$AI$823,25,FALSE)=0,VLOOKUP($A445,Economática!$A$3:$AI$823,25,FALSE)=\"-\"),1/0,VLOOKUP($A445,Economática!$A$3:$AI$823,25,FALSE)))","v":""},{"$f":"CONCATENATE(Economática!B423,\" \",Economática!C423)","v":" "}]
[{"$f":"IF(Economática!AG424=\"\",\"\",Economática!AG424)","v":""},{"$f":"IF($A446=\"\",\"\",VLOOKUP(VLOOKUP($A446,Economática!$A$3:$AI$823,6,FALSE),Correção!$B$16:$C$36,2,FALSE))","v":""},{"$f":"IF(Economática!B424=\"\",\"\",Economática!B424)","v":""},{"$f":"IF($A446=\"\",\"\",IF(OR(VLOOKUP($A446,Economática!$A$3:$AI$823,8,FALSE)=0,VLOOKUP($A446,Economática!$A$3:$AI$823,8,FALSE)=\"-\"),1/0,VLOOKUP($A446,Economática!$A$3:$AI$823,8,FALSE)))","v":""},{"$f":"IF(A446=\"\",\"\",IF(ISERROR(VLOOKUP(A446,Correção!$B$2:$G$13,9,FALSE)),VLOOKUP($A446,Economática!$A$3:$AI$823,9,FALSE),VLOOKUP(A446,Correção!$B$2:$G$13,9,FALSE)))","v":""},{"$f":"IF($A446=\"\",\"\",Economática!G424)","v":""},{"$f":"IF($A446=\"\",\"\",IF(OR(VLOOKUP($A446,Economática!$A$3:$AI$823,10,FALSE)=0,VLOOKUP($A446,Economática!$A$3:$AI$823,10,FALSE)=\"-\"),1/0,VLOOKUP($A446,Economática!$A$3:$AI$823,10,FALSE)))","v":""},{"$f":"IF($A446=\"\",\"\",IF(OR(VLOOKUP($A446,Economática!$A$3:$AI$823,11,FALSE)=0,VLOOKUP($A446,Economática!$A$3:$AI$823,11,FALSE)=\"-\"),1/0,VLOOKUP($A446,Economática!$A$3:$AI$823,11,FALSE)))","v":""},{"$f":"IF($A446=\"\",\"\",IF(OR(VLOOKUP($A446,Economática!$A$3:$AI$823,12,FALSE)=0,VLOOKUP($A446,Economática!$A$3:$AI$823,12,FALSE)=\"-\"),1/0,VLOOKUP($A446,Economática!$A$3:$AI$823,12,FALSE)))","v":""},{"$f":"IF($A446=\"\",\"\",IF(OR(VLOOKUP($A446,Economática!$A$3:$AI$823,13,FALSE)=0,VLOOKUP($A446,Economática!$A$3:$AI$823,13,FALSE)=\"-\"),1/0,VLOOKUP($A446,Economática!$A$3:$AI$823,13,FALSE)))","v":""},{"$f":"IF($A446=\"\",\"\",IF(OR(VLOOKUP($A446,Economática!$A$3:$AI$823,14,FALSE)=0,VLOOKUP($A446,Economática!$A$3:$AI$823,14,FALSE)=\"-\"),1/0,VLOOKUP($A446,Economática!$A$3:$AI$823,14,FALSE)))","v":""},{"$f":"IF($A446=\"\",\"\",IF(OR(VLOOKUP($A446,Economática!$A$3:$AI$823,15,FALSE)=0,VLOOKUP($A446,Economática!$A$3:$AI$823,15,FALSE)=\"-\"),1/0,VLOOKUP($A446,Economática!$A$3:$AI$823,15,FALSE)))","v":""},{"$f":"IF($A446=\"\",\"\",IF(OR(VLOOKUP($A446,Economática!$A$3:$AI$823,16,FALSE)=0,VLOOKUP($A446,Economática!$A$3:$AI$823,16,FALSE)=\"-\"),1/0,VLOOKUP($A446,Economática!$A$3:$AI$823,16,FALSE)))","v":""},{"$f":"IF($A446=\"\",\"\",IF(OR(VLOOKUP($A446,Economática!$A$3:$AI$823,17,FALSE)=0,VLOOKUP($A446,Economática!$A$3:$AI$823,17,FALSE)=\"-\"),1/0,VLOOKUP($A446,Economática!$A$3:$AI$823,17,FALSE)))","v":""},{"$f":"IF($A446=\"\",\"\",IF(OR(VLOOKUP($A446,Economática!$A$3:$AI$823,18,FALSE)=0,VLOOKUP($A446,Economática!$A$3:$AI$823,18,FALSE)=\"-\"),1/0,VLOOKUP($A446,Economática!$A$3:$AI$823,18,FALSE)))","v":""},{"$f":"IF($A446=\"\",\"\",IF(OR(VLOOKUP($A446,Economática!$A$3:$AI$823,19,FALSE)=0,VLOOKUP($A446,Economática!$A$3:$AI$823,19,FALSE)=\"-\"),1/0,VLOOKUP($A446,Economática!$A$3:$AI$823,19,FALSE)))","v":""},{"$f":"IF($A446=\"\",\"\",VLOOKUP($A446,Economática!$A$3:$AI$823,20,FALSE)/E446)","v":""},"","","",{"$f":"IF($A446=\"\",\"\",IF(OR(VLOOKUP($A446,Economática!$A$3:$AI$823,21,FALSE)/100=0,VLOOKUP($A446,Economática!$A$3:$AI$823,21,FALSE)/100=\"-\"),1/0,VLOOKUP($A446,Economática!$A$3:$AI$823,21,FALSE)/100))","v":""},{"$f":"IF($A446=\"\",\"\",IF(OR(VLOOKUP($A446,Economática!$A$3:$AI$823,22,FALSE)/100=0,VLOOKUP($A446,Economática!$A$3:$AI$823,22,FALSE)/100=\"-\"),1/0,VLOOKUP($A446,Economática!$A$3:$AI$823,22,FALSE)/100))","v":""},{"$f":"IF($A446=\"\",\"\",IF(OR(VLOOKUP($A446,Economática!$A$3:$AI$823,23,FALSE)=0,VLOOKUP($A446,Economática!$A$3:$AI$823,23,FALSE)=\"-\"),1/0,VLOOKUP($A446,Economática!$A$3:$AI$823,23,FALSE)))","v":""},{"$f":"IF($A446=\"\",\"\",IF(OR(VLOOKUP($A446,Economática!$A$3:$AI$823,24,FALSE)=0,VLOOKUP($A446,Economática!$A$3:$AI$823,24,FALSE)=\"-\"),1/0,VLOOKUP($A446,Economática!$A$3:$AI$823,24,FALSE)))","v":""},{"$f":"IF($A446=\"\",\"\",IF(OR(VLOOKUP($A446,Economática!$A$3:$AI$823,25,FALSE)=0,VLOOKUP($A446,Economática!$A$3:$AI$823,25,FALSE)=\"-\"),1/0,VLOOKUP($A446,Economática!$A$3:$AI$823,25,FALSE)))","v":""},{"$f":"IF($A446=\"\",\"\",IF(ISERROR((F446+VLOOKUP($A446,Economática!$A$3:$AI$823,26,FALSE))/Y446),(F446+VLOOKUP($A446,Economática!$A$3:$AI$823,26,FALSE))/Y446,(F446+VLOOKUP($A446,Economática!$A$3:$AI$823,26,FALSE))/Y446))","v":""},{"$f":"IF($A446=\"\",\"\",IF(OR(-VLOOKUP($A446,Economática!$A$3:$AI$823,27,FALSE)=0,-VLOOKUP($A446,Economática!$A$3:$AI$823,27,FALSE)=\"-\"),1/0,-VLOOKUP($A446,Economática!$A$3:$AI$823,27,FALSE)))","v":""},"",{"$f":"IF($A446=\"\",\"\",IF(OR(VLOOKUP($A446,Economática!$A$3:$AI$823,28,FALSE)=0,VLOOKUP($A446,Economática!$A$3:$AI$823,28,FALSE)=\"-\"),1/0,VLOOKUP($A446,Economática!$A$3:$AI$823,28,FALSE)))","v":""},{"$f":"IF($A446=\"\",\"\",IF(OR(VLOOKUP($A446,Economática!$A$3:$AI$823,29,FALSE)=0,VLOOKUP($A446,Economática!$A$3:$AI$823,29,FALSE)=\"-\"),1/0,VLOOKUP($A446,Economática!$A$3:$AI$823,29,FALSE)))","v":""},{"$f":"IF($A446=\"\",\"\",IF(OR(VLOOKUP($A446,Economática!$A$3:$AI$823,30,FALSE)/E446=0,VLOOKUP($A446,Economática!$A$3:$AI$823,30,FALSE)/E446=\"-\",VLOOKUP($A446,Economática!$A$3:$AI$823,30,FALSE)/E446<33.33%,VLOOKUP($A446,Economática!$A$3:$AI$823,30,FALSE)/E446>100%),1/0,VLOOKUP($A446,Economática!$A$3:$AI$823,30,FALSE)/E446))","v":""},"",{"$f":"IF($A446=\"\",\"\",IF(OR(VLOOKUP($A446,Economática!$A$3:$AI$823,25,FALSE)=0,VLOOKUP($A446,Economática!$A$3:$AI$823,25,FALSE)=\"-\"),1/0,VLOOKUP($A446,Economática!$A$3:$AI$823,25,FALSE)))","v":""},{"$f":"CONCATENATE(Economática!B424,\" \",Economática!C424)","v":" "}]
[{"$f":"IF(Economática!AG425=\"\",\"\",Economática!AG425)","v":""},{"$f":"IF($A447=\"\",\"\",VLOOKUP(VLOOKUP($A447,Economática!$A$3:$AI$823,6,FALSE),Correção!$B$16:$C$36,2,FALSE))","v":""},{"$f":"IF(Economática!B425=\"\",\"\",Economática!B425)","v":""},{"$f":"IF($A447=\"\",\"\",IF(OR(VLOOKUP($A447,Economática!$A$3:$AI$823,8,FALSE)=0,VLOOKUP($A447,Economática!$A$3:$AI$823,8,FALSE)=\"-\"),1/0,VLOOKUP($A447,Economática!$A$3:$AI$823,8,FALSE)))","v":""},{"$f":"IF(A447=\"\",\"\",IF(ISERROR(VLOOKUP(A447,Correção!$B$2:$G$13,9,FALSE)),VLOOKUP($A447,Economática!$A$3:$AI$823,9,FALSE),VLOOKUP(A447,Correção!$B$2:$G$13,9,FALSE)))","v":""},{"$f":"IF($A447=\"\",\"\",Economática!G425)","v":""},{"$f":"IF($A447=\"\",\"\",IF(OR(VLOOKUP($A447,Economática!$A$3:$AI$823,10,FALSE)=0,VLOOKUP($A447,Economática!$A$3:$AI$823,10,FALSE)=\"-\"),1/0,VLOOKUP($A447,Economática!$A$3:$AI$823,10,FALSE)))","v":""},{"$f":"IF($A447=\"\",\"\",IF(OR(VLOOKUP($A447,Economática!$A$3:$AI$823,11,FALSE)=0,VLOOKUP($A447,Economática!$A$3:$AI$823,11,FALSE)=\"-\"),1/0,VLOOKUP($A447,Economática!$A$3:$AI$823,11,FALSE)))","v":""},{"$f":"IF($A447=\"\",\"\",IF(OR(VLOOKUP($A447,Economática!$A$3:$AI$823,12,FALSE)=0,VLOOKUP($A447,Economática!$A$3:$AI$823,12,FALSE)=\"-\"),1/0,VLOOKUP($A447,Economática!$A$3:$AI$823,12,FALSE)))","v":""},{"$f":"IF($A447=\"\",\"\",IF(OR(VLOOKUP($A447,Economática!$A$3:$AI$823,13,FALSE)=0,VLOOKUP($A447,Economática!$A$3:$AI$823,13,FALSE)=\"-\"),1/0,VLOOKUP($A447,Economática!$A$3:$AI$823,13,FALSE)))","v":""},{"$f":"IF($A447=\"\",\"\",IF(OR(VLOOKUP($A447,Economática!$A$3:$AI$823,14,FALSE)=0,VLOOKUP($A447,Economática!$A$3:$AI$823,14,FALSE)=\"-\"),1/0,VLOOKUP($A447,Economática!$A$3:$AI$823,14,FALSE)))","v":""},{"$f":"IF($A447=\"\",\"\",IF(OR(VLOOKUP($A447,Economática!$A$3:$AI$823,15,FALSE)=0,VLOOKUP($A447,Economática!$A$3:$AI$823,15,FALSE)=\"-\"),1/0,VLOOKUP($A447,Economática!$A$3:$AI$823,15,FALSE)))","v":""},{"$f":"IF($A447=\"\",\"\",IF(OR(VLOOKUP($A447,Economática!$A$3:$AI$823,16,FALSE)=0,VLOOKUP($A447,Economática!$A$3:$AI$823,16,FALSE)=\"-\"),1/0,VLOOKUP($A447,Economática!$A$3:$AI$823,16,FALSE)))","v":""},{"$f":"IF($A447=\"\",\"\",IF(OR(VLOOKUP($A447,Economática!$A$3:$AI$823,17,FALSE)=0,VLOOKUP($A447,Economática!$A$3:$AI$823,17,FALSE)=\"-\"),1/0,VLOOKUP($A447,Economática!$A$3:$AI$823,17,FALSE)))","v":""},{"$f":"IF($A447=\"\",\"\",IF(OR(VLOOKUP($A447,Economática!$A$3:$AI$823,18,FALSE)=0,VLOOKUP($A447,Economática!$A$3:$AI$823,18,FALSE)=\"-\"),1/0,VLOOKUP($A447,Economática!$A$3:$AI$823,18,FALSE)))","v":""},{"$f":"IF($A447=\"\",\"\",IF(OR(VLOOKUP($A447,Economática!$A$3:$AI$823,19,FALSE)=0,VLOOKUP($A447,Economática!$A$3:$AI$823,19,FALSE)=\"-\"),1/0,VLOOKUP($A447,Economática!$A$3:$AI$823,19,FALSE)))","v":""},{"$f":"IF($A447=\"\",\"\",VLOOKUP($A447,Economática!$A$3:$AI$823,20,FALSE)/E447)","v":""},{"$f":"IF($A447=\"\",\"\",IF((G447/E447)<=0,1/0,G447/E447))","v":""},{"$f":"IF($A447=\"\",\"\",D447/R447)","v":""},{"$f":"IF($A447=\"\",\"\",IF((D447/Q447)<=0,1/0,D447/Q447))","v":""},{"$f":"IF($A447=\"\",\"\",IF(OR(VLOOKUP($A447,Economática!$A$3:$AI$823,21,FALSE)/100=0,VLOOKUP($A447,Economática!$A$3:$AI$823,21,FALSE)/100=\"-\"),1/0,VLOOKUP($A447,Economática!$A$3:$AI$823,21,FALSE)/100))","v":""},{"$f":"IF($A447=\"\",\"\",IF(OR(VLOOKUP($A447,Economática!$A$3:$AI$823,22,FALSE)/100=0,VLOOKUP($A447,Economática!$A$3:$AI$823,22,FALSE)/100=\"-\"),1/0,VLOOKUP($A447,Economática!$A$3:$AI$823,22,FALSE)/100))","v":""},{"$f":"IF($A447=\"\",\"\",IF(OR(VLOOKUP($A447,Economática!$A$3:$AI$823,23,FALSE)=0,VLOOKUP($A447,Economática!$A$3:$AI$823,23,FALSE)=\"-\"),1/0,VLOOKUP($A447,Economática!$A$3:$AI$823,23,FALSE)))","v":""},{"$f":"IF($A447=\"\",\"\",IF(OR(VLOOKUP($A447,Economática!$A$3:$AI$823,24,FALSE)=0,VLOOKUP($A447,Economática!$A$3:$AI$823,24,FALSE)=\"-\"),1/0,VLOOKUP($A447,Economática!$A$3:$AI$823,24,FALSE)))","v":""},{"$f":"IF($A447=\"\",\"\",IF(OR(VLOOKUP($A447,Economática!$A$3:$AI$823,25,FALSE)=0,VLOOKUP($A447,Economática!$A$3:$AI$823,25,FALSE)=\"-\"),1/0,VLOOKUP($A447,Economática!$A$3:$AI$823,25,FALSE)))","v":""},{"$f":"IF($A447=\"\",\"\",IF(ISERROR((F447+VLOOKUP($A447,Economática!$A$3:$AI$823,26,FALSE))/Y447),(F447+VLOOKUP($A447,Economática!$A$3:$AI$823,26,FALSE))/Y447,(F447+VLOOKUP($A447,Economática!$A$3:$AI$823,26,FALSE))/Y447))","v":""},{"$f":"IF($A447=\"\",\"\",IF(OR(-VLOOKUP($A447,Economática!$A$3:$AI$823,27,FALSE)=0,-VLOOKUP($A447,Economática!$A$3:$AI$823,27,FALSE)=\"-\"),1/0,-VLOOKUP($A447,Economática!$A$3:$AI$823,27,FALSE)))","v":""},{"$f":"IF(A447=\"\",\"\",AA447/F447)","v":""},{"$f":"IF($A447=\"\",\"\",IF(OR(VLOOKUP($A447,Economática!$A$3:$AI$823,28,FALSE)=0,VLOOKUP($A447,Economática!$A$3:$AI$823,28,FALSE)=\"-\"),1/0,VLOOKUP($A447,Economática!$A$3:$AI$823,28,FALSE)))","v":""},{"$f":"IF($A447=\"\",\"\",IF(OR(VLOOKUP($A447,Economática!$A$3:$AI$823,29,FALSE)=0,VLOOKUP($A447,Economática!$A$3:$AI$823,29,FALSE)=\"-\"),1/0,VLOOKUP($A447,Economática!$A$3:$AI$823,29,FALSE)))","v":""},{"$f":"IF($A447=\"\",\"\",IF(OR(VLOOKUP($A447,Economática!$A$3:$AI$823,30,FALSE)/E447=0,VLOOKUP($A447,Economática!$A$3:$AI$823,30,FALSE)/E447=\"-\",VLOOKUP($A447,Economática!$A$3:$AI$823,30,FALSE)/E447<33.33%,VLOOKUP($A447,Economática!$A$3:$AI$823,30,FALSE)/E447>100%),1/0,VLOOKUP($A447,Economática!$A$3:$AI$823,30,FALSE)/E447))","v":""},{"$f":"IF(A447=\"\",\"\",A447)","v":""},{"$f":"IF($A447=\"\",\"\",IF(OR(VLOOKUP($A447,Economática!$A$3:$AI$823,25,FALSE)=0,VLOOKUP($A447,Economática!$A$3:$AI$823,25,FALSE)=\"-\"),1/0,VLOOKUP($A447,Economática!$A$3:$AI$823,25,FALSE)))","v":""},{"$f":"CONCATENATE(Economática!B425,\" \",Economática!C425)","v":" "}]
[{"$f":"IF(Economática!AG426=\"\",\"\",Economática!AG426)","v":""},{"$f":"IF($A448=\"\",\"\",VLOOKUP(VLOOKUP($A448,Economática!$A$3:$AI$823,6,FALSE),Correção!$B$16:$C$36,2,FALSE))","v":""},{"$f":"IF(Economática!B426=\"\",\"\",Economática!B426)","v":""},{"$f":"IF($A448=\"\",\"\",IF(OR(VLOOKUP($A448,Economática!$A$3:$AI$823,8,FALSE)=0,VLOOKUP($A448,Economática!$A$3:$AI$823,8,FALSE)=\"-\"),1/0,VLOOKUP($A448,Economática!$A$3:$AI$823,8,FALSE)))","v":""},{"$f":"IF(A448=\"\",\"\",IF(ISERROR(VLOOKUP(A448,Correção!$B$2:$G$13,9,FALSE)),VLOOKUP($A448,Economática!$A$3:$AI$823,9,FALSE),VLOOKUP(A448,Correção!$B$2:$G$13,9,FALSE)))","v":""},{"$f":"IF($A448=\"\",\"\",Economática!G426)","v":""},{"$f":"IF($A448=\"\",\"\",IF(OR(VLOOKUP($A448,Economática!$A$3:$AI$823,10,FALSE)=0,VLOOKUP($A448,Economática!$A$3:$AI$823,10,FALSE)=\"-\"),1/0,VLOOKUP($A448,Economática!$A$3:$AI$823,10,FALSE)))","v":""},{"$f":"IF($A448=\"\",\"\",IF(OR(VLOOKUP($A448,Economática!$A$3:$AI$823,11,FALSE)=0,VLOOKUP($A448,Economática!$A$3:$AI$823,11,FALSE)=\"-\"),1/0,VLOOKUP($A448,Economática!$A$3:$AI$823,11,FALSE)))","v":""},{"$f":"IF($A448=\"\",\"\",IF(OR(VLOOKUP($A448,Economática!$A$3:$AI$823,12,FALSE)=0,VLOOKUP($A448,Economática!$A$3:$AI$823,12,FALSE)=\"-\"),1/0,VLOOKUP($A448,Economática!$A$3:$AI$823,12,FALSE)))","v":""},{"$f":"IF($A448=\"\",\"\",IF(OR(VLOOKUP($A448,Economática!$A$3:$AI$823,13,FALSE)=0,VLOOKUP($A448,Economática!$A$3:$AI$823,13,FALSE)=\"-\"),1/0,VLOOKUP($A448,Economática!$A$3:$AI$823,13,FALSE)))","v":""},{"$f":"IF($A448=\"\",\"\",IF(OR(VLOOKUP($A448,Economática!$A$3:$AI$823,14,FALSE)=0,VLOOKUP($A448,Economática!$A$3:$AI$823,14,FALSE)=\"-\"),1/0,VLOOKUP($A448,Economática!$A$3:$AI$823,14,FALSE)))","v":""},{"$f":"IF($A448=\"\",\"\",IF(OR(VLOOKUP($A448,Economática!$A$3:$AI$823,15,FALSE)=0,VLOOKUP($A448,Economática!$A$3:$AI$823,15,FALSE)=\"-\"),1/0,VLOOKUP($A448,Economática!$A$3:$AI$823,15,FALSE)))","v":""},{"$f":"IF($A448=\"\",\"\",IF(OR(VLOOKUP($A448,Economática!$A$3:$AI$823,16,FALSE)=0,VLOOKUP($A448,Economática!$A$3:$AI$823,16,FALSE)=\"-\"),1/0,VLOOKUP($A448,Economática!$A$3:$AI$823,16,FALSE)))","v":""},{"$f":"IF($A448=\"\",\"\",IF(OR(VLOOKUP($A448,Economática!$A$3:$AI$823,17,FALSE)=0,VLOOKUP($A448,Economática!$A$3:$AI$823,17,FALSE)=\"-\"),1/0,VLOOKUP($A448,Economática!$A$3:$AI$823,17,FALSE)))","v":""},{"$f":"IF($A448=\"\",\"\",IF(OR(VLOOKUP($A448,Economática!$A$3:$AI$823,18,FALSE)=0,VLOOKUP($A448,Economática!$A$3:$AI$823,18,FALSE)=\"-\"),1/0,VLOOKUP($A448,Economática!$A$3:$AI$823,18,FALSE)))","v":""},{"$f":"IF($A448=\"\",\"\",IF(OR(VLOOKUP($A448,Economática!$A$3:$AI$823,19,FALSE)=0,VLOOKUP($A448,Economática!$A$3:$AI$823,19,FALSE)=\"-\"),1/0,VLOOKUP($A448,Economática!$A$3:$AI$823,19,FALSE)))","v":""},{"$f":"IF($A448=\"\",\"\",VLOOKUP($A448,Economática!$A$3:$AI$823,20,FALSE)/E448)","v":""},"","","",{"$f":"IF($A448=\"\",\"\",IF(OR(VLOOKUP($A448,Economática!$A$3:$AI$823,21,FALSE)/100=0,VLOOKUP($A448,Economática!$A$3:$AI$823,21,FALSE)/100=\"-\"),1/0,VLOOKUP($A448,Economática!$A$3:$AI$823,21,FALSE)/100))","v":""},{"$f":"IF($A448=\"\",\"\",IF(OR(VLOOKUP($A448,Economática!$A$3:$AI$823,22,FALSE)/100=0,VLOOKUP($A448,Economática!$A$3:$AI$823,22,FALSE)/100=\"-\"),1/0,VLOOKUP($A448,Economática!$A$3:$AI$823,22,FALSE)/100))","v":""},{"$f":"IF($A448=\"\",\"\",IF(OR(VLOOKUP($A448,Economática!$A$3:$AI$823,23,FALSE)=0,VLOOKUP($A448,Economática!$A$3:$AI$823,23,FALSE)=\"-\"),1/0,VLOOKUP($A448,Economática!$A$3:$AI$823,23,FALSE)))","v":""},{"$f":"IF($A448=\"\",\"\",IF(OR(VLOOKUP($A448,Economática!$A$3:$AI$823,24,FALSE)=0,VLOOKUP($A448,Economática!$A$3:$AI$823,24,FALSE)=\"-\"),1/0,VLOOKUP($A448,Economática!$A$3:$AI$823,24,FALSE)))","v":""},{"$f":"IF($A448=\"\",\"\",IF(OR(VLOOKUP($A448,Economática!$A$3:$AI$823,25,FALSE)=0,VLOOKUP($A448,Economática!$A$3:$AI$823,25,FALSE)=\"-\"),1/0,VLOOKUP($A448,Economática!$A$3:$AI$823,25,FALSE)))","v":""},{"$f":"IF($A448=\"\",\"\",IF(ISERROR((F448+VLOOKUP($A448,Economática!$A$3:$AI$823,26,FALSE))/Y448),(F448+VLOOKUP($A448,Economática!$A$3:$AI$823,26,FALSE))/Y448,(F448+VLOOKUP($A448,Economática!$A$3:$AI$823,26,FALSE))/Y448))","v":""},{"$f":"IF($A448=\"\",\"\",IF(OR(-VLOOKUP($A448,Economática!$A$3:$AI$823,27,FALSE)=0,-VLOOKUP($A448,Economática!$A$3:$AI$823,27,FALSE)=\"-\"),1/0,-VLOOKUP($A448,Economática!$A$3:$AI$823,27,FALSE)))","v":""},"",{"$f":"IF($A448=\"\",\"\",IF(OR(VLOOKUP($A448,Economática!$A$3:$AI$823,28,FALSE)=0,VLOOKUP($A448,Economática!$A$3:$AI$823,28,FALSE)=\"-\"),1/0,VLOOKUP($A448,Economática!$A$3:$AI$823,28,FALSE)))","v":""},{"$f":"IF($A448=\"\",\"\",IF(OR(VLOOKUP($A448,Economática!$A$3:$AI$823,29,FALSE)=0,VLOOKUP($A448,Economática!$A$3:$AI$823,29,FALSE)=\"-\"),1/0,VLOOKUP($A448,Economática!$A$3:$AI$823,29,FALSE)))","v":""},{"$f":"IF($A448=\"\",\"\",IF(OR(VLOOKUP($A448,Economática!$A$3:$AI$823,30,FALSE)/E448=0,VLOOKUP($A448,Economática!$A$3:$AI$823,30,FALSE)/E448=\"-\",VLOOKUP($A448,Economática!$A$3:$AI$823,30,FALSE)/E448<33.33%,VLOOKUP($A448,Economática!$A$3:$AI$823,30,FALSE)/E448>100%),1/0,VLOOKUP($A448,Economática!$A$3:$AI$823,30,FALSE)/E448))","v":""},"",{"$f":"IF($A448=\"\",\"\",IF(OR(VLOOKUP($A448,Economática!$A$3:$AI$823,25,FALSE)=0,VLOOKUP($A448,Economática!$A$3:$AI$823,25,FALSE)=\"-\"),1/0,VLOOKUP($A448,Economática!$A$3:$AI$823,25,FALSE)))","v":""},{"$f":"CONCATENATE(Economática!B426,\" \",Economática!C426)","v":" "}]
[{"$f":"IF(Economática!AG427=\"\",\"\",Economática!AG427)","v":""},{"$f":"IF($A449=\"\",\"\",VLOOKUP(VLOOKUP($A449,Economática!$A$3:$AI$823,6,FALSE),Correção!$B$16:$C$36,2,FALSE))","v":""},{"$f":"IF(Economática!B427=\"\",\"\",Economática!B427)","v":""},{"$f":"IF($A449=\"\",\"\",IF(OR(VLOOKUP($A449,Economática!$A$3:$AI$823,8,FALSE)=0,VLOOKUP($A449,Economática!$A$3:$AI$823,8,FALSE)=\"-\"),1/0,VLOOKUP($A449,Economática!$A$3:$AI$823,8,FALSE)))","v":""},{"$f":"IF(A449=\"\",\"\",IF(ISERROR(VLOOKUP(A449,Correção!$B$2:$G$13,9,FALSE)),VLOOKUP($A449,Economática!$A$3:$AI$823,9,FALSE),VLOOKUP(A449,Correção!$B$2:$G$13,9,FALSE)))","v":""},{"$f":"IF($A449=\"\",\"\",Economática!G427)","v":""},{"$f":"IF($A449=\"\",\"\",IF(OR(VLOOKUP($A449,Economática!$A$3:$AI$823,10,FALSE)=0,VLOOKUP($A449,Economática!$A$3:$AI$823,10,FALSE)=\"-\"),1/0,VLOOKUP($A449,Economática!$A$3:$AI$823,10,FALSE)))","v":""},{"$f":"IF($A449=\"\",\"\",IF(OR(VLOOKUP($A449,Economática!$A$3:$AI$823,11,FALSE)=0,VLOOKUP($A449,Economática!$A$3:$AI$823,11,FALSE)=\"-\"),1/0,VLOOKUP($A449,Economática!$A$3:$AI$823,11,FALSE)))","v":""},{"$f":"IF($A449=\"\",\"\",IF(OR(VLOOKUP($A449,Economática!$A$3:$AI$823,12,FALSE)=0,VLOOKUP($A449,Economática!$A$3:$AI$823,12,FALSE)=\"-\"),1/0,VLOOKUP($A449,Economática!$A$3:$AI$823,12,FALSE)))","v":""},{"$f":"IF($A449=\"\",\"\",IF(OR(VLOOKUP($A449,Economática!$A$3:$AI$823,13,FALSE)=0,VLOOKUP($A449,Economática!$A$3:$AI$823,13,FALSE)=\"-\"),1/0,VLOOKUP($A449,Economática!$A$3:$AI$823,13,FALSE)))","v":""},{"$f":"IF($A449=\"\",\"\",IF(OR(VLOOKUP($A449,Economática!$A$3:$AI$823,14,FALSE)=0,VLOOKUP($A449,Economática!$A$3:$AI$823,14,FALSE)=\"-\"),1/0,VLOOKUP($A449,Economática!$A$3:$AI$823,14,FALSE)))","v":""},{"$f":"IF($A449=\"\",\"\",IF(OR(VLOOKUP($A449,Economática!$A$3:$AI$823,15,FALSE)=0,VLOOKUP($A449,Economática!$A$3:$AI$823,15,FALSE)=\"-\"),1/0,VLOOKUP($A449,Economática!$A$3:$AI$823,15,FALSE)))","v":""},{"$f":"IF($A449=\"\",\"\",IF(OR(VLOOKUP($A449,Economática!$A$3:$AI$823,16,FALSE)=0,VLOOKUP($A449,Economática!$A$3:$AI$823,16,FALSE)=\"-\"),1/0,VLOOKUP($A449,Economática!$A$3:$AI$823,16,FALSE)))","v":""},{"$f":"IF($A449=\"\",\"\",IF(OR(VLOOKUP($A449,Economática!$A$3:$AI$823,17,FALSE)=0,VLOOKUP($A449,Economática!$A$3:$AI$823,17,FALSE)=\"-\"),1/0,VLOOKUP($A449,Economática!$A$3:$AI$823,17,FALSE)))","v":""},{"$f":"IF($A449=\"\",\"\",IF(OR(VLOOKUP($A449,Economática!$A$3:$AI$823,18,FALSE)=0,VLOOKUP($A449,Economática!$A$3:$AI$823,18,FALSE)=\"-\"),1/0,VLOOKUP($A449,Economática!$A$3:$AI$823,18,FALSE)))","v":""},{"$f":"IF($A449=\"\",\"\",IF(OR(VLOOKUP($A449,Economática!$A$3:$AI$823,19,FALSE)=0,VLOOKUP($A449,Economática!$A$3:$AI$823,19,FALSE)=\"-\"),1/0,VLOOKUP($A449,Economática!$A$3:$AI$823,19,FALSE)))","v":""},{"$f":"IF($A449=\"\",\"\",VLOOKUP($A449,Economática!$A$3:$AI$823,20,FALSE)/E449)","v":""},"","","",{"$f":"IF($A449=\"\",\"\",IF(OR(VLOOKUP($A449,Economática!$A$3:$AI$823,21,FALSE)/100=0,VLOOKUP($A449,Economática!$A$3:$AI$823,21,FALSE)/100=\"-\"),1/0,VLOOKUP($A449,Economática!$A$3:$AI$823,21,FALSE)/100))","v":""},{"$f":"IF($A449=\"\",\"\",IF(OR(VLOOKUP($A449,Economática!$A$3:$AI$823,22,FALSE)/100=0,VLOOKUP($A449,Economática!$A$3:$AI$823,22,FALSE)/100=\"-\"),1/0,VLOOKUP($A449,Economática!$A$3:$AI$823,22,FALSE)/100))","v":""},{"$f":"IF($A449=\"\",\"\",IF(OR(VLOOKUP($A449,Economática!$A$3:$AI$823,23,FALSE)=0,VLOOKUP($A449,Economática!$A$3:$AI$823,23,FALSE)=\"-\"),1/0,VLOOKUP($A449,Economática!$A$3:$AI$823,23,FALSE)))","v":""},{"$f":"IF($A449=\"\",\"\",IF(OR(VLOOKUP($A449,Economática!$A$3:$AI$823,24,FALSE)=0,VLOOKUP($A449,Economática!$A$3:$AI$823,24,FALSE)=\"-\"),1/0,VLOOKUP($A449,Economática!$A$3:$AI$823,24,FALSE)))","v":""},{"$f":"IF($A449=\"\",\"\",IF(OR(VLOOKUP($A449,Economática!$A$3:$AI$823,25,FALSE)=0,VLOOKUP($A449,Economática!$A$3:$AI$823,25,FALSE)=\"-\"),1/0,VLOOKUP($A449,Economática!$A$3:$AI$823,25,FALSE)))","v":""},{"$f":"IF($A449=\"\",\"\",IF(ISERROR((F449+VLOOKUP($A449,Economática!$A$3:$AI$823,26,FALSE))/Y449),(F449+VLOOKUP($A449,Economática!$A$3:$AI$823,26,FALSE))/Y449,(F449+VLOOKUP($A449,Economática!$A$3:$AI$823,26,FALSE))/Y449))","v":""},{"$f":"IF($A449=\"\",\"\",IF(OR(-VLOOKUP($A449,Economática!$A$3:$AI$823,27,FALSE)=0,-VLOOKUP($A449,Economática!$A$3:$AI$823,27,FALSE)=\"-\"),1/0,-VLOOKUP($A449,Economática!$A$3:$AI$823,27,FALSE)))","v":""},"",{"$f":"IF($A449=\"\",\"\",IF(OR(VLOOKUP($A449,Economática!$A$3:$AI$823,28,FALSE)=0,VLOOKUP($A449,Economática!$A$3:$AI$823,28,FALSE)=\"-\"),1/0,VLOOKUP($A449,Economática!$A$3:$AI$823,28,FALSE)))","v":""},{"$f":"IF($A449=\"\",\"\",IF(OR(VLOOKUP($A449,Economática!$A$3:$AI$823,29,FALSE)=0,VLOOKUP($A449,Economática!$A$3:$AI$823,29,FALSE)=\"-\"),1/0,VLOOKUP($A449,Economática!$A$3:$AI$823,29,FALSE)))","v":""},{"$f":"IF($A449=\"\",\"\",IF(OR(VLOOKUP($A449,Economática!$A$3:$AI$823,30,FALSE)/E449=0,VLOOKUP($A449,Economática!$A$3:$AI$823,30,FALSE)/E449=\"-\",VLOOKUP($A449,Economática!$A$3:$AI$823,30,FALSE)/E449<33.33%,VLOOKUP($A449,Economática!$A$3:$AI$823,30,FALSE)/E449>100%),1/0,VLOOKUP($A449,Economática!$A$3:$AI$823,30,FALSE)/E449))","v":""},"",{"$f":"IF($A449=\"\",\"\",IF(OR(VLOOKUP($A449,Economática!$A$3:$AI$823,25,FALSE)=0,VLOOKUP($A449,Economática!$A$3:$AI$823,25,FALSE)=\"-\"),1/0,VLOOKUP($A449,Economática!$A$3:$AI$823,25,FALSE)))","v":""},{"$f":"CONCATENATE(Economática!B427,\" \",Economática!C427)","v":" "}]
[{"$f":"IF(Economática!AG428=\"\",\"\",Economática!AG428)","v":""},{"$f":"IF($A450=\"\",\"\",VLOOKUP(VLOOKUP($A450,Economática!$A$3:$AI$823,6,FALSE),Correção!$B$16:$C$36,2,FALSE))","v":""},{"$f":"IF(Economática!B428=\"\",\"\",Economática!B428)","v":""},{"$f":"IF($A450=\"\",\"\",IF(OR(VLOOKUP($A450,Economática!$A$3:$AI$823,8,FALSE)=0,VLOOKUP($A450,Economática!$A$3:$AI$823,8,FALSE)=\"-\"),1/0,VLOOKUP($A450,Economática!$A$3:$AI$823,8,FALSE)))","v":""},{"$f":"IF(A450=\"\",\"\",IF(ISERROR(VLOOKUP(A450,Correção!$B$2:$G$13,9,FALSE)),VLOOKUP($A450,Economática!$A$3:$AI$823,9,FALSE),VLOOKUP(A450,Correção!$B$2:$G$13,9,FALSE)))","v":""},{"$f":"IF($A450=\"\",\"\",Economática!G428)","v":""},{"$f":"IF($A450=\"\",\"\",IF(OR(VLOOKUP($A450,Economática!$A$3:$AI$823,10,FALSE)=0,VLOOKUP($A450,Economática!$A$3:$AI$823,10,FALSE)=\"-\"),1/0,VLOOKUP($A450,Economática!$A$3:$AI$823,10,FALSE)))","v":""},{"$f":"IF($A450=\"\",\"\",IF(OR(VLOOKUP($A450,Economática!$A$3:$AI$823,11,FALSE)=0,VLOOKUP($A450,Economática!$A$3:$AI$823,11,FALSE)=\"-\"),1/0,VLOOKUP($A450,Economática!$A$3:$AI$823,11,FALSE)))","v":""},{"$f":"IF($A450=\"\",\"\",IF(OR(VLOOKUP($A450,Economática!$A$3:$AI$823,12,FALSE)=0,VLOOKUP($A450,Economática!$A$3:$AI$823,12,FALSE)=\"-\"),1/0,VLOOKUP($A450,Economática!$A$3:$AI$823,12,FALSE)))","v":""},{"$f":"IF($A450=\"\",\"\",IF(OR(VLOOKUP($A450,Economática!$A$3:$AI$823,13,FALSE)=0,VLOOKUP($A450,Economática!$A$3:$AI$823,13,FALSE)=\"-\"),1/0,VLOOKUP($A450,Economática!$A$3:$AI$823,13,FALSE)))","v":""},{"$f":"IF($A450=\"\",\"\",IF(OR(VLOOKUP($A450,Economática!$A$3:$AI$823,14,FALSE)=0,VLOOKUP($A450,Economática!$A$3:$AI$823,14,FALSE)=\"-\"),1/0,VLOOKUP($A450,Economática!$A$3:$AI$823,14,FALSE)))","v":""},{"$f":"IF($A450=\"\",\"\",IF(OR(VLOOKUP($A450,Economática!$A$3:$AI$823,15,FALSE)=0,VLOOKUP($A450,Economática!$A$3:$AI$823,15,FALSE)=\"-\"),1/0,VLOOKUP($A450,Economática!$A$3:$AI$823,15,FALSE)))","v":""},{"$f":"IF($A450=\"\",\"\",IF(OR(VLOOKUP($A450,Economática!$A$3:$AI$823,16,FALSE)=0,VLOOKUP($A450,Economática!$A$3:$AI$823,16,FALSE)=\"-\"),1/0,VLOOKUP($A450,Economática!$A$3:$AI$823,16,FALSE)))","v":""},{"$f":"IF($A450=\"\",\"\",IF(OR(VLOOKUP($A450,Economática!$A$3:$AI$823,17,FALSE)=0,VLOOKUP($A450,Economática!$A$3:$AI$823,17,FALSE)=\"-\"),1/0,VLOOKUP($A450,Economática!$A$3:$AI$823,17,FALSE)))","v":""},{"$f":"IF($A450=\"\",\"\",IF(OR(VLOOKUP($A450,Economática!$A$3:$AI$823,18,FALSE)=0,VLOOKUP($A450,Economática!$A$3:$AI$823,18,FALSE)=\"-\"),1/0,VLOOKUP($A450,Economática!$A$3:$AI$823,18,FALSE)))","v":""},{"$f":"IF($A450=\"\",\"\",IF(OR(VLOOKUP($A450,Economática!$A$3:$AI$823,19,FALSE)=0,VLOOKUP($A450,Economática!$A$3:$AI$823,19,FALSE)=\"-\"),1/0,VLOOKUP($A450,Economática!$A$3:$AI$823,19,FALSE)))","v":""},{"$f":"IF($A450=\"\",\"\",VLOOKUP($A450,Economática!$A$3:$AI$823,20,FALSE)/E450)","v":""},"","","",{"$f":"IF($A450=\"\",\"\",IF(OR(VLOOKUP($A450,Economática!$A$3:$AI$823,21,FALSE)/100=0,VLOOKUP($A450,Economática!$A$3:$AI$823,21,FALSE)/100=\"-\"),1/0,VLOOKUP($A450,Economática!$A$3:$AI$823,21,FALSE)/100))","v":""},{"$f":"IF($A450=\"\",\"\",IF(OR(VLOOKUP($A450,Economática!$A$3:$AI$823,22,FALSE)/100=0,VLOOKUP($A450,Economática!$A$3:$AI$823,22,FALSE)/100=\"-\"),1/0,VLOOKUP($A450,Economática!$A$3:$AI$823,22,FALSE)/100))","v":""},{"$f":"IF($A450=\"\",\"\",IF(OR(VLOOKUP($A450,Economática!$A$3:$AI$823,23,FALSE)=0,VLOOKUP($A450,Economática!$A$3:$AI$823,23,FALSE)=\"-\"),1/0,VLOOKUP($A450,Economática!$A$3:$AI$823,23,FALSE)))","v":""},{"$f":"IF($A450=\"\",\"\",IF(OR(VLOOKUP($A450,Economática!$A$3:$AI$823,24,FALSE)=0,VLOOKUP($A450,Economática!$A$3:$AI$823,24,FALSE)=\"-\"),1/0,VLOOKUP($A450,Economática!$A$3:$AI$823,24,FALSE)))","v":""},{"$f":"IF($A450=\"\",\"\",IF(OR(VLOOKUP($A450,Economática!$A$3:$AI$823,25,FALSE)=0,VLOOKUP($A450,Economática!$A$3:$AI$823,25,FALSE)=\"-\"),1/0,VLOOKUP($A450,Economática!$A$3:$AI$823,25,FALSE)))","v":""},{"$f":"IF($A450=\"\",\"\",IF(ISERROR((F450+VLOOKUP($A450,Economática!$A$3:$AI$823,26,FALSE))/Y450),(F450+VLOOKUP($A450,Economática!$A$3:$AI$823,26,FALSE))/Y450,(F450+VLOOKUP($A450,Economática!$A$3:$AI$823,26,FALSE))/Y450))","v":""},{"$f":"IF($A450=\"\",\"\",IF(OR(-VLOOKUP($A450,Economática!$A$3:$AI$823,27,FALSE)=0,-VLOOKUP($A450,Economática!$A$3:$AI$823,27,FALSE)=\"-\"),1/0,-VLOOKUP($A450,Economática!$A$3:$AI$823,27,FALSE)))","v":""},"",{"$f":"IF($A450=\"\",\"\",IF(OR(VLOOKUP($A450,Economática!$A$3:$AI$823,28,FALSE)=0,VLOOKUP($A450,Economática!$A$3:$AI$823,28,FALSE)=\"-\"),1/0,VLOOKUP($A450,Economática!$A$3:$AI$823,28,FALSE)))","v":""},{"$f":"IF($A450=\"\",\"\",IF(OR(VLOOKUP($A450,Economática!$A$3:$AI$823,29,FALSE)=0,VLOOKUP($A450,Economática!$A$3:$AI$823,29,FALSE)=\"-\"),1/0,VLOOKUP($A450,Economática!$A$3:$AI$823,29,FALSE)))","v":""},{"$f":"IF($A450=\"\",\"\",IF(OR(VLOOKUP($A450,Economática!$A$3:$AI$823,30,FALSE)/E450=0,VLOOKUP($A450,Economática!$A$3:$AI$823,30,FALSE)/E450=\"-\",VLOOKUP($A450,Economática!$A$3:$AI$823,30,FALSE)/E450<33.33%,VLOOKUP($A450,Economática!$A$3:$AI$823,30,FALSE)/E450>100%),1/0,VLOOKUP($A450,Economática!$A$3:$AI$823,30,FALSE)/E450))","v":""},"",{"$f":"IF($A450=\"\",\"\",IF(OR(VLOOKUP($A450,Economática!$A$3:$AI$823,25,FALSE)=0,VLOOKUP($A450,Economática!$A$3:$AI$823,25,FALSE)=\"-\"),1/0,VLOOKUP($A450,Economática!$A$3:$AI$823,25,FALSE)))","v":""},{"$f":"CONCATENATE(Economática!B428,\" \",Economática!C428)","v":" "}]
[{"$f":"IF(Economática!AG429=\"\",\"\",Economática!AG429)","v":""},{"$f":"IF($A451=\"\",\"\",VLOOKUP(VLOOKUP($A451,Economática!$A$3:$AI$823,6,FALSE),Correção!$B$16:$C$36,2,FALSE))","v":""},{"$f":"IF(Economática!B429=\"\",\"\",Economática!B429)","v":""},{"$f":"IF($A451=\"\",\"\",IF(OR(VLOOKUP($A451,Economática!$A$3:$AI$823,8,FALSE)=0,VLOOKUP($A451,Economática!$A$3:$AI$823,8,FALSE)=\"-\"),1/0,VLOOKUP($A451,Economática!$A$3:$AI$823,8,FALSE)))","v":""},{"$f":"IF(A451=\"\",\"\",IF(ISERROR(VLOOKUP(A451,Correção!$B$2:$G$13,9,FALSE)),VLOOKUP($A451,Economática!$A$3:$AI$823,9,FALSE),VLOOKUP(A451,Correção!$B$2:$G$13,9,FALSE)))","v":""},{"$f":"IF($A451=\"\",\"\",Economática!G429)","v":""},{"$f":"IF($A451=\"\",\"\",IF(OR(VLOOKUP($A451,Economática!$A$3:$AI$823,10,FALSE)=0,VLOOKUP($A451,Economática!$A$3:$AI$823,10,FALSE)=\"-\"),1/0,VLOOKUP($A451,Economática!$A$3:$AI$823,10,FALSE)))","v":""},{"$f":"IF($A451=\"\",\"\",IF(OR(VLOOKUP($A451,Economática!$A$3:$AI$823,11,FALSE)=0,VLOOKUP($A451,Economática!$A$3:$AI$823,11,FALSE)=\"-\"),1/0,VLOOKUP($A451,Economática!$A$3:$AI$823,11,FALSE)))","v":""},{"$f":"IF($A451=\"\",\"\",IF(OR(VLOOKUP($A451,Economática!$A$3:$AI$823,12,FALSE)=0,VLOOKUP($A451,Economática!$A$3:$AI$823,12,FALSE)=\"-\"),1/0,VLOOKUP($A451,Economática!$A$3:$AI$823,12,FALSE)))","v":""},{"$f":"IF($A451=\"\",\"\",IF(OR(VLOOKUP($A451,Economática!$A$3:$AI$823,13,FALSE)=0,VLOOKUP($A451,Economática!$A$3:$AI$823,13,FALSE)=\"-\"),1/0,VLOOKUP($A451,Economática!$A$3:$AI$823,13,FALSE)))","v":""},{"$f":"IF($A451=\"\",\"\",IF(OR(VLOOKUP($A451,Economática!$A$3:$AI$823,14,FALSE)=0,VLOOKUP($A451,Economática!$A$3:$AI$823,14,FALSE)=\"-\"),1/0,VLOOKUP($A451,Economática!$A$3:$AI$823,14,FALSE)))","v":""},{"$f":"IF($A451=\"\",\"\",IF(OR(VLOOKUP($A451,Economática!$A$3:$AI$823,15,FALSE)=0,VLOOKUP($A451,Economática!$A$3:$AI$823,15,FALSE)=\"-\"),1/0,VLOOKUP($A451,Economática!$A$3:$AI$823,15,FALSE)))","v":""},{"$f":"IF($A451=\"\",\"\",IF(OR(VLOOKUP($A451,Economática!$A$3:$AI$823,16,FALSE)=0,VLOOKUP($A451,Economática!$A$3:$AI$823,16,FALSE)=\"-\"),1/0,VLOOKUP($A451,Economática!$A$3:$AI$823,16,FALSE)))","v":""},{"$f":"IF($A451=\"\",\"\",IF(OR(VLOOKUP($A451,Economática!$A$3:$AI$823,17,FALSE)=0,VLOOKUP($A451,Economática!$A$3:$AI$823,17,FALSE)=\"-\"),1/0,VLOOKUP($A451,Economática!$A$3:$AI$823,17,FALSE)))","v":""},{"$f":"IF($A451=\"\",\"\",IF(OR(VLOOKUP($A451,Economática!$A$3:$AI$823,18,FALSE)=0,VLOOKUP($A451,Economática!$A$3:$AI$823,18,FALSE)=\"-\"),1/0,VLOOKUP($A451,Economática!$A$3:$AI$823,18,FALSE)))","v":""},{"$f":"IF($A451=\"\",\"\",IF(OR(VLOOKUP($A451,Economática!$A$3:$AI$823,19,FALSE)=0,VLOOKUP($A451,Economática!$A$3:$AI$823,19,FALSE)=\"-\"),1/0,VLOOKUP($A451,Economática!$A$3:$AI$823,19,FALSE)))","v":""},{"$f":"IF($A451=\"\",\"\",VLOOKUP($A451,Economática!$A$3:$AI$823,20,FALSE)/E451)","v":""},"","","",{"$f":"IF($A451=\"\",\"\",IF(OR(VLOOKUP($A451,Economática!$A$3:$AI$823,21,FALSE)/100=0,VLOOKUP($A451,Economática!$A$3:$AI$823,21,FALSE)/100=\"-\"),1/0,VLOOKUP($A451,Economática!$A$3:$AI$823,21,FALSE)/100))","v":""},{"$f":"IF($A451=\"\",\"\",IF(OR(VLOOKUP($A451,Economática!$A$3:$AI$823,22,FALSE)/100=0,VLOOKUP($A451,Economática!$A$3:$AI$823,22,FALSE)/100=\"-\"),1/0,VLOOKUP($A451,Economática!$A$3:$AI$823,22,FALSE)/100))","v":""},{"$f":"IF($A451=\"\",\"\",IF(OR(VLOOKUP($A451,Economática!$A$3:$AI$823,23,FALSE)=0,VLOOKUP($A451,Economática!$A$3:$AI$823,23,FALSE)=\"-\"),1/0,VLOOKUP($A451,Economática!$A$3:$AI$823,23,FALSE)))","v":""},{"$f":"IF($A451=\"\",\"\",IF(OR(VLOOKUP($A451,Economática!$A$3:$AI$823,24,FALSE)=0,VLOOKUP($A451,Economática!$A$3:$AI$823,24,FALSE)=\"-\"),1/0,VLOOKUP($A451,Economática!$A$3:$AI$823,24,FALSE)))","v":""},{"$f":"IF($A451=\"\",\"\",IF(OR(VLOOKUP($A451,Economática!$A$3:$AI$823,25,FALSE)=0,VLOOKUP($A451,Economática!$A$3:$AI$823,25,FALSE)=\"-\"),1/0,VLOOKUP($A451,Economática!$A$3:$AI$823,25,FALSE)))","v":""},{"$f":"IF($A451=\"\",\"\",IF(ISERROR((F451+VLOOKUP($A451,Economática!$A$3:$AI$823,26,FALSE))/Y451),(F451+VLOOKUP($A451,Economática!$A$3:$AI$823,26,FALSE))/Y451,(F451+VLOOKUP($A451,Economática!$A$3:$AI$823,26,FALSE))/Y451))","v":""},{"$f":"IF($A451=\"\",\"\",IF(OR(-VLOOKUP($A451,Economática!$A$3:$AI$823,27,FALSE)=0,-VLOOKUP($A451,Economática!$A$3:$AI$823,27,FALSE)=\"-\"),1/0,-VLOOKUP($A451,Economática!$A$3:$AI$823,27,FALSE)))","v":""},"",{"$f":"IF($A451=\"\",\"\",IF(OR(VLOOKUP($A451,Economática!$A$3:$AI$823,28,FALSE)=0,VLOOKUP($A451,Economática!$A$3:$AI$823,28,FALSE)=\"-\"),1/0,VLOOKUP($A451,Economática!$A$3:$AI$823,28,FALSE)))","v":""},{"$f":"IF($A451=\"\",\"\",IF(OR(VLOOKUP($A451,Economática!$A$3:$AI$823,29,FALSE)=0,VLOOKUP($A451,Economática!$A$3:$AI$823,29,FALSE)=\"-\"),1/0,VLOOKUP($A451,Economática!$A$3:$AI$823,29,FALSE)))","v":""},{"$f":"IF($A451=\"\",\"\",IF(OR(VLOOKUP($A451,Economática!$A$3:$AI$823,30,FALSE)/E451=0,VLOOKUP($A451,Economática!$A$3:$AI$823,30,FALSE)/E451=\"-\",VLOOKUP($A451,Economática!$A$3:$AI$823,30,FALSE)/E451<33.33%,VLOOKUP($A451,Economática!$A$3:$AI$823,30,FALSE)/E451>100%),1/0,VLOOKUP($A451,Economática!$A$3:$AI$823,30,FALSE)/E451))","v":""},"",{"$f":"IF($A451=\"\",\"\",IF(OR(VLOOKUP($A451,Economática!$A$3:$AI$823,25,FALSE)=0,VLOOKUP($A451,Economática!$A$3:$AI$823,25,FALSE)=\"-\"),1/0,VLOOKUP($A451,Economática!$A$3:$AI$823,25,FALSE)))","v":""},{"$f":"CONCATENATE(Economática!B429,\" \",Economática!C429)","v":" "}]
[{"$f":"IF(Economática!AG430=\"\",\"\",Economática!AG430)","v":""},{"$f":"IF($A452=\"\",\"\",VLOOKUP(VLOOKUP($A452,Economática!$A$3:$AI$823,6,FALSE),Correção!$B$16:$C$36,2,FALSE))","v":""},{"$f":"IF(Economática!B430=\"\",\"\",Economática!B430)","v":""},{"$f":"IF($A452=\"\",\"\",IF(OR(VLOOKUP($A452,Economática!$A$3:$AI$823,8,FALSE)=0,VLOOKUP($A452,Economática!$A$3:$AI$823,8,FALSE)=\"-\"),1/0,VLOOKUP($A452,Economática!$A$3:$AI$823,8,FALSE)))","v":""},{"$f":"IF(A452=\"\",\"\",IF(ISERROR(VLOOKUP(A452,Correção!$B$2:$G$13,9,FALSE)),VLOOKUP($A452,Economática!$A$3:$AI$823,9,FALSE),VLOOKUP(A452,Correção!$B$2:$G$13,9,FALSE)))","v":""},{"$f":"IF($A452=\"\",\"\",Economática!G430)","v":""},{"$f":"IF($A452=\"\",\"\",IF(OR(VLOOKUP($A452,Economática!$A$3:$AI$823,10,FALSE)=0,VLOOKUP($A452,Economática!$A$3:$AI$823,10,FALSE)=\"-\"),1/0,VLOOKUP($A452,Economática!$A$3:$AI$823,10,FALSE)))","v":""},{"$f":"IF($A452=\"\",\"\",IF(OR(VLOOKUP($A452,Economática!$A$3:$AI$823,11,FALSE)=0,VLOOKUP($A452,Economática!$A$3:$AI$823,11,FALSE)=\"-\"),1/0,VLOOKUP($A452,Economática!$A$3:$AI$823,11,FALSE)))","v":""},{"$f":"IF($A452=\"\",\"\",IF(OR(VLOOKUP($A452,Economática!$A$3:$AI$823,12,FALSE)=0,VLOOKUP($A452,Economática!$A$3:$AI$823,12,FALSE)=\"-\"),1/0,VLOOKUP($A452,Economática!$A$3:$AI$823,12,FALSE)))","v":""},{"$f":"IF($A452=\"\",\"\",IF(OR(VLOOKUP($A452,Economática!$A$3:$AI$823,13,FALSE)=0,VLOOKUP($A452,Economática!$A$3:$AI$823,13,FALSE)=\"-\"),1/0,VLOOKUP($A452,Economática!$A$3:$AI$823,13,FALSE)))","v":""},{"$f":"IF($A452=\"\",\"\",IF(OR(VLOOKUP($A452,Economática!$A$3:$AI$823,14,FALSE)=0,VLOOKUP($A452,Economática!$A$3:$AI$823,14,FALSE)=\"-\"),1/0,VLOOKUP($A452,Economática!$A$3:$AI$823,14,FALSE)))","v":""},{"$f":"IF($A452=\"\",\"\",IF(OR(VLOOKUP($A452,Economática!$A$3:$AI$823,15,FALSE)=0,VLOOKUP($A452,Economática!$A$3:$AI$823,15,FALSE)=\"-\"),1/0,VLOOKUP($A452,Economática!$A$3:$AI$823,15,FALSE)))","v":""},{"$f":"IF($A452=\"\",\"\",IF(OR(VLOOKUP($A452,Economática!$A$3:$AI$823,16,FALSE)=0,VLOOKUP($A452,Economática!$A$3:$AI$823,16,FALSE)=\"-\"),1/0,VLOOKUP($A452,Economática!$A$3:$AI$823,16,FALSE)))","v":""},{"$f":"IF($A452=\"\",\"\",IF(OR(VLOOKUP($A452,Economática!$A$3:$AI$823,17,FALSE)=0,VLOOKUP($A452,Economática!$A$3:$AI$823,17,FALSE)=\"-\"),1/0,VLOOKUP($A452,Economática!$A$3:$AI$823,17,FALSE)))","v":""},{"$f":"IF($A452=\"\",\"\",IF(OR(VLOOKUP($A452,Economática!$A$3:$AI$823,18,FALSE)=0,VLOOKUP($A452,Economática!$A$3:$AI$823,18,FALSE)=\"-\"),1/0,VLOOKUP($A452,Economática!$A$3:$AI$823,18,FALSE)))","v":""},{"$f":"IF($A452=\"\",\"\",IF(OR(VLOOKUP($A452,Economática!$A$3:$AI$823,19,FALSE)=0,VLOOKUP($A452,Economática!$A$3:$AI$823,19,FALSE)=\"-\"),1/0,VLOOKUP($A452,Economática!$A$3:$AI$823,19,FALSE)))","v":""},{"$f":"IF($A452=\"\",\"\",VLOOKUP($A452,Economática!$A$3:$AI$823,20,FALSE)/E452)","v":""},"","","",{"$f":"IF($A452=\"\",\"\",IF(OR(VLOOKUP($A452,Economática!$A$3:$AI$823,21,FALSE)/100=0,VLOOKUP($A452,Economática!$A$3:$AI$823,21,FALSE)/100=\"-\"),1/0,VLOOKUP($A452,Economática!$A$3:$AI$823,21,FALSE)/100))","v":""},{"$f":"IF($A452=\"\",\"\",IF(OR(VLOOKUP($A452,Economática!$A$3:$AI$823,22,FALSE)/100=0,VLOOKUP($A452,Economática!$A$3:$AI$823,22,FALSE)/100=\"-\"),1/0,VLOOKUP($A452,Economática!$A$3:$AI$823,22,FALSE)/100))","v":""},{"$f":"IF($A452=\"\",\"\",IF(OR(VLOOKUP($A452,Economática!$A$3:$AI$823,23,FALSE)=0,VLOOKUP($A452,Economática!$A$3:$AI$823,23,FALSE)=\"-\"),1/0,VLOOKUP($A452,Economática!$A$3:$AI$823,23,FALSE)))","v":""},{"$f":"IF($A452=\"\",\"\",IF(OR(VLOOKUP($A452,Economática!$A$3:$AI$823,24,FALSE)=0,VLOOKUP($A452,Economática!$A$3:$AI$823,24,FALSE)=\"-\"),1/0,VLOOKUP($A452,Economática!$A$3:$AI$823,24,FALSE)))","v":""},{"$f":"IF($A452=\"\",\"\",IF(OR(VLOOKUP($A452,Economática!$A$3:$AI$823,25,FALSE)=0,VLOOKUP($A452,Economática!$A$3:$AI$823,25,FALSE)=\"-\"),1/0,VLOOKUP($A452,Economática!$A$3:$AI$823,25,FALSE)))","v":""},{"$f":"IF($A452=\"\",\"\",IF(ISERROR((F452+VLOOKUP($A452,Economática!$A$3:$AI$823,26,FALSE))/Y452),(F452+VLOOKUP($A452,Economática!$A$3:$AI$823,26,FALSE))/Y452,(F452+VLOOKUP($A452,Economática!$A$3:$AI$823,26,FALSE))/Y452))","v":""},{"$f":"IF($A452=\"\",\"\",IF(OR(-VLOOKUP($A452,Economática!$A$3:$AI$823,27,FALSE)=0,-VLOOKUP($A452,Economática!$A$3:$AI$823,27,FALSE)=\"-\"),1/0,-VLOOKUP($A452,Economática!$A$3:$AI$823,27,FALSE)))","v":""},"",{"$f":"IF($A452=\"\",\"\",IF(OR(VLOOKUP($A452,Economática!$A$3:$AI$823,28,FALSE)=0,VLOOKUP($A452,Economática!$A$3:$AI$823,28,FALSE)=\"-\"),1/0,VLOOKUP($A452,Economática!$A$3:$AI$823,28,FALSE)))","v":""},{"$f":"IF($A452=\"\",\"\",IF(OR(VLOOKUP($A452,Economática!$A$3:$AI$823,29,FALSE)=0,VLOOKUP($A452,Economática!$A$3:$AI$823,29,FALSE)=\"-\"),1/0,VLOOKUP($A452,Economática!$A$3:$AI$823,29,FALSE)))","v":""},{"$f":"IF($A452=\"\",\"\",IF(OR(VLOOKUP($A452,Economática!$A$3:$AI$823,30,FALSE)/E452=0,VLOOKUP($A452,Economática!$A$3:$AI$823,30,FALSE)/E452=\"-\",VLOOKUP($A452,Economática!$A$3:$AI$823,30,FALSE)/E452<33.33%,VLOOKUP($A452,Economática!$A$3:$AI$823,30,FALSE)/E452>100%),1/0,VLOOKUP($A452,Economática!$A$3:$AI$823,30,FALSE)/E452))","v":""},"",{"$f":"IF($A452=\"\",\"\",IF(OR(VLOOKUP($A452,Economática!$A$3:$AI$823,25,FALSE)=0,VLOOKUP($A452,Economática!$A$3:$AI$823,25,FALSE)=\"-\"),1/0,VLOOKUP($A452,Economática!$A$3:$AI$823,25,FALSE)))","v":""},{"$f":"CONCATENATE(Economática!B430,\" \",Economática!C430)","v":" "}]
[{"$f":"IF(Economática!AG431=\"\",\"\",Economática!AG431)","v":""},{"$f":"IF($A453=\"\",\"\",VLOOKUP(VLOOKUP($A453,Economática!$A$3:$AI$823,6,FALSE),Correção!$B$16:$C$36,2,FALSE))","v":""},{"$f":"IF(Economática!B431=\"\",\"\",Economática!B431)","v":""},{"$f":"IF($A453=\"\",\"\",IF(OR(VLOOKUP($A453,Economática!$A$3:$AI$823,8,FALSE)=0,VLOOKUP($A453,Economática!$A$3:$AI$823,8,FALSE)=\"-\"),1/0,VLOOKUP($A453,Economática!$A$3:$AI$823,8,FALSE)))","v":""},{"$f":"IF(A453=\"\",\"\",IF(ISERROR(VLOOKUP(A453,Correção!$B$2:$G$13,9,FALSE)),VLOOKUP($A453,Economática!$A$3:$AI$823,9,FALSE),VLOOKUP(A453,Correção!$B$2:$G$13,9,FALSE)))","v":""},{"$f":"IF($A453=\"\",\"\",Economática!G431)","v":""},{"$f":"IF($A453=\"\",\"\",IF(OR(VLOOKUP($A453,Economática!$A$3:$AI$823,10,FALSE)=0,VLOOKUP($A453,Economática!$A$3:$AI$823,10,FALSE)=\"-\"),1/0,VLOOKUP($A453,Economática!$A$3:$AI$823,10,FALSE)))","v":""},{"$f":"IF($A453=\"\",\"\",IF(OR(VLOOKUP($A453,Economática!$A$3:$AI$823,11,FALSE)=0,VLOOKUP($A453,Economática!$A$3:$AI$823,11,FALSE)=\"-\"),1/0,VLOOKUP($A453,Economática!$A$3:$AI$823,11,FALSE)))","v":""},{"$f":"IF($A453=\"\",\"\",IF(OR(VLOOKUP($A453,Economática!$A$3:$AI$823,12,FALSE)=0,VLOOKUP($A453,Economática!$A$3:$AI$823,12,FALSE)=\"-\"),1/0,VLOOKUP($A453,Economática!$A$3:$AI$823,12,FALSE)))","v":""},{"$f":"IF($A453=\"\",\"\",IF(OR(VLOOKUP($A453,Economática!$A$3:$AI$823,13,FALSE)=0,VLOOKUP($A453,Economática!$A$3:$AI$823,13,FALSE)=\"-\"),1/0,VLOOKUP($A453,Economática!$A$3:$AI$823,13,FALSE)))","v":""},{"$f":"IF($A453=\"\",\"\",IF(OR(VLOOKUP($A453,Economática!$A$3:$AI$823,14,FALSE)=0,VLOOKUP($A453,Economática!$A$3:$AI$823,14,FALSE)=\"-\"),1/0,VLOOKUP($A453,Economática!$A$3:$AI$823,14,FALSE)))","v":""},{"$f":"IF($A453=\"\",\"\",IF(OR(VLOOKUP($A453,Economática!$A$3:$AI$823,15,FALSE)=0,VLOOKUP($A453,Economática!$A$3:$AI$823,15,FALSE)=\"-\"),1/0,VLOOKUP($A453,Economática!$A$3:$AI$823,15,FALSE)))","v":""},{"$f":"IF($A453=\"\",\"\",IF(OR(VLOOKUP($A453,Economática!$A$3:$AI$823,16,FALSE)=0,VLOOKUP($A453,Economática!$A$3:$AI$823,16,FALSE)=\"-\"),1/0,VLOOKUP($A453,Economática!$A$3:$AI$823,16,FALSE)))","v":""},{"$f":"IF($A453=\"\",\"\",IF(OR(VLOOKUP($A453,Economática!$A$3:$AI$823,17,FALSE)=0,VLOOKUP($A453,Economática!$A$3:$AI$823,17,FALSE)=\"-\"),1/0,VLOOKUP($A453,Economática!$A$3:$AI$823,17,FALSE)))","v":""},{"$f":"IF($A453=\"\",\"\",IF(OR(VLOOKUP($A453,Economática!$A$3:$AI$823,18,FALSE)=0,VLOOKUP($A453,Economática!$A$3:$AI$823,18,FALSE)=\"-\"),1/0,VLOOKUP($A453,Economática!$A$3:$AI$823,18,FALSE)))","v":""},{"$f":"IF($A453=\"\",\"\",IF(OR(VLOOKUP($A453,Economática!$A$3:$AI$823,19,FALSE)=0,VLOOKUP($A453,Economática!$A$3:$AI$823,19,FALSE)=\"-\"),1/0,VLOOKUP($A453,Economática!$A$3:$AI$823,19,FALSE)))","v":""},{"$f":"IF($A453=\"\",\"\",VLOOKUP($A453,Economática!$A$3:$AI$823,20,FALSE)/E453)","v":""},"","","",{"$f":"IF($A453=\"\",\"\",IF(OR(VLOOKUP($A453,Economática!$A$3:$AI$823,21,FALSE)/100=0,VLOOKUP($A453,Economática!$A$3:$AI$823,21,FALSE)/100=\"-\"),1/0,VLOOKUP($A453,Economática!$A$3:$AI$823,21,FALSE)/100))","v":""},{"$f":"IF($A453=\"\",\"\",IF(OR(VLOOKUP($A453,Economática!$A$3:$AI$823,22,FALSE)/100=0,VLOOKUP($A453,Economática!$A$3:$AI$823,22,FALSE)/100=\"-\"),1/0,VLOOKUP($A453,Economática!$A$3:$AI$823,22,FALSE)/100))","v":""},{"$f":"IF($A453=\"\",\"\",IF(OR(VLOOKUP($A453,Economática!$A$3:$AI$823,23,FALSE)=0,VLOOKUP($A453,Economática!$A$3:$AI$823,23,FALSE)=\"-\"),1/0,VLOOKUP($A453,Economática!$A$3:$AI$823,23,FALSE)))","v":""},{"$f":"IF($A453=\"\",\"\",IF(OR(VLOOKUP($A453,Economática!$A$3:$AI$823,24,FALSE)=0,VLOOKUP($A453,Economática!$A$3:$AI$823,24,FALSE)=\"-\"),1/0,VLOOKUP($A453,Economática!$A$3:$AI$823,24,FALSE)))","v":""},{"$f":"IF($A453=\"\",\"\",IF(OR(VLOOKUP($A453,Economática!$A$3:$AI$823,25,FALSE)=0,VLOOKUP($A453,Economática!$A$3:$AI$823,25,FALSE)=\"-\"),1/0,VLOOKUP($A453,Economática!$A$3:$AI$823,25,FALSE)))","v":""},{"$f":"IF($A453=\"\",\"\",IF(ISERROR((F453+VLOOKUP($A453,Economática!$A$3:$AI$823,26,FALSE))/Y453),(F453+VLOOKUP($A453,Economática!$A$3:$AI$823,26,FALSE))/Y453,(F453+VLOOKUP($A453,Economática!$A$3:$AI$823,26,FALSE))/Y453))","v":""},{"$f":"IF($A453=\"\",\"\",IF(OR(-VLOOKUP($A453,Economática!$A$3:$AI$823,27,FALSE)=0,-VLOOKUP($A453,Economática!$A$3:$AI$823,27,FALSE)=\"-\"),1/0,-VLOOKUP($A453,Economática!$A$3:$AI$823,27,FALSE)))","v":""},"",{"$f":"IF($A453=\"\",\"\",IF(OR(VLOOKUP($A453,Economática!$A$3:$AI$823,28,FALSE)=0,VLOOKUP($A453,Economática!$A$3:$AI$823,28,FALSE)=\"-\"),1/0,VLOOKUP($A453,Economática!$A$3:$AI$823,28,FALSE)))","v":""},{"$f":"IF($A453=\"\",\"\",IF(OR(VLOOKUP($A453,Economática!$A$3:$AI$823,29,FALSE)=0,VLOOKUP($A453,Economática!$A$3:$AI$823,29,FALSE)=\"-\"),1/0,VLOOKUP($A453,Economática!$A$3:$AI$823,29,FALSE)))","v":""},{"$f":"IF($A453=\"\",\"\",IF(OR(VLOOKUP($A453,Economática!$A$3:$AI$823,30,FALSE)/E453=0,VLOOKUP($A453,Economática!$A$3:$AI$823,30,FALSE)/E453=\"-\",VLOOKUP($A453,Economática!$A$3:$AI$823,30,FALSE)/E453<33.33%,VLOOKUP($A453,Economática!$A$3:$AI$823,30,FALSE)/E453>100%),1/0,VLOOKUP($A453,Economática!$A$3:$AI$823,30,FALSE)/E453))","v":""},"",{"$f":"IF($A453=\"\",\"\",IF(OR(VLOOKUP($A453,Economática!$A$3:$AI$823,25,FALSE)=0,VLOOKUP($A453,Economática!$A$3:$AI$823,25,FALSE)=\"-\"),1/0,VLOOKUP($A453,Economática!$A$3:$AI$823,25,FALSE)))","v":""},{"$f":"CONCATENATE(Economática!B431,\" \",Economática!C431)","v":" "}]
[{"$f":"IF(Economática!AG432=\"\",\"\",Economática!AG432)","v":""},{"$f":"IF($A454=\"\",\"\",VLOOKUP(VLOOKUP($A454,Economática!$A$3:$AI$823,6,FALSE),Correção!$B$16:$C$36,2,FALSE))","v":""},{"$f":"IF(Economática!B432=\"\",\"\",Economática!B432)","v":""},{"$f":"IF($A454=\"\",\"\",IF(OR(VLOOKUP($A454,Economática!$A$3:$AI$823,8,FALSE)=0,VLOOKUP($A454,Economática!$A$3:$AI$823,8,FALSE)=\"-\"),1/0,VLOOKUP($A454,Economática!$A$3:$AI$823,8,FALSE)))","v":""},{"$f":"IF(A454=\"\",\"\",IF(ISERROR(VLOOKUP(A454,Correção!$B$2:$G$13,9,FALSE)),VLOOKUP($A454,Economática!$A$3:$AI$823,9,FALSE),VLOOKUP(A454,Correção!$B$2:$G$13,9,FALSE)))","v":""},{"$f":"IF($A454=\"\",\"\",Economática!G432)","v":""},{"$f":"IF($A454=\"\",\"\",IF(OR(VLOOKUP($A454,Economática!$A$3:$AI$823,10,FALSE)=0,VLOOKUP($A454,Economática!$A$3:$AI$823,10,FALSE)=\"-\"),1/0,VLOOKUP($A454,Economática!$A$3:$AI$823,10,FALSE)))","v":""},{"$f":"IF($A454=\"\",\"\",IF(OR(VLOOKUP($A454,Economática!$A$3:$AI$823,11,FALSE)=0,VLOOKUP($A454,Economática!$A$3:$AI$823,11,FALSE)=\"-\"),1/0,VLOOKUP($A454,Economática!$A$3:$AI$823,11,FALSE)))","v":""},{"$f":"IF($A454=\"\",\"\",IF(OR(VLOOKUP($A454,Economática!$A$3:$AI$823,12,FALSE)=0,VLOOKUP($A454,Economática!$A$3:$AI$823,12,FALSE)=\"-\"),1/0,VLOOKUP($A454,Economática!$A$3:$AI$823,12,FALSE)))","v":""},{"$f":"IF($A454=\"\",\"\",IF(OR(VLOOKUP($A454,Economática!$A$3:$AI$823,13,FALSE)=0,VLOOKUP($A454,Economática!$A$3:$AI$823,13,FALSE)=\"-\"),1/0,VLOOKUP($A454,Economática!$A$3:$AI$823,13,FALSE)))","v":""},{"$f":"IF($A454=\"\",\"\",IF(OR(VLOOKUP($A454,Economática!$A$3:$AI$823,14,FALSE)=0,VLOOKUP($A454,Economática!$A$3:$AI$823,14,FALSE)=\"-\"),1/0,VLOOKUP($A454,Economática!$A$3:$AI$823,14,FALSE)))","v":""},{"$f":"IF($A454=\"\",\"\",IF(OR(VLOOKUP($A454,Economática!$A$3:$AI$823,15,FALSE)=0,VLOOKUP($A454,Economática!$A$3:$AI$823,15,FALSE)=\"-\"),1/0,VLOOKUP($A454,Economática!$A$3:$AI$823,15,FALSE)))","v":""},{"$f":"IF($A454=\"\",\"\",IF(OR(VLOOKUP($A454,Economática!$A$3:$AI$823,16,FALSE)=0,VLOOKUP($A454,Economática!$A$3:$AI$823,16,FALSE)=\"-\"),1/0,VLOOKUP($A454,Economática!$A$3:$AI$823,16,FALSE)))","v":""},{"$f":"IF($A454=\"\",\"\",IF(OR(VLOOKUP($A454,Economática!$A$3:$AI$823,17,FALSE)=0,VLOOKUP($A454,Economática!$A$3:$AI$823,17,FALSE)=\"-\"),1/0,VLOOKUP($A454,Economática!$A$3:$AI$823,17,FALSE)))","v":""},{"$f":"IF($A454=\"\",\"\",IF(OR(VLOOKUP($A454,Economática!$A$3:$AI$823,18,FALSE)=0,VLOOKUP($A454,Economática!$A$3:$AI$823,18,FALSE)=\"-\"),1/0,VLOOKUP($A454,Economática!$A$3:$AI$823,18,FALSE)))","v":""},{"$f":"IF($A454=\"\",\"\",IF(OR(VLOOKUP($A454,Economática!$A$3:$AI$823,19,FALSE)=0,VLOOKUP($A454,Economática!$A$3:$AI$823,19,FALSE)=\"-\"),1/0,VLOOKUP($A454,Economática!$A$3:$AI$823,19,FALSE)))","v":""},{"$f":"IF($A454=\"\",\"\",VLOOKUP($A454,Economática!$A$3:$AI$823,20,FALSE)/E454)","v":""},"","","",{"$f":"IF($A454=\"\",\"\",IF(OR(VLOOKUP($A454,Economática!$A$3:$AI$823,21,FALSE)/100=0,VLOOKUP($A454,Economática!$A$3:$AI$823,21,FALSE)/100=\"-\"),1/0,VLOOKUP($A454,Economática!$A$3:$AI$823,21,FALSE)/100))","v":""},{"$f":"IF($A454=\"\",\"\",IF(OR(VLOOKUP($A454,Economática!$A$3:$AI$823,22,FALSE)/100=0,VLOOKUP($A454,Economática!$A$3:$AI$823,22,FALSE)/100=\"-\"),1/0,VLOOKUP($A454,Economática!$A$3:$AI$823,22,FALSE)/100))","v":""},{"$f":"IF($A454=\"\",\"\",IF(OR(VLOOKUP($A454,Economática!$A$3:$AI$823,23,FALSE)=0,VLOOKUP($A454,Economática!$A$3:$AI$823,23,FALSE)=\"-\"),1/0,VLOOKUP($A454,Economática!$A$3:$AI$823,23,FALSE)))","v":""},{"$f":"IF($A454=\"\",\"\",IF(OR(VLOOKUP($A454,Economática!$A$3:$AI$823,24,FALSE)=0,VLOOKUP($A454,Economática!$A$3:$AI$823,24,FALSE)=\"-\"),1/0,VLOOKUP($A454,Economática!$A$3:$AI$823,24,FALSE)))","v":""},{"$f":"IF($A454=\"\",\"\",IF(OR(VLOOKUP($A454,Economática!$A$3:$AI$823,25,FALSE)=0,VLOOKUP($A454,Economática!$A$3:$AI$823,25,FALSE)=\"-\"),1/0,VLOOKUP($A454,Economática!$A$3:$AI$823,25,FALSE)))","v":""},{"$f":"IF($A454=\"\",\"\",IF(ISERROR((F454+VLOOKUP($A454,Economática!$A$3:$AI$823,26,FALSE))/Y454),(F454+VLOOKUP($A454,Economática!$A$3:$AI$823,26,FALSE))/Y454,(F454+VLOOKUP($A454,Economática!$A$3:$AI$823,26,FALSE))/Y454))","v":""},{"$f":"IF($A454=\"\",\"\",IF(OR(-VLOOKUP($A454,Economática!$A$3:$AI$823,27,FALSE)=0,-VLOOKUP($A454,Economática!$A$3:$AI$823,27,FALSE)=\"-\"),1/0,-VLOOKUP($A454,Economática!$A$3:$AI$823,27,FALSE)))","v":""},"",{"$f":"IF($A454=\"\",\"\",IF(OR(VLOOKUP($A454,Economática!$A$3:$AI$823,28,FALSE)=0,VLOOKUP($A454,Economática!$A$3:$AI$823,28,FALSE)=\"-\"),1/0,VLOOKUP($A454,Economática!$A$3:$AI$823,28,FALSE)))","v":""},{"$f":"IF($A454=\"\",\"\",IF(OR(VLOOKUP($A454,Economática!$A$3:$AI$823,29,FALSE)=0,VLOOKUP($A454,Economática!$A$3:$AI$823,29,FALSE)=\"-\"),1/0,VLOOKUP($A454,Economática!$A$3:$AI$823,29,FALSE)))","v":""},{"$f":"IF($A454=\"\",\"\",IF(OR(VLOOKUP($A454,Economática!$A$3:$AI$823,30,FALSE)/E454=0,VLOOKUP($A454,Economática!$A$3:$AI$823,30,FALSE)/E454=\"-\",VLOOKUP($A454,Economática!$A$3:$AI$823,30,FALSE)/E454<33.33%,VLOOKUP($A454,Economática!$A$3:$AI$823,30,FALSE)/E454>100%),1/0,VLOOKUP($A454,Economática!$A$3:$AI$823,30,FALSE)/E454))","v":""},"",{"$f":"IF($A454=\"\",\"\",IF(OR(VLOOKUP($A454,Economática!$A$3:$AI$823,25,FALSE)=0,VLOOKUP($A454,Economática!$A$3:$AI$823,25,FALSE)=\"-\"),1/0,VLOOKUP($A454,Economática!$A$3:$AI$823,25,FALSE)))","v":""},{"$f":"CONCATENATE(Economática!B432,\" \",Economática!C432)","v":" "}]
[{"$f":"IF(Economática!AG433=\"\",\"\",Economática!AG433)","v":""},{"$f":"IF($A455=\"\",\"\",VLOOKUP(VLOOKUP($A455,Economática!$A$3:$AI$823,6,FALSE),Correção!$B$16:$C$36,2,FALSE))","v":""},{"$f":"IF(Economática!B433=\"\",\"\",Economática!B433)","v":""},{"$f":"IF($A455=\"\",\"\",IF(OR(VLOOKUP($A455,Economática!$A$3:$AI$823,8,FALSE)=0,VLOOKUP($A455,Economática!$A$3:$AI$823,8,FALSE)=\"-\"),1/0,VLOOKUP($A455,Economática!$A$3:$AI$823,8,FALSE)))","v":""},{"$f":"IF(A455=\"\",\"\",IF(ISERROR(VLOOKUP(A455,Correção!$B$2:$G$13,9,FALSE)),VLOOKUP($A455,Economática!$A$3:$AI$823,9,FALSE),VLOOKUP(A455,Correção!$B$2:$G$13,9,FALSE)))","v":""},{"$f":"IF($A455=\"\",\"\",Economática!G433)","v":""},{"$f":"IF($A455=\"\",\"\",IF(OR(VLOOKUP($A455,Economática!$A$3:$AI$823,10,FALSE)=0,VLOOKUP($A455,Economática!$A$3:$AI$823,10,FALSE)=\"-\"),1/0,VLOOKUP($A455,Economática!$A$3:$AI$823,10,FALSE)))","v":""},{"$f":"IF($A455=\"\",\"\",IF(OR(VLOOKUP($A455,Economática!$A$3:$AI$823,11,FALSE)=0,VLOOKUP($A455,Economática!$A$3:$AI$823,11,FALSE)=\"-\"),1/0,VLOOKUP($A455,Economática!$A$3:$AI$823,11,FALSE)))","v":""},{"$f":"IF($A455=\"\",\"\",IF(OR(VLOOKUP($A455,Economática!$A$3:$AI$823,12,FALSE)=0,VLOOKUP($A455,Economática!$A$3:$AI$823,12,FALSE)=\"-\"),1/0,VLOOKUP($A455,Economática!$A$3:$AI$823,12,FALSE)))","v":""},{"$f":"IF($A455=\"\",\"\",IF(OR(VLOOKUP($A455,Economática!$A$3:$AI$823,13,FALSE)=0,VLOOKUP($A455,Economática!$A$3:$AI$823,13,FALSE)=\"-\"),1/0,VLOOKUP($A455,Economática!$A$3:$AI$823,13,FALSE)))","v":""},{"$f":"IF($A455=\"\",\"\",IF(OR(VLOOKUP($A455,Economática!$A$3:$AI$823,14,FALSE)=0,VLOOKUP($A455,Economática!$A$3:$AI$823,14,FALSE)=\"-\"),1/0,VLOOKUP($A455,Economática!$A$3:$AI$823,14,FALSE)))","v":""},{"$f":"IF($A455=\"\",\"\",IF(OR(VLOOKUP($A455,Economática!$A$3:$AI$823,15,FALSE)=0,VLOOKUP($A455,Economática!$A$3:$AI$823,15,FALSE)=\"-\"),1/0,VLOOKUP($A455,Economática!$A$3:$AI$823,15,FALSE)))","v":""},{"$f":"IF($A455=\"\",\"\",IF(OR(VLOOKUP($A455,Economática!$A$3:$AI$823,16,FALSE)=0,VLOOKUP($A455,Economática!$A$3:$AI$823,16,FALSE)=\"-\"),1/0,VLOOKUP($A455,Economática!$A$3:$AI$823,16,FALSE)))","v":""},{"$f":"IF($A455=\"\",\"\",IF(OR(VLOOKUP($A455,Economática!$A$3:$AI$823,17,FALSE)=0,VLOOKUP($A455,Economática!$A$3:$AI$823,17,FALSE)=\"-\"),1/0,VLOOKUP($A455,Economática!$A$3:$AI$823,17,FALSE)))","v":""},{"$f":"IF($A455=\"\",\"\",IF(OR(VLOOKUP($A455,Economática!$A$3:$AI$823,18,FALSE)=0,VLOOKUP($A455,Economática!$A$3:$AI$823,18,FALSE)=\"-\"),1/0,VLOOKUP($A455,Economática!$A$3:$AI$823,18,FALSE)))","v":""},{"$f":"IF($A455=\"\",\"\",IF(OR(VLOOKUP($A455,Economática!$A$3:$AI$823,19,FALSE)=0,VLOOKUP($A455,Economática!$A$3:$AI$823,19,FALSE)=\"-\"),1/0,VLOOKUP($A455,Economática!$A$3:$AI$823,19,FALSE)))","v":""},{"$f":"IF($A455=\"\",\"\",VLOOKUP($A455,Economática!$A$3:$AI$823,20,FALSE)/E455)","v":""},"","","",{"$f":"IF($A455=\"\",\"\",IF(OR(VLOOKUP($A455,Economática!$A$3:$AI$823,21,FALSE)/100=0,VLOOKUP($A455,Economática!$A$3:$AI$823,21,FALSE)/100=\"-\"),1/0,VLOOKUP($A455,Economática!$A$3:$AI$823,21,FALSE)/100))","v":""},{"$f":"IF($A455=\"\",\"\",IF(OR(VLOOKUP($A455,Economática!$A$3:$AI$823,22,FALSE)/100=0,VLOOKUP($A455,Economática!$A$3:$AI$823,22,FALSE)/100=\"-\"),1/0,VLOOKUP($A455,Economática!$A$3:$AI$823,22,FALSE)/100))","v":""},{"$f":"IF($A455=\"\",\"\",IF(OR(VLOOKUP($A455,Economática!$A$3:$AI$823,23,FALSE)=0,VLOOKUP($A455,Economática!$A$3:$AI$823,23,FALSE)=\"-\"),1/0,VLOOKUP($A455,Economática!$A$3:$AI$823,23,FALSE)))","v":""},{"$f":"IF($A455=\"\",\"\",IF(OR(VLOOKUP($A455,Economática!$A$3:$AI$823,24,FALSE)=0,VLOOKUP($A455,Economática!$A$3:$AI$823,24,FALSE)=\"-\"),1/0,VLOOKUP($A455,Economática!$A$3:$AI$823,24,FALSE)))","v":""},{"$f":"IF($A455=\"\",\"\",IF(OR(VLOOKUP($A455,Economática!$A$3:$AI$823,25,FALSE)=0,VLOOKUP($A455,Economática!$A$3:$AI$823,25,FALSE)=\"-\"),1/0,VLOOKUP($A455,Economática!$A$3:$AI$823,25,FALSE)))","v":""},{"$f":"IF($A455=\"\",\"\",IF(ISERROR((F455+VLOOKUP($A455,Economática!$A$3:$AI$823,26,FALSE))/Y455),(F455+VLOOKUP($A455,Economática!$A$3:$AI$823,26,FALSE))/Y455,(F455+VLOOKUP($A455,Economática!$A$3:$AI$823,26,FALSE))/Y455))","v":""},{"$f":"IF($A455=\"\",\"\",IF(OR(-VLOOKUP($A455,Economática!$A$3:$AI$823,27,FALSE)=0,-VLOOKUP($A455,Economática!$A$3:$AI$823,27,FALSE)=\"-\"),1/0,-VLOOKUP($A455,Economática!$A$3:$AI$823,27,FALSE)))","v":""},"",{"$f":"IF($A455=\"\",\"\",IF(OR(VLOOKUP($A455,Economática!$A$3:$AI$823,28,FALSE)=0,VLOOKUP($A455,Economática!$A$3:$AI$823,28,FALSE)=\"-\"),1/0,VLOOKUP($A455,Economática!$A$3:$AI$823,28,FALSE)))","v":""},{"$f":"IF($A455=\"\",\"\",IF(OR(VLOOKUP($A455,Economática!$A$3:$AI$823,29,FALSE)=0,VLOOKUP($A455,Economática!$A$3:$AI$823,29,FALSE)=\"-\"),1/0,VLOOKUP($A455,Economática!$A$3:$AI$823,29,FALSE)))","v":""},{"$f":"IF($A455=\"\",\"\",IF(OR(VLOOKUP($A455,Economática!$A$3:$AI$823,30,FALSE)/E455=0,VLOOKUP($A455,Economática!$A$3:$AI$823,30,FALSE)/E455=\"-\",VLOOKUP($A455,Economática!$A$3:$AI$823,30,FALSE)/E455<33.33%,VLOOKUP($A455,Economática!$A$3:$AI$823,30,FALSE)/E455>100%),1/0,VLOOKUP($A455,Economática!$A$3:$AI$823,30,FALSE)/E455))","v":""},"",{"$f":"IF($A455=\"\",\"\",IF(OR(VLOOKUP($A455,Economática!$A$3:$AI$823,25,FALSE)=0,VLOOKUP($A455,Economática!$A$3:$AI$823,25,FALSE)=\"-\"),1/0,VLOOKUP($A455,Economática!$A$3:$AI$823,25,FALSE)))","v":""},{"$f":"CONCATENATE(Economática!B433,\" \",Economática!C433)","v":" "}]
[{"$f":"IF(Economática!AG434=\"\",\"\",Economática!AG434)","v":""},{"$f":"IF($A456=\"\",\"\",VLOOKUP(VLOOKUP($A456,Economática!$A$3:$AI$823,6,FALSE),Correção!$B$16:$C$36,2,FALSE))","v":""},{"$f":"IF(Economática!B434=\"\",\"\",Economática!B434)","v":""},{"$f":"IF($A456=\"\",\"\",IF(OR(VLOOKUP($A456,Economática!$A$3:$AI$823,8,FALSE)=0,VLOOKUP($A456,Economática!$A$3:$AI$823,8,FALSE)=\"-\"),1/0,VLOOKUP($A456,Economática!$A$3:$AI$823,8,FALSE)))","v":""},{"$f":"IF(A456=\"\",\"\",IF(ISERROR(VLOOKUP(A456,Correção!$B$2:$G$13,9,FALSE)),VLOOKUP($A456,Economática!$A$3:$AI$823,9,FALSE),VLOOKUP(A456,Correção!$B$2:$G$13,9,FALSE)))","v":""},{"$f":"IF($A456=\"\",\"\",Economática!G434)","v":""},{"$f":"IF($A456=\"\",\"\",IF(OR(VLOOKUP($A456,Economática!$A$3:$AI$823,10,FALSE)=0,VLOOKUP($A456,Economática!$A$3:$AI$823,10,FALSE)=\"-\"),1/0,VLOOKUP($A456,Economática!$A$3:$AI$823,10,FALSE)))","v":""},{"$f":"IF($A456=\"\",\"\",IF(OR(VLOOKUP($A456,Economática!$A$3:$AI$823,11,FALSE)=0,VLOOKUP($A456,Economática!$A$3:$AI$823,11,FALSE)=\"-\"),1/0,VLOOKUP($A456,Economática!$A$3:$AI$823,11,FALSE)))","v":""},{"$f":"IF($A456=\"\",\"\",IF(OR(VLOOKUP($A456,Economática!$A$3:$AI$823,12,FALSE)=0,VLOOKUP($A456,Economática!$A$3:$AI$823,12,FALSE)=\"-\"),1/0,VLOOKUP($A456,Economática!$A$3:$AI$823,12,FALSE)))","v":""},{"$f":"IF($A456=\"\",\"\",IF(OR(VLOOKUP($A456,Economática!$A$3:$AI$823,13,FALSE)=0,VLOOKUP($A456,Economática!$A$3:$AI$823,13,FALSE)=\"-\"),1/0,VLOOKUP($A456,Economática!$A$3:$AI$823,13,FALSE)))","v":""},{"$f":"IF($A456=\"\",\"\",IF(OR(VLOOKUP($A456,Economática!$A$3:$AI$823,14,FALSE)=0,VLOOKUP($A456,Economática!$A$3:$AI$823,14,FALSE)=\"-\"),1/0,VLOOKUP($A456,Economática!$A$3:$AI$823,14,FALSE)))","v":""},{"$f":"IF($A456=\"\",\"\",IF(OR(VLOOKUP($A456,Economática!$A$3:$AI$823,15,FALSE)=0,VLOOKUP($A456,Economática!$A$3:$AI$823,15,FALSE)=\"-\"),1/0,VLOOKUP($A456,Economática!$A$3:$AI$823,15,FALSE)))","v":""},{"$f":"IF($A456=\"\",\"\",IF(OR(VLOOKUP($A456,Economática!$A$3:$AI$823,16,FALSE)=0,VLOOKUP($A456,Economática!$A$3:$AI$823,16,FALSE)=\"-\"),1/0,VLOOKUP($A456,Economática!$A$3:$AI$823,16,FALSE)))","v":""},{"$f":"IF($A456=\"\",\"\",IF(OR(VLOOKUP($A456,Economática!$A$3:$AI$823,17,FALSE)=0,VLOOKUP($A456,Economática!$A$3:$AI$823,17,FALSE)=\"-\"),1/0,VLOOKUP($A456,Economática!$A$3:$AI$823,17,FALSE)))","v":""},{"$f":"IF($A456=\"\",\"\",IF(OR(VLOOKUP($A456,Economática!$A$3:$AI$823,18,FALSE)=0,VLOOKUP($A456,Economática!$A$3:$AI$823,18,FALSE)=\"-\"),1/0,VLOOKUP($A456,Economática!$A$3:$AI$823,18,FALSE)))","v":""},{"$f":"IF($A456=\"\",\"\",IF(OR(VLOOKUP($A456,Economática!$A$3:$AI$823,19,FALSE)=0,VLOOKUP($A456,Economática!$A$3:$AI$823,19,FALSE)=\"-\"),1/0,VLOOKUP($A456,Economática!$A$3:$AI$823,19,FALSE)))","v":""},{"$f":"IF($A456=\"\",\"\",VLOOKUP($A456,Economática!$A$3:$AI$823,20,FALSE)/E456)","v":""},"","","",{"$f":"IF($A456=\"\",\"\",IF(OR(VLOOKUP($A456,Economática!$A$3:$AI$823,21,FALSE)/100=0,VLOOKUP($A456,Economática!$A$3:$AI$823,21,FALSE)/100=\"-\"),1/0,VLOOKUP($A456,Economática!$A$3:$AI$823,21,FALSE)/100))","v":""},{"$f":"IF($A456=\"\",\"\",IF(OR(VLOOKUP($A456,Economática!$A$3:$AI$823,22,FALSE)/100=0,VLOOKUP($A456,Economática!$A$3:$AI$823,22,FALSE)/100=\"-\"),1/0,VLOOKUP($A456,Economática!$A$3:$AI$823,22,FALSE)/100))","v":""},{"$f":"IF($A456=\"\",\"\",IF(OR(VLOOKUP($A456,Economática!$A$3:$AI$823,23,FALSE)=0,VLOOKUP($A456,Economática!$A$3:$AI$823,23,FALSE)=\"-\"),1/0,VLOOKUP($A456,Economática!$A$3:$AI$823,23,FALSE)))","v":""},{"$f":"IF($A456=\"\",\"\",IF(OR(VLOOKUP($A456,Economática!$A$3:$AI$823,24,FALSE)=0,VLOOKUP($A456,Economática!$A$3:$AI$823,24,FALSE)=\"-\"),1/0,VLOOKUP($A456,Economática!$A$3:$AI$823,24,FALSE)))","v":""},{"$f":"IF($A456=\"\",\"\",IF(OR(VLOOKUP($A456,Economática!$A$3:$AI$823,25,FALSE)=0,VLOOKUP($A456,Economática!$A$3:$AI$823,25,FALSE)=\"-\"),1/0,VLOOKUP($A456,Economática!$A$3:$AI$823,25,FALSE)))","v":""},{"$f":"IF($A456=\"\",\"\",IF(ISERROR((F456+VLOOKUP($A456,Economática!$A$3:$AI$823,26,FALSE))/Y456),(F456+VLOOKUP($A456,Economática!$A$3:$AI$823,26,FALSE))/Y456,(F456+VLOOKUP($A456,Economática!$A$3:$AI$823,26,FALSE))/Y456))","v":""},{"$f":"IF($A456=\"\",\"\",IF(OR(-VLOOKUP($A456,Economática!$A$3:$AI$823,27,FALSE)=0,-VLOOKUP($A456,Economática!$A$3:$AI$823,27,FALSE)=\"-\"),1/0,-VLOOKUP($A456,Economática!$A$3:$AI$823,27,FALSE)))","v":""},"",{"$f":"IF($A456=\"\",\"\",IF(OR(VLOOKUP($A456,Economática!$A$3:$AI$823,28,FALSE)=0,VLOOKUP($A456,Economática!$A$3:$AI$823,28,FALSE)=\"-\"),1/0,VLOOKUP($A456,Economática!$A$3:$AI$823,28,FALSE)))","v":""},{"$f":"IF($A456=\"\",\"\",IF(OR(VLOOKUP($A456,Economática!$A$3:$AI$823,29,FALSE)=0,VLOOKUP($A456,Economática!$A$3:$AI$823,29,FALSE)=\"-\"),1/0,VLOOKUP($A456,Economática!$A$3:$AI$823,29,FALSE)))","v":""},{"$f":"IF($A456=\"\",\"\",IF(OR(VLOOKUP($A456,Economática!$A$3:$AI$823,30,FALSE)/E456=0,VLOOKUP($A456,Economática!$A$3:$AI$823,30,FALSE)/E456=\"-\",VLOOKUP($A456,Economática!$A$3:$AI$823,30,FALSE)/E456<33.33%,VLOOKUP($A456,Economática!$A$3:$AI$823,30,FALSE)/E456>100%),1/0,VLOOKUP($A456,Economática!$A$3:$AI$823,30,FALSE)/E456))","v":""},"",{"$f":"IF($A456=\"\",\"\",IF(OR(VLOOKUP($A456,Economática!$A$3:$AI$823,25,FALSE)=0,VLOOKUP($A456,Economática!$A$3:$AI$823,25,FALSE)=\"-\"),1/0,VLOOKUP($A456,Economática!$A$3:$AI$823,25,FALSE)))","v":""},{"$f":"CONCATENATE(Economática!B434,\" \",Economática!C434)","v":" "}]
[{"$f":"IF(Economática!AG435=\"\",\"\",Economática!AG435)","v":""},{"$f":"IF($A457=\"\",\"\",VLOOKUP(VLOOKUP($A457,Economática!$A$3:$AI$823,6,FALSE),Correção!$B$16:$C$36,2,FALSE))","v":""},{"$f":"IF(Economática!B435=\"\",\"\",Economática!B435)","v":""},{"$f":"IF($A457=\"\",\"\",IF(OR(VLOOKUP($A457,Economática!$A$3:$AI$823,8,FALSE)=0,VLOOKUP($A457,Economática!$A$3:$AI$823,8,FALSE)=\"-\"),1/0,VLOOKUP($A457,Economática!$A$3:$AI$823,8,FALSE)))","v":""},{"$f":"IF(A457=\"\",\"\",IF(ISERROR(VLOOKUP(A457,Correção!$B$2:$G$13,9,FALSE)),VLOOKUP($A457,Economática!$A$3:$AI$823,9,FALSE),VLOOKUP(A457,Correção!$B$2:$G$13,9,FALSE)))","v":""},{"$f":"IF($A457=\"\",\"\",Economática!G435)","v":""},{"$f":"IF($A457=\"\",\"\",IF(OR(VLOOKUP($A457,Economática!$A$3:$AI$823,10,FALSE)=0,VLOOKUP($A457,Economática!$A$3:$AI$823,10,FALSE)=\"-\"),1/0,VLOOKUP($A457,Economática!$A$3:$AI$823,10,FALSE)))","v":""},{"$f":"IF($A457=\"\",\"\",IF(OR(VLOOKUP($A457,Economática!$A$3:$AI$823,11,FALSE)=0,VLOOKUP($A457,Economática!$A$3:$AI$823,11,FALSE)=\"-\"),1/0,VLOOKUP($A457,Economática!$A$3:$AI$823,11,FALSE)))","v":""},{"$f":"IF($A457=\"\",\"\",IF(OR(VLOOKUP($A457,Economática!$A$3:$AI$823,12,FALSE)=0,VLOOKUP($A457,Economática!$A$3:$AI$823,12,FALSE)=\"-\"),1/0,VLOOKUP($A457,Economática!$A$3:$AI$823,12,FALSE)))","v":""},{"$f":"IF($A457=\"\",\"\",IF(OR(VLOOKUP($A457,Economática!$A$3:$AI$823,13,FALSE)=0,VLOOKUP($A457,Economática!$A$3:$AI$823,13,FALSE)=\"-\"),1/0,VLOOKUP($A457,Economática!$A$3:$AI$823,13,FALSE)))","v":""},{"$f":"IF($A457=\"\",\"\",IF(OR(VLOOKUP($A457,Economática!$A$3:$AI$823,14,FALSE)=0,VLOOKUP($A457,Economática!$A$3:$AI$823,14,FALSE)=\"-\"),1/0,VLOOKUP($A457,Economática!$A$3:$AI$823,14,FALSE)))","v":""},{"$f":"IF($A457=\"\",\"\",IF(OR(VLOOKUP($A457,Economática!$A$3:$AI$823,15,FALSE)=0,VLOOKUP($A457,Economática!$A$3:$AI$823,15,FALSE)=\"-\"),1/0,VLOOKUP($A457,Economática!$A$3:$AI$823,15,FALSE)))","v":""},{"$f":"IF($A457=\"\",\"\",IF(OR(VLOOKUP($A457,Economática!$A$3:$AI$823,16,FALSE)=0,VLOOKUP($A457,Economática!$A$3:$AI$823,16,FALSE)=\"-\"),1/0,VLOOKUP($A457,Economática!$A$3:$AI$823,16,FALSE)))","v":""},{"$f":"IF($A457=\"\",\"\",IF(OR(VLOOKUP($A457,Economática!$A$3:$AI$823,17,FALSE)=0,VLOOKUP($A457,Economática!$A$3:$AI$823,17,FALSE)=\"-\"),1/0,VLOOKUP($A457,Economática!$A$3:$AI$823,17,FALSE)))","v":""},{"$f":"IF($A457=\"\",\"\",IF(OR(VLOOKUP($A457,Economática!$A$3:$AI$823,18,FALSE)=0,VLOOKUP($A457,Economática!$A$3:$AI$823,18,FALSE)=\"-\"),1/0,VLOOKUP($A457,Economática!$A$3:$AI$823,18,FALSE)))","v":""},{"$f":"IF($A457=\"\",\"\",IF(OR(VLOOKUP($A457,Economática!$A$3:$AI$823,19,FALSE)=0,VLOOKUP($A457,Economática!$A$3:$AI$823,19,FALSE)=\"-\"),1/0,VLOOKUP($A457,Economática!$A$3:$AI$823,19,FALSE)))","v":""},{"$f":"IF($A457=\"\",\"\",VLOOKUP($A457,Economática!$A$3:$AI$823,20,FALSE)/E457)","v":""},"","","",{"$f":"IF($A457=\"\",\"\",IF(OR(VLOOKUP($A457,Economática!$A$3:$AI$823,21,FALSE)/100=0,VLOOKUP($A457,Economática!$A$3:$AI$823,21,FALSE)/100=\"-\"),1/0,VLOOKUP($A457,Economática!$A$3:$AI$823,21,FALSE)/100))","v":""},{"$f":"IF($A457=\"\",\"\",IF(OR(VLOOKUP($A457,Economática!$A$3:$AI$823,22,FALSE)/100=0,VLOOKUP($A457,Economática!$A$3:$AI$823,22,FALSE)/100=\"-\"),1/0,VLOOKUP($A457,Economática!$A$3:$AI$823,22,FALSE)/100))","v":""},{"$f":"IF($A457=\"\",\"\",IF(OR(VLOOKUP($A457,Economática!$A$3:$AI$823,23,FALSE)=0,VLOOKUP($A457,Economática!$A$3:$AI$823,23,FALSE)=\"-\"),1/0,VLOOKUP($A457,Economática!$A$3:$AI$823,23,FALSE)))","v":""},{"$f":"IF($A457=\"\",\"\",IF(OR(VLOOKUP($A457,Economática!$A$3:$AI$823,24,FALSE)=0,VLOOKUP($A457,Economática!$A$3:$AI$823,24,FALSE)=\"-\"),1/0,VLOOKUP($A457,Economática!$A$3:$AI$823,24,FALSE)))","v":""},{"$f":"IF($A457=\"\",\"\",IF(OR(VLOOKUP($A457,Economática!$A$3:$AI$823,25,FALSE)=0,VLOOKUP($A457,Economática!$A$3:$AI$823,25,FALSE)=\"-\"),1/0,VLOOKUP($A457,Economática!$A$3:$AI$823,25,FALSE)))","v":""},{"$f":"IF($A457=\"\",\"\",IF(ISERROR((F457+VLOOKUP($A457,Economática!$A$3:$AI$823,26,FALSE))/Y457),(F457+VLOOKUP($A457,Economática!$A$3:$AI$823,26,FALSE))/Y457,(F457+VLOOKUP($A457,Economática!$A$3:$AI$823,26,FALSE))/Y457))","v":""},{"$f":"IF($A457=\"\",\"\",IF(OR(-VLOOKUP($A457,Economática!$A$3:$AI$823,27,FALSE)=0,-VLOOKUP($A457,Economática!$A$3:$AI$823,27,FALSE)=\"-\"),1/0,-VLOOKUP($A457,Economática!$A$3:$AI$823,27,FALSE)))","v":""},"",{"$f":"IF($A457=\"\",\"\",IF(OR(VLOOKUP($A457,Economática!$A$3:$AI$823,28,FALSE)=0,VLOOKUP($A457,Economática!$A$3:$AI$823,28,FALSE)=\"-\"),1/0,VLOOKUP($A457,Economática!$A$3:$AI$823,28,FALSE)))","v":""},{"$f":"IF($A457=\"\",\"\",IF(OR(VLOOKUP($A457,Economática!$A$3:$AI$823,29,FALSE)=0,VLOOKUP($A457,Economática!$A$3:$AI$823,29,FALSE)=\"-\"),1/0,VLOOKUP($A457,Economática!$A$3:$AI$823,29,FALSE)))","v":""},{"$f":"IF($A457=\"\",\"\",IF(OR(VLOOKUP($A457,Economática!$A$3:$AI$823,30,FALSE)/E457=0,VLOOKUP($A457,Economática!$A$3:$AI$823,30,FALSE)/E457=\"-\",VLOOKUP($A457,Economática!$A$3:$AI$823,30,FALSE)/E457<33.33%,VLOOKUP($A457,Economática!$A$3:$AI$823,30,FALSE)/E457>100%),1/0,VLOOKUP($A457,Economática!$A$3:$AI$823,30,FALSE)/E457))","v":""},"",{"$f":"IF($A457=\"\",\"\",IF(OR(VLOOKUP($A457,Economática!$A$3:$AI$823,25,FALSE)=0,VLOOKUP($A457,Economática!$A$3:$AI$823,25,FALSE)=\"-\"),1/0,VLOOKUP($A457,Economática!$A$3:$AI$823,25,FALSE)))","v":""},{"$f":"CONCATENATE(Economática!B435,\" \",Economática!C435)","v":" "}]
[{"$f":"IF(Economática!AG436=\"\",\"\",Economática!AG436)","v":""},{"$f":"IF($A458=\"\",\"\",VLOOKUP(VLOOKUP($A458,Economática!$A$3:$AI$823,6,FALSE),Correção!$B$16:$C$36,2,FALSE))","v":""},{"$f":"IF(Economática!B436=\"\",\"\",Economática!B436)","v":""},{"$f":"IF($A458=\"\",\"\",IF(OR(VLOOKUP($A458,Economática!$A$3:$AI$823,8,FALSE)=0,VLOOKUP($A458,Economática!$A$3:$AI$823,8,FALSE)=\"-\"),1/0,VLOOKUP($A458,Economática!$A$3:$AI$823,8,FALSE)))","v":""},{"$f":"IF(A458=\"\",\"\",IF(ISERROR(VLOOKUP(A458,Correção!$B$2:$G$13,9,FALSE)),VLOOKUP($A458,Economática!$A$3:$AI$823,9,FALSE),VLOOKUP(A458,Correção!$B$2:$G$13,9,FALSE)))","v":""},{"$f":"IF($A458=\"\",\"\",Economática!G436)","v":""},{"$f":"IF($A458=\"\",\"\",IF(OR(VLOOKUP($A458,Economática!$A$3:$AI$823,10,FALSE)=0,VLOOKUP($A458,Economática!$A$3:$AI$823,10,FALSE)=\"-\"),1/0,VLOOKUP($A458,Economática!$A$3:$AI$823,10,FALSE)))","v":""},{"$f":"IF($A458=\"\",\"\",IF(OR(VLOOKUP($A458,Economática!$A$3:$AI$823,11,FALSE)=0,VLOOKUP($A458,Economática!$A$3:$AI$823,11,FALSE)=\"-\"),1/0,VLOOKUP($A458,Economática!$A$3:$AI$823,11,FALSE)))","v":""},{"$f":"IF($A458=\"\",\"\",IF(OR(VLOOKUP($A458,Economática!$A$3:$AI$823,12,FALSE)=0,VLOOKUP($A458,Economática!$A$3:$AI$823,12,FALSE)=\"-\"),1/0,VLOOKUP($A458,Economática!$A$3:$AI$823,12,FALSE)))","v":""},{"$f":"IF($A458=\"\",\"\",IF(OR(VLOOKUP($A458,Economática!$A$3:$AI$823,13,FALSE)=0,VLOOKUP($A458,Economática!$A$3:$AI$823,13,FALSE)=\"-\"),1/0,VLOOKUP($A458,Economática!$A$3:$AI$823,13,FALSE)))","v":""},{"$f":"IF($A458=\"\",\"\",IF(OR(VLOOKUP($A458,Economática!$A$3:$AI$823,14,FALSE)=0,VLOOKUP($A458,Economática!$A$3:$AI$823,14,FALSE)=\"-\"),1/0,VLOOKUP($A458,Economática!$A$3:$AI$823,14,FALSE)))","v":""},{"$f":"IF($A458=\"\",\"\",IF(OR(VLOOKUP($A458,Economática!$A$3:$AI$823,15,FALSE)=0,VLOOKUP($A458,Economática!$A$3:$AI$823,15,FALSE)=\"-\"),1/0,VLOOKUP($A458,Economática!$A$3:$AI$823,15,FALSE)))","v":""},{"$f":"IF($A458=\"\",\"\",IF(OR(VLOOKUP($A458,Economática!$A$3:$AI$823,16,FALSE)=0,VLOOKUP($A458,Economática!$A$3:$AI$823,16,FALSE)=\"-\"),1/0,VLOOKUP($A458,Economática!$A$3:$AI$823,16,FALSE)))","v":""},{"$f":"IF($A458=\"\",\"\",IF(OR(VLOOKUP($A458,Economática!$A$3:$AI$823,17,FALSE)=0,VLOOKUP($A458,Economática!$A$3:$AI$823,17,FALSE)=\"-\"),1/0,VLOOKUP($A458,Economática!$A$3:$AI$823,17,FALSE)))","v":""},{"$f":"IF($A458=\"\",\"\",IF(OR(VLOOKUP($A458,Economática!$A$3:$AI$823,18,FALSE)=0,VLOOKUP($A458,Economática!$A$3:$AI$823,18,FALSE)=\"-\"),1/0,VLOOKUP($A458,Economática!$A$3:$AI$823,18,FALSE)))","v":""},{"$f":"IF($A458=\"\",\"\",IF(OR(VLOOKUP($A458,Economática!$A$3:$AI$823,19,FALSE)=0,VLOOKUP($A458,Economática!$A$3:$AI$823,19,FALSE)=\"-\"),1/0,VLOOKUP($A458,Economática!$A$3:$AI$823,19,FALSE)))","v":""},{"$f":"IF($A458=\"\",\"\",VLOOKUP($A458,Economática!$A$3:$AI$823,20,FALSE)/E458)","v":""},"","","",{"$f":"IF($A458=\"\",\"\",IF(OR(VLOOKUP($A458,Economática!$A$3:$AI$823,21,FALSE)/100=0,VLOOKUP($A458,Economática!$A$3:$AI$823,21,FALSE)/100=\"-\"),1/0,VLOOKUP($A458,Economática!$A$3:$AI$823,21,FALSE)/100))","v":""},{"$f":"IF($A458=\"\",\"\",IF(OR(VLOOKUP($A458,Economática!$A$3:$AI$823,22,FALSE)/100=0,VLOOKUP($A458,Economática!$A$3:$AI$823,22,FALSE)/100=\"-\"),1/0,VLOOKUP($A458,Economática!$A$3:$AI$823,22,FALSE)/100))","v":""},{"$f":"IF($A458=\"\",\"\",IF(OR(VLOOKUP($A458,Economática!$A$3:$AI$823,23,FALSE)=0,VLOOKUP($A458,Economática!$A$3:$AI$823,23,FALSE)=\"-\"),1/0,VLOOKUP($A458,Economática!$A$3:$AI$823,23,FALSE)))","v":""},{"$f":"IF($A458=\"\",\"\",IF(OR(VLOOKUP($A458,Economática!$A$3:$AI$823,24,FALSE)=0,VLOOKUP($A458,Economática!$A$3:$AI$823,24,FALSE)=\"-\"),1/0,VLOOKUP($A458,Economática!$A$3:$AI$823,24,FALSE)))","v":""},{"$f":"IF($A458=\"\",\"\",IF(OR(VLOOKUP($A458,Economática!$A$3:$AI$823,25,FALSE)=0,VLOOKUP($A458,Economática!$A$3:$AI$823,25,FALSE)=\"-\"),1/0,VLOOKUP($A458,Economática!$A$3:$AI$823,25,FALSE)))","v":""},{"$f":"IF($A458=\"\",\"\",IF(ISERROR((F458+VLOOKUP($A458,Economática!$A$3:$AI$823,26,FALSE))/Y458),(F458+VLOOKUP($A458,Economática!$A$3:$AI$823,26,FALSE))/Y458,(F458+VLOOKUP($A458,Economática!$A$3:$AI$823,26,FALSE))/Y458))","v":""},{"$f":"IF($A458=\"\",\"\",IF(OR(-VLOOKUP($A458,Economática!$A$3:$AI$823,27,FALSE)=0,-VLOOKUP($A458,Economática!$A$3:$AI$823,27,FALSE)=\"-\"),1/0,-VLOOKUP($A458,Economática!$A$3:$AI$823,27,FALSE)))","v":""},"",{"$f":"IF($A458=\"\",\"\",IF(OR(VLOOKUP($A458,Economática!$A$3:$AI$823,28,FALSE)=0,VLOOKUP($A458,Economática!$A$3:$AI$823,28,FALSE)=\"-\"),1/0,VLOOKUP($A458,Economática!$A$3:$AI$823,28,FALSE)))","v":""},{"$f":"IF($A458=\"\",\"\",IF(OR(VLOOKUP($A458,Economática!$A$3:$AI$823,29,FALSE)=0,VLOOKUP($A458,Economática!$A$3:$AI$823,29,FALSE)=\"-\"),1/0,VLOOKUP($A458,Economática!$A$3:$AI$823,29,FALSE)))","v":""},{"$f":"IF($A458=\"\",\"\",IF(OR(VLOOKUP($A458,Economática!$A$3:$AI$823,30,FALSE)/E458=0,VLOOKUP($A458,Economática!$A$3:$AI$823,30,FALSE)/E458=\"-\",VLOOKUP($A458,Economática!$A$3:$AI$823,30,FALSE)/E458<33.33%,VLOOKUP($A458,Economática!$A$3:$AI$823,30,FALSE)/E458>100%),1/0,VLOOKUP($A458,Economática!$A$3:$AI$823,30,FALSE)/E458))","v":""},"",{"$f":"IF($A458=\"\",\"\",IF(OR(VLOOKUP($A458,Economática!$A$3:$AI$823,25,FALSE)=0,VLOOKUP($A458,Economática!$A$3:$AI$823,25,FALSE)=\"-\"),1/0,VLOOKUP($A458,Economática!$A$3:$AI$823,25,FALSE)))","v":""},{"$f":"CONCATENATE(Economática!B436,\" \",Economática!C436)","v":" "}]
[{"$f":"IF(Economática!AG437=\"\",\"\",Economática!AG437)","v":""},{"$f":"IF($A459=\"\",\"\",VLOOKUP(VLOOKUP($A459,Economática!$A$3:$AI$823,6,FALSE),Correção!$B$16:$C$36,2,FALSE))","v":""},{"$f":"IF(Economática!B437=\"\",\"\",Economática!B437)","v":""},{"$f":"IF($A459=\"\",\"\",IF(OR(VLOOKUP($A459,Economática!$A$3:$AI$823,8,FALSE)=0,VLOOKUP($A459,Economática!$A$3:$AI$823,8,FALSE)=\"-\"),1/0,VLOOKUP($A459,Economática!$A$3:$AI$823,8,FALSE)))","v":""},{"$f":"IF(A459=\"\",\"\",IF(ISERROR(VLOOKUP(A459,Correção!$B$2:$G$13,9,FALSE)),VLOOKUP($A459,Economática!$A$3:$AI$823,9,FALSE),VLOOKUP(A459,Correção!$B$2:$G$13,9,FALSE)))","v":""},{"$f":"IF($A459=\"\",\"\",Economática!G437)","v":""},{"$f":"IF($A459=\"\",\"\",IF(OR(VLOOKUP($A459,Economática!$A$3:$AI$823,10,FALSE)=0,VLOOKUP($A459,Economática!$A$3:$AI$823,10,FALSE)=\"-\"),1/0,VLOOKUP($A459,Economática!$A$3:$AI$823,10,FALSE)))","v":""},{"$f":"IF($A459=\"\",\"\",IF(OR(VLOOKUP($A459,Economática!$A$3:$AI$823,11,FALSE)=0,VLOOKUP($A459,Economática!$A$3:$AI$823,11,FALSE)=\"-\"),1/0,VLOOKUP($A459,Economática!$A$3:$AI$823,11,FALSE)))","v":""},{"$f":"IF($A459=\"\",\"\",IF(OR(VLOOKUP($A459,Economática!$A$3:$AI$823,12,FALSE)=0,VLOOKUP($A459,Economática!$A$3:$AI$823,12,FALSE)=\"-\"),1/0,VLOOKUP($A459,Economática!$A$3:$AI$823,12,FALSE)))","v":""},{"$f":"IF($A459=\"\",\"\",IF(OR(VLOOKUP($A459,Economática!$A$3:$AI$823,13,FALSE)=0,VLOOKUP($A459,Economática!$A$3:$AI$823,13,FALSE)=\"-\"),1/0,VLOOKUP($A459,Economática!$A$3:$AI$823,13,FALSE)))","v":""},{"$f":"IF($A459=\"\",\"\",IF(OR(VLOOKUP($A459,Economática!$A$3:$AI$823,14,FALSE)=0,VLOOKUP($A459,Economática!$A$3:$AI$823,14,FALSE)=\"-\"),1/0,VLOOKUP($A459,Economática!$A$3:$AI$823,14,FALSE)))","v":""},{"$f":"IF($A459=\"\",\"\",IF(OR(VLOOKUP($A459,Economática!$A$3:$AI$823,15,FALSE)=0,VLOOKUP($A459,Economática!$A$3:$AI$823,15,FALSE)=\"-\"),1/0,VLOOKUP($A459,Economática!$A$3:$AI$823,15,FALSE)))","v":""},{"$f":"IF($A459=\"\",\"\",IF(OR(VLOOKUP($A459,Economática!$A$3:$AI$823,16,FALSE)=0,VLOOKUP($A459,Economática!$A$3:$AI$823,16,FALSE)=\"-\"),1/0,VLOOKUP($A459,Economática!$A$3:$AI$823,16,FALSE)))","v":""},{"$f":"IF($A459=\"\",\"\",IF(OR(VLOOKUP($A459,Economática!$A$3:$AI$823,17,FALSE)=0,VLOOKUP($A459,Economática!$A$3:$AI$823,17,FALSE)=\"-\"),1/0,VLOOKUP($A459,Economática!$A$3:$AI$823,17,FALSE)))","v":""},{"$f":"IF($A459=\"\",\"\",IF(OR(VLOOKUP($A459,Economática!$A$3:$AI$823,18,FALSE)=0,VLOOKUP($A459,Economática!$A$3:$AI$823,18,FALSE)=\"-\"),1/0,VLOOKUP($A459,Economática!$A$3:$AI$823,18,FALSE)))","v":""},{"$f":"IF($A459=\"\",\"\",IF(OR(VLOOKUP($A459,Economática!$A$3:$AI$823,19,FALSE)=0,VLOOKUP($A459,Economática!$A$3:$AI$823,19,FALSE)=\"-\"),1/0,VLOOKUP($A459,Economática!$A$3:$AI$823,19,FALSE)))","v":""},{"$f":"IF($A459=\"\",\"\",VLOOKUP($A459,Economática!$A$3:$AI$823,20,FALSE)/E459)","v":""},"","","",{"$f":"IF($A459=\"\",\"\",IF(OR(VLOOKUP($A459,Economática!$A$3:$AI$823,21,FALSE)/100=0,VLOOKUP($A459,Economática!$A$3:$AI$823,21,FALSE)/100=\"-\"),1/0,VLOOKUP($A459,Economática!$A$3:$AI$823,21,FALSE)/100))","v":""},{"$f":"IF($A459=\"\",\"\",IF(OR(VLOOKUP($A459,Economática!$A$3:$AI$823,22,FALSE)/100=0,VLOOKUP($A459,Economática!$A$3:$AI$823,22,FALSE)/100=\"-\"),1/0,VLOOKUP($A459,Economática!$A$3:$AI$823,22,FALSE)/100))","v":""},{"$f":"IF($A459=\"\",\"\",IF(OR(VLOOKUP($A459,Economática!$A$3:$AI$823,23,FALSE)=0,VLOOKUP($A459,Economática!$A$3:$AI$823,23,FALSE)=\"-\"),1/0,VLOOKUP($A459,Economática!$A$3:$AI$823,23,FALSE)))","v":""},{"$f":"IF($A459=\"\",\"\",IF(OR(VLOOKUP($A459,Economática!$A$3:$AI$823,24,FALSE)=0,VLOOKUP($A459,Economática!$A$3:$AI$823,24,FALSE)=\"-\"),1/0,VLOOKUP($A459,Economática!$A$3:$AI$823,24,FALSE)))","v":""},{"$f":"IF($A459=\"\",\"\",IF(OR(VLOOKUP($A459,Economática!$A$3:$AI$823,25,FALSE)=0,VLOOKUP($A459,Economática!$A$3:$AI$823,25,FALSE)=\"-\"),1/0,VLOOKUP($A459,Economática!$A$3:$AI$823,25,FALSE)))","v":""},{"$f":"IF($A459=\"\",\"\",IF(ISERROR((F459+VLOOKUP($A459,Economática!$A$3:$AI$823,26,FALSE))/Y459),(F459+VLOOKUP($A459,Economática!$A$3:$AI$823,26,FALSE))/Y459,(F459+VLOOKUP($A459,Economática!$A$3:$AI$823,26,FALSE))/Y459))","v":""},{"$f":"IF($A459=\"\",\"\",IF(OR(-VLOOKUP($A459,Economática!$A$3:$AI$823,27,FALSE)=0,-VLOOKUP($A459,Economática!$A$3:$AI$823,27,FALSE)=\"-\"),1/0,-VLOOKUP($A459,Economática!$A$3:$AI$823,27,FALSE)))","v":""},"",{"$f":"IF($A459=\"\",\"\",IF(OR(VLOOKUP($A459,Economática!$A$3:$AI$823,28,FALSE)=0,VLOOKUP($A459,Economática!$A$3:$AI$823,28,FALSE)=\"-\"),1/0,VLOOKUP($A459,Economática!$A$3:$AI$823,28,FALSE)))","v":""},{"$f":"IF($A459=\"\",\"\",IF(OR(VLOOKUP($A459,Economática!$A$3:$AI$823,29,FALSE)=0,VLOOKUP($A459,Economática!$A$3:$AI$823,29,FALSE)=\"-\"),1/0,VLOOKUP($A459,Economática!$A$3:$AI$823,29,FALSE)))","v":""},{"$f":"IF($A459=\"\",\"\",IF(OR(VLOOKUP($A459,Economática!$A$3:$AI$823,30,FALSE)/E459=0,VLOOKUP($A459,Economática!$A$3:$AI$823,30,FALSE)/E459=\"-\",VLOOKUP($A459,Economática!$A$3:$AI$823,30,FALSE)/E459<33.33%,VLOOKUP($A459,Economática!$A$3:$AI$823,30,FALSE)/E459>100%),1/0,VLOOKUP($A459,Economática!$A$3:$AI$823,30,FALSE)/E459))","v":""},"",{"$f":"IF($A459=\"\",\"\",IF(OR(VLOOKUP($A459,Economática!$A$3:$AI$823,25,FALSE)=0,VLOOKUP($A459,Economática!$A$3:$AI$823,25,FALSE)=\"-\"),1/0,VLOOKUP($A459,Economática!$A$3:$AI$823,25,FALSE)))","v":""},{"$f":"CONCATENATE(Economática!B437,\" \",Economática!C437)","v":" "}]
[{"$f":"IF(Economática!AG438=\"\",\"\",Economática!AG438)","v":""},{"$f":"IF($A460=\"\",\"\",VLOOKUP(VLOOKUP($A460,Economática!$A$3:$AI$823,6,FALSE),Correção!$B$16:$C$36,2,FALSE))","v":""},{"$f":"IF(Economática!B438=\"\",\"\",Economática!B438)","v":""},{"$f":"IF($A460=\"\",\"\",IF(OR(VLOOKUP($A460,Economática!$A$3:$AI$823,8,FALSE)=0,VLOOKUP($A460,Economática!$A$3:$AI$823,8,FALSE)=\"-\"),1/0,VLOOKUP($A460,Economática!$A$3:$AI$823,8,FALSE)))","v":""},{"$f":"IF(A460=\"\",\"\",IF(ISERROR(VLOOKUP(A460,Correção!$B$2:$G$13,9,FALSE)),VLOOKUP($A460,Economática!$A$3:$AI$823,9,FALSE),VLOOKUP(A460,Correção!$B$2:$G$13,9,FALSE)))","v":""},{"$f":"IF($A460=\"\",\"\",Economática!G438)","v":""},{"$f":"IF($A460=\"\",\"\",IF(OR(VLOOKUP($A460,Economática!$A$3:$AI$823,10,FALSE)=0,VLOOKUP($A460,Economática!$A$3:$AI$823,10,FALSE)=\"-\"),1/0,VLOOKUP($A460,Economática!$A$3:$AI$823,10,FALSE)))","v":""},{"$f":"IF($A460=\"\",\"\",IF(OR(VLOOKUP($A460,Economática!$A$3:$AI$823,11,FALSE)=0,VLOOKUP($A460,Economática!$A$3:$AI$823,11,FALSE)=\"-\"),1/0,VLOOKUP($A460,Economática!$A$3:$AI$823,11,FALSE)))","v":""},{"$f":"IF($A460=\"\",\"\",IF(OR(VLOOKUP($A460,Economática!$A$3:$AI$823,12,FALSE)=0,VLOOKUP($A460,Economática!$A$3:$AI$823,12,FALSE)=\"-\"),1/0,VLOOKUP($A460,Economática!$A$3:$AI$823,12,FALSE)))","v":""},{"$f":"IF($A460=\"\",\"\",IF(OR(VLOOKUP($A460,Economática!$A$3:$AI$823,13,FALSE)=0,VLOOKUP($A460,Economática!$A$3:$AI$823,13,FALSE)=\"-\"),1/0,VLOOKUP($A460,Economática!$A$3:$AI$823,13,FALSE)))","v":""},{"$f":"IF($A460=\"\",\"\",IF(OR(VLOOKUP($A460,Economática!$A$3:$AI$823,14,FALSE)=0,VLOOKUP($A460,Economática!$A$3:$AI$823,14,FALSE)=\"-\"),1/0,VLOOKUP($A460,Economática!$A$3:$AI$823,14,FALSE)))","v":""},{"$f":"IF($A460=\"\",\"\",IF(OR(VLOOKUP($A460,Economática!$A$3:$AI$823,15,FALSE)=0,VLOOKUP($A460,Economática!$A$3:$AI$823,15,FALSE)=\"-\"),1/0,VLOOKUP($A460,Economática!$A$3:$AI$823,15,FALSE)))","v":""},{"$f":"IF($A460=\"\",\"\",IF(OR(VLOOKUP($A460,Economática!$A$3:$AI$823,16,FALSE)=0,VLOOKUP($A460,Economática!$A$3:$AI$823,16,FALSE)=\"-\"),1/0,VLOOKUP($A460,Economática!$A$3:$AI$823,16,FALSE)))","v":""},{"$f":"IF($A460=\"\",\"\",IF(OR(VLOOKUP($A460,Economática!$A$3:$AI$823,17,FALSE)=0,VLOOKUP($A460,Economática!$A$3:$AI$823,17,FALSE)=\"-\"),1/0,VLOOKUP($A460,Economática!$A$3:$AI$823,17,FALSE)))","v":""},{"$f":"IF($A460=\"\",\"\",IF(OR(VLOOKUP($A460,Economática!$A$3:$AI$823,18,FALSE)=0,VLOOKUP($A460,Economática!$A$3:$AI$823,18,FALSE)=\"-\"),1/0,VLOOKUP($A460,Economática!$A$3:$AI$823,18,FALSE)))","v":""},{"$f":"IF($A460=\"\",\"\",IF(OR(VLOOKUP($A460,Economática!$A$3:$AI$823,19,FALSE)=0,VLOOKUP($A460,Economática!$A$3:$AI$823,19,FALSE)=\"-\"),1/0,VLOOKUP($A460,Economática!$A$3:$AI$823,19,FALSE)))","v":""},{"$f":"IF($A460=\"\",\"\",VLOOKUP($A460,Economática!$A$3:$AI$823,20,FALSE)/E460)","v":""},"","","",{"$f":"IF($A460=\"\",\"\",IF(OR(VLOOKUP($A460,Economática!$A$3:$AI$823,21,FALSE)/100=0,VLOOKUP($A460,Economática!$A$3:$AI$823,21,FALSE)/100=\"-\"),1/0,VLOOKUP($A460,Economática!$A$3:$AI$823,21,FALSE)/100))","v":""},{"$f":"IF($A460=\"\",\"\",IF(OR(VLOOKUP($A460,Economática!$A$3:$AI$823,22,FALSE)/100=0,VLOOKUP($A460,Economática!$A$3:$AI$823,22,FALSE)/100=\"-\"),1/0,VLOOKUP($A460,Economática!$A$3:$AI$823,22,FALSE)/100))","v":""},{"$f":"IF($A460=\"\",\"\",IF(OR(VLOOKUP($A460,Economática!$A$3:$AI$823,23,FALSE)=0,VLOOKUP($A460,Economática!$A$3:$AI$823,23,FALSE)=\"-\"),1/0,VLOOKUP($A460,Economática!$A$3:$AI$823,23,FALSE)))","v":""},{"$f":"IF($A460=\"\",\"\",IF(OR(VLOOKUP($A460,Economática!$A$3:$AI$823,24,FALSE)=0,VLOOKUP($A460,Economática!$A$3:$AI$823,24,FALSE)=\"-\"),1/0,VLOOKUP($A460,Economática!$A$3:$AI$823,24,FALSE)))","v":""},{"$f":"IF($A460=\"\",\"\",IF(OR(VLOOKUP($A460,Economática!$A$3:$AI$823,25,FALSE)=0,VLOOKUP($A460,Economática!$A$3:$AI$823,25,FALSE)=\"-\"),1/0,VLOOKUP($A460,Economática!$A$3:$AI$823,25,FALSE)))","v":""},{"$f":"IF($A460=\"\",\"\",IF(ISERROR((F460+VLOOKUP($A460,Economática!$A$3:$AI$823,26,FALSE))/Y460),(F460+VLOOKUP($A460,Economática!$A$3:$AI$823,26,FALSE))/Y460,(F460+VLOOKUP($A460,Economática!$A$3:$AI$823,26,FALSE))/Y460))","v":""},{"$f":"IF($A460=\"\",\"\",IF(OR(-VLOOKUP($A460,Economática!$A$3:$AI$823,27,FALSE)=0,-VLOOKUP($A460,Economática!$A$3:$AI$823,27,FALSE)=\"-\"),1/0,-VLOOKUP($A460,Economática!$A$3:$AI$823,27,FALSE)))","v":""},"",{"$f":"IF($A460=\"\",\"\",IF(OR(VLOOKUP($A460,Economática!$A$3:$AI$823,28,FALSE)=0,VLOOKUP($A460,Economática!$A$3:$AI$823,28,FALSE)=\"-\"),1/0,VLOOKUP($A460,Economática!$A$3:$AI$823,28,FALSE)))","v":""},{"$f":"IF($A460=\"\",\"\",IF(OR(VLOOKUP($A460,Economática!$A$3:$AI$823,29,FALSE)=0,VLOOKUP($A460,Economática!$A$3:$AI$823,29,FALSE)=\"-\"),1/0,VLOOKUP($A460,Economática!$A$3:$AI$823,29,FALSE)))","v":""},{"$f":"IF($A460=\"\",\"\",IF(OR(VLOOKUP($A460,Economática!$A$3:$AI$823,30,FALSE)/E460=0,VLOOKUP($A460,Economática!$A$3:$AI$823,30,FALSE)/E460=\"-\",VLOOKUP($A460,Economática!$A$3:$AI$823,30,FALSE)/E460<33.33%,VLOOKUP($A460,Economática!$A$3:$AI$823,30,FALSE)/E460>100%),1/0,VLOOKUP($A460,Economática!$A$3:$AI$823,30,FALSE)/E460))","v":""},"",{"$f":"IF($A460=\"\",\"\",IF(OR(VLOOKUP($A460,Economática!$A$3:$AI$823,25,FALSE)=0,VLOOKUP($A460,Economática!$A$3:$AI$823,25,FALSE)=\"-\"),1/0,VLOOKUP($A460,Economática!$A$3:$AI$823,25,FALSE)))","v":""},{"$f":"CONCATENATE(Economática!B438,\" \",Economática!C438)","v":" "}]
[{"$f":"IF(Economática!AG439=\"\",\"\",Economática!AG439)","v":""},{"$f":"IF($A461=\"\",\"\",VLOOKUP(VLOOKUP($A461,Economática!$A$3:$AI$823,6,FALSE),Correção!$B$16:$C$36,2,FALSE))","v":""},{"$f":"IF(Economática!B439=\"\",\"\",Economática!B439)","v":""},{"$f":"IF($A461=\"\",\"\",IF(OR(VLOOKUP($A461,Economática!$A$3:$AI$823,8,FALSE)=0,VLOOKUP($A461,Economática!$A$3:$AI$823,8,FALSE)=\"-\"),1/0,VLOOKUP($A461,Economática!$A$3:$AI$823,8,FALSE)))","v":""},{"$f":"IF(A461=\"\",\"\",IF(ISERROR(VLOOKUP(A461,Correção!$B$2:$G$13,9,FALSE)),VLOOKUP($A461,Economática!$A$3:$AI$823,9,FALSE),VLOOKUP(A461,Correção!$B$2:$G$13,9,FALSE)))","v":""},{"$f":"IF($A461=\"\",\"\",Economática!G439)","v":""},{"$f":"IF($A461=\"\",\"\",IF(OR(VLOOKUP($A461,Economática!$A$3:$AI$823,10,FALSE)=0,VLOOKUP($A461,Economática!$A$3:$AI$823,10,FALSE)=\"-\"),1/0,VLOOKUP($A461,Economática!$A$3:$AI$823,10,FALSE)))","v":""},{"$f":"IF($A461=\"\",\"\",IF(OR(VLOOKUP($A461,Economática!$A$3:$AI$823,11,FALSE)=0,VLOOKUP($A461,Economática!$A$3:$AI$823,11,FALSE)=\"-\"),1/0,VLOOKUP($A461,Economática!$A$3:$AI$823,11,FALSE)))","v":""},{"$f":"IF($A461=\"\",\"\",IF(OR(VLOOKUP($A461,Economática!$A$3:$AI$823,12,FALSE)=0,VLOOKUP($A461,Economática!$A$3:$AI$823,12,FALSE)=\"-\"),1/0,VLOOKUP($A461,Economática!$A$3:$AI$823,12,FALSE)))","v":""},{"$f":"IF($A461=\"\",\"\",IF(OR(VLOOKUP($A461,Economática!$A$3:$AI$823,13,FALSE)=0,VLOOKUP($A461,Economática!$A$3:$AI$823,13,FALSE)=\"-\"),1/0,VLOOKUP($A461,Economática!$A$3:$AI$823,13,FALSE)))","v":""},{"$f":"IF($A461=\"\",\"\",IF(OR(VLOOKUP($A461,Economática!$A$3:$AI$823,14,FALSE)=0,VLOOKUP($A461,Economática!$A$3:$AI$823,14,FALSE)=\"-\"),1/0,VLOOKUP($A461,Economática!$A$3:$AI$823,14,FALSE)))","v":""},{"$f":"IF($A461=\"\",\"\",IF(OR(VLOOKUP($A461,Economática!$A$3:$AI$823,15,FALSE)=0,VLOOKUP($A461,Economática!$A$3:$AI$823,15,FALSE)=\"-\"),1/0,VLOOKUP($A461,Economática!$A$3:$AI$823,15,FALSE)))","v":""},{"$f":"IF($A461=\"\",\"\",IF(OR(VLOOKUP($A461,Economática!$A$3:$AI$823,16,FALSE)=0,VLOOKUP($A461,Economática!$A$3:$AI$823,16,FALSE)=\"-\"),1/0,VLOOKUP($A461,Economática!$A$3:$AI$823,16,FALSE)))","v":""},{"$f":"IF($A461=\"\",\"\",IF(OR(VLOOKUP($A461,Economática!$A$3:$AI$823,17,FALSE)=0,VLOOKUP($A461,Economática!$A$3:$AI$823,17,FALSE)=\"-\"),1/0,VLOOKUP($A461,Economática!$A$3:$AI$823,17,FALSE)))","v":""},{"$f":"IF($A461=\"\",\"\",IF(OR(VLOOKUP($A461,Economática!$A$3:$AI$823,18,FALSE)=0,VLOOKUP($A461,Economática!$A$3:$AI$823,18,FALSE)=\"-\"),1/0,VLOOKUP($A461,Economática!$A$3:$AI$823,18,FALSE)))","v":""},{"$f":"IF($A461=\"\",\"\",IF(OR(VLOOKUP($A461,Economática!$A$3:$AI$823,19,FALSE)=0,VLOOKUP($A461,Economática!$A$3:$AI$823,19,FALSE)=\"-\"),1/0,VLOOKUP($A461,Economática!$A$3:$AI$823,19,FALSE)))","v":""},{"$f":"IF($A461=\"\",\"\",VLOOKUP($A461,Economática!$A$3:$AI$823,20,FALSE)/E461)","v":""},"","","",{"$f":"IF($A461=\"\",\"\",IF(OR(VLOOKUP($A461,Economática!$A$3:$AI$823,21,FALSE)/100=0,VLOOKUP($A461,Economática!$A$3:$AI$823,21,FALSE)/100=\"-\"),1/0,VLOOKUP($A461,Economática!$A$3:$AI$823,21,FALSE)/100))","v":""},{"$f":"IF($A461=\"\",\"\",IF(OR(VLOOKUP($A461,Economática!$A$3:$AI$823,22,FALSE)/100=0,VLOOKUP($A461,Economática!$A$3:$AI$823,22,FALSE)/100=\"-\"),1/0,VLOOKUP($A461,Economática!$A$3:$AI$823,22,FALSE)/100))","v":""},{"$f":"IF($A461=\"\",\"\",IF(OR(VLOOKUP($A461,Economática!$A$3:$AI$823,23,FALSE)=0,VLOOKUP($A461,Economática!$A$3:$AI$823,23,FALSE)=\"-\"),1/0,VLOOKUP($A461,Economática!$A$3:$AI$823,23,FALSE)))","v":""},{"$f":"IF($A461=\"\",\"\",IF(OR(VLOOKUP($A461,Economática!$A$3:$AI$823,24,FALSE)=0,VLOOKUP($A461,Economática!$A$3:$AI$823,24,FALSE)=\"-\"),1/0,VLOOKUP($A461,Economática!$A$3:$AI$823,24,FALSE)))","v":""},{"$f":"IF($A461=\"\",\"\",IF(OR(VLOOKUP($A461,Economática!$A$3:$AI$823,25,FALSE)=0,VLOOKUP($A461,Economática!$A$3:$AI$823,25,FALSE)=\"-\"),1/0,VLOOKUP($A461,Economática!$A$3:$AI$823,25,FALSE)))","v":""},{"$f":"IF($A461=\"\",\"\",IF(ISERROR((F461+VLOOKUP($A461,Economática!$A$3:$AI$823,26,FALSE))/Y461),(F461+VLOOKUP($A461,Economática!$A$3:$AI$823,26,FALSE))/Y461,(F461+VLOOKUP($A461,Economática!$A$3:$AI$823,26,FALSE))/Y461))","v":""},{"$f":"IF($A461=\"\",\"\",IF(OR(-VLOOKUP($A461,Economática!$A$3:$AI$823,27,FALSE)=0,-VLOOKUP($A461,Economática!$A$3:$AI$823,27,FALSE)=\"-\"),1/0,-VLOOKUP($A461,Economática!$A$3:$AI$823,27,FALSE)))","v":""},"",{"$f":"IF($A461=\"\",\"\",IF(OR(VLOOKUP($A461,Economática!$A$3:$AI$823,28,FALSE)=0,VLOOKUP($A461,Economática!$A$3:$AI$823,28,FALSE)=\"-\"),1/0,VLOOKUP($A461,Economática!$A$3:$AI$823,28,FALSE)))","v":""},{"$f":"IF($A461=\"\",\"\",IF(OR(VLOOKUP($A461,Economática!$A$3:$AI$823,29,FALSE)=0,VLOOKUP($A461,Economática!$A$3:$AI$823,29,FALSE)=\"-\"),1/0,VLOOKUP($A461,Economática!$A$3:$AI$823,29,FALSE)))","v":""},{"$f":"IF($A461=\"\",\"\",IF(OR(VLOOKUP($A461,Economática!$A$3:$AI$823,30,FALSE)/E461=0,VLOOKUP($A461,Economática!$A$3:$AI$823,30,FALSE)/E461=\"-\",VLOOKUP($A461,Economática!$A$3:$AI$823,30,FALSE)/E461<33.33%,VLOOKUP($A461,Economática!$A$3:$AI$823,30,FALSE)/E461>100%),1/0,VLOOKUP($A461,Economática!$A$3:$AI$823,30,FALSE)/E461))","v":""},"",{"$f":"IF($A461=\"\",\"\",IF(OR(VLOOKUP($A461,Economática!$A$3:$AI$823,25,FALSE)=0,VLOOKUP($A461,Economática!$A$3:$AI$823,25,FALSE)=\"-\"),1/0,VLOOKUP($A461,Economática!$A$3:$AI$823,25,FALSE)))","v":""},{"$f":"CONCATENATE(Economática!B439,\" \",Economática!C439)","v":" "}]
[{"$f":"IF(Economática!AG440=\"\",\"\",Economática!AG440)","v":""},{"$f":"IF($A462=\"\",\"\",VLOOKUP(VLOOKUP($A462,Economática!$A$3:$AI$823,6,FALSE),Correção!$B$16:$C$36,2,FALSE))","v":""},{"$f":"IF(Economática!B440=\"\",\"\",Economática!B440)","v":""},{"$f":"IF($A462=\"\",\"\",IF(OR(VLOOKUP($A462,Economática!$A$3:$AI$823,8,FALSE)=0,VLOOKUP($A462,Economática!$A$3:$AI$823,8,FALSE)=\"-\"),1/0,VLOOKUP($A462,Economática!$A$3:$AI$823,8,FALSE)))","v":""},{"$f":"IF(A462=\"\",\"\",IF(ISERROR(VLOOKUP(A462,Correção!$B$2:$G$13,9,FALSE)),VLOOKUP($A462,Economática!$A$3:$AI$823,9,FALSE),VLOOKUP(A462,Correção!$B$2:$G$13,9,FALSE)))","v":""},{"$f":"IF($A462=\"\",\"\",Economática!G440)","v":""},{"$f":"IF($A462=\"\",\"\",IF(OR(VLOOKUP($A462,Economática!$A$3:$AI$823,10,FALSE)=0,VLOOKUP($A462,Economática!$A$3:$AI$823,10,FALSE)=\"-\"),1/0,VLOOKUP($A462,Economática!$A$3:$AI$823,10,FALSE)))","v":""},{"$f":"IF($A462=\"\",\"\",IF(OR(VLOOKUP($A462,Economática!$A$3:$AI$823,11,FALSE)=0,VLOOKUP($A462,Economática!$A$3:$AI$823,11,FALSE)=\"-\"),1/0,VLOOKUP($A462,Economática!$A$3:$AI$823,11,FALSE)))","v":""},{"$f":"IF($A462=\"\",\"\",IF(OR(VLOOKUP($A462,Economática!$A$3:$AI$823,12,FALSE)=0,VLOOKUP($A462,Economática!$A$3:$AI$823,12,FALSE)=\"-\"),1/0,VLOOKUP($A462,Economática!$A$3:$AI$823,12,FALSE)))","v":""},{"$f":"IF($A462=\"\",\"\",IF(OR(VLOOKUP($A462,Economática!$A$3:$AI$823,13,FALSE)=0,VLOOKUP($A462,Economática!$A$3:$AI$823,13,FALSE)=\"-\"),1/0,VLOOKUP($A462,Economática!$A$3:$AI$823,13,FALSE)))","v":""},{"$f":"IF($A462=\"\",\"\",IF(OR(VLOOKUP($A462,Economática!$A$3:$AI$823,14,FALSE)=0,VLOOKUP($A462,Economática!$A$3:$AI$823,14,FALSE)=\"-\"),1/0,VLOOKUP($A462,Economática!$A$3:$AI$823,14,FALSE)))","v":""},{"$f":"IF($A462=\"\",\"\",IF(OR(VLOOKUP($A462,Economática!$A$3:$AI$823,15,FALSE)=0,VLOOKUP($A462,Economática!$A$3:$AI$823,15,FALSE)=\"-\"),1/0,VLOOKUP($A462,Economática!$A$3:$AI$823,15,FALSE)))","v":""},{"$f":"IF($A462=\"\",\"\",IF(OR(VLOOKUP($A462,Economática!$A$3:$AI$823,16,FALSE)=0,VLOOKUP($A462,Economática!$A$3:$AI$823,16,FALSE)=\"-\"),1/0,VLOOKUP($A462,Economática!$A$3:$AI$823,16,FALSE)))","v":""},{"$f":"IF($A462=\"\",\"\",IF(OR(VLOOKUP($A462,Economática!$A$3:$AI$823,17,FALSE)=0,VLOOKUP($A462,Economática!$A$3:$AI$823,17,FALSE)=\"-\"),1/0,VLOOKUP($A462,Economática!$A$3:$AI$823,17,FALSE)))","v":""},{"$f":"IF($A462=\"\",\"\",IF(OR(VLOOKUP($A462,Economática!$A$3:$AI$823,18,FALSE)=0,VLOOKUP($A462,Economática!$A$3:$AI$823,18,FALSE)=\"-\"),1/0,VLOOKUP($A462,Economática!$A$3:$AI$823,18,FALSE)))","v":""},{"$f":"IF($A462=\"\",\"\",IF(OR(VLOOKUP($A462,Economática!$A$3:$AI$823,19,FALSE)=0,VLOOKUP($A462,Economática!$A$3:$AI$823,19,FALSE)=\"-\"),1/0,VLOOKUP($A462,Economática!$A$3:$AI$823,19,FALSE)))","v":""},{"$f":"IF($A462=\"\",\"\",VLOOKUP($A462,Economática!$A$3:$AI$823,20,FALSE)/E462)","v":""},"","","",{"$f":"IF($A462=\"\",\"\",IF(OR(VLOOKUP($A462,Economática!$A$3:$AI$823,21,FALSE)/100=0,VLOOKUP($A462,Economática!$A$3:$AI$823,21,FALSE)/100=\"-\"),1/0,VLOOKUP($A462,Economática!$A$3:$AI$823,21,FALSE)/100))","v":""},{"$f":"IF($A462=\"\",\"\",IF(OR(VLOOKUP($A462,Economática!$A$3:$AI$823,22,FALSE)/100=0,VLOOKUP($A462,Economática!$A$3:$AI$823,22,FALSE)/100=\"-\"),1/0,VLOOKUP($A462,Economática!$A$3:$AI$823,22,FALSE)/100))","v":""},{"$f":"IF($A462=\"\",\"\",IF(OR(VLOOKUP($A462,Economática!$A$3:$AI$823,23,FALSE)=0,VLOOKUP($A462,Economática!$A$3:$AI$823,23,FALSE)=\"-\"),1/0,VLOOKUP($A462,Economática!$A$3:$AI$823,23,FALSE)))","v":""},{"$f":"IF($A462=\"\",\"\",IF(OR(VLOOKUP($A462,Economática!$A$3:$AI$823,24,FALSE)=0,VLOOKUP($A462,Economática!$A$3:$AI$823,24,FALSE)=\"-\"),1/0,VLOOKUP($A462,Economática!$A$3:$AI$823,24,FALSE)))","v":""},{"$f":"IF($A462=\"\",\"\",IF(OR(VLOOKUP($A462,Economática!$A$3:$AI$823,25,FALSE)=0,VLOOKUP($A462,Economática!$A$3:$AI$823,25,FALSE)=\"-\"),1/0,VLOOKUP($A462,Economática!$A$3:$AI$823,25,FALSE)))","v":""},{"$f":"IF($A462=\"\",\"\",IF(ISERROR((F462+VLOOKUP($A462,Economática!$A$3:$AI$823,26,FALSE))/Y462),(F462+VLOOKUP($A462,Economática!$A$3:$AI$823,26,FALSE))/Y462,(F462+VLOOKUP($A462,Economática!$A$3:$AI$823,26,FALSE))/Y462))","v":""},{"$f":"IF($A462=\"\",\"\",IF(OR(-VLOOKUP($A462,Economática!$A$3:$AI$823,27,FALSE)=0,-VLOOKUP($A462,Economática!$A$3:$AI$823,27,FALSE)=\"-\"),1/0,-VLOOKUP($A462,Economática!$A$3:$AI$823,27,FALSE)))","v":""},"",{"$f":"IF($A462=\"\",\"\",IF(OR(VLOOKUP($A462,Economática!$A$3:$AI$823,28,FALSE)=0,VLOOKUP($A462,Economática!$A$3:$AI$823,28,FALSE)=\"-\"),1/0,VLOOKUP($A462,Economática!$A$3:$AI$823,28,FALSE)))","v":""},{"$f":"IF($A462=\"\",\"\",IF(OR(VLOOKUP($A462,Economática!$A$3:$AI$823,29,FALSE)=0,VLOOKUP($A462,Economática!$A$3:$AI$823,29,FALSE)=\"-\"),1/0,VLOOKUP($A462,Economática!$A$3:$AI$823,29,FALSE)))","v":""},{"$f":"IF($A462=\"\",\"\",IF(OR(VLOOKUP($A462,Economática!$A$3:$AI$823,30,FALSE)/E462=0,VLOOKUP($A462,Economática!$A$3:$AI$823,30,FALSE)/E462=\"-\",VLOOKUP($A462,Economática!$A$3:$AI$823,30,FALSE)/E462<33.33%,VLOOKUP($A462,Economática!$A$3:$AI$823,30,FALSE)/E462>100%),1/0,VLOOKUP($A462,Economática!$A$3:$AI$823,30,FALSE)/E462))","v":""},"",{"$f":"IF($A462=\"\",\"\",IF(OR(VLOOKUP($A462,Economática!$A$3:$AI$823,25,FALSE)=0,VLOOKUP($A462,Economática!$A$3:$AI$823,25,FALSE)=\"-\"),1/0,VLOOKUP($A462,Economática!$A$3:$AI$823,25,FALSE)))","v":""},{"$f":"CONCATENATE(Economática!B440,\" \",Economática!C440)","v":" "}]
[{"$f":"IF(Economática!AG441=\"\",\"\",Economática!AG441)","v":""},{"$f":"IF($A463=\"\",\"\",VLOOKUP(VLOOKUP($A463,Economática!$A$3:$AI$823,6,FALSE),Correção!$B$16:$C$36,2,FALSE))","v":""},{"$f":"IF(Economática!B441=\"\",\"\",Economática!B441)","v":""},{"$f":"IF($A463=\"\",\"\",IF(OR(VLOOKUP($A463,Economática!$A$3:$AI$823,8,FALSE)=0,VLOOKUP($A463,Economática!$A$3:$AI$823,8,FALSE)=\"-\"),1/0,VLOOKUP($A463,Economática!$A$3:$AI$823,8,FALSE)))","v":""},{"$f":"IF(A463=\"\",\"\",IF(ISERROR(VLOOKUP(A463,Correção!$B$2:$G$13,9,FALSE)),VLOOKUP($A463,Economática!$A$3:$AI$823,9,FALSE),VLOOKUP(A463,Correção!$B$2:$G$13,9,FALSE)))","v":""},{"$f":"IF($A463=\"\",\"\",Economática!G441)","v":""},{"$f":"IF($A463=\"\",\"\",IF(OR(VLOOKUP($A463,Economática!$A$3:$AI$823,10,FALSE)=0,VLOOKUP($A463,Economática!$A$3:$AI$823,10,FALSE)=\"-\"),1/0,VLOOKUP($A463,Economática!$A$3:$AI$823,10,FALSE)))","v":""},{"$f":"IF($A463=\"\",\"\",IF(OR(VLOOKUP($A463,Economática!$A$3:$AI$823,11,FALSE)=0,VLOOKUP($A463,Economática!$A$3:$AI$823,11,FALSE)=\"-\"),1/0,VLOOKUP($A463,Economática!$A$3:$AI$823,11,FALSE)))","v":""},{"$f":"IF($A463=\"\",\"\",IF(OR(VLOOKUP($A463,Economática!$A$3:$AI$823,12,FALSE)=0,VLOOKUP($A463,Economática!$A$3:$AI$823,12,FALSE)=\"-\"),1/0,VLOOKUP($A463,Economática!$A$3:$AI$823,12,FALSE)))","v":""},{"$f":"IF($A463=\"\",\"\",IF(OR(VLOOKUP($A463,Economática!$A$3:$AI$823,13,FALSE)=0,VLOOKUP($A463,Economática!$A$3:$AI$823,13,FALSE)=\"-\"),1/0,VLOOKUP($A463,Economática!$A$3:$AI$823,13,FALSE)))","v":""},{"$f":"IF($A463=\"\",\"\",IF(OR(VLOOKUP($A463,Economática!$A$3:$AI$823,14,FALSE)=0,VLOOKUP($A463,Economática!$A$3:$AI$823,14,FALSE)=\"-\"),1/0,VLOOKUP($A463,Economática!$A$3:$AI$823,14,FALSE)))","v":""},{"$f":"IF($A463=\"\",\"\",IF(OR(VLOOKUP($A463,Economática!$A$3:$AI$823,15,FALSE)=0,VLOOKUP($A463,Economática!$A$3:$AI$823,15,FALSE)=\"-\"),1/0,VLOOKUP($A463,Economática!$A$3:$AI$823,15,FALSE)))","v":""},{"$f":"IF($A463=\"\",\"\",IF(OR(VLOOKUP($A463,Economática!$A$3:$AI$823,16,FALSE)=0,VLOOKUP($A463,Economática!$A$3:$AI$823,16,FALSE)=\"-\"),1/0,VLOOKUP($A463,Economática!$A$3:$AI$823,16,FALSE)))","v":""},{"$f":"IF($A463=\"\",\"\",IF(OR(VLOOKUP($A463,Economática!$A$3:$AI$823,17,FALSE)=0,VLOOKUP($A463,Economática!$A$3:$AI$823,17,FALSE)=\"-\"),1/0,VLOOKUP($A463,Economática!$A$3:$AI$823,17,FALSE)))","v":""},{"$f":"IF($A463=\"\",\"\",IF(OR(VLOOKUP($A463,Economática!$A$3:$AI$823,18,FALSE)=0,VLOOKUP($A463,Economática!$A$3:$AI$823,18,FALSE)=\"-\"),1/0,VLOOKUP($A463,Economática!$A$3:$AI$823,18,FALSE)))","v":""},{"$f":"IF($A463=\"\",\"\",IF(OR(VLOOKUP($A463,Economática!$A$3:$AI$823,19,FALSE)=0,VLOOKUP($A463,Economática!$A$3:$AI$823,19,FALSE)=\"-\"),1/0,VLOOKUP($A463,Economática!$A$3:$AI$823,19,FALSE)))","v":""},{"$f":"IF($A463=\"\",\"\",VLOOKUP($A463,Economática!$A$3:$AI$823,20,FALSE)/E463)","v":""},"","","",{"$f":"IF($A463=\"\",\"\",IF(OR(VLOOKUP($A463,Economática!$A$3:$AI$823,21,FALSE)/100=0,VLOOKUP($A463,Economática!$A$3:$AI$823,21,FALSE)/100=\"-\"),1/0,VLOOKUP($A463,Economática!$A$3:$AI$823,21,FALSE)/100))","v":""},{"$f":"IF($A463=\"\",\"\",IF(OR(VLOOKUP($A463,Economática!$A$3:$AI$823,22,FALSE)/100=0,VLOOKUP($A463,Economática!$A$3:$AI$823,22,FALSE)/100=\"-\"),1/0,VLOOKUP($A463,Economática!$A$3:$AI$823,22,FALSE)/100))","v":""},{"$f":"IF($A463=\"\",\"\",IF(OR(VLOOKUP($A463,Economática!$A$3:$AI$823,23,FALSE)=0,VLOOKUP($A463,Economática!$A$3:$AI$823,23,FALSE)=\"-\"),1/0,VLOOKUP($A463,Economática!$A$3:$AI$823,23,FALSE)))","v":""},{"$f":"IF($A463=\"\",\"\",IF(OR(VLOOKUP($A463,Economática!$A$3:$AI$823,24,FALSE)=0,VLOOKUP($A463,Economática!$A$3:$AI$823,24,FALSE)=\"-\"),1/0,VLOOKUP($A463,Economática!$A$3:$AI$823,24,FALSE)))","v":""},{"$f":"IF($A463=\"\",\"\",IF(OR(VLOOKUP($A463,Economática!$A$3:$AI$823,25,FALSE)=0,VLOOKUP($A463,Economática!$A$3:$AI$823,25,FALSE)=\"-\"),1/0,VLOOKUP($A463,Economática!$A$3:$AI$823,25,FALSE)))","v":""},{"$f":"IF($A463=\"\",\"\",IF(ISERROR((F463+VLOOKUP($A463,Economática!$A$3:$AI$823,26,FALSE))/Y463),(F463+VLOOKUP($A463,Economática!$A$3:$AI$823,26,FALSE))/Y463,(F463+VLOOKUP($A463,Economática!$A$3:$AI$823,26,FALSE))/Y463))","v":""},{"$f":"IF($A463=\"\",\"\",IF(OR(-VLOOKUP($A463,Economática!$A$3:$AI$823,27,FALSE)=0,-VLOOKUP($A463,Economática!$A$3:$AI$823,27,FALSE)=\"-\"),1/0,-VLOOKUP($A463,Economática!$A$3:$AI$823,27,FALSE)))","v":""},"",{"$f":"IF($A463=\"\",\"\",IF(OR(VLOOKUP($A463,Economática!$A$3:$AI$823,28,FALSE)=0,VLOOKUP($A463,Economática!$A$3:$AI$823,28,FALSE)=\"-\"),1/0,VLOOKUP($A463,Economática!$A$3:$AI$823,28,FALSE)))","v":""},{"$f":"IF($A463=\"\",\"\",IF(OR(VLOOKUP($A463,Economática!$A$3:$AI$823,29,FALSE)=0,VLOOKUP($A463,Economática!$A$3:$AI$823,29,FALSE)=\"-\"),1/0,VLOOKUP($A463,Economática!$A$3:$AI$823,29,FALSE)))","v":""},{"$f":"IF($A463=\"\",\"\",IF(OR(VLOOKUP($A463,Economática!$A$3:$AI$823,30,FALSE)/E463=0,VLOOKUP($A463,Economática!$A$3:$AI$823,30,FALSE)/E463=\"-\",VLOOKUP($A463,Economática!$A$3:$AI$823,30,FALSE)/E463<33.33%,VLOOKUP($A463,Economática!$A$3:$AI$823,30,FALSE)/E463>100%),1/0,VLOOKUP($A463,Economática!$A$3:$AI$823,30,FALSE)/E463))","v":""},"",{"$f":"IF($A463=\"\",\"\",IF(OR(VLOOKUP($A463,Economática!$A$3:$AI$823,25,FALSE)=0,VLOOKUP($A463,Economática!$A$3:$AI$823,25,FALSE)=\"-\"),1/0,VLOOKUP($A463,Economática!$A$3:$AI$823,25,FALSE)))","v":""},{"$f":"CONCATENATE(Economática!B441,\" \",Economática!C441)","v":" "}]
[{"$f":"IF(Economática!AG442=\"\",\"\",Economática!AG442)","v":""},{"$f":"IF($A464=\"\",\"\",VLOOKUP(VLOOKUP($A464,Economática!$A$3:$AI$823,6,FALSE),Correção!$B$16:$C$36,2,FALSE))","v":""},{"$f":"IF(Economática!B442=\"\",\"\",Economática!B442)","v":""},{"$f":"IF($A464=\"\",\"\",IF(OR(VLOOKUP($A464,Economática!$A$3:$AI$823,8,FALSE)=0,VLOOKUP($A464,Economática!$A$3:$AI$823,8,FALSE)=\"-\"),1/0,VLOOKUP($A464,Economática!$A$3:$AI$823,8,FALSE)))","v":""},{"$f":"IF(A464=\"\",\"\",IF(ISERROR(VLOOKUP(A464,Correção!$B$2:$G$13,9,FALSE)),VLOOKUP($A464,Economática!$A$3:$AI$823,9,FALSE),VLOOKUP(A464,Correção!$B$2:$G$13,9,FALSE)))","v":""},{"$f":"IF($A464=\"\",\"\",Economática!G442)","v":""},{"$f":"IF($A464=\"\",\"\",IF(OR(VLOOKUP($A464,Economática!$A$3:$AI$823,10,FALSE)=0,VLOOKUP($A464,Economática!$A$3:$AI$823,10,FALSE)=\"-\"),1/0,VLOOKUP($A464,Economática!$A$3:$AI$823,10,FALSE)))","v":""},{"$f":"IF($A464=\"\",\"\",IF(OR(VLOOKUP($A464,Economática!$A$3:$AI$823,11,FALSE)=0,VLOOKUP($A464,Economática!$A$3:$AI$823,11,FALSE)=\"-\"),1/0,VLOOKUP($A464,Economática!$A$3:$AI$823,11,FALSE)))","v":""},{"$f":"IF($A464=\"\",\"\",IF(OR(VLOOKUP($A464,Economática!$A$3:$AI$823,12,FALSE)=0,VLOOKUP($A464,Economática!$A$3:$AI$823,12,FALSE)=\"-\"),1/0,VLOOKUP($A464,Economática!$A$3:$AI$823,12,FALSE)))","v":""},{"$f":"IF($A464=\"\",\"\",IF(OR(VLOOKUP($A464,Economática!$A$3:$AI$823,13,FALSE)=0,VLOOKUP($A464,Economática!$A$3:$AI$823,13,FALSE)=\"-\"),1/0,VLOOKUP($A464,Economática!$A$3:$AI$823,13,FALSE)))","v":""},{"$f":"IF($A464=\"\",\"\",IF(OR(VLOOKUP($A464,Economática!$A$3:$AI$823,14,FALSE)=0,VLOOKUP($A464,Economática!$A$3:$AI$823,14,FALSE)=\"-\"),1/0,VLOOKUP($A464,Economática!$A$3:$AI$823,14,FALSE)))","v":""},{"$f":"IF($A464=\"\",\"\",IF(OR(VLOOKUP($A464,Economática!$A$3:$AI$823,15,FALSE)=0,VLOOKUP($A464,Economática!$A$3:$AI$823,15,FALSE)=\"-\"),1/0,VLOOKUP($A464,Economática!$A$3:$AI$823,15,FALSE)))","v":""},{"$f":"IF($A464=\"\",\"\",IF(OR(VLOOKUP($A464,Economática!$A$3:$AI$823,16,FALSE)=0,VLOOKUP($A464,Economática!$A$3:$AI$823,16,FALSE)=\"-\"),1/0,VLOOKUP($A464,Economática!$A$3:$AI$823,16,FALSE)))","v":""},{"$f":"IF($A464=\"\",\"\",IF(OR(VLOOKUP($A464,Economática!$A$3:$AI$823,17,FALSE)=0,VLOOKUP($A464,Economática!$A$3:$AI$823,17,FALSE)=\"-\"),1/0,VLOOKUP($A464,Economática!$A$3:$AI$823,17,FALSE)))","v":""},{"$f":"IF($A464=\"\",\"\",IF(OR(VLOOKUP($A464,Economática!$A$3:$AI$823,18,FALSE)=0,VLOOKUP($A464,Economática!$A$3:$AI$823,18,FALSE)=\"-\"),1/0,VLOOKUP($A464,Economática!$A$3:$AI$823,18,FALSE)))","v":""},{"$f":"IF($A464=\"\",\"\",IF(OR(VLOOKUP($A464,Economática!$A$3:$AI$823,19,FALSE)=0,VLOOKUP($A464,Economática!$A$3:$AI$823,19,FALSE)=\"-\"),1/0,VLOOKUP($A464,Economática!$A$3:$AI$823,19,FALSE)))","v":""},{"$f":"IF($A464=\"\",\"\",VLOOKUP($A464,Economática!$A$3:$AI$823,20,FALSE)/E464)","v":""},"","","",{"$f":"IF($A464=\"\",\"\",IF(OR(VLOOKUP($A464,Economática!$A$3:$AI$823,21,FALSE)/100=0,VLOOKUP($A464,Economática!$A$3:$AI$823,21,FALSE)/100=\"-\"),1/0,VLOOKUP($A464,Economática!$A$3:$AI$823,21,FALSE)/100))","v":""},{"$f":"IF($A464=\"\",\"\",IF(OR(VLOOKUP($A464,Economática!$A$3:$AI$823,22,FALSE)/100=0,VLOOKUP($A464,Economática!$A$3:$AI$823,22,FALSE)/100=\"-\"),1/0,VLOOKUP($A464,Economática!$A$3:$AI$823,22,FALSE)/100))","v":""},{"$f":"IF($A464=\"\",\"\",IF(OR(VLOOKUP($A464,Economática!$A$3:$AI$823,23,FALSE)=0,VLOOKUP($A464,Economática!$A$3:$AI$823,23,FALSE)=\"-\"),1/0,VLOOKUP($A464,Economática!$A$3:$AI$823,23,FALSE)))","v":""},{"$f":"IF($A464=\"\",\"\",IF(OR(VLOOKUP($A464,Economática!$A$3:$AI$823,24,FALSE)=0,VLOOKUP($A464,Economática!$A$3:$AI$823,24,FALSE)=\"-\"),1/0,VLOOKUP($A464,Economática!$A$3:$AI$823,24,FALSE)))","v":""},{"$f":"IF($A464=\"\",\"\",IF(OR(VLOOKUP($A464,Economática!$A$3:$AI$823,25,FALSE)=0,VLOOKUP($A464,Economática!$A$3:$AI$823,25,FALSE)=\"-\"),1/0,VLOOKUP($A464,Economática!$A$3:$AI$823,25,FALSE)))","v":""},{"$f":"IF($A464=\"\",\"\",IF(ISERROR((F464+VLOOKUP($A464,Economática!$A$3:$AI$823,26,FALSE))/Y464),(F464+VLOOKUP($A464,Economática!$A$3:$AI$823,26,FALSE))/Y464,(F464+VLOOKUP($A464,Economática!$A$3:$AI$823,26,FALSE))/Y464))","v":""},{"$f":"IF($A464=\"\",\"\",IF(OR(-VLOOKUP($A464,Economática!$A$3:$AI$823,27,FALSE)=0,-VLOOKUP($A464,Economática!$A$3:$AI$823,27,FALSE)=\"-\"),1/0,-VLOOKUP($A464,Economática!$A$3:$AI$823,27,FALSE)))","v":""},"",{"$f":"IF($A464=\"\",\"\",IF(OR(VLOOKUP($A464,Economática!$A$3:$AI$823,28,FALSE)=0,VLOOKUP($A464,Economática!$A$3:$AI$823,28,FALSE)=\"-\"),1/0,VLOOKUP($A464,Economática!$A$3:$AI$823,28,FALSE)))","v":""},{"$f":"IF($A464=\"\",\"\",IF(OR(VLOOKUP($A464,Economática!$A$3:$AI$823,29,FALSE)=0,VLOOKUP($A464,Economática!$A$3:$AI$823,29,FALSE)=\"-\"),1/0,VLOOKUP($A464,Economática!$A$3:$AI$823,29,FALSE)))","v":""},{"$f":"IF($A464=\"\",\"\",IF(OR(VLOOKUP($A464,Economática!$A$3:$AI$823,30,FALSE)/E464=0,VLOOKUP($A464,Economática!$A$3:$AI$823,30,FALSE)/E464=\"-\",VLOOKUP($A464,Economática!$A$3:$AI$823,30,FALSE)/E464<33.33%,VLOOKUP($A464,Economática!$A$3:$AI$823,30,FALSE)/E464>100%),1/0,VLOOKUP($A464,Economática!$A$3:$AI$823,30,FALSE)/E464))","v":""},"",{"$f":"IF($A464=\"\",\"\",IF(OR(VLOOKUP($A464,Economática!$A$3:$AI$823,25,FALSE)=0,VLOOKUP($A464,Economática!$A$3:$AI$823,25,FALSE)=\"-\"),1/0,VLOOKUP($A464,Economática!$A$3:$AI$823,25,FALSE)))","v":""},{"$f":"CONCATENATE(Economática!B442,\" \",Economática!C442)","v":" "}]
[{"$f":"IF(Economática!AG443=\"\",\"\",Economática!AG443)","v":""},{"$f":"IF($A465=\"\",\"\",VLOOKUP(VLOOKUP($A465,Economática!$A$3:$AI$823,6,FALSE),Correção!$B$16:$C$36,2,FALSE))","v":""},{"$f":"IF(Economática!B443=\"\",\"\",Economática!B443)","v":""},{"$f":"IF($A465=\"\",\"\",IF(OR(VLOOKUP($A465,Economática!$A$3:$AI$823,8,FALSE)=0,VLOOKUP($A465,Economática!$A$3:$AI$823,8,FALSE)=\"-\"),1/0,VLOOKUP($A465,Economática!$A$3:$AI$823,8,FALSE)))","v":""},{"$f":"IF(A465=\"\",\"\",IF(ISERROR(VLOOKUP(A465,Correção!$B$2:$G$13,9,FALSE)),VLOOKUP($A465,Economática!$A$3:$AI$823,9,FALSE),VLOOKUP(A465,Correção!$B$2:$G$13,9,FALSE)))","v":""},{"$f":"IF($A465=\"\",\"\",Economática!G443)","v":""},{"$f":"IF($A465=\"\",\"\",IF(OR(VLOOKUP($A465,Economática!$A$3:$AI$823,10,FALSE)=0,VLOOKUP($A465,Economática!$A$3:$AI$823,10,FALSE)=\"-\"),1/0,VLOOKUP($A465,Economática!$A$3:$AI$823,10,FALSE)))","v":""},{"$f":"IF($A465=\"\",\"\",IF(OR(VLOOKUP($A465,Economática!$A$3:$AI$823,11,FALSE)=0,VLOOKUP($A465,Economática!$A$3:$AI$823,11,FALSE)=\"-\"),1/0,VLOOKUP($A465,Economática!$A$3:$AI$823,11,FALSE)))","v":""},{"$f":"IF($A465=\"\",\"\",IF(OR(VLOOKUP($A465,Economática!$A$3:$AI$823,12,FALSE)=0,VLOOKUP($A465,Economática!$A$3:$AI$823,12,FALSE)=\"-\"),1/0,VLOOKUP($A465,Economática!$A$3:$AI$823,12,FALSE)))","v":""},{"$f":"IF($A465=\"\",\"\",IF(OR(VLOOKUP($A465,Economática!$A$3:$AI$823,13,FALSE)=0,VLOOKUP($A465,Economática!$A$3:$AI$823,13,FALSE)=\"-\"),1/0,VLOOKUP($A465,Economática!$A$3:$AI$823,13,FALSE)))","v":""},{"$f":"IF($A465=\"\",\"\",IF(OR(VLOOKUP($A465,Economática!$A$3:$AI$823,14,FALSE)=0,VLOOKUP($A465,Economática!$A$3:$AI$823,14,FALSE)=\"-\"),1/0,VLOOKUP($A465,Economática!$A$3:$AI$823,14,FALSE)))","v":""},{"$f":"IF($A465=\"\",\"\",IF(OR(VLOOKUP($A465,Economática!$A$3:$AI$823,15,FALSE)=0,VLOOKUP($A465,Economática!$A$3:$AI$823,15,FALSE)=\"-\"),1/0,VLOOKUP($A465,Economática!$A$3:$AI$823,15,FALSE)))","v":""},{"$f":"IF($A465=\"\",\"\",IF(OR(VLOOKUP($A465,Economática!$A$3:$AI$823,16,FALSE)=0,VLOOKUP($A465,Economática!$A$3:$AI$823,16,FALSE)=\"-\"),1/0,VLOOKUP($A465,Economática!$A$3:$AI$823,16,FALSE)))","v":""},{"$f":"IF($A465=\"\",\"\",IF(OR(VLOOKUP($A465,Economática!$A$3:$AI$823,17,FALSE)=0,VLOOKUP($A465,Economática!$A$3:$AI$823,17,FALSE)=\"-\"),1/0,VLOOKUP($A465,Economática!$A$3:$AI$823,17,FALSE)))","v":""},{"$f":"IF($A465=\"\",\"\",IF(OR(VLOOKUP($A465,Economática!$A$3:$AI$823,18,FALSE)=0,VLOOKUP($A465,Economática!$A$3:$AI$823,18,FALSE)=\"-\"),1/0,VLOOKUP($A465,Economática!$A$3:$AI$823,18,FALSE)))","v":""},{"$f":"IF($A465=\"\",\"\",IF(OR(VLOOKUP($A465,Economática!$A$3:$AI$823,19,FALSE)=0,VLOOKUP($A465,Economática!$A$3:$AI$823,19,FALSE)=\"-\"),1/0,VLOOKUP($A465,Economática!$A$3:$AI$823,19,FALSE)))","v":""},{"$f":"IF($A465=\"\",\"\",VLOOKUP($A465,Economática!$A$3:$AI$823,20,FALSE)/E465)","v":""},"","","",{"$f":"IF($A465=\"\",\"\",IF(OR(VLOOKUP($A465,Economática!$A$3:$AI$823,21,FALSE)/100=0,VLOOKUP($A465,Economática!$A$3:$AI$823,21,FALSE)/100=\"-\"),1/0,VLOOKUP($A465,Economática!$A$3:$AI$823,21,FALSE)/100))","v":""},{"$f":"IF($A465=\"\",\"\",IF(OR(VLOOKUP($A465,Economática!$A$3:$AI$823,22,FALSE)/100=0,VLOOKUP($A465,Economática!$A$3:$AI$823,22,FALSE)/100=\"-\"),1/0,VLOOKUP($A465,Economática!$A$3:$AI$823,22,FALSE)/100))","v":""},{"$f":"IF($A465=\"\",\"\",IF(OR(VLOOKUP($A465,Economática!$A$3:$AI$823,23,FALSE)=0,VLOOKUP($A465,Economática!$A$3:$AI$823,23,FALSE)=\"-\"),1/0,VLOOKUP($A465,Economática!$A$3:$AI$823,23,FALSE)))","v":""},{"$f":"IF($A465=\"\",\"\",IF(OR(VLOOKUP($A465,Economática!$A$3:$AI$823,24,FALSE)=0,VLOOKUP($A465,Economática!$A$3:$AI$823,24,FALSE)=\"-\"),1/0,VLOOKUP($A465,Economática!$A$3:$AI$823,24,FALSE)))","v":""},{"$f":"IF($A465=\"\",\"\",IF(OR(VLOOKUP($A465,Economática!$A$3:$AI$823,25,FALSE)=0,VLOOKUP($A465,Economática!$A$3:$AI$823,25,FALSE)=\"-\"),1/0,VLOOKUP($A465,Economática!$A$3:$AI$823,25,FALSE)))","v":""},{"$f":"IF($A465=\"\",\"\",IF(ISERROR((F465+VLOOKUP($A465,Economática!$A$3:$AI$823,26,FALSE))/Y465),(F465+VLOOKUP($A465,Economática!$A$3:$AI$823,26,FALSE))/Y465,(F465+VLOOKUP($A465,Economática!$A$3:$AI$823,26,FALSE))/Y465))","v":""},{"$f":"IF($A465=\"\",\"\",IF(OR(-VLOOKUP($A465,Economática!$A$3:$AI$823,27,FALSE)=0,-VLOOKUP($A465,Economática!$A$3:$AI$823,27,FALSE)=\"-\"),1/0,-VLOOKUP($A465,Economática!$A$3:$AI$823,27,FALSE)))","v":""},"",{"$f":"IF($A465=\"\",\"\",IF(OR(VLOOKUP($A465,Economática!$A$3:$AI$823,28,FALSE)=0,VLOOKUP($A465,Economática!$A$3:$AI$823,28,FALSE)=\"-\"),1/0,VLOOKUP($A465,Economática!$A$3:$AI$823,28,FALSE)))","v":""},{"$f":"IF($A465=\"\",\"\",IF(OR(VLOOKUP($A465,Economática!$A$3:$AI$823,29,FALSE)=0,VLOOKUP($A465,Economática!$A$3:$AI$823,29,FALSE)=\"-\"),1/0,VLOOKUP($A465,Economática!$A$3:$AI$823,29,FALSE)))","v":""},{"$f":"IF($A465=\"\",\"\",IF(OR(VLOOKUP($A465,Economática!$A$3:$AI$823,30,FALSE)/E465=0,VLOOKUP($A465,Economática!$A$3:$AI$823,30,FALSE)/E465=\"-\",VLOOKUP($A465,Economática!$A$3:$AI$823,30,FALSE)/E465<33.33%,VLOOKUP($A465,Economática!$A$3:$AI$823,30,FALSE)/E465>100%),1/0,VLOOKUP($A465,Economática!$A$3:$AI$823,30,FALSE)/E465))","v":""},"",{"$f":"IF($A465=\"\",\"\",IF(OR(VLOOKUP($A465,Economática!$A$3:$AI$823,25,FALSE)=0,VLOOKUP($A465,Economática!$A$3:$AI$823,25,FALSE)=\"-\"),1/0,VLOOKUP($A465,Economática!$A$3:$AI$823,25,FALSE)))","v":""},{"$f":"CONCATENATE(Economática!B443,\" \",Economática!C443)","v":" "}]
[{"$f":"IF(Economática!AG444=\"\",\"\",Economática!AG444)","v":""},{"$f":"IF($A466=\"\",\"\",VLOOKUP(VLOOKUP($A466,Economática!$A$3:$AI$823,6,FALSE),Correção!$B$16:$C$36,2,FALSE))","v":""},{"$f":"IF(Economática!B444=\"\",\"\",Economática!B444)","v":""},{"$f":"IF($A466=\"\",\"\",IF(OR(VLOOKUP($A466,Economática!$A$3:$AI$823,8,FALSE)=0,VLOOKUP($A466,Economática!$A$3:$AI$823,8,FALSE)=\"-\"),1/0,VLOOKUP($A466,Economática!$A$3:$AI$823,8,FALSE)))","v":""},{"$f":"IF(A466=\"\",\"\",IF(ISERROR(VLOOKUP(A466,Correção!$B$2:$G$13,9,FALSE)),VLOOKUP($A466,Economática!$A$3:$AI$823,9,FALSE),VLOOKUP(A466,Correção!$B$2:$G$13,9,FALSE)))","v":""},{"$f":"IF($A466=\"\",\"\",Economática!G444)","v":""},{"$f":"IF($A466=\"\",\"\",IF(OR(VLOOKUP($A466,Economática!$A$3:$AI$823,10,FALSE)=0,VLOOKUP($A466,Economática!$A$3:$AI$823,10,FALSE)=\"-\"),1/0,VLOOKUP($A466,Economática!$A$3:$AI$823,10,FALSE)))","v":""},{"$f":"IF($A466=\"\",\"\",IF(OR(VLOOKUP($A466,Economática!$A$3:$AI$823,11,FALSE)=0,VLOOKUP($A466,Economática!$A$3:$AI$823,11,FALSE)=\"-\"),1/0,VLOOKUP($A466,Economática!$A$3:$AI$823,11,FALSE)))","v":""},{"$f":"IF($A466=\"\",\"\",IF(OR(VLOOKUP($A466,Economática!$A$3:$AI$823,12,FALSE)=0,VLOOKUP($A466,Economática!$A$3:$AI$823,12,FALSE)=\"-\"),1/0,VLOOKUP($A466,Economática!$A$3:$AI$823,12,FALSE)))","v":""},{"$f":"IF($A466=\"\",\"\",IF(OR(VLOOKUP($A466,Economática!$A$3:$AI$823,13,FALSE)=0,VLOOKUP($A466,Economática!$A$3:$AI$823,13,FALSE)=\"-\"),1/0,VLOOKUP($A466,Economática!$A$3:$AI$823,13,FALSE)))","v":""},{"$f":"IF($A466=\"\",\"\",IF(OR(VLOOKUP($A466,Economática!$A$3:$AI$823,14,FALSE)=0,VLOOKUP($A466,Economática!$A$3:$AI$823,14,FALSE)=\"-\"),1/0,VLOOKUP($A466,Economática!$A$3:$AI$823,14,FALSE)))","v":""},{"$f":"IF($A466=\"\",\"\",IF(OR(VLOOKUP($A466,Economática!$A$3:$AI$823,15,FALSE)=0,VLOOKUP($A466,Economática!$A$3:$AI$823,15,FALSE)=\"-\"),1/0,VLOOKUP($A466,Economática!$A$3:$AI$823,15,FALSE)))","v":""},{"$f":"IF($A466=\"\",\"\",IF(OR(VLOOKUP($A466,Economática!$A$3:$AI$823,16,FALSE)=0,VLOOKUP($A466,Economática!$A$3:$AI$823,16,FALSE)=\"-\"),1/0,VLOOKUP($A466,Economática!$A$3:$AI$823,16,FALSE)))","v":""},{"$f":"IF($A466=\"\",\"\",IF(OR(VLOOKUP($A466,Economática!$A$3:$AI$823,17,FALSE)=0,VLOOKUP($A466,Economática!$A$3:$AI$823,17,FALSE)=\"-\"),1/0,VLOOKUP($A466,Economática!$A$3:$AI$823,17,FALSE)))","v":""},{"$f":"IF($A466=\"\",\"\",IF(OR(VLOOKUP($A466,Economática!$A$3:$AI$823,18,FALSE)=0,VLOOKUP($A466,Economática!$A$3:$AI$823,18,FALSE)=\"-\"),1/0,VLOOKUP($A466,Economática!$A$3:$AI$823,18,FALSE)))","v":""},{"$f":"IF($A466=\"\",\"\",IF(OR(VLOOKUP($A466,Economática!$A$3:$AI$823,19,FALSE)=0,VLOOKUP($A466,Economática!$A$3:$AI$823,19,FALSE)=\"-\"),1/0,VLOOKUP($A466,Economática!$A$3:$AI$823,19,FALSE)))","v":""},{"$f":"IF($A466=\"\",\"\",VLOOKUP($A466,Economática!$A$3:$AI$823,20,FALSE)/E466)","v":""},"","","",{"$f":"IF($A466=\"\",\"\",IF(OR(VLOOKUP($A466,Economática!$A$3:$AI$823,21,FALSE)/100=0,VLOOKUP($A466,Economática!$A$3:$AI$823,21,FALSE)/100=\"-\"),1/0,VLOOKUP($A466,Economática!$A$3:$AI$823,21,FALSE)/100))","v":""},{"$f":"IF($A466=\"\",\"\",IF(OR(VLOOKUP($A466,Economática!$A$3:$AI$823,22,FALSE)/100=0,VLOOKUP($A466,Economática!$A$3:$AI$823,22,FALSE)/100=\"-\"),1/0,VLOOKUP($A466,Economática!$A$3:$AI$823,22,FALSE)/100))","v":""},{"$f":"IF($A466=\"\",\"\",IF(OR(VLOOKUP($A466,Economática!$A$3:$AI$823,23,FALSE)=0,VLOOKUP($A466,Economática!$A$3:$AI$823,23,FALSE)=\"-\"),1/0,VLOOKUP($A466,Economática!$A$3:$AI$823,23,FALSE)))","v":""},{"$f":"IF($A466=\"\",\"\",IF(OR(VLOOKUP($A466,Economática!$A$3:$AI$823,24,FALSE)=0,VLOOKUP($A466,Economática!$A$3:$AI$823,24,FALSE)=\"-\"),1/0,VLOOKUP($A466,Economática!$A$3:$AI$823,24,FALSE)))","v":""},{"$f":"IF($A466=\"\",\"\",IF(OR(VLOOKUP($A466,Economática!$A$3:$AI$823,25,FALSE)=0,VLOOKUP($A466,Economática!$A$3:$AI$823,25,FALSE)=\"-\"),1/0,VLOOKUP($A466,Economática!$A$3:$AI$823,25,FALSE)))","v":""},{"$f":"IF($A466=\"\",\"\",IF(ISERROR((F466+VLOOKUP($A466,Economática!$A$3:$AI$823,26,FALSE))/Y466),(F466+VLOOKUP($A466,Economática!$A$3:$AI$823,26,FALSE))/Y466,(F466+VLOOKUP($A466,Economática!$A$3:$AI$823,26,FALSE))/Y466))","v":""},{"$f":"IF($A466=\"\",\"\",IF(OR(-VLOOKUP($A466,Economática!$A$3:$AI$823,27,FALSE)=0,-VLOOKUP($A466,Economática!$A$3:$AI$823,27,FALSE)=\"-\"),1/0,-VLOOKUP($A466,Economática!$A$3:$AI$823,27,FALSE)))","v":""},"",{"$f":"IF($A466=\"\",\"\",IF(OR(VLOOKUP($A466,Economática!$A$3:$AI$823,28,FALSE)=0,VLOOKUP($A466,Economática!$A$3:$AI$823,28,FALSE)=\"-\"),1/0,VLOOKUP($A466,Economática!$A$3:$AI$823,28,FALSE)))","v":""},{"$f":"IF($A466=\"\",\"\",IF(OR(VLOOKUP($A466,Economática!$A$3:$AI$823,29,FALSE)=0,VLOOKUP($A466,Economática!$A$3:$AI$823,29,FALSE)=\"-\"),1/0,VLOOKUP($A466,Economática!$A$3:$AI$823,29,FALSE)))","v":""},{"$f":"IF($A466=\"\",\"\",IF(OR(VLOOKUP($A466,Economática!$A$3:$AI$823,30,FALSE)/E466=0,VLOOKUP($A466,Economática!$A$3:$AI$823,30,FALSE)/E466=\"-\",VLOOKUP($A466,Economática!$A$3:$AI$823,30,FALSE)/E466<33.33%,VLOOKUP($A466,Economática!$A$3:$AI$823,30,FALSE)/E466>100%),1/0,VLOOKUP($A466,Economática!$A$3:$AI$823,30,FALSE)/E466))","v":""},"",{"$f":"IF($A466=\"\",\"\",IF(OR(VLOOKUP($A466,Economática!$A$3:$AI$823,25,FALSE)=0,VLOOKUP($A466,Economática!$A$3:$AI$823,25,FALSE)=\"-\"),1/0,VLOOKUP($A466,Economática!$A$3:$AI$823,25,FALSE)))","v":""},{"$f":"CONCATENATE(Economática!B444,\" \",Economática!C444)","v":" "}]
[{"$f":"IF(Economática!AG445=\"\",\"\",Economática!AG445)","v":""},{"$f":"IF($A467=\"\",\"\",VLOOKUP(VLOOKUP($A467,Economática!$A$3:$AI$823,6,FALSE),Correção!$B$16:$C$36,2,FALSE))","v":""},{"$f":"IF(Economática!B445=\"\",\"\",Economática!B445)","v":""},{"$f":"IF($A467=\"\",\"\",IF(OR(VLOOKUP($A467,Economática!$A$3:$AI$823,8,FALSE)=0,VLOOKUP($A467,Economática!$A$3:$AI$823,8,FALSE)=\"-\"),1/0,VLOOKUP($A467,Economática!$A$3:$AI$823,8,FALSE)))","v":""},{"$f":"IF(A467=\"\",\"\",IF(ISERROR(VLOOKUP(A467,Correção!$B$2:$G$13,9,FALSE)),VLOOKUP($A467,Economática!$A$3:$AI$823,9,FALSE),VLOOKUP(A467,Correção!$B$2:$G$13,9,FALSE)))","v":""},{"$f":"IF($A467=\"\",\"\",Economática!G445)","v":""},{"$f":"IF($A467=\"\",\"\",IF(OR(VLOOKUP($A467,Economática!$A$3:$AI$823,10,FALSE)=0,VLOOKUP($A467,Economática!$A$3:$AI$823,10,FALSE)=\"-\"),1/0,VLOOKUP($A467,Economática!$A$3:$AI$823,10,FALSE)))","v":""},{"$f":"IF($A467=\"\",\"\",IF(OR(VLOOKUP($A467,Economática!$A$3:$AI$823,11,FALSE)=0,VLOOKUP($A467,Economática!$A$3:$AI$823,11,FALSE)=\"-\"),1/0,VLOOKUP($A467,Economática!$A$3:$AI$823,11,FALSE)))","v":""},{"$f":"IF($A467=\"\",\"\",IF(OR(VLOOKUP($A467,Economática!$A$3:$AI$823,12,FALSE)=0,VLOOKUP($A467,Economática!$A$3:$AI$823,12,FALSE)=\"-\"),1/0,VLOOKUP($A467,Economática!$A$3:$AI$823,12,FALSE)))","v":""},{"$f":"IF($A467=\"\",\"\",IF(OR(VLOOKUP($A467,Economática!$A$3:$AI$823,13,FALSE)=0,VLOOKUP($A467,Economática!$A$3:$AI$823,13,FALSE)=\"-\"),1/0,VLOOKUP($A467,Economática!$A$3:$AI$823,13,FALSE)))","v":""},{"$f":"IF($A467=\"\",\"\",IF(OR(VLOOKUP($A467,Economática!$A$3:$AI$823,14,FALSE)=0,VLOOKUP($A467,Economática!$A$3:$AI$823,14,FALSE)=\"-\"),1/0,VLOOKUP($A467,Economática!$A$3:$AI$823,14,FALSE)))","v":""},{"$f":"IF($A467=\"\",\"\",IF(OR(VLOOKUP($A467,Economática!$A$3:$AI$823,15,FALSE)=0,VLOOKUP($A467,Economática!$A$3:$AI$823,15,FALSE)=\"-\"),1/0,VLOOKUP($A467,Economática!$A$3:$AI$823,15,FALSE)))","v":""},{"$f":"IF($A467=\"\",\"\",IF(OR(VLOOKUP($A467,Economática!$A$3:$AI$823,16,FALSE)=0,VLOOKUP($A467,Economática!$A$3:$AI$823,16,FALSE)=\"-\"),1/0,VLOOKUP($A467,Economática!$A$3:$AI$823,16,FALSE)))","v":""},{"$f":"IF($A467=\"\",\"\",IF(OR(VLOOKUP($A467,Economática!$A$3:$AI$823,17,FALSE)=0,VLOOKUP($A467,Economática!$A$3:$AI$823,17,FALSE)=\"-\"),1/0,VLOOKUP($A467,Economática!$A$3:$AI$823,17,FALSE)))","v":""},{"$f":"IF($A467=\"\",\"\",IF(OR(VLOOKUP($A467,Economática!$A$3:$AI$823,18,FALSE)=0,VLOOKUP($A467,Economática!$A$3:$AI$823,18,FALSE)=\"-\"),1/0,VLOOKUP($A467,Economática!$A$3:$AI$823,18,FALSE)))","v":""},{"$f":"IF($A467=\"\",\"\",IF(OR(VLOOKUP($A467,Economática!$A$3:$AI$823,19,FALSE)=0,VLOOKUP($A467,Economática!$A$3:$AI$823,19,FALSE)=\"-\"),1/0,VLOOKUP($A467,Economática!$A$3:$AI$823,19,FALSE)))","v":""},{"$f":"IF($A467=\"\",\"\",VLOOKUP($A467,Economática!$A$3:$AI$823,20,FALSE)/E467)","v":""},"","","",{"$f":"IF($A467=\"\",\"\",IF(OR(VLOOKUP($A467,Economática!$A$3:$AI$823,21,FALSE)/100=0,VLOOKUP($A467,Economática!$A$3:$AI$823,21,FALSE)/100=\"-\"),1/0,VLOOKUP($A467,Economática!$A$3:$AI$823,21,FALSE)/100))","v":""},{"$f":"IF($A467=\"\",\"\",IF(OR(VLOOKUP($A467,Economática!$A$3:$AI$823,22,FALSE)/100=0,VLOOKUP($A467,Economática!$A$3:$AI$823,22,FALSE)/100=\"-\"),1/0,VLOOKUP($A467,Economática!$A$3:$AI$823,22,FALSE)/100))","v":""},{"$f":"IF($A467=\"\",\"\",IF(OR(VLOOKUP($A467,Economática!$A$3:$AI$823,23,FALSE)=0,VLOOKUP($A467,Economática!$A$3:$AI$823,23,FALSE)=\"-\"),1/0,VLOOKUP($A467,Economática!$A$3:$AI$823,23,FALSE)))","v":""},{"$f":"IF($A467=\"\",\"\",IF(OR(VLOOKUP($A467,Economática!$A$3:$AI$823,24,FALSE)=0,VLOOKUP($A467,Economática!$A$3:$AI$823,24,FALSE)=\"-\"),1/0,VLOOKUP($A467,Economática!$A$3:$AI$823,24,FALSE)))","v":""},{"$f":"IF($A467=\"\",\"\",IF(OR(VLOOKUP($A467,Economática!$A$3:$AI$823,25,FALSE)=0,VLOOKUP($A467,Economática!$A$3:$AI$823,25,FALSE)=\"-\"),1/0,VLOOKUP($A467,Economática!$A$3:$AI$823,25,FALSE)))","v":""},{"$f":"IF($A467=\"\",\"\",IF(ISERROR((F467+VLOOKUP($A467,Economática!$A$3:$AI$823,26,FALSE))/Y467),(F467+VLOOKUP($A467,Economática!$A$3:$AI$823,26,FALSE))/Y467,(F467+VLOOKUP($A467,Economática!$A$3:$AI$823,26,FALSE))/Y467))","v":""},{"$f":"IF($A467=\"\",\"\",IF(OR(-VLOOKUP($A467,Economática!$A$3:$AI$823,27,FALSE)=0,-VLOOKUP($A467,Economática!$A$3:$AI$823,27,FALSE)=\"-\"),1/0,-VLOOKUP($A467,Economática!$A$3:$AI$823,27,FALSE)))","v":""},"",{"$f":"IF($A467=\"\",\"\",IF(OR(VLOOKUP($A467,Economática!$A$3:$AI$823,28,FALSE)=0,VLOOKUP($A467,Economática!$A$3:$AI$823,28,FALSE)=\"-\"),1/0,VLOOKUP($A467,Economática!$A$3:$AI$823,28,FALSE)))","v":""},{"$f":"IF($A467=\"\",\"\",IF(OR(VLOOKUP($A467,Economática!$A$3:$AI$823,29,FALSE)=0,VLOOKUP($A467,Economática!$A$3:$AI$823,29,FALSE)=\"-\"),1/0,VLOOKUP($A467,Economática!$A$3:$AI$823,29,FALSE)))","v":""},{"$f":"IF($A467=\"\",\"\",IF(OR(VLOOKUP($A467,Economática!$A$3:$AI$823,30,FALSE)/E467=0,VLOOKUP($A467,Economática!$A$3:$AI$823,30,FALSE)/E467=\"-\",VLOOKUP($A467,Economática!$A$3:$AI$823,30,FALSE)/E467<33.33%,VLOOKUP($A467,Economática!$A$3:$AI$823,30,FALSE)/E467>100%),1/0,VLOOKUP($A467,Economática!$A$3:$AI$823,30,FALSE)/E467))","v":""},"",{"$f":"IF($A467=\"\",\"\",IF(OR(VLOOKUP($A467,Economática!$A$3:$AI$823,25,FALSE)=0,VLOOKUP($A467,Economática!$A$3:$AI$823,25,FALSE)=\"-\"),1/0,VLOOKUP($A467,Economática!$A$3:$AI$823,25,FALSE)))","v":""},{"$f":"CONCATENATE(Economática!B445,\" \",Economática!C445)","v":" "}]
[{"$f":"IF(Economática!AG446=\"\",\"\",Economática!AG446)","v":""},{"$f":"IF($A468=\"\",\"\",VLOOKUP(VLOOKUP($A468,Economática!$A$3:$AI$823,6,FALSE),Correção!$B$16:$C$36,2,FALSE))","v":""},{"$f":"IF(Economática!B446=\"\",\"\",Economática!B446)","v":""},{"$f":"IF($A468=\"\",\"\",IF(OR(VLOOKUP($A468,Economática!$A$3:$AI$823,8,FALSE)=0,VLOOKUP($A468,Economática!$A$3:$AI$823,8,FALSE)=\"-\"),1/0,VLOOKUP($A468,Economática!$A$3:$AI$823,8,FALSE)))","v":""},{"$f":"IF(A468=\"\",\"\",IF(ISERROR(VLOOKUP(A468,Correção!$B$2:$G$13,9,FALSE)),VLOOKUP($A468,Economática!$A$3:$AI$823,9,FALSE),VLOOKUP(A468,Correção!$B$2:$G$13,9,FALSE)))","v":""},{"$f":"IF($A468=\"\",\"\",Economática!G446)","v":""},{"$f":"IF($A468=\"\",\"\",IF(OR(VLOOKUP($A468,Economática!$A$3:$AI$823,10,FALSE)=0,VLOOKUP($A468,Economática!$A$3:$AI$823,10,FALSE)=\"-\"),1/0,VLOOKUP($A468,Economática!$A$3:$AI$823,10,FALSE)))","v":""},{"$f":"IF($A468=\"\",\"\",IF(OR(VLOOKUP($A468,Economática!$A$3:$AI$823,11,FALSE)=0,VLOOKUP($A468,Economática!$A$3:$AI$823,11,FALSE)=\"-\"),1/0,VLOOKUP($A468,Economática!$A$3:$AI$823,11,FALSE)))","v":""},{"$f":"IF($A468=\"\",\"\",IF(OR(VLOOKUP($A468,Economática!$A$3:$AI$823,12,FALSE)=0,VLOOKUP($A468,Economática!$A$3:$AI$823,12,FALSE)=\"-\"),1/0,VLOOKUP($A468,Economática!$A$3:$AI$823,12,FALSE)))","v":""},{"$f":"IF($A468=\"\",\"\",IF(OR(VLOOKUP($A468,Economática!$A$3:$AI$823,13,FALSE)=0,VLOOKUP($A468,Economática!$A$3:$AI$823,13,FALSE)=\"-\"),1/0,VLOOKUP($A468,Economática!$A$3:$AI$823,13,FALSE)))","v":""},{"$f":"IF($A468=\"\",\"\",IF(OR(VLOOKUP($A468,Economática!$A$3:$AI$823,14,FALSE)=0,VLOOKUP($A468,Economática!$A$3:$AI$823,14,FALSE)=\"-\"),1/0,VLOOKUP($A468,Economática!$A$3:$AI$823,14,FALSE)))","v":""},{"$f":"IF($A468=\"\",\"\",IF(OR(VLOOKUP($A468,Economática!$A$3:$AI$823,15,FALSE)=0,VLOOKUP($A468,Economática!$A$3:$AI$823,15,FALSE)=\"-\"),1/0,VLOOKUP($A468,Economática!$A$3:$AI$823,15,FALSE)))","v":""},{"$f":"IF($A468=\"\",\"\",IF(OR(VLOOKUP($A468,Economática!$A$3:$AI$823,16,FALSE)=0,VLOOKUP($A468,Economática!$A$3:$AI$823,16,FALSE)=\"-\"),1/0,VLOOKUP($A468,Economática!$A$3:$AI$823,16,FALSE)))","v":""},{"$f":"IF($A468=\"\",\"\",IF(OR(VLOOKUP($A468,Economática!$A$3:$AI$823,17,FALSE)=0,VLOOKUP($A468,Economática!$A$3:$AI$823,17,FALSE)=\"-\"),1/0,VLOOKUP($A468,Economática!$A$3:$AI$823,17,FALSE)))","v":""},{"$f":"IF($A468=\"\",\"\",IF(OR(VLOOKUP($A468,Economática!$A$3:$AI$823,18,FALSE)=0,VLOOKUP($A468,Economática!$A$3:$AI$823,18,FALSE)=\"-\"),1/0,VLOOKUP($A468,Economática!$A$3:$AI$823,18,FALSE)))","v":""},{"$f":"IF($A468=\"\",\"\",IF(OR(VLOOKUP($A468,Economática!$A$3:$AI$823,19,FALSE)=0,VLOOKUP($A468,Economática!$A$3:$AI$823,19,FALSE)=\"-\"),1/0,VLOOKUP($A468,Economática!$A$3:$AI$823,19,FALSE)))","v":""},{"$f":"IF($A468=\"\",\"\",VLOOKUP($A468,Economática!$A$3:$AI$823,20,FALSE)/E468)","v":""},"","","",{"$f":"IF($A468=\"\",\"\",IF(OR(VLOOKUP($A468,Economática!$A$3:$AI$823,21,FALSE)/100=0,VLOOKUP($A468,Economática!$A$3:$AI$823,21,FALSE)/100=\"-\"),1/0,VLOOKUP($A468,Economática!$A$3:$AI$823,21,FALSE)/100))","v":""},{"$f":"IF($A468=\"\",\"\",IF(OR(VLOOKUP($A468,Economática!$A$3:$AI$823,22,FALSE)/100=0,VLOOKUP($A468,Economática!$A$3:$AI$823,22,FALSE)/100=\"-\"),1/0,VLOOKUP($A468,Economática!$A$3:$AI$823,22,FALSE)/100))","v":""},{"$f":"IF($A468=\"\",\"\",IF(OR(VLOOKUP($A468,Economática!$A$3:$AI$823,23,FALSE)=0,VLOOKUP($A468,Economática!$A$3:$AI$823,23,FALSE)=\"-\"),1/0,VLOOKUP($A468,Economática!$A$3:$AI$823,23,FALSE)))","v":""},{"$f":"IF($A468=\"\",\"\",IF(OR(VLOOKUP($A468,Economática!$A$3:$AI$823,24,FALSE)=0,VLOOKUP($A468,Economática!$A$3:$AI$823,24,FALSE)=\"-\"),1/0,VLOOKUP($A468,Economática!$A$3:$AI$823,24,FALSE)))","v":""},{"$f":"IF($A468=\"\",\"\",IF(OR(VLOOKUP($A468,Economática!$A$3:$AI$823,25,FALSE)=0,VLOOKUP($A468,Economática!$A$3:$AI$823,25,FALSE)=\"-\"),1/0,VLOOKUP($A468,Economática!$A$3:$AI$823,25,FALSE)))","v":""},{"$f":"IF($A468=\"\",\"\",IF(ISERROR((F468+VLOOKUP($A468,Economática!$A$3:$AI$823,26,FALSE))/Y468),(F468+VLOOKUP($A468,Economática!$A$3:$AI$823,26,FALSE))/Y468,(F468+VLOOKUP($A468,Economática!$A$3:$AI$823,26,FALSE))/Y468))","v":""},{"$f":"IF($A468=\"\",\"\",IF(OR(-VLOOKUP($A468,Economática!$A$3:$AI$823,27,FALSE)=0,-VLOOKUP($A468,Economática!$A$3:$AI$823,27,FALSE)=\"-\"),1/0,-VLOOKUP($A468,Economática!$A$3:$AI$823,27,FALSE)))","v":""},"",{"$f":"IF($A468=\"\",\"\",IF(OR(VLOOKUP($A468,Economática!$A$3:$AI$823,28,FALSE)=0,VLOOKUP($A468,Economática!$A$3:$AI$823,28,FALSE)=\"-\"),1/0,VLOOKUP($A468,Economática!$A$3:$AI$823,28,FALSE)))","v":""},{"$f":"IF($A468=\"\",\"\",IF(OR(VLOOKUP($A468,Economática!$A$3:$AI$823,29,FALSE)=0,VLOOKUP($A468,Economática!$A$3:$AI$823,29,FALSE)=\"-\"),1/0,VLOOKUP($A468,Economática!$A$3:$AI$823,29,FALSE)))","v":""},{"$f":"IF($A468=\"\",\"\",IF(OR(VLOOKUP($A468,Economática!$A$3:$AI$823,30,FALSE)/E468=0,VLOOKUP($A468,Economática!$A$3:$AI$823,30,FALSE)/E468=\"-\",VLOOKUP($A468,Economática!$A$3:$AI$823,30,FALSE)/E468<33.33%,VLOOKUP($A468,Economática!$A$3:$AI$823,30,FALSE)/E468>100%),1/0,VLOOKUP($A468,Economática!$A$3:$AI$823,30,FALSE)/E468))","v":""},"",{"$f":"IF($A468=\"\",\"\",IF(OR(VLOOKUP($A468,Economática!$A$3:$AI$823,25,FALSE)=0,VLOOKUP($A468,Economática!$A$3:$AI$823,25,FALSE)=\"-\"),1/0,VLOOKUP($A468,Economática!$A$3:$AI$823,25,FALSE)))","v":""},{"$f":"CONCATENATE(Economática!B446,\" \",Economática!C446)","v":" "}]
[{"$f":"IF(Economática!AG447=\"\",\"\",Economática!AG447)","v":""},{"$f":"IF($A469=\"\",\"\",VLOOKUP(VLOOKUP($A469,Economática!$A$3:$AI$823,6,FALSE),Correção!$B$16:$C$36,2,FALSE))","v":""},{"$f":"IF(Economática!B447=\"\",\"\",Economática!B447)","v":""},{"$f":"IF($A469=\"\",\"\",IF(OR(VLOOKUP($A469,Economática!$A$3:$AI$823,8,FALSE)=0,VLOOKUP($A469,Economática!$A$3:$AI$823,8,FALSE)=\"-\"),1/0,VLOOKUP($A469,Economática!$A$3:$AI$823,8,FALSE)))","v":""},{"$f":"IF(A469=\"\",\"\",IF(ISERROR(VLOOKUP(A469,Correção!$B$2:$G$13,9,FALSE)),VLOOKUP($A469,Economática!$A$3:$AI$823,9,FALSE),VLOOKUP(A469,Correção!$B$2:$G$13,9,FALSE)))","v":""},{"$f":"IF($A469=\"\",\"\",Economática!G447)","v":""},{"$f":"IF($A469=\"\",\"\",IF(OR(VLOOKUP($A469,Economática!$A$3:$AI$823,10,FALSE)=0,VLOOKUP($A469,Economática!$A$3:$AI$823,10,FALSE)=\"-\"),1/0,VLOOKUP($A469,Economática!$A$3:$AI$823,10,FALSE)))","v":""},{"$f":"IF($A469=\"\",\"\",IF(OR(VLOOKUP($A469,Economática!$A$3:$AI$823,11,FALSE)=0,VLOOKUP($A469,Economática!$A$3:$AI$823,11,FALSE)=\"-\"),1/0,VLOOKUP($A469,Economática!$A$3:$AI$823,11,FALSE)))","v":""},{"$f":"IF($A469=\"\",\"\",IF(OR(VLOOKUP($A469,Economática!$A$3:$AI$823,12,FALSE)=0,VLOOKUP($A469,Economática!$A$3:$AI$823,12,FALSE)=\"-\"),1/0,VLOOKUP($A469,Economática!$A$3:$AI$823,12,FALSE)))","v":""},{"$f":"IF($A469=\"\",\"\",IF(OR(VLOOKUP($A469,Economática!$A$3:$AI$823,13,FALSE)=0,VLOOKUP($A469,Economática!$A$3:$AI$823,13,FALSE)=\"-\"),1/0,VLOOKUP($A469,Economática!$A$3:$AI$823,13,FALSE)))","v":""},{"$f":"IF($A469=\"\",\"\",IF(OR(VLOOKUP($A469,Economática!$A$3:$AI$823,14,FALSE)=0,VLOOKUP($A469,Economática!$A$3:$AI$823,14,FALSE)=\"-\"),1/0,VLOOKUP($A469,Economática!$A$3:$AI$823,14,FALSE)))","v":""},{"$f":"IF($A469=\"\",\"\",IF(OR(VLOOKUP($A469,Economática!$A$3:$AI$823,15,FALSE)=0,VLOOKUP($A469,Economática!$A$3:$AI$823,15,FALSE)=\"-\"),1/0,VLOOKUP($A469,Economática!$A$3:$AI$823,15,FALSE)))","v":""},{"$f":"IF($A469=\"\",\"\",IF(OR(VLOOKUP($A469,Economática!$A$3:$AI$823,16,FALSE)=0,VLOOKUP($A469,Economática!$A$3:$AI$823,16,FALSE)=\"-\"),1/0,VLOOKUP($A469,Economática!$A$3:$AI$823,16,FALSE)))","v":""},{"$f":"IF($A469=\"\",\"\",IF(OR(VLOOKUP($A469,Economática!$A$3:$AI$823,17,FALSE)=0,VLOOKUP($A469,Economática!$A$3:$AI$823,17,FALSE)=\"-\"),1/0,VLOOKUP($A469,Economática!$A$3:$AI$823,17,FALSE)))","v":""},{"$f":"IF($A469=\"\",\"\",IF(OR(VLOOKUP($A469,Economática!$A$3:$AI$823,18,FALSE)=0,VLOOKUP($A469,Economática!$A$3:$AI$823,18,FALSE)=\"-\"),1/0,VLOOKUP($A469,Economática!$A$3:$AI$823,18,FALSE)))","v":""},{"$f":"IF($A469=\"\",\"\",IF(OR(VLOOKUP($A469,Economática!$A$3:$AI$823,19,FALSE)=0,VLOOKUP($A469,Economática!$A$3:$AI$823,19,FALSE)=\"-\"),1/0,VLOOKUP($A469,Economática!$A$3:$AI$823,19,FALSE)))","v":""},{"$f":"IF($A469=\"\",\"\",VLOOKUP($A469,Economática!$A$3:$AI$823,20,FALSE)/E469)","v":""},"","","",{"$f":"IF($A469=\"\",\"\",IF(OR(VLOOKUP($A469,Economática!$A$3:$AI$823,21,FALSE)/100=0,VLOOKUP($A469,Economática!$A$3:$AI$823,21,FALSE)/100=\"-\"),1/0,VLOOKUP($A469,Economática!$A$3:$AI$823,21,FALSE)/100))","v":""},{"$f":"IF($A469=\"\",\"\",IF(OR(VLOOKUP($A469,Economática!$A$3:$AI$823,22,FALSE)/100=0,VLOOKUP($A469,Economática!$A$3:$AI$823,22,FALSE)/100=\"-\"),1/0,VLOOKUP($A469,Economática!$A$3:$AI$823,22,FALSE)/100))","v":""},{"$f":"IF($A469=\"\",\"\",IF(OR(VLOOKUP($A469,Economática!$A$3:$AI$823,23,FALSE)=0,VLOOKUP($A469,Economática!$A$3:$AI$823,23,FALSE)=\"-\"),1/0,VLOOKUP($A469,Economática!$A$3:$AI$823,23,FALSE)))","v":""},{"$f":"IF($A469=\"\",\"\",IF(OR(VLOOKUP($A469,Economática!$A$3:$AI$823,24,FALSE)=0,VLOOKUP($A469,Economática!$A$3:$AI$823,24,FALSE)=\"-\"),1/0,VLOOKUP($A469,Economática!$A$3:$AI$823,24,FALSE)))","v":""},{"$f":"IF($A469=\"\",\"\",IF(OR(VLOOKUP($A469,Economática!$A$3:$AI$823,25,FALSE)=0,VLOOKUP($A469,Economática!$A$3:$AI$823,25,FALSE)=\"-\"),1/0,VLOOKUP($A469,Economática!$A$3:$AI$823,25,FALSE)))","v":""},{"$f":"IF($A469=\"\",\"\",IF(ISERROR((F469+VLOOKUP($A469,Economática!$A$3:$AI$823,26,FALSE))/Y469),(F469+VLOOKUP($A469,Economática!$A$3:$AI$823,26,FALSE))/Y469,(F469+VLOOKUP($A469,Economática!$A$3:$AI$823,26,FALSE))/Y469))","v":""},{"$f":"IF($A469=\"\",\"\",IF(OR(-VLOOKUP($A469,Economática!$A$3:$AI$823,27,FALSE)=0,-VLOOKUP($A469,Economática!$A$3:$AI$823,27,FALSE)=\"-\"),1/0,-VLOOKUP($A469,Economática!$A$3:$AI$823,27,FALSE)))","v":""},"",{"$f":"IF($A469=\"\",\"\",IF(OR(VLOOKUP($A469,Economática!$A$3:$AI$823,28,FALSE)=0,VLOOKUP($A469,Economática!$A$3:$AI$823,28,FALSE)=\"-\"),1/0,VLOOKUP($A469,Economática!$A$3:$AI$823,28,FALSE)))","v":""},{"$f":"IF($A469=\"\",\"\",IF(OR(VLOOKUP($A469,Economática!$A$3:$AI$823,29,FALSE)=0,VLOOKUP($A469,Economática!$A$3:$AI$823,29,FALSE)=\"-\"),1/0,VLOOKUP($A469,Economática!$A$3:$AI$823,29,FALSE)))","v":""},{"$f":"IF($A469=\"\",\"\",IF(OR(VLOOKUP($A469,Economática!$A$3:$AI$823,30,FALSE)/E469=0,VLOOKUP($A469,Economática!$A$3:$AI$823,30,FALSE)/E469=\"-\",VLOOKUP($A469,Economática!$A$3:$AI$823,30,FALSE)/E469<33.33%,VLOOKUP($A469,Economática!$A$3:$AI$823,30,FALSE)/E469>100%),1/0,VLOOKUP($A469,Economática!$A$3:$AI$823,30,FALSE)/E469))","v":""},"",{"$f":"IF($A469=\"\",\"\",IF(OR(VLOOKUP($A469,Economática!$A$3:$AI$823,25,FALSE)=0,VLOOKUP($A469,Economática!$A$3:$AI$823,25,FALSE)=\"-\"),1/0,VLOOKUP($A469,Economática!$A$3:$AI$823,25,FALSE)))","v":""},{"$f":"CONCATENATE(Economática!B447,\" \",Economática!C447)","v":" "}]
[{"$f":"IF(Economática!AG448=\"\",\"\",Economática!AG448)","v":""},{"$f":"IF($A470=\"\",\"\",VLOOKUP(VLOOKUP($A470,Economática!$A$3:$AI$823,6,FALSE),Correção!$B$16:$C$36,2,FALSE))","v":""},{"$f":"IF(Economática!B448=\"\",\"\",Economática!B448)","v":""},{"$f":"IF($A470=\"\",\"\",IF(OR(VLOOKUP($A470,Economática!$A$3:$AI$823,8,FALSE)=0,VLOOKUP($A470,Economática!$A$3:$AI$823,8,FALSE)=\"-\"),1/0,VLOOKUP($A470,Economática!$A$3:$AI$823,8,FALSE)))","v":""},{"$f":"IF(A470=\"\",\"\",IF(ISERROR(VLOOKUP(A470,Correção!$B$2:$G$13,9,FALSE)),VLOOKUP($A470,Economática!$A$3:$AI$823,9,FALSE),VLOOKUP(A470,Correção!$B$2:$G$13,9,FALSE)))","v":""},{"$f":"IF($A470=\"\",\"\",Economática!G448)","v":""},{"$f":"IF($A470=\"\",\"\",IF(OR(VLOOKUP($A470,Economática!$A$3:$AI$823,10,FALSE)=0,VLOOKUP($A470,Economática!$A$3:$AI$823,10,FALSE)=\"-\"),1/0,VLOOKUP($A470,Economática!$A$3:$AI$823,10,FALSE)))","v":""},{"$f":"IF($A470=\"\",\"\",IF(OR(VLOOKUP($A470,Economática!$A$3:$AI$823,11,FALSE)=0,VLOOKUP($A470,Economática!$A$3:$AI$823,11,FALSE)=\"-\"),1/0,VLOOKUP($A470,Economática!$A$3:$AI$823,11,FALSE)))","v":""},{"$f":"IF($A470=\"\",\"\",IF(OR(VLOOKUP($A470,Economática!$A$3:$AI$823,12,FALSE)=0,VLOOKUP($A470,Economática!$A$3:$AI$823,12,FALSE)=\"-\"),1/0,VLOOKUP($A470,Economática!$A$3:$AI$823,12,FALSE)))","v":""},{"$f":"IF($A470=\"\",\"\",IF(OR(VLOOKUP($A470,Economática!$A$3:$AI$823,13,FALSE)=0,VLOOKUP($A470,Economática!$A$3:$AI$823,13,FALSE)=\"-\"),1/0,VLOOKUP($A470,Economática!$A$3:$AI$823,13,FALSE)))","v":""},{"$f":"IF($A470=\"\",\"\",IF(OR(VLOOKUP($A470,Economática!$A$3:$AI$823,14,FALSE)=0,VLOOKUP($A470,Economática!$A$3:$AI$823,14,FALSE)=\"-\"),1/0,VLOOKUP($A470,Economática!$A$3:$AI$823,14,FALSE)))","v":""},{"$f":"IF($A470=\"\",\"\",IF(OR(VLOOKUP($A470,Economática!$A$3:$AI$823,15,FALSE)=0,VLOOKUP($A470,Economática!$A$3:$AI$823,15,FALSE)=\"-\"),1/0,VLOOKUP($A470,Economática!$A$3:$AI$823,15,FALSE)))","v":""},{"$f":"IF($A470=\"\",\"\",IF(OR(VLOOKUP($A470,Economática!$A$3:$AI$823,16,FALSE)=0,VLOOKUP($A470,Economática!$A$3:$AI$823,16,FALSE)=\"-\"),1/0,VLOOKUP($A470,Economática!$A$3:$AI$823,16,FALSE)))","v":""},{"$f":"IF($A470=\"\",\"\",IF(OR(VLOOKUP($A470,Economática!$A$3:$AI$823,17,FALSE)=0,VLOOKUP($A470,Economática!$A$3:$AI$823,17,FALSE)=\"-\"),1/0,VLOOKUP($A470,Economática!$A$3:$AI$823,17,FALSE)))","v":""},{"$f":"IF($A470=\"\",\"\",IF(OR(VLOOKUP($A470,Economática!$A$3:$AI$823,18,FALSE)=0,VLOOKUP($A470,Economática!$A$3:$AI$823,18,FALSE)=\"-\"),1/0,VLOOKUP($A470,Economática!$A$3:$AI$823,18,FALSE)))","v":""},{"$f":"IF($A470=\"\",\"\",IF(OR(VLOOKUP($A470,Economática!$A$3:$AI$823,19,FALSE)=0,VLOOKUP($A470,Economática!$A$3:$AI$823,19,FALSE)=\"-\"),1/0,VLOOKUP($A470,Economática!$A$3:$AI$823,19,FALSE)))","v":""},{"$f":"IF($A470=\"\",\"\",VLOOKUP($A470,Economática!$A$3:$AI$823,20,FALSE)/E470)","v":""},"","","",{"$f":"IF($A470=\"\",\"\",IF(OR(VLOOKUP($A470,Economática!$A$3:$AI$823,21,FALSE)/100=0,VLOOKUP($A470,Economática!$A$3:$AI$823,21,FALSE)/100=\"-\"),1/0,VLOOKUP($A470,Economática!$A$3:$AI$823,21,FALSE)/100))","v":""},{"$f":"IF($A470=\"\",\"\",IF(OR(VLOOKUP($A470,Economática!$A$3:$AI$823,22,FALSE)/100=0,VLOOKUP($A470,Economática!$A$3:$AI$823,22,FALSE)/100=\"-\"),1/0,VLOOKUP($A470,Economática!$A$3:$AI$823,22,FALSE)/100))","v":""},{"$f":"IF($A470=\"\",\"\",IF(OR(VLOOKUP($A470,Economática!$A$3:$AI$823,23,FALSE)=0,VLOOKUP($A470,Economática!$A$3:$AI$823,23,FALSE)=\"-\"),1/0,VLOOKUP($A470,Economática!$A$3:$AI$823,23,FALSE)))","v":""},{"$f":"IF($A470=\"\",\"\",IF(OR(VLOOKUP($A470,Economática!$A$3:$AI$823,24,FALSE)=0,VLOOKUP($A470,Economática!$A$3:$AI$823,24,FALSE)=\"-\"),1/0,VLOOKUP($A470,Economática!$A$3:$AI$823,24,FALSE)))","v":""},{"$f":"IF($A470=\"\",\"\",IF(OR(VLOOKUP($A470,Economática!$A$3:$AI$823,25,FALSE)=0,VLOOKUP($A470,Economática!$A$3:$AI$823,25,FALSE)=\"-\"),1/0,VLOOKUP($A470,Economática!$A$3:$AI$823,25,FALSE)))","v":""},{"$f":"IF($A470=\"\",\"\",IF(ISERROR((F470+VLOOKUP($A470,Economática!$A$3:$AI$823,26,FALSE))/Y470),(F470+VLOOKUP($A470,Economática!$A$3:$AI$823,26,FALSE))/Y470,(F470+VLOOKUP($A470,Economática!$A$3:$AI$823,26,FALSE))/Y470))","v":""},{"$f":"IF($A470=\"\",\"\",IF(OR(-VLOOKUP($A470,Economática!$A$3:$AI$823,27,FALSE)=0,-VLOOKUP($A470,Economática!$A$3:$AI$823,27,FALSE)=\"-\"),1/0,-VLOOKUP($A470,Economática!$A$3:$AI$823,27,FALSE)))","v":""},"",{"$f":"IF($A470=\"\",\"\",IF(OR(VLOOKUP($A470,Economática!$A$3:$AI$823,28,FALSE)=0,VLOOKUP($A470,Economática!$A$3:$AI$823,28,FALSE)=\"-\"),1/0,VLOOKUP($A470,Economática!$A$3:$AI$823,28,FALSE)))","v":""},{"$f":"IF($A470=\"\",\"\",IF(OR(VLOOKUP($A470,Economática!$A$3:$AI$823,29,FALSE)=0,VLOOKUP($A470,Economática!$A$3:$AI$823,29,FALSE)=\"-\"),1/0,VLOOKUP($A470,Economática!$A$3:$AI$823,29,FALSE)))","v":""},{"$f":"IF($A470=\"\",\"\",IF(OR(VLOOKUP($A470,Economática!$A$3:$AI$823,30,FALSE)/E470=0,VLOOKUP($A470,Economática!$A$3:$AI$823,30,FALSE)/E470=\"-\",VLOOKUP($A470,Economática!$A$3:$AI$823,30,FALSE)/E470<33.33%,VLOOKUP($A470,Economática!$A$3:$AI$823,30,FALSE)/E470>100%),1/0,VLOOKUP($A470,Economática!$A$3:$AI$823,30,FALSE)/E470))","v":""},"",{"$f":"IF($A470=\"\",\"\",IF(OR(VLOOKUP($A470,Economática!$A$3:$AI$823,25,FALSE)=0,VLOOKUP($A470,Economática!$A$3:$AI$823,25,FALSE)=\"-\"),1/0,VLOOKUP($A470,Economática!$A$3:$AI$823,25,FALSE)))","v":""},{"$f":"CONCATENATE(Economática!B448,\" \",Economática!C448)","v":" "}]
[{"$f":"IF(Economática!AG449=\"\",\"\",Economática!AG449)","v":""},{"$f":"IF($A471=\"\",\"\",VLOOKUP(VLOOKUP($A471,Economática!$A$3:$AI$823,6,FALSE),Correção!$B$16:$C$36,2,FALSE))","v":""},{"$f":"IF(Economática!B449=\"\",\"\",Economática!B449)","v":""},{"$f":"IF($A471=\"\",\"\",IF(OR(VLOOKUP($A471,Economática!$A$3:$AI$823,8,FALSE)=0,VLOOKUP($A471,Economática!$A$3:$AI$823,8,FALSE)=\"-\"),1/0,VLOOKUP($A471,Economática!$A$3:$AI$823,8,FALSE)))","v":""},{"$f":"IF(A471=\"\",\"\",IF(ISERROR(VLOOKUP(A471,Correção!$B$2:$G$13,9,FALSE)),VLOOKUP($A471,Economática!$A$3:$AI$823,9,FALSE),VLOOKUP(A471,Correção!$B$2:$G$13,9,FALSE)))","v":""},{"$f":"IF($A471=\"\",\"\",Economática!G449)","v":""},{"$f":"IF($A471=\"\",\"\",IF(OR(VLOOKUP($A471,Economática!$A$3:$AI$823,10,FALSE)=0,VLOOKUP($A471,Economática!$A$3:$AI$823,10,FALSE)=\"-\"),1/0,VLOOKUP($A471,Economática!$A$3:$AI$823,10,FALSE)))","v":""},{"$f":"IF($A471=\"\",\"\",IF(OR(VLOOKUP($A471,Economática!$A$3:$AI$823,11,FALSE)=0,VLOOKUP($A471,Economática!$A$3:$AI$823,11,FALSE)=\"-\"),1/0,VLOOKUP($A471,Economática!$A$3:$AI$823,11,FALSE)))","v":""},{"$f":"IF($A471=\"\",\"\",IF(OR(VLOOKUP($A471,Economática!$A$3:$AI$823,12,FALSE)=0,VLOOKUP($A471,Economática!$A$3:$AI$823,12,FALSE)=\"-\"),1/0,VLOOKUP($A471,Economática!$A$3:$AI$823,12,FALSE)))","v":""},{"$f":"IF($A471=\"\",\"\",IF(OR(VLOOKUP($A471,Economática!$A$3:$AI$823,13,FALSE)=0,VLOOKUP($A471,Economática!$A$3:$AI$823,13,FALSE)=\"-\"),1/0,VLOOKUP($A471,Economática!$A$3:$AI$823,13,FALSE)))","v":""},{"$f":"IF($A471=\"\",\"\",IF(OR(VLOOKUP($A471,Economática!$A$3:$AI$823,14,FALSE)=0,VLOOKUP($A471,Economática!$A$3:$AI$823,14,FALSE)=\"-\"),1/0,VLOOKUP($A471,Economática!$A$3:$AI$823,14,FALSE)))","v":""},{"$f":"IF($A471=\"\",\"\",IF(OR(VLOOKUP($A471,Economática!$A$3:$AI$823,15,FALSE)=0,VLOOKUP($A471,Economática!$A$3:$AI$823,15,FALSE)=\"-\"),1/0,VLOOKUP($A471,Economática!$A$3:$AI$823,15,FALSE)))","v":""},{"$f":"IF($A471=\"\",\"\",IF(OR(VLOOKUP($A471,Economática!$A$3:$AI$823,16,FALSE)=0,VLOOKUP($A471,Economática!$A$3:$AI$823,16,FALSE)=\"-\"),1/0,VLOOKUP($A471,Economática!$A$3:$AI$823,16,FALSE)))","v":""},{"$f":"IF($A471=\"\",\"\",IF(OR(VLOOKUP($A471,Economática!$A$3:$AI$823,17,FALSE)=0,VLOOKUP($A471,Economática!$A$3:$AI$823,17,FALSE)=\"-\"),1/0,VLOOKUP($A471,Economática!$A$3:$AI$823,17,FALSE)))","v":""},{"$f":"IF($A471=\"\",\"\",IF(OR(VLOOKUP($A471,Economática!$A$3:$AI$823,18,FALSE)=0,VLOOKUP($A471,Economática!$A$3:$AI$823,18,FALSE)=\"-\"),1/0,VLOOKUP($A471,Economática!$A$3:$AI$823,18,FALSE)))","v":""},{"$f":"IF($A471=\"\",\"\",IF(OR(VLOOKUP($A471,Economática!$A$3:$AI$823,19,FALSE)=0,VLOOKUP($A471,Economática!$A$3:$AI$823,19,FALSE)=\"-\"),1/0,VLOOKUP($A471,Economática!$A$3:$AI$823,19,FALSE)))","v":""},{"$f":"IF($A471=\"\",\"\",VLOOKUP($A471,Economática!$A$3:$AI$823,20,FALSE)/E471)","v":""},"","","",{"$f":"IF($A471=\"\",\"\",IF(OR(VLOOKUP($A471,Economática!$A$3:$AI$823,21,FALSE)/100=0,VLOOKUP($A471,Economática!$A$3:$AI$823,21,FALSE)/100=\"-\"),1/0,VLOOKUP($A471,Economática!$A$3:$AI$823,21,FALSE)/100))","v":""},{"$f":"IF($A471=\"\",\"\",IF(OR(VLOOKUP($A471,Economática!$A$3:$AI$823,22,FALSE)/100=0,VLOOKUP($A471,Economática!$A$3:$AI$823,22,FALSE)/100=\"-\"),1/0,VLOOKUP($A471,Economática!$A$3:$AI$823,22,FALSE)/100))","v":""},{"$f":"IF($A471=\"\",\"\",IF(OR(VLOOKUP($A471,Economática!$A$3:$AI$823,23,FALSE)=0,VLOOKUP($A471,Economática!$A$3:$AI$823,23,FALSE)=\"-\"),1/0,VLOOKUP($A471,Economática!$A$3:$AI$823,23,FALSE)))","v":""},{"$f":"IF($A471=\"\",\"\",IF(OR(VLOOKUP($A471,Economática!$A$3:$AI$823,24,FALSE)=0,VLOOKUP($A471,Economática!$A$3:$AI$823,24,FALSE)=\"-\"),1/0,VLOOKUP($A471,Economática!$A$3:$AI$823,24,FALSE)))","v":""},{"$f":"IF($A471=\"\",\"\",IF(OR(VLOOKUP($A471,Economática!$A$3:$AI$823,25,FALSE)=0,VLOOKUP($A471,Economática!$A$3:$AI$823,25,FALSE)=\"-\"),1/0,VLOOKUP($A471,Economática!$A$3:$AI$823,25,FALSE)))","v":""},{"$f":"IF($A471=\"\",\"\",IF(ISERROR((F471+VLOOKUP($A471,Economática!$A$3:$AI$823,26,FALSE))/Y471),(F471+VLOOKUP($A471,Economática!$A$3:$AI$823,26,FALSE))/Y471,(F471+VLOOKUP($A471,Economática!$A$3:$AI$823,26,FALSE))/Y471))","v":""},{"$f":"IF($A471=\"\",\"\",IF(OR(-VLOOKUP($A471,Economática!$A$3:$AI$823,27,FALSE)=0,-VLOOKUP($A471,Economática!$A$3:$AI$823,27,FALSE)=\"-\"),1/0,-VLOOKUP($A471,Economática!$A$3:$AI$823,27,FALSE)))","v":""},"",{"$f":"IF($A471=\"\",\"\",IF(OR(VLOOKUP($A471,Economática!$A$3:$AI$823,28,FALSE)=0,VLOOKUP($A471,Economática!$A$3:$AI$823,28,FALSE)=\"-\"),1/0,VLOOKUP($A471,Economática!$A$3:$AI$823,28,FALSE)))","v":""},{"$f":"IF($A471=\"\",\"\",IF(OR(VLOOKUP($A471,Economática!$A$3:$AI$823,29,FALSE)=0,VLOOKUP($A471,Economática!$A$3:$AI$823,29,FALSE)=\"-\"),1/0,VLOOKUP($A471,Economática!$A$3:$AI$823,29,FALSE)))","v":""},{"$f":"IF($A471=\"\",\"\",IF(OR(VLOOKUP($A471,Economática!$A$3:$AI$823,30,FALSE)/E471=0,VLOOKUP($A471,Economática!$A$3:$AI$823,30,FALSE)/E471=\"-\",VLOOKUP($A471,Economática!$A$3:$AI$823,30,FALSE)/E471<33.33%,VLOOKUP($A471,Economática!$A$3:$AI$823,30,FALSE)/E471>100%),1/0,VLOOKUP($A471,Economática!$A$3:$AI$823,30,FALSE)/E471))","v":""},"",{"$f":"IF($A471=\"\",\"\",IF(OR(VLOOKUP($A471,Economática!$A$3:$AI$823,25,FALSE)=0,VLOOKUP($A471,Economática!$A$3:$AI$823,25,FALSE)=\"-\"),1/0,VLOOKUP($A471,Economática!$A$3:$AI$823,25,FALSE)))","v":""},{"$f":"CONCATENATE(Economática!B449,\" \",Economática!C449)","v":" "}]
[{"$f":"IF(Economática!AG450=\"\",\"\",Economática!AG450)","v":""},{"$f":"IF($A472=\"\",\"\",VLOOKUP(VLOOKUP($A472,Economática!$A$3:$AI$823,6,FALSE),Correção!$B$16:$C$36,2,FALSE))","v":""},{"$f":"IF(Economática!B450=\"\",\"\",Economática!B450)","v":""},{"$f":"IF($A472=\"\",\"\",IF(OR(VLOOKUP($A472,Economática!$A$3:$AI$823,8,FALSE)=0,VLOOKUP($A472,Economática!$A$3:$AI$823,8,FALSE)=\"-\"),1/0,VLOOKUP($A472,Economática!$A$3:$AI$823,8,FALSE)))","v":""},{"$f":"IF(A472=\"\",\"\",IF(ISERROR(VLOOKUP(A472,Correção!$B$2:$G$13,9,FALSE)),VLOOKUP($A472,Economática!$A$3:$AI$823,9,FALSE),VLOOKUP(A472,Correção!$B$2:$G$13,9,FALSE)))","v":""},{"$f":"IF($A472=\"\",\"\",Economática!G450)","v":""},{"$f":"IF($A472=\"\",\"\",IF(OR(VLOOKUP($A472,Economática!$A$3:$AI$823,10,FALSE)=0,VLOOKUP($A472,Economática!$A$3:$AI$823,10,FALSE)=\"-\"),1/0,VLOOKUP($A472,Economática!$A$3:$AI$823,10,FALSE)))","v":""},{"$f":"IF($A472=\"\",\"\",IF(OR(VLOOKUP($A472,Economática!$A$3:$AI$823,11,FALSE)=0,VLOOKUP($A472,Economática!$A$3:$AI$823,11,FALSE)=\"-\"),1/0,VLOOKUP($A472,Economática!$A$3:$AI$823,11,FALSE)))","v":""},{"$f":"IF($A472=\"\",\"\",IF(OR(VLOOKUP($A472,Economática!$A$3:$AI$823,12,FALSE)=0,VLOOKUP($A472,Economática!$A$3:$AI$823,12,FALSE)=\"-\"),1/0,VLOOKUP($A472,Economática!$A$3:$AI$823,12,FALSE)))","v":""},{"$f":"IF($A472=\"\",\"\",IF(OR(VLOOKUP($A472,Economática!$A$3:$AI$823,13,FALSE)=0,VLOOKUP($A472,Economática!$A$3:$AI$823,13,FALSE)=\"-\"),1/0,VLOOKUP($A472,Economática!$A$3:$AI$823,13,FALSE)))","v":""},{"$f":"IF($A472=\"\",\"\",IF(OR(VLOOKUP($A472,Economática!$A$3:$AI$823,14,FALSE)=0,VLOOKUP($A472,Economática!$A$3:$AI$823,14,FALSE)=\"-\"),1/0,VLOOKUP($A472,Economática!$A$3:$AI$823,14,FALSE)))","v":""},{"$f":"IF($A472=\"\",\"\",IF(OR(VLOOKUP($A472,Economática!$A$3:$AI$823,15,FALSE)=0,VLOOKUP($A472,Economática!$A$3:$AI$823,15,FALSE)=\"-\"),1/0,VLOOKUP($A472,Economática!$A$3:$AI$823,15,FALSE)))","v":""},{"$f":"IF($A472=\"\",\"\",IF(OR(VLOOKUP($A472,Economática!$A$3:$AI$823,16,FALSE)=0,VLOOKUP($A472,Economática!$A$3:$AI$823,16,FALSE)=\"-\"),1/0,VLOOKUP($A472,Economática!$A$3:$AI$823,16,FALSE)))","v":""},{"$f":"IF($A472=\"\",\"\",IF(OR(VLOOKUP($A472,Economática!$A$3:$AI$823,17,FALSE)=0,VLOOKUP($A472,Economática!$A$3:$AI$823,17,FALSE)=\"-\"),1/0,VLOOKUP($A472,Economática!$A$3:$AI$823,17,FALSE)))","v":""},{"$f":"IF($A472=\"\",\"\",IF(OR(VLOOKUP($A472,Economática!$A$3:$AI$823,18,FALSE)=0,VLOOKUP($A472,Economática!$A$3:$AI$823,18,FALSE)=\"-\"),1/0,VLOOKUP($A472,Economática!$A$3:$AI$823,18,FALSE)))","v":""},{"$f":"IF($A472=\"\",\"\",IF(OR(VLOOKUP($A472,Economática!$A$3:$AI$823,19,FALSE)=0,VLOOKUP($A472,Economática!$A$3:$AI$823,19,FALSE)=\"-\"),1/0,VLOOKUP($A472,Economática!$A$3:$AI$823,19,FALSE)))","v":""},{"$f":"IF($A472=\"\",\"\",VLOOKUP($A472,Economática!$A$3:$AI$823,20,FALSE)/E472)","v":""},"","","",{"$f":"IF($A472=\"\",\"\",IF(OR(VLOOKUP($A472,Economática!$A$3:$AI$823,21,FALSE)/100=0,VLOOKUP($A472,Economática!$A$3:$AI$823,21,FALSE)/100=\"-\"),1/0,VLOOKUP($A472,Economática!$A$3:$AI$823,21,FALSE)/100))","v":""},{"$f":"IF($A472=\"\",\"\",IF(OR(VLOOKUP($A472,Economática!$A$3:$AI$823,22,FALSE)/100=0,VLOOKUP($A472,Economática!$A$3:$AI$823,22,FALSE)/100=\"-\"),1/0,VLOOKUP($A472,Economática!$A$3:$AI$823,22,FALSE)/100))","v":""},{"$f":"IF($A472=\"\",\"\",IF(OR(VLOOKUP($A472,Economática!$A$3:$AI$823,23,FALSE)=0,VLOOKUP($A472,Economática!$A$3:$AI$823,23,FALSE)=\"-\"),1/0,VLOOKUP($A472,Economática!$A$3:$AI$823,23,FALSE)))","v":""},{"$f":"IF($A472=\"\",\"\",IF(OR(VLOOKUP($A472,Economática!$A$3:$AI$823,24,FALSE)=0,VLOOKUP($A472,Economática!$A$3:$AI$823,24,FALSE)=\"-\"),1/0,VLOOKUP($A472,Economática!$A$3:$AI$823,24,FALSE)))","v":""},{"$f":"IF($A472=\"\",\"\",IF(OR(VLOOKUP($A472,Economática!$A$3:$AI$823,25,FALSE)=0,VLOOKUP($A472,Economática!$A$3:$AI$823,25,FALSE)=\"-\"),1/0,VLOOKUP($A472,Economática!$A$3:$AI$823,25,FALSE)))","v":""},{"$f":"IF($A472=\"\",\"\",IF(ISERROR((F472+VLOOKUP($A472,Economática!$A$3:$AI$823,26,FALSE))/Y472),(F472+VLOOKUP($A472,Economática!$A$3:$AI$823,26,FALSE))/Y472,(F472+VLOOKUP($A472,Economática!$A$3:$AI$823,26,FALSE))/Y472))","v":""},{"$f":"IF($A472=\"\",\"\",IF(OR(-VLOOKUP($A472,Economática!$A$3:$AI$823,27,FALSE)=0,-VLOOKUP($A472,Economática!$A$3:$AI$823,27,FALSE)=\"-\"),1/0,-VLOOKUP($A472,Economática!$A$3:$AI$823,27,FALSE)))","v":""},"",{"$f":"IF($A472=\"\",\"\",IF(OR(VLOOKUP($A472,Economática!$A$3:$AI$823,28,FALSE)=0,VLOOKUP($A472,Economática!$A$3:$AI$823,28,FALSE)=\"-\"),1/0,VLOOKUP($A472,Economática!$A$3:$AI$823,28,FALSE)))","v":""},{"$f":"IF($A472=\"\",\"\",IF(OR(VLOOKUP($A472,Economática!$A$3:$AI$823,29,FALSE)=0,VLOOKUP($A472,Economática!$A$3:$AI$823,29,FALSE)=\"-\"),1/0,VLOOKUP($A472,Economática!$A$3:$AI$823,29,FALSE)))","v":""},{"$f":"IF($A472=\"\",\"\",IF(OR(VLOOKUP($A472,Economática!$A$3:$AI$823,30,FALSE)/E472=0,VLOOKUP($A472,Economática!$A$3:$AI$823,30,FALSE)/E472=\"-\",VLOOKUP($A472,Economática!$A$3:$AI$823,30,FALSE)/E472<33.33%,VLOOKUP($A472,Economática!$A$3:$AI$823,30,FALSE)/E472>100%),1/0,VLOOKUP($A472,Economática!$A$3:$AI$823,30,FALSE)/E472))","v":""},"",{"$f":"IF($A472=\"\",\"\",IF(OR(VLOOKUP($A472,Economática!$A$3:$AI$823,25,FALSE)=0,VLOOKUP($A472,Economática!$A$3:$AI$823,25,FALSE)=\"-\"),1/0,VLOOKUP($A472,Economática!$A$3:$AI$823,25,FALSE)))","v":""},{"$f":"CONCATENATE(Economática!B450,\" \",Economática!C450)","v":" "}]
[{"$f":"IF(Economática!AG451=\"\",\"\",Economática!AG451)","v":""},{"$f":"IF($A473=\"\",\"\",VLOOKUP(VLOOKUP($A473,Economática!$A$3:$AI$823,6,FALSE),Correção!$B$16:$C$36,2,FALSE))","v":""},{"$f":"IF(Economática!B451=\"\",\"\",Economática!B451)","v":""},{"$f":"IF($A473=\"\",\"\",IF(OR(VLOOKUP($A473,Economática!$A$3:$AI$823,8,FALSE)=0,VLOOKUP($A473,Economática!$A$3:$AI$823,8,FALSE)=\"-\"),1/0,VLOOKUP($A473,Economática!$A$3:$AI$823,8,FALSE)))","v":""},{"$f":"IF(A473=\"\",\"\",IF(ISERROR(VLOOKUP(A473,Correção!$B$2:$G$13,9,FALSE)),VLOOKUP($A473,Economática!$A$3:$AI$823,9,FALSE),VLOOKUP(A473,Correção!$B$2:$G$13,9,FALSE)))","v":""},{"$f":"IF($A473=\"\",\"\",Economática!G451)","v":""},{"$f":"IF($A473=\"\",\"\",IF(OR(VLOOKUP($A473,Economática!$A$3:$AI$823,10,FALSE)=0,VLOOKUP($A473,Economática!$A$3:$AI$823,10,FALSE)=\"-\"),1/0,VLOOKUP($A473,Economática!$A$3:$AI$823,10,FALSE)))","v":""},{"$f":"IF($A473=\"\",\"\",IF(OR(VLOOKUP($A473,Economática!$A$3:$AI$823,11,FALSE)=0,VLOOKUP($A473,Economática!$A$3:$AI$823,11,FALSE)=\"-\"),1/0,VLOOKUP($A473,Economática!$A$3:$AI$823,11,FALSE)))","v":""},{"$f":"IF($A473=\"\",\"\",IF(OR(VLOOKUP($A473,Economática!$A$3:$AI$823,12,FALSE)=0,VLOOKUP($A473,Economática!$A$3:$AI$823,12,FALSE)=\"-\"),1/0,VLOOKUP($A473,Economática!$A$3:$AI$823,12,FALSE)))","v":""},{"$f":"IF($A473=\"\",\"\",IF(OR(VLOOKUP($A473,Economática!$A$3:$AI$823,13,FALSE)=0,VLOOKUP($A473,Economática!$A$3:$AI$823,13,FALSE)=\"-\"),1/0,VLOOKUP($A473,Economática!$A$3:$AI$823,13,FALSE)))","v":""},{"$f":"IF($A473=\"\",\"\",IF(OR(VLOOKUP($A473,Economática!$A$3:$AI$823,14,FALSE)=0,VLOOKUP($A473,Economática!$A$3:$AI$823,14,FALSE)=\"-\"),1/0,VLOOKUP($A473,Economática!$A$3:$AI$823,14,FALSE)))","v":""},{"$f":"IF($A473=\"\",\"\",IF(OR(VLOOKUP($A473,Economática!$A$3:$AI$823,15,FALSE)=0,VLOOKUP($A473,Economática!$A$3:$AI$823,15,FALSE)=\"-\"),1/0,VLOOKUP($A473,Economática!$A$3:$AI$823,15,FALSE)))","v":""},{"$f":"IF($A473=\"\",\"\",IF(OR(VLOOKUP($A473,Economática!$A$3:$AI$823,16,FALSE)=0,VLOOKUP($A473,Economática!$A$3:$AI$823,16,FALSE)=\"-\"),1/0,VLOOKUP($A473,Economática!$A$3:$AI$823,16,FALSE)))","v":""},{"$f":"IF($A473=\"\",\"\",IF(OR(VLOOKUP($A473,Economática!$A$3:$AI$823,17,FALSE)=0,VLOOKUP($A473,Economática!$A$3:$AI$823,17,FALSE)=\"-\"),1/0,VLOOKUP($A473,Economática!$A$3:$AI$823,17,FALSE)))","v":""},{"$f":"IF($A473=\"\",\"\",IF(OR(VLOOKUP($A473,Economática!$A$3:$AI$823,18,FALSE)=0,VLOOKUP($A473,Economática!$A$3:$AI$823,18,FALSE)=\"-\"),1/0,VLOOKUP($A473,Economática!$A$3:$AI$823,18,FALSE)))","v":""},{"$f":"IF($A473=\"\",\"\",IF(OR(VLOOKUP($A473,Economática!$A$3:$AI$823,19,FALSE)=0,VLOOKUP($A473,Economática!$A$3:$AI$823,19,FALSE)=\"-\"),1/0,VLOOKUP($A473,Economática!$A$3:$AI$823,19,FALSE)))","v":""},{"$f":"IF($A473=\"\",\"\",VLOOKUP($A473,Economática!$A$3:$AI$823,20,FALSE)/E473)","v":""},"","","",{"$f":"IF($A473=\"\",\"\",IF(OR(VLOOKUP($A473,Economática!$A$3:$AI$823,21,FALSE)/100=0,VLOOKUP($A473,Economática!$A$3:$AI$823,21,FALSE)/100=\"-\"),1/0,VLOOKUP($A473,Economática!$A$3:$AI$823,21,FALSE)/100))","v":""},{"$f":"IF($A473=\"\",\"\",IF(OR(VLOOKUP($A473,Economática!$A$3:$AI$823,22,FALSE)/100=0,VLOOKUP($A473,Economática!$A$3:$AI$823,22,FALSE)/100=\"-\"),1/0,VLOOKUP($A473,Economática!$A$3:$AI$823,22,FALSE)/100))","v":""},{"$f":"IF($A473=\"\",\"\",IF(OR(VLOOKUP($A473,Economática!$A$3:$AI$823,23,FALSE)=0,VLOOKUP($A473,Economática!$A$3:$AI$823,23,FALSE)=\"-\"),1/0,VLOOKUP($A473,Economática!$A$3:$AI$823,23,FALSE)))","v":""},{"$f":"IF($A473=\"\",\"\",IF(OR(VLOOKUP($A473,Economática!$A$3:$AI$823,24,FALSE)=0,VLOOKUP($A473,Economática!$A$3:$AI$823,24,FALSE)=\"-\"),1/0,VLOOKUP($A473,Economática!$A$3:$AI$823,24,FALSE)))","v":""},{"$f":"IF($A473=\"\",\"\",IF(OR(VLOOKUP($A473,Economática!$A$3:$AI$823,25,FALSE)=0,VLOOKUP($A473,Economática!$A$3:$AI$823,25,FALSE)=\"-\"),1/0,VLOOKUP($A473,Economática!$A$3:$AI$823,25,FALSE)))","v":""},{"$f":"IF($A473=\"\",\"\",IF(ISERROR((F473+VLOOKUP($A473,Economática!$A$3:$AI$823,26,FALSE))/Y473),(F473+VLOOKUP($A473,Economática!$A$3:$AI$823,26,FALSE))/Y473,(F473+VLOOKUP($A473,Economática!$A$3:$AI$823,26,FALSE))/Y473))","v":""},{"$f":"IF($A473=\"\",\"\",IF(OR(-VLOOKUP($A473,Economática!$A$3:$AI$823,27,FALSE)=0,-VLOOKUP($A473,Economática!$A$3:$AI$823,27,FALSE)=\"-\"),1/0,-VLOOKUP($A473,Economática!$A$3:$AI$823,27,FALSE)))","v":""},"",{"$f":"IF($A473=\"\",\"\",IF(OR(VLOOKUP($A473,Economática!$A$3:$AI$823,28,FALSE)=0,VLOOKUP($A473,Economática!$A$3:$AI$823,28,FALSE)=\"-\"),1/0,VLOOKUP($A473,Economática!$A$3:$AI$823,28,FALSE)))","v":""},{"$f":"IF($A473=\"\",\"\",IF(OR(VLOOKUP($A473,Economática!$A$3:$AI$823,29,FALSE)=0,VLOOKUP($A473,Economática!$A$3:$AI$823,29,FALSE)=\"-\"),1/0,VLOOKUP($A473,Economática!$A$3:$AI$823,29,FALSE)))","v":""},{"$f":"IF($A473=\"\",\"\",IF(OR(VLOOKUP($A473,Economática!$A$3:$AI$823,30,FALSE)/E473=0,VLOOKUP($A473,Economática!$A$3:$AI$823,30,FALSE)/E473=\"-\",VLOOKUP($A473,Economática!$A$3:$AI$823,30,FALSE)/E473<33.33%,VLOOKUP($A473,Economática!$A$3:$AI$823,30,FALSE)/E473>100%),1/0,VLOOKUP($A473,Economática!$A$3:$AI$823,30,FALSE)/E473))","v":""},"",{"$f":"IF($A473=\"\",\"\",IF(OR(VLOOKUP($A473,Economática!$A$3:$AI$823,25,FALSE)=0,VLOOKUP($A473,Economática!$A$3:$AI$823,25,FALSE)=\"-\"),1/0,VLOOKUP($A473,Economática!$A$3:$AI$823,25,FALSE)))","v":""},{"$f":"CONCATENATE(Economática!B451,\" \",Economática!C451)","v":" "}]
[{"$f":"IF(Economática!AG452=\"\",\"\",Economática!AG452)","v":""},{"$f":"IF($A474=\"\",\"\",VLOOKUP(VLOOKUP($A474,Economática!$A$3:$AI$823,6,FALSE),Correção!$B$16:$C$36,2,FALSE))","v":""},{"$f":"IF(Economática!B452=\"\",\"\",Economática!B452)","v":""},{"$f":"IF($A474=\"\",\"\",IF(OR(VLOOKUP($A474,Economática!$A$3:$AI$823,8,FALSE)=0,VLOOKUP($A474,Economática!$A$3:$AI$823,8,FALSE)=\"-\"),1/0,VLOOKUP($A474,Economática!$A$3:$AI$823,8,FALSE)))","v":""},{"$f":"IF(A474=\"\",\"\",IF(ISERROR(VLOOKUP(A474,Correção!$B$2:$G$13,9,FALSE)),VLOOKUP($A474,Economática!$A$3:$AI$823,9,FALSE),VLOOKUP(A474,Correção!$B$2:$G$13,9,FALSE)))","v":""},{"$f":"IF($A474=\"\",\"\",Economática!G452)","v":""},{"$f":"IF($A474=\"\",\"\",IF(OR(VLOOKUP($A474,Economática!$A$3:$AI$823,10,FALSE)=0,VLOOKUP($A474,Economática!$A$3:$AI$823,10,FALSE)=\"-\"),1/0,VLOOKUP($A474,Economática!$A$3:$AI$823,10,FALSE)))","v":""},{"$f":"IF($A474=\"\",\"\",IF(OR(VLOOKUP($A474,Economática!$A$3:$AI$823,11,FALSE)=0,VLOOKUP($A474,Economática!$A$3:$AI$823,11,FALSE)=\"-\"),1/0,VLOOKUP($A474,Economática!$A$3:$AI$823,11,FALSE)))","v":""},{"$f":"IF($A474=\"\",\"\",IF(OR(VLOOKUP($A474,Economática!$A$3:$AI$823,12,FALSE)=0,VLOOKUP($A474,Economática!$A$3:$AI$823,12,FALSE)=\"-\"),1/0,VLOOKUP($A474,Economática!$A$3:$AI$823,12,FALSE)))","v":""},{"$f":"IF($A474=\"\",\"\",IF(OR(VLOOKUP($A474,Economática!$A$3:$AI$823,13,FALSE)=0,VLOOKUP($A474,Economática!$A$3:$AI$823,13,FALSE)=\"-\"),1/0,VLOOKUP($A474,Economática!$A$3:$AI$823,13,FALSE)))","v":""},{"$f":"IF($A474=\"\",\"\",IF(OR(VLOOKUP($A474,Economática!$A$3:$AI$823,14,FALSE)=0,VLOOKUP($A474,Economática!$A$3:$AI$823,14,FALSE)=\"-\"),1/0,VLOOKUP($A474,Economática!$A$3:$AI$823,14,FALSE)))","v":""},{"$f":"IF($A474=\"\",\"\",IF(OR(VLOOKUP($A474,Economática!$A$3:$AI$823,15,FALSE)=0,VLOOKUP($A474,Economática!$A$3:$AI$823,15,FALSE)=\"-\"),1/0,VLOOKUP($A474,Economática!$A$3:$AI$823,15,FALSE)))","v":""},{"$f":"IF($A474=\"\",\"\",IF(OR(VLOOKUP($A474,Economática!$A$3:$AI$823,16,FALSE)=0,VLOOKUP($A474,Economática!$A$3:$AI$823,16,FALSE)=\"-\"),1/0,VLOOKUP($A474,Economática!$A$3:$AI$823,16,FALSE)))","v":""},{"$f":"IF($A474=\"\",\"\",IF(OR(VLOOKUP($A474,Economática!$A$3:$AI$823,17,FALSE)=0,VLOOKUP($A474,Economática!$A$3:$AI$823,17,FALSE)=\"-\"),1/0,VLOOKUP($A474,Economática!$A$3:$AI$823,17,FALSE)))","v":""},{"$f":"IF($A474=\"\",\"\",IF(OR(VLOOKUP($A474,Economática!$A$3:$AI$823,18,FALSE)=0,VLOOKUP($A474,Economática!$A$3:$AI$823,18,FALSE)=\"-\"),1/0,VLOOKUP($A474,Economática!$A$3:$AI$823,18,FALSE)))","v":""},{"$f":"IF($A474=\"\",\"\",IF(OR(VLOOKUP($A474,Economática!$A$3:$AI$823,19,FALSE)=0,VLOOKUP($A474,Economática!$A$3:$AI$823,19,FALSE)=\"-\"),1/0,VLOOKUP($A474,Economática!$A$3:$AI$823,19,FALSE)))","v":""},{"$f":"IF($A474=\"\",\"\",VLOOKUP($A474,Economática!$A$3:$AI$823,20,FALSE)/E474)","v":""},"","","",{"$f":"IF($A474=\"\",\"\",IF(OR(VLOOKUP($A474,Economática!$A$3:$AI$823,21,FALSE)/100=0,VLOOKUP($A474,Economática!$A$3:$AI$823,21,FALSE)/100=\"-\"),1/0,VLOOKUP($A474,Economática!$A$3:$AI$823,21,FALSE)/100))","v":""},{"$f":"IF($A474=\"\",\"\",IF(OR(VLOOKUP($A474,Economática!$A$3:$AI$823,22,FALSE)/100=0,VLOOKUP($A474,Economática!$A$3:$AI$823,22,FALSE)/100=\"-\"),1/0,VLOOKUP($A474,Economática!$A$3:$AI$823,22,FALSE)/100))","v":""},{"$f":"IF($A474=\"\",\"\",IF(OR(VLOOKUP($A474,Economática!$A$3:$AI$823,23,FALSE)=0,VLOOKUP($A474,Economática!$A$3:$AI$823,23,FALSE)=\"-\"),1/0,VLOOKUP($A474,Economática!$A$3:$AI$823,23,FALSE)))","v":""},{"$f":"IF($A474=\"\",\"\",IF(OR(VLOOKUP($A474,Economática!$A$3:$AI$823,24,FALSE)=0,VLOOKUP($A474,Economática!$A$3:$AI$823,24,FALSE)=\"-\"),1/0,VLOOKUP($A474,Economática!$A$3:$AI$823,24,FALSE)))","v":""},{"$f":"IF($A474=\"\",\"\",IF(OR(VLOOKUP($A474,Economática!$A$3:$AI$823,25,FALSE)=0,VLOOKUP($A474,Economática!$A$3:$AI$823,25,FALSE)=\"-\"),1/0,VLOOKUP($A474,Economática!$A$3:$AI$823,25,FALSE)))","v":""},{"$f":"IF($A474=\"\",\"\",IF(ISERROR((F474+VLOOKUP($A474,Economática!$A$3:$AI$823,26,FALSE))/Y474),(F474+VLOOKUP($A474,Economática!$A$3:$AI$823,26,FALSE))/Y474,(F474+VLOOKUP($A474,Economática!$A$3:$AI$823,26,FALSE))/Y474))","v":""},{"$f":"IF($A474=\"\",\"\",IF(OR(-VLOOKUP($A474,Economática!$A$3:$AI$823,27,FALSE)=0,-VLOOKUP($A474,Economática!$A$3:$AI$823,27,FALSE)=\"-\"),1/0,-VLOOKUP($A474,Economática!$A$3:$AI$823,27,FALSE)))","v":""},"",{"$f":"IF($A474=\"\",\"\",IF(OR(VLOOKUP($A474,Economática!$A$3:$AI$823,28,FALSE)=0,VLOOKUP($A474,Economática!$A$3:$AI$823,28,FALSE)=\"-\"),1/0,VLOOKUP($A474,Economática!$A$3:$AI$823,28,FALSE)))","v":""},{"$f":"IF($A474=\"\",\"\",IF(OR(VLOOKUP($A474,Economática!$A$3:$AI$823,29,FALSE)=0,VLOOKUP($A474,Economática!$A$3:$AI$823,29,FALSE)=\"-\"),1/0,VLOOKUP($A474,Economática!$A$3:$AI$823,29,FALSE)))","v":""},{"$f":"IF($A474=\"\",\"\",IF(OR(VLOOKUP($A474,Economática!$A$3:$AI$823,30,FALSE)/E474=0,VLOOKUP($A474,Economática!$A$3:$AI$823,30,FALSE)/E474=\"-\",VLOOKUP($A474,Economática!$A$3:$AI$823,30,FALSE)/E474<33.33%,VLOOKUP($A474,Economática!$A$3:$AI$823,30,FALSE)/E474>100%),1/0,VLOOKUP($A474,Economática!$A$3:$AI$823,30,FALSE)/E474))","v":""},"",{"$f":"IF($A474=\"\",\"\",IF(OR(VLOOKUP($A474,Economática!$A$3:$AI$823,25,FALSE)=0,VLOOKUP($A474,Economática!$A$3:$AI$823,25,FALSE)=\"-\"),1/0,VLOOKUP($A474,Economática!$A$3:$AI$823,25,FALSE)))","v":""},{"$f":"CONCATENATE(Economática!B452,\" \",Economática!C452)","v":" "}]
[{"$f":"IF(Economática!AG453=\"\",\"\",Economática!AG453)","v":""},{"$f":"IF($A475=\"\",\"\",VLOOKUP(VLOOKUP($A475,Economática!$A$3:$AI$823,6,FALSE),Correção!$B$16:$C$36,2,FALSE))","v":""},{"$f":"IF(Economática!B453=\"\",\"\",Economática!B453)","v":""},{"$f":"IF($A475=\"\",\"\",IF(OR(VLOOKUP($A475,Economática!$A$3:$AI$823,8,FALSE)=0,VLOOKUP($A475,Economática!$A$3:$AI$823,8,FALSE)=\"-\"),1/0,VLOOKUP($A475,Economática!$A$3:$AI$823,8,FALSE)))","v":""},{"$f":"IF(A475=\"\",\"\",IF(ISERROR(VLOOKUP(A475,Correção!$B$2:$G$13,9,FALSE)),VLOOKUP($A475,Economática!$A$3:$AI$823,9,FALSE),VLOOKUP(A475,Correção!$B$2:$G$13,9,FALSE)))","v":""},{"$f":"IF($A475=\"\",\"\",Economática!G453)","v":""},{"$f":"IF($A475=\"\",\"\",IF(OR(VLOOKUP($A475,Economática!$A$3:$AI$823,10,FALSE)=0,VLOOKUP($A475,Economática!$A$3:$AI$823,10,FALSE)=\"-\"),1/0,VLOOKUP($A475,Economática!$A$3:$AI$823,10,FALSE)))","v":""},{"$f":"IF($A475=\"\",\"\",IF(OR(VLOOKUP($A475,Economática!$A$3:$AI$823,11,FALSE)=0,VLOOKUP($A475,Economática!$A$3:$AI$823,11,FALSE)=\"-\"),1/0,VLOOKUP($A475,Economática!$A$3:$AI$823,11,FALSE)))","v":""},{"$f":"IF($A475=\"\",\"\",IF(OR(VLOOKUP($A475,Economática!$A$3:$AI$823,12,FALSE)=0,VLOOKUP($A475,Economática!$A$3:$AI$823,12,FALSE)=\"-\"),1/0,VLOOKUP($A475,Economática!$A$3:$AI$823,12,FALSE)))","v":""},{"$f":"IF($A475=\"\",\"\",IF(OR(VLOOKUP($A475,Economática!$A$3:$AI$823,13,FALSE)=0,VLOOKUP($A475,Economática!$A$3:$AI$823,13,FALSE)=\"-\"),1/0,VLOOKUP($A475,Economática!$A$3:$AI$823,13,FALSE)))","v":""},{"$f":"IF($A475=\"\",\"\",IF(OR(VLOOKUP($A475,Economática!$A$3:$AI$823,14,FALSE)=0,VLOOKUP($A475,Economática!$A$3:$AI$823,14,FALSE)=\"-\"),1/0,VLOOKUP($A475,Economática!$A$3:$AI$823,14,FALSE)))","v":""},{"$f":"IF($A475=\"\",\"\",IF(OR(VLOOKUP($A475,Economática!$A$3:$AI$823,15,FALSE)=0,VLOOKUP($A475,Economática!$A$3:$AI$823,15,FALSE)=\"-\"),1/0,VLOOKUP($A475,Economática!$A$3:$AI$823,15,FALSE)))","v":""},{"$f":"IF($A475=\"\",\"\",IF(OR(VLOOKUP($A475,Economática!$A$3:$AI$823,16,FALSE)=0,VLOOKUP($A475,Economática!$A$3:$AI$823,16,FALSE)=\"-\"),1/0,VLOOKUP($A475,Economática!$A$3:$AI$823,16,FALSE)))","v":""},{"$f":"IF($A475=\"\",\"\",IF(OR(VLOOKUP($A475,Economática!$A$3:$AI$823,17,FALSE)=0,VLOOKUP($A475,Economática!$A$3:$AI$823,17,FALSE)=\"-\"),1/0,VLOOKUP($A475,Economática!$A$3:$AI$823,17,FALSE)))","v":""},{"$f":"IF($A475=\"\",\"\",IF(OR(VLOOKUP($A475,Economática!$A$3:$AI$823,18,FALSE)=0,VLOOKUP($A475,Economática!$A$3:$AI$823,18,FALSE)=\"-\"),1/0,VLOOKUP($A475,Economática!$A$3:$AI$823,18,FALSE)))","v":""},{"$f":"IF($A475=\"\",\"\",IF(OR(VLOOKUP($A475,Economática!$A$3:$AI$823,19,FALSE)=0,VLOOKUP($A475,Economática!$A$3:$AI$823,19,FALSE)=\"-\"),1/0,VLOOKUP($A475,Economática!$A$3:$AI$823,19,FALSE)))","v":""},{"$f":"IF($A475=\"\",\"\",VLOOKUP($A475,Economática!$A$3:$AI$823,20,FALSE)/E475)","v":""},"","","",{"$f":"IF($A475=\"\",\"\",IF(OR(VLOOKUP($A475,Economática!$A$3:$AI$823,21,FALSE)/100=0,VLOOKUP($A475,Economática!$A$3:$AI$823,21,FALSE)/100=\"-\"),1/0,VLOOKUP($A475,Economática!$A$3:$AI$823,21,FALSE)/100))","v":""},{"$f":"IF($A475=\"\",\"\",IF(OR(VLOOKUP($A475,Economática!$A$3:$AI$823,22,FALSE)/100=0,VLOOKUP($A475,Economática!$A$3:$AI$823,22,FALSE)/100=\"-\"),1/0,VLOOKUP($A475,Economática!$A$3:$AI$823,22,FALSE)/100))","v":""},{"$f":"IF($A475=\"\",\"\",IF(OR(VLOOKUP($A475,Economática!$A$3:$AI$823,23,FALSE)=0,VLOOKUP($A475,Economática!$A$3:$AI$823,23,FALSE)=\"-\"),1/0,VLOOKUP($A475,Economática!$A$3:$AI$823,23,FALSE)))","v":""},{"$f":"IF($A475=\"\",\"\",IF(OR(VLOOKUP($A475,Economática!$A$3:$AI$823,24,FALSE)=0,VLOOKUP($A475,Economática!$A$3:$AI$823,24,FALSE)=\"-\"),1/0,VLOOKUP($A475,Economática!$A$3:$AI$823,24,FALSE)))","v":""},{"$f":"IF($A475=\"\",\"\",IF(OR(VLOOKUP($A475,Economática!$A$3:$AI$823,25,FALSE)=0,VLOOKUP($A475,Economática!$A$3:$AI$823,25,FALSE)=\"-\"),1/0,VLOOKUP($A475,Economática!$A$3:$AI$823,25,FALSE)))","v":""},{"$f":"IF($A475=\"\",\"\",IF(ISERROR((F475+VLOOKUP($A475,Economática!$A$3:$AI$823,26,FALSE))/Y475),(F475+VLOOKUP($A475,Economática!$A$3:$AI$823,26,FALSE))/Y475,(F475+VLOOKUP($A475,Economática!$A$3:$AI$823,26,FALSE))/Y475))","v":""},{"$f":"IF($A475=\"\",\"\",IF(OR(-VLOOKUP($A475,Economática!$A$3:$AI$823,27,FALSE)=0,-VLOOKUP($A475,Economática!$A$3:$AI$823,27,FALSE)=\"-\"),1/0,-VLOOKUP($A475,Economática!$A$3:$AI$823,27,FALSE)))","v":""},"",{"$f":"IF($A475=\"\",\"\",IF(OR(VLOOKUP($A475,Economática!$A$3:$AI$823,28,FALSE)=0,VLOOKUP($A475,Economática!$A$3:$AI$823,28,FALSE)=\"-\"),1/0,VLOOKUP($A475,Economática!$A$3:$AI$823,28,FALSE)))","v":""},{"$f":"IF($A475=\"\",\"\",IF(OR(VLOOKUP($A475,Economática!$A$3:$AI$823,29,FALSE)=0,VLOOKUP($A475,Economática!$A$3:$AI$823,29,FALSE)=\"-\"),1/0,VLOOKUP($A475,Economática!$A$3:$AI$823,29,FALSE)))","v":""},{"$f":"IF($A475=\"\",\"\",IF(OR(VLOOKUP($A475,Economática!$A$3:$AI$823,30,FALSE)/E475=0,VLOOKUP($A475,Economática!$A$3:$AI$823,30,FALSE)/E475=\"-\",VLOOKUP($A475,Economática!$A$3:$AI$823,30,FALSE)/E475<33.33%,VLOOKUP($A475,Economática!$A$3:$AI$823,30,FALSE)/E475>100%),1/0,VLOOKUP($A475,Economática!$A$3:$AI$823,30,FALSE)/E475))","v":""},"",{"$f":"IF($A475=\"\",\"\",IF(OR(VLOOKUP($A475,Economática!$A$3:$AI$823,25,FALSE)=0,VLOOKUP($A475,Economática!$A$3:$AI$823,25,FALSE)=\"-\"),1/0,VLOOKUP($A475,Economática!$A$3:$AI$823,25,FALSE)))","v":""},{"$f":"CONCATENATE(Economática!B453,\" \",Economática!C453)","v":" "}]
[{"$f":"IF(Economática!AG454=\"\",\"\",Economática!AG454)","v":""},{"$f":"IF($A476=\"\",\"\",VLOOKUP(VLOOKUP($A476,Economática!$A$3:$AI$823,6,FALSE),Correção!$B$16:$C$36,2,FALSE))","v":""},{"$f":"IF(Economática!B454=\"\",\"\",Economática!B454)","v":""},{"$f":"IF($A476=\"\",\"\",IF(OR(VLOOKUP($A476,Economática!$A$3:$AI$823,8,FALSE)=0,VLOOKUP($A476,Economática!$A$3:$AI$823,8,FALSE)=\"-\"),1/0,VLOOKUP($A476,Economática!$A$3:$AI$823,8,FALSE)))","v":""},{"$f":"IF(A476=\"\",\"\",IF(ISERROR(VLOOKUP(A476,Correção!$B$2:$G$13,9,FALSE)),VLOOKUP($A476,Economática!$A$3:$AI$823,9,FALSE),VLOOKUP(A476,Correção!$B$2:$G$13,9,FALSE)))","v":""},{"$f":"IF($A476=\"\",\"\",Economática!G454)","v":""},{"$f":"IF($A476=\"\",\"\",IF(OR(VLOOKUP($A476,Economática!$A$3:$AI$823,10,FALSE)=0,VLOOKUP($A476,Economática!$A$3:$AI$823,10,FALSE)=\"-\"),1/0,VLOOKUP($A476,Economática!$A$3:$AI$823,10,FALSE)))","v":""},{"$f":"IF($A476=\"\",\"\",IF(OR(VLOOKUP($A476,Economática!$A$3:$AI$823,11,FALSE)=0,VLOOKUP($A476,Economática!$A$3:$AI$823,11,FALSE)=\"-\"),1/0,VLOOKUP($A476,Economática!$A$3:$AI$823,11,FALSE)))","v":""},{"$f":"IF($A476=\"\",\"\",IF(OR(VLOOKUP($A476,Economática!$A$3:$AI$823,12,FALSE)=0,VLOOKUP($A476,Economática!$A$3:$AI$823,12,FALSE)=\"-\"),1/0,VLOOKUP($A476,Economática!$A$3:$AI$823,12,FALSE)))","v":""},{"$f":"IF($A476=\"\",\"\",IF(OR(VLOOKUP($A476,Economática!$A$3:$AI$823,13,FALSE)=0,VLOOKUP($A476,Economática!$A$3:$AI$823,13,FALSE)=\"-\"),1/0,VLOOKUP($A476,Economática!$A$3:$AI$823,13,FALSE)))","v":""},{"$f":"IF($A476=\"\",\"\",IF(OR(VLOOKUP($A476,Economática!$A$3:$AI$823,14,FALSE)=0,VLOOKUP($A476,Economática!$A$3:$AI$823,14,FALSE)=\"-\"),1/0,VLOOKUP($A476,Economática!$A$3:$AI$823,14,FALSE)))","v":""},{"$f":"IF($A476=\"\",\"\",IF(OR(VLOOKUP($A476,Economática!$A$3:$AI$823,15,FALSE)=0,VLOOKUP($A476,Economática!$A$3:$AI$823,15,FALSE)=\"-\"),1/0,VLOOKUP($A476,Economática!$A$3:$AI$823,15,FALSE)))","v":""},{"$f":"IF($A476=\"\",\"\",IF(OR(VLOOKUP($A476,Economática!$A$3:$AI$823,16,FALSE)=0,VLOOKUP($A476,Economática!$A$3:$AI$823,16,FALSE)=\"-\"),1/0,VLOOKUP($A476,Economática!$A$3:$AI$823,16,FALSE)))","v":""},{"$f":"IF($A476=\"\",\"\",IF(OR(VLOOKUP($A476,Economática!$A$3:$AI$823,17,FALSE)=0,VLOOKUP($A476,Economática!$A$3:$AI$823,17,FALSE)=\"-\"),1/0,VLOOKUP($A476,Economática!$A$3:$AI$823,17,FALSE)))","v":""},{"$f":"IF($A476=\"\",\"\",IF(OR(VLOOKUP($A476,Economática!$A$3:$AI$823,18,FALSE)=0,VLOOKUP($A476,Economática!$A$3:$AI$823,18,FALSE)=\"-\"),1/0,VLOOKUP($A476,Economática!$A$3:$AI$823,18,FALSE)))","v":""},{"$f":"IF($A476=\"\",\"\",IF(OR(VLOOKUP($A476,Economática!$A$3:$AI$823,19,FALSE)=0,VLOOKUP($A476,Economática!$A$3:$AI$823,19,FALSE)=\"-\"),1/0,VLOOKUP($A476,Economática!$A$3:$AI$823,19,FALSE)))","v":""},{"$f":"IF($A476=\"\",\"\",VLOOKUP($A476,Economática!$A$3:$AI$823,20,FALSE)/E476)","v":""},"","","",{"$f":"IF($A476=\"\",\"\",IF(OR(VLOOKUP($A476,Economática!$A$3:$AI$823,21,FALSE)/100=0,VLOOKUP($A476,Economática!$A$3:$AI$823,21,FALSE)/100=\"-\"),1/0,VLOOKUP($A476,Economática!$A$3:$AI$823,21,FALSE)/100))","v":""},{"$f":"IF($A476=\"\",\"\",IF(OR(VLOOKUP($A476,Economática!$A$3:$AI$823,22,FALSE)/100=0,VLOOKUP($A476,Economática!$A$3:$AI$823,22,FALSE)/100=\"-\"),1/0,VLOOKUP($A476,Economática!$A$3:$AI$823,22,FALSE)/100))","v":""},{"$f":"IF($A476=\"\",\"\",IF(OR(VLOOKUP($A476,Economática!$A$3:$AI$823,23,FALSE)=0,VLOOKUP($A476,Economática!$A$3:$AI$823,23,FALSE)=\"-\"),1/0,VLOOKUP($A476,Economática!$A$3:$AI$823,23,FALSE)))","v":""},{"$f":"IF($A476=\"\",\"\",IF(OR(VLOOKUP($A476,Economática!$A$3:$AI$823,24,FALSE)=0,VLOOKUP($A476,Economática!$A$3:$AI$823,24,FALSE)=\"-\"),1/0,VLOOKUP($A476,Economática!$A$3:$AI$823,24,FALSE)))","v":""},{"$f":"IF($A476=\"\",\"\",IF(OR(VLOOKUP($A476,Economática!$A$3:$AI$823,25,FALSE)=0,VLOOKUP($A476,Economática!$A$3:$AI$823,25,FALSE)=\"-\"),1/0,VLOOKUP($A476,Economática!$A$3:$AI$823,25,FALSE)))","v":""},{"$f":"IF($A476=\"\",\"\",IF(ISERROR((F476+VLOOKUP($A476,Economática!$A$3:$AI$823,26,FALSE))/Y476),(F476+VLOOKUP($A476,Economática!$A$3:$AI$823,26,FALSE))/Y476,(F476+VLOOKUP($A476,Economática!$A$3:$AI$823,26,FALSE))/Y476))","v":""},{"$f":"IF($A476=\"\",\"\",IF(OR(-VLOOKUP($A476,Economática!$A$3:$AI$823,27,FALSE)=0,-VLOOKUP($A476,Economática!$A$3:$AI$823,27,FALSE)=\"-\"),1/0,-VLOOKUP($A476,Economática!$A$3:$AI$823,27,FALSE)))","v":""},"",{"$f":"IF($A476=\"\",\"\",IF(OR(VLOOKUP($A476,Economática!$A$3:$AI$823,28,FALSE)=0,VLOOKUP($A476,Economática!$A$3:$AI$823,28,FALSE)=\"-\"),1/0,VLOOKUP($A476,Economática!$A$3:$AI$823,28,FALSE)))","v":""},{"$f":"IF($A476=\"\",\"\",IF(OR(VLOOKUP($A476,Economática!$A$3:$AI$823,29,FALSE)=0,VLOOKUP($A476,Economática!$A$3:$AI$823,29,FALSE)=\"-\"),1/0,VLOOKUP($A476,Economática!$A$3:$AI$823,29,FALSE)))","v":""},{"$f":"IF($A476=\"\",\"\",IF(OR(VLOOKUP($A476,Economática!$A$3:$AI$823,30,FALSE)/E476=0,VLOOKUP($A476,Economática!$A$3:$AI$823,30,FALSE)/E476=\"-\",VLOOKUP($A476,Economática!$A$3:$AI$823,30,FALSE)/E476<33.33%,VLOOKUP($A476,Economática!$A$3:$AI$823,30,FALSE)/E476>100%),1/0,VLOOKUP($A476,Economática!$A$3:$AI$823,30,FALSE)/E476))","v":""},"",{"$f":"IF($A476=\"\",\"\",IF(OR(VLOOKUP($A476,Economática!$A$3:$AI$823,25,FALSE)=0,VLOOKUP($A476,Economática!$A$3:$AI$823,25,FALSE)=\"-\"),1/0,VLOOKUP($A476,Economática!$A$3:$AI$823,25,FALSE)))","v":""},{"$f":"CONCATENATE(Economática!B454,\" \",Economática!C454)","v":" "}]
[{"$f":"IF(Economática!AG455=\"\",\"\",Economática!AG455)","v":""},{"$f":"IF($A477=\"\",\"\",VLOOKUP(VLOOKUP($A477,Economática!$A$3:$AI$823,6,FALSE),Correção!$B$16:$C$36,2,FALSE))","v":""},{"$f":"IF(Economática!B455=\"\",\"\",Economática!B455)","v":""},{"$f":"IF($A477=\"\",\"\",IF(OR(VLOOKUP($A477,Economática!$A$3:$AI$823,8,FALSE)=0,VLOOKUP($A477,Economática!$A$3:$AI$823,8,FALSE)=\"-\"),1/0,VLOOKUP($A477,Economática!$A$3:$AI$823,8,FALSE)))","v":""},{"$f":"IF(A477=\"\",\"\",IF(ISERROR(VLOOKUP(A477,Correção!$B$2:$G$13,9,FALSE)),VLOOKUP($A477,Economática!$A$3:$AI$823,9,FALSE),VLOOKUP(A477,Correção!$B$2:$G$13,9,FALSE)))","v":""},{"$f":"IF($A477=\"\",\"\",Economática!G455)","v":""},{"$f":"IF($A477=\"\",\"\",IF(OR(VLOOKUP($A477,Economática!$A$3:$AI$823,10,FALSE)=0,VLOOKUP($A477,Economática!$A$3:$AI$823,10,FALSE)=\"-\"),1/0,VLOOKUP($A477,Economática!$A$3:$AI$823,10,FALSE)))","v":""},{"$f":"IF($A477=\"\",\"\",IF(OR(VLOOKUP($A477,Economática!$A$3:$AI$823,11,FALSE)=0,VLOOKUP($A477,Economática!$A$3:$AI$823,11,FALSE)=\"-\"),1/0,VLOOKUP($A477,Economática!$A$3:$AI$823,11,FALSE)))","v":""},{"$f":"IF($A477=\"\",\"\",IF(OR(VLOOKUP($A477,Economática!$A$3:$AI$823,12,FALSE)=0,VLOOKUP($A477,Economática!$A$3:$AI$823,12,FALSE)=\"-\"),1/0,VLOOKUP($A477,Economática!$A$3:$AI$823,12,FALSE)))","v":""},{"$f":"IF($A477=\"\",\"\",IF(OR(VLOOKUP($A477,Economática!$A$3:$AI$823,13,FALSE)=0,VLOOKUP($A477,Economática!$A$3:$AI$823,13,FALSE)=\"-\"),1/0,VLOOKUP($A477,Economática!$A$3:$AI$823,13,FALSE)))","v":""},{"$f":"IF($A477=\"\",\"\",IF(OR(VLOOKUP($A477,Economática!$A$3:$AI$823,14,FALSE)=0,VLOOKUP($A477,Economática!$A$3:$AI$823,14,FALSE)=\"-\"),1/0,VLOOKUP($A477,Economática!$A$3:$AI$823,14,FALSE)))","v":""},{"$f":"IF($A477=\"\",\"\",IF(OR(VLOOKUP($A477,Economática!$A$3:$AI$823,15,FALSE)=0,VLOOKUP($A477,Economática!$A$3:$AI$823,15,FALSE)=\"-\"),1/0,VLOOKUP($A477,Economática!$A$3:$AI$823,15,FALSE)))","v":""},{"$f":"IF($A477=\"\",\"\",IF(OR(VLOOKUP($A477,Economática!$A$3:$AI$823,16,FALSE)=0,VLOOKUP($A477,Economática!$A$3:$AI$823,16,FALSE)=\"-\"),1/0,VLOOKUP($A477,Economática!$A$3:$AI$823,16,FALSE)))","v":""},{"$f":"IF($A477=\"\",\"\",IF(OR(VLOOKUP($A477,Economática!$A$3:$AI$823,17,FALSE)=0,VLOOKUP($A477,Economática!$A$3:$AI$823,17,FALSE)=\"-\"),1/0,VLOOKUP($A477,Economática!$A$3:$AI$823,17,FALSE)))","v":""},{"$f":"IF($A477=\"\",\"\",IF(OR(VLOOKUP($A477,Economática!$A$3:$AI$823,18,FALSE)=0,VLOOKUP($A477,Economática!$A$3:$AI$823,18,FALSE)=\"-\"),1/0,VLOOKUP($A477,Economática!$A$3:$AI$823,18,FALSE)))","v":""},{"$f":"IF($A477=\"\",\"\",IF(OR(VLOOKUP($A477,Economática!$A$3:$AI$823,19,FALSE)=0,VLOOKUP($A477,Economática!$A$3:$AI$823,19,FALSE)=\"-\"),1/0,VLOOKUP($A477,Economática!$A$3:$AI$823,19,FALSE)))","v":""},{"$f":"IF($A477=\"\",\"\",VLOOKUP($A477,Economática!$A$3:$AI$823,20,FALSE)/E477)","v":""},"","","",{"$f":"IF($A477=\"\",\"\",IF(OR(VLOOKUP($A477,Economática!$A$3:$AI$823,21,FALSE)/100=0,VLOOKUP($A477,Economática!$A$3:$AI$823,21,FALSE)/100=\"-\"),1/0,VLOOKUP($A477,Economática!$A$3:$AI$823,21,FALSE)/100))","v":""},{"$f":"IF($A477=\"\",\"\",IF(OR(VLOOKUP($A477,Economática!$A$3:$AI$823,22,FALSE)/100=0,VLOOKUP($A477,Economática!$A$3:$AI$823,22,FALSE)/100=\"-\"),1/0,VLOOKUP($A477,Economática!$A$3:$AI$823,22,FALSE)/100))","v":""},{"$f":"IF($A477=\"\",\"\",IF(OR(VLOOKUP($A477,Economática!$A$3:$AI$823,23,FALSE)=0,VLOOKUP($A477,Economática!$A$3:$AI$823,23,FALSE)=\"-\"),1/0,VLOOKUP($A477,Economática!$A$3:$AI$823,23,FALSE)))","v":""},{"$f":"IF($A477=\"\",\"\",IF(OR(VLOOKUP($A477,Economática!$A$3:$AI$823,24,FALSE)=0,VLOOKUP($A477,Economática!$A$3:$AI$823,24,FALSE)=\"-\"),1/0,VLOOKUP($A477,Economática!$A$3:$AI$823,24,FALSE)))","v":""},{"$f":"IF($A477=\"\",\"\",IF(OR(VLOOKUP($A477,Economática!$A$3:$AI$823,25,FALSE)=0,VLOOKUP($A477,Economática!$A$3:$AI$823,25,FALSE)=\"-\"),1/0,VLOOKUP($A477,Economática!$A$3:$AI$823,25,FALSE)))","v":""},{"$f":"IF($A477=\"\",\"\",IF(ISERROR((F477+VLOOKUP($A477,Economática!$A$3:$AI$823,26,FALSE))/Y477),(F477+VLOOKUP($A477,Economática!$A$3:$AI$823,26,FALSE))/Y477,(F477+VLOOKUP($A477,Economática!$A$3:$AI$823,26,FALSE))/Y477))","v":""},{"$f":"IF($A477=\"\",\"\",IF(OR(-VLOOKUP($A477,Economática!$A$3:$AI$823,27,FALSE)=0,-VLOOKUP($A477,Economática!$A$3:$AI$823,27,FALSE)=\"-\"),1/0,-VLOOKUP($A477,Economática!$A$3:$AI$823,27,FALSE)))","v":""},"",{"$f":"IF($A477=\"\",\"\",IF(OR(VLOOKUP($A477,Economática!$A$3:$AI$823,28,FALSE)=0,VLOOKUP($A477,Economática!$A$3:$AI$823,28,FALSE)=\"-\"),1/0,VLOOKUP($A477,Economática!$A$3:$AI$823,28,FALSE)))","v":""},{"$f":"IF($A477=\"\",\"\",IF(OR(VLOOKUP($A477,Economática!$A$3:$AI$823,29,FALSE)=0,VLOOKUP($A477,Economática!$A$3:$AI$823,29,FALSE)=\"-\"),1/0,VLOOKUP($A477,Economática!$A$3:$AI$823,29,FALSE)))","v":""},{"$f":"IF($A477=\"\",\"\",IF(OR(VLOOKUP($A477,Economática!$A$3:$AI$823,30,FALSE)/E477=0,VLOOKUP($A477,Economática!$A$3:$AI$823,30,FALSE)/E477=\"-\",VLOOKUP($A477,Economática!$A$3:$AI$823,30,FALSE)/E477<33.33%,VLOOKUP($A477,Economática!$A$3:$AI$823,30,FALSE)/E477>100%),1/0,VLOOKUP($A477,Economática!$A$3:$AI$823,30,FALSE)/E477))","v":""},"",{"$f":"IF($A477=\"\",\"\",IF(OR(VLOOKUP($A477,Economática!$A$3:$AI$823,25,FALSE)=0,VLOOKUP($A477,Economática!$A$3:$AI$823,25,FALSE)=\"-\"),1/0,VLOOKUP($A477,Economática!$A$3:$AI$823,25,FALSE)))","v":""},{"$f":"CONCATENATE(Economática!B455,\" \",Economática!C455)","v":" "}]
[{"$f":"IF(Economática!AG456=\"\",\"\",Economática!AG456)","v":""},{"$f":"IF($A478=\"\",\"\",VLOOKUP(VLOOKUP($A478,Economática!$A$3:$AI$823,6,FALSE),Correção!$B$16:$C$36,2,FALSE))","v":""},{"$f":"IF(Economática!B456=\"\",\"\",Economática!B456)","v":""},{"$f":"IF($A478=\"\",\"\",IF(OR(VLOOKUP($A478,Economática!$A$3:$AI$823,8,FALSE)=0,VLOOKUP($A478,Economática!$A$3:$AI$823,8,FALSE)=\"-\"),1/0,VLOOKUP($A478,Economática!$A$3:$AI$823,8,FALSE)))","v":""},{"$f":"IF(A478=\"\",\"\",IF(ISERROR(VLOOKUP(A478,Correção!$B$2:$G$13,9,FALSE)),VLOOKUP($A478,Economática!$A$3:$AI$823,9,FALSE),VLOOKUP(A478,Correção!$B$2:$G$13,9,FALSE)))","v":""},{"$f":"IF($A478=\"\",\"\",Economática!G456)","v":""},{"$f":"IF($A478=\"\",\"\",IF(OR(VLOOKUP($A478,Economática!$A$3:$AI$823,10,FALSE)=0,VLOOKUP($A478,Economática!$A$3:$AI$823,10,FALSE)=\"-\"),1/0,VLOOKUP($A478,Economática!$A$3:$AI$823,10,FALSE)))","v":""},{"$f":"IF($A478=\"\",\"\",IF(OR(VLOOKUP($A478,Economática!$A$3:$AI$823,11,FALSE)=0,VLOOKUP($A478,Economática!$A$3:$AI$823,11,FALSE)=\"-\"),1/0,VLOOKUP($A478,Economática!$A$3:$AI$823,11,FALSE)))","v":""},{"$f":"IF($A478=\"\",\"\",IF(OR(VLOOKUP($A478,Economática!$A$3:$AI$823,12,FALSE)=0,VLOOKUP($A478,Economática!$A$3:$AI$823,12,FALSE)=\"-\"),1/0,VLOOKUP($A478,Economática!$A$3:$AI$823,12,FALSE)))","v":""},{"$f":"IF($A478=\"\",\"\",IF(OR(VLOOKUP($A478,Economática!$A$3:$AI$823,13,FALSE)=0,VLOOKUP($A478,Economática!$A$3:$AI$823,13,FALSE)=\"-\"),1/0,VLOOKUP($A478,Economática!$A$3:$AI$823,13,FALSE)))","v":""},{"$f":"IF($A478=\"\",\"\",IF(OR(VLOOKUP($A478,Economática!$A$3:$AI$823,14,FALSE)=0,VLOOKUP($A478,Economática!$A$3:$AI$823,14,FALSE)=\"-\"),1/0,VLOOKUP($A478,Economática!$A$3:$AI$823,14,FALSE)))","v":""},{"$f":"IF($A478=\"\",\"\",IF(OR(VLOOKUP($A478,Economática!$A$3:$AI$823,15,FALSE)=0,VLOOKUP($A478,Economática!$A$3:$AI$823,15,FALSE)=\"-\"),1/0,VLOOKUP($A478,Economática!$A$3:$AI$823,15,FALSE)))","v":""},{"$f":"IF($A478=\"\",\"\",IF(OR(VLOOKUP($A478,Economática!$A$3:$AI$823,16,FALSE)=0,VLOOKUP($A478,Economática!$A$3:$AI$823,16,FALSE)=\"-\"),1/0,VLOOKUP($A478,Economática!$A$3:$AI$823,16,FALSE)))","v":""},{"$f":"IF($A478=\"\",\"\",IF(OR(VLOOKUP($A478,Economática!$A$3:$AI$823,17,FALSE)=0,VLOOKUP($A478,Economática!$A$3:$AI$823,17,FALSE)=\"-\"),1/0,VLOOKUP($A478,Economática!$A$3:$AI$823,17,FALSE)))","v":""},{"$f":"IF($A478=\"\",\"\",IF(OR(VLOOKUP($A478,Economática!$A$3:$AI$823,18,FALSE)=0,VLOOKUP($A478,Economática!$A$3:$AI$823,18,FALSE)=\"-\"),1/0,VLOOKUP($A478,Economática!$A$3:$AI$823,18,FALSE)))","v":""},{"$f":"IF($A478=\"\",\"\",IF(OR(VLOOKUP($A478,Economática!$A$3:$AI$823,19,FALSE)=0,VLOOKUP($A478,Economática!$A$3:$AI$823,19,FALSE)=\"-\"),1/0,VLOOKUP($A478,Economática!$A$3:$AI$823,19,FALSE)))","v":""},{"$f":"IF($A478=\"\",\"\",VLOOKUP($A478,Economática!$A$3:$AI$823,20,FALSE)/E478)","v":""},"","","",{"$f":"IF($A478=\"\",\"\",IF(OR(VLOOKUP($A478,Economática!$A$3:$AI$823,21,FALSE)/100=0,VLOOKUP($A478,Economática!$A$3:$AI$823,21,FALSE)/100=\"-\"),1/0,VLOOKUP($A478,Economática!$A$3:$AI$823,21,FALSE)/100))","v":""},{"$f":"IF($A478=\"\",\"\",IF(OR(VLOOKUP($A478,Economática!$A$3:$AI$823,22,FALSE)/100=0,VLOOKUP($A478,Economática!$A$3:$AI$823,22,FALSE)/100=\"-\"),1/0,VLOOKUP($A478,Economática!$A$3:$AI$823,22,FALSE)/100))","v":""},{"$f":"IF($A478=\"\",\"\",IF(OR(VLOOKUP($A478,Economática!$A$3:$AI$823,23,FALSE)=0,VLOOKUP($A478,Economática!$A$3:$AI$823,23,FALSE)=\"-\"),1/0,VLOOKUP($A478,Economática!$A$3:$AI$823,23,FALSE)))","v":""},{"$f":"IF($A478=\"\",\"\",IF(OR(VLOOKUP($A478,Economática!$A$3:$AI$823,24,FALSE)=0,VLOOKUP($A478,Economática!$A$3:$AI$823,24,FALSE)=\"-\"),1/0,VLOOKUP($A478,Economática!$A$3:$AI$823,24,FALSE)))","v":""},{"$f":"IF($A478=\"\",\"\",IF(OR(VLOOKUP($A478,Economática!$A$3:$AI$823,25,FALSE)=0,VLOOKUP($A478,Economática!$A$3:$AI$823,25,FALSE)=\"-\"),1/0,VLOOKUP($A478,Economática!$A$3:$AI$823,25,FALSE)))","v":""},{"$f":"IF($A478=\"\",\"\",IF(ISERROR((F478+VLOOKUP($A478,Economática!$A$3:$AI$823,26,FALSE))/Y478),(F478+VLOOKUP($A478,Economática!$A$3:$AI$823,26,FALSE))/Y478,(F478+VLOOKUP($A478,Economática!$A$3:$AI$823,26,FALSE))/Y478))","v":""},{"$f":"IF($A478=\"\",\"\",IF(OR(-VLOOKUP($A478,Economática!$A$3:$AI$823,27,FALSE)=0,-VLOOKUP($A478,Economática!$A$3:$AI$823,27,FALSE)=\"-\"),1/0,-VLOOKUP($A478,Economática!$A$3:$AI$823,27,FALSE)))","v":""},"",{"$f":"IF($A478=\"\",\"\",IF(OR(VLOOKUP($A478,Economática!$A$3:$AI$823,28,FALSE)=0,VLOOKUP($A478,Economática!$A$3:$AI$823,28,FALSE)=\"-\"),1/0,VLOOKUP($A478,Economática!$A$3:$AI$823,28,FALSE)))","v":""},{"$f":"IF($A478=\"\",\"\",IF(OR(VLOOKUP($A478,Economática!$A$3:$AI$823,29,FALSE)=0,VLOOKUP($A478,Economática!$A$3:$AI$823,29,FALSE)=\"-\"),1/0,VLOOKUP($A478,Economática!$A$3:$AI$823,29,FALSE)))","v":""},{"$f":"IF($A478=\"\",\"\",IF(OR(VLOOKUP($A478,Economática!$A$3:$AI$823,30,FALSE)/E478=0,VLOOKUP($A478,Economática!$A$3:$AI$823,30,FALSE)/E478=\"-\",VLOOKUP($A478,Economática!$A$3:$AI$823,30,FALSE)/E478<33.33%,VLOOKUP($A478,Economática!$A$3:$AI$823,30,FALSE)/E478>100%),1/0,VLOOKUP($A478,Economática!$A$3:$AI$823,30,FALSE)/E478))","v":""},"",{"$f":"IF($A478=\"\",\"\",IF(OR(VLOOKUP($A478,Economática!$A$3:$AI$823,25,FALSE)=0,VLOOKUP($A478,Economática!$A$3:$AI$823,25,FALSE)=\"-\"),1/0,VLOOKUP($A478,Economática!$A$3:$AI$823,25,FALSE)))","v":""},{"$f":"CONCATENATE(Economática!B456,\" \",Economática!C456)","v":" "}]
[{"$f":"IF(Economática!AG457=\"\",\"\",Economática!AG457)","v":""},{"$f":"IF($A479=\"\",\"\",VLOOKUP(VLOOKUP($A479,Economática!$A$3:$AI$823,6,FALSE),Correção!$B$16:$C$36,2,FALSE))","v":""},{"$f":"IF(Economática!B457=\"\",\"\",Economática!B457)","v":""},{"$f":"IF($A479=\"\",\"\",IF(OR(VLOOKUP($A479,Economática!$A$3:$AI$823,8,FALSE)=0,VLOOKUP($A479,Economática!$A$3:$AI$823,8,FALSE)=\"-\"),1/0,VLOOKUP($A479,Economática!$A$3:$AI$823,8,FALSE)))","v":""},{"$f":"IF(A479=\"\",\"\",IF(ISERROR(VLOOKUP(A479,Correção!$B$2:$G$13,9,FALSE)),VLOOKUP($A479,Economática!$A$3:$AI$823,9,FALSE),VLOOKUP(A479,Correção!$B$2:$G$13,9,FALSE)))","v":""},{"$f":"IF($A479=\"\",\"\",Economática!G457)","v":""},{"$f":"IF($A479=\"\",\"\",IF(OR(VLOOKUP($A479,Economática!$A$3:$AI$823,10,FALSE)=0,VLOOKUP($A479,Economática!$A$3:$AI$823,10,FALSE)=\"-\"),1/0,VLOOKUP($A479,Economática!$A$3:$AI$823,10,FALSE)))","v":""},{"$f":"IF($A479=\"\",\"\",IF(OR(VLOOKUP($A479,Economática!$A$3:$AI$823,11,FALSE)=0,VLOOKUP($A479,Economática!$A$3:$AI$823,11,FALSE)=\"-\"),1/0,VLOOKUP($A479,Economática!$A$3:$AI$823,11,FALSE)))","v":""},{"$f":"IF($A479=\"\",\"\",IF(OR(VLOOKUP($A479,Economática!$A$3:$AI$823,12,FALSE)=0,VLOOKUP($A479,Economática!$A$3:$AI$823,12,FALSE)=\"-\"),1/0,VLOOKUP($A479,Economática!$A$3:$AI$823,12,FALSE)))","v":""},{"$f":"IF($A479=\"\",\"\",IF(OR(VLOOKUP($A479,Economática!$A$3:$AI$823,13,FALSE)=0,VLOOKUP($A479,Economática!$A$3:$AI$823,13,FALSE)=\"-\"),1/0,VLOOKUP($A479,Economática!$A$3:$AI$823,13,FALSE)))","v":""},{"$f":"IF($A479=\"\",\"\",IF(OR(VLOOKUP($A479,Economática!$A$3:$AI$823,14,FALSE)=0,VLOOKUP($A479,Economática!$A$3:$AI$823,14,FALSE)=\"-\"),1/0,VLOOKUP($A479,Economática!$A$3:$AI$823,14,FALSE)))","v":""},{"$f":"IF($A479=\"\",\"\",IF(OR(VLOOKUP($A479,Economática!$A$3:$AI$823,15,FALSE)=0,VLOOKUP($A479,Economática!$A$3:$AI$823,15,FALSE)=\"-\"),1/0,VLOOKUP($A479,Economática!$A$3:$AI$823,15,FALSE)))","v":""},{"$f":"IF($A479=\"\",\"\",IF(OR(VLOOKUP($A479,Economática!$A$3:$AI$823,16,FALSE)=0,VLOOKUP($A479,Economática!$A$3:$AI$823,16,FALSE)=\"-\"),1/0,VLOOKUP($A479,Economática!$A$3:$AI$823,16,FALSE)))","v":""},{"$f":"IF($A479=\"\",\"\",IF(OR(VLOOKUP($A479,Economática!$A$3:$AI$823,17,FALSE)=0,VLOOKUP($A479,Economática!$A$3:$AI$823,17,FALSE)=\"-\"),1/0,VLOOKUP($A479,Economática!$A$3:$AI$823,17,FALSE)))","v":""},{"$f":"IF($A479=\"\",\"\",IF(OR(VLOOKUP($A479,Economática!$A$3:$AI$823,18,FALSE)=0,VLOOKUP($A479,Economática!$A$3:$AI$823,18,FALSE)=\"-\"),1/0,VLOOKUP($A479,Economática!$A$3:$AI$823,18,FALSE)))","v":""},{"$f":"IF($A479=\"\",\"\",IF(OR(VLOOKUP($A479,Economática!$A$3:$AI$823,19,FALSE)=0,VLOOKUP($A479,Economática!$A$3:$AI$823,19,FALSE)=\"-\"),1/0,VLOOKUP($A479,Economática!$A$3:$AI$823,19,FALSE)))","v":""},{"$f":"IF($A479=\"\",\"\",VLOOKUP($A479,Economática!$A$3:$AI$823,20,FALSE)/E479)","v":""},"","","",{"$f":"IF($A479=\"\",\"\",IF(OR(VLOOKUP($A479,Economática!$A$3:$AI$823,21,FALSE)/100=0,VLOOKUP($A479,Economática!$A$3:$AI$823,21,FALSE)/100=\"-\"),1/0,VLOOKUP($A479,Economática!$A$3:$AI$823,21,FALSE)/100))","v":""},{"$f":"IF($A479=\"\",\"\",IF(OR(VLOOKUP($A479,Economática!$A$3:$AI$823,22,FALSE)/100=0,VLOOKUP($A479,Economática!$A$3:$AI$823,22,FALSE)/100=\"-\"),1/0,VLOOKUP($A479,Economática!$A$3:$AI$823,22,FALSE)/100))","v":""},{"$f":"IF($A479=\"\",\"\",IF(OR(VLOOKUP($A479,Economática!$A$3:$AI$823,23,FALSE)=0,VLOOKUP($A479,Economática!$A$3:$AI$823,23,FALSE)=\"-\"),1/0,VLOOKUP($A479,Economática!$A$3:$AI$823,23,FALSE)))","v":""},{"$f":"IF($A479=\"\",\"\",IF(OR(VLOOKUP($A479,Economática!$A$3:$AI$823,24,FALSE)=0,VLOOKUP($A479,Economática!$A$3:$AI$823,24,FALSE)=\"-\"),1/0,VLOOKUP($A479,Economática!$A$3:$AI$823,24,FALSE)))","v":""},{"$f":"IF($A479=\"\",\"\",IF(OR(VLOOKUP($A479,Economática!$A$3:$AI$823,25,FALSE)=0,VLOOKUP($A479,Economática!$A$3:$AI$823,25,FALSE)=\"-\"),1/0,VLOOKUP($A479,Economática!$A$3:$AI$823,25,FALSE)))","v":""},{"$f":"IF($A479=\"\",\"\",IF(ISERROR((F479+VLOOKUP($A479,Economática!$A$3:$AI$823,26,FALSE))/Y479),(F479+VLOOKUP($A479,Economática!$A$3:$AI$823,26,FALSE))/Y479,(F479+VLOOKUP($A479,Economática!$A$3:$AI$823,26,FALSE))/Y479))","v":""},{"$f":"IF($A479=\"\",\"\",IF(OR(-VLOOKUP($A479,Economática!$A$3:$AI$823,27,FALSE)=0,-VLOOKUP($A479,Economática!$A$3:$AI$823,27,FALSE)=\"-\"),1/0,-VLOOKUP($A479,Economática!$A$3:$AI$823,27,FALSE)))","v":""},"",{"$f":"IF($A479=\"\",\"\",IF(OR(VLOOKUP($A479,Economática!$A$3:$AI$823,28,FALSE)=0,VLOOKUP($A479,Economática!$A$3:$AI$823,28,FALSE)=\"-\"),1/0,VLOOKUP($A479,Economática!$A$3:$AI$823,28,FALSE)))","v":""},{"$f":"IF($A479=\"\",\"\",IF(OR(VLOOKUP($A479,Economática!$A$3:$AI$823,29,FALSE)=0,VLOOKUP($A479,Economática!$A$3:$AI$823,29,FALSE)=\"-\"),1/0,VLOOKUP($A479,Economática!$A$3:$AI$823,29,FALSE)))","v":""},{"$f":"IF($A479=\"\",\"\",IF(OR(VLOOKUP($A479,Economática!$A$3:$AI$823,30,FALSE)/E479=0,VLOOKUP($A479,Economática!$A$3:$AI$823,30,FALSE)/E479=\"-\",VLOOKUP($A479,Economática!$A$3:$AI$823,30,FALSE)/E479<33.33%,VLOOKUP($A479,Economática!$A$3:$AI$823,30,FALSE)/E479>100%),1/0,VLOOKUP($A479,Economática!$A$3:$AI$823,30,FALSE)/E479))","v":""},"",{"$f":"IF($A479=\"\",\"\",IF(OR(VLOOKUP($A479,Economática!$A$3:$AI$823,25,FALSE)=0,VLOOKUP($A479,Economática!$A$3:$AI$823,25,FALSE)=\"-\"),1/0,VLOOKUP($A479,Economática!$A$3:$AI$823,25,FALSE)))","v":""},{"$f":"CONCATENATE(Economática!B457,\" \",Economática!C457)","v":" "}]
[{"$f":"IF(Economática!AG458=\"\",\"\",Economática!AG458)","v":""},{"$f":"IF($A480=\"\",\"\",VLOOKUP(VLOOKUP($A480,Economática!$A$3:$AI$823,6,FALSE),Correção!$B$16:$C$36,2,FALSE))","v":""},{"$f":"IF(Economática!B458=\"\",\"\",Economática!B458)","v":""},{"$f":"IF($A480=\"\",\"\",IF(OR(VLOOKUP($A480,Economática!$A$3:$AI$823,8,FALSE)=0,VLOOKUP($A480,Economática!$A$3:$AI$823,8,FALSE)=\"-\"),1/0,VLOOKUP($A480,Economática!$A$3:$AI$823,8,FALSE)))","v":""},{"$f":"IF(A480=\"\",\"\",IF(ISERROR(VLOOKUP(A480,Correção!$B$2:$G$13,9,FALSE)),VLOOKUP($A480,Economática!$A$3:$AI$823,9,FALSE),VLOOKUP(A480,Correção!$B$2:$G$13,9,FALSE)))","v":""},{"$f":"IF($A480=\"\",\"\",Economática!G458)","v":""},{"$f":"IF($A480=\"\",\"\",IF(OR(VLOOKUP($A480,Economática!$A$3:$AI$823,10,FALSE)=0,VLOOKUP($A480,Economática!$A$3:$AI$823,10,FALSE)=\"-\"),1/0,VLOOKUP($A480,Economática!$A$3:$AI$823,10,FALSE)))","v":""},{"$f":"IF($A480=\"\",\"\",IF(OR(VLOOKUP($A480,Economática!$A$3:$AI$823,11,FALSE)=0,VLOOKUP($A480,Economática!$A$3:$AI$823,11,FALSE)=\"-\"),1/0,VLOOKUP($A480,Economática!$A$3:$AI$823,11,FALSE)))","v":""},{"$f":"IF($A480=\"\",\"\",IF(OR(VLOOKUP($A480,Economática!$A$3:$AI$823,12,FALSE)=0,VLOOKUP($A480,Economática!$A$3:$AI$823,12,FALSE)=\"-\"),1/0,VLOOKUP($A480,Economática!$A$3:$AI$823,12,FALSE)))","v":""},{"$f":"IF($A480=\"\",\"\",IF(OR(VLOOKUP($A480,Economática!$A$3:$AI$823,13,FALSE)=0,VLOOKUP($A480,Economática!$A$3:$AI$823,13,FALSE)=\"-\"),1/0,VLOOKUP($A480,Economática!$A$3:$AI$823,13,FALSE)))","v":""},{"$f":"IF($A480=\"\",\"\",IF(OR(VLOOKUP($A480,Economática!$A$3:$AI$823,14,FALSE)=0,VLOOKUP($A480,Economática!$A$3:$AI$823,14,FALSE)=\"-\"),1/0,VLOOKUP($A480,Economática!$A$3:$AI$823,14,FALSE)))","v":""},{"$f":"IF($A480=\"\",\"\",IF(OR(VLOOKUP($A480,Economática!$A$3:$AI$823,15,FALSE)=0,VLOOKUP($A480,Economática!$A$3:$AI$823,15,FALSE)=\"-\"),1/0,VLOOKUP($A480,Economática!$A$3:$AI$823,15,FALSE)))","v":""},{"$f":"IF($A480=\"\",\"\",IF(OR(VLOOKUP($A480,Economática!$A$3:$AI$823,16,FALSE)=0,VLOOKUP($A480,Economática!$A$3:$AI$823,16,FALSE)=\"-\"),1/0,VLOOKUP($A480,Economática!$A$3:$AI$823,16,FALSE)))","v":""},{"$f":"IF($A480=\"\",\"\",IF(OR(VLOOKUP($A480,Economática!$A$3:$AI$823,17,FALSE)=0,VLOOKUP($A480,Economática!$A$3:$AI$823,17,FALSE)=\"-\"),1/0,VLOOKUP($A480,Economática!$A$3:$AI$823,17,FALSE)))","v":""},{"$f":"IF($A480=\"\",\"\",IF(OR(VLOOKUP($A480,Economática!$A$3:$AI$823,18,FALSE)=0,VLOOKUP($A480,Economática!$A$3:$AI$823,18,FALSE)=\"-\"),1/0,VLOOKUP($A480,Economática!$A$3:$AI$823,18,FALSE)))","v":""},{"$f":"IF($A480=\"\",\"\",IF(OR(VLOOKUP($A480,Economática!$A$3:$AI$823,19,FALSE)=0,VLOOKUP($A480,Economática!$A$3:$AI$823,19,FALSE)=\"-\"),1/0,VLOOKUP($A480,Economática!$A$3:$AI$823,19,FALSE)))","v":""},{"$f":"IF($A480=\"\",\"\",VLOOKUP($A480,Economática!$A$3:$AI$823,20,FALSE)/E480)","v":""},"","","",{"$f":"IF($A480=\"\",\"\",IF(OR(VLOOKUP($A480,Economática!$A$3:$AI$823,21,FALSE)/100=0,VLOOKUP($A480,Economática!$A$3:$AI$823,21,FALSE)/100=\"-\"),1/0,VLOOKUP($A480,Economática!$A$3:$AI$823,21,FALSE)/100))","v":""},{"$f":"IF($A480=\"\",\"\",IF(OR(VLOOKUP($A480,Economática!$A$3:$AI$823,22,FALSE)/100=0,VLOOKUP($A480,Economática!$A$3:$AI$823,22,FALSE)/100=\"-\"),1/0,VLOOKUP($A480,Economática!$A$3:$AI$823,22,FALSE)/100))","v":""},{"$f":"IF($A480=\"\",\"\",IF(OR(VLOOKUP($A480,Economática!$A$3:$AI$823,23,FALSE)=0,VLOOKUP($A480,Economática!$A$3:$AI$823,23,FALSE)=\"-\"),1/0,VLOOKUP($A480,Economática!$A$3:$AI$823,23,FALSE)))","v":""},{"$f":"IF($A480=\"\",\"\",IF(OR(VLOOKUP($A480,Economática!$A$3:$AI$823,24,FALSE)=0,VLOOKUP($A480,Economática!$A$3:$AI$823,24,FALSE)=\"-\"),1/0,VLOOKUP($A480,Economática!$A$3:$AI$823,24,FALSE)))","v":""},{"$f":"IF($A480=\"\",\"\",IF(OR(VLOOKUP($A480,Economática!$A$3:$AI$823,25,FALSE)=0,VLOOKUP($A480,Economática!$A$3:$AI$823,25,FALSE)=\"-\"),1/0,VLOOKUP($A480,Economática!$A$3:$AI$823,25,FALSE)))","v":""},{"$f":"IF($A480=\"\",\"\",IF(ISERROR((F480+VLOOKUP($A480,Economática!$A$3:$AI$823,26,FALSE))/Y480),(F480+VLOOKUP($A480,Economática!$A$3:$AI$823,26,FALSE))/Y480,(F480+VLOOKUP($A480,Economática!$A$3:$AI$823,26,FALSE))/Y480))","v":""},{"$f":"IF($A480=\"\",\"\",IF(OR(-VLOOKUP($A480,Economática!$A$3:$AI$823,27,FALSE)=0,-VLOOKUP($A480,Economática!$A$3:$AI$823,27,FALSE)=\"-\"),1/0,-VLOOKUP($A480,Economática!$A$3:$AI$823,27,FALSE)))","v":""},"",{"$f":"IF($A480=\"\",\"\",IF(OR(VLOOKUP($A480,Economática!$A$3:$AI$823,28,FALSE)=0,VLOOKUP($A480,Economática!$A$3:$AI$823,28,FALSE)=\"-\"),1/0,VLOOKUP($A480,Economática!$A$3:$AI$823,28,FALSE)))","v":""},{"$f":"IF($A480=\"\",\"\",IF(OR(VLOOKUP($A480,Economática!$A$3:$AI$823,29,FALSE)=0,VLOOKUP($A480,Economática!$A$3:$AI$823,29,FALSE)=\"-\"),1/0,VLOOKUP($A480,Economática!$A$3:$AI$823,29,FALSE)))","v":""},{"$f":"IF($A480=\"\",\"\",IF(OR(VLOOKUP($A480,Economática!$A$3:$AI$823,30,FALSE)/E480=0,VLOOKUP($A480,Economática!$A$3:$AI$823,30,FALSE)/E480=\"-\",VLOOKUP($A480,Economática!$A$3:$AI$823,30,FALSE)/E480<33.33%,VLOOKUP($A480,Economática!$A$3:$AI$823,30,FALSE)/E480>100%),1/0,VLOOKUP($A480,Economática!$A$3:$AI$823,30,FALSE)/E480))","v":""},"",{"$f":"IF($A480=\"\",\"\",IF(OR(VLOOKUP($A480,Economática!$A$3:$AI$823,25,FALSE)=0,VLOOKUP($A480,Economática!$A$3:$AI$823,25,FALSE)=\"-\"),1/0,VLOOKUP($A480,Economática!$A$3:$AI$823,25,FALSE)))","v":""},{"$f":"CONCATENATE(Economática!B458,\" \",Economática!C458)","v":" "}]
[{"$f":"IF(Economática!AG459=\"\",\"\",Economática!AG459)","v":""},{"$f":"IF($A481=\"\",\"\",VLOOKUP(VLOOKUP($A481,Economática!$A$3:$AI$823,6,FALSE),Correção!$B$16:$C$36,2,FALSE))","v":""},{"$f":"IF(Economática!B459=\"\",\"\",Economática!B459)","v":""},{"$f":"IF($A481=\"\",\"\",IF(OR(VLOOKUP($A481,Economática!$A$3:$AI$823,8,FALSE)=0,VLOOKUP($A481,Economática!$A$3:$AI$823,8,FALSE)=\"-\"),1/0,VLOOKUP($A481,Economática!$A$3:$AI$823,8,FALSE)))","v":""},{"$f":"IF(A481=\"\",\"\",IF(ISERROR(VLOOKUP(A481,Correção!$B$2:$G$13,9,FALSE)),VLOOKUP($A481,Economática!$A$3:$AI$823,9,FALSE),VLOOKUP(A481,Correção!$B$2:$G$13,9,FALSE)))","v":""},{"$f":"IF($A481=\"\",\"\",Economática!G459)","v":""},{"$f":"IF($A481=\"\",\"\",IF(OR(VLOOKUP($A481,Economática!$A$3:$AI$823,10,FALSE)=0,VLOOKUP($A481,Economática!$A$3:$AI$823,10,FALSE)=\"-\"),1/0,VLOOKUP($A481,Economática!$A$3:$AI$823,10,FALSE)))","v":""},{"$f":"IF($A481=\"\",\"\",IF(OR(VLOOKUP($A481,Economática!$A$3:$AI$823,11,FALSE)=0,VLOOKUP($A481,Economática!$A$3:$AI$823,11,FALSE)=\"-\"),1/0,VLOOKUP($A481,Economática!$A$3:$AI$823,11,FALSE)))","v":""},{"$f":"IF($A481=\"\",\"\",IF(OR(VLOOKUP($A481,Economática!$A$3:$AI$823,12,FALSE)=0,VLOOKUP($A481,Economática!$A$3:$AI$823,12,FALSE)=\"-\"),1/0,VLOOKUP($A481,Economática!$A$3:$AI$823,12,FALSE)))","v":""},{"$f":"IF($A481=\"\",\"\",IF(OR(VLOOKUP($A481,Economática!$A$3:$AI$823,13,FALSE)=0,VLOOKUP($A481,Economática!$A$3:$AI$823,13,FALSE)=\"-\"),1/0,VLOOKUP($A481,Economática!$A$3:$AI$823,13,FALSE)))","v":""},{"$f":"IF($A481=\"\",\"\",IF(OR(VLOOKUP($A481,Economática!$A$3:$AI$823,14,FALSE)=0,VLOOKUP($A481,Economática!$A$3:$AI$823,14,FALSE)=\"-\"),1/0,VLOOKUP($A481,Economática!$A$3:$AI$823,14,FALSE)))","v":""},{"$f":"IF($A481=\"\",\"\",IF(OR(VLOOKUP($A481,Economática!$A$3:$AI$823,15,FALSE)=0,VLOOKUP($A481,Economática!$A$3:$AI$823,15,FALSE)=\"-\"),1/0,VLOOKUP($A481,Economática!$A$3:$AI$823,15,FALSE)))","v":""},{"$f":"IF($A481=\"\",\"\",IF(OR(VLOOKUP($A481,Economática!$A$3:$AI$823,16,FALSE)=0,VLOOKUP($A481,Economática!$A$3:$AI$823,16,FALSE)=\"-\"),1/0,VLOOKUP($A481,Economática!$A$3:$AI$823,16,FALSE)))","v":""},{"$f":"IF($A481=\"\",\"\",IF(OR(VLOOKUP($A481,Economática!$A$3:$AI$823,17,FALSE)=0,VLOOKUP($A481,Economática!$A$3:$AI$823,17,FALSE)=\"-\"),1/0,VLOOKUP($A481,Economática!$A$3:$AI$823,17,FALSE)))","v":""},{"$f":"IF($A481=\"\",\"\",IF(OR(VLOOKUP($A481,Economática!$A$3:$AI$823,18,FALSE)=0,VLOOKUP($A481,Economática!$A$3:$AI$823,18,FALSE)=\"-\"),1/0,VLOOKUP($A481,Economática!$A$3:$AI$823,18,FALSE)))","v":""},{"$f":"IF($A481=\"\",\"\",IF(OR(VLOOKUP($A481,Economática!$A$3:$AI$823,19,FALSE)=0,VLOOKUP($A481,Economática!$A$3:$AI$823,19,FALSE)=\"-\"),1/0,VLOOKUP($A481,Economática!$A$3:$AI$823,19,FALSE)))","v":""},{"$f":"IF($A481=\"\",\"\",VLOOKUP($A481,Economática!$A$3:$AI$823,20,FALSE)/E481)","v":""},"","","",{"$f":"IF($A481=\"\",\"\",IF(OR(VLOOKUP($A481,Economática!$A$3:$AI$823,21,FALSE)/100=0,VLOOKUP($A481,Economática!$A$3:$AI$823,21,FALSE)/100=\"-\"),1/0,VLOOKUP($A481,Economática!$A$3:$AI$823,21,FALSE)/100))","v":""},{"$f":"IF($A481=\"\",\"\",IF(OR(VLOOKUP($A481,Economática!$A$3:$AI$823,22,FALSE)/100=0,VLOOKUP($A481,Economática!$A$3:$AI$823,22,FALSE)/100=\"-\"),1/0,VLOOKUP($A481,Economática!$A$3:$AI$823,22,FALSE)/100))","v":""},{"$f":"IF($A481=\"\",\"\",IF(OR(VLOOKUP($A481,Economática!$A$3:$AI$823,23,FALSE)=0,VLOOKUP($A481,Economática!$A$3:$AI$823,23,FALSE)=\"-\"),1/0,VLOOKUP($A481,Economática!$A$3:$AI$823,23,FALSE)))","v":""},{"$f":"IF($A481=\"\",\"\",IF(OR(VLOOKUP($A481,Economática!$A$3:$AI$823,24,FALSE)=0,VLOOKUP($A481,Economática!$A$3:$AI$823,24,FALSE)=\"-\"),1/0,VLOOKUP($A481,Economática!$A$3:$AI$823,24,FALSE)))","v":""},{"$f":"IF($A481=\"\",\"\",IF(OR(VLOOKUP($A481,Economática!$A$3:$AI$823,25,FALSE)=0,VLOOKUP($A481,Economática!$A$3:$AI$823,25,FALSE)=\"-\"),1/0,VLOOKUP($A481,Economática!$A$3:$AI$823,25,FALSE)))","v":""},{"$f":"IF($A481=\"\",\"\",IF(ISERROR((F481+VLOOKUP($A481,Economática!$A$3:$AI$823,26,FALSE))/Y481),(F481+VLOOKUP($A481,Economática!$A$3:$AI$823,26,FALSE))/Y481,(F481+VLOOKUP($A481,Economática!$A$3:$AI$823,26,FALSE))/Y481))","v":""},{"$f":"IF($A481=\"\",\"\",IF(OR(-VLOOKUP($A481,Economática!$A$3:$AI$823,27,FALSE)=0,-VLOOKUP($A481,Economática!$A$3:$AI$823,27,FALSE)=\"-\"),1/0,-VLOOKUP($A481,Economática!$A$3:$AI$823,27,FALSE)))","v":""},"",{"$f":"IF($A481=\"\",\"\",IF(OR(VLOOKUP($A481,Economática!$A$3:$AI$823,28,FALSE)=0,VLOOKUP($A481,Economática!$A$3:$AI$823,28,FALSE)=\"-\"),1/0,VLOOKUP($A481,Economática!$A$3:$AI$823,28,FALSE)))","v":""},{"$f":"IF($A481=\"\",\"\",IF(OR(VLOOKUP($A481,Economática!$A$3:$AI$823,29,FALSE)=0,VLOOKUP($A481,Economática!$A$3:$AI$823,29,FALSE)=\"-\"),1/0,VLOOKUP($A481,Economática!$A$3:$AI$823,29,FALSE)))","v":""},{"$f":"IF($A481=\"\",\"\",IF(OR(VLOOKUP($A481,Economática!$A$3:$AI$823,30,FALSE)/E481=0,VLOOKUP($A481,Economática!$A$3:$AI$823,30,FALSE)/E481=\"-\",VLOOKUP($A481,Economática!$A$3:$AI$823,30,FALSE)/E481<33.33%,VLOOKUP($A481,Economática!$A$3:$AI$823,30,FALSE)/E481>100%),1/0,VLOOKUP($A481,Economática!$A$3:$AI$823,30,FALSE)/E481))","v":""},"",{"$f":"IF($A481=\"\",\"\",IF(OR(VLOOKUP($A481,Economática!$A$3:$AI$823,25,FALSE)=0,VLOOKUP($A481,Economática!$A$3:$AI$823,25,FALSE)=\"-\"),1/0,VLOOKUP($A481,Economática!$A$3:$AI$823,25,FALSE)))","v":""},{"$f":"CONCATENATE(Economática!B459,\" \",Economática!C459)","v":" "}]
[{"$f":"IF(Economática!AG460=\"\",\"\",Economática!AG460)","v":""},{"$f":"IF($A482=\"\",\"\",VLOOKUP(VLOOKUP($A482,Economática!$A$3:$AI$823,6,FALSE),Correção!$B$16:$C$36,2,FALSE))","v":""},{"$f":"IF(Economática!B460=\"\",\"\",Economática!B460)","v":""},{"$f":"IF($A482=\"\",\"\",IF(OR(VLOOKUP($A482,Economática!$A$3:$AI$823,8,FALSE)=0,VLOOKUP($A482,Economática!$A$3:$AI$823,8,FALSE)=\"-\"),1/0,VLOOKUP($A482,Economática!$A$3:$AI$823,8,FALSE)))","v":""},{"$f":"IF(A482=\"\",\"\",IF(ISERROR(VLOOKUP(A482,Correção!$B$2:$G$13,9,FALSE)),VLOOKUP($A482,Economática!$A$3:$AI$823,9,FALSE),VLOOKUP(A482,Correção!$B$2:$G$13,9,FALSE)))","v":""},{"$f":"IF($A482=\"\",\"\",Economática!G460)","v":""},{"$f":"IF($A482=\"\",\"\",IF(OR(VLOOKUP($A482,Economática!$A$3:$AI$823,10,FALSE)=0,VLOOKUP($A482,Economática!$A$3:$AI$823,10,FALSE)=\"-\"),1/0,VLOOKUP($A482,Economática!$A$3:$AI$823,10,FALSE)))","v":""},{"$f":"IF($A482=\"\",\"\",IF(OR(VLOOKUP($A482,Economática!$A$3:$AI$823,11,FALSE)=0,VLOOKUP($A482,Economática!$A$3:$AI$823,11,FALSE)=\"-\"),1/0,VLOOKUP($A482,Economática!$A$3:$AI$823,11,FALSE)))","v":""},{"$f":"IF($A482=\"\",\"\",IF(OR(VLOOKUP($A482,Economática!$A$3:$AI$823,12,FALSE)=0,VLOOKUP($A482,Economática!$A$3:$AI$823,12,FALSE)=\"-\"),1/0,VLOOKUP($A482,Economática!$A$3:$AI$823,12,FALSE)))","v":""},{"$f":"IF($A482=\"\",\"\",IF(OR(VLOOKUP($A482,Economática!$A$3:$AI$823,13,FALSE)=0,VLOOKUP($A482,Economática!$A$3:$AI$823,13,FALSE)=\"-\"),1/0,VLOOKUP($A482,Economática!$A$3:$AI$823,13,FALSE)))","v":""},{"$f":"IF($A482=\"\",\"\",IF(OR(VLOOKUP($A482,Economática!$A$3:$AI$823,14,FALSE)=0,VLOOKUP($A482,Economática!$A$3:$AI$823,14,FALSE)=\"-\"),1/0,VLOOKUP($A482,Economática!$A$3:$AI$823,14,FALSE)))","v":""},{"$f":"IF($A482=\"\",\"\",IF(OR(VLOOKUP($A482,Economática!$A$3:$AI$823,15,FALSE)=0,VLOOKUP($A482,Economática!$A$3:$AI$823,15,FALSE)=\"-\"),1/0,VLOOKUP($A482,Economática!$A$3:$AI$823,15,FALSE)))","v":""},{"$f":"IF($A482=\"\",\"\",IF(OR(VLOOKUP($A482,Economática!$A$3:$AI$823,16,FALSE)=0,VLOOKUP($A482,Economática!$A$3:$AI$823,16,FALSE)=\"-\"),1/0,VLOOKUP($A482,Economática!$A$3:$AI$823,16,FALSE)))","v":""},{"$f":"IF($A482=\"\",\"\",IF(OR(VLOOKUP($A482,Economática!$A$3:$AI$823,17,FALSE)=0,VLOOKUP($A482,Economática!$A$3:$AI$823,17,FALSE)=\"-\"),1/0,VLOOKUP($A482,Economática!$A$3:$AI$823,17,FALSE)))","v":""},{"$f":"IF($A482=\"\",\"\",IF(OR(VLOOKUP($A482,Economática!$A$3:$AI$823,18,FALSE)=0,VLOOKUP($A482,Economática!$A$3:$AI$823,18,FALSE)=\"-\"),1/0,VLOOKUP($A482,Economática!$A$3:$AI$823,18,FALSE)))","v":""},{"$f":"IF($A482=\"\",\"\",IF(OR(VLOOKUP($A482,Economática!$A$3:$AI$823,19,FALSE)=0,VLOOKUP($A482,Economática!$A$3:$AI$823,19,FALSE)=\"-\"),1/0,VLOOKUP($A482,Economática!$A$3:$AI$823,19,FALSE)))","v":""},{"$f":"IF($A482=\"\",\"\",VLOOKUP($A482,Economática!$A$3:$AI$823,20,FALSE)/E482)","v":""},"","","",{"$f":"IF($A482=\"\",\"\",IF(OR(VLOOKUP($A482,Economática!$A$3:$AI$823,21,FALSE)/100=0,VLOOKUP($A482,Economática!$A$3:$AI$823,21,FALSE)/100=\"-\"),1/0,VLOOKUP($A482,Economática!$A$3:$AI$823,21,FALSE)/100))","v":""},{"$f":"IF($A482=\"\",\"\",IF(OR(VLOOKUP($A482,Economática!$A$3:$AI$823,22,FALSE)/100=0,VLOOKUP($A482,Economática!$A$3:$AI$823,22,FALSE)/100=\"-\"),1/0,VLOOKUP($A482,Economática!$A$3:$AI$823,22,FALSE)/100))","v":""},{"$f":"IF($A482=\"\",\"\",IF(OR(VLOOKUP($A482,Economática!$A$3:$AI$823,23,FALSE)=0,VLOOKUP($A482,Economática!$A$3:$AI$823,23,FALSE)=\"-\"),1/0,VLOOKUP($A482,Economática!$A$3:$AI$823,23,FALSE)))","v":""},{"$f":"IF($A482=\"\",\"\",IF(OR(VLOOKUP($A482,Economática!$A$3:$AI$823,24,FALSE)=0,VLOOKUP($A482,Economática!$A$3:$AI$823,24,FALSE)=\"-\"),1/0,VLOOKUP($A482,Economática!$A$3:$AI$823,24,FALSE)))","v":""},{"$f":"IF($A482=\"\",\"\",IF(OR(VLOOKUP($A482,Economática!$A$3:$AI$823,25,FALSE)=0,VLOOKUP($A482,Economática!$A$3:$AI$823,25,FALSE)=\"-\"),1/0,VLOOKUP($A482,Economática!$A$3:$AI$823,25,FALSE)))","v":""},{"$f":"IF($A482=\"\",\"\",IF(ISERROR((F482+VLOOKUP($A482,Economática!$A$3:$AI$823,26,FALSE))/Y482),(F482+VLOOKUP($A482,Economática!$A$3:$AI$823,26,FALSE))/Y482,(F482+VLOOKUP($A482,Economática!$A$3:$AI$823,26,FALSE))/Y482))","v":""},{"$f":"IF($A482=\"\",\"\",IF(OR(-VLOOKUP($A482,Economática!$A$3:$AI$823,27,FALSE)=0,-VLOOKUP($A482,Economática!$A$3:$AI$823,27,FALSE)=\"-\"),1/0,-VLOOKUP($A482,Economática!$A$3:$AI$823,27,FALSE)))","v":""},"",{"$f":"IF($A482=\"\",\"\",IF(OR(VLOOKUP($A482,Economática!$A$3:$AI$823,28,FALSE)=0,VLOOKUP($A482,Economática!$A$3:$AI$823,28,FALSE)=\"-\"),1/0,VLOOKUP($A482,Economática!$A$3:$AI$823,28,FALSE)))","v":""},{"$f":"IF($A482=\"\",\"\",IF(OR(VLOOKUP($A482,Economática!$A$3:$AI$823,29,FALSE)=0,VLOOKUP($A482,Economática!$A$3:$AI$823,29,FALSE)=\"-\"),1/0,VLOOKUP($A482,Economática!$A$3:$AI$823,29,FALSE)))","v":""},{"$f":"IF($A482=\"\",\"\",IF(OR(VLOOKUP($A482,Economática!$A$3:$AI$823,30,FALSE)/E482=0,VLOOKUP($A482,Economática!$A$3:$AI$823,30,FALSE)/E482=\"-\",VLOOKUP($A482,Economática!$A$3:$AI$823,30,FALSE)/E482<33.33%,VLOOKUP($A482,Economática!$A$3:$AI$823,30,FALSE)/E482>100%),1/0,VLOOKUP($A482,Economática!$A$3:$AI$823,30,FALSE)/E482))","v":""},"",{"$f":"IF($A482=\"\",\"\",IF(OR(VLOOKUP($A482,Economática!$A$3:$AI$823,25,FALSE)=0,VLOOKUP($A482,Economática!$A$3:$AI$823,25,FALSE)=\"-\"),1/0,VLOOKUP($A482,Economática!$A$3:$AI$823,25,FALSE)))","v":""},{"$f":"CONCATENATE(Economática!B460,\" \",Economática!C460)","v":" "}]
[{"$f":"IF(Economática!AG461=\"\",\"\",Economática!AG461)","v":""},{"$f":"IF($A483=\"\",\"\",VLOOKUP(VLOOKUP($A483,Economática!$A$3:$AI$823,6,FALSE),Correção!$B$16:$C$36,2,FALSE))","v":""},{"$f":"IF(Economática!B461=\"\",\"\",Economática!B461)","v":""},{"$f":"IF($A483=\"\",\"\",IF(OR(VLOOKUP($A483,Economática!$A$3:$AI$823,8,FALSE)=0,VLOOKUP($A483,Economática!$A$3:$AI$823,8,FALSE)=\"-\"),1/0,VLOOKUP($A483,Economática!$A$3:$AI$823,8,FALSE)))","v":""},{"$f":"IF(A483=\"\",\"\",IF(ISERROR(VLOOKUP(A483,Correção!$B$2:$G$13,9,FALSE)),VLOOKUP($A483,Economática!$A$3:$AI$823,9,FALSE),VLOOKUP(A483,Correção!$B$2:$G$13,9,FALSE)))","v":""},{"$f":"IF($A483=\"\",\"\",Economática!G461)","v":""},{"$f":"IF($A483=\"\",\"\",IF(OR(VLOOKUP($A483,Economática!$A$3:$AI$823,10,FALSE)=0,VLOOKUP($A483,Economática!$A$3:$AI$823,10,FALSE)=\"-\"),1/0,VLOOKUP($A483,Economática!$A$3:$AI$823,10,FALSE)))","v":""},{"$f":"IF($A483=\"\",\"\",IF(OR(VLOOKUP($A483,Economática!$A$3:$AI$823,11,FALSE)=0,VLOOKUP($A483,Economática!$A$3:$AI$823,11,FALSE)=\"-\"),1/0,VLOOKUP($A483,Economática!$A$3:$AI$823,11,FALSE)))","v":""},{"$f":"IF($A483=\"\",\"\",IF(OR(VLOOKUP($A483,Economática!$A$3:$AI$823,12,FALSE)=0,VLOOKUP($A483,Economática!$A$3:$AI$823,12,FALSE)=\"-\"),1/0,VLOOKUP($A483,Economática!$A$3:$AI$823,12,FALSE)))","v":""},{"$f":"IF($A483=\"\",\"\",IF(OR(VLOOKUP($A483,Economática!$A$3:$AI$823,13,FALSE)=0,VLOOKUP($A483,Economática!$A$3:$AI$823,13,FALSE)=\"-\"),1/0,VLOOKUP($A483,Economática!$A$3:$AI$823,13,FALSE)))","v":""},{"$f":"IF($A483=\"\",\"\",IF(OR(VLOOKUP($A483,Economática!$A$3:$AI$823,14,FALSE)=0,VLOOKUP($A483,Economática!$A$3:$AI$823,14,FALSE)=\"-\"),1/0,VLOOKUP($A483,Economática!$A$3:$AI$823,14,FALSE)))","v":""},{"$f":"IF($A483=\"\",\"\",IF(OR(VLOOKUP($A483,Economática!$A$3:$AI$823,15,FALSE)=0,VLOOKUP($A483,Economática!$A$3:$AI$823,15,FALSE)=\"-\"),1/0,VLOOKUP($A483,Economática!$A$3:$AI$823,15,FALSE)))","v":""},{"$f":"IF($A483=\"\",\"\",IF(OR(VLOOKUP($A483,Economática!$A$3:$AI$823,16,FALSE)=0,VLOOKUP($A483,Economática!$A$3:$AI$823,16,FALSE)=\"-\"),1/0,VLOOKUP($A483,Economática!$A$3:$AI$823,16,FALSE)))","v":""},{"$f":"IF($A483=\"\",\"\",IF(OR(VLOOKUP($A483,Economática!$A$3:$AI$823,17,FALSE)=0,VLOOKUP($A483,Economática!$A$3:$AI$823,17,FALSE)=\"-\"),1/0,VLOOKUP($A483,Economática!$A$3:$AI$823,17,FALSE)))","v":""},{"$f":"IF($A483=\"\",\"\",IF(OR(VLOOKUP($A483,Economática!$A$3:$AI$823,18,FALSE)=0,VLOOKUP($A483,Economática!$A$3:$AI$823,18,FALSE)=\"-\"),1/0,VLOOKUP($A483,Economática!$A$3:$AI$823,18,FALSE)))","v":""},{"$f":"IF($A483=\"\",\"\",IF(OR(VLOOKUP($A483,Economática!$A$3:$AI$823,19,FALSE)=0,VLOOKUP($A483,Economática!$A$3:$AI$823,19,FALSE)=\"-\"),1/0,VLOOKUP($A483,Economática!$A$3:$AI$823,19,FALSE)))","v":""},{"$f":"IF($A483=\"\",\"\",VLOOKUP($A483,Economática!$A$3:$AI$823,20,FALSE)/E483)","v":""},"","","",{"$f":"IF($A483=\"\",\"\",IF(OR(VLOOKUP($A483,Economática!$A$3:$AI$823,21,FALSE)/100=0,VLOOKUP($A483,Economática!$A$3:$AI$823,21,FALSE)/100=\"-\"),1/0,VLOOKUP($A483,Economática!$A$3:$AI$823,21,FALSE)/100))","v":""},{"$f":"IF($A483=\"\",\"\",IF(OR(VLOOKUP($A483,Economática!$A$3:$AI$823,22,FALSE)/100=0,VLOOKUP($A483,Economática!$A$3:$AI$823,22,FALSE)/100=\"-\"),1/0,VLOOKUP($A483,Economática!$A$3:$AI$823,22,FALSE)/100))","v":""},{"$f":"IF($A483=\"\",\"\",IF(OR(VLOOKUP($A483,Economática!$A$3:$AI$823,23,FALSE)=0,VLOOKUP($A483,Economática!$A$3:$AI$823,23,FALSE)=\"-\"),1/0,VLOOKUP($A483,Economática!$A$3:$AI$823,23,FALSE)))","v":""},{"$f":"IF($A483=\"\",\"\",IF(OR(VLOOKUP($A483,Economática!$A$3:$AI$823,24,FALSE)=0,VLOOKUP($A483,Economática!$A$3:$AI$823,24,FALSE)=\"-\"),1/0,VLOOKUP($A483,Economática!$A$3:$AI$823,24,FALSE)))","v":""},{"$f":"IF($A483=\"\",\"\",IF(OR(VLOOKUP($A483,Economática!$A$3:$AI$823,25,FALSE)=0,VLOOKUP($A483,Economática!$A$3:$AI$823,25,FALSE)=\"-\"),1/0,VLOOKUP($A483,Economática!$A$3:$AI$823,25,FALSE)))","v":""},{"$f":"IF($A483=\"\",\"\",IF(ISERROR((F483+VLOOKUP($A483,Economática!$A$3:$AI$823,26,FALSE))/Y483),(F483+VLOOKUP($A483,Economática!$A$3:$AI$823,26,FALSE))/Y483,(F483+VLOOKUP($A483,Economática!$A$3:$AI$823,26,FALSE))/Y483))","v":""},{"$f":"IF($A483=\"\",\"\",IF(OR(-VLOOKUP($A483,Economática!$A$3:$AI$823,27,FALSE)=0,-VLOOKUP($A483,Economática!$A$3:$AI$823,27,FALSE)=\"-\"),1/0,-VLOOKUP($A483,Economática!$A$3:$AI$823,27,FALSE)))","v":""},"",{"$f":"IF($A483=\"\",\"\",IF(OR(VLOOKUP($A483,Economática!$A$3:$AI$823,28,FALSE)=0,VLOOKUP($A483,Economática!$A$3:$AI$823,28,FALSE)=\"-\"),1/0,VLOOKUP($A483,Economática!$A$3:$AI$823,28,FALSE)))","v":""},{"$f":"IF($A483=\"\",\"\",IF(OR(VLOOKUP($A483,Economática!$A$3:$AI$823,29,FALSE)=0,VLOOKUP($A483,Economática!$A$3:$AI$823,29,FALSE)=\"-\"),1/0,VLOOKUP($A483,Economática!$A$3:$AI$823,29,FALSE)))","v":""},{"$f":"IF($A483=\"\",\"\",IF(OR(VLOOKUP($A483,Economática!$A$3:$AI$823,30,FALSE)/E483=0,VLOOKUP($A483,Economática!$A$3:$AI$823,30,FALSE)/E483=\"-\",VLOOKUP($A483,Economática!$A$3:$AI$823,30,FALSE)/E483<33.33%,VLOOKUP($A483,Economática!$A$3:$AI$823,30,FALSE)/E483>100%),1/0,VLOOKUP($A483,Economática!$A$3:$AI$823,30,FALSE)/E483))","v":""},"",{"$f":"IF($A483=\"\",\"\",IF(OR(VLOOKUP($A483,Economática!$A$3:$AI$823,25,FALSE)=0,VLOOKUP($A483,Economática!$A$3:$AI$823,25,FALSE)=\"-\"),1/0,VLOOKUP($A483,Economática!$A$3:$AI$823,25,FALSE)))","v":""},{"$f":"CONCATENATE(Economática!B461,\" \",Economática!C461)","v":" "}]
[{"$f":"IF(Economática!AG462=\"\",\"\",Economática!AG462)","v":""},{"$f":"IF($A484=\"\",\"\",VLOOKUP(VLOOKUP($A484,Economática!$A$3:$AI$823,6,FALSE),Correção!$B$16:$C$36,2,FALSE))","v":""},{"$f":"IF(Economática!B462=\"\",\"\",Economática!B462)","v":""},{"$f":"IF($A484=\"\",\"\",IF(OR(VLOOKUP($A484,Economática!$A$3:$AI$823,8,FALSE)=0,VLOOKUP($A484,Economática!$A$3:$AI$823,8,FALSE)=\"-\"),1/0,VLOOKUP($A484,Economática!$A$3:$AI$823,8,FALSE)))","v":""},{"$f":"IF(A484=\"\",\"\",IF(ISERROR(VLOOKUP(A484,Correção!$B$2:$G$13,9,FALSE)),VLOOKUP($A484,Economática!$A$3:$AI$823,9,FALSE),VLOOKUP(A484,Correção!$B$2:$G$13,9,FALSE)))","v":""},{"$f":"IF($A484=\"\",\"\",Economática!G462)","v":""},{"$f":"IF($A484=\"\",\"\",IF(OR(VLOOKUP($A484,Economática!$A$3:$AI$823,10,FALSE)=0,VLOOKUP($A484,Economática!$A$3:$AI$823,10,FALSE)=\"-\"),1/0,VLOOKUP($A484,Economática!$A$3:$AI$823,10,FALSE)))","v":""},{"$f":"IF($A484=\"\",\"\",IF(OR(VLOOKUP($A484,Economática!$A$3:$AI$823,11,FALSE)=0,VLOOKUP($A484,Economática!$A$3:$AI$823,11,FALSE)=\"-\"),1/0,VLOOKUP($A484,Economática!$A$3:$AI$823,11,FALSE)))","v":""},{"$f":"IF($A484=\"\",\"\",IF(OR(VLOOKUP($A484,Economática!$A$3:$AI$823,12,FALSE)=0,VLOOKUP($A484,Economática!$A$3:$AI$823,12,FALSE)=\"-\"),1/0,VLOOKUP($A484,Economática!$A$3:$AI$823,12,FALSE)))","v":""},{"$f":"IF($A484=\"\",\"\",IF(OR(VLOOKUP($A484,Economática!$A$3:$AI$823,13,FALSE)=0,VLOOKUP($A484,Economática!$A$3:$AI$823,13,FALSE)=\"-\"),1/0,VLOOKUP($A484,Economática!$A$3:$AI$823,13,FALSE)))","v":""},{"$f":"IF($A484=\"\",\"\",IF(OR(VLOOKUP($A484,Economática!$A$3:$AI$823,14,FALSE)=0,VLOOKUP($A484,Economática!$A$3:$AI$823,14,FALSE)=\"-\"),1/0,VLOOKUP($A484,Economática!$A$3:$AI$823,14,FALSE)))","v":""},{"$f":"IF($A484=\"\",\"\",IF(OR(VLOOKUP($A484,Economática!$A$3:$AI$823,15,FALSE)=0,VLOOKUP($A484,Economática!$A$3:$AI$823,15,FALSE)=\"-\"),1/0,VLOOKUP($A484,Economática!$A$3:$AI$823,15,FALSE)))","v":""},{"$f":"IF($A484=\"\",\"\",IF(OR(VLOOKUP($A484,Economática!$A$3:$AI$823,16,FALSE)=0,VLOOKUP($A484,Economática!$A$3:$AI$823,16,FALSE)=\"-\"),1/0,VLOOKUP($A484,Economática!$A$3:$AI$823,16,FALSE)))","v":""},{"$f":"IF($A484=\"\",\"\",IF(OR(VLOOKUP($A484,Economática!$A$3:$AI$823,17,FALSE)=0,VLOOKUP($A484,Economática!$A$3:$AI$823,17,FALSE)=\"-\"),1/0,VLOOKUP($A484,Economática!$A$3:$AI$823,17,FALSE)))","v":""},{"$f":"IF($A484=\"\",\"\",IF(OR(VLOOKUP($A484,Economática!$A$3:$AI$823,18,FALSE)=0,VLOOKUP($A484,Economática!$A$3:$AI$823,18,FALSE)=\"-\"),1/0,VLOOKUP($A484,Economática!$A$3:$AI$823,18,FALSE)))","v":""},{"$f":"IF($A484=\"\",\"\",IF(OR(VLOOKUP($A484,Economática!$A$3:$AI$823,19,FALSE)=0,VLOOKUP($A484,Economática!$A$3:$AI$823,19,FALSE)=\"-\"),1/0,VLOOKUP($A484,Economática!$A$3:$AI$823,19,FALSE)))","v":""},{"$f":"IF($A484=\"\",\"\",VLOOKUP($A484,Economática!$A$3:$AI$823,20,FALSE)/E484)","v":""},"","","",{"$f":"IF($A484=\"\",\"\",IF(OR(VLOOKUP($A484,Economática!$A$3:$AI$823,21,FALSE)/100=0,VLOOKUP($A484,Economática!$A$3:$AI$823,21,FALSE)/100=\"-\"),1/0,VLOOKUP($A484,Economática!$A$3:$AI$823,21,FALSE)/100))","v":""},{"$f":"IF($A484=\"\",\"\",IF(OR(VLOOKUP($A484,Economática!$A$3:$AI$823,22,FALSE)/100=0,VLOOKUP($A484,Economática!$A$3:$AI$823,22,FALSE)/100=\"-\"),1/0,VLOOKUP($A484,Economática!$A$3:$AI$823,22,FALSE)/100))","v":""},{"$f":"IF($A484=\"\",\"\",IF(OR(VLOOKUP($A484,Economática!$A$3:$AI$823,23,FALSE)=0,VLOOKUP($A484,Economática!$A$3:$AI$823,23,FALSE)=\"-\"),1/0,VLOOKUP($A484,Economática!$A$3:$AI$823,23,FALSE)))","v":""},{"$f":"IF($A484=\"\",\"\",IF(OR(VLOOKUP($A484,Economática!$A$3:$AI$823,24,FALSE)=0,VLOOKUP($A484,Economática!$A$3:$AI$823,24,FALSE)=\"-\"),1/0,VLOOKUP($A484,Economática!$A$3:$AI$823,24,FALSE)))","v":""},{"$f":"IF($A484=\"\",\"\",IF(OR(VLOOKUP($A484,Economática!$A$3:$AI$823,25,FALSE)=0,VLOOKUP($A484,Economática!$A$3:$AI$823,25,FALSE)=\"-\"),1/0,VLOOKUP($A484,Economática!$A$3:$AI$823,25,FALSE)))","v":""},{"$f":"IF($A484=\"\",\"\",IF(ISERROR((F484+VLOOKUP($A484,Economática!$A$3:$AI$823,26,FALSE))/Y484),(F484+VLOOKUP($A484,Economática!$A$3:$AI$823,26,FALSE))/Y484,(F484+VLOOKUP($A484,Economática!$A$3:$AI$823,26,FALSE))/Y484))","v":""},{"$f":"IF($A484=\"\",\"\",IF(OR(-VLOOKUP($A484,Economática!$A$3:$AI$823,27,FALSE)=0,-VLOOKUP($A484,Economática!$A$3:$AI$823,27,FALSE)=\"-\"),1/0,-VLOOKUP($A484,Economática!$A$3:$AI$823,27,FALSE)))","v":""},"",{"$f":"IF($A484=\"\",\"\",IF(OR(VLOOKUP($A484,Economática!$A$3:$AI$823,28,FALSE)=0,VLOOKUP($A484,Economática!$A$3:$AI$823,28,FALSE)=\"-\"),1/0,VLOOKUP($A484,Economática!$A$3:$AI$823,28,FALSE)))","v":""},{"$f":"IF($A484=\"\",\"\",IF(OR(VLOOKUP($A484,Economática!$A$3:$AI$823,29,FALSE)=0,VLOOKUP($A484,Economática!$A$3:$AI$823,29,FALSE)=\"-\"),1/0,VLOOKUP($A484,Economática!$A$3:$AI$823,29,FALSE)))","v":""},{"$f":"IF($A484=\"\",\"\",IF(OR(VLOOKUP($A484,Economática!$A$3:$AI$823,30,FALSE)/E484=0,VLOOKUP($A484,Economática!$A$3:$AI$823,30,FALSE)/E484=\"-\",VLOOKUP($A484,Economática!$A$3:$AI$823,30,FALSE)/E484<33.33%,VLOOKUP($A484,Economática!$A$3:$AI$823,30,FALSE)/E484>100%),1/0,VLOOKUP($A484,Economática!$A$3:$AI$823,30,FALSE)/E484))","v":""},"",{"$f":"IF($A484=\"\",\"\",IF(OR(VLOOKUP($A484,Economática!$A$3:$AI$823,25,FALSE)=0,VLOOKUP($A484,Economática!$A$3:$AI$823,25,FALSE)=\"-\"),1/0,VLOOKUP($A484,Economática!$A$3:$AI$823,25,FALSE)))","v":""},{"$f":"CONCATENATE(Economática!B462,\" \",Economática!C462)","v":" "}]
[{"$f":"IF(Economática!AG463=\"\",\"\",Economática!AG463)","v":""},{"$f":"IF($A485=\"\",\"\",VLOOKUP(VLOOKUP($A485,Economática!$A$3:$AI$823,6,FALSE),Correção!$B$16:$C$36,2,FALSE))","v":""},{"$f":"IF(Economática!B463=\"\",\"\",Economática!B463)","v":""},{"$f":"IF($A485=\"\",\"\",IF(OR(VLOOKUP($A485,Economática!$A$3:$AI$823,8,FALSE)=0,VLOOKUP($A485,Economática!$A$3:$AI$823,8,FALSE)=\"-\"),1/0,VLOOKUP($A485,Economática!$A$3:$AI$823,8,FALSE)))","v":""},{"$f":"IF(A485=\"\",\"\",IF(ISERROR(VLOOKUP(A485,Correção!$B$2:$G$13,9,FALSE)),VLOOKUP($A485,Economática!$A$3:$AI$823,9,FALSE),VLOOKUP(A485,Correção!$B$2:$G$13,9,FALSE)))","v":""},{"$f":"IF($A485=\"\",\"\",Economática!G463)","v":""},{"$f":"IF($A485=\"\",\"\",IF(OR(VLOOKUP($A485,Economática!$A$3:$AI$823,10,FALSE)=0,VLOOKUP($A485,Economática!$A$3:$AI$823,10,FALSE)=\"-\"),1/0,VLOOKUP($A485,Economática!$A$3:$AI$823,10,FALSE)))","v":""},{"$f":"IF($A485=\"\",\"\",IF(OR(VLOOKUP($A485,Economática!$A$3:$AI$823,11,FALSE)=0,VLOOKUP($A485,Economática!$A$3:$AI$823,11,FALSE)=\"-\"),1/0,VLOOKUP($A485,Economática!$A$3:$AI$823,11,FALSE)))","v":""},{"$f":"IF($A485=\"\",\"\",IF(OR(VLOOKUP($A485,Economática!$A$3:$AI$823,12,FALSE)=0,VLOOKUP($A485,Economática!$A$3:$AI$823,12,FALSE)=\"-\"),1/0,VLOOKUP($A485,Economática!$A$3:$AI$823,12,FALSE)))","v":""},{"$f":"IF($A485=\"\",\"\",IF(OR(VLOOKUP($A485,Economática!$A$3:$AI$823,13,FALSE)=0,VLOOKUP($A485,Economática!$A$3:$AI$823,13,FALSE)=\"-\"),1/0,VLOOKUP($A485,Economática!$A$3:$AI$823,13,FALSE)))","v":""},{"$f":"IF($A485=\"\",\"\",IF(OR(VLOOKUP($A485,Economática!$A$3:$AI$823,14,FALSE)=0,VLOOKUP($A485,Economática!$A$3:$AI$823,14,FALSE)=\"-\"),1/0,VLOOKUP($A485,Economática!$A$3:$AI$823,14,FALSE)))","v":""},{"$f":"IF($A485=\"\",\"\",IF(OR(VLOOKUP($A485,Economática!$A$3:$AI$823,15,FALSE)=0,VLOOKUP($A485,Economática!$A$3:$AI$823,15,FALSE)=\"-\"),1/0,VLOOKUP($A485,Economática!$A$3:$AI$823,15,FALSE)))","v":""},{"$f":"IF($A485=\"\",\"\",IF(OR(VLOOKUP($A485,Economática!$A$3:$AI$823,16,FALSE)=0,VLOOKUP($A485,Economática!$A$3:$AI$823,16,FALSE)=\"-\"),1/0,VLOOKUP($A485,Economática!$A$3:$AI$823,16,FALSE)))","v":""},{"$f":"IF($A485=\"\",\"\",IF(OR(VLOOKUP($A485,Economática!$A$3:$AI$823,17,FALSE)=0,VLOOKUP($A485,Economática!$A$3:$AI$823,17,FALSE)=\"-\"),1/0,VLOOKUP($A485,Economática!$A$3:$AI$823,17,FALSE)))","v":""},{"$f":"IF($A485=\"\",\"\",IF(OR(VLOOKUP($A485,Economática!$A$3:$AI$823,18,FALSE)=0,VLOOKUP($A485,Economática!$A$3:$AI$823,18,FALSE)=\"-\"),1/0,VLOOKUP($A485,Economática!$A$3:$AI$823,18,FALSE)))","v":""},{"$f":"IF($A485=\"\",\"\",IF(OR(VLOOKUP($A485,Economática!$A$3:$AI$823,19,FALSE)=0,VLOOKUP($A485,Economática!$A$3:$AI$823,19,FALSE)=\"-\"),1/0,VLOOKUP($A485,Economática!$A$3:$AI$823,19,FALSE)))","v":""},{"$f":"IF($A485=\"\",\"\",VLOOKUP($A485,Economática!$A$3:$AI$823,20,FALSE)/E485)","v":""},"","","",{"$f":"IF($A485=\"\",\"\",IF(OR(VLOOKUP($A485,Economática!$A$3:$AI$823,21,FALSE)/100=0,VLOOKUP($A485,Economática!$A$3:$AI$823,21,FALSE)/100=\"-\"),1/0,VLOOKUP($A485,Economática!$A$3:$AI$823,21,FALSE)/100))","v":""},{"$f":"IF($A485=\"\",\"\",IF(OR(VLOOKUP($A485,Economática!$A$3:$AI$823,22,FALSE)/100=0,VLOOKUP($A485,Economática!$A$3:$AI$823,22,FALSE)/100=\"-\"),1/0,VLOOKUP($A485,Economática!$A$3:$AI$823,22,FALSE)/100))","v":""},{"$f":"IF($A485=\"\",\"\",IF(OR(VLOOKUP($A485,Economática!$A$3:$AI$823,23,FALSE)=0,VLOOKUP($A485,Economática!$A$3:$AI$823,23,FALSE)=\"-\"),1/0,VLOOKUP($A485,Economática!$A$3:$AI$823,23,FALSE)))","v":""},{"$f":"IF($A485=\"\",\"\",IF(OR(VLOOKUP($A485,Economática!$A$3:$AI$823,24,FALSE)=0,VLOOKUP($A485,Economática!$A$3:$AI$823,24,FALSE)=\"-\"),1/0,VLOOKUP($A485,Economática!$A$3:$AI$823,24,FALSE)))","v":""},{"$f":"IF($A485=\"\",\"\",IF(OR(VLOOKUP($A485,Economática!$A$3:$AI$823,25,FALSE)=0,VLOOKUP($A485,Economática!$A$3:$AI$823,25,FALSE)=\"-\"),1/0,VLOOKUP($A485,Economática!$A$3:$AI$823,25,FALSE)))","v":""},{"$f":"IF($A485=\"\",\"\",IF(ISERROR((F485+VLOOKUP($A485,Economática!$A$3:$AI$823,26,FALSE))/Y485),(F485+VLOOKUP($A485,Economática!$A$3:$AI$823,26,FALSE))/Y485,(F485+VLOOKUP($A485,Economática!$A$3:$AI$823,26,FALSE))/Y485))","v":""},{"$f":"IF($A485=\"\",\"\",IF(OR(-VLOOKUP($A485,Economática!$A$3:$AI$823,27,FALSE)=0,-VLOOKUP($A485,Economática!$A$3:$AI$823,27,FALSE)=\"-\"),1/0,-VLOOKUP($A485,Economática!$A$3:$AI$823,27,FALSE)))","v":""},"",{"$f":"IF($A485=\"\",\"\",IF(OR(VLOOKUP($A485,Economática!$A$3:$AI$823,28,FALSE)=0,VLOOKUP($A485,Economática!$A$3:$AI$823,28,FALSE)=\"-\"),1/0,VLOOKUP($A485,Economática!$A$3:$AI$823,28,FALSE)))","v":""},{"$f":"IF($A485=\"\",\"\",IF(OR(VLOOKUP($A485,Economática!$A$3:$AI$823,29,FALSE)=0,VLOOKUP($A485,Economática!$A$3:$AI$823,29,FALSE)=\"-\"),1/0,VLOOKUP($A485,Economática!$A$3:$AI$823,29,FALSE)))","v":""},{"$f":"IF($A485=\"\",\"\",IF(OR(VLOOKUP($A485,Economática!$A$3:$AI$823,30,FALSE)/E485=0,VLOOKUP($A485,Economática!$A$3:$AI$823,30,FALSE)/E485=\"-\",VLOOKUP($A485,Economática!$A$3:$AI$823,30,FALSE)/E485<33.33%,VLOOKUP($A485,Economática!$A$3:$AI$823,30,FALSE)/E485>100%),1/0,VLOOKUP($A485,Economática!$A$3:$AI$823,30,FALSE)/E485))","v":""},"",{"$f":"IF($A485=\"\",\"\",IF(OR(VLOOKUP($A485,Economática!$A$3:$AI$823,25,FALSE)=0,VLOOKUP($A485,Economática!$A$3:$AI$823,25,FALSE)=\"-\"),1/0,VLOOKUP($A485,Economática!$A$3:$AI$823,25,FALSE)))","v":""},{"$f":"CONCATENATE(Economática!B463,\" \",Economática!C463)","v":" "}]
[{"$f":"IF(Economática!AG464=\"\",\"\",Economática!AG464)","v":""},{"$f":"IF($A486=\"\",\"\",VLOOKUP(VLOOKUP($A486,Economática!$A$3:$AI$823,6,FALSE),Correção!$B$16:$C$36,2,FALSE))","v":""},{"$f":"IF(Economática!B464=\"\",\"\",Economática!B464)","v":""},{"$f":"IF($A486=\"\",\"\",IF(OR(VLOOKUP($A486,Economática!$A$3:$AI$823,8,FALSE)=0,VLOOKUP($A486,Economática!$A$3:$AI$823,8,FALSE)=\"-\"),1/0,VLOOKUP($A486,Economática!$A$3:$AI$823,8,FALSE)))","v":""},{"$f":"IF(A486=\"\",\"\",IF(ISERROR(VLOOKUP(A486,Correção!$B$2:$G$13,9,FALSE)),VLOOKUP($A486,Economática!$A$3:$AI$823,9,FALSE),VLOOKUP(A486,Correção!$B$2:$G$13,9,FALSE)))","v":""},{"$f":"IF($A486=\"\",\"\",Economática!G464)","v":""},{"$f":"IF($A486=\"\",\"\",IF(OR(VLOOKUP($A486,Economática!$A$3:$AI$823,10,FALSE)=0,VLOOKUP($A486,Economática!$A$3:$AI$823,10,FALSE)=\"-\"),1/0,VLOOKUP($A486,Economática!$A$3:$AI$823,10,FALSE)))","v":""},{"$f":"IF($A486=\"\",\"\",IF(OR(VLOOKUP($A486,Economática!$A$3:$AI$823,11,FALSE)=0,VLOOKUP($A486,Economática!$A$3:$AI$823,11,FALSE)=\"-\"),1/0,VLOOKUP($A486,Economática!$A$3:$AI$823,11,FALSE)))","v":""},{"$f":"IF($A486=\"\",\"\",IF(OR(VLOOKUP($A486,Economática!$A$3:$AI$823,12,FALSE)=0,VLOOKUP($A486,Economática!$A$3:$AI$823,12,FALSE)=\"-\"),1/0,VLOOKUP($A486,Economática!$A$3:$AI$823,12,FALSE)))","v":""},{"$f":"IF($A486=\"\",\"\",IF(OR(VLOOKUP($A486,Economática!$A$3:$AI$823,13,FALSE)=0,VLOOKUP($A486,Economática!$A$3:$AI$823,13,FALSE)=\"-\"),1/0,VLOOKUP($A486,Economática!$A$3:$AI$823,13,FALSE)))","v":""},{"$f":"IF($A486=\"\",\"\",IF(OR(VLOOKUP($A486,Economática!$A$3:$AI$823,14,FALSE)=0,VLOOKUP($A486,Economática!$A$3:$AI$823,14,FALSE)=\"-\"),1/0,VLOOKUP($A486,Economática!$A$3:$AI$823,14,FALSE)))","v":""},{"$f":"IF($A486=\"\",\"\",IF(OR(VLOOKUP($A486,Economática!$A$3:$AI$823,15,FALSE)=0,VLOOKUP($A486,Economática!$A$3:$AI$823,15,FALSE)=\"-\"),1/0,VLOOKUP($A486,Economática!$A$3:$AI$823,15,FALSE)))","v":""},{"$f":"IF($A486=\"\",\"\",IF(OR(VLOOKUP($A486,Economática!$A$3:$AI$823,16,FALSE)=0,VLOOKUP($A486,Economática!$A$3:$AI$823,16,FALSE)=\"-\"),1/0,VLOOKUP($A486,Economática!$A$3:$AI$823,16,FALSE)))","v":""},{"$f":"IF($A486=\"\",\"\",IF(OR(VLOOKUP($A486,Economática!$A$3:$AI$823,17,FALSE)=0,VLOOKUP($A486,Economática!$A$3:$AI$823,17,FALSE)=\"-\"),1/0,VLOOKUP($A486,Economática!$A$3:$AI$823,17,FALSE)))","v":""},{"$f":"IF($A486=\"\",\"\",IF(OR(VLOOKUP($A486,Economática!$A$3:$AI$823,18,FALSE)=0,VLOOKUP($A486,Economática!$A$3:$AI$823,18,FALSE)=\"-\"),1/0,VLOOKUP($A486,Economática!$A$3:$AI$823,18,FALSE)))","v":""},{"$f":"IF($A486=\"\",\"\",IF(OR(VLOOKUP($A486,Economática!$A$3:$AI$823,19,FALSE)=0,VLOOKUP($A486,Economática!$A$3:$AI$823,19,FALSE)=\"-\"),1/0,VLOOKUP($A486,Economática!$A$3:$AI$823,19,FALSE)))","v":""},{"$f":"IF($A486=\"\",\"\",VLOOKUP($A486,Economática!$A$3:$AI$823,20,FALSE)/E486)","v":""},"","","",{"$f":"IF($A486=\"\",\"\",IF(OR(VLOOKUP($A486,Economática!$A$3:$AI$823,21,FALSE)/100=0,VLOOKUP($A486,Economática!$A$3:$AI$823,21,FALSE)/100=\"-\"),1/0,VLOOKUP($A486,Economática!$A$3:$AI$823,21,FALSE)/100))","v":""},{"$f":"IF($A486=\"\",\"\",IF(OR(VLOOKUP($A486,Economática!$A$3:$AI$823,22,FALSE)/100=0,VLOOKUP($A486,Economática!$A$3:$AI$823,22,FALSE)/100=\"-\"),1/0,VLOOKUP($A486,Economática!$A$3:$AI$823,22,FALSE)/100))","v":""},{"$f":"IF($A486=\"\",\"\",IF(OR(VLOOKUP($A486,Economática!$A$3:$AI$823,23,FALSE)=0,VLOOKUP($A486,Economática!$A$3:$AI$823,23,FALSE)=\"-\"),1/0,VLOOKUP($A486,Economática!$A$3:$AI$823,23,FALSE)))","v":""},{"$f":"IF($A486=\"\",\"\",IF(OR(VLOOKUP($A486,Economática!$A$3:$AI$823,24,FALSE)=0,VLOOKUP($A486,Economática!$A$3:$AI$823,24,FALSE)=\"-\"),1/0,VLOOKUP($A486,Economática!$A$3:$AI$823,24,FALSE)))","v":""},{"$f":"IF($A486=\"\",\"\",IF(OR(VLOOKUP($A486,Economática!$A$3:$AI$823,25,FALSE)=0,VLOOKUP($A486,Economática!$A$3:$AI$823,25,FALSE)=\"-\"),1/0,VLOOKUP($A486,Economática!$A$3:$AI$823,25,FALSE)))","v":""},{"$f":"IF($A486=\"\",\"\",IF(ISERROR((F486+VLOOKUP($A486,Economática!$A$3:$AI$823,26,FALSE))/Y486),(F486+VLOOKUP($A486,Economática!$A$3:$AI$823,26,FALSE))/Y486,(F486+VLOOKUP($A486,Economática!$A$3:$AI$823,26,FALSE))/Y486))","v":""},{"$f":"IF($A486=\"\",\"\",IF(OR(-VLOOKUP($A486,Economática!$A$3:$AI$823,27,FALSE)=0,-VLOOKUP($A486,Economática!$A$3:$AI$823,27,FALSE)=\"-\"),1/0,-VLOOKUP($A486,Economática!$A$3:$AI$823,27,FALSE)))","v":""},"",{"$f":"IF($A486=\"\",\"\",IF(OR(VLOOKUP($A486,Economática!$A$3:$AI$823,28,FALSE)=0,VLOOKUP($A486,Economática!$A$3:$AI$823,28,FALSE)=\"-\"),1/0,VLOOKUP($A486,Economática!$A$3:$AI$823,28,FALSE)))","v":""},{"$f":"IF($A486=\"\",\"\",IF(OR(VLOOKUP($A486,Economática!$A$3:$AI$823,29,FALSE)=0,VLOOKUP($A486,Economática!$A$3:$AI$823,29,FALSE)=\"-\"),1/0,VLOOKUP($A486,Economática!$A$3:$AI$823,29,FALSE)))","v":""},{"$f":"IF($A486=\"\",\"\",IF(OR(VLOOKUP($A486,Economática!$A$3:$AI$823,30,FALSE)/E486=0,VLOOKUP($A486,Economática!$A$3:$AI$823,30,FALSE)/E486=\"-\",VLOOKUP($A486,Economática!$A$3:$AI$823,30,FALSE)/E486<33.33%,VLOOKUP($A486,Economática!$A$3:$AI$823,30,FALSE)/E486>100%),1/0,VLOOKUP($A486,Economática!$A$3:$AI$823,30,FALSE)/E486))","v":""},"",{"$f":"IF($A486=\"\",\"\",IF(OR(VLOOKUP($A486,Economática!$A$3:$AI$823,25,FALSE)=0,VLOOKUP($A486,Economática!$A$3:$AI$823,25,FALSE)=\"-\"),1/0,VLOOKUP($A486,Economática!$A$3:$AI$823,25,FALSE)))","v":""},{"$f":"CONCATENATE(Economática!B464,\" \",Economática!C464)","v":" "}]
[{"$f":"IF(Economática!AG465=\"\",\"\",Economática!AG465)","v":""},{"$f":"IF($A487=\"\",\"\",VLOOKUP(VLOOKUP($A487,Economática!$A$3:$AI$823,6,FALSE),Correção!$B$16:$C$36,2,FALSE))","v":""},{"$f":"IF(Economática!B465=\"\",\"\",Economática!B465)","v":""},{"$f":"IF($A487=\"\",\"\",IF(OR(VLOOKUP($A487,Economática!$A$3:$AI$823,8,FALSE)=0,VLOOKUP($A487,Economática!$A$3:$AI$823,8,FALSE)=\"-\"),1/0,VLOOKUP($A487,Economática!$A$3:$AI$823,8,FALSE)))","v":""},{"$f":"IF(A487=\"\",\"\",IF(ISERROR(VLOOKUP(A487,Correção!$B$2:$G$13,9,FALSE)),VLOOKUP($A487,Economática!$A$3:$AI$823,9,FALSE),VLOOKUP(A487,Correção!$B$2:$G$13,9,FALSE)))","v":""},{"$f":"IF($A487=\"\",\"\",Economática!G465)","v":""},{"$f":"IF($A487=\"\",\"\",IF(OR(VLOOKUP($A487,Economática!$A$3:$AI$823,10,FALSE)=0,VLOOKUP($A487,Economática!$A$3:$AI$823,10,FALSE)=\"-\"),1/0,VLOOKUP($A487,Economática!$A$3:$AI$823,10,FALSE)))","v":""},{"$f":"IF($A487=\"\",\"\",IF(OR(VLOOKUP($A487,Economática!$A$3:$AI$823,11,FALSE)=0,VLOOKUP($A487,Economática!$A$3:$AI$823,11,FALSE)=\"-\"),1/0,VLOOKUP($A487,Economática!$A$3:$AI$823,11,FALSE)))","v":""},{"$f":"IF($A487=\"\",\"\",IF(OR(VLOOKUP($A487,Economática!$A$3:$AI$823,12,FALSE)=0,VLOOKUP($A487,Economática!$A$3:$AI$823,12,FALSE)=\"-\"),1/0,VLOOKUP($A487,Economática!$A$3:$AI$823,12,FALSE)))","v":""},{"$f":"IF($A487=\"\",\"\",IF(OR(VLOOKUP($A487,Economática!$A$3:$AI$823,13,FALSE)=0,VLOOKUP($A487,Economática!$A$3:$AI$823,13,FALSE)=\"-\"),1/0,VLOOKUP($A487,Economática!$A$3:$AI$823,13,FALSE)))","v":""},{"$f":"IF($A487=\"\",\"\",IF(OR(VLOOKUP($A487,Economática!$A$3:$AI$823,14,FALSE)=0,VLOOKUP($A487,Economática!$A$3:$AI$823,14,FALSE)=\"-\"),1/0,VLOOKUP($A487,Economática!$A$3:$AI$823,14,FALSE)))","v":""},{"$f":"IF($A487=\"\",\"\",IF(OR(VLOOKUP($A487,Economática!$A$3:$AI$823,15,FALSE)=0,VLOOKUP($A487,Economática!$A$3:$AI$823,15,FALSE)=\"-\"),1/0,VLOOKUP($A487,Economática!$A$3:$AI$823,15,FALSE)))","v":""},{"$f":"IF($A487=\"\",\"\",IF(OR(VLOOKUP($A487,Economática!$A$3:$AI$823,16,FALSE)=0,VLOOKUP($A487,Economática!$A$3:$AI$823,16,FALSE)=\"-\"),1/0,VLOOKUP($A487,Economática!$A$3:$AI$823,16,FALSE)))","v":""},{"$f":"IF($A487=\"\",\"\",IF(OR(VLOOKUP($A487,Economática!$A$3:$AI$823,17,FALSE)=0,VLOOKUP($A487,Economática!$A$3:$AI$823,17,FALSE)=\"-\"),1/0,VLOOKUP($A487,Economática!$A$3:$AI$823,17,FALSE)))","v":""},{"$f":"IF($A487=\"\",\"\",IF(OR(VLOOKUP($A487,Economática!$A$3:$AI$823,18,FALSE)=0,VLOOKUP($A487,Economática!$A$3:$AI$823,18,FALSE)=\"-\"),1/0,VLOOKUP($A487,Economática!$A$3:$AI$823,18,FALSE)))","v":""},{"$f":"IF($A487=\"\",\"\",IF(OR(VLOOKUP($A487,Economática!$A$3:$AI$823,19,FALSE)=0,VLOOKUP($A487,Economática!$A$3:$AI$823,19,FALSE)=\"-\"),1/0,VLOOKUP($A487,Economática!$A$3:$AI$823,19,FALSE)))","v":""},{"$f":"IF($A487=\"\",\"\",VLOOKUP($A487,Economática!$A$3:$AI$823,20,FALSE)/E487)","v":""},"","","",{"$f":"IF($A487=\"\",\"\",IF(OR(VLOOKUP($A487,Economática!$A$3:$AI$823,21,FALSE)/100=0,VLOOKUP($A487,Economática!$A$3:$AI$823,21,FALSE)/100=\"-\"),1/0,VLOOKUP($A487,Economática!$A$3:$AI$823,21,FALSE)/100))","v":""},{"$f":"IF($A487=\"\",\"\",IF(OR(VLOOKUP($A487,Economática!$A$3:$AI$823,22,FALSE)/100=0,VLOOKUP($A487,Economática!$A$3:$AI$823,22,FALSE)/100=\"-\"),1/0,VLOOKUP($A487,Economática!$A$3:$AI$823,22,FALSE)/100))","v":""},{"$f":"IF($A487=\"\",\"\",IF(OR(VLOOKUP($A487,Economática!$A$3:$AI$823,23,FALSE)=0,VLOOKUP($A487,Economática!$A$3:$AI$823,23,FALSE)=\"-\"),1/0,VLOOKUP($A487,Economática!$A$3:$AI$823,23,FALSE)))","v":""},{"$f":"IF($A487=\"\",\"\",IF(OR(VLOOKUP($A487,Economática!$A$3:$AI$823,24,FALSE)=0,VLOOKUP($A487,Economática!$A$3:$AI$823,24,FALSE)=\"-\"),1/0,VLOOKUP($A487,Economática!$A$3:$AI$823,24,FALSE)))","v":""},{"$f":"IF($A487=\"\",\"\",IF(OR(VLOOKUP($A487,Economática!$A$3:$AI$823,25,FALSE)=0,VLOOKUP($A487,Economática!$A$3:$AI$823,25,FALSE)=\"-\"),1/0,VLOOKUP($A487,Economática!$A$3:$AI$823,25,FALSE)))","v":""},{"$f":"IF($A487=\"\",\"\",IF(ISERROR((F487+VLOOKUP($A487,Economática!$A$3:$AI$823,26,FALSE))/Y487),(F487+VLOOKUP($A487,Economática!$A$3:$AI$823,26,FALSE))/Y487,(F487+VLOOKUP($A487,Economática!$A$3:$AI$823,26,FALSE))/Y487))","v":""},{"$f":"IF($A487=\"\",\"\",IF(OR(-VLOOKUP($A487,Economática!$A$3:$AI$823,27,FALSE)=0,-VLOOKUP($A487,Economática!$A$3:$AI$823,27,FALSE)=\"-\"),1/0,-VLOOKUP($A487,Economática!$A$3:$AI$823,27,FALSE)))","v":""},"",{"$f":"IF($A487=\"\",\"\",IF(OR(VLOOKUP($A487,Economática!$A$3:$AI$823,28,FALSE)=0,VLOOKUP($A487,Economática!$A$3:$AI$823,28,FALSE)=\"-\"),1/0,VLOOKUP($A487,Economática!$A$3:$AI$823,28,FALSE)))","v":""},{"$f":"IF($A487=\"\",\"\",IF(OR(VLOOKUP($A487,Economática!$A$3:$AI$823,29,FALSE)=0,VLOOKUP($A487,Economática!$A$3:$AI$823,29,FALSE)=\"-\"),1/0,VLOOKUP($A487,Economática!$A$3:$AI$823,29,FALSE)))","v":""},{"$f":"IF($A487=\"\",\"\",IF(OR(VLOOKUP($A487,Economática!$A$3:$AI$823,30,FALSE)/E487=0,VLOOKUP($A487,Economática!$A$3:$AI$823,30,FALSE)/E487=\"-\",VLOOKUP($A487,Economática!$A$3:$AI$823,30,FALSE)/E487<33.33%,VLOOKUP($A487,Economática!$A$3:$AI$823,30,FALSE)/E487>100%),1/0,VLOOKUP($A487,Economática!$A$3:$AI$823,30,FALSE)/E487))","v":""},"",{"$f":"IF($A487=\"\",\"\",IF(OR(VLOOKUP($A487,Economática!$A$3:$AI$823,25,FALSE)=0,VLOOKUP($A487,Economática!$A$3:$AI$823,25,FALSE)=\"-\"),1/0,VLOOKUP($A487,Economática!$A$3:$AI$823,25,FALSE)))","v":""},{"$f":"CONCATENATE(Economática!B465,\" \",Economática!C465)","v":" "}]
[{"$f":"IF(Economática!AG466=\"\",\"\",Economática!AG466)","v":""},{"$f":"IF($A488=\"\",\"\",VLOOKUP(VLOOKUP($A488,Economática!$A$3:$AI$823,6,FALSE),Correção!$B$16:$C$36,2,FALSE))","v":""},{"$f":"IF(Economática!B466=\"\",\"\",Economática!B466)","v":""},{"$f":"IF($A488=\"\",\"\",IF(OR(VLOOKUP($A488,Economática!$A$3:$AI$823,8,FALSE)=0,VLOOKUP($A488,Economática!$A$3:$AI$823,8,FALSE)=\"-\"),1/0,VLOOKUP($A488,Economática!$A$3:$AI$823,8,FALSE)))","v":""},{"$f":"IF(A488=\"\",\"\",IF(ISERROR(VLOOKUP(A488,Correção!$B$2:$G$13,9,FALSE)),VLOOKUP($A488,Economática!$A$3:$AI$823,9,FALSE),VLOOKUP(A488,Correção!$B$2:$G$13,9,FALSE)))","v":""},{"$f":"IF($A488=\"\",\"\",Economática!G466)","v":""},{"$f":"IF($A488=\"\",\"\",IF(OR(VLOOKUP($A488,Economática!$A$3:$AI$823,10,FALSE)=0,VLOOKUP($A488,Economática!$A$3:$AI$823,10,FALSE)=\"-\"),1/0,VLOOKUP($A488,Economática!$A$3:$AI$823,10,FALSE)))","v":""},{"$f":"IF($A488=\"\",\"\",IF(OR(VLOOKUP($A488,Economática!$A$3:$AI$823,11,FALSE)=0,VLOOKUP($A488,Economática!$A$3:$AI$823,11,FALSE)=\"-\"),1/0,VLOOKUP($A488,Economática!$A$3:$AI$823,11,FALSE)))","v":""},{"$f":"IF($A488=\"\",\"\",IF(OR(VLOOKUP($A488,Economática!$A$3:$AI$823,12,FALSE)=0,VLOOKUP($A488,Economática!$A$3:$AI$823,12,FALSE)=\"-\"),1/0,VLOOKUP($A488,Economática!$A$3:$AI$823,12,FALSE)))","v":""},{"$f":"IF($A488=\"\",\"\",IF(OR(VLOOKUP($A488,Economática!$A$3:$AI$823,13,FALSE)=0,VLOOKUP($A488,Economática!$A$3:$AI$823,13,FALSE)=\"-\"),1/0,VLOOKUP($A488,Economática!$A$3:$AI$823,13,FALSE)))","v":""},{"$f":"IF($A488=\"\",\"\",IF(OR(VLOOKUP($A488,Economática!$A$3:$AI$823,14,FALSE)=0,VLOOKUP($A488,Economática!$A$3:$AI$823,14,FALSE)=\"-\"),1/0,VLOOKUP($A488,Economática!$A$3:$AI$823,14,FALSE)))","v":""},{"$f":"IF($A488=\"\",\"\",IF(OR(VLOOKUP($A488,Economática!$A$3:$AI$823,15,FALSE)=0,VLOOKUP($A488,Economática!$A$3:$AI$823,15,FALSE)=\"-\"),1/0,VLOOKUP($A488,Economática!$A$3:$AI$823,15,FALSE)))","v":""},{"$f":"IF($A488=\"\",\"\",IF(OR(VLOOKUP($A488,Economática!$A$3:$AI$823,16,FALSE)=0,VLOOKUP($A488,Economática!$A$3:$AI$823,16,FALSE)=\"-\"),1/0,VLOOKUP($A488,Economática!$A$3:$AI$823,16,FALSE)))","v":""},{"$f":"IF($A488=\"\",\"\",IF(OR(VLOOKUP($A488,Economática!$A$3:$AI$823,17,FALSE)=0,VLOOKUP($A488,Economática!$A$3:$AI$823,17,FALSE)=\"-\"),1/0,VLOOKUP($A488,Economática!$A$3:$AI$823,17,FALSE)))","v":""},{"$f":"IF($A488=\"\",\"\",IF(OR(VLOOKUP($A488,Economática!$A$3:$AI$823,18,FALSE)=0,VLOOKUP($A488,Economática!$A$3:$AI$823,18,FALSE)=\"-\"),1/0,VLOOKUP($A488,Economática!$A$3:$AI$823,18,FALSE)))","v":""},{"$f":"IF($A488=\"\",\"\",IF(OR(VLOOKUP($A488,Economática!$A$3:$AI$823,19,FALSE)=0,VLOOKUP($A488,Economática!$A$3:$AI$823,19,FALSE)=\"-\"),1/0,VLOOKUP($A488,Economática!$A$3:$AI$823,19,FALSE)))","v":""},{"$f":"IF($A488=\"\",\"\",VLOOKUP($A488,Economática!$A$3:$AI$823,20,FALSE)/E488)","v":""},"","","",{"$f":"IF($A488=\"\",\"\",IF(OR(VLOOKUP($A488,Economática!$A$3:$AI$823,21,FALSE)/100=0,VLOOKUP($A488,Economática!$A$3:$AI$823,21,FALSE)/100=\"-\"),1/0,VLOOKUP($A488,Economática!$A$3:$AI$823,21,FALSE)/100))","v":""},{"$f":"IF($A488=\"\",\"\",IF(OR(VLOOKUP($A488,Economática!$A$3:$AI$823,22,FALSE)/100=0,VLOOKUP($A488,Economática!$A$3:$AI$823,22,FALSE)/100=\"-\"),1/0,VLOOKUP($A488,Economática!$A$3:$AI$823,22,FALSE)/100))","v":""},{"$f":"IF($A488=\"\",\"\",IF(OR(VLOOKUP($A488,Economática!$A$3:$AI$823,23,FALSE)=0,VLOOKUP($A488,Economática!$A$3:$AI$823,23,FALSE)=\"-\"),1/0,VLOOKUP($A488,Economática!$A$3:$AI$823,23,FALSE)))","v":""},{"$f":"IF($A488=\"\",\"\",IF(OR(VLOOKUP($A488,Economática!$A$3:$AI$823,24,FALSE)=0,VLOOKUP($A488,Economática!$A$3:$AI$823,24,FALSE)=\"-\"),1/0,VLOOKUP($A488,Economática!$A$3:$AI$823,24,FALSE)))","v":""},{"$f":"IF($A488=\"\",\"\",IF(OR(VLOOKUP($A488,Economática!$A$3:$AI$823,25,FALSE)=0,VLOOKUP($A488,Economática!$A$3:$AI$823,25,FALSE)=\"-\"),1/0,VLOOKUP($A488,Economática!$A$3:$AI$823,25,FALSE)))","v":""},{"$f":"IF($A488=\"\",\"\",IF(ISERROR((F488+VLOOKUP($A488,Economática!$A$3:$AI$823,26,FALSE))/Y488),(F488+VLOOKUP($A488,Economática!$A$3:$AI$823,26,FALSE))/Y488,(F488+VLOOKUP($A488,Economática!$A$3:$AI$823,26,FALSE))/Y488))","v":""},{"$f":"IF($A488=\"\",\"\",IF(OR(-VLOOKUP($A488,Economática!$A$3:$AI$823,27,FALSE)=0,-VLOOKUP($A488,Economática!$A$3:$AI$823,27,FALSE)=\"-\"),1/0,-VLOOKUP($A488,Economática!$A$3:$AI$823,27,FALSE)))","v":""},"",{"$f":"IF($A488=\"\",\"\",IF(OR(VLOOKUP($A488,Economática!$A$3:$AI$823,28,FALSE)=0,VLOOKUP($A488,Economática!$A$3:$AI$823,28,FALSE)=\"-\"),1/0,VLOOKUP($A488,Economática!$A$3:$AI$823,28,FALSE)))","v":""},{"$f":"IF($A488=\"\",\"\",IF(OR(VLOOKUP($A488,Economática!$A$3:$AI$823,29,FALSE)=0,VLOOKUP($A488,Economática!$A$3:$AI$823,29,FALSE)=\"-\"),1/0,VLOOKUP($A488,Economática!$A$3:$AI$823,29,FALSE)))","v":""},{"$f":"IF($A488=\"\",\"\",IF(OR(VLOOKUP($A488,Economática!$A$3:$AI$823,30,FALSE)/E488=0,VLOOKUP($A488,Economática!$A$3:$AI$823,30,FALSE)/E488=\"-\",VLOOKUP($A488,Economática!$A$3:$AI$823,30,FALSE)/E488<33.33%,VLOOKUP($A488,Economática!$A$3:$AI$823,30,FALSE)/E488>100%),1/0,VLOOKUP($A488,Economática!$A$3:$AI$823,30,FALSE)/E488))","v":""},"",{"$f":"IF($A488=\"\",\"\",IF(OR(VLOOKUP($A488,Economática!$A$3:$AI$823,25,FALSE)=0,VLOOKUP($A488,Economática!$A$3:$AI$823,25,FALSE)=\"-\"),1/0,VLOOKUP($A488,Economática!$A$3:$AI$823,25,FALSE)))","v":""},{"$f":"CONCATENATE(Economática!B466,\" \",Economática!C466)","v":" "}]
[{"$f":"IF(Economática!AG467=\"\",\"\",Economática!AG467)","v":""},{"$f":"IF($A489=\"\",\"\",VLOOKUP(VLOOKUP($A489,Economática!$A$3:$AI$823,6,FALSE),Correção!$B$16:$C$36,2,FALSE))","v":""},{"$f":"IF(Economática!B467=\"\",\"\",Economática!B467)","v":""},{"$f":"IF($A489=\"\",\"\",IF(OR(VLOOKUP($A489,Economática!$A$3:$AI$823,8,FALSE)=0,VLOOKUP($A489,Economática!$A$3:$AI$823,8,FALSE)=\"-\"),1/0,VLOOKUP($A489,Economática!$A$3:$AI$823,8,FALSE)))","v":""},{"$f":"IF(A489=\"\",\"\",IF(ISERROR(VLOOKUP(A489,Correção!$B$2:$G$13,9,FALSE)),VLOOKUP($A489,Economática!$A$3:$AI$823,9,FALSE),VLOOKUP(A489,Correção!$B$2:$G$13,9,FALSE)))","v":""},{"$f":"IF($A489=\"\",\"\",Economática!G467)","v":""},{"$f":"IF($A489=\"\",\"\",IF(OR(VLOOKUP($A489,Economática!$A$3:$AI$823,10,FALSE)=0,VLOOKUP($A489,Economática!$A$3:$AI$823,10,FALSE)=\"-\"),1/0,VLOOKUP($A489,Economática!$A$3:$AI$823,10,FALSE)))","v":""},{"$f":"IF($A489=\"\",\"\",IF(OR(VLOOKUP($A489,Economática!$A$3:$AI$823,11,FALSE)=0,VLOOKUP($A489,Economática!$A$3:$AI$823,11,FALSE)=\"-\"),1/0,VLOOKUP($A489,Economática!$A$3:$AI$823,11,FALSE)))","v":""},{"$f":"IF($A489=\"\",\"\",IF(OR(VLOOKUP($A489,Economática!$A$3:$AI$823,12,FALSE)=0,VLOOKUP($A489,Economática!$A$3:$AI$823,12,FALSE)=\"-\"),1/0,VLOOKUP($A489,Economática!$A$3:$AI$823,12,FALSE)))","v":""},{"$f":"IF($A489=\"\",\"\",IF(OR(VLOOKUP($A489,Economática!$A$3:$AI$823,13,FALSE)=0,VLOOKUP($A489,Economática!$A$3:$AI$823,13,FALSE)=\"-\"),1/0,VLOOKUP($A489,Economática!$A$3:$AI$823,13,FALSE)))","v":""},{"$f":"IF($A489=\"\",\"\",IF(OR(VLOOKUP($A489,Economática!$A$3:$AI$823,14,FALSE)=0,VLOOKUP($A489,Economática!$A$3:$AI$823,14,FALSE)=\"-\"),1/0,VLOOKUP($A489,Economática!$A$3:$AI$823,14,FALSE)))","v":""},{"$f":"IF($A489=\"\",\"\",IF(OR(VLOOKUP($A489,Economática!$A$3:$AI$823,15,FALSE)=0,VLOOKUP($A489,Economática!$A$3:$AI$823,15,FALSE)=\"-\"),1/0,VLOOKUP($A489,Economática!$A$3:$AI$823,15,FALSE)))","v":""},{"$f":"IF($A489=\"\",\"\",IF(OR(VLOOKUP($A489,Economática!$A$3:$AI$823,16,FALSE)=0,VLOOKUP($A489,Economática!$A$3:$AI$823,16,FALSE)=\"-\"),1/0,VLOOKUP($A489,Economática!$A$3:$AI$823,16,FALSE)))","v":""},{"$f":"IF($A489=\"\",\"\",IF(OR(VLOOKUP($A489,Economática!$A$3:$AI$823,17,FALSE)=0,VLOOKUP($A489,Economática!$A$3:$AI$823,17,FALSE)=\"-\"),1/0,VLOOKUP($A489,Economática!$A$3:$AI$823,17,FALSE)))","v":""},{"$f":"IF($A489=\"\",\"\",IF(OR(VLOOKUP($A489,Economática!$A$3:$AI$823,18,FALSE)=0,VLOOKUP($A489,Economática!$A$3:$AI$823,18,FALSE)=\"-\"),1/0,VLOOKUP($A489,Economática!$A$3:$AI$823,18,FALSE)))","v":""},{"$f":"IF($A489=\"\",\"\",IF(OR(VLOOKUP($A489,Economática!$A$3:$AI$823,19,FALSE)=0,VLOOKUP($A489,Economática!$A$3:$AI$823,19,FALSE)=\"-\"),1/0,VLOOKUP($A489,Economática!$A$3:$AI$823,19,FALSE)))","v":""},{"$f":"IF($A489=\"\",\"\",VLOOKUP($A489,Economática!$A$3:$AI$823,20,FALSE)/E489)","v":""},"","","",{"$f":"IF($A489=\"\",\"\",IF(OR(VLOOKUP($A489,Economática!$A$3:$AI$823,21,FALSE)/100=0,VLOOKUP($A489,Economática!$A$3:$AI$823,21,FALSE)/100=\"-\"),1/0,VLOOKUP($A489,Economática!$A$3:$AI$823,21,FALSE)/100))","v":""},{"$f":"IF($A489=\"\",\"\",IF(OR(VLOOKUP($A489,Economática!$A$3:$AI$823,22,FALSE)/100=0,VLOOKUP($A489,Economática!$A$3:$AI$823,22,FALSE)/100=\"-\"),1/0,VLOOKUP($A489,Economática!$A$3:$AI$823,22,FALSE)/100))","v":""},{"$f":"IF($A489=\"\",\"\",IF(OR(VLOOKUP($A489,Economática!$A$3:$AI$823,23,FALSE)=0,VLOOKUP($A489,Economática!$A$3:$AI$823,23,FALSE)=\"-\"),1/0,VLOOKUP($A489,Economática!$A$3:$AI$823,23,FALSE)))","v":""},{"$f":"IF($A489=\"\",\"\",IF(OR(VLOOKUP($A489,Economática!$A$3:$AI$823,24,FALSE)=0,VLOOKUP($A489,Economática!$A$3:$AI$823,24,FALSE)=\"-\"),1/0,VLOOKUP($A489,Economática!$A$3:$AI$823,24,FALSE)))","v":""},{"$f":"IF($A489=\"\",\"\",IF(OR(VLOOKUP($A489,Economática!$A$3:$AI$823,25,FALSE)=0,VLOOKUP($A489,Economática!$A$3:$AI$823,25,FALSE)=\"-\"),1/0,VLOOKUP($A489,Economática!$A$3:$AI$823,25,FALSE)))","v":""},{"$f":"IF($A489=\"\",\"\",IF(ISERROR((F489+VLOOKUP($A489,Economática!$A$3:$AI$823,26,FALSE))/Y489),(F489+VLOOKUP($A489,Economática!$A$3:$AI$823,26,FALSE))/Y489,(F489+VLOOKUP($A489,Economática!$A$3:$AI$823,26,FALSE))/Y489))","v":""},{"$f":"IF($A489=\"\",\"\",IF(OR(-VLOOKUP($A489,Economática!$A$3:$AI$823,27,FALSE)=0,-VLOOKUP($A489,Economática!$A$3:$AI$823,27,FALSE)=\"-\"),1/0,-VLOOKUP($A489,Economática!$A$3:$AI$823,27,FALSE)))","v":""},"",{"$f":"IF($A489=\"\",\"\",IF(OR(VLOOKUP($A489,Economática!$A$3:$AI$823,28,FALSE)=0,VLOOKUP($A489,Economática!$A$3:$AI$823,28,FALSE)=\"-\"),1/0,VLOOKUP($A489,Economática!$A$3:$AI$823,28,FALSE)))","v":""},{"$f":"IF($A489=\"\",\"\",IF(OR(VLOOKUP($A489,Economática!$A$3:$AI$823,29,FALSE)=0,VLOOKUP($A489,Economática!$A$3:$AI$823,29,FALSE)=\"-\"),1/0,VLOOKUP($A489,Economática!$A$3:$AI$823,29,FALSE)))","v":""},{"$f":"IF($A489=\"\",\"\",IF(OR(VLOOKUP($A489,Economática!$A$3:$AI$823,30,FALSE)/E489=0,VLOOKUP($A489,Economática!$A$3:$AI$823,30,FALSE)/E489=\"-\",VLOOKUP($A489,Economática!$A$3:$AI$823,30,FALSE)/E489<33.33%,VLOOKUP($A489,Economática!$A$3:$AI$823,30,FALSE)/E489>100%),1/0,VLOOKUP($A489,Economática!$A$3:$AI$823,30,FALSE)/E489))","v":""},"",{"$f":"IF($A489=\"\",\"\",IF(OR(VLOOKUP($A489,Economática!$A$3:$AI$823,25,FALSE)=0,VLOOKUP($A489,Economática!$A$3:$AI$823,25,FALSE)=\"-\"),1/0,VLOOKUP($A489,Economática!$A$3:$AI$823,25,FALSE)))","v":""},{"$f":"CONCATENATE(Economática!B467,\" \",Economática!C467)","v":" "}]
[{"$f":"IF(Economática!AG468=\"\",\"\",Economática!AG468)","v":""},{"$f":"IF($A490=\"\",\"\",VLOOKUP(VLOOKUP($A490,Economática!$A$3:$AI$823,6,FALSE),Correção!$B$16:$C$36,2,FALSE))","v":""},{"$f":"IF(Economática!B468=\"\",\"\",Economática!B468)","v":""},{"$f":"IF($A490=\"\",\"\",IF(OR(VLOOKUP($A490,Economática!$A$3:$AI$823,8,FALSE)=0,VLOOKUP($A490,Economática!$A$3:$AI$823,8,FALSE)=\"-\"),1/0,VLOOKUP($A490,Economática!$A$3:$AI$823,8,FALSE)))","v":""},{"$f":"IF(A490=\"\",\"\",IF(ISERROR(VLOOKUP(A490,Correção!$B$2:$G$13,9,FALSE)),VLOOKUP($A490,Economática!$A$3:$AI$823,9,FALSE),VLOOKUP(A490,Correção!$B$2:$G$13,9,FALSE)))","v":""},{"$f":"IF($A490=\"\",\"\",Economática!G468)","v":""},{"$f":"IF($A490=\"\",\"\",IF(OR(VLOOKUP($A490,Economática!$A$3:$AI$823,10,FALSE)=0,VLOOKUP($A490,Economática!$A$3:$AI$823,10,FALSE)=\"-\"),1/0,VLOOKUP($A490,Economática!$A$3:$AI$823,10,FALSE)))","v":""},{"$f":"IF($A490=\"\",\"\",IF(OR(VLOOKUP($A490,Economática!$A$3:$AI$823,11,FALSE)=0,VLOOKUP($A490,Economática!$A$3:$AI$823,11,FALSE)=\"-\"),1/0,VLOOKUP($A490,Economática!$A$3:$AI$823,11,FALSE)))","v":""},{"$f":"IF($A490=\"\",\"\",IF(OR(VLOOKUP($A490,Economática!$A$3:$AI$823,12,FALSE)=0,VLOOKUP($A490,Economática!$A$3:$AI$823,12,FALSE)=\"-\"),1/0,VLOOKUP($A490,Economática!$A$3:$AI$823,12,FALSE)))","v":""},{"$f":"IF($A490=\"\",\"\",IF(OR(VLOOKUP($A490,Economática!$A$3:$AI$823,13,FALSE)=0,VLOOKUP($A490,Economática!$A$3:$AI$823,13,FALSE)=\"-\"),1/0,VLOOKUP($A490,Economática!$A$3:$AI$823,13,FALSE)))","v":""},{"$f":"IF($A490=\"\",\"\",IF(OR(VLOOKUP($A490,Economática!$A$3:$AI$823,14,FALSE)=0,VLOOKUP($A490,Economática!$A$3:$AI$823,14,FALSE)=\"-\"),1/0,VLOOKUP($A490,Economática!$A$3:$AI$823,14,FALSE)))","v":""},{"$f":"IF($A490=\"\",\"\",IF(OR(VLOOKUP($A490,Economática!$A$3:$AI$823,15,FALSE)=0,VLOOKUP($A490,Economática!$A$3:$AI$823,15,FALSE)=\"-\"),1/0,VLOOKUP($A490,Economática!$A$3:$AI$823,15,FALSE)))","v":""},{"$f":"IF($A490=\"\",\"\",IF(OR(VLOOKUP($A490,Economática!$A$3:$AI$823,16,FALSE)=0,VLOOKUP($A490,Economática!$A$3:$AI$823,16,FALSE)=\"-\"),1/0,VLOOKUP($A490,Economática!$A$3:$AI$823,16,FALSE)))","v":""},{"$f":"IF($A490=\"\",\"\",IF(OR(VLOOKUP($A490,Economática!$A$3:$AI$823,17,FALSE)=0,VLOOKUP($A490,Economática!$A$3:$AI$823,17,FALSE)=\"-\"),1/0,VLOOKUP($A490,Economática!$A$3:$AI$823,17,FALSE)))","v":""},{"$f":"IF($A490=\"\",\"\",IF(OR(VLOOKUP($A490,Economática!$A$3:$AI$823,18,FALSE)=0,VLOOKUP($A490,Economática!$A$3:$AI$823,18,FALSE)=\"-\"),1/0,VLOOKUP($A490,Economática!$A$3:$AI$823,18,FALSE)))","v":""},{"$f":"IF($A490=\"\",\"\",IF(OR(VLOOKUP($A490,Economática!$A$3:$AI$823,19,FALSE)=0,VLOOKUP($A490,Economática!$A$3:$AI$823,19,FALSE)=\"-\"),1/0,VLOOKUP($A490,Economática!$A$3:$AI$823,19,FALSE)))","v":""},{"$f":"IF($A490=\"\",\"\",VLOOKUP($A490,Economática!$A$3:$AI$823,20,FALSE)/E490)","v":""},"","","",{"$f":"IF($A490=\"\",\"\",IF(OR(VLOOKUP($A490,Economática!$A$3:$AI$823,21,FALSE)/100=0,VLOOKUP($A490,Economática!$A$3:$AI$823,21,FALSE)/100=\"-\"),1/0,VLOOKUP($A490,Economática!$A$3:$AI$823,21,FALSE)/100))","v":""},{"$f":"IF($A490=\"\",\"\",IF(OR(VLOOKUP($A490,Economática!$A$3:$AI$823,22,FALSE)/100=0,VLOOKUP($A490,Economática!$A$3:$AI$823,22,FALSE)/100=\"-\"),1/0,VLOOKUP($A490,Economática!$A$3:$AI$823,22,FALSE)/100))","v":""},{"$f":"IF($A490=\"\",\"\",IF(OR(VLOOKUP($A490,Economática!$A$3:$AI$823,23,FALSE)=0,VLOOKUP($A490,Economática!$A$3:$AI$823,23,FALSE)=\"-\"),1/0,VLOOKUP($A490,Economática!$A$3:$AI$823,23,FALSE)))","v":""},{"$f":"IF($A490=\"\",\"\",IF(OR(VLOOKUP($A490,Economática!$A$3:$AI$823,24,FALSE)=0,VLOOKUP($A490,Economática!$A$3:$AI$823,24,FALSE)=\"-\"),1/0,VLOOKUP($A490,Economática!$A$3:$AI$823,24,FALSE)))","v":""},{"$f":"IF($A490=\"\",\"\",IF(OR(VLOOKUP($A490,Economática!$A$3:$AI$823,25,FALSE)=0,VLOOKUP($A490,Economática!$A$3:$AI$823,25,FALSE)=\"-\"),1/0,VLOOKUP($A490,Economática!$A$3:$AI$823,25,FALSE)))","v":""},{"$f":"IF($A490=\"\",\"\",IF(ISERROR((F490+VLOOKUP($A490,Economática!$A$3:$AI$823,26,FALSE))/Y490),(F490+VLOOKUP($A490,Economática!$A$3:$AI$823,26,FALSE))/Y490,(F490+VLOOKUP($A490,Economática!$A$3:$AI$823,26,FALSE))/Y490))","v":""},{"$f":"IF($A490=\"\",\"\",IF(OR(-VLOOKUP($A490,Economática!$A$3:$AI$823,27,FALSE)=0,-VLOOKUP($A490,Economática!$A$3:$AI$823,27,FALSE)=\"-\"),1/0,-VLOOKUP($A490,Economática!$A$3:$AI$823,27,FALSE)))","v":""},"",{"$f":"IF($A490=\"\",\"\",IF(OR(VLOOKUP($A490,Economática!$A$3:$AI$823,28,FALSE)=0,VLOOKUP($A490,Economática!$A$3:$AI$823,28,FALSE)=\"-\"),1/0,VLOOKUP($A490,Economática!$A$3:$AI$823,28,FALSE)))","v":""},{"$f":"IF($A490=\"\",\"\",IF(OR(VLOOKUP($A490,Economática!$A$3:$AI$823,29,FALSE)=0,VLOOKUP($A490,Economática!$A$3:$AI$823,29,FALSE)=\"-\"),1/0,VLOOKUP($A490,Economática!$A$3:$AI$823,29,FALSE)))","v":""},{"$f":"IF($A490=\"\",\"\",IF(OR(VLOOKUP($A490,Economática!$A$3:$AI$823,30,FALSE)/E490=0,VLOOKUP($A490,Economática!$A$3:$AI$823,30,FALSE)/E490=\"-\",VLOOKUP($A490,Economática!$A$3:$AI$823,30,FALSE)/E490<33.33%,VLOOKUP($A490,Economática!$A$3:$AI$823,30,FALSE)/E490>100%),1/0,VLOOKUP($A490,Economática!$A$3:$AI$823,30,FALSE)/E490))","v":""},"",{"$f":"IF($A490=\"\",\"\",IF(OR(VLOOKUP($A490,Economática!$A$3:$AI$823,25,FALSE)=0,VLOOKUP($A490,Economática!$A$3:$AI$823,25,FALSE)=\"-\"),1/0,VLOOKUP($A490,Economática!$A$3:$AI$823,25,FALSE)))","v":""},{"$f":"CONCATENATE(Economática!B468,\" \",Economática!C468)","v":" "}]
[{"$f":"IF(Economática!AG469=\"\",\"\",Economática!AG469)","v":""},{"$f":"IF($A491=\"\",\"\",VLOOKUP(VLOOKUP($A491,Economática!$A$3:$AI$823,6,FALSE),Correção!$B$16:$C$36,2,FALSE))","v":""},{"$f":"IF(Economática!B469=\"\",\"\",Economática!B469)","v":""},{"$f":"IF($A491=\"\",\"\",IF(OR(VLOOKUP($A491,Economática!$A$3:$AI$823,8,FALSE)=0,VLOOKUP($A491,Economática!$A$3:$AI$823,8,FALSE)=\"-\"),1/0,VLOOKUP($A491,Economática!$A$3:$AI$823,8,FALSE)))","v":""},{"$f":"IF(A491=\"\",\"\",IF(ISERROR(VLOOKUP(A491,Correção!$B$2:$G$13,9,FALSE)),VLOOKUP($A491,Economática!$A$3:$AI$823,9,FALSE),VLOOKUP(A491,Correção!$B$2:$G$13,9,FALSE)))","v":""},{"$f":"IF($A491=\"\",\"\",Economática!G469)","v":""},{"$f":"IF($A491=\"\",\"\",IF(OR(VLOOKUP($A491,Economática!$A$3:$AI$823,10,FALSE)=0,VLOOKUP($A491,Economática!$A$3:$AI$823,10,FALSE)=\"-\"),1/0,VLOOKUP($A491,Economática!$A$3:$AI$823,10,FALSE)))","v":""},{"$f":"IF($A491=\"\",\"\",IF(OR(VLOOKUP($A491,Economática!$A$3:$AI$823,11,FALSE)=0,VLOOKUP($A491,Economática!$A$3:$AI$823,11,FALSE)=\"-\"),1/0,VLOOKUP($A491,Economática!$A$3:$AI$823,11,FALSE)))","v":""},{"$f":"IF($A491=\"\",\"\",IF(OR(VLOOKUP($A491,Economática!$A$3:$AI$823,12,FALSE)=0,VLOOKUP($A491,Economática!$A$3:$AI$823,12,FALSE)=\"-\"),1/0,VLOOKUP($A491,Economática!$A$3:$AI$823,12,FALSE)))","v":""},{"$f":"IF($A491=\"\",\"\",IF(OR(VLOOKUP($A491,Economática!$A$3:$AI$823,13,FALSE)=0,VLOOKUP($A491,Economática!$A$3:$AI$823,13,FALSE)=\"-\"),1/0,VLOOKUP($A491,Economática!$A$3:$AI$823,13,FALSE)))","v":""},{"$f":"IF($A491=\"\",\"\",IF(OR(VLOOKUP($A491,Economática!$A$3:$AI$823,14,FALSE)=0,VLOOKUP($A491,Economática!$A$3:$AI$823,14,FALSE)=\"-\"),1/0,VLOOKUP($A491,Economática!$A$3:$AI$823,14,FALSE)))","v":""},{"$f":"IF($A491=\"\",\"\",IF(OR(VLOOKUP($A491,Economática!$A$3:$AI$823,15,FALSE)=0,VLOOKUP($A491,Economática!$A$3:$AI$823,15,FALSE)=\"-\"),1/0,VLOOKUP($A491,Economática!$A$3:$AI$823,15,FALSE)))","v":""},{"$f":"IF($A491=\"\",\"\",IF(OR(VLOOKUP($A491,Economática!$A$3:$AI$823,16,FALSE)=0,VLOOKUP($A491,Economática!$A$3:$AI$823,16,FALSE)=\"-\"),1/0,VLOOKUP($A491,Economática!$A$3:$AI$823,16,FALSE)))","v":""},{"$f":"IF($A491=\"\",\"\",IF(OR(VLOOKUP($A491,Economática!$A$3:$AI$823,17,FALSE)=0,VLOOKUP($A491,Economática!$A$3:$AI$823,17,FALSE)=\"-\"),1/0,VLOOKUP($A491,Economática!$A$3:$AI$823,17,FALSE)))","v":""},{"$f":"IF($A491=\"\",\"\",IF(OR(VLOOKUP($A491,Economática!$A$3:$AI$823,18,FALSE)=0,VLOOKUP($A491,Economática!$A$3:$AI$823,18,FALSE)=\"-\"),1/0,VLOOKUP($A491,Economática!$A$3:$AI$823,18,FALSE)))","v":""},{"$f":"IF($A491=\"\",\"\",IF(OR(VLOOKUP($A491,Economática!$A$3:$AI$823,19,FALSE)=0,VLOOKUP($A491,Economática!$A$3:$AI$823,19,FALSE)=\"-\"),1/0,VLOOKUP($A491,Economática!$A$3:$AI$823,19,FALSE)))","v":""},{"$f":"IF($A491=\"\",\"\",VLOOKUP($A491,Economática!$A$3:$AI$823,20,FALSE)/E491)","v":""},"","","",{"$f":"IF($A491=\"\",\"\",IF(OR(VLOOKUP($A491,Economática!$A$3:$AI$823,21,FALSE)/100=0,VLOOKUP($A491,Economática!$A$3:$AI$823,21,FALSE)/100=\"-\"),1/0,VLOOKUP($A491,Economática!$A$3:$AI$823,21,FALSE)/100))","v":""},{"$f":"IF($A491=\"\",\"\",IF(OR(VLOOKUP($A491,Economática!$A$3:$AI$823,22,FALSE)/100=0,VLOOKUP($A491,Economática!$A$3:$AI$823,22,FALSE)/100=\"-\"),1/0,VLOOKUP($A491,Economática!$A$3:$AI$823,22,FALSE)/100))","v":""},{"$f":"IF($A491=\"\",\"\",IF(OR(VLOOKUP($A491,Economática!$A$3:$AI$823,23,FALSE)=0,VLOOKUP($A491,Economática!$A$3:$AI$823,23,FALSE)=\"-\"),1/0,VLOOKUP($A491,Economática!$A$3:$AI$823,23,FALSE)))","v":""},{"$f":"IF($A491=\"\",\"\",IF(OR(VLOOKUP($A491,Economática!$A$3:$AI$823,24,FALSE)=0,VLOOKUP($A491,Economática!$A$3:$AI$823,24,FALSE)=\"-\"),1/0,VLOOKUP($A491,Economática!$A$3:$AI$823,24,FALSE)))","v":""},{"$f":"IF($A491=\"\",\"\",IF(OR(VLOOKUP($A491,Economática!$A$3:$AI$823,25,FALSE)=0,VLOOKUP($A491,Economática!$A$3:$AI$823,25,FALSE)=\"-\"),1/0,VLOOKUP($A491,Economática!$A$3:$AI$823,25,FALSE)))","v":""},{"$f":"IF($A491=\"\",\"\",IF(ISERROR((F491+VLOOKUP($A491,Economática!$A$3:$AI$823,26,FALSE))/Y491),(F491+VLOOKUP($A491,Economática!$A$3:$AI$823,26,FALSE))/Y491,(F491+VLOOKUP($A491,Economática!$A$3:$AI$823,26,FALSE))/Y491))","v":""},{"$f":"IF($A491=\"\",\"\",IF(OR(-VLOOKUP($A491,Economática!$A$3:$AI$823,27,FALSE)=0,-VLOOKUP($A491,Economática!$A$3:$AI$823,27,FALSE)=\"-\"),1/0,-VLOOKUP($A491,Economática!$A$3:$AI$823,27,FALSE)))","v":""},"",{"$f":"IF($A491=\"\",\"\",IF(OR(VLOOKUP($A491,Economática!$A$3:$AI$823,28,FALSE)=0,VLOOKUP($A491,Economática!$A$3:$AI$823,28,FALSE)=\"-\"),1/0,VLOOKUP($A491,Economática!$A$3:$AI$823,28,FALSE)))","v":""},{"$f":"IF($A491=\"\",\"\",IF(OR(VLOOKUP($A491,Economática!$A$3:$AI$823,29,FALSE)=0,VLOOKUP($A491,Economática!$A$3:$AI$823,29,FALSE)=\"-\"),1/0,VLOOKUP($A491,Economática!$A$3:$AI$823,29,FALSE)))","v":""},{"$f":"IF($A491=\"\",\"\",IF(OR(VLOOKUP($A491,Economática!$A$3:$AI$823,30,FALSE)/E491=0,VLOOKUP($A491,Economática!$A$3:$AI$823,30,FALSE)/E491=\"-\",VLOOKUP($A491,Economática!$A$3:$AI$823,30,FALSE)/E491<33.33%,VLOOKUP($A491,Economática!$A$3:$AI$823,30,FALSE)/E491>100%),1/0,VLOOKUP($A491,Economática!$A$3:$AI$823,30,FALSE)/E491))","v":""},"",{"$f":"IF($A491=\"\",\"\",IF(OR(VLOOKUP($A491,Economática!$A$3:$AI$823,25,FALSE)=0,VLOOKUP($A491,Economática!$A$3:$AI$823,25,FALSE)=\"-\"),1/0,VLOOKUP($A491,Economática!$A$3:$AI$823,25,FALSE)))","v":""},{"$f":"CONCATENATE(Economática!B469,\" \",Economática!C469)","v":" "}]
[{"$f":"IF(Economática!AG470=\"\",\"\",Economática!AG470)","v":""},{"$f":"IF($A492=\"\",\"\",VLOOKUP(VLOOKUP($A492,Economática!$A$3:$AI$823,6,FALSE),Correção!$B$16:$C$36,2,FALSE))","v":""},{"$f":"IF(Economática!B470=\"\",\"\",Economática!B470)","v":""},{"$f":"IF($A492=\"\",\"\",IF(OR(VLOOKUP($A492,Economática!$A$3:$AI$823,8,FALSE)=0,VLOOKUP($A492,Economática!$A$3:$AI$823,8,FALSE)=\"-\"),1/0,VLOOKUP($A492,Economática!$A$3:$AI$823,8,FALSE)))","v":""},{"$f":"IF(A492=\"\",\"\",IF(ISERROR(VLOOKUP(A492,Correção!$B$2:$G$13,9,FALSE)),VLOOKUP($A492,Economática!$A$3:$AI$823,9,FALSE),VLOOKUP(A492,Correção!$B$2:$G$13,9,FALSE)))","v":""},{"$f":"IF($A492=\"\",\"\",Economática!G470)","v":""},{"$f":"IF($A492=\"\",\"\",IF(OR(VLOOKUP($A492,Economática!$A$3:$AI$823,10,FALSE)=0,VLOOKUP($A492,Economática!$A$3:$AI$823,10,FALSE)=\"-\"),1/0,VLOOKUP($A492,Economática!$A$3:$AI$823,10,FALSE)))","v":""},{"$f":"IF($A492=\"\",\"\",IF(OR(VLOOKUP($A492,Economática!$A$3:$AI$823,11,FALSE)=0,VLOOKUP($A492,Economática!$A$3:$AI$823,11,FALSE)=\"-\"),1/0,VLOOKUP($A492,Economática!$A$3:$AI$823,11,FALSE)))","v":""},{"$f":"IF($A492=\"\",\"\",IF(OR(VLOOKUP($A492,Economática!$A$3:$AI$823,12,FALSE)=0,VLOOKUP($A492,Economática!$A$3:$AI$823,12,FALSE)=\"-\"),1/0,VLOOKUP($A492,Economática!$A$3:$AI$823,12,FALSE)))","v":""},{"$f":"IF($A492=\"\",\"\",IF(OR(VLOOKUP($A492,Economática!$A$3:$AI$823,13,FALSE)=0,VLOOKUP($A492,Economática!$A$3:$AI$823,13,FALSE)=\"-\"),1/0,VLOOKUP($A492,Economática!$A$3:$AI$823,13,FALSE)))","v":""},{"$f":"IF($A492=\"\",\"\",IF(OR(VLOOKUP($A492,Economática!$A$3:$AI$823,14,FALSE)=0,VLOOKUP($A492,Economática!$A$3:$AI$823,14,FALSE)=\"-\"),1/0,VLOOKUP($A492,Economática!$A$3:$AI$823,14,FALSE)))","v":""},{"$f":"IF($A492=\"\",\"\",IF(OR(VLOOKUP($A492,Economática!$A$3:$AI$823,15,FALSE)=0,VLOOKUP($A492,Economática!$A$3:$AI$823,15,FALSE)=\"-\"),1/0,VLOOKUP($A492,Economática!$A$3:$AI$823,15,FALSE)))","v":""},{"$f":"IF($A492=\"\",\"\",IF(OR(VLOOKUP($A492,Economática!$A$3:$AI$823,16,FALSE)=0,VLOOKUP($A492,Economática!$A$3:$AI$823,16,FALSE)=\"-\"),1/0,VLOOKUP($A492,Economática!$A$3:$AI$823,16,FALSE)))","v":""},{"$f":"IF($A492=\"\",\"\",IF(OR(VLOOKUP($A492,Economática!$A$3:$AI$823,17,FALSE)=0,VLOOKUP($A492,Economática!$A$3:$AI$823,17,FALSE)=\"-\"),1/0,VLOOKUP($A492,Economática!$A$3:$AI$823,17,FALSE)))","v":""},{"$f":"IF($A492=\"\",\"\",IF(OR(VLOOKUP($A492,Economática!$A$3:$AI$823,18,FALSE)=0,VLOOKUP($A492,Economática!$A$3:$AI$823,18,FALSE)=\"-\"),1/0,VLOOKUP($A492,Economática!$A$3:$AI$823,18,FALSE)))","v":""},{"$f":"IF($A492=\"\",\"\",IF(OR(VLOOKUP($A492,Economática!$A$3:$AI$823,19,FALSE)=0,VLOOKUP($A492,Economática!$A$3:$AI$823,19,FALSE)=\"-\"),1/0,VLOOKUP($A492,Economática!$A$3:$AI$823,19,FALSE)))","v":""},{"$f":"IF($A492=\"\",\"\",VLOOKUP($A492,Economática!$A$3:$AI$823,20,FALSE)/E492)","v":""},"","","",{"$f":"IF($A492=\"\",\"\",IF(OR(VLOOKUP($A492,Economática!$A$3:$AI$823,21,FALSE)/100=0,VLOOKUP($A492,Economática!$A$3:$AI$823,21,FALSE)/100=\"-\"),1/0,VLOOKUP($A492,Economática!$A$3:$AI$823,21,FALSE)/100))","v":""},{"$f":"IF($A492=\"\",\"\",IF(OR(VLOOKUP($A492,Economática!$A$3:$AI$823,22,FALSE)/100=0,VLOOKUP($A492,Economática!$A$3:$AI$823,22,FALSE)/100=\"-\"),1/0,VLOOKUP($A492,Economática!$A$3:$AI$823,22,FALSE)/100))","v":""},{"$f":"IF($A492=\"\",\"\",IF(OR(VLOOKUP($A492,Economática!$A$3:$AI$823,23,FALSE)=0,VLOOKUP($A492,Economática!$A$3:$AI$823,23,FALSE)=\"-\"),1/0,VLOOKUP($A492,Economática!$A$3:$AI$823,23,FALSE)))","v":""},{"$f":"IF($A492=\"\",\"\",IF(OR(VLOOKUP($A492,Economática!$A$3:$AI$823,24,FALSE)=0,VLOOKUP($A492,Economática!$A$3:$AI$823,24,FALSE)=\"-\"),1/0,VLOOKUP($A492,Economática!$A$3:$AI$823,24,FALSE)))","v":""},{"$f":"IF($A492=\"\",\"\",IF(OR(VLOOKUP($A492,Economática!$A$3:$AI$823,25,FALSE)=0,VLOOKUP($A492,Economática!$A$3:$AI$823,25,FALSE)=\"-\"),1/0,VLOOKUP($A492,Economática!$A$3:$AI$823,25,FALSE)))","v":""},{"$f":"IF($A492=\"\",\"\",IF(ISERROR((F492+VLOOKUP($A492,Economática!$A$3:$AI$823,26,FALSE))/Y492),(F492+VLOOKUP($A492,Economática!$A$3:$AI$823,26,FALSE))/Y492,(F492+VLOOKUP($A492,Economática!$A$3:$AI$823,26,FALSE))/Y492))","v":""},{"$f":"IF($A492=\"\",\"\",IF(OR(-VLOOKUP($A492,Economática!$A$3:$AI$823,27,FALSE)=0,-VLOOKUP($A492,Economática!$A$3:$AI$823,27,FALSE)=\"-\"),1/0,-VLOOKUP($A492,Economática!$A$3:$AI$823,27,FALSE)))","v":""},"",{"$f":"IF($A492=\"\",\"\",IF(OR(VLOOKUP($A492,Economática!$A$3:$AI$823,28,FALSE)=0,VLOOKUP($A492,Economática!$A$3:$AI$823,28,FALSE)=\"-\"),1/0,VLOOKUP($A492,Economática!$A$3:$AI$823,28,FALSE)))","v":""},{"$f":"IF($A492=\"\",\"\",IF(OR(VLOOKUP($A492,Economática!$A$3:$AI$823,29,FALSE)=0,VLOOKUP($A492,Economática!$A$3:$AI$823,29,FALSE)=\"-\"),1/0,VLOOKUP($A492,Economática!$A$3:$AI$823,29,FALSE)))","v":""},{"$f":"IF($A492=\"\",\"\",IF(OR(VLOOKUP($A492,Economática!$A$3:$AI$823,30,FALSE)/E492=0,VLOOKUP($A492,Economática!$A$3:$AI$823,30,FALSE)/E492=\"-\",VLOOKUP($A492,Economática!$A$3:$AI$823,30,FALSE)/E492<33.33%,VLOOKUP($A492,Economática!$A$3:$AI$823,30,FALSE)/E492>100%),1/0,VLOOKUP($A492,Economática!$A$3:$AI$823,30,FALSE)/E492))","v":""},"",{"$f":"IF($A492=\"\",\"\",IF(OR(VLOOKUP($A492,Economática!$A$3:$AI$823,25,FALSE)=0,VLOOKUP($A492,Economática!$A$3:$AI$823,25,FALSE)=\"-\"),1/0,VLOOKUP($A492,Economática!$A$3:$AI$823,25,FALSE)))","v":""},{"$f":"CONCATENATE(Economática!B470,\" \",Economática!C470)","v":" "}]
[{"$f":"IF(Economática!AG471=\"\",\"\",Economática!AG471)","v":""},{"$f":"IF($A493=\"\",\"\",VLOOKUP(VLOOKUP($A493,Economática!$A$3:$AI$823,6,FALSE),Correção!$B$16:$C$36,2,FALSE))","v":""},{"$f":"IF(Economática!B471=\"\",\"\",Economática!B471)","v":""},{"$f":"IF($A493=\"\",\"\",IF(OR(VLOOKUP($A493,Economática!$A$3:$AI$823,8,FALSE)=0,VLOOKUP($A493,Economática!$A$3:$AI$823,8,FALSE)=\"-\"),1/0,VLOOKUP($A493,Economática!$A$3:$AI$823,8,FALSE)))","v":""},{"$f":"IF(A493=\"\",\"\",IF(ISERROR(VLOOKUP(A493,Correção!$B$2:$G$13,9,FALSE)),VLOOKUP($A493,Economática!$A$3:$AI$823,9,FALSE),VLOOKUP(A493,Correção!$B$2:$G$13,9,FALSE)))","v":""},{"$f":"IF($A493=\"\",\"\",Economática!G471)","v":""},{"$f":"IF($A493=\"\",\"\",IF(OR(VLOOKUP($A493,Economática!$A$3:$AI$823,10,FALSE)=0,VLOOKUP($A493,Economática!$A$3:$AI$823,10,FALSE)=\"-\"),1/0,VLOOKUP($A493,Economática!$A$3:$AI$823,10,FALSE)))","v":""},{"$f":"IF($A493=\"\",\"\",IF(OR(VLOOKUP($A493,Economática!$A$3:$AI$823,11,FALSE)=0,VLOOKUP($A493,Economática!$A$3:$AI$823,11,FALSE)=\"-\"),1/0,VLOOKUP($A493,Economática!$A$3:$AI$823,11,FALSE)))","v":""},{"$f":"IF($A493=\"\",\"\",IF(OR(VLOOKUP($A493,Economática!$A$3:$AI$823,12,FALSE)=0,VLOOKUP($A493,Economática!$A$3:$AI$823,12,FALSE)=\"-\"),1/0,VLOOKUP($A493,Economática!$A$3:$AI$823,12,FALSE)))","v":""},{"$f":"IF($A493=\"\",\"\",IF(OR(VLOOKUP($A493,Economática!$A$3:$AI$823,13,FALSE)=0,VLOOKUP($A493,Economática!$A$3:$AI$823,13,FALSE)=\"-\"),1/0,VLOOKUP($A493,Economática!$A$3:$AI$823,13,FALSE)))","v":""},{"$f":"IF($A493=\"\",\"\",IF(OR(VLOOKUP($A493,Economática!$A$3:$AI$823,14,FALSE)=0,VLOOKUP($A493,Economática!$A$3:$AI$823,14,FALSE)=\"-\"),1/0,VLOOKUP($A493,Economática!$A$3:$AI$823,14,FALSE)))","v":""},{"$f":"IF($A493=\"\",\"\",IF(OR(VLOOKUP($A493,Economática!$A$3:$AI$823,15,FALSE)=0,VLOOKUP($A493,Economática!$A$3:$AI$823,15,FALSE)=\"-\"),1/0,VLOOKUP($A493,Economática!$A$3:$AI$823,15,FALSE)))","v":""},{"$f":"IF($A493=\"\",\"\",IF(OR(VLOOKUP($A493,Economática!$A$3:$AI$823,16,FALSE)=0,VLOOKUP($A493,Economática!$A$3:$AI$823,16,FALSE)=\"-\"),1/0,VLOOKUP($A493,Economática!$A$3:$AI$823,16,FALSE)))","v":""},{"$f":"IF($A493=\"\",\"\",IF(OR(VLOOKUP($A493,Economática!$A$3:$AI$823,17,FALSE)=0,VLOOKUP($A493,Economática!$A$3:$AI$823,17,FALSE)=\"-\"),1/0,VLOOKUP($A493,Economática!$A$3:$AI$823,17,FALSE)))","v":""},{"$f":"IF($A493=\"\",\"\",IF(OR(VLOOKUP($A493,Economática!$A$3:$AI$823,18,FALSE)=0,VLOOKUP($A493,Economática!$A$3:$AI$823,18,FALSE)=\"-\"),1/0,VLOOKUP($A493,Economática!$A$3:$AI$823,18,FALSE)))","v":""},{"$f":"IF($A493=\"\",\"\",IF(OR(VLOOKUP($A493,Economática!$A$3:$AI$823,19,FALSE)=0,VLOOKUP($A493,Economática!$A$3:$AI$823,19,FALSE)=\"-\"),1/0,VLOOKUP($A493,Economática!$A$3:$AI$823,19,FALSE)))","v":""},{"$f":"IF($A493=\"\",\"\",VLOOKUP($A493,Economática!$A$3:$AI$823,20,FALSE)/E493)","v":""},"","","",{"$f":"IF($A493=\"\",\"\",IF(OR(VLOOKUP($A493,Economática!$A$3:$AI$823,21,FALSE)/100=0,VLOOKUP($A493,Economática!$A$3:$AI$823,21,FALSE)/100=\"-\"),1/0,VLOOKUP($A493,Economática!$A$3:$AI$823,21,FALSE)/100))","v":""},{"$f":"IF($A493=\"\",\"\",IF(OR(VLOOKUP($A493,Economática!$A$3:$AI$823,22,FALSE)/100=0,VLOOKUP($A493,Economática!$A$3:$AI$823,22,FALSE)/100=\"-\"),1/0,VLOOKUP($A493,Economática!$A$3:$AI$823,22,FALSE)/100))","v":""},{"$f":"IF($A493=\"\",\"\",IF(OR(VLOOKUP($A493,Economática!$A$3:$AI$823,23,FALSE)=0,VLOOKUP($A493,Economática!$A$3:$AI$823,23,FALSE)=\"-\"),1/0,VLOOKUP($A493,Economática!$A$3:$AI$823,23,FALSE)))","v":""},{"$f":"IF($A493=\"\",\"\",IF(OR(VLOOKUP($A493,Economática!$A$3:$AI$823,24,FALSE)=0,VLOOKUP($A493,Economática!$A$3:$AI$823,24,FALSE)=\"-\"),1/0,VLOOKUP($A493,Economática!$A$3:$AI$823,24,FALSE)))","v":""},{"$f":"IF($A493=\"\",\"\",IF(OR(VLOOKUP($A493,Economática!$A$3:$AI$823,25,FALSE)=0,VLOOKUP($A493,Economática!$A$3:$AI$823,25,FALSE)=\"-\"),1/0,VLOOKUP($A493,Economática!$A$3:$AI$823,25,FALSE)))","v":""},{"$f":"IF($A493=\"\",\"\",IF(ISERROR((F493+VLOOKUP($A493,Economática!$A$3:$AI$823,26,FALSE))/Y493),(F493+VLOOKUP($A493,Economática!$A$3:$AI$823,26,FALSE))/Y493,(F493+VLOOKUP($A493,Economática!$A$3:$AI$823,26,FALSE))/Y493))","v":""},{"$f":"IF($A493=\"\",\"\",IF(OR(-VLOOKUP($A493,Economática!$A$3:$AI$823,27,FALSE)=0,-VLOOKUP($A493,Economática!$A$3:$AI$823,27,FALSE)=\"-\"),1/0,-VLOOKUP($A493,Economática!$A$3:$AI$823,27,FALSE)))","v":""},"",{"$f":"IF($A493=\"\",\"\",IF(OR(VLOOKUP($A493,Economática!$A$3:$AI$823,28,FALSE)=0,VLOOKUP($A493,Economática!$A$3:$AI$823,28,FALSE)=\"-\"),1/0,VLOOKUP($A493,Economática!$A$3:$AI$823,28,FALSE)))","v":""},{"$f":"IF($A493=\"\",\"\",IF(OR(VLOOKUP($A493,Economática!$A$3:$AI$823,29,FALSE)=0,VLOOKUP($A493,Economática!$A$3:$AI$823,29,FALSE)=\"-\"),1/0,VLOOKUP($A493,Economática!$A$3:$AI$823,29,FALSE)))","v":""},{"$f":"IF($A493=\"\",\"\",IF(OR(VLOOKUP($A493,Economática!$A$3:$AI$823,30,FALSE)/E493=0,VLOOKUP($A493,Economática!$A$3:$AI$823,30,FALSE)/E493=\"-\",VLOOKUP($A493,Economática!$A$3:$AI$823,30,FALSE)/E493<33.33%,VLOOKUP($A493,Economática!$A$3:$AI$823,30,FALSE)/E493>100%),1/0,VLOOKUP($A493,Economática!$A$3:$AI$823,30,FALSE)/E493))","v":""},"",{"$f":"IF($A493=\"\",\"\",IF(OR(VLOOKUP($A493,Economática!$A$3:$AI$823,25,FALSE)=0,VLOOKUP($A493,Economática!$A$3:$AI$823,25,FALSE)=\"-\"),1/0,VLOOKUP($A493,Economática!$A$3:$AI$823,25,FALSE)))","v":""},{"$f":"CONCATENATE(Economática!B471,\" \",Economática!C471)","v":" "}]
[{"$f":"IF(Economática!AG472=\"\",\"\",Economática!AG472)","v":""},{"$f":"IF($A494=\"\",\"\",VLOOKUP(VLOOKUP($A494,Economática!$A$3:$AI$823,6,FALSE),Correção!$B$16:$C$36,2,FALSE))","v":""},{"$f":"IF(Economática!B472=\"\",\"\",Economática!B472)","v":""},{"$f":"IF($A494=\"\",\"\",IF(OR(VLOOKUP($A494,Economática!$A$3:$AI$823,8,FALSE)=0,VLOOKUP($A494,Economática!$A$3:$AI$823,8,FALSE)=\"-\"),1/0,VLOOKUP($A494,Economática!$A$3:$AI$823,8,FALSE)))","v":""},{"$f":"IF(A494=\"\",\"\",IF(ISERROR(VLOOKUP(A494,Correção!$B$2:$G$13,9,FALSE)),VLOOKUP($A494,Economática!$A$3:$AI$823,9,FALSE),VLOOKUP(A494,Correção!$B$2:$G$13,9,FALSE)))","v":""},{"$f":"IF($A494=\"\",\"\",Economática!G472)","v":""},{"$f":"IF($A494=\"\",\"\",IF(OR(VLOOKUP($A494,Economática!$A$3:$AI$823,10,FALSE)=0,VLOOKUP($A494,Economática!$A$3:$AI$823,10,FALSE)=\"-\"),1/0,VLOOKUP($A494,Economática!$A$3:$AI$823,10,FALSE)))","v":""},{"$f":"IF($A494=\"\",\"\",IF(OR(VLOOKUP($A494,Economática!$A$3:$AI$823,11,FALSE)=0,VLOOKUP($A494,Economática!$A$3:$AI$823,11,FALSE)=\"-\"),1/0,VLOOKUP($A494,Economática!$A$3:$AI$823,11,FALSE)))","v":""},{"$f":"IF($A494=\"\",\"\",IF(OR(VLOOKUP($A494,Economática!$A$3:$AI$823,12,FALSE)=0,VLOOKUP($A494,Economática!$A$3:$AI$823,12,FALSE)=\"-\"),1/0,VLOOKUP($A494,Economática!$A$3:$AI$823,12,FALSE)))","v":""},{"$f":"IF($A494=\"\",\"\",IF(OR(VLOOKUP($A494,Economática!$A$3:$AI$823,13,FALSE)=0,VLOOKUP($A494,Economática!$A$3:$AI$823,13,FALSE)=\"-\"),1/0,VLOOKUP($A494,Economática!$A$3:$AI$823,13,FALSE)))","v":""},{"$f":"IF($A494=\"\",\"\",IF(OR(VLOOKUP($A494,Economática!$A$3:$AI$823,14,FALSE)=0,VLOOKUP($A494,Economática!$A$3:$AI$823,14,FALSE)=\"-\"),1/0,VLOOKUP($A494,Economática!$A$3:$AI$823,14,FALSE)))","v":""},{"$f":"IF($A494=\"\",\"\",IF(OR(VLOOKUP($A494,Economática!$A$3:$AI$823,15,FALSE)=0,VLOOKUP($A494,Economática!$A$3:$AI$823,15,FALSE)=\"-\"),1/0,VLOOKUP($A494,Economática!$A$3:$AI$823,15,FALSE)))","v":""},{"$f":"IF($A494=\"\",\"\",IF(OR(VLOOKUP($A494,Economática!$A$3:$AI$823,16,FALSE)=0,VLOOKUP($A494,Economática!$A$3:$AI$823,16,FALSE)=\"-\"),1/0,VLOOKUP($A494,Economática!$A$3:$AI$823,16,FALSE)))","v":""},{"$f":"IF($A494=\"\",\"\",IF(OR(VLOOKUP($A494,Economática!$A$3:$AI$823,17,FALSE)=0,VLOOKUP($A494,Economática!$A$3:$AI$823,17,FALSE)=\"-\"),1/0,VLOOKUP($A494,Economática!$A$3:$AI$823,17,FALSE)))","v":""},{"$f":"IF($A494=\"\",\"\",IF(OR(VLOOKUP($A494,Economática!$A$3:$AI$823,18,FALSE)=0,VLOOKUP($A494,Economática!$A$3:$AI$823,18,FALSE)=\"-\"),1/0,VLOOKUP($A494,Economática!$A$3:$AI$823,18,FALSE)))","v":""},{"$f":"IF($A494=\"\",\"\",IF(OR(VLOOKUP($A494,Economática!$A$3:$AI$823,19,FALSE)=0,VLOOKUP($A494,Economática!$A$3:$AI$823,19,FALSE)=\"-\"),1/0,VLOOKUP($A494,Economática!$A$3:$AI$823,19,FALSE)))","v":""},{"$f":"IF($A494=\"\",\"\",VLOOKUP($A494,Economática!$A$3:$AI$823,20,FALSE)/E494)","v":""},"","","",{"$f":"IF($A494=\"\",\"\",IF(OR(VLOOKUP($A494,Economática!$A$3:$AI$823,21,FALSE)/100=0,VLOOKUP($A494,Economática!$A$3:$AI$823,21,FALSE)/100=\"-\"),1/0,VLOOKUP($A494,Economática!$A$3:$AI$823,21,FALSE)/100))","v":""},{"$f":"IF($A494=\"\",\"\",IF(OR(VLOOKUP($A494,Economática!$A$3:$AI$823,22,FALSE)/100=0,VLOOKUP($A494,Economática!$A$3:$AI$823,22,FALSE)/100=\"-\"),1/0,VLOOKUP($A494,Economática!$A$3:$AI$823,22,FALSE)/100))","v":""},{"$f":"IF($A494=\"\",\"\",IF(OR(VLOOKUP($A494,Economática!$A$3:$AI$823,23,FALSE)=0,VLOOKUP($A494,Economática!$A$3:$AI$823,23,FALSE)=\"-\"),1/0,VLOOKUP($A494,Economática!$A$3:$AI$823,23,FALSE)))","v":""},{"$f":"IF($A494=\"\",\"\",IF(OR(VLOOKUP($A494,Economática!$A$3:$AI$823,24,FALSE)=0,VLOOKUP($A494,Economática!$A$3:$AI$823,24,FALSE)=\"-\"),1/0,VLOOKUP($A494,Economática!$A$3:$AI$823,24,FALSE)))","v":""},{"$f":"IF($A494=\"\",\"\",IF(OR(VLOOKUP($A494,Economática!$A$3:$AI$823,25,FALSE)=0,VLOOKUP($A494,Economática!$A$3:$AI$823,25,FALSE)=\"-\"),1/0,VLOOKUP($A494,Economática!$A$3:$AI$823,25,FALSE)))","v":""},{"$f":"IF($A494=\"\",\"\",IF(ISERROR((F494+VLOOKUP($A494,Economática!$A$3:$AI$823,26,FALSE))/Y494),(F494+VLOOKUP($A494,Economática!$A$3:$AI$823,26,FALSE))/Y494,(F494+VLOOKUP($A494,Economática!$A$3:$AI$823,26,FALSE))/Y494))","v":""},{"$f":"IF($A494=\"\",\"\",IF(OR(-VLOOKUP($A494,Economática!$A$3:$AI$823,27,FALSE)=0,-VLOOKUP($A494,Economática!$A$3:$AI$823,27,FALSE)=\"-\"),1/0,-VLOOKUP($A494,Economática!$A$3:$AI$823,27,FALSE)))","v":""},"",{"$f":"IF($A494=\"\",\"\",IF(OR(VLOOKUP($A494,Economática!$A$3:$AI$823,28,FALSE)=0,VLOOKUP($A494,Economática!$A$3:$AI$823,28,FALSE)=\"-\"),1/0,VLOOKUP($A494,Economática!$A$3:$AI$823,28,FALSE)))","v":""},{"$f":"IF($A494=\"\",\"\",IF(OR(VLOOKUP($A494,Economática!$A$3:$AI$823,29,FALSE)=0,VLOOKUP($A494,Economática!$A$3:$AI$823,29,FALSE)=\"-\"),1/0,VLOOKUP($A494,Economática!$A$3:$AI$823,29,FALSE)))","v":""},{"$f":"IF($A494=\"\",\"\",IF(OR(VLOOKUP($A494,Economática!$A$3:$AI$823,30,FALSE)/E494=0,VLOOKUP($A494,Economática!$A$3:$AI$823,30,FALSE)/E494=\"-\",VLOOKUP($A494,Economática!$A$3:$AI$823,30,FALSE)/E494<33.33%,VLOOKUP($A494,Economática!$A$3:$AI$823,30,FALSE)/E494>100%),1/0,VLOOKUP($A494,Economática!$A$3:$AI$823,30,FALSE)/E494))","v":""},"",{"$f":"IF($A494=\"\",\"\",IF(OR(VLOOKUP($A494,Economática!$A$3:$AI$823,25,FALSE)=0,VLOOKUP($A494,Economática!$A$3:$AI$823,25,FALSE)=\"-\"),1/0,VLOOKUP($A494,Economática!$A$3:$AI$823,25,FALSE)))","v":""},{"$f":"CONCATENATE(Economática!B472,\" \",Economática!C472)","v":" "}]
[{"$f":"IF(Economática!AG473=\"\",\"\",Economática!AG473)","v":""},{"$f":"IF($A495=\"\",\"\",VLOOKUP(VLOOKUP($A495,Economática!$A$3:$AI$823,6,FALSE),Correção!$B$16:$C$36,2,FALSE))","v":""},{"$f":"IF(Economática!B473=\"\",\"\",Economática!B473)","v":""},{"$f":"IF($A495=\"\",\"\",IF(OR(VLOOKUP($A495,Economática!$A$3:$AI$823,8,FALSE)=0,VLOOKUP($A495,Economática!$A$3:$AI$823,8,FALSE)=\"-\"),1/0,VLOOKUP($A495,Economática!$A$3:$AI$823,8,FALSE)))","v":""},{"$f":"IF(A495=\"\",\"\",IF(ISERROR(VLOOKUP(A495,Correção!$B$2:$G$13,9,FALSE)),VLOOKUP($A495,Economática!$A$3:$AI$823,9,FALSE),VLOOKUP(A495,Correção!$B$2:$G$13,9,FALSE)))","v":""},{"$f":"IF($A495=\"\",\"\",Economática!G473)","v":""},{"$f":"IF($A495=\"\",\"\",IF(OR(VLOOKUP($A495,Economática!$A$3:$AI$823,10,FALSE)=0,VLOOKUP($A495,Economática!$A$3:$AI$823,10,FALSE)=\"-\"),1/0,VLOOKUP($A495,Economática!$A$3:$AI$823,10,FALSE)))","v":""},{"$f":"IF($A495=\"\",\"\",IF(OR(VLOOKUP($A495,Economática!$A$3:$AI$823,11,FALSE)=0,VLOOKUP($A495,Economática!$A$3:$AI$823,11,FALSE)=\"-\"),1/0,VLOOKUP($A495,Economática!$A$3:$AI$823,11,FALSE)))","v":""},{"$f":"IF($A495=\"\",\"\",IF(OR(VLOOKUP($A495,Economática!$A$3:$AI$823,12,FALSE)=0,VLOOKUP($A495,Economática!$A$3:$AI$823,12,FALSE)=\"-\"),1/0,VLOOKUP($A495,Economática!$A$3:$AI$823,12,FALSE)))","v":""},{"$f":"IF($A495=\"\",\"\",IF(OR(VLOOKUP($A495,Economática!$A$3:$AI$823,13,FALSE)=0,VLOOKUP($A495,Economática!$A$3:$AI$823,13,FALSE)=\"-\"),1/0,VLOOKUP($A495,Economática!$A$3:$AI$823,13,FALSE)))","v":""},{"$f":"IF($A495=\"\",\"\",IF(OR(VLOOKUP($A495,Economática!$A$3:$AI$823,14,FALSE)=0,VLOOKUP($A495,Economática!$A$3:$AI$823,14,FALSE)=\"-\"),1/0,VLOOKUP($A495,Economática!$A$3:$AI$823,14,FALSE)))","v":""},{"$f":"IF($A495=\"\",\"\",IF(OR(VLOOKUP($A495,Economática!$A$3:$AI$823,15,FALSE)=0,VLOOKUP($A495,Economática!$A$3:$AI$823,15,FALSE)=\"-\"),1/0,VLOOKUP($A495,Economática!$A$3:$AI$823,15,FALSE)))","v":""},{"$f":"IF($A495=\"\",\"\",IF(OR(VLOOKUP($A495,Economática!$A$3:$AI$823,16,FALSE)=0,VLOOKUP($A495,Economática!$A$3:$AI$823,16,FALSE)=\"-\"),1/0,VLOOKUP($A495,Economática!$A$3:$AI$823,16,FALSE)))","v":""},{"$f":"IF($A495=\"\",\"\",IF(OR(VLOOKUP($A495,Economática!$A$3:$AI$823,17,FALSE)=0,VLOOKUP($A495,Economática!$A$3:$AI$823,17,FALSE)=\"-\"),1/0,VLOOKUP($A495,Economática!$A$3:$AI$823,17,FALSE)))","v":""},{"$f":"IF($A495=\"\",\"\",IF(OR(VLOOKUP($A495,Economática!$A$3:$AI$823,18,FALSE)=0,VLOOKUP($A495,Economática!$A$3:$AI$823,18,FALSE)=\"-\"),1/0,VLOOKUP($A495,Economática!$A$3:$AI$823,18,FALSE)))","v":""},{"$f":"IF($A495=\"\",\"\",IF(OR(VLOOKUP($A495,Economática!$A$3:$AI$823,19,FALSE)=0,VLOOKUP($A495,Economática!$A$3:$AI$823,19,FALSE)=\"-\"),1/0,VLOOKUP($A495,Economática!$A$3:$AI$823,19,FALSE)))","v":""},{"$f":"IF($A495=\"\",\"\",VLOOKUP($A495,Economática!$A$3:$AI$823,20,FALSE)/E495)","v":""},"","","",{"$f":"IF($A495=\"\",\"\",IF(OR(VLOOKUP($A495,Economática!$A$3:$AI$823,21,FALSE)/100=0,VLOOKUP($A495,Economática!$A$3:$AI$823,21,FALSE)/100=\"-\"),1/0,VLOOKUP($A495,Economática!$A$3:$AI$823,21,FALSE)/100))","v":""},{"$f":"IF($A495=\"\",\"\",IF(OR(VLOOKUP($A495,Economática!$A$3:$AI$823,22,FALSE)/100=0,VLOOKUP($A495,Economática!$A$3:$AI$823,22,FALSE)/100=\"-\"),1/0,VLOOKUP($A495,Economática!$A$3:$AI$823,22,FALSE)/100))","v":""},{"$f":"IF($A495=\"\",\"\",IF(OR(VLOOKUP($A495,Economática!$A$3:$AI$823,23,FALSE)=0,VLOOKUP($A495,Economática!$A$3:$AI$823,23,FALSE)=\"-\"),1/0,VLOOKUP($A495,Economática!$A$3:$AI$823,23,FALSE)))","v":""},{"$f":"IF($A495=\"\",\"\",IF(OR(VLOOKUP($A495,Economática!$A$3:$AI$823,24,FALSE)=0,VLOOKUP($A495,Economática!$A$3:$AI$823,24,FALSE)=\"-\"),1/0,VLOOKUP($A495,Economática!$A$3:$AI$823,24,FALSE)))","v":""},{"$f":"IF($A495=\"\",\"\",IF(OR(VLOOKUP($A495,Economática!$A$3:$AI$823,25,FALSE)=0,VLOOKUP($A495,Economática!$A$3:$AI$823,25,FALSE)=\"-\"),1/0,VLOOKUP($A495,Economática!$A$3:$AI$823,25,FALSE)))","v":""},{"$f":"IF($A495=\"\",\"\",IF(ISERROR((F495+VLOOKUP($A495,Economática!$A$3:$AI$823,26,FALSE))/Y495),(F495+VLOOKUP($A495,Economática!$A$3:$AI$823,26,FALSE))/Y495,(F495+VLOOKUP($A495,Economática!$A$3:$AI$823,26,FALSE))/Y495))","v":""},{"$f":"IF($A495=\"\",\"\",IF(OR(-VLOOKUP($A495,Economática!$A$3:$AI$823,27,FALSE)=0,-VLOOKUP($A495,Economática!$A$3:$AI$823,27,FALSE)=\"-\"),1/0,-VLOOKUP($A495,Economática!$A$3:$AI$823,27,FALSE)))","v":""},"",{"$f":"IF($A495=\"\",\"\",IF(OR(VLOOKUP($A495,Economática!$A$3:$AI$823,28,FALSE)=0,VLOOKUP($A495,Economática!$A$3:$AI$823,28,FALSE)=\"-\"),1/0,VLOOKUP($A495,Economática!$A$3:$AI$823,28,FALSE)))","v":""},{"$f":"IF($A495=\"\",\"\",IF(OR(VLOOKUP($A495,Economática!$A$3:$AI$823,29,FALSE)=0,VLOOKUP($A495,Economática!$A$3:$AI$823,29,FALSE)=\"-\"),1/0,VLOOKUP($A495,Economática!$A$3:$AI$823,29,FALSE)))","v":""},{"$f":"IF($A495=\"\",\"\",IF(OR(VLOOKUP($A495,Economática!$A$3:$AI$823,30,FALSE)/E495=0,VLOOKUP($A495,Economática!$A$3:$AI$823,30,FALSE)/E495=\"-\",VLOOKUP($A495,Economática!$A$3:$AI$823,30,FALSE)/E495<33.33%,VLOOKUP($A495,Economática!$A$3:$AI$823,30,FALSE)/E495>100%),1/0,VLOOKUP($A495,Economática!$A$3:$AI$823,30,FALSE)/E495))","v":""},"",{"$f":"IF($A495=\"\",\"\",IF(OR(VLOOKUP($A495,Economática!$A$3:$AI$823,25,FALSE)=0,VLOOKUP($A495,Economática!$A$3:$AI$823,25,FALSE)=\"-\"),1/0,VLOOKUP($A495,Economática!$A$3:$AI$823,25,FALSE)))","v":""},{"$f":"CONCATENATE(Economática!B473,\" \",Economática!C473)","v":" "}]
[{"$f":"IF(Economática!AG474=\"\",\"\",Economática!AG474)","v":""},{"$f":"IF($A496=\"\",\"\",VLOOKUP(VLOOKUP($A496,Economática!$A$3:$AI$823,6,FALSE),Correção!$B$16:$C$36,2,FALSE))","v":""},{"$f":"IF(Economática!B474=\"\",\"\",Economática!B474)","v":""},{"$f":"IF($A496=\"\",\"\",IF(OR(VLOOKUP($A496,Economática!$A$3:$AI$823,8,FALSE)=0,VLOOKUP($A496,Economática!$A$3:$AI$823,8,FALSE)=\"-\"),1/0,VLOOKUP($A496,Economática!$A$3:$AI$823,8,FALSE)))","v":""},{"$f":"IF(A496=\"\",\"\",IF(ISERROR(VLOOKUP(A496,Correção!$B$2:$G$13,9,FALSE)),VLOOKUP($A496,Economática!$A$3:$AI$823,9,FALSE),VLOOKUP(A496,Correção!$B$2:$G$13,9,FALSE)))","v":""},{"$f":"IF($A496=\"\",\"\",Economática!G474)","v":""},{"$f":"IF($A496=\"\",\"\",IF(OR(VLOOKUP($A496,Economática!$A$3:$AI$823,10,FALSE)=0,VLOOKUP($A496,Economática!$A$3:$AI$823,10,FALSE)=\"-\"),1/0,VLOOKUP($A496,Economática!$A$3:$AI$823,10,FALSE)))","v":""},{"$f":"IF($A496=\"\",\"\",IF(OR(VLOOKUP($A496,Economática!$A$3:$AI$823,11,FALSE)=0,VLOOKUP($A496,Economática!$A$3:$AI$823,11,FALSE)=\"-\"),1/0,VLOOKUP($A496,Economática!$A$3:$AI$823,11,FALSE)))","v":""},{"$f":"IF($A496=\"\",\"\",IF(OR(VLOOKUP($A496,Economática!$A$3:$AI$823,12,FALSE)=0,VLOOKUP($A496,Economática!$A$3:$AI$823,12,FALSE)=\"-\"),1/0,VLOOKUP($A496,Economática!$A$3:$AI$823,12,FALSE)))","v":""},{"$f":"IF($A496=\"\",\"\",IF(OR(VLOOKUP($A496,Economática!$A$3:$AI$823,13,FALSE)=0,VLOOKUP($A496,Economática!$A$3:$AI$823,13,FALSE)=\"-\"),1/0,VLOOKUP($A496,Economática!$A$3:$AI$823,13,FALSE)))","v":""},{"$f":"IF($A496=\"\",\"\",IF(OR(VLOOKUP($A496,Economática!$A$3:$AI$823,14,FALSE)=0,VLOOKUP($A496,Economática!$A$3:$AI$823,14,FALSE)=\"-\"),1/0,VLOOKUP($A496,Economática!$A$3:$AI$823,14,FALSE)))","v":""},{"$f":"IF($A496=\"\",\"\",IF(OR(VLOOKUP($A496,Economática!$A$3:$AI$823,15,FALSE)=0,VLOOKUP($A496,Economática!$A$3:$AI$823,15,FALSE)=\"-\"),1/0,VLOOKUP($A496,Economática!$A$3:$AI$823,15,FALSE)))","v":""},{"$f":"IF($A496=\"\",\"\",IF(OR(VLOOKUP($A496,Economática!$A$3:$AI$823,16,FALSE)=0,VLOOKUP($A496,Economática!$A$3:$AI$823,16,FALSE)=\"-\"),1/0,VLOOKUP($A496,Economática!$A$3:$AI$823,16,FALSE)))","v":""},{"$f":"IF($A496=\"\",\"\",IF(OR(VLOOKUP($A496,Economática!$A$3:$AI$823,17,FALSE)=0,VLOOKUP($A496,Economática!$A$3:$AI$823,17,FALSE)=\"-\"),1/0,VLOOKUP($A496,Economática!$A$3:$AI$823,17,FALSE)))","v":""},{"$f":"IF($A496=\"\",\"\",IF(OR(VLOOKUP($A496,Economática!$A$3:$AI$823,18,FALSE)=0,VLOOKUP($A496,Economática!$A$3:$AI$823,18,FALSE)=\"-\"),1/0,VLOOKUP($A496,Economática!$A$3:$AI$823,18,FALSE)))","v":""},{"$f":"IF($A496=\"\",\"\",IF(OR(VLOOKUP($A496,Economática!$A$3:$AI$823,19,FALSE)=0,VLOOKUP($A496,Economática!$A$3:$AI$823,19,FALSE)=\"-\"),1/0,VLOOKUP($A496,Economática!$A$3:$AI$823,19,FALSE)))","v":""},{"$f":"IF($A496=\"\",\"\",VLOOKUP($A496,Economática!$A$3:$AI$823,20,FALSE)/E496)","v":""},"","","",{"$f":"IF($A496=\"\",\"\",IF(OR(VLOOKUP($A496,Economática!$A$3:$AI$823,21,FALSE)/100=0,VLOOKUP($A496,Economática!$A$3:$AI$823,21,FALSE)/100=\"-\"),1/0,VLOOKUP($A496,Economática!$A$3:$AI$823,21,FALSE)/100))","v":""},{"$f":"IF($A496=\"\",\"\",IF(OR(VLOOKUP($A496,Economática!$A$3:$AI$823,22,FALSE)/100=0,VLOOKUP($A496,Economática!$A$3:$AI$823,22,FALSE)/100=\"-\"),1/0,VLOOKUP($A496,Economática!$A$3:$AI$823,22,FALSE)/100))","v":""},{"$f":"IF($A496=\"\",\"\",IF(OR(VLOOKUP($A496,Economática!$A$3:$AI$823,23,FALSE)=0,VLOOKUP($A496,Economática!$A$3:$AI$823,23,FALSE)=\"-\"),1/0,VLOOKUP($A496,Economática!$A$3:$AI$823,23,FALSE)))","v":""},{"$f":"IF($A496=\"\",\"\",IF(OR(VLOOKUP($A496,Economática!$A$3:$AI$823,24,FALSE)=0,VLOOKUP($A496,Economática!$A$3:$AI$823,24,FALSE)=\"-\"),1/0,VLOOKUP($A496,Economática!$A$3:$AI$823,24,FALSE)))","v":""},{"$f":"IF($A496=\"\",\"\",IF(OR(VLOOKUP($A496,Economática!$A$3:$AI$823,25,FALSE)=0,VLOOKUP($A496,Economática!$A$3:$AI$823,25,FALSE)=\"-\"),1/0,VLOOKUP($A496,Economática!$A$3:$AI$823,25,FALSE)))","v":""},{"$f":"IF($A496=\"\",\"\",IF(ISERROR((F496+VLOOKUP($A496,Economática!$A$3:$AI$823,26,FALSE))/Y496),(F496+VLOOKUP($A496,Economática!$A$3:$AI$823,26,FALSE))/Y496,(F496+VLOOKUP($A496,Economática!$A$3:$AI$823,26,FALSE))/Y496))","v":""},{"$f":"IF($A496=\"\",\"\",IF(OR(-VLOOKUP($A496,Economática!$A$3:$AI$823,27,FALSE)=0,-VLOOKUP($A496,Economática!$A$3:$AI$823,27,FALSE)=\"-\"),1/0,-VLOOKUP($A496,Economática!$A$3:$AI$823,27,FALSE)))","v":""},"",{"$f":"IF($A496=\"\",\"\",IF(OR(VLOOKUP($A496,Economática!$A$3:$AI$823,28,FALSE)=0,VLOOKUP($A496,Economática!$A$3:$AI$823,28,FALSE)=\"-\"),1/0,VLOOKUP($A496,Economática!$A$3:$AI$823,28,FALSE)))","v":""},{"$f":"IF($A496=\"\",\"\",IF(OR(VLOOKUP($A496,Economática!$A$3:$AI$823,29,FALSE)=0,VLOOKUP($A496,Economática!$A$3:$AI$823,29,FALSE)=\"-\"),1/0,VLOOKUP($A496,Economática!$A$3:$AI$823,29,FALSE)))","v":""},{"$f":"IF($A496=\"\",\"\",IF(OR(VLOOKUP($A496,Economática!$A$3:$AI$823,30,FALSE)/E496=0,VLOOKUP($A496,Economática!$A$3:$AI$823,30,FALSE)/E496=\"-\",VLOOKUP($A496,Economática!$A$3:$AI$823,30,FALSE)/E496<33.33%,VLOOKUP($A496,Economática!$A$3:$AI$823,30,FALSE)/E496>100%),1/0,VLOOKUP($A496,Economática!$A$3:$AI$823,30,FALSE)/E496))","v":""},"",{"$f":"IF($A496=\"\",\"\",IF(OR(VLOOKUP($A496,Economática!$A$3:$AI$823,25,FALSE)=0,VLOOKUP($A496,Economática!$A$3:$AI$823,25,FALSE)=\"-\"),1/0,VLOOKUP($A496,Economática!$A$3:$AI$823,25,FALSE)))","v":""},{"$f":"CONCATENATE(Economática!B474,\" \",Economática!C474)","v":" "}]
[{"$f":"IF(Economática!AG475=\"\",\"\",Economática!AG475)","v":""},{"$f":"IF($A497=\"\",\"\",VLOOKUP(VLOOKUP($A497,Economática!$A$3:$AI$823,6,FALSE),Correção!$B$16:$C$36,2,FALSE))","v":""},{"$f":"IF(Economática!B475=\"\",\"\",Economática!B475)","v":""},{"$f":"IF($A497=\"\",\"\",IF(OR(VLOOKUP($A497,Economática!$A$3:$AI$823,8,FALSE)=0,VLOOKUP($A497,Economática!$A$3:$AI$823,8,FALSE)=\"-\"),1/0,VLOOKUP($A497,Economática!$A$3:$AI$823,8,FALSE)))","v":""},{"$f":"IF(A497=\"\",\"\",IF(ISERROR(VLOOKUP(A497,Correção!$B$2:$G$13,9,FALSE)),VLOOKUP($A497,Economática!$A$3:$AI$823,9,FALSE),VLOOKUP(A497,Correção!$B$2:$G$13,9,FALSE)))","v":""},{"$f":"IF($A497=\"\",\"\",Economática!G475)","v":""},{"$f":"IF($A497=\"\",\"\",IF(OR(VLOOKUP($A497,Economática!$A$3:$AI$823,10,FALSE)=0,VLOOKUP($A497,Economática!$A$3:$AI$823,10,FALSE)=\"-\"),1/0,VLOOKUP($A497,Economática!$A$3:$AI$823,10,FALSE)))","v":""},{"$f":"IF($A497=\"\",\"\",IF(OR(VLOOKUP($A497,Economática!$A$3:$AI$823,11,FALSE)=0,VLOOKUP($A497,Economática!$A$3:$AI$823,11,FALSE)=\"-\"),1/0,VLOOKUP($A497,Economática!$A$3:$AI$823,11,FALSE)))","v":""},{"$f":"IF($A497=\"\",\"\",IF(OR(VLOOKUP($A497,Economática!$A$3:$AI$823,12,FALSE)=0,VLOOKUP($A497,Economática!$A$3:$AI$823,12,FALSE)=\"-\"),1/0,VLOOKUP($A497,Economática!$A$3:$AI$823,12,FALSE)))","v":""},{"$f":"IF($A497=\"\",\"\",IF(OR(VLOOKUP($A497,Economática!$A$3:$AI$823,13,FALSE)=0,VLOOKUP($A497,Economática!$A$3:$AI$823,13,FALSE)=\"-\"),1/0,VLOOKUP($A497,Economática!$A$3:$AI$823,13,FALSE)))","v":""},{"$f":"IF($A497=\"\",\"\",IF(OR(VLOOKUP($A497,Economática!$A$3:$AI$823,14,FALSE)=0,VLOOKUP($A497,Economática!$A$3:$AI$823,14,FALSE)=\"-\"),1/0,VLOOKUP($A497,Economática!$A$3:$AI$823,14,FALSE)))","v":""},{"$f":"IF($A497=\"\",\"\",IF(OR(VLOOKUP($A497,Economática!$A$3:$AI$823,15,FALSE)=0,VLOOKUP($A497,Economática!$A$3:$AI$823,15,FALSE)=\"-\"),1/0,VLOOKUP($A497,Economática!$A$3:$AI$823,15,FALSE)))","v":""},{"$f":"IF($A497=\"\",\"\",IF(OR(VLOOKUP($A497,Economática!$A$3:$AI$823,16,FALSE)=0,VLOOKUP($A497,Economática!$A$3:$AI$823,16,FALSE)=\"-\"),1/0,VLOOKUP($A497,Economática!$A$3:$AI$823,16,FALSE)))","v":""},{"$f":"IF($A497=\"\",\"\",IF(OR(VLOOKUP($A497,Economática!$A$3:$AI$823,17,FALSE)=0,VLOOKUP($A497,Economática!$A$3:$AI$823,17,FALSE)=\"-\"),1/0,VLOOKUP($A497,Economática!$A$3:$AI$823,17,FALSE)))","v":""},{"$f":"IF($A497=\"\",\"\",IF(OR(VLOOKUP($A497,Economática!$A$3:$AI$823,18,FALSE)=0,VLOOKUP($A497,Economática!$A$3:$AI$823,18,FALSE)=\"-\"),1/0,VLOOKUP($A497,Economática!$A$3:$AI$823,18,FALSE)))","v":""},{"$f":"IF($A497=\"\",\"\",IF(OR(VLOOKUP($A497,Economática!$A$3:$AI$823,19,FALSE)=0,VLOOKUP($A497,Economática!$A$3:$AI$823,19,FALSE)=\"-\"),1/0,VLOOKUP($A497,Economática!$A$3:$AI$823,19,FALSE)))","v":""},{"$f":"IF($A497=\"\",\"\",VLOOKUP($A497,Economática!$A$3:$AI$823,20,FALSE)/E497)","v":""},"","","",{"$f":"IF($A497=\"\",\"\",IF(OR(VLOOKUP($A497,Economática!$A$3:$AI$823,21,FALSE)/100=0,VLOOKUP($A497,Economática!$A$3:$AI$823,21,FALSE)/100=\"-\"),1/0,VLOOKUP($A497,Economática!$A$3:$AI$823,21,FALSE)/100))","v":""},{"$f":"IF($A497=\"\",\"\",IF(OR(VLOOKUP($A497,Economática!$A$3:$AI$823,22,FALSE)/100=0,VLOOKUP($A497,Economática!$A$3:$AI$823,22,FALSE)/100=\"-\"),1/0,VLOOKUP($A497,Economática!$A$3:$AI$823,22,FALSE)/100))","v":""},{"$f":"IF($A497=\"\",\"\",IF(OR(VLOOKUP($A497,Economática!$A$3:$AI$823,23,FALSE)=0,VLOOKUP($A497,Economática!$A$3:$AI$823,23,FALSE)=\"-\"),1/0,VLOOKUP($A497,Economática!$A$3:$AI$823,23,FALSE)))","v":""},{"$f":"IF($A497=\"\",\"\",IF(OR(VLOOKUP($A497,Economática!$A$3:$AI$823,24,FALSE)=0,VLOOKUP($A497,Economática!$A$3:$AI$823,24,FALSE)=\"-\"),1/0,VLOOKUP($A497,Economática!$A$3:$AI$823,24,FALSE)))","v":""},{"$f":"IF($A497=\"\",\"\",IF(OR(VLOOKUP($A497,Economática!$A$3:$AI$823,25,FALSE)=0,VLOOKUP($A497,Economática!$A$3:$AI$823,25,FALSE)=\"-\"),1/0,VLOOKUP($A497,Economática!$A$3:$AI$823,25,FALSE)))","v":""},{"$f":"IF($A497=\"\",\"\",IF(ISERROR((F497+VLOOKUP($A497,Economática!$A$3:$AI$823,26,FALSE))/Y497),(F497+VLOOKUP($A497,Economática!$A$3:$AI$823,26,FALSE))/Y497,(F497+VLOOKUP($A497,Economática!$A$3:$AI$823,26,FALSE))/Y497))","v":""},{"$f":"IF($A497=\"\",\"\",IF(OR(-VLOOKUP($A497,Economática!$A$3:$AI$823,27,FALSE)=0,-VLOOKUP($A497,Economática!$A$3:$AI$823,27,FALSE)=\"-\"),1/0,-VLOOKUP($A497,Economática!$A$3:$AI$823,27,FALSE)))","v":""},"",{"$f":"IF($A497=\"\",\"\",IF(OR(VLOOKUP($A497,Economática!$A$3:$AI$823,28,FALSE)=0,VLOOKUP($A497,Economática!$A$3:$AI$823,28,FALSE)=\"-\"),1/0,VLOOKUP($A497,Economática!$A$3:$AI$823,28,FALSE)))","v":""},{"$f":"IF($A497=\"\",\"\",IF(OR(VLOOKUP($A497,Economática!$A$3:$AI$823,29,FALSE)=0,VLOOKUP($A497,Economática!$A$3:$AI$823,29,FALSE)=\"-\"),1/0,VLOOKUP($A497,Economática!$A$3:$AI$823,29,FALSE)))","v":""},{"$f":"IF($A497=\"\",\"\",IF(OR(VLOOKUP($A497,Economática!$A$3:$AI$823,30,FALSE)/E497=0,VLOOKUP($A497,Economática!$A$3:$AI$823,30,FALSE)/E497=\"-\",VLOOKUP($A497,Economática!$A$3:$AI$823,30,FALSE)/E497<33.33%,VLOOKUP($A497,Economática!$A$3:$AI$823,30,FALSE)/E497>100%),1/0,VLOOKUP($A497,Economática!$A$3:$AI$823,30,FALSE)/E497))","v":""},"",{"$f":"IF($A497=\"\",\"\",IF(OR(VLOOKUP($A497,Economática!$A$3:$AI$823,25,FALSE)=0,VLOOKUP($A497,Economática!$A$3:$AI$823,25,FALSE)=\"-\"),1/0,VLOOKUP($A497,Economática!$A$3:$AI$823,25,FALSE)))","v":""},{"$f":"CONCATENATE(Economática!B475,\" \",Economática!C475)","v":" "}]
[{"$f":"IF(Economática!AG476=\"\",\"\",Economática!AG476)","v":""},{"$f":"IF($A498=\"\",\"\",VLOOKUP(VLOOKUP($A498,Economática!$A$3:$AI$823,6,FALSE),Correção!$B$16:$C$36,2,FALSE))","v":""},{"$f":"IF(Economática!B476=\"\",\"\",Economática!B476)","v":""},{"$f":"IF($A498=\"\",\"\",IF(OR(VLOOKUP($A498,Economática!$A$3:$AI$823,8,FALSE)=0,VLOOKUP($A498,Economática!$A$3:$AI$823,8,FALSE)=\"-\"),1/0,VLOOKUP($A498,Economática!$A$3:$AI$823,8,FALSE)))","v":""},{"$f":"IF(A498=\"\",\"\",IF(ISERROR(VLOOKUP(A498,Correção!$B$2:$G$13,9,FALSE)),VLOOKUP($A498,Economática!$A$3:$AI$823,9,FALSE),VLOOKUP(A498,Correção!$B$2:$G$13,9,FALSE)))","v":""},{"$f":"IF($A498=\"\",\"\",Economática!G476)","v":""},{"$f":"IF($A498=\"\",\"\",IF(OR(VLOOKUP($A498,Economática!$A$3:$AI$823,10,FALSE)=0,VLOOKUP($A498,Economática!$A$3:$AI$823,10,FALSE)=\"-\"),1/0,VLOOKUP($A498,Economática!$A$3:$AI$823,10,FALSE)))","v":""},{"$f":"IF($A498=\"\",\"\",IF(OR(VLOOKUP($A498,Economática!$A$3:$AI$823,11,FALSE)=0,VLOOKUP($A498,Economática!$A$3:$AI$823,11,FALSE)=\"-\"),1/0,VLOOKUP($A498,Economática!$A$3:$AI$823,11,FALSE)))","v":""},{"$f":"IF($A498=\"\",\"\",IF(OR(VLOOKUP($A498,Economática!$A$3:$AI$823,12,FALSE)=0,VLOOKUP($A498,Economática!$A$3:$AI$823,12,FALSE)=\"-\"),1/0,VLOOKUP($A498,Economática!$A$3:$AI$823,12,FALSE)))","v":""},{"$f":"IF($A498=\"\",\"\",IF(OR(VLOOKUP($A498,Economática!$A$3:$AI$823,13,FALSE)=0,VLOOKUP($A498,Economática!$A$3:$AI$823,13,FALSE)=\"-\"),1/0,VLOOKUP($A498,Economática!$A$3:$AI$823,13,FALSE)))","v":""},{"$f":"IF($A498=\"\",\"\",IF(OR(VLOOKUP($A498,Economática!$A$3:$AI$823,14,FALSE)=0,VLOOKUP($A498,Economática!$A$3:$AI$823,14,FALSE)=\"-\"),1/0,VLOOKUP($A498,Economática!$A$3:$AI$823,14,FALSE)))","v":""},{"$f":"IF($A498=\"\",\"\",IF(OR(VLOOKUP($A498,Economática!$A$3:$AI$823,15,FALSE)=0,VLOOKUP($A498,Economática!$A$3:$AI$823,15,FALSE)=\"-\"),1/0,VLOOKUP($A498,Economática!$A$3:$AI$823,15,FALSE)))","v":""},{"$f":"IF($A498=\"\",\"\",IF(OR(VLOOKUP($A498,Economática!$A$3:$AI$823,16,FALSE)=0,VLOOKUP($A498,Economática!$A$3:$AI$823,16,FALSE)=\"-\"),1/0,VLOOKUP($A498,Economática!$A$3:$AI$823,16,FALSE)))","v":""},{"$f":"IF($A498=\"\",\"\",IF(OR(VLOOKUP($A498,Economática!$A$3:$AI$823,17,FALSE)=0,VLOOKUP($A498,Economática!$A$3:$AI$823,17,FALSE)=\"-\"),1/0,VLOOKUP($A498,Economática!$A$3:$AI$823,17,FALSE)))","v":""},{"$f":"IF($A498=\"\",\"\",IF(OR(VLOOKUP($A498,Economática!$A$3:$AI$823,18,FALSE)=0,VLOOKUP($A498,Economática!$A$3:$AI$823,18,FALSE)=\"-\"),1/0,VLOOKUP($A498,Economática!$A$3:$AI$823,18,FALSE)))","v":""},{"$f":"IF($A498=\"\",\"\",IF(OR(VLOOKUP($A498,Economática!$A$3:$AI$823,19,FALSE)=0,VLOOKUP($A498,Economática!$A$3:$AI$823,19,FALSE)=\"-\"),1/0,VLOOKUP($A498,Economática!$A$3:$AI$823,19,FALSE)))","v":""},{"$f":"IF($A498=\"\",\"\",VLOOKUP($A498,Economática!$A$3:$AI$823,20,FALSE)/E498)","v":""},"","","",{"$f":"IF($A498=\"\",\"\",IF(OR(VLOOKUP($A498,Economática!$A$3:$AI$823,21,FALSE)/100=0,VLOOKUP($A498,Economática!$A$3:$AI$823,21,FALSE)/100=\"-\"),1/0,VLOOKUP($A498,Economática!$A$3:$AI$823,21,FALSE)/100))","v":""},{"$f":"IF($A498=\"\",\"\",IF(OR(VLOOKUP($A498,Economática!$A$3:$AI$823,22,FALSE)/100=0,VLOOKUP($A498,Economática!$A$3:$AI$823,22,FALSE)/100=\"-\"),1/0,VLOOKUP($A498,Economática!$A$3:$AI$823,22,FALSE)/100))","v":""},{"$f":"IF($A498=\"\",\"\",IF(OR(VLOOKUP($A498,Economática!$A$3:$AI$823,23,FALSE)=0,VLOOKUP($A498,Economática!$A$3:$AI$823,23,FALSE)=\"-\"),1/0,VLOOKUP($A498,Economática!$A$3:$AI$823,23,FALSE)))","v":""},{"$f":"IF($A498=\"\",\"\",IF(OR(VLOOKUP($A498,Economática!$A$3:$AI$823,24,FALSE)=0,VLOOKUP($A498,Economática!$A$3:$AI$823,24,FALSE)=\"-\"),1/0,VLOOKUP($A498,Economática!$A$3:$AI$823,24,FALSE)))","v":""},{"$f":"IF($A498=\"\",\"\",IF(OR(VLOOKUP($A498,Economática!$A$3:$AI$823,25,FALSE)=0,VLOOKUP($A498,Economática!$A$3:$AI$823,25,FALSE)=\"-\"),1/0,VLOOKUP($A498,Economática!$A$3:$AI$823,25,FALSE)))","v":""},{"$f":"IF($A498=\"\",\"\",IF(ISERROR((F498+VLOOKUP($A498,Economática!$A$3:$AI$823,26,FALSE))/Y498),(F498+VLOOKUP($A498,Economática!$A$3:$AI$823,26,FALSE))/Y498,(F498+VLOOKUP($A498,Economática!$A$3:$AI$823,26,FALSE))/Y498))","v":""},{"$f":"IF($A498=\"\",\"\",IF(OR(-VLOOKUP($A498,Economática!$A$3:$AI$823,27,FALSE)=0,-VLOOKUP($A498,Economática!$A$3:$AI$823,27,FALSE)=\"-\"),1/0,-VLOOKUP($A498,Economática!$A$3:$AI$823,27,FALSE)))","v":""},"",{"$f":"IF($A498=\"\",\"\",IF(OR(VLOOKUP($A498,Economática!$A$3:$AI$823,28,FALSE)=0,VLOOKUP($A498,Economática!$A$3:$AI$823,28,FALSE)=\"-\"),1/0,VLOOKUP($A498,Economática!$A$3:$AI$823,28,FALSE)))","v":""},{"$f":"IF($A498=\"\",\"\",IF(OR(VLOOKUP($A498,Economática!$A$3:$AI$823,29,FALSE)=0,VLOOKUP($A498,Economática!$A$3:$AI$823,29,FALSE)=\"-\"),1/0,VLOOKUP($A498,Economática!$A$3:$AI$823,29,FALSE)))","v":""},{"$f":"IF($A498=\"\",\"\",IF(OR(VLOOKUP($A498,Economática!$A$3:$AI$823,30,FALSE)/E498=0,VLOOKUP($A498,Economática!$A$3:$AI$823,30,FALSE)/E498=\"-\",VLOOKUP($A498,Economática!$A$3:$AI$823,30,FALSE)/E498<33.33%,VLOOKUP($A498,Economática!$A$3:$AI$823,30,FALSE)/E498>100%),1/0,VLOOKUP($A498,Economática!$A$3:$AI$823,30,FALSE)/E498))","v":""},"",{"$f":"IF($A498=\"\",\"\",IF(OR(VLOOKUP($A498,Economática!$A$3:$AI$823,25,FALSE)=0,VLOOKUP($A498,Economática!$A$3:$AI$823,25,FALSE)=\"-\"),1/0,VLOOKUP($A498,Economática!$A$3:$AI$823,25,FALSE)))","v":""},{"$f":"CONCATENATE(Economática!B476,\" \",Economática!C476)","v":" "}]
[{"$f":"IF(Economática!AG477=\"\",\"\",Economática!AG477)","v":""},{"$f":"IF($A499=\"\",\"\",VLOOKUP(VLOOKUP($A499,Economática!$A$3:$AI$823,6,FALSE),Correção!$B$16:$C$36,2,FALSE))","v":""},{"$f":"IF(Economática!B477=\"\",\"\",Economática!B477)","v":""},{"$f":"IF($A499=\"\",\"\",IF(OR(VLOOKUP($A499,Economática!$A$3:$AI$823,8,FALSE)=0,VLOOKUP($A499,Economática!$A$3:$AI$823,8,FALSE)=\"-\"),1/0,VLOOKUP($A499,Economática!$A$3:$AI$823,8,FALSE)))","v":""},{"$f":"IF(A499=\"\",\"\",IF(ISERROR(VLOOKUP(A499,Correção!$B$2:$G$13,9,FALSE)),VLOOKUP($A499,Economática!$A$3:$AI$823,9,FALSE),VLOOKUP(A499,Correção!$B$2:$G$13,9,FALSE)))","v":""},{"$f":"IF($A499=\"\",\"\",Economática!G477)","v":""},{"$f":"IF($A499=\"\",\"\",IF(OR(VLOOKUP($A499,Economática!$A$3:$AI$823,10,FALSE)=0,VLOOKUP($A499,Economática!$A$3:$AI$823,10,FALSE)=\"-\"),1/0,VLOOKUP($A499,Economática!$A$3:$AI$823,10,FALSE)))","v":""},{"$f":"IF($A499=\"\",\"\",IF(OR(VLOOKUP($A499,Economática!$A$3:$AI$823,11,FALSE)=0,VLOOKUP($A499,Economática!$A$3:$AI$823,11,FALSE)=\"-\"),1/0,VLOOKUP($A499,Economática!$A$3:$AI$823,11,FALSE)))","v":""},{"$f":"IF($A499=\"\",\"\",IF(OR(VLOOKUP($A499,Economática!$A$3:$AI$823,12,FALSE)=0,VLOOKUP($A499,Economática!$A$3:$AI$823,12,FALSE)=\"-\"),1/0,VLOOKUP($A499,Economática!$A$3:$AI$823,12,FALSE)))","v":""},{"$f":"IF($A499=\"\",\"\",IF(OR(VLOOKUP($A499,Economática!$A$3:$AI$823,13,FALSE)=0,VLOOKUP($A499,Economática!$A$3:$AI$823,13,FALSE)=\"-\"),1/0,VLOOKUP($A499,Economática!$A$3:$AI$823,13,FALSE)))","v":""},{"$f":"IF($A499=\"\",\"\",IF(OR(VLOOKUP($A499,Economática!$A$3:$AI$823,14,FALSE)=0,VLOOKUP($A499,Economática!$A$3:$AI$823,14,FALSE)=\"-\"),1/0,VLOOKUP($A499,Economática!$A$3:$AI$823,14,FALSE)))","v":""},{"$f":"IF($A499=\"\",\"\",IF(OR(VLOOKUP($A499,Economática!$A$3:$AI$823,15,FALSE)=0,VLOOKUP($A499,Economática!$A$3:$AI$823,15,FALSE)=\"-\"),1/0,VLOOKUP($A499,Economática!$A$3:$AI$823,15,FALSE)))","v":""},{"$f":"IF($A499=\"\",\"\",IF(OR(VLOOKUP($A499,Economática!$A$3:$AI$823,16,FALSE)=0,VLOOKUP($A499,Economática!$A$3:$AI$823,16,FALSE)=\"-\"),1/0,VLOOKUP($A499,Economática!$A$3:$AI$823,16,FALSE)))","v":""},{"$f":"IF($A499=\"\",\"\",IF(OR(VLOOKUP($A499,Economática!$A$3:$AI$823,17,FALSE)=0,VLOOKUP($A499,Economática!$A$3:$AI$823,17,FALSE)=\"-\"),1/0,VLOOKUP($A499,Economática!$A$3:$AI$823,17,FALSE)))","v":""},{"$f":"IF($A499=\"\",\"\",IF(OR(VLOOKUP($A499,Economática!$A$3:$AI$823,18,FALSE)=0,VLOOKUP($A499,Economática!$A$3:$AI$823,18,FALSE)=\"-\"),1/0,VLOOKUP($A499,Economática!$A$3:$AI$823,18,FALSE)))","v":""},{"$f":"IF($A499=\"\",\"\",IF(OR(VLOOKUP($A499,Economática!$A$3:$AI$823,19,FALSE)=0,VLOOKUP($A499,Economática!$A$3:$AI$823,19,FALSE)=\"-\"),1/0,VLOOKUP($A499,Economática!$A$3:$AI$823,19,FALSE)))","v":""},{"$f":"IF($A499=\"\",\"\",VLOOKUP($A499,Economática!$A$3:$AI$823,20,FALSE)/E499)","v":""},"","","",{"$f":"IF($A499=\"\",\"\",IF(OR(VLOOKUP($A499,Economática!$A$3:$AI$823,21,FALSE)/100=0,VLOOKUP($A499,Economática!$A$3:$AI$823,21,FALSE)/100=\"-\"),1/0,VLOOKUP($A499,Economática!$A$3:$AI$823,21,FALSE)/100))","v":""},{"$f":"IF($A499=\"\",\"\",IF(OR(VLOOKUP($A499,Economática!$A$3:$AI$823,22,FALSE)/100=0,VLOOKUP($A499,Economática!$A$3:$AI$823,22,FALSE)/100=\"-\"),1/0,VLOOKUP($A499,Economática!$A$3:$AI$823,22,FALSE)/100))","v":""},{"$f":"IF($A499=\"\",\"\",IF(OR(VLOOKUP($A499,Economática!$A$3:$AI$823,23,FALSE)=0,VLOOKUP($A499,Economática!$A$3:$AI$823,23,FALSE)=\"-\"),1/0,VLOOKUP($A499,Economática!$A$3:$AI$823,23,FALSE)))","v":""},{"$f":"IF($A499=\"\",\"\",IF(OR(VLOOKUP($A499,Economática!$A$3:$AI$823,24,FALSE)=0,VLOOKUP($A499,Economática!$A$3:$AI$823,24,FALSE)=\"-\"),1/0,VLOOKUP($A499,Economática!$A$3:$AI$823,24,FALSE)))","v":""},{"$f":"IF($A499=\"\",\"\",IF(OR(VLOOKUP($A499,Economática!$A$3:$AI$823,25,FALSE)=0,VLOOKUP($A499,Economática!$A$3:$AI$823,25,FALSE)=\"-\"),1/0,VLOOKUP($A499,Economática!$A$3:$AI$823,25,FALSE)))","v":""},{"$f":"IF($A499=\"\",\"\",IF(ISERROR((F499+VLOOKUP($A499,Economática!$A$3:$AI$823,26,FALSE))/Y499),(F499+VLOOKUP($A499,Economática!$A$3:$AI$823,26,FALSE))/Y499,(F499+VLOOKUP($A499,Economática!$A$3:$AI$823,26,FALSE))/Y499))","v":""},{"$f":"IF($A499=\"\",\"\",IF(OR(-VLOOKUP($A499,Economática!$A$3:$AI$823,27,FALSE)=0,-VLOOKUP($A499,Economática!$A$3:$AI$823,27,FALSE)=\"-\"),1/0,-VLOOKUP($A499,Economática!$A$3:$AI$823,27,FALSE)))","v":""},"",{"$f":"IF($A499=\"\",\"\",IF(OR(VLOOKUP($A499,Economática!$A$3:$AI$823,28,FALSE)=0,VLOOKUP($A499,Economática!$A$3:$AI$823,28,FALSE)=\"-\"),1/0,VLOOKUP($A499,Economática!$A$3:$AI$823,28,FALSE)))","v":""},{"$f":"IF($A499=\"\",\"\",IF(OR(VLOOKUP($A499,Economática!$A$3:$AI$823,29,FALSE)=0,VLOOKUP($A499,Economática!$A$3:$AI$823,29,FALSE)=\"-\"),1/0,VLOOKUP($A499,Economática!$A$3:$AI$823,29,FALSE)))","v":""},{"$f":"IF($A499=\"\",\"\",IF(OR(VLOOKUP($A499,Economática!$A$3:$AI$823,30,FALSE)/E499=0,VLOOKUP($A499,Economática!$A$3:$AI$823,30,FALSE)/E499=\"-\",VLOOKUP($A499,Economática!$A$3:$AI$823,30,FALSE)/E499<33.33%,VLOOKUP($A499,Economática!$A$3:$AI$823,30,FALSE)/E499>100%),1/0,VLOOKUP($A499,Economática!$A$3:$AI$823,30,FALSE)/E499))","v":""},"",{"$f":"IF($A499=\"\",\"\",IF(OR(VLOOKUP($A499,Economática!$A$3:$AI$823,25,FALSE)=0,VLOOKUP($A499,Economática!$A$3:$AI$823,25,FALSE)=\"-\"),1/0,VLOOKUP($A499,Economática!$A$3:$AI$823,25,FALSE)))","v":""},{"$f":"CONCATENATE(Economática!B477,\" \",Economática!C477)","v":" "}]
[{"$f":"IF(Economática!AG478=\"\",\"\",Economática!AG478)","v":""},{"$f":"IF($A500=\"\",\"\",VLOOKUP(VLOOKUP($A500,Economática!$A$3:$AI$823,6,FALSE),Correção!$B$16:$C$36,2,FALSE))","v":""},{"$f":"IF(Economática!B478=\"\",\"\",Economática!B478)","v":""},{"$f":"IF($A500=\"\",\"\",IF(OR(VLOOKUP($A500,Economática!$A$3:$AI$823,8,FALSE)=0,VLOOKUP($A500,Economática!$A$3:$AI$823,8,FALSE)=\"-\"),1/0,VLOOKUP($A500,Economática!$A$3:$AI$823,8,FALSE)))","v":""},{"$f":"IF(A500=\"\",\"\",IF(ISERROR(VLOOKUP(A500,Correção!$B$2:$G$13,9,FALSE)),VLOOKUP($A500,Economática!$A$3:$AI$823,9,FALSE),VLOOKUP(A500,Correção!$B$2:$G$13,9,FALSE)))","v":""},{"$f":"IF($A500=\"\",\"\",Economática!G478)","v":""},{"$f":"IF($A500=\"\",\"\",IF(OR(VLOOKUP($A500,Economática!$A$3:$AI$823,10,FALSE)=0,VLOOKUP($A500,Economática!$A$3:$AI$823,10,FALSE)=\"-\"),1/0,VLOOKUP($A500,Economática!$A$3:$AI$823,10,FALSE)))","v":""},{"$f":"IF($A500=\"\",\"\",IF(OR(VLOOKUP($A500,Economática!$A$3:$AI$823,11,FALSE)=0,VLOOKUP($A500,Economática!$A$3:$AI$823,11,FALSE)=\"-\"),1/0,VLOOKUP($A500,Economática!$A$3:$AI$823,11,FALSE)))","v":""},{"$f":"IF($A500=\"\",\"\",IF(OR(VLOOKUP($A500,Economática!$A$3:$AI$823,12,FALSE)=0,VLOOKUP($A500,Economática!$A$3:$AI$823,12,FALSE)=\"-\"),1/0,VLOOKUP($A500,Economática!$A$3:$AI$823,12,FALSE)))","v":""},{"$f":"IF($A500=\"\",\"\",IF(OR(VLOOKUP($A500,Economática!$A$3:$AI$823,13,FALSE)=0,VLOOKUP($A500,Economática!$A$3:$AI$823,13,FALSE)=\"-\"),1/0,VLOOKUP($A500,Economática!$A$3:$AI$823,13,FALSE)))","v":""},{"$f":"IF($A500=\"\",\"\",IF(OR(VLOOKUP($A500,Economática!$A$3:$AI$823,14,FALSE)=0,VLOOKUP($A500,Economática!$A$3:$AI$823,14,FALSE)=\"-\"),1/0,VLOOKUP($A500,Economática!$A$3:$AI$823,14,FALSE)))","v":""},{"$f":"IF($A500=\"\",\"\",IF(OR(VLOOKUP($A500,Economática!$A$3:$AI$823,15,FALSE)=0,VLOOKUP($A500,Economática!$A$3:$AI$823,15,FALSE)=\"-\"),1/0,VLOOKUP($A500,Economática!$A$3:$AI$823,15,FALSE)))","v":""},{"$f":"IF($A500=\"\",\"\",IF(OR(VLOOKUP($A500,Economática!$A$3:$AI$823,16,FALSE)=0,VLOOKUP($A500,Economática!$A$3:$AI$823,16,FALSE)=\"-\"),1/0,VLOOKUP($A500,Economática!$A$3:$AI$823,16,FALSE)))","v":""},{"$f":"IF($A500=\"\",\"\",IF(OR(VLOOKUP($A500,Economática!$A$3:$AI$823,17,FALSE)=0,VLOOKUP($A500,Economática!$A$3:$AI$823,17,FALSE)=\"-\"),1/0,VLOOKUP($A500,Economática!$A$3:$AI$823,17,FALSE)))","v":""},{"$f":"IF($A500=\"\",\"\",IF(OR(VLOOKUP($A500,Economática!$A$3:$AI$823,18,FALSE)=0,VLOOKUP($A500,Economática!$A$3:$AI$823,18,FALSE)=\"-\"),1/0,VLOOKUP($A500,Economática!$A$3:$AI$823,18,FALSE)))","v":""},{"$f":"IF($A500=\"\",\"\",IF(OR(VLOOKUP($A500,Economática!$A$3:$AI$823,19,FALSE)=0,VLOOKUP($A500,Economática!$A$3:$AI$823,19,FALSE)=\"-\"),1/0,VLOOKUP($A500,Economática!$A$3:$AI$823,19,FALSE)))","v":""},{"$f":"IF($A500=\"\",\"\",VLOOKUP($A500,Economática!$A$3:$AI$823,20,FALSE)/E500)","v":""},"","","",{"$f":"IF($A500=\"\",\"\",IF(OR(VLOOKUP($A500,Economática!$A$3:$AI$823,21,FALSE)/100=0,VLOOKUP($A500,Economática!$A$3:$AI$823,21,FALSE)/100=\"-\"),1/0,VLOOKUP($A500,Economática!$A$3:$AI$823,21,FALSE)/100))","v":""},{"$f":"IF($A500=\"\",\"\",IF(OR(VLOOKUP($A500,Economática!$A$3:$AI$823,22,FALSE)/100=0,VLOOKUP($A500,Economática!$A$3:$AI$823,22,FALSE)/100=\"-\"),1/0,VLOOKUP($A500,Economática!$A$3:$AI$823,22,FALSE)/100))","v":""},{"$f":"IF($A500=\"\",\"\",IF(OR(VLOOKUP($A500,Economática!$A$3:$AI$823,23,FALSE)=0,VLOOKUP($A500,Economática!$A$3:$AI$823,23,FALSE)=\"-\"),1/0,VLOOKUP($A500,Economática!$A$3:$AI$823,23,FALSE)))","v":""},{"$f":"IF($A500=\"\",\"\",IF(OR(VLOOKUP($A500,Economática!$A$3:$AI$823,24,FALSE)=0,VLOOKUP($A500,Economática!$A$3:$AI$823,24,FALSE)=\"-\"),1/0,VLOOKUP($A500,Economática!$A$3:$AI$823,24,FALSE)))","v":""},{"$f":"IF($A500=\"\",\"\",IF(OR(VLOOKUP($A500,Economática!$A$3:$AI$823,25,FALSE)=0,VLOOKUP($A500,Economática!$A$3:$AI$823,25,FALSE)=\"-\"),1/0,VLOOKUP($A500,Economática!$A$3:$AI$823,25,FALSE)))","v":""},{"$f":"IF($A500=\"\",\"\",IF(ISERROR((F500+VLOOKUP($A500,Economática!$A$3:$AI$823,26,FALSE))/Y500),(F500+VLOOKUP($A500,Economática!$A$3:$AI$823,26,FALSE))/Y500,(F500+VLOOKUP($A500,Economática!$A$3:$AI$823,26,FALSE))/Y500))","v":""},{"$f":"IF($A500=\"\",\"\",IF(OR(-VLOOKUP($A500,Economática!$A$3:$AI$823,27,FALSE)=0,-VLOOKUP($A500,Economática!$A$3:$AI$823,27,FALSE)=\"-\"),1/0,-VLOOKUP($A500,Economática!$A$3:$AI$823,27,FALSE)))","v":""},"",{"$f":"IF($A500=\"\",\"\",IF(OR(VLOOKUP($A500,Economática!$A$3:$AI$823,28,FALSE)=0,VLOOKUP($A500,Economática!$A$3:$AI$823,28,FALSE)=\"-\"),1/0,VLOOKUP($A500,Economática!$A$3:$AI$823,28,FALSE)))","v":""},{"$f":"IF($A500=\"\",\"\",IF(OR(VLOOKUP($A500,Economática!$A$3:$AI$823,29,FALSE)=0,VLOOKUP($A500,Economática!$A$3:$AI$823,29,FALSE)=\"-\"),1/0,VLOOKUP($A500,Economática!$A$3:$AI$823,29,FALSE)))","v":""},{"$f":"IF($A500=\"\",\"\",IF(OR(VLOOKUP($A500,Economática!$A$3:$AI$823,30,FALSE)/E500=0,VLOOKUP($A500,Economática!$A$3:$AI$823,30,FALSE)/E500=\"-\",VLOOKUP($A500,Economática!$A$3:$AI$823,30,FALSE)/E500<33.33%,VLOOKUP($A500,Economática!$A$3:$AI$823,30,FALSE)/E500>100%),1/0,VLOOKUP($A500,Economática!$A$3:$AI$823,30,FALSE)/E500))","v":""},"",{"$f":"IF($A500=\"\",\"\",IF(OR(VLOOKUP($A500,Economática!$A$3:$AI$823,25,FALSE)=0,VLOOKUP($A500,Economática!$A$3:$AI$823,25,FALSE)=\"-\"),1/0,VLOOKUP($A500,Economática!$A$3:$AI$823,25,FALSE)))","v":""},{"$f":"CONCATENATE(Economática!B478,\" \",Economática!C478)","v":" "}]
[{"$f":"IF(Economática!AG479=\"\",\"\",Economática!AG479)","v":""},{"$f":"IF($A501=\"\",\"\",VLOOKUP(VLOOKUP($A501,Economática!$A$3:$AI$823,6,FALSE),Correção!$B$16:$C$36,2,FALSE))","v":""},{"$f":"IF(Economática!B479=\"\",\"\",Economática!B479)","v":""},{"$f":"IF($A501=\"\",\"\",IF(OR(VLOOKUP($A501,Economática!$A$3:$AI$823,8,FALSE)=0,VLOOKUP($A501,Economática!$A$3:$AI$823,8,FALSE)=\"-\"),1/0,VLOOKUP($A501,Economática!$A$3:$AI$823,8,FALSE)))","v":""},{"$f":"IF(A501=\"\",\"\",IF(ISERROR(VLOOKUP(A501,Correção!$B$2:$G$13,9,FALSE)),VLOOKUP($A501,Economática!$A$3:$AI$823,9,FALSE),VLOOKUP(A501,Correção!$B$2:$G$13,9,FALSE)))","v":""},{"$f":"IF($A501=\"\",\"\",Economática!G479)","v":""},{"$f":"IF($A501=\"\",\"\",IF(OR(VLOOKUP($A501,Economática!$A$3:$AI$823,10,FALSE)=0,VLOOKUP($A501,Economática!$A$3:$AI$823,10,FALSE)=\"-\"),1/0,VLOOKUP($A501,Economática!$A$3:$AI$823,10,FALSE)))","v":""},{"$f":"IF($A501=\"\",\"\",IF(OR(VLOOKUP($A501,Economática!$A$3:$AI$823,11,FALSE)=0,VLOOKUP($A501,Economática!$A$3:$AI$823,11,FALSE)=\"-\"),1/0,VLOOKUP($A501,Economática!$A$3:$AI$823,11,FALSE)))","v":""},{"$f":"IF($A501=\"\",\"\",IF(OR(VLOOKUP($A501,Economática!$A$3:$AI$823,12,FALSE)=0,VLOOKUP($A501,Economática!$A$3:$AI$823,12,FALSE)=\"-\"),1/0,VLOOKUP($A501,Economática!$A$3:$AI$823,12,FALSE)))","v":""},{"$f":"IF($A501=\"\",\"\",IF(OR(VLOOKUP($A501,Economática!$A$3:$AI$823,13,FALSE)=0,VLOOKUP($A501,Economática!$A$3:$AI$823,13,FALSE)=\"-\"),1/0,VLOOKUP($A501,Economática!$A$3:$AI$823,13,FALSE)))","v":""},{"$f":"IF($A501=\"\",\"\",IF(OR(VLOOKUP($A501,Economática!$A$3:$AI$823,14,FALSE)=0,VLOOKUP($A501,Economática!$A$3:$AI$823,14,FALSE)=\"-\"),1/0,VLOOKUP($A501,Economática!$A$3:$AI$823,14,FALSE)))","v":""},{"$f":"IF($A501=\"\",\"\",IF(OR(VLOOKUP($A501,Economática!$A$3:$AI$823,15,FALSE)=0,VLOOKUP($A501,Economática!$A$3:$AI$823,15,FALSE)=\"-\"),1/0,VLOOKUP($A501,Economática!$A$3:$AI$823,15,FALSE)))","v":""},{"$f":"IF($A501=\"\",\"\",IF(OR(VLOOKUP($A501,Economática!$A$3:$AI$823,16,FALSE)=0,VLOOKUP($A501,Economática!$A$3:$AI$823,16,FALSE)=\"-\"),1/0,VLOOKUP($A501,Economática!$A$3:$AI$823,16,FALSE)))","v":""},{"$f":"IF($A501=\"\",\"\",IF(OR(VLOOKUP($A501,Economática!$A$3:$AI$823,17,FALSE)=0,VLOOKUP($A501,Economática!$A$3:$AI$823,17,FALSE)=\"-\"),1/0,VLOOKUP($A501,Economática!$A$3:$AI$823,17,FALSE)))","v":""},{"$f":"IF($A501=\"\",\"\",IF(OR(VLOOKUP($A501,Economática!$A$3:$AI$823,18,FALSE)=0,VLOOKUP($A501,Economática!$A$3:$AI$823,18,FALSE)=\"-\"),1/0,VLOOKUP($A501,Economática!$A$3:$AI$823,18,FALSE)))","v":""},{"$f":"IF($A501=\"\",\"\",IF(OR(VLOOKUP($A501,Economática!$A$3:$AI$823,19,FALSE)=0,VLOOKUP($A501,Economática!$A$3:$AI$823,19,FALSE)=\"-\"),1/0,VLOOKUP($A501,Economática!$A$3:$AI$823,19,FALSE)))","v":""},{"$f":"IF($A501=\"\",\"\",VLOOKUP($A501,Economática!$A$3:$AI$823,20,FALSE)/E501)","v":""},"","","",{"$f":"IF($A501=\"\",\"\",IF(OR(VLOOKUP($A501,Economática!$A$3:$AI$823,21,FALSE)/100=0,VLOOKUP($A501,Economática!$A$3:$AI$823,21,FALSE)/100=\"-\"),1/0,VLOOKUP($A501,Economática!$A$3:$AI$823,21,FALSE)/100))","v":""},{"$f":"IF($A501=\"\",\"\",IF(OR(VLOOKUP($A501,Economática!$A$3:$AI$823,22,FALSE)/100=0,VLOOKUP($A501,Economática!$A$3:$AI$823,22,FALSE)/100=\"-\"),1/0,VLOOKUP($A501,Economática!$A$3:$AI$823,22,FALSE)/100))","v":""},{"$f":"IF($A501=\"\",\"\",IF(OR(VLOOKUP($A501,Economática!$A$3:$AI$823,23,FALSE)=0,VLOOKUP($A501,Economática!$A$3:$AI$823,23,FALSE)=\"-\"),1/0,VLOOKUP($A501,Economática!$A$3:$AI$823,23,FALSE)))","v":""},{"$f":"IF($A501=\"\",\"\",IF(OR(VLOOKUP($A501,Economática!$A$3:$AI$823,24,FALSE)=0,VLOOKUP($A501,Economática!$A$3:$AI$823,24,FALSE)=\"-\"),1/0,VLOOKUP($A501,Economática!$A$3:$AI$823,24,FALSE)))","v":""},{"$f":"IF($A501=\"\",\"\",IF(OR(VLOOKUP($A501,Economática!$A$3:$AI$823,25,FALSE)=0,VLOOKUP($A501,Economática!$A$3:$AI$823,25,FALSE)=\"-\"),1/0,VLOOKUP($A501,Economática!$A$3:$AI$823,25,FALSE)))","v":""},{"$f":"IF($A501=\"\",\"\",IF(ISERROR((F501+VLOOKUP($A501,Economática!$A$3:$AI$823,26,FALSE))/Y501),(F501+VLOOKUP($A501,Economática!$A$3:$AI$823,26,FALSE))/Y501,(F501+VLOOKUP($A501,Economática!$A$3:$AI$823,26,FALSE))/Y501))","v":""},{"$f":"IF($A501=\"\",\"\",IF(OR(-VLOOKUP($A501,Economática!$A$3:$AI$823,27,FALSE)=0,-VLOOKUP($A501,Economática!$A$3:$AI$823,27,FALSE)=\"-\"),1/0,-VLOOKUP($A501,Economática!$A$3:$AI$823,27,FALSE)))","v":""},"",{"$f":"IF($A501=\"\",\"\",IF(OR(VLOOKUP($A501,Economática!$A$3:$AI$823,28,FALSE)=0,VLOOKUP($A501,Economática!$A$3:$AI$823,28,FALSE)=\"-\"),1/0,VLOOKUP($A501,Economática!$A$3:$AI$823,28,FALSE)))","v":""},{"$f":"IF($A501=\"\",\"\",IF(OR(VLOOKUP($A501,Economática!$A$3:$AI$823,29,FALSE)=0,VLOOKUP($A501,Economática!$A$3:$AI$823,29,FALSE)=\"-\"),1/0,VLOOKUP($A501,Economática!$A$3:$AI$823,29,FALSE)))","v":""},{"$f":"IF($A501=\"\",\"\",IF(OR(VLOOKUP($A501,Economática!$A$3:$AI$823,30,FALSE)/E501=0,VLOOKUP($A501,Economática!$A$3:$AI$823,30,FALSE)/E501=\"-\",VLOOKUP($A501,Economática!$A$3:$AI$823,30,FALSE)/E501<33.33%,VLOOKUP($A501,Economática!$A$3:$AI$823,30,FALSE)/E501>100%),1/0,VLOOKUP($A501,Economática!$A$3:$AI$823,30,FALSE)/E501))","v":""},"",{"$f":"IF($A501=\"\",\"\",IF(OR(VLOOKUP($A501,Economática!$A$3:$AI$823,25,FALSE)=0,VLOOKUP($A501,Economática!$A$3:$AI$823,25,FALSE)=\"-\"),1/0,VLOOKUP($A501,Economática!$A$3:$AI$823,25,FALSE)))","v":""},{"$f":"CONCATENATE(Economática!B479,\" \",Economática!C479)","v":" "}]
[{"$f":"IF(Economática!AG480=\"\",\"\",Economática!AG480)","v":""},{"$f":"IF($A502=\"\",\"\",VLOOKUP(VLOOKUP($A502,Economática!$A$3:$AI$823,6,FALSE),Correção!$B$16:$C$36,2,FALSE))","v":""},{"$f":"IF(Economática!B480=\"\",\"\",Economática!B480)","v":""},{"$f":"IF($A502=\"\",\"\",IF(OR(VLOOKUP($A502,Economática!$A$3:$AI$823,8,FALSE)=0,VLOOKUP($A502,Economática!$A$3:$AI$823,8,FALSE)=\"-\"),1/0,VLOOKUP($A502,Economática!$A$3:$AI$823,8,FALSE)))","v":""},{"$f":"IF(A502=\"\",\"\",IF(ISERROR(VLOOKUP(A502,Correção!$B$2:$G$13,9,FALSE)),VLOOKUP($A502,Economática!$A$3:$AI$823,9,FALSE),VLOOKUP(A502,Correção!$B$2:$G$13,9,FALSE)))","v":""},{"$f":"IF($A502=\"\",\"\",Economática!G480)","v":""},{"$f":"IF($A502=\"\",\"\",IF(OR(VLOOKUP($A502,Economática!$A$3:$AI$823,10,FALSE)=0,VLOOKUP($A502,Economática!$A$3:$AI$823,10,FALSE)=\"-\"),1/0,VLOOKUP($A502,Economática!$A$3:$AI$823,10,FALSE)))","v":""},{"$f":"IF($A502=\"\",\"\",IF(OR(VLOOKUP($A502,Economática!$A$3:$AI$823,11,FALSE)=0,VLOOKUP($A502,Economática!$A$3:$AI$823,11,FALSE)=\"-\"),1/0,VLOOKUP($A502,Economática!$A$3:$AI$823,11,FALSE)))","v":""},{"$f":"IF($A502=\"\",\"\",IF(OR(VLOOKUP($A502,Economática!$A$3:$AI$823,12,FALSE)=0,VLOOKUP($A502,Economática!$A$3:$AI$823,12,FALSE)=\"-\"),1/0,VLOOKUP($A502,Economática!$A$3:$AI$823,12,FALSE)))","v":""},{"$f":"IF($A502=\"\",\"\",IF(OR(VLOOKUP($A502,Economática!$A$3:$AI$823,13,FALSE)=0,VLOOKUP($A502,Economática!$A$3:$AI$823,13,FALSE)=\"-\"),1/0,VLOOKUP($A502,Economática!$A$3:$AI$823,13,FALSE)))","v":""},{"$f":"IF($A502=\"\",\"\",IF(OR(VLOOKUP($A502,Economática!$A$3:$AI$823,14,FALSE)=0,VLOOKUP($A502,Economática!$A$3:$AI$823,14,FALSE)=\"-\"),1/0,VLOOKUP($A502,Economática!$A$3:$AI$823,14,FALSE)))","v":""},{"$f":"IF($A502=\"\",\"\",IF(OR(VLOOKUP($A502,Economática!$A$3:$AI$823,15,FALSE)=0,VLOOKUP($A502,Economática!$A$3:$AI$823,15,FALSE)=\"-\"),1/0,VLOOKUP($A502,Economática!$A$3:$AI$823,15,FALSE)))","v":""},{"$f":"IF($A502=\"\",\"\",IF(OR(VLOOKUP($A502,Economática!$A$3:$AI$823,16,FALSE)=0,VLOOKUP($A502,Economática!$A$3:$AI$823,16,FALSE)=\"-\"),1/0,VLOOKUP($A502,Economática!$A$3:$AI$823,16,FALSE)))","v":""},{"$f":"IF($A502=\"\",\"\",IF(OR(VLOOKUP($A502,Economática!$A$3:$AI$823,17,FALSE)=0,VLOOKUP($A502,Economática!$A$3:$AI$823,17,FALSE)=\"-\"),1/0,VLOOKUP($A502,Economática!$A$3:$AI$823,17,FALSE)))","v":""},{"$f":"IF($A502=\"\",\"\",IF(OR(VLOOKUP($A502,Economática!$A$3:$AI$823,18,FALSE)=0,VLOOKUP($A502,Economática!$A$3:$AI$823,18,FALSE)=\"-\"),1/0,VLOOKUP($A502,Economática!$A$3:$AI$823,18,FALSE)))","v":""},{"$f":"IF($A502=\"\",\"\",IF(OR(VLOOKUP($A502,Economática!$A$3:$AI$823,19,FALSE)=0,VLOOKUP($A502,Economática!$A$3:$AI$823,19,FALSE)=\"-\"),1/0,VLOOKUP($A502,Economática!$A$3:$AI$823,19,FALSE)))","v":""},{"$f":"IF($A502=\"\",\"\",VLOOKUP($A502,Economática!$A$3:$AI$823,20,FALSE)/E502)","v":""},"","","",{"$f":"IF($A502=\"\",\"\",IF(OR(VLOOKUP($A502,Economática!$A$3:$AI$823,21,FALSE)/100=0,VLOOKUP($A502,Economática!$A$3:$AI$823,21,FALSE)/100=\"-\"),1/0,VLOOKUP($A502,Economática!$A$3:$AI$823,21,FALSE)/100))","v":""},{"$f":"IF($A502=\"\",\"\",IF(OR(VLOOKUP($A502,Economática!$A$3:$AI$823,22,FALSE)/100=0,VLOOKUP($A502,Economática!$A$3:$AI$823,22,FALSE)/100=\"-\"),1/0,VLOOKUP($A502,Economática!$A$3:$AI$823,22,FALSE)/100))","v":""},{"$f":"IF($A502=\"\",\"\",IF(OR(VLOOKUP($A502,Economática!$A$3:$AI$823,23,FALSE)=0,VLOOKUP($A502,Economática!$A$3:$AI$823,23,FALSE)=\"-\"),1/0,VLOOKUP($A502,Economática!$A$3:$AI$823,23,FALSE)))","v":""},{"$f":"IF($A502=\"\",\"\",IF(OR(VLOOKUP($A502,Economática!$A$3:$AI$823,24,FALSE)=0,VLOOKUP($A502,Economática!$A$3:$AI$823,24,FALSE)=\"-\"),1/0,VLOOKUP($A502,Economática!$A$3:$AI$823,24,FALSE)))","v":""},{"$f":"IF($A502=\"\",\"\",IF(OR(VLOOKUP($A502,Economática!$A$3:$AI$823,25,FALSE)=0,VLOOKUP($A502,Economática!$A$3:$AI$823,25,FALSE)=\"-\"),1/0,VLOOKUP($A502,Economática!$A$3:$AI$823,25,FALSE)))","v":""},{"$f":"IF($A502=\"\",\"\",IF(ISERROR((F502+VLOOKUP($A502,Economática!$A$3:$AI$823,26,FALSE))/Y502),(F502+VLOOKUP($A502,Economática!$A$3:$AI$823,26,FALSE))/Y502,(F502+VLOOKUP($A502,Economática!$A$3:$AI$823,26,FALSE))/Y502))","v":""},{"$f":"IF($A502=\"\",\"\",IF(OR(-VLOOKUP($A502,Economática!$A$3:$AI$823,27,FALSE)=0,-VLOOKUP($A502,Economática!$A$3:$AI$823,27,FALSE)=\"-\"),1/0,-VLOOKUP($A502,Economática!$A$3:$AI$823,27,FALSE)))","v":""},"",{"$f":"IF($A502=\"\",\"\",IF(OR(VLOOKUP($A502,Economática!$A$3:$AI$823,28,FALSE)=0,VLOOKUP($A502,Economática!$A$3:$AI$823,28,FALSE)=\"-\"),1/0,VLOOKUP($A502,Economática!$A$3:$AI$823,28,FALSE)))","v":""},{"$f":"IF($A502=\"\",\"\",IF(OR(VLOOKUP($A502,Economática!$A$3:$AI$823,29,FALSE)=0,VLOOKUP($A502,Economática!$A$3:$AI$823,29,FALSE)=\"-\"),1/0,VLOOKUP($A502,Economática!$A$3:$AI$823,29,FALSE)))","v":""},{"$f":"IF($A502=\"\",\"\",IF(OR(VLOOKUP($A502,Economática!$A$3:$AI$823,30,FALSE)/E502=0,VLOOKUP($A502,Economática!$A$3:$AI$823,30,FALSE)/E502=\"-\",VLOOKUP($A502,Economática!$A$3:$AI$823,30,FALSE)/E502<33.33%,VLOOKUP($A502,Economática!$A$3:$AI$823,30,FALSE)/E502>100%),1/0,VLOOKUP($A502,Economática!$A$3:$AI$823,30,FALSE)/E502))","v":""},"",{"$f":"IF($A502=\"\",\"\",IF(OR(VLOOKUP($A502,Economática!$A$3:$AI$823,25,FALSE)=0,VLOOKUP($A502,Economática!$A$3:$AI$823,25,FALSE)=\"-\"),1/0,VLOOKUP($A502,Economática!$A$3:$AI$823,25,FALSE)))","v":""},{"$f":"CONCATENATE(Economática!B480,\" \",Economática!C480)","v":" "}]
[{"$f":"IF(Economática!AG481=\"\",\"\",Economática!AG481)","v":""},{"$f":"IF($A503=\"\",\"\",VLOOKUP(VLOOKUP($A503,Economática!$A$3:$AI$823,6,FALSE),Correção!$B$16:$C$36,2,FALSE))","v":""},{"$f":"IF(Economática!B481=\"\",\"\",Economática!B481)","v":""},{"$f":"IF($A503=\"\",\"\",IF(OR(VLOOKUP($A503,Economática!$A$3:$AI$823,8,FALSE)=0,VLOOKUP($A503,Economática!$A$3:$AI$823,8,FALSE)=\"-\"),1/0,VLOOKUP($A503,Economática!$A$3:$AI$823,8,FALSE)))","v":""},{"$f":"IF(A503=\"\",\"\",IF(ISERROR(VLOOKUP(A503,Correção!$B$2:$G$13,9,FALSE)),VLOOKUP($A503,Economática!$A$3:$AI$823,9,FALSE),VLOOKUP(A503,Correção!$B$2:$G$13,9,FALSE)))","v":""},{"$f":"IF($A503=\"\",\"\",Economática!G481)","v":""},{"$f":"IF($A503=\"\",\"\",IF(OR(VLOOKUP($A503,Economática!$A$3:$AI$823,10,FALSE)=0,VLOOKUP($A503,Economática!$A$3:$AI$823,10,FALSE)=\"-\"),1/0,VLOOKUP($A503,Economática!$A$3:$AI$823,10,FALSE)))","v":""},{"$f":"IF($A503=\"\",\"\",IF(OR(VLOOKUP($A503,Economática!$A$3:$AI$823,11,FALSE)=0,VLOOKUP($A503,Economática!$A$3:$AI$823,11,FALSE)=\"-\"),1/0,VLOOKUP($A503,Economática!$A$3:$AI$823,11,FALSE)))","v":""},{"$f":"IF($A503=\"\",\"\",IF(OR(VLOOKUP($A503,Economática!$A$3:$AI$823,12,FALSE)=0,VLOOKUP($A503,Economática!$A$3:$AI$823,12,FALSE)=\"-\"),1/0,VLOOKUP($A503,Economática!$A$3:$AI$823,12,FALSE)))","v":""},{"$f":"IF($A503=\"\",\"\",IF(OR(VLOOKUP($A503,Economática!$A$3:$AI$823,13,FALSE)=0,VLOOKUP($A503,Economática!$A$3:$AI$823,13,FALSE)=\"-\"),1/0,VLOOKUP($A503,Economática!$A$3:$AI$823,13,FALSE)))","v":""},{"$f":"IF($A503=\"\",\"\",IF(OR(VLOOKUP($A503,Economática!$A$3:$AI$823,14,FALSE)=0,VLOOKUP($A503,Economática!$A$3:$AI$823,14,FALSE)=\"-\"),1/0,VLOOKUP($A503,Economática!$A$3:$AI$823,14,FALSE)))","v":""},{"$f":"IF($A503=\"\",\"\",IF(OR(VLOOKUP($A503,Economática!$A$3:$AI$823,15,FALSE)=0,VLOOKUP($A503,Economática!$A$3:$AI$823,15,FALSE)=\"-\"),1/0,VLOOKUP($A503,Economática!$A$3:$AI$823,15,FALSE)))","v":""},{"$f":"IF($A503=\"\",\"\",IF(OR(VLOOKUP($A503,Economática!$A$3:$AI$823,16,FALSE)=0,VLOOKUP($A503,Economática!$A$3:$AI$823,16,FALSE)=\"-\"),1/0,VLOOKUP($A503,Economática!$A$3:$AI$823,16,FALSE)))","v":""},{"$f":"IF($A503=\"\",\"\",IF(OR(VLOOKUP($A503,Economática!$A$3:$AI$823,17,FALSE)=0,VLOOKUP($A503,Economática!$A$3:$AI$823,17,FALSE)=\"-\"),1/0,VLOOKUP($A503,Economática!$A$3:$AI$823,17,FALSE)))","v":""},{"$f":"IF($A503=\"\",\"\",IF(OR(VLOOKUP($A503,Economática!$A$3:$AI$823,18,FALSE)=0,VLOOKUP($A503,Economática!$A$3:$AI$823,18,FALSE)=\"-\"),1/0,VLOOKUP($A503,Economática!$A$3:$AI$823,18,FALSE)))","v":""},{"$f":"IF($A503=\"\",\"\",IF(OR(VLOOKUP($A503,Economática!$A$3:$AI$823,19,FALSE)=0,VLOOKUP($A503,Economática!$A$3:$AI$823,19,FALSE)=\"-\"),1/0,VLOOKUP($A503,Economática!$A$3:$AI$823,19,FALSE)))","v":""},{"$f":"IF($A503=\"\",\"\",VLOOKUP($A503,Economática!$A$3:$AI$823,20,FALSE)/E503)","v":""},"","","",{"$f":"IF($A503=\"\",\"\",IF(OR(VLOOKUP($A503,Economática!$A$3:$AI$823,21,FALSE)/100=0,VLOOKUP($A503,Economática!$A$3:$AI$823,21,FALSE)/100=\"-\"),1/0,VLOOKUP($A503,Economática!$A$3:$AI$823,21,FALSE)/100))","v":""},{"$f":"IF($A503=\"\",\"\",IF(OR(VLOOKUP($A503,Economática!$A$3:$AI$823,22,FALSE)/100=0,VLOOKUP($A503,Economática!$A$3:$AI$823,22,FALSE)/100=\"-\"),1/0,VLOOKUP($A503,Economática!$A$3:$AI$823,22,FALSE)/100))","v":""},{"$f":"IF($A503=\"\",\"\",IF(OR(VLOOKUP($A503,Economática!$A$3:$AI$823,23,FALSE)=0,VLOOKUP($A503,Economática!$A$3:$AI$823,23,FALSE)=\"-\"),1/0,VLOOKUP($A503,Economática!$A$3:$AI$823,23,FALSE)))","v":""},{"$f":"IF($A503=\"\",\"\",IF(OR(VLOOKUP($A503,Economática!$A$3:$AI$823,24,FALSE)=0,VLOOKUP($A503,Economática!$A$3:$AI$823,24,FALSE)=\"-\"),1/0,VLOOKUP($A503,Economática!$A$3:$AI$823,24,FALSE)))","v":""},{"$f":"IF($A503=\"\",\"\",IF(OR(VLOOKUP($A503,Economática!$A$3:$AI$823,25,FALSE)=0,VLOOKUP($A503,Economática!$A$3:$AI$823,25,FALSE)=\"-\"),1/0,VLOOKUP($A503,Economática!$A$3:$AI$823,25,FALSE)))","v":""},{"$f":"IF($A503=\"\",\"\",IF(ISERROR((F503+VLOOKUP($A503,Economática!$A$3:$AI$823,26,FALSE))/Y503),(F503+VLOOKUP($A503,Economática!$A$3:$AI$823,26,FALSE))/Y503,(F503+VLOOKUP($A503,Economática!$A$3:$AI$823,26,FALSE))/Y503))","v":""},{"$f":"IF($A503=\"\",\"\",IF(OR(-VLOOKUP($A503,Economática!$A$3:$AI$823,27,FALSE)=0,-VLOOKUP($A503,Economática!$A$3:$AI$823,27,FALSE)=\"-\"),1/0,-VLOOKUP($A503,Economática!$A$3:$AI$823,27,FALSE)))","v":""},"",{"$f":"IF($A503=\"\",\"\",IF(OR(VLOOKUP($A503,Economática!$A$3:$AI$823,28,FALSE)=0,VLOOKUP($A503,Economática!$A$3:$AI$823,28,FALSE)=\"-\"),1/0,VLOOKUP($A503,Economática!$A$3:$AI$823,28,FALSE)))","v":""},{"$f":"IF($A503=\"\",\"\",IF(OR(VLOOKUP($A503,Economática!$A$3:$AI$823,29,FALSE)=0,VLOOKUP($A503,Economática!$A$3:$AI$823,29,FALSE)=\"-\"),1/0,VLOOKUP($A503,Economática!$A$3:$AI$823,29,FALSE)))","v":""},{"$f":"IF($A503=\"\",\"\",IF(OR(VLOOKUP($A503,Economática!$A$3:$AI$823,30,FALSE)/E503=0,VLOOKUP($A503,Economática!$A$3:$AI$823,30,FALSE)/E503=\"-\",VLOOKUP($A503,Economática!$A$3:$AI$823,30,FALSE)/E503<33.33%,VLOOKUP($A503,Economática!$A$3:$AI$823,30,FALSE)/E503>100%),1/0,VLOOKUP($A503,Economática!$A$3:$AI$823,30,FALSE)/E503))","v":""},"",{"$f":"IF($A503=\"\",\"\",IF(OR(VLOOKUP($A503,Economática!$A$3:$AI$823,25,FALSE)=0,VLOOKUP($A503,Economática!$A$3:$AI$823,25,FALSE)=\"-\"),1/0,VLOOKUP($A503,Economática!$A$3:$AI$823,25,FALSE)))","v":""},{"$f":"CONCATENATE(Economática!B481,\" \",Economática!C481)","v":" "}]
[{"$f":"IF(Economática!AG482=\"\",\"\",Economática!AG482)","v":""},{"$f":"IF($A504=\"\",\"\",VLOOKUP(VLOOKUP($A504,Economática!$A$3:$AI$823,6,FALSE),Correção!$B$16:$C$36,2,FALSE))","v":""},{"$f":"IF(Economática!B482=\"\",\"\",Economática!B482)","v":""},{"$f":"IF($A504=\"\",\"\",IF(OR(VLOOKUP($A504,Economática!$A$3:$AI$823,8,FALSE)=0,VLOOKUP($A504,Economática!$A$3:$AI$823,8,FALSE)=\"-\"),1/0,VLOOKUP($A504,Economática!$A$3:$AI$823,8,FALSE)))","v":""},{"$f":"IF(A504=\"\",\"\",IF(ISERROR(VLOOKUP(A504,Correção!$B$2:$G$13,9,FALSE)),VLOOKUP($A504,Economática!$A$3:$AI$823,9,FALSE),VLOOKUP(A504,Correção!$B$2:$G$13,9,FALSE)))","v":""},{"$f":"IF($A504=\"\",\"\",Economática!G482)","v":""},{"$f":"IF($A504=\"\",\"\",IF(OR(VLOOKUP($A504,Economática!$A$3:$AI$823,10,FALSE)=0,VLOOKUP($A504,Economática!$A$3:$AI$823,10,FALSE)=\"-\"),1/0,VLOOKUP($A504,Economática!$A$3:$AI$823,10,FALSE)))","v":""},{"$f":"IF($A504=\"\",\"\",IF(OR(VLOOKUP($A504,Economática!$A$3:$AI$823,11,FALSE)=0,VLOOKUP($A504,Economática!$A$3:$AI$823,11,FALSE)=\"-\"),1/0,VLOOKUP($A504,Economática!$A$3:$AI$823,11,FALSE)))","v":""},{"$f":"IF($A504=\"\",\"\",IF(OR(VLOOKUP($A504,Economática!$A$3:$AI$823,12,FALSE)=0,VLOOKUP($A504,Economática!$A$3:$AI$823,12,FALSE)=\"-\"),1/0,VLOOKUP($A504,Economática!$A$3:$AI$823,12,FALSE)))","v":""},{"$f":"IF($A504=\"\",\"\",IF(OR(VLOOKUP($A504,Economática!$A$3:$AI$823,13,FALSE)=0,VLOOKUP($A504,Economática!$A$3:$AI$823,13,FALSE)=\"-\"),1/0,VLOOKUP($A504,Economática!$A$3:$AI$823,13,FALSE)))","v":""},{"$f":"IF($A504=\"\",\"\",IF(OR(VLOOKUP($A504,Economática!$A$3:$AI$823,14,FALSE)=0,VLOOKUP($A504,Economática!$A$3:$AI$823,14,FALSE)=\"-\"),1/0,VLOOKUP($A504,Economática!$A$3:$AI$823,14,FALSE)))","v":""},{"$f":"IF($A504=\"\",\"\",IF(OR(VLOOKUP($A504,Economática!$A$3:$AI$823,15,FALSE)=0,VLOOKUP($A504,Economática!$A$3:$AI$823,15,FALSE)=\"-\"),1/0,VLOOKUP($A504,Economática!$A$3:$AI$823,15,FALSE)))","v":""},{"$f":"IF($A504=\"\",\"\",IF(OR(VLOOKUP($A504,Economática!$A$3:$AI$823,16,FALSE)=0,VLOOKUP($A504,Economática!$A$3:$AI$823,16,FALSE)=\"-\"),1/0,VLOOKUP($A504,Economática!$A$3:$AI$823,16,FALSE)))","v":""},{"$f":"IF($A504=\"\",\"\",IF(OR(VLOOKUP($A504,Economática!$A$3:$AI$823,17,FALSE)=0,VLOOKUP($A504,Economática!$A$3:$AI$823,17,FALSE)=\"-\"),1/0,VLOOKUP($A504,Economática!$A$3:$AI$823,17,FALSE)))","v":""},{"$f":"IF($A504=\"\",\"\",IF(OR(VLOOKUP($A504,Economática!$A$3:$AI$823,18,FALSE)=0,VLOOKUP($A504,Economática!$A$3:$AI$823,18,FALSE)=\"-\"),1/0,VLOOKUP($A504,Economática!$A$3:$AI$823,18,FALSE)))","v":""},{"$f":"IF($A504=\"\",\"\",IF(OR(VLOOKUP($A504,Economática!$A$3:$AI$823,19,FALSE)=0,VLOOKUP($A504,Economática!$A$3:$AI$823,19,FALSE)=\"-\"),1/0,VLOOKUP($A504,Economática!$A$3:$AI$823,19,FALSE)))","v":""},{"$f":"IF($A504=\"\",\"\",VLOOKUP($A504,Economática!$A$3:$AI$823,20,FALSE)/E504)","v":""},"","","",{"$f":"IF($A504=\"\",\"\",IF(OR(VLOOKUP($A504,Economática!$A$3:$AI$823,21,FALSE)/100=0,VLOOKUP($A504,Economática!$A$3:$AI$823,21,FALSE)/100=\"-\"),1/0,VLOOKUP($A504,Economática!$A$3:$AI$823,21,FALSE)/100))","v":""},{"$f":"IF($A504=\"\",\"\",IF(OR(VLOOKUP($A504,Economática!$A$3:$AI$823,22,FALSE)/100=0,VLOOKUP($A504,Economática!$A$3:$AI$823,22,FALSE)/100=\"-\"),1/0,VLOOKUP($A504,Economática!$A$3:$AI$823,22,FALSE)/100))","v":""},{"$f":"IF($A504=\"\",\"\",IF(OR(VLOOKUP($A504,Economática!$A$3:$AI$823,23,FALSE)=0,VLOOKUP($A504,Economática!$A$3:$AI$823,23,FALSE)=\"-\"),1/0,VLOOKUP($A504,Economática!$A$3:$AI$823,23,FALSE)))","v":""},{"$f":"IF($A504=\"\",\"\",IF(OR(VLOOKUP($A504,Economática!$A$3:$AI$823,24,FALSE)=0,VLOOKUP($A504,Economática!$A$3:$AI$823,24,FALSE)=\"-\"),1/0,VLOOKUP($A504,Economática!$A$3:$AI$823,24,FALSE)))","v":""},{"$f":"IF($A504=\"\",\"\",IF(OR(VLOOKUP($A504,Economática!$A$3:$AI$823,25,FALSE)=0,VLOOKUP($A504,Economática!$A$3:$AI$823,25,FALSE)=\"-\"),1/0,VLOOKUP($A504,Economática!$A$3:$AI$823,25,FALSE)))","v":""},{"$f":"IF($A504=\"\",\"\",IF(ISERROR((F504+VLOOKUP($A504,Economática!$A$3:$AI$823,26,FALSE))/Y504),(F504+VLOOKUP($A504,Economática!$A$3:$AI$823,26,FALSE))/Y504,(F504+VLOOKUP($A504,Economática!$A$3:$AI$823,26,FALSE))/Y504))","v":""},{"$f":"IF($A504=\"\",\"\",IF(OR(-VLOOKUP($A504,Economática!$A$3:$AI$823,27,FALSE)=0,-VLOOKUP($A504,Economática!$A$3:$AI$823,27,FALSE)=\"-\"),1/0,-VLOOKUP($A504,Economática!$A$3:$AI$823,27,FALSE)))","v":""},"",{"$f":"IF($A504=\"\",\"\",IF(OR(VLOOKUP($A504,Economática!$A$3:$AI$823,28,FALSE)=0,VLOOKUP($A504,Economática!$A$3:$AI$823,28,FALSE)=\"-\"),1/0,VLOOKUP($A504,Economática!$A$3:$AI$823,28,FALSE)))","v":""},{"$f":"IF($A504=\"\",\"\",IF(OR(VLOOKUP($A504,Economática!$A$3:$AI$823,29,FALSE)=0,VLOOKUP($A504,Economática!$A$3:$AI$823,29,FALSE)=\"-\"),1/0,VLOOKUP($A504,Economática!$A$3:$AI$823,29,FALSE)))","v":""},{"$f":"IF($A504=\"\",\"\",IF(OR(VLOOKUP($A504,Economática!$A$3:$AI$823,30,FALSE)/E504=0,VLOOKUP($A504,Economática!$A$3:$AI$823,30,FALSE)/E504=\"-\",VLOOKUP($A504,Economática!$A$3:$AI$823,30,FALSE)/E504<33.33%,VLOOKUP($A504,Economática!$A$3:$AI$823,30,FALSE)/E504>100%),1/0,VLOOKUP($A504,Economática!$A$3:$AI$823,30,FALSE)/E504))","v":""},"",{"$f":"IF($A504=\"\",\"\",IF(OR(VLOOKUP($A504,Economática!$A$3:$AI$823,25,FALSE)=0,VLOOKUP($A504,Economática!$A$3:$AI$823,25,FALSE)=\"-\"),1/0,VLOOKUP($A504,Economática!$A$3:$AI$823,25,FALSE)))","v":""},{"$f":"CONCATENATE(Economática!B482,\" \",Economática!C482)","v":" "}]
[{"$f":"IF(Economática!AG483=\"\",\"\",Economática!AG483)","v":""},{"$f":"IF($A505=\"\",\"\",VLOOKUP(VLOOKUP($A505,Economática!$A$3:$AI$823,6,FALSE),Correção!$B$16:$C$36,2,FALSE))","v":""},{"$f":"IF(Economática!B483=\"\",\"\",Economática!B483)","v":""},{"$f":"IF($A505=\"\",\"\",IF(OR(VLOOKUP($A505,Economática!$A$3:$AI$823,8,FALSE)=0,VLOOKUP($A505,Economática!$A$3:$AI$823,8,FALSE)=\"-\"),1/0,VLOOKUP($A505,Economática!$A$3:$AI$823,8,FALSE)))","v":""},{"$f":"IF(A505=\"\",\"\",IF(ISERROR(VLOOKUP(A505,Correção!$B$2:$G$13,9,FALSE)),VLOOKUP($A505,Economática!$A$3:$AI$823,9,FALSE),VLOOKUP(A505,Correção!$B$2:$G$13,9,FALSE)))","v":""},{"$f":"IF($A505=\"\",\"\",Economática!G483)","v":""},{"$f":"IF($A505=\"\",\"\",IF(OR(VLOOKUP($A505,Economática!$A$3:$AI$823,10,FALSE)=0,VLOOKUP($A505,Economática!$A$3:$AI$823,10,FALSE)=\"-\"),1/0,VLOOKUP($A505,Economática!$A$3:$AI$823,10,FALSE)))","v":""},{"$f":"IF($A505=\"\",\"\",IF(OR(VLOOKUP($A505,Economática!$A$3:$AI$823,11,FALSE)=0,VLOOKUP($A505,Economática!$A$3:$AI$823,11,FALSE)=\"-\"),1/0,VLOOKUP($A505,Economática!$A$3:$AI$823,11,FALSE)))","v":""},{"$f":"IF($A505=\"\",\"\",IF(OR(VLOOKUP($A505,Economática!$A$3:$AI$823,12,FALSE)=0,VLOOKUP($A505,Economática!$A$3:$AI$823,12,FALSE)=\"-\"),1/0,VLOOKUP($A505,Economática!$A$3:$AI$823,12,FALSE)))","v":""},{"$f":"IF($A505=\"\",\"\",IF(OR(VLOOKUP($A505,Economática!$A$3:$AI$823,13,FALSE)=0,VLOOKUP($A505,Economática!$A$3:$AI$823,13,FALSE)=\"-\"),1/0,VLOOKUP($A505,Economática!$A$3:$AI$823,13,FALSE)))","v":""},{"$f":"IF($A505=\"\",\"\",IF(OR(VLOOKUP($A505,Economática!$A$3:$AI$823,14,FALSE)=0,VLOOKUP($A505,Economática!$A$3:$AI$823,14,FALSE)=\"-\"),1/0,VLOOKUP($A505,Economática!$A$3:$AI$823,14,FALSE)))","v":""},{"$f":"IF($A505=\"\",\"\",IF(OR(VLOOKUP($A505,Economática!$A$3:$AI$823,15,FALSE)=0,VLOOKUP($A505,Economática!$A$3:$AI$823,15,FALSE)=\"-\"),1/0,VLOOKUP($A505,Economática!$A$3:$AI$823,15,FALSE)))","v":""},{"$f":"IF($A505=\"\",\"\",IF(OR(VLOOKUP($A505,Economática!$A$3:$AI$823,16,FALSE)=0,VLOOKUP($A505,Economática!$A$3:$AI$823,16,FALSE)=\"-\"),1/0,VLOOKUP($A505,Economática!$A$3:$AI$823,16,FALSE)))","v":""},{"$f":"IF($A505=\"\",\"\",IF(OR(VLOOKUP($A505,Economática!$A$3:$AI$823,17,FALSE)=0,VLOOKUP($A505,Economática!$A$3:$AI$823,17,FALSE)=\"-\"),1/0,VLOOKUP($A505,Economática!$A$3:$AI$823,17,FALSE)))","v":""},{"$f":"IF($A505=\"\",\"\",IF(OR(VLOOKUP($A505,Economática!$A$3:$AI$823,18,FALSE)=0,VLOOKUP($A505,Economática!$A$3:$AI$823,18,FALSE)=\"-\"),1/0,VLOOKUP($A505,Economática!$A$3:$AI$823,18,FALSE)))","v":""},{"$f":"IF($A505=\"\",\"\",IF(OR(VLOOKUP($A505,Economática!$A$3:$AI$823,19,FALSE)=0,VLOOKUP($A505,Economática!$A$3:$AI$823,19,FALSE)=\"-\"),1/0,VLOOKUP($A505,Economática!$A$3:$AI$823,19,FALSE)))","v":""},{"$f":"IF($A505=\"\",\"\",VLOOKUP($A505,Economática!$A$3:$AI$823,20,FALSE)/E505)","v":""},"","","",{"$f":"IF($A505=\"\",\"\",IF(OR(VLOOKUP($A505,Economática!$A$3:$AI$823,21,FALSE)/100=0,VLOOKUP($A505,Economática!$A$3:$AI$823,21,FALSE)/100=\"-\"),1/0,VLOOKUP($A505,Economática!$A$3:$AI$823,21,FALSE)/100))","v":""},{"$f":"IF($A505=\"\",\"\",IF(OR(VLOOKUP($A505,Economática!$A$3:$AI$823,22,FALSE)/100=0,VLOOKUP($A505,Economática!$A$3:$AI$823,22,FALSE)/100=\"-\"),1/0,VLOOKUP($A505,Economática!$A$3:$AI$823,22,FALSE)/100))","v":""},{"$f":"IF($A505=\"\",\"\",IF(OR(VLOOKUP($A505,Economática!$A$3:$AI$823,23,FALSE)=0,VLOOKUP($A505,Economática!$A$3:$AI$823,23,FALSE)=\"-\"),1/0,VLOOKUP($A505,Economática!$A$3:$AI$823,23,FALSE)))","v":""},{"$f":"IF($A505=\"\",\"\",IF(OR(VLOOKUP($A505,Economática!$A$3:$AI$823,24,FALSE)=0,VLOOKUP($A505,Economática!$A$3:$AI$823,24,FALSE)=\"-\"),1/0,VLOOKUP($A505,Economática!$A$3:$AI$823,24,FALSE)))","v":""},{"$f":"IF($A505=\"\",\"\",IF(OR(VLOOKUP($A505,Economática!$A$3:$AI$823,25,FALSE)=0,VLOOKUP($A505,Economática!$A$3:$AI$823,25,FALSE)=\"-\"),1/0,VLOOKUP($A505,Economática!$A$3:$AI$823,25,FALSE)))","v":""},{"$f":"IF($A505=\"\",\"\",IF(ISERROR((F505+VLOOKUP($A505,Economática!$A$3:$AI$823,26,FALSE))/Y505),(F505+VLOOKUP($A505,Economática!$A$3:$AI$823,26,FALSE))/Y505,(F505+VLOOKUP($A505,Economática!$A$3:$AI$823,26,FALSE))/Y505))","v":""},{"$f":"IF($A505=\"\",\"\",IF(OR(-VLOOKUP($A505,Economática!$A$3:$AI$823,27,FALSE)=0,-VLOOKUP($A505,Economática!$A$3:$AI$823,27,FALSE)=\"-\"),1/0,-VLOOKUP($A505,Economática!$A$3:$AI$823,27,FALSE)))","v":""},"",{"$f":"IF($A505=\"\",\"\",IF(OR(VLOOKUP($A505,Economática!$A$3:$AI$823,28,FALSE)=0,VLOOKUP($A505,Economática!$A$3:$AI$823,28,FALSE)=\"-\"),1/0,VLOOKUP($A505,Economática!$A$3:$AI$823,28,FALSE)))","v":""},{"$f":"IF($A505=\"\",\"\",IF(OR(VLOOKUP($A505,Economática!$A$3:$AI$823,29,FALSE)=0,VLOOKUP($A505,Economática!$A$3:$AI$823,29,FALSE)=\"-\"),1/0,VLOOKUP($A505,Economática!$A$3:$AI$823,29,FALSE)))","v":""},{"$f":"IF($A505=\"\",\"\",IF(OR(VLOOKUP($A505,Economática!$A$3:$AI$823,30,FALSE)/E505=0,VLOOKUP($A505,Economática!$A$3:$AI$823,30,FALSE)/E505=\"-\",VLOOKUP($A505,Economática!$A$3:$AI$823,30,FALSE)/E505<33.33%,VLOOKUP($A505,Economática!$A$3:$AI$823,30,FALSE)/E505>100%),1/0,VLOOKUP($A505,Economática!$A$3:$AI$823,30,FALSE)/E505))","v":""},"",{"$f":"IF($A505=\"\",\"\",IF(OR(VLOOKUP($A505,Economática!$A$3:$AI$823,25,FALSE)=0,VLOOKUP($A505,Economática!$A$3:$AI$823,25,FALSE)=\"-\"),1/0,VLOOKUP($A505,Economática!$A$3:$AI$823,25,FALSE)))","v":""},{"$f":"CONCATENATE(Economática!B483,\" \",Economática!C483)","v":" "}]
[{"$f":"IF(Economática!AG484=\"\",\"\",Economática!AG484)","v":""},{"$f":"IF($A506=\"\",\"\",VLOOKUP(VLOOKUP($A506,Economática!$A$3:$AI$823,6,FALSE),Correção!$B$16:$C$36,2,FALSE))","v":""},{"$f":"IF(Economática!B484=\"\",\"\",Economática!B484)","v":""},{"$f":"IF($A506=\"\",\"\",IF(OR(VLOOKUP($A506,Economática!$A$3:$AI$823,8,FALSE)=0,VLOOKUP($A506,Economática!$A$3:$AI$823,8,FALSE)=\"-\"),1/0,VLOOKUP($A506,Economática!$A$3:$AI$823,8,FALSE)))","v":""},{"$f":"IF(A506=\"\",\"\",IF(ISERROR(VLOOKUP(A506,Correção!$B$2:$G$13,9,FALSE)),VLOOKUP($A506,Economática!$A$3:$AI$823,9,FALSE),VLOOKUP(A506,Correção!$B$2:$G$13,9,FALSE)))","v":""},{"$f":"IF($A506=\"\",\"\",Economática!G484)","v":""},{"$f":"IF($A506=\"\",\"\",IF(OR(VLOOKUP($A506,Economática!$A$3:$AI$823,10,FALSE)=0,VLOOKUP($A506,Economática!$A$3:$AI$823,10,FALSE)=\"-\"),1/0,VLOOKUP($A506,Economática!$A$3:$AI$823,10,FALSE)))","v":""},{"$f":"IF($A506=\"\",\"\",IF(OR(VLOOKUP($A506,Economática!$A$3:$AI$823,11,FALSE)=0,VLOOKUP($A506,Economática!$A$3:$AI$823,11,FALSE)=\"-\"),1/0,VLOOKUP($A506,Economática!$A$3:$AI$823,11,FALSE)))","v":""},{"$f":"IF($A506=\"\",\"\",IF(OR(VLOOKUP($A506,Economática!$A$3:$AI$823,12,FALSE)=0,VLOOKUP($A506,Economática!$A$3:$AI$823,12,FALSE)=\"-\"),1/0,VLOOKUP($A506,Economática!$A$3:$AI$823,12,FALSE)))","v":""},{"$f":"IF($A506=\"\",\"\",IF(OR(VLOOKUP($A506,Economática!$A$3:$AI$823,13,FALSE)=0,VLOOKUP($A506,Economática!$A$3:$AI$823,13,FALSE)=\"-\"),1/0,VLOOKUP($A506,Economática!$A$3:$AI$823,13,FALSE)))","v":""},{"$f":"IF($A506=\"\",\"\",IF(OR(VLOOKUP($A506,Economática!$A$3:$AI$823,14,FALSE)=0,VLOOKUP($A506,Economática!$A$3:$AI$823,14,FALSE)=\"-\"),1/0,VLOOKUP($A506,Economática!$A$3:$AI$823,14,FALSE)))","v":""},{"$f":"IF($A506=\"\",\"\",IF(OR(VLOOKUP($A506,Economática!$A$3:$AI$823,15,FALSE)=0,VLOOKUP($A506,Economática!$A$3:$AI$823,15,FALSE)=\"-\"),1/0,VLOOKUP($A506,Economática!$A$3:$AI$823,15,FALSE)))","v":""},{"$f":"IF($A506=\"\",\"\",IF(OR(VLOOKUP($A506,Economática!$A$3:$AI$823,16,FALSE)=0,VLOOKUP($A506,Economática!$A$3:$AI$823,16,FALSE)=\"-\"),1/0,VLOOKUP($A506,Economática!$A$3:$AI$823,16,FALSE)))","v":""},{"$f":"IF($A506=\"\",\"\",IF(OR(VLOOKUP($A506,Economática!$A$3:$AI$823,17,FALSE)=0,VLOOKUP($A506,Economática!$A$3:$AI$823,17,FALSE)=\"-\"),1/0,VLOOKUP($A506,Economática!$A$3:$AI$823,17,FALSE)))","v":""},{"$f":"IF($A506=\"\",\"\",IF(OR(VLOOKUP($A506,Economática!$A$3:$AI$823,18,FALSE)=0,VLOOKUP($A506,Economática!$A$3:$AI$823,18,FALSE)=\"-\"),1/0,VLOOKUP($A506,Economática!$A$3:$AI$823,18,FALSE)))","v":""},{"$f":"IF($A506=\"\",\"\",IF(OR(VLOOKUP($A506,Economática!$A$3:$AI$823,19,FALSE)=0,VLOOKUP($A506,Economática!$A$3:$AI$823,19,FALSE)=\"-\"),1/0,VLOOKUP($A506,Economática!$A$3:$AI$823,19,FALSE)))","v":""},{"$f":"IF($A506=\"\",\"\",VLOOKUP($A506,Economática!$A$3:$AI$823,20,FALSE)/E506)","v":""},"","","",{"$f":"IF($A506=\"\",\"\",IF(OR(VLOOKUP($A506,Economática!$A$3:$AI$823,21,FALSE)/100=0,VLOOKUP($A506,Economática!$A$3:$AI$823,21,FALSE)/100=\"-\"),1/0,VLOOKUP($A506,Economática!$A$3:$AI$823,21,FALSE)/100))","v":""},{"$f":"IF($A506=\"\",\"\",IF(OR(VLOOKUP($A506,Economática!$A$3:$AI$823,22,FALSE)/100=0,VLOOKUP($A506,Economática!$A$3:$AI$823,22,FALSE)/100=\"-\"),1/0,VLOOKUP($A506,Economática!$A$3:$AI$823,22,FALSE)/100))","v":""},{"$f":"IF($A506=\"\",\"\",IF(OR(VLOOKUP($A506,Economática!$A$3:$AI$823,23,FALSE)=0,VLOOKUP($A506,Economática!$A$3:$AI$823,23,FALSE)=\"-\"),1/0,VLOOKUP($A506,Economática!$A$3:$AI$823,23,FALSE)))","v":""},{"$f":"IF($A506=\"\",\"\",IF(OR(VLOOKUP($A506,Economática!$A$3:$AI$823,24,FALSE)=0,VLOOKUP($A506,Economática!$A$3:$AI$823,24,FALSE)=\"-\"),1/0,VLOOKUP($A506,Economática!$A$3:$AI$823,24,FALSE)))","v":""},{"$f":"IF($A506=\"\",\"\",IF(OR(VLOOKUP($A506,Economática!$A$3:$AI$823,25,FALSE)=0,VLOOKUP($A506,Economática!$A$3:$AI$823,25,FALSE)=\"-\"),1/0,VLOOKUP($A506,Economática!$A$3:$AI$823,25,FALSE)))","v":""},{"$f":"IF($A506=\"\",\"\",IF(ISERROR((F506+VLOOKUP($A506,Economática!$A$3:$AI$823,26,FALSE))/Y506),(F506+VLOOKUP($A506,Economática!$A$3:$AI$823,26,FALSE))/Y506,(F506+VLOOKUP($A506,Economática!$A$3:$AI$823,26,FALSE))/Y506))","v":""},{"$f":"IF($A506=\"\",\"\",IF(OR(-VLOOKUP($A506,Economática!$A$3:$AI$823,27,FALSE)=0,-VLOOKUP($A506,Economática!$A$3:$AI$823,27,FALSE)=\"-\"),1/0,-VLOOKUP($A506,Economática!$A$3:$AI$823,27,FALSE)))","v":""},"",{"$f":"IF($A506=\"\",\"\",IF(OR(VLOOKUP($A506,Economática!$A$3:$AI$823,28,FALSE)=0,VLOOKUP($A506,Economática!$A$3:$AI$823,28,FALSE)=\"-\"),1/0,VLOOKUP($A506,Economática!$A$3:$AI$823,28,FALSE)))","v":""},{"$f":"IF($A506=\"\",\"\",IF(OR(VLOOKUP($A506,Economática!$A$3:$AI$823,29,FALSE)=0,VLOOKUP($A506,Economática!$A$3:$AI$823,29,FALSE)=\"-\"),1/0,VLOOKUP($A506,Economática!$A$3:$AI$823,29,FALSE)))","v":""},{"$f":"IF($A506=\"\",\"\",IF(OR(VLOOKUP($A506,Economática!$A$3:$AI$823,30,FALSE)/E506=0,VLOOKUP($A506,Economática!$A$3:$AI$823,30,FALSE)/E506=\"-\",VLOOKUP($A506,Economática!$A$3:$AI$823,30,FALSE)/E506<33.33%,VLOOKUP($A506,Economática!$A$3:$AI$823,30,FALSE)/E506>100%),1/0,VLOOKUP($A506,Economática!$A$3:$AI$823,30,FALSE)/E506))","v":""},"",{"$f":"IF($A506=\"\",\"\",IF(OR(VLOOKUP($A506,Economática!$A$3:$AI$823,25,FALSE)=0,VLOOKUP($A506,Economática!$A$3:$AI$823,25,FALSE)=\"-\"),1/0,VLOOKUP($A506,Economática!$A$3:$AI$823,25,FALSE)))","v":""},{"$f":"CONCATENATE(Economática!B484,\" \",Economática!C484)","v":" "}]
[{"$f":"IF(Economática!AG485=\"\",\"\",Economática!AG485)","v":""},{"$f":"IF($A507=\"\",\"\",VLOOKUP(VLOOKUP($A507,Economática!$A$3:$AI$823,6,FALSE),Correção!$B$16:$C$36,2,FALSE))","v":""},{"$f":"IF(Economática!B485=\"\",\"\",Economática!B485)","v":""},{"$f":"IF($A507=\"\",\"\",IF(OR(VLOOKUP($A507,Economática!$A$3:$AI$823,8,FALSE)=0,VLOOKUP($A507,Economática!$A$3:$AI$823,8,FALSE)=\"-\"),1/0,VLOOKUP($A507,Economática!$A$3:$AI$823,8,FALSE)))","v":""},{"$f":"IF(A507=\"\",\"\",IF(ISERROR(VLOOKUP(A507,Correção!$B$2:$G$13,9,FALSE)),VLOOKUP($A507,Economática!$A$3:$AI$823,9,FALSE),VLOOKUP(A507,Correção!$B$2:$G$13,9,FALSE)))","v":""},{"$f":"IF($A507=\"\",\"\",Economática!G485)","v":""},{"$f":"IF($A507=\"\",\"\",IF(OR(VLOOKUP($A507,Economática!$A$3:$AI$823,10,FALSE)=0,VLOOKUP($A507,Economática!$A$3:$AI$823,10,FALSE)=\"-\"),1/0,VLOOKUP($A507,Economática!$A$3:$AI$823,10,FALSE)))","v":""},{"$f":"IF($A507=\"\",\"\",IF(OR(VLOOKUP($A507,Economática!$A$3:$AI$823,11,FALSE)=0,VLOOKUP($A507,Economática!$A$3:$AI$823,11,FALSE)=\"-\"),1/0,VLOOKUP($A507,Economática!$A$3:$AI$823,11,FALSE)))","v":""},{"$f":"IF($A507=\"\",\"\",IF(OR(VLOOKUP($A507,Economática!$A$3:$AI$823,12,FALSE)=0,VLOOKUP($A507,Economática!$A$3:$AI$823,12,FALSE)=\"-\"),1/0,VLOOKUP($A507,Economática!$A$3:$AI$823,12,FALSE)))","v":""},{"$f":"IF($A507=\"\",\"\",IF(OR(VLOOKUP($A507,Economática!$A$3:$AI$823,13,FALSE)=0,VLOOKUP($A507,Economática!$A$3:$AI$823,13,FALSE)=\"-\"),1/0,VLOOKUP($A507,Economática!$A$3:$AI$823,13,FALSE)))","v":""},{"$f":"IF($A507=\"\",\"\",IF(OR(VLOOKUP($A507,Economática!$A$3:$AI$823,14,FALSE)=0,VLOOKUP($A507,Economática!$A$3:$AI$823,14,FALSE)=\"-\"),1/0,VLOOKUP($A507,Economática!$A$3:$AI$823,14,FALSE)))","v":""},{"$f":"IF($A507=\"\",\"\",IF(OR(VLOOKUP($A507,Economática!$A$3:$AI$823,15,FALSE)=0,VLOOKUP($A507,Economática!$A$3:$AI$823,15,FALSE)=\"-\"),1/0,VLOOKUP($A507,Economática!$A$3:$AI$823,15,FALSE)))","v":""},{"$f":"IF($A507=\"\",\"\",IF(OR(VLOOKUP($A507,Economática!$A$3:$AI$823,16,FALSE)=0,VLOOKUP($A507,Economática!$A$3:$AI$823,16,FALSE)=\"-\"),1/0,VLOOKUP($A507,Economática!$A$3:$AI$823,16,FALSE)))","v":""},{"$f":"IF($A507=\"\",\"\",IF(OR(VLOOKUP($A507,Economática!$A$3:$AI$823,17,FALSE)=0,VLOOKUP($A507,Economática!$A$3:$AI$823,17,FALSE)=\"-\"),1/0,VLOOKUP($A507,Economática!$A$3:$AI$823,17,FALSE)))","v":""},{"$f":"IF($A507=\"\",\"\",IF(OR(VLOOKUP($A507,Economática!$A$3:$AI$823,18,FALSE)=0,VLOOKUP($A507,Economática!$A$3:$AI$823,18,FALSE)=\"-\"),1/0,VLOOKUP($A507,Economática!$A$3:$AI$823,18,FALSE)))","v":""},{"$f":"IF($A507=\"\",\"\",IF(OR(VLOOKUP($A507,Economática!$A$3:$AI$823,19,FALSE)=0,VLOOKUP($A507,Economática!$A$3:$AI$823,19,FALSE)=\"-\"),1/0,VLOOKUP($A507,Economática!$A$3:$AI$823,19,FALSE)))","v":""},{"$f":"IF($A507=\"\",\"\",VLOOKUP($A507,Economática!$A$3:$AI$823,20,FALSE)/E507)","v":""},"","","",{"$f":"IF($A507=\"\",\"\",IF(OR(VLOOKUP($A507,Economática!$A$3:$AI$823,21,FALSE)/100=0,VLOOKUP($A507,Economática!$A$3:$AI$823,21,FALSE)/100=\"-\"),1/0,VLOOKUP($A507,Economática!$A$3:$AI$823,21,FALSE)/100))","v":""},{"$f":"IF($A507=\"\",\"\",IF(OR(VLOOKUP($A507,Economática!$A$3:$AI$823,22,FALSE)/100=0,VLOOKUP($A507,Economática!$A$3:$AI$823,22,FALSE)/100=\"-\"),1/0,VLOOKUP($A507,Economática!$A$3:$AI$823,22,FALSE)/100))","v":""},{"$f":"IF($A507=\"\",\"\",IF(OR(VLOOKUP($A507,Economática!$A$3:$AI$823,23,FALSE)=0,VLOOKUP($A507,Economática!$A$3:$AI$823,23,FALSE)=\"-\"),1/0,VLOOKUP($A507,Economática!$A$3:$AI$823,23,FALSE)))","v":""},{"$f":"IF($A507=\"\",\"\",IF(OR(VLOOKUP($A507,Economática!$A$3:$AI$823,24,FALSE)=0,VLOOKUP($A507,Economática!$A$3:$AI$823,24,FALSE)=\"-\"),1/0,VLOOKUP($A507,Economática!$A$3:$AI$823,24,FALSE)))","v":""},{"$f":"IF($A507=\"\",\"\",IF(OR(VLOOKUP($A507,Economática!$A$3:$AI$823,25,FALSE)=0,VLOOKUP($A507,Economática!$A$3:$AI$823,25,FALSE)=\"-\"),1/0,VLOOKUP($A507,Economática!$A$3:$AI$823,25,FALSE)))","v":""},{"$f":"IF($A507=\"\",\"\",IF(ISERROR((F507+VLOOKUP($A507,Economática!$A$3:$AI$823,26,FALSE))/Y507),(F507+VLOOKUP($A507,Economática!$A$3:$AI$823,26,FALSE))/Y507,(F507+VLOOKUP($A507,Economática!$A$3:$AI$823,26,FALSE))/Y507))","v":""},{"$f":"IF($A507=\"\",\"\",IF(OR(-VLOOKUP($A507,Economática!$A$3:$AI$823,27,FALSE)=0,-VLOOKUP($A507,Economática!$A$3:$AI$823,27,FALSE)=\"-\"),1/0,-VLOOKUP($A507,Economática!$A$3:$AI$823,27,FALSE)))","v":""},"",{"$f":"IF($A507=\"\",\"\",IF(OR(VLOOKUP($A507,Economática!$A$3:$AI$823,28,FALSE)=0,VLOOKUP($A507,Economática!$A$3:$AI$823,28,FALSE)=\"-\"),1/0,VLOOKUP($A507,Economática!$A$3:$AI$823,28,FALSE)))","v":""},{"$f":"IF($A507=\"\",\"\",IF(OR(VLOOKUP($A507,Economática!$A$3:$AI$823,29,FALSE)=0,VLOOKUP($A507,Economática!$A$3:$AI$823,29,FALSE)=\"-\"),1/0,VLOOKUP($A507,Economática!$A$3:$AI$823,29,FALSE)))","v":""},{"$f":"IF($A507=\"\",\"\",IF(OR(VLOOKUP($A507,Economática!$A$3:$AI$823,30,FALSE)/E507=0,VLOOKUP($A507,Economática!$A$3:$AI$823,30,FALSE)/E507=\"-\",VLOOKUP($A507,Economática!$A$3:$AI$823,30,FALSE)/E507<33.33%,VLOOKUP($A507,Economática!$A$3:$AI$823,30,FALSE)/E507>100%),1/0,VLOOKUP($A507,Economática!$A$3:$AI$823,30,FALSE)/E507))","v":""},"",{"$f":"IF($A507=\"\",\"\",IF(OR(VLOOKUP($A507,Economática!$A$3:$AI$823,25,FALSE)=0,VLOOKUP($A507,Economática!$A$3:$AI$823,25,FALSE)=\"-\"),1/0,VLOOKUP($A507,Economática!$A$3:$AI$823,25,FALSE)))","v":""},{"$f":"CONCATENATE(Economática!B485,\" \",Economática!C485)","v":" "}]
[{"$f":"IF(Economática!AG486=\"\",\"\",Economática!AG486)","v":""},{"$f":"IF($A508=\"\",\"\",VLOOKUP(VLOOKUP($A508,Economática!$A$3:$AI$823,6,FALSE),Correção!$B$16:$C$36,2,FALSE))","v":""},{"$f":"IF(Economática!B486=\"\",\"\",Economática!B486)","v":""},{"$f":"IF($A508=\"\",\"\",IF(OR(VLOOKUP($A508,Economática!$A$3:$AI$823,8,FALSE)=0,VLOOKUP($A508,Economática!$A$3:$AI$823,8,FALSE)=\"-\"),1/0,VLOOKUP($A508,Economática!$A$3:$AI$823,8,FALSE)))","v":""},{"$f":"IF(A508=\"\",\"\",IF(ISERROR(VLOOKUP(A508,Correção!$B$2:$G$13,9,FALSE)),VLOOKUP($A508,Economática!$A$3:$AI$823,9,FALSE),VLOOKUP(A508,Correção!$B$2:$G$13,9,FALSE)))","v":""},{"$f":"IF($A508=\"\",\"\",Economática!G486)","v":""},{"$f":"IF($A508=\"\",\"\",IF(OR(VLOOKUP($A508,Economática!$A$3:$AI$823,10,FALSE)=0,VLOOKUP($A508,Economática!$A$3:$AI$823,10,FALSE)=\"-\"),1/0,VLOOKUP($A508,Economática!$A$3:$AI$823,10,FALSE)))","v":""},{"$f":"IF($A508=\"\",\"\",IF(OR(VLOOKUP($A508,Economática!$A$3:$AI$823,11,FALSE)=0,VLOOKUP($A508,Economática!$A$3:$AI$823,11,FALSE)=\"-\"),1/0,VLOOKUP($A508,Economática!$A$3:$AI$823,11,FALSE)))","v":""},{"$f":"IF($A508=\"\",\"\",IF(OR(VLOOKUP($A508,Economática!$A$3:$AI$823,12,FALSE)=0,VLOOKUP($A508,Economática!$A$3:$AI$823,12,FALSE)=\"-\"),1/0,VLOOKUP($A508,Economática!$A$3:$AI$823,12,FALSE)))","v":""},{"$f":"IF($A508=\"\",\"\",IF(OR(VLOOKUP($A508,Economática!$A$3:$AI$823,13,FALSE)=0,VLOOKUP($A508,Economática!$A$3:$AI$823,13,FALSE)=\"-\"),1/0,VLOOKUP($A508,Economática!$A$3:$AI$823,13,FALSE)))","v":""},{"$f":"IF($A508=\"\",\"\",IF(OR(VLOOKUP($A508,Economática!$A$3:$AI$823,14,FALSE)=0,VLOOKUP($A508,Economática!$A$3:$AI$823,14,FALSE)=\"-\"),1/0,VLOOKUP($A508,Economática!$A$3:$AI$823,14,FALSE)))","v":""},{"$f":"IF($A508=\"\",\"\",IF(OR(VLOOKUP($A508,Economática!$A$3:$AI$823,15,FALSE)=0,VLOOKUP($A508,Economática!$A$3:$AI$823,15,FALSE)=\"-\"),1/0,VLOOKUP($A508,Economática!$A$3:$AI$823,15,FALSE)))","v":""},{"$f":"IF($A508=\"\",\"\",IF(OR(VLOOKUP($A508,Economática!$A$3:$AI$823,16,FALSE)=0,VLOOKUP($A508,Economática!$A$3:$AI$823,16,FALSE)=\"-\"),1/0,VLOOKUP($A508,Economática!$A$3:$AI$823,16,FALSE)))","v":""},{"$f":"IF($A508=\"\",\"\",IF(OR(VLOOKUP($A508,Economática!$A$3:$AI$823,17,FALSE)=0,VLOOKUP($A508,Economática!$A$3:$AI$823,17,FALSE)=\"-\"),1/0,VLOOKUP($A508,Economática!$A$3:$AI$823,17,FALSE)))","v":""},{"$f":"IF($A508=\"\",\"\",IF(OR(VLOOKUP($A508,Economática!$A$3:$AI$823,18,FALSE)=0,VLOOKUP($A508,Economática!$A$3:$AI$823,18,FALSE)=\"-\"),1/0,VLOOKUP($A508,Economática!$A$3:$AI$823,18,FALSE)))","v":""},{"$f":"IF($A508=\"\",\"\",IF(OR(VLOOKUP($A508,Economática!$A$3:$AI$823,19,FALSE)=0,VLOOKUP($A508,Economática!$A$3:$AI$823,19,FALSE)=\"-\"),1/0,VLOOKUP($A508,Economática!$A$3:$AI$823,19,FALSE)))","v":""},{"$f":"IF($A508=\"\",\"\",VLOOKUP($A508,Economática!$A$3:$AI$823,20,FALSE)/E508)","v":""},"","","",{"$f":"IF($A508=\"\",\"\",IF(OR(VLOOKUP($A508,Economática!$A$3:$AI$823,21,FALSE)/100=0,VLOOKUP($A508,Economática!$A$3:$AI$823,21,FALSE)/100=\"-\"),1/0,VLOOKUP($A508,Economática!$A$3:$AI$823,21,FALSE)/100))","v":""},{"$f":"IF($A508=\"\",\"\",IF(OR(VLOOKUP($A508,Economática!$A$3:$AI$823,22,FALSE)/100=0,VLOOKUP($A508,Economática!$A$3:$AI$823,22,FALSE)/100=\"-\"),1/0,VLOOKUP($A508,Economática!$A$3:$AI$823,22,FALSE)/100))","v":""},{"$f":"IF($A508=\"\",\"\",IF(OR(VLOOKUP($A508,Economática!$A$3:$AI$823,23,FALSE)=0,VLOOKUP($A508,Economática!$A$3:$AI$823,23,FALSE)=\"-\"),1/0,VLOOKUP($A508,Economática!$A$3:$AI$823,23,FALSE)))","v":""},{"$f":"IF($A508=\"\",\"\",IF(OR(VLOOKUP($A508,Economática!$A$3:$AI$823,24,FALSE)=0,VLOOKUP($A508,Economática!$A$3:$AI$823,24,FALSE)=\"-\"),1/0,VLOOKUP($A508,Economática!$A$3:$AI$823,24,FALSE)))","v":""},{"$f":"IF($A508=\"\",\"\",IF(OR(VLOOKUP($A508,Economática!$A$3:$AI$823,25,FALSE)=0,VLOOKUP($A508,Economática!$A$3:$AI$823,25,FALSE)=\"-\"),1/0,VLOOKUP($A508,Economática!$A$3:$AI$823,25,FALSE)))","v":""},{"$f":"IF($A508=\"\",\"\",IF(ISERROR((F508+VLOOKUP($A508,Economática!$A$3:$AI$823,26,FALSE))/Y508),(F508+VLOOKUP($A508,Economática!$A$3:$AI$823,26,FALSE))/Y508,(F508+VLOOKUP($A508,Economática!$A$3:$AI$823,26,FALSE))/Y508))","v":""},{"$f":"IF($A508=\"\",\"\",IF(OR(-VLOOKUP($A508,Economática!$A$3:$AI$823,27,FALSE)=0,-VLOOKUP($A508,Economática!$A$3:$AI$823,27,FALSE)=\"-\"),1/0,-VLOOKUP($A508,Economática!$A$3:$AI$823,27,FALSE)))","v":""},"",{"$f":"IF($A508=\"\",\"\",IF(OR(VLOOKUP($A508,Economática!$A$3:$AI$823,28,FALSE)=0,VLOOKUP($A508,Economática!$A$3:$AI$823,28,FALSE)=\"-\"),1/0,VLOOKUP($A508,Economática!$A$3:$AI$823,28,FALSE)))","v":""},{"$f":"IF($A508=\"\",\"\",IF(OR(VLOOKUP($A508,Economática!$A$3:$AI$823,29,FALSE)=0,VLOOKUP($A508,Economática!$A$3:$AI$823,29,FALSE)=\"-\"),1/0,VLOOKUP($A508,Economática!$A$3:$AI$823,29,FALSE)))","v":""},{"$f":"IF($A508=\"\",\"\",IF(OR(VLOOKUP($A508,Economática!$A$3:$AI$823,30,FALSE)/E508=0,VLOOKUP($A508,Economática!$A$3:$AI$823,30,FALSE)/E508=\"-\",VLOOKUP($A508,Economática!$A$3:$AI$823,30,FALSE)/E508<33.33%,VLOOKUP($A508,Economática!$A$3:$AI$823,30,FALSE)/E508>100%),1/0,VLOOKUP($A508,Economática!$A$3:$AI$823,30,FALSE)/E508))","v":""},"",{"$f":"IF($A508=\"\",\"\",IF(OR(VLOOKUP($A508,Economática!$A$3:$AI$823,25,FALSE)=0,VLOOKUP($A508,Economática!$A$3:$AI$823,25,FALSE)=\"-\"),1/0,VLOOKUP($A508,Economática!$A$3:$AI$823,25,FALSE)))","v":""},{"$f":"CONCATENATE(Economática!B486,\" \",Economática!C486)","v":" "}]
[{"$f":"IF(Economática!AG487=\"\",\"\",Economática!AG487)","v":""},{"$f":"IF($A509=\"\",\"\",VLOOKUP(VLOOKUP($A509,Economática!$A$3:$AI$823,6,FALSE),Correção!$B$16:$C$36,2,FALSE))","v":""},{"$f":"IF(Economática!B487=\"\",\"\",Economática!B487)","v":""},{"$f":"IF($A509=\"\",\"\",IF(OR(VLOOKUP($A509,Economática!$A$3:$AI$823,8,FALSE)=0,VLOOKUP($A509,Economática!$A$3:$AI$823,8,FALSE)=\"-\"),1/0,VLOOKUP($A509,Economática!$A$3:$AI$823,8,FALSE)))","v":""},{"$f":"IF(A509=\"\",\"\",IF(ISERROR(VLOOKUP(A509,Correção!$B$2:$G$13,9,FALSE)),VLOOKUP($A509,Economática!$A$3:$AI$823,9,FALSE),VLOOKUP(A509,Correção!$B$2:$G$13,9,FALSE)))","v":""},{"$f":"IF($A509=\"\",\"\",Economática!G487)","v":""},{"$f":"IF($A509=\"\",\"\",IF(OR(VLOOKUP($A509,Economática!$A$3:$AI$823,10,FALSE)=0,VLOOKUP($A509,Economática!$A$3:$AI$823,10,FALSE)=\"-\"),1/0,VLOOKUP($A509,Economática!$A$3:$AI$823,10,FALSE)))","v":""},{"$f":"IF($A509=\"\",\"\",IF(OR(VLOOKUP($A509,Economática!$A$3:$AI$823,11,FALSE)=0,VLOOKUP($A509,Economática!$A$3:$AI$823,11,FALSE)=\"-\"),1/0,VLOOKUP($A509,Economática!$A$3:$AI$823,11,FALSE)))","v":""},{"$f":"IF($A509=\"\",\"\",IF(OR(VLOOKUP($A509,Economática!$A$3:$AI$823,12,FALSE)=0,VLOOKUP($A509,Economática!$A$3:$AI$823,12,FALSE)=\"-\"),1/0,VLOOKUP($A509,Economática!$A$3:$AI$823,12,FALSE)))","v":""},{"$f":"IF($A509=\"\",\"\",IF(OR(VLOOKUP($A509,Economática!$A$3:$AI$823,13,FALSE)=0,VLOOKUP($A509,Economática!$A$3:$AI$823,13,FALSE)=\"-\"),1/0,VLOOKUP($A509,Economática!$A$3:$AI$823,13,FALSE)))","v":""},{"$f":"IF($A509=\"\",\"\",IF(OR(VLOOKUP($A509,Economática!$A$3:$AI$823,14,FALSE)=0,VLOOKUP($A509,Economática!$A$3:$AI$823,14,FALSE)=\"-\"),1/0,VLOOKUP($A509,Economática!$A$3:$AI$823,14,FALSE)))","v":""},{"$f":"IF($A509=\"\",\"\",IF(OR(VLOOKUP($A509,Economática!$A$3:$AI$823,15,FALSE)=0,VLOOKUP($A509,Economática!$A$3:$AI$823,15,FALSE)=\"-\"),1/0,VLOOKUP($A509,Economática!$A$3:$AI$823,15,FALSE)))","v":""},{"$f":"IF($A509=\"\",\"\",IF(OR(VLOOKUP($A509,Economática!$A$3:$AI$823,16,FALSE)=0,VLOOKUP($A509,Economática!$A$3:$AI$823,16,FALSE)=\"-\"),1/0,VLOOKUP($A509,Economática!$A$3:$AI$823,16,FALSE)))","v":""},{"$f":"IF($A509=\"\",\"\",IF(OR(VLOOKUP($A509,Economática!$A$3:$AI$823,17,FALSE)=0,VLOOKUP($A509,Economática!$A$3:$AI$823,17,FALSE)=\"-\"),1/0,VLOOKUP($A509,Economática!$A$3:$AI$823,17,FALSE)))","v":""},{"$f":"IF($A509=\"\",\"\",IF(OR(VLOOKUP($A509,Economática!$A$3:$AI$823,18,FALSE)=0,VLOOKUP($A509,Economática!$A$3:$AI$823,18,FALSE)=\"-\"),1/0,VLOOKUP($A509,Economática!$A$3:$AI$823,18,FALSE)))","v":""},{"$f":"IF($A509=\"\",\"\",IF(OR(VLOOKUP($A509,Economática!$A$3:$AI$823,19,FALSE)=0,VLOOKUP($A509,Economática!$A$3:$AI$823,19,FALSE)=\"-\"),1/0,VLOOKUP($A509,Economática!$A$3:$AI$823,19,FALSE)))","v":""},{"$f":"IF($A509=\"\",\"\",VLOOKUP($A509,Economática!$A$3:$AI$823,20,FALSE)/E509)","v":""},"","","",{"$f":"IF($A509=\"\",\"\",IF(OR(VLOOKUP($A509,Economática!$A$3:$AI$823,21,FALSE)/100=0,VLOOKUP($A509,Economática!$A$3:$AI$823,21,FALSE)/100=\"-\"),1/0,VLOOKUP($A509,Economática!$A$3:$AI$823,21,FALSE)/100))","v":""},{"$f":"IF($A509=\"\",\"\",IF(OR(VLOOKUP($A509,Economática!$A$3:$AI$823,22,FALSE)/100=0,VLOOKUP($A509,Economática!$A$3:$AI$823,22,FALSE)/100=\"-\"),1/0,VLOOKUP($A509,Economática!$A$3:$AI$823,22,FALSE)/100))","v":""},{"$f":"IF($A509=\"\",\"\",IF(OR(VLOOKUP($A509,Economática!$A$3:$AI$823,23,FALSE)=0,VLOOKUP($A509,Economática!$A$3:$AI$823,23,FALSE)=\"-\"),1/0,VLOOKUP($A509,Economática!$A$3:$AI$823,23,FALSE)))","v":""},{"$f":"IF($A509=\"\",\"\",IF(OR(VLOOKUP($A509,Economática!$A$3:$AI$823,24,FALSE)=0,VLOOKUP($A509,Economática!$A$3:$AI$823,24,FALSE)=\"-\"),1/0,VLOOKUP($A509,Economática!$A$3:$AI$823,24,FALSE)))","v":""},{"$f":"IF($A509=\"\",\"\",IF(OR(VLOOKUP($A509,Economática!$A$3:$AI$823,25,FALSE)=0,VLOOKUP($A509,Economática!$A$3:$AI$823,25,FALSE)=\"-\"),1/0,VLOOKUP($A509,Economática!$A$3:$AI$823,25,FALSE)))","v":""},{"$f":"IF($A509=\"\",\"\",IF(ISERROR((F509+VLOOKUP($A509,Economática!$A$3:$AI$823,26,FALSE))/Y509),(F509+VLOOKUP($A509,Economática!$A$3:$AI$823,26,FALSE))/Y509,(F509+VLOOKUP($A509,Economática!$A$3:$AI$823,26,FALSE))/Y509))","v":""},{"$f":"IF($A509=\"\",\"\",IF(OR(-VLOOKUP($A509,Economática!$A$3:$AI$823,27,FALSE)=0,-VLOOKUP($A509,Economática!$A$3:$AI$823,27,FALSE)=\"-\"),1/0,-VLOOKUP($A509,Economática!$A$3:$AI$823,27,FALSE)))","v":""},"",{"$f":"IF($A509=\"\",\"\",IF(OR(VLOOKUP($A509,Economática!$A$3:$AI$823,28,FALSE)=0,VLOOKUP($A509,Economática!$A$3:$AI$823,28,FALSE)=\"-\"),1/0,VLOOKUP($A509,Economática!$A$3:$AI$823,28,FALSE)))","v":""},{"$f":"IF($A509=\"\",\"\",IF(OR(VLOOKUP($A509,Economática!$A$3:$AI$823,29,FALSE)=0,VLOOKUP($A509,Economática!$A$3:$AI$823,29,FALSE)=\"-\"),1/0,VLOOKUP($A509,Economática!$A$3:$AI$823,29,FALSE)))","v":""},{"$f":"IF($A509=\"\",\"\",IF(OR(VLOOKUP($A509,Economática!$A$3:$AI$823,30,FALSE)/E509=0,VLOOKUP($A509,Economática!$A$3:$AI$823,30,FALSE)/E509=\"-\",VLOOKUP($A509,Economática!$A$3:$AI$823,30,FALSE)/E509<33.33%,VLOOKUP($A509,Economática!$A$3:$AI$823,30,FALSE)/E509>100%),1/0,VLOOKUP($A509,Economática!$A$3:$AI$823,30,FALSE)/E509))","v":""},"",{"$f":"IF($A509=\"\",\"\",IF(OR(VLOOKUP($A509,Economática!$A$3:$AI$823,25,FALSE)=0,VLOOKUP($A509,Economática!$A$3:$AI$823,25,FALSE)=\"-\"),1/0,VLOOKUP($A509,Economática!$A$3:$AI$823,25,FALSE)))","v":""},{"$f":"CONCATENATE(Economática!B487,\" \",Economática!C487)","v":" "}]
[{"$f":"IF(Economática!AG488=\"\",\"\",Economática!AG488)","v":""},{"$f":"IF($A510=\"\",\"\",VLOOKUP(VLOOKUP($A510,Economática!$A$3:$AI$823,6,FALSE),Correção!$B$16:$C$36,2,FALSE))","v":""},{"$f":"IF(Economática!B488=\"\",\"\",Economática!B488)","v":""},{"$f":"IF($A510=\"\",\"\",IF(OR(VLOOKUP($A510,Economática!$A$3:$AI$823,8,FALSE)=0,VLOOKUP($A510,Economática!$A$3:$AI$823,8,FALSE)=\"-\"),1/0,VLOOKUP($A510,Economática!$A$3:$AI$823,8,FALSE)))","v":""},{"$f":"IF(A510=\"\",\"\",IF(ISERROR(VLOOKUP(A510,Correção!$B$2:$G$13,9,FALSE)),VLOOKUP($A510,Economática!$A$3:$AI$823,9,FALSE),VLOOKUP(A510,Correção!$B$2:$G$13,9,FALSE)))","v":""},{"$f":"IF($A510=\"\",\"\",Economática!G488)","v":""},{"$f":"IF($A510=\"\",\"\",IF(OR(VLOOKUP($A510,Economática!$A$3:$AI$823,10,FALSE)=0,VLOOKUP($A510,Economática!$A$3:$AI$823,10,FALSE)=\"-\"),1/0,VLOOKUP($A510,Economática!$A$3:$AI$823,10,FALSE)))","v":""},{"$f":"IF($A510=\"\",\"\",IF(OR(VLOOKUP($A510,Economática!$A$3:$AI$823,11,FALSE)=0,VLOOKUP($A510,Economática!$A$3:$AI$823,11,FALSE)=\"-\"),1/0,VLOOKUP($A510,Economática!$A$3:$AI$823,11,FALSE)))","v":""},{"$f":"IF($A510=\"\",\"\",IF(OR(VLOOKUP($A510,Economática!$A$3:$AI$823,12,FALSE)=0,VLOOKUP($A510,Economática!$A$3:$AI$823,12,FALSE)=\"-\"),1/0,VLOOKUP($A510,Economática!$A$3:$AI$823,12,FALSE)))","v":""},{"$f":"IF($A510=\"\",\"\",IF(OR(VLOOKUP($A510,Economática!$A$3:$AI$823,13,FALSE)=0,VLOOKUP($A510,Economática!$A$3:$AI$823,13,FALSE)=\"-\"),1/0,VLOOKUP($A510,Economática!$A$3:$AI$823,13,FALSE)))","v":""},{"$f":"IF($A510=\"\",\"\",IF(OR(VLOOKUP($A510,Economática!$A$3:$AI$823,14,FALSE)=0,VLOOKUP($A510,Economática!$A$3:$AI$823,14,FALSE)=\"-\"),1/0,VLOOKUP($A510,Economática!$A$3:$AI$823,14,FALSE)))","v":""},{"$f":"IF($A510=\"\",\"\",IF(OR(VLOOKUP($A510,Economática!$A$3:$AI$823,15,FALSE)=0,VLOOKUP($A510,Economática!$A$3:$AI$823,15,FALSE)=\"-\"),1/0,VLOOKUP($A510,Economática!$A$3:$AI$823,15,FALSE)))","v":""},{"$f":"IF($A510=\"\",\"\",IF(OR(VLOOKUP($A510,Economática!$A$3:$AI$823,16,FALSE)=0,VLOOKUP($A510,Economática!$A$3:$AI$823,16,FALSE)=\"-\"),1/0,VLOOKUP($A510,Economática!$A$3:$AI$823,16,FALSE)))","v":""},{"$f":"IF($A510=\"\",\"\",IF(OR(VLOOKUP($A510,Economática!$A$3:$AI$823,17,FALSE)=0,VLOOKUP($A510,Economática!$A$3:$AI$823,17,FALSE)=\"-\"),1/0,VLOOKUP($A510,Economática!$A$3:$AI$823,17,FALSE)))","v":""},{"$f":"IF($A510=\"\",\"\",IF(OR(VLOOKUP($A510,Economática!$A$3:$AI$823,18,FALSE)=0,VLOOKUP($A510,Economática!$A$3:$AI$823,18,FALSE)=\"-\"),1/0,VLOOKUP($A510,Economática!$A$3:$AI$823,18,FALSE)))","v":""},{"$f":"IF($A510=\"\",\"\",IF(OR(VLOOKUP($A510,Economática!$A$3:$AI$823,19,FALSE)=0,VLOOKUP($A510,Economática!$A$3:$AI$823,19,FALSE)=\"-\"),1/0,VLOOKUP($A510,Economática!$A$3:$AI$823,19,FALSE)))","v":""},{"$f":"IF($A510=\"\",\"\",VLOOKUP($A510,Economática!$A$3:$AI$823,20,FALSE)/E510)","v":""},"","","",{"$f":"IF($A510=\"\",\"\",IF(OR(VLOOKUP($A510,Economática!$A$3:$AI$823,21,FALSE)/100=0,VLOOKUP($A510,Economática!$A$3:$AI$823,21,FALSE)/100=\"-\"),1/0,VLOOKUP($A510,Economática!$A$3:$AI$823,21,FALSE)/100))","v":""},{"$f":"IF($A510=\"\",\"\",IF(OR(VLOOKUP($A510,Economática!$A$3:$AI$823,22,FALSE)/100=0,VLOOKUP($A510,Economática!$A$3:$AI$823,22,FALSE)/100=\"-\"),1/0,VLOOKUP($A510,Economática!$A$3:$AI$823,22,FALSE)/100))","v":""},{"$f":"IF($A510=\"\",\"\",IF(OR(VLOOKUP($A510,Economática!$A$3:$AI$823,23,FALSE)=0,VLOOKUP($A510,Economática!$A$3:$AI$823,23,FALSE)=\"-\"),1/0,VLOOKUP($A510,Economática!$A$3:$AI$823,23,FALSE)))","v":""},{"$f":"IF($A510=\"\",\"\",IF(OR(VLOOKUP($A510,Economática!$A$3:$AI$823,24,FALSE)=0,VLOOKUP($A510,Economática!$A$3:$AI$823,24,FALSE)=\"-\"),1/0,VLOOKUP($A510,Economática!$A$3:$AI$823,24,FALSE)))","v":""},{"$f":"IF($A510=\"\",\"\",IF(OR(VLOOKUP($A510,Economática!$A$3:$AI$823,25,FALSE)=0,VLOOKUP($A510,Economática!$A$3:$AI$823,25,FALSE)=\"-\"),1/0,VLOOKUP($A510,Economática!$A$3:$AI$823,25,FALSE)))","v":""},{"$f":"IF($A510=\"\",\"\",IF(ISERROR((F510+VLOOKUP($A510,Economática!$A$3:$AI$823,26,FALSE))/Y510),(F510+VLOOKUP($A510,Economática!$A$3:$AI$823,26,FALSE))/Y510,(F510+VLOOKUP($A510,Economática!$A$3:$AI$823,26,FALSE))/Y510))","v":""},{"$f":"IF($A510=\"\",\"\",IF(OR(-VLOOKUP($A510,Economática!$A$3:$AI$823,27,FALSE)=0,-VLOOKUP($A510,Economática!$A$3:$AI$823,27,FALSE)=\"-\"),1/0,-VLOOKUP($A510,Economática!$A$3:$AI$823,27,FALSE)))","v":""},"",{"$f":"IF($A510=\"\",\"\",IF(OR(VLOOKUP($A510,Economática!$A$3:$AI$823,28,FALSE)=0,VLOOKUP($A510,Economática!$A$3:$AI$823,28,FALSE)=\"-\"),1/0,VLOOKUP($A510,Economática!$A$3:$AI$823,28,FALSE)))","v":""},{"$f":"IF($A510=\"\",\"\",IF(OR(VLOOKUP($A510,Economática!$A$3:$AI$823,29,FALSE)=0,VLOOKUP($A510,Economática!$A$3:$AI$823,29,FALSE)=\"-\"),1/0,VLOOKUP($A510,Economática!$A$3:$AI$823,29,FALSE)))","v":""},{"$f":"IF($A510=\"\",\"\",IF(OR(VLOOKUP($A510,Economática!$A$3:$AI$823,30,FALSE)/E510=0,VLOOKUP($A510,Economática!$A$3:$AI$823,30,FALSE)/E510=\"-\",VLOOKUP($A510,Economática!$A$3:$AI$823,30,FALSE)/E510<33.33%,VLOOKUP($A510,Economática!$A$3:$AI$823,30,FALSE)/E510>100%),1/0,VLOOKUP($A510,Economática!$A$3:$AI$823,30,FALSE)/E510))","v":""},"",{"$f":"IF($A510=\"\",\"\",IF(OR(VLOOKUP($A510,Economática!$A$3:$AI$823,25,FALSE)=0,VLOOKUP($A510,Economática!$A$3:$AI$823,25,FALSE)=\"-\"),1/0,VLOOKUP($A510,Economática!$A$3:$AI$823,25,FALSE)))","v":""},{"$f":"CONCATENATE(Economática!B488,\" \",Economática!C488)","v":" "}]
[{"$f":"IF(Economática!AG489=\"\",\"\",Economática!AG489)","v":""},{"$f":"IF($A511=\"\",\"\",VLOOKUP(VLOOKUP($A511,Economática!$A$3:$AI$823,6,FALSE),Correção!$B$16:$C$36,2,FALSE))","v":""},{"$f":"IF(Economática!B489=\"\",\"\",Economática!B489)","v":""},{"$f":"IF($A511=\"\",\"\",IF(OR(VLOOKUP($A511,Economática!$A$3:$AI$823,8,FALSE)=0,VLOOKUP($A511,Economática!$A$3:$AI$823,8,FALSE)=\"-\"),1/0,VLOOKUP($A511,Economática!$A$3:$AI$823,8,FALSE)))","v":""},{"$f":"IF(A511=\"\",\"\",IF(ISERROR(VLOOKUP(A511,Correção!$B$2:$G$13,9,FALSE)),VLOOKUP($A511,Economática!$A$3:$AI$823,9,FALSE),VLOOKUP(A511,Correção!$B$2:$G$13,9,FALSE)))","v":""},{"$f":"IF($A511=\"\",\"\",Economática!G489)","v":""},{"$f":"IF($A511=\"\",\"\",IF(OR(VLOOKUP($A511,Economática!$A$3:$AI$823,10,FALSE)=0,VLOOKUP($A511,Economática!$A$3:$AI$823,10,FALSE)=\"-\"),1/0,VLOOKUP($A511,Economática!$A$3:$AI$823,10,FALSE)))","v":""},{"$f":"IF($A511=\"\",\"\",IF(OR(VLOOKUP($A511,Economática!$A$3:$AI$823,11,FALSE)=0,VLOOKUP($A511,Economática!$A$3:$AI$823,11,FALSE)=\"-\"),1/0,VLOOKUP($A511,Economática!$A$3:$AI$823,11,FALSE)))","v":""},{"$f":"IF($A511=\"\",\"\",IF(OR(VLOOKUP($A511,Economática!$A$3:$AI$823,12,FALSE)=0,VLOOKUP($A511,Economática!$A$3:$AI$823,12,FALSE)=\"-\"),1/0,VLOOKUP($A511,Economática!$A$3:$AI$823,12,FALSE)))","v":""},{"$f":"IF($A511=\"\",\"\",IF(OR(VLOOKUP($A511,Economática!$A$3:$AI$823,13,FALSE)=0,VLOOKUP($A511,Economática!$A$3:$AI$823,13,FALSE)=\"-\"),1/0,VLOOKUP($A511,Economática!$A$3:$AI$823,13,FALSE)))","v":""},{"$f":"IF($A511=\"\",\"\",IF(OR(VLOOKUP($A511,Economática!$A$3:$AI$823,14,FALSE)=0,VLOOKUP($A511,Economática!$A$3:$AI$823,14,FALSE)=\"-\"),1/0,VLOOKUP($A511,Economática!$A$3:$AI$823,14,FALSE)))","v":""},{"$f":"IF($A511=\"\",\"\",IF(OR(VLOOKUP($A511,Economática!$A$3:$AI$823,15,FALSE)=0,VLOOKUP($A511,Economática!$A$3:$AI$823,15,FALSE)=\"-\"),1/0,VLOOKUP($A511,Economática!$A$3:$AI$823,15,FALSE)))","v":""},{"$f":"IF($A511=\"\",\"\",IF(OR(VLOOKUP($A511,Economática!$A$3:$AI$823,16,FALSE)=0,VLOOKUP($A511,Economática!$A$3:$AI$823,16,FALSE)=\"-\"),1/0,VLOOKUP($A511,Economática!$A$3:$AI$823,16,FALSE)))","v":""},{"$f":"IF($A511=\"\",\"\",IF(OR(VLOOKUP($A511,Economática!$A$3:$AI$823,17,FALSE)=0,VLOOKUP($A511,Economática!$A$3:$AI$823,17,FALSE)=\"-\"),1/0,VLOOKUP($A511,Economática!$A$3:$AI$823,17,FALSE)))","v":""},{"$f":"IF($A511=\"\",\"\",IF(OR(VLOOKUP($A511,Economática!$A$3:$AI$823,18,FALSE)=0,VLOOKUP($A511,Economática!$A$3:$AI$823,18,FALSE)=\"-\"),1/0,VLOOKUP($A511,Economática!$A$3:$AI$823,18,FALSE)))","v":""},{"$f":"IF($A511=\"\",\"\",IF(OR(VLOOKUP($A511,Economática!$A$3:$AI$823,19,FALSE)=0,VLOOKUP($A511,Economática!$A$3:$AI$823,19,FALSE)=\"-\"),1/0,VLOOKUP($A511,Economática!$A$3:$AI$823,19,FALSE)))","v":""},{"$f":"IF($A511=\"\",\"\",VLOOKUP($A511,Economática!$A$3:$AI$823,20,FALSE)/E511)","v":""},{"$f":"IF($A511=\"\",\"\",IF((G511/E511)<=0,1/0,G511/E511))","v":""},{"$f":"IF($A511=\"\",\"\",D511/R511)","v":""},{"$f":"IF($A511=\"\",\"\",IF((D511/Q511)<=0,1/0,D511/Q511))","v":""},{"$f":"IF($A511=\"\",\"\",IF(OR(VLOOKUP($A511,Economática!$A$3:$AI$823,21,FALSE)/100=0,VLOOKUP($A511,Economática!$A$3:$AI$823,21,FALSE)/100=\"-\"),1/0,VLOOKUP($A511,Economática!$A$3:$AI$823,21,FALSE)/100))","v":""},{"$f":"IF($A511=\"\",\"\",IF(OR(VLOOKUP($A511,Economática!$A$3:$AI$823,22,FALSE)/100=0,VLOOKUP($A511,Economática!$A$3:$AI$823,22,FALSE)/100=\"-\"),1/0,VLOOKUP($A511,Economática!$A$3:$AI$823,22,FALSE)/100))","v":""},{"$f":"IF($A511=\"\",\"\",IF(OR(VLOOKUP($A511,Economática!$A$3:$AI$823,23,FALSE)=0,VLOOKUP($A511,Economática!$A$3:$AI$823,23,FALSE)=\"-\"),1/0,VLOOKUP($A511,Economática!$A$3:$AI$823,23,FALSE)))","v":""},{"$f":"IF($A511=\"\",\"\",IF(OR(VLOOKUP($A511,Economática!$A$3:$AI$823,24,FALSE)=0,VLOOKUP($A511,Economática!$A$3:$AI$823,24,FALSE)=\"-\"),1/0,VLOOKUP($A511,Economática!$A$3:$AI$823,24,FALSE)))","v":""},{"$f":"IF($A511=\"\",\"\",IF(OR(VLOOKUP($A511,Economática!$A$3:$AI$823,25,FALSE)=0,VLOOKUP($A511,Economática!$A$3:$AI$823,25,FALSE)=\"-\"),1/0,VLOOKUP($A511,Economática!$A$3:$AI$823,25,FALSE)))","v":""},{"$f":"IF($A511=\"\",\"\",IF(ISERROR((F511+VLOOKUP($A511,Economática!$A$3:$AI$823,26,FALSE))/Y511),(F511+VLOOKUP($A511,Economática!$A$3:$AI$823,26,FALSE))/Y511,(F511+VLOOKUP($A511,Economática!$A$3:$AI$823,26,FALSE))/Y511))","v":""},{"$f":"IF($A511=\"\",\"\",IF(OR(-VLOOKUP($A511,Economática!$A$3:$AI$823,27,FALSE)=0,-VLOOKUP($A511,Economática!$A$3:$AI$823,27,FALSE)=\"-\"),1/0,-VLOOKUP($A511,Economática!$A$3:$AI$823,27,FALSE)))","v":""},{"$f":"IF(A511=\"\",\"\",AA511/F511)","v":""},{"$f":"IF($A511=\"\",\"\",IF(OR(VLOOKUP($A511,Economática!$A$3:$AI$823,28,FALSE)=0,VLOOKUP($A511,Economática!$A$3:$AI$823,28,FALSE)=\"-\"),1/0,VLOOKUP($A511,Economática!$A$3:$AI$823,28,FALSE)))","v":""},{"$f":"IF($A511=\"\",\"\",IF(OR(VLOOKUP($A511,Economática!$A$3:$AI$823,29,FALSE)=0,VLOOKUP($A511,Economática!$A$3:$AI$823,29,FALSE)=\"-\"),1/0,VLOOKUP($A511,Economática!$A$3:$AI$823,29,FALSE)))","v":""},{"$f":"IF($A511=\"\",\"\",IF(OR(VLOOKUP($A511,Economática!$A$3:$AI$823,30,FALSE)/E511=0,VLOOKUP($A511,Economática!$A$3:$AI$823,30,FALSE)/E511=\"-\",VLOOKUP($A511,Economática!$A$3:$AI$823,30,FALSE)/E511<33.33%,VLOOKUP($A511,Economática!$A$3:$AI$823,30,FALSE)/E511>100%),1/0,VLOOKUP($A511,Economática!$A$3:$AI$823,30,FALSE)/E511))","v":""},{"$f":"IF(A511=\"\",\"\",A511)","v":""},{"$f":"IF($A511=\"\",\"\",IF(OR(VLOOKUP($A511,Economática!$A$3:$AI$823,25,FALSE)=0,VLOOKUP($A511,Economática!$A$3:$AI$823,25,FALSE)=\"-\"),1/0,VLOOKUP($A511,Economática!$A$3:$AI$823,25,FALSE)))","v":""},{"$f":"CONCATENATE(Economática!B489,\" \",Economática!C489)","v":" "}]
[{"$f":"IF(Economática!AG490=\"\",\"\",Economática!AG490)","v":""},{"$f":"IF($A512=\"\",\"\",VLOOKUP(VLOOKUP($A512,Economática!$A$3:$AI$823,6,FALSE),Correção!$B$16:$C$36,2,FALSE))","v":""},{"$f":"IF(Economática!B490=\"\",\"\",Economática!B490)","v":""},{"$f":"IF($A512=\"\",\"\",IF(OR(VLOOKUP($A512,Economática!$A$3:$AI$823,8,FALSE)=0,VLOOKUP($A512,Economática!$A$3:$AI$823,8,FALSE)=\"-\"),1/0,VLOOKUP($A512,Economática!$A$3:$AI$823,8,FALSE)))","v":""},{"$f":"IF(A512=\"\",\"\",IF(ISERROR(VLOOKUP(A512,Correção!$B$2:$G$13,9,FALSE)),VLOOKUP($A512,Economática!$A$3:$AI$823,9,FALSE),VLOOKUP(A512,Correção!$B$2:$G$13,9,FALSE)))","v":""},{"$f":"IF($A512=\"\",\"\",Economática!G490)","v":""},{"$f":"IF($A512=\"\",\"\",IF(OR(VLOOKUP($A512,Economática!$A$3:$AI$823,10,FALSE)=0,VLOOKUP($A512,Economática!$A$3:$AI$823,10,FALSE)=\"-\"),1/0,VLOOKUP($A512,Economática!$A$3:$AI$823,10,FALSE)))","v":""},{"$f":"IF($A512=\"\",\"\",IF(OR(VLOOKUP($A512,Economática!$A$3:$AI$823,11,FALSE)=0,VLOOKUP($A512,Economática!$A$3:$AI$823,11,FALSE)=\"-\"),1/0,VLOOKUP($A512,Economática!$A$3:$AI$823,11,FALSE)))","v":""},{"$f":"IF($A512=\"\",\"\",IF(OR(VLOOKUP($A512,Economática!$A$3:$AI$823,12,FALSE)=0,VLOOKUP($A512,Economática!$A$3:$AI$823,12,FALSE)=\"-\"),1/0,VLOOKUP($A512,Economática!$A$3:$AI$823,12,FALSE)))","v":""},{"$f":"IF($A512=\"\",\"\",IF(OR(VLOOKUP($A512,Economática!$A$3:$AI$823,13,FALSE)=0,VLOOKUP($A512,Economática!$A$3:$AI$823,13,FALSE)=\"-\"),1/0,VLOOKUP($A512,Economática!$A$3:$AI$823,13,FALSE)))","v":""},{"$f":"IF($A512=\"\",\"\",IF(OR(VLOOKUP($A512,Economática!$A$3:$AI$823,14,FALSE)=0,VLOOKUP($A512,Economática!$A$3:$AI$823,14,FALSE)=\"-\"),1/0,VLOOKUP($A512,Economática!$A$3:$AI$823,14,FALSE)))","v":""},{"$f":"IF($A512=\"\",\"\",IF(OR(VLOOKUP($A512,Economática!$A$3:$AI$823,15,FALSE)=0,VLOOKUP($A512,Economática!$A$3:$AI$823,15,FALSE)=\"-\"),1/0,VLOOKUP($A512,Economática!$A$3:$AI$823,15,FALSE)))","v":""},{"$f":"IF($A512=\"\",\"\",IF(OR(VLOOKUP($A512,Economática!$A$3:$AI$823,16,FALSE)=0,VLOOKUP($A512,Economática!$A$3:$AI$823,16,FALSE)=\"-\"),1/0,VLOOKUP($A512,Economática!$A$3:$AI$823,16,FALSE)))","v":""},{"$f":"IF($A512=\"\",\"\",IF(OR(VLOOKUP($A512,Economática!$A$3:$AI$823,17,FALSE)=0,VLOOKUP($A512,Economática!$A$3:$AI$823,17,FALSE)=\"-\"),1/0,VLOOKUP($A512,Economática!$A$3:$AI$823,17,FALSE)))","v":""},{"$f":"IF($A512=\"\",\"\",IF(OR(VLOOKUP($A512,Economática!$A$3:$AI$823,18,FALSE)=0,VLOOKUP($A512,Economática!$A$3:$AI$823,18,FALSE)=\"-\"),1/0,VLOOKUP($A512,Economática!$A$3:$AI$823,18,FALSE)))","v":""},{"$f":"IF($A512=\"\",\"\",IF(OR(VLOOKUP($A512,Economática!$A$3:$AI$823,19,FALSE)=0,VLOOKUP($A512,Economática!$A$3:$AI$823,19,FALSE)=\"-\"),1/0,VLOOKUP($A512,Economática!$A$3:$AI$823,19,FALSE)))","v":""},{"$f":"IF($A512=\"\",\"\",VLOOKUP($A512,Economática!$A$3:$AI$823,20,FALSE)/E512)","v":""},"","","",{"$f":"IF($A512=\"\",\"\",IF(OR(VLOOKUP($A512,Economática!$A$3:$AI$823,21,FALSE)/100=0,VLOOKUP($A512,Economática!$A$3:$AI$823,21,FALSE)/100=\"-\"),1/0,VLOOKUP($A512,Economática!$A$3:$AI$823,21,FALSE)/100))","v":""},{"$f":"IF($A512=\"\",\"\",IF(OR(VLOOKUP($A512,Economática!$A$3:$AI$823,22,FALSE)/100=0,VLOOKUP($A512,Economática!$A$3:$AI$823,22,FALSE)/100=\"-\"),1/0,VLOOKUP($A512,Economática!$A$3:$AI$823,22,FALSE)/100))","v":""},{"$f":"IF($A512=\"\",\"\",IF(OR(VLOOKUP($A512,Economática!$A$3:$AI$823,23,FALSE)=0,VLOOKUP($A512,Economática!$A$3:$AI$823,23,FALSE)=\"-\"),1/0,VLOOKUP($A512,Economática!$A$3:$AI$823,23,FALSE)))","v":""},{"$f":"IF($A512=\"\",\"\",IF(OR(VLOOKUP($A512,Economática!$A$3:$AI$823,24,FALSE)=0,VLOOKUP($A512,Economática!$A$3:$AI$823,24,FALSE)=\"-\"),1/0,VLOOKUP($A512,Economática!$A$3:$AI$823,24,FALSE)))","v":""},{"$f":"IF($A512=\"\",\"\",IF(OR(VLOOKUP($A512,Economática!$A$3:$AI$823,25,FALSE)=0,VLOOKUP($A512,Economática!$A$3:$AI$823,25,FALSE)=\"-\"),1/0,VLOOKUP($A512,Economática!$A$3:$AI$823,25,FALSE)))","v":""},{"$f":"IF($A512=\"\",\"\",IF(ISERROR((F512+VLOOKUP($A512,Economática!$A$3:$AI$823,26,FALSE))/Y512),(F512+VLOOKUP($A512,Economática!$A$3:$AI$823,26,FALSE))/Y512,(F512+VLOOKUP($A512,Economática!$A$3:$AI$823,26,FALSE))/Y512))","v":""},{"$f":"IF($A512=\"\",\"\",IF(OR(-VLOOKUP($A512,Economática!$A$3:$AI$823,27,FALSE)=0,-VLOOKUP($A512,Economática!$A$3:$AI$823,27,FALSE)=\"-\"),1/0,-VLOOKUP($A512,Economática!$A$3:$AI$823,27,FALSE)))","v":""},"",{"$f":"IF($A512=\"\",\"\",IF(OR(VLOOKUP($A512,Economática!$A$3:$AI$823,28,FALSE)=0,VLOOKUP($A512,Economática!$A$3:$AI$823,28,FALSE)=\"-\"),1/0,VLOOKUP($A512,Economática!$A$3:$AI$823,28,FALSE)))","v":""},{"$f":"IF($A512=\"\",\"\",IF(OR(VLOOKUP($A512,Economática!$A$3:$AI$823,29,FALSE)=0,VLOOKUP($A512,Economática!$A$3:$AI$823,29,FALSE)=\"-\"),1/0,VLOOKUP($A512,Economática!$A$3:$AI$823,29,FALSE)))","v":""},{"$f":"IF($A512=\"\",\"\",IF(OR(VLOOKUP($A512,Economática!$A$3:$AI$823,30,FALSE)/E512=0,VLOOKUP($A512,Economática!$A$3:$AI$823,30,FALSE)/E512=\"-\",VLOOKUP($A512,Economática!$A$3:$AI$823,30,FALSE)/E512<33.33%,VLOOKUP($A512,Economática!$A$3:$AI$823,30,FALSE)/E512>100%),1/0,VLOOKUP($A512,Economática!$A$3:$AI$823,30,FALSE)/E512))","v":""},"",{"$f":"IF($A512=\"\",\"\",IF(OR(VLOOKUP($A512,Economática!$A$3:$AI$823,25,FALSE)=0,VLOOKUP($A512,Economática!$A$3:$AI$823,25,FALSE)=\"-\"),1/0,VLOOKUP($A512,Economática!$A$3:$AI$823,25,FALSE)))","v":""},{"$f":"CONCATENATE(Economática!B490,\" \",Economática!C490)","v":" "}]
[{"$f":"IF(Economática!AG491=\"\",\"\",Economática!AG491)","v":""},{"$f":"IF($A513=\"\",\"\",VLOOKUP(VLOOKUP($A513,Economática!$A$3:$AI$823,6,FALSE),Correção!$B$16:$C$36,2,FALSE))","v":""},{"$f":"IF(Economática!B491=\"\",\"\",Economática!B491)","v":""},{"$f":"IF($A513=\"\",\"\",IF(OR(VLOOKUP($A513,Economática!$A$3:$AI$823,8,FALSE)=0,VLOOKUP($A513,Economática!$A$3:$AI$823,8,FALSE)=\"-\"),1/0,VLOOKUP($A513,Economática!$A$3:$AI$823,8,FALSE)))","v":""},{"$f":"IF(A513=\"\",\"\",IF(ISERROR(VLOOKUP(A513,Correção!$B$2:$G$13,9,FALSE)),VLOOKUP($A513,Economática!$A$3:$AI$823,9,FALSE),VLOOKUP(A513,Correção!$B$2:$G$13,9,FALSE)))","v":""},{"$f":"IF($A513=\"\",\"\",Economática!G491)","v":""},{"$f":"IF($A513=\"\",\"\",IF(OR(VLOOKUP($A513,Economática!$A$3:$AI$823,10,FALSE)=0,VLOOKUP($A513,Economática!$A$3:$AI$823,10,FALSE)=\"-\"),1/0,VLOOKUP($A513,Economática!$A$3:$AI$823,10,FALSE)))","v":""},{"$f":"IF($A513=\"\",\"\",IF(OR(VLOOKUP($A513,Economática!$A$3:$AI$823,11,FALSE)=0,VLOOKUP($A513,Economática!$A$3:$AI$823,11,FALSE)=\"-\"),1/0,VLOOKUP($A513,Economática!$A$3:$AI$823,11,FALSE)))","v":""},{"$f":"IF($A513=\"\",\"\",IF(OR(VLOOKUP($A513,Economática!$A$3:$AI$823,12,FALSE)=0,VLOOKUP($A513,Economática!$A$3:$AI$823,12,FALSE)=\"-\"),1/0,VLOOKUP($A513,Economática!$A$3:$AI$823,12,FALSE)))","v":""},{"$f":"IF($A513=\"\",\"\",IF(OR(VLOOKUP($A513,Economática!$A$3:$AI$823,13,FALSE)=0,VLOOKUP($A513,Economática!$A$3:$AI$823,13,FALSE)=\"-\"),1/0,VLOOKUP($A513,Economática!$A$3:$AI$823,13,FALSE)))","v":""},{"$f":"IF($A513=\"\",\"\",IF(OR(VLOOKUP($A513,Economática!$A$3:$AI$823,14,FALSE)=0,VLOOKUP($A513,Economática!$A$3:$AI$823,14,FALSE)=\"-\"),1/0,VLOOKUP($A513,Economática!$A$3:$AI$823,14,FALSE)))","v":""},{"$f":"IF($A513=\"\",\"\",IF(OR(VLOOKUP($A513,Economática!$A$3:$AI$823,15,FALSE)=0,VLOOKUP($A513,Economática!$A$3:$AI$823,15,FALSE)=\"-\"),1/0,VLOOKUP($A513,Economática!$A$3:$AI$823,15,FALSE)))","v":""},{"$f":"IF($A513=\"\",\"\",IF(OR(VLOOKUP($A513,Economática!$A$3:$AI$823,16,FALSE)=0,VLOOKUP($A513,Economática!$A$3:$AI$823,16,FALSE)=\"-\"),1/0,VLOOKUP($A513,Economática!$A$3:$AI$823,16,FALSE)))","v":""},{"$f":"IF($A513=\"\",\"\",IF(OR(VLOOKUP($A513,Economática!$A$3:$AI$823,17,FALSE)=0,VLOOKUP($A513,Economática!$A$3:$AI$823,17,FALSE)=\"-\"),1/0,VLOOKUP($A513,Economática!$A$3:$AI$823,17,FALSE)))","v":""},{"$f":"IF($A513=\"\",\"\",IF(OR(VLOOKUP($A513,Economática!$A$3:$AI$823,18,FALSE)=0,VLOOKUP($A513,Economática!$A$3:$AI$823,18,FALSE)=\"-\"),1/0,VLOOKUP($A513,Economática!$A$3:$AI$823,18,FALSE)))","v":""},{"$f":"IF($A513=\"\",\"\",IF(OR(VLOOKUP($A513,Economática!$A$3:$AI$823,19,FALSE)=0,VLOOKUP($A513,Economática!$A$3:$AI$823,19,FALSE)=\"-\"),1/0,VLOOKUP($A513,Economática!$A$3:$AI$823,19,FALSE)))","v":""},{"$f":"IF($A513=\"\",\"\",VLOOKUP($A513,Economática!$A$3:$AI$823,20,FALSE)/E513)","v":""},"","","",{"$f":"IF($A513=\"\",\"\",IF(OR(VLOOKUP($A513,Economática!$A$3:$AI$823,21,FALSE)/100=0,VLOOKUP($A513,Economática!$A$3:$AI$823,21,FALSE)/100=\"-\"),1/0,VLOOKUP($A513,Economática!$A$3:$AI$823,21,FALSE)/100))","v":""},{"$f":"IF($A513=\"\",\"\",IF(OR(VLOOKUP($A513,Economática!$A$3:$AI$823,22,FALSE)/100=0,VLOOKUP($A513,Economática!$A$3:$AI$823,22,FALSE)/100=\"-\"),1/0,VLOOKUP($A513,Economática!$A$3:$AI$823,22,FALSE)/100))","v":""},{"$f":"IF($A513=\"\",\"\",IF(OR(VLOOKUP($A513,Economática!$A$3:$AI$823,23,FALSE)=0,VLOOKUP($A513,Economática!$A$3:$AI$823,23,FALSE)=\"-\"),1/0,VLOOKUP($A513,Economática!$A$3:$AI$823,23,FALSE)))","v":""},{"$f":"IF($A513=\"\",\"\",IF(OR(VLOOKUP($A513,Economática!$A$3:$AI$823,24,FALSE)=0,VLOOKUP($A513,Economática!$A$3:$AI$823,24,FALSE)=\"-\"),1/0,VLOOKUP($A513,Economática!$A$3:$AI$823,24,FALSE)))","v":""},{"$f":"IF($A513=\"\",\"\",IF(OR(VLOOKUP($A513,Economática!$A$3:$AI$823,25,FALSE)=0,VLOOKUP($A513,Economática!$A$3:$AI$823,25,FALSE)=\"-\"),1/0,VLOOKUP($A513,Economática!$A$3:$AI$823,25,FALSE)))","v":""},{"$f":"IF($A513=\"\",\"\",IF(ISERROR((F513+VLOOKUP($A513,Economática!$A$3:$AI$823,26,FALSE))/Y513),(F513+VLOOKUP($A513,Economática!$A$3:$AI$823,26,FALSE))/Y513,(F513+VLOOKUP($A513,Economática!$A$3:$AI$823,26,FALSE))/Y513))","v":""},{"$f":"IF($A513=\"\",\"\",IF(OR(-VLOOKUP($A513,Economática!$A$3:$AI$823,27,FALSE)=0,-VLOOKUP($A513,Economática!$A$3:$AI$823,27,FALSE)=\"-\"),1/0,-VLOOKUP($A513,Economática!$A$3:$AI$823,27,FALSE)))","v":""},"",{"$f":"IF($A513=\"\",\"\",IF(OR(VLOOKUP($A513,Economática!$A$3:$AI$823,28,FALSE)=0,VLOOKUP($A513,Economática!$A$3:$AI$823,28,FALSE)=\"-\"),1/0,VLOOKUP($A513,Economática!$A$3:$AI$823,28,FALSE)))","v":""},{"$f":"IF($A513=\"\",\"\",IF(OR(VLOOKUP($A513,Economática!$A$3:$AI$823,29,FALSE)=0,VLOOKUP($A513,Economática!$A$3:$AI$823,29,FALSE)=\"-\"),1/0,VLOOKUP($A513,Economática!$A$3:$AI$823,29,FALSE)))","v":""},{"$f":"IF($A513=\"\",\"\",IF(OR(VLOOKUP($A513,Economática!$A$3:$AI$823,30,FALSE)/E513=0,VLOOKUP($A513,Economática!$A$3:$AI$823,30,FALSE)/E513=\"-\",VLOOKUP($A513,Economática!$A$3:$AI$823,30,FALSE)/E513<33.33%,VLOOKUP($A513,Economática!$A$3:$AI$823,30,FALSE)/E513>100%),1/0,VLOOKUP($A513,Economática!$A$3:$AI$823,30,FALSE)/E513))","v":""},"",{"$f":"IF($A513=\"\",\"\",IF(OR(VLOOKUP($A513,Economática!$A$3:$AI$823,25,FALSE)=0,VLOOKUP($A513,Economática!$A$3:$AI$823,25,FALSE)=\"-\"),1/0,VLOOKUP($A513,Economática!$A$3:$AI$823,25,FALSE)))","v":""},{"$f":"CONCATENATE(Economática!B491,\" \",Economática!C491)","v":" "}]
[{"$f":"IF(Economática!AG492=\"\",\"\",Economática!AG492)","v":""},{"$f":"IF($A514=\"\",\"\",VLOOKUP(VLOOKUP($A514,Economática!$A$3:$AI$823,6,FALSE),Correção!$B$16:$C$36,2,FALSE))","v":""},{"$f":"IF(Economática!B492=\"\",\"\",Economática!B492)","v":""},{"$f":"IF($A514=\"\",\"\",IF(OR(VLOOKUP($A514,Economática!$A$3:$AI$823,8,FALSE)=0,VLOOKUP($A514,Economática!$A$3:$AI$823,8,FALSE)=\"-\"),1/0,VLOOKUP($A514,Economática!$A$3:$AI$823,8,FALSE)))","v":""},{"$f":"IF(A514=\"\",\"\",IF(ISERROR(VLOOKUP(A514,Correção!$B$2:$G$13,9,FALSE)),VLOOKUP($A514,Economática!$A$3:$AI$823,9,FALSE),VLOOKUP(A514,Correção!$B$2:$G$13,9,FALSE)))","v":""},{"$f":"IF($A514=\"\",\"\",Economática!G492)","v":""},{"$f":"IF($A514=\"\",\"\",IF(OR(VLOOKUP($A514,Economática!$A$3:$AI$823,10,FALSE)=0,VLOOKUP($A514,Economática!$A$3:$AI$823,10,FALSE)=\"-\"),1/0,VLOOKUP($A514,Economática!$A$3:$AI$823,10,FALSE)))","v":""},{"$f":"IF($A514=\"\",\"\",IF(OR(VLOOKUP($A514,Economática!$A$3:$AI$823,11,FALSE)=0,VLOOKUP($A514,Economática!$A$3:$AI$823,11,FALSE)=\"-\"),1/0,VLOOKUP($A514,Economática!$A$3:$AI$823,11,FALSE)))","v":""},{"$f":"IF($A514=\"\",\"\",IF(OR(VLOOKUP($A514,Economática!$A$3:$AI$823,12,FALSE)=0,VLOOKUP($A514,Economática!$A$3:$AI$823,12,FALSE)=\"-\"),1/0,VLOOKUP($A514,Economática!$A$3:$AI$823,12,FALSE)))","v":""},{"$f":"IF($A514=\"\",\"\",IF(OR(VLOOKUP($A514,Economática!$A$3:$AI$823,13,FALSE)=0,VLOOKUP($A514,Economática!$A$3:$AI$823,13,FALSE)=\"-\"),1/0,VLOOKUP($A514,Economática!$A$3:$AI$823,13,FALSE)))","v":""},{"$f":"IF($A514=\"\",\"\",IF(OR(VLOOKUP($A514,Economática!$A$3:$AI$823,14,FALSE)=0,VLOOKUP($A514,Economática!$A$3:$AI$823,14,FALSE)=\"-\"),1/0,VLOOKUP($A514,Economática!$A$3:$AI$823,14,FALSE)))","v":""},{"$f":"IF($A514=\"\",\"\",IF(OR(VLOOKUP($A514,Economática!$A$3:$AI$823,15,FALSE)=0,VLOOKUP($A514,Economática!$A$3:$AI$823,15,FALSE)=\"-\"),1/0,VLOOKUP($A514,Economática!$A$3:$AI$823,15,FALSE)))","v":""},{"$f":"IF($A514=\"\",\"\",IF(OR(VLOOKUP($A514,Economática!$A$3:$AI$823,16,FALSE)=0,VLOOKUP($A514,Economática!$A$3:$AI$823,16,FALSE)=\"-\"),1/0,VLOOKUP($A514,Economática!$A$3:$AI$823,16,FALSE)))","v":""},{"$f":"IF($A514=\"\",\"\",IF(OR(VLOOKUP($A514,Economática!$A$3:$AI$823,17,FALSE)=0,VLOOKUP($A514,Economática!$A$3:$AI$823,17,FALSE)=\"-\"),1/0,VLOOKUP($A514,Economática!$A$3:$AI$823,17,FALSE)))","v":""},{"$f":"IF($A514=\"\",\"\",IF(OR(VLOOKUP($A514,Economática!$A$3:$AI$823,18,FALSE)=0,VLOOKUP($A514,Economática!$A$3:$AI$823,18,FALSE)=\"-\"),1/0,VLOOKUP($A514,Economática!$A$3:$AI$823,18,FALSE)))","v":""},{"$f":"IF($A514=\"\",\"\",IF(OR(VLOOKUP($A514,Economática!$A$3:$AI$823,19,FALSE)=0,VLOOKUP($A514,Economática!$A$3:$AI$823,19,FALSE)=\"-\"),1/0,VLOOKUP($A514,Economática!$A$3:$AI$823,19,FALSE)))","v":""},{"$f":"IF($A514=\"\",\"\",VLOOKUP($A514,Economática!$A$3:$AI$823,20,FALSE)/E514)","v":""},"","","",{"$f":"IF($A514=\"\",\"\",IF(OR(VLOOKUP($A514,Economática!$A$3:$AI$823,21,FALSE)/100=0,VLOOKUP($A514,Economática!$A$3:$AI$823,21,FALSE)/100=\"-\"),1/0,VLOOKUP($A514,Economática!$A$3:$AI$823,21,FALSE)/100))","v":""},{"$f":"IF($A514=\"\",\"\",IF(OR(VLOOKUP($A514,Economática!$A$3:$AI$823,22,FALSE)/100=0,VLOOKUP($A514,Economática!$A$3:$AI$823,22,FALSE)/100=\"-\"),1/0,VLOOKUP($A514,Economática!$A$3:$AI$823,22,FALSE)/100))","v":""},{"$f":"IF($A514=\"\",\"\",IF(OR(VLOOKUP($A514,Economática!$A$3:$AI$823,23,FALSE)=0,VLOOKUP($A514,Economática!$A$3:$AI$823,23,FALSE)=\"-\"),1/0,VLOOKUP($A514,Economática!$A$3:$AI$823,23,FALSE)))","v":""},{"$f":"IF($A514=\"\",\"\",IF(OR(VLOOKUP($A514,Economática!$A$3:$AI$823,24,FALSE)=0,VLOOKUP($A514,Economática!$A$3:$AI$823,24,FALSE)=\"-\"),1/0,VLOOKUP($A514,Economática!$A$3:$AI$823,24,FALSE)))","v":""},{"$f":"IF($A514=\"\",\"\",IF(OR(VLOOKUP($A514,Economática!$A$3:$AI$823,25,FALSE)=0,VLOOKUP($A514,Economática!$A$3:$AI$823,25,FALSE)=\"-\"),1/0,VLOOKUP($A514,Economática!$A$3:$AI$823,25,FALSE)))","v":""},{"$f":"IF($A514=\"\",\"\",IF(ISERROR((F514+VLOOKUP($A514,Economática!$A$3:$AI$823,26,FALSE))/Y514),(F514+VLOOKUP($A514,Economática!$A$3:$AI$823,26,FALSE))/Y514,(F514+VLOOKUP($A514,Economática!$A$3:$AI$823,26,FALSE))/Y514))","v":""},{"$f":"IF($A514=\"\",\"\",IF(OR(-VLOOKUP($A514,Economática!$A$3:$AI$823,27,FALSE)=0,-VLOOKUP($A514,Economática!$A$3:$AI$823,27,FALSE)=\"-\"),1/0,-VLOOKUP($A514,Economática!$A$3:$AI$823,27,FALSE)))","v":""},"",{"$f":"IF($A514=\"\",\"\",IF(OR(VLOOKUP($A514,Economática!$A$3:$AI$823,28,FALSE)=0,VLOOKUP($A514,Economática!$A$3:$AI$823,28,FALSE)=\"-\"),1/0,VLOOKUP($A514,Economática!$A$3:$AI$823,28,FALSE)))","v":""},{"$f":"IF($A514=\"\",\"\",IF(OR(VLOOKUP($A514,Economática!$A$3:$AI$823,29,FALSE)=0,VLOOKUP($A514,Economática!$A$3:$AI$823,29,FALSE)=\"-\"),1/0,VLOOKUP($A514,Economática!$A$3:$AI$823,29,FALSE)))","v":""},{"$f":"IF($A514=\"\",\"\",IF(OR(VLOOKUP($A514,Economática!$A$3:$AI$823,30,FALSE)/E514=0,VLOOKUP($A514,Economática!$A$3:$AI$823,30,FALSE)/E514=\"-\",VLOOKUP($A514,Economática!$A$3:$AI$823,30,FALSE)/E514<33.33%,VLOOKUP($A514,Economática!$A$3:$AI$823,30,FALSE)/E514>100%),1/0,VLOOKUP($A514,Economática!$A$3:$AI$823,30,FALSE)/E514))","v":""},"",{"$f":"IF($A514=\"\",\"\",IF(OR(VLOOKUP($A514,Economática!$A$3:$AI$823,25,FALSE)=0,VLOOKUP($A514,Economática!$A$3:$AI$823,25,FALSE)=\"-\"),1/0,VLOOKUP($A514,Economática!$A$3:$AI$823,25,FALSE)))","v":""},{"$f":"CONCATENATE(Economática!B492,\" \",Economática!C492)","v":" "}]
[{"$f":"IF(Economática!AG493=\"\",\"\",Economática!AG493)","v":""},{"$f":"IF($A515=\"\",\"\",VLOOKUP(VLOOKUP($A515,Economática!$A$3:$AI$823,6,FALSE),Correção!$B$16:$C$36,2,FALSE))","v":""},{"$f":"IF(Economática!B493=\"\",\"\",Economática!B493)","v":""},{"$f":"IF($A515=\"\",\"\",IF(OR(VLOOKUP($A515,Economática!$A$3:$AI$823,8,FALSE)=0,VLOOKUP($A515,Economática!$A$3:$AI$823,8,FALSE)=\"-\"),1/0,VLOOKUP($A515,Economática!$A$3:$AI$823,8,FALSE)))","v":""},{"$f":"IF(A515=\"\",\"\",IF(ISERROR(VLOOKUP(A515,Correção!$B$2:$G$13,9,FALSE)),VLOOKUP($A515,Economática!$A$3:$AI$823,9,FALSE),VLOOKUP(A515,Correção!$B$2:$G$13,9,FALSE)))","v":""},{"$f":"IF($A515=\"\",\"\",Economática!G493)","v":""},{"$f":"IF($A515=\"\",\"\",IF(OR(VLOOKUP($A515,Economática!$A$3:$AI$823,10,FALSE)=0,VLOOKUP($A515,Economática!$A$3:$AI$823,10,FALSE)=\"-\"),1/0,VLOOKUP($A515,Economática!$A$3:$AI$823,10,FALSE)))","v":""},{"$f":"IF($A515=\"\",\"\",IF(OR(VLOOKUP($A515,Economática!$A$3:$AI$823,11,FALSE)=0,VLOOKUP($A515,Economática!$A$3:$AI$823,11,FALSE)=\"-\"),1/0,VLOOKUP($A515,Economática!$A$3:$AI$823,11,FALSE)))","v":""},{"$f":"IF($A515=\"\",\"\",IF(OR(VLOOKUP($A515,Economática!$A$3:$AI$823,12,FALSE)=0,VLOOKUP($A515,Economática!$A$3:$AI$823,12,FALSE)=\"-\"),1/0,VLOOKUP($A515,Economática!$A$3:$AI$823,12,FALSE)))","v":""},{"$f":"IF($A515=\"\",\"\",IF(OR(VLOOKUP($A515,Economática!$A$3:$AI$823,13,FALSE)=0,VLOOKUP($A515,Economática!$A$3:$AI$823,13,FALSE)=\"-\"),1/0,VLOOKUP($A515,Economática!$A$3:$AI$823,13,FALSE)))","v":""},{"$f":"IF($A515=\"\",\"\",IF(OR(VLOOKUP($A515,Economática!$A$3:$AI$823,14,FALSE)=0,VLOOKUP($A515,Economática!$A$3:$AI$823,14,FALSE)=\"-\"),1/0,VLOOKUP($A515,Economática!$A$3:$AI$823,14,FALSE)))","v":""},{"$f":"IF($A515=\"\",\"\",IF(OR(VLOOKUP($A515,Economática!$A$3:$AI$823,15,FALSE)=0,VLOOKUP($A515,Economática!$A$3:$AI$823,15,FALSE)=\"-\"),1/0,VLOOKUP($A515,Economática!$A$3:$AI$823,15,FALSE)))","v":""},{"$f":"IF($A515=\"\",\"\",IF(OR(VLOOKUP($A515,Economática!$A$3:$AI$823,16,FALSE)=0,VLOOKUP($A515,Economática!$A$3:$AI$823,16,FALSE)=\"-\"),1/0,VLOOKUP($A515,Economática!$A$3:$AI$823,16,FALSE)))","v":""},{"$f":"IF($A515=\"\",\"\",IF(OR(VLOOKUP($A515,Economática!$A$3:$AI$823,17,FALSE)=0,VLOOKUP($A515,Economática!$A$3:$AI$823,17,FALSE)=\"-\"),1/0,VLOOKUP($A515,Economática!$A$3:$AI$823,17,FALSE)))","v":""},{"$f":"IF($A515=\"\",\"\",IF(OR(VLOOKUP($A515,Economática!$A$3:$AI$823,18,FALSE)=0,VLOOKUP($A515,Economática!$A$3:$AI$823,18,FALSE)=\"-\"),1/0,VLOOKUP($A515,Economática!$A$3:$AI$823,18,FALSE)))","v":""},{"$f":"IF($A515=\"\",\"\",IF(OR(VLOOKUP($A515,Economática!$A$3:$AI$823,19,FALSE)=0,VLOOKUP($A515,Economática!$A$3:$AI$823,19,FALSE)=\"-\"),1/0,VLOOKUP($A515,Economática!$A$3:$AI$823,19,FALSE)))","v":""},{"$f":"IF($A515=\"\",\"\",VLOOKUP($A515,Economática!$A$3:$AI$823,20,FALSE)/E515)","v":""},"","","",{"$f":"IF($A515=\"\",\"\",IF(OR(VLOOKUP($A515,Economática!$A$3:$AI$823,21,FALSE)/100=0,VLOOKUP($A515,Economática!$A$3:$AI$823,21,FALSE)/100=\"-\"),1/0,VLOOKUP($A515,Economática!$A$3:$AI$823,21,FALSE)/100))","v":""},{"$f":"IF($A515=\"\",\"\",IF(OR(VLOOKUP($A515,Economática!$A$3:$AI$823,22,FALSE)/100=0,VLOOKUP($A515,Economática!$A$3:$AI$823,22,FALSE)/100=\"-\"),1/0,VLOOKUP($A515,Economática!$A$3:$AI$823,22,FALSE)/100))","v":""},{"$f":"IF($A515=\"\",\"\",IF(OR(VLOOKUP($A515,Economática!$A$3:$AI$823,23,FALSE)=0,VLOOKUP($A515,Economática!$A$3:$AI$823,23,FALSE)=\"-\"),1/0,VLOOKUP($A515,Economática!$A$3:$AI$823,23,FALSE)))","v":""},{"$f":"IF($A515=\"\",\"\",IF(OR(VLOOKUP($A515,Economática!$A$3:$AI$823,24,FALSE)=0,VLOOKUP($A515,Economática!$A$3:$AI$823,24,FALSE)=\"-\"),1/0,VLOOKUP($A515,Economática!$A$3:$AI$823,24,FALSE)))","v":""},{"$f":"IF($A515=\"\",\"\",IF(OR(VLOOKUP($A515,Economática!$A$3:$AI$823,25,FALSE)=0,VLOOKUP($A515,Economática!$A$3:$AI$823,25,FALSE)=\"-\"),1/0,VLOOKUP($A515,Economática!$A$3:$AI$823,25,FALSE)))","v":""},{"$f":"IF($A515=\"\",\"\",IF(ISERROR((F515+VLOOKUP($A515,Economática!$A$3:$AI$823,26,FALSE))/Y515),(F515+VLOOKUP($A515,Economática!$A$3:$AI$823,26,FALSE))/Y515,(F515+VLOOKUP($A515,Economática!$A$3:$AI$823,26,FALSE))/Y515))","v":""},{"$f":"IF($A515=\"\",\"\",IF(OR(-VLOOKUP($A515,Economática!$A$3:$AI$823,27,FALSE)=0,-VLOOKUP($A515,Economática!$A$3:$AI$823,27,FALSE)=\"-\"),1/0,-VLOOKUP($A515,Economática!$A$3:$AI$823,27,FALSE)))","v":""},"",{"$f":"IF($A515=\"\",\"\",IF(OR(VLOOKUP($A515,Economática!$A$3:$AI$823,28,FALSE)=0,VLOOKUP($A515,Economática!$A$3:$AI$823,28,FALSE)=\"-\"),1/0,VLOOKUP($A515,Economática!$A$3:$AI$823,28,FALSE)))","v":""},{"$f":"IF($A515=\"\",\"\",IF(OR(VLOOKUP($A515,Economática!$A$3:$AI$823,29,FALSE)=0,VLOOKUP($A515,Economática!$A$3:$AI$823,29,FALSE)=\"-\"),1/0,VLOOKUP($A515,Economática!$A$3:$AI$823,29,FALSE)))","v":""},{"$f":"IF($A515=\"\",\"\",IF(OR(VLOOKUP($A515,Economática!$A$3:$AI$823,30,FALSE)/E515=0,VLOOKUP($A515,Economática!$A$3:$AI$823,30,FALSE)/E515=\"-\",VLOOKUP($A515,Economática!$A$3:$AI$823,30,FALSE)/E515<33.33%,VLOOKUP($A515,Economática!$A$3:$AI$823,30,FALSE)/E515>100%),1/0,VLOOKUP($A515,Economática!$A$3:$AI$823,30,FALSE)/E515))","v":""},"",{"$f":"IF($A515=\"\",\"\",IF(OR(VLOOKUP($A515,Economática!$A$3:$AI$823,25,FALSE)=0,VLOOKUP($A515,Economática!$A$3:$AI$823,25,FALSE)=\"-\"),1/0,VLOOKUP($A515,Economática!$A$3:$AI$823,25,FALSE)))","v":""},{"$f":"CONCATENATE(Economática!B493,\" \",Economática!C493)","v":" "}]
[{"$f":"IF(Economática!AG494=\"\",\"\",Economática!AG494)","v":""},{"$f":"IF($A516=\"\",\"\",VLOOKUP(VLOOKUP($A516,Economática!$A$3:$AI$823,6,FALSE),Correção!$B$16:$C$36,2,FALSE))","v":""},{"$f":"IF(Economática!B494=\"\",\"\",Economática!B494)","v":""},{"$f":"IF($A516=\"\",\"\",IF(OR(VLOOKUP($A516,Economática!$A$3:$AI$823,8,FALSE)=0,VLOOKUP($A516,Economática!$A$3:$AI$823,8,FALSE)=\"-\"),1/0,VLOOKUP($A516,Economática!$A$3:$AI$823,8,FALSE)))","v":""},{"$f":"IF(A516=\"\",\"\",IF(ISERROR(VLOOKUP(A516,Correção!$B$2:$G$13,9,FALSE)),VLOOKUP($A516,Economática!$A$3:$AI$823,9,FALSE),VLOOKUP(A516,Correção!$B$2:$G$13,9,FALSE)))","v":""},{"$f":"IF($A516=\"\",\"\",Economática!G494)","v":""},{"$f":"IF($A516=\"\",\"\",IF(OR(VLOOKUP($A516,Economática!$A$3:$AI$823,10,FALSE)=0,VLOOKUP($A516,Economática!$A$3:$AI$823,10,FALSE)=\"-\"),1/0,VLOOKUP($A516,Economática!$A$3:$AI$823,10,FALSE)))","v":""},{"$f":"IF($A516=\"\",\"\",IF(OR(VLOOKUP($A516,Economática!$A$3:$AI$823,11,FALSE)=0,VLOOKUP($A516,Economática!$A$3:$AI$823,11,FALSE)=\"-\"),1/0,VLOOKUP($A516,Economática!$A$3:$AI$823,11,FALSE)))","v":""},{"$f":"IF($A516=\"\",\"\",IF(OR(VLOOKUP($A516,Economática!$A$3:$AI$823,12,FALSE)=0,VLOOKUP($A516,Economática!$A$3:$AI$823,12,FALSE)=\"-\"),1/0,VLOOKUP($A516,Economática!$A$3:$AI$823,12,FALSE)))","v":""},{"$f":"IF($A516=\"\",\"\",IF(OR(VLOOKUP($A516,Economática!$A$3:$AI$823,13,FALSE)=0,VLOOKUP($A516,Economática!$A$3:$AI$823,13,FALSE)=\"-\"),1/0,VLOOKUP($A516,Economática!$A$3:$AI$823,13,FALSE)))","v":""},{"$f":"IF($A516=\"\",\"\",IF(OR(VLOOKUP($A516,Economática!$A$3:$AI$823,14,FALSE)=0,VLOOKUP($A516,Economática!$A$3:$AI$823,14,FALSE)=\"-\"),1/0,VLOOKUP($A516,Economática!$A$3:$AI$823,14,FALSE)))","v":""},{"$f":"IF($A516=\"\",\"\",IF(OR(VLOOKUP($A516,Economática!$A$3:$AI$823,15,FALSE)=0,VLOOKUP($A516,Economática!$A$3:$AI$823,15,FALSE)=\"-\"),1/0,VLOOKUP($A516,Economática!$A$3:$AI$823,15,FALSE)))","v":""},{"$f":"IF($A516=\"\",\"\",IF(OR(VLOOKUP($A516,Economática!$A$3:$AI$823,16,FALSE)=0,VLOOKUP($A516,Economática!$A$3:$AI$823,16,FALSE)=\"-\"),1/0,VLOOKUP($A516,Economática!$A$3:$AI$823,16,FALSE)))","v":""},{"$f":"IF($A516=\"\",\"\",IF(OR(VLOOKUP($A516,Economática!$A$3:$AI$823,17,FALSE)=0,VLOOKUP($A516,Economática!$A$3:$AI$823,17,FALSE)=\"-\"),1/0,VLOOKUP($A516,Economática!$A$3:$AI$823,17,FALSE)))","v":""},{"$f":"IF($A516=\"\",\"\",IF(OR(VLOOKUP($A516,Economática!$A$3:$AI$823,18,FALSE)=0,VLOOKUP($A516,Economática!$A$3:$AI$823,18,FALSE)=\"-\"),1/0,VLOOKUP($A516,Economática!$A$3:$AI$823,18,FALSE)))","v":""},{"$f":"IF($A516=\"\",\"\",IF(OR(VLOOKUP($A516,Economática!$A$3:$AI$823,19,FALSE)=0,VLOOKUP($A516,Economática!$A$3:$AI$823,19,FALSE)=\"-\"),1/0,VLOOKUP($A516,Economática!$A$3:$AI$823,19,FALSE)))","v":""},{"$f":"IF($A516=\"\",\"\",VLOOKUP($A516,Economática!$A$3:$AI$823,20,FALSE)/E516)","v":""},"","","",{"$f":"IF($A516=\"\",\"\",IF(OR(VLOOKUP($A516,Economática!$A$3:$AI$823,21,FALSE)/100=0,VLOOKUP($A516,Economática!$A$3:$AI$823,21,FALSE)/100=\"-\"),1/0,VLOOKUP($A516,Economática!$A$3:$AI$823,21,FALSE)/100))","v":""},{"$f":"IF($A516=\"\",\"\",IF(OR(VLOOKUP($A516,Economática!$A$3:$AI$823,22,FALSE)/100=0,VLOOKUP($A516,Economática!$A$3:$AI$823,22,FALSE)/100=\"-\"),1/0,VLOOKUP($A516,Economática!$A$3:$AI$823,22,FALSE)/100))","v":""},{"$f":"IF($A516=\"\",\"\",IF(OR(VLOOKUP($A516,Economática!$A$3:$AI$823,23,FALSE)=0,VLOOKUP($A516,Economática!$A$3:$AI$823,23,FALSE)=\"-\"),1/0,VLOOKUP($A516,Economática!$A$3:$AI$823,23,FALSE)))","v":""},{"$f":"IF($A516=\"\",\"\",IF(OR(VLOOKUP($A516,Economática!$A$3:$AI$823,24,FALSE)=0,VLOOKUP($A516,Economática!$A$3:$AI$823,24,FALSE)=\"-\"),1/0,VLOOKUP($A516,Economática!$A$3:$AI$823,24,FALSE)))","v":""},{"$f":"IF($A516=\"\",\"\",IF(OR(VLOOKUP($A516,Economática!$A$3:$AI$823,25,FALSE)=0,VLOOKUP($A516,Economática!$A$3:$AI$823,25,FALSE)=\"-\"),1/0,VLOOKUP($A516,Economática!$A$3:$AI$823,25,FALSE)))","v":""},{"$f":"IF($A516=\"\",\"\",IF(ISERROR((F516+VLOOKUP($A516,Economática!$A$3:$AI$823,26,FALSE))/Y516),(F516+VLOOKUP($A516,Economática!$A$3:$AI$823,26,FALSE))/Y516,(F516+VLOOKUP($A516,Economática!$A$3:$AI$823,26,FALSE))/Y516))","v":""},{"$f":"IF($A516=\"\",\"\",IF(OR(-VLOOKUP($A516,Economática!$A$3:$AI$823,27,FALSE)=0,-VLOOKUP($A516,Economática!$A$3:$AI$823,27,FALSE)=\"-\"),1/0,-VLOOKUP($A516,Economática!$A$3:$AI$823,27,FALSE)))","v":""},"",{"$f":"IF($A516=\"\",\"\",IF(OR(VLOOKUP($A516,Economática!$A$3:$AI$823,28,FALSE)=0,VLOOKUP($A516,Economática!$A$3:$AI$823,28,FALSE)=\"-\"),1/0,VLOOKUP($A516,Economática!$A$3:$AI$823,28,FALSE)))","v":""},{"$f":"IF($A516=\"\",\"\",IF(OR(VLOOKUP($A516,Economática!$A$3:$AI$823,29,FALSE)=0,VLOOKUP($A516,Economática!$A$3:$AI$823,29,FALSE)=\"-\"),1/0,VLOOKUP($A516,Economática!$A$3:$AI$823,29,FALSE)))","v":""},{"$f":"IF($A516=\"\",\"\",IF(OR(VLOOKUP($A516,Economática!$A$3:$AI$823,30,FALSE)/E516=0,VLOOKUP($A516,Economática!$A$3:$AI$823,30,FALSE)/E516=\"-\",VLOOKUP($A516,Economática!$A$3:$AI$823,30,FALSE)/E516<33.33%,VLOOKUP($A516,Economática!$A$3:$AI$823,30,FALSE)/E516>100%),1/0,VLOOKUP($A516,Economática!$A$3:$AI$823,30,FALSE)/E516))","v":""},"",{"$f":"IF($A516=\"\",\"\",IF(OR(VLOOKUP($A516,Economática!$A$3:$AI$823,25,FALSE)=0,VLOOKUP($A516,Economática!$A$3:$AI$823,25,FALSE)=\"-\"),1/0,VLOOKUP($A516,Economática!$A$3:$AI$823,25,FALSE)))","v":""},{"$f":"CONCATENATE(Economática!B494,\" \",Economática!C494)","v":" "}]
[{"$f":"IF(Economática!AG495=\"\",\"\",Economática!AG495)","v":""},{"$f":"IF($A517=\"\",\"\",VLOOKUP(VLOOKUP($A517,Economática!$A$3:$AI$823,6,FALSE),Correção!$B$16:$C$36,2,FALSE))","v":""},{"$f":"IF(Economática!B495=\"\",\"\",Economática!B495)","v":""},{"$f":"IF($A517=\"\",\"\",IF(OR(VLOOKUP($A517,Economática!$A$3:$AI$823,8,FALSE)=0,VLOOKUP($A517,Economática!$A$3:$AI$823,8,FALSE)=\"-\"),1/0,VLOOKUP($A517,Economática!$A$3:$AI$823,8,FALSE)))","v":""},{"$f":"IF(A517=\"\",\"\",IF(ISERROR(VLOOKUP(A517,Correção!$B$2:$G$13,9,FALSE)),VLOOKUP($A517,Economática!$A$3:$AI$823,9,FALSE),VLOOKUP(A517,Correção!$B$2:$G$13,9,FALSE)))","v":""},{"$f":"IF($A517=\"\",\"\",Economática!G495)","v":""},{"$f":"IF($A517=\"\",\"\",IF(OR(VLOOKUP($A517,Economática!$A$3:$AI$823,10,FALSE)=0,VLOOKUP($A517,Economática!$A$3:$AI$823,10,FALSE)=\"-\"),1/0,VLOOKUP($A517,Economática!$A$3:$AI$823,10,FALSE)))","v":""},{"$f":"IF($A517=\"\",\"\",IF(OR(VLOOKUP($A517,Economática!$A$3:$AI$823,11,FALSE)=0,VLOOKUP($A517,Economática!$A$3:$AI$823,11,FALSE)=\"-\"),1/0,VLOOKUP($A517,Economática!$A$3:$AI$823,11,FALSE)))","v":""},{"$f":"IF($A517=\"\",\"\",IF(OR(VLOOKUP($A517,Economática!$A$3:$AI$823,12,FALSE)=0,VLOOKUP($A517,Economática!$A$3:$AI$823,12,FALSE)=\"-\"),1/0,VLOOKUP($A517,Economática!$A$3:$AI$823,12,FALSE)))","v":""},{"$f":"IF($A517=\"\",\"\",IF(OR(VLOOKUP($A517,Economática!$A$3:$AI$823,13,FALSE)=0,VLOOKUP($A517,Economática!$A$3:$AI$823,13,FALSE)=\"-\"),1/0,VLOOKUP($A517,Economática!$A$3:$AI$823,13,FALSE)))","v":""},{"$f":"IF($A517=\"\",\"\",IF(OR(VLOOKUP($A517,Economática!$A$3:$AI$823,14,FALSE)=0,VLOOKUP($A517,Economática!$A$3:$AI$823,14,FALSE)=\"-\"),1/0,VLOOKUP($A517,Economática!$A$3:$AI$823,14,FALSE)))","v":""},{"$f":"IF($A517=\"\",\"\",IF(OR(VLOOKUP($A517,Economática!$A$3:$AI$823,15,FALSE)=0,VLOOKUP($A517,Economática!$A$3:$AI$823,15,FALSE)=\"-\"),1/0,VLOOKUP($A517,Economática!$A$3:$AI$823,15,FALSE)))","v":""},{"$f":"IF($A517=\"\",\"\",IF(OR(VLOOKUP($A517,Economática!$A$3:$AI$823,16,FALSE)=0,VLOOKUP($A517,Economática!$A$3:$AI$823,16,FALSE)=\"-\"),1/0,VLOOKUP($A517,Economática!$A$3:$AI$823,16,FALSE)))","v":""},{"$f":"IF($A517=\"\",\"\",IF(OR(VLOOKUP($A517,Economática!$A$3:$AI$823,17,FALSE)=0,VLOOKUP($A517,Economática!$A$3:$AI$823,17,FALSE)=\"-\"),1/0,VLOOKUP($A517,Economática!$A$3:$AI$823,17,FALSE)))","v":""},{"$f":"IF($A517=\"\",\"\",IF(OR(VLOOKUP($A517,Economática!$A$3:$AI$823,18,FALSE)=0,VLOOKUP($A517,Economática!$A$3:$AI$823,18,FALSE)=\"-\"),1/0,VLOOKUP($A517,Economática!$A$3:$AI$823,18,FALSE)))","v":""},{"$f":"IF($A517=\"\",\"\",IF(OR(VLOOKUP($A517,Economática!$A$3:$AI$823,19,FALSE)=0,VLOOKUP($A517,Economática!$A$3:$AI$823,19,FALSE)=\"-\"),1/0,VLOOKUP($A517,Economática!$A$3:$AI$823,19,FALSE)))","v":""},{"$f":"IF($A517=\"\",\"\",VLOOKUP($A517,Economática!$A$3:$AI$823,20,FALSE)/E517)","v":""},"","","",{"$f":"IF($A517=\"\",\"\",IF(OR(VLOOKUP($A517,Economática!$A$3:$AI$823,21,FALSE)/100=0,VLOOKUP($A517,Economática!$A$3:$AI$823,21,FALSE)/100=\"-\"),1/0,VLOOKUP($A517,Economática!$A$3:$AI$823,21,FALSE)/100))","v":""},{"$f":"IF($A517=\"\",\"\",IF(OR(VLOOKUP($A517,Economática!$A$3:$AI$823,22,FALSE)/100=0,VLOOKUP($A517,Economática!$A$3:$AI$823,22,FALSE)/100=\"-\"),1/0,VLOOKUP($A517,Economática!$A$3:$AI$823,22,FALSE)/100))","v":""},{"$f":"IF($A517=\"\",\"\",IF(OR(VLOOKUP($A517,Economática!$A$3:$AI$823,23,FALSE)=0,VLOOKUP($A517,Economática!$A$3:$AI$823,23,FALSE)=\"-\"),1/0,VLOOKUP($A517,Economática!$A$3:$AI$823,23,FALSE)))","v":""},{"$f":"IF($A517=\"\",\"\",IF(OR(VLOOKUP($A517,Economática!$A$3:$AI$823,24,FALSE)=0,VLOOKUP($A517,Economática!$A$3:$AI$823,24,FALSE)=\"-\"),1/0,VLOOKUP($A517,Economática!$A$3:$AI$823,24,FALSE)))","v":""},{"$f":"IF($A517=\"\",\"\",IF(OR(VLOOKUP($A517,Economática!$A$3:$AI$823,25,FALSE)=0,VLOOKUP($A517,Economática!$A$3:$AI$823,25,FALSE)=\"-\"),1/0,VLOOKUP($A517,Economática!$A$3:$AI$823,25,FALSE)))","v":""},{"$f":"IF($A517=\"\",\"\",IF(ISERROR((F517+VLOOKUP($A517,Economática!$A$3:$AI$823,26,FALSE))/Y517),(F517+VLOOKUP($A517,Economática!$A$3:$AI$823,26,FALSE))/Y517,(F517+VLOOKUP($A517,Economática!$A$3:$AI$823,26,FALSE))/Y517))","v":""},{"$f":"IF($A517=\"\",\"\",IF(OR(-VLOOKUP($A517,Economática!$A$3:$AI$823,27,FALSE)=0,-VLOOKUP($A517,Economática!$A$3:$AI$823,27,FALSE)=\"-\"),1/0,-VLOOKUP($A517,Economática!$A$3:$AI$823,27,FALSE)))","v":""},"",{"$f":"IF($A517=\"\",\"\",IF(OR(VLOOKUP($A517,Economática!$A$3:$AI$823,28,FALSE)=0,VLOOKUP($A517,Economática!$A$3:$AI$823,28,FALSE)=\"-\"),1/0,VLOOKUP($A517,Economática!$A$3:$AI$823,28,FALSE)))","v":""},{"$f":"IF($A517=\"\",\"\",IF(OR(VLOOKUP($A517,Economática!$A$3:$AI$823,29,FALSE)=0,VLOOKUP($A517,Economática!$A$3:$AI$823,29,FALSE)=\"-\"),1/0,VLOOKUP($A517,Economática!$A$3:$AI$823,29,FALSE)))","v":""},{"$f":"IF($A517=\"\",\"\",IF(OR(VLOOKUP($A517,Economática!$A$3:$AI$823,30,FALSE)/E517=0,VLOOKUP($A517,Economática!$A$3:$AI$823,30,FALSE)/E517=\"-\",VLOOKUP($A517,Economática!$A$3:$AI$823,30,FALSE)/E517<33.33%,VLOOKUP($A517,Economática!$A$3:$AI$823,30,FALSE)/E517>100%),1/0,VLOOKUP($A517,Economática!$A$3:$AI$823,30,FALSE)/E517))","v":""},"",{"$f":"IF($A517=\"\",\"\",IF(OR(VLOOKUP($A517,Economática!$A$3:$AI$823,25,FALSE)=0,VLOOKUP($A517,Economática!$A$3:$AI$823,25,FALSE)=\"-\"),1/0,VLOOKUP($A517,Economática!$A$3:$AI$823,25,FALSE)))","v":""},{"$f":"CONCATENATE(Economática!B495,\" \",Economática!C495)","v":" "}]
[{"$f":"IF(Economática!AG496=\"\",\"\",Economática!AG496)","v":""},{"$f":"IF($A518=\"\",\"\",VLOOKUP(VLOOKUP($A518,Economática!$A$3:$AI$823,6,FALSE),Correção!$B$16:$C$36,2,FALSE))","v":""},{"$f":"IF(Economática!B496=\"\",\"\",Economática!B496)","v":""},{"$f":"IF($A518=\"\",\"\",IF(OR(VLOOKUP($A518,Economática!$A$3:$AI$823,8,FALSE)=0,VLOOKUP($A518,Economática!$A$3:$AI$823,8,FALSE)=\"-\"),1/0,VLOOKUP($A518,Economática!$A$3:$AI$823,8,FALSE)))","v":""},{"$f":"IF(A518=\"\",\"\",IF(ISERROR(VLOOKUP(A518,Correção!$B$2:$G$13,9,FALSE)),VLOOKUP($A518,Economática!$A$3:$AI$823,9,FALSE),VLOOKUP(A518,Correção!$B$2:$G$13,9,FALSE)))","v":""},{"$f":"IF($A518=\"\",\"\",Economática!G496)","v":""},{"$f":"IF($A518=\"\",\"\",IF(OR(VLOOKUP($A518,Economática!$A$3:$AI$823,10,FALSE)=0,VLOOKUP($A518,Economática!$A$3:$AI$823,10,FALSE)=\"-\"),1/0,VLOOKUP($A518,Economática!$A$3:$AI$823,10,FALSE)))","v":""},{"$f":"IF($A518=\"\",\"\",IF(OR(VLOOKUP($A518,Economática!$A$3:$AI$823,11,FALSE)=0,VLOOKUP($A518,Economática!$A$3:$AI$823,11,FALSE)=\"-\"),1/0,VLOOKUP($A518,Economática!$A$3:$AI$823,11,FALSE)))","v":""},{"$f":"IF($A518=\"\",\"\",IF(OR(VLOOKUP($A518,Economática!$A$3:$AI$823,12,FALSE)=0,VLOOKUP($A518,Economática!$A$3:$AI$823,12,FALSE)=\"-\"),1/0,VLOOKUP($A518,Economática!$A$3:$AI$823,12,FALSE)))","v":""},{"$f":"IF($A518=\"\",\"\",IF(OR(VLOOKUP($A518,Economática!$A$3:$AI$823,13,FALSE)=0,VLOOKUP($A518,Economática!$A$3:$AI$823,13,FALSE)=\"-\"),1/0,VLOOKUP($A518,Economática!$A$3:$AI$823,13,FALSE)))","v":""},{"$f":"IF($A518=\"\",\"\",IF(OR(VLOOKUP($A518,Economática!$A$3:$AI$823,14,FALSE)=0,VLOOKUP($A518,Economática!$A$3:$AI$823,14,FALSE)=\"-\"),1/0,VLOOKUP($A518,Economática!$A$3:$AI$823,14,FALSE)))","v":""},{"$f":"IF($A518=\"\",\"\",IF(OR(VLOOKUP($A518,Economática!$A$3:$AI$823,15,FALSE)=0,VLOOKUP($A518,Economática!$A$3:$AI$823,15,FALSE)=\"-\"),1/0,VLOOKUP($A518,Economática!$A$3:$AI$823,15,FALSE)))","v":""},{"$f":"IF($A518=\"\",\"\",IF(OR(VLOOKUP($A518,Economática!$A$3:$AI$823,16,FALSE)=0,VLOOKUP($A518,Economática!$A$3:$AI$823,16,FALSE)=\"-\"),1/0,VLOOKUP($A518,Economática!$A$3:$AI$823,16,FALSE)))","v":""},{"$f":"IF($A518=\"\",\"\",IF(OR(VLOOKUP($A518,Economática!$A$3:$AI$823,17,FALSE)=0,VLOOKUP($A518,Economática!$A$3:$AI$823,17,FALSE)=\"-\"),1/0,VLOOKUP($A518,Economática!$A$3:$AI$823,17,FALSE)))","v":""},{"$f":"IF($A518=\"\",\"\",IF(OR(VLOOKUP($A518,Economática!$A$3:$AI$823,18,FALSE)=0,VLOOKUP($A518,Economática!$A$3:$AI$823,18,FALSE)=\"-\"),1/0,VLOOKUP($A518,Economática!$A$3:$AI$823,18,FALSE)))","v":""},{"$f":"IF($A518=\"\",\"\",IF(OR(VLOOKUP($A518,Economática!$A$3:$AI$823,19,FALSE)=0,VLOOKUP($A518,Economática!$A$3:$AI$823,19,FALSE)=\"-\"),1/0,VLOOKUP($A518,Economática!$A$3:$AI$823,19,FALSE)))","v":""},{"$f":"IF($A518=\"\",\"\",VLOOKUP($A518,Economática!$A$3:$AI$823,20,FALSE)/E518)","v":""},"","","",{"$f":"IF($A518=\"\",\"\",IF(OR(VLOOKUP($A518,Economática!$A$3:$AI$823,21,FALSE)/100=0,VLOOKUP($A518,Economática!$A$3:$AI$823,21,FALSE)/100=\"-\"),1/0,VLOOKUP($A518,Economática!$A$3:$AI$823,21,FALSE)/100))","v":""},{"$f":"IF($A518=\"\",\"\",IF(OR(VLOOKUP($A518,Economática!$A$3:$AI$823,22,FALSE)/100=0,VLOOKUP($A518,Economática!$A$3:$AI$823,22,FALSE)/100=\"-\"),1/0,VLOOKUP($A518,Economática!$A$3:$AI$823,22,FALSE)/100))","v":""},{"$f":"IF($A518=\"\",\"\",IF(OR(VLOOKUP($A518,Economática!$A$3:$AI$823,23,FALSE)=0,VLOOKUP($A518,Economática!$A$3:$AI$823,23,FALSE)=\"-\"),1/0,VLOOKUP($A518,Economática!$A$3:$AI$823,23,FALSE)))","v":""},{"$f":"IF($A518=\"\",\"\",IF(OR(VLOOKUP($A518,Economática!$A$3:$AI$823,24,FALSE)=0,VLOOKUP($A518,Economática!$A$3:$AI$823,24,FALSE)=\"-\"),1/0,VLOOKUP($A518,Economática!$A$3:$AI$823,24,FALSE)))","v":""},{"$f":"IF($A518=\"\",\"\",IF(OR(VLOOKUP($A518,Economática!$A$3:$AI$823,25,FALSE)=0,VLOOKUP($A518,Economática!$A$3:$AI$823,25,FALSE)=\"-\"),1/0,VLOOKUP($A518,Economática!$A$3:$AI$823,25,FALSE)))","v":""},{"$f":"IF($A518=\"\",\"\",IF(ISERROR((F518+VLOOKUP($A518,Economática!$A$3:$AI$823,26,FALSE))/Y518),(F518+VLOOKUP($A518,Economática!$A$3:$AI$823,26,FALSE))/Y518,(F518+VLOOKUP($A518,Economática!$A$3:$AI$823,26,FALSE))/Y518))","v":""},{"$f":"IF($A518=\"\",\"\",IF(OR(-VLOOKUP($A518,Economática!$A$3:$AI$823,27,FALSE)=0,-VLOOKUP($A518,Economática!$A$3:$AI$823,27,FALSE)=\"-\"),1/0,-VLOOKUP($A518,Economática!$A$3:$AI$823,27,FALSE)))","v":""},"",{"$f":"IF($A518=\"\",\"\",IF(OR(VLOOKUP($A518,Economática!$A$3:$AI$823,28,FALSE)=0,VLOOKUP($A518,Economática!$A$3:$AI$823,28,FALSE)=\"-\"),1/0,VLOOKUP($A518,Economática!$A$3:$AI$823,28,FALSE)))","v":""},{"$f":"IF($A518=\"\",\"\",IF(OR(VLOOKUP($A518,Economática!$A$3:$AI$823,29,FALSE)=0,VLOOKUP($A518,Economática!$A$3:$AI$823,29,FALSE)=\"-\"),1/0,VLOOKUP($A518,Economática!$A$3:$AI$823,29,FALSE)))","v":""},{"$f":"IF($A518=\"\",\"\",IF(OR(VLOOKUP($A518,Economática!$A$3:$AI$823,30,FALSE)/E518=0,VLOOKUP($A518,Economática!$A$3:$AI$823,30,FALSE)/E518=\"-\",VLOOKUP($A518,Economática!$A$3:$AI$823,30,FALSE)/E518<33.33%,VLOOKUP($A518,Economática!$A$3:$AI$823,30,FALSE)/E518>100%),1/0,VLOOKUP($A518,Economática!$A$3:$AI$823,30,FALSE)/E518))","v":""},"",{"$f":"IF($A518=\"\",\"\",IF(OR(VLOOKUP($A518,Economática!$A$3:$AI$823,25,FALSE)=0,VLOOKUP($A518,Economática!$A$3:$AI$823,25,FALSE)=\"-\"),1/0,VLOOKUP($A518,Economática!$A$3:$AI$823,25,FALSE)))","v":""},{"$f":"CONCATENATE(Economática!B496,\" \",Economática!C496)","v":" "}]
[{"$f":"IF(Economática!AG497=\"\",\"\",Economática!AG497)","v":""},{"$f":"IF($A519=\"\",\"\",VLOOKUP(VLOOKUP($A519,Economática!$A$3:$AI$823,6,FALSE),Correção!$B$16:$C$36,2,FALSE))","v":""},{"$f":"IF(Economática!B497=\"\",\"\",Economática!B497)","v":""},{"$f":"IF($A519=\"\",\"\",IF(OR(VLOOKUP($A519,Economática!$A$3:$AI$823,8,FALSE)=0,VLOOKUP($A519,Economática!$A$3:$AI$823,8,FALSE)=\"-\"),1/0,VLOOKUP($A519,Economática!$A$3:$AI$823,8,FALSE)))","v":""},{"$f":"IF(A519=\"\",\"\",IF(ISERROR(VLOOKUP(A519,Correção!$B$2:$G$13,9,FALSE)),VLOOKUP($A519,Economática!$A$3:$AI$823,9,FALSE),VLOOKUP(A519,Correção!$B$2:$G$13,9,FALSE)))","v":""},{"$f":"IF($A519=\"\",\"\",Economática!G497)","v":""},{"$f":"IF($A519=\"\",\"\",IF(OR(VLOOKUP($A519,Economática!$A$3:$AI$823,10,FALSE)=0,VLOOKUP($A519,Economática!$A$3:$AI$823,10,FALSE)=\"-\"),1/0,VLOOKUP($A519,Economática!$A$3:$AI$823,10,FALSE)))","v":""},{"$f":"IF($A519=\"\",\"\",IF(OR(VLOOKUP($A519,Economática!$A$3:$AI$823,11,FALSE)=0,VLOOKUP($A519,Economática!$A$3:$AI$823,11,FALSE)=\"-\"),1/0,VLOOKUP($A519,Economática!$A$3:$AI$823,11,FALSE)))","v":""},{"$f":"IF($A519=\"\",\"\",IF(OR(VLOOKUP($A519,Economática!$A$3:$AI$823,12,FALSE)=0,VLOOKUP($A519,Economática!$A$3:$AI$823,12,FALSE)=\"-\"),1/0,VLOOKUP($A519,Economática!$A$3:$AI$823,12,FALSE)))","v":""},{"$f":"IF($A519=\"\",\"\",IF(OR(VLOOKUP($A519,Economática!$A$3:$AI$823,13,FALSE)=0,VLOOKUP($A519,Economática!$A$3:$AI$823,13,FALSE)=\"-\"),1/0,VLOOKUP($A519,Economática!$A$3:$AI$823,13,FALSE)))","v":""},{"$f":"IF($A519=\"\",\"\",IF(OR(VLOOKUP($A519,Economática!$A$3:$AI$823,14,FALSE)=0,VLOOKUP($A519,Economática!$A$3:$AI$823,14,FALSE)=\"-\"),1/0,VLOOKUP($A519,Economática!$A$3:$AI$823,14,FALSE)))","v":""},{"$f":"IF($A519=\"\",\"\",IF(OR(VLOOKUP($A519,Economática!$A$3:$AI$823,15,FALSE)=0,VLOOKUP($A519,Economática!$A$3:$AI$823,15,FALSE)=\"-\"),1/0,VLOOKUP($A519,Economática!$A$3:$AI$823,15,FALSE)))","v":""},{"$f":"IF($A519=\"\",\"\",IF(OR(VLOOKUP($A519,Economática!$A$3:$AI$823,16,FALSE)=0,VLOOKUP($A519,Economática!$A$3:$AI$823,16,FALSE)=\"-\"),1/0,VLOOKUP($A519,Economática!$A$3:$AI$823,16,FALSE)))","v":""},{"$f":"IF($A519=\"\",\"\",IF(OR(VLOOKUP($A519,Economática!$A$3:$AI$823,17,FALSE)=0,VLOOKUP($A519,Economática!$A$3:$AI$823,17,FALSE)=\"-\"),1/0,VLOOKUP($A519,Economática!$A$3:$AI$823,17,FALSE)))","v":""},{"$f":"IF($A519=\"\",\"\",IF(OR(VLOOKUP($A519,Economática!$A$3:$AI$823,18,FALSE)=0,VLOOKUP($A519,Economática!$A$3:$AI$823,18,FALSE)=\"-\"),1/0,VLOOKUP($A519,Economática!$A$3:$AI$823,18,FALSE)))","v":""},{"$f":"IF($A519=\"\",\"\",IF(OR(VLOOKUP($A519,Economática!$A$3:$AI$823,19,FALSE)=0,VLOOKUP($A519,Economática!$A$3:$AI$823,19,FALSE)=\"-\"),1/0,VLOOKUP($A519,Economática!$A$3:$AI$823,19,FALSE)))","v":""},{"$f":"IF($A519=\"\",\"\",VLOOKUP($A519,Economática!$A$3:$AI$823,20,FALSE)/E519)","v":""},"","","",{"$f":"IF($A519=\"\",\"\",IF(OR(VLOOKUP($A519,Economática!$A$3:$AI$823,21,FALSE)/100=0,VLOOKUP($A519,Economática!$A$3:$AI$823,21,FALSE)/100=\"-\"),1/0,VLOOKUP($A519,Economática!$A$3:$AI$823,21,FALSE)/100))","v":""},{"$f":"IF($A519=\"\",\"\",IF(OR(VLOOKUP($A519,Economática!$A$3:$AI$823,22,FALSE)/100=0,VLOOKUP($A519,Economática!$A$3:$AI$823,22,FALSE)/100=\"-\"),1/0,VLOOKUP($A519,Economática!$A$3:$AI$823,22,FALSE)/100))","v":""},{"$f":"IF($A519=\"\",\"\",IF(OR(VLOOKUP($A519,Economática!$A$3:$AI$823,23,FALSE)=0,VLOOKUP($A519,Economática!$A$3:$AI$823,23,FALSE)=\"-\"),1/0,VLOOKUP($A519,Economática!$A$3:$AI$823,23,FALSE)))","v":""},{"$f":"IF($A519=\"\",\"\",IF(OR(VLOOKUP($A519,Economática!$A$3:$AI$823,24,FALSE)=0,VLOOKUP($A519,Economática!$A$3:$AI$823,24,FALSE)=\"-\"),1/0,VLOOKUP($A519,Economática!$A$3:$AI$823,24,FALSE)))","v":""},{"$f":"IF($A519=\"\",\"\",IF(OR(VLOOKUP($A519,Economática!$A$3:$AI$823,25,FALSE)=0,VLOOKUP($A519,Economática!$A$3:$AI$823,25,FALSE)=\"-\"),1/0,VLOOKUP($A519,Economática!$A$3:$AI$823,25,FALSE)))","v":""},{"$f":"IF($A519=\"\",\"\",IF(ISERROR((F519+VLOOKUP($A519,Economática!$A$3:$AI$823,26,FALSE))/Y519),(F519+VLOOKUP($A519,Economática!$A$3:$AI$823,26,FALSE))/Y519,(F519+VLOOKUP($A519,Economática!$A$3:$AI$823,26,FALSE))/Y519))","v":""},{"$f":"IF($A519=\"\",\"\",IF(OR(-VLOOKUP($A519,Economática!$A$3:$AI$823,27,FALSE)=0,-VLOOKUP($A519,Economática!$A$3:$AI$823,27,FALSE)=\"-\"),1/0,-VLOOKUP($A519,Economática!$A$3:$AI$823,27,FALSE)))","v":""},"",{"$f":"IF($A519=\"\",\"\",IF(OR(VLOOKUP($A519,Economática!$A$3:$AI$823,28,FALSE)=0,VLOOKUP($A519,Economática!$A$3:$AI$823,28,FALSE)=\"-\"),1/0,VLOOKUP($A519,Economática!$A$3:$AI$823,28,FALSE)))","v":""},{"$f":"IF($A519=\"\",\"\",IF(OR(VLOOKUP($A519,Economática!$A$3:$AI$823,29,FALSE)=0,VLOOKUP($A519,Economática!$A$3:$AI$823,29,FALSE)=\"-\"),1/0,VLOOKUP($A519,Economática!$A$3:$AI$823,29,FALSE)))","v":""},{"$f":"IF($A519=\"\",\"\",IF(OR(VLOOKUP($A519,Economática!$A$3:$AI$823,30,FALSE)/E519=0,VLOOKUP($A519,Economática!$A$3:$AI$823,30,FALSE)/E519=\"-\",VLOOKUP($A519,Economática!$A$3:$AI$823,30,FALSE)/E519<33.33%,VLOOKUP($A519,Economática!$A$3:$AI$823,30,FALSE)/E519>100%),1/0,VLOOKUP($A519,Economática!$A$3:$AI$823,30,FALSE)/E519))","v":""},"",{"$f":"IF($A519=\"\",\"\",IF(OR(VLOOKUP($A519,Economática!$A$3:$AI$823,25,FALSE)=0,VLOOKUP($A519,Economática!$A$3:$AI$823,25,FALSE)=\"-\"),1/0,VLOOKUP($A519,Economática!$A$3:$AI$823,25,FALSE)))","v":""},{"$f":"CONCATENATE(Economática!B497,\" \",Economática!C497)","v":" "}]
[{"$f":"IF(Economática!AG498=\"\",\"\",Economática!AG498)","v":""},{"$f":"IF($A520=\"\",\"\",VLOOKUP(VLOOKUP($A520,Economática!$A$3:$AI$823,6,FALSE),Correção!$B$16:$C$36,2,FALSE))","v":""},{"$f":"IF(Economática!B498=\"\",\"\",Economática!B498)","v":""},{"$f":"IF($A520=\"\",\"\",IF(OR(VLOOKUP($A520,Economática!$A$3:$AI$823,8,FALSE)=0,VLOOKUP($A520,Economática!$A$3:$AI$823,8,FALSE)=\"-\"),1/0,VLOOKUP($A520,Economática!$A$3:$AI$823,8,FALSE)))","v":""},{"$f":"IF(A520=\"\",\"\",IF(ISERROR(VLOOKUP(A520,Correção!$B$2:$G$13,9,FALSE)),VLOOKUP($A520,Economática!$A$3:$AI$823,9,FALSE),VLOOKUP(A520,Correção!$B$2:$G$13,9,FALSE)))","v":""},{"$f":"IF($A520=\"\",\"\",Economática!G498)","v":""},{"$f":"IF($A520=\"\",\"\",IF(OR(VLOOKUP($A520,Economática!$A$3:$AI$823,10,FALSE)=0,VLOOKUP($A520,Economática!$A$3:$AI$823,10,FALSE)=\"-\"),1/0,VLOOKUP($A520,Economática!$A$3:$AI$823,10,FALSE)))","v":""},{"$f":"IF($A520=\"\",\"\",IF(OR(VLOOKUP($A520,Economática!$A$3:$AI$823,11,FALSE)=0,VLOOKUP($A520,Economática!$A$3:$AI$823,11,FALSE)=\"-\"),1/0,VLOOKUP($A520,Economática!$A$3:$AI$823,11,FALSE)))","v":""},{"$f":"IF($A520=\"\",\"\",IF(OR(VLOOKUP($A520,Economática!$A$3:$AI$823,12,FALSE)=0,VLOOKUP($A520,Economática!$A$3:$AI$823,12,FALSE)=\"-\"),1/0,VLOOKUP($A520,Economática!$A$3:$AI$823,12,FALSE)))","v":""},{"$f":"IF($A520=\"\",\"\",IF(OR(VLOOKUP($A520,Economática!$A$3:$AI$823,13,FALSE)=0,VLOOKUP($A520,Economática!$A$3:$AI$823,13,FALSE)=\"-\"),1/0,VLOOKUP($A520,Economática!$A$3:$AI$823,13,FALSE)))","v":""},{"$f":"IF($A520=\"\",\"\",IF(OR(VLOOKUP($A520,Economática!$A$3:$AI$823,14,FALSE)=0,VLOOKUP($A520,Economática!$A$3:$AI$823,14,FALSE)=\"-\"),1/0,VLOOKUP($A520,Economática!$A$3:$AI$823,14,FALSE)))","v":""},{"$f":"IF($A520=\"\",\"\",IF(OR(VLOOKUP($A520,Economática!$A$3:$AI$823,15,FALSE)=0,VLOOKUP($A520,Economática!$A$3:$AI$823,15,FALSE)=\"-\"),1/0,VLOOKUP($A520,Economática!$A$3:$AI$823,15,FALSE)))","v":""},{"$f":"IF($A520=\"\",\"\",IF(OR(VLOOKUP($A520,Economática!$A$3:$AI$823,16,FALSE)=0,VLOOKUP($A520,Economática!$A$3:$AI$823,16,FALSE)=\"-\"),1/0,VLOOKUP($A520,Economática!$A$3:$AI$823,16,FALSE)))","v":""},{"$f":"IF($A520=\"\",\"\",IF(OR(VLOOKUP($A520,Economática!$A$3:$AI$823,17,FALSE)=0,VLOOKUP($A520,Economática!$A$3:$AI$823,17,FALSE)=\"-\"),1/0,VLOOKUP($A520,Economática!$A$3:$AI$823,17,FALSE)))","v":""},{"$f":"IF($A520=\"\",\"\",IF(OR(VLOOKUP($A520,Economática!$A$3:$AI$823,18,FALSE)=0,VLOOKUP($A520,Economática!$A$3:$AI$823,18,FALSE)=\"-\"),1/0,VLOOKUP($A520,Economática!$A$3:$AI$823,18,FALSE)))","v":""},{"$f":"IF($A520=\"\",\"\",IF(OR(VLOOKUP($A520,Economática!$A$3:$AI$823,19,FALSE)=0,VLOOKUP($A520,Economática!$A$3:$AI$823,19,FALSE)=\"-\"),1/0,VLOOKUP($A520,Economática!$A$3:$AI$823,19,FALSE)))","v":""},{"$f":"IF($A520=\"\",\"\",VLOOKUP($A520,Economática!$A$3:$AI$823,20,FALSE)/E520)","v":""},"","","",{"$f":"IF($A520=\"\",\"\",IF(OR(VLOOKUP($A520,Economática!$A$3:$AI$823,21,FALSE)/100=0,VLOOKUP($A520,Economática!$A$3:$AI$823,21,FALSE)/100=\"-\"),1/0,VLOOKUP($A520,Economática!$A$3:$AI$823,21,FALSE)/100))","v":""},{"$f":"IF($A520=\"\",\"\",IF(OR(VLOOKUP($A520,Economática!$A$3:$AI$823,22,FALSE)/100=0,VLOOKUP($A520,Economática!$A$3:$AI$823,22,FALSE)/100=\"-\"),1/0,VLOOKUP($A520,Economática!$A$3:$AI$823,22,FALSE)/100))","v":""},{"$f":"IF($A520=\"\",\"\",IF(OR(VLOOKUP($A520,Economática!$A$3:$AI$823,23,FALSE)=0,VLOOKUP($A520,Economática!$A$3:$AI$823,23,FALSE)=\"-\"),1/0,VLOOKUP($A520,Economática!$A$3:$AI$823,23,FALSE)))","v":""},{"$f":"IF($A520=\"\",\"\",IF(OR(VLOOKUP($A520,Economática!$A$3:$AI$823,24,FALSE)=0,VLOOKUP($A520,Economática!$A$3:$AI$823,24,FALSE)=\"-\"),1/0,VLOOKUP($A520,Economática!$A$3:$AI$823,24,FALSE)))","v":""},{"$f":"IF($A520=\"\",\"\",IF(OR(VLOOKUP($A520,Economática!$A$3:$AI$823,25,FALSE)=0,VLOOKUP($A520,Economática!$A$3:$AI$823,25,FALSE)=\"-\"),1/0,VLOOKUP($A520,Economática!$A$3:$AI$823,25,FALSE)))","v":""},{"$f":"IF($A520=\"\",\"\",IF(ISERROR((F520+VLOOKUP($A520,Economática!$A$3:$AI$823,26,FALSE))/Y520),(F520+VLOOKUP($A520,Economática!$A$3:$AI$823,26,FALSE))/Y520,(F520+VLOOKUP($A520,Economática!$A$3:$AI$823,26,FALSE))/Y520))","v":""},{"$f":"IF($A520=\"\",\"\",IF(OR(-VLOOKUP($A520,Economática!$A$3:$AI$823,27,FALSE)=0,-VLOOKUP($A520,Economática!$A$3:$AI$823,27,FALSE)=\"-\"),1/0,-VLOOKUP($A520,Economática!$A$3:$AI$823,27,FALSE)))","v":""},"",{"$f":"IF($A520=\"\",\"\",IF(OR(VLOOKUP($A520,Economática!$A$3:$AI$823,28,FALSE)=0,VLOOKUP($A520,Economática!$A$3:$AI$823,28,FALSE)=\"-\"),1/0,VLOOKUP($A520,Economática!$A$3:$AI$823,28,FALSE)))","v":""},{"$f":"IF($A520=\"\",\"\",IF(OR(VLOOKUP($A520,Economática!$A$3:$AI$823,29,FALSE)=0,VLOOKUP($A520,Economática!$A$3:$AI$823,29,FALSE)=\"-\"),1/0,VLOOKUP($A520,Economática!$A$3:$AI$823,29,FALSE)))","v":""},{"$f":"IF($A520=\"\",\"\",IF(OR(VLOOKUP($A520,Economática!$A$3:$AI$823,30,FALSE)/E520=0,VLOOKUP($A520,Economática!$A$3:$AI$823,30,FALSE)/E520=\"-\",VLOOKUP($A520,Economática!$A$3:$AI$823,30,FALSE)/E520<33.33%,VLOOKUP($A520,Economática!$A$3:$AI$823,30,FALSE)/E520>100%),1/0,VLOOKUP($A520,Economática!$A$3:$AI$823,30,FALSE)/E520))","v":""},"",{"$f":"IF($A520=\"\",\"\",IF(OR(VLOOKUP($A520,Economática!$A$3:$AI$823,25,FALSE)=0,VLOOKUP($A520,Economática!$A$3:$AI$823,25,FALSE)=\"-\"),1/0,VLOOKUP($A520,Economática!$A$3:$AI$823,25,FALSE)))","v":""},{"$f":"CONCATENATE(Economática!B498,\" \",Economática!C498)","v":" "}]
[{"$f":"IF(Economática!AG499=\"\",\"\",Economática!AG499)","v":""},{"$f":"IF($A521=\"\",\"\",VLOOKUP(VLOOKUP($A521,Economática!$A$3:$AI$823,6,FALSE),Correção!$B$16:$C$36,2,FALSE))","v":""},{"$f":"IF(Economática!B499=\"\",\"\",Economática!B499)","v":""},{"$f":"IF($A521=\"\",\"\",IF(OR(VLOOKUP($A521,Economática!$A$3:$AI$823,8,FALSE)=0,VLOOKUP($A521,Economática!$A$3:$AI$823,8,FALSE)=\"-\"),1/0,VLOOKUP($A521,Economática!$A$3:$AI$823,8,FALSE)))","v":""},{"$f":"IF(A521=\"\",\"\",IF(ISERROR(VLOOKUP(A521,Correção!$B$2:$G$13,9,FALSE)),VLOOKUP($A521,Economática!$A$3:$AI$823,9,FALSE),VLOOKUP(A521,Correção!$B$2:$G$13,9,FALSE)))","v":""},{"$f":"IF($A521=\"\",\"\",Economática!G499)","v":""},{"$f":"IF($A521=\"\",\"\",IF(OR(VLOOKUP($A521,Economática!$A$3:$AI$823,10,FALSE)=0,VLOOKUP($A521,Economática!$A$3:$AI$823,10,FALSE)=\"-\"),1/0,VLOOKUP($A521,Economática!$A$3:$AI$823,10,FALSE)))","v":""},{"$f":"IF($A521=\"\",\"\",IF(OR(VLOOKUP($A521,Economática!$A$3:$AI$823,11,FALSE)=0,VLOOKUP($A521,Economática!$A$3:$AI$823,11,FALSE)=\"-\"),1/0,VLOOKUP($A521,Economática!$A$3:$AI$823,11,FALSE)))","v":""},{"$f":"IF($A521=\"\",\"\",IF(OR(VLOOKUP($A521,Economática!$A$3:$AI$823,12,FALSE)=0,VLOOKUP($A521,Economática!$A$3:$AI$823,12,FALSE)=\"-\"),1/0,VLOOKUP($A521,Economática!$A$3:$AI$823,12,FALSE)))","v":""},{"$f":"IF($A521=\"\",\"\",IF(OR(VLOOKUP($A521,Economática!$A$3:$AI$823,13,FALSE)=0,VLOOKUP($A521,Economática!$A$3:$AI$823,13,FALSE)=\"-\"),1/0,VLOOKUP($A521,Economática!$A$3:$AI$823,13,FALSE)))","v":""},{"$f":"IF($A521=\"\",\"\",IF(OR(VLOOKUP($A521,Economática!$A$3:$AI$823,14,FALSE)=0,VLOOKUP($A521,Economática!$A$3:$AI$823,14,FALSE)=\"-\"),1/0,VLOOKUP($A521,Economática!$A$3:$AI$823,14,FALSE)))","v":""},{"$f":"IF($A521=\"\",\"\",IF(OR(VLOOKUP($A521,Economática!$A$3:$AI$823,15,FALSE)=0,VLOOKUP($A521,Economática!$A$3:$AI$823,15,FALSE)=\"-\"),1/0,VLOOKUP($A521,Economática!$A$3:$AI$823,15,FALSE)))","v":""},{"$f":"IF($A521=\"\",\"\",IF(OR(VLOOKUP($A521,Economática!$A$3:$AI$823,16,FALSE)=0,VLOOKUP($A521,Economática!$A$3:$AI$823,16,FALSE)=\"-\"),1/0,VLOOKUP($A521,Economática!$A$3:$AI$823,16,FALSE)))","v":""},{"$f":"IF($A521=\"\",\"\",IF(OR(VLOOKUP($A521,Economática!$A$3:$AI$823,17,FALSE)=0,VLOOKUP($A521,Economática!$A$3:$AI$823,17,FALSE)=\"-\"),1/0,VLOOKUP($A521,Economática!$A$3:$AI$823,17,FALSE)))","v":""},{"$f":"IF($A521=\"\",\"\",IF(OR(VLOOKUP($A521,Economática!$A$3:$AI$823,18,FALSE)=0,VLOOKUP($A521,Economática!$A$3:$AI$823,18,FALSE)=\"-\"),1/0,VLOOKUP($A521,Economática!$A$3:$AI$823,18,FALSE)))","v":""},{"$f":"IF($A521=\"\",\"\",IF(OR(VLOOKUP($A521,Economática!$A$3:$AI$823,19,FALSE)=0,VLOOKUP($A521,Economática!$A$3:$AI$823,19,FALSE)=\"-\"),1/0,VLOOKUP($A521,Economática!$A$3:$AI$823,19,FALSE)))","v":""},{"$f":"IF($A521=\"\",\"\",VLOOKUP($A521,Economática!$A$3:$AI$823,20,FALSE)/E521)","v":""},"","","",{"$f":"IF($A521=\"\",\"\",IF(OR(VLOOKUP($A521,Economática!$A$3:$AI$823,21,FALSE)/100=0,VLOOKUP($A521,Economática!$A$3:$AI$823,21,FALSE)/100=\"-\"),1/0,VLOOKUP($A521,Economática!$A$3:$AI$823,21,FALSE)/100))","v":""},{"$f":"IF($A521=\"\",\"\",IF(OR(VLOOKUP($A521,Economática!$A$3:$AI$823,22,FALSE)/100=0,VLOOKUP($A521,Economática!$A$3:$AI$823,22,FALSE)/100=\"-\"),1/0,VLOOKUP($A521,Economática!$A$3:$AI$823,22,FALSE)/100))","v":""},{"$f":"IF($A521=\"\",\"\",IF(OR(VLOOKUP($A521,Economática!$A$3:$AI$823,23,FALSE)=0,VLOOKUP($A521,Economática!$A$3:$AI$823,23,FALSE)=\"-\"),1/0,VLOOKUP($A521,Economática!$A$3:$AI$823,23,FALSE)))","v":""},{"$f":"IF($A521=\"\",\"\",IF(OR(VLOOKUP($A521,Economática!$A$3:$AI$823,24,FALSE)=0,VLOOKUP($A521,Economática!$A$3:$AI$823,24,FALSE)=\"-\"),1/0,VLOOKUP($A521,Economática!$A$3:$AI$823,24,FALSE)))","v":""},{"$f":"IF($A521=\"\",\"\",IF(OR(VLOOKUP($A521,Economática!$A$3:$AI$823,25,FALSE)=0,VLOOKUP($A521,Economática!$A$3:$AI$823,25,FALSE)=\"-\"),1/0,VLOOKUP($A521,Economática!$A$3:$AI$823,25,FALSE)))","v":""},{"$f":"IF($A521=\"\",\"\",IF(ISERROR((F521+VLOOKUP($A521,Economática!$A$3:$AI$823,26,FALSE))/Y521),(F521+VLOOKUP($A521,Economática!$A$3:$AI$823,26,FALSE))/Y521,(F521+VLOOKUP($A521,Economática!$A$3:$AI$823,26,FALSE))/Y521))","v":""},{"$f":"IF($A521=\"\",\"\",IF(OR(-VLOOKUP($A521,Economática!$A$3:$AI$823,27,FALSE)=0,-VLOOKUP($A521,Economática!$A$3:$AI$823,27,FALSE)=\"-\"),1/0,-VLOOKUP($A521,Economática!$A$3:$AI$823,27,FALSE)))","v":""},"",{"$f":"IF($A521=\"\",\"\",IF(OR(VLOOKUP($A521,Economática!$A$3:$AI$823,28,FALSE)=0,VLOOKUP($A521,Economática!$A$3:$AI$823,28,FALSE)=\"-\"),1/0,VLOOKUP($A521,Economática!$A$3:$AI$823,28,FALSE)))","v":""},{"$f":"IF($A521=\"\",\"\",IF(OR(VLOOKUP($A521,Economática!$A$3:$AI$823,29,FALSE)=0,VLOOKUP($A521,Economática!$A$3:$AI$823,29,FALSE)=\"-\"),1/0,VLOOKUP($A521,Economática!$A$3:$AI$823,29,FALSE)))","v":""},{"$f":"IF($A521=\"\",\"\",IF(OR(VLOOKUP($A521,Economática!$A$3:$AI$823,30,FALSE)/E521=0,VLOOKUP($A521,Economática!$A$3:$AI$823,30,FALSE)/E521=\"-\",VLOOKUP($A521,Economática!$A$3:$AI$823,30,FALSE)/E521<33.33%,VLOOKUP($A521,Economática!$A$3:$AI$823,30,FALSE)/E521>100%),1/0,VLOOKUP($A521,Economática!$A$3:$AI$823,30,FALSE)/E521))","v":""},"",{"$f":"IF($A521=\"\",\"\",IF(OR(VLOOKUP($A521,Economática!$A$3:$AI$823,25,FALSE)=0,VLOOKUP($A521,Economática!$A$3:$AI$823,25,FALSE)=\"-\"),1/0,VLOOKUP($A521,Economática!$A$3:$AI$823,25,FALSE)))","v":""},{"$f":"CONCATENATE(Economática!B499,\" \",Economática!C499)","v":" "}]
[{"$f":"IF(Economática!AG500=\"\",\"\",Economática!AG500)","v":""},{"$f":"IF($A522=\"\",\"\",VLOOKUP(VLOOKUP($A522,Economática!$A$3:$AI$823,6,FALSE),Correção!$B$16:$C$36,2,FALSE))","v":""},{"$f":"IF(Economática!B500=\"\",\"\",Economática!B500)","v":""},{"$f":"IF($A522=\"\",\"\",IF(OR(VLOOKUP($A522,Economática!$A$3:$AI$823,8,FALSE)=0,VLOOKUP($A522,Economática!$A$3:$AI$823,8,FALSE)=\"-\"),1/0,VLOOKUP($A522,Economática!$A$3:$AI$823,8,FALSE)))","v":""},{"$f":"IF(A522=\"\",\"\",IF(ISERROR(VLOOKUP(A522,Correção!$B$2:$G$13,9,FALSE)),VLOOKUP($A522,Economática!$A$3:$AI$823,9,FALSE),VLOOKUP(A522,Correção!$B$2:$G$13,9,FALSE)))","v":""},{"$f":"IF($A522=\"\",\"\",Economática!G500)","v":""},{"$f":"IF($A522=\"\",\"\",IF(OR(VLOOKUP($A522,Economática!$A$3:$AI$823,10,FALSE)=0,VLOOKUP($A522,Economática!$A$3:$AI$823,10,FALSE)=\"-\"),1/0,VLOOKUP($A522,Economática!$A$3:$AI$823,10,FALSE)))","v":""},{"$f":"IF($A522=\"\",\"\",IF(OR(VLOOKUP($A522,Economática!$A$3:$AI$823,11,FALSE)=0,VLOOKUP($A522,Economática!$A$3:$AI$823,11,FALSE)=\"-\"),1/0,VLOOKUP($A522,Economática!$A$3:$AI$823,11,FALSE)))","v":""},{"$f":"IF($A522=\"\",\"\",IF(OR(VLOOKUP($A522,Economática!$A$3:$AI$823,12,FALSE)=0,VLOOKUP($A522,Economática!$A$3:$AI$823,12,FALSE)=\"-\"),1/0,VLOOKUP($A522,Economática!$A$3:$AI$823,12,FALSE)))","v":""},{"$f":"IF($A522=\"\",\"\",IF(OR(VLOOKUP($A522,Economática!$A$3:$AI$823,13,FALSE)=0,VLOOKUP($A522,Economática!$A$3:$AI$823,13,FALSE)=\"-\"),1/0,VLOOKUP($A522,Economática!$A$3:$AI$823,13,FALSE)))","v":""},{"$f":"IF($A522=\"\",\"\",IF(OR(VLOOKUP($A522,Economática!$A$3:$AI$823,14,FALSE)=0,VLOOKUP($A522,Economática!$A$3:$AI$823,14,FALSE)=\"-\"),1/0,VLOOKUP($A522,Economática!$A$3:$AI$823,14,FALSE)))","v":""},{"$f":"IF($A522=\"\",\"\",IF(OR(VLOOKUP($A522,Economática!$A$3:$AI$823,15,FALSE)=0,VLOOKUP($A522,Economática!$A$3:$AI$823,15,FALSE)=\"-\"),1/0,VLOOKUP($A522,Economática!$A$3:$AI$823,15,FALSE)))","v":""},{"$f":"IF($A522=\"\",\"\",IF(OR(VLOOKUP($A522,Economática!$A$3:$AI$823,16,FALSE)=0,VLOOKUP($A522,Economática!$A$3:$AI$823,16,FALSE)=\"-\"),1/0,VLOOKUP($A522,Economática!$A$3:$AI$823,16,FALSE)))","v":""},{"$f":"IF($A522=\"\",\"\",IF(OR(VLOOKUP($A522,Economática!$A$3:$AI$823,17,FALSE)=0,VLOOKUP($A522,Economática!$A$3:$AI$823,17,FALSE)=\"-\"),1/0,VLOOKUP($A522,Economática!$A$3:$AI$823,17,FALSE)))","v":""},{"$f":"IF($A522=\"\",\"\",IF(OR(VLOOKUP($A522,Economática!$A$3:$AI$823,18,FALSE)=0,VLOOKUP($A522,Economática!$A$3:$AI$823,18,FALSE)=\"-\"),1/0,VLOOKUP($A522,Economática!$A$3:$AI$823,18,FALSE)))","v":""},{"$f":"IF($A522=\"\",\"\",IF(OR(VLOOKUP($A522,Economática!$A$3:$AI$823,19,FALSE)=0,VLOOKUP($A522,Economática!$A$3:$AI$823,19,FALSE)=\"-\"),1/0,VLOOKUP($A522,Economática!$A$3:$AI$823,19,FALSE)))","v":""},{"$f":"IF($A522=\"\",\"\",VLOOKUP($A522,Economática!$A$3:$AI$823,20,FALSE)/E522)","v":""},"","","",{"$f":"IF($A522=\"\",\"\",IF(OR(VLOOKUP($A522,Economática!$A$3:$AI$823,21,FALSE)/100=0,VLOOKUP($A522,Economática!$A$3:$AI$823,21,FALSE)/100=\"-\"),1/0,VLOOKUP($A522,Economática!$A$3:$AI$823,21,FALSE)/100))","v":""},{"$f":"IF($A522=\"\",\"\",IF(OR(VLOOKUP($A522,Economática!$A$3:$AI$823,22,FALSE)/100=0,VLOOKUP($A522,Economática!$A$3:$AI$823,22,FALSE)/100=\"-\"),1/0,VLOOKUP($A522,Economática!$A$3:$AI$823,22,FALSE)/100))","v":""},{"$f":"IF($A522=\"\",\"\",IF(OR(VLOOKUP($A522,Economática!$A$3:$AI$823,23,FALSE)=0,VLOOKUP($A522,Economática!$A$3:$AI$823,23,FALSE)=\"-\"),1/0,VLOOKUP($A522,Economática!$A$3:$AI$823,23,FALSE)))","v":""},{"$f":"IF($A522=\"\",\"\",IF(OR(VLOOKUP($A522,Economática!$A$3:$AI$823,24,FALSE)=0,VLOOKUP($A522,Economática!$A$3:$AI$823,24,FALSE)=\"-\"),1/0,VLOOKUP($A522,Economática!$A$3:$AI$823,24,FALSE)))","v":""},{"$f":"IF($A522=\"\",\"\",IF(OR(VLOOKUP($A522,Economática!$A$3:$AI$823,25,FALSE)=0,VLOOKUP($A522,Economática!$A$3:$AI$823,25,FALSE)=\"-\"),1/0,VLOOKUP($A522,Economática!$A$3:$AI$823,25,FALSE)))","v":""},{"$f":"IF($A522=\"\",\"\",IF(ISERROR((F522+VLOOKUP($A522,Economática!$A$3:$AI$823,26,FALSE))/Y522),(F522+VLOOKUP($A522,Economática!$A$3:$AI$823,26,FALSE))/Y522,(F522+VLOOKUP($A522,Economática!$A$3:$AI$823,26,FALSE))/Y522))","v":""},{"$f":"IF($A522=\"\",\"\",IF(OR(-VLOOKUP($A522,Economática!$A$3:$AI$823,27,FALSE)=0,-VLOOKUP($A522,Economática!$A$3:$AI$823,27,FALSE)=\"-\"),1/0,-VLOOKUP($A522,Economática!$A$3:$AI$823,27,FALSE)))","v":""},"",{"$f":"IF($A522=\"\",\"\",IF(OR(VLOOKUP($A522,Economática!$A$3:$AI$823,28,FALSE)=0,VLOOKUP($A522,Economática!$A$3:$AI$823,28,FALSE)=\"-\"),1/0,VLOOKUP($A522,Economática!$A$3:$AI$823,28,FALSE)))","v":""},{"$f":"IF($A522=\"\",\"\",IF(OR(VLOOKUP($A522,Economática!$A$3:$AI$823,29,FALSE)=0,VLOOKUP($A522,Economática!$A$3:$AI$823,29,FALSE)=\"-\"),1/0,VLOOKUP($A522,Economática!$A$3:$AI$823,29,FALSE)))","v":""},{"$f":"IF($A522=\"\",\"\",IF(OR(VLOOKUP($A522,Economática!$A$3:$AI$823,30,FALSE)/E522=0,VLOOKUP($A522,Economática!$A$3:$AI$823,30,FALSE)/E522=\"-\",VLOOKUP($A522,Economática!$A$3:$AI$823,30,FALSE)/E522<33.33%,VLOOKUP($A522,Economática!$A$3:$AI$823,30,FALSE)/E522>100%),1/0,VLOOKUP($A522,Economática!$A$3:$AI$823,30,FALSE)/E522))","v":""},"",{"$f":"IF($A522=\"\",\"\",IF(OR(VLOOKUP($A522,Economática!$A$3:$AI$823,25,FALSE)=0,VLOOKUP($A522,Economática!$A$3:$AI$823,25,FALSE)=\"-\"),1/0,VLOOKUP($A522,Economática!$A$3:$AI$823,25,FALSE)))","v":""},{"$f":"CONCATENATE(Economática!B500,\" \",Economática!C500)","v":" "}]
[{"$f":"IF(Economática!AG501=\"\",\"\",Economática!AG501)","v":""},{"$f":"IF($A523=\"\",\"\",VLOOKUP(VLOOKUP($A523,Economática!$A$3:$AI$823,6,FALSE),Correção!$B$16:$C$36,2,FALSE))","v":""},{"$f":"IF(Economática!B501=\"\",\"\",Economática!B501)","v":""},{"$f":"IF($A523=\"\",\"\",IF(OR(VLOOKUP($A523,Economática!$A$3:$AI$823,8,FALSE)=0,VLOOKUP($A523,Economática!$A$3:$AI$823,8,FALSE)=\"-\"),1/0,VLOOKUP($A523,Economática!$A$3:$AI$823,8,FALSE)))","v":""},{"$f":"IF(A523=\"\",\"\",IF(ISERROR(VLOOKUP(A523,Correção!$B$2:$G$13,9,FALSE)),VLOOKUP($A523,Economática!$A$3:$AI$823,9,FALSE),VLOOKUP(A523,Correção!$B$2:$G$13,9,FALSE)))","v":""},{"$f":"IF($A523=\"\",\"\",Economática!G501)","v":""},{"$f":"IF($A523=\"\",\"\",IF(OR(VLOOKUP($A523,Economática!$A$3:$AI$823,10,FALSE)=0,VLOOKUP($A523,Economática!$A$3:$AI$823,10,FALSE)=\"-\"),1/0,VLOOKUP($A523,Economática!$A$3:$AI$823,10,FALSE)))","v":""},{"$f":"IF($A523=\"\",\"\",IF(OR(VLOOKUP($A523,Economática!$A$3:$AI$823,11,FALSE)=0,VLOOKUP($A523,Economática!$A$3:$AI$823,11,FALSE)=\"-\"),1/0,VLOOKUP($A523,Economática!$A$3:$AI$823,11,FALSE)))","v":""},{"$f":"IF($A523=\"\",\"\",IF(OR(VLOOKUP($A523,Economática!$A$3:$AI$823,12,FALSE)=0,VLOOKUP($A523,Economática!$A$3:$AI$823,12,FALSE)=\"-\"),1/0,VLOOKUP($A523,Economática!$A$3:$AI$823,12,FALSE)))","v":""},{"$f":"IF($A523=\"\",\"\",IF(OR(VLOOKUP($A523,Economática!$A$3:$AI$823,13,FALSE)=0,VLOOKUP($A523,Economática!$A$3:$AI$823,13,FALSE)=\"-\"),1/0,VLOOKUP($A523,Economática!$A$3:$AI$823,13,FALSE)))","v":""},{"$f":"IF($A523=\"\",\"\",IF(OR(VLOOKUP($A523,Economática!$A$3:$AI$823,14,FALSE)=0,VLOOKUP($A523,Economática!$A$3:$AI$823,14,FALSE)=\"-\"),1/0,VLOOKUP($A523,Economática!$A$3:$AI$823,14,FALSE)))","v":""},{"$f":"IF($A523=\"\",\"\",IF(OR(VLOOKUP($A523,Economática!$A$3:$AI$823,15,FALSE)=0,VLOOKUP($A523,Economática!$A$3:$AI$823,15,FALSE)=\"-\"),1/0,VLOOKUP($A523,Economática!$A$3:$AI$823,15,FALSE)))","v":""},{"$f":"IF($A523=\"\",\"\",IF(OR(VLOOKUP($A523,Economática!$A$3:$AI$823,16,FALSE)=0,VLOOKUP($A523,Economática!$A$3:$AI$823,16,FALSE)=\"-\"),1/0,VLOOKUP($A523,Economática!$A$3:$AI$823,16,FALSE)))","v":""},{"$f":"IF($A523=\"\",\"\",IF(OR(VLOOKUP($A523,Economática!$A$3:$AI$823,17,FALSE)=0,VLOOKUP($A523,Economática!$A$3:$AI$823,17,FALSE)=\"-\"),1/0,VLOOKUP($A523,Economática!$A$3:$AI$823,17,FALSE)))","v":""},{"$f":"IF($A523=\"\",\"\",IF(OR(VLOOKUP($A523,Economática!$A$3:$AI$823,18,FALSE)=0,VLOOKUP($A523,Economática!$A$3:$AI$823,18,FALSE)=\"-\"),1/0,VLOOKUP($A523,Economática!$A$3:$AI$823,18,FALSE)))","v":""},{"$f":"IF($A523=\"\",\"\",IF(OR(VLOOKUP($A523,Economática!$A$3:$AI$823,19,FALSE)=0,VLOOKUP($A523,Economática!$A$3:$AI$823,19,FALSE)=\"-\"),1/0,VLOOKUP($A523,Economática!$A$3:$AI$823,19,FALSE)))","v":""},{"$f":"IF($A523=\"\",\"\",VLOOKUP($A523,Economática!$A$3:$AI$823,20,FALSE)/E523)","v":""},"","","",{"$f":"IF($A523=\"\",\"\",IF(OR(VLOOKUP($A523,Economática!$A$3:$AI$823,21,FALSE)/100=0,VLOOKUP($A523,Economática!$A$3:$AI$823,21,FALSE)/100=\"-\"),1/0,VLOOKUP($A523,Economática!$A$3:$AI$823,21,FALSE)/100))","v":""},{"$f":"IF($A523=\"\",\"\",IF(OR(VLOOKUP($A523,Economática!$A$3:$AI$823,22,FALSE)/100=0,VLOOKUP($A523,Economática!$A$3:$AI$823,22,FALSE)/100=\"-\"),1/0,VLOOKUP($A523,Economática!$A$3:$AI$823,22,FALSE)/100))","v":""},{"$f":"IF($A523=\"\",\"\",IF(OR(VLOOKUP($A523,Economática!$A$3:$AI$823,23,FALSE)=0,VLOOKUP($A523,Economática!$A$3:$AI$823,23,FALSE)=\"-\"),1/0,VLOOKUP($A523,Economática!$A$3:$AI$823,23,FALSE)))","v":""},{"$f":"IF($A523=\"\",\"\",IF(OR(VLOOKUP($A523,Economática!$A$3:$AI$823,24,FALSE)=0,VLOOKUP($A523,Economática!$A$3:$AI$823,24,FALSE)=\"-\"),1/0,VLOOKUP($A523,Economática!$A$3:$AI$823,24,FALSE)))","v":""},{"$f":"IF($A523=\"\",\"\",IF(OR(VLOOKUP($A523,Economática!$A$3:$AI$823,25,FALSE)=0,VLOOKUP($A523,Economática!$A$3:$AI$823,25,FALSE)=\"-\"),1/0,VLOOKUP($A523,Economática!$A$3:$AI$823,25,FALSE)))","v":""},{"$f":"IF($A523=\"\",\"\",IF(ISERROR((F523+VLOOKUP($A523,Economática!$A$3:$AI$823,26,FALSE))/Y523),(F523+VLOOKUP($A523,Economática!$A$3:$AI$823,26,FALSE))/Y523,(F523+VLOOKUP($A523,Economática!$A$3:$AI$823,26,FALSE))/Y523))","v":""},{"$f":"IF($A523=\"\",\"\",IF(OR(-VLOOKUP($A523,Economática!$A$3:$AI$823,27,FALSE)=0,-VLOOKUP($A523,Economática!$A$3:$AI$823,27,FALSE)=\"-\"),1/0,-VLOOKUP($A523,Economática!$A$3:$AI$823,27,FALSE)))","v":""},"",{"$f":"IF($A523=\"\",\"\",IF(OR(VLOOKUP($A523,Economática!$A$3:$AI$823,28,FALSE)=0,VLOOKUP($A523,Economática!$A$3:$AI$823,28,FALSE)=\"-\"),1/0,VLOOKUP($A523,Economática!$A$3:$AI$823,28,FALSE)))","v":""},{"$f":"IF($A523=\"\",\"\",IF(OR(VLOOKUP($A523,Economática!$A$3:$AI$823,29,FALSE)=0,VLOOKUP($A523,Economática!$A$3:$AI$823,29,FALSE)=\"-\"),1/0,VLOOKUP($A523,Economática!$A$3:$AI$823,29,FALSE)))","v":""},{"$f":"IF($A523=\"\",\"\",IF(OR(VLOOKUP($A523,Economática!$A$3:$AI$823,30,FALSE)/E523=0,VLOOKUP($A523,Economática!$A$3:$AI$823,30,FALSE)/E523=\"-\",VLOOKUP($A523,Economática!$A$3:$AI$823,30,FALSE)/E523<33.33%,VLOOKUP($A523,Economática!$A$3:$AI$823,30,FALSE)/E523>100%),1/0,VLOOKUP($A523,Economática!$A$3:$AI$823,30,FALSE)/E523))","v":""},"",{"$f":"IF($A523=\"\",\"\",IF(OR(VLOOKUP($A523,Economática!$A$3:$AI$823,25,FALSE)=0,VLOOKUP($A523,Economática!$A$3:$AI$823,25,FALSE)=\"-\"),1/0,VLOOKUP($A523,Economática!$A$3:$AI$823,25,FALSE)))","v":""},{"$f":"CONCATENATE(Economática!B501,\" \",Economática!C501)","v":" "}]
[{"$f":"IF(Economática!AG502=\"\",\"\",Economática!AG502)","v":""},{"$f":"IF($A524=\"\",\"\",VLOOKUP(VLOOKUP($A524,Economática!$A$3:$AI$823,6,FALSE),Correção!$B$16:$C$36,2,FALSE))","v":""},{"$f":"IF(Economática!B502=\"\",\"\",Economática!B502)","v":""},{"$f":"IF($A524=\"\",\"\",IF(OR(VLOOKUP($A524,Economática!$A$3:$AI$823,8,FALSE)=0,VLOOKUP($A524,Economática!$A$3:$AI$823,8,FALSE)=\"-\"),1/0,VLOOKUP($A524,Economática!$A$3:$AI$823,8,FALSE)))","v":""},{"$f":"IF(A524=\"\",\"\",IF(ISERROR(VLOOKUP(A524,Correção!$B$2:$G$13,9,FALSE)),VLOOKUP($A524,Economática!$A$3:$AI$823,9,FALSE),VLOOKUP(A524,Correção!$B$2:$G$13,9,FALSE)))","v":""},{"$f":"IF($A524=\"\",\"\",Economática!G502)","v":""},{"$f":"IF($A524=\"\",\"\",IF(OR(VLOOKUP($A524,Economática!$A$3:$AI$823,10,FALSE)=0,VLOOKUP($A524,Economática!$A$3:$AI$823,10,FALSE)=\"-\"),1/0,VLOOKUP($A524,Economática!$A$3:$AI$823,10,FALSE)))","v":""},{"$f":"IF($A524=\"\",\"\",IF(OR(VLOOKUP($A524,Economática!$A$3:$AI$823,11,FALSE)=0,VLOOKUP($A524,Economática!$A$3:$AI$823,11,FALSE)=\"-\"),1/0,VLOOKUP($A524,Economática!$A$3:$AI$823,11,FALSE)))","v":""},{"$f":"IF($A524=\"\",\"\",IF(OR(VLOOKUP($A524,Economática!$A$3:$AI$823,12,FALSE)=0,VLOOKUP($A524,Economática!$A$3:$AI$823,12,FALSE)=\"-\"),1/0,VLOOKUP($A524,Economática!$A$3:$AI$823,12,FALSE)))","v":""},{"$f":"IF($A524=\"\",\"\",IF(OR(VLOOKUP($A524,Economática!$A$3:$AI$823,13,FALSE)=0,VLOOKUP($A524,Economática!$A$3:$AI$823,13,FALSE)=\"-\"),1/0,VLOOKUP($A524,Economática!$A$3:$AI$823,13,FALSE)))","v":""},{"$f":"IF($A524=\"\",\"\",IF(OR(VLOOKUP($A524,Economática!$A$3:$AI$823,14,FALSE)=0,VLOOKUP($A524,Economática!$A$3:$AI$823,14,FALSE)=\"-\"),1/0,VLOOKUP($A524,Economática!$A$3:$AI$823,14,FALSE)))","v":""},{"$f":"IF($A524=\"\",\"\",IF(OR(VLOOKUP($A524,Economática!$A$3:$AI$823,15,FALSE)=0,VLOOKUP($A524,Economática!$A$3:$AI$823,15,FALSE)=\"-\"),1/0,VLOOKUP($A524,Economática!$A$3:$AI$823,15,FALSE)))","v":""},{"$f":"IF($A524=\"\",\"\",IF(OR(VLOOKUP($A524,Economática!$A$3:$AI$823,16,FALSE)=0,VLOOKUP($A524,Economática!$A$3:$AI$823,16,FALSE)=\"-\"),1/0,VLOOKUP($A524,Economática!$A$3:$AI$823,16,FALSE)))","v":""},{"$f":"IF($A524=\"\",\"\",IF(OR(VLOOKUP($A524,Economática!$A$3:$AI$823,17,FALSE)=0,VLOOKUP($A524,Economática!$A$3:$AI$823,17,FALSE)=\"-\"),1/0,VLOOKUP($A524,Economática!$A$3:$AI$823,17,FALSE)))","v":""},{"$f":"IF($A524=\"\",\"\",IF(OR(VLOOKUP($A524,Economática!$A$3:$AI$823,18,FALSE)=0,VLOOKUP($A524,Economática!$A$3:$AI$823,18,FALSE)=\"-\"),1/0,VLOOKUP($A524,Economática!$A$3:$AI$823,18,FALSE)))","v":""},{"$f":"IF($A524=\"\",\"\",IF(OR(VLOOKUP($A524,Economática!$A$3:$AI$823,19,FALSE)=0,VLOOKUP($A524,Economática!$A$3:$AI$823,19,FALSE)=\"-\"),1/0,VLOOKUP($A524,Economática!$A$3:$AI$823,19,FALSE)))","v":""},{"$f":"IF($A524=\"\",\"\",VLOOKUP($A524,Economática!$A$3:$AI$823,20,FALSE)/E524)","v":""},"","","",{"$f":"IF($A524=\"\",\"\",IF(OR(VLOOKUP($A524,Economática!$A$3:$AI$823,21,FALSE)/100=0,VLOOKUP($A524,Economática!$A$3:$AI$823,21,FALSE)/100=\"-\"),1/0,VLOOKUP($A524,Economática!$A$3:$AI$823,21,FALSE)/100))","v":""},{"$f":"IF($A524=\"\",\"\",IF(OR(VLOOKUP($A524,Economática!$A$3:$AI$823,22,FALSE)/100=0,VLOOKUP($A524,Economática!$A$3:$AI$823,22,FALSE)/100=\"-\"),1/0,VLOOKUP($A524,Economática!$A$3:$AI$823,22,FALSE)/100))","v":""},{"$f":"IF($A524=\"\",\"\",IF(OR(VLOOKUP($A524,Economática!$A$3:$AI$823,23,FALSE)=0,VLOOKUP($A524,Economática!$A$3:$AI$823,23,FALSE)=\"-\"),1/0,VLOOKUP($A524,Economática!$A$3:$AI$823,23,FALSE)))","v":""},{"$f":"IF($A524=\"\",\"\",IF(OR(VLOOKUP($A524,Economática!$A$3:$AI$823,24,FALSE)=0,VLOOKUP($A524,Economática!$A$3:$AI$823,24,FALSE)=\"-\"),1/0,VLOOKUP($A524,Economática!$A$3:$AI$823,24,FALSE)))","v":""},{"$f":"IF($A524=\"\",\"\",IF(OR(VLOOKUP($A524,Economática!$A$3:$AI$823,25,FALSE)=0,VLOOKUP($A524,Economática!$A$3:$AI$823,25,FALSE)=\"-\"),1/0,VLOOKUP($A524,Economática!$A$3:$AI$823,25,FALSE)))","v":""},{"$f":"IF($A524=\"\",\"\",IF(ISERROR((F524+VLOOKUP($A524,Economática!$A$3:$AI$823,26,FALSE))/Y524),(F524+VLOOKUP($A524,Economática!$A$3:$AI$823,26,FALSE))/Y524,(F524+VLOOKUP($A524,Economática!$A$3:$AI$823,26,FALSE))/Y524))","v":""},{"$f":"IF($A524=\"\",\"\",IF(OR(-VLOOKUP($A524,Economática!$A$3:$AI$823,27,FALSE)=0,-VLOOKUP($A524,Economática!$A$3:$AI$823,27,FALSE)=\"-\"),1/0,-VLOOKUP($A524,Economática!$A$3:$AI$823,27,FALSE)))","v":""},"",{"$f":"IF($A524=\"\",\"\",IF(OR(VLOOKUP($A524,Economática!$A$3:$AI$823,28,FALSE)=0,VLOOKUP($A524,Economática!$A$3:$AI$823,28,FALSE)=\"-\"),1/0,VLOOKUP($A524,Economática!$A$3:$AI$823,28,FALSE)))","v":""},{"$f":"IF($A524=\"\",\"\",IF(OR(VLOOKUP($A524,Economática!$A$3:$AI$823,29,FALSE)=0,VLOOKUP($A524,Economática!$A$3:$AI$823,29,FALSE)=\"-\"),1/0,VLOOKUP($A524,Economática!$A$3:$AI$823,29,FALSE)))","v":""},{"$f":"IF($A524=\"\",\"\",IF(OR(VLOOKUP($A524,Economática!$A$3:$AI$823,30,FALSE)/E524=0,VLOOKUP($A524,Economática!$A$3:$AI$823,30,FALSE)/E524=\"-\",VLOOKUP($A524,Economática!$A$3:$AI$823,30,FALSE)/E524<33.33%,VLOOKUP($A524,Economática!$A$3:$AI$823,30,FALSE)/E524>100%),1/0,VLOOKUP($A524,Economática!$A$3:$AI$823,30,FALSE)/E524))","v":""},"",{"$f":"IF($A524=\"\",\"\",IF(OR(VLOOKUP($A524,Economática!$A$3:$AI$823,25,FALSE)=0,VLOOKUP($A524,Economática!$A$3:$AI$823,25,FALSE)=\"-\"),1/0,VLOOKUP($A524,Economática!$A$3:$AI$823,25,FALSE)))","v":""},{"$f":"CONCATENATE(Economática!B502,\" \",Economática!C502)","v":" "}]
[{"$f":"IF(Economática!AG503=\"\",\"\",Economática!AG503)","v":""},{"$f":"IF($A525=\"\",\"\",VLOOKUP(VLOOKUP($A525,Economática!$A$3:$AI$823,6,FALSE),Correção!$B$16:$C$36,2,FALSE))","v":""},{"$f":"IF(Economática!B503=\"\",\"\",Economática!B503)","v":""},{"$f":"IF($A525=\"\",\"\",IF(OR(VLOOKUP($A525,Economática!$A$3:$AI$823,8,FALSE)=0,VLOOKUP($A525,Economática!$A$3:$AI$823,8,FALSE)=\"-\"),1/0,VLOOKUP($A525,Economática!$A$3:$AI$823,8,FALSE)))","v":""},{"$f":"IF(A525=\"\",\"\",IF(ISERROR(VLOOKUP(A525,Correção!$B$2:$G$13,9,FALSE)),VLOOKUP($A525,Economática!$A$3:$AI$823,9,FALSE),VLOOKUP(A525,Correção!$B$2:$G$13,9,FALSE)))","v":""},{"$f":"IF($A525=\"\",\"\",Economática!G503)","v":""},{"$f":"IF($A525=\"\",\"\",IF(OR(VLOOKUP($A525,Economática!$A$3:$AI$823,10,FALSE)=0,VLOOKUP($A525,Economática!$A$3:$AI$823,10,FALSE)=\"-\"),1/0,VLOOKUP($A525,Economática!$A$3:$AI$823,10,FALSE)))","v":""},{"$f":"IF($A525=\"\",\"\",IF(OR(VLOOKUP($A525,Economática!$A$3:$AI$823,11,FALSE)=0,VLOOKUP($A525,Economática!$A$3:$AI$823,11,FALSE)=\"-\"),1/0,VLOOKUP($A525,Economática!$A$3:$AI$823,11,FALSE)))","v":""},{"$f":"IF($A525=\"\",\"\",IF(OR(VLOOKUP($A525,Economática!$A$3:$AI$823,12,FALSE)=0,VLOOKUP($A525,Economática!$A$3:$AI$823,12,FALSE)=\"-\"),1/0,VLOOKUP($A525,Economática!$A$3:$AI$823,12,FALSE)))","v":""},{"$f":"IF($A525=\"\",\"\",IF(OR(VLOOKUP($A525,Economática!$A$3:$AI$823,13,FALSE)=0,VLOOKUP($A525,Economática!$A$3:$AI$823,13,FALSE)=\"-\"),1/0,VLOOKUP($A525,Economática!$A$3:$AI$823,13,FALSE)))","v":""},{"$f":"IF($A525=\"\",\"\",IF(OR(VLOOKUP($A525,Economática!$A$3:$AI$823,14,FALSE)=0,VLOOKUP($A525,Economática!$A$3:$AI$823,14,FALSE)=\"-\"),1/0,VLOOKUP($A525,Economática!$A$3:$AI$823,14,FALSE)))","v":""},{"$f":"IF($A525=\"\",\"\",IF(OR(VLOOKUP($A525,Economática!$A$3:$AI$823,15,FALSE)=0,VLOOKUP($A525,Economática!$A$3:$AI$823,15,FALSE)=\"-\"),1/0,VLOOKUP($A525,Economática!$A$3:$AI$823,15,FALSE)))","v":""},{"$f":"IF($A525=\"\",\"\",IF(OR(VLOOKUP($A525,Economática!$A$3:$AI$823,16,FALSE)=0,VLOOKUP($A525,Economática!$A$3:$AI$823,16,FALSE)=\"-\"),1/0,VLOOKUP($A525,Economática!$A$3:$AI$823,16,FALSE)))","v":""},{"$f":"IF($A525=\"\",\"\",IF(OR(VLOOKUP($A525,Economática!$A$3:$AI$823,17,FALSE)=0,VLOOKUP($A525,Economática!$A$3:$AI$823,17,FALSE)=\"-\"),1/0,VLOOKUP($A525,Economática!$A$3:$AI$823,17,FALSE)))","v":""},{"$f":"IF($A525=\"\",\"\",IF(OR(VLOOKUP($A525,Economática!$A$3:$AI$823,18,FALSE)=0,VLOOKUP($A525,Economática!$A$3:$AI$823,18,FALSE)=\"-\"),1/0,VLOOKUP($A525,Economática!$A$3:$AI$823,18,FALSE)))","v":""},{"$f":"IF($A525=\"\",\"\",IF(OR(VLOOKUP($A525,Economática!$A$3:$AI$823,19,FALSE)=0,VLOOKUP($A525,Economática!$A$3:$AI$823,19,FALSE)=\"-\"),1/0,VLOOKUP($A525,Economática!$A$3:$AI$823,19,FALSE)))","v":""},{"$f":"IF($A525=\"\",\"\",VLOOKUP($A525,Economática!$A$3:$AI$823,20,FALSE)/E525)","v":""},"","","",{"$f":"IF($A525=\"\",\"\",IF(OR(VLOOKUP($A525,Economática!$A$3:$AI$823,21,FALSE)/100=0,VLOOKUP($A525,Economática!$A$3:$AI$823,21,FALSE)/100=\"-\"),1/0,VLOOKUP($A525,Economática!$A$3:$AI$823,21,FALSE)/100))","v":""},{"$f":"IF($A525=\"\",\"\",IF(OR(VLOOKUP($A525,Economática!$A$3:$AI$823,22,FALSE)/100=0,VLOOKUP($A525,Economática!$A$3:$AI$823,22,FALSE)/100=\"-\"),1/0,VLOOKUP($A525,Economática!$A$3:$AI$823,22,FALSE)/100))","v":""},{"$f":"IF($A525=\"\",\"\",IF(OR(VLOOKUP($A525,Economática!$A$3:$AI$823,23,FALSE)=0,VLOOKUP($A525,Economática!$A$3:$AI$823,23,FALSE)=\"-\"),1/0,VLOOKUP($A525,Economática!$A$3:$AI$823,23,FALSE)))","v":""},{"$f":"IF($A525=\"\",\"\",IF(OR(VLOOKUP($A525,Economática!$A$3:$AI$823,24,FALSE)=0,VLOOKUP($A525,Economática!$A$3:$AI$823,24,FALSE)=\"-\"),1/0,VLOOKUP($A525,Economática!$A$3:$AI$823,24,FALSE)))","v":""},{"$f":"IF($A525=\"\",\"\",IF(OR(VLOOKUP($A525,Economática!$A$3:$AI$823,25,FALSE)=0,VLOOKUP($A525,Economática!$A$3:$AI$823,25,FALSE)=\"-\"),1/0,VLOOKUP($A525,Economática!$A$3:$AI$823,25,FALSE)))","v":""},{"$f":"IF($A525=\"\",\"\",IF(ISERROR((F525+VLOOKUP($A525,Economática!$A$3:$AI$823,26,FALSE))/Y525),(F525+VLOOKUP($A525,Economática!$A$3:$AI$823,26,FALSE))/Y525,(F525+VLOOKUP($A525,Economática!$A$3:$AI$823,26,FALSE))/Y525))","v":""},{"$f":"IF($A525=\"\",\"\",IF(OR(-VLOOKUP($A525,Economática!$A$3:$AI$823,27,FALSE)=0,-VLOOKUP($A525,Economática!$A$3:$AI$823,27,FALSE)=\"-\"),1/0,-VLOOKUP($A525,Economática!$A$3:$AI$823,27,FALSE)))","v":""},"",{"$f":"IF($A525=\"\",\"\",IF(OR(VLOOKUP($A525,Economática!$A$3:$AI$823,28,FALSE)=0,VLOOKUP($A525,Economática!$A$3:$AI$823,28,FALSE)=\"-\"),1/0,VLOOKUP($A525,Economática!$A$3:$AI$823,28,FALSE)))","v":""},{"$f":"IF($A525=\"\",\"\",IF(OR(VLOOKUP($A525,Economática!$A$3:$AI$823,29,FALSE)=0,VLOOKUP($A525,Economática!$A$3:$AI$823,29,FALSE)=\"-\"),1/0,VLOOKUP($A525,Economática!$A$3:$AI$823,29,FALSE)))","v":""},{"$f":"IF($A525=\"\",\"\",IF(OR(VLOOKUP($A525,Economática!$A$3:$AI$823,30,FALSE)/E525=0,VLOOKUP($A525,Economática!$A$3:$AI$823,30,FALSE)/E525=\"-\",VLOOKUP($A525,Economática!$A$3:$AI$823,30,FALSE)/E525<33.33%,VLOOKUP($A525,Economática!$A$3:$AI$823,30,FALSE)/E525>100%),1/0,VLOOKUP($A525,Economática!$A$3:$AI$823,30,FALSE)/E525))","v":""},"",{"$f":"IF($A525=\"\",\"\",IF(OR(VLOOKUP($A525,Economática!$A$3:$AI$823,25,FALSE)=0,VLOOKUP($A525,Economática!$A$3:$AI$823,25,FALSE)=\"-\"),1/0,VLOOKUP($A525,Economática!$A$3:$AI$823,25,FALSE)))","v":""},{"$f":"CONCATENATE(Economática!B503,\" \",Economática!C503)","v":" "}]
[{"$f":"IF(Economática!AG504=\"\",\"\",Economática!AG504)","v":""},{"$f":"IF($A526=\"\",\"\",VLOOKUP(VLOOKUP($A526,Economática!$A$3:$AI$823,6,FALSE),Correção!$B$16:$C$36,2,FALSE))","v":""},{"$f":"IF(Economática!B504=\"\",\"\",Economática!B504)","v":""},{"$f":"IF($A526=\"\",\"\",IF(OR(VLOOKUP($A526,Economática!$A$3:$AI$823,8,FALSE)=0,VLOOKUP($A526,Economática!$A$3:$AI$823,8,FALSE)=\"-\"),1/0,VLOOKUP($A526,Economática!$A$3:$AI$823,8,FALSE)))","v":""},{"$f":"IF(A526=\"\",\"\",IF(ISERROR(VLOOKUP(A526,Correção!$B$2:$G$13,9,FALSE)),VLOOKUP($A526,Economática!$A$3:$AI$823,9,FALSE),VLOOKUP(A526,Correção!$B$2:$G$13,9,FALSE)))","v":""},{"$f":"IF($A526=\"\",\"\",Economática!G504)","v":""},{"$f":"IF($A526=\"\",\"\",IF(OR(VLOOKUP($A526,Economática!$A$3:$AI$823,10,FALSE)=0,VLOOKUP($A526,Economática!$A$3:$AI$823,10,FALSE)=\"-\"),1/0,VLOOKUP($A526,Economática!$A$3:$AI$823,10,FALSE)))","v":""},{"$f":"IF($A526=\"\",\"\",IF(OR(VLOOKUP($A526,Economática!$A$3:$AI$823,11,FALSE)=0,VLOOKUP($A526,Economática!$A$3:$AI$823,11,FALSE)=\"-\"),1/0,VLOOKUP($A526,Economática!$A$3:$AI$823,11,FALSE)))","v":""},{"$f":"IF($A526=\"\",\"\",IF(OR(VLOOKUP($A526,Economática!$A$3:$AI$823,12,FALSE)=0,VLOOKUP($A526,Economática!$A$3:$AI$823,12,FALSE)=\"-\"),1/0,VLOOKUP($A526,Economática!$A$3:$AI$823,12,FALSE)))","v":""},{"$f":"IF($A526=\"\",\"\",IF(OR(VLOOKUP($A526,Economática!$A$3:$AI$823,13,FALSE)=0,VLOOKUP($A526,Economática!$A$3:$AI$823,13,FALSE)=\"-\"),1/0,VLOOKUP($A526,Economática!$A$3:$AI$823,13,FALSE)))","v":""},{"$f":"IF($A526=\"\",\"\",IF(OR(VLOOKUP($A526,Economática!$A$3:$AI$823,14,FALSE)=0,VLOOKUP($A526,Economática!$A$3:$AI$823,14,FALSE)=\"-\"),1/0,VLOOKUP($A526,Economática!$A$3:$AI$823,14,FALSE)))","v":""},{"$f":"IF($A526=\"\",\"\",IF(OR(VLOOKUP($A526,Economática!$A$3:$AI$823,15,FALSE)=0,VLOOKUP($A526,Economática!$A$3:$AI$823,15,FALSE)=\"-\"),1/0,VLOOKUP($A526,Economática!$A$3:$AI$823,15,FALSE)))","v":""},{"$f":"IF($A526=\"\",\"\",IF(OR(VLOOKUP($A526,Economática!$A$3:$AI$823,16,FALSE)=0,VLOOKUP($A526,Economática!$A$3:$AI$823,16,FALSE)=\"-\"),1/0,VLOOKUP($A526,Economática!$A$3:$AI$823,16,FALSE)))","v":""},{"$f":"IF($A526=\"\",\"\",IF(OR(VLOOKUP($A526,Economática!$A$3:$AI$823,17,FALSE)=0,VLOOKUP($A526,Economática!$A$3:$AI$823,17,FALSE)=\"-\"),1/0,VLOOKUP($A526,Economática!$A$3:$AI$823,17,FALSE)))","v":""},{"$f":"IF($A526=\"\",\"\",IF(OR(VLOOKUP($A526,Economática!$A$3:$AI$823,18,FALSE)=0,VLOOKUP($A526,Economática!$A$3:$AI$823,18,FALSE)=\"-\"),1/0,VLOOKUP($A526,Economática!$A$3:$AI$823,18,FALSE)))","v":""},{"$f":"IF($A526=\"\",\"\",IF(OR(VLOOKUP($A526,Economática!$A$3:$AI$823,19,FALSE)=0,VLOOKUP($A526,Economática!$A$3:$AI$823,19,FALSE)=\"-\"),1/0,VLOOKUP($A526,Economática!$A$3:$AI$823,19,FALSE)))","v":""},{"$f":"IF($A526=\"\",\"\",VLOOKUP($A526,Economática!$A$3:$AI$823,20,FALSE)/E526)","v":""},"","","",{"$f":"IF($A526=\"\",\"\",IF(OR(VLOOKUP($A526,Economática!$A$3:$AI$823,21,FALSE)/100=0,VLOOKUP($A526,Economática!$A$3:$AI$823,21,FALSE)/100=\"-\"),1/0,VLOOKUP($A526,Economática!$A$3:$AI$823,21,FALSE)/100))","v":""},{"$f":"IF($A526=\"\",\"\",IF(OR(VLOOKUP($A526,Economática!$A$3:$AI$823,22,FALSE)/100=0,VLOOKUP($A526,Economática!$A$3:$AI$823,22,FALSE)/100=\"-\"),1/0,VLOOKUP($A526,Economática!$A$3:$AI$823,22,FALSE)/100))","v":""},{"$f":"IF($A526=\"\",\"\",IF(OR(VLOOKUP($A526,Economática!$A$3:$AI$823,23,FALSE)=0,VLOOKUP($A526,Economática!$A$3:$AI$823,23,FALSE)=\"-\"),1/0,VLOOKUP($A526,Economática!$A$3:$AI$823,23,FALSE)))","v":""},{"$f":"IF($A526=\"\",\"\",IF(OR(VLOOKUP($A526,Economática!$A$3:$AI$823,24,FALSE)=0,VLOOKUP($A526,Economática!$A$3:$AI$823,24,FALSE)=\"-\"),1/0,VLOOKUP($A526,Economática!$A$3:$AI$823,24,FALSE)))","v":""},{"$f":"IF($A526=\"\",\"\",IF(OR(VLOOKUP($A526,Economática!$A$3:$AI$823,25,FALSE)=0,VLOOKUP($A526,Economática!$A$3:$AI$823,25,FALSE)=\"-\"),1/0,VLOOKUP($A526,Economática!$A$3:$AI$823,25,FALSE)))","v":""},{"$f":"IF($A526=\"\",\"\",IF(ISERROR((F526+VLOOKUP($A526,Economática!$A$3:$AI$823,26,FALSE))/Y526),(F526+VLOOKUP($A526,Economática!$A$3:$AI$823,26,FALSE))/Y526,(F526+VLOOKUP($A526,Economática!$A$3:$AI$823,26,FALSE))/Y526))","v":""},{"$f":"IF($A526=\"\",\"\",IF(OR(-VLOOKUP($A526,Economática!$A$3:$AI$823,27,FALSE)=0,-VLOOKUP($A526,Economática!$A$3:$AI$823,27,FALSE)=\"-\"),1/0,-VLOOKUP($A526,Economática!$A$3:$AI$823,27,FALSE)))","v":""},"",{"$f":"IF($A526=\"\",\"\",IF(OR(VLOOKUP($A526,Economática!$A$3:$AI$823,28,FALSE)=0,VLOOKUP($A526,Economática!$A$3:$AI$823,28,FALSE)=\"-\"),1/0,VLOOKUP($A526,Economática!$A$3:$AI$823,28,FALSE)))","v":""},{"$f":"IF($A526=\"\",\"\",IF(OR(VLOOKUP($A526,Economática!$A$3:$AI$823,29,FALSE)=0,VLOOKUP($A526,Economática!$A$3:$AI$823,29,FALSE)=\"-\"),1/0,VLOOKUP($A526,Economática!$A$3:$AI$823,29,FALSE)))","v":""},{"$f":"IF($A526=\"\",\"\",IF(OR(VLOOKUP($A526,Economática!$A$3:$AI$823,30,FALSE)/E526=0,VLOOKUP($A526,Economática!$A$3:$AI$823,30,FALSE)/E526=\"-\",VLOOKUP($A526,Economática!$A$3:$AI$823,30,FALSE)/E526<33.33%,VLOOKUP($A526,Economática!$A$3:$AI$823,30,FALSE)/E526>100%),1/0,VLOOKUP($A526,Economática!$A$3:$AI$823,30,FALSE)/E526))","v":""},"",{"$f":"IF($A526=\"\",\"\",IF(OR(VLOOKUP($A526,Economática!$A$3:$AI$823,25,FALSE)=0,VLOOKUP($A526,Economática!$A$3:$AI$823,25,FALSE)=\"-\"),1/0,VLOOKUP($A526,Economática!$A$3:$AI$823,25,FALSE)))","v":""},{"$f":"CONCATENATE(Economática!B504,\" \",Economática!C504)","v":" "}]
[{"$f":"IF(Economática!AG505=\"\",\"\",Economática!AG505)","v":""},{"$f":"IF($A527=\"\",\"\",VLOOKUP(VLOOKUP($A527,Economática!$A$3:$AI$823,6,FALSE),Correção!$B$16:$C$36,2,FALSE))","v":""},{"$f":"IF(Economática!B505=\"\",\"\",Economática!B505)","v":""},{"$f":"IF($A527=\"\",\"\",IF(OR(VLOOKUP($A527,Economática!$A$3:$AI$823,8,FALSE)=0,VLOOKUP($A527,Economática!$A$3:$AI$823,8,FALSE)=\"-\"),1/0,VLOOKUP($A527,Economática!$A$3:$AI$823,8,FALSE)))","v":""},{"$f":"IF(A527=\"\",\"\",IF(ISERROR(VLOOKUP(A527,Correção!$B$2:$G$13,9,FALSE)),VLOOKUP($A527,Economática!$A$3:$AI$823,9,FALSE),VLOOKUP(A527,Correção!$B$2:$G$13,9,FALSE)))","v":""},{"$f":"IF($A527=\"\",\"\",Economática!G505)","v":""},{"$f":"IF($A527=\"\",\"\",IF(OR(VLOOKUP($A527,Economática!$A$3:$AI$823,10,FALSE)=0,VLOOKUP($A527,Economática!$A$3:$AI$823,10,FALSE)=\"-\"),1/0,VLOOKUP($A527,Economática!$A$3:$AI$823,10,FALSE)))","v":""},{"$f":"IF($A527=\"\",\"\",IF(OR(VLOOKUP($A527,Economática!$A$3:$AI$823,11,FALSE)=0,VLOOKUP($A527,Economática!$A$3:$AI$823,11,FALSE)=\"-\"),1/0,VLOOKUP($A527,Economática!$A$3:$AI$823,11,FALSE)))","v":""},{"$f":"IF($A527=\"\",\"\",IF(OR(VLOOKUP($A527,Economática!$A$3:$AI$823,12,FALSE)=0,VLOOKUP($A527,Economática!$A$3:$AI$823,12,FALSE)=\"-\"),1/0,VLOOKUP($A527,Economática!$A$3:$AI$823,12,FALSE)))","v":""},{"$f":"IF($A527=\"\",\"\",IF(OR(VLOOKUP($A527,Economática!$A$3:$AI$823,13,FALSE)=0,VLOOKUP($A527,Economática!$A$3:$AI$823,13,FALSE)=\"-\"),1/0,VLOOKUP($A527,Economática!$A$3:$AI$823,13,FALSE)))","v":""},{"$f":"IF($A527=\"\",\"\",IF(OR(VLOOKUP($A527,Economática!$A$3:$AI$823,14,FALSE)=0,VLOOKUP($A527,Economática!$A$3:$AI$823,14,FALSE)=\"-\"),1/0,VLOOKUP($A527,Economática!$A$3:$AI$823,14,FALSE)))","v":""},{"$f":"IF($A527=\"\",\"\",IF(OR(VLOOKUP($A527,Economática!$A$3:$AI$823,15,FALSE)=0,VLOOKUP($A527,Economática!$A$3:$AI$823,15,FALSE)=\"-\"),1/0,VLOOKUP($A527,Economática!$A$3:$AI$823,15,FALSE)))","v":""},{"$f":"IF($A527=\"\",\"\",IF(OR(VLOOKUP($A527,Economática!$A$3:$AI$823,16,FALSE)=0,VLOOKUP($A527,Economática!$A$3:$AI$823,16,FALSE)=\"-\"),1/0,VLOOKUP($A527,Economática!$A$3:$AI$823,16,FALSE)))","v":""},{"$f":"IF($A527=\"\",\"\",IF(OR(VLOOKUP($A527,Economática!$A$3:$AI$823,17,FALSE)=0,VLOOKUP($A527,Economática!$A$3:$AI$823,17,FALSE)=\"-\"),1/0,VLOOKUP($A527,Economática!$A$3:$AI$823,17,FALSE)))","v":""},{"$f":"IF($A527=\"\",\"\",IF(OR(VLOOKUP($A527,Economática!$A$3:$AI$823,18,FALSE)=0,VLOOKUP($A527,Economática!$A$3:$AI$823,18,FALSE)=\"-\"),1/0,VLOOKUP($A527,Economática!$A$3:$AI$823,18,FALSE)))","v":""},{"$f":"IF($A527=\"\",\"\",IF(OR(VLOOKUP($A527,Economática!$A$3:$AI$823,19,FALSE)=0,VLOOKUP($A527,Economática!$A$3:$AI$823,19,FALSE)=\"-\"),1/0,VLOOKUP($A527,Economática!$A$3:$AI$823,19,FALSE)))","v":""},{"$f":"IF($A527=\"\",\"\",VLOOKUP($A527,Economática!$A$3:$AI$823,20,FALSE)/E527)","v":""},"","","",{"$f":"IF($A527=\"\",\"\",IF(OR(VLOOKUP($A527,Economática!$A$3:$AI$823,21,FALSE)/100=0,VLOOKUP($A527,Economática!$A$3:$AI$823,21,FALSE)/100=\"-\"),1/0,VLOOKUP($A527,Economática!$A$3:$AI$823,21,FALSE)/100))","v":""},{"$f":"IF($A527=\"\",\"\",IF(OR(VLOOKUP($A527,Economática!$A$3:$AI$823,22,FALSE)/100=0,VLOOKUP($A527,Economática!$A$3:$AI$823,22,FALSE)/100=\"-\"),1/0,VLOOKUP($A527,Economática!$A$3:$AI$823,22,FALSE)/100))","v":""},{"$f":"IF($A527=\"\",\"\",IF(OR(VLOOKUP($A527,Economática!$A$3:$AI$823,23,FALSE)=0,VLOOKUP($A527,Economática!$A$3:$AI$823,23,FALSE)=\"-\"),1/0,VLOOKUP($A527,Economática!$A$3:$AI$823,23,FALSE)))","v":""},{"$f":"IF($A527=\"\",\"\",IF(OR(VLOOKUP($A527,Economática!$A$3:$AI$823,24,FALSE)=0,VLOOKUP($A527,Economática!$A$3:$AI$823,24,FALSE)=\"-\"),1/0,VLOOKUP($A527,Economática!$A$3:$AI$823,24,FALSE)))","v":""},{"$f":"IF($A527=\"\",\"\",IF(OR(VLOOKUP($A527,Economática!$A$3:$AI$823,25,FALSE)=0,VLOOKUP($A527,Economática!$A$3:$AI$823,25,FALSE)=\"-\"),1/0,VLOOKUP($A527,Economática!$A$3:$AI$823,25,FALSE)))","v":""},{"$f":"IF($A527=\"\",\"\",IF(ISERROR((F527+VLOOKUP($A527,Economática!$A$3:$AI$823,26,FALSE))/Y527),(F527+VLOOKUP($A527,Economática!$A$3:$AI$823,26,FALSE))/Y527,(F527+VLOOKUP($A527,Economática!$A$3:$AI$823,26,FALSE))/Y527))","v":""},{"$f":"IF($A527=\"\",\"\",IF(OR(-VLOOKUP($A527,Economática!$A$3:$AI$823,27,FALSE)=0,-VLOOKUP($A527,Economática!$A$3:$AI$823,27,FALSE)=\"-\"),1/0,-VLOOKUP($A527,Economática!$A$3:$AI$823,27,FALSE)))","v":""},"",{"$f":"IF($A527=\"\",\"\",IF(OR(VLOOKUP($A527,Economática!$A$3:$AI$823,28,FALSE)=0,VLOOKUP($A527,Economática!$A$3:$AI$823,28,FALSE)=\"-\"),1/0,VLOOKUP($A527,Economática!$A$3:$AI$823,28,FALSE)))","v":""},{"$f":"IF($A527=\"\",\"\",IF(OR(VLOOKUP($A527,Economática!$A$3:$AI$823,29,FALSE)=0,VLOOKUP($A527,Economática!$A$3:$AI$823,29,FALSE)=\"-\"),1/0,VLOOKUP($A527,Economática!$A$3:$AI$823,29,FALSE)))","v":""},{"$f":"IF($A527=\"\",\"\",IF(OR(VLOOKUP($A527,Economática!$A$3:$AI$823,30,FALSE)/E527=0,VLOOKUP($A527,Economática!$A$3:$AI$823,30,FALSE)/E527=\"-\",VLOOKUP($A527,Economática!$A$3:$AI$823,30,FALSE)/E527<33.33%,VLOOKUP($A527,Economática!$A$3:$AI$823,30,FALSE)/E527>100%),1/0,VLOOKUP($A527,Economática!$A$3:$AI$823,30,FALSE)/E527))","v":""},"",{"$f":"IF($A527=\"\",\"\",IF(OR(VLOOKUP($A527,Economática!$A$3:$AI$823,25,FALSE)=0,VLOOKUP($A527,Economática!$A$3:$AI$823,25,FALSE)=\"-\"),1/0,VLOOKUP($A527,Economática!$A$3:$AI$823,25,FALSE)))","v":""},{"$f":"CONCATENATE(Economática!B505,\" \",Economática!C505)","v":" "}]
[{"$f":"IF(Economática!AG506=\"\",\"\",Economática!AG506)","v":""},{"$f":"IF($A528=\"\",\"\",VLOOKUP(VLOOKUP($A528,Economática!$A$3:$AI$823,6,FALSE),Correção!$B$16:$C$36,2,FALSE))","v":""},{"$f":"IF(Economática!B506=\"\",\"\",Economática!B506)","v":""},{"$f":"IF($A528=\"\",\"\",IF(OR(VLOOKUP($A528,Economática!$A$3:$AI$823,8,FALSE)=0,VLOOKUP($A528,Economática!$A$3:$AI$823,8,FALSE)=\"-\"),1/0,VLOOKUP($A528,Economática!$A$3:$AI$823,8,FALSE)))","v":""},{"$f":"IF(A528=\"\",\"\",IF(ISERROR(VLOOKUP(A528,Correção!$B$2:$G$13,9,FALSE)),VLOOKUP($A528,Economática!$A$3:$AI$823,9,FALSE),VLOOKUP(A528,Correção!$B$2:$G$13,9,FALSE)))","v":""},{"$f":"IF($A528=\"\",\"\",Economática!G506)","v":""},{"$f":"IF($A528=\"\",\"\",IF(OR(VLOOKUP($A528,Economática!$A$3:$AI$823,10,FALSE)=0,VLOOKUP($A528,Economática!$A$3:$AI$823,10,FALSE)=\"-\"),1/0,VLOOKUP($A528,Economática!$A$3:$AI$823,10,FALSE)))","v":""},{"$f":"IF($A528=\"\",\"\",IF(OR(VLOOKUP($A528,Economática!$A$3:$AI$823,11,FALSE)=0,VLOOKUP($A528,Economática!$A$3:$AI$823,11,FALSE)=\"-\"),1/0,VLOOKUP($A528,Economática!$A$3:$AI$823,11,FALSE)))","v":""},{"$f":"IF($A528=\"\",\"\",IF(OR(VLOOKUP($A528,Economática!$A$3:$AI$823,12,FALSE)=0,VLOOKUP($A528,Economática!$A$3:$AI$823,12,FALSE)=\"-\"),1/0,VLOOKUP($A528,Economática!$A$3:$AI$823,12,FALSE)))","v":""},{"$f":"IF($A528=\"\",\"\",IF(OR(VLOOKUP($A528,Economática!$A$3:$AI$823,13,FALSE)=0,VLOOKUP($A528,Economática!$A$3:$AI$823,13,FALSE)=\"-\"),1/0,VLOOKUP($A528,Economática!$A$3:$AI$823,13,FALSE)))","v":""},{"$f":"IF($A528=\"\",\"\",IF(OR(VLOOKUP($A528,Economática!$A$3:$AI$823,14,FALSE)=0,VLOOKUP($A528,Economática!$A$3:$AI$823,14,FALSE)=\"-\"),1/0,VLOOKUP($A528,Economática!$A$3:$AI$823,14,FALSE)))","v":""},{"$f":"IF($A528=\"\",\"\",IF(OR(VLOOKUP($A528,Economática!$A$3:$AI$823,15,FALSE)=0,VLOOKUP($A528,Economática!$A$3:$AI$823,15,FALSE)=\"-\"),1/0,VLOOKUP($A528,Economática!$A$3:$AI$823,15,FALSE)))","v":""},{"$f":"IF($A528=\"\",\"\",IF(OR(VLOOKUP($A528,Economática!$A$3:$AI$823,16,FALSE)=0,VLOOKUP($A528,Economática!$A$3:$AI$823,16,FALSE)=\"-\"),1/0,VLOOKUP($A528,Economática!$A$3:$AI$823,16,FALSE)))","v":""},{"$f":"IF($A528=\"\",\"\",IF(OR(VLOOKUP($A528,Economática!$A$3:$AI$823,17,FALSE)=0,VLOOKUP($A528,Economática!$A$3:$AI$823,17,FALSE)=\"-\"),1/0,VLOOKUP($A528,Economática!$A$3:$AI$823,17,FALSE)))","v":""},{"$f":"IF($A528=\"\",\"\",IF(OR(VLOOKUP($A528,Economática!$A$3:$AI$823,18,FALSE)=0,VLOOKUP($A528,Economática!$A$3:$AI$823,18,FALSE)=\"-\"),1/0,VLOOKUP($A528,Economática!$A$3:$AI$823,18,FALSE)))","v":""},{"$f":"IF($A528=\"\",\"\",IF(OR(VLOOKUP($A528,Economática!$A$3:$AI$823,19,FALSE)=0,VLOOKUP($A528,Economática!$A$3:$AI$823,19,FALSE)=\"-\"),1/0,VLOOKUP($A528,Economática!$A$3:$AI$823,19,FALSE)))","v":""},{"$f":"IF($A528=\"\",\"\",VLOOKUP($A528,Economática!$A$3:$AI$823,20,FALSE)/E528)","v":""},"","","",{"$f":"IF($A528=\"\",\"\",IF(OR(VLOOKUP($A528,Economática!$A$3:$AI$823,21,FALSE)/100=0,VLOOKUP($A528,Economática!$A$3:$AI$823,21,FALSE)/100=\"-\"),1/0,VLOOKUP($A528,Economática!$A$3:$AI$823,21,FALSE)/100))","v":""},{"$f":"IF($A528=\"\",\"\",IF(OR(VLOOKUP($A528,Economática!$A$3:$AI$823,22,FALSE)/100=0,VLOOKUP($A528,Economática!$A$3:$AI$823,22,FALSE)/100=\"-\"),1/0,VLOOKUP($A528,Economática!$A$3:$AI$823,22,FALSE)/100))","v":""},{"$f":"IF($A528=\"\",\"\",IF(OR(VLOOKUP($A528,Economática!$A$3:$AI$823,23,FALSE)=0,VLOOKUP($A528,Economática!$A$3:$AI$823,23,FALSE)=\"-\"),1/0,VLOOKUP($A528,Economática!$A$3:$AI$823,23,FALSE)))","v":""},{"$f":"IF($A528=\"\",\"\",IF(OR(VLOOKUP($A528,Economática!$A$3:$AI$823,24,FALSE)=0,VLOOKUP($A528,Economática!$A$3:$AI$823,24,FALSE)=\"-\"),1/0,VLOOKUP($A528,Economática!$A$3:$AI$823,24,FALSE)))","v":""},{"$f":"IF($A528=\"\",\"\",IF(OR(VLOOKUP($A528,Economática!$A$3:$AI$823,25,FALSE)=0,VLOOKUP($A528,Economática!$A$3:$AI$823,25,FALSE)=\"-\"),1/0,VLOOKUP($A528,Economática!$A$3:$AI$823,25,FALSE)))","v":""},{"$f":"IF($A528=\"\",\"\",IF(ISERROR((F528+VLOOKUP($A528,Economática!$A$3:$AI$823,26,FALSE))/Y528),(F528+VLOOKUP($A528,Economática!$A$3:$AI$823,26,FALSE))/Y528,(F528+VLOOKUP($A528,Economática!$A$3:$AI$823,26,FALSE))/Y528))","v":""},{"$f":"IF($A528=\"\",\"\",IF(OR(-VLOOKUP($A528,Economática!$A$3:$AI$823,27,FALSE)=0,-VLOOKUP($A528,Economática!$A$3:$AI$823,27,FALSE)=\"-\"),1/0,-VLOOKUP($A528,Economática!$A$3:$AI$823,27,FALSE)))","v":""},"",{"$f":"IF($A528=\"\",\"\",IF(OR(VLOOKUP($A528,Economática!$A$3:$AI$823,28,FALSE)=0,VLOOKUP($A528,Economática!$A$3:$AI$823,28,FALSE)=\"-\"),1/0,VLOOKUP($A528,Economática!$A$3:$AI$823,28,FALSE)))","v":""},{"$f":"IF($A528=\"\",\"\",IF(OR(VLOOKUP($A528,Economática!$A$3:$AI$823,29,FALSE)=0,VLOOKUP($A528,Economática!$A$3:$AI$823,29,FALSE)=\"-\"),1/0,VLOOKUP($A528,Economática!$A$3:$AI$823,29,FALSE)))","v":""},{"$f":"IF($A528=\"\",\"\",IF(OR(VLOOKUP($A528,Economática!$A$3:$AI$823,30,FALSE)/E528=0,VLOOKUP($A528,Economática!$A$3:$AI$823,30,FALSE)/E528=\"-\",VLOOKUP($A528,Economática!$A$3:$AI$823,30,FALSE)/E528<33.33%,VLOOKUP($A528,Economática!$A$3:$AI$823,30,FALSE)/E528>100%),1/0,VLOOKUP($A528,Economática!$A$3:$AI$823,30,FALSE)/E528))","v":""},"",{"$f":"IF($A528=\"\",\"\",IF(OR(VLOOKUP($A528,Economática!$A$3:$AI$823,25,FALSE)=0,VLOOKUP($A528,Economática!$A$3:$AI$823,25,FALSE)=\"-\"),1/0,VLOOKUP($A528,Economática!$A$3:$AI$823,25,FALSE)))","v":""},{"$f":"CONCATENATE(Economática!B506,\" \",Economática!C506)","v":" "}]
[{"$f":"IF(Economática!AG507=\"\",\"\",Economática!AG507)","v":""},{"$f":"IF($A529=\"\",\"\",VLOOKUP(VLOOKUP($A529,Economática!$A$3:$AI$823,6,FALSE),Correção!$B$16:$C$36,2,FALSE))","v":""},{"$f":"IF(Economática!B507=\"\",\"\",Economática!B507)","v":""},{"$f":"IF($A529=\"\",\"\",IF(OR(VLOOKUP($A529,Economática!$A$3:$AI$823,8,FALSE)=0,VLOOKUP($A529,Economática!$A$3:$AI$823,8,FALSE)=\"-\"),1/0,VLOOKUP($A529,Economática!$A$3:$AI$823,8,FALSE)))","v":""},{"$f":"IF(A529=\"\",\"\",IF(ISERROR(VLOOKUP(A529,Correção!$B$2:$G$13,9,FALSE)),VLOOKUP($A529,Economática!$A$3:$AI$823,9,FALSE),VLOOKUP(A529,Correção!$B$2:$G$13,9,FALSE)))","v":""},{"$f":"IF($A529=\"\",\"\",Economática!G507)","v":""},{"$f":"IF($A529=\"\",\"\",IF(OR(VLOOKUP($A529,Economática!$A$3:$AI$823,10,FALSE)=0,VLOOKUP($A529,Economática!$A$3:$AI$823,10,FALSE)=\"-\"),1/0,VLOOKUP($A529,Economática!$A$3:$AI$823,10,FALSE)))","v":""},{"$f":"IF($A529=\"\",\"\",IF(OR(VLOOKUP($A529,Economática!$A$3:$AI$823,11,FALSE)=0,VLOOKUP($A529,Economática!$A$3:$AI$823,11,FALSE)=\"-\"),1/0,VLOOKUP($A529,Economática!$A$3:$AI$823,11,FALSE)))","v":""},{"$f":"IF($A529=\"\",\"\",IF(OR(VLOOKUP($A529,Economática!$A$3:$AI$823,12,FALSE)=0,VLOOKUP($A529,Economática!$A$3:$AI$823,12,FALSE)=\"-\"),1/0,VLOOKUP($A529,Economática!$A$3:$AI$823,12,FALSE)))","v":""},{"$f":"IF($A529=\"\",\"\",IF(OR(VLOOKUP($A529,Economática!$A$3:$AI$823,13,FALSE)=0,VLOOKUP($A529,Economática!$A$3:$AI$823,13,FALSE)=\"-\"),1/0,VLOOKUP($A529,Economática!$A$3:$AI$823,13,FALSE)))","v":""},{"$f":"IF($A529=\"\",\"\",IF(OR(VLOOKUP($A529,Economática!$A$3:$AI$823,14,FALSE)=0,VLOOKUP($A529,Economática!$A$3:$AI$823,14,FALSE)=\"-\"),1/0,VLOOKUP($A529,Economática!$A$3:$AI$823,14,FALSE)))","v":""},{"$f":"IF($A529=\"\",\"\",IF(OR(VLOOKUP($A529,Economática!$A$3:$AI$823,15,FALSE)=0,VLOOKUP($A529,Economática!$A$3:$AI$823,15,FALSE)=\"-\"),1/0,VLOOKUP($A529,Economática!$A$3:$AI$823,15,FALSE)))","v":""},{"$f":"IF($A529=\"\",\"\",IF(OR(VLOOKUP($A529,Economática!$A$3:$AI$823,16,FALSE)=0,VLOOKUP($A529,Economática!$A$3:$AI$823,16,FALSE)=\"-\"),1/0,VLOOKUP($A529,Economática!$A$3:$AI$823,16,FALSE)))","v":""},{"$f":"IF($A529=\"\",\"\",IF(OR(VLOOKUP($A529,Economática!$A$3:$AI$823,17,FALSE)=0,VLOOKUP($A529,Economática!$A$3:$AI$823,17,FALSE)=\"-\"),1/0,VLOOKUP($A529,Economática!$A$3:$AI$823,17,FALSE)))","v":""},{"$f":"IF($A529=\"\",\"\",IF(OR(VLOOKUP($A529,Economática!$A$3:$AI$823,18,FALSE)=0,VLOOKUP($A529,Economática!$A$3:$AI$823,18,FALSE)=\"-\"),1/0,VLOOKUP($A529,Economática!$A$3:$AI$823,18,FALSE)))","v":""},{"$f":"IF($A529=\"\",\"\",IF(OR(VLOOKUP($A529,Economática!$A$3:$AI$823,19,FALSE)=0,VLOOKUP($A529,Economática!$A$3:$AI$823,19,FALSE)=\"-\"),1/0,VLOOKUP($A529,Economática!$A$3:$AI$823,19,FALSE)))","v":""},{"$f":"IF($A529=\"\",\"\",VLOOKUP($A529,Economática!$A$3:$AI$823,20,FALSE)/E529)","v":""},"","","",{"$f":"IF($A529=\"\",\"\",IF(OR(VLOOKUP($A529,Economática!$A$3:$AI$823,21,FALSE)/100=0,VLOOKUP($A529,Economática!$A$3:$AI$823,21,FALSE)/100=\"-\"),1/0,VLOOKUP($A529,Economática!$A$3:$AI$823,21,FALSE)/100))","v":""},{"$f":"IF($A529=\"\",\"\",IF(OR(VLOOKUP($A529,Economática!$A$3:$AI$823,22,FALSE)/100=0,VLOOKUP($A529,Economática!$A$3:$AI$823,22,FALSE)/100=\"-\"),1/0,VLOOKUP($A529,Economática!$A$3:$AI$823,22,FALSE)/100))","v":""},{"$f":"IF($A529=\"\",\"\",IF(OR(VLOOKUP($A529,Economática!$A$3:$AI$823,23,FALSE)=0,VLOOKUP($A529,Economática!$A$3:$AI$823,23,FALSE)=\"-\"),1/0,VLOOKUP($A529,Economática!$A$3:$AI$823,23,FALSE)))","v":""},{"$f":"IF($A529=\"\",\"\",IF(OR(VLOOKUP($A529,Economática!$A$3:$AI$823,24,FALSE)=0,VLOOKUP($A529,Economática!$A$3:$AI$823,24,FALSE)=\"-\"),1/0,VLOOKUP($A529,Economática!$A$3:$AI$823,24,FALSE)))","v":""},{"$f":"IF($A529=\"\",\"\",IF(OR(VLOOKUP($A529,Economática!$A$3:$AI$823,25,FALSE)=0,VLOOKUP($A529,Economática!$A$3:$AI$823,25,FALSE)=\"-\"),1/0,VLOOKUP($A529,Economática!$A$3:$AI$823,25,FALSE)))","v":""},{"$f":"IF($A529=\"\",\"\",IF(ISERROR((F529+VLOOKUP($A529,Economática!$A$3:$AI$823,26,FALSE))/Y529),(F529+VLOOKUP($A529,Economática!$A$3:$AI$823,26,FALSE))/Y529,(F529+VLOOKUP($A529,Economática!$A$3:$AI$823,26,FALSE))/Y529))","v":""},{"$f":"IF($A529=\"\",\"\",IF(OR(-VLOOKUP($A529,Economática!$A$3:$AI$823,27,FALSE)=0,-VLOOKUP($A529,Economática!$A$3:$AI$823,27,FALSE)=\"-\"),1/0,-VLOOKUP($A529,Economática!$A$3:$AI$823,27,FALSE)))","v":""},"",{"$f":"IF($A529=\"\",\"\",IF(OR(VLOOKUP($A529,Economática!$A$3:$AI$823,28,FALSE)=0,VLOOKUP($A529,Economática!$A$3:$AI$823,28,FALSE)=\"-\"),1/0,VLOOKUP($A529,Economática!$A$3:$AI$823,28,FALSE)))","v":""},{"$f":"IF($A529=\"\",\"\",IF(OR(VLOOKUP($A529,Economática!$A$3:$AI$823,29,FALSE)=0,VLOOKUP($A529,Economática!$A$3:$AI$823,29,FALSE)=\"-\"),1/0,VLOOKUP($A529,Economática!$A$3:$AI$823,29,FALSE)))","v":""},{"$f":"IF($A529=\"\",\"\",IF(OR(VLOOKUP($A529,Economática!$A$3:$AI$823,30,FALSE)/E529=0,VLOOKUP($A529,Economática!$A$3:$AI$823,30,FALSE)/E529=\"-\",VLOOKUP($A529,Economática!$A$3:$AI$823,30,FALSE)/E529<33.33%,VLOOKUP($A529,Economática!$A$3:$AI$823,30,FALSE)/E529>100%),1/0,VLOOKUP($A529,Economática!$A$3:$AI$823,30,FALSE)/E529))","v":""},"",{"$f":"IF($A529=\"\",\"\",IF(OR(VLOOKUP($A529,Economática!$A$3:$AI$823,25,FALSE)=0,VLOOKUP($A529,Economática!$A$3:$AI$823,25,FALSE)=\"-\"),1/0,VLOOKUP($A529,Economática!$A$3:$AI$823,25,FALSE)))","v":""},{"$f":"CONCATENATE(Economática!B507,\" \",Economática!C507)","v":" "}]
[{"$f":"IF(Economática!AG508=\"\",\"\",Economática!AG508)","v":""},{"$f":"IF($A530=\"\",\"\",VLOOKUP(VLOOKUP($A530,Economática!$A$3:$AI$823,6,FALSE),Correção!$B$16:$C$36,2,FALSE))","v":""},{"$f":"IF(Economática!B508=\"\",\"\",Economática!B508)","v":""},{"$f":"IF($A530=\"\",\"\",IF(OR(VLOOKUP($A530,Economática!$A$3:$AI$823,8,FALSE)=0,VLOOKUP($A530,Economática!$A$3:$AI$823,8,FALSE)=\"-\"),1/0,VLOOKUP($A530,Economática!$A$3:$AI$823,8,FALSE)))","v":""},{"$f":"IF(A530=\"\",\"\",IF(ISERROR(VLOOKUP(A530,Correção!$B$2:$G$13,9,FALSE)),VLOOKUP($A530,Economática!$A$3:$AI$823,9,FALSE),VLOOKUP(A530,Correção!$B$2:$G$13,9,FALSE)))","v":""},{"$f":"IF($A530=\"\",\"\",Economática!G508)","v":""},{"$f":"IF($A530=\"\",\"\",IF(OR(VLOOKUP($A530,Economática!$A$3:$AI$823,10,FALSE)=0,VLOOKUP($A530,Economática!$A$3:$AI$823,10,FALSE)=\"-\"),1/0,VLOOKUP($A530,Economática!$A$3:$AI$823,10,FALSE)))","v":""},{"$f":"IF($A530=\"\",\"\",IF(OR(VLOOKUP($A530,Economática!$A$3:$AI$823,11,FALSE)=0,VLOOKUP($A530,Economática!$A$3:$AI$823,11,FALSE)=\"-\"),1/0,VLOOKUP($A530,Economática!$A$3:$AI$823,11,FALSE)))","v":""},{"$f":"IF($A530=\"\",\"\",IF(OR(VLOOKUP($A530,Economática!$A$3:$AI$823,12,FALSE)=0,VLOOKUP($A530,Economática!$A$3:$AI$823,12,FALSE)=\"-\"),1/0,VLOOKUP($A530,Economática!$A$3:$AI$823,12,FALSE)))","v":""},{"$f":"IF($A530=\"\",\"\",IF(OR(VLOOKUP($A530,Economática!$A$3:$AI$823,13,FALSE)=0,VLOOKUP($A530,Economática!$A$3:$AI$823,13,FALSE)=\"-\"),1/0,VLOOKUP($A530,Economática!$A$3:$AI$823,13,FALSE)))","v":""},{"$f":"IF($A530=\"\",\"\",IF(OR(VLOOKUP($A530,Economática!$A$3:$AI$823,14,FALSE)=0,VLOOKUP($A530,Economática!$A$3:$AI$823,14,FALSE)=\"-\"),1/0,VLOOKUP($A530,Economática!$A$3:$AI$823,14,FALSE)))","v":""},{"$f":"IF($A530=\"\",\"\",IF(OR(VLOOKUP($A530,Economática!$A$3:$AI$823,15,FALSE)=0,VLOOKUP($A530,Economática!$A$3:$AI$823,15,FALSE)=\"-\"),1/0,VLOOKUP($A530,Economática!$A$3:$AI$823,15,FALSE)))","v":""},{"$f":"IF($A530=\"\",\"\",IF(OR(VLOOKUP($A530,Economática!$A$3:$AI$823,16,FALSE)=0,VLOOKUP($A530,Economática!$A$3:$AI$823,16,FALSE)=\"-\"),1/0,VLOOKUP($A530,Economática!$A$3:$AI$823,16,FALSE)))","v":""},{"$f":"IF($A530=\"\",\"\",IF(OR(VLOOKUP($A530,Economática!$A$3:$AI$823,17,FALSE)=0,VLOOKUP($A530,Economática!$A$3:$AI$823,17,FALSE)=\"-\"),1/0,VLOOKUP($A530,Economática!$A$3:$AI$823,17,FALSE)))","v":""},{"$f":"IF($A530=\"\",\"\",IF(OR(VLOOKUP($A530,Economática!$A$3:$AI$823,18,FALSE)=0,VLOOKUP($A530,Economática!$A$3:$AI$823,18,FALSE)=\"-\"),1/0,VLOOKUP($A530,Economática!$A$3:$AI$823,18,FALSE)))","v":""},{"$f":"IF($A530=\"\",\"\",IF(OR(VLOOKUP($A530,Economática!$A$3:$AI$823,19,FALSE)=0,VLOOKUP($A530,Economática!$A$3:$AI$823,19,FALSE)=\"-\"),1/0,VLOOKUP($A530,Economática!$A$3:$AI$823,19,FALSE)))","v":""},{"$f":"IF($A530=\"\",\"\",VLOOKUP($A530,Economática!$A$3:$AI$823,20,FALSE)/E530)","v":""},"","","",{"$f":"IF($A530=\"\",\"\",IF(OR(VLOOKUP($A530,Economática!$A$3:$AI$823,21,FALSE)/100=0,VLOOKUP($A530,Economática!$A$3:$AI$823,21,FALSE)/100=\"-\"),1/0,VLOOKUP($A530,Economática!$A$3:$AI$823,21,FALSE)/100))","v":""},{"$f":"IF($A530=\"\",\"\",IF(OR(VLOOKUP($A530,Economática!$A$3:$AI$823,22,FALSE)/100=0,VLOOKUP($A530,Economática!$A$3:$AI$823,22,FALSE)/100=\"-\"),1/0,VLOOKUP($A530,Economática!$A$3:$AI$823,22,FALSE)/100))","v":""},{"$f":"IF($A530=\"\",\"\",IF(OR(VLOOKUP($A530,Economática!$A$3:$AI$823,23,FALSE)=0,VLOOKUP($A530,Economática!$A$3:$AI$823,23,FALSE)=\"-\"),1/0,VLOOKUP($A530,Economática!$A$3:$AI$823,23,FALSE)))","v":""},{"$f":"IF($A530=\"\",\"\",IF(OR(VLOOKUP($A530,Economática!$A$3:$AI$823,24,FALSE)=0,VLOOKUP($A530,Economática!$A$3:$AI$823,24,FALSE)=\"-\"),1/0,VLOOKUP($A530,Economática!$A$3:$AI$823,24,FALSE)))","v":""},{"$f":"IF($A530=\"\",\"\",IF(OR(VLOOKUP($A530,Economática!$A$3:$AI$823,25,FALSE)=0,VLOOKUP($A530,Economática!$A$3:$AI$823,25,FALSE)=\"-\"),1/0,VLOOKUP($A530,Economática!$A$3:$AI$823,25,FALSE)))","v":""},{"$f":"IF($A530=\"\",\"\",IF(ISERROR((F530+VLOOKUP($A530,Economática!$A$3:$AI$823,26,FALSE))/Y530),(F530+VLOOKUP($A530,Economática!$A$3:$AI$823,26,FALSE))/Y530,(F530+VLOOKUP($A530,Economática!$A$3:$AI$823,26,FALSE))/Y530))","v":""},{"$f":"IF($A530=\"\",\"\",IF(OR(-VLOOKUP($A530,Economática!$A$3:$AI$823,27,FALSE)=0,-VLOOKUP($A530,Economática!$A$3:$AI$823,27,FALSE)=\"-\"),1/0,-VLOOKUP($A530,Economática!$A$3:$AI$823,27,FALSE)))","v":""},"",{"$f":"IF($A530=\"\",\"\",IF(OR(VLOOKUP($A530,Economática!$A$3:$AI$823,28,FALSE)=0,VLOOKUP($A530,Economática!$A$3:$AI$823,28,FALSE)=\"-\"),1/0,VLOOKUP($A530,Economática!$A$3:$AI$823,28,FALSE)))","v":""},{"$f":"IF($A530=\"\",\"\",IF(OR(VLOOKUP($A530,Economática!$A$3:$AI$823,29,FALSE)=0,VLOOKUP($A530,Economática!$A$3:$AI$823,29,FALSE)=\"-\"),1/0,VLOOKUP($A530,Economática!$A$3:$AI$823,29,FALSE)))","v":""},{"$f":"IF($A530=\"\",\"\",IF(OR(VLOOKUP($A530,Economática!$A$3:$AI$823,30,FALSE)/E530=0,VLOOKUP($A530,Economática!$A$3:$AI$823,30,FALSE)/E530=\"-\",VLOOKUP($A530,Economática!$A$3:$AI$823,30,FALSE)/E530<33.33%,VLOOKUP($A530,Economática!$A$3:$AI$823,30,FALSE)/E530>100%),1/0,VLOOKUP($A530,Economática!$A$3:$AI$823,30,FALSE)/E530))","v":""},"",{"$f":"IF($A530=\"\",\"\",IF(OR(VLOOKUP($A530,Economática!$A$3:$AI$823,25,FALSE)=0,VLOOKUP($A530,Economática!$A$3:$AI$823,25,FALSE)=\"-\"),1/0,VLOOKUP($A530,Economática!$A$3:$AI$823,25,FALSE)))","v":""},{"$f":"CONCATENATE(Economática!B508,\" \",Economática!C508)","v":" "}]
[{"$f":"IF(Economática!AG509=\"\",\"\",Economática!AG509)","v":""},{"$f":"IF($A531=\"\",\"\",VLOOKUP(VLOOKUP($A531,Economática!$A$3:$AI$823,6,FALSE),Correção!$B$16:$C$36,2,FALSE))","v":""},{"$f":"IF(Economática!B509=\"\",\"\",Economática!B509)","v":""},{"$f":"IF($A531=\"\",\"\",IF(OR(VLOOKUP($A531,Economática!$A$3:$AI$823,8,FALSE)=0,VLOOKUP($A531,Economática!$A$3:$AI$823,8,FALSE)=\"-\"),1/0,VLOOKUP($A531,Economática!$A$3:$AI$823,8,FALSE)))","v":""},{"$f":"IF(A531=\"\",\"\",IF(ISERROR(VLOOKUP(A531,Correção!$B$2:$G$13,9,FALSE)),VLOOKUP($A531,Economática!$A$3:$AI$823,9,FALSE),VLOOKUP(A531,Correção!$B$2:$G$13,9,FALSE)))","v":""},{"$f":"IF($A531=\"\",\"\",Economática!G509)","v":""},{"$f":"IF($A531=\"\",\"\",IF(OR(VLOOKUP($A531,Economática!$A$3:$AI$823,10,FALSE)=0,VLOOKUP($A531,Economática!$A$3:$AI$823,10,FALSE)=\"-\"),1/0,VLOOKUP($A531,Economática!$A$3:$AI$823,10,FALSE)))","v":""},{"$f":"IF($A531=\"\",\"\",IF(OR(VLOOKUP($A531,Economática!$A$3:$AI$823,11,FALSE)=0,VLOOKUP($A531,Economática!$A$3:$AI$823,11,FALSE)=\"-\"),1/0,VLOOKUP($A531,Economática!$A$3:$AI$823,11,FALSE)))","v":""},{"$f":"IF($A531=\"\",\"\",IF(OR(VLOOKUP($A531,Economática!$A$3:$AI$823,12,FALSE)=0,VLOOKUP($A531,Economática!$A$3:$AI$823,12,FALSE)=\"-\"),1/0,VLOOKUP($A531,Economática!$A$3:$AI$823,12,FALSE)))","v":""},{"$f":"IF($A531=\"\",\"\",IF(OR(VLOOKUP($A531,Economática!$A$3:$AI$823,13,FALSE)=0,VLOOKUP($A531,Economática!$A$3:$AI$823,13,FALSE)=\"-\"),1/0,VLOOKUP($A531,Economática!$A$3:$AI$823,13,FALSE)))","v":""},{"$f":"IF($A531=\"\",\"\",IF(OR(VLOOKUP($A531,Economática!$A$3:$AI$823,14,FALSE)=0,VLOOKUP($A531,Economática!$A$3:$AI$823,14,FALSE)=\"-\"),1/0,VLOOKUP($A531,Economática!$A$3:$AI$823,14,FALSE)))","v":""},{"$f":"IF($A531=\"\",\"\",IF(OR(VLOOKUP($A531,Economática!$A$3:$AI$823,15,FALSE)=0,VLOOKUP($A531,Economática!$A$3:$AI$823,15,FALSE)=\"-\"),1/0,VLOOKUP($A531,Economática!$A$3:$AI$823,15,FALSE)))","v":""},{"$f":"IF($A531=\"\",\"\",IF(OR(VLOOKUP($A531,Economática!$A$3:$AI$823,16,FALSE)=0,VLOOKUP($A531,Economática!$A$3:$AI$823,16,FALSE)=\"-\"),1/0,VLOOKUP($A531,Economática!$A$3:$AI$823,16,FALSE)))","v":""},{"$f":"IF($A531=\"\",\"\",IF(OR(VLOOKUP($A531,Economática!$A$3:$AI$823,17,FALSE)=0,VLOOKUP($A531,Economática!$A$3:$AI$823,17,FALSE)=\"-\"),1/0,VLOOKUP($A531,Economática!$A$3:$AI$823,17,FALSE)))","v":""},{"$f":"IF($A531=\"\",\"\",IF(OR(VLOOKUP($A531,Economática!$A$3:$AI$823,18,FALSE)=0,VLOOKUP($A531,Economática!$A$3:$AI$823,18,FALSE)=\"-\"),1/0,VLOOKUP($A531,Economática!$A$3:$AI$823,18,FALSE)))","v":""},{"$f":"IF($A531=\"\",\"\",IF(OR(VLOOKUP($A531,Economática!$A$3:$AI$823,19,FALSE)=0,VLOOKUP($A531,Economática!$A$3:$AI$823,19,FALSE)=\"-\"),1/0,VLOOKUP($A531,Economática!$A$3:$AI$823,19,FALSE)))","v":""},{"$f":"IF($A531=\"\",\"\",VLOOKUP($A531,Economática!$A$3:$AI$823,20,FALSE)/E531)","v":""},"","","",{"$f":"IF($A531=\"\",\"\",IF(OR(VLOOKUP($A531,Economática!$A$3:$AI$823,21,FALSE)/100=0,VLOOKUP($A531,Economática!$A$3:$AI$823,21,FALSE)/100=\"-\"),1/0,VLOOKUP($A531,Economática!$A$3:$AI$823,21,FALSE)/100))","v":""},{"$f":"IF($A531=\"\",\"\",IF(OR(VLOOKUP($A531,Economática!$A$3:$AI$823,22,FALSE)/100=0,VLOOKUP($A531,Economática!$A$3:$AI$823,22,FALSE)/100=\"-\"),1/0,VLOOKUP($A531,Economática!$A$3:$AI$823,22,FALSE)/100))","v":""},{"$f":"IF($A531=\"\",\"\",IF(OR(VLOOKUP($A531,Economática!$A$3:$AI$823,23,FALSE)=0,VLOOKUP($A531,Economática!$A$3:$AI$823,23,FALSE)=\"-\"),1/0,VLOOKUP($A531,Economática!$A$3:$AI$823,23,FALSE)))","v":""},{"$f":"IF($A531=\"\",\"\",IF(OR(VLOOKUP($A531,Economática!$A$3:$AI$823,24,FALSE)=0,VLOOKUP($A531,Economática!$A$3:$AI$823,24,FALSE)=\"-\"),1/0,VLOOKUP($A531,Economática!$A$3:$AI$823,24,FALSE)))","v":""},{"$f":"IF($A531=\"\",\"\",IF(OR(VLOOKUP($A531,Economática!$A$3:$AI$823,25,FALSE)=0,VLOOKUP($A531,Economática!$A$3:$AI$823,25,FALSE)=\"-\"),1/0,VLOOKUP($A531,Economática!$A$3:$AI$823,25,FALSE)))","v":""},{"$f":"IF($A531=\"\",\"\",IF(ISERROR((F531+VLOOKUP($A531,Economática!$A$3:$AI$823,26,FALSE))/Y531),(F531+VLOOKUP($A531,Economática!$A$3:$AI$823,26,FALSE))/Y531,(F531+VLOOKUP($A531,Economática!$A$3:$AI$823,26,FALSE))/Y531))","v":""},{"$f":"IF($A531=\"\",\"\",IF(OR(-VLOOKUP($A531,Economática!$A$3:$AI$823,27,FALSE)=0,-VLOOKUP($A531,Economática!$A$3:$AI$823,27,FALSE)=\"-\"),1/0,-VLOOKUP($A531,Economática!$A$3:$AI$823,27,FALSE)))","v":""},"",{"$f":"IF($A531=\"\",\"\",IF(OR(VLOOKUP($A531,Economática!$A$3:$AI$823,28,FALSE)=0,VLOOKUP($A531,Economática!$A$3:$AI$823,28,FALSE)=\"-\"),1/0,VLOOKUP($A531,Economática!$A$3:$AI$823,28,FALSE)))","v":""},{"$f":"IF($A531=\"\",\"\",IF(OR(VLOOKUP($A531,Economática!$A$3:$AI$823,29,FALSE)=0,VLOOKUP($A531,Economática!$A$3:$AI$823,29,FALSE)=\"-\"),1/0,VLOOKUP($A531,Economática!$A$3:$AI$823,29,FALSE)))","v":""},{"$f":"IF($A531=\"\",\"\",IF(OR(VLOOKUP($A531,Economática!$A$3:$AI$823,30,FALSE)/E531=0,VLOOKUP($A531,Economática!$A$3:$AI$823,30,FALSE)/E531=\"-\",VLOOKUP($A531,Economática!$A$3:$AI$823,30,FALSE)/E531<33.33%,VLOOKUP($A531,Economática!$A$3:$AI$823,30,FALSE)/E531>100%),1/0,VLOOKUP($A531,Economática!$A$3:$AI$823,30,FALSE)/E531))","v":""},"",{"$f":"IF($A531=\"\",\"\",IF(OR(VLOOKUP($A531,Economática!$A$3:$AI$823,25,FALSE)=0,VLOOKUP($A531,Economática!$A$3:$AI$823,25,FALSE)=\"-\"),1/0,VLOOKUP($A531,Economática!$A$3:$AI$823,25,FALSE)))","v":""},{"$f":"CONCATENATE(Economática!B509,\" \",Economática!C509)","v":" "}]
[{"$f":"IF(Economática!AG510=\"\",\"\",Economática!AG510)","v":""},{"$f":"IF($A532=\"\",\"\",VLOOKUP(VLOOKUP($A532,Economática!$A$3:$AI$823,6,FALSE),Correção!$B$16:$C$36,2,FALSE))","v":""},{"$f":"IF(Economática!B510=\"\",\"\",Economática!B510)","v":""},{"$f":"IF($A532=\"\",\"\",IF(OR(VLOOKUP($A532,Economática!$A$3:$AI$823,8,FALSE)=0,VLOOKUP($A532,Economática!$A$3:$AI$823,8,FALSE)=\"-\"),1/0,VLOOKUP($A532,Economática!$A$3:$AI$823,8,FALSE)))","v":""},{"$f":"IF(A532=\"\",\"\",IF(ISERROR(VLOOKUP(A532,Correção!$B$2:$G$13,9,FALSE)),VLOOKUP($A532,Economática!$A$3:$AI$823,9,FALSE),VLOOKUP(A532,Correção!$B$2:$G$13,9,FALSE)))","v":""},{"$f":"IF($A532=\"\",\"\",Economática!G510)","v":""},{"$f":"IF($A532=\"\",\"\",IF(OR(VLOOKUP($A532,Economática!$A$3:$AI$823,10,FALSE)=0,VLOOKUP($A532,Economática!$A$3:$AI$823,10,FALSE)=\"-\"),1/0,VLOOKUP($A532,Economática!$A$3:$AI$823,10,FALSE)))","v":""},{"$f":"IF($A532=\"\",\"\",IF(OR(VLOOKUP($A532,Economática!$A$3:$AI$823,11,FALSE)=0,VLOOKUP($A532,Economática!$A$3:$AI$823,11,FALSE)=\"-\"),1/0,VLOOKUP($A532,Economática!$A$3:$AI$823,11,FALSE)))","v":""},{"$f":"IF($A532=\"\",\"\",IF(OR(VLOOKUP($A532,Economática!$A$3:$AI$823,12,FALSE)=0,VLOOKUP($A532,Economática!$A$3:$AI$823,12,FALSE)=\"-\"),1/0,VLOOKUP($A532,Economática!$A$3:$AI$823,12,FALSE)))","v":""},{"$f":"IF($A532=\"\",\"\",IF(OR(VLOOKUP($A532,Economática!$A$3:$AI$823,13,FALSE)=0,VLOOKUP($A532,Economática!$A$3:$AI$823,13,FALSE)=\"-\"),1/0,VLOOKUP($A532,Economática!$A$3:$AI$823,13,FALSE)))","v":""},{"$f":"IF($A532=\"\",\"\",IF(OR(VLOOKUP($A532,Economática!$A$3:$AI$823,14,FALSE)=0,VLOOKUP($A532,Economática!$A$3:$AI$823,14,FALSE)=\"-\"),1/0,VLOOKUP($A532,Economática!$A$3:$AI$823,14,FALSE)))","v":""},{"$f":"IF($A532=\"\",\"\",IF(OR(VLOOKUP($A532,Economática!$A$3:$AI$823,15,FALSE)=0,VLOOKUP($A532,Economática!$A$3:$AI$823,15,FALSE)=\"-\"),1/0,VLOOKUP($A532,Economática!$A$3:$AI$823,15,FALSE)))","v":""},{"$f":"IF($A532=\"\",\"\",IF(OR(VLOOKUP($A532,Economática!$A$3:$AI$823,16,FALSE)=0,VLOOKUP($A532,Economática!$A$3:$AI$823,16,FALSE)=\"-\"),1/0,VLOOKUP($A532,Economática!$A$3:$AI$823,16,FALSE)))","v":""},{"$f":"IF($A532=\"\",\"\",IF(OR(VLOOKUP($A532,Economática!$A$3:$AI$823,17,FALSE)=0,VLOOKUP($A532,Economática!$A$3:$AI$823,17,FALSE)=\"-\"),1/0,VLOOKUP($A532,Economática!$A$3:$AI$823,17,FALSE)))","v":""},{"$f":"IF($A532=\"\",\"\",IF(OR(VLOOKUP($A532,Economática!$A$3:$AI$823,18,FALSE)=0,VLOOKUP($A532,Economática!$A$3:$AI$823,18,FALSE)=\"-\"),1/0,VLOOKUP($A532,Economática!$A$3:$AI$823,18,FALSE)))","v":""},{"$f":"IF($A532=\"\",\"\",IF(OR(VLOOKUP($A532,Economática!$A$3:$AI$823,19,FALSE)=0,VLOOKUP($A532,Economática!$A$3:$AI$823,19,FALSE)=\"-\"),1/0,VLOOKUP($A532,Economática!$A$3:$AI$823,19,FALSE)))","v":""},{"$f":"IF($A532=\"\",\"\",VLOOKUP($A532,Economática!$A$3:$AI$823,20,FALSE)/E532)","v":""},"","","",{"$f":"IF($A532=\"\",\"\",IF(OR(VLOOKUP($A532,Economática!$A$3:$AI$823,21,FALSE)/100=0,VLOOKUP($A532,Economática!$A$3:$AI$823,21,FALSE)/100=\"-\"),1/0,VLOOKUP($A532,Economática!$A$3:$AI$823,21,FALSE)/100))","v":""},{"$f":"IF($A532=\"\",\"\",IF(OR(VLOOKUP($A532,Economática!$A$3:$AI$823,22,FALSE)/100=0,VLOOKUP($A532,Economática!$A$3:$AI$823,22,FALSE)/100=\"-\"),1/0,VLOOKUP($A532,Economática!$A$3:$AI$823,22,FALSE)/100))","v":""},{"$f":"IF($A532=\"\",\"\",IF(OR(VLOOKUP($A532,Economática!$A$3:$AI$823,23,FALSE)=0,VLOOKUP($A532,Economática!$A$3:$AI$823,23,FALSE)=\"-\"),1/0,VLOOKUP($A532,Economática!$A$3:$AI$823,23,FALSE)))","v":""},{"$f":"IF($A532=\"\",\"\",IF(OR(VLOOKUP($A532,Economática!$A$3:$AI$823,24,FALSE)=0,VLOOKUP($A532,Economática!$A$3:$AI$823,24,FALSE)=\"-\"),1/0,VLOOKUP($A532,Economática!$A$3:$AI$823,24,FALSE)))","v":""},{"$f":"IF($A532=\"\",\"\",IF(OR(VLOOKUP($A532,Economática!$A$3:$AI$823,25,FALSE)=0,VLOOKUP($A532,Economática!$A$3:$AI$823,25,FALSE)=\"-\"),1/0,VLOOKUP($A532,Economática!$A$3:$AI$823,25,FALSE)))","v":""},{"$f":"IF($A532=\"\",\"\",IF(ISERROR((F532+VLOOKUP($A532,Economática!$A$3:$AI$823,26,FALSE))/Y532),(F532+VLOOKUP($A532,Economática!$A$3:$AI$823,26,FALSE))/Y532,(F532+VLOOKUP($A532,Economática!$A$3:$AI$823,26,FALSE))/Y532))","v":""},{"$f":"IF($A532=\"\",\"\",IF(OR(-VLOOKUP($A532,Economática!$A$3:$AI$823,27,FALSE)=0,-VLOOKUP($A532,Economática!$A$3:$AI$823,27,FALSE)=\"-\"),1/0,-VLOOKUP($A532,Economática!$A$3:$AI$823,27,FALSE)))","v":""},"",{"$f":"IF($A532=\"\",\"\",IF(OR(VLOOKUP($A532,Economática!$A$3:$AI$823,28,FALSE)=0,VLOOKUP($A532,Economática!$A$3:$AI$823,28,FALSE)=\"-\"),1/0,VLOOKUP($A532,Economática!$A$3:$AI$823,28,FALSE)))","v":""},{"$f":"IF($A532=\"\",\"\",IF(OR(VLOOKUP($A532,Economática!$A$3:$AI$823,29,FALSE)=0,VLOOKUP($A532,Economática!$A$3:$AI$823,29,FALSE)=\"-\"),1/0,VLOOKUP($A532,Economática!$A$3:$AI$823,29,FALSE)))","v":""},{"$f":"IF($A532=\"\",\"\",IF(OR(VLOOKUP($A532,Economática!$A$3:$AI$823,30,FALSE)/E532=0,VLOOKUP($A532,Economática!$A$3:$AI$823,30,FALSE)/E532=\"-\",VLOOKUP($A532,Economática!$A$3:$AI$823,30,FALSE)/E532<33.33%,VLOOKUP($A532,Economática!$A$3:$AI$823,30,FALSE)/E532>100%),1/0,VLOOKUP($A532,Economática!$A$3:$AI$823,30,FALSE)/E532))","v":""},"",{"$f":"IF($A532=\"\",\"\",IF(OR(VLOOKUP($A532,Economática!$A$3:$AI$823,25,FALSE)=0,VLOOKUP($A532,Economática!$A$3:$AI$823,25,FALSE)=\"-\"),1/0,VLOOKUP($A532,Economática!$A$3:$AI$823,25,FALSE)))","v":""},{"$f":"CONCATENATE(Economática!B510,\" \",Economática!C510)","v":" "}]
[{"$f":"IF(Economática!AG511=\"\",\"\",Economática!AG511)","v":""},{"$f":"IF($A533=\"\",\"\",VLOOKUP(VLOOKUP($A533,Economática!$A$3:$AI$823,6,FALSE),Correção!$B$16:$C$36,2,FALSE))","v":""},{"$f":"IF(Economática!B511=\"\",\"\",Economática!B511)","v":""},{"$f":"IF($A533=\"\",\"\",IF(OR(VLOOKUP($A533,Economática!$A$3:$AI$823,8,FALSE)=0,VLOOKUP($A533,Economática!$A$3:$AI$823,8,FALSE)=\"-\"),1/0,VLOOKUP($A533,Economática!$A$3:$AI$823,8,FALSE)))","v":""},{"$f":"IF(A533=\"\",\"\",IF(ISERROR(VLOOKUP(A533,Correção!$B$2:$G$13,9,FALSE)),VLOOKUP($A533,Economática!$A$3:$AI$823,9,FALSE),VLOOKUP(A533,Correção!$B$2:$G$13,9,FALSE)))","v":""},{"$f":"IF($A533=\"\",\"\",Economática!G511)","v":""},{"$f":"IF($A533=\"\",\"\",IF(OR(VLOOKUP($A533,Economática!$A$3:$AI$823,10,FALSE)=0,VLOOKUP($A533,Economática!$A$3:$AI$823,10,FALSE)=\"-\"),1/0,VLOOKUP($A533,Economática!$A$3:$AI$823,10,FALSE)))","v":""},{"$f":"IF($A533=\"\",\"\",IF(OR(VLOOKUP($A533,Economática!$A$3:$AI$823,11,FALSE)=0,VLOOKUP($A533,Economática!$A$3:$AI$823,11,FALSE)=\"-\"),1/0,VLOOKUP($A533,Economática!$A$3:$AI$823,11,FALSE)))","v":""},{"$f":"IF($A533=\"\",\"\",IF(OR(VLOOKUP($A533,Economática!$A$3:$AI$823,12,FALSE)=0,VLOOKUP($A533,Economática!$A$3:$AI$823,12,FALSE)=\"-\"),1/0,VLOOKUP($A533,Economática!$A$3:$AI$823,12,FALSE)))","v":""},{"$f":"IF($A533=\"\",\"\",IF(OR(VLOOKUP($A533,Economática!$A$3:$AI$823,13,FALSE)=0,VLOOKUP($A533,Economática!$A$3:$AI$823,13,FALSE)=\"-\"),1/0,VLOOKUP($A533,Economática!$A$3:$AI$823,13,FALSE)))","v":""},{"$f":"IF($A533=\"\",\"\",IF(OR(VLOOKUP($A533,Economática!$A$3:$AI$823,14,FALSE)=0,VLOOKUP($A533,Economática!$A$3:$AI$823,14,FALSE)=\"-\"),1/0,VLOOKUP($A533,Economática!$A$3:$AI$823,14,FALSE)))","v":""},{"$f":"IF($A533=\"\",\"\",IF(OR(VLOOKUP($A533,Economática!$A$3:$AI$823,15,FALSE)=0,VLOOKUP($A533,Economática!$A$3:$AI$823,15,FALSE)=\"-\"),1/0,VLOOKUP($A533,Economática!$A$3:$AI$823,15,FALSE)))","v":""},{"$f":"IF($A533=\"\",\"\",IF(OR(VLOOKUP($A533,Economática!$A$3:$AI$823,16,FALSE)=0,VLOOKUP($A533,Economática!$A$3:$AI$823,16,FALSE)=\"-\"),1/0,VLOOKUP($A533,Economática!$A$3:$AI$823,16,FALSE)))","v":""},{"$f":"IF($A533=\"\",\"\",IF(OR(VLOOKUP($A533,Economática!$A$3:$AI$823,17,FALSE)=0,VLOOKUP($A533,Economática!$A$3:$AI$823,17,FALSE)=\"-\"),1/0,VLOOKUP($A533,Economática!$A$3:$AI$823,17,FALSE)))","v":""},{"$f":"IF($A533=\"\",\"\",IF(OR(VLOOKUP($A533,Economática!$A$3:$AI$823,18,FALSE)=0,VLOOKUP($A533,Economática!$A$3:$AI$823,18,FALSE)=\"-\"),1/0,VLOOKUP($A533,Economática!$A$3:$AI$823,18,FALSE)))","v":""},{"$f":"IF($A533=\"\",\"\",IF(OR(VLOOKUP($A533,Economática!$A$3:$AI$823,19,FALSE)=0,VLOOKUP($A533,Economática!$A$3:$AI$823,19,FALSE)=\"-\"),1/0,VLOOKUP($A533,Economática!$A$3:$AI$823,19,FALSE)))","v":""},{"$f":"IF($A533=\"\",\"\",VLOOKUP($A533,Economática!$A$3:$AI$823,20,FALSE)/E533)","v":""},"","","",{"$f":"IF($A533=\"\",\"\",IF(OR(VLOOKUP($A533,Economática!$A$3:$AI$823,21,FALSE)/100=0,VLOOKUP($A533,Economática!$A$3:$AI$823,21,FALSE)/100=\"-\"),1/0,VLOOKUP($A533,Economática!$A$3:$AI$823,21,FALSE)/100))","v":""},{"$f":"IF($A533=\"\",\"\",IF(OR(VLOOKUP($A533,Economática!$A$3:$AI$823,22,FALSE)/100=0,VLOOKUP($A533,Economática!$A$3:$AI$823,22,FALSE)/100=\"-\"),1/0,VLOOKUP($A533,Economática!$A$3:$AI$823,22,FALSE)/100))","v":""},{"$f":"IF($A533=\"\",\"\",IF(OR(VLOOKUP($A533,Economática!$A$3:$AI$823,23,FALSE)=0,VLOOKUP($A533,Economática!$A$3:$AI$823,23,FALSE)=\"-\"),1/0,VLOOKUP($A533,Economática!$A$3:$AI$823,23,FALSE)))","v":""},{"$f":"IF($A533=\"\",\"\",IF(OR(VLOOKUP($A533,Economática!$A$3:$AI$823,24,FALSE)=0,VLOOKUP($A533,Economática!$A$3:$AI$823,24,FALSE)=\"-\"),1/0,VLOOKUP($A533,Economática!$A$3:$AI$823,24,FALSE)))","v":""},{"$f":"IF($A533=\"\",\"\",IF(OR(VLOOKUP($A533,Economática!$A$3:$AI$823,25,FALSE)=0,VLOOKUP($A533,Economática!$A$3:$AI$823,25,FALSE)=\"-\"),1/0,VLOOKUP($A533,Economática!$A$3:$AI$823,25,FALSE)))","v":""},{"$f":"IF($A533=\"\",\"\",IF(ISERROR((F533+VLOOKUP($A533,Economática!$A$3:$AI$823,26,FALSE))/Y533),(F533+VLOOKUP($A533,Economática!$A$3:$AI$823,26,FALSE))/Y533,(F533+VLOOKUP($A533,Economática!$A$3:$AI$823,26,FALSE))/Y533))","v":""},{"$f":"IF($A533=\"\",\"\",IF(OR(-VLOOKUP($A533,Economática!$A$3:$AI$823,27,FALSE)=0,-VLOOKUP($A533,Economática!$A$3:$AI$823,27,FALSE)=\"-\"),1/0,-VLOOKUP($A533,Economática!$A$3:$AI$823,27,FALSE)))","v":""},"",{"$f":"IF($A533=\"\",\"\",IF(OR(VLOOKUP($A533,Economática!$A$3:$AI$823,28,FALSE)=0,VLOOKUP($A533,Economática!$A$3:$AI$823,28,FALSE)=\"-\"),1/0,VLOOKUP($A533,Economática!$A$3:$AI$823,28,FALSE)))","v":""},{"$f":"IF($A533=\"\",\"\",IF(OR(VLOOKUP($A533,Economática!$A$3:$AI$823,29,FALSE)=0,VLOOKUP($A533,Economática!$A$3:$AI$823,29,FALSE)=\"-\"),1/0,VLOOKUP($A533,Economática!$A$3:$AI$823,29,FALSE)))","v":""},{"$f":"IF($A533=\"\",\"\",IF(OR(VLOOKUP($A533,Economática!$A$3:$AI$823,30,FALSE)/E533=0,VLOOKUP($A533,Economática!$A$3:$AI$823,30,FALSE)/E533=\"-\",VLOOKUP($A533,Economática!$A$3:$AI$823,30,FALSE)/E533<33.33%,VLOOKUP($A533,Economática!$A$3:$AI$823,30,FALSE)/E533>100%),1/0,VLOOKUP($A533,Economática!$A$3:$AI$823,30,FALSE)/E533))","v":""},"",{"$f":"IF($A533=\"\",\"\",IF(OR(VLOOKUP($A533,Economática!$A$3:$AI$823,25,FALSE)=0,VLOOKUP($A533,Economática!$A$3:$AI$823,25,FALSE)=\"-\"),1/0,VLOOKUP($A533,Economática!$A$3:$AI$823,25,FALSE)))","v":""},{"$f":"CONCATENATE(Economática!B511,\" \",Economática!C511)","v":" "}]
[{"$f":"IF(Economática!AG512=\"\",\"\",Economática!AG512)","v":""},{"$f":"IF($A534=\"\",\"\",VLOOKUP(VLOOKUP($A534,Economática!$A$3:$AI$823,6,FALSE),Correção!$B$16:$C$36,2,FALSE))","v":""},{"$f":"IF(Economática!B512=\"\",\"\",Economática!B512)","v":""},{"$f":"IF($A534=\"\",\"\",IF(OR(VLOOKUP($A534,Economática!$A$3:$AI$823,8,FALSE)=0,VLOOKUP($A534,Economática!$A$3:$AI$823,8,FALSE)=\"-\"),1/0,VLOOKUP($A534,Economática!$A$3:$AI$823,8,FALSE)))","v":""},{"$f":"IF(A534=\"\",\"\",IF(ISERROR(VLOOKUP(A534,Correção!$B$2:$G$13,9,FALSE)),VLOOKUP($A534,Economática!$A$3:$AI$823,9,FALSE),VLOOKUP(A534,Correção!$B$2:$G$13,9,FALSE)))","v":""},{"$f":"IF($A534=\"\",\"\",Economática!G512)","v":""},{"$f":"IF($A534=\"\",\"\",IF(OR(VLOOKUP($A534,Economática!$A$3:$AI$823,10,FALSE)=0,VLOOKUP($A534,Economática!$A$3:$AI$823,10,FALSE)=\"-\"),1/0,VLOOKUP($A534,Economática!$A$3:$AI$823,10,FALSE)))","v":""},{"$f":"IF($A534=\"\",\"\",IF(OR(VLOOKUP($A534,Economática!$A$3:$AI$823,11,FALSE)=0,VLOOKUP($A534,Economática!$A$3:$AI$823,11,FALSE)=\"-\"),1/0,VLOOKUP($A534,Economática!$A$3:$AI$823,11,FALSE)))","v":""},{"$f":"IF($A534=\"\",\"\",IF(OR(VLOOKUP($A534,Economática!$A$3:$AI$823,12,FALSE)=0,VLOOKUP($A534,Economática!$A$3:$AI$823,12,FALSE)=\"-\"),1/0,VLOOKUP($A534,Economática!$A$3:$AI$823,12,FALSE)))","v":""},{"$f":"IF($A534=\"\",\"\",IF(OR(VLOOKUP($A534,Economática!$A$3:$AI$823,13,FALSE)=0,VLOOKUP($A534,Economática!$A$3:$AI$823,13,FALSE)=\"-\"),1/0,VLOOKUP($A534,Economática!$A$3:$AI$823,13,FALSE)))","v":""},{"$f":"IF($A534=\"\",\"\",IF(OR(VLOOKUP($A534,Economática!$A$3:$AI$823,14,FALSE)=0,VLOOKUP($A534,Economática!$A$3:$AI$823,14,FALSE)=\"-\"),1/0,VLOOKUP($A534,Economática!$A$3:$AI$823,14,FALSE)))","v":""},{"$f":"IF($A534=\"\",\"\",IF(OR(VLOOKUP($A534,Economática!$A$3:$AI$823,15,FALSE)=0,VLOOKUP($A534,Economática!$A$3:$AI$823,15,FALSE)=\"-\"),1/0,VLOOKUP($A534,Economática!$A$3:$AI$823,15,FALSE)))","v":""},{"$f":"IF($A534=\"\",\"\",IF(OR(VLOOKUP($A534,Economática!$A$3:$AI$823,16,FALSE)=0,VLOOKUP($A534,Economática!$A$3:$AI$823,16,FALSE)=\"-\"),1/0,VLOOKUP($A534,Economática!$A$3:$AI$823,16,FALSE)))","v":""},{"$f":"IF($A534=\"\",\"\",IF(OR(VLOOKUP($A534,Economática!$A$3:$AI$823,17,FALSE)=0,VLOOKUP($A534,Economática!$A$3:$AI$823,17,FALSE)=\"-\"),1/0,VLOOKUP($A534,Economática!$A$3:$AI$823,17,FALSE)))","v":""},{"$f":"IF($A534=\"\",\"\",IF(OR(VLOOKUP($A534,Economática!$A$3:$AI$823,18,FALSE)=0,VLOOKUP($A534,Economática!$A$3:$AI$823,18,FALSE)=\"-\"),1/0,VLOOKUP($A534,Economática!$A$3:$AI$823,18,FALSE)))","v":""},{"$f":"IF($A534=\"\",\"\",IF(OR(VLOOKUP($A534,Economática!$A$3:$AI$823,19,FALSE)=0,VLOOKUP($A534,Economática!$A$3:$AI$823,19,FALSE)=\"-\"),1/0,VLOOKUP($A534,Economática!$A$3:$AI$823,19,FALSE)))","v":""},{"$f":"IF($A534=\"\",\"\",VLOOKUP($A534,Economática!$A$3:$AI$823,20,FALSE)/E534)","v":""},"","","",{"$f":"IF($A534=\"\",\"\",IF(OR(VLOOKUP($A534,Economática!$A$3:$AI$823,21,FALSE)/100=0,VLOOKUP($A534,Economática!$A$3:$AI$823,21,FALSE)/100=\"-\"),1/0,VLOOKUP($A534,Economática!$A$3:$AI$823,21,FALSE)/100))","v":""},{"$f":"IF($A534=\"\",\"\",IF(OR(VLOOKUP($A534,Economática!$A$3:$AI$823,22,FALSE)/100=0,VLOOKUP($A534,Economática!$A$3:$AI$823,22,FALSE)/100=\"-\"),1/0,VLOOKUP($A534,Economática!$A$3:$AI$823,22,FALSE)/100))","v":""},{"$f":"IF($A534=\"\",\"\",IF(OR(VLOOKUP($A534,Economática!$A$3:$AI$823,23,FALSE)=0,VLOOKUP($A534,Economática!$A$3:$AI$823,23,FALSE)=\"-\"),1/0,VLOOKUP($A534,Economática!$A$3:$AI$823,23,FALSE)))","v":""},{"$f":"IF($A534=\"\",\"\",IF(OR(VLOOKUP($A534,Economática!$A$3:$AI$823,24,FALSE)=0,VLOOKUP($A534,Economática!$A$3:$AI$823,24,FALSE)=\"-\"),1/0,VLOOKUP($A534,Economática!$A$3:$AI$823,24,FALSE)))","v":""},{"$f":"IF($A534=\"\",\"\",IF(OR(VLOOKUP($A534,Economática!$A$3:$AI$823,25,FALSE)=0,VLOOKUP($A534,Economática!$A$3:$AI$823,25,FALSE)=\"-\"),1/0,VLOOKUP($A534,Economática!$A$3:$AI$823,25,FALSE)))","v":""},{"$f":"IF($A534=\"\",\"\",IF(ISERROR((F534+VLOOKUP($A534,Economática!$A$3:$AI$823,26,FALSE))/Y534),(F534+VLOOKUP($A534,Economática!$A$3:$AI$823,26,FALSE))/Y534,(F534+VLOOKUP($A534,Economática!$A$3:$AI$823,26,FALSE))/Y534))","v":""},{"$f":"IF($A534=\"\",\"\",IF(OR(-VLOOKUP($A534,Economática!$A$3:$AI$823,27,FALSE)=0,-VLOOKUP($A534,Economática!$A$3:$AI$823,27,FALSE)=\"-\"),1/0,-VLOOKUP($A534,Economática!$A$3:$AI$823,27,FALSE)))","v":""},"",{"$f":"IF($A534=\"\",\"\",IF(OR(VLOOKUP($A534,Economática!$A$3:$AI$823,28,FALSE)=0,VLOOKUP($A534,Economática!$A$3:$AI$823,28,FALSE)=\"-\"),1/0,VLOOKUP($A534,Economática!$A$3:$AI$823,28,FALSE)))","v":""},{"$f":"IF($A534=\"\",\"\",IF(OR(VLOOKUP($A534,Economática!$A$3:$AI$823,29,FALSE)=0,VLOOKUP($A534,Economática!$A$3:$AI$823,29,FALSE)=\"-\"),1/0,VLOOKUP($A534,Economática!$A$3:$AI$823,29,FALSE)))","v":""},{"$f":"IF($A534=\"\",\"\",IF(OR(VLOOKUP($A534,Economática!$A$3:$AI$823,30,FALSE)/E534=0,VLOOKUP($A534,Economática!$A$3:$AI$823,30,FALSE)/E534=\"-\",VLOOKUP($A534,Economática!$A$3:$AI$823,30,FALSE)/E534<33.33%,VLOOKUP($A534,Economática!$A$3:$AI$823,30,FALSE)/E534>100%),1/0,VLOOKUP($A534,Economática!$A$3:$AI$823,30,FALSE)/E534))","v":""},"",{"$f":"IF($A534=\"\",\"\",IF(OR(VLOOKUP($A534,Economática!$A$3:$AI$823,25,FALSE)=0,VLOOKUP($A534,Economática!$A$3:$AI$823,25,FALSE)=\"-\"),1/0,VLOOKUP($A534,Economática!$A$3:$AI$823,25,FALSE)))","v":""},{"$f":"CONCATENATE(Economática!B512,\" \",Economática!C512)","v":" "}]
[{"$f":"IF(Economática!AG513=\"\",\"\",Economática!AG513)","v":""},{"$f":"IF($A535=\"\",\"\",VLOOKUP(VLOOKUP($A535,Economática!$A$3:$AI$823,6,FALSE),Correção!$B$16:$C$36,2,FALSE))","v":""},{"$f":"IF(Economática!B513=\"\",\"\",Economática!B513)","v":""},{"$f":"IF($A535=\"\",\"\",IF(OR(VLOOKUP($A535,Economática!$A$3:$AI$823,8,FALSE)=0,VLOOKUP($A535,Economática!$A$3:$AI$823,8,FALSE)=\"-\"),1/0,VLOOKUP($A535,Economática!$A$3:$AI$823,8,FALSE)))","v":""},{"$f":"IF(A535=\"\",\"\",IF(ISERROR(VLOOKUP(A535,Correção!$B$2:$G$13,9,FALSE)),VLOOKUP($A535,Economática!$A$3:$AI$823,9,FALSE),VLOOKUP(A535,Correção!$B$2:$G$13,9,FALSE)))","v":""},{"$f":"IF($A535=\"\",\"\",Economática!G513)","v":""},{"$f":"IF($A535=\"\",\"\",IF(OR(VLOOKUP($A535,Economática!$A$3:$AI$823,10,FALSE)=0,VLOOKUP($A535,Economática!$A$3:$AI$823,10,FALSE)=\"-\"),1/0,VLOOKUP($A535,Economática!$A$3:$AI$823,10,FALSE)))","v":""},{"$f":"IF($A535=\"\",\"\",IF(OR(VLOOKUP($A535,Economática!$A$3:$AI$823,11,FALSE)=0,VLOOKUP($A535,Economática!$A$3:$AI$823,11,FALSE)=\"-\"),1/0,VLOOKUP($A535,Economática!$A$3:$AI$823,11,FALSE)))","v":""},{"$f":"IF($A535=\"\",\"\",IF(OR(VLOOKUP($A535,Economática!$A$3:$AI$823,12,FALSE)=0,VLOOKUP($A535,Economática!$A$3:$AI$823,12,FALSE)=\"-\"),1/0,VLOOKUP($A535,Economática!$A$3:$AI$823,12,FALSE)))","v":""},{"$f":"IF($A535=\"\",\"\",IF(OR(VLOOKUP($A535,Economática!$A$3:$AI$823,13,FALSE)=0,VLOOKUP($A535,Economática!$A$3:$AI$823,13,FALSE)=\"-\"),1/0,VLOOKUP($A535,Economática!$A$3:$AI$823,13,FALSE)))","v":""},{"$f":"IF($A535=\"\",\"\",IF(OR(VLOOKUP($A535,Economática!$A$3:$AI$823,14,FALSE)=0,VLOOKUP($A535,Economática!$A$3:$AI$823,14,FALSE)=\"-\"),1/0,VLOOKUP($A535,Economática!$A$3:$AI$823,14,FALSE)))","v":""},{"$f":"IF($A535=\"\",\"\",IF(OR(VLOOKUP($A535,Economática!$A$3:$AI$823,15,FALSE)=0,VLOOKUP($A535,Economática!$A$3:$AI$823,15,FALSE)=\"-\"),1/0,VLOOKUP($A535,Economática!$A$3:$AI$823,15,FALSE)))","v":""},{"$f":"IF($A535=\"\",\"\",IF(OR(VLOOKUP($A535,Economática!$A$3:$AI$823,16,FALSE)=0,VLOOKUP($A535,Economática!$A$3:$AI$823,16,FALSE)=\"-\"),1/0,VLOOKUP($A535,Economática!$A$3:$AI$823,16,FALSE)))","v":""},{"$f":"IF($A535=\"\",\"\",IF(OR(VLOOKUP($A535,Economática!$A$3:$AI$823,17,FALSE)=0,VLOOKUP($A535,Economática!$A$3:$AI$823,17,FALSE)=\"-\"),1/0,VLOOKUP($A535,Economática!$A$3:$AI$823,17,FALSE)))","v":""},{"$f":"IF($A535=\"\",\"\",IF(OR(VLOOKUP($A535,Economática!$A$3:$AI$823,18,FALSE)=0,VLOOKUP($A535,Economática!$A$3:$AI$823,18,FALSE)=\"-\"),1/0,VLOOKUP($A535,Economática!$A$3:$AI$823,18,FALSE)))","v":""},{"$f":"IF($A535=\"\",\"\",IF(OR(VLOOKUP($A535,Economática!$A$3:$AI$823,19,FALSE)=0,VLOOKUP($A535,Economática!$A$3:$AI$823,19,FALSE)=\"-\"),1/0,VLOOKUP($A535,Economática!$A$3:$AI$823,19,FALSE)))","v":""},{"$f":"IF($A535=\"\",\"\",VLOOKUP($A535,Economática!$A$3:$AI$823,20,FALSE)/E535)","v":""},"","","",{"$f":"IF($A535=\"\",\"\",IF(OR(VLOOKUP($A535,Economática!$A$3:$AI$823,21,FALSE)/100=0,VLOOKUP($A535,Economática!$A$3:$AI$823,21,FALSE)/100=\"-\"),1/0,VLOOKUP($A535,Economática!$A$3:$AI$823,21,FALSE)/100))","v":""},{"$f":"IF($A535=\"\",\"\",IF(OR(VLOOKUP($A535,Economática!$A$3:$AI$823,22,FALSE)/100=0,VLOOKUP($A535,Economática!$A$3:$AI$823,22,FALSE)/100=\"-\"),1/0,VLOOKUP($A535,Economática!$A$3:$AI$823,22,FALSE)/100))","v":""},{"$f":"IF($A535=\"\",\"\",IF(OR(VLOOKUP($A535,Economática!$A$3:$AI$823,23,FALSE)=0,VLOOKUP($A535,Economática!$A$3:$AI$823,23,FALSE)=\"-\"),1/0,VLOOKUP($A535,Economática!$A$3:$AI$823,23,FALSE)))","v":""},{"$f":"IF($A535=\"\",\"\",IF(OR(VLOOKUP($A535,Economática!$A$3:$AI$823,24,FALSE)=0,VLOOKUP($A535,Economática!$A$3:$AI$823,24,FALSE)=\"-\"),1/0,VLOOKUP($A535,Economática!$A$3:$AI$823,24,FALSE)))","v":""},{"$f":"IF($A535=\"\",\"\",IF(OR(VLOOKUP($A535,Economática!$A$3:$AI$823,25,FALSE)=0,VLOOKUP($A535,Economática!$A$3:$AI$823,25,FALSE)=\"-\"),1/0,VLOOKUP($A535,Economática!$A$3:$AI$823,25,FALSE)))","v":""},{"$f":"IF($A535=\"\",\"\",IF(ISERROR((F535+VLOOKUP($A535,Economática!$A$3:$AI$823,26,FALSE))/Y535),(F535+VLOOKUP($A535,Economática!$A$3:$AI$823,26,FALSE))/Y535,(F535+VLOOKUP($A535,Economática!$A$3:$AI$823,26,FALSE))/Y535))","v":""},{"$f":"IF($A535=\"\",\"\",IF(OR(-VLOOKUP($A535,Economática!$A$3:$AI$823,27,FALSE)=0,-VLOOKUP($A535,Economática!$A$3:$AI$823,27,FALSE)=\"-\"),1/0,-VLOOKUP($A535,Economática!$A$3:$AI$823,27,FALSE)))","v":""},"",{"$f":"IF($A535=\"\",\"\",IF(OR(VLOOKUP($A535,Economática!$A$3:$AI$823,28,FALSE)=0,VLOOKUP($A535,Economática!$A$3:$AI$823,28,FALSE)=\"-\"),1/0,VLOOKUP($A535,Economática!$A$3:$AI$823,28,FALSE)))","v":""},{"$f":"IF($A535=\"\",\"\",IF(OR(VLOOKUP($A535,Economática!$A$3:$AI$823,29,FALSE)=0,VLOOKUP($A535,Economática!$A$3:$AI$823,29,FALSE)=\"-\"),1/0,VLOOKUP($A535,Economática!$A$3:$AI$823,29,FALSE)))","v":""},{"$f":"IF($A535=\"\",\"\",IF(OR(VLOOKUP($A535,Economática!$A$3:$AI$823,30,FALSE)/E535=0,VLOOKUP($A535,Economática!$A$3:$AI$823,30,FALSE)/E535=\"-\",VLOOKUP($A535,Economática!$A$3:$AI$823,30,FALSE)/E535<33.33%,VLOOKUP($A535,Economática!$A$3:$AI$823,30,FALSE)/E535>100%),1/0,VLOOKUP($A535,Economática!$A$3:$AI$823,30,FALSE)/E535))","v":""},"",{"$f":"IF($A535=\"\",\"\",IF(OR(VLOOKUP($A535,Economática!$A$3:$AI$823,25,FALSE)=0,VLOOKUP($A535,Economática!$A$3:$AI$823,25,FALSE)=\"-\"),1/0,VLOOKUP($A535,Economática!$A$3:$AI$823,25,FALSE)))","v":""},{"$f":"CONCATENATE(Economática!B513,\" \",Economática!C513)","v":" "}]
[{"$f":"IF(Economática!AG514=\"\",\"\",Economática!AG514)","v":""},{"$f":"IF($A536=\"\",\"\",VLOOKUP(VLOOKUP($A536,Economática!$A$3:$AI$823,6,FALSE),Correção!$B$16:$C$36,2,FALSE))","v":""},{"$f":"IF(Economática!B514=\"\",\"\",Economática!B514)","v":""},{"$f":"IF($A536=\"\",\"\",IF(OR(VLOOKUP($A536,Economática!$A$3:$AI$823,8,FALSE)=0,VLOOKUP($A536,Economática!$A$3:$AI$823,8,FALSE)=\"-\"),1/0,VLOOKUP($A536,Economática!$A$3:$AI$823,8,FALSE)))","v":""},{"$f":"IF(A536=\"\",\"\",IF(ISERROR(VLOOKUP(A536,Correção!$B$2:$G$13,9,FALSE)),VLOOKUP($A536,Economática!$A$3:$AI$823,9,FALSE),VLOOKUP(A536,Correção!$B$2:$G$13,9,FALSE)))","v":""},{"$f":"IF($A536=\"\",\"\",Economática!G514)","v":""},{"$f":"IF($A536=\"\",\"\",IF(OR(VLOOKUP($A536,Economática!$A$3:$AI$823,10,FALSE)=0,VLOOKUP($A536,Economática!$A$3:$AI$823,10,FALSE)=\"-\"),1/0,VLOOKUP($A536,Economática!$A$3:$AI$823,10,FALSE)))","v":""},{"$f":"IF($A536=\"\",\"\",IF(OR(VLOOKUP($A536,Economática!$A$3:$AI$823,11,FALSE)=0,VLOOKUP($A536,Economática!$A$3:$AI$823,11,FALSE)=\"-\"),1/0,VLOOKUP($A536,Economática!$A$3:$AI$823,11,FALSE)))","v":""},{"$f":"IF($A536=\"\",\"\",IF(OR(VLOOKUP($A536,Economática!$A$3:$AI$823,12,FALSE)=0,VLOOKUP($A536,Economática!$A$3:$AI$823,12,FALSE)=\"-\"),1/0,VLOOKUP($A536,Economática!$A$3:$AI$823,12,FALSE)))","v":""},{"$f":"IF($A536=\"\",\"\",IF(OR(VLOOKUP($A536,Economática!$A$3:$AI$823,13,FALSE)=0,VLOOKUP($A536,Economática!$A$3:$AI$823,13,FALSE)=\"-\"),1/0,VLOOKUP($A536,Economática!$A$3:$AI$823,13,FALSE)))","v":""},{"$f":"IF($A536=\"\",\"\",IF(OR(VLOOKUP($A536,Economática!$A$3:$AI$823,14,FALSE)=0,VLOOKUP($A536,Economática!$A$3:$AI$823,14,FALSE)=\"-\"),1/0,VLOOKUP($A536,Economática!$A$3:$AI$823,14,FALSE)))","v":""},{"$f":"IF($A536=\"\",\"\",IF(OR(VLOOKUP($A536,Economática!$A$3:$AI$823,15,FALSE)=0,VLOOKUP($A536,Economática!$A$3:$AI$823,15,FALSE)=\"-\"),1/0,VLOOKUP($A536,Economática!$A$3:$AI$823,15,FALSE)))","v":""},{"$f":"IF($A536=\"\",\"\",IF(OR(VLOOKUP($A536,Economática!$A$3:$AI$823,16,FALSE)=0,VLOOKUP($A536,Economática!$A$3:$AI$823,16,FALSE)=\"-\"),1/0,VLOOKUP($A536,Economática!$A$3:$AI$823,16,FALSE)))","v":""},{"$f":"IF($A536=\"\",\"\",IF(OR(VLOOKUP($A536,Economática!$A$3:$AI$823,17,FALSE)=0,VLOOKUP($A536,Economática!$A$3:$AI$823,17,FALSE)=\"-\"),1/0,VLOOKUP($A536,Economática!$A$3:$AI$823,17,FALSE)))","v":""},{"$f":"IF($A536=\"\",\"\",IF(OR(VLOOKUP($A536,Economática!$A$3:$AI$823,18,FALSE)=0,VLOOKUP($A536,Economática!$A$3:$AI$823,18,FALSE)=\"-\"),1/0,VLOOKUP($A536,Economática!$A$3:$AI$823,18,FALSE)))","v":""},{"$f":"IF($A536=\"\",\"\",IF(OR(VLOOKUP($A536,Economática!$A$3:$AI$823,19,FALSE)=0,VLOOKUP($A536,Economática!$A$3:$AI$823,19,FALSE)=\"-\"),1/0,VLOOKUP($A536,Economática!$A$3:$AI$823,19,FALSE)))","v":""},{"$f":"IF($A536=\"\",\"\",VLOOKUP($A536,Economática!$A$3:$AI$823,20,FALSE)/E536)","v":""},"","","",{"$f":"IF($A536=\"\",\"\",IF(OR(VLOOKUP($A536,Economática!$A$3:$AI$823,21,FALSE)/100=0,VLOOKUP($A536,Economática!$A$3:$AI$823,21,FALSE)/100=\"-\"),1/0,VLOOKUP($A536,Economática!$A$3:$AI$823,21,FALSE)/100))","v":""},{"$f":"IF($A536=\"\",\"\",IF(OR(VLOOKUP($A536,Economática!$A$3:$AI$823,22,FALSE)/100=0,VLOOKUP($A536,Economática!$A$3:$AI$823,22,FALSE)/100=\"-\"),1/0,VLOOKUP($A536,Economática!$A$3:$AI$823,22,FALSE)/100))","v":""},{"$f":"IF($A536=\"\",\"\",IF(OR(VLOOKUP($A536,Economática!$A$3:$AI$823,23,FALSE)=0,VLOOKUP($A536,Economática!$A$3:$AI$823,23,FALSE)=\"-\"),1/0,VLOOKUP($A536,Economática!$A$3:$AI$823,23,FALSE)))","v":""},{"$f":"IF($A536=\"\",\"\",IF(OR(VLOOKUP($A536,Economática!$A$3:$AI$823,24,FALSE)=0,VLOOKUP($A536,Economática!$A$3:$AI$823,24,FALSE)=\"-\"),1/0,VLOOKUP($A536,Economática!$A$3:$AI$823,24,FALSE)))","v":""},{"$f":"IF($A536=\"\",\"\",IF(OR(VLOOKUP($A536,Economática!$A$3:$AI$823,25,FALSE)=0,VLOOKUP($A536,Economática!$A$3:$AI$823,25,FALSE)=\"-\"),1/0,VLOOKUP($A536,Economática!$A$3:$AI$823,25,FALSE)))","v":""},{"$f":"IF($A536=\"\",\"\",IF(ISERROR((F536+VLOOKUP($A536,Economática!$A$3:$AI$823,26,FALSE))/Y536),(F536+VLOOKUP($A536,Economática!$A$3:$AI$823,26,FALSE))/Y536,(F536+VLOOKUP($A536,Economática!$A$3:$AI$823,26,FALSE))/Y536))","v":""},{"$f":"IF($A536=\"\",\"\",IF(OR(-VLOOKUP($A536,Economática!$A$3:$AI$823,27,FALSE)=0,-VLOOKUP($A536,Economática!$A$3:$AI$823,27,FALSE)=\"-\"),1/0,-VLOOKUP($A536,Economática!$A$3:$AI$823,27,FALSE)))","v":""},"",{"$f":"IF($A536=\"\",\"\",IF(OR(VLOOKUP($A536,Economática!$A$3:$AI$823,28,FALSE)=0,VLOOKUP($A536,Economática!$A$3:$AI$823,28,FALSE)=\"-\"),1/0,VLOOKUP($A536,Economática!$A$3:$AI$823,28,FALSE)))","v":""},{"$f":"IF($A536=\"\",\"\",IF(OR(VLOOKUP($A536,Economática!$A$3:$AI$823,29,FALSE)=0,VLOOKUP($A536,Economática!$A$3:$AI$823,29,FALSE)=\"-\"),1/0,VLOOKUP($A536,Economática!$A$3:$AI$823,29,FALSE)))","v":""},{"$f":"IF($A536=\"\",\"\",IF(OR(VLOOKUP($A536,Economática!$A$3:$AI$823,30,FALSE)/E536=0,VLOOKUP($A536,Economática!$A$3:$AI$823,30,FALSE)/E536=\"-\",VLOOKUP($A536,Economática!$A$3:$AI$823,30,FALSE)/E536<33.33%,VLOOKUP($A536,Economática!$A$3:$AI$823,30,FALSE)/E536>100%),1/0,VLOOKUP($A536,Economática!$A$3:$AI$823,30,FALSE)/E536))","v":""},"",{"$f":"IF($A536=\"\",\"\",IF(OR(VLOOKUP($A536,Economática!$A$3:$AI$823,25,FALSE)=0,VLOOKUP($A536,Economática!$A$3:$AI$823,25,FALSE)=\"-\"),1/0,VLOOKUP($A536,Economática!$A$3:$AI$823,25,FALSE)))","v":""},{"$f":"CONCATENATE(Economática!B514,\" \",Economática!C514)","v":" "}]
[{"$f":"IF(Economática!AG515=\"\",\"\",Economática!AG515)","v":""},{"$f":"IF($A537=\"\",\"\",VLOOKUP(VLOOKUP($A537,Economática!$A$3:$AI$823,6,FALSE),Correção!$B$16:$C$36,2,FALSE))","v":""},{"$f":"IF(Economática!B515=\"\",\"\",Economática!B515)","v":""},{"$f":"IF($A537=\"\",\"\",IF(OR(VLOOKUP($A537,Economática!$A$3:$AI$823,8,FALSE)=0,VLOOKUP($A537,Economática!$A$3:$AI$823,8,FALSE)=\"-\"),1/0,VLOOKUP($A537,Economática!$A$3:$AI$823,8,FALSE)))","v":""},{"$f":"IF(A537=\"\",\"\",IF(ISERROR(VLOOKUP(A537,Correção!$B$2:$G$13,9,FALSE)),VLOOKUP($A537,Economática!$A$3:$AI$823,9,FALSE),VLOOKUP(A537,Correção!$B$2:$G$13,9,FALSE)))","v":""},{"$f":"IF($A537=\"\",\"\",Economática!G515)","v":""},{"$f":"IF($A537=\"\",\"\",IF(OR(VLOOKUP($A537,Economática!$A$3:$AI$823,10,FALSE)=0,VLOOKUP($A537,Economática!$A$3:$AI$823,10,FALSE)=\"-\"),1/0,VLOOKUP($A537,Economática!$A$3:$AI$823,10,FALSE)))","v":""},{"$f":"IF($A537=\"\",\"\",IF(OR(VLOOKUP($A537,Economática!$A$3:$AI$823,11,FALSE)=0,VLOOKUP($A537,Economática!$A$3:$AI$823,11,FALSE)=\"-\"),1/0,VLOOKUP($A537,Economática!$A$3:$AI$823,11,FALSE)))","v":""},{"$f":"IF($A537=\"\",\"\",IF(OR(VLOOKUP($A537,Economática!$A$3:$AI$823,12,FALSE)=0,VLOOKUP($A537,Economática!$A$3:$AI$823,12,FALSE)=\"-\"),1/0,VLOOKUP($A537,Economática!$A$3:$AI$823,12,FALSE)))","v":""},{"$f":"IF($A537=\"\",\"\",IF(OR(VLOOKUP($A537,Economática!$A$3:$AI$823,13,FALSE)=0,VLOOKUP($A537,Economática!$A$3:$AI$823,13,FALSE)=\"-\"),1/0,VLOOKUP($A537,Economática!$A$3:$AI$823,13,FALSE)))","v":""},{"$f":"IF($A537=\"\",\"\",IF(OR(VLOOKUP($A537,Economática!$A$3:$AI$823,14,FALSE)=0,VLOOKUP($A537,Economática!$A$3:$AI$823,14,FALSE)=\"-\"),1/0,VLOOKUP($A537,Economática!$A$3:$AI$823,14,FALSE)))","v":""},{"$f":"IF($A537=\"\",\"\",IF(OR(VLOOKUP($A537,Economática!$A$3:$AI$823,15,FALSE)=0,VLOOKUP($A537,Economática!$A$3:$AI$823,15,FALSE)=\"-\"),1/0,VLOOKUP($A537,Economática!$A$3:$AI$823,15,FALSE)))","v":""},{"$f":"IF($A537=\"\",\"\",IF(OR(VLOOKUP($A537,Economática!$A$3:$AI$823,16,FALSE)=0,VLOOKUP($A537,Economática!$A$3:$AI$823,16,FALSE)=\"-\"),1/0,VLOOKUP($A537,Economática!$A$3:$AI$823,16,FALSE)))","v":""},{"$f":"IF($A537=\"\",\"\",IF(OR(VLOOKUP($A537,Economática!$A$3:$AI$823,17,FALSE)=0,VLOOKUP($A537,Economática!$A$3:$AI$823,17,FALSE)=\"-\"),1/0,VLOOKUP($A537,Economática!$A$3:$AI$823,17,FALSE)))","v":""},{"$f":"IF($A537=\"\",\"\",IF(OR(VLOOKUP($A537,Economática!$A$3:$AI$823,18,FALSE)=0,VLOOKUP($A537,Economática!$A$3:$AI$823,18,FALSE)=\"-\"),1/0,VLOOKUP($A537,Economática!$A$3:$AI$823,18,FALSE)))","v":""},{"$f":"IF($A537=\"\",\"\",IF(OR(VLOOKUP($A537,Economática!$A$3:$AI$823,19,FALSE)=0,VLOOKUP($A537,Economática!$A$3:$AI$823,19,FALSE)=\"-\"),1/0,VLOOKUP($A537,Economática!$A$3:$AI$823,19,FALSE)))","v":""},{"$f":"IF($A537=\"\",\"\",VLOOKUP($A537,Economática!$A$3:$AI$823,20,FALSE)/E537)","v":""},"","","",{"$f":"IF($A537=\"\",\"\",IF(OR(VLOOKUP($A537,Economática!$A$3:$AI$823,21,FALSE)/100=0,VLOOKUP($A537,Economática!$A$3:$AI$823,21,FALSE)/100=\"-\"),1/0,VLOOKUP($A537,Economática!$A$3:$AI$823,21,FALSE)/100))","v":""},{"$f":"IF($A537=\"\",\"\",IF(OR(VLOOKUP($A537,Economática!$A$3:$AI$823,22,FALSE)/100=0,VLOOKUP($A537,Economática!$A$3:$AI$823,22,FALSE)/100=\"-\"),1/0,VLOOKUP($A537,Economática!$A$3:$AI$823,22,FALSE)/100))","v":""},{"$f":"IF($A537=\"\",\"\",IF(OR(VLOOKUP($A537,Economática!$A$3:$AI$823,23,FALSE)=0,VLOOKUP($A537,Economática!$A$3:$AI$823,23,FALSE)=\"-\"),1/0,VLOOKUP($A537,Economática!$A$3:$AI$823,23,FALSE)))","v":""},{"$f":"IF($A537=\"\",\"\",IF(OR(VLOOKUP($A537,Economática!$A$3:$AI$823,24,FALSE)=0,VLOOKUP($A537,Economática!$A$3:$AI$823,24,FALSE)=\"-\"),1/0,VLOOKUP($A537,Economática!$A$3:$AI$823,24,FALSE)))","v":""},{"$f":"IF($A537=\"\",\"\",IF(OR(VLOOKUP($A537,Economática!$A$3:$AI$823,25,FALSE)=0,VLOOKUP($A537,Economática!$A$3:$AI$823,25,FALSE)=\"-\"),1/0,VLOOKUP($A537,Economática!$A$3:$AI$823,25,FALSE)))","v":""},{"$f":"IF($A537=\"\",\"\",IF(ISERROR((F537+VLOOKUP($A537,Economática!$A$3:$AI$823,26,FALSE))/Y537),(F537+VLOOKUP($A537,Economática!$A$3:$AI$823,26,FALSE))/Y537,(F537+VLOOKUP($A537,Economática!$A$3:$AI$823,26,FALSE))/Y537))","v":""},{"$f":"IF($A537=\"\",\"\",IF(OR(-VLOOKUP($A537,Economática!$A$3:$AI$823,27,FALSE)=0,-VLOOKUP($A537,Economática!$A$3:$AI$823,27,FALSE)=\"-\"),1/0,-VLOOKUP($A537,Economática!$A$3:$AI$823,27,FALSE)))","v":""},"",{"$f":"IF($A537=\"\",\"\",IF(OR(VLOOKUP($A537,Economática!$A$3:$AI$823,28,FALSE)=0,VLOOKUP($A537,Economática!$A$3:$AI$823,28,FALSE)=\"-\"),1/0,VLOOKUP($A537,Economática!$A$3:$AI$823,28,FALSE)))","v":""},{"$f":"IF($A537=\"\",\"\",IF(OR(VLOOKUP($A537,Economática!$A$3:$AI$823,29,FALSE)=0,VLOOKUP($A537,Economática!$A$3:$AI$823,29,FALSE)=\"-\"),1/0,VLOOKUP($A537,Economática!$A$3:$AI$823,29,FALSE)))","v":""},{"$f":"IF($A537=\"\",\"\",IF(OR(VLOOKUP($A537,Economática!$A$3:$AI$823,30,FALSE)/E537=0,VLOOKUP($A537,Economática!$A$3:$AI$823,30,FALSE)/E537=\"-\",VLOOKUP($A537,Economática!$A$3:$AI$823,30,FALSE)/E537<33.33%,VLOOKUP($A537,Economática!$A$3:$AI$823,30,FALSE)/E537>100%),1/0,VLOOKUP($A537,Economática!$A$3:$AI$823,30,FALSE)/E537))","v":""},"",{"$f":"IF($A537=\"\",\"\",IF(OR(VLOOKUP($A537,Economática!$A$3:$AI$823,25,FALSE)=0,VLOOKUP($A537,Economática!$A$3:$AI$823,25,FALSE)=\"-\"),1/0,VLOOKUP($A537,Economática!$A$3:$AI$823,25,FALSE)))","v":""},{"$f":"CONCATENATE(Economática!B515,\" \",Economática!C515)","v":" "}]
[{"$f":"IF(Economática!AG516=\"\",\"\",Economática!AG516)","v":""},{"$f":"IF($A538=\"\",\"\",VLOOKUP(VLOOKUP($A538,Economática!$A$3:$AI$823,6,FALSE),Correção!$B$16:$C$36,2,FALSE))","v":""},{"$f":"IF(Economática!B516=\"\",\"\",Economática!B516)","v":""},{"$f":"IF($A538=\"\",\"\",IF(OR(VLOOKUP($A538,Economática!$A$3:$AI$823,8,FALSE)=0,VLOOKUP($A538,Economática!$A$3:$AI$823,8,FALSE)=\"-\"),1/0,VLOOKUP($A538,Economática!$A$3:$AI$823,8,FALSE)))","v":""},{"$f":"IF(A538=\"\",\"\",IF(ISERROR(VLOOKUP(A538,Correção!$B$2:$G$13,9,FALSE)),VLOOKUP($A538,Economática!$A$3:$AI$823,9,FALSE),VLOOKUP(A538,Correção!$B$2:$G$13,9,FALSE)))","v":""},{"$f":"IF($A538=\"\",\"\",Economática!G516)","v":""},{"$f":"IF($A538=\"\",\"\",IF(OR(VLOOKUP($A538,Economática!$A$3:$AI$823,10,FALSE)=0,VLOOKUP($A538,Economática!$A$3:$AI$823,10,FALSE)=\"-\"),1/0,VLOOKUP($A538,Economática!$A$3:$AI$823,10,FALSE)))","v":""},{"$f":"IF($A538=\"\",\"\",IF(OR(VLOOKUP($A538,Economática!$A$3:$AI$823,11,FALSE)=0,VLOOKUP($A538,Economática!$A$3:$AI$823,11,FALSE)=\"-\"),1/0,VLOOKUP($A538,Economática!$A$3:$AI$823,11,FALSE)))","v":""},{"$f":"IF($A538=\"\",\"\",IF(OR(VLOOKUP($A538,Economática!$A$3:$AI$823,12,FALSE)=0,VLOOKUP($A538,Economática!$A$3:$AI$823,12,FALSE)=\"-\"),1/0,VLOOKUP($A538,Economática!$A$3:$AI$823,12,FALSE)))","v":""},{"$f":"IF($A538=\"\",\"\",IF(OR(VLOOKUP($A538,Economática!$A$3:$AI$823,13,FALSE)=0,VLOOKUP($A538,Economática!$A$3:$AI$823,13,FALSE)=\"-\"),1/0,VLOOKUP($A538,Economática!$A$3:$AI$823,13,FALSE)))","v":""},{"$f":"IF($A538=\"\",\"\",IF(OR(VLOOKUP($A538,Economática!$A$3:$AI$823,14,FALSE)=0,VLOOKUP($A538,Economática!$A$3:$AI$823,14,FALSE)=\"-\"),1/0,VLOOKUP($A538,Economática!$A$3:$AI$823,14,FALSE)))","v":""},{"$f":"IF($A538=\"\",\"\",IF(OR(VLOOKUP($A538,Economática!$A$3:$AI$823,15,FALSE)=0,VLOOKUP($A538,Economática!$A$3:$AI$823,15,FALSE)=\"-\"),1/0,VLOOKUP($A538,Economática!$A$3:$AI$823,15,FALSE)))","v":""},{"$f":"IF($A538=\"\",\"\",IF(OR(VLOOKUP($A538,Economática!$A$3:$AI$823,16,FALSE)=0,VLOOKUP($A538,Economática!$A$3:$AI$823,16,FALSE)=\"-\"),1/0,VLOOKUP($A538,Economática!$A$3:$AI$823,16,FALSE)))","v":""},{"$f":"IF($A538=\"\",\"\",IF(OR(VLOOKUP($A538,Economática!$A$3:$AI$823,17,FALSE)=0,VLOOKUP($A538,Economática!$A$3:$AI$823,17,FALSE)=\"-\"),1/0,VLOOKUP($A538,Economática!$A$3:$AI$823,17,FALSE)))","v":""},{"$f":"IF($A538=\"\",\"\",IF(OR(VLOOKUP($A538,Economática!$A$3:$AI$823,18,FALSE)=0,VLOOKUP($A538,Economática!$A$3:$AI$823,18,FALSE)=\"-\"),1/0,VLOOKUP($A538,Economática!$A$3:$AI$823,18,FALSE)))","v":""},{"$f":"IF($A538=\"\",\"\",IF(OR(VLOOKUP($A538,Economática!$A$3:$AI$823,19,FALSE)=0,VLOOKUP($A538,Economática!$A$3:$AI$823,19,FALSE)=\"-\"),1/0,VLOOKUP($A538,Economática!$A$3:$AI$823,19,FALSE)))","v":""},{"$f":"IF($A538=\"\",\"\",VLOOKUP($A538,Economática!$A$3:$AI$823,20,FALSE)/E538)","v":""},"","","",{"$f":"IF($A538=\"\",\"\",IF(OR(VLOOKUP($A538,Economática!$A$3:$AI$823,21,FALSE)/100=0,VLOOKUP($A538,Economática!$A$3:$AI$823,21,FALSE)/100=\"-\"),1/0,VLOOKUP($A538,Economática!$A$3:$AI$823,21,FALSE)/100))","v":""},{"$f":"IF($A538=\"\",\"\",IF(OR(VLOOKUP($A538,Economática!$A$3:$AI$823,22,FALSE)/100=0,VLOOKUP($A538,Economática!$A$3:$AI$823,22,FALSE)/100=\"-\"),1/0,VLOOKUP($A538,Economática!$A$3:$AI$823,22,FALSE)/100))","v":""},{"$f":"IF($A538=\"\",\"\",IF(OR(VLOOKUP($A538,Economática!$A$3:$AI$823,23,FALSE)=0,VLOOKUP($A538,Economática!$A$3:$AI$823,23,FALSE)=\"-\"),1/0,VLOOKUP($A538,Economática!$A$3:$AI$823,23,FALSE)))","v":""},{"$f":"IF($A538=\"\",\"\",IF(OR(VLOOKUP($A538,Economática!$A$3:$AI$823,24,FALSE)=0,VLOOKUP($A538,Economática!$A$3:$AI$823,24,FALSE)=\"-\"),1/0,VLOOKUP($A538,Economática!$A$3:$AI$823,24,FALSE)))","v":""},{"$f":"IF($A538=\"\",\"\",IF(OR(VLOOKUP($A538,Economática!$A$3:$AI$823,25,FALSE)=0,VLOOKUP($A538,Economática!$A$3:$AI$823,25,FALSE)=\"-\"),1/0,VLOOKUP($A538,Economática!$A$3:$AI$823,25,FALSE)))","v":""},{"$f":"IF($A538=\"\",\"\",IF(ISERROR((F538+VLOOKUP($A538,Economática!$A$3:$AI$823,26,FALSE))/Y538),(F538+VLOOKUP($A538,Economática!$A$3:$AI$823,26,FALSE))/Y538,(F538+VLOOKUP($A538,Economática!$A$3:$AI$823,26,FALSE))/Y538))","v":""},{"$f":"IF($A538=\"\",\"\",IF(OR(-VLOOKUP($A538,Economática!$A$3:$AI$823,27,FALSE)=0,-VLOOKUP($A538,Economática!$A$3:$AI$823,27,FALSE)=\"-\"),1/0,-VLOOKUP($A538,Economática!$A$3:$AI$823,27,FALSE)))","v":""},"",{"$f":"IF($A538=\"\",\"\",IF(OR(VLOOKUP($A538,Economática!$A$3:$AI$823,28,FALSE)=0,VLOOKUP($A538,Economática!$A$3:$AI$823,28,FALSE)=\"-\"),1/0,VLOOKUP($A538,Economática!$A$3:$AI$823,28,FALSE)))","v":""},{"$f":"IF($A538=\"\",\"\",IF(OR(VLOOKUP($A538,Economática!$A$3:$AI$823,29,FALSE)=0,VLOOKUP($A538,Economática!$A$3:$AI$823,29,FALSE)=\"-\"),1/0,VLOOKUP($A538,Economática!$A$3:$AI$823,29,FALSE)))","v":""},{"$f":"IF($A538=\"\",\"\",IF(OR(VLOOKUP($A538,Economática!$A$3:$AI$823,30,FALSE)/E538=0,VLOOKUP($A538,Economática!$A$3:$AI$823,30,FALSE)/E538=\"-\",VLOOKUP($A538,Economática!$A$3:$AI$823,30,FALSE)/E538<33.33%,VLOOKUP($A538,Economática!$A$3:$AI$823,30,FALSE)/E538>100%),1/0,VLOOKUP($A538,Economática!$A$3:$AI$823,30,FALSE)/E538))","v":""},"",{"$f":"IF($A538=\"\",\"\",IF(OR(VLOOKUP($A538,Economática!$A$3:$AI$823,25,FALSE)=0,VLOOKUP($A538,Economática!$A$3:$AI$823,25,FALSE)=\"-\"),1/0,VLOOKUP($A538,Economática!$A$3:$AI$823,25,FALSE)))","v":""},{"$f":"CONCATENATE(Economática!B516,\" \",Economática!C516)","v":" "}]
[{"$f":"IF(Economática!AG517=\"\",\"\",Economática!AG517)","v":""},{"$f":"IF($A539=\"\",\"\",VLOOKUP(VLOOKUP($A539,Economática!$A$3:$AI$823,6,FALSE),Correção!$B$16:$C$36,2,FALSE))","v":""},{"$f":"IF(Economática!B517=\"\",\"\",Economática!B517)","v":""},{"$f":"IF($A539=\"\",\"\",IF(OR(VLOOKUP($A539,Economática!$A$3:$AI$823,8,FALSE)=0,VLOOKUP($A539,Economática!$A$3:$AI$823,8,FALSE)=\"-\"),1/0,VLOOKUP($A539,Economática!$A$3:$AI$823,8,FALSE)))","v":""},{"$f":"IF(A539=\"\",\"\",IF(ISERROR(VLOOKUP(A539,Correção!$B$2:$G$13,9,FALSE)),VLOOKUP($A539,Economática!$A$3:$AI$823,9,FALSE),VLOOKUP(A539,Correção!$B$2:$G$13,9,FALSE)))","v":""},{"$f":"IF($A539=\"\",\"\",Economática!G517)","v":""},{"$f":"IF($A539=\"\",\"\",IF(OR(VLOOKUP($A539,Economática!$A$3:$AI$823,10,FALSE)=0,VLOOKUP($A539,Economática!$A$3:$AI$823,10,FALSE)=\"-\"),1/0,VLOOKUP($A539,Economática!$A$3:$AI$823,10,FALSE)))","v":""},{"$f":"IF($A539=\"\",\"\",IF(OR(VLOOKUP($A539,Economática!$A$3:$AI$823,11,FALSE)=0,VLOOKUP($A539,Economática!$A$3:$AI$823,11,FALSE)=\"-\"),1/0,VLOOKUP($A539,Economática!$A$3:$AI$823,11,FALSE)))","v":""},{"$f":"IF($A539=\"\",\"\",IF(OR(VLOOKUP($A539,Economática!$A$3:$AI$823,12,FALSE)=0,VLOOKUP($A539,Economática!$A$3:$AI$823,12,FALSE)=\"-\"),1/0,VLOOKUP($A539,Economática!$A$3:$AI$823,12,FALSE)))","v":""},{"$f":"IF($A539=\"\",\"\",IF(OR(VLOOKUP($A539,Economática!$A$3:$AI$823,13,FALSE)=0,VLOOKUP($A539,Economática!$A$3:$AI$823,13,FALSE)=\"-\"),1/0,VLOOKUP($A539,Economática!$A$3:$AI$823,13,FALSE)))","v":""},{"$f":"IF($A539=\"\",\"\",IF(OR(VLOOKUP($A539,Economática!$A$3:$AI$823,14,FALSE)=0,VLOOKUP($A539,Economática!$A$3:$AI$823,14,FALSE)=\"-\"),1/0,VLOOKUP($A539,Economática!$A$3:$AI$823,14,FALSE)))","v":""},{"$f":"IF($A539=\"\",\"\",IF(OR(VLOOKUP($A539,Economática!$A$3:$AI$823,15,FALSE)=0,VLOOKUP($A539,Economática!$A$3:$AI$823,15,FALSE)=\"-\"),1/0,VLOOKUP($A539,Economática!$A$3:$AI$823,15,FALSE)))","v":""},{"$f":"IF($A539=\"\",\"\",IF(OR(VLOOKUP($A539,Economática!$A$3:$AI$823,16,FALSE)=0,VLOOKUP($A539,Economática!$A$3:$AI$823,16,FALSE)=\"-\"),1/0,VLOOKUP($A539,Economática!$A$3:$AI$823,16,FALSE)))","v":""},{"$f":"IF($A539=\"\",\"\",IF(OR(VLOOKUP($A539,Economática!$A$3:$AI$823,17,FALSE)=0,VLOOKUP($A539,Economática!$A$3:$AI$823,17,FALSE)=\"-\"),1/0,VLOOKUP($A539,Economática!$A$3:$AI$823,17,FALSE)))","v":""},{"$f":"IF($A539=\"\",\"\",IF(OR(VLOOKUP($A539,Economática!$A$3:$AI$823,18,FALSE)=0,VLOOKUP($A539,Economática!$A$3:$AI$823,18,FALSE)=\"-\"),1/0,VLOOKUP($A539,Economática!$A$3:$AI$823,18,FALSE)))","v":""},{"$f":"IF($A539=\"\",\"\",IF(OR(VLOOKUP($A539,Economática!$A$3:$AI$823,19,FALSE)=0,VLOOKUP($A539,Economática!$A$3:$AI$823,19,FALSE)=\"-\"),1/0,VLOOKUP($A539,Economática!$A$3:$AI$823,19,FALSE)))","v":""},{"$f":"IF($A539=\"\",\"\",VLOOKUP($A539,Economática!$A$3:$AI$823,20,FALSE)/E539)","v":""},"","","",{"$f":"IF($A539=\"\",\"\",IF(OR(VLOOKUP($A539,Economática!$A$3:$AI$823,21,FALSE)/100=0,VLOOKUP($A539,Economática!$A$3:$AI$823,21,FALSE)/100=\"-\"),1/0,VLOOKUP($A539,Economática!$A$3:$AI$823,21,FALSE)/100))","v":""},{"$f":"IF($A539=\"\",\"\",IF(OR(VLOOKUP($A539,Economática!$A$3:$AI$823,22,FALSE)/100=0,VLOOKUP($A539,Economática!$A$3:$AI$823,22,FALSE)/100=\"-\"),1/0,VLOOKUP($A539,Economática!$A$3:$AI$823,22,FALSE)/100))","v":""},{"$f":"IF($A539=\"\",\"\",IF(OR(VLOOKUP($A539,Economática!$A$3:$AI$823,23,FALSE)=0,VLOOKUP($A539,Economática!$A$3:$AI$823,23,FALSE)=\"-\"),1/0,VLOOKUP($A539,Economática!$A$3:$AI$823,23,FALSE)))","v":""},{"$f":"IF($A539=\"\",\"\",IF(OR(VLOOKUP($A539,Economática!$A$3:$AI$823,24,FALSE)=0,VLOOKUP($A539,Economática!$A$3:$AI$823,24,FALSE)=\"-\"),1/0,VLOOKUP($A539,Economática!$A$3:$AI$823,24,FALSE)))","v":""},{"$f":"IF($A539=\"\",\"\",IF(OR(VLOOKUP($A539,Economática!$A$3:$AI$823,25,FALSE)=0,VLOOKUP($A539,Economática!$A$3:$AI$823,25,FALSE)=\"-\"),1/0,VLOOKUP($A539,Economática!$A$3:$AI$823,25,FALSE)))","v":""},{"$f":"IF($A539=\"\",\"\",IF(ISERROR((F539+VLOOKUP($A539,Economática!$A$3:$AI$823,26,FALSE))/Y539),(F539+VLOOKUP($A539,Economática!$A$3:$AI$823,26,FALSE))/Y539,(F539+VLOOKUP($A539,Economática!$A$3:$AI$823,26,FALSE))/Y539))","v":""},{"$f":"IF($A539=\"\",\"\",IF(OR(-VLOOKUP($A539,Economática!$A$3:$AI$823,27,FALSE)=0,-VLOOKUP($A539,Economática!$A$3:$AI$823,27,FALSE)=\"-\"),1/0,-VLOOKUP($A539,Economática!$A$3:$AI$823,27,FALSE)))","v":""},"",{"$f":"IF($A539=\"\",\"\",IF(OR(VLOOKUP($A539,Economática!$A$3:$AI$823,28,FALSE)=0,VLOOKUP($A539,Economática!$A$3:$AI$823,28,FALSE)=\"-\"),1/0,VLOOKUP($A539,Economática!$A$3:$AI$823,28,FALSE)))","v":""},{"$f":"IF($A539=\"\",\"\",IF(OR(VLOOKUP($A539,Economática!$A$3:$AI$823,29,FALSE)=0,VLOOKUP($A539,Economática!$A$3:$AI$823,29,FALSE)=\"-\"),1/0,VLOOKUP($A539,Economática!$A$3:$AI$823,29,FALSE)))","v":""},{"$f":"IF($A539=\"\",\"\",IF(OR(VLOOKUP($A539,Economática!$A$3:$AI$823,30,FALSE)/E539=0,VLOOKUP($A539,Economática!$A$3:$AI$823,30,FALSE)/E539=\"-\",VLOOKUP($A539,Economática!$A$3:$AI$823,30,FALSE)/E539<33.33%,VLOOKUP($A539,Economática!$A$3:$AI$823,30,FALSE)/E539>100%),1/0,VLOOKUP($A539,Economática!$A$3:$AI$823,30,FALSE)/E539))","v":""},"",{"$f":"IF($A539=\"\",\"\",IF(OR(VLOOKUP($A539,Economática!$A$3:$AI$823,25,FALSE)=0,VLOOKUP($A539,Economática!$A$3:$AI$823,25,FALSE)=\"-\"),1/0,VLOOKUP($A539,Economática!$A$3:$AI$823,25,FALSE)))","v":""},{"$f":"CONCATENATE(Economática!B517,\" \",Economática!C517)","v":" "}]
[{"$f":"IF(Economática!AG518=\"\",\"\",Economática!AG518)","v":""},{"$f":"IF($A540=\"\",\"\",VLOOKUP(VLOOKUP($A540,Economática!$A$3:$AI$823,6,FALSE),Correção!$B$16:$C$36,2,FALSE))","v":""},{"$f":"IF(Economática!B518=\"\",\"\",Economática!B518)","v":""},{"$f":"IF($A540=\"\",\"\",IF(OR(VLOOKUP($A540,Economática!$A$3:$AI$823,8,FALSE)=0,VLOOKUP($A540,Economática!$A$3:$AI$823,8,FALSE)=\"-\"),1/0,VLOOKUP($A540,Economática!$A$3:$AI$823,8,FALSE)))","v":""},{"$f":"IF(A540=\"\",\"\",IF(ISERROR(VLOOKUP(A540,Correção!$B$2:$G$13,9,FALSE)),VLOOKUP($A540,Economática!$A$3:$AI$823,9,FALSE),VLOOKUP(A540,Correção!$B$2:$G$13,9,FALSE)))","v":""},{"$f":"IF($A540=\"\",\"\",Economática!G518)","v":""},{"$f":"IF($A540=\"\",\"\",IF(OR(VLOOKUP($A540,Economática!$A$3:$AI$823,10,FALSE)=0,VLOOKUP($A540,Economática!$A$3:$AI$823,10,FALSE)=\"-\"),1/0,VLOOKUP($A540,Economática!$A$3:$AI$823,10,FALSE)))","v":""},{"$f":"IF($A540=\"\",\"\",IF(OR(VLOOKUP($A540,Economática!$A$3:$AI$823,11,FALSE)=0,VLOOKUP($A540,Economática!$A$3:$AI$823,11,FALSE)=\"-\"),1/0,VLOOKUP($A540,Economática!$A$3:$AI$823,11,FALSE)))","v":""},{"$f":"IF($A540=\"\",\"\",IF(OR(VLOOKUP($A540,Economática!$A$3:$AI$823,12,FALSE)=0,VLOOKUP($A540,Economática!$A$3:$AI$823,12,FALSE)=\"-\"),1/0,VLOOKUP($A540,Economática!$A$3:$AI$823,12,FALSE)))","v":""},{"$f":"IF($A540=\"\",\"\",IF(OR(VLOOKUP($A540,Economática!$A$3:$AI$823,13,FALSE)=0,VLOOKUP($A540,Economática!$A$3:$AI$823,13,FALSE)=\"-\"),1/0,VLOOKUP($A540,Economática!$A$3:$AI$823,13,FALSE)))","v":""},{"$f":"IF($A540=\"\",\"\",IF(OR(VLOOKUP($A540,Economática!$A$3:$AI$823,14,FALSE)=0,VLOOKUP($A540,Economática!$A$3:$AI$823,14,FALSE)=\"-\"),1/0,VLOOKUP($A540,Economática!$A$3:$AI$823,14,FALSE)))","v":""},{"$f":"IF($A540=\"\",\"\",IF(OR(VLOOKUP($A540,Economática!$A$3:$AI$823,15,FALSE)=0,VLOOKUP($A540,Economática!$A$3:$AI$823,15,FALSE)=\"-\"),1/0,VLOOKUP($A540,Economática!$A$3:$AI$823,15,FALSE)))","v":""},{"$f":"IF($A540=\"\",\"\",IF(OR(VLOOKUP($A540,Economática!$A$3:$AI$823,16,FALSE)=0,VLOOKUP($A540,Economática!$A$3:$AI$823,16,FALSE)=\"-\"),1/0,VLOOKUP($A540,Economática!$A$3:$AI$823,16,FALSE)))","v":""},{"$f":"IF($A540=\"\",\"\",IF(OR(VLOOKUP($A540,Economática!$A$3:$AI$823,17,FALSE)=0,VLOOKUP($A540,Economática!$A$3:$AI$823,17,FALSE)=\"-\"),1/0,VLOOKUP($A540,Economática!$A$3:$AI$823,17,FALSE)))","v":""},{"$f":"IF($A540=\"\",\"\",IF(OR(VLOOKUP($A540,Economática!$A$3:$AI$823,18,FALSE)=0,VLOOKUP($A540,Economática!$A$3:$AI$823,18,FALSE)=\"-\"),1/0,VLOOKUP($A540,Economática!$A$3:$AI$823,18,FALSE)))","v":""},{"$f":"IF($A540=\"\",\"\",IF(OR(VLOOKUP($A540,Economática!$A$3:$AI$823,19,FALSE)=0,VLOOKUP($A540,Economática!$A$3:$AI$823,19,FALSE)=\"-\"),1/0,VLOOKUP($A540,Economática!$A$3:$AI$823,19,FALSE)))","v":""},{"$f":"IF($A540=\"\",\"\",VLOOKUP($A540,Economática!$A$3:$AI$823,20,FALSE)/E540)","v":""},"","","",{"$f":"IF($A540=\"\",\"\",IF(OR(VLOOKUP($A540,Economática!$A$3:$AI$823,21,FALSE)/100=0,VLOOKUP($A540,Economática!$A$3:$AI$823,21,FALSE)/100=\"-\"),1/0,VLOOKUP($A540,Economática!$A$3:$AI$823,21,FALSE)/100))","v":""},{"$f":"IF($A540=\"\",\"\",IF(OR(VLOOKUP($A540,Economática!$A$3:$AI$823,22,FALSE)/100=0,VLOOKUP($A540,Economática!$A$3:$AI$823,22,FALSE)/100=\"-\"),1/0,VLOOKUP($A540,Economática!$A$3:$AI$823,22,FALSE)/100))","v":""},{"$f":"IF($A540=\"\",\"\",IF(OR(VLOOKUP($A540,Economática!$A$3:$AI$823,23,FALSE)=0,VLOOKUP($A540,Economática!$A$3:$AI$823,23,FALSE)=\"-\"),1/0,VLOOKUP($A540,Economática!$A$3:$AI$823,23,FALSE)))","v":""},{"$f":"IF($A540=\"\",\"\",IF(OR(VLOOKUP($A540,Economática!$A$3:$AI$823,24,FALSE)=0,VLOOKUP($A540,Economática!$A$3:$AI$823,24,FALSE)=\"-\"),1/0,VLOOKUP($A540,Economática!$A$3:$AI$823,24,FALSE)))","v":""},{"$f":"IF($A540=\"\",\"\",IF(OR(VLOOKUP($A540,Economática!$A$3:$AI$823,25,FALSE)=0,VLOOKUP($A540,Economática!$A$3:$AI$823,25,FALSE)=\"-\"),1/0,VLOOKUP($A540,Economática!$A$3:$AI$823,25,FALSE)))","v":""},{"$f":"IF($A540=\"\",\"\",IF(ISERROR((F540+VLOOKUP($A540,Economática!$A$3:$AI$823,26,FALSE))/Y540),(F540+VLOOKUP($A540,Economática!$A$3:$AI$823,26,FALSE))/Y540,(F540+VLOOKUP($A540,Economática!$A$3:$AI$823,26,FALSE))/Y540))","v":""},{"$f":"IF($A540=\"\",\"\",IF(OR(-VLOOKUP($A540,Economática!$A$3:$AI$823,27,FALSE)=0,-VLOOKUP($A540,Economática!$A$3:$AI$823,27,FALSE)=\"-\"),1/0,-VLOOKUP($A540,Economática!$A$3:$AI$823,27,FALSE)))","v":""},"",{"$f":"IF($A540=\"\",\"\",IF(OR(VLOOKUP($A540,Economática!$A$3:$AI$823,28,FALSE)=0,VLOOKUP($A540,Economática!$A$3:$AI$823,28,FALSE)=\"-\"),1/0,VLOOKUP($A540,Economática!$A$3:$AI$823,28,FALSE)))","v":""},{"$f":"IF($A540=\"\",\"\",IF(OR(VLOOKUP($A540,Economática!$A$3:$AI$823,29,FALSE)=0,VLOOKUP($A540,Economática!$A$3:$AI$823,29,FALSE)=\"-\"),1/0,VLOOKUP($A540,Economática!$A$3:$AI$823,29,FALSE)))","v":""},{"$f":"IF($A540=\"\",\"\",IF(OR(VLOOKUP($A540,Economática!$A$3:$AI$823,30,FALSE)/E540=0,VLOOKUP($A540,Economática!$A$3:$AI$823,30,FALSE)/E540=\"-\",VLOOKUP($A540,Economática!$A$3:$AI$823,30,FALSE)/E540<33.33%,VLOOKUP($A540,Economática!$A$3:$AI$823,30,FALSE)/E540>100%),1/0,VLOOKUP($A540,Economática!$A$3:$AI$823,30,FALSE)/E540))","v":""},"",{"$f":"IF($A540=\"\",\"\",IF(OR(VLOOKUP($A540,Economática!$A$3:$AI$823,25,FALSE)=0,VLOOKUP($A540,Economática!$A$3:$AI$823,25,FALSE)=\"-\"),1/0,VLOOKUP($A540,Economática!$A$3:$AI$823,25,FALSE)))","v":""},{"$f":"CONCATENATE(Economática!B518,\" \",Economática!C518)","v":" "}]
[{"$f":"IF(Economática!AG519=\"\",\"\",Economática!AG519)","v":""},{"$f":"IF($A541=\"\",\"\",VLOOKUP(VLOOKUP($A541,Economática!$A$3:$AI$823,6,FALSE),Correção!$B$16:$C$36,2,FALSE))","v":""},{"$f":"IF(Economática!B519=\"\",\"\",Economática!B519)","v":""},{"$f":"IF($A541=\"\",\"\",IF(OR(VLOOKUP($A541,Economática!$A$3:$AI$823,8,FALSE)=0,VLOOKUP($A541,Economática!$A$3:$AI$823,8,FALSE)=\"-\"),1/0,VLOOKUP($A541,Economática!$A$3:$AI$823,8,FALSE)))","v":""},{"$f":"IF(A541=\"\",\"\",IF(ISERROR(VLOOKUP(A541,Correção!$B$2:$G$13,9,FALSE)),VLOOKUP($A541,Economática!$A$3:$AI$823,9,FALSE),VLOOKUP(A541,Correção!$B$2:$G$13,9,FALSE)))","v":""},{"$f":"IF($A541=\"\",\"\",Economática!G519)","v":""},{"$f":"IF($A541=\"\",\"\",IF(OR(VLOOKUP($A541,Economática!$A$3:$AI$823,10,FALSE)=0,VLOOKUP($A541,Economática!$A$3:$AI$823,10,FALSE)=\"-\"),1/0,VLOOKUP($A541,Economática!$A$3:$AI$823,10,FALSE)))","v":""},{"$f":"IF($A541=\"\",\"\",IF(OR(VLOOKUP($A541,Economática!$A$3:$AI$823,11,FALSE)=0,VLOOKUP($A541,Economática!$A$3:$AI$823,11,FALSE)=\"-\"),1/0,VLOOKUP($A541,Economática!$A$3:$AI$823,11,FALSE)))","v":""},{"$f":"IF($A541=\"\",\"\",IF(OR(VLOOKUP($A541,Economática!$A$3:$AI$823,12,FALSE)=0,VLOOKUP($A541,Economática!$A$3:$AI$823,12,FALSE)=\"-\"),1/0,VLOOKUP($A541,Economática!$A$3:$AI$823,12,FALSE)))","v":""},{"$f":"IF($A541=\"\",\"\",IF(OR(VLOOKUP($A541,Economática!$A$3:$AI$823,13,FALSE)=0,VLOOKUP($A541,Economática!$A$3:$AI$823,13,FALSE)=\"-\"),1/0,VLOOKUP($A541,Economática!$A$3:$AI$823,13,FALSE)))","v":""},{"$f":"IF($A541=\"\",\"\",IF(OR(VLOOKUP($A541,Economática!$A$3:$AI$823,14,FALSE)=0,VLOOKUP($A541,Economática!$A$3:$AI$823,14,FALSE)=\"-\"),1/0,VLOOKUP($A541,Economática!$A$3:$AI$823,14,FALSE)))","v":""},{"$f":"IF($A541=\"\",\"\",IF(OR(VLOOKUP($A541,Economática!$A$3:$AI$823,15,FALSE)=0,VLOOKUP($A541,Economática!$A$3:$AI$823,15,FALSE)=\"-\"),1/0,VLOOKUP($A541,Economática!$A$3:$AI$823,15,FALSE)))","v":""},{"$f":"IF($A541=\"\",\"\",IF(OR(VLOOKUP($A541,Economática!$A$3:$AI$823,16,FALSE)=0,VLOOKUP($A541,Economática!$A$3:$AI$823,16,FALSE)=\"-\"),1/0,VLOOKUP($A541,Economática!$A$3:$AI$823,16,FALSE)))","v":""},{"$f":"IF($A541=\"\",\"\",IF(OR(VLOOKUP($A541,Economática!$A$3:$AI$823,17,FALSE)=0,VLOOKUP($A541,Economática!$A$3:$AI$823,17,FALSE)=\"-\"),1/0,VLOOKUP($A541,Economática!$A$3:$AI$823,17,FALSE)))","v":""},{"$f":"IF($A541=\"\",\"\",IF(OR(VLOOKUP($A541,Economática!$A$3:$AI$823,18,FALSE)=0,VLOOKUP($A541,Economática!$A$3:$AI$823,18,FALSE)=\"-\"),1/0,VLOOKUP($A541,Economática!$A$3:$AI$823,18,FALSE)))","v":""},{"$f":"IF($A541=\"\",\"\",IF(OR(VLOOKUP($A541,Economática!$A$3:$AI$823,19,FALSE)=0,VLOOKUP($A541,Economática!$A$3:$AI$823,19,FALSE)=\"-\"),1/0,VLOOKUP($A541,Economática!$A$3:$AI$823,19,FALSE)))","v":""},{"$f":"IF($A541=\"\",\"\",VLOOKUP($A541,Economática!$A$3:$AI$823,20,FALSE)/E541)","v":""},"","","",{"$f":"IF($A541=\"\",\"\",IF(OR(VLOOKUP($A541,Economática!$A$3:$AI$823,21,FALSE)/100=0,VLOOKUP($A541,Economática!$A$3:$AI$823,21,FALSE)/100=\"-\"),1/0,VLOOKUP($A541,Economática!$A$3:$AI$823,21,FALSE)/100))","v":""},{"$f":"IF($A541=\"\",\"\",IF(OR(VLOOKUP($A541,Economática!$A$3:$AI$823,22,FALSE)/100=0,VLOOKUP($A541,Economática!$A$3:$AI$823,22,FALSE)/100=\"-\"),1/0,VLOOKUP($A541,Economática!$A$3:$AI$823,22,FALSE)/100))","v":""},{"$f":"IF($A541=\"\",\"\",IF(OR(VLOOKUP($A541,Economática!$A$3:$AI$823,23,FALSE)=0,VLOOKUP($A541,Economática!$A$3:$AI$823,23,FALSE)=\"-\"),1/0,VLOOKUP($A541,Economática!$A$3:$AI$823,23,FALSE)))","v":""},{"$f":"IF($A541=\"\",\"\",IF(OR(VLOOKUP($A541,Economática!$A$3:$AI$823,24,FALSE)=0,VLOOKUP($A541,Economática!$A$3:$AI$823,24,FALSE)=\"-\"),1/0,VLOOKUP($A541,Economática!$A$3:$AI$823,24,FALSE)))","v":""},{"$f":"IF($A541=\"\",\"\",IF(OR(VLOOKUP($A541,Economática!$A$3:$AI$823,25,FALSE)=0,VLOOKUP($A541,Economática!$A$3:$AI$823,25,FALSE)=\"-\"),1/0,VLOOKUP($A541,Economática!$A$3:$AI$823,25,FALSE)))","v":""},{"$f":"IF($A541=\"\",\"\",IF(ISERROR((F541+VLOOKUP($A541,Economática!$A$3:$AI$823,26,FALSE))/Y541),(F541+VLOOKUP($A541,Economática!$A$3:$AI$823,26,FALSE))/Y541,(F541+VLOOKUP($A541,Economática!$A$3:$AI$823,26,FALSE))/Y541))","v":""},{"$f":"IF($A541=\"\",\"\",IF(OR(-VLOOKUP($A541,Economática!$A$3:$AI$823,27,FALSE)=0,-VLOOKUP($A541,Economática!$A$3:$AI$823,27,FALSE)=\"-\"),1/0,-VLOOKUP($A541,Economática!$A$3:$AI$823,27,FALSE)))","v":""},"",{"$f":"IF($A541=\"\",\"\",IF(OR(VLOOKUP($A541,Economática!$A$3:$AI$823,28,FALSE)=0,VLOOKUP($A541,Economática!$A$3:$AI$823,28,FALSE)=\"-\"),1/0,VLOOKUP($A541,Economática!$A$3:$AI$823,28,FALSE)))","v":""},{"$f":"IF($A541=\"\",\"\",IF(OR(VLOOKUP($A541,Economática!$A$3:$AI$823,29,FALSE)=0,VLOOKUP($A541,Economática!$A$3:$AI$823,29,FALSE)=\"-\"),1/0,VLOOKUP($A541,Economática!$A$3:$AI$823,29,FALSE)))","v":""},{"$f":"IF($A541=\"\",\"\",IF(OR(VLOOKUP($A541,Economática!$A$3:$AI$823,30,FALSE)/E541=0,VLOOKUP($A541,Economática!$A$3:$AI$823,30,FALSE)/E541=\"-\",VLOOKUP($A541,Economática!$A$3:$AI$823,30,FALSE)/E541<33.33%,VLOOKUP($A541,Economática!$A$3:$AI$823,30,FALSE)/E541>100%),1/0,VLOOKUP($A541,Economática!$A$3:$AI$823,30,FALSE)/E541))","v":""},"",{"$f":"IF($A541=\"\",\"\",IF(OR(VLOOKUP($A541,Economática!$A$3:$AI$823,25,FALSE)=0,VLOOKUP($A541,Economática!$A$3:$AI$823,25,FALSE)=\"-\"),1/0,VLOOKUP($A541,Economática!$A$3:$AI$823,25,FALSE)))","v":""},{"$f":"CONCATENATE(Economática!B519,\" \",Economática!C519)","v":" "}]
[{"$f":"IF(Economática!AG520=\"\",\"\",Economática!AG520)","v":""},{"$f":"IF($A542=\"\",\"\",VLOOKUP(VLOOKUP($A542,Economática!$A$3:$AI$823,6,FALSE),Correção!$B$16:$C$36,2,FALSE))","v":""},{"$f":"IF(Economática!B520=\"\",\"\",Economática!B520)","v":""},{"$f":"IF($A542=\"\",\"\",IF(OR(VLOOKUP($A542,Economática!$A$3:$AI$823,8,FALSE)=0,VLOOKUP($A542,Economática!$A$3:$AI$823,8,FALSE)=\"-\"),1/0,VLOOKUP($A542,Economática!$A$3:$AI$823,8,FALSE)))","v":""},{"$f":"IF(A542=\"\",\"\",IF(ISERROR(VLOOKUP(A542,Correção!$B$2:$G$13,9,FALSE)),VLOOKUP($A542,Economática!$A$3:$AI$823,9,FALSE),VLOOKUP(A542,Correção!$B$2:$G$13,9,FALSE)))","v":""},{"$f":"IF($A542=\"\",\"\",Economática!G520)","v":""},{"$f":"IF($A542=\"\",\"\",IF(OR(VLOOKUP($A542,Economática!$A$3:$AI$823,10,FALSE)=0,VLOOKUP($A542,Economática!$A$3:$AI$823,10,FALSE)=\"-\"),1/0,VLOOKUP($A542,Economática!$A$3:$AI$823,10,FALSE)))","v":""},{"$f":"IF($A542=\"\",\"\",IF(OR(VLOOKUP($A542,Economática!$A$3:$AI$823,11,FALSE)=0,VLOOKUP($A542,Economática!$A$3:$AI$823,11,FALSE)=\"-\"),1/0,VLOOKUP($A542,Economática!$A$3:$AI$823,11,FALSE)))","v":""},{"$f":"IF($A542=\"\",\"\",IF(OR(VLOOKUP($A542,Economática!$A$3:$AI$823,12,FALSE)=0,VLOOKUP($A542,Economática!$A$3:$AI$823,12,FALSE)=\"-\"),1/0,VLOOKUP($A542,Economática!$A$3:$AI$823,12,FALSE)))","v":""},{"$f":"IF($A542=\"\",\"\",IF(OR(VLOOKUP($A542,Economática!$A$3:$AI$823,13,FALSE)=0,VLOOKUP($A542,Economática!$A$3:$AI$823,13,FALSE)=\"-\"),1/0,VLOOKUP($A542,Economática!$A$3:$AI$823,13,FALSE)))","v":""},{"$f":"IF($A542=\"\",\"\",IF(OR(VLOOKUP($A542,Economática!$A$3:$AI$823,14,FALSE)=0,VLOOKUP($A542,Economática!$A$3:$AI$823,14,FALSE)=\"-\"),1/0,VLOOKUP($A542,Economática!$A$3:$AI$823,14,FALSE)))","v":""},{"$f":"IF($A542=\"\",\"\",IF(OR(VLOOKUP($A542,Economática!$A$3:$AI$823,15,FALSE)=0,VLOOKUP($A542,Economática!$A$3:$AI$823,15,FALSE)=\"-\"),1/0,VLOOKUP($A542,Economática!$A$3:$AI$823,15,FALSE)))","v":""},{"$f":"IF($A542=\"\",\"\",IF(OR(VLOOKUP($A542,Economática!$A$3:$AI$823,16,FALSE)=0,VLOOKUP($A542,Economática!$A$3:$AI$823,16,FALSE)=\"-\"),1/0,VLOOKUP($A542,Economática!$A$3:$AI$823,16,FALSE)))","v":""},{"$f":"IF($A542=\"\",\"\",IF(OR(VLOOKUP($A542,Economática!$A$3:$AI$823,17,FALSE)=0,VLOOKUP($A542,Economática!$A$3:$AI$823,17,FALSE)=\"-\"),1/0,VLOOKUP($A542,Economática!$A$3:$AI$823,17,FALSE)))","v":""},{"$f":"IF($A542=\"\",\"\",IF(OR(VLOOKUP($A542,Economática!$A$3:$AI$823,18,FALSE)=0,VLOOKUP($A542,Economática!$A$3:$AI$823,18,FALSE)=\"-\"),1/0,VLOOKUP($A542,Economática!$A$3:$AI$823,18,FALSE)))","v":""},{"$f":"IF($A542=\"\",\"\",IF(OR(VLOOKUP($A542,Economática!$A$3:$AI$823,19,FALSE)=0,VLOOKUP($A542,Economática!$A$3:$AI$823,19,FALSE)=\"-\"),1/0,VLOOKUP($A542,Economática!$A$3:$AI$823,19,FALSE)))","v":""},{"$f":"IF($A542=\"\",\"\",VLOOKUP($A542,Economática!$A$3:$AI$823,20,FALSE)/E542)","v":""},"","","",{"$f":"IF($A542=\"\",\"\",IF(OR(VLOOKUP($A542,Economática!$A$3:$AI$823,21,FALSE)/100=0,VLOOKUP($A542,Economática!$A$3:$AI$823,21,FALSE)/100=\"-\"),1/0,VLOOKUP($A542,Economática!$A$3:$AI$823,21,FALSE)/100))","v":""},{"$f":"IF($A542=\"\",\"\",IF(OR(VLOOKUP($A542,Economática!$A$3:$AI$823,22,FALSE)/100=0,VLOOKUP($A542,Economática!$A$3:$AI$823,22,FALSE)/100=\"-\"),1/0,VLOOKUP($A542,Economática!$A$3:$AI$823,22,FALSE)/100))","v":""},{"$f":"IF($A542=\"\",\"\",IF(OR(VLOOKUP($A542,Economática!$A$3:$AI$823,23,FALSE)=0,VLOOKUP($A542,Economática!$A$3:$AI$823,23,FALSE)=\"-\"),1/0,VLOOKUP($A542,Economática!$A$3:$AI$823,23,FALSE)))","v":""},{"$f":"IF($A542=\"\",\"\",IF(OR(VLOOKUP($A542,Economática!$A$3:$AI$823,24,FALSE)=0,VLOOKUP($A542,Economática!$A$3:$AI$823,24,FALSE)=\"-\"),1/0,VLOOKUP($A542,Economática!$A$3:$AI$823,24,FALSE)))","v":""},{"$f":"IF($A542=\"\",\"\",IF(OR(VLOOKUP($A542,Economática!$A$3:$AI$823,25,FALSE)=0,VLOOKUP($A542,Economática!$A$3:$AI$823,25,FALSE)=\"-\"),1/0,VLOOKUP($A542,Economática!$A$3:$AI$823,25,FALSE)))","v":""},{"$f":"IF($A542=\"\",\"\",IF(ISERROR((F542+VLOOKUP($A542,Economática!$A$3:$AI$823,26,FALSE))/Y542),(F542+VLOOKUP($A542,Economática!$A$3:$AI$823,26,FALSE))/Y542,(F542+VLOOKUP($A542,Economática!$A$3:$AI$823,26,FALSE))/Y542))","v":""},{"$f":"IF($A542=\"\",\"\",IF(OR(-VLOOKUP($A542,Economática!$A$3:$AI$823,27,FALSE)=0,-VLOOKUP($A542,Economática!$A$3:$AI$823,27,FALSE)=\"-\"),1/0,-VLOOKUP($A542,Economática!$A$3:$AI$823,27,FALSE)))","v":""},"",{"$f":"IF($A542=\"\",\"\",IF(OR(VLOOKUP($A542,Economática!$A$3:$AI$823,28,FALSE)=0,VLOOKUP($A542,Economática!$A$3:$AI$823,28,FALSE)=\"-\"),1/0,VLOOKUP($A542,Economática!$A$3:$AI$823,28,FALSE)))","v":""},{"$f":"IF($A542=\"\",\"\",IF(OR(VLOOKUP($A542,Economática!$A$3:$AI$823,29,FALSE)=0,VLOOKUP($A542,Economática!$A$3:$AI$823,29,FALSE)=\"-\"),1/0,VLOOKUP($A542,Economática!$A$3:$AI$823,29,FALSE)))","v":""},{"$f":"IF($A542=\"\",\"\",IF(OR(VLOOKUP($A542,Economática!$A$3:$AI$823,30,FALSE)/E542=0,VLOOKUP($A542,Economática!$A$3:$AI$823,30,FALSE)/E542=\"-\",VLOOKUP($A542,Economática!$A$3:$AI$823,30,FALSE)/E542<33.33%,VLOOKUP($A542,Economática!$A$3:$AI$823,30,FALSE)/E542>100%),1/0,VLOOKUP($A542,Economática!$A$3:$AI$823,30,FALSE)/E542))","v":""},"",{"$f":"IF($A542=\"\",\"\",IF(OR(VLOOKUP($A542,Economática!$A$3:$AI$823,25,FALSE)=0,VLOOKUP($A542,Economática!$A$3:$AI$823,25,FALSE)=\"-\"),1/0,VLOOKUP($A542,Economática!$A$3:$AI$823,25,FALSE)))","v":""},{"$f":"CONCATENATE(Economática!B520,\" \",Economática!C520)","v":" "}]
[{"$f":"IF(Economática!AG521=\"\",\"\",Economática!AG521)","v":""},{"$f":"IF($A543=\"\",\"\",VLOOKUP(VLOOKUP($A543,Economática!$A$3:$AI$823,6,FALSE),Correção!$B$16:$C$36,2,FALSE))","v":""},{"$f":"IF(Economática!B521=\"\",\"\",Economática!B521)","v":""},{"$f":"IF($A543=\"\",\"\",IF(OR(VLOOKUP($A543,Economática!$A$3:$AI$823,8,FALSE)=0,VLOOKUP($A543,Economática!$A$3:$AI$823,8,FALSE)=\"-\"),1/0,VLOOKUP($A543,Economática!$A$3:$AI$823,8,FALSE)))","v":""},{"$f":"IF(A543=\"\",\"\",IF(ISERROR(VLOOKUP(A543,Correção!$B$2:$G$13,9,FALSE)),VLOOKUP($A543,Economática!$A$3:$AI$823,9,FALSE),VLOOKUP(A543,Correção!$B$2:$G$13,9,FALSE)))","v":""},{"$f":"IF($A543=\"\",\"\",Economática!G521)","v":""},{"$f":"IF($A543=\"\",\"\",IF(OR(VLOOKUP($A543,Economática!$A$3:$AI$823,10,FALSE)=0,VLOOKUP($A543,Economática!$A$3:$AI$823,10,FALSE)=\"-\"),1/0,VLOOKUP($A543,Economática!$A$3:$AI$823,10,FALSE)))","v":""},{"$f":"IF($A543=\"\",\"\",IF(OR(VLOOKUP($A543,Economática!$A$3:$AI$823,11,FALSE)=0,VLOOKUP($A543,Economática!$A$3:$AI$823,11,FALSE)=\"-\"),1/0,VLOOKUP($A543,Economática!$A$3:$AI$823,11,FALSE)))","v":""},{"$f":"IF($A543=\"\",\"\",IF(OR(VLOOKUP($A543,Economática!$A$3:$AI$823,12,FALSE)=0,VLOOKUP($A543,Economática!$A$3:$AI$823,12,FALSE)=\"-\"),1/0,VLOOKUP($A543,Economática!$A$3:$AI$823,12,FALSE)))","v":""},{"$f":"IF($A543=\"\",\"\",IF(OR(VLOOKUP($A543,Economática!$A$3:$AI$823,13,FALSE)=0,VLOOKUP($A543,Economática!$A$3:$AI$823,13,FALSE)=\"-\"),1/0,VLOOKUP($A543,Economática!$A$3:$AI$823,13,FALSE)))","v":""},{"$f":"IF($A543=\"\",\"\",IF(OR(VLOOKUP($A543,Economática!$A$3:$AI$823,14,FALSE)=0,VLOOKUP($A543,Economática!$A$3:$AI$823,14,FALSE)=\"-\"),1/0,VLOOKUP($A543,Economática!$A$3:$AI$823,14,FALSE)))","v":""},{"$f":"IF($A543=\"\",\"\",IF(OR(VLOOKUP($A543,Economática!$A$3:$AI$823,15,FALSE)=0,VLOOKUP($A543,Economática!$A$3:$AI$823,15,FALSE)=\"-\"),1/0,VLOOKUP($A543,Economática!$A$3:$AI$823,15,FALSE)))","v":""},{"$f":"IF($A543=\"\",\"\",IF(OR(VLOOKUP($A543,Economática!$A$3:$AI$823,16,FALSE)=0,VLOOKUP($A543,Economática!$A$3:$AI$823,16,FALSE)=\"-\"),1/0,VLOOKUP($A543,Economática!$A$3:$AI$823,16,FALSE)))","v":""},{"$f":"IF($A543=\"\",\"\",IF(OR(VLOOKUP($A543,Economática!$A$3:$AI$823,17,FALSE)=0,VLOOKUP($A543,Economática!$A$3:$AI$823,17,FALSE)=\"-\"),1/0,VLOOKUP($A543,Economática!$A$3:$AI$823,17,FALSE)))","v":""},{"$f":"IF($A543=\"\",\"\",IF(OR(VLOOKUP($A543,Economática!$A$3:$AI$823,18,FALSE)=0,VLOOKUP($A543,Economática!$A$3:$AI$823,18,FALSE)=\"-\"),1/0,VLOOKUP($A543,Economática!$A$3:$AI$823,18,FALSE)))","v":""},{"$f":"IF($A543=\"\",\"\",IF(OR(VLOOKUP($A543,Economática!$A$3:$AI$823,19,FALSE)=0,VLOOKUP($A543,Economática!$A$3:$AI$823,19,FALSE)=\"-\"),1/0,VLOOKUP($A543,Economática!$A$3:$AI$823,19,FALSE)))","v":""},{"$f":"IF($A543=\"\",\"\",VLOOKUP($A543,Economática!$A$3:$AI$823,20,FALSE)/E543)","v":""},"","","",{"$f":"IF($A543=\"\",\"\",IF(OR(VLOOKUP($A543,Economática!$A$3:$AI$823,21,FALSE)/100=0,VLOOKUP($A543,Economática!$A$3:$AI$823,21,FALSE)/100=\"-\"),1/0,VLOOKUP($A543,Economática!$A$3:$AI$823,21,FALSE)/100))","v":""},{"$f":"IF($A543=\"\",\"\",IF(OR(VLOOKUP($A543,Economática!$A$3:$AI$823,22,FALSE)/100=0,VLOOKUP($A543,Economática!$A$3:$AI$823,22,FALSE)/100=\"-\"),1/0,VLOOKUP($A543,Economática!$A$3:$AI$823,22,FALSE)/100))","v":""},{"$f":"IF($A543=\"\",\"\",IF(OR(VLOOKUP($A543,Economática!$A$3:$AI$823,23,FALSE)=0,VLOOKUP($A543,Economática!$A$3:$AI$823,23,FALSE)=\"-\"),1/0,VLOOKUP($A543,Economática!$A$3:$AI$823,23,FALSE)))","v":""},{"$f":"IF($A543=\"\",\"\",IF(OR(VLOOKUP($A543,Economática!$A$3:$AI$823,24,FALSE)=0,VLOOKUP($A543,Economática!$A$3:$AI$823,24,FALSE)=\"-\"),1/0,VLOOKUP($A543,Economática!$A$3:$AI$823,24,FALSE)))","v":""},{"$f":"IF($A543=\"\",\"\",IF(OR(VLOOKUP($A543,Economática!$A$3:$AI$823,25,FALSE)=0,VLOOKUP($A543,Economática!$A$3:$AI$823,25,FALSE)=\"-\"),1/0,VLOOKUP($A543,Economática!$A$3:$AI$823,25,FALSE)))","v":""},{"$f":"IF($A543=\"\",\"\",IF(ISERROR((F543+VLOOKUP($A543,Economática!$A$3:$AI$823,26,FALSE))/Y543),(F543+VLOOKUP($A543,Economática!$A$3:$AI$823,26,FALSE))/Y543,(F543+VLOOKUP($A543,Economática!$A$3:$AI$823,26,FALSE))/Y543))","v":""},{"$f":"IF($A543=\"\",\"\",IF(OR(-VLOOKUP($A543,Economática!$A$3:$AI$823,27,FALSE)=0,-VLOOKUP($A543,Economática!$A$3:$AI$823,27,FALSE)=\"-\"),1/0,-VLOOKUP($A543,Economática!$A$3:$AI$823,27,FALSE)))","v":""},"",{"$f":"IF($A543=\"\",\"\",IF(OR(VLOOKUP($A543,Economática!$A$3:$AI$823,28,FALSE)=0,VLOOKUP($A543,Economática!$A$3:$AI$823,28,FALSE)=\"-\"),1/0,VLOOKUP($A543,Economática!$A$3:$AI$823,28,FALSE)))","v":""},{"$f":"IF($A543=\"\",\"\",IF(OR(VLOOKUP($A543,Economática!$A$3:$AI$823,29,FALSE)=0,VLOOKUP($A543,Economática!$A$3:$AI$823,29,FALSE)=\"-\"),1/0,VLOOKUP($A543,Economática!$A$3:$AI$823,29,FALSE)))","v":""},{"$f":"IF($A543=\"\",\"\",IF(OR(VLOOKUP($A543,Economática!$A$3:$AI$823,30,FALSE)/E543=0,VLOOKUP($A543,Economática!$A$3:$AI$823,30,FALSE)/E543=\"-\",VLOOKUP($A543,Economática!$A$3:$AI$823,30,FALSE)/E543<33.33%,VLOOKUP($A543,Economática!$A$3:$AI$823,30,FALSE)/E543>100%),1/0,VLOOKUP($A543,Economática!$A$3:$AI$823,30,FALSE)/E543))","v":""},"",{"$f":"IF($A543=\"\",\"\",IF(OR(VLOOKUP($A543,Economática!$A$3:$AI$823,25,FALSE)=0,VLOOKUP($A543,Economática!$A$3:$AI$823,25,FALSE)=\"-\"),1/0,VLOOKUP($A543,Economática!$A$3:$AI$823,25,FALSE)))","v":""},{"$f":"CONCATENATE(Economática!B521,\" \",Economática!C521)","v":" "}]
[{"$f":"IF(Economática!AG522=\"\",\"\",Economática!AG522)","v":""},{"$f":"IF($A544=\"\",\"\",VLOOKUP(VLOOKUP($A544,Economática!$A$3:$AI$823,6,FALSE),Correção!$B$16:$C$36,2,FALSE))","v":""},{"$f":"IF(Economática!B522=\"\",\"\",Economática!B522)","v":""},{"$f":"IF($A544=\"\",\"\",IF(OR(VLOOKUP($A544,Economática!$A$3:$AI$823,8,FALSE)=0,VLOOKUP($A544,Economática!$A$3:$AI$823,8,FALSE)=\"-\"),1/0,VLOOKUP($A544,Economática!$A$3:$AI$823,8,FALSE)))","v":""},{"$f":"IF(A544=\"\",\"\",IF(ISERROR(VLOOKUP(A544,Correção!$B$2:$G$13,9,FALSE)),VLOOKUP($A544,Economática!$A$3:$AI$823,9,FALSE),VLOOKUP(A544,Correção!$B$2:$G$13,9,FALSE)))","v":""},{"$f":"IF($A544=\"\",\"\",Economática!G522)","v":""},{"$f":"IF($A544=\"\",\"\",IF(OR(VLOOKUP($A544,Economática!$A$3:$AI$823,10,FALSE)=0,VLOOKUP($A544,Economática!$A$3:$AI$823,10,FALSE)=\"-\"),1/0,VLOOKUP($A544,Economática!$A$3:$AI$823,10,FALSE)))","v":""},{"$f":"IF($A544=\"\",\"\",IF(OR(VLOOKUP($A544,Economática!$A$3:$AI$823,11,FALSE)=0,VLOOKUP($A544,Economática!$A$3:$AI$823,11,FALSE)=\"-\"),1/0,VLOOKUP($A544,Economática!$A$3:$AI$823,11,FALSE)))","v":""},{"$f":"IF($A544=\"\",\"\",IF(OR(VLOOKUP($A544,Economática!$A$3:$AI$823,12,FALSE)=0,VLOOKUP($A544,Economática!$A$3:$AI$823,12,FALSE)=\"-\"),1/0,VLOOKUP($A544,Economática!$A$3:$AI$823,12,FALSE)))","v":""},{"$f":"IF($A544=\"\",\"\",IF(OR(VLOOKUP($A544,Economática!$A$3:$AI$823,13,FALSE)=0,VLOOKUP($A544,Economática!$A$3:$AI$823,13,FALSE)=\"-\"),1/0,VLOOKUP($A544,Economática!$A$3:$AI$823,13,FALSE)))","v":""},{"$f":"IF($A544=\"\",\"\",IF(OR(VLOOKUP($A544,Economática!$A$3:$AI$823,14,FALSE)=0,VLOOKUP($A544,Economática!$A$3:$AI$823,14,FALSE)=\"-\"),1/0,VLOOKUP($A544,Economática!$A$3:$AI$823,14,FALSE)))","v":""},{"$f":"IF($A544=\"\",\"\",IF(OR(VLOOKUP($A544,Economática!$A$3:$AI$823,15,FALSE)=0,VLOOKUP($A544,Economática!$A$3:$AI$823,15,FALSE)=\"-\"),1/0,VLOOKUP($A544,Economática!$A$3:$AI$823,15,FALSE)))","v":""},{"$f":"IF($A544=\"\",\"\",IF(OR(VLOOKUP($A544,Economática!$A$3:$AI$823,16,FALSE)=0,VLOOKUP($A544,Economática!$A$3:$AI$823,16,FALSE)=\"-\"),1/0,VLOOKUP($A544,Economática!$A$3:$AI$823,16,FALSE)))","v":""},{"$f":"IF($A544=\"\",\"\",IF(OR(VLOOKUP($A544,Economática!$A$3:$AI$823,17,FALSE)=0,VLOOKUP($A544,Economática!$A$3:$AI$823,17,FALSE)=\"-\"),1/0,VLOOKUP($A544,Economática!$A$3:$AI$823,17,FALSE)))","v":""},{"$f":"IF($A544=\"\",\"\",IF(OR(VLOOKUP($A544,Economática!$A$3:$AI$823,18,FALSE)=0,VLOOKUP($A544,Economática!$A$3:$AI$823,18,FALSE)=\"-\"),1/0,VLOOKUP($A544,Economática!$A$3:$AI$823,18,FALSE)))","v":""},{"$f":"IF($A544=\"\",\"\",IF(OR(VLOOKUP($A544,Economática!$A$3:$AI$823,19,FALSE)=0,VLOOKUP($A544,Economática!$A$3:$AI$823,19,FALSE)=\"-\"),1/0,VLOOKUP($A544,Economática!$A$3:$AI$823,19,FALSE)))","v":""},{"$f":"IF($A544=\"\",\"\",VLOOKUP($A544,Economática!$A$3:$AI$823,20,FALSE)/E544)","v":""},"","","",{"$f":"IF($A544=\"\",\"\",IF(OR(VLOOKUP($A544,Economática!$A$3:$AI$823,21,FALSE)/100=0,VLOOKUP($A544,Economática!$A$3:$AI$823,21,FALSE)/100=\"-\"),1/0,VLOOKUP($A544,Economática!$A$3:$AI$823,21,FALSE)/100))","v":""},{"$f":"IF($A544=\"\",\"\",IF(OR(VLOOKUP($A544,Economática!$A$3:$AI$823,22,FALSE)/100=0,VLOOKUP($A544,Economática!$A$3:$AI$823,22,FALSE)/100=\"-\"),1/0,VLOOKUP($A544,Economática!$A$3:$AI$823,22,FALSE)/100))","v":""},{"$f":"IF($A544=\"\",\"\",IF(OR(VLOOKUP($A544,Economática!$A$3:$AI$823,23,FALSE)=0,VLOOKUP($A544,Economática!$A$3:$AI$823,23,FALSE)=\"-\"),1/0,VLOOKUP($A544,Economática!$A$3:$AI$823,23,FALSE)))","v":""},{"$f":"IF($A544=\"\",\"\",IF(OR(VLOOKUP($A544,Economática!$A$3:$AI$823,24,FALSE)=0,VLOOKUP($A544,Economática!$A$3:$AI$823,24,FALSE)=\"-\"),1/0,VLOOKUP($A544,Economática!$A$3:$AI$823,24,FALSE)))","v":""},{"$f":"IF($A544=\"\",\"\",IF(OR(VLOOKUP($A544,Economática!$A$3:$AI$823,25,FALSE)=0,VLOOKUP($A544,Economática!$A$3:$AI$823,25,FALSE)=\"-\"),1/0,VLOOKUP($A544,Economática!$A$3:$AI$823,25,FALSE)))","v":""},{"$f":"IF($A544=\"\",\"\",IF(ISERROR((F544+VLOOKUP($A544,Economática!$A$3:$AI$823,26,FALSE))/Y544),(F544+VLOOKUP($A544,Economática!$A$3:$AI$823,26,FALSE))/Y544,(F544+VLOOKUP($A544,Economática!$A$3:$AI$823,26,FALSE))/Y544))","v":""},{"$f":"IF($A544=\"\",\"\",IF(OR(-VLOOKUP($A544,Economática!$A$3:$AI$823,27,FALSE)=0,-VLOOKUP($A544,Economática!$A$3:$AI$823,27,FALSE)=\"-\"),1/0,-VLOOKUP($A544,Economática!$A$3:$AI$823,27,FALSE)))","v":""},"",{"$f":"IF($A544=\"\",\"\",IF(OR(VLOOKUP($A544,Economática!$A$3:$AI$823,28,FALSE)=0,VLOOKUP($A544,Economática!$A$3:$AI$823,28,FALSE)=\"-\"),1/0,VLOOKUP($A544,Economática!$A$3:$AI$823,28,FALSE)))","v":""},{"$f":"IF($A544=\"\",\"\",IF(OR(VLOOKUP($A544,Economática!$A$3:$AI$823,29,FALSE)=0,VLOOKUP($A544,Economática!$A$3:$AI$823,29,FALSE)=\"-\"),1/0,VLOOKUP($A544,Economática!$A$3:$AI$823,29,FALSE)))","v":""},{"$f":"IF($A544=\"\",\"\",IF(OR(VLOOKUP($A544,Economática!$A$3:$AI$823,30,FALSE)/E544=0,VLOOKUP($A544,Economática!$A$3:$AI$823,30,FALSE)/E544=\"-\",VLOOKUP($A544,Economática!$A$3:$AI$823,30,FALSE)/E544<33.33%,VLOOKUP($A544,Economática!$A$3:$AI$823,30,FALSE)/E544>100%),1/0,VLOOKUP($A544,Economática!$A$3:$AI$823,30,FALSE)/E544))","v":""},"",{"$f":"IF($A544=\"\",\"\",IF(OR(VLOOKUP($A544,Economática!$A$3:$AI$823,25,FALSE)=0,VLOOKUP($A544,Economática!$A$3:$AI$823,25,FALSE)=\"-\"),1/0,VLOOKUP($A544,Economática!$A$3:$AI$823,25,FALSE)))","v":""},{"$f":"CONCATENATE(Economática!B522,\" \",Economática!C522)","v":" "}]
[{"$f":"IF(Economática!AG523=\"\",\"\",Economática!AG523)","v":""},{"$f":"IF($A545=\"\",\"\",VLOOKUP(VLOOKUP($A545,Economática!$A$3:$AI$823,6,FALSE),Correção!$B$16:$C$36,2,FALSE))","v":""},{"$f":"IF(Economática!B523=\"\",\"\",Economática!B523)","v":""},{"$f":"IF($A545=\"\",\"\",IF(OR(VLOOKUP($A545,Economática!$A$3:$AI$823,8,FALSE)=0,VLOOKUP($A545,Economática!$A$3:$AI$823,8,FALSE)=\"-\"),1/0,VLOOKUP($A545,Economática!$A$3:$AI$823,8,FALSE)))","v":""},{"$f":"IF(A545=\"\",\"\",IF(ISERROR(VLOOKUP(A545,Correção!$B$2:$G$13,9,FALSE)),VLOOKUP($A545,Economática!$A$3:$AI$823,9,FALSE),VLOOKUP(A545,Correção!$B$2:$G$13,9,FALSE)))","v":""},{"$f":"IF($A545=\"\",\"\",Economática!G523)","v":""},{"$f":"IF($A545=\"\",\"\",IF(OR(VLOOKUP($A545,Economática!$A$3:$AI$823,10,FALSE)=0,VLOOKUP($A545,Economática!$A$3:$AI$823,10,FALSE)=\"-\"),1/0,VLOOKUP($A545,Economática!$A$3:$AI$823,10,FALSE)))","v":""},{"$f":"IF($A545=\"\",\"\",IF(OR(VLOOKUP($A545,Economática!$A$3:$AI$823,11,FALSE)=0,VLOOKUP($A545,Economática!$A$3:$AI$823,11,FALSE)=\"-\"),1/0,VLOOKUP($A545,Economática!$A$3:$AI$823,11,FALSE)))","v":""},{"$f":"IF($A545=\"\",\"\",IF(OR(VLOOKUP($A545,Economática!$A$3:$AI$823,12,FALSE)=0,VLOOKUP($A545,Economática!$A$3:$AI$823,12,FALSE)=\"-\"),1/0,VLOOKUP($A545,Economática!$A$3:$AI$823,12,FALSE)))","v":""},{"$f":"IF($A545=\"\",\"\",IF(OR(VLOOKUP($A545,Economática!$A$3:$AI$823,13,FALSE)=0,VLOOKUP($A545,Economática!$A$3:$AI$823,13,FALSE)=\"-\"),1/0,VLOOKUP($A545,Economática!$A$3:$AI$823,13,FALSE)))","v":""},{"$f":"IF($A545=\"\",\"\",IF(OR(VLOOKUP($A545,Economática!$A$3:$AI$823,14,FALSE)=0,VLOOKUP($A545,Economática!$A$3:$AI$823,14,FALSE)=\"-\"),1/0,VLOOKUP($A545,Economática!$A$3:$AI$823,14,FALSE)))","v":""},{"$f":"IF($A545=\"\",\"\",IF(OR(VLOOKUP($A545,Economática!$A$3:$AI$823,15,FALSE)=0,VLOOKUP($A545,Economática!$A$3:$AI$823,15,FALSE)=\"-\"),1/0,VLOOKUP($A545,Economática!$A$3:$AI$823,15,FALSE)))","v":""},{"$f":"IF($A545=\"\",\"\",IF(OR(VLOOKUP($A545,Economática!$A$3:$AI$823,16,FALSE)=0,VLOOKUP($A545,Economática!$A$3:$AI$823,16,FALSE)=\"-\"),1/0,VLOOKUP($A545,Economática!$A$3:$AI$823,16,FALSE)))","v":""},{"$f":"IF($A545=\"\",\"\",IF(OR(VLOOKUP($A545,Economática!$A$3:$AI$823,17,FALSE)=0,VLOOKUP($A545,Economática!$A$3:$AI$823,17,FALSE)=\"-\"),1/0,VLOOKUP($A545,Economática!$A$3:$AI$823,17,FALSE)))","v":""},{"$f":"IF($A545=\"\",\"\",IF(OR(VLOOKUP($A545,Economática!$A$3:$AI$823,18,FALSE)=0,VLOOKUP($A545,Economática!$A$3:$AI$823,18,FALSE)=\"-\"),1/0,VLOOKUP($A545,Economática!$A$3:$AI$823,18,FALSE)))","v":""},{"$f":"IF($A545=\"\",\"\",IF(OR(VLOOKUP($A545,Economática!$A$3:$AI$823,19,FALSE)=0,VLOOKUP($A545,Economática!$A$3:$AI$823,19,FALSE)=\"-\"),1/0,VLOOKUP($A545,Economática!$A$3:$AI$823,19,FALSE)))","v":""},{"$f":"IF($A545=\"\",\"\",VLOOKUP($A545,Economática!$A$3:$AI$823,20,FALSE)/E545)","v":""},"","","",{"$f":"IF($A545=\"\",\"\",IF(OR(VLOOKUP($A545,Economática!$A$3:$AI$823,21,FALSE)/100=0,VLOOKUP($A545,Economática!$A$3:$AI$823,21,FALSE)/100=\"-\"),1/0,VLOOKUP($A545,Economática!$A$3:$AI$823,21,FALSE)/100))","v":""},{"$f":"IF($A545=\"\",\"\",IF(OR(VLOOKUP($A545,Economática!$A$3:$AI$823,22,FALSE)/100=0,VLOOKUP($A545,Economática!$A$3:$AI$823,22,FALSE)/100=\"-\"),1/0,VLOOKUP($A545,Economática!$A$3:$AI$823,22,FALSE)/100))","v":""},{"$f":"IF($A545=\"\",\"\",IF(OR(VLOOKUP($A545,Economática!$A$3:$AI$823,23,FALSE)=0,VLOOKUP($A545,Economática!$A$3:$AI$823,23,FALSE)=\"-\"),1/0,VLOOKUP($A545,Economática!$A$3:$AI$823,23,FALSE)))","v":""},{"$f":"IF($A545=\"\",\"\",IF(OR(VLOOKUP($A545,Economática!$A$3:$AI$823,24,FALSE)=0,VLOOKUP($A545,Economática!$A$3:$AI$823,24,FALSE)=\"-\"),1/0,VLOOKUP($A545,Economática!$A$3:$AI$823,24,FALSE)))","v":""},{"$f":"IF($A545=\"\",\"\",IF(OR(VLOOKUP($A545,Economática!$A$3:$AI$823,25,FALSE)=0,VLOOKUP($A545,Economática!$A$3:$AI$823,25,FALSE)=\"-\"),1/0,VLOOKUP($A545,Economática!$A$3:$AI$823,25,FALSE)))","v":""},{"$f":"IF($A545=\"\",\"\",IF(ISERROR((F545+VLOOKUP($A545,Economática!$A$3:$AI$823,26,FALSE))/Y545),(F545+VLOOKUP($A545,Economática!$A$3:$AI$823,26,FALSE))/Y545,(F545+VLOOKUP($A545,Economática!$A$3:$AI$823,26,FALSE))/Y545))","v":""},{"$f":"IF($A545=\"\",\"\",IF(OR(-VLOOKUP($A545,Economática!$A$3:$AI$823,27,FALSE)=0,-VLOOKUP($A545,Economática!$A$3:$AI$823,27,FALSE)=\"-\"),1/0,-VLOOKUP($A545,Economática!$A$3:$AI$823,27,FALSE)))","v":""},"",{"$f":"IF($A545=\"\",\"\",IF(OR(VLOOKUP($A545,Economática!$A$3:$AI$823,28,FALSE)=0,VLOOKUP($A545,Economática!$A$3:$AI$823,28,FALSE)=\"-\"),1/0,VLOOKUP($A545,Economática!$A$3:$AI$823,28,FALSE)))","v":""},{"$f":"IF($A545=\"\",\"\",IF(OR(VLOOKUP($A545,Economática!$A$3:$AI$823,29,FALSE)=0,VLOOKUP($A545,Economática!$A$3:$AI$823,29,FALSE)=\"-\"),1/0,VLOOKUP($A545,Economática!$A$3:$AI$823,29,FALSE)))","v":""},{"$f":"IF($A545=\"\",\"\",IF(OR(VLOOKUP($A545,Economática!$A$3:$AI$823,30,FALSE)/E545=0,VLOOKUP($A545,Economática!$A$3:$AI$823,30,FALSE)/E545=\"-\",VLOOKUP($A545,Economática!$A$3:$AI$823,30,FALSE)/E545<33.33%,VLOOKUP($A545,Economática!$A$3:$AI$823,30,FALSE)/E545>100%),1/0,VLOOKUP($A545,Economática!$A$3:$AI$823,30,FALSE)/E545))","v":""},"",{"$f":"IF($A545=\"\",\"\",IF(OR(VLOOKUP($A545,Economática!$A$3:$AI$823,25,FALSE)=0,VLOOKUP($A545,Economática!$A$3:$AI$823,25,FALSE)=\"-\"),1/0,VLOOKUP($A545,Economática!$A$3:$AI$823,25,FALSE)))","v":""},{"$f":"CONCATENATE(Economática!B523,\" \",Economática!C523)","v":" "}]
[{"$f":"IF(Economática!AG524=\"\",\"\",Economática!AG524)","v":""},{"$f":"IF($A546=\"\",\"\",VLOOKUP(VLOOKUP($A546,Economática!$A$3:$AI$823,6,FALSE),Correção!$B$16:$C$36,2,FALSE))","v":""},{"$f":"IF(Economática!B524=\"\",\"\",Economática!B524)","v":""},{"$f":"IF($A546=\"\",\"\",IF(OR(VLOOKUP($A546,Economática!$A$3:$AI$823,8,FALSE)=0,VLOOKUP($A546,Economática!$A$3:$AI$823,8,FALSE)=\"-\"),1/0,VLOOKUP($A546,Economática!$A$3:$AI$823,8,FALSE)))","v":""},{"$f":"IF(A546=\"\",\"\",IF(ISERROR(VLOOKUP(A546,Correção!$B$2:$G$13,9,FALSE)),VLOOKUP($A546,Economática!$A$3:$AI$823,9,FALSE),VLOOKUP(A546,Correção!$B$2:$G$13,9,FALSE)))","v":""},{"$f":"IF($A546=\"\",\"\",Economática!G524)","v":""},{"$f":"IF($A546=\"\",\"\",IF(OR(VLOOKUP($A546,Economática!$A$3:$AI$823,10,FALSE)=0,VLOOKUP($A546,Economática!$A$3:$AI$823,10,FALSE)=\"-\"),1/0,VLOOKUP($A546,Economática!$A$3:$AI$823,10,FALSE)))","v":""},{"$f":"IF($A546=\"\",\"\",IF(OR(VLOOKUP($A546,Economática!$A$3:$AI$823,11,FALSE)=0,VLOOKUP($A546,Economática!$A$3:$AI$823,11,FALSE)=\"-\"),1/0,VLOOKUP($A546,Economática!$A$3:$AI$823,11,FALSE)))","v":""},{"$f":"IF($A546=\"\",\"\",IF(OR(VLOOKUP($A546,Economática!$A$3:$AI$823,12,FALSE)=0,VLOOKUP($A546,Economática!$A$3:$AI$823,12,FALSE)=\"-\"),1/0,VLOOKUP($A546,Economática!$A$3:$AI$823,12,FALSE)))","v":""},{"$f":"IF($A546=\"\",\"\",IF(OR(VLOOKUP($A546,Economática!$A$3:$AI$823,13,FALSE)=0,VLOOKUP($A546,Economática!$A$3:$AI$823,13,FALSE)=\"-\"),1/0,VLOOKUP($A546,Economática!$A$3:$AI$823,13,FALSE)))","v":""},{"$f":"IF($A546=\"\",\"\",IF(OR(VLOOKUP($A546,Economática!$A$3:$AI$823,14,FALSE)=0,VLOOKUP($A546,Economática!$A$3:$AI$823,14,FALSE)=\"-\"),1/0,VLOOKUP($A546,Economática!$A$3:$AI$823,14,FALSE)))","v":""},{"$f":"IF($A546=\"\",\"\",IF(OR(VLOOKUP($A546,Economática!$A$3:$AI$823,15,FALSE)=0,VLOOKUP($A546,Economática!$A$3:$AI$823,15,FALSE)=\"-\"),1/0,VLOOKUP($A546,Economática!$A$3:$AI$823,15,FALSE)))","v":""},{"$f":"IF($A546=\"\",\"\",IF(OR(VLOOKUP($A546,Economática!$A$3:$AI$823,16,FALSE)=0,VLOOKUP($A546,Economática!$A$3:$AI$823,16,FALSE)=\"-\"),1/0,VLOOKUP($A546,Economática!$A$3:$AI$823,16,FALSE)))","v":""},{"$f":"IF($A546=\"\",\"\",IF(OR(VLOOKUP($A546,Economática!$A$3:$AI$823,17,FALSE)=0,VLOOKUP($A546,Economática!$A$3:$AI$823,17,FALSE)=\"-\"),1/0,VLOOKUP($A546,Economática!$A$3:$AI$823,17,FALSE)))","v":""},{"$f":"IF($A546=\"\",\"\",IF(OR(VLOOKUP($A546,Economática!$A$3:$AI$823,18,FALSE)=0,VLOOKUP($A546,Economática!$A$3:$AI$823,18,FALSE)=\"-\"),1/0,VLOOKUP($A546,Economática!$A$3:$AI$823,18,FALSE)))","v":""},{"$f":"IF($A546=\"\",\"\",IF(OR(VLOOKUP($A546,Economática!$A$3:$AI$823,19,FALSE)=0,VLOOKUP($A546,Economática!$A$3:$AI$823,19,FALSE)=\"-\"),1/0,VLOOKUP($A546,Economática!$A$3:$AI$823,19,FALSE)))","v":""},{"$f":"IF($A546=\"\",\"\",VLOOKUP($A546,Economática!$A$3:$AI$823,20,FALSE)/E546)","v":""},"","","",{"$f":"IF($A546=\"\",\"\",IF(OR(VLOOKUP($A546,Economática!$A$3:$AI$823,21,FALSE)/100=0,VLOOKUP($A546,Economática!$A$3:$AI$823,21,FALSE)/100=\"-\"),1/0,VLOOKUP($A546,Economática!$A$3:$AI$823,21,FALSE)/100))","v":""},{"$f":"IF($A546=\"\",\"\",IF(OR(VLOOKUP($A546,Economática!$A$3:$AI$823,22,FALSE)/100=0,VLOOKUP($A546,Economática!$A$3:$AI$823,22,FALSE)/100=\"-\"),1/0,VLOOKUP($A546,Economática!$A$3:$AI$823,22,FALSE)/100))","v":""},{"$f":"IF($A546=\"\",\"\",IF(OR(VLOOKUP($A546,Economática!$A$3:$AI$823,23,FALSE)=0,VLOOKUP($A546,Economática!$A$3:$AI$823,23,FALSE)=\"-\"),1/0,VLOOKUP($A546,Economática!$A$3:$AI$823,23,FALSE)))","v":""},{"$f":"IF($A546=\"\",\"\",IF(OR(VLOOKUP($A546,Economática!$A$3:$AI$823,24,FALSE)=0,VLOOKUP($A546,Economática!$A$3:$AI$823,24,FALSE)=\"-\"),1/0,VLOOKUP($A546,Economática!$A$3:$AI$823,24,FALSE)))","v":""},{"$f":"IF($A546=\"\",\"\",IF(OR(VLOOKUP($A546,Economática!$A$3:$AI$823,25,FALSE)=0,VLOOKUP($A546,Economática!$A$3:$AI$823,25,FALSE)=\"-\"),1/0,VLOOKUP($A546,Economática!$A$3:$AI$823,25,FALSE)))","v":""},{"$f":"IF($A546=\"\",\"\",IF(ISERROR((F546+VLOOKUP($A546,Economática!$A$3:$AI$823,26,FALSE))/Y546),(F546+VLOOKUP($A546,Economática!$A$3:$AI$823,26,FALSE))/Y546,(F546+VLOOKUP($A546,Economática!$A$3:$AI$823,26,FALSE))/Y546))","v":""},{"$f":"IF($A546=\"\",\"\",IF(OR(-VLOOKUP($A546,Economática!$A$3:$AI$823,27,FALSE)=0,-VLOOKUP($A546,Economática!$A$3:$AI$823,27,FALSE)=\"-\"),1/0,-VLOOKUP($A546,Economática!$A$3:$AI$823,27,FALSE)))","v":""},"",{"$f":"IF($A546=\"\",\"\",IF(OR(VLOOKUP($A546,Economática!$A$3:$AI$823,28,FALSE)=0,VLOOKUP($A546,Economática!$A$3:$AI$823,28,FALSE)=\"-\"),1/0,VLOOKUP($A546,Economática!$A$3:$AI$823,28,FALSE)))","v":""},{"$f":"IF($A546=\"\",\"\",IF(OR(VLOOKUP($A546,Economática!$A$3:$AI$823,29,FALSE)=0,VLOOKUP($A546,Economática!$A$3:$AI$823,29,FALSE)=\"-\"),1/0,VLOOKUP($A546,Economática!$A$3:$AI$823,29,FALSE)))","v":""},{"$f":"IF($A546=\"\",\"\",IF(OR(VLOOKUP($A546,Economática!$A$3:$AI$823,30,FALSE)/E546=0,VLOOKUP($A546,Economática!$A$3:$AI$823,30,FALSE)/E546=\"-\",VLOOKUP($A546,Economática!$A$3:$AI$823,30,FALSE)/E546<33.33%,VLOOKUP($A546,Economática!$A$3:$AI$823,30,FALSE)/E546>100%),1/0,VLOOKUP($A546,Economática!$A$3:$AI$823,30,FALSE)/E546))","v":""},"",{"$f":"IF($A546=\"\",\"\",IF(OR(VLOOKUP($A546,Economática!$A$3:$AI$823,25,FALSE)=0,VLOOKUP($A546,Economática!$A$3:$AI$823,25,FALSE)=\"-\"),1/0,VLOOKUP($A546,Economática!$A$3:$AI$823,25,FALSE)))","v":""},{"$f":"CONCATENATE(Economática!B524,\" \",Economática!C524)","v":" "}]
[{"$f":"IF(Economática!AG525=\"\",\"\",Economática!AG525)","v":""},{"$f":"IF($A547=\"\",\"\",VLOOKUP(VLOOKUP($A547,Economática!$A$3:$AI$823,6,FALSE),Correção!$B$16:$C$36,2,FALSE))","v":""},{"$f":"IF(Economática!B525=\"\",\"\",Economática!B525)","v":""},{"$f":"IF($A547=\"\",\"\",IF(OR(VLOOKUP($A547,Economática!$A$3:$AI$823,8,FALSE)=0,VLOOKUP($A547,Economática!$A$3:$AI$823,8,FALSE)=\"-\"),1/0,VLOOKUP($A547,Economática!$A$3:$AI$823,8,FALSE)))","v":""},{"$f":"IF(A547=\"\",\"\",IF(ISERROR(VLOOKUP(A547,Correção!$B$2:$G$13,9,FALSE)),VLOOKUP($A547,Economática!$A$3:$AI$823,9,FALSE),VLOOKUP(A547,Correção!$B$2:$G$13,9,FALSE)))","v":""},{"$f":"IF($A547=\"\",\"\",Economática!G525)","v":""},{"$f":"IF($A547=\"\",\"\",IF(OR(VLOOKUP($A547,Economática!$A$3:$AI$823,10,FALSE)=0,VLOOKUP($A547,Economática!$A$3:$AI$823,10,FALSE)=\"-\"),1/0,VLOOKUP($A547,Economática!$A$3:$AI$823,10,FALSE)))","v":""},{"$f":"IF($A547=\"\",\"\",IF(OR(VLOOKUP($A547,Economática!$A$3:$AI$823,11,FALSE)=0,VLOOKUP($A547,Economática!$A$3:$AI$823,11,FALSE)=\"-\"),1/0,VLOOKUP($A547,Economática!$A$3:$AI$823,11,FALSE)))","v":""},{"$f":"IF($A547=\"\",\"\",IF(OR(VLOOKUP($A547,Economática!$A$3:$AI$823,12,FALSE)=0,VLOOKUP($A547,Economática!$A$3:$AI$823,12,FALSE)=\"-\"),1/0,VLOOKUP($A547,Economática!$A$3:$AI$823,12,FALSE)))","v":""},{"$f":"IF($A547=\"\",\"\",IF(OR(VLOOKUP($A547,Economática!$A$3:$AI$823,13,FALSE)=0,VLOOKUP($A547,Economática!$A$3:$AI$823,13,FALSE)=\"-\"),1/0,VLOOKUP($A547,Economática!$A$3:$AI$823,13,FALSE)))","v":""},{"$f":"IF($A547=\"\",\"\",IF(OR(VLOOKUP($A547,Economática!$A$3:$AI$823,14,FALSE)=0,VLOOKUP($A547,Economática!$A$3:$AI$823,14,FALSE)=\"-\"),1/0,VLOOKUP($A547,Economática!$A$3:$AI$823,14,FALSE)))","v":""},{"$f":"IF($A547=\"\",\"\",IF(OR(VLOOKUP($A547,Economática!$A$3:$AI$823,15,FALSE)=0,VLOOKUP($A547,Economática!$A$3:$AI$823,15,FALSE)=\"-\"),1/0,VLOOKUP($A547,Economática!$A$3:$AI$823,15,FALSE)))","v":""},{"$f":"IF($A547=\"\",\"\",IF(OR(VLOOKUP($A547,Economática!$A$3:$AI$823,16,FALSE)=0,VLOOKUP($A547,Economática!$A$3:$AI$823,16,FALSE)=\"-\"),1/0,VLOOKUP($A547,Economática!$A$3:$AI$823,16,FALSE)))","v":""},{"$f":"IF($A547=\"\",\"\",IF(OR(VLOOKUP($A547,Economática!$A$3:$AI$823,17,FALSE)=0,VLOOKUP($A547,Economática!$A$3:$AI$823,17,FALSE)=\"-\"),1/0,VLOOKUP($A547,Economática!$A$3:$AI$823,17,FALSE)))","v":""},{"$f":"IF($A547=\"\",\"\",IF(OR(VLOOKUP($A547,Economática!$A$3:$AI$823,18,FALSE)=0,VLOOKUP($A547,Economática!$A$3:$AI$823,18,FALSE)=\"-\"),1/0,VLOOKUP($A547,Economática!$A$3:$AI$823,18,FALSE)))","v":""},{"$f":"IF($A547=\"\",\"\",IF(OR(VLOOKUP($A547,Economática!$A$3:$AI$823,19,FALSE)=0,VLOOKUP($A547,Economática!$A$3:$AI$823,19,FALSE)=\"-\"),1/0,VLOOKUP($A547,Economática!$A$3:$AI$823,19,FALSE)))","v":""},{"$f":"IF($A547=\"\",\"\",VLOOKUP($A547,Economática!$A$3:$AI$823,20,FALSE)/E547)","v":""},"","","",{"$f":"IF($A547=\"\",\"\",IF(OR(VLOOKUP($A547,Economática!$A$3:$AI$823,21,FALSE)/100=0,VLOOKUP($A547,Economática!$A$3:$AI$823,21,FALSE)/100=\"-\"),1/0,VLOOKUP($A547,Economática!$A$3:$AI$823,21,FALSE)/100))","v":""},{"$f":"IF($A547=\"\",\"\",IF(OR(VLOOKUP($A547,Economática!$A$3:$AI$823,22,FALSE)/100=0,VLOOKUP($A547,Economática!$A$3:$AI$823,22,FALSE)/100=\"-\"),1/0,VLOOKUP($A547,Economática!$A$3:$AI$823,22,FALSE)/100))","v":""},{"$f":"IF($A547=\"\",\"\",IF(OR(VLOOKUP($A547,Economática!$A$3:$AI$823,23,FALSE)=0,VLOOKUP($A547,Economática!$A$3:$AI$823,23,FALSE)=\"-\"),1/0,VLOOKUP($A547,Economática!$A$3:$AI$823,23,FALSE)))","v":""},{"$f":"IF($A547=\"\",\"\",IF(OR(VLOOKUP($A547,Economática!$A$3:$AI$823,24,FALSE)=0,VLOOKUP($A547,Economática!$A$3:$AI$823,24,FALSE)=\"-\"),1/0,VLOOKUP($A547,Economática!$A$3:$AI$823,24,FALSE)))","v":""},{"$f":"IF($A547=\"\",\"\",IF(OR(VLOOKUP($A547,Economática!$A$3:$AI$823,25,FALSE)=0,VLOOKUP($A547,Economática!$A$3:$AI$823,25,FALSE)=\"-\"),1/0,VLOOKUP($A547,Economática!$A$3:$AI$823,25,FALSE)))","v":""},{"$f":"IF($A547=\"\",\"\",IF(ISERROR((F547+VLOOKUP($A547,Economática!$A$3:$AI$823,26,FALSE))/Y547),(F547+VLOOKUP($A547,Economática!$A$3:$AI$823,26,FALSE))/Y547,(F547+VLOOKUP($A547,Economática!$A$3:$AI$823,26,FALSE))/Y547))","v":""},{"$f":"IF($A547=\"\",\"\",IF(OR(-VLOOKUP($A547,Economática!$A$3:$AI$823,27,FALSE)=0,-VLOOKUP($A547,Economática!$A$3:$AI$823,27,FALSE)=\"-\"),1/0,-VLOOKUP($A547,Economática!$A$3:$AI$823,27,FALSE)))","v":""},"",{"$f":"IF($A547=\"\",\"\",IF(OR(VLOOKUP($A547,Economática!$A$3:$AI$823,28,FALSE)=0,VLOOKUP($A547,Economática!$A$3:$AI$823,28,FALSE)=\"-\"),1/0,VLOOKUP($A547,Economática!$A$3:$AI$823,28,FALSE)))","v":""},{"$f":"IF($A547=\"\",\"\",IF(OR(VLOOKUP($A547,Economática!$A$3:$AI$823,29,FALSE)=0,VLOOKUP($A547,Economática!$A$3:$AI$823,29,FALSE)=\"-\"),1/0,VLOOKUP($A547,Economática!$A$3:$AI$823,29,FALSE)))","v":""},{"$f":"IF($A547=\"\",\"\",IF(OR(VLOOKUP($A547,Economática!$A$3:$AI$823,30,FALSE)/E547=0,VLOOKUP($A547,Economática!$A$3:$AI$823,30,FALSE)/E547=\"-\",VLOOKUP($A547,Economática!$A$3:$AI$823,30,FALSE)/E547<33.33%,VLOOKUP($A547,Economática!$A$3:$AI$823,30,FALSE)/E547>100%),1/0,VLOOKUP($A547,Economática!$A$3:$AI$823,30,FALSE)/E547))","v":""},"",{"$f":"IF($A547=\"\",\"\",IF(OR(VLOOKUP($A547,Economática!$A$3:$AI$823,25,FALSE)=0,VLOOKUP($A547,Economática!$A$3:$AI$823,25,FALSE)=\"-\"),1/0,VLOOKUP($A547,Economática!$A$3:$AI$823,25,FALSE)))","v":""},{"$f":"CONCATENATE(Economática!B525,\" \",Economática!C525)","v":" "}]
[{"$f":"IF(Economática!AG526=\"\",\"\",Economática!AG526)","v":""},{"$f":"IF($A548=\"\",\"\",VLOOKUP(VLOOKUP($A548,Economática!$A$3:$AI$823,6,FALSE),Correção!$B$16:$C$36,2,FALSE))","v":""},{"$f":"IF(Economática!B526=\"\",\"\",Economática!B526)","v":""},{"$f":"IF($A548=\"\",\"\",IF(OR(VLOOKUP($A548,Economática!$A$3:$AI$823,8,FALSE)=0,VLOOKUP($A548,Economática!$A$3:$AI$823,8,FALSE)=\"-\"),1/0,VLOOKUP($A548,Economática!$A$3:$AI$823,8,FALSE)))","v":""},{"$f":"IF(A548=\"\",\"\",IF(ISERROR(VLOOKUP(A548,Correção!$B$2:$G$13,9,FALSE)),VLOOKUP($A548,Economática!$A$3:$AI$823,9,FALSE),VLOOKUP(A548,Correção!$B$2:$G$13,9,FALSE)))","v":""},{"$f":"IF($A548=\"\",\"\",Economática!G526)","v":""},{"$f":"IF($A548=\"\",\"\",IF(OR(VLOOKUP($A548,Economática!$A$3:$AI$823,10,FALSE)=0,VLOOKUP($A548,Economática!$A$3:$AI$823,10,FALSE)=\"-\"),1/0,VLOOKUP($A548,Economática!$A$3:$AI$823,10,FALSE)))","v":""},{"$f":"IF($A548=\"\",\"\",IF(OR(VLOOKUP($A548,Economática!$A$3:$AI$823,11,FALSE)=0,VLOOKUP($A548,Economática!$A$3:$AI$823,11,FALSE)=\"-\"),1/0,VLOOKUP($A548,Economática!$A$3:$AI$823,11,FALSE)))","v":""},{"$f":"IF($A548=\"\",\"\",IF(OR(VLOOKUP($A548,Economática!$A$3:$AI$823,12,FALSE)=0,VLOOKUP($A548,Economática!$A$3:$AI$823,12,FALSE)=\"-\"),1/0,VLOOKUP($A548,Economática!$A$3:$AI$823,12,FALSE)))","v":""},{"$f":"IF($A548=\"\",\"\",IF(OR(VLOOKUP($A548,Economática!$A$3:$AI$823,13,FALSE)=0,VLOOKUP($A548,Economática!$A$3:$AI$823,13,FALSE)=\"-\"),1/0,VLOOKUP($A548,Economática!$A$3:$AI$823,13,FALSE)))","v":""},{"$f":"IF($A548=\"\",\"\",IF(OR(VLOOKUP($A548,Economática!$A$3:$AI$823,14,FALSE)=0,VLOOKUP($A548,Economática!$A$3:$AI$823,14,FALSE)=\"-\"),1/0,VLOOKUP($A548,Economática!$A$3:$AI$823,14,FALSE)))","v":""},{"$f":"IF($A548=\"\",\"\",IF(OR(VLOOKUP($A548,Economática!$A$3:$AI$823,15,FALSE)=0,VLOOKUP($A548,Economática!$A$3:$AI$823,15,FALSE)=\"-\"),1/0,VLOOKUP($A548,Economática!$A$3:$AI$823,15,FALSE)))","v":""},{"$f":"IF($A548=\"\",\"\",IF(OR(VLOOKUP($A548,Economática!$A$3:$AI$823,16,FALSE)=0,VLOOKUP($A548,Economática!$A$3:$AI$823,16,FALSE)=\"-\"),1/0,VLOOKUP($A548,Economática!$A$3:$AI$823,16,FALSE)))","v":""},{"$f":"IF($A548=\"\",\"\",IF(OR(VLOOKUP($A548,Economática!$A$3:$AI$823,17,FALSE)=0,VLOOKUP($A548,Economática!$A$3:$AI$823,17,FALSE)=\"-\"),1/0,VLOOKUP($A548,Economática!$A$3:$AI$823,17,FALSE)))","v":""},{"$f":"IF($A548=\"\",\"\",IF(OR(VLOOKUP($A548,Economática!$A$3:$AI$823,18,FALSE)=0,VLOOKUP($A548,Economática!$A$3:$AI$823,18,FALSE)=\"-\"),1/0,VLOOKUP($A548,Economática!$A$3:$AI$823,18,FALSE)))","v":""},{"$f":"IF($A548=\"\",\"\",IF(OR(VLOOKUP($A548,Economática!$A$3:$AI$823,19,FALSE)=0,VLOOKUP($A548,Economática!$A$3:$AI$823,19,FALSE)=\"-\"),1/0,VLOOKUP($A548,Economática!$A$3:$AI$823,19,FALSE)))","v":""},{"$f":"IF($A548=\"\",\"\",VLOOKUP($A548,Economática!$A$3:$AI$823,20,FALSE)/E548)","v":""},"","","",{"$f":"IF($A548=\"\",\"\",IF(OR(VLOOKUP($A548,Economática!$A$3:$AI$823,21,FALSE)/100=0,VLOOKUP($A548,Economática!$A$3:$AI$823,21,FALSE)/100=\"-\"),1/0,VLOOKUP($A548,Economática!$A$3:$AI$823,21,FALSE)/100))","v":""},{"$f":"IF($A548=\"\",\"\",IF(OR(VLOOKUP($A548,Economática!$A$3:$AI$823,22,FALSE)/100=0,VLOOKUP($A548,Economática!$A$3:$AI$823,22,FALSE)/100=\"-\"),1/0,VLOOKUP($A548,Economática!$A$3:$AI$823,22,FALSE)/100))","v":""},{"$f":"IF($A548=\"\",\"\",IF(OR(VLOOKUP($A548,Economática!$A$3:$AI$823,23,FALSE)=0,VLOOKUP($A548,Economática!$A$3:$AI$823,23,FALSE)=\"-\"),1/0,VLOOKUP($A548,Economática!$A$3:$AI$823,23,FALSE)))","v":""},{"$f":"IF($A548=\"\",\"\",IF(OR(VLOOKUP($A548,Economática!$A$3:$AI$823,24,FALSE)=0,VLOOKUP($A548,Economática!$A$3:$AI$823,24,FALSE)=\"-\"),1/0,VLOOKUP($A548,Economática!$A$3:$AI$823,24,FALSE)))","v":""},{"$f":"IF($A548=\"\",\"\",IF(OR(VLOOKUP($A548,Economática!$A$3:$AI$823,25,FALSE)=0,VLOOKUP($A548,Economática!$A$3:$AI$823,25,FALSE)=\"-\"),1/0,VLOOKUP($A548,Economática!$A$3:$AI$823,25,FALSE)))","v":""},{"$f":"IF($A548=\"\",\"\",IF(ISERROR((F548+VLOOKUP($A548,Economática!$A$3:$AI$823,26,FALSE))/Y548),(F548+VLOOKUP($A548,Economática!$A$3:$AI$823,26,FALSE))/Y548,(F548+VLOOKUP($A548,Economática!$A$3:$AI$823,26,FALSE))/Y548))","v":""},{"$f":"IF($A548=\"\",\"\",IF(OR(-VLOOKUP($A548,Economática!$A$3:$AI$823,27,FALSE)=0,-VLOOKUP($A548,Economática!$A$3:$AI$823,27,FALSE)=\"-\"),1/0,-VLOOKUP($A548,Economática!$A$3:$AI$823,27,FALSE)))","v":""},"",{"$f":"IF($A548=\"\",\"\",IF(OR(VLOOKUP($A548,Economática!$A$3:$AI$823,28,FALSE)=0,VLOOKUP($A548,Economática!$A$3:$AI$823,28,FALSE)=\"-\"),1/0,VLOOKUP($A548,Economática!$A$3:$AI$823,28,FALSE)))","v":""},{"$f":"IF($A548=\"\",\"\",IF(OR(VLOOKUP($A548,Economática!$A$3:$AI$823,29,FALSE)=0,VLOOKUP($A548,Economática!$A$3:$AI$823,29,FALSE)=\"-\"),1/0,VLOOKUP($A548,Economática!$A$3:$AI$823,29,FALSE)))","v":""},{"$f":"IF($A548=\"\",\"\",IF(OR(VLOOKUP($A548,Economática!$A$3:$AI$823,30,FALSE)/E548=0,VLOOKUP($A548,Economática!$A$3:$AI$823,30,FALSE)/E548=\"-\",VLOOKUP($A548,Economática!$A$3:$AI$823,30,FALSE)/E548<33.33%,VLOOKUP($A548,Economática!$A$3:$AI$823,30,FALSE)/E548>100%),1/0,VLOOKUP($A548,Economática!$A$3:$AI$823,30,FALSE)/E548))","v":""},"",{"$f":"IF($A548=\"\",\"\",IF(OR(VLOOKUP($A548,Economática!$A$3:$AI$823,25,FALSE)=0,VLOOKUP($A548,Economática!$A$3:$AI$823,25,FALSE)=\"-\"),1/0,VLOOKUP($A548,Economática!$A$3:$AI$823,25,FALSE)))","v":""},{"$f":"CONCATENATE(Economática!B526,\" \",Economática!C526)","v":" "}]
[{"$f":"IF(Economática!AG527=\"\",\"\",Economática!AG527)","v":""},{"$f":"IF($A549=\"\",\"\",VLOOKUP(VLOOKUP($A549,Economática!$A$3:$AI$823,6,FALSE),Correção!$B$16:$C$36,2,FALSE))","v":""},{"$f":"IF(Economática!B527=\"\",\"\",Economática!B527)","v":""},{"$f":"IF($A549=\"\",\"\",IF(OR(VLOOKUP($A549,Economática!$A$3:$AI$823,8,FALSE)=0,VLOOKUP($A549,Economática!$A$3:$AI$823,8,FALSE)=\"-\"),1/0,VLOOKUP($A549,Economática!$A$3:$AI$823,8,FALSE)))","v":""},{"$f":"IF(A549=\"\",\"\",IF(ISERROR(VLOOKUP(A549,Correção!$B$2:$G$13,9,FALSE)),VLOOKUP($A549,Economática!$A$3:$AI$823,9,FALSE),VLOOKUP(A549,Correção!$B$2:$G$13,9,FALSE)))","v":""},{"$f":"IF($A549=\"\",\"\",Economática!G527)","v":""},{"$f":"IF($A549=\"\",\"\",IF(OR(VLOOKUP($A549,Economática!$A$3:$AI$823,10,FALSE)=0,VLOOKUP($A549,Economática!$A$3:$AI$823,10,FALSE)=\"-\"),1/0,VLOOKUP($A549,Economática!$A$3:$AI$823,10,FALSE)))","v":""},{"$f":"IF($A549=\"\",\"\",IF(OR(VLOOKUP($A549,Economática!$A$3:$AI$823,11,FALSE)=0,VLOOKUP($A549,Economática!$A$3:$AI$823,11,FALSE)=\"-\"),1/0,VLOOKUP($A549,Economática!$A$3:$AI$823,11,FALSE)))","v":""},{"$f":"IF($A549=\"\",\"\",IF(OR(VLOOKUP($A549,Economática!$A$3:$AI$823,12,FALSE)=0,VLOOKUP($A549,Economática!$A$3:$AI$823,12,FALSE)=\"-\"),1/0,VLOOKUP($A549,Economática!$A$3:$AI$823,12,FALSE)))","v":""},{"$f":"IF($A549=\"\",\"\",IF(OR(VLOOKUP($A549,Economática!$A$3:$AI$823,13,FALSE)=0,VLOOKUP($A549,Economática!$A$3:$AI$823,13,FALSE)=\"-\"),1/0,VLOOKUP($A549,Economática!$A$3:$AI$823,13,FALSE)))","v":""},{"$f":"IF($A549=\"\",\"\",IF(OR(VLOOKUP($A549,Economática!$A$3:$AI$823,14,FALSE)=0,VLOOKUP($A549,Economática!$A$3:$AI$823,14,FALSE)=\"-\"),1/0,VLOOKUP($A549,Economática!$A$3:$AI$823,14,FALSE)))","v":""},{"$f":"IF($A549=\"\",\"\",IF(OR(VLOOKUP($A549,Economática!$A$3:$AI$823,15,FALSE)=0,VLOOKUP($A549,Economática!$A$3:$AI$823,15,FALSE)=\"-\"),1/0,VLOOKUP($A549,Economática!$A$3:$AI$823,15,FALSE)))","v":""},{"$f":"IF($A549=\"\",\"\",IF(OR(VLOOKUP($A549,Economática!$A$3:$AI$823,16,FALSE)=0,VLOOKUP($A549,Economática!$A$3:$AI$823,16,FALSE)=\"-\"),1/0,VLOOKUP($A549,Economática!$A$3:$AI$823,16,FALSE)))","v":""},{"$f":"IF($A549=\"\",\"\",IF(OR(VLOOKUP($A549,Economática!$A$3:$AI$823,17,FALSE)=0,VLOOKUP($A549,Economática!$A$3:$AI$823,17,FALSE)=\"-\"),1/0,VLOOKUP($A549,Economática!$A$3:$AI$823,17,FALSE)))","v":""},{"$f":"IF($A549=\"\",\"\",IF(OR(VLOOKUP($A549,Economática!$A$3:$AI$823,18,FALSE)=0,VLOOKUP($A549,Economática!$A$3:$AI$823,18,FALSE)=\"-\"),1/0,VLOOKUP($A549,Economática!$A$3:$AI$823,18,FALSE)))","v":""},{"$f":"IF($A549=\"\",\"\",IF(OR(VLOOKUP($A549,Economática!$A$3:$AI$823,19,FALSE)=0,VLOOKUP($A549,Economática!$A$3:$AI$823,19,FALSE)=\"-\"),1/0,VLOOKUP($A549,Economática!$A$3:$AI$823,19,FALSE)))","v":""},{"$f":"IF($A549=\"\",\"\",VLOOKUP($A549,Economática!$A$3:$AI$823,20,FALSE)/E549)","v":""},"","","",{"$f":"IF($A549=\"\",\"\",IF(OR(VLOOKUP($A549,Economática!$A$3:$AI$823,21,FALSE)/100=0,VLOOKUP($A549,Economática!$A$3:$AI$823,21,FALSE)/100=\"-\"),1/0,VLOOKUP($A549,Economática!$A$3:$AI$823,21,FALSE)/100))","v":""},{"$f":"IF($A549=\"\",\"\",IF(OR(VLOOKUP($A549,Economática!$A$3:$AI$823,22,FALSE)/100=0,VLOOKUP($A549,Economática!$A$3:$AI$823,22,FALSE)/100=\"-\"),1/0,VLOOKUP($A549,Economática!$A$3:$AI$823,22,FALSE)/100))","v":""},{"$f":"IF($A549=\"\",\"\",IF(OR(VLOOKUP($A549,Economática!$A$3:$AI$823,23,FALSE)=0,VLOOKUP($A549,Economática!$A$3:$AI$823,23,FALSE)=\"-\"),1/0,VLOOKUP($A549,Economática!$A$3:$AI$823,23,FALSE)))","v":""},{"$f":"IF($A549=\"\",\"\",IF(OR(VLOOKUP($A549,Economática!$A$3:$AI$823,24,FALSE)=0,VLOOKUP($A549,Economática!$A$3:$AI$823,24,FALSE)=\"-\"),1/0,VLOOKUP($A549,Economática!$A$3:$AI$823,24,FALSE)))","v":""},{"$f":"IF($A549=\"\",\"\",IF(OR(VLOOKUP($A549,Economática!$A$3:$AI$823,25,FALSE)=0,VLOOKUP($A549,Economática!$A$3:$AI$823,25,FALSE)=\"-\"),1/0,VLOOKUP($A549,Economática!$A$3:$AI$823,25,FALSE)))","v":""},{"$f":"IF($A549=\"\",\"\",IF(ISERROR((F549+VLOOKUP($A549,Economática!$A$3:$AI$823,26,FALSE))/Y549),(F549+VLOOKUP($A549,Economática!$A$3:$AI$823,26,FALSE))/Y549,(F549+VLOOKUP($A549,Economática!$A$3:$AI$823,26,FALSE))/Y549))","v":""},{"$f":"IF($A549=\"\",\"\",IF(OR(-VLOOKUP($A549,Economática!$A$3:$AI$823,27,FALSE)=0,-VLOOKUP($A549,Economática!$A$3:$AI$823,27,FALSE)=\"-\"),1/0,-VLOOKUP($A549,Economática!$A$3:$AI$823,27,FALSE)))","v":""},"",{"$f":"IF($A549=\"\",\"\",IF(OR(VLOOKUP($A549,Economática!$A$3:$AI$823,28,FALSE)=0,VLOOKUP($A549,Economática!$A$3:$AI$823,28,FALSE)=\"-\"),1/0,VLOOKUP($A549,Economática!$A$3:$AI$823,28,FALSE)))","v":""},{"$f":"IF($A549=\"\",\"\",IF(OR(VLOOKUP($A549,Economática!$A$3:$AI$823,29,FALSE)=0,VLOOKUP($A549,Economática!$A$3:$AI$823,29,FALSE)=\"-\"),1/0,VLOOKUP($A549,Economática!$A$3:$AI$823,29,FALSE)))","v":""},{"$f":"IF($A549=\"\",\"\",IF(OR(VLOOKUP($A549,Economática!$A$3:$AI$823,30,FALSE)/E549=0,VLOOKUP($A549,Economática!$A$3:$AI$823,30,FALSE)/E549=\"-\",VLOOKUP($A549,Economática!$A$3:$AI$823,30,FALSE)/E549<33.33%,VLOOKUP($A549,Economática!$A$3:$AI$823,30,FALSE)/E549>100%),1/0,VLOOKUP($A549,Economática!$A$3:$AI$823,30,FALSE)/E549))","v":""},"",{"$f":"IF($A549=\"\",\"\",IF(OR(VLOOKUP($A549,Economática!$A$3:$AI$823,25,FALSE)=0,VLOOKUP($A549,Economática!$A$3:$AI$823,25,FALSE)=\"-\"),1/0,VLOOKUP($A549,Economática!$A$3:$AI$823,25,FALSE)))","v":""},{"$f":"CONCATENATE(Economática!B527,\" \",Economática!C527)","v":" "}]
[{"$f":"IF(Economática!AG528=\"\",\"\",Economática!AG528)","v":""},{"$f":"IF($A550=\"\",\"\",VLOOKUP(VLOOKUP($A550,Economática!$A$3:$AI$823,6,FALSE),Correção!$B$16:$C$36,2,FALSE))","v":""},{"$f":"IF(Economática!B528=\"\",\"\",Economática!B528)","v":""},{"$f":"IF($A550=\"\",\"\",IF(OR(VLOOKUP($A550,Economática!$A$3:$AI$823,8,FALSE)=0,VLOOKUP($A550,Economática!$A$3:$AI$823,8,FALSE)=\"-\"),1/0,VLOOKUP($A550,Economática!$A$3:$AI$823,8,FALSE)))","v":""},{"$f":"IF(A550=\"\",\"\",IF(ISERROR(VLOOKUP(A550,Correção!$B$2:$G$13,9,FALSE)),VLOOKUP($A550,Economática!$A$3:$AI$823,9,FALSE),VLOOKUP(A550,Correção!$B$2:$G$13,9,FALSE)))","v":""},{"$f":"IF($A550=\"\",\"\",Economática!G528)","v":""},{"$f":"IF($A550=\"\",\"\",IF(OR(VLOOKUP($A550,Economática!$A$3:$AI$823,10,FALSE)=0,VLOOKUP($A550,Economática!$A$3:$AI$823,10,FALSE)=\"-\"),1/0,VLOOKUP($A550,Economática!$A$3:$AI$823,10,FALSE)))","v":""},{"$f":"IF($A550=\"\",\"\",IF(OR(VLOOKUP($A550,Economática!$A$3:$AI$823,11,FALSE)=0,VLOOKUP($A550,Economática!$A$3:$AI$823,11,FALSE)=\"-\"),1/0,VLOOKUP($A550,Economática!$A$3:$AI$823,11,FALSE)))","v":""},{"$f":"IF($A550=\"\",\"\",IF(OR(VLOOKUP($A550,Economática!$A$3:$AI$823,12,FALSE)=0,VLOOKUP($A550,Economática!$A$3:$AI$823,12,FALSE)=\"-\"),1/0,VLOOKUP($A550,Economática!$A$3:$AI$823,12,FALSE)))","v":""},{"$f":"IF($A550=\"\",\"\",IF(OR(VLOOKUP($A550,Economática!$A$3:$AI$823,13,FALSE)=0,VLOOKUP($A550,Economática!$A$3:$AI$823,13,FALSE)=\"-\"),1/0,VLOOKUP($A550,Economática!$A$3:$AI$823,13,FALSE)))","v":""},{"$f":"IF($A550=\"\",\"\",IF(OR(VLOOKUP($A550,Economática!$A$3:$AI$823,14,FALSE)=0,VLOOKUP($A550,Economática!$A$3:$AI$823,14,FALSE)=\"-\"),1/0,VLOOKUP($A550,Economática!$A$3:$AI$823,14,FALSE)))","v":""},{"$f":"IF($A550=\"\",\"\",IF(OR(VLOOKUP($A550,Economática!$A$3:$AI$823,15,FALSE)=0,VLOOKUP($A550,Economática!$A$3:$AI$823,15,FALSE)=\"-\"),1/0,VLOOKUP($A550,Economática!$A$3:$AI$823,15,FALSE)))","v":""},{"$f":"IF($A550=\"\",\"\",IF(OR(VLOOKUP($A550,Economática!$A$3:$AI$823,16,FALSE)=0,VLOOKUP($A550,Economática!$A$3:$AI$823,16,FALSE)=\"-\"),1/0,VLOOKUP($A550,Economática!$A$3:$AI$823,16,FALSE)))","v":""},{"$f":"IF($A550=\"\",\"\",IF(OR(VLOOKUP($A550,Economática!$A$3:$AI$823,17,FALSE)=0,VLOOKUP($A550,Economática!$A$3:$AI$823,17,FALSE)=\"-\"),1/0,VLOOKUP($A550,Economática!$A$3:$AI$823,17,FALSE)))","v":""},{"$f":"IF($A550=\"\",\"\",IF(OR(VLOOKUP($A550,Economática!$A$3:$AI$823,18,FALSE)=0,VLOOKUP($A550,Economática!$A$3:$AI$823,18,FALSE)=\"-\"),1/0,VLOOKUP($A550,Economática!$A$3:$AI$823,18,FALSE)))","v":""},{"$f":"IF($A550=\"\",\"\",IF(OR(VLOOKUP($A550,Economática!$A$3:$AI$823,19,FALSE)=0,VLOOKUP($A550,Economática!$A$3:$AI$823,19,FALSE)=\"-\"),1/0,VLOOKUP($A550,Economática!$A$3:$AI$823,19,FALSE)))","v":""},{"$f":"IF($A550=\"\",\"\",VLOOKUP($A550,Economática!$A$3:$AI$823,20,FALSE)/E550)","v":""},"","","",{"$f":"IF($A550=\"\",\"\",IF(OR(VLOOKUP($A550,Economática!$A$3:$AI$823,21,FALSE)/100=0,VLOOKUP($A550,Economática!$A$3:$AI$823,21,FALSE)/100=\"-\"),1/0,VLOOKUP($A550,Economática!$A$3:$AI$823,21,FALSE)/100))","v":""},{"$f":"IF($A550=\"\",\"\",IF(OR(VLOOKUP($A550,Economática!$A$3:$AI$823,22,FALSE)/100=0,VLOOKUP($A550,Economática!$A$3:$AI$823,22,FALSE)/100=\"-\"),1/0,VLOOKUP($A550,Economática!$A$3:$AI$823,22,FALSE)/100))","v":""},{"$f":"IF($A550=\"\",\"\",IF(OR(VLOOKUP($A550,Economática!$A$3:$AI$823,23,FALSE)=0,VLOOKUP($A550,Economática!$A$3:$AI$823,23,FALSE)=\"-\"),1/0,VLOOKUP($A550,Economática!$A$3:$AI$823,23,FALSE)))","v":""},{"$f":"IF($A550=\"\",\"\",IF(OR(VLOOKUP($A550,Economática!$A$3:$AI$823,24,FALSE)=0,VLOOKUP($A550,Economática!$A$3:$AI$823,24,FALSE)=\"-\"),1/0,VLOOKUP($A550,Economática!$A$3:$AI$823,24,FALSE)))","v":""},{"$f":"IF($A550=\"\",\"\",IF(OR(VLOOKUP($A550,Economática!$A$3:$AI$823,25,FALSE)=0,VLOOKUP($A550,Economática!$A$3:$AI$823,25,FALSE)=\"-\"),1/0,VLOOKUP($A550,Economática!$A$3:$AI$823,25,FALSE)))","v":""},{"$f":"IF($A550=\"\",\"\",IF(ISERROR((F550+VLOOKUP($A550,Economática!$A$3:$AI$823,26,FALSE))/Y550),(F550+VLOOKUP($A550,Economática!$A$3:$AI$823,26,FALSE))/Y550,(F550+VLOOKUP($A550,Economática!$A$3:$AI$823,26,FALSE))/Y550))","v":""},{"$f":"IF($A550=\"\",\"\",IF(OR(-VLOOKUP($A550,Economática!$A$3:$AI$823,27,FALSE)=0,-VLOOKUP($A550,Economática!$A$3:$AI$823,27,FALSE)=\"-\"),1/0,-VLOOKUP($A550,Economática!$A$3:$AI$823,27,FALSE)))","v":""},"",{"$f":"IF($A550=\"\",\"\",IF(OR(VLOOKUP($A550,Economática!$A$3:$AI$823,28,FALSE)=0,VLOOKUP($A550,Economática!$A$3:$AI$823,28,FALSE)=\"-\"),1/0,VLOOKUP($A550,Economática!$A$3:$AI$823,28,FALSE)))","v":""},{"$f":"IF($A550=\"\",\"\",IF(OR(VLOOKUP($A550,Economática!$A$3:$AI$823,29,FALSE)=0,VLOOKUP($A550,Economática!$A$3:$AI$823,29,FALSE)=\"-\"),1/0,VLOOKUP($A550,Economática!$A$3:$AI$823,29,FALSE)))","v":""},{"$f":"IF($A550=\"\",\"\",IF(OR(VLOOKUP($A550,Economática!$A$3:$AI$823,30,FALSE)/E550=0,VLOOKUP($A550,Economática!$A$3:$AI$823,30,FALSE)/E550=\"-\",VLOOKUP($A550,Economática!$A$3:$AI$823,30,FALSE)/E550<33.33%,VLOOKUP($A550,Economática!$A$3:$AI$823,30,FALSE)/E550>100%),1/0,VLOOKUP($A550,Economática!$A$3:$AI$823,30,FALSE)/E550))","v":""},"",{"$f":"IF($A550=\"\",\"\",IF(OR(VLOOKUP($A550,Economática!$A$3:$AI$823,25,FALSE)=0,VLOOKUP($A550,Economática!$A$3:$AI$823,25,FALSE)=\"-\"),1/0,VLOOKUP($A550,Economática!$A$3:$AI$823,25,FALSE)))","v":""},{"$f":"CONCATENATE(Economática!B528,\" \",Economática!C528)","v":" "}]
[{"$f":"IF(Economática!AG529=\"\",\"\",Economática!AG529)","v":""},{"$f":"IF($A551=\"\",\"\",VLOOKUP(VLOOKUP($A551,Economática!$A$3:$AI$823,6,FALSE),Correção!$B$16:$C$36,2,FALSE))","v":""},{"$f":"IF(Economática!B529=\"\",\"\",Economática!B529)","v":""},{"$f":"IF($A551=\"\",\"\",IF(OR(VLOOKUP($A551,Economática!$A$3:$AI$823,8,FALSE)=0,VLOOKUP($A551,Economática!$A$3:$AI$823,8,FALSE)=\"-\"),1/0,VLOOKUP($A551,Economática!$A$3:$AI$823,8,FALSE)))","v":""},{"$f":"IF(A551=\"\",\"\",IF(ISERROR(VLOOKUP(A551,Correção!$B$2:$G$13,9,FALSE)),VLOOKUP($A551,Economática!$A$3:$AI$823,9,FALSE),VLOOKUP(A551,Correção!$B$2:$G$13,9,FALSE)))","v":""},{"$f":"IF($A551=\"\",\"\",Economática!G529)","v":""},{"$f":"IF($A551=\"\",\"\",IF(OR(VLOOKUP($A551,Economática!$A$3:$AI$823,10,FALSE)=0,VLOOKUP($A551,Economática!$A$3:$AI$823,10,FALSE)=\"-\"),1/0,VLOOKUP($A551,Economática!$A$3:$AI$823,10,FALSE)))","v":""},{"$f":"IF($A551=\"\",\"\",IF(OR(VLOOKUP($A551,Economática!$A$3:$AI$823,11,FALSE)=0,VLOOKUP($A551,Economática!$A$3:$AI$823,11,FALSE)=\"-\"),1/0,VLOOKUP($A551,Economática!$A$3:$AI$823,11,FALSE)))","v":""},{"$f":"IF($A551=\"\",\"\",IF(OR(VLOOKUP($A551,Economática!$A$3:$AI$823,12,FALSE)=0,VLOOKUP($A551,Economática!$A$3:$AI$823,12,FALSE)=\"-\"),1/0,VLOOKUP($A551,Economática!$A$3:$AI$823,12,FALSE)))","v":""},{"$f":"IF($A551=\"\",\"\",IF(OR(VLOOKUP($A551,Economática!$A$3:$AI$823,13,FALSE)=0,VLOOKUP($A551,Economática!$A$3:$AI$823,13,FALSE)=\"-\"),1/0,VLOOKUP($A551,Economática!$A$3:$AI$823,13,FALSE)))","v":""},{"$f":"IF($A551=\"\",\"\",IF(OR(VLOOKUP($A551,Economática!$A$3:$AI$823,14,FALSE)=0,VLOOKUP($A551,Economática!$A$3:$AI$823,14,FALSE)=\"-\"),1/0,VLOOKUP($A551,Economática!$A$3:$AI$823,14,FALSE)))","v":""},{"$f":"IF($A551=\"\",\"\",IF(OR(VLOOKUP($A551,Economática!$A$3:$AI$823,15,FALSE)=0,VLOOKUP($A551,Economática!$A$3:$AI$823,15,FALSE)=\"-\"),1/0,VLOOKUP($A551,Economática!$A$3:$AI$823,15,FALSE)))","v":""},{"$f":"IF($A551=\"\",\"\",IF(OR(VLOOKUP($A551,Economática!$A$3:$AI$823,16,FALSE)=0,VLOOKUP($A551,Economática!$A$3:$AI$823,16,FALSE)=\"-\"),1/0,VLOOKUP($A551,Economática!$A$3:$AI$823,16,FALSE)))","v":""},{"$f":"IF($A551=\"\",\"\",IF(OR(VLOOKUP($A551,Economática!$A$3:$AI$823,17,FALSE)=0,VLOOKUP($A551,Economática!$A$3:$AI$823,17,FALSE)=\"-\"),1/0,VLOOKUP($A551,Economática!$A$3:$AI$823,17,FALSE)))","v":""},{"$f":"IF($A551=\"\",\"\",IF(OR(VLOOKUP($A551,Economática!$A$3:$AI$823,18,FALSE)=0,VLOOKUP($A551,Economática!$A$3:$AI$823,18,FALSE)=\"-\"),1/0,VLOOKUP($A551,Economática!$A$3:$AI$823,18,FALSE)))","v":""},{"$f":"IF($A551=\"\",\"\",IF(OR(VLOOKUP($A551,Economática!$A$3:$AI$823,19,FALSE)=0,VLOOKUP($A551,Economática!$A$3:$AI$823,19,FALSE)=\"-\"),1/0,VLOOKUP($A551,Economática!$A$3:$AI$823,19,FALSE)))","v":""},{"$f":"IF($A551=\"\",\"\",VLOOKUP($A551,Economática!$A$3:$AI$823,20,FALSE)/E551)","v":""},"","","",{"$f":"IF($A551=\"\",\"\",IF(OR(VLOOKUP($A551,Economática!$A$3:$AI$823,21,FALSE)/100=0,VLOOKUP($A551,Economática!$A$3:$AI$823,21,FALSE)/100=\"-\"),1/0,VLOOKUP($A551,Economática!$A$3:$AI$823,21,FALSE)/100))","v":""},{"$f":"IF($A551=\"\",\"\",IF(OR(VLOOKUP($A551,Economática!$A$3:$AI$823,22,FALSE)/100=0,VLOOKUP($A551,Economática!$A$3:$AI$823,22,FALSE)/100=\"-\"),1/0,VLOOKUP($A551,Economática!$A$3:$AI$823,22,FALSE)/100))","v":""},{"$f":"IF($A551=\"\",\"\",IF(OR(VLOOKUP($A551,Economática!$A$3:$AI$823,23,FALSE)=0,VLOOKUP($A551,Economática!$A$3:$AI$823,23,FALSE)=\"-\"),1/0,VLOOKUP($A551,Economática!$A$3:$AI$823,23,FALSE)))","v":""},{"$f":"IF($A551=\"\",\"\",IF(OR(VLOOKUP($A551,Economática!$A$3:$AI$823,24,FALSE)=0,VLOOKUP($A551,Economática!$A$3:$AI$823,24,FALSE)=\"-\"),1/0,VLOOKUP($A551,Economática!$A$3:$AI$823,24,FALSE)))","v":""},{"$f":"IF($A551=\"\",\"\",IF(OR(VLOOKUP($A551,Economática!$A$3:$AI$823,25,FALSE)=0,VLOOKUP($A551,Economática!$A$3:$AI$823,25,FALSE)=\"-\"),1/0,VLOOKUP($A551,Economática!$A$3:$AI$823,25,FALSE)))","v":""},{"$f":"IF($A551=\"\",\"\",IF(ISERROR((F551+VLOOKUP($A551,Economática!$A$3:$AI$823,26,FALSE))/Y551),(F551+VLOOKUP($A551,Economática!$A$3:$AI$823,26,FALSE))/Y551,(F551+VLOOKUP($A551,Economática!$A$3:$AI$823,26,FALSE))/Y551))","v":""},{"$f":"IF($A551=\"\",\"\",IF(OR(-VLOOKUP($A551,Economática!$A$3:$AI$823,27,FALSE)=0,-VLOOKUP($A551,Economática!$A$3:$AI$823,27,FALSE)=\"-\"),1/0,-VLOOKUP($A551,Economática!$A$3:$AI$823,27,FALSE)))","v":""},"",{"$f":"IF($A551=\"\",\"\",IF(OR(VLOOKUP($A551,Economática!$A$3:$AI$823,28,FALSE)=0,VLOOKUP($A551,Economática!$A$3:$AI$823,28,FALSE)=\"-\"),1/0,VLOOKUP($A551,Economática!$A$3:$AI$823,28,FALSE)))","v":""},{"$f":"IF($A551=\"\",\"\",IF(OR(VLOOKUP($A551,Economática!$A$3:$AI$823,29,FALSE)=0,VLOOKUP($A551,Economática!$A$3:$AI$823,29,FALSE)=\"-\"),1/0,VLOOKUP($A551,Economática!$A$3:$AI$823,29,FALSE)))","v":""},{"$f":"IF($A551=\"\",\"\",IF(OR(VLOOKUP($A551,Economática!$A$3:$AI$823,30,FALSE)/E551=0,VLOOKUP($A551,Economática!$A$3:$AI$823,30,FALSE)/E551=\"-\",VLOOKUP($A551,Economática!$A$3:$AI$823,30,FALSE)/E551<33.33%,VLOOKUP($A551,Economática!$A$3:$AI$823,30,FALSE)/E551>100%),1/0,VLOOKUP($A551,Economática!$A$3:$AI$823,30,FALSE)/E551))","v":""},"",{"$f":"IF($A551=\"\",\"\",IF(OR(VLOOKUP($A551,Economática!$A$3:$AI$823,25,FALSE)=0,VLOOKUP($A551,Economática!$A$3:$AI$823,25,FALSE)=\"-\"),1/0,VLOOKUP($A551,Economática!$A$3:$AI$823,25,FALSE)))","v":""},{"$f":"CONCATENATE(Economática!B529,\" \",Economática!C529)","v":" "}]
[{"$f":"IF(Economática!AG530=\"\",\"\",Economática!AG530)","v":""},{"$f":"IF($A552=\"\",\"\",VLOOKUP(VLOOKUP($A552,Economática!$A$3:$AI$823,6,FALSE),Correção!$B$16:$C$36,2,FALSE))","v":""},{"$f":"IF(Economática!B530=\"\",\"\",Economática!B530)","v":""},{"$f":"IF($A552=\"\",\"\",IF(OR(VLOOKUP($A552,Economática!$A$3:$AI$823,8,FALSE)=0,VLOOKUP($A552,Economática!$A$3:$AI$823,8,FALSE)=\"-\"),1/0,VLOOKUP($A552,Economática!$A$3:$AI$823,8,FALSE)))","v":""},{"$f":"IF(A552=\"\",\"\",IF(ISERROR(VLOOKUP(A552,Correção!$B$2:$G$13,9,FALSE)),VLOOKUP($A552,Economática!$A$3:$AI$823,9,FALSE),VLOOKUP(A552,Correção!$B$2:$G$13,9,FALSE)))","v":""},{"$f":"IF($A552=\"\",\"\",Economática!G530)","v":""},{"$f":"IF($A552=\"\",\"\",IF(OR(VLOOKUP($A552,Economática!$A$3:$AI$823,10,FALSE)=0,VLOOKUP($A552,Economática!$A$3:$AI$823,10,FALSE)=\"-\"),1/0,VLOOKUP($A552,Economática!$A$3:$AI$823,10,FALSE)))","v":""},{"$f":"IF($A552=\"\",\"\",IF(OR(VLOOKUP($A552,Economática!$A$3:$AI$823,11,FALSE)=0,VLOOKUP($A552,Economática!$A$3:$AI$823,11,FALSE)=\"-\"),1/0,VLOOKUP($A552,Economática!$A$3:$AI$823,11,FALSE)))","v":""},{"$f":"IF($A552=\"\",\"\",IF(OR(VLOOKUP($A552,Economática!$A$3:$AI$823,12,FALSE)=0,VLOOKUP($A552,Economática!$A$3:$AI$823,12,FALSE)=\"-\"),1/0,VLOOKUP($A552,Economática!$A$3:$AI$823,12,FALSE)))","v":""},{"$f":"IF($A552=\"\",\"\",IF(OR(VLOOKUP($A552,Economática!$A$3:$AI$823,13,FALSE)=0,VLOOKUP($A552,Economática!$A$3:$AI$823,13,FALSE)=\"-\"),1/0,VLOOKUP($A552,Economática!$A$3:$AI$823,13,FALSE)))","v":""},{"$f":"IF($A552=\"\",\"\",IF(OR(VLOOKUP($A552,Economática!$A$3:$AI$823,14,FALSE)=0,VLOOKUP($A552,Economática!$A$3:$AI$823,14,FALSE)=\"-\"),1/0,VLOOKUP($A552,Economática!$A$3:$AI$823,14,FALSE)))","v":""},{"$f":"IF($A552=\"\",\"\",IF(OR(VLOOKUP($A552,Economática!$A$3:$AI$823,15,FALSE)=0,VLOOKUP($A552,Economática!$A$3:$AI$823,15,FALSE)=\"-\"),1/0,VLOOKUP($A552,Economática!$A$3:$AI$823,15,FALSE)))","v":""},{"$f":"IF($A552=\"\",\"\",IF(OR(VLOOKUP($A552,Economática!$A$3:$AI$823,16,FALSE)=0,VLOOKUP($A552,Economática!$A$3:$AI$823,16,FALSE)=\"-\"),1/0,VLOOKUP($A552,Economática!$A$3:$AI$823,16,FALSE)))","v":""},{"$f":"IF($A552=\"\",\"\",IF(OR(VLOOKUP($A552,Economática!$A$3:$AI$823,17,FALSE)=0,VLOOKUP($A552,Economática!$A$3:$AI$823,17,FALSE)=\"-\"),1/0,VLOOKUP($A552,Economática!$A$3:$AI$823,17,FALSE)))","v":""},{"$f":"IF($A552=\"\",\"\",IF(OR(VLOOKUP($A552,Economática!$A$3:$AI$823,18,FALSE)=0,VLOOKUP($A552,Economática!$A$3:$AI$823,18,FALSE)=\"-\"),1/0,VLOOKUP($A552,Economática!$A$3:$AI$823,18,FALSE)))","v":""},{"$f":"IF($A552=\"\",\"\",IF(OR(VLOOKUP($A552,Economática!$A$3:$AI$823,19,FALSE)=0,VLOOKUP($A552,Economática!$A$3:$AI$823,19,FALSE)=\"-\"),1/0,VLOOKUP($A552,Economática!$A$3:$AI$823,19,FALSE)))","v":""},{"$f":"IF($A552=\"\",\"\",VLOOKUP($A552,Economática!$A$3:$AI$823,20,FALSE)/E552)","v":""},"","","",{"$f":"IF($A552=\"\",\"\",IF(OR(VLOOKUP($A552,Economática!$A$3:$AI$823,21,FALSE)/100=0,VLOOKUP($A552,Economática!$A$3:$AI$823,21,FALSE)/100=\"-\"),1/0,VLOOKUP($A552,Economática!$A$3:$AI$823,21,FALSE)/100))","v":""},{"$f":"IF($A552=\"\",\"\",IF(OR(VLOOKUP($A552,Economática!$A$3:$AI$823,22,FALSE)/100=0,VLOOKUP($A552,Economática!$A$3:$AI$823,22,FALSE)/100=\"-\"),1/0,VLOOKUP($A552,Economática!$A$3:$AI$823,22,FALSE)/100))","v":""},{"$f":"IF($A552=\"\",\"\",IF(OR(VLOOKUP($A552,Economática!$A$3:$AI$823,23,FALSE)=0,VLOOKUP($A552,Economática!$A$3:$AI$823,23,FALSE)=\"-\"),1/0,VLOOKUP($A552,Economática!$A$3:$AI$823,23,FALSE)))","v":""},{"$f":"IF($A552=\"\",\"\",IF(OR(VLOOKUP($A552,Economática!$A$3:$AI$823,24,FALSE)=0,VLOOKUP($A552,Economática!$A$3:$AI$823,24,FALSE)=\"-\"),1/0,VLOOKUP($A552,Economática!$A$3:$AI$823,24,FALSE)))","v":""},{"$f":"IF($A552=\"\",\"\",IF(OR(VLOOKUP($A552,Economática!$A$3:$AI$823,25,FALSE)=0,VLOOKUP($A552,Economática!$A$3:$AI$823,25,FALSE)=\"-\"),1/0,VLOOKUP($A552,Economática!$A$3:$AI$823,25,FALSE)))","v":""},{"$f":"IF($A552=\"\",\"\",IF(ISERROR((F552+VLOOKUP($A552,Economática!$A$3:$AI$823,26,FALSE))/Y552),(F552+VLOOKUP($A552,Economática!$A$3:$AI$823,26,FALSE))/Y552,(F552+VLOOKUP($A552,Economática!$A$3:$AI$823,26,FALSE))/Y552))","v":""},{"$f":"IF($A552=\"\",\"\",IF(OR(-VLOOKUP($A552,Economática!$A$3:$AI$823,27,FALSE)=0,-VLOOKUP($A552,Economática!$A$3:$AI$823,27,FALSE)=\"-\"),1/0,-VLOOKUP($A552,Economática!$A$3:$AI$823,27,FALSE)))","v":""},"",{"$f":"IF($A552=\"\",\"\",IF(OR(VLOOKUP($A552,Economática!$A$3:$AI$823,28,FALSE)=0,VLOOKUP($A552,Economática!$A$3:$AI$823,28,FALSE)=\"-\"),1/0,VLOOKUP($A552,Economática!$A$3:$AI$823,28,FALSE)))","v":""},{"$f":"IF($A552=\"\",\"\",IF(OR(VLOOKUP($A552,Economática!$A$3:$AI$823,29,FALSE)=0,VLOOKUP($A552,Economática!$A$3:$AI$823,29,FALSE)=\"-\"),1/0,VLOOKUP($A552,Economática!$A$3:$AI$823,29,FALSE)))","v":""},{"$f":"IF($A552=\"\",\"\",IF(OR(VLOOKUP($A552,Economática!$A$3:$AI$823,30,FALSE)/E552=0,VLOOKUP($A552,Economática!$A$3:$AI$823,30,FALSE)/E552=\"-\",VLOOKUP($A552,Economática!$A$3:$AI$823,30,FALSE)/E552<33.33%,VLOOKUP($A552,Economática!$A$3:$AI$823,30,FALSE)/E552>100%),1/0,VLOOKUP($A552,Economática!$A$3:$AI$823,30,FALSE)/E552))","v":""},"",{"$f":"IF($A552=\"\",\"\",IF(OR(VLOOKUP($A552,Economática!$A$3:$AI$823,25,FALSE)=0,VLOOKUP($A552,Economática!$A$3:$AI$823,25,FALSE)=\"-\"),1/0,VLOOKUP($A552,Economática!$A$3:$AI$823,25,FALSE)))","v":""},{"$f":"CONCATENATE(Economática!B530,\" \",Economática!C530)","v":" "}]
[{"$f":"IF(Economática!AG531=\"\",\"\",Economática!AG531)","v":""},{"$f":"IF($A553=\"\",\"\",VLOOKUP(VLOOKUP($A553,Economática!$A$3:$AI$823,6,FALSE),Correção!$B$16:$C$36,2,FALSE))","v":""},{"$f":"IF(Economática!B531=\"\",\"\",Economática!B531)","v":""},{"$f":"IF($A553=\"\",\"\",IF(OR(VLOOKUP($A553,Economática!$A$3:$AI$823,8,FALSE)=0,VLOOKUP($A553,Economática!$A$3:$AI$823,8,FALSE)=\"-\"),1/0,VLOOKUP($A553,Economática!$A$3:$AI$823,8,FALSE)))","v":""},{"$f":"IF(A553=\"\",\"\",IF(ISERROR(VLOOKUP(A553,Correção!$B$2:$G$13,9,FALSE)),VLOOKUP($A553,Economática!$A$3:$AI$823,9,FALSE),VLOOKUP(A553,Correção!$B$2:$G$13,9,FALSE)))","v":""},{"$f":"IF($A553=\"\",\"\",Economática!G531)","v":""},{"$f":"IF($A553=\"\",\"\",IF(OR(VLOOKUP($A553,Economática!$A$3:$AI$823,10,FALSE)=0,VLOOKUP($A553,Economática!$A$3:$AI$823,10,FALSE)=\"-\"),1/0,VLOOKUP($A553,Economática!$A$3:$AI$823,10,FALSE)))","v":""},{"$f":"IF($A553=\"\",\"\",IF(OR(VLOOKUP($A553,Economática!$A$3:$AI$823,11,FALSE)=0,VLOOKUP($A553,Economática!$A$3:$AI$823,11,FALSE)=\"-\"),1/0,VLOOKUP($A553,Economática!$A$3:$AI$823,11,FALSE)))","v":""},{"$f":"IF($A553=\"\",\"\",IF(OR(VLOOKUP($A553,Economática!$A$3:$AI$823,12,FALSE)=0,VLOOKUP($A553,Economática!$A$3:$AI$823,12,FALSE)=\"-\"),1/0,VLOOKUP($A553,Economática!$A$3:$AI$823,12,FALSE)))","v":""},{"$f":"IF($A553=\"\",\"\",IF(OR(VLOOKUP($A553,Economática!$A$3:$AI$823,13,FALSE)=0,VLOOKUP($A553,Economática!$A$3:$AI$823,13,FALSE)=\"-\"),1/0,VLOOKUP($A553,Economática!$A$3:$AI$823,13,FALSE)))","v":""},{"$f":"IF($A553=\"\",\"\",IF(OR(VLOOKUP($A553,Economática!$A$3:$AI$823,14,FALSE)=0,VLOOKUP($A553,Economática!$A$3:$AI$823,14,FALSE)=\"-\"),1/0,VLOOKUP($A553,Economática!$A$3:$AI$823,14,FALSE)))","v":""},{"$f":"IF($A553=\"\",\"\",IF(OR(VLOOKUP($A553,Economática!$A$3:$AI$823,15,FALSE)=0,VLOOKUP($A553,Economática!$A$3:$AI$823,15,FALSE)=\"-\"),1/0,VLOOKUP($A553,Economática!$A$3:$AI$823,15,FALSE)))","v":""},{"$f":"IF($A553=\"\",\"\",IF(OR(VLOOKUP($A553,Economática!$A$3:$AI$823,16,FALSE)=0,VLOOKUP($A553,Economática!$A$3:$AI$823,16,FALSE)=\"-\"),1/0,VLOOKUP($A553,Economática!$A$3:$AI$823,16,FALSE)))","v":""},{"$f":"IF($A553=\"\",\"\",IF(OR(VLOOKUP($A553,Economática!$A$3:$AI$823,17,FALSE)=0,VLOOKUP($A553,Economática!$A$3:$AI$823,17,FALSE)=\"-\"),1/0,VLOOKUP($A553,Economática!$A$3:$AI$823,17,FALSE)))","v":""},{"$f":"IF($A553=\"\",\"\",IF(OR(VLOOKUP($A553,Economática!$A$3:$AI$823,18,FALSE)=0,VLOOKUP($A553,Economática!$A$3:$AI$823,18,FALSE)=\"-\"),1/0,VLOOKUP($A553,Economática!$A$3:$AI$823,18,FALSE)))","v":""},{"$f":"IF($A553=\"\",\"\",IF(OR(VLOOKUP($A553,Economática!$A$3:$AI$823,19,FALSE)=0,VLOOKUP($A553,Economática!$A$3:$AI$823,19,FALSE)=\"-\"),1/0,VLOOKUP($A553,Economática!$A$3:$AI$823,19,FALSE)))","v":""},{"$f":"IF($A553=\"\",\"\",VLOOKUP($A553,Economática!$A$3:$AI$823,20,FALSE)/E553)","v":""},"","","",{"$f":"IF($A553=\"\",\"\",IF(OR(VLOOKUP($A553,Economática!$A$3:$AI$823,21,FALSE)/100=0,VLOOKUP($A553,Economática!$A$3:$AI$823,21,FALSE)/100=\"-\"),1/0,VLOOKUP($A553,Economática!$A$3:$AI$823,21,FALSE)/100))","v":""},{"$f":"IF($A553=\"\",\"\",IF(OR(VLOOKUP($A553,Economática!$A$3:$AI$823,22,FALSE)/100=0,VLOOKUP($A553,Economática!$A$3:$AI$823,22,FALSE)/100=\"-\"),1/0,VLOOKUP($A553,Economática!$A$3:$AI$823,22,FALSE)/100))","v":""},{"$f":"IF($A553=\"\",\"\",IF(OR(VLOOKUP($A553,Economática!$A$3:$AI$823,23,FALSE)=0,VLOOKUP($A553,Economática!$A$3:$AI$823,23,FALSE)=\"-\"),1/0,VLOOKUP($A553,Economática!$A$3:$AI$823,23,FALSE)))","v":""},{"$f":"IF($A553=\"\",\"\",IF(OR(VLOOKUP($A553,Economática!$A$3:$AI$823,24,FALSE)=0,VLOOKUP($A553,Economática!$A$3:$AI$823,24,FALSE)=\"-\"),1/0,VLOOKUP($A553,Economática!$A$3:$AI$823,24,FALSE)))","v":""},{"$f":"IF($A553=\"\",\"\",IF(OR(VLOOKUP($A553,Economática!$A$3:$AI$823,25,FALSE)=0,VLOOKUP($A553,Economática!$A$3:$AI$823,25,FALSE)=\"-\"),1/0,VLOOKUP($A553,Economática!$A$3:$AI$823,25,FALSE)))","v":""},{"$f":"IF($A553=\"\",\"\",IF(ISERROR((F553+VLOOKUP($A553,Economática!$A$3:$AI$823,26,FALSE))/Y553),(F553+VLOOKUP($A553,Economática!$A$3:$AI$823,26,FALSE))/Y553,(F553+VLOOKUP($A553,Economática!$A$3:$AI$823,26,FALSE))/Y553))","v":""},{"$f":"IF($A553=\"\",\"\",IF(OR(-VLOOKUP($A553,Economática!$A$3:$AI$823,27,FALSE)=0,-VLOOKUP($A553,Economática!$A$3:$AI$823,27,FALSE)=\"-\"),1/0,-VLOOKUP($A553,Economática!$A$3:$AI$823,27,FALSE)))","v":""},"",{"$f":"IF($A553=\"\",\"\",IF(OR(VLOOKUP($A553,Economática!$A$3:$AI$823,28,FALSE)=0,VLOOKUP($A553,Economática!$A$3:$AI$823,28,FALSE)=\"-\"),1/0,VLOOKUP($A553,Economática!$A$3:$AI$823,28,FALSE)))","v":""},{"$f":"IF($A553=\"\",\"\",IF(OR(VLOOKUP($A553,Economática!$A$3:$AI$823,29,FALSE)=0,VLOOKUP($A553,Economática!$A$3:$AI$823,29,FALSE)=\"-\"),1/0,VLOOKUP($A553,Economática!$A$3:$AI$823,29,FALSE)))","v":""},{"$f":"IF($A553=\"\",\"\",IF(OR(VLOOKUP($A553,Economática!$A$3:$AI$823,30,FALSE)/E553=0,VLOOKUP($A553,Economática!$A$3:$AI$823,30,FALSE)/E553=\"-\",VLOOKUP($A553,Economática!$A$3:$AI$823,30,FALSE)/E553<33.33%,VLOOKUP($A553,Economática!$A$3:$AI$823,30,FALSE)/E553>100%),1/0,VLOOKUP($A553,Economática!$A$3:$AI$823,30,FALSE)/E553))","v":""},"",{"$f":"IF($A553=\"\",\"\",IF(OR(VLOOKUP($A553,Economática!$A$3:$AI$823,25,FALSE)=0,VLOOKUP($A553,Economática!$A$3:$AI$823,25,FALSE)=\"-\"),1/0,VLOOKUP($A553,Economática!$A$3:$AI$823,25,FALSE)))","v":""},{"$f":"CONCATENATE(Economática!B531,\" \",Economática!C531)","v":" "}]
[{"$f":"IF(Economática!AG532=\"\",\"\",Economática!AG532)","v":""},{"$f":"IF($A554=\"\",\"\",VLOOKUP(VLOOKUP($A554,Economática!$A$3:$AI$823,6,FALSE),Correção!$B$16:$C$36,2,FALSE))","v":""},{"$f":"IF(Economática!B532=\"\",\"\",Economática!B532)","v":""},{"$f":"IF($A554=\"\",\"\",IF(OR(VLOOKUP($A554,Economática!$A$3:$AI$823,8,FALSE)=0,VLOOKUP($A554,Economática!$A$3:$AI$823,8,FALSE)=\"-\"),1/0,VLOOKUP($A554,Economática!$A$3:$AI$823,8,FALSE)))","v":""},{"$f":"IF(A554=\"\",\"\",IF(ISERROR(VLOOKUP(A554,Correção!$B$2:$G$13,9,FALSE)),VLOOKUP($A554,Economática!$A$3:$AI$823,9,FALSE),VLOOKUP(A554,Correção!$B$2:$G$13,9,FALSE)))","v":""},{"$f":"IF($A554=\"\",\"\",Economática!G532)","v":""},{"$f":"IF($A554=\"\",\"\",IF(OR(VLOOKUP($A554,Economática!$A$3:$AI$823,10,FALSE)=0,VLOOKUP($A554,Economática!$A$3:$AI$823,10,FALSE)=\"-\"),1/0,VLOOKUP($A554,Economática!$A$3:$AI$823,10,FALSE)))","v":""},{"$f":"IF($A554=\"\",\"\",IF(OR(VLOOKUP($A554,Economática!$A$3:$AI$823,11,FALSE)=0,VLOOKUP($A554,Economática!$A$3:$AI$823,11,FALSE)=\"-\"),1/0,VLOOKUP($A554,Economática!$A$3:$AI$823,11,FALSE)))","v":""},{"$f":"IF($A554=\"\",\"\",IF(OR(VLOOKUP($A554,Economática!$A$3:$AI$823,12,FALSE)=0,VLOOKUP($A554,Economática!$A$3:$AI$823,12,FALSE)=\"-\"),1/0,VLOOKUP($A554,Economática!$A$3:$AI$823,12,FALSE)))","v":""},{"$f":"IF($A554=\"\",\"\",IF(OR(VLOOKUP($A554,Economática!$A$3:$AI$823,13,FALSE)=0,VLOOKUP($A554,Economática!$A$3:$AI$823,13,FALSE)=\"-\"),1/0,VLOOKUP($A554,Economática!$A$3:$AI$823,13,FALSE)))","v":""},{"$f":"IF($A554=\"\",\"\",IF(OR(VLOOKUP($A554,Economática!$A$3:$AI$823,14,FALSE)=0,VLOOKUP($A554,Economática!$A$3:$AI$823,14,FALSE)=\"-\"),1/0,VLOOKUP($A554,Economática!$A$3:$AI$823,14,FALSE)))","v":""},{"$f":"IF($A554=\"\",\"\",IF(OR(VLOOKUP($A554,Economática!$A$3:$AI$823,15,FALSE)=0,VLOOKUP($A554,Economática!$A$3:$AI$823,15,FALSE)=\"-\"),1/0,VLOOKUP($A554,Economática!$A$3:$AI$823,15,FALSE)))","v":""},{"$f":"IF($A554=\"\",\"\",IF(OR(VLOOKUP($A554,Economática!$A$3:$AI$823,16,FALSE)=0,VLOOKUP($A554,Economática!$A$3:$AI$823,16,FALSE)=\"-\"),1/0,VLOOKUP($A554,Economática!$A$3:$AI$823,16,FALSE)))","v":""},{"$f":"IF($A554=\"\",\"\",IF(OR(VLOOKUP($A554,Economática!$A$3:$AI$823,17,FALSE)=0,VLOOKUP($A554,Economática!$A$3:$AI$823,17,FALSE)=\"-\"),1/0,VLOOKUP($A554,Economática!$A$3:$AI$823,17,FALSE)))","v":""},{"$f":"IF($A554=\"\",\"\",IF(OR(VLOOKUP($A554,Economática!$A$3:$AI$823,18,FALSE)=0,VLOOKUP($A554,Economática!$A$3:$AI$823,18,FALSE)=\"-\"),1/0,VLOOKUP($A554,Economática!$A$3:$AI$823,18,FALSE)))","v":""},{"$f":"IF($A554=\"\",\"\",IF(OR(VLOOKUP($A554,Economática!$A$3:$AI$823,19,FALSE)=0,VLOOKUP($A554,Economática!$A$3:$AI$823,19,FALSE)=\"-\"),1/0,VLOOKUP($A554,Economática!$A$3:$AI$823,19,FALSE)))","v":""},{"$f":"IF($A554=\"\",\"\",VLOOKUP($A554,Economática!$A$3:$AI$823,20,FALSE)/E554)","v":""},"","","",{"$f":"IF($A554=\"\",\"\",IF(OR(VLOOKUP($A554,Economática!$A$3:$AI$823,21,FALSE)/100=0,VLOOKUP($A554,Economática!$A$3:$AI$823,21,FALSE)/100=\"-\"),1/0,VLOOKUP($A554,Economática!$A$3:$AI$823,21,FALSE)/100))","v":""},{"$f":"IF($A554=\"\",\"\",IF(OR(VLOOKUP($A554,Economática!$A$3:$AI$823,22,FALSE)/100=0,VLOOKUP($A554,Economática!$A$3:$AI$823,22,FALSE)/100=\"-\"),1/0,VLOOKUP($A554,Economática!$A$3:$AI$823,22,FALSE)/100))","v":""},{"$f":"IF($A554=\"\",\"\",IF(OR(VLOOKUP($A554,Economática!$A$3:$AI$823,23,FALSE)=0,VLOOKUP($A554,Economática!$A$3:$AI$823,23,FALSE)=\"-\"),1/0,VLOOKUP($A554,Economática!$A$3:$AI$823,23,FALSE)))","v":""},{"$f":"IF($A554=\"\",\"\",IF(OR(VLOOKUP($A554,Economática!$A$3:$AI$823,24,FALSE)=0,VLOOKUP($A554,Economática!$A$3:$AI$823,24,FALSE)=\"-\"),1/0,VLOOKUP($A554,Economática!$A$3:$AI$823,24,FALSE)))","v":""},{"$f":"IF($A554=\"\",\"\",IF(OR(VLOOKUP($A554,Economática!$A$3:$AI$823,25,FALSE)=0,VLOOKUP($A554,Economática!$A$3:$AI$823,25,FALSE)=\"-\"),1/0,VLOOKUP($A554,Economática!$A$3:$AI$823,25,FALSE)))","v":""},{"$f":"IF($A554=\"\",\"\",IF(ISERROR((F554+VLOOKUP($A554,Economática!$A$3:$AI$823,26,FALSE))/Y554),(F554+VLOOKUP($A554,Economática!$A$3:$AI$823,26,FALSE))/Y554,(F554+VLOOKUP($A554,Economática!$A$3:$AI$823,26,FALSE))/Y554))","v":""},{"$f":"IF($A554=\"\",\"\",IF(OR(-VLOOKUP($A554,Economática!$A$3:$AI$823,27,FALSE)=0,-VLOOKUP($A554,Economática!$A$3:$AI$823,27,FALSE)=\"-\"),1/0,-VLOOKUP($A554,Economática!$A$3:$AI$823,27,FALSE)))","v":""},"",{"$f":"IF($A554=\"\",\"\",IF(OR(VLOOKUP($A554,Economática!$A$3:$AI$823,28,FALSE)=0,VLOOKUP($A554,Economática!$A$3:$AI$823,28,FALSE)=\"-\"),1/0,VLOOKUP($A554,Economática!$A$3:$AI$823,28,FALSE)))","v":""},{"$f":"IF($A554=\"\",\"\",IF(OR(VLOOKUP($A554,Economática!$A$3:$AI$823,29,FALSE)=0,VLOOKUP($A554,Economática!$A$3:$AI$823,29,FALSE)=\"-\"),1/0,VLOOKUP($A554,Economática!$A$3:$AI$823,29,FALSE)))","v":""},{"$f":"IF($A554=\"\",\"\",IF(OR(VLOOKUP($A554,Economática!$A$3:$AI$823,30,FALSE)/E554=0,VLOOKUP($A554,Economática!$A$3:$AI$823,30,FALSE)/E554=\"-\",VLOOKUP($A554,Economática!$A$3:$AI$823,30,FALSE)/E554<33.33%,VLOOKUP($A554,Economática!$A$3:$AI$823,30,FALSE)/E554>100%),1/0,VLOOKUP($A554,Economática!$A$3:$AI$823,30,FALSE)/E554))","v":""},"",{"$f":"IF($A554=\"\",\"\",IF(OR(VLOOKUP($A554,Economática!$A$3:$AI$823,25,FALSE)=0,VLOOKUP($A554,Economática!$A$3:$AI$823,25,FALSE)=\"-\"),1/0,VLOOKUP($A554,Economática!$A$3:$AI$823,25,FALSE)))","v":""},{"$f":"CONCATENATE(Economática!B532,\" \",Economática!C532)","v":" "}]
[{"$f":"IF(Economática!AG533=\"\",\"\",Economática!AG533)","v":""},{"$f":"IF($A555=\"\",\"\",VLOOKUP(VLOOKUP($A555,Economática!$A$3:$AI$823,6,FALSE),Correção!$B$16:$C$36,2,FALSE))","v":""},{"$f":"IF(Economática!B533=\"\",\"\",Economática!B533)","v":""},{"$f":"IF($A555=\"\",\"\",IF(OR(VLOOKUP($A555,Economática!$A$3:$AI$823,8,FALSE)=0,VLOOKUP($A555,Economática!$A$3:$AI$823,8,FALSE)=\"-\"),1/0,VLOOKUP($A555,Economática!$A$3:$AI$823,8,FALSE)))","v":""},{"$f":"IF(A555=\"\",\"\",IF(ISERROR(VLOOKUP(A555,Correção!$B$2:$G$13,9,FALSE)),VLOOKUP($A555,Economática!$A$3:$AI$823,9,FALSE),VLOOKUP(A555,Correção!$B$2:$G$13,9,FALSE)))","v":""},{"$f":"IF($A555=\"\",\"\",Economática!G533)","v":""},{"$f":"IF($A555=\"\",\"\",IF(OR(VLOOKUP($A555,Economática!$A$3:$AI$823,10,FALSE)=0,VLOOKUP($A555,Economática!$A$3:$AI$823,10,FALSE)=\"-\"),1/0,VLOOKUP($A555,Economática!$A$3:$AI$823,10,FALSE)))","v":""},{"$f":"IF($A555=\"\",\"\",IF(OR(VLOOKUP($A555,Economática!$A$3:$AI$823,11,FALSE)=0,VLOOKUP($A555,Economática!$A$3:$AI$823,11,FALSE)=\"-\"),1/0,VLOOKUP($A555,Economática!$A$3:$AI$823,11,FALSE)))","v":""},{"$f":"IF($A555=\"\",\"\",IF(OR(VLOOKUP($A555,Economática!$A$3:$AI$823,12,FALSE)=0,VLOOKUP($A555,Economática!$A$3:$AI$823,12,FALSE)=\"-\"),1/0,VLOOKUP($A555,Economática!$A$3:$AI$823,12,FALSE)))","v":""},{"$f":"IF($A555=\"\",\"\",IF(OR(VLOOKUP($A555,Economática!$A$3:$AI$823,13,FALSE)=0,VLOOKUP($A555,Economática!$A$3:$AI$823,13,FALSE)=\"-\"),1/0,VLOOKUP($A555,Economática!$A$3:$AI$823,13,FALSE)))","v":""},{"$f":"IF($A555=\"\",\"\",IF(OR(VLOOKUP($A555,Economática!$A$3:$AI$823,14,FALSE)=0,VLOOKUP($A555,Economática!$A$3:$AI$823,14,FALSE)=\"-\"),1/0,VLOOKUP($A555,Economática!$A$3:$AI$823,14,FALSE)))","v":""},{"$f":"IF($A555=\"\",\"\",IF(OR(VLOOKUP($A555,Economática!$A$3:$AI$823,15,FALSE)=0,VLOOKUP($A555,Economática!$A$3:$AI$823,15,FALSE)=\"-\"),1/0,VLOOKUP($A555,Economática!$A$3:$AI$823,15,FALSE)))","v":""},{"$f":"IF($A555=\"\",\"\",IF(OR(VLOOKUP($A555,Economática!$A$3:$AI$823,16,FALSE)=0,VLOOKUP($A555,Economática!$A$3:$AI$823,16,FALSE)=\"-\"),1/0,VLOOKUP($A555,Economática!$A$3:$AI$823,16,FALSE)))","v":""},{"$f":"IF($A555=\"\",\"\",IF(OR(VLOOKUP($A555,Economática!$A$3:$AI$823,17,FALSE)=0,VLOOKUP($A555,Economática!$A$3:$AI$823,17,FALSE)=\"-\"),1/0,VLOOKUP($A555,Economática!$A$3:$AI$823,17,FALSE)))","v":""},{"$f":"IF($A555=\"\",\"\",IF(OR(VLOOKUP($A555,Economática!$A$3:$AI$823,18,FALSE)=0,VLOOKUP($A555,Economática!$A$3:$AI$823,18,FALSE)=\"-\"),1/0,VLOOKUP($A555,Economática!$A$3:$AI$823,18,FALSE)))","v":""},{"$f":"IF($A555=\"\",\"\",IF(OR(VLOOKUP($A555,Economática!$A$3:$AI$823,19,FALSE)=0,VLOOKUP($A555,Economática!$A$3:$AI$823,19,FALSE)=\"-\"),1/0,VLOOKUP($A555,Economática!$A$3:$AI$823,19,FALSE)))","v":""},{"$f":"IF($A555=\"\",\"\",VLOOKUP($A555,Economática!$A$3:$AI$823,20,FALSE)/E555)","v":""},"","","",{"$f":"IF($A555=\"\",\"\",IF(OR(VLOOKUP($A555,Economática!$A$3:$AI$823,21,FALSE)/100=0,VLOOKUP($A555,Economática!$A$3:$AI$823,21,FALSE)/100=\"-\"),1/0,VLOOKUP($A555,Economática!$A$3:$AI$823,21,FALSE)/100))","v":""},{"$f":"IF($A555=\"\",\"\",IF(OR(VLOOKUP($A555,Economática!$A$3:$AI$823,22,FALSE)/100=0,VLOOKUP($A555,Economática!$A$3:$AI$823,22,FALSE)/100=\"-\"),1/0,VLOOKUP($A555,Economática!$A$3:$AI$823,22,FALSE)/100))","v":""},{"$f":"IF($A555=\"\",\"\",IF(OR(VLOOKUP($A555,Economática!$A$3:$AI$823,23,FALSE)=0,VLOOKUP($A555,Economática!$A$3:$AI$823,23,FALSE)=\"-\"),1/0,VLOOKUP($A555,Economática!$A$3:$AI$823,23,FALSE)))","v":""},{"$f":"IF($A555=\"\",\"\",IF(OR(VLOOKUP($A555,Economática!$A$3:$AI$823,24,FALSE)=0,VLOOKUP($A555,Economática!$A$3:$AI$823,24,FALSE)=\"-\"),1/0,VLOOKUP($A555,Economática!$A$3:$AI$823,24,FALSE)))","v":""},{"$f":"IF($A555=\"\",\"\",IF(OR(VLOOKUP($A555,Economática!$A$3:$AI$823,25,FALSE)=0,VLOOKUP($A555,Economática!$A$3:$AI$823,25,FALSE)=\"-\"),1/0,VLOOKUP($A555,Economática!$A$3:$AI$823,25,FALSE)))","v":""},{"$f":"IF($A555=\"\",\"\",IF(ISERROR((F555+VLOOKUP($A555,Economática!$A$3:$AI$823,26,FALSE))/Y555),(F555+VLOOKUP($A555,Economática!$A$3:$AI$823,26,FALSE))/Y555,(F555+VLOOKUP($A555,Economática!$A$3:$AI$823,26,FALSE))/Y555))","v":""},{"$f":"IF($A555=\"\",\"\",IF(OR(-VLOOKUP($A555,Economática!$A$3:$AI$823,27,FALSE)=0,-VLOOKUP($A555,Economática!$A$3:$AI$823,27,FALSE)=\"-\"),1/0,-VLOOKUP($A555,Economática!$A$3:$AI$823,27,FALSE)))","v":""},"",{"$f":"IF($A555=\"\",\"\",IF(OR(VLOOKUP($A555,Economática!$A$3:$AI$823,28,FALSE)=0,VLOOKUP($A555,Economática!$A$3:$AI$823,28,FALSE)=\"-\"),1/0,VLOOKUP($A555,Economática!$A$3:$AI$823,28,FALSE)))","v":""},{"$f":"IF($A555=\"\",\"\",IF(OR(VLOOKUP($A555,Economática!$A$3:$AI$823,29,FALSE)=0,VLOOKUP($A555,Economática!$A$3:$AI$823,29,FALSE)=\"-\"),1/0,VLOOKUP($A555,Economática!$A$3:$AI$823,29,FALSE)))","v":""},{"$f":"IF($A555=\"\",\"\",IF(OR(VLOOKUP($A555,Economática!$A$3:$AI$823,30,FALSE)/E555=0,VLOOKUP($A555,Economática!$A$3:$AI$823,30,FALSE)/E555=\"-\",VLOOKUP($A555,Economática!$A$3:$AI$823,30,FALSE)/E555<33.33%,VLOOKUP($A555,Economática!$A$3:$AI$823,30,FALSE)/E555>100%),1/0,VLOOKUP($A555,Economática!$A$3:$AI$823,30,FALSE)/E555))","v":""},"",{"$f":"IF($A555=\"\",\"\",IF(OR(VLOOKUP($A555,Economática!$A$3:$AI$823,25,FALSE)=0,VLOOKUP($A555,Economática!$A$3:$AI$823,25,FALSE)=\"-\"),1/0,VLOOKUP($A555,Economática!$A$3:$AI$823,25,FALSE)))","v":""},{"$f":"CONCATENATE(Economática!B533,\" \",Economática!C533)","v":" "}]
[{"$f":"IF(Economática!AG534=\"\",\"\",Economática!AG534)","v":""},{"$f":"IF($A556=\"\",\"\",VLOOKUP(VLOOKUP($A556,Economática!$A$3:$AI$823,6,FALSE),Correção!$B$16:$C$36,2,FALSE))","v":""},{"$f":"IF(Economática!B534=\"\",\"\",Economática!B534)","v":""},{"$f":"IF($A556=\"\",\"\",IF(OR(VLOOKUP($A556,Economática!$A$3:$AI$823,8,FALSE)=0,VLOOKUP($A556,Economática!$A$3:$AI$823,8,FALSE)=\"-\"),1/0,VLOOKUP($A556,Economática!$A$3:$AI$823,8,FALSE)))","v":""},{"$f":"IF(A556=\"\",\"\",IF(ISERROR(VLOOKUP(A556,Correção!$B$2:$G$13,9,FALSE)),VLOOKUP($A556,Economática!$A$3:$AI$823,9,FALSE),VLOOKUP(A556,Correção!$B$2:$G$13,9,FALSE)))","v":""},{"$f":"IF($A556=\"\",\"\",Economática!G534)","v":""},{"$f":"IF($A556=\"\",\"\",IF(OR(VLOOKUP($A556,Economática!$A$3:$AI$823,10,FALSE)=0,VLOOKUP($A556,Economática!$A$3:$AI$823,10,FALSE)=\"-\"),1/0,VLOOKUP($A556,Economática!$A$3:$AI$823,10,FALSE)))","v":""},{"$f":"IF($A556=\"\",\"\",IF(OR(VLOOKUP($A556,Economática!$A$3:$AI$823,11,FALSE)=0,VLOOKUP($A556,Economática!$A$3:$AI$823,11,FALSE)=\"-\"),1/0,VLOOKUP($A556,Economática!$A$3:$AI$823,11,FALSE)))","v":""},{"$f":"IF($A556=\"\",\"\",IF(OR(VLOOKUP($A556,Economática!$A$3:$AI$823,12,FALSE)=0,VLOOKUP($A556,Economática!$A$3:$AI$823,12,FALSE)=\"-\"),1/0,VLOOKUP($A556,Economática!$A$3:$AI$823,12,FALSE)))","v":""},{"$f":"IF($A556=\"\",\"\",IF(OR(VLOOKUP($A556,Economática!$A$3:$AI$823,13,FALSE)=0,VLOOKUP($A556,Economática!$A$3:$AI$823,13,FALSE)=\"-\"),1/0,VLOOKUP($A556,Economática!$A$3:$AI$823,13,FALSE)))","v":""},{"$f":"IF($A556=\"\",\"\",IF(OR(VLOOKUP($A556,Economática!$A$3:$AI$823,14,FALSE)=0,VLOOKUP($A556,Economática!$A$3:$AI$823,14,FALSE)=\"-\"),1/0,VLOOKUP($A556,Economática!$A$3:$AI$823,14,FALSE)))","v":""},{"$f":"IF($A556=\"\",\"\",IF(OR(VLOOKUP($A556,Economática!$A$3:$AI$823,15,FALSE)=0,VLOOKUP($A556,Economática!$A$3:$AI$823,15,FALSE)=\"-\"),1/0,VLOOKUP($A556,Economática!$A$3:$AI$823,15,FALSE)))","v":""},{"$f":"IF($A556=\"\",\"\",IF(OR(VLOOKUP($A556,Economática!$A$3:$AI$823,16,FALSE)=0,VLOOKUP($A556,Economática!$A$3:$AI$823,16,FALSE)=\"-\"),1/0,VLOOKUP($A556,Economática!$A$3:$AI$823,16,FALSE)))","v":""},{"$f":"IF($A556=\"\",\"\",IF(OR(VLOOKUP($A556,Economática!$A$3:$AI$823,17,FALSE)=0,VLOOKUP($A556,Economática!$A$3:$AI$823,17,FALSE)=\"-\"),1/0,VLOOKUP($A556,Economática!$A$3:$AI$823,17,FALSE)))","v":""},{"$f":"IF($A556=\"\",\"\",IF(OR(VLOOKUP($A556,Economática!$A$3:$AI$823,18,FALSE)=0,VLOOKUP($A556,Economática!$A$3:$AI$823,18,FALSE)=\"-\"),1/0,VLOOKUP($A556,Economática!$A$3:$AI$823,18,FALSE)))","v":""},{"$f":"IF($A556=\"\",\"\",IF(OR(VLOOKUP($A556,Economática!$A$3:$AI$823,19,FALSE)=0,VLOOKUP($A556,Economática!$A$3:$AI$823,19,FALSE)=\"-\"),1/0,VLOOKUP($A556,Economática!$A$3:$AI$823,19,FALSE)))","v":""},{"$f":"IF($A556=\"\",\"\",VLOOKUP($A556,Economática!$A$3:$AI$823,20,FALSE)/E556)","v":""},"","","",{"$f":"IF($A556=\"\",\"\",IF(OR(VLOOKUP($A556,Economática!$A$3:$AI$823,21,FALSE)/100=0,VLOOKUP($A556,Economática!$A$3:$AI$823,21,FALSE)/100=\"-\"),1/0,VLOOKUP($A556,Economática!$A$3:$AI$823,21,FALSE)/100))","v":""},{"$f":"IF($A556=\"\",\"\",IF(OR(VLOOKUP($A556,Economática!$A$3:$AI$823,22,FALSE)/100=0,VLOOKUP($A556,Economática!$A$3:$AI$823,22,FALSE)/100=\"-\"),1/0,VLOOKUP($A556,Economática!$A$3:$AI$823,22,FALSE)/100))","v":""},{"$f":"IF($A556=\"\",\"\",IF(OR(VLOOKUP($A556,Economática!$A$3:$AI$823,23,FALSE)=0,VLOOKUP($A556,Economática!$A$3:$AI$823,23,FALSE)=\"-\"),1/0,VLOOKUP($A556,Economática!$A$3:$AI$823,23,FALSE)))","v":""},{"$f":"IF($A556=\"\",\"\",IF(OR(VLOOKUP($A556,Economática!$A$3:$AI$823,24,FALSE)=0,VLOOKUP($A556,Economática!$A$3:$AI$823,24,FALSE)=\"-\"),1/0,VLOOKUP($A556,Economática!$A$3:$AI$823,24,FALSE)))","v":""},{"$f":"IF($A556=\"\",\"\",IF(OR(VLOOKUP($A556,Economática!$A$3:$AI$823,25,FALSE)=0,VLOOKUP($A556,Economática!$A$3:$AI$823,25,FALSE)=\"-\"),1/0,VLOOKUP($A556,Economática!$A$3:$AI$823,25,FALSE)))","v":""},{"$f":"IF($A556=\"\",\"\",IF(ISERROR((F556+VLOOKUP($A556,Economática!$A$3:$AI$823,26,FALSE))/Y556),(F556+VLOOKUP($A556,Economática!$A$3:$AI$823,26,FALSE))/Y556,(F556+VLOOKUP($A556,Economática!$A$3:$AI$823,26,FALSE))/Y556))","v":""},{"$f":"IF($A556=\"\",\"\",IF(OR(-VLOOKUP($A556,Economática!$A$3:$AI$823,27,FALSE)=0,-VLOOKUP($A556,Economática!$A$3:$AI$823,27,FALSE)=\"-\"),1/0,-VLOOKUP($A556,Economática!$A$3:$AI$823,27,FALSE)))","v":""},"",{"$f":"IF($A556=\"\",\"\",IF(OR(VLOOKUP($A556,Economática!$A$3:$AI$823,28,FALSE)=0,VLOOKUP($A556,Economática!$A$3:$AI$823,28,FALSE)=\"-\"),1/0,VLOOKUP($A556,Economática!$A$3:$AI$823,28,FALSE)))","v":""},{"$f":"IF($A556=\"\",\"\",IF(OR(VLOOKUP($A556,Economática!$A$3:$AI$823,29,FALSE)=0,VLOOKUP($A556,Economática!$A$3:$AI$823,29,FALSE)=\"-\"),1/0,VLOOKUP($A556,Economática!$A$3:$AI$823,29,FALSE)))","v":""},{"$f":"IF($A556=\"\",\"\",IF(OR(VLOOKUP($A556,Economática!$A$3:$AI$823,30,FALSE)/E556=0,VLOOKUP($A556,Economática!$A$3:$AI$823,30,FALSE)/E556=\"-\",VLOOKUP($A556,Economática!$A$3:$AI$823,30,FALSE)/E556<33.33%,VLOOKUP($A556,Economática!$A$3:$AI$823,30,FALSE)/E556>100%),1/0,VLOOKUP($A556,Economática!$A$3:$AI$823,30,FALSE)/E556))","v":""},"",{"$f":"IF($A556=\"\",\"\",IF(OR(VLOOKUP($A556,Economática!$A$3:$AI$823,25,FALSE)=0,VLOOKUP($A556,Economática!$A$3:$AI$823,25,FALSE)=\"-\"),1/0,VLOOKUP($A556,Economática!$A$3:$AI$823,25,FALSE)))","v":""},{"$f":"CONCATENATE(Economática!B534,\" \",Economática!C534)","v":" "}]
[{"$f":"IF(Economática!AG535=\"\",\"\",Economática!AG535)","v":""},{"$f":"IF($A557=\"\",\"\",VLOOKUP(VLOOKUP($A557,Economática!$A$3:$AI$823,6,FALSE),Correção!$B$16:$C$36,2,FALSE))","v":""},{"$f":"IF(Economática!B535=\"\",\"\",Economática!B535)","v":""},{"$f":"IF($A557=\"\",\"\",IF(OR(VLOOKUP($A557,Economática!$A$3:$AI$823,8,FALSE)=0,VLOOKUP($A557,Economática!$A$3:$AI$823,8,FALSE)=\"-\"),1/0,VLOOKUP($A557,Economática!$A$3:$AI$823,8,FALSE)))","v":""},{"$f":"IF(A557=\"\",\"\",IF(ISERROR(VLOOKUP(A557,Correção!$B$2:$G$13,9,FALSE)),VLOOKUP($A557,Economática!$A$3:$AI$823,9,FALSE),VLOOKUP(A557,Correção!$B$2:$G$13,9,FALSE)))","v":""},{"$f":"IF($A557=\"\",\"\",Economática!G535)","v":""},{"$f":"IF($A557=\"\",\"\",IF(OR(VLOOKUP($A557,Economática!$A$3:$AI$823,10,FALSE)=0,VLOOKUP($A557,Economática!$A$3:$AI$823,10,FALSE)=\"-\"),1/0,VLOOKUP($A557,Economática!$A$3:$AI$823,10,FALSE)))","v":""},{"$f":"IF($A557=\"\",\"\",IF(OR(VLOOKUP($A557,Economática!$A$3:$AI$823,11,FALSE)=0,VLOOKUP($A557,Economática!$A$3:$AI$823,11,FALSE)=\"-\"),1/0,VLOOKUP($A557,Economática!$A$3:$AI$823,11,FALSE)))","v":""},{"$f":"IF($A557=\"\",\"\",IF(OR(VLOOKUP($A557,Economática!$A$3:$AI$823,12,FALSE)=0,VLOOKUP($A557,Economática!$A$3:$AI$823,12,FALSE)=\"-\"),1/0,VLOOKUP($A557,Economática!$A$3:$AI$823,12,FALSE)))","v":""},{"$f":"IF($A557=\"\",\"\",IF(OR(VLOOKUP($A557,Economática!$A$3:$AI$823,13,FALSE)=0,VLOOKUP($A557,Economática!$A$3:$AI$823,13,FALSE)=\"-\"),1/0,VLOOKUP($A557,Economática!$A$3:$AI$823,13,FALSE)))","v":""},{"$f":"IF($A557=\"\",\"\",IF(OR(VLOOKUP($A557,Economática!$A$3:$AI$823,14,FALSE)=0,VLOOKUP($A557,Economática!$A$3:$AI$823,14,FALSE)=\"-\"),1/0,VLOOKUP($A557,Economática!$A$3:$AI$823,14,FALSE)))","v":""},{"$f":"IF($A557=\"\",\"\",IF(OR(VLOOKUP($A557,Economática!$A$3:$AI$823,15,FALSE)=0,VLOOKUP($A557,Economática!$A$3:$AI$823,15,FALSE)=\"-\"),1/0,VLOOKUP($A557,Economática!$A$3:$AI$823,15,FALSE)))","v":""},{"$f":"IF($A557=\"\",\"\",IF(OR(VLOOKUP($A557,Economática!$A$3:$AI$823,16,FALSE)=0,VLOOKUP($A557,Economática!$A$3:$AI$823,16,FALSE)=\"-\"),1/0,VLOOKUP($A557,Economática!$A$3:$AI$823,16,FALSE)))","v":""},{"$f":"IF($A557=\"\",\"\",IF(OR(VLOOKUP($A557,Economática!$A$3:$AI$823,17,FALSE)=0,VLOOKUP($A557,Economática!$A$3:$AI$823,17,FALSE)=\"-\"),1/0,VLOOKUP($A557,Economática!$A$3:$AI$823,17,FALSE)))","v":""},{"$f":"IF($A557=\"\",\"\",IF(OR(VLOOKUP($A557,Economática!$A$3:$AI$823,18,FALSE)=0,VLOOKUP($A557,Economática!$A$3:$AI$823,18,FALSE)=\"-\"),1/0,VLOOKUP($A557,Economática!$A$3:$AI$823,18,FALSE)))","v":""},{"$f":"IF($A557=\"\",\"\",IF(OR(VLOOKUP($A557,Economática!$A$3:$AI$823,19,FALSE)=0,VLOOKUP($A557,Economática!$A$3:$AI$823,19,FALSE)=\"-\"),1/0,VLOOKUP($A557,Economática!$A$3:$AI$823,19,FALSE)))","v":""},{"$f":"IF($A557=\"\",\"\",VLOOKUP($A557,Economática!$A$3:$AI$823,20,FALSE)/E557)","v":""},"","","",{"$f":"IF($A557=\"\",\"\",IF(OR(VLOOKUP($A557,Economática!$A$3:$AI$823,21,FALSE)/100=0,VLOOKUP($A557,Economática!$A$3:$AI$823,21,FALSE)/100=\"-\"),1/0,VLOOKUP($A557,Economática!$A$3:$AI$823,21,FALSE)/100))","v":""},{"$f":"IF($A557=\"\",\"\",IF(OR(VLOOKUP($A557,Economática!$A$3:$AI$823,22,FALSE)/100=0,VLOOKUP($A557,Economática!$A$3:$AI$823,22,FALSE)/100=\"-\"),1/0,VLOOKUP($A557,Economática!$A$3:$AI$823,22,FALSE)/100))","v":""},{"$f":"IF($A557=\"\",\"\",IF(OR(VLOOKUP($A557,Economática!$A$3:$AI$823,23,FALSE)=0,VLOOKUP($A557,Economática!$A$3:$AI$823,23,FALSE)=\"-\"),1/0,VLOOKUP($A557,Economática!$A$3:$AI$823,23,FALSE)))","v":""},{"$f":"IF($A557=\"\",\"\",IF(OR(VLOOKUP($A557,Economática!$A$3:$AI$823,24,FALSE)=0,VLOOKUP($A557,Economática!$A$3:$AI$823,24,FALSE)=\"-\"),1/0,VLOOKUP($A557,Economática!$A$3:$AI$823,24,FALSE)))","v":""},{"$f":"IF($A557=\"\",\"\",IF(OR(VLOOKUP($A557,Economática!$A$3:$AI$823,25,FALSE)=0,VLOOKUP($A557,Economática!$A$3:$AI$823,25,FALSE)=\"-\"),1/0,VLOOKUP($A557,Economática!$A$3:$AI$823,25,FALSE)))","v":""},{"$f":"IF($A557=\"\",\"\",IF(ISERROR((F557+VLOOKUP($A557,Economática!$A$3:$AI$823,26,FALSE))/Y557),(F557+VLOOKUP($A557,Economática!$A$3:$AI$823,26,FALSE))/Y557,(F557+VLOOKUP($A557,Economática!$A$3:$AI$823,26,FALSE))/Y557))","v":""},{"$f":"IF($A557=\"\",\"\",IF(OR(-VLOOKUP($A557,Economática!$A$3:$AI$823,27,FALSE)=0,-VLOOKUP($A557,Economática!$A$3:$AI$823,27,FALSE)=\"-\"),1/0,-VLOOKUP($A557,Economática!$A$3:$AI$823,27,FALSE)))","v":""},"",{"$f":"IF($A557=\"\",\"\",IF(OR(VLOOKUP($A557,Economática!$A$3:$AI$823,28,FALSE)=0,VLOOKUP($A557,Economática!$A$3:$AI$823,28,FALSE)=\"-\"),1/0,VLOOKUP($A557,Economática!$A$3:$AI$823,28,FALSE)))","v":""},{"$f":"IF($A557=\"\",\"\",IF(OR(VLOOKUP($A557,Economática!$A$3:$AI$823,29,FALSE)=0,VLOOKUP($A557,Economática!$A$3:$AI$823,29,FALSE)=\"-\"),1/0,VLOOKUP($A557,Economática!$A$3:$AI$823,29,FALSE)))","v":""},{"$f":"IF($A557=\"\",\"\",IF(OR(VLOOKUP($A557,Economática!$A$3:$AI$823,30,FALSE)/E557=0,VLOOKUP($A557,Economática!$A$3:$AI$823,30,FALSE)/E557=\"-\",VLOOKUP($A557,Economática!$A$3:$AI$823,30,FALSE)/E557<33.33%,VLOOKUP($A557,Economática!$A$3:$AI$823,30,FALSE)/E557>100%),1/0,VLOOKUP($A557,Economática!$A$3:$AI$823,30,FALSE)/E557))","v":""},"",{"$f":"IF($A557=\"\",\"\",IF(OR(VLOOKUP($A557,Economática!$A$3:$AI$823,25,FALSE)=0,VLOOKUP($A557,Economática!$A$3:$AI$823,25,FALSE)=\"-\"),1/0,VLOOKUP($A557,Economática!$A$3:$AI$823,25,FALSE)))","v":""},{"$f":"CONCATENATE(Economática!B535,\" \",Economática!C535)","v":" "}]
[{"$f":"IF(Economática!AG536=\"\",\"\",Economática!AG536)","v":""},{"$f":"IF($A558=\"\",\"\",VLOOKUP(VLOOKUP($A558,Economática!$A$3:$AI$823,6,FALSE),Correção!$B$16:$C$36,2,FALSE))","v":""},{"$f":"IF(Economática!B536=\"\",\"\",Economática!B536)","v":""},{"$f":"IF($A558=\"\",\"\",IF(OR(VLOOKUP($A558,Economática!$A$3:$AI$823,8,FALSE)=0,VLOOKUP($A558,Economática!$A$3:$AI$823,8,FALSE)=\"-\"),1/0,VLOOKUP($A558,Economática!$A$3:$AI$823,8,FALSE)))","v":""},{"$f":"IF(A558=\"\",\"\",IF(ISERROR(VLOOKUP(A558,Correção!$B$2:$G$13,9,FALSE)),VLOOKUP($A558,Economática!$A$3:$AI$823,9,FALSE),VLOOKUP(A558,Correção!$B$2:$G$13,9,FALSE)))","v":""},{"$f":"IF($A558=\"\",\"\",Economática!G536)","v":""},{"$f":"IF($A558=\"\",\"\",IF(OR(VLOOKUP($A558,Economática!$A$3:$AI$823,10,FALSE)=0,VLOOKUP($A558,Economática!$A$3:$AI$823,10,FALSE)=\"-\"),1/0,VLOOKUP($A558,Economática!$A$3:$AI$823,10,FALSE)))","v":""},{"$f":"IF($A558=\"\",\"\",IF(OR(VLOOKUP($A558,Economática!$A$3:$AI$823,11,FALSE)=0,VLOOKUP($A558,Economática!$A$3:$AI$823,11,FALSE)=\"-\"),1/0,VLOOKUP($A558,Economática!$A$3:$AI$823,11,FALSE)))","v":""},{"$f":"IF($A558=\"\",\"\",IF(OR(VLOOKUP($A558,Economática!$A$3:$AI$823,12,FALSE)=0,VLOOKUP($A558,Economática!$A$3:$AI$823,12,FALSE)=\"-\"),1/0,VLOOKUP($A558,Economática!$A$3:$AI$823,12,FALSE)))","v":""},{"$f":"IF($A558=\"\",\"\",IF(OR(VLOOKUP($A558,Economática!$A$3:$AI$823,13,FALSE)=0,VLOOKUP($A558,Economática!$A$3:$AI$823,13,FALSE)=\"-\"),1/0,VLOOKUP($A558,Economática!$A$3:$AI$823,13,FALSE)))","v":""},{"$f":"IF($A558=\"\",\"\",IF(OR(VLOOKUP($A558,Economática!$A$3:$AI$823,14,FALSE)=0,VLOOKUP($A558,Economática!$A$3:$AI$823,14,FALSE)=\"-\"),1/0,VLOOKUP($A558,Economática!$A$3:$AI$823,14,FALSE)))","v":""},{"$f":"IF($A558=\"\",\"\",IF(OR(VLOOKUP($A558,Economática!$A$3:$AI$823,15,FALSE)=0,VLOOKUP($A558,Economática!$A$3:$AI$823,15,FALSE)=\"-\"),1/0,VLOOKUP($A558,Economática!$A$3:$AI$823,15,FALSE)))","v":""},{"$f":"IF($A558=\"\",\"\",IF(OR(VLOOKUP($A558,Economática!$A$3:$AI$823,16,FALSE)=0,VLOOKUP($A558,Economática!$A$3:$AI$823,16,FALSE)=\"-\"),1/0,VLOOKUP($A558,Economática!$A$3:$AI$823,16,FALSE)))","v":""},{"$f":"IF($A558=\"\",\"\",IF(OR(VLOOKUP($A558,Economática!$A$3:$AI$823,17,FALSE)=0,VLOOKUP($A558,Economática!$A$3:$AI$823,17,FALSE)=\"-\"),1/0,VLOOKUP($A558,Economática!$A$3:$AI$823,17,FALSE)))","v":""},{"$f":"IF($A558=\"\",\"\",IF(OR(VLOOKUP($A558,Economática!$A$3:$AI$823,18,FALSE)=0,VLOOKUP($A558,Economática!$A$3:$AI$823,18,FALSE)=\"-\"),1/0,VLOOKUP($A558,Economática!$A$3:$AI$823,18,FALSE)))","v":""},{"$f":"IF($A558=\"\",\"\",IF(OR(VLOOKUP($A558,Economática!$A$3:$AI$823,19,FALSE)=0,VLOOKUP($A558,Economática!$A$3:$AI$823,19,FALSE)=\"-\"),1/0,VLOOKUP($A558,Economática!$A$3:$AI$823,19,FALSE)))","v":""},{"$f":"IF($A558=\"\",\"\",VLOOKUP($A558,Economática!$A$3:$AI$823,20,FALSE)/E558)","v":""},"","","",{"$f":"IF($A558=\"\",\"\",IF(OR(VLOOKUP($A558,Economática!$A$3:$AI$823,21,FALSE)/100=0,VLOOKUP($A558,Economática!$A$3:$AI$823,21,FALSE)/100=\"-\"),1/0,VLOOKUP($A558,Economática!$A$3:$AI$823,21,FALSE)/100))","v":""},{"$f":"IF($A558=\"\",\"\",IF(OR(VLOOKUP($A558,Economática!$A$3:$AI$823,22,FALSE)/100=0,VLOOKUP($A558,Economática!$A$3:$AI$823,22,FALSE)/100=\"-\"),1/0,VLOOKUP($A558,Economática!$A$3:$AI$823,22,FALSE)/100))","v":""},{"$f":"IF($A558=\"\",\"\",IF(OR(VLOOKUP($A558,Economática!$A$3:$AI$823,23,FALSE)=0,VLOOKUP($A558,Economática!$A$3:$AI$823,23,FALSE)=\"-\"),1/0,VLOOKUP($A558,Economática!$A$3:$AI$823,23,FALSE)))","v":""},{"$f":"IF($A558=\"\",\"\",IF(OR(VLOOKUP($A558,Economática!$A$3:$AI$823,24,FALSE)=0,VLOOKUP($A558,Economática!$A$3:$AI$823,24,FALSE)=\"-\"),1/0,VLOOKUP($A558,Economática!$A$3:$AI$823,24,FALSE)))","v":""},{"$f":"IF($A558=\"\",\"\",IF(OR(VLOOKUP($A558,Economática!$A$3:$AI$823,25,FALSE)=0,VLOOKUP($A558,Economática!$A$3:$AI$823,25,FALSE)=\"-\"),1/0,VLOOKUP($A558,Economática!$A$3:$AI$823,25,FALSE)))","v":""},{"$f":"IF($A558=\"\",\"\",IF(ISERROR((F558+VLOOKUP($A558,Economática!$A$3:$AI$823,26,FALSE))/Y558),(F558+VLOOKUP($A558,Economática!$A$3:$AI$823,26,FALSE))/Y558,(F558+VLOOKUP($A558,Economática!$A$3:$AI$823,26,FALSE))/Y558))","v":""},{"$f":"IF($A558=\"\",\"\",IF(OR(-VLOOKUP($A558,Economática!$A$3:$AI$823,27,FALSE)=0,-VLOOKUP($A558,Economática!$A$3:$AI$823,27,FALSE)=\"-\"),1/0,-VLOOKUP($A558,Economática!$A$3:$AI$823,27,FALSE)))","v":""},"",{"$f":"IF($A558=\"\",\"\",IF(OR(VLOOKUP($A558,Economática!$A$3:$AI$823,28,FALSE)=0,VLOOKUP($A558,Economática!$A$3:$AI$823,28,FALSE)=\"-\"),1/0,VLOOKUP($A558,Economática!$A$3:$AI$823,28,FALSE)))","v":""},{"$f":"IF($A558=\"\",\"\",IF(OR(VLOOKUP($A558,Economática!$A$3:$AI$823,29,FALSE)=0,VLOOKUP($A558,Economática!$A$3:$AI$823,29,FALSE)=\"-\"),1/0,VLOOKUP($A558,Economática!$A$3:$AI$823,29,FALSE)))","v":""},{"$f":"IF($A558=\"\",\"\",IF(OR(VLOOKUP($A558,Economática!$A$3:$AI$823,30,FALSE)/E558=0,VLOOKUP($A558,Economática!$A$3:$AI$823,30,FALSE)/E558=\"-\",VLOOKUP($A558,Economática!$A$3:$AI$823,30,FALSE)/E558<33.33%,VLOOKUP($A558,Economática!$A$3:$AI$823,30,FALSE)/E558>100%),1/0,VLOOKUP($A558,Economática!$A$3:$AI$823,30,FALSE)/E558))","v":""},"",{"$f":"IF($A558=\"\",\"\",IF(OR(VLOOKUP($A558,Economática!$A$3:$AI$823,25,FALSE)=0,VLOOKUP($A558,Economática!$A$3:$AI$823,25,FALSE)=\"-\"),1/0,VLOOKUP($A558,Economática!$A$3:$AI$823,25,FALSE)))","v":""},{"$f":"CONCATENATE(Economática!B536,\" \",Economática!C536)","v":" "}]
[{"$f":"IF(Economática!AG537=\"\",\"\",Economática!AG537)","v":""},{"$f":"IF($A559=\"\",\"\",VLOOKUP(VLOOKUP($A559,Economática!$A$3:$AI$823,6,FALSE),Correção!$B$16:$C$36,2,FALSE))","v":""},{"$f":"IF(Economática!B537=\"\",\"\",Economática!B537)","v":""},{"$f":"IF($A559=\"\",\"\",IF(OR(VLOOKUP($A559,Economática!$A$3:$AI$823,8,FALSE)=0,VLOOKUP($A559,Economática!$A$3:$AI$823,8,FALSE)=\"-\"),1/0,VLOOKUP($A559,Economática!$A$3:$AI$823,8,FALSE)))","v":""},{"$f":"IF(A559=\"\",\"\",IF(ISERROR(VLOOKUP(A559,Correção!$B$2:$G$13,9,FALSE)),VLOOKUP($A559,Economática!$A$3:$AI$823,9,FALSE),VLOOKUP(A559,Correção!$B$2:$G$13,9,FALSE)))","v":""},{"$f":"IF($A559=\"\",\"\",Economática!G537)","v":""},{"$f":"IF($A559=\"\",\"\",IF(OR(VLOOKUP($A559,Economática!$A$3:$AI$823,10,FALSE)=0,VLOOKUP($A559,Economática!$A$3:$AI$823,10,FALSE)=\"-\"),1/0,VLOOKUP($A559,Economática!$A$3:$AI$823,10,FALSE)))","v":""},{"$f":"IF($A559=\"\",\"\",IF(OR(VLOOKUP($A559,Economática!$A$3:$AI$823,11,FALSE)=0,VLOOKUP($A559,Economática!$A$3:$AI$823,11,FALSE)=\"-\"),1/0,VLOOKUP($A559,Economática!$A$3:$AI$823,11,FALSE)))","v":""},{"$f":"IF($A559=\"\",\"\",IF(OR(VLOOKUP($A559,Economática!$A$3:$AI$823,12,FALSE)=0,VLOOKUP($A559,Economática!$A$3:$AI$823,12,FALSE)=\"-\"),1/0,VLOOKUP($A559,Economática!$A$3:$AI$823,12,FALSE)))","v":""},{"$f":"IF($A559=\"\",\"\",IF(OR(VLOOKUP($A559,Economática!$A$3:$AI$823,13,FALSE)=0,VLOOKUP($A559,Economática!$A$3:$AI$823,13,FALSE)=\"-\"),1/0,VLOOKUP($A559,Economática!$A$3:$AI$823,13,FALSE)))","v":""},{"$f":"IF($A559=\"\",\"\",IF(OR(VLOOKUP($A559,Economática!$A$3:$AI$823,14,FALSE)=0,VLOOKUP($A559,Economática!$A$3:$AI$823,14,FALSE)=\"-\"),1/0,VLOOKUP($A559,Economática!$A$3:$AI$823,14,FALSE)))","v":""},{"$f":"IF($A559=\"\",\"\",IF(OR(VLOOKUP($A559,Economática!$A$3:$AI$823,15,FALSE)=0,VLOOKUP($A559,Economática!$A$3:$AI$823,15,FALSE)=\"-\"),1/0,VLOOKUP($A559,Economática!$A$3:$AI$823,15,FALSE)))","v":""},{"$f":"IF($A559=\"\",\"\",IF(OR(VLOOKUP($A559,Economática!$A$3:$AI$823,16,FALSE)=0,VLOOKUP($A559,Economática!$A$3:$AI$823,16,FALSE)=\"-\"),1/0,VLOOKUP($A559,Economática!$A$3:$AI$823,16,FALSE)))","v":""},{"$f":"IF($A559=\"\",\"\",IF(OR(VLOOKUP($A559,Economática!$A$3:$AI$823,17,FALSE)=0,VLOOKUP($A559,Economática!$A$3:$AI$823,17,FALSE)=\"-\"),1/0,VLOOKUP($A559,Economática!$A$3:$AI$823,17,FALSE)))","v":""},{"$f":"IF($A559=\"\",\"\",IF(OR(VLOOKUP($A559,Economática!$A$3:$AI$823,18,FALSE)=0,VLOOKUP($A559,Economática!$A$3:$AI$823,18,FALSE)=\"-\"),1/0,VLOOKUP($A559,Economática!$A$3:$AI$823,18,FALSE)))","v":""},{"$f":"IF($A559=\"\",\"\",IF(OR(VLOOKUP($A559,Economática!$A$3:$AI$823,19,FALSE)=0,VLOOKUP($A559,Economática!$A$3:$AI$823,19,FALSE)=\"-\"),1/0,VLOOKUP($A559,Economática!$A$3:$AI$823,19,FALSE)))","v":""},{"$f":"IF($A559=\"\",\"\",VLOOKUP($A559,Economática!$A$3:$AI$823,20,FALSE)/E559)","v":""},"","","",{"$f":"IF($A559=\"\",\"\",IF(OR(VLOOKUP($A559,Economática!$A$3:$AI$823,21,FALSE)/100=0,VLOOKUP($A559,Economática!$A$3:$AI$823,21,FALSE)/100=\"-\"),1/0,VLOOKUP($A559,Economática!$A$3:$AI$823,21,FALSE)/100))","v":""},{"$f":"IF($A559=\"\",\"\",IF(OR(VLOOKUP($A559,Economática!$A$3:$AI$823,22,FALSE)/100=0,VLOOKUP($A559,Economática!$A$3:$AI$823,22,FALSE)/100=\"-\"),1/0,VLOOKUP($A559,Economática!$A$3:$AI$823,22,FALSE)/100))","v":""},{"$f":"IF($A559=\"\",\"\",IF(OR(VLOOKUP($A559,Economática!$A$3:$AI$823,23,FALSE)=0,VLOOKUP($A559,Economática!$A$3:$AI$823,23,FALSE)=\"-\"),1/0,VLOOKUP($A559,Economática!$A$3:$AI$823,23,FALSE)))","v":""},{"$f":"IF($A559=\"\",\"\",IF(OR(VLOOKUP($A559,Economática!$A$3:$AI$823,24,FALSE)=0,VLOOKUP($A559,Economática!$A$3:$AI$823,24,FALSE)=\"-\"),1/0,VLOOKUP($A559,Economática!$A$3:$AI$823,24,FALSE)))","v":""},{"$f":"IF($A559=\"\",\"\",IF(OR(VLOOKUP($A559,Economática!$A$3:$AI$823,25,FALSE)=0,VLOOKUP($A559,Economática!$A$3:$AI$823,25,FALSE)=\"-\"),1/0,VLOOKUP($A559,Economática!$A$3:$AI$823,25,FALSE)))","v":""},{"$f":"IF($A559=\"\",\"\",IF(ISERROR((F559+VLOOKUP($A559,Economática!$A$3:$AI$823,26,FALSE))/Y559),(F559+VLOOKUP($A559,Economática!$A$3:$AI$823,26,FALSE))/Y559,(F559+VLOOKUP($A559,Economática!$A$3:$AI$823,26,FALSE))/Y559))","v":""},{"$f":"IF($A559=\"\",\"\",IF(OR(-VLOOKUP($A559,Economática!$A$3:$AI$823,27,FALSE)=0,-VLOOKUP($A559,Economática!$A$3:$AI$823,27,FALSE)=\"-\"),1/0,-VLOOKUP($A559,Economática!$A$3:$AI$823,27,FALSE)))","v":""},"",{"$f":"IF($A559=\"\",\"\",IF(OR(VLOOKUP($A559,Economática!$A$3:$AI$823,28,FALSE)=0,VLOOKUP($A559,Economática!$A$3:$AI$823,28,FALSE)=\"-\"),1/0,VLOOKUP($A559,Economática!$A$3:$AI$823,28,FALSE)))","v":""},{"$f":"IF($A559=\"\",\"\",IF(OR(VLOOKUP($A559,Economática!$A$3:$AI$823,29,FALSE)=0,VLOOKUP($A559,Economática!$A$3:$AI$823,29,FALSE)=\"-\"),1/0,VLOOKUP($A559,Economática!$A$3:$AI$823,29,FALSE)))","v":""},{"$f":"IF($A559=\"\",\"\",IF(OR(VLOOKUP($A559,Economática!$A$3:$AI$823,30,FALSE)/E559=0,VLOOKUP($A559,Economática!$A$3:$AI$823,30,FALSE)/E559=\"-\",VLOOKUP($A559,Economática!$A$3:$AI$823,30,FALSE)/E559<33.33%,VLOOKUP($A559,Economática!$A$3:$AI$823,30,FALSE)/E559>100%),1/0,VLOOKUP($A559,Economática!$A$3:$AI$823,30,FALSE)/E559))","v":""},"",{"$f":"IF($A559=\"\",\"\",IF(OR(VLOOKUP($A559,Economática!$A$3:$AI$823,25,FALSE)=0,VLOOKUP($A559,Economática!$A$3:$AI$823,25,FALSE)=\"-\"),1/0,VLOOKUP($A559,Economática!$A$3:$AI$823,25,FALSE)))","v":""},{"$f":"CONCATENATE(Economática!B537,\" \",Economática!C537)","v":" "}]
[{"$f":"IF(Economática!AG538=\"\",\"\",Economática!AG538)","v":""},{"$f":"IF($A560=\"\",\"\",VLOOKUP(VLOOKUP($A560,Economática!$A$3:$AI$823,6,FALSE),Correção!$B$16:$C$36,2,FALSE))","v":""},{"$f":"IF(Economática!B538=\"\",\"\",Economática!B538)","v":""},{"$f":"IF($A560=\"\",\"\",IF(OR(VLOOKUP($A560,Economática!$A$3:$AI$823,8,FALSE)=0,VLOOKUP($A560,Economática!$A$3:$AI$823,8,FALSE)=\"-\"),1/0,VLOOKUP($A560,Economática!$A$3:$AI$823,8,FALSE)))","v":""},{"$f":"IF(A560=\"\",\"\",IF(ISERROR(VLOOKUP(A560,Correção!$B$2:$G$13,9,FALSE)),VLOOKUP($A560,Economática!$A$3:$AI$823,9,FALSE),VLOOKUP(A560,Correção!$B$2:$G$13,9,FALSE)))","v":""},{"$f":"IF($A560=\"\",\"\",Economática!G538)","v":""},{"$f":"IF($A560=\"\",\"\",IF(OR(VLOOKUP($A560,Economática!$A$3:$AI$823,10,FALSE)=0,VLOOKUP($A560,Economática!$A$3:$AI$823,10,FALSE)=\"-\"),1/0,VLOOKUP($A560,Economática!$A$3:$AI$823,10,FALSE)))","v":""},{"$f":"IF($A560=\"\",\"\",IF(OR(VLOOKUP($A560,Economática!$A$3:$AI$823,11,FALSE)=0,VLOOKUP($A560,Economática!$A$3:$AI$823,11,FALSE)=\"-\"),1/0,VLOOKUP($A560,Economática!$A$3:$AI$823,11,FALSE)))","v":""},{"$f":"IF($A560=\"\",\"\",IF(OR(VLOOKUP($A560,Economática!$A$3:$AI$823,12,FALSE)=0,VLOOKUP($A560,Economática!$A$3:$AI$823,12,FALSE)=\"-\"),1/0,VLOOKUP($A560,Economática!$A$3:$AI$823,12,FALSE)))","v":""},{"$f":"IF($A560=\"\",\"\",IF(OR(VLOOKUP($A560,Economática!$A$3:$AI$823,13,FALSE)=0,VLOOKUP($A560,Economática!$A$3:$AI$823,13,FALSE)=\"-\"),1/0,VLOOKUP($A560,Economática!$A$3:$AI$823,13,FALSE)))","v":""},{"$f":"IF($A560=\"\",\"\",IF(OR(VLOOKUP($A560,Economática!$A$3:$AI$823,14,FALSE)=0,VLOOKUP($A560,Economática!$A$3:$AI$823,14,FALSE)=\"-\"),1/0,VLOOKUP($A560,Economática!$A$3:$AI$823,14,FALSE)))","v":""},{"$f":"IF($A560=\"\",\"\",IF(OR(VLOOKUP($A560,Economática!$A$3:$AI$823,15,FALSE)=0,VLOOKUP($A560,Economática!$A$3:$AI$823,15,FALSE)=\"-\"),1/0,VLOOKUP($A560,Economática!$A$3:$AI$823,15,FALSE)))","v":""},{"$f":"IF($A560=\"\",\"\",IF(OR(VLOOKUP($A560,Economática!$A$3:$AI$823,16,FALSE)=0,VLOOKUP($A560,Economática!$A$3:$AI$823,16,FALSE)=\"-\"),1/0,VLOOKUP($A560,Economática!$A$3:$AI$823,16,FALSE)))","v":""},{"$f":"IF($A560=\"\",\"\",IF(OR(VLOOKUP($A560,Economática!$A$3:$AI$823,17,FALSE)=0,VLOOKUP($A560,Economática!$A$3:$AI$823,17,FALSE)=\"-\"),1/0,VLOOKUP($A560,Economática!$A$3:$AI$823,17,FALSE)))","v":""},{"$f":"IF($A560=\"\",\"\",IF(OR(VLOOKUP($A560,Economática!$A$3:$AI$823,18,FALSE)=0,VLOOKUP($A560,Economática!$A$3:$AI$823,18,FALSE)=\"-\"),1/0,VLOOKUP($A560,Economática!$A$3:$AI$823,18,FALSE)))","v":""},{"$f":"IF($A560=\"\",\"\",IF(OR(VLOOKUP($A560,Economática!$A$3:$AI$823,19,FALSE)=0,VLOOKUP($A560,Economática!$A$3:$AI$823,19,FALSE)=\"-\"),1/0,VLOOKUP($A560,Economática!$A$3:$AI$823,19,FALSE)))","v":""},{"$f":"IF($A560=\"\",\"\",VLOOKUP($A560,Economática!$A$3:$AI$823,20,FALSE)/E560)","v":""},"","","",{"$f":"IF($A560=\"\",\"\",IF(OR(VLOOKUP($A560,Economática!$A$3:$AI$823,21,FALSE)/100=0,VLOOKUP($A560,Economática!$A$3:$AI$823,21,FALSE)/100=\"-\"),1/0,VLOOKUP($A560,Economática!$A$3:$AI$823,21,FALSE)/100))","v":""},{"$f":"IF($A560=\"\",\"\",IF(OR(VLOOKUP($A560,Economática!$A$3:$AI$823,22,FALSE)/100=0,VLOOKUP($A560,Economática!$A$3:$AI$823,22,FALSE)/100=\"-\"),1/0,VLOOKUP($A560,Economática!$A$3:$AI$823,22,FALSE)/100))","v":""},{"$f":"IF($A560=\"\",\"\",IF(OR(VLOOKUP($A560,Economática!$A$3:$AI$823,23,FALSE)=0,VLOOKUP($A560,Economática!$A$3:$AI$823,23,FALSE)=\"-\"),1/0,VLOOKUP($A560,Economática!$A$3:$AI$823,23,FALSE)))","v":""},{"$f":"IF($A560=\"\",\"\",IF(OR(VLOOKUP($A560,Economática!$A$3:$AI$823,24,FALSE)=0,VLOOKUP($A560,Economática!$A$3:$AI$823,24,FALSE)=\"-\"),1/0,VLOOKUP($A560,Economática!$A$3:$AI$823,24,FALSE)))","v":""},{"$f":"IF($A560=\"\",\"\",IF(OR(VLOOKUP($A560,Economática!$A$3:$AI$823,25,FALSE)=0,VLOOKUP($A560,Economática!$A$3:$AI$823,25,FALSE)=\"-\"),1/0,VLOOKUP($A560,Economática!$A$3:$AI$823,25,FALSE)))","v":""},{"$f":"IF($A560=\"\",\"\",IF(ISERROR((F560+VLOOKUP($A560,Economática!$A$3:$AI$823,26,FALSE))/Y560),(F560+VLOOKUP($A560,Economática!$A$3:$AI$823,26,FALSE))/Y560,(F560+VLOOKUP($A560,Economática!$A$3:$AI$823,26,FALSE))/Y560))","v":""},{"$f":"IF($A560=\"\",\"\",IF(OR(-VLOOKUP($A560,Economática!$A$3:$AI$823,27,FALSE)=0,-VLOOKUP($A560,Economática!$A$3:$AI$823,27,FALSE)=\"-\"),1/0,-VLOOKUP($A560,Economática!$A$3:$AI$823,27,FALSE)))","v":""},"",{"$f":"IF($A560=\"\",\"\",IF(OR(VLOOKUP($A560,Economática!$A$3:$AI$823,28,FALSE)=0,VLOOKUP($A560,Economática!$A$3:$AI$823,28,FALSE)=\"-\"),1/0,VLOOKUP($A560,Economática!$A$3:$AI$823,28,FALSE)))","v":""},{"$f":"IF($A560=\"\",\"\",IF(OR(VLOOKUP($A560,Economática!$A$3:$AI$823,29,FALSE)=0,VLOOKUP($A560,Economática!$A$3:$AI$823,29,FALSE)=\"-\"),1/0,VLOOKUP($A560,Economática!$A$3:$AI$823,29,FALSE)))","v":""},{"$f":"IF($A560=\"\",\"\",IF(OR(VLOOKUP($A560,Economática!$A$3:$AI$823,30,FALSE)/E560=0,VLOOKUP($A560,Economática!$A$3:$AI$823,30,FALSE)/E560=\"-\",VLOOKUP($A560,Economática!$A$3:$AI$823,30,FALSE)/E560<33.33%,VLOOKUP($A560,Economática!$A$3:$AI$823,30,FALSE)/E560>100%),1/0,VLOOKUP($A560,Economática!$A$3:$AI$823,30,FALSE)/E560))","v":""},"",{"$f":"IF($A560=\"\",\"\",IF(OR(VLOOKUP($A560,Economática!$A$3:$AI$823,25,FALSE)=0,VLOOKUP($A560,Economática!$A$3:$AI$823,25,FALSE)=\"-\"),1/0,VLOOKUP($A560,Economática!$A$3:$AI$823,25,FALSE)))","v":""},{"$f":"CONCATENATE(Economática!B538,\" \",Economática!C538)","v":" "}]
[{"$f":"IF(Economática!AG539=\"\",\"\",Economática!AG539)","v":""},{"$f":"IF($A561=\"\",\"\",VLOOKUP(VLOOKUP($A561,Economática!$A$3:$AI$823,6,FALSE),Correção!$B$16:$C$36,2,FALSE))","v":""},{"$f":"IF(Economática!B539=\"\",\"\",Economática!B539)","v":""},{"$f":"IF($A561=\"\",\"\",IF(OR(VLOOKUP($A561,Economática!$A$3:$AI$823,8,FALSE)=0,VLOOKUP($A561,Economática!$A$3:$AI$823,8,FALSE)=\"-\"),1/0,VLOOKUP($A561,Economática!$A$3:$AI$823,8,FALSE)))","v":""},{"$f":"IF(A561=\"\",\"\",IF(ISERROR(VLOOKUP(A561,Correção!$B$2:$G$13,9,FALSE)),VLOOKUP($A561,Economática!$A$3:$AI$823,9,FALSE),VLOOKUP(A561,Correção!$B$2:$G$13,9,FALSE)))","v":""},{"$f":"IF($A561=\"\",\"\",Economática!G539)","v":""},{"$f":"IF($A561=\"\",\"\",IF(OR(VLOOKUP($A561,Economática!$A$3:$AI$823,10,FALSE)=0,VLOOKUP($A561,Economática!$A$3:$AI$823,10,FALSE)=\"-\"),1/0,VLOOKUP($A561,Economática!$A$3:$AI$823,10,FALSE)))","v":""},{"$f":"IF($A561=\"\",\"\",IF(OR(VLOOKUP($A561,Economática!$A$3:$AI$823,11,FALSE)=0,VLOOKUP($A561,Economática!$A$3:$AI$823,11,FALSE)=\"-\"),1/0,VLOOKUP($A561,Economática!$A$3:$AI$823,11,FALSE)))","v":""},{"$f":"IF($A561=\"\",\"\",IF(OR(VLOOKUP($A561,Economática!$A$3:$AI$823,12,FALSE)=0,VLOOKUP($A561,Economática!$A$3:$AI$823,12,FALSE)=\"-\"),1/0,VLOOKUP($A561,Economática!$A$3:$AI$823,12,FALSE)))","v":""},{"$f":"IF($A561=\"\",\"\",IF(OR(VLOOKUP($A561,Economática!$A$3:$AI$823,13,FALSE)=0,VLOOKUP($A561,Economática!$A$3:$AI$823,13,FALSE)=\"-\"),1/0,VLOOKUP($A561,Economática!$A$3:$AI$823,13,FALSE)))","v":""},{"$f":"IF($A561=\"\",\"\",IF(OR(VLOOKUP($A561,Economática!$A$3:$AI$823,14,FALSE)=0,VLOOKUP($A561,Economática!$A$3:$AI$823,14,FALSE)=\"-\"),1/0,VLOOKUP($A561,Economática!$A$3:$AI$823,14,FALSE)))","v":""},{"$f":"IF($A561=\"\",\"\",IF(OR(VLOOKUP($A561,Economática!$A$3:$AI$823,15,FALSE)=0,VLOOKUP($A561,Economática!$A$3:$AI$823,15,FALSE)=\"-\"),1/0,VLOOKUP($A561,Economática!$A$3:$AI$823,15,FALSE)))","v":""},{"$f":"IF($A561=\"\",\"\",IF(OR(VLOOKUP($A561,Economática!$A$3:$AI$823,16,FALSE)=0,VLOOKUP($A561,Economática!$A$3:$AI$823,16,FALSE)=\"-\"),1/0,VLOOKUP($A561,Economática!$A$3:$AI$823,16,FALSE)))","v":""},{"$f":"IF($A561=\"\",\"\",IF(OR(VLOOKUP($A561,Economática!$A$3:$AI$823,17,FALSE)=0,VLOOKUP($A561,Economática!$A$3:$AI$823,17,FALSE)=\"-\"),1/0,VLOOKUP($A561,Economática!$A$3:$AI$823,17,FALSE)))","v":""},{"$f":"IF($A561=\"\",\"\",IF(OR(VLOOKUP($A561,Economática!$A$3:$AI$823,18,FALSE)=0,VLOOKUP($A561,Economática!$A$3:$AI$823,18,FALSE)=\"-\"),1/0,VLOOKUP($A561,Economática!$A$3:$AI$823,18,FALSE)))","v":""},{"$f":"IF($A561=\"\",\"\",IF(OR(VLOOKUP($A561,Economática!$A$3:$AI$823,19,FALSE)=0,VLOOKUP($A561,Economática!$A$3:$AI$823,19,FALSE)=\"-\"),1/0,VLOOKUP($A561,Economática!$A$3:$AI$823,19,FALSE)))","v":""},{"$f":"IF($A561=\"\",\"\",VLOOKUP($A561,Economática!$A$3:$AI$823,20,FALSE)/E561)","v":""},"","","",{"$f":"IF($A561=\"\",\"\",IF(OR(VLOOKUP($A561,Economática!$A$3:$AI$823,21,FALSE)/100=0,VLOOKUP($A561,Economática!$A$3:$AI$823,21,FALSE)/100=\"-\"),1/0,VLOOKUP($A561,Economática!$A$3:$AI$823,21,FALSE)/100))","v":""},{"$f":"IF($A561=\"\",\"\",IF(OR(VLOOKUP($A561,Economática!$A$3:$AI$823,22,FALSE)/100=0,VLOOKUP($A561,Economática!$A$3:$AI$823,22,FALSE)/100=\"-\"),1/0,VLOOKUP($A561,Economática!$A$3:$AI$823,22,FALSE)/100))","v":""},{"$f":"IF($A561=\"\",\"\",IF(OR(VLOOKUP($A561,Economática!$A$3:$AI$823,23,FALSE)=0,VLOOKUP($A561,Economática!$A$3:$AI$823,23,FALSE)=\"-\"),1/0,VLOOKUP($A561,Economática!$A$3:$AI$823,23,FALSE)))","v":""},{"$f":"IF($A561=\"\",\"\",IF(OR(VLOOKUP($A561,Economática!$A$3:$AI$823,24,FALSE)=0,VLOOKUP($A561,Economática!$A$3:$AI$823,24,FALSE)=\"-\"),1/0,VLOOKUP($A561,Economática!$A$3:$AI$823,24,FALSE)))","v":""},{"$f":"IF($A561=\"\",\"\",IF(OR(VLOOKUP($A561,Economática!$A$3:$AI$823,25,FALSE)=0,VLOOKUP($A561,Economática!$A$3:$AI$823,25,FALSE)=\"-\"),1/0,VLOOKUP($A561,Economática!$A$3:$AI$823,25,FALSE)))","v":""},{"$f":"IF($A561=\"\",\"\",IF(ISERROR((F561+VLOOKUP($A561,Economática!$A$3:$AI$823,26,FALSE))/Y561),(F561+VLOOKUP($A561,Economática!$A$3:$AI$823,26,FALSE))/Y561,(F561+VLOOKUP($A561,Economática!$A$3:$AI$823,26,FALSE))/Y561))","v":""},{"$f":"IF($A561=\"\",\"\",IF(OR(-VLOOKUP($A561,Economática!$A$3:$AI$823,27,FALSE)=0,-VLOOKUP($A561,Economática!$A$3:$AI$823,27,FALSE)=\"-\"),1/0,-VLOOKUP($A561,Economática!$A$3:$AI$823,27,FALSE)))","v":""},"",{"$f":"IF($A561=\"\",\"\",IF(OR(VLOOKUP($A561,Economática!$A$3:$AI$823,28,FALSE)=0,VLOOKUP($A561,Economática!$A$3:$AI$823,28,FALSE)=\"-\"),1/0,VLOOKUP($A561,Economática!$A$3:$AI$823,28,FALSE)))","v":""},{"$f":"IF($A561=\"\",\"\",IF(OR(VLOOKUP($A561,Economática!$A$3:$AI$823,29,FALSE)=0,VLOOKUP($A561,Economática!$A$3:$AI$823,29,FALSE)=\"-\"),1/0,VLOOKUP($A561,Economática!$A$3:$AI$823,29,FALSE)))","v":""},{"$f":"IF($A561=\"\",\"\",IF(OR(VLOOKUP($A561,Economática!$A$3:$AI$823,30,FALSE)/E561=0,VLOOKUP($A561,Economática!$A$3:$AI$823,30,FALSE)/E561=\"-\",VLOOKUP($A561,Economática!$A$3:$AI$823,30,FALSE)/E561<33.33%,VLOOKUP($A561,Economática!$A$3:$AI$823,30,FALSE)/E561>100%),1/0,VLOOKUP($A561,Economática!$A$3:$AI$823,30,FALSE)/E561))","v":""},"",{"$f":"IF($A561=\"\",\"\",IF(OR(VLOOKUP($A561,Economática!$A$3:$AI$823,25,FALSE)=0,VLOOKUP($A561,Economática!$A$3:$AI$823,25,FALSE)=\"-\"),1/0,VLOOKUP($A561,Economática!$A$3:$AI$823,25,FALSE)))","v":""},{"$f":"CONCATENATE(Economática!B539,\" \",Economática!C539)","v":" "}]
[{"$f":"IF(Economática!AG540=\"\",\"\",Economática!AG540)","v":""},{"$f":"IF($A562=\"\",\"\",VLOOKUP(VLOOKUP($A562,Economática!$A$3:$AI$823,6,FALSE),Correção!$B$16:$C$36,2,FALSE))","v":""},{"$f":"IF(Economática!B540=\"\",\"\",Economática!B540)","v":""},{"$f":"IF($A562=\"\",\"\",IF(OR(VLOOKUP($A562,Economática!$A$3:$AI$823,8,FALSE)=0,VLOOKUP($A562,Economática!$A$3:$AI$823,8,FALSE)=\"-\"),1/0,VLOOKUP($A562,Economática!$A$3:$AI$823,8,FALSE)))","v":""},{"$f":"IF(A562=\"\",\"\",IF(ISERROR(VLOOKUP(A562,Correção!$B$2:$G$13,9,FALSE)),VLOOKUP($A562,Economática!$A$3:$AI$823,9,FALSE),VLOOKUP(A562,Correção!$B$2:$G$13,9,FALSE)))","v":""},{"$f":"IF($A562=\"\",\"\",Economática!G540)","v":""},{"$f":"IF($A562=\"\",\"\",IF(OR(VLOOKUP($A562,Economática!$A$3:$AI$823,10,FALSE)=0,VLOOKUP($A562,Economática!$A$3:$AI$823,10,FALSE)=\"-\"),1/0,VLOOKUP($A562,Economática!$A$3:$AI$823,10,FALSE)))","v":""},{"$f":"IF($A562=\"\",\"\",IF(OR(VLOOKUP($A562,Economática!$A$3:$AI$823,11,FALSE)=0,VLOOKUP($A562,Economática!$A$3:$AI$823,11,FALSE)=\"-\"),1/0,VLOOKUP($A562,Economática!$A$3:$AI$823,11,FALSE)))","v":""},{"$f":"IF($A562=\"\",\"\",IF(OR(VLOOKUP($A562,Economática!$A$3:$AI$823,12,FALSE)=0,VLOOKUP($A562,Economática!$A$3:$AI$823,12,FALSE)=\"-\"),1/0,VLOOKUP($A562,Economática!$A$3:$AI$823,12,FALSE)))","v":""},{"$f":"IF($A562=\"\",\"\",IF(OR(VLOOKUP($A562,Economática!$A$3:$AI$823,13,FALSE)=0,VLOOKUP($A562,Economática!$A$3:$AI$823,13,FALSE)=\"-\"),1/0,VLOOKUP($A562,Economática!$A$3:$AI$823,13,FALSE)))","v":""},{"$f":"IF($A562=\"\",\"\",IF(OR(VLOOKUP($A562,Economática!$A$3:$AI$823,14,FALSE)=0,VLOOKUP($A562,Economática!$A$3:$AI$823,14,FALSE)=\"-\"),1/0,VLOOKUP($A562,Economática!$A$3:$AI$823,14,FALSE)))","v":""},{"$f":"IF($A562=\"\",\"\",IF(OR(VLOOKUP($A562,Economática!$A$3:$AI$823,15,FALSE)=0,VLOOKUP($A562,Economática!$A$3:$AI$823,15,FALSE)=\"-\"),1/0,VLOOKUP($A562,Economática!$A$3:$AI$823,15,FALSE)))","v":""},{"$f":"IF($A562=\"\",\"\",IF(OR(VLOOKUP($A562,Economática!$A$3:$AI$823,16,FALSE)=0,VLOOKUP($A562,Economática!$A$3:$AI$823,16,FALSE)=\"-\"),1/0,VLOOKUP($A562,Economática!$A$3:$AI$823,16,FALSE)))","v":""},{"$f":"IF($A562=\"\",\"\",IF(OR(VLOOKUP($A562,Economática!$A$3:$AI$823,17,FALSE)=0,VLOOKUP($A562,Economática!$A$3:$AI$823,17,FALSE)=\"-\"),1/0,VLOOKUP($A562,Economática!$A$3:$AI$823,17,FALSE)))","v":""},{"$f":"IF($A562=\"\",\"\",IF(OR(VLOOKUP($A562,Economática!$A$3:$AI$823,18,FALSE)=0,VLOOKUP($A562,Economática!$A$3:$AI$823,18,FALSE)=\"-\"),1/0,VLOOKUP($A562,Economática!$A$3:$AI$823,18,FALSE)))","v":""},{"$f":"IF($A562=\"\",\"\",IF(OR(VLOOKUP($A562,Economática!$A$3:$AI$823,19,FALSE)=0,VLOOKUP($A562,Economática!$A$3:$AI$823,19,FALSE)=\"-\"),1/0,VLOOKUP($A562,Economática!$A$3:$AI$823,19,FALSE)))","v":""},{"$f":"IF($A562=\"\",\"\",VLOOKUP($A562,Economática!$A$3:$AI$823,20,FALSE)/E562)","v":""},"","","",{"$f":"IF($A562=\"\",\"\",IF(OR(VLOOKUP($A562,Economática!$A$3:$AI$823,21,FALSE)/100=0,VLOOKUP($A562,Economática!$A$3:$AI$823,21,FALSE)/100=\"-\"),1/0,VLOOKUP($A562,Economática!$A$3:$AI$823,21,FALSE)/100))","v":""},{"$f":"IF($A562=\"\",\"\",IF(OR(VLOOKUP($A562,Economática!$A$3:$AI$823,22,FALSE)/100=0,VLOOKUP($A562,Economática!$A$3:$AI$823,22,FALSE)/100=\"-\"),1/0,VLOOKUP($A562,Economática!$A$3:$AI$823,22,FALSE)/100))","v":""},{"$f":"IF($A562=\"\",\"\",IF(OR(VLOOKUP($A562,Economática!$A$3:$AI$823,23,FALSE)=0,VLOOKUP($A562,Economática!$A$3:$AI$823,23,FALSE)=\"-\"),1/0,VLOOKUP($A562,Economática!$A$3:$AI$823,23,FALSE)))","v":""},{"$f":"IF($A562=\"\",\"\",IF(OR(VLOOKUP($A562,Economática!$A$3:$AI$823,24,FALSE)=0,VLOOKUP($A562,Economática!$A$3:$AI$823,24,FALSE)=\"-\"),1/0,VLOOKUP($A562,Economática!$A$3:$AI$823,24,FALSE)))","v":""},{"$f":"IF($A562=\"\",\"\",IF(OR(VLOOKUP($A562,Economática!$A$3:$AI$823,25,FALSE)=0,VLOOKUP($A562,Economática!$A$3:$AI$823,25,FALSE)=\"-\"),1/0,VLOOKUP($A562,Economática!$A$3:$AI$823,25,FALSE)))","v":""},{"$f":"IF($A562=\"\",\"\",IF(ISERROR((F562+VLOOKUP($A562,Economática!$A$3:$AI$823,26,FALSE))/Y562),(F562+VLOOKUP($A562,Economática!$A$3:$AI$823,26,FALSE))/Y562,(F562+VLOOKUP($A562,Economática!$A$3:$AI$823,26,FALSE))/Y562))","v":""},{"$f":"IF($A562=\"\",\"\",IF(OR(-VLOOKUP($A562,Economática!$A$3:$AI$823,27,FALSE)=0,-VLOOKUP($A562,Economática!$A$3:$AI$823,27,FALSE)=\"-\"),1/0,-VLOOKUP($A562,Economática!$A$3:$AI$823,27,FALSE)))","v":""},"",{"$f":"IF($A562=\"\",\"\",IF(OR(VLOOKUP($A562,Economática!$A$3:$AI$823,28,FALSE)=0,VLOOKUP($A562,Economática!$A$3:$AI$823,28,FALSE)=\"-\"),1/0,VLOOKUP($A562,Economática!$A$3:$AI$823,28,FALSE)))","v":""},{"$f":"IF($A562=\"\",\"\",IF(OR(VLOOKUP($A562,Economática!$A$3:$AI$823,29,FALSE)=0,VLOOKUP($A562,Economática!$A$3:$AI$823,29,FALSE)=\"-\"),1/0,VLOOKUP($A562,Economática!$A$3:$AI$823,29,FALSE)))","v":""},{"$f":"IF($A562=\"\",\"\",IF(OR(VLOOKUP($A562,Economática!$A$3:$AI$823,30,FALSE)/E562=0,VLOOKUP($A562,Economática!$A$3:$AI$823,30,FALSE)/E562=\"-\",VLOOKUP($A562,Economática!$A$3:$AI$823,30,FALSE)/E562<33.33%,VLOOKUP($A562,Economática!$A$3:$AI$823,30,FALSE)/E562>100%),1/0,VLOOKUP($A562,Economática!$A$3:$AI$823,30,FALSE)/E562))","v":""},"",{"$f":"IF($A562=\"\",\"\",IF(OR(VLOOKUP($A562,Economática!$A$3:$AI$823,25,FALSE)=0,VLOOKUP($A562,Economática!$A$3:$AI$823,25,FALSE)=\"-\"),1/0,VLOOKUP($A562,Economática!$A$3:$AI$823,25,FALSE)))","v":""},{"$f":"CONCATENATE(Economática!B540,\" \",Economática!C540)","v":" "}]
[{"$f":"IF(Economática!AG541=\"\",\"\",Economática!AG541)","v":""},{"$f":"IF($A563=\"\",\"\",VLOOKUP(VLOOKUP($A563,Economática!$A$3:$AI$823,6,FALSE),Correção!$B$16:$C$36,2,FALSE))","v":""},{"$f":"IF(Economática!B541=\"\",\"\",Economática!B541)","v":""},{"$f":"IF($A563=\"\",\"\",IF(OR(VLOOKUP($A563,Economática!$A$3:$AI$823,8,FALSE)=0,VLOOKUP($A563,Economática!$A$3:$AI$823,8,FALSE)=\"-\"),1/0,VLOOKUP($A563,Economática!$A$3:$AI$823,8,FALSE)))","v":""},{"$f":"IF(A563=\"\",\"\",IF(ISERROR(VLOOKUP(A563,Correção!$B$2:$G$13,9,FALSE)),VLOOKUP($A563,Economática!$A$3:$AI$823,9,FALSE),VLOOKUP(A563,Correção!$B$2:$G$13,9,FALSE)))","v":""},{"$f":"IF($A563=\"\",\"\",Economática!G541)","v":""},{"$f":"IF($A563=\"\",\"\",IF(OR(VLOOKUP($A563,Economática!$A$3:$AI$823,10,FALSE)=0,VLOOKUP($A563,Economática!$A$3:$AI$823,10,FALSE)=\"-\"),1/0,VLOOKUP($A563,Economática!$A$3:$AI$823,10,FALSE)))","v":""},{"$f":"IF($A563=\"\",\"\",IF(OR(VLOOKUP($A563,Economática!$A$3:$AI$823,11,FALSE)=0,VLOOKUP($A563,Economática!$A$3:$AI$823,11,FALSE)=\"-\"),1/0,VLOOKUP($A563,Economática!$A$3:$AI$823,11,FALSE)))","v":""},{"$f":"IF($A563=\"\",\"\",IF(OR(VLOOKUP($A563,Economática!$A$3:$AI$823,12,FALSE)=0,VLOOKUP($A563,Economática!$A$3:$AI$823,12,FALSE)=\"-\"),1/0,VLOOKUP($A563,Economática!$A$3:$AI$823,12,FALSE)))","v":""},{"$f":"IF($A563=\"\",\"\",IF(OR(VLOOKUP($A563,Economática!$A$3:$AI$823,13,FALSE)=0,VLOOKUP($A563,Economática!$A$3:$AI$823,13,FALSE)=\"-\"),1/0,VLOOKUP($A563,Economática!$A$3:$AI$823,13,FALSE)))","v":""},{"$f":"IF($A563=\"\",\"\",IF(OR(VLOOKUP($A563,Economática!$A$3:$AI$823,14,FALSE)=0,VLOOKUP($A563,Economática!$A$3:$AI$823,14,FALSE)=\"-\"),1/0,VLOOKUP($A563,Economática!$A$3:$AI$823,14,FALSE)))","v":""},{"$f":"IF($A563=\"\",\"\",IF(OR(VLOOKUP($A563,Economática!$A$3:$AI$823,15,FALSE)=0,VLOOKUP($A563,Economática!$A$3:$AI$823,15,FALSE)=\"-\"),1/0,VLOOKUP($A563,Economática!$A$3:$AI$823,15,FALSE)))","v":""},{"$f":"IF($A563=\"\",\"\",IF(OR(VLOOKUP($A563,Economática!$A$3:$AI$823,16,FALSE)=0,VLOOKUP($A563,Economática!$A$3:$AI$823,16,FALSE)=\"-\"),1/0,VLOOKUP($A563,Economática!$A$3:$AI$823,16,FALSE)))","v":""},{"$f":"IF($A563=\"\",\"\",IF(OR(VLOOKUP($A563,Economática!$A$3:$AI$823,17,FALSE)=0,VLOOKUP($A563,Economática!$A$3:$AI$823,17,FALSE)=\"-\"),1/0,VLOOKUP($A563,Economática!$A$3:$AI$823,17,FALSE)))","v":""},{"$f":"IF($A563=\"\",\"\",IF(OR(VLOOKUP($A563,Economática!$A$3:$AI$823,18,FALSE)=0,VLOOKUP($A563,Economática!$A$3:$AI$823,18,FALSE)=\"-\"),1/0,VLOOKUP($A563,Economática!$A$3:$AI$823,18,FALSE)))","v":""},{"$f":"IF($A563=\"\",\"\",IF(OR(VLOOKUP($A563,Economática!$A$3:$AI$823,19,FALSE)=0,VLOOKUP($A563,Economática!$A$3:$AI$823,19,FALSE)=\"-\"),1/0,VLOOKUP($A563,Economática!$A$3:$AI$823,19,FALSE)))","v":""},{"$f":"IF($A563=\"\",\"\",VLOOKUP($A563,Economática!$A$3:$AI$823,20,FALSE)/E563)","v":""},"","","",{"$f":"IF($A563=\"\",\"\",IF(OR(VLOOKUP($A563,Economática!$A$3:$AI$823,21,FALSE)/100=0,VLOOKUP($A563,Economática!$A$3:$AI$823,21,FALSE)/100=\"-\"),1/0,VLOOKUP($A563,Economática!$A$3:$AI$823,21,FALSE)/100))","v":""},{"$f":"IF($A563=\"\",\"\",IF(OR(VLOOKUP($A563,Economática!$A$3:$AI$823,22,FALSE)/100=0,VLOOKUP($A563,Economática!$A$3:$AI$823,22,FALSE)/100=\"-\"),1/0,VLOOKUP($A563,Economática!$A$3:$AI$823,22,FALSE)/100))","v":""},{"$f":"IF($A563=\"\",\"\",IF(OR(VLOOKUP($A563,Economática!$A$3:$AI$823,23,FALSE)=0,VLOOKUP($A563,Economática!$A$3:$AI$823,23,FALSE)=\"-\"),1/0,VLOOKUP($A563,Economática!$A$3:$AI$823,23,FALSE)))","v":""},{"$f":"IF($A563=\"\",\"\",IF(OR(VLOOKUP($A563,Economática!$A$3:$AI$823,24,FALSE)=0,VLOOKUP($A563,Economática!$A$3:$AI$823,24,FALSE)=\"-\"),1/0,VLOOKUP($A563,Economática!$A$3:$AI$823,24,FALSE)))","v":""},{"$f":"IF($A563=\"\",\"\",IF(OR(VLOOKUP($A563,Economática!$A$3:$AI$823,25,FALSE)=0,VLOOKUP($A563,Economática!$A$3:$AI$823,25,FALSE)=\"-\"),1/0,VLOOKUP($A563,Economática!$A$3:$AI$823,25,FALSE)))","v":""},{"$f":"IF($A563=\"\",\"\",IF(ISERROR((F563+VLOOKUP($A563,Economática!$A$3:$AI$823,26,FALSE))/Y563),(F563+VLOOKUP($A563,Economática!$A$3:$AI$823,26,FALSE))/Y563,(F563+VLOOKUP($A563,Economática!$A$3:$AI$823,26,FALSE))/Y563))","v":""},{"$f":"IF($A563=\"\",\"\",IF(OR(-VLOOKUP($A563,Economática!$A$3:$AI$823,27,FALSE)=0,-VLOOKUP($A563,Economática!$A$3:$AI$823,27,FALSE)=\"-\"),1/0,-VLOOKUP($A563,Economática!$A$3:$AI$823,27,FALSE)))","v":""},"",{"$f":"IF($A563=\"\",\"\",IF(OR(VLOOKUP($A563,Economática!$A$3:$AI$823,28,FALSE)=0,VLOOKUP($A563,Economática!$A$3:$AI$823,28,FALSE)=\"-\"),1/0,VLOOKUP($A563,Economática!$A$3:$AI$823,28,FALSE)))","v":""},{"$f":"IF($A563=\"\",\"\",IF(OR(VLOOKUP($A563,Economática!$A$3:$AI$823,29,FALSE)=0,VLOOKUP($A563,Economática!$A$3:$AI$823,29,FALSE)=\"-\"),1/0,VLOOKUP($A563,Economática!$A$3:$AI$823,29,FALSE)))","v":""},{"$f":"IF($A563=\"\",\"\",IF(OR(VLOOKUP($A563,Economática!$A$3:$AI$823,30,FALSE)/E563=0,VLOOKUP($A563,Economática!$A$3:$AI$823,30,FALSE)/E563=\"-\",VLOOKUP($A563,Economática!$A$3:$AI$823,30,FALSE)/E563<33.33%,VLOOKUP($A563,Economática!$A$3:$AI$823,30,FALSE)/E563>100%),1/0,VLOOKUP($A563,Economática!$A$3:$AI$823,30,FALSE)/E563))","v":""},"",{"$f":"IF($A563=\"\",\"\",IF(OR(VLOOKUP($A563,Economática!$A$3:$AI$823,25,FALSE)=0,VLOOKUP($A563,Economática!$A$3:$AI$823,25,FALSE)=\"-\"),1/0,VLOOKUP($A563,Economática!$A$3:$AI$823,25,FALSE)))","v":""},{"$f":"CONCATENATE(Economática!B541,\" \",Economática!C541)","v":" "}]
[{"$f":"IF(Economática!AG542=\"\",\"\",Economática!AG542)","v":""},{"$f":"IF($A564=\"\",\"\",VLOOKUP(VLOOKUP($A564,Economática!$A$3:$AI$823,6,FALSE),Correção!$B$16:$C$36,2,FALSE))","v":""},{"$f":"IF(Economática!B542=\"\",\"\",Economática!B542)","v":""},{"$f":"IF($A564=\"\",\"\",IF(OR(VLOOKUP($A564,Economática!$A$3:$AI$823,8,FALSE)=0,VLOOKUP($A564,Economática!$A$3:$AI$823,8,FALSE)=\"-\"),1/0,VLOOKUP($A564,Economática!$A$3:$AI$823,8,FALSE)))","v":""},{"$f":"IF(A564=\"\",\"\",IF(ISERROR(VLOOKUP(A564,Correção!$B$2:$G$13,9,FALSE)),VLOOKUP($A564,Economática!$A$3:$AI$823,9,FALSE),VLOOKUP(A564,Correção!$B$2:$G$13,9,FALSE)))","v":""},{"$f":"IF($A564=\"\",\"\",Economática!G542)","v":""},{"$f":"IF($A564=\"\",\"\",IF(OR(VLOOKUP($A564,Economática!$A$3:$AI$823,10,FALSE)=0,VLOOKUP($A564,Economática!$A$3:$AI$823,10,FALSE)=\"-\"),1/0,VLOOKUP($A564,Economática!$A$3:$AI$823,10,FALSE)))","v":""},{"$f":"IF($A564=\"\",\"\",IF(OR(VLOOKUP($A564,Economática!$A$3:$AI$823,11,FALSE)=0,VLOOKUP($A564,Economática!$A$3:$AI$823,11,FALSE)=\"-\"),1/0,VLOOKUP($A564,Economática!$A$3:$AI$823,11,FALSE)))","v":""},{"$f":"IF($A564=\"\",\"\",IF(OR(VLOOKUP($A564,Economática!$A$3:$AI$823,12,FALSE)=0,VLOOKUP($A564,Economática!$A$3:$AI$823,12,FALSE)=\"-\"),1/0,VLOOKUP($A564,Economática!$A$3:$AI$823,12,FALSE)))","v":""},{"$f":"IF($A564=\"\",\"\",IF(OR(VLOOKUP($A564,Economática!$A$3:$AI$823,13,FALSE)=0,VLOOKUP($A564,Economática!$A$3:$AI$823,13,FALSE)=\"-\"),1/0,VLOOKUP($A564,Economática!$A$3:$AI$823,13,FALSE)))","v":""},{"$f":"IF($A564=\"\",\"\",IF(OR(VLOOKUP($A564,Economática!$A$3:$AI$823,14,FALSE)=0,VLOOKUP($A564,Economática!$A$3:$AI$823,14,FALSE)=\"-\"),1/0,VLOOKUP($A564,Economática!$A$3:$AI$823,14,FALSE)))","v":""},{"$f":"IF($A564=\"\",\"\",IF(OR(VLOOKUP($A564,Economática!$A$3:$AI$823,15,FALSE)=0,VLOOKUP($A564,Economática!$A$3:$AI$823,15,FALSE)=\"-\"),1/0,VLOOKUP($A564,Economática!$A$3:$AI$823,15,FALSE)))","v":""},{"$f":"IF($A564=\"\",\"\",IF(OR(VLOOKUP($A564,Economática!$A$3:$AI$823,16,FALSE)=0,VLOOKUP($A564,Economática!$A$3:$AI$823,16,FALSE)=\"-\"),1/0,VLOOKUP($A564,Economática!$A$3:$AI$823,16,FALSE)))","v":""},{"$f":"IF($A564=\"\",\"\",IF(OR(VLOOKUP($A564,Economática!$A$3:$AI$823,17,FALSE)=0,VLOOKUP($A564,Economática!$A$3:$AI$823,17,FALSE)=\"-\"),1/0,VLOOKUP($A564,Economática!$A$3:$AI$823,17,FALSE)))","v":""},{"$f":"IF($A564=\"\",\"\",IF(OR(VLOOKUP($A564,Economática!$A$3:$AI$823,18,FALSE)=0,VLOOKUP($A564,Economática!$A$3:$AI$823,18,FALSE)=\"-\"),1/0,VLOOKUP($A564,Economática!$A$3:$AI$823,18,FALSE)))","v":""},{"$f":"IF($A564=\"\",\"\",IF(OR(VLOOKUP($A564,Economática!$A$3:$AI$823,19,FALSE)=0,VLOOKUP($A564,Economática!$A$3:$AI$823,19,FALSE)=\"-\"),1/0,VLOOKUP($A564,Economática!$A$3:$AI$823,19,FALSE)))","v":""},{"$f":"IF($A564=\"\",\"\",VLOOKUP($A564,Economática!$A$3:$AI$823,20,FALSE)/E564)","v":""},"","","",{"$f":"IF($A564=\"\",\"\",IF(OR(VLOOKUP($A564,Economática!$A$3:$AI$823,21,FALSE)/100=0,VLOOKUP($A564,Economática!$A$3:$AI$823,21,FALSE)/100=\"-\"),1/0,VLOOKUP($A564,Economática!$A$3:$AI$823,21,FALSE)/100))","v":""},{"$f":"IF($A564=\"\",\"\",IF(OR(VLOOKUP($A564,Economática!$A$3:$AI$823,22,FALSE)/100=0,VLOOKUP($A564,Economática!$A$3:$AI$823,22,FALSE)/100=\"-\"),1/0,VLOOKUP($A564,Economática!$A$3:$AI$823,22,FALSE)/100))","v":""},{"$f":"IF($A564=\"\",\"\",IF(OR(VLOOKUP($A564,Economática!$A$3:$AI$823,23,FALSE)=0,VLOOKUP($A564,Economática!$A$3:$AI$823,23,FALSE)=\"-\"),1/0,VLOOKUP($A564,Economática!$A$3:$AI$823,23,FALSE)))","v":""},{"$f":"IF($A564=\"\",\"\",IF(OR(VLOOKUP($A564,Economática!$A$3:$AI$823,24,FALSE)=0,VLOOKUP($A564,Economática!$A$3:$AI$823,24,FALSE)=\"-\"),1/0,VLOOKUP($A564,Economática!$A$3:$AI$823,24,FALSE)))","v":""},{"$f":"IF($A564=\"\",\"\",IF(OR(VLOOKUP($A564,Economática!$A$3:$AI$823,25,FALSE)=0,VLOOKUP($A564,Economática!$A$3:$AI$823,25,FALSE)=\"-\"),1/0,VLOOKUP($A564,Economática!$A$3:$AI$823,25,FALSE)))","v":""},{"$f":"IF($A564=\"\",\"\",IF(ISERROR((F564+VLOOKUP($A564,Economática!$A$3:$AI$823,26,FALSE))/Y564),(F564+VLOOKUP($A564,Economática!$A$3:$AI$823,26,FALSE))/Y564,(F564+VLOOKUP($A564,Economática!$A$3:$AI$823,26,FALSE))/Y564))","v":""},{"$f":"IF($A564=\"\",\"\",IF(OR(-VLOOKUP($A564,Economática!$A$3:$AI$823,27,FALSE)=0,-VLOOKUP($A564,Economática!$A$3:$AI$823,27,FALSE)=\"-\"),1/0,-VLOOKUP($A564,Economática!$A$3:$AI$823,27,FALSE)))","v":""},"",{"$f":"IF($A564=\"\",\"\",IF(OR(VLOOKUP($A564,Economática!$A$3:$AI$823,28,FALSE)=0,VLOOKUP($A564,Economática!$A$3:$AI$823,28,FALSE)=\"-\"),1/0,VLOOKUP($A564,Economática!$A$3:$AI$823,28,FALSE)))","v":""},{"$f":"IF($A564=\"\",\"\",IF(OR(VLOOKUP($A564,Economática!$A$3:$AI$823,29,FALSE)=0,VLOOKUP($A564,Economática!$A$3:$AI$823,29,FALSE)=\"-\"),1/0,VLOOKUP($A564,Economática!$A$3:$AI$823,29,FALSE)))","v":""},{"$f":"IF($A564=\"\",\"\",IF(OR(VLOOKUP($A564,Economática!$A$3:$AI$823,30,FALSE)/E564=0,VLOOKUP($A564,Economática!$A$3:$AI$823,30,FALSE)/E564=\"-\",VLOOKUP($A564,Economática!$A$3:$AI$823,30,FALSE)/E564<33.33%,VLOOKUP($A564,Economática!$A$3:$AI$823,30,FALSE)/E564>100%),1/0,VLOOKUP($A564,Economática!$A$3:$AI$823,30,FALSE)/E564))","v":""},"",{"$f":"IF($A564=\"\",\"\",IF(OR(VLOOKUP($A564,Economática!$A$3:$AI$823,25,FALSE)=0,VLOOKUP($A564,Economática!$A$3:$AI$823,25,FALSE)=\"-\"),1/0,VLOOKUP($A564,Economática!$A$3:$AI$823,25,FALSE)))","v":""},{"$f":"CONCATENATE(Economática!B542,\" \",Economática!C542)","v":" "}]
[{"$f":"IF(Economática!AG543=\"\",\"\",Economática!AG543)","v":""},{"$f":"IF($A565=\"\",\"\",VLOOKUP(VLOOKUP($A565,Economática!$A$3:$AI$823,6,FALSE),Correção!$B$16:$C$36,2,FALSE))","v":""},{"$f":"IF(Economática!B543=\"\",\"\",Economática!B543)","v":""},{"$f":"IF($A565=\"\",\"\",IF(OR(VLOOKUP($A565,Economática!$A$3:$AI$823,8,FALSE)=0,VLOOKUP($A565,Economática!$A$3:$AI$823,8,FALSE)=\"-\"),1/0,VLOOKUP($A565,Economática!$A$3:$AI$823,8,FALSE)))","v":""},{"$f":"IF(A565=\"\",\"\",IF(ISERROR(VLOOKUP(A565,Correção!$B$2:$G$13,9,FALSE)),VLOOKUP($A565,Economática!$A$3:$AI$823,9,FALSE),VLOOKUP(A565,Correção!$B$2:$G$13,9,FALSE)))","v":""},{"$f":"IF($A565=\"\",\"\",Economática!G543)","v":""},{"$f":"IF($A565=\"\",\"\",IF(OR(VLOOKUP($A565,Economática!$A$3:$AI$823,10,FALSE)=0,VLOOKUP($A565,Economática!$A$3:$AI$823,10,FALSE)=\"-\"),1/0,VLOOKUP($A565,Economática!$A$3:$AI$823,10,FALSE)))","v":""},{"$f":"IF($A565=\"\",\"\",IF(OR(VLOOKUP($A565,Economática!$A$3:$AI$823,11,FALSE)=0,VLOOKUP($A565,Economática!$A$3:$AI$823,11,FALSE)=\"-\"),1/0,VLOOKUP($A565,Economática!$A$3:$AI$823,11,FALSE)))","v":""},{"$f":"IF($A565=\"\",\"\",IF(OR(VLOOKUP($A565,Economática!$A$3:$AI$823,12,FALSE)=0,VLOOKUP($A565,Economática!$A$3:$AI$823,12,FALSE)=\"-\"),1/0,VLOOKUP($A565,Economática!$A$3:$AI$823,12,FALSE)))","v":""},{"$f":"IF($A565=\"\",\"\",IF(OR(VLOOKUP($A565,Economática!$A$3:$AI$823,13,FALSE)=0,VLOOKUP($A565,Economática!$A$3:$AI$823,13,FALSE)=\"-\"),1/0,VLOOKUP($A565,Economática!$A$3:$AI$823,13,FALSE)))","v":""},{"$f":"IF($A565=\"\",\"\",IF(OR(VLOOKUP($A565,Economática!$A$3:$AI$823,14,FALSE)=0,VLOOKUP($A565,Economática!$A$3:$AI$823,14,FALSE)=\"-\"),1/0,VLOOKUP($A565,Economática!$A$3:$AI$823,14,FALSE)))","v":""},{"$f":"IF($A565=\"\",\"\",IF(OR(VLOOKUP($A565,Economática!$A$3:$AI$823,15,FALSE)=0,VLOOKUP($A565,Economática!$A$3:$AI$823,15,FALSE)=\"-\"),1/0,VLOOKUP($A565,Economática!$A$3:$AI$823,15,FALSE)))","v":""},{"$f":"IF($A565=\"\",\"\",IF(OR(VLOOKUP($A565,Economática!$A$3:$AI$823,16,FALSE)=0,VLOOKUP($A565,Economática!$A$3:$AI$823,16,FALSE)=\"-\"),1/0,VLOOKUP($A565,Economática!$A$3:$AI$823,16,FALSE)))","v":""},{"$f":"IF($A565=\"\",\"\",IF(OR(VLOOKUP($A565,Economática!$A$3:$AI$823,17,FALSE)=0,VLOOKUP($A565,Economática!$A$3:$AI$823,17,FALSE)=\"-\"),1/0,VLOOKUP($A565,Economática!$A$3:$AI$823,17,FALSE)))","v":""},{"$f":"IF($A565=\"\",\"\",IF(OR(VLOOKUP($A565,Economática!$A$3:$AI$823,18,FALSE)=0,VLOOKUP($A565,Economática!$A$3:$AI$823,18,FALSE)=\"-\"),1/0,VLOOKUP($A565,Economática!$A$3:$AI$823,18,FALSE)))","v":""},{"$f":"IF($A565=\"\",\"\",IF(OR(VLOOKUP($A565,Economática!$A$3:$AI$823,19,FALSE)=0,VLOOKUP($A565,Economática!$A$3:$AI$823,19,FALSE)=\"-\"),1/0,VLOOKUP($A565,Economática!$A$3:$AI$823,19,FALSE)))","v":""},{"$f":"IF($A565=\"\",\"\",VLOOKUP($A565,Economática!$A$3:$AI$823,20,FALSE)/E565)","v":""},"","","",{"$f":"IF($A565=\"\",\"\",IF(OR(VLOOKUP($A565,Economática!$A$3:$AI$823,21,FALSE)/100=0,VLOOKUP($A565,Economática!$A$3:$AI$823,21,FALSE)/100=\"-\"),1/0,VLOOKUP($A565,Economática!$A$3:$AI$823,21,FALSE)/100))","v":""},{"$f":"IF($A565=\"\",\"\",IF(OR(VLOOKUP($A565,Economática!$A$3:$AI$823,22,FALSE)/100=0,VLOOKUP($A565,Economática!$A$3:$AI$823,22,FALSE)/100=\"-\"),1/0,VLOOKUP($A565,Economática!$A$3:$AI$823,22,FALSE)/100))","v":""},{"$f":"IF($A565=\"\",\"\",IF(OR(VLOOKUP($A565,Economática!$A$3:$AI$823,23,FALSE)=0,VLOOKUP($A565,Economática!$A$3:$AI$823,23,FALSE)=\"-\"),1/0,VLOOKUP($A565,Economática!$A$3:$AI$823,23,FALSE)))","v":""},{"$f":"IF($A565=\"\",\"\",IF(OR(VLOOKUP($A565,Economática!$A$3:$AI$823,24,FALSE)=0,VLOOKUP($A565,Economática!$A$3:$AI$823,24,FALSE)=\"-\"),1/0,VLOOKUP($A565,Economática!$A$3:$AI$823,24,FALSE)))","v":""},{"$f":"IF($A565=\"\",\"\",IF(OR(VLOOKUP($A565,Economática!$A$3:$AI$823,25,FALSE)=0,VLOOKUP($A565,Economática!$A$3:$AI$823,25,FALSE)=\"-\"),1/0,VLOOKUP($A565,Economática!$A$3:$AI$823,25,FALSE)))","v":""},{"$f":"IF($A565=\"\",\"\",IF(ISERROR((F565+VLOOKUP($A565,Economática!$A$3:$AI$823,26,FALSE))/Y565),(F565+VLOOKUP($A565,Economática!$A$3:$AI$823,26,FALSE))/Y565,(F565+VLOOKUP($A565,Economática!$A$3:$AI$823,26,FALSE))/Y565))","v":""},{"$f":"IF($A565=\"\",\"\",IF(OR(-VLOOKUP($A565,Economática!$A$3:$AI$823,27,FALSE)=0,-VLOOKUP($A565,Economática!$A$3:$AI$823,27,FALSE)=\"-\"),1/0,-VLOOKUP($A565,Economática!$A$3:$AI$823,27,FALSE)))","v":""},"",{"$f":"IF($A565=\"\",\"\",IF(OR(VLOOKUP($A565,Economática!$A$3:$AI$823,28,FALSE)=0,VLOOKUP($A565,Economática!$A$3:$AI$823,28,FALSE)=\"-\"),1/0,VLOOKUP($A565,Economática!$A$3:$AI$823,28,FALSE)))","v":""},{"$f":"IF($A565=\"\",\"\",IF(OR(VLOOKUP($A565,Economática!$A$3:$AI$823,29,FALSE)=0,VLOOKUP($A565,Economática!$A$3:$AI$823,29,FALSE)=\"-\"),1/0,VLOOKUP($A565,Economática!$A$3:$AI$823,29,FALSE)))","v":""},{"$f":"IF($A565=\"\",\"\",IF(OR(VLOOKUP($A565,Economática!$A$3:$AI$823,30,FALSE)/E565=0,VLOOKUP($A565,Economática!$A$3:$AI$823,30,FALSE)/E565=\"-\",VLOOKUP($A565,Economática!$A$3:$AI$823,30,FALSE)/E565<33.33%,VLOOKUP($A565,Economática!$A$3:$AI$823,30,FALSE)/E565>100%),1/0,VLOOKUP($A565,Economática!$A$3:$AI$823,30,FALSE)/E565))","v":""},"",{"$f":"IF($A565=\"\",\"\",IF(OR(VLOOKUP($A565,Economática!$A$3:$AI$823,25,FALSE)=0,VLOOKUP($A565,Economática!$A$3:$AI$823,25,FALSE)=\"-\"),1/0,VLOOKUP($A565,Economática!$A$3:$AI$823,25,FALSE)))","v":""},{"$f":"CONCATENATE(Economática!B543,\" \",Economática!C543)","v":" "}]
[{"$f":"IF(Economática!AG544=\"\",\"\",Economática!AG544)","v":""},{"$f":"IF($A566=\"\",\"\",VLOOKUP(VLOOKUP($A566,Economática!$A$3:$AI$823,6,FALSE),Correção!$B$16:$C$36,2,FALSE))","v":""},{"$f":"IF(Economática!B544=\"\",\"\",Economática!B544)","v":""},{"$f":"IF($A566=\"\",\"\",IF(OR(VLOOKUP($A566,Economática!$A$3:$AI$823,8,FALSE)=0,VLOOKUP($A566,Economática!$A$3:$AI$823,8,FALSE)=\"-\"),1/0,VLOOKUP($A566,Economática!$A$3:$AI$823,8,FALSE)))","v":""},{"$f":"IF(A566=\"\",\"\",IF(ISERROR(VLOOKUP(A566,Correção!$B$2:$G$13,9,FALSE)),VLOOKUP($A566,Economática!$A$3:$AI$823,9,FALSE),VLOOKUP(A566,Correção!$B$2:$G$13,9,FALSE)))","v":""},{"$f":"IF($A566=\"\",\"\",Economática!G544)","v":""},{"$f":"IF($A566=\"\",\"\",IF(OR(VLOOKUP($A566,Economática!$A$3:$AI$823,10,FALSE)=0,VLOOKUP($A566,Economática!$A$3:$AI$823,10,FALSE)=\"-\"),1/0,VLOOKUP($A566,Economática!$A$3:$AI$823,10,FALSE)))","v":""},{"$f":"IF($A566=\"\",\"\",IF(OR(VLOOKUP($A566,Economática!$A$3:$AI$823,11,FALSE)=0,VLOOKUP($A566,Economática!$A$3:$AI$823,11,FALSE)=\"-\"),1/0,VLOOKUP($A566,Economática!$A$3:$AI$823,11,FALSE)))","v":""},{"$f":"IF($A566=\"\",\"\",IF(OR(VLOOKUP($A566,Economática!$A$3:$AI$823,12,FALSE)=0,VLOOKUP($A566,Economática!$A$3:$AI$823,12,FALSE)=\"-\"),1/0,VLOOKUP($A566,Economática!$A$3:$AI$823,12,FALSE)))","v":""},{"$f":"IF($A566=\"\",\"\",IF(OR(VLOOKUP($A566,Economática!$A$3:$AI$823,13,FALSE)=0,VLOOKUP($A566,Economática!$A$3:$AI$823,13,FALSE)=\"-\"),1/0,VLOOKUP($A566,Economática!$A$3:$AI$823,13,FALSE)))","v":""},{"$f":"IF($A566=\"\",\"\",IF(OR(VLOOKUP($A566,Economática!$A$3:$AI$823,14,FALSE)=0,VLOOKUP($A566,Economática!$A$3:$AI$823,14,FALSE)=\"-\"),1/0,VLOOKUP($A566,Economática!$A$3:$AI$823,14,FALSE)))","v":""},{"$f":"IF($A566=\"\",\"\",IF(OR(VLOOKUP($A566,Economática!$A$3:$AI$823,15,FALSE)=0,VLOOKUP($A566,Economática!$A$3:$AI$823,15,FALSE)=\"-\"),1/0,VLOOKUP($A566,Economática!$A$3:$AI$823,15,FALSE)))","v":""},{"$f":"IF($A566=\"\",\"\",IF(OR(VLOOKUP($A566,Economática!$A$3:$AI$823,16,FALSE)=0,VLOOKUP($A566,Economática!$A$3:$AI$823,16,FALSE)=\"-\"),1/0,VLOOKUP($A566,Economática!$A$3:$AI$823,16,FALSE)))","v":""},{"$f":"IF($A566=\"\",\"\",IF(OR(VLOOKUP($A566,Economática!$A$3:$AI$823,17,FALSE)=0,VLOOKUP($A566,Economática!$A$3:$AI$823,17,FALSE)=\"-\"),1/0,VLOOKUP($A566,Economática!$A$3:$AI$823,17,FALSE)))","v":""},{"$f":"IF($A566=\"\",\"\",IF(OR(VLOOKUP($A566,Economática!$A$3:$AI$823,18,FALSE)=0,VLOOKUP($A566,Economática!$A$3:$AI$823,18,FALSE)=\"-\"),1/0,VLOOKUP($A566,Economática!$A$3:$AI$823,18,FALSE)))","v":""},{"$f":"IF($A566=\"\",\"\",IF(OR(VLOOKUP($A566,Economática!$A$3:$AI$823,19,FALSE)=0,VLOOKUP($A566,Economática!$A$3:$AI$823,19,FALSE)=\"-\"),1/0,VLOOKUP($A566,Economática!$A$3:$AI$823,19,FALSE)))","v":""},{"$f":"IF($A566=\"\",\"\",VLOOKUP($A566,Economática!$A$3:$AI$823,20,FALSE)/E566)","v":""},"","","",{"$f":"IF($A566=\"\",\"\",IF(OR(VLOOKUP($A566,Economática!$A$3:$AI$823,21,FALSE)/100=0,VLOOKUP($A566,Economática!$A$3:$AI$823,21,FALSE)/100=\"-\"),1/0,VLOOKUP($A566,Economática!$A$3:$AI$823,21,FALSE)/100))","v":""},{"$f":"IF($A566=\"\",\"\",IF(OR(VLOOKUP($A566,Economática!$A$3:$AI$823,22,FALSE)/100=0,VLOOKUP($A566,Economática!$A$3:$AI$823,22,FALSE)/100=\"-\"),1/0,VLOOKUP($A566,Economática!$A$3:$AI$823,22,FALSE)/100))","v":""},{"$f":"IF($A566=\"\",\"\",IF(OR(VLOOKUP($A566,Economática!$A$3:$AI$823,23,FALSE)=0,VLOOKUP($A566,Economática!$A$3:$AI$823,23,FALSE)=\"-\"),1/0,VLOOKUP($A566,Economática!$A$3:$AI$823,23,FALSE)))","v":""},{"$f":"IF($A566=\"\",\"\",IF(OR(VLOOKUP($A566,Economática!$A$3:$AI$823,24,FALSE)=0,VLOOKUP($A566,Economática!$A$3:$AI$823,24,FALSE)=\"-\"),1/0,VLOOKUP($A566,Economática!$A$3:$AI$823,24,FALSE)))","v":""},{"$f":"IF($A566=\"\",\"\",IF(OR(VLOOKUP($A566,Economática!$A$3:$AI$823,25,FALSE)=0,VLOOKUP($A566,Economática!$A$3:$AI$823,25,FALSE)=\"-\"),1/0,VLOOKUP($A566,Economática!$A$3:$AI$823,25,FALSE)))","v":""},{"$f":"IF($A566=\"\",\"\",IF(ISERROR((F566+VLOOKUP($A566,Economática!$A$3:$AI$823,26,FALSE))/Y566),(F566+VLOOKUP($A566,Economática!$A$3:$AI$823,26,FALSE))/Y566,(F566+VLOOKUP($A566,Economática!$A$3:$AI$823,26,FALSE))/Y566))","v":""},{"$f":"IF($A566=\"\",\"\",IF(OR(-VLOOKUP($A566,Economática!$A$3:$AI$823,27,FALSE)=0,-VLOOKUP($A566,Economática!$A$3:$AI$823,27,FALSE)=\"-\"),1/0,-VLOOKUP($A566,Economática!$A$3:$AI$823,27,FALSE)))","v":""},"",{"$f":"IF($A566=\"\",\"\",IF(OR(VLOOKUP($A566,Economática!$A$3:$AI$823,28,FALSE)=0,VLOOKUP($A566,Economática!$A$3:$AI$823,28,FALSE)=\"-\"),1/0,VLOOKUP($A566,Economática!$A$3:$AI$823,28,FALSE)))","v":""},{"$f":"IF($A566=\"\",\"\",IF(OR(VLOOKUP($A566,Economática!$A$3:$AI$823,29,FALSE)=0,VLOOKUP($A566,Economática!$A$3:$AI$823,29,FALSE)=\"-\"),1/0,VLOOKUP($A566,Economática!$A$3:$AI$823,29,FALSE)))","v":""},{"$f":"IF($A566=\"\",\"\",IF(OR(VLOOKUP($A566,Economática!$A$3:$AI$823,30,FALSE)/E566=0,VLOOKUP($A566,Economática!$A$3:$AI$823,30,FALSE)/E566=\"-\",VLOOKUP($A566,Economática!$A$3:$AI$823,30,FALSE)/E566<33.33%,VLOOKUP($A566,Economática!$A$3:$AI$823,30,FALSE)/E566>100%),1/0,VLOOKUP($A566,Economática!$A$3:$AI$823,30,FALSE)/E566))","v":""},"",{"$f":"IF($A566=\"\",\"\",IF(OR(VLOOKUP($A566,Economática!$A$3:$AI$823,25,FALSE)=0,VLOOKUP($A566,Economática!$A$3:$AI$823,25,FALSE)=\"-\"),1/0,VLOOKUP($A566,Economática!$A$3:$AI$823,25,FALSE)))","v":""},{"$f":"CONCATENATE(Economática!B544,\" \",Economática!C544)","v":" "}]
[{"$f":"IF(Economática!AG545=\"\",\"\",Economática!AG545)","v":""},{"$f":"IF($A567=\"\",\"\",VLOOKUP(VLOOKUP($A567,Economática!$A$3:$AI$823,6,FALSE),Correção!$B$16:$C$36,2,FALSE))","v":""},{"$f":"IF(Economática!B545=\"\",\"\",Economática!B545)","v":""},{"$f":"IF($A567=\"\",\"\",IF(OR(VLOOKUP($A567,Economática!$A$3:$AI$823,8,FALSE)=0,VLOOKUP($A567,Economática!$A$3:$AI$823,8,FALSE)=\"-\"),1/0,VLOOKUP($A567,Economática!$A$3:$AI$823,8,FALSE)))","v":""},{"$f":"IF(A567=\"\",\"\",IF(ISERROR(VLOOKUP(A567,Correção!$B$2:$G$13,9,FALSE)),VLOOKUP($A567,Economática!$A$3:$AI$823,9,FALSE),VLOOKUP(A567,Correção!$B$2:$G$13,9,FALSE)))","v":""},{"$f":"IF($A567=\"\",\"\",Economática!G545)","v":""},{"$f":"IF($A567=\"\",\"\",IF(OR(VLOOKUP($A567,Economática!$A$3:$AI$823,10,FALSE)=0,VLOOKUP($A567,Economática!$A$3:$AI$823,10,FALSE)=\"-\"),1/0,VLOOKUP($A567,Economática!$A$3:$AI$823,10,FALSE)))","v":""},{"$f":"IF($A567=\"\",\"\",IF(OR(VLOOKUP($A567,Economática!$A$3:$AI$823,11,FALSE)=0,VLOOKUP($A567,Economática!$A$3:$AI$823,11,FALSE)=\"-\"),1/0,VLOOKUP($A567,Economática!$A$3:$AI$823,11,FALSE)))","v":""},{"$f":"IF($A567=\"\",\"\",IF(OR(VLOOKUP($A567,Economática!$A$3:$AI$823,12,FALSE)=0,VLOOKUP($A567,Economática!$A$3:$AI$823,12,FALSE)=\"-\"),1/0,VLOOKUP($A567,Economática!$A$3:$AI$823,12,FALSE)))","v":""},{"$f":"IF($A567=\"\",\"\",IF(OR(VLOOKUP($A567,Economática!$A$3:$AI$823,13,FALSE)=0,VLOOKUP($A567,Economática!$A$3:$AI$823,13,FALSE)=\"-\"),1/0,VLOOKUP($A567,Economática!$A$3:$AI$823,13,FALSE)))","v":""},{"$f":"IF($A567=\"\",\"\",IF(OR(VLOOKUP($A567,Economática!$A$3:$AI$823,14,FALSE)=0,VLOOKUP($A567,Economática!$A$3:$AI$823,14,FALSE)=\"-\"),1/0,VLOOKUP($A567,Economática!$A$3:$AI$823,14,FALSE)))","v":""},{"$f":"IF($A567=\"\",\"\",IF(OR(VLOOKUP($A567,Economática!$A$3:$AI$823,15,FALSE)=0,VLOOKUP($A567,Economática!$A$3:$AI$823,15,FALSE)=\"-\"),1/0,VLOOKUP($A567,Economática!$A$3:$AI$823,15,FALSE)))","v":""},{"$f":"IF($A567=\"\",\"\",IF(OR(VLOOKUP($A567,Economática!$A$3:$AI$823,16,FALSE)=0,VLOOKUP($A567,Economática!$A$3:$AI$823,16,FALSE)=\"-\"),1/0,VLOOKUP($A567,Economática!$A$3:$AI$823,16,FALSE)))","v":""},{"$f":"IF($A567=\"\",\"\",IF(OR(VLOOKUP($A567,Economática!$A$3:$AI$823,17,FALSE)=0,VLOOKUP($A567,Economática!$A$3:$AI$823,17,FALSE)=\"-\"),1/0,VLOOKUP($A567,Economática!$A$3:$AI$823,17,FALSE)))","v":""},{"$f":"IF($A567=\"\",\"\",IF(OR(VLOOKUP($A567,Economática!$A$3:$AI$823,18,FALSE)=0,VLOOKUP($A567,Economática!$A$3:$AI$823,18,FALSE)=\"-\"),1/0,VLOOKUP($A567,Economática!$A$3:$AI$823,18,FALSE)))","v":""},{"$f":"IF($A567=\"\",\"\",IF(OR(VLOOKUP($A567,Economática!$A$3:$AI$823,19,FALSE)=0,VLOOKUP($A567,Economática!$A$3:$AI$823,19,FALSE)=\"-\"),1/0,VLOOKUP($A567,Economática!$A$3:$AI$823,19,FALSE)))","v":""},{"$f":"IF($A567=\"\",\"\",VLOOKUP($A567,Economática!$A$3:$AI$823,20,FALSE)/E567)","v":""},"","","",{"$f":"IF($A567=\"\",\"\",IF(OR(VLOOKUP($A567,Economática!$A$3:$AI$823,21,FALSE)/100=0,VLOOKUP($A567,Economática!$A$3:$AI$823,21,FALSE)/100=\"-\"),1/0,VLOOKUP($A567,Economática!$A$3:$AI$823,21,FALSE)/100))","v":""},{"$f":"IF($A567=\"\",\"\",IF(OR(VLOOKUP($A567,Economática!$A$3:$AI$823,22,FALSE)/100=0,VLOOKUP($A567,Economática!$A$3:$AI$823,22,FALSE)/100=\"-\"),1/0,VLOOKUP($A567,Economática!$A$3:$AI$823,22,FALSE)/100))","v":""},{"$f":"IF($A567=\"\",\"\",IF(OR(VLOOKUP($A567,Economática!$A$3:$AI$823,23,FALSE)=0,VLOOKUP($A567,Economática!$A$3:$AI$823,23,FALSE)=\"-\"),1/0,VLOOKUP($A567,Economática!$A$3:$AI$823,23,FALSE)))","v":""},{"$f":"IF($A567=\"\",\"\",IF(OR(VLOOKUP($A567,Economática!$A$3:$AI$823,24,FALSE)=0,VLOOKUP($A567,Economática!$A$3:$AI$823,24,FALSE)=\"-\"),1/0,VLOOKUP($A567,Economática!$A$3:$AI$823,24,FALSE)))","v":""},{"$f":"IF($A567=\"\",\"\",IF(OR(VLOOKUP($A567,Economática!$A$3:$AI$823,25,FALSE)=0,VLOOKUP($A567,Economática!$A$3:$AI$823,25,FALSE)=\"-\"),1/0,VLOOKUP($A567,Economática!$A$3:$AI$823,25,FALSE)))","v":""},{"$f":"IF($A567=\"\",\"\",IF(ISERROR((F567+VLOOKUP($A567,Economática!$A$3:$AI$823,26,FALSE))/Y567),(F567+VLOOKUP($A567,Economática!$A$3:$AI$823,26,FALSE))/Y567,(F567+VLOOKUP($A567,Economática!$A$3:$AI$823,26,FALSE))/Y567))","v":""},{"$f":"IF($A567=\"\",\"\",IF(OR(-VLOOKUP($A567,Economática!$A$3:$AI$823,27,FALSE)=0,-VLOOKUP($A567,Economática!$A$3:$AI$823,27,FALSE)=\"-\"),1/0,-VLOOKUP($A567,Economática!$A$3:$AI$823,27,FALSE)))","v":""},"",{"$f":"IF($A567=\"\",\"\",IF(OR(VLOOKUP($A567,Economática!$A$3:$AI$823,28,FALSE)=0,VLOOKUP($A567,Economática!$A$3:$AI$823,28,FALSE)=\"-\"),1/0,VLOOKUP($A567,Economática!$A$3:$AI$823,28,FALSE)))","v":""},{"$f":"IF($A567=\"\",\"\",IF(OR(VLOOKUP($A567,Economática!$A$3:$AI$823,29,FALSE)=0,VLOOKUP($A567,Economática!$A$3:$AI$823,29,FALSE)=\"-\"),1/0,VLOOKUP($A567,Economática!$A$3:$AI$823,29,FALSE)))","v":""},{"$f":"IF($A567=\"\",\"\",IF(OR(VLOOKUP($A567,Economática!$A$3:$AI$823,30,FALSE)/E567=0,VLOOKUP($A567,Economática!$A$3:$AI$823,30,FALSE)/E567=\"-\",VLOOKUP($A567,Economática!$A$3:$AI$823,30,FALSE)/E567<33.33%,VLOOKUP($A567,Economática!$A$3:$AI$823,30,FALSE)/E567>100%),1/0,VLOOKUP($A567,Economática!$A$3:$AI$823,30,FALSE)/E567))","v":""},"",{"$f":"IF($A567=\"\",\"\",IF(OR(VLOOKUP($A567,Economática!$A$3:$AI$823,25,FALSE)=0,VLOOKUP($A567,Economática!$A$3:$AI$823,25,FALSE)=\"-\"),1/0,VLOOKUP($A567,Economática!$A$3:$AI$823,25,FALSE)))","v":""},{"$f":"CONCATENATE(Economática!B545,\" \",Economática!C545)","v":" "}]
[{"$f":"IF(Economática!AG546=\"\",\"\",Economática!AG546)","v":""},{"$f":"IF($A568=\"\",\"\",VLOOKUP(VLOOKUP($A568,Economática!$A$3:$AI$823,6,FALSE),Correção!$B$16:$C$36,2,FALSE))","v":""},{"$f":"IF(Economática!B546=\"\",\"\",Economática!B546)","v":""},{"$f":"IF($A568=\"\",\"\",IF(OR(VLOOKUP($A568,Economática!$A$3:$AI$823,8,FALSE)=0,VLOOKUP($A568,Economática!$A$3:$AI$823,8,FALSE)=\"-\"),1/0,VLOOKUP($A568,Economática!$A$3:$AI$823,8,FALSE)))","v":""},{"$f":"IF(A568=\"\",\"\",IF(ISERROR(VLOOKUP(A568,Correção!$B$2:$G$13,9,FALSE)),VLOOKUP($A568,Economática!$A$3:$AI$823,9,FALSE),VLOOKUP(A568,Correção!$B$2:$G$13,9,FALSE)))","v":""},{"$f":"IF($A568=\"\",\"\",Economática!G546)","v":""},{"$f":"IF($A568=\"\",\"\",IF(OR(VLOOKUP($A568,Economática!$A$3:$AI$823,10,FALSE)=0,VLOOKUP($A568,Economática!$A$3:$AI$823,10,FALSE)=\"-\"),1/0,VLOOKUP($A568,Economática!$A$3:$AI$823,10,FALSE)))","v":""},{"$f":"IF($A568=\"\",\"\",IF(OR(VLOOKUP($A568,Economática!$A$3:$AI$823,11,FALSE)=0,VLOOKUP($A568,Economática!$A$3:$AI$823,11,FALSE)=\"-\"),1/0,VLOOKUP($A568,Economática!$A$3:$AI$823,11,FALSE)))","v":""},{"$f":"IF($A568=\"\",\"\",IF(OR(VLOOKUP($A568,Economática!$A$3:$AI$823,12,FALSE)=0,VLOOKUP($A568,Economática!$A$3:$AI$823,12,FALSE)=\"-\"),1/0,VLOOKUP($A568,Economática!$A$3:$AI$823,12,FALSE)))","v":""},{"$f":"IF($A568=\"\",\"\",IF(OR(VLOOKUP($A568,Economática!$A$3:$AI$823,13,FALSE)=0,VLOOKUP($A568,Economática!$A$3:$AI$823,13,FALSE)=\"-\"),1/0,VLOOKUP($A568,Economática!$A$3:$AI$823,13,FALSE)))","v":""},{"$f":"IF($A568=\"\",\"\",IF(OR(VLOOKUP($A568,Economática!$A$3:$AI$823,14,FALSE)=0,VLOOKUP($A568,Economática!$A$3:$AI$823,14,FALSE)=\"-\"),1/0,VLOOKUP($A568,Economática!$A$3:$AI$823,14,FALSE)))","v":""},{"$f":"IF($A568=\"\",\"\",IF(OR(VLOOKUP($A568,Economática!$A$3:$AI$823,15,FALSE)=0,VLOOKUP($A568,Economática!$A$3:$AI$823,15,FALSE)=\"-\"),1/0,VLOOKUP($A568,Economática!$A$3:$AI$823,15,FALSE)))","v":""},{"$f":"IF($A568=\"\",\"\",IF(OR(VLOOKUP($A568,Economática!$A$3:$AI$823,16,FALSE)=0,VLOOKUP($A568,Economática!$A$3:$AI$823,16,FALSE)=\"-\"),1/0,VLOOKUP($A568,Economática!$A$3:$AI$823,16,FALSE)))","v":""},{"$f":"IF($A568=\"\",\"\",IF(OR(VLOOKUP($A568,Economática!$A$3:$AI$823,17,FALSE)=0,VLOOKUP($A568,Economática!$A$3:$AI$823,17,FALSE)=\"-\"),1/0,VLOOKUP($A568,Economática!$A$3:$AI$823,17,FALSE)))","v":""},{"$f":"IF($A568=\"\",\"\",IF(OR(VLOOKUP($A568,Economática!$A$3:$AI$823,18,FALSE)=0,VLOOKUP($A568,Economática!$A$3:$AI$823,18,FALSE)=\"-\"),1/0,VLOOKUP($A568,Economática!$A$3:$AI$823,18,FALSE)))","v":""},{"$f":"IF($A568=\"\",\"\",IF(OR(VLOOKUP($A568,Economática!$A$3:$AI$823,19,FALSE)=0,VLOOKUP($A568,Economática!$A$3:$AI$823,19,FALSE)=\"-\"),1/0,VLOOKUP($A568,Economática!$A$3:$AI$823,19,FALSE)))","v":""},{"$f":"IF($A568=\"\",\"\",VLOOKUP($A568,Economática!$A$3:$AI$823,20,FALSE)/E568)","v":""},"","","",{"$f":"IF($A568=\"\",\"\",IF(OR(VLOOKUP($A568,Economática!$A$3:$AI$823,21,FALSE)/100=0,VLOOKUP($A568,Economática!$A$3:$AI$823,21,FALSE)/100=\"-\"),1/0,VLOOKUP($A568,Economática!$A$3:$AI$823,21,FALSE)/100))","v":""},{"$f":"IF($A568=\"\",\"\",IF(OR(VLOOKUP($A568,Economática!$A$3:$AI$823,22,FALSE)/100=0,VLOOKUP($A568,Economática!$A$3:$AI$823,22,FALSE)/100=\"-\"),1/0,VLOOKUP($A568,Economática!$A$3:$AI$823,22,FALSE)/100))","v":""},{"$f":"IF($A568=\"\",\"\",IF(OR(VLOOKUP($A568,Economática!$A$3:$AI$823,23,FALSE)=0,VLOOKUP($A568,Economática!$A$3:$AI$823,23,FALSE)=\"-\"),1/0,VLOOKUP($A568,Economática!$A$3:$AI$823,23,FALSE)))","v":""},{"$f":"IF($A568=\"\",\"\",IF(OR(VLOOKUP($A568,Economática!$A$3:$AI$823,24,FALSE)=0,VLOOKUP($A568,Economática!$A$3:$AI$823,24,FALSE)=\"-\"),1/0,VLOOKUP($A568,Economática!$A$3:$AI$823,24,FALSE)))","v":""},{"$f":"IF($A568=\"\",\"\",IF(OR(VLOOKUP($A568,Economática!$A$3:$AI$823,25,FALSE)=0,VLOOKUP($A568,Economática!$A$3:$AI$823,25,FALSE)=\"-\"),1/0,VLOOKUP($A568,Economática!$A$3:$AI$823,25,FALSE)))","v":""},{"$f":"IF($A568=\"\",\"\",IF(ISERROR((F568+VLOOKUP($A568,Economática!$A$3:$AI$823,26,FALSE))/Y568),(F568+VLOOKUP($A568,Economática!$A$3:$AI$823,26,FALSE))/Y568,(F568+VLOOKUP($A568,Economática!$A$3:$AI$823,26,FALSE))/Y568))","v":""},{"$f":"IF($A568=\"\",\"\",IF(OR(-VLOOKUP($A568,Economática!$A$3:$AI$823,27,FALSE)=0,-VLOOKUP($A568,Economática!$A$3:$AI$823,27,FALSE)=\"-\"),1/0,-VLOOKUP($A568,Economática!$A$3:$AI$823,27,FALSE)))","v":""},"",{"$f":"IF($A568=\"\",\"\",IF(OR(VLOOKUP($A568,Economática!$A$3:$AI$823,28,FALSE)=0,VLOOKUP($A568,Economática!$A$3:$AI$823,28,FALSE)=\"-\"),1/0,VLOOKUP($A568,Economática!$A$3:$AI$823,28,FALSE)))","v":""},{"$f":"IF($A568=\"\",\"\",IF(OR(VLOOKUP($A568,Economática!$A$3:$AI$823,29,FALSE)=0,VLOOKUP($A568,Economática!$A$3:$AI$823,29,FALSE)=\"-\"),1/0,VLOOKUP($A568,Economática!$A$3:$AI$823,29,FALSE)))","v":""},{"$f":"IF($A568=\"\",\"\",IF(OR(VLOOKUP($A568,Economática!$A$3:$AI$823,30,FALSE)/E568=0,VLOOKUP($A568,Economática!$A$3:$AI$823,30,FALSE)/E568=\"-\",VLOOKUP($A568,Economática!$A$3:$AI$823,30,FALSE)/E568<33.33%,VLOOKUP($A568,Economática!$A$3:$AI$823,30,FALSE)/E568>100%),1/0,VLOOKUP($A568,Economática!$A$3:$AI$823,30,FALSE)/E568))","v":""},"",{"$f":"IF($A568=\"\",\"\",IF(OR(VLOOKUP($A568,Economática!$A$3:$AI$823,25,FALSE)=0,VLOOKUP($A568,Economática!$A$3:$AI$823,25,FALSE)=\"-\"),1/0,VLOOKUP($A568,Economática!$A$3:$AI$823,25,FALSE)))","v":""},{"$f":"CONCATENATE(Economática!B546,\" \",Economática!C546)","v":" "}]
[{"$f":"IF(Economática!AG547=\"\",\"\",Economática!AG547)","v":""},{"$f":"IF($A569=\"\",\"\",VLOOKUP(VLOOKUP($A569,Economática!$A$3:$AI$823,6,FALSE),Correção!$B$16:$C$36,2,FALSE))","v":""},{"$f":"IF(Economática!B547=\"\",\"\",Economática!B547)","v":""},{"$f":"IF($A569=\"\",\"\",IF(OR(VLOOKUP($A569,Economática!$A$3:$AI$823,8,FALSE)=0,VLOOKUP($A569,Economática!$A$3:$AI$823,8,FALSE)=\"-\"),1/0,VLOOKUP($A569,Economática!$A$3:$AI$823,8,FALSE)))","v":""},{"$f":"IF(A569=\"\",\"\",IF(ISERROR(VLOOKUP(A569,Correção!$B$2:$G$13,9,FALSE)),VLOOKUP($A569,Economática!$A$3:$AI$823,9,FALSE),VLOOKUP(A569,Correção!$B$2:$G$13,9,FALSE)))","v":""},{"$f":"IF($A569=\"\",\"\",Economática!G547)","v":""},{"$f":"IF($A569=\"\",\"\",IF(OR(VLOOKUP($A569,Economática!$A$3:$AI$823,10,FALSE)=0,VLOOKUP($A569,Economática!$A$3:$AI$823,10,FALSE)=\"-\"),1/0,VLOOKUP($A569,Economática!$A$3:$AI$823,10,FALSE)))","v":""},{"$f":"IF($A569=\"\",\"\",IF(OR(VLOOKUP($A569,Economática!$A$3:$AI$823,11,FALSE)=0,VLOOKUP($A569,Economática!$A$3:$AI$823,11,FALSE)=\"-\"),1/0,VLOOKUP($A569,Economática!$A$3:$AI$823,11,FALSE)))","v":""},{"$f":"IF($A569=\"\",\"\",IF(OR(VLOOKUP($A569,Economática!$A$3:$AI$823,12,FALSE)=0,VLOOKUP($A569,Economática!$A$3:$AI$823,12,FALSE)=\"-\"),1/0,VLOOKUP($A569,Economática!$A$3:$AI$823,12,FALSE)))","v":""},{"$f":"IF($A569=\"\",\"\",IF(OR(VLOOKUP($A569,Economática!$A$3:$AI$823,13,FALSE)=0,VLOOKUP($A569,Economática!$A$3:$AI$823,13,FALSE)=\"-\"),1/0,VLOOKUP($A569,Economática!$A$3:$AI$823,13,FALSE)))","v":""},{"$f":"IF($A569=\"\",\"\",IF(OR(VLOOKUP($A569,Economática!$A$3:$AI$823,14,FALSE)=0,VLOOKUP($A569,Economática!$A$3:$AI$823,14,FALSE)=\"-\"),1/0,VLOOKUP($A569,Economática!$A$3:$AI$823,14,FALSE)))","v":""},{"$f":"IF($A569=\"\",\"\",IF(OR(VLOOKUP($A569,Economática!$A$3:$AI$823,15,FALSE)=0,VLOOKUP($A569,Economática!$A$3:$AI$823,15,FALSE)=\"-\"),1/0,VLOOKUP($A569,Economática!$A$3:$AI$823,15,FALSE)))","v":""},{"$f":"IF($A569=\"\",\"\",IF(OR(VLOOKUP($A569,Economática!$A$3:$AI$823,16,FALSE)=0,VLOOKUP($A569,Economática!$A$3:$AI$823,16,FALSE)=\"-\"),1/0,VLOOKUP($A569,Economática!$A$3:$AI$823,16,FALSE)))","v":""},{"$f":"IF($A569=\"\",\"\",IF(OR(VLOOKUP($A569,Economática!$A$3:$AI$823,17,FALSE)=0,VLOOKUP($A569,Economática!$A$3:$AI$823,17,FALSE)=\"-\"),1/0,VLOOKUP($A569,Economática!$A$3:$AI$823,17,FALSE)))","v":""},{"$f":"IF($A569=\"\",\"\",IF(OR(VLOOKUP($A569,Economática!$A$3:$AI$823,18,FALSE)=0,VLOOKUP($A569,Economática!$A$3:$AI$823,18,FALSE)=\"-\"),1/0,VLOOKUP($A569,Economática!$A$3:$AI$823,18,FALSE)))","v":""},{"$f":"IF($A569=\"\",\"\",IF(OR(VLOOKUP($A569,Economática!$A$3:$AI$823,19,FALSE)=0,VLOOKUP($A569,Economática!$A$3:$AI$823,19,FALSE)=\"-\"),1/0,VLOOKUP($A569,Economática!$A$3:$AI$823,19,FALSE)))","v":""},{"$f":"IF($A569=\"\",\"\",VLOOKUP($A569,Economática!$A$3:$AI$823,20,FALSE)/E569)","v":""},"","","",{"$f":"IF($A569=\"\",\"\",IF(OR(VLOOKUP($A569,Economática!$A$3:$AI$823,21,FALSE)/100=0,VLOOKUP($A569,Economática!$A$3:$AI$823,21,FALSE)/100=\"-\"),1/0,VLOOKUP($A569,Economática!$A$3:$AI$823,21,FALSE)/100))","v":""},{"$f":"IF($A569=\"\",\"\",IF(OR(VLOOKUP($A569,Economática!$A$3:$AI$823,22,FALSE)/100=0,VLOOKUP($A569,Economática!$A$3:$AI$823,22,FALSE)/100=\"-\"),1/0,VLOOKUP($A569,Economática!$A$3:$AI$823,22,FALSE)/100))","v":""},{"$f":"IF($A569=\"\",\"\",IF(OR(VLOOKUP($A569,Economática!$A$3:$AI$823,23,FALSE)=0,VLOOKUP($A569,Economática!$A$3:$AI$823,23,FALSE)=\"-\"),1/0,VLOOKUP($A569,Economática!$A$3:$AI$823,23,FALSE)))","v":""},{"$f":"IF($A569=\"\",\"\",IF(OR(VLOOKUP($A569,Economática!$A$3:$AI$823,24,FALSE)=0,VLOOKUP($A569,Economática!$A$3:$AI$823,24,FALSE)=\"-\"),1/0,VLOOKUP($A569,Economática!$A$3:$AI$823,24,FALSE)))","v":""},{"$f":"IF($A569=\"\",\"\",IF(OR(VLOOKUP($A569,Economática!$A$3:$AI$823,25,FALSE)=0,VLOOKUP($A569,Economática!$A$3:$AI$823,25,FALSE)=\"-\"),1/0,VLOOKUP($A569,Economática!$A$3:$AI$823,25,FALSE)))","v":""},{"$f":"IF($A569=\"\",\"\",IF(ISERROR((F569+VLOOKUP($A569,Economática!$A$3:$AI$823,26,FALSE))/Y569),(F569+VLOOKUP($A569,Economática!$A$3:$AI$823,26,FALSE))/Y569,(F569+VLOOKUP($A569,Economática!$A$3:$AI$823,26,FALSE))/Y569))","v":""},{"$f":"IF($A569=\"\",\"\",IF(OR(-VLOOKUP($A569,Economática!$A$3:$AI$823,27,FALSE)=0,-VLOOKUP($A569,Economática!$A$3:$AI$823,27,FALSE)=\"-\"),1/0,-VLOOKUP($A569,Economática!$A$3:$AI$823,27,FALSE)))","v":""},"",{"$f":"IF($A569=\"\",\"\",IF(OR(VLOOKUP($A569,Economática!$A$3:$AI$823,28,FALSE)=0,VLOOKUP($A569,Economática!$A$3:$AI$823,28,FALSE)=\"-\"),1/0,VLOOKUP($A569,Economática!$A$3:$AI$823,28,FALSE)))","v":""},{"$f":"IF($A569=\"\",\"\",IF(OR(VLOOKUP($A569,Economática!$A$3:$AI$823,29,FALSE)=0,VLOOKUP($A569,Economática!$A$3:$AI$823,29,FALSE)=\"-\"),1/0,VLOOKUP($A569,Economática!$A$3:$AI$823,29,FALSE)))","v":""},{"$f":"IF($A569=\"\",\"\",IF(OR(VLOOKUP($A569,Economática!$A$3:$AI$823,30,FALSE)/E569=0,VLOOKUP($A569,Economática!$A$3:$AI$823,30,FALSE)/E569=\"-\",VLOOKUP($A569,Economática!$A$3:$AI$823,30,FALSE)/E569<33.33%,VLOOKUP($A569,Economática!$A$3:$AI$823,30,FALSE)/E569>100%),1/0,VLOOKUP($A569,Economática!$A$3:$AI$823,30,FALSE)/E569))","v":""},"",{"$f":"IF($A569=\"\",\"\",IF(OR(VLOOKUP($A569,Economática!$A$3:$AI$823,25,FALSE)=0,VLOOKUP($A569,Economática!$A$3:$AI$823,25,FALSE)=\"-\"),1/0,VLOOKUP($A569,Economática!$A$3:$AI$823,25,FALSE)))","v":""},{"$f":"CONCATENATE(Economática!B547,\" \",Economática!C547)","v":" "}]
[{"$f":"IF(Economática!AG548=\"\",\"\",Economática!AG548)","v":""},{"$f":"IF($A570=\"\",\"\",VLOOKUP(VLOOKUP($A570,Economática!$A$3:$AI$823,6,FALSE),Correção!$B$16:$C$36,2,FALSE))","v":""},{"$f":"IF(Economática!B548=\"\",\"\",Economática!B548)","v":""},{"$f":"IF($A570=\"\",\"\",IF(OR(VLOOKUP($A570,Economática!$A$3:$AI$823,8,FALSE)=0,VLOOKUP($A570,Economática!$A$3:$AI$823,8,FALSE)=\"-\"),1/0,VLOOKUP($A570,Economática!$A$3:$AI$823,8,FALSE)))","v":""},{"$f":"IF(A570=\"\",\"\",IF(ISERROR(VLOOKUP(A570,Correção!$B$2:$G$13,9,FALSE)),VLOOKUP($A570,Economática!$A$3:$AI$823,9,FALSE),VLOOKUP(A570,Correção!$B$2:$G$13,9,FALSE)))","v":""},{"$f":"IF($A570=\"\",\"\",Economática!G548)","v":""},{"$f":"IF($A570=\"\",\"\",IF(OR(VLOOKUP($A570,Economática!$A$3:$AI$823,10,FALSE)=0,VLOOKUP($A570,Economática!$A$3:$AI$823,10,FALSE)=\"-\"),1/0,VLOOKUP($A570,Economática!$A$3:$AI$823,10,FALSE)))","v":""},{"$f":"IF($A570=\"\",\"\",IF(OR(VLOOKUP($A570,Economática!$A$3:$AI$823,11,FALSE)=0,VLOOKUP($A570,Economática!$A$3:$AI$823,11,FALSE)=\"-\"),1/0,VLOOKUP($A570,Economática!$A$3:$AI$823,11,FALSE)))","v":""},{"$f":"IF($A570=\"\",\"\",IF(OR(VLOOKUP($A570,Economática!$A$3:$AI$823,12,FALSE)=0,VLOOKUP($A570,Economática!$A$3:$AI$823,12,FALSE)=\"-\"),1/0,VLOOKUP($A570,Economática!$A$3:$AI$823,12,FALSE)))","v":""},{"$f":"IF($A570=\"\",\"\",IF(OR(VLOOKUP($A570,Economática!$A$3:$AI$823,13,FALSE)=0,VLOOKUP($A570,Economática!$A$3:$AI$823,13,FALSE)=\"-\"),1/0,VLOOKUP($A570,Economática!$A$3:$AI$823,13,FALSE)))","v":""},{"$f":"IF($A570=\"\",\"\",IF(OR(VLOOKUP($A570,Economática!$A$3:$AI$823,14,FALSE)=0,VLOOKUP($A570,Economática!$A$3:$AI$823,14,FALSE)=\"-\"),1/0,VLOOKUP($A570,Economática!$A$3:$AI$823,14,FALSE)))","v":""},{"$f":"IF($A570=\"\",\"\",IF(OR(VLOOKUP($A570,Economática!$A$3:$AI$823,15,FALSE)=0,VLOOKUP($A570,Economática!$A$3:$AI$823,15,FALSE)=\"-\"),1/0,VLOOKUP($A570,Economática!$A$3:$AI$823,15,FALSE)))","v":""},{"$f":"IF($A570=\"\",\"\",IF(OR(VLOOKUP($A570,Economática!$A$3:$AI$823,16,FALSE)=0,VLOOKUP($A570,Economática!$A$3:$AI$823,16,FALSE)=\"-\"),1/0,VLOOKUP($A570,Economática!$A$3:$AI$823,16,FALSE)))","v":""},{"$f":"IF($A570=\"\",\"\",IF(OR(VLOOKUP($A570,Economática!$A$3:$AI$823,17,FALSE)=0,VLOOKUP($A570,Economática!$A$3:$AI$823,17,FALSE)=\"-\"),1/0,VLOOKUP($A570,Economática!$A$3:$AI$823,17,FALSE)))","v":""},{"$f":"IF($A570=\"\",\"\",IF(OR(VLOOKUP($A570,Economática!$A$3:$AI$823,18,FALSE)=0,VLOOKUP($A570,Economática!$A$3:$AI$823,18,FALSE)=\"-\"),1/0,VLOOKUP($A570,Economática!$A$3:$AI$823,18,FALSE)))","v":""},{"$f":"IF($A570=\"\",\"\",IF(OR(VLOOKUP($A570,Economática!$A$3:$AI$823,19,FALSE)=0,VLOOKUP($A570,Economática!$A$3:$AI$823,19,FALSE)=\"-\"),1/0,VLOOKUP($A570,Economática!$A$3:$AI$823,19,FALSE)))","v":""},{"$f":"IF($A570=\"\",\"\",VLOOKUP($A570,Economática!$A$3:$AI$823,20,FALSE)/E570)","v":""},"","","",{"$f":"IF($A570=\"\",\"\",IF(OR(VLOOKUP($A570,Economática!$A$3:$AI$823,21,FALSE)/100=0,VLOOKUP($A570,Economática!$A$3:$AI$823,21,FALSE)/100=\"-\"),1/0,VLOOKUP($A570,Economática!$A$3:$AI$823,21,FALSE)/100))","v":""},{"$f":"IF($A570=\"\",\"\",IF(OR(VLOOKUP($A570,Economática!$A$3:$AI$823,22,FALSE)/100=0,VLOOKUP($A570,Economática!$A$3:$AI$823,22,FALSE)/100=\"-\"),1/0,VLOOKUP($A570,Economática!$A$3:$AI$823,22,FALSE)/100))","v":""},{"$f":"IF($A570=\"\",\"\",IF(OR(VLOOKUP($A570,Economática!$A$3:$AI$823,23,FALSE)=0,VLOOKUP($A570,Economática!$A$3:$AI$823,23,FALSE)=\"-\"),1/0,VLOOKUP($A570,Economática!$A$3:$AI$823,23,FALSE)))","v":""},{"$f":"IF($A570=\"\",\"\",IF(OR(VLOOKUP($A570,Economática!$A$3:$AI$823,24,FALSE)=0,VLOOKUP($A570,Economática!$A$3:$AI$823,24,FALSE)=\"-\"),1/0,VLOOKUP($A570,Economática!$A$3:$AI$823,24,FALSE)))","v":""},{"$f":"IF($A570=\"\",\"\",IF(OR(VLOOKUP($A570,Economática!$A$3:$AI$823,25,FALSE)=0,VLOOKUP($A570,Economática!$A$3:$AI$823,25,FALSE)=\"-\"),1/0,VLOOKUP($A570,Economática!$A$3:$AI$823,25,FALSE)))","v":""},{"$f":"IF($A570=\"\",\"\",IF(ISERROR((F570+VLOOKUP($A570,Economática!$A$3:$AI$823,26,FALSE))/Y570),(F570+VLOOKUP($A570,Economática!$A$3:$AI$823,26,FALSE))/Y570,(F570+VLOOKUP($A570,Economática!$A$3:$AI$823,26,FALSE))/Y570))","v":""},{"$f":"IF($A570=\"\",\"\",IF(OR(-VLOOKUP($A570,Economática!$A$3:$AI$823,27,FALSE)=0,-VLOOKUP($A570,Economática!$A$3:$AI$823,27,FALSE)=\"-\"),1/0,-VLOOKUP($A570,Economática!$A$3:$AI$823,27,FALSE)))","v":""},"",{"$f":"IF($A570=\"\",\"\",IF(OR(VLOOKUP($A570,Economática!$A$3:$AI$823,28,FALSE)=0,VLOOKUP($A570,Economática!$A$3:$AI$823,28,FALSE)=\"-\"),1/0,VLOOKUP($A570,Economática!$A$3:$AI$823,28,FALSE)))","v":""},{"$f":"IF($A570=\"\",\"\",IF(OR(VLOOKUP($A570,Economática!$A$3:$AI$823,29,FALSE)=0,VLOOKUP($A570,Economática!$A$3:$AI$823,29,FALSE)=\"-\"),1/0,VLOOKUP($A570,Economática!$A$3:$AI$823,29,FALSE)))","v":""},{"$f":"IF($A570=\"\",\"\",IF(OR(VLOOKUP($A570,Economática!$A$3:$AI$823,30,FALSE)/E570=0,VLOOKUP($A570,Economática!$A$3:$AI$823,30,FALSE)/E570=\"-\",VLOOKUP($A570,Economática!$A$3:$AI$823,30,FALSE)/E570<33.33%,VLOOKUP($A570,Economática!$A$3:$AI$823,30,FALSE)/E570>100%),1/0,VLOOKUP($A570,Economática!$A$3:$AI$823,30,FALSE)/E570))","v":""},"",{"$f":"IF($A570=\"\",\"\",IF(OR(VLOOKUP($A570,Economática!$A$3:$AI$823,25,FALSE)=0,VLOOKUP($A570,Economática!$A$3:$AI$823,25,FALSE)=\"-\"),1/0,VLOOKUP($A570,Economática!$A$3:$AI$823,25,FALSE)))","v":""},{"$f":"CONCATENATE(Economática!B548,\" \",Economática!C548)","v":" "}]
[{"$f":"IF(Economática!AG549=\"\",\"\",Economática!AG549)","v":""},{"$f":"IF($A571=\"\",\"\",VLOOKUP(VLOOKUP($A571,Economática!$A$3:$AI$823,6,FALSE),Correção!$B$16:$C$36,2,FALSE))","v":""},{"$f":"IF(Economática!B549=\"\",\"\",Economática!B549)","v":""},{"$f":"IF($A571=\"\",\"\",IF(OR(VLOOKUP($A571,Economática!$A$3:$AI$823,8,FALSE)=0,VLOOKUP($A571,Economática!$A$3:$AI$823,8,FALSE)=\"-\"),1/0,VLOOKUP($A571,Economática!$A$3:$AI$823,8,FALSE)))","v":""},{"$f":"IF(A571=\"\",\"\",IF(ISERROR(VLOOKUP(A571,Correção!$B$2:$G$13,9,FALSE)),VLOOKUP($A571,Economática!$A$3:$AI$823,9,FALSE),VLOOKUP(A571,Correção!$B$2:$G$13,9,FALSE)))","v":""},{"$f":"IF($A571=\"\",\"\",Economática!G549)","v":""},{"$f":"IF($A571=\"\",\"\",IF(OR(VLOOKUP($A571,Economática!$A$3:$AI$823,10,FALSE)=0,VLOOKUP($A571,Economática!$A$3:$AI$823,10,FALSE)=\"-\"),1/0,VLOOKUP($A571,Economática!$A$3:$AI$823,10,FALSE)))","v":""},{"$f":"IF($A571=\"\",\"\",IF(OR(VLOOKUP($A571,Economática!$A$3:$AI$823,11,FALSE)=0,VLOOKUP($A571,Economática!$A$3:$AI$823,11,FALSE)=\"-\"),1/0,VLOOKUP($A571,Economática!$A$3:$AI$823,11,FALSE)))","v":""},{"$f":"IF($A571=\"\",\"\",IF(OR(VLOOKUP($A571,Economática!$A$3:$AI$823,12,FALSE)=0,VLOOKUP($A571,Economática!$A$3:$AI$823,12,FALSE)=\"-\"),1/0,VLOOKUP($A571,Economática!$A$3:$AI$823,12,FALSE)))","v":""},{"$f":"IF($A571=\"\",\"\",IF(OR(VLOOKUP($A571,Economática!$A$3:$AI$823,13,FALSE)=0,VLOOKUP($A571,Economática!$A$3:$AI$823,13,FALSE)=\"-\"),1/0,VLOOKUP($A571,Economática!$A$3:$AI$823,13,FALSE)))","v":""},{"$f":"IF($A571=\"\",\"\",IF(OR(VLOOKUP($A571,Economática!$A$3:$AI$823,14,FALSE)=0,VLOOKUP($A571,Economática!$A$3:$AI$823,14,FALSE)=\"-\"),1/0,VLOOKUP($A571,Economática!$A$3:$AI$823,14,FALSE)))","v":""},{"$f":"IF($A571=\"\",\"\",IF(OR(VLOOKUP($A571,Economática!$A$3:$AI$823,15,FALSE)=0,VLOOKUP($A571,Economática!$A$3:$AI$823,15,FALSE)=\"-\"),1/0,VLOOKUP($A571,Economática!$A$3:$AI$823,15,FALSE)))","v":""},{"$f":"IF($A571=\"\",\"\",IF(OR(VLOOKUP($A571,Economática!$A$3:$AI$823,16,FALSE)=0,VLOOKUP($A571,Economática!$A$3:$AI$823,16,FALSE)=\"-\"),1/0,VLOOKUP($A571,Economática!$A$3:$AI$823,16,FALSE)))","v":""},{"$f":"IF($A571=\"\",\"\",IF(OR(VLOOKUP($A571,Economática!$A$3:$AI$823,17,FALSE)=0,VLOOKUP($A571,Economática!$A$3:$AI$823,17,FALSE)=\"-\"),1/0,VLOOKUP($A571,Economática!$A$3:$AI$823,17,FALSE)))","v":""},{"$f":"IF($A571=\"\",\"\",IF(OR(VLOOKUP($A571,Economática!$A$3:$AI$823,18,FALSE)=0,VLOOKUP($A571,Economática!$A$3:$AI$823,18,FALSE)=\"-\"),1/0,VLOOKUP($A571,Economática!$A$3:$AI$823,18,FALSE)))","v":""},{"$f":"IF($A571=\"\",\"\",IF(OR(VLOOKUP($A571,Economática!$A$3:$AI$823,19,FALSE)=0,VLOOKUP($A571,Economática!$A$3:$AI$823,19,FALSE)=\"-\"),1/0,VLOOKUP($A571,Economática!$A$3:$AI$823,19,FALSE)))","v":""},{"$f":"IF($A571=\"\",\"\",VLOOKUP($A571,Economática!$A$3:$AI$823,20,FALSE)/E571)","v":""},"","","",{"$f":"IF($A571=\"\",\"\",IF(OR(VLOOKUP($A571,Economática!$A$3:$AI$823,21,FALSE)/100=0,VLOOKUP($A571,Economática!$A$3:$AI$823,21,FALSE)/100=\"-\"),1/0,VLOOKUP($A571,Economática!$A$3:$AI$823,21,FALSE)/100))","v":""},{"$f":"IF($A571=\"\",\"\",IF(OR(VLOOKUP($A571,Economática!$A$3:$AI$823,22,FALSE)/100=0,VLOOKUP($A571,Economática!$A$3:$AI$823,22,FALSE)/100=\"-\"),1/0,VLOOKUP($A571,Economática!$A$3:$AI$823,22,FALSE)/100))","v":""},{"$f":"IF($A571=\"\",\"\",IF(OR(VLOOKUP($A571,Economática!$A$3:$AI$823,23,FALSE)=0,VLOOKUP($A571,Economática!$A$3:$AI$823,23,FALSE)=\"-\"),1/0,VLOOKUP($A571,Economática!$A$3:$AI$823,23,FALSE)))","v":""},{"$f":"IF($A571=\"\",\"\",IF(OR(VLOOKUP($A571,Economática!$A$3:$AI$823,24,FALSE)=0,VLOOKUP($A571,Economática!$A$3:$AI$823,24,FALSE)=\"-\"),1/0,VLOOKUP($A571,Economática!$A$3:$AI$823,24,FALSE)))","v":""},{"$f":"IF($A571=\"\",\"\",IF(OR(VLOOKUP($A571,Economática!$A$3:$AI$823,25,FALSE)=0,VLOOKUP($A571,Economática!$A$3:$AI$823,25,FALSE)=\"-\"),1/0,VLOOKUP($A571,Economática!$A$3:$AI$823,25,FALSE)))","v":""},{"$f":"IF($A571=\"\",\"\",IF(ISERROR((F571+VLOOKUP($A571,Economática!$A$3:$AI$823,26,FALSE))/Y571),(F571+VLOOKUP($A571,Economática!$A$3:$AI$823,26,FALSE))/Y571,(F571+VLOOKUP($A571,Economática!$A$3:$AI$823,26,FALSE))/Y571))","v":""},{"$f":"IF($A571=\"\",\"\",IF(OR(-VLOOKUP($A571,Economática!$A$3:$AI$823,27,FALSE)=0,-VLOOKUP($A571,Economática!$A$3:$AI$823,27,FALSE)=\"-\"),1/0,-VLOOKUP($A571,Economática!$A$3:$AI$823,27,FALSE)))","v":""},"",{"$f":"IF($A571=\"\",\"\",IF(OR(VLOOKUP($A571,Economática!$A$3:$AI$823,28,FALSE)=0,VLOOKUP($A571,Economática!$A$3:$AI$823,28,FALSE)=\"-\"),1/0,VLOOKUP($A571,Economática!$A$3:$AI$823,28,FALSE)))","v":""},{"$f":"IF($A571=\"\",\"\",IF(OR(VLOOKUP($A571,Economática!$A$3:$AI$823,29,FALSE)=0,VLOOKUP($A571,Economática!$A$3:$AI$823,29,FALSE)=\"-\"),1/0,VLOOKUP($A571,Economática!$A$3:$AI$823,29,FALSE)))","v":""},{"$f":"IF($A571=\"\",\"\",IF(OR(VLOOKUP($A571,Economática!$A$3:$AI$823,30,FALSE)/E571=0,VLOOKUP($A571,Economática!$A$3:$AI$823,30,FALSE)/E571=\"-\",VLOOKUP($A571,Economática!$A$3:$AI$823,30,FALSE)/E571<33.33%,VLOOKUP($A571,Economática!$A$3:$AI$823,30,FALSE)/E571>100%),1/0,VLOOKUP($A571,Economática!$A$3:$AI$823,30,FALSE)/E571))","v":""},"",{"$f":"IF($A571=\"\",\"\",IF(OR(VLOOKUP($A571,Economática!$A$3:$AI$823,25,FALSE)=0,VLOOKUP($A571,Economática!$A$3:$AI$823,25,FALSE)=\"-\"),1/0,VLOOKUP($A571,Economática!$A$3:$AI$823,25,FALSE)))","v":""},{"$f":"CONCATENATE(Economática!B549,\" \",Economática!C549)","v":" "}]
[{"$f":"IF(Economática!AG550=\"\",\"\",Economática!AG550)","v":""},{"$f":"IF($A572=\"\",\"\",VLOOKUP(VLOOKUP($A572,Economática!$A$3:$AI$823,6,FALSE),Correção!$B$16:$C$36,2,FALSE))","v":""},{"$f":"IF(Economática!B550=\"\",\"\",Economática!B550)","v":""},{"$f":"IF($A572=\"\",\"\",IF(OR(VLOOKUP($A572,Economática!$A$3:$AI$823,8,FALSE)=0,VLOOKUP($A572,Economática!$A$3:$AI$823,8,FALSE)=\"-\"),1/0,VLOOKUP($A572,Economática!$A$3:$AI$823,8,FALSE)))","v":""},{"$f":"IF(A572=\"\",\"\",IF(ISERROR(VLOOKUP(A572,Correção!$B$2:$G$13,9,FALSE)),VLOOKUP($A572,Economática!$A$3:$AI$823,9,FALSE),VLOOKUP(A572,Correção!$B$2:$G$13,9,FALSE)))","v":""},{"$f":"IF($A572=\"\",\"\",Economática!G550)","v":""},{"$f":"IF($A572=\"\",\"\",IF(OR(VLOOKUP($A572,Economática!$A$3:$AI$823,10,FALSE)=0,VLOOKUP($A572,Economática!$A$3:$AI$823,10,FALSE)=\"-\"),1/0,VLOOKUP($A572,Economática!$A$3:$AI$823,10,FALSE)))","v":""},{"$f":"IF($A572=\"\",\"\",IF(OR(VLOOKUP($A572,Economática!$A$3:$AI$823,11,FALSE)=0,VLOOKUP($A572,Economática!$A$3:$AI$823,11,FALSE)=\"-\"),1/0,VLOOKUP($A572,Economática!$A$3:$AI$823,11,FALSE)))","v":""},{"$f":"IF($A572=\"\",\"\",IF(OR(VLOOKUP($A572,Economática!$A$3:$AI$823,12,FALSE)=0,VLOOKUP($A572,Economática!$A$3:$AI$823,12,FALSE)=\"-\"),1/0,VLOOKUP($A572,Economática!$A$3:$AI$823,12,FALSE)))","v":""},{"$f":"IF($A572=\"\",\"\",IF(OR(VLOOKUP($A572,Economática!$A$3:$AI$823,13,FALSE)=0,VLOOKUP($A572,Economática!$A$3:$AI$823,13,FALSE)=\"-\"),1/0,VLOOKUP($A572,Economática!$A$3:$AI$823,13,FALSE)))","v":""},{"$f":"IF($A572=\"\",\"\",IF(OR(VLOOKUP($A572,Economática!$A$3:$AI$823,14,FALSE)=0,VLOOKUP($A572,Economática!$A$3:$AI$823,14,FALSE)=\"-\"),1/0,VLOOKUP($A572,Economática!$A$3:$AI$823,14,FALSE)))","v":""},{"$f":"IF($A572=\"\",\"\",IF(OR(VLOOKUP($A572,Economática!$A$3:$AI$823,15,FALSE)=0,VLOOKUP($A572,Economática!$A$3:$AI$823,15,FALSE)=\"-\"),1/0,VLOOKUP($A572,Economática!$A$3:$AI$823,15,FALSE)))","v":""},{"$f":"IF($A572=\"\",\"\",IF(OR(VLOOKUP($A572,Economática!$A$3:$AI$823,16,FALSE)=0,VLOOKUP($A572,Economática!$A$3:$AI$823,16,FALSE)=\"-\"),1/0,VLOOKUP($A572,Economática!$A$3:$AI$823,16,FALSE)))","v":""},{"$f":"IF($A572=\"\",\"\",IF(OR(VLOOKUP($A572,Economática!$A$3:$AI$823,17,FALSE)=0,VLOOKUP($A572,Economática!$A$3:$AI$823,17,FALSE)=\"-\"),1/0,VLOOKUP($A572,Economática!$A$3:$AI$823,17,FALSE)))","v":""},{"$f":"IF($A572=\"\",\"\",IF(OR(VLOOKUP($A572,Economática!$A$3:$AI$823,18,FALSE)=0,VLOOKUP($A572,Economática!$A$3:$AI$823,18,FALSE)=\"-\"),1/0,VLOOKUP($A572,Economática!$A$3:$AI$823,18,FALSE)))","v":""},{"$f":"IF($A572=\"\",\"\",IF(OR(VLOOKUP($A572,Economática!$A$3:$AI$823,19,FALSE)=0,VLOOKUP($A572,Economática!$A$3:$AI$823,19,FALSE)=\"-\"),1/0,VLOOKUP($A572,Economática!$A$3:$AI$823,19,FALSE)))","v":""},{"$f":"IF($A572=\"\",\"\",VLOOKUP($A572,Economática!$A$3:$AI$823,20,FALSE)/E572)","v":""},"","","",{"$f":"IF($A572=\"\",\"\",IF(OR(VLOOKUP($A572,Economática!$A$3:$AI$823,21,FALSE)/100=0,VLOOKUP($A572,Economática!$A$3:$AI$823,21,FALSE)/100=\"-\"),1/0,VLOOKUP($A572,Economática!$A$3:$AI$823,21,FALSE)/100))","v":""},{"$f":"IF($A572=\"\",\"\",IF(OR(VLOOKUP($A572,Economática!$A$3:$AI$823,22,FALSE)/100=0,VLOOKUP($A572,Economática!$A$3:$AI$823,22,FALSE)/100=\"-\"),1/0,VLOOKUP($A572,Economática!$A$3:$AI$823,22,FALSE)/100))","v":""},{"$f":"IF($A572=\"\",\"\",IF(OR(VLOOKUP($A572,Economática!$A$3:$AI$823,23,FALSE)=0,VLOOKUP($A572,Economática!$A$3:$AI$823,23,FALSE)=\"-\"),1/0,VLOOKUP($A572,Economática!$A$3:$AI$823,23,FALSE)))","v":""},{"$f":"IF($A572=\"\",\"\",IF(OR(VLOOKUP($A572,Economática!$A$3:$AI$823,24,FALSE)=0,VLOOKUP($A572,Economática!$A$3:$AI$823,24,FALSE)=\"-\"),1/0,VLOOKUP($A572,Economática!$A$3:$AI$823,24,FALSE)))","v":""},{"$f":"IF($A572=\"\",\"\",IF(OR(VLOOKUP($A572,Economática!$A$3:$AI$823,25,FALSE)=0,VLOOKUP($A572,Economática!$A$3:$AI$823,25,FALSE)=\"-\"),1/0,VLOOKUP($A572,Economática!$A$3:$AI$823,25,FALSE)))","v":""},{"$f":"IF($A572=\"\",\"\",IF(ISERROR((F572+VLOOKUP($A572,Economática!$A$3:$AI$823,26,FALSE))/Y572),(F572+VLOOKUP($A572,Economática!$A$3:$AI$823,26,FALSE))/Y572,(F572+VLOOKUP($A572,Economática!$A$3:$AI$823,26,FALSE))/Y572))","v":""},{"$f":"IF($A572=\"\",\"\",IF(OR(-VLOOKUP($A572,Economática!$A$3:$AI$823,27,FALSE)=0,-VLOOKUP($A572,Economática!$A$3:$AI$823,27,FALSE)=\"-\"),1/0,-VLOOKUP($A572,Economática!$A$3:$AI$823,27,FALSE)))","v":""},"",{"$f":"IF($A572=\"\",\"\",IF(OR(VLOOKUP($A572,Economática!$A$3:$AI$823,28,FALSE)=0,VLOOKUP($A572,Economática!$A$3:$AI$823,28,FALSE)=\"-\"),1/0,VLOOKUP($A572,Economática!$A$3:$AI$823,28,FALSE)))","v":""},{"$f":"IF($A572=\"\",\"\",IF(OR(VLOOKUP($A572,Economática!$A$3:$AI$823,29,FALSE)=0,VLOOKUP($A572,Economática!$A$3:$AI$823,29,FALSE)=\"-\"),1/0,VLOOKUP($A572,Economática!$A$3:$AI$823,29,FALSE)))","v":""},{"$f":"IF($A572=\"\",\"\",IF(OR(VLOOKUP($A572,Economática!$A$3:$AI$823,30,FALSE)/E572=0,VLOOKUP($A572,Economática!$A$3:$AI$823,30,FALSE)/E572=\"-\",VLOOKUP($A572,Economática!$A$3:$AI$823,30,FALSE)/E572<33.33%,VLOOKUP($A572,Economática!$A$3:$AI$823,30,FALSE)/E572>100%),1/0,VLOOKUP($A572,Economática!$A$3:$AI$823,30,FALSE)/E572))","v":""},"",{"$f":"IF($A572=\"\",\"\",IF(OR(VLOOKUP($A572,Economática!$A$3:$AI$823,25,FALSE)=0,VLOOKUP($A572,Economática!$A$3:$AI$823,25,FALSE)=\"-\"),1/0,VLOOKUP($A572,Economática!$A$3:$AI$823,25,FALSE)))","v":""},{"$f":"CONCATENATE(Economática!B550,\" \",Economática!C550)","v":" "}]
[{"$f":"IF(Economática!AG551=\"\",\"\",Economática!AG551)","v":""},{"$f":"IF($A573=\"\",\"\",VLOOKUP(VLOOKUP($A573,Economática!$A$3:$AI$823,6,FALSE),Correção!$B$16:$C$36,2,FALSE))","v":""},{"$f":"IF(Economática!B551=\"\",\"\",Economática!B551)","v":""},{"$f":"IF($A573=\"\",\"\",IF(OR(VLOOKUP($A573,Economática!$A$3:$AI$823,8,FALSE)=0,VLOOKUP($A573,Economática!$A$3:$AI$823,8,FALSE)=\"-\"),1/0,VLOOKUP($A573,Economática!$A$3:$AI$823,8,FALSE)))","v":""},{"$f":"IF(A573=\"\",\"\",IF(ISERROR(VLOOKUP(A573,Correção!$B$2:$G$13,9,FALSE)),VLOOKUP($A573,Economática!$A$3:$AI$823,9,FALSE),VLOOKUP(A573,Correção!$B$2:$G$13,9,FALSE)))","v":""},{"$f":"IF($A573=\"\",\"\",Economática!G551)","v":""},{"$f":"IF($A573=\"\",\"\",IF(OR(VLOOKUP($A573,Economática!$A$3:$AI$823,10,FALSE)=0,VLOOKUP($A573,Economática!$A$3:$AI$823,10,FALSE)=\"-\"),1/0,VLOOKUP($A573,Economática!$A$3:$AI$823,10,FALSE)))","v":""},{"$f":"IF($A573=\"\",\"\",IF(OR(VLOOKUP($A573,Economática!$A$3:$AI$823,11,FALSE)=0,VLOOKUP($A573,Economática!$A$3:$AI$823,11,FALSE)=\"-\"),1/0,VLOOKUP($A573,Economática!$A$3:$AI$823,11,FALSE)))","v":""},{"$f":"IF($A573=\"\",\"\",IF(OR(VLOOKUP($A573,Economática!$A$3:$AI$823,12,FALSE)=0,VLOOKUP($A573,Economática!$A$3:$AI$823,12,FALSE)=\"-\"),1/0,VLOOKUP($A573,Economática!$A$3:$AI$823,12,FALSE)))","v":""},{"$f":"IF($A573=\"\",\"\",IF(OR(VLOOKUP($A573,Economática!$A$3:$AI$823,13,FALSE)=0,VLOOKUP($A573,Economática!$A$3:$AI$823,13,FALSE)=\"-\"),1/0,VLOOKUP($A573,Economática!$A$3:$AI$823,13,FALSE)))","v":""},{"$f":"IF($A573=\"\",\"\",IF(OR(VLOOKUP($A573,Economática!$A$3:$AI$823,14,FALSE)=0,VLOOKUP($A573,Economática!$A$3:$AI$823,14,FALSE)=\"-\"),1/0,VLOOKUP($A573,Economática!$A$3:$AI$823,14,FALSE)))","v":""},{"$f":"IF($A573=\"\",\"\",IF(OR(VLOOKUP($A573,Economática!$A$3:$AI$823,15,FALSE)=0,VLOOKUP($A573,Economática!$A$3:$AI$823,15,FALSE)=\"-\"),1/0,VLOOKUP($A573,Economática!$A$3:$AI$823,15,FALSE)))","v":""},{"$f":"IF($A573=\"\",\"\",IF(OR(VLOOKUP($A573,Economática!$A$3:$AI$823,16,FALSE)=0,VLOOKUP($A573,Economática!$A$3:$AI$823,16,FALSE)=\"-\"),1/0,VLOOKUP($A573,Economática!$A$3:$AI$823,16,FALSE)))","v":""},{"$f":"IF($A573=\"\",\"\",IF(OR(VLOOKUP($A573,Economática!$A$3:$AI$823,17,FALSE)=0,VLOOKUP($A573,Economática!$A$3:$AI$823,17,FALSE)=\"-\"),1/0,VLOOKUP($A573,Economática!$A$3:$AI$823,17,FALSE)))","v":""},{"$f":"IF($A573=\"\",\"\",IF(OR(VLOOKUP($A573,Economática!$A$3:$AI$823,18,FALSE)=0,VLOOKUP($A573,Economática!$A$3:$AI$823,18,FALSE)=\"-\"),1/0,VLOOKUP($A573,Economática!$A$3:$AI$823,18,FALSE)))","v":""},{"$f":"IF($A573=\"\",\"\",IF(OR(VLOOKUP($A573,Economática!$A$3:$AI$823,19,FALSE)=0,VLOOKUP($A573,Economática!$A$3:$AI$823,19,FALSE)=\"-\"),1/0,VLOOKUP($A573,Economática!$A$3:$AI$823,19,FALSE)))","v":""},{"$f":"IF($A573=\"\",\"\",VLOOKUP($A573,Economática!$A$3:$AI$823,20,FALSE)/E573)","v":""},"","","",{"$f":"IF($A573=\"\",\"\",IF(OR(VLOOKUP($A573,Economática!$A$3:$AI$823,21,FALSE)/100=0,VLOOKUP($A573,Economática!$A$3:$AI$823,21,FALSE)/100=\"-\"),1/0,VLOOKUP($A573,Economática!$A$3:$AI$823,21,FALSE)/100))","v":""},{"$f":"IF($A573=\"\",\"\",IF(OR(VLOOKUP($A573,Economática!$A$3:$AI$823,22,FALSE)/100=0,VLOOKUP($A573,Economática!$A$3:$AI$823,22,FALSE)/100=\"-\"),1/0,VLOOKUP($A573,Economática!$A$3:$AI$823,22,FALSE)/100))","v":""},{"$f":"IF($A573=\"\",\"\",IF(OR(VLOOKUP($A573,Economática!$A$3:$AI$823,23,FALSE)=0,VLOOKUP($A573,Economática!$A$3:$AI$823,23,FALSE)=\"-\"),1/0,VLOOKUP($A573,Economática!$A$3:$AI$823,23,FALSE)))","v":""},{"$f":"IF($A573=\"\",\"\",IF(OR(VLOOKUP($A573,Economática!$A$3:$AI$823,24,FALSE)=0,VLOOKUP($A573,Economática!$A$3:$AI$823,24,FALSE)=\"-\"),1/0,VLOOKUP($A573,Economática!$A$3:$AI$823,24,FALSE)))","v":""},{"$f":"IF($A573=\"\",\"\",IF(OR(VLOOKUP($A573,Economática!$A$3:$AI$823,25,FALSE)=0,VLOOKUP($A573,Economática!$A$3:$AI$823,25,FALSE)=\"-\"),1/0,VLOOKUP($A573,Economática!$A$3:$AI$823,25,FALSE)))","v":""},{"$f":"IF($A573=\"\",\"\",IF(ISERROR((F573+VLOOKUP($A573,Economática!$A$3:$AI$823,26,FALSE))/Y573),(F573+VLOOKUP($A573,Economática!$A$3:$AI$823,26,FALSE))/Y573,(F573+VLOOKUP($A573,Economática!$A$3:$AI$823,26,FALSE))/Y573))","v":""},{"$f":"IF($A573=\"\",\"\",IF(OR(-VLOOKUP($A573,Economática!$A$3:$AI$823,27,FALSE)=0,-VLOOKUP($A573,Economática!$A$3:$AI$823,27,FALSE)=\"-\"),1/0,-VLOOKUP($A573,Economática!$A$3:$AI$823,27,FALSE)))","v":""},"",{"$f":"IF($A573=\"\",\"\",IF(OR(VLOOKUP($A573,Economática!$A$3:$AI$823,28,FALSE)=0,VLOOKUP($A573,Economática!$A$3:$AI$823,28,FALSE)=\"-\"),1/0,VLOOKUP($A573,Economática!$A$3:$AI$823,28,FALSE)))","v":""},{"$f":"IF($A573=\"\",\"\",IF(OR(VLOOKUP($A573,Economática!$A$3:$AI$823,29,FALSE)=0,VLOOKUP($A573,Economática!$A$3:$AI$823,29,FALSE)=\"-\"),1/0,VLOOKUP($A573,Economática!$A$3:$AI$823,29,FALSE)))","v":""},{"$f":"IF($A573=\"\",\"\",IF(OR(VLOOKUP($A573,Economática!$A$3:$AI$823,30,FALSE)/E573=0,VLOOKUP($A573,Economática!$A$3:$AI$823,30,FALSE)/E573=\"-\",VLOOKUP($A573,Economática!$A$3:$AI$823,30,FALSE)/E573<33.33%,VLOOKUP($A573,Economática!$A$3:$AI$823,30,FALSE)/E573>100%),1/0,VLOOKUP($A573,Economática!$A$3:$AI$823,30,FALSE)/E573))","v":""},"",{"$f":"IF($A573=\"\",\"\",IF(OR(VLOOKUP($A573,Economática!$A$3:$AI$823,25,FALSE)=0,VLOOKUP($A573,Economática!$A$3:$AI$823,25,FALSE)=\"-\"),1/0,VLOOKUP($A573,Economática!$A$3:$AI$823,25,FALSE)))","v":""},{"$f":"CONCATENATE(Economática!B551,\" \",Economática!C551)","v":" "}]
[{"$f":"IF(Economática!AG552=\"\",\"\",Economática!AG552)","v":""},{"$f":"IF($A574=\"\",\"\",VLOOKUP(VLOOKUP($A574,Economática!$A$3:$AI$823,6,FALSE),Correção!$B$16:$C$36,2,FALSE))","v":""},{"$f":"IF(Economática!B552=\"\",\"\",Economática!B552)","v":""},{"$f":"IF($A574=\"\",\"\",IF(OR(VLOOKUP($A574,Economática!$A$3:$AI$823,8,FALSE)=0,VLOOKUP($A574,Economática!$A$3:$AI$823,8,FALSE)=\"-\"),1/0,VLOOKUP($A574,Economática!$A$3:$AI$823,8,FALSE)))","v":""},{"$f":"IF(A574=\"\",\"\",IF(ISERROR(VLOOKUP(A574,Correção!$B$2:$G$13,9,FALSE)),VLOOKUP($A574,Economática!$A$3:$AI$823,9,FALSE),VLOOKUP(A574,Correção!$B$2:$G$13,9,FALSE)))","v":""},{"$f":"IF($A574=\"\",\"\",Economática!G552)","v":""},{"$f":"IF($A574=\"\",\"\",IF(OR(VLOOKUP($A574,Economática!$A$3:$AI$823,10,FALSE)=0,VLOOKUP($A574,Economática!$A$3:$AI$823,10,FALSE)=\"-\"),1/0,VLOOKUP($A574,Economática!$A$3:$AI$823,10,FALSE)))","v":""},{"$f":"IF($A574=\"\",\"\",IF(OR(VLOOKUP($A574,Economática!$A$3:$AI$823,11,FALSE)=0,VLOOKUP($A574,Economática!$A$3:$AI$823,11,FALSE)=\"-\"),1/0,VLOOKUP($A574,Economática!$A$3:$AI$823,11,FALSE)))","v":""},{"$f":"IF($A574=\"\",\"\",IF(OR(VLOOKUP($A574,Economática!$A$3:$AI$823,12,FALSE)=0,VLOOKUP($A574,Economática!$A$3:$AI$823,12,FALSE)=\"-\"),1/0,VLOOKUP($A574,Economática!$A$3:$AI$823,12,FALSE)))","v":""},{"$f":"IF($A574=\"\",\"\",IF(OR(VLOOKUP($A574,Economática!$A$3:$AI$823,13,FALSE)=0,VLOOKUP($A574,Economática!$A$3:$AI$823,13,FALSE)=\"-\"),1/0,VLOOKUP($A574,Economática!$A$3:$AI$823,13,FALSE)))","v":""},{"$f":"IF($A574=\"\",\"\",IF(OR(VLOOKUP($A574,Economática!$A$3:$AI$823,14,FALSE)=0,VLOOKUP($A574,Economática!$A$3:$AI$823,14,FALSE)=\"-\"),1/0,VLOOKUP($A574,Economática!$A$3:$AI$823,14,FALSE)))","v":""},{"$f":"IF($A574=\"\",\"\",IF(OR(VLOOKUP($A574,Economática!$A$3:$AI$823,15,FALSE)=0,VLOOKUP($A574,Economática!$A$3:$AI$823,15,FALSE)=\"-\"),1/0,VLOOKUP($A574,Economática!$A$3:$AI$823,15,FALSE)))","v":""},{"$f":"IF($A574=\"\",\"\",IF(OR(VLOOKUP($A574,Economática!$A$3:$AI$823,16,FALSE)=0,VLOOKUP($A574,Economática!$A$3:$AI$823,16,FALSE)=\"-\"),1/0,VLOOKUP($A574,Economática!$A$3:$AI$823,16,FALSE)))","v":""},{"$f":"IF($A574=\"\",\"\",IF(OR(VLOOKUP($A574,Economática!$A$3:$AI$823,17,FALSE)=0,VLOOKUP($A574,Economática!$A$3:$AI$823,17,FALSE)=\"-\"),1/0,VLOOKUP($A574,Economática!$A$3:$AI$823,17,FALSE)))","v":""},{"$f":"IF($A574=\"\",\"\",IF(OR(VLOOKUP($A574,Economática!$A$3:$AI$823,18,FALSE)=0,VLOOKUP($A574,Economática!$A$3:$AI$823,18,FALSE)=\"-\"),1/0,VLOOKUP($A574,Economática!$A$3:$AI$823,18,FALSE)))","v":""},{"$f":"IF($A574=\"\",\"\",IF(OR(VLOOKUP($A574,Economática!$A$3:$AI$823,19,FALSE)=0,VLOOKUP($A574,Economática!$A$3:$AI$823,19,FALSE)=\"-\"),1/0,VLOOKUP($A574,Economática!$A$3:$AI$823,19,FALSE)))","v":""},{"$f":"IF($A574=\"\",\"\",VLOOKUP($A574,Economática!$A$3:$AI$823,20,FALSE)/E574)","v":""},"","","",{"$f":"IF($A574=\"\",\"\",IF(OR(VLOOKUP($A574,Economática!$A$3:$AI$823,21,FALSE)/100=0,VLOOKUP($A574,Economática!$A$3:$AI$823,21,FALSE)/100=\"-\"),1/0,VLOOKUP($A574,Economática!$A$3:$AI$823,21,FALSE)/100))","v":""},{"$f":"IF($A574=\"\",\"\",IF(OR(VLOOKUP($A574,Economática!$A$3:$AI$823,22,FALSE)/100=0,VLOOKUP($A574,Economática!$A$3:$AI$823,22,FALSE)/100=\"-\"),1/0,VLOOKUP($A574,Economática!$A$3:$AI$823,22,FALSE)/100))","v":""},{"$f":"IF($A574=\"\",\"\",IF(OR(VLOOKUP($A574,Economática!$A$3:$AI$823,23,FALSE)=0,VLOOKUP($A574,Economática!$A$3:$AI$823,23,FALSE)=\"-\"),1/0,VLOOKUP($A574,Economática!$A$3:$AI$823,23,FALSE)))","v":""},{"$f":"IF($A574=\"\",\"\",IF(OR(VLOOKUP($A574,Economática!$A$3:$AI$823,24,FALSE)=0,VLOOKUP($A574,Economática!$A$3:$AI$823,24,FALSE)=\"-\"),1/0,VLOOKUP($A574,Economática!$A$3:$AI$823,24,FALSE)))","v":""},{"$f":"IF($A574=\"\",\"\",IF(OR(VLOOKUP($A574,Economática!$A$3:$AI$823,25,FALSE)=0,VLOOKUP($A574,Economática!$A$3:$AI$823,25,FALSE)=\"-\"),1/0,VLOOKUP($A574,Economática!$A$3:$AI$823,25,FALSE)))","v":""},{"$f":"IF($A574=\"\",\"\",IF(ISERROR((F574+VLOOKUP($A574,Economática!$A$3:$AI$823,26,FALSE))/Y574),(F574+VLOOKUP($A574,Economática!$A$3:$AI$823,26,FALSE))/Y574,(F574+VLOOKUP($A574,Economática!$A$3:$AI$823,26,FALSE))/Y574))","v":""},{"$f":"IF($A574=\"\",\"\",IF(OR(-VLOOKUP($A574,Economática!$A$3:$AI$823,27,FALSE)=0,-VLOOKUP($A574,Economática!$A$3:$AI$823,27,FALSE)=\"-\"),1/0,-VLOOKUP($A574,Economática!$A$3:$AI$823,27,FALSE)))","v":""},"",{"$f":"IF($A574=\"\",\"\",IF(OR(VLOOKUP($A574,Economática!$A$3:$AI$823,28,FALSE)=0,VLOOKUP($A574,Economática!$A$3:$AI$823,28,FALSE)=\"-\"),1/0,VLOOKUP($A574,Economática!$A$3:$AI$823,28,FALSE)))","v":""},{"$f":"IF($A574=\"\",\"\",IF(OR(VLOOKUP($A574,Economática!$A$3:$AI$823,29,FALSE)=0,VLOOKUP($A574,Economática!$A$3:$AI$823,29,FALSE)=\"-\"),1/0,VLOOKUP($A574,Economática!$A$3:$AI$823,29,FALSE)))","v":""},{"$f":"IF($A574=\"\",\"\",IF(OR(VLOOKUP($A574,Economática!$A$3:$AI$823,30,FALSE)/E574=0,VLOOKUP($A574,Economática!$A$3:$AI$823,30,FALSE)/E574=\"-\",VLOOKUP($A574,Economática!$A$3:$AI$823,30,FALSE)/E574<33.33%,VLOOKUP($A574,Economática!$A$3:$AI$823,30,FALSE)/E574>100%),1/0,VLOOKUP($A574,Economática!$A$3:$AI$823,30,FALSE)/E574))","v":""},"",{"$f":"IF($A574=\"\",\"\",IF(OR(VLOOKUP($A574,Economática!$A$3:$AI$823,25,FALSE)=0,VLOOKUP($A574,Economática!$A$3:$AI$823,25,FALSE)=\"-\"),1/0,VLOOKUP($A574,Economática!$A$3:$AI$823,25,FALSE)))","v":""},{"$f":"CONCATENATE(Economática!B552,\" \",Economática!C552)","v":" "}]
[{"$f":"IF(Economática!AG553=\"\",\"\",Economática!AG553)","v":""},{"$f":"IF($A575=\"\",\"\",VLOOKUP(VLOOKUP($A575,Economática!$A$3:$AI$823,6,FALSE),Correção!$B$16:$C$36,2,FALSE))","v":""},{"$f":"IF(Economática!B553=\"\",\"\",Economática!B553)","v":""},{"$f":"IF($A575=\"\",\"\",IF(OR(VLOOKUP($A575,Economática!$A$3:$AI$823,8,FALSE)=0,VLOOKUP($A575,Economática!$A$3:$AI$823,8,FALSE)=\"-\"),1/0,VLOOKUP($A575,Economática!$A$3:$AI$823,8,FALSE)))","v":""},{"$f":"IF(A575=\"\",\"\",IF(ISERROR(VLOOKUP(A575,Correção!$B$2:$G$13,9,FALSE)),VLOOKUP($A575,Economática!$A$3:$AI$823,9,FALSE),VLOOKUP(A575,Correção!$B$2:$G$13,9,FALSE)))","v":""},{"$f":"IF($A575=\"\",\"\",Economática!G553)","v":""},{"$f":"IF($A575=\"\",\"\",IF(OR(VLOOKUP($A575,Economática!$A$3:$AI$823,10,FALSE)=0,VLOOKUP($A575,Economática!$A$3:$AI$823,10,FALSE)=\"-\"),1/0,VLOOKUP($A575,Economática!$A$3:$AI$823,10,FALSE)))","v":""},{"$f":"IF($A575=\"\",\"\",IF(OR(VLOOKUP($A575,Economática!$A$3:$AI$823,11,FALSE)=0,VLOOKUP($A575,Economática!$A$3:$AI$823,11,FALSE)=\"-\"),1/0,VLOOKUP($A575,Economática!$A$3:$AI$823,11,FALSE)))","v":""},{"$f":"IF($A575=\"\",\"\",IF(OR(VLOOKUP($A575,Economática!$A$3:$AI$823,12,FALSE)=0,VLOOKUP($A575,Economática!$A$3:$AI$823,12,FALSE)=\"-\"),1/0,VLOOKUP($A575,Economática!$A$3:$AI$823,12,FALSE)))","v":""},{"$f":"IF($A575=\"\",\"\",IF(OR(VLOOKUP($A575,Economática!$A$3:$AI$823,13,FALSE)=0,VLOOKUP($A575,Economática!$A$3:$AI$823,13,FALSE)=\"-\"),1/0,VLOOKUP($A575,Economática!$A$3:$AI$823,13,FALSE)))","v":""},{"$f":"IF($A575=\"\",\"\",IF(OR(VLOOKUP($A575,Economática!$A$3:$AI$823,14,FALSE)=0,VLOOKUP($A575,Economática!$A$3:$AI$823,14,FALSE)=\"-\"),1/0,VLOOKUP($A575,Economática!$A$3:$AI$823,14,FALSE)))","v":""},{"$f":"IF($A575=\"\",\"\",IF(OR(VLOOKUP($A575,Economática!$A$3:$AI$823,15,FALSE)=0,VLOOKUP($A575,Economática!$A$3:$AI$823,15,FALSE)=\"-\"),1/0,VLOOKUP($A575,Economática!$A$3:$AI$823,15,FALSE)))","v":""},{"$f":"IF($A575=\"\",\"\",IF(OR(VLOOKUP($A575,Economática!$A$3:$AI$823,16,FALSE)=0,VLOOKUP($A575,Economática!$A$3:$AI$823,16,FALSE)=\"-\"),1/0,VLOOKUP($A575,Economática!$A$3:$AI$823,16,FALSE)))","v":""},{"$f":"IF($A575=\"\",\"\",IF(OR(VLOOKUP($A575,Economática!$A$3:$AI$823,17,FALSE)=0,VLOOKUP($A575,Economática!$A$3:$AI$823,17,FALSE)=\"-\"),1/0,VLOOKUP($A575,Economática!$A$3:$AI$823,17,FALSE)))","v":""},{"$f":"IF($A575=\"\",\"\",IF(OR(VLOOKUP($A575,Economática!$A$3:$AI$823,18,FALSE)=0,VLOOKUP($A575,Economática!$A$3:$AI$823,18,FALSE)=\"-\"),1/0,VLOOKUP($A575,Economática!$A$3:$AI$823,18,FALSE)))","v":""},{"$f":"IF($A575=\"\",\"\",IF(OR(VLOOKUP($A575,Economática!$A$3:$AI$823,19,FALSE)=0,VLOOKUP($A575,Economática!$A$3:$AI$823,19,FALSE)=\"-\"),1/0,VLOOKUP($A575,Economática!$A$3:$AI$823,19,FALSE)))","v":""},{"$f":"IF($A575=\"\",\"\",VLOOKUP($A575,Economática!$A$3:$AI$823,20,FALSE)/E575)","v":""},{"$f":"IF($A575=\"\",\"\",IF((G575/E575)<=0,1/0,G575/E575))","v":""},{"$f":"IF($A575=\"\",\"\",D575/R575)","v":""},{"$f":"IF($A575=\"\",\"\",IF((D575/Q575)<=0,1/0,D575/Q575))","v":""},{"$f":"IF($A575=\"\",\"\",IF(OR(VLOOKUP($A575,Economática!$A$3:$AI$823,21,FALSE)/100=0,VLOOKUP($A575,Economática!$A$3:$AI$823,21,FALSE)/100=\"-\"),1/0,VLOOKUP($A575,Economática!$A$3:$AI$823,21,FALSE)/100))","v":""},{"$f":"IF($A575=\"\",\"\",IF(OR(VLOOKUP($A575,Economática!$A$3:$AI$823,22,FALSE)/100=0,VLOOKUP($A575,Economática!$A$3:$AI$823,22,FALSE)/100=\"-\"),1/0,VLOOKUP($A575,Economática!$A$3:$AI$823,22,FALSE)/100))","v":""},{"$f":"IF($A575=\"\",\"\",IF(OR(VLOOKUP($A575,Economática!$A$3:$AI$823,23,FALSE)=0,VLOOKUP($A575,Economática!$A$3:$AI$823,23,FALSE)=\"-\"),1/0,VLOOKUP($A575,Economática!$A$3:$AI$823,23,FALSE)))","v":""},{"$f":"IF($A575=\"\",\"\",IF(OR(VLOOKUP($A575,Economática!$A$3:$AI$823,24,FALSE)=0,VLOOKUP($A575,Economática!$A$3:$AI$823,24,FALSE)=\"-\"),1/0,VLOOKUP($A575,Economática!$A$3:$AI$823,24,FALSE)))","v":""},{"$f":"IF($A575=\"\",\"\",IF(OR(VLOOKUP($A575,Economática!$A$3:$AI$823,25,FALSE)=0,VLOOKUP($A575,Economática!$A$3:$AI$823,25,FALSE)=\"-\"),1/0,VLOOKUP($A575,Economática!$A$3:$AI$823,25,FALSE)))","v":""},{"$f":"IF($A575=\"\",\"\",IF(ISERROR((F575+VLOOKUP($A575,Economática!$A$3:$AI$823,26,FALSE))/Y575),(F575+VLOOKUP($A575,Economática!$A$3:$AI$823,26,FALSE))/Y575,(F575+VLOOKUP($A575,Economática!$A$3:$AI$823,26,FALSE))/Y575))","v":""},{"$f":"IF($A575=\"\",\"\",IF(OR(-VLOOKUP($A575,Economática!$A$3:$AI$823,27,FALSE)=0,-VLOOKUP($A575,Economática!$A$3:$AI$823,27,FALSE)=\"-\"),1/0,-VLOOKUP($A575,Economática!$A$3:$AI$823,27,FALSE)))","v":""},{"$f":"IF(A575=\"\",\"\",AA575/F575)","v":""},{"$f":"IF($A575=\"\",\"\",IF(OR(VLOOKUP($A575,Economática!$A$3:$AI$823,28,FALSE)=0,VLOOKUP($A575,Economática!$A$3:$AI$823,28,FALSE)=\"-\"),1/0,VLOOKUP($A575,Economática!$A$3:$AI$823,28,FALSE)))","v":""},{"$f":"IF($A575=\"\",\"\",IF(OR(VLOOKUP($A575,Economática!$A$3:$AI$823,29,FALSE)=0,VLOOKUP($A575,Economática!$A$3:$AI$823,29,FALSE)=\"-\"),1/0,VLOOKUP($A575,Economática!$A$3:$AI$823,29,FALSE)))","v":""},{"$f":"IF($A575=\"\",\"\",IF(OR(VLOOKUP($A575,Economática!$A$3:$AI$823,30,FALSE)/E575=0,VLOOKUP($A575,Economática!$A$3:$AI$823,30,FALSE)/E575=\"-\",VLOOKUP($A575,Economática!$A$3:$AI$823,30,FALSE)/E575<33.33%,VLOOKUP($A575,Economática!$A$3:$AI$823,30,FALSE)/E575>100%),1/0,VLOOKUP($A575,Economática!$A$3:$AI$823,30,FALSE)/E575))","v":""},{"$f":"IF(A575=\"\",\"\",A575)","v":""},{"$f":"IF($A575=\"\",\"\",IF(OR(VLOOKUP($A575,Economática!$A$3:$AI$823,25,FALSE)=0,VLOOKUP($A575,Economática!$A$3:$AI$823,25,FALSE)=\"-\"),1/0,VLOOKUP($A575,Economática!$A$3:$AI$823,25,FALSE)))","v":""},{"$f":"CONCATENATE(Economática!B553,\" \",Economática!C553)","v":" "}]
[{"$f":"IF(Economática!AG554=\"\",\"\",Economática!AG554)","v":""},{"$f":"IF($A576=\"\",\"\",VLOOKUP(VLOOKUP($A576,Economática!$A$3:$AI$823,6,FALSE),Correção!$B$16:$C$36,2,FALSE))","v":""},{"$f":"IF(Economática!B554=\"\",\"\",Economática!B554)","v":""},{"$f":"IF($A576=\"\",\"\",IF(OR(VLOOKUP($A576,Economática!$A$3:$AI$823,8,FALSE)=0,VLOOKUP($A576,Economática!$A$3:$AI$823,8,FALSE)=\"-\"),1/0,VLOOKUP($A576,Economática!$A$3:$AI$823,8,FALSE)))","v":""},{"$f":"IF(A576=\"\",\"\",IF(ISERROR(VLOOKUP(A576,Correção!$B$2:$G$13,9,FALSE)),VLOOKUP($A576,Economática!$A$3:$AI$823,9,FALSE),VLOOKUP(A576,Correção!$B$2:$G$13,9,FALSE)))","v":""},{"$f":"IF($A576=\"\",\"\",Economática!G554)","v":""},{"$f":"IF($A576=\"\",\"\",IF(OR(VLOOKUP($A576,Economática!$A$3:$AI$823,10,FALSE)=0,VLOOKUP($A576,Economática!$A$3:$AI$823,10,FALSE)=\"-\"),1/0,VLOOKUP($A576,Economática!$A$3:$AI$823,10,FALSE)))","v":""},{"$f":"IF($A576=\"\",\"\",IF(OR(VLOOKUP($A576,Economática!$A$3:$AI$823,11,FALSE)=0,VLOOKUP($A576,Economática!$A$3:$AI$823,11,FALSE)=\"-\"),1/0,VLOOKUP($A576,Economática!$A$3:$AI$823,11,FALSE)))","v":""},{"$f":"IF($A576=\"\",\"\",IF(OR(VLOOKUP($A576,Economática!$A$3:$AI$823,12,FALSE)=0,VLOOKUP($A576,Economática!$A$3:$AI$823,12,FALSE)=\"-\"),1/0,VLOOKUP($A576,Economática!$A$3:$AI$823,12,FALSE)))","v":""},{"$f":"IF($A576=\"\",\"\",IF(OR(VLOOKUP($A576,Economática!$A$3:$AI$823,13,FALSE)=0,VLOOKUP($A576,Economática!$A$3:$AI$823,13,FALSE)=\"-\"),1/0,VLOOKUP($A576,Economática!$A$3:$AI$823,13,FALSE)))","v":""},{"$f":"IF($A576=\"\",\"\",IF(OR(VLOOKUP($A576,Economática!$A$3:$AI$823,14,FALSE)=0,VLOOKUP($A576,Economática!$A$3:$AI$823,14,FALSE)=\"-\"),1/0,VLOOKUP($A576,Economática!$A$3:$AI$823,14,FALSE)))","v":""},{"$f":"IF($A576=\"\",\"\",IF(OR(VLOOKUP($A576,Economática!$A$3:$AI$823,15,FALSE)=0,VLOOKUP($A576,Economática!$A$3:$AI$823,15,FALSE)=\"-\"),1/0,VLOOKUP($A576,Economática!$A$3:$AI$823,15,FALSE)))","v":""},{"$f":"IF($A576=\"\",\"\",IF(OR(VLOOKUP($A576,Economática!$A$3:$AI$823,16,FALSE)=0,VLOOKUP($A576,Economática!$A$3:$AI$823,16,FALSE)=\"-\"),1/0,VLOOKUP($A576,Economática!$A$3:$AI$823,16,FALSE)))","v":""},{"$f":"IF($A576=\"\",\"\",IF(OR(VLOOKUP($A576,Economática!$A$3:$AI$823,17,FALSE)=0,VLOOKUP($A576,Economática!$A$3:$AI$823,17,FALSE)=\"-\"),1/0,VLOOKUP($A576,Economática!$A$3:$AI$823,17,FALSE)))","v":""},{"$f":"IF($A576=\"\",\"\",IF(OR(VLOOKUP($A576,Economática!$A$3:$AI$823,18,FALSE)=0,VLOOKUP($A576,Economática!$A$3:$AI$823,18,FALSE)=\"-\"),1/0,VLOOKUP($A576,Economática!$A$3:$AI$823,18,FALSE)))","v":""},{"$f":"IF($A576=\"\",\"\",IF(OR(VLOOKUP($A576,Economática!$A$3:$AI$823,19,FALSE)=0,VLOOKUP($A576,Economática!$A$3:$AI$823,19,FALSE)=\"-\"),1/0,VLOOKUP($A576,Economática!$A$3:$AI$823,19,FALSE)))","v":""},{"$f":"IF($A576=\"\",\"\",VLOOKUP($A576,Economática!$A$3:$AI$823,20,FALSE)/E576)","v":""},"","","",{"$f":"IF($A576=\"\",\"\",IF(OR(VLOOKUP($A576,Economática!$A$3:$AI$823,21,FALSE)/100=0,VLOOKUP($A576,Economática!$A$3:$AI$823,21,FALSE)/100=\"-\"),1/0,VLOOKUP($A576,Economática!$A$3:$AI$823,21,FALSE)/100))","v":""},{"$f":"IF($A576=\"\",\"\",IF(OR(VLOOKUP($A576,Economática!$A$3:$AI$823,22,FALSE)/100=0,VLOOKUP($A576,Economática!$A$3:$AI$823,22,FALSE)/100=\"-\"),1/0,VLOOKUP($A576,Economática!$A$3:$AI$823,22,FALSE)/100))","v":""},{"$f":"IF($A576=\"\",\"\",IF(OR(VLOOKUP($A576,Economática!$A$3:$AI$823,23,FALSE)=0,VLOOKUP($A576,Economática!$A$3:$AI$823,23,FALSE)=\"-\"),1/0,VLOOKUP($A576,Economática!$A$3:$AI$823,23,FALSE)))","v":""},{"$f":"IF($A576=\"\",\"\",IF(OR(VLOOKUP($A576,Economática!$A$3:$AI$823,24,FALSE)=0,VLOOKUP($A576,Economática!$A$3:$AI$823,24,FALSE)=\"-\"),1/0,VLOOKUP($A576,Economática!$A$3:$AI$823,24,FALSE)))","v":""},{"$f":"IF($A576=\"\",\"\",IF(OR(VLOOKUP($A576,Economática!$A$3:$AI$823,25,FALSE)=0,VLOOKUP($A576,Economática!$A$3:$AI$823,25,FALSE)=\"-\"),1/0,VLOOKUP($A576,Economática!$A$3:$AI$823,25,FALSE)))","v":""},{"$f":"IF($A576=\"\",\"\",IF(ISERROR((F576+VLOOKUP($A576,Economática!$A$3:$AI$823,26,FALSE))/Y576),(F576+VLOOKUP($A576,Economática!$A$3:$AI$823,26,FALSE))/Y576,(F576+VLOOKUP($A576,Economática!$A$3:$AI$823,26,FALSE))/Y576))","v":""},{"$f":"IF($A576=\"\",\"\",IF(OR(-VLOOKUP($A576,Economática!$A$3:$AI$823,27,FALSE)=0,-VLOOKUP($A576,Economática!$A$3:$AI$823,27,FALSE)=\"-\"),1/0,-VLOOKUP($A576,Economática!$A$3:$AI$823,27,FALSE)))","v":""},"",{"$f":"IF($A576=\"\",\"\",IF(OR(VLOOKUP($A576,Economática!$A$3:$AI$823,28,FALSE)=0,VLOOKUP($A576,Economática!$A$3:$AI$823,28,FALSE)=\"-\"),1/0,VLOOKUP($A576,Economática!$A$3:$AI$823,28,FALSE)))","v":""},{"$f":"IF($A576=\"\",\"\",IF(OR(VLOOKUP($A576,Economática!$A$3:$AI$823,29,FALSE)=0,VLOOKUP($A576,Economática!$A$3:$AI$823,29,FALSE)=\"-\"),1/0,VLOOKUP($A576,Economática!$A$3:$AI$823,29,FALSE)))","v":""},{"$f":"IF($A576=\"\",\"\",IF(OR(VLOOKUP($A576,Economática!$A$3:$AI$823,30,FALSE)/E576=0,VLOOKUP($A576,Economática!$A$3:$AI$823,30,FALSE)/E576=\"-\",VLOOKUP($A576,Economática!$A$3:$AI$823,30,FALSE)/E576<33.33%,VLOOKUP($A576,Economática!$A$3:$AI$823,30,FALSE)/E576>100%),1/0,VLOOKUP($A576,Economática!$A$3:$AI$823,30,FALSE)/E576))","v":""},"",{"$f":"IF($A576=\"\",\"\",IF(OR(VLOOKUP($A576,Economática!$A$3:$AI$823,25,FALSE)=0,VLOOKUP($A576,Economática!$A$3:$AI$823,25,FALSE)=\"-\"),1/0,VLOOKUP($A576,Economática!$A$3:$AI$823,25,FALSE)))","v":""},{"$f":"CONCATENATE(Economática!B554,\" \",Economática!C554)","v":" "}]
[{"$f":"IF(Economática!AG555=\"\",\"\",Economática!AG555)","v":""},{"$f":"IF($A577=\"\",\"\",VLOOKUP(VLOOKUP($A577,Economática!$A$3:$AI$823,6,FALSE),Correção!$B$16:$C$36,2,FALSE))","v":""},{"$f":"IF(Economática!B555=\"\",\"\",Economática!B555)","v":""},{"$f":"IF($A577=\"\",\"\",IF(OR(VLOOKUP($A577,Economática!$A$3:$AI$823,8,FALSE)=0,VLOOKUP($A577,Economática!$A$3:$AI$823,8,FALSE)=\"-\"),1/0,VLOOKUP($A577,Economática!$A$3:$AI$823,8,FALSE)))","v":""},{"$f":"IF(A577=\"\",\"\",IF(ISERROR(VLOOKUP(A577,Correção!$B$2:$G$13,9,FALSE)),VLOOKUP($A577,Economática!$A$3:$AI$823,9,FALSE),VLOOKUP(A577,Correção!$B$2:$G$13,9,FALSE)))","v":""},{"$f":"IF($A577=\"\",\"\",Economática!G555)","v":""},{"$f":"IF($A577=\"\",\"\",IF(OR(VLOOKUP($A577,Economática!$A$3:$AI$823,10,FALSE)=0,VLOOKUP($A577,Economática!$A$3:$AI$823,10,FALSE)=\"-\"),1/0,VLOOKUP($A577,Economática!$A$3:$AI$823,10,FALSE)))","v":""},{"$f":"IF($A577=\"\",\"\",IF(OR(VLOOKUP($A577,Economática!$A$3:$AI$823,11,FALSE)=0,VLOOKUP($A577,Economática!$A$3:$AI$823,11,FALSE)=\"-\"),1/0,VLOOKUP($A577,Economática!$A$3:$AI$823,11,FALSE)))","v":""},{"$f":"IF($A577=\"\",\"\",IF(OR(VLOOKUP($A577,Economática!$A$3:$AI$823,12,FALSE)=0,VLOOKUP($A577,Economática!$A$3:$AI$823,12,FALSE)=\"-\"),1/0,VLOOKUP($A577,Economática!$A$3:$AI$823,12,FALSE)))","v":""},{"$f":"IF($A577=\"\",\"\",IF(OR(VLOOKUP($A577,Economática!$A$3:$AI$823,13,FALSE)=0,VLOOKUP($A577,Economática!$A$3:$AI$823,13,FALSE)=\"-\"),1/0,VLOOKUP($A577,Economática!$A$3:$AI$823,13,FALSE)))","v":""},{"$f":"IF($A577=\"\",\"\",IF(OR(VLOOKUP($A577,Economática!$A$3:$AI$823,14,FALSE)=0,VLOOKUP($A577,Economática!$A$3:$AI$823,14,FALSE)=\"-\"),1/0,VLOOKUP($A577,Economática!$A$3:$AI$823,14,FALSE)))","v":""},{"$f":"IF($A577=\"\",\"\",IF(OR(VLOOKUP($A577,Economática!$A$3:$AI$823,15,FALSE)=0,VLOOKUP($A577,Economática!$A$3:$AI$823,15,FALSE)=\"-\"),1/0,VLOOKUP($A577,Economática!$A$3:$AI$823,15,FALSE)))","v":""},{"$f":"IF($A577=\"\",\"\",IF(OR(VLOOKUP($A577,Economática!$A$3:$AI$823,16,FALSE)=0,VLOOKUP($A577,Economática!$A$3:$AI$823,16,FALSE)=\"-\"),1/0,VLOOKUP($A577,Economática!$A$3:$AI$823,16,FALSE)))","v":""},{"$f":"IF($A577=\"\",\"\",IF(OR(VLOOKUP($A577,Economática!$A$3:$AI$823,17,FALSE)=0,VLOOKUP($A577,Economática!$A$3:$AI$823,17,FALSE)=\"-\"),1/0,VLOOKUP($A577,Economática!$A$3:$AI$823,17,FALSE)))","v":""},{"$f":"IF($A577=\"\",\"\",IF(OR(VLOOKUP($A577,Economática!$A$3:$AI$823,18,FALSE)=0,VLOOKUP($A577,Economática!$A$3:$AI$823,18,FALSE)=\"-\"),1/0,VLOOKUP($A577,Economática!$A$3:$AI$823,18,FALSE)))","v":""},{"$f":"IF($A577=\"\",\"\",IF(OR(VLOOKUP($A577,Economática!$A$3:$AI$823,19,FALSE)=0,VLOOKUP($A577,Economática!$A$3:$AI$823,19,FALSE)=\"-\"),1/0,VLOOKUP($A577,Economática!$A$3:$AI$823,19,FALSE)))","v":""},{"$f":"IF($A577=\"\",\"\",VLOOKUP($A577,Economática!$A$3:$AI$823,20,FALSE)/E577)","v":""},"","","",{"$f":"IF($A577=\"\",\"\",IF(OR(VLOOKUP($A577,Economática!$A$3:$AI$823,21,FALSE)/100=0,VLOOKUP($A577,Economática!$A$3:$AI$823,21,FALSE)/100=\"-\"),1/0,VLOOKUP($A577,Economática!$A$3:$AI$823,21,FALSE)/100))","v":""},{"$f":"IF($A577=\"\",\"\",IF(OR(VLOOKUP($A577,Economática!$A$3:$AI$823,22,FALSE)/100=0,VLOOKUP($A577,Economática!$A$3:$AI$823,22,FALSE)/100=\"-\"),1/0,VLOOKUP($A577,Economática!$A$3:$AI$823,22,FALSE)/100))","v":""},{"$f":"IF($A577=\"\",\"\",IF(OR(VLOOKUP($A577,Economática!$A$3:$AI$823,23,FALSE)=0,VLOOKUP($A577,Economática!$A$3:$AI$823,23,FALSE)=\"-\"),1/0,VLOOKUP($A577,Economática!$A$3:$AI$823,23,FALSE)))","v":""},{"$f":"IF($A577=\"\",\"\",IF(OR(VLOOKUP($A577,Economática!$A$3:$AI$823,24,FALSE)=0,VLOOKUP($A577,Economática!$A$3:$AI$823,24,FALSE)=\"-\"),1/0,VLOOKUP($A577,Economática!$A$3:$AI$823,24,FALSE)))","v":""},{"$f":"IF($A577=\"\",\"\",IF(OR(VLOOKUP($A577,Economática!$A$3:$AI$823,25,FALSE)=0,VLOOKUP($A577,Economática!$A$3:$AI$823,25,FALSE)=\"-\"),1/0,VLOOKUP($A577,Economática!$A$3:$AI$823,25,FALSE)))","v":""},{"$f":"IF($A577=\"\",\"\",IF(ISERROR((F577+VLOOKUP($A577,Economática!$A$3:$AI$823,26,FALSE))/Y577),(F577+VLOOKUP($A577,Economática!$A$3:$AI$823,26,FALSE))/Y577,(F577+VLOOKUP($A577,Economática!$A$3:$AI$823,26,FALSE))/Y577))","v":""},{"$f":"IF($A577=\"\",\"\",IF(OR(-VLOOKUP($A577,Economática!$A$3:$AI$823,27,FALSE)=0,-VLOOKUP($A577,Economática!$A$3:$AI$823,27,FALSE)=\"-\"),1/0,-VLOOKUP($A577,Economática!$A$3:$AI$823,27,FALSE)))","v":""},"",{"$f":"IF($A577=\"\",\"\",IF(OR(VLOOKUP($A577,Economática!$A$3:$AI$823,28,FALSE)=0,VLOOKUP($A577,Economática!$A$3:$AI$823,28,FALSE)=\"-\"),1/0,VLOOKUP($A577,Economática!$A$3:$AI$823,28,FALSE)))","v":""},{"$f":"IF($A577=\"\",\"\",IF(OR(VLOOKUP($A577,Economática!$A$3:$AI$823,29,FALSE)=0,VLOOKUP($A577,Economática!$A$3:$AI$823,29,FALSE)=\"-\"),1/0,VLOOKUP($A577,Economática!$A$3:$AI$823,29,FALSE)))","v":""},{"$f":"IF($A577=\"\",\"\",IF(OR(VLOOKUP($A577,Economática!$A$3:$AI$823,30,FALSE)/E577=0,VLOOKUP($A577,Economática!$A$3:$AI$823,30,FALSE)/E577=\"-\",VLOOKUP($A577,Economática!$A$3:$AI$823,30,FALSE)/E577<33.33%,VLOOKUP($A577,Economática!$A$3:$AI$823,30,FALSE)/E577>100%),1/0,VLOOKUP($A577,Economática!$A$3:$AI$823,30,FALSE)/E577))","v":""},"",{"$f":"IF($A577=\"\",\"\",IF(OR(VLOOKUP($A577,Economática!$A$3:$AI$823,25,FALSE)=0,VLOOKUP($A577,Economática!$A$3:$AI$823,25,FALSE)=\"-\"),1/0,VLOOKUP($A577,Economática!$A$3:$AI$823,25,FALSE)))","v":""},{"$f":"CONCATENATE(Economática!B555,\" \",Economática!C555)","v":" "}]
[{"$f":"IF(Economática!AG556=\"\",\"\",Economática!AG556)","v":""},{"$f":"IF($A578=\"\",\"\",VLOOKUP(VLOOKUP($A578,Economática!$A$3:$AI$823,6,FALSE),Correção!$B$16:$C$36,2,FALSE))","v":""},{"$f":"IF(Economática!B556=\"\",\"\",Economática!B556)","v":""},{"$f":"IF($A578=\"\",\"\",IF(OR(VLOOKUP($A578,Economática!$A$3:$AI$823,8,FALSE)=0,VLOOKUP($A578,Economática!$A$3:$AI$823,8,FALSE)=\"-\"),1/0,VLOOKUP($A578,Economática!$A$3:$AI$823,8,FALSE)))","v":""},{"$f":"IF(A578=\"\",\"\",IF(ISERROR(VLOOKUP(A578,Correção!$B$2:$G$13,9,FALSE)),VLOOKUP($A578,Economática!$A$3:$AI$823,9,FALSE),VLOOKUP(A578,Correção!$B$2:$G$13,9,FALSE)))","v":""},{"$f":"IF($A578=\"\",\"\",Economática!G556)","v":""},{"$f":"IF($A578=\"\",\"\",IF(OR(VLOOKUP($A578,Economática!$A$3:$AI$823,10,FALSE)=0,VLOOKUP($A578,Economática!$A$3:$AI$823,10,FALSE)=\"-\"),1/0,VLOOKUP($A578,Economática!$A$3:$AI$823,10,FALSE)))","v":""},{"$f":"IF($A578=\"\",\"\",IF(OR(VLOOKUP($A578,Economática!$A$3:$AI$823,11,FALSE)=0,VLOOKUP($A578,Economática!$A$3:$AI$823,11,FALSE)=\"-\"),1/0,VLOOKUP($A578,Economática!$A$3:$AI$823,11,FALSE)))","v":""},{"$f":"IF($A578=\"\",\"\",IF(OR(VLOOKUP($A578,Economática!$A$3:$AI$823,12,FALSE)=0,VLOOKUP($A578,Economática!$A$3:$AI$823,12,FALSE)=\"-\"),1/0,VLOOKUP($A578,Economática!$A$3:$AI$823,12,FALSE)))","v":""},{"$f":"IF($A578=\"\",\"\",IF(OR(VLOOKUP($A578,Economática!$A$3:$AI$823,13,FALSE)=0,VLOOKUP($A578,Economática!$A$3:$AI$823,13,FALSE)=\"-\"),1/0,VLOOKUP($A578,Economática!$A$3:$AI$823,13,FALSE)))","v":""},{"$f":"IF($A578=\"\",\"\",IF(OR(VLOOKUP($A578,Economática!$A$3:$AI$823,14,FALSE)=0,VLOOKUP($A578,Economática!$A$3:$AI$823,14,FALSE)=\"-\"),1/0,VLOOKUP($A578,Economática!$A$3:$AI$823,14,FALSE)))","v":""},{"$f":"IF($A578=\"\",\"\",IF(OR(VLOOKUP($A578,Economática!$A$3:$AI$823,15,FALSE)=0,VLOOKUP($A578,Economática!$A$3:$AI$823,15,FALSE)=\"-\"),1/0,VLOOKUP($A578,Economática!$A$3:$AI$823,15,FALSE)))","v":""},{"$f":"IF($A578=\"\",\"\",IF(OR(VLOOKUP($A578,Economática!$A$3:$AI$823,16,FALSE)=0,VLOOKUP($A578,Economática!$A$3:$AI$823,16,FALSE)=\"-\"),1/0,VLOOKUP($A578,Economática!$A$3:$AI$823,16,FALSE)))","v":""},{"$f":"IF($A578=\"\",\"\",IF(OR(VLOOKUP($A578,Economática!$A$3:$AI$823,17,FALSE)=0,VLOOKUP($A578,Economática!$A$3:$AI$823,17,FALSE)=\"-\"),1/0,VLOOKUP($A578,Economática!$A$3:$AI$823,17,FALSE)))","v":""},{"$f":"IF($A578=\"\",\"\",IF(OR(VLOOKUP($A578,Economática!$A$3:$AI$823,18,FALSE)=0,VLOOKUP($A578,Economática!$A$3:$AI$823,18,FALSE)=\"-\"),1/0,VLOOKUP($A578,Economática!$A$3:$AI$823,18,FALSE)))","v":""},{"$f":"IF($A578=\"\",\"\",IF(OR(VLOOKUP($A578,Economática!$A$3:$AI$823,19,FALSE)=0,VLOOKUP($A578,Economática!$A$3:$AI$823,19,FALSE)=\"-\"),1/0,VLOOKUP($A578,Economática!$A$3:$AI$823,19,FALSE)))","v":""},{"$f":"IF($A578=\"\",\"\",VLOOKUP($A578,Economática!$A$3:$AI$823,20,FALSE)/E578)","v":""},"","","",{"$f":"IF($A578=\"\",\"\",IF(OR(VLOOKUP($A578,Economática!$A$3:$AI$823,21,FALSE)/100=0,VLOOKUP($A578,Economática!$A$3:$AI$823,21,FALSE)/100=\"-\"),1/0,VLOOKUP($A578,Economática!$A$3:$AI$823,21,FALSE)/100))","v":""},{"$f":"IF($A578=\"\",\"\",IF(OR(VLOOKUP($A578,Economática!$A$3:$AI$823,22,FALSE)/100=0,VLOOKUP($A578,Economática!$A$3:$AI$823,22,FALSE)/100=\"-\"),1/0,VLOOKUP($A578,Economática!$A$3:$AI$823,22,FALSE)/100))","v":""},{"$f":"IF($A578=\"\",\"\",IF(OR(VLOOKUP($A578,Economática!$A$3:$AI$823,23,FALSE)=0,VLOOKUP($A578,Economática!$A$3:$AI$823,23,FALSE)=\"-\"),1/0,VLOOKUP($A578,Economática!$A$3:$AI$823,23,FALSE)))","v":""},{"$f":"IF($A578=\"\",\"\",IF(OR(VLOOKUP($A578,Economática!$A$3:$AI$823,24,FALSE)=0,VLOOKUP($A578,Economática!$A$3:$AI$823,24,FALSE)=\"-\"),1/0,VLOOKUP($A578,Economática!$A$3:$AI$823,24,FALSE)))","v":""},{"$f":"IF($A578=\"\",\"\",IF(OR(VLOOKUP($A578,Economática!$A$3:$AI$823,25,FALSE)=0,VLOOKUP($A578,Economática!$A$3:$AI$823,25,FALSE)=\"-\"),1/0,VLOOKUP($A578,Economática!$A$3:$AI$823,25,FALSE)))","v":""},{"$f":"IF($A578=\"\",\"\",IF(ISERROR((F578+VLOOKUP($A578,Economática!$A$3:$AI$823,26,FALSE))/Y578),(F578+VLOOKUP($A578,Economática!$A$3:$AI$823,26,FALSE))/Y578,(F578+VLOOKUP($A578,Economática!$A$3:$AI$823,26,FALSE))/Y578))","v":""},{"$f":"IF($A578=\"\",\"\",IF(OR(-VLOOKUP($A578,Economática!$A$3:$AI$823,27,FALSE)=0,-VLOOKUP($A578,Economática!$A$3:$AI$823,27,FALSE)=\"-\"),1/0,-VLOOKUP($A578,Economática!$A$3:$AI$823,27,FALSE)))","v":""},"",{"$f":"IF($A578=\"\",\"\",IF(OR(VLOOKUP($A578,Economática!$A$3:$AI$823,28,FALSE)=0,VLOOKUP($A578,Economática!$A$3:$AI$823,28,FALSE)=\"-\"),1/0,VLOOKUP($A578,Economática!$A$3:$AI$823,28,FALSE)))","v":""},{"$f":"IF($A578=\"\",\"\",IF(OR(VLOOKUP($A578,Economática!$A$3:$AI$823,29,FALSE)=0,VLOOKUP($A578,Economática!$A$3:$AI$823,29,FALSE)=\"-\"),1/0,VLOOKUP($A578,Economática!$A$3:$AI$823,29,FALSE)))","v":""},{"$f":"IF($A578=\"\",\"\",IF(OR(VLOOKUP($A578,Economática!$A$3:$AI$823,30,FALSE)/E578=0,VLOOKUP($A578,Economática!$A$3:$AI$823,30,FALSE)/E578=\"-\",VLOOKUP($A578,Economática!$A$3:$AI$823,30,FALSE)/E578<33.33%,VLOOKUP($A578,Economática!$A$3:$AI$823,30,FALSE)/E578>100%),1/0,VLOOKUP($A578,Economática!$A$3:$AI$823,30,FALSE)/E578))","v":""},"",{"$f":"IF($A578=\"\",\"\",IF(OR(VLOOKUP($A578,Economática!$A$3:$AI$823,25,FALSE)=0,VLOOKUP($A578,Economática!$A$3:$AI$823,25,FALSE)=\"-\"),1/0,VLOOKUP($A578,Economática!$A$3:$AI$823,25,FALSE)))","v":""},{"$f":"CONCATENATE(Economática!B556,\" \",Economática!C556)","v":" "}]
[{"$f":"IF(Economática!AG557=\"\",\"\",Economática!AG557)","v":""},{"$f":"IF($A579=\"\",\"\",VLOOKUP(VLOOKUP($A579,Economática!$A$3:$AI$823,6,FALSE),Correção!$B$16:$C$36,2,FALSE))","v":""},{"$f":"IF(Economática!B557=\"\",\"\",Economática!B557)","v":""},{"$f":"IF($A579=\"\",\"\",IF(OR(VLOOKUP($A579,Economática!$A$3:$AI$823,8,FALSE)=0,VLOOKUP($A579,Economática!$A$3:$AI$823,8,FALSE)=\"-\"),1/0,VLOOKUP($A579,Economática!$A$3:$AI$823,8,FALSE)))","v":""},{"$f":"IF(A579=\"\",\"\",IF(ISERROR(VLOOKUP(A579,Correção!$B$2:$G$13,9,FALSE)),VLOOKUP($A579,Economática!$A$3:$AI$823,9,FALSE),VLOOKUP(A579,Correção!$B$2:$G$13,9,FALSE)))","v":""},{"$f":"IF($A579=\"\",\"\",Economática!G557)","v":""},{"$f":"IF($A579=\"\",\"\",IF(OR(VLOOKUP($A579,Economática!$A$3:$AI$823,10,FALSE)=0,VLOOKUP($A579,Economática!$A$3:$AI$823,10,FALSE)=\"-\"),1/0,VLOOKUP($A579,Economática!$A$3:$AI$823,10,FALSE)))","v":""},{"$f":"IF($A579=\"\",\"\",IF(OR(VLOOKUP($A579,Economática!$A$3:$AI$823,11,FALSE)=0,VLOOKUP($A579,Economática!$A$3:$AI$823,11,FALSE)=\"-\"),1/0,VLOOKUP($A579,Economática!$A$3:$AI$823,11,FALSE)))","v":""},{"$f":"IF($A579=\"\",\"\",IF(OR(VLOOKUP($A579,Economática!$A$3:$AI$823,12,FALSE)=0,VLOOKUP($A579,Economática!$A$3:$AI$823,12,FALSE)=\"-\"),1/0,VLOOKUP($A579,Economática!$A$3:$AI$823,12,FALSE)))","v":""},{"$f":"IF($A579=\"\",\"\",IF(OR(VLOOKUP($A579,Economática!$A$3:$AI$823,13,FALSE)=0,VLOOKUP($A579,Economática!$A$3:$AI$823,13,FALSE)=\"-\"),1/0,VLOOKUP($A579,Economática!$A$3:$AI$823,13,FALSE)))","v":""},{"$f":"IF($A579=\"\",\"\",IF(OR(VLOOKUP($A579,Economática!$A$3:$AI$823,14,FALSE)=0,VLOOKUP($A579,Economática!$A$3:$AI$823,14,FALSE)=\"-\"),1/0,VLOOKUP($A579,Economática!$A$3:$AI$823,14,FALSE)))","v":""},{"$f":"IF($A579=\"\",\"\",IF(OR(VLOOKUP($A579,Economática!$A$3:$AI$823,15,FALSE)=0,VLOOKUP($A579,Economática!$A$3:$AI$823,15,FALSE)=\"-\"),1/0,VLOOKUP($A579,Economática!$A$3:$AI$823,15,FALSE)))","v":""},{"$f":"IF($A579=\"\",\"\",IF(OR(VLOOKUP($A579,Economática!$A$3:$AI$823,16,FALSE)=0,VLOOKUP($A579,Economática!$A$3:$AI$823,16,FALSE)=\"-\"),1/0,VLOOKUP($A579,Economática!$A$3:$AI$823,16,FALSE)))","v":""},{"$f":"IF($A579=\"\",\"\",IF(OR(VLOOKUP($A579,Economática!$A$3:$AI$823,17,FALSE)=0,VLOOKUP($A579,Economática!$A$3:$AI$823,17,FALSE)=\"-\"),1/0,VLOOKUP($A579,Economática!$A$3:$AI$823,17,FALSE)))","v":""},{"$f":"IF($A579=\"\",\"\",IF(OR(VLOOKUP($A579,Economática!$A$3:$AI$823,18,FALSE)=0,VLOOKUP($A579,Economática!$A$3:$AI$823,18,FALSE)=\"-\"),1/0,VLOOKUP($A579,Economática!$A$3:$AI$823,18,FALSE)))","v":""},{"$f":"IF($A579=\"\",\"\",IF(OR(VLOOKUP($A579,Economática!$A$3:$AI$823,19,FALSE)=0,VLOOKUP($A579,Economática!$A$3:$AI$823,19,FALSE)=\"-\"),1/0,VLOOKUP($A579,Economática!$A$3:$AI$823,19,FALSE)))","v":""},{"$f":"IF($A579=\"\",\"\",VLOOKUP($A579,Economática!$A$3:$AI$823,20,FALSE)/E579)","v":""},"","","",{"$f":"IF($A579=\"\",\"\",IF(OR(VLOOKUP($A579,Economática!$A$3:$AI$823,21,FALSE)/100=0,VLOOKUP($A579,Economática!$A$3:$AI$823,21,FALSE)/100=\"-\"),1/0,VLOOKUP($A579,Economática!$A$3:$AI$823,21,FALSE)/100))","v":""},{"$f":"IF($A579=\"\",\"\",IF(OR(VLOOKUP($A579,Economática!$A$3:$AI$823,22,FALSE)/100=0,VLOOKUP($A579,Economática!$A$3:$AI$823,22,FALSE)/100=\"-\"),1/0,VLOOKUP($A579,Economática!$A$3:$AI$823,22,FALSE)/100))","v":""},{"$f":"IF($A579=\"\",\"\",IF(OR(VLOOKUP($A579,Economática!$A$3:$AI$823,23,FALSE)=0,VLOOKUP($A579,Economática!$A$3:$AI$823,23,FALSE)=\"-\"),1/0,VLOOKUP($A579,Economática!$A$3:$AI$823,23,FALSE)))","v":""},{"$f":"IF($A579=\"\",\"\",IF(OR(VLOOKUP($A579,Economática!$A$3:$AI$823,24,FALSE)=0,VLOOKUP($A579,Economática!$A$3:$AI$823,24,FALSE)=\"-\"),1/0,VLOOKUP($A579,Economática!$A$3:$AI$823,24,FALSE)))","v":""},{"$f":"IF($A579=\"\",\"\",IF(OR(VLOOKUP($A579,Economática!$A$3:$AI$823,25,FALSE)=0,VLOOKUP($A579,Economática!$A$3:$AI$823,25,FALSE)=\"-\"),1/0,VLOOKUP($A579,Economática!$A$3:$AI$823,25,FALSE)))","v":""},{"$f":"IF($A579=\"\",\"\",IF(ISERROR((F579+VLOOKUP($A579,Economática!$A$3:$AI$823,26,FALSE))/Y579),(F579+VLOOKUP($A579,Economática!$A$3:$AI$823,26,FALSE))/Y579,(F579+VLOOKUP($A579,Economática!$A$3:$AI$823,26,FALSE))/Y579))","v":""},{"$f":"IF($A579=\"\",\"\",IF(OR(-VLOOKUP($A579,Economática!$A$3:$AI$823,27,FALSE)=0,-VLOOKUP($A579,Economática!$A$3:$AI$823,27,FALSE)=\"-\"),1/0,-VLOOKUP($A579,Economática!$A$3:$AI$823,27,FALSE)))","v":""},"",{"$f":"IF($A579=\"\",\"\",IF(OR(VLOOKUP($A579,Economática!$A$3:$AI$823,28,FALSE)=0,VLOOKUP($A579,Economática!$A$3:$AI$823,28,FALSE)=\"-\"),1/0,VLOOKUP($A579,Economática!$A$3:$AI$823,28,FALSE)))","v":""},{"$f":"IF($A579=\"\",\"\",IF(OR(VLOOKUP($A579,Economática!$A$3:$AI$823,29,FALSE)=0,VLOOKUP($A579,Economática!$A$3:$AI$823,29,FALSE)=\"-\"),1/0,VLOOKUP($A579,Economática!$A$3:$AI$823,29,FALSE)))","v":""},{"$f":"IF($A579=\"\",\"\",IF(OR(VLOOKUP($A579,Economática!$A$3:$AI$823,30,FALSE)/E579=0,VLOOKUP($A579,Economática!$A$3:$AI$823,30,FALSE)/E579=\"-\",VLOOKUP($A579,Economática!$A$3:$AI$823,30,FALSE)/E579<33.33%,VLOOKUP($A579,Economática!$A$3:$AI$823,30,FALSE)/E579>100%),1/0,VLOOKUP($A579,Economática!$A$3:$AI$823,30,FALSE)/E579))","v":""},"",{"$f":"IF($A579=\"\",\"\",IF(OR(VLOOKUP($A579,Economática!$A$3:$AI$823,25,FALSE)=0,VLOOKUP($A579,Economática!$A$3:$AI$823,25,FALSE)=\"-\"),1/0,VLOOKUP($A579,Economática!$A$3:$AI$823,25,FALSE)))","v":""},{"$f":"CONCATENATE(Economática!B557,\" \",Economática!C557)","v":" "}]
[{"$f":"IF(Economática!AG558=\"\",\"\",Economática!AG558)","v":""},{"$f":"IF($A580=\"\",\"\",VLOOKUP(VLOOKUP($A580,Economática!$A$3:$AI$823,6,FALSE),Correção!$B$16:$C$36,2,FALSE))","v":""},{"$f":"IF(Economática!B558=\"\",\"\",Economática!B558)","v":""},{"$f":"IF($A580=\"\",\"\",IF(OR(VLOOKUP($A580,Economática!$A$3:$AI$823,8,FALSE)=0,VLOOKUP($A580,Economática!$A$3:$AI$823,8,FALSE)=\"-\"),1/0,VLOOKUP($A580,Economática!$A$3:$AI$823,8,FALSE)))","v":""},{"$f":"IF(A580=\"\",\"\",IF(ISERROR(VLOOKUP(A580,Correção!$B$2:$G$13,9,FALSE)),VLOOKUP($A580,Economática!$A$3:$AI$823,9,FALSE),VLOOKUP(A580,Correção!$B$2:$G$13,9,FALSE)))","v":""},{"$f":"IF($A580=\"\",\"\",Economática!G558)","v":""},{"$f":"IF($A580=\"\",\"\",IF(OR(VLOOKUP($A580,Economática!$A$3:$AI$823,10,FALSE)=0,VLOOKUP($A580,Economática!$A$3:$AI$823,10,FALSE)=\"-\"),1/0,VLOOKUP($A580,Economática!$A$3:$AI$823,10,FALSE)))","v":""},{"$f":"IF($A580=\"\",\"\",IF(OR(VLOOKUP($A580,Economática!$A$3:$AI$823,11,FALSE)=0,VLOOKUP($A580,Economática!$A$3:$AI$823,11,FALSE)=\"-\"),1/0,VLOOKUP($A580,Economática!$A$3:$AI$823,11,FALSE)))","v":""},{"$f":"IF($A580=\"\",\"\",IF(OR(VLOOKUP($A580,Economática!$A$3:$AI$823,12,FALSE)=0,VLOOKUP($A580,Economática!$A$3:$AI$823,12,FALSE)=\"-\"),1/0,VLOOKUP($A580,Economática!$A$3:$AI$823,12,FALSE)))","v":""},{"$f":"IF($A580=\"\",\"\",IF(OR(VLOOKUP($A580,Economática!$A$3:$AI$823,13,FALSE)=0,VLOOKUP($A580,Economática!$A$3:$AI$823,13,FALSE)=\"-\"),1/0,VLOOKUP($A580,Economática!$A$3:$AI$823,13,FALSE)))","v":""},{"$f":"IF($A580=\"\",\"\",IF(OR(VLOOKUP($A580,Economática!$A$3:$AI$823,14,FALSE)=0,VLOOKUP($A580,Economática!$A$3:$AI$823,14,FALSE)=\"-\"),1/0,VLOOKUP($A580,Economática!$A$3:$AI$823,14,FALSE)))","v":""},{"$f":"IF($A580=\"\",\"\",IF(OR(VLOOKUP($A580,Economática!$A$3:$AI$823,15,FALSE)=0,VLOOKUP($A580,Economática!$A$3:$AI$823,15,FALSE)=\"-\"),1/0,VLOOKUP($A580,Economática!$A$3:$AI$823,15,FALSE)))","v":""},{"$f":"IF($A580=\"\",\"\",IF(OR(VLOOKUP($A580,Economática!$A$3:$AI$823,16,FALSE)=0,VLOOKUP($A580,Economática!$A$3:$AI$823,16,FALSE)=\"-\"),1/0,VLOOKUP($A580,Economática!$A$3:$AI$823,16,FALSE)))","v":""},{"$f":"IF($A580=\"\",\"\",IF(OR(VLOOKUP($A580,Economática!$A$3:$AI$823,17,FALSE)=0,VLOOKUP($A580,Economática!$A$3:$AI$823,17,FALSE)=\"-\"),1/0,VLOOKUP($A580,Economática!$A$3:$AI$823,17,FALSE)))","v":""},{"$f":"IF($A580=\"\",\"\",IF(OR(VLOOKUP($A580,Economática!$A$3:$AI$823,18,FALSE)=0,VLOOKUP($A580,Economática!$A$3:$AI$823,18,FALSE)=\"-\"),1/0,VLOOKUP($A580,Economática!$A$3:$AI$823,18,FALSE)))","v":""},{"$f":"IF($A580=\"\",\"\",IF(OR(VLOOKUP($A580,Economática!$A$3:$AI$823,19,FALSE)=0,VLOOKUP($A580,Economática!$A$3:$AI$823,19,FALSE)=\"-\"),1/0,VLOOKUP($A580,Economática!$A$3:$AI$823,19,FALSE)))","v":""},{"$f":"IF($A580=\"\",\"\",VLOOKUP($A580,Economática!$A$3:$AI$823,20,FALSE)/E580)","v":""},"","","",{"$f":"IF($A580=\"\",\"\",IF(OR(VLOOKUP($A580,Economática!$A$3:$AI$823,21,FALSE)/100=0,VLOOKUP($A580,Economática!$A$3:$AI$823,21,FALSE)/100=\"-\"),1/0,VLOOKUP($A580,Economática!$A$3:$AI$823,21,FALSE)/100))","v":""},{"$f":"IF($A580=\"\",\"\",IF(OR(VLOOKUP($A580,Economática!$A$3:$AI$823,22,FALSE)/100=0,VLOOKUP($A580,Economática!$A$3:$AI$823,22,FALSE)/100=\"-\"),1/0,VLOOKUP($A580,Economática!$A$3:$AI$823,22,FALSE)/100))","v":""},{"$f":"IF($A580=\"\",\"\",IF(OR(VLOOKUP($A580,Economática!$A$3:$AI$823,23,FALSE)=0,VLOOKUP($A580,Economática!$A$3:$AI$823,23,FALSE)=\"-\"),1/0,VLOOKUP($A580,Economática!$A$3:$AI$823,23,FALSE)))","v":""},{"$f":"IF($A580=\"\",\"\",IF(OR(VLOOKUP($A580,Economática!$A$3:$AI$823,24,FALSE)=0,VLOOKUP($A580,Economática!$A$3:$AI$823,24,FALSE)=\"-\"),1/0,VLOOKUP($A580,Economática!$A$3:$AI$823,24,FALSE)))","v":""},{"$f":"IF($A580=\"\",\"\",IF(OR(VLOOKUP($A580,Economática!$A$3:$AI$823,25,FALSE)=0,VLOOKUP($A580,Economática!$A$3:$AI$823,25,FALSE)=\"-\"),1/0,VLOOKUP($A580,Economática!$A$3:$AI$823,25,FALSE)))","v":""},{"$f":"IF($A580=\"\",\"\",IF(ISERROR((F580+VLOOKUP($A580,Economática!$A$3:$AI$823,26,FALSE))/Y580),(F580+VLOOKUP($A580,Economática!$A$3:$AI$823,26,FALSE))/Y580,(F580+VLOOKUP($A580,Economática!$A$3:$AI$823,26,FALSE))/Y580))","v":""},{"$f":"IF($A580=\"\",\"\",IF(OR(-VLOOKUP($A580,Economática!$A$3:$AI$823,27,FALSE)=0,-VLOOKUP($A580,Economática!$A$3:$AI$823,27,FALSE)=\"-\"),1/0,-VLOOKUP($A580,Economática!$A$3:$AI$823,27,FALSE)))","v":""},"",{"$f":"IF($A580=\"\",\"\",IF(OR(VLOOKUP($A580,Economática!$A$3:$AI$823,28,FALSE)=0,VLOOKUP($A580,Economática!$A$3:$AI$823,28,FALSE)=\"-\"),1/0,VLOOKUP($A580,Economática!$A$3:$AI$823,28,FALSE)))","v":""},{"$f":"IF($A580=\"\",\"\",IF(OR(VLOOKUP($A580,Economática!$A$3:$AI$823,29,FALSE)=0,VLOOKUP($A580,Economática!$A$3:$AI$823,29,FALSE)=\"-\"),1/0,VLOOKUP($A580,Economática!$A$3:$AI$823,29,FALSE)))","v":""},{"$f":"IF($A580=\"\",\"\",IF(OR(VLOOKUP($A580,Economática!$A$3:$AI$823,30,FALSE)/E580=0,VLOOKUP($A580,Economática!$A$3:$AI$823,30,FALSE)/E580=\"-\",VLOOKUP($A580,Economática!$A$3:$AI$823,30,FALSE)/E580<33.33%,VLOOKUP($A580,Economática!$A$3:$AI$823,30,FALSE)/E580>100%),1/0,VLOOKUP($A580,Economática!$A$3:$AI$823,30,FALSE)/E580))","v":""},"",{"$f":"IF($A580=\"\",\"\",IF(OR(VLOOKUP($A580,Economática!$A$3:$AI$823,25,FALSE)=0,VLOOKUP($A580,Economática!$A$3:$AI$823,25,FALSE)=\"-\"),1/0,VLOOKUP($A580,Economática!$A$3:$AI$823,25,FALSE)))","v":""},{"$f":"CONCATENATE(Economática!B558,\" \",Economática!C558)","v":" "}]
[{"$f":"IF(Economática!AG559=\"\",\"\",Economática!AG559)","v":""},{"$f":"IF($A581=\"\",\"\",VLOOKUP(VLOOKUP($A581,Economática!$A$3:$AI$823,6,FALSE),Correção!$B$16:$C$36,2,FALSE))","v":""},{"$f":"IF(Economática!B559=\"\",\"\",Economática!B559)","v":""},{"$f":"IF($A581=\"\",\"\",IF(OR(VLOOKUP($A581,Economática!$A$3:$AI$823,8,FALSE)=0,VLOOKUP($A581,Economática!$A$3:$AI$823,8,FALSE)=\"-\"),1/0,VLOOKUP($A581,Economática!$A$3:$AI$823,8,FALSE)))","v":""},{"$f":"IF(A581=\"\",\"\",IF(ISERROR(VLOOKUP(A581,Correção!$B$2:$G$13,9,FALSE)),VLOOKUP($A581,Economática!$A$3:$AI$823,9,FALSE),VLOOKUP(A581,Correção!$B$2:$G$13,9,FALSE)))","v":""},{"$f":"IF($A581=\"\",\"\",Economática!G559)","v":""},{"$f":"IF($A581=\"\",\"\",IF(OR(VLOOKUP($A581,Economática!$A$3:$AI$823,10,FALSE)=0,VLOOKUP($A581,Economática!$A$3:$AI$823,10,FALSE)=\"-\"),1/0,VLOOKUP($A581,Economática!$A$3:$AI$823,10,FALSE)))","v":""},{"$f":"IF($A581=\"\",\"\",IF(OR(VLOOKUP($A581,Economática!$A$3:$AI$823,11,FALSE)=0,VLOOKUP($A581,Economática!$A$3:$AI$823,11,FALSE)=\"-\"),1/0,VLOOKUP($A581,Economática!$A$3:$AI$823,11,FALSE)))","v":""},{"$f":"IF($A581=\"\",\"\",IF(OR(VLOOKUP($A581,Economática!$A$3:$AI$823,12,FALSE)=0,VLOOKUP($A581,Economática!$A$3:$AI$823,12,FALSE)=\"-\"),1/0,VLOOKUP($A581,Economática!$A$3:$AI$823,12,FALSE)))","v":""},{"$f":"IF($A581=\"\",\"\",IF(OR(VLOOKUP($A581,Economática!$A$3:$AI$823,13,FALSE)=0,VLOOKUP($A581,Economática!$A$3:$AI$823,13,FALSE)=\"-\"),1/0,VLOOKUP($A581,Economática!$A$3:$AI$823,13,FALSE)))","v":""},{"$f":"IF($A581=\"\",\"\",IF(OR(VLOOKUP($A581,Economática!$A$3:$AI$823,14,FALSE)=0,VLOOKUP($A581,Economática!$A$3:$AI$823,14,FALSE)=\"-\"),1/0,VLOOKUP($A581,Economática!$A$3:$AI$823,14,FALSE)))","v":""},{"$f":"IF($A581=\"\",\"\",IF(OR(VLOOKUP($A581,Economática!$A$3:$AI$823,15,FALSE)=0,VLOOKUP($A581,Economática!$A$3:$AI$823,15,FALSE)=\"-\"),1/0,VLOOKUP($A581,Economática!$A$3:$AI$823,15,FALSE)))","v":""},{"$f":"IF($A581=\"\",\"\",IF(OR(VLOOKUP($A581,Economática!$A$3:$AI$823,16,FALSE)=0,VLOOKUP($A581,Economática!$A$3:$AI$823,16,FALSE)=\"-\"),1/0,VLOOKUP($A581,Economática!$A$3:$AI$823,16,FALSE)))","v":""},{"$f":"IF($A581=\"\",\"\",IF(OR(VLOOKUP($A581,Economática!$A$3:$AI$823,17,FALSE)=0,VLOOKUP($A581,Economática!$A$3:$AI$823,17,FALSE)=\"-\"),1/0,VLOOKUP($A581,Economática!$A$3:$AI$823,17,FALSE)))","v":""},{"$f":"IF($A581=\"\",\"\",IF(OR(VLOOKUP($A581,Economática!$A$3:$AI$823,18,FALSE)=0,VLOOKUP($A581,Economática!$A$3:$AI$823,18,FALSE)=\"-\"),1/0,VLOOKUP($A581,Economática!$A$3:$AI$823,18,FALSE)))","v":""},{"$f":"IF($A581=\"\",\"\",IF(OR(VLOOKUP($A581,Economática!$A$3:$AI$823,19,FALSE)=0,VLOOKUP($A581,Economática!$A$3:$AI$823,19,FALSE)=\"-\"),1/0,VLOOKUP($A581,Economática!$A$3:$AI$823,19,FALSE)))","v":""},{"$f":"IF($A581=\"\",\"\",VLOOKUP($A581,Economática!$A$3:$AI$823,20,FALSE)/E581)","v":""},"","","",{"$f":"IF($A581=\"\",\"\",IF(OR(VLOOKUP($A581,Economática!$A$3:$AI$823,21,FALSE)/100=0,VLOOKUP($A581,Economática!$A$3:$AI$823,21,FALSE)/100=\"-\"),1/0,VLOOKUP($A581,Economática!$A$3:$AI$823,21,FALSE)/100))","v":""},{"$f":"IF($A581=\"\",\"\",IF(OR(VLOOKUP($A581,Economática!$A$3:$AI$823,22,FALSE)/100=0,VLOOKUP($A581,Economática!$A$3:$AI$823,22,FALSE)/100=\"-\"),1/0,VLOOKUP($A581,Economática!$A$3:$AI$823,22,FALSE)/100))","v":""},{"$f":"IF($A581=\"\",\"\",IF(OR(VLOOKUP($A581,Economática!$A$3:$AI$823,23,FALSE)=0,VLOOKUP($A581,Economática!$A$3:$AI$823,23,FALSE)=\"-\"),1/0,VLOOKUP($A581,Economática!$A$3:$AI$823,23,FALSE)))","v":""},{"$f":"IF($A581=\"\",\"\",IF(OR(VLOOKUP($A581,Economática!$A$3:$AI$823,24,FALSE)=0,VLOOKUP($A581,Economática!$A$3:$AI$823,24,FALSE)=\"-\"),1/0,VLOOKUP($A581,Economática!$A$3:$AI$823,24,FALSE)))","v":""},{"$f":"IF($A581=\"\",\"\",IF(OR(VLOOKUP($A581,Economática!$A$3:$AI$823,25,FALSE)=0,VLOOKUP($A581,Economática!$A$3:$AI$823,25,FALSE)=\"-\"),1/0,VLOOKUP($A581,Economática!$A$3:$AI$823,25,FALSE)))","v":""},{"$f":"IF($A581=\"\",\"\",IF(ISERROR((F581+VLOOKUP($A581,Economática!$A$3:$AI$823,26,FALSE))/Y581),(F581+VLOOKUP($A581,Economática!$A$3:$AI$823,26,FALSE))/Y581,(F581+VLOOKUP($A581,Economática!$A$3:$AI$823,26,FALSE))/Y581))","v":""},{"$f":"IF($A581=\"\",\"\",IF(OR(-VLOOKUP($A581,Economática!$A$3:$AI$823,27,FALSE)=0,-VLOOKUP($A581,Economática!$A$3:$AI$823,27,FALSE)=\"-\"),1/0,-VLOOKUP($A581,Economática!$A$3:$AI$823,27,FALSE)))","v":""},"",{"$f":"IF($A581=\"\",\"\",IF(OR(VLOOKUP($A581,Economática!$A$3:$AI$823,28,FALSE)=0,VLOOKUP($A581,Economática!$A$3:$AI$823,28,FALSE)=\"-\"),1/0,VLOOKUP($A581,Economática!$A$3:$AI$823,28,FALSE)))","v":""},{"$f":"IF($A581=\"\",\"\",IF(OR(VLOOKUP($A581,Economática!$A$3:$AI$823,29,FALSE)=0,VLOOKUP($A581,Economática!$A$3:$AI$823,29,FALSE)=\"-\"),1/0,VLOOKUP($A581,Economática!$A$3:$AI$823,29,FALSE)))","v":""},{"$f":"IF($A581=\"\",\"\",IF(OR(VLOOKUP($A581,Economática!$A$3:$AI$823,30,FALSE)/E581=0,VLOOKUP($A581,Economática!$A$3:$AI$823,30,FALSE)/E581=\"-\",VLOOKUP($A581,Economática!$A$3:$AI$823,30,FALSE)/E581<33.33%,VLOOKUP($A581,Economática!$A$3:$AI$823,30,FALSE)/E581>100%),1/0,VLOOKUP($A581,Economática!$A$3:$AI$823,30,FALSE)/E581))","v":""},"",{"$f":"IF($A581=\"\",\"\",IF(OR(VLOOKUP($A581,Economática!$A$3:$AI$823,25,FALSE)=0,VLOOKUP($A581,Economática!$A$3:$AI$823,25,FALSE)=\"-\"),1/0,VLOOKUP($A581,Economática!$A$3:$AI$823,25,FALSE)))","v":""},{"$f":"CONCATENATE(Economática!B559,\" \",Economática!C559)","v":" "}]
[{"$f":"IF(Economática!AG560=\"\",\"\",Economática!AG560)","v":""},{"$f":"IF($A582=\"\",\"\",VLOOKUP(VLOOKUP($A582,Economática!$A$3:$AI$823,6,FALSE),Correção!$B$16:$C$36,2,FALSE))","v":""},{"$f":"IF(Economática!B560=\"\",\"\",Economática!B560)","v":""},{"$f":"IF($A582=\"\",\"\",IF(OR(VLOOKUP($A582,Economática!$A$3:$AI$823,8,FALSE)=0,VLOOKUP($A582,Economática!$A$3:$AI$823,8,FALSE)=\"-\"),1/0,VLOOKUP($A582,Economática!$A$3:$AI$823,8,FALSE)))","v":""},{"$f":"IF(A582=\"\",\"\",IF(ISERROR(VLOOKUP(A582,Correção!$B$2:$G$13,9,FALSE)),VLOOKUP($A582,Economática!$A$3:$AI$823,9,FALSE),VLOOKUP(A582,Correção!$B$2:$G$13,9,FALSE)))","v":""},{"$f":"IF($A582=\"\",\"\",Economática!G560)","v":""},{"$f":"IF($A582=\"\",\"\",IF(OR(VLOOKUP($A582,Economática!$A$3:$AI$823,10,FALSE)=0,VLOOKUP($A582,Economática!$A$3:$AI$823,10,FALSE)=\"-\"),1/0,VLOOKUP($A582,Economática!$A$3:$AI$823,10,FALSE)))","v":""},{"$f":"IF($A582=\"\",\"\",IF(OR(VLOOKUP($A582,Economática!$A$3:$AI$823,11,FALSE)=0,VLOOKUP($A582,Economática!$A$3:$AI$823,11,FALSE)=\"-\"),1/0,VLOOKUP($A582,Economática!$A$3:$AI$823,11,FALSE)))","v":""},{"$f":"IF($A582=\"\",\"\",IF(OR(VLOOKUP($A582,Economática!$A$3:$AI$823,12,FALSE)=0,VLOOKUP($A582,Economática!$A$3:$AI$823,12,FALSE)=\"-\"),1/0,VLOOKUP($A582,Economática!$A$3:$AI$823,12,FALSE)))","v":""},{"$f":"IF($A582=\"\",\"\",IF(OR(VLOOKUP($A582,Economática!$A$3:$AI$823,13,FALSE)=0,VLOOKUP($A582,Economática!$A$3:$AI$823,13,FALSE)=\"-\"),1/0,VLOOKUP($A582,Economática!$A$3:$AI$823,13,FALSE)))","v":""},{"$f":"IF($A582=\"\",\"\",IF(OR(VLOOKUP($A582,Economática!$A$3:$AI$823,14,FALSE)=0,VLOOKUP($A582,Economática!$A$3:$AI$823,14,FALSE)=\"-\"),1/0,VLOOKUP($A582,Economática!$A$3:$AI$823,14,FALSE)))","v":""},{"$f":"IF($A582=\"\",\"\",IF(OR(VLOOKUP($A582,Economática!$A$3:$AI$823,15,FALSE)=0,VLOOKUP($A582,Economática!$A$3:$AI$823,15,FALSE)=\"-\"),1/0,VLOOKUP($A582,Economática!$A$3:$AI$823,15,FALSE)))","v":""},{"$f":"IF($A582=\"\",\"\",IF(OR(VLOOKUP($A582,Economática!$A$3:$AI$823,16,FALSE)=0,VLOOKUP($A582,Economática!$A$3:$AI$823,16,FALSE)=\"-\"),1/0,VLOOKUP($A582,Economática!$A$3:$AI$823,16,FALSE)))","v":""},{"$f":"IF($A582=\"\",\"\",IF(OR(VLOOKUP($A582,Economática!$A$3:$AI$823,17,FALSE)=0,VLOOKUP($A582,Economática!$A$3:$AI$823,17,FALSE)=\"-\"),1/0,VLOOKUP($A582,Economática!$A$3:$AI$823,17,FALSE)))","v":""},{"$f":"IF($A582=\"\",\"\",IF(OR(VLOOKUP($A582,Economática!$A$3:$AI$823,18,FALSE)=0,VLOOKUP($A582,Economática!$A$3:$AI$823,18,FALSE)=\"-\"),1/0,VLOOKUP($A582,Economática!$A$3:$AI$823,18,FALSE)))","v":""},{"$f":"IF($A582=\"\",\"\",IF(OR(VLOOKUP($A582,Economática!$A$3:$AI$823,19,FALSE)=0,VLOOKUP($A582,Economática!$A$3:$AI$823,19,FALSE)=\"-\"),1/0,VLOOKUP($A582,Economática!$A$3:$AI$823,19,FALSE)))","v":""},{"$f":"IF($A582=\"\",\"\",VLOOKUP($A582,Economática!$A$3:$AI$823,20,FALSE)/E582)","v":""},"","","",{"$f":"IF($A582=\"\",\"\",IF(OR(VLOOKUP($A582,Economática!$A$3:$AI$823,21,FALSE)/100=0,VLOOKUP($A582,Economática!$A$3:$AI$823,21,FALSE)/100=\"-\"),1/0,VLOOKUP($A582,Economática!$A$3:$AI$823,21,FALSE)/100))","v":""},{"$f":"IF($A582=\"\",\"\",IF(OR(VLOOKUP($A582,Economática!$A$3:$AI$823,22,FALSE)/100=0,VLOOKUP($A582,Economática!$A$3:$AI$823,22,FALSE)/100=\"-\"),1/0,VLOOKUP($A582,Economática!$A$3:$AI$823,22,FALSE)/100))","v":""},{"$f":"IF($A582=\"\",\"\",IF(OR(VLOOKUP($A582,Economática!$A$3:$AI$823,23,FALSE)=0,VLOOKUP($A582,Economática!$A$3:$AI$823,23,FALSE)=\"-\"),1/0,VLOOKUP($A582,Economática!$A$3:$AI$823,23,FALSE)))","v":""},{"$f":"IF($A582=\"\",\"\",IF(OR(VLOOKUP($A582,Economática!$A$3:$AI$823,24,FALSE)=0,VLOOKUP($A582,Economática!$A$3:$AI$823,24,FALSE)=\"-\"),1/0,VLOOKUP($A582,Economática!$A$3:$AI$823,24,FALSE)))","v":""},{"$f":"IF($A582=\"\",\"\",IF(OR(VLOOKUP($A582,Economática!$A$3:$AI$823,25,FALSE)=0,VLOOKUP($A582,Economática!$A$3:$AI$823,25,FALSE)=\"-\"),1/0,VLOOKUP($A582,Economática!$A$3:$AI$823,25,FALSE)))","v":""},{"$f":"IF($A582=\"\",\"\",IF(ISERROR((F582+VLOOKUP($A582,Economática!$A$3:$AI$823,26,FALSE))/Y582),(F582+VLOOKUP($A582,Economática!$A$3:$AI$823,26,FALSE))/Y582,(F582+VLOOKUP($A582,Economática!$A$3:$AI$823,26,FALSE))/Y582))","v":""},{"$f":"IF($A582=\"\",\"\",IF(OR(-VLOOKUP($A582,Economática!$A$3:$AI$823,27,FALSE)=0,-VLOOKUP($A582,Economática!$A$3:$AI$823,27,FALSE)=\"-\"),1/0,-VLOOKUP($A582,Economática!$A$3:$AI$823,27,FALSE)))","v":""},"",{"$f":"IF($A582=\"\",\"\",IF(OR(VLOOKUP($A582,Economática!$A$3:$AI$823,28,FALSE)=0,VLOOKUP($A582,Economática!$A$3:$AI$823,28,FALSE)=\"-\"),1/0,VLOOKUP($A582,Economática!$A$3:$AI$823,28,FALSE)))","v":""},{"$f":"IF($A582=\"\",\"\",IF(OR(VLOOKUP($A582,Economática!$A$3:$AI$823,29,FALSE)=0,VLOOKUP($A582,Economática!$A$3:$AI$823,29,FALSE)=\"-\"),1/0,VLOOKUP($A582,Economática!$A$3:$AI$823,29,FALSE)))","v":""},{"$f":"IF($A582=\"\",\"\",IF(OR(VLOOKUP($A582,Economática!$A$3:$AI$823,30,FALSE)/E582=0,VLOOKUP($A582,Economática!$A$3:$AI$823,30,FALSE)/E582=\"-\",VLOOKUP($A582,Economática!$A$3:$AI$823,30,FALSE)/E582<33.33%,VLOOKUP($A582,Economática!$A$3:$AI$823,30,FALSE)/E582>100%),1/0,VLOOKUP($A582,Economática!$A$3:$AI$823,30,FALSE)/E582))","v":""},"",{"$f":"IF($A582=\"\",\"\",IF(OR(VLOOKUP($A582,Economática!$A$3:$AI$823,25,FALSE)=0,VLOOKUP($A582,Economática!$A$3:$AI$823,25,FALSE)=\"-\"),1/0,VLOOKUP($A582,Economática!$A$3:$AI$823,25,FALSE)))","v":""},{"$f":"CONCATENATE(Economática!B560,\" \",Economática!C560)","v":" "}]
[{"$f":"IF(Economática!AG561=\"\",\"\",Economática!AG561)","v":""},{"$f":"IF($A583=\"\",\"\",VLOOKUP(VLOOKUP($A583,Economática!$A$3:$AI$823,6,FALSE),Correção!$B$16:$C$36,2,FALSE))","v":""},{"$f":"IF(Economática!B561=\"\",\"\",Economática!B561)","v":""},{"$f":"IF($A583=\"\",\"\",IF(OR(VLOOKUP($A583,Economática!$A$3:$AI$823,8,FALSE)=0,VLOOKUP($A583,Economática!$A$3:$AI$823,8,FALSE)=\"-\"),1/0,VLOOKUP($A583,Economática!$A$3:$AI$823,8,FALSE)))","v":""},{"$f":"IF(A583=\"\",\"\",IF(ISERROR(VLOOKUP(A583,Correção!$B$2:$G$13,9,FALSE)),VLOOKUP($A583,Economática!$A$3:$AI$823,9,FALSE),VLOOKUP(A583,Correção!$B$2:$G$13,9,FALSE)))","v":""},{"$f":"IF($A583=\"\",\"\",Economática!G561)","v":""},{"$f":"IF($A583=\"\",\"\",IF(OR(VLOOKUP($A583,Economática!$A$3:$AI$823,10,FALSE)=0,VLOOKUP($A583,Economática!$A$3:$AI$823,10,FALSE)=\"-\"),1/0,VLOOKUP($A583,Economática!$A$3:$AI$823,10,FALSE)))","v":""},{"$f":"IF($A583=\"\",\"\",IF(OR(VLOOKUP($A583,Economática!$A$3:$AI$823,11,FALSE)=0,VLOOKUP($A583,Economática!$A$3:$AI$823,11,FALSE)=\"-\"),1/0,VLOOKUP($A583,Economática!$A$3:$AI$823,11,FALSE)))","v":""},{"$f":"IF($A583=\"\",\"\",IF(OR(VLOOKUP($A583,Economática!$A$3:$AI$823,12,FALSE)=0,VLOOKUP($A583,Economática!$A$3:$AI$823,12,FALSE)=\"-\"),1/0,VLOOKUP($A583,Economática!$A$3:$AI$823,12,FALSE)))","v":""},{"$f":"IF($A583=\"\",\"\",IF(OR(VLOOKUP($A583,Economática!$A$3:$AI$823,13,FALSE)=0,VLOOKUP($A583,Economática!$A$3:$AI$823,13,FALSE)=\"-\"),1/0,VLOOKUP($A583,Economática!$A$3:$AI$823,13,FALSE)))","v":""},{"$f":"IF($A583=\"\",\"\",IF(OR(VLOOKUP($A583,Economática!$A$3:$AI$823,14,FALSE)=0,VLOOKUP($A583,Economática!$A$3:$AI$823,14,FALSE)=\"-\"),1/0,VLOOKUP($A583,Economática!$A$3:$AI$823,14,FALSE)))","v":""},{"$f":"IF($A583=\"\",\"\",IF(OR(VLOOKUP($A583,Economática!$A$3:$AI$823,15,FALSE)=0,VLOOKUP($A583,Economática!$A$3:$AI$823,15,FALSE)=\"-\"),1/0,VLOOKUP($A583,Economática!$A$3:$AI$823,15,FALSE)))","v":""},{"$f":"IF($A583=\"\",\"\",IF(OR(VLOOKUP($A583,Economática!$A$3:$AI$823,16,FALSE)=0,VLOOKUP($A583,Economática!$A$3:$AI$823,16,FALSE)=\"-\"),1/0,VLOOKUP($A583,Economática!$A$3:$AI$823,16,FALSE)))","v":""},{"$f":"IF($A583=\"\",\"\",IF(OR(VLOOKUP($A583,Economática!$A$3:$AI$823,17,FALSE)=0,VLOOKUP($A583,Economática!$A$3:$AI$823,17,FALSE)=\"-\"),1/0,VLOOKUP($A583,Economática!$A$3:$AI$823,17,FALSE)))","v":""},{"$f":"IF($A583=\"\",\"\",IF(OR(VLOOKUP($A583,Economática!$A$3:$AI$823,18,FALSE)=0,VLOOKUP($A583,Economática!$A$3:$AI$823,18,FALSE)=\"-\"),1/0,VLOOKUP($A583,Economática!$A$3:$AI$823,18,FALSE)))","v":""},{"$f":"IF($A583=\"\",\"\",IF(OR(VLOOKUP($A583,Economática!$A$3:$AI$823,19,FALSE)=0,VLOOKUP($A583,Economática!$A$3:$AI$823,19,FALSE)=\"-\"),1/0,VLOOKUP($A583,Economática!$A$3:$AI$823,19,FALSE)))","v":""},{"$f":"IF($A583=\"\",\"\",VLOOKUP($A583,Economática!$A$3:$AI$823,20,FALSE)/E583)","v":""},"","","",{"$f":"IF($A583=\"\",\"\",IF(OR(VLOOKUP($A583,Economática!$A$3:$AI$823,21,FALSE)/100=0,VLOOKUP($A583,Economática!$A$3:$AI$823,21,FALSE)/100=\"-\"),1/0,VLOOKUP($A583,Economática!$A$3:$AI$823,21,FALSE)/100))","v":""},{"$f":"IF($A583=\"\",\"\",IF(OR(VLOOKUP($A583,Economática!$A$3:$AI$823,22,FALSE)/100=0,VLOOKUP($A583,Economática!$A$3:$AI$823,22,FALSE)/100=\"-\"),1/0,VLOOKUP($A583,Economática!$A$3:$AI$823,22,FALSE)/100))","v":""},{"$f":"IF($A583=\"\",\"\",IF(OR(VLOOKUP($A583,Economática!$A$3:$AI$823,23,FALSE)=0,VLOOKUP($A583,Economática!$A$3:$AI$823,23,FALSE)=\"-\"),1/0,VLOOKUP($A583,Economática!$A$3:$AI$823,23,FALSE)))","v":""},{"$f":"IF($A583=\"\",\"\",IF(OR(VLOOKUP($A583,Economática!$A$3:$AI$823,24,FALSE)=0,VLOOKUP($A583,Economática!$A$3:$AI$823,24,FALSE)=\"-\"),1/0,VLOOKUP($A583,Economática!$A$3:$AI$823,24,FALSE)))","v":""},{"$f":"IF($A583=\"\",\"\",IF(OR(VLOOKUP($A583,Economática!$A$3:$AI$823,25,FALSE)=0,VLOOKUP($A583,Economática!$A$3:$AI$823,25,FALSE)=\"-\"),1/0,VLOOKUP($A583,Economática!$A$3:$AI$823,25,FALSE)))","v":""},{"$f":"IF($A583=\"\",\"\",IF(ISERROR((F583+VLOOKUP($A583,Economática!$A$3:$AI$823,26,FALSE))/Y583),(F583+VLOOKUP($A583,Economática!$A$3:$AI$823,26,FALSE))/Y583,(F583+VLOOKUP($A583,Economática!$A$3:$AI$823,26,FALSE))/Y583))","v":""},{"$f":"IF($A583=\"\",\"\",IF(OR(-VLOOKUP($A583,Economática!$A$3:$AI$823,27,FALSE)=0,-VLOOKUP($A583,Economática!$A$3:$AI$823,27,FALSE)=\"-\"),1/0,-VLOOKUP($A583,Economática!$A$3:$AI$823,27,FALSE)))","v":""},"",{"$f":"IF($A583=\"\",\"\",IF(OR(VLOOKUP($A583,Economática!$A$3:$AI$823,28,FALSE)=0,VLOOKUP($A583,Economática!$A$3:$AI$823,28,FALSE)=\"-\"),1/0,VLOOKUP($A583,Economática!$A$3:$AI$823,28,FALSE)))","v":""},{"$f":"IF($A583=\"\",\"\",IF(OR(VLOOKUP($A583,Economática!$A$3:$AI$823,29,FALSE)=0,VLOOKUP($A583,Economática!$A$3:$AI$823,29,FALSE)=\"-\"),1/0,VLOOKUP($A583,Economática!$A$3:$AI$823,29,FALSE)))","v":""},{"$f":"IF($A583=\"\",\"\",IF(OR(VLOOKUP($A583,Economática!$A$3:$AI$823,30,FALSE)/E583=0,VLOOKUP($A583,Economática!$A$3:$AI$823,30,FALSE)/E583=\"-\",VLOOKUP($A583,Economática!$A$3:$AI$823,30,FALSE)/E583<33.33%,VLOOKUP($A583,Economática!$A$3:$AI$823,30,FALSE)/E583>100%),1/0,VLOOKUP($A583,Economática!$A$3:$AI$823,30,FALSE)/E583))","v":""},"",{"$f":"IF($A583=\"\",\"\",IF(OR(VLOOKUP($A583,Economática!$A$3:$AI$823,25,FALSE)=0,VLOOKUP($A583,Economática!$A$3:$AI$823,25,FALSE)=\"-\"),1/0,VLOOKUP($A583,Economática!$A$3:$AI$823,25,FALSE)))","v":""},{"$f":"CONCATENATE(Economática!B561,\" \",Economática!C561)","v":" "}]
[{"$f":"IF(Economática!AG562=\"\",\"\",Economática!AG562)","v":""},{"$f":"IF($A584=\"\",\"\",VLOOKUP(VLOOKUP($A584,Economática!$A$3:$AI$823,6,FALSE),Correção!$B$16:$C$36,2,FALSE))","v":""},{"$f":"IF(Economática!B562=\"\",\"\",Economática!B562)","v":""},{"$f":"IF($A584=\"\",\"\",IF(OR(VLOOKUP($A584,Economática!$A$3:$AI$823,8,FALSE)=0,VLOOKUP($A584,Economática!$A$3:$AI$823,8,FALSE)=\"-\"),1/0,VLOOKUP($A584,Economática!$A$3:$AI$823,8,FALSE)))","v":""},{"$f":"IF(A584=\"\",\"\",IF(ISERROR(VLOOKUP(A584,Correção!$B$2:$G$13,9,FALSE)),VLOOKUP($A584,Economática!$A$3:$AI$823,9,FALSE),VLOOKUP(A584,Correção!$B$2:$G$13,9,FALSE)))","v":""},{"$f":"IF($A584=\"\",\"\",Economática!G562)","v":""},{"$f":"IF($A584=\"\",\"\",IF(OR(VLOOKUP($A584,Economática!$A$3:$AI$823,10,FALSE)=0,VLOOKUP($A584,Economática!$A$3:$AI$823,10,FALSE)=\"-\"),1/0,VLOOKUP($A584,Economática!$A$3:$AI$823,10,FALSE)))","v":""},{"$f":"IF($A584=\"\",\"\",IF(OR(VLOOKUP($A584,Economática!$A$3:$AI$823,11,FALSE)=0,VLOOKUP($A584,Economática!$A$3:$AI$823,11,FALSE)=\"-\"),1/0,VLOOKUP($A584,Economática!$A$3:$AI$823,11,FALSE)))","v":""},{"$f":"IF($A584=\"\",\"\",IF(OR(VLOOKUP($A584,Economática!$A$3:$AI$823,12,FALSE)=0,VLOOKUP($A584,Economática!$A$3:$AI$823,12,FALSE)=\"-\"),1/0,VLOOKUP($A584,Economática!$A$3:$AI$823,12,FALSE)))","v":""},{"$f":"IF($A584=\"\",\"\",IF(OR(VLOOKUP($A584,Economática!$A$3:$AI$823,13,FALSE)=0,VLOOKUP($A584,Economática!$A$3:$AI$823,13,FALSE)=\"-\"),1/0,VLOOKUP($A584,Economática!$A$3:$AI$823,13,FALSE)))","v":""},{"$f":"IF($A584=\"\",\"\",IF(OR(VLOOKUP($A584,Economática!$A$3:$AI$823,14,FALSE)=0,VLOOKUP($A584,Economática!$A$3:$AI$823,14,FALSE)=\"-\"),1/0,VLOOKUP($A584,Economática!$A$3:$AI$823,14,FALSE)))","v":""},{"$f":"IF($A584=\"\",\"\",IF(OR(VLOOKUP($A584,Economática!$A$3:$AI$823,15,FALSE)=0,VLOOKUP($A584,Economática!$A$3:$AI$823,15,FALSE)=\"-\"),1/0,VLOOKUP($A584,Economática!$A$3:$AI$823,15,FALSE)))","v":""},{"$f":"IF($A584=\"\",\"\",IF(OR(VLOOKUP($A584,Economática!$A$3:$AI$823,16,FALSE)=0,VLOOKUP($A584,Economática!$A$3:$AI$823,16,FALSE)=\"-\"),1/0,VLOOKUP($A584,Economática!$A$3:$AI$823,16,FALSE)))","v":""},{"$f":"IF($A584=\"\",\"\",IF(OR(VLOOKUP($A584,Economática!$A$3:$AI$823,17,FALSE)=0,VLOOKUP($A584,Economática!$A$3:$AI$823,17,FALSE)=\"-\"),1/0,VLOOKUP($A584,Economática!$A$3:$AI$823,17,FALSE)))","v":""},{"$f":"IF($A584=\"\",\"\",IF(OR(VLOOKUP($A584,Economática!$A$3:$AI$823,18,FALSE)=0,VLOOKUP($A584,Economática!$A$3:$AI$823,18,FALSE)=\"-\"),1/0,VLOOKUP($A584,Economática!$A$3:$AI$823,18,FALSE)))","v":""},{"$f":"IF($A584=\"\",\"\",IF(OR(VLOOKUP($A584,Economática!$A$3:$AI$823,19,FALSE)=0,VLOOKUP($A584,Economática!$A$3:$AI$823,19,FALSE)=\"-\"),1/0,VLOOKUP($A584,Economática!$A$3:$AI$823,19,FALSE)))","v":""},{"$f":"IF($A584=\"\",\"\",VLOOKUP($A584,Economática!$A$3:$AI$823,20,FALSE)/E584)","v":""},"","","",{"$f":"IF($A584=\"\",\"\",IF(OR(VLOOKUP($A584,Economática!$A$3:$AI$823,21,FALSE)/100=0,VLOOKUP($A584,Economática!$A$3:$AI$823,21,FALSE)/100=\"-\"),1/0,VLOOKUP($A584,Economática!$A$3:$AI$823,21,FALSE)/100))","v":""},{"$f":"IF($A584=\"\",\"\",IF(OR(VLOOKUP($A584,Economática!$A$3:$AI$823,22,FALSE)/100=0,VLOOKUP($A584,Economática!$A$3:$AI$823,22,FALSE)/100=\"-\"),1/0,VLOOKUP($A584,Economática!$A$3:$AI$823,22,FALSE)/100))","v":""},{"$f":"IF($A584=\"\",\"\",IF(OR(VLOOKUP($A584,Economática!$A$3:$AI$823,23,FALSE)=0,VLOOKUP($A584,Economática!$A$3:$AI$823,23,FALSE)=\"-\"),1/0,VLOOKUP($A584,Economática!$A$3:$AI$823,23,FALSE)))","v":""},{"$f":"IF($A584=\"\",\"\",IF(OR(VLOOKUP($A584,Economática!$A$3:$AI$823,24,FALSE)=0,VLOOKUP($A584,Economática!$A$3:$AI$823,24,FALSE)=\"-\"),1/0,VLOOKUP($A584,Economática!$A$3:$AI$823,24,FALSE)))","v":""},{"$f":"IF($A584=\"\",\"\",IF(OR(VLOOKUP($A584,Economática!$A$3:$AI$823,25,FALSE)=0,VLOOKUP($A584,Economática!$A$3:$AI$823,25,FALSE)=\"-\"),1/0,VLOOKUP($A584,Economática!$A$3:$AI$823,25,FALSE)))","v":""},{"$f":"IF($A584=\"\",\"\",IF(ISERROR((F584+VLOOKUP($A584,Economática!$A$3:$AI$823,26,FALSE))/Y584),(F584+VLOOKUP($A584,Economática!$A$3:$AI$823,26,FALSE))/Y584,(F584+VLOOKUP($A584,Economática!$A$3:$AI$823,26,FALSE))/Y584))","v":""},{"$f":"IF($A584=\"\",\"\",IF(OR(-VLOOKUP($A584,Economática!$A$3:$AI$823,27,FALSE)=0,-VLOOKUP($A584,Economática!$A$3:$AI$823,27,FALSE)=\"-\"),1/0,-VLOOKUP($A584,Economática!$A$3:$AI$823,27,FALSE)))","v":""},"",{"$f":"IF($A584=\"\",\"\",IF(OR(VLOOKUP($A584,Economática!$A$3:$AI$823,28,FALSE)=0,VLOOKUP($A584,Economática!$A$3:$AI$823,28,FALSE)=\"-\"),1/0,VLOOKUP($A584,Economática!$A$3:$AI$823,28,FALSE)))","v":""},{"$f":"IF($A584=\"\",\"\",IF(OR(VLOOKUP($A584,Economática!$A$3:$AI$823,29,FALSE)=0,VLOOKUP($A584,Economática!$A$3:$AI$823,29,FALSE)=\"-\"),1/0,VLOOKUP($A584,Economática!$A$3:$AI$823,29,FALSE)))","v":""},{"$f":"IF($A584=\"\",\"\",IF(OR(VLOOKUP($A584,Economática!$A$3:$AI$823,30,FALSE)/E584=0,VLOOKUP($A584,Economática!$A$3:$AI$823,30,FALSE)/E584=\"-\",VLOOKUP($A584,Economática!$A$3:$AI$823,30,FALSE)/E584<33.33%,VLOOKUP($A584,Economática!$A$3:$AI$823,30,FALSE)/E584>100%),1/0,VLOOKUP($A584,Economática!$A$3:$AI$823,30,FALSE)/E584))","v":""},"",{"$f":"IF($A584=\"\",\"\",IF(OR(VLOOKUP($A584,Economática!$A$3:$AI$823,25,FALSE)=0,VLOOKUP($A584,Economática!$A$3:$AI$823,25,FALSE)=\"-\"),1/0,VLOOKUP($A584,Economática!$A$3:$AI$823,25,FALSE)))","v":""},{"$f":"CONCATENATE(Economática!B562,\" \",Economática!C562)","v":" "}]
[{"$f":"IF(Economática!AG563=\"\",\"\",Economática!AG563)","v":""},{"$f":"IF($A585=\"\",\"\",VLOOKUP(VLOOKUP($A585,Economática!$A$3:$AI$823,6,FALSE),Correção!$B$16:$C$36,2,FALSE))","v":""},{"$f":"IF(Economática!B563=\"\",\"\",Economática!B563)","v":""},{"$f":"IF($A585=\"\",\"\",IF(OR(VLOOKUP($A585,Economática!$A$3:$AI$823,8,FALSE)=0,VLOOKUP($A585,Economática!$A$3:$AI$823,8,FALSE)=\"-\"),1/0,VLOOKUP($A585,Economática!$A$3:$AI$823,8,FALSE)))","v":""},{"$f":"IF(A585=\"\",\"\",IF(ISERROR(VLOOKUP(A585,Correção!$B$2:$G$13,9,FALSE)),VLOOKUP($A585,Economática!$A$3:$AI$823,9,FALSE),VLOOKUP(A585,Correção!$B$2:$G$13,9,FALSE)))","v":""},{"$f":"IF($A585=\"\",\"\",Economática!G563)","v":""},{"$f":"IF($A585=\"\",\"\",IF(OR(VLOOKUP($A585,Economática!$A$3:$AI$823,10,FALSE)=0,VLOOKUP($A585,Economática!$A$3:$AI$823,10,FALSE)=\"-\"),1/0,VLOOKUP($A585,Economática!$A$3:$AI$823,10,FALSE)))","v":""},{"$f":"IF($A585=\"\",\"\",IF(OR(VLOOKUP($A585,Economática!$A$3:$AI$823,11,FALSE)=0,VLOOKUP($A585,Economática!$A$3:$AI$823,11,FALSE)=\"-\"),1/0,VLOOKUP($A585,Economática!$A$3:$AI$823,11,FALSE)))","v":""},{"$f":"IF($A585=\"\",\"\",IF(OR(VLOOKUP($A585,Economática!$A$3:$AI$823,12,FALSE)=0,VLOOKUP($A585,Economática!$A$3:$AI$823,12,FALSE)=\"-\"),1/0,VLOOKUP($A585,Economática!$A$3:$AI$823,12,FALSE)))","v":""},{"$f":"IF($A585=\"\",\"\",IF(OR(VLOOKUP($A585,Economática!$A$3:$AI$823,13,FALSE)=0,VLOOKUP($A585,Economática!$A$3:$AI$823,13,FALSE)=\"-\"),1/0,VLOOKUP($A585,Economática!$A$3:$AI$823,13,FALSE)))","v":""},{"$f":"IF($A585=\"\",\"\",IF(OR(VLOOKUP($A585,Economática!$A$3:$AI$823,14,FALSE)=0,VLOOKUP($A585,Economática!$A$3:$AI$823,14,FALSE)=\"-\"),1/0,VLOOKUP($A585,Economática!$A$3:$AI$823,14,FALSE)))","v":""},{"$f":"IF($A585=\"\",\"\",IF(OR(VLOOKUP($A585,Economática!$A$3:$AI$823,15,FALSE)=0,VLOOKUP($A585,Economática!$A$3:$AI$823,15,FALSE)=\"-\"),1/0,VLOOKUP($A585,Economática!$A$3:$AI$823,15,FALSE)))","v":""},{"$f":"IF($A585=\"\",\"\",IF(OR(VLOOKUP($A585,Economática!$A$3:$AI$823,16,FALSE)=0,VLOOKUP($A585,Economática!$A$3:$AI$823,16,FALSE)=\"-\"),1/0,VLOOKUP($A585,Economática!$A$3:$AI$823,16,FALSE)))","v":""},{"$f":"IF($A585=\"\",\"\",IF(OR(VLOOKUP($A585,Economática!$A$3:$AI$823,17,FALSE)=0,VLOOKUP($A585,Economática!$A$3:$AI$823,17,FALSE)=\"-\"),1/0,VLOOKUP($A585,Economática!$A$3:$AI$823,17,FALSE)))","v":""},{"$f":"IF($A585=\"\",\"\",IF(OR(VLOOKUP($A585,Economática!$A$3:$AI$823,18,FALSE)=0,VLOOKUP($A585,Economática!$A$3:$AI$823,18,FALSE)=\"-\"),1/0,VLOOKUP($A585,Economática!$A$3:$AI$823,18,FALSE)))","v":""},{"$f":"IF($A585=\"\",\"\",IF(OR(VLOOKUP($A585,Economática!$A$3:$AI$823,19,FALSE)=0,VLOOKUP($A585,Economática!$A$3:$AI$823,19,FALSE)=\"-\"),1/0,VLOOKUP($A585,Economática!$A$3:$AI$823,19,FALSE)))","v":""},{"$f":"IF($A585=\"\",\"\",VLOOKUP($A585,Economática!$A$3:$AI$823,20,FALSE)/E585)","v":""},"","","",{"$f":"IF($A585=\"\",\"\",IF(OR(VLOOKUP($A585,Economática!$A$3:$AI$823,21,FALSE)/100=0,VLOOKUP($A585,Economática!$A$3:$AI$823,21,FALSE)/100=\"-\"),1/0,VLOOKUP($A585,Economática!$A$3:$AI$823,21,FALSE)/100))","v":""},{"$f":"IF($A585=\"\",\"\",IF(OR(VLOOKUP($A585,Economática!$A$3:$AI$823,22,FALSE)/100=0,VLOOKUP($A585,Economática!$A$3:$AI$823,22,FALSE)/100=\"-\"),1/0,VLOOKUP($A585,Economática!$A$3:$AI$823,22,FALSE)/100))","v":""},{"$f":"IF($A585=\"\",\"\",IF(OR(VLOOKUP($A585,Economática!$A$3:$AI$823,23,FALSE)=0,VLOOKUP($A585,Economática!$A$3:$AI$823,23,FALSE)=\"-\"),1/0,VLOOKUP($A585,Economática!$A$3:$AI$823,23,FALSE)))","v":""},{"$f":"IF($A585=\"\",\"\",IF(OR(VLOOKUP($A585,Economática!$A$3:$AI$823,24,FALSE)=0,VLOOKUP($A585,Economática!$A$3:$AI$823,24,FALSE)=\"-\"),1/0,VLOOKUP($A585,Economática!$A$3:$AI$823,24,FALSE)))","v":""},{"$f":"IF($A585=\"\",\"\",IF(OR(VLOOKUP($A585,Economática!$A$3:$AI$823,25,FALSE)=0,VLOOKUP($A585,Economática!$A$3:$AI$823,25,FALSE)=\"-\"),1/0,VLOOKUP($A585,Economática!$A$3:$AI$823,25,FALSE)))","v":""},{"$f":"IF($A585=\"\",\"\",IF(ISERROR((F585+VLOOKUP($A585,Economática!$A$3:$AI$823,26,FALSE))/Y585),(F585+VLOOKUP($A585,Economática!$A$3:$AI$823,26,FALSE))/Y585,(F585+VLOOKUP($A585,Economática!$A$3:$AI$823,26,FALSE))/Y585))","v":""},{"$f":"IF($A585=\"\",\"\",IF(OR(-VLOOKUP($A585,Economática!$A$3:$AI$823,27,FALSE)=0,-VLOOKUP($A585,Economática!$A$3:$AI$823,27,FALSE)=\"-\"),1/0,-VLOOKUP($A585,Economática!$A$3:$AI$823,27,FALSE)))","v":""},"",{"$f":"IF($A585=\"\",\"\",IF(OR(VLOOKUP($A585,Economática!$A$3:$AI$823,28,FALSE)=0,VLOOKUP($A585,Economática!$A$3:$AI$823,28,FALSE)=\"-\"),1/0,VLOOKUP($A585,Economática!$A$3:$AI$823,28,FALSE)))","v":""},{"$f":"IF($A585=\"\",\"\",IF(OR(VLOOKUP($A585,Economática!$A$3:$AI$823,29,FALSE)=0,VLOOKUP($A585,Economática!$A$3:$AI$823,29,FALSE)=\"-\"),1/0,VLOOKUP($A585,Economática!$A$3:$AI$823,29,FALSE)))","v":""},{"$f":"IF($A585=\"\",\"\",IF(OR(VLOOKUP($A585,Economática!$A$3:$AI$823,30,FALSE)/E585=0,VLOOKUP($A585,Economática!$A$3:$AI$823,30,FALSE)/E585=\"-\",VLOOKUP($A585,Economática!$A$3:$AI$823,30,FALSE)/E585<33.33%,VLOOKUP($A585,Economática!$A$3:$AI$823,30,FALSE)/E585>100%),1/0,VLOOKUP($A585,Economática!$A$3:$AI$823,30,FALSE)/E585))","v":""},"",{"$f":"IF($A585=\"\",\"\",IF(OR(VLOOKUP($A585,Economática!$A$3:$AI$823,25,FALSE)=0,VLOOKUP($A585,Economática!$A$3:$AI$823,25,FALSE)=\"-\"),1/0,VLOOKUP($A585,Economática!$A$3:$AI$823,25,FALSE)))","v":""},{"$f":"CONCATENATE(Economática!B563,\" \",Economática!C563)","v":" "}]
[{"$f":"IF(Economática!AG564=\"\",\"\",Economática!AG564)","v":""},{"$f":"IF($A586=\"\",\"\",VLOOKUP(VLOOKUP($A586,Economática!$A$3:$AI$823,6,FALSE),Correção!$B$16:$C$36,2,FALSE))","v":""},{"$f":"IF(Economática!B564=\"\",\"\",Economática!B564)","v":""},{"$f":"IF($A586=\"\",\"\",IF(OR(VLOOKUP($A586,Economática!$A$3:$AI$823,8,FALSE)=0,VLOOKUP($A586,Economática!$A$3:$AI$823,8,FALSE)=\"-\"),1/0,VLOOKUP($A586,Economática!$A$3:$AI$823,8,FALSE)))","v":""},{"$f":"IF(A586=\"\",\"\",IF(ISERROR(VLOOKUP(A586,Correção!$B$2:$G$13,9,FALSE)),VLOOKUP($A586,Economática!$A$3:$AI$823,9,FALSE),VLOOKUP(A586,Correção!$B$2:$G$13,9,FALSE)))","v":""},{"$f":"IF($A586=\"\",\"\",Economática!G564)","v":""},{"$f":"IF($A586=\"\",\"\",IF(OR(VLOOKUP($A586,Economática!$A$3:$AI$823,10,FALSE)=0,VLOOKUP($A586,Economática!$A$3:$AI$823,10,FALSE)=\"-\"),1/0,VLOOKUP($A586,Economática!$A$3:$AI$823,10,FALSE)))","v":""},{"$f":"IF($A586=\"\",\"\",IF(OR(VLOOKUP($A586,Economática!$A$3:$AI$823,11,FALSE)=0,VLOOKUP($A586,Economática!$A$3:$AI$823,11,FALSE)=\"-\"),1/0,VLOOKUP($A586,Economática!$A$3:$AI$823,11,FALSE)))","v":""},{"$f":"IF($A586=\"\",\"\",IF(OR(VLOOKUP($A586,Economática!$A$3:$AI$823,12,FALSE)=0,VLOOKUP($A586,Economática!$A$3:$AI$823,12,FALSE)=\"-\"),1/0,VLOOKUP($A586,Economática!$A$3:$AI$823,12,FALSE)))","v":""},{"$f":"IF($A586=\"\",\"\",IF(OR(VLOOKUP($A586,Economática!$A$3:$AI$823,13,FALSE)=0,VLOOKUP($A586,Economática!$A$3:$AI$823,13,FALSE)=\"-\"),1/0,VLOOKUP($A586,Economática!$A$3:$AI$823,13,FALSE)))","v":""},{"$f":"IF($A586=\"\",\"\",IF(OR(VLOOKUP($A586,Economática!$A$3:$AI$823,14,FALSE)=0,VLOOKUP($A586,Economática!$A$3:$AI$823,14,FALSE)=\"-\"),1/0,VLOOKUP($A586,Economática!$A$3:$AI$823,14,FALSE)))","v":""},{"$f":"IF($A586=\"\",\"\",IF(OR(VLOOKUP($A586,Economática!$A$3:$AI$823,15,FALSE)=0,VLOOKUP($A586,Economática!$A$3:$AI$823,15,FALSE)=\"-\"),1/0,VLOOKUP($A586,Economática!$A$3:$AI$823,15,FALSE)))","v":""},{"$f":"IF($A586=\"\",\"\",IF(OR(VLOOKUP($A586,Economática!$A$3:$AI$823,16,FALSE)=0,VLOOKUP($A586,Economática!$A$3:$AI$823,16,FALSE)=\"-\"),1/0,VLOOKUP($A586,Economática!$A$3:$AI$823,16,FALSE)))","v":""},{"$f":"IF($A586=\"\",\"\",IF(OR(VLOOKUP($A586,Economática!$A$3:$AI$823,17,FALSE)=0,VLOOKUP($A586,Economática!$A$3:$AI$823,17,FALSE)=\"-\"),1/0,VLOOKUP($A586,Economática!$A$3:$AI$823,17,FALSE)))","v":""},{"$f":"IF($A586=\"\",\"\",IF(OR(VLOOKUP($A586,Economática!$A$3:$AI$823,18,FALSE)=0,VLOOKUP($A586,Economática!$A$3:$AI$823,18,FALSE)=\"-\"),1/0,VLOOKUP($A586,Economática!$A$3:$AI$823,18,FALSE)))","v":""},{"$f":"IF($A586=\"\",\"\",IF(OR(VLOOKUP($A586,Economática!$A$3:$AI$823,19,FALSE)=0,VLOOKUP($A586,Economática!$A$3:$AI$823,19,FALSE)=\"-\"),1/0,VLOOKUP($A586,Economática!$A$3:$AI$823,19,FALSE)))","v":""},{"$f":"IF($A586=\"\",\"\",VLOOKUP($A586,Economática!$A$3:$AI$823,20,FALSE)/E586)","v":""},"","","",{"$f":"IF($A586=\"\",\"\",IF(OR(VLOOKUP($A586,Economática!$A$3:$AI$823,21,FALSE)/100=0,VLOOKUP($A586,Economática!$A$3:$AI$823,21,FALSE)/100=\"-\"),1/0,VLOOKUP($A586,Economática!$A$3:$AI$823,21,FALSE)/100))","v":""},{"$f":"IF($A586=\"\",\"\",IF(OR(VLOOKUP($A586,Economática!$A$3:$AI$823,22,FALSE)/100=0,VLOOKUP($A586,Economática!$A$3:$AI$823,22,FALSE)/100=\"-\"),1/0,VLOOKUP($A586,Economática!$A$3:$AI$823,22,FALSE)/100))","v":""},{"$f":"IF($A586=\"\",\"\",IF(OR(VLOOKUP($A586,Economática!$A$3:$AI$823,23,FALSE)=0,VLOOKUP($A586,Economática!$A$3:$AI$823,23,FALSE)=\"-\"),1/0,VLOOKUP($A586,Economática!$A$3:$AI$823,23,FALSE)))","v":""},{"$f":"IF($A586=\"\",\"\",IF(OR(VLOOKUP($A586,Economática!$A$3:$AI$823,24,FALSE)=0,VLOOKUP($A586,Economática!$A$3:$AI$823,24,FALSE)=\"-\"),1/0,VLOOKUP($A586,Economática!$A$3:$AI$823,24,FALSE)))","v":""},{"$f":"IF($A586=\"\",\"\",IF(OR(VLOOKUP($A586,Economática!$A$3:$AI$823,25,FALSE)=0,VLOOKUP($A586,Economática!$A$3:$AI$823,25,FALSE)=\"-\"),1/0,VLOOKUP($A586,Economática!$A$3:$AI$823,25,FALSE)))","v":""},{"$f":"IF($A586=\"\",\"\",IF(ISERROR((F586+VLOOKUP($A586,Economática!$A$3:$AI$823,26,FALSE))/Y586),(F586+VLOOKUP($A586,Economática!$A$3:$AI$823,26,FALSE))/Y586,(F586+VLOOKUP($A586,Economática!$A$3:$AI$823,26,FALSE))/Y586))","v":""},{"$f":"IF($A586=\"\",\"\",IF(OR(-VLOOKUP($A586,Economática!$A$3:$AI$823,27,FALSE)=0,-VLOOKUP($A586,Economática!$A$3:$AI$823,27,FALSE)=\"-\"),1/0,-VLOOKUP($A586,Economática!$A$3:$AI$823,27,FALSE)))","v":""},"",{"$f":"IF($A586=\"\",\"\",IF(OR(VLOOKUP($A586,Economática!$A$3:$AI$823,28,FALSE)=0,VLOOKUP($A586,Economática!$A$3:$AI$823,28,FALSE)=\"-\"),1/0,VLOOKUP($A586,Economática!$A$3:$AI$823,28,FALSE)))","v":""},{"$f":"IF($A586=\"\",\"\",IF(OR(VLOOKUP($A586,Economática!$A$3:$AI$823,29,FALSE)=0,VLOOKUP($A586,Economática!$A$3:$AI$823,29,FALSE)=\"-\"),1/0,VLOOKUP($A586,Economática!$A$3:$AI$823,29,FALSE)))","v":""},{"$f":"IF($A586=\"\",\"\",IF(OR(VLOOKUP($A586,Economática!$A$3:$AI$823,30,FALSE)/E586=0,VLOOKUP($A586,Economática!$A$3:$AI$823,30,FALSE)/E586=\"-\",VLOOKUP($A586,Economática!$A$3:$AI$823,30,FALSE)/E586<33.33%,VLOOKUP($A586,Economática!$A$3:$AI$823,30,FALSE)/E586>100%),1/0,VLOOKUP($A586,Economática!$A$3:$AI$823,30,FALSE)/E586))","v":""},"",{"$f":"IF($A586=\"\",\"\",IF(OR(VLOOKUP($A586,Economática!$A$3:$AI$823,25,FALSE)=0,VLOOKUP($A586,Economática!$A$3:$AI$823,25,FALSE)=\"-\"),1/0,VLOOKUP($A586,Economática!$A$3:$AI$823,25,FALSE)))","v":""},{"$f":"CONCATENATE(Economática!B564,\" \",Economática!C564)","v":" "}]
[{"$f":"IF(Economática!AG565=\"\",\"\",Economática!AG565)","v":""},{"$f":"IF($A587=\"\",\"\",VLOOKUP(VLOOKUP($A587,Economática!$A$3:$AI$823,6,FALSE),Correção!$B$16:$C$36,2,FALSE))","v":""},{"$f":"IF(Economática!B565=\"\",\"\",Economática!B565)","v":""},{"$f":"IF($A587=\"\",\"\",IF(OR(VLOOKUP($A587,Economática!$A$3:$AI$823,8,FALSE)=0,VLOOKUP($A587,Economática!$A$3:$AI$823,8,FALSE)=\"-\"),1/0,VLOOKUP($A587,Economática!$A$3:$AI$823,8,FALSE)))","v":""},{"$f":"IF(A587=\"\",\"\",IF(ISERROR(VLOOKUP(A587,Correção!$B$2:$G$13,9,FALSE)),VLOOKUP($A587,Economática!$A$3:$AI$823,9,FALSE),VLOOKUP(A587,Correção!$B$2:$G$13,9,FALSE)))","v":""},{"$f":"IF($A587=\"\",\"\",Economática!G565)","v":""},{"$f":"IF($A587=\"\",\"\",IF(OR(VLOOKUP($A587,Economática!$A$3:$AI$823,10,FALSE)=0,VLOOKUP($A587,Economática!$A$3:$AI$823,10,FALSE)=\"-\"),1/0,VLOOKUP($A587,Economática!$A$3:$AI$823,10,FALSE)))","v":""},{"$f":"IF($A587=\"\",\"\",IF(OR(VLOOKUP($A587,Economática!$A$3:$AI$823,11,FALSE)=0,VLOOKUP($A587,Economática!$A$3:$AI$823,11,FALSE)=\"-\"),1/0,VLOOKUP($A587,Economática!$A$3:$AI$823,11,FALSE)))","v":""},{"$f":"IF($A587=\"\",\"\",IF(OR(VLOOKUP($A587,Economática!$A$3:$AI$823,12,FALSE)=0,VLOOKUP($A587,Economática!$A$3:$AI$823,12,FALSE)=\"-\"),1/0,VLOOKUP($A587,Economática!$A$3:$AI$823,12,FALSE)))","v":""},{"$f":"IF($A587=\"\",\"\",IF(OR(VLOOKUP($A587,Economática!$A$3:$AI$823,13,FALSE)=0,VLOOKUP($A587,Economática!$A$3:$AI$823,13,FALSE)=\"-\"),1/0,VLOOKUP($A587,Economática!$A$3:$AI$823,13,FALSE)))","v":""},{"$f":"IF($A587=\"\",\"\",IF(OR(VLOOKUP($A587,Economática!$A$3:$AI$823,14,FALSE)=0,VLOOKUP($A587,Economática!$A$3:$AI$823,14,FALSE)=\"-\"),1/0,VLOOKUP($A587,Economática!$A$3:$AI$823,14,FALSE)))","v":""},{"$f":"IF($A587=\"\",\"\",IF(OR(VLOOKUP($A587,Economática!$A$3:$AI$823,15,FALSE)=0,VLOOKUP($A587,Economática!$A$3:$AI$823,15,FALSE)=\"-\"),1/0,VLOOKUP($A587,Economática!$A$3:$AI$823,15,FALSE)))","v":""},{"$f":"IF($A587=\"\",\"\",IF(OR(VLOOKUP($A587,Economática!$A$3:$AI$823,16,FALSE)=0,VLOOKUP($A587,Economática!$A$3:$AI$823,16,FALSE)=\"-\"),1/0,VLOOKUP($A587,Economática!$A$3:$AI$823,16,FALSE)))","v":""},{"$f":"IF($A587=\"\",\"\",IF(OR(VLOOKUP($A587,Economática!$A$3:$AI$823,17,FALSE)=0,VLOOKUP($A587,Economática!$A$3:$AI$823,17,FALSE)=\"-\"),1/0,VLOOKUP($A587,Economática!$A$3:$AI$823,17,FALSE)))","v":""},{"$f":"IF($A587=\"\",\"\",IF(OR(VLOOKUP($A587,Economática!$A$3:$AI$823,18,FALSE)=0,VLOOKUP($A587,Economática!$A$3:$AI$823,18,FALSE)=\"-\"),1/0,VLOOKUP($A587,Economática!$A$3:$AI$823,18,FALSE)))","v":""},{"$f":"IF($A587=\"\",\"\",IF(OR(VLOOKUP($A587,Economática!$A$3:$AI$823,19,FALSE)=0,VLOOKUP($A587,Economática!$A$3:$AI$823,19,FALSE)=\"-\"),1/0,VLOOKUP($A587,Economática!$A$3:$AI$823,19,FALSE)))","v":""},{"$f":"IF($A587=\"\",\"\",VLOOKUP($A587,Economática!$A$3:$AI$823,20,FALSE)/E587)","v":""},"","","",{"$f":"IF($A587=\"\",\"\",IF(OR(VLOOKUP($A587,Economática!$A$3:$AI$823,21,FALSE)/100=0,VLOOKUP($A587,Economática!$A$3:$AI$823,21,FALSE)/100=\"-\"),1/0,VLOOKUP($A587,Economática!$A$3:$AI$823,21,FALSE)/100))","v":""},{"$f":"IF($A587=\"\",\"\",IF(OR(VLOOKUP($A587,Economática!$A$3:$AI$823,22,FALSE)/100=0,VLOOKUP($A587,Economática!$A$3:$AI$823,22,FALSE)/100=\"-\"),1/0,VLOOKUP($A587,Economática!$A$3:$AI$823,22,FALSE)/100))","v":""},{"$f":"IF($A587=\"\",\"\",IF(OR(VLOOKUP($A587,Economática!$A$3:$AI$823,23,FALSE)=0,VLOOKUP($A587,Economática!$A$3:$AI$823,23,FALSE)=\"-\"),1/0,VLOOKUP($A587,Economática!$A$3:$AI$823,23,FALSE)))","v":""},{"$f":"IF($A587=\"\",\"\",IF(OR(VLOOKUP($A587,Economática!$A$3:$AI$823,24,FALSE)=0,VLOOKUP($A587,Economática!$A$3:$AI$823,24,FALSE)=\"-\"),1/0,VLOOKUP($A587,Economática!$A$3:$AI$823,24,FALSE)))","v":""},{"$f":"IF($A587=\"\",\"\",IF(OR(VLOOKUP($A587,Economática!$A$3:$AI$823,25,FALSE)=0,VLOOKUP($A587,Economática!$A$3:$AI$823,25,FALSE)=\"-\"),1/0,VLOOKUP($A587,Economática!$A$3:$AI$823,25,FALSE)))","v":""},{"$f":"IF($A587=\"\",\"\",IF(ISERROR((F587+VLOOKUP($A587,Economática!$A$3:$AI$823,26,FALSE))/Y587),(F587+VLOOKUP($A587,Economática!$A$3:$AI$823,26,FALSE))/Y587,(F587+VLOOKUP($A587,Economática!$A$3:$AI$823,26,FALSE))/Y587))","v":""},{"$f":"IF($A587=\"\",\"\",IF(OR(-VLOOKUP($A587,Economática!$A$3:$AI$823,27,FALSE)=0,-VLOOKUP($A587,Economática!$A$3:$AI$823,27,FALSE)=\"-\"),1/0,-VLOOKUP($A587,Economática!$A$3:$AI$823,27,FALSE)))","v":""},"",{"$f":"IF($A587=\"\",\"\",IF(OR(VLOOKUP($A587,Economática!$A$3:$AI$823,28,FALSE)=0,VLOOKUP($A587,Economática!$A$3:$AI$823,28,FALSE)=\"-\"),1/0,VLOOKUP($A587,Economática!$A$3:$AI$823,28,FALSE)))","v":""},{"$f":"IF($A587=\"\",\"\",IF(OR(VLOOKUP($A587,Economática!$A$3:$AI$823,29,FALSE)=0,VLOOKUP($A587,Economática!$A$3:$AI$823,29,FALSE)=\"-\"),1/0,VLOOKUP($A587,Economática!$A$3:$AI$823,29,FALSE)))","v":""},{"$f":"IF($A587=\"\",\"\",IF(OR(VLOOKUP($A587,Economática!$A$3:$AI$823,30,FALSE)/E587=0,VLOOKUP($A587,Economática!$A$3:$AI$823,30,FALSE)/E587=\"-\",VLOOKUP($A587,Economática!$A$3:$AI$823,30,FALSE)/E587<33.33%,VLOOKUP($A587,Economática!$A$3:$AI$823,30,FALSE)/E587>100%),1/0,VLOOKUP($A587,Economática!$A$3:$AI$823,30,FALSE)/E587))","v":""},"",{"$f":"IF($A587=\"\",\"\",IF(OR(VLOOKUP($A587,Economática!$A$3:$AI$823,25,FALSE)=0,VLOOKUP($A587,Economática!$A$3:$AI$823,25,FALSE)=\"-\"),1/0,VLOOKUP($A587,Economática!$A$3:$AI$823,25,FALSE)))","v":""},{"$f":"CONCATENATE(Economática!B565,\" \",Economática!C565)","v":" "}]
[{"$f":"IF(Economática!AG566=\"\",\"\",Economática!AG566)","v":""},{"$f":"IF($A588=\"\",\"\",VLOOKUP(VLOOKUP($A588,Economática!$A$3:$AI$823,6,FALSE),Correção!$B$16:$C$36,2,FALSE))","v":""},{"$f":"IF(Economática!B566=\"\",\"\",Economática!B566)","v":""},{"$f":"IF($A588=\"\",\"\",IF(OR(VLOOKUP($A588,Economática!$A$3:$AI$823,8,FALSE)=0,VLOOKUP($A588,Economática!$A$3:$AI$823,8,FALSE)=\"-\"),1/0,VLOOKUP($A588,Economática!$A$3:$AI$823,8,FALSE)))","v":""},{"$f":"IF(A588=\"\",\"\",IF(ISERROR(VLOOKUP(A588,Correção!$B$2:$G$13,9,FALSE)),VLOOKUP($A588,Economática!$A$3:$AI$823,9,FALSE),VLOOKUP(A588,Correção!$B$2:$G$13,9,FALSE)))","v":""},{"$f":"IF($A588=\"\",\"\",Economática!G566)","v":""},{"$f":"IF($A588=\"\",\"\",IF(OR(VLOOKUP($A588,Economática!$A$3:$AI$823,10,FALSE)=0,VLOOKUP($A588,Economática!$A$3:$AI$823,10,FALSE)=\"-\"),1/0,VLOOKUP($A588,Economática!$A$3:$AI$823,10,FALSE)))","v":""},{"$f":"IF($A588=\"\",\"\",IF(OR(VLOOKUP($A588,Economática!$A$3:$AI$823,11,FALSE)=0,VLOOKUP($A588,Economática!$A$3:$AI$823,11,FALSE)=\"-\"),1/0,VLOOKUP($A588,Economática!$A$3:$AI$823,11,FALSE)))","v":""},{"$f":"IF($A588=\"\",\"\",IF(OR(VLOOKUP($A588,Economática!$A$3:$AI$823,12,FALSE)=0,VLOOKUP($A588,Economática!$A$3:$AI$823,12,FALSE)=\"-\"),1/0,VLOOKUP($A588,Economática!$A$3:$AI$823,12,FALSE)))","v":""},{"$f":"IF($A588=\"\",\"\",IF(OR(VLOOKUP($A588,Economática!$A$3:$AI$823,13,FALSE)=0,VLOOKUP($A588,Economática!$A$3:$AI$823,13,FALSE)=\"-\"),1/0,VLOOKUP($A588,Economática!$A$3:$AI$823,13,FALSE)))","v":""},{"$f":"IF($A588=\"\",\"\",IF(OR(VLOOKUP($A588,Economática!$A$3:$AI$823,14,FALSE)=0,VLOOKUP($A588,Economática!$A$3:$AI$823,14,FALSE)=\"-\"),1/0,VLOOKUP($A588,Economática!$A$3:$AI$823,14,FALSE)))","v":""},{"$f":"IF($A588=\"\",\"\",IF(OR(VLOOKUP($A588,Economática!$A$3:$AI$823,15,FALSE)=0,VLOOKUP($A588,Economática!$A$3:$AI$823,15,FALSE)=\"-\"),1/0,VLOOKUP($A588,Economática!$A$3:$AI$823,15,FALSE)))","v":""},{"$f":"IF($A588=\"\",\"\",IF(OR(VLOOKUP($A588,Economática!$A$3:$AI$823,16,FALSE)=0,VLOOKUP($A588,Economática!$A$3:$AI$823,16,FALSE)=\"-\"),1/0,VLOOKUP($A588,Economática!$A$3:$AI$823,16,FALSE)))","v":""},{"$f":"IF($A588=\"\",\"\",IF(OR(VLOOKUP($A588,Economática!$A$3:$AI$823,17,FALSE)=0,VLOOKUP($A588,Economática!$A$3:$AI$823,17,FALSE)=\"-\"),1/0,VLOOKUP($A588,Economática!$A$3:$AI$823,17,FALSE)))","v":""},{"$f":"IF($A588=\"\",\"\",IF(OR(VLOOKUP($A588,Economática!$A$3:$AI$823,18,FALSE)=0,VLOOKUP($A588,Economática!$A$3:$AI$823,18,FALSE)=\"-\"),1/0,VLOOKUP($A588,Economática!$A$3:$AI$823,18,FALSE)))","v":""},{"$f":"IF($A588=\"\",\"\",IF(OR(VLOOKUP($A588,Economática!$A$3:$AI$823,19,FALSE)=0,VLOOKUP($A588,Economática!$A$3:$AI$823,19,FALSE)=\"-\"),1/0,VLOOKUP($A588,Economática!$A$3:$AI$823,19,FALSE)))","v":""},{"$f":"IF($A588=\"\",\"\",VLOOKUP($A588,Economática!$A$3:$AI$823,20,FALSE)/E588)","v":""},"","","",{"$f":"IF($A588=\"\",\"\",IF(OR(VLOOKUP($A588,Economática!$A$3:$AI$823,21,FALSE)/100=0,VLOOKUP($A588,Economática!$A$3:$AI$823,21,FALSE)/100=\"-\"),1/0,VLOOKUP($A588,Economática!$A$3:$AI$823,21,FALSE)/100))","v":""},{"$f":"IF($A588=\"\",\"\",IF(OR(VLOOKUP($A588,Economática!$A$3:$AI$823,22,FALSE)/100=0,VLOOKUP($A588,Economática!$A$3:$AI$823,22,FALSE)/100=\"-\"),1/0,VLOOKUP($A588,Economática!$A$3:$AI$823,22,FALSE)/100))","v":""},{"$f":"IF($A588=\"\",\"\",IF(OR(VLOOKUP($A588,Economática!$A$3:$AI$823,23,FALSE)=0,VLOOKUP($A588,Economática!$A$3:$AI$823,23,FALSE)=\"-\"),1/0,VLOOKUP($A588,Economática!$A$3:$AI$823,23,FALSE)))","v":""},{"$f":"IF($A588=\"\",\"\",IF(OR(VLOOKUP($A588,Economática!$A$3:$AI$823,24,FALSE)=0,VLOOKUP($A588,Economática!$A$3:$AI$823,24,FALSE)=\"-\"),1/0,VLOOKUP($A588,Economática!$A$3:$AI$823,24,FALSE)))","v":""},{"$f":"IF($A588=\"\",\"\",IF(OR(VLOOKUP($A588,Economática!$A$3:$AI$823,25,FALSE)=0,VLOOKUP($A588,Economática!$A$3:$AI$823,25,FALSE)=\"-\"),1/0,VLOOKUP($A588,Economática!$A$3:$AI$823,25,FALSE)))","v":""},{"$f":"IF($A588=\"\",\"\",IF(ISERROR((F588+VLOOKUP($A588,Economática!$A$3:$AI$823,26,FALSE))/Y588),(F588+VLOOKUP($A588,Economática!$A$3:$AI$823,26,FALSE))/Y588,(F588+VLOOKUP($A588,Economática!$A$3:$AI$823,26,FALSE))/Y588))","v":""},{"$f":"IF($A588=\"\",\"\",IF(OR(-VLOOKUP($A588,Economática!$A$3:$AI$823,27,FALSE)=0,-VLOOKUP($A588,Economática!$A$3:$AI$823,27,FALSE)=\"-\"),1/0,-VLOOKUP($A588,Economática!$A$3:$AI$823,27,FALSE)))","v":""},"",{"$f":"IF($A588=\"\",\"\",IF(OR(VLOOKUP($A588,Economática!$A$3:$AI$823,28,FALSE)=0,VLOOKUP($A588,Economática!$A$3:$AI$823,28,FALSE)=\"-\"),1/0,VLOOKUP($A588,Economática!$A$3:$AI$823,28,FALSE)))","v":""},{"$f":"IF($A588=\"\",\"\",IF(OR(VLOOKUP($A588,Economática!$A$3:$AI$823,29,FALSE)=0,VLOOKUP($A588,Economática!$A$3:$AI$823,29,FALSE)=\"-\"),1/0,VLOOKUP($A588,Economática!$A$3:$AI$823,29,FALSE)))","v":""},{"$f":"IF($A588=\"\",\"\",IF(OR(VLOOKUP($A588,Economática!$A$3:$AI$823,30,FALSE)/E588=0,VLOOKUP($A588,Economática!$A$3:$AI$823,30,FALSE)/E588=\"-\",VLOOKUP($A588,Economática!$A$3:$AI$823,30,FALSE)/E588<33.33%,VLOOKUP($A588,Economática!$A$3:$AI$823,30,FALSE)/E588>100%),1/0,VLOOKUP($A588,Economática!$A$3:$AI$823,30,FALSE)/E588))","v":""},"",{"$f":"IF($A588=\"\",\"\",IF(OR(VLOOKUP($A588,Economática!$A$3:$AI$823,25,FALSE)=0,VLOOKUP($A588,Economática!$A$3:$AI$823,25,FALSE)=\"-\"),1/0,VLOOKUP($A588,Economática!$A$3:$AI$823,25,FALSE)))","v":""},{"$f":"CONCATENATE(Economática!B566,\" \",Economática!C566)","v":" "}]
[{"$f":"IF(Economática!AG567=\"\",\"\",Economática!AG567)","v":""},{"$f":"IF($A589=\"\",\"\",VLOOKUP(VLOOKUP($A589,Economática!$A$3:$AI$823,6,FALSE),Correção!$B$16:$C$36,2,FALSE))","v":""},{"$f":"IF(Economática!B567=\"\",\"\",Economática!B567)","v":""},{"$f":"IF($A589=\"\",\"\",IF(OR(VLOOKUP($A589,Economática!$A$3:$AI$823,8,FALSE)=0,VLOOKUP($A589,Economática!$A$3:$AI$823,8,FALSE)=\"-\"),1/0,VLOOKUP($A589,Economática!$A$3:$AI$823,8,FALSE)))","v":""},{"$f":"IF(A589=\"\",\"\",IF(ISERROR(VLOOKUP(A589,Correção!$B$2:$G$13,9,FALSE)),VLOOKUP($A589,Economática!$A$3:$AI$823,9,FALSE),VLOOKUP(A589,Correção!$B$2:$G$13,9,FALSE)))","v":""},{"$f":"IF($A589=\"\",\"\",Economática!G567)","v":""},{"$f":"IF($A589=\"\",\"\",IF(OR(VLOOKUP($A589,Economática!$A$3:$AI$823,10,FALSE)=0,VLOOKUP($A589,Economática!$A$3:$AI$823,10,FALSE)=\"-\"),1/0,VLOOKUP($A589,Economática!$A$3:$AI$823,10,FALSE)))","v":""},{"$f":"IF($A589=\"\",\"\",IF(OR(VLOOKUP($A589,Economática!$A$3:$AI$823,11,FALSE)=0,VLOOKUP($A589,Economática!$A$3:$AI$823,11,FALSE)=\"-\"),1/0,VLOOKUP($A589,Economática!$A$3:$AI$823,11,FALSE)))","v":""},{"$f":"IF($A589=\"\",\"\",IF(OR(VLOOKUP($A589,Economática!$A$3:$AI$823,12,FALSE)=0,VLOOKUP($A589,Economática!$A$3:$AI$823,12,FALSE)=\"-\"),1/0,VLOOKUP($A589,Economática!$A$3:$AI$823,12,FALSE)))","v":""},{"$f":"IF($A589=\"\",\"\",IF(OR(VLOOKUP($A589,Economática!$A$3:$AI$823,13,FALSE)=0,VLOOKUP($A589,Economática!$A$3:$AI$823,13,FALSE)=\"-\"),1/0,VLOOKUP($A589,Economática!$A$3:$AI$823,13,FALSE)))","v":""},{"$f":"IF($A589=\"\",\"\",IF(OR(VLOOKUP($A589,Economática!$A$3:$AI$823,14,FALSE)=0,VLOOKUP($A589,Economática!$A$3:$AI$823,14,FALSE)=\"-\"),1/0,VLOOKUP($A589,Economática!$A$3:$AI$823,14,FALSE)))","v":""},{"$f":"IF($A589=\"\",\"\",IF(OR(VLOOKUP($A589,Economática!$A$3:$AI$823,15,FALSE)=0,VLOOKUP($A589,Economática!$A$3:$AI$823,15,FALSE)=\"-\"),1/0,VLOOKUP($A589,Economática!$A$3:$AI$823,15,FALSE)))","v":""},{"$f":"IF($A589=\"\",\"\",IF(OR(VLOOKUP($A589,Economática!$A$3:$AI$823,16,FALSE)=0,VLOOKUP($A589,Economática!$A$3:$AI$823,16,FALSE)=\"-\"),1/0,VLOOKUP($A589,Economática!$A$3:$AI$823,16,FALSE)))","v":""},{"$f":"IF($A589=\"\",\"\",IF(OR(VLOOKUP($A589,Economática!$A$3:$AI$823,17,FALSE)=0,VLOOKUP($A589,Economática!$A$3:$AI$823,17,FALSE)=\"-\"),1/0,VLOOKUP($A589,Economática!$A$3:$AI$823,17,FALSE)))","v":""},{"$f":"IF($A589=\"\",\"\",IF(OR(VLOOKUP($A589,Economática!$A$3:$AI$823,18,FALSE)=0,VLOOKUP($A589,Economática!$A$3:$AI$823,18,FALSE)=\"-\"),1/0,VLOOKUP($A589,Economática!$A$3:$AI$823,18,FALSE)))","v":""},{"$f":"IF($A589=\"\",\"\",IF(OR(VLOOKUP($A589,Economática!$A$3:$AI$823,19,FALSE)=0,VLOOKUP($A589,Economática!$A$3:$AI$823,19,FALSE)=\"-\"),1/0,VLOOKUP($A589,Economática!$A$3:$AI$823,19,FALSE)))","v":""},{"$f":"IF($A589=\"\",\"\",VLOOKUP($A589,Economática!$A$3:$AI$823,20,FALSE)/E589)","v":""},"","","",{"$f":"IF($A589=\"\",\"\",IF(OR(VLOOKUP($A589,Economática!$A$3:$AI$823,21,FALSE)/100=0,VLOOKUP($A589,Economática!$A$3:$AI$823,21,FALSE)/100=\"-\"),1/0,VLOOKUP($A589,Economática!$A$3:$AI$823,21,FALSE)/100))","v":""},{"$f":"IF($A589=\"\",\"\",IF(OR(VLOOKUP($A589,Economática!$A$3:$AI$823,22,FALSE)/100=0,VLOOKUP($A589,Economática!$A$3:$AI$823,22,FALSE)/100=\"-\"),1/0,VLOOKUP($A589,Economática!$A$3:$AI$823,22,FALSE)/100))","v":""},{"$f":"IF($A589=\"\",\"\",IF(OR(VLOOKUP($A589,Economática!$A$3:$AI$823,23,FALSE)=0,VLOOKUP($A589,Economática!$A$3:$AI$823,23,FALSE)=\"-\"),1/0,VLOOKUP($A589,Economática!$A$3:$AI$823,23,FALSE)))","v":""},{"$f":"IF($A589=\"\",\"\",IF(OR(VLOOKUP($A589,Economática!$A$3:$AI$823,24,FALSE)=0,VLOOKUP($A589,Economática!$A$3:$AI$823,24,FALSE)=\"-\"),1/0,VLOOKUP($A589,Economática!$A$3:$AI$823,24,FALSE)))","v":""},{"$f":"IF($A589=\"\",\"\",IF(OR(VLOOKUP($A589,Economática!$A$3:$AI$823,25,FALSE)=0,VLOOKUP($A589,Economática!$A$3:$AI$823,25,FALSE)=\"-\"),1/0,VLOOKUP($A589,Economática!$A$3:$AI$823,25,FALSE)))","v":""},{"$f":"IF($A589=\"\",\"\",IF(ISERROR((F589+VLOOKUP($A589,Economática!$A$3:$AI$823,26,FALSE))/Y589),(F589+VLOOKUP($A589,Economática!$A$3:$AI$823,26,FALSE))/Y589,(F589+VLOOKUP($A589,Economática!$A$3:$AI$823,26,FALSE))/Y589))","v":""},{"$f":"IF($A589=\"\",\"\",IF(OR(-VLOOKUP($A589,Economática!$A$3:$AI$823,27,FALSE)=0,-VLOOKUP($A589,Economática!$A$3:$AI$823,27,FALSE)=\"-\"),1/0,-VLOOKUP($A589,Economática!$A$3:$AI$823,27,FALSE)))","v":""},"",{"$f":"IF($A589=\"\",\"\",IF(OR(VLOOKUP($A589,Economática!$A$3:$AI$823,28,FALSE)=0,VLOOKUP($A589,Economática!$A$3:$AI$823,28,FALSE)=\"-\"),1/0,VLOOKUP($A589,Economática!$A$3:$AI$823,28,FALSE)))","v":""},{"$f":"IF($A589=\"\",\"\",IF(OR(VLOOKUP($A589,Economática!$A$3:$AI$823,29,FALSE)=0,VLOOKUP($A589,Economática!$A$3:$AI$823,29,FALSE)=\"-\"),1/0,VLOOKUP($A589,Economática!$A$3:$AI$823,29,FALSE)))","v":""},{"$f":"IF($A589=\"\",\"\",IF(OR(VLOOKUP($A589,Economática!$A$3:$AI$823,30,FALSE)/E589=0,VLOOKUP($A589,Economática!$A$3:$AI$823,30,FALSE)/E589=\"-\",VLOOKUP($A589,Economática!$A$3:$AI$823,30,FALSE)/E589<33.33%,VLOOKUP($A589,Economática!$A$3:$AI$823,30,FALSE)/E589>100%),1/0,VLOOKUP($A589,Economática!$A$3:$AI$823,30,FALSE)/E589))","v":""},"",{"$f":"IF($A589=\"\",\"\",IF(OR(VLOOKUP($A589,Economática!$A$3:$AI$823,25,FALSE)=0,VLOOKUP($A589,Economática!$A$3:$AI$823,25,FALSE)=\"-\"),1/0,VLOOKUP($A589,Economática!$A$3:$AI$823,25,FALSE)))","v":""},{"$f":"CONCATENATE(Economática!B567,\" \",Economática!C567)","v":" "}]
[{"$f":"IF(Economática!AG568=\"\",\"\",Economática!AG568)","v":""},{"$f":"IF($A590=\"\",\"\",VLOOKUP(VLOOKUP($A590,Economática!$A$3:$AI$823,6,FALSE),Correção!$B$16:$C$36,2,FALSE))","v":""},{"$f":"IF(Economática!B568=\"\",\"\",Economática!B568)","v":""},{"$f":"IF($A590=\"\",\"\",IF(OR(VLOOKUP($A590,Economática!$A$3:$AI$823,8,FALSE)=0,VLOOKUP($A590,Economática!$A$3:$AI$823,8,FALSE)=\"-\"),1/0,VLOOKUP($A590,Economática!$A$3:$AI$823,8,FALSE)))","v":""},{"$f":"IF(A590=\"\",\"\",IF(ISERROR(VLOOKUP(A590,Correção!$B$2:$G$13,9,FALSE)),VLOOKUP($A590,Economática!$A$3:$AI$823,9,FALSE),VLOOKUP(A590,Correção!$B$2:$G$13,9,FALSE)))","v":""},{"$f":"IF($A590=\"\",\"\",Economática!G568)","v":""},{"$f":"IF($A590=\"\",\"\",IF(OR(VLOOKUP($A590,Economática!$A$3:$AI$823,10,FALSE)=0,VLOOKUP($A590,Economática!$A$3:$AI$823,10,FALSE)=\"-\"),1/0,VLOOKUP($A590,Economática!$A$3:$AI$823,10,FALSE)))","v":""},{"$f":"IF($A590=\"\",\"\",IF(OR(VLOOKUP($A590,Economática!$A$3:$AI$823,11,FALSE)=0,VLOOKUP($A590,Economática!$A$3:$AI$823,11,FALSE)=\"-\"),1/0,VLOOKUP($A590,Economática!$A$3:$AI$823,11,FALSE)))","v":""},{"$f":"IF($A590=\"\",\"\",IF(OR(VLOOKUP($A590,Economática!$A$3:$AI$823,12,FALSE)=0,VLOOKUP($A590,Economática!$A$3:$AI$823,12,FALSE)=\"-\"),1/0,VLOOKUP($A590,Economática!$A$3:$AI$823,12,FALSE)))","v":""},{"$f":"IF($A590=\"\",\"\",IF(OR(VLOOKUP($A590,Economática!$A$3:$AI$823,13,FALSE)=0,VLOOKUP($A590,Economática!$A$3:$AI$823,13,FALSE)=\"-\"),1/0,VLOOKUP($A590,Economática!$A$3:$AI$823,13,FALSE)))","v":""},{"$f":"IF($A590=\"\",\"\",IF(OR(VLOOKUP($A590,Economática!$A$3:$AI$823,14,FALSE)=0,VLOOKUP($A590,Economática!$A$3:$AI$823,14,FALSE)=\"-\"),1/0,VLOOKUP($A590,Economática!$A$3:$AI$823,14,FALSE)))","v":""},{"$f":"IF($A590=\"\",\"\",IF(OR(VLOOKUP($A590,Economática!$A$3:$AI$823,15,FALSE)=0,VLOOKUP($A590,Economática!$A$3:$AI$823,15,FALSE)=\"-\"),1/0,VLOOKUP($A590,Economática!$A$3:$AI$823,15,FALSE)))","v":""},{"$f":"IF($A590=\"\",\"\",IF(OR(VLOOKUP($A590,Economática!$A$3:$AI$823,16,FALSE)=0,VLOOKUP($A590,Economática!$A$3:$AI$823,16,FALSE)=\"-\"),1/0,VLOOKUP($A590,Economática!$A$3:$AI$823,16,FALSE)))","v":""},{"$f":"IF($A590=\"\",\"\",IF(OR(VLOOKUP($A590,Economática!$A$3:$AI$823,17,FALSE)=0,VLOOKUP($A590,Economática!$A$3:$AI$823,17,FALSE)=\"-\"),1/0,VLOOKUP($A590,Economática!$A$3:$AI$823,17,FALSE)))","v":""},{"$f":"IF($A590=\"\",\"\",IF(OR(VLOOKUP($A590,Economática!$A$3:$AI$823,18,FALSE)=0,VLOOKUP($A590,Economática!$A$3:$AI$823,18,FALSE)=\"-\"),1/0,VLOOKUP($A590,Economática!$A$3:$AI$823,18,FALSE)))","v":""},{"$f":"IF($A590=\"\",\"\",IF(OR(VLOOKUP($A590,Economática!$A$3:$AI$823,19,FALSE)=0,VLOOKUP($A590,Economática!$A$3:$AI$823,19,FALSE)=\"-\"),1/0,VLOOKUP($A590,Economática!$A$3:$AI$823,19,FALSE)))","v":""},{"$f":"IF($A590=\"\",\"\",VLOOKUP($A590,Economática!$A$3:$AI$823,20,FALSE)/E590)","v":""},"","","",{"$f":"IF($A590=\"\",\"\",IF(OR(VLOOKUP($A590,Economática!$A$3:$AI$823,21,FALSE)/100=0,VLOOKUP($A590,Economática!$A$3:$AI$823,21,FALSE)/100=\"-\"),1/0,VLOOKUP($A590,Economática!$A$3:$AI$823,21,FALSE)/100))","v":""},{"$f":"IF($A590=\"\",\"\",IF(OR(VLOOKUP($A590,Economática!$A$3:$AI$823,22,FALSE)/100=0,VLOOKUP($A590,Economática!$A$3:$AI$823,22,FALSE)/100=\"-\"),1/0,VLOOKUP($A590,Economática!$A$3:$AI$823,22,FALSE)/100))","v":""},{"$f":"IF($A590=\"\",\"\",IF(OR(VLOOKUP($A590,Economática!$A$3:$AI$823,23,FALSE)=0,VLOOKUP($A590,Economática!$A$3:$AI$823,23,FALSE)=\"-\"),1/0,VLOOKUP($A590,Economática!$A$3:$AI$823,23,FALSE)))","v":""},{"$f":"IF($A590=\"\",\"\",IF(OR(VLOOKUP($A590,Economática!$A$3:$AI$823,24,FALSE)=0,VLOOKUP($A590,Economática!$A$3:$AI$823,24,FALSE)=\"-\"),1/0,VLOOKUP($A590,Economática!$A$3:$AI$823,24,FALSE)))","v":""},{"$f":"IF($A590=\"\",\"\",IF(OR(VLOOKUP($A590,Economática!$A$3:$AI$823,25,FALSE)=0,VLOOKUP($A590,Economática!$A$3:$AI$823,25,FALSE)=\"-\"),1/0,VLOOKUP($A590,Economática!$A$3:$AI$823,25,FALSE)))","v":""},{"$f":"IF($A590=\"\",\"\",IF(ISERROR((F590+VLOOKUP($A590,Economática!$A$3:$AI$823,26,FALSE))/Y590),(F590+VLOOKUP($A590,Economática!$A$3:$AI$823,26,FALSE))/Y590,(F590+VLOOKUP($A590,Economática!$A$3:$AI$823,26,FALSE))/Y590))","v":""},{"$f":"IF($A590=\"\",\"\",IF(OR(-VLOOKUP($A590,Economática!$A$3:$AI$823,27,FALSE)=0,-VLOOKUP($A590,Economática!$A$3:$AI$823,27,FALSE)=\"-\"),1/0,-VLOOKUP($A590,Economática!$A$3:$AI$823,27,FALSE)))","v":""},"",{"$f":"IF($A590=\"\",\"\",IF(OR(VLOOKUP($A590,Economática!$A$3:$AI$823,28,FALSE)=0,VLOOKUP($A590,Economática!$A$3:$AI$823,28,FALSE)=\"-\"),1/0,VLOOKUP($A590,Economática!$A$3:$AI$823,28,FALSE)))","v":""},{"$f":"IF($A590=\"\",\"\",IF(OR(VLOOKUP($A590,Economática!$A$3:$AI$823,29,FALSE)=0,VLOOKUP($A590,Economática!$A$3:$AI$823,29,FALSE)=\"-\"),1/0,VLOOKUP($A590,Economática!$A$3:$AI$823,29,FALSE)))","v":""},{"$f":"IF($A590=\"\",\"\",IF(OR(VLOOKUP($A590,Economática!$A$3:$AI$823,30,FALSE)/E590=0,VLOOKUP($A590,Economática!$A$3:$AI$823,30,FALSE)/E590=\"-\",VLOOKUP($A590,Economática!$A$3:$AI$823,30,FALSE)/E590<33.33%,VLOOKUP($A590,Economática!$A$3:$AI$823,30,FALSE)/E590>100%),1/0,VLOOKUP($A590,Economática!$A$3:$AI$823,30,FALSE)/E590))","v":""},"",{"$f":"IF($A590=\"\",\"\",IF(OR(VLOOKUP($A590,Economática!$A$3:$AI$823,25,FALSE)=0,VLOOKUP($A590,Economática!$A$3:$AI$823,25,FALSE)=\"-\"),1/0,VLOOKUP($A590,Economática!$A$3:$AI$823,25,FALSE)))","v":""},{"$f":"CONCATENATE(Economática!B568,\" \",Economática!C568)","v":" "}]
[{"$f":"IF(Economática!AG569=\"\",\"\",Economática!AG569)","v":""},{"$f":"IF($A591=\"\",\"\",VLOOKUP(VLOOKUP($A591,Economática!$A$3:$AI$823,6,FALSE),Correção!$B$16:$C$36,2,FALSE))","v":""},{"$f":"IF(Economática!B569=\"\",\"\",Economática!B569)","v":""},{"$f":"IF($A591=\"\",\"\",IF(OR(VLOOKUP($A591,Economática!$A$3:$AI$823,8,FALSE)=0,VLOOKUP($A591,Economática!$A$3:$AI$823,8,FALSE)=\"-\"),1/0,VLOOKUP($A591,Economática!$A$3:$AI$823,8,FALSE)))","v":""},{"$f":"IF(A591=\"\",\"\",IF(ISERROR(VLOOKUP(A591,Correção!$B$2:$G$13,9,FALSE)),VLOOKUP($A591,Economática!$A$3:$AI$823,9,FALSE),VLOOKUP(A591,Correção!$B$2:$G$13,9,FALSE)))","v":""},{"$f":"IF($A591=\"\",\"\",Economática!G569)","v":""},{"$f":"IF($A591=\"\",\"\",IF(OR(VLOOKUP($A591,Economática!$A$3:$AI$823,10,FALSE)=0,VLOOKUP($A591,Economática!$A$3:$AI$823,10,FALSE)=\"-\"),1/0,VLOOKUP($A591,Economática!$A$3:$AI$823,10,FALSE)))","v":""},{"$f":"IF($A591=\"\",\"\",IF(OR(VLOOKUP($A591,Economática!$A$3:$AI$823,11,FALSE)=0,VLOOKUP($A591,Economática!$A$3:$AI$823,11,FALSE)=\"-\"),1/0,VLOOKUP($A591,Economática!$A$3:$AI$823,11,FALSE)))","v":""},{"$f":"IF($A591=\"\",\"\",IF(OR(VLOOKUP($A591,Economática!$A$3:$AI$823,12,FALSE)=0,VLOOKUP($A591,Economática!$A$3:$AI$823,12,FALSE)=\"-\"),1/0,VLOOKUP($A591,Economática!$A$3:$AI$823,12,FALSE)))","v":""},{"$f":"IF($A591=\"\",\"\",IF(OR(VLOOKUP($A591,Economática!$A$3:$AI$823,13,FALSE)=0,VLOOKUP($A591,Economática!$A$3:$AI$823,13,FALSE)=\"-\"),1/0,VLOOKUP($A591,Economática!$A$3:$AI$823,13,FALSE)))","v":""},{"$f":"IF($A591=\"\",\"\",IF(OR(VLOOKUP($A591,Economática!$A$3:$AI$823,14,FALSE)=0,VLOOKUP($A591,Economática!$A$3:$AI$823,14,FALSE)=\"-\"),1/0,VLOOKUP($A591,Economática!$A$3:$AI$823,14,FALSE)))","v":""},{"$f":"IF($A591=\"\",\"\",IF(OR(VLOOKUP($A591,Economática!$A$3:$AI$823,15,FALSE)=0,VLOOKUP($A591,Economática!$A$3:$AI$823,15,FALSE)=\"-\"),1/0,VLOOKUP($A591,Economática!$A$3:$AI$823,15,FALSE)))","v":""},{"$f":"IF($A591=\"\",\"\",IF(OR(VLOOKUP($A591,Economática!$A$3:$AI$823,16,FALSE)=0,VLOOKUP($A591,Economática!$A$3:$AI$823,16,FALSE)=\"-\"),1/0,VLOOKUP($A591,Economática!$A$3:$AI$823,16,FALSE)))","v":""},{"$f":"IF($A591=\"\",\"\",IF(OR(VLOOKUP($A591,Economática!$A$3:$AI$823,17,FALSE)=0,VLOOKUP($A591,Economática!$A$3:$AI$823,17,FALSE)=\"-\"),1/0,VLOOKUP($A591,Economática!$A$3:$AI$823,17,FALSE)))","v":""},{"$f":"IF($A591=\"\",\"\",IF(OR(VLOOKUP($A591,Economática!$A$3:$AI$823,18,FALSE)=0,VLOOKUP($A591,Economática!$A$3:$AI$823,18,FALSE)=\"-\"),1/0,VLOOKUP($A591,Economática!$A$3:$AI$823,18,FALSE)))","v":""},{"$f":"IF($A591=\"\",\"\",IF(OR(VLOOKUP($A591,Economática!$A$3:$AI$823,19,FALSE)=0,VLOOKUP($A591,Economática!$A$3:$AI$823,19,FALSE)=\"-\"),1/0,VLOOKUP($A591,Economática!$A$3:$AI$823,19,FALSE)))","v":""},{"$f":"IF($A591=\"\",\"\",VLOOKUP($A591,Economática!$A$3:$AI$823,20,FALSE)/E591)","v":""},"","","",{"$f":"IF($A591=\"\",\"\",IF(OR(VLOOKUP($A591,Economática!$A$3:$AI$823,21,FALSE)/100=0,VLOOKUP($A591,Economática!$A$3:$AI$823,21,FALSE)/100=\"-\"),1/0,VLOOKUP($A591,Economática!$A$3:$AI$823,21,FALSE)/100))","v":""},{"$f":"IF($A591=\"\",\"\",IF(OR(VLOOKUP($A591,Economática!$A$3:$AI$823,22,FALSE)/100=0,VLOOKUP($A591,Economática!$A$3:$AI$823,22,FALSE)/100=\"-\"),1/0,VLOOKUP($A591,Economática!$A$3:$AI$823,22,FALSE)/100))","v":""},{"$f":"IF($A591=\"\",\"\",IF(OR(VLOOKUP($A591,Economática!$A$3:$AI$823,23,FALSE)=0,VLOOKUP($A591,Economática!$A$3:$AI$823,23,FALSE)=\"-\"),1/0,VLOOKUP($A591,Economática!$A$3:$AI$823,23,FALSE)))","v":""},{"$f":"IF($A591=\"\",\"\",IF(OR(VLOOKUP($A591,Economática!$A$3:$AI$823,24,FALSE)=0,VLOOKUP($A591,Economática!$A$3:$AI$823,24,FALSE)=\"-\"),1/0,VLOOKUP($A591,Economática!$A$3:$AI$823,24,FALSE)))","v":""},{"$f":"IF($A591=\"\",\"\",IF(OR(VLOOKUP($A591,Economática!$A$3:$AI$823,25,FALSE)=0,VLOOKUP($A591,Economática!$A$3:$AI$823,25,FALSE)=\"-\"),1/0,VLOOKUP($A591,Economática!$A$3:$AI$823,25,FALSE)))","v":""},{"$f":"IF($A591=\"\",\"\",IF(ISERROR((F591+VLOOKUP($A591,Economática!$A$3:$AI$823,26,FALSE))/Y591),(F591+VLOOKUP($A591,Economática!$A$3:$AI$823,26,FALSE))/Y591,(F591+VLOOKUP($A591,Economática!$A$3:$AI$823,26,FALSE))/Y591))","v":""},{"$f":"IF($A591=\"\",\"\",IF(OR(-VLOOKUP($A591,Economática!$A$3:$AI$823,27,FALSE)=0,-VLOOKUP($A591,Economática!$A$3:$AI$823,27,FALSE)=\"-\"),1/0,-VLOOKUP($A591,Economática!$A$3:$AI$823,27,FALSE)))","v":""},"",{"$f":"IF($A591=\"\",\"\",IF(OR(VLOOKUP($A591,Economática!$A$3:$AI$823,28,FALSE)=0,VLOOKUP($A591,Economática!$A$3:$AI$823,28,FALSE)=\"-\"),1/0,VLOOKUP($A591,Economática!$A$3:$AI$823,28,FALSE)))","v":""},{"$f":"IF($A591=\"\",\"\",IF(OR(VLOOKUP($A591,Economática!$A$3:$AI$823,29,FALSE)=0,VLOOKUP($A591,Economática!$A$3:$AI$823,29,FALSE)=\"-\"),1/0,VLOOKUP($A591,Economática!$A$3:$AI$823,29,FALSE)))","v":""},{"$f":"IF($A591=\"\",\"\",IF(OR(VLOOKUP($A591,Economática!$A$3:$AI$823,30,FALSE)/E591=0,VLOOKUP($A591,Economática!$A$3:$AI$823,30,FALSE)/E591=\"-\",VLOOKUP($A591,Economática!$A$3:$AI$823,30,FALSE)/E591<33.33%,VLOOKUP($A591,Economática!$A$3:$AI$823,30,FALSE)/E591>100%),1/0,VLOOKUP($A591,Economática!$A$3:$AI$823,30,FALSE)/E591))","v":""},"",{"$f":"IF($A591=\"\",\"\",IF(OR(VLOOKUP($A591,Economática!$A$3:$AI$823,25,FALSE)=0,VLOOKUP($A591,Economática!$A$3:$AI$823,25,FALSE)=\"-\"),1/0,VLOOKUP($A591,Economática!$A$3:$AI$823,25,FALSE)))","v":""},{"$f":"CONCATENATE(Economática!B569,\" \",Economática!C569)","v":" "}]
[{"$f":"IF(Economática!AG570=\"\",\"\",Economática!AG570)","v":""},{"$f":"IF($A592=\"\",\"\",VLOOKUP(VLOOKUP($A592,Economática!$A$3:$AI$823,6,FALSE),Correção!$B$16:$C$36,2,FALSE))","v":""},{"$f":"IF(Economática!B570=\"\",\"\",Economática!B570)","v":""},{"$f":"IF($A592=\"\",\"\",IF(OR(VLOOKUP($A592,Economática!$A$3:$AI$823,8,FALSE)=0,VLOOKUP($A592,Economática!$A$3:$AI$823,8,FALSE)=\"-\"),1/0,VLOOKUP($A592,Economática!$A$3:$AI$823,8,FALSE)))","v":""},{"$f":"IF(A592=\"\",\"\",IF(ISERROR(VLOOKUP(A592,Correção!$B$2:$G$13,9,FALSE)),VLOOKUP($A592,Economática!$A$3:$AI$823,9,FALSE),VLOOKUP(A592,Correção!$B$2:$G$13,9,FALSE)))","v":""},{"$f":"IF($A592=\"\",\"\",Economática!G570)","v":""},{"$f":"IF($A592=\"\",\"\",IF(OR(VLOOKUP($A592,Economática!$A$3:$AI$823,10,FALSE)=0,VLOOKUP($A592,Economática!$A$3:$AI$823,10,FALSE)=\"-\"),1/0,VLOOKUP($A592,Economática!$A$3:$AI$823,10,FALSE)))","v":""},{"$f":"IF($A592=\"\",\"\",IF(OR(VLOOKUP($A592,Economática!$A$3:$AI$823,11,FALSE)=0,VLOOKUP($A592,Economática!$A$3:$AI$823,11,FALSE)=\"-\"),1/0,VLOOKUP($A592,Economática!$A$3:$AI$823,11,FALSE)))","v":""},{"$f":"IF($A592=\"\",\"\",IF(OR(VLOOKUP($A592,Economática!$A$3:$AI$823,12,FALSE)=0,VLOOKUP($A592,Economática!$A$3:$AI$823,12,FALSE)=\"-\"),1/0,VLOOKUP($A592,Economática!$A$3:$AI$823,12,FALSE)))","v":""},{"$f":"IF($A592=\"\",\"\",IF(OR(VLOOKUP($A592,Economática!$A$3:$AI$823,13,FALSE)=0,VLOOKUP($A592,Economática!$A$3:$AI$823,13,FALSE)=\"-\"),1/0,VLOOKUP($A592,Economática!$A$3:$AI$823,13,FALSE)))","v":""},{"$f":"IF($A592=\"\",\"\",IF(OR(VLOOKUP($A592,Economática!$A$3:$AI$823,14,FALSE)=0,VLOOKUP($A592,Economática!$A$3:$AI$823,14,FALSE)=\"-\"),1/0,VLOOKUP($A592,Economática!$A$3:$AI$823,14,FALSE)))","v":""},{"$f":"IF($A592=\"\",\"\",IF(OR(VLOOKUP($A592,Economática!$A$3:$AI$823,15,FALSE)=0,VLOOKUP($A592,Economática!$A$3:$AI$823,15,FALSE)=\"-\"),1/0,VLOOKUP($A592,Economática!$A$3:$AI$823,15,FALSE)))","v":""},{"$f":"IF($A592=\"\",\"\",IF(OR(VLOOKUP($A592,Economática!$A$3:$AI$823,16,FALSE)=0,VLOOKUP($A592,Economática!$A$3:$AI$823,16,FALSE)=\"-\"),1/0,VLOOKUP($A592,Economática!$A$3:$AI$823,16,FALSE)))","v":""},{"$f":"IF($A592=\"\",\"\",IF(OR(VLOOKUP($A592,Economática!$A$3:$AI$823,17,FALSE)=0,VLOOKUP($A592,Economática!$A$3:$AI$823,17,FALSE)=\"-\"),1/0,VLOOKUP($A592,Economática!$A$3:$AI$823,17,FALSE)))","v":""},{"$f":"IF($A592=\"\",\"\",IF(OR(VLOOKUP($A592,Economática!$A$3:$AI$823,18,FALSE)=0,VLOOKUP($A592,Economática!$A$3:$AI$823,18,FALSE)=\"-\"),1/0,VLOOKUP($A592,Economática!$A$3:$AI$823,18,FALSE)))","v":""},{"$f":"IF($A592=\"\",\"\",IF(OR(VLOOKUP($A592,Economática!$A$3:$AI$823,19,FALSE)=0,VLOOKUP($A592,Economática!$A$3:$AI$823,19,FALSE)=\"-\"),1/0,VLOOKUP($A592,Economática!$A$3:$AI$823,19,FALSE)))","v":""},{"$f":"IF($A592=\"\",\"\",VLOOKUP($A592,Economática!$A$3:$AI$823,20,FALSE)/E592)","v":""},"","","",{"$f":"IF($A592=\"\",\"\",IF(OR(VLOOKUP($A592,Economática!$A$3:$AI$823,21,FALSE)/100=0,VLOOKUP($A592,Economática!$A$3:$AI$823,21,FALSE)/100=\"-\"),1/0,VLOOKUP($A592,Economática!$A$3:$AI$823,21,FALSE)/100))","v":""},{"$f":"IF($A592=\"\",\"\",IF(OR(VLOOKUP($A592,Economática!$A$3:$AI$823,22,FALSE)/100=0,VLOOKUP($A592,Economática!$A$3:$AI$823,22,FALSE)/100=\"-\"),1/0,VLOOKUP($A592,Economática!$A$3:$AI$823,22,FALSE)/100))","v":""},{"$f":"IF($A592=\"\",\"\",IF(OR(VLOOKUP($A592,Economática!$A$3:$AI$823,23,FALSE)=0,VLOOKUP($A592,Economática!$A$3:$AI$823,23,FALSE)=\"-\"),1/0,VLOOKUP($A592,Economática!$A$3:$AI$823,23,FALSE)))","v":""},{"$f":"IF($A592=\"\",\"\",IF(OR(VLOOKUP($A592,Economática!$A$3:$AI$823,24,FALSE)=0,VLOOKUP($A592,Economática!$A$3:$AI$823,24,FALSE)=\"-\"),1/0,VLOOKUP($A592,Economática!$A$3:$AI$823,24,FALSE)))","v":""},{"$f":"IF($A592=\"\",\"\",IF(OR(VLOOKUP($A592,Economática!$A$3:$AI$823,25,FALSE)=0,VLOOKUP($A592,Economática!$A$3:$AI$823,25,FALSE)=\"-\"),1/0,VLOOKUP($A592,Economática!$A$3:$AI$823,25,FALSE)))","v":""},{"$f":"IF($A592=\"\",\"\",IF(ISERROR((F592+VLOOKUP($A592,Economática!$A$3:$AI$823,26,FALSE))/Y592),(F592+VLOOKUP($A592,Economática!$A$3:$AI$823,26,FALSE))/Y592,(F592+VLOOKUP($A592,Economática!$A$3:$AI$823,26,FALSE))/Y592))","v":""},{"$f":"IF($A592=\"\",\"\",IF(OR(-VLOOKUP($A592,Economática!$A$3:$AI$823,27,FALSE)=0,-VLOOKUP($A592,Economática!$A$3:$AI$823,27,FALSE)=\"-\"),1/0,-VLOOKUP($A592,Economática!$A$3:$AI$823,27,FALSE)))","v":""},"",{"$f":"IF($A592=\"\",\"\",IF(OR(VLOOKUP($A592,Economática!$A$3:$AI$823,28,FALSE)=0,VLOOKUP($A592,Economática!$A$3:$AI$823,28,FALSE)=\"-\"),1/0,VLOOKUP($A592,Economática!$A$3:$AI$823,28,FALSE)))","v":""},{"$f":"IF($A592=\"\",\"\",IF(OR(VLOOKUP($A592,Economática!$A$3:$AI$823,29,FALSE)=0,VLOOKUP($A592,Economática!$A$3:$AI$823,29,FALSE)=\"-\"),1/0,VLOOKUP($A592,Economática!$A$3:$AI$823,29,FALSE)))","v":""},{"$f":"IF($A592=\"\",\"\",IF(OR(VLOOKUP($A592,Economática!$A$3:$AI$823,30,FALSE)/E592=0,VLOOKUP($A592,Economática!$A$3:$AI$823,30,FALSE)/E592=\"-\",VLOOKUP($A592,Economática!$A$3:$AI$823,30,FALSE)/E592<33.33%,VLOOKUP($A592,Economática!$A$3:$AI$823,30,FALSE)/E592>100%),1/0,VLOOKUP($A592,Economática!$A$3:$AI$823,30,FALSE)/E592))","v":""},"",{"$f":"IF($A592=\"\",\"\",IF(OR(VLOOKUP($A592,Economática!$A$3:$AI$823,25,FALSE)=0,VLOOKUP($A592,Economática!$A$3:$AI$823,25,FALSE)=\"-\"),1/0,VLOOKUP($A592,Economática!$A$3:$AI$823,25,FALSE)))","v":""},{"$f":"CONCATENATE(Economática!B570,\" \",Economática!C570)","v":" "}]
[{"$f":"IF(Economática!AG571=\"\",\"\",Economática!AG571)","v":""},{"$f":"IF($A593=\"\",\"\",VLOOKUP(VLOOKUP($A593,Economática!$A$3:$AI$823,6,FALSE),Correção!$B$16:$C$36,2,FALSE))","v":""},{"$f":"IF(Economática!B571=\"\",\"\",Economática!B571)","v":""},{"$f":"IF($A593=\"\",\"\",IF(OR(VLOOKUP($A593,Economática!$A$3:$AI$823,8,FALSE)=0,VLOOKUP($A593,Economática!$A$3:$AI$823,8,FALSE)=\"-\"),1/0,VLOOKUP($A593,Economática!$A$3:$AI$823,8,FALSE)))","v":""},{"$f":"IF(A593=\"\",\"\",IF(ISERROR(VLOOKUP(A593,Correção!$B$2:$G$13,9,FALSE)),VLOOKUP($A593,Economática!$A$3:$AI$823,9,FALSE),VLOOKUP(A593,Correção!$B$2:$G$13,9,FALSE)))","v":""},{"$f":"IF($A593=\"\",\"\",Economática!G571)","v":""},{"$f":"IF($A593=\"\",\"\",IF(OR(VLOOKUP($A593,Economática!$A$3:$AI$823,10,FALSE)=0,VLOOKUP($A593,Economática!$A$3:$AI$823,10,FALSE)=\"-\"),1/0,VLOOKUP($A593,Economática!$A$3:$AI$823,10,FALSE)))","v":""},{"$f":"IF($A593=\"\",\"\",IF(OR(VLOOKUP($A593,Economática!$A$3:$AI$823,11,FALSE)=0,VLOOKUP($A593,Economática!$A$3:$AI$823,11,FALSE)=\"-\"),1/0,VLOOKUP($A593,Economática!$A$3:$AI$823,11,FALSE)))","v":""},{"$f":"IF($A593=\"\",\"\",IF(OR(VLOOKUP($A593,Economática!$A$3:$AI$823,12,FALSE)=0,VLOOKUP($A593,Economática!$A$3:$AI$823,12,FALSE)=\"-\"),1/0,VLOOKUP($A593,Economática!$A$3:$AI$823,12,FALSE)))","v":""},{"$f":"IF($A593=\"\",\"\",IF(OR(VLOOKUP($A593,Economática!$A$3:$AI$823,13,FALSE)=0,VLOOKUP($A593,Economática!$A$3:$AI$823,13,FALSE)=\"-\"),1/0,VLOOKUP($A593,Economática!$A$3:$AI$823,13,FALSE)))","v":""},{"$f":"IF($A593=\"\",\"\",IF(OR(VLOOKUP($A593,Economática!$A$3:$AI$823,14,FALSE)=0,VLOOKUP($A593,Economática!$A$3:$AI$823,14,FALSE)=\"-\"),1/0,VLOOKUP($A593,Economática!$A$3:$AI$823,14,FALSE)))","v":""},{"$f":"IF($A593=\"\",\"\",IF(OR(VLOOKUP($A593,Economática!$A$3:$AI$823,15,FALSE)=0,VLOOKUP($A593,Economática!$A$3:$AI$823,15,FALSE)=\"-\"),1/0,VLOOKUP($A593,Economática!$A$3:$AI$823,15,FALSE)))","v":""},{"$f":"IF($A593=\"\",\"\",IF(OR(VLOOKUP($A593,Economática!$A$3:$AI$823,16,FALSE)=0,VLOOKUP($A593,Economática!$A$3:$AI$823,16,FALSE)=\"-\"),1/0,VLOOKUP($A593,Economática!$A$3:$AI$823,16,FALSE)))","v":""},{"$f":"IF($A593=\"\",\"\",IF(OR(VLOOKUP($A593,Economática!$A$3:$AI$823,17,FALSE)=0,VLOOKUP($A593,Economática!$A$3:$AI$823,17,FALSE)=\"-\"),1/0,VLOOKUP($A593,Economática!$A$3:$AI$823,17,FALSE)))","v":""},{"$f":"IF($A593=\"\",\"\",IF(OR(VLOOKUP($A593,Economática!$A$3:$AI$823,18,FALSE)=0,VLOOKUP($A593,Economática!$A$3:$AI$823,18,FALSE)=\"-\"),1/0,VLOOKUP($A593,Economática!$A$3:$AI$823,18,FALSE)))","v":""},{"$f":"IF($A593=\"\",\"\",IF(OR(VLOOKUP($A593,Economática!$A$3:$AI$823,19,FALSE)=0,VLOOKUP($A593,Economática!$A$3:$AI$823,19,FALSE)=\"-\"),1/0,VLOOKUP($A593,Economática!$A$3:$AI$823,19,FALSE)))","v":""},{"$f":"IF($A593=\"\",\"\",VLOOKUP($A593,Economática!$A$3:$AI$823,20,FALSE)/E593)","v":""},"","","",{"$f":"IF($A593=\"\",\"\",IF(OR(VLOOKUP($A593,Economática!$A$3:$AI$823,21,FALSE)/100=0,VLOOKUP($A593,Economática!$A$3:$AI$823,21,FALSE)/100=\"-\"),1/0,VLOOKUP($A593,Economática!$A$3:$AI$823,21,FALSE)/100))","v":""},{"$f":"IF($A593=\"\",\"\",IF(OR(VLOOKUP($A593,Economática!$A$3:$AI$823,22,FALSE)/100=0,VLOOKUP($A593,Economática!$A$3:$AI$823,22,FALSE)/100=\"-\"),1/0,VLOOKUP($A593,Economática!$A$3:$AI$823,22,FALSE)/100))","v":""},{"$f":"IF($A593=\"\",\"\",IF(OR(VLOOKUP($A593,Economática!$A$3:$AI$823,23,FALSE)=0,VLOOKUP($A593,Economática!$A$3:$AI$823,23,FALSE)=\"-\"),1/0,VLOOKUP($A593,Economática!$A$3:$AI$823,23,FALSE)))","v":""},{"$f":"IF($A593=\"\",\"\",IF(OR(VLOOKUP($A593,Economática!$A$3:$AI$823,24,FALSE)=0,VLOOKUP($A593,Economática!$A$3:$AI$823,24,FALSE)=\"-\"),1/0,VLOOKUP($A593,Economática!$A$3:$AI$823,24,FALSE)))","v":""},{"$f":"IF($A593=\"\",\"\",IF(OR(VLOOKUP($A593,Economática!$A$3:$AI$823,25,FALSE)=0,VLOOKUP($A593,Economática!$A$3:$AI$823,25,FALSE)=\"-\"),1/0,VLOOKUP($A593,Economática!$A$3:$AI$823,25,FALSE)))","v":""},{"$f":"IF($A593=\"\",\"\",IF(ISERROR((F593+VLOOKUP($A593,Economática!$A$3:$AI$823,26,FALSE))/Y593),(F593+VLOOKUP($A593,Economática!$A$3:$AI$823,26,FALSE))/Y593,(F593+VLOOKUP($A593,Economática!$A$3:$AI$823,26,FALSE))/Y593))","v":""},{"$f":"IF($A593=\"\",\"\",IF(OR(-VLOOKUP($A593,Economática!$A$3:$AI$823,27,FALSE)=0,-VLOOKUP($A593,Economática!$A$3:$AI$823,27,FALSE)=\"-\"),1/0,-VLOOKUP($A593,Economática!$A$3:$AI$823,27,FALSE)))","v":""},"",{"$f":"IF($A593=\"\",\"\",IF(OR(VLOOKUP($A593,Economática!$A$3:$AI$823,28,FALSE)=0,VLOOKUP($A593,Economática!$A$3:$AI$823,28,FALSE)=\"-\"),1/0,VLOOKUP($A593,Economática!$A$3:$AI$823,28,FALSE)))","v":""},{"$f":"IF($A593=\"\",\"\",IF(OR(VLOOKUP($A593,Economática!$A$3:$AI$823,29,FALSE)=0,VLOOKUP($A593,Economática!$A$3:$AI$823,29,FALSE)=\"-\"),1/0,VLOOKUP($A593,Economática!$A$3:$AI$823,29,FALSE)))","v":""},{"$f":"IF($A593=\"\",\"\",IF(OR(VLOOKUP($A593,Economática!$A$3:$AI$823,30,FALSE)/E593=0,VLOOKUP($A593,Economática!$A$3:$AI$823,30,FALSE)/E593=\"-\",VLOOKUP($A593,Economática!$A$3:$AI$823,30,FALSE)/E593<33.33%,VLOOKUP($A593,Economática!$A$3:$AI$823,30,FALSE)/E593>100%),1/0,VLOOKUP($A593,Economática!$A$3:$AI$823,30,FALSE)/E593))","v":""},"",{"$f":"IF($A593=\"\",\"\",IF(OR(VLOOKUP($A593,Economática!$A$3:$AI$823,25,FALSE)=0,VLOOKUP($A593,Economática!$A$3:$AI$823,25,FALSE)=\"-\"),1/0,VLOOKUP($A593,Economática!$A$3:$AI$823,25,FALSE)))","v":""},{"$f":"CONCATENATE(Economática!B571,\" \",Economática!C571)","v":" "}]
[{"$f":"IF(Economática!AG572=\"\",\"\",Economática!AG572)","v":""},{"$f":"IF($A594=\"\",\"\",VLOOKUP(VLOOKUP($A594,Economática!$A$3:$AI$823,6,FALSE),Correção!$B$16:$C$36,2,FALSE))","v":""},{"$f":"IF(Economática!B572=\"\",\"\",Economática!B572)","v":""},{"$f":"IF($A594=\"\",\"\",IF(OR(VLOOKUP($A594,Economática!$A$3:$AI$823,8,FALSE)=0,VLOOKUP($A594,Economática!$A$3:$AI$823,8,FALSE)=\"-\"),1/0,VLOOKUP($A594,Economática!$A$3:$AI$823,8,FALSE)))","v":""},{"$f":"IF(A594=\"\",\"\",IF(ISERROR(VLOOKUP(A594,Correção!$B$2:$G$13,9,FALSE)),VLOOKUP($A594,Economática!$A$3:$AI$823,9,FALSE),VLOOKUP(A594,Correção!$B$2:$G$13,9,FALSE)))","v":""},{"$f":"IF($A594=\"\",\"\",Economática!G572)","v":""},{"$f":"IF($A594=\"\",\"\",IF(OR(VLOOKUP($A594,Economática!$A$3:$AI$823,10,FALSE)=0,VLOOKUP($A594,Economática!$A$3:$AI$823,10,FALSE)=\"-\"),1/0,VLOOKUP($A594,Economática!$A$3:$AI$823,10,FALSE)))","v":""},{"$f":"IF($A594=\"\",\"\",IF(OR(VLOOKUP($A594,Economática!$A$3:$AI$823,11,FALSE)=0,VLOOKUP($A594,Economática!$A$3:$AI$823,11,FALSE)=\"-\"),1/0,VLOOKUP($A594,Economática!$A$3:$AI$823,11,FALSE)))","v":""},{"$f":"IF($A594=\"\",\"\",IF(OR(VLOOKUP($A594,Economática!$A$3:$AI$823,12,FALSE)=0,VLOOKUP($A594,Economática!$A$3:$AI$823,12,FALSE)=\"-\"),1/0,VLOOKUP($A594,Economática!$A$3:$AI$823,12,FALSE)))","v":""},{"$f":"IF($A594=\"\",\"\",IF(OR(VLOOKUP($A594,Economática!$A$3:$AI$823,13,FALSE)=0,VLOOKUP($A594,Economática!$A$3:$AI$823,13,FALSE)=\"-\"),1/0,VLOOKUP($A594,Economática!$A$3:$AI$823,13,FALSE)))","v":""},{"$f":"IF($A594=\"\",\"\",IF(OR(VLOOKUP($A594,Economática!$A$3:$AI$823,14,FALSE)=0,VLOOKUP($A594,Economática!$A$3:$AI$823,14,FALSE)=\"-\"),1/0,VLOOKUP($A594,Economática!$A$3:$AI$823,14,FALSE)))","v":""},{"$f":"IF($A594=\"\",\"\",IF(OR(VLOOKUP($A594,Economática!$A$3:$AI$823,15,FALSE)=0,VLOOKUP($A594,Economática!$A$3:$AI$823,15,FALSE)=\"-\"),1/0,VLOOKUP($A594,Economática!$A$3:$AI$823,15,FALSE)))","v":""},{"$f":"IF($A594=\"\",\"\",IF(OR(VLOOKUP($A594,Economática!$A$3:$AI$823,16,FALSE)=0,VLOOKUP($A594,Economática!$A$3:$AI$823,16,FALSE)=\"-\"),1/0,VLOOKUP($A594,Economática!$A$3:$AI$823,16,FALSE)))","v":""},{"$f":"IF($A594=\"\",\"\",IF(OR(VLOOKUP($A594,Economática!$A$3:$AI$823,17,FALSE)=0,VLOOKUP($A594,Economática!$A$3:$AI$823,17,FALSE)=\"-\"),1/0,VLOOKUP($A594,Economática!$A$3:$AI$823,17,FALSE)))","v":""},{"$f":"IF($A594=\"\",\"\",IF(OR(VLOOKUP($A594,Economática!$A$3:$AI$823,18,FALSE)=0,VLOOKUP($A594,Economática!$A$3:$AI$823,18,FALSE)=\"-\"),1/0,VLOOKUP($A594,Economática!$A$3:$AI$823,18,FALSE)))","v":""},{"$f":"IF($A594=\"\",\"\",IF(OR(VLOOKUP($A594,Economática!$A$3:$AI$823,19,FALSE)=0,VLOOKUP($A594,Economática!$A$3:$AI$823,19,FALSE)=\"-\"),1/0,VLOOKUP($A594,Economática!$A$3:$AI$823,19,FALSE)))","v":""},{"$f":"IF($A594=\"\",\"\",VLOOKUP($A594,Economática!$A$3:$AI$823,20,FALSE)/E594)","v":""},"","","",{"$f":"IF($A594=\"\",\"\",IF(OR(VLOOKUP($A594,Economática!$A$3:$AI$823,21,FALSE)/100=0,VLOOKUP($A594,Economática!$A$3:$AI$823,21,FALSE)/100=\"-\"),1/0,VLOOKUP($A594,Economática!$A$3:$AI$823,21,FALSE)/100))","v":""},{"$f":"IF($A594=\"\",\"\",IF(OR(VLOOKUP($A594,Economática!$A$3:$AI$823,22,FALSE)/100=0,VLOOKUP($A594,Economática!$A$3:$AI$823,22,FALSE)/100=\"-\"),1/0,VLOOKUP($A594,Economática!$A$3:$AI$823,22,FALSE)/100))","v":""},{"$f":"IF($A594=\"\",\"\",IF(OR(VLOOKUP($A594,Economática!$A$3:$AI$823,23,FALSE)=0,VLOOKUP($A594,Economática!$A$3:$AI$823,23,FALSE)=\"-\"),1/0,VLOOKUP($A594,Economática!$A$3:$AI$823,23,FALSE)))","v":""},{"$f":"IF($A594=\"\",\"\",IF(OR(VLOOKUP($A594,Economática!$A$3:$AI$823,24,FALSE)=0,VLOOKUP($A594,Economática!$A$3:$AI$823,24,FALSE)=\"-\"),1/0,VLOOKUP($A594,Economática!$A$3:$AI$823,24,FALSE)))","v":""},{"$f":"IF($A594=\"\",\"\",IF(OR(VLOOKUP($A594,Economática!$A$3:$AI$823,25,FALSE)=0,VLOOKUP($A594,Economática!$A$3:$AI$823,25,FALSE)=\"-\"),1/0,VLOOKUP($A594,Economática!$A$3:$AI$823,25,FALSE)))","v":""},{"$f":"IF($A594=\"\",\"\",IF(ISERROR((F594+VLOOKUP($A594,Economática!$A$3:$AI$823,26,FALSE))/Y594),(F594+VLOOKUP($A594,Economática!$A$3:$AI$823,26,FALSE))/Y594,(F594+VLOOKUP($A594,Economática!$A$3:$AI$823,26,FALSE))/Y594))","v":""},{"$f":"IF($A594=\"\",\"\",IF(OR(-VLOOKUP($A594,Economática!$A$3:$AI$823,27,FALSE)=0,-VLOOKUP($A594,Economática!$A$3:$AI$823,27,FALSE)=\"-\"),1/0,-VLOOKUP($A594,Economática!$A$3:$AI$823,27,FALSE)))","v":""},"",{"$f":"IF($A594=\"\",\"\",IF(OR(VLOOKUP($A594,Economática!$A$3:$AI$823,28,FALSE)=0,VLOOKUP($A594,Economática!$A$3:$AI$823,28,FALSE)=\"-\"),1/0,VLOOKUP($A594,Economática!$A$3:$AI$823,28,FALSE)))","v":""},{"$f":"IF($A594=\"\",\"\",IF(OR(VLOOKUP($A594,Economática!$A$3:$AI$823,29,FALSE)=0,VLOOKUP($A594,Economática!$A$3:$AI$823,29,FALSE)=\"-\"),1/0,VLOOKUP($A594,Economática!$A$3:$AI$823,29,FALSE)))","v":""},{"$f":"IF($A594=\"\",\"\",IF(OR(VLOOKUP($A594,Economática!$A$3:$AI$823,30,FALSE)/E594=0,VLOOKUP($A594,Economática!$A$3:$AI$823,30,FALSE)/E594=\"-\",VLOOKUP($A594,Economática!$A$3:$AI$823,30,FALSE)/E594<33.33%,VLOOKUP($A594,Economática!$A$3:$AI$823,30,FALSE)/E594>100%),1/0,VLOOKUP($A594,Economática!$A$3:$AI$823,30,FALSE)/E594))","v":""},"",{"$f":"IF($A594=\"\",\"\",IF(OR(VLOOKUP($A594,Economática!$A$3:$AI$823,25,FALSE)=0,VLOOKUP($A594,Economática!$A$3:$AI$823,25,FALSE)=\"-\"),1/0,VLOOKUP($A594,Economática!$A$3:$AI$823,25,FALSE)))","v":""},{"$f":"CONCATENATE(Economática!B572,\" \",Economática!C572)","v":" "}]
[{"$f":"IF(Economática!AG573=\"\",\"\",Economática!AG573)","v":""},{"$f":"IF($A595=\"\",\"\",VLOOKUP(VLOOKUP($A595,Economática!$A$3:$AI$823,6,FALSE),Correção!$B$16:$C$36,2,FALSE))","v":""},{"$f":"IF(Economática!B573=\"\",\"\",Economática!B573)","v":""},{"$f":"IF($A595=\"\",\"\",IF(OR(VLOOKUP($A595,Economática!$A$3:$AI$823,8,FALSE)=0,VLOOKUP($A595,Economática!$A$3:$AI$823,8,FALSE)=\"-\"),1/0,VLOOKUP($A595,Economática!$A$3:$AI$823,8,FALSE)))","v":""},{"$f":"IF(A595=\"\",\"\",IF(ISERROR(VLOOKUP(A595,Correção!$B$2:$G$13,9,FALSE)),VLOOKUP($A595,Economática!$A$3:$AI$823,9,FALSE),VLOOKUP(A595,Correção!$B$2:$G$13,9,FALSE)))","v":""},{"$f":"IF($A595=\"\",\"\",Economática!G573)","v":""},{"$f":"IF($A595=\"\",\"\",IF(OR(VLOOKUP($A595,Economática!$A$3:$AI$823,10,FALSE)=0,VLOOKUP($A595,Economática!$A$3:$AI$823,10,FALSE)=\"-\"),1/0,VLOOKUP($A595,Economática!$A$3:$AI$823,10,FALSE)))","v":""},{"$f":"IF($A595=\"\",\"\",IF(OR(VLOOKUP($A595,Economática!$A$3:$AI$823,11,FALSE)=0,VLOOKUP($A595,Economática!$A$3:$AI$823,11,FALSE)=\"-\"),1/0,VLOOKUP($A595,Economática!$A$3:$AI$823,11,FALSE)))","v":""},{"$f":"IF($A595=\"\",\"\",IF(OR(VLOOKUP($A595,Economática!$A$3:$AI$823,12,FALSE)=0,VLOOKUP($A595,Economática!$A$3:$AI$823,12,FALSE)=\"-\"),1/0,VLOOKUP($A595,Economática!$A$3:$AI$823,12,FALSE)))","v":""},{"$f":"IF($A595=\"\",\"\",IF(OR(VLOOKUP($A595,Economática!$A$3:$AI$823,13,FALSE)=0,VLOOKUP($A595,Economática!$A$3:$AI$823,13,FALSE)=\"-\"),1/0,VLOOKUP($A595,Economática!$A$3:$AI$823,13,FALSE)))","v":""},{"$f":"IF($A595=\"\",\"\",IF(OR(VLOOKUP($A595,Economática!$A$3:$AI$823,14,FALSE)=0,VLOOKUP($A595,Economática!$A$3:$AI$823,14,FALSE)=\"-\"),1/0,VLOOKUP($A595,Economática!$A$3:$AI$823,14,FALSE)))","v":""},{"$f":"IF($A595=\"\",\"\",IF(OR(VLOOKUP($A595,Economática!$A$3:$AI$823,15,FALSE)=0,VLOOKUP($A595,Economática!$A$3:$AI$823,15,FALSE)=\"-\"),1/0,VLOOKUP($A595,Economática!$A$3:$AI$823,15,FALSE)))","v":""},{"$f":"IF($A595=\"\",\"\",IF(OR(VLOOKUP($A595,Economática!$A$3:$AI$823,16,FALSE)=0,VLOOKUP($A595,Economática!$A$3:$AI$823,16,FALSE)=\"-\"),1/0,VLOOKUP($A595,Economática!$A$3:$AI$823,16,FALSE)))","v":""},{"$f":"IF($A595=\"\",\"\",IF(OR(VLOOKUP($A595,Economática!$A$3:$AI$823,17,FALSE)=0,VLOOKUP($A595,Economática!$A$3:$AI$823,17,FALSE)=\"-\"),1/0,VLOOKUP($A595,Economática!$A$3:$AI$823,17,FALSE)))","v":""},{"$f":"IF($A595=\"\",\"\",IF(OR(VLOOKUP($A595,Economática!$A$3:$AI$823,18,FALSE)=0,VLOOKUP($A595,Economática!$A$3:$AI$823,18,FALSE)=\"-\"),1/0,VLOOKUP($A595,Economática!$A$3:$AI$823,18,FALSE)))","v":""},{"$f":"IF($A595=\"\",\"\",IF(OR(VLOOKUP($A595,Economática!$A$3:$AI$823,19,FALSE)=0,VLOOKUP($A595,Economática!$A$3:$AI$823,19,FALSE)=\"-\"),1/0,VLOOKUP($A595,Economática!$A$3:$AI$823,19,FALSE)))","v":""},{"$f":"IF($A595=\"\",\"\",VLOOKUP($A595,Economática!$A$3:$AI$823,20,FALSE)/E595)","v":""},"","","",{"$f":"IF($A595=\"\",\"\",IF(OR(VLOOKUP($A595,Economática!$A$3:$AI$823,21,FALSE)/100=0,VLOOKUP($A595,Economática!$A$3:$AI$823,21,FALSE)/100=\"-\"),1/0,VLOOKUP($A595,Economática!$A$3:$AI$823,21,FALSE)/100))","v":""},{"$f":"IF($A595=\"\",\"\",IF(OR(VLOOKUP($A595,Economática!$A$3:$AI$823,22,FALSE)/100=0,VLOOKUP($A595,Economática!$A$3:$AI$823,22,FALSE)/100=\"-\"),1/0,VLOOKUP($A595,Economática!$A$3:$AI$823,22,FALSE)/100))","v":""},{"$f":"IF($A595=\"\",\"\",IF(OR(VLOOKUP($A595,Economática!$A$3:$AI$823,23,FALSE)=0,VLOOKUP($A595,Economática!$A$3:$AI$823,23,FALSE)=\"-\"),1/0,VLOOKUP($A595,Economática!$A$3:$AI$823,23,FALSE)))","v":""},{"$f":"IF($A595=\"\",\"\",IF(OR(VLOOKUP($A595,Economática!$A$3:$AI$823,24,FALSE)=0,VLOOKUP($A595,Economática!$A$3:$AI$823,24,FALSE)=\"-\"),1/0,VLOOKUP($A595,Economática!$A$3:$AI$823,24,FALSE)))","v":""},{"$f":"IF($A595=\"\",\"\",IF(OR(VLOOKUP($A595,Economática!$A$3:$AI$823,25,FALSE)=0,VLOOKUP($A595,Economática!$A$3:$AI$823,25,FALSE)=\"-\"),1/0,VLOOKUP($A595,Economática!$A$3:$AI$823,25,FALSE)))","v":""},{"$f":"IF($A595=\"\",\"\",IF(ISERROR((F595+VLOOKUP($A595,Economática!$A$3:$AI$823,26,FALSE))/Y595),(F595+VLOOKUP($A595,Economática!$A$3:$AI$823,26,FALSE))/Y595,(F595+VLOOKUP($A595,Economática!$A$3:$AI$823,26,FALSE))/Y595))","v":""},{"$f":"IF($A595=\"\",\"\",IF(OR(-VLOOKUP($A595,Economática!$A$3:$AI$823,27,FALSE)=0,-VLOOKUP($A595,Economática!$A$3:$AI$823,27,FALSE)=\"-\"),1/0,-VLOOKUP($A595,Economática!$A$3:$AI$823,27,FALSE)))","v":""},"",{"$f":"IF($A595=\"\",\"\",IF(OR(VLOOKUP($A595,Economática!$A$3:$AI$823,28,FALSE)=0,VLOOKUP($A595,Economática!$A$3:$AI$823,28,FALSE)=\"-\"),1/0,VLOOKUP($A595,Economática!$A$3:$AI$823,28,FALSE)))","v":""},{"$f":"IF($A595=\"\",\"\",IF(OR(VLOOKUP($A595,Economática!$A$3:$AI$823,29,FALSE)=0,VLOOKUP($A595,Economática!$A$3:$AI$823,29,FALSE)=\"-\"),1/0,VLOOKUP($A595,Economática!$A$3:$AI$823,29,FALSE)))","v":""},{"$f":"IF($A595=\"\",\"\",IF(OR(VLOOKUP($A595,Economática!$A$3:$AI$823,30,FALSE)/E595=0,VLOOKUP($A595,Economática!$A$3:$AI$823,30,FALSE)/E595=\"-\",VLOOKUP($A595,Economática!$A$3:$AI$823,30,FALSE)/E595<33.33%,VLOOKUP($A595,Economática!$A$3:$AI$823,30,FALSE)/E595>100%),1/0,VLOOKUP($A595,Economática!$A$3:$AI$823,30,FALSE)/E595))","v":""},"",{"$f":"IF($A595=\"\",\"\",IF(OR(VLOOKUP($A595,Economática!$A$3:$AI$823,25,FALSE)=0,VLOOKUP($A595,Economática!$A$3:$AI$823,25,FALSE)=\"-\"),1/0,VLOOKUP($A595,Economática!$A$3:$AI$823,25,FALSE)))","v":""},{"$f":"CONCATENATE(Economática!B573,\" \",Economática!C573)","v":" "}]
[{"$f":"IF(Economática!AG574=\"\",\"\",Economática!AG574)","v":""},{"$f":"IF($A596=\"\",\"\",VLOOKUP(VLOOKUP($A596,Economática!$A$3:$AI$823,6,FALSE),Correção!$B$16:$C$36,2,FALSE))","v":""},{"$f":"IF(Economática!B574=\"\",\"\",Economática!B574)","v":""},{"$f":"IF($A596=\"\",\"\",IF(OR(VLOOKUP($A596,Economática!$A$3:$AI$823,8,FALSE)=0,VLOOKUP($A596,Economática!$A$3:$AI$823,8,FALSE)=\"-\"),1/0,VLOOKUP($A596,Economática!$A$3:$AI$823,8,FALSE)))","v":""},{"$f":"IF(A596=\"\",\"\",IF(ISERROR(VLOOKUP(A596,Correção!$B$2:$G$13,9,FALSE)),VLOOKUP($A596,Economática!$A$3:$AI$823,9,FALSE),VLOOKUP(A596,Correção!$B$2:$G$13,9,FALSE)))","v":""},{"$f":"IF($A596=\"\",\"\",Economática!G574)","v":""},{"$f":"IF($A596=\"\",\"\",IF(OR(VLOOKUP($A596,Economática!$A$3:$AI$823,10,FALSE)=0,VLOOKUP($A596,Economática!$A$3:$AI$823,10,FALSE)=\"-\"),1/0,VLOOKUP($A596,Economática!$A$3:$AI$823,10,FALSE)))","v":""},{"$f":"IF($A596=\"\",\"\",IF(OR(VLOOKUP($A596,Economática!$A$3:$AI$823,11,FALSE)=0,VLOOKUP($A596,Economática!$A$3:$AI$823,11,FALSE)=\"-\"),1/0,VLOOKUP($A596,Economática!$A$3:$AI$823,11,FALSE)))","v":""},{"$f":"IF($A596=\"\",\"\",IF(OR(VLOOKUP($A596,Economática!$A$3:$AI$823,12,FALSE)=0,VLOOKUP($A596,Economática!$A$3:$AI$823,12,FALSE)=\"-\"),1/0,VLOOKUP($A596,Economática!$A$3:$AI$823,12,FALSE)))","v":""},{"$f":"IF($A596=\"\",\"\",IF(OR(VLOOKUP($A596,Economática!$A$3:$AI$823,13,FALSE)=0,VLOOKUP($A596,Economática!$A$3:$AI$823,13,FALSE)=\"-\"),1/0,VLOOKUP($A596,Economática!$A$3:$AI$823,13,FALSE)))","v":""},{"$f":"IF($A596=\"\",\"\",IF(OR(VLOOKUP($A596,Economática!$A$3:$AI$823,14,FALSE)=0,VLOOKUP($A596,Economática!$A$3:$AI$823,14,FALSE)=\"-\"),1/0,VLOOKUP($A596,Economática!$A$3:$AI$823,14,FALSE)))","v":""},{"$f":"IF($A596=\"\",\"\",IF(OR(VLOOKUP($A596,Economática!$A$3:$AI$823,15,FALSE)=0,VLOOKUP($A596,Economática!$A$3:$AI$823,15,FALSE)=\"-\"),1/0,VLOOKUP($A596,Economática!$A$3:$AI$823,15,FALSE)))","v":""},{"$f":"IF($A596=\"\",\"\",IF(OR(VLOOKUP($A596,Economática!$A$3:$AI$823,16,FALSE)=0,VLOOKUP($A596,Economática!$A$3:$AI$823,16,FALSE)=\"-\"),1/0,VLOOKUP($A596,Economática!$A$3:$AI$823,16,FALSE)))","v":""},{"$f":"IF($A596=\"\",\"\",IF(OR(VLOOKUP($A596,Economática!$A$3:$AI$823,17,FALSE)=0,VLOOKUP($A596,Economática!$A$3:$AI$823,17,FALSE)=\"-\"),1/0,VLOOKUP($A596,Economática!$A$3:$AI$823,17,FALSE)))","v":""},{"$f":"IF($A596=\"\",\"\",IF(OR(VLOOKUP($A596,Economática!$A$3:$AI$823,18,FALSE)=0,VLOOKUP($A596,Economática!$A$3:$AI$823,18,FALSE)=\"-\"),1/0,VLOOKUP($A596,Economática!$A$3:$AI$823,18,FALSE)))","v":""},{"$f":"IF($A596=\"\",\"\",IF(OR(VLOOKUP($A596,Economática!$A$3:$AI$823,19,FALSE)=0,VLOOKUP($A596,Economática!$A$3:$AI$823,19,FALSE)=\"-\"),1/0,VLOOKUP($A596,Economática!$A$3:$AI$823,19,FALSE)))","v":""},{"$f":"IF($A596=\"\",\"\",VLOOKUP($A596,Economática!$A$3:$AI$823,20,FALSE)/E596)","v":""},"","","",{"$f":"IF($A596=\"\",\"\",IF(OR(VLOOKUP($A596,Economática!$A$3:$AI$823,21,FALSE)/100=0,VLOOKUP($A596,Economática!$A$3:$AI$823,21,FALSE)/100=\"-\"),1/0,VLOOKUP($A596,Economática!$A$3:$AI$823,21,FALSE)/100))","v":""},{"$f":"IF($A596=\"\",\"\",IF(OR(VLOOKUP($A596,Economática!$A$3:$AI$823,22,FALSE)/100=0,VLOOKUP($A596,Economática!$A$3:$AI$823,22,FALSE)/100=\"-\"),1/0,VLOOKUP($A596,Economática!$A$3:$AI$823,22,FALSE)/100))","v":""},{"$f":"IF($A596=\"\",\"\",IF(OR(VLOOKUP($A596,Economática!$A$3:$AI$823,23,FALSE)=0,VLOOKUP($A596,Economática!$A$3:$AI$823,23,FALSE)=\"-\"),1/0,VLOOKUP($A596,Economática!$A$3:$AI$823,23,FALSE)))","v":""},{"$f":"IF($A596=\"\",\"\",IF(OR(VLOOKUP($A596,Economática!$A$3:$AI$823,24,FALSE)=0,VLOOKUP($A596,Economática!$A$3:$AI$823,24,FALSE)=\"-\"),1/0,VLOOKUP($A596,Economática!$A$3:$AI$823,24,FALSE)))","v":""},{"$f":"IF($A596=\"\",\"\",IF(OR(VLOOKUP($A596,Economática!$A$3:$AI$823,25,FALSE)=0,VLOOKUP($A596,Economática!$A$3:$AI$823,25,FALSE)=\"-\"),1/0,VLOOKUP($A596,Economática!$A$3:$AI$823,25,FALSE)))","v":""},{"$f":"IF($A596=\"\",\"\",IF(ISERROR((F596+VLOOKUP($A596,Economática!$A$3:$AI$823,26,FALSE))/Y596),(F596+VLOOKUP($A596,Economática!$A$3:$AI$823,26,FALSE))/Y596,(F596+VLOOKUP($A596,Economática!$A$3:$AI$823,26,FALSE))/Y596))","v":""},{"$f":"IF($A596=\"\",\"\",IF(OR(-VLOOKUP($A596,Economática!$A$3:$AI$823,27,FALSE)=0,-VLOOKUP($A596,Economática!$A$3:$AI$823,27,FALSE)=\"-\"),1/0,-VLOOKUP($A596,Economática!$A$3:$AI$823,27,FALSE)))","v":""},"",{"$f":"IF($A596=\"\",\"\",IF(OR(VLOOKUP($A596,Economática!$A$3:$AI$823,28,FALSE)=0,VLOOKUP($A596,Economática!$A$3:$AI$823,28,FALSE)=\"-\"),1/0,VLOOKUP($A596,Economática!$A$3:$AI$823,28,FALSE)))","v":""},{"$f":"IF($A596=\"\",\"\",IF(OR(VLOOKUP($A596,Economática!$A$3:$AI$823,29,FALSE)=0,VLOOKUP($A596,Economática!$A$3:$AI$823,29,FALSE)=\"-\"),1/0,VLOOKUP($A596,Economática!$A$3:$AI$823,29,FALSE)))","v":""},{"$f":"IF($A596=\"\",\"\",IF(OR(VLOOKUP($A596,Economática!$A$3:$AI$823,30,FALSE)/E596=0,VLOOKUP($A596,Economática!$A$3:$AI$823,30,FALSE)/E596=\"-\",VLOOKUP($A596,Economática!$A$3:$AI$823,30,FALSE)/E596<33.33%,VLOOKUP($A596,Economática!$A$3:$AI$823,30,FALSE)/E596>100%),1/0,VLOOKUP($A596,Economática!$A$3:$AI$823,30,FALSE)/E596))","v":""},"",{"$f":"IF($A596=\"\",\"\",IF(OR(VLOOKUP($A596,Economática!$A$3:$AI$823,25,FALSE)=0,VLOOKUP($A596,Economática!$A$3:$AI$823,25,FALSE)=\"-\"),1/0,VLOOKUP($A596,Economática!$A$3:$AI$823,25,FALSE)))","v":""},{"$f":"CONCATENATE(Economática!B574,\" \",Economática!C574)","v":" "}]
[{"$f":"IF(Economática!AG575=\"\",\"\",Economática!AG575)","v":""},{"$f":"IF($A597=\"\",\"\",VLOOKUP(VLOOKUP($A597,Economática!$A$3:$AI$823,6,FALSE),Correção!$B$16:$C$36,2,FALSE))","v":""},{"$f":"IF(Economática!B575=\"\",\"\",Economática!B575)","v":""},{"$f":"IF($A597=\"\",\"\",IF(OR(VLOOKUP($A597,Economática!$A$3:$AI$823,8,FALSE)=0,VLOOKUP($A597,Economática!$A$3:$AI$823,8,FALSE)=\"-\"),1/0,VLOOKUP($A597,Economática!$A$3:$AI$823,8,FALSE)))","v":""},{"$f":"IF(A597=\"\",\"\",IF(ISERROR(VLOOKUP(A597,Correção!$B$2:$G$13,9,FALSE)),VLOOKUP($A597,Economática!$A$3:$AI$823,9,FALSE),VLOOKUP(A597,Correção!$B$2:$G$13,9,FALSE)))","v":""},{"$f":"IF($A597=\"\",\"\",Economática!G575)","v":""},{"$f":"IF($A597=\"\",\"\",IF(OR(VLOOKUP($A597,Economática!$A$3:$AI$823,10,FALSE)=0,VLOOKUP($A597,Economática!$A$3:$AI$823,10,FALSE)=\"-\"),1/0,VLOOKUP($A597,Economática!$A$3:$AI$823,10,FALSE)))","v":""},{"$f":"IF($A597=\"\",\"\",IF(OR(VLOOKUP($A597,Economática!$A$3:$AI$823,11,FALSE)=0,VLOOKUP($A597,Economática!$A$3:$AI$823,11,FALSE)=\"-\"),1/0,VLOOKUP($A597,Economática!$A$3:$AI$823,11,FALSE)))","v":""},{"$f":"IF($A597=\"\",\"\",IF(OR(VLOOKUP($A597,Economática!$A$3:$AI$823,12,FALSE)=0,VLOOKUP($A597,Economática!$A$3:$AI$823,12,FALSE)=\"-\"),1/0,VLOOKUP($A597,Economática!$A$3:$AI$823,12,FALSE)))","v":""},{"$f":"IF($A597=\"\",\"\",IF(OR(VLOOKUP($A597,Economática!$A$3:$AI$823,13,FALSE)=0,VLOOKUP($A597,Economática!$A$3:$AI$823,13,FALSE)=\"-\"),1/0,VLOOKUP($A597,Economática!$A$3:$AI$823,13,FALSE)))","v":""},{"$f":"IF($A597=\"\",\"\",IF(OR(VLOOKUP($A597,Economática!$A$3:$AI$823,14,FALSE)=0,VLOOKUP($A597,Economática!$A$3:$AI$823,14,FALSE)=\"-\"),1/0,VLOOKUP($A597,Economática!$A$3:$AI$823,14,FALSE)))","v":""},{"$f":"IF($A597=\"\",\"\",IF(OR(VLOOKUP($A597,Economática!$A$3:$AI$823,15,FALSE)=0,VLOOKUP($A597,Economática!$A$3:$AI$823,15,FALSE)=\"-\"),1/0,VLOOKUP($A597,Economática!$A$3:$AI$823,15,FALSE)))","v":""},{"$f":"IF($A597=\"\",\"\",IF(OR(VLOOKUP($A597,Economática!$A$3:$AI$823,16,FALSE)=0,VLOOKUP($A597,Economática!$A$3:$AI$823,16,FALSE)=\"-\"),1/0,VLOOKUP($A597,Economática!$A$3:$AI$823,16,FALSE)))","v":""},{"$f":"IF($A597=\"\",\"\",IF(OR(VLOOKUP($A597,Economática!$A$3:$AI$823,17,FALSE)=0,VLOOKUP($A597,Economática!$A$3:$AI$823,17,FALSE)=\"-\"),1/0,VLOOKUP($A597,Economática!$A$3:$AI$823,17,FALSE)))","v":""},{"$f":"IF($A597=\"\",\"\",IF(OR(VLOOKUP($A597,Economática!$A$3:$AI$823,18,FALSE)=0,VLOOKUP($A597,Economática!$A$3:$AI$823,18,FALSE)=\"-\"),1/0,VLOOKUP($A597,Economática!$A$3:$AI$823,18,FALSE)))","v":""},{"$f":"IF($A597=\"\",\"\",IF(OR(VLOOKUP($A597,Economática!$A$3:$AI$823,19,FALSE)=0,VLOOKUP($A597,Economática!$A$3:$AI$823,19,FALSE)=\"-\"),1/0,VLOOKUP($A597,Economática!$A$3:$AI$823,19,FALSE)))","v":""},{"$f":"IF($A597=\"\",\"\",VLOOKUP($A597,Economática!$A$3:$AI$823,20,FALSE)/E597)","v":""},"","","",{"$f":"IF($A597=\"\",\"\",IF(OR(VLOOKUP($A597,Economática!$A$3:$AI$823,21,FALSE)/100=0,VLOOKUP($A597,Economática!$A$3:$AI$823,21,FALSE)/100=\"-\"),1/0,VLOOKUP($A597,Economática!$A$3:$AI$823,21,FALSE)/100))","v":""},{"$f":"IF($A597=\"\",\"\",IF(OR(VLOOKUP($A597,Economática!$A$3:$AI$823,22,FALSE)/100=0,VLOOKUP($A597,Economática!$A$3:$AI$823,22,FALSE)/100=\"-\"),1/0,VLOOKUP($A597,Economática!$A$3:$AI$823,22,FALSE)/100))","v":""},{"$f":"IF($A597=\"\",\"\",IF(OR(VLOOKUP($A597,Economática!$A$3:$AI$823,23,FALSE)=0,VLOOKUP($A597,Economática!$A$3:$AI$823,23,FALSE)=\"-\"),1/0,VLOOKUP($A597,Economática!$A$3:$AI$823,23,FALSE)))","v":""},{"$f":"IF($A597=\"\",\"\",IF(OR(VLOOKUP($A597,Economática!$A$3:$AI$823,24,FALSE)=0,VLOOKUP($A597,Economática!$A$3:$AI$823,24,FALSE)=\"-\"),1/0,VLOOKUP($A597,Economática!$A$3:$AI$823,24,FALSE)))","v":""},{"$f":"IF($A597=\"\",\"\",IF(OR(VLOOKUP($A597,Economática!$A$3:$AI$823,25,FALSE)=0,VLOOKUP($A597,Economática!$A$3:$AI$823,25,FALSE)=\"-\"),1/0,VLOOKUP($A597,Economática!$A$3:$AI$823,25,FALSE)))","v":""},{"$f":"IF($A597=\"\",\"\",IF(ISERROR((F597+VLOOKUP($A597,Economática!$A$3:$AI$823,26,FALSE))/Y597),(F597+VLOOKUP($A597,Economática!$A$3:$AI$823,26,FALSE))/Y597,(F597+VLOOKUP($A597,Economática!$A$3:$AI$823,26,FALSE))/Y597))","v":""},{"$f":"IF($A597=\"\",\"\",IF(OR(-VLOOKUP($A597,Economática!$A$3:$AI$823,27,FALSE)=0,-VLOOKUP($A597,Economática!$A$3:$AI$823,27,FALSE)=\"-\"),1/0,-VLOOKUP($A597,Economática!$A$3:$AI$823,27,FALSE)))","v":""},"",{"$f":"IF($A597=\"\",\"\",IF(OR(VLOOKUP($A597,Economática!$A$3:$AI$823,28,FALSE)=0,VLOOKUP($A597,Economática!$A$3:$AI$823,28,FALSE)=\"-\"),1/0,VLOOKUP($A597,Economática!$A$3:$AI$823,28,FALSE)))","v":""},{"$f":"IF($A597=\"\",\"\",IF(OR(VLOOKUP($A597,Economática!$A$3:$AI$823,29,FALSE)=0,VLOOKUP($A597,Economática!$A$3:$AI$823,29,FALSE)=\"-\"),1/0,VLOOKUP($A597,Economática!$A$3:$AI$823,29,FALSE)))","v":""},{"$f":"IF($A597=\"\",\"\",IF(OR(VLOOKUP($A597,Economática!$A$3:$AI$823,30,FALSE)/E597=0,VLOOKUP($A597,Economática!$A$3:$AI$823,30,FALSE)/E597=\"-\",VLOOKUP($A597,Economática!$A$3:$AI$823,30,FALSE)/E597<33.33%,VLOOKUP($A597,Economática!$A$3:$AI$823,30,FALSE)/E597>100%),1/0,VLOOKUP($A597,Economática!$A$3:$AI$823,30,FALSE)/E597))","v":""},"",{"$f":"IF($A597=\"\",\"\",IF(OR(VLOOKUP($A597,Economática!$A$3:$AI$823,25,FALSE)=0,VLOOKUP($A597,Economática!$A$3:$AI$823,25,FALSE)=\"-\"),1/0,VLOOKUP($A597,Economática!$A$3:$AI$823,25,FALSE)))","v":""},{"$f":"CONCATENATE(Economática!B575,\" \",Economática!C575)","v":" "}]
[{"$f":"IF(Economática!AG576=\"\",\"\",Economática!AG576)","v":""},{"$f":"IF($A598=\"\",\"\",VLOOKUP(VLOOKUP($A598,Economática!$A$3:$AI$823,6,FALSE),Correção!$B$16:$C$36,2,FALSE))","v":""},{"$f":"IF(Economática!B576=\"\",\"\",Economática!B576)","v":""},{"$f":"IF($A598=\"\",\"\",IF(OR(VLOOKUP($A598,Economática!$A$3:$AI$823,8,FALSE)=0,VLOOKUP($A598,Economática!$A$3:$AI$823,8,FALSE)=\"-\"),1/0,VLOOKUP($A598,Economática!$A$3:$AI$823,8,FALSE)))","v":""},{"$f":"IF(A598=\"\",\"\",IF(ISERROR(VLOOKUP(A598,Correção!$B$2:$G$13,9,FALSE)),VLOOKUP($A598,Economática!$A$3:$AI$823,9,FALSE),VLOOKUP(A598,Correção!$B$2:$G$13,9,FALSE)))","v":""},{"$f":"IF($A598=\"\",\"\",Economática!G576)","v":""},{"$f":"IF($A598=\"\",\"\",IF(OR(VLOOKUP($A598,Economática!$A$3:$AI$823,10,FALSE)=0,VLOOKUP($A598,Economática!$A$3:$AI$823,10,FALSE)=\"-\"),1/0,VLOOKUP($A598,Economática!$A$3:$AI$823,10,FALSE)))","v":""},{"$f":"IF($A598=\"\",\"\",IF(OR(VLOOKUP($A598,Economática!$A$3:$AI$823,11,FALSE)=0,VLOOKUP($A598,Economática!$A$3:$AI$823,11,FALSE)=\"-\"),1/0,VLOOKUP($A598,Economática!$A$3:$AI$823,11,FALSE)))","v":""},{"$f":"IF($A598=\"\",\"\",IF(OR(VLOOKUP($A598,Economática!$A$3:$AI$823,12,FALSE)=0,VLOOKUP($A598,Economática!$A$3:$AI$823,12,FALSE)=\"-\"),1/0,VLOOKUP($A598,Economática!$A$3:$AI$823,12,FALSE)))","v":""},{"$f":"IF($A598=\"\",\"\",IF(OR(VLOOKUP($A598,Economática!$A$3:$AI$823,13,FALSE)=0,VLOOKUP($A598,Economática!$A$3:$AI$823,13,FALSE)=\"-\"),1/0,VLOOKUP($A598,Economática!$A$3:$AI$823,13,FALSE)))","v":""},{"$f":"IF($A598=\"\",\"\",IF(OR(VLOOKUP($A598,Economática!$A$3:$AI$823,14,FALSE)=0,VLOOKUP($A598,Economática!$A$3:$AI$823,14,FALSE)=\"-\"),1/0,VLOOKUP($A598,Economática!$A$3:$AI$823,14,FALSE)))","v":""},{"$f":"IF($A598=\"\",\"\",IF(OR(VLOOKUP($A598,Economática!$A$3:$AI$823,15,FALSE)=0,VLOOKUP($A598,Economática!$A$3:$AI$823,15,FALSE)=\"-\"),1/0,VLOOKUP($A598,Economática!$A$3:$AI$823,15,FALSE)))","v":""},{"$f":"IF($A598=\"\",\"\",IF(OR(VLOOKUP($A598,Economática!$A$3:$AI$823,16,FALSE)=0,VLOOKUP($A598,Economática!$A$3:$AI$823,16,FALSE)=\"-\"),1/0,VLOOKUP($A598,Economática!$A$3:$AI$823,16,FALSE)))","v":""},{"$f":"IF($A598=\"\",\"\",IF(OR(VLOOKUP($A598,Economática!$A$3:$AI$823,17,FALSE)=0,VLOOKUP($A598,Economática!$A$3:$AI$823,17,FALSE)=\"-\"),1/0,VLOOKUP($A598,Economática!$A$3:$AI$823,17,FALSE)))","v":""},{"$f":"IF($A598=\"\",\"\",IF(OR(VLOOKUP($A598,Economática!$A$3:$AI$823,18,FALSE)=0,VLOOKUP($A598,Economática!$A$3:$AI$823,18,FALSE)=\"-\"),1/0,VLOOKUP($A598,Economática!$A$3:$AI$823,18,FALSE)))","v":""},{"$f":"IF($A598=\"\",\"\",IF(OR(VLOOKUP($A598,Economática!$A$3:$AI$823,19,FALSE)=0,VLOOKUP($A598,Economática!$A$3:$AI$823,19,FALSE)=\"-\"),1/0,VLOOKUP($A598,Economática!$A$3:$AI$823,19,FALSE)))","v":""},{"$f":"IF($A598=\"\",\"\",VLOOKUP($A598,Economática!$A$3:$AI$823,20,FALSE)/E598)","v":""},"","","",{"$f":"IF($A598=\"\",\"\",IF(OR(VLOOKUP($A598,Economática!$A$3:$AI$823,21,FALSE)/100=0,VLOOKUP($A598,Economática!$A$3:$AI$823,21,FALSE)/100=\"-\"),1/0,VLOOKUP($A598,Economática!$A$3:$AI$823,21,FALSE)/100))","v":""},{"$f":"IF($A598=\"\",\"\",IF(OR(VLOOKUP($A598,Economática!$A$3:$AI$823,22,FALSE)/100=0,VLOOKUP($A598,Economática!$A$3:$AI$823,22,FALSE)/100=\"-\"),1/0,VLOOKUP($A598,Economática!$A$3:$AI$823,22,FALSE)/100))","v":""},{"$f":"IF($A598=\"\",\"\",IF(OR(VLOOKUP($A598,Economática!$A$3:$AI$823,23,FALSE)=0,VLOOKUP($A598,Economática!$A$3:$AI$823,23,FALSE)=\"-\"),1/0,VLOOKUP($A598,Economática!$A$3:$AI$823,23,FALSE)))","v":""},{"$f":"IF($A598=\"\",\"\",IF(OR(VLOOKUP($A598,Economática!$A$3:$AI$823,24,FALSE)=0,VLOOKUP($A598,Economática!$A$3:$AI$823,24,FALSE)=\"-\"),1/0,VLOOKUP($A598,Economática!$A$3:$AI$823,24,FALSE)))","v":""},{"$f":"IF($A598=\"\",\"\",IF(OR(VLOOKUP($A598,Economática!$A$3:$AI$823,25,FALSE)=0,VLOOKUP($A598,Economática!$A$3:$AI$823,25,FALSE)=\"-\"),1/0,VLOOKUP($A598,Economática!$A$3:$AI$823,25,FALSE)))","v":""},{"$f":"IF($A598=\"\",\"\",IF(ISERROR((F598+VLOOKUP($A598,Economática!$A$3:$AI$823,26,FALSE))/Y598),(F598+VLOOKUP($A598,Economática!$A$3:$AI$823,26,FALSE))/Y598,(F598+VLOOKUP($A598,Economática!$A$3:$AI$823,26,FALSE))/Y598))","v":""},{"$f":"IF($A598=\"\",\"\",IF(OR(-VLOOKUP($A598,Economática!$A$3:$AI$823,27,FALSE)=0,-VLOOKUP($A598,Economática!$A$3:$AI$823,27,FALSE)=\"-\"),1/0,-VLOOKUP($A598,Economática!$A$3:$AI$823,27,FALSE)))","v":""},"",{"$f":"IF($A598=\"\",\"\",IF(OR(VLOOKUP($A598,Economática!$A$3:$AI$823,28,FALSE)=0,VLOOKUP($A598,Economática!$A$3:$AI$823,28,FALSE)=\"-\"),1/0,VLOOKUP($A598,Economática!$A$3:$AI$823,28,FALSE)))","v":""},{"$f":"IF($A598=\"\",\"\",IF(OR(VLOOKUP($A598,Economática!$A$3:$AI$823,29,FALSE)=0,VLOOKUP($A598,Economática!$A$3:$AI$823,29,FALSE)=\"-\"),1/0,VLOOKUP($A598,Economática!$A$3:$AI$823,29,FALSE)))","v":""},{"$f":"IF($A598=\"\",\"\",IF(OR(VLOOKUP($A598,Economática!$A$3:$AI$823,30,FALSE)/E598=0,VLOOKUP($A598,Economática!$A$3:$AI$823,30,FALSE)/E598=\"-\",VLOOKUP($A598,Economática!$A$3:$AI$823,30,FALSE)/E598<33.33%,VLOOKUP($A598,Economática!$A$3:$AI$823,30,FALSE)/E598>100%),1/0,VLOOKUP($A598,Economática!$A$3:$AI$823,30,FALSE)/E598))","v":""},"",{"$f":"IF($A598=\"\",\"\",IF(OR(VLOOKUP($A598,Economática!$A$3:$AI$823,25,FALSE)=0,VLOOKUP($A598,Economática!$A$3:$AI$823,25,FALSE)=\"-\"),1/0,VLOOKUP($A598,Economática!$A$3:$AI$823,25,FALSE)))","v":""},{"$f":"CONCATENATE(Economática!B576,\" \",Economática!C576)","v":" "}]
[{"$f":"IF(Economática!AG577=\"\",\"\",Economática!AG577)","v":""},{"$f":"IF($A599=\"\",\"\",VLOOKUP(VLOOKUP($A599,Economática!$A$3:$AI$823,6,FALSE),Correção!$B$16:$C$36,2,FALSE))","v":""},{"$f":"IF(Economática!B577=\"\",\"\",Economática!B577)","v":""},{"$f":"IF($A599=\"\",\"\",IF(OR(VLOOKUP($A599,Economática!$A$3:$AI$823,8,FALSE)=0,VLOOKUP($A599,Economática!$A$3:$AI$823,8,FALSE)=\"-\"),1/0,VLOOKUP($A599,Economática!$A$3:$AI$823,8,FALSE)))","v":""},{"$f":"IF(A599=\"\",\"\",IF(ISERROR(VLOOKUP(A599,Correção!$B$2:$G$13,9,FALSE)),VLOOKUP($A599,Economática!$A$3:$AI$823,9,FALSE),VLOOKUP(A599,Correção!$B$2:$G$13,9,FALSE)))","v":""},{"$f":"IF($A599=\"\",\"\",Economática!G577)","v":""},{"$f":"IF($A599=\"\",\"\",IF(OR(VLOOKUP($A599,Economática!$A$3:$AI$823,10,FALSE)=0,VLOOKUP($A599,Economática!$A$3:$AI$823,10,FALSE)=\"-\"),1/0,VLOOKUP($A599,Economática!$A$3:$AI$823,10,FALSE)))","v":""},{"$f":"IF($A599=\"\",\"\",IF(OR(VLOOKUP($A599,Economática!$A$3:$AI$823,11,FALSE)=0,VLOOKUP($A599,Economática!$A$3:$AI$823,11,FALSE)=\"-\"),1/0,VLOOKUP($A599,Economática!$A$3:$AI$823,11,FALSE)))","v":""},{"$f":"IF($A599=\"\",\"\",IF(OR(VLOOKUP($A599,Economática!$A$3:$AI$823,12,FALSE)=0,VLOOKUP($A599,Economática!$A$3:$AI$823,12,FALSE)=\"-\"),1/0,VLOOKUP($A599,Economática!$A$3:$AI$823,12,FALSE)))","v":""},{"$f":"IF($A599=\"\",\"\",IF(OR(VLOOKUP($A599,Economática!$A$3:$AI$823,13,FALSE)=0,VLOOKUP($A599,Economática!$A$3:$AI$823,13,FALSE)=\"-\"),1/0,VLOOKUP($A599,Economática!$A$3:$AI$823,13,FALSE)))","v":""},{"$f":"IF($A599=\"\",\"\",IF(OR(VLOOKUP($A599,Economática!$A$3:$AI$823,14,FALSE)=0,VLOOKUP($A599,Economática!$A$3:$AI$823,14,FALSE)=\"-\"),1/0,VLOOKUP($A599,Economática!$A$3:$AI$823,14,FALSE)))","v":""},{"$f":"IF($A599=\"\",\"\",IF(OR(VLOOKUP($A599,Economática!$A$3:$AI$823,15,FALSE)=0,VLOOKUP($A599,Economática!$A$3:$AI$823,15,FALSE)=\"-\"),1/0,VLOOKUP($A599,Economática!$A$3:$AI$823,15,FALSE)))","v":""},{"$f":"IF($A599=\"\",\"\",IF(OR(VLOOKUP($A599,Economática!$A$3:$AI$823,16,FALSE)=0,VLOOKUP($A599,Economática!$A$3:$AI$823,16,FALSE)=\"-\"),1/0,VLOOKUP($A599,Economática!$A$3:$AI$823,16,FALSE)))","v":""},{"$f":"IF($A599=\"\",\"\",IF(OR(VLOOKUP($A599,Economática!$A$3:$AI$823,17,FALSE)=0,VLOOKUP($A599,Economática!$A$3:$AI$823,17,FALSE)=\"-\"),1/0,VLOOKUP($A599,Economática!$A$3:$AI$823,17,FALSE)))","v":""},{"$f":"IF($A599=\"\",\"\",IF(OR(VLOOKUP($A599,Economática!$A$3:$AI$823,18,FALSE)=0,VLOOKUP($A599,Economática!$A$3:$AI$823,18,FALSE)=\"-\"),1/0,VLOOKUP($A599,Economática!$A$3:$AI$823,18,FALSE)))","v":""},{"$f":"IF($A599=\"\",\"\",IF(OR(VLOOKUP($A599,Economática!$A$3:$AI$823,19,FALSE)=0,VLOOKUP($A599,Economática!$A$3:$AI$823,19,FALSE)=\"-\"),1/0,VLOOKUP($A599,Economática!$A$3:$AI$823,19,FALSE)))","v":""},{"$f":"IF($A599=\"\",\"\",VLOOKUP($A599,Economática!$A$3:$AI$823,20,FALSE)/E599)","v":""},"","","",{"$f":"IF($A599=\"\",\"\",IF(OR(VLOOKUP($A599,Economática!$A$3:$AI$823,21,FALSE)/100=0,VLOOKUP($A599,Economática!$A$3:$AI$823,21,FALSE)/100=\"-\"),1/0,VLOOKUP($A599,Economática!$A$3:$AI$823,21,FALSE)/100))","v":""},{"$f":"IF($A599=\"\",\"\",IF(OR(VLOOKUP($A599,Economática!$A$3:$AI$823,22,FALSE)/100=0,VLOOKUP($A599,Economática!$A$3:$AI$823,22,FALSE)/100=\"-\"),1/0,VLOOKUP($A599,Economática!$A$3:$AI$823,22,FALSE)/100))","v":""},{"$f":"IF($A599=\"\",\"\",IF(OR(VLOOKUP($A599,Economática!$A$3:$AI$823,23,FALSE)=0,VLOOKUP($A599,Economática!$A$3:$AI$823,23,FALSE)=\"-\"),1/0,VLOOKUP($A599,Economática!$A$3:$AI$823,23,FALSE)))","v":""},{"$f":"IF($A599=\"\",\"\",IF(OR(VLOOKUP($A599,Economática!$A$3:$AI$823,24,FALSE)=0,VLOOKUP($A599,Economática!$A$3:$AI$823,24,FALSE)=\"-\"),1/0,VLOOKUP($A599,Economática!$A$3:$AI$823,24,FALSE)))","v":""},{"$f":"IF($A599=\"\",\"\",IF(OR(VLOOKUP($A599,Economática!$A$3:$AI$823,25,FALSE)=0,VLOOKUP($A599,Economática!$A$3:$AI$823,25,FALSE)=\"-\"),1/0,VLOOKUP($A599,Economática!$A$3:$AI$823,25,FALSE)))","v":""},{"$f":"IF($A599=\"\",\"\",IF(ISERROR((F599+VLOOKUP($A599,Economática!$A$3:$AI$823,26,FALSE))/Y599),(F599+VLOOKUP($A599,Economática!$A$3:$AI$823,26,FALSE))/Y599,(F599+VLOOKUP($A599,Economática!$A$3:$AI$823,26,FALSE))/Y599))","v":""},{"$f":"IF($A599=\"\",\"\",IF(OR(-VLOOKUP($A599,Economática!$A$3:$AI$823,27,FALSE)=0,-VLOOKUP($A599,Economática!$A$3:$AI$823,27,FALSE)=\"-\"),1/0,-VLOOKUP($A599,Economática!$A$3:$AI$823,27,FALSE)))","v":""},"",{"$f":"IF($A599=\"\",\"\",IF(OR(VLOOKUP($A599,Economática!$A$3:$AI$823,28,FALSE)=0,VLOOKUP($A599,Economática!$A$3:$AI$823,28,FALSE)=\"-\"),1/0,VLOOKUP($A599,Economática!$A$3:$AI$823,28,FALSE)))","v":""},{"$f":"IF($A599=\"\",\"\",IF(OR(VLOOKUP($A599,Economática!$A$3:$AI$823,29,FALSE)=0,VLOOKUP($A599,Economática!$A$3:$AI$823,29,FALSE)=\"-\"),1/0,VLOOKUP($A599,Economática!$A$3:$AI$823,29,FALSE)))","v":""},{"$f":"IF($A599=\"\",\"\",IF(OR(VLOOKUP($A599,Economática!$A$3:$AI$823,30,FALSE)/E599=0,VLOOKUP($A599,Economática!$A$3:$AI$823,30,FALSE)/E599=\"-\",VLOOKUP($A599,Economática!$A$3:$AI$823,30,FALSE)/E599<33.33%,VLOOKUP($A599,Economática!$A$3:$AI$823,30,FALSE)/E599>100%),1/0,VLOOKUP($A599,Economática!$A$3:$AI$823,30,FALSE)/E599))","v":""},"",{"$f":"IF($A599=\"\",\"\",IF(OR(VLOOKUP($A599,Economática!$A$3:$AI$823,25,FALSE)=0,VLOOKUP($A599,Economática!$A$3:$AI$823,25,FALSE)=\"-\"),1/0,VLOOKUP($A599,Economática!$A$3:$AI$823,25,FALSE)))","v":""},{"$f":"CONCATENATE(Economática!B577,\" \",Economática!C577)","v":" "}]
[{"$f":"IF(Economática!AG578=\"\",\"\",Economática!AG578)","v":""},{"$f":"IF($A600=\"\",\"\",VLOOKUP(VLOOKUP($A600,Economática!$A$3:$AI$823,6,FALSE),Correção!$B$16:$C$36,2,FALSE))","v":""},{"$f":"IF(Economática!B578=\"\",\"\",Economática!B578)","v":""},{"$f":"IF($A600=\"\",\"\",IF(OR(VLOOKUP($A600,Economática!$A$3:$AI$823,8,FALSE)=0,VLOOKUP($A600,Economática!$A$3:$AI$823,8,FALSE)=\"-\"),1/0,VLOOKUP($A600,Economática!$A$3:$AI$823,8,FALSE)))","v":""},{"$f":"IF(A600=\"\",\"\",IF(ISERROR(VLOOKUP(A600,Correção!$B$2:$G$13,9,FALSE)),VLOOKUP($A600,Economática!$A$3:$AI$823,9,FALSE),VLOOKUP(A600,Correção!$B$2:$G$13,9,FALSE)))","v":""},{"$f":"IF($A600=\"\",\"\",Economática!G578)","v":""},{"$f":"IF($A600=\"\",\"\",IF(OR(VLOOKUP($A600,Economática!$A$3:$AI$823,10,FALSE)=0,VLOOKUP($A600,Economática!$A$3:$AI$823,10,FALSE)=\"-\"),1/0,VLOOKUP($A600,Economática!$A$3:$AI$823,10,FALSE)))","v":""},{"$f":"IF($A600=\"\",\"\",IF(OR(VLOOKUP($A600,Economática!$A$3:$AI$823,11,FALSE)=0,VLOOKUP($A600,Economática!$A$3:$AI$823,11,FALSE)=\"-\"),1/0,VLOOKUP($A600,Economática!$A$3:$AI$823,11,FALSE)))","v":""},{"$f":"IF($A600=\"\",\"\",IF(OR(VLOOKUP($A600,Economática!$A$3:$AI$823,12,FALSE)=0,VLOOKUP($A600,Economática!$A$3:$AI$823,12,FALSE)=\"-\"),1/0,VLOOKUP($A600,Economática!$A$3:$AI$823,12,FALSE)))","v":""},{"$f":"IF($A600=\"\",\"\",IF(OR(VLOOKUP($A600,Economática!$A$3:$AI$823,13,FALSE)=0,VLOOKUP($A600,Economática!$A$3:$AI$823,13,FALSE)=\"-\"),1/0,VLOOKUP($A600,Economática!$A$3:$AI$823,13,FALSE)))","v":""},{"$f":"IF($A600=\"\",\"\",IF(OR(VLOOKUP($A600,Economática!$A$3:$AI$823,14,FALSE)=0,VLOOKUP($A600,Economática!$A$3:$AI$823,14,FALSE)=\"-\"),1/0,VLOOKUP($A600,Economática!$A$3:$AI$823,14,FALSE)))","v":""},{"$f":"IF($A600=\"\",\"\",IF(OR(VLOOKUP($A600,Economática!$A$3:$AI$823,15,FALSE)=0,VLOOKUP($A600,Economática!$A$3:$AI$823,15,FALSE)=\"-\"),1/0,VLOOKUP($A600,Economática!$A$3:$AI$823,15,FALSE)))","v":""},{"$f":"IF($A600=\"\",\"\",IF(OR(VLOOKUP($A600,Economática!$A$3:$AI$823,16,FALSE)=0,VLOOKUP($A600,Economática!$A$3:$AI$823,16,FALSE)=\"-\"),1/0,VLOOKUP($A600,Economática!$A$3:$AI$823,16,FALSE)))","v":""},{"$f":"IF($A600=\"\",\"\",IF(OR(VLOOKUP($A600,Economática!$A$3:$AI$823,17,FALSE)=0,VLOOKUP($A600,Economática!$A$3:$AI$823,17,FALSE)=\"-\"),1/0,VLOOKUP($A600,Economática!$A$3:$AI$823,17,FALSE)))","v":""},{"$f":"IF($A600=\"\",\"\",IF(OR(VLOOKUP($A600,Economática!$A$3:$AI$823,18,FALSE)=0,VLOOKUP($A600,Economática!$A$3:$AI$823,18,FALSE)=\"-\"),1/0,VLOOKUP($A600,Economática!$A$3:$AI$823,18,FALSE)))","v":""},{"$f":"IF($A600=\"\",\"\",IF(OR(VLOOKUP($A600,Economática!$A$3:$AI$823,19,FALSE)=0,VLOOKUP($A600,Economática!$A$3:$AI$823,19,FALSE)=\"-\"),1/0,VLOOKUP($A600,Economática!$A$3:$AI$823,19,FALSE)))","v":""},{"$f":"IF($A600=\"\",\"\",VLOOKUP($A600,Economática!$A$3:$AI$823,20,FALSE)/E600)","v":""},"","","",{"$f":"IF($A600=\"\",\"\",IF(OR(VLOOKUP($A600,Economática!$A$3:$AI$823,21,FALSE)/100=0,VLOOKUP($A600,Economática!$A$3:$AI$823,21,FALSE)/100=\"-\"),1/0,VLOOKUP($A600,Economática!$A$3:$AI$823,21,FALSE)/100))","v":""},{"$f":"IF($A600=\"\",\"\",IF(OR(VLOOKUP($A600,Economática!$A$3:$AI$823,22,FALSE)/100=0,VLOOKUP($A600,Economática!$A$3:$AI$823,22,FALSE)/100=\"-\"),1/0,VLOOKUP($A600,Economática!$A$3:$AI$823,22,FALSE)/100))","v":""},{"$f":"IF($A600=\"\",\"\",IF(OR(VLOOKUP($A600,Economática!$A$3:$AI$823,23,FALSE)=0,VLOOKUP($A600,Economática!$A$3:$AI$823,23,FALSE)=\"-\"),1/0,VLOOKUP($A600,Economática!$A$3:$AI$823,23,FALSE)))","v":""},{"$f":"IF($A600=\"\",\"\",IF(OR(VLOOKUP($A600,Economática!$A$3:$AI$823,24,FALSE)=0,VLOOKUP($A600,Economática!$A$3:$AI$823,24,FALSE)=\"-\"),1/0,VLOOKUP($A600,Economática!$A$3:$AI$823,24,FALSE)))","v":""},{"$f":"IF($A600=\"\",\"\",IF(OR(VLOOKUP($A600,Economática!$A$3:$AI$823,25,FALSE)=0,VLOOKUP($A600,Economática!$A$3:$AI$823,25,FALSE)=\"-\"),1/0,VLOOKUP($A600,Economática!$A$3:$AI$823,25,FALSE)))","v":""},{"$f":"IF($A600=\"\",\"\",IF(ISERROR((F600+VLOOKUP($A600,Economática!$A$3:$AI$823,26,FALSE))/Y600),(F600+VLOOKUP($A600,Economática!$A$3:$AI$823,26,FALSE))/Y600,(F600+VLOOKUP($A600,Economática!$A$3:$AI$823,26,FALSE))/Y600))","v":""},{"$f":"IF($A600=\"\",\"\",IF(OR(-VLOOKUP($A600,Economática!$A$3:$AI$823,27,FALSE)=0,-VLOOKUP($A600,Economática!$A$3:$AI$823,27,FALSE)=\"-\"),1/0,-VLOOKUP($A600,Economática!$A$3:$AI$823,27,FALSE)))","v":""},"",{"$f":"IF($A600=\"\",\"\",IF(OR(VLOOKUP($A600,Economática!$A$3:$AI$823,28,FALSE)=0,VLOOKUP($A600,Economática!$A$3:$AI$823,28,FALSE)=\"-\"),1/0,VLOOKUP($A600,Economática!$A$3:$AI$823,28,FALSE)))","v":""},{"$f":"IF($A600=\"\",\"\",IF(OR(VLOOKUP($A600,Economática!$A$3:$AI$823,29,FALSE)=0,VLOOKUP($A600,Economática!$A$3:$AI$823,29,FALSE)=\"-\"),1/0,VLOOKUP($A600,Economática!$A$3:$AI$823,29,FALSE)))","v":""},{"$f":"IF($A600=\"\",\"\",IF(OR(VLOOKUP($A600,Economática!$A$3:$AI$823,30,FALSE)/E600=0,VLOOKUP($A600,Economática!$A$3:$AI$823,30,FALSE)/E600=\"-\",VLOOKUP($A600,Economática!$A$3:$AI$823,30,FALSE)/E600<33.33%,VLOOKUP($A600,Economática!$A$3:$AI$823,30,FALSE)/E600>100%),1/0,VLOOKUP($A600,Economática!$A$3:$AI$823,30,FALSE)/E600))","v":""},"",{"$f":"IF($A600=\"\",\"\",IF(OR(VLOOKUP($A600,Economática!$A$3:$AI$823,25,FALSE)=0,VLOOKUP($A600,Economática!$A$3:$AI$823,25,FALSE)=\"-\"),1/0,VLOOKUP($A600,Economática!$A$3:$AI$823,25,FALSE)))","v":""},{"$f":"CONCATENATE(Economática!B578,\" \",Economática!C578)","v":" "}]
[{"$f":"IF(Economática!AG579=\"\",\"\",Economática!AG579)","v":""},{"$f":"IF($A601=\"\",\"\",VLOOKUP(VLOOKUP($A601,Economática!$A$3:$AI$823,6,FALSE),Correção!$B$16:$C$36,2,FALSE))","v":""},{"$f":"IF(Economática!B579=\"\",\"\",Economática!B579)","v":""},{"$f":"IF($A601=\"\",\"\",IF(OR(VLOOKUP($A601,Economática!$A$3:$AI$823,8,FALSE)=0,VLOOKUP($A601,Economática!$A$3:$AI$823,8,FALSE)=\"-\"),1/0,VLOOKUP($A601,Economática!$A$3:$AI$823,8,FALSE)))","v":""},{"$f":"IF(A601=\"\",\"\",IF(ISERROR(VLOOKUP(A601,Correção!$B$2:$G$13,9,FALSE)),VLOOKUP($A601,Economática!$A$3:$AI$823,9,FALSE),VLOOKUP(A601,Correção!$B$2:$G$13,9,FALSE)))","v":""},{"$f":"IF($A601=\"\",\"\",Economática!G579)","v":""},{"$f":"IF($A601=\"\",\"\",IF(OR(VLOOKUP($A601,Economática!$A$3:$AI$823,10,FALSE)=0,VLOOKUP($A601,Economática!$A$3:$AI$823,10,FALSE)=\"-\"),1/0,VLOOKUP($A601,Economática!$A$3:$AI$823,10,FALSE)))","v":""},{"$f":"IF($A601=\"\",\"\",IF(OR(VLOOKUP($A601,Economática!$A$3:$AI$823,11,FALSE)=0,VLOOKUP($A601,Economática!$A$3:$AI$823,11,FALSE)=\"-\"),1/0,VLOOKUP($A601,Economática!$A$3:$AI$823,11,FALSE)))","v":""},{"$f":"IF($A601=\"\",\"\",IF(OR(VLOOKUP($A601,Economática!$A$3:$AI$823,12,FALSE)=0,VLOOKUP($A601,Economática!$A$3:$AI$823,12,FALSE)=\"-\"),1/0,VLOOKUP($A601,Economática!$A$3:$AI$823,12,FALSE)))","v":""},{"$f":"IF($A601=\"\",\"\",IF(OR(VLOOKUP($A601,Economática!$A$3:$AI$823,13,FALSE)=0,VLOOKUP($A601,Economática!$A$3:$AI$823,13,FALSE)=\"-\"),1/0,VLOOKUP($A601,Economática!$A$3:$AI$823,13,FALSE)))","v":""},{"$f":"IF($A601=\"\",\"\",IF(OR(VLOOKUP($A601,Economática!$A$3:$AI$823,14,FALSE)=0,VLOOKUP($A601,Economática!$A$3:$AI$823,14,FALSE)=\"-\"),1/0,VLOOKUP($A601,Economática!$A$3:$AI$823,14,FALSE)))","v":""},{"$f":"IF($A601=\"\",\"\",IF(OR(VLOOKUP($A601,Economática!$A$3:$AI$823,15,FALSE)=0,VLOOKUP($A601,Economática!$A$3:$AI$823,15,FALSE)=\"-\"),1/0,VLOOKUP($A601,Economática!$A$3:$AI$823,15,FALSE)))","v":""},{"$f":"IF($A601=\"\",\"\",IF(OR(VLOOKUP($A601,Economática!$A$3:$AI$823,16,FALSE)=0,VLOOKUP($A601,Economática!$A$3:$AI$823,16,FALSE)=\"-\"),1/0,VLOOKUP($A601,Economática!$A$3:$AI$823,16,FALSE)))","v":""},{"$f":"IF($A601=\"\",\"\",IF(OR(VLOOKUP($A601,Economática!$A$3:$AI$823,17,FALSE)=0,VLOOKUP($A601,Economática!$A$3:$AI$823,17,FALSE)=\"-\"),1/0,VLOOKUP($A601,Economática!$A$3:$AI$823,17,FALSE)))","v":""},{"$f":"IF($A601=\"\",\"\",IF(OR(VLOOKUP($A601,Economática!$A$3:$AI$823,18,FALSE)=0,VLOOKUP($A601,Economática!$A$3:$AI$823,18,FALSE)=\"-\"),1/0,VLOOKUP($A601,Economática!$A$3:$AI$823,18,FALSE)))","v":""},{"$f":"IF($A601=\"\",\"\",IF(OR(VLOOKUP($A601,Economática!$A$3:$AI$823,19,FALSE)=0,VLOOKUP($A601,Economática!$A$3:$AI$823,19,FALSE)=\"-\"),1/0,VLOOKUP($A601,Economática!$A$3:$AI$823,19,FALSE)))","v":""},{"$f":"IF($A601=\"\",\"\",VLOOKUP($A601,Economática!$A$3:$AI$823,20,FALSE)/E601)","v":""},"","","",{"$f":"IF($A601=\"\",\"\",IF(OR(VLOOKUP($A601,Economática!$A$3:$AI$823,21,FALSE)/100=0,VLOOKUP($A601,Economática!$A$3:$AI$823,21,FALSE)/100=\"-\"),1/0,VLOOKUP($A601,Economática!$A$3:$AI$823,21,FALSE)/100))","v":""},{"$f":"IF($A601=\"\",\"\",IF(OR(VLOOKUP($A601,Economática!$A$3:$AI$823,22,FALSE)/100=0,VLOOKUP($A601,Economática!$A$3:$AI$823,22,FALSE)/100=\"-\"),1/0,VLOOKUP($A601,Economática!$A$3:$AI$823,22,FALSE)/100))","v":""},{"$f":"IF($A601=\"\",\"\",IF(OR(VLOOKUP($A601,Economática!$A$3:$AI$823,23,FALSE)=0,VLOOKUP($A601,Economática!$A$3:$AI$823,23,FALSE)=\"-\"),1/0,VLOOKUP($A601,Economática!$A$3:$AI$823,23,FALSE)))","v":""},{"$f":"IF($A601=\"\",\"\",IF(OR(VLOOKUP($A601,Economática!$A$3:$AI$823,24,FALSE)=0,VLOOKUP($A601,Economática!$A$3:$AI$823,24,FALSE)=\"-\"),1/0,VLOOKUP($A601,Economática!$A$3:$AI$823,24,FALSE)))","v":""},{"$f":"IF($A601=\"\",\"\",IF(OR(VLOOKUP($A601,Economática!$A$3:$AI$823,25,FALSE)=0,VLOOKUP($A601,Economática!$A$3:$AI$823,25,FALSE)=\"-\"),1/0,VLOOKUP($A601,Economática!$A$3:$AI$823,25,FALSE)))","v":""},{"$f":"IF($A601=\"\",\"\",IF(ISERROR((F601+VLOOKUP($A601,Economática!$A$3:$AI$823,26,FALSE))/Y601),(F601+VLOOKUP($A601,Economática!$A$3:$AI$823,26,FALSE))/Y601,(F601+VLOOKUP($A601,Economática!$A$3:$AI$823,26,FALSE))/Y601))","v":""},{"$f":"IF($A601=\"\",\"\",IF(OR(-VLOOKUP($A601,Economática!$A$3:$AI$823,27,FALSE)=0,-VLOOKUP($A601,Economática!$A$3:$AI$823,27,FALSE)=\"-\"),1/0,-VLOOKUP($A601,Economática!$A$3:$AI$823,27,FALSE)))","v":""},"",{"$f":"IF($A601=\"\",\"\",IF(OR(VLOOKUP($A601,Economática!$A$3:$AI$823,28,FALSE)=0,VLOOKUP($A601,Economática!$A$3:$AI$823,28,FALSE)=\"-\"),1/0,VLOOKUP($A601,Economática!$A$3:$AI$823,28,FALSE)))","v":""},{"$f":"IF($A601=\"\",\"\",IF(OR(VLOOKUP($A601,Economática!$A$3:$AI$823,29,FALSE)=0,VLOOKUP($A601,Economática!$A$3:$AI$823,29,FALSE)=\"-\"),1/0,VLOOKUP($A601,Economática!$A$3:$AI$823,29,FALSE)))","v":""},{"$f":"IF($A601=\"\",\"\",IF(OR(VLOOKUP($A601,Economática!$A$3:$AI$823,30,FALSE)/E601=0,VLOOKUP($A601,Economática!$A$3:$AI$823,30,FALSE)/E601=\"-\",VLOOKUP($A601,Economática!$A$3:$AI$823,30,FALSE)/E601<33.33%,VLOOKUP($A601,Economática!$A$3:$AI$823,30,FALSE)/E601>100%),1/0,VLOOKUP($A601,Economática!$A$3:$AI$823,30,FALSE)/E601))","v":""},"",{"$f":"IF($A601=\"\",\"\",IF(OR(VLOOKUP($A601,Economática!$A$3:$AI$823,25,FALSE)=0,VLOOKUP($A601,Economática!$A$3:$AI$823,25,FALSE)=\"-\"),1/0,VLOOKUP($A601,Economática!$A$3:$AI$823,25,FALSE)))","v":""},{"$f":"CONCATENATE(Economática!B579,\" \",Economática!C579)","v":" "}]
[{"$f":"IF(Economática!AG580=\"\",\"\",Economática!AG580)","v":""},{"$f":"IF($A602=\"\",\"\",VLOOKUP(VLOOKUP($A602,Economática!$A$3:$AI$823,6,FALSE),Correção!$B$16:$C$36,2,FALSE))","v":""},{"$f":"IF(Economática!B580=\"\",\"\",Economática!B580)","v":""},{"$f":"IF($A602=\"\",\"\",IF(OR(VLOOKUP($A602,Economática!$A$3:$AI$823,8,FALSE)=0,VLOOKUP($A602,Economática!$A$3:$AI$823,8,FALSE)=\"-\"),1/0,VLOOKUP($A602,Economática!$A$3:$AI$823,8,FALSE)))","v":""},{"$f":"IF(A602=\"\",\"\",IF(ISERROR(VLOOKUP(A602,Correção!$B$2:$G$13,9,FALSE)),VLOOKUP($A602,Economática!$A$3:$AI$823,9,FALSE),VLOOKUP(A602,Correção!$B$2:$G$13,9,FALSE)))","v":""},{"$f":"IF($A602=\"\",\"\",Economática!G580)","v":""},{"$f":"IF($A602=\"\",\"\",IF(OR(VLOOKUP($A602,Economática!$A$3:$AI$823,10,FALSE)=0,VLOOKUP($A602,Economática!$A$3:$AI$823,10,FALSE)=\"-\"),1/0,VLOOKUP($A602,Economática!$A$3:$AI$823,10,FALSE)))","v":""},{"$f":"IF($A602=\"\",\"\",IF(OR(VLOOKUP($A602,Economática!$A$3:$AI$823,11,FALSE)=0,VLOOKUP($A602,Economática!$A$3:$AI$823,11,FALSE)=\"-\"),1/0,VLOOKUP($A602,Economática!$A$3:$AI$823,11,FALSE)))","v":""},{"$f":"IF($A602=\"\",\"\",IF(OR(VLOOKUP($A602,Economática!$A$3:$AI$823,12,FALSE)=0,VLOOKUP($A602,Economática!$A$3:$AI$823,12,FALSE)=\"-\"),1/0,VLOOKUP($A602,Economática!$A$3:$AI$823,12,FALSE)))","v":""},{"$f":"IF($A602=\"\",\"\",IF(OR(VLOOKUP($A602,Economática!$A$3:$AI$823,13,FALSE)=0,VLOOKUP($A602,Economática!$A$3:$AI$823,13,FALSE)=\"-\"),1/0,VLOOKUP($A602,Economática!$A$3:$AI$823,13,FALSE)))","v":""},{"$f":"IF($A602=\"\",\"\",IF(OR(VLOOKUP($A602,Economática!$A$3:$AI$823,14,FALSE)=0,VLOOKUP($A602,Economática!$A$3:$AI$823,14,FALSE)=\"-\"),1/0,VLOOKUP($A602,Economática!$A$3:$AI$823,14,FALSE)))","v":""},{"$f":"IF($A602=\"\",\"\",IF(OR(VLOOKUP($A602,Economática!$A$3:$AI$823,15,FALSE)=0,VLOOKUP($A602,Economática!$A$3:$AI$823,15,FALSE)=\"-\"),1/0,VLOOKUP($A602,Economática!$A$3:$AI$823,15,FALSE)))","v":""},{"$f":"IF($A602=\"\",\"\",IF(OR(VLOOKUP($A602,Economática!$A$3:$AI$823,16,FALSE)=0,VLOOKUP($A602,Economática!$A$3:$AI$823,16,FALSE)=\"-\"),1/0,VLOOKUP($A602,Economática!$A$3:$AI$823,16,FALSE)))","v":""},{"$f":"IF($A602=\"\",\"\",IF(OR(VLOOKUP($A602,Economática!$A$3:$AI$823,17,FALSE)=0,VLOOKUP($A602,Economática!$A$3:$AI$823,17,FALSE)=\"-\"),1/0,VLOOKUP($A602,Economática!$A$3:$AI$823,17,FALSE)))","v":""},{"$f":"IF($A602=\"\",\"\",IF(OR(VLOOKUP($A602,Economática!$A$3:$AI$823,18,FALSE)=0,VLOOKUP($A602,Economática!$A$3:$AI$823,18,FALSE)=\"-\"),1/0,VLOOKUP($A602,Economática!$A$3:$AI$823,18,FALSE)))","v":""},{"$f":"IF($A602=\"\",\"\",IF(OR(VLOOKUP($A602,Economática!$A$3:$AI$823,19,FALSE)=0,VLOOKUP($A602,Economática!$A$3:$AI$823,19,FALSE)=\"-\"),1/0,VLOOKUP($A602,Economática!$A$3:$AI$823,19,FALSE)))","v":""},{"$f":"IF($A602=\"\",\"\",VLOOKUP($A602,Economática!$A$3:$AI$823,20,FALSE)/E602)","v":""},"","","",{"$f":"IF($A602=\"\",\"\",IF(OR(VLOOKUP($A602,Economática!$A$3:$AI$823,21,FALSE)/100=0,VLOOKUP($A602,Economática!$A$3:$AI$823,21,FALSE)/100=\"-\"),1/0,VLOOKUP($A602,Economática!$A$3:$AI$823,21,FALSE)/100))","v":""},{"$f":"IF($A602=\"\",\"\",IF(OR(VLOOKUP($A602,Economática!$A$3:$AI$823,22,FALSE)/100=0,VLOOKUP($A602,Economática!$A$3:$AI$823,22,FALSE)/100=\"-\"),1/0,VLOOKUP($A602,Economática!$A$3:$AI$823,22,FALSE)/100))","v":""},{"$f":"IF($A602=\"\",\"\",IF(OR(VLOOKUP($A602,Economática!$A$3:$AI$823,23,FALSE)=0,VLOOKUP($A602,Economática!$A$3:$AI$823,23,FALSE)=\"-\"),1/0,VLOOKUP($A602,Economática!$A$3:$AI$823,23,FALSE)))","v":""},{"$f":"IF($A602=\"\",\"\",IF(OR(VLOOKUP($A602,Economática!$A$3:$AI$823,24,FALSE)=0,VLOOKUP($A602,Economática!$A$3:$AI$823,24,FALSE)=\"-\"),1/0,VLOOKUP($A602,Economática!$A$3:$AI$823,24,FALSE)))","v":""},{"$f":"IF($A602=\"\",\"\",IF(OR(VLOOKUP($A602,Economática!$A$3:$AI$823,25,FALSE)=0,VLOOKUP($A602,Economática!$A$3:$AI$823,25,FALSE)=\"-\"),1/0,VLOOKUP($A602,Economática!$A$3:$AI$823,25,FALSE)))","v":""},{"$f":"IF($A602=\"\",\"\",IF(ISERROR((F602+VLOOKUP($A602,Economática!$A$3:$AI$823,26,FALSE))/Y602),(F602+VLOOKUP($A602,Economática!$A$3:$AI$823,26,FALSE))/Y602,(F602+VLOOKUP($A602,Economática!$A$3:$AI$823,26,FALSE))/Y602))","v":""},{"$f":"IF($A602=\"\",\"\",IF(OR(-VLOOKUP($A602,Economática!$A$3:$AI$823,27,FALSE)=0,-VLOOKUP($A602,Economática!$A$3:$AI$823,27,FALSE)=\"-\"),1/0,-VLOOKUP($A602,Economática!$A$3:$AI$823,27,FALSE)))","v":""},"",{"$f":"IF($A602=\"\",\"\",IF(OR(VLOOKUP($A602,Economática!$A$3:$AI$823,28,FALSE)=0,VLOOKUP($A602,Economática!$A$3:$AI$823,28,FALSE)=\"-\"),1/0,VLOOKUP($A602,Economática!$A$3:$AI$823,28,FALSE)))","v":""},{"$f":"IF($A602=\"\",\"\",IF(OR(VLOOKUP($A602,Economática!$A$3:$AI$823,29,FALSE)=0,VLOOKUP($A602,Economática!$A$3:$AI$823,29,FALSE)=\"-\"),1/0,VLOOKUP($A602,Economática!$A$3:$AI$823,29,FALSE)))","v":""},{"$f":"IF($A602=\"\",\"\",IF(OR(VLOOKUP($A602,Economática!$A$3:$AI$823,30,FALSE)/E602=0,VLOOKUP($A602,Economática!$A$3:$AI$823,30,FALSE)/E602=\"-\",VLOOKUP($A602,Economática!$A$3:$AI$823,30,FALSE)/E602<33.33%,VLOOKUP($A602,Economática!$A$3:$AI$823,30,FALSE)/E602>100%),1/0,VLOOKUP($A602,Economática!$A$3:$AI$823,30,FALSE)/E602))","v":""},"",{"$f":"IF($A602=\"\",\"\",IF(OR(VLOOKUP($A602,Economática!$A$3:$AI$823,25,FALSE)=0,VLOOKUP($A602,Economática!$A$3:$AI$823,25,FALSE)=\"-\"),1/0,VLOOKUP($A602,Economática!$A$3:$AI$823,25,FALSE)))","v":""},{"$f":"CONCATENATE(Economática!B580,\" \",Economática!C580)","v":" "}]
[{"$f":"IF(Economática!AG581=\"\",\"\",Economática!AG581)","v":""},{"$f":"IF($A603=\"\",\"\",VLOOKUP(VLOOKUP($A603,Economática!$A$3:$AI$823,6,FALSE),Correção!$B$16:$C$36,2,FALSE))","v":""},{"$f":"IF(Economática!B581=\"\",\"\",Economática!B581)","v":""},{"$f":"IF($A603=\"\",\"\",IF(OR(VLOOKUP($A603,Economática!$A$3:$AI$823,8,FALSE)=0,VLOOKUP($A603,Economática!$A$3:$AI$823,8,FALSE)=\"-\"),1/0,VLOOKUP($A603,Economática!$A$3:$AI$823,8,FALSE)))","v":""},{"$f":"IF(A603=\"\",\"\",IF(ISERROR(VLOOKUP(A603,Correção!$B$2:$G$13,9,FALSE)),VLOOKUP($A603,Economática!$A$3:$AI$823,9,FALSE),VLOOKUP(A603,Correção!$B$2:$G$13,9,FALSE)))","v":""},{"$f":"IF($A603=\"\",\"\",Economática!G581)","v":""},{"$f":"IF($A603=\"\",\"\",IF(OR(VLOOKUP($A603,Economática!$A$3:$AI$823,10,FALSE)=0,VLOOKUP($A603,Economática!$A$3:$AI$823,10,FALSE)=\"-\"),1/0,VLOOKUP($A603,Economática!$A$3:$AI$823,10,FALSE)))","v":""},{"$f":"IF($A603=\"\",\"\",IF(OR(VLOOKUP($A603,Economática!$A$3:$AI$823,11,FALSE)=0,VLOOKUP($A603,Economática!$A$3:$AI$823,11,FALSE)=\"-\"),1/0,VLOOKUP($A603,Economática!$A$3:$AI$823,11,FALSE)))","v":""},{"$f":"IF($A603=\"\",\"\",IF(OR(VLOOKUP($A603,Economática!$A$3:$AI$823,12,FALSE)=0,VLOOKUP($A603,Economática!$A$3:$AI$823,12,FALSE)=\"-\"),1/0,VLOOKUP($A603,Economática!$A$3:$AI$823,12,FALSE)))","v":""},{"$f":"IF($A603=\"\",\"\",IF(OR(VLOOKUP($A603,Economática!$A$3:$AI$823,13,FALSE)=0,VLOOKUP($A603,Economática!$A$3:$AI$823,13,FALSE)=\"-\"),1/0,VLOOKUP($A603,Economática!$A$3:$AI$823,13,FALSE)))","v":""},{"$f":"IF($A603=\"\",\"\",IF(OR(VLOOKUP($A603,Economática!$A$3:$AI$823,14,FALSE)=0,VLOOKUP($A603,Economática!$A$3:$AI$823,14,FALSE)=\"-\"),1/0,VLOOKUP($A603,Economática!$A$3:$AI$823,14,FALSE)))","v":""},{"$f":"IF($A603=\"\",\"\",IF(OR(VLOOKUP($A603,Economática!$A$3:$AI$823,15,FALSE)=0,VLOOKUP($A603,Economática!$A$3:$AI$823,15,FALSE)=\"-\"),1/0,VLOOKUP($A603,Economática!$A$3:$AI$823,15,FALSE)))","v":""},{"$f":"IF($A603=\"\",\"\",IF(OR(VLOOKUP($A603,Economática!$A$3:$AI$823,16,FALSE)=0,VLOOKUP($A603,Economática!$A$3:$AI$823,16,FALSE)=\"-\"),1/0,VLOOKUP($A603,Economática!$A$3:$AI$823,16,FALSE)))","v":""},{"$f":"IF($A603=\"\",\"\",IF(OR(VLOOKUP($A603,Economática!$A$3:$AI$823,17,FALSE)=0,VLOOKUP($A603,Economática!$A$3:$AI$823,17,FALSE)=\"-\"),1/0,VLOOKUP($A603,Economática!$A$3:$AI$823,17,FALSE)))","v":""},{"$f":"IF($A603=\"\",\"\",IF(OR(VLOOKUP($A603,Economática!$A$3:$AI$823,18,FALSE)=0,VLOOKUP($A603,Economática!$A$3:$AI$823,18,FALSE)=\"-\"),1/0,VLOOKUP($A603,Economática!$A$3:$AI$823,18,FALSE)))","v":""},{"$f":"IF($A603=\"\",\"\",IF(OR(VLOOKUP($A603,Economática!$A$3:$AI$823,19,FALSE)=0,VLOOKUP($A603,Economática!$A$3:$AI$823,19,FALSE)=\"-\"),1/0,VLOOKUP($A603,Economática!$A$3:$AI$823,19,FALSE)))","v":""},{"$f":"IF($A603=\"\",\"\",VLOOKUP($A603,Economática!$A$3:$AI$823,20,FALSE)/E603)","v":""},"","","",{"$f":"IF($A603=\"\",\"\",IF(OR(VLOOKUP($A603,Economática!$A$3:$AI$823,21,FALSE)/100=0,VLOOKUP($A603,Economática!$A$3:$AI$823,21,FALSE)/100=\"-\"),1/0,VLOOKUP($A603,Economática!$A$3:$AI$823,21,FALSE)/100))","v":""},{"$f":"IF($A603=\"\",\"\",IF(OR(VLOOKUP($A603,Economática!$A$3:$AI$823,22,FALSE)/100=0,VLOOKUP($A603,Economática!$A$3:$AI$823,22,FALSE)/100=\"-\"),1/0,VLOOKUP($A603,Economática!$A$3:$AI$823,22,FALSE)/100))","v":""},{"$f":"IF($A603=\"\",\"\",IF(OR(VLOOKUP($A603,Economática!$A$3:$AI$823,23,FALSE)=0,VLOOKUP($A603,Economática!$A$3:$AI$823,23,FALSE)=\"-\"),1/0,VLOOKUP($A603,Economática!$A$3:$AI$823,23,FALSE)))","v":""},{"$f":"IF($A603=\"\",\"\",IF(OR(VLOOKUP($A603,Economática!$A$3:$AI$823,24,FALSE)=0,VLOOKUP($A603,Economática!$A$3:$AI$823,24,FALSE)=\"-\"),1/0,VLOOKUP($A603,Economática!$A$3:$AI$823,24,FALSE)))","v":""},{"$f":"IF($A603=\"\",\"\",IF(OR(VLOOKUP($A603,Economática!$A$3:$AI$823,25,FALSE)=0,VLOOKUP($A603,Economática!$A$3:$AI$823,25,FALSE)=\"-\"),1/0,VLOOKUP($A603,Economática!$A$3:$AI$823,25,FALSE)))","v":""},{"$f":"IF($A603=\"\",\"\",IF(ISERROR((F603+VLOOKUP($A603,Economática!$A$3:$AI$823,26,FALSE))/Y603),(F603+VLOOKUP($A603,Economática!$A$3:$AI$823,26,FALSE))/Y603,(F603+VLOOKUP($A603,Economática!$A$3:$AI$823,26,FALSE))/Y603))","v":""},{"$f":"IF($A603=\"\",\"\",IF(OR(-VLOOKUP($A603,Economática!$A$3:$AI$823,27,FALSE)=0,-VLOOKUP($A603,Economática!$A$3:$AI$823,27,FALSE)=\"-\"),1/0,-VLOOKUP($A603,Economática!$A$3:$AI$823,27,FALSE)))","v":""},"",{"$f":"IF($A603=\"\",\"\",IF(OR(VLOOKUP($A603,Economática!$A$3:$AI$823,28,FALSE)=0,VLOOKUP($A603,Economática!$A$3:$AI$823,28,FALSE)=\"-\"),1/0,VLOOKUP($A603,Economática!$A$3:$AI$823,28,FALSE)))","v":""},{"$f":"IF($A603=\"\",\"\",IF(OR(VLOOKUP($A603,Economática!$A$3:$AI$823,29,FALSE)=0,VLOOKUP($A603,Economática!$A$3:$AI$823,29,FALSE)=\"-\"),1/0,VLOOKUP($A603,Economática!$A$3:$AI$823,29,FALSE)))","v":""},{"$f":"IF($A603=\"\",\"\",IF(OR(VLOOKUP($A603,Economática!$A$3:$AI$823,30,FALSE)/E603=0,VLOOKUP($A603,Economática!$A$3:$AI$823,30,FALSE)/E603=\"-\",VLOOKUP($A603,Economática!$A$3:$AI$823,30,FALSE)/E603<33.33%,VLOOKUP($A603,Economática!$A$3:$AI$823,30,FALSE)/E603>100%),1/0,VLOOKUP($A603,Economática!$A$3:$AI$823,30,FALSE)/E603))","v":""},"",{"$f":"IF($A603=\"\",\"\",IF(OR(VLOOKUP($A603,Economática!$A$3:$AI$823,25,FALSE)=0,VLOOKUP($A603,Economática!$A$3:$AI$823,25,FALSE)=\"-\"),1/0,VLOOKUP($A603,Economática!$A$3:$AI$823,25,FALSE)))","v":""},{"$f":"CONCATENATE(Economática!B581,\" \",Economática!C581)","v":" "}]
[{"$f":"IF(Economática!AG582=\"\",\"\",Economática!AG582)","v":""},{"$f":"IF($A604=\"\",\"\",VLOOKUP(VLOOKUP($A604,Economática!$A$3:$AI$823,6,FALSE),Correção!$B$16:$C$36,2,FALSE))","v":""},{"$f":"IF(Economática!B582=\"\",\"\",Economática!B582)","v":""},{"$f":"IF($A604=\"\",\"\",IF(OR(VLOOKUP($A604,Economática!$A$3:$AI$823,8,FALSE)=0,VLOOKUP($A604,Economática!$A$3:$AI$823,8,FALSE)=\"-\"),1/0,VLOOKUP($A604,Economática!$A$3:$AI$823,8,FALSE)))","v":""},{"$f":"IF(A604=\"\",\"\",IF(ISERROR(VLOOKUP(A604,Correção!$B$2:$G$13,9,FALSE)),VLOOKUP($A604,Economática!$A$3:$AI$823,9,FALSE),VLOOKUP(A604,Correção!$B$2:$G$13,9,FALSE)))","v":""},{"$f":"IF($A604=\"\",\"\",Economática!G582)","v":""},{"$f":"IF($A604=\"\",\"\",IF(OR(VLOOKUP($A604,Economática!$A$3:$AI$823,10,FALSE)=0,VLOOKUP($A604,Economática!$A$3:$AI$823,10,FALSE)=\"-\"),1/0,VLOOKUP($A604,Economática!$A$3:$AI$823,10,FALSE)))","v":""},{"$f":"IF($A604=\"\",\"\",IF(OR(VLOOKUP($A604,Economática!$A$3:$AI$823,11,FALSE)=0,VLOOKUP($A604,Economática!$A$3:$AI$823,11,FALSE)=\"-\"),1/0,VLOOKUP($A604,Economática!$A$3:$AI$823,11,FALSE)))","v":""},{"$f":"IF($A604=\"\",\"\",IF(OR(VLOOKUP($A604,Economática!$A$3:$AI$823,12,FALSE)=0,VLOOKUP($A604,Economática!$A$3:$AI$823,12,FALSE)=\"-\"),1/0,VLOOKUP($A604,Economática!$A$3:$AI$823,12,FALSE)))","v":""},{"$f":"IF($A604=\"\",\"\",IF(OR(VLOOKUP($A604,Economática!$A$3:$AI$823,13,FALSE)=0,VLOOKUP($A604,Economática!$A$3:$AI$823,13,FALSE)=\"-\"),1/0,VLOOKUP($A604,Economática!$A$3:$AI$823,13,FALSE)))","v":""},{"$f":"IF($A604=\"\",\"\",IF(OR(VLOOKUP($A604,Economática!$A$3:$AI$823,14,FALSE)=0,VLOOKUP($A604,Economática!$A$3:$AI$823,14,FALSE)=\"-\"),1/0,VLOOKUP($A604,Economática!$A$3:$AI$823,14,FALSE)))","v":""},{"$f":"IF($A604=\"\",\"\",IF(OR(VLOOKUP($A604,Economática!$A$3:$AI$823,15,FALSE)=0,VLOOKUP($A604,Economática!$A$3:$AI$823,15,FALSE)=\"-\"),1/0,VLOOKUP($A604,Economática!$A$3:$AI$823,15,FALSE)))","v":""},{"$f":"IF($A604=\"\",\"\",IF(OR(VLOOKUP($A604,Economática!$A$3:$AI$823,16,FALSE)=0,VLOOKUP($A604,Economática!$A$3:$AI$823,16,FALSE)=\"-\"),1/0,VLOOKUP($A604,Economática!$A$3:$AI$823,16,FALSE)))","v":""},{"$f":"IF($A604=\"\",\"\",IF(OR(VLOOKUP($A604,Economática!$A$3:$AI$823,17,FALSE)=0,VLOOKUP($A604,Economática!$A$3:$AI$823,17,FALSE)=\"-\"),1/0,VLOOKUP($A604,Economática!$A$3:$AI$823,17,FALSE)))","v":""},{"$f":"IF($A604=\"\",\"\",IF(OR(VLOOKUP($A604,Economática!$A$3:$AI$823,18,FALSE)=0,VLOOKUP($A604,Economática!$A$3:$AI$823,18,FALSE)=\"-\"),1/0,VLOOKUP($A604,Economática!$A$3:$AI$823,18,FALSE)))","v":""},{"$f":"IF($A604=\"\",\"\",IF(OR(VLOOKUP($A604,Economática!$A$3:$AI$823,19,FALSE)=0,VLOOKUP($A604,Economática!$A$3:$AI$823,19,FALSE)=\"-\"),1/0,VLOOKUP($A604,Economática!$A$3:$AI$823,19,FALSE)))","v":""},{"$f":"IF($A604=\"\",\"\",VLOOKUP($A604,Economática!$A$3:$AI$823,20,FALSE)/E604)","v":""},"","","",{"$f":"IF($A604=\"\",\"\",IF(OR(VLOOKUP($A604,Economática!$A$3:$AI$823,21,FALSE)/100=0,VLOOKUP($A604,Economática!$A$3:$AI$823,21,FALSE)/100=\"-\"),1/0,VLOOKUP($A604,Economática!$A$3:$AI$823,21,FALSE)/100))","v":""},{"$f":"IF($A604=\"\",\"\",IF(OR(VLOOKUP($A604,Economática!$A$3:$AI$823,22,FALSE)/100=0,VLOOKUP($A604,Economática!$A$3:$AI$823,22,FALSE)/100=\"-\"),1/0,VLOOKUP($A604,Economática!$A$3:$AI$823,22,FALSE)/100))","v":""},{"$f":"IF($A604=\"\",\"\",IF(OR(VLOOKUP($A604,Economática!$A$3:$AI$823,23,FALSE)=0,VLOOKUP($A604,Economática!$A$3:$AI$823,23,FALSE)=\"-\"),1/0,VLOOKUP($A604,Economática!$A$3:$AI$823,23,FALSE)))","v":""},{"$f":"IF($A604=\"\",\"\",IF(OR(VLOOKUP($A604,Economática!$A$3:$AI$823,24,FALSE)=0,VLOOKUP($A604,Economática!$A$3:$AI$823,24,FALSE)=\"-\"),1/0,VLOOKUP($A604,Economática!$A$3:$AI$823,24,FALSE)))","v":""},{"$f":"IF($A604=\"\",\"\",IF(OR(VLOOKUP($A604,Economática!$A$3:$AI$823,25,FALSE)=0,VLOOKUP($A604,Economática!$A$3:$AI$823,25,FALSE)=\"-\"),1/0,VLOOKUP($A604,Economática!$A$3:$AI$823,25,FALSE)))","v":""},{"$f":"IF($A604=\"\",\"\",IF(ISERROR((F604+VLOOKUP($A604,Economática!$A$3:$AI$823,26,FALSE))/Y604),(F604+VLOOKUP($A604,Economática!$A$3:$AI$823,26,FALSE))/Y604,(F604+VLOOKUP($A604,Economática!$A$3:$AI$823,26,FALSE))/Y604))","v":""},{"$f":"IF($A604=\"\",\"\",IF(OR(-VLOOKUP($A604,Economática!$A$3:$AI$823,27,FALSE)=0,-VLOOKUP($A604,Economática!$A$3:$AI$823,27,FALSE)=\"-\"),1/0,-VLOOKUP($A604,Economática!$A$3:$AI$823,27,FALSE)))","v":""},"",{"$f":"IF($A604=\"\",\"\",IF(OR(VLOOKUP($A604,Economática!$A$3:$AI$823,28,FALSE)=0,VLOOKUP($A604,Economática!$A$3:$AI$823,28,FALSE)=\"-\"),1/0,VLOOKUP($A604,Economática!$A$3:$AI$823,28,FALSE)))","v":""},{"$f":"IF($A604=\"\",\"\",IF(OR(VLOOKUP($A604,Economática!$A$3:$AI$823,29,FALSE)=0,VLOOKUP($A604,Economática!$A$3:$AI$823,29,FALSE)=\"-\"),1/0,VLOOKUP($A604,Economática!$A$3:$AI$823,29,FALSE)))","v":""},{"$f":"IF($A604=\"\",\"\",IF(OR(VLOOKUP($A604,Economática!$A$3:$AI$823,30,FALSE)/E604=0,VLOOKUP($A604,Economática!$A$3:$AI$823,30,FALSE)/E604=\"-\",VLOOKUP($A604,Economática!$A$3:$AI$823,30,FALSE)/E604<33.33%,VLOOKUP($A604,Economática!$A$3:$AI$823,30,FALSE)/E604>100%),1/0,VLOOKUP($A604,Economática!$A$3:$AI$823,30,FALSE)/E604))","v":""},"",{"$f":"IF($A604=\"\",\"\",IF(OR(VLOOKUP($A604,Economática!$A$3:$AI$823,25,FALSE)=0,VLOOKUP($A604,Economática!$A$3:$AI$823,25,FALSE)=\"-\"),1/0,VLOOKUP($A604,Economática!$A$3:$AI$823,25,FALSE)))","v":""},{"$f":"CONCATENATE(Economática!B582,\" \",Economática!C582)","v":" "}]
[{"$f":"IF(Economática!AG583=\"\",\"\",Economática!AG583)","v":""},{"$f":"IF($A605=\"\",\"\",VLOOKUP(VLOOKUP($A605,Economática!$A$3:$AI$823,6,FALSE),Correção!$B$16:$C$36,2,FALSE))","v":""},{"$f":"IF(Economática!B583=\"\",\"\",Economática!B583)","v":""},{"$f":"IF($A605=\"\",\"\",IF(OR(VLOOKUP($A605,Economática!$A$3:$AI$823,8,FALSE)=0,VLOOKUP($A605,Economática!$A$3:$AI$823,8,FALSE)=\"-\"),1/0,VLOOKUP($A605,Economática!$A$3:$AI$823,8,FALSE)))","v":""},{"$f":"IF(A605=\"\",\"\",IF(ISERROR(VLOOKUP(A605,Correção!$B$2:$G$13,9,FALSE)),VLOOKUP($A605,Economática!$A$3:$AI$823,9,FALSE),VLOOKUP(A605,Correção!$B$2:$G$13,9,FALSE)))","v":""},{"$f":"IF($A605=\"\",\"\",Economática!G583)","v":""},{"$f":"IF($A605=\"\",\"\",IF(OR(VLOOKUP($A605,Economática!$A$3:$AI$823,10,FALSE)=0,VLOOKUP($A605,Economática!$A$3:$AI$823,10,FALSE)=\"-\"),1/0,VLOOKUP($A605,Economática!$A$3:$AI$823,10,FALSE)))","v":""},{"$f":"IF($A605=\"\",\"\",IF(OR(VLOOKUP($A605,Economática!$A$3:$AI$823,11,FALSE)=0,VLOOKUP($A605,Economática!$A$3:$AI$823,11,FALSE)=\"-\"),1/0,VLOOKUP($A605,Economática!$A$3:$AI$823,11,FALSE)))","v":""},{"$f":"IF($A605=\"\",\"\",IF(OR(VLOOKUP($A605,Economática!$A$3:$AI$823,12,FALSE)=0,VLOOKUP($A605,Economática!$A$3:$AI$823,12,FALSE)=\"-\"),1/0,VLOOKUP($A605,Economática!$A$3:$AI$823,12,FALSE)))","v":""},{"$f":"IF($A605=\"\",\"\",IF(OR(VLOOKUP($A605,Economática!$A$3:$AI$823,13,FALSE)=0,VLOOKUP($A605,Economática!$A$3:$AI$823,13,FALSE)=\"-\"),1/0,VLOOKUP($A605,Economática!$A$3:$AI$823,13,FALSE)))","v":""},{"$f":"IF($A605=\"\",\"\",IF(OR(VLOOKUP($A605,Economática!$A$3:$AI$823,14,FALSE)=0,VLOOKUP($A605,Economática!$A$3:$AI$823,14,FALSE)=\"-\"),1/0,VLOOKUP($A605,Economática!$A$3:$AI$823,14,FALSE)))","v":""},{"$f":"IF($A605=\"\",\"\",IF(OR(VLOOKUP($A605,Economática!$A$3:$AI$823,15,FALSE)=0,VLOOKUP($A605,Economática!$A$3:$AI$823,15,FALSE)=\"-\"),1/0,VLOOKUP($A605,Economática!$A$3:$AI$823,15,FALSE)))","v":""},{"$f":"IF($A605=\"\",\"\",IF(OR(VLOOKUP($A605,Economática!$A$3:$AI$823,16,FALSE)=0,VLOOKUP($A605,Economática!$A$3:$AI$823,16,FALSE)=\"-\"),1/0,VLOOKUP($A605,Economática!$A$3:$AI$823,16,FALSE)))","v":""},{"$f":"IF($A605=\"\",\"\",IF(OR(VLOOKUP($A605,Economática!$A$3:$AI$823,17,FALSE)=0,VLOOKUP($A605,Economática!$A$3:$AI$823,17,FALSE)=\"-\"),1/0,VLOOKUP($A605,Economática!$A$3:$AI$823,17,FALSE)))","v":""},{"$f":"IF($A605=\"\",\"\",IF(OR(VLOOKUP($A605,Economática!$A$3:$AI$823,18,FALSE)=0,VLOOKUP($A605,Economática!$A$3:$AI$823,18,FALSE)=\"-\"),1/0,VLOOKUP($A605,Economática!$A$3:$AI$823,18,FALSE)))","v":""},{"$f":"IF($A605=\"\",\"\",IF(OR(VLOOKUP($A605,Economática!$A$3:$AI$823,19,FALSE)=0,VLOOKUP($A605,Economática!$A$3:$AI$823,19,FALSE)=\"-\"),1/0,VLOOKUP($A605,Economática!$A$3:$AI$823,19,FALSE)))","v":""},{"$f":"IF($A605=\"\",\"\",VLOOKUP($A605,Economática!$A$3:$AI$823,20,FALSE)/E605)","v":""},"","","",{"$f":"IF($A605=\"\",\"\",IF(OR(VLOOKUP($A605,Economática!$A$3:$AI$823,21,FALSE)/100=0,VLOOKUP($A605,Economática!$A$3:$AI$823,21,FALSE)/100=\"-\"),1/0,VLOOKUP($A605,Economática!$A$3:$AI$823,21,FALSE)/100))","v":""},{"$f":"IF($A605=\"\",\"\",IF(OR(VLOOKUP($A605,Economática!$A$3:$AI$823,22,FALSE)/100=0,VLOOKUP($A605,Economática!$A$3:$AI$823,22,FALSE)/100=\"-\"),1/0,VLOOKUP($A605,Economática!$A$3:$AI$823,22,FALSE)/100))","v":""},{"$f":"IF($A605=\"\",\"\",IF(OR(VLOOKUP($A605,Economática!$A$3:$AI$823,23,FALSE)=0,VLOOKUP($A605,Economática!$A$3:$AI$823,23,FALSE)=\"-\"),1/0,VLOOKUP($A605,Economática!$A$3:$AI$823,23,FALSE)))","v":""},{"$f":"IF($A605=\"\",\"\",IF(OR(VLOOKUP($A605,Economática!$A$3:$AI$823,24,FALSE)=0,VLOOKUP($A605,Economática!$A$3:$AI$823,24,FALSE)=\"-\"),1/0,VLOOKUP($A605,Economática!$A$3:$AI$823,24,FALSE)))","v":""},{"$f":"IF($A605=\"\",\"\",IF(OR(VLOOKUP($A605,Economática!$A$3:$AI$823,25,FALSE)=0,VLOOKUP($A605,Economática!$A$3:$AI$823,25,FALSE)=\"-\"),1/0,VLOOKUP($A605,Economática!$A$3:$AI$823,25,FALSE)))","v":""},{"$f":"IF($A605=\"\",\"\",IF(ISERROR((F605+VLOOKUP($A605,Economática!$A$3:$AI$823,26,FALSE))/Y605),(F605+VLOOKUP($A605,Economática!$A$3:$AI$823,26,FALSE))/Y605,(F605+VLOOKUP($A605,Economática!$A$3:$AI$823,26,FALSE))/Y605))","v":""},{"$f":"IF($A605=\"\",\"\",IF(OR(-VLOOKUP($A605,Economática!$A$3:$AI$823,27,FALSE)=0,-VLOOKUP($A605,Economática!$A$3:$AI$823,27,FALSE)=\"-\"),1/0,-VLOOKUP($A605,Economática!$A$3:$AI$823,27,FALSE)))","v":""},"",{"$f":"IF($A605=\"\",\"\",IF(OR(VLOOKUP($A605,Economática!$A$3:$AI$823,28,FALSE)=0,VLOOKUP($A605,Economática!$A$3:$AI$823,28,FALSE)=\"-\"),1/0,VLOOKUP($A605,Economática!$A$3:$AI$823,28,FALSE)))","v":""},{"$f":"IF($A605=\"\",\"\",IF(OR(VLOOKUP($A605,Economática!$A$3:$AI$823,29,FALSE)=0,VLOOKUP($A605,Economática!$A$3:$AI$823,29,FALSE)=\"-\"),1/0,VLOOKUP($A605,Economática!$A$3:$AI$823,29,FALSE)))","v":""},{"$f":"IF($A605=\"\",\"\",IF(OR(VLOOKUP($A605,Economática!$A$3:$AI$823,30,FALSE)/E605=0,VLOOKUP($A605,Economática!$A$3:$AI$823,30,FALSE)/E605=\"-\",VLOOKUP($A605,Economática!$A$3:$AI$823,30,FALSE)/E605<33.33%,VLOOKUP($A605,Economática!$A$3:$AI$823,30,FALSE)/E605>100%),1/0,VLOOKUP($A605,Economática!$A$3:$AI$823,30,FALSE)/E605))","v":""},"",{"$f":"IF($A605=\"\",\"\",IF(OR(VLOOKUP($A605,Economática!$A$3:$AI$823,25,FALSE)=0,VLOOKUP($A605,Economática!$A$3:$AI$823,25,FALSE)=\"-\"),1/0,VLOOKUP($A605,Economática!$A$3:$AI$823,25,FALSE)))","v":""},{"$f":"CONCATENATE(Economática!B583,\" \",Economática!C583)","v":" "}]
[{"$f":"IF(Economática!AG584=\"\",\"\",Economática!AG584)","v":""},{"$f":"IF($A606=\"\",\"\",VLOOKUP(VLOOKUP($A606,Economática!$A$3:$AI$823,6,FALSE),Correção!$B$16:$C$36,2,FALSE))","v":""},{"$f":"IF(Economática!B584=\"\",\"\",Economática!B584)","v":""},{"$f":"IF($A606=\"\",\"\",IF(OR(VLOOKUP($A606,Economática!$A$3:$AI$823,8,FALSE)=0,VLOOKUP($A606,Economática!$A$3:$AI$823,8,FALSE)=\"-\"),1/0,VLOOKUP($A606,Economática!$A$3:$AI$823,8,FALSE)))","v":""},{"$f":"IF(A606=\"\",\"\",IF(ISERROR(VLOOKUP(A606,Correção!$B$2:$G$13,9,FALSE)),VLOOKUP($A606,Economática!$A$3:$AI$823,9,FALSE),VLOOKUP(A606,Correção!$B$2:$G$13,9,FALSE)))","v":""},{"$f":"IF($A606=\"\",\"\",Economática!G584)","v":""},{"$f":"IF($A606=\"\",\"\",IF(OR(VLOOKUP($A606,Economática!$A$3:$AI$823,10,FALSE)=0,VLOOKUP($A606,Economática!$A$3:$AI$823,10,FALSE)=\"-\"),1/0,VLOOKUP($A606,Economática!$A$3:$AI$823,10,FALSE)))","v":""},{"$f":"IF($A606=\"\",\"\",IF(OR(VLOOKUP($A606,Economática!$A$3:$AI$823,11,FALSE)=0,VLOOKUP($A606,Economática!$A$3:$AI$823,11,FALSE)=\"-\"),1/0,VLOOKUP($A606,Economática!$A$3:$AI$823,11,FALSE)))","v":""},{"$f":"IF($A606=\"\",\"\",IF(OR(VLOOKUP($A606,Economática!$A$3:$AI$823,12,FALSE)=0,VLOOKUP($A606,Economática!$A$3:$AI$823,12,FALSE)=\"-\"),1/0,VLOOKUP($A606,Economática!$A$3:$AI$823,12,FALSE)))","v":""},{"$f":"IF($A606=\"\",\"\",IF(OR(VLOOKUP($A606,Economática!$A$3:$AI$823,13,FALSE)=0,VLOOKUP($A606,Economática!$A$3:$AI$823,13,FALSE)=\"-\"),1/0,VLOOKUP($A606,Economática!$A$3:$AI$823,13,FALSE)))","v":""},{"$f":"IF($A606=\"\",\"\",IF(OR(VLOOKUP($A606,Economática!$A$3:$AI$823,14,FALSE)=0,VLOOKUP($A606,Economática!$A$3:$AI$823,14,FALSE)=\"-\"),1/0,VLOOKUP($A606,Economática!$A$3:$AI$823,14,FALSE)))","v":""},{"$f":"IF($A606=\"\",\"\",IF(OR(VLOOKUP($A606,Economática!$A$3:$AI$823,15,FALSE)=0,VLOOKUP($A606,Economática!$A$3:$AI$823,15,FALSE)=\"-\"),1/0,VLOOKUP($A606,Economática!$A$3:$AI$823,15,FALSE)))","v":""},{"$f":"IF($A606=\"\",\"\",IF(OR(VLOOKUP($A606,Economática!$A$3:$AI$823,16,FALSE)=0,VLOOKUP($A606,Economática!$A$3:$AI$823,16,FALSE)=\"-\"),1/0,VLOOKUP($A606,Economática!$A$3:$AI$823,16,FALSE)))","v":""},{"$f":"IF($A606=\"\",\"\",IF(OR(VLOOKUP($A606,Economática!$A$3:$AI$823,17,FALSE)=0,VLOOKUP($A606,Economática!$A$3:$AI$823,17,FALSE)=\"-\"),1/0,VLOOKUP($A606,Economática!$A$3:$AI$823,17,FALSE)))","v":""},{"$f":"IF($A606=\"\",\"\",IF(OR(VLOOKUP($A606,Economática!$A$3:$AI$823,18,FALSE)=0,VLOOKUP($A606,Economática!$A$3:$AI$823,18,FALSE)=\"-\"),1/0,VLOOKUP($A606,Economática!$A$3:$AI$823,18,FALSE)))","v":""},{"$f":"IF($A606=\"\",\"\",IF(OR(VLOOKUP($A606,Economática!$A$3:$AI$823,19,FALSE)=0,VLOOKUP($A606,Economática!$A$3:$AI$823,19,FALSE)=\"-\"),1/0,VLOOKUP($A606,Economática!$A$3:$AI$823,19,FALSE)))","v":""},{"$f":"IF($A606=\"\",\"\",VLOOKUP($A606,Economática!$A$3:$AI$823,20,FALSE)/E606)","v":""},"","","",{"$f":"IF($A606=\"\",\"\",IF(OR(VLOOKUP($A606,Economática!$A$3:$AI$823,21,FALSE)/100=0,VLOOKUP($A606,Economática!$A$3:$AI$823,21,FALSE)/100=\"-\"),1/0,VLOOKUP($A606,Economática!$A$3:$AI$823,21,FALSE)/100))","v":""},{"$f":"IF($A606=\"\",\"\",IF(OR(VLOOKUP($A606,Economática!$A$3:$AI$823,22,FALSE)/100=0,VLOOKUP($A606,Economática!$A$3:$AI$823,22,FALSE)/100=\"-\"),1/0,VLOOKUP($A606,Economática!$A$3:$AI$823,22,FALSE)/100))","v":""},{"$f":"IF($A606=\"\",\"\",IF(OR(VLOOKUP($A606,Economática!$A$3:$AI$823,23,FALSE)=0,VLOOKUP($A606,Economática!$A$3:$AI$823,23,FALSE)=\"-\"),1/0,VLOOKUP($A606,Economática!$A$3:$AI$823,23,FALSE)))","v":""},{"$f":"IF($A606=\"\",\"\",IF(OR(VLOOKUP($A606,Economática!$A$3:$AI$823,24,FALSE)=0,VLOOKUP($A606,Economática!$A$3:$AI$823,24,FALSE)=\"-\"),1/0,VLOOKUP($A606,Economática!$A$3:$AI$823,24,FALSE)))","v":""},{"$f":"IF($A606=\"\",\"\",IF(OR(VLOOKUP($A606,Economática!$A$3:$AI$823,25,FALSE)=0,VLOOKUP($A606,Economática!$A$3:$AI$823,25,FALSE)=\"-\"),1/0,VLOOKUP($A606,Economática!$A$3:$AI$823,25,FALSE)))","v":""},{"$f":"IF($A606=\"\",\"\",IF(ISERROR((F606+VLOOKUP($A606,Economática!$A$3:$AI$823,26,FALSE))/Y606),(F606+VLOOKUP($A606,Economática!$A$3:$AI$823,26,FALSE))/Y606,(F606+VLOOKUP($A606,Economática!$A$3:$AI$823,26,FALSE))/Y606))","v":""},{"$f":"IF($A606=\"\",\"\",IF(OR(-VLOOKUP($A606,Economática!$A$3:$AI$823,27,FALSE)=0,-VLOOKUP($A606,Economática!$A$3:$AI$823,27,FALSE)=\"-\"),1/0,-VLOOKUP($A606,Economática!$A$3:$AI$823,27,FALSE)))","v":""},"",{"$f":"IF($A606=\"\",\"\",IF(OR(VLOOKUP($A606,Economática!$A$3:$AI$823,28,FALSE)=0,VLOOKUP($A606,Economática!$A$3:$AI$823,28,FALSE)=\"-\"),1/0,VLOOKUP($A606,Economática!$A$3:$AI$823,28,FALSE)))","v":""},{"$f":"IF($A606=\"\",\"\",IF(OR(VLOOKUP($A606,Economática!$A$3:$AI$823,29,FALSE)=0,VLOOKUP($A606,Economática!$A$3:$AI$823,29,FALSE)=\"-\"),1/0,VLOOKUP($A606,Economática!$A$3:$AI$823,29,FALSE)))","v":""},{"$f":"IF($A606=\"\",\"\",IF(OR(VLOOKUP($A606,Economática!$A$3:$AI$823,30,FALSE)/E606=0,VLOOKUP($A606,Economática!$A$3:$AI$823,30,FALSE)/E606=\"-\",VLOOKUP($A606,Economática!$A$3:$AI$823,30,FALSE)/E606<33.33%,VLOOKUP($A606,Economática!$A$3:$AI$823,30,FALSE)/E606>100%),1/0,VLOOKUP($A606,Economática!$A$3:$AI$823,30,FALSE)/E606))","v":""},"",{"$f":"IF($A606=\"\",\"\",IF(OR(VLOOKUP($A606,Economática!$A$3:$AI$823,25,FALSE)=0,VLOOKUP($A606,Economática!$A$3:$AI$823,25,FALSE)=\"-\"),1/0,VLOOKUP($A606,Economática!$A$3:$AI$823,25,FALSE)))","v":""},{"$f":"CONCATENATE(Economática!B584,\" \",Economática!C584)","v":" "}]
[{"$f":"IF(Economática!AG585=\"\",\"\",Economática!AG585)","v":""},{"$f":"IF($A607=\"\",\"\",VLOOKUP(VLOOKUP($A607,Economática!$A$3:$AI$823,6,FALSE),Correção!$B$16:$C$36,2,FALSE))","v":""},{"$f":"IF(Economática!B585=\"\",\"\",Economática!B585)","v":""},{"$f":"IF($A607=\"\",\"\",IF(OR(VLOOKUP($A607,Economática!$A$3:$AI$823,8,FALSE)=0,VLOOKUP($A607,Economática!$A$3:$AI$823,8,FALSE)=\"-\"),1/0,VLOOKUP($A607,Economática!$A$3:$AI$823,8,FALSE)))","v":""},{"$f":"IF(A607=\"\",\"\",IF(ISERROR(VLOOKUP(A607,Correção!$B$2:$G$13,9,FALSE)),VLOOKUP($A607,Economática!$A$3:$AI$823,9,FALSE),VLOOKUP(A607,Correção!$B$2:$G$13,9,FALSE)))","v":""},{"$f":"IF($A607=\"\",\"\",Economática!G585)","v":""},{"$f":"IF($A607=\"\",\"\",IF(OR(VLOOKUP($A607,Economática!$A$3:$AI$823,10,FALSE)=0,VLOOKUP($A607,Economática!$A$3:$AI$823,10,FALSE)=\"-\"),1/0,VLOOKUP($A607,Economática!$A$3:$AI$823,10,FALSE)))","v":""},{"$f":"IF($A607=\"\",\"\",IF(OR(VLOOKUP($A607,Economática!$A$3:$AI$823,11,FALSE)=0,VLOOKUP($A607,Economática!$A$3:$AI$823,11,FALSE)=\"-\"),1/0,VLOOKUP($A607,Economática!$A$3:$AI$823,11,FALSE)))","v":""},{"$f":"IF($A607=\"\",\"\",IF(OR(VLOOKUP($A607,Economática!$A$3:$AI$823,12,FALSE)=0,VLOOKUP($A607,Economática!$A$3:$AI$823,12,FALSE)=\"-\"),1/0,VLOOKUP($A607,Economática!$A$3:$AI$823,12,FALSE)))","v":""},{"$f":"IF($A607=\"\",\"\",IF(OR(VLOOKUP($A607,Economática!$A$3:$AI$823,13,FALSE)=0,VLOOKUP($A607,Economática!$A$3:$AI$823,13,FALSE)=\"-\"),1/0,VLOOKUP($A607,Economática!$A$3:$AI$823,13,FALSE)))","v":""},{"$f":"IF($A607=\"\",\"\",IF(OR(VLOOKUP($A607,Economática!$A$3:$AI$823,14,FALSE)=0,VLOOKUP($A607,Economática!$A$3:$AI$823,14,FALSE)=\"-\"),1/0,VLOOKUP($A607,Economática!$A$3:$AI$823,14,FALSE)))","v":""},{"$f":"IF($A607=\"\",\"\",IF(OR(VLOOKUP($A607,Economática!$A$3:$AI$823,15,FALSE)=0,VLOOKUP($A607,Economática!$A$3:$AI$823,15,FALSE)=\"-\"),1/0,VLOOKUP($A607,Economática!$A$3:$AI$823,15,FALSE)))","v":""},{"$f":"IF($A607=\"\",\"\",IF(OR(VLOOKUP($A607,Economática!$A$3:$AI$823,16,FALSE)=0,VLOOKUP($A607,Economática!$A$3:$AI$823,16,FALSE)=\"-\"),1/0,VLOOKUP($A607,Economática!$A$3:$AI$823,16,FALSE)))","v":""},{"$f":"IF($A607=\"\",\"\",IF(OR(VLOOKUP($A607,Economática!$A$3:$AI$823,17,FALSE)=0,VLOOKUP($A607,Economática!$A$3:$AI$823,17,FALSE)=\"-\"),1/0,VLOOKUP($A607,Economática!$A$3:$AI$823,17,FALSE)))","v":""},{"$f":"IF($A607=\"\",\"\",IF(OR(VLOOKUP($A607,Economática!$A$3:$AI$823,18,FALSE)=0,VLOOKUP($A607,Economática!$A$3:$AI$823,18,FALSE)=\"-\"),1/0,VLOOKUP($A607,Economática!$A$3:$AI$823,18,FALSE)))","v":""},{"$f":"IF($A607=\"\",\"\",IF(OR(VLOOKUP($A607,Economática!$A$3:$AI$823,19,FALSE)=0,VLOOKUP($A607,Economática!$A$3:$AI$823,19,FALSE)=\"-\"),1/0,VLOOKUP($A607,Economática!$A$3:$AI$823,19,FALSE)))","v":""},{"$f":"IF($A607=\"\",\"\",VLOOKUP($A607,Economática!$A$3:$AI$823,20,FALSE)/E607)","v":""},"","","",{"$f":"IF($A607=\"\",\"\",IF(OR(VLOOKUP($A607,Economática!$A$3:$AI$823,21,FALSE)/100=0,VLOOKUP($A607,Economática!$A$3:$AI$823,21,FALSE)/100=\"-\"),1/0,VLOOKUP($A607,Economática!$A$3:$AI$823,21,FALSE)/100))","v":""},{"$f":"IF($A607=\"\",\"\",IF(OR(VLOOKUP($A607,Economática!$A$3:$AI$823,22,FALSE)/100=0,VLOOKUP($A607,Economática!$A$3:$AI$823,22,FALSE)/100=\"-\"),1/0,VLOOKUP($A607,Economática!$A$3:$AI$823,22,FALSE)/100))","v":""},{"$f":"IF($A607=\"\",\"\",IF(OR(VLOOKUP($A607,Economática!$A$3:$AI$823,23,FALSE)=0,VLOOKUP($A607,Economática!$A$3:$AI$823,23,FALSE)=\"-\"),1/0,VLOOKUP($A607,Economática!$A$3:$AI$823,23,FALSE)))","v":""},{"$f":"IF($A607=\"\",\"\",IF(OR(VLOOKUP($A607,Economática!$A$3:$AI$823,24,FALSE)=0,VLOOKUP($A607,Economática!$A$3:$AI$823,24,FALSE)=\"-\"),1/0,VLOOKUP($A607,Economática!$A$3:$AI$823,24,FALSE)))","v":""},{"$f":"IF($A607=\"\",\"\",IF(OR(VLOOKUP($A607,Economática!$A$3:$AI$823,25,FALSE)=0,VLOOKUP($A607,Economática!$A$3:$AI$823,25,FALSE)=\"-\"),1/0,VLOOKUP($A607,Economática!$A$3:$AI$823,25,FALSE)))","v":""},{"$f":"IF($A607=\"\",\"\",IF(ISERROR((F607+VLOOKUP($A607,Economática!$A$3:$AI$823,26,FALSE))/Y607),(F607+VLOOKUP($A607,Economática!$A$3:$AI$823,26,FALSE))/Y607,(F607+VLOOKUP($A607,Economática!$A$3:$AI$823,26,FALSE))/Y607))","v":""},{"$f":"IF($A607=\"\",\"\",IF(OR(-VLOOKUP($A607,Economática!$A$3:$AI$823,27,FALSE)=0,-VLOOKUP($A607,Economática!$A$3:$AI$823,27,FALSE)=\"-\"),1/0,-VLOOKUP($A607,Economática!$A$3:$AI$823,27,FALSE)))","v":""},"",{"$f":"IF($A607=\"\",\"\",IF(OR(VLOOKUP($A607,Economática!$A$3:$AI$823,28,FALSE)=0,VLOOKUP($A607,Economática!$A$3:$AI$823,28,FALSE)=\"-\"),1/0,VLOOKUP($A607,Economática!$A$3:$AI$823,28,FALSE)))","v":""},{"$f":"IF($A607=\"\",\"\",IF(OR(VLOOKUP($A607,Economática!$A$3:$AI$823,29,FALSE)=0,VLOOKUP($A607,Economática!$A$3:$AI$823,29,FALSE)=\"-\"),1/0,VLOOKUP($A607,Economática!$A$3:$AI$823,29,FALSE)))","v":""},{"$f":"IF($A607=\"\",\"\",IF(OR(VLOOKUP($A607,Economática!$A$3:$AI$823,30,FALSE)/E607=0,VLOOKUP($A607,Economática!$A$3:$AI$823,30,FALSE)/E607=\"-\",VLOOKUP($A607,Economática!$A$3:$AI$823,30,FALSE)/E607<33.33%,VLOOKUP($A607,Economática!$A$3:$AI$823,30,FALSE)/E607>100%),1/0,VLOOKUP($A607,Economática!$A$3:$AI$823,30,FALSE)/E607))","v":""},"",{"$f":"IF($A607=\"\",\"\",IF(OR(VLOOKUP($A607,Economática!$A$3:$AI$823,25,FALSE)=0,VLOOKUP($A607,Economática!$A$3:$AI$823,25,FALSE)=\"-\"),1/0,VLOOKUP($A607,Economática!$A$3:$AI$823,25,FALSE)))","v":""},{"$f":"CONCATENATE(Economática!B585,\" \",Economática!C585)","v":" "}]
[{"$f":"IF(Economática!AG586=\"\",\"\",Economática!AG586)","v":""},{"$f":"IF($A608=\"\",\"\",VLOOKUP(VLOOKUP($A608,Economática!$A$3:$AI$823,6,FALSE),Correção!$B$16:$C$36,2,FALSE))","v":""},{"$f":"IF(Economática!B586=\"\",\"\",Economática!B586)","v":""},{"$f":"IF($A608=\"\",\"\",IF(OR(VLOOKUP($A608,Economática!$A$3:$AI$823,8,FALSE)=0,VLOOKUP($A608,Economática!$A$3:$AI$823,8,FALSE)=\"-\"),1/0,VLOOKUP($A608,Economática!$A$3:$AI$823,8,FALSE)))","v":""},{"$f":"IF(A608=\"\",\"\",IF(ISERROR(VLOOKUP(A608,Correção!$B$2:$G$13,9,FALSE)),VLOOKUP($A608,Economática!$A$3:$AI$823,9,FALSE),VLOOKUP(A608,Correção!$B$2:$G$13,9,FALSE)))","v":""},{"$f":"IF($A608=\"\",\"\",Economática!G586)","v":""},{"$f":"IF($A608=\"\",\"\",IF(OR(VLOOKUP($A608,Economática!$A$3:$AI$823,10,FALSE)=0,VLOOKUP($A608,Economática!$A$3:$AI$823,10,FALSE)=\"-\"),1/0,VLOOKUP($A608,Economática!$A$3:$AI$823,10,FALSE)))","v":""},{"$f":"IF($A608=\"\",\"\",IF(OR(VLOOKUP($A608,Economática!$A$3:$AI$823,11,FALSE)=0,VLOOKUP($A608,Economática!$A$3:$AI$823,11,FALSE)=\"-\"),1/0,VLOOKUP($A608,Economática!$A$3:$AI$823,11,FALSE)))","v":""},{"$f":"IF($A608=\"\",\"\",IF(OR(VLOOKUP($A608,Economática!$A$3:$AI$823,12,FALSE)=0,VLOOKUP($A608,Economática!$A$3:$AI$823,12,FALSE)=\"-\"),1/0,VLOOKUP($A608,Economática!$A$3:$AI$823,12,FALSE)))","v":""},{"$f":"IF($A608=\"\",\"\",IF(OR(VLOOKUP($A608,Economática!$A$3:$AI$823,13,FALSE)=0,VLOOKUP($A608,Economática!$A$3:$AI$823,13,FALSE)=\"-\"),1/0,VLOOKUP($A608,Economática!$A$3:$AI$823,13,FALSE)))","v":""},{"$f":"IF($A608=\"\",\"\",IF(OR(VLOOKUP($A608,Economática!$A$3:$AI$823,14,FALSE)=0,VLOOKUP($A608,Economática!$A$3:$AI$823,14,FALSE)=\"-\"),1/0,VLOOKUP($A608,Economática!$A$3:$AI$823,14,FALSE)))","v":""},{"$f":"IF($A608=\"\",\"\",IF(OR(VLOOKUP($A608,Economática!$A$3:$AI$823,15,FALSE)=0,VLOOKUP($A608,Economática!$A$3:$AI$823,15,FALSE)=\"-\"),1/0,VLOOKUP($A608,Economática!$A$3:$AI$823,15,FALSE)))","v":""},{"$f":"IF($A608=\"\",\"\",IF(OR(VLOOKUP($A608,Economática!$A$3:$AI$823,16,FALSE)=0,VLOOKUP($A608,Economática!$A$3:$AI$823,16,FALSE)=\"-\"),1/0,VLOOKUP($A608,Economática!$A$3:$AI$823,16,FALSE)))","v":""},{"$f":"IF($A608=\"\",\"\",IF(OR(VLOOKUP($A608,Economática!$A$3:$AI$823,17,FALSE)=0,VLOOKUP($A608,Economática!$A$3:$AI$823,17,FALSE)=\"-\"),1/0,VLOOKUP($A608,Economática!$A$3:$AI$823,17,FALSE)))","v":""},{"$f":"IF($A608=\"\",\"\",IF(OR(VLOOKUP($A608,Economática!$A$3:$AI$823,18,FALSE)=0,VLOOKUP($A608,Economática!$A$3:$AI$823,18,FALSE)=\"-\"),1/0,VLOOKUP($A608,Economática!$A$3:$AI$823,18,FALSE)))","v":""},{"$f":"IF($A608=\"\",\"\",IF(OR(VLOOKUP($A608,Economática!$A$3:$AI$823,19,FALSE)=0,VLOOKUP($A608,Economática!$A$3:$AI$823,19,FALSE)=\"-\"),1/0,VLOOKUP($A608,Economática!$A$3:$AI$823,19,FALSE)))","v":""},{"$f":"IF($A608=\"\",\"\",VLOOKUP($A608,Economática!$A$3:$AI$823,20,FALSE)/E608)","v":""},"","","",{"$f":"IF($A608=\"\",\"\",IF(OR(VLOOKUP($A608,Economática!$A$3:$AI$823,21,FALSE)/100=0,VLOOKUP($A608,Economática!$A$3:$AI$823,21,FALSE)/100=\"-\"),1/0,VLOOKUP($A608,Economática!$A$3:$AI$823,21,FALSE)/100))","v":""},{"$f":"IF($A608=\"\",\"\",IF(OR(VLOOKUP($A608,Economática!$A$3:$AI$823,22,FALSE)/100=0,VLOOKUP($A608,Economática!$A$3:$AI$823,22,FALSE)/100=\"-\"),1/0,VLOOKUP($A608,Economática!$A$3:$AI$823,22,FALSE)/100))","v":""},{"$f":"IF($A608=\"\",\"\",IF(OR(VLOOKUP($A608,Economática!$A$3:$AI$823,23,FALSE)=0,VLOOKUP($A608,Economática!$A$3:$AI$823,23,FALSE)=\"-\"),1/0,VLOOKUP($A608,Economática!$A$3:$AI$823,23,FALSE)))","v":""},{"$f":"IF($A608=\"\",\"\",IF(OR(VLOOKUP($A608,Economática!$A$3:$AI$823,24,FALSE)=0,VLOOKUP($A608,Economática!$A$3:$AI$823,24,FALSE)=\"-\"),1/0,VLOOKUP($A608,Economática!$A$3:$AI$823,24,FALSE)))","v":""},{"$f":"IF($A608=\"\",\"\",IF(OR(VLOOKUP($A608,Economática!$A$3:$AI$823,25,FALSE)=0,VLOOKUP($A608,Economática!$A$3:$AI$823,25,FALSE)=\"-\"),1/0,VLOOKUP($A608,Economática!$A$3:$AI$823,25,FALSE)))","v":""},{"$f":"IF($A608=\"\",\"\",IF(ISERROR((F608+VLOOKUP($A608,Economática!$A$3:$AI$823,26,FALSE))/Y608),(F608+VLOOKUP($A608,Economática!$A$3:$AI$823,26,FALSE))/Y608,(F608+VLOOKUP($A608,Economática!$A$3:$AI$823,26,FALSE))/Y608))","v":""},{"$f":"IF($A608=\"\",\"\",IF(OR(-VLOOKUP($A608,Economática!$A$3:$AI$823,27,FALSE)=0,-VLOOKUP($A608,Economática!$A$3:$AI$823,27,FALSE)=\"-\"),1/0,-VLOOKUP($A608,Economática!$A$3:$AI$823,27,FALSE)))","v":""},"",{"$f":"IF($A608=\"\",\"\",IF(OR(VLOOKUP($A608,Economática!$A$3:$AI$823,28,FALSE)=0,VLOOKUP($A608,Economática!$A$3:$AI$823,28,FALSE)=\"-\"),1/0,VLOOKUP($A608,Economática!$A$3:$AI$823,28,FALSE)))","v":""},{"$f":"IF($A608=\"\",\"\",IF(OR(VLOOKUP($A608,Economática!$A$3:$AI$823,29,FALSE)=0,VLOOKUP($A608,Economática!$A$3:$AI$823,29,FALSE)=\"-\"),1/0,VLOOKUP($A608,Economática!$A$3:$AI$823,29,FALSE)))","v":""},{"$f":"IF($A608=\"\",\"\",IF(OR(VLOOKUP($A608,Economática!$A$3:$AI$823,30,FALSE)/E608=0,VLOOKUP($A608,Economática!$A$3:$AI$823,30,FALSE)/E608=\"-\",VLOOKUP($A608,Economática!$A$3:$AI$823,30,FALSE)/E608<33.33%,VLOOKUP($A608,Economática!$A$3:$AI$823,30,FALSE)/E608>100%),1/0,VLOOKUP($A608,Economática!$A$3:$AI$823,30,FALSE)/E608))","v":""},"",{"$f":"IF($A608=\"\",\"\",IF(OR(VLOOKUP($A608,Economática!$A$3:$AI$823,25,FALSE)=0,VLOOKUP($A608,Economática!$A$3:$AI$823,25,FALSE)=\"-\"),1/0,VLOOKUP($A608,Economática!$A$3:$AI$823,25,FALSE)))","v":""},{"$f":"CONCATENATE(Economática!B586,\" \",Economática!C586)","v":" "}]
[{"$f":"IF(Economática!AG587=\"\",\"\",Economática!AG587)","v":""},{"$f":"IF($A609=\"\",\"\",VLOOKUP(VLOOKUP($A609,Economática!$A$3:$AI$823,6,FALSE),Correção!$B$16:$C$36,2,FALSE))","v":""},{"$f":"IF(Economática!B587=\"\",\"\",Economática!B587)","v":""},{"$f":"IF($A609=\"\",\"\",IF(OR(VLOOKUP($A609,Economática!$A$3:$AI$823,8,FALSE)=0,VLOOKUP($A609,Economática!$A$3:$AI$823,8,FALSE)=\"-\"),1/0,VLOOKUP($A609,Economática!$A$3:$AI$823,8,FALSE)))","v":""},{"$f":"IF(A609=\"\",\"\",IF(ISERROR(VLOOKUP(A609,Correção!$B$2:$G$13,9,FALSE)),VLOOKUP($A609,Economática!$A$3:$AI$823,9,FALSE),VLOOKUP(A609,Correção!$B$2:$G$13,9,FALSE)))","v":""},{"$f":"IF($A609=\"\",\"\",Economática!G587)","v":""},{"$f":"IF($A609=\"\",\"\",IF(OR(VLOOKUP($A609,Economática!$A$3:$AI$823,10,FALSE)=0,VLOOKUP($A609,Economática!$A$3:$AI$823,10,FALSE)=\"-\"),1/0,VLOOKUP($A609,Economática!$A$3:$AI$823,10,FALSE)))","v":""},{"$f":"IF($A609=\"\",\"\",IF(OR(VLOOKUP($A609,Economática!$A$3:$AI$823,11,FALSE)=0,VLOOKUP($A609,Economática!$A$3:$AI$823,11,FALSE)=\"-\"),1/0,VLOOKUP($A609,Economática!$A$3:$AI$823,11,FALSE)))","v":""},{"$f":"IF($A609=\"\",\"\",IF(OR(VLOOKUP($A609,Economática!$A$3:$AI$823,12,FALSE)=0,VLOOKUP($A609,Economática!$A$3:$AI$823,12,FALSE)=\"-\"),1/0,VLOOKUP($A609,Economática!$A$3:$AI$823,12,FALSE)))","v":""},{"$f":"IF($A609=\"\",\"\",IF(OR(VLOOKUP($A609,Economática!$A$3:$AI$823,13,FALSE)=0,VLOOKUP($A609,Economática!$A$3:$AI$823,13,FALSE)=\"-\"),1/0,VLOOKUP($A609,Economática!$A$3:$AI$823,13,FALSE)))","v":""},{"$f":"IF($A609=\"\",\"\",IF(OR(VLOOKUP($A609,Economática!$A$3:$AI$823,14,FALSE)=0,VLOOKUP($A609,Economática!$A$3:$AI$823,14,FALSE)=\"-\"),1/0,VLOOKUP($A609,Economática!$A$3:$AI$823,14,FALSE)))","v":""},{"$f":"IF($A609=\"\",\"\",IF(OR(VLOOKUP($A609,Economática!$A$3:$AI$823,15,FALSE)=0,VLOOKUP($A609,Economática!$A$3:$AI$823,15,FALSE)=\"-\"),1/0,VLOOKUP($A609,Economática!$A$3:$AI$823,15,FALSE)))","v":""},{"$f":"IF($A609=\"\",\"\",IF(OR(VLOOKUP($A609,Economática!$A$3:$AI$823,16,FALSE)=0,VLOOKUP($A609,Economática!$A$3:$AI$823,16,FALSE)=\"-\"),1/0,VLOOKUP($A609,Economática!$A$3:$AI$823,16,FALSE)))","v":""},{"$f":"IF($A609=\"\",\"\",IF(OR(VLOOKUP($A609,Economática!$A$3:$AI$823,17,FALSE)=0,VLOOKUP($A609,Economática!$A$3:$AI$823,17,FALSE)=\"-\"),1/0,VLOOKUP($A609,Economática!$A$3:$AI$823,17,FALSE)))","v":""},{"$f":"IF($A609=\"\",\"\",IF(OR(VLOOKUP($A609,Economática!$A$3:$AI$823,18,FALSE)=0,VLOOKUP($A609,Economática!$A$3:$AI$823,18,FALSE)=\"-\"),1/0,VLOOKUP($A609,Economática!$A$3:$AI$823,18,FALSE)))","v":""},{"$f":"IF($A609=\"\",\"\",IF(OR(VLOOKUP($A609,Economática!$A$3:$AI$823,19,FALSE)=0,VLOOKUP($A609,Economática!$A$3:$AI$823,19,FALSE)=\"-\"),1/0,VLOOKUP($A609,Economática!$A$3:$AI$823,19,FALSE)))","v":""},{"$f":"IF($A609=\"\",\"\",VLOOKUP($A609,Economática!$A$3:$AI$823,20,FALSE)/E609)","v":""},"","","",{"$f":"IF($A609=\"\",\"\",IF(OR(VLOOKUP($A609,Economática!$A$3:$AI$823,21,FALSE)/100=0,VLOOKUP($A609,Economática!$A$3:$AI$823,21,FALSE)/100=\"-\"),1/0,VLOOKUP($A609,Economática!$A$3:$AI$823,21,FALSE)/100))","v":""},{"$f":"IF($A609=\"\",\"\",IF(OR(VLOOKUP($A609,Economática!$A$3:$AI$823,22,FALSE)/100=0,VLOOKUP($A609,Economática!$A$3:$AI$823,22,FALSE)/100=\"-\"),1/0,VLOOKUP($A609,Economática!$A$3:$AI$823,22,FALSE)/100))","v":""},{"$f":"IF($A609=\"\",\"\",IF(OR(VLOOKUP($A609,Economática!$A$3:$AI$823,23,FALSE)=0,VLOOKUP($A609,Economática!$A$3:$AI$823,23,FALSE)=\"-\"),1/0,VLOOKUP($A609,Economática!$A$3:$AI$823,23,FALSE)))","v":""},{"$f":"IF($A609=\"\",\"\",IF(OR(VLOOKUP($A609,Economática!$A$3:$AI$823,24,FALSE)=0,VLOOKUP($A609,Economática!$A$3:$AI$823,24,FALSE)=\"-\"),1/0,VLOOKUP($A609,Economática!$A$3:$AI$823,24,FALSE)))","v":""},{"$f":"IF($A609=\"\",\"\",IF(OR(VLOOKUP($A609,Economática!$A$3:$AI$823,25,FALSE)=0,VLOOKUP($A609,Economática!$A$3:$AI$823,25,FALSE)=\"-\"),1/0,VLOOKUP($A609,Economática!$A$3:$AI$823,25,FALSE)))","v":""},{"$f":"IF($A609=\"\",\"\",IF(ISERROR((F609+VLOOKUP($A609,Economática!$A$3:$AI$823,26,FALSE))/Y609),(F609+VLOOKUP($A609,Economática!$A$3:$AI$823,26,FALSE))/Y609,(F609+VLOOKUP($A609,Economática!$A$3:$AI$823,26,FALSE))/Y609))","v":""},{"$f":"IF($A609=\"\",\"\",IF(OR(-VLOOKUP($A609,Economática!$A$3:$AI$823,27,FALSE)=0,-VLOOKUP($A609,Economática!$A$3:$AI$823,27,FALSE)=\"-\"),1/0,-VLOOKUP($A609,Economática!$A$3:$AI$823,27,FALSE)))","v":""},"",{"$f":"IF($A609=\"\",\"\",IF(OR(VLOOKUP($A609,Economática!$A$3:$AI$823,28,FALSE)=0,VLOOKUP($A609,Economática!$A$3:$AI$823,28,FALSE)=\"-\"),1/0,VLOOKUP($A609,Economática!$A$3:$AI$823,28,FALSE)))","v":""},{"$f":"IF($A609=\"\",\"\",IF(OR(VLOOKUP($A609,Economática!$A$3:$AI$823,29,FALSE)=0,VLOOKUP($A609,Economática!$A$3:$AI$823,29,FALSE)=\"-\"),1/0,VLOOKUP($A609,Economática!$A$3:$AI$823,29,FALSE)))","v":""},{"$f":"IF($A609=\"\",\"\",IF(OR(VLOOKUP($A609,Economática!$A$3:$AI$823,30,FALSE)/E609=0,VLOOKUP($A609,Economática!$A$3:$AI$823,30,FALSE)/E609=\"-\",VLOOKUP($A609,Economática!$A$3:$AI$823,30,FALSE)/E609<33.33%,VLOOKUP($A609,Economática!$A$3:$AI$823,30,FALSE)/E609>100%),1/0,VLOOKUP($A609,Economática!$A$3:$AI$823,30,FALSE)/E609))","v":""},"",{"$f":"IF($A609=\"\",\"\",IF(OR(VLOOKUP($A609,Economática!$A$3:$AI$823,25,FALSE)=0,VLOOKUP($A609,Economática!$A$3:$AI$823,25,FALSE)=\"-\"),1/0,VLOOKUP($A609,Economática!$A$3:$AI$823,25,FALSE)))","v":""},{"$f":"CONCATENATE(Economática!B587,\" \",Economática!C587)","v":" "}]
[{"$f":"IF(Economática!AG588=\"\",\"\",Economática!AG588)","v":""},{"$f":"IF($A610=\"\",\"\",VLOOKUP(VLOOKUP($A610,Economática!$A$3:$AI$823,6,FALSE),Correção!$B$16:$C$36,2,FALSE))","v":""},{"$f":"IF(Economática!B588=\"\",\"\",Economática!B588)","v":""},{"$f":"IF($A610=\"\",\"\",IF(OR(VLOOKUP($A610,Economática!$A$3:$AI$823,8,FALSE)=0,VLOOKUP($A610,Economática!$A$3:$AI$823,8,FALSE)=\"-\"),1/0,VLOOKUP($A610,Economática!$A$3:$AI$823,8,FALSE)))","v":""},{"$f":"IF(A610=\"\",\"\",IF(ISERROR(VLOOKUP(A610,Correção!$B$2:$G$13,9,FALSE)),VLOOKUP($A610,Economática!$A$3:$AI$823,9,FALSE),VLOOKUP(A610,Correção!$B$2:$G$13,9,FALSE)))","v":""},{"$f":"IF($A610=\"\",\"\",Economática!G588)","v":""},{"$f":"IF($A610=\"\",\"\",IF(OR(VLOOKUP($A610,Economática!$A$3:$AI$823,10,FALSE)=0,VLOOKUP($A610,Economática!$A$3:$AI$823,10,FALSE)=\"-\"),1/0,VLOOKUP($A610,Economática!$A$3:$AI$823,10,FALSE)))","v":""},{"$f":"IF($A610=\"\",\"\",IF(OR(VLOOKUP($A610,Economática!$A$3:$AI$823,11,FALSE)=0,VLOOKUP($A610,Economática!$A$3:$AI$823,11,FALSE)=\"-\"),1/0,VLOOKUP($A610,Economática!$A$3:$AI$823,11,FALSE)))","v":""},{"$f":"IF($A610=\"\",\"\",IF(OR(VLOOKUP($A610,Economática!$A$3:$AI$823,12,FALSE)=0,VLOOKUP($A610,Economática!$A$3:$AI$823,12,FALSE)=\"-\"),1/0,VLOOKUP($A610,Economática!$A$3:$AI$823,12,FALSE)))","v":""},{"$f":"IF($A610=\"\",\"\",IF(OR(VLOOKUP($A610,Economática!$A$3:$AI$823,13,FALSE)=0,VLOOKUP($A610,Economática!$A$3:$AI$823,13,FALSE)=\"-\"),1/0,VLOOKUP($A610,Economática!$A$3:$AI$823,13,FALSE)))","v":""},{"$f":"IF($A610=\"\",\"\",IF(OR(VLOOKUP($A610,Economática!$A$3:$AI$823,14,FALSE)=0,VLOOKUP($A610,Economática!$A$3:$AI$823,14,FALSE)=\"-\"),1/0,VLOOKUP($A610,Economática!$A$3:$AI$823,14,FALSE)))","v":""},{"$f":"IF($A610=\"\",\"\",IF(OR(VLOOKUP($A610,Economática!$A$3:$AI$823,15,FALSE)=0,VLOOKUP($A610,Economática!$A$3:$AI$823,15,FALSE)=\"-\"),1/0,VLOOKUP($A610,Economática!$A$3:$AI$823,15,FALSE)))","v":""},{"$f":"IF($A610=\"\",\"\",IF(OR(VLOOKUP($A610,Economática!$A$3:$AI$823,16,FALSE)=0,VLOOKUP($A610,Economática!$A$3:$AI$823,16,FALSE)=\"-\"),1/0,VLOOKUP($A610,Economática!$A$3:$AI$823,16,FALSE)))","v":""},{"$f":"IF($A610=\"\",\"\",IF(OR(VLOOKUP($A610,Economática!$A$3:$AI$823,17,FALSE)=0,VLOOKUP($A610,Economática!$A$3:$AI$823,17,FALSE)=\"-\"),1/0,VLOOKUP($A610,Economática!$A$3:$AI$823,17,FALSE)))","v":""},{"$f":"IF($A610=\"\",\"\",IF(OR(VLOOKUP($A610,Economática!$A$3:$AI$823,18,FALSE)=0,VLOOKUP($A610,Economática!$A$3:$AI$823,18,FALSE)=\"-\"),1/0,VLOOKUP($A610,Economática!$A$3:$AI$823,18,FALSE)))","v":""},{"$f":"IF($A610=\"\",\"\",IF(OR(VLOOKUP($A610,Economática!$A$3:$AI$823,19,FALSE)=0,VLOOKUP($A610,Economática!$A$3:$AI$823,19,FALSE)=\"-\"),1/0,VLOOKUP($A610,Economática!$A$3:$AI$823,19,FALSE)))","v":""},{"$f":"IF($A610=\"\",\"\",VLOOKUP($A610,Economática!$A$3:$AI$823,20,FALSE)/E610)","v":""},"","","",{"$f":"IF($A610=\"\",\"\",IF(OR(VLOOKUP($A610,Economática!$A$3:$AI$823,21,FALSE)/100=0,VLOOKUP($A610,Economática!$A$3:$AI$823,21,FALSE)/100=\"-\"),1/0,VLOOKUP($A610,Economática!$A$3:$AI$823,21,FALSE)/100))","v":""},{"$f":"IF($A610=\"\",\"\",IF(OR(VLOOKUP($A610,Economática!$A$3:$AI$823,22,FALSE)/100=0,VLOOKUP($A610,Economática!$A$3:$AI$823,22,FALSE)/100=\"-\"),1/0,VLOOKUP($A610,Economática!$A$3:$AI$823,22,FALSE)/100))","v":""},{"$f":"IF($A610=\"\",\"\",IF(OR(VLOOKUP($A610,Economática!$A$3:$AI$823,23,FALSE)=0,VLOOKUP($A610,Economática!$A$3:$AI$823,23,FALSE)=\"-\"),1/0,VLOOKUP($A610,Economática!$A$3:$AI$823,23,FALSE)))","v":""},{"$f":"IF($A610=\"\",\"\",IF(OR(VLOOKUP($A610,Economática!$A$3:$AI$823,24,FALSE)=0,VLOOKUP($A610,Economática!$A$3:$AI$823,24,FALSE)=\"-\"),1/0,VLOOKUP($A610,Economática!$A$3:$AI$823,24,FALSE)))","v":""},{"$f":"IF($A610=\"\",\"\",IF(OR(VLOOKUP($A610,Economática!$A$3:$AI$823,25,FALSE)=0,VLOOKUP($A610,Economática!$A$3:$AI$823,25,FALSE)=\"-\"),1/0,VLOOKUP($A610,Economática!$A$3:$AI$823,25,FALSE)))","v":""},{"$f":"IF($A610=\"\",\"\",IF(ISERROR((F610+VLOOKUP($A610,Economática!$A$3:$AI$823,26,FALSE))/Y610),(F610+VLOOKUP($A610,Economática!$A$3:$AI$823,26,FALSE))/Y610,(F610+VLOOKUP($A610,Economática!$A$3:$AI$823,26,FALSE))/Y610))","v":""},{"$f":"IF($A610=\"\",\"\",IF(OR(-VLOOKUP($A610,Economática!$A$3:$AI$823,27,FALSE)=0,-VLOOKUP($A610,Economática!$A$3:$AI$823,27,FALSE)=\"-\"),1/0,-VLOOKUP($A610,Economática!$A$3:$AI$823,27,FALSE)))","v":""},"",{"$f":"IF($A610=\"\",\"\",IF(OR(VLOOKUP($A610,Economática!$A$3:$AI$823,28,FALSE)=0,VLOOKUP($A610,Economática!$A$3:$AI$823,28,FALSE)=\"-\"),1/0,VLOOKUP($A610,Economática!$A$3:$AI$823,28,FALSE)))","v":""},{"$f":"IF($A610=\"\",\"\",IF(OR(VLOOKUP($A610,Economática!$A$3:$AI$823,29,FALSE)=0,VLOOKUP($A610,Economática!$A$3:$AI$823,29,FALSE)=\"-\"),1/0,VLOOKUP($A610,Economática!$A$3:$AI$823,29,FALSE)))","v":""},{"$f":"IF($A610=\"\",\"\",IF(OR(VLOOKUP($A610,Economática!$A$3:$AI$823,30,FALSE)/E610=0,VLOOKUP($A610,Economática!$A$3:$AI$823,30,FALSE)/E610=\"-\",VLOOKUP($A610,Economática!$A$3:$AI$823,30,FALSE)/E610<33.33%,VLOOKUP($A610,Economática!$A$3:$AI$823,30,FALSE)/E610>100%),1/0,VLOOKUP($A610,Economática!$A$3:$AI$823,30,FALSE)/E610))","v":""},"",{"$f":"IF($A610=\"\",\"\",IF(OR(VLOOKUP($A610,Economática!$A$3:$AI$823,25,FALSE)=0,VLOOKUP($A610,Economática!$A$3:$AI$823,25,FALSE)=\"-\"),1/0,VLOOKUP($A610,Economática!$A$3:$AI$823,25,FALSE)))","v":""},{"$f":"CONCATENATE(Economática!B588,\" \",Economática!C588)","v":" "}]
[{"$f":"IF(Economática!AG589=\"\",\"\",Economática!AG589)","v":""},{"$f":"IF($A611=\"\",\"\",VLOOKUP(VLOOKUP($A611,Economática!$A$3:$AI$823,6,FALSE),Correção!$B$16:$C$36,2,FALSE))","v":""},{"$f":"IF(Economática!B589=\"\",\"\",Economática!B589)","v":""},{"$f":"IF($A611=\"\",\"\",IF(OR(VLOOKUP($A611,Economática!$A$3:$AI$823,8,FALSE)=0,VLOOKUP($A611,Economática!$A$3:$AI$823,8,FALSE)=\"-\"),1/0,VLOOKUP($A611,Economática!$A$3:$AI$823,8,FALSE)))","v":""},{"$f":"IF(A611=\"\",\"\",IF(ISERROR(VLOOKUP(A611,Correção!$B$2:$G$13,9,FALSE)),VLOOKUP($A611,Economática!$A$3:$AI$823,9,FALSE),VLOOKUP(A611,Correção!$B$2:$G$13,9,FALSE)))","v":""},{"$f":"IF($A611=\"\",\"\",Economática!G589)","v":""},{"$f":"IF($A611=\"\",\"\",IF(OR(VLOOKUP($A611,Economática!$A$3:$AI$823,10,FALSE)=0,VLOOKUP($A611,Economática!$A$3:$AI$823,10,FALSE)=\"-\"),1/0,VLOOKUP($A611,Economática!$A$3:$AI$823,10,FALSE)))","v":""},{"$f":"IF($A611=\"\",\"\",IF(OR(VLOOKUP($A611,Economática!$A$3:$AI$823,11,FALSE)=0,VLOOKUP($A611,Economática!$A$3:$AI$823,11,FALSE)=\"-\"),1/0,VLOOKUP($A611,Economática!$A$3:$AI$823,11,FALSE)))","v":""},{"$f":"IF($A611=\"\",\"\",IF(OR(VLOOKUP($A611,Economática!$A$3:$AI$823,12,FALSE)=0,VLOOKUP($A611,Economática!$A$3:$AI$823,12,FALSE)=\"-\"),1/0,VLOOKUP($A611,Economática!$A$3:$AI$823,12,FALSE)))","v":""},{"$f":"IF($A611=\"\",\"\",IF(OR(VLOOKUP($A611,Economática!$A$3:$AI$823,13,FALSE)=0,VLOOKUP($A611,Economática!$A$3:$AI$823,13,FALSE)=\"-\"),1/0,VLOOKUP($A611,Economática!$A$3:$AI$823,13,FALSE)))","v":""},{"$f":"IF($A611=\"\",\"\",IF(OR(VLOOKUP($A611,Economática!$A$3:$AI$823,14,FALSE)=0,VLOOKUP($A611,Economática!$A$3:$AI$823,14,FALSE)=\"-\"),1/0,VLOOKUP($A611,Economática!$A$3:$AI$823,14,FALSE)))","v":""},{"$f":"IF($A611=\"\",\"\",IF(OR(VLOOKUP($A611,Economática!$A$3:$AI$823,15,FALSE)=0,VLOOKUP($A611,Economática!$A$3:$AI$823,15,FALSE)=\"-\"),1/0,VLOOKUP($A611,Economática!$A$3:$AI$823,15,FALSE)))","v":""},{"$f":"IF($A611=\"\",\"\",IF(OR(VLOOKUP($A611,Economática!$A$3:$AI$823,16,FALSE)=0,VLOOKUP($A611,Economática!$A$3:$AI$823,16,FALSE)=\"-\"),1/0,VLOOKUP($A611,Economática!$A$3:$AI$823,16,FALSE)))","v":""},{"$f":"IF($A611=\"\",\"\",IF(OR(VLOOKUP($A611,Economática!$A$3:$AI$823,17,FALSE)=0,VLOOKUP($A611,Economática!$A$3:$AI$823,17,FALSE)=\"-\"),1/0,VLOOKUP($A611,Economática!$A$3:$AI$823,17,FALSE)))","v":""},{"$f":"IF($A611=\"\",\"\",IF(OR(VLOOKUP($A611,Economática!$A$3:$AI$823,18,FALSE)=0,VLOOKUP($A611,Economática!$A$3:$AI$823,18,FALSE)=\"-\"),1/0,VLOOKUP($A611,Economática!$A$3:$AI$823,18,FALSE)))","v":""},{"$f":"IF($A611=\"\",\"\",IF(OR(VLOOKUP($A611,Economática!$A$3:$AI$823,19,FALSE)=0,VLOOKUP($A611,Economática!$A$3:$AI$823,19,FALSE)=\"-\"),1/0,VLOOKUP($A611,Economática!$A$3:$AI$823,19,FALSE)))","v":""},{"$f":"IF($A611=\"\",\"\",VLOOKUP($A611,Economática!$A$3:$AI$823,20,FALSE)/E611)","v":""},"","","",{"$f":"IF($A611=\"\",\"\",IF(OR(VLOOKUP($A611,Economática!$A$3:$AI$823,21,FALSE)/100=0,VLOOKUP($A611,Economática!$A$3:$AI$823,21,FALSE)/100=\"-\"),1/0,VLOOKUP($A611,Economática!$A$3:$AI$823,21,FALSE)/100))","v":""},{"$f":"IF($A611=\"\",\"\",IF(OR(VLOOKUP($A611,Economática!$A$3:$AI$823,22,FALSE)/100=0,VLOOKUP($A611,Economática!$A$3:$AI$823,22,FALSE)/100=\"-\"),1/0,VLOOKUP($A611,Economática!$A$3:$AI$823,22,FALSE)/100))","v":""},{"$f":"IF($A611=\"\",\"\",IF(OR(VLOOKUP($A611,Economática!$A$3:$AI$823,23,FALSE)=0,VLOOKUP($A611,Economática!$A$3:$AI$823,23,FALSE)=\"-\"),1/0,VLOOKUP($A611,Economática!$A$3:$AI$823,23,FALSE)))","v":""},{"$f":"IF($A611=\"\",\"\",IF(OR(VLOOKUP($A611,Economática!$A$3:$AI$823,24,FALSE)=0,VLOOKUP($A611,Economática!$A$3:$AI$823,24,FALSE)=\"-\"),1/0,VLOOKUP($A611,Economática!$A$3:$AI$823,24,FALSE)))","v":""},{"$f":"IF($A611=\"\",\"\",IF(OR(VLOOKUP($A611,Economática!$A$3:$AI$823,25,FALSE)=0,VLOOKUP($A611,Economática!$A$3:$AI$823,25,FALSE)=\"-\"),1/0,VLOOKUP($A611,Economática!$A$3:$AI$823,25,FALSE)))","v":""},{"$f":"IF($A611=\"\",\"\",IF(ISERROR((F611+VLOOKUP($A611,Economática!$A$3:$AI$823,26,FALSE))/Y611),(F611+VLOOKUP($A611,Economática!$A$3:$AI$823,26,FALSE))/Y611,(F611+VLOOKUP($A611,Economática!$A$3:$AI$823,26,FALSE))/Y611))","v":""},{"$f":"IF($A611=\"\",\"\",IF(OR(-VLOOKUP($A611,Economática!$A$3:$AI$823,27,FALSE)=0,-VLOOKUP($A611,Economática!$A$3:$AI$823,27,FALSE)=\"-\"),1/0,-VLOOKUP($A611,Economática!$A$3:$AI$823,27,FALSE)))","v":""},"",{"$f":"IF($A611=\"\",\"\",IF(OR(VLOOKUP($A611,Economática!$A$3:$AI$823,28,FALSE)=0,VLOOKUP($A611,Economática!$A$3:$AI$823,28,FALSE)=\"-\"),1/0,VLOOKUP($A611,Economática!$A$3:$AI$823,28,FALSE)))","v":""},{"$f":"IF($A611=\"\",\"\",IF(OR(VLOOKUP($A611,Economática!$A$3:$AI$823,29,FALSE)=0,VLOOKUP($A611,Economática!$A$3:$AI$823,29,FALSE)=\"-\"),1/0,VLOOKUP($A611,Economática!$A$3:$AI$823,29,FALSE)))","v":""},{"$f":"IF($A611=\"\",\"\",IF(OR(VLOOKUP($A611,Economática!$A$3:$AI$823,30,FALSE)/E611=0,VLOOKUP($A611,Economática!$A$3:$AI$823,30,FALSE)/E611=\"-\",VLOOKUP($A611,Economática!$A$3:$AI$823,30,FALSE)/E611<33.33%,VLOOKUP($A611,Economática!$A$3:$AI$823,30,FALSE)/E611>100%),1/0,VLOOKUP($A611,Economática!$A$3:$AI$823,30,FALSE)/E611))","v":""},"",{"$f":"IF($A611=\"\",\"\",IF(OR(VLOOKUP($A611,Economática!$A$3:$AI$823,25,FALSE)=0,VLOOKUP($A611,Economática!$A$3:$AI$823,25,FALSE)=\"-\"),1/0,VLOOKUP($A611,Economática!$A$3:$AI$823,25,FALSE)))","v":""},{"$f":"CONCATENATE(Economática!B589,\" \",Economática!C589)","v":" "}]
[{"$f":"IF(Economática!AG590=\"\",\"\",Economática!AG590)","v":""},{"$f":"IF($A612=\"\",\"\",VLOOKUP(VLOOKUP($A612,Economática!$A$3:$AI$823,6,FALSE),Correção!$B$16:$C$36,2,FALSE))","v":""},{"$f":"IF(Economática!B590=\"\",\"\",Economática!B590)","v":""},{"$f":"IF($A612=\"\",\"\",IF(OR(VLOOKUP($A612,Economática!$A$3:$AI$823,8,FALSE)=0,VLOOKUP($A612,Economática!$A$3:$AI$823,8,FALSE)=\"-\"),1/0,VLOOKUP($A612,Economática!$A$3:$AI$823,8,FALSE)))","v":""},{"$f":"IF(A612=\"\",\"\",IF(ISERROR(VLOOKUP(A612,Correção!$B$2:$G$13,9,FALSE)),VLOOKUP($A612,Economática!$A$3:$AI$823,9,FALSE),VLOOKUP(A612,Correção!$B$2:$G$13,9,FALSE)))","v":""},{"$f":"IF($A612=\"\",\"\",Economática!G590)","v":""},{"$f":"IF($A612=\"\",\"\",IF(OR(VLOOKUP($A612,Economática!$A$3:$AI$823,10,FALSE)=0,VLOOKUP($A612,Economática!$A$3:$AI$823,10,FALSE)=\"-\"),1/0,VLOOKUP($A612,Economática!$A$3:$AI$823,10,FALSE)))","v":""},{"$f":"IF($A612=\"\",\"\",IF(OR(VLOOKUP($A612,Economática!$A$3:$AI$823,11,FALSE)=0,VLOOKUP($A612,Economática!$A$3:$AI$823,11,FALSE)=\"-\"),1/0,VLOOKUP($A612,Economática!$A$3:$AI$823,11,FALSE)))","v":""},{"$f":"IF($A612=\"\",\"\",IF(OR(VLOOKUP($A612,Economática!$A$3:$AI$823,12,FALSE)=0,VLOOKUP($A612,Economática!$A$3:$AI$823,12,FALSE)=\"-\"),1/0,VLOOKUP($A612,Economática!$A$3:$AI$823,12,FALSE)))","v":""},{"$f":"IF($A612=\"\",\"\",IF(OR(VLOOKUP($A612,Economática!$A$3:$AI$823,13,FALSE)=0,VLOOKUP($A612,Economática!$A$3:$AI$823,13,FALSE)=\"-\"),1/0,VLOOKUP($A612,Economática!$A$3:$AI$823,13,FALSE)))","v":""},{"$f":"IF($A612=\"\",\"\",IF(OR(VLOOKUP($A612,Economática!$A$3:$AI$823,14,FALSE)=0,VLOOKUP($A612,Economática!$A$3:$AI$823,14,FALSE)=\"-\"),1/0,VLOOKUP($A612,Economática!$A$3:$AI$823,14,FALSE)))","v":""},{"$f":"IF($A612=\"\",\"\",IF(OR(VLOOKUP($A612,Economática!$A$3:$AI$823,15,FALSE)=0,VLOOKUP($A612,Economática!$A$3:$AI$823,15,FALSE)=\"-\"),1/0,VLOOKUP($A612,Economática!$A$3:$AI$823,15,FALSE)))","v":""},{"$f":"IF($A612=\"\",\"\",IF(OR(VLOOKUP($A612,Economática!$A$3:$AI$823,16,FALSE)=0,VLOOKUP($A612,Economática!$A$3:$AI$823,16,FALSE)=\"-\"),1/0,VLOOKUP($A612,Economática!$A$3:$AI$823,16,FALSE)))","v":""},{"$f":"IF($A612=\"\",\"\",IF(OR(VLOOKUP($A612,Economática!$A$3:$AI$823,17,FALSE)=0,VLOOKUP($A612,Economática!$A$3:$AI$823,17,FALSE)=\"-\"),1/0,VLOOKUP($A612,Economática!$A$3:$AI$823,17,FALSE)))","v":""},{"$f":"IF($A612=\"\",\"\",IF(OR(VLOOKUP($A612,Economática!$A$3:$AI$823,18,FALSE)=0,VLOOKUP($A612,Economática!$A$3:$AI$823,18,FALSE)=\"-\"),1/0,VLOOKUP($A612,Economática!$A$3:$AI$823,18,FALSE)))","v":""},{"$f":"IF($A612=\"\",\"\",IF(OR(VLOOKUP($A612,Economática!$A$3:$AI$823,19,FALSE)=0,VLOOKUP($A612,Economática!$A$3:$AI$823,19,FALSE)=\"-\"),1/0,VLOOKUP($A612,Economática!$A$3:$AI$823,19,FALSE)))","v":""},{"$f":"IF($A612=\"\",\"\",VLOOKUP($A612,Economática!$A$3:$AI$823,20,FALSE)/E612)","v":""},"","","",{"$f":"IF($A612=\"\",\"\",IF(OR(VLOOKUP($A612,Economática!$A$3:$AI$823,21,FALSE)/100=0,VLOOKUP($A612,Economática!$A$3:$AI$823,21,FALSE)/100=\"-\"),1/0,VLOOKUP($A612,Economática!$A$3:$AI$823,21,FALSE)/100))","v":""},{"$f":"IF($A612=\"\",\"\",IF(OR(VLOOKUP($A612,Economática!$A$3:$AI$823,22,FALSE)/100=0,VLOOKUP($A612,Economática!$A$3:$AI$823,22,FALSE)/100=\"-\"),1/0,VLOOKUP($A612,Economática!$A$3:$AI$823,22,FALSE)/100))","v":""},{"$f":"IF($A612=\"\",\"\",IF(OR(VLOOKUP($A612,Economática!$A$3:$AI$823,23,FALSE)=0,VLOOKUP($A612,Economática!$A$3:$AI$823,23,FALSE)=\"-\"),1/0,VLOOKUP($A612,Economática!$A$3:$AI$823,23,FALSE)))","v":""},{"$f":"IF($A612=\"\",\"\",IF(OR(VLOOKUP($A612,Economática!$A$3:$AI$823,24,FALSE)=0,VLOOKUP($A612,Economática!$A$3:$AI$823,24,FALSE)=\"-\"),1/0,VLOOKUP($A612,Economática!$A$3:$AI$823,24,FALSE)))","v":""},{"$f":"IF($A612=\"\",\"\",IF(OR(VLOOKUP($A612,Economática!$A$3:$AI$823,25,FALSE)=0,VLOOKUP($A612,Economática!$A$3:$AI$823,25,FALSE)=\"-\"),1/0,VLOOKUP($A612,Economática!$A$3:$AI$823,25,FALSE)))","v":""},{"$f":"IF($A612=\"\",\"\",IF(ISERROR((F612+VLOOKUP($A612,Economática!$A$3:$AI$823,26,FALSE))/Y612),(F612+VLOOKUP($A612,Economática!$A$3:$AI$823,26,FALSE))/Y612,(F612+VLOOKUP($A612,Economática!$A$3:$AI$823,26,FALSE))/Y612))","v":""},{"$f":"IF($A612=\"\",\"\",IF(OR(-VLOOKUP($A612,Economática!$A$3:$AI$823,27,FALSE)=0,-VLOOKUP($A612,Economática!$A$3:$AI$823,27,FALSE)=\"-\"),1/0,-VLOOKUP($A612,Economática!$A$3:$AI$823,27,FALSE)))","v":""},"",{"$f":"IF($A612=\"\",\"\",IF(OR(VLOOKUP($A612,Economática!$A$3:$AI$823,28,FALSE)=0,VLOOKUP($A612,Economática!$A$3:$AI$823,28,FALSE)=\"-\"),1/0,VLOOKUP($A612,Economática!$A$3:$AI$823,28,FALSE)))","v":""},{"$f":"IF($A612=\"\",\"\",IF(OR(VLOOKUP($A612,Economática!$A$3:$AI$823,29,FALSE)=0,VLOOKUP($A612,Economática!$A$3:$AI$823,29,FALSE)=\"-\"),1/0,VLOOKUP($A612,Economática!$A$3:$AI$823,29,FALSE)))","v":""},{"$f":"IF($A612=\"\",\"\",IF(OR(VLOOKUP($A612,Economática!$A$3:$AI$823,30,FALSE)/E612=0,VLOOKUP($A612,Economática!$A$3:$AI$823,30,FALSE)/E612=\"-\",VLOOKUP($A612,Economática!$A$3:$AI$823,30,FALSE)/E612<33.33%,VLOOKUP($A612,Economática!$A$3:$AI$823,30,FALSE)/E612>100%),1/0,VLOOKUP($A612,Economática!$A$3:$AI$823,30,FALSE)/E612))","v":""},"",{"$f":"IF($A612=\"\",\"\",IF(OR(VLOOKUP($A612,Economática!$A$3:$AI$823,25,FALSE)=0,VLOOKUP($A612,Economática!$A$3:$AI$823,25,FALSE)=\"-\"),1/0,VLOOKUP($A612,Economática!$A$3:$AI$823,25,FALSE)))","v":""},{"$f":"CONCATENATE(Economática!B590,\" \",Economática!C590)","v":" "}]
[{"$f":"IF(Economática!AG591=\"\",\"\",Economática!AG591)","v":""},{"$f":"IF($A613=\"\",\"\",VLOOKUP(VLOOKUP($A613,Economática!$A$3:$AI$823,6,FALSE),Correção!$B$16:$C$36,2,FALSE))","v":""},{"$f":"IF(Economática!B591=\"\",\"\",Economática!B591)","v":""},{"$f":"IF($A613=\"\",\"\",IF(OR(VLOOKUP($A613,Economática!$A$3:$AI$823,8,FALSE)=0,VLOOKUP($A613,Economática!$A$3:$AI$823,8,FALSE)=\"-\"),1/0,VLOOKUP($A613,Economática!$A$3:$AI$823,8,FALSE)))","v":""},{"$f":"IF(A613=\"\",\"\",IF(ISERROR(VLOOKUP(A613,Correção!$B$2:$G$13,9,FALSE)),VLOOKUP($A613,Economática!$A$3:$AI$823,9,FALSE),VLOOKUP(A613,Correção!$B$2:$G$13,9,FALSE)))","v":""},{"$f":"IF($A613=\"\",\"\",Economática!G591)","v":""},{"$f":"IF($A613=\"\",\"\",IF(OR(VLOOKUP($A613,Economática!$A$3:$AI$823,10,FALSE)=0,VLOOKUP($A613,Economática!$A$3:$AI$823,10,FALSE)=\"-\"),1/0,VLOOKUP($A613,Economática!$A$3:$AI$823,10,FALSE)))","v":""},{"$f":"IF($A613=\"\",\"\",IF(OR(VLOOKUP($A613,Economática!$A$3:$AI$823,11,FALSE)=0,VLOOKUP($A613,Economática!$A$3:$AI$823,11,FALSE)=\"-\"),1/0,VLOOKUP($A613,Economática!$A$3:$AI$823,11,FALSE)))","v":""},{"$f":"IF($A613=\"\",\"\",IF(OR(VLOOKUP($A613,Economática!$A$3:$AI$823,12,FALSE)=0,VLOOKUP($A613,Economática!$A$3:$AI$823,12,FALSE)=\"-\"),1/0,VLOOKUP($A613,Economática!$A$3:$AI$823,12,FALSE)))","v":""},{"$f":"IF($A613=\"\",\"\",IF(OR(VLOOKUP($A613,Economática!$A$3:$AI$823,13,FALSE)=0,VLOOKUP($A613,Economática!$A$3:$AI$823,13,FALSE)=\"-\"),1/0,VLOOKUP($A613,Economática!$A$3:$AI$823,13,FALSE)))","v":""},{"$f":"IF($A613=\"\",\"\",IF(OR(VLOOKUP($A613,Economática!$A$3:$AI$823,14,FALSE)=0,VLOOKUP($A613,Economática!$A$3:$AI$823,14,FALSE)=\"-\"),1/0,VLOOKUP($A613,Economática!$A$3:$AI$823,14,FALSE)))","v":""},{"$f":"IF($A613=\"\",\"\",IF(OR(VLOOKUP($A613,Economática!$A$3:$AI$823,15,FALSE)=0,VLOOKUP($A613,Economática!$A$3:$AI$823,15,FALSE)=\"-\"),1/0,VLOOKUP($A613,Economática!$A$3:$AI$823,15,FALSE)))","v":""},{"$f":"IF($A613=\"\",\"\",IF(OR(VLOOKUP($A613,Economática!$A$3:$AI$823,16,FALSE)=0,VLOOKUP($A613,Economática!$A$3:$AI$823,16,FALSE)=\"-\"),1/0,VLOOKUP($A613,Economática!$A$3:$AI$823,16,FALSE)))","v":""},{"$f":"IF($A613=\"\",\"\",IF(OR(VLOOKUP($A613,Economática!$A$3:$AI$823,17,FALSE)=0,VLOOKUP($A613,Economática!$A$3:$AI$823,17,FALSE)=\"-\"),1/0,VLOOKUP($A613,Economática!$A$3:$AI$823,17,FALSE)))","v":""},{"$f":"IF($A613=\"\",\"\",IF(OR(VLOOKUP($A613,Economática!$A$3:$AI$823,18,FALSE)=0,VLOOKUP($A613,Economática!$A$3:$AI$823,18,FALSE)=\"-\"),1/0,VLOOKUP($A613,Economática!$A$3:$AI$823,18,FALSE)))","v":""},{"$f":"IF($A613=\"\",\"\",IF(OR(VLOOKUP($A613,Economática!$A$3:$AI$823,19,FALSE)=0,VLOOKUP($A613,Economática!$A$3:$AI$823,19,FALSE)=\"-\"),1/0,VLOOKUP($A613,Economática!$A$3:$AI$823,19,FALSE)))","v":""},{"$f":"IF($A613=\"\",\"\",VLOOKUP($A613,Economática!$A$3:$AI$823,20,FALSE)/E613)","v":""},"","","",{"$f":"IF($A613=\"\",\"\",IF(OR(VLOOKUP($A613,Economática!$A$3:$AI$823,21,FALSE)/100=0,VLOOKUP($A613,Economática!$A$3:$AI$823,21,FALSE)/100=\"-\"),1/0,VLOOKUP($A613,Economática!$A$3:$AI$823,21,FALSE)/100))","v":""},{"$f":"IF($A613=\"\",\"\",IF(OR(VLOOKUP($A613,Economática!$A$3:$AI$823,22,FALSE)/100=0,VLOOKUP($A613,Economática!$A$3:$AI$823,22,FALSE)/100=\"-\"),1/0,VLOOKUP($A613,Economática!$A$3:$AI$823,22,FALSE)/100))","v":""},{"$f":"IF($A613=\"\",\"\",IF(OR(VLOOKUP($A613,Economática!$A$3:$AI$823,23,FALSE)=0,VLOOKUP($A613,Economática!$A$3:$AI$823,23,FALSE)=\"-\"),1/0,VLOOKUP($A613,Economática!$A$3:$AI$823,23,FALSE)))","v":""},{"$f":"IF($A613=\"\",\"\",IF(OR(VLOOKUP($A613,Economática!$A$3:$AI$823,24,FALSE)=0,VLOOKUP($A613,Economática!$A$3:$AI$823,24,FALSE)=\"-\"),1/0,VLOOKUP($A613,Economática!$A$3:$AI$823,24,FALSE)))","v":""},{"$f":"IF($A613=\"\",\"\",IF(OR(VLOOKUP($A613,Economática!$A$3:$AI$823,25,FALSE)=0,VLOOKUP($A613,Economática!$A$3:$AI$823,25,FALSE)=\"-\"),1/0,VLOOKUP($A613,Economática!$A$3:$AI$823,25,FALSE)))","v":""},{"$f":"IF($A613=\"\",\"\",IF(ISERROR((F613+VLOOKUP($A613,Economática!$A$3:$AI$823,26,FALSE))/Y613),(F613+VLOOKUP($A613,Economática!$A$3:$AI$823,26,FALSE))/Y613,(F613+VLOOKUP($A613,Economática!$A$3:$AI$823,26,FALSE))/Y613))","v":""},{"$f":"IF($A613=\"\",\"\",IF(OR(-VLOOKUP($A613,Economática!$A$3:$AI$823,27,FALSE)=0,-VLOOKUP($A613,Economática!$A$3:$AI$823,27,FALSE)=\"-\"),1/0,-VLOOKUP($A613,Economática!$A$3:$AI$823,27,FALSE)))","v":""},"",{"$f":"IF($A613=\"\",\"\",IF(OR(VLOOKUP($A613,Economática!$A$3:$AI$823,28,FALSE)=0,VLOOKUP($A613,Economática!$A$3:$AI$823,28,FALSE)=\"-\"),1/0,VLOOKUP($A613,Economática!$A$3:$AI$823,28,FALSE)))","v":""},{"$f":"IF($A613=\"\",\"\",IF(OR(VLOOKUP($A613,Economática!$A$3:$AI$823,29,FALSE)=0,VLOOKUP($A613,Economática!$A$3:$AI$823,29,FALSE)=\"-\"),1/0,VLOOKUP($A613,Economática!$A$3:$AI$823,29,FALSE)))","v":""},{"$f":"IF($A613=\"\",\"\",IF(OR(VLOOKUP($A613,Economática!$A$3:$AI$823,30,FALSE)/E613=0,VLOOKUP($A613,Economática!$A$3:$AI$823,30,FALSE)/E613=\"-\",VLOOKUP($A613,Economática!$A$3:$AI$823,30,FALSE)/E613<33.33%,VLOOKUP($A613,Economática!$A$3:$AI$823,30,FALSE)/E613>100%),1/0,VLOOKUP($A613,Economática!$A$3:$AI$823,30,FALSE)/E613))","v":""},"",{"$f":"IF($A613=\"\",\"\",IF(OR(VLOOKUP($A613,Economática!$A$3:$AI$823,25,FALSE)=0,VLOOKUP($A613,Economática!$A$3:$AI$823,25,FALSE)=\"-\"),1/0,VLOOKUP($A613,Economática!$A$3:$AI$823,25,FALSE)))","v":""},{"$f":"CONCATENATE(Economática!B591,\" \",Economática!C591)","v":" "}]
[{"$f":"IF(Economática!AG592=\"\",\"\",Economática!AG592)","v":""},{"$f":"IF($A614=\"\",\"\",VLOOKUP(VLOOKUP($A614,Economática!$A$3:$AI$823,6,FALSE),Correção!$B$16:$C$36,2,FALSE))","v":""},{"$f":"IF(Economática!B592=\"\",\"\",Economática!B592)","v":""},{"$f":"IF($A614=\"\",\"\",IF(OR(VLOOKUP($A614,Economática!$A$3:$AI$823,8,FALSE)=0,VLOOKUP($A614,Economática!$A$3:$AI$823,8,FALSE)=\"-\"),1/0,VLOOKUP($A614,Economática!$A$3:$AI$823,8,FALSE)))","v":""},{"$f":"IF(A614=\"\",\"\",IF(ISERROR(VLOOKUP(A614,Correção!$B$2:$G$13,9,FALSE)),VLOOKUP($A614,Economática!$A$3:$AI$823,9,FALSE),VLOOKUP(A614,Correção!$B$2:$G$13,9,FALSE)))","v":""},{"$f":"IF($A614=\"\",\"\",Economática!G592)","v":""},{"$f":"IF($A614=\"\",\"\",IF(OR(VLOOKUP($A614,Economática!$A$3:$AI$823,10,FALSE)=0,VLOOKUP($A614,Economática!$A$3:$AI$823,10,FALSE)=\"-\"),1/0,VLOOKUP($A614,Economática!$A$3:$AI$823,10,FALSE)))","v":""},{"$f":"IF($A614=\"\",\"\",IF(OR(VLOOKUP($A614,Economática!$A$3:$AI$823,11,FALSE)=0,VLOOKUP($A614,Economática!$A$3:$AI$823,11,FALSE)=\"-\"),1/0,VLOOKUP($A614,Economática!$A$3:$AI$823,11,FALSE)))","v":""},{"$f":"IF($A614=\"\",\"\",IF(OR(VLOOKUP($A614,Economática!$A$3:$AI$823,12,FALSE)=0,VLOOKUP($A614,Economática!$A$3:$AI$823,12,FALSE)=\"-\"),1/0,VLOOKUP($A614,Economática!$A$3:$AI$823,12,FALSE)))","v":""},{"$f":"IF($A614=\"\",\"\",IF(OR(VLOOKUP($A614,Economática!$A$3:$AI$823,13,FALSE)=0,VLOOKUP($A614,Economática!$A$3:$AI$823,13,FALSE)=\"-\"),1/0,VLOOKUP($A614,Economática!$A$3:$AI$823,13,FALSE)))","v":""},{"$f":"IF($A614=\"\",\"\",IF(OR(VLOOKUP($A614,Economática!$A$3:$AI$823,14,FALSE)=0,VLOOKUP($A614,Economática!$A$3:$AI$823,14,FALSE)=\"-\"),1/0,VLOOKUP($A614,Economática!$A$3:$AI$823,14,FALSE)))","v":""},{"$f":"IF($A614=\"\",\"\",IF(OR(VLOOKUP($A614,Economática!$A$3:$AI$823,15,FALSE)=0,VLOOKUP($A614,Economática!$A$3:$AI$823,15,FALSE)=\"-\"),1/0,VLOOKUP($A614,Economática!$A$3:$AI$823,15,FALSE)))","v":""},{"$f":"IF($A614=\"\",\"\",IF(OR(VLOOKUP($A614,Economática!$A$3:$AI$823,16,FALSE)=0,VLOOKUP($A614,Economática!$A$3:$AI$823,16,FALSE)=\"-\"),1/0,VLOOKUP($A614,Economática!$A$3:$AI$823,16,FALSE)))","v":""},{"$f":"IF($A614=\"\",\"\",IF(OR(VLOOKUP($A614,Economática!$A$3:$AI$823,17,FALSE)=0,VLOOKUP($A614,Economática!$A$3:$AI$823,17,FALSE)=\"-\"),1/0,VLOOKUP($A614,Economática!$A$3:$AI$823,17,FALSE)))","v":""},{"$f":"IF($A614=\"\",\"\",IF(OR(VLOOKUP($A614,Economática!$A$3:$AI$823,18,FALSE)=0,VLOOKUP($A614,Economática!$A$3:$AI$823,18,FALSE)=\"-\"),1/0,VLOOKUP($A614,Economática!$A$3:$AI$823,18,FALSE)))","v":""},{"$f":"IF($A614=\"\",\"\",IF(OR(VLOOKUP($A614,Economática!$A$3:$AI$823,19,FALSE)=0,VLOOKUP($A614,Economática!$A$3:$AI$823,19,FALSE)=\"-\"),1/0,VLOOKUP($A614,Economática!$A$3:$AI$823,19,FALSE)))","v":""},{"$f":"IF($A614=\"\",\"\",VLOOKUP($A614,Economática!$A$3:$AI$823,20,FALSE)/E614)","v":""},"","","",{"$f":"IF($A614=\"\",\"\",IF(OR(VLOOKUP($A614,Economática!$A$3:$AI$823,21,FALSE)/100=0,VLOOKUP($A614,Economática!$A$3:$AI$823,21,FALSE)/100=\"-\"),1/0,VLOOKUP($A614,Economática!$A$3:$AI$823,21,FALSE)/100))","v":""},{"$f":"IF($A614=\"\",\"\",IF(OR(VLOOKUP($A614,Economática!$A$3:$AI$823,22,FALSE)/100=0,VLOOKUP($A614,Economática!$A$3:$AI$823,22,FALSE)/100=\"-\"),1/0,VLOOKUP($A614,Economática!$A$3:$AI$823,22,FALSE)/100))","v":""},{"$f":"IF($A614=\"\",\"\",IF(OR(VLOOKUP($A614,Economática!$A$3:$AI$823,23,FALSE)=0,VLOOKUP($A614,Economática!$A$3:$AI$823,23,FALSE)=\"-\"),1/0,VLOOKUP($A614,Economática!$A$3:$AI$823,23,FALSE)))","v":""},{"$f":"IF($A614=\"\",\"\",IF(OR(VLOOKUP($A614,Economática!$A$3:$AI$823,24,FALSE)=0,VLOOKUP($A614,Economática!$A$3:$AI$823,24,FALSE)=\"-\"),1/0,VLOOKUP($A614,Economática!$A$3:$AI$823,24,FALSE)))","v":""},{"$f":"IF($A614=\"\",\"\",IF(OR(VLOOKUP($A614,Economática!$A$3:$AI$823,25,FALSE)=0,VLOOKUP($A614,Economática!$A$3:$AI$823,25,FALSE)=\"-\"),1/0,VLOOKUP($A614,Economática!$A$3:$AI$823,25,FALSE)))","v":""},{"$f":"IF($A614=\"\",\"\",IF(ISERROR((F614+VLOOKUP($A614,Economática!$A$3:$AI$823,26,FALSE))/Y614),(F614+VLOOKUP($A614,Economática!$A$3:$AI$823,26,FALSE))/Y614,(F614+VLOOKUP($A614,Economática!$A$3:$AI$823,26,FALSE))/Y614))","v":""},{"$f":"IF($A614=\"\",\"\",IF(OR(-VLOOKUP($A614,Economática!$A$3:$AI$823,27,FALSE)=0,-VLOOKUP($A614,Economática!$A$3:$AI$823,27,FALSE)=\"-\"),1/0,-VLOOKUP($A614,Economática!$A$3:$AI$823,27,FALSE)))","v":""},"",{"$f":"IF($A614=\"\",\"\",IF(OR(VLOOKUP($A614,Economática!$A$3:$AI$823,28,FALSE)=0,VLOOKUP($A614,Economática!$A$3:$AI$823,28,FALSE)=\"-\"),1/0,VLOOKUP($A614,Economática!$A$3:$AI$823,28,FALSE)))","v":""},{"$f":"IF($A614=\"\",\"\",IF(OR(VLOOKUP($A614,Economática!$A$3:$AI$823,29,FALSE)=0,VLOOKUP($A614,Economática!$A$3:$AI$823,29,FALSE)=\"-\"),1/0,VLOOKUP($A614,Economática!$A$3:$AI$823,29,FALSE)))","v":""},{"$f":"IF($A614=\"\",\"\",IF(OR(VLOOKUP($A614,Economática!$A$3:$AI$823,30,FALSE)/E614=0,VLOOKUP($A614,Economática!$A$3:$AI$823,30,FALSE)/E614=\"-\",VLOOKUP($A614,Economática!$A$3:$AI$823,30,FALSE)/E614<33.33%,VLOOKUP($A614,Economática!$A$3:$AI$823,30,FALSE)/E614>100%),1/0,VLOOKUP($A614,Economática!$A$3:$AI$823,30,FALSE)/E614))","v":""},"",{"$f":"IF($A614=\"\",\"\",IF(OR(VLOOKUP($A614,Economática!$A$3:$AI$823,25,FALSE)=0,VLOOKUP($A614,Economática!$A$3:$AI$823,25,FALSE)=\"-\"),1/0,VLOOKUP($A614,Economática!$A$3:$AI$823,25,FALSE)))","v":""},{"$f":"CONCATENATE(Economática!B592,\" \",Economática!C592)","v":" "}]
[{"$f":"IF(Economática!AG593=\"\",\"\",Economática!AG593)","v":""},{"$f":"IF($A615=\"\",\"\",VLOOKUP(VLOOKUP($A615,Economática!$A$3:$AI$823,6,FALSE),Correção!$B$16:$C$36,2,FALSE))","v":""},{"$f":"IF(Economática!B593=\"\",\"\",Economática!B593)","v":""},{"$f":"IF($A615=\"\",\"\",IF(OR(VLOOKUP($A615,Economática!$A$3:$AI$823,8,FALSE)=0,VLOOKUP($A615,Economática!$A$3:$AI$823,8,FALSE)=\"-\"),1/0,VLOOKUP($A615,Economática!$A$3:$AI$823,8,FALSE)))","v":""},{"$f":"IF(A615=\"\",\"\",IF(ISERROR(VLOOKUP(A615,Correção!$B$2:$G$13,9,FALSE)),VLOOKUP($A615,Economática!$A$3:$AI$823,9,FALSE),VLOOKUP(A615,Correção!$B$2:$G$13,9,FALSE)))","v":""},{"$f":"IF($A615=\"\",\"\",Economática!G593)","v":""},{"$f":"IF($A615=\"\",\"\",IF(OR(VLOOKUP($A615,Economática!$A$3:$AI$823,10,FALSE)=0,VLOOKUP($A615,Economática!$A$3:$AI$823,10,FALSE)=\"-\"),1/0,VLOOKUP($A615,Economática!$A$3:$AI$823,10,FALSE)))","v":""},{"$f":"IF($A615=\"\",\"\",IF(OR(VLOOKUP($A615,Economática!$A$3:$AI$823,11,FALSE)=0,VLOOKUP($A615,Economática!$A$3:$AI$823,11,FALSE)=\"-\"),1/0,VLOOKUP($A615,Economática!$A$3:$AI$823,11,FALSE)))","v":""},{"$f":"IF($A615=\"\",\"\",IF(OR(VLOOKUP($A615,Economática!$A$3:$AI$823,12,FALSE)=0,VLOOKUP($A615,Economática!$A$3:$AI$823,12,FALSE)=\"-\"),1/0,VLOOKUP($A615,Economática!$A$3:$AI$823,12,FALSE)))","v":""},{"$f":"IF($A615=\"\",\"\",IF(OR(VLOOKUP($A615,Economática!$A$3:$AI$823,13,FALSE)=0,VLOOKUP($A615,Economática!$A$3:$AI$823,13,FALSE)=\"-\"),1/0,VLOOKUP($A615,Economática!$A$3:$AI$823,13,FALSE)))","v":""},{"$f":"IF($A615=\"\",\"\",IF(OR(VLOOKUP($A615,Economática!$A$3:$AI$823,14,FALSE)=0,VLOOKUP($A615,Economática!$A$3:$AI$823,14,FALSE)=\"-\"),1/0,VLOOKUP($A615,Economática!$A$3:$AI$823,14,FALSE)))","v":""},{"$f":"IF($A615=\"\",\"\",IF(OR(VLOOKUP($A615,Economática!$A$3:$AI$823,15,FALSE)=0,VLOOKUP($A615,Economática!$A$3:$AI$823,15,FALSE)=\"-\"),1/0,VLOOKUP($A615,Economática!$A$3:$AI$823,15,FALSE)))","v":""},{"$f":"IF($A615=\"\",\"\",IF(OR(VLOOKUP($A615,Economática!$A$3:$AI$823,16,FALSE)=0,VLOOKUP($A615,Economática!$A$3:$AI$823,16,FALSE)=\"-\"),1/0,VLOOKUP($A615,Economática!$A$3:$AI$823,16,FALSE)))","v":""},{"$f":"IF($A615=\"\",\"\",IF(OR(VLOOKUP($A615,Economática!$A$3:$AI$823,17,FALSE)=0,VLOOKUP($A615,Economática!$A$3:$AI$823,17,FALSE)=\"-\"),1/0,VLOOKUP($A615,Economática!$A$3:$AI$823,17,FALSE)))","v":""},{"$f":"IF($A615=\"\",\"\",IF(OR(VLOOKUP($A615,Economática!$A$3:$AI$823,18,FALSE)=0,VLOOKUP($A615,Economática!$A$3:$AI$823,18,FALSE)=\"-\"),1/0,VLOOKUP($A615,Economática!$A$3:$AI$823,18,FALSE)))","v":""},{"$f":"IF($A615=\"\",\"\",IF(OR(VLOOKUP($A615,Economática!$A$3:$AI$823,19,FALSE)=0,VLOOKUP($A615,Economática!$A$3:$AI$823,19,FALSE)=\"-\"),1/0,VLOOKUP($A615,Economática!$A$3:$AI$823,19,FALSE)))","v":""},{"$f":"IF($A615=\"\",\"\",VLOOKUP($A615,Economática!$A$3:$AI$823,20,FALSE)/E615)","v":""},"","","",{"$f":"IF($A615=\"\",\"\",IF(OR(VLOOKUP($A615,Economática!$A$3:$AI$823,21,FALSE)/100=0,VLOOKUP($A615,Economática!$A$3:$AI$823,21,FALSE)/100=\"-\"),1/0,VLOOKUP($A615,Economática!$A$3:$AI$823,21,FALSE)/100))","v":""},{"$f":"IF($A615=\"\",\"\",IF(OR(VLOOKUP($A615,Economática!$A$3:$AI$823,22,FALSE)/100=0,VLOOKUP($A615,Economática!$A$3:$AI$823,22,FALSE)/100=\"-\"),1/0,VLOOKUP($A615,Economática!$A$3:$AI$823,22,FALSE)/100))","v":""},{"$f":"IF($A615=\"\",\"\",IF(OR(VLOOKUP($A615,Economática!$A$3:$AI$823,23,FALSE)=0,VLOOKUP($A615,Economática!$A$3:$AI$823,23,FALSE)=\"-\"),1/0,VLOOKUP($A615,Economática!$A$3:$AI$823,23,FALSE)))","v":""},{"$f":"IF($A615=\"\",\"\",IF(OR(VLOOKUP($A615,Economática!$A$3:$AI$823,24,FALSE)=0,VLOOKUP($A615,Economática!$A$3:$AI$823,24,FALSE)=\"-\"),1/0,VLOOKUP($A615,Economática!$A$3:$AI$823,24,FALSE)))","v":""},{"$f":"IF($A615=\"\",\"\",IF(OR(VLOOKUP($A615,Economática!$A$3:$AI$823,25,FALSE)=0,VLOOKUP($A615,Economática!$A$3:$AI$823,25,FALSE)=\"-\"),1/0,VLOOKUP($A615,Economática!$A$3:$AI$823,25,FALSE)))","v":""},{"$f":"IF($A615=\"\",\"\",IF(ISERROR((F615+VLOOKUP($A615,Economática!$A$3:$AI$823,26,FALSE))/Y615),(F615+VLOOKUP($A615,Economática!$A$3:$AI$823,26,FALSE))/Y615,(F615+VLOOKUP($A615,Economática!$A$3:$AI$823,26,FALSE))/Y615))","v":""},{"$f":"IF($A615=\"\",\"\",IF(OR(-VLOOKUP($A615,Economática!$A$3:$AI$823,27,FALSE)=0,-VLOOKUP($A615,Economática!$A$3:$AI$823,27,FALSE)=\"-\"),1/0,-VLOOKUP($A615,Economática!$A$3:$AI$823,27,FALSE)))","v":""},"",{"$f":"IF($A615=\"\",\"\",IF(OR(VLOOKUP($A615,Economática!$A$3:$AI$823,28,FALSE)=0,VLOOKUP($A615,Economática!$A$3:$AI$823,28,FALSE)=\"-\"),1/0,VLOOKUP($A615,Economática!$A$3:$AI$823,28,FALSE)))","v":""},{"$f":"IF($A615=\"\",\"\",IF(OR(VLOOKUP($A615,Economática!$A$3:$AI$823,29,FALSE)=0,VLOOKUP($A615,Economática!$A$3:$AI$823,29,FALSE)=\"-\"),1/0,VLOOKUP($A615,Economática!$A$3:$AI$823,29,FALSE)))","v":""},{"$f":"IF($A615=\"\",\"\",IF(OR(VLOOKUP($A615,Economática!$A$3:$AI$823,30,FALSE)/E615=0,VLOOKUP($A615,Economática!$A$3:$AI$823,30,FALSE)/E615=\"-\",VLOOKUP($A615,Economática!$A$3:$AI$823,30,FALSE)/E615<33.33%,VLOOKUP($A615,Economática!$A$3:$AI$823,30,FALSE)/E615>100%),1/0,VLOOKUP($A615,Economática!$A$3:$AI$823,30,FALSE)/E615))","v":""},"",{"$f":"IF($A615=\"\",\"\",IF(OR(VLOOKUP($A615,Economática!$A$3:$AI$823,25,FALSE)=0,VLOOKUP($A615,Economática!$A$3:$AI$823,25,FALSE)=\"-\"),1/0,VLOOKUP($A615,Economática!$A$3:$AI$823,25,FALSE)))","v":""},{"$f":"CONCATENATE(Economática!B593,\" \",Economática!C593)","v":" "}]
[{"$f":"IF(Economática!AG594=\"\",\"\",Economática!AG594)","v":""},{"$f":"IF($A616=\"\",\"\",VLOOKUP(VLOOKUP($A616,Economática!$A$3:$AI$823,6,FALSE),Correção!$B$16:$C$36,2,FALSE))","v":""},{"$f":"IF(Economática!B594=\"\",\"\",Economática!B594)","v":""},{"$f":"IF($A616=\"\",\"\",IF(OR(VLOOKUP($A616,Economática!$A$3:$AI$823,8,FALSE)=0,VLOOKUP($A616,Economática!$A$3:$AI$823,8,FALSE)=\"-\"),1/0,VLOOKUP($A616,Economática!$A$3:$AI$823,8,FALSE)))","v":""},{"$f":"IF(A616=\"\",\"\",IF(ISERROR(VLOOKUP(A616,Correção!$B$2:$G$13,9,FALSE)),VLOOKUP($A616,Economática!$A$3:$AI$823,9,FALSE),VLOOKUP(A616,Correção!$B$2:$G$13,9,FALSE)))","v":""},{"$f":"IF($A616=\"\",\"\",Economática!G594)","v":""},{"$f":"IF($A616=\"\",\"\",IF(OR(VLOOKUP($A616,Economática!$A$3:$AI$823,10,FALSE)=0,VLOOKUP($A616,Economática!$A$3:$AI$823,10,FALSE)=\"-\"),1/0,VLOOKUP($A616,Economática!$A$3:$AI$823,10,FALSE)))","v":""},{"$f":"IF($A616=\"\",\"\",IF(OR(VLOOKUP($A616,Economática!$A$3:$AI$823,11,FALSE)=0,VLOOKUP($A616,Economática!$A$3:$AI$823,11,FALSE)=\"-\"),1/0,VLOOKUP($A616,Economática!$A$3:$AI$823,11,FALSE)))","v":""},{"$f":"IF($A616=\"\",\"\",IF(OR(VLOOKUP($A616,Economática!$A$3:$AI$823,12,FALSE)=0,VLOOKUP($A616,Economática!$A$3:$AI$823,12,FALSE)=\"-\"),1/0,VLOOKUP($A616,Economática!$A$3:$AI$823,12,FALSE)))","v":""},{"$f":"IF($A616=\"\",\"\",IF(OR(VLOOKUP($A616,Economática!$A$3:$AI$823,13,FALSE)=0,VLOOKUP($A616,Economática!$A$3:$AI$823,13,FALSE)=\"-\"),1/0,VLOOKUP($A616,Economática!$A$3:$AI$823,13,FALSE)))","v":""},{"$f":"IF($A616=\"\",\"\",IF(OR(VLOOKUP($A616,Economática!$A$3:$AI$823,14,FALSE)=0,VLOOKUP($A616,Economática!$A$3:$AI$823,14,FALSE)=\"-\"),1/0,VLOOKUP($A616,Economática!$A$3:$AI$823,14,FALSE)))","v":""},{"$f":"IF($A616=\"\",\"\",IF(OR(VLOOKUP($A616,Economática!$A$3:$AI$823,15,FALSE)=0,VLOOKUP($A616,Economática!$A$3:$AI$823,15,FALSE)=\"-\"),1/0,VLOOKUP($A616,Economática!$A$3:$AI$823,15,FALSE)))","v":""},{"$f":"IF($A616=\"\",\"\",IF(OR(VLOOKUP($A616,Economática!$A$3:$AI$823,16,FALSE)=0,VLOOKUP($A616,Economática!$A$3:$AI$823,16,FALSE)=\"-\"),1/0,VLOOKUP($A616,Economática!$A$3:$AI$823,16,FALSE)))","v":""},{"$f":"IF($A616=\"\",\"\",IF(OR(VLOOKUP($A616,Economática!$A$3:$AI$823,17,FALSE)=0,VLOOKUP($A616,Economática!$A$3:$AI$823,17,FALSE)=\"-\"),1/0,VLOOKUP($A616,Economática!$A$3:$AI$823,17,FALSE)))","v":""},{"$f":"IF($A616=\"\",\"\",IF(OR(VLOOKUP($A616,Economática!$A$3:$AI$823,18,FALSE)=0,VLOOKUP($A616,Economática!$A$3:$AI$823,18,FALSE)=\"-\"),1/0,VLOOKUP($A616,Economática!$A$3:$AI$823,18,FALSE)))","v":""},{"$f":"IF($A616=\"\",\"\",IF(OR(VLOOKUP($A616,Economática!$A$3:$AI$823,19,FALSE)=0,VLOOKUP($A616,Economática!$A$3:$AI$823,19,FALSE)=\"-\"),1/0,VLOOKUP($A616,Economática!$A$3:$AI$823,19,FALSE)))","v":""},{"$f":"IF($A616=\"\",\"\",VLOOKUP($A616,Economática!$A$3:$AI$823,20,FALSE)/E616)","v":""},"","","",{"$f":"IF($A616=\"\",\"\",IF(OR(VLOOKUP($A616,Economática!$A$3:$AI$823,21,FALSE)/100=0,VLOOKUP($A616,Economática!$A$3:$AI$823,21,FALSE)/100=\"-\"),1/0,VLOOKUP($A616,Economática!$A$3:$AI$823,21,FALSE)/100))","v":""},{"$f":"IF($A616=\"\",\"\",IF(OR(VLOOKUP($A616,Economática!$A$3:$AI$823,22,FALSE)/100=0,VLOOKUP($A616,Economática!$A$3:$AI$823,22,FALSE)/100=\"-\"),1/0,VLOOKUP($A616,Economática!$A$3:$AI$823,22,FALSE)/100))","v":""},{"$f":"IF($A616=\"\",\"\",IF(OR(VLOOKUP($A616,Economática!$A$3:$AI$823,23,FALSE)=0,VLOOKUP($A616,Economática!$A$3:$AI$823,23,FALSE)=\"-\"),1/0,VLOOKUP($A616,Economática!$A$3:$AI$823,23,FALSE)))","v":""},{"$f":"IF($A616=\"\",\"\",IF(OR(VLOOKUP($A616,Economática!$A$3:$AI$823,24,FALSE)=0,VLOOKUP($A616,Economática!$A$3:$AI$823,24,FALSE)=\"-\"),1/0,VLOOKUP($A616,Economática!$A$3:$AI$823,24,FALSE)))","v":""},{"$f":"IF($A616=\"\",\"\",IF(OR(VLOOKUP($A616,Economática!$A$3:$AI$823,25,FALSE)=0,VLOOKUP($A616,Economática!$A$3:$AI$823,25,FALSE)=\"-\"),1/0,VLOOKUP($A616,Economática!$A$3:$AI$823,25,FALSE)))","v":""},{"$f":"IF($A616=\"\",\"\",IF(ISERROR((F616+VLOOKUP($A616,Economática!$A$3:$AI$823,26,FALSE))/Y616),(F616+VLOOKUP($A616,Economática!$A$3:$AI$823,26,FALSE))/Y616,(F616+VLOOKUP($A616,Economática!$A$3:$AI$823,26,FALSE))/Y616))","v":""},{"$f":"IF($A616=\"\",\"\",IF(OR(-VLOOKUP($A616,Economática!$A$3:$AI$823,27,FALSE)=0,-VLOOKUP($A616,Economática!$A$3:$AI$823,27,FALSE)=\"-\"),1/0,-VLOOKUP($A616,Economática!$A$3:$AI$823,27,FALSE)))","v":""},"",{"$f":"IF($A616=\"\",\"\",IF(OR(VLOOKUP($A616,Economática!$A$3:$AI$823,28,FALSE)=0,VLOOKUP($A616,Economática!$A$3:$AI$823,28,FALSE)=\"-\"),1/0,VLOOKUP($A616,Economática!$A$3:$AI$823,28,FALSE)))","v":""},{"$f":"IF($A616=\"\",\"\",IF(OR(VLOOKUP($A616,Economática!$A$3:$AI$823,29,FALSE)=0,VLOOKUP($A616,Economática!$A$3:$AI$823,29,FALSE)=\"-\"),1/0,VLOOKUP($A616,Economática!$A$3:$AI$823,29,FALSE)))","v":""},{"$f":"IF($A616=\"\",\"\",IF(OR(VLOOKUP($A616,Economática!$A$3:$AI$823,30,FALSE)/E616=0,VLOOKUP($A616,Economática!$A$3:$AI$823,30,FALSE)/E616=\"-\",VLOOKUP($A616,Economática!$A$3:$AI$823,30,FALSE)/E616<33.33%,VLOOKUP($A616,Economática!$A$3:$AI$823,30,FALSE)/E616>100%),1/0,VLOOKUP($A616,Economática!$A$3:$AI$823,30,FALSE)/E616))","v":""},"",{"$f":"IF($A616=\"\",\"\",IF(OR(VLOOKUP($A616,Economática!$A$3:$AI$823,25,FALSE)=0,VLOOKUP($A616,Economática!$A$3:$AI$823,25,FALSE)=\"-\"),1/0,VLOOKUP($A616,Economática!$A$3:$AI$823,25,FALSE)))","v":""},{"$f":"CONCATENATE(Economática!B594,\" \",Economática!C594)","v":" "}]
[{"$f":"IF(Economática!AG595=\"\",\"\",Economática!AG595)","v":""},{"$f":"IF($A617=\"\",\"\",VLOOKUP(VLOOKUP($A617,Economática!$A$3:$AI$823,6,FALSE),Correção!$B$16:$C$36,2,FALSE))","v":""},{"$f":"IF(Economática!B595=\"\",\"\",Economática!B595)","v":""},{"$f":"IF($A617=\"\",\"\",IF(OR(VLOOKUP($A617,Economática!$A$3:$AI$823,8,FALSE)=0,VLOOKUP($A617,Economática!$A$3:$AI$823,8,FALSE)=\"-\"),1/0,VLOOKUP($A617,Economática!$A$3:$AI$823,8,FALSE)))","v":""},{"$f":"IF(A617=\"\",\"\",IF(ISERROR(VLOOKUP(A617,Correção!$B$2:$G$13,9,FALSE)),VLOOKUP($A617,Economática!$A$3:$AI$823,9,FALSE),VLOOKUP(A617,Correção!$B$2:$G$13,9,FALSE)))","v":""},{"$f":"IF($A617=\"\",\"\",Economática!G595)","v":""},{"$f":"IF($A617=\"\",\"\",IF(OR(VLOOKUP($A617,Economática!$A$3:$AI$823,10,FALSE)=0,VLOOKUP($A617,Economática!$A$3:$AI$823,10,FALSE)=\"-\"),1/0,VLOOKUP($A617,Economática!$A$3:$AI$823,10,FALSE)))","v":""},{"$f":"IF($A617=\"\",\"\",IF(OR(VLOOKUP($A617,Economática!$A$3:$AI$823,11,FALSE)=0,VLOOKUP($A617,Economática!$A$3:$AI$823,11,FALSE)=\"-\"),1/0,VLOOKUP($A617,Economática!$A$3:$AI$823,11,FALSE)))","v":""},{"$f":"IF($A617=\"\",\"\",IF(OR(VLOOKUP($A617,Economática!$A$3:$AI$823,12,FALSE)=0,VLOOKUP($A617,Economática!$A$3:$AI$823,12,FALSE)=\"-\"),1/0,VLOOKUP($A617,Economática!$A$3:$AI$823,12,FALSE)))","v":""},{"$f":"IF($A617=\"\",\"\",IF(OR(VLOOKUP($A617,Economática!$A$3:$AI$823,13,FALSE)=0,VLOOKUP($A617,Economática!$A$3:$AI$823,13,FALSE)=\"-\"),1/0,VLOOKUP($A617,Economática!$A$3:$AI$823,13,FALSE)))","v":""},{"$f":"IF($A617=\"\",\"\",IF(OR(VLOOKUP($A617,Economática!$A$3:$AI$823,14,FALSE)=0,VLOOKUP($A617,Economática!$A$3:$AI$823,14,FALSE)=\"-\"),1/0,VLOOKUP($A617,Economática!$A$3:$AI$823,14,FALSE)))","v":""},{"$f":"IF($A617=\"\",\"\",IF(OR(VLOOKUP($A617,Economática!$A$3:$AI$823,15,FALSE)=0,VLOOKUP($A617,Economática!$A$3:$AI$823,15,FALSE)=\"-\"),1/0,VLOOKUP($A617,Economática!$A$3:$AI$823,15,FALSE)))","v":""},{"$f":"IF($A617=\"\",\"\",IF(OR(VLOOKUP($A617,Economática!$A$3:$AI$823,16,FALSE)=0,VLOOKUP($A617,Economática!$A$3:$AI$823,16,FALSE)=\"-\"),1/0,VLOOKUP($A617,Economática!$A$3:$AI$823,16,FALSE)))","v":""},{"$f":"IF($A617=\"\",\"\",IF(OR(VLOOKUP($A617,Economática!$A$3:$AI$823,17,FALSE)=0,VLOOKUP($A617,Economática!$A$3:$AI$823,17,FALSE)=\"-\"),1/0,VLOOKUP($A617,Economática!$A$3:$AI$823,17,FALSE)))","v":""},{"$f":"IF($A617=\"\",\"\",IF(OR(VLOOKUP($A617,Economática!$A$3:$AI$823,18,FALSE)=0,VLOOKUP($A617,Economática!$A$3:$AI$823,18,FALSE)=\"-\"),1/0,VLOOKUP($A617,Economática!$A$3:$AI$823,18,FALSE)))","v":""},{"$f":"IF($A617=\"\",\"\",IF(OR(VLOOKUP($A617,Economática!$A$3:$AI$823,19,FALSE)=0,VLOOKUP($A617,Economática!$A$3:$AI$823,19,FALSE)=\"-\"),1/0,VLOOKUP($A617,Economática!$A$3:$AI$823,19,FALSE)))","v":""},{"$f":"IF($A617=\"\",\"\",VLOOKUP($A617,Economática!$A$3:$AI$823,20,FALSE)/E617)","v":""},"","","",{"$f":"IF($A617=\"\",\"\",IF(OR(VLOOKUP($A617,Economática!$A$3:$AI$823,21,FALSE)/100=0,VLOOKUP($A617,Economática!$A$3:$AI$823,21,FALSE)/100=\"-\"),1/0,VLOOKUP($A617,Economática!$A$3:$AI$823,21,FALSE)/100))","v":""},{"$f":"IF($A617=\"\",\"\",IF(OR(VLOOKUP($A617,Economática!$A$3:$AI$823,22,FALSE)/100=0,VLOOKUP($A617,Economática!$A$3:$AI$823,22,FALSE)/100=\"-\"),1/0,VLOOKUP($A617,Economática!$A$3:$AI$823,22,FALSE)/100))","v":""},{"$f":"IF($A617=\"\",\"\",IF(OR(VLOOKUP($A617,Economática!$A$3:$AI$823,23,FALSE)=0,VLOOKUP($A617,Economática!$A$3:$AI$823,23,FALSE)=\"-\"),1/0,VLOOKUP($A617,Economática!$A$3:$AI$823,23,FALSE)))","v":""},{"$f":"IF($A617=\"\",\"\",IF(OR(VLOOKUP($A617,Economática!$A$3:$AI$823,24,FALSE)=0,VLOOKUP($A617,Economática!$A$3:$AI$823,24,FALSE)=\"-\"),1/0,VLOOKUP($A617,Economática!$A$3:$AI$823,24,FALSE)))","v":""},{"$f":"IF($A617=\"\",\"\",IF(OR(VLOOKUP($A617,Economática!$A$3:$AI$823,25,FALSE)=0,VLOOKUP($A617,Economática!$A$3:$AI$823,25,FALSE)=\"-\"),1/0,VLOOKUP($A617,Economática!$A$3:$AI$823,25,FALSE)))","v":""},{"$f":"IF($A617=\"\",\"\",IF(ISERROR((F617+VLOOKUP($A617,Economática!$A$3:$AI$823,26,FALSE))/Y617),(F617+VLOOKUP($A617,Economática!$A$3:$AI$823,26,FALSE))/Y617,(F617+VLOOKUP($A617,Economática!$A$3:$AI$823,26,FALSE))/Y617))","v":""},{"$f":"IF($A617=\"\",\"\",IF(OR(-VLOOKUP($A617,Economática!$A$3:$AI$823,27,FALSE)=0,-VLOOKUP($A617,Economática!$A$3:$AI$823,27,FALSE)=\"-\"),1/0,-VLOOKUP($A617,Economática!$A$3:$AI$823,27,FALSE)))","v":""},"",{"$f":"IF($A617=\"\",\"\",IF(OR(VLOOKUP($A617,Economática!$A$3:$AI$823,28,FALSE)=0,VLOOKUP($A617,Economática!$A$3:$AI$823,28,FALSE)=\"-\"),1/0,VLOOKUP($A617,Economática!$A$3:$AI$823,28,FALSE)))","v":""},{"$f":"IF($A617=\"\",\"\",IF(OR(VLOOKUP($A617,Economática!$A$3:$AI$823,29,FALSE)=0,VLOOKUP($A617,Economática!$A$3:$AI$823,29,FALSE)=\"-\"),1/0,VLOOKUP($A617,Economática!$A$3:$AI$823,29,FALSE)))","v":""},{"$f":"IF($A617=\"\",\"\",IF(OR(VLOOKUP($A617,Economática!$A$3:$AI$823,30,FALSE)/E617=0,VLOOKUP($A617,Economática!$A$3:$AI$823,30,FALSE)/E617=\"-\",VLOOKUP($A617,Economática!$A$3:$AI$823,30,FALSE)/E617<33.33%,VLOOKUP($A617,Economática!$A$3:$AI$823,30,FALSE)/E617>100%),1/0,VLOOKUP($A617,Economática!$A$3:$AI$823,30,FALSE)/E617))","v":""},"",{"$f":"IF($A617=\"\",\"\",IF(OR(VLOOKUP($A617,Economática!$A$3:$AI$823,25,FALSE)=0,VLOOKUP($A617,Economática!$A$3:$AI$823,25,FALSE)=\"-\"),1/0,VLOOKUP($A617,Economática!$A$3:$AI$823,25,FALSE)))","v":""},{"$f":"CONCATENATE(Economática!B595,\" \",Economática!C595)","v":" "}]
[{"$f":"IF(Economática!AG596=\"\",\"\",Economática!AG596)","v":""},{"$f":"IF($A618=\"\",\"\",VLOOKUP(VLOOKUP($A618,Economática!$A$3:$AI$823,6,FALSE),Correção!$B$16:$C$36,2,FALSE))","v":""},{"$f":"IF(Economática!B596=\"\",\"\",Economática!B596)","v":""},{"$f":"IF($A618=\"\",\"\",IF(OR(VLOOKUP($A618,Economática!$A$3:$AI$823,8,FALSE)=0,VLOOKUP($A618,Economática!$A$3:$AI$823,8,FALSE)=\"-\"),1/0,VLOOKUP($A618,Economática!$A$3:$AI$823,8,FALSE)))","v":""},{"$f":"IF(A618=\"\",\"\",IF(ISERROR(VLOOKUP(A618,Correção!$B$2:$G$13,9,FALSE)),VLOOKUP($A618,Economática!$A$3:$AI$823,9,FALSE),VLOOKUP(A618,Correção!$B$2:$G$13,9,FALSE)))","v":""},{"$f":"IF($A618=\"\",\"\",Economática!G596)","v":""},{"$f":"IF($A618=\"\",\"\",IF(OR(VLOOKUP($A618,Economática!$A$3:$AI$823,10,FALSE)=0,VLOOKUP($A618,Economática!$A$3:$AI$823,10,FALSE)=\"-\"),1/0,VLOOKUP($A618,Economática!$A$3:$AI$823,10,FALSE)))","v":""},{"$f":"IF($A618=\"\",\"\",IF(OR(VLOOKUP($A618,Economática!$A$3:$AI$823,11,FALSE)=0,VLOOKUP($A618,Economática!$A$3:$AI$823,11,FALSE)=\"-\"),1/0,VLOOKUP($A618,Economática!$A$3:$AI$823,11,FALSE)))","v":""},{"$f":"IF($A618=\"\",\"\",IF(OR(VLOOKUP($A618,Economática!$A$3:$AI$823,12,FALSE)=0,VLOOKUP($A618,Economática!$A$3:$AI$823,12,FALSE)=\"-\"),1/0,VLOOKUP($A618,Economática!$A$3:$AI$823,12,FALSE)))","v":""},{"$f":"IF($A618=\"\",\"\",IF(OR(VLOOKUP($A618,Economática!$A$3:$AI$823,13,FALSE)=0,VLOOKUP($A618,Economática!$A$3:$AI$823,13,FALSE)=\"-\"),1/0,VLOOKUP($A618,Economática!$A$3:$AI$823,13,FALSE)))","v":""},{"$f":"IF($A618=\"\",\"\",IF(OR(VLOOKUP($A618,Economática!$A$3:$AI$823,14,FALSE)=0,VLOOKUP($A618,Economática!$A$3:$AI$823,14,FALSE)=\"-\"),1/0,VLOOKUP($A618,Economática!$A$3:$AI$823,14,FALSE)))","v":""},{"$f":"IF($A618=\"\",\"\",IF(OR(VLOOKUP($A618,Economática!$A$3:$AI$823,15,FALSE)=0,VLOOKUP($A618,Economática!$A$3:$AI$823,15,FALSE)=\"-\"),1/0,VLOOKUP($A618,Economática!$A$3:$AI$823,15,FALSE)))","v":""},{"$f":"IF($A618=\"\",\"\",IF(OR(VLOOKUP($A618,Economática!$A$3:$AI$823,16,FALSE)=0,VLOOKUP($A618,Economática!$A$3:$AI$823,16,FALSE)=\"-\"),1/0,VLOOKUP($A618,Economática!$A$3:$AI$823,16,FALSE)))","v":""},{"$f":"IF($A618=\"\",\"\",IF(OR(VLOOKUP($A618,Economática!$A$3:$AI$823,17,FALSE)=0,VLOOKUP($A618,Economática!$A$3:$AI$823,17,FALSE)=\"-\"),1/0,VLOOKUP($A618,Economática!$A$3:$AI$823,17,FALSE)))","v":""},{"$f":"IF($A618=\"\",\"\",IF(OR(VLOOKUP($A618,Economática!$A$3:$AI$823,18,FALSE)=0,VLOOKUP($A618,Economática!$A$3:$AI$823,18,FALSE)=\"-\"),1/0,VLOOKUP($A618,Economática!$A$3:$AI$823,18,FALSE)))","v":""},{"$f":"IF($A618=\"\",\"\",IF(OR(VLOOKUP($A618,Economática!$A$3:$AI$823,19,FALSE)=0,VLOOKUP($A618,Economática!$A$3:$AI$823,19,FALSE)=\"-\"),1/0,VLOOKUP($A618,Economática!$A$3:$AI$823,19,FALSE)))","v":""},{"$f":"IF($A618=\"\",\"\",VLOOKUP($A618,Economática!$A$3:$AI$823,20,FALSE)/E618)","v":""},"","","",{"$f":"IF($A618=\"\",\"\",IF(OR(VLOOKUP($A618,Economática!$A$3:$AI$823,21,FALSE)/100=0,VLOOKUP($A618,Economática!$A$3:$AI$823,21,FALSE)/100=\"-\"),1/0,VLOOKUP($A618,Economática!$A$3:$AI$823,21,FALSE)/100))","v":""},{"$f":"IF($A618=\"\",\"\",IF(OR(VLOOKUP($A618,Economática!$A$3:$AI$823,22,FALSE)/100=0,VLOOKUP($A618,Economática!$A$3:$AI$823,22,FALSE)/100=\"-\"),1/0,VLOOKUP($A618,Economática!$A$3:$AI$823,22,FALSE)/100))","v":""},{"$f":"IF($A618=\"\",\"\",IF(OR(VLOOKUP($A618,Economática!$A$3:$AI$823,23,FALSE)=0,VLOOKUP($A618,Economática!$A$3:$AI$823,23,FALSE)=\"-\"),1/0,VLOOKUP($A618,Economática!$A$3:$AI$823,23,FALSE)))","v":""},{"$f":"IF($A618=\"\",\"\",IF(OR(VLOOKUP($A618,Economática!$A$3:$AI$823,24,FALSE)=0,VLOOKUP($A618,Economática!$A$3:$AI$823,24,FALSE)=\"-\"),1/0,VLOOKUP($A618,Economática!$A$3:$AI$823,24,FALSE)))","v":""},{"$f":"IF($A618=\"\",\"\",IF(OR(VLOOKUP($A618,Economática!$A$3:$AI$823,25,FALSE)=0,VLOOKUP($A618,Economática!$A$3:$AI$823,25,FALSE)=\"-\"),1/0,VLOOKUP($A618,Economática!$A$3:$AI$823,25,FALSE)))","v":""},{"$f":"IF($A618=\"\",\"\",IF(ISERROR((F618+VLOOKUP($A618,Economática!$A$3:$AI$823,26,FALSE))/Y618),(F618+VLOOKUP($A618,Economática!$A$3:$AI$823,26,FALSE))/Y618,(F618+VLOOKUP($A618,Economática!$A$3:$AI$823,26,FALSE))/Y618))","v":""},{"$f":"IF($A618=\"\",\"\",IF(OR(-VLOOKUP($A618,Economática!$A$3:$AI$823,27,FALSE)=0,-VLOOKUP($A618,Economática!$A$3:$AI$823,27,FALSE)=\"-\"),1/0,-VLOOKUP($A618,Economática!$A$3:$AI$823,27,FALSE)))","v":""},"",{"$f":"IF($A618=\"\",\"\",IF(OR(VLOOKUP($A618,Economática!$A$3:$AI$823,28,FALSE)=0,VLOOKUP($A618,Economática!$A$3:$AI$823,28,FALSE)=\"-\"),1/0,VLOOKUP($A618,Economática!$A$3:$AI$823,28,FALSE)))","v":""},{"$f":"IF($A618=\"\",\"\",IF(OR(VLOOKUP($A618,Economática!$A$3:$AI$823,29,FALSE)=0,VLOOKUP($A618,Economática!$A$3:$AI$823,29,FALSE)=\"-\"),1/0,VLOOKUP($A618,Economática!$A$3:$AI$823,29,FALSE)))","v":""},{"$f":"IF($A618=\"\",\"\",IF(OR(VLOOKUP($A618,Economática!$A$3:$AI$823,30,FALSE)/E618=0,VLOOKUP($A618,Economática!$A$3:$AI$823,30,FALSE)/E618=\"-\",VLOOKUP($A618,Economática!$A$3:$AI$823,30,FALSE)/E618<33.33%,VLOOKUP($A618,Economática!$A$3:$AI$823,30,FALSE)/E618>100%),1/0,VLOOKUP($A618,Economática!$A$3:$AI$823,30,FALSE)/E618))","v":""},"",{"$f":"IF($A618=\"\",\"\",IF(OR(VLOOKUP($A618,Economática!$A$3:$AI$823,25,FALSE)=0,VLOOKUP($A618,Economática!$A$3:$AI$823,25,FALSE)=\"-\"),1/0,VLOOKUP($A618,Economática!$A$3:$AI$823,25,FALSE)))","v":""},{"$f":"CONCATENATE(Economática!B596,\" \",Economática!C596)","v":" "}]
[{"$f":"IF(Economática!AG597=\"\",\"\",Economática!AG597)","v":""},{"$f":"IF($A619=\"\",\"\",VLOOKUP(VLOOKUP($A619,Economática!$A$3:$AI$823,6,FALSE),Correção!$B$16:$C$36,2,FALSE))","v":""},{"$f":"IF(Economática!B597=\"\",\"\",Economática!B597)","v":""},{"$f":"IF($A619=\"\",\"\",IF(OR(VLOOKUP($A619,Economática!$A$3:$AI$823,8,FALSE)=0,VLOOKUP($A619,Economática!$A$3:$AI$823,8,FALSE)=\"-\"),1/0,VLOOKUP($A619,Economática!$A$3:$AI$823,8,FALSE)))","v":""},{"$f":"IF(A619=\"\",\"\",IF(ISERROR(VLOOKUP(A619,Correção!$B$2:$G$13,9,FALSE)),VLOOKUP($A619,Economática!$A$3:$AI$823,9,FALSE),VLOOKUP(A619,Correção!$B$2:$G$13,9,FALSE)))","v":""},{"$f":"IF($A619=\"\",\"\",Economática!G597)","v":""},{"$f":"IF($A619=\"\",\"\",IF(OR(VLOOKUP($A619,Economática!$A$3:$AI$823,10,FALSE)=0,VLOOKUP($A619,Economática!$A$3:$AI$823,10,FALSE)=\"-\"),1/0,VLOOKUP($A619,Economática!$A$3:$AI$823,10,FALSE)))","v":""},{"$f":"IF($A619=\"\",\"\",IF(OR(VLOOKUP($A619,Economática!$A$3:$AI$823,11,FALSE)=0,VLOOKUP($A619,Economática!$A$3:$AI$823,11,FALSE)=\"-\"),1/0,VLOOKUP($A619,Economática!$A$3:$AI$823,11,FALSE)))","v":""},{"$f":"IF($A619=\"\",\"\",IF(OR(VLOOKUP($A619,Economática!$A$3:$AI$823,12,FALSE)=0,VLOOKUP($A619,Economática!$A$3:$AI$823,12,FALSE)=\"-\"),1/0,VLOOKUP($A619,Economática!$A$3:$AI$823,12,FALSE)))","v":""},{"$f":"IF($A619=\"\",\"\",IF(OR(VLOOKUP($A619,Economática!$A$3:$AI$823,13,FALSE)=0,VLOOKUP($A619,Economática!$A$3:$AI$823,13,FALSE)=\"-\"),1/0,VLOOKUP($A619,Economática!$A$3:$AI$823,13,FALSE)))","v":""},{"$f":"IF($A619=\"\",\"\",IF(OR(VLOOKUP($A619,Economática!$A$3:$AI$823,14,FALSE)=0,VLOOKUP($A619,Economática!$A$3:$AI$823,14,FALSE)=\"-\"),1/0,VLOOKUP($A619,Economática!$A$3:$AI$823,14,FALSE)))","v":""},{"$f":"IF($A619=\"\",\"\",IF(OR(VLOOKUP($A619,Economática!$A$3:$AI$823,15,FALSE)=0,VLOOKUP($A619,Economática!$A$3:$AI$823,15,FALSE)=\"-\"),1/0,VLOOKUP($A619,Economática!$A$3:$AI$823,15,FALSE)))","v":""},{"$f":"IF($A619=\"\",\"\",IF(OR(VLOOKUP($A619,Economática!$A$3:$AI$823,16,FALSE)=0,VLOOKUP($A619,Economática!$A$3:$AI$823,16,FALSE)=\"-\"),1/0,VLOOKUP($A619,Economática!$A$3:$AI$823,16,FALSE)))","v":""},{"$f":"IF($A619=\"\",\"\",IF(OR(VLOOKUP($A619,Economática!$A$3:$AI$823,17,FALSE)=0,VLOOKUP($A619,Economática!$A$3:$AI$823,17,FALSE)=\"-\"),1/0,VLOOKUP($A619,Economática!$A$3:$AI$823,17,FALSE)))","v":""},{"$f":"IF($A619=\"\",\"\",IF(OR(VLOOKUP($A619,Economática!$A$3:$AI$823,18,FALSE)=0,VLOOKUP($A619,Economática!$A$3:$AI$823,18,FALSE)=\"-\"),1/0,VLOOKUP($A619,Economática!$A$3:$AI$823,18,FALSE)))","v":""},{"$f":"IF($A619=\"\",\"\",IF(OR(VLOOKUP($A619,Economática!$A$3:$AI$823,19,FALSE)=0,VLOOKUP($A619,Economática!$A$3:$AI$823,19,FALSE)=\"-\"),1/0,VLOOKUP($A619,Economática!$A$3:$AI$823,19,FALSE)))","v":""},{"$f":"IF($A619=\"\",\"\",VLOOKUP($A619,Economática!$A$3:$AI$823,20,FALSE)/E619)","v":""},"","","",{"$f":"IF($A619=\"\",\"\",IF(OR(VLOOKUP($A619,Economática!$A$3:$AI$823,21,FALSE)/100=0,VLOOKUP($A619,Economática!$A$3:$AI$823,21,FALSE)/100=\"-\"),1/0,VLOOKUP($A619,Economática!$A$3:$AI$823,21,FALSE)/100))","v":""},{"$f":"IF($A619=\"\",\"\",IF(OR(VLOOKUP($A619,Economática!$A$3:$AI$823,22,FALSE)/100=0,VLOOKUP($A619,Economática!$A$3:$AI$823,22,FALSE)/100=\"-\"),1/0,VLOOKUP($A619,Economática!$A$3:$AI$823,22,FALSE)/100))","v":""},{"$f":"IF($A619=\"\",\"\",IF(OR(VLOOKUP($A619,Economática!$A$3:$AI$823,23,FALSE)=0,VLOOKUP($A619,Economática!$A$3:$AI$823,23,FALSE)=\"-\"),1/0,VLOOKUP($A619,Economática!$A$3:$AI$823,23,FALSE)))","v":""},{"$f":"IF($A619=\"\",\"\",IF(OR(VLOOKUP($A619,Economática!$A$3:$AI$823,24,FALSE)=0,VLOOKUP($A619,Economática!$A$3:$AI$823,24,FALSE)=\"-\"),1/0,VLOOKUP($A619,Economática!$A$3:$AI$823,24,FALSE)))","v":""},{"$f":"IF($A619=\"\",\"\",IF(OR(VLOOKUP($A619,Economática!$A$3:$AI$823,25,FALSE)=0,VLOOKUP($A619,Economática!$A$3:$AI$823,25,FALSE)=\"-\"),1/0,VLOOKUP($A619,Economática!$A$3:$AI$823,25,FALSE)))","v":""},{"$f":"IF($A619=\"\",\"\",IF(ISERROR((F619+VLOOKUP($A619,Economática!$A$3:$AI$823,26,FALSE))/Y619),(F619+VLOOKUP($A619,Economática!$A$3:$AI$823,26,FALSE))/Y619,(F619+VLOOKUP($A619,Economática!$A$3:$AI$823,26,FALSE))/Y619))","v":""},{"$f":"IF($A619=\"\",\"\",IF(OR(-VLOOKUP($A619,Economática!$A$3:$AI$823,27,FALSE)=0,-VLOOKUP($A619,Economática!$A$3:$AI$823,27,FALSE)=\"-\"),1/0,-VLOOKUP($A619,Economática!$A$3:$AI$823,27,FALSE)))","v":""},"",{"$f":"IF($A619=\"\",\"\",IF(OR(VLOOKUP($A619,Economática!$A$3:$AI$823,28,FALSE)=0,VLOOKUP($A619,Economática!$A$3:$AI$823,28,FALSE)=\"-\"),1/0,VLOOKUP($A619,Economática!$A$3:$AI$823,28,FALSE)))","v":""},{"$f":"IF($A619=\"\",\"\",IF(OR(VLOOKUP($A619,Economática!$A$3:$AI$823,29,FALSE)=0,VLOOKUP($A619,Economática!$A$3:$AI$823,29,FALSE)=\"-\"),1/0,VLOOKUP($A619,Economática!$A$3:$AI$823,29,FALSE)))","v":""},{"$f":"IF($A619=\"\",\"\",IF(OR(VLOOKUP($A619,Economática!$A$3:$AI$823,30,FALSE)/E619=0,VLOOKUP($A619,Economática!$A$3:$AI$823,30,FALSE)/E619=\"-\",VLOOKUP($A619,Economática!$A$3:$AI$823,30,FALSE)/E619<33.33%,VLOOKUP($A619,Economática!$A$3:$AI$823,30,FALSE)/E619>100%),1/0,VLOOKUP($A619,Economática!$A$3:$AI$823,30,FALSE)/E619))","v":""},"",{"$f":"IF($A619=\"\",\"\",IF(OR(VLOOKUP($A619,Economática!$A$3:$AI$823,25,FALSE)=0,VLOOKUP($A619,Economática!$A$3:$AI$823,25,FALSE)=\"-\"),1/0,VLOOKUP($A619,Economática!$A$3:$AI$823,25,FALSE)))","v":""},{"$f":"CONCATENATE(Economática!B597,\" \",Economática!C597)","v":" "}]
[{"$f":"IF(Economática!AG598=\"\",\"\",Economática!AG598)","v":""},{"$f":"IF($A620=\"\",\"\",VLOOKUP(VLOOKUP($A620,Economática!$A$3:$AI$823,6,FALSE),Correção!$B$16:$C$36,2,FALSE))","v":""},{"$f":"IF(Economática!B598=\"\",\"\",Economática!B598)","v":""},{"$f":"IF($A620=\"\",\"\",IF(OR(VLOOKUP($A620,Economática!$A$3:$AI$823,8,FALSE)=0,VLOOKUP($A620,Economática!$A$3:$AI$823,8,FALSE)=\"-\"),1/0,VLOOKUP($A620,Economática!$A$3:$AI$823,8,FALSE)))","v":""},{"$f":"IF(A620=\"\",\"\",IF(ISERROR(VLOOKUP(A620,Correção!$B$2:$G$13,9,FALSE)),VLOOKUP($A620,Economática!$A$3:$AI$823,9,FALSE),VLOOKUP(A620,Correção!$B$2:$G$13,9,FALSE)))","v":""},{"$f":"IF($A620=\"\",\"\",Economática!G598)","v":""},{"$f":"IF($A620=\"\",\"\",IF(OR(VLOOKUP($A620,Economática!$A$3:$AI$823,10,FALSE)=0,VLOOKUP($A620,Economática!$A$3:$AI$823,10,FALSE)=\"-\"),1/0,VLOOKUP($A620,Economática!$A$3:$AI$823,10,FALSE)))","v":""},{"$f":"IF($A620=\"\",\"\",IF(OR(VLOOKUP($A620,Economática!$A$3:$AI$823,11,FALSE)=0,VLOOKUP($A620,Economática!$A$3:$AI$823,11,FALSE)=\"-\"),1/0,VLOOKUP($A620,Economática!$A$3:$AI$823,11,FALSE)))","v":""},{"$f":"IF($A620=\"\",\"\",IF(OR(VLOOKUP($A620,Economática!$A$3:$AI$823,12,FALSE)=0,VLOOKUP($A620,Economática!$A$3:$AI$823,12,FALSE)=\"-\"),1/0,VLOOKUP($A620,Economática!$A$3:$AI$823,12,FALSE)))","v":""},{"$f":"IF($A620=\"\",\"\",IF(OR(VLOOKUP($A620,Economática!$A$3:$AI$823,13,FALSE)=0,VLOOKUP($A620,Economática!$A$3:$AI$823,13,FALSE)=\"-\"),1/0,VLOOKUP($A620,Economática!$A$3:$AI$823,13,FALSE)))","v":""},{"$f":"IF($A620=\"\",\"\",IF(OR(VLOOKUP($A620,Economática!$A$3:$AI$823,14,FALSE)=0,VLOOKUP($A620,Economática!$A$3:$AI$823,14,FALSE)=\"-\"),1/0,VLOOKUP($A620,Economática!$A$3:$AI$823,14,FALSE)))","v":""},{"$f":"IF($A620=\"\",\"\",IF(OR(VLOOKUP($A620,Economática!$A$3:$AI$823,15,FALSE)=0,VLOOKUP($A620,Economática!$A$3:$AI$823,15,FALSE)=\"-\"),1/0,VLOOKUP($A620,Economática!$A$3:$AI$823,15,FALSE)))","v":""},{"$f":"IF($A620=\"\",\"\",IF(OR(VLOOKUP($A620,Economática!$A$3:$AI$823,16,FALSE)=0,VLOOKUP($A620,Economática!$A$3:$AI$823,16,FALSE)=\"-\"),1/0,VLOOKUP($A620,Economática!$A$3:$AI$823,16,FALSE)))","v":""},{"$f":"IF($A620=\"\",\"\",IF(OR(VLOOKUP($A620,Economática!$A$3:$AI$823,17,FALSE)=0,VLOOKUP($A620,Economática!$A$3:$AI$823,17,FALSE)=\"-\"),1/0,VLOOKUP($A620,Economática!$A$3:$AI$823,17,FALSE)))","v":""},{"$f":"IF($A620=\"\",\"\",IF(OR(VLOOKUP($A620,Economática!$A$3:$AI$823,18,FALSE)=0,VLOOKUP($A620,Economática!$A$3:$AI$823,18,FALSE)=\"-\"),1/0,VLOOKUP($A620,Economática!$A$3:$AI$823,18,FALSE)))","v":""},{"$f":"IF($A620=\"\",\"\",IF(OR(VLOOKUP($A620,Economática!$A$3:$AI$823,19,FALSE)=0,VLOOKUP($A620,Economática!$A$3:$AI$823,19,FALSE)=\"-\"),1/0,VLOOKUP($A620,Economática!$A$3:$AI$823,19,FALSE)))","v":""},{"$f":"IF($A620=\"\",\"\",VLOOKUP($A620,Economática!$A$3:$AI$823,20,FALSE)/E620)","v":""},"","","",{"$f":"IF($A620=\"\",\"\",IF(OR(VLOOKUP($A620,Economática!$A$3:$AI$823,21,FALSE)/100=0,VLOOKUP($A620,Economática!$A$3:$AI$823,21,FALSE)/100=\"-\"),1/0,VLOOKUP($A620,Economática!$A$3:$AI$823,21,FALSE)/100))","v":""},{"$f":"IF($A620=\"\",\"\",IF(OR(VLOOKUP($A620,Economática!$A$3:$AI$823,22,FALSE)/100=0,VLOOKUP($A620,Economática!$A$3:$AI$823,22,FALSE)/100=\"-\"),1/0,VLOOKUP($A620,Economática!$A$3:$AI$823,22,FALSE)/100))","v":""},{"$f":"IF($A620=\"\",\"\",IF(OR(VLOOKUP($A620,Economática!$A$3:$AI$823,23,FALSE)=0,VLOOKUP($A620,Economática!$A$3:$AI$823,23,FALSE)=\"-\"),1/0,VLOOKUP($A620,Economática!$A$3:$AI$823,23,FALSE)))","v":""},{"$f":"IF($A620=\"\",\"\",IF(OR(VLOOKUP($A620,Economática!$A$3:$AI$823,24,FALSE)=0,VLOOKUP($A620,Economática!$A$3:$AI$823,24,FALSE)=\"-\"),1/0,VLOOKUP($A620,Economática!$A$3:$AI$823,24,FALSE)))","v":""},{"$f":"IF($A620=\"\",\"\",IF(OR(VLOOKUP($A620,Economática!$A$3:$AI$823,25,FALSE)=0,VLOOKUP($A620,Economática!$A$3:$AI$823,25,FALSE)=\"-\"),1/0,VLOOKUP($A620,Economática!$A$3:$AI$823,25,FALSE)))","v":""},{"$f":"IF($A620=\"\",\"\",IF(ISERROR((F620+VLOOKUP($A620,Economática!$A$3:$AI$823,26,FALSE))/Y620),(F620+VLOOKUP($A620,Economática!$A$3:$AI$823,26,FALSE))/Y620,(F620+VLOOKUP($A620,Economática!$A$3:$AI$823,26,FALSE))/Y620))","v":""},{"$f":"IF($A620=\"\",\"\",IF(OR(-VLOOKUP($A620,Economática!$A$3:$AI$823,27,FALSE)=0,-VLOOKUP($A620,Economática!$A$3:$AI$823,27,FALSE)=\"-\"),1/0,-VLOOKUP($A620,Economática!$A$3:$AI$823,27,FALSE)))","v":""},"",{"$f":"IF($A620=\"\",\"\",IF(OR(VLOOKUP($A620,Economática!$A$3:$AI$823,28,FALSE)=0,VLOOKUP($A620,Economática!$A$3:$AI$823,28,FALSE)=\"-\"),1/0,VLOOKUP($A620,Economática!$A$3:$AI$823,28,FALSE)))","v":""},{"$f":"IF($A620=\"\",\"\",IF(OR(VLOOKUP($A620,Economática!$A$3:$AI$823,29,FALSE)=0,VLOOKUP($A620,Economática!$A$3:$AI$823,29,FALSE)=\"-\"),1/0,VLOOKUP($A620,Economática!$A$3:$AI$823,29,FALSE)))","v":""},{"$f":"IF($A620=\"\",\"\",IF(OR(VLOOKUP($A620,Economática!$A$3:$AI$823,30,FALSE)/E620=0,VLOOKUP($A620,Economática!$A$3:$AI$823,30,FALSE)/E620=\"-\",VLOOKUP($A620,Economática!$A$3:$AI$823,30,FALSE)/E620<33.33%,VLOOKUP($A620,Economática!$A$3:$AI$823,30,FALSE)/E620>100%),1/0,VLOOKUP($A620,Economática!$A$3:$AI$823,30,FALSE)/E620))","v":""},"",{"$f":"IF($A620=\"\",\"\",IF(OR(VLOOKUP($A620,Economática!$A$3:$AI$823,25,FALSE)=0,VLOOKUP($A620,Economática!$A$3:$AI$823,25,FALSE)=\"-\"),1/0,VLOOKUP($A620,Economática!$A$3:$AI$823,25,FALSE)))","v":""},{"$f":"CONCATENATE(Economática!B598,\" \",Economática!C598)","v":" "}]
[{"$f":"IF(Economática!AG599=\"\",\"\",Economática!AG599)","v":""},{"$f":"IF($A621=\"\",\"\",VLOOKUP(VLOOKUP($A621,Economática!$A$3:$AI$823,6,FALSE),Correção!$B$16:$C$36,2,FALSE))","v":""},{"$f":"IF(Economática!B599=\"\",\"\",Economática!B599)","v":""},{"$f":"IF($A621=\"\",\"\",IF(OR(VLOOKUP($A621,Economática!$A$3:$AI$823,8,FALSE)=0,VLOOKUP($A621,Economática!$A$3:$AI$823,8,FALSE)=\"-\"),1/0,VLOOKUP($A621,Economática!$A$3:$AI$823,8,FALSE)))","v":""},{"$f":"IF(A621=\"\",\"\",IF(ISERROR(VLOOKUP(A621,Correção!$B$2:$G$13,9,FALSE)),VLOOKUP($A621,Economática!$A$3:$AI$823,9,FALSE),VLOOKUP(A621,Correção!$B$2:$G$13,9,FALSE)))","v":""},{"$f":"IF($A621=\"\",\"\",Economática!G599)","v":""},{"$f":"IF($A621=\"\",\"\",IF(OR(VLOOKUP($A621,Economática!$A$3:$AI$823,10,FALSE)=0,VLOOKUP($A621,Economática!$A$3:$AI$823,10,FALSE)=\"-\"),1/0,VLOOKUP($A621,Economática!$A$3:$AI$823,10,FALSE)))","v":""},{"$f":"IF($A621=\"\",\"\",IF(OR(VLOOKUP($A621,Economática!$A$3:$AI$823,11,FALSE)=0,VLOOKUP($A621,Economática!$A$3:$AI$823,11,FALSE)=\"-\"),1/0,VLOOKUP($A621,Economática!$A$3:$AI$823,11,FALSE)))","v":""},{"$f":"IF($A621=\"\",\"\",IF(OR(VLOOKUP($A621,Economática!$A$3:$AI$823,12,FALSE)=0,VLOOKUP($A621,Economática!$A$3:$AI$823,12,FALSE)=\"-\"),1/0,VLOOKUP($A621,Economática!$A$3:$AI$823,12,FALSE)))","v":""},{"$f":"IF($A621=\"\",\"\",IF(OR(VLOOKUP($A621,Economática!$A$3:$AI$823,13,FALSE)=0,VLOOKUP($A621,Economática!$A$3:$AI$823,13,FALSE)=\"-\"),1/0,VLOOKUP($A621,Economática!$A$3:$AI$823,13,FALSE)))","v":""},{"$f":"IF($A621=\"\",\"\",IF(OR(VLOOKUP($A621,Economática!$A$3:$AI$823,14,FALSE)=0,VLOOKUP($A621,Economática!$A$3:$AI$823,14,FALSE)=\"-\"),1/0,VLOOKUP($A621,Economática!$A$3:$AI$823,14,FALSE)))","v":""},{"$f":"IF($A621=\"\",\"\",IF(OR(VLOOKUP($A621,Economática!$A$3:$AI$823,15,FALSE)=0,VLOOKUP($A621,Economática!$A$3:$AI$823,15,FALSE)=\"-\"),1/0,VLOOKUP($A621,Economática!$A$3:$AI$823,15,FALSE)))","v":""},{"$f":"IF($A621=\"\",\"\",IF(OR(VLOOKUP($A621,Economática!$A$3:$AI$823,16,FALSE)=0,VLOOKUP($A621,Economática!$A$3:$AI$823,16,FALSE)=\"-\"),1/0,VLOOKUP($A621,Economática!$A$3:$AI$823,16,FALSE)))","v":""},{"$f":"IF($A621=\"\",\"\",IF(OR(VLOOKUP($A621,Economática!$A$3:$AI$823,17,FALSE)=0,VLOOKUP($A621,Economática!$A$3:$AI$823,17,FALSE)=\"-\"),1/0,VLOOKUP($A621,Economática!$A$3:$AI$823,17,FALSE)))","v":""},{"$f":"IF($A621=\"\",\"\",IF(OR(VLOOKUP($A621,Economática!$A$3:$AI$823,18,FALSE)=0,VLOOKUP($A621,Economática!$A$3:$AI$823,18,FALSE)=\"-\"),1/0,VLOOKUP($A621,Economática!$A$3:$AI$823,18,FALSE)))","v":""},{"$f":"IF($A621=\"\",\"\",IF(OR(VLOOKUP($A621,Economática!$A$3:$AI$823,19,FALSE)=0,VLOOKUP($A621,Economática!$A$3:$AI$823,19,FALSE)=\"-\"),1/0,VLOOKUP($A621,Economática!$A$3:$AI$823,19,FALSE)))","v":""},{"$f":"IF($A621=\"\",\"\",VLOOKUP($A621,Economática!$A$3:$AI$823,20,FALSE)/E621)","v":""},"","","",{"$f":"IF($A621=\"\",\"\",IF(OR(VLOOKUP($A621,Economática!$A$3:$AI$823,21,FALSE)/100=0,VLOOKUP($A621,Economática!$A$3:$AI$823,21,FALSE)/100=\"-\"),1/0,VLOOKUP($A621,Economática!$A$3:$AI$823,21,FALSE)/100))","v":""},{"$f":"IF($A621=\"\",\"\",IF(OR(VLOOKUP($A621,Economática!$A$3:$AI$823,22,FALSE)/100=0,VLOOKUP($A621,Economática!$A$3:$AI$823,22,FALSE)/100=\"-\"),1/0,VLOOKUP($A621,Economática!$A$3:$AI$823,22,FALSE)/100))","v":""},{"$f":"IF($A621=\"\",\"\",IF(OR(VLOOKUP($A621,Economática!$A$3:$AI$823,23,FALSE)=0,VLOOKUP($A621,Economática!$A$3:$AI$823,23,FALSE)=\"-\"),1/0,VLOOKUP($A621,Economática!$A$3:$AI$823,23,FALSE)))","v":""},{"$f":"IF($A621=\"\",\"\",IF(OR(VLOOKUP($A621,Economática!$A$3:$AI$823,24,FALSE)=0,VLOOKUP($A621,Economática!$A$3:$AI$823,24,FALSE)=\"-\"),1/0,VLOOKUP($A621,Economática!$A$3:$AI$823,24,FALSE)))","v":""},{"$f":"IF($A621=\"\",\"\",IF(OR(VLOOKUP($A621,Economática!$A$3:$AI$823,25,FALSE)=0,VLOOKUP($A621,Economática!$A$3:$AI$823,25,FALSE)=\"-\"),1/0,VLOOKUP($A621,Economática!$A$3:$AI$823,25,FALSE)))","v":""},{"$f":"IF($A621=\"\",\"\",IF(ISERROR((F621+VLOOKUP($A621,Economática!$A$3:$AI$823,26,FALSE))/Y621),(F621+VLOOKUP($A621,Economática!$A$3:$AI$823,26,FALSE))/Y621,(F621+VLOOKUP($A621,Economática!$A$3:$AI$823,26,FALSE))/Y621))","v":""},{"$f":"IF($A621=\"\",\"\",IF(OR(-VLOOKUP($A621,Economática!$A$3:$AI$823,27,FALSE)=0,-VLOOKUP($A621,Economática!$A$3:$AI$823,27,FALSE)=\"-\"),1/0,-VLOOKUP($A621,Economática!$A$3:$AI$823,27,FALSE)))","v":""},"",{"$f":"IF($A621=\"\",\"\",IF(OR(VLOOKUP($A621,Economática!$A$3:$AI$823,28,FALSE)=0,VLOOKUP($A621,Economática!$A$3:$AI$823,28,FALSE)=\"-\"),1/0,VLOOKUP($A621,Economática!$A$3:$AI$823,28,FALSE)))","v":""},{"$f":"IF($A621=\"\",\"\",IF(OR(VLOOKUP($A621,Economática!$A$3:$AI$823,29,FALSE)=0,VLOOKUP($A621,Economática!$A$3:$AI$823,29,FALSE)=\"-\"),1/0,VLOOKUP($A621,Economática!$A$3:$AI$823,29,FALSE)))","v":""},{"$f":"IF($A621=\"\",\"\",IF(OR(VLOOKUP($A621,Economática!$A$3:$AI$823,30,FALSE)/E621=0,VLOOKUP($A621,Economática!$A$3:$AI$823,30,FALSE)/E621=\"-\",VLOOKUP($A621,Economática!$A$3:$AI$823,30,FALSE)/E621<33.33%,VLOOKUP($A621,Economática!$A$3:$AI$823,30,FALSE)/E621>100%),1/0,VLOOKUP($A621,Economática!$A$3:$AI$823,30,FALSE)/E621))","v":""},"",{"$f":"IF($A621=\"\",\"\",IF(OR(VLOOKUP($A621,Economática!$A$3:$AI$823,25,FALSE)=0,VLOOKUP($A621,Economática!$A$3:$AI$823,25,FALSE)=\"-\"),1/0,VLOOKUP($A621,Economática!$A$3:$AI$823,25,FALSE)))","v":""},{"$f":"CONCATENATE(Economática!B599,\" \",Economática!C599)","v":" "}]
[{"$f":"IF(Economática!AG600=\"\",\"\",Economática!AG600)","v":""},{"$f":"IF($A622=\"\",\"\",VLOOKUP(VLOOKUP($A622,Economática!$A$3:$AI$823,6,FALSE),Correção!$B$16:$C$36,2,FALSE))","v":""},{"$f":"IF(Economática!B600=\"\",\"\",Economática!B600)","v":""},{"$f":"IF($A622=\"\",\"\",IF(OR(VLOOKUP($A622,Economática!$A$3:$AI$823,8,FALSE)=0,VLOOKUP($A622,Economática!$A$3:$AI$823,8,FALSE)=\"-\"),1/0,VLOOKUP($A622,Economática!$A$3:$AI$823,8,FALSE)))","v":""},{"$f":"IF(A622=\"\",\"\",IF(ISERROR(VLOOKUP(A622,Correção!$B$2:$G$13,9,FALSE)),VLOOKUP($A622,Economática!$A$3:$AI$823,9,FALSE),VLOOKUP(A622,Correção!$B$2:$G$13,9,FALSE)))","v":""},{"$f":"IF($A622=\"\",\"\",Economática!G600)","v":""},{"$f":"IF($A622=\"\",\"\",IF(OR(VLOOKUP($A622,Economática!$A$3:$AI$823,10,FALSE)=0,VLOOKUP($A622,Economática!$A$3:$AI$823,10,FALSE)=\"-\"),1/0,VLOOKUP($A622,Economática!$A$3:$AI$823,10,FALSE)))","v":""},{"$f":"IF($A622=\"\",\"\",IF(OR(VLOOKUP($A622,Economática!$A$3:$AI$823,11,FALSE)=0,VLOOKUP($A622,Economática!$A$3:$AI$823,11,FALSE)=\"-\"),1/0,VLOOKUP($A622,Economática!$A$3:$AI$823,11,FALSE)))","v":""},{"$f":"IF($A622=\"\",\"\",IF(OR(VLOOKUP($A622,Economática!$A$3:$AI$823,12,FALSE)=0,VLOOKUP($A622,Economática!$A$3:$AI$823,12,FALSE)=\"-\"),1/0,VLOOKUP($A622,Economática!$A$3:$AI$823,12,FALSE)))","v":""},{"$f":"IF($A622=\"\",\"\",IF(OR(VLOOKUP($A622,Economática!$A$3:$AI$823,13,FALSE)=0,VLOOKUP($A622,Economática!$A$3:$AI$823,13,FALSE)=\"-\"),1/0,VLOOKUP($A622,Economática!$A$3:$AI$823,13,FALSE)))","v":""},{"$f":"IF($A622=\"\",\"\",IF(OR(VLOOKUP($A622,Economática!$A$3:$AI$823,14,FALSE)=0,VLOOKUP($A622,Economática!$A$3:$AI$823,14,FALSE)=\"-\"),1/0,VLOOKUP($A622,Economática!$A$3:$AI$823,14,FALSE)))","v":""},{"$f":"IF($A622=\"\",\"\",IF(OR(VLOOKUP($A622,Economática!$A$3:$AI$823,15,FALSE)=0,VLOOKUP($A622,Economática!$A$3:$AI$823,15,FALSE)=\"-\"),1/0,VLOOKUP($A622,Economática!$A$3:$AI$823,15,FALSE)))","v":""},{"$f":"IF($A622=\"\",\"\",IF(OR(VLOOKUP($A622,Economática!$A$3:$AI$823,16,FALSE)=0,VLOOKUP($A622,Economática!$A$3:$AI$823,16,FALSE)=\"-\"),1/0,VLOOKUP($A622,Economática!$A$3:$AI$823,16,FALSE)))","v":""},{"$f":"IF($A622=\"\",\"\",IF(OR(VLOOKUP($A622,Economática!$A$3:$AI$823,17,FALSE)=0,VLOOKUP($A622,Economática!$A$3:$AI$823,17,FALSE)=\"-\"),1/0,VLOOKUP($A622,Economática!$A$3:$AI$823,17,FALSE)))","v":""},{"$f":"IF($A622=\"\",\"\",IF(OR(VLOOKUP($A622,Economática!$A$3:$AI$823,18,FALSE)=0,VLOOKUP($A622,Economática!$A$3:$AI$823,18,FALSE)=\"-\"),1/0,VLOOKUP($A622,Economática!$A$3:$AI$823,18,FALSE)))","v":""},{"$f":"IF($A622=\"\",\"\",IF(OR(VLOOKUP($A622,Economática!$A$3:$AI$823,19,FALSE)=0,VLOOKUP($A622,Economática!$A$3:$AI$823,19,FALSE)=\"-\"),1/0,VLOOKUP($A622,Economática!$A$3:$AI$823,19,FALSE)))","v":""},{"$f":"IF($A622=\"\",\"\",VLOOKUP($A622,Economática!$A$3:$AI$823,20,FALSE)/E622)","v":""},"","","",{"$f":"IF($A622=\"\",\"\",IF(OR(VLOOKUP($A622,Economática!$A$3:$AI$823,21,FALSE)/100=0,VLOOKUP($A622,Economática!$A$3:$AI$823,21,FALSE)/100=\"-\"),1/0,VLOOKUP($A622,Economática!$A$3:$AI$823,21,FALSE)/100))","v":""},{"$f":"IF($A622=\"\",\"\",IF(OR(VLOOKUP($A622,Economática!$A$3:$AI$823,22,FALSE)/100=0,VLOOKUP($A622,Economática!$A$3:$AI$823,22,FALSE)/100=\"-\"),1/0,VLOOKUP($A622,Economática!$A$3:$AI$823,22,FALSE)/100))","v":""},{"$f":"IF($A622=\"\",\"\",IF(OR(VLOOKUP($A622,Economática!$A$3:$AI$823,23,FALSE)=0,VLOOKUP($A622,Economática!$A$3:$AI$823,23,FALSE)=\"-\"),1/0,VLOOKUP($A622,Economática!$A$3:$AI$823,23,FALSE)))","v":""},{"$f":"IF($A622=\"\",\"\",IF(OR(VLOOKUP($A622,Economática!$A$3:$AI$823,24,FALSE)=0,VLOOKUP($A622,Economática!$A$3:$AI$823,24,FALSE)=\"-\"),1/0,VLOOKUP($A622,Economática!$A$3:$AI$823,24,FALSE)))","v":""},{"$f":"IF($A622=\"\",\"\",IF(OR(VLOOKUP($A622,Economática!$A$3:$AI$823,25,FALSE)=0,VLOOKUP($A622,Economática!$A$3:$AI$823,25,FALSE)=\"-\"),1/0,VLOOKUP($A622,Economática!$A$3:$AI$823,25,FALSE)))","v":""},{"$f":"IF($A622=\"\",\"\",IF(ISERROR((F622+VLOOKUP($A622,Economática!$A$3:$AI$823,26,FALSE))/Y622),(F622+VLOOKUP($A622,Economática!$A$3:$AI$823,26,FALSE))/Y622,(F622+VLOOKUP($A622,Economática!$A$3:$AI$823,26,FALSE))/Y622))","v":""},{"$f":"IF($A622=\"\",\"\",IF(OR(-VLOOKUP($A622,Economática!$A$3:$AI$823,27,FALSE)=0,-VLOOKUP($A622,Economática!$A$3:$AI$823,27,FALSE)=\"-\"),1/0,-VLOOKUP($A622,Economática!$A$3:$AI$823,27,FALSE)))","v":""},"",{"$f":"IF($A622=\"\",\"\",IF(OR(VLOOKUP($A622,Economática!$A$3:$AI$823,28,FALSE)=0,VLOOKUP($A622,Economática!$A$3:$AI$823,28,FALSE)=\"-\"),1/0,VLOOKUP($A622,Economática!$A$3:$AI$823,28,FALSE)))","v":""},{"$f":"IF($A622=\"\",\"\",IF(OR(VLOOKUP($A622,Economática!$A$3:$AI$823,29,FALSE)=0,VLOOKUP($A622,Economática!$A$3:$AI$823,29,FALSE)=\"-\"),1/0,VLOOKUP($A622,Economática!$A$3:$AI$823,29,FALSE)))","v":""},{"$f":"IF($A622=\"\",\"\",IF(OR(VLOOKUP($A622,Economática!$A$3:$AI$823,30,FALSE)/E622=0,VLOOKUP($A622,Economática!$A$3:$AI$823,30,FALSE)/E622=\"-\",VLOOKUP($A622,Economática!$A$3:$AI$823,30,FALSE)/E622<33.33%,VLOOKUP($A622,Economática!$A$3:$AI$823,30,FALSE)/E622>100%),1/0,VLOOKUP($A622,Economática!$A$3:$AI$823,30,FALSE)/E622))","v":""},"",{"$f":"IF($A622=\"\",\"\",IF(OR(VLOOKUP($A622,Economática!$A$3:$AI$823,25,FALSE)=0,VLOOKUP($A622,Economática!$A$3:$AI$823,25,FALSE)=\"-\"),1/0,VLOOKUP($A622,Economática!$A$3:$AI$823,25,FALSE)))","v":""},{"$f":"CONCATENATE(Economática!B600,\" \",Economática!C600)","v":" "}]
[{"$f":"IF(Economática!AG601=\"\",\"\",Economática!AG601)","v":""},{"$f":"IF($A623=\"\",\"\",VLOOKUP(VLOOKUP($A623,Economática!$A$3:$AI$823,6,FALSE),Correção!$B$16:$C$36,2,FALSE))","v":""},{"$f":"IF(Economática!B601=\"\",\"\",Economática!B601)","v":""},{"$f":"IF($A623=\"\",\"\",IF(OR(VLOOKUP($A623,Economática!$A$3:$AI$823,8,FALSE)=0,VLOOKUP($A623,Economática!$A$3:$AI$823,8,FALSE)=\"-\"),1/0,VLOOKUP($A623,Economática!$A$3:$AI$823,8,FALSE)))","v":""},{"$f":"IF(A623=\"\",\"\",IF(ISERROR(VLOOKUP(A623,Correção!$B$2:$G$13,9,FALSE)),VLOOKUP($A623,Economática!$A$3:$AI$823,9,FALSE),VLOOKUP(A623,Correção!$B$2:$G$13,9,FALSE)))","v":""},{"$f":"IF($A623=\"\",\"\",Economática!G601)","v":""},{"$f":"IF($A623=\"\",\"\",IF(OR(VLOOKUP($A623,Economática!$A$3:$AI$823,10,FALSE)=0,VLOOKUP($A623,Economática!$A$3:$AI$823,10,FALSE)=\"-\"),1/0,VLOOKUP($A623,Economática!$A$3:$AI$823,10,FALSE)))","v":""},{"$f":"IF($A623=\"\",\"\",IF(OR(VLOOKUP($A623,Economática!$A$3:$AI$823,11,FALSE)=0,VLOOKUP($A623,Economática!$A$3:$AI$823,11,FALSE)=\"-\"),1/0,VLOOKUP($A623,Economática!$A$3:$AI$823,11,FALSE)))","v":""},{"$f":"IF($A623=\"\",\"\",IF(OR(VLOOKUP($A623,Economática!$A$3:$AI$823,12,FALSE)=0,VLOOKUP($A623,Economática!$A$3:$AI$823,12,FALSE)=\"-\"),1/0,VLOOKUP($A623,Economática!$A$3:$AI$823,12,FALSE)))","v":""},{"$f":"IF($A623=\"\",\"\",IF(OR(VLOOKUP($A623,Economática!$A$3:$AI$823,13,FALSE)=0,VLOOKUP($A623,Economática!$A$3:$AI$823,13,FALSE)=\"-\"),1/0,VLOOKUP($A623,Economática!$A$3:$AI$823,13,FALSE)))","v":""},{"$f":"IF($A623=\"\",\"\",IF(OR(VLOOKUP($A623,Economática!$A$3:$AI$823,14,FALSE)=0,VLOOKUP($A623,Economática!$A$3:$AI$823,14,FALSE)=\"-\"),1/0,VLOOKUP($A623,Economática!$A$3:$AI$823,14,FALSE)))","v":""},{"$f":"IF($A623=\"\",\"\",IF(OR(VLOOKUP($A623,Economática!$A$3:$AI$823,15,FALSE)=0,VLOOKUP($A623,Economática!$A$3:$AI$823,15,FALSE)=\"-\"),1/0,VLOOKUP($A623,Economática!$A$3:$AI$823,15,FALSE)))","v":""},{"$f":"IF($A623=\"\",\"\",IF(OR(VLOOKUP($A623,Economática!$A$3:$AI$823,16,FALSE)=0,VLOOKUP($A623,Economática!$A$3:$AI$823,16,FALSE)=\"-\"),1/0,VLOOKUP($A623,Economática!$A$3:$AI$823,16,FALSE)))","v":""},{"$f":"IF($A623=\"\",\"\",IF(OR(VLOOKUP($A623,Economática!$A$3:$AI$823,17,FALSE)=0,VLOOKUP($A623,Economática!$A$3:$AI$823,17,FALSE)=\"-\"),1/0,VLOOKUP($A623,Economática!$A$3:$AI$823,17,FALSE)))","v":""},{"$f":"IF($A623=\"\",\"\",IF(OR(VLOOKUP($A623,Economática!$A$3:$AI$823,18,FALSE)=0,VLOOKUP($A623,Economática!$A$3:$AI$823,18,FALSE)=\"-\"),1/0,VLOOKUP($A623,Economática!$A$3:$AI$823,18,FALSE)))","v":""},{"$f":"IF($A623=\"\",\"\",IF(OR(VLOOKUP($A623,Economática!$A$3:$AI$823,19,FALSE)=0,VLOOKUP($A623,Economática!$A$3:$AI$823,19,FALSE)=\"-\"),1/0,VLOOKUP($A623,Economática!$A$3:$AI$823,19,FALSE)))","v":""},{"$f":"IF($A623=\"\",\"\",VLOOKUP($A623,Economática!$A$3:$AI$823,20,FALSE)/E623)","v":""},"","","",{"$f":"IF($A623=\"\",\"\",IF(OR(VLOOKUP($A623,Economática!$A$3:$AI$823,21,FALSE)/100=0,VLOOKUP($A623,Economática!$A$3:$AI$823,21,FALSE)/100=\"-\"),1/0,VLOOKUP($A623,Economática!$A$3:$AI$823,21,FALSE)/100))","v":""},{"$f":"IF($A623=\"\",\"\",IF(OR(VLOOKUP($A623,Economática!$A$3:$AI$823,22,FALSE)/100=0,VLOOKUP($A623,Economática!$A$3:$AI$823,22,FALSE)/100=\"-\"),1/0,VLOOKUP($A623,Economática!$A$3:$AI$823,22,FALSE)/100))","v":""},{"$f":"IF($A623=\"\",\"\",IF(OR(VLOOKUP($A623,Economática!$A$3:$AI$823,23,FALSE)=0,VLOOKUP($A623,Economática!$A$3:$AI$823,23,FALSE)=\"-\"),1/0,VLOOKUP($A623,Economática!$A$3:$AI$823,23,FALSE)))","v":""},{"$f":"IF($A623=\"\",\"\",IF(OR(VLOOKUP($A623,Economática!$A$3:$AI$823,24,FALSE)=0,VLOOKUP($A623,Economática!$A$3:$AI$823,24,FALSE)=\"-\"),1/0,VLOOKUP($A623,Economática!$A$3:$AI$823,24,FALSE)))","v":""},{"$f":"IF($A623=\"\",\"\",IF(OR(VLOOKUP($A623,Economática!$A$3:$AI$823,25,FALSE)=0,VLOOKUP($A623,Economática!$A$3:$AI$823,25,FALSE)=\"-\"),1/0,VLOOKUP($A623,Economática!$A$3:$AI$823,25,FALSE)))","v":""},{"$f":"IF($A623=\"\",\"\",IF(ISERROR((F623+VLOOKUP($A623,Economática!$A$3:$AI$823,26,FALSE))/Y623),(F623+VLOOKUP($A623,Economática!$A$3:$AI$823,26,FALSE))/Y623,(F623+VLOOKUP($A623,Economática!$A$3:$AI$823,26,FALSE))/Y623))","v":""},{"$f":"IF($A623=\"\",\"\",IF(OR(-VLOOKUP($A623,Economática!$A$3:$AI$823,27,FALSE)=0,-VLOOKUP($A623,Economática!$A$3:$AI$823,27,FALSE)=\"-\"),1/0,-VLOOKUP($A623,Economática!$A$3:$AI$823,27,FALSE)))","v":""},"",{"$f":"IF($A623=\"\",\"\",IF(OR(VLOOKUP($A623,Economática!$A$3:$AI$823,28,FALSE)=0,VLOOKUP($A623,Economática!$A$3:$AI$823,28,FALSE)=\"-\"),1/0,VLOOKUP($A623,Economática!$A$3:$AI$823,28,FALSE)))","v":""},{"$f":"IF($A623=\"\",\"\",IF(OR(VLOOKUP($A623,Economática!$A$3:$AI$823,29,FALSE)=0,VLOOKUP($A623,Economática!$A$3:$AI$823,29,FALSE)=\"-\"),1/0,VLOOKUP($A623,Economática!$A$3:$AI$823,29,FALSE)))","v":""},{"$f":"IF($A623=\"\",\"\",IF(OR(VLOOKUP($A623,Economática!$A$3:$AI$823,30,FALSE)/E623=0,VLOOKUP($A623,Economática!$A$3:$AI$823,30,FALSE)/E623=\"-\",VLOOKUP($A623,Economática!$A$3:$AI$823,30,FALSE)/E623<33.33%,VLOOKUP($A623,Economática!$A$3:$AI$823,30,FALSE)/E623>100%),1/0,VLOOKUP($A623,Economática!$A$3:$AI$823,30,FALSE)/E623))","v":""},"",{"$f":"IF($A623=\"\",\"\",IF(OR(VLOOKUP($A623,Economática!$A$3:$AI$823,25,FALSE)=0,VLOOKUP($A623,Economática!$A$3:$AI$823,25,FALSE)=\"-\"),1/0,VLOOKUP($A623,Economática!$A$3:$AI$823,25,FALSE)))","v":""},{"$f":"CONCATENATE(Economática!B601,\" \",Economática!C601)","v":" "}]
[{"$f":"IF(Economática!AG602=\"\",\"\",Economática!AG602)","v":""},{"$f":"IF($A624=\"\",\"\",VLOOKUP(VLOOKUP($A624,Economática!$A$3:$AI$823,6,FALSE),Correção!$B$16:$C$36,2,FALSE))","v":""},{"$f":"IF(Economática!B602=\"\",\"\",Economática!B602)","v":""},{"$f":"IF($A624=\"\",\"\",IF(OR(VLOOKUP($A624,Economática!$A$3:$AI$823,8,FALSE)=0,VLOOKUP($A624,Economática!$A$3:$AI$823,8,FALSE)=\"-\"),1/0,VLOOKUP($A624,Economática!$A$3:$AI$823,8,FALSE)))","v":""},{"$f":"IF(A624=\"\",\"\",IF(ISERROR(VLOOKUP(A624,Correção!$B$2:$G$13,9,FALSE)),VLOOKUP($A624,Economática!$A$3:$AI$823,9,FALSE),VLOOKUP(A624,Correção!$B$2:$G$13,9,FALSE)))","v":""},{"$f":"IF($A624=\"\",\"\",Economática!G602)","v":""},{"$f":"IF($A624=\"\",\"\",IF(OR(VLOOKUP($A624,Economática!$A$3:$AI$823,10,FALSE)=0,VLOOKUP($A624,Economática!$A$3:$AI$823,10,FALSE)=\"-\"),1/0,VLOOKUP($A624,Economática!$A$3:$AI$823,10,FALSE)))","v":""},{"$f":"IF($A624=\"\",\"\",IF(OR(VLOOKUP($A624,Economática!$A$3:$AI$823,11,FALSE)=0,VLOOKUP($A624,Economática!$A$3:$AI$823,11,FALSE)=\"-\"),1/0,VLOOKUP($A624,Economática!$A$3:$AI$823,11,FALSE)))","v":""},{"$f":"IF($A624=\"\",\"\",IF(OR(VLOOKUP($A624,Economática!$A$3:$AI$823,12,FALSE)=0,VLOOKUP($A624,Economática!$A$3:$AI$823,12,FALSE)=\"-\"),1/0,VLOOKUP($A624,Economática!$A$3:$AI$823,12,FALSE)))","v":""},{"$f":"IF($A624=\"\",\"\",IF(OR(VLOOKUP($A624,Economática!$A$3:$AI$823,13,FALSE)=0,VLOOKUP($A624,Economática!$A$3:$AI$823,13,FALSE)=\"-\"),1/0,VLOOKUP($A624,Economática!$A$3:$AI$823,13,FALSE)))","v":""},{"$f":"IF($A624=\"\",\"\",IF(OR(VLOOKUP($A624,Economática!$A$3:$AI$823,14,FALSE)=0,VLOOKUP($A624,Economática!$A$3:$AI$823,14,FALSE)=\"-\"),1/0,VLOOKUP($A624,Economática!$A$3:$AI$823,14,FALSE)))","v":""},{"$f":"IF($A624=\"\",\"\",IF(OR(VLOOKUP($A624,Economática!$A$3:$AI$823,15,FALSE)=0,VLOOKUP($A624,Economática!$A$3:$AI$823,15,FALSE)=\"-\"),1/0,VLOOKUP($A624,Economática!$A$3:$AI$823,15,FALSE)))","v":""},{"$f":"IF($A624=\"\",\"\",IF(OR(VLOOKUP($A624,Economática!$A$3:$AI$823,16,FALSE)=0,VLOOKUP($A624,Economática!$A$3:$AI$823,16,FALSE)=\"-\"),1/0,VLOOKUP($A624,Economática!$A$3:$AI$823,16,FALSE)))","v":""},{"$f":"IF($A624=\"\",\"\",IF(OR(VLOOKUP($A624,Economática!$A$3:$AI$823,17,FALSE)=0,VLOOKUP($A624,Economática!$A$3:$AI$823,17,FALSE)=\"-\"),1/0,VLOOKUP($A624,Economática!$A$3:$AI$823,17,FALSE)))","v":""},{"$f":"IF($A624=\"\",\"\",IF(OR(VLOOKUP($A624,Economática!$A$3:$AI$823,18,FALSE)=0,VLOOKUP($A624,Economática!$A$3:$AI$823,18,FALSE)=\"-\"),1/0,VLOOKUP($A624,Economática!$A$3:$AI$823,18,FALSE)))","v":""},{"$f":"IF($A624=\"\",\"\",IF(OR(VLOOKUP($A624,Economática!$A$3:$AI$823,19,FALSE)=0,VLOOKUP($A624,Economática!$A$3:$AI$823,19,FALSE)=\"-\"),1/0,VLOOKUP($A624,Economática!$A$3:$AI$823,19,FALSE)))","v":""},{"$f":"IF($A624=\"\",\"\",VLOOKUP($A624,Economática!$A$3:$AI$823,20,FALSE)/E624)","v":""},"","","",{"$f":"IF($A624=\"\",\"\",IF(OR(VLOOKUP($A624,Economática!$A$3:$AI$823,21,FALSE)/100=0,VLOOKUP($A624,Economática!$A$3:$AI$823,21,FALSE)/100=\"-\"),1/0,VLOOKUP($A624,Economática!$A$3:$AI$823,21,FALSE)/100))","v":""},{"$f":"IF($A624=\"\",\"\",IF(OR(VLOOKUP($A624,Economática!$A$3:$AI$823,22,FALSE)/100=0,VLOOKUP($A624,Economática!$A$3:$AI$823,22,FALSE)/100=\"-\"),1/0,VLOOKUP($A624,Economática!$A$3:$AI$823,22,FALSE)/100))","v":""},{"$f":"IF($A624=\"\",\"\",IF(OR(VLOOKUP($A624,Economática!$A$3:$AI$823,23,FALSE)=0,VLOOKUP($A624,Economática!$A$3:$AI$823,23,FALSE)=\"-\"),1/0,VLOOKUP($A624,Economática!$A$3:$AI$823,23,FALSE)))","v":""},{"$f":"IF($A624=\"\",\"\",IF(OR(VLOOKUP($A624,Economática!$A$3:$AI$823,24,FALSE)=0,VLOOKUP($A624,Economática!$A$3:$AI$823,24,FALSE)=\"-\"),1/0,VLOOKUP($A624,Economática!$A$3:$AI$823,24,FALSE)))","v":""},{"$f":"IF($A624=\"\",\"\",IF(OR(VLOOKUP($A624,Economática!$A$3:$AI$823,25,FALSE)=0,VLOOKUP($A624,Economática!$A$3:$AI$823,25,FALSE)=\"-\"),1/0,VLOOKUP($A624,Economática!$A$3:$AI$823,25,FALSE)))","v":""},{"$f":"IF($A624=\"\",\"\",IF(ISERROR((F624+VLOOKUP($A624,Economática!$A$3:$AI$823,26,FALSE))/Y624),(F624+VLOOKUP($A624,Economática!$A$3:$AI$823,26,FALSE))/Y624,(F624+VLOOKUP($A624,Economática!$A$3:$AI$823,26,FALSE))/Y624))","v":""},{"$f":"IF($A624=\"\",\"\",IF(OR(-VLOOKUP($A624,Economática!$A$3:$AI$823,27,FALSE)=0,-VLOOKUP($A624,Economática!$A$3:$AI$823,27,FALSE)=\"-\"),1/0,-VLOOKUP($A624,Economática!$A$3:$AI$823,27,FALSE)))","v":""},"",{"$f":"IF($A624=\"\",\"\",IF(OR(VLOOKUP($A624,Economática!$A$3:$AI$823,28,FALSE)=0,VLOOKUP($A624,Economática!$A$3:$AI$823,28,FALSE)=\"-\"),1/0,VLOOKUP($A624,Economática!$A$3:$AI$823,28,FALSE)))","v":""},{"$f":"IF($A624=\"\",\"\",IF(OR(VLOOKUP($A624,Economática!$A$3:$AI$823,29,FALSE)=0,VLOOKUP($A624,Economática!$A$3:$AI$823,29,FALSE)=\"-\"),1/0,VLOOKUP($A624,Economática!$A$3:$AI$823,29,FALSE)))","v":""},{"$f":"IF($A624=\"\",\"\",IF(OR(VLOOKUP($A624,Economática!$A$3:$AI$823,30,FALSE)/E624=0,VLOOKUP($A624,Economática!$A$3:$AI$823,30,FALSE)/E624=\"-\",VLOOKUP($A624,Economática!$A$3:$AI$823,30,FALSE)/E624<33.33%,VLOOKUP($A624,Economática!$A$3:$AI$823,30,FALSE)/E624>100%),1/0,VLOOKUP($A624,Economática!$A$3:$AI$823,30,FALSE)/E624))","v":""},"",{"$f":"IF($A624=\"\",\"\",IF(OR(VLOOKUP($A624,Economática!$A$3:$AI$823,25,FALSE)=0,VLOOKUP($A624,Economática!$A$3:$AI$823,25,FALSE)=\"-\"),1/0,VLOOKUP($A624,Economática!$A$3:$AI$823,25,FALSE)))","v":""},{"$f":"CONCATENATE(Economática!B602,\" \",Economática!C602)","v":" "}]
[{"$f":"IF(Economática!AG603=\"\",\"\",Economática!AG603)","v":""},{"$f":"IF($A625=\"\",\"\",VLOOKUP(VLOOKUP($A625,Economática!$A$3:$AI$823,6,FALSE),Correção!$B$16:$C$36,2,FALSE))","v":""},{"$f":"IF(Economática!B603=\"\",\"\",Economática!B603)","v":""},{"$f":"IF($A625=\"\",\"\",IF(OR(VLOOKUP($A625,Economática!$A$3:$AI$823,8,FALSE)=0,VLOOKUP($A625,Economática!$A$3:$AI$823,8,FALSE)=\"-\"),1/0,VLOOKUP($A625,Economática!$A$3:$AI$823,8,FALSE)))","v":""},{"$f":"IF(A625=\"\",\"\",IF(ISERROR(VLOOKUP(A625,Correção!$B$2:$G$13,9,FALSE)),VLOOKUP($A625,Economática!$A$3:$AI$823,9,FALSE),VLOOKUP(A625,Correção!$B$2:$G$13,9,FALSE)))","v":""},{"$f":"IF($A625=\"\",\"\",Economática!G603)","v":""},{"$f":"IF($A625=\"\",\"\",IF(OR(VLOOKUP($A625,Economática!$A$3:$AI$823,10,FALSE)=0,VLOOKUP($A625,Economática!$A$3:$AI$823,10,FALSE)=\"-\"),1/0,VLOOKUP($A625,Economática!$A$3:$AI$823,10,FALSE)))","v":""},{"$f":"IF($A625=\"\",\"\",IF(OR(VLOOKUP($A625,Economática!$A$3:$AI$823,11,FALSE)=0,VLOOKUP($A625,Economática!$A$3:$AI$823,11,FALSE)=\"-\"),1/0,VLOOKUP($A625,Economática!$A$3:$AI$823,11,FALSE)))","v":""},{"$f":"IF($A625=\"\",\"\",IF(OR(VLOOKUP($A625,Economática!$A$3:$AI$823,12,FALSE)=0,VLOOKUP($A625,Economática!$A$3:$AI$823,12,FALSE)=\"-\"),1/0,VLOOKUP($A625,Economática!$A$3:$AI$823,12,FALSE)))","v":""},{"$f":"IF($A625=\"\",\"\",IF(OR(VLOOKUP($A625,Economática!$A$3:$AI$823,13,FALSE)=0,VLOOKUP($A625,Economática!$A$3:$AI$823,13,FALSE)=\"-\"),1/0,VLOOKUP($A625,Economática!$A$3:$AI$823,13,FALSE)))","v":""},{"$f":"IF($A625=\"\",\"\",IF(OR(VLOOKUP($A625,Economática!$A$3:$AI$823,14,FALSE)=0,VLOOKUP($A625,Economática!$A$3:$AI$823,14,FALSE)=\"-\"),1/0,VLOOKUP($A625,Economática!$A$3:$AI$823,14,FALSE)))","v":""},{"$f":"IF($A625=\"\",\"\",IF(OR(VLOOKUP($A625,Economática!$A$3:$AI$823,15,FALSE)=0,VLOOKUP($A625,Economática!$A$3:$AI$823,15,FALSE)=\"-\"),1/0,VLOOKUP($A625,Economática!$A$3:$AI$823,15,FALSE)))","v":""},{"$f":"IF($A625=\"\",\"\",IF(OR(VLOOKUP($A625,Economática!$A$3:$AI$823,16,FALSE)=0,VLOOKUP($A625,Economática!$A$3:$AI$823,16,FALSE)=\"-\"),1/0,VLOOKUP($A625,Economática!$A$3:$AI$823,16,FALSE)))","v":""},{"$f":"IF($A625=\"\",\"\",IF(OR(VLOOKUP($A625,Economática!$A$3:$AI$823,17,FALSE)=0,VLOOKUP($A625,Economática!$A$3:$AI$823,17,FALSE)=\"-\"),1/0,VLOOKUP($A625,Economática!$A$3:$AI$823,17,FALSE)))","v":""},{"$f":"IF($A625=\"\",\"\",IF(OR(VLOOKUP($A625,Economática!$A$3:$AI$823,18,FALSE)=0,VLOOKUP($A625,Economática!$A$3:$AI$823,18,FALSE)=\"-\"),1/0,VLOOKUP($A625,Economática!$A$3:$AI$823,18,FALSE)))","v":""},{"$f":"IF($A625=\"\",\"\",IF(OR(VLOOKUP($A625,Economática!$A$3:$AI$823,19,FALSE)=0,VLOOKUP($A625,Economática!$A$3:$AI$823,19,FALSE)=\"-\"),1/0,VLOOKUP($A625,Economática!$A$3:$AI$823,19,FALSE)))","v":""},{"$f":"IF($A625=\"\",\"\",VLOOKUP($A625,Economática!$A$3:$AI$823,20,FALSE)/E625)","v":""},"","","",{"$f":"IF($A625=\"\",\"\",IF(OR(VLOOKUP($A625,Economática!$A$3:$AI$823,21,FALSE)/100=0,VLOOKUP($A625,Economática!$A$3:$AI$823,21,FALSE)/100=\"-\"),1/0,VLOOKUP($A625,Economática!$A$3:$AI$823,21,FALSE)/100))","v":""},{"$f":"IF($A625=\"\",\"\",IF(OR(VLOOKUP($A625,Economática!$A$3:$AI$823,22,FALSE)/100=0,VLOOKUP($A625,Economática!$A$3:$AI$823,22,FALSE)/100=\"-\"),1/0,VLOOKUP($A625,Economática!$A$3:$AI$823,22,FALSE)/100))","v":""},{"$f":"IF($A625=\"\",\"\",IF(OR(VLOOKUP($A625,Economática!$A$3:$AI$823,23,FALSE)=0,VLOOKUP($A625,Economática!$A$3:$AI$823,23,FALSE)=\"-\"),1/0,VLOOKUP($A625,Economática!$A$3:$AI$823,23,FALSE)))","v":""},{"$f":"IF($A625=\"\",\"\",IF(OR(VLOOKUP($A625,Economática!$A$3:$AI$823,24,FALSE)=0,VLOOKUP($A625,Economática!$A$3:$AI$823,24,FALSE)=\"-\"),1/0,VLOOKUP($A625,Economática!$A$3:$AI$823,24,FALSE)))","v":""},{"$f":"IF($A625=\"\",\"\",IF(OR(VLOOKUP($A625,Economática!$A$3:$AI$823,25,FALSE)=0,VLOOKUP($A625,Economática!$A$3:$AI$823,25,FALSE)=\"-\"),1/0,VLOOKUP($A625,Economática!$A$3:$AI$823,25,FALSE)))","v":""},{"$f":"IF($A625=\"\",\"\",IF(ISERROR((F625+VLOOKUP($A625,Economática!$A$3:$AI$823,26,FALSE))/Y625),(F625+VLOOKUP($A625,Economática!$A$3:$AI$823,26,FALSE))/Y625,(F625+VLOOKUP($A625,Economática!$A$3:$AI$823,26,FALSE))/Y625))","v":""},{"$f":"IF($A625=\"\",\"\",IF(OR(-VLOOKUP($A625,Economática!$A$3:$AI$823,27,FALSE)=0,-VLOOKUP($A625,Economática!$A$3:$AI$823,27,FALSE)=\"-\"),1/0,-VLOOKUP($A625,Economática!$A$3:$AI$823,27,FALSE)))","v":""},"",{"$f":"IF($A625=\"\",\"\",IF(OR(VLOOKUP($A625,Economática!$A$3:$AI$823,28,FALSE)=0,VLOOKUP($A625,Economática!$A$3:$AI$823,28,FALSE)=\"-\"),1/0,VLOOKUP($A625,Economática!$A$3:$AI$823,28,FALSE)))","v":""},{"$f":"IF($A625=\"\",\"\",IF(OR(VLOOKUP($A625,Economática!$A$3:$AI$823,29,FALSE)=0,VLOOKUP($A625,Economática!$A$3:$AI$823,29,FALSE)=\"-\"),1/0,VLOOKUP($A625,Economática!$A$3:$AI$823,29,FALSE)))","v":""},{"$f":"IF($A625=\"\",\"\",IF(OR(VLOOKUP($A625,Economática!$A$3:$AI$823,30,FALSE)/E625=0,VLOOKUP($A625,Economática!$A$3:$AI$823,30,FALSE)/E625=\"-\",VLOOKUP($A625,Economática!$A$3:$AI$823,30,FALSE)/E625<33.33%,VLOOKUP($A625,Economática!$A$3:$AI$823,30,FALSE)/E625>100%),1/0,VLOOKUP($A625,Economática!$A$3:$AI$823,30,FALSE)/E625))","v":""},"",{"$f":"IF($A625=\"\",\"\",IF(OR(VLOOKUP($A625,Economática!$A$3:$AI$823,25,FALSE)=0,VLOOKUP($A625,Economática!$A$3:$AI$823,25,FALSE)=\"-\"),1/0,VLOOKUP($A625,Economática!$A$3:$AI$823,25,FALSE)))","v":""},{"$f":"CONCATENATE(Economática!B603,\" \",Economática!C603)","v":" "}]
[{"$f":"IF(Economática!AG604=\"\",\"\",Economática!AG604)","v":""},{"$f":"IF($A626=\"\",\"\",VLOOKUP(VLOOKUP($A626,Economática!$A$3:$AI$823,6,FALSE),Correção!$B$16:$C$36,2,FALSE))","v":""},{"$f":"IF(Economática!B604=\"\",\"\",Economática!B604)","v":""},{"$f":"IF($A626=\"\",\"\",IF(OR(VLOOKUP($A626,Economática!$A$3:$AI$823,8,FALSE)=0,VLOOKUP($A626,Economática!$A$3:$AI$823,8,FALSE)=\"-\"),1/0,VLOOKUP($A626,Economática!$A$3:$AI$823,8,FALSE)))","v":""},{"$f":"IF(A626=\"\",\"\",IF(ISERROR(VLOOKUP(A626,Correção!$B$2:$G$13,9,FALSE)),VLOOKUP($A626,Economática!$A$3:$AI$823,9,FALSE),VLOOKUP(A626,Correção!$B$2:$G$13,9,FALSE)))","v":""},{"$f":"IF($A626=\"\",\"\",Economática!G604)","v":""},{"$f":"IF($A626=\"\",\"\",IF(OR(VLOOKUP($A626,Economática!$A$3:$AI$823,10,FALSE)=0,VLOOKUP($A626,Economática!$A$3:$AI$823,10,FALSE)=\"-\"),1/0,VLOOKUP($A626,Economática!$A$3:$AI$823,10,FALSE)))","v":""},{"$f":"IF($A626=\"\",\"\",IF(OR(VLOOKUP($A626,Economática!$A$3:$AI$823,11,FALSE)=0,VLOOKUP($A626,Economática!$A$3:$AI$823,11,FALSE)=\"-\"),1/0,VLOOKUP($A626,Economática!$A$3:$AI$823,11,FALSE)))","v":""},{"$f":"IF($A626=\"\",\"\",IF(OR(VLOOKUP($A626,Economática!$A$3:$AI$823,12,FALSE)=0,VLOOKUP($A626,Economática!$A$3:$AI$823,12,FALSE)=\"-\"),1/0,VLOOKUP($A626,Economática!$A$3:$AI$823,12,FALSE)))","v":""},{"$f":"IF($A626=\"\",\"\",IF(OR(VLOOKUP($A626,Economática!$A$3:$AI$823,13,FALSE)=0,VLOOKUP($A626,Economática!$A$3:$AI$823,13,FALSE)=\"-\"),1/0,VLOOKUP($A626,Economática!$A$3:$AI$823,13,FALSE)))","v":""},{"$f":"IF($A626=\"\",\"\",IF(OR(VLOOKUP($A626,Economática!$A$3:$AI$823,14,FALSE)=0,VLOOKUP($A626,Economática!$A$3:$AI$823,14,FALSE)=\"-\"),1/0,VLOOKUP($A626,Economática!$A$3:$AI$823,14,FALSE)))","v":""},{"$f":"IF($A626=\"\",\"\",IF(OR(VLOOKUP($A626,Economática!$A$3:$AI$823,15,FALSE)=0,VLOOKUP($A626,Economática!$A$3:$AI$823,15,FALSE)=\"-\"),1/0,VLOOKUP($A626,Economática!$A$3:$AI$823,15,FALSE)))","v":""},{"$f":"IF($A626=\"\",\"\",IF(OR(VLOOKUP($A626,Economática!$A$3:$AI$823,16,FALSE)=0,VLOOKUP($A626,Economática!$A$3:$AI$823,16,FALSE)=\"-\"),1/0,VLOOKUP($A626,Economática!$A$3:$AI$823,16,FALSE)))","v":""},{"$f":"IF($A626=\"\",\"\",IF(OR(VLOOKUP($A626,Economática!$A$3:$AI$823,17,FALSE)=0,VLOOKUP($A626,Economática!$A$3:$AI$823,17,FALSE)=\"-\"),1/0,VLOOKUP($A626,Economática!$A$3:$AI$823,17,FALSE)))","v":""},{"$f":"IF($A626=\"\",\"\",IF(OR(VLOOKUP($A626,Economática!$A$3:$AI$823,18,FALSE)=0,VLOOKUP($A626,Economática!$A$3:$AI$823,18,FALSE)=\"-\"),1/0,VLOOKUP($A626,Economática!$A$3:$AI$823,18,FALSE)))","v":""},{"$f":"IF($A626=\"\",\"\",IF(OR(VLOOKUP($A626,Economática!$A$3:$AI$823,19,FALSE)=0,VLOOKUP($A626,Economática!$A$3:$AI$823,19,FALSE)=\"-\"),1/0,VLOOKUP($A626,Economática!$A$3:$AI$823,19,FALSE)))","v":""},{"$f":"IF($A626=\"\",\"\",VLOOKUP($A626,Economática!$A$3:$AI$823,20,FALSE)/E626)","v":""},"","","",{"$f":"IF($A626=\"\",\"\",IF(OR(VLOOKUP($A626,Economática!$A$3:$AI$823,21,FALSE)/100=0,VLOOKUP($A626,Economática!$A$3:$AI$823,21,FALSE)/100=\"-\"),1/0,VLOOKUP($A626,Economática!$A$3:$AI$823,21,FALSE)/100))","v":""},{"$f":"IF($A626=\"\",\"\",IF(OR(VLOOKUP($A626,Economática!$A$3:$AI$823,22,FALSE)/100=0,VLOOKUP($A626,Economática!$A$3:$AI$823,22,FALSE)/100=\"-\"),1/0,VLOOKUP($A626,Economática!$A$3:$AI$823,22,FALSE)/100))","v":""},{"$f":"IF($A626=\"\",\"\",IF(OR(VLOOKUP($A626,Economática!$A$3:$AI$823,23,FALSE)=0,VLOOKUP($A626,Economática!$A$3:$AI$823,23,FALSE)=\"-\"),1/0,VLOOKUP($A626,Economática!$A$3:$AI$823,23,FALSE)))","v":""},{"$f":"IF($A626=\"\",\"\",IF(OR(VLOOKUP($A626,Economática!$A$3:$AI$823,24,FALSE)=0,VLOOKUP($A626,Economática!$A$3:$AI$823,24,FALSE)=\"-\"),1/0,VLOOKUP($A626,Economática!$A$3:$AI$823,24,FALSE)))","v":""},{"$f":"IF($A626=\"\",\"\",IF(OR(VLOOKUP($A626,Economática!$A$3:$AI$823,25,FALSE)=0,VLOOKUP($A626,Economática!$A$3:$AI$823,25,FALSE)=\"-\"),1/0,VLOOKUP($A626,Economática!$A$3:$AI$823,25,FALSE)))","v":""},{"$f":"IF($A626=\"\",\"\",IF(ISERROR((F626+VLOOKUP($A626,Economática!$A$3:$AI$823,26,FALSE))/Y626),(F626+VLOOKUP($A626,Economática!$A$3:$AI$823,26,FALSE))/Y626,(F626+VLOOKUP($A626,Economática!$A$3:$AI$823,26,FALSE))/Y626))","v":""},{"$f":"IF($A626=\"\",\"\",IF(OR(-VLOOKUP($A626,Economática!$A$3:$AI$823,27,FALSE)=0,-VLOOKUP($A626,Economática!$A$3:$AI$823,27,FALSE)=\"-\"),1/0,-VLOOKUP($A626,Economática!$A$3:$AI$823,27,FALSE)))","v":""},"",{"$f":"IF($A626=\"\",\"\",IF(OR(VLOOKUP($A626,Economática!$A$3:$AI$823,28,FALSE)=0,VLOOKUP($A626,Economática!$A$3:$AI$823,28,FALSE)=\"-\"),1/0,VLOOKUP($A626,Economática!$A$3:$AI$823,28,FALSE)))","v":""},{"$f":"IF($A626=\"\",\"\",IF(OR(VLOOKUP($A626,Economática!$A$3:$AI$823,29,FALSE)=0,VLOOKUP($A626,Economática!$A$3:$AI$823,29,FALSE)=\"-\"),1/0,VLOOKUP($A626,Economática!$A$3:$AI$823,29,FALSE)))","v":""},{"$f":"IF($A626=\"\",\"\",IF(OR(VLOOKUP($A626,Economática!$A$3:$AI$823,30,FALSE)/E626=0,VLOOKUP($A626,Economática!$A$3:$AI$823,30,FALSE)/E626=\"-\",VLOOKUP($A626,Economática!$A$3:$AI$823,30,FALSE)/E626<33.33%,VLOOKUP($A626,Economática!$A$3:$AI$823,30,FALSE)/E626>100%),1/0,VLOOKUP($A626,Economática!$A$3:$AI$823,30,FALSE)/E626))","v":""},"",{"$f":"IF($A626=\"\",\"\",IF(OR(VLOOKUP($A626,Economática!$A$3:$AI$823,25,FALSE)=0,VLOOKUP($A626,Economática!$A$3:$AI$823,25,FALSE)=\"-\"),1/0,VLOOKUP($A626,Economática!$A$3:$AI$823,25,FALSE)))","v":""},{"$f":"CONCATENATE(Economática!B604,\" \",Economática!C604)","v":" "}]
[{"$f":"IF(Economática!AG605=\"\",\"\",Economática!AG605)","v":""},{"$f":"IF($A627=\"\",\"\",VLOOKUP(VLOOKUP($A627,Economática!$A$3:$AI$823,6,FALSE),Correção!$B$16:$C$36,2,FALSE))","v":""},{"$f":"IF(Economática!B605=\"\",\"\",Economática!B605)","v":""},{"$f":"IF($A627=\"\",\"\",IF(OR(VLOOKUP($A627,Economática!$A$3:$AI$823,8,FALSE)=0,VLOOKUP($A627,Economática!$A$3:$AI$823,8,FALSE)=\"-\"),1/0,VLOOKUP($A627,Economática!$A$3:$AI$823,8,FALSE)))","v":""},{"$f":"IF(A627=\"\",\"\",IF(ISERROR(VLOOKUP(A627,Correção!$B$2:$G$13,9,FALSE)),VLOOKUP($A627,Economática!$A$3:$AI$823,9,FALSE),VLOOKUP(A627,Correção!$B$2:$G$13,9,FALSE)))","v":""},{"$f":"IF($A627=\"\",\"\",Economática!G605)","v":""},{"$f":"IF($A627=\"\",\"\",IF(OR(VLOOKUP($A627,Economática!$A$3:$AI$823,10,FALSE)=0,VLOOKUP($A627,Economática!$A$3:$AI$823,10,FALSE)=\"-\"),1/0,VLOOKUP($A627,Economática!$A$3:$AI$823,10,FALSE)))","v":""},{"$f":"IF($A627=\"\",\"\",IF(OR(VLOOKUP($A627,Economática!$A$3:$AI$823,11,FALSE)=0,VLOOKUP($A627,Economática!$A$3:$AI$823,11,FALSE)=\"-\"),1/0,VLOOKUP($A627,Economática!$A$3:$AI$823,11,FALSE)))","v":""},{"$f":"IF($A627=\"\",\"\",IF(OR(VLOOKUP($A627,Economática!$A$3:$AI$823,12,FALSE)=0,VLOOKUP($A627,Economática!$A$3:$AI$823,12,FALSE)=\"-\"),1/0,VLOOKUP($A627,Economática!$A$3:$AI$823,12,FALSE)))","v":""},{"$f":"IF($A627=\"\",\"\",IF(OR(VLOOKUP($A627,Economática!$A$3:$AI$823,13,FALSE)=0,VLOOKUP($A627,Economática!$A$3:$AI$823,13,FALSE)=\"-\"),1/0,VLOOKUP($A627,Economática!$A$3:$AI$823,13,FALSE)))","v":""},{"$f":"IF($A627=\"\",\"\",IF(OR(VLOOKUP($A627,Economática!$A$3:$AI$823,14,FALSE)=0,VLOOKUP($A627,Economática!$A$3:$AI$823,14,FALSE)=\"-\"),1/0,VLOOKUP($A627,Economática!$A$3:$AI$823,14,FALSE)))","v":""},{"$f":"IF($A627=\"\",\"\",IF(OR(VLOOKUP($A627,Economática!$A$3:$AI$823,15,FALSE)=0,VLOOKUP($A627,Economática!$A$3:$AI$823,15,FALSE)=\"-\"),1/0,VLOOKUP($A627,Economática!$A$3:$AI$823,15,FALSE)))","v":""},{"$f":"IF($A627=\"\",\"\",IF(OR(VLOOKUP($A627,Economática!$A$3:$AI$823,16,FALSE)=0,VLOOKUP($A627,Economática!$A$3:$AI$823,16,FALSE)=\"-\"),1/0,VLOOKUP($A627,Economática!$A$3:$AI$823,16,FALSE)))","v":""},{"$f":"IF($A627=\"\",\"\",IF(OR(VLOOKUP($A627,Economática!$A$3:$AI$823,17,FALSE)=0,VLOOKUP($A627,Economática!$A$3:$AI$823,17,FALSE)=\"-\"),1/0,VLOOKUP($A627,Economática!$A$3:$AI$823,17,FALSE)))","v":""},{"$f":"IF($A627=\"\",\"\",IF(OR(VLOOKUP($A627,Economática!$A$3:$AI$823,18,FALSE)=0,VLOOKUP($A627,Economática!$A$3:$AI$823,18,FALSE)=\"-\"),1/0,VLOOKUP($A627,Economática!$A$3:$AI$823,18,FALSE)))","v":""},{"$f":"IF($A627=\"\",\"\",IF(OR(VLOOKUP($A627,Economática!$A$3:$AI$823,19,FALSE)=0,VLOOKUP($A627,Economática!$A$3:$AI$823,19,FALSE)=\"-\"),1/0,VLOOKUP($A627,Economática!$A$3:$AI$823,19,FALSE)))","v":""},{"$f":"IF($A627=\"\",\"\",VLOOKUP($A627,Economática!$A$3:$AI$823,20,FALSE)/E627)","v":""},"","","",{"$f":"IF($A627=\"\",\"\",IF(OR(VLOOKUP($A627,Economática!$A$3:$AI$823,21,FALSE)/100=0,VLOOKUP($A627,Economática!$A$3:$AI$823,21,FALSE)/100=\"-\"),1/0,VLOOKUP($A627,Economática!$A$3:$AI$823,21,FALSE)/100))","v":""},{"$f":"IF($A627=\"\",\"\",IF(OR(VLOOKUP($A627,Economática!$A$3:$AI$823,22,FALSE)/100=0,VLOOKUP($A627,Economática!$A$3:$AI$823,22,FALSE)/100=\"-\"),1/0,VLOOKUP($A627,Economática!$A$3:$AI$823,22,FALSE)/100))","v":""},{"$f":"IF($A627=\"\",\"\",IF(OR(VLOOKUP($A627,Economática!$A$3:$AI$823,23,FALSE)=0,VLOOKUP($A627,Economática!$A$3:$AI$823,23,FALSE)=\"-\"),1/0,VLOOKUP($A627,Economática!$A$3:$AI$823,23,FALSE)))","v":""},{"$f":"IF($A627=\"\",\"\",IF(OR(VLOOKUP($A627,Economática!$A$3:$AI$823,24,FALSE)=0,VLOOKUP($A627,Economática!$A$3:$AI$823,24,FALSE)=\"-\"),1/0,VLOOKUP($A627,Economática!$A$3:$AI$823,24,FALSE)))","v":""},{"$f":"IF($A627=\"\",\"\",IF(OR(VLOOKUP($A627,Economática!$A$3:$AI$823,25,FALSE)=0,VLOOKUP($A627,Economática!$A$3:$AI$823,25,FALSE)=\"-\"),1/0,VLOOKUP($A627,Economática!$A$3:$AI$823,25,FALSE)))","v":""},{"$f":"IF($A627=\"\",\"\",IF(ISERROR((F627+VLOOKUP($A627,Economática!$A$3:$AI$823,26,FALSE))/Y627),(F627+VLOOKUP($A627,Economática!$A$3:$AI$823,26,FALSE))/Y627,(F627+VLOOKUP($A627,Economática!$A$3:$AI$823,26,FALSE))/Y627))","v":""},{"$f":"IF($A627=\"\",\"\",IF(OR(-VLOOKUP($A627,Economática!$A$3:$AI$823,27,FALSE)=0,-VLOOKUP($A627,Economática!$A$3:$AI$823,27,FALSE)=\"-\"),1/0,-VLOOKUP($A627,Economática!$A$3:$AI$823,27,FALSE)))","v":""},"",{"$f":"IF($A627=\"\",\"\",IF(OR(VLOOKUP($A627,Economática!$A$3:$AI$823,28,FALSE)=0,VLOOKUP($A627,Economática!$A$3:$AI$823,28,FALSE)=\"-\"),1/0,VLOOKUP($A627,Economática!$A$3:$AI$823,28,FALSE)))","v":""},{"$f":"IF($A627=\"\",\"\",IF(OR(VLOOKUP($A627,Economática!$A$3:$AI$823,29,FALSE)=0,VLOOKUP($A627,Economática!$A$3:$AI$823,29,FALSE)=\"-\"),1/0,VLOOKUP($A627,Economática!$A$3:$AI$823,29,FALSE)))","v":""},{"$f":"IF($A627=\"\",\"\",IF(OR(VLOOKUP($A627,Economática!$A$3:$AI$823,30,FALSE)/E627=0,VLOOKUP($A627,Economática!$A$3:$AI$823,30,FALSE)/E627=\"-\",VLOOKUP($A627,Economática!$A$3:$AI$823,30,FALSE)/E627<33.33%,VLOOKUP($A627,Economática!$A$3:$AI$823,30,FALSE)/E627>100%),1/0,VLOOKUP($A627,Economática!$A$3:$AI$823,30,FALSE)/E627))","v":""},"",{"$f":"IF($A627=\"\",\"\",IF(OR(VLOOKUP($A627,Economática!$A$3:$AI$823,25,FALSE)=0,VLOOKUP($A627,Economática!$A$3:$AI$823,25,FALSE)=\"-\"),1/0,VLOOKUP($A627,Economática!$A$3:$AI$823,25,FALSE)))","v":""},{"$f":"CONCATENATE(Economática!B605,\" \",Economática!C605)","v":" "}]
[{"$f":"IF(Economática!AG606=\"\",\"\",Economática!AG606)","v":""},{"$f":"IF($A628=\"\",\"\",VLOOKUP(VLOOKUP($A628,Economática!$A$3:$AI$823,6,FALSE),Correção!$B$16:$C$36,2,FALSE))","v":""},{"$f":"IF(Economática!B606=\"\",\"\",Economática!B606)","v":""},{"$f":"IF($A628=\"\",\"\",IF(OR(VLOOKUP($A628,Economática!$A$3:$AI$823,8,FALSE)=0,VLOOKUP($A628,Economática!$A$3:$AI$823,8,FALSE)=\"-\"),1/0,VLOOKUP($A628,Economática!$A$3:$AI$823,8,FALSE)))","v":""},{"$f":"IF(A628=\"\",\"\",IF(ISERROR(VLOOKUP(A628,Correção!$B$2:$G$13,9,FALSE)),VLOOKUP($A628,Economática!$A$3:$AI$823,9,FALSE),VLOOKUP(A628,Correção!$B$2:$G$13,9,FALSE)))","v":""},{"$f":"IF($A628=\"\",\"\",Economática!G606)","v":""},{"$f":"IF($A628=\"\",\"\",IF(OR(VLOOKUP($A628,Economática!$A$3:$AI$823,10,FALSE)=0,VLOOKUP($A628,Economática!$A$3:$AI$823,10,FALSE)=\"-\"),1/0,VLOOKUP($A628,Economática!$A$3:$AI$823,10,FALSE)))","v":""},{"$f":"IF($A628=\"\",\"\",IF(OR(VLOOKUP($A628,Economática!$A$3:$AI$823,11,FALSE)=0,VLOOKUP($A628,Economática!$A$3:$AI$823,11,FALSE)=\"-\"),1/0,VLOOKUP($A628,Economática!$A$3:$AI$823,11,FALSE)))","v":""},{"$f":"IF($A628=\"\",\"\",IF(OR(VLOOKUP($A628,Economática!$A$3:$AI$823,12,FALSE)=0,VLOOKUP($A628,Economática!$A$3:$AI$823,12,FALSE)=\"-\"),1/0,VLOOKUP($A628,Economática!$A$3:$AI$823,12,FALSE)))","v":""},{"$f":"IF($A628=\"\",\"\",IF(OR(VLOOKUP($A628,Economática!$A$3:$AI$823,13,FALSE)=0,VLOOKUP($A628,Economática!$A$3:$AI$823,13,FALSE)=\"-\"),1/0,VLOOKUP($A628,Economática!$A$3:$AI$823,13,FALSE)))","v":""},{"$f":"IF($A628=\"\",\"\",IF(OR(VLOOKUP($A628,Economática!$A$3:$AI$823,14,FALSE)=0,VLOOKUP($A628,Economática!$A$3:$AI$823,14,FALSE)=\"-\"),1/0,VLOOKUP($A628,Economática!$A$3:$AI$823,14,FALSE)))","v":""},{"$f":"IF($A628=\"\",\"\",IF(OR(VLOOKUP($A628,Economática!$A$3:$AI$823,15,FALSE)=0,VLOOKUP($A628,Economática!$A$3:$AI$823,15,FALSE)=\"-\"),1/0,VLOOKUP($A628,Economática!$A$3:$AI$823,15,FALSE)))","v":""},{"$f":"IF($A628=\"\",\"\",IF(OR(VLOOKUP($A628,Economática!$A$3:$AI$823,16,FALSE)=0,VLOOKUP($A628,Economática!$A$3:$AI$823,16,FALSE)=\"-\"),1/0,VLOOKUP($A628,Economática!$A$3:$AI$823,16,FALSE)))","v":""},{"$f":"IF($A628=\"\",\"\",IF(OR(VLOOKUP($A628,Economática!$A$3:$AI$823,17,FALSE)=0,VLOOKUP($A628,Economática!$A$3:$AI$823,17,FALSE)=\"-\"),1/0,VLOOKUP($A628,Economática!$A$3:$AI$823,17,FALSE)))","v":""},{"$f":"IF($A628=\"\",\"\",IF(OR(VLOOKUP($A628,Economática!$A$3:$AI$823,18,FALSE)=0,VLOOKUP($A628,Economática!$A$3:$AI$823,18,FALSE)=\"-\"),1/0,VLOOKUP($A628,Economática!$A$3:$AI$823,18,FALSE)))","v":""},{"$f":"IF($A628=\"\",\"\",IF(OR(VLOOKUP($A628,Economática!$A$3:$AI$823,19,FALSE)=0,VLOOKUP($A628,Economática!$A$3:$AI$823,19,FALSE)=\"-\"),1/0,VLOOKUP($A628,Economática!$A$3:$AI$823,19,FALSE)))","v":""},{"$f":"IF($A628=\"\",\"\",VLOOKUP($A628,Economática!$A$3:$AI$823,20,FALSE)/E628)","v":""},"","","",{"$f":"IF($A628=\"\",\"\",IF(OR(VLOOKUP($A628,Economática!$A$3:$AI$823,21,FALSE)/100=0,VLOOKUP($A628,Economática!$A$3:$AI$823,21,FALSE)/100=\"-\"),1/0,VLOOKUP($A628,Economática!$A$3:$AI$823,21,FALSE)/100))","v":""},{"$f":"IF($A628=\"\",\"\",IF(OR(VLOOKUP($A628,Economática!$A$3:$AI$823,22,FALSE)/100=0,VLOOKUP($A628,Economática!$A$3:$AI$823,22,FALSE)/100=\"-\"),1/0,VLOOKUP($A628,Economática!$A$3:$AI$823,22,FALSE)/100))","v":""},{"$f":"IF($A628=\"\",\"\",IF(OR(VLOOKUP($A628,Economática!$A$3:$AI$823,23,FALSE)=0,VLOOKUP($A628,Economática!$A$3:$AI$823,23,FALSE)=\"-\"),1/0,VLOOKUP($A628,Economática!$A$3:$AI$823,23,FALSE)))","v":""},{"$f":"IF($A628=\"\",\"\",IF(OR(VLOOKUP($A628,Economática!$A$3:$AI$823,24,FALSE)=0,VLOOKUP($A628,Economática!$A$3:$AI$823,24,FALSE)=\"-\"),1/0,VLOOKUP($A628,Economática!$A$3:$AI$823,24,FALSE)))","v":""},{"$f":"IF($A628=\"\",\"\",IF(OR(VLOOKUP($A628,Economática!$A$3:$AI$823,25,FALSE)=0,VLOOKUP($A628,Economática!$A$3:$AI$823,25,FALSE)=\"-\"),1/0,VLOOKUP($A628,Economática!$A$3:$AI$823,25,FALSE)))","v":""},{"$f":"IF($A628=\"\",\"\",IF(ISERROR((F628+VLOOKUP($A628,Economática!$A$3:$AI$823,26,FALSE))/Y628),(F628+VLOOKUP($A628,Economática!$A$3:$AI$823,26,FALSE))/Y628,(F628+VLOOKUP($A628,Economática!$A$3:$AI$823,26,FALSE))/Y628))","v":""},{"$f":"IF($A628=\"\",\"\",IF(OR(-VLOOKUP($A628,Economática!$A$3:$AI$823,27,FALSE)=0,-VLOOKUP($A628,Economática!$A$3:$AI$823,27,FALSE)=\"-\"),1/0,-VLOOKUP($A628,Economática!$A$3:$AI$823,27,FALSE)))","v":""},"",{"$f":"IF($A628=\"\",\"\",IF(OR(VLOOKUP($A628,Economática!$A$3:$AI$823,28,FALSE)=0,VLOOKUP($A628,Economática!$A$3:$AI$823,28,FALSE)=\"-\"),1/0,VLOOKUP($A628,Economática!$A$3:$AI$823,28,FALSE)))","v":""},{"$f":"IF($A628=\"\",\"\",IF(OR(VLOOKUP($A628,Economática!$A$3:$AI$823,29,FALSE)=0,VLOOKUP($A628,Economática!$A$3:$AI$823,29,FALSE)=\"-\"),1/0,VLOOKUP($A628,Economática!$A$3:$AI$823,29,FALSE)))","v":""},{"$f":"IF($A628=\"\",\"\",IF(OR(VLOOKUP($A628,Economática!$A$3:$AI$823,30,FALSE)/E628=0,VLOOKUP($A628,Economática!$A$3:$AI$823,30,FALSE)/E628=\"-\",VLOOKUP($A628,Economática!$A$3:$AI$823,30,FALSE)/E628<33.33%,VLOOKUP($A628,Economática!$A$3:$AI$823,30,FALSE)/E628>100%),1/0,VLOOKUP($A628,Economática!$A$3:$AI$823,30,FALSE)/E628))","v":""},"",{"$f":"IF($A628=\"\",\"\",IF(OR(VLOOKUP($A628,Economática!$A$3:$AI$823,25,FALSE)=0,VLOOKUP($A628,Economática!$A$3:$AI$823,25,FALSE)=\"-\"),1/0,VLOOKUP($A628,Economática!$A$3:$AI$823,25,FALSE)))","v":""},{"$f":"CONCATENATE(Economática!B606,\" \",Economática!C606)","v":" "}]
[{"$f":"IF(Economática!AG607=\"\",\"\",Economática!AG607)","v":""},{"$f":"IF($A629=\"\",\"\",VLOOKUP(VLOOKUP($A629,Economática!$A$3:$AI$823,6,FALSE),Correção!$B$16:$C$36,2,FALSE))","v":""},{"$f":"IF(Economática!B607=\"\",\"\",Economática!B607)","v":""},{"$f":"IF($A629=\"\",\"\",IF(OR(VLOOKUP($A629,Economática!$A$3:$AI$823,8,FALSE)=0,VLOOKUP($A629,Economática!$A$3:$AI$823,8,FALSE)=\"-\"),1/0,VLOOKUP($A629,Economática!$A$3:$AI$823,8,FALSE)))","v":""},{"$f":"IF(A629=\"\",\"\",IF(ISERROR(VLOOKUP(A629,Correção!$B$2:$G$13,9,FALSE)),VLOOKUP($A629,Economática!$A$3:$AI$823,9,FALSE),VLOOKUP(A629,Correção!$B$2:$G$13,9,FALSE)))","v":""},{"$f":"IF($A629=\"\",\"\",Economática!G607)","v":""},{"$f":"IF($A629=\"\",\"\",IF(OR(VLOOKUP($A629,Economática!$A$3:$AI$823,10,FALSE)=0,VLOOKUP($A629,Economática!$A$3:$AI$823,10,FALSE)=\"-\"),1/0,VLOOKUP($A629,Economática!$A$3:$AI$823,10,FALSE)))","v":""},{"$f":"IF($A629=\"\",\"\",IF(OR(VLOOKUP($A629,Economática!$A$3:$AI$823,11,FALSE)=0,VLOOKUP($A629,Economática!$A$3:$AI$823,11,FALSE)=\"-\"),1/0,VLOOKUP($A629,Economática!$A$3:$AI$823,11,FALSE)))","v":""},{"$f":"IF($A629=\"\",\"\",IF(OR(VLOOKUP($A629,Economática!$A$3:$AI$823,12,FALSE)=0,VLOOKUP($A629,Economática!$A$3:$AI$823,12,FALSE)=\"-\"),1/0,VLOOKUP($A629,Economática!$A$3:$AI$823,12,FALSE)))","v":""},{"$f":"IF($A629=\"\",\"\",IF(OR(VLOOKUP($A629,Economática!$A$3:$AI$823,13,FALSE)=0,VLOOKUP($A629,Economática!$A$3:$AI$823,13,FALSE)=\"-\"),1/0,VLOOKUP($A629,Economática!$A$3:$AI$823,13,FALSE)))","v":""},{"$f":"IF($A629=\"\",\"\",IF(OR(VLOOKUP($A629,Economática!$A$3:$AI$823,14,FALSE)=0,VLOOKUP($A629,Economática!$A$3:$AI$823,14,FALSE)=\"-\"),1/0,VLOOKUP($A629,Economática!$A$3:$AI$823,14,FALSE)))","v":""},{"$f":"IF($A629=\"\",\"\",IF(OR(VLOOKUP($A629,Economática!$A$3:$AI$823,15,FALSE)=0,VLOOKUP($A629,Economática!$A$3:$AI$823,15,FALSE)=\"-\"),1/0,VLOOKUP($A629,Economática!$A$3:$AI$823,15,FALSE)))","v":""},{"$f":"IF($A629=\"\",\"\",IF(OR(VLOOKUP($A629,Economática!$A$3:$AI$823,16,FALSE)=0,VLOOKUP($A629,Economática!$A$3:$AI$823,16,FALSE)=\"-\"),1/0,VLOOKUP($A629,Economática!$A$3:$AI$823,16,FALSE)))","v":""},{"$f":"IF($A629=\"\",\"\",IF(OR(VLOOKUP($A629,Economática!$A$3:$AI$823,17,FALSE)=0,VLOOKUP($A629,Economática!$A$3:$AI$823,17,FALSE)=\"-\"),1/0,VLOOKUP($A629,Economática!$A$3:$AI$823,17,FALSE)))","v":""},{"$f":"IF($A629=\"\",\"\",IF(OR(VLOOKUP($A629,Economática!$A$3:$AI$823,18,FALSE)=0,VLOOKUP($A629,Economática!$A$3:$AI$823,18,FALSE)=\"-\"),1/0,VLOOKUP($A629,Economática!$A$3:$AI$823,18,FALSE)))","v":""},{"$f":"IF($A629=\"\",\"\",IF(OR(VLOOKUP($A629,Economática!$A$3:$AI$823,19,FALSE)=0,VLOOKUP($A629,Economática!$A$3:$AI$823,19,FALSE)=\"-\"),1/0,VLOOKUP($A629,Economática!$A$3:$AI$823,19,FALSE)))","v":""},{"$f":"IF($A629=\"\",\"\",VLOOKUP($A629,Economática!$A$3:$AI$823,20,FALSE)/E629)","v":""},"","","",{"$f":"IF($A629=\"\",\"\",IF(OR(VLOOKUP($A629,Economática!$A$3:$AI$823,21,FALSE)/100=0,VLOOKUP($A629,Economática!$A$3:$AI$823,21,FALSE)/100=\"-\"),1/0,VLOOKUP($A629,Economática!$A$3:$AI$823,21,FALSE)/100))","v":""},{"$f":"IF($A629=\"\",\"\",IF(OR(VLOOKUP($A629,Economática!$A$3:$AI$823,22,FALSE)/100=0,VLOOKUP($A629,Economática!$A$3:$AI$823,22,FALSE)/100=\"-\"),1/0,VLOOKUP($A629,Economática!$A$3:$AI$823,22,FALSE)/100))","v":""},{"$f":"IF($A629=\"\",\"\",IF(OR(VLOOKUP($A629,Economática!$A$3:$AI$823,23,FALSE)=0,VLOOKUP($A629,Economática!$A$3:$AI$823,23,FALSE)=\"-\"),1/0,VLOOKUP($A629,Economática!$A$3:$AI$823,23,FALSE)))","v":""},{"$f":"IF($A629=\"\",\"\",IF(OR(VLOOKUP($A629,Economática!$A$3:$AI$823,24,FALSE)=0,VLOOKUP($A629,Economática!$A$3:$AI$823,24,FALSE)=\"-\"),1/0,VLOOKUP($A629,Economática!$A$3:$AI$823,24,FALSE)))","v":""},{"$f":"IF($A629=\"\",\"\",IF(OR(VLOOKUP($A629,Economática!$A$3:$AI$823,25,FALSE)=0,VLOOKUP($A629,Economática!$A$3:$AI$823,25,FALSE)=\"-\"),1/0,VLOOKUP($A629,Economática!$A$3:$AI$823,25,FALSE)))","v":""},{"$f":"IF($A629=\"\",\"\",IF(ISERROR((F629+VLOOKUP($A629,Economática!$A$3:$AI$823,26,FALSE))/Y629),(F629+VLOOKUP($A629,Economática!$A$3:$AI$823,26,FALSE))/Y629,(F629+VLOOKUP($A629,Economática!$A$3:$AI$823,26,FALSE))/Y629))","v":""},{"$f":"IF($A629=\"\",\"\",IF(OR(-VLOOKUP($A629,Economática!$A$3:$AI$823,27,FALSE)=0,-VLOOKUP($A629,Economática!$A$3:$AI$823,27,FALSE)=\"-\"),1/0,-VLOOKUP($A629,Economática!$A$3:$AI$823,27,FALSE)))","v":""},"",{"$f":"IF($A629=\"\",\"\",IF(OR(VLOOKUP($A629,Economática!$A$3:$AI$823,28,FALSE)=0,VLOOKUP($A629,Economática!$A$3:$AI$823,28,FALSE)=\"-\"),1/0,VLOOKUP($A629,Economática!$A$3:$AI$823,28,FALSE)))","v":""},{"$f":"IF($A629=\"\",\"\",IF(OR(VLOOKUP($A629,Economática!$A$3:$AI$823,29,FALSE)=0,VLOOKUP($A629,Economática!$A$3:$AI$823,29,FALSE)=\"-\"),1/0,VLOOKUP($A629,Economática!$A$3:$AI$823,29,FALSE)))","v":""},{"$f":"IF($A629=\"\",\"\",IF(OR(VLOOKUP($A629,Economática!$A$3:$AI$823,30,FALSE)/E629=0,VLOOKUP($A629,Economática!$A$3:$AI$823,30,FALSE)/E629=\"-\",VLOOKUP($A629,Economática!$A$3:$AI$823,30,FALSE)/E629<33.33%,VLOOKUP($A629,Economática!$A$3:$AI$823,30,FALSE)/E629>100%),1/0,VLOOKUP($A629,Economática!$A$3:$AI$823,30,FALSE)/E629))","v":""},"",{"$f":"IF($A629=\"\",\"\",IF(OR(VLOOKUP($A629,Economática!$A$3:$AI$823,25,FALSE)=0,VLOOKUP($A629,Economática!$A$3:$AI$823,25,FALSE)=\"-\"),1/0,VLOOKUP($A629,Economática!$A$3:$AI$823,25,FALSE)))","v":""},{"$f":"CONCATENATE(Economática!B607,\" \",Economática!C607)","v":" "}]
[{"$f":"IF(Economática!AG608=\"\",\"\",Economática!AG608)","v":""},{"$f":"IF($A630=\"\",\"\",VLOOKUP(VLOOKUP($A630,Economática!$A$3:$AI$823,6,FALSE),Correção!$B$16:$C$36,2,FALSE))","v":""},{"$f":"IF(Economática!B608=\"\",\"\",Economática!B608)","v":""},{"$f":"IF($A630=\"\",\"\",IF(OR(VLOOKUP($A630,Economática!$A$3:$AI$823,8,FALSE)=0,VLOOKUP($A630,Economática!$A$3:$AI$823,8,FALSE)=\"-\"),1/0,VLOOKUP($A630,Economática!$A$3:$AI$823,8,FALSE)))","v":""},{"$f":"IF(A630=\"\",\"\",IF(ISERROR(VLOOKUP(A630,Correção!$B$2:$G$13,9,FALSE)),VLOOKUP($A630,Economática!$A$3:$AI$823,9,FALSE),VLOOKUP(A630,Correção!$B$2:$G$13,9,FALSE)))","v":""},{"$f":"IF($A630=\"\",\"\",Economática!G608)","v":""},{"$f":"IF($A630=\"\",\"\",IF(OR(VLOOKUP($A630,Economática!$A$3:$AI$823,10,FALSE)=0,VLOOKUP($A630,Economática!$A$3:$AI$823,10,FALSE)=\"-\"),1/0,VLOOKUP($A630,Economática!$A$3:$AI$823,10,FALSE)))","v":""},{"$f":"IF($A630=\"\",\"\",IF(OR(VLOOKUP($A630,Economática!$A$3:$AI$823,11,FALSE)=0,VLOOKUP($A630,Economática!$A$3:$AI$823,11,FALSE)=\"-\"),1/0,VLOOKUP($A630,Economática!$A$3:$AI$823,11,FALSE)))","v":""},{"$f":"IF($A630=\"\",\"\",IF(OR(VLOOKUP($A630,Economática!$A$3:$AI$823,12,FALSE)=0,VLOOKUP($A630,Economática!$A$3:$AI$823,12,FALSE)=\"-\"),1/0,VLOOKUP($A630,Economática!$A$3:$AI$823,12,FALSE)))","v":""},{"$f":"IF($A630=\"\",\"\",IF(OR(VLOOKUP($A630,Economática!$A$3:$AI$823,13,FALSE)=0,VLOOKUP($A630,Economática!$A$3:$AI$823,13,FALSE)=\"-\"),1/0,VLOOKUP($A630,Economática!$A$3:$AI$823,13,FALSE)))","v":""},{"$f":"IF($A630=\"\",\"\",IF(OR(VLOOKUP($A630,Economática!$A$3:$AI$823,14,FALSE)=0,VLOOKUP($A630,Economática!$A$3:$AI$823,14,FALSE)=\"-\"),1/0,VLOOKUP($A630,Economática!$A$3:$AI$823,14,FALSE)))","v":""},{"$f":"IF($A630=\"\",\"\",IF(OR(VLOOKUP($A630,Economática!$A$3:$AI$823,15,FALSE)=0,VLOOKUP($A630,Economática!$A$3:$AI$823,15,FALSE)=\"-\"),1/0,VLOOKUP($A630,Economática!$A$3:$AI$823,15,FALSE)))","v":""},{"$f":"IF($A630=\"\",\"\",IF(OR(VLOOKUP($A630,Economática!$A$3:$AI$823,16,FALSE)=0,VLOOKUP($A630,Economática!$A$3:$AI$823,16,FALSE)=\"-\"),1/0,VLOOKUP($A630,Economática!$A$3:$AI$823,16,FALSE)))","v":""},{"$f":"IF($A630=\"\",\"\",IF(OR(VLOOKUP($A630,Economática!$A$3:$AI$823,17,FALSE)=0,VLOOKUP($A630,Economática!$A$3:$AI$823,17,FALSE)=\"-\"),1/0,VLOOKUP($A630,Economática!$A$3:$AI$823,17,FALSE)))","v":""},{"$f":"IF($A630=\"\",\"\",IF(OR(VLOOKUP($A630,Economática!$A$3:$AI$823,18,FALSE)=0,VLOOKUP($A630,Economática!$A$3:$AI$823,18,FALSE)=\"-\"),1/0,VLOOKUP($A630,Economática!$A$3:$AI$823,18,FALSE)))","v":""},{"$f":"IF($A630=\"\",\"\",IF(OR(VLOOKUP($A630,Economática!$A$3:$AI$823,19,FALSE)=0,VLOOKUP($A630,Economática!$A$3:$AI$823,19,FALSE)=\"-\"),1/0,VLOOKUP($A630,Economática!$A$3:$AI$823,19,FALSE)))","v":""},{"$f":"IF($A630=\"\",\"\",VLOOKUP($A630,Economática!$A$3:$AI$823,20,FALSE)/E630)","v":""},"","","",{"$f":"IF($A630=\"\",\"\",IF(OR(VLOOKUP($A630,Economática!$A$3:$AI$823,21,FALSE)/100=0,VLOOKUP($A630,Economática!$A$3:$AI$823,21,FALSE)/100=\"-\"),1/0,VLOOKUP($A630,Economática!$A$3:$AI$823,21,FALSE)/100))","v":""},{"$f":"IF($A630=\"\",\"\",IF(OR(VLOOKUP($A630,Economática!$A$3:$AI$823,22,FALSE)/100=0,VLOOKUP($A630,Economática!$A$3:$AI$823,22,FALSE)/100=\"-\"),1/0,VLOOKUP($A630,Economática!$A$3:$AI$823,22,FALSE)/100))","v":""},{"$f":"IF($A630=\"\",\"\",IF(OR(VLOOKUP($A630,Economática!$A$3:$AI$823,23,FALSE)=0,VLOOKUP($A630,Economática!$A$3:$AI$823,23,FALSE)=\"-\"),1/0,VLOOKUP($A630,Economática!$A$3:$AI$823,23,FALSE)))","v":""},{"$f":"IF($A630=\"\",\"\",IF(OR(VLOOKUP($A630,Economática!$A$3:$AI$823,24,FALSE)=0,VLOOKUP($A630,Economática!$A$3:$AI$823,24,FALSE)=\"-\"),1/0,VLOOKUP($A630,Economática!$A$3:$AI$823,24,FALSE)))","v":""},{"$f":"IF($A630=\"\",\"\",IF(OR(VLOOKUP($A630,Economática!$A$3:$AI$823,25,FALSE)=0,VLOOKUP($A630,Economática!$A$3:$AI$823,25,FALSE)=\"-\"),1/0,VLOOKUP($A630,Economática!$A$3:$AI$823,25,FALSE)))","v":""},{"$f":"IF($A630=\"\",\"\",IF(ISERROR((F630+VLOOKUP($A630,Economática!$A$3:$AI$823,26,FALSE))/Y630),(F630+VLOOKUP($A630,Economática!$A$3:$AI$823,26,FALSE))/Y630,(F630+VLOOKUP($A630,Economática!$A$3:$AI$823,26,FALSE))/Y630))","v":""},{"$f":"IF($A630=\"\",\"\",IF(OR(-VLOOKUP($A630,Economática!$A$3:$AI$823,27,FALSE)=0,-VLOOKUP($A630,Economática!$A$3:$AI$823,27,FALSE)=\"-\"),1/0,-VLOOKUP($A630,Economática!$A$3:$AI$823,27,FALSE)))","v":""},"",{"$f":"IF($A630=\"\",\"\",IF(OR(VLOOKUP($A630,Economática!$A$3:$AI$823,28,FALSE)=0,VLOOKUP($A630,Economática!$A$3:$AI$823,28,FALSE)=\"-\"),1/0,VLOOKUP($A630,Economática!$A$3:$AI$823,28,FALSE)))","v":""},{"$f":"IF($A630=\"\",\"\",IF(OR(VLOOKUP($A630,Economática!$A$3:$AI$823,29,FALSE)=0,VLOOKUP($A630,Economática!$A$3:$AI$823,29,FALSE)=\"-\"),1/0,VLOOKUP($A630,Economática!$A$3:$AI$823,29,FALSE)))","v":""},{"$f":"IF($A630=\"\",\"\",IF(OR(VLOOKUP($A630,Economática!$A$3:$AI$823,30,FALSE)/E630=0,VLOOKUP($A630,Economática!$A$3:$AI$823,30,FALSE)/E630=\"-\",VLOOKUP($A630,Economática!$A$3:$AI$823,30,FALSE)/E630<33.33%,VLOOKUP($A630,Economática!$A$3:$AI$823,30,FALSE)/E630>100%),1/0,VLOOKUP($A630,Economática!$A$3:$AI$823,30,FALSE)/E630))","v":""},"",{"$f":"IF($A630=\"\",\"\",IF(OR(VLOOKUP($A630,Economática!$A$3:$AI$823,25,FALSE)=0,VLOOKUP($A630,Economática!$A$3:$AI$823,25,FALSE)=\"-\"),1/0,VLOOKUP($A630,Economática!$A$3:$AI$823,25,FALSE)))","v":""},{"$f":"CONCATENATE(Economática!B608,\" \",Economática!C608)","v":" "}]
[{"$f":"IF(Economática!AG609=\"\",\"\",Economática!AG609)","v":""},{"$f":"IF($A631=\"\",\"\",VLOOKUP(VLOOKUP($A631,Economática!$A$3:$AI$823,6,FALSE),Correção!$B$16:$C$36,2,FALSE))","v":""},{"$f":"IF(Economática!B609=\"\",\"\",Economática!B609)","v":""},{"$f":"IF($A631=\"\",\"\",IF(OR(VLOOKUP($A631,Economática!$A$3:$AI$823,8,FALSE)=0,VLOOKUP($A631,Economática!$A$3:$AI$823,8,FALSE)=\"-\"),1/0,VLOOKUP($A631,Economática!$A$3:$AI$823,8,FALSE)))","v":""},{"$f":"IF(A631=\"\",\"\",IF(ISERROR(VLOOKUP(A631,Correção!$B$2:$G$13,9,FALSE)),VLOOKUP($A631,Economática!$A$3:$AI$823,9,FALSE),VLOOKUP(A631,Correção!$B$2:$G$13,9,FALSE)))","v":""},{"$f":"IF($A631=\"\",\"\",Economática!G609)","v":""},{"$f":"IF($A631=\"\",\"\",IF(OR(VLOOKUP($A631,Economática!$A$3:$AI$823,10,FALSE)=0,VLOOKUP($A631,Economática!$A$3:$AI$823,10,FALSE)=\"-\"),1/0,VLOOKUP($A631,Economática!$A$3:$AI$823,10,FALSE)))","v":""},{"$f":"IF($A631=\"\",\"\",IF(OR(VLOOKUP($A631,Economática!$A$3:$AI$823,11,FALSE)=0,VLOOKUP($A631,Economática!$A$3:$AI$823,11,FALSE)=\"-\"),1/0,VLOOKUP($A631,Economática!$A$3:$AI$823,11,FALSE)))","v":""},{"$f":"IF($A631=\"\",\"\",IF(OR(VLOOKUP($A631,Economática!$A$3:$AI$823,12,FALSE)=0,VLOOKUP($A631,Economática!$A$3:$AI$823,12,FALSE)=\"-\"),1/0,VLOOKUP($A631,Economática!$A$3:$AI$823,12,FALSE)))","v":""},{"$f":"IF($A631=\"\",\"\",IF(OR(VLOOKUP($A631,Economática!$A$3:$AI$823,13,FALSE)=0,VLOOKUP($A631,Economática!$A$3:$AI$823,13,FALSE)=\"-\"),1/0,VLOOKUP($A631,Economática!$A$3:$AI$823,13,FALSE)))","v":""},{"$f":"IF($A631=\"\",\"\",IF(OR(VLOOKUP($A631,Economática!$A$3:$AI$823,14,FALSE)=0,VLOOKUP($A631,Economática!$A$3:$AI$823,14,FALSE)=\"-\"),1/0,VLOOKUP($A631,Economática!$A$3:$AI$823,14,FALSE)))","v":""},{"$f":"IF($A631=\"\",\"\",IF(OR(VLOOKUP($A631,Economática!$A$3:$AI$823,15,FALSE)=0,VLOOKUP($A631,Economática!$A$3:$AI$823,15,FALSE)=\"-\"),1/0,VLOOKUP($A631,Economática!$A$3:$AI$823,15,FALSE)))","v":""},{"$f":"IF($A631=\"\",\"\",IF(OR(VLOOKUP($A631,Economática!$A$3:$AI$823,16,FALSE)=0,VLOOKUP($A631,Economática!$A$3:$AI$823,16,FALSE)=\"-\"),1/0,VLOOKUP($A631,Economática!$A$3:$AI$823,16,FALSE)))","v":""},{"$f":"IF($A631=\"\",\"\",IF(OR(VLOOKUP($A631,Economática!$A$3:$AI$823,17,FALSE)=0,VLOOKUP($A631,Economática!$A$3:$AI$823,17,FALSE)=\"-\"),1/0,VLOOKUP($A631,Economática!$A$3:$AI$823,17,FALSE)))","v":""},{"$f":"IF($A631=\"\",\"\",IF(OR(VLOOKUP($A631,Economática!$A$3:$AI$823,18,FALSE)=0,VLOOKUP($A631,Economática!$A$3:$AI$823,18,FALSE)=\"-\"),1/0,VLOOKUP($A631,Economática!$A$3:$AI$823,18,FALSE)))","v":""},{"$f":"IF($A631=\"\",\"\",IF(OR(VLOOKUP($A631,Economática!$A$3:$AI$823,19,FALSE)=0,VLOOKUP($A631,Economática!$A$3:$AI$823,19,FALSE)=\"-\"),1/0,VLOOKUP($A631,Economática!$A$3:$AI$823,19,FALSE)))","v":""},{"$f":"IF($A631=\"\",\"\",VLOOKUP($A631,Economática!$A$3:$AI$823,20,FALSE)/E631)","v":""},null,null,null,{"$f":"IF($A631=\"\",\"\",IF(OR(VLOOKUP($A631,Economática!$A$3:$AI$823,21,FALSE)/100=0,VLOOKUP($A631,Economática!$A$3:$AI$823,21,FALSE)/100=\"-\"),1/0,VLOOKUP($A631,Economática!$A$3:$AI$823,21,FALSE)/100))","v":""},{"$f":"IF($A631=\"\",\"\",IF(OR(VLOOKUP($A631,Economática!$A$3:$AI$823,22,FALSE)/100=0,VLOOKUP($A631,Economática!$A$3:$AI$823,22,FALSE)/100=\"-\"),1/0,VLOOKUP($A631,Economática!$A$3:$AI$823,22,FALSE)/100))","v":""},{"$f":"IF($A631=\"\",\"\",IF(OR(VLOOKUP($A631,Economática!$A$3:$AI$823,23,FALSE)=0,VLOOKUP($A631,Economática!$A$3:$AI$823,23,FALSE)=\"-\"),1/0,VLOOKUP($A631,Economática!$A$3:$AI$823,23,FALSE)))","v":""},{"$f":"IF($A631=\"\",\"\",IF(OR(VLOOKUP($A631,Economática!$A$3:$AI$823,24,FALSE)=0,VLOOKUP($A631,Economática!$A$3:$AI$823,24,FALSE)=\"-\"),1/0,VLOOKUP($A631,Economática!$A$3:$AI$823,24,FALSE)))","v":""},{"$f":"IF($A631=\"\",\"\",IF(OR(VLOOKUP($A631,Economática!$A$3:$AI$823,25,FALSE)=0,VLOOKUP($A631,Economática!$A$3:$AI$823,25,FALSE)=\"-\"),1/0,VLOOKUP($A631,Economática!$A$3:$AI$823,25,FALSE)))","v":""},{"$f":"IF($A631=\"\",\"\",IF(ISERROR((F631+VLOOKUP($A631,Economática!$A$3:$AI$823,26,FALSE))/Y631),(F631+VLOOKUP($A631,Economática!$A$3:$AI$823,26,FALSE))/Y631,(F631+VLOOKUP($A631,Economática!$A$3:$AI$823,26,FALSE))/Y631))","v":""},{"$f":"IF($A631=\"\",\"\",IF(OR(-VLOOKUP($A631,Economática!$A$3:$AI$823,27,FALSE)=0,-VLOOKUP($A631,Economática!$A$3:$AI$823,27,FALSE)=\"-\"),1/0,-VLOOKUP($A631,Economática!$A$3:$AI$823,27,FALSE)))","v":""},null,{"$f":"IF($A631=\"\",\"\",IF(OR(VLOOKUP($A631,Economática!$A$3:$AI$823,28,FALSE)=0,VLOOKUP($A631,Economática!$A$3:$AI$823,28,FALSE)=\"-\"),1/0,VLOOKUP($A631,Economática!$A$3:$AI$823,28,FALSE)))","v":""},{"$f":"IF($A631=\"\",\"\",IF(OR(VLOOKUP($A631,Economática!$A$3:$AI$823,29,FALSE)=0,VLOOKUP($A631,Economática!$A$3:$AI$823,29,FALSE)=\"-\"),1/0,VLOOKUP($A631,Economática!$A$3:$AI$823,29,FALSE)))","v":""},{"$f":"IF($A631=\"\",\"\",IF(OR(VLOOKUP($A631,Economática!$A$3:$AI$823,30,FALSE)/E631=0,VLOOKUP($A631,Economática!$A$3:$AI$823,30,FALSE)/E631=\"-\",VLOOKUP($A631,Economática!$A$3:$AI$823,30,FALSE)/E631<33.33%,VLOOKUP($A631,Economática!$A$3:$AI$823,30,FALSE)/E631>100%),1/0,VLOOKUP($A631,Economática!$A$3:$AI$823,30,FALSE)/E631))","v":""},null,{"$f":"IF($A631=\"\",\"\",IF(OR(VLOOKUP($A631,Economática!$A$3:$AI$823,25,FALSE)=0,VLOOKUP($A631,Economática!$A$3:$AI$823,25,FALSE)=\"-\"),1/0,VLOOKUP($A631,Economática!$A$3:$AI$823,25,FALSE)))","v":""},{"$f":"CONCATENATE(Economática!B609,\" \",Economática!C609)","v":" "}]
[{"$f":"IF(Economática!AG610=\"\",\"\",Economática!AG610)","v":""},{"$f":"IF($A632=\"\",\"\",VLOOKUP(VLOOKUP($A632,Economática!$A$3:$AI$823,6,FALSE),Correção!$B$16:$C$36,2,FALSE))","v":""},{"$f":"IF(Economática!B610=\"\",\"\",Economática!B610)","v":""},{"$f":"IF($A632=\"\",\"\",IF(OR(VLOOKUP($A632,Economática!$A$3:$AI$823,8,FALSE)=0,VLOOKUP($A632,Economática!$A$3:$AI$823,8,FALSE)=\"-\"),1/0,VLOOKUP($A632,Economática!$A$3:$AI$823,8,FALSE)))","v":""},{"$f":"IF(A632=\"\",\"\",IF(ISERROR(VLOOKUP(A632,Correção!$B$2:$G$13,9,FALSE)),VLOOKUP($A632,Economática!$A$3:$AI$823,9,FALSE),VLOOKUP(A632,Correção!$B$2:$G$13,9,FALSE)))","v":""},{"$f":"IF($A632=\"\",\"\",Economática!G610)","v":""},{"$f":"IF($A632=\"\",\"\",IF(OR(VLOOKUP($A632,Economática!$A$3:$AI$823,10,FALSE)=0,VLOOKUP($A632,Economática!$A$3:$AI$823,10,FALSE)=\"-\"),1/0,VLOOKUP($A632,Economática!$A$3:$AI$823,10,FALSE)))","v":""},{"$f":"IF($A632=\"\",\"\",IF(OR(VLOOKUP($A632,Economática!$A$3:$AI$823,11,FALSE)=0,VLOOKUP($A632,Economática!$A$3:$AI$823,11,FALSE)=\"-\"),1/0,VLOOKUP($A632,Economática!$A$3:$AI$823,11,FALSE)))","v":""},{"$f":"IF($A632=\"\",\"\",IF(OR(VLOOKUP($A632,Economática!$A$3:$AI$823,12,FALSE)=0,VLOOKUP($A632,Economática!$A$3:$AI$823,12,FALSE)=\"-\"),1/0,VLOOKUP($A632,Economática!$A$3:$AI$823,12,FALSE)))","v":""},{"$f":"IF($A632=\"\",\"\",IF(OR(VLOOKUP($A632,Economática!$A$3:$AI$823,13,FALSE)=0,VLOOKUP($A632,Economática!$A$3:$AI$823,13,FALSE)=\"-\"),1/0,VLOOKUP($A632,Economática!$A$3:$AI$823,13,FALSE)))","v":""},{"$f":"IF($A632=\"\",\"\",IF(OR(VLOOKUP($A632,Economática!$A$3:$AI$823,14,FALSE)=0,VLOOKUP($A632,Economática!$A$3:$AI$823,14,FALSE)=\"-\"),1/0,VLOOKUP($A632,Economática!$A$3:$AI$823,14,FALSE)))","v":""},{"$f":"IF($A632=\"\",\"\",IF(OR(VLOOKUP($A632,Economática!$A$3:$AI$823,15,FALSE)=0,VLOOKUP($A632,Economática!$A$3:$AI$823,15,FALSE)=\"-\"),1/0,VLOOKUP($A632,Economática!$A$3:$AI$823,15,FALSE)))","v":""},{"$f":"IF($A632=\"\",\"\",IF(OR(VLOOKUP($A632,Economática!$A$3:$AI$823,16,FALSE)=0,VLOOKUP($A632,Economática!$A$3:$AI$823,16,FALSE)=\"-\"),1/0,VLOOKUP($A632,Economática!$A$3:$AI$823,16,FALSE)))","v":""},{"$f":"IF($A632=\"\",\"\",IF(OR(VLOOKUP($A632,Economática!$A$3:$AI$823,17,FALSE)=0,VLOOKUP($A632,Economática!$A$3:$AI$823,17,FALSE)=\"-\"),1/0,VLOOKUP($A632,Economática!$A$3:$AI$823,17,FALSE)))","v":""},{"$f":"IF($A632=\"\",\"\",IF(OR(VLOOKUP($A632,Economática!$A$3:$AI$823,18,FALSE)=0,VLOOKUP($A632,Economática!$A$3:$AI$823,18,FALSE)=\"-\"),1/0,VLOOKUP($A632,Economática!$A$3:$AI$823,18,FALSE)))","v":""},{"$f":"IF($A632=\"\",\"\",IF(OR(VLOOKUP($A632,Economática!$A$3:$AI$823,19,FALSE)=0,VLOOKUP($A632,Economática!$A$3:$AI$823,19,FALSE)=\"-\"),1/0,VLOOKUP($A632,Economática!$A$3:$AI$823,19,FALSE)))","v":""},{"$f":"IF($A632=\"\",\"\",VLOOKUP($A632,Economática!$A$3:$AI$823,20,FALSE)/E632)","v":""},null,null,null,{"$f":"IF($A632=\"\",\"\",IF(OR(VLOOKUP($A632,Economática!$A$3:$AI$823,21,FALSE)/100=0,VLOOKUP($A632,Economática!$A$3:$AI$823,21,FALSE)/100=\"-\"),1/0,VLOOKUP($A632,Economática!$A$3:$AI$823,21,FALSE)/100))","v":""},{"$f":"IF($A632=\"\",\"\",IF(OR(VLOOKUP($A632,Economática!$A$3:$AI$823,22,FALSE)/100=0,VLOOKUP($A632,Economática!$A$3:$AI$823,22,FALSE)/100=\"-\"),1/0,VLOOKUP($A632,Economática!$A$3:$AI$823,22,FALSE)/100))","v":""},{"$f":"IF($A632=\"\",\"\",IF(OR(VLOOKUP($A632,Economática!$A$3:$AI$823,23,FALSE)=0,VLOOKUP($A632,Economática!$A$3:$AI$823,23,FALSE)=\"-\"),1/0,VLOOKUP($A632,Economática!$A$3:$AI$823,23,FALSE)))","v":""},{"$f":"IF($A632=\"\",\"\",IF(OR(VLOOKUP($A632,Economática!$A$3:$AI$823,24,FALSE)=0,VLOOKUP($A632,Economática!$A$3:$AI$823,24,FALSE)=\"-\"),1/0,VLOOKUP($A632,Economática!$A$3:$AI$823,24,FALSE)))","v":""},{"$f":"IF($A632=\"\",\"\",IF(OR(VLOOKUP($A632,Economática!$A$3:$AI$823,25,FALSE)=0,VLOOKUP($A632,Economática!$A$3:$AI$823,25,FALSE)=\"-\"),1/0,VLOOKUP($A632,Economática!$A$3:$AI$823,25,FALSE)))","v":""},{"$f":"IF($A632=\"\",\"\",IF(ISERROR((F632+VLOOKUP($A632,Economática!$A$3:$AI$823,26,FALSE))/Y632),(F632+VLOOKUP($A632,Economática!$A$3:$AI$823,26,FALSE))/Y632,(F632+VLOOKUP($A632,Economática!$A$3:$AI$823,26,FALSE))/Y632))","v":""},{"$f":"IF($A632=\"\",\"\",IF(OR(-VLOOKUP($A632,Economática!$A$3:$AI$823,27,FALSE)=0,-VLOOKUP($A632,Economática!$A$3:$AI$823,27,FALSE)=\"-\"),1/0,-VLOOKUP($A632,Economática!$A$3:$AI$823,27,FALSE)))","v":""},null,{"$f":"IF($A632=\"\",\"\",IF(OR(VLOOKUP($A632,Economática!$A$3:$AI$823,28,FALSE)=0,VLOOKUP($A632,Economática!$A$3:$AI$823,28,FALSE)=\"-\"),1/0,VLOOKUP($A632,Economática!$A$3:$AI$823,28,FALSE)))","v":""},{"$f":"IF($A632=\"\",\"\",IF(OR(VLOOKUP($A632,Economática!$A$3:$AI$823,29,FALSE)=0,VLOOKUP($A632,Economática!$A$3:$AI$823,29,FALSE)=\"-\"),1/0,VLOOKUP($A632,Economática!$A$3:$AI$823,29,FALSE)))","v":""},{"$f":"IF($A632=\"\",\"\",IF(OR(VLOOKUP($A632,Economática!$A$3:$AI$823,30,FALSE)/E632=0,VLOOKUP($A632,Economática!$A$3:$AI$823,30,FALSE)/E632=\"-\",VLOOKUP($A632,Economática!$A$3:$AI$823,30,FALSE)/E632<33.33%,VLOOKUP($A632,Economática!$A$3:$AI$823,30,FALSE)/E632>100%),1/0,VLOOKUP($A632,Economática!$A$3:$AI$823,30,FALSE)/E632))","v":""},null,{"$f":"IF($A632=\"\",\"\",IF(OR(VLOOKUP($A632,Economática!$A$3:$AI$823,25,FALSE)=0,VLOOKUP($A632,Economática!$A$3:$AI$823,25,FALSE)=\"-\"),1/0,VLOOKUP($A632,Economática!$A$3:$AI$823,25,FALSE)))","v":""},{"$f":"CONCATENATE(Economática!B610,\" \",Economática!C610)","v":" "}]
[{"$f":"IF(Economática!AG611=\"\",\"\",Economática!AG611)","v":""},{"$f":"IF($A633=\"\",\"\",VLOOKUP(VLOOKUP($A633,Economática!$A$3:$AI$823,6,FALSE),Correção!$B$16:$C$36,2,FALSE))","v":""},{"$f":"IF(Economática!B611=\"\",\"\",Economática!B611)","v":""},{"$f":"IF($A633=\"\",\"\",IF(OR(VLOOKUP($A633,Economática!$A$3:$AI$823,8,FALSE)=0,VLOOKUP($A633,Economática!$A$3:$AI$823,8,FALSE)=\"-\"),1/0,VLOOKUP($A633,Economática!$A$3:$AI$823,8,FALSE)))","v":""},{"$f":"IF(A633=\"\",\"\",IF(ISERROR(VLOOKUP(A633,Correção!$B$2:$G$13,9,FALSE)),VLOOKUP($A633,Economática!$A$3:$AI$823,9,FALSE),VLOOKUP(A633,Correção!$B$2:$G$13,9,FALSE)))","v":""},{"$f":"IF($A633=\"\",\"\",Economática!G611)","v":""},{"$f":"IF($A633=\"\",\"\",IF(OR(VLOOKUP($A633,Economática!$A$3:$AI$823,10,FALSE)=0,VLOOKUP($A633,Economática!$A$3:$AI$823,10,FALSE)=\"-\"),1/0,VLOOKUP($A633,Economática!$A$3:$AI$823,10,FALSE)))","v":""},{"$f":"IF($A633=\"\",\"\",IF(OR(VLOOKUP($A633,Economática!$A$3:$AI$823,11,FALSE)=0,VLOOKUP($A633,Economática!$A$3:$AI$823,11,FALSE)=\"-\"),1/0,VLOOKUP($A633,Economática!$A$3:$AI$823,11,FALSE)))","v":""},{"$f":"IF($A633=\"\",\"\",IF(OR(VLOOKUP($A633,Economática!$A$3:$AI$823,12,FALSE)=0,VLOOKUP($A633,Economática!$A$3:$AI$823,12,FALSE)=\"-\"),1/0,VLOOKUP($A633,Economática!$A$3:$AI$823,12,FALSE)))","v":""},{"$f":"IF($A633=\"\",\"\",IF(OR(VLOOKUP($A633,Economática!$A$3:$AI$823,13,FALSE)=0,VLOOKUP($A633,Economática!$A$3:$AI$823,13,FALSE)=\"-\"),1/0,VLOOKUP($A633,Economática!$A$3:$AI$823,13,FALSE)))","v":""},{"$f":"IF($A633=\"\",\"\",IF(OR(VLOOKUP($A633,Economática!$A$3:$AI$823,14,FALSE)=0,VLOOKUP($A633,Economática!$A$3:$AI$823,14,FALSE)=\"-\"),1/0,VLOOKUP($A633,Economática!$A$3:$AI$823,14,FALSE)))","v":""},{"$f":"IF($A633=\"\",\"\",IF(OR(VLOOKUP($A633,Economática!$A$3:$AI$823,15,FALSE)=0,VLOOKUP($A633,Economática!$A$3:$AI$823,15,FALSE)=\"-\"),1/0,VLOOKUP($A633,Economática!$A$3:$AI$823,15,FALSE)))","v":""},{"$f":"IF($A633=\"\",\"\",IF(OR(VLOOKUP($A633,Economática!$A$3:$AI$823,16,FALSE)=0,VLOOKUP($A633,Economática!$A$3:$AI$823,16,FALSE)=\"-\"),1/0,VLOOKUP($A633,Economática!$A$3:$AI$823,16,FALSE)))","v":""},{"$f":"IF($A633=\"\",\"\",IF(OR(VLOOKUP($A633,Economática!$A$3:$AI$823,17,FALSE)=0,VLOOKUP($A633,Economática!$A$3:$AI$823,17,FALSE)=\"-\"),1/0,VLOOKUP($A633,Economática!$A$3:$AI$823,17,FALSE)))","v":""},{"$f":"IF($A633=\"\",\"\",IF(OR(VLOOKUP($A633,Economática!$A$3:$AI$823,18,FALSE)=0,VLOOKUP($A633,Economática!$A$3:$AI$823,18,FALSE)=\"-\"),1/0,VLOOKUP($A633,Economática!$A$3:$AI$823,18,FALSE)))","v":""},{"$f":"IF($A633=\"\",\"\",IF(OR(VLOOKUP($A633,Economática!$A$3:$AI$823,19,FALSE)=0,VLOOKUP($A633,Economática!$A$3:$AI$823,19,FALSE)=\"-\"),1/0,VLOOKUP($A633,Economática!$A$3:$AI$823,19,FALSE)))","v":""},{"$f":"IF($A633=\"\",\"\",VLOOKUP($A633,Economática!$A$3:$AI$823,20,FALSE)/E633)","v":""},null,null,null,{"$f":"IF($A633=\"\",\"\",IF(OR(VLOOKUP($A633,Economática!$A$3:$AI$823,21,FALSE)/100=0,VLOOKUP($A633,Economática!$A$3:$AI$823,21,FALSE)/100=\"-\"),1/0,VLOOKUP($A633,Economática!$A$3:$AI$823,21,FALSE)/100))","v":""},{"$f":"IF($A633=\"\",\"\",IF(OR(VLOOKUP($A633,Economática!$A$3:$AI$823,22,FALSE)/100=0,VLOOKUP($A633,Economática!$A$3:$AI$823,22,FALSE)/100=\"-\"),1/0,VLOOKUP($A633,Economática!$A$3:$AI$823,22,FALSE)/100))","v":""},{"$f":"IF($A633=\"\",\"\",IF(OR(VLOOKUP($A633,Economática!$A$3:$AI$823,23,FALSE)=0,VLOOKUP($A633,Economática!$A$3:$AI$823,23,FALSE)=\"-\"),1/0,VLOOKUP($A633,Economática!$A$3:$AI$823,23,FALSE)))","v":""},{"$f":"IF($A633=\"\",\"\",IF(OR(VLOOKUP($A633,Economática!$A$3:$AI$823,24,FALSE)=0,VLOOKUP($A633,Economática!$A$3:$AI$823,24,FALSE)=\"-\"),1/0,VLOOKUP($A633,Economática!$A$3:$AI$823,24,FALSE)))","v":""},{"$f":"IF($A633=\"\",\"\",IF(OR(VLOOKUP($A633,Economática!$A$3:$AI$823,25,FALSE)=0,VLOOKUP($A633,Economática!$A$3:$AI$823,25,FALSE)=\"-\"),1/0,VLOOKUP($A633,Economática!$A$3:$AI$823,25,FALSE)))","v":""},{"$f":"IF($A633=\"\",\"\",IF(ISERROR((F633+VLOOKUP($A633,Economática!$A$3:$AI$823,26,FALSE))/Y633),(F633+VLOOKUP($A633,Economática!$A$3:$AI$823,26,FALSE))/Y633,(F633+VLOOKUP($A633,Economática!$A$3:$AI$823,26,FALSE))/Y633))","v":""},{"$f":"IF($A633=\"\",\"\",IF(OR(-VLOOKUP($A633,Economática!$A$3:$AI$823,27,FALSE)=0,-VLOOKUP($A633,Economática!$A$3:$AI$823,27,FALSE)=\"-\"),1/0,-VLOOKUP($A633,Economática!$A$3:$AI$823,27,FALSE)))","v":""},null,{"$f":"IF($A633=\"\",\"\",IF(OR(VLOOKUP($A633,Economática!$A$3:$AI$823,28,FALSE)=0,VLOOKUP($A633,Economática!$A$3:$AI$823,28,FALSE)=\"-\"),1/0,VLOOKUP($A633,Economática!$A$3:$AI$823,28,FALSE)))","v":""},{"$f":"IF($A633=\"\",\"\",IF(OR(VLOOKUP($A633,Economática!$A$3:$AI$823,29,FALSE)=0,VLOOKUP($A633,Economática!$A$3:$AI$823,29,FALSE)=\"-\"),1/0,VLOOKUP($A633,Economática!$A$3:$AI$823,29,FALSE)))","v":""},{"$f":"IF($A633=\"\",\"\",IF(OR(VLOOKUP($A633,Economática!$A$3:$AI$823,30,FALSE)/E633=0,VLOOKUP($A633,Economática!$A$3:$AI$823,30,FALSE)/E633=\"-\",VLOOKUP($A633,Economática!$A$3:$AI$823,30,FALSE)/E633<33.33%,VLOOKUP($A633,Economática!$A$3:$AI$823,30,FALSE)/E633>100%),1/0,VLOOKUP($A633,Economática!$A$3:$AI$823,30,FALSE)/E633))","v":""},null,{"$f":"IF($A633=\"\",\"\",IF(OR(VLOOKUP($A633,Economática!$A$3:$AI$823,25,FALSE)=0,VLOOKUP($A633,Economática!$A$3:$AI$823,25,FALSE)=\"-\"),1/0,VLOOKUP($A633,Economática!$A$3:$AI$823,25,FALSE)))","v":""},{"$f":"CONCATENATE(Economática!B611,\" \",Economática!C611)","v":" "}]
[{"$f":"IF(Economática!AG612=\"\",\"\",Economática!AG612)","v":""},{"$f":"IF($A634=\"\",\"\",VLOOKUP(VLOOKUP($A634,Economática!$A$3:$AI$823,6,FALSE),Correção!$B$16:$C$36,2,FALSE))","v":""},{"$f":"IF(Economática!B612=\"\",\"\",Economática!B612)","v":""},{"$f":"IF($A634=\"\",\"\",IF(OR(VLOOKUP($A634,Economática!$A$3:$AI$823,8,FALSE)=0,VLOOKUP($A634,Economática!$A$3:$AI$823,8,FALSE)=\"-\"),1/0,VLOOKUP($A634,Economática!$A$3:$AI$823,8,FALSE)))","v":""},{"$f":"IF(A634=\"\",\"\",IF(ISERROR(VLOOKUP(A634,Correção!$B$2:$G$13,9,FALSE)),VLOOKUP($A634,Economática!$A$3:$AI$823,9,FALSE),VLOOKUP(A634,Correção!$B$2:$G$13,9,FALSE)))","v":""},{"$f":"IF($A634=\"\",\"\",Economática!G612)","v":""},{"$f":"IF($A634=\"\",\"\",IF(OR(VLOOKUP($A634,Economática!$A$3:$AI$823,10,FALSE)=0,VLOOKUP($A634,Economática!$A$3:$AI$823,10,FALSE)=\"-\"),1/0,VLOOKUP($A634,Economática!$A$3:$AI$823,10,FALSE)))","v":""},{"$f":"IF($A634=\"\",\"\",IF(OR(VLOOKUP($A634,Economática!$A$3:$AI$823,11,FALSE)=0,VLOOKUP($A634,Economática!$A$3:$AI$823,11,FALSE)=\"-\"),1/0,VLOOKUP($A634,Economática!$A$3:$AI$823,11,FALSE)))","v":""},{"$f":"IF($A634=\"\",\"\",IF(OR(VLOOKUP($A634,Economática!$A$3:$AI$823,12,FALSE)=0,VLOOKUP($A634,Economática!$A$3:$AI$823,12,FALSE)=\"-\"),1/0,VLOOKUP($A634,Economática!$A$3:$AI$823,12,FALSE)))","v":""},{"$f":"IF($A634=\"\",\"\",IF(OR(VLOOKUP($A634,Economática!$A$3:$AI$823,13,FALSE)=0,VLOOKUP($A634,Economática!$A$3:$AI$823,13,FALSE)=\"-\"),1/0,VLOOKUP($A634,Economática!$A$3:$AI$823,13,FALSE)))","v":""},{"$f":"IF($A634=\"\",\"\",IF(OR(VLOOKUP($A634,Economática!$A$3:$AI$823,14,FALSE)=0,VLOOKUP($A634,Economática!$A$3:$AI$823,14,FALSE)=\"-\"),1/0,VLOOKUP($A634,Economática!$A$3:$AI$823,14,FALSE)))","v":""},{"$f":"IF($A634=\"\",\"\",IF(OR(VLOOKUP($A634,Economática!$A$3:$AI$823,15,FALSE)=0,VLOOKUP($A634,Economática!$A$3:$AI$823,15,FALSE)=\"-\"),1/0,VLOOKUP($A634,Economática!$A$3:$AI$823,15,FALSE)))","v":""},{"$f":"IF($A634=\"\",\"\",IF(OR(VLOOKUP($A634,Economática!$A$3:$AI$823,16,FALSE)=0,VLOOKUP($A634,Economática!$A$3:$AI$823,16,FALSE)=\"-\"),1/0,VLOOKUP($A634,Economática!$A$3:$AI$823,16,FALSE)))","v":""},{"$f":"IF($A634=\"\",\"\",IF(OR(VLOOKUP($A634,Economática!$A$3:$AI$823,17,FALSE)=0,VLOOKUP($A634,Economática!$A$3:$AI$823,17,FALSE)=\"-\"),1/0,VLOOKUP($A634,Economática!$A$3:$AI$823,17,FALSE)))","v":""},{"$f":"IF($A634=\"\",\"\",IF(OR(VLOOKUP($A634,Economática!$A$3:$AI$823,18,FALSE)=0,VLOOKUP($A634,Economática!$A$3:$AI$823,18,FALSE)=\"-\"),1/0,VLOOKUP($A634,Economática!$A$3:$AI$823,18,FALSE)))","v":""},{"$f":"IF($A634=\"\",\"\",IF(OR(VLOOKUP($A634,Economática!$A$3:$AI$823,19,FALSE)=0,VLOOKUP($A634,Economática!$A$3:$AI$823,19,FALSE)=\"-\"),1/0,VLOOKUP($A634,Economática!$A$3:$AI$823,19,FALSE)))","v":""},{"$f":"IF($A634=\"\",\"\",VLOOKUP($A634,Economática!$A$3:$AI$823,20,FALSE)/E634)","v":""},null,null,null,{"$f":"IF($A634=\"\",\"\",IF(OR(VLOOKUP($A634,Economática!$A$3:$AI$823,21,FALSE)/100=0,VLOOKUP($A634,Economática!$A$3:$AI$823,21,FALSE)/100=\"-\"),1/0,VLOOKUP($A634,Economática!$A$3:$AI$823,21,FALSE)/100))","v":""},{"$f":"IF($A634=\"\",\"\",IF(OR(VLOOKUP($A634,Economática!$A$3:$AI$823,22,FALSE)/100=0,VLOOKUP($A634,Economática!$A$3:$AI$823,22,FALSE)/100=\"-\"),1/0,VLOOKUP($A634,Economática!$A$3:$AI$823,22,FALSE)/100))","v":""},{"$f":"IF($A634=\"\",\"\",IF(OR(VLOOKUP($A634,Economática!$A$3:$AI$823,23,FALSE)=0,VLOOKUP($A634,Economática!$A$3:$AI$823,23,FALSE)=\"-\"),1/0,VLOOKUP($A634,Economática!$A$3:$AI$823,23,FALSE)))","v":""},{"$f":"IF($A634=\"\",\"\",IF(OR(VLOOKUP($A634,Economática!$A$3:$AI$823,24,FALSE)=0,VLOOKUP($A634,Economática!$A$3:$AI$823,24,FALSE)=\"-\"),1/0,VLOOKUP($A634,Economática!$A$3:$AI$823,24,FALSE)))","v":""},{"$f":"IF($A634=\"\",\"\",IF(OR(VLOOKUP($A634,Economática!$A$3:$AI$823,25,FALSE)=0,VLOOKUP($A634,Economática!$A$3:$AI$823,25,FALSE)=\"-\"),1/0,VLOOKUP($A634,Economática!$A$3:$AI$823,25,FALSE)))","v":""},{"$f":"IF($A634=\"\",\"\",IF(ISERROR((F634+VLOOKUP($A634,Economática!$A$3:$AI$823,26,FALSE))/Y634),(F634+VLOOKUP($A634,Economática!$A$3:$AI$823,26,FALSE))/Y634,(F634+VLOOKUP($A634,Economática!$A$3:$AI$823,26,FALSE))/Y634))","v":""},{"$f":"IF($A634=\"\",\"\",IF(OR(-VLOOKUP($A634,Economática!$A$3:$AI$823,27,FALSE)=0,-VLOOKUP($A634,Economática!$A$3:$AI$823,27,FALSE)=\"-\"),1/0,-VLOOKUP($A634,Economática!$A$3:$AI$823,27,FALSE)))","v":""},null,{"$f":"IF($A634=\"\",\"\",IF(OR(VLOOKUP($A634,Economática!$A$3:$AI$823,28,FALSE)=0,VLOOKUP($A634,Economática!$A$3:$AI$823,28,FALSE)=\"-\"),1/0,VLOOKUP($A634,Economática!$A$3:$AI$823,28,FALSE)))","v":""},{"$f":"IF($A634=\"\",\"\",IF(OR(VLOOKUP($A634,Economática!$A$3:$AI$823,29,FALSE)=0,VLOOKUP($A634,Economática!$A$3:$AI$823,29,FALSE)=\"-\"),1/0,VLOOKUP($A634,Economática!$A$3:$AI$823,29,FALSE)))","v":""},{"$f":"IF($A634=\"\",\"\",IF(OR(VLOOKUP($A634,Economática!$A$3:$AI$823,30,FALSE)/E634=0,VLOOKUP($A634,Economática!$A$3:$AI$823,30,FALSE)/E634=\"-\",VLOOKUP($A634,Economática!$A$3:$AI$823,30,FALSE)/E634<33.33%,VLOOKUP($A634,Economática!$A$3:$AI$823,30,FALSE)/E634>100%),1/0,VLOOKUP($A634,Economática!$A$3:$AI$823,30,FALSE)/E634))","v":""},null,{"$f":"IF($A634=\"\",\"\",IF(OR(VLOOKUP($A634,Economática!$A$3:$AI$823,25,FALSE)=0,VLOOKUP($A634,Economática!$A$3:$AI$823,25,FALSE)=\"-\"),1/0,VLOOKUP($A634,Economática!$A$3:$AI$823,25,FALSE)))","v":""},{"$f":"CONCATENATE(Economática!B612,\" \",Economática!C612)","v":" "}]
[{"$f":"IF(Economática!AG613=\"\",\"\",Economática!AG613)","v":""},{"$f":"IF($A635=\"\",\"\",VLOOKUP(VLOOKUP($A635,Economática!$A$3:$AI$823,6,FALSE),Correção!$B$16:$C$36,2,FALSE))","v":""},{"$f":"IF(Economática!B613=\"\",\"\",Economática!B613)","v":""},{"$f":"IF($A635=\"\",\"\",IF(OR(VLOOKUP($A635,Economática!$A$3:$AI$823,8,FALSE)=0,VLOOKUP($A635,Economática!$A$3:$AI$823,8,FALSE)=\"-\"),1/0,VLOOKUP($A635,Economática!$A$3:$AI$823,8,FALSE)))","v":""},{"$f":"IF(A635=\"\",\"\",IF(ISERROR(VLOOKUP(A635,Correção!$B$2:$G$13,9,FALSE)),VLOOKUP($A635,Economática!$A$3:$AI$823,9,FALSE),VLOOKUP(A635,Correção!$B$2:$G$13,9,FALSE)))","v":""},{"$f":"IF($A635=\"\",\"\",Economática!G613)","v":""},{"$f":"IF($A635=\"\",\"\",IF(OR(VLOOKUP($A635,Economática!$A$3:$AI$823,10,FALSE)=0,VLOOKUP($A635,Economática!$A$3:$AI$823,10,FALSE)=\"-\"),1/0,VLOOKUP($A635,Economática!$A$3:$AI$823,10,FALSE)))","v":""},{"$f":"IF($A635=\"\",\"\",IF(OR(VLOOKUP($A635,Economática!$A$3:$AI$823,11,FALSE)=0,VLOOKUP($A635,Economática!$A$3:$AI$823,11,FALSE)=\"-\"),1/0,VLOOKUP($A635,Economática!$A$3:$AI$823,11,FALSE)))","v":""},{"$f":"IF($A635=\"\",\"\",IF(OR(VLOOKUP($A635,Economática!$A$3:$AI$823,12,FALSE)=0,VLOOKUP($A635,Economática!$A$3:$AI$823,12,FALSE)=\"-\"),1/0,VLOOKUP($A635,Economática!$A$3:$AI$823,12,FALSE)))","v":""},{"$f":"IF($A635=\"\",\"\",IF(OR(VLOOKUP($A635,Economática!$A$3:$AI$823,13,FALSE)=0,VLOOKUP($A635,Economática!$A$3:$AI$823,13,FALSE)=\"-\"),1/0,VLOOKUP($A635,Economática!$A$3:$AI$823,13,FALSE)))","v":""},{"$f":"IF($A635=\"\",\"\",IF(OR(VLOOKUP($A635,Economática!$A$3:$AI$823,14,FALSE)=0,VLOOKUP($A635,Economática!$A$3:$AI$823,14,FALSE)=\"-\"),1/0,VLOOKUP($A635,Economática!$A$3:$AI$823,14,FALSE)))","v":""},{"$f":"IF($A635=\"\",\"\",IF(OR(VLOOKUP($A635,Economática!$A$3:$AI$823,15,FALSE)=0,VLOOKUP($A635,Economática!$A$3:$AI$823,15,FALSE)=\"-\"),1/0,VLOOKUP($A635,Economática!$A$3:$AI$823,15,FALSE)))","v":""},{"$f":"IF($A635=\"\",\"\",IF(OR(VLOOKUP($A635,Economática!$A$3:$AI$823,16,FALSE)=0,VLOOKUP($A635,Economática!$A$3:$AI$823,16,FALSE)=\"-\"),1/0,VLOOKUP($A635,Economática!$A$3:$AI$823,16,FALSE)))","v":""},{"$f":"IF($A635=\"\",\"\",IF(OR(VLOOKUP($A635,Economática!$A$3:$AI$823,17,FALSE)=0,VLOOKUP($A635,Economática!$A$3:$AI$823,17,FALSE)=\"-\"),1/0,VLOOKUP($A635,Economática!$A$3:$AI$823,17,FALSE)))","v":""},{"$f":"IF($A635=\"\",\"\",IF(OR(VLOOKUP($A635,Economática!$A$3:$AI$823,18,FALSE)=0,VLOOKUP($A635,Economática!$A$3:$AI$823,18,FALSE)=\"-\"),1/0,VLOOKUP($A635,Economática!$A$3:$AI$823,18,FALSE)))","v":""},{"$f":"IF($A635=\"\",\"\",IF(OR(VLOOKUP($A635,Economática!$A$3:$AI$823,19,FALSE)=0,VLOOKUP($A635,Economática!$A$3:$AI$823,19,FALSE)=\"-\"),1/0,VLOOKUP($A635,Economática!$A$3:$AI$823,19,FALSE)))","v":""},{"$f":"IF($A635=\"\",\"\",VLOOKUP($A635,Economática!$A$3:$AI$823,20,FALSE)/E635)","v":""},null,null,null,{"$f":"IF($A635=\"\",\"\",IF(OR(VLOOKUP($A635,Economática!$A$3:$AI$823,21,FALSE)/100=0,VLOOKUP($A635,Economática!$A$3:$AI$823,21,FALSE)/100=\"-\"),1/0,VLOOKUP($A635,Economática!$A$3:$AI$823,21,FALSE)/100))","v":""},{"$f":"IF($A635=\"\",\"\",IF(OR(VLOOKUP($A635,Economática!$A$3:$AI$823,22,FALSE)/100=0,VLOOKUP($A635,Economática!$A$3:$AI$823,22,FALSE)/100=\"-\"),1/0,VLOOKUP($A635,Economática!$A$3:$AI$823,22,FALSE)/100))","v":""},{"$f":"IF($A635=\"\",\"\",IF(OR(VLOOKUP($A635,Economática!$A$3:$AI$823,23,FALSE)=0,VLOOKUP($A635,Economática!$A$3:$AI$823,23,FALSE)=\"-\"),1/0,VLOOKUP($A635,Economática!$A$3:$AI$823,23,FALSE)))","v":""},{"$f":"IF($A635=\"\",\"\",IF(OR(VLOOKUP($A635,Economática!$A$3:$AI$823,24,FALSE)=0,VLOOKUP($A635,Economática!$A$3:$AI$823,24,FALSE)=\"-\"),1/0,VLOOKUP($A635,Economática!$A$3:$AI$823,24,FALSE)))","v":""},{"$f":"IF($A635=\"\",\"\",IF(OR(VLOOKUP($A635,Economática!$A$3:$AI$823,25,FALSE)=0,VLOOKUP($A635,Economática!$A$3:$AI$823,25,FALSE)=\"-\"),1/0,VLOOKUP($A635,Economática!$A$3:$AI$823,25,FALSE)))","v":""},{"$f":"IF($A635=\"\",\"\",IF(ISERROR((F635+VLOOKUP($A635,Economática!$A$3:$AI$823,26,FALSE))/Y635),(F635+VLOOKUP($A635,Economática!$A$3:$AI$823,26,FALSE))/Y635,(F635+VLOOKUP($A635,Economática!$A$3:$AI$823,26,FALSE))/Y635))","v":""},{"$f":"IF($A635=\"\",\"\",IF(OR(-VLOOKUP($A635,Economática!$A$3:$AI$823,27,FALSE)=0,-VLOOKUP($A635,Economática!$A$3:$AI$823,27,FALSE)=\"-\"),1/0,-VLOOKUP($A635,Economática!$A$3:$AI$823,27,FALSE)))","v":""},null,{"$f":"IF($A635=\"\",\"\",IF(OR(VLOOKUP($A635,Economática!$A$3:$AI$823,28,FALSE)=0,VLOOKUP($A635,Economática!$A$3:$AI$823,28,FALSE)=\"-\"),1/0,VLOOKUP($A635,Economática!$A$3:$AI$823,28,FALSE)))","v":""},{"$f":"IF($A635=\"\",\"\",IF(OR(VLOOKUP($A635,Economática!$A$3:$AI$823,29,FALSE)=0,VLOOKUP($A635,Economática!$A$3:$AI$823,29,FALSE)=\"-\"),1/0,VLOOKUP($A635,Economática!$A$3:$AI$823,29,FALSE)))","v":""},{"$f":"IF($A635=\"\",\"\",IF(OR(VLOOKUP($A635,Economática!$A$3:$AI$823,30,FALSE)/E635=0,VLOOKUP($A635,Economática!$A$3:$AI$823,30,FALSE)/E635=\"-\",VLOOKUP($A635,Economática!$A$3:$AI$823,30,FALSE)/E635<33.33%,VLOOKUP($A635,Economática!$A$3:$AI$823,30,FALSE)/E635>100%),1/0,VLOOKUP($A635,Economática!$A$3:$AI$823,30,FALSE)/E635))","v":""},null,{"$f":"IF($A635=\"\",\"\",IF(OR(VLOOKUP($A635,Economática!$A$3:$AI$823,25,FALSE)=0,VLOOKUP($A635,Economática!$A$3:$AI$823,25,FALSE)=\"-\"),1/0,VLOOKUP($A635,Economática!$A$3:$AI$823,25,FALSE)))","v":""},{"$f":"CONCATENATE(Economática!B613,\" \",Economática!C613)","v":" "}]
[{"$f":"IF(Economática!AG614=\"\",\"\",Economática!AG614)","v":""},{"$f":"IF($A636=\"\",\"\",VLOOKUP(VLOOKUP($A636,Economática!$A$3:$AI$823,6,FALSE),Correção!$B$16:$C$36,2,FALSE))","v":""},{"$f":"IF(Economática!B614=\"\",\"\",Economática!B614)","v":""},{"$f":"IF($A636=\"\",\"\",IF(OR(VLOOKUP($A636,Economática!$A$3:$AI$823,8,FALSE)=0,VLOOKUP($A636,Economática!$A$3:$AI$823,8,FALSE)=\"-\"),1/0,VLOOKUP($A636,Economática!$A$3:$AI$823,8,FALSE)))","v":""},{"$f":"IF(A636=\"\",\"\",IF(ISERROR(VLOOKUP(A636,Correção!$B$2:$G$13,9,FALSE)),VLOOKUP($A636,Economática!$A$3:$AI$823,9,FALSE),VLOOKUP(A636,Correção!$B$2:$G$13,9,FALSE)))","v":""},{"$f":"IF($A636=\"\",\"\",Economática!G614)","v":""},{"$f":"IF($A636=\"\",\"\",IF(OR(VLOOKUP($A636,Economática!$A$3:$AI$823,10,FALSE)=0,VLOOKUP($A636,Economática!$A$3:$AI$823,10,FALSE)=\"-\"),1/0,VLOOKUP($A636,Economática!$A$3:$AI$823,10,FALSE)))","v":""},{"$f":"IF($A636=\"\",\"\",IF(OR(VLOOKUP($A636,Economática!$A$3:$AI$823,11,FALSE)=0,VLOOKUP($A636,Economática!$A$3:$AI$823,11,FALSE)=\"-\"),1/0,VLOOKUP($A636,Economática!$A$3:$AI$823,11,FALSE)))","v":""},{"$f":"IF($A636=\"\",\"\",IF(OR(VLOOKUP($A636,Economática!$A$3:$AI$823,12,FALSE)=0,VLOOKUP($A636,Economática!$A$3:$AI$823,12,FALSE)=\"-\"),1/0,VLOOKUP($A636,Economática!$A$3:$AI$823,12,FALSE)))","v":""},{"$f":"IF($A636=\"\",\"\",IF(OR(VLOOKUP($A636,Economática!$A$3:$AI$823,13,FALSE)=0,VLOOKUP($A636,Economática!$A$3:$AI$823,13,FALSE)=\"-\"),1/0,VLOOKUP($A636,Economática!$A$3:$AI$823,13,FALSE)))","v":""},{"$f":"IF($A636=\"\",\"\",IF(OR(VLOOKUP($A636,Economática!$A$3:$AI$823,14,FALSE)=0,VLOOKUP($A636,Economática!$A$3:$AI$823,14,FALSE)=\"-\"),1/0,VLOOKUP($A636,Economática!$A$3:$AI$823,14,FALSE)))","v":""},{"$f":"IF($A636=\"\",\"\",IF(OR(VLOOKUP($A636,Economática!$A$3:$AI$823,15,FALSE)=0,VLOOKUP($A636,Economática!$A$3:$AI$823,15,FALSE)=\"-\"),1/0,VLOOKUP($A636,Economática!$A$3:$AI$823,15,FALSE)))","v":""},{"$f":"IF($A636=\"\",\"\",IF(OR(VLOOKUP($A636,Economática!$A$3:$AI$823,16,FALSE)=0,VLOOKUP($A636,Economática!$A$3:$AI$823,16,FALSE)=\"-\"),1/0,VLOOKUP($A636,Economática!$A$3:$AI$823,16,FALSE)))","v":""},{"$f":"IF($A636=\"\",\"\",IF(OR(VLOOKUP($A636,Economática!$A$3:$AI$823,17,FALSE)=0,VLOOKUP($A636,Economática!$A$3:$AI$823,17,FALSE)=\"-\"),1/0,VLOOKUP($A636,Economática!$A$3:$AI$823,17,FALSE)))","v":""},{"$f":"IF($A636=\"\",\"\",IF(OR(VLOOKUP($A636,Economática!$A$3:$AI$823,18,FALSE)=0,VLOOKUP($A636,Economática!$A$3:$AI$823,18,FALSE)=\"-\"),1/0,VLOOKUP($A636,Economática!$A$3:$AI$823,18,FALSE)))","v":""},{"$f":"IF($A636=\"\",\"\",IF(OR(VLOOKUP($A636,Economática!$A$3:$AI$823,19,FALSE)=0,VLOOKUP($A636,Economática!$A$3:$AI$823,19,FALSE)=\"-\"),1/0,VLOOKUP($A636,Economática!$A$3:$AI$823,19,FALSE)))","v":""},{"$f":"IF($A636=\"\",\"\",VLOOKUP($A636,Economática!$A$3:$AI$823,20,FALSE)/E636)","v":""},null,null,null,{"$f":"IF($A636=\"\",\"\",IF(OR(VLOOKUP($A636,Economática!$A$3:$AI$823,21,FALSE)/100=0,VLOOKUP($A636,Economática!$A$3:$AI$823,21,FALSE)/100=\"-\"),1/0,VLOOKUP($A636,Economática!$A$3:$AI$823,21,FALSE)/100))","v":""},{"$f":"IF($A636=\"\",\"\",IF(OR(VLOOKUP($A636,Economática!$A$3:$AI$823,22,FALSE)/100=0,VLOOKUP($A636,Economática!$A$3:$AI$823,22,FALSE)/100=\"-\"),1/0,VLOOKUP($A636,Economática!$A$3:$AI$823,22,FALSE)/100))","v":""},{"$f":"IF($A636=\"\",\"\",IF(OR(VLOOKUP($A636,Economática!$A$3:$AI$823,23,FALSE)=0,VLOOKUP($A636,Economática!$A$3:$AI$823,23,FALSE)=\"-\"),1/0,VLOOKUP($A636,Economática!$A$3:$AI$823,23,FALSE)))","v":""},{"$f":"IF($A636=\"\",\"\",IF(OR(VLOOKUP($A636,Economática!$A$3:$AI$823,24,FALSE)=0,VLOOKUP($A636,Economática!$A$3:$AI$823,24,FALSE)=\"-\"),1/0,VLOOKUP($A636,Economática!$A$3:$AI$823,24,FALSE)))","v":""},{"$f":"IF($A636=\"\",\"\",IF(OR(VLOOKUP($A636,Economática!$A$3:$AI$823,25,FALSE)=0,VLOOKUP($A636,Economática!$A$3:$AI$823,25,FALSE)=\"-\"),1/0,VLOOKUP($A636,Economática!$A$3:$AI$823,25,FALSE)))","v":""},{"$f":"IF($A636=\"\",\"\",IF(ISERROR((F636+VLOOKUP($A636,Economática!$A$3:$AI$823,26,FALSE))/Y636),(F636+VLOOKUP($A636,Economática!$A$3:$AI$823,26,FALSE))/Y636,(F636+VLOOKUP($A636,Economática!$A$3:$AI$823,26,FALSE))/Y636))","v":""},{"$f":"IF($A636=\"\",\"\",IF(OR(-VLOOKUP($A636,Economática!$A$3:$AI$823,27,FALSE)=0,-VLOOKUP($A636,Economática!$A$3:$AI$823,27,FALSE)=\"-\"),1/0,-VLOOKUP($A636,Economática!$A$3:$AI$823,27,FALSE)))","v":""},null,{"$f":"IF($A636=\"\",\"\",IF(OR(VLOOKUP($A636,Economática!$A$3:$AI$823,28,FALSE)=0,VLOOKUP($A636,Economática!$A$3:$AI$823,28,FALSE)=\"-\"),1/0,VLOOKUP($A636,Economática!$A$3:$AI$823,28,FALSE)))","v":""},{"$f":"IF($A636=\"\",\"\",IF(OR(VLOOKUP($A636,Economática!$A$3:$AI$823,29,FALSE)=0,VLOOKUP($A636,Economática!$A$3:$AI$823,29,FALSE)=\"-\"),1/0,VLOOKUP($A636,Economática!$A$3:$AI$823,29,FALSE)))","v":""},{"$f":"IF($A636=\"\",\"\",IF(OR(VLOOKUP($A636,Economática!$A$3:$AI$823,30,FALSE)/E636=0,VLOOKUP($A636,Economática!$A$3:$AI$823,30,FALSE)/E636=\"-\",VLOOKUP($A636,Economática!$A$3:$AI$823,30,FALSE)/E636<33.33%,VLOOKUP($A636,Economática!$A$3:$AI$823,30,FALSE)/E636>100%),1/0,VLOOKUP($A636,Economática!$A$3:$AI$823,30,FALSE)/E636))","v":""},null,{"$f":"IF($A636=\"\",\"\",IF(OR(VLOOKUP($A636,Economática!$A$3:$AI$823,25,FALSE)=0,VLOOKUP($A636,Economática!$A$3:$AI$823,25,FALSE)=\"-\"),1/0,VLOOKUP($A636,Economática!$A$3:$AI$823,25,FALSE)))","v":""},{"$f":"CONCATENATE(Economática!B614,\" \",Economática!C614)","v":" "}]
[{"$f":"IF(Economática!AG615=\"\",\"\",Economática!AG615)","v":""},{"$f":"IF($A637=\"\",\"\",VLOOKUP(VLOOKUP($A637,Economática!$A$3:$AI$823,6,FALSE),Correção!$B$16:$C$36,2,FALSE))","v":""},{"$f":"IF(Economática!B615=\"\",\"\",Economática!B615)","v":""},{"$f":"IF($A637=\"\",\"\",IF(OR(VLOOKUP($A637,Economática!$A$3:$AI$823,8,FALSE)=0,VLOOKUP($A637,Economática!$A$3:$AI$823,8,FALSE)=\"-\"),1/0,VLOOKUP($A637,Economática!$A$3:$AI$823,8,FALSE)))","v":""},{"$f":"IF(A637=\"\",\"\",IF(ISERROR(VLOOKUP(A637,Correção!$B$2:$G$13,9,FALSE)),VLOOKUP($A637,Economática!$A$3:$AI$823,9,FALSE),VLOOKUP(A637,Correção!$B$2:$G$13,9,FALSE)))","v":""},{"$f":"IF($A637=\"\",\"\",Economática!G615)","v":""},{"$f":"IF($A637=\"\",\"\",IF(OR(VLOOKUP($A637,Economática!$A$3:$AI$823,10,FALSE)=0,VLOOKUP($A637,Economática!$A$3:$AI$823,10,FALSE)=\"-\"),1/0,VLOOKUP($A637,Economática!$A$3:$AI$823,10,FALSE)))","v":""},{"$f":"IF($A637=\"\",\"\",IF(OR(VLOOKUP($A637,Economática!$A$3:$AI$823,11,FALSE)=0,VLOOKUP($A637,Economática!$A$3:$AI$823,11,FALSE)=\"-\"),1/0,VLOOKUP($A637,Economática!$A$3:$AI$823,11,FALSE)))","v":""},{"$f":"IF($A637=\"\",\"\",IF(OR(VLOOKUP($A637,Economática!$A$3:$AI$823,12,FALSE)=0,VLOOKUP($A637,Economática!$A$3:$AI$823,12,FALSE)=\"-\"),1/0,VLOOKUP($A637,Economática!$A$3:$AI$823,12,FALSE)))","v":""},{"$f":"IF($A637=\"\",\"\",IF(OR(VLOOKUP($A637,Economática!$A$3:$AI$823,13,FALSE)=0,VLOOKUP($A637,Economática!$A$3:$AI$823,13,FALSE)=\"-\"),1/0,VLOOKUP($A637,Economática!$A$3:$AI$823,13,FALSE)))","v":""},{"$f":"IF($A637=\"\",\"\",IF(OR(VLOOKUP($A637,Economática!$A$3:$AI$823,14,FALSE)=0,VLOOKUP($A637,Economática!$A$3:$AI$823,14,FALSE)=\"-\"),1/0,VLOOKUP($A637,Economática!$A$3:$AI$823,14,FALSE)))","v":""},{"$f":"IF($A637=\"\",\"\",IF(OR(VLOOKUP($A637,Economática!$A$3:$AI$823,15,FALSE)=0,VLOOKUP($A637,Economática!$A$3:$AI$823,15,FALSE)=\"-\"),1/0,VLOOKUP($A637,Economática!$A$3:$AI$823,15,FALSE)))","v":""},{"$f":"IF($A637=\"\",\"\",IF(OR(VLOOKUP($A637,Economática!$A$3:$AI$823,16,FALSE)=0,VLOOKUP($A637,Economática!$A$3:$AI$823,16,FALSE)=\"-\"),1/0,VLOOKUP($A637,Economática!$A$3:$AI$823,16,FALSE)))","v":""},{"$f":"IF($A637=\"\",\"\",IF(OR(VLOOKUP($A637,Economática!$A$3:$AI$823,17,FALSE)=0,VLOOKUP($A637,Economática!$A$3:$AI$823,17,FALSE)=\"-\"),1/0,VLOOKUP($A637,Economática!$A$3:$AI$823,17,FALSE)))","v":""},{"$f":"IF($A637=\"\",\"\",IF(OR(VLOOKUP($A637,Economática!$A$3:$AI$823,18,FALSE)=0,VLOOKUP($A637,Economática!$A$3:$AI$823,18,FALSE)=\"-\"),1/0,VLOOKUP($A637,Economática!$A$3:$AI$823,18,FALSE)))","v":""},{"$f":"IF($A637=\"\",\"\",IF(OR(VLOOKUP($A637,Economática!$A$3:$AI$823,19,FALSE)=0,VLOOKUP($A637,Economática!$A$3:$AI$823,19,FALSE)=\"-\"),1/0,VLOOKUP($A637,Economática!$A$3:$AI$823,19,FALSE)))","v":""},{"$f":"IF($A637=\"\",\"\",VLOOKUP($A637,Economática!$A$3:$AI$823,20,FALSE)/E637)","v":""},null,null,null,{"$f":"IF($A637=\"\",\"\",IF(OR(VLOOKUP($A637,Economática!$A$3:$AI$823,21,FALSE)/100=0,VLOOKUP($A637,Economática!$A$3:$AI$823,21,FALSE)/100=\"-\"),1/0,VLOOKUP($A637,Economática!$A$3:$AI$823,21,FALSE)/100))","v":""},{"$f":"IF($A637=\"\",\"\",IF(OR(VLOOKUP($A637,Economática!$A$3:$AI$823,22,FALSE)/100=0,VLOOKUP($A637,Economática!$A$3:$AI$823,22,FALSE)/100=\"-\"),1/0,VLOOKUP($A637,Economática!$A$3:$AI$823,22,FALSE)/100))","v":""},{"$f":"IF($A637=\"\",\"\",IF(OR(VLOOKUP($A637,Economática!$A$3:$AI$823,23,FALSE)=0,VLOOKUP($A637,Economática!$A$3:$AI$823,23,FALSE)=\"-\"),1/0,VLOOKUP($A637,Economática!$A$3:$AI$823,23,FALSE)))","v":""},{"$f":"IF($A637=\"\",\"\",IF(OR(VLOOKUP($A637,Economática!$A$3:$AI$823,24,FALSE)=0,VLOOKUP($A637,Economática!$A$3:$AI$823,24,FALSE)=\"-\"),1/0,VLOOKUP($A637,Economática!$A$3:$AI$823,24,FALSE)))","v":""},{"$f":"IF($A637=\"\",\"\",IF(OR(VLOOKUP($A637,Economática!$A$3:$AI$823,25,FALSE)=0,VLOOKUP($A637,Economática!$A$3:$AI$823,25,FALSE)=\"-\"),1/0,VLOOKUP($A637,Economática!$A$3:$AI$823,25,FALSE)))","v":""},{"$f":"IF($A637=\"\",\"\",IF(ISERROR((F637+VLOOKUP($A637,Economática!$A$3:$AI$823,26,FALSE))/Y637),(F637+VLOOKUP($A637,Economática!$A$3:$AI$823,26,FALSE))/Y637,(F637+VLOOKUP($A637,Economática!$A$3:$AI$823,26,FALSE))/Y637))","v":""},{"$f":"IF($A637=\"\",\"\",IF(OR(-VLOOKUP($A637,Economática!$A$3:$AI$823,27,FALSE)=0,-VLOOKUP($A637,Economática!$A$3:$AI$823,27,FALSE)=\"-\"),1/0,-VLOOKUP($A637,Economática!$A$3:$AI$823,27,FALSE)))","v":""},null,{"$f":"IF($A637=\"\",\"\",IF(OR(VLOOKUP($A637,Economática!$A$3:$AI$823,28,FALSE)=0,VLOOKUP($A637,Economática!$A$3:$AI$823,28,FALSE)=\"-\"),1/0,VLOOKUP($A637,Economática!$A$3:$AI$823,28,FALSE)))","v":""},{"$f":"IF($A637=\"\",\"\",IF(OR(VLOOKUP($A637,Economática!$A$3:$AI$823,29,FALSE)=0,VLOOKUP($A637,Economática!$A$3:$AI$823,29,FALSE)=\"-\"),1/0,VLOOKUP($A637,Economática!$A$3:$AI$823,29,FALSE)))","v":""},{"$f":"IF($A637=\"\",\"\",IF(OR(VLOOKUP($A637,Economática!$A$3:$AI$823,30,FALSE)/E637=0,VLOOKUP($A637,Economática!$A$3:$AI$823,30,FALSE)/E637=\"-\",VLOOKUP($A637,Economática!$A$3:$AI$823,30,FALSE)/E637<33.33%,VLOOKUP($A637,Economática!$A$3:$AI$823,30,FALSE)/E637>100%),1/0,VLOOKUP($A637,Economática!$A$3:$AI$823,30,FALSE)/E637))","v":""},null,{"$f":"IF($A637=\"\",\"\",IF(OR(VLOOKUP($A637,Economática!$A$3:$AI$823,25,FALSE)=0,VLOOKUP($A637,Economática!$A$3:$AI$823,25,FALSE)=\"-\"),1/0,VLOOKUP($A637,Economática!$A$3:$AI$823,25,FALSE)))","v":""},{"$f":"CONCATENATE(Economática!B615,\" \",Economática!C615)","v":" "}]
[{"$f":"IF(Economática!AG616=\"\",\"\",Economática!AG616)","v":""},{"$f":"IF($A638=\"\",\"\",VLOOKUP(VLOOKUP($A638,Economática!$A$3:$AI$823,6,FALSE),Correção!$B$16:$C$36,2,FALSE))","v":""},{"$f":"IF(Economática!B616=\"\",\"\",Economática!B616)","v":""},{"$f":"IF($A638=\"\",\"\",IF(OR(VLOOKUP($A638,Economática!$A$3:$AI$823,8,FALSE)=0,VLOOKUP($A638,Economática!$A$3:$AI$823,8,FALSE)=\"-\"),1/0,VLOOKUP($A638,Economática!$A$3:$AI$823,8,FALSE)))","v":""},{"$f":"IF(A638=\"\",\"\",IF(ISERROR(VLOOKUP(A638,Correção!$B$2:$G$13,9,FALSE)),VLOOKUP($A638,Economática!$A$3:$AI$823,9,FALSE),VLOOKUP(A638,Correção!$B$2:$G$13,9,FALSE)))","v":""},{"$f":"IF($A638=\"\",\"\",Economática!G616)","v":""},{"$f":"IF($A638=\"\",\"\",IF(OR(VLOOKUP($A638,Economática!$A$3:$AI$823,10,FALSE)=0,VLOOKUP($A638,Economática!$A$3:$AI$823,10,FALSE)=\"-\"),1/0,VLOOKUP($A638,Economática!$A$3:$AI$823,10,FALSE)))","v":""},{"$f":"IF($A638=\"\",\"\",IF(OR(VLOOKUP($A638,Economática!$A$3:$AI$823,11,FALSE)=0,VLOOKUP($A638,Economática!$A$3:$AI$823,11,FALSE)=\"-\"),1/0,VLOOKUP($A638,Economática!$A$3:$AI$823,11,FALSE)))","v":""},{"$f":"IF($A638=\"\",\"\",IF(OR(VLOOKUP($A638,Economática!$A$3:$AI$823,12,FALSE)=0,VLOOKUP($A638,Economática!$A$3:$AI$823,12,FALSE)=\"-\"),1/0,VLOOKUP($A638,Economática!$A$3:$AI$823,12,FALSE)))","v":""},{"$f":"IF($A638=\"\",\"\",IF(OR(VLOOKUP($A638,Economática!$A$3:$AI$823,13,FALSE)=0,VLOOKUP($A638,Economática!$A$3:$AI$823,13,FALSE)=\"-\"),1/0,VLOOKUP($A638,Economática!$A$3:$AI$823,13,FALSE)))","v":""},{"$f":"IF($A638=\"\",\"\",IF(OR(VLOOKUP($A638,Economática!$A$3:$AI$823,14,FALSE)=0,VLOOKUP($A638,Economática!$A$3:$AI$823,14,FALSE)=\"-\"),1/0,VLOOKUP($A638,Economática!$A$3:$AI$823,14,FALSE)))","v":""},{"$f":"IF($A638=\"\",\"\",IF(OR(VLOOKUP($A638,Economática!$A$3:$AI$823,15,FALSE)=0,VLOOKUP($A638,Economática!$A$3:$AI$823,15,FALSE)=\"-\"),1/0,VLOOKUP($A638,Economática!$A$3:$AI$823,15,FALSE)))","v":""},{"$f":"IF($A638=\"\",\"\",IF(OR(VLOOKUP($A638,Economática!$A$3:$AI$823,16,FALSE)=0,VLOOKUP($A638,Economática!$A$3:$AI$823,16,FALSE)=\"-\"),1/0,VLOOKUP($A638,Economática!$A$3:$AI$823,16,FALSE)))","v":""},{"$f":"IF($A638=\"\",\"\",IF(OR(VLOOKUP($A638,Economática!$A$3:$AI$823,17,FALSE)=0,VLOOKUP($A638,Economática!$A$3:$AI$823,17,FALSE)=\"-\"),1/0,VLOOKUP($A638,Economática!$A$3:$AI$823,17,FALSE)))","v":""},{"$f":"IF($A638=\"\",\"\",IF(OR(VLOOKUP($A638,Economática!$A$3:$AI$823,18,FALSE)=0,VLOOKUP($A638,Economática!$A$3:$AI$823,18,FALSE)=\"-\"),1/0,VLOOKUP($A638,Economática!$A$3:$AI$823,18,FALSE)))","v":""},{"$f":"IF($A638=\"\",\"\",IF(OR(VLOOKUP($A638,Economática!$A$3:$AI$823,19,FALSE)=0,VLOOKUP($A638,Economática!$A$3:$AI$823,19,FALSE)=\"-\"),1/0,VLOOKUP($A638,Economática!$A$3:$AI$823,19,FALSE)))","v":""},{"$f":"IF($A638=\"\",\"\",VLOOKUP($A638,Economática!$A$3:$AI$823,20,FALSE)/E638)","v":""},null,null,null,{"$f":"IF($A638=\"\",\"\",IF(OR(VLOOKUP($A638,Economática!$A$3:$AI$823,21,FALSE)/100=0,VLOOKUP($A638,Economática!$A$3:$AI$823,21,FALSE)/100=\"-\"),1/0,VLOOKUP($A638,Economática!$A$3:$AI$823,21,FALSE)/100))","v":""},{"$f":"IF($A638=\"\",\"\",IF(OR(VLOOKUP($A638,Economática!$A$3:$AI$823,22,FALSE)/100=0,VLOOKUP($A638,Economática!$A$3:$AI$823,22,FALSE)/100=\"-\"),1/0,VLOOKUP($A638,Economática!$A$3:$AI$823,22,FALSE)/100))","v":""},{"$f":"IF($A638=\"\",\"\",IF(OR(VLOOKUP($A638,Economática!$A$3:$AI$823,23,FALSE)=0,VLOOKUP($A638,Economática!$A$3:$AI$823,23,FALSE)=\"-\"),1/0,VLOOKUP($A638,Economática!$A$3:$AI$823,23,FALSE)))","v":""},{"$f":"IF($A638=\"\",\"\",IF(OR(VLOOKUP($A638,Economática!$A$3:$AI$823,24,FALSE)=0,VLOOKUP($A638,Economática!$A$3:$AI$823,24,FALSE)=\"-\"),1/0,VLOOKUP($A638,Economática!$A$3:$AI$823,24,FALSE)))","v":""},{"$f":"IF($A638=\"\",\"\",IF(OR(VLOOKUP($A638,Economática!$A$3:$AI$823,25,FALSE)=0,VLOOKUP($A638,Economática!$A$3:$AI$823,25,FALSE)=\"-\"),1/0,VLOOKUP($A638,Economática!$A$3:$AI$823,25,FALSE)))","v":""},{"$f":"IF($A638=\"\",\"\",IF(ISERROR((F638+VLOOKUP($A638,Economática!$A$3:$AI$823,26,FALSE))/Y638),(F638+VLOOKUP($A638,Economática!$A$3:$AI$823,26,FALSE))/Y638,(F638+VLOOKUP($A638,Economática!$A$3:$AI$823,26,FALSE))/Y638))","v":""},{"$f":"IF($A638=\"\",\"\",IF(OR(-VLOOKUP($A638,Economática!$A$3:$AI$823,27,FALSE)=0,-VLOOKUP($A638,Economática!$A$3:$AI$823,27,FALSE)=\"-\"),1/0,-VLOOKUP($A638,Economática!$A$3:$AI$823,27,FALSE)))","v":""},null,{"$f":"IF($A638=\"\",\"\",IF(OR(VLOOKUP($A638,Economática!$A$3:$AI$823,28,FALSE)=0,VLOOKUP($A638,Economática!$A$3:$AI$823,28,FALSE)=\"-\"),1/0,VLOOKUP($A638,Economática!$A$3:$AI$823,28,FALSE)))","v":""},{"$f":"IF($A638=\"\",\"\",IF(OR(VLOOKUP($A638,Economática!$A$3:$AI$823,29,FALSE)=0,VLOOKUP($A638,Economática!$A$3:$AI$823,29,FALSE)=\"-\"),1/0,VLOOKUP($A638,Economática!$A$3:$AI$823,29,FALSE)))","v":""},{"$f":"IF($A638=\"\",\"\",IF(OR(VLOOKUP($A638,Economática!$A$3:$AI$823,30,FALSE)/E638=0,VLOOKUP($A638,Economática!$A$3:$AI$823,30,FALSE)/E638=\"-\",VLOOKUP($A638,Economática!$A$3:$AI$823,30,FALSE)/E638<33.33%,VLOOKUP($A638,Economática!$A$3:$AI$823,30,FALSE)/E638>100%),1/0,VLOOKUP($A638,Economática!$A$3:$AI$823,30,FALSE)/E638))","v":""},null,{"$f":"IF($A638=\"\",\"\",IF(OR(VLOOKUP($A638,Economática!$A$3:$AI$823,25,FALSE)=0,VLOOKUP($A638,Economática!$A$3:$AI$823,25,FALSE)=\"-\"),1/0,VLOOKUP($A638,Economática!$A$3:$AI$823,25,FALSE)))","v":""},{"$f":"CONCATENATE(Economática!B616,\" \",Economática!C616)","v":" "}]
[{"$f":"IF(Economática!AG617=\"\",\"\",Economática!AG617)","v":""},{"$f":"IF($A639=\"\",\"\",VLOOKUP(VLOOKUP($A639,Economática!$A$3:$AI$823,6,FALSE),Correção!$B$16:$C$36,2,FALSE))","v":""},{"$f":"IF(Economática!B617=\"\",\"\",Economática!B617)","v":""},{"$f":"IF($A639=\"\",\"\",IF(OR(VLOOKUP($A639,Economática!$A$3:$AI$823,8,FALSE)=0,VLOOKUP($A639,Economática!$A$3:$AI$823,8,FALSE)=\"-\"),1/0,VLOOKUP($A639,Economática!$A$3:$AI$823,8,FALSE)))","v":""},{"$f":"IF(A639=\"\",\"\",IF(ISERROR(VLOOKUP(A639,Correção!$B$2:$G$13,9,FALSE)),VLOOKUP($A639,Economática!$A$3:$AI$823,9,FALSE),VLOOKUP(A639,Correção!$B$2:$G$13,9,FALSE)))","v":""},{"$f":"IF($A639=\"\",\"\",Economática!G617)","v":""},{"$f":"IF($A639=\"\",\"\",IF(OR(VLOOKUP($A639,Economática!$A$3:$AI$823,10,FALSE)=0,VLOOKUP($A639,Economática!$A$3:$AI$823,10,FALSE)=\"-\"),1/0,VLOOKUP($A639,Economática!$A$3:$AI$823,10,FALSE)))","v":""},{"$f":"IF($A639=\"\",\"\",IF(OR(VLOOKUP($A639,Economática!$A$3:$AI$823,11,FALSE)=0,VLOOKUP($A639,Economática!$A$3:$AI$823,11,FALSE)=\"-\"),1/0,VLOOKUP($A639,Economática!$A$3:$AI$823,11,FALSE)))","v":""},{"$f":"IF($A639=\"\",\"\",IF(OR(VLOOKUP($A639,Economática!$A$3:$AI$823,12,FALSE)=0,VLOOKUP($A639,Economática!$A$3:$AI$823,12,FALSE)=\"-\"),1/0,VLOOKUP($A639,Economática!$A$3:$AI$823,12,FALSE)))","v":""},{"$f":"IF($A639=\"\",\"\",IF(OR(VLOOKUP($A639,Economática!$A$3:$AI$823,13,FALSE)=0,VLOOKUP($A639,Economática!$A$3:$AI$823,13,FALSE)=\"-\"),1/0,VLOOKUP($A639,Economática!$A$3:$AI$823,13,FALSE)))","v":""},{"$f":"IF($A639=\"\",\"\",IF(OR(VLOOKUP($A639,Economática!$A$3:$AI$823,14,FALSE)=0,VLOOKUP($A639,Economática!$A$3:$AI$823,14,FALSE)=\"-\"),1/0,VLOOKUP($A639,Economática!$A$3:$AI$823,14,FALSE)))","v":""},{"$f":"IF($A639=\"\",\"\",IF(OR(VLOOKUP($A639,Economática!$A$3:$AI$823,15,FALSE)=0,VLOOKUP($A639,Economática!$A$3:$AI$823,15,FALSE)=\"-\"),1/0,VLOOKUP($A639,Economática!$A$3:$AI$823,15,FALSE)))","v":""},{"$f":"IF($A639=\"\",\"\",IF(OR(VLOOKUP($A639,Economática!$A$3:$AI$823,16,FALSE)=0,VLOOKUP($A639,Economática!$A$3:$AI$823,16,FALSE)=\"-\"),1/0,VLOOKUP($A639,Economática!$A$3:$AI$823,16,FALSE)))","v":""},{"$f":"IF($A639=\"\",\"\",IF(OR(VLOOKUP($A639,Economática!$A$3:$AI$823,17,FALSE)=0,VLOOKUP($A639,Economática!$A$3:$AI$823,17,FALSE)=\"-\"),1/0,VLOOKUP($A639,Economática!$A$3:$AI$823,17,FALSE)))","v":""},{"$f":"IF($A639=\"\",\"\",IF(OR(VLOOKUP($A639,Economática!$A$3:$AI$823,18,FALSE)=0,VLOOKUP($A639,Economática!$A$3:$AI$823,18,FALSE)=\"-\"),1/0,VLOOKUP($A639,Economática!$A$3:$AI$823,18,FALSE)))","v":""},{"$f":"IF($A639=\"\",\"\",IF(OR(VLOOKUP($A639,Economática!$A$3:$AI$823,19,FALSE)=0,VLOOKUP($A639,Economática!$A$3:$AI$823,19,FALSE)=\"-\"),1/0,VLOOKUP($A639,Economática!$A$3:$AI$823,19,FALSE)))","v":""},{"$f":"IF($A639=\"\",\"\",VLOOKUP($A639,Economática!$A$3:$AI$823,20,FALSE)/E639)","v":""},null,null,null,{"$f":"IF($A639=\"\",\"\",IF(OR(VLOOKUP($A639,Economática!$A$3:$AI$823,21,FALSE)/100=0,VLOOKUP($A639,Economática!$A$3:$AI$823,21,FALSE)/100=\"-\"),1/0,VLOOKUP($A639,Economática!$A$3:$AI$823,21,FALSE)/100))","v":""},{"$f":"IF($A639=\"\",\"\",IF(OR(VLOOKUP($A639,Economática!$A$3:$AI$823,22,FALSE)/100=0,VLOOKUP($A639,Economática!$A$3:$AI$823,22,FALSE)/100=\"-\"),1/0,VLOOKUP($A639,Economática!$A$3:$AI$823,22,FALSE)/100))","v":""},{"$f":"IF($A639=\"\",\"\",IF(OR(VLOOKUP($A639,Economática!$A$3:$AI$823,23,FALSE)=0,VLOOKUP($A639,Economática!$A$3:$AI$823,23,FALSE)=\"-\"),1/0,VLOOKUP($A639,Economática!$A$3:$AI$823,23,FALSE)))","v":""},{"$f":"IF($A639=\"\",\"\",IF(OR(VLOOKUP($A639,Economática!$A$3:$AI$823,24,FALSE)=0,VLOOKUP($A639,Economática!$A$3:$AI$823,24,FALSE)=\"-\"),1/0,VLOOKUP($A639,Economática!$A$3:$AI$823,24,FALSE)))","v":""},{"$f":"IF($A639=\"\",\"\",IF(OR(VLOOKUP($A639,Economática!$A$3:$AI$823,25,FALSE)=0,VLOOKUP($A639,Economática!$A$3:$AI$823,25,FALSE)=\"-\"),1/0,VLOOKUP($A639,Economática!$A$3:$AI$823,25,FALSE)))","v":""},{"$f":"IF($A639=\"\",\"\",IF(ISERROR((F639+VLOOKUP($A639,Economática!$A$3:$AI$823,26,FALSE))/Y639),(F639+VLOOKUP($A639,Economática!$A$3:$AI$823,26,FALSE))/Y639,(F639+VLOOKUP($A639,Economática!$A$3:$AI$823,26,FALSE))/Y639))","v":""},{"$f":"IF($A639=\"\",\"\",IF(OR(-VLOOKUP($A639,Economática!$A$3:$AI$823,27,FALSE)=0,-VLOOKUP($A639,Economática!$A$3:$AI$823,27,FALSE)=\"-\"),1/0,-VLOOKUP($A639,Economática!$A$3:$AI$823,27,FALSE)))","v":""},null,{"$f":"IF($A639=\"\",\"\",IF(OR(VLOOKUP($A639,Economática!$A$3:$AI$823,28,FALSE)=0,VLOOKUP($A639,Economática!$A$3:$AI$823,28,FALSE)=\"-\"),1/0,VLOOKUP($A639,Economática!$A$3:$AI$823,28,FALSE)))","v":""},{"$f":"IF($A639=\"\",\"\",IF(OR(VLOOKUP($A639,Economática!$A$3:$AI$823,29,FALSE)=0,VLOOKUP($A639,Economática!$A$3:$AI$823,29,FALSE)=\"-\"),1/0,VLOOKUP($A639,Economática!$A$3:$AI$823,29,FALSE)))","v":""},{"$f":"IF($A639=\"\",\"\",IF(OR(VLOOKUP($A639,Economática!$A$3:$AI$823,30,FALSE)/E639=0,VLOOKUP($A639,Economática!$A$3:$AI$823,30,FALSE)/E639=\"-\",VLOOKUP($A639,Economática!$A$3:$AI$823,30,FALSE)/E639<33.33%,VLOOKUP($A639,Economática!$A$3:$AI$823,30,FALSE)/E639>100%),1/0,VLOOKUP($A639,Economática!$A$3:$AI$823,30,FALSE)/E639))","v":""},null,{"$f":"IF($A639=\"\",\"\",IF(OR(VLOOKUP($A639,Economática!$A$3:$AI$823,25,FALSE)=0,VLOOKUP($A639,Economática!$A$3:$AI$823,25,FALSE)=\"-\"),1/0,VLOOKUP($A639,Economática!$A$3:$AI$823,25,FALSE)))","v":""},{"$f":"CONCATENATE(Economática!B617,\" \",Economática!C617)","v":" "}]
[{"$f":"IF(Economática!AG618=\"\",\"\",Economática!AG618)","v":""},{"$f":"IF($A640=\"\",\"\",VLOOKUP(VLOOKUP($A640,Economática!$A$3:$AI$823,6,FALSE),Correção!$B$16:$C$36,2,FALSE))","v":""},{"$f":"IF(Economática!B618=\"\",\"\",Economática!B618)","v":""},{"$f":"IF($A640=\"\",\"\",IF(OR(VLOOKUP($A640,Economática!$A$3:$AI$823,8,FALSE)=0,VLOOKUP($A640,Economática!$A$3:$AI$823,8,FALSE)=\"-\"),1/0,VLOOKUP($A640,Economática!$A$3:$AI$823,8,FALSE)))","v":""},{"$f":"IF(A640=\"\",\"\",IF(ISERROR(VLOOKUP(A640,Correção!$B$2:$G$13,9,FALSE)),VLOOKUP($A640,Economática!$A$3:$AI$823,9,FALSE),VLOOKUP(A640,Correção!$B$2:$G$13,9,FALSE)))","v":""},{"$f":"IF($A640=\"\",\"\",Economática!G618)","v":""},{"$f":"IF($A640=\"\",\"\",IF(OR(VLOOKUP($A640,Economática!$A$3:$AI$823,10,FALSE)=0,VLOOKUP($A640,Economática!$A$3:$AI$823,10,FALSE)=\"-\"),1/0,VLOOKUP($A640,Economática!$A$3:$AI$823,10,FALSE)))","v":""},{"$f":"IF($A640=\"\",\"\",IF(OR(VLOOKUP($A640,Economática!$A$3:$AI$823,11,FALSE)=0,VLOOKUP($A640,Economática!$A$3:$AI$823,11,FALSE)=\"-\"),1/0,VLOOKUP($A640,Economática!$A$3:$AI$823,11,FALSE)))","v":""},{"$f":"IF($A640=\"\",\"\",IF(OR(VLOOKUP($A640,Economática!$A$3:$AI$823,12,FALSE)=0,VLOOKUP($A640,Economática!$A$3:$AI$823,12,FALSE)=\"-\"),1/0,VLOOKUP($A640,Economática!$A$3:$AI$823,12,FALSE)))","v":""},{"$f":"IF($A640=\"\",\"\",IF(OR(VLOOKUP($A640,Economática!$A$3:$AI$823,13,FALSE)=0,VLOOKUP($A640,Economática!$A$3:$AI$823,13,FALSE)=\"-\"),1/0,VLOOKUP($A640,Economática!$A$3:$AI$823,13,FALSE)))","v":""},{"$f":"IF($A640=\"\",\"\",IF(OR(VLOOKUP($A640,Economática!$A$3:$AI$823,14,FALSE)=0,VLOOKUP($A640,Economática!$A$3:$AI$823,14,FALSE)=\"-\"),1/0,VLOOKUP($A640,Economática!$A$3:$AI$823,14,FALSE)))","v":""},{"$f":"IF($A640=\"\",\"\",IF(OR(VLOOKUP($A640,Economática!$A$3:$AI$823,15,FALSE)=0,VLOOKUP($A640,Economática!$A$3:$AI$823,15,FALSE)=\"-\"),1/0,VLOOKUP($A640,Economática!$A$3:$AI$823,15,FALSE)))","v":""},{"$f":"IF($A640=\"\",\"\",IF(OR(VLOOKUP($A640,Economática!$A$3:$AI$823,16,FALSE)=0,VLOOKUP($A640,Economática!$A$3:$AI$823,16,FALSE)=\"-\"),1/0,VLOOKUP($A640,Economática!$A$3:$AI$823,16,FALSE)))","v":""},{"$f":"IF($A640=\"\",\"\",IF(OR(VLOOKUP($A640,Economática!$A$3:$AI$823,17,FALSE)=0,VLOOKUP($A640,Economática!$A$3:$AI$823,17,FALSE)=\"-\"),1/0,VLOOKUP($A640,Economática!$A$3:$AI$823,17,FALSE)))","v":""},{"$f":"IF($A640=\"\",\"\",IF(OR(VLOOKUP($A640,Economática!$A$3:$AI$823,18,FALSE)=0,VLOOKUP($A640,Economática!$A$3:$AI$823,18,FALSE)=\"-\"),1/0,VLOOKUP($A640,Economática!$A$3:$AI$823,18,FALSE)))","v":""},{"$f":"IF($A640=\"\",\"\",IF(OR(VLOOKUP($A640,Economática!$A$3:$AI$823,19,FALSE)=0,VLOOKUP($A640,Economática!$A$3:$AI$823,19,FALSE)=\"-\"),1/0,VLOOKUP($A640,Economática!$A$3:$AI$823,19,FALSE)))","v":""},{"$f":"IF($A640=\"\",\"\",VLOOKUP($A640,Economática!$A$3:$AI$823,20,FALSE)/E640)","v":""},null,null,null,{"$f":"IF($A640=\"\",\"\",IF(OR(VLOOKUP($A640,Economática!$A$3:$AI$823,21,FALSE)/100=0,VLOOKUP($A640,Economática!$A$3:$AI$823,21,FALSE)/100=\"-\"),1/0,VLOOKUP($A640,Economática!$A$3:$AI$823,21,FALSE)/100))","v":""},{"$f":"IF($A640=\"\",\"\",IF(OR(VLOOKUP($A640,Economática!$A$3:$AI$823,22,FALSE)/100=0,VLOOKUP($A640,Economática!$A$3:$AI$823,22,FALSE)/100=\"-\"),1/0,VLOOKUP($A640,Economática!$A$3:$AI$823,22,FALSE)/100))","v":""},{"$f":"IF($A640=\"\",\"\",IF(OR(VLOOKUP($A640,Economática!$A$3:$AI$823,23,FALSE)=0,VLOOKUP($A640,Economática!$A$3:$AI$823,23,FALSE)=\"-\"),1/0,VLOOKUP($A640,Economática!$A$3:$AI$823,23,FALSE)))","v":""},{"$f":"IF($A640=\"\",\"\",IF(OR(VLOOKUP($A640,Economática!$A$3:$AI$823,24,FALSE)=0,VLOOKUP($A640,Economática!$A$3:$AI$823,24,FALSE)=\"-\"),1/0,VLOOKUP($A640,Economática!$A$3:$AI$823,24,FALSE)))","v":""},{"$f":"IF($A640=\"\",\"\",IF(OR(VLOOKUP($A640,Economática!$A$3:$AI$823,25,FALSE)=0,VLOOKUP($A640,Economática!$A$3:$AI$823,25,FALSE)=\"-\"),1/0,VLOOKUP($A640,Economática!$A$3:$AI$823,25,FALSE)))","v":""},{"$f":"IF($A640=\"\",\"\",IF(ISERROR((F640+VLOOKUP($A640,Economática!$A$3:$AI$823,26,FALSE))/Y640),(F640+VLOOKUP($A640,Economática!$A$3:$AI$823,26,FALSE))/Y640,(F640+VLOOKUP($A640,Economática!$A$3:$AI$823,26,FALSE))/Y640))","v":""},{"$f":"IF($A640=\"\",\"\",IF(OR(-VLOOKUP($A640,Economática!$A$3:$AI$823,27,FALSE)=0,-VLOOKUP($A640,Economática!$A$3:$AI$823,27,FALSE)=\"-\"),1/0,-VLOOKUP($A640,Economática!$A$3:$AI$823,27,FALSE)))","v":""},null,{"$f":"IF($A640=\"\",\"\",IF(OR(VLOOKUP($A640,Economática!$A$3:$AI$823,28,FALSE)=0,VLOOKUP($A640,Economática!$A$3:$AI$823,28,FALSE)=\"-\"),1/0,VLOOKUP($A640,Economática!$A$3:$AI$823,28,FALSE)))","v":""},{"$f":"IF($A640=\"\",\"\",IF(OR(VLOOKUP($A640,Economática!$A$3:$AI$823,29,FALSE)=0,VLOOKUP($A640,Economática!$A$3:$AI$823,29,FALSE)=\"-\"),1/0,VLOOKUP($A640,Economática!$A$3:$AI$823,29,FALSE)))","v":""},{"$f":"IF($A640=\"\",\"\",IF(OR(VLOOKUP($A640,Economática!$A$3:$AI$823,30,FALSE)/E640=0,VLOOKUP($A640,Economática!$A$3:$AI$823,30,FALSE)/E640=\"-\",VLOOKUP($A640,Economática!$A$3:$AI$823,30,FALSE)/E640<33.33%,VLOOKUP($A640,Economática!$A$3:$AI$823,30,FALSE)/E640>100%),1/0,VLOOKUP($A640,Economática!$A$3:$AI$823,30,FALSE)/E640))","v":""},null,{"$f":"IF($A640=\"\",\"\",IF(OR(VLOOKUP($A640,Economática!$A$3:$AI$823,25,FALSE)=0,VLOOKUP($A640,Economática!$A$3:$AI$823,25,FALSE)=\"-\"),1/0,VLOOKUP($A640,Economática!$A$3:$AI$823,25,FALSE)))","v":""},{"$f":"CONCATENATE(Economática!B618,\" \",Economática!C618)","v":" "}]
[{"$f":"IF(Economática!AG619=\"\",\"\",Economática!AG619)","v":""},{"$f":"IF($A641=\"\",\"\",VLOOKUP(VLOOKUP($A641,Economática!$A$3:$AI$823,6,FALSE),Correção!$B$16:$C$36,2,FALSE))","v":""},{"$f":"IF(Economática!B619=\"\",\"\",Economática!B619)","v":""},{"$f":"IF($A641=\"\",\"\",IF(OR(VLOOKUP($A641,Economática!$A$3:$AI$823,8,FALSE)=0,VLOOKUP($A641,Economática!$A$3:$AI$823,8,FALSE)=\"-\"),1/0,VLOOKUP($A641,Economática!$A$3:$AI$823,8,FALSE)))","v":""},{"$f":"IF(A641=\"\",\"\",IF(ISERROR(VLOOKUP(A641,Correção!$B$2:$G$13,9,FALSE)),VLOOKUP($A641,Economática!$A$3:$AI$823,9,FALSE),VLOOKUP(A641,Correção!$B$2:$G$13,9,FALSE)))","v":""},{"$f":"IF($A641=\"\",\"\",Economática!G619)","v":""},{"$f":"IF($A641=\"\",\"\",IF(OR(VLOOKUP($A641,Economática!$A$3:$AI$823,10,FALSE)=0,VLOOKUP($A641,Economática!$A$3:$AI$823,10,FALSE)=\"-\"),1/0,VLOOKUP($A641,Economática!$A$3:$AI$823,10,FALSE)))","v":""},{"$f":"IF($A641=\"\",\"\",IF(OR(VLOOKUP($A641,Economática!$A$3:$AI$823,11,FALSE)=0,VLOOKUP($A641,Economática!$A$3:$AI$823,11,FALSE)=\"-\"),1/0,VLOOKUP($A641,Economática!$A$3:$AI$823,11,FALSE)))","v":""},{"$f":"IF($A641=\"\",\"\",IF(OR(VLOOKUP($A641,Economática!$A$3:$AI$823,12,FALSE)=0,VLOOKUP($A641,Economática!$A$3:$AI$823,12,FALSE)=\"-\"),1/0,VLOOKUP($A641,Economática!$A$3:$AI$823,12,FALSE)))","v":""},{"$f":"IF($A641=\"\",\"\",IF(OR(VLOOKUP($A641,Economática!$A$3:$AI$823,13,FALSE)=0,VLOOKUP($A641,Economática!$A$3:$AI$823,13,FALSE)=\"-\"),1/0,VLOOKUP($A641,Economática!$A$3:$AI$823,13,FALSE)))","v":""},{"$f":"IF($A641=\"\",\"\",IF(OR(VLOOKUP($A641,Economática!$A$3:$AI$823,14,FALSE)=0,VLOOKUP($A641,Economática!$A$3:$AI$823,14,FALSE)=\"-\"),1/0,VLOOKUP($A641,Economática!$A$3:$AI$823,14,FALSE)))","v":""},{"$f":"IF($A641=\"\",\"\",IF(OR(VLOOKUP($A641,Economática!$A$3:$AI$823,15,FALSE)=0,VLOOKUP($A641,Economática!$A$3:$AI$823,15,FALSE)=\"-\"),1/0,VLOOKUP($A641,Economática!$A$3:$AI$823,15,FALSE)))","v":""},{"$f":"IF($A641=\"\",\"\",IF(OR(VLOOKUP($A641,Economática!$A$3:$AI$823,16,FALSE)=0,VLOOKUP($A641,Economática!$A$3:$AI$823,16,FALSE)=\"-\"),1/0,VLOOKUP($A641,Economática!$A$3:$AI$823,16,FALSE)))","v":""},{"$f":"IF($A641=\"\",\"\",IF(OR(VLOOKUP($A641,Economática!$A$3:$AI$823,17,FALSE)=0,VLOOKUP($A641,Economática!$A$3:$AI$823,17,FALSE)=\"-\"),1/0,VLOOKUP($A641,Economática!$A$3:$AI$823,17,FALSE)))","v":""},{"$f":"IF($A641=\"\",\"\",IF(OR(VLOOKUP($A641,Economática!$A$3:$AI$823,18,FALSE)=0,VLOOKUP($A641,Economática!$A$3:$AI$823,18,FALSE)=\"-\"),1/0,VLOOKUP($A641,Economática!$A$3:$AI$823,18,FALSE)))","v":""},{"$f":"IF($A641=\"\",\"\",IF(OR(VLOOKUP($A641,Economática!$A$3:$AI$823,19,FALSE)=0,VLOOKUP($A641,Economática!$A$3:$AI$823,19,FALSE)=\"-\"),1/0,VLOOKUP($A641,Economática!$A$3:$AI$823,19,FALSE)))","v":""},{"$f":"IF($A641=\"\",\"\",VLOOKUP($A641,Economática!$A$3:$AI$823,20,FALSE)/E641)","v":""},null,null,null,{"$f":"IF($A641=\"\",\"\",IF(OR(VLOOKUP($A641,Economática!$A$3:$AI$823,21,FALSE)/100=0,VLOOKUP($A641,Economática!$A$3:$AI$823,21,FALSE)/100=\"-\"),1/0,VLOOKUP($A641,Economática!$A$3:$AI$823,21,FALSE)/100))","v":""},{"$f":"IF($A641=\"\",\"\",IF(OR(VLOOKUP($A641,Economática!$A$3:$AI$823,22,FALSE)/100=0,VLOOKUP($A641,Economática!$A$3:$AI$823,22,FALSE)/100=\"-\"),1/0,VLOOKUP($A641,Economática!$A$3:$AI$823,22,FALSE)/100))","v":""},{"$f":"IF($A641=\"\",\"\",IF(OR(VLOOKUP($A641,Economática!$A$3:$AI$823,23,FALSE)=0,VLOOKUP($A641,Economática!$A$3:$AI$823,23,FALSE)=\"-\"),1/0,VLOOKUP($A641,Economática!$A$3:$AI$823,23,FALSE)))","v":""},{"$f":"IF($A641=\"\",\"\",IF(OR(VLOOKUP($A641,Economática!$A$3:$AI$823,24,FALSE)=0,VLOOKUP($A641,Economática!$A$3:$AI$823,24,FALSE)=\"-\"),1/0,VLOOKUP($A641,Economática!$A$3:$AI$823,24,FALSE)))","v":""},{"$f":"IF($A641=\"\",\"\",IF(OR(VLOOKUP($A641,Economática!$A$3:$AI$823,25,FALSE)=0,VLOOKUP($A641,Economática!$A$3:$AI$823,25,FALSE)=\"-\"),1/0,VLOOKUP($A641,Economática!$A$3:$AI$823,25,FALSE)))","v":""},{"$f":"IF($A641=\"\",\"\",IF(ISERROR((F641+VLOOKUP($A641,Economática!$A$3:$AI$823,26,FALSE))/Y641),(F641+VLOOKUP($A641,Economática!$A$3:$AI$823,26,FALSE))/Y641,(F641+VLOOKUP($A641,Economática!$A$3:$AI$823,26,FALSE))/Y641))","v":""},{"$f":"IF($A641=\"\",\"\",IF(OR(-VLOOKUP($A641,Economática!$A$3:$AI$823,27,FALSE)=0,-VLOOKUP($A641,Economática!$A$3:$AI$823,27,FALSE)=\"-\"),1/0,-VLOOKUP($A641,Economática!$A$3:$AI$823,27,FALSE)))","v":""},null,{"$f":"IF($A641=\"\",\"\",IF(OR(VLOOKUP($A641,Economática!$A$3:$AI$823,28,FALSE)=0,VLOOKUP($A641,Economática!$A$3:$AI$823,28,FALSE)=\"-\"),1/0,VLOOKUP($A641,Economática!$A$3:$AI$823,28,FALSE)))","v":""},{"$f":"IF($A641=\"\",\"\",IF(OR(VLOOKUP($A641,Economática!$A$3:$AI$823,29,FALSE)=0,VLOOKUP($A641,Economática!$A$3:$AI$823,29,FALSE)=\"-\"),1/0,VLOOKUP($A641,Economática!$A$3:$AI$823,29,FALSE)))","v":""},{"$f":"IF($A641=\"\",\"\",IF(OR(VLOOKUP($A641,Economática!$A$3:$AI$823,30,FALSE)/E641=0,VLOOKUP($A641,Economática!$A$3:$AI$823,30,FALSE)/E641=\"-\",VLOOKUP($A641,Economática!$A$3:$AI$823,30,FALSE)/E641<33.33%,VLOOKUP($A641,Economática!$A$3:$AI$823,30,FALSE)/E641>100%),1/0,VLOOKUP($A641,Economática!$A$3:$AI$823,30,FALSE)/E641))","v":""},null,{"$f":"IF($A641=\"\",\"\",IF(OR(VLOOKUP($A641,Economática!$A$3:$AI$823,25,FALSE)=0,VLOOKUP($A641,Economática!$A$3:$AI$823,25,FALSE)=\"-\"),1/0,VLOOKUP($A641,Economática!$A$3:$AI$823,25,FALSE)))","v":""},{"$f":"CONCATENATE(Economática!B619,\" \",Economática!C619)","v":" "}]
[{"$f":"IF(Economática!AG620=\"\",\"\",Economática!AG620)","v":""},{"$f":"IF($A642=\"\",\"\",VLOOKUP(VLOOKUP($A642,Economática!$A$3:$AI$823,6,FALSE),Correção!$B$16:$C$36,2,FALSE))","v":""},{"$f":"IF(Economática!B620=\"\",\"\",Economática!B620)","v":""},{"$f":"IF($A642=\"\",\"\",IF(OR(VLOOKUP($A642,Economática!$A$3:$AI$823,8,FALSE)=0,VLOOKUP($A642,Economática!$A$3:$AI$823,8,FALSE)=\"-\"),1/0,VLOOKUP($A642,Economática!$A$3:$AI$823,8,FALSE)))","v":""},{"$f":"IF(A642=\"\",\"\",IF(ISERROR(VLOOKUP(A642,Correção!$B$2:$G$13,9,FALSE)),VLOOKUP($A642,Economática!$A$3:$AI$823,9,FALSE),VLOOKUP(A642,Correção!$B$2:$G$13,9,FALSE)))","v":""},{"$f":"IF($A642=\"\",\"\",Economática!G620)","v":""},{"$f":"IF($A642=\"\",\"\",IF(OR(VLOOKUP($A642,Economática!$A$3:$AI$823,10,FALSE)=0,VLOOKUP($A642,Economática!$A$3:$AI$823,10,FALSE)=\"-\"),1/0,VLOOKUP($A642,Economática!$A$3:$AI$823,10,FALSE)))","v":""},{"$f":"IF($A642=\"\",\"\",IF(OR(VLOOKUP($A642,Economática!$A$3:$AI$823,11,FALSE)=0,VLOOKUP($A642,Economática!$A$3:$AI$823,11,FALSE)=\"-\"),1/0,VLOOKUP($A642,Economática!$A$3:$AI$823,11,FALSE)))","v":""},{"$f":"IF($A642=\"\",\"\",IF(OR(VLOOKUP($A642,Economática!$A$3:$AI$823,12,FALSE)=0,VLOOKUP($A642,Economática!$A$3:$AI$823,12,FALSE)=\"-\"),1/0,VLOOKUP($A642,Economática!$A$3:$AI$823,12,FALSE)))","v":""},{"$f":"IF($A642=\"\",\"\",IF(OR(VLOOKUP($A642,Economática!$A$3:$AI$823,13,FALSE)=0,VLOOKUP($A642,Economática!$A$3:$AI$823,13,FALSE)=\"-\"),1/0,VLOOKUP($A642,Economática!$A$3:$AI$823,13,FALSE)))","v":""},{"$f":"IF($A642=\"\",\"\",IF(OR(VLOOKUP($A642,Economática!$A$3:$AI$823,14,FALSE)=0,VLOOKUP($A642,Economática!$A$3:$AI$823,14,FALSE)=\"-\"),1/0,VLOOKUP($A642,Economática!$A$3:$AI$823,14,FALSE)))","v":""},{"$f":"IF($A642=\"\",\"\",IF(OR(VLOOKUP($A642,Economática!$A$3:$AI$823,15,FALSE)=0,VLOOKUP($A642,Economática!$A$3:$AI$823,15,FALSE)=\"-\"),1/0,VLOOKUP($A642,Economática!$A$3:$AI$823,15,FALSE)))","v":""},{"$f":"IF($A642=\"\",\"\",IF(OR(VLOOKUP($A642,Economática!$A$3:$AI$823,16,FALSE)=0,VLOOKUP($A642,Economática!$A$3:$AI$823,16,FALSE)=\"-\"),1/0,VLOOKUP($A642,Economática!$A$3:$AI$823,16,FALSE)))","v":""},{"$f":"IF($A642=\"\",\"\",IF(OR(VLOOKUP($A642,Economática!$A$3:$AI$823,17,FALSE)=0,VLOOKUP($A642,Economática!$A$3:$AI$823,17,FALSE)=\"-\"),1/0,VLOOKUP($A642,Economática!$A$3:$AI$823,17,FALSE)))","v":""},{"$f":"IF($A642=\"\",\"\",IF(OR(VLOOKUP($A642,Economática!$A$3:$AI$823,18,FALSE)=0,VLOOKUP($A642,Economática!$A$3:$AI$823,18,FALSE)=\"-\"),1/0,VLOOKUP($A642,Economática!$A$3:$AI$823,18,FALSE)))","v":""},{"$f":"IF($A642=\"\",\"\",IF(OR(VLOOKUP($A642,Economática!$A$3:$AI$823,19,FALSE)=0,VLOOKUP($A642,Economática!$A$3:$AI$823,19,FALSE)=\"-\"),1/0,VLOOKUP($A642,Economática!$A$3:$AI$823,19,FALSE)))","v":""},{"$f":"IF($A642=\"\",\"\",VLOOKUP($A642,Economática!$A$3:$AI$823,20,FALSE)/E642)","v":""},{"$f":"IF($A642=\"\",\"\",IF((G642/E642)<=0,1/0,G642/E642))","v":""},{"$f":"IF($A642=\"\",\"\",D642/R642)","v":""},{"$f":"IF($A642=\"\",\"\",IF((D642/Q642)<=0,1/0,D642/Q642))","v":""},{"$f":"IF($A642=\"\",\"\",IF(OR(VLOOKUP($A642,Economática!$A$3:$AI$823,21,FALSE)/100=0,VLOOKUP($A642,Economática!$A$3:$AI$823,21,FALSE)/100=\"-\"),1/0,VLOOKUP($A642,Economática!$A$3:$AI$823,21,FALSE)/100))","v":""},{"$f":"IF($A642=\"\",\"\",IF(OR(VLOOKUP($A642,Economática!$A$3:$AI$823,22,FALSE)/100=0,VLOOKUP($A642,Economática!$A$3:$AI$823,22,FALSE)/100=\"-\"),1/0,VLOOKUP($A642,Economática!$A$3:$AI$823,22,FALSE)/100))","v":""},{"$f":"IF($A642=\"\",\"\",IF(OR(VLOOKUP($A642,Economática!$A$3:$AI$823,23,FALSE)=0,VLOOKUP($A642,Economática!$A$3:$AI$823,23,FALSE)=\"-\"),1/0,VLOOKUP($A642,Economática!$A$3:$AI$823,23,FALSE)))","v":""},{"$f":"IF($A642=\"\",\"\",IF(OR(VLOOKUP($A642,Economática!$A$3:$AI$823,24,FALSE)=0,VLOOKUP($A642,Economática!$A$3:$AI$823,24,FALSE)=\"-\"),1/0,VLOOKUP($A642,Economática!$A$3:$AI$823,24,FALSE)))","v":""},{"$f":"IF($A642=\"\",\"\",IF(OR(VLOOKUP($A642,Economática!$A$3:$AI$823,25,FALSE)=0,VLOOKUP($A642,Economática!$A$3:$AI$823,25,FALSE)=\"-\"),1/0,VLOOKUP($A642,Economática!$A$3:$AI$823,25,FALSE)))","v":""},{"$f":"IF($A642=\"\",\"\",IF(ISERROR((F642+VLOOKUP($A642,Economática!$A$3:$AI$823,26,FALSE))/Y642),(F642+VLOOKUP($A642,Economática!$A$3:$AI$823,26,FALSE))/Y642,(F642+VLOOKUP($A642,Economática!$A$3:$AI$823,26,FALSE))/Y642))","v":""},{"$f":"IF($A642=\"\",\"\",IF(OR(-VLOOKUP($A642,Economática!$A$3:$AI$823,27,FALSE)=0,-VLOOKUP($A642,Economática!$A$3:$AI$823,27,FALSE)=\"-\"),1/0,-VLOOKUP($A642,Economática!$A$3:$AI$823,27,FALSE)))","v":""},{"$f":"IF(A642=\"\",\"\",AA642/F642)","v":""},{"$f":"IF($A642=\"\",\"\",IF(OR(VLOOKUP($A642,Economática!$A$3:$AI$823,28,FALSE)=0,VLOOKUP($A642,Economática!$A$3:$AI$823,28,FALSE)=\"-\"),1/0,VLOOKUP($A642,Economática!$A$3:$AI$823,28,FALSE)))","v":""},{"$f":"IF($A642=\"\",\"\",IF(OR(VLOOKUP($A642,Economática!$A$3:$AI$823,29,FALSE)=0,VLOOKUP($A642,Economática!$A$3:$AI$823,29,FALSE)=\"-\"),1/0,VLOOKUP($A642,Economática!$A$3:$AI$823,29,FALSE)))","v":""},{"$f":"IF($A642=\"\",\"\",IF(OR(VLOOKUP($A642,Economática!$A$3:$AI$823,30,FALSE)/E642=0,VLOOKUP($A642,Economática!$A$3:$AI$823,30,FALSE)/E642=\"-\",VLOOKUP($A642,Economática!$A$3:$AI$823,30,FALSE)/E642<33.33%,VLOOKUP($A642,Economática!$A$3:$AI$823,30,FALSE)/E642>100%),1/0,VLOOKUP($A642,Economática!$A$3:$AI$823,30,FALSE)/E642))","v":""},{"$f":"IF(A642=\"\",\"\",A642)","v":""},{"$f":"IF($A642=\"\",\"\",IF(OR(VLOOKUP($A642,Economática!$A$3:$AI$823,25,FALSE)=0,VLOOKUP($A642,Economática!$A$3:$AI$823,25,FALSE)=\"-\"),1/0,VLOOKUP($A642,Economática!$A$3:$AI$823,25,FALSE)))","v":""},{"$f":"CONCATENATE(Economática!B620,\" \",Economática!C620)","v":" "}]
[{"$f":"IF(Economática!AG621=\"\",\"\",Economática!AG621)","v":""},{"$f":"IF($A643=\"\",\"\",VLOOKUP(VLOOKUP($A643,Economática!$A$3:$AI$823,6,FALSE),Correção!$B$16:$C$36,2,FALSE))","v":""},{"$f":"IF(Economática!B621=\"\",\"\",Economática!B621)","v":""},{"$f":"IF($A643=\"\",\"\",IF(OR(VLOOKUP($A643,Economática!$A$3:$AI$823,8,FALSE)=0,VLOOKUP($A643,Economática!$A$3:$AI$823,8,FALSE)=\"-\"),1/0,VLOOKUP($A643,Economática!$A$3:$AI$823,8,FALSE)))","v":""},{"$f":"IF(A643=\"\",\"\",IF(ISERROR(VLOOKUP(A643,Correção!$B$2:$G$13,9,FALSE)),VLOOKUP($A643,Economática!$A$3:$AI$823,9,FALSE),VLOOKUP(A643,Correção!$B$2:$G$13,9,FALSE)))","v":""},{"$f":"IF($A643=\"\",\"\",Economática!G621)","v":""},{"$f":"IF($A643=\"\",\"\",IF(OR(VLOOKUP($A643,Economática!$A$3:$AI$823,10,FALSE)=0,VLOOKUP($A643,Economática!$A$3:$AI$823,10,FALSE)=\"-\"),1/0,VLOOKUP($A643,Economática!$A$3:$AI$823,10,FALSE)))","v":""},{"$f":"IF($A643=\"\",\"\",IF(OR(VLOOKUP($A643,Economática!$A$3:$AI$823,11,FALSE)=0,VLOOKUP($A643,Economática!$A$3:$AI$823,11,FALSE)=\"-\"),1/0,VLOOKUP($A643,Economática!$A$3:$AI$823,11,FALSE)))","v":""},{"$f":"IF($A643=\"\",\"\",IF(OR(VLOOKUP($A643,Economática!$A$3:$AI$823,12,FALSE)=0,VLOOKUP($A643,Economática!$A$3:$AI$823,12,FALSE)=\"-\"),1/0,VLOOKUP($A643,Economática!$A$3:$AI$823,12,FALSE)))","v":""},{"$f":"IF($A643=\"\",\"\",IF(OR(VLOOKUP($A643,Economática!$A$3:$AI$823,13,FALSE)=0,VLOOKUP($A643,Economática!$A$3:$AI$823,13,FALSE)=\"-\"),1/0,VLOOKUP($A643,Economática!$A$3:$AI$823,13,FALSE)))","v":""},{"$f":"IF($A643=\"\",\"\",IF(OR(VLOOKUP($A643,Economática!$A$3:$AI$823,14,FALSE)=0,VLOOKUP($A643,Economática!$A$3:$AI$823,14,FALSE)=\"-\"),1/0,VLOOKUP($A643,Economática!$A$3:$AI$823,14,FALSE)))","v":""},{"$f":"IF($A643=\"\",\"\",IF(OR(VLOOKUP($A643,Economática!$A$3:$AI$823,15,FALSE)=0,VLOOKUP($A643,Economática!$A$3:$AI$823,15,FALSE)=\"-\"),1/0,VLOOKUP($A643,Economática!$A$3:$AI$823,15,FALSE)))","v":""},{"$f":"IF($A643=\"\",\"\",IF(OR(VLOOKUP($A643,Economática!$A$3:$AI$823,16,FALSE)=0,VLOOKUP($A643,Economática!$A$3:$AI$823,16,FALSE)=\"-\"),1/0,VLOOKUP($A643,Economática!$A$3:$AI$823,16,FALSE)))","v":""},{"$f":"IF($A643=\"\",\"\",IF(OR(VLOOKUP($A643,Economática!$A$3:$AI$823,17,FALSE)=0,VLOOKUP($A643,Economática!$A$3:$AI$823,17,FALSE)=\"-\"),1/0,VLOOKUP($A643,Economática!$A$3:$AI$823,17,FALSE)))","v":""},{"$f":"IF($A643=\"\",\"\",IF(OR(VLOOKUP($A643,Economática!$A$3:$AI$823,18,FALSE)=0,VLOOKUP($A643,Economática!$A$3:$AI$823,18,FALSE)=\"-\"),1/0,VLOOKUP($A643,Economática!$A$3:$AI$823,18,FALSE)))","v":""},{"$f":"IF($A643=\"\",\"\",IF(OR(VLOOKUP($A643,Economática!$A$3:$AI$823,19,FALSE)=0,VLOOKUP($A643,Economática!$A$3:$AI$823,19,FALSE)=\"-\"),1/0,VLOOKUP($A643,Economática!$A$3:$AI$823,19,FALSE)))","v":""},{"$f":"IF($A643=\"\",\"\",VLOOKUP($A643,Economática!$A$3:$AI$823,20,FALSE)/E643)","v":""},"","","",{"$f":"IF($A643=\"\",\"\",IF(OR(VLOOKUP($A643,Economática!$A$3:$AI$823,21,FALSE)/100=0,VLOOKUP($A643,Economática!$A$3:$AI$823,21,FALSE)/100=\"-\"),1/0,VLOOKUP($A643,Economática!$A$3:$AI$823,21,FALSE)/100))","v":""},{"$f":"IF($A643=\"\",\"\",IF(OR(VLOOKUP($A643,Economática!$A$3:$AI$823,22,FALSE)/100=0,VLOOKUP($A643,Economática!$A$3:$AI$823,22,FALSE)/100=\"-\"),1/0,VLOOKUP($A643,Economática!$A$3:$AI$823,22,FALSE)/100))","v":""},{"$f":"IF($A643=\"\",\"\",IF(OR(VLOOKUP($A643,Economática!$A$3:$AI$823,23,FALSE)=0,VLOOKUP($A643,Economática!$A$3:$AI$823,23,FALSE)=\"-\"),1/0,VLOOKUP($A643,Economática!$A$3:$AI$823,23,FALSE)))","v":""},{"$f":"IF($A643=\"\",\"\",IF(OR(VLOOKUP($A643,Economática!$A$3:$AI$823,24,FALSE)=0,VLOOKUP($A643,Economática!$A$3:$AI$823,24,FALSE)=\"-\"),1/0,VLOOKUP($A643,Economática!$A$3:$AI$823,24,FALSE)))","v":""},{"$f":"IF($A643=\"\",\"\",IF(OR(VLOOKUP($A643,Economática!$A$3:$AI$823,25,FALSE)=0,VLOOKUP($A643,Economática!$A$3:$AI$823,25,FALSE)=\"-\"),1/0,VLOOKUP($A643,Economática!$A$3:$AI$823,25,FALSE)))","v":""},{"$f":"IF($A643=\"\",\"\",IF(ISERROR((F643+VLOOKUP($A643,Economática!$A$3:$AI$823,26,FALSE))/Y643),(F643+VLOOKUP($A643,Economática!$A$3:$AI$823,26,FALSE))/Y643,(F643+VLOOKUP($A643,Economática!$A$3:$AI$823,26,FALSE))/Y643))","v":""},{"$f":"IF($A643=\"\",\"\",IF(OR(-VLOOKUP($A643,Economática!$A$3:$AI$823,27,FALSE)=0,-VLOOKUP($A643,Economática!$A$3:$AI$823,27,FALSE)=\"-\"),1/0,-VLOOKUP($A643,Economática!$A$3:$AI$823,27,FALSE)))","v":""},"",{"$f":"IF($A643=\"\",\"\",IF(OR(VLOOKUP($A643,Economática!$A$3:$AI$823,28,FALSE)=0,VLOOKUP($A643,Economática!$A$3:$AI$823,28,FALSE)=\"-\"),1/0,VLOOKUP($A643,Economática!$A$3:$AI$823,28,FALSE)))","v":""},{"$f":"IF($A643=\"\",\"\",IF(OR(VLOOKUP($A643,Economática!$A$3:$AI$823,29,FALSE)=0,VLOOKUP($A643,Economática!$A$3:$AI$823,29,FALSE)=\"-\"),1/0,VLOOKUP($A643,Economática!$A$3:$AI$823,29,FALSE)))","v":""},{"$f":"IF($A643=\"\",\"\",IF(OR(VLOOKUP($A643,Economática!$A$3:$AI$823,30,FALSE)/E643=0,VLOOKUP($A643,Economática!$A$3:$AI$823,30,FALSE)/E643=\"-\",VLOOKUP($A643,Economática!$A$3:$AI$823,30,FALSE)/E643<33.33%,VLOOKUP($A643,Economática!$A$3:$AI$823,30,FALSE)/E643>100%),1/0,VLOOKUP($A643,Economática!$A$3:$AI$823,30,FALSE)/E643))","v":""},"",{"$f":"IF($A643=\"\",\"\",IF(OR(VLOOKUP($A643,Economática!$A$3:$AI$823,25,FALSE)=0,VLOOKUP($A643,Economática!$A$3:$AI$823,25,FALSE)=\"-\"),1/0,VLOOKUP($A643,Economática!$A$3:$AI$823,25,FALSE)))","v":""},{"$f":"CONCATENATE(Economática!B621,\" \",Economática!C621)","v":" "}]
[{"$f":"IF(Economática!AG622=\"\",\"\",Economática!AG622)","v":""},{"$f":"IF($A644=\"\",\"\",VLOOKUP(VLOOKUP($A644,Economática!$A$3:$AI$823,6,FALSE),Correção!$B$16:$C$36,2,FALSE))","v":""},{"$f":"IF(Economática!B622=\"\",\"\",Economática!B622)","v":""},{"$f":"IF($A644=\"\",\"\",IF(OR(VLOOKUP($A644,Economática!$A$3:$AI$823,8,FALSE)=0,VLOOKUP($A644,Economática!$A$3:$AI$823,8,FALSE)=\"-\"),1/0,VLOOKUP($A644,Economática!$A$3:$AI$823,8,FALSE)))","v":""},{"$f":"IF(A644=\"\",\"\",IF(ISERROR(VLOOKUP(A644,Correção!$B$2:$G$13,9,FALSE)),VLOOKUP($A644,Economática!$A$3:$AI$823,9,FALSE),VLOOKUP(A644,Correção!$B$2:$G$13,9,FALSE)))","v":""},{"$f":"IF($A644=\"\",\"\",Economática!G622)","v":""},{"$f":"IF($A644=\"\",\"\",IF(OR(VLOOKUP($A644,Economática!$A$3:$AI$823,10,FALSE)=0,VLOOKUP($A644,Economática!$A$3:$AI$823,10,FALSE)=\"-\"),1/0,VLOOKUP($A644,Economática!$A$3:$AI$823,10,FALSE)))","v":""},{"$f":"IF($A644=\"\",\"\",IF(OR(VLOOKUP($A644,Economática!$A$3:$AI$823,11,FALSE)=0,VLOOKUP($A644,Economática!$A$3:$AI$823,11,FALSE)=\"-\"),1/0,VLOOKUP($A644,Economática!$A$3:$AI$823,11,FALSE)))","v":""},{"$f":"IF($A644=\"\",\"\",IF(OR(VLOOKUP($A644,Economática!$A$3:$AI$823,12,FALSE)=0,VLOOKUP($A644,Economática!$A$3:$AI$823,12,FALSE)=\"-\"),1/0,VLOOKUP($A644,Economática!$A$3:$AI$823,12,FALSE)))","v":""},{"$f":"IF($A644=\"\",\"\",IF(OR(VLOOKUP($A644,Economática!$A$3:$AI$823,13,FALSE)=0,VLOOKUP($A644,Economática!$A$3:$AI$823,13,FALSE)=\"-\"),1/0,VLOOKUP($A644,Economática!$A$3:$AI$823,13,FALSE)))","v":""},{"$f":"IF($A644=\"\",\"\",IF(OR(VLOOKUP($A644,Economática!$A$3:$AI$823,14,FALSE)=0,VLOOKUP($A644,Economática!$A$3:$AI$823,14,FALSE)=\"-\"),1/0,VLOOKUP($A644,Economática!$A$3:$AI$823,14,FALSE)))","v":""},{"$f":"IF($A644=\"\",\"\",IF(OR(VLOOKUP($A644,Economática!$A$3:$AI$823,15,FALSE)=0,VLOOKUP($A644,Economática!$A$3:$AI$823,15,FALSE)=\"-\"),1/0,VLOOKUP($A644,Economática!$A$3:$AI$823,15,FALSE)))","v":""},{"$f":"IF($A644=\"\",\"\",IF(OR(VLOOKUP($A644,Economática!$A$3:$AI$823,16,FALSE)=0,VLOOKUP($A644,Economática!$A$3:$AI$823,16,FALSE)=\"-\"),1/0,VLOOKUP($A644,Economática!$A$3:$AI$823,16,FALSE)))","v":""},{"$f":"IF($A644=\"\",\"\",IF(OR(VLOOKUP($A644,Economática!$A$3:$AI$823,17,FALSE)=0,VLOOKUP($A644,Economática!$A$3:$AI$823,17,FALSE)=\"-\"),1/0,VLOOKUP($A644,Economática!$A$3:$AI$823,17,FALSE)))","v":""},{"$f":"IF($A644=\"\",\"\",IF(OR(VLOOKUP($A644,Economática!$A$3:$AI$823,18,FALSE)=0,VLOOKUP($A644,Economática!$A$3:$AI$823,18,FALSE)=\"-\"),1/0,VLOOKUP($A644,Economática!$A$3:$AI$823,18,FALSE)))","v":""},{"$f":"IF($A644=\"\",\"\",IF(OR(VLOOKUP($A644,Economática!$A$3:$AI$823,19,FALSE)=0,VLOOKUP($A644,Economática!$A$3:$AI$823,19,FALSE)=\"-\"),1/0,VLOOKUP($A644,Economática!$A$3:$AI$823,19,FALSE)))","v":""},{"$f":"IF($A644=\"\",\"\",VLOOKUP($A644,Economática!$A$3:$AI$823,20,FALSE)/E644)","v":""},"","","",{"$f":"IF($A644=\"\",\"\",IF(OR(VLOOKUP($A644,Economática!$A$3:$AI$823,21,FALSE)/100=0,VLOOKUP($A644,Economática!$A$3:$AI$823,21,FALSE)/100=\"-\"),1/0,VLOOKUP($A644,Economática!$A$3:$AI$823,21,FALSE)/100))","v":""},{"$f":"IF($A644=\"\",\"\",IF(OR(VLOOKUP($A644,Economática!$A$3:$AI$823,22,FALSE)/100=0,VLOOKUP($A644,Economática!$A$3:$AI$823,22,FALSE)/100=\"-\"),1/0,VLOOKUP($A644,Economática!$A$3:$AI$823,22,FALSE)/100))","v":""},{"$f":"IF($A644=\"\",\"\",IF(OR(VLOOKUP($A644,Economática!$A$3:$AI$823,23,FALSE)=0,VLOOKUP($A644,Economática!$A$3:$AI$823,23,FALSE)=\"-\"),1/0,VLOOKUP($A644,Economática!$A$3:$AI$823,23,FALSE)))","v":""},{"$f":"IF($A644=\"\",\"\",IF(OR(VLOOKUP($A644,Economática!$A$3:$AI$823,24,FALSE)=0,VLOOKUP($A644,Economática!$A$3:$AI$823,24,FALSE)=\"-\"),1/0,VLOOKUP($A644,Economática!$A$3:$AI$823,24,FALSE)))","v":""},{"$f":"IF($A644=\"\",\"\",IF(OR(VLOOKUP($A644,Economática!$A$3:$AI$823,25,FALSE)=0,VLOOKUP($A644,Economática!$A$3:$AI$823,25,FALSE)=\"-\"),1/0,VLOOKUP($A644,Economática!$A$3:$AI$823,25,FALSE)))","v":""},{"$f":"IF($A644=\"\",\"\",IF(ISERROR((F644+VLOOKUP($A644,Economática!$A$3:$AI$823,26,FALSE))/Y644),(F644+VLOOKUP($A644,Economática!$A$3:$AI$823,26,FALSE))/Y644,(F644+VLOOKUP($A644,Economática!$A$3:$AI$823,26,FALSE))/Y644))","v":""},{"$f":"IF($A644=\"\",\"\",IF(OR(-VLOOKUP($A644,Economática!$A$3:$AI$823,27,FALSE)=0,-VLOOKUP($A644,Economática!$A$3:$AI$823,27,FALSE)=\"-\"),1/0,-VLOOKUP($A644,Economática!$A$3:$AI$823,27,FALSE)))","v":""},"",{"$f":"IF($A644=\"\",\"\",IF(OR(VLOOKUP($A644,Economática!$A$3:$AI$823,28,FALSE)=0,VLOOKUP($A644,Economática!$A$3:$AI$823,28,FALSE)=\"-\"),1/0,VLOOKUP($A644,Economática!$A$3:$AI$823,28,FALSE)))","v":""},{"$f":"IF($A644=\"\",\"\",IF(OR(VLOOKUP($A644,Economática!$A$3:$AI$823,29,FALSE)=0,VLOOKUP($A644,Economática!$A$3:$AI$823,29,FALSE)=\"-\"),1/0,VLOOKUP($A644,Economática!$A$3:$AI$823,29,FALSE)))","v":""},{"$f":"IF($A644=\"\",\"\",IF(OR(VLOOKUP($A644,Economática!$A$3:$AI$823,30,FALSE)/E644=0,VLOOKUP($A644,Economática!$A$3:$AI$823,30,FALSE)/E644=\"-\",VLOOKUP($A644,Economática!$A$3:$AI$823,30,FALSE)/E644<33.33%,VLOOKUP($A644,Economática!$A$3:$AI$823,30,FALSE)/E644>100%),1/0,VLOOKUP($A644,Economática!$A$3:$AI$823,30,FALSE)/E644))","v":""},"",{"$f":"IF($A644=\"\",\"\",IF(OR(VLOOKUP($A644,Economática!$A$3:$AI$823,25,FALSE)=0,VLOOKUP($A644,Economática!$A$3:$AI$823,25,FALSE)=\"-\"),1/0,VLOOKUP($A644,Economática!$A$3:$AI$823,25,FALSE)))","v":""},{"$f":"CONCATENATE(Economática!B622,\" \",Economática!C622)","v":" "}]
[{"$f":"IF(Economática!AG623=\"\",\"\",Economática!AG623)","v":""},{"$f":"IF($A645=\"\",\"\",VLOOKUP(VLOOKUP($A645,Economática!$A$3:$AI$823,6,FALSE),Correção!$B$16:$C$36,2,FALSE))","v":""},{"$f":"IF(Economática!B623=\"\",\"\",Economática!B623)","v":""},{"$f":"IF($A645=\"\",\"\",IF(OR(VLOOKUP($A645,Economática!$A$3:$AI$823,8,FALSE)=0,VLOOKUP($A645,Economática!$A$3:$AI$823,8,FALSE)=\"-\"),1/0,VLOOKUP($A645,Economática!$A$3:$AI$823,8,FALSE)))","v":""},{"$f":"IF(A645=\"\",\"\",IF(ISERROR(VLOOKUP(A645,Correção!$B$2:$G$13,9,FALSE)),VLOOKUP($A645,Economática!$A$3:$AI$823,9,FALSE),VLOOKUP(A645,Correção!$B$2:$G$13,9,FALSE)))","v":""},{"$f":"IF($A645=\"\",\"\",Economática!G623)","v":""},{"$f":"IF($A645=\"\",\"\",IF(OR(VLOOKUP($A645,Economática!$A$3:$AI$823,10,FALSE)=0,VLOOKUP($A645,Economática!$A$3:$AI$823,10,FALSE)=\"-\"),1/0,VLOOKUP($A645,Economática!$A$3:$AI$823,10,FALSE)))","v":""},{"$f":"IF($A645=\"\",\"\",IF(OR(VLOOKUP($A645,Economática!$A$3:$AI$823,11,FALSE)=0,VLOOKUP($A645,Economática!$A$3:$AI$823,11,FALSE)=\"-\"),1/0,VLOOKUP($A645,Economática!$A$3:$AI$823,11,FALSE)))","v":""},{"$f":"IF($A645=\"\",\"\",IF(OR(VLOOKUP($A645,Economática!$A$3:$AI$823,12,FALSE)=0,VLOOKUP($A645,Economática!$A$3:$AI$823,12,FALSE)=\"-\"),1/0,VLOOKUP($A645,Economática!$A$3:$AI$823,12,FALSE)))","v":""},{"$f":"IF($A645=\"\",\"\",IF(OR(VLOOKUP($A645,Economática!$A$3:$AI$823,13,FALSE)=0,VLOOKUP($A645,Economática!$A$3:$AI$823,13,FALSE)=\"-\"),1/0,VLOOKUP($A645,Economática!$A$3:$AI$823,13,FALSE)))","v":""},{"$f":"IF($A645=\"\",\"\",IF(OR(VLOOKUP($A645,Economática!$A$3:$AI$823,14,FALSE)=0,VLOOKUP($A645,Economática!$A$3:$AI$823,14,FALSE)=\"-\"),1/0,VLOOKUP($A645,Economática!$A$3:$AI$823,14,FALSE)))","v":""},{"$f":"IF($A645=\"\",\"\",IF(OR(VLOOKUP($A645,Economática!$A$3:$AI$823,15,FALSE)=0,VLOOKUP($A645,Economática!$A$3:$AI$823,15,FALSE)=\"-\"),1/0,VLOOKUP($A645,Economática!$A$3:$AI$823,15,FALSE)))","v":""},{"$f":"IF($A645=\"\",\"\",IF(OR(VLOOKUP($A645,Economática!$A$3:$AI$823,16,FALSE)=0,VLOOKUP($A645,Economática!$A$3:$AI$823,16,FALSE)=\"-\"),1/0,VLOOKUP($A645,Economática!$A$3:$AI$823,16,FALSE)))","v":""},{"$f":"IF($A645=\"\",\"\",IF(OR(VLOOKUP($A645,Economática!$A$3:$AI$823,17,FALSE)=0,VLOOKUP($A645,Economática!$A$3:$AI$823,17,FALSE)=\"-\"),1/0,VLOOKUP($A645,Economática!$A$3:$AI$823,17,FALSE)))","v":""},{"$f":"IF($A645=\"\",\"\",IF(OR(VLOOKUP($A645,Economática!$A$3:$AI$823,18,FALSE)=0,VLOOKUP($A645,Economática!$A$3:$AI$823,18,FALSE)=\"-\"),1/0,VLOOKUP($A645,Economática!$A$3:$AI$823,18,FALSE)))","v":""},{"$f":"IF($A645=\"\",\"\",IF(OR(VLOOKUP($A645,Economática!$A$3:$AI$823,19,FALSE)=0,VLOOKUP($A645,Economática!$A$3:$AI$823,19,FALSE)=\"-\"),1/0,VLOOKUP($A645,Economática!$A$3:$AI$823,19,FALSE)))","v":""},{"$f":"IF($A645=\"\",\"\",VLOOKUP($A645,Economática!$A$3:$AI$823,20,FALSE)/E645)","v":""},"","","",{"$f":"IF($A645=\"\",\"\",IF(OR(VLOOKUP($A645,Economática!$A$3:$AI$823,21,FALSE)/100=0,VLOOKUP($A645,Economática!$A$3:$AI$823,21,FALSE)/100=\"-\"),1/0,VLOOKUP($A645,Economática!$A$3:$AI$823,21,FALSE)/100))","v":""},{"$f":"IF($A645=\"\",\"\",IF(OR(VLOOKUP($A645,Economática!$A$3:$AI$823,22,FALSE)/100=0,VLOOKUP($A645,Economática!$A$3:$AI$823,22,FALSE)/100=\"-\"),1/0,VLOOKUP($A645,Economática!$A$3:$AI$823,22,FALSE)/100))","v":""},{"$f":"IF($A645=\"\",\"\",IF(OR(VLOOKUP($A645,Economática!$A$3:$AI$823,23,FALSE)=0,VLOOKUP($A645,Economática!$A$3:$AI$823,23,FALSE)=\"-\"),1/0,VLOOKUP($A645,Economática!$A$3:$AI$823,23,FALSE)))","v":""},{"$f":"IF($A645=\"\",\"\",IF(OR(VLOOKUP($A645,Economática!$A$3:$AI$823,24,FALSE)=0,VLOOKUP($A645,Economática!$A$3:$AI$823,24,FALSE)=\"-\"),1/0,VLOOKUP($A645,Economática!$A$3:$AI$823,24,FALSE)))","v":""},{"$f":"IF($A645=\"\",\"\",IF(OR(VLOOKUP($A645,Economática!$A$3:$AI$823,25,FALSE)=0,VLOOKUP($A645,Economática!$A$3:$AI$823,25,FALSE)=\"-\"),1/0,VLOOKUP($A645,Economática!$A$3:$AI$823,25,FALSE)))","v":""},{"$f":"IF($A645=\"\",\"\",IF(ISERROR((F645+VLOOKUP($A645,Economática!$A$3:$AI$823,26,FALSE))/Y645),(F645+VLOOKUP($A645,Economática!$A$3:$AI$823,26,FALSE))/Y645,(F645+VLOOKUP($A645,Economática!$A$3:$AI$823,26,FALSE))/Y645))","v":""},{"$f":"IF($A645=\"\",\"\",IF(OR(-VLOOKUP($A645,Economática!$A$3:$AI$823,27,FALSE)=0,-VLOOKUP($A645,Economática!$A$3:$AI$823,27,FALSE)=\"-\"),1/0,-VLOOKUP($A645,Economática!$A$3:$AI$823,27,FALSE)))","v":""},"",{"$f":"IF($A645=\"\",\"\",IF(OR(VLOOKUP($A645,Economática!$A$3:$AI$823,28,FALSE)=0,VLOOKUP($A645,Economática!$A$3:$AI$823,28,FALSE)=\"-\"),1/0,VLOOKUP($A645,Economática!$A$3:$AI$823,28,FALSE)))","v":""},{"$f":"IF($A645=\"\",\"\",IF(OR(VLOOKUP($A645,Economática!$A$3:$AI$823,29,FALSE)=0,VLOOKUP($A645,Economática!$A$3:$AI$823,29,FALSE)=\"-\"),1/0,VLOOKUP($A645,Economática!$A$3:$AI$823,29,FALSE)))","v":""},{"$f":"IF($A645=\"\",\"\",IF(OR(VLOOKUP($A645,Economática!$A$3:$AI$823,30,FALSE)/E645=0,VLOOKUP($A645,Economática!$A$3:$AI$823,30,FALSE)/E645=\"-\",VLOOKUP($A645,Economática!$A$3:$AI$823,30,FALSE)/E645<33.33%,VLOOKUP($A645,Economática!$A$3:$AI$823,30,FALSE)/E645>100%),1/0,VLOOKUP($A645,Economática!$A$3:$AI$823,30,FALSE)/E645))","v":""},"",{"$f":"IF($A645=\"\",\"\",IF(OR(VLOOKUP($A645,Economática!$A$3:$AI$823,25,FALSE)=0,VLOOKUP($A645,Economática!$A$3:$AI$823,25,FALSE)=\"-\"),1/0,VLOOKUP($A645,Economática!$A$3:$AI$823,25,FALSE)))","v":""},{"$f":"CONCATENATE(Economática!B623,\" \",Economática!C623)","v":" "}]
[{"$f":"IF(Economática!AG624=\"\",\"\",Economática!AG624)","v":""},{"$f":"IF($A646=\"\",\"\",VLOOKUP(VLOOKUP($A646,Economática!$A$3:$AI$823,6,FALSE),Correção!$B$16:$C$36,2,FALSE))","v":""},{"$f":"IF(Economática!B624=\"\",\"\",Economática!B624)","v":""},{"$f":"IF($A646=\"\",\"\",IF(OR(VLOOKUP($A646,Economática!$A$3:$AI$823,8,FALSE)=0,VLOOKUP($A646,Economática!$A$3:$AI$823,8,FALSE)=\"-\"),1/0,VLOOKUP($A646,Economática!$A$3:$AI$823,8,FALSE)))","v":""},{"$f":"IF(A646=\"\",\"\",IF(ISERROR(VLOOKUP(A646,Correção!$B$2:$G$13,9,FALSE)),VLOOKUP($A646,Economática!$A$3:$AI$823,9,FALSE),VLOOKUP(A646,Correção!$B$2:$G$13,9,FALSE)))","v":""},{"$f":"IF($A646=\"\",\"\",Economática!G624)","v":""},{"$f":"IF($A646=\"\",\"\",IF(OR(VLOOKUP($A646,Economática!$A$3:$AI$823,10,FALSE)=0,VLOOKUP($A646,Economática!$A$3:$AI$823,10,FALSE)=\"-\"),1/0,VLOOKUP($A646,Economática!$A$3:$AI$823,10,FALSE)))","v":""},{"$f":"IF($A646=\"\",\"\",IF(OR(VLOOKUP($A646,Economática!$A$3:$AI$823,11,FALSE)=0,VLOOKUP($A646,Economática!$A$3:$AI$823,11,FALSE)=\"-\"),1/0,VLOOKUP($A646,Economática!$A$3:$AI$823,11,FALSE)))","v":""},{"$f":"IF($A646=\"\",\"\",IF(OR(VLOOKUP($A646,Economática!$A$3:$AI$823,12,FALSE)=0,VLOOKUP($A646,Economática!$A$3:$AI$823,12,FALSE)=\"-\"),1/0,VLOOKUP($A646,Economática!$A$3:$AI$823,12,FALSE)))","v":""},{"$f":"IF($A646=\"\",\"\",IF(OR(VLOOKUP($A646,Economática!$A$3:$AI$823,13,FALSE)=0,VLOOKUP($A646,Economática!$A$3:$AI$823,13,FALSE)=\"-\"),1/0,VLOOKUP($A646,Economática!$A$3:$AI$823,13,FALSE)))","v":""},{"$f":"IF($A646=\"\",\"\",IF(OR(VLOOKUP($A646,Economática!$A$3:$AI$823,14,FALSE)=0,VLOOKUP($A646,Economática!$A$3:$AI$823,14,FALSE)=\"-\"),1/0,VLOOKUP($A646,Economática!$A$3:$AI$823,14,FALSE)))","v":""},{"$f":"IF($A646=\"\",\"\",IF(OR(VLOOKUP($A646,Economática!$A$3:$AI$823,15,FALSE)=0,VLOOKUP($A646,Economática!$A$3:$AI$823,15,FALSE)=\"-\"),1/0,VLOOKUP($A646,Economática!$A$3:$AI$823,15,FALSE)))","v":""},{"$f":"IF($A646=\"\",\"\",IF(OR(VLOOKUP($A646,Economática!$A$3:$AI$823,16,FALSE)=0,VLOOKUP($A646,Economática!$A$3:$AI$823,16,FALSE)=\"-\"),1/0,VLOOKUP($A646,Economática!$A$3:$AI$823,16,FALSE)))","v":""},{"$f":"IF($A646=\"\",\"\",IF(OR(VLOOKUP($A646,Economática!$A$3:$AI$823,17,FALSE)=0,VLOOKUP($A646,Economática!$A$3:$AI$823,17,FALSE)=\"-\"),1/0,VLOOKUP($A646,Economática!$A$3:$AI$823,17,FALSE)))","v":""},{"$f":"IF($A646=\"\",\"\",IF(OR(VLOOKUP($A646,Economática!$A$3:$AI$823,18,FALSE)=0,VLOOKUP($A646,Economática!$A$3:$AI$823,18,FALSE)=\"-\"),1/0,VLOOKUP($A646,Economática!$A$3:$AI$823,18,FALSE)))","v":""},{"$f":"IF($A646=\"\",\"\",IF(OR(VLOOKUP($A646,Economática!$A$3:$AI$823,19,FALSE)=0,VLOOKUP($A646,Economática!$A$3:$AI$823,19,FALSE)=\"-\"),1/0,VLOOKUP($A646,Economática!$A$3:$AI$823,19,FALSE)))","v":""},{"$f":"IF($A646=\"\",\"\",VLOOKUP($A646,Economática!$A$3:$AI$823,20,FALSE)/E646)","v":""},"","","",{"$f":"IF($A646=\"\",\"\",IF(OR(VLOOKUP($A646,Economática!$A$3:$AI$823,21,FALSE)/100=0,VLOOKUP($A646,Economática!$A$3:$AI$823,21,FALSE)/100=\"-\"),1/0,VLOOKUP($A646,Economática!$A$3:$AI$823,21,FALSE)/100))","v":""},{"$f":"IF($A646=\"\",\"\",IF(OR(VLOOKUP($A646,Economática!$A$3:$AI$823,22,FALSE)/100=0,VLOOKUP($A646,Economática!$A$3:$AI$823,22,FALSE)/100=\"-\"),1/0,VLOOKUP($A646,Economática!$A$3:$AI$823,22,FALSE)/100))","v":""},{"$f":"IF($A646=\"\",\"\",IF(OR(VLOOKUP($A646,Economática!$A$3:$AI$823,23,FALSE)=0,VLOOKUP($A646,Economática!$A$3:$AI$823,23,FALSE)=\"-\"),1/0,VLOOKUP($A646,Economática!$A$3:$AI$823,23,FALSE)))","v":""},{"$f":"IF($A646=\"\",\"\",IF(OR(VLOOKUP($A646,Economática!$A$3:$AI$823,24,FALSE)=0,VLOOKUP($A646,Economática!$A$3:$AI$823,24,FALSE)=\"-\"),1/0,VLOOKUP($A646,Economática!$A$3:$AI$823,24,FALSE)))","v":""},{"$f":"IF($A646=\"\",\"\",IF(OR(VLOOKUP($A646,Economática!$A$3:$AI$823,25,FALSE)=0,VLOOKUP($A646,Economática!$A$3:$AI$823,25,FALSE)=\"-\"),1/0,VLOOKUP($A646,Economática!$A$3:$AI$823,25,FALSE)))","v":""},{"$f":"IF($A646=\"\",\"\",IF(ISERROR((F646+VLOOKUP($A646,Economática!$A$3:$AI$823,26,FALSE))/Y646),(F646+VLOOKUP($A646,Economática!$A$3:$AI$823,26,FALSE))/Y646,(F646+VLOOKUP($A646,Economática!$A$3:$AI$823,26,FALSE))/Y646))","v":""},{"$f":"IF($A646=\"\",\"\",IF(OR(-VLOOKUP($A646,Economática!$A$3:$AI$823,27,FALSE)=0,-VLOOKUP($A646,Economática!$A$3:$AI$823,27,FALSE)=\"-\"),1/0,-VLOOKUP($A646,Economática!$A$3:$AI$823,27,FALSE)))","v":""},"",{"$f":"IF($A646=\"\",\"\",IF(OR(VLOOKUP($A646,Economática!$A$3:$AI$823,28,FALSE)=0,VLOOKUP($A646,Economática!$A$3:$AI$823,28,FALSE)=\"-\"),1/0,VLOOKUP($A646,Economática!$A$3:$AI$823,28,FALSE)))","v":""},{"$f":"IF($A646=\"\",\"\",IF(OR(VLOOKUP($A646,Economática!$A$3:$AI$823,29,FALSE)=0,VLOOKUP($A646,Economática!$A$3:$AI$823,29,FALSE)=\"-\"),1/0,VLOOKUP($A646,Economática!$A$3:$AI$823,29,FALSE)))","v":""},{"$f":"IF($A646=\"\",\"\",IF(OR(VLOOKUP($A646,Economática!$A$3:$AI$823,30,FALSE)/E646=0,VLOOKUP($A646,Economática!$A$3:$AI$823,30,FALSE)/E646=\"-\",VLOOKUP($A646,Economática!$A$3:$AI$823,30,FALSE)/E646<33.33%,VLOOKUP($A646,Economática!$A$3:$AI$823,30,FALSE)/E646>100%),1/0,VLOOKUP($A646,Economática!$A$3:$AI$823,30,FALSE)/E646))","v":""},"",{"$f":"IF($A646=\"\",\"\",IF(OR(VLOOKUP($A646,Economática!$A$3:$AI$823,25,FALSE)=0,VLOOKUP($A646,Economática!$A$3:$AI$823,25,FALSE)=\"-\"),1/0,VLOOKUP($A646,Economática!$A$3:$AI$823,25,FALSE)))","v":""},{"$f":"CONCATENATE(Economática!B624,\" \",Economática!C624)","v":" "}]
[{"$f":"IF(Economática!AG625=\"\",\"\",Economática!AG625)","v":""},{"$f":"IF($A647=\"\",\"\",VLOOKUP(VLOOKUP($A647,Economática!$A$3:$AI$823,6,FALSE),Correção!$B$16:$C$36,2,FALSE))","v":""},{"$f":"IF(Economática!B625=\"\",\"\",Economática!B625)","v":""},{"$f":"IF($A647=\"\",\"\",IF(OR(VLOOKUP($A647,Economática!$A$3:$AI$823,8,FALSE)=0,VLOOKUP($A647,Economática!$A$3:$AI$823,8,FALSE)=\"-\"),1/0,VLOOKUP($A647,Economática!$A$3:$AI$823,8,FALSE)))","v":""},{"$f":"IF(A647=\"\",\"\",IF(ISERROR(VLOOKUP(A647,Correção!$B$2:$G$13,9,FALSE)),VLOOKUP($A647,Economática!$A$3:$AI$823,9,FALSE),VLOOKUP(A647,Correção!$B$2:$G$13,9,FALSE)))","v":""},{"$f":"IF($A647=\"\",\"\",Economática!G625)","v":""},{"$f":"IF($A647=\"\",\"\",IF(OR(VLOOKUP($A647,Economática!$A$3:$AI$823,10,FALSE)=0,VLOOKUP($A647,Economática!$A$3:$AI$823,10,FALSE)=\"-\"),1/0,VLOOKUP($A647,Economática!$A$3:$AI$823,10,FALSE)))","v":""},{"$f":"IF($A647=\"\",\"\",IF(OR(VLOOKUP($A647,Economática!$A$3:$AI$823,11,FALSE)=0,VLOOKUP($A647,Economática!$A$3:$AI$823,11,FALSE)=\"-\"),1/0,VLOOKUP($A647,Economática!$A$3:$AI$823,11,FALSE)))","v":""},{"$f":"IF($A647=\"\",\"\",IF(OR(VLOOKUP($A647,Economática!$A$3:$AI$823,12,FALSE)=0,VLOOKUP($A647,Economática!$A$3:$AI$823,12,FALSE)=\"-\"),1/0,VLOOKUP($A647,Economática!$A$3:$AI$823,12,FALSE)))","v":""},{"$f":"IF($A647=\"\",\"\",IF(OR(VLOOKUP($A647,Economática!$A$3:$AI$823,13,FALSE)=0,VLOOKUP($A647,Economática!$A$3:$AI$823,13,FALSE)=\"-\"),1/0,VLOOKUP($A647,Economática!$A$3:$AI$823,13,FALSE)))","v":""},{"$f":"IF($A647=\"\",\"\",IF(OR(VLOOKUP($A647,Economática!$A$3:$AI$823,14,FALSE)=0,VLOOKUP($A647,Economática!$A$3:$AI$823,14,FALSE)=\"-\"),1/0,VLOOKUP($A647,Economática!$A$3:$AI$823,14,FALSE)))","v":""},{"$f":"IF($A647=\"\",\"\",IF(OR(VLOOKUP($A647,Economática!$A$3:$AI$823,15,FALSE)=0,VLOOKUP($A647,Economática!$A$3:$AI$823,15,FALSE)=\"-\"),1/0,VLOOKUP($A647,Economática!$A$3:$AI$823,15,FALSE)))","v":""},{"$f":"IF($A647=\"\",\"\",IF(OR(VLOOKUP($A647,Economática!$A$3:$AI$823,16,FALSE)=0,VLOOKUP($A647,Economática!$A$3:$AI$823,16,FALSE)=\"-\"),1/0,VLOOKUP($A647,Economática!$A$3:$AI$823,16,FALSE)))","v":""},{"$f":"IF($A647=\"\",\"\",IF(OR(VLOOKUP($A647,Economática!$A$3:$AI$823,17,FALSE)=0,VLOOKUP($A647,Economática!$A$3:$AI$823,17,FALSE)=\"-\"),1/0,VLOOKUP($A647,Economática!$A$3:$AI$823,17,FALSE)))","v":""},{"$f":"IF($A647=\"\",\"\",IF(OR(VLOOKUP($A647,Economática!$A$3:$AI$823,18,FALSE)=0,VLOOKUP($A647,Economática!$A$3:$AI$823,18,FALSE)=\"-\"),1/0,VLOOKUP($A647,Economática!$A$3:$AI$823,18,FALSE)))","v":""},{"$f":"IF($A647=\"\",\"\",IF(OR(VLOOKUP($A647,Economática!$A$3:$AI$823,19,FALSE)=0,VLOOKUP($A647,Economática!$A$3:$AI$823,19,FALSE)=\"-\"),1/0,VLOOKUP($A647,Economática!$A$3:$AI$823,19,FALSE)))","v":""},{"$f":"IF($A647=\"\",\"\",VLOOKUP($A647,Economática!$A$3:$AI$823,20,FALSE)/E647)","v":""},"","","",{"$f":"IF($A647=\"\",\"\",IF(OR(VLOOKUP($A647,Economática!$A$3:$AI$823,21,FALSE)/100=0,VLOOKUP($A647,Economática!$A$3:$AI$823,21,FALSE)/100=\"-\"),1/0,VLOOKUP($A647,Economática!$A$3:$AI$823,21,FALSE)/100))","v":""},{"$f":"IF($A647=\"\",\"\",IF(OR(VLOOKUP($A647,Economática!$A$3:$AI$823,22,FALSE)/100=0,VLOOKUP($A647,Economática!$A$3:$AI$823,22,FALSE)/100=\"-\"),1/0,VLOOKUP($A647,Economática!$A$3:$AI$823,22,FALSE)/100))","v":""},{"$f":"IF($A647=\"\",\"\",IF(OR(VLOOKUP($A647,Economática!$A$3:$AI$823,23,FALSE)=0,VLOOKUP($A647,Economática!$A$3:$AI$823,23,FALSE)=\"-\"),1/0,VLOOKUP($A647,Economática!$A$3:$AI$823,23,FALSE)))","v":""},{"$f":"IF($A647=\"\",\"\",IF(OR(VLOOKUP($A647,Economática!$A$3:$AI$823,24,FALSE)=0,VLOOKUP($A647,Economática!$A$3:$AI$823,24,FALSE)=\"-\"),1/0,VLOOKUP($A647,Economática!$A$3:$AI$823,24,FALSE)))","v":""},{"$f":"IF($A647=\"\",\"\",IF(OR(VLOOKUP($A647,Economática!$A$3:$AI$823,25,FALSE)=0,VLOOKUP($A647,Economática!$A$3:$AI$823,25,FALSE)=\"-\"),1/0,VLOOKUP($A647,Economática!$A$3:$AI$823,25,FALSE)))","v":""},{"$f":"IF($A647=\"\",\"\",IF(ISERROR((F647+VLOOKUP($A647,Economática!$A$3:$AI$823,26,FALSE))/Y647),(F647+VLOOKUP($A647,Economática!$A$3:$AI$823,26,FALSE))/Y647,(F647+VLOOKUP($A647,Economática!$A$3:$AI$823,26,FALSE))/Y647))","v":""},{"$f":"IF($A647=\"\",\"\",IF(OR(-VLOOKUP($A647,Economática!$A$3:$AI$823,27,FALSE)=0,-VLOOKUP($A647,Economática!$A$3:$AI$823,27,FALSE)=\"-\"),1/0,-VLOOKUP($A647,Economática!$A$3:$AI$823,27,FALSE)))","v":""},"",{"$f":"IF($A647=\"\",\"\",IF(OR(VLOOKUP($A647,Economática!$A$3:$AI$823,28,FALSE)=0,VLOOKUP($A647,Economática!$A$3:$AI$823,28,FALSE)=\"-\"),1/0,VLOOKUP($A647,Economática!$A$3:$AI$823,28,FALSE)))","v":""},{"$f":"IF($A647=\"\",\"\",IF(OR(VLOOKUP($A647,Economática!$A$3:$AI$823,29,FALSE)=0,VLOOKUP($A647,Economática!$A$3:$AI$823,29,FALSE)=\"-\"),1/0,VLOOKUP($A647,Economática!$A$3:$AI$823,29,FALSE)))","v":""},{"$f":"IF($A647=\"\",\"\",IF(OR(VLOOKUP($A647,Economática!$A$3:$AI$823,30,FALSE)/E647=0,VLOOKUP($A647,Economática!$A$3:$AI$823,30,FALSE)/E647=\"-\",VLOOKUP($A647,Economática!$A$3:$AI$823,30,FALSE)/E647<33.33%,VLOOKUP($A647,Economática!$A$3:$AI$823,30,FALSE)/E647>100%),1/0,VLOOKUP($A647,Economática!$A$3:$AI$823,30,FALSE)/E647))","v":""},"",{"$f":"IF($A647=\"\",\"\",IF(OR(VLOOKUP($A647,Economática!$A$3:$AI$823,25,FALSE)=0,VLOOKUP($A647,Economática!$A$3:$AI$823,25,FALSE)=\"-\"),1/0,VLOOKUP($A647,Economática!$A$3:$AI$823,25,FALSE)))","v":""},{"$f":"CONCATENATE(Economática!B625,\" \",Economática!C625)","v":" "}]
[{"$f":"IF(Economática!AG626=\"\",\"\",Economática!AG626)","v":""},{"$f":"IF($A648=\"\",\"\",VLOOKUP(VLOOKUP($A648,Economática!$A$3:$AI$823,6,FALSE),Correção!$B$16:$C$36,2,FALSE))","v":""},{"$f":"IF(Economática!B626=\"\",\"\",Economática!B626)","v":""},{"$f":"IF($A648=\"\",\"\",IF(OR(VLOOKUP($A648,Economática!$A$3:$AI$823,8,FALSE)=0,VLOOKUP($A648,Economática!$A$3:$AI$823,8,FALSE)=\"-\"),1/0,VLOOKUP($A648,Economática!$A$3:$AI$823,8,FALSE)))","v":""},{"$f":"IF(A648=\"\",\"\",IF(ISERROR(VLOOKUP(A648,Correção!$B$2:$G$13,9,FALSE)),VLOOKUP($A648,Economática!$A$3:$AI$823,9,FALSE),VLOOKUP(A648,Correção!$B$2:$G$13,9,FALSE)))","v":""},{"$f":"IF($A648=\"\",\"\",Economática!G626)","v":""},{"$f":"IF($A648=\"\",\"\",IF(OR(VLOOKUP($A648,Economática!$A$3:$AI$823,10,FALSE)=0,VLOOKUP($A648,Economática!$A$3:$AI$823,10,FALSE)=\"-\"),1/0,VLOOKUP($A648,Economática!$A$3:$AI$823,10,FALSE)))","v":""},{"$f":"IF($A648=\"\",\"\",IF(OR(VLOOKUP($A648,Economática!$A$3:$AI$823,11,FALSE)=0,VLOOKUP($A648,Economática!$A$3:$AI$823,11,FALSE)=\"-\"),1/0,VLOOKUP($A648,Economática!$A$3:$AI$823,11,FALSE)))","v":""},{"$f":"IF($A648=\"\",\"\",IF(OR(VLOOKUP($A648,Economática!$A$3:$AI$823,12,FALSE)=0,VLOOKUP($A648,Economática!$A$3:$AI$823,12,FALSE)=\"-\"),1/0,VLOOKUP($A648,Economática!$A$3:$AI$823,12,FALSE)))","v":""},{"$f":"IF($A648=\"\",\"\",IF(OR(VLOOKUP($A648,Economática!$A$3:$AI$823,13,FALSE)=0,VLOOKUP($A648,Economática!$A$3:$AI$823,13,FALSE)=\"-\"),1/0,VLOOKUP($A648,Economática!$A$3:$AI$823,13,FALSE)))","v":""},{"$f":"IF($A648=\"\",\"\",IF(OR(VLOOKUP($A648,Economática!$A$3:$AI$823,14,FALSE)=0,VLOOKUP($A648,Economática!$A$3:$AI$823,14,FALSE)=\"-\"),1/0,VLOOKUP($A648,Economática!$A$3:$AI$823,14,FALSE)))","v":""},{"$f":"IF($A648=\"\",\"\",IF(OR(VLOOKUP($A648,Economática!$A$3:$AI$823,15,FALSE)=0,VLOOKUP($A648,Economática!$A$3:$AI$823,15,FALSE)=\"-\"),1/0,VLOOKUP($A648,Economática!$A$3:$AI$823,15,FALSE)))","v":""},{"$f":"IF($A648=\"\",\"\",IF(OR(VLOOKUP($A648,Economática!$A$3:$AI$823,16,FALSE)=0,VLOOKUP($A648,Economática!$A$3:$AI$823,16,FALSE)=\"-\"),1/0,VLOOKUP($A648,Economática!$A$3:$AI$823,16,FALSE)))","v":""},{"$f":"IF($A648=\"\",\"\",IF(OR(VLOOKUP($A648,Economática!$A$3:$AI$823,17,FALSE)=0,VLOOKUP($A648,Economática!$A$3:$AI$823,17,FALSE)=\"-\"),1/0,VLOOKUP($A648,Economática!$A$3:$AI$823,17,FALSE)))","v":""},{"$f":"IF($A648=\"\",\"\",IF(OR(VLOOKUP($A648,Economática!$A$3:$AI$823,18,FALSE)=0,VLOOKUP($A648,Economática!$A$3:$AI$823,18,FALSE)=\"-\"),1/0,VLOOKUP($A648,Economática!$A$3:$AI$823,18,FALSE)))","v":""},{"$f":"IF($A648=\"\",\"\",IF(OR(VLOOKUP($A648,Economática!$A$3:$AI$823,19,FALSE)=0,VLOOKUP($A648,Economática!$A$3:$AI$823,19,FALSE)=\"-\"),1/0,VLOOKUP($A648,Economática!$A$3:$AI$823,19,FALSE)))","v":""},{"$f":"IF($A648=\"\",\"\",VLOOKUP($A648,Economática!$A$3:$AI$823,20,FALSE)/E648)","v":""},"","","",{"$f":"IF($A648=\"\",\"\",IF(OR(VLOOKUP($A648,Economática!$A$3:$AI$823,21,FALSE)/100=0,VLOOKUP($A648,Economática!$A$3:$AI$823,21,FALSE)/100=\"-\"),1/0,VLOOKUP($A648,Economática!$A$3:$AI$823,21,FALSE)/100))","v":""},{"$f":"IF($A648=\"\",\"\",IF(OR(VLOOKUP($A648,Economática!$A$3:$AI$823,22,FALSE)/100=0,VLOOKUP($A648,Economática!$A$3:$AI$823,22,FALSE)/100=\"-\"),1/0,VLOOKUP($A648,Economática!$A$3:$AI$823,22,FALSE)/100))","v":""},{"$f":"IF($A648=\"\",\"\",IF(OR(VLOOKUP($A648,Economática!$A$3:$AI$823,23,FALSE)=0,VLOOKUP($A648,Economática!$A$3:$AI$823,23,FALSE)=\"-\"),1/0,VLOOKUP($A648,Economática!$A$3:$AI$823,23,FALSE)))","v":""},{"$f":"IF($A648=\"\",\"\",IF(OR(VLOOKUP($A648,Economática!$A$3:$AI$823,24,FALSE)=0,VLOOKUP($A648,Economática!$A$3:$AI$823,24,FALSE)=\"-\"),1/0,VLOOKUP($A648,Economática!$A$3:$AI$823,24,FALSE)))","v":""},{"$f":"IF($A648=\"\",\"\",IF(OR(VLOOKUP($A648,Economática!$A$3:$AI$823,25,FALSE)=0,VLOOKUP($A648,Economática!$A$3:$AI$823,25,FALSE)=\"-\"),1/0,VLOOKUP($A648,Economática!$A$3:$AI$823,25,FALSE)))","v":""},{"$f":"IF($A648=\"\",\"\",IF(ISERROR((F648+VLOOKUP($A648,Economática!$A$3:$AI$823,26,FALSE))/Y648),(F648+VLOOKUP($A648,Economática!$A$3:$AI$823,26,FALSE))/Y648,(F648+VLOOKUP($A648,Economática!$A$3:$AI$823,26,FALSE))/Y648))","v":""},{"$f":"IF($A648=\"\",\"\",IF(OR(-VLOOKUP($A648,Economática!$A$3:$AI$823,27,FALSE)=0,-VLOOKUP($A648,Economática!$A$3:$AI$823,27,FALSE)=\"-\"),1/0,-VLOOKUP($A648,Economática!$A$3:$AI$823,27,FALSE)))","v":""},"",{"$f":"IF($A648=\"\",\"\",IF(OR(VLOOKUP($A648,Economática!$A$3:$AI$823,28,FALSE)=0,VLOOKUP($A648,Economática!$A$3:$AI$823,28,FALSE)=\"-\"),1/0,VLOOKUP($A648,Economática!$A$3:$AI$823,28,FALSE)))","v":""},{"$f":"IF($A648=\"\",\"\",IF(OR(VLOOKUP($A648,Economática!$A$3:$AI$823,29,FALSE)=0,VLOOKUP($A648,Economática!$A$3:$AI$823,29,FALSE)=\"-\"),1/0,VLOOKUP($A648,Economática!$A$3:$AI$823,29,FALSE)))","v":""},{"$f":"IF($A648=\"\",\"\",IF(OR(VLOOKUP($A648,Economática!$A$3:$AI$823,30,FALSE)/E648=0,VLOOKUP($A648,Economática!$A$3:$AI$823,30,FALSE)/E648=\"-\",VLOOKUP($A648,Economática!$A$3:$AI$823,30,FALSE)/E648<33.33%,VLOOKUP($A648,Economática!$A$3:$AI$823,30,FALSE)/E648>100%),1/0,VLOOKUP($A648,Economática!$A$3:$AI$823,30,FALSE)/E648))","v":""},"",{"$f":"IF($A648=\"\",\"\",IF(OR(VLOOKUP($A648,Economática!$A$3:$AI$823,25,FALSE)=0,VLOOKUP($A648,Economática!$A$3:$AI$823,25,FALSE)=\"-\"),1/0,VLOOKUP($A648,Economática!$A$3:$AI$823,25,FALSE)))","v":""},{"$f":"CONCATENATE(Economática!B626,\" \",Economática!C626)","v":" "}]
[{"$f":"IF(Economática!AG627=\"\",\"\",Economática!AG627)","v":""},{"$f":"IF($A649=\"\",\"\",VLOOKUP(VLOOKUP($A649,Economática!$A$3:$AI$823,6,FALSE),Correção!$B$16:$C$36,2,FALSE))","v":""},{"$f":"IF(Economática!B627=\"\",\"\",Economática!B627)","v":""},{"$f":"IF($A649=\"\",\"\",IF(OR(VLOOKUP($A649,Economática!$A$3:$AI$823,8,FALSE)=0,VLOOKUP($A649,Economática!$A$3:$AI$823,8,FALSE)=\"-\"),1/0,VLOOKUP($A649,Economática!$A$3:$AI$823,8,FALSE)))","v":""},{"$f":"IF(A649=\"\",\"\",IF(ISERROR(VLOOKUP(A649,Correção!$B$2:$G$13,9,FALSE)),VLOOKUP($A649,Economática!$A$3:$AI$823,9,FALSE),VLOOKUP(A649,Correção!$B$2:$G$13,9,FALSE)))","v":""},{"$f":"IF($A649=\"\",\"\",Economática!G627)","v":""},{"$f":"IF($A649=\"\",\"\",IF(OR(VLOOKUP($A649,Economática!$A$3:$AI$823,10,FALSE)=0,VLOOKUP($A649,Economática!$A$3:$AI$823,10,FALSE)=\"-\"),1/0,VLOOKUP($A649,Economática!$A$3:$AI$823,10,FALSE)))","v":""},{"$f":"IF($A649=\"\",\"\",IF(OR(VLOOKUP($A649,Economática!$A$3:$AI$823,11,FALSE)=0,VLOOKUP($A649,Economática!$A$3:$AI$823,11,FALSE)=\"-\"),1/0,VLOOKUP($A649,Economática!$A$3:$AI$823,11,FALSE)))","v":""},{"$f":"IF($A649=\"\",\"\",IF(OR(VLOOKUP($A649,Economática!$A$3:$AI$823,12,FALSE)=0,VLOOKUP($A649,Economática!$A$3:$AI$823,12,FALSE)=\"-\"),1/0,VLOOKUP($A649,Economática!$A$3:$AI$823,12,FALSE)))","v":""},{"$f":"IF($A649=\"\",\"\",IF(OR(VLOOKUP($A649,Economática!$A$3:$AI$823,13,FALSE)=0,VLOOKUP($A649,Economática!$A$3:$AI$823,13,FALSE)=\"-\"),1/0,VLOOKUP($A649,Economática!$A$3:$AI$823,13,FALSE)))","v":""},{"$f":"IF($A649=\"\",\"\",IF(OR(VLOOKUP($A649,Economática!$A$3:$AI$823,14,FALSE)=0,VLOOKUP($A649,Economática!$A$3:$AI$823,14,FALSE)=\"-\"),1/0,VLOOKUP($A649,Economática!$A$3:$AI$823,14,FALSE)))","v":""},{"$f":"IF($A649=\"\",\"\",IF(OR(VLOOKUP($A649,Economática!$A$3:$AI$823,15,FALSE)=0,VLOOKUP($A649,Economática!$A$3:$AI$823,15,FALSE)=\"-\"),1/0,VLOOKUP($A649,Economática!$A$3:$AI$823,15,FALSE)))","v":""},{"$f":"IF($A649=\"\",\"\",IF(OR(VLOOKUP($A649,Economática!$A$3:$AI$823,16,FALSE)=0,VLOOKUP($A649,Economática!$A$3:$AI$823,16,FALSE)=\"-\"),1/0,VLOOKUP($A649,Economática!$A$3:$AI$823,16,FALSE)))","v":""},{"$f":"IF($A649=\"\",\"\",IF(OR(VLOOKUP($A649,Economática!$A$3:$AI$823,17,FALSE)=0,VLOOKUP($A649,Economática!$A$3:$AI$823,17,FALSE)=\"-\"),1/0,VLOOKUP($A649,Economática!$A$3:$AI$823,17,FALSE)))","v":""},{"$f":"IF($A649=\"\",\"\",IF(OR(VLOOKUP($A649,Economática!$A$3:$AI$823,18,FALSE)=0,VLOOKUP($A649,Economática!$A$3:$AI$823,18,FALSE)=\"-\"),1/0,VLOOKUP($A649,Economática!$A$3:$AI$823,18,FALSE)))","v":""},{"$f":"IF($A649=\"\",\"\",IF(OR(VLOOKUP($A649,Economática!$A$3:$AI$823,19,FALSE)=0,VLOOKUP($A649,Economática!$A$3:$AI$823,19,FALSE)=\"-\"),1/0,VLOOKUP($A649,Economática!$A$3:$AI$823,19,FALSE)))","v":""},{"$f":"IF($A649=\"\",\"\",VLOOKUP($A649,Economática!$A$3:$AI$823,20,FALSE)/E649)","v":""},"","","",{"$f":"IF($A649=\"\",\"\",IF(OR(VLOOKUP($A649,Economática!$A$3:$AI$823,21,FALSE)/100=0,VLOOKUP($A649,Economática!$A$3:$AI$823,21,FALSE)/100=\"-\"),1/0,VLOOKUP($A649,Economática!$A$3:$AI$823,21,FALSE)/100))","v":""},{"$f":"IF($A649=\"\",\"\",IF(OR(VLOOKUP($A649,Economática!$A$3:$AI$823,22,FALSE)/100=0,VLOOKUP($A649,Economática!$A$3:$AI$823,22,FALSE)/100=\"-\"),1/0,VLOOKUP($A649,Economática!$A$3:$AI$823,22,FALSE)/100))","v":""},{"$f":"IF($A649=\"\",\"\",IF(OR(VLOOKUP($A649,Economática!$A$3:$AI$823,23,FALSE)=0,VLOOKUP($A649,Economática!$A$3:$AI$823,23,FALSE)=\"-\"),1/0,VLOOKUP($A649,Economática!$A$3:$AI$823,23,FALSE)))","v":""},{"$f":"IF($A649=\"\",\"\",IF(OR(VLOOKUP($A649,Economática!$A$3:$AI$823,24,FALSE)=0,VLOOKUP($A649,Economática!$A$3:$AI$823,24,FALSE)=\"-\"),1/0,VLOOKUP($A649,Economática!$A$3:$AI$823,24,FALSE)))","v":""},{"$f":"IF($A649=\"\",\"\",IF(OR(VLOOKUP($A649,Economática!$A$3:$AI$823,25,FALSE)=0,VLOOKUP($A649,Economática!$A$3:$AI$823,25,FALSE)=\"-\"),1/0,VLOOKUP($A649,Economática!$A$3:$AI$823,25,FALSE)))","v":""},{"$f":"IF($A649=\"\",\"\",IF(ISERROR((F649+VLOOKUP($A649,Economática!$A$3:$AI$823,26,FALSE))/Y649),(F649+VLOOKUP($A649,Economática!$A$3:$AI$823,26,FALSE))/Y649,(F649+VLOOKUP($A649,Economática!$A$3:$AI$823,26,FALSE))/Y649))","v":""},{"$f":"IF($A649=\"\",\"\",IF(OR(-VLOOKUP($A649,Economática!$A$3:$AI$823,27,FALSE)=0,-VLOOKUP($A649,Economática!$A$3:$AI$823,27,FALSE)=\"-\"),1/0,-VLOOKUP($A649,Economática!$A$3:$AI$823,27,FALSE)))","v":""},"",{"$f":"IF($A649=\"\",\"\",IF(OR(VLOOKUP($A649,Economática!$A$3:$AI$823,28,FALSE)=0,VLOOKUP($A649,Economática!$A$3:$AI$823,28,FALSE)=\"-\"),1/0,VLOOKUP($A649,Economática!$A$3:$AI$823,28,FALSE)))","v":""},{"$f":"IF($A649=\"\",\"\",IF(OR(VLOOKUP($A649,Economática!$A$3:$AI$823,29,FALSE)=0,VLOOKUP($A649,Economática!$A$3:$AI$823,29,FALSE)=\"-\"),1/0,VLOOKUP($A649,Economática!$A$3:$AI$823,29,FALSE)))","v":""},{"$f":"IF($A649=\"\",\"\",IF(OR(VLOOKUP($A649,Economática!$A$3:$AI$823,30,FALSE)/E649=0,VLOOKUP($A649,Economática!$A$3:$AI$823,30,FALSE)/E649=\"-\",VLOOKUP($A649,Economática!$A$3:$AI$823,30,FALSE)/E649<33.33%,VLOOKUP($A649,Economática!$A$3:$AI$823,30,FALSE)/E649>100%),1/0,VLOOKUP($A649,Economática!$A$3:$AI$823,30,FALSE)/E649))","v":""},"",{"$f":"IF($A649=\"\",\"\",IF(OR(VLOOKUP($A649,Economática!$A$3:$AI$823,25,FALSE)=0,VLOOKUP($A649,Economática!$A$3:$AI$823,25,FALSE)=\"-\"),1/0,VLOOKUP($A649,Economática!$A$3:$AI$823,25,FALSE)))","v":""},{"$f":"CONCATENATE(Economática!B627,\" \",Economática!C627)","v":" "}]
[{"$f":"IF(Economática!AG628=\"\",\"\",Economática!AG628)","v":""},{"$f":"IF($A650=\"\",\"\",VLOOKUP(VLOOKUP($A650,Economática!$A$3:$AI$823,6,FALSE),Correção!$B$16:$C$36,2,FALSE))","v":""},{"$f":"IF(Economática!B628=\"\",\"\",Economática!B628)","v":""},{"$f":"IF($A650=\"\",\"\",IF(OR(VLOOKUP($A650,Economática!$A$3:$AI$823,8,FALSE)=0,VLOOKUP($A650,Economática!$A$3:$AI$823,8,FALSE)=\"-\"),1/0,VLOOKUP($A650,Economática!$A$3:$AI$823,8,FALSE)))","v":""},{"$f":"IF(A650=\"\",\"\",IF(ISERROR(VLOOKUP(A650,Correção!$B$2:$G$13,9,FALSE)),VLOOKUP($A650,Economática!$A$3:$AI$823,9,FALSE),VLOOKUP(A650,Correção!$B$2:$G$13,9,FALSE)))","v":""},{"$f":"IF($A650=\"\",\"\",Economática!G628)","v":""},{"$f":"IF($A650=\"\",\"\",IF(OR(VLOOKUP($A650,Economática!$A$3:$AI$823,10,FALSE)=0,VLOOKUP($A650,Economática!$A$3:$AI$823,10,FALSE)=\"-\"),1/0,VLOOKUP($A650,Economática!$A$3:$AI$823,10,FALSE)))","v":""},{"$f":"IF($A650=\"\",\"\",IF(OR(VLOOKUP($A650,Economática!$A$3:$AI$823,11,FALSE)=0,VLOOKUP($A650,Economática!$A$3:$AI$823,11,FALSE)=\"-\"),1/0,VLOOKUP($A650,Economática!$A$3:$AI$823,11,FALSE)))","v":""},{"$f":"IF($A650=\"\",\"\",IF(OR(VLOOKUP($A650,Economática!$A$3:$AI$823,12,FALSE)=0,VLOOKUP($A650,Economática!$A$3:$AI$823,12,FALSE)=\"-\"),1/0,VLOOKUP($A650,Economática!$A$3:$AI$823,12,FALSE)))","v":""},{"$f":"IF($A650=\"\",\"\",IF(OR(VLOOKUP($A650,Economática!$A$3:$AI$823,13,FALSE)=0,VLOOKUP($A650,Economática!$A$3:$AI$823,13,FALSE)=\"-\"),1/0,VLOOKUP($A650,Economática!$A$3:$AI$823,13,FALSE)))","v":""},{"$f":"IF($A650=\"\",\"\",IF(OR(VLOOKUP($A650,Economática!$A$3:$AI$823,14,FALSE)=0,VLOOKUP($A650,Economática!$A$3:$AI$823,14,FALSE)=\"-\"),1/0,VLOOKUP($A650,Economática!$A$3:$AI$823,14,FALSE)))","v":""},{"$f":"IF($A650=\"\",\"\",IF(OR(VLOOKUP($A650,Economática!$A$3:$AI$823,15,FALSE)=0,VLOOKUP($A650,Economática!$A$3:$AI$823,15,FALSE)=\"-\"),1/0,VLOOKUP($A650,Economática!$A$3:$AI$823,15,FALSE)))","v":""},{"$f":"IF($A650=\"\",\"\",IF(OR(VLOOKUP($A650,Economática!$A$3:$AI$823,16,FALSE)=0,VLOOKUP($A650,Economática!$A$3:$AI$823,16,FALSE)=\"-\"),1/0,VLOOKUP($A650,Economática!$A$3:$AI$823,16,FALSE)))","v":""},{"$f":"IF($A650=\"\",\"\",IF(OR(VLOOKUP($A650,Economática!$A$3:$AI$823,17,FALSE)=0,VLOOKUP($A650,Economática!$A$3:$AI$823,17,FALSE)=\"-\"),1/0,VLOOKUP($A650,Economática!$A$3:$AI$823,17,FALSE)))","v":""},{"$f":"IF($A650=\"\",\"\",IF(OR(VLOOKUP($A650,Economática!$A$3:$AI$823,18,FALSE)=0,VLOOKUP($A650,Economática!$A$3:$AI$823,18,FALSE)=\"-\"),1/0,VLOOKUP($A650,Economática!$A$3:$AI$823,18,FALSE)))","v":""},{"$f":"IF($A650=\"\",\"\",IF(OR(VLOOKUP($A650,Economática!$A$3:$AI$823,19,FALSE)=0,VLOOKUP($A650,Economática!$A$3:$AI$823,19,FALSE)=\"-\"),1/0,VLOOKUP($A650,Economática!$A$3:$AI$823,19,FALSE)))","v":""},{"$f":"IF($A650=\"\",\"\",VLOOKUP($A650,Economática!$A$3:$AI$823,20,FALSE)/E650)","v":""},"","","",{"$f":"IF($A650=\"\",\"\",IF(OR(VLOOKUP($A650,Economática!$A$3:$AI$823,21,FALSE)/100=0,VLOOKUP($A650,Economática!$A$3:$AI$823,21,FALSE)/100=\"-\"),1/0,VLOOKUP($A650,Economática!$A$3:$AI$823,21,FALSE)/100))","v":""},{"$f":"IF($A650=\"\",\"\",IF(OR(VLOOKUP($A650,Economática!$A$3:$AI$823,22,FALSE)/100=0,VLOOKUP($A650,Economática!$A$3:$AI$823,22,FALSE)/100=\"-\"),1/0,VLOOKUP($A650,Economática!$A$3:$AI$823,22,FALSE)/100))","v":""},{"$f":"IF($A650=\"\",\"\",IF(OR(VLOOKUP($A650,Economática!$A$3:$AI$823,23,FALSE)=0,VLOOKUP($A650,Economática!$A$3:$AI$823,23,FALSE)=\"-\"),1/0,VLOOKUP($A650,Economática!$A$3:$AI$823,23,FALSE)))","v":""},{"$f":"IF($A650=\"\",\"\",IF(OR(VLOOKUP($A650,Economática!$A$3:$AI$823,24,FALSE)=0,VLOOKUP($A650,Economática!$A$3:$AI$823,24,FALSE)=\"-\"),1/0,VLOOKUP($A650,Economática!$A$3:$AI$823,24,FALSE)))","v":""},{"$f":"IF($A650=\"\",\"\",IF(OR(VLOOKUP($A650,Economática!$A$3:$AI$823,25,FALSE)=0,VLOOKUP($A650,Economática!$A$3:$AI$823,25,FALSE)=\"-\"),1/0,VLOOKUP($A650,Economática!$A$3:$AI$823,25,FALSE)))","v":""},{"$f":"IF($A650=\"\",\"\",IF(ISERROR((F650+VLOOKUP($A650,Economática!$A$3:$AI$823,26,FALSE))/Y650),(F650+VLOOKUP($A650,Economática!$A$3:$AI$823,26,FALSE))/Y650,(F650+VLOOKUP($A650,Economática!$A$3:$AI$823,26,FALSE))/Y650))","v":""},{"$f":"IF($A650=\"\",\"\",IF(OR(-VLOOKUP($A650,Economática!$A$3:$AI$823,27,FALSE)=0,-VLOOKUP($A650,Economática!$A$3:$AI$823,27,FALSE)=\"-\"),1/0,-VLOOKUP($A650,Economática!$A$3:$AI$823,27,FALSE)))","v":""},"",{"$f":"IF($A650=\"\",\"\",IF(OR(VLOOKUP($A650,Economática!$A$3:$AI$823,28,FALSE)=0,VLOOKUP($A650,Economática!$A$3:$AI$823,28,FALSE)=\"-\"),1/0,VLOOKUP($A650,Economática!$A$3:$AI$823,28,FALSE)))","v":""},{"$f":"IF($A650=\"\",\"\",IF(OR(VLOOKUP($A650,Economática!$A$3:$AI$823,29,FALSE)=0,VLOOKUP($A650,Economática!$A$3:$AI$823,29,FALSE)=\"-\"),1/0,VLOOKUP($A650,Economática!$A$3:$AI$823,29,FALSE)))","v":""},{"$f":"IF($A650=\"\",\"\",IF(OR(VLOOKUP($A650,Economática!$A$3:$AI$823,30,FALSE)/E650=0,VLOOKUP($A650,Economática!$A$3:$AI$823,30,FALSE)/E650=\"-\",VLOOKUP($A650,Economática!$A$3:$AI$823,30,FALSE)/E650<33.33%,VLOOKUP($A650,Economática!$A$3:$AI$823,30,FALSE)/E650>100%),1/0,VLOOKUP($A650,Economática!$A$3:$AI$823,30,FALSE)/E650))","v":""},"",{"$f":"IF($A650=\"\",\"\",IF(OR(VLOOKUP($A650,Economática!$A$3:$AI$823,25,FALSE)=0,VLOOKUP($A650,Economática!$A$3:$AI$823,25,FALSE)=\"-\"),1/0,VLOOKUP($A650,Economática!$A$3:$AI$823,25,FALSE)))","v":""},{"$f":"CONCATENATE(Economática!B628,\" \",Economática!C628)","v":" "}]
[{"$f":"IF(Economática!AG629=\"\",\"\",Economática!AG629)","v":""},{"$f":"IF($A651=\"\",\"\",VLOOKUP(VLOOKUP($A651,Economática!$A$3:$AI$823,6,FALSE),Correção!$B$16:$C$36,2,FALSE))","v":""},{"$f":"IF(Economática!B629=\"\",\"\",Economática!B629)","v":""},{"$f":"IF($A651=\"\",\"\",IF(OR(VLOOKUP($A651,Economática!$A$3:$AI$823,8,FALSE)=0,VLOOKUP($A651,Economática!$A$3:$AI$823,8,FALSE)=\"-\"),1/0,VLOOKUP($A651,Economática!$A$3:$AI$823,8,FALSE)))","v":""},{"$f":"IF(A651=\"\",\"\",IF(ISERROR(VLOOKUP(A651,Correção!$B$2:$G$13,9,FALSE)),VLOOKUP($A651,Economática!$A$3:$AI$823,9,FALSE),VLOOKUP(A651,Correção!$B$2:$G$13,9,FALSE)))","v":""},{"$f":"IF($A651=\"\",\"\",Economática!G629)","v":""},{"$f":"IF($A651=\"\",\"\",IF(OR(VLOOKUP($A651,Economática!$A$3:$AI$823,10,FALSE)=0,VLOOKUP($A651,Economática!$A$3:$AI$823,10,FALSE)=\"-\"),1/0,VLOOKUP($A651,Economática!$A$3:$AI$823,10,FALSE)))","v":""},{"$f":"IF($A651=\"\",\"\",IF(OR(VLOOKUP($A651,Economática!$A$3:$AI$823,11,FALSE)=0,VLOOKUP($A651,Economática!$A$3:$AI$823,11,FALSE)=\"-\"),1/0,VLOOKUP($A651,Economática!$A$3:$AI$823,11,FALSE)))","v":""},{"$f":"IF($A651=\"\",\"\",IF(OR(VLOOKUP($A651,Economática!$A$3:$AI$823,12,FALSE)=0,VLOOKUP($A651,Economática!$A$3:$AI$823,12,FALSE)=\"-\"),1/0,VLOOKUP($A651,Economática!$A$3:$AI$823,12,FALSE)))","v":""},{"$f":"IF($A651=\"\",\"\",IF(OR(VLOOKUP($A651,Economática!$A$3:$AI$823,13,FALSE)=0,VLOOKUP($A651,Economática!$A$3:$AI$823,13,FALSE)=\"-\"),1/0,VLOOKUP($A651,Economática!$A$3:$AI$823,13,FALSE)))","v":""},{"$f":"IF($A651=\"\",\"\",IF(OR(VLOOKUP($A651,Economática!$A$3:$AI$823,14,FALSE)=0,VLOOKUP($A651,Economática!$A$3:$AI$823,14,FALSE)=\"-\"),1/0,VLOOKUP($A651,Economática!$A$3:$AI$823,14,FALSE)))","v":""},{"$f":"IF($A651=\"\",\"\",IF(OR(VLOOKUP($A651,Economática!$A$3:$AI$823,15,FALSE)=0,VLOOKUP($A651,Economática!$A$3:$AI$823,15,FALSE)=\"-\"),1/0,VLOOKUP($A651,Economática!$A$3:$AI$823,15,FALSE)))","v":""},{"$f":"IF($A651=\"\",\"\",IF(OR(VLOOKUP($A651,Economática!$A$3:$AI$823,16,FALSE)=0,VLOOKUP($A651,Economática!$A$3:$AI$823,16,FALSE)=\"-\"),1/0,VLOOKUP($A651,Economática!$A$3:$AI$823,16,FALSE)))","v":""},{"$f":"IF($A651=\"\",\"\",IF(OR(VLOOKUP($A651,Economática!$A$3:$AI$823,17,FALSE)=0,VLOOKUP($A651,Economática!$A$3:$AI$823,17,FALSE)=\"-\"),1/0,VLOOKUP($A651,Economática!$A$3:$AI$823,17,FALSE)))","v":""},{"$f":"IF($A651=\"\",\"\",IF(OR(VLOOKUP($A651,Economática!$A$3:$AI$823,18,FALSE)=0,VLOOKUP($A651,Economática!$A$3:$AI$823,18,FALSE)=\"-\"),1/0,VLOOKUP($A651,Economática!$A$3:$AI$823,18,FALSE)))","v":""},{"$f":"IF($A651=\"\",\"\",IF(OR(VLOOKUP($A651,Economática!$A$3:$AI$823,19,FALSE)=0,VLOOKUP($A651,Economática!$A$3:$AI$823,19,FALSE)=\"-\"),1/0,VLOOKUP($A651,Economática!$A$3:$AI$823,19,FALSE)))","v":""},{"$f":"IF($A651=\"\",\"\",VLOOKUP($A651,Economática!$A$3:$AI$823,20,FALSE)/E651)","v":""},"","","",{"$f":"IF($A651=\"\",\"\",IF(OR(VLOOKUP($A651,Economática!$A$3:$AI$823,21,FALSE)/100=0,VLOOKUP($A651,Economática!$A$3:$AI$823,21,FALSE)/100=\"-\"),1/0,VLOOKUP($A651,Economática!$A$3:$AI$823,21,FALSE)/100))","v":""},{"$f":"IF($A651=\"\",\"\",IF(OR(VLOOKUP($A651,Economática!$A$3:$AI$823,22,FALSE)/100=0,VLOOKUP($A651,Economática!$A$3:$AI$823,22,FALSE)/100=\"-\"),1/0,VLOOKUP($A651,Economática!$A$3:$AI$823,22,FALSE)/100))","v":""},{"$f":"IF($A651=\"\",\"\",IF(OR(VLOOKUP($A651,Economática!$A$3:$AI$823,23,FALSE)=0,VLOOKUP($A651,Economática!$A$3:$AI$823,23,FALSE)=\"-\"),1/0,VLOOKUP($A651,Economática!$A$3:$AI$823,23,FALSE)))","v":""},{"$f":"IF($A651=\"\",\"\",IF(OR(VLOOKUP($A651,Economática!$A$3:$AI$823,24,FALSE)=0,VLOOKUP($A651,Economática!$A$3:$AI$823,24,FALSE)=\"-\"),1/0,VLOOKUP($A651,Economática!$A$3:$AI$823,24,FALSE)))","v":""},{"$f":"IF($A651=\"\",\"\",IF(OR(VLOOKUP($A651,Economática!$A$3:$AI$823,25,FALSE)=0,VLOOKUP($A651,Economática!$A$3:$AI$823,25,FALSE)=\"-\"),1/0,VLOOKUP($A651,Economática!$A$3:$AI$823,25,FALSE)))","v":""},{"$f":"IF($A651=\"\",\"\",IF(ISERROR((F651+VLOOKUP($A651,Economática!$A$3:$AI$823,26,FALSE))/Y651),(F651+VLOOKUP($A651,Economática!$A$3:$AI$823,26,FALSE))/Y651,(F651+VLOOKUP($A651,Economática!$A$3:$AI$823,26,FALSE))/Y651))","v":""},{"$f":"IF($A651=\"\",\"\",IF(OR(-VLOOKUP($A651,Economática!$A$3:$AI$823,27,FALSE)=0,-VLOOKUP($A651,Economática!$A$3:$AI$823,27,FALSE)=\"-\"),1/0,-VLOOKUP($A651,Economática!$A$3:$AI$823,27,FALSE)))","v":""},"",{"$f":"IF($A651=\"\",\"\",IF(OR(VLOOKUP($A651,Economática!$A$3:$AI$823,28,FALSE)=0,VLOOKUP($A651,Economática!$A$3:$AI$823,28,FALSE)=\"-\"),1/0,VLOOKUP($A651,Economática!$A$3:$AI$823,28,FALSE)))","v":""},{"$f":"IF($A651=\"\",\"\",IF(OR(VLOOKUP($A651,Economática!$A$3:$AI$823,29,FALSE)=0,VLOOKUP($A651,Economática!$A$3:$AI$823,29,FALSE)=\"-\"),1/0,VLOOKUP($A651,Economática!$A$3:$AI$823,29,FALSE)))","v":""},{"$f":"IF($A651=\"\",\"\",IF(OR(VLOOKUP($A651,Economática!$A$3:$AI$823,30,FALSE)/E651=0,VLOOKUP($A651,Economática!$A$3:$AI$823,30,FALSE)/E651=\"-\",VLOOKUP($A651,Economática!$A$3:$AI$823,30,FALSE)/E651<33.33%,VLOOKUP($A651,Economática!$A$3:$AI$823,30,FALSE)/E651>100%),1/0,VLOOKUP($A651,Economática!$A$3:$AI$823,30,FALSE)/E651))","v":""},"",{"$f":"IF($A651=\"\",\"\",IF(OR(VLOOKUP($A651,Economática!$A$3:$AI$823,25,FALSE)=0,VLOOKUP($A651,Economática!$A$3:$AI$823,25,FALSE)=\"-\"),1/0,VLOOKUP($A651,Economática!$A$3:$AI$823,25,FALSE)))","v":""},{"$f":"CONCATENATE(Economática!B629,\" \",Economática!C629)","v":" "}]
[{"$f":"IF(Economática!AG630=\"\",\"\",Economática!AG630)","v":""},{"$f":"IF($A652=\"\",\"\",VLOOKUP(VLOOKUP($A652,Economática!$A$3:$AI$823,6,FALSE),Correção!$B$16:$C$36,2,FALSE))","v":""},{"$f":"IF(Economática!B630=\"\",\"\",Economática!B630)","v":""},{"$f":"IF($A652=\"\",\"\",IF(OR(VLOOKUP($A652,Economática!$A$3:$AI$823,8,FALSE)=0,VLOOKUP($A652,Economática!$A$3:$AI$823,8,FALSE)=\"-\"),1/0,VLOOKUP($A652,Economática!$A$3:$AI$823,8,FALSE)))","v":""},{"$f":"IF(A652=\"\",\"\",IF(ISERROR(VLOOKUP(A652,Correção!$B$2:$G$13,9,FALSE)),VLOOKUP($A652,Economática!$A$3:$AI$823,9,FALSE),VLOOKUP(A652,Correção!$B$2:$G$13,9,FALSE)))","v":""},{"$f":"IF($A652=\"\",\"\",Economática!G630)","v":""},{"$f":"IF($A652=\"\",\"\",IF(OR(VLOOKUP($A652,Economática!$A$3:$AI$823,10,FALSE)=0,VLOOKUP($A652,Economática!$A$3:$AI$823,10,FALSE)=\"-\"),1/0,VLOOKUP($A652,Economática!$A$3:$AI$823,10,FALSE)))","v":""},{"$f":"IF($A652=\"\",\"\",IF(OR(VLOOKUP($A652,Economática!$A$3:$AI$823,11,FALSE)=0,VLOOKUP($A652,Economática!$A$3:$AI$823,11,FALSE)=\"-\"),1/0,VLOOKUP($A652,Economática!$A$3:$AI$823,11,FALSE)))","v":""},{"$f":"IF($A652=\"\",\"\",IF(OR(VLOOKUP($A652,Economática!$A$3:$AI$823,12,FALSE)=0,VLOOKUP($A652,Economática!$A$3:$AI$823,12,FALSE)=\"-\"),1/0,VLOOKUP($A652,Economática!$A$3:$AI$823,12,FALSE)))","v":""},{"$f":"IF($A652=\"\",\"\",IF(OR(VLOOKUP($A652,Economática!$A$3:$AI$823,13,FALSE)=0,VLOOKUP($A652,Economática!$A$3:$AI$823,13,FALSE)=\"-\"),1/0,VLOOKUP($A652,Economática!$A$3:$AI$823,13,FALSE)))","v":""},{"$f":"IF($A652=\"\",\"\",IF(OR(VLOOKUP($A652,Economática!$A$3:$AI$823,14,FALSE)=0,VLOOKUP($A652,Economática!$A$3:$AI$823,14,FALSE)=\"-\"),1/0,VLOOKUP($A652,Economática!$A$3:$AI$823,14,FALSE)))","v":""},{"$f":"IF($A652=\"\",\"\",IF(OR(VLOOKUP($A652,Economática!$A$3:$AI$823,15,FALSE)=0,VLOOKUP($A652,Economática!$A$3:$AI$823,15,FALSE)=\"-\"),1/0,VLOOKUP($A652,Economática!$A$3:$AI$823,15,FALSE)))","v":""},{"$f":"IF($A652=\"\",\"\",IF(OR(VLOOKUP($A652,Economática!$A$3:$AI$823,16,FALSE)=0,VLOOKUP($A652,Economática!$A$3:$AI$823,16,FALSE)=\"-\"),1/0,VLOOKUP($A652,Economática!$A$3:$AI$823,16,FALSE)))","v":""},{"$f":"IF($A652=\"\",\"\",IF(OR(VLOOKUP($A652,Economática!$A$3:$AI$823,17,FALSE)=0,VLOOKUP($A652,Economática!$A$3:$AI$823,17,FALSE)=\"-\"),1/0,VLOOKUP($A652,Economática!$A$3:$AI$823,17,FALSE)))","v":""},{"$f":"IF($A652=\"\",\"\",IF(OR(VLOOKUP($A652,Economática!$A$3:$AI$823,18,FALSE)=0,VLOOKUP($A652,Economática!$A$3:$AI$823,18,FALSE)=\"-\"),1/0,VLOOKUP($A652,Economática!$A$3:$AI$823,18,FALSE)))","v":""},{"$f":"IF($A652=\"\",\"\",IF(OR(VLOOKUP($A652,Economática!$A$3:$AI$823,19,FALSE)=0,VLOOKUP($A652,Economática!$A$3:$AI$823,19,FALSE)=\"-\"),1/0,VLOOKUP($A652,Economática!$A$3:$AI$823,19,FALSE)))","v":""},{"$f":"IF($A652=\"\",\"\",VLOOKUP($A652,Economática!$A$3:$AI$823,20,FALSE)/E652)","v":""},"","","",{"$f":"IF($A652=\"\",\"\",IF(OR(VLOOKUP($A652,Economática!$A$3:$AI$823,21,FALSE)/100=0,VLOOKUP($A652,Economática!$A$3:$AI$823,21,FALSE)/100=\"-\"),1/0,VLOOKUP($A652,Economática!$A$3:$AI$823,21,FALSE)/100))","v":""},{"$f":"IF($A652=\"\",\"\",IF(OR(VLOOKUP($A652,Economática!$A$3:$AI$823,22,FALSE)/100=0,VLOOKUP($A652,Economática!$A$3:$AI$823,22,FALSE)/100=\"-\"),1/0,VLOOKUP($A652,Economática!$A$3:$AI$823,22,FALSE)/100))","v":""},{"$f":"IF($A652=\"\",\"\",IF(OR(VLOOKUP($A652,Economática!$A$3:$AI$823,23,FALSE)=0,VLOOKUP($A652,Economática!$A$3:$AI$823,23,FALSE)=\"-\"),1/0,VLOOKUP($A652,Economática!$A$3:$AI$823,23,FALSE)))","v":""},{"$f":"IF($A652=\"\",\"\",IF(OR(VLOOKUP($A652,Economática!$A$3:$AI$823,24,FALSE)=0,VLOOKUP($A652,Economática!$A$3:$AI$823,24,FALSE)=\"-\"),1/0,VLOOKUP($A652,Economática!$A$3:$AI$823,24,FALSE)))","v":""},{"$f":"IF($A652=\"\",\"\",IF(OR(VLOOKUP($A652,Economática!$A$3:$AI$823,25,FALSE)=0,VLOOKUP($A652,Economática!$A$3:$AI$823,25,FALSE)=\"-\"),1/0,VLOOKUP($A652,Economática!$A$3:$AI$823,25,FALSE)))","v":""},{"$f":"IF($A652=\"\",\"\",IF(ISERROR((F652+VLOOKUP($A652,Economática!$A$3:$AI$823,26,FALSE))/Y652),(F652+VLOOKUP($A652,Economática!$A$3:$AI$823,26,FALSE))/Y652,(F652+VLOOKUP($A652,Economática!$A$3:$AI$823,26,FALSE))/Y652))","v":""},{"$f":"IF($A652=\"\",\"\",IF(OR(-VLOOKUP($A652,Economática!$A$3:$AI$823,27,FALSE)=0,-VLOOKUP($A652,Economática!$A$3:$AI$823,27,FALSE)=\"-\"),1/0,-VLOOKUP($A652,Economática!$A$3:$AI$823,27,FALSE)))","v":""},"",{"$f":"IF($A652=\"\",\"\",IF(OR(VLOOKUP($A652,Economática!$A$3:$AI$823,28,FALSE)=0,VLOOKUP($A652,Economática!$A$3:$AI$823,28,FALSE)=\"-\"),1/0,VLOOKUP($A652,Economática!$A$3:$AI$823,28,FALSE)))","v":""},{"$f":"IF($A652=\"\",\"\",IF(OR(VLOOKUP($A652,Economática!$A$3:$AI$823,29,FALSE)=0,VLOOKUP($A652,Economática!$A$3:$AI$823,29,FALSE)=\"-\"),1/0,VLOOKUP($A652,Economática!$A$3:$AI$823,29,FALSE)))","v":""},{"$f":"IF($A652=\"\",\"\",IF(OR(VLOOKUP($A652,Economática!$A$3:$AI$823,30,FALSE)/E652=0,VLOOKUP($A652,Economática!$A$3:$AI$823,30,FALSE)/E652=\"-\",VLOOKUP($A652,Economática!$A$3:$AI$823,30,FALSE)/E652<33.33%,VLOOKUP($A652,Economática!$A$3:$AI$823,30,FALSE)/E652>100%),1/0,VLOOKUP($A652,Economática!$A$3:$AI$823,30,FALSE)/E652))","v":""},"",{"$f":"IF($A652=\"\",\"\",IF(OR(VLOOKUP($A652,Economática!$A$3:$AI$823,25,FALSE)=0,VLOOKUP($A652,Economática!$A$3:$AI$823,25,FALSE)=\"-\"),1/0,VLOOKUP($A652,Economática!$A$3:$AI$823,25,FALSE)))","v":""},{"$f":"CONCATENATE(Economática!B630,\" \",Economática!C630)","v":" "}]
[{"$f":"IF(Economática!AG631=\"\",\"\",Economática!AG631)","v":""},{"$f":"IF($A653=\"\",\"\",VLOOKUP(VLOOKUP($A653,Economática!$A$3:$AI$823,6,FALSE),Correção!$B$16:$C$36,2,FALSE))","v":""},{"$f":"IF(Economática!B631=\"\",\"\",Economática!B631)","v":""},{"$f":"IF($A653=\"\",\"\",IF(OR(VLOOKUP($A653,Economática!$A$3:$AI$823,8,FALSE)=0,VLOOKUP($A653,Economática!$A$3:$AI$823,8,FALSE)=\"-\"),1/0,VLOOKUP($A653,Economática!$A$3:$AI$823,8,FALSE)))","v":""},{"$f":"IF(A653=\"\",\"\",IF(ISERROR(VLOOKUP(A653,Correção!$B$2:$G$13,9,FALSE)),VLOOKUP($A653,Economática!$A$3:$AI$823,9,FALSE),VLOOKUP(A653,Correção!$B$2:$G$13,9,FALSE)))","v":""},{"$f":"IF($A653=\"\",\"\",Economática!G631)","v":""},{"$f":"IF($A653=\"\",\"\",IF(OR(VLOOKUP($A653,Economática!$A$3:$AI$823,10,FALSE)=0,VLOOKUP($A653,Economática!$A$3:$AI$823,10,FALSE)=\"-\"),1/0,VLOOKUP($A653,Economática!$A$3:$AI$823,10,FALSE)))","v":""},{"$f":"IF($A653=\"\",\"\",IF(OR(VLOOKUP($A653,Economática!$A$3:$AI$823,11,FALSE)=0,VLOOKUP($A653,Economática!$A$3:$AI$823,11,FALSE)=\"-\"),1/0,VLOOKUP($A653,Economática!$A$3:$AI$823,11,FALSE)))","v":""},{"$f":"IF($A653=\"\",\"\",IF(OR(VLOOKUP($A653,Economática!$A$3:$AI$823,12,FALSE)=0,VLOOKUP($A653,Economática!$A$3:$AI$823,12,FALSE)=\"-\"),1/0,VLOOKUP($A653,Economática!$A$3:$AI$823,12,FALSE)))","v":""},{"$f":"IF($A653=\"\",\"\",IF(OR(VLOOKUP($A653,Economática!$A$3:$AI$823,13,FALSE)=0,VLOOKUP($A653,Economática!$A$3:$AI$823,13,FALSE)=\"-\"),1/0,VLOOKUP($A653,Economática!$A$3:$AI$823,13,FALSE)))","v":""},{"$f":"IF($A653=\"\",\"\",IF(OR(VLOOKUP($A653,Economática!$A$3:$AI$823,14,FALSE)=0,VLOOKUP($A653,Economática!$A$3:$AI$823,14,FALSE)=\"-\"),1/0,VLOOKUP($A653,Economática!$A$3:$AI$823,14,FALSE)))","v":""},{"$f":"IF($A653=\"\",\"\",IF(OR(VLOOKUP($A653,Economática!$A$3:$AI$823,15,FALSE)=0,VLOOKUP($A653,Economática!$A$3:$AI$823,15,FALSE)=\"-\"),1/0,VLOOKUP($A653,Economática!$A$3:$AI$823,15,FALSE)))","v":""},{"$f":"IF($A653=\"\",\"\",IF(OR(VLOOKUP($A653,Economática!$A$3:$AI$823,16,FALSE)=0,VLOOKUP($A653,Economática!$A$3:$AI$823,16,FALSE)=\"-\"),1/0,VLOOKUP($A653,Economática!$A$3:$AI$823,16,FALSE)))","v":""},{"$f":"IF($A653=\"\",\"\",IF(OR(VLOOKUP($A653,Economática!$A$3:$AI$823,17,FALSE)=0,VLOOKUP($A653,Economática!$A$3:$AI$823,17,FALSE)=\"-\"),1/0,VLOOKUP($A653,Economática!$A$3:$AI$823,17,FALSE)))","v":""},{"$f":"IF($A653=\"\",\"\",IF(OR(VLOOKUP($A653,Economática!$A$3:$AI$823,18,FALSE)=0,VLOOKUP($A653,Economática!$A$3:$AI$823,18,FALSE)=\"-\"),1/0,VLOOKUP($A653,Economática!$A$3:$AI$823,18,FALSE)))","v":""},{"$f":"IF($A653=\"\",\"\",IF(OR(VLOOKUP($A653,Economática!$A$3:$AI$823,19,FALSE)=0,VLOOKUP($A653,Economática!$A$3:$AI$823,19,FALSE)=\"-\"),1/0,VLOOKUP($A653,Economática!$A$3:$AI$823,19,FALSE)))","v":""},{"$f":"IF($A653=\"\",\"\",VLOOKUP($A653,Economática!$A$3:$AI$823,20,FALSE)/E653)","v":""},"","","",{"$f":"IF($A653=\"\",\"\",IF(OR(VLOOKUP($A653,Economática!$A$3:$AI$823,21,FALSE)/100=0,VLOOKUP($A653,Economática!$A$3:$AI$823,21,FALSE)/100=\"-\"),1/0,VLOOKUP($A653,Economática!$A$3:$AI$823,21,FALSE)/100))","v":""},{"$f":"IF($A653=\"\",\"\",IF(OR(VLOOKUP($A653,Economática!$A$3:$AI$823,22,FALSE)/100=0,VLOOKUP($A653,Economática!$A$3:$AI$823,22,FALSE)/100=\"-\"),1/0,VLOOKUP($A653,Economática!$A$3:$AI$823,22,FALSE)/100))","v":""},{"$f":"IF($A653=\"\",\"\",IF(OR(VLOOKUP($A653,Economática!$A$3:$AI$823,23,FALSE)=0,VLOOKUP($A653,Economática!$A$3:$AI$823,23,FALSE)=\"-\"),1/0,VLOOKUP($A653,Economática!$A$3:$AI$823,23,FALSE)))","v":""},{"$f":"IF($A653=\"\",\"\",IF(OR(VLOOKUP($A653,Economática!$A$3:$AI$823,24,FALSE)=0,VLOOKUP($A653,Economática!$A$3:$AI$823,24,FALSE)=\"-\"),1/0,VLOOKUP($A653,Economática!$A$3:$AI$823,24,FALSE)))","v":""},{"$f":"IF($A653=\"\",\"\",IF(OR(VLOOKUP($A653,Economática!$A$3:$AI$823,25,FALSE)=0,VLOOKUP($A653,Economática!$A$3:$AI$823,25,FALSE)=\"-\"),1/0,VLOOKUP($A653,Economática!$A$3:$AI$823,25,FALSE)))","v":""},{"$f":"IF($A653=\"\",\"\",IF(ISERROR((F653+VLOOKUP($A653,Economática!$A$3:$AI$823,26,FALSE))/Y653),(F653+VLOOKUP($A653,Economática!$A$3:$AI$823,26,FALSE))/Y653,(F653+VLOOKUP($A653,Economática!$A$3:$AI$823,26,FALSE))/Y653))","v":""},{"$f":"IF($A653=\"\",\"\",IF(OR(-VLOOKUP($A653,Economática!$A$3:$AI$823,27,FALSE)=0,-VLOOKUP($A653,Economática!$A$3:$AI$823,27,FALSE)=\"-\"),1/0,-VLOOKUP($A653,Economática!$A$3:$AI$823,27,FALSE)))","v":""},"",{"$f":"IF($A653=\"\",\"\",IF(OR(VLOOKUP($A653,Economática!$A$3:$AI$823,28,FALSE)=0,VLOOKUP($A653,Economática!$A$3:$AI$823,28,FALSE)=\"-\"),1/0,VLOOKUP($A653,Economática!$A$3:$AI$823,28,FALSE)))","v":""},{"$f":"IF($A653=\"\",\"\",IF(OR(VLOOKUP($A653,Economática!$A$3:$AI$823,29,FALSE)=0,VLOOKUP($A653,Economática!$A$3:$AI$823,29,FALSE)=\"-\"),1/0,VLOOKUP($A653,Economática!$A$3:$AI$823,29,FALSE)))","v":""},{"$f":"IF($A653=\"\",\"\",IF(OR(VLOOKUP($A653,Economática!$A$3:$AI$823,30,FALSE)/E653=0,VLOOKUP($A653,Economática!$A$3:$AI$823,30,FALSE)/E653=\"-\",VLOOKUP($A653,Economática!$A$3:$AI$823,30,FALSE)/E653<33.33%,VLOOKUP($A653,Economática!$A$3:$AI$823,30,FALSE)/E653>100%),1/0,VLOOKUP($A653,Economática!$A$3:$AI$823,30,FALSE)/E653))","v":""},"",{"$f":"IF($A653=\"\",\"\",IF(OR(VLOOKUP($A653,Economática!$A$3:$AI$823,25,FALSE)=0,VLOOKUP($A653,Economática!$A$3:$AI$823,25,FALSE)=\"-\"),1/0,VLOOKUP($A653,Economática!$A$3:$AI$823,25,FALSE)))","v":""},{"$f":"CONCATENATE(Economática!B631,\" \",Economática!C631)","v":" "}]
[{"$f":"IF(Economática!AG632=\"\",\"\",Economática!AG632)","v":""},{"$f":"IF($A654=\"\",\"\",VLOOKUP(VLOOKUP($A654,Economática!$A$3:$AI$823,6,FALSE),Correção!$B$16:$C$36,2,FALSE))","v":""},{"$f":"IF(Economática!B632=\"\",\"\",Economática!B632)","v":""},{"$f":"IF($A654=\"\",\"\",IF(OR(VLOOKUP($A654,Economática!$A$3:$AI$823,8,FALSE)=0,VLOOKUP($A654,Economática!$A$3:$AI$823,8,FALSE)=\"-\"),1/0,VLOOKUP($A654,Economática!$A$3:$AI$823,8,FALSE)))","v":""},{"$f":"IF(A654=\"\",\"\",IF(ISERROR(VLOOKUP(A654,Correção!$B$2:$G$13,9,FALSE)),VLOOKUP($A654,Economática!$A$3:$AI$823,9,FALSE),VLOOKUP(A654,Correção!$B$2:$G$13,9,FALSE)))","v":""},{"$f":"IF($A654=\"\",\"\",Economática!G632)","v":""},{"$f":"IF($A654=\"\",\"\",IF(OR(VLOOKUP($A654,Economática!$A$3:$AI$823,10,FALSE)=0,VLOOKUP($A654,Economática!$A$3:$AI$823,10,FALSE)=\"-\"),1/0,VLOOKUP($A654,Economática!$A$3:$AI$823,10,FALSE)))","v":""},{"$f":"IF($A654=\"\",\"\",IF(OR(VLOOKUP($A654,Economática!$A$3:$AI$823,11,FALSE)=0,VLOOKUP($A654,Economática!$A$3:$AI$823,11,FALSE)=\"-\"),1/0,VLOOKUP($A654,Economática!$A$3:$AI$823,11,FALSE)))","v":""},{"$f":"IF($A654=\"\",\"\",IF(OR(VLOOKUP($A654,Economática!$A$3:$AI$823,12,FALSE)=0,VLOOKUP($A654,Economática!$A$3:$AI$823,12,FALSE)=\"-\"),1/0,VLOOKUP($A654,Economática!$A$3:$AI$823,12,FALSE)))","v":""},{"$f":"IF($A654=\"\",\"\",IF(OR(VLOOKUP($A654,Economática!$A$3:$AI$823,13,FALSE)=0,VLOOKUP($A654,Economática!$A$3:$AI$823,13,FALSE)=\"-\"),1/0,VLOOKUP($A654,Economática!$A$3:$AI$823,13,FALSE)))","v":""},{"$f":"IF($A654=\"\",\"\",IF(OR(VLOOKUP($A654,Economática!$A$3:$AI$823,14,FALSE)=0,VLOOKUP($A654,Economática!$A$3:$AI$823,14,FALSE)=\"-\"),1/0,VLOOKUP($A654,Economática!$A$3:$AI$823,14,FALSE)))","v":""},{"$f":"IF($A654=\"\",\"\",IF(OR(VLOOKUP($A654,Economática!$A$3:$AI$823,15,FALSE)=0,VLOOKUP($A654,Economática!$A$3:$AI$823,15,FALSE)=\"-\"),1/0,VLOOKUP($A654,Economática!$A$3:$AI$823,15,FALSE)))","v":""},{"$f":"IF($A654=\"\",\"\",IF(OR(VLOOKUP($A654,Economática!$A$3:$AI$823,16,FALSE)=0,VLOOKUP($A654,Economática!$A$3:$AI$823,16,FALSE)=\"-\"),1/0,VLOOKUP($A654,Economática!$A$3:$AI$823,16,FALSE)))","v":""},{"$f":"IF($A654=\"\",\"\",IF(OR(VLOOKUP($A654,Economática!$A$3:$AI$823,17,FALSE)=0,VLOOKUP($A654,Economática!$A$3:$AI$823,17,FALSE)=\"-\"),1/0,VLOOKUP($A654,Economática!$A$3:$AI$823,17,FALSE)))","v":""},{"$f":"IF($A654=\"\",\"\",IF(OR(VLOOKUP($A654,Economática!$A$3:$AI$823,18,FALSE)=0,VLOOKUP($A654,Economática!$A$3:$AI$823,18,FALSE)=\"-\"),1/0,VLOOKUP($A654,Economática!$A$3:$AI$823,18,FALSE)))","v":""},{"$f":"IF($A654=\"\",\"\",IF(OR(VLOOKUP($A654,Economática!$A$3:$AI$823,19,FALSE)=0,VLOOKUP($A654,Economática!$A$3:$AI$823,19,FALSE)=\"-\"),1/0,VLOOKUP($A654,Economática!$A$3:$AI$823,19,FALSE)))","v":""},{"$f":"IF($A654=\"\",\"\",VLOOKUP($A654,Economática!$A$3:$AI$823,20,FALSE)/E654)","v":""},"","","",{"$f":"IF($A654=\"\",\"\",IF(OR(VLOOKUP($A654,Economática!$A$3:$AI$823,21,FALSE)/100=0,VLOOKUP($A654,Economática!$A$3:$AI$823,21,FALSE)/100=\"-\"),1/0,VLOOKUP($A654,Economática!$A$3:$AI$823,21,FALSE)/100))","v":""},{"$f":"IF($A654=\"\",\"\",IF(OR(VLOOKUP($A654,Economática!$A$3:$AI$823,22,FALSE)/100=0,VLOOKUP($A654,Economática!$A$3:$AI$823,22,FALSE)/100=\"-\"),1/0,VLOOKUP($A654,Economática!$A$3:$AI$823,22,FALSE)/100))","v":""},{"$f":"IF($A654=\"\",\"\",IF(OR(VLOOKUP($A654,Economática!$A$3:$AI$823,23,FALSE)=0,VLOOKUP($A654,Economática!$A$3:$AI$823,23,FALSE)=\"-\"),1/0,VLOOKUP($A654,Economática!$A$3:$AI$823,23,FALSE)))","v":""},{"$f":"IF($A654=\"\",\"\",IF(OR(VLOOKUP($A654,Economática!$A$3:$AI$823,24,FALSE)=0,VLOOKUP($A654,Economática!$A$3:$AI$823,24,FALSE)=\"-\"),1/0,VLOOKUP($A654,Economática!$A$3:$AI$823,24,FALSE)))","v":""},{"$f":"IF($A654=\"\",\"\",IF(OR(VLOOKUP($A654,Economática!$A$3:$AI$823,25,FALSE)=0,VLOOKUP($A654,Economática!$A$3:$AI$823,25,FALSE)=\"-\"),1/0,VLOOKUP($A654,Economática!$A$3:$AI$823,25,FALSE)))","v":""},{"$f":"IF($A654=\"\",\"\",IF(ISERROR((F654+VLOOKUP($A654,Economática!$A$3:$AI$823,26,FALSE))/Y654),(F654+VLOOKUP($A654,Economática!$A$3:$AI$823,26,FALSE))/Y654,(F654+VLOOKUP($A654,Economática!$A$3:$AI$823,26,FALSE))/Y654))","v":""},{"$f":"IF($A654=\"\",\"\",IF(OR(-VLOOKUP($A654,Economática!$A$3:$AI$823,27,FALSE)=0,-VLOOKUP($A654,Economática!$A$3:$AI$823,27,FALSE)=\"-\"),1/0,-VLOOKUP($A654,Economática!$A$3:$AI$823,27,FALSE)))","v":""},"",{"$f":"IF($A654=\"\",\"\",IF(OR(VLOOKUP($A654,Economática!$A$3:$AI$823,28,FALSE)=0,VLOOKUP($A654,Economática!$A$3:$AI$823,28,FALSE)=\"-\"),1/0,VLOOKUP($A654,Economática!$A$3:$AI$823,28,FALSE)))","v":""},{"$f":"IF($A654=\"\",\"\",IF(OR(VLOOKUP($A654,Economática!$A$3:$AI$823,29,FALSE)=0,VLOOKUP($A654,Economática!$A$3:$AI$823,29,FALSE)=\"-\"),1/0,VLOOKUP($A654,Economática!$A$3:$AI$823,29,FALSE)))","v":""},{"$f":"IF($A654=\"\",\"\",IF(OR(VLOOKUP($A654,Economática!$A$3:$AI$823,30,FALSE)/E654=0,VLOOKUP($A654,Economática!$A$3:$AI$823,30,FALSE)/E654=\"-\",VLOOKUP($A654,Economática!$A$3:$AI$823,30,FALSE)/E654<33.33%,VLOOKUP($A654,Economática!$A$3:$AI$823,30,FALSE)/E654>100%),1/0,VLOOKUP($A654,Economática!$A$3:$AI$823,30,FALSE)/E654))","v":""},"",{"$f":"IF($A654=\"\",\"\",IF(OR(VLOOKUP($A654,Economática!$A$3:$AI$823,25,FALSE)=0,VLOOKUP($A654,Economática!$A$3:$AI$823,25,FALSE)=\"-\"),1/0,VLOOKUP($A654,Economática!$A$3:$AI$823,25,FALSE)))","v":""},{"$f":"CONCATENATE(Economática!B632,\" \",Economática!C632)","v":" "}]
[{"$f":"IF(Economática!AG633=\"\",\"\",Economática!AG633)","v":""},{"$f":"IF($A655=\"\",\"\",VLOOKUP(VLOOKUP($A655,Economática!$A$3:$AI$823,6,FALSE),Correção!$B$16:$C$36,2,FALSE))","v":""},{"$f":"IF(Economática!B633=\"\",\"\",Economática!B633)","v":""},{"$f":"IF($A655=\"\",\"\",IF(OR(VLOOKUP($A655,Economática!$A$3:$AI$823,8,FALSE)=0,VLOOKUP($A655,Economática!$A$3:$AI$823,8,FALSE)=\"-\"),1/0,VLOOKUP($A655,Economática!$A$3:$AI$823,8,FALSE)))","v":""},{"$f":"IF(A655=\"\",\"\",IF(ISERROR(VLOOKUP(A655,Correção!$B$2:$G$13,9,FALSE)),VLOOKUP($A655,Economática!$A$3:$AI$823,9,FALSE),VLOOKUP(A655,Correção!$B$2:$G$13,9,FALSE)))","v":""},{"$f":"IF($A655=\"\",\"\",Economática!G633)","v":""},{"$f":"IF($A655=\"\",\"\",IF(OR(VLOOKUP($A655,Economática!$A$3:$AI$823,10,FALSE)=0,VLOOKUP($A655,Economática!$A$3:$AI$823,10,FALSE)=\"-\"),1/0,VLOOKUP($A655,Economática!$A$3:$AI$823,10,FALSE)))","v":""},{"$f":"IF($A655=\"\",\"\",IF(OR(VLOOKUP($A655,Economática!$A$3:$AI$823,11,FALSE)=0,VLOOKUP($A655,Economática!$A$3:$AI$823,11,FALSE)=\"-\"),1/0,VLOOKUP($A655,Economática!$A$3:$AI$823,11,FALSE)))","v":""},{"$f":"IF($A655=\"\",\"\",IF(OR(VLOOKUP($A655,Economática!$A$3:$AI$823,12,FALSE)=0,VLOOKUP($A655,Economática!$A$3:$AI$823,12,FALSE)=\"-\"),1/0,VLOOKUP($A655,Economática!$A$3:$AI$823,12,FALSE)))","v":""},{"$f":"IF($A655=\"\",\"\",IF(OR(VLOOKUP($A655,Economática!$A$3:$AI$823,13,FALSE)=0,VLOOKUP($A655,Economática!$A$3:$AI$823,13,FALSE)=\"-\"),1/0,VLOOKUP($A655,Economática!$A$3:$AI$823,13,FALSE)))","v":""},{"$f":"IF($A655=\"\",\"\",IF(OR(VLOOKUP($A655,Economática!$A$3:$AI$823,14,FALSE)=0,VLOOKUP($A655,Economática!$A$3:$AI$823,14,FALSE)=\"-\"),1/0,VLOOKUP($A655,Economática!$A$3:$AI$823,14,FALSE)))","v":""},{"$f":"IF($A655=\"\",\"\",IF(OR(VLOOKUP($A655,Economática!$A$3:$AI$823,15,FALSE)=0,VLOOKUP($A655,Economática!$A$3:$AI$823,15,FALSE)=\"-\"),1/0,VLOOKUP($A655,Economática!$A$3:$AI$823,15,FALSE)))","v":""},{"$f":"IF($A655=\"\",\"\",IF(OR(VLOOKUP($A655,Economática!$A$3:$AI$823,16,FALSE)=0,VLOOKUP($A655,Economática!$A$3:$AI$823,16,FALSE)=\"-\"),1/0,VLOOKUP($A655,Economática!$A$3:$AI$823,16,FALSE)))","v":""},{"$f":"IF($A655=\"\",\"\",IF(OR(VLOOKUP($A655,Economática!$A$3:$AI$823,17,FALSE)=0,VLOOKUP($A655,Economática!$A$3:$AI$823,17,FALSE)=\"-\"),1/0,VLOOKUP($A655,Economática!$A$3:$AI$823,17,FALSE)))","v":""},{"$f":"IF($A655=\"\",\"\",IF(OR(VLOOKUP($A655,Economática!$A$3:$AI$823,18,FALSE)=0,VLOOKUP($A655,Economática!$A$3:$AI$823,18,FALSE)=\"-\"),1/0,VLOOKUP($A655,Economática!$A$3:$AI$823,18,FALSE)))","v":""},{"$f":"IF($A655=\"\",\"\",IF(OR(VLOOKUP($A655,Economática!$A$3:$AI$823,19,FALSE)=0,VLOOKUP($A655,Economática!$A$3:$AI$823,19,FALSE)=\"-\"),1/0,VLOOKUP($A655,Economática!$A$3:$AI$823,19,FALSE)))","v":""},{"$f":"IF($A655=\"\",\"\",VLOOKUP($A655,Economática!$A$3:$AI$823,20,FALSE)/E655)","v":""},"","","",{"$f":"IF($A655=\"\",\"\",IF(OR(VLOOKUP($A655,Economática!$A$3:$AI$823,21,FALSE)/100=0,VLOOKUP($A655,Economática!$A$3:$AI$823,21,FALSE)/100=\"-\"),1/0,VLOOKUP($A655,Economática!$A$3:$AI$823,21,FALSE)/100))","v":""},{"$f":"IF($A655=\"\",\"\",IF(OR(VLOOKUP($A655,Economática!$A$3:$AI$823,22,FALSE)/100=0,VLOOKUP($A655,Economática!$A$3:$AI$823,22,FALSE)/100=\"-\"),1/0,VLOOKUP($A655,Economática!$A$3:$AI$823,22,FALSE)/100))","v":""},{"$f":"IF($A655=\"\",\"\",IF(OR(VLOOKUP($A655,Economática!$A$3:$AI$823,23,FALSE)=0,VLOOKUP($A655,Economática!$A$3:$AI$823,23,FALSE)=\"-\"),1/0,VLOOKUP($A655,Economática!$A$3:$AI$823,23,FALSE)))","v":""},{"$f":"IF($A655=\"\",\"\",IF(OR(VLOOKUP($A655,Economática!$A$3:$AI$823,24,FALSE)=0,VLOOKUP($A655,Economática!$A$3:$AI$823,24,FALSE)=\"-\"),1/0,VLOOKUP($A655,Economática!$A$3:$AI$823,24,FALSE)))","v":""},{"$f":"IF($A655=\"\",\"\",IF(OR(VLOOKUP($A655,Economática!$A$3:$AI$823,25,FALSE)=0,VLOOKUP($A655,Economática!$A$3:$AI$823,25,FALSE)=\"-\"),1/0,VLOOKUP($A655,Economática!$A$3:$AI$823,25,FALSE)))","v":""},{"$f":"IF($A655=\"\",\"\",IF(ISERROR((F655+VLOOKUP($A655,Economática!$A$3:$AI$823,26,FALSE))/Y655),(F655+VLOOKUP($A655,Economática!$A$3:$AI$823,26,FALSE))/Y655,(F655+VLOOKUP($A655,Economática!$A$3:$AI$823,26,FALSE))/Y655))","v":""},{"$f":"IF($A655=\"\",\"\",IF(OR(-VLOOKUP($A655,Economática!$A$3:$AI$823,27,FALSE)=0,-VLOOKUP($A655,Economática!$A$3:$AI$823,27,FALSE)=\"-\"),1/0,-VLOOKUP($A655,Economática!$A$3:$AI$823,27,FALSE)))","v":""},"",{"$f":"IF($A655=\"\",\"\",IF(OR(VLOOKUP($A655,Economática!$A$3:$AI$823,28,FALSE)=0,VLOOKUP($A655,Economática!$A$3:$AI$823,28,FALSE)=\"-\"),1/0,VLOOKUP($A655,Economática!$A$3:$AI$823,28,FALSE)))","v":""},{"$f":"IF($A655=\"\",\"\",IF(OR(VLOOKUP($A655,Economática!$A$3:$AI$823,29,FALSE)=0,VLOOKUP($A655,Economática!$A$3:$AI$823,29,FALSE)=\"-\"),1/0,VLOOKUP($A655,Economática!$A$3:$AI$823,29,FALSE)))","v":""},{"$f":"IF($A655=\"\",\"\",IF(OR(VLOOKUP($A655,Economática!$A$3:$AI$823,30,FALSE)/E655=0,VLOOKUP($A655,Economática!$A$3:$AI$823,30,FALSE)/E655=\"-\",VLOOKUP($A655,Economática!$A$3:$AI$823,30,FALSE)/E655<33.33%,VLOOKUP($A655,Economática!$A$3:$AI$823,30,FALSE)/E655>100%),1/0,VLOOKUP($A655,Economática!$A$3:$AI$823,30,FALSE)/E655))","v":""},"",{"$f":"IF($A655=\"\",\"\",IF(OR(VLOOKUP($A655,Economática!$A$3:$AI$823,25,FALSE)=0,VLOOKUP($A655,Economática!$A$3:$AI$823,25,FALSE)=\"-\"),1/0,VLOOKUP($A655,Economática!$A$3:$AI$823,25,FALSE)))","v":""},{"$f":"CONCATENATE(Economática!B633,\" \",Economática!C633)","v":" "}]
[{"$f":"IF(Economática!AG634=\"\",\"\",Economática!AG634)","v":""},{"$f":"IF($A656=\"\",\"\",VLOOKUP(VLOOKUP($A656,Economática!$A$3:$AI$823,6,FALSE),Correção!$B$16:$C$36,2,FALSE))","v":""},{"$f":"IF(Economática!B634=\"\",\"\",Economática!B634)","v":""},{"$f":"IF($A656=\"\",\"\",IF(OR(VLOOKUP($A656,Economática!$A$3:$AI$823,8,FALSE)=0,VLOOKUP($A656,Economática!$A$3:$AI$823,8,FALSE)=\"-\"),1/0,VLOOKUP($A656,Economática!$A$3:$AI$823,8,FALSE)))","v":""},{"$f":"IF(A656=\"\",\"\",IF(ISERROR(VLOOKUP(A656,Correção!$B$2:$G$13,9,FALSE)),VLOOKUP($A656,Economática!$A$3:$AI$823,9,FALSE),VLOOKUP(A656,Correção!$B$2:$G$13,9,FALSE)))","v":""},{"$f":"IF($A656=\"\",\"\",Economática!G634)","v":""},{"$f":"IF($A656=\"\",\"\",IF(OR(VLOOKUP($A656,Economática!$A$3:$AI$823,10,FALSE)=0,VLOOKUP($A656,Economática!$A$3:$AI$823,10,FALSE)=\"-\"),1/0,VLOOKUP($A656,Economática!$A$3:$AI$823,10,FALSE)))","v":""},{"$f":"IF($A656=\"\",\"\",IF(OR(VLOOKUP($A656,Economática!$A$3:$AI$823,11,FALSE)=0,VLOOKUP($A656,Economática!$A$3:$AI$823,11,FALSE)=\"-\"),1/0,VLOOKUP($A656,Economática!$A$3:$AI$823,11,FALSE)))","v":""},{"$f":"IF($A656=\"\",\"\",IF(OR(VLOOKUP($A656,Economática!$A$3:$AI$823,12,FALSE)=0,VLOOKUP($A656,Economática!$A$3:$AI$823,12,FALSE)=\"-\"),1/0,VLOOKUP($A656,Economática!$A$3:$AI$823,12,FALSE)))","v":""},{"$f":"IF($A656=\"\",\"\",IF(OR(VLOOKUP($A656,Economática!$A$3:$AI$823,13,FALSE)=0,VLOOKUP($A656,Economática!$A$3:$AI$823,13,FALSE)=\"-\"),1/0,VLOOKUP($A656,Economática!$A$3:$AI$823,13,FALSE)))","v":""},{"$f":"IF($A656=\"\",\"\",IF(OR(VLOOKUP($A656,Economática!$A$3:$AI$823,14,FALSE)=0,VLOOKUP($A656,Economática!$A$3:$AI$823,14,FALSE)=\"-\"),1/0,VLOOKUP($A656,Economática!$A$3:$AI$823,14,FALSE)))","v":""},{"$f":"IF($A656=\"\",\"\",IF(OR(VLOOKUP($A656,Economática!$A$3:$AI$823,15,FALSE)=0,VLOOKUP($A656,Economática!$A$3:$AI$823,15,FALSE)=\"-\"),1/0,VLOOKUP($A656,Economática!$A$3:$AI$823,15,FALSE)))","v":""},{"$f":"IF($A656=\"\",\"\",IF(OR(VLOOKUP($A656,Economática!$A$3:$AI$823,16,FALSE)=0,VLOOKUP($A656,Economática!$A$3:$AI$823,16,FALSE)=\"-\"),1/0,VLOOKUP($A656,Economática!$A$3:$AI$823,16,FALSE)))","v":""},{"$f":"IF($A656=\"\",\"\",IF(OR(VLOOKUP($A656,Economática!$A$3:$AI$823,17,FALSE)=0,VLOOKUP($A656,Economática!$A$3:$AI$823,17,FALSE)=\"-\"),1/0,VLOOKUP($A656,Economática!$A$3:$AI$823,17,FALSE)))","v":""},{"$f":"IF($A656=\"\",\"\",IF(OR(VLOOKUP($A656,Economática!$A$3:$AI$823,18,FALSE)=0,VLOOKUP($A656,Economática!$A$3:$AI$823,18,FALSE)=\"-\"),1/0,VLOOKUP($A656,Economática!$A$3:$AI$823,18,FALSE)))","v":""},{"$f":"IF($A656=\"\",\"\",IF(OR(VLOOKUP($A656,Economática!$A$3:$AI$823,19,FALSE)=0,VLOOKUP($A656,Economática!$A$3:$AI$823,19,FALSE)=\"-\"),1/0,VLOOKUP($A656,Economática!$A$3:$AI$823,19,FALSE)))","v":""},{"$f":"IF($A656=\"\",\"\",VLOOKUP($A656,Economática!$A$3:$AI$823,20,FALSE)/E656)","v":""},"","","",{"$f":"IF($A656=\"\",\"\",IF(OR(VLOOKUP($A656,Economática!$A$3:$AI$823,21,FALSE)/100=0,VLOOKUP($A656,Economática!$A$3:$AI$823,21,FALSE)/100=\"-\"),1/0,VLOOKUP($A656,Economática!$A$3:$AI$823,21,FALSE)/100))","v":""},{"$f":"IF($A656=\"\",\"\",IF(OR(VLOOKUP($A656,Economática!$A$3:$AI$823,22,FALSE)/100=0,VLOOKUP($A656,Economática!$A$3:$AI$823,22,FALSE)/100=\"-\"),1/0,VLOOKUP($A656,Economática!$A$3:$AI$823,22,FALSE)/100))","v":""},{"$f":"IF($A656=\"\",\"\",IF(OR(VLOOKUP($A656,Economática!$A$3:$AI$823,23,FALSE)=0,VLOOKUP($A656,Economática!$A$3:$AI$823,23,FALSE)=\"-\"),1/0,VLOOKUP($A656,Economática!$A$3:$AI$823,23,FALSE)))","v":""},{"$f":"IF($A656=\"\",\"\",IF(OR(VLOOKUP($A656,Economática!$A$3:$AI$823,24,FALSE)=0,VLOOKUP($A656,Economática!$A$3:$AI$823,24,FALSE)=\"-\"),1/0,VLOOKUP($A656,Economática!$A$3:$AI$823,24,FALSE)))","v":""},{"$f":"IF($A656=\"\",\"\",IF(OR(VLOOKUP($A656,Economática!$A$3:$AI$823,25,FALSE)=0,VLOOKUP($A656,Economática!$A$3:$AI$823,25,FALSE)=\"-\"),1/0,VLOOKUP($A656,Economática!$A$3:$AI$823,25,FALSE)))","v":""},{"$f":"IF($A656=\"\",\"\",IF(ISERROR((F656+VLOOKUP($A656,Economática!$A$3:$AI$823,26,FALSE))/Y656),(F656+VLOOKUP($A656,Economática!$A$3:$AI$823,26,FALSE))/Y656,(F656+VLOOKUP($A656,Economática!$A$3:$AI$823,26,FALSE))/Y656))","v":""},{"$f":"IF($A656=\"\",\"\",IF(OR(-VLOOKUP($A656,Economática!$A$3:$AI$823,27,FALSE)=0,-VLOOKUP($A656,Economática!$A$3:$AI$823,27,FALSE)=\"-\"),1/0,-VLOOKUP($A656,Economática!$A$3:$AI$823,27,FALSE)))","v":""},"",{"$f":"IF($A656=\"\",\"\",IF(OR(VLOOKUP($A656,Economática!$A$3:$AI$823,28,FALSE)=0,VLOOKUP($A656,Economática!$A$3:$AI$823,28,FALSE)=\"-\"),1/0,VLOOKUP($A656,Economática!$A$3:$AI$823,28,FALSE)))","v":""},{"$f":"IF($A656=\"\",\"\",IF(OR(VLOOKUP($A656,Economática!$A$3:$AI$823,29,FALSE)=0,VLOOKUP($A656,Economática!$A$3:$AI$823,29,FALSE)=\"-\"),1/0,VLOOKUP($A656,Economática!$A$3:$AI$823,29,FALSE)))","v":""},{"$f":"IF($A656=\"\",\"\",IF(OR(VLOOKUP($A656,Economática!$A$3:$AI$823,30,FALSE)/E656=0,VLOOKUP($A656,Economática!$A$3:$AI$823,30,FALSE)/E656=\"-\",VLOOKUP($A656,Economática!$A$3:$AI$823,30,FALSE)/E656<33.33%,VLOOKUP($A656,Economática!$A$3:$AI$823,30,FALSE)/E656>100%),1/0,VLOOKUP($A656,Economática!$A$3:$AI$823,30,FALSE)/E656))","v":""},"",{"$f":"IF($A656=\"\",\"\",IF(OR(VLOOKUP($A656,Economática!$A$3:$AI$823,25,FALSE)=0,VLOOKUP($A656,Economática!$A$3:$AI$823,25,FALSE)=\"-\"),1/0,VLOOKUP($A656,Economática!$A$3:$AI$823,25,FALSE)))","v":""},{"$f":"CONCATENATE(Economática!B634,\" \",Economática!C634)","v":" "}]
[{"$f":"IF(Economática!AG635=\"\",\"\",Economática!AG635)","v":""},{"$f":"IF($A657=\"\",\"\",VLOOKUP(VLOOKUP($A657,Economática!$A$3:$AI$823,6,FALSE),Correção!$B$16:$C$36,2,FALSE))","v":""},{"$f":"IF(Economática!B635=\"\",\"\",Economática!B635)","v":""},{"$f":"IF($A657=\"\",\"\",IF(OR(VLOOKUP($A657,Economática!$A$3:$AI$823,8,FALSE)=0,VLOOKUP($A657,Economática!$A$3:$AI$823,8,FALSE)=\"-\"),1/0,VLOOKUP($A657,Economática!$A$3:$AI$823,8,FALSE)))","v":""},{"$f":"IF(A657=\"\",\"\",IF(ISERROR(VLOOKUP(A657,Correção!$B$2:$G$13,9,FALSE)),VLOOKUP($A657,Economática!$A$3:$AI$823,9,FALSE),VLOOKUP(A657,Correção!$B$2:$G$13,9,FALSE)))","v":""},{"$f":"IF($A657=\"\",\"\",Economática!G635)","v":""},{"$f":"IF($A657=\"\",\"\",IF(OR(VLOOKUP($A657,Economática!$A$3:$AI$823,10,FALSE)=0,VLOOKUP($A657,Economática!$A$3:$AI$823,10,FALSE)=\"-\"),1/0,VLOOKUP($A657,Economática!$A$3:$AI$823,10,FALSE)))","v":""},{"$f":"IF($A657=\"\",\"\",IF(OR(VLOOKUP($A657,Economática!$A$3:$AI$823,11,FALSE)=0,VLOOKUP($A657,Economática!$A$3:$AI$823,11,FALSE)=\"-\"),1/0,VLOOKUP($A657,Economática!$A$3:$AI$823,11,FALSE)))","v":""},{"$f":"IF($A657=\"\",\"\",IF(OR(VLOOKUP($A657,Economática!$A$3:$AI$823,12,FALSE)=0,VLOOKUP($A657,Economática!$A$3:$AI$823,12,FALSE)=\"-\"),1/0,VLOOKUP($A657,Economática!$A$3:$AI$823,12,FALSE)))","v":""},{"$f":"IF($A657=\"\",\"\",IF(OR(VLOOKUP($A657,Economática!$A$3:$AI$823,13,FALSE)=0,VLOOKUP($A657,Economática!$A$3:$AI$823,13,FALSE)=\"-\"),1/0,VLOOKUP($A657,Economática!$A$3:$AI$823,13,FALSE)))","v":""},{"$f":"IF($A657=\"\",\"\",IF(OR(VLOOKUP($A657,Economática!$A$3:$AI$823,14,FALSE)=0,VLOOKUP($A657,Economática!$A$3:$AI$823,14,FALSE)=\"-\"),1/0,VLOOKUP($A657,Economática!$A$3:$AI$823,14,FALSE)))","v":""},{"$f":"IF($A657=\"\",\"\",IF(OR(VLOOKUP($A657,Economática!$A$3:$AI$823,15,FALSE)=0,VLOOKUP($A657,Economática!$A$3:$AI$823,15,FALSE)=\"-\"),1/0,VLOOKUP($A657,Economática!$A$3:$AI$823,15,FALSE)))","v":""},{"$f":"IF($A657=\"\",\"\",IF(OR(VLOOKUP($A657,Economática!$A$3:$AI$823,16,FALSE)=0,VLOOKUP($A657,Economática!$A$3:$AI$823,16,FALSE)=\"-\"),1/0,VLOOKUP($A657,Economática!$A$3:$AI$823,16,FALSE)))","v":""},{"$f":"IF($A657=\"\",\"\",IF(OR(VLOOKUP($A657,Economática!$A$3:$AI$823,17,FALSE)=0,VLOOKUP($A657,Economática!$A$3:$AI$823,17,FALSE)=\"-\"),1/0,VLOOKUP($A657,Economática!$A$3:$AI$823,17,FALSE)))","v":""},{"$f":"IF($A657=\"\",\"\",IF(OR(VLOOKUP($A657,Economática!$A$3:$AI$823,18,FALSE)=0,VLOOKUP($A657,Economática!$A$3:$AI$823,18,FALSE)=\"-\"),1/0,VLOOKUP($A657,Economática!$A$3:$AI$823,18,FALSE)))","v":""},{"$f":"IF($A657=\"\",\"\",IF(OR(VLOOKUP($A657,Economática!$A$3:$AI$823,19,FALSE)=0,VLOOKUP($A657,Economática!$A$3:$AI$823,19,FALSE)=\"-\"),1/0,VLOOKUP($A657,Economática!$A$3:$AI$823,19,FALSE)))","v":""},{"$f":"IF($A657=\"\",\"\",VLOOKUP($A657,Economática!$A$3:$AI$823,20,FALSE)/E657)","v":""},"","","",{"$f":"IF($A657=\"\",\"\",IF(OR(VLOOKUP($A657,Economática!$A$3:$AI$823,21,FALSE)/100=0,VLOOKUP($A657,Economática!$A$3:$AI$823,21,FALSE)/100=\"-\"),1/0,VLOOKUP($A657,Economática!$A$3:$AI$823,21,FALSE)/100))","v":""},{"$f":"IF($A657=\"\",\"\",IF(OR(VLOOKUP($A657,Economática!$A$3:$AI$823,22,FALSE)/100=0,VLOOKUP($A657,Economática!$A$3:$AI$823,22,FALSE)/100=\"-\"),1/0,VLOOKUP($A657,Economática!$A$3:$AI$823,22,FALSE)/100))","v":""},{"$f":"IF($A657=\"\",\"\",IF(OR(VLOOKUP($A657,Economática!$A$3:$AI$823,23,FALSE)=0,VLOOKUP($A657,Economática!$A$3:$AI$823,23,FALSE)=\"-\"),1/0,VLOOKUP($A657,Economática!$A$3:$AI$823,23,FALSE)))","v":""},{"$f":"IF($A657=\"\",\"\",IF(OR(VLOOKUP($A657,Economática!$A$3:$AI$823,24,FALSE)=0,VLOOKUP($A657,Economática!$A$3:$AI$823,24,FALSE)=\"-\"),1/0,VLOOKUP($A657,Economática!$A$3:$AI$823,24,FALSE)))","v":""},{"$f":"IF($A657=\"\",\"\",IF(OR(VLOOKUP($A657,Economática!$A$3:$AI$823,25,FALSE)=0,VLOOKUP($A657,Economática!$A$3:$AI$823,25,FALSE)=\"-\"),1/0,VLOOKUP($A657,Economática!$A$3:$AI$823,25,FALSE)))","v":""},{"$f":"IF($A657=\"\",\"\",IF(ISERROR((F657+VLOOKUP($A657,Economática!$A$3:$AI$823,26,FALSE))/Y657),(F657+VLOOKUP($A657,Economática!$A$3:$AI$823,26,FALSE))/Y657,(F657+VLOOKUP($A657,Economática!$A$3:$AI$823,26,FALSE))/Y657))","v":""},{"$f":"IF($A657=\"\",\"\",IF(OR(-VLOOKUP($A657,Economática!$A$3:$AI$823,27,FALSE)=0,-VLOOKUP($A657,Economática!$A$3:$AI$823,27,FALSE)=\"-\"),1/0,-VLOOKUP($A657,Economática!$A$3:$AI$823,27,FALSE)))","v":""},"",{"$f":"IF($A657=\"\",\"\",IF(OR(VLOOKUP($A657,Economática!$A$3:$AI$823,28,FALSE)=0,VLOOKUP($A657,Economática!$A$3:$AI$823,28,FALSE)=\"-\"),1/0,VLOOKUP($A657,Economática!$A$3:$AI$823,28,FALSE)))","v":""},{"$f":"IF($A657=\"\",\"\",IF(OR(VLOOKUP($A657,Economática!$A$3:$AI$823,29,FALSE)=0,VLOOKUP($A657,Economática!$A$3:$AI$823,29,FALSE)=\"-\"),1/0,VLOOKUP($A657,Economática!$A$3:$AI$823,29,FALSE)))","v":""},{"$f":"IF($A657=\"\",\"\",IF(OR(VLOOKUP($A657,Economática!$A$3:$AI$823,30,FALSE)/E657=0,VLOOKUP($A657,Economática!$A$3:$AI$823,30,FALSE)/E657=\"-\",VLOOKUP($A657,Economática!$A$3:$AI$823,30,FALSE)/E657<33.33%,VLOOKUP($A657,Economática!$A$3:$AI$823,30,FALSE)/E657>100%),1/0,VLOOKUP($A657,Economática!$A$3:$AI$823,30,FALSE)/E657))","v":""},"",{"$f":"IF($A657=\"\",\"\",IF(OR(VLOOKUP($A657,Economática!$A$3:$AI$823,25,FALSE)=0,VLOOKUP($A657,Economática!$A$3:$AI$823,25,FALSE)=\"-\"),1/0,VLOOKUP($A657,Economática!$A$3:$AI$823,25,FALSE)))","v":""},{"$f":"CONCATENATE(Economática!B635,\" \",Economática!C635)","v":" "}]
[{"$f":"IF(Economática!AG636=\"\",\"\",Economática!AG636)","v":""},{"$f":"IF($A658=\"\",\"\",VLOOKUP(VLOOKUP($A658,Economática!$A$3:$AI$823,6,FALSE),Correção!$B$16:$C$36,2,FALSE))","v":""},{"$f":"IF(Economática!B636=\"\",\"\",Economática!B636)","v":""},{"$f":"IF($A658=\"\",\"\",IF(OR(VLOOKUP($A658,Economática!$A$3:$AI$823,8,FALSE)=0,VLOOKUP($A658,Economática!$A$3:$AI$823,8,FALSE)=\"-\"),1/0,VLOOKUP($A658,Economática!$A$3:$AI$823,8,FALSE)))","v":""},{"$f":"IF(A658=\"\",\"\",IF(ISERROR(VLOOKUP(A658,Correção!$B$2:$G$13,9,FALSE)),VLOOKUP($A658,Economática!$A$3:$AI$823,9,FALSE),VLOOKUP(A658,Correção!$B$2:$G$13,9,FALSE)))","v":""},{"$f":"IF($A658=\"\",\"\",Economática!G636)","v":""},{"$f":"IF($A658=\"\",\"\",IF(OR(VLOOKUP($A658,Economática!$A$3:$AI$823,10,FALSE)=0,VLOOKUP($A658,Economática!$A$3:$AI$823,10,FALSE)=\"-\"),1/0,VLOOKUP($A658,Economática!$A$3:$AI$823,10,FALSE)))","v":""},{"$f":"IF($A658=\"\",\"\",IF(OR(VLOOKUP($A658,Economática!$A$3:$AI$823,11,FALSE)=0,VLOOKUP($A658,Economática!$A$3:$AI$823,11,FALSE)=\"-\"),1/0,VLOOKUP($A658,Economática!$A$3:$AI$823,11,FALSE)))","v":""},{"$f":"IF($A658=\"\",\"\",IF(OR(VLOOKUP($A658,Economática!$A$3:$AI$823,12,FALSE)=0,VLOOKUP($A658,Economática!$A$3:$AI$823,12,FALSE)=\"-\"),1/0,VLOOKUP($A658,Economática!$A$3:$AI$823,12,FALSE)))","v":""},{"$f":"IF($A658=\"\",\"\",IF(OR(VLOOKUP($A658,Economática!$A$3:$AI$823,13,FALSE)=0,VLOOKUP($A658,Economática!$A$3:$AI$823,13,FALSE)=\"-\"),1/0,VLOOKUP($A658,Economática!$A$3:$AI$823,13,FALSE)))","v":""},{"$f":"IF($A658=\"\",\"\",IF(OR(VLOOKUP($A658,Economática!$A$3:$AI$823,14,FALSE)=0,VLOOKUP($A658,Economática!$A$3:$AI$823,14,FALSE)=\"-\"),1/0,VLOOKUP($A658,Economática!$A$3:$AI$823,14,FALSE)))","v":""},{"$f":"IF($A658=\"\",\"\",IF(OR(VLOOKUP($A658,Economática!$A$3:$AI$823,15,FALSE)=0,VLOOKUP($A658,Economática!$A$3:$AI$823,15,FALSE)=\"-\"),1/0,VLOOKUP($A658,Economática!$A$3:$AI$823,15,FALSE)))","v":""},{"$f":"IF($A658=\"\",\"\",IF(OR(VLOOKUP($A658,Economática!$A$3:$AI$823,16,FALSE)=0,VLOOKUP($A658,Economática!$A$3:$AI$823,16,FALSE)=\"-\"),1/0,VLOOKUP($A658,Economática!$A$3:$AI$823,16,FALSE)))","v":""},{"$f":"IF($A658=\"\",\"\",IF(OR(VLOOKUP($A658,Economática!$A$3:$AI$823,17,FALSE)=0,VLOOKUP($A658,Economática!$A$3:$AI$823,17,FALSE)=\"-\"),1/0,VLOOKUP($A658,Economática!$A$3:$AI$823,17,FALSE)))","v":""},{"$f":"IF($A658=\"\",\"\",IF(OR(VLOOKUP($A658,Economática!$A$3:$AI$823,18,FALSE)=0,VLOOKUP($A658,Economática!$A$3:$AI$823,18,FALSE)=\"-\"),1/0,VLOOKUP($A658,Economática!$A$3:$AI$823,18,FALSE)))","v":""},{"$f":"IF($A658=\"\",\"\",IF(OR(VLOOKUP($A658,Economática!$A$3:$AI$823,19,FALSE)=0,VLOOKUP($A658,Economática!$A$3:$AI$823,19,FALSE)=\"-\"),1/0,VLOOKUP($A658,Economática!$A$3:$AI$823,19,FALSE)))","v":""},{"$f":"IF($A658=\"\",\"\",VLOOKUP($A658,Economática!$A$3:$AI$823,20,FALSE)/E658)","v":""},"","","",{"$f":"IF($A658=\"\",\"\",IF(OR(VLOOKUP($A658,Economática!$A$3:$AI$823,21,FALSE)/100=0,VLOOKUP($A658,Economática!$A$3:$AI$823,21,FALSE)/100=\"-\"),1/0,VLOOKUP($A658,Economática!$A$3:$AI$823,21,FALSE)/100))","v":""},{"$f":"IF($A658=\"\",\"\",IF(OR(VLOOKUP($A658,Economática!$A$3:$AI$823,22,FALSE)/100=0,VLOOKUP($A658,Economática!$A$3:$AI$823,22,FALSE)/100=\"-\"),1/0,VLOOKUP($A658,Economática!$A$3:$AI$823,22,FALSE)/100))","v":""},{"$f":"IF($A658=\"\",\"\",IF(OR(VLOOKUP($A658,Economática!$A$3:$AI$823,23,FALSE)=0,VLOOKUP($A658,Economática!$A$3:$AI$823,23,FALSE)=\"-\"),1/0,VLOOKUP($A658,Economática!$A$3:$AI$823,23,FALSE)))","v":""},{"$f":"IF($A658=\"\",\"\",IF(OR(VLOOKUP($A658,Economática!$A$3:$AI$823,24,FALSE)=0,VLOOKUP($A658,Economática!$A$3:$AI$823,24,FALSE)=\"-\"),1/0,VLOOKUP($A658,Economática!$A$3:$AI$823,24,FALSE)))","v":""},{"$f":"IF($A658=\"\",\"\",IF(OR(VLOOKUP($A658,Economática!$A$3:$AI$823,25,FALSE)=0,VLOOKUP($A658,Economática!$A$3:$AI$823,25,FALSE)=\"-\"),1/0,VLOOKUP($A658,Economática!$A$3:$AI$823,25,FALSE)))","v":""},{"$f":"IF($A658=\"\",\"\",IF(ISERROR((F658+VLOOKUP($A658,Economática!$A$3:$AI$823,26,FALSE))/Y658),(F658+VLOOKUP($A658,Economática!$A$3:$AI$823,26,FALSE))/Y658,(F658+VLOOKUP($A658,Economática!$A$3:$AI$823,26,FALSE))/Y658))","v":""},{"$f":"IF($A658=\"\",\"\",IF(OR(-VLOOKUP($A658,Economática!$A$3:$AI$823,27,FALSE)=0,-VLOOKUP($A658,Economática!$A$3:$AI$823,27,FALSE)=\"-\"),1/0,-VLOOKUP($A658,Economática!$A$3:$AI$823,27,FALSE)))","v":""},"",{"$f":"IF($A658=\"\",\"\",IF(OR(VLOOKUP($A658,Economática!$A$3:$AI$823,28,FALSE)=0,VLOOKUP($A658,Economática!$A$3:$AI$823,28,FALSE)=\"-\"),1/0,VLOOKUP($A658,Economática!$A$3:$AI$823,28,FALSE)))","v":""},{"$f":"IF($A658=\"\",\"\",IF(OR(VLOOKUP($A658,Economática!$A$3:$AI$823,29,FALSE)=0,VLOOKUP($A658,Economática!$A$3:$AI$823,29,FALSE)=\"-\"),1/0,VLOOKUP($A658,Economática!$A$3:$AI$823,29,FALSE)))","v":""},{"$f":"IF($A658=\"\",\"\",IF(OR(VLOOKUP($A658,Economática!$A$3:$AI$823,30,FALSE)/E658=0,VLOOKUP($A658,Economática!$A$3:$AI$823,30,FALSE)/E658=\"-\",VLOOKUP($A658,Economática!$A$3:$AI$823,30,FALSE)/E658<33.33%,VLOOKUP($A658,Economática!$A$3:$AI$823,30,FALSE)/E658>100%),1/0,VLOOKUP($A658,Economática!$A$3:$AI$823,30,FALSE)/E658))","v":""},"",{"$f":"IF($A658=\"\",\"\",IF(OR(VLOOKUP($A658,Economática!$A$3:$AI$823,25,FALSE)=0,VLOOKUP($A658,Economática!$A$3:$AI$823,25,FALSE)=\"-\"),1/0,VLOOKUP($A658,Economática!$A$3:$AI$823,25,FALSE)))","v":""},{"$f":"CONCATENATE(Economática!B636,\" \",Economática!C636)","v":" "}]
[{"$f":"IF(Economática!AG637=\"\",\"\",Economática!AG637)","v":""},{"$f":"IF($A659=\"\",\"\",VLOOKUP(VLOOKUP($A659,Economática!$A$3:$AI$823,6,FALSE),Correção!$B$16:$C$36,2,FALSE))","v":""},{"$f":"IF(Economática!B637=\"\",\"\",Economática!B637)","v":""},{"$f":"IF($A659=\"\",\"\",IF(OR(VLOOKUP($A659,Economática!$A$3:$AI$823,8,FALSE)=0,VLOOKUP($A659,Economática!$A$3:$AI$823,8,FALSE)=\"-\"),1/0,VLOOKUP($A659,Economática!$A$3:$AI$823,8,FALSE)))","v":""},{"$f":"IF(A659=\"\",\"\",IF(ISERROR(VLOOKUP(A659,Correção!$B$2:$G$13,9,FALSE)),VLOOKUP($A659,Economática!$A$3:$AI$823,9,FALSE),VLOOKUP(A659,Correção!$B$2:$G$13,9,FALSE)))","v":""},{"$f":"IF($A659=\"\",\"\",Economática!G637)","v":""},{"$f":"IF($A659=\"\",\"\",IF(OR(VLOOKUP($A659,Economática!$A$3:$AI$823,10,FALSE)=0,VLOOKUP($A659,Economática!$A$3:$AI$823,10,FALSE)=\"-\"),1/0,VLOOKUP($A659,Economática!$A$3:$AI$823,10,FALSE)))","v":""},{"$f":"IF($A659=\"\",\"\",IF(OR(VLOOKUP($A659,Economática!$A$3:$AI$823,11,FALSE)=0,VLOOKUP($A659,Economática!$A$3:$AI$823,11,FALSE)=\"-\"),1/0,VLOOKUP($A659,Economática!$A$3:$AI$823,11,FALSE)))","v":""},{"$f":"IF($A659=\"\",\"\",IF(OR(VLOOKUP($A659,Economática!$A$3:$AI$823,12,FALSE)=0,VLOOKUP($A659,Economática!$A$3:$AI$823,12,FALSE)=\"-\"),1/0,VLOOKUP($A659,Economática!$A$3:$AI$823,12,FALSE)))","v":""},{"$f":"IF($A659=\"\",\"\",IF(OR(VLOOKUP($A659,Economática!$A$3:$AI$823,13,FALSE)=0,VLOOKUP($A659,Economática!$A$3:$AI$823,13,FALSE)=\"-\"),1/0,VLOOKUP($A659,Economática!$A$3:$AI$823,13,FALSE)))","v":""},{"$f":"IF($A659=\"\",\"\",IF(OR(VLOOKUP($A659,Economática!$A$3:$AI$823,14,FALSE)=0,VLOOKUP($A659,Economática!$A$3:$AI$823,14,FALSE)=\"-\"),1/0,VLOOKUP($A659,Economática!$A$3:$AI$823,14,FALSE)))","v":""},{"$f":"IF($A659=\"\",\"\",IF(OR(VLOOKUP($A659,Economática!$A$3:$AI$823,15,FALSE)=0,VLOOKUP($A659,Economática!$A$3:$AI$823,15,FALSE)=\"-\"),1/0,VLOOKUP($A659,Economática!$A$3:$AI$823,15,FALSE)))","v":""},{"$f":"IF($A659=\"\",\"\",IF(OR(VLOOKUP($A659,Economática!$A$3:$AI$823,16,FALSE)=0,VLOOKUP($A659,Economática!$A$3:$AI$823,16,FALSE)=\"-\"),1/0,VLOOKUP($A659,Economática!$A$3:$AI$823,16,FALSE)))","v":""},{"$f":"IF($A659=\"\",\"\",IF(OR(VLOOKUP($A659,Economática!$A$3:$AI$823,17,FALSE)=0,VLOOKUP($A659,Economática!$A$3:$AI$823,17,FALSE)=\"-\"),1/0,VLOOKUP($A659,Economática!$A$3:$AI$823,17,FALSE)))","v":""},{"$f":"IF($A659=\"\",\"\",IF(OR(VLOOKUP($A659,Economática!$A$3:$AI$823,18,FALSE)=0,VLOOKUP($A659,Economática!$A$3:$AI$823,18,FALSE)=\"-\"),1/0,VLOOKUP($A659,Economática!$A$3:$AI$823,18,FALSE)))","v":""},{"$f":"IF($A659=\"\",\"\",IF(OR(VLOOKUP($A659,Economática!$A$3:$AI$823,19,FALSE)=0,VLOOKUP($A659,Economática!$A$3:$AI$823,19,FALSE)=\"-\"),1/0,VLOOKUP($A659,Economática!$A$3:$AI$823,19,FALSE)))","v":""},{"$f":"IF($A659=\"\",\"\",VLOOKUP($A659,Economática!$A$3:$AI$823,20,FALSE)/E659)","v":""},"","","",{"$f":"IF($A659=\"\",\"\",IF(OR(VLOOKUP($A659,Economática!$A$3:$AI$823,21,FALSE)/100=0,VLOOKUP($A659,Economática!$A$3:$AI$823,21,FALSE)/100=\"-\"),1/0,VLOOKUP($A659,Economática!$A$3:$AI$823,21,FALSE)/100))","v":""},{"$f":"IF($A659=\"\",\"\",IF(OR(VLOOKUP($A659,Economática!$A$3:$AI$823,22,FALSE)/100=0,VLOOKUP($A659,Economática!$A$3:$AI$823,22,FALSE)/100=\"-\"),1/0,VLOOKUP($A659,Economática!$A$3:$AI$823,22,FALSE)/100))","v":""},{"$f":"IF($A659=\"\",\"\",IF(OR(VLOOKUP($A659,Economática!$A$3:$AI$823,23,FALSE)=0,VLOOKUP($A659,Economática!$A$3:$AI$823,23,FALSE)=\"-\"),1/0,VLOOKUP($A659,Economática!$A$3:$AI$823,23,FALSE)))","v":""},{"$f":"IF($A659=\"\",\"\",IF(OR(VLOOKUP($A659,Economática!$A$3:$AI$823,24,FALSE)=0,VLOOKUP($A659,Economática!$A$3:$AI$823,24,FALSE)=\"-\"),1/0,VLOOKUP($A659,Economática!$A$3:$AI$823,24,FALSE)))","v":""},{"$f":"IF($A659=\"\",\"\",IF(OR(VLOOKUP($A659,Economática!$A$3:$AI$823,25,FALSE)=0,VLOOKUP($A659,Economática!$A$3:$AI$823,25,FALSE)=\"-\"),1/0,VLOOKUP($A659,Economática!$A$3:$AI$823,25,FALSE)))","v":""},{"$f":"IF($A659=\"\",\"\",IF(ISERROR((F659+VLOOKUP($A659,Economática!$A$3:$AI$823,26,FALSE))/Y659),(F659+VLOOKUP($A659,Economática!$A$3:$AI$823,26,FALSE))/Y659,(F659+VLOOKUP($A659,Economática!$A$3:$AI$823,26,FALSE))/Y659))","v":""},{"$f":"IF($A659=\"\",\"\",IF(OR(-VLOOKUP($A659,Economática!$A$3:$AI$823,27,FALSE)=0,-VLOOKUP($A659,Economática!$A$3:$AI$823,27,FALSE)=\"-\"),1/0,-VLOOKUP($A659,Economática!$A$3:$AI$823,27,FALSE)))","v":""},"",{"$f":"IF($A659=\"\",\"\",IF(OR(VLOOKUP($A659,Economática!$A$3:$AI$823,28,FALSE)=0,VLOOKUP($A659,Economática!$A$3:$AI$823,28,FALSE)=\"-\"),1/0,VLOOKUP($A659,Economática!$A$3:$AI$823,28,FALSE)))","v":""},{"$f":"IF($A659=\"\",\"\",IF(OR(VLOOKUP($A659,Economática!$A$3:$AI$823,29,FALSE)=0,VLOOKUP($A659,Economática!$A$3:$AI$823,29,FALSE)=\"-\"),1/0,VLOOKUP($A659,Economática!$A$3:$AI$823,29,FALSE)))","v":""},{"$f":"IF($A659=\"\",\"\",IF(OR(VLOOKUP($A659,Economática!$A$3:$AI$823,30,FALSE)/E659=0,VLOOKUP($A659,Economática!$A$3:$AI$823,30,FALSE)/E659=\"-\",VLOOKUP($A659,Economática!$A$3:$AI$823,30,FALSE)/E659<33.33%,VLOOKUP($A659,Economática!$A$3:$AI$823,30,FALSE)/E659>100%),1/0,VLOOKUP($A659,Economática!$A$3:$AI$823,30,FALSE)/E659))","v":""},"",{"$f":"IF($A659=\"\",\"\",IF(OR(VLOOKUP($A659,Economática!$A$3:$AI$823,25,FALSE)=0,VLOOKUP($A659,Economática!$A$3:$AI$823,25,FALSE)=\"-\"),1/0,VLOOKUP($A659,Economática!$A$3:$AI$823,25,FALSE)))","v":""},{"$f":"CONCATENATE(Economática!B637,\" \",Economática!C637)","v":" "}]
[{"$f":"IF(Economática!AG638=\"\",\"\",Economática!AG638)","v":""},{"$f":"IF($A660=\"\",\"\",VLOOKUP(VLOOKUP($A660,Economática!$A$3:$AI$823,6,FALSE),Correção!$B$16:$C$36,2,FALSE))","v":""},{"$f":"IF(Economática!B638=\"\",\"\",Economática!B638)","v":""},{"$f":"IF($A660=\"\",\"\",IF(OR(VLOOKUP($A660,Economática!$A$3:$AI$823,8,FALSE)=0,VLOOKUP($A660,Economática!$A$3:$AI$823,8,FALSE)=\"-\"),1/0,VLOOKUP($A660,Economática!$A$3:$AI$823,8,FALSE)))","v":""},{"$f":"IF(A660=\"\",\"\",IF(ISERROR(VLOOKUP(A660,Correção!$B$2:$G$13,9,FALSE)),VLOOKUP($A660,Economática!$A$3:$AI$823,9,FALSE),VLOOKUP(A660,Correção!$B$2:$G$13,9,FALSE)))","v":""},{"$f":"IF($A660=\"\",\"\",Economática!G638)","v":""},{"$f":"IF($A660=\"\",\"\",IF(OR(VLOOKUP($A660,Economática!$A$3:$AI$823,10,FALSE)=0,VLOOKUP($A660,Economática!$A$3:$AI$823,10,FALSE)=\"-\"),1/0,VLOOKUP($A660,Economática!$A$3:$AI$823,10,FALSE)))","v":""},{"$f":"IF($A660=\"\",\"\",IF(OR(VLOOKUP($A660,Economática!$A$3:$AI$823,11,FALSE)=0,VLOOKUP($A660,Economática!$A$3:$AI$823,11,FALSE)=\"-\"),1/0,VLOOKUP($A660,Economática!$A$3:$AI$823,11,FALSE)))","v":""},{"$f":"IF($A660=\"\",\"\",IF(OR(VLOOKUP($A660,Economática!$A$3:$AI$823,12,FALSE)=0,VLOOKUP($A660,Economática!$A$3:$AI$823,12,FALSE)=\"-\"),1/0,VLOOKUP($A660,Economática!$A$3:$AI$823,12,FALSE)))","v":""},{"$f":"IF($A660=\"\",\"\",IF(OR(VLOOKUP($A660,Economática!$A$3:$AI$823,13,FALSE)=0,VLOOKUP($A660,Economática!$A$3:$AI$823,13,FALSE)=\"-\"),1/0,VLOOKUP($A660,Economática!$A$3:$AI$823,13,FALSE)))","v":""},{"$f":"IF($A660=\"\",\"\",IF(OR(VLOOKUP($A660,Economática!$A$3:$AI$823,14,FALSE)=0,VLOOKUP($A660,Economática!$A$3:$AI$823,14,FALSE)=\"-\"),1/0,VLOOKUP($A660,Economática!$A$3:$AI$823,14,FALSE)))","v":""},{"$f":"IF($A660=\"\",\"\",IF(OR(VLOOKUP($A660,Economática!$A$3:$AI$823,15,FALSE)=0,VLOOKUP($A660,Economática!$A$3:$AI$823,15,FALSE)=\"-\"),1/0,VLOOKUP($A660,Economática!$A$3:$AI$823,15,FALSE)))","v":""},{"$f":"IF($A660=\"\",\"\",IF(OR(VLOOKUP($A660,Economática!$A$3:$AI$823,16,FALSE)=0,VLOOKUP($A660,Economática!$A$3:$AI$823,16,FALSE)=\"-\"),1/0,VLOOKUP($A660,Economática!$A$3:$AI$823,16,FALSE)))","v":""},{"$f":"IF($A660=\"\",\"\",IF(OR(VLOOKUP($A660,Economática!$A$3:$AI$823,17,FALSE)=0,VLOOKUP($A660,Economática!$A$3:$AI$823,17,FALSE)=\"-\"),1/0,VLOOKUP($A660,Economática!$A$3:$AI$823,17,FALSE)))","v":""},{"$f":"IF($A660=\"\",\"\",IF(OR(VLOOKUP($A660,Economática!$A$3:$AI$823,18,FALSE)=0,VLOOKUP($A660,Economática!$A$3:$AI$823,18,FALSE)=\"-\"),1/0,VLOOKUP($A660,Economática!$A$3:$AI$823,18,FALSE)))","v":""},{"$f":"IF($A660=\"\",\"\",IF(OR(VLOOKUP($A660,Economática!$A$3:$AI$823,19,FALSE)=0,VLOOKUP($A660,Economática!$A$3:$AI$823,19,FALSE)=\"-\"),1/0,VLOOKUP($A660,Economática!$A$3:$AI$823,19,FALSE)))","v":""},{"$f":"IF($A660=\"\",\"\",VLOOKUP($A660,Economática!$A$3:$AI$823,20,FALSE)/E660)","v":""},"","","",{"$f":"IF($A660=\"\",\"\",IF(OR(VLOOKUP($A660,Economática!$A$3:$AI$823,21,FALSE)/100=0,VLOOKUP($A660,Economática!$A$3:$AI$823,21,FALSE)/100=\"-\"),1/0,VLOOKUP($A660,Economática!$A$3:$AI$823,21,FALSE)/100))","v":""},{"$f":"IF($A660=\"\",\"\",IF(OR(VLOOKUP($A660,Economática!$A$3:$AI$823,22,FALSE)/100=0,VLOOKUP($A660,Economática!$A$3:$AI$823,22,FALSE)/100=\"-\"),1/0,VLOOKUP($A660,Economática!$A$3:$AI$823,22,FALSE)/100))","v":""},{"$f":"IF($A660=\"\",\"\",IF(OR(VLOOKUP($A660,Economática!$A$3:$AI$823,23,FALSE)=0,VLOOKUP($A660,Economática!$A$3:$AI$823,23,FALSE)=\"-\"),1/0,VLOOKUP($A660,Economática!$A$3:$AI$823,23,FALSE)))","v":""},{"$f":"IF($A660=\"\",\"\",IF(OR(VLOOKUP($A660,Economática!$A$3:$AI$823,24,FALSE)=0,VLOOKUP($A660,Economática!$A$3:$AI$823,24,FALSE)=\"-\"),1/0,VLOOKUP($A660,Economática!$A$3:$AI$823,24,FALSE)))","v":""},{"$f":"IF($A660=\"\",\"\",IF(OR(VLOOKUP($A660,Economática!$A$3:$AI$823,25,FALSE)=0,VLOOKUP($A660,Economática!$A$3:$AI$823,25,FALSE)=\"-\"),1/0,VLOOKUP($A660,Economática!$A$3:$AI$823,25,FALSE)))","v":""},{"$f":"IF($A660=\"\",\"\",IF(ISERROR((F660+VLOOKUP($A660,Economática!$A$3:$AI$823,26,FALSE))/Y660),(F660+VLOOKUP($A660,Economática!$A$3:$AI$823,26,FALSE))/Y660,(F660+VLOOKUP($A660,Economática!$A$3:$AI$823,26,FALSE))/Y660))","v":""},{"$f":"IF($A660=\"\",\"\",IF(OR(-VLOOKUP($A660,Economática!$A$3:$AI$823,27,FALSE)=0,-VLOOKUP($A660,Economática!$A$3:$AI$823,27,FALSE)=\"-\"),1/0,-VLOOKUP($A660,Economática!$A$3:$AI$823,27,FALSE)))","v":""},"",{"$f":"IF($A660=\"\",\"\",IF(OR(VLOOKUP($A660,Economática!$A$3:$AI$823,28,FALSE)=0,VLOOKUP($A660,Economática!$A$3:$AI$823,28,FALSE)=\"-\"),1/0,VLOOKUP($A660,Economática!$A$3:$AI$823,28,FALSE)))","v":""},{"$f":"IF($A660=\"\",\"\",IF(OR(VLOOKUP($A660,Economática!$A$3:$AI$823,29,FALSE)=0,VLOOKUP($A660,Economática!$A$3:$AI$823,29,FALSE)=\"-\"),1/0,VLOOKUP($A660,Economática!$A$3:$AI$823,29,FALSE)))","v":""},{"$f":"IF($A660=\"\",\"\",IF(OR(VLOOKUP($A660,Economática!$A$3:$AI$823,30,FALSE)/E660=0,VLOOKUP($A660,Economática!$A$3:$AI$823,30,FALSE)/E660=\"-\",VLOOKUP($A660,Economática!$A$3:$AI$823,30,FALSE)/E660<33.33%,VLOOKUP($A660,Economática!$A$3:$AI$823,30,FALSE)/E660>100%),1/0,VLOOKUP($A660,Economática!$A$3:$AI$823,30,FALSE)/E660))","v":""},"",{"$f":"IF($A660=\"\",\"\",IF(OR(VLOOKUP($A660,Economática!$A$3:$AI$823,25,FALSE)=0,VLOOKUP($A660,Economática!$A$3:$AI$823,25,FALSE)=\"-\"),1/0,VLOOKUP($A660,Economática!$A$3:$AI$823,25,FALSE)))","v":""},{"$f":"CONCATENATE(Economática!B638,\" \",Economática!C638)","v":" "}]
[{"$f":"IF(Economática!AG639=\"\",\"\",Economática!AG639)","v":""},{"$f":"IF($A661=\"\",\"\",VLOOKUP(VLOOKUP($A661,Economática!$A$3:$AI$823,6,FALSE),Correção!$B$16:$C$36,2,FALSE))","v":""},{"$f":"IF(Economática!B639=\"\",\"\",Economática!B639)","v":""},{"$f":"IF($A661=\"\",\"\",IF(OR(VLOOKUP($A661,Economática!$A$3:$AI$823,8,FALSE)=0,VLOOKUP($A661,Economática!$A$3:$AI$823,8,FALSE)=\"-\"),1/0,VLOOKUP($A661,Economática!$A$3:$AI$823,8,FALSE)))","v":""},{"$f":"IF(A661=\"\",\"\",IF(ISERROR(VLOOKUP(A661,Correção!$B$2:$G$13,9,FALSE)),VLOOKUP($A661,Economática!$A$3:$AI$823,9,FALSE),VLOOKUP(A661,Correção!$B$2:$G$13,9,FALSE)))","v":""},{"$f":"IF($A661=\"\",\"\",Economática!G639)","v":""},{"$f":"IF($A661=\"\",\"\",IF(OR(VLOOKUP($A661,Economática!$A$3:$AI$823,10,FALSE)=0,VLOOKUP($A661,Economática!$A$3:$AI$823,10,FALSE)=\"-\"),1/0,VLOOKUP($A661,Economática!$A$3:$AI$823,10,FALSE)))","v":""},{"$f":"IF($A661=\"\",\"\",IF(OR(VLOOKUP($A661,Economática!$A$3:$AI$823,11,FALSE)=0,VLOOKUP($A661,Economática!$A$3:$AI$823,11,FALSE)=\"-\"),1/0,VLOOKUP($A661,Economática!$A$3:$AI$823,11,FALSE)))","v":""},{"$f":"IF($A661=\"\",\"\",IF(OR(VLOOKUP($A661,Economática!$A$3:$AI$823,12,FALSE)=0,VLOOKUP($A661,Economática!$A$3:$AI$823,12,FALSE)=\"-\"),1/0,VLOOKUP($A661,Economática!$A$3:$AI$823,12,FALSE)))","v":""},{"$f":"IF($A661=\"\",\"\",IF(OR(VLOOKUP($A661,Economática!$A$3:$AI$823,13,FALSE)=0,VLOOKUP($A661,Economática!$A$3:$AI$823,13,FALSE)=\"-\"),1/0,VLOOKUP($A661,Economática!$A$3:$AI$823,13,FALSE)))","v":""},{"$f":"IF($A661=\"\",\"\",IF(OR(VLOOKUP($A661,Economática!$A$3:$AI$823,14,FALSE)=0,VLOOKUP($A661,Economática!$A$3:$AI$823,14,FALSE)=\"-\"),1/0,VLOOKUP($A661,Economática!$A$3:$AI$823,14,FALSE)))","v":""},{"$f":"IF($A661=\"\",\"\",IF(OR(VLOOKUP($A661,Economática!$A$3:$AI$823,15,FALSE)=0,VLOOKUP($A661,Economática!$A$3:$AI$823,15,FALSE)=\"-\"),1/0,VLOOKUP($A661,Economática!$A$3:$AI$823,15,FALSE)))","v":""},{"$f":"IF($A661=\"\",\"\",IF(OR(VLOOKUP($A661,Economática!$A$3:$AI$823,16,FALSE)=0,VLOOKUP($A661,Economática!$A$3:$AI$823,16,FALSE)=\"-\"),1/0,VLOOKUP($A661,Economática!$A$3:$AI$823,16,FALSE)))","v":""},{"$f":"IF($A661=\"\",\"\",IF(OR(VLOOKUP($A661,Economática!$A$3:$AI$823,17,FALSE)=0,VLOOKUP($A661,Economática!$A$3:$AI$823,17,FALSE)=\"-\"),1/0,VLOOKUP($A661,Economática!$A$3:$AI$823,17,FALSE)))","v":""},{"$f":"IF($A661=\"\",\"\",IF(OR(VLOOKUP($A661,Economática!$A$3:$AI$823,18,FALSE)=0,VLOOKUP($A661,Economática!$A$3:$AI$823,18,FALSE)=\"-\"),1/0,VLOOKUP($A661,Economática!$A$3:$AI$823,18,FALSE)))","v":""},{"$f":"IF($A661=\"\",\"\",IF(OR(VLOOKUP($A661,Economática!$A$3:$AI$823,19,FALSE)=0,VLOOKUP($A661,Economática!$A$3:$AI$823,19,FALSE)=\"-\"),1/0,VLOOKUP($A661,Economática!$A$3:$AI$823,19,FALSE)))","v":""},{"$f":"IF($A661=\"\",\"\",VLOOKUP($A661,Economática!$A$3:$AI$823,20,FALSE)/E661)","v":""},"","","",{"$f":"IF($A661=\"\",\"\",IF(OR(VLOOKUP($A661,Economática!$A$3:$AI$823,21,FALSE)/100=0,VLOOKUP($A661,Economática!$A$3:$AI$823,21,FALSE)/100=\"-\"),1/0,VLOOKUP($A661,Economática!$A$3:$AI$823,21,FALSE)/100))","v":""},{"$f":"IF($A661=\"\",\"\",IF(OR(VLOOKUP($A661,Economática!$A$3:$AI$823,22,FALSE)/100=0,VLOOKUP($A661,Economática!$A$3:$AI$823,22,FALSE)/100=\"-\"),1/0,VLOOKUP($A661,Economática!$A$3:$AI$823,22,FALSE)/100))","v":""},{"$f":"IF($A661=\"\",\"\",IF(OR(VLOOKUP($A661,Economática!$A$3:$AI$823,23,FALSE)=0,VLOOKUP($A661,Economática!$A$3:$AI$823,23,FALSE)=\"-\"),1/0,VLOOKUP($A661,Economática!$A$3:$AI$823,23,FALSE)))","v":""},{"$f":"IF($A661=\"\",\"\",IF(OR(VLOOKUP($A661,Economática!$A$3:$AI$823,24,FALSE)=0,VLOOKUP($A661,Economática!$A$3:$AI$823,24,FALSE)=\"-\"),1/0,VLOOKUP($A661,Economática!$A$3:$AI$823,24,FALSE)))","v":""},{"$f":"IF($A661=\"\",\"\",IF(OR(VLOOKUP($A661,Economática!$A$3:$AI$823,25,FALSE)=0,VLOOKUP($A661,Economática!$A$3:$AI$823,25,FALSE)=\"-\"),1/0,VLOOKUP($A661,Economática!$A$3:$AI$823,25,FALSE)))","v":""},{"$f":"IF($A661=\"\",\"\",IF(ISERROR((F661+VLOOKUP($A661,Economática!$A$3:$AI$823,26,FALSE))/Y661),(F661+VLOOKUP($A661,Economática!$A$3:$AI$823,26,FALSE))/Y661,(F661+VLOOKUP($A661,Economática!$A$3:$AI$823,26,FALSE))/Y661))","v":""},{"$f":"IF($A661=\"\",\"\",IF(OR(-VLOOKUP($A661,Economática!$A$3:$AI$823,27,FALSE)=0,-VLOOKUP($A661,Economática!$A$3:$AI$823,27,FALSE)=\"-\"),1/0,-VLOOKUP($A661,Economática!$A$3:$AI$823,27,FALSE)))","v":""},"",{"$f":"IF($A661=\"\",\"\",IF(OR(VLOOKUP($A661,Economática!$A$3:$AI$823,28,FALSE)=0,VLOOKUP($A661,Economática!$A$3:$AI$823,28,FALSE)=\"-\"),1/0,VLOOKUP($A661,Economática!$A$3:$AI$823,28,FALSE)))","v":""},{"$f":"IF($A661=\"\",\"\",IF(OR(VLOOKUP($A661,Economática!$A$3:$AI$823,29,FALSE)=0,VLOOKUP($A661,Economática!$A$3:$AI$823,29,FALSE)=\"-\"),1/0,VLOOKUP($A661,Economática!$A$3:$AI$823,29,FALSE)))","v":""},{"$f":"IF($A661=\"\",\"\",IF(OR(VLOOKUP($A661,Economática!$A$3:$AI$823,30,FALSE)/E661=0,VLOOKUP($A661,Economática!$A$3:$AI$823,30,FALSE)/E661=\"-\",VLOOKUP($A661,Economática!$A$3:$AI$823,30,FALSE)/E661<33.33%,VLOOKUP($A661,Economática!$A$3:$AI$823,30,FALSE)/E661>100%),1/0,VLOOKUP($A661,Economática!$A$3:$AI$823,30,FALSE)/E661))","v":""},"",{"$f":"IF($A661=\"\",\"\",IF(OR(VLOOKUP($A661,Economática!$A$3:$AI$823,25,FALSE)=0,VLOOKUP($A661,Economática!$A$3:$AI$823,25,FALSE)=\"-\"),1/0,VLOOKUP($A661,Economática!$A$3:$AI$823,25,FALSE)))","v":""},{"$f":"CONCATENATE(Economática!B639,\" \",Economática!C639)","v":" "}]
[{"$f":"IF(Economática!AG640=\"\",\"\",Economática!AG640)","v":""},{"$f":"IF($A662=\"\",\"\",VLOOKUP(VLOOKUP($A662,Economática!$A$3:$AI$823,6,FALSE),Correção!$B$16:$C$36,2,FALSE))","v":""},{"$f":"IF(Economática!B640=\"\",\"\",Economática!B640)","v":""},{"$f":"IF($A662=\"\",\"\",IF(OR(VLOOKUP($A662,Economática!$A$3:$AI$823,8,FALSE)=0,VLOOKUP($A662,Economática!$A$3:$AI$823,8,FALSE)=\"-\"),1/0,VLOOKUP($A662,Economática!$A$3:$AI$823,8,FALSE)))","v":""},{"$f":"IF(A662=\"\",\"\",IF(ISERROR(VLOOKUP(A662,Correção!$B$2:$G$13,9,FALSE)),VLOOKUP($A662,Economática!$A$3:$AI$823,9,FALSE),VLOOKUP(A662,Correção!$B$2:$G$13,9,FALSE)))","v":""},{"$f":"IF($A662=\"\",\"\",Economática!G640)","v":""},{"$f":"IF($A662=\"\",\"\",IF(OR(VLOOKUP($A662,Economática!$A$3:$AI$823,10,FALSE)=0,VLOOKUP($A662,Economática!$A$3:$AI$823,10,FALSE)=\"-\"),1/0,VLOOKUP($A662,Economática!$A$3:$AI$823,10,FALSE)))","v":""},{"$f":"IF($A662=\"\",\"\",IF(OR(VLOOKUP($A662,Economática!$A$3:$AI$823,11,FALSE)=0,VLOOKUP($A662,Economática!$A$3:$AI$823,11,FALSE)=\"-\"),1/0,VLOOKUP($A662,Economática!$A$3:$AI$823,11,FALSE)))","v":""},{"$f":"IF($A662=\"\",\"\",IF(OR(VLOOKUP($A662,Economática!$A$3:$AI$823,12,FALSE)=0,VLOOKUP($A662,Economática!$A$3:$AI$823,12,FALSE)=\"-\"),1/0,VLOOKUP($A662,Economática!$A$3:$AI$823,12,FALSE)))","v":""},{"$f":"IF($A662=\"\",\"\",IF(OR(VLOOKUP($A662,Economática!$A$3:$AI$823,13,FALSE)=0,VLOOKUP($A662,Economática!$A$3:$AI$823,13,FALSE)=\"-\"),1/0,VLOOKUP($A662,Economática!$A$3:$AI$823,13,FALSE)))","v":""},{"$f":"IF($A662=\"\",\"\",IF(OR(VLOOKUP($A662,Economática!$A$3:$AI$823,14,FALSE)=0,VLOOKUP($A662,Economática!$A$3:$AI$823,14,FALSE)=\"-\"),1/0,VLOOKUP($A662,Economática!$A$3:$AI$823,14,FALSE)))","v":""},{"$f":"IF($A662=\"\",\"\",IF(OR(VLOOKUP($A662,Economática!$A$3:$AI$823,15,FALSE)=0,VLOOKUP($A662,Economática!$A$3:$AI$823,15,FALSE)=\"-\"),1/0,VLOOKUP($A662,Economática!$A$3:$AI$823,15,FALSE)))","v":""},{"$f":"IF($A662=\"\",\"\",IF(OR(VLOOKUP($A662,Economática!$A$3:$AI$823,16,FALSE)=0,VLOOKUP($A662,Economática!$A$3:$AI$823,16,FALSE)=\"-\"),1/0,VLOOKUP($A662,Economática!$A$3:$AI$823,16,FALSE)))","v":""},{"$f":"IF($A662=\"\",\"\",IF(OR(VLOOKUP($A662,Economática!$A$3:$AI$823,17,FALSE)=0,VLOOKUP($A662,Economática!$A$3:$AI$823,17,FALSE)=\"-\"),1/0,VLOOKUP($A662,Economática!$A$3:$AI$823,17,FALSE)))","v":""},{"$f":"IF($A662=\"\",\"\",IF(OR(VLOOKUP($A662,Economática!$A$3:$AI$823,18,FALSE)=0,VLOOKUP($A662,Economática!$A$3:$AI$823,18,FALSE)=\"-\"),1/0,VLOOKUP($A662,Economática!$A$3:$AI$823,18,FALSE)))","v":""},{"$f":"IF($A662=\"\",\"\",IF(OR(VLOOKUP($A662,Economática!$A$3:$AI$823,19,FALSE)=0,VLOOKUP($A662,Economática!$A$3:$AI$823,19,FALSE)=\"-\"),1/0,VLOOKUP($A662,Economática!$A$3:$AI$823,19,FALSE)))","v":""},{"$f":"IF($A662=\"\",\"\",VLOOKUP($A662,Economática!$A$3:$AI$823,20,FALSE)/E662)","v":""},"","","",{"$f":"IF($A662=\"\",\"\",IF(OR(VLOOKUP($A662,Economática!$A$3:$AI$823,21,FALSE)/100=0,VLOOKUP($A662,Economática!$A$3:$AI$823,21,FALSE)/100=\"-\"),1/0,VLOOKUP($A662,Economática!$A$3:$AI$823,21,FALSE)/100))","v":""},{"$f":"IF($A662=\"\",\"\",IF(OR(VLOOKUP($A662,Economática!$A$3:$AI$823,22,FALSE)/100=0,VLOOKUP($A662,Economática!$A$3:$AI$823,22,FALSE)/100=\"-\"),1/0,VLOOKUP($A662,Economática!$A$3:$AI$823,22,FALSE)/100))","v":""},{"$f":"IF($A662=\"\",\"\",IF(OR(VLOOKUP($A662,Economática!$A$3:$AI$823,23,FALSE)=0,VLOOKUP($A662,Economática!$A$3:$AI$823,23,FALSE)=\"-\"),1/0,VLOOKUP($A662,Economática!$A$3:$AI$823,23,FALSE)))","v":""},{"$f":"IF($A662=\"\",\"\",IF(OR(VLOOKUP($A662,Economática!$A$3:$AI$823,24,FALSE)=0,VLOOKUP($A662,Economática!$A$3:$AI$823,24,FALSE)=\"-\"),1/0,VLOOKUP($A662,Economática!$A$3:$AI$823,24,FALSE)))","v":""},{"$f":"IF($A662=\"\",\"\",IF(OR(VLOOKUP($A662,Economática!$A$3:$AI$823,25,FALSE)=0,VLOOKUP($A662,Economática!$A$3:$AI$823,25,FALSE)=\"-\"),1/0,VLOOKUP($A662,Economática!$A$3:$AI$823,25,FALSE)))","v":""},{"$f":"IF($A662=\"\",\"\",IF(ISERROR((F662+VLOOKUP($A662,Economática!$A$3:$AI$823,26,FALSE))/Y662),(F662+VLOOKUP($A662,Economática!$A$3:$AI$823,26,FALSE))/Y662,(F662+VLOOKUP($A662,Economática!$A$3:$AI$823,26,FALSE))/Y662))","v":""},{"$f":"IF($A662=\"\",\"\",IF(OR(-VLOOKUP($A662,Economática!$A$3:$AI$823,27,FALSE)=0,-VLOOKUP($A662,Economática!$A$3:$AI$823,27,FALSE)=\"-\"),1/0,-VLOOKUP($A662,Economática!$A$3:$AI$823,27,FALSE)))","v":""},"",{"$f":"IF($A662=\"\",\"\",IF(OR(VLOOKUP($A662,Economática!$A$3:$AI$823,28,FALSE)=0,VLOOKUP($A662,Economática!$A$3:$AI$823,28,FALSE)=\"-\"),1/0,VLOOKUP($A662,Economática!$A$3:$AI$823,28,FALSE)))","v":""},{"$f":"IF($A662=\"\",\"\",IF(OR(VLOOKUP($A662,Economática!$A$3:$AI$823,29,FALSE)=0,VLOOKUP($A662,Economática!$A$3:$AI$823,29,FALSE)=\"-\"),1/0,VLOOKUP($A662,Economática!$A$3:$AI$823,29,FALSE)))","v":""},{"$f":"IF($A662=\"\",\"\",IF(OR(VLOOKUP($A662,Economática!$A$3:$AI$823,30,FALSE)/E662=0,VLOOKUP($A662,Economática!$A$3:$AI$823,30,FALSE)/E662=\"-\",VLOOKUP($A662,Economática!$A$3:$AI$823,30,FALSE)/E662<33.33%,VLOOKUP($A662,Economática!$A$3:$AI$823,30,FALSE)/E662>100%),1/0,VLOOKUP($A662,Economática!$A$3:$AI$823,30,FALSE)/E662))","v":""},"",{"$f":"IF($A662=\"\",\"\",IF(OR(VLOOKUP($A662,Economática!$A$3:$AI$823,25,FALSE)=0,VLOOKUP($A662,Economática!$A$3:$AI$823,25,FALSE)=\"-\"),1/0,VLOOKUP($A662,Economática!$A$3:$AI$823,25,FALSE)))","v":""},{"$f":"CONCATENATE(Economática!B640,\" \",Economática!C640)","v":" "}]
[{"$f":"IF(Economática!AG641=\"\",\"\",Economática!AG641)","v":""},{"$f":"IF($A663=\"\",\"\",VLOOKUP(VLOOKUP($A663,Economática!$A$3:$AI$823,6,FALSE),Correção!$B$16:$C$36,2,FALSE))","v":""},{"$f":"IF(Economática!B641=\"\",\"\",Economática!B641)","v":""},{"$f":"IF($A663=\"\",\"\",IF(OR(VLOOKUP($A663,Economática!$A$3:$AI$823,8,FALSE)=0,VLOOKUP($A663,Economática!$A$3:$AI$823,8,FALSE)=\"-\"),1/0,VLOOKUP($A663,Economática!$A$3:$AI$823,8,FALSE)))","v":""},{"$f":"IF(A663=\"\",\"\",IF(ISERROR(VLOOKUP(A663,Correção!$B$2:$G$13,9,FALSE)),VLOOKUP($A663,Economática!$A$3:$AI$823,9,FALSE),VLOOKUP(A663,Correção!$B$2:$G$13,9,FALSE)))","v":""},{"$f":"IF($A663=\"\",\"\",Economática!G641)","v":""},{"$f":"IF($A663=\"\",\"\",IF(OR(VLOOKUP($A663,Economática!$A$3:$AI$823,10,FALSE)=0,VLOOKUP($A663,Economática!$A$3:$AI$823,10,FALSE)=\"-\"),1/0,VLOOKUP($A663,Economática!$A$3:$AI$823,10,FALSE)))","v":""},{"$f":"IF($A663=\"\",\"\",IF(OR(VLOOKUP($A663,Economática!$A$3:$AI$823,11,FALSE)=0,VLOOKUP($A663,Economática!$A$3:$AI$823,11,FALSE)=\"-\"),1/0,VLOOKUP($A663,Economática!$A$3:$AI$823,11,FALSE)))","v":""},{"$f":"IF($A663=\"\",\"\",IF(OR(VLOOKUP($A663,Economática!$A$3:$AI$823,12,FALSE)=0,VLOOKUP($A663,Economática!$A$3:$AI$823,12,FALSE)=\"-\"),1/0,VLOOKUP($A663,Economática!$A$3:$AI$823,12,FALSE)))","v":""},{"$f":"IF($A663=\"\",\"\",IF(OR(VLOOKUP($A663,Economática!$A$3:$AI$823,13,FALSE)=0,VLOOKUP($A663,Economática!$A$3:$AI$823,13,FALSE)=\"-\"),1/0,VLOOKUP($A663,Economática!$A$3:$AI$823,13,FALSE)))","v":""},{"$f":"IF($A663=\"\",\"\",IF(OR(VLOOKUP($A663,Economática!$A$3:$AI$823,14,FALSE)=0,VLOOKUP($A663,Economática!$A$3:$AI$823,14,FALSE)=\"-\"),1/0,VLOOKUP($A663,Economática!$A$3:$AI$823,14,FALSE)))","v":""},{"$f":"IF($A663=\"\",\"\",IF(OR(VLOOKUP($A663,Economática!$A$3:$AI$823,15,FALSE)=0,VLOOKUP($A663,Economática!$A$3:$AI$823,15,FALSE)=\"-\"),1/0,VLOOKUP($A663,Economática!$A$3:$AI$823,15,FALSE)))","v":""},{"$f":"IF($A663=\"\",\"\",IF(OR(VLOOKUP($A663,Economática!$A$3:$AI$823,16,FALSE)=0,VLOOKUP($A663,Economática!$A$3:$AI$823,16,FALSE)=\"-\"),1/0,VLOOKUP($A663,Economática!$A$3:$AI$823,16,FALSE)))","v":""},{"$f":"IF($A663=\"\",\"\",IF(OR(VLOOKUP($A663,Economática!$A$3:$AI$823,17,FALSE)=0,VLOOKUP($A663,Economática!$A$3:$AI$823,17,FALSE)=\"-\"),1/0,VLOOKUP($A663,Economática!$A$3:$AI$823,17,FALSE)))","v":""},{"$f":"IF($A663=\"\",\"\",IF(OR(VLOOKUP($A663,Economática!$A$3:$AI$823,18,FALSE)=0,VLOOKUP($A663,Economática!$A$3:$AI$823,18,FALSE)=\"-\"),1/0,VLOOKUP($A663,Economática!$A$3:$AI$823,18,FALSE)))","v":""},{"$f":"IF($A663=\"\",\"\",IF(OR(VLOOKUP($A663,Economática!$A$3:$AI$823,19,FALSE)=0,VLOOKUP($A663,Economática!$A$3:$AI$823,19,FALSE)=\"-\"),1/0,VLOOKUP($A663,Economática!$A$3:$AI$823,19,FALSE)))","v":""},{"$f":"IF($A663=\"\",\"\",VLOOKUP($A663,Economática!$A$3:$AI$823,20,FALSE)/E663)","v":""},"","","",{"$f":"IF($A663=\"\",\"\",IF(OR(VLOOKUP($A663,Economática!$A$3:$AI$823,21,FALSE)/100=0,VLOOKUP($A663,Economática!$A$3:$AI$823,21,FALSE)/100=\"-\"),1/0,VLOOKUP($A663,Economática!$A$3:$AI$823,21,FALSE)/100))","v":""},{"$f":"IF($A663=\"\",\"\",IF(OR(VLOOKUP($A663,Economática!$A$3:$AI$823,22,FALSE)/100=0,VLOOKUP($A663,Economática!$A$3:$AI$823,22,FALSE)/100=\"-\"),1/0,VLOOKUP($A663,Economática!$A$3:$AI$823,22,FALSE)/100))","v":""},{"$f":"IF($A663=\"\",\"\",IF(OR(VLOOKUP($A663,Economática!$A$3:$AI$823,23,FALSE)=0,VLOOKUP($A663,Economática!$A$3:$AI$823,23,FALSE)=\"-\"),1/0,VLOOKUP($A663,Economática!$A$3:$AI$823,23,FALSE)))","v":""},{"$f":"IF($A663=\"\",\"\",IF(OR(VLOOKUP($A663,Economática!$A$3:$AI$823,24,FALSE)=0,VLOOKUP($A663,Economática!$A$3:$AI$823,24,FALSE)=\"-\"),1/0,VLOOKUP($A663,Economática!$A$3:$AI$823,24,FALSE)))","v":""},{"$f":"IF($A663=\"\",\"\",IF(OR(VLOOKUP($A663,Economática!$A$3:$AI$823,25,FALSE)=0,VLOOKUP($A663,Economática!$A$3:$AI$823,25,FALSE)=\"-\"),1/0,VLOOKUP($A663,Economática!$A$3:$AI$823,25,FALSE)))","v":""},{"$f":"IF($A663=\"\",\"\",IF(ISERROR((F663+VLOOKUP($A663,Economática!$A$3:$AI$823,26,FALSE))/Y663),(F663+VLOOKUP($A663,Economática!$A$3:$AI$823,26,FALSE))/Y663,(F663+VLOOKUP($A663,Economática!$A$3:$AI$823,26,FALSE))/Y663))","v":""},{"$f":"IF($A663=\"\",\"\",IF(OR(-VLOOKUP($A663,Economática!$A$3:$AI$823,27,FALSE)=0,-VLOOKUP($A663,Economática!$A$3:$AI$823,27,FALSE)=\"-\"),1/0,-VLOOKUP($A663,Economática!$A$3:$AI$823,27,FALSE)))","v":""},"",{"$f":"IF($A663=\"\",\"\",IF(OR(VLOOKUP($A663,Economática!$A$3:$AI$823,28,FALSE)=0,VLOOKUP($A663,Economática!$A$3:$AI$823,28,FALSE)=\"-\"),1/0,VLOOKUP($A663,Economática!$A$3:$AI$823,28,FALSE)))","v":""},{"$f":"IF($A663=\"\",\"\",IF(OR(VLOOKUP($A663,Economática!$A$3:$AI$823,29,FALSE)=0,VLOOKUP($A663,Economática!$A$3:$AI$823,29,FALSE)=\"-\"),1/0,VLOOKUP($A663,Economática!$A$3:$AI$823,29,FALSE)))","v":""},{"$f":"IF($A663=\"\",\"\",IF(OR(VLOOKUP($A663,Economática!$A$3:$AI$823,30,FALSE)/E663=0,VLOOKUP($A663,Economática!$A$3:$AI$823,30,FALSE)/E663=\"-\",VLOOKUP($A663,Economática!$A$3:$AI$823,30,FALSE)/E663<33.33%,VLOOKUP($A663,Economática!$A$3:$AI$823,30,FALSE)/E663>100%),1/0,VLOOKUP($A663,Economática!$A$3:$AI$823,30,FALSE)/E663))","v":""},"",{"$f":"IF($A663=\"\",\"\",IF(OR(VLOOKUP($A663,Economática!$A$3:$AI$823,25,FALSE)=0,VLOOKUP($A663,Economática!$A$3:$AI$823,25,FALSE)=\"-\"),1/0,VLOOKUP($A663,Economática!$A$3:$AI$823,25,FALSE)))","v":""},{"$f":"CONCATENATE(Economática!B641,\" \",Economática!C641)","v":" "}]
[{"$f":"IF(Economática!AG642=\"\",\"\",Economática!AG642)","v":""},{"$f":"IF($A664=\"\",\"\",VLOOKUP(VLOOKUP($A664,Economática!$A$3:$AI$823,6,FALSE),Correção!$B$16:$C$36,2,FALSE))","v":""},{"$f":"IF(Economática!B642=\"\",\"\",Economática!B642)","v":""},{"$f":"IF($A664=\"\",\"\",IF(OR(VLOOKUP($A664,Economática!$A$3:$AI$823,8,FALSE)=0,VLOOKUP($A664,Economática!$A$3:$AI$823,8,FALSE)=\"-\"),1/0,VLOOKUP($A664,Economática!$A$3:$AI$823,8,FALSE)))","v":""},{"$f":"IF(A664=\"\",\"\",IF(ISERROR(VLOOKUP(A664,Correção!$B$2:$G$13,9,FALSE)),VLOOKUP($A664,Economática!$A$3:$AI$823,9,FALSE),VLOOKUP(A664,Correção!$B$2:$G$13,9,FALSE)))","v":""},{"$f":"IF($A664=\"\",\"\",Economática!G642)","v":""},{"$f":"IF($A664=\"\",\"\",IF(OR(VLOOKUP($A664,Economática!$A$3:$AI$823,10,FALSE)=0,VLOOKUP($A664,Economática!$A$3:$AI$823,10,FALSE)=\"-\"),1/0,VLOOKUP($A664,Economática!$A$3:$AI$823,10,FALSE)))","v":""},{"$f":"IF($A664=\"\",\"\",IF(OR(VLOOKUP($A664,Economática!$A$3:$AI$823,11,FALSE)=0,VLOOKUP($A664,Economática!$A$3:$AI$823,11,FALSE)=\"-\"),1/0,VLOOKUP($A664,Economática!$A$3:$AI$823,11,FALSE)))","v":""},{"$f":"IF($A664=\"\",\"\",IF(OR(VLOOKUP($A664,Economática!$A$3:$AI$823,12,FALSE)=0,VLOOKUP($A664,Economática!$A$3:$AI$823,12,FALSE)=\"-\"),1/0,VLOOKUP($A664,Economática!$A$3:$AI$823,12,FALSE)))","v":""},{"$f":"IF($A664=\"\",\"\",IF(OR(VLOOKUP($A664,Economática!$A$3:$AI$823,13,FALSE)=0,VLOOKUP($A664,Economática!$A$3:$AI$823,13,FALSE)=\"-\"),1/0,VLOOKUP($A664,Economática!$A$3:$AI$823,13,FALSE)))","v":""},{"$f":"IF($A664=\"\",\"\",IF(OR(VLOOKUP($A664,Economática!$A$3:$AI$823,14,FALSE)=0,VLOOKUP($A664,Economática!$A$3:$AI$823,14,FALSE)=\"-\"),1/0,VLOOKUP($A664,Economática!$A$3:$AI$823,14,FALSE)))","v":""},{"$f":"IF($A664=\"\",\"\",IF(OR(VLOOKUP($A664,Economática!$A$3:$AI$823,15,FALSE)=0,VLOOKUP($A664,Economática!$A$3:$AI$823,15,FALSE)=\"-\"),1/0,VLOOKUP($A664,Economática!$A$3:$AI$823,15,FALSE)))","v":""},{"$f":"IF($A664=\"\",\"\",IF(OR(VLOOKUP($A664,Economática!$A$3:$AI$823,16,FALSE)=0,VLOOKUP($A664,Economática!$A$3:$AI$823,16,FALSE)=\"-\"),1/0,VLOOKUP($A664,Economática!$A$3:$AI$823,16,FALSE)))","v":""},{"$f":"IF($A664=\"\",\"\",IF(OR(VLOOKUP($A664,Economática!$A$3:$AI$823,17,FALSE)=0,VLOOKUP($A664,Economática!$A$3:$AI$823,17,FALSE)=\"-\"),1/0,VLOOKUP($A664,Economática!$A$3:$AI$823,17,FALSE)))","v":""},{"$f":"IF($A664=\"\",\"\",IF(OR(VLOOKUP($A664,Economática!$A$3:$AI$823,18,FALSE)=0,VLOOKUP($A664,Economática!$A$3:$AI$823,18,FALSE)=\"-\"),1/0,VLOOKUP($A664,Economática!$A$3:$AI$823,18,FALSE)))","v":""},{"$f":"IF($A664=\"\",\"\",IF(OR(VLOOKUP($A664,Economática!$A$3:$AI$823,19,FALSE)=0,VLOOKUP($A664,Economática!$A$3:$AI$823,19,FALSE)=\"-\"),1/0,VLOOKUP($A664,Economática!$A$3:$AI$823,19,FALSE)))","v":""},{"$f":"IF($A664=\"\",\"\",VLOOKUP($A664,Economática!$A$3:$AI$823,20,FALSE)/E664)","v":""},"","","",{"$f":"IF($A664=\"\",\"\",IF(OR(VLOOKUP($A664,Economática!$A$3:$AI$823,21,FALSE)/100=0,VLOOKUP($A664,Economática!$A$3:$AI$823,21,FALSE)/100=\"-\"),1/0,VLOOKUP($A664,Economática!$A$3:$AI$823,21,FALSE)/100))","v":""},{"$f":"IF($A664=\"\",\"\",IF(OR(VLOOKUP($A664,Economática!$A$3:$AI$823,22,FALSE)/100=0,VLOOKUP($A664,Economática!$A$3:$AI$823,22,FALSE)/100=\"-\"),1/0,VLOOKUP($A664,Economática!$A$3:$AI$823,22,FALSE)/100))","v":""},{"$f":"IF($A664=\"\",\"\",IF(OR(VLOOKUP($A664,Economática!$A$3:$AI$823,23,FALSE)=0,VLOOKUP($A664,Economática!$A$3:$AI$823,23,FALSE)=\"-\"),1/0,VLOOKUP($A664,Economática!$A$3:$AI$823,23,FALSE)))","v":""},{"$f":"IF($A664=\"\",\"\",IF(OR(VLOOKUP($A664,Economática!$A$3:$AI$823,24,FALSE)=0,VLOOKUP($A664,Economática!$A$3:$AI$823,24,FALSE)=\"-\"),1/0,VLOOKUP($A664,Economática!$A$3:$AI$823,24,FALSE)))","v":""},{"$f":"IF($A664=\"\",\"\",IF(OR(VLOOKUP($A664,Economática!$A$3:$AI$823,25,FALSE)=0,VLOOKUP($A664,Economática!$A$3:$AI$823,25,FALSE)=\"-\"),1/0,VLOOKUP($A664,Economática!$A$3:$AI$823,25,FALSE)))","v":""},{"$f":"IF($A664=\"\",\"\",IF(ISERROR((F664+VLOOKUP($A664,Economática!$A$3:$AI$823,26,FALSE))/Y664),(F664+VLOOKUP($A664,Economática!$A$3:$AI$823,26,FALSE))/Y664,(F664+VLOOKUP($A664,Economática!$A$3:$AI$823,26,FALSE))/Y664))","v":""},{"$f":"IF($A664=\"\",\"\",IF(OR(-VLOOKUP($A664,Economática!$A$3:$AI$823,27,FALSE)=0,-VLOOKUP($A664,Economática!$A$3:$AI$823,27,FALSE)=\"-\"),1/0,-VLOOKUP($A664,Economática!$A$3:$AI$823,27,FALSE)))","v":""},"",{"$f":"IF($A664=\"\",\"\",IF(OR(VLOOKUP($A664,Economática!$A$3:$AI$823,28,FALSE)=0,VLOOKUP($A664,Economática!$A$3:$AI$823,28,FALSE)=\"-\"),1/0,VLOOKUP($A664,Economática!$A$3:$AI$823,28,FALSE)))","v":""},{"$f":"IF($A664=\"\",\"\",IF(OR(VLOOKUP($A664,Economática!$A$3:$AI$823,29,FALSE)=0,VLOOKUP($A664,Economática!$A$3:$AI$823,29,FALSE)=\"-\"),1/0,VLOOKUP($A664,Economática!$A$3:$AI$823,29,FALSE)))","v":""},{"$f":"IF($A664=\"\",\"\",IF(OR(VLOOKUP($A664,Economática!$A$3:$AI$823,30,FALSE)/E664=0,VLOOKUP($A664,Economática!$A$3:$AI$823,30,FALSE)/E664=\"-\",VLOOKUP($A664,Economática!$A$3:$AI$823,30,FALSE)/E664<33.33%,VLOOKUP($A664,Economática!$A$3:$AI$823,30,FALSE)/E664>100%),1/0,VLOOKUP($A664,Economática!$A$3:$AI$823,30,FALSE)/E664))","v":""},"",{"$f":"IF($A664=\"\",\"\",IF(OR(VLOOKUP($A664,Economática!$A$3:$AI$823,25,FALSE)=0,VLOOKUP($A664,Economática!$A$3:$AI$823,25,FALSE)=\"-\"),1/0,VLOOKUP($A664,Economática!$A$3:$AI$823,25,FALSE)))","v":""},{"$f":"CONCATENATE(Economática!B642,\" \",Economática!C642)","v":" "}]
[{"$f":"IF(Economática!AG643=\"\",\"\",Economática!AG643)","v":""},{"$f":"IF($A665=\"\",\"\",VLOOKUP(VLOOKUP($A665,Economática!$A$3:$AI$823,6,FALSE),Correção!$B$16:$C$36,2,FALSE))","v":""},{"$f":"IF(Economática!B643=\"\",\"\",Economática!B643)","v":""},{"$f":"IF($A665=\"\",\"\",IF(OR(VLOOKUP($A665,Economática!$A$3:$AI$823,8,FALSE)=0,VLOOKUP($A665,Economática!$A$3:$AI$823,8,FALSE)=\"-\"),1/0,VLOOKUP($A665,Economática!$A$3:$AI$823,8,FALSE)))","v":""},{"$f":"IF(A665=\"\",\"\",IF(ISERROR(VLOOKUP(A665,Correção!$B$2:$G$13,9,FALSE)),VLOOKUP($A665,Economática!$A$3:$AI$823,9,FALSE),VLOOKUP(A665,Correção!$B$2:$G$13,9,FALSE)))","v":""},{"$f":"IF($A665=\"\",\"\",Economática!G643)","v":""},{"$f":"IF($A665=\"\",\"\",IF(OR(VLOOKUP($A665,Economática!$A$3:$AI$823,10,FALSE)=0,VLOOKUP($A665,Economática!$A$3:$AI$823,10,FALSE)=\"-\"),1/0,VLOOKUP($A665,Economática!$A$3:$AI$823,10,FALSE)))","v":""},{"$f":"IF($A665=\"\",\"\",IF(OR(VLOOKUP($A665,Economática!$A$3:$AI$823,11,FALSE)=0,VLOOKUP($A665,Economática!$A$3:$AI$823,11,FALSE)=\"-\"),1/0,VLOOKUP($A665,Economática!$A$3:$AI$823,11,FALSE)))","v":""},{"$f":"IF($A665=\"\",\"\",IF(OR(VLOOKUP($A665,Economática!$A$3:$AI$823,12,FALSE)=0,VLOOKUP($A665,Economática!$A$3:$AI$823,12,FALSE)=\"-\"),1/0,VLOOKUP($A665,Economática!$A$3:$AI$823,12,FALSE)))","v":""},{"$f":"IF($A665=\"\",\"\",IF(OR(VLOOKUP($A665,Economática!$A$3:$AI$823,13,FALSE)=0,VLOOKUP($A665,Economática!$A$3:$AI$823,13,FALSE)=\"-\"),1/0,VLOOKUP($A665,Economática!$A$3:$AI$823,13,FALSE)))","v":""},{"$f":"IF($A665=\"\",\"\",IF(OR(VLOOKUP($A665,Economática!$A$3:$AI$823,14,FALSE)=0,VLOOKUP($A665,Economática!$A$3:$AI$823,14,FALSE)=\"-\"),1/0,VLOOKUP($A665,Economática!$A$3:$AI$823,14,FALSE)))","v":""},{"$f":"IF($A665=\"\",\"\",IF(OR(VLOOKUP($A665,Economática!$A$3:$AI$823,15,FALSE)=0,VLOOKUP($A665,Economática!$A$3:$AI$823,15,FALSE)=\"-\"),1/0,VLOOKUP($A665,Economática!$A$3:$AI$823,15,FALSE)))","v":""},{"$f":"IF($A665=\"\",\"\",IF(OR(VLOOKUP($A665,Economática!$A$3:$AI$823,16,FALSE)=0,VLOOKUP($A665,Economática!$A$3:$AI$823,16,FALSE)=\"-\"),1/0,VLOOKUP($A665,Economática!$A$3:$AI$823,16,FALSE)))","v":""},{"$f":"IF($A665=\"\",\"\",IF(OR(VLOOKUP($A665,Economática!$A$3:$AI$823,17,FALSE)=0,VLOOKUP($A665,Economática!$A$3:$AI$823,17,FALSE)=\"-\"),1/0,VLOOKUP($A665,Economática!$A$3:$AI$823,17,FALSE)))","v":""},{"$f":"IF($A665=\"\",\"\",IF(OR(VLOOKUP($A665,Economática!$A$3:$AI$823,18,FALSE)=0,VLOOKUP($A665,Economática!$A$3:$AI$823,18,FALSE)=\"-\"),1/0,VLOOKUP($A665,Economática!$A$3:$AI$823,18,FALSE)))","v":""},{"$f":"IF($A665=\"\",\"\",IF(OR(VLOOKUP($A665,Economática!$A$3:$AI$823,19,FALSE)=0,VLOOKUP($A665,Economática!$A$3:$AI$823,19,FALSE)=\"-\"),1/0,VLOOKUP($A665,Economática!$A$3:$AI$823,19,FALSE)))","v":""},{"$f":"IF($A665=\"\",\"\",VLOOKUP($A665,Economática!$A$3:$AI$823,20,FALSE)/E665)","v":""},"","","",{"$f":"IF($A665=\"\",\"\",IF(OR(VLOOKUP($A665,Economática!$A$3:$AI$823,21,FALSE)/100=0,VLOOKUP($A665,Economática!$A$3:$AI$823,21,FALSE)/100=\"-\"),1/0,VLOOKUP($A665,Economática!$A$3:$AI$823,21,FALSE)/100))","v":""},{"$f":"IF($A665=\"\",\"\",IF(OR(VLOOKUP($A665,Economática!$A$3:$AI$823,22,FALSE)/100=0,VLOOKUP($A665,Economática!$A$3:$AI$823,22,FALSE)/100=\"-\"),1/0,VLOOKUP($A665,Economática!$A$3:$AI$823,22,FALSE)/100))","v":""},{"$f":"IF($A665=\"\",\"\",IF(OR(VLOOKUP($A665,Economática!$A$3:$AI$823,23,FALSE)=0,VLOOKUP($A665,Economática!$A$3:$AI$823,23,FALSE)=\"-\"),1/0,VLOOKUP($A665,Economática!$A$3:$AI$823,23,FALSE)))","v":""},{"$f":"IF($A665=\"\",\"\",IF(OR(VLOOKUP($A665,Economática!$A$3:$AI$823,24,FALSE)=0,VLOOKUP($A665,Economática!$A$3:$AI$823,24,FALSE)=\"-\"),1/0,VLOOKUP($A665,Economática!$A$3:$AI$823,24,FALSE)))","v":""},{"$f":"IF($A665=\"\",\"\",IF(OR(VLOOKUP($A665,Economática!$A$3:$AI$823,25,FALSE)=0,VLOOKUP($A665,Economática!$A$3:$AI$823,25,FALSE)=\"-\"),1/0,VLOOKUP($A665,Economática!$A$3:$AI$823,25,FALSE)))","v":""},{"$f":"IF($A665=\"\",\"\",IF(ISERROR((F665+VLOOKUP($A665,Economática!$A$3:$AI$823,26,FALSE))/Y665),(F665+VLOOKUP($A665,Economática!$A$3:$AI$823,26,FALSE))/Y665,(F665+VLOOKUP($A665,Economática!$A$3:$AI$823,26,FALSE))/Y665))","v":""},{"$f":"IF($A665=\"\",\"\",IF(OR(-VLOOKUP($A665,Economática!$A$3:$AI$823,27,FALSE)=0,-VLOOKUP($A665,Economática!$A$3:$AI$823,27,FALSE)=\"-\"),1/0,-VLOOKUP($A665,Economática!$A$3:$AI$823,27,FALSE)))","v":""},"",{"$f":"IF($A665=\"\",\"\",IF(OR(VLOOKUP($A665,Economática!$A$3:$AI$823,28,FALSE)=0,VLOOKUP($A665,Economática!$A$3:$AI$823,28,FALSE)=\"-\"),1/0,VLOOKUP($A665,Economática!$A$3:$AI$823,28,FALSE)))","v":""},{"$f":"IF($A665=\"\",\"\",IF(OR(VLOOKUP($A665,Economática!$A$3:$AI$823,29,FALSE)=0,VLOOKUP($A665,Economática!$A$3:$AI$823,29,FALSE)=\"-\"),1/0,VLOOKUP($A665,Economática!$A$3:$AI$823,29,FALSE)))","v":""},{"$f":"IF($A665=\"\",\"\",IF(OR(VLOOKUP($A665,Economática!$A$3:$AI$823,30,FALSE)/E665=0,VLOOKUP($A665,Economática!$A$3:$AI$823,30,FALSE)/E665=\"-\",VLOOKUP($A665,Economática!$A$3:$AI$823,30,FALSE)/E665<33.33%,VLOOKUP($A665,Economática!$A$3:$AI$823,30,FALSE)/E665>100%),1/0,VLOOKUP($A665,Economática!$A$3:$AI$823,30,FALSE)/E665))","v":""},"",{"$f":"IF($A665=\"\",\"\",IF(OR(VLOOKUP($A665,Economática!$A$3:$AI$823,25,FALSE)=0,VLOOKUP($A665,Economática!$A$3:$AI$823,25,FALSE)=\"-\"),1/0,VLOOKUP($A665,Economática!$A$3:$AI$823,25,FALSE)))","v":""},{"$f":"CONCATENATE(Economática!B643,\" \",Economática!C643)","v":" "}]
[{"$f":"IF(Economática!AG644=\"\",\"\",Economática!AG644)","v":""},{"$f":"IF($A666=\"\",\"\",VLOOKUP(VLOOKUP($A666,Economática!$A$3:$AI$823,6,FALSE),Correção!$B$16:$C$36,2,FALSE))","v":""},{"$f":"IF(Economática!B644=\"\",\"\",Economática!B644)","v":""},{"$f":"IF($A666=\"\",\"\",IF(OR(VLOOKUP($A666,Economática!$A$3:$AI$823,8,FALSE)=0,VLOOKUP($A666,Economática!$A$3:$AI$823,8,FALSE)=\"-\"),1/0,VLOOKUP($A666,Economática!$A$3:$AI$823,8,FALSE)))","v":""},{"$f":"IF(A666=\"\",\"\",IF(ISERROR(VLOOKUP(A666,Correção!$B$2:$G$13,9,FALSE)),VLOOKUP($A666,Economática!$A$3:$AI$823,9,FALSE),VLOOKUP(A666,Correção!$B$2:$G$13,9,FALSE)))","v":""},{"$f":"IF($A666=\"\",\"\",Economática!G644)","v":""},{"$f":"IF($A666=\"\",\"\",IF(OR(VLOOKUP($A666,Economática!$A$3:$AI$823,10,FALSE)=0,VLOOKUP($A666,Economática!$A$3:$AI$823,10,FALSE)=\"-\"),1/0,VLOOKUP($A666,Economática!$A$3:$AI$823,10,FALSE)))","v":""},{"$f":"IF($A666=\"\",\"\",IF(OR(VLOOKUP($A666,Economática!$A$3:$AI$823,11,FALSE)=0,VLOOKUP($A666,Economática!$A$3:$AI$823,11,FALSE)=\"-\"),1/0,VLOOKUP($A666,Economática!$A$3:$AI$823,11,FALSE)))","v":""},{"$f":"IF($A666=\"\",\"\",IF(OR(VLOOKUP($A666,Economática!$A$3:$AI$823,12,FALSE)=0,VLOOKUP($A666,Economática!$A$3:$AI$823,12,FALSE)=\"-\"),1/0,VLOOKUP($A666,Economática!$A$3:$AI$823,12,FALSE)))","v":""},{"$f":"IF($A666=\"\",\"\",IF(OR(VLOOKUP($A666,Economática!$A$3:$AI$823,13,FALSE)=0,VLOOKUP($A666,Economática!$A$3:$AI$823,13,FALSE)=\"-\"),1/0,VLOOKUP($A666,Economática!$A$3:$AI$823,13,FALSE)))","v":""},{"$f":"IF($A666=\"\",\"\",IF(OR(VLOOKUP($A666,Economática!$A$3:$AI$823,14,FALSE)=0,VLOOKUP($A666,Economática!$A$3:$AI$823,14,FALSE)=\"-\"),1/0,VLOOKUP($A666,Economática!$A$3:$AI$823,14,FALSE)))","v":""},{"$f":"IF($A666=\"\",\"\",IF(OR(VLOOKUP($A666,Economática!$A$3:$AI$823,15,FALSE)=0,VLOOKUP($A666,Economática!$A$3:$AI$823,15,FALSE)=\"-\"),1/0,VLOOKUP($A666,Economática!$A$3:$AI$823,15,FALSE)))","v":""},{"$f":"IF($A666=\"\",\"\",IF(OR(VLOOKUP($A666,Economática!$A$3:$AI$823,16,FALSE)=0,VLOOKUP($A666,Economática!$A$3:$AI$823,16,FALSE)=\"-\"),1/0,VLOOKUP($A666,Economática!$A$3:$AI$823,16,FALSE)))","v":""},{"$f":"IF($A666=\"\",\"\",IF(OR(VLOOKUP($A666,Economática!$A$3:$AI$823,17,FALSE)=0,VLOOKUP($A666,Economática!$A$3:$AI$823,17,FALSE)=\"-\"),1/0,VLOOKUP($A666,Economática!$A$3:$AI$823,17,FALSE)))","v":""},{"$f":"IF($A666=\"\",\"\",IF(OR(VLOOKUP($A666,Economática!$A$3:$AI$823,18,FALSE)=0,VLOOKUP($A666,Economática!$A$3:$AI$823,18,FALSE)=\"-\"),1/0,VLOOKUP($A666,Economática!$A$3:$AI$823,18,FALSE)))","v":""},{"$f":"IF($A666=\"\",\"\",IF(OR(VLOOKUP($A666,Economática!$A$3:$AI$823,19,FALSE)=0,VLOOKUP($A666,Economática!$A$3:$AI$823,19,FALSE)=\"-\"),1/0,VLOOKUP($A666,Economática!$A$3:$AI$823,19,FALSE)))","v":""},{"$f":"IF($A666=\"\",\"\",VLOOKUP($A666,Economática!$A$3:$AI$823,20,FALSE)/E666)","v":""},"","","",{"$f":"IF($A666=\"\",\"\",IF(OR(VLOOKUP($A666,Economática!$A$3:$AI$823,21,FALSE)/100=0,VLOOKUP($A666,Economática!$A$3:$AI$823,21,FALSE)/100=\"-\"),1/0,VLOOKUP($A666,Economática!$A$3:$AI$823,21,FALSE)/100))","v":""},{"$f":"IF($A666=\"\",\"\",IF(OR(VLOOKUP($A666,Economática!$A$3:$AI$823,22,FALSE)/100=0,VLOOKUP($A666,Economática!$A$3:$AI$823,22,FALSE)/100=\"-\"),1/0,VLOOKUP($A666,Economática!$A$3:$AI$823,22,FALSE)/100))","v":""},{"$f":"IF($A666=\"\",\"\",IF(OR(VLOOKUP($A666,Economática!$A$3:$AI$823,23,FALSE)=0,VLOOKUP($A666,Economática!$A$3:$AI$823,23,FALSE)=\"-\"),1/0,VLOOKUP($A666,Economática!$A$3:$AI$823,23,FALSE)))","v":""},{"$f":"IF($A666=\"\",\"\",IF(OR(VLOOKUP($A666,Economática!$A$3:$AI$823,24,FALSE)=0,VLOOKUP($A666,Economática!$A$3:$AI$823,24,FALSE)=\"-\"),1/0,VLOOKUP($A666,Economática!$A$3:$AI$823,24,FALSE)))","v":""},{"$f":"IF($A666=\"\",\"\",IF(OR(VLOOKUP($A666,Economática!$A$3:$AI$823,25,FALSE)=0,VLOOKUP($A666,Economática!$A$3:$AI$823,25,FALSE)=\"-\"),1/0,VLOOKUP($A666,Economática!$A$3:$AI$823,25,FALSE)))","v":""},{"$f":"IF($A666=\"\",\"\",IF(ISERROR((F666+VLOOKUP($A666,Economática!$A$3:$AI$823,26,FALSE))/Y666),(F666+VLOOKUP($A666,Economática!$A$3:$AI$823,26,FALSE))/Y666,(F666+VLOOKUP($A666,Economática!$A$3:$AI$823,26,FALSE))/Y666))","v":""},{"$f":"IF($A666=\"\",\"\",IF(OR(-VLOOKUP($A666,Economática!$A$3:$AI$823,27,FALSE)=0,-VLOOKUP($A666,Economática!$A$3:$AI$823,27,FALSE)=\"-\"),1/0,-VLOOKUP($A666,Economática!$A$3:$AI$823,27,FALSE)))","v":""},"",{"$f":"IF($A666=\"\",\"\",IF(OR(VLOOKUP($A666,Economática!$A$3:$AI$823,28,FALSE)=0,VLOOKUP($A666,Economática!$A$3:$AI$823,28,FALSE)=\"-\"),1/0,VLOOKUP($A666,Economática!$A$3:$AI$823,28,FALSE)))","v":""},{"$f":"IF($A666=\"\",\"\",IF(OR(VLOOKUP($A666,Economática!$A$3:$AI$823,29,FALSE)=0,VLOOKUP($A666,Economática!$A$3:$AI$823,29,FALSE)=\"-\"),1/0,VLOOKUP($A666,Economática!$A$3:$AI$823,29,FALSE)))","v":""},{"$f":"IF($A666=\"\",\"\",IF(OR(VLOOKUP($A666,Economática!$A$3:$AI$823,30,FALSE)/E666=0,VLOOKUP($A666,Economática!$A$3:$AI$823,30,FALSE)/E666=\"-\",VLOOKUP($A666,Economática!$A$3:$AI$823,30,FALSE)/E666<33.33%,VLOOKUP($A666,Economática!$A$3:$AI$823,30,FALSE)/E666>100%),1/0,VLOOKUP($A666,Economática!$A$3:$AI$823,30,FALSE)/E666))","v":""},"",{"$f":"IF($A666=\"\",\"\",IF(OR(VLOOKUP($A666,Economática!$A$3:$AI$823,25,FALSE)=0,VLOOKUP($A666,Economática!$A$3:$AI$823,25,FALSE)=\"-\"),1/0,VLOOKUP($A666,Economática!$A$3:$AI$823,25,FALSE)))","v":""},{"$f":"CONCATENATE(Economática!B644,\" \",Economática!C644)","v":" "}]
[{"$f":"IF(Economática!AG645=\"\",\"\",Economática!AG645)","v":""},{"$f":"IF($A667=\"\",\"\",VLOOKUP(VLOOKUP($A667,Economática!$A$3:$AI$823,6,FALSE),Correção!$B$16:$C$36,2,FALSE))","v":""},{"$f":"IF(Economática!B645=\"\",\"\",Economática!B645)","v":""},{"$f":"IF($A667=\"\",\"\",IF(OR(VLOOKUP($A667,Economática!$A$3:$AI$823,8,FALSE)=0,VLOOKUP($A667,Economática!$A$3:$AI$823,8,FALSE)=\"-\"),1/0,VLOOKUP($A667,Economática!$A$3:$AI$823,8,FALSE)))","v":""},{"$f":"IF(A667=\"\",\"\",IF(ISERROR(VLOOKUP(A667,Correção!$B$2:$G$13,9,FALSE)),VLOOKUP($A667,Economática!$A$3:$AI$823,9,FALSE),VLOOKUP(A667,Correção!$B$2:$G$13,9,FALSE)))","v":""},{"$f":"IF($A667=\"\",\"\",Economática!G645)","v":""},{"$f":"IF($A667=\"\",\"\",IF(OR(VLOOKUP($A667,Economática!$A$3:$AI$823,10,FALSE)=0,VLOOKUP($A667,Economática!$A$3:$AI$823,10,FALSE)=\"-\"),1/0,VLOOKUP($A667,Economática!$A$3:$AI$823,10,FALSE)))","v":""},{"$f":"IF($A667=\"\",\"\",IF(OR(VLOOKUP($A667,Economática!$A$3:$AI$823,11,FALSE)=0,VLOOKUP($A667,Economática!$A$3:$AI$823,11,FALSE)=\"-\"),1/0,VLOOKUP($A667,Economática!$A$3:$AI$823,11,FALSE)))","v":""},{"$f":"IF($A667=\"\",\"\",IF(OR(VLOOKUP($A667,Economática!$A$3:$AI$823,12,FALSE)=0,VLOOKUP($A667,Economática!$A$3:$AI$823,12,FALSE)=\"-\"),1/0,VLOOKUP($A667,Economática!$A$3:$AI$823,12,FALSE)))","v":""},{"$f":"IF($A667=\"\",\"\",IF(OR(VLOOKUP($A667,Economática!$A$3:$AI$823,13,FALSE)=0,VLOOKUP($A667,Economática!$A$3:$AI$823,13,FALSE)=\"-\"),1/0,VLOOKUP($A667,Economática!$A$3:$AI$823,13,FALSE)))","v":""},{"$f":"IF($A667=\"\",\"\",IF(OR(VLOOKUP($A667,Economática!$A$3:$AI$823,14,FALSE)=0,VLOOKUP($A667,Economática!$A$3:$AI$823,14,FALSE)=\"-\"),1/0,VLOOKUP($A667,Economática!$A$3:$AI$823,14,FALSE)))","v":""},{"$f":"IF($A667=\"\",\"\",IF(OR(VLOOKUP($A667,Economática!$A$3:$AI$823,15,FALSE)=0,VLOOKUP($A667,Economática!$A$3:$AI$823,15,FALSE)=\"-\"),1/0,VLOOKUP($A667,Economática!$A$3:$AI$823,15,FALSE)))","v":""},{"$f":"IF($A667=\"\",\"\",IF(OR(VLOOKUP($A667,Economática!$A$3:$AI$823,16,FALSE)=0,VLOOKUP($A667,Economática!$A$3:$AI$823,16,FALSE)=\"-\"),1/0,VLOOKUP($A667,Economática!$A$3:$AI$823,16,FALSE)))","v":""},{"$f":"IF($A667=\"\",\"\",IF(OR(VLOOKUP($A667,Economática!$A$3:$AI$823,17,FALSE)=0,VLOOKUP($A667,Economática!$A$3:$AI$823,17,FALSE)=\"-\"),1/0,VLOOKUP($A667,Economática!$A$3:$AI$823,17,FALSE)))","v":""},{"$f":"IF($A667=\"\",\"\",IF(OR(VLOOKUP($A667,Economática!$A$3:$AI$823,18,FALSE)=0,VLOOKUP($A667,Economática!$A$3:$AI$823,18,FALSE)=\"-\"),1/0,VLOOKUP($A667,Economática!$A$3:$AI$823,18,FALSE)))","v":""},{"$f":"IF($A667=\"\",\"\",IF(OR(VLOOKUP($A667,Economática!$A$3:$AI$823,19,FALSE)=0,VLOOKUP($A667,Economática!$A$3:$AI$823,19,FALSE)=\"-\"),1/0,VLOOKUP($A667,Economática!$A$3:$AI$823,19,FALSE)))","v":""},{"$f":"IF($A667=\"\",\"\",VLOOKUP($A667,Economática!$A$3:$AI$823,20,FALSE)/E667)","v":""},"","","",{"$f":"IF($A667=\"\",\"\",IF(OR(VLOOKUP($A667,Economática!$A$3:$AI$823,21,FALSE)/100=0,VLOOKUP($A667,Economática!$A$3:$AI$823,21,FALSE)/100=\"-\"),1/0,VLOOKUP($A667,Economática!$A$3:$AI$823,21,FALSE)/100))","v":""},{"$f":"IF($A667=\"\",\"\",IF(OR(VLOOKUP($A667,Economática!$A$3:$AI$823,22,FALSE)/100=0,VLOOKUP($A667,Economática!$A$3:$AI$823,22,FALSE)/100=\"-\"),1/0,VLOOKUP($A667,Economática!$A$3:$AI$823,22,FALSE)/100))","v":""},{"$f":"IF($A667=\"\",\"\",IF(OR(VLOOKUP($A667,Economática!$A$3:$AI$823,23,FALSE)=0,VLOOKUP($A667,Economática!$A$3:$AI$823,23,FALSE)=\"-\"),1/0,VLOOKUP($A667,Economática!$A$3:$AI$823,23,FALSE)))","v":""},{"$f":"IF($A667=\"\",\"\",IF(OR(VLOOKUP($A667,Economática!$A$3:$AI$823,24,FALSE)=0,VLOOKUP($A667,Economática!$A$3:$AI$823,24,FALSE)=\"-\"),1/0,VLOOKUP($A667,Economática!$A$3:$AI$823,24,FALSE)))","v":""},{"$f":"IF($A667=\"\",\"\",IF(OR(VLOOKUP($A667,Economática!$A$3:$AI$823,25,FALSE)=0,VLOOKUP($A667,Economática!$A$3:$AI$823,25,FALSE)=\"-\"),1/0,VLOOKUP($A667,Economática!$A$3:$AI$823,25,FALSE)))","v":""},{"$f":"IF($A667=\"\",\"\",IF(ISERROR((F667+VLOOKUP($A667,Economática!$A$3:$AI$823,26,FALSE))/Y667),(F667+VLOOKUP($A667,Economática!$A$3:$AI$823,26,FALSE))/Y667,(F667+VLOOKUP($A667,Economática!$A$3:$AI$823,26,FALSE))/Y667))","v":""},{"$f":"IF($A667=\"\",\"\",IF(OR(-VLOOKUP($A667,Economática!$A$3:$AI$823,27,FALSE)=0,-VLOOKUP($A667,Economática!$A$3:$AI$823,27,FALSE)=\"-\"),1/0,-VLOOKUP($A667,Economática!$A$3:$AI$823,27,FALSE)))","v":""},"",{"$f":"IF($A667=\"\",\"\",IF(OR(VLOOKUP($A667,Economática!$A$3:$AI$823,28,FALSE)=0,VLOOKUP($A667,Economática!$A$3:$AI$823,28,FALSE)=\"-\"),1/0,VLOOKUP($A667,Economática!$A$3:$AI$823,28,FALSE)))","v":""},{"$f":"IF($A667=\"\",\"\",IF(OR(VLOOKUP($A667,Economática!$A$3:$AI$823,29,FALSE)=0,VLOOKUP($A667,Economática!$A$3:$AI$823,29,FALSE)=\"-\"),1/0,VLOOKUP($A667,Economática!$A$3:$AI$823,29,FALSE)))","v":""},{"$f":"IF($A667=\"\",\"\",IF(OR(VLOOKUP($A667,Economática!$A$3:$AI$823,30,FALSE)/E667=0,VLOOKUP($A667,Economática!$A$3:$AI$823,30,FALSE)/E667=\"-\",VLOOKUP($A667,Economática!$A$3:$AI$823,30,FALSE)/E667<33.33%,VLOOKUP($A667,Economática!$A$3:$AI$823,30,FALSE)/E667>100%),1/0,VLOOKUP($A667,Economática!$A$3:$AI$823,30,FALSE)/E667))","v":""},"",{"$f":"IF($A667=\"\",\"\",IF(OR(VLOOKUP($A667,Economática!$A$3:$AI$823,25,FALSE)=0,VLOOKUP($A667,Economática!$A$3:$AI$823,25,FALSE)=\"-\"),1/0,VLOOKUP($A667,Economática!$A$3:$AI$823,25,FALSE)))","v":""},{"$f":"CONCATENATE(Economática!B645,\" \",Economática!C645)","v":" "}]
[{"$f":"IF(Economática!AG646=\"\",\"\",Economática!AG646)","v":""},{"$f":"IF($A668=\"\",\"\",VLOOKUP(VLOOKUP($A668,Economática!$A$3:$AI$823,6,FALSE),Correção!$B$16:$C$36,2,FALSE))","v":""},{"$f":"IF(Economática!B646=\"\",\"\",Economática!B646)","v":""},{"$f":"IF($A668=\"\",\"\",IF(OR(VLOOKUP($A668,Economática!$A$3:$AI$823,8,FALSE)=0,VLOOKUP($A668,Economática!$A$3:$AI$823,8,FALSE)=\"-\"),1/0,VLOOKUP($A668,Economática!$A$3:$AI$823,8,FALSE)))","v":""},{"$f":"IF(A668=\"\",\"\",IF(ISERROR(VLOOKUP(A668,Correção!$B$2:$G$13,9,FALSE)),VLOOKUP($A668,Economática!$A$3:$AI$823,9,FALSE),VLOOKUP(A668,Correção!$B$2:$G$13,9,FALSE)))","v":""},{"$f":"IF($A668=\"\",\"\",Economática!G646)","v":""},{"$f":"IF($A668=\"\",\"\",IF(OR(VLOOKUP($A668,Economática!$A$3:$AI$823,10,FALSE)=0,VLOOKUP($A668,Economática!$A$3:$AI$823,10,FALSE)=\"-\"),1/0,VLOOKUP($A668,Economática!$A$3:$AI$823,10,FALSE)))","v":""},{"$f":"IF($A668=\"\",\"\",IF(OR(VLOOKUP($A668,Economática!$A$3:$AI$823,11,FALSE)=0,VLOOKUP($A668,Economática!$A$3:$AI$823,11,FALSE)=\"-\"),1/0,VLOOKUP($A668,Economática!$A$3:$AI$823,11,FALSE)))","v":""},{"$f":"IF($A668=\"\",\"\",IF(OR(VLOOKUP($A668,Economática!$A$3:$AI$823,12,FALSE)=0,VLOOKUP($A668,Economática!$A$3:$AI$823,12,FALSE)=\"-\"),1/0,VLOOKUP($A668,Economática!$A$3:$AI$823,12,FALSE)))","v":""},{"$f":"IF($A668=\"\",\"\",IF(OR(VLOOKUP($A668,Economática!$A$3:$AI$823,13,FALSE)=0,VLOOKUP($A668,Economática!$A$3:$AI$823,13,FALSE)=\"-\"),1/0,VLOOKUP($A668,Economática!$A$3:$AI$823,13,FALSE)))","v":""},{"$f":"IF($A668=\"\",\"\",IF(OR(VLOOKUP($A668,Economática!$A$3:$AI$823,14,FALSE)=0,VLOOKUP($A668,Economática!$A$3:$AI$823,14,FALSE)=\"-\"),1/0,VLOOKUP($A668,Economática!$A$3:$AI$823,14,FALSE)))","v":""},{"$f":"IF($A668=\"\",\"\",IF(OR(VLOOKUP($A668,Economática!$A$3:$AI$823,15,FALSE)=0,VLOOKUP($A668,Economática!$A$3:$AI$823,15,FALSE)=\"-\"),1/0,VLOOKUP($A668,Economática!$A$3:$AI$823,15,FALSE)))","v":""},{"$f":"IF($A668=\"\",\"\",IF(OR(VLOOKUP($A668,Economática!$A$3:$AI$823,16,FALSE)=0,VLOOKUP($A668,Economática!$A$3:$AI$823,16,FALSE)=\"-\"),1/0,VLOOKUP($A668,Economática!$A$3:$AI$823,16,FALSE)))","v":""},{"$f":"IF($A668=\"\",\"\",IF(OR(VLOOKUP($A668,Economática!$A$3:$AI$823,17,FALSE)=0,VLOOKUP($A668,Economática!$A$3:$AI$823,17,FALSE)=\"-\"),1/0,VLOOKUP($A668,Economática!$A$3:$AI$823,17,FALSE)))","v":""},{"$f":"IF($A668=\"\",\"\",IF(OR(VLOOKUP($A668,Economática!$A$3:$AI$823,18,FALSE)=0,VLOOKUP($A668,Economática!$A$3:$AI$823,18,FALSE)=\"-\"),1/0,VLOOKUP($A668,Economática!$A$3:$AI$823,18,FALSE)))","v":""},{"$f":"IF($A668=\"\",\"\",IF(OR(VLOOKUP($A668,Economática!$A$3:$AI$823,19,FALSE)=0,VLOOKUP($A668,Economática!$A$3:$AI$823,19,FALSE)=\"-\"),1/0,VLOOKUP($A668,Economática!$A$3:$AI$823,19,FALSE)))","v":""},{"$f":"IF($A668=\"\",\"\",VLOOKUP($A668,Economática!$A$3:$AI$823,20,FALSE)/E668)","v":""},"","","",{"$f":"IF($A668=\"\",\"\",IF(OR(VLOOKUP($A668,Economática!$A$3:$AI$823,21,FALSE)/100=0,VLOOKUP($A668,Economática!$A$3:$AI$823,21,FALSE)/100=\"-\"),1/0,VLOOKUP($A668,Economática!$A$3:$AI$823,21,FALSE)/100))","v":""},{"$f":"IF($A668=\"\",\"\",IF(OR(VLOOKUP($A668,Economática!$A$3:$AI$823,22,FALSE)/100=0,VLOOKUP($A668,Economática!$A$3:$AI$823,22,FALSE)/100=\"-\"),1/0,VLOOKUP($A668,Economática!$A$3:$AI$823,22,FALSE)/100))","v":""},{"$f":"IF($A668=\"\",\"\",IF(OR(VLOOKUP($A668,Economática!$A$3:$AI$823,23,FALSE)=0,VLOOKUP($A668,Economática!$A$3:$AI$823,23,FALSE)=\"-\"),1/0,VLOOKUP($A668,Economática!$A$3:$AI$823,23,FALSE)))","v":""},{"$f":"IF($A668=\"\",\"\",IF(OR(VLOOKUP($A668,Economática!$A$3:$AI$823,24,FALSE)=0,VLOOKUP($A668,Economática!$A$3:$AI$823,24,FALSE)=\"-\"),1/0,VLOOKUP($A668,Economática!$A$3:$AI$823,24,FALSE)))","v":""},{"$f":"IF($A668=\"\",\"\",IF(OR(VLOOKUP($A668,Economática!$A$3:$AI$823,25,FALSE)=0,VLOOKUP($A668,Economática!$A$3:$AI$823,25,FALSE)=\"-\"),1/0,VLOOKUP($A668,Economática!$A$3:$AI$823,25,FALSE)))","v":""},{"$f":"IF($A668=\"\",\"\",IF(ISERROR((F668+VLOOKUP($A668,Economática!$A$3:$AI$823,26,FALSE))/Y668),(F668+VLOOKUP($A668,Economática!$A$3:$AI$823,26,FALSE))/Y668,(F668+VLOOKUP($A668,Economática!$A$3:$AI$823,26,FALSE))/Y668))","v":""},{"$f":"IF($A668=\"\",\"\",IF(OR(-VLOOKUP($A668,Economática!$A$3:$AI$823,27,FALSE)=0,-VLOOKUP($A668,Economática!$A$3:$AI$823,27,FALSE)=\"-\"),1/0,-VLOOKUP($A668,Economática!$A$3:$AI$823,27,FALSE)))","v":""},"",{"$f":"IF($A668=\"\",\"\",IF(OR(VLOOKUP($A668,Economática!$A$3:$AI$823,28,FALSE)=0,VLOOKUP($A668,Economática!$A$3:$AI$823,28,FALSE)=\"-\"),1/0,VLOOKUP($A668,Economática!$A$3:$AI$823,28,FALSE)))","v":""},{"$f":"IF($A668=\"\",\"\",IF(OR(VLOOKUP($A668,Economática!$A$3:$AI$823,29,FALSE)=0,VLOOKUP($A668,Economática!$A$3:$AI$823,29,FALSE)=\"-\"),1/0,VLOOKUP($A668,Economática!$A$3:$AI$823,29,FALSE)))","v":""},{"$f":"IF($A668=\"\",\"\",IF(OR(VLOOKUP($A668,Economática!$A$3:$AI$823,30,FALSE)/E668=0,VLOOKUP($A668,Economática!$A$3:$AI$823,30,FALSE)/E668=\"-\",VLOOKUP($A668,Economática!$A$3:$AI$823,30,FALSE)/E668<33.33%,VLOOKUP($A668,Economática!$A$3:$AI$823,30,FALSE)/E668>100%),1/0,VLOOKUP($A668,Economática!$A$3:$AI$823,30,FALSE)/E668))","v":""},"",{"$f":"IF($A668=\"\",\"\",IF(OR(VLOOKUP($A668,Economática!$A$3:$AI$823,25,FALSE)=0,VLOOKUP($A668,Economática!$A$3:$AI$823,25,FALSE)=\"-\"),1/0,VLOOKUP($A668,Economática!$A$3:$AI$823,25,FALSE)))","v":""},{"$f":"CONCATENATE(Economática!B646,\" \",Economática!C646)","v":" "}]
[{"$f":"IF(Economática!AG647=\"\",\"\",Economática!AG647)","v":""},{"$f":"IF($A669=\"\",\"\",VLOOKUP(VLOOKUP($A669,Economática!$A$3:$AI$823,6,FALSE),Correção!$B$16:$C$36,2,FALSE))","v":""},{"$f":"IF(Economática!B647=\"\",\"\",Economática!B647)","v":""},{"$f":"IF($A669=\"\",\"\",IF(OR(VLOOKUP($A669,Economática!$A$3:$AI$823,8,FALSE)=0,VLOOKUP($A669,Economática!$A$3:$AI$823,8,FALSE)=\"-\"),1/0,VLOOKUP($A669,Economática!$A$3:$AI$823,8,FALSE)))","v":""},{"$f":"IF(A669=\"\",\"\",IF(ISERROR(VLOOKUP(A669,Correção!$B$2:$G$13,9,FALSE)),VLOOKUP($A669,Economática!$A$3:$AI$823,9,FALSE),VLOOKUP(A669,Correção!$B$2:$G$13,9,FALSE)))","v":""},{"$f":"IF($A669=\"\",\"\",Economática!G647)","v":""},{"$f":"IF($A669=\"\",\"\",IF(OR(VLOOKUP($A669,Economática!$A$3:$AI$823,10,FALSE)=0,VLOOKUP($A669,Economática!$A$3:$AI$823,10,FALSE)=\"-\"),1/0,VLOOKUP($A669,Economática!$A$3:$AI$823,10,FALSE)))","v":""},{"$f":"IF($A669=\"\",\"\",IF(OR(VLOOKUP($A669,Economática!$A$3:$AI$823,11,FALSE)=0,VLOOKUP($A669,Economática!$A$3:$AI$823,11,FALSE)=\"-\"),1/0,VLOOKUP($A669,Economática!$A$3:$AI$823,11,FALSE)))","v":""},{"$f":"IF($A669=\"\",\"\",IF(OR(VLOOKUP($A669,Economática!$A$3:$AI$823,12,FALSE)=0,VLOOKUP($A669,Economática!$A$3:$AI$823,12,FALSE)=\"-\"),1/0,VLOOKUP($A669,Economática!$A$3:$AI$823,12,FALSE)))","v":""},{"$f":"IF($A669=\"\",\"\",IF(OR(VLOOKUP($A669,Economática!$A$3:$AI$823,13,FALSE)=0,VLOOKUP($A669,Economática!$A$3:$AI$823,13,FALSE)=\"-\"),1/0,VLOOKUP($A669,Economática!$A$3:$AI$823,13,FALSE)))","v":""},{"$f":"IF($A669=\"\",\"\",IF(OR(VLOOKUP($A669,Economática!$A$3:$AI$823,14,FALSE)=0,VLOOKUP($A669,Economática!$A$3:$AI$823,14,FALSE)=\"-\"),1/0,VLOOKUP($A669,Economática!$A$3:$AI$823,14,FALSE)))","v":""},{"$f":"IF($A669=\"\",\"\",IF(OR(VLOOKUP($A669,Economática!$A$3:$AI$823,15,FALSE)=0,VLOOKUP($A669,Economática!$A$3:$AI$823,15,FALSE)=\"-\"),1/0,VLOOKUP($A669,Economática!$A$3:$AI$823,15,FALSE)))","v":""},{"$f":"IF($A669=\"\",\"\",IF(OR(VLOOKUP($A669,Economática!$A$3:$AI$823,16,FALSE)=0,VLOOKUP($A669,Economática!$A$3:$AI$823,16,FALSE)=\"-\"),1/0,VLOOKUP($A669,Economática!$A$3:$AI$823,16,FALSE)))","v":""},{"$f":"IF($A669=\"\",\"\",IF(OR(VLOOKUP($A669,Economática!$A$3:$AI$823,17,FALSE)=0,VLOOKUP($A669,Economática!$A$3:$AI$823,17,FALSE)=\"-\"),1/0,VLOOKUP($A669,Economática!$A$3:$AI$823,17,FALSE)))","v":""},{"$f":"IF($A669=\"\",\"\",IF(OR(VLOOKUP($A669,Economática!$A$3:$AI$823,18,FALSE)=0,VLOOKUP($A669,Economática!$A$3:$AI$823,18,FALSE)=\"-\"),1/0,VLOOKUP($A669,Economática!$A$3:$AI$823,18,FALSE)))","v":""},{"$f":"IF($A669=\"\",\"\",IF(OR(VLOOKUP($A669,Economática!$A$3:$AI$823,19,FALSE)=0,VLOOKUP($A669,Economática!$A$3:$AI$823,19,FALSE)=\"-\"),1/0,VLOOKUP($A669,Economática!$A$3:$AI$823,19,FALSE)))","v":""},{"$f":"IF($A669=\"\",\"\",VLOOKUP($A669,Economática!$A$3:$AI$823,20,FALSE)/E669)","v":""},"","","",{"$f":"IF($A669=\"\",\"\",IF(OR(VLOOKUP($A669,Economática!$A$3:$AI$823,21,FALSE)/100=0,VLOOKUP($A669,Economática!$A$3:$AI$823,21,FALSE)/100=\"-\"),1/0,VLOOKUP($A669,Economática!$A$3:$AI$823,21,FALSE)/100))","v":""},{"$f":"IF($A669=\"\",\"\",IF(OR(VLOOKUP($A669,Economática!$A$3:$AI$823,22,FALSE)/100=0,VLOOKUP($A669,Economática!$A$3:$AI$823,22,FALSE)/100=\"-\"),1/0,VLOOKUP($A669,Economática!$A$3:$AI$823,22,FALSE)/100))","v":""},{"$f":"IF($A669=\"\",\"\",IF(OR(VLOOKUP($A669,Economática!$A$3:$AI$823,23,FALSE)=0,VLOOKUP($A669,Economática!$A$3:$AI$823,23,FALSE)=\"-\"),1/0,VLOOKUP($A669,Economática!$A$3:$AI$823,23,FALSE)))","v":""},{"$f":"IF($A669=\"\",\"\",IF(OR(VLOOKUP($A669,Economática!$A$3:$AI$823,24,FALSE)=0,VLOOKUP($A669,Economática!$A$3:$AI$823,24,FALSE)=\"-\"),1/0,VLOOKUP($A669,Economática!$A$3:$AI$823,24,FALSE)))","v":""},{"$f":"IF($A669=\"\",\"\",IF(OR(VLOOKUP($A669,Economática!$A$3:$AI$823,25,FALSE)=0,VLOOKUP($A669,Economática!$A$3:$AI$823,25,FALSE)=\"-\"),1/0,VLOOKUP($A669,Economática!$A$3:$AI$823,25,FALSE)))","v":""},{"$f":"IF($A669=\"\",\"\",IF(ISERROR((F669+VLOOKUP($A669,Economática!$A$3:$AI$823,26,FALSE))/Y669),(F669+VLOOKUP($A669,Economática!$A$3:$AI$823,26,FALSE))/Y669,(F669+VLOOKUP($A669,Economática!$A$3:$AI$823,26,FALSE))/Y669))","v":""},{"$f":"IF($A669=\"\",\"\",IF(OR(-VLOOKUP($A669,Economática!$A$3:$AI$823,27,FALSE)=0,-VLOOKUP($A669,Economática!$A$3:$AI$823,27,FALSE)=\"-\"),1/0,-VLOOKUP($A669,Economática!$A$3:$AI$823,27,FALSE)))","v":""},"",{"$f":"IF($A669=\"\",\"\",IF(OR(VLOOKUP($A669,Economática!$A$3:$AI$823,28,FALSE)=0,VLOOKUP($A669,Economática!$A$3:$AI$823,28,FALSE)=\"-\"),1/0,VLOOKUP($A669,Economática!$A$3:$AI$823,28,FALSE)))","v":""},{"$f":"IF($A669=\"\",\"\",IF(OR(VLOOKUP($A669,Economática!$A$3:$AI$823,29,FALSE)=0,VLOOKUP($A669,Economática!$A$3:$AI$823,29,FALSE)=\"-\"),1/0,VLOOKUP($A669,Economática!$A$3:$AI$823,29,FALSE)))","v":""},{"$f":"IF($A669=\"\",\"\",IF(OR(VLOOKUP($A669,Economática!$A$3:$AI$823,30,FALSE)/E669=0,VLOOKUP($A669,Economática!$A$3:$AI$823,30,FALSE)/E669=\"-\",VLOOKUP($A669,Economática!$A$3:$AI$823,30,FALSE)/E669<33.33%,VLOOKUP($A669,Economática!$A$3:$AI$823,30,FALSE)/E669>100%),1/0,VLOOKUP($A669,Economática!$A$3:$AI$823,30,FALSE)/E669))","v":""},"",{"$f":"IF($A669=\"\",\"\",IF(OR(VLOOKUP($A669,Economática!$A$3:$AI$823,25,FALSE)=0,VLOOKUP($A669,Economática!$A$3:$AI$823,25,FALSE)=\"-\"),1/0,VLOOKUP($A669,Economática!$A$3:$AI$823,25,FALSE)))","v":""},{"$f":"CONCATENATE(Economática!B647,\" \",Economática!C647)","v":" "}]
[{"$f":"IF(Economática!AG648=\"\",\"\",Economática!AG648)","v":""},{"$f":"IF($A670=\"\",\"\",VLOOKUP(VLOOKUP($A670,Economática!$A$3:$AI$823,6,FALSE),Correção!$B$16:$C$36,2,FALSE))","v":""},{"$f":"IF(Economática!B648=\"\",\"\",Economática!B648)","v":""},{"$f":"IF($A670=\"\",\"\",IF(OR(VLOOKUP($A670,Economática!$A$3:$AI$823,8,FALSE)=0,VLOOKUP($A670,Economática!$A$3:$AI$823,8,FALSE)=\"-\"),1/0,VLOOKUP($A670,Economática!$A$3:$AI$823,8,FALSE)))","v":""},{"$f":"IF(A670=\"\",\"\",IF(ISERROR(VLOOKUP(A670,Correção!$B$2:$G$13,9,FALSE)),VLOOKUP($A670,Economática!$A$3:$AI$823,9,FALSE),VLOOKUP(A670,Correção!$B$2:$G$13,9,FALSE)))","v":""},{"$f":"IF($A670=\"\",\"\",Economática!G648)","v":""},{"$f":"IF($A670=\"\",\"\",IF(OR(VLOOKUP($A670,Economática!$A$3:$AI$823,10,FALSE)=0,VLOOKUP($A670,Economática!$A$3:$AI$823,10,FALSE)=\"-\"),1/0,VLOOKUP($A670,Economática!$A$3:$AI$823,10,FALSE)))","v":""},{"$f":"IF($A670=\"\",\"\",IF(OR(VLOOKUP($A670,Economática!$A$3:$AI$823,11,FALSE)=0,VLOOKUP($A670,Economática!$A$3:$AI$823,11,FALSE)=\"-\"),1/0,VLOOKUP($A670,Economática!$A$3:$AI$823,11,FALSE)))","v":""},{"$f":"IF($A670=\"\",\"\",IF(OR(VLOOKUP($A670,Economática!$A$3:$AI$823,12,FALSE)=0,VLOOKUP($A670,Economática!$A$3:$AI$823,12,FALSE)=\"-\"),1/0,VLOOKUP($A670,Economática!$A$3:$AI$823,12,FALSE)))","v":""},{"$f":"IF($A670=\"\",\"\",IF(OR(VLOOKUP($A670,Economática!$A$3:$AI$823,13,FALSE)=0,VLOOKUP($A670,Economática!$A$3:$AI$823,13,FALSE)=\"-\"),1/0,VLOOKUP($A670,Economática!$A$3:$AI$823,13,FALSE)))","v":""},{"$f":"IF($A670=\"\",\"\",IF(OR(VLOOKUP($A670,Economática!$A$3:$AI$823,14,FALSE)=0,VLOOKUP($A670,Economática!$A$3:$AI$823,14,FALSE)=\"-\"),1/0,VLOOKUP($A670,Economática!$A$3:$AI$823,14,FALSE)))","v":""},{"$f":"IF($A670=\"\",\"\",IF(OR(VLOOKUP($A670,Economática!$A$3:$AI$823,15,FALSE)=0,VLOOKUP($A670,Economática!$A$3:$AI$823,15,FALSE)=\"-\"),1/0,VLOOKUP($A670,Economática!$A$3:$AI$823,15,FALSE)))","v":""},{"$f":"IF($A670=\"\",\"\",IF(OR(VLOOKUP($A670,Economática!$A$3:$AI$823,16,FALSE)=0,VLOOKUP($A670,Economática!$A$3:$AI$823,16,FALSE)=\"-\"),1/0,VLOOKUP($A670,Economática!$A$3:$AI$823,16,FALSE)))","v":""},{"$f":"IF($A670=\"\",\"\",IF(OR(VLOOKUP($A670,Economática!$A$3:$AI$823,17,FALSE)=0,VLOOKUP($A670,Economática!$A$3:$AI$823,17,FALSE)=\"-\"),1/0,VLOOKUP($A670,Economática!$A$3:$AI$823,17,FALSE)))","v":""},{"$f":"IF($A670=\"\",\"\",IF(OR(VLOOKUP($A670,Economática!$A$3:$AI$823,18,FALSE)=0,VLOOKUP($A670,Economática!$A$3:$AI$823,18,FALSE)=\"-\"),1/0,VLOOKUP($A670,Economática!$A$3:$AI$823,18,FALSE)))","v":""},{"$f":"IF($A670=\"\",\"\",IF(OR(VLOOKUP($A670,Economática!$A$3:$AI$823,19,FALSE)=0,VLOOKUP($A670,Economática!$A$3:$AI$823,19,FALSE)=\"-\"),1/0,VLOOKUP($A670,Economática!$A$3:$AI$823,19,FALSE)))","v":""},{"$f":"IF($A670=\"\",\"\",VLOOKUP($A670,Economática!$A$3:$AI$823,20,FALSE)/E670)","v":""},"","","",{"$f":"IF($A670=\"\",\"\",IF(OR(VLOOKUP($A670,Economática!$A$3:$AI$823,21,FALSE)/100=0,VLOOKUP($A670,Economática!$A$3:$AI$823,21,FALSE)/100=\"-\"),1/0,VLOOKUP($A670,Economática!$A$3:$AI$823,21,FALSE)/100))","v":""},{"$f":"IF($A670=\"\",\"\",IF(OR(VLOOKUP($A670,Economática!$A$3:$AI$823,22,FALSE)/100=0,VLOOKUP($A670,Economática!$A$3:$AI$823,22,FALSE)/100=\"-\"),1/0,VLOOKUP($A670,Economática!$A$3:$AI$823,22,FALSE)/100))","v":""},{"$f":"IF($A670=\"\",\"\",IF(OR(VLOOKUP($A670,Economática!$A$3:$AI$823,23,FALSE)=0,VLOOKUP($A670,Economática!$A$3:$AI$823,23,FALSE)=\"-\"),1/0,VLOOKUP($A670,Economática!$A$3:$AI$823,23,FALSE)))","v":""},{"$f":"IF($A670=\"\",\"\",IF(OR(VLOOKUP($A670,Economática!$A$3:$AI$823,24,FALSE)=0,VLOOKUP($A670,Economática!$A$3:$AI$823,24,FALSE)=\"-\"),1/0,VLOOKUP($A670,Economática!$A$3:$AI$823,24,FALSE)))","v":""},{"$f":"IF($A670=\"\",\"\",IF(OR(VLOOKUP($A670,Economática!$A$3:$AI$823,25,FALSE)=0,VLOOKUP($A670,Economática!$A$3:$AI$823,25,FALSE)=\"-\"),1/0,VLOOKUP($A670,Economática!$A$3:$AI$823,25,FALSE)))","v":""},{"$f":"IF($A670=\"\",\"\",IF(ISERROR((F670+VLOOKUP($A670,Economática!$A$3:$AI$823,26,FALSE))/Y670),(F670+VLOOKUP($A670,Economática!$A$3:$AI$823,26,FALSE))/Y670,(F670+VLOOKUP($A670,Economática!$A$3:$AI$823,26,FALSE))/Y670))","v":""},{"$f":"IF($A670=\"\",\"\",IF(OR(-VLOOKUP($A670,Economática!$A$3:$AI$823,27,FALSE)=0,-VLOOKUP($A670,Economática!$A$3:$AI$823,27,FALSE)=\"-\"),1/0,-VLOOKUP($A670,Economática!$A$3:$AI$823,27,FALSE)))","v":""},"",{"$f":"IF($A670=\"\",\"\",IF(OR(VLOOKUP($A670,Economática!$A$3:$AI$823,28,FALSE)=0,VLOOKUP($A670,Economática!$A$3:$AI$823,28,FALSE)=\"-\"),1/0,VLOOKUP($A670,Economática!$A$3:$AI$823,28,FALSE)))","v":""},{"$f":"IF($A670=\"\",\"\",IF(OR(VLOOKUP($A670,Economática!$A$3:$AI$823,29,FALSE)=0,VLOOKUP($A670,Economática!$A$3:$AI$823,29,FALSE)=\"-\"),1/0,VLOOKUP($A670,Economática!$A$3:$AI$823,29,FALSE)))","v":""},{"$f":"IF($A670=\"\",\"\",IF(OR(VLOOKUP($A670,Economática!$A$3:$AI$823,30,FALSE)/E670=0,VLOOKUP($A670,Economática!$A$3:$AI$823,30,FALSE)/E670=\"-\",VLOOKUP($A670,Economática!$A$3:$AI$823,30,FALSE)/E670<33.33%,VLOOKUP($A670,Economática!$A$3:$AI$823,30,FALSE)/E670>100%),1/0,VLOOKUP($A670,Economática!$A$3:$AI$823,30,FALSE)/E670))","v":""},"",{"$f":"IF($A670=\"\",\"\",IF(OR(VLOOKUP($A670,Economática!$A$3:$AI$823,25,FALSE)=0,VLOOKUP($A670,Economática!$A$3:$AI$823,25,FALSE)=\"-\"),1/0,VLOOKUP($A670,Economática!$A$3:$AI$823,25,FALSE)))","v":""},{"$f":"CONCATENATE(Economática!B648,\" \",Economática!C648)","v":" "}]
[{"$f":"IF(Economática!AG649=\"\",\"\",Economática!AG649)","v":""},{"$f":"IF($A671=\"\",\"\",VLOOKUP(VLOOKUP($A671,Economática!$A$3:$AI$823,6,FALSE),Correção!$B$16:$C$36,2,FALSE))","v":""},{"$f":"IF(Economática!B649=\"\",\"\",Economática!B649)","v":""},{"$f":"IF($A671=\"\",\"\",IF(OR(VLOOKUP($A671,Economática!$A$3:$AI$823,8,FALSE)=0,VLOOKUP($A671,Economática!$A$3:$AI$823,8,FALSE)=\"-\"),1/0,VLOOKUP($A671,Economática!$A$3:$AI$823,8,FALSE)))","v":""},{"$f":"IF(A671=\"\",\"\",IF(ISERROR(VLOOKUP(A671,Correção!$B$2:$G$13,9,FALSE)),VLOOKUP($A671,Economática!$A$3:$AI$823,9,FALSE),VLOOKUP(A671,Correção!$B$2:$G$13,9,FALSE)))","v":""},{"$f":"IF($A671=\"\",\"\",Economática!G649)","v":""},{"$f":"IF($A671=\"\",\"\",IF(OR(VLOOKUP($A671,Economática!$A$3:$AI$823,10,FALSE)=0,VLOOKUP($A671,Economática!$A$3:$AI$823,10,FALSE)=\"-\"),1/0,VLOOKUP($A671,Economática!$A$3:$AI$823,10,FALSE)))","v":""},{"$f":"IF($A671=\"\",\"\",IF(OR(VLOOKUP($A671,Economática!$A$3:$AI$823,11,FALSE)=0,VLOOKUP($A671,Economática!$A$3:$AI$823,11,FALSE)=\"-\"),1/0,VLOOKUP($A671,Economática!$A$3:$AI$823,11,FALSE)))","v":""},{"$f":"IF($A671=\"\",\"\",IF(OR(VLOOKUP($A671,Economática!$A$3:$AI$823,12,FALSE)=0,VLOOKUP($A671,Economática!$A$3:$AI$823,12,FALSE)=\"-\"),1/0,VLOOKUP($A671,Economática!$A$3:$AI$823,12,FALSE)))","v":""},{"$f":"IF($A671=\"\",\"\",IF(OR(VLOOKUP($A671,Economática!$A$3:$AI$823,13,FALSE)=0,VLOOKUP($A671,Economática!$A$3:$AI$823,13,FALSE)=\"-\"),1/0,VLOOKUP($A671,Economática!$A$3:$AI$823,13,FALSE)))","v":""},{"$f":"IF($A671=\"\",\"\",IF(OR(VLOOKUP($A671,Economática!$A$3:$AI$823,14,FALSE)=0,VLOOKUP($A671,Economática!$A$3:$AI$823,14,FALSE)=\"-\"),1/0,VLOOKUP($A671,Economática!$A$3:$AI$823,14,FALSE)))","v":""},{"$f":"IF($A671=\"\",\"\",IF(OR(VLOOKUP($A671,Economática!$A$3:$AI$823,15,FALSE)=0,VLOOKUP($A671,Economática!$A$3:$AI$823,15,FALSE)=\"-\"),1/0,VLOOKUP($A671,Economática!$A$3:$AI$823,15,FALSE)))","v":""},{"$f":"IF($A671=\"\",\"\",IF(OR(VLOOKUP($A671,Economática!$A$3:$AI$823,16,FALSE)=0,VLOOKUP($A671,Economática!$A$3:$AI$823,16,FALSE)=\"-\"),1/0,VLOOKUP($A671,Economática!$A$3:$AI$823,16,FALSE)))","v":""},{"$f":"IF($A671=\"\",\"\",IF(OR(VLOOKUP($A671,Economática!$A$3:$AI$823,17,FALSE)=0,VLOOKUP($A671,Economática!$A$3:$AI$823,17,FALSE)=\"-\"),1/0,VLOOKUP($A671,Economática!$A$3:$AI$823,17,FALSE)))","v":""},{"$f":"IF($A671=\"\",\"\",IF(OR(VLOOKUP($A671,Economática!$A$3:$AI$823,18,FALSE)=0,VLOOKUP($A671,Economática!$A$3:$AI$823,18,FALSE)=\"-\"),1/0,VLOOKUP($A671,Economática!$A$3:$AI$823,18,FALSE)))","v":""},{"$f":"IF($A671=\"\",\"\",IF(OR(VLOOKUP($A671,Economática!$A$3:$AI$823,19,FALSE)=0,VLOOKUP($A671,Economática!$A$3:$AI$823,19,FALSE)=\"-\"),1/0,VLOOKUP($A671,Economática!$A$3:$AI$823,19,FALSE)))","v":""},{"$f":"IF($A671=\"\",\"\",VLOOKUP($A671,Economática!$A$3:$AI$823,20,FALSE)/E671)","v":""},"","","",{"$f":"IF($A671=\"\",\"\",IF(OR(VLOOKUP($A671,Economática!$A$3:$AI$823,21,FALSE)/100=0,VLOOKUP($A671,Economática!$A$3:$AI$823,21,FALSE)/100=\"-\"),1/0,VLOOKUP($A671,Economática!$A$3:$AI$823,21,FALSE)/100))","v":""},{"$f":"IF($A671=\"\",\"\",IF(OR(VLOOKUP($A671,Economática!$A$3:$AI$823,22,FALSE)/100=0,VLOOKUP($A671,Economática!$A$3:$AI$823,22,FALSE)/100=\"-\"),1/0,VLOOKUP($A671,Economática!$A$3:$AI$823,22,FALSE)/100))","v":""},{"$f":"IF($A671=\"\",\"\",IF(OR(VLOOKUP($A671,Economática!$A$3:$AI$823,23,FALSE)=0,VLOOKUP($A671,Economática!$A$3:$AI$823,23,FALSE)=\"-\"),1/0,VLOOKUP($A671,Economática!$A$3:$AI$823,23,FALSE)))","v":""},{"$f":"IF($A671=\"\",\"\",IF(OR(VLOOKUP($A671,Economática!$A$3:$AI$823,24,FALSE)=0,VLOOKUP($A671,Economática!$A$3:$AI$823,24,FALSE)=\"-\"),1/0,VLOOKUP($A671,Economática!$A$3:$AI$823,24,FALSE)))","v":""},{"$f":"IF($A671=\"\",\"\",IF(OR(VLOOKUP($A671,Economática!$A$3:$AI$823,25,FALSE)=0,VLOOKUP($A671,Economática!$A$3:$AI$823,25,FALSE)=\"-\"),1/0,VLOOKUP($A671,Economática!$A$3:$AI$823,25,FALSE)))","v":""},{"$f":"IF($A671=\"\",\"\",IF(ISERROR((F671+VLOOKUP($A671,Economática!$A$3:$AI$823,26,FALSE))/Y671),(F671+VLOOKUP($A671,Economática!$A$3:$AI$823,26,FALSE))/Y671,(F671+VLOOKUP($A671,Economática!$A$3:$AI$823,26,FALSE))/Y671))","v":""},{"$f":"IF($A671=\"\",\"\",IF(OR(-VLOOKUP($A671,Economática!$A$3:$AI$823,27,FALSE)=0,-VLOOKUP($A671,Economática!$A$3:$AI$823,27,FALSE)=\"-\"),1/0,-VLOOKUP($A671,Economática!$A$3:$AI$823,27,FALSE)))","v":""},"",{"$f":"IF($A671=\"\",\"\",IF(OR(VLOOKUP($A671,Economática!$A$3:$AI$823,28,FALSE)=0,VLOOKUP($A671,Economática!$A$3:$AI$823,28,FALSE)=\"-\"),1/0,VLOOKUP($A671,Economática!$A$3:$AI$823,28,FALSE)))","v":""},{"$f":"IF($A671=\"\",\"\",IF(OR(VLOOKUP($A671,Economática!$A$3:$AI$823,29,FALSE)=0,VLOOKUP($A671,Economática!$A$3:$AI$823,29,FALSE)=\"-\"),1/0,VLOOKUP($A671,Economática!$A$3:$AI$823,29,FALSE)))","v":""},{"$f":"IF($A671=\"\",\"\",IF(OR(VLOOKUP($A671,Economática!$A$3:$AI$823,30,FALSE)/E671=0,VLOOKUP($A671,Economática!$A$3:$AI$823,30,FALSE)/E671=\"-\",VLOOKUP($A671,Economática!$A$3:$AI$823,30,FALSE)/E671<33.33%,VLOOKUP($A671,Economática!$A$3:$AI$823,30,FALSE)/E671>100%),1/0,VLOOKUP($A671,Economática!$A$3:$AI$823,30,FALSE)/E671))","v":""},"",{"$f":"IF($A671=\"\",\"\",IF(OR(VLOOKUP($A671,Economática!$A$3:$AI$823,25,FALSE)=0,VLOOKUP($A671,Economática!$A$3:$AI$823,25,FALSE)=\"-\"),1/0,VLOOKUP($A671,Economática!$A$3:$AI$823,25,FALSE)))","v":""},{"$f":"CONCATENATE(Economática!B649,\" \",Economática!C649)","v":" "}]
[{"$f":"IF(Economática!AG650=\"\",\"\",Economática!AG650)","v":""},{"$f":"IF($A672=\"\",\"\",VLOOKUP(VLOOKUP($A672,Economática!$A$3:$AI$823,6,FALSE),Correção!$B$16:$C$36,2,FALSE))","v":""},{"$f":"IF(Economática!B650=\"\",\"\",Economática!B650)","v":""},{"$f":"IF($A672=\"\",\"\",IF(OR(VLOOKUP($A672,Economática!$A$3:$AI$823,8,FALSE)=0,VLOOKUP($A672,Economática!$A$3:$AI$823,8,FALSE)=\"-\"),1/0,VLOOKUP($A672,Economática!$A$3:$AI$823,8,FALSE)))","v":""},{"$f":"IF(A672=\"\",\"\",IF(ISERROR(VLOOKUP(A672,Correção!$B$2:$G$13,9,FALSE)),VLOOKUP($A672,Economática!$A$3:$AI$823,9,FALSE),VLOOKUP(A672,Correção!$B$2:$G$13,9,FALSE)))","v":""},{"$f":"IF($A672=\"\",\"\",Economática!G650)","v":""},{"$f":"IF($A672=\"\",\"\",IF(OR(VLOOKUP($A672,Economática!$A$3:$AI$823,10,FALSE)=0,VLOOKUP($A672,Economática!$A$3:$AI$823,10,FALSE)=\"-\"),1/0,VLOOKUP($A672,Economática!$A$3:$AI$823,10,FALSE)))","v":""},{"$f":"IF($A672=\"\",\"\",IF(OR(VLOOKUP($A672,Economática!$A$3:$AI$823,11,FALSE)=0,VLOOKUP($A672,Economática!$A$3:$AI$823,11,FALSE)=\"-\"),1/0,VLOOKUP($A672,Economática!$A$3:$AI$823,11,FALSE)))","v":""},{"$f":"IF($A672=\"\",\"\",IF(OR(VLOOKUP($A672,Economática!$A$3:$AI$823,12,FALSE)=0,VLOOKUP($A672,Economática!$A$3:$AI$823,12,FALSE)=\"-\"),1/0,VLOOKUP($A672,Economática!$A$3:$AI$823,12,FALSE)))","v":""},{"$f":"IF($A672=\"\",\"\",IF(OR(VLOOKUP($A672,Economática!$A$3:$AI$823,13,FALSE)=0,VLOOKUP($A672,Economática!$A$3:$AI$823,13,FALSE)=\"-\"),1/0,VLOOKUP($A672,Economática!$A$3:$AI$823,13,FALSE)))","v":""},{"$f":"IF($A672=\"\",\"\",IF(OR(VLOOKUP($A672,Economática!$A$3:$AI$823,14,FALSE)=0,VLOOKUP($A672,Economática!$A$3:$AI$823,14,FALSE)=\"-\"),1/0,VLOOKUP($A672,Economática!$A$3:$AI$823,14,FALSE)))","v":""},{"$f":"IF($A672=\"\",\"\",IF(OR(VLOOKUP($A672,Economática!$A$3:$AI$823,15,FALSE)=0,VLOOKUP($A672,Economática!$A$3:$AI$823,15,FALSE)=\"-\"),1/0,VLOOKUP($A672,Economática!$A$3:$AI$823,15,FALSE)))","v":""},{"$f":"IF($A672=\"\",\"\",IF(OR(VLOOKUP($A672,Economática!$A$3:$AI$823,16,FALSE)=0,VLOOKUP($A672,Economática!$A$3:$AI$823,16,FALSE)=\"-\"),1/0,VLOOKUP($A672,Economática!$A$3:$AI$823,16,FALSE)))","v":""},{"$f":"IF($A672=\"\",\"\",IF(OR(VLOOKUP($A672,Economática!$A$3:$AI$823,17,FALSE)=0,VLOOKUP($A672,Economática!$A$3:$AI$823,17,FALSE)=\"-\"),1/0,VLOOKUP($A672,Economática!$A$3:$AI$823,17,FALSE)))","v":""},{"$f":"IF($A672=\"\",\"\",IF(OR(VLOOKUP($A672,Economática!$A$3:$AI$823,18,FALSE)=0,VLOOKUP($A672,Economática!$A$3:$AI$823,18,FALSE)=\"-\"),1/0,VLOOKUP($A672,Economática!$A$3:$AI$823,18,FALSE)))","v":""},{"$f":"IF($A672=\"\",\"\",IF(OR(VLOOKUP($A672,Economática!$A$3:$AI$823,19,FALSE)=0,VLOOKUP($A672,Economática!$A$3:$AI$823,19,FALSE)=\"-\"),1/0,VLOOKUP($A672,Economática!$A$3:$AI$823,19,FALSE)))","v":""},{"$f":"IF($A672=\"\",\"\",VLOOKUP($A672,Economática!$A$3:$AI$823,20,FALSE)/E672)","v":""},"","","",{"$f":"IF($A672=\"\",\"\",IF(OR(VLOOKUP($A672,Economática!$A$3:$AI$823,21,FALSE)/100=0,VLOOKUP($A672,Economática!$A$3:$AI$823,21,FALSE)/100=\"-\"),1/0,VLOOKUP($A672,Economática!$A$3:$AI$823,21,FALSE)/100))","v":""},{"$f":"IF($A672=\"\",\"\",IF(OR(VLOOKUP($A672,Economática!$A$3:$AI$823,22,FALSE)/100=0,VLOOKUP($A672,Economática!$A$3:$AI$823,22,FALSE)/100=\"-\"),1/0,VLOOKUP($A672,Economática!$A$3:$AI$823,22,FALSE)/100))","v":""},{"$f":"IF($A672=\"\",\"\",IF(OR(VLOOKUP($A672,Economática!$A$3:$AI$823,23,FALSE)=0,VLOOKUP($A672,Economática!$A$3:$AI$823,23,FALSE)=\"-\"),1/0,VLOOKUP($A672,Economática!$A$3:$AI$823,23,FALSE)))","v":""},{"$f":"IF($A672=\"\",\"\",IF(OR(VLOOKUP($A672,Economática!$A$3:$AI$823,24,FALSE)=0,VLOOKUP($A672,Economática!$A$3:$AI$823,24,FALSE)=\"-\"),1/0,VLOOKUP($A672,Economática!$A$3:$AI$823,24,FALSE)))","v":""},{"$f":"IF($A672=\"\",\"\",IF(OR(VLOOKUP($A672,Economática!$A$3:$AI$823,25,FALSE)=0,VLOOKUP($A672,Economática!$A$3:$AI$823,25,FALSE)=\"-\"),1/0,VLOOKUP($A672,Economática!$A$3:$AI$823,25,FALSE)))","v":""},{"$f":"IF($A672=\"\",\"\",IF(ISERROR((F672+VLOOKUP($A672,Economática!$A$3:$AI$823,26,FALSE))/Y672),(F672+VLOOKUP($A672,Economática!$A$3:$AI$823,26,FALSE))/Y672,(F672+VLOOKUP($A672,Economática!$A$3:$AI$823,26,FALSE))/Y672))","v":""},{"$f":"IF($A672=\"\",\"\",IF(OR(-VLOOKUP($A672,Economática!$A$3:$AI$823,27,FALSE)=0,-VLOOKUP($A672,Economática!$A$3:$AI$823,27,FALSE)=\"-\"),1/0,-VLOOKUP($A672,Economática!$A$3:$AI$823,27,FALSE)))","v":""},"",{"$f":"IF($A672=\"\",\"\",IF(OR(VLOOKUP($A672,Economática!$A$3:$AI$823,28,FALSE)=0,VLOOKUP($A672,Economática!$A$3:$AI$823,28,FALSE)=\"-\"),1/0,VLOOKUP($A672,Economática!$A$3:$AI$823,28,FALSE)))","v":""},{"$f":"IF($A672=\"\",\"\",IF(OR(VLOOKUP($A672,Economática!$A$3:$AI$823,29,FALSE)=0,VLOOKUP($A672,Economática!$A$3:$AI$823,29,FALSE)=\"-\"),1/0,VLOOKUP($A672,Economática!$A$3:$AI$823,29,FALSE)))","v":""},{"$f":"IF($A672=\"\",\"\",IF(OR(VLOOKUP($A672,Economática!$A$3:$AI$823,30,FALSE)/E672=0,VLOOKUP($A672,Economática!$A$3:$AI$823,30,FALSE)/E672=\"-\",VLOOKUP($A672,Economática!$A$3:$AI$823,30,FALSE)/E672<33.33%,VLOOKUP($A672,Economática!$A$3:$AI$823,30,FALSE)/E672>100%),1/0,VLOOKUP($A672,Economática!$A$3:$AI$823,30,FALSE)/E672))","v":""},"",{"$f":"IF($A672=\"\",\"\",IF(OR(VLOOKUP($A672,Economática!$A$3:$AI$823,25,FALSE)=0,VLOOKUP($A672,Economática!$A$3:$AI$823,25,FALSE)=\"-\"),1/0,VLOOKUP($A672,Economática!$A$3:$AI$823,25,FALSE)))","v":""},{"$f":"CONCATENATE(Economática!B650,\" \",Economática!C650)","v":" "}]
[{"$f":"IF(Economática!AG651=\"\",\"\",Economática!AG651)","v":""},{"$f":"IF($A673=\"\",\"\",VLOOKUP(VLOOKUP($A673,Economática!$A$3:$AI$823,6,FALSE),Correção!$B$16:$C$36,2,FALSE))","v":""},{"$f":"IF(Economática!B651=\"\",\"\",Economática!B651)","v":""},{"$f":"IF($A673=\"\",\"\",IF(OR(VLOOKUP($A673,Economática!$A$3:$AI$823,8,FALSE)=0,VLOOKUP($A673,Economática!$A$3:$AI$823,8,FALSE)=\"-\"),1/0,VLOOKUP($A673,Economática!$A$3:$AI$823,8,FALSE)))","v":""},{"$f":"IF(A673=\"\",\"\",IF(ISERROR(VLOOKUP(A673,Correção!$B$2:$G$13,9,FALSE)),VLOOKUP($A673,Economática!$A$3:$AI$823,9,FALSE),VLOOKUP(A673,Correção!$B$2:$G$13,9,FALSE)))","v":""},{"$f":"IF($A673=\"\",\"\",Economática!G651)","v":""},{"$f":"IF($A673=\"\",\"\",IF(OR(VLOOKUP($A673,Economática!$A$3:$AI$823,10,FALSE)=0,VLOOKUP($A673,Economática!$A$3:$AI$823,10,FALSE)=\"-\"),1/0,VLOOKUP($A673,Economática!$A$3:$AI$823,10,FALSE)))","v":""},{"$f":"IF($A673=\"\",\"\",IF(OR(VLOOKUP($A673,Economática!$A$3:$AI$823,11,FALSE)=0,VLOOKUP($A673,Economática!$A$3:$AI$823,11,FALSE)=\"-\"),1/0,VLOOKUP($A673,Economática!$A$3:$AI$823,11,FALSE)))","v":""},{"$f":"IF($A673=\"\",\"\",IF(OR(VLOOKUP($A673,Economática!$A$3:$AI$823,12,FALSE)=0,VLOOKUP($A673,Economática!$A$3:$AI$823,12,FALSE)=\"-\"),1/0,VLOOKUP($A673,Economática!$A$3:$AI$823,12,FALSE)))","v":""},{"$f":"IF($A673=\"\",\"\",IF(OR(VLOOKUP($A673,Economática!$A$3:$AI$823,13,FALSE)=0,VLOOKUP($A673,Economática!$A$3:$AI$823,13,FALSE)=\"-\"),1/0,VLOOKUP($A673,Economática!$A$3:$AI$823,13,FALSE)))","v":""},{"$f":"IF($A673=\"\",\"\",IF(OR(VLOOKUP($A673,Economática!$A$3:$AI$823,14,FALSE)=0,VLOOKUP($A673,Economática!$A$3:$AI$823,14,FALSE)=\"-\"),1/0,VLOOKUP($A673,Economática!$A$3:$AI$823,14,FALSE)))","v":""},{"$f":"IF($A673=\"\",\"\",IF(OR(VLOOKUP($A673,Economática!$A$3:$AI$823,15,FALSE)=0,VLOOKUP($A673,Economática!$A$3:$AI$823,15,FALSE)=\"-\"),1/0,VLOOKUP($A673,Economática!$A$3:$AI$823,15,FALSE)))","v":""},{"$f":"IF($A673=\"\",\"\",IF(OR(VLOOKUP($A673,Economática!$A$3:$AI$823,16,FALSE)=0,VLOOKUP($A673,Economática!$A$3:$AI$823,16,FALSE)=\"-\"),1/0,VLOOKUP($A673,Economática!$A$3:$AI$823,16,FALSE)))","v":""},{"$f":"IF($A673=\"\",\"\",IF(OR(VLOOKUP($A673,Economática!$A$3:$AI$823,17,FALSE)=0,VLOOKUP($A673,Economática!$A$3:$AI$823,17,FALSE)=\"-\"),1/0,VLOOKUP($A673,Economática!$A$3:$AI$823,17,FALSE)))","v":""},{"$f":"IF($A673=\"\",\"\",IF(OR(VLOOKUP($A673,Economática!$A$3:$AI$823,18,FALSE)=0,VLOOKUP($A673,Economática!$A$3:$AI$823,18,FALSE)=\"-\"),1/0,VLOOKUP($A673,Economática!$A$3:$AI$823,18,FALSE)))","v":""},{"$f":"IF($A673=\"\",\"\",IF(OR(VLOOKUP($A673,Economática!$A$3:$AI$823,19,FALSE)=0,VLOOKUP($A673,Economática!$A$3:$AI$823,19,FALSE)=\"-\"),1/0,VLOOKUP($A673,Economática!$A$3:$AI$823,19,FALSE)))","v":""},{"$f":"IF($A673=\"\",\"\",VLOOKUP($A673,Economática!$A$3:$AI$823,20,FALSE)/E673)","v":""},"","","",{"$f":"IF($A673=\"\",\"\",IF(OR(VLOOKUP($A673,Economática!$A$3:$AI$823,21,FALSE)/100=0,VLOOKUP($A673,Economática!$A$3:$AI$823,21,FALSE)/100=\"-\"),1/0,VLOOKUP($A673,Economática!$A$3:$AI$823,21,FALSE)/100))","v":""},{"$f":"IF($A673=\"\",\"\",IF(OR(VLOOKUP($A673,Economática!$A$3:$AI$823,22,FALSE)/100=0,VLOOKUP($A673,Economática!$A$3:$AI$823,22,FALSE)/100=\"-\"),1/0,VLOOKUP($A673,Economática!$A$3:$AI$823,22,FALSE)/100))","v":""},{"$f":"IF($A673=\"\",\"\",IF(OR(VLOOKUP($A673,Economática!$A$3:$AI$823,23,FALSE)=0,VLOOKUP($A673,Economática!$A$3:$AI$823,23,FALSE)=\"-\"),1/0,VLOOKUP($A673,Economática!$A$3:$AI$823,23,FALSE)))","v":""},{"$f":"IF($A673=\"\",\"\",IF(OR(VLOOKUP($A673,Economática!$A$3:$AI$823,24,FALSE)=0,VLOOKUP($A673,Economática!$A$3:$AI$823,24,FALSE)=\"-\"),1/0,VLOOKUP($A673,Economática!$A$3:$AI$823,24,FALSE)))","v":""},{"$f":"IF($A673=\"\",\"\",IF(OR(VLOOKUP($A673,Economática!$A$3:$AI$823,25,FALSE)=0,VLOOKUP($A673,Economática!$A$3:$AI$823,25,FALSE)=\"-\"),1/0,VLOOKUP($A673,Economática!$A$3:$AI$823,25,FALSE)))","v":""},{"$f":"IF($A673=\"\",\"\",IF(ISERROR((F673+VLOOKUP($A673,Economática!$A$3:$AI$823,26,FALSE))/Y673),(F673+VLOOKUP($A673,Economática!$A$3:$AI$823,26,FALSE))/Y673,(F673+VLOOKUP($A673,Economática!$A$3:$AI$823,26,FALSE))/Y673))","v":""},{"$f":"IF($A673=\"\",\"\",IF(OR(-VLOOKUP($A673,Economática!$A$3:$AI$823,27,FALSE)=0,-VLOOKUP($A673,Economática!$A$3:$AI$823,27,FALSE)=\"-\"),1/0,-VLOOKUP($A673,Economática!$A$3:$AI$823,27,FALSE)))","v":""},"",{"$f":"IF($A673=\"\",\"\",IF(OR(VLOOKUP($A673,Economática!$A$3:$AI$823,28,FALSE)=0,VLOOKUP($A673,Economática!$A$3:$AI$823,28,FALSE)=\"-\"),1/0,VLOOKUP($A673,Economática!$A$3:$AI$823,28,FALSE)))","v":""},{"$f":"IF($A673=\"\",\"\",IF(OR(VLOOKUP($A673,Economática!$A$3:$AI$823,29,FALSE)=0,VLOOKUP($A673,Economática!$A$3:$AI$823,29,FALSE)=\"-\"),1/0,VLOOKUP($A673,Economática!$A$3:$AI$823,29,FALSE)))","v":""},{"$f":"IF($A673=\"\",\"\",IF(OR(VLOOKUP($A673,Economática!$A$3:$AI$823,30,FALSE)/E673=0,VLOOKUP($A673,Economática!$A$3:$AI$823,30,FALSE)/E673=\"-\",VLOOKUP($A673,Economática!$A$3:$AI$823,30,FALSE)/E673<33.33%,VLOOKUP($A673,Economática!$A$3:$AI$823,30,FALSE)/E673>100%),1/0,VLOOKUP($A673,Economática!$A$3:$AI$823,30,FALSE)/E673))","v":""},"",{"$f":"IF($A673=\"\",\"\",IF(OR(VLOOKUP($A673,Economática!$A$3:$AI$823,25,FALSE)=0,VLOOKUP($A673,Economática!$A$3:$AI$823,25,FALSE)=\"-\"),1/0,VLOOKUP($A673,Economática!$A$3:$AI$823,25,FALSE)))","v":""},{"$f":"CONCATENATE(Economática!B651,\" \",Economática!C651)","v":" "}]
[{"$f":"IF(Economática!AG652=\"\",\"\",Economática!AG652)","v":""},{"$f":"IF($A674=\"\",\"\",VLOOKUP(VLOOKUP($A674,Economática!$A$3:$AI$823,6,FALSE),Correção!$B$16:$C$36,2,FALSE))","v":""},{"$f":"IF(Economática!B652=\"\",\"\",Economática!B652)","v":""},{"$f":"IF($A674=\"\",\"\",IF(OR(VLOOKUP($A674,Economática!$A$3:$AI$823,8,FALSE)=0,VLOOKUP($A674,Economática!$A$3:$AI$823,8,FALSE)=\"-\"),1/0,VLOOKUP($A674,Economática!$A$3:$AI$823,8,FALSE)))","v":""},{"$f":"IF(A674=\"\",\"\",IF(ISERROR(VLOOKUP(A674,Correção!$B$2:$G$13,9,FALSE)),VLOOKUP($A674,Economática!$A$3:$AI$823,9,FALSE),VLOOKUP(A674,Correção!$B$2:$G$13,9,FALSE)))","v":""},{"$f":"IF($A674=\"\",\"\",Economática!G652)","v":""},{"$f":"IF($A674=\"\",\"\",IF(OR(VLOOKUP($A674,Economática!$A$3:$AI$823,10,FALSE)=0,VLOOKUP($A674,Economática!$A$3:$AI$823,10,FALSE)=\"-\"),1/0,VLOOKUP($A674,Economática!$A$3:$AI$823,10,FALSE)))","v":""},{"$f":"IF($A674=\"\",\"\",IF(OR(VLOOKUP($A674,Economática!$A$3:$AI$823,11,FALSE)=0,VLOOKUP($A674,Economática!$A$3:$AI$823,11,FALSE)=\"-\"),1/0,VLOOKUP($A674,Economática!$A$3:$AI$823,11,FALSE)))","v":""},{"$f":"IF($A674=\"\",\"\",IF(OR(VLOOKUP($A674,Economática!$A$3:$AI$823,12,FALSE)=0,VLOOKUP($A674,Economática!$A$3:$AI$823,12,FALSE)=\"-\"),1/0,VLOOKUP($A674,Economática!$A$3:$AI$823,12,FALSE)))","v":""},{"$f":"IF($A674=\"\",\"\",IF(OR(VLOOKUP($A674,Economática!$A$3:$AI$823,13,FALSE)=0,VLOOKUP($A674,Economática!$A$3:$AI$823,13,FALSE)=\"-\"),1/0,VLOOKUP($A674,Economática!$A$3:$AI$823,13,FALSE)))","v":""},{"$f":"IF($A674=\"\",\"\",IF(OR(VLOOKUP($A674,Economática!$A$3:$AI$823,14,FALSE)=0,VLOOKUP($A674,Economática!$A$3:$AI$823,14,FALSE)=\"-\"),1/0,VLOOKUP($A674,Economática!$A$3:$AI$823,14,FALSE)))","v":""},{"$f":"IF($A674=\"\",\"\",IF(OR(VLOOKUP($A674,Economática!$A$3:$AI$823,15,FALSE)=0,VLOOKUP($A674,Economática!$A$3:$AI$823,15,FALSE)=\"-\"),1/0,VLOOKUP($A674,Economática!$A$3:$AI$823,15,FALSE)))","v":""},{"$f":"IF($A674=\"\",\"\",IF(OR(VLOOKUP($A674,Economática!$A$3:$AI$823,16,FALSE)=0,VLOOKUP($A674,Economática!$A$3:$AI$823,16,FALSE)=\"-\"),1/0,VLOOKUP($A674,Economática!$A$3:$AI$823,16,FALSE)))","v":""},{"$f":"IF($A674=\"\",\"\",IF(OR(VLOOKUP($A674,Economática!$A$3:$AI$823,17,FALSE)=0,VLOOKUP($A674,Economática!$A$3:$AI$823,17,FALSE)=\"-\"),1/0,VLOOKUP($A674,Economática!$A$3:$AI$823,17,FALSE)))","v":""},{"$f":"IF($A674=\"\",\"\",IF(OR(VLOOKUP($A674,Economática!$A$3:$AI$823,18,FALSE)=0,VLOOKUP($A674,Economática!$A$3:$AI$823,18,FALSE)=\"-\"),1/0,VLOOKUP($A674,Economática!$A$3:$AI$823,18,FALSE)))","v":""},{"$f":"IF($A674=\"\",\"\",IF(OR(VLOOKUP($A674,Economática!$A$3:$AI$823,19,FALSE)=0,VLOOKUP($A674,Economática!$A$3:$AI$823,19,FALSE)=\"-\"),1/0,VLOOKUP($A674,Economática!$A$3:$AI$823,19,FALSE)))","v":""},{"$f":"IF($A674=\"\",\"\",VLOOKUP($A674,Economática!$A$3:$AI$823,20,FALSE)/E674)","v":""},"","","",{"$f":"IF($A674=\"\",\"\",IF(OR(VLOOKUP($A674,Economática!$A$3:$AI$823,21,FALSE)/100=0,VLOOKUP($A674,Economática!$A$3:$AI$823,21,FALSE)/100=\"-\"),1/0,VLOOKUP($A674,Economática!$A$3:$AI$823,21,FALSE)/100))","v":""},{"$f":"IF($A674=\"\",\"\",IF(OR(VLOOKUP($A674,Economática!$A$3:$AI$823,22,FALSE)/100=0,VLOOKUP($A674,Economática!$A$3:$AI$823,22,FALSE)/100=\"-\"),1/0,VLOOKUP($A674,Economática!$A$3:$AI$823,22,FALSE)/100))","v":""},{"$f":"IF($A674=\"\",\"\",IF(OR(VLOOKUP($A674,Economática!$A$3:$AI$823,23,FALSE)=0,VLOOKUP($A674,Economática!$A$3:$AI$823,23,FALSE)=\"-\"),1/0,VLOOKUP($A674,Economática!$A$3:$AI$823,23,FALSE)))","v":""},{"$f":"IF($A674=\"\",\"\",IF(OR(VLOOKUP($A674,Economática!$A$3:$AI$823,24,FALSE)=0,VLOOKUP($A674,Economática!$A$3:$AI$823,24,FALSE)=\"-\"),1/0,VLOOKUP($A674,Economática!$A$3:$AI$823,24,FALSE)))","v":""},{"$f":"IF($A674=\"\",\"\",IF(OR(VLOOKUP($A674,Economática!$A$3:$AI$823,25,FALSE)=0,VLOOKUP($A674,Economática!$A$3:$AI$823,25,FALSE)=\"-\"),1/0,VLOOKUP($A674,Economática!$A$3:$AI$823,25,FALSE)))","v":""},{"$f":"IF($A674=\"\",\"\",IF(ISERROR((F674+VLOOKUP($A674,Economática!$A$3:$AI$823,26,FALSE))/Y674),(F674+VLOOKUP($A674,Economática!$A$3:$AI$823,26,FALSE))/Y674,(F674+VLOOKUP($A674,Economática!$A$3:$AI$823,26,FALSE))/Y674))","v":""},{"$f":"IF($A674=\"\",\"\",IF(OR(-VLOOKUP($A674,Economática!$A$3:$AI$823,27,FALSE)=0,-VLOOKUP($A674,Economática!$A$3:$AI$823,27,FALSE)=\"-\"),1/0,-VLOOKUP($A674,Economática!$A$3:$AI$823,27,FALSE)))","v":""},"",{"$f":"IF($A674=\"\",\"\",IF(OR(VLOOKUP($A674,Economática!$A$3:$AI$823,28,FALSE)=0,VLOOKUP($A674,Economática!$A$3:$AI$823,28,FALSE)=\"-\"),1/0,VLOOKUP($A674,Economática!$A$3:$AI$823,28,FALSE)))","v":""},{"$f":"IF($A674=\"\",\"\",IF(OR(VLOOKUP($A674,Economática!$A$3:$AI$823,29,FALSE)=0,VLOOKUP($A674,Economática!$A$3:$AI$823,29,FALSE)=\"-\"),1/0,VLOOKUP($A674,Economática!$A$3:$AI$823,29,FALSE)))","v":""},{"$f":"IF($A674=\"\",\"\",IF(OR(VLOOKUP($A674,Economática!$A$3:$AI$823,30,FALSE)/E674=0,VLOOKUP($A674,Economática!$A$3:$AI$823,30,FALSE)/E674=\"-\",VLOOKUP($A674,Economática!$A$3:$AI$823,30,FALSE)/E674<33.33%,VLOOKUP($A674,Economática!$A$3:$AI$823,30,FALSE)/E674>100%),1/0,VLOOKUP($A674,Economática!$A$3:$AI$823,30,FALSE)/E674))","v":""},"",{"$f":"IF($A674=\"\",\"\",IF(OR(VLOOKUP($A674,Economática!$A$3:$AI$823,25,FALSE)=0,VLOOKUP($A674,Economática!$A$3:$AI$823,25,FALSE)=\"-\"),1/0,VLOOKUP($A674,Economática!$A$3:$AI$823,25,FALSE)))","v":""},{"$f":"CONCATENATE(Economática!B652,\" \",Economática!C652)","v":" "}]
[{"$f":"IF(Economática!AG653=\"\",\"\",Economática!AG653)","v":""},{"$f":"IF($A675=\"\",\"\",VLOOKUP(VLOOKUP($A675,Economática!$A$3:$AI$823,6,FALSE),Correção!$B$16:$C$36,2,FALSE))","v":""},{"$f":"IF(Economática!B653=\"\",\"\",Economática!B653)","v":""},{"$f":"IF($A675=\"\",\"\",IF(OR(VLOOKUP($A675,Economática!$A$3:$AI$823,8,FALSE)=0,VLOOKUP($A675,Economática!$A$3:$AI$823,8,FALSE)=\"-\"),1/0,VLOOKUP($A675,Economática!$A$3:$AI$823,8,FALSE)))","v":""},{"$f":"IF(A675=\"\",\"\",IF(ISERROR(VLOOKUP(A675,Correção!$B$2:$G$13,9,FALSE)),VLOOKUP($A675,Economática!$A$3:$AI$823,9,FALSE),VLOOKUP(A675,Correção!$B$2:$G$13,9,FALSE)))","v":""},{"$f":"IF($A675=\"\",\"\",Economática!G653)","v":""},{"$f":"IF($A675=\"\",\"\",IF(OR(VLOOKUP($A675,Economática!$A$3:$AI$823,10,FALSE)=0,VLOOKUP($A675,Economática!$A$3:$AI$823,10,FALSE)=\"-\"),1/0,VLOOKUP($A675,Economática!$A$3:$AI$823,10,FALSE)))","v":""},{"$f":"IF($A675=\"\",\"\",IF(OR(VLOOKUP($A675,Economática!$A$3:$AI$823,11,FALSE)=0,VLOOKUP($A675,Economática!$A$3:$AI$823,11,FALSE)=\"-\"),1/0,VLOOKUP($A675,Economática!$A$3:$AI$823,11,FALSE)))","v":""},{"$f":"IF($A675=\"\",\"\",IF(OR(VLOOKUP($A675,Economática!$A$3:$AI$823,12,FALSE)=0,VLOOKUP($A675,Economática!$A$3:$AI$823,12,FALSE)=\"-\"),1/0,VLOOKUP($A675,Economática!$A$3:$AI$823,12,FALSE)))","v":""},{"$f":"IF($A675=\"\",\"\",IF(OR(VLOOKUP($A675,Economática!$A$3:$AI$823,13,FALSE)=0,VLOOKUP($A675,Economática!$A$3:$AI$823,13,FALSE)=\"-\"),1/0,VLOOKUP($A675,Economática!$A$3:$AI$823,13,FALSE)))","v":""},{"$f":"IF($A675=\"\",\"\",IF(OR(VLOOKUP($A675,Economática!$A$3:$AI$823,14,FALSE)=0,VLOOKUP($A675,Economática!$A$3:$AI$823,14,FALSE)=\"-\"),1/0,VLOOKUP($A675,Economática!$A$3:$AI$823,14,FALSE)))","v":""},{"$f":"IF($A675=\"\",\"\",IF(OR(VLOOKUP($A675,Economática!$A$3:$AI$823,15,FALSE)=0,VLOOKUP($A675,Economática!$A$3:$AI$823,15,FALSE)=\"-\"),1/0,VLOOKUP($A675,Economática!$A$3:$AI$823,15,FALSE)))","v":""},{"$f":"IF($A675=\"\",\"\",IF(OR(VLOOKUP($A675,Economática!$A$3:$AI$823,16,FALSE)=0,VLOOKUP($A675,Economática!$A$3:$AI$823,16,FALSE)=\"-\"),1/0,VLOOKUP($A675,Economática!$A$3:$AI$823,16,FALSE)))","v":""},{"$f":"IF($A675=\"\",\"\",IF(OR(VLOOKUP($A675,Economática!$A$3:$AI$823,17,FALSE)=0,VLOOKUP($A675,Economática!$A$3:$AI$823,17,FALSE)=\"-\"),1/0,VLOOKUP($A675,Economática!$A$3:$AI$823,17,FALSE)))","v":""},{"$f":"IF($A675=\"\",\"\",IF(OR(VLOOKUP($A675,Economática!$A$3:$AI$823,18,FALSE)=0,VLOOKUP($A675,Economática!$A$3:$AI$823,18,FALSE)=\"-\"),1/0,VLOOKUP($A675,Economática!$A$3:$AI$823,18,FALSE)))","v":""},{"$f":"IF($A675=\"\",\"\",IF(OR(VLOOKUP($A675,Economática!$A$3:$AI$823,19,FALSE)=0,VLOOKUP($A675,Economática!$A$3:$AI$823,19,FALSE)=\"-\"),1/0,VLOOKUP($A675,Economática!$A$3:$AI$823,19,FALSE)))","v":""},{"$f":"IF($A675=\"\",\"\",VLOOKUP($A675,Economática!$A$3:$AI$823,20,FALSE)/E675)","v":""},"","","",{"$f":"IF($A675=\"\",\"\",IF(OR(VLOOKUP($A675,Economática!$A$3:$AI$823,21,FALSE)/100=0,VLOOKUP($A675,Economática!$A$3:$AI$823,21,FALSE)/100=\"-\"),1/0,VLOOKUP($A675,Economática!$A$3:$AI$823,21,FALSE)/100))","v":""},{"$f":"IF($A675=\"\",\"\",IF(OR(VLOOKUP($A675,Economática!$A$3:$AI$823,22,FALSE)/100=0,VLOOKUP($A675,Economática!$A$3:$AI$823,22,FALSE)/100=\"-\"),1/0,VLOOKUP($A675,Economática!$A$3:$AI$823,22,FALSE)/100))","v":""},{"$f":"IF($A675=\"\",\"\",IF(OR(VLOOKUP($A675,Economática!$A$3:$AI$823,23,FALSE)=0,VLOOKUP($A675,Economática!$A$3:$AI$823,23,FALSE)=\"-\"),1/0,VLOOKUP($A675,Economática!$A$3:$AI$823,23,FALSE)))","v":""},{"$f":"IF($A675=\"\",\"\",IF(OR(VLOOKUP($A675,Economática!$A$3:$AI$823,24,FALSE)=0,VLOOKUP($A675,Economática!$A$3:$AI$823,24,FALSE)=\"-\"),1/0,VLOOKUP($A675,Economática!$A$3:$AI$823,24,FALSE)))","v":""},{"$f":"IF($A675=\"\",\"\",IF(OR(VLOOKUP($A675,Economática!$A$3:$AI$823,25,FALSE)=0,VLOOKUP($A675,Economática!$A$3:$AI$823,25,FALSE)=\"-\"),1/0,VLOOKUP($A675,Economática!$A$3:$AI$823,25,FALSE)))","v":""},{"$f":"IF($A675=\"\",\"\",IF(ISERROR((F675+VLOOKUP($A675,Economática!$A$3:$AI$823,26,FALSE))/Y675),(F675+VLOOKUP($A675,Economática!$A$3:$AI$823,26,FALSE))/Y675,(F675+VLOOKUP($A675,Economática!$A$3:$AI$823,26,FALSE))/Y675))","v":""},{"$f":"IF($A675=\"\",\"\",IF(OR(-VLOOKUP($A675,Economática!$A$3:$AI$823,27,FALSE)=0,-VLOOKUP($A675,Economática!$A$3:$AI$823,27,FALSE)=\"-\"),1/0,-VLOOKUP($A675,Economática!$A$3:$AI$823,27,FALSE)))","v":""},"",{"$f":"IF($A675=\"\",\"\",IF(OR(VLOOKUP($A675,Economática!$A$3:$AI$823,28,FALSE)=0,VLOOKUP($A675,Economática!$A$3:$AI$823,28,FALSE)=\"-\"),1/0,VLOOKUP($A675,Economática!$A$3:$AI$823,28,FALSE)))","v":""},{"$f":"IF($A675=\"\",\"\",IF(OR(VLOOKUP($A675,Economática!$A$3:$AI$823,29,FALSE)=0,VLOOKUP($A675,Economática!$A$3:$AI$823,29,FALSE)=\"-\"),1/0,VLOOKUP($A675,Economática!$A$3:$AI$823,29,FALSE)))","v":""},{"$f":"IF($A675=\"\",\"\",IF(OR(VLOOKUP($A675,Economática!$A$3:$AI$823,30,FALSE)/E675=0,VLOOKUP($A675,Economática!$A$3:$AI$823,30,FALSE)/E675=\"-\",VLOOKUP($A675,Economática!$A$3:$AI$823,30,FALSE)/E675<33.33%,VLOOKUP($A675,Economática!$A$3:$AI$823,30,FALSE)/E675>100%),1/0,VLOOKUP($A675,Economática!$A$3:$AI$823,30,FALSE)/E675))","v":""},"",{"$f":"IF($A675=\"\",\"\",IF(OR(VLOOKUP($A675,Economática!$A$3:$AI$823,25,FALSE)=0,VLOOKUP($A675,Economática!$A$3:$AI$823,25,FALSE)=\"-\"),1/0,VLOOKUP($A675,Economática!$A$3:$AI$823,25,FALSE)))","v":""},{"$f":"CONCATENATE(Economática!B653,\" \",Economática!C653)","v":" "}]
[{"$f":"IF(Economática!AG654=\"\",\"\",Economática!AG654)","v":""},{"$f":"IF($A676=\"\",\"\",VLOOKUP(VLOOKUP($A676,Economática!$A$3:$AI$823,6,FALSE),Correção!$B$16:$C$36,2,FALSE))","v":""},{"$f":"IF(Economática!B654=\"\",\"\",Economática!B654)","v":""},{"$f":"IF($A676=\"\",\"\",IF(OR(VLOOKUP($A676,Economática!$A$3:$AI$823,8,FALSE)=0,VLOOKUP($A676,Economática!$A$3:$AI$823,8,FALSE)=\"-\"),1/0,VLOOKUP($A676,Economática!$A$3:$AI$823,8,FALSE)))","v":""},{"$f":"IF(A676=\"\",\"\",IF(ISERROR(VLOOKUP(A676,Correção!$B$2:$G$13,9,FALSE)),VLOOKUP($A676,Economática!$A$3:$AI$823,9,FALSE),VLOOKUP(A676,Correção!$B$2:$G$13,9,FALSE)))","v":""},{"$f":"IF($A676=\"\",\"\",Economática!G654)","v":""},{"$f":"IF($A676=\"\",\"\",IF(OR(VLOOKUP($A676,Economática!$A$3:$AI$823,10,FALSE)=0,VLOOKUP($A676,Economática!$A$3:$AI$823,10,FALSE)=\"-\"),1/0,VLOOKUP($A676,Economática!$A$3:$AI$823,10,FALSE)))","v":""},{"$f":"IF($A676=\"\",\"\",IF(OR(VLOOKUP($A676,Economática!$A$3:$AI$823,11,FALSE)=0,VLOOKUP($A676,Economática!$A$3:$AI$823,11,FALSE)=\"-\"),1/0,VLOOKUP($A676,Economática!$A$3:$AI$823,11,FALSE)))","v":""},{"$f":"IF($A676=\"\",\"\",IF(OR(VLOOKUP($A676,Economática!$A$3:$AI$823,12,FALSE)=0,VLOOKUP($A676,Economática!$A$3:$AI$823,12,FALSE)=\"-\"),1/0,VLOOKUP($A676,Economática!$A$3:$AI$823,12,FALSE)))","v":""},{"$f":"IF($A676=\"\",\"\",IF(OR(VLOOKUP($A676,Economática!$A$3:$AI$823,13,FALSE)=0,VLOOKUP($A676,Economática!$A$3:$AI$823,13,FALSE)=\"-\"),1/0,VLOOKUP($A676,Economática!$A$3:$AI$823,13,FALSE)))","v":""},{"$f":"IF($A676=\"\",\"\",IF(OR(VLOOKUP($A676,Economática!$A$3:$AI$823,14,FALSE)=0,VLOOKUP($A676,Economática!$A$3:$AI$823,14,FALSE)=\"-\"),1/0,VLOOKUP($A676,Economática!$A$3:$AI$823,14,FALSE)))","v":""},{"$f":"IF($A676=\"\",\"\",IF(OR(VLOOKUP($A676,Economática!$A$3:$AI$823,15,FALSE)=0,VLOOKUP($A676,Economática!$A$3:$AI$823,15,FALSE)=\"-\"),1/0,VLOOKUP($A676,Economática!$A$3:$AI$823,15,FALSE)))","v":""},{"$f":"IF($A676=\"\",\"\",IF(OR(VLOOKUP($A676,Economática!$A$3:$AI$823,16,FALSE)=0,VLOOKUP($A676,Economática!$A$3:$AI$823,16,FALSE)=\"-\"),1/0,VLOOKUP($A676,Economática!$A$3:$AI$823,16,FALSE)))","v":""},{"$f":"IF($A676=\"\",\"\",IF(OR(VLOOKUP($A676,Economática!$A$3:$AI$823,17,FALSE)=0,VLOOKUP($A676,Economática!$A$3:$AI$823,17,FALSE)=\"-\"),1/0,VLOOKUP($A676,Economática!$A$3:$AI$823,17,FALSE)))","v":""},{"$f":"IF($A676=\"\",\"\",IF(OR(VLOOKUP($A676,Economática!$A$3:$AI$823,18,FALSE)=0,VLOOKUP($A676,Economática!$A$3:$AI$823,18,FALSE)=\"-\"),1/0,VLOOKUP($A676,Economática!$A$3:$AI$823,18,FALSE)))","v":""},{"$f":"IF($A676=\"\",\"\",IF(OR(VLOOKUP($A676,Economática!$A$3:$AI$823,19,FALSE)=0,VLOOKUP($A676,Economática!$A$3:$AI$823,19,FALSE)=\"-\"),1/0,VLOOKUP($A676,Economática!$A$3:$AI$823,19,FALSE)))","v":""},{"$f":"IF($A676=\"\",\"\",VLOOKUP($A676,Economática!$A$3:$AI$823,20,FALSE)/E676)","v":""},"","","",{"$f":"IF($A676=\"\",\"\",IF(OR(VLOOKUP($A676,Economática!$A$3:$AI$823,21,FALSE)/100=0,VLOOKUP($A676,Economática!$A$3:$AI$823,21,FALSE)/100=\"-\"),1/0,VLOOKUP($A676,Economática!$A$3:$AI$823,21,FALSE)/100))","v":""},{"$f":"IF($A676=\"\",\"\",IF(OR(VLOOKUP($A676,Economática!$A$3:$AI$823,22,FALSE)/100=0,VLOOKUP($A676,Economática!$A$3:$AI$823,22,FALSE)/100=\"-\"),1/0,VLOOKUP($A676,Economática!$A$3:$AI$823,22,FALSE)/100))","v":""},{"$f":"IF($A676=\"\",\"\",IF(OR(VLOOKUP($A676,Economática!$A$3:$AI$823,23,FALSE)=0,VLOOKUP($A676,Economática!$A$3:$AI$823,23,FALSE)=\"-\"),1/0,VLOOKUP($A676,Economática!$A$3:$AI$823,23,FALSE)))","v":""},{"$f":"IF($A676=\"\",\"\",IF(OR(VLOOKUP($A676,Economática!$A$3:$AI$823,24,FALSE)=0,VLOOKUP($A676,Economática!$A$3:$AI$823,24,FALSE)=\"-\"),1/0,VLOOKUP($A676,Economática!$A$3:$AI$823,24,FALSE)))","v":""},{"$f":"IF($A676=\"\",\"\",IF(OR(VLOOKUP($A676,Economática!$A$3:$AI$823,25,FALSE)=0,VLOOKUP($A676,Economática!$A$3:$AI$823,25,FALSE)=\"-\"),1/0,VLOOKUP($A676,Economática!$A$3:$AI$823,25,FALSE)))","v":""},{"$f":"IF($A676=\"\",\"\",IF(ISERROR((F676+VLOOKUP($A676,Economática!$A$3:$AI$823,26,FALSE))/Y676),(F676+VLOOKUP($A676,Economática!$A$3:$AI$823,26,FALSE))/Y676,(F676+VLOOKUP($A676,Economática!$A$3:$AI$823,26,FALSE))/Y676))","v":""},{"$f":"IF($A676=\"\",\"\",IF(OR(-VLOOKUP($A676,Economática!$A$3:$AI$823,27,FALSE)=0,-VLOOKUP($A676,Economática!$A$3:$AI$823,27,FALSE)=\"-\"),1/0,-VLOOKUP($A676,Economática!$A$3:$AI$823,27,FALSE)))","v":""},"",{"$f":"IF($A676=\"\",\"\",IF(OR(VLOOKUP($A676,Economática!$A$3:$AI$823,28,FALSE)=0,VLOOKUP($A676,Economática!$A$3:$AI$823,28,FALSE)=\"-\"),1/0,VLOOKUP($A676,Economática!$A$3:$AI$823,28,FALSE)))","v":""},{"$f":"IF($A676=\"\",\"\",IF(OR(VLOOKUP($A676,Economática!$A$3:$AI$823,29,FALSE)=0,VLOOKUP($A676,Economática!$A$3:$AI$823,29,FALSE)=\"-\"),1/0,VLOOKUP($A676,Economática!$A$3:$AI$823,29,FALSE)))","v":""},{"$f":"IF($A676=\"\",\"\",IF(OR(VLOOKUP($A676,Economática!$A$3:$AI$823,30,FALSE)/E676=0,VLOOKUP($A676,Economática!$A$3:$AI$823,30,FALSE)/E676=\"-\",VLOOKUP($A676,Economática!$A$3:$AI$823,30,FALSE)/E676<33.33%,VLOOKUP($A676,Economática!$A$3:$AI$823,30,FALSE)/E676>100%),1/0,VLOOKUP($A676,Economática!$A$3:$AI$823,30,FALSE)/E676))","v":""},"",{"$f":"IF($A676=\"\",\"\",IF(OR(VLOOKUP($A676,Economática!$A$3:$AI$823,25,FALSE)=0,VLOOKUP($A676,Economática!$A$3:$AI$823,25,FALSE)=\"-\"),1/0,VLOOKUP($A676,Economática!$A$3:$AI$823,25,FALSE)))","v":""},{"$f":"CONCATENATE(Economática!B654,\" \",Economática!C654)","v":" "}]
[{"$f":"IF(Economática!AG655=\"\",\"\",Economática!AG655)","v":""},{"$f":"IF($A677=\"\",\"\",VLOOKUP(VLOOKUP($A677,Economática!$A$3:$AI$823,6,FALSE),Correção!$B$16:$C$36,2,FALSE))","v":""},{"$f":"IF(Economática!B655=\"\",\"\",Economática!B655)","v":""},{"$f":"IF($A677=\"\",\"\",IF(OR(VLOOKUP($A677,Economática!$A$3:$AI$823,8,FALSE)=0,VLOOKUP($A677,Economática!$A$3:$AI$823,8,FALSE)=\"-\"),1/0,VLOOKUP($A677,Economática!$A$3:$AI$823,8,FALSE)))","v":""},{"$f":"IF(A677=\"\",\"\",IF(ISERROR(VLOOKUP(A677,Correção!$B$2:$G$13,9,FALSE)),VLOOKUP($A677,Economática!$A$3:$AI$823,9,FALSE),VLOOKUP(A677,Correção!$B$2:$G$13,9,FALSE)))","v":""},{"$f":"IF($A677=\"\",\"\",Economática!G655)","v":""},{"$f":"IF($A677=\"\",\"\",IF(OR(VLOOKUP($A677,Economática!$A$3:$AI$823,10,FALSE)=0,VLOOKUP($A677,Economática!$A$3:$AI$823,10,FALSE)=\"-\"),1/0,VLOOKUP($A677,Economática!$A$3:$AI$823,10,FALSE)))","v":""},{"$f":"IF($A677=\"\",\"\",IF(OR(VLOOKUP($A677,Economática!$A$3:$AI$823,11,FALSE)=0,VLOOKUP($A677,Economática!$A$3:$AI$823,11,FALSE)=\"-\"),1/0,VLOOKUP($A677,Economática!$A$3:$AI$823,11,FALSE)))","v":""},{"$f":"IF($A677=\"\",\"\",IF(OR(VLOOKUP($A677,Economática!$A$3:$AI$823,12,FALSE)=0,VLOOKUP($A677,Economática!$A$3:$AI$823,12,FALSE)=\"-\"),1/0,VLOOKUP($A677,Economática!$A$3:$AI$823,12,FALSE)))","v":""},{"$f":"IF($A677=\"\",\"\",IF(OR(VLOOKUP($A677,Economática!$A$3:$AI$823,13,FALSE)=0,VLOOKUP($A677,Economática!$A$3:$AI$823,13,FALSE)=\"-\"),1/0,VLOOKUP($A677,Economática!$A$3:$AI$823,13,FALSE)))","v":""},{"$f":"IF($A677=\"\",\"\",IF(OR(VLOOKUP($A677,Economática!$A$3:$AI$823,14,FALSE)=0,VLOOKUP($A677,Economática!$A$3:$AI$823,14,FALSE)=\"-\"),1/0,VLOOKUP($A677,Economática!$A$3:$AI$823,14,FALSE)))","v":""},{"$f":"IF($A677=\"\",\"\",IF(OR(VLOOKUP($A677,Economática!$A$3:$AI$823,15,FALSE)=0,VLOOKUP($A677,Economática!$A$3:$AI$823,15,FALSE)=\"-\"),1/0,VLOOKUP($A677,Economática!$A$3:$AI$823,15,FALSE)))","v":""},{"$f":"IF($A677=\"\",\"\",IF(OR(VLOOKUP($A677,Economática!$A$3:$AI$823,16,FALSE)=0,VLOOKUP($A677,Economática!$A$3:$AI$823,16,FALSE)=\"-\"),1/0,VLOOKUP($A677,Economática!$A$3:$AI$823,16,FALSE)))","v":""},{"$f":"IF($A677=\"\",\"\",IF(OR(VLOOKUP($A677,Economática!$A$3:$AI$823,17,FALSE)=0,VLOOKUP($A677,Economática!$A$3:$AI$823,17,FALSE)=\"-\"),1/0,VLOOKUP($A677,Economática!$A$3:$AI$823,17,FALSE)))","v":""},{"$f":"IF($A677=\"\",\"\",IF(OR(VLOOKUP($A677,Economática!$A$3:$AI$823,18,FALSE)=0,VLOOKUP($A677,Economática!$A$3:$AI$823,18,FALSE)=\"-\"),1/0,VLOOKUP($A677,Economática!$A$3:$AI$823,18,FALSE)))","v":""},{"$f":"IF($A677=\"\",\"\",IF(OR(VLOOKUP($A677,Economática!$A$3:$AI$823,19,FALSE)=0,VLOOKUP($A677,Economática!$A$3:$AI$823,19,FALSE)=\"-\"),1/0,VLOOKUP($A677,Economática!$A$3:$AI$823,19,FALSE)))","v":""},{"$f":"IF($A677=\"\",\"\",VLOOKUP($A677,Economática!$A$3:$AI$823,20,FALSE)/E677)","v":""},"","","",{"$f":"IF($A677=\"\",\"\",IF(OR(VLOOKUP($A677,Economática!$A$3:$AI$823,21,FALSE)/100=0,VLOOKUP($A677,Economática!$A$3:$AI$823,21,FALSE)/100=\"-\"),1/0,VLOOKUP($A677,Economática!$A$3:$AI$823,21,FALSE)/100))","v":""},{"$f":"IF($A677=\"\",\"\",IF(OR(VLOOKUP($A677,Economática!$A$3:$AI$823,22,FALSE)/100=0,VLOOKUP($A677,Economática!$A$3:$AI$823,22,FALSE)/100=\"-\"),1/0,VLOOKUP($A677,Economática!$A$3:$AI$823,22,FALSE)/100))","v":""},{"$f":"IF($A677=\"\",\"\",IF(OR(VLOOKUP($A677,Economática!$A$3:$AI$823,23,FALSE)=0,VLOOKUP($A677,Economática!$A$3:$AI$823,23,FALSE)=\"-\"),1/0,VLOOKUP($A677,Economática!$A$3:$AI$823,23,FALSE)))","v":""},{"$f":"IF($A677=\"\",\"\",IF(OR(VLOOKUP($A677,Economática!$A$3:$AI$823,24,FALSE)=0,VLOOKUP($A677,Economática!$A$3:$AI$823,24,FALSE)=\"-\"),1/0,VLOOKUP($A677,Economática!$A$3:$AI$823,24,FALSE)))","v":""},{"$f":"IF($A677=\"\",\"\",IF(OR(VLOOKUP($A677,Economática!$A$3:$AI$823,25,FALSE)=0,VLOOKUP($A677,Economática!$A$3:$AI$823,25,FALSE)=\"-\"),1/0,VLOOKUP($A677,Economática!$A$3:$AI$823,25,FALSE)))","v":""},{"$f":"IF($A677=\"\",\"\",IF(ISERROR((F677+VLOOKUP($A677,Economática!$A$3:$AI$823,26,FALSE))/Y677),(F677+VLOOKUP($A677,Economática!$A$3:$AI$823,26,FALSE))/Y677,(F677+VLOOKUP($A677,Economática!$A$3:$AI$823,26,FALSE))/Y677))","v":""},{"$f":"IF($A677=\"\",\"\",IF(OR(-VLOOKUP($A677,Economática!$A$3:$AI$823,27,FALSE)=0,-VLOOKUP($A677,Economática!$A$3:$AI$823,27,FALSE)=\"-\"),1/0,-VLOOKUP($A677,Economática!$A$3:$AI$823,27,FALSE)))","v":""},"",{"$f":"IF($A677=\"\",\"\",IF(OR(VLOOKUP($A677,Economática!$A$3:$AI$823,28,FALSE)=0,VLOOKUP($A677,Economática!$A$3:$AI$823,28,FALSE)=\"-\"),1/0,VLOOKUP($A677,Economática!$A$3:$AI$823,28,FALSE)))","v":""},{"$f":"IF($A677=\"\",\"\",IF(OR(VLOOKUP($A677,Economática!$A$3:$AI$823,29,FALSE)=0,VLOOKUP($A677,Economática!$A$3:$AI$823,29,FALSE)=\"-\"),1/0,VLOOKUP($A677,Economática!$A$3:$AI$823,29,FALSE)))","v":""},{"$f":"IF($A677=\"\",\"\",IF(OR(VLOOKUP($A677,Economática!$A$3:$AI$823,30,FALSE)/E677=0,VLOOKUP($A677,Economática!$A$3:$AI$823,30,FALSE)/E677=\"-\",VLOOKUP($A677,Economática!$A$3:$AI$823,30,FALSE)/E677<33.33%,VLOOKUP($A677,Economática!$A$3:$AI$823,30,FALSE)/E677>100%),1/0,VLOOKUP($A677,Economática!$A$3:$AI$823,30,FALSE)/E677))","v":""},"",{"$f":"IF($A677=\"\",\"\",IF(OR(VLOOKUP($A677,Economática!$A$3:$AI$823,25,FALSE)=0,VLOOKUP($A677,Economática!$A$3:$AI$823,25,FALSE)=\"-\"),1/0,VLOOKUP($A677,Economática!$A$3:$AI$823,25,FALSE)))","v":""},{"$f":"CONCATENATE(Economática!B655,\" \",Economática!C655)","v":" "}]
[{"$f":"IF(Economática!AG656=\"\",\"\",Economática!AG656)","v":""},{"$f":"IF($A678=\"\",\"\",VLOOKUP(VLOOKUP($A678,Economática!$A$3:$AI$823,6,FALSE),Correção!$B$16:$C$36,2,FALSE))","v":""},{"$f":"IF(Economática!B656=\"\",\"\",Economática!B656)","v":""},{"$f":"IF($A678=\"\",\"\",IF(OR(VLOOKUP($A678,Economática!$A$3:$AI$823,8,FALSE)=0,VLOOKUP($A678,Economática!$A$3:$AI$823,8,FALSE)=\"-\"),1/0,VLOOKUP($A678,Economática!$A$3:$AI$823,8,FALSE)))","v":""},{"$f":"IF(A678=\"\",\"\",IF(ISERROR(VLOOKUP(A678,Correção!$B$2:$G$13,9,FALSE)),VLOOKUP($A678,Economática!$A$3:$AI$823,9,FALSE),VLOOKUP(A678,Correção!$B$2:$G$13,9,FALSE)))","v":""},{"$f":"IF($A678=\"\",\"\",Economática!G656)","v":""},{"$f":"IF($A678=\"\",\"\",IF(OR(VLOOKUP($A678,Economática!$A$3:$AI$823,10,FALSE)=0,VLOOKUP($A678,Economática!$A$3:$AI$823,10,FALSE)=\"-\"),1/0,VLOOKUP($A678,Economática!$A$3:$AI$823,10,FALSE)))","v":""},{"$f":"IF($A678=\"\",\"\",IF(OR(VLOOKUP($A678,Economática!$A$3:$AI$823,11,FALSE)=0,VLOOKUP($A678,Economática!$A$3:$AI$823,11,FALSE)=\"-\"),1/0,VLOOKUP($A678,Economática!$A$3:$AI$823,11,FALSE)))","v":""},{"$f":"IF($A678=\"\",\"\",IF(OR(VLOOKUP($A678,Economática!$A$3:$AI$823,12,FALSE)=0,VLOOKUP($A678,Economática!$A$3:$AI$823,12,FALSE)=\"-\"),1/0,VLOOKUP($A678,Economática!$A$3:$AI$823,12,FALSE)))","v":""},{"$f":"IF($A678=\"\",\"\",IF(OR(VLOOKUP($A678,Economática!$A$3:$AI$823,13,FALSE)=0,VLOOKUP($A678,Economática!$A$3:$AI$823,13,FALSE)=\"-\"),1/0,VLOOKUP($A678,Economática!$A$3:$AI$823,13,FALSE)))","v":""},{"$f":"IF($A678=\"\",\"\",IF(OR(VLOOKUP($A678,Economática!$A$3:$AI$823,14,FALSE)=0,VLOOKUP($A678,Economática!$A$3:$AI$823,14,FALSE)=\"-\"),1/0,VLOOKUP($A678,Economática!$A$3:$AI$823,14,FALSE)))","v":""},{"$f":"IF($A678=\"\",\"\",IF(OR(VLOOKUP($A678,Economática!$A$3:$AI$823,15,FALSE)=0,VLOOKUP($A678,Economática!$A$3:$AI$823,15,FALSE)=\"-\"),1/0,VLOOKUP($A678,Economática!$A$3:$AI$823,15,FALSE)))","v":""},{"$f":"IF($A678=\"\",\"\",IF(OR(VLOOKUP($A678,Economática!$A$3:$AI$823,16,FALSE)=0,VLOOKUP($A678,Economática!$A$3:$AI$823,16,FALSE)=\"-\"),1/0,VLOOKUP($A678,Economática!$A$3:$AI$823,16,FALSE)))","v":""},{"$f":"IF($A678=\"\",\"\",IF(OR(VLOOKUP($A678,Economática!$A$3:$AI$823,17,FALSE)=0,VLOOKUP($A678,Economática!$A$3:$AI$823,17,FALSE)=\"-\"),1/0,VLOOKUP($A678,Economática!$A$3:$AI$823,17,FALSE)))","v":""},{"$f":"IF($A678=\"\",\"\",IF(OR(VLOOKUP($A678,Economática!$A$3:$AI$823,18,FALSE)=0,VLOOKUP($A678,Economática!$A$3:$AI$823,18,FALSE)=\"-\"),1/0,VLOOKUP($A678,Economática!$A$3:$AI$823,18,FALSE)))","v":""},{"$f":"IF($A678=\"\",\"\",IF(OR(VLOOKUP($A678,Economática!$A$3:$AI$823,19,FALSE)=0,VLOOKUP($A678,Economática!$A$3:$AI$823,19,FALSE)=\"-\"),1/0,VLOOKUP($A678,Economática!$A$3:$AI$823,19,FALSE)))","v":""},{"$f":"IF($A678=\"\",\"\",VLOOKUP($A678,Economática!$A$3:$AI$823,20,FALSE)/E678)","v":""},"","","",{"$f":"IF($A678=\"\",\"\",IF(OR(VLOOKUP($A678,Economática!$A$3:$AI$823,21,FALSE)/100=0,VLOOKUP($A678,Economática!$A$3:$AI$823,21,FALSE)/100=\"-\"),1/0,VLOOKUP($A678,Economática!$A$3:$AI$823,21,FALSE)/100))","v":""},{"$f":"IF($A678=\"\",\"\",IF(OR(VLOOKUP($A678,Economática!$A$3:$AI$823,22,FALSE)/100=0,VLOOKUP($A678,Economática!$A$3:$AI$823,22,FALSE)/100=\"-\"),1/0,VLOOKUP($A678,Economática!$A$3:$AI$823,22,FALSE)/100))","v":""},{"$f":"IF($A678=\"\",\"\",IF(OR(VLOOKUP($A678,Economática!$A$3:$AI$823,23,FALSE)=0,VLOOKUP($A678,Economática!$A$3:$AI$823,23,FALSE)=\"-\"),1/0,VLOOKUP($A678,Economática!$A$3:$AI$823,23,FALSE)))","v":""},{"$f":"IF($A678=\"\",\"\",IF(OR(VLOOKUP($A678,Economática!$A$3:$AI$823,24,FALSE)=0,VLOOKUP($A678,Economática!$A$3:$AI$823,24,FALSE)=\"-\"),1/0,VLOOKUP($A678,Economática!$A$3:$AI$823,24,FALSE)))","v":""},{"$f":"IF($A678=\"\",\"\",IF(OR(VLOOKUP($A678,Economática!$A$3:$AI$823,25,FALSE)=0,VLOOKUP($A678,Economática!$A$3:$AI$823,25,FALSE)=\"-\"),1/0,VLOOKUP($A678,Economática!$A$3:$AI$823,25,FALSE)))","v":""},{"$f":"IF($A678=\"\",\"\",IF(ISERROR((F678+VLOOKUP($A678,Economática!$A$3:$AI$823,26,FALSE))/Y678),(F678+VLOOKUP($A678,Economática!$A$3:$AI$823,26,FALSE))/Y678,(F678+VLOOKUP($A678,Economática!$A$3:$AI$823,26,FALSE))/Y678))","v":""},{"$f":"IF($A678=\"\",\"\",IF(OR(-VLOOKUP($A678,Economática!$A$3:$AI$823,27,FALSE)=0,-VLOOKUP($A678,Economática!$A$3:$AI$823,27,FALSE)=\"-\"),1/0,-VLOOKUP($A678,Economática!$A$3:$AI$823,27,FALSE)))","v":""},"",{"$f":"IF($A678=\"\",\"\",IF(OR(VLOOKUP($A678,Economática!$A$3:$AI$823,28,FALSE)=0,VLOOKUP($A678,Economática!$A$3:$AI$823,28,FALSE)=\"-\"),1/0,VLOOKUP($A678,Economática!$A$3:$AI$823,28,FALSE)))","v":""},{"$f":"IF($A678=\"\",\"\",IF(OR(VLOOKUP($A678,Economática!$A$3:$AI$823,29,FALSE)=0,VLOOKUP($A678,Economática!$A$3:$AI$823,29,FALSE)=\"-\"),1/0,VLOOKUP($A678,Economática!$A$3:$AI$823,29,FALSE)))","v":""},{"$f":"IF($A678=\"\",\"\",IF(OR(VLOOKUP($A678,Economática!$A$3:$AI$823,30,FALSE)/E678=0,VLOOKUP($A678,Economática!$A$3:$AI$823,30,FALSE)/E678=\"-\",VLOOKUP($A678,Economática!$A$3:$AI$823,30,FALSE)/E678<33.33%,VLOOKUP($A678,Economática!$A$3:$AI$823,30,FALSE)/E678>100%),1/0,VLOOKUP($A678,Economática!$A$3:$AI$823,30,FALSE)/E678))","v":""},"",{"$f":"IF($A678=\"\",\"\",IF(OR(VLOOKUP($A678,Economática!$A$3:$AI$823,25,FALSE)=0,VLOOKUP($A678,Economática!$A$3:$AI$823,25,FALSE)=\"-\"),1/0,VLOOKUP($A678,Economática!$A$3:$AI$823,25,FALSE)))","v":""},{"$f":"CONCATENATE(Economática!B656,\" \",Economática!C656)","v":" "}]
[{"$f":"IF(Economática!AG657=\"\",\"\",Economática!AG657)","v":""},{"$f":"IF($A679=\"\",\"\",VLOOKUP(VLOOKUP($A679,Economática!$A$3:$AI$823,6,FALSE),Correção!$B$16:$C$36,2,FALSE))","v":""},{"$f":"IF(Economática!B657=\"\",\"\",Economática!B657)","v":""},{"$f":"IF($A679=\"\",\"\",IF(OR(VLOOKUP($A679,Economática!$A$3:$AI$823,8,FALSE)=0,VLOOKUP($A679,Economática!$A$3:$AI$823,8,FALSE)=\"-\"),1/0,VLOOKUP($A679,Economática!$A$3:$AI$823,8,FALSE)))","v":""},{"$f":"IF(A679=\"\",\"\",IF(ISERROR(VLOOKUP(A679,Correção!$B$2:$G$13,9,FALSE)),VLOOKUP($A679,Economática!$A$3:$AI$823,9,FALSE),VLOOKUP(A679,Correção!$B$2:$G$13,9,FALSE)))","v":""},{"$f":"IF($A679=\"\",\"\",Economática!G657)","v":""},{"$f":"IF($A679=\"\",\"\",IF(OR(VLOOKUP($A679,Economática!$A$3:$AI$823,10,FALSE)=0,VLOOKUP($A679,Economática!$A$3:$AI$823,10,FALSE)=\"-\"),1/0,VLOOKUP($A679,Economática!$A$3:$AI$823,10,FALSE)))","v":""},{"$f":"IF($A679=\"\",\"\",IF(OR(VLOOKUP($A679,Economática!$A$3:$AI$823,11,FALSE)=0,VLOOKUP($A679,Economática!$A$3:$AI$823,11,FALSE)=\"-\"),1/0,VLOOKUP($A679,Economática!$A$3:$AI$823,11,FALSE)))","v":""},{"$f":"IF($A679=\"\",\"\",IF(OR(VLOOKUP($A679,Economática!$A$3:$AI$823,12,FALSE)=0,VLOOKUP($A679,Economática!$A$3:$AI$823,12,FALSE)=\"-\"),1/0,VLOOKUP($A679,Economática!$A$3:$AI$823,12,FALSE)))","v":""},{"$f":"IF($A679=\"\",\"\",IF(OR(VLOOKUP($A679,Economática!$A$3:$AI$823,13,FALSE)=0,VLOOKUP($A679,Economática!$A$3:$AI$823,13,FALSE)=\"-\"),1/0,VLOOKUP($A679,Economática!$A$3:$AI$823,13,FALSE)))","v":""},{"$f":"IF($A679=\"\",\"\",IF(OR(VLOOKUP($A679,Economática!$A$3:$AI$823,14,FALSE)=0,VLOOKUP($A679,Economática!$A$3:$AI$823,14,FALSE)=\"-\"),1/0,VLOOKUP($A679,Economática!$A$3:$AI$823,14,FALSE)))","v":""},{"$f":"IF($A679=\"\",\"\",IF(OR(VLOOKUP($A679,Economática!$A$3:$AI$823,15,FALSE)=0,VLOOKUP($A679,Economática!$A$3:$AI$823,15,FALSE)=\"-\"),1/0,VLOOKUP($A679,Economática!$A$3:$AI$823,15,FALSE)))","v":""},{"$f":"IF($A679=\"\",\"\",IF(OR(VLOOKUP($A679,Economática!$A$3:$AI$823,16,FALSE)=0,VLOOKUP($A679,Economática!$A$3:$AI$823,16,FALSE)=\"-\"),1/0,VLOOKUP($A679,Economática!$A$3:$AI$823,16,FALSE)))","v":""},{"$f":"IF($A679=\"\",\"\",IF(OR(VLOOKUP($A679,Economática!$A$3:$AI$823,17,FALSE)=0,VLOOKUP($A679,Economática!$A$3:$AI$823,17,FALSE)=\"-\"),1/0,VLOOKUP($A679,Economática!$A$3:$AI$823,17,FALSE)))","v":""},{"$f":"IF($A679=\"\",\"\",IF(OR(VLOOKUP($A679,Economática!$A$3:$AI$823,18,FALSE)=0,VLOOKUP($A679,Economática!$A$3:$AI$823,18,FALSE)=\"-\"),1/0,VLOOKUP($A679,Economática!$A$3:$AI$823,18,FALSE)))","v":""},{"$f":"IF($A679=\"\",\"\",IF(OR(VLOOKUP($A679,Economática!$A$3:$AI$823,19,FALSE)=0,VLOOKUP($A679,Economática!$A$3:$AI$823,19,FALSE)=\"-\"),1/0,VLOOKUP($A679,Economática!$A$3:$AI$823,19,FALSE)))","v":""},{"$f":"IF($A679=\"\",\"\",VLOOKUP($A679,Economática!$A$3:$AI$823,20,FALSE)/E679)","v":""},"","","",{"$f":"IF($A679=\"\",\"\",IF(OR(VLOOKUP($A679,Economática!$A$3:$AI$823,21,FALSE)/100=0,VLOOKUP($A679,Economática!$A$3:$AI$823,21,FALSE)/100=\"-\"),1/0,VLOOKUP($A679,Economática!$A$3:$AI$823,21,FALSE)/100))","v":""},{"$f":"IF($A679=\"\",\"\",IF(OR(VLOOKUP($A679,Economática!$A$3:$AI$823,22,FALSE)/100=0,VLOOKUP($A679,Economática!$A$3:$AI$823,22,FALSE)/100=\"-\"),1/0,VLOOKUP($A679,Economática!$A$3:$AI$823,22,FALSE)/100))","v":""},{"$f":"IF($A679=\"\",\"\",IF(OR(VLOOKUP($A679,Economática!$A$3:$AI$823,23,FALSE)=0,VLOOKUP($A679,Economática!$A$3:$AI$823,23,FALSE)=\"-\"),1/0,VLOOKUP($A679,Economática!$A$3:$AI$823,23,FALSE)))","v":""},{"$f":"IF($A679=\"\",\"\",IF(OR(VLOOKUP($A679,Economática!$A$3:$AI$823,24,FALSE)=0,VLOOKUP($A679,Economática!$A$3:$AI$823,24,FALSE)=\"-\"),1/0,VLOOKUP($A679,Economática!$A$3:$AI$823,24,FALSE)))","v":""},{"$f":"IF($A679=\"\",\"\",IF(OR(VLOOKUP($A679,Economática!$A$3:$AI$823,25,FALSE)=0,VLOOKUP($A679,Economática!$A$3:$AI$823,25,FALSE)=\"-\"),1/0,VLOOKUP($A679,Economática!$A$3:$AI$823,25,FALSE)))","v":""},{"$f":"IF($A679=\"\",\"\",IF(ISERROR((F679+VLOOKUP($A679,Economática!$A$3:$AI$823,26,FALSE))/Y679),(F679+VLOOKUP($A679,Economática!$A$3:$AI$823,26,FALSE))/Y679,(F679+VLOOKUP($A679,Economática!$A$3:$AI$823,26,FALSE))/Y679))","v":""},{"$f":"IF($A679=\"\",\"\",IF(OR(-VLOOKUP($A679,Economática!$A$3:$AI$823,27,FALSE)=0,-VLOOKUP($A679,Economática!$A$3:$AI$823,27,FALSE)=\"-\"),1/0,-VLOOKUP($A679,Economática!$A$3:$AI$823,27,FALSE)))","v":""},"",{"$f":"IF($A679=\"\",\"\",IF(OR(VLOOKUP($A679,Economática!$A$3:$AI$823,28,FALSE)=0,VLOOKUP($A679,Economática!$A$3:$AI$823,28,FALSE)=\"-\"),1/0,VLOOKUP($A679,Economática!$A$3:$AI$823,28,FALSE)))","v":""},{"$f":"IF($A679=\"\",\"\",IF(OR(VLOOKUP($A679,Economática!$A$3:$AI$823,29,FALSE)=0,VLOOKUP($A679,Economática!$A$3:$AI$823,29,FALSE)=\"-\"),1/0,VLOOKUP($A679,Economática!$A$3:$AI$823,29,FALSE)))","v":""},{"$f":"IF($A679=\"\",\"\",IF(OR(VLOOKUP($A679,Economática!$A$3:$AI$823,30,FALSE)/E679=0,VLOOKUP($A679,Economática!$A$3:$AI$823,30,FALSE)/E679=\"-\",VLOOKUP($A679,Economática!$A$3:$AI$823,30,FALSE)/E679<33.33%,VLOOKUP($A679,Economática!$A$3:$AI$823,30,FALSE)/E679>100%),1/0,VLOOKUP($A679,Economática!$A$3:$AI$823,30,FALSE)/E679))","v":""},"",{"$f":"IF($A679=\"\",\"\",IF(OR(VLOOKUP($A679,Economática!$A$3:$AI$823,25,FALSE)=0,VLOOKUP($A679,Economática!$A$3:$AI$823,25,FALSE)=\"-\"),1/0,VLOOKUP($A679,Economática!$A$3:$AI$823,25,FALSE)))","v":""},{"$f":"CONCATENATE(Economática!B657,\" \",Economática!C657)","v":" "}]
[{"$f":"IF(Economática!AG658=\"\",\"\",Economática!AG658)","v":""},{"$f":"IF($A680=\"\",\"\",VLOOKUP(VLOOKUP($A680,Economática!$A$3:$AI$823,6,FALSE),Correção!$B$16:$C$36,2,FALSE))","v":""},{"$f":"IF(Economática!B658=\"\",\"\",Economática!B658)","v":""},{"$f":"IF($A680=\"\",\"\",IF(OR(VLOOKUP($A680,Economática!$A$3:$AI$823,8,FALSE)=0,VLOOKUP($A680,Economática!$A$3:$AI$823,8,FALSE)=\"-\"),1/0,VLOOKUP($A680,Economática!$A$3:$AI$823,8,FALSE)))","v":""},{"$f":"IF(A680=\"\",\"\",IF(ISERROR(VLOOKUP(A680,Correção!$B$2:$G$13,9,FALSE)),VLOOKUP($A680,Economática!$A$3:$AI$823,9,FALSE),VLOOKUP(A680,Correção!$B$2:$G$13,9,FALSE)))","v":""},{"$f":"IF($A680=\"\",\"\",Economática!G658)","v":""},{"$f":"IF($A680=\"\",\"\",IF(OR(VLOOKUP($A680,Economática!$A$3:$AI$823,10,FALSE)=0,VLOOKUP($A680,Economática!$A$3:$AI$823,10,FALSE)=\"-\"),1/0,VLOOKUP($A680,Economática!$A$3:$AI$823,10,FALSE)))","v":""},{"$f":"IF($A680=\"\",\"\",IF(OR(VLOOKUP($A680,Economática!$A$3:$AI$823,11,FALSE)=0,VLOOKUP($A680,Economática!$A$3:$AI$823,11,FALSE)=\"-\"),1/0,VLOOKUP($A680,Economática!$A$3:$AI$823,11,FALSE)))","v":""},{"$f":"IF($A680=\"\",\"\",IF(OR(VLOOKUP($A680,Economática!$A$3:$AI$823,12,FALSE)=0,VLOOKUP($A680,Economática!$A$3:$AI$823,12,FALSE)=\"-\"),1/0,VLOOKUP($A680,Economática!$A$3:$AI$823,12,FALSE)))","v":""},{"$f":"IF($A680=\"\",\"\",IF(OR(VLOOKUP($A680,Economática!$A$3:$AI$823,13,FALSE)=0,VLOOKUP($A680,Economática!$A$3:$AI$823,13,FALSE)=\"-\"),1/0,VLOOKUP($A680,Economática!$A$3:$AI$823,13,FALSE)))","v":""},{"$f":"IF($A680=\"\",\"\",IF(OR(VLOOKUP($A680,Economática!$A$3:$AI$823,14,FALSE)=0,VLOOKUP($A680,Economática!$A$3:$AI$823,14,FALSE)=\"-\"),1/0,VLOOKUP($A680,Economática!$A$3:$AI$823,14,FALSE)))","v":""},{"$f":"IF($A680=\"\",\"\",IF(OR(VLOOKUP($A680,Economática!$A$3:$AI$823,15,FALSE)=0,VLOOKUP($A680,Economática!$A$3:$AI$823,15,FALSE)=\"-\"),1/0,VLOOKUP($A680,Economática!$A$3:$AI$823,15,FALSE)))","v":""},{"$f":"IF($A680=\"\",\"\",IF(OR(VLOOKUP($A680,Economática!$A$3:$AI$823,16,FALSE)=0,VLOOKUP($A680,Economática!$A$3:$AI$823,16,FALSE)=\"-\"),1/0,VLOOKUP($A680,Economática!$A$3:$AI$823,16,FALSE)))","v":""},{"$f":"IF($A680=\"\",\"\",IF(OR(VLOOKUP($A680,Economática!$A$3:$AI$823,17,FALSE)=0,VLOOKUP($A680,Economática!$A$3:$AI$823,17,FALSE)=\"-\"),1/0,VLOOKUP($A680,Economática!$A$3:$AI$823,17,FALSE)))","v":""},{"$f":"IF($A680=\"\",\"\",IF(OR(VLOOKUP($A680,Economática!$A$3:$AI$823,18,FALSE)=0,VLOOKUP($A680,Economática!$A$3:$AI$823,18,FALSE)=\"-\"),1/0,VLOOKUP($A680,Economática!$A$3:$AI$823,18,FALSE)))","v":""},{"$f":"IF($A680=\"\",\"\",IF(OR(VLOOKUP($A680,Economática!$A$3:$AI$823,19,FALSE)=0,VLOOKUP($A680,Economática!$A$3:$AI$823,19,FALSE)=\"-\"),1/0,VLOOKUP($A680,Economática!$A$3:$AI$823,19,FALSE)))","v":""},{"$f":"IF($A680=\"\",\"\",VLOOKUP($A680,Economática!$A$3:$AI$823,20,FALSE)/E680)","v":""},"","","",{"$f":"IF($A680=\"\",\"\",IF(OR(VLOOKUP($A680,Economática!$A$3:$AI$823,21,FALSE)/100=0,VLOOKUP($A680,Economática!$A$3:$AI$823,21,FALSE)/100=\"-\"),1/0,VLOOKUP($A680,Economática!$A$3:$AI$823,21,FALSE)/100))","v":""},{"$f":"IF($A680=\"\",\"\",IF(OR(VLOOKUP($A680,Economática!$A$3:$AI$823,22,FALSE)/100=0,VLOOKUP($A680,Economática!$A$3:$AI$823,22,FALSE)/100=\"-\"),1/0,VLOOKUP($A680,Economática!$A$3:$AI$823,22,FALSE)/100))","v":""},{"$f":"IF($A680=\"\",\"\",IF(OR(VLOOKUP($A680,Economática!$A$3:$AI$823,23,FALSE)=0,VLOOKUP($A680,Economática!$A$3:$AI$823,23,FALSE)=\"-\"),1/0,VLOOKUP($A680,Economática!$A$3:$AI$823,23,FALSE)))","v":""},{"$f":"IF($A680=\"\",\"\",IF(OR(VLOOKUP($A680,Economática!$A$3:$AI$823,24,FALSE)=0,VLOOKUP($A680,Economática!$A$3:$AI$823,24,FALSE)=\"-\"),1/0,VLOOKUP($A680,Economática!$A$3:$AI$823,24,FALSE)))","v":""},{"$f":"IF($A680=\"\",\"\",IF(OR(VLOOKUP($A680,Economática!$A$3:$AI$823,25,FALSE)=0,VLOOKUP($A680,Economática!$A$3:$AI$823,25,FALSE)=\"-\"),1/0,VLOOKUP($A680,Economática!$A$3:$AI$823,25,FALSE)))","v":""},{"$f":"IF($A680=\"\",\"\",IF(ISERROR((F680+VLOOKUP($A680,Economática!$A$3:$AI$823,26,FALSE))/Y680),(F680+VLOOKUP($A680,Economática!$A$3:$AI$823,26,FALSE))/Y680,(F680+VLOOKUP($A680,Economática!$A$3:$AI$823,26,FALSE))/Y680))","v":""},{"$f":"IF($A680=\"\",\"\",IF(OR(-VLOOKUP($A680,Economática!$A$3:$AI$823,27,FALSE)=0,-VLOOKUP($A680,Economática!$A$3:$AI$823,27,FALSE)=\"-\"),1/0,-VLOOKUP($A680,Economática!$A$3:$AI$823,27,FALSE)))","v":""},"",{"$f":"IF($A680=\"\",\"\",IF(OR(VLOOKUP($A680,Economática!$A$3:$AI$823,28,FALSE)=0,VLOOKUP($A680,Economática!$A$3:$AI$823,28,FALSE)=\"-\"),1/0,VLOOKUP($A680,Economática!$A$3:$AI$823,28,FALSE)))","v":""},{"$f":"IF($A680=\"\",\"\",IF(OR(VLOOKUP($A680,Economática!$A$3:$AI$823,29,FALSE)=0,VLOOKUP($A680,Economática!$A$3:$AI$823,29,FALSE)=\"-\"),1/0,VLOOKUP($A680,Economática!$A$3:$AI$823,29,FALSE)))","v":""},{"$f":"IF($A680=\"\",\"\",IF(OR(VLOOKUP($A680,Economática!$A$3:$AI$823,30,FALSE)/E680=0,VLOOKUP($A680,Economática!$A$3:$AI$823,30,FALSE)/E680=\"-\",VLOOKUP($A680,Economática!$A$3:$AI$823,30,FALSE)/E680<33.33%,VLOOKUP($A680,Economática!$A$3:$AI$823,30,FALSE)/E680>100%),1/0,VLOOKUP($A680,Economática!$A$3:$AI$823,30,FALSE)/E680))","v":""},"",{"$f":"IF($A680=\"\",\"\",IF(OR(VLOOKUP($A680,Economática!$A$3:$AI$823,25,FALSE)=0,VLOOKUP($A680,Economática!$A$3:$AI$823,25,FALSE)=\"-\"),1/0,VLOOKUP($A680,Economática!$A$3:$AI$823,25,FALSE)))","v":""},{"$f":"CONCATENATE(Economática!B658,\" \",Economática!C658)","v":" "}]
[{"$f":"IF(Economática!AG659=\"\",\"\",Economática!AG659)","v":""},{"$f":"IF($A681=\"\",\"\",VLOOKUP(VLOOKUP($A681,Economática!$A$3:$AI$823,6,FALSE),Correção!$B$16:$C$36,2,FALSE))","v":""},{"$f":"IF(Economática!B659=\"\",\"\",Economática!B659)","v":""},{"$f":"IF($A681=\"\",\"\",IF(OR(VLOOKUP($A681,Economática!$A$3:$AI$823,8,FALSE)=0,VLOOKUP($A681,Economática!$A$3:$AI$823,8,FALSE)=\"-\"),1/0,VLOOKUP($A681,Economática!$A$3:$AI$823,8,FALSE)))","v":""},{"$f":"IF(A681=\"\",\"\",IF(ISERROR(VLOOKUP(A681,Correção!$B$2:$G$13,9,FALSE)),VLOOKUP($A681,Economática!$A$3:$AI$823,9,FALSE),VLOOKUP(A681,Correção!$B$2:$G$13,9,FALSE)))","v":""},{"$f":"IF($A681=\"\",\"\",Economática!G659)","v":""},{"$f":"IF($A681=\"\",\"\",IF(OR(VLOOKUP($A681,Economática!$A$3:$AI$823,10,FALSE)=0,VLOOKUP($A681,Economática!$A$3:$AI$823,10,FALSE)=\"-\"),1/0,VLOOKUP($A681,Economática!$A$3:$AI$823,10,FALSE)))","v":""},{"$f":"IF($A681=\"\",\"\",IF(OR(VLOOKUP($A681,Economática!$A$3:$AI$823,11,FALSE)=0,VLOOKUP($A681,Economática!$A$3:$AI$823,11,FALSE)=\"-\"),1/0,VLOOKUP($A681,Economática!$A$3:$AI$823,11,FALSE)))","v":""},{"$f":"IF($A681=\"\",\"\",IF(OR(VLOOKUP($A681,Economática!$A$3:$AI$823,12,FALSE)=0,VLOOKUP($A681,Economática!$A$3:$AI$823,12,FALSE)=\"-\"),1/0,VLOOKUP($A681,Economática!$A$3:$AI$823,12,FALSE)))","v":""},{"$f":"IF($A681=\"\",\"\",IF(OR(VLOOKUP($A681,Economática!$A$3:$AI$823,13,FALSE)=0,VLOOKUP($A681,Economática!$A$3:$AI$823,13,FALSE)=\"-\"),1/0,VLOOKUP($A681,Economática!$A$3:$AI$823,13,FALSE)))","v":""},{"$f":"IF($A681=\"\",\"\",IF(OR(VLOOKUP($A681,Economática!$A$3:$AI$823,14,FALSE)=0,VLOOKUP($A681,Economática!$A$3:$AI$823,14,FALSE)=\"-\"),1/0,VLOOKUP($A681,Economática!$A$3:$AI$823,14,FALSE)))","v":""},{"$f":"IF($A681=\"\",\"\",IF(OR(VLOOKUP($A681,Economática!$A$3:$AI$823,15,FALSE)=0,VLOOKUP($A681,Economática!$A$3:$AI$823,15,FALSE)=\"-\"),1/0,VLOOKUP($A681,Economática!$A$3:$AI$823,15,FALSE)))","v":""},{"$f":"IF($A681=\"\",\"\",IF(OR(VLOOKUP($A681,Economática!$A$3:$AI$823,16,FALSE)=0,VLOOKUP($A681,Economática!$A$3:$AI$823,16,FALSE)=\"-\"),1/0,VLOOKUP($A681,Economática!$A$3:$AI$823,16,FALSE)))","v":""},{"$f":"IF($A681=\"\",\"\",IF(OR(VLOOKUP($A681,Economática!$A$3:$AI$823,17,FALSE)=0,VLOOKUP($A681,Economática!$A$3:$AI$823,17,FALSE)=\"-\"),1/0,VLOOKUP($A681,Economática!$A$3:$AI$823,17,FALSE)))","v":""},{"$f":"IF($A681=\"\",\"\",IF(OR(VLOOKUP($A681,Economática!$A$3:$AI$823,18,FALSE)=0,VLOOKUP($A681,Economática!$A$3:$AI$823,18,FALSE)=\"-\"),1/0,VLOOKUP($A681,Economática!$A$3:$AI$823,18,FALSE)))","v":""},{"$f":"IF($A681=\"\",\"\",IF(OR(VLOOKUP($A681,Economática!$A$3:$AI$823,19,FALSE)=0,VLOOKUP($A681,Economática!$A$3:$AI$823,19,FALSE)=\"-\"),1/0,VLOOKUP($A681,Economática!$A$3:$AI$823,19,FALSE)))","v":""},{"$f":"IF($A681=\"\",\"\",VLOOKUP($A681,Economática!$A$3:$AI$823,20,FALSE)/E681)","v":""},"","","",{"$f":"IF($A681=\"\",\"\",IF(OR(VLOOKUP($A681,Economática!$A$3:$AI$823,21,FALSE)/100=0,VLOOKUP($A681,Economática!$A$3:$AI$823,21,FALSE)/100=\"-\"),1/0,VLOOKUP($A681,Economática!$A$3:$AI$823,21,FALSE)/100))","v":""},{"$f":"IF($A681=\"\",\"\",IF(OR(VLOOKUP($A681,Economática!$A$3:$AI$823,22,FALSE)/100=0,VLOOKUP($A681,Economática!$A$3:$AI$823,22,FALSE)/100=\"-\"),1/0,VLOOKUP($A681,Economática!$A$3:$AI$823,22,FALSE)/100))","v":""},{"$f":"IF($A681=\"\",\"\",IF(OR(VLOOKUP($A681,Economática!$A$3:$AI$823,23,FALSE)=0,VLOOKUP($A681,Economática!$A$3:$AI$823,23,FALSE)=\"-\"),1/0,VLOOKUP($A681,Economática!$A$3:$AI$823,23,FALSE)))","v":""},{"$f":"IF($A681=\"\",\"\",IF(OR(VLOOKUP($A681,Economática!$A$3:$AI$823,24,FALSE)=0,VLOOKUP($A681,Economática!$A$3:$AI$823,24,FALSE)=\"-\"),1/0,VLOOKUP($A681,Economática!$A$3:$AI$823,24,FALSE)))","v":""},{"$f":"IF($A681=\"\",\"\",IF(OR(VLOOKUP($A681,Economática!$A$3:$AI$823,25,FALSE)=0,VLOOKUP($A681,Economática!$A$3:$AI$823,25,FALSE)=\"-\"),1/0,VLOOKUP($A681,Economática!$A$3:$AI$823,25,FALSE)))","v":""},{"$f":"IF($A681=\"\",\"\",IF(ISERROR((F681+VLOOKUP($A681,Economática!$A$3:$AI$823,26,FALSE))/Y681),(F681+VLOOKUP($A681,Economática!$A$3:$AI$823,26,FALSE))/Y681,(F681+VLOOKUP($A681,Economática!$A$3:$AI$823,26,FALSE))/Y681))","v":""},{"$f":"IF($A681=\"\",\"\",IF(OR(-VLOOKUP($A681,Economática!$A$3:$AI$823,27,FALSE)=0,-VLOOKUP($A681,Economática!$A$3:$AI$823,27,FALSE)=\"-\"),1/0,-VLOOKUP($A681,Economática!$A$3:$AI$823,27,FALSE)))","v":""},"",{"$f":"IF($A681=\"\",\"\",IF(OR(VLOOKUP($A681,Economática!$A$3:$AI$823,28,FALSE)=0,VLOOKUP($A681,Economática!$A$3:$AI$823,28,FALSE)=\"-\"),1/0,VLOOKUP($A681,Economática!$A$3:$AI$823,28,FALSE)))","v":""},{"$f":"IF($A681=\"\",\"\",IF(OR(VLOOKUP($A681,Economática!$A$3:$AI$823,29,FALSE)=0,VLOOKUP($A681,Economática!$A$3:$AI$823,29,FALSE)=\"-\"),1/0,VLOOKUP($A681,Economática!$A$3:$AI$823,29,FALSE)))","v":""},{"$f":"IF($A681=\"\",\"\",IF(OR(VLOOKUP($A681,Economática!$A$3:$AI$823,30,FALSE)/E681=0,VLOOKUP($A681,Economática!$A$3:$AI$823,30,FALSE)/E681=\"-\",VLOOKUP($A681,Economática!$A$3:$AI$823,30,FALSE)/E681<33.33%,VLOOKUP($A681,Economática!$A$3:$AI$823,30,FALSE)/E681>100%),1/0,VLOOKUP($A681,Economática!$A$3:$AI$823,30,FALSE)/E681))","v":""},"",{"$f":"IF($A681=\"\",\"\",IF(OR(VLOOKUP($A681,Economática!$A$3:$AI$823,25,FALSE)=0,VLOOKUP($A681,Economática!$A$3:$AI$823,25,FALSE)=\"-\"),1/0,VLOOKUP($A681,Economática!$A$3:$AI$823,25,FALSE)))","v":""},{"$f":"CONCATENATE(Economática!B659,\" \",Economática!C659)","v":" "}]
[{"$f":"IF(Economática!AG660=\"\",\"\",Economática!AG660)","v":""},{"$f":"IF($A682=\"\",\"\",VLOOKUP(VLOOKUP($A682,Economática!$A$3:$AI$823,6,FALSE),Correção!$B$16:$C$36,2,FALSE))","v":""},{"$f":"IF(Economática!B660=\"\",\"\",Economática!B660)","v":""},{"$f":"IF($A682=\"\",\"\",IF(OR(VLOOKUP($A682,Economática!$A$3:$AI$823,8,FALSE)=0,VLOOKUP($A682,Economática!$A$3:$AI$823,8,FALSE)=\"-\"),1/0,VLOOKUP($A682,Economática!$A$3:$AI$823,8,FALSE)))","v":""},{"$f":"IF(A682=\"\",\"\",IF(ISERROR(VLOOKUP(A682,Correção!$B$2:$G$13,9,FALSE)),VLOOKUP($A682,Economática!$A$3:$AI$823,9,FALSE),VLOOKUP(A682,Correção!$B$2:$G$13,9,FALSE)))","v":""},{"$f":"IF($A682=\"\",\"\",Economática!G660)","v":""},{"$f":"IF($A682=\"\",\"\",IF(OR(VLOOKUP($A682,Economática!$A$3:$AI$823,10,FALSE)=0,VLOOKUP($A682,Economática!$A$3:$AI$823,10,FALSE)=\"-\"),1/0,VLOOKUP($A682,Economática!$A$3:$AI$823,10,FALSE)))","v":""},{"$f":"IF($A682=\"\",\"\",IF(OR(VLOOKUP($A682,Economática!$A$3:$AI$823,11,FALSE)=0,VLOOKUP($A682,Economática!$A$3:$AI$823,11,FALSE)=\"-\"),1/0,VLOOKUP($A682,Economática!$A$3:$AI$823,11,FALSE)))","v":""},{"$f":"IF($A682=\"\",\"\",IF(OR(VLOOKUP($A682,Economática!$A$3:$AI$823,12,FALSE)=0,VLOOKUP($A682,Economática!$A$3:$AI$823,12,FALSE)=\"-\"),1/0,VLOOKUP($A682,Economática!$A$3:$AI$823,12,FALSE)))","v":""},{"$f":"IF($A682=\"\",\"\",IF(OR(VLOOKUP($A682,Economática!$A$3:$AI$823,13,FALSE)=0,VLOOKUP($A682,Economática!$A$3:$AI$823,13,FALSE)=\"-\"),1/0,VLOOKUP($A682,Economática!$A$3:$AI$823,13,FALSE)))","v":""},{"$f":"IF($A682=\"\",\"\",IF(OR(VLOOKUP($A682,Economática!$A$3:$AI$823,14,FALSE)=0,VLOOKUP($A682,Economática!$A$3:$AI$823,14,FALSE)=\"-\"),1/0,VLOOKUP($A682,Economática!$A$3:$AI$823,14,FALSE)))","v":""},{"$f":"IF($A682=\"\",\"\",IF(OR(VLOOKUP($A682,Economática!$A$3:$AI$823,15,FALSE)=0,VLOOKUP($A682,Economática!$A$3:$AI$823,15,FALSE)=\"-\"),1/0,VLOOKUP($A682,Economática!$A$3:$AI$823,15,FALSE)))","v":""},{"$f":"IF($A682=\"\",\"\",IF(OR(VLOOKUP($A682,Economática!$A$3:$AI$823,16,FALSE)=0,VLOOKUP($A682,Economática!$A$3:$AI$823,16,FALSE)=\"-\"),1/0,VLOOKUP($A682,Economática!$A$3:$AI$823,16,FALSE)))","v":""},{"$f":"IF($A682=\"\",\"\",IF(OR(VLOOKUP($A682,Economática!$A$3:$AI$823,17,FALSE)=0,VLOOKUP($A682,Economática!$A$3:$AI$823,17,FALSE)=\"-\"),1/0,VLOOKUP($A682,Economática!$A$3:$AI$823,17,FALSE)))","v":""},{"$f":"IF($A682=\"\",\"\",IF(OR(VLOOKUP($A682,Economática!$A$3:$AI$823,18,FALSE)=0,VLOOKUP($A682,Economática!$A$3:$AI$823,18,FALSE)=\"-\"),1/0,VLOOKUP($A682,Economática!$A$3:$AI$823,18,FALSE)))","v":""},{"$f":"IF($A682=\"\",\"\",IF(OR(VLOOKUP($A682,Economática!$A$3:$AI$823,19,FALSE)=0,VLOOKUP($A682,Economática!$A$3:$AI$823,19,FALSE)=\"-\"),1/0,VLOOKUP($A682,Economática!$A$3:$AI$823,19,FALSE)))","v":""},{"$f":"IF($A682=\"\",\"\",VLOOKUP($A682,Economática!$A$3:$AI$823,20,FALSE)/E682)","v":""},"","","",{"$f":"IF($A682=\"\",\"\",IF(OR(VLOOKUP($A682,Economática!$A$3:$AI$823,21,FALSE)/100=0,VLOOKUP($A682,Economática!$A$3:$AI$823,21,FALSE)/100=\"-\"),1/0,VLOOKUP($A682,Economática!$A$3:$AI$823,21,FALSE)/100))","v":""},{"$f":"IF($A682=\"\",\"\",IF(OR(VLOOKUP($A682,Economática!$A$3:$AI$823,22,FALSE)/100=0,VLOOKUP($A682,Economática!$A$3:$AI$823,22,FALSE)/100=\"-\"),1/0,VLOOKUP($A682,Economática!$A$3:$AI$823,22,FALSE)/100))","v":""},{"$f":"IF($A682=\"\",\"\",IF(OR(VLOOKUP($A682,Economática!$A$3:$AI$823,23,FALSE)=0,VLOOKUP($A682,Economática!$A$3:$AI$823,23,FALSE)=\"-\"),1/0,VLOOKUP($A682,Economática!$A$3:$AI$823,23,FALSE)))","v":""},{"$f":"IF($A682=\"\",\"\",IF(OR(VLOOKUP($A682,Economática!$A$3:$AI$823,24,FALSE)=0,VLOOKUP($A682,Economática!$A$3:$AI$823,24,FALSE)=\"-\"),1/0,VLOOKUP($A682,Economática!$A$3:$AI$823,24,FALSE)))","v":""},{"$f":"IF($A682=\"\",\"\",IF(OR(VLOOKUP($A682,Economática!$A$3:$AI$823,25,FALSE)=0,VLOOKUP($A682,Economática!$A$3:$AI$823,25,FALSE)=\"-\"),1/0,VLOOKUP($A682,Economática!$A$3:$AI$823,25,FALSE)))","v":""},{"$f":"IF($A682=\"\",\"\",IF(ISERROR((F682+VLOOKUP($A682,Economática!$A$3:$AI$823,26,FALSE))/Y682),(F682+VLOOKUP($A682,Economática!$A$3:$AI$823,26,FALSE))/Y682,(F682+VLOOKUP($A682,Economática!$A$3:$AI$823,26,FALSE))/Y682))","v":""},{"$f":"IF($A682=\"\",\"\",IF(OR(-VLOOKUP($A682,Economática!$A$3:$AI$823,27,FALSE)=0,-VLOOKUP($A682,Economática!$A$3:$AI$823,27,FALSE)=\"-\"),1/0,-VLOOKUP($A682,Economática!$A$3:$AI$823,27,FALSE)))","v":""},"",{"$f":"IF($A682=\"\",\"\",IF(OR(VLOOKUP($A682,Economática!$A$3:$AI$823,28,FALSE)=0,VLOOKUP($A682,Economática!$A$3:$AI$823,28,FALSE)=\"-\"),1/0,VLOOKUP($A682,Economática!$A$3:$AI$823,28,FALSE)))","v":""},{"$f":"IF($A682=\"\",\"\",IF(OR(VLOOKUP($A682,Economática!$A$3:$AI$823,29,FALSE)=0,VLOOKUP($A682,Economática!$A$3:$AI$823,29,FALSE)=\"-\"),1/0,VLOOKUP($A682,Economática!$A$3:$AI$823,29,FALSE)))","v":""},{"$f":"IF($A682=\"\",\"\",IF(OR(VLOOKUP($A682,Economática!$A$3:$AI$823,30,FALSE)/E682=0,VLOOKUP($A682,Economática!$A$3:$AI$823,30,FALSE)/E682=\"-\",VLOOKUP($A682,Economática!$A$3:$AI$823,30,FALSE)/E682<33.33%,VLOOKUP($A682,Economática!$A$3:$AI$823,30,FALSE)/E682>100%),1/0,VLOOKUP($A682,Economática!$A$3:$AI$823,30,FALSE)/E682))","v":""},"",{"$f":"IF($A682=\"\",\"\",IF(OR(VLOOKUP($A682,Economática!$A$3:$AI$823,25,FALSE)=0,VLOOKUP($A682,Economática!$A$3:$AI$823,25,FALSE)=\"-\"),1/0,VLOOKUP($A682,Economática!$A$3:$AI$823,25,FALSE)))","v":""},{"$f":"CONCATENATE(Economática!B660,\" \",Economática!C660)","v":" "}]
[{"$f":"IF(Economática!AG661=\"\",\"\",Economática!AG661)","v":""},{"$f":"IF($A683=\"\",\"\",VLOOKUP(VLOOKUP($A683,Economática!$A$3:$AI$823,6,FALSE),Correção!$B$16:$C$36,2,FALSE))","v":""},{"$f":"IF(Economática!B661=\"\",\"\",Economática!B661)","v":""},{"$f":"IF($A683=\"\",\"\",IF(OR(VLOOKUP($A683,Economática!$A$3:$AI$823,8,FALSE)=0,VLOOKUP($A683,Economática!$A$3:$AI$823,8,FALSE)=\"-\"),1/0,VLOOKUP($A683,Economática!$A$3:$AI$823,8,FALSE)))","v":""},{"$f":"IF(A683=\"\",\"\",IF(ISERROR(VLOOKUP(A683,Correção!$B$2:$G$13,9,FALSE)),VLOOKUP($A683,Economática!$A$3:$AI$823,9,FALSE),VLOOKUP(A683,Correção!$B$2:$G$13,9,FALSE)))","v":""},{"$f":"IF($A683=\"\",\"\",Economática!G661)","v":""},{"$f":"IF($A683=\"\",\"\",IF(OR(VLOOKUP($A683,Economática!$A$3:$AI$823,10,FALSE)=0,VLOOKUP($A683,Economática!$A$3:$AI$823,10,FALSE)=\"-\"),1/0,VLOOKUP($A683,Economática!$A$3:$AI$823,10,FALSE)))","v":""},{"$f":"IF($A683=\"\",\"\",IF(OR(VLOOKUP($A683,Economática!$A$3:$AI$823,11,FALSE)=0,VLOOKUP($A683,Economática!$A$3:$AI$823,11,FALSE)=\"-\"),1/0,VLOOKUP($A683,Economática!$A$3:$AI$823,11,FALSE)))","v":""},{"$f":"IF($A683=\"\",\"\",IF(OR(VLOOKUP($A683,Economática!$A$3:$AI$823,12,FALSE)=0,VLOOKUP($A683,Economática!$A$3:$AI$823,12,FALSE)=\"-\"),1/0,VLOOKUP($A683,Economática!$A$3:$AI$823,12,FALSE)))","v":""},{"$f":"IF($A683=\"\",\"\",IF(OR(VLOOKUP($A683,Economática!$A$3:$AI$823,13,FALSE)=0,VLOOKUP($A683,Economática!$A$3:$AI$823,13,FALSE)=\"-\"),1/0,VLOOKUP($A683,Economática!$A$3:$AI$823,13,FALSE)))","v":""},{"$f":"IF($A683=\"\",\"\",IF(OR(VLOOKUP($A683,Economática!$A$3:$AI$823,14,FALSE)=0,VLOOKUP($A683,Economática!$A$3:$AI$823,14,FALSE)=\"-\"),1/0,VLOOKUP($A683,Economática!$A$3:$AI$823,14,FALSE)))","v":""},{"$f":"IF($A683=\"\",\"\",IF(OR(VLOOKUP($A683,Economática!$A$3:$AI$823,15,FALSE)=0,VLOOKUP($A683,Economática!$A$3:$AI$823,15,FALSE)=\"-\"),1/0,VLOOKUP($A683,Economática!$A$3:$AI$823,15,FALSE)))","v":""},{"$f":"IF($A683=\"\",\"\",IF(OR(VLOOKUP($A683,Economática!$A$3:$AI$823,16,FALSE)=0,VLOOKUP($A683,Economática!$A$3:$AI$823,16,FALSE)=\"-\"),1/0,VLOOKUP($A683,Economática!$A$3:$AI$823,16,FALSE)))","v":""},{"$f":"IF($A683=\"\",\"\",IF(OR(VLOOKUP($A683,Economática!$A$3:$AI$823,17,FALSE)=0,VLOOKUP($A683,Economática!$A$3:$AI$823,17,FALSE)=\"-\"),1/0,VLOOKUP($A683,Economática!$A$3:$AI$823,17,FALSE)))","v":""},{"$f":"IF($A683=\"\",\"\",IF(OR(VLOOKUP($A683,Economática!$A$3:$AI$823,18,FALSE)=0,VLOOKUP($A683,Economática!$A$3:$AI$823,18,FALSE)=\"-\"),1/0,VLOOKUP($A683,Economática!$A$3:$AI$823,18,FALSE)))","v":""},{"$f":"IF($A683=\"\",\"\",IF(OR(VLOOKUP($A683,Economática!$A$3:$AI$823,19,FALSE)=0,VLOOKUP($A683,Economática!$A$3:$AI$823,19,FALSE)=\"-\"),1/0,VLOOKUP($A683,Economática!$A$3:$AI$823,19,FALSE)))","v":""},{"$f":"IF($A683=\"\",\"\",VLOOKUP($A683,Economática!$A$3:$AI$823,20,FALSE)/E683)","v":""},"","","",{"$f":"IF($A683=\"\",\"\",IF(OR(VLOOKUP($A683,Economática!$A$3:$AI$823,21,FALSE)/100=0,VLOOKUP($A683,Economática!$A$3:$AI$823,21,FALSE)/100=\"-\"),1/0,VLOOKUP($A683,Economática!$A$3:$AI$823,21,FALSE)/100))","v":""},{"$f":"IF($A683=\"\",\"\",IF(OR(VLOOKUP($A683,Economática!$A$3:$AI$823,22,FALSE)/100=0,VLOOKUP($A683,Economática!$A$3:$AI$823,22,FALSE)/100=\"-\"),1/0,VLOOKUP($A683,Economática!$A$3:$AI$823,22,FALSE)/100))","v":""},{"$f":"IF($A683=\"\",\"\",IF(OR(VLOOKUP($A683,Economática!$A$3:$AI$823,23,FALSE)=0,VLOOKUP($A683,Economática!$A$3:$AI$823,23,FALSE)=\"-\"),1/0,VLOOKUP($A683,Economática!$A$3:$AI$823,23,FALSE)))","v":""},{"$f":"IF($A683=\"\",\"\",IF(OR(VLOOKUP($A683,Economática!$A$3:$AI$823,24,FALSE)=0,VLOOKUP($A683,Economática!$A$3:$AI$823,24,FALSE)=\"-\"),1/0,VLOOKUP($A683,Economática!$A$3:$AI$823,24,FALSE)))","v":""},{"$f":"IF($A683=\"\",\"\",IF(OR(VLOOKUP($A683,Economática!$A$3:$AI$823,25,FALSE)=0,VLOOKUP($A683,Economática!$A$3:$AI$823,25,FALSE)=\"-\"),1/0,VLOOKUP($A683,Economática!$A$3:$AI$823,25,FALSE)))","v":""},{"$f":"IF($A683=\"\",\"\",IF(ISERROR((F683+VLOOKUP($A683,Economática!$A$3:$AI$823,26,FALSE))/Y683),(F683+VLOOKUP($A683,Economática!$A$3:$AI$823,26,FALSE))/Y683,(F683+VLOOKUP($A683,Economática!$A$3:$AI$823,26,FALSE))/Y683))","v":""},{"$f":"IF($A683=\"\",\"\",IF(OR(-VLOOKUP($A683,Economática!$A$3:$AI$823,27,FALSE)=0,-VLOOKUP($A683,Economática!$A$3:$AI$823,27,FALSE)=\"-\"),1/0,-VLOOKUP($A683,Economática!$A$3:$AI$823,27,FALSE)))","v":""},"",{"$f":"IF($A683=\"\",\"\",IF(OR(VLOOKUP($A683,Economática!$A$3:$AI$823,28,FALSE)=0,VLOOKUP($A683,Economática!$A$3:$AI$823,28,FALSE)=\"-\"),1/0,VLOOKUP($A683,Economática!$A$3:$AI$823,28,FALSE)))","v":""},{"$f":"IF($A683=\"\",\"\",IF(OR(VLOOKUP($A683,Economática!$A$3:$AI$823,29,FALSE)=0,VLOOKUP($A683,Economática!$A$3:$AI$823,29,FALSE)=\"-\"),1/0,VLOOKUP($A683,Economática!$A$3:$AI$823,29,FALSE)))","v":""},{"$f":"IF($A683=\"\",\"\",IF(OR(VLOOKUP($A683,Economática!$A$3:$AI$823,30,FALSE)/E683=0,VLOOKUP($A683,Economática!$A$3:$AI$823,30,FALSE)/E683=\"-\",VLOOKUP($A683,Economática!$A$3:$AI$823,30,FALSE)/E683<33.33%,VLOOKUP($A683,Economática!$A$3:$AI$823,30,FALSE)/E683>100%),1/0,VLOOKUP($A683,Economática!$A$3:$AI$823,30,FALSE)/E683))","v":""},"",{"$f":"IF($A683=\"\",\"\",IF(OR(VLOOKUP($A683,Economática!$A$3:$AI$823,25,FALSE)=0,VLOOKUP($A683,Economática!$A$3:$AI$823,25,FALSE)=\"-\"),1/0,VLOOKUP($A683,Economática!$A$3:$AI$823,25,FALSE)))","v":""},{"$f":"CONCATENATE(Economática!B661,\" \",Economática!C661)","v":" "}]
[{"$f":"IF(Economática!AG662=\"\",\"\",Economática!AG662)","v":""},{"$f":"IF($A684=\"\",\"\",VLOOKUP(VLOOKUP($A684,Economática!$A$3:$AI$823,6,FALSE),Correção!$B$16:$C$36,2,FALSE))","v":""},{"$f":"IF(Economática!B662=\"\",\"\",Economática!B662)","v":""},{"$f":"IF($A684=\"\",\"\",IF(OR(VLOOKUP($A684,Economática!$A$3:$AI$823,8,FALSE)=0,VLOOKUP($A684,Economática!$A$3:$AI$823,8,FALSE)=\"-\"),1/0,VLOOKUP($A684,Economática!$A$3:$AI$823,8,FALSE)))","v":""},{"$f":"IF(A684=\"\",\"\",IF(ISERROR(VLOOKUP(A684,Correção!$B$2:$G$13,9,FALSE)),VLOOKUP($A684,Economática!$A$3:$AI$823,9,FALSE),VLOOKUP(A684,Correção!$B$2:$G$13,9,FALSE)))","v":""},{"$f":"IF($A684=\"\",\"\",Economática!G662)","v":""},{"$f":"IF($A684=\"\",\"\",IF(OR(VLOOKUP($A684,Economática!$A$3:$AI$823,10,FALSE)=0,VLOOKUP($A684,Economática!$A$3:$AI$823,10,FALSE)=\"-\"),1/0,VLOOKUP($A684,Economática!$A$3:$AI$823,10,FALSE)))","v":""},{"$f":"IF($A684=\"\",\"\",IF(OR(VLOOKUP($A684,Economática!$A$3:$AI$823,11,FALSE)=0,VLOOKUP($A684,Economática!$A$3:$AI$823,11,FALSE)=\"-\"),1/0,VLOOKUP($A684,Economática!$A$3:$AI$823,11,FALSE)))","v":""},{"$f":"IF($A684=\"\",\"\",IF(OR(VLOOKUP($A684,Economática!$A$3:$AI$823,12,FALSE)=0,VLOOKUP($A684,Economática!$A$3:$AI$823,12,FALSE)=\"-\"),1/0,VLOOKUP($A684,Economática!$A$3:$AI$823,12,FALSE)))","v":""},{"$f":"IF($A684=\"\",\"\",IF(OR(VLOOKUP($A684,Economática!$A$3:$AI$823,13,FALSE)=0,VLOOKUP($A684,Economática!$A$3:$AI$823,13,FALSE)=\"-\"),1/0,VLOOKUP($A684,Economática!$A$3:$AI$823,13,FALSE)))","v":""},{"$f":"IF($A684=\"\",\"\",IF(OR(VLOOKUP($A684,Economática!$A$3:$AI$823,14,FALSE)=0,VLOOKUP($A684,Economática!$A$3:$AI$823,14,FALSE)=\"-\"),1/0,VLOOKUP($A684,Economática!$A$3:$AI$823,14,FALSE)))","v":""},{"$f":"IF($A684=\"\",\"\",IF(OR(VLOOKUP($A684,Economática!$A$3:$AI$823,15,FALSE)=0,VLOOKUP($A684,Economática!$A$3:$AI$823,15,FALSE)=\"-\"),1/0,VLOOKUP($A684,Economática!$A$3:$AI$823,15,FALSE)))","v":""},{"$f":"IF($A684=\"\",\"\",IF(OR(VLOOKUP($A684,Economática!$A$3:$AI$823,16,FALSE)=0,VLOOKUP($A684,Economática!$A$3:$AI$823,16,FALSE)=\"-\"),1/0,VLOOKUP($A684,Economática!$A$3:$AI$823,16,FALSE)))","v":""},{"$f":"IF($A684=\"\",\"\",IF(OR(VLOOKUP($A684,Economática!$A$3:$AI$823,17,FALSE)=0,VLOOKUP($A684,Economática!$A$3:$AI$823,17,FALSE)=\"-\"),1/0,VLOOKUP($A684,Economática!$A$3:$AI$823,17,FALSE)))","v":""},{"$f":"IF($A684=\"\",\"\",IF(OR(VLOOKUP($A684,Economática!$A$3:$AI$823,18,FALSE)=0,VLOOKUP($A684,Economática!$A$3:$AI$823,18,FALSE)=\"-\"),1/0,VLOOKUP($A684,Economática!$A$3:$AI$823,18,FALSE)))","v":""},{"$f":"IF($A684=\"\",\"\",IF(OR(VLOOKUP($A684,Economática!$A$3:$AI$823,19,FALSE)=0,VLOOKUP($A684,Economática!$A$3:$AI$823,19,FALSE)=\"-\"),1/0,VLOOKUP($A684,Economática!$A$3:$AI$823,19,FALSE)))","v":""},{"$f":"IF($A684=\"\",\"\",VLOOKUP($A684,Economática!$A$3:$AI$823,20,FALSE)/E684)","v":""},"","","",{"$f":"IF($A684=\"\",\"\",IF(OR(VLOOKUP($A684,Economática!$A$3:$AI$823,21,FALSE)/100=0,VLOOKUP($A684,Economática!$A$3:$AI$823,21,FALSE)/100=\"-\"),1/0,VLOOKUP($A684,Economática!$A$3:$AI$823,21,FALSE)/100))","v":""},{"$f":"IF($A684=\"\",\"\",IF(OR(VLOOKUP($A684,Economática!$A$3:$AI$823,22,FALSE)/100=0,VLOOKUP($A684,Economática!$A$3:$AI$823,22,FALSE)/100=\"-\"),1/0,VLOOKUP($A684,Economática!$A$3:$AI$823,22,FALSE)/100))","v":""},{"$f":"IF($A684=\"\",\"\",IF(OR(VLOOKUP($A684,Economática!$A$3:$AI$823,23,FALSE)=0,VLOOKUP($A684,Economática!$A$3:$AI$823,23,FALSE)=\"-\"),1/0,VLOOKUP($A684,Economática!$A$3:$AI$823,23,FALSE)))","v":""},{"$f":"IF($A684=\"\",\"\",IF(OR(VLOOKUP($A684,Economática!$A$3:$AI$823,24,FALSE)=0,VLOOKUP($A684,Economática!$A$3:$AI$823,24,FALSE)=\"-\"),1/0,VLOOKUP($A684,Economática!$A$3:$AI$823,24,FALSE)))","v":""},{"$f":"IF($A684=\"\",\"\",IF(OR(VLOOKUP($A684,Economática!$A$3:$AI$823,25,FALSE)=0,VLOOKUP($A684,Economática!$A$3:$AI$823,25,FALSE)=\"-\"),1/0,VLOOKUP($A684,Economática!$A$3:$AI$823,25,FALSE)))","v":""},{"$f":"IF($A684=\"\",\"\",IF(ISERROR((F684+VLOOKUP($A684,Economática!$A$3:$AI$823,26,FALSE))/Y684),(F684+VLOOKUP($A684,Economática!$A$3:$AI$823,26,FALSE))/Y684,(F684+VLOOKUP($A684,Economática!$A$3:$AI$823,26,FALSE))/Y684))","v":""},{"$f":"IF($A684=\"\",\"\",IF(OR(-VLOOKUP($A684,Economática!$A$3:$AI$823,27,FALSE)=0,-VLOOKUP($A684,Economática!$A$3:$AI$823,27,FALSE)=\"-\"),1/0,-VLOOKUP($A684,Economática!$A$3:$AI$823,27,FALSE)))","v":""},"",{"$f":"IF($A684=\"\",\"\",IF(OR(VLOOKUP($A684,Economática!$A$3:$AI$823,28,FALSE)=0,VLOOKUP($A684,Economática!$A$3:$AI$823,28,FALSE)=\"-\"),1/0,VLOOKUP($A684,Economática!$A$3:$AI$823,28,FALSE)))","v":""},{"$f":"IF($A684=\"\",\"\",IF(OR(VLOOKUP($A684,Economática!$A$3:$AI$823,29,FALSE)=0,VLOOKUP($A684,Economática!$A$3:$AI$823,29,FALSE)=\"-\"),1/0,VLOOKUP($A684,Economática!$A$3:$AI$823,29,FALSE)))","v":""},{"$f":"IF($A684=\"\",\"\",IF(OR(VLOOKUP($A684,Economática!$A$3:$AI$823,30,FALSE)/E684=0,VLOOKUP($A684,Economática!$A$3:$AI$823,30,FALSE)/E684=\"-\",VLOOKUP($A684,Economática!$A$3:$AI$823,30,FALSE)/E684<33.33%,VLOOKUP($A684,Economática!$A$3:$AI$823,30,FALSE)/E684>100%),1/0,VLOOKUP($A684,Economática!$A$3:$AI$823,30,FALSE)/E684))","v":""},"",{"$f":"IF($A684=\"\",\"\",IF(OR(VLOOKUP($A684,Economática!$A$3:$AI$823,25,FALSE)=0,VLOOKUP($A684,Economática!$A$3:$AI$823,25,FALSE)=\"-\"),1/0,VLOOKUP($A684,Economática!$A$3:$AI$823,25,FALSE)))","v":""},{"$f":"CONCATENATE(Economática!B662,\" \",Economática!C662)","v":" "}]
[{"$f":"IF(Economática!AG663=\"\",\"\",Economática!AG663)","v":""},{"$f":"IF($A685=\"\",\"\",VLOOKUP(VLOOKUP($A685,Economática!$A$3:$AI$823,6,FALSE),Correção!$B$16:$C$36,2,FALSE))","v":""},{"$f":"IF(Economática!B663=\"\",\"\",Economática!B663)","v":""},{"$f":"IF($A685=\"\",\"\",IF(OR(VLOOKUP($A685,Economática!$A$3:$AI$823,8,FALSE)=0,VLOOKUP($A685,Economática!$A$3:$AI$823,8,FALSE)=\"-\"),1/0,VLOOKUP($A685,Economática!$A$3:$AI$823,8,FALSE)))","v":""},{"$f":"IF(A685=\"\",\"\",IF(ISERROR(VLOOKUP(A685,Correção!$B$2:$G$13,9,FALSE)),VLOOKUP($A685,Economática!$A$3:$AI$823,9,FALSE),VLOOKUP(A685,Correção!$B$2:$G$13,9,FALSE)))","v":""},{"$f":"IF($A685=\"\",\"\",Economática!G663)","v":""},{"$f":"IF($A685=\"\",\"\",IF(OR(VLOOKUP($A685,Economática!$A$3:$AI$823,10,FALSE)=0,VLOOKUP($A685,Economática!$A$3:$AI$823,10,FALSE)=\"-\"),1/0,VLOOKUP($A685,Economática!$A$3:$AI$823,10,FALSE)))","v":""},{"$f":"IF($A685=\"\",\"\",IF(OR(VLOOKUP($A685,Economática!$A$3:$AI$823,11,FALSE)=0,VLOOKUP($A685,Economática!$A$3:$AI$823,11,FALSE)=\"-\"),1/0,VLOOKUP($A685,Economática!$A$3:$AI$823,11,FALSE)))","v":""},{"$f":"IF($A685=\"\",\"\",IF(OR(VLOOKUP($A685,Economática!$A$3:$AI$823,12,FALSE)=0,VLOOKUP($A685,Economática!$A$3:$AI$823,12,FALSE)=\"-\"),1/0,VLOOKUP($A685,Economática!$A$3:$AI$823,12,FALSE)))","v":""},{"$f":"IF($A685=\"\",\"\",IF(OR(VLOOKUP($A685,Economática!$A$3:$AI$823,13,FALSE)=0,VLOOKUP($A685,Economática!$A$3:$AI$823,13,FALSE)=\"-\"),1/0,VLOOKUP($A685,Economática!$A$3:$AI$823,13,FALSE)))","v":""},{"$f":"IF($A685=\"\",\"\",IF(OR(VLOOKUP($A685,Economática!$A$3:$AI$823,14,FALSE)=0,VLOOKUP($A685,Economática!$A$3:$AI$823,14,FALSE)=\"-\"),1/0,VLOOKUP($A685,Economática!$A$3:$AI$823,14,FALSE)))","v":""},{"$f":"IF($A685=\"\",\"\",IF(OR(VLOOKUP($A685,Economática!$A$3:$AI$823,15,FALSE)=0,VLOOKUP($A685,Economática!$A$3:$AI$823,15,FALSE)=\"-\"),1/0,VLOOKUP($A685,Economática!$A$3:$AI$823,15,FALSE)))","v":""},{"$f":"IF($A685=\"\",\"\",IF(OR(VLOOKUP($A685,Economática!$A$3:$AI$823,16,FALSE)=0,VLOOKUP($A685,Economática!$A$3:$AI$823,16,FALSE)=\"-\"),1/0,VLOOKUP($A685,Economática!$A$3:$AI$823,16,FALSE)))","v":""},{"$f":"IF($A685=\"\",\"\",IF(OR(VLOOKUP($A685,Economática!$A$3:$AI$823,17,FALSE)=0,VLOOKUP($A685,Economática!$A$3:$AI$823,17,FALSE)=\"-\"),1/0,VLOOKUP($A685,Economática!$A$3:$AI$823,17,FALSE)))","v":""},{"$f":"IF($A685=\"\",\"\",IF(OR(VLOOKUP($A685,Economática!$A$3:$AI$823,18,FALSE)=0,VLOOKUP($A685,Economática!$A$3:$AI$823,18,FALSE)=\"-\"),1/0,VLOOKUP($A685,Economática!$A$3:$AI$823,18,FALSE)))","v":""},{"$f":"IF($A685=\"\",\"\",IF(OR(VLOOKUP($A685,Economática!$A$3:$AI$823,19,FALSE)=0,VLOOKUP($A685,Economática!$A$3:$AI$823,19,FALSE)=\"-\"),1/0,VLOOKUP($A685,Economática!$A$3:$AI$823,19,FALSE)))","v":""},{"$f":"IF($A685=\"\",\"\",VLOOKUP($A685,Economática!$A$3:$AI$823,20,FALSE)/E685)","v":""},"","","",{"$f":"IF($A685=\"\",\"\",IF(OR(VLOOKUP($A685,Economática!$A$3:$AI$823,21,FALSE)/100=0,VLOOKUP($A685,Economática!$A$3:$AI$823,21,FALSE)/100=\"-\"),1/0,VLOOKUP($A685,Economática!$A$3:$AI$823,21,FALSE)/100))","v":""},{"$f":"IF($A685=\"\",\"\",IF(OR(VLOOKUP($A685,Economática!$A$3:$AI$823,22,FALSE)/100=0,VLOOKUP($A685,Economática!$A$3:$AI$823,22,FALSE)/100=\"-\"),1/0,VLOOKUP($A685,Economática!$A$3:$AI$823,22,FALSE)/100))","v":""},{"$f":"IF($A685=\"\",\"\",IF(OR(VLOOKUP($A685,Economática!$A$3:$AI$823,23,FALSE)=0,VLOOKUP($A685,Economática!$A$3:$AI$823,23,FALSE)=\"-\"),1/0,VLOOKUP($A685,Economática!$A$3:$AI$823,23,FALSE)))","v":""},{"$f":"IF($A685=\"\",\"\",IF(OR(VLOOKUP($A685,Economática!$A$3:$AI$823,24,FALSE)=0,VLOOKUP($A685,Economática!$A$3:$AI$823,24,FALSE)=\"-\"),1/0,VLOOKUP($A685,Economática!$A$3:$AI$823,24,FALSE)))","v":""},{"$f":"IF($A685=\"\",\"\",IF(OR(VLOOKUP($A685,Economática!$A$3:$AI$823,25,FALSE)=0,VLOOKUP($A685,Economática!$A$3:$AI$823,25,FALSE)=\"-\"),1/0,VLOOKUP($A685,Economática!$A$3:$AI$823,25,FALSE)))","v":""},{"$f":"IF($A685=\"\",\"\",IF(ISERROR((F685+VLOOKUP($A685,Economática!$A$3:$AI$823,26,FALSE))/Y685),(F685+VLOOKUP($A685,Economática!$A$3:$AI$823,26,FALSE))/Y685,(F685+VLOOKUP($A685,Economática!$A$3:$AI$823,26,FALSE))/Y685))","v":""},{"$f":"IF($A685=\"\",\"\",IF(OR(-VLOOKUP($A685,Economática!$A$3:$AI$823,27,FALSE)=0,-VLOOKUP($A685,Economática!$A$3:$AI$823,27,FALSE)=\"-\"),1/0,-VLOOKUP($A685,Economática!$A$3:$AI$823,27,FALSE)))","v":""},"",{"$f":"IF($A685=\"\",\"\",IF(OR(VLOOKUP($A685,Economática!$A$3:$AI$823,28,FALSE)=0,VLOOKUP($A685,Economática!$A$3:$AI$823,28,FALSE)=\"-\"),1/0,VLOOKUP($A685,Economática!$A$3:$AI$823,28,FALSE)))","v":""},{"$f":"IF($A685=\"\",\"\",IF(OR(VLOOKUP($A685,Economática!$A$3:$AI$823,29,FALSE)=0,VLOOKUP($A685,Economática!$A$3:$AI$823,29,FALSE)=\"-\"),1/0,VLOOKUP($A685,Economática!$A$3:$AI$823,29,FALSE)))","v":""},{"$f":"IF($A685=\"\",\"\",IF(OR(VLOOKUP($A685,Economática!$A$3:$AI$823,30,FALSE)/E685=0,VLOOKUP($A685,Economática!$A$3:$AI$823,30,FALSE)/E685=\"-\",VLOOKUP($A685,Economática!$A$3:$AI$823,30,FALSE)/E685<33.33%,VLOOKUP($A685,Economática!$A$3:$AI$823,30,FALSE)/E685>100%),1/0,VLOOKUP($A685,Economática!$A$3:$AI$823,30,FALSE)/E685))","v":""},"",{"$f":"IF($A685=\"\",\"\",IF(OR(VLOOKUP($A685,Economática!$A$3:$AI$823,25,FALSE)=0,VLOOKUP($A685,Economática!$A$3:$AI$823,25,FALSE)=\"-\"),1/0,VLOOKUP($A685,Economática!$A$3:$AI$823,25,FALSE)))","v":""},{"$f":"CONCATENATE(Economática!B663,\" \",Economática!C663)","v":" "}]
[{"$f":"IF(Economática!AG664=\"\",\"\",Economática!AG664)","v":""},{"$f":"IF($A686=\"\",\"\",VLOOKUP(VLOOKUP($A686,Economática!$A$3:$AI$823,6,FALSE),Correção!$B$16:$C$36,2,FALSE))","v":""},{"$f":"IF(Economática!B664=\"\",\"\",Economática!B664)","v":""},{"$f":"IF($A686=\"\",\"\",IF(OR(VLOOKUP($A686,Economática!$A$3:$AI$823,8,FALSE)=0,VLOOKUP($A686,Economática!$A$3:$AI$823,8,FALSE)=\"-\"),1/0,VLOOKUP($A686,Economática!$A$3:$AI$823,8,FALSE)))","v":""},{"$f":"IF(A686=\"\",\"\",IF(ISERROR(VLOOKUP(A686,Correção!$B$2:$G$13,9,FALSE)),VLOOKUP($A686,Economática!$A$3:$AI$823,9,FALSE),VLOOKUP(A686,Correção!$B$2:$G$13,9,FALSE)))","v":""},{"$f":"IF($A686=\"\",\"\",Economática!G664)","v":""},{"$f":"IF($A686=\"\",\"\",IF(OR(VLOOKUP($A686,Economática!$A$3:$AI$823,10,FALSE)=0,VLOOKUP($A686,Economática!$A$3:$AI$823,10,FALSE)=\"-\"),1/0,VLOOKUP($A686,Economática!$A$3:$AI$823,10,FALSE)))","v":""},{"$f":"IF($A686=\"\",\"\",IF(OR(VLOOKUP($A686,Economática!$A$3:$AI$823,11,FALSE)=0,VLOOKUP($A686,Economática!$A$3:$AI$823,11,FALSE)=\"-\"),1/0,VLOOKUP($A686,Economática!$A$3:$AI$823,11,FALSE)))","v":""},{"$f":"IF($A686=\"\",\"\",IF(OR(VLOOKUP($A686,Economática!$A$3:$AI$823,12,FALSE)=0,VLOOKUP($A686,Economática!$A$3:$AI$823,12,FALSE)=\"-\"),1/0,VLOOKUP($A686,Economática!$A$3:$AI$823,12,FALSE)))","v":""},{"$f":"IF($A686=\"\",\"\",IF(OR(VLOOKUP($A686,Economática!$A$3:$AI$823,13,FALSE)=0,VLOOKUP($A686,Economática!$A$3:$AI$823,13,FALSE)=\"-\"),1/0,VLOOKUP($A686,Economática!$A$3:$AI$823,13,FALSE)))","v":""},{"$f":"IF($A686=\"\",\"\",IF(OR(VLOOKUP($A686,Economática!$A$3:$AI$823,14,FALSE)=0,VLOOKUP($A686,Economática!$A$3:$AI$823,14,FALSE)=\"-\"),1/0,VLOOKUP($A686,Economática!$A$3:$AI$823,14,FALSE)))","v":""},{"$f":"IF($A686=\"\",\"\",IF(OR(VLOOKUP($A686,Economática!$A$3:$AI$823,15,FALSE)=0,VLOOKUP($A686,Economática!$A$3:$AI$823,15,FALSE)=\"-\"),1/0,VLOOKUP($A686,Economática!$A$3:$AI$823,15,FALSE)))","v":""},{"$f":"IF($A686=\"\",\"\",IF(OR(VLOOKUP($A686,Economática!$A$3:$AI$823,16,FALSE)=0,VLOOKUP($A686,Economática!$A$3:$AI$823,16,FALSE)=\"-\"),1/0,VLOOKUP($A686,Economática!$A$3:$AI$823,16,FALSE)))","v":""},{"$f":"IF($A686=\"\",\"\",IF(OR(VLOOKUP($A686,Economática!$A$3:$AI$823,17,FALSE)=0,VLOOKUP($A686,Economática!$A$3:$AI$823,17,FALSE)=\"-\"),1/0,VLOOKUP($A686,Economática!$A$3:$AI$823,17,FALSE)))","v":""},{"$f":"IF($A686=\"\",\"\",IF(OR(VLOOKUP($A686,Economática!$A$3:$AI$823,18,FALSE)=0,VLOOKUP($A686,Economática!$A$3:$AI$823,18,FALSE)=\"-\"),1/0,VLOOKUP($A686,Economática!$A$3:$AI$823,18,FALSE)))","v":""},{"$f":"IF($A686=\"\",\"\",IF(OR(VLOOKUP($A686,Economática!$A$3:$AI$823,19,FALSE)=0,VLOOKUP($A686,Economática!$A$3:$AI$823,19,FALSE)=\"-\"),1/0,VLOOKUP($A686,Economática!$A$3:$AI$823,19,FALSE)))","v":""},{"$f":"IF($A686=\"\",\"\",VLOOKUP($A686,Economática!$A$3:$AI$823,20,FALSE)/E686)","v":""},"","","",{"$f":"IF($A686=\"\",\"\",IF(OR(VLOOKUP($A686,Economática!$A$3:$AI$823,21,FALSE)/100=0,VLOOKUP($A686,Economática!$A$3:$AI$823,21,FALSE)/100=\"-\"),1/0,VLOOKUP($A686,Economática!$A$3:$AI$823,21,FALSE)/100))","v":""},{"$f":"IF($A686=\"\",\"\",IF(OR(VLOOKUP($A686,Economática!$A$3:$AI$823,22,FALSE)/100=0,VLOOKUP($A686,Economática!$A$3:$AI$823,22,FALSE)/100=\"-\"),1/0,VLOOKUP($A686,Economática!$A$3:$AI$823,22,FALSE)/100))","v":""},{"$f":"IF($A686=\"\",\"\",IF(OR(VLOOKUP($A686,Economática!$A$3:$AI$823,23,FALSE)=0,VLOOKUP($A686,Economática!$A$3:$AI$823,23,FALSE)=\"-\"),1/0,VLOOKUP($A686,Economática!$A$3:$AI$823,23,FALSE)))","v":""},{"$f":"IF($A686=\"\",\"\",IF(OR(VLOOKUP($A686,Economática!$A$3:$AI$823,24,FALSE)=0,VLOOKUP($A686,Economática!$A$3:$AI$823,24,FALSE)=\"-\"),1/0,VLOOKUP($A686,Economática!$A$3:$AI$823,24,FALSE)))","v":""},{"$f":"IF($A686=\"\",\"\",IF(OR(VLOOKUP($A686,Economática!$A$3:$AI$823,25,FALSE)=0,VLOOKUP($A686,Economática!$A$3:$AI$823,25,FALSE)=\"-\"),1/0,VLOOKUP($A686,Economática!$A$3:$AI$823,25,FALSE)))","v":""},{"$f":"IF($A686=\"\",\"\",IF(ISERROR((F686+VLOOKUP($A686,Economática!$A$3:$AI$823,26,FALSE))/Y686),(F686+VLOOKUP($A686,Economática!$A$3:$AI$823,26,FALSE))/Y686,(F686+VLOOKUP($A686,Economática!$A$3:$AI$823,26,FALSE))/Y686))","v":""},{"$f":"IF($A686=\"\",\"\",IF(OR(-VLOOKUP($A686,Economática!$A$3:$AI$823,27,FALSE)=0,-VLOOKUP($A686,Economática!$A$3:$AI$823,27,FALSE)=\"-\"),1/0,-VLOOKUP($A686,Economática!$A$3:$AI$823,27,FALSE)))","v":""},"",{"$f":"IF($A686=\"\",\"\",IF(OR(VLOOKUP($A686,Economática!$A$3:$AI$823,28,FALSE)=0,VLOOKUP($A686,Economática!$A$3:$AI$823,28,FALSE)=\"-\"),1/0,VLOOKUP($A686,Economática!$A$3:$AI$823,28,FALSE)))","v":""},{"$f":"IF($A686=\"\",\"\",IF(OR(VLOOKUP($A686,Economática!$A$3:$AI$823,29,FALSE)=0,VLOOKUP($A686,Economática!$A$3:$AI$823,29,FALSE)=\"-\"),1/0,VLOOKUP($A686,Economática!$A$3:$AI$823,29,FALSE)))","v":""},{"$f":"IF($A686=\"\",\"\",IF(OR(VLOOKUP($A686,Economática!$A$3:$AI$823,30,FALSE)/E686=0,VLOOKUP($A686,Economática!$A$3:$AI$823,30,FALSE)/E686=\"-\",VLOOKUP($A686,Economática!$A$3:$AI$823,30,FALSE)/E686<33.33%,VLOOKUP($A686,Economática!$A$3:$AI$823,30,FALSE)/E686>100%),1/0,VLOOKUP($A686,Economática!$A$3:$AI$823,30,FALSE)/E686))","v":""},"",{"$f":"IF($A686=\"\",\"\",IF(OR(VLOOKUP($A686,Economática!$A$3:$AI$823,25,FALSE)=0,VLOOKUP($A686,Economática!$A$3:$AI$823,25,FALSE)=\"-\"),1/0,VLOOKUP($A686,Economática!$A$3:$AI$823,25,FALSE)))","v":""},{"$f":"CONCATENATE(Economática!B664,\" \",Economática!C664)","v":" "}]
[{"$f":"IF(Economática!AG665=\"\",\"\",Economática!AG665)","v":""},{"$f":"IF($A687=\"\",\"\",VLOOKUP(VLOOKUP($A687,Economática!$A$3:$AI$823,6,FALSE),Correção!$B$16:$C$36,2,FALSE))","v":""},{"$f":"IF(Economática!B665=\"\",\"\",Economática!B665)","v":""},{"$f":"IF($A687=\"\",\"\",IF(OR(VLOOKUP($A687,Economática!$A$3:$AI$823,8,FALSE)=0,VLOOKUP($A687,Economática!$A$3:$AI$823,8,FALSE)=\"-\"),1/0,VLOOKUP($A687,Economática!$A$3:$AI$823,8,FALSE)))","v":""},{"$f":"IF(A687=\"\",\"\",IF(ISERROR(VLOOKUP(A687,Correção!$B$2:$G$13,9,FALSE)),VLOOKUP($A687,Economática!$A$3:$AI$823,9,FALSE),VLOOKUP(A687,Correção!$B$2:$G$13,9,FALSE)))","v":""},{"$f":"IF($A687=\"\",\"\",Economática!G665)","v":""},{"$f":"IF($A687=\"\",\"\",IF(OR(VLOOKUP($A687,Economática!$A$3:$AI$823,10,FALSE)=0,VLOOKUP($A687,Economática!$A$3:$AI$823,10,FALSE)=\"-\"),1/0,VLOOKUP($A687,Economática!$A$3:$AI$823,10,FALSE)))","v":""},{"$f":"IF($A687=\"\",\"\",IF(OR(VLOOKUP($A687,Economática!$A$3:$AI$823,11,FALSE)=0,VLOOKUP($A687,Economática!$A$3:$AI$823,11,FALSE)=\"-\"),1/0,VLOOKUP($A687,Economática!$A$3:$AI$823,11,FALSE)))","v":""},{"$f":"IF($A687=\"\",\"\",IF(OR(VLOOKUP($A687,Economática!$A$3:$AI$823,12,FALSE)=0,VLOOKUP($A687,Economática!$A$3:$AI$823,12,FALSE)=\"-\"),1/0,VLOOKUP($A687,Economática!$A$3:$AI$823,12,FALSE)))","v":""},{"$f":"IF($A687=\"\",\"\",IF(OR(VLOOKUP($A687,Economática!$A$3:$AI$823,13,FALSE)=0,VLOOKUP($A687,Economática!$A$3:$AI$823,13,FALSE)=\"-\"),1/0,VLOOKUP($A687,Economática!$A$3:$AI$823,13,FALSE)))","v":""},{"$f":"IF($A687=\"\",\"\",IF(OR(VLOOKUP($A687,Economática!$A$3:$AI$823,14,FALSE)=0,VLOOKUP($A687,Economática!$A$3:$AI$823,14,FALSE)=\"-\"),1/0,VLOOKUP($A687,Economática!$A$3:$AI$823,14,FALSE)))","v":""},{"$f":"IF($A687=\"\",\"\",IF(OR(VLOOKUP($A687,Economática!$A$3:$AI$823,15,FALSE)=0,VLOOKUP($A687,Economática!$A$3:$AI$823,15,FALSE)=\"-\"),1/0,VLOOKUP($A687,Economática!$A$3:$AI$823,15,FALSE)))","v":""},{"$f":"IF($A687=\"\",\"\",IF(OR(VLOOKUP($A687,Economática!$A$3:$AI$823,16,FALSE)=0,VLOOKUP($A687,Economática!$A$3:$AI$823,16,FALSE)=\"-\"),1/0,VLOOKUP($A687,Economática!$A$3:$AI$823,16,FALSE)))","v":""},{"$f":"IF($A687=\"\",\"\",IF(OR(VLOOKUP($A687,Economática!$A$3:$AI$823,17,FALSE)=0,VLOOKUP($A687,Economática!$A$3:$AI$823,17,FALSE)=\"-\"),1/0,VLOOKUP($A687,Economática!$A$3:$AI$823,17,FALSE)))","v":""},{"$f":"IF($A687=\"\",\"\",IF(OR(VLOOKUP($A687,Economática!$A$3:$AI$823,18,FALSE)=0,VLOOKUP($A687,Economática!$A$3:$AI$823,18,FALSE)=\"-\"),1/0,VLOOKUP($A687,Economática!$A$3:$AI$823,18,FALSE)))","v":""},{"$f":"IF($A687=\"\",\"\",IF(OR(VLOOKUP($A687,Economática!$A$3:$AI$823,19,FALSE)=0,VLOOKUP($A687,Economática!$A$3:$AI$823,19,FALSE)=\"-\"),1/0,VLOOKUP($A687,Economática!$A$3:$AI$823,19,FALSE)))","v":""},{"$f":"IF($A687=\"\",\"\",VLOOKUP($A687,Economática!$A$3:$AI$823,20,FALSE)/E687)","v":""},"","","",{"$f":"IF($A687=\"\",\"\",IF(OR(VLOOKUP($A687,Economática!$A$3:$AI$823,21,FALSE)/100=0,VLOOKUP($A687,Economática!$A$3:$AI$823,21,FALSE)/100=\"-\"),1/0,VLOOKUP($A687,Economática!$A$3:$AI$823,21,FALSE)/100))","v":""},{"$f":"IF($A687=\"\",\"\",IF(OR(VLOOKUP($A687,Economática!$A$3:$AI$823,22,FALSE)/100=0,VLOOKUP($A687,Economática!$A$3:$AI$823,22,FALSE)/100=\"-\"),1/0,VLOOKUP($A687,Economática!$A$3:$AI$823,22,FALSE)/100))","v":""},{"$f":"IF($A687=\"\",\"\",IF(OR(VLOOKUP($A687,Economática!$A$3:$AI$823,23,FALSE)=0,VLOOKUP($A687,Economática!$A$3:$AI$823,23,FALSE)=\"-\"),1/0,VLOOKUP($A687,Economática!$A$3:$AI$823,23,FALSE)))","v":""},{"$f":"IF($A687=\"\",\"\",IF(OR(VLOOKUP($A687,Economática!$A$3:$AI$823,24,FALSE)=0,VLOOKUP($A687,Economática!$A$3:$AI$823,24,FALSE)=\"-\"),1/0,VLOOKUP($A687,Economática!$A$3:$AI$823,24,FALSE)))","v":""},{"$f":"IF($A687=\"\",\"\",IF(OR(VLOOKUP($A687,Economática!$A$3:$AI$823,25,FALSE)=0,VLOOKUP($A687,Economática!$A$3:$AI$823,25,FALSE)=\"-\"),1/0,VLOOKUP($A687,Economática!$A$3:$AI$823,25,FALSE)))","v":""},{"$f":"IF($A687=\"\",\"\",IF(ISERROR((F687+VLOOKUP($A687,Economática!$A$3:$AI$823,26,FALSE))/Y687),(F687+VLOOKUP($A687,Economática!$A$3:$AI$823,26,FALSE))/Y687,(F687+VLOOKUP($A687,Economática!$A$3:$AI$823,26,FALSE))/Y687))","v":""},{"$f":"IF($A687=\"\",\"\",IF(OR(-VLOOKUP($A687,Economática!$A$3:$AI$823,27,FALSE)=0,-VLOOKUP($A687,Economática!$A$3:$AI$823,27,FALSE)=\"-\"),1/0,-VLOOKUP($A687,Economática!$A$3:$AI$823,27,FALSE)))","v":""},"",{"$f":"IF($A687=\"\",\"\",IF(OR(VLOOKUP($A687,Economática!$A$3:$AI$823,28,FALSE)=0,VLOOKUP($A687,Economática!$A$3:$AI$823,28,FALSE)=\"-\"),1/0,VLOOKUP($A687,Economática!$A$3:$AI$823,28,FALSE)))","v":""},{"$f":"IF($A687=\"\",\"\",IF(OR(VLOOKUP($A687,Economática!$A$3:$AI$823,29,FALSE)=0,VLOOKUP($A687,Economática!$A$3:$AI$823,29,FALSE)=\"-\"),1/0,VLOOKUP($A687,Economática!$A$3:$AI$823,29,FALSE)))","v":""},{"$f":"IF($A687=\"\",\"\",IF(OR(VLOOKUP($A687,Economática!$A$3:$AI$823,30,FALSE)/E687=0,VLOOKUP($A687,Economática!$A$3:$AI$823,30,FALSE)/E687=\"-\",VLOOKUP($A687,Economática!$A$3:$AI$823,30,FALSE)/E687<33.33%,VLOOKUP($A687,Economática!$A$3:$AI$823,30,FALSE)/E687>100%),1/0,VLOOKUP($A687,Economática!$A$3:$AI$823,30,FALSE)/E687))","v":""},"",{"$f":"IF($A687=\"\",\"\",IF(OR(VLOOKUP($A687,Economática!$A$3:$AI$823,25,FALSE)=0,VLOOKUP($A687,Economática!$A$3:$AI$823,25,FALSE)=\"-\"),1/0,VLOOKUP($A687,Economática!$A$3:$AI$823,25,FALSE)))","v":""},{"$f":"CONCATENATE(Economática!B665,\" \",Economática!C665)","v":" "}]
[{"$f":"IF(Economática!AG666=\"\",\"\",Economática!AG666)","v":""},{"$f":"IF($A688=\"\",\"\",VLOOKUP(VLOOKUP($A688,Economática!$A$3:$AI$823,6,FALSE),Correção!$B$16:$C$36,2,FALSE))","v":""},{"$f":"IF(Economática!B666=\"\",\"\",Economática!B666)","v":""},{"$f":"IF($A688=\"\",\"\",IF(OR(VLOOKUP($A688,Economática!$A$3:$AI$823,8,FALSE)=0,VLOOKUP($A688,Economática!$A$3:$AI$823,8,FALSE)=\"-\"),1/0,VLOOKUP($A688,Economática!$A$3:$AI$823,8,FALSE)))","v":""},{"$f":"IF(A688=\"\",\"\",IF(ISERROR(VLOOKUP(A688,Correção!$B$2:$G$13,9,FALSE)),VLOOKUP($A688,Economática!$A$3:$AI$823,9,FALSE),VLOOKUP(A688,Correção!$B$2:$G$13,9,FALSE)))","v":""},{"$f":"IF($A688=\"\",\"\",Economática!G666)","v":""},{"$f":"IF($A688=\"\",\"\",IF(OR(VLOOKUP($A688,Economática!$A$3:$AI$823,10,FALSE)=0,VLOOKUP($A688,Economática!$A$3:$AI$823,10,FALSE)=\"-\"),1/0,VLOOKUP($A688,Economática!$A$3:$AI$823,10,FALSE)))","v":""},{"$f":"IF($A688=\"\",\"\",IF(OR(VLOOKUP($A688,Economática!$A$3:$AI$823,11,FALSE)=0,VLOOKUP($A688,Economática!$A$3:$AI$823,11,FALSE)=\"-\"),1/0,VLOOKUP($A688,Economática!$A$3:$AI$823,11,FALSE)))","v":""},{"$f":"IF($A688=\"\",\"\",IF(OR(VLOOKUP($A688,Economática!$A$3:$AI$823,12,FALSE)=0,VLOOKUP($A688,Economática!$A$3:$AI$823,12,FALSE)=\"-\"),1/0,VLOOKUP($A688,Economática!$A$3:$AI$823,12,FALSE)))","v":""},{"$f":"IF($A688=\"\",\"\",IF(OR(VLOOKUP($A688,Economática!$A$3:$AI$823,13,FALSE)=0,VLOOKUP($A688,Economática!$A$3:$AI$823,13,FALSE)=\"-\"),1/0,VLOOKUP($A688,Economática!$A$3:$AI$823,13,FALSE)))","v":""},{"$f":"IF($A688=\"\",\"\",IF(OR(VLOOKUP($A688,Economática!$A$3:$AI$823,14,FALSE)=0,VLOOKUP($A688,Economática!$A$3:$AI$823,14,FALSE)=\"-\"),1/0,VLOOKUP($A688,Economática!$A$3:$AI$823,14,FALSE)))","v":""},{"$f":"IF($A688=\"\",\"\",IF(OR(VLOOKUP($A688,Economática!$A$3:$AI$823,15,FALSE)=0,VLOOKUP($A688,Economática!$A$3:$AI$823,15,FALSE)=\"-\"),1/0,VLOOKUP($A688,Economática!$A$3:$AI$823,15,FALSE)))","v":""},{"$f":"IF($A688=\"\",\"\",IF(OR(VLOOKUP($A688,Economática!$A$3:$AI$823,16,FALSE)=0,VLOOKUP($A688,Economática!$A$3:$AI$823,16,FALSE)=\"-\"),1/0,VLOOKUP($A688,Economática!$A$3:$AI$823,16,FALSE)))","v":""},{"$f":"IF($A688=\"\",\"\",IF(OR(VLOOKUP($A688,Economática!$A$3:$AI$823,17,FALSE)=0,VLOOKUP($A688,Economática!$A$3:$AI$823,17,FALSE)=\"-\"),1/0,VLOOKUP($A688,Economática!$A$3:$AI$823,17,FALSE)))","v":""},{"$f":"IF($A688=\"\",\"\",IF(OR(VLOOKUP($A688,Economática!$A$3:$AI$823,18,FALSE)=0,VLOOKUP($A688,Economática!$A$3:$AI$823,18,FALSE)=\"-\"),1/0,VLOOKUP($A688,Economática!$A$3:$AI$823,18,FALSE)))","v":""},{"$f":"IF($A688=\"\",\"\",IF(OR(VLOOKUP($A688,Economática!$A$3:$AI$823,19,FALSE)=0,VLOOKUP($A688,Economática!$A$3:$AI$823,19,FALSE)=\"-\"),1/0,VLOOKUP($A688,Economática!$A$3:$AI$823,19,FALSE)))","v":""},{"$f":"IF($A688=\"\",\"\",VLOOKUP($A688,Economática!$A$3:$AI$823,20,FALSE)/E688)","v":""},"","","",{"$f":"IF($A688=\"\",\"\",IF(OR(VLOOKUP($A688,Economática!$A$3:$AI$823,21,FALSE)/100=0,VLOOKUP($A688,Economática!$A$3:$AI$823,21,FALSE)/100=\"-\"),1/0,VLOOKUP($A688,Economática!$A$3:$AI$823,21,FALSE)/100))","v":""},{"$f":"IF($A688=\"\",\"\",IF(OR(VLOOKUP($A688,Economática!$A$3:$AI$823,22,FALSE)/100=0,VLOOKUP($A688,Economática!$A$3:$AI$823,22,FALSE)/100=\"-\"),1/0,VLOOKUP($A688,Economática!$A$3:$AI$823,22,FALSE)/100))","v":""},{"$f":"IF($A688=\"\",\"\",IF(OR(VLOOKUP($A688,Economática!$A$3:$AI$823,23,FALSE)=0,VLOOKUP($A688,Economática!$A$3:$AI$823,23,FALSE)=\"-\"),1/0,VLOOKUP($A688,Economática!$A$3:$AI$823,23,FALSE)))","v":""},{"$f":"IF($A688=\"\",\"\",IF(OR(VLOOKUP($A688,Economática!$A$3:$AI$823,24,FALSE)=0,VLOOKUP($A688,Economática!$A$3:$AI$823,24,FALSE)=\"-\"),1/0,VLOOKUP($A688,Economática!$A$3:$AI$823,24,FALSE)))","v":""},{"$f":"IF($A688=\"\",\"\",IF(OR(VLOOKUP($A688,Economática!$A$3:$AI$823,25,FALSE)=0,VLOOKUP($A688,Economática!$A$3:$AI$823,25,FALSE)=\"-\"),1/0,VLOOKUP($A688,Economática!$A$3:$AI$823,25,FALSE)))","v":""},{"$f":"IF($A688=\"\",\"\",IF(ISERROR((F688+VLOOKUP($A688,Economática!$A$3:$AI$823,26,FALSE))/Y688),(F688+VLOOKUP($A688,Economática!$A$3:$AI$823,26,FALSE))/Y688,(F688+VLOOKUP($A688,Economática!$A$3:$AI$823,26,FALSE))/Y688))","v":""},{"$f":"IF($A688=\"\",\"\",IF(OR(-VLOOKUP($A688,Economática!$A$3:$AI$823,27,FALSE)=0,-VLOOKUP($A688,Economática!$A$3:$AI$823,27,FALSE)=\"-\"),1/0,-VLOOKUP($A688,Economática!$A$3:$AI$823,27,FALSE)))","v":""},"",{"$f":"IF($A688=\"\",\"\",IF(OR(VLOOKUP($A688,Economática!$A$3:$AI$823,28,FALSE)=0,VLOOKUP($A688,Economática!$A$3:$AI$823,28,FALSE)=\"-\"),1/0,VLOOKUP($A688,Economática!$A$3:$AI$823,28,FALSE)))","v":""},{"$f":"IF($A688=\"\",\"\",IF(OR(VLOOKUP($A688,Economática!$A$3:$AI$823,29,FALSE)=0,VLOOKUP($A688,Economática!$A$3:$AI$823,29,FALSE)=\"-\"),1/0,VLOOKUP($A688,Economática!$A$3:$AI$823,29,FALSE)))","v":""},{"$f":"IF($A688=\"\",\"\",IF(OR(VLOOKUP($A688,Economática!$A$3:$AI$823,30,FALSE)/E688=0,VLOOKUP($A688,Economática!$A$3:$AI$823,30,FALSE)/E688=\"-\",VLOOKUP($A688,Economática!$A$3:$AI$823,30,FALSE)/E688<33.33%,VLOOKUP($A688,Economática!$A$3:$AI$823,30,FALSE)/E688>100%),1/0,VLOOKUP($A688,Economática!$A$3:$AI$823,30,FALSE)/E688))","v":""},"",{"$f":"IF($A688=\"\",\"\",IF(OR(VLOOKUP($A688,Economática!$A$3:$AI$823,25,FALSE)=0,VLOOKUP($A688,Economática!$A$3:$AI$823,25,FALSE)=\"-\"),1/0,VLOOKUP($A688,Economática!$A$3:$AI$823,25,FALSE)))","v":""},{"$f":"CONCATENATE(Economática!B666,\" \",Economática!C666)","v":" "}]
[{"$f":"IF(Economática!AG667=\"\",\"\",Economática!AG667)","v":""},{"$f":"IF($A689=\"\",\"\",VLOOKUP(VLOOKUP($A689,Economática!$A$3:$AI$823,6,FALSE),Correção!$B$16:$C$36,2,FALSE))","v":""},{"$f":"IF(Economática!B667=\"\",\"\",Economática!B667)","v":""},{"$f":"IF($A689=\"\",\"\",IF(OR(VLOOKUP($A689,Economática!$A$3:$AI$823,8,FALSE)=0,VLOOKUP($A689,Economática!$A$3:$AI$823,8,FALSE)=\"-\"),1/0,VLOOKUP($A689,Economática!$A$3:$AI$823,8,FALSE)))","v":""},{"$f":"IF(A689=\"\",\"\",IF(ISERROR(VLOOKUP(A689,Correção!$B$2:$G$13,9,FALSE)),VLOOKUP($A689,Economática!$A$3:$AI$823,9,FALSE),VLOOKUP(A689,Correção!$B$2:$G$13,9,FALSE)))","v":""},{"$f":"IF($A689=\"\",\"\",Economática!G667)","v":""},{"$f":"IF($A689=\"\",\"\",IF(OR(VLOOKUP($A689,Economática!$A$3:$AI$823,10,FALSE)=0,VLOOKUP($A689,Economática!$A$3:$AI$823,10,FALSE)=\"-\"),1/0,VLOOKUP($A689,Economática!$A$3:$AI$823,10,FALSE)))","v":""},{"$f":"IF($A689=\"\",\"\",IF(OR(VLOOKUP($A689,Economática!$A$3:$AI$823,11,FALSE)=0,VLOOKUP($A689,Economática!$A$3:$AI$823,11,FALSE)=\"-\"),1/0,VLOOKUP($A689,Economática!$A$3:$AI$823,11,FALSE)))","v":""},{"$f":"IF($A689=\"\",\"\",IF(OR(VLOOKUP($A689,Economática!$A$3:$AI$823,12,FALSE)=0,VLOOKUP($A689,Economática!$A$3:$AI$823,12,FALSE)=\"-\"),1/0,VLOOKUP($A689,Economática!$A$3:$AI$823,12,FALSE)))","v":""},{"$f":"IF($A689=\"\",\"\",IF(OR(VLOOKUP($A689,Economática!$A$3:$AI$823,13,FALSE)=0,VLOOKUP($A689,Economática!$A$3:$AI$823,13,FALSE)=\"-\"),1/0,VLOOKUP($A689,Economática!$A$3:$AI$823,13,FALSE)))","v":""},{"$f":"IF($A689=\"\",\"\",IF(OR(VLOOKUP($A689,Economática!$A$3:$AI$823,14,FALSE)=0,VLOOKUP($A689,Economática!$A$3:$AI$823,14,FALSE)=\"-\"),1/0,VLOOKUP($A689,Economática!$A$3:$AI$823,14,FALSE)))","v":""},{"$f":"IF($A689=\"\",\"\",IF(OR(VLOOKUP($A689,Economática!$A$3:$AI$823,15,FALSE)=0,VLOOKUP($A689,Economática!$A$3:$AI$823,15,FALSE)=\"-\"),1/0,VLOOKUP($A689,Economática!$A$3:$AI$823,15,FALSE)))","v":""},{"$f":"IF($A689=\"\",\"\",IF(OR(VLOOKUP($A689,Economática!$A$3:$AI$823,16,FALSE)=0,VLOOKUP($A689,Economática!$A$3:$AI$823,16,FALSE)=\"-\"),1/0,VLOOKUP($A689,Economática!$A$3:$AI$823,16,FALSE)))","v":""},{"$f":"IF($A689=\"\",\"\",IF(OR(VLOOKUP($A689,Economática!$A$3:$AI$823,17,FALSE)=0,VLOOKUP($A689,Economática!$A$3:$AI$823,17,FALSE)=\"-\"),1/0,VLOOKUP($A689,Economática!$A$3:$AI$823,17,FALSE)))","v":""},{"$f":"IF($A689=\"\",\"\",IF(OR(VLOOKUP($A689,Economática!$A$3:$AI$823,18,FALSE)=0,VLOOKUP($A689,Economática!$A$3:$AI$823,18,FALSE)=\"-\"),1/0,VLOOKUP($A689,Economática!$A$3:$AI$823,18,FALSE)))","v":""},{"$f":"IF($A689=\"\",\"\",IF(OR(VLOOKUP($A689,Economática!$A$3:$AI$823,19,FALSE)=0,VLOOKUP($A689,Economática!$A$3:$AI$823,19,FALSE)=\"-\"),1/0,VLOOKUP($A689,Economática!$A$3:$AI$823,19,FALSE)))","v":""},{"$f":"IF($A689=\"\",\"\",VLOOKUP($A689,Economática!$A$3:$AI$823,20,FALSE)/E689)","v":""},"","","",{"$f":"IF($A689=\"\",\"\",IF(OR(VLOOKUP($A689,Economática!$A$3:$AI$823,21,FALSE)/100=0,VLOOKUP($A689,Economática!$A$3:$AI$823,21,FALSE)/100=\"-\"),1/0,VLOOKUP($A689,Economática!$A$3:$AI$823,21,FALSE)/100))","v":""},{"$f":"IF($A689=\"\",\"\",IF(OR(VLOOKUP($A689,Economática!$A$3:$AI$823,22,FALSE)/100=0,VLOOKUP($A689,Economática!$A$3:$AI$823,22,FALSE)/100=\"-\"),1/0,VLOOKUP($A689,Economática!$A$3:$AI$823,22,FALSE)/100))","v":""},{"$f":"IF($A689=\"\",\"\",IF(OR(VLOOKUP($A689,Economática!$A$3:$AI$823,23,FALSE)=0,VLOOKUP($A689,Economática!$A$3:$AI$823,23,FALSE)=\"-\"),1/0,VLOOKUP($A689,Economática!$A$3:$AI$823,23,FALSE)))","v":""},{"$f":"IF($A689=\"\",\"\",IF(OR(VLOOKUP($A689,Economática!$A$3:$AI$823,24,FALSE)=0,VLOOKUP($A689,Economática!$A$3:$AI$823,24,FALSE)=\"-\"),1/0,VLOOKUP($A689,Economática!$A$3:$AI$823,24,FALSE)))","v":""},{"$f":"IF($A689=\"\",\"\",IF(OR(VLOOKUP($A689,Economática!$A$3:$AI$823,25,FALSE)=0,VLOOKUP($A689,Economática!$A$3:$AI$823,25,FALSE)=\"-\"),1/0,VLOOKUP($A689,Economática!$A$3:$AI$823,25,FALSE)))","v":""},{"$f":"IF($A689=\"\",\"\",IF(ISERROR((F689+VLOOKUP($A689,Economática!$A$3:$AI$823,26,FALSE))/Y689),(F689+VLOOKUP($A689,Economática!$A$3:$AI$823,26,FALSE))/Y689,(F689+VLOOKUP($A689,Economática!$A$3:$AI$823,26,FALSE))/Y689))","v":""},{"$f":"IF($A689=\"\",\"\",IF(OR(-VLOOKUP($A689,Economática!$A$3:$AI$823,27,FALSE)=0,-VLOOKUP($A689,Economática!$A$3:$AI$823,27,FALSE)=\"-\"),1/0,-VLOOKUP($A689,Economática!$A$3:$AI$823,27,FALSE)))","v":""},"",{"$f":"IF($A689=\"\",\"\",IF(OR(VLOOKUP($A689,Economática!$A$3:$AI$823,28,FALSE)=0,VLOOKUP($A689,Economática!$A$3:$AI$823,28,FALSE)=\"-\"),1/0,VLOOKUP($A689,Economática!$A$3:$AI$823,28,FALSE)))","v":""},{"$f":"IF($A689=\"\",\"\",IF(OR(VLOOKUP($A689,Economática!$A$3:$AI$823,29,FALSE)=0,VLOOKUP($A689,Economática!$A$3:$AI$823,29,FALSE)=\"-\"),1/0,VLOOKUP($A689,Economática!$A$3:$AI$823,29,FALSE)))","v":""},{"$f":"IF($A689=\"\",\"\",IF(OR(VLOOKUP($A689,Economática!$A$3:$AI$823,30,FALSE)/E689=0,VLOOKUP($A689,Economática!$A$3:$AI$823,30,FALSE)/E689=\"-\",VLOOKUP($A689,Economática!$A$3:$AI$823,30,FALSE)/E689<33.33%,VLOOKUP($A689,Economática!$A$3:$AI$823,30,FALSE)/E689>100%),1/0,VLOOKUP($A689,Economática!$A$3:$AI$823,30,FALSE)/E689))","v":""},"",{"$f":"IF($A689=\"\",\"\",IF(OR(VLOOKUP($A689,Economática!$A$3:$AI$823,25,FALSE)=0,VLOOKUP($A689,Economática!$A$3:$AI$823,25,FALSE)=\"-\"),1/0,VLOOKUP($A689,Economática!$A$3:$AI$823,25,FALSE)))","v":""},{"$f":"CONCATENATE(Economática!B667,\" \",Economática!C667)","v":" "}]
[{"$f":"IF(Economática!AG668=\"\",\"\",Economática!AG668)","v":""},{"$f":"IF($A690=\"\",\"\",VLOOKUP(VLOOKUP($A690,Economática!$A$3:$AI$823,6,FALSE),Correção!$B$16:$C$36,2,FALSE))","v":""},{"$f":"IF(Economática!B668=\"\",\"\",Economática!B668)","v":""},{"$f":"IF($A690=\"\",\"\",IF(OR(VLOOKUP($A690,Economática!$A$3:$AI$823,8,FALSE)=0,VLOOKUP($A690,Economática!$A$3:$AI$823,8,FALSE)=\"-\"),1/0,VLOOKUP($A690,Economática!$A$3:$AI$823,8,FALSE)))","v":""},{"$f":"IF(A690=\"\",\"\",IF(ISERROR(VLOOKUP(A690,Correção!$B$2:$G$13,9,FALSE)),VLOOKUP($A690,Economática!$A$3:$AI$823,9,FALSE),VLOOKUP(A690,Correção!$B$2:$G$13,9,FALSE)))","v":""},{"$f":"IF($A690=\"\",\"\",Economática!G668)","v":""},{"$f":"IF($A690=\"\",\"\",IF(OR(VLOOKUP($A690,Economática!$A$3:$AI$823,10,FALSE)=0,VLOOKUP($A690,Economática!$A$3:$AI$823,10,FALSE)=\"-\"),1/0,VLOOKUP($A690,Economática!$A$3:$AI$823,10,FALSE)))","v":""},{"$f":"IF($A690=\"\",\"\",IF(OR(VLOOKUP($A690,Economática!$A$3:$AI$823,11,FALSE)=0,VLOOKUP($A690,Economática!$A$3:$AI$823,11,FALSE)=\"-\"),1/0,VLOOKUP($A690,Economática!$A$3:$AI$823,11,FALSE)))","v":""},{"$f":"IF($A690=\"\",\"\",IF(OR(VLOOKUP($A690,Economática!$A$3:$AI$823,12,FALSE)=0,VLOOKUP($A690,Economática!$A$3:$AI$823,12,FALSE)=\"-\"),1/0,VLOOKUP($A690,Economática!$A$3:$AI$823,12,FALSE)))","v":""},{"$f":"IF($A690=\"\",\"\",IF(OR(VLOOKUP($A690,Economática!$A$3:$AI$823,13,FALSE)=0,VLOOKUP($A690,Economática!$A$3:$AI$823,13,FALSE)=\"-\"),1/0,VLOOKUP($A690,Economática!$A$3:$AI$823,13,FALSE)))","v":""},{"$f":"IF($A690=\"\",\"\",IF(OR(VLOOKUP($A690,Economática!$A$3:$AI$823,14,FALSE)=0,VLOOKUP($A690,Economática!$A$3:$AI$823,14,FALSE)=\"-\"),1/0,VLOOKUP($A690,Economática!$A$3:$AI$823,14,FALSE)))","v":""},{"$f":"IF($A690=\"\",\"\",IF(OR(VLOOKUP($A690,Economática!$A$3:$AI$823,15,FALSE)=0,VLOOKUP($A690,Economática!$A$3:$AI$823,15,FALSE)=\"-\"),1/0,VLOOKUP($A690,Economática!$A$3:$AI$823,15,FALSE)))","v":""},{"$f":"IF($A690=\"\",\"\",IF(OR(VLOOKUP($A690,Economática!$A$3:$AI$823,16,FALSE)=0,VLOOKUP($A690,Economática!$A$3:$AI$823,16,FALSE)=\"-\"),1/0,VLOOKUP($A690,Economática!$A$3:$AI$823,16,FALSE)))","v":""},{"$f":"IF($A690=\"\",\"\",IF(OR(VLOOKUP($A690,Economática!$A$3:$AI$823,17,FALSE)=0,VLOOKUP($A690,Economática!$A$3:$AI$823,17,FALSE)=\"-\"),1/0,VLOOKUP($A690,Economática!$A$3:$AI$823,17,FALSE)))","v":""},{"$f":"IF($A690=\"\",\"\",IF(OR(VLOOKUP($A690,Economática!$A$3:$AI$823,18,FALSE)=0,VLOOKUP($A690,Economática!$A$3:$AI$823,18,FALSE)=\"-\"),1/0,VLOOKUP($A690,Economática!$A$3:$AI$823,18,FALSE)))","v":""},{"$f":"IF($A690=\"\",\"\",IF(OR(VLOOKUP($A690,Economática!$A$3:$AI$823,19,FALSE)=0,VLOOKUP($A690,Economática!$A$3:$AI$823,19,FALSE)=\"-\"),1/0,VLOOKUP($A690,Economática!$A$3:$AI$823,19,FALSE)))","v":""},{"$f":"IF($A690=\"\",\"\",VLOOKUP($A690,Economática!$A$3:$AI$823,20,FALSE)/E690)","v":""},"","","",{"$f":"IF($A690=\"\",\"\",IF(OR(VLOOKUP($A690,Economática!$A$3:$AI$823,21,FALSE)/100=0,VLOOKUP($A690,Economática!$A$3:$AI$823,21,FALSE)/100=\"-\"),1/0,VLOOKUP($A690,Economática!$A$3:$AI$823,21,FALSE)/100))","v":""},{"$f":"IF($A690=\"\",\"\",IF(OR(VLOOKUP($A690,Economática!$A$3:$AI$823,22,FALSE)/100=0,VLOOKUP($A690,Economática!$A$3:$AI$823,22,FALSE)/100=\"-\"),1/0,VLOOKUP($A690,Economática!$A$3:$AI$823,22,FALSE)/100))","v":""},{"$f":"IF($A690=\"\",\"\",IF(OR(VLOOKUP($A690,Economática!$A$3:$AI$823,23,FALSE)=0,VLOOKUP($A690,Economática!$A$3:$AI$823,23,FALSE)=\"-\"),1/0,VLOOKUP($A690,Economática!$A$3:$AI$823,23,FALSE)))","v":""},{"$f":"IF($A690=\"\",\"\",IF(OR(VLOOKUP($A690,Economática!$A$3:$AI$823,24,FALSE)=0,VLOOKUP($A690,Economática!$A$3:$AI$823,24,FALSE)=\"-\"),1/0,VLOOKUP($A690,Economática!$A$3:$AI$823,24,FALSE)))","v":""},{"$f":"IF($A690=\"\",\"\",IF(OR(VLOOKUP($A690,Economática!$A$3:$AI$823,25,FALSE)=0,VLOOKUP($A690,Economática!$A$3:$AI$823,25,FALSE)=\"-\"),1/0,VLOOKUP($A690,Economática!$A$3:$AI$823,25,FALSE)))","v":""},{"$f":"IF($A690=\"\",\"\",IF(ISERROR((F690+VLOOKUP($A690,Economática!$A$3:$AI$823,26,FALSE))/Y690),(F690+VLOOKUP($A690,Economática!$A$3:$AI$823,26,FALSE))/Y690,(F690+VLOOKUP($A690,Economática!$A$3:$AI$823,26,FALSE))/Y690))","v":""},{"$f":"IF($A690=\"\",\"\",IF(OR(-VLOOKUP($A690,Economática!$A$3:$AI$823,27,FALSE)=0,-VLOOKUP($A690,Economática!$A$3:$AI$823,27,FALSE)=\"-\"),1/0,-VLOOKUP($A690,Economática!$A$3:$AI$823,27,FALSE)))","v":""},"",{"$f":"IF($A690=\"\",\"\",IF(OR(VLOOKUP($A690,Economática!$A$3:$AI$823,28,FALSE)=0,VLOOKUP($A690,Economática!$A$3:$AI$823,28,FALSE)=\"-\"),1/0,VLOOKUP($A690,Economática!$A$3:$AI$823,28,FALSE)))","v":""},{"$f":"IF($A690=\"\",\"\",IF(OR(VLOOKUP($A690,Economática!$A$3:$AI$823,29,FALSE)=0,VLOOKUP($A690,Economática!$A$3:$AI$823,29,FALSE)=\"-\"),1/0,VLOOKUP($A690,Economática!$A$3:$AI$823,29,FALSE)))","v":""},{"$f":"IF($A690=\"\",\"\",IF(OR(VLOOKUP($A690,Economática!$A$3:$AI$823,30,FALSE)/E690=0,VLOOKUP($A690,Economática!$A$3:$AI$823,30,FALSE)/E690=\"-\",VLOOKUP($A690,Economática!$A$3:$AI$823,30,FALSE)/E690<33.33%,VLOOKUP($A690,Economática!$A$3:$AI$823,30,FALSE)/E690>100%),1/0,VLOOKUP($A690,Economática!$A$3:$AI$823,30,FALSE)/E690))","v":""},"",{"$f":"IF($A690=\"\",\"\",IF(OR(VLOOKUP($A690,Economática!$A$3:$AI$823,25,FALSE)=0,VLOOKUP($A690,Economática!$A$3:$AI$823,25,FALSE)=\"-\"),1/0,VLOOKUP($A690,Economática!$A$3:$AI$823,25,FALSE)))","v":""},{"$f":"CONCATENATE(Economática!B668,\" \",Economática!C668)","v":" "}]
[{"$f":"IF(Economática!AG669=\"\",\"\",Economática!AG669)","v":""},{"$f":"IF($A691=\"\",\"\",VLOOKUP(VLOOKUP($A691,Economática!$A$3:$AI$823,6,FALSE),Correção!$B$16:$C$36,2,FALSE))","v":""},{"$f":"IF(Economática!B669=\"\",\"\",Economática!B669)","v":""},{"$f":"IF($A691=\"\",\"\",IF(OR(VLOOKUP($A691,Economática!$A$3:$AI$823,8,FALSE)=0,VLOOKUP($A691,Economática!$A$3:$AI$823,8,FALSE)=\"-\"),1/0,VLOOKUP($A691,Economática!$A$3:$AI$823,8,FALSE)))","v":""},{"$f":"IF(A691=\"\",\"\",IF(ISERROR(VLOOKUP(A691,Correção!$B$2:$G$13,9,FALSE)),VLOOKUP($A691,Economática!$A$3:$AI$823,9,FALSE),VLOOKUP(A691,Correção!$B$2:$G$13,9,FALSE)))","v":""},{"$f":"IF($A691=\"\",\"\",Economática!G669)","v":""},{"$f":"IF($A691=\"\",\"\",IF(OR(VLOOKUP($A691,Economática!$A$3:$AI$823,10,FALSE)=0,VLOOKUP($A691,Economática!$A$3:$AI$823,10,FALSE)=\"-\"),1/0,VLOOKUP($A691,Economática!$A$3:$AI$823,10,FALSE)))","v":""},{"$f":"IF($A691=\"\",\"\",IF(OR(VLOOKUP($A691,Economática!$A$3:$AI$823,11,FALSE)=0,VLOOKUP($A691,Economática!$A$3:$AI$823,11,FALSE)=\"-\"),1/0,VLOOKUP($A691,Economática!$A$3:$AI$823,11,FALSE)))","v":""},{"$f":"IF($A691=\"\",\"\",IF(OR(VLOOKUP($A691,Economática!$A$3:$AI$823,12,FALSE)=0,VLOOKUP($A691,Economática!$A$3:$AI$823,12,FALSE)=\"-\"),1/0,VLOOKUP($A691,Economática!$A$3:$AI$823,12,FALSE)))","v":""},{"$f":"IF($A691=\"\",\"\",IF(OR(VLOOKUP($A691,Economática!$A$3:$AI$823,13,FALSE)=0,VLOOKUP($A691,Economática!$A$3:$AI$823,13,FALSE)=\"-\"),1/0,VLOOKUP($A691,Economática!$A$3:$AI$823,13,FALSE)))","v":""},{"$f":"IF($A691=\"\",\"\",IF(OR(VLOOKUP($A691,Economática!$A$3:$AI$823,14,FALSE)=0,VLOOKUP($A691,Economática!$A$3:$AI$823,14,FALSE)=\"-\"),1/0,VLOOKUP($A691,Economática!$A$3:$AI$823,14,FALSE)))","v":""},{"$f":"IF($A691=\"\",\"\",IF(OR(VLOOKUP($A691,Economática!$A$3:$AI$823,15,FALSE)=0,VLOOKUP($A691,Economática!$A$3:$AI$823,15,FALSE)=\"-\"),1/0,VLOOKUP($A691,Economática!$A$3:$AI$823,15,FALSE)))","v":""},{"$f":"IF($A691=\"\",\"\",IF(OR(VLOOKUP($A691,Economática!$A$3:$AI$823,16,FALSE)=0,VLOOKUP($A691,Economática!$A$3:$AI$823,16,FALSE)=\"-\"),1/0,VLOOKUP($A691,Economática!$A$3:$AI$823,16,FALSE)))","v":""},{"$f":"IF($A691=\"\",\"\",IF(OR(VLOOKUP($A691,Economática!$A$3:$AI$823,17,FALSE)=0,VLOOKUP($A691,Economática!$A$3:$AI$823,17,FALSE)=\"-\"),1/0,VLOOKUP($A691,Economática!$A$3:$AI$823,17,FALSE)))","v":""},{"$f":"IF($A691=\"\",\"\",IF(OR(VLOOKUP($A691,Economática!$A$3:$AI$823,18,FALSE)=0,VLOOKUP($A691,Economática!$A$3:$AI$823,18,FALSE)=\"-\"),1/0,VLOOKUP($A691,Economática!$A$3:$AI$823,18,FALSE)))","v":""},{"$f":"IF($A691=\"\",\"\",IF(OR(VLOOKUP($A691,Economática!$A$3:$AI$823,19,FALSE)=0,VLOOKUP($A691,Economática!$A$3:$AI$823,19,FALSE)=\"-\"),1/0,VLOOKUP($A691,Economática!$A$3:$AI$823,19,FALSE)))","v":""},{"$f":"IF($A691=\"\",\"\",VLOOKUP($A691,Economática!$A$3:$AI$823,20,FALSE)/E691)","v":""},"","","",{"$f":"IF($A691=\"\",\"\",IF(OR(VLOOKUP($A691,Economática!$A$3:$AI$823,21,FALSE)/100=0,VLOOKUP($A691,Economática!$A$3:$AI$823,21,FALSE)/100=\"-\"),1/0,VLOOKUP($A691,Economática!$A$3:$AI$823,21,FALSE)/100))","v":""},{"$f":"IF($A691=\"\",\"\",IF(OR(VLOOKUP($A691,Economática!$A$3:$AI$823,22,FALSE)/100=0,VLOOKUP($A691,Economática!$A$3:$AI$823,22,FALSE)/100=\"-\"),1/0,VLOOKUP($A691,Economática!$A$3:$AI$823,22,FALSE)/100))","v":""},{"$f":"IF($A691=\"\",\"\",IF(OR(VLOOKUP($A691,Economática!$A$3:$AI$823,23,FALSE)=0,VLOOKUP($A691,Economática!$A$3:$AI$823,23,FALSE)=\"-\"),1/0,VLOOKUP($A691,Economática!$A$3:$AI$823,23,FALSE)))","v":""},{"$f":"IF($A691=\"\",\"\",IF(OR(VLOOKUP($A691,Economática!$A$3:$AI$823,24,FALSE)=0,VLOOKUP($A691,Economática!$A$3:$AI$823,24,FALSE)=\"-\"),1/0,VLOOKUP($A691,Economática!$A$3:$AI$823,24,FALSE)))","v":""},{"$f":"IF($A691=\"\",\"\",IF(OR(VLOOKUP($A691,Economática!$A$3:$AI$823,25,FALSE)=0,VLOOKUP($A691,Economática!$A$3:$AI$823,25,FALSE)=\"-\"),1/0,VLOOKUP($A691,Economática!$A$3:$AI$823,25,FALSE)))","v":""},{"$f":"IF($A691=\"\",\"\",IF(ISERROR((F691+VLOOKUP($A691,Economática!$A$3:$AI$823,26,FALSE))/Y691),(F691+VLOOKUP($A691,Economática!$A$3:$AI$823,26,FALSE))/Y691,(F691+VLOOKUP($A691,Economática!$A$3:$AI$823,26,FALSE))/Y691))","v":""},{"$f":"IF($A691=\"\",\"\",IF(OR(-VLOOKUP($A691,Economática!$A$3:$AI$823,27,FALSE)=0,-VLOOKUP($A691,Economática!$A$3:$AI$823,27,FALSE)=\"-\"),1/0,-VLOOKUP($A691,Economática!$A$3:$AI$823,27,FALSE)))","v":""},"",{"$f":"IF($A691=\"\",\"\",IF(OR(VLOOKUP($A691,Economática!$A$3:$AI$823,28,FALSE)=0,VLOOKUP($A691,Economática!$A$3:$AI$823,28,FALSE)=\"-\"),1/0,VLOOKUP($A691,Economática!$A$3:$AI$823,28,FALSE)))","v":""},{"$f":"IF($A691=\"\",\"\",IF(OR(VLOOKUP($A691,Economática!$A$3:$AI$823,29,FALSE)=0,VLOOKUP($A691,Economática!$A$3:$AI$823,29,FALSE)=\"-\"),1/0,VLOOKUP($A691,Economática!$A$3:$AI$823,29,FALSE)))","v":""},{"$f":"IF($A691=\"\",\"\",IF(OR(VLOOKUP($A691,Economática!$A$3:$AI$823,30,FALSE)/E691=0,VLOOKUP($A691,Economática!$A$3:$AI$823,30,FALSE)/E691=\"-\",VLOOKUP($A691,Economática!$A$3:$AI$823,30,FALSE)/E691<33.33%,VLOOKUP($A691,Economática!$A$3:$AI$823,30,FALSE)/E691>100%),1/0,VLOOKUP($A691,Economática!$A$3:$AI$823,30,FALSE)/E691))","v":""},"",{"$f":"IF($A691=\"\",\"\",IF(OR(VLOOKUP($A691,Economática!$A$3:$AI$823,25,FALSE)=0,VLOOKUP($A691,Economática!$A$3:$AI$823,25,FALSE)=\"-\"),1/0,VLOOKUP($A691,Economática!$A$3:$AI$823,25,FALSE)))","v":""},{"$f":"CONCATENATE(Economática!B669,\" \",Economática!C669)","v":" "}]
[{"$f":"IF(Economática!AG670=\"\",\"\",Economática!AG670)","v":""},{"$f":"IF($A692=\"\",\"\",VLOOKUP(VLOOKUP($A692,Economática!$A$3:$AI$823,6,FALSE),Correção!$B$16:$C$36,2,FALSE))","v":""},{"$f":"IF(Economática!B670=\"\",\"\",Economática!B670)","v":""},{"$f":"IF($A692=\"\",\"\",IF(OR(VLOOKUP($A692,Economática!$A$3:$AI$823,8,FALSE)=0,VLOOKUP($A692,Economática!$A$3:$AI$823,8,FALSE)=\"-\"),1/0,VLOOKUP($A692,Economática!$A$3:$AI$823,8,FALSE)))","v":""},{"$f":"IF(A692=\"\",\"\",IF(ISERROR(VLOOKUP(A692,Correção!$B$2:$G$13,9,FALSE)),VLOOKUP($A692,Economática!$A$3:$AI$823,9,FALSE),VLOOKUP(A692,Correção!$B$2:$G$13,9,FALSE)))","v":""},{"$f":"IF($A692=\"\",\"\",Economática!G670)","v":""},{"$f":"IF($A692=\"\",\"\",IF(OR(VLOOKUP($A692,Economática!$A$3:$AI$823,10,FALSE)=0,VLOOKUP($A692,Economática!$A$3:$AI$823,10,FALSE)=\"-\"),1/0,VLOOKUP($A692,Economática!$A$3:$AI$823,10,FALSE)))","v":""},{"$f":"IF($A692=\"\",\"\",IF(OR(VLOOKUP($A692,Economática!$A$3:$AI$823,11,FALSE)=0,VLOOKUP($A692,Economática!$A$3:$AI$823,11,FALSE)=\"-\"),1/0,VLOOKUP($A692,Economática!$A$3:$AI$823,11,FALSE)))","v":""},{"$f":"IF($A692=\"\",\"\",IF(OR(VLOOKUP($A692,Economática!$A$3:$AI$823,12,FALSE)=0,VLOOKUP($A692,Economática!$A$3:$AI$823,12,FALSE)=\"-\"),1/0,VLOOKUP($A692,Economática!$A$3:$AI$823,12,FALSE)))","v":""},{"$f":"IF($A692=\"\",\"\",IF(OR(VLOOKUP($A692,Economática!$A$3:$AI$823,13,FALSE)=0,VLOOKUP($A692,Economática!$A$3:$AI$823,13,FALSE)=\"-\"),1/0,VLOOKUP($A692,Economática!$A$3:$AI$823,13,FALSE)))","v":""},{"$f":"IF($A692=\"\",\"\",IF(OR(VLOOKUP($A692,Economática!$A$3:$AI$823,14,FALSE)=0,VLOOKUP($A692,Economática!$A$3:$AI$823,14,FALSE)=\"-\"),1/0,VLOOKUP($A692,Economática!$A$3:$AI$823,14,FALSE)))","v":""},{"$f":"IF($A692=\"\",\"\",IF(OR(VLOOKUP($A692,Economática!$A$3:$AI$823,15,FALSE)=0,VLOOKUP($A692,Economática!$A$3:$AI$823,15,FALSE)=\"-\"),1/0,VLOOKUP($A692,Economática!$A$3:$AI$823,15,FALSE)))","v":""},{"$f":"IF($A692=\"\",\"\",IF(OR(VLOOKUP($A692,Economática!$A$3:$AI$823,16,FALSE)=0,VLOOKUP($A692,Economática!$A$3:$AI$823,16,FALSE)=\"-\"),1/0,VLOOKUP($A692,Economática!$A$3:$AI$823,16,FALSE)))","v":""},{"$f":"IF($A692=\"\",\"\",IF(OR(VLOOKUP($A692,Economática!$A$3:$AI$823,17,FALSE)=0,VLOOKUP($A692,Economática!$A$3:$AI$823,17,FALSE)=\"-\"),1/0,VLOOKUP($A692,Economática!$A$3:$AI$823,17,FALSE)))","v":""},{"$f":"IF($A692=\"\",\"\",IF(OR(VLOOKUP($A692,Economática!$A$3:$AI$823,18,FALSE)=0,VLOOKUP($A692,Economática!$A$3:$AI$823,18,FALSE)=\"-\"),1/0,VLOOKUP($A692,Economática!$A$3:$AI$823,18,FALSE)))","v":""},{"$f":"IF($A692=\"\",\"\",IF(OR(VLOOKUP($A692,Economática!$A$3:$AI$823,19,FALSE)=0,VLOOKUP($A692,Economática!$A$3:$AI$823,19,FALSE)=\"-\"),1/0,VLOOKUP($A692,Economática!$A$3:$AI$823,19,FALSE)))","v":""},{"$f":"IF($A692=\"\",\"\",VLOOKUP($A692,Economática!$A$3:$AI$823,20,FALSE)/E692)","v":""},"","","",{"$f":"IF($A692=\"\",\"\",IF(OR(VLOOKUP($A692,Economática!$A$3:$AI$823,21,FALSE)/100=0,VLOOKUP($A692,Economática!$A$3:$AI$823,21,FALSE)/100=\"-\"),1/0,VLOOKUP($A692,Economática!$A$3:$AI$823,21,FALSE)/100))","v":""},{"$f":"IF($A692=\"\",\"\",IF(OR(VLOOKUP($A692,Economática!$A$3:$AI$823,22,FALSE)/100=0,VLOOKUP($A692,Economática!$A$3:$AI$823,22,FALSE)/100=\"-\"),1/0,VLOOKUP($A692,Economática!$A$3:$AI$823,22,FALSE)/100))","v":""},{"$f":"IF($A692=\"\",\"\",IF(OR(VLOOKUP($A692,Economática!$A$3:$AI$823,23,FALSE)=0,VLOOKUP($A692,Economática!$A$3:$AI$823,23,FALSE)=\"-\"),1/0,VLOOKUP($A692,Economática!$A$3:$AI$823,23,FALSE)))","v":""},{"$f":"IF($A692=\"\",\"\",IF(OR(VLOOKUP($A692,Economática!$A$3:$AI$823,24,FALSE)=0,VLOOKUP($A692,Economática!$A$3:$AI$823,24,FALSE)=\"-\"),1/0,VLOOKUP($A692,Economática!$A$3:$AI$823,24,FALSE)))","v":""},{"$f":"IF($A692=\"\",\"\",IF(OR(VLOOKUP($A692,Economática!$A$3:$AI$823,25,FALSE)=0,VLOOKUP($A692,Economática!$A$3:$AI$823,25,FALSE)=\"-\"),1/0,VLOOKUP($A692,Economática!$A$3:$AI$823,25,FALSE)))","v":""},{"$f":"IF($A692=\"\",\"\",IF(ISERROR((F692+VLOOKUP($A692,Economática!$A$3:$AI$823,26,FALSE))/Y692),(F692+VLOOKUP($A692,Economática!$A$3:$AI$823,26,FALSE))/Y692,(F692+VLOOKUP($A692,Economática!$A$3:$AI$823,26,FALSE))/Y692))","v":""},{"$f":"IF($A692=\"\",\"\",IF(OR(-VLOOKUP($A692,Economática!$A$3:$AI$823,27,FALSE)=0,-VLOOKUP($A692,Economática!$A$3:$AI$823,27,FALSE)=\"-\"),1/0,-VLOOKUP($A692,Economática!$A$3:$AI$823,27,FALSE)))","v":""},"",{"$f":"IF($A692=\"\",\"\",IF(OR(VLOOKUP($A692,Economática!$A$3:$AI$823,28,FALSE)=0,VLOOKUP($A692,Economática!$A$3:$AI$823,28,FALSE)=\"-\"),1/0,VLOOKUP($A692,Economática!$A$3:$AI$823,28,FALSE)))","v":""},{"$f":"IF($A692=\"\",\"\",IF(OR(VLOOKUP($A692,Economática!$A$3:$AI$823,29,FALSE)=0,VLOOKUP($A692,Economática!$A$3:$AI$823,29,FALSE)=\"-\"),1/0,VLOOKUP($A692,Economática!$A$3:$AI$823,29,FALSE)))","v":""},{"$f":"IF($A692=\"\",\"\",IF(OR(VLOOKUP($A692,Economática!$A$3:$AI$823,30,FALSE)/E692=0,VLOOKUP($A692,Economática!$A$3:$AI$823,30,FALSE)/E692=\"-\",VLOOKUP($A692,Economática!$A$3:$AI$823,30,FALSE)/E692<33.33%,VLOOKUP($A692,Economática!$A$3:$AI$823,30,FALSE)/E692>100%),1/0,VLOOKUP($A692,Economática!$A$3:$AI$823,30,FALSE)/E692))","v":""},"",{"$f":"IF($A692=\"\",\"\",IF(OR(VLOOKUP($A692,Economática!$A$3:$AI$823,25,FALSE)=0,VLOOKUP($A692,Economática!$A$3:$AI$823,25,FALSE)=\"-\"),1/0,VLOOKUP($A692,Economática!$A$3:$AI$823,25,FALSE)))","v":""},{"$f":"CONCATENATE(Economática!B670,\" \",Economática!C670)","v":" "}]
[{"$f":"IF(Economática!AG671=\"\",\"\",Economática!AG671)","v":""},{"$f":"IF($A693=\"\",\"\",VLOOKUP(VLOOKUP($A693,Economática!$A$3:$AI$823,6,FALSE),Correção!$B$16:$C$36,2,FALSE))","v":""},{"$f":"IF(Economática!B671=\"\",\"\",Economática!B671)","v":""},{"$f":"IF($A693=\"\",\"\",IF(OR(VLOOKUP($A693,Economática!$A$3:$AI$823,8,FALSE)=0,VLOOKUP($A693,Economática!$A$3:$AI$823,8,FALSE)=\"-\"),1/0,VLOOKUP($A693,Economática!$A$3:$AI$823,8,FALSE)))","v":""},{"$f":"IF(A693=\"\",\"\",IF(ISERROR(VLOOKUP(A693,Correção!$B$2:$G$13,9,FALSE)),VLOOKUP($A693,Economática!$A$3:$AI$823,9,FALSE),VLOOKUP(A693,Correção!$B$2:$G$13,9,FALSE)))","v":""},{"$f":"IF($A693=\"\",\"\",Economática!G671)","v":""},{"$f":"IF($A693=\"\",\"\",IF(OR(VLOOKUP($A693,Economática!$A$3:$AI$823,10,FALSE)=0,VLOOKUP($A693,Economática!$A$3:$AI$823,10,FALSE)=\"-\"),1/0,VLOOKUP($A693,Economática!$A$3:$AI$823,10,FALSE)))","v":""},{"$f":"IF($A693=\"\",\"\",IF(OR(VLOOKUP($A693,Economática!$A$3:$AI$823,11,FALSE)=0,VLOOKUP($A693,Economática!$A$3:$AI$823,11,FALSE)=\"-\"),1/0,VLOOKUP($A693,Economática!$A$3:$AI$823,11,FALSE)))","v":""},{"$f":"IF($A693=\"\",\"\",IF(OR(VLOOKUP($A693,Economática!$A$3:$AI$823,12,FALSE)=0,VLOOKUP($A693,Economática!$A$3:$AI$823,12,FALSE)=\"-\"),1/0,VLOOKUP($A693,Economática!$A$3:$AI$823,12,FALSE)))","v":""},{"$f":"IF($A693=\"\",\"\",IF(OR(VLOOKUP($A693,Economática!$A$3:$AI$823,13,FALSE)=0,VLOOKUP($A693,Economática!$A$3:$AI$823,13,FALSE)=\"-\"),1/0,VLOOKUP($A693,Economática!$A$3:$AI$823,13,FALSE)))","v":""},{"$f":"IF($A693=\"\",\"\",IF(OR(VLOOKUP($A693,Economática!$A$3:$AI$823,14,FALSE)=0,VLOOKUP($A693,Economática!$A$3:$AI$823,14,FALSE)=\"-\"),1/0,VLOOKUP($A693,Economática!$A$3:$AI$823,14,FALSE)))","v":""},{"$f":"IF($A693=\"\",\"\",IF(OR(VLOOKUP($A693,Economática!$A$3:$AI$823,15,FALSE)=0,VLOOKUP($A693,Economática!$A$3:$AI$823,15,FALSE)=\"-\"),1/0,VLOOKUP($A693,Economática!$A$3:$AI$823,15,FALSE)))","v":""},{"$f":"IF($A693=\"\",\"\",IF(OR(VLOOKUP($A693,Economática!$A$3:$AI$823,16,FALSE)=0,VLOOKUP($A693,Economática!$A$3:$AI$823,16,FALSE)=\"-\"),1/0,VLOOKUP($A693,Economática!$A$3:$AI$823,16,FALSE)))","v":""},{"$f":"IF($A693=\"\",\"\",IF(OR(VLOOKUP($A693,Economática!$A$3:$AI$823,17,FALSE)=0,VLOOKUP($A693,Economática!$A$3:$AI$823,17,FALSE)=\"-\"),1/0,VLOOKUP($A693,Economática!$A$3:$AI$823,17,FALSE)))","v":""},{"$f":"IF($A693=\"\",\"\",IF(OR(VLOOKUP($A693,Economática!$A$3:$AI$823,18,FALSE)=0,VLOOKUP($A693,Economática!$A$3:$AI$823,18,FALSE)=\"-\"),1/0,VLOOKUP($A693,Economática!$A$3:$AI$823,18,FALSE)))","v":""},{"$f":"IF($A693=\"\",\"\",IF(OR(VLOOKUP($A693,Economática!$A$3:$AI$823,19,FALSE)=0,VLOOKUP($A693,Economática!$A$3:$AI$823,19,FALSE)=\"-\"),1/0,VLOOKUP($A693,Economática!$A$3:$AI$823,19,FALSE)))","v":""},{"$f":"IF($A693=\"\",\"\",VLOOKUP($A693,Economática!$A$3:$AI$823,20,FALSE)/E693)","v":""},"","","",{"$f":"IF($A693=\"\",\"\",IF(OR(VLOOKUP($A693,Economática!$A$3:$AI$823,21,FALSE)/100=0,VLOOKUP($A693,Economática!$A$3:$AI$823,21,FALSE)/100=\"-\"),1/0,VLOOKUP($A693,Economática!$A$3:$AI$823,21,FALSE)/100))","v":""},{"$f":"IF($A693=\"\",\"\",IF(OR(VLOOKUP($A693,Economática!$A$3:$AI$823,22,FALSE)/100=0,VLOOKUP($A693,Economática!$A$3:$AI$823,22,FALSE)/100=\"-\"),1/0,VLOOKUP($A693,Economática!$A$3:$AI$823,22,FALSE)/100))","v":""},{"$f":"IF($A693=\"\",\"\",IF(OR(VLOOKUP($A693,Economática!$A$3:$AI$823,23,FALSE)=0,VLOOKUP($A693,Economática!$A$3:$AI$823,23,FALSE)=\"-\"),1/0,VLOOKUP($A693,Economática!$A$3:$AI$823,23,FALSE)))","v":""},{"$f":"IF($A693=\"\",\"\",IF(OR(VLOOKUP($A693,Economática!$A$3:$AI$823,24,FALSE)=0,VLOOKUP($A693,Economática!$A$3:$AI$823,24,FALSE)=\"-\"),1/0,VLOOKUP($A693,Economática!$A$3:$AI$823,24,FALSE)))","v":""},{"$f":"IF($A693=\"\",\"\",IF(OR(VLOOKUP($A693,Economática!$A$3:$AI$823,25,FALSE)=0,VLOOKUP($A693,Economática!$A$3:$AI$823,25,FALSE)=\"-\"),1/0,VLOOKUP($A693,Economática!$A$3:$AI$823,25,FALSE)))","v":""},{"$f":"IF($A693=\"\",\"\",IF(ISERROR((F693+VLOOKUP($A693,Economática!$A$3:$AI$823,26,FALSE))/Y693),(F693+VLOOKUP($A693,Economática!$A$3:$AI$823,26,FALSE))/Y693,(F693+VLOOKUP($A693,Economática!$A$3:$AI$823,26,FALSE))/Y693))","v":""},{"$f":"IF($A693=\"\",\"\",IF(OR(-VLOOKUP($A693,Economática!$A$3:$AI$823,27,FALSE)=0,-VLOOKUP($A693,Economática!$A$3:$AI$823,27,FALSE)=\"-\"),1/0,-VLOOKUP($A693,Economática!$A$3:$AI$823,27,FALSE)))","v":""},"",{"$f":"IF($A693=\"\",\"\",IF(OR(VLOOKUP($A693,Economática!$A$3:$AI$823,28,FALSE)=0,VLOOKUP($A693,Economática!$A$3:$AI$823,28,FALSE)=\"-\"),1/0,VLOOKUP($A693,Economática!$A$3:$AI$823,28,FALSE)))","v":""},{"$f":"IF($A693=\"\",\"\",IF(OR(VLOOKUP($A693,Economática!$A$3:$AI$823,29,FALSE)=0,VLOOKUP($A693,Economática!$A$3:$AI$823,29,FALSE)=\"-\"),1/0,VLOOKUP($A693,Economática!$A$3:$AI$823,29,FALSE)))","v":""},{"$f":"IF($A693=\"\",\"\",IF(OR(VLOOKUP($A693,Economática!$A$3:$AI$823,30,FALSE)/E693=0,VLOOKUP($A693,Economática!$A$3:$AI$823,30,FALSE)/E693=\"-\",VLOOKUP($A693,Economática!$A$3:$AI$823,30,FALSE)/E693<33.33%,VLOOKUP($A693,Economática!$A$3:$AI$823,30,FALSE)/E693>100%),1/0,VLOOKUP($A693,Economática!$A$3:$AI$823,30,FALSE)/E693))","v":""},"",{"$f":"IF($A693=\"\",\"\",IF(OR(VLOOKUP($A693,Economática!$A$3:$AI$823,25,FALSE)=0,VLOOKUP($A693,Economática!$A$3:$AI$823,25,FALSE)=\"-\"),1/0,VLOOKUP($A693,Economática!$A$3:$AI$823,25,FALSE)))","v":""},{"$f":"CONCATENATE(Economática!B671,\" \",Economática!C671)","v":" "}]
[{"$f":"IF(Economática!AG672=\"\",\"\",Economática!AG672)","v":""},{"$f":"IF($A694=\"\",\"\",VLOOKUP(VLOOKUP($A694,Economática!$A$3:$AI$823,6,FALSE),Correção!$B$16:$C$36,2,FALSE))","v":""},{"$f":"IF(Economática!B672=\"\",\"\",Economática!B672)","v":""},{"$f":"IF($A694=\"\",\"\",IF(OR(VLOOKUP($A694,Economática!$A$3:$AI$823,8,FALSE)=0,VLOOKUP($A694,Economática!$A$3:$AI$823,8,FALSE)=\"-\"),1/0,VLOOKUP($A694,Economática!$A$3:$AI$823,8,FALSE)))","v":""},{"$f":"IF(A694=\"\",\"\",IF(ISERROR(VLOOKUP(A694,Correção!$B$2:$G$13,9,FALSE)),VLOOKUP($A694,Economática!$A$3:$AI$823,9,FALSE),VLOOKUP(A694,Correção!$B$2:$G$13,9,FALSE)))","v":""},{"$f":"IF($A694=\"\",\"\",Economática!G672)","v":""},{"$f":"IF($A694=\"\",\"\",IF(OR(VLOOKUP($A694,Economática!$A$3:$AI$823,10,FALSE)=0,VLOOKUP($A694,Economática!$A$3:$AI$823,10,FALSE)=\"-\"),1/0,VLOOKUP($A694,Economática!$A$3:$AI$823,10,FALSE)))","v":""},{"$f":"IF($A694=\"\",\"\",IF(OR(VLOOKUP($A694,Economática!$A$3:$AI$823,11,FALSE)=0,VLOOKUP($A694,Economática!$A$3:$AI$823,11,FALSE)=\"-\"),1/0,VLOOKUP($A694,Economática!$A$3:$AI$823,11,FALSE)))","v":""},{"$f":"IF($A694=\"\",\"\",IF(OR(VLOOKUP($A694,Economática!$A$3:$AI$823,12,FALSE)=0,VLOOKUP($A694,Economática!$A$3:$AI$823,12,FALSE)=\"-\"),1/0,VLOOKUP($A694,Economática!$A$3:$AI$823,12,FALSE)))","v":""},{"$f":"IF($A694=\"\",\"\",IF(OR(VLOOKUP($A694,Economática!$A$3:$AI$823,13,FALSE)=0,VLOOKUP($A694,Economática!$A$3:$AI$823,13,FALSE)=\"-\"),1/0,VLOOKUP($A694,Economática!$A$3:$AI$823,13,FALSE)))","v":""},{"$f":"IF($A694=\"\",\"\",IF(OR(VLOOKUP($A694,Economática!$A$3:$AI$823,14,FALSE)=0,VLOOKUP($A694,Economática!$A$3:$AI$823,14,FALSE)=\"-\"),1/0,VLOOKUP($A694,Economática!$A$3:$AI$823,14,FALSE)))","v":""},{"$f":"IF($A694=\"\",\"\",IF(OR(VLOOKUP($A694,Economática!$A$3:$AI$823,15,FALSE)=0,VLOOKUP($A694,Economática!$A$3:$AI$823,15,FALSE)=\"-\"),1/0,VLOOKUP($A694,Economática!$A$3:$AI$823,15,FALSE)))","v":""},{"$f":"IF($A694=\"\",\"\",IF(OR(VLOOKUP($A694,Economática!$A$3:$AI$823,16,FALSE)=0,VLOOKUP($A694,Economática!$A$3:$AI$823,16,FALSE)=\"-\"),1/0,VLOOKUP($A694,Economática!$A$3:$AI$823,16,FALSE)))","v":""},{"$f":"IF($A694=\"\",\"\",IF(OR(VLOOKUP($A694,Economática!$A$3:$AI$823,17,FALSE)=0,VLOOKUP($A694,Economática!$A$3:$AI$823,17,FALSE)=\"-\"),1/0,VLOOKUP($A694,Economática!$A$3:$AI$823,17,FALSE)))","v":""},{"$f":"IF($A694=\"\",\"\",IF(OR(VLOOKUP($A694,Economática!$A$3:$AI$823,18,FALSE)=0,VLOOKUP($A694,Economática!$A$3:$AI$823,18,FALSE)=\"-\"),1/0,VLOOKUP($A694,Economática!$A$3:$AI$823,18,FALSE)))","v":""},{"$f":"IF($A694=\"\",\"\",IF(OR(VLOOKUP($A694,Economática!$A$3:$AI$823,19,FALSE)=0,VLOOKUP($A694,Economática!$A$3:$AI$823,19,FALSE)=\"-\"),1/0,VLOOKUP($A694,Economática!$A$3:$AI$823,19,FALSE)))","v":""},{"$f":"IF($A694=\"\",\"\",VLOOKUP($A694,Economática!$A$3:$AI$823,20,FALSE)/E694)","v":""},"","","",{"$f":"IF($A694=\"\",\"\",IF(OR(VLOOKUP($A694,Economática!$A$3:$AI$823,21,FALSE)/100=0,VLOOKUP($A694,Economática!$A$3:$AI$823,21,FALSE)/100=\"-\"),1/0,VLOOKUP($A694,Economática!$A$3:$AI$823,21,FALSE)/100))","v":""},{"$f":"IF($A694=\"\",\"\",IF(OR(VLOOKUP($A694,Economática!$A$3:$AI$823,22,FALSE)/100=0,VLOOKUP($A694,Economática!$A$3:$AI$823,22,FALSE)/100=\"-\"),1/0,VLOOKUP($A694,Economática!$A$3:$AI$823,22,FALSE)/100))","v":""},{"$f":"IF($A694=\"\",\"\",IF(OR(VLOOKUP($A694,Economática!$A$3:$AI$823,23,FALSE)=0,VLOOKUP($A694,Economática!$A$3:$AI$823,23,FALSE)=\"-\"),1/0,VLOOKUP($A694,Economática!$A$3:$AI$823,23,FALSE)))","v":""},{"$f":"IF($A694=\"\",\"\",IF(OR(VLOOKUP($A694,Economática!$A$3:$AI$823,24,FALSE)=0,VLOOKUP($A694,Economática!$A$3:$AI$823,24,FALSE)=\"-\"),1/0,VLOOKUP($A694,Economática!$A$3:$AI$823,24,FALSE)))","v":""},{"$f":"IF($A694=\"\",\"\",IF(OR(VLOOKUP($A694,Economática!$A$3:$AI$823,25,FALSE)=0,VLOOKUP($A694,Economática!$A$3:$AI$823,25,FALSE)=\"-\"),1/0,VLOOKUP($A694,Economática!$A$3:$AI$823,25,FALSE)))","v":""},{"$f":"IF($A694=\"\",\"\",IF(ISERROR((F694+VLOOKUP($A694,Economática!$A$3:$AI$823,26,FALSE))/Y694),(F694+VLOOKUP($A694,Economática!$A$3:$AI$823,26,FALSE))/Y694,(F694+VLOOKUP($A694,Economática!$A$3:$AI$823,26,FALSE))/Y694))","v":""},{"$f":"IF($A694=\"\",\"\",IF(OR(-VLOOKUP($A694,Economática!$A$3:$AI$823,27,FALSE)=0,-VLOOKUP($A694,Economática!$A$3:$AI$823,27,FALSE)=\"-\"),1/0,-VLOOKUP($A694,Economática!$A$3:$AI$823,27,FALSE)))","v":""},"",{"$f":"IF($A694=\"\",\"\",IF(OR(VLOOKUP($A694,Economática!$A$3:$AI$823,28,FALSE)=0,VLOOKUP($A694,Economática!$A$3:$AI$823,28,FALSE)=\"-\"),1/0,VLOOKUP($A694,Economática!$A$3:$AI$823,28,FALSE)))","v":""},{"$f":"IF($A694=\"\",\"\",IF(OR(VLOOKUP($A694,Economática!$A$3:$AI$823,29,FALSE)=0,VLOOKUP($A694,Economática!$A$3:$AI$823,29,FALSE)=\"-\"),1/0,VLOOKUP($A694,Economática!$A$3:$AI$823,29,FALSE)))","v":""},{"$f":"IF($A694=\"\",\"\",IF(OR(VLOOKUP($A694,Economática!$A$3:$AI$823,30,FALSE)/E694=0,VLOOKUP($A694,Economática!$A$3:$AI$823,30,FALSE)/E694=\"-\",VLOOKUP($A694,Economática!$A$3:$AI$823,30,FALSE)/E694<33.33%,VLOOKUP($A694,Economática!$A$3:$AI$823,30,FALSE)/E694>100%),1/0,VLOOKUP($A694,Economática!$A$3:$AI$823,30,FALSE)/E694))","v":""},"",{"$f":"IF($A694=\"\",\"\",IF(OR(VLOOKUP($A694,Economática!$A$3:$AI$823,25,FALSE)=0,VLOOKUP($A694,Economática!$A$3:$AI$823,25,FALSE)=\"-\"),1/0,VLOOKUP($A694,Economática!$A$3:$AI$823,25,FALSE)))","v":""},{"$f":"CONCATENATE(Economática!B672,\" \",Economática!C672)","v":" "}]
[{"$f":"IF(Economática!AG673=\"\",\"\",Economática!AG673)","v":""},{"$f":"IF($A695=\"\",\"\",VLOOKUP(VLOOKUP($A695,Economática!$A$3:$AI$823,6,FALSE),Correção!$B$16:$C$36,2,FALSE))","v":""},{"$f":"IF(Economática!B673=\"\",\"\",Economática!B673)","v":""},{"$f":"IF($A695=\"\",\"\",IF(OR(VLOOKUP($A695,Economática!$A$3:$AI$823,8,FALSE)=0,VLOOKUP($A695,Economática!$A$3:$AI$823,8,FALSE)=\"-\"),1/0,VLOOKUP($A695,Economática!$A$3:$AI$823,8,FALSE)))","v":""},{"$f":"IF(A695=\"\",\"\",IF(ISERROR(VLOOKUP(A695,Correção!$B$2:$G$13,9,FALSE)),VLOOKUP($A695,Economática!$A$3:$AI$823,9,FALSE),VLOOKUP(A695,Correção!$B$2:$G$13,9,FALSE)))","v":""},{"$f":"IF($A695=\"\",\"\",Economática!G673)","v":""},{"$f":"IF($A695=\"\",\"\",IF(OR(VLOOKUP($A695,Economática!$A$3:$AI$823,10,FALSE)=0,VLOOKUP($A695,Economática!$A$3:$AI$823,10,FALSE)=\"-\"),1/0,VLOOKUP($A695,Economática!$A$3:$AI$823,10,FALSE)))","v":""},{"$f":"IF($A695=\"\",\"\",IF(OR(VLOOKUP($A695,Economática!$A$3:$AI$823,11,FALSE)=0,VLOOKUP($A695,Economática!$A$3:$AI$823,11,FALSE)=\"-\"),1/0,VLOOKUP($A695,Economática!$A$3:$AI$823,11,FALSE)))","v":""},{"$f":"IF($A695=\"\",\"\",IF(OR(VLOOKUP($A695,Economática!$A$3:$AI$823,12,FALSE)=0,VLOOKUP($A695,Economática!$A$3:$AI$823,12,FALSE)=\"-\"),1/0,VLOOKUP($A695,Economática!$A$3:$AI$823,12,FALSE)))","v":""},{"$f":"IF($A695=\"\",\"\",IF(OR(VLOOKUP($A695,Economática!$A$3:$AI$823,13,FALSE)=0,VLOOKUP($A695,Economática!$A$3:$AI$823,13,FALSE)=\"-\"),1/0,VLOOKUP($A695,Economática!$A$3:$AI$823,13,FALSE)))","v":""},{"$f":"IF($A695=\"\",\"\",IF(OR(VLOOKUP($A695,Economática!$A$3:$AI$823,14,FALSE)=0,VLOOKUP($A695,Economática!$A$3:$AI$823,14,FALSE)=\"-\"),1/0,VLOOKUP($A695,Economática!$A$3:$AI$823,14,FALSE)))","v":""},{"$f":"IF($A695=\"\",\"\",IF(OR(VLOOKUP($A695,Economática!$A$3:$AI$823,15,FALSE)=0,VLOOKUP($A695,Economática!$A$3:$AI$823,15,FALSE)=\"-\"),1/0,VLOOKUP($A695,Economática!$A$3:$AI$823,15,FALSE)))","v":""},{"$f":"IF($A695=\"\",\"\",IF(OR(VLOOKUP($A695,Economática!$A$3:$AI$823,16,FALSE)=0,VLOOKUP($A695,Economática!$A$3:$AI$823,16,FALSE)=\"-\"),1/0,VLOOKUP($A695,Economática!$A$3:$AI$823,16,FALSE)))","v":""},{"$f":"IF($A695=\"\",\"\",IF(OR(VLOOKUP($A695,Economática!$A$3:$AI$823,17,FALSE)=0,VLOOKUP($A695,Economática!$A$3:$AI$823,17,FALSE)=\"-\"),1/0,VLOOKUP($A695,Economática!$A$3:$AI$823,17,FALSE)))","v":""},{"$f":"IF($A695=\"\",\"\",IF(OR(VLOOKUP($A695,Economática!$A$3:$AI$823,18,FALSE)=0,VLOOKUP($A695,Economática!$A$3:$AI$823,18,FALSE)=\"-\"),1/0,VLOOKUP($A695,Economática!$A$3:$AI$823,18,FALSE)))","v":""},{"$f":"IF($A695=\"\",\"\",IF(OR(VLOOKUP($A695,Economática!$A$3:$AI$823,19,FALSE)=0,VLOOKUP($A695,Economática!$A$3:$AI$823,19,FALSE)=\"-\"),1/0,VLOOKUP($A695,Economática!$A$3:$AI$823,19,FALSE)))","v":""},{"$f":"IF($A695=\"\",\"\",VLOOKUP($A695,Economática!$A$3:$AI$823,20,FALSE)/E695)","v":""},"","","",{"$f":"IF($A695=\"\",\"\",IF(OR(VLOOKUP($A695,Economática!$A$3:$AI$823,21,FALSE)/100=0,VLOOKUP($A695,Economática!$A$3:$AI$823,21,FALSE)/100=\"-\"),1/0,VLOOKUP($A695,Economática!$A$3:$AI$823,21,FALSE)/100))","v":""},{"$f":"IF($A695=\"\",\"\",IF(OR(VLOOKUP($A695,Economática!$A$3:$AI$823,22,FALSE)/100=0,VLOOKUP($A695,Economática!$A$3:$AI$823,22,FALSE)/100=\"-\"),1/0,VLOOKUP($A695,Economática!$A$3:$AI$823,22,FALSE)/100))","v":""},{"$f":"IF($A695=\"\",\"\",IF(OR(VLOOKUP($A695,Economática!$A$3:$AI$823,23,FALSE)=0,VLOOKUP($A695,Economática!$A$3:$AI$823,23,FALSE)=\"-\"),1/0,VLOOKUP($A695,Economática!$A$3:$AI$823,23,FALSE)))","v":""},{"$f":"IF($A695=\"\",\"\",IF(OR(VLOOKUP($A695,Economática!$A$3:$AI$823,24,FALSE)=0,VLOOKUP($A695,Economática!$A$3:$AI$823,24,FALSE)=\"-\"),1/0,VLOOKUP($A695,Economática!$A$3:$AI$823,24,FALSE)))","v":""},{"$f":"IF($A695=\"\",\"\",IF(OR(VLOOKUP($A695,Economática!$A$3:$AI$823,25,FALSE)=0,VLOOKUP($A695,Economática!$A$3:$AI$823,25,FALSE)=\"-\"),1/0,VLOOKUP($A695,Economática!$A$3:$AI$823,25,FALSE)))","v":""},{"$f":"IF($A695=\"\",\"\",IF(ISERROR((F695+VLOOKUP($A695,Economática!$A$3:$AI$823,26,FALSE))/Y695),(F695+VLOOKUP($A695,Economática!$A$3:$AI$823,26,FALSE))/Y695,(F695+VLOOKUP($A695,Economática!$A$3:$AI$823,26,FALSE))/Y695))","v":""},{"$f":"IF($A695=\"\",\"\",IF(OR(-VLOOKUP($A695,Economática!$A$3:$AI$823,27,FALSE)=0,-VLOOKUP($A695,Economática!$A$3:$AI$823,27,FALSE)=\"-\"),1/0,-VLOOKUP($A695,Economática!$A$3:$AI$823,27,FALSE)))","v":""},"",{"$f":"IF($A695=\"\",\"\",IF(OR(VLOOKUP($A695,Economática!$A$3:$AI$823,28,FALSE)=0,VLOOKUP($A695,Economática!$A$3:$AI$823,28,FALSE)=\"-\"),1/0,VLOOKUP($A695,Economática!$A$3:$AI$823,28,FALSE)))","v":""},{"$f":"IF($A695=\"\",\"\",IF(OR(VLOOKUP($A695,Economática!$A$3:$AI$823,29,FALSE)=0,VLOOKUP($A695,Economática!$A$3:$AI$823,29,FALSE)=\"-\"),1/0,VLOOKUP($A695,Economática!$A$3:$AI$823,29,FALSE)))","v":""},{"$f":"IF($A695=\"\",\"\",IF(OR(VLOOKUP($A695,Economática!$A$3:$AI$823,30,FALSE)/E695=0,VLOOKUP($A695,Economática!$A$3:$AI$823,30,FALSE)/E695=\"-\",VLOOKUP($A695,Economática!$A$3:$AI$823,30,FALSE)/E695<33.33%,VLOOKUP($A695,Economática!$A$3:$AI$823,30,FALSE)/E695>100%),1/0,VLOOKUP($A695,Economática!$A$3:$AI$823,30,FALSE)/E695))","v":""},"",{"$f":"IF($A695=\"\",\"\",IF(OR(VLOOKUP($A695,Economática!$A$3:$AI$823,25,FALSE)=0,VLOOKUP($A695,Economática!$A$3:$AI$823,25,FALSE)=\"-\"),1/0,VLOOKUP($A695,Economática!$A$3:$AI$823,25,FALSE)))","v":""},{"$f":"CONCATENATE(Economática!B673,\" \",Economática!C673)","v":" "}]
[{"$f":"IF(Economática!AG674=\"\",\"\",Economática!AG674)","v":""},{"$f":"IF($A696=\"\",\"\",VLOOKUP(VLOOKUP($A696,Economática!$A$3:$AI$823,6,FALSE),Correção!$B$16:$C$36,2,FALSE))","v":""},{"$f":"IF(Economática!B674=\"\",\"\",Economática!B674)","v":""},{"$f":"IF($A696=\"\",\"\",IF(OR(VLOOKUP($A696,Economática!$A$3:$AI$823,8,FALSE)=0,VLOOKUP($A696,Economática!$A$3:$AI$823,8,FALSE)=\"-\"),1/0,VLOOKUP($A696,Economática!$A$3:$AI$823,8,FALSE)))","v":""},{"$f":"IF(A696=\"\",\"\",IF(ISERROR(VLOOKUP(A696,Correção!$B$2:$G$13,9,FALSE)),VLOOKUP($A696,Economática!$A$3:$AI$823,9,FALSE),VLOOKUP(A696,Correção!$B$2:$G$13,9,FALSE)))","v":""},{"$f":"IF($A696=\"\",\"\",Economática!G674)","v":""},{"$f":"IF($A696=\"\",\"\",IF(OR(VLOOKUP($A696,Economática!$A$3:$AI$823,10,FALSE)=0,VLOOKUP($A696,Economática!$A$3:$AI$823,10,FALSE)=\"-\"),1/0,VLOOKUP($A696,Economática!$A$3:$AI$823,10,FALSE)))","v":""},{"$f":"IF($A696=\"\",\"\",IF(OR(VLOOKUP($A696,Economática!$A$3:$AI$823,11,FALSE)=0,VLOOKUP($A696,Economática!$A$3:$AI$823,11,FALSE)=\"-\"),1/0,VLOOKUP($A696,Economática!$A$3:$AI$823,11,FALSE)))","v":""},{"$f":"IF($A696=\"\",\"\",IF(OR(VLOOKUP($A696,Economática!$A$3:$AI$823,12,FALSE)=0,VLOOKUP($A696,Economática!$A$3:$AI$823,12,FALSE)=\"-\"),1/0,VLOOKUP($A696,Economática!$A$3:$AI$823,12,FALSE)))","v":""},{"$f":"IF($A696=\"\",\"\",IF(OR(VLOOKUP($A696,Economática!$A$3:$AI$823,13,FALSE)=0,VLOOKUP($A696,Economática!$A$3:$AI$823,13,FALSE)=\"-\"),1/0,VLOOKUP($A696,Economática!$A$3:$AI$823,13,FALSE)))","v":""},{"$f":"IF($A696=\"\",\"\",IF(OR(VLOOKUP($A696,Economática!$A$3:$AI$823,14,FALSE)=0,VLOOKUP($A696,Economática!$A$3:$AI$823,14,FALSE)=\"-\"),1/0,VLOOKUP($A696,Economática!$A$3:$AI$823,14,FALSE)))","v":""},{"$f":"IF($A696=\"\",\"\",IF(OR(VLOOKUP($A696,Economática!$A$3:$AI$823,15,FALSE)=0,VLOOKUP($A696,Economática!$A$3:$AI$823,15,FALSE)=\"-\"),1/0,VLOOKUP($A696,Economática!$A$3:$AI$823,15,FALSE)))","v":""},{"$f":"IF($A696=\"\",\"\",IF(OR(VLOOKUP($A696,Economática!$A$3:$AI$823,16,FALSE)=0,VLOOKUP($A696,Economática!$A$3:$AI$823,16,FALSE)=\"-\"),1/0,VLOOKUP($A696,Economática!$A$3:$AI$823,16,FALSE)))","v":""},{"$f":"IF($A696=\"\",\"\",IF(OR(VLOOKUP($A696,Economática!$A$3:$AI$823,17,FALSE)=0,VLOOKUP($A696,Economática!$A$3:$AI$823,17,FALSE)=\"-\"),1/0,VLOOKUP($A696,Economática!$A$3:$AI$823,17,FALSE)))","v":""},{"$f":"IF($A696=\"\",\"\",IF(OR(VLOOKUP($A696,Economática!$A$3:$AI$823,18,FALSE)=0,VLOOKUP($A696,Economática!$A$3:$AI$823,18,FALSE)=\"-\"),1/0,VLOOKUP($A696,Economática!$A$3:$AI$823,18,FALSE)))","v":""},{"$f":"IF($A696=\"\",\"\",IF(OR(VLOOKUP($A696,Economática!$A$3:$AI$823,19,FALSE)=0,VLOOKUP($A696,Economática!$A$3:$AI$823,19,FALSE)=\"-\"),1/0,VLOOKUP($A696,Economática!$A$3:$AI$823,19,FALSE)))","v":""},{"$f":"IF($A696=\"\",\"\",VLOOKUP($A696,Economática!$A$3:$AI$823,20,FALSE)/E696)","v":""},"","","",{"$f":"IF($A696=\"\",\"\",IF(OR(VLOOKUP($A696,Economática!$A$3:$AI$823,21,FALSE)/100=0,VLOOKUP($A696,Economática!$A$3:$AI$823,21,FALSE)/100=\"-\"),1/0,VLOOKUP($A696,Economática!$A$3:$AI$823,21,FALSE)/100))","v":""},{"$f":"IF($A696=\"\",\"\",IF(OR(VLOOKUP($A696,Economática!$A$3:$AI$823,22,FALSE)/100=0,VLOOKUP($A696,Economática!$A$3:$AI$823,22,FALSE)/100=\"-\"),1/0,VLOOKUP($A696,Economática!$A$3:$AI$823,22,FALSE)/100))","v":""},{"$f":"IF($A696=\"\",\"\",IF(OR(VLOOKUP($A696,Economática!$A$3:$AI$823,23,FALSE)=0,VLOOKUP($A696,Economática!$A$3:$AI$823,23,FALSE)=\"-\"),1/0,VLOOKUP($A696,Economática!$A$3:$AI$823,23,FALSE)))","v":""},{"$f":"IF($A696=\"\",\"\",IF(OR(VLOOKUP($A696,Economática!$A$3:$AI$823,24,FALSE)=0,VLOOKUP($A696,Economática!$A$3:$AI$823,24,FALSE)=\"-\"),1/0,VLOOKUP($A696,Economática!$A$3:$AI$823,24,FALSE)))","v":""},{"$f":"IF($A696=\"\",\"\",IF(OR(VLOOKUP($A696,Economática!$A$3:$AI$823,25,FALSE)=0,VLOOKUP($A696,Economática!$A$3:$AI$823,25,FALSE)=\"-\"),1/0,VLOOKUP($A696,Economática!$A$3:$AI$823,25,FALSE)))","v":""},{"$f":"IF($A696=\"\",\"\",IF(ISERROR((F696+VLOOKUP($A696,Economática!$A$3:$AI$823,26,FALSE))/Y696),(F696+VLOOKUP($A696,Economática!$A$3:$AI$823,26,FALSE))/Y696,(F696+VLOOKUP($A696,Economática!$A$3:$AI$823,26,FALSE))/Y696))","v":""},{"$f":"IF($A696=\"\",\"\",IF(OR(-VLOOKUP($A696,Economática!$A$3:$AI$823,27,FALSE)=0,-VLOOKUP($A696,Economática!$A$3:$AI$823,27,FALSE)=\"-\"),1/0,-VLOOKUP($A696,Economática!$A$3:$AI$823,27,FALSE)))","v":""},"",{"$f":"IF($A696=\"\",\"\",IF(OR(VLOOKUP($A696,Economática!$A$3:$AI$823,28,FALSE)=0,VLOOKUP($A696,Economática!$A$3:$AI$823,28,FALSE)=\"-\"),1/0,VLOOKUP($A696,Economática!$A$3:$AI$823,28,FALSE)))","v":""},{"$f":"IF($A696=\"\",\"\",IF(OR(VLOOKUP($A696,Economática!$A$3:$AI$823,29,FALSE)=0,VLOOKUP($A696,Economática!$A$3:$AI$823,29,FALSE)=\"-\"),1/0,VLOOKUP($A696,Economática!$A$3:$AI$823,29,FALSE)))","v":""},{"$f":"IF($A696=\"\",\"\",IF(OR(VLOOKUP($A696,Economática!$A$3:$AI$823,30,FALSE)/E696=0,VLOOKUP($A696,Economática!$A$3:$AI$823,30,FALSE)/E696=\"-\",VLOOKUP($A696,Economática!$A$3:$AI$823,30,FALSE)/E696<33.33%,VLOOKUP($A696,Economática!$A$3:$AI$823,30,FALSE)/E696>100%),1/0,VLOOKUP($A696,Economática!$A$3:$AI$823,30,FALSE)/E696))","v":""},"",{"$f":"IF($A696=\"\",\"\",IF(OR(VLOOKUP($A696,Economática!$A$3:$AI$823,25,FALSE)=0,VLOOKUP($A696,Economática!$A$3:$AI$823,25,FALSE)=\"-\"),1/0,VLOOKUP($A696,Economática!$A$3:$AI$823,25,FALSE)))","v":""},{"$f":"CONCATENATE(Economática!B674,\" \",Economática!C674)","v":" "}]
[{"$f":"IF(Economática!AG675=\"\",\"\",Economática!AG675)","v":""},{"$f":"IF($A697=\"\",\"\",VLOOKUP(VLOOKUP($A697,Economática!$A$3:$AI$823,6,FALSE),Correção!$B$16:$C$36,2,FALSE))","v":""},{"$f":"IF(Economática!B675=\"\",\"\",Economática!B675)","v":""},{"$f":"IF($A697=\"\",\"\",IF(OR(VLOOKUP($A697,Economática!$A$3:$AI$823,8,FALSE)=0,VLOOKUP($A697,Economática!$A$3:$AI$823,8,FALSE)=\"-\"),1/0,VLOOKUP($A697,Economática!$A$3:$AI$823,8,FALSE)))","v":""},{"$f":"IF(A697=\"\",\"\",IF(ISERROR(VLOOKUP(A697,Correção!$B$2:$G$13,9,FALSE)),VLOOKUP($A697,Economática!$A$3:$AI$823,9,FALSE),VLOOKUP(A697,Correção!$B$2:$G$13,9,FALSE)))","v":""},{"$f":"IF($A697=\"\",\"\",Economática!G675)","v":""},{"$f":"IF($A697=\"\",\"\",IF(OR(VLOOKUP($A697,Economática!$A$3:$AI$823,10,FALSE)=0,VLOOKUP($A697,Economática!$A$3:$AI$823,10,FALSE)=\"-\"),1/0,VLOOKUP($A697,Economática!$A$3:$AI$823,10,FALSE)))","v":""},{"$f":"IF($A697=\"\",\"\",IF(OR(VLOOKUP($A697,Economática!$A$3:$AI$823,11,FALSE)=0,VLOOKUP($A697,Economática!$A$3:$AI$823,11,FALSE)=\"-\"),1/0,VLOOKUP($A697,Economática!$A$3:$AI$823,11,FALSE)))","v":""},{"$f":"IF($A697=\"\",\"\",IF(OR(VLOOKUP($A697,Economática!$A$3:$AI$823,12,FALSE)=0,VLOOKUP($A697,Economática!$A$3:$AI$823,12,FALSE)=\"-\"),1/0,VLOOKUP($A697,Economática!$A$3:$AI$823,12,FALSE)))","v":""},{"$f":"IF($A697=\"\",\"\",IF(OR(VLOOKUP($A697,Economática!$A$3:$AI$823,13,FALSE)=0,VLOOKUP($A697,Economática!$A$3:$AI$823,13,FALSE)=\"-\"),1/0,VLOOKUP($A697,Economática!$A$3:$AI$823,13,FALSE)))","v":""},{"$f":"IF($A697=\"\",\"\",IF(OR(VLOOKUP($A697,Economática!$A$3:$AI$823,14,FALSE)=0,VLOOKUP($A697,Economática!$A$3:$AI$823,14,FALSE)=\"-\"),1/0,VLOOKUP($A697,Economática!$A$3:$AI$823,14,FALSE)))","v":""},{"$f":"IF($A697=\"\",\"\",IF(OR(VLOOKUP($A697,Economática!$A$3:$AI$823,15,FALSE)=0,VLOOKUP($A697,Economática!$A$3:$AI$823,15,FALSE)=\"-\"),1/0,VLOOKUP($A697,Economática!$A$3:$AI$823,15,FALSE)))","v":""},{"$f":"IF($A697=\"\",\"\",IF(OR(VLOOKUP($A697,Economática!$A$3:$AI$823,16,FALSE)=0,VLOOKUP($A697,Economática!$A$3:$AI$823,16,FALSE)=\"-\"),1/0,VLOOKUP($A697,Economática!$A$3:$AI$823,16,FALSE)))","v":""},{"$f":"IF($A697=\"\",\"\",IF(OR(VLOOKUP($A697,Economática!$A$3:$AI$823,17,FALSE)=0,VLOOKUP($A697,Economática!$A$3:$AI$823,17,FALSE)=\"-\"),1/0,VLOOKUP($A697,Economática!$A$3:$AI$823,17,FALSE)))","v":""},{"$f":"IF($A697=\"\",\"\",IF(OR(VLOOKUP($A697,Economática!$A$3:$AI$823,18,FALSE)=0,VLOOKUP($A697,Economática!$A$3:$AI$823,18,FALSE)=\"-\"),1/0,VLOOKUP($A697,Economática!$A$3:$AI$823,18,FALSE)))","v":""},{"$f":"IF($A697=\"\",\"\",IF(OR(VLOOKUP($A697,Economática!$A$3:$AI$823,19,FALSE)=0,VLOOKUP($A697,Economática!$A$3:$AI$823,19,FALSE)=\"-\"),1/0,VLOOKUP($A697,Economática!$A$3:$AI$823,19,FALSE)))","v":""},{"$f":"IF($A697=\"\",\"\",VLOOKUP($A697,Economática!$A$3:$AI$823,20,FALSE)/E697)","v":""},"","","",{"$f":"IF($A697=\"\",\"\",IF(OR(VLOOKUP($A697,Economática!$A$3:$AI$823,21,FALSE)/100=0,VLOOKUP($A697,Economática!$A$3:$AI$823,21,FALSE)/100=\"-\"),1/0,VLOOKUP($A697,Economática!$A$3:$AI$823,21,FALSE)/100))","v":""},{"$f":"IF($A697=\"\",\"\",IF(OR(VLOOKUP($A697,Economática!$A$3:$AI$823,22,FALSE)/100=0,VLOOKUP($A697,Economática!$A$3:$AI$823,22,FALSE)/100=\"-\"),1/0,VLOOKUP($A697,Economática!$A$3:$AI$823,22,FALSE)/100))","v":""},{"$f":"IF($A697=\"\",\"\",IF(OR(VLOOKUP($A697,Economática!$A$3:$AI$823,23,FALSE)=0,VLOOKUP($A697,Economática!$A$3:$AI$823,23,FALSE)=\"-\"),1/0,VLOOKUP($A697,Economática!$A$3:$AI$823,23,FALSE)))","v":""},{"$f":"IF($A697=\"\",\"\",IF(OR(VLOOKUP($A697,Economática!$A$3:$AI$823,24,FALSE)=0,VLOOKUP($A697,Economática!$A$3:$AI$823,24,FALSE)=\"-\"),1/0,VLOOKUP($A697,Economática!$A$3:$AI$823,24,FALSE)))","v":""},{"$f":"IF($A697=\"\",\"\",IF(OR(VLOOKUP($A697,Economática!$A$3:$AI$823,25,FALSE)=0,VLOOKUP($A697,Economática!$A$3:$AI$823,25,FALSE)=\"-\"),1/0,VLOOKUP($A697,Economática!$A$3:$AI$823,25,FALSE)))","v":""},{"$f":"IF($A697=\"\",\"\",IF(ISERROR((F697+VLOOKUP($A697,Economática!$A$3:$AI$823,26,FALSE))/Y697),(F697+VLOOKUP($A697,Economática!$A$3:$AI$823,26,FALSE))/Y697,(F697+VLOOKUP($A697,Economática!$A$3:$AI$823,26,FALSE))/Y697))","v":""},{"$f":"IF($A697=\"\",\"\",IF(OR(-VLOOKUP($A697,Economática!$A$3:$AI$823,27,FALSE)=0,-VLOOKUP($A697,Economática!$A$3:$AI$823,27,FALSE)=\"-\"),1/0,-VLOOKUP($A697,Economática!$A$3:$AI$823,27,FALSE)))","v":""},"",{"$f":"IF($A697=\"\",\"\",IF(OR(VLOOKUP($A697,Economática!$A$3:$AI$823,28,FALSE)=0,VLOOKUP($A697,Economática!$A$3:$AI$823,28,FALSE)=\"-\"),1/0,VLOOKUP($A697,Economática!$A$3:$AI$823,28,FALSE)))","v":""},{"$f":"IF($A697=\"\",\"\",IF(OR(VLOOKUP($A697,Economática!$A$3:$AI$823,29,FALSE)=0,VLOOKUP($A697,Economática!$A$3:$AI$823,29,FALSE)=\"-\"),1/0,VLOOKUP($A697,Economática!$A$3:$AI$823,29,FALSE)))","v":""},{"$f":"IF($A697=\"\",\"\",IF(OR(VLOOKUP($A697,Economática!$A$3:$AI$823,30,FALSE)/E697=0,VLOOKUP($A697,Economática!$A$3:$AI$823,30,FALSE)/E697=\"-\",VLOOKUP($A697,Economática!$A$3:$AI$823,30,FALSE)/E697<33.33%,VLOOKUP($A697,Economática!$A$3:$AI$823,30,FALSE)/E697>100%),1/0,VLOOKUP($A697,Economática!$A$3:$AI$823,30,FALSE)/E697))","v":""},"",{"$f":"IF($A697=\"\",\"\",IF(OR(VLOOKUP($A697,Economática!$A$3:$AI$823,25,FALSE)=0,VLOOKUP($A697,Economática!$A$3:$AI$823,25,FALSE)=\"-\"),1/0,VLOOKUP($A697,Economática!$A$3:$AI$823,25,FALSE)))","v":""},{"$f":"CONCATENATE(Economática!B675,\" \",Economática!C675)","v":" "}]
[{"$f":"IF(Economática!AG676=\"\",\"\",Economática!AG676)","v":""},{"$f":"IF($A698=\"\",\"\",VLOOKUP(VLOOKUP($A698,Economática!$A$3:$AI$823,6,FALSE),Correção!$B$16:$C$36,2,FALSE))","v":""},{"$f":"IF(Economática!B676=\"\",\"\",Economática!B676)","v":""},{"$f":"IF($A698=\"\",\"\",IF(OR(VLOOKUP($A698,Economática!$A$3:$AI$823,8,FALSE)=0,VLOOKUP($A698,Economática!$A$3:$AI$823,8,FALSE)=\"-\"),1/0,VLOOKUP($A698,Economática!$A$3:$AI$823,8,FALSE)))","v":""},{"$f":"IF(A698=\"\",\"\",IF(ISERROR(VLOOKUP(A698,Correção!$B$2:$G$13,9,FALSE)),VLOOKUP($A698,Economática!$A$3:$AI$823,9,FALSE),VLOOKUP(A698,Correção!$B$2:$G$13,9,FALSE)))","v":""},{"$f":"IF($A698=\"\",\"\",Economática!G676)","v":""},{"$f":"IF($A698=\"\",\"\",IF(OR(VLOOKUP($A698,Economática!$A$3:$AI$823,10,FALSE)=0,VLOOKUP($A698,Economática!$A$3:$AI$823,10,FALSE)=\"-\"),1/0,VLOOKUP($A698,Economática!$A$3:$AI$823,10,FALSE)))","v":""},{"$f":"IF($A698=\"\",\"\",IF(OR(VLOOKUP($A698,Economática!$A$3:$AI$823,11,FALSE)=0,VLOOKUP($A698,Economática!$A$3:$AI$823,11,FALSE)=\"-\"),1/0,VLOOKUP($A698,Economática!$A$3:$AI$823,11,FALSE)))","v":""},{"$f":"IF($A698=\"\",\"\",IF(OR(VLOOKUP($A698,Economática!$A$3:$AI$823,12,FALSE)=0,VLOOKUP($A698,Economática!$A$3:$AI$823,12,FALSE)=\"-\"),1/0,VLOOKUP($A698,Economática!$A$3:$AI$823,12,FALSE)))","v":""},{"$f":"IF($A698=\"\",\"\",IF(OR(VLOOKUP($A698,Economática!$A$3:$AI$823,13,FALSE)=0,VLOOKUP($A698,Economática!$A$3:$AI$823,13,FALSE)=\"-\"),1/0,VLOOKUP($A698,Economática!$A$3:$AI$823,13,FALSE)))","v":""},{"$f":"IF($A698=\"\",\"\",IF(OR(VLOOKUP($A698,Economática!$A$3:$AI$823,14,FALSE)=0,VLOOKUP($A698,Economática!$A$3:$AI$823,14,FALSE)=\"-\"),1/0,VLOOKUP($A698,Economática!$A$3:$AI$823,14,FALSE)))","v":""},{"$f":"IF($A698=\"\",\"\",IF(OR(VLOOKUP($A698,Economática!$A$3:$AI$823,15,FALSE)=0,VLOOKUP($A698,Economática!$A$3:$AI$823,15,FALSE)=\"-\"),1/0,VLOOKUP($A698,Economática!$A$3:$AI$823,15,FALSE)))","v":""},{"$f":"IF($A698=\"\",\"\",IF(OR(VLOOKUP($A698,Economática!$A$3:$AI$823,16,FALSE)=0,VLOOKUP($A698,Economática!$A$3:$AI$823,16,FALSE)=\"-\"),1/0,VLOOKUP($A698,Economática!$A$3:$AI$823,16,FALSE)))","v":""},{"$f":"IF($A698=\"\",\"\",IF(OR(VLOOKUP($A698,Economática!$A$3:$AI$823,17,FALSE)=0,VLOOKUP($A698,Economática!$A$3:$AI$823,17,FALSE)=\"-\"),1/0,VLOOKUP($A698,Economática!$A$3:$AI$823,17,FALSE)))","v":""},{"$f":"IF($A698=\"\",\"\",IF(OR(VLOOKUP($A698,Economática!$A$3:$AI$823,18,FALSE)=0,VLOOKUP($A698,Economática!$A$3:$AI$823,18,FALSE)=\"-\"),1/0,VLOOKUP($A698,Economática!$A$3:$AI$823,18,FALSE)))","v":""},{"$f":"IF($A698=\"\",\"\",IF(OR(VLOOKUP($A698,Economática!$A$3:$AI$823,19,FALSE)=0,VLOOKUP($A698,Economática!$A$3:$AI$823,19,FALSE)=\"-\"),1/0,VLOOKUP($A698,Economática!$A$3:$AI$823,19,FALSE)))","v":""},{"$f":"IF($A698=\"\",\"\",VLOOKUP($A698,Economática!$A$3:$AI$823,20,FALSE)/E698)","v":""},"","","",{"$f":"IF($A698=\"\",\"\",IF(OR(VLOOKUP($A698,Economática!$A$3:$AI$823,21,FALSE)/100=0,VLOOKUP($A698,Economática!$A$3:$AI$823,21,FALSE)/100=\"-\"),1/0,VLOOKUP($A698,Economática!$A$3:$AI$823,21,FALSE)/100))","v":""},{"$f":"IF($A698=\"\",\"\",IF(OR(VLOOKUP($A698,Economática!$A$3:$AI$823,22,FALSE)/100=0,VLOOKUP($A698,Economática!$A$3:$AI$823,22,FALSE)/100=\"-\"),1/0,VLOOKUP($A698,Economática!$A$3:$AI$823,22,FALSE)/100))","v":""},{"$f":"IF($A698=\"\",\"\",IF(OR(VLOOKUP($A698,Economática!$A$3:$AI$823,23,FALSE)=0,VLOOKUP($A698,Economática!$A$3:$AI$823,23,FALSE)=\"-\"),1/0,VLOOKUP($A698,Economática!$A$3:$AI$823,23,FALSE)))","v":""},{"$f":"IF($A698=\"\",\"\",IF(OR(VLOOKUP($A698,Economática!$A$3:$AI$823,24,FALSE)=0,VLOOKUP($A698,Economática!$A$3:$AI$823,24,FALSE)=\"-\"),1/0,VLOOKUP($A698,Economática!$A$3:$AI$823,24,FALSE)))","v":""},{"$f":"IF($A698=\"\",\"\",IF(OR(VLOOKUP($A698,Economática!$A$3:$AI$823,25,FALSE)=0,VLOOKUP($A698,Economática!$A$3:$AI$823,25,FALSE)=\"-\"),1/0,VLOOKUP($A698,Economática!$A$3:$AI$823,25,FALSE)))","v":""},{"$f":"IF($A698=\"\",\"\",IF(ISERROR((F698+VLOOKUP($A698,Economática!$A$3:$AI$823,26,FALSE))/Y698),(F698+VLOOKUP($A698,Economática!$A$3:$AI$823,26,FALSE))/Y698,(F698+VLOOKUP($A698,Economática!$A$3:$AI$823,26,FALSE))/Y698))","v":""},{"$f":"IF($A698=\"\",\"\",IF(OR(-VLOOKUP($A698,Economática!$A$3:$AI$823,27,FALSE)=0,-VLOOKUP($A698,Economática!$A$3:$AI$823,27,FALSE)=\"-\"),1/0,-VLOOKUP($A698,Economática!$A$3:$AI$823,27,FALSE)))","v":""},"",{"$f":"IF($A698=\"\",\"\",IF(OR(VLOOKUP($A698,Economática!$A$3:$AI$823,28,FALSE)=0,VLOOKUP($A698,Economática!$A$3:$AI$823,28,FALSE)=\"-\"),1/0,VLOOKUP($A698,Economática!$A$3:$AI$823,28,FALSE)))","v":""},{"$f":"IF($A698=\"\",\"\",IF(OR(VLOOKUP($A698,Economática!$A$3:$AI$823,29,FALSE)=0,VLOOKUP($A698,Economática!$A$3:$AI$823,29,FALSE)=\"-\"),1/0,VLOOKUP($A698,Economática!$A$3:$AI$823,29,FALSE)))","v":""},{"$f":"IF($A698=\"\",\"\",IF(OR(VLOOKUP($A698,Economática!$A$3:$AI$823,30,FALSE)/E698=0,VLOOKUP($A698,Economática!$A$3:$AI$823,30,FALSE)/E698=\"-\",VLOOKUP($A698,Economática!$A$3:$AI$823,30,FALSE)/E698<33.33%,VLOOKUP($A698,Economática!$A$3:$AI$823,30,FALSE)/E698>100%),1/0,VLOOKUP($A698,Economática!$A$3:$AI$823,30,FALSE)/E698))","v":""},"",{"$f":"IF($A698=\"\",\"\",IF(OR(VLOOKUP($A698,Economática!$A$3:$AI$823,25,FALSE)=0,VLOOKUP($A698,Economática!$A$3:$AI$823,25,FALSE)=\"-\"),1/0,VLOOKUP($A698,Economática!$A$3:$AI$823,25,FALSE)))","v":""},{"$f":"CONCATENATE(Economática!B676,\" \",Economática!C676)","v":" "}]
[{"$f":"IF(Economática!AG677=\"\",\"\",Economática!AG677)","v":""},{"$f":"IF($A699=\"\",\"\",VLOOKUP(VLOOKUP($A699,Economática!$A$3:$AI$823,6,FALSE),Correção!$B$16:$C$36,2,FALSE))","v":""},{"$f":"IF(Economática!B677=\"\",\"\",Economática!B677)","v":""},{"$f":"IF($A699=\"\",\"\",IF(OR(VLOOKUP($A699,Economática!$A$3:$AI$823,8,FALSE)=0,VLOOKUP($A699,Economática!$A$3:$AI$823,8,FALSE)=\"-\"),1/0,VLOOKUP($A699,Economática!$A$3:$AI$823,8,FALSE)))","v":""},{"$f":"IF(A699=\"\",\"\",IF(ISERROR(VLOOKUP(A699,Correção!$B$2:$G$13,9,FALSE)),VLOOKUP($A699,Economática!$A$3:$AI$823,9,FALSE),VLOOKUP(A699,Correção!$B$2:$G$13,9,FALSE)))","v":""},{"$f":"IF($A699=\"\",\"\",Economática!G677)","v":""},{"$f":"IF($A699=\"\",\"\",IF(OR(VLOOKUP($A699,Economática!$A$3:$AI$823,10,FALSE)=0,VLOOKUP($A699,Economática!$A$3:$AI$823,10,FALSE)=\"-\"),1/0,VLOOKUP($A699,Economática!$A$3:$AI$823,10,FALSE)))","v":""},{"$f":"IF($A699=\"\",\"\",IF(OR(VLOOKUP($A699,Economática!$A$3:$AI$823,11,FALSE)=0,VLOOKUP($A699,Economática!$A$3:$AI$823,11,FALSE)=\"-\"),1/0,VLOOKUP($A699,Economática!$A$3:$AI$823,11,FALSE)))","v":""},{"$f":"IF($A699=\"\",\"\",IF(OR(VLOOKUP($A699,Economática!$A$3:$AI$823,12,FALSE)=0,VLOOKUP($A699,Economática!$A$3:$AI$823,12,FALSE)=\"-\"),1/0,VLOOKUP($A699,Economática!$A$3:$AI$823,12,FALSE)))","v":""},{"$f":"IF($A699=\"\",\"\",IF(OR(VLOOKUP($A699,Economática!$A$3:$AI$823,13,FALSE)=0,VLOOKUP($A699,Economática!$A$3:$AI$823,13,FALSE)=\"-\"),1/0,VLOOKUP($A699,Economática!$A$3:$AI$823,13,FALSE)))","v":""},{"$f":"IF($A699=\"\",\"\",IF(OR(VLOOKUP($A699,Economática!$A$3:$AI$823,14,FALSE)=0,VLOOKUP($A699,Economática!$A$3:$AI$823,14,FALSE)=\"-\"),1/0,VLOOKUP($A699,Economática!$A$3:$AI$823,14,FALSE)))","v":""},{"$f":"IF($A699=\"\",\"\",IF(OR(VLOOKUP($A699,Economática!$A$3:$AI$823,15,FALSE)=0,VLOOKUP($A699,Economática!$A$3:$AI$823,15,FALSE)=\"-\"),1/0,VLOOKUP($A699,Economática!$A$3:$AI$823,15,FALSE)))","v":""},{"$f":"IF($A699=\"\",\"\",IF(OR(VLOOKUP($A699,Economática!$A$3:$AI$823,16,FALSE)=0,VLOOKUP($A699,Economática!$A$3:$AI$823,16,FALSE)=\"-\"),1/0,VLOOKUP($A699,Economática!$A$3:$AI$823,16,FALSE)))","v":""},{"$f":"IF($A699=\"\",\"\",IF(OR(VLOOKUP($A699,Economática!$A$3:$AI$823,17,FALSE)=0,VLOOKUP($A699,Economática!$A$3:$AI$823,17,FALSE)=\"-\"),1/0,VLOOKUP($A699,Economática!$A$3:$AI$823,17,FALSE)))","v":""},{"$f":"IF($A699=\"\",\"\",IF(OR(VLOOKUP($A699,Economática!$A$3:$AI$823,18,FALSE)=0,VLOOKUP($A699,Economática!$A$3:$AI$823,18,FALSE)=\"-\"),1/0,VLOOKUP($A699,Economática!$A$3:$AI$823,18,FALSE)))","v":""},{"$f":"IF($A699=\"\",\"\",IF(OR(VLOOKUP($A699,Economática!$A$3:$AI$823,19,FALSE)=0,VLOOKUP($A699,Economática!$A$3:$AI$823,19,FALSE)=\"-\"),1/0,VLOOKUP($A699,Economática!$A$3:$AI$823,19,FALSE)))","v":""},{"$f":"IF($A699=\"\",\"\",VLOOKUP($A699,Economática!$A$3:$AI$823,20,FALSE)/E699)","v":""},"","","",{"$f":"IF($A699=\"\",\"\",IF(OR(VLOOKUP($A699,Economática!$A$3:$AI$823,21,FALSE)/100=0,VLOOKUP($A699,Economática!$A$3:$AI$823,21,FALSE)/100=\"-\"),1/0,VLOOKUP($A699,Economática!$A$3:$AI$823,21,FALSE)/100))","v":""},{"$f":"IF($A699=\"\",\"\",IF(OR(VLOOKUP($A699,Economática!$A$3:$AI$823,22,FALSE)/100=0,VLOOKUP($A699,Economática!$A$3:$AI$823,22,FALSE)/100=\"-\"),1/0,VLOOKUP($A699,Economática!$A$3:$AI$823,22,FALSE)/100))","v":""},{"$f":"IF($A699=\"\",\"\",IF(OR(VLOOKUP($A699,Economática!$A$3:$AI$823,23,FALSE)=0,VLOOKUP($A699,Economática!$A$3:$AI$823,23,FALSE)=\"-\"),1/0,VLOOKUP($A699,Economática!$A$3:$AI$823,23,FALSE)))","v":""},{"$f":"IF($A699=\"\",\"\",IF(OR(VLOOKUP($A699,Economática!$A$3:$AI$823,24,FALSE)=0,VLOOKUP($A699,Economática!$A$3:$AI$823,24,FALSE)=\"-\"),1/0,VLOOKUP($A699,Economática!$A$3:$AI$823,24,FALSE)))","v":""},{"$f":"IF($A699=\"\",\"\",IF(OR(VLOOKUP($A699,Economática!$A$3:$AI$823,25,FALSE)=0,VLOOKUP($A699,Economática!$A$3:$AI$823,25,FALSE)=\"-\"),1/0,VLOOKUP($A699,Economática!$A$3:$AI$823,25,FALSE)))","v":""},{"$f":"IF($A699=\"\",\"\",IF(ISERROR((F699+VLOOKUP($A699,Economática!$A$3:$AI$823,26,FALSE))/Y699),(F699+VLOOKUP($A699,Economática!$A$3:$AI$823,26,FALSE))/Y699,(F699+VLOOKUP($A699,Economática!$A$3:$AI$823,26,FALSE))/Y699))","v":""},{"$f":"IF($A699=\"\",\"\",IF(OR(-VLOOKUP($A699,Economática!$A$3:$AI$823,27,FALSE)=0,-VLOOKUP($A699,Economática!$A$3:$AI$823,27,FALSE)=\"-\"),1/0,-VLOOKUP($A699,Economática!$A$3:$AI$823,27,FALSE)))","v":""},"",{"$f":"IF($A699=\"\",\"\",IF(OR(VLOOKUP($A699,Economática!$A$3:$AI$823,28,FALSE)=0,VLOOKUP($A699,Economática!$A$3:$AI$823,28,FALSE)=\"-\"),1/0,VLOOKUP($A699,Economática!$A$3:$AI$823,28,FALSE)))","v":""},{"$f":"IF($A699=\"\",\"\",IF(OR(VLOOKUP($A699,Economática!$A$3:$AI$823,29,FALSE)=0,VLOOKUP($A699,Economática!$A$3:$AI$823,29,FALSE)=\"-\"),1/0,VLOOKUP($A699,Economática!$A$3:$AI$823,29,FALSE)))","v":""},{"$f":"IF($A699=\"\",\"\",IF(OR(VLOOKUP($A699,Economática!$A$3:$AI$823,30,FALSE)/E699=0,VLOOKUP($A699,Economática!$A$3:$AI$823,30,FALSE)/E699=\"-\",VLOOKUP($A699,Economática!$A$3:$AI$823,30,FALSE)/E699<33.33%,VLOOKUP($A699,Economática!$A$3:$AI$823,30,FALSE)/E699>100%),1/0,VLOOKUP($A699,Economática!$A$3:$AI$823,30,FALSE)/E699))","v":""},"",{"$f":"IF($A699=\"\",\"\",IF(OR(VLOOKUP($A699,Economática!$A$3:$AI$823,25,FALSE)=0,VLOOKUP($A699,Economática!$A$3:$AI$823,25,FALSE)=\"-\"),1/0,VLOOKUP($A699,Economática!$A$3:$AI$823,25,FALSE)))","v":""},{"$f":"CONCATENATE(Economática!B677,\" \",Economática!C677)","v":" "}]
[{"$f":"IF(Economática!AG678=\"\",\"\",Economática!AG678)","v":""},{"$f":"IF($A700=\"\",\"\",VLOOKUP(VLOOKUP($A700,Economática!$A$3:$AI$823,6,FALSE),Correção!$B$16:$C$36,2,FALSE))","v":""},{"$f":"IF(Economática!B678=\"\",\"\",Economática!B678)","v":""},{"$f":"IF($A700=\"\",\"\",IF(OR(VLOOKUP($A700,Economática!$A$3:$AI$823,8,FALSE)=0,VLOOKUP($A700,Economática!$A$3:$AI$823,8,FALSE)=\"-\"),1/0,VLOOKUP($A700,Economática!$A$3:$AI$823,8,FALSE)))","v":""},{"$f":"IF(A700=\"\",\"\",IF(ISERROR(VLOOKUP(A700,Correção!$B$2:$G$13,9,FALSE)),VLOOKUP($A700,Economática!$A$3:$AI$823,9,FALSE),VLOOKUP(A700,Correção!$B$2:$G$13,9,FALSE)))","v":""},{"$f":"IF($A700=\"\",\"\",Economática!G678)","v":""},{"$f":"IF($A700=\"\",\"\",IF(OR(VLOOKUP($A700,Economática!$A$3:$AI$823,10,FALSE)=0,VLOOKUP($A700,Economática!$A$3:$AI$823,10,FALSE)=\"-\"),1/0,VLOOKUP($A700,Economática!$A$3:$AI$823,10,FALSE)))","v":""},{"$f":"IF($A700=\"\",\"\",IF(OR(VLOOKUP($A700,Economática!$A$3:$AI$823,11,FALSE)=0,VLOOKUP($A700,Economática!$A$3:$AI$823,11,FALSE)=\"-\"),1/0,VLOOKUP($A700,Economática!$A$3:$AI$823,11,FALSE)))","v":""},{"$f":"IF($A700=\"\",\"\",IF(OR(VLOOKUP($A700,Economática!$A$3:$AI$823,12,FALSE)=0,VLOOKUP($A700,Economática!$A$3:$AI$823,12,FALSE)=\"-\"),1/0,VLOOKUP($A700,Economática!$A$3:$AI$823,12,FALSE)))","v":""},{"$f":"IF($A700=\"\",\"\",IF(OR(VLOOKUP($A700,Economática!$A$3:$AI$823,13,FALSE)=0,VLOOKUP($A700,Economática!$A$3:$AI$823,13,FALSE)=\"-\"),1/0,VLOOKUP($A700,Economática!$A$3:$AI$823,13,FALSE)))","v":""},{"$f":"IF($A700=\"\",\"\",IF(OR(VLOOKUP($A700,Economática!$A$3:$AI$823,14,FALSE)=0,VLOOKUP($A700,Economática!$A$3:$AI$823,14,FALSE)=\"-\"),1/0,VLOOKUP($A700,Economática!$A$3:$AI$823,14,FALSE)))","v":""},{"$f":"IF($A700=\"\",\"\",IF(OR(VLOOKUP($A700,Economática!$A$3:$AI$823,15,FALSE)=0,VLOOKUP($A700,Economática!$A$3:$AI$823,15,FALSE)=\"-\"),1/0,VLOOKUP($A700,Economática!$A$3:$AI$823,15,FALSE)))","v":""},{"$f":"IF($A700=\"\",\"\",IF(OR(VLOOKUP($A700,Economática!$A$3:$AI$823,16,FALSE)=0,VLOOKUP($A700,Economática!$A$3:$AI$823,16,FALSE)=\"-\"),1/0,VLOOKUP($A700,Economática!$A$3:$AI$823,16,FALSE)))","v":""},{"$f":"IF($A700=\"\",\"\",IF(OR(VLOOKUP($A700,Economática!$A$3:$AI$823,17,FALSE)=0,VLOOKUP($A700,Economática!$A$3:$AI$823,17,FALSE)=\"-\"),1/0,VLOOKUP($A700,Economática!$A$3:$AI$823,17,FALSE)))","v":""},{"$f":"IF($A700=\"\",\"\",IF(OR(VLOOKUP($A700,Economática!$A$3:$AI$823,18,FALSE)=0,VLOOKUP($A700,Economática!$A$3:$AI$823,18,FALSE)=\"-\"),1/0,VLOOKUP($A700,Economática!$A$3:$AI$823,18,FALSE)))","v":""},{"$f":"IF($A700=\"\",\"\",IF(OR(VLOOKUP($A700,Economática!$A$3:$AI$823,19,FALSE)=0,VLOOKUP($A700,Economática!$A$3:$AI$823,19,FALSE)=\"-\"),1/0,VLOOKUP($A700,Economática!$A$3:$AI$823,19,FALSE)))","v":""},{"$f":"IF($A700=\"\",\"\",VLOOKUP($A700,Economática!$A$3:$AI$823,20,FALSE)/E700)","v":""},"","","",{"$f":"IF($A700=\"\",\"\",IF(OR(VLOOKUP($A700,Economática!$A$3:$AI$823,21,FALSE)/100=0,VLOOKUP($A700,Economática!$A$3:$AI$823,21,FALSE)/100=\"-\"),1/0,VLOOKUP($A700,Economática!$A$3:$AI$823,21,FALSE)/100))","v":""},{"$f":"IF($A700=\"\",\"\",IF(OR(VLOOKUP($A700,Economática!$A$3:$AI$823,22,FALSE)/100=0,VLOOKUP($A700,Economática!$A$3:$AI$823,22,FALSE)/100=\"-\"),1/0,VLOOKUP($A700,Economática!$A$3:$AI$823,22,FALSE)/100))","v":""},{"$f":"IF($A700=\"\",\"\",IF(OR(VLOOKUP($A700,Economática!$A$3:$AI$823,23,FALSE)=0,VLOOKUP($A700,Economática!$A$3:$AI$823,23,FALSE)=\"-\"),1/0,VLOOKUP($A700,Economática!$A$3:$AI$823,23,FALSE)))","v":""},{"$f":"IF($A700=\"\",\"\",IF(OR(VLOOKUP($A700,Economática!$A$3:$AI$823,24,FALSE)=0,VLOOKUP($A700,Economática!$A$3:$AI$823,24,FALSE)=\"-\"),1/0,VLOOKUP($A700,Economática!$A$3:$AI$823,24,FALSE)))","v":""},{"$f":"IF($A700=\"\",\"\",IF(OR(VLOOKUP($A700,Economática!$A$3:$AI$823,25,FALSE)=0,VLOOKUP($A700,Economática!$A$3:$AI$823,25,FALSE)=\"-\"),1/0,VLOOKUP($A700,Economática!$A$3:$AI$823,25,FALSE)))","v":""},{"$f":"IF($A700=\"\",\"\",IF(ISERROR((F700+VLOOKUP($A700,Economática!$A$3:$AI$823,26,FALSE))/Y700),(F700+VLOOKUP($A700,Economática!$A$3:$AI$823,26,FALSE))/Y700,(F700+VLOOKUP($A700,Economática!$A$3:$AI$823,26,FALSE))/Y700))","v":""},{"$f":"IF($A700=\"\",\"\",IF(OR(-VLOOKUP($A700,Economática!$A$3:$AI$823,27,FALSE)=0,-VLOOKUP($A700,Economática!$A$3:$AI$823,27,FALSE)=\"-\"),1/0,-VLOOKUP($A700,Economática!$A$3:$AI$823,27,FALSE)))","v":""},"",{"$f":"IF($A700=\"\",\"\",IF(OR(VLOOKUP($A700,Economática!$A$3:$AI$823,28,FALSE)=0,VLOOKUP($A700,Economática!$A$3:$AI$823,28,FALSE)=\"-\"),1/0,VLOOKUP($A700,Economática!$A$3:$AI$823,28,FALSE)))","v":""},{"$f":"IF($A700=\"\",\"\",IF(OR(VLOOKUP($A700,Economática!$A$3:$AI$823,29,FALSE)=0,VLOOKUP($A700,Economática!$A$3:$AI$823,29,FALSE)=\"-\"),1/0,VLOOKUP($A700,Economática!$A$3:$AI$823,29,FALSE)))","v":""},{"$f":"IF($A700=\"\",\"\",IF(OR(VLOOKUP($A700,Economática!$A$3:$AI$823,30,FALSE)/E700=0,VLOOKUP($A700,Economática!$A$3:$AI$823,30,FALSE)/E700=\"-\",VLOOKUP($A700,Economática!$A$3:$AI$823,30,FALSE)/E700<33.33%,VLOOKUP($A700,Economática!$A$3:$AI$823,30,FALSE)/E700>100%),1/0,VLOOKUP($A700,Economática!$A$3:$AI$823,30,FALSE)/E700))","v":""},"",{"$f":"IF($A700=\"\",\"\",IF(OR(VLOOKUP($A700,Economática!$A$3:$AI$823,25,FALSE)=0,VLOOKUP($A700,Economática!$A$3:$AI$823,25,FALSE)=\"-\"),1/0,VLOOKUP($A700,Economática!$A$3:$AI$823,25,FALSE)))","v":""},{"$f":"CONCATENATE(Economática!B678,\" \",Economática!C678)","v":" "}]
[{"$f":"IF(Economática!AG679=\"\",\"\",Economática!AG679)","v":""},{"$f":"IF($A701=\"\",\"\",VLOOKUP(VLOOKUP($A701,Economática!$A$3:$AI$823,6,FALSE),Correção!$B$16:$C$36,2,FALSE))","v":""},{"$f":"IF(Economática!B679=\"\",\"\",Economática!B679)","v":""},{"$f":"IF($A701=\"\",\"\",IF(OR(VLOOKUP($A701,Economática!$A$3:$AI$823,8,FALSE)=0,VLOOKUP($A701,Economática!$A$3:$AI$823,8,FALSE)=\"-\"),1/0,VLOOKUP($A701,Economática!$A$3:$AI$823,8,FALSE)))","v":""},{"$f":"IF(A701=\"\",\"\",IF(ISERROR(VLOOKUP(A701,Correção!$B$2:$G$13,9,FALSE)),VLOOKUP($A701,Economática!$A$3:$AI$823,9,FALSE),VLOOKUP(A701,Correção!$B$2:$G$13,9,FALSE)))","v":""},{"$f":"IF($A701=\"\",\"\",Economática!G679)","v":""},{"$f":"IF($A701=\"\",\"\",IF(OR(VLOOKUP($A701,Economática!$A$3:$AI$823,10,FALSE)=0,VLOOKUP($A701,Economática!$A$3:$AI$823,10,FALSE)=\"-\"),1/0,VLOOKUP($A701,Economática!$A$3:$AI$823,10,FALSE)))","v":""},{"$f":"IF($A701=\"\",\"\",IF(OR(VLOOKUP($A701,Economática!$A$3:$AI$823,11,FALSE)=0,VLOOKUP($A701,Economática!$A$3:$AI$823,11,FALSE)=\"-\"),1/0,VLOOKUP($A701,Economática!$A$3:$AI$823,11,FALSE)))","v":""},{"$f":"IF($A701=\"\",\"\",IF(OR(VLOOKUP($A701,Economática!$A$3:$AI$823,12,FALSE)=0,VLOOKUP($A701,Economática!$A$3:$AI$823,12,FALSE)=\"-\"),1/0,VLOOKUP($A701,Economática!$A$3:$AI$823,12,FALSE)))","v":""},{"$f":"IF($A701=\"\",\"\",IF(OR(VLOOKUP($A701,Economática!$A$3:$AI$823,13,FALSE)=0,VLOOKUP($A701,Economática!$A$3:$AI$823,13,FALSE)=\"-\"),1/0,VLOOKUP($A701,Economática!$A$3:$AI$823,13,FALSE)))","v":""},{"$f":"IF($A701=\"\",\"\",IF(OR(VLOOKUP($A701,Economática!$A$3:$AI$823,14,FALSE)=0,VLOOKUP($A701,Economática!$A$3:$AI$823,14,FALSE)=\"-\"),1/0,VLOOKUP($A701,Economática!$A$3:$AI$823,14,FALSE)))","v":""},{"$f":"IF($A701=\"\",\"\",IF(OR(VLOOKUP($A701,Economática!$A$3:$AI$823,15,FALSE)=0,VLOOKUP($A701,Economática!$A$3:$AI$823,15,FALSE)=\"-\"),1/0,VLOOKUP($A701,Economática!$A$3:$AI$823,15,FALSE)))","v":""},{"$f":"IF($A701=\"\",\"\",IF(OR(VLOOKUP($A701,Economática!$A$3:$AI$823,16,FALSE)=0,VLOOKUP($A701,Economática!$A$3:$AI$823,16,FALSE)=\"-\"),1/0,VLOOKUP($A701,Economática!$A$3:$AI$823,16,FALSE)))","v":""},{"$f":"IF($A701=\"\",\"\",IF(OR(VLOOKUP($A701,Economática!$A$3:$AI$823,17,FALSE)=0,VLOOKUP($A701,Economática!$A$3:$AI$823,17,FALSE)=\"-\"),1/0,VLOOKUP($A701,Economática!$A$3:$AI$823,17,FALSE)))","v":""},{"$f":"IF($A701=\"\",\"\",IF(OR(VLOOKUP($A701,Economática!$A$3:$AI$823,18,FALSE)=0,VLOOKUP($A701,Economática!$A$3:$AI$823,18,FALSE)=\"-\"),1/0,VLOOKUP($A701,Economática!$A$3:$AI$823,18,FALSE)))","v":""},{"$f":"IF($A701=\"\",\"\",IF(OR(VLOOKUP($A701,Economática!$A$3:$AI$823,19,FALSE)=0,VLOOKUP($A701,Economática!$A$3:$AI$823,19,FALSE)=\"-\"),1/0,VLOOKUP($A701,Economática!$A$3:$AI$823,19,FALSE)))","v":""},{"$f":"IF($A701=\"\",\"\",VLOOKUP($A701,Economática!$A$3:$AI$823,20,FALSE)/E701)","v":""},"","","",{"$f":"IF($A701=\"\",\"\",IF(OR(VLOOKUP($A701,Economática!$A$3:$AI$823,21,FALSE)/100=0,VLOOKUP($A701,Economática!$A$3:$AI$823,21,FALSE)/100=\"-\"),1/0,VLOOKUP($A701,Economática!$A$3:$AI$823,21,FALSE)/100))","v":""},{"$f":"IF($A701=\"\",\"\",IF(OR(VLOOKUP($A701,Economática!$A$3:$AI$823,22,FALSE)/100=0,VLOOKUP($A701,Economática!$A$3:$AI$823,22,FALSE)/100=\"-\"),1/0,VLOOKUP($A701,Economática!$A$3:$AI$823,22,FALSE)/100))","v":""},{"$f":"IF($A701=\"\",\"\",IF(OR(VLOOKUP($A701,Economática!$A$3:$AI$823,23,FALSE)=0,VLOOKUP($A701,Economática!$A$3:$AI$823,23,FALSE)=\"-\"),1/0,VLOOKUP($A701,Economática!$A$3:$AI$823,23,FALSE)))","v":""},{"$f":"IF($A701=\"\",\"\",IF(OR(VLOOKUP($A701,Economática!$A$3:$AI$823,24,FALSE)=0,VLOOKUP($A701,Economática!$A$3:$AI$823,24,FALSE)=\"-\"),1/0,VLOOKUP($A701,Economática!$A$3:$AI$823,24,FALSE)))","v":""},{"$f":"IF($A701=\"\",\"\",IF(OR(VLOOKUP($A701,Economática!$A$3:$AI$823,25,FALSE)=0,VLOOKUP($A701,Economática!$A$3:$AI$823,25,FALSE)=\"-\"),1/0,VLOOKUP($A701,Economática!$A$3:$AI$823,25,FALSE)))","v":""},{"$f":"IF($A701=\"\",\"\",IF(ISERROR((F701+VLOOKUP($A701,Economática!$A$3:$AI$823,26,FALSE))/Y701),(F701+VLOOKUP($A701,Economática!$A$3:$AI$823,26,FALSE))/Y701,(F701+VLOOKUP($A701,Economática!$A$3:$AI$823,26,FALSE))/Y701))","v":""},{"$f":"IF($A701=\"\",\"\",IF(OR(-VLOOKUP($A701,Economática!$A$3:$AI$823,27,FALSE)=0,-VLOOKUP($A701,Economática!$A$3:$AI$823,27,FALSE)=\"-\"),1/0,-VLOOKUP($A701,Economática!$A$3:$AI$823,27,FALSE)))","v":""},"",{"$f":"IF($A701=\"\",\"\",IF(OR(VLOOKUP($A701,Economática!$A$3:$AI$823,28,FALSE)=0,VLOOKUP($A701,Economática!$A$3:$AI$823,28,FALSE)=\"-\"),1/0,VLOOKUP($A701,Economática!$A$3:$AI$823,28,FALSE)))","v":""},{"$f":"IF($A701=\"\",\"\",IF(OR(VLOOKUP($A701,Economática!$A$3:$AI$823,29,FALSE)=0,VLOOKUP($A701,Economática!$A$3:$AI$823,29,FALSE)=\"-\"),1/0,VLOOKUP($A701,Economática!$A$3:$AI$823,29,FALSE)))","v":""},{"$f":"IF($A701=\"\",\"\",IF(OR(VLOOKUP($A701,Economática!$A$3:$AI$823,30,FALSE)/E701=0,VLOOKUP($A701,Economática!$A$3:$AI$823,30,FALSE)/E701=\"-\",VLOOKUP($A701,Economática!$A$3:$AI$823,30,FALSE)/E701<33.33%,VLOOKUP($A701,Economática!$A$3:$AI$823,30,FALSE)/E701>100%),1/0,VLOOKUP($A701,Economática!$A$3:$AI$823,30,FALSE)/E701))","v":""},"",{"$f":"IF($A701=\"\",\"\",IF(OR(VLOOKUP($A701,Economática!$A$3:$AI$823,25,FALSE)=0,VLOOKUP($A701,Economática!$A$3:$AI$823,25,FALSE)=\"-\"),1/0,VLOOKUP($A701,Economática!$A$3:$AI$823,25,FALSE)))","v":""},{"$f":"CONCATENATE(Economática!B679,\" \",Economática!C679)","v":" "}]
[{"$f":"IF(Economática!AG680=\"\",\"\",Economática!AG680)","v":""},{"$f":"IF($A702=\"\",\"\",VLOOKUP(VLOOKUP($A702,Economática!$A$3:$AI$823,6,FALSE),Correção!$B$16:$C$36,2,FALSE))","v":""},{"$f":"IF(Economática!B680=\"\",\"\",Economática!B680)","v":""},{"$f":"IF($A702=\"\",\"\",IF(OR(VLOOKUP($A702,Economática!$A$3:$AI$823,8,FALSE)=0,VLOOKUP($A702,Economática!$A$3:$AI$823,8,FALSE)=\"-\"),1/0,VLOOKUP($A702,Economática!$A$3:$AI$823,8,FALSE)))","v":""},{"$f":"IF(A702=\"\",\"\",IF(ISERROR(VLOOKUP(A702,Correção!$B$2:$G$13,9,FALSE)),VLOOKUP($A702,Economática!$A$3:$AI$823,9,FALSE),VLOOKUP(A702,Correção!$B$2:$G$13,9,FALSE)))","v":""},{"$f":"IF($A702=\"\",\"\",Economática!G680)","v":""},{"$f":"IF($A702=\"\",\"\",IF(OR(VLOOKUP($A702,Economática!$A$3:$AI$823,10,FALSE)=0,VLOOKUP($A702,Economática!$A$3:$AI$823,10,FALSE)=\"-\"),1/0,VLOOKUP($A702,Economática!$A$3:$AI$823,10,FALSE)))","v":""},{"$f":"IF($A702=\"\",\"\",IF(OR(VLOOKUP($A702,Economática!$A$3:$AI$823,11,FALSE)=0,VLOOKUP($A702,Economática!$A$3:$AI$823,11,FALSE)=\"-\"),1/0,VLOOKUP($A702,Economática!$A$3:$AI$823,11,FALSE)))","v":""},{"$f":"IF($A702=\"\",\"\",IF(OR(VLOOKUP($A702,Economática!$A$3:$AI$823,12,FALSE)=0,VLOOKUP($A702,Economática!$A$3:$AI$823,12,FALSE)=\"-\"),1/0,VLOOKUP($A702,Economática!$A$3:$AI$823,12,FALSE)))","v":""},{"$f":"IF($A702=\"\",\"\",IF(OR(VLOOKUP($A702,Economática!$A$3:$AI$823,13,FALSE)=0,VLOOKUP($A702,Economática!$A$3:$AI$823,13,FALSE)=\"-\"),1/0,VLOOKUP($A702,Economática!$A$3:$AI$823,13,FALSE)))","v":""},{"$f":"IF($A702=\"\",\"\",IF(OR(VLOOKUP($A702,Economática!$A$3:$AI$823,14,FALSE)=0,VLOOKUP($A702,Economática!$A$3:$AI$823,14,FALSE)=\"-\"),1/0,VLOOKUP($A702,Economática!$A$3:$AI$823,14,FALSE)))","v":""},{"$f":"IF($A702=\"\",\"\",IF(OR(VLOOKUP($A702,Economática!$A$3:$AI$823,15,FALSE)=0,VLOOKUP($A702,Economática!$A$3:$AI$823,15,FALSE)=\"-\"),1/0,VLOOKUP($A702,Economática!$A$3:$AI$823,15,FALSE)))","v":""},{"$f":"IF($A702=\"\",\"\",IF(OR(VLOOKUP($A702,Economática!$A$3:$AI$823,16,FALSE)=0,VLOOKUP($A702,Economática!$A$3:$AI$823,16,FALSE)=\"-\"),1/0,VLOOKUP($A702,Economática!$A$3:$AI$823,16,FALSE)))","v":""},{"$f":"IF($A702=\"\",\"\",IF(OR(VLOOKUP($A702,Economática!$A$3:$AI$823,17,FALSE)=0,VLOOKUP($A702,Economática!$A$3:$AI$823,17,FALSE)=\"-\"),1/0,VLOOKUP($A702,Economática!$A$3:$AI$823,17,FALSE)))","v":""},{"$f":"IF($A702=\"\",\"\",IF(OR(VLOOKUP($A702,Economática!$A$3:$AI$823,18,FALSE)=0,VLOOKUP($A702,Economática!$A$3:$AI$823,18,FALSE)=\"-\"),1/0,VLOOKUP($A702,Economática!$A$3:$AI$823,18,FALSE)))","v":""},{"$f":"IF($A702=\"\",\"\",IF(OR(VLOOKUP($A702,Economática!$A$3:$AI$823,19,FALSE)=0,VLOOKUP($A702,Economática!$A$3:$AI$823,19,FALSE)=\"-\"),1/0,VLOOKUP($A702,Economática!$A$3:$AI$823,19,FALSE)))","v":""},{"$f":"IF($A702=\"\",\"\",VLOOKUP($A702,Economática!$A$3:$AI$823,20,FALSE)/E702)","v":""},"","","",{"$f":"IF($A702=\"\",\"\",IF(OR(VLOOKUP($A702,Economática!$A$3:$AI$823,21,FALSE)/100=0,VLOOKUP($A702,Economática!$A$3:$AI$823,21,FALSE)/100=\"-\"),1/0,VLOOKUP($A702,Economática!$A$3:$AI$823,21,FALSE)/100))","v":""},{"$f":"IF($A702=\"\",\"\",IF(OR(VLOOKUP($A702,Economática!$A$3:$AI$823,22,FALSE)/100=0,VLOOKUP($A702,Economática!$A$3:$AI$823,22,FALSE)/100=\"-\"),1/0,VLOOKUP($A702,Economática!$A$3:$AI$823,22,FALSE)/100))","v":""},{"$f":"IF($A702=\"\",\"\",IF(OR(VLOOKUP($A702,Economática!$A$3:$AI$823,23,FALSE)=0,VLOOKUP($A702,Economática!$A$3:$AI$823,23,FALSE)=\"-\"),1/0,VLOOKUP($A702,Economática!$A$3:$AI$823,23,FALSE)))","v":""},{"$f":"IF($A702=\"\",\"\",IF(OR(VLOOKUP($A702,Economática!$A$3:$AI$823,24,FALSE)=0,VLOOKUP($A702,Economática!$A$3:$AI$823,24,FALSE)=\"-\"),1/0,VLOOKUP($A702,Economática!$A$3:$AI$823,24,FALSE)))","v":""},{"$f":"IF($A702=\"\",\"\",IF(OR(VLOOKUP($A702,Economática!$A$3:$AI$823,25,FALSE)=0,VLOOKUP($A702,Economática!$A$3:$AI$823,25,FALSE)=\"-\"),1/0,VLOOKUP($A702,Economática!$A$3:$AI$823,25,FALSE)))","v":""},{"$f":"IF($A702=\"\",\"\",IF(ISERROR((F702+VLOOKUP($A702,Economática!$A$3:$AI$823,26,FALSE))/Y702),(F702+VLOOKUP($A702,Economática!$A$3:$AI$823,26,FALSE))/Y702,(F702+VLOOKUP($A702,Economática!$A$3:$AI$823,26,FALSE))/Y702))","v":""},{"$f":"IF($A702=\"\",\"\",IF(OR(-VLOOKUP($A702,Economática!$A$3:$AI$823,27,FALSE)=0,-VLOOKUP($A702,Economática!$A$3:$AI$823,27,FALSE)=\"-\"),1/0,-VLOOKUP($A702,Economática!$A$3:$AI$823,27,FALSE)))","v":""},"",{"$f":"IF($A702=\"\",\"\",IF(OR(VLOOKUP($A702,Economática!$A$3:$AI$823,28,FALSE)=0,VLOOKUP($A702,Economática!$A$3:$AI$823,28,FALSE)=\"-\"),1/0,VLOOKUP($A702,Economática!$A$3:$AI$823,28,FALSE)))","v":""},{"$f":"IF($A702=\"\",\"\",IF(OR(VLOOKUP($A702,Economática!$A$3:$AI$823,29,FALSE)=0,VLOOKUP($A702,Economática!$A$3:$AI$823,29,FALSE)=\"-\"),1/0,VLOOKUP($A702,Economática!$A$3:$AI$823,29,FALSE)))","v":""},{"$f":"IF($A702=\"\",\"\",IF(OR(VLOOKUP($A702,Economática!$A$3:$AI$823,30,FALSE)/E702=0,VLOOKUP($A702,Economática!$A$3:$AI$823,30,FALSE)/E702=\"-\",VLOOKUP($A702,Economática!$A$3:$AI$823,30,FALSE)/E702<33.33%,VLOOKUP($A702,Economática!$A$3:$AI$823,30,FALSE)/E702>100%),1/0,VLOOKUP($A702,Economática!$A$3:$AI$823,30,FALSE)/E702))","v":""},"",{"$f":"IF($A702=\"\",\"\",IF(OR(VLOOKUP($A702,Economática!$A$3:$AI$823,25,FALSE)=0,VLOOKUP($A702,Economática!$A$3:$AI$823,25,FALSE)=\"-\"),1/0,VLOOKUP($A702,Economática!$A$3:$AI$823,25,FALSE)))","v":""},{"$f":"CONCATENATE(Economática!B680,\" \",Economática!C680)","v":" "}]
[{"$f":"IF(Economática!AG681=\"\",\"\",Economática!AG681)","v":""},{"$f":"IF($A703=\"\",\"\",VLOOKUP(VLOOKUP($A703,Economática!$A$3:$AI$823,6,FALSE),Correção!$B$16:$C$36,2,FALSE))","v":""},{"$f":"IF(Economática!B681=\"\",\"\",Economática!B681)","v":""},{"$f":"IF($A703=\"\",\"\",IF(OR(VLOOKUP($A703,Economática!$A$3:$AI$823,8,FALSE)=0,VLOOKUP($A703,Economática!$A$3:$AI$823,8,FALSE)=\"-\"),1/0,VLOOKUP($A703,Economática!$A$3:$AI$823,8,FALSE)))","v":""},{"$f":"IF(A703=\"\",\"\",IF(ISERROR(VLOOKUP(A703,Correção!$B$2:$G$13,9,FALSE)),VLOOKUP($A703,Economática!$A$3:$AI$823,9,FALSE),VLOOKUP(A703,Correção!$B$2:$G$13,9,FALSE)))","v":""},{"$f":"IF($A703=\"\",\"\",Economática!G681)","v":""},{"$f":"IF($A703=\"\",\"\",IF(OR(VLOOKUP($A703,Economática!$A$3:$AI$823,10,FALSE)=0,VLOOKUP($A703,Economática!$A$3:$AI$823,10,FALSE)=\"-\"),1/0,VLOOKUP($A703,Economática!$A$3:$AI$823,10,FALSE)))","v":""},{"$f":"IF($A703=\"\",\"\",IF(OR(VLOOKUP($A703,Economática!$A$3:$AI$823,11,FALSE)=0,VLOOKUP($A703,Economática!$A$3:$AI$823,11,FALSE)=\"-\"),1/0,VLOOKUP($A703,Economática!$A$3:$AI$823,11,FALSE)))","v":""},{"$f":"IF($A703=\"\",\"\",IF(OR(VLOOKUP($A703,Economática!$A$3:$AI$823,12,FALSE)=0,VLOOKUP($A703,Economática!$A$3:$AI$823,12,FALSE)=\"-\"),1/0,VLOOKUP($A703,Economática!$A$3:$AI$823,12,FALSE)))","v":""},{"$f":"IF($A703=\"\",\"\",IF(OR(VLOOKUP($A703,Economática!$A$3:$AI$823,13,FALSE)=0,VLOOKUP($A703,Economática!$A$3:$AI$823,13,FALSE)=\"-\"),1/0,VLOOKUP($A703,Economática!$A$3:$AI$823,13,FALSE)))","v":""},{"$f":"IF($A703=\"\",\"\",IF(OR(VLOOKUP($A703,Economática!$A$3:$AI$823,14,FALSE)=0,VLOOKUP($A703,Economática!$A$3:$AI$823,14,FALSE)=\"-\"),1/0,VLOOKUP($A703,Economática!$A$3:$AI$823,14,FALSE)))","v":""},{"$f":"IF($A703=\"\",\"\",IF(OR(VLOOKUP($A703,Economática!$A$3:$AI$823,15,FALSE)=0,VLOOKUP($A703,Economática!$A$3:$AI$823,15,FALSE)=\"-\"),1/0,VLOOKUP($A703,Economática!$A$3:$AI$823,15,FALSE)))","v":""},{"$f":"IF($A703=\"\",\"\",IF(OR(VLOOKUP($A703,Economática!$A$3:$AI$823,16,FALSE)=0,VLOOKUP($A703,Economática!$A$3:$AI$823,16,FALSE)=\"-\"),1/0,VLOOKUP($A703,Economática!$A$3:$AI$823,16,FALSE)))","v":""},{"$f":"IF($A703=\"\",\"\",IF(OR(VLOOKUP($A703,Economática!$A$3:$AI$823,17,FALSE)=0,VLOOKUP($A703,Economática!$A$3:$AI$823,17,FALSE)=\"-\"),1/0,VLOOKUP($A703,Economática!$A$3:$AI$823,17,FALSE)))","v":""},{"$f":"IF($A703=\"\",\"\",IF(OR(VLOOKUP($A703,Economática!$A$3:$AI$823,18,FALSE)=0,VLOOKUP($A703,Economática!$A$3:$AI$823,18,FALSE)=\"-\"),1/0,VLOOKUP($A703,Economática!$A$3:$AI$823,18,FALSE)))","v":""},{"$f":"IF($A703=\"\",\"\",IF(OR(VLOOKUP($A703,Economática!$A$3:$AI$823,19,FALSE)=0,VLOOKUP($A703,Economática!$A$3:$AI$823,19,FALSE)=\"-\"),1/0,VLOOKUP($A703,Economática!$A$3:$AI$823,19,FALSE)))","v":""},{"$f":"IF($A703=\"\",\"\",VLOOKUP($A703,Economática!$A$3:$AI$823,20,FALSE)/E703)","v":""},"","","",{"$f":"IF($A703=\"\",\"\",IF(OR(VLOOKUP($A703,Economática!$A$3:$AI$823,21,FALSE)/100=0,VLOOKUP($A703,Economática!$A$3:$AI$823,21,FALSE)/100=\"-\"),1/0,VLOOKUP($A703,Economática!$A$3:$AI$823,21,FALSE)/100))","v":""},{"$f":"IF($A703=\"\",\"\",IF(OR(VLOOKUP($A703,Economática!$A$3:$AI$823,22,FALSE)/100=0,VLOOKUP($A703,Economática!$A$3:$AI$823,22,FALSE)/100=\"-\"),1/0,VLOOKUP($A703,Economática!$A$3:$AI$823,22,FALSE)/100))","v":""},{"$f":"IF($A703=\"\",\"\",IF(OR(VLOOKUP($A703,Economática!$A$3:$AI$823,23,FALSE)=0,VLOOKUP($A703,Economática!$A$3:$AI$823,23,FALSE)=\"-\"),1/0,VLOOKUP($A703,Economática!$A$3:$AI$823,23,FALSE)))","v":""},{"$f":"IF($A703=\"\",\"\",IF(OR(VLOOKUP($A703,Economática!$A$3:$AI$823,24,FALSE)=0,VLOOKUP($A703,Economática!$A$3:$AI$823,24,FALSE)=\"-\"),1/0,VLOOKUP($A703,Economática!$A$3:$AI$823,24,FALSE)))","v":""},{"$f":"IF($A703=\"\",\"\",IF(OR(VLOOKUP($A703,Economática!$A$3:$AI$823,25,FALSE)=0,VLOOKUP($A703,Economática!$A$3:$AI$823,25,FALSE)=\"-\"),1/0,VLOOKUP($A703,Economática!$A$3:$AI$823,25,FALSE)))","v":""},{"$f":"IF($A703=\"\",\"\",IF(ISERROR((F703+VLOOKUP($A703,Economática!$A$3:$AI$823,26,FALSE))/Y703),(F703+VLOOKUP($A703,Economática!$A$3:$AI$823,26,FALSE))/Y703,(F703+VLOOKUP($A703,Economática!$A$3:$AI$823,26,FALSE))/Y703))","v":""},{"$f":"IF($A703=\"\",\"\",IF(OR(-VLOOKUP($A703,Economática!$A$3:$AI$823,27,FALSE)=0,-VLOOKUP($A703,Economática!$A$3:$AI$823,27,FALSE)=\"-\"),1/0,-VLOOKUP($A703,Economática!$A$3:$AI$823,27,FALSE)))","v":""},"",{"$f":"IF($A703=\"\",\"\",IF(OR(VLOOKUP($A703,Economática!$A$3:$AI$823,28,FALSE)=0,VLOOKUP($A703,Economática!$A$3:$AI$823,28,FALSE)=\"-\"),1/0,VLOOKUP($A703,Economática!$A$3:$AI$823,28,FALSE)))","v":""},{"$f":"IF($A703=\"\",\"\",IF(OR(VLOOKUP($A703,Economática!$A$3:$AI$823,29,FALSE)=0,VLOOKUP($A703,Economática!$A$3:$AI$823,29,FALSE)=\"-\"),1/0,VLOOKUP($A703,Economática!$A$3:$AI$823,29,FALSE)))","v":""},{"$f":"IF($A703=\"\",\"\",IF(OR(VLOOKUP($A703,Economática!$A$3:$AI$823,30,FALSE)/E703=0,VLOOKUP($A703,Economática!$A$3:$AI$823,30,FALSE)/E703=\"-\",VLOOKUP($A703,Economática!$A$3:$AI$823,30,FALSE)/E703<33.33%,VLOOKUP($A703,Economática!$A$3:$AI$823,30,FALSE)/E703>100%),1/0,VLOOKUP($A703,Economática!$A$3:$AI$823,30,FALSE)/E703))","v":""},"",{"$f":"IF($A703=\"\",\"\",IF(OR(VLOOKUP($A703,Economática!$A$3:$AI$823,25,FALSE)=0,VLOOKUP($A703,Economática!$A$3:$AI$823,25,FALSE)=\"-\"),1/0,VLOOKUP($A703,Economática!$A$3:$AI$823,25,FALSE)))","v":""},{"$f":"CONCATENATE(Economática!B681,\" \",Economática!C681)","v":" "}]
[{"$f":"IF(Economática!AG682=\"\",\"\",Economática!AG682)","v":""},{"$f":"IF($A704=\"\",\"\",VLOOKUP(VLOOKUP($A704,Economática!$A$3:$AI$823,6,FALSE),Correção!$B$16:$C$36,2,FALSE))","v":""},{"$f":"IF(Economática!B682=\"\",\"\",Economática!B682)","v":""},{"$f":"IF($A704=\"\",\"\",IF(OR(VLOOKUP($A704,Economática!$A$3:$AI$823,8,FALSE)=0,VLOOKUP($A704,Economática!$A$3:$AI$823,8,FALSE)=\"-\"),1/0,VLOOKUP($A704,Economática!$A$3:$AI$823,8,FALSE)))","v":""},{"$f":"IF(A704=\"\",\"\",IF(ISERROR(VLOOKUP(A704,Correção!$B$2:$G$13,9,FALSE)),VLOOKUP($A704,Economática!$A$3:$AI$823,9,FALSE),VLOOKUP(A704,Correção!$B$2:$G$13,9,FALSE)))","v":""},{"$f":"IF($A704=\"\",\"\",Economática!G682)","v":""},{"$f":"IF($A704=\"\",\"\",IF(OR(VLOOKUP($A704,Economática!$A$3:$AI$823,10,FALSE)=0,VLOOKUP($A704,Economática!$A$3:$AI$823,10,FALSE)=\"-\"),1/0,VLOOKUP($A704,Economática!$A$3:$AI$823,10,FALSE)))","v":""},{"$f":"IF($A704=\"\",\"\",IF(OR(VLOOKUP($A704,Economática!$A$3:$AI$823,11,FALSE)=0,VLOOKUP($A704,Economática!$A$3:$AI$823,11,FALSE)=\"-\"),1/0,VLOOKUP($A704,Economática!$A$3:$AI$823,11,FALSE)))","v":""},{"$f":"IF($A704=\"\",\"\",IF(OR(VLOOKUP($A704,Economática!$A$3:$AI$823,12,FALSE)=0,VLOOKUP($A704,Economática!$A$3:$AI$823,12,FALSE)=\"-\"),1/0,VLOOKUP($A704,Economática!$A$3:$AI$823,12,FALSE)))","v":""},{"$f":"IF($A704=\"\",\"\",IF(OR(VLOOKUP($A704,Economática!$A$3:$AI$823,13,FALSE)=0,VLOOKUP($A704,Economática!$A$3:$AI$823,13,FALSE)=\"-\"),1/0,VLOOKUP($A704,Economática!$A$3:$AI$823,13,FALSE)))","v":""},{"$f":"IF($A704=\"\",\"\",IF(OR(VLOOKUP($A704,Economática!$A$3:$AI$823,14,FALSE)=0,VLOOKUP($A704,Economática!$A$3:$AI$823,14,FALSE)=\"-\"),1/0,VLOOKUP($A704,Economática!$A$3:$AI$823,14,FALSE)))","v":""},{"$f":"IF($A704=\"\",\"\",IF(OR(VLOOKUP($A704,Economática!$A$3:$AI$823,15,FALSE)=0,VLOOKUP($A704,Economática!$A$3:$AI$823,15,FALSE)=\"-\"),1/0,VLOOKUP($A704,Economática!$A$3:$AI$823,15,FALSE)))","v":""},{"$f":"IF($A704=\"\",\"\",IF(OR(VLOOKUP($A704,Economática!$A$3:$AI$823,16,FALSE)=0,VLOOKUP($A704,Economática!$A$3:$AI$823,16,FALSE)=\"-\"),1/0,VLOOKUP($A704,Economática!$A$3:$AI$823,16,FALSE)))","v":""},{"$f":"IF($A704=\"\",\"\",IF(OR(VLOOKUP($A704,Economática!$A$3:$AI$823,17,FALSE)=0,VLOOKUP($A704,Economática!$A$3:$AI$823,17,FALSE)=\"-\"),1/0,VLOOKUP($A704,Economática!$A$3:$AI$823,17,FALSE)))","v":""},{"$f":"IF($A704=\"\",\"\",IF(OR(VLOOKUP($A704,Economática!$A$3:$AI$823,18,FALSE)=0,VLOOKUP($A704,Economática!$A$3:$AI$823,18,FALSE)=\"-\"),1/0,VLOOKUP($A704,Economática!$A$3:$AI$823,18,FALSE)))","v":""},{"$f":"IF($A704=\"\",\"\",IF(OR(VLOOKUP($A704,Economática!$A$3:$AI$823,19,FALSE)=0,VLOOKUP($A704,Economática!$A$3:$AI$823,19,FALSE)=\"-\"),1/0,VLOOKUP($A704,Economática!$A$3:$AI$823,19,FALSE)))","v":""},{"$f":"IF($A704=\"\",\"\",VLOOKUP($A704,Economática!$A$3:$AI$823,20,FALSE)/E704)","v":""},"","","",{"$f":"IF($A704=\"\",\"\",IF(OR(VLOOKUP($A704,Economática!$A$3:$AI$823,21,FALSE)/100=0,VLOOKUP($A704,Economática!$A$3:$AI$823,21,FALSE)/100=\"-\"),1/0,VLOOKUP($A704,Economática!$A$3:$AI$823,21,FALSE)/100))","v":""},{"$f":"IF($A704=\"\",\"\",IF(OR(VLOOKUP($A704,Economática!$A$3:$AI$823,22,FALSE)/100=0,VLOOKUP($A704,Economática!$A$3:$AI$823,22,FALSE)/100=\"-\"),1/0,VLOOKUP($A704,Economática!$A$3:$AI$823,22,FALSE)/100))","v":""},{"$f":"IF($A704=\"\",\"\",IF(OR(VLOOKUP($A704,Economática!$A$3:$AI$823,23,FALSE)=0,VLOOKUP($A704,Economática!$A$3:$AI$823,23,FALSE)=\"-\"),1/0,VLOOKUP($A704,Economática!$A$3:$AI$823,23,FALSE)))","v":""},{"$f":"IF($A704=\"\",\"\",IF(OR(VLOOKUP($A704,Economática!$A$3:$AI$823,24,FALSE)=0,VLOOKUP($A704,Economática!$A$3:$AI$823,24,FALSE)=\"-\"),1/0,VLOOKUP($A704,Economática!$A$3:$AI$823,24,FALSE)))","v":""},{"$f":"IF($A704=\"\",\"\",IF(OR(VLOOKUP($A704,Economática!$A$3:$AI$823,25,FALSE)=0,VLOOKUP($A704,Economática!$A$3:$AI$823,25,FALSE)=\"-\"),1/0,VLOOKUP($A704,Economática!$A$3:$AI$823,25,FALSE)))","v":""},{"$f":"IF($A704=\"\",\"\",IF(ISERROR((F704+VLOOKUP($A704,Economática!$A$3:$AI$823,26,FALSE))/Y704),(F704+VLOOKUP($A704,Economática!$A$3:$AI$823,26,FALSE))/Y704,(F704+VLOOKUP($A704,Economática!$A$3:$AI$823,26,FALSE))/Y704))","v":""},{"$f":"IF($A704=\"\",\"\",IF(OR(-VLOOKUP($A704,Economática!$A$3:$AI$823,27,FALSE)=0,-VLOOKUP($A704,Economática!$A$3:$AI$823,27,FALSE)=\"-\"),1/0,-VLOOKUP($A704,Economática!$A$3:$AI$823,27,FALSE)))","v":""},"",{"$f":"IF($A704=\"\",\"\",IF(OR(VLOOKUP($A704,Economática!$A$3:$AI$823,28,FALSE)=0,VLOOKUP($A704,Economática!$A$3:$AI$823,28,FALSE)=\"-\"),1/0,VLOOKUP($A704,Economática!$A$3:$AI$823,28,FALSE)))","v":""},{"$f":"IF($A704=\"\",\"\",IF(OR(VLOOKUP($A704,Economática!$A$3:$AI$823,29,FALSE)=0,VLOOKUP($A704,Economática!$A$3:$AI$823,29,FALSE)=\"-\"),1/0,VLOOKUP($A704,Economática!$A$3:$AI$823,29,FALSE)))","v":""},{"$f":"IF($A704=\"\",\"\",IF(OR(VLOOKUP($A704,Economática!$A$3:$AI$823,30,FALSE)/E704=0,VLOOKUP($A704,Economática!$A$3:$AI$823,30,FALSE)/E704=\"-\",VLOOKUP($A704,Economática!$A$3:$AI$823,30,FALSE)/E704<33.33%,VLOOKUP($A704,Economática!$A$3:$AI$823,30,FALSE)/E704>100%),1/0,VLOOKUP($A704,Economática!$A$3:$AI$823,30,FALSE)/E704))","v":""},"",{"$f":"IF($A704=\"\",\"\",IF(OR(VLOOKUP($A704,Economática!$A$3:$AI$823,25,FALSE)=0,VLOOKUP($A704,Economática!$A$3:$AI$823,25,FALSE)=\"-\"),1/0,VLOOKUP($A704,Economática!$A$3:$AI$823,25,FALSE)))","v":""},{"$f":"CONCATENATE(Economática!B682,\" \",Economática!C682)","v":" "}]
[{"$f":"IF(Economática!AG683=\"\",\"\",Economática!AG683)","v":""},{"$f":"IF($A705=\"\",\"\",VLOOKUP(VLOOKUP($A705,Economática!$A$3:$AI$823,6,FALSE),Correção!$B$16:$C$36,2,FALSE))","v":""},{"$f":"IF(Economática!B683=\"\",\"\",Economática!B683)","v":""},{"$f":"IF($A705=\"\",\"\",IF(OR(VLOOKUP($A705,Economática!$A$3:$AI$823,8,FALSE)=0,VLOOKUP($A705,Economática!$A$3:$AI$823,8,FALSE)=\"-\"),1/0,VLOOKUP($A705,Economática!$A$3:$AI$823,8,FALSE)))","v":""},{"$f":"IF(A705=\"\",\"\",IF(ISERROR(VLOOKUP(A705,Correção!$B$2:$G$13,9,FALSE)),VLOOKUP($A705,Economática!$A$3:$AI$823,9,FALSE),VLOOKUP(A705,Correção!$B$2:$G$13,9,FALSE)))","v":""},{"$f":"IF($A705=\"\",\"\",Economática!G683)","v":""},{"$f":"IF($A705=\"\",\"\",IF(OR(VLOOKUP($A705,Economática!$A$3:$AI$823,10,FALSE)=0,VLOOKUP($A705,Economática!$A$3:$AI$823,10,FALSE)=\"-\"),1/0,VLOOKUP($A705,Economática!$A$3:$AI$823,10,FALSE)))","v":""},{"$f":"IF($A705=\"\",\"\",IF(OR(VLOOKUP($A705,Economática!$A$3:$AI$823,11,FALSE)=0,VLOOKUP($A705,Economática!$A$3:$AI$823,11,FALSE)=\"-\"),1/0,VLOOKUP($A705,Economática!$A$3:$AI$823,11,FALSE)))","v":""},{"$f":"IF($A705=\"\",\"\",IF(OR(VLOOKUP($A705,Economática!$A$3:$AI$823,12,FALSE)=0,VLOOKUP($A705,Economática!$A$3:$AI$823,12,FALSE)=\"-\"),1/0,VLOOKUP($A705,Economática!$A$3:$AI$823,12,FALSE)))","v":""},{"$f":"IF($A705=\"\",\"\",IF(OR(VLOOKUP($A705,Economática!$A$3:$AI$823,13,FALSE)=0,VLOOKUP($A705,Economática!$A$3:$AI$823,13,FALSE)=\"-\"),1/0,VLOOKUP($A705,Economática!$A$3:$AI$823,13,FALSE)))","v":""},{"$f":"IF($A705=\"\",\"\",IF(OR(VLOOKUP($A705,Economática!$A$3:$AI$823,14,FALSE)=0,VLOOKUP($A705,Economática!$A$3:$AI$823,14,FALSE)=\"-\"),1/0,VLOOKUP($A705,Economática!$A$3:$AI$823,14,FALSE)))","v":""},{"$f":"IF($A705=\"\",\"\",IF(OR(VLOOKUP($A705,Economática!$A$3:$AI$823,15,FALSE)=0,VLOOKUP($A705,Economática!$A$3:$AI$823,15,FALSE)=\"-\"),1/0,VLOOKUP($A705,Economática!$A$3:$AI$823,15,FALSE)))","v":""},{"$f":"IF($A705=\"\",\"\",IF(OR(VLOOKUP($A705,Economática!$A$3:$AI$823,16,FALSE)=0,VLOOKUP($A705,Economática!$A$3:$AI$823,16,FALSE)=\"-\"),1/0,VLOOKUP($A705,Economática!$A$3:$AI$823,16,FALSE)))","v":""},{"$f":"IF($A705=\"\",\"\",IF(OR(VLOOKUP($A705,Economática!$A$3:$AI$823,17,FALSE)=0,VLOOKUP($A705,Economática!$A$3:$AI$823,17,FALSE)=\"-\"),1/0,VLOOKUP($A705,Economática!$A$3:$AI$823,17,FALSE)))","v":""},{"$f":"IF($A705=\"\",\"\",IF(OR(VLOOKUP($A705,Economática!$A$3:$AI$823,18,FALSE)=0,VLOOKUP($A705,Economática!$A$3:$AI$823,18,FALSE)=\"-\"),1/0,VLOOKUP($A705,Economática!$A$3:$AI$823,18,FALSE)))","v":""},{"$f":"IF($A705=\"\",\"\",IF(OR(VLOOKUP($A705,Economática!$A$3:$AI$823,19,FALSE)=0,VLOOKUP($A705,Economática!$A$3:$AI$823,19,FALSE)=\"-\"),1/0,VLOOKUP($A705,Economática!$A$3:$AI$823,19,FALSE)))","v":""},{"$f":"IF($A705=\"\",\"\",VLOOKUP($A705,Economática!$A$3:$AI$823,20,FALSE)/E705)","v":""},"","","",{"$f":"IF($A705=\"\",\"\",IF(OR(VLOOKUP($A705,Economática!$A$3:$AI$823,21,FALSE)/100=0,VLOOKUP($A705,Economática!$A$3:$AI$823,21,FALSE)/100=\"-\"),1/0,VLOOKUP($A705,Economática!$A$3:$AI$823,21,FALSE)/100))","v":""},{"$f":"IF($A705=\"\",\"\",IF(OR(VLOOKUP($A705,Economática!$A$3:$AI$823,22,FALSE)/100=0,VLOOKUP($A705,Economática!$A$3:$AI$823,22,FALSE)/100=\"-\"),1/0,VLOOKUP($A705,Economática!$A$3:$AI$823,22,FALSE)/100))","v":""},{"$f":"IF($A705=\"\",\"\",IF(OR(VLOOKUP($A705,Economática!$A$3:$AI$823,23,FALSE)=0,VLOOKUP($A705,Economática!$A$3:$AI$823,23,FALSE)=\"-\"),1/0,VLOOKUP($A705,Economática!$A$3:$AI$823,23,FALSE)))","v":""},{"$f":"IF($A705=\"\",\"\",IF(OR(VLOOKUP($A705,Economática!$A$3:$AI$823,24,FALSE)=0,VLOOKUP($A705,Economática!$A$3:$AI$823,24,FALSE)=\"-\"),1/0,VLOOKUP($A705,Economática!$A$3:$AI$823,24,FALSE)))","v":""},{"$f":"IF($A705=\"\",\"\",IF(OR(VLOOKUP($A705,Economática!$A$3:$AI$823,25,FALSE)=0,VLOOKUP($A705,Economática!$A$3:$AI$823,25,FALSE)=\"-\"),1/0,VLOOKUP($A705,Economática!$A$3:$AI$823,25,FALSE)))","v":""},{"$f":"IF($A705=\"\",\"\",IF(ISERROR((F705+VLOOKUP($A705,Economática!$A$3:$AI$823,26,FALSE))/Y705),(F705+VLOOKUP($A705,Economática!$A$3:$AI$823,26,FALSE))/Y705,(F705+VLOOKUP($A705,Economática!$A$3:$AI$823,26,FALSE))/Y705))","v":""},{"$f":"IF($A705=\"\",\"\",IF(OR(-VLOOKUP($A705,Economática!$A$3:$AI$823,27,FALSE)=0,-VLOOKUP($A705,Economática!$A$3:$AI$823,27,FALSE)=\"-\"),1/0,-VLOOKUP($A705,Economática!$A$3:$AI$823,27,FALSE)))","v":""},"",{"$f":"IF($A705=\"\",\"\",IF(OR(VLOOKUP($A705,Economática!$A$3:$AI$823,28,FALSE)=0,VLOOKUP($A705,Economática!$A$3:$AI$823,28,FALSE)=\"-\"),1/0,VLOOKUP($A705,Economática!$A$3:$AI$823,28,FALSE)))","v":""},{"$f":"IF($A705=\"\",\"\",IF(OR(VLOOKUP($A705,Economática!$A$3:$AI$823,29,FALSE)=0,VLOOKUP($A705,Economática!$A$3:$AI$823,29,FALSE)=\"-\"),1/0,VLOOKUP($A705,Economática!$A$3:$AI$823,29,FALSE)))","v":""},{"$f":"IF($A705=\"\",\"\",IF(OR(VLOOKUP($A705,Economática!$A$3:$AI$823,30,FALSE)/E705=0,VLOOKUP($A705,Economática!$A$3:$AI$823,30,FALSE)/E705=\"-\",VLOOKUP($A705,Economática!$A$3:$AI$823,30,FALSE)/E705<33.33%,VLOOKUP($A705,Economática!$A$3:$AI$823,30,FALSE)/E705>100%),1/0,VLOOKUP($A705,Economática!$A$3:$AI$823,30,FALSE)/E705))","v":""},"",{"$f":"IF($A705=\"\",\"\",IF(OR(VLOOKUP($A705,Economática!$A$3:$AI$823,25,FALSE)=0,VLOOKUP($A705,Economática!$A$3:$AI$823,25,FALSE)=\"-\"),1/0,VLOOKUP($A705,Economática!$A$3:$AI$823,25,FALSE)))","v":""},{"$f":"CONCATENATE(Economática!B683,\" \",Economática!C683)","v":" "}]
[{"$f":"IF(Economática!AG684=\"\",\"\",Economática!AG684)","v":""},{"$f":"IF($A706=\"\",\"\",VLOOKUP(VLOOKUP($A706,Economática!$A$3:$AI$823,6,FALSE),Correção!$B$16:$C$36,2,FALSE))","v":""},{"$f":"IF(Economática!B684=\"\",\"\",Economática!B684)","v":""},{"$f":"IF($A706=\"\",\"\",IF(OR(VLOOKUP($A706,Economática!$A$3:$AI$823,8,FALSE)=0,VLOOKUP($A706,Economática!$A$3:$AI$823,8,FALSE)=\"-\"),1/0,VLOOKUP($A706,Economática!$A$3:$AI$823,8,FALSE)))","v":""},{"$f":"IF(A706=\"\",\"\",IF(ISERROR(VLOOKUP(A706,Correção!$B$2:$G$13,9,FALSE)),VLOOKUP($A706,Economática!$A$3:$AI$823,9,FALSE),VLOOKUP(A706,Correção!$B$2:$G$13,9,FALSE)))","v":""},{"$f":"IF($A706=\"\",\"\",Economática!G684)","v":""},{"$f":"IF($A706=\"\",\"\",IF(OR(VLOOKUP($A706,Economática!$A$3:$AI$823,10,FALSE)=0,VLOOKUP($A706,Economática!$A$3:$AI$823,10,FALSE)=\"-\"),1/0,VLOOKUP($A706,Economática!$A$3:$AI$823,10,FALSE)))","v":""},{"$f":"IF($A706=\"\",\"\",IF(OR(VLOOKUP($A706,Economática!$A$3:$AI$823,11,FALSE)=0,VLOOKUP($A706,Economática!$A$3:$AI$823,11,FALSE)=\"-\"),1/0,VLOOKUP($A706,Economática!$A$3:$AI$823,11,FALSE)))","v":""},{"$f":"IF($A706=\"\",\"\",IF(OR(VLOOKUP($A706,Economática!$A$3:$AI$823,12,FALSE)=0,VLOOKUP($A706,Economática!$A$3:$AI$823,12,FALSE)=\"-\"),1/0,VLOOKUP($A706,Economática!$A$3:$AI$823,12,FALSE)))","v":""},{"$f":"IF($A706=\"\",\"\",IF(OR(VLOOKUP($A706,Economática!$A$3:$AI$823,13,FALSE)=0,VLOOKUP($A706,Economática!$A$3:$AI$823,13,FALSE)=\"-\"),1/0,VLOOKUP($A706,Economática!$A$3:$AI$823,13,FALSE)))","v":""},{"$f":"IF($A706=\"\",\"\",IF(OR(VLOOKUP($A706,Economática!$A$3:$AI$823,14,FALSE)=0,VLOOKUP($A706,Economática!$A$3:$AI$823,14,FALSE)=\"-\"),1/0,VLOOKUP($A706,Economática!$A$3:$AI$823,14,FALSE)))","v":""},{"$f":"IF($A706=\"\",\"\",IF(OR(VLOOKUP($A706,Economática!$A$3:$AI$823,15,FALSE)=0,VLOOKUP($A706,Economática!$A$3:$AI$823,15,FALSE)=\"-\"),1/0,VLOOKUP($A706,Economática!$A$3:$AI$823,15,FALSE)))","v":""},{"$f":"IF($A706=\"\",\"\",IF(OR(VLOOKUP($A706,Economática!$A$3:$AI$823,16,FALSE)=0,VLOOKUP($A706,Economática!$A$3:$AI$823,16,FALSE)=\"-\"),1/0,VLOOKUP($A706,Economática!$A$3:$AI$823,16,FALSE)))","v":""},{"$f":"IF($A706=\"\",\"\",IF(OR(VLOOKUP($A706,Economática!$A$3:$AI$823,17,FALSE)=0,VLOOKUP($A706,Economática!$A$3:$AI$823,17,FALSE)=\"-\"),1/0,VLOOKUP($A706,Economática!$A$3:$AI$823,17,FALSE)))","v":""},{"$f":"IF($A706=\"\",\"\",IF(OR(VLOOKUP($A706,Economática!$A$3:$AI$823,18,FALSE)=0,VLOOKUP($A706,Economática!$A$3:$AI$823,18,FALSE)=\"-\"),1/0,VLOOKUP($A706,Economática!$A$3:$AI$823,18,FALSE)))","v":""},{"$f":"IF($A706=\"\",\"\",IF(OR(VLOOKUP($A706,Economática!$A$3:$AI$823,19,FALSE)=0,VLOOKUP($A706,Economática!$A$3:$AI$823,19,FALSE)=\"-\"),1/0,VLOOKUP($A706,Economática!$A$3:$AI$823,19,FALSE)))","v":""},{"$f":"IF($A706=\"\",\"\",VLOOKUP($A706,Economática!$A$3:$AI$823,20,FALSE)/E706)","v":""},{"$f":"IF($A706=\"\",\"\",IF((G706/E706)<=0,1/0,G706/E706))","v":""},{"$f":"IF($A706=\"\",\"\",D706/R706)","v":""},{"$f":"IF($A706=\"\",\"\",IF((D706/Q706)<=0,1/0,D706/Q706))","v":""},{"$f":"IF($A706=\"\",\"\",IF(OR(VLOOKUP($A706,Economática!$A$3:$AI$823,21,FALSE)/100=0,VLOOKUP($A706,Economática!$A$3:$AI$823,21,FALSE)/100=\"-\"),1/0,VLOOKUP($A706,Economática!$A$3:$AI$823,21,FALSE)/100))","v":""},{"$f":"IF($A706=\"\",\"\",IF(OR(VLOOKUP($A706,Economática!$A$3:$AI$823,22,FALSE)/100=0,VLOOKUP($A706,Economática!$A$3:$AI$823,22,FALSE)/100=\"-\"),1/0,VLOOKUP($A706,Economática!$A$3:$AI$823,22,FALSE)/100))","v":""},{"$f":"IF($A706=\"\",\"\",IF(OR(VLOOKUP($A706,Economática!$A$3:$AI$823,23,FALSE)=0,VLOOKUP($A706,Economática!$A$3:$AI$823,23,FALSE)=\"-\"),1/0,VLOOKUP($A706,Economática!$A$3:$AI$823,23,FALSE)))","v":""},{"$f":"IF($A706=\"\",\"\",IF(OR(VLOOKUP($A706,Economática!$A$3:$AI$823,24,FALSE)=0,VLOOKUP($A706,Economática!$A$3:$AI$823,24,FALSE)=\"-\"),1/0,VLOOKUP($A706,Economática!$A$3:$AI$823,24,FALSE)))","v":""},{"$f":"IF($A706=\"\",\"\",IF(OR(VLOOKUP($A706,Economática!$A$3:$AI$823,25,FALSE)=0,VLOOKUP($A706,Economática!$A$3:$AI$823,25,FALSE)=\"-\"),1/0,VLOOKUP($A706,Economática!$A$3:$AI$823,25,FALSE)))","v":""},{"$f":"IF($A706=\"\",\"\",IF(ISERROR((F706+VLOOKUP($A706,Economática!$A$3:$AI$823,26,FALSE))/Y706),(F706+VLOOKUP($A706,Economática!$A$3:$AI$823,26,FALSE))/Y706,(F706+VLOOKUP($A706,Economática!$A$3:$AI$823,26,FALSE))/Y706))","v":""},{"$f":"IF($A706=\"\",\"\",IF(OR(-VLOOKUP($A706,Economática!$A$3:$AI$823,27,FALSE)=0,-VLOOKUP($A706,Economática!$A$3:$AI$823,27,FALSE)=\"-\"),1/0,-VLOOKUP($A706,Economática!$A$3:$AI$823,27,FALSE)))","v":""},{"$f":"IF(A706=\"\",\"\",AA706/F706)","v":""},{"$f":"IF($A706=\"\",\"\",IF(OR(VLOOKUP($A706,Economática!$A$3:$AI$823,28,FALSE)=0,VLOOKUP($A706,Economática!$A$3:$AI$823,28,FALSE)=\"-\"),1/0,VLOOKUP($A706,Economática!$A$3:$AI$823,28,FALSE)))","v":""},{"$f":"IF($A706=\"\",\"\",IF(OR(VLOOKUP($A706,Economática!$A$3:$AI$823,29,FALSE)=0,VLOOKUP($A706,Economática!$A$3:$AI$823,29,FALSE)=\"-\"),1/0,VLOOKUP($A706,Economática!$A$3:$AI$823,29,FALSE)))","v":""},{"$f":"IF($A706=\"\",\"\",IF(OR(VLOOKUP($A706,Economática!$A$3:$AI$823,30,FALSE)/E706=0,VLOOKUP($A706,Economática!$A$3:$AI$823,30,FALSE)/E706=\"-\",VLOOKUP($A706,Economática!$A$3:$AI$823,30,FALSE)/E706<33.33%,VLOOKUP($A706,Economática!$A$3:$AI$823,30,FALSE)/E706>100%),1/0,VLOOKUP($A706,Economática!$A$3:$AI$823,30,FALSE)/E706))","v":""},{"$f":"IF(A706=\"\",\"\",A706)","v":""},{"$f":"IF($A706=\"\",\"\",IF(OR(VLOOKUP($A706,Economática!$A$3:$AI$823,25,FALSE)=0,VLOOKUP($A706,Economática!$A$3:$AI$823,25,FALSE)=\"-\"),1/0,VLOOKUP($A706,Economática!$A$3:$AI$823,25,FALSE)))","v":""},{"$f":"CONCATENATE(Economática!B684,\" \",Economática!C684)","v":" "}]
[{"$f":"IF(Economática!AG685=\"\",\"\",Economática!AG685)","v":""},{"$f":"IF($A707=\"\",\"\",VLOOKUP(VLOOKUP($A707,Economática!$A$3:$AI$823,6,FALSE),Correção!$B$16:$C$36,2,FALSE))","v":""},{"$f":"IF(Economática!B685=\"\",\"\",Economática!B685)","v":""},{"$f":"IF($A707=\"\",\"\",IF(OR(VLOOKUP($A707,Economática!$A$3:$AI$823,8,FALSE)=0,VLOOKUP($A707,Economática!$A$3:$AI$823,8,FALSE)=\"-\"),1/0,VLOOKUP($A707,Economática!$A$3:$AI$823,8,FALSE)))","v":""},{"$f":"IF(A707=\"\",\"\",IF(ISERROR(VLOOKUP(A707,Correção!$B$2:$G$13,9,FALSE)),VLOOKUP($A707,Economática!$A$3:$AI$823,9,FALSE),VLOOKUP(A707,Correção!$B$2:$G$13,9,FALSE)))","v":""},{"$f":"IF($A707=\"\",\"\",Economática!G685)","v":""},{"$f":"IF($A707=\"\",\"\",IF(OR(VLOOKUP($A707,Economática!$A$3:$AI$823,10,FALSE)=0,VLOOKUP($A707,Economática!$A$3:$AI$823,10,FALSE)=\"-\"),1/0,VLOOKUP($A707,Economática!$A$3:$AI$823,10,FALSE)))","v":""},{"$f":"IF($A707=\"\",\"\",IF(OR(VLOOKUP($A707,Economática!$A$3:$AI$823,11,FALSE)=0,VLOOKUP($A707,Economática!$A$3:$AI$823,11,FALSE)=\"-\"),1/0,VLOOKUP($A707,Economática!$A$3:$AI$823,11,FALSE)))","v":""},{"$f":"IF($A707=\"\",\"\",IF(OR(VLOOKUP($A707,Economática!$A$3:$AI$823,12,FALSE)=0,VLOOKUP($A707,Economática!$A$3:$AI$823,12,FALSE)=\"-\"),1/0,VLOOKUP($A707,Economática!$A$3:$AI$823,12,FALSE)))","v":""},{"$f":"IF($A707=\"\",\"\",IF(OR(VLOOKUP($A707,Economática!$A$3:$AI$823,13,FALSE)=0,VLOOKUP($A707,Economática!$A$3:$AI$823,13,FALSE)=\"-\"),1/0,VLOOKUP($A707,Economática!$A$3:$AI$823,13,FALSE)))","v":""},{"$f":"IF($A707=\"\",\"\",IF(OR(VLOOKUP($A707,Economática!$A$3:$AI$823,14,FALSE)=0,VLOOKUP($A707,Economática!$A$3:$AI$823,14,FALSE)=\"-\"),1/0,VLOOKUP($A707,Economática!$A$3:$AI$823,14,FALSE)))","v":""},{"$f":"IF($A707=\"\",\"\",IF(OR(VLOOKUP($A707,Economática!$A$3:$AI$823,15,FALSE)=0,VLOOKUP($A707,Economática!$A$3:$AI$823,15,FALSE)=\"-\"),1/0,VLOOKUP($A707,Economática!$A$3:$AI$823,15,FALSE)))","v":""},{"$f":"IF($A707=\"\",\"\",IF(OR(VLOOKUP($A707,Economática!$A$3:$AI$823,16,FALSE)=0,VLOOKUP($A707,Economática!$A$3:$AI$823,16,FALSE)=\"-\"),1/0,VLOOKUP($A707,Economática!$A$3:$AI$823,16,FALSE)))","v":""},{"$f":"IF($A707=\"\",\"\",IF(OR(VLOOKUP($A707,Economática!$A$3:$AI$823,17,FALSE)=0,VLOOKUP($A707,Economática!$A$3:$AI$823,17,FALSE)=\"-\"),1/0,VLOOKUP($A707,Economática!$A$3:$AI$823,17,FALSE)))","v":""},{"$f":"IF($A707=\"\",\"\",IF(OR(VLOOKUP($A707,Economática!$A$3:$AI$823,18,FALSE)=0,VLOOKUP($A707,Economática!$A$3:$AI$823,18,FALSE)=\"-\"),1/0,VLOOKUP($A707,Economática!$A$3:$AI$823,18,FALSE)))","v":""},{"$f":"IF($A707=\"\",\"\",IF(OR(VLOOKUP($A707,Economática!$A$3:$AI$823,19,FALSE)=0,VLOOKUP($A707,Economática!$A$3:$AI$823,19,FALSE)=\"-\"),1/0,VLOOKUP($A707,Economática!$A$3:$AI$823,19,FALSE)))","v":""},{"$f":"IF($A707=\"\",\"\",VLOOKUP($A707,Economática!$A$3:$AI$823,20,FALSE)/E707)","v":""},"","","",{"$f":"IF($A707=\"\",\"\",IF(OR(VLOOKUP($A707,Economática!$A$3:$AI$823,21,FALSE)/100=0,VLOOKUP($A707,Economática!$A$3:$AI$823,21,FALSE)/100=\"-\"),1/0,VLOOKUP($A707,Economática!$A$3:$AI$823,21,FALSE)/100))","v":""},{"$f":"IF($A707=\"\",\"\",IF(OR(VLOOKUP($A707,Economática!$A$3:$AI$823,22,FALSE)/100=0,VLOOKUP($A707,Economática!$A$3:$AI$823,22,FALSE)/100=\"-\"),1/0,VLOOKUP($A707,Economática!$A$3:$AI$823,22,FALSE)/100))","v":""},{"$f":"IF($A707=\"\",\"\",IF(OR(VLOOKUP($A707,Economática!$A$3:$AI$823,23,FALSE)=0,VLOOKUP($A707,Economática!$A$3:$AI$823,23,FALSE)=\"-\"),1/0,VLOOKUP($A707,Economática!$A$3:$AI$823,23,FALSE)))","v":""},{"$f":"IF($A707=\"\",\"\",IF(OR(VLOOKUP($A707,Economática!$A$3:$AI$823,24,FALSE)=0,VLOOKUP($A707,Economática!$A$3:$AI$823,24,FALSE)=\"-\"),1/0,VLOOKUP($A707,Economática!$A$3:$AI$823,24,FALSE)))","v":""},{"$f":"IF($A707=\"\",\"\",IF(OR(VLOOKUP($A707,Economática!$A$3:$AI$823,25,FALSE)=0,VLOOKUP($A707,Economática!$A$3:$AI$823,25,FALSE)=\"-\"),1/0,VLOOKUP($A707,Economática!$A$3:$AI$823,25,FALSE)))","v":""},{"$f":"IF($A707=\"\",\"\",IF(ISERROR((F707+VLOOKUP($A707,Economática!$A$3:$AI$823,26,FALSE))/Y707),(F707+VLOOKUP($A707,Economática!$A$3:$AI$823,26,FALSE))/Y707,(F707+VLOOKUP($A707,Economática!$A$3:$AI$823,26,FALSE))/Y707))","v":""},{"$f":"IF($A707=\"\",\"\",IF(OR(-VLOOKUP($A707,Economática!$A$3:$AI$823,27,FALSE)=0,-VLOOKUP($A707,Economática!$A$3:$AI$823,27,FALSE)=\"-\"),1/0,-VLOOKUP($A707,Economática!$A$3:$AI$823,27,FALSE)))","v":""},"",{"$f":"IF($A707=\"\",\"\",IF(OR(VLOOKUP($A707,Economática!$A$3:$AI$823,28,FALSE)=0,VLOOKUP($A707,Economática!$A$3:$AI$823,28,FALSE)=\"-\"),1/0,VLOOKUP($A707,Economática!$A$3:$AI$823,28,FALSE)))","v":""},{"$f":"IF($A707=\"\",\"\",IF(OR(VLOOKUP($A707,Economática!$A$3:$AI$823,29,FALSE)=0,VLOOKUP($A707,Economática!$A$3:$AI$823,29,FALSE)=\"-\"),1/0,VLOOKUP($A707,Economática!$A$3:$AI$823,29,FALSE)))","v":""},{"$f":"IF($A707=\"\",\"\",IF(OR(VLOOKUP($A707,Economática!$A$3:$AI$823,30,FALSE)/E707=0,VLOOKUP($A707,Economática!$A$3:$AI$823,30,FALSE)/E707=\"-\",VLOOKUP($A707,Economática!$A$3:$AI$823,30,FALSE)/E707<33.33%,VLOOKUP($A707,Economática!$A$3:$AI$823,30,FALSE)/E707>100%),1/0,VLOOKUP($A707,Economática!$A$3:$AI$823,30,FALSE)/E707))","v":""},"",{"$f":"IF($A707=\"\",\"\",IF(OR(VLOOKUP($A707,Economática!$A$3:$AI$823,25,FALSE)=0,VLOOKUP($A707,Economática!$A$3:$AI$823,25,FALSE)=\"-\"),1/0,VLOOKUP($A707,Economática!$A$3:$AI$823,25,FALSE)))","v":""},{"$f":"CONCATENATE(Economática!B685,\" \",Economática!C685)","v":" "}]
[{"$f":"IF(Economática!AG686=\"\",\"\",Economática!AG686)","v":""},{"$f":"IF($A708=\"\",\"\",VLOOKUP(VLOOKUP($A708,Economática!$A$3:$AI$823,6,FALSE),Correção!$B$16:$C$36,2,FALSE))","v":""},{"$f":"IF(Economática!B686=\"\",\"\",Economática!B686)","v":""},{"$f":"IF($A708=\"\",\"\",IF(OR(VLOOKUP($A708,Economática!$A$3:$AI$823,8,FALSE)=0,VLOOKUP($A708,Economática!$A$3:$AI$823,8,FALSE)=\"-\"),1/0,VLOOKUP($A708,Economática!$A$3:$AI$823,8,FALSE)))","v":""},{"$f":"IF(A708=\"\",\"\",IF(ISERROR(VLOOKUP(A708,Correção!$B$2:$G$13,9,FALSE)),VLOOKUP($A708,Economática!$A$3:$AI$823,9,FALSE),VLOOKUP(A708,Correção!$B$2:$G$13,9,FALSE)))","v":""},{"$f":"IF($A708=\"\",\"\",Economática!G686)","v":""},{"$f":"IF($A708=\"\",\"\",IF(OR(VLOOKUP($A708,Economática!$A$3:$AI$823,10,FALSE)=0,VLOOKUP($A708,Economática!$A$3:$AI$823,10,FALSE)=\"-\"),1/0,VLOOKUP($A708,Economática!$A$3:$AI$823,10,FALSE)))","v":""},{"$f":"IF($A708=\"\",\"\",IF(OR(VLOOKUP($A708,Economática!$A$3:$AI$823,11,FALSE)=0,VLOOKUP($A708,Economática!$A$3:$AI$823,11,FALSE)=\"-\"),1/0,VLOOKUP($A708,Economática!$A$3:$AI$823,11,FALSE)))","v":""},{"$f":"IF($A708=\"\",\"\",IF(OR(VLOOKUP($A708,Economática!$A$3:$AI$823,12,FALSE)=0,VLOOKUP($A708,Economática!$A$3:$AI$823,12,FALSE)=\"-\"),1/0,VLOOKUP($A708,Economática!$A$3:$AI$823,12,FALSE)))","v":""},{"$f":"IF($A708=\"\",\"\",IF(OR(VLOOKUP($A708,Economática!$A$3:$AI$823,13,FALSE)=0,VLOOKUP($A708,Economática!$A$3:$AI$823,13,FALSE)=\"-\"),1/0,VLOOKUP($A708,Economática!$A$3:$AI$823,13,FALSE)))","v":""},{"$f":"IF($A708=\"\",\"\",IF(OR(VLOOKUP($A708,Economática!$A$3:$AI$823,14,FALSE)=0,VLOOKUP($A708,Economática!$A$3:$AI$823,14,FALSE)=\"-\"),1/0,VLOOKUP($A708,Economática!$A$3:$AI$823,14,FALSE)))","v":""},{"$f":"IF($A708=\"\",\"\",IF(OR(VLOOKUP($A708,Economática!$A$3:$AI$823,15,FALSE)=0,VLOOKUP($A708,Economática!$A$3:$AI$823,15,FALSE)=\"-\"),1/0,VLOOKUP($A708,Economática!$A$3:$AI$823,15,FALSE)))","v":""},{"$f":"IF($A708=\"\",\"\",IF(OR(VLOOKUP($A708,Economática!$A$3:$AI$823,16,FALSE)=0,VLOOKUP($A708,Economática!$A$3:$AI$823,16,FALSE)=\"-\"),1/0,VLOOKUP($A708,Economática!$A$3:$AI$823,16,FALSE)))","v":""},{"$f":"IF($A708=\"\",\"\",IF(OR(VLOOKUP($A708,Economática!$A$3:$AI$823,17,FALSE)=0,VLOOKUP($A708,Economática!$A$3:$AI$823,17,FALSE)=\"-\"),1/0,VLOOKUP($A708,Economática!$A$3:$AI$823,17,FALSE)))","v":""},{"$f":"IF($A708=\"\",\"\",IF(OR(VLOOKUP($A708,Economática!$A$3:$AI$823,18,FALSE)=0,VLOOKUP($A708,Economática!$A$3:$AI$823,18,FALSE)=\"-\"),1/0,VLOOKUP($A708,Economática!$A$3:$AI$823,18,FALSE)))","v":""},{"$f":"IF($A708=\"\",\"\",IF(OR(VLOOKUP($A708,Economática!$A$3:$AI$823,19,FALSE)=0,VLOOKUP($A708,Economática!$A$3:$AI$823,19,FALSE)=\"-\"),1/0,VLOOKUP($A708,Economática!$A$3:$AI$823,19,FALSE)))","v":""},{"$f":"IF($A708=\"\",\"\",VLOOKUP($A708,Economática!$A$3:$AI$823,20,FALSE)/E708)","v":""},"","","",{"$f":"IF($A708=\"\",\"\",IF(OR(VLOOKUP($A708,Economática!$A$3:$AI$823,21,FALSE)/100=0,VLOOKUP($A708,Economática!$A$3:$AI$823,21,FALSE)/100=\"-\"),1/0,VLOOKUP($A708,Economática!$A$3:$AI$823,21,FALSE)/100))","v":""},{"$f":"IF($A708=\"\",\"\",IF(OR(VLOOKUP($A708,Economática!$A$3:$AI$823,22,FALSE)/100=0,VLOOKUP($A708,Economática!$A$3:$AI$823,22,FALSE)/100=\"-\"),1/0,VLOOKUP($A708,Economática!$A$3:$AI$823,22,FALSE)/100))","v":""},{"$f":"IF($A708=\"\",\"\",IF(OR(VLOOKUP($A708,Economática!$A$3:$AI$823,23,FALSE)=0,VLOOKUP($A708,Economática!$A$3:$AI$823,23,FALSE)=\"-\"),1/0,VLOOKUP($A708,Economática!$A$3:$AI$823,23,FALSE)))","v":""},{"$f":"IF($A708=\"\",\"\",IF(OR(VLOOKUP($A708,Economática!$A$3:$AI$823,24,FALSE)=0,VLOOKUP($A708,Economática!$A$3:$AI$823,24,FALSE)=\"-\"),1/0,VLOOKUP($A708,Economática!$A$3:$AI$823,24,FALSE)))","v":""},{"$f":"IF($A708=\"\",\"\",IF(OR(VLOOKUP($A708,Economática!$A$3:$AI$823,25,FALSE)=0,VLOOKUP($A708,Economática!$A$3:$AI$823,25,FALSE)=\"-\"),1/0,VLOOKUP($A708,Economática!$A$3:$AI$823,25,FALSE)))","v":""},{"$f":"IF($A708=\"\",\"\",IF(ISERROR((F708+VLOOKUP($A708,Economática!$A$3:$AI$823,26,FALSE))/Y708),(F708+VLOOKUP($A708,Economática!$A$3:$AI$823,26,FALSE))/Y708,(F708+VLOOKUP($A708,Economática!$A$3:$AI$823,26,FALSE))/Y708))","v":""},{"$f":"IF($A708=\"\",\"\",IF(OR(-VLOOKUP($A708,Economática!$A$3:$AI$823,27,FALSE)=0,-VLOOKUP($A708,Economática!$A$3:$AI$823,27,FALSE)=\"-\"),1/0,-VLOOKUP($A708,Economática!$A$3:$AI$823,27,FALSE)))","v":""},"",{"$f":"IF($A708=\"\",\"\",IF(OR(VLOOKUP($A708,Economática!$A$3:$AI$823,28,FALSE)=0,VLOOKUP($A708,Economática!$A$3:$AI$823,28,FALSE)=\"-\"),1/0,VLOOKUP($A708,Economática!$A$3:$AI$823,28,FALSE)))","v":""},{"$f":"IF($A708=\"\",\"\",IF(OR(VLOOKUP($A708,Economática!$A$3:$AI$823,29,FALSE)=0,VLOOKUP($A708,Economática!$A$3:$AI$823,29,FALSE)=\"-\"),1/0,VLOOKUP($A708,Economática!$A$3:$AI$823,29,FALSE)))","v":""},{"$f":"IF($A708=\"\",\"\",IF(OR(VLOOKUP($A708,Economática!$A$3:$AI$823,30,FALSE)/E708=0,VLOOKUP($A708,Economática!$A$3:$AI$823,30,FALSE)/E708=\"-\",VLOOKUP($A708,Economática!$A$3:$AI$823,30,FALSE)/E708<33.33%,VLOOKUP($A708,Economática!$A$3:$AI$823,30,FALSE)/E708>100%),1/0,VLOOKUP($A708,Economática!$A$3:$AI$823,30,FALSE)/E708))","v":""},"",{"$f":"IF($A708=\"\",\"\",IF(OR(VLOOKUP($A708,Economática!$A$3:$AI$823,25,FALSE)=0,VLOOKUP($A708,Economática!$A$3:$AI$823,25,FALSE)=\"-\"),1/0,VLOOKUP($A708,Economática!$A$3:$AI$823,25,FALSE)))","v":""},{"$f":"CONCATENATE(Economática!B686,\" \",Economática!C686)","v":" "}]
[{"$f":"IF(Economática!AG687=\"\",\"\",Economática!AG687)","v":""},{"$f":"IF($A709=\"\",\"\",VLOOKUP(VLOOKUP($A709,Economática!$A$3:$AI$823,6,FALSE),Correção!$B$16:$C$36,2,FALSE))","v":""},{"$f":"IF(Economática!B687=\"\",\"\",Economática!B687)","v":""},{"$f":"IF($A709=\"\",\"\",IF(OR(VLOOKUP($A709,Economática!$A$3:$AI$823,8,FALSE)=0,VLOOKUP($A709,Economática!$A$3:$AI$823,8,FALSE)=\"-\"),1/0,VLOOKUP($A709,Economática!$A$3:$AI$823,8,FALSE)))","v":""},{"$f":"IF(A709=\"\",\"\",IF(ISERROR(VLOOKUP(A709,Correção!$B$2:$G$13,9,FALSE)),VLOOKUP($A709,Economática!$A$3:$AI$823,9,FALSE),VLOOKUP(A709,Correção!$B$2:$G$13,9,FALSE)))","v":""},{"$f":"IF($A709=\"\",\"\",Economática!G687)","v":""},{"$f":"IF($A709=\"\",\"\",IF(OR(VLOOKUP($A709,Economática!$A$3:$AI$823,10,FALSE)=0,VLOOKUP($A709,Economática!$A$3:$AI$823,10,FALSE)=\"-\"),1/0,VLOOKUP($A709,Economática!$A$3:$AI$823,10,FALSE)))","v":""},{"$f":"IF($A709=\"\",\"\",IF(OR(VLOOKUP($A709,Economática!$A$3:$AI$823,11,FALSE)=0,VLOOKUP($A709,Economática!$A$3:$AI$823,11,FALSE)=\"-\"),1/0,VLOOKUP($A709,Economática!$A$3:$AI$823,11,FALSE)))","v":""},{"$f":"IF($A709=\"\",\"\",IF(OR(VLOOKUP($A709,Economática!$A$3:$AI$823,12,FALSE)=0,VLOOKUP($A709,Economática!$A$3:$AI$823,12,FALSE)=\"-\"),1/0,VLOOKUP($A709,Economática!$A$3:$AI$823,12,FALSE)))","v":""},{"$f":"IF($A709=\"\",\"\",IF(OR(VLOOKUP($A709,Economática!$A$3:$AI$823,13,FALSE)=0,VLOOKUP($A709,Economática!$A$3:$AI$823,13,FALSE)=\"-\"),1/0,VLOOKUP($A709,Economática!$A$3:$AI$823,13,FALSE)))","v":""},{"$f":"IF($A709=\"\",\"\",IF(OR(VLOOKUP($A709,Economática!$A$3:$AI$823,14,FALSE)=0,VLOOKUP($A709,Economática!$A$3:$AI$823,14,FALSE)=\"-\"),1/0,VLOOKUP($A709,Economática!$A$3:$AI$823,14,FALSE)))","v":""},{"$f":"IF($A709=\"\",\"\",IF(OR(VLOOKUP($A709,Economática!$A$3:$AI$823,15,FALSE)=0,VLOOKUP($A709,Economática!$A$3:$AI$823,15,FALSE)=\"-\"),1/0,VLOOKUP($A709,Economática!$A$3:$AI$823,15,FALSE)))","v":""},{"$f":"IF($A709=\"\",\"\",IF(OR(VLOOKUP($A709,Economática!$A$3:$AI$823,16,FALSE)=0,VLOOKUP($A709,Economática!$A$3:$AI$823,16,FALSE)=\"-\"),1/0,VLOOKUP($A709,Economática!$A$3:$AI$823,16,FALSE)))","v":""},{"$f":"IF($A709=\"\",\"\",IF(OR(VLOOKUP($A709,Economática!$A$3:$AI$823,17,FALSE)=0,VLOOKUP($A709,Economática!$A$3:$AI$823,17,FALSE)=\"-\"),1/0,VLOOKUP($A709,Economática!$A$3:$AI$823,17,FALSE)))","v":""},{"$f":"IF($A709=\"\",\"\",IF(OR(VLOOKUP($A709,Economática!$A$3:$AI$823,18,FALSE)=0,VLOOKUP($A709,Economática!$A$3:$AI$823,18,FALSE)=\"-\"),1/0,VLOOKUP($A709,Economática!$A$3:$AI$823,18,FALSE)))","v":""},{"$f":"IF($A709=\"\",\"\",IF(OR(VLOOKUP($A709,Economática!$A$3:$AI$823,19,FALSE)=0,VLOOKUP($A709,Economática!$A$3:$AI$823,19,FALSE)=\"-\"),1/0,VLOOKUP($A709,Economática!$A$3:$AI$823,19,FALSE)))","v":""},{"$f":"IF($A709=\"\",\"\",VLOOKUP($A709,Economática!$A$3:$AI$823,20,FALSE)/E709)","v":""},"","","",{"$f":"IF($A709=\"\",\"\",IF(OR(VLOOKUP($A709,Economática!$A$3:$AI$823,21,FALSE)/100=0,VLOOKUP($A709,Economática!$A$3:$AI$823,21,FALSE)/100=\"-\"),1/0,VLOOKUP($A709,Economática!$A$3:$AI$823,21,FALSE)/100))","v":""},{"$f":"IF($A709=\"\",\"\",IF(OR(VLOOKUP($A709,Economática!$A$3:$AI$823,22,FALSE)/100=0,VLOOKUP($A709,Economática!$A$3:$AI$823,22,FALSE)/100=\"-\"),1/0,VLOOKUP($A709,Economática!$A$3:$AI$823,22,FALSE)/100))","v":""},{"$f":"IF($A709=\"\",\"\",IF(OR(VLOOKUP($A709,Economática!$A$3:$AI$823,23,FALSE)=0,VLOOKUP($A709,Economática!$A$3:$AI$823,23,FALSE)=\"-\"),1/0,VLOOKUP($A709,Economática!$A$3:$AI$823,23,FALSE)))","v":""},{"$f":"IF($A709=\"\",\"\",IF(OR(VLOOKUP($A709,Economática!$A$3:$AI$823,24,FALSE)=0,VLOOKUP($A709,Economática!$A$3:$AI$823,24,FALSE)=\"-\"),1/0,VLOOKUP($A709,Economática!$A$3:$AI$823,24,FALSE)))","v":""},{"$f":"IF($A709=\"\",\"\",IF(OR(VLOOKUP($A709,Economática!$A$3:$AI$823,25,FALSE)=0,VLOOKUP($A709,Economática!$A$3:$AI$823,25,FALSE)=\"-\"),1/0,VLOOKUP($A709,Economática!$A$3:$AI$823,25,FALSE)))","v":""},{"$f":"IF($A709=\"\",\"\",IF(ISERROR((F709+VLOOKUP($A709,Economática!$A$3:$AI$823,26,FALSE))/Y709),(F709+VLOOKUP($A709,Economática!$A$3:$AI$823,26,FALSE))/Y709,(F709+VLOOKUP($A709,Economática!$A$3:$AI$823,26,FALSE))/Y709))","v":""},{"$f":"IF($A709=\"\",\"\",IF(OR(-VLOOKUP($A709,Economática!$A$3:$AI$823,27,FALSE)=0,-VLOOKUP($A709,Economática!$A$3:$AI$823,27,FALSE)=\"-\"),1/0,-VLOOKUP($A709,Economática!$A$3:$AI$823,27,FALSE)))","v":""},"",{"$f":"IF($A709=\"\",\"\",IF(OR(VLOOKUP($A709,Economática!$A$3:$AI$823,28,FALSE)=0,VLOOKUP($A709,Economática!$A$3:$AI$823,28,FALSE)=\"-\"),1/0,VLOOKUP($A709,Economática!$A$3:$AI$823,28,FALSE)))","v":""},{"$f":"IF($A709=\"\",\"\",IF(OR(VLOOKUP($A709,Economática!$A$3:$AI$823,29,FALSE)=0,VLOOKUP($A709,Economática!$A$3:$AI$823,29,FALSE)=\"-\"),1/0,VLOOKUP($A709,Economática!$A$3:$AI$823,29,FALSE)))","v":""},{"$f":"IF($A709=\"\",\"\",IF(OR(VLOOKUP($A709,Economática!$A$3:$AI$823,30,FALSE)/E709=0,VLOOKUP($A709,Economática!$A$3:$AI$823,30,FALSE)/E709=\"-\",VLOOKUP($A709,Economática!$A$3:$AI$823,30,FALSE)/E709<33.33%,VLOOKUP($A709,Economática!$A$3:$AI$823,30,FALSE)/E709>100%),1/0,VLOOKUP($A709,Economática!$A$3:$AI$823,30,FALSE)/E709))","v":""},"",{"$f":"IF($A709=\"\",\"\",IF(OR(VLOOKUP($A709,Economática!$A$3:$AI$823,25,FALSE)=0,VLOOKUP($A709,Economática!$A$3:$AI$823,25,FALSE)=\"-\"),1/0,VLOOKUP($A709,Economática!$A$3:$AI$823,25,FALSE)))","v":""},{"$f":"CONCATENATE(Economática!B687,\" \",Economática!C687)","v":" "}]
[{"$f":"IF(Economática!AG688=\"\",\"\",Economática!AG688)","v":""},{"$f":"IF($A710=\"\",\"\",VLOOKUP(VLOOKUP($A710,Economática!$A$3:$AI$823,6,FALSE),Correção!$B$16:$C$36,2,FALSE))","v":""},{"$f":"IF(Economática!B688=\"\",\"\",Economática!B688)","v":""},{"$f":"IF($A710=\"\",\"\",IF(OR(VLOOKUP($A710,Economática!$A$3:$AI$823,8,FALSE)=0,VLOOKUP($A710,Economática!$A$3:$AI$823,8,FALSE)=\"-\"),1/0,VLOOKUP($A710,Economática!$A$3:$AI$823,8,FALSE)))","v":""},{"$f":"IF(A710=\"\",\"\",IF(ISERROR(VLOOKUP(A710,Correção!$B$2:$G$13,9,FALSE)),VLOOKUP($A710,Economática!$A$3:$AI$823,9,FALSE),VLOOKUP(A710,Correção!$B$2:$G$13,9,FALSE)))","v":""},{"$f":"IF($A710=\"\",\"\",Economática!G688)","v":""},{"$f":"IF($A710=\"\",\"\",IF(OR(VLOOKUP($A710,Economática!$A$3:$AI$823,10,FALSE)=0,VLOOKUP($A710,Economática!$A$3:$AI$823,10,FALSE)=\"-\"),1/0,VLOOKUP($A710,Economática!$A$3:$AI$823,10,FALSE)))","v":""},{"$f":"IF($A710=\"\",\"\",IF(OR(VLOOKUP($A710,Economática!$A$3:$AI$823,11,FALSE)=0,VLOOKUP($A710,Economática!$A$3:$AI$823,11,FALSE)=\"-\"),1/0,VLOOKUP($A710,Economática!$A$3:$AI$823,11,FALSE)))","v":""},{"$f":"IF($A710=\"\",\"\",IF(OR(VLOOKUP($A710,Economática!$A$3:$AI$823,12,FALSE)=0,VLOOKUP($A710,Economática!$A$3:$AI$823,12,FALSE)=\"-\"),1/0,VLOOKUP($A710,Economática!$A$3:$AI$823,12,FALSE)))","v":""},{"$f":"IF($A710=\"\",\"\",IF(OR(VLOOKUP($A710,Economática!$A$3:$AI$823,13,FALSE)=0,VLOOKUP($A710,Economática!$A$3:$AI$823,13,FALSE)=\"-\"),1/0,VLOOKUP($A710,Economática!$A$3:$AI$823,13,FALSE)))","v":""},{"$f":"IF($A710=\"\",\"\",IF(OR(VLOOKUP($A710,Economática!$A$3:$AI$823,14,FALSE)=0,VLOOKUP($A710,Economática!$A$3:$AI$823,14,FALSE)=\"-\"),1/0,VLOOKUP($A710,Economática!$A$3:$AI$823,14,FALSE)))","v":""},{"$f":"IF($A710=\"\",\"\",IF(OR(VLOOKUP($A710,Economática!$A$3:$AI$823,15,FALSE)=0,VLOOKUP($A710,Economática!$A$3:$AI$823,15,FALSE)=\"-\"),1/0,VLOOKUP($A710,Economática!$A$3:$AI$823,15,FALSE)))","v":""},{"$f":"IF($A710=\"\",\"\",IF(OR(VLOOKUP($A710,Economática!$A$3:$AI$823,16,FALSE)=0,VLOOKUP($A710,Economática!$A$3:$AI$823,16,FALSE)=\"-\"),1/0,VLOOKUP($A710,Economática!$A$3:$AI$823,16,FALSE)))","v":""},{"$f":"IF($A710=\"\",\"\",IF(OR(VLOOKUP($A710,Economática!$A$3:$AI$823,17,FALSE)=0,VLOOKUP($A710,Economática!$A$3:$AI$823,17,FALSE)=\"-\"),1/0,VLOOKUP($A710,Economática!$A$3:$AI$823,17,FALSE)))","v":""},{"$f":"IF($A710=\"\",\"\",IF(OR(VLOOKUP($A710,Economática!$A$3:$AI$823,18,FALSE)=0,VLOOKUP($A710,Economática!$A$3:$AI$823,18,FALSE)=\"-\"),1/0,VLOOKUP($A710,Economática!$A$3:$AI$823,18,FALSE)))","v":""},{"$f":"IF($A710=\"\",\"\",IF(OR(VLOOKUP($A710,Economática!$A$3:$AI$823,19,FALSE)=0,VLOOKUP($A710,Economática!$A$3:$AI$823,19,FALSE)=\"-\"),1/0,VLOOKUP($A710,Economática!$A$3:$AI$823,19,FALSE)))","v":""},{"$f":"IF($A710=\"\",\"\",VLOOKUP($A710,Economática!$A$3:$AI$823,20,FALSE)/E710)","v":""},"","","",{"$f":"IF($A710=\"\",\"\",IF(OR(VLOOKUP($A710,Economática!$A$3:$AI$823,21,FALSE)/100=0,VLOOKUP($A710,Economática!$A$3:$AI$823,21,FALSE)/100=\"-\"),1/0,VLOOKUP($A710,Economática!$A$3:$AI$823,21,FALSE)/100))","v":""},{"$f":"IF($A710=\"\",\"\",IF(OR(VLOOKUP($A710,Economática!$A$3:$AI$823,22,FALSE)/100=0,VLOOKUP($A710,Economática!$A$3:$AI$823,22,FALSE)/100=\"-\"),1/0,VLOOKUP($A710,Economática!$A$3:$AI$823,22,FALSE)/100))","v":""},{"$f":"IF($A710=\"\",\"\",IF(OR(VLOOKUP($A710,Economática!$A$3:$AI$823,23,FALSE)=0,VLOOKUP($A710,Economática!$A$3:$AI$823,23,FALSE)=\"-\"),1/0,VLOOKUP($A710,Economática!$A$3:$AI$823,23,FALSE)))","v":""},{"$f":"IF($A710=\"\",\"\",IF(OR(VLOOKUP($A710,Economática!$A$3:$AI$823,24,FALSE)=0,VLOOKUP($A710,Economática!$A$3:$AI$823,24,FALSE)=\"-\"),1/0,VLOOKUP($A710,Economática!$A$3:$AI$823,24,FALSE)))","v":""},{"$f":"IF($A710=\"\",\"\",IF(OR(VLOOKUP($A710,Economática!$A$3:$AI$823,25,FALSE)=0,VLOOKUP($A710,Economática!$A$3:$AI$823,25,FALSE)=\"-\"),1/0,VLOOKUP($A710,Economática!$A$3:$AI$823,25,FALSE)))","v":""},{"$f":"IF($A710=\"\",\"\",IF(ISERROR((F710+VLOOKUP($A710,Economática!$A$3:$AI$823,26,FALSE))/Y710),(F710+VLOOKUP($A710,Economática!$A$3:$AI$823,26,FALSE))/Y710,(F710+VLOOKUP($A710,Economática!$A$3:$AI$823,26,FALSE))/Y710))","v":""},{"$f":"IF($A710=\"\",\"\",IF(OR(-VLOOKUP($A710,Economática!$A$3:$AI$823,27,FALSE)=0,-VLOOKUP($A710,Economática!$A$3:$AI$823,27,FALSE)=\"-\"),1/0,-VLOOKUP($A710,Economática!$A$3:$AI$823,27,FALSE)))","v":""},"",{"$f":"IF($A710=\"\",\"\",IF(OR(VLOOKUP($A710,Economática!$A$3:$AI$823,28,FALSE)=0,VLOOKUP($A710,Economática!$A$3:$AI$823,28,FALSE)=\"-\"),1/0,VLOOKUP($A710,Economática!$A$3:$AI$823,28,FALSE)))","v":""},{"$f":"IF($A710=\"\",\"\",IF(OR(VLOOKUP($A710,Economática!$A$3:$AI$823,29,FALSE)=0,VLOOKUP($A710,Economática!$A$3:$AI$823,29,FALSE)=\"-\"),1/0,VLOOKUP($A710,Economática!$A$3:$AI$823,29,FALSE)))","v":""},{"$f":"IF($A710=\"\",\"\",IF(OR(VLOOKUP($A710,Economática!$A$3:$AI$823,30,FALSE)/E710=0,VLOOKUP($A710,Economática!$A$3:$AI$823,30,FALSE)/E710=\"-\",VLOOKUP($A710,Economática!$A$3:$AI$823,30,FALSE)/E710<33.33%,VLOOKUP($A710,Economática!$A$3:$AI$823,30,FALSE)/E710>100%),1/0,VLOOKUP($A710,Economática!$A$3:$AI$823,30,FALSE)/E710))","v":""},"",{"$f":"IF($A710=\"\",\"\",IF(OR(VLOOKUP($A710,Economática!$A$3:$AI$823,25,FALSE)=0,VLOOKUP($A710,Economática!$A$3:$AI$823,25,FALSE)=\"-\"),1/0,VLOOKUP($A710,Economática!$A$3:$AI$823,25,FALSE)))","v":""},{"$f":"CONCATENATE(Economática!B688,\" \",Economática!C688)","v":" "}]
[{"$f":"IF(Economática!AG689=\"\",\"\",Economática!AG689)","v":""},{"$f":"IF($A711=\"\",\"\",VLOOKUP(VLOOKUP($A711,Economática!$A$3:$AI$823,6,FALSE),Correção!$B$16:$C$36,2,FALSE))","v":""},{"$f":"IF(Economática!B689=\"\",\"\",Economática!B689)","v":""},{"$f":"IF($A711=\"\",\"\",IF(OR(VLOOKUP($A711,Economática!$A$3:$AI$823,8,FALSE)=0,VLOOKUP($A711,Economática!$A$3:$AI$823,8,FALSE)=\"-\"),1/0,VLOOKUP($A711,Economática!$A$3:$AI$823,8,FALSE)))","v":""},{"$f":"IF(A711=\"\",\"\",IF(ISERROR(VLOOKUP(A711,Correção!$B$2:$G$13,9,FALSE)),VLOOKUP($A711,Economática!$A$3:$AI$823,9,FALSE),VLOOKUP(A711,Correção!$B$2:$G$13,9,FALSE)))","v":""},{"$f":"IF($A711=\"\",\"\",Economática!G689)","v":""},{"$f":"IF($A711=\"\",\"\",IF(OR(VLOOKUP($A711,Economática!$A$3:$AI$823,10,FALSE)=0,VLOOKUP($A711,Economática!$A$3:$AI$823,10,FALSE)=\"-\"),1/0,VLOOKUP($A711,Economática!$A$3:$AI$823,10,FALSE)))","v":""},{"$f":"IF($A711=\"\",\"\",IF(OR(VLOOKUP($A711,Economática!$A$3:$AI$823,11,FALSE)=0,VLOOKUP($A711,Economática!$A$3:$AI$823,11,FALSE)=\"-\"),1/0,VLOOKUP($A711,Economática!$A$3:$AI$823,11,FALSE)))","v":""},{"$f":"IF($A711=\"\",\"\",IF(OR(VLOOKUP($A711,Economática!$A$3:$AI$823,12,FALSE)=0,VLOOKUP($A711,Economática!$A$3:$AI$823,12,FALSE)=\"-\"),1/0,VLOOKUP($A711,Economática!$A$3:$AI$823,12,FALSE)))","v":""},{"$f":"IF($A711=\"\",\"\",IF(OR(VLOOKUP($A711,Economática!$A$3:$AI$823,13,FALSE)=0,VLOOKUP($A711,Economática!$A$3:$AI$823,13,FALSE)=\"-\"),1/0,VLOOKUP($A711,Economática!$A$3:$AI$823,13,FALSE)))","v":""},{"$f":"IF($A711=\"\",\"\",IF(OR(VLOOKUP($A711,Economática!$A$3:$AI$823,14,FALSE)=0,VLOOKUP($A711,Economática!$A$3:$AI$823,14,FALSE)=\"-\"),1/0,VLOOKUP($A711,Economática!$A$3:$AI$823,14,FALSE)))","v":""},{"$f":"IF($A711=\"\",\"\",IF(OR(VLOOKUP($A711,Economática!$A$3:$AI$823,15,FALSE)=0,VLOOKUP($A711,Economática!$A$3:$AI$823,15,FALSE)=\"-\"),1/0,VLOOKUP($A711,Economática!$A$3:$AI$823,15,FALSE)))","v":""},{"$f":"IF($A711=\"\",\"\",IF(OR(VLOOKUP($A711,Economática!$A$3:$AI$823,16,FALSE)=0,VLOOKUP($A711,Economática!$A$3:$AI$823,16,FALSE)=\"-\"),1/0,VLOOKUP($A711,Economática!$A$3:$AI$823,16,FALSE)))","v":""},{"$f":"IF($A711=\"\",\"\",IF(OR(VLOOKUP($A711,Economática!$A$3:$AI$823,17,FALSE)=0,VLOOKUP($A711,Economática!$A$3:$AI$823,17,FALSE)=\"-\"),1/0,VLOOKUP($A711,Economática!$A$3:$AI$823,17,FALSE)))","v":""},{"$f":"IF($A711=\"\",\"\",IF(OR(VLOOKUP($A711,Economática!$A$3:$AI$823,18,FALSE)=0,VLOOKUP($A711,Economática!$A$3:$AI$823,18,FALSE)=\"-\"),1/0,VLOOKUP($A711,Economática!$A$3:$AI$823,18,FALSE)))","v":""},{"$f":"IF($A711=\"\",\"\",IF(OR(VLOOKUP($A711,Economática!$A$3:$AI$823,19,FALSE)=0,VLOOKUP($A711,Economática!$A$3:$AI$823,19,FALSE)=\"-\"),1/0,VLOOKUP($A711,Economática!$A$3:$AI$823,19,FALSE)))","v":""},{"$f":"IF($A711=\"\",\"\",VLOOKUP($A711,Economática!$A$3:$AI$823,20,FALSE)/E711)","v":""},"","","",{"$f":"IF($A711=\"\",\"\",IF(OR(VLOOKUP($A711,Economática!$A$3:$AI$823,21,FALSE)/100=0,VLOOKUP($A711,Economática!$A$3:$AI$823,21,FALSE)/100=\"-\"),1/0,VLOOKUP($A711,Economática!$A$3:$AI$823,21,FALSE)/100))","v":""},{"$f":"IF($A711=\"\",\"\",IF(OR(VLOOKUP($A711,Economática!$A$3:$AI$823,22,FALSE)/100=0,VLOOKUP($A711,Economática!$A$3:$AI$823,22,FALSE)/100=\"-\"),1/0,VLOOKUP($A711,Economática!$A$3:$AI$823,22,FALSE)/100))","v":""},{"$f":"IF($A711=\"\",\"\",IF(OR(VLOOKUP($A711,Economática!$A$3:$AI$823,23,FALSE)=0,VLOOKUP($A711,Economática!$A$3:$AI$823,23,FALSE)=\"-\"),1/0,VLOOKUP($A711,Economática!$A$3:$AI$823,23,FALSE)))","v":""},{"$f":"IF($A711=\"\",\"\",IF(OR(VLOOKUP($A711,Economática!$A$3:$AI$823,24,FALSE)=0,VLOOKUP($A711,Economática!$A$3:$AI$823,24,FALSE)=\"-\"),1/0,VLOOKUP($A711,Economática!$A$3:$AI$823,24,FALSE)))","v":""},{"$f":"IF($A711=\"\",\"\",IF(OR(VLOOKUP($A711,Economática!$A$3:$AI$823,25,FALSE)=0,VLOOKUP($A711,Economática!$A$3:$AI$823,25,FALSE)=\"-\"),1/0,VLOOKUP($A711,Economática!$A$3:$AI$823,25,FALSE)))","v":""},{"$f":"IF($A711=\"\",\"\",IF(ISERROR((F711+VLOOKUP($A711,Economática!$A$3:$AI$823,26,FALSE))/Y711),(F711+VLOOKUP($A711,Economática!$A$3:$AI$823,26,FALSE))/Y711,(F711+VLOOKUP($A711,Economática!$A$3:$AI$823,26,FALSE))/Y711))","v":""},{"$f":"IF($A711=\"\",\"\",IF(OR(-VLOOKUP($A711,Economática!$A$3:$AI$823,27,FALSE)=0,-VLOOKUP($A711,Economática!$A$3:$AI$823,27,FALSE)=\"-\"),1/0,-VLOOKUP($A711,Economática!$A$3:$AI$823,27,FALSE)))","v":""},"",{"$f":"IF($A711=\"\",\"\",IF(OR(VLOOKUP($A711,Economática!$A$3:$AI$823,28,FALSE)=0,VLOOKUP($A711,Economática!$A$3:$AI$823,28,FALSE)=\"-\"),1/0,VLOOKUP($A711,Economática!$A$3:$AI$823,28,FALSE)))","v":""},{"$f":"IF($A711=\"\",\"\",IF(OR(VLOOKUP($A711,Economática!$A$3:$AI$823,29,FALSE)=0,VLOOKUP($A711,Economática!$A$3:$AI$823,29,FALSE)=\"-\"),1/0,VLOOKUP($A711,Economática!$A$3:$AI$823,29,FALSE)))","v":""},{"$f":"IF($A711=\"\",\"\",IF(OR(VLOOKUP($A711,Economática!$A$3:$AI$823,30,FALSE)/E711=0,VLOOKUP($A711,Economática!$A$3:$AI$823,30,FALSE)/E711=\"-\",VLOOKUP($A711,Economática!$A$3:$AI$823,30,FALSE)/E711<33.33%,VLOOKUP($A711,Economática!$A$3:$AI$823,30,FALSE)/E711>100%),1/0,VLOOKUP($A711,Economática!$A$3:$AI$823,30,FALSE)/E711))","v":""},"",{"$f":"IF($A711=\"\",\"\",IF(OR(VLOOKUP($A711,Economática!$A$3:$AI$823,25,FALSE)=0,VLOOKUP($A711,Economática!$A$3:$AI$823,25,FALSE)=\"-\"),1/0,VLOOKUP($A711,Economática!$A$3:$AI$823,25,FALSE)))","v":""},{"$f":"CONCATENATE(Economática!B689,\" \",Economática!C689)","v":" "}]
[{"$f":"IF(Economática!AG690=\"\",\"\",Economática!AG690)","v":""},{"$f":"IF($A712=\"\",\"\",VLOOKUP(VLOOKUP($A712,Economática!$A$3:$AI$823,6,FALSE),Correção!$B$16:$C$36,2,FALSE))","v":""},{"$f":"IF(Economática!B690=\"\",\"\",Economática!B690)","v":""},{"$f":"IF($A712=\"\",\"\",IF(OR(VLOOKUP($A712,Economática!$A$3:$AI$823,8,FALSE)=0,VLOOKUP($A712,Economática!$A$3:$AI$823,8,FALSE)=\"-\"),1/0,VLOOKUP($A712,Economática!$A$3:$AI$823,8,FALSE)))","v":""},{"$f":"IF(A712=\"\",\"\",IF(ISERROR(VLOOKUP(A712,Correção!$B$2:$G$13,9,FALSE)),VLOOKUP($A712,Economática!$A$3:$AI$823,9,FALSE),VLOOKUP(A712,Correção!$B$2:$G$13,9,FALSE)))","v":""},{"$f":"IF($A712=\"\",\"\",Economática!G690)","v":""},{"$f":"IF($A712=\"\",\"\",IF(OR(VLOOKUP($A712,Economática!$A$3:$AI$823,10,FALSE)=0,VLOOKUP($A712,Economática!$A$3:$AI$823,10,FALSE)=\"-\"),1/0,VLOOKUP($A712,Economática!$A$3:$AI$823,10,FALSE)))","v":""},{"$f":"IF($A712=\"\",\"\",IF(OR(VLOOKUP($A712,Economática!$A$3:$AI$823,11,FALSE)=0,VLOOKUP($A712,Economática!$A$3:$AI$823,11,FALSE)=\"-\"),1/0,VLOOKUP($A712,Economática!$A$3:$AI$823,11,FALSE)))","v":""},{"$f":"IF($A712=\"\",\"\",IF(OR(VLOOKUP($A712,Economática!$A$3:$AI$823,12,FALSE)=0,VLOOKUP($A712,Economática!$A$3:$AI$823,12,FALSE)=\"-\"),1/0,VLOOKUP($A712,Economática!$A$3:$AI$823,12,FALSE)))","v":""},{"$f":"IF($A712=\"\",\"\",IF(OR(VLOOKUP($A712,Economática!$A$3:$AI$823,13,FALSE)=0,VLOOKUP($A712,Economática!$A$3:$AI$823,13,FALSE)=\"-\"),1/0,VLOOKUP($A712,Economática!$A$3:$AI$823,13,FALSE)))","v":""},{"$f":"IF($A712=\"\",\"\",IF(OR(VLOOKUP($A712,Economática!$A$3:$AI$823,14,FALSE)=0,VLOOKUP($A712,Economática!$A$3:$AI$823,14,FALSE)=\"-\"),1/0,VLOOKUP($A712,Economática!$A$3:$AI$823,14,FALSE)))","v":""},{"$f":"IF($A712=\"\",\"\",IF(OR(VLOOKUP($A712,Economática!$A$3:$AI$823,15,FALSE)=0,VLOOKUP($A712,Economática!$A$3:$AI$823,15,FALSE)=\"-\"),1/0,VLOOKUP($A712,Economática!$A$3:$AI$823,15,FALSE)))","v":""},{"$f":"IF($A712=\"\",\"\",IF(OR(VLOOKUP($A712,Economática!$A$3:$AI$823,16,FALSE)=0,VLOOKUP($A712,Economática!$A$3:$AI$823,16,FALSE)=\"-\"),1/0,VLOOKUP($A712,Economática!$A$3:$AI$823,16,FALSE)))","v":""},{"$f":"IF($A712=\"\",\"\",IF(OR(VLOOKUP($A712,Economática!$A$3:$AI$823,17,FALSE)=0,VLOOKUP($A712,Economática!$A$3:$AI$823,17,FALSE)=\"-\"),1/0,VLOOKUP($A712,Economática!$A$3:$AI$823,17,FALSE)))","v":""},{"$f":"IF($A712=\"\",\"\",IF(OR(VLOOKUP($A712,Economática!$A$3:$AI$823,18,FALSE)=0,VLOOKUP($A712,Economática!$A$3:$AI$823,18,FALSE)=\"-\"),1/0,VLOOKUP($A712,Economática!$A$3:$AI$823,18,FALSE)))","v":""},{"$f":"IF($A712=\"\",\"\",IF(OR(VLOOKUP($A712,Economática!$A$3:$AI$823,19,FALSE)=0,VLOOKUP($A712,Economática!$A$3:$AI$823,19,FALSE)=\"-\"),1/0,VLOOKUP($A712,Economática!$A$3:$AI$823,19,FALSE)))","v":""},{"$f":"IF($A712=\"\",\"\",VLOOKUP($A712,Economática!$A$3:$AI$823,20,FALSE)/E712)","v":""},"","","",{"$f":"IF($A712=\"\",\"\",IF(OR(VLOOKUP($A712,Economática!$A$3:$AI$823,21,FALSE)/100=0,VLOOKUP($A712,Economática!$A$3:$AI$823,21,FALSE)/100=\"-\"),1/0,VLOOKUP($A712,Economática!$A$3:$AI$823,21,FALSE)/100))","v":""},{"$f":"IF($A712=\"\",\"\",IF(OR(VLOOKUP($A712,Economática!$A$3:$AI$823,22,FALSE)/100=0,VLOOKUP($A712,Economática!$A$3:$AI$823,22,FALSE)/100=\"-\"),1/0,VLOOKUP($A712,Economática!$A$3:$AI$823,22,FALSE)/100))","v":""},{"$f":"IF($A712=\"\",\"\",IF(OR(VLOOKUP($A712,Economática!$A$3:$AI$823,23,FALSE)=0,VLOOKUP($A712,Economática!$A$3:$AI$823,23,FALSE)=\"-\"),1/0,VLOOKUP($A712,Economática!$A$3:$AI$823,23,FALSE)))","v":""},{"$f":"IF($A712=\"\",\"\",IF(OR(VLOOKUP($A712,Economática!$A$3:$AI$823,24,FALSE)=0,VLOOKUP($A712,Economática!$A$3:$AI$823,24,FALSE)=\"-\"),1/0,VLOOKUP($A712,Economática!$A$3:$AI$823,24,FALSE)))","v":""},{"$f":"IF($A712=\"\",\"\",IF(OR(VLOOKUP($A712,Economática!$A$3:$AI$823,25,FALSE)=0,VLOOKUP($A712,Economática!$A$3:$AI$823,25,FALSE)=\"-\"),1/0,VLOOKUP($A712,Economática!$A$3:$AI$823,25,FALSE)))","v":""},{"$f":"IF($A712=\"\",\"\",IF(ISERROR((F712+VLOOKUP($A712,Economática!$A$3:$AI$823,26,FALSE))/Y712),(F712+VLOOKUP($A712,Economática!$A$3:$AI$823,26,FALSE))/Y712,(F712+VLOOKUP($A712,Economática!$A$3:$AI$823,26,FALSE))/Y712))","v":""},{"$f":"IF($A712=\"\",\"\",IF(OR(-VLOOKUP($A712,Economática!$A$3:$AI$823,27,FALSE)=0,-VLOOKUP($A712,Economática!$A$3:$AI$823,27,FALSE)=\"-\"),1/0,-VLOOKUP($A712,Economática!$A$3:$AI$823,27,FALSE)))","v":""},"",{"$f":"IF($A712=\"\",\"\",IF(OR(VLOOKUP($A712,Economática!$A$3:$AI$823,28,FALSE)=0,VLOOKUP($A712,Economática!$A$3:$AI$823,28,FALSE)=\"-\"),1/0,VLOOKUP($A712,Economática!$A$3:$AI$823,28,FALSE)))","v":""},{"$f":"IF($A712=\"\",\"\",IF(OR(VLOOKUP($A712,Economática!$A$3:$AI$823,29,FALSE)=0,VLOOKUP($A712,Economática!$A$3:$AI$823,29,FALSE)=\"-\"),1/0,VLOOKUP($A712,Economática!$A$3:$AI$823,29,FALSE)))","v":""},{"$f":"IF($A712=\"\",\"\",IF(OR(VLOOKUP($A712,Economática!$A$3:$AI$823,30,FALSE)/E712=0,VLOOKUP($A712,Economática!$A$3:$AI$823,30,FALSE)/E712=\"-\",VLOOKUP($A712,Economática!$A$3:$AI$823,30,FALSE)/E712<33.33%,VLOOKUP($A712,Economática!$A$3:$AI$823,30,FALSE)/E712>100%),1/0,VLOOKUP($A712,Economática!$A$3:$AI$823,30,FALSE)/E712))","v":""},"",{"$f":"IF($A712=\"\",\"\",IF(OR(VLOOKUP($A712,Economática!$A$3:$AI$823,25,FALSE)=0,VLOOKUP($A712,Economática!$A$3:$AI$823,25,FALSE)=\"-\"),1/0,VLOOKUP($A712,Economática!$A$3:$AI$823,25,FALSE)))","v":""},{"$f":"CONCATENATE(Economática!B690,\" \",Economática!C690)","v":" "}]
[{"$f":"IF(Economática!AG691=\"\",\"\",Economática!AG691)","v":""},{"$f":"IF($A713=\"\",\"\",VLOOKUP(VLOOKUP($A713,Economática!$A$3:$AI$823,6,FALSE),Correção!$B$16:$C$36,2,FALSE))","v":""},{"$f":"IF(Economática!B691=\"\",\"\",Economática!B691)","v":""},{"$f":"IF($A713=\"\",\"\",IF(OR(VLOOKUP($A713,Economática!$A$3:$AI$823,8,FALSE)=0,VLOOKUP($A713,Economática!$A$3:$AI$823,8,FALSE)=\"-\"),1/0,VLOOKUP($A713,Economática!$A$3:$AI$823,8,FALSE)))","v":""},{"$f":"IF(A713=\"\",\"\",IF(ISERROR(VLOOKUP(A713,Correção!$B$2:$G$13,9,FALSE)),VLOOKUP($A713,Economática!$A$3:$AI$823,9,FALSE),VLOOKUP(A713,Correção!$B$2:$G$13,9,FALSE)))","v":""},{"$f":"IF($A713=\"\",\"\",Economática!G691)","v":""},{"$f":"IF($A713=\"\",\"\",IF(OR(VLOOKUP($A713,Economática!$A$3:$AI$823,10,FALSE)=0,VLOOKUP($A713,Economática!$A$3:$AI$823,10,FALSE)=\"-\"),1/0,VLOOKUP($A713,Economática!$A$3:$AI$823,10,FALSE)))","v":""},{"$f":"IF($A713=\"\",\"\",IF(OR(VLOOKUP($A713,Economática!$A$3:$AI$823,11,FALSE)=0,VLOOKUP($A713,Economática!$A$3:$AI$823,11,FALSE)=\"-\"),1/0,VLOOKUP($A713,Economática!$A$3:$AI$823,11,FALSE)))","v":""},{"$f":"IF($A713=\"\",\"\",IF(OR(VLOOKUP($A713,Economática!$A$3:$AI$823,12,FALSE)=0,VLOOKUP($A713,Economática!$A$3:$AI$823,12,FALSE)=\"-\"),1/0,VLOOKUP($A713,Economática!$A$3:$AI$823,12,FALSE)))","v":""},{"$f":"IF($A713=\"\",\"\",IF(OR(VLOOKUP($A713,Economática!$A$3:$AI$823,13,FALSE)=0,VLOOKUP($A713,Economática!$A$3:$AI$823,13,FALSE)=\"-\"),1/0,VLOOKUP($A713,Economática!$A$3:$AI$823,13,FALSE)))","v":""},{"$f":"IF($A713=\"\",\"\",IF(OR(VLOOKUP($A713,Economática!$A$3:$AI$823,14,FALSE)=0,VLOOKUP($A713,Economática!$A$3:$AI$823,14,FALSE)=\"-\"),1/0,VLOOKUP($A713,Economática!$A$3:$AI$823,14,FALSE)))","v":""},{"$f":"IF($A713=\"\",\"\",IF(OR(VLOOKUP($A713,Economática!$A$3:$AI$823,15,FALSE)=0,VLOOKUP($A713,Economática!$A$3:$AI$823,15,FALSE)=\"-\"),1/0,VLOOKUP($A713,Economática!$A$3:$AI$823,15,FALSE)))","v":""},{"$f":"IF($A713=\"\",\"\",IF(OR(VLOOKUP($A713,Economática!$A$3:$AI$823,16,FALSE)=0,VLOOKUP($A713,Economática!$A$3:$AI$823,16,FALSE)=\"-\"),1/0,VLOOKUP($A713,Economática!$A$3:$AI$823,16,FALSE)))","v":""},{"$f":"IF($A713=\"\",\"\",IF(OR(VLOOKUP($A713,Economática!$A$3:$AI$823,17,FALSE)=0,VLOOKUP($A713,Economática!$A$3:$AI$823,17,FALSE)=\"-\"),1/0,VLOOKUP($A713,Economática!$A$3:$AI$823,17,FALSE)))","v":""},{"$f":"IF($A713=\"\",\"\",IF(OR(VLOOKUP($A713,Economática!$A$3:$AI$823,18,FALSE)=0,VLOOKUP($A713,Economática!$A$3:$AI$823,18,FALSE)=\"-\"),1/0,VLOOKUP($A713,Economática!$A$3:$AI$823,18,FALSE)))","v":""},{"$f":"IF($A713=\"\",\"\",IF(OR(VLOOKUP($A713,Economática!$A$3:$AI$823,19,FALSE)=0,VLOOKUP($A713,Economática!$A$3:$AI$823,19,FALSE)=\"-\"),1/0,VLOOKUP($A713,Economática!$A$3:$AI$823,19,FALSE)))","v":""},{"$f":"IF($A713=\"\",\"\",VLOOKUP($A713,Economática!$A$3:$AI$823,20,FALSE)/E713)","v":""},"","","",{"$f":"IF($A713=\"\",\"\",IF(OR(VLOOKUP($A713,Economática!$A$3:$AI$823,21,FALSE)/100=0,VLOOKUP($A713,Economática!$A$3:$AI$823,21,FALSE)/100=\"-\"),1/0,VLOOKUP($A713,Economática!$A$3:$AI$823,21,FALSE)/100))","v":""},{"$f":"IF($A713=\"\",\"\",IF(OR(VLOOKUP($A713,Economática!$A$3:$AI$823,22,FALSE)/100=0,VLOOKUP($A713,Economática!$A$3:$AI$823,22,FALSE)/100=\"-\"),1/0,VLOOKUP($A713,Economática!$A$3:$AI$823,22,FALSE)/100))","v":""},{"$f":"IF($A713=\"\",\"\",IF(OR(VLOOKUP($A713,Economática!$A$3:$AI$823,23,FALSE)=0,VLOOKUP($A713,Economática!$A$3:$AI$823,23,FALSE)=\"-\"),1/0,VLOOKUP($A713,Economática!$A$3:$AI$823,23,FALSE)))","v":""},{"$f":"IF($A713=\"\",\"\",IF(OR(VLOOKUP($A713,Economática!$A$3:$AI$823,24,FALSE)=0,VLOOKUP($A713,Economática!$A$3:$AI$823,24,FALSE)=\"-\"),1/0,VLOOKUP($A713,Economática!$A$3:$AI$823,24,FALSE)))","v":""},{"$f":"IF($A713=\"\",\"\",IF(OR(VLOOKUP($A713,Economática!$A$3:$AI$823,25,FALSE)=0,VLOOKUP($A713,Economática!$A$3:$AI$823,25,FALSE)=\"-\"),1/0,VLOOKUP($A713,Economática!$A$3:$AI$823,25,FALSE)))","v":""},{"$f":"IF($A713=\"\",\"\",IF(ISERROR((F713+VLOOKUP($A713,Economática!$A$3:$AI$823,26,FALSE))/Y713),(F713+VLOOKUP($A713,Economática!$A$3:$AI$823,26,FALSE))/Y713,(F713+VLOOKUP($A713,Economática!$A$3:$AI$823,26,FALSE))/Y713))","v":""},{"$f":"IF($A713=\"\",\"\",IF(OR(-VLOOKUP($A713,Economática!$A$3:$AI$823,27,FALSE)=0,-VLOOKUP($A713,Economática!$A$3:$AI$823,27,FALSE)=\"-\"),1/0,-VLOOKUP($A713,Economática!$A$3:$AI$823,27,FALSE)))","v":""},"",{"$f":"IF($A713=\"\",\"\",IF(OR(VLOOKUP($A713,Economática!$A$3:$AI$823,28,FALSE)=0,VLOOKUP($A713,Economática!$A$3:$AI$823,28,FALSE)=\"-\"),1/0,VLOOKUP($A713,Economática!$A$3:$AI$823,28,FALSE)))","v":""},{"$f":"IF($A713=\"\",\"\",IF(OR(VLOOKUP($A713,Economática!$A$3:$AI$823,29,FALSE)=0,VLOOKUP($A713,Economática!$A$3:$AI$823,29,FALSE)=\"-\"),1/0,VLOOKUP($A713,Economática!$A$3:$AI$823,29,FALSE)))","v":""},{"$f":"IF($A713=\"\",\"\",IF(OR(VLOOKUP($A713,Economática!$A$3:$AI$823,30,FALSE)/E713=0,VLOOKUP($A713,Economática!$A$3:$AI$823,30,FALSE)/E713=\"-\",VLOOKUP($A713,Economática!$A$3:$AI$823,30,FALSE)/E713<33.33%,VLOOKUP($A713,Economática!$A$3:$AI$823,30,FALSE)/E713>100%),1/0,VLOOKUP($A713,Economática!$A$3:$AI$823,30,FALSE)/E713))","v":""},"",{"$f":"IF($A713=\"\",\"\",IF(OR(VLOOKUP($A713,Economática!$A$3:$AI$823,25,FALSE)=0,VLOOKUP($A713,Economática!$A$3:$AI$823,25,FALSE)=\"-\"),1/0,VLOOKUP($A713,Economática!$A$3:$AI$823,25,FALSE)))","v":""},{"$f":"CONCATENATE(Economática!B691,\" \",Economática!C691)","v":" "}]
[{"$f":"IF(Economática!AG692=\"\",\"\",Economática!AG692)","v":""},{"$f":"IF($A714=\"\",\"\",VLOOKUP(VLOOKUP($A714,Economática!$A$3:$AI$823,6,FALSE),Correção!$B$16:$C$36,2,FALSE))","v":""},{"$f":"IF(Economática!B692=\"\",\"\",Economática!B692)","v":""},{"$f":"IF($A714=\"\",\"\",IF(OR(VLOOKUP($A714,Economática!$A$3:$AI$823,8,FALSE)=0,VLOOKUP($A714,Economática!$A$3:$AI$823,8,FALSE)=\"-\"),1/0,VLOOKUP($A714,Economática!$A$3:$AI$823,8,FALSE)))","v":""},{"$f":"IF(A714=\"\",\"\",IF(ISERROR(VLOOKUP(A714,Correção!$B$2:$G$13,9,FALSE)),VLOOKUP($A714,Economática!$A$3:$AI$823,9,FALSE),VLOOKUP(A714,Correção!$B$2:$G$13,9,FALSE)))","v":""},{"$f":"IF($A714=\"\",\"\",Economática!G692)","v":""},{"$f":"IF($A714=\"\",\"\",IF(OR(VLOOKUP($A714,Economática!$A$3:$AI$823,10,FALSE)=0,VLOOKUP($A714,Economática!$A$3:$AI$823,10,FALSE)=\"-\"),1/0,VLOOKUP($A714,Economática!$A$3:$AI$823,10,FALSE)))","v":""},{"$f":"IF($A714=\"\",\"\",IF(OR(VLOOKUP($A714,Economática!$A$3:$AI$823,11,FALSE)=0,VLOOKUP($A714,Economática!$A$3:$AI$823,11,FALSE)=\"-\"),1/0,VLOOKUP($A714,Economática!$A$3:$AI$823,11,FALSE)))","v":""},{"$f":"IF($A714=\"\",\"\",IF(OR(VLOOKUP($A714,Economática!$A$3:$AI$823,12,FALSE)=0,VLOOKUP($A714,Economática!$A$3:$AI$823,12,FALSE)=\"-\"),1/0,VLOOKUP($A714,Economática!$A$3:$AI$823,12,FALSE)))","v":""},{"$f":"IF($A714=\"\",\"\",IF(OR(VLOOKUP($A714,Economática!$A$3:$AI$823,13,FALSE)=0,VLOOKUP($A714,Economática!$A$3:$AI$823,13,FALSE)=\"-\"),1/0,VLOOKUP($A714,Economática!$A$3:$AI$823,13,FALSE)))","v":""},{"$f":"IF($A714=\"\",\"\",IF(OR(VLOOKUP($A714,Economática!$A$3:$AI$823,14,FALSE)=0,VLOOKUP($A714,Economática!$A$3:$AI$823,14,FALSE)=\"-\"),1/0,VLOOKUP($A714,Economática!$A$3:$AI$823,14,FALSE)))","v":""},{"$f":"IF($A714=\"\",\"\",IF(OR(VLOOKUP($A714,Economática!$A$3:$AI$823,15,FALSE)=0,VLOOKUP($A714,Economática!$A$3:$AI$823,15,FALSE)=\"-\"),1/0,VLOOKUP($A714,Economática!$A$3:$AI$823,15,FALSE)))","v":""},{"$f":"IF($A714=\"\",\"\",IF(OR(VLOOKUP($A714,Economática!$A$3:$AI$823,16,FALSE)=0,VLOOKUP($A714,Economática!$A$3:$AI$823,16,FALSE)=\"-\"),1/0,VLOOKUP($A714,Economática!$A$3:$AI$823,16,FALSE)))","v":""},{"$f":"IF($A714=\"\",\"\",IF(OR(VLOOKUP($A714,Economática!$A$3:$AI$823,17,FALSE)=0,VLOOKUP($A714,Economática!$A$3:$AI$823,17,FALSE)=\"-\"),1/0,VLOOKUP($A714,Economática!$A$3:$AI$823,17,FALSE)))","v":""},{"$f":"IF($A714=\"\",\"\",IF(OR(VLOOKUP($A714,Economática!$A$3:$AI$823,18,FALSE)=0,VLOOKUP($A714,Economática!$A$3:$AI$823,18,FALSE)=\"-\"),1/0,VLOOKUP($A714,Economática!$A$3:$AI$823,18,FALSE)))","v":""},{"$f":"IF($A714=\"\",\"\",IF(OR(VLOOKUP($A714,Economática!$A$3:$AI$823,19,FALSE)=0,VLOOKUP($A714,Economática!$A$3:$AI$823,19,FALSE)=\"-\"),1/0,VLOOKUP($A714,Economática!$A$3:$AI$823,19,FALSE)))","v":""},{"$f":"IF($A714=\"\",\"\",VLOOKUP($A714,Economática!$A$3:$AI$823,20,FALSE)/E714)","v":""},"","","",{"$f":"IF($A714=\"\",\"\",IF(OR(VLOOKUP($A714,Economática!$A$3:$AI$823,21,FALSE)/100=0,VLOOKUP($A714,Economática!$A$3:$AI$823,21,FALSE)/100=\"-\"),1/0,VLOOKUP($A714,Economática!$A$3:$AI$823,21,FALSE)/100))","v":""},{"$f":"IF($A714=\"\",\"\",IF(OR(VLOOKUP($A714,Economática!$A$3:$AI$823,22,FALSE)/100=0,VLOOKUP($A714,Economática!$A$3:$AI$823,22,FALSE)/100=\"-\"),1/0,VLOOKUP($A714,Economática!$A$3:$AI$823,22,FALSE)/100))","v":""},{"$f":"IF($A714=\"\",\"\",IF(OR(VLOOKUP($A714,Economática!$A$3:$AI$823,23,FALSE)=0,VLOOKUP($A714,Economática!$A$3:$AI$823,23,FALSE)=\"-\"),1/0,VLOOKUP($A714,Economática!$A$3:$AI$823,23,FALSE)))","v":""},{"$f":"IF($A714=\"\",\"\",IF(OR(VLOOKUP($A714,Economática!$A$3:$AI$823,24,FALSE)=0,VLOOKUP($A714,Economática!$A$3:$AI$823,24,FALSE)=\"-\"),1/0,VLOOKUP($A714,Economática!$A$3:$AI$823,24,FALSE)))","v":""},{"$f":"IF($A714=\"\",\"\",IF(OR(VLOOKUP($A714,Economática!$A$3:$AI$823,25,FALSE)=0,VLOOKUP($A714,Economática!$A$3:$AI$823,25,FALSE)=\"-\"),1/0,VLOOKUP($A714,Economática!$A$3:$AI$823,25,FALSE)))","v":""},{"$f":"IF($A714=\"\",\"\",IF(ISERROR((F714+VLOOKUP($A714,Economática!$A$3:$AI$823,26,FALSE))/Y714),(F714+VLOOKUP($A714,Economática!$A$3:$AI$823,26,FALSE))/Y714,(F714+VLOOKUP($A714,Economática!$A$3:$AI$823,26,FALSE))/Y714))","v":""},{"$f":"IF($A714=\"\",\"\",IF(OR(-VLOOKUP($A714,Economática!$A$3:$AI$823,27,FALSE)=0,-VLOOKUP($A714,Economática!$A$3:$AI$823,27,FALSE)=\"-\"),1/0,-VLOOKUP($A714,Economática!$A$3:$AI$823,27,FALSE)))","v":""},"",{"$f":"IF($A714=\"\",\"\",IF(OR(VLOOKUP($A714,Economática!$A$3:$AI$823,28,FALSE)=0,VLOOKUP($A714,Economática!$A$3:$AI$823,28,FALSE)=\"-\"),1/0,VLOOKUP($A714,Economática!$A$3:$AI$823,28,FALSE)))","v":""},{"$f":"IF($A714=\"\",\"\",IF(OR(VLOOKUP($A714,Economática!$A$3:$AI$823,29,FALSE)=0,VLOOKUP($A714,Economática!$A$3:$AI$823,29,FALSE)=\"-\"),1/0,VLOOKUP($A714,Economática!$A$3:$AI$823,29,FALSE)))","v":""},{"$f":"IF($A714=\"\",\"\",IF(OR(VLOOKUP($A714,Economática!$A$3:$AI$823,30,FALSE)/E714=0,VLOOKUP($A714,Economática!$A$3:$AI$823,30,FALSE)/E714=\"-\",VLOOKUP($A714,Economática!$A$3:$AI$823,30,FALSE)/E714<33.33%,VLOOKUP($A714,Economática!$A$3:$AI$823,30,FALSE)/E714>100%),1/0,VLOOKUP($A714,Economática!$A$3:$AI$823,30,FALSE)/E714))","v":""},"",{"$f":"IF($A714=\"\",\"\",IF(OR(VLOOKUP($A714,Economática!$A$3:$AI$823,25,FALSE)=0,VLOOKUP($A714,Economática!$A$3:$AI$823,25,FALSE)=\"-\"),1/0,VLOOKUP($A714,Economática!$A$3:$AI$823,25,FALSE)))","v":""},{"$f":"CONCATENATE(Economática!B692,\" \",Economática!C692)","v":" "}]
[{"$f":"IF(Economática!AG693=\"\",\"\",Economática!AG693)","v":""},{"$f":"IF($A715=\"\",\"\",VLOOKUP(VLOOKUP($A715,Economática!$A$3:$AI$823,6,FALSE),Correção!$B$16:$C$36,2,FALSE))","v":""},{"$f":"IF(Economática!B693=\"\",\"\",Economática!B693)","v":""},{"$f":"IF($A715=\"\",\"\",IF(OR(VLOOKUP($A715,Economática!$A$3:$AI$823,8,FALSE)=0,VLOOKUP($A715,Economática!$A$3:$AI$823,8,FALSE)=\"-\"),1/0,VLOOKUP($A715,Economática!$A$3:$AI$823,8,FALSE)))","v":""},{"$f":"IF(A715=\"\",\"\",IF(ISERROR(VLOOKUP(A715,Correção!$B$2:$G$13,9,FALSE)),VLOOKUP($A715,Economática!$A$3:$AI$823,9,FALSE),VLOOKUP(A715,Correção!$B$2:$G$13,9,FALSE)))","v":""},{"$f":"IF($A715=\"\",\"\",Economática!G693)","v":""},{"$f":"IF($A715=\"\",\"\",IF(OR(VLOOKUP($A715,Economática!$A$3:$AI$823,10,FALSE)=0,VLOOKUP($A715,Economática!$A$3:$AI$823,10,FALSE)=\"-\"),1/0,VLOOKUP($A715,Economática!$A$3:$AI$823,10,FALSE)))","v":""},{"$f":"IF($A715=\"\",\"\",IF(OR(VLOOKUP($A715,Economática!$A$3:$AI$823,11,FALSE)=0,VLOOKUP($A715,Economática!$A$3:$AI$823,11,FALSE)=\"-\"),1/0,VLOOKUP($A715,Economática!$A$3:$AI$823,11,FALSE)))","v":""},{"$f":"IF($A715=\"\",\"\",IF(OR(VLOOKUP($A715,Economática!$A$3:$AI$823,12,FALSE)=0,VLOOKUP($A715,Economática!$A$3:$AI$823,12,FALSE)=\"-\"),1/0,VLOOKUP($A715,Economática!$A$3:$AI$823,12,FALSE)))","v":""},{"$f":"IF($A715=\"\",\"\",IF(OR(VLOOKUP($A715,Economática!$A$3:$AI$823,13,FALSE)=0,VLOOKUP($A715,Economática!$A$3:$AI$823,13,FALSE)=\"-\"),1/0,VLOOKUP($A715,Economática!$A$3:$AI$823,13,FALSE)))","v":""},{"$f":"IF($A715=\"\",\"\",IF(OR(VLOOKUP($A715,Economática!$A$3:$AI$823,14,FALSE)=0,VLOOKUP($A715,Economática!$A$3:$AI$823,14,FALSE)=\"-\"),1/0,VLOOKUP($A715,Economática!$A$3:$AI$823,14,FALSE)))","v":""},{"$f":"IF($A715=\"\",\"\",IF(OR(VLOOKUP($A715,Economática!$A$3:$AI$823,15,FALSE)=0,VLOOKUP($A715,Economática!$A$3:$AI$823,15,FALSE)=\"-\"),1/0,VLOOKUP($A715,Economática!$A$3:$AI$823,15,FALSE)))","v":""},{"$f":"IF($A715=\"\",\"\",IF(OR(VLOOKUP($A715,Economática!$A$3:$AI$823,16,FALSE)=0,VLOOKUP($A715,Economática!$A$3:$AI$823,16,FALSE)=\"-\"),1/0,VLOOKUP($A715,Economática!$A$3:$AI$823,16,FALSE)))","v":""},{"$f":"IF($A715=\"\",\"\",IF(OR(VLOOKUP($A715,Economática!$A$3:$AI$823,17,FALSE)=0,VLOOKUP($A715,Economática!$A$3:$AI$823,17,FALSE)=\"-\"),1/0,VLOOKUP($A715,Economática!$A$3:$AI$823,17,FALSE)))","v":""},{"$f":"IF($A715=\"\",\"\",IF(OR(VLOOKUP($A715,Economática!$A$3:$AI$823,18,FALSE)=0,VLOOKUP($A715,Economática!$A$3:$AI$823,18,FALSE)=\"-\"),1/0,VLOOKUP($A715,Economática!$A$3:$AI$823,18,FALSE)))","v":""},{"$f":"IF($A715=\"\",\"\",IF(OR(VLOOKUP($A715,Economática!$A$3:$AI$823,19,FALSE)=0,VLOOKUP($A715,Economática!$A$3:$AI$823,19,FALSE)=\"-\"),1/0,VLOOKUP($A715,Economática!$A$3:$AI$823,19,FALSE)))","v":""},{"$f":"IF($A715=\"\",\"\",VLOOKUP($A715,Economática!$A$3:$AI$823,20,FALSE)/E715)","v":""},"","","",{"$f":"IF($A715=\"\",\"\",IF(OR(VLOOKUP($A715,Economática!$A$3:$AI$823,21,FALSE)/100=0,VLOOKUP($A715,Economática!$A$3:$AI$823,21,FALSE)/100=\"-\"),1/0,VLOOKUP($A715,Economática!$A$3:$AI$823,21,FALSE)/100))","v":""},{"$f":"IF($A715=\"\",\"\",IF(OR(VLOOKUP($A715,Economática!$A$3:$AI$823,22,FALSE)/100=0,VLOOKUP($A715,Economática!$A$3:$AI$823,22,FALSE)/100=\"-\"),1/0,VLOOKUP($A715,Economática!$A$3:$AI$823,22,FALSE)/100))","v":""},{"$f":"IF($A715=\"\",\"\",IF(OR(VLOOKUP($A715,Economática!$A$3:$AI$823,23,FALSE)=0,VLOOKUP($A715,Economática!$A$3:$AI$823,23,FALSE)=\"-\"),1/0,VLOOKUP($A715,Economática!$A$3:$AI$823,23,FALSE)))","v":""},{"$f":"IF($A715=\"\",\"\",IF(OR(VLOOKUP($A715,Economática!$A$3:$AI$823,24,FALSE)=0,VLOOKUP($A715,Economática!$A$3:$AI$823,24,FALSE)=\"-\"),1/0,VLOOKUP($A715,Economática!$A$3:$AI$823,24,FALSE)))","v":""},{"$f":"IF($A715=\"\",\"\",IF(OR(VLOOKUP($A715,Economática!$A$3:$AI$823,25,FALSE)=0,VLOOKUP($A715,Economática!$A$3:$AI$823,25,FALSE)=\"-\"),1/0,VLOOKUP($A715,Economática!$A$3:$AI$823,25,FALSE)))","v":""},{"$f":"IF($A715=\"\",\"\",IF(ISERROR((F715+VLOOKUP($A715,Economática!$A$3:$AI$823,26,FALSE))/Y715),(F715+VLOOKUP($A715,Economática!$A$3:$AI$823,26,FALSE))/Y715,(F715+VLOOKUP($A715,Economática!$A$3:$AI$823,26,FALSE))/Y715))","v":""},{"$f":"IF($A715=\"\",\"\",IF(OR(-VLOOKUP($A715,Economática!$A$3:$AI$823,27,FALSE)=0,-VLOOKUP($A715,Economática!$A$3:$AI$823,27,FALSE)=\"-\"),1/0,-VLOOKUP($A715,Economática!$A$3:$AI$823,27,FALSE)))","v":""},"",{"$f":"IF($A715=\"\",\"\",IF(OR(VLOOKUP($A715,Economática!$A$3:$AI$823,28,FALSE)=0,VLOOKUP($A715,Economática!$A$3:$AI$823,28,FALSE)=\"-\"),1/0,VLOOKUP($A715,Economática!$A$3:$AI$823,28,FALSE)))","v":""},{"$f":"IF($A715=\"\",\"\",IF(OR(VLOOKUP($A715,Economática!$A$3:$AI$823,29,FALSE)=0,VLOOKUP($A715,Economática!$A$3:$AI$823,29,FALSE)=\"-\"),1/0,VLOOKUP($A715,Economática!$A$3:$AI$823,29,FALSE)))","v":""},{"$f":"IF($A715=\"\",\"\",IF(OR(VLOOKUP($A715,Economática!$A$3:$AI$823,30,FALSE)/E715=0,VLOOKUP($A715,Economática!$A$3:$AI$823,30,FALSE)/E715=\"-\",VLOOKUP($A715,Economática!$A$3:$AI$823,30,FALSE)/E715<33.33%,VLOOKUP($A715,Economática!$A$3:$AI$823,30,FALSE)/E715>100%),1/0,VLOOKUP($A715,Economática!$A$3:$AI$823,30,FALSE)/E715))","v":""},"",{"$f":"IF($A715=\"\",\"\",IF(OR(VLOOKUP($A715,Economática!$A$3:$AI$823,25,FALSE)=0,VLOOKUP($A715,Economática!$A$3:$AI$823,25,FALSE)=\"-\"),1/0,VLOOKUP($A715,Economática!$A$3:$AI$823,25,FALSE)))","v":""},{"$f":"CONCATENATE(Economática!B693,\" \",Economática!C693)","v":" "}]
[{"$f":"IF(Economática!AG694=\"\",\"\",Economática!AG694)","v":""},{"$f":"IF($A716=\"\",\"\",VLOOKUP(VLOOKUP($A716,Economática!$A$3:$AI$823,6,FALSE),Correção!$B$16:$C$36,2,FALSE))","v":""},{"$f":"IF(Economática!B694=\"\",\"\",Economática!B694)","v":""},{"$f":"IF($A716=\"\",\"\",IF(OR(VLOOKUP($A716,Economática!$A$3:$AI$823,8,FALSE)=0,VLOOKUP($A716,Economática!$A$3:$AI$823,8,FALSE)=\"-\"),1/0,VLOOKUP($A716,Economática!$A$3:$AI$823,8,FALSE)))","v":""},{"$f":"IF(A716=\"\",\"\",IF(ISERROR(VLOOKUP(A716,Correção!$B$2:$G$13,9,FALSE)),VLOOKUP($A716,Economática!$A$3:$AI$823,9,FALSE),VLOOKUP(A716,Correção!$B$2:$G$13,9,FALSE)))","v":""},{"$f":"IF($A716=\"\",\"\",Economática!G694)","v":""},{"$f":"IF($A716=\"\",\"\",IF(OR(VLOOKUP($A716,Economática!$A$3:$AI$823,10,FALSE)=0,VLOOKUP($A716,Economática!$A$3:$AI$823,10,FALSE)=\"-\"),1/0,VLOOKUP($A716,Economática!$A$3:$AI$823,10,FALSE)))","v":""},{"$f":"IF($A716=\"\",\"\",IF(OR(VLOOKUP($A716,Economática!$A$3:$AI$823,11,FALSE)=0,VLOOKUP($A716,Economática!$A$3:$AI$823,11,FALSE)=\"-\"),1/0,VLOOKUP($A716,Economática!$A$3:$AI$823,11,FALSE)))","v":""},{"$f":"IF($A716=\"\",\"\",IF(OR(VLOOKUP($A716,Economática!$A$3:$AI$823,12,FALSE)=0,VLOOKUP($A716,Economática!$A$3:$AI$823,12,FALSE)=\"-\"),1/0,VLOOKUP($A716,Economática!$A$3:$AI$823,12,FALSE)))","v":""},{"$f":"IF($A716=\"\",\"\",IF(OR(VLOOKUP($A716,Economática!$A$3:$AI$823,13,FALSE)=0,VLOOKUP($A716,Economática!$A$3:$AI$823,13,FALSE)=\"-\"),1/0,VLOOKUP($A716,Economática!$A$3:$AI$823,13,FALSE)))","v":""},{"$f":"IF($A716=\"\",\"\",IF(OR(VLOOKUP($A716,Economática!$A$3:$AI$823,14,FALSE)=0,VLOOKUP($A716,Economática!$A$3:$AI$823,14,FALSE)=\"-\"),1/0,VLOOKUP($A716,Economática!$A$3:$AI$823,14,FALSE)))","v":""},{"$f":"IF($A716=\"\",\"\",IF(OR(VLOOKUP($A716,Economática!$A$3:$AI$823,15,FALSE)=0,VLOOKUP($A716,Economática!$A$3:$AI$823,15,FALSE)=\"-\"),1/0,VLOOKUP($A716,Economática!$A$3:$AI$823,15,FALSE)))","v":""},{"$f":"IF($A716=\"\",\"\",IF(OR(VLOOKUP($A716,Economática!$A$3:$AI$823,16,FALSE)=0,VLOOKUP($A716,Economática!$A$3:$AI$823,16,FALSE)=\"-\"),1/0,VLOOKUP($A716,Economática!$A$3:$AI$823,16,FALSE)))","v":""},{"$f":"IF($A716=\"\",\"\",IF(OR(VLOOKUP($A716,Economática!$A$3:$AI$823,17,FALSE)=0,VLOOKUP($A716,Economática!$A$3:$AI$823,17,FALSE)=\"-\"),1/0,VLOOKUP($A716,Economática!$A$3:$AI$823,17,FALSE)))","v":""},{"$f":"IF($A716=\"\",\"\",IF(OR(VLOOKUP($A716,Economática!$A$3:$AI$823,18,FALSE)=0,VLOOKUP($A716,Economática!$A$3:$AI$823,18,FALSE)=\"-\"),1/0,VLOOKUP($A716,Economática!$A$3:$AI$823,18,FALSE)))","v":""},{"$f":"IF($A716=\"\",\"\",IF(OR(VLOOKUP($A716,Economática!$A$3:$AI$823,19,FALSE)=0,VLOOKUP($A716,Economática!$A$3:$AI$823,19,FALSE)=\"-\"),1/0,VLOOKUP($A716,Economática!$A$3:$AI$823,19,FALSE)))","v":""},{"$f":"IF($A716=\"\",\"\",VLOOKUP($A716,Economática!$A$3:$AI$823,20,FALSE)/E716)","v":""},"","","",{"$f":"IF($A716=\"\",\"\",IF(OR(VLOOKUP($A716,Economática!$A$3:$AI$823,21,FALSE)/100=0,VLOOKUP($A716,Economática!$A$3:$AI$823,21,FALSE)/100=\"-\"),1/0,VLOOKUP($A716,Economática!$A$3:$AI$823,21,FALSE)/100))","v":""},{"$f":"IF($A716=\"\",\"\",IF(OR(VLOOKUP($A716,Economática!$A$3:$AI$823,22,FALSE)/100=0,VLOOKUP($A716,Economática!$A$3:$AI$823,22,FALSE)/100=\"-\"),1/0,VLOOKUP($A716,Economática!$A$3:$AI$823,22,FALSE)/100))","v":""},{"$f":"IF($A716=\"\",\"\",IF(OR(VLOOKUP($A716,Economática!$A$3:$AI$823,23,FALSE)=0,VLOOKUP($A716,Economática!$A$3:$AI$823,23,FALSE)=\"-\"),1/0,VLOOKUP($A716,Economática!$A$3:$AI$823,23,FALSE)))","v":""},{"$f":"IF($A716=\"\",\"\",IF(OR(VLOOKUP($A716,Economática!$A$3:$AI$823,24,FALSE)=0,VLOOKUP($A716,Economática!$A$3:$AI$823,24,FALSE)=\"-\"),1/0,VLOOKUP($A716,Economática!$A$3:$AI$823,24,FALSE)))","v":""},{"$f":"IF($A716=\"\",\"\",IF(OR(VLOOKUP($A716,Economática!$A$3:$AI$823,25,FALSE)=0,VLOOKUP($A716,Economática!$A$3:$AI$823,25,FALSE)=\"-\"),1/0,VLOOKUP($A716,Economática!$A$3:$AI$823,25,FALSE)))","v":""},{"$f":"IF($A716=\"\",\"\",IF(ISERROR((F716+VLOOKUP($A716,Economática!$A$3:$AI$823,26,FALSE))/Y716),(F716+VLOOKUP($A716,Economática!$A$3:$AI$823,26,FALSE))/Y716,(F716+VLOOKUP($A716,Economática!$A$3:$AI$823,26,FALSE))/Y716))","v":""},{"$f":"IF($A716=\"\",\"\",IF(OR(-VLOOKUP($A716,Economática!$A$3:$AI$823,27,FALSE)=0,-VLOOKUP($A716,Economática!$A$3:$AI$823,27,FALSE)=\"-\"),1/0,-VLOOKUP($A716,Economática!$A$3:$AI$823,27,FALSE)))","v":""},"",{"$f":"IF($A716=\"\",\"\",IF(OR(VLOOKUP($A716,Economática!$A$3:$AI$823,28,FALSE)=0,VLOOKUP($A716,Economática!$A$3:$AI$823,28,FALSE)=\"-\"),1/0,VLOOKUP($A716,Economática!$A$3:$AI$823,28,FALSE)))","v":""},{"$f":"IF($A716=\"\",\"\",IF(OR(VLOOKUP($A716,Economática!$A$3:$AI$823,29,FALSE)=0,VLOOKUP($A716,Economática!$A$3:$AI$823,29,FALSE)=\"-\"),1/0,VLOOKUP($A716,Economática!$A$3:$AI$823,29,FALSE)))","v":""},{"$f":"IF($A716=\"\",\"\",IF(OR(VLOOKUP($A716,Economática!$A$3:$AI$823,30,FALSE)/E716=0,VLOOKUP($A716,Economática!$A$3:$AI$823,30,FALSE)/E716=\"-\",VLOOKUP($A716,Economática!$A$3:$AI$823,30,FALSE)/E716<33.33%,VLOOKUP($A716,Economática!$A$3:$AI$823,30,FALSE)/E716>100%),1/0,VLOOKUP($A716,Economática!$A$3:$AI$823,30,FALSE)/E716))","v":""},"",{"$f":"IF($A716=\"\",\"\",IF(OR(VLOOKUP($A716,Economática!$A$3:$AI$823,25,FALSE)=0,VLOOKUP($A716,Economática!$A$3:$AI$823,25,FALSE)=\"-\"),1/0,VLOOKUP($A716,Economática!$A$3:$AI$823,25,FALSE)))","v":""},{"$f":"CONCATENATE(Economática!B694,\" \",Economática!C694)","v":" "}]
[{"$f":"IF(Economática!AG695=\"\",\"\",Economática!AG695)","v":""},{"$f":"IF($A717=\"\",\"\",VLOOKUP(VLOOKUP($A717,Economática!$A$3:$AI$823,6,FALSE),Correção!$B$16:$C$36,2,FALSE))","v":""},{"$f":"IF(Economática!B695=\"\",\"\",Economática!B695)","v":""},{"$f":"IF($A717=\"\",\"\",IF(OR(VLOOKUP($A717,Economática!$A$3:$AI$823,8,FALSE)=0,VLOOKUP($A717,Economática!$A$3:$AI$823,8,FALSE)=\"-\"),1/0,VLOOKUP($A717,Economática!$A$3:$AI$823,8,FALSE)))","v":""},{"$f":"IF(A717=\"\",\"\",IF(ISERROR(VLOOKUP(A717,Correção!$B$2:$G$13,9,FALSE)),VLOOKUP($A717,Economática!$A$3:$AI$823,9,FALSE),VLOOKUP(A717,Correção!$B$2:$G$13,9,FALSE)))","v":""},{"$f":"IF($A717=\"\",\"\",Economática!G695)","v":""},{"$f":"IF($A717=\"\",\"\",IF(OR(VLOOKUP($A717,Economática!$A$3:$AI$823,10,FALSE)=0,VLOOKUP($A717,Economática!$A$3:$AI$823,10,FALSE)=\"-\"),1/0,VLOOKUP($A717,Economática!$A$3:$AI$823,10,FALSE)))","v":""},{"$f":"IF($A717=\"\",\"\",IF(OR(VLOOKUP($A717,Economática!$A$3:$AI$823,11,FALSE)=0,VLOOKUP($A717,Economática!$A$3:$AI$823,11,FALSE)=\"-\"),1/0,VLOOKUP($A717,Economática!$A$3:$AI$823,11,FALSE)))","v":""},{"$f":"IF($A717=\"\",\"\",IF(OR(VLOOKUP($A717,Economática!$A$3:$AI$823,12,FALSE)=0,VLOOKUP($A717,Economática!$A$3:$AI$823,12,FALSE)=\"-\"),1/0,VLOOKUP($A717,Economática!$A$3:$AI$823,12,FALSE)))","v":""},{"$f":"IF($A717=\"\",\"\",IF(OR(VLOOKUP($A717,Economática!$A$3:$AI$823,13,FALSE)=0,VLOOKUP($A717,Economática!$A$3:$AI$823,13,FALSE)=\"-\"),1/0,VLOOKUP($A717,Economática!$A$3:$AI$823,13,FALSE)))","v":""},{"$f":"IF($A717=\"\",\"\",IF(OR(VLOOKUP($A717,Economática!$A$3:$AI$823,14,FALSE)=0,VLOOKUP($A717,Economática!$A$3:$AI$823,14,FALSE)=\"-\"),1/0,VLOOKUP($A717,Economática!$A$3:$AI$823,14,FALSE)))","v":""},{"$f":"IF($A717=\"\",\"\",IF(OR(VLOOKUP($A717,Economática!$A$3:$AI$823,15,FALSE)=0,VLOOKUP($A717,Economática!$A$3:$AI$823,15,FALSE)=\"-\"),1/0,VLOOKUP($A717,Economática!$A$3:$AI$823,15,FALSE)))","v":""},{"$f":"IF($A717=\"\",\"\",IF(OR(VLOOKUP($A717,Economática!$A$3:$AI$823,16,FALSE)=0,VLOOKUP($A717,Economática!$A$3:$AI$823,16,FALSE)=\"-\"),1/0,VLOOKUP($A717,Economática!$A$3:$AI$823,16,FALSE)))","v":""},{"$f":"IF($A717=\"\",\"\",IF(OR(VLOOKUP($A717,Economática!$A$3:$AI$823,17,FALSE)=0,VLOOKUP($A717,Economática!$A$3:$AI$823,17,FALSE)=\"-\"),1/0,VLOOKUP($A717,Economática!$A$3:$AI$823,17,FALSE)))","v":""},{"$f":"IF($A717=\"\",\"\",IF(OR(VLOOKUP($A717,Economática!$A$3:$AI$823,18,FALSE)=0,VLOOKUP($A717,Economática!$A$3:$AI$823,18,FALSE)=\"-\"),1/0,VLOOKUP($A717,Economática!$A$3:$AI$823,18,FALSE)))","v":""},{"$f":"IF($A717=\"\",\"\",IF(OR(VLOOKUP($A717,Economática!$A$3:$AI$823,19,FALSE)=0,VLOOKUP($A717,Economática!$A$3:$AI$823,19,FALSE)=\"-\"),1/0,VLOOKUP($A717,Economática!$A$3:$AI$823,19,FALSE)))","v":""},{"$f":"IF($A717=\"\",\"\",VLOOKUP($A717,Economática!$A$3:$AI$823,20,FALSE)/E717)","v":""},"","","",{"$f":"IF($A717=\"\",\"\",IF(OR(VLOOKUP($A717,Economática!$A$3:$AI$823,21,FALSE)/100=0,VLOOKUP($A717,Economática!$A$3:$AI$823,21,FALSE)/100=\"-\"),1/0,VLOOKUP($A717,Economática!$A$3:$AI$823,21,FALSE)/100))","v":""},{"$f":"IF($A717=\"\",\"\",IF(OR(VLOOKUP($A717,Economática!$A$3:$AI$823,22,FALSE)/100=0,VLOOKUP($A717,Economática!$A$3:$AI$823,22,FALSE)/100=\"-\"),1/0,VLOOKUP($A717,Economática!$A$3:$AI$823,22,FALSE)/100))","v":""},{"$f":"IF($A717=\"\",\"\",IF(OR(VLOOKUP($A717,Economática!$A$3:$AI$823,23,FALSE)=0,VLOOKUP($A717,Economática!$A$3:$AI$823,23,FALSE)=\"-\"),1/0,VLOOKUP($A717,Economática!$A$3:$AI$823,23,FALSE)))","v":""},{"$f":"IF($A717=\"\",\"\",IF(OR(VLOOKUP($A717,Economática!$A$3:$AI$823,24,FALSE)=0,VLOOKUP($A717,Economática!$A$3:$AI$823,24,FALSE)=\"-\"),1/0,VLOOKUP($A717,Economática!$A$3:$AI$823,24,FALSE)))","v":""},{"$f":"IF($A717=\"\",\"\",IF(OR(VLOOKUP($A717,Economática!$A$3:$AI$823,25,FALSE)=0,VLOOKUP($A717,Economática!$A$3:$AI$823,25,FALSE)=\"-\"),1/0,VLOOKUP($A717,Economática!$A$3:$AI$823,25,FALSE)))","v":""},{"$f":"IF($A717=\"\",\"\",IF(ISERROR((F717+VLOOKUP($A717,Economática!$A$3:$AI$823,26,FALSE))/Y717),(F717+VLOOKUP($A717,Economática!$A$3:$AI$823,26,FALSE))/Y717,(F717+VLOOKUP($A717,Economática!$A$3:$AI$823,26,FALSE))/Y717))","v":""},{"$f":"IF($A717=\"\",\"\",IF(OR(-VLOOKUP($A717,Economática!$A$3:$AI$823,27,FALSE)=0,-VLOOKUP($A717,Economática!$A$3:$AI$823,27,FALSE)=\"-\"),1/0,-VLOOKUP($A717,Economática!$A$3:$AI$823,27,FALSE)))","v":""},"",{"$f":"IF($A717=\"\",\"\",IF(OR(VLOOKUP($A717,Economática!$A$3:$AI$823,28,FALSE)=0,VLOOKUP($A717,Economática!$A$3:$AI$823,28,FALSE)=\"-\"),1/0,VLOOKUP($A717,Economática!$A$3:$AI$823,28,FALSE)))","v":""},{"$f":"IF($A717=\"\",\"\",IF(OR(VLOOKUP($A717,Economática!$A$3:$AI$823,29,FALSE)=0,VLOOKUP($A717,Economática!$A$3:$AI$823,29,FALSE)=\"-\"),1/0,VLOOKUP($A717,Economática!$A$3:$AI$823,29,FALSE)))","v":""},{"$f":"IF($A717=\"\",\"\",IF(OR(VLOOKUP($A717,Economática!$A$3:$AI$823,30,FALSE)/E717=0,VLOOKUP($A717,Economática!$A$3:$AI$823,30,FALSE)/E717=\"-\",VLOOKUP($A717,Economática!$A$3:$AI$823,30,FALSE)/E717<33.33%,VLOOKUP($A717,Economática!$A$3:$AI$823,30,FALSE)/E717>100%),1/0,VLOOKUP($A717,Economática!$A$3:$AI$823,30,FALSE)/E717))","v":""},"",{"$f":"IF($A717=\"\",\"\",IF(OR(VLOOKUP($A717,Economática!$A$3:$AI$823,25,FALSE)=0,VLOOKUP($A717,Economática!$A$3:$AI$823,25,FALSE)=\"-\"),1/0,VLOOKUP($A717,Economática!$A$3:$AI$823,25,FALSE)))","v":""},{"$f":"CONCATENATE(Economática!B695,\" \",Economática!C695)","v":" "}]
[{"$f":"IF(Economática!AG696=\"\",\"\",Economática!AG696)","v":""},{"$f":"IF($A718=\"\",\"\",VLOOKUP(VLOOKUP($A718,Economática!$A$3:$AI$823,6,FALSE),Correção!$B$16:$C$36,2,FALSE))","v":""},{"$f":"IF(Economática!B696=\"\",\"\",Economática!B696)","v":""},{"$f":"IF($A718=\"\",\"\",IF(OR(VLOOKUP($A718,Economática!$A$3:$AI$823,8,FALSE)=0,VLOOKUP($A718,Economática!$A$3:$AI$823,8,FALSE)=\"-\"),1/0,VLOOKUP($A718,Economática!$A$3:$AI$823,8,FALSE)))","v":""},{"$f":"IF(A718=\"\",\"\",IF(ISERROR(VLOOKUP(A718,Correção!$B$2:$G$13,9,FALSE)),VLOOKUP($A718,Economática!$A$3:$AI$823,9,FALSE),VLOOKUP(A718,Correção!$B$2:$G$13,9,FALSE)))","v":""},{"$f":"IF($A718=\"\",\"\",Economática!G696)","v":""},{"$f":"IF($A718=\"\",\"\",IF(OR(VLOOKUP($A718,Economática!$A$3:$AI$823,10,FALSE)=0,VLOOKUP($A718,Economática!$A$3:$AI$823,10,FALSE)=\"-\"),1/0,VLOOKUP($A718,Economática!$A$3:$AI$823,10,FALSE)))","v":""},{"$f":"IF($A718=\"\",\"\",IF(OR(VLOOKUP($A718,Economática!$A$3:$AI$823,11,FALSE)=0,VLOOKUP($A718,Economática!$A$3:$AI$823,11,FALSE)=\"-\"),1/0,VLOOKUP($A718,Economática!$A$3:$AI$823,11,FALSE)))","v":""},{"$f":"IF($A718=\"\",\"\",IF(OR(VLOOKUP($A718,Economática!$A$3:$AI$823,12,FALSE)=0,VLOOKUP($A718,Economática!$A$3:$AI$823,12,FALSE)=\"-\"),1/0,VLOOKUP($A718,Economática!$A$3:$AI$823,12,FALSE)))","v":""},{"$f":"IF($A718=\"\",\"\",IF(OR(VLOOKUP($A718,Economática!$A$3:$AI$823,13,FALSE)=0,VLOOKUP($A718,Economática!$A$3:$AI$823,13,FALSE)=\"-\"),1/0,VLOOKUP($A718,Economática!$A$3:$AI$823,13,FALSE)))","v":""},{"$f":"IF($A718=\"\",\"\",IF(OR(VLOOKUP($A718,Economática!$A$3:$AI$823,14,FALSE)=0,VLOOKUP($A718,Economática!$A$3:$AI$823,14,FALSE)=\"-\"),1/0,VLOOKUP($A718,Economática!$A$3:$AI$823,14,FALSE)))","v":""},{"$f":"IF($A718=\"\",\"\",IF(OR(VLOOKUP($A718,Economática!$A$3:$AI$823,15,FALSE)=0,VLOOKUP($A718,Economática!$A$3:$AI$823,15,FALSE)=\"-\"),1/0,VLOOKUP($A718,Economática!$A$3:$AI$823,15,FALSE)))","v":""},{"$f":"IF($A718=\"\",\"\",IF(OR(VLOOKUP($A718,Economática!$A$3:$AI$823,16,FALSE)=0,VLOOKUP($A718,Economática!$A$3:$AI$823,16,FALSE)=\"-\"),1/0,VLOOKUP($A718,Economática!$A$3:$AI$823,16,FALSE)))","v":""},{"$f":"IF($A718=\"\",\"\",IF(OR(VLOOKUP($A718,Economática!$A$3:$AI$823,17,FALSE)=0,VLOOKUP($A718,Economática!$A$3:$AI$823,17,FALSE)=\"-\"),1/0,VLOOKUP($A718,Economática!$A$3:$AI$823,17,FALSE)))","v":""},{"$f":"IF($A718=\"\",\"\",IF(OR(VLOOKUP($A718,Economática!$A$3:$AI$823,18,FALSE)=0,VLOOKUP($A718,Economática!$A$3:$AI$823,18,FALSE)=\"-\"),1/0,VLOOKUP($A718,Economática!$A$3:$AI$823,18,FALSE)))","v":""},{"$f":"IF($A718=\"\",\"\",IF(OR(VLOOKUP($A718,Economática!$A$3:$AI$823,19,FALSE)=0,VLOOKUP($A718,Economática!$A$3:$AI$823,19,FALSE)=\"-\"),1/0,VLOOKUP($A718,Economática!$A$3:$AI$823,19,FALSE)))","v":""},{"$f":"IF($A718=\"\",\"\",VLOOKUP($A718,Economática!$A$3:$AI$823,20,FALSE)/E718)","v":""},"","","",{"$f":"IF($A718=\"\",\"\",IF(OR(VLOOKUP($A718,Economática!$A$3:$AI$823,21,FALSE)/100=0,VLOOKUP($A718,Economática!$A$3:$AI$823,21,FALSE)/100=\"-\"),1/0,VLOOKUP($A718,Economática!$A$3:$AI$823,21,FALSE)/100))","v":""},{"$f":"IF($A718=\"\",\"\",IF(OR(VLOOKUP($A718,Economática!$A$3:$AI$823,22,FALSE)/100=0,VLOOKUP($A718,Economática!$A$3:$AI$823,22,FALSE)/100=\"-\"),1/0,VLOOKUP($A718,Economática!$A$3:$AI$823,22,FALSE)/100))","v":""},{"$f":"IF($A718=\"\",\"\",IF(OR(VLOOKUP($A718,Economática!$A$3:$AI$823,23,FALSE)=0,VLOOKUP($A718,Economática!$A$3:$AI$823,23,FALSE)=\"-\"),1/0,VLOOKUP($A718,Economática!$A$3:$AI$823,23,FALSE)))","v":""},{"$f":"IF($A718=\"\",\"\",IF(OR(VLOOKUP($A718,Economática!$A$3:$AI$823,24,FALSE)=0,VLOOKUP($A718,Economática!$A$3:$AI$823,24,FALSE)=\"-\"),1/0,VLOOKUP($A718,Economática!$A$3:$AI$823,24,FALSE)))","v":""},{"$f":"IF($A718=\"\",\"\",IF(OR(VLOOKUP($A718,Economática!$A$3:$AI$823,25,FALSE)=0,VLOOKUP($A718,Economática!$A$3:$AI$823,25,FALSE)=\"-\"),1/0,VLOOKUP($A718,Economática!$A$3:$AI$823,25,FALSE)))","v":""},{"$f":"IF($A718=\"\",\"\",IF(ISERROR((F718+VLOOKUP($A718,Economática!$A$3:$AI$823,26,FALSE))/Y718),(F718+VLOOKUP($A718,Economática!$A$3:$AI$823,26,FALSE))/Y718,(F718+VLOOKUP($A718,Economática!$A$3:$AI$823,26,FALSE))/Y718))","v":""},{"$f":"IF($A718=\"\",\"\",IF(OR(-VLOOKUP($A718,Economática!$A$3:$AI$823,27,FALSE)=0,-VLOOKUP($A718,Economática!$A$3:$AI$823,27,FALSE)=\"-\"),1/0,-VLOOKUP($A718,Economática!$A$3:$AI$823,27,FALSE)))","v":""},"",{"$f":"IF($A718=\"\",\"\",IF(OR(VLOOKUP($A718,Economática!$A$3:$AI$823,28,FALSE)=0,VLOOKUP($A718,Economática!$A$3:$AI$823,28,FALSE)=\"-\"),1/0,VLOOKUP($A718,Economática!$A$3:$AI$823,28,FALSE)))","v":""},{"$f":"IF($A718=\"\",\"\",IF(OR(VLOOKUP($A718,Economática!$A$3:$AI$823,29,FALSE)=0,VLOOKUP($A718,Economática!$A$3:$AI$823,29,FALSE)=\"-\"),1/0,VLOOKUP($A718,Economática!$A$3:$AI$823,29,FALSE)))","v":""},{"$f":"IF($A718=\"\",\"\",IF(OR(VLOOKUP($A718,Economática!$A$3:$AI$823,30,FALSE)/E718=0,VLOOKUP($A718,Economática!$A$3:$AI$823,30,FALSE)/E718=\"-\",VLOOKUP($A718,Economática!$A$3:$AI$823,30,FALSE)/E718<33.33%,VLOOKUP($A718,Economática!$A$3:$AI$823,30,FALSE)/E718>100%),1/0,VLOOKUP($A718,Economática!$A$3:$AI$823,30,FALSE)/E718))","v":""},"",{"$f":"IF($A718=\"\",\"\",IF(OR(VLOOKUP($A718,Economática!$A$3:$AI$823,25,FALSE)=0,VLOOKUP($A718,Economática!$A$3:$AI$823,25,FALSE)=\"-\"),1/0,VLOOKUP($A718,Economática!$A$3:$AI$823,25,FALSE)))","v":""},{"$f":"CONCATENATE(Economática!B696,\" \",Economática!C696)","v":" "}]
[{"$f":"IF(Economática!AG697=\"\",\"\",Economática!AG697)","v":""},{"$f":"IF($A719=\"\",\"\",VLOOKUP(VLOOKUP($A719,Economática!$A$3:$AI$823,6,FALSE),Correção!$B$16:$C$36,2,FALSE))","v":""},{"$f":"IF(Economática!B697=\"\",\"\",Economática!B697)","v":""},{"$f":"IF($A719=\"\",\"\",IF(OR(VLOOKUP($A719,Economática!$A$3:$AI$823,8,FALSE)=0,VLOOKUP($A719,Economática!$A$3:$AI$823,8,FALSE)=\"-\"),1/0,VLOOKUP($A719,Economática!$A$3:$AI$823,8,FALSE)))","v":""},{"$f":"IF(A719=\"\",\"\",IF(ISERROR(VLOOKUP(A719,Correção!$B$2:$G$13,9,FALSE)),VLOOKUP($A719,Economática!$A$3:$AI$823,9,FALSE),VLOOKUP(A719,Correção!$B$2:$G$13,9,FALSE)))","v":""},{"$f":"IF($A719=\"\",\"\",Economática!G697)","v":""},{"$f":"IF($A719=\"\",\"\",IF(OR(VLOOKUP($A719,Economática!$A$3:$AI$823,10,FALSE)=0,VLOOKUP($A719,Economática!$A$3:$AI$823,10,FALSE)=\"-\"),1/0,VLOOKUP($A719,Economática!$A$3:$AI$823,10,FALSE)))","v":""},{"$f":"IF($A719=\"\",\"\",IF(OR(VLOOKUP($A719,Economática!$A$3:$AI$823,11,FALSE)=0,VLOOKUP($A719,Economática!$A$3:$AI$823,11,FALSE)=\"-\"),1/0,VLOOKUP($A719,Economática!$A$3:$AI$823,11,FALSE)))","v":""},{"$f":"IF($A719=\"\",\"\",IF(OR(VLOOKUP($A719,Economática!$A$3:$AI$823,12,FALSE)=0,VLOOKUP($A719,Economática!$A$3:$AI$823,12,FALSE)=\"-\"),1/0,VLOOKUP($A719,Economática!$A$3:$AI$823,12,FALSE)))","v":""},{"$f":"IF($A719=\"\",\"\",IF(OR(VLOOKUP($A719,Economática!$A$3:$AI$823,13,FALSE)=0,VLOOKUP($A719,Economática!$A$3:$AI$823,13,FALSE)=\"-\"),1/0,VLOOKUP($A719,Economática!$A$3:$AI$823,13,FALSE)))","v":""},{"$f":"IF($A719=\"\",\"\",IF(OR(VLOOKUP($A719,Economática!$A$3:$AI$823,14,FALSE)=0,VLOOKUP($A719,Economática!$A$3:$AI$823,14,FALSE)=\"-\"),1/0,VLOOKUP($A719,Economática!$A$3:$AI$823,14,FALSE)))","v":""},{"$f":"IF($A719=\"\",\"\",IF(OR(VLOOKUP($A719,Economática!$A$3:$AI$823,15,FALSE)=0,VLOOKUP($A719,Economática!$A$3:$AI$823,15,FALSE)=\"-\"),1/0,VLOOKUP($A719,Economática!$A$3:$AI$823,15,FALSE)))","v":""},{"$f":"IF($A719=\"\",\"\",IF(OR(VLOOKUP($A719,Economática!$A$3:$AI$823,16,FALSE)=0,VLOOKUP($A719,Economática!$A$3:$AI$823,16,FALSE)=\"-\"),1/0,VLOOKUP($A719,Economática!$A$3:$AI$823,16,FALSE)))","v":""},{"$f":"IF($A719=\"\",\"\",IF(OR(VLOOKUP($A719,Economática!$A$3:$AI$823,17,FALSE)=0,VLOOKUP($A719,Economática!$A$3:$AI$823,17,FALSE)=\"-\"),1/0,VLOOKUP($A719,Economática!$A$3:$AI$823,17,FALSE)))","v":""},{"$f":"IF($A719=\"\",\"\",IF(OR(VLOOKUP($A719,Economática!$A$3:$AI$823,18,FALSE)=0,VLOOKUP($A719,Economática!$A$3:$AI$823,18,FALSE)=\"-\"),1/0,VLOOKUP($A719,Economática!$A$3:$AI$823,18,FALSE)))","v":""},{"$f":"IF($A719=\"\",\"\",IF(OR(VLOOKUP($A719,Economática!$A$3:$AI$823,19,FALSE)=0,VLOOKUP($A719,Economática!$A$3:$AI$823,19,FALSE)=\"-\"),1/0,VLOOKUP($A719,Economática!$A$3:$AI$823,19,FALSE)))","v":""},{"$f":"IF($A719=\"\",\"\",VLOOKUP($A719,Economática!$A$3:$AI$823,20,FALSE)/E719)","v":""},"","","",{"$f":"IF($A719=\"\",\"\",IF(OR(VLOOKUP($A719,Economática!$A$3:$AI$823,21,FALSE)/100=0,VLOOKUP($A719,Economática!$A$3:$AI$823,21,FALSE)/100=\"-\"),1/0,VLOOKUP($A719,Economática!$A$3:$AI$823,21,FALSE)/100))","v":""},{"$f":"IF($A719=\"\",\"\",IF(OR(VLOOKUP($A719,Economática!$A$3:$AI$823,22,FALSE)/100=0,VLOOKUP($A719,Economática!$A$3:$AI$823,22,FALSE)/100=\"-\"),1/0,VLOOKUP($A719,Economática!$A$3:$AI$823,22,FALSE)/100))","v":""},{"$f":"IF($A719=\"\",\"\",IF(OR(VLOOKUP($A719,Economática!$A$3:$AI$823,23,FALSE)=0,VLOOKUP($A719,Economática!$A$3:$AI$823,23,FALSE)=\"-\"),1/0,VLOOKUP($A719,Economática!$A$3:$AI$823,23,FALSE)))","v":""},{"$f":"IF($A719=\"\",\"\",IF(OR(VLOOKUP($A719,Economática!$A$3:$AI$823,24,FALSE)=0,VLOOKUP($A719,Economática!$A$3:$AI$823,24,FALSE)=\"-\"),1/0,VLOOKUP($A719,Economática!$A$3:$AI$823,24,FALSE)))","v":""},{"$f":"IF($A719=\"\",\"\",IF(OR(VLOOKUP($A719,Economática!$A$3:$AI$823,25,FALSE)=0,VLOOKUP($A719,Economática!$A$3:$AI$823,25,FALSE)=\"-\"),1/0,VLOOKUP($A719,Economática!$A$3:$AI$823,25,FALSE)))","v":""},{"$f":"IF($A719=\"\",\"\",IF(ISERROR((F719+VLOOKUP($A719,Economática!$A$3:$AI$823,26,FALSE))/Y719),(F719+VLOOKUP($A719,Economática!$A$3:$AI$823,26,FALSE))/Y719,(F719+VLOOKUP($A719,Economática!$A$3:$AI$823,26,FALSE))/Y719))","v":""},{"$f":"IF($A719=\"\",\"\",IF(OR(-VLOOKUP($A719,Economática!$A$3:$AI$823,27,FALSE)=0,-VLOOKUP($A719,Economática!$A$3:$AI$823,27,FALSE)=\"-\"),1/0,-VLOOKUP($A719,Economática!$A$3:$AI$823,27,FALSE)))","v":""},"",{"$f":"IF($A719=\"\",\"\",IF(OR(VLOOKUP($A719,Economática!$A$3:$AI$823,28,FALSE)=0,VLOOKUP($A719,Economática!$A$3:$AI$823,28,FALSE)=\"-\"),1/0,VLOOKUP($A719,Economática!$A$3:$AI$823,28,FALSE)))","v":""},{"$f":"IF($A719=\"\",\"\",IF(OR(VLOOKUP($A719,Economática!$A$3:$AI$823,29,FALSE)=0,VLOOKUP($A719,Economática!$A$3:$AI$823,29,FALSE)=\"-\"),1/0,VLOOKUP($A719,Economática!$A$3:$AI$823,29,FALSE)))","v":""},{"$f":"IF($A719=\"\",\"\",IF(OR(VLOOKUP($A719,Economática!$A$3:$AI$823,30,FALSE)/E719=0,VLOOKUP($A719,Economática!$A$3:$AI$823,30,FALSE)/E719=\"-\",VLOOKUP($A719,Economática!$A$3:$AI$823,30,FALSE)/E719<33.33%,VLOOKUP($A719,Economática!$A$3:$AI$823,30,FALSE)/E719>100%),1/0,VLOOKUP($A719,Economática!$A$3:$AI$823,30,FALSE)/E719))","v":""},"",{"$f":"IF($A719=\"\",\"\",IF(OR(VLOOKUP($A719,Economática!$A$3:$AI$823,25,FALSE)=0,VLOOKUP($A719,Economática!$A$3:$AI$823,25,FALSE)=\"-\"),1/0,VLOOKUP($A719,Economática!$A$3:$AI$823,25,FALSE)))","v":""},{"$f":"CONCATENATE(Economática!B697,\" \",Economática!C697)","v":" "}]
[{"$f":"IF(Economática!AG698=\"\",\"\",Economática!AG698)","v":""},{"$f":"IF($A720=\"\",\"\",VLOOKUP(VLOOKUP($A720,Economática!$A$3:$AI$823,6,FALSE),Correção!$B$16:$C$36,2,FALSE))","v":""},{"$f":"IF(Economática!B698=\"\",\"\",Economática!B698)","v":""},{"$f":"IF($A720=\"\",\"\",IF(OR(VLOOKUP($A720,Economática!$A$3:$AI$823,8,FALSE)=0,VLOOKUP($A720,Economática!$A$3:$AI$823,8,FALSE)=\"-\"),1/0,VLOOKUP($A720,Economática!$A$3:$AI$823,8,FALSE)))","v":""},{"$f":"IF(A720=\"\",\"\",IF(ISERROR(VLOOKUP(A720,Correção!$B$2:$G$13,9,FALSE)),VLOOKUP($A720,Economática!$A$3:$AI$823,9,FALSE),VLOOKUP(A720,Correção!$B$2:$G$13,9,FALSE)))","v":""},{"$f":"IF($A720=\"\",\"\",Economática!G698)","v":""},{"$f":"IF($A720=\"\",\"\",IF(OR(VLOOKUP($A720,Economática!$A$3:$AI$823,10,FALSE)=0,VLOOKUP($A720,Economática!$A$3:$AI$823,10,FALSE)=\"-\"),1/0,VLOOKUP($A720,Economática!$A$3:$AI$823,10,FALSE)))","v":""},{"$f":"IF($A720=\"\",\"\",IF(OR(VLOOKUP($A720,Economática!$A$3:$AI$823,11,FALSE)=0,VLOOKUP($A720,Economática!$A$3:$AI$823,11,FALSE)=\"-\"),1/0,VLOOKUP($A720,Economática!$A$3:$AI$823,11,FALSE)))","v":""},{"$f":"IF($A720=\"\",\"\",IF(OR(VLOOKUP($A720,Economática!$A$3:$AI$823,12,FALSE)=0,VLOOKUP($A720,Economática!$A$3:$AI$823,12,FALSE)=\"-\"),1/0,VLOOKUP($A720,Economática!$A$3:$AI$823,12,FALSE)))","v":""},{"$f":"IF($A720=\"\",\"\",IF(OR(VLOOKUP($A720,Economática!$A$3:$AI$823,13,FALSE)=0,VLOOKUP($A720,Economática!$A$3:$AI$823,13,FALSE)=\"-\"),1/0,VLOOKUP($A720,Economática!$A$3:$AI$823,13,FALSE)))","v":""},{"$f":"IF($A720=\"\",\"\",IF(OR(VLOOKUP($A720,Economática!$A$3:$AI$823,14,FALSE)=0,VLOOKUP($A720,Economática!$A$3:$AI$823,14,FALSE)=\"-\"),1/0,VLOOKUP($A720,Economática!$A$3:$AI$823,14,FALSE)))","v":""},{"$f":"IF($A720=\"\",\"\",IF(OR(VLOOKUP($A720,Economática!$A$3:$AI$823,15,FALSE)=0,VLOOKUP($A720,Economática!$A$3:$AI$823,15,FALSE)=\"-\"),1/0,VLOOKUP($A720,Economática!$A$3:$AI$823,15,FALSE)))","v":""},{"$f":"IF($A720=\"\",\"\",IF(OR(VLOOKUP($A720,Economática!$A$3:$AI$823,16,FALSE)=0,VLOOKUP($A720,Economática!$A$3:$AI$823,16,FALSE)=\"-\"),1/0,VLOOKUP($A720,Economática!$A$3:$AI$823,16,FALSE)))","v":""},{"$f":"IF($A720=\"\",\"\",IF(OR(VLOOKUP($A720,Economática!$A$3:$AI$823,17,FALSE)=0,VLOOKUP($A720,Economática!$A$3:$AI$823,17,FALSE)=\"-\"),1/0,VLOOKUP($A720,Economática!$A$3:$AI$823,17,FALSE)))","v":""},{"$f":"IF($A720=\"\",\"\",IF(OR(VLOOKUP($A720,Economática!$A$3:$AI$823,18,FALSE)=0,VLOOKUP($A720,Economática!$A$3:$AI$823,18,FALSE)=\"-\"),1/0,VLOOKUP($A720,Economática!$A$3:$AI$823,18,FALSE)))","v":""},{"$f":"IF($A720=\"\",\"\",IF(OR(VLOOKUP($A720,Economática!$A$3:$AI$823,19,FALSE)=0,VLOOKUP($A720,Economática!$A$3:$AI$823,19,FALSE)=\"-\"),1/0,VLOOKUP($A720,Economática!$A$3:$AI$823,19,FALSE)))","v":""},{"$f":"IF($A720=\"\",\"\",VLOOKUP($A720,Economática!$A$3:$AI$823,20,FALSE)/E720)","v":""},"","","",{"$f":"IF($A720=\"\",\"\",IF(OR(VLOOKUP($A720,Economática!$A$3:$AI$823,21,FALSE)/100=0,VLOOKUP($A720,Economática!$A$3:$AI$823,21,FALSE)/100=\"-\"),1/0,VLOOKUP($A720,Economática!$A$3:$AI$823,21,FALSE)/100))","v":""},{"$f":"IF($A720=\"\",\"\",IF(OR(VLOOKUP($A720,Economática!$A$3:$AI$823,22,FALSE)/100=0,VLOOKUP($A720,Economática!$A$3:$AI$823,22,FALSE)/100=\"-\"),1/0,VLOOKUP($A720,Economática!$A$3:$AI$823,22,FALSE)/100))","v":""},{"$f":"IF($A720=\"\",\"\",IF(OR(VLOOKUP($A720,Economática!$A$3:$AI$823,23,FALSE)=0,VLOOKUP($A720,Economática!$A$3:$AI$823,23,FALSE)=\"-\"),1/0,VLOOKUP($A720,Economática!$A$3:$AI$823,23,FALSE)))","v":""},{"$f":"IF($A720=\"\",\"\",IF(OR(VLOOKUP($A720,Economática!$A$3:$AI$823,24,FALSE)=0,VLOOKUP($A720,Economática!$A$3:$AI$823,24,FALSE)=\"-\"),1/0,VLOOKUP($A720,Economática!$A$3:$AI$823,24,FALSE)))","v":""},{"$f":"IF($A720=\"\",\"\",IF(OR(VLOOKUP($A720,Economática!$A$3:$AI$823,25,FALSE)=0,VLOOKUP($A720,Economática!$A$3:$AI$823,25,FALSE)=\"-\"),1/0,VLOOKUP($A720,Economática!$A$3:$AI$823,25,FALSE)))","v":""},{"$f":"IF($A720=\"\",\"\",IF(ISERROR((F720+VLOOKUP($A720,Economática!$A$3:$AI$823,26,FALSE))/Y720),(F720+VLOOKUP($A720,Economática!$A$3:$AI$823,26,FALSE))/Y720,(F720+VLOOKUP($A720,Economática!$A$3:$AI$823,26,FALSE))/Y720))","v":""},{"$f":"IF($A720=\"\",\"\",IF(OR(-VLOOKUP($A720,Economática!$A$3:$AI$823,27,FALSE)=0,-VLOOKUP($A720,Economática!$A$3:$AI$823,27,FALSE)=\"-\"),1/0,-VLOOKUP($A720,Economática!$A$3:$AI$823,27,FALSE)))","v":""},"",{"$f":"IF($A720=\"\",\"\",IF(OR(VLOOKUP($A720,Economática!$A$3:$AI$823,28,FALSE)=0,VLOOKUP($A720,Economática!$A$3:$AI$823,28,FALSE)=\"-\"),1/0,VLOOKUP($A720,Economática!$A$3:$AI$823,28,FALSE)))","v":""},{"$f":"IF($A720=\"\",\"\",IF(OR(VLOOKUP($A720,Economática!$A$3:$AI$823,29,FALSE)=0,VLOOKUP($A720,Economática!$A$3:$AI$823,29,FALSE)=\"-\"),1/0,VLOOKUP($A720,Economática!$A$3:$AI$823,29,FALSE)))","v":""},{"$f":"IF($A720=\"\",\"\",IF(OR(VLOOKUP($A720,Economática!$A$3:$AI$823,30,FALSE)/E720=0,VLOOKUP($A720,Economática!$A$3:$AI$823,30,FALSE)/E720=\"-\",VLOOKUP($A720,Economática!$A$3:$AI$823,30,FALSE)/E720<33.33%,VLOOKUP($A720,Economática!$A$3:$AI$823,30,FALSE)/E720>100%),1/0,VLOOKUP($A720,Economática!$A$3:$AI$823,30,FALSE)/E720))","v":""},"",{"$f":"IF($A720=\"\",\"\",IF(OR(VLOOKUP($A720,Economática!$A$3:$AI$823,25,FALSE)=0,VLOOKUP($A720,Economática!$A$3:$AI$823,25,FALSE)=\"-\"),1/0,VLOOKUP($A720,Economática!$A$3:$AI$823,25,FALSE)))","v":""},{"$f":"CONCATENATE(Economática!B698,\" \",Economática!C698)","v":" "}]
[{"$f":"IF(Economática!AG699=\"\",\"\",Economática!AG699)","v":""},{"$f":"IF($A721=\"\",\"\",VLOOKUP(VLOOKUP($A721,Economática!$A$3:$AI$823,6,FALSE),Correção!$B$16:$C$36,2,FALSE))","v":""},{"$f":"IF(Economática!B699=\"\",\"\",Economática!B699)","v":""},{"$f":"IF($A721=\"\",\"\",IF(OR(VLOOKUP($A721,Economática!$A$3:$AI$823,8,FALSE)=0,VLOOKUP($A721,Economática!$A$3:$AI$823,8,FALSE)=\"-\"),1/0,VLOOKUP($A721,Economática!$A$3:$AI$823,8,FALSE)))","v":""},{"$f":"IF(A721=\"\",\"\",IF(ISERROR(VLOOKUP(A721,Correção!$B$2:$G$13,9,FALSE)),VLOOKUP($A721,Economática!$A$3:$AI$823,9,FALSE),VLOOKUP(A721,Correção!$B$2:$G$13,9,FALSE)))","v":""},{"$f":"IF($A721=\"\",\"\",Economática!G699)","v":""},{"$f":"IF($A721=\"\",\"\",IF(OR(VLOOKUP($A721,Economática!$A$3:$AI$823,10,FALSE)=0,VLOOKUP($A721,Economática!$A$3:$AI$823,10,FALSE)=\"-\"),1/0,VLOOKUP($A721,Economática!$A$3:$AI$823,10,FALSE)))","v":""},{"$f":"IF($A721=\"\",\"\",IF(OR(VLOOKUP($A721,Economática!$A$3:$AI$823,11,FALSE)=0,VLOOKUP($A721,Economática!$A$3:$AI$823,11,FALSE)=\"-\"),1/0,VLOOKUP($A721,Economática!$A$3:$AI$823,11,FALSE)))","v":""},{"$f":"IF($A721=\"\",\"\",IF(OR(VLOOKUP($A721,Economática!$A$3:$AI$823,12,FALSE)=0,VLOOKUP($A721,Economática!$A$3:$AI$823,12,FALSE)=\"-\"),1/0,VLOOKUP($A721,Economática!$A$3:$AI$823,12,FALSE)))","v":""},{"$f":"IF($A721=\"\",\"\",IF(OR(VLOOKUP($A721,Economática!$A$3:$AI$823,13,FALSE)=0,VLOOKUP($A721,Economática!$A$3:$AI$823,13,FALSE)=\"-\"),1/0,VLOOKUP($A721,Economática!$A$3:$AI$823,13,FALSE)))","v":""},{"$f":"IF($A721=\"\",\"\",IF(OR(VLOOKUP($A721,Economática!$A$3:$AI$823,14,FALSE)=0,VLOOKUP($A721,Economática!$A$3:$AI$823,14,FALSE)=\"-\"),1/0,VLOOKUP($A721,Economática!$A$3:$AI$823,14,FALSE)))","v":""},{"$f":"IF($A721=\"\",\"\",IF(OR(VLOOKUP($A721,Economática!$A$3:$AI$823,15,FALSE)=0,VLOOKUP($A721,Economática!$A$3:$AI$823,15,FALSE)=\"-\"),1/0,VLOOKUP($A721,Economática!$A$3:$AI$823,15,FALSE)))","v":""},{"$f":"IF($A721=\"\",\"\",IF(OR(VLOOKUP($A721,Economática!$A$3:$AI$823,16,FALSE)=0,VLOOKUP($A721,Economática!$A$3:$AI$823,16,FALSE)=\"-\"),1/0,VLOOKUP($A721,Economática!$A$3:$AI$823,16,FALSE)))","v":""},{"$f":"IF($A721=\"\",\"\",IF(OR(VLOOKUP($A721,Economática!$A$3:$AI$823,17,FALSE)=0,VLOOKUP($A721,Economática!$A$3:$AI$823,17,FALSE)=\"-\"),1/0,VLOOKUP($A721,Economática!$A$3:$AI$823,17,FALSE)))","v":""},{"$f":"IF($A721=\"\",\"\",IF(OR(VLOOKUP($A721,Economática!$A$3:$AI$823,18,FALSE)=0,VLOOKUP($A721,Economática!$A$3:$AI$823,18,FALSE)=\"-\"),1/0,VLOOKUP($A721,Economática!$A$3:$AI$823,18,FALSE)))","v":""},{"$f":"IF($A721=\"\",\"\",IF(OR(VLOOKUP($A721,Economática!$A$3:$AI$823,19,FALSE)=0,VLOOKUP($A721,Economática!$A$3:$AI$823,19,FALSE)=\"-\"),1/0,VLOOKUP($A721,Economática!$A$3:$AI$823,19,FALSE)))","v":""},{"$f":"IF($A721=\"\",\"\",VLOOKUP($A721,Economática!$A$3:$AI$823,20,FALSE)/E721)","v":""},"","","",{"$f":"IF($A721=\"\",\"\",IF(OR(VLOOKUP($A721,Economática!$A$3:$AI$823,21,FALSE)/100=0,VLOOKUP($A721,Economática!$A$3:$AI$823,21,FALSE)/100=\"-\"),1/0,VLOOKUP($A721,Economática!$A$3:$AI$823,21,FALSE)/100))","v":""},{"$f":"IF($A721=\"\",\"\",IF(OR(VLOOKUP($A721,Economática!$A$3:$AI$823,22,FALSE)/100=0,VLOOKUP($A721,Economática!$A$3:$AI$823,22,FALSE)/100=\"-\"),1/0,VLOOKUP($A721,Economática!$A$3:$AI$823,22,FALSE)/100))","v":""},{"$f":"IF($A721=\"\",\"\",IF(OR(VLOOKUP($A721,Economática!$A$3:$AI$823,23,FALSE)=0,VLOOKUP($A721,Economática!$A$3:$AI$823,23,FALSE)=\"-\"),1/0,VLOOKUP($A721,Economática!$A$3:$AI$823,23,FALSE)))","v":""},{"$f":"IF($A721=\"\",\"\",IF(OR(VLOOKUP($A721,Economática!$A$3:$AI$823,24,FALSE)=0,VLOOKUP($A721,Economática!$A$3:$AI$823,24,FALSE)=\"-\"),1/0,VLOOKUP($A721,Economática!$A$3:$AI$823,24,FALSE)))","v":""},{"$f":"IF($A721=\"\",\"\",IF(OR(VLOOKUP($A721,Economática!$A$3:$AI$823,25,FALSE)=0,VLOOKUP($A721,Economática!$A$3:$AI$823,25,FALSE)=\"-\"),1/0,VLOOKUP($A721,Economática!$A$3:$AI$823,25,FALSE)))","v":""},{"$f":"IF($A721=\"\",\"\",IF(ISERROR((F721+VLOOKUP($A721,Economática!$A$3:$AI$823,26,FALSE))/Y721),(F721+VLOOKUP($A721,Economática!$A$3:$AI$823,26,FALSE))/Y721,(F721+VLOOKUP($A721,Economática!$A$3:$AI$823,26,FALSE))/Y721))","v":""},{"$f":"IF($A721=\"\",\"\",IF(OR(-VLOOKUP($A721,Economática!$A$3:$AI$823,27,FALSE)=0,-VLOOKUP($A721,Economática!$A$3:$AI$823,27,FALSE)=\"-\"),1/0,-VLOOKUP($A721,Economática!$A$3:$AI$823,27,FALSE)))","v":""},"",{"$f":"IF($A721=\"\",\"\",IF(OR(VLOOKUP($A721,Economática!$A$3:$AI$823,28,FALSE)=0,VLOOKUP($A721,Economática!$A$3:$AI$823,28,FALSE)=\"-\"),1/0,VLOOKUP($A721,Economática!$A$3:$AI$823,28,FALSE)))","v":""},{"$f":"IF($A721=\"\",\"\",IF(OR(VLOOKUP($A721,Economática!$A$3:$AI$823,29,FALSE)=0,VLOOKUP($A721,Economática!$A$3:$AI$823,29,FALSE)=\"-\"),1/0,VLOOKUP($A721,Economática!$A$3:$AI$823,29,FALSE)))","v":""},{"$f":"IF($A721=\"\",\"\",IF(OR(VLOOKUP($A721,Economática!$A$3:$AI$823,30,FALSE)/E721=0,VLOOKUP($A721,Economática!$A$3:$AI$823,30,FALSE)/E721=\"-\",VLOOKUP($A721,Economática!$A$3:$AI$823,30,FALSE)/E721<33.33%,VLOOKUP($A721,Economática!$A$3:$AI$823,30,FALSE)/E721>100%),1/0,VLOOKUP($A721,Economática!$A$3:$AI$823,30,FALSE)/E721))","v":""},"",{"$f":"IF($A721=\"\",\"\",IF(OR(VLOOKUP($A721,Economática!$A$3:$AI$823,25,FALSE)=0,VLOOKUP($A721,Economática!$A$3:$AI$823,25,FALSE)=\"-\"),1/0,VLOOKUP($A721,Economática!$A$3:$AI$823,25,FALSE)))","v":""},{"$f":"CONCATENATE(Economática!B699,\" \",Economática!C699)","v":" "}]
[{"$f":"IF(Economática!AG700=\"\",\"\",Economática!AG700)","v":""},{"$f":"IF($A722=\"\",\"\",VLOOKUP(VLOOKUP($A722,Economática!$A$3:$AI$823,6,FALSE),Correção!$B$16:$C$36,2,FALSE))","v":""},{"$f":"IF(Economática!B700=\"\",\"\",Economática!B700)","v":""},{"$f":"IF($A722=\"\",\"\",IF(OR(VLOOKUP($A722,Economática!$A$3:$AI$823,8,FALSE)=0,VLOOKUP($A722,Economática!$A$3:$AI$823,8,FALSE)=\"-\"),1/0,VLOOKUP($A722,Economática!$A$3:$AI$823,8,FALSE)))","v":""},{"$f":"IF(A722=\"\",\"\",IF(ISERROR(VLOOKUP(A722,Correção!$B$2:$G$13,9,FALSE)),VLOOKUP($A722,Economática!$A$3:$AI$823,9,FALSE),VLOOKUP(A722,Correção!$B$2:$G$13,9,FALSE)))","v":""},{"$f":"IF($A722=\"\",\"\",Economática!G700)","v":""},{"$f":"IF($A722=\"\",\"\",IF(OR(VLOOKUP($A722,Economática!$A$3:$AI$823,10,FALSE)=0,VLOOKUP($A722,Economática!$A$3:$AI$823,10,FALSE)=\"-\"),1/0,VLOOKUP($A722,Economática!$A$3:$AI$823,10,FALSE)))","v":""},{"$f":"IF($A722=\"\",\"\",IF(OR(VLOOKUP($A722,Economática!$A$3:$AI$823,11,FALSE)=0,VLOOKUP($A722,Economática!$A$3:$AI$823,11,FALSE)=\"-\"),1/0,VLOOKUP($A722,Economática!$A$3:$AI$823,11,FALSE)))","v":""},{"$f":"IF($A722=\"\",\"\",IF(OR(VLOOKUP($A722,Economática!$A$3:$AI$823,12,FALSE)=0,VLOOKUP($A722,Economática!$A$3:$AI$823,12,FALSE)=\"-\"),1/0,VLOOKUP($A722,Economática!$A$3:$AI$823,12,FALSE)))","v":""},{"$f":"IF($A722=\"\",\"\",IF(OR(VLOOKUP($A722,Economática!$A$3:$AI$823,13,FALSE)=0,VLOOKUP($A722,Economática!$A$3:$AI$823,13,FALSE)=\"-\"),1/0,VLOOKUP($A722,Economática!$A$3:$AI$823,13,FALSE)))","v":""},{"$f":"IF($A722=\"\",\"\",IF(OR(VLOOKUP($A722,Economática!$A$3:$AI$823,14,FALSE)=0,VLOOKUP($A722,Economática!$A$3:$AI$823,14,FALSE)=\"-\"),1/0,VLOOKUP($A722,Economática!$A$3:$AI$823,14,FALSE)))","v":""},{"$f":"IF($A722=\"\",\"\",IF(OR(VLOOKUP($A722,Economática!$A$3:$AI$823,15,FALSE)=0,VLOOKUP($A722,Economática!$A$3:$AI$823,15,FALSE)=\"-\"),1/0,VLOOKUP($A722,Economática!$A$3:$AI$823,15,FALSE)))","v":""},{"$f":"IF($A722=\"\",\"\",IF(OR(VLOOKUP($A722,Economática!$A$3:$AI$823,16,FALSE)=0,VLOOKUP($A722,Economática!$A$3:$AI$823,16,FALSE)=\"-\"),1/0,VLOOKUP($A722,Economática!$A$3:$AI$823,16,FALSE)))","v":""},{"$f":"IF($A722=\"\",\"\",IF(OR(VLOOKUP($A722,Economática!$A$3:$AI$823,17,FALSE)=0,VLOOKUP($A722,Economática!$A$3:$AI$823,17,FALSE)=\"-\"),1/0,VLOOKUP($A722,Economática!$A$3:$AI$823,17,FALSE)))","v":""},{"$f":"IF($A722=\"\",\"\",IF(OR(VLOOKUP($A722,Economática!$A$3:$AI$823,18,FALSE)=0,VLOOKUP($A722,Economática!$A$3:$AI$823,18,FALSE)=\"-\"),1/0,VLOOKUP($A722,Economática!$A$3:$AI$823,18,FALSE)))","v":""},{"$f":"IF($A722=\"\",\"\",IF(OR(VLOOKUP($A722,Economática!$A$3:$AI$823,19,FALSE)=0,VLOOKUP($A722,Economática!$A$3:$AI$823,19,FALSE)=\"-\"),1/0,VLOOKUP($A722,Economática!$A$3:$AI$823,19,FALSE)))","v":""},{"$f":"IF($A722=\"\",\"\",VLOOKUP($A722,Economática!$A$3:$AI$823,20,FALSE)/E722)","v":""},"","","",{"$f":"IF($A722=\"\",\"\",IF(OR(VLOOKUP($A722,Economática!$A$3:$AI$823,21,FALSE)/100=0,VLOOKUP($A722,Economática!$A$3:$AI$823,21,FALSE)/100=\"-\"),1/0,VLOOKUP($A722,Economática!$A$3:$AI$823,21,FALSE)/100))","v":""},{"$f":"IF($A722=\"\",\"\",IF(OR(VLOOKUP($A722,Economática!$A$3:$AI$823,22,FALSE)/100=0,VLOOKUP($A722,Economática!$A$3:$AI$823,22,FALSE)/100=\"-\"),1/0,VLOOKUP($A722,Economática!$A$3:$AI$823,22,FALSE)/100))","v":""},{"$f":"IF($A722=\"\",\"\",IF(OR(VLOOKUP($A722,Economática!$A$3:$AI$823,23,FALSE)=0,VLOOKUP($A722,Economática!$A$3:$AI$823,23,FALSE)=\"-\"),1/0,VLOOKUP($A722,Economática!$A$3:$AI$823,23,FALSE)))","v":""},{"$f":"IF($A722=\"\",\"\",IF(OR(VLOOKUP($A722,Economática!$A$3:$AI$823,24,FALSE)=0,VLOOKUP($A722,Economática!$A$3:$AI$823,24,FALSE)=\"-\"),1/0,VLOOKUP($A722,Economática!$A$3:$AI$823,24,FALSE)))","v":""},{"$f":"IF($A722=\"\",\"\",IF(OR(VLOOKUP($A722,Economática!$A$3:$AI$823,25,FALSE)=0,VLOOKUP($A722,Economática!$A$3:$AI$823,25,FALSE)=\"-\"),1/0,VLOOKUP($A722,Economática!$A$3:$AI$823,25,FALSE)))","v":""},{"$f":"IF($A722=\"\",\"\",IF(ISERROR((F722+VLOOKUP($A722,Economática!$A$3:$AI$823,26,FALSE))/Y722),(F722+VLOOKUP($A722,Economática!$A$3:$AI$823,26,FALSE))/Y722,(F722+VLOOKUP($A722,Economática!$A$3:$AI$823,26,FALSE))/Y722))","v":""},{"$f":"IF($A722=\"\",\"\",IF(OR(-VLOOKUP($A722,Economática!$A$3:$AI$823,27,FALSE)=0,-VLOOKUP($A722,Economática!$A$3:$AI$823,27,FALSE)=\"-\"),1/0,-VLOOKUP($A722,Economática!$A$3:$AI$823,27,FALSE)))","v":""},"",{"$f":"IF($A722=\"\",\"\",IF(OR(VLOOKUP($A722,Economática!$A$3:$AI$823,28,FALSE)=0,VLOOKUP($A722,Economática!$A$3:$AI$823,28,FALSE)=\"-\"),1/0,VLOOKUP($A722,Economática!$A$3:$AI$823,28,FALSE)))","v":""},{"$f":"IF($A722=\"\",\"\",IF(OR(VLOOKUP($A722,Economática!$A$3:$AI$823,29,FALSE)=0,VLOOKUP($A722,Economática!$A$3:$AI$823,29,FALSE)=\"-\"),1/0,VLOOKUP($A722,Economática!$A$3:$AI$823,29,FALSE)))","v":""},{"$f":"IF($A722=\"\",\"\",IF(OR(VLOOKUP($A722,Economática!$A$3:$AI$823,30,FALSE)/E722=0,VLOOKUP($A722,Economática!$A$3:$AI$823,30,FALSE)/E722=\"-\",VLOOKUP($A722,Economática!$A$3:$AI$823,30,FALSE)/E722<33.33%,VLOOKUP($A722,Economática!$A$3:$AI$823,30,FALSE)/E722>100%),1/0,VLOOKUP($A722,Economática!$A$3:$AI$823,30,FALSE)/E722))","v":""},"",{"$f":"IF($A722=\"\",\"\",IF(OR(VLOOKUP($A722,Economática!$A$3:$AI$823,25,FALSE)=0,VLOOKUP($A722,Economática!$A$3:$AI$823,25,FALSE)=\"-\"),1/0,VLOOKUP($A722,Economática!$A$3:$AI$823,25,FALSE)))","v":""},{"$f":"CONCATENATE(Economática!B700,\" \",Economática!C700)","v":" "}]
[{"$f":"IF(Economática!AG701=\"\",\"\",Economática!AG701)","v":""},{"$f":"IF($A723=\"\",\"\",VLOOKUP(VLOOKUP($A723,Economática!$A$3:$AI$823,6,FALSE),Correção!$B$16:$C$36,2,FALSE))","v":""},{"$f":"IF(Economática!B701=\"\",\"\",Economática!B701)","v":""},{"$f":"IF($A723=\"\",\"\",IF(OR(VLOOKUP($A723,Economática!$A$3:$AI$823,8,FALSE)=0,VLOOKUP($A723,Economática!$A$3:$AI$823,8,FALSE)=\"-\"),1/0,VLOOKUP($A723,Economática!$A$3:$AI$823,8,FALSE)))","v":""},{"$f":"IF(A723=\"\",\"\",IF(ISERROR(VLOOKUP(A723,Correção!$B$2:$G$13,9,FALSE)),VLOOKUP($A723,Economática!$A$3:$AI$823,9,FALSE),VLOOKUP(A723,Correção!$B$2:$G$13,9,FALSE)))","v":""},{"$f":"IF($A723=\"\",\"\",Economática!G701)","v":""},{"$f":"IF($A723=\"\",\"\",IF(OR(VLOOKUP($A723,Economática!$A$3:$AI$823,10,FALSE)=0,VLOOKUP($A723,Economática!$A$3:$AI$823,10,FALSE)=\"-\"),1/0,VLOOKUP($A723,Economática!$A$3:$AI$823,10,FALSE)))","v":""},{"$f":"IF($A723=\"\",\"\",IF(OR(VLOOKUP($A723,Economática!$A$3:$AI$823,11,FALSE)=0,VLOOKUP($A723,Economática!$A$3:$AI$823,11,FALSE)=\"-\"),1/0,VLOOKUP($A723,Economática!$A$3:$AI$823,11,FALSE)))","v":""},{"$f":"IF($A723=\"\",\"\",IF(OR(VLOOKUP($A723,Economática!$A$3:$AI$823,12,FALSE)=0,VLOOKUP($A723,Economática!$A$3:$AI$823,12,FALSE)=\"-\"),1/0,VLOOKUP($A723,Economática!$A$3:$AI$823,12,FALSE)))","v":""},{"$f":"IF($A723=\"\",\"\",IF(OR(VLOOKUP($A723,Economática!$A$3:$AI$823,13,FALSE)=0,VLOOKUP($A723,Economática!$A$3:$AI$823,13,FALSE)=\"-\"),1/0,VLOOKUP($A723,Economática!$A$3:$AI$823,13,FALSE)))","v":""},{"$f":"IF($A723=\"\",\"\",IF(OR(VLOOKUP($A723,Economática!$A$3:$AI$823,14,FALSE)=0,VLOOKUP($A723,Economática!$A$3:$AI$823,14,FALSE)=\"-\"),1/0,VLOOKUP($A723,Economática!$A$3:$AI$823,14,FALSE)))","v":""},{"$f":"IF($A723=\"\",\"\",IF(OR(VLOOKUP($A723,Economática!$A$3:$AI$823,15,FALSE)=0,VLOOKUP($A723,Economática!$A$3:$AI$823,15,FALSE)=\"-\"),1/0,VLOOKUP($A723,Economática!$A$3:$AI$823,15,FALSE)))","v":""},{"$f":"IF($A723=\"\",\"\",IF(OR(VLOOKUP($A723,Economática!$A$3:$AI$823,16,FALSE)=0,VLOOKUP($A723,Economática!$A$3:$AI$823,16,FALSE)=\"-\"),1/0,VLOOKUP($A723,Economática!$A$3:$AI$823,16,FALSE)))","v":""},{"$f":"IF($A723=\"\",\"\",IF(OR(VLOOKUP($A723,Economática!$A$3:$AI$823,17,FALSE)=0,VLOOKUP($A723,Economática!$A$3:$AI$823,17,FALSE)=\"-\"),1/0,VLOOKUP($A723,Economática!$A$3:$AI$823,17,FALSE)))","v":""},{"$f":"IF($A723=\"\",\"\",IF(OR(VLOOKUP($A723,Economática!$A$3:$AI$823,18,FALSE)=0,VLOOKUP($A723,Economática!$A$3:$AI$823,18,FALSE)=\"-\"),1/0,VLOOKUP($A723,Economática!$A$3:$AI$823,18,FALSE)))","v":""},{"$f":"IF($A723=\"\",\"\",IF(OR(VLOOKUP($A723,Economática!$A$3:$AI$823,19,FALSE)=0,VLOOKUP($A723,Economática!$A$3:$AI$823,19,FALSE)=\"-\"),1/0,VLOOKUP($A723,Economática!$A$3:$AI$823,19,FALSE)))","v":""},{"$f":"IF($A723=\"\",\"\",VLOOKUP($A723,Economática!$A$3:$AI$823,20,FALSE)/E723)","v":""},"","","",{"$f":"IF($A723=\"\",\"\",IF(OR(VLOOKUP($A723,Economática!$A$3:$AI$823,21,FALSE)/100=0,VLOOKUP($A723,Economática!$A$3:$AI$823,21,FALSE)/100=\"-\"),1/0,VLOOKUP($A723,Economática!$A$3:$AI$823,21,FALSE)/100))","v":""},{"$f":"IF($A723=\"\",\"\",IF(OR(VLOOKUP($A723,Economática!$A$3:$AI$823,22,FALSE)/100=0,VLOOKUP($A723,Economática!$A$3:$AI$823,22,FALSE)/100=\"-\"),1/0,VLOOKUP($A723,Economática!$A$3:$AI$823,22,FALSE)/100))","v":""},{"$f":"IF($A723=\"\",\"\",IF(OR(VLOOKUP($A723,Economática!$A$3:$AI$823,23,FALSE)=0,VLOOKUP($A723,Economática!$A$3:$AI$823,23,FALSE)=\"-\"),1/0,VLOOKUP($A723,Economática!$A$3:$AI$823,23,FALSE)))","v":""},{"$f":"IF($A723=\"\",\"\",IF(OR(VLOOKUP($A723,Economática!$A$3:$AI$823,24,FALSE)=0,VLOOKUP($A723,Economática!$A$3:$AI$823,24,FALSE)=\"-\"),1/0,VLOOKUP($A723,Economática!$A$3:$AI$823,24,FALSE)))","v":""},{"$f":"IF($A723=\"\",\"\",IF(OR(VLOOKUP($A723,Economática!$A$3:$AI$823,25,FALSE)=0,VLOOKUP($A723,Economática!$A$3:$AI$823,25,FALSE)=\"-\"),1/0,VLOOKUP($A723,Economática!$A$3:$AI$823,25,FALSE)))","v":""},{"$f":"IF($A723=\"\",\"\",IF(ISERROR((F723+VLOOKUP($A723,Economática!$A$3:$AI$823,26,FALSE))/Y723),(F723+VLOOKUP($A723,Economática!$A$3:$AI$823,26,FALSE))/Y723,(F723+VLOOKUP($A723,Economática!$A$3:$AI$823,26,FALSE))/Y723))","v":""},{"$f":"IF($A723=\"\",\"\",IF(OR(-VLOOKUP($A723,Economática!$A$3:$AI$823,27,FALSE)=0,-VLOOKUP($A723,Economática!$A$3:$AI$823,27,FALSE)=\"-\"),1/0,-VLOOKUP($A723,Economática!$A$3:$AI$823,27,FALSE)))","v":""},"",{"$f":"IF($A723=\"\",\"\",IF(OR(VLOOKUP($A723,Economática!$A$3:$AI$823,28,FALSE)=0,VLOOKUP($A723,Economática!$A$3:$AI$823,28,FALSE)=\"-\"),1/0,VLOOKUP($A723,Economática!$A$3:$AI$823,28,FALSE)))","v":""},{"$f":"IF($A723=\"\",\"\",IF(OR(VLOOKUP($A723,Economática!$A$3:$AI$823,29,FALSE)=0,VLOOKUP($A723,Economática!$A$3:$AI$823,29,FALSE)=\"-\"),1/0,VLOOKUP($A723,Economática!$A$3:$AI$823,29,FALSE)))","v":""},{"$f":"IF($A723=\"\",\"\",IF(OR(VLOOKUP($A723,Economática!$A$3:$AI$823,30,FALSE)/E723=0,VLOOKUP($A723,Economática!$A$3:$AI$823,30,FALSE)/E723=\"-\",VLOOKUP($A723,Economática!$A$3:$AI$823,30,FALSE)/E723<33.33%,VLOOKUP($A723,Economática!$A$3:$AI$823,30,FALSE)/E723>100%),1/0,VLOOKUP($A723,Economática!$A$3:$AI$823,30,FALSE)/E723))","v":""},"",{"$f":"IF($A723=\"\",\"\",IF(OR(VLOOKUP($A723,Economática!$A$3:$AI$823,25,FALSE)=0,VLOOKUP($A723,Economática!$A$3:$AI$823,25,FALSE)=\"-\"),1/0,VLOOKUP($A723,Economática!$A$3:$AI$823,25,FALSE)))","v":""},{"$f":"CONCATENATE(Economática!B701,\" \",Economática!C701)","v":" "}]
[{"$f":"IF(Economática!AG702=\"\",\"\",Economática!AG702)","v":""},{"$f":"IF($A724=\"\",\"\",VLOOKUP(VLOOKUP($A724,Economática!$A$3:$AI$823,6,FALSE),Correção!$B$16:$C$36,2,FALSE))","v":""},{"$f":"IF(Economática!B702=\"\",\"\",Economática!B702)","v":""},{"$f":"IF($A724=\"\",\"\",IF(OR(VLOOKUP($A724,Economática!$A$3:$AI$823,8,FALSE)=0,VLOOKUP($A724,Economática!$A$3:$AI$823,8,FALSE)=\"-\"),1/0,VLOOKUP($A724,Economática!$A$3:$AI$823,8,FALSE)))","v":""},{"$f":"IF(A724=\"\",\"\",IF(ISERROR(VLOOKUP(A724,Correção!$B$2:$G$13,9,FALSE)),VLOOKUP($A724,Economática!$A$3:$AI$823,9,FALSE),VLOOKUP(A724,Correção!$B$2:$G$13,9,FALSE)))","v":""},{"$f":"IF($A724=\"\",\"\",Economática!G702)","v":""},{"$f":"IF($A724=\"\",\"\",IF(OR(VLOOKUP($A724,Economática!$A$3:$AI$823,10,FALSE)=0,VLOOKUP($A724,Economática!$A$3:$AI$823,10,FALSE)=\"-\"),1/0,VLOOKUP($A724,Economática!$A$3:$AI$823,10,FALSE)))","v":""},{"$f":"IF($A724=\"\",\"\",IF(OR(VLOOKUP($A724,Economática!$A$3:$AI$823,11,FALSE)=0,VLOOKUP($A724,Economática!$A$3:$AI$823,11,FALSE)=\"-\"),1/0,VLOOKUP($A724,Economática!$A$3:$AI$823,11,FALSE)))","v":""},{"$f":"IF($A724=\"\",\"\",IF(OR(VLOOKUP($A724,Economática!$A$3:$AI$823,12,FALSE)=0,VLOOKUP($A724,Economática!$A$3:$AI$823,12,FALSE)=\"-\"),1/0,VLOOKUP($A724,Economática!$A$3:$AI$823,12,FALSE)))","v":""},{"$f":"IF($A724=\"\",\"\",IF(OR(VLOOKUP($A724,Economática!$A$3:$AI$823,13,FALSE)=0,VLOOKUP($A724,Economática!$A$3:$AI$823,13,FALSE)=\"-\"),1/0,VLOOKUP($A724,Economática!$A$3:$AI$823,13,FALSE)))","v":""},{"$f":"IF($A724=\"\",\"\",IF(OR(VLOOKUP($A724,Economática!$A$3:$AI$823,14,FALSE)=0,VLOOKUP($A724,Economática!$A$3:$AI$823,14,FALSE)=\"-\"),1/0,VLOOKUP($A724,Economática!$A$3:$AI$823,14,FALSE)))","v":""},{"$f":"IF($A724=\"\",\"\",IF(OR(VLOOKUP($A724,Economática!$A$3:$AI$823,15,FALSE)=0,VLOOKUP($A724,Economática!$A$3:$AI$823,15,FALSE)=\"-\"),1/0,VLOOKUP($A724,Economática!$A$3:$AI$823,15,FALSE)))","v":""},{"$f":"IF($A724=\"\",\"\",IF(OR(VLOOKUP($A724,Economática!$A$3:$AI$823,16,FALSE)=0,VLOOKUP($A724,Economática!$A$3:$AI$823,16,FALSE)=\"-\"),1/0,VLOOKUP($A724,Economática!$A$3:$AI$823,16,FALSE)))","v":""},{"$f":"IF($A724=\"\",\"\",IF(OR(VLOOKUP($A724,Economática!$A$3:$AI$823,17,FALSE)=0,VLOOKUP($A724,Economática!$A$3:$AI$823,17,FALSE)=\"-\"),1/0,VLOOKUP($A724,Economática!$A$3:$AI$823,17,FALSE)))","v":""},{"$f":"IF($A724=\"\",\"\",IF(OR(VLOOKUP($A724,Economática!$A$3:$AI$823,18,FALSE)=0,VLOOKUP($A724,Economática!$A$3:$AI$823,18,FALSE)=\"-\"),1/0,VLOOKUP($A724,Economática!$A$3:$AI$823,18,FALSE)))","v":""},{"$f":"IF($A724=\"\",\"\",IF(OR(VLOOKUP($A724,Economática!$A$3:$AI$823,19,FALSE)=0,VLOOKUP($A724,Economática!$A$3:$AI$823,19,FALSE)=\"-\"),1/0,VLOOKUP($A724,Economática!$A$3:$AI$823,19,FALSE)))","v":""},{"$f":"IF($A724=\"\",\"\",VLOOKUP($A724,Economática!$A$3:$AI$823,20,FALSE)/E724)","v":""},"","","",{"$f":"IF($A724=\"\",\"\",IF(OR(VLOOKUP($A724,Economática!$A$3:$AI$823,21,FALSE)/100=0,VLOOKUP($A724,Economática!$A$3:$AI$823,21,FALSE)/100=\"-\"),1/0,VLOOKUP($A724,Economática!$A$3:$AI$823,21,FALSE)/100))","v":""},{"$f":"IF($A724=\"\",\"\",IF(OR(VLOOKUP($A724,Economática!$A$3:$AI$823,22,FALSE)/100=0,VLOOKUP($A724,Economática!$A$3:$AI$823,22,FALSE)/100=\"-\"),1/0,VLOOKUP($A724,Economática!$A$3:$AI$823,22,FALSE)/100))","v":""},{"$f":"IF($A724=\"\",\"\",IF(OR(VLOOKUP($A724,Economática!$A$3:$AI$823,23,FALSE)=0,VLOOKUP($A724,Economática!$A$3:$AI$823,23,FALSE)=\"-\"),1/0,VLOOKUP($A724,Economática!$A$3:$AI$823,23,FALSE)))","v":""},{"$f":"IF($A724=\"\",\"\",IF(OR(VLOOKUP($A724,Economática!$A$3:$AI$823,24,FALSE)=0,VLOOKUP($A724,Economática!$A$3:$AI$823,24,FALSE)=\"-\"),1/0,VLOOKUP($A724,Economática!$A$3:$AI$823,24,FALSE)))","v":""},{"$f":"IF($A724=\"\",\"\",IF(OR(VLOOKUP($A724,Economática!$A$3:$AI$823,25,FALSE)=0,VLOOKUP($A724,Economática!$A$3:$AI$823,25,FALSE)=\"-\"),1/0,VLOOKUP($A724,Economática!$A$3:$AI$823,25,FALSE)))","v":""},{"$f":"IF($A724=\"\",\"\",IF(ISERROR((F724+VLOOKUP($A724,Economática!$A$3:$AI$823,26,FALSE))/Y724),(F724+VLOOKUP($A724,Economática!$A$3:$AI$823,26,FALSE))/Y724,(F724+VLOOKUP($A724,Economática!$A$3:$AI$823,26,FALSE))/Y724))","v":""},{"$f":"IF($A724=\"\",\"\",IF(OR(-VLOOKUP($A724,Economática!$A$3:$AI$823,27,FALSE)=0,-VLOOKUP($A724,Economática!$A$3:$AI$823,27,FALSE)=\"-\"),1/0,-VLOOKUP($A724,Economática!$A$3:$AI$823,27,FALSE)))","v":""},"",{"$f":"IF($A724=\"\",\"\",IF(OR(VLOOKUP($A724,Economática!$A$3:$AI$823,28,FALSE)=0,VLOOKUP($A724,Economática!$A$3:$AI$823,28,FALSE)=\"-\"),1/0,VLOOKUP($A724,Economática!$A$3:$AI$823,28,FALSE)))","v":""},{"$f":"IF($A724=\"\",\"\",IF(OR(VLOOKUP($A724,Economática!$A$3:$AI$823,29,FALSE)=0,VLOOKUP($A724,Economática!$A$3:$AI$823,29,FALSE)=\"-\"),1/0,VLOOKUP($A724,Economática!$A$3:$AI$823,29,FALSE)))","v":""},{"$f":"IF($A724=\"\",\"\",IF(OR(VLOOKUP($A724,Economática!$A$3:$AI$823,30,FALSE)/E724=0,VLOOKUP($A724,Economática!$A$3:$AI$823,30,FALSE)/E724=\"-\",VLOOKUP($A724,Economática!$A$3:$AI$823,30,FALSE)/E724<33.33%,VLOOKUP($A724,Economática!$A$3:$AI$823,30,FALSE)/E724>100%),1/0,VLOOKUP($A724,Economática!$A$3:$AI$823,30,FALSE)/E724))","v":""},"",{"$f":"IF($A724=\"\",\"\",IF(OR(VLOOKUP($A724,Economática!$A$3:$AI$823,25,FALSE)=0,VLOOKUP($A724,Economática!$A$3:$AI$823,25,FALSE)=\"-\"),1/0,VLOOKUP($A724,Economática!$A$3:$AI$823,25,FALSE)))","v":""},{"$f":"CONCATENATE(Economática!B702,\" \",Economática!C702)","v":" "}]
[{"$f":"IF(Economática!AG703=\"\",\"\",Economática!AG703)","v":""},{"$f":"IF($A725=\"\",\"\",VLOOKUP(VLOOKUP($A725,Economática!$A$3:$AI$823,6,FALSE),Correção!$B$16:$C$36,2,FALSE))","v":""},{"$f":"IF(Economática!B703=\"\",\"\",Economática!B703)","v":""},{"$f":"IF($A725=\"\",\"\",IF(OR(VLOOKUP($A725,Economática!$A$3:$AI$823,8,FALSE)=0,VLOOKUP($A725,Economática!$A$3:$AI$823,8,FALSE)=\"-\"),1/0,VLOOKUP($A725,Economática!$A$3:$AI$823,8,FALSE)))","v":""},{"$f":"IF(A725=\"\",\"\",IF(ISERROR(VLOOKUP(A725,Correção!$B$2:$G$13,9,FALSE)),VLOOKUP($A725,Economática!$A$3:$AI$823,9,FALSE),VLOOKUP(A725,Correção!$B$2:$G$13,9,FALSE)))","v":""},{"$f":"IF($A725=\"\",\"\",Economática!G703)","v":""},{"$f":"IF($A725=\"\",\"\",IF(OR(VLOOKUP($A725,Economática!$A$3:$AI$823,10,FALSE)=0,VLOOKUP($A725,Economática!$A$3:$AI$823,10,FALSE)=\"-\"),1/0,VLOOKUP($A725,Economática!$A$3:$AI$823,10,FALSE)))","v":""},{"$f":"IF($A725=\"\",\"\",IF(OR(VLOOKUP($A725,Economática!$A$3:$AI$823,11,FALSE)=0,VLOOKUP($A725,Economática!$A$3:$AI$823,11,FALSE)=\"-\"),1/0,VLOOKUP($A725,Economática!$A$3:$AI$823,11,FALSE)))","v":""},{"$f":"IF($A725=\"\",\"\",IF(OR(VLOOKUP($A725,Economática!$A$3:$AI$823,12,FALSE)=0,VLOOKUP($A725,Economática!$A$3:$AI$823,12,FALSE)=\"-\"),1/0,VLOOKUP($A725,Economática!$A$3:$AI$823,12,FALSE)))","v":""},{"$f":"IF($A725=\"\",\"\",IF(OR(VLOOKUP($A725,Economática!$A$3:$AI$823,13,FALSE)=0,VLOOKUP($A725,Economática!$A$3:$AI$823,13,FALSE)=\"-\"),1/0,VLOOKUP($A725,Economática!$A$3:$AI$823,13,FALSE)))","v":""},{"$f":"IF($A725=\"\",\"\",IF(OR(VLOOKUP($A725,Economática!$A$3:$AI$823,14,FALSE)=0,VLOOKUP($A725,Economática!$A$3:$AI$823,14,FALSE)=\"-\"),1/0,VLOOKUP($A725,Economática!$A$3:$AI$823,14,FALSE)))","v":""},{"$f":"IF($A725=\"\",\"\",IF(OR(VLOOKUP($A725,Economática!$A$3:$AI$823,15,FALSE)=0,VLOOKUP($A725,Economática!$A$3:$AI$823,15,FALSE)=\"-\"),1/0,VLOOKUP($A725,Economática!$A$3:$AI$823,15,FALSE)))","v":""},{"$f":"IF($A725=\"\",\"\",IF(OR(VLOOKUP($A725,Economática!$A$3:$AI$823,16,FALSE)=0,VLOOKUP($A725,Economática!$A$3:$AI$823,16,FALSE)=\"-\"),1/0,VLOOKUP($A725,Economática!$A$3:$AI$823,16,FALSE)))","v":""},{"$f":"IF($A725=\"\",\"\",IF(OR(VLOOKUP($A725,Economática!$A$3:$AI$823,17,FALSE)=0,VLOOKUP($A725,Economática!$A$3:$AI$823,17,FALSE)=\"-\"),1/0,VLOOKUP($A725,Economática!$A$3:$AI$823,17,FALSE)))","v":""},{"$f":"IF($A725=\"\",\"\",IF(OR(VLOOKUP($A725,Economática!$A$3:$AI$823,18,FALSE)=0,VLOOKUP($A725,Economática!$A$3:$AI$823,18,FALSE)=\"-\"),1/0,VLOOKUP($A725,Economática!$A$3:$AI$823,18,FALSE)))","v":""},{"$f":"IF($A725=\"\",\"\",IF(OR(VLOOKUP($A725,Economática!$A$3:$AI$823,19,FALSE)=0,VLOOKUP($A725,Economática!$A$3:$AI$823,19,FALSE)=\"-\"),1/0,VLOOKUP($A725,Economática!$A$3:$AI$823,19,FALSE)))","v":""},{"$f":"IF($A725=\"\",\"\",VLOOKUP($A725,Economática!$A$3:$AI$823,20,FALSE)/E725)","v":""},"","","",{"$f":"IF($A725=\"\",\"\",IF(OR(VLOOKUP($A725,Economática!$A$3:$AI$823,21,FALSE)/100=0,VLOOKUP($A725,Economática!$A$3:$AI$823,21,FALSE)/100=\"-\"),1/0,VLOOKUP($A725,Economática!$A$3:$AI$823,21,FALSE)/100))","v":""},{"$f":"IF($A725=\"\",\"\",IF(OR(VLOOKUP($A725,Economática!$A$3:$AI$823,22,FALSE)/100=0,VLOOKUP($A725,Economática!$A$3:$AI$823,22,FALSE)/100=\"-\"),1/0,VLOOKUP($A725,Economática!$A$3:$AI$823,22,FALSE)/100))","v":""},{"$f":"IF($A725=\"\",\"\",IF(OR(VLOOKUP($A725,Economática!$A$3:$AI$823,23,FALSE)=0,VLOOKUP($A725,Economática!$A$3:$AI$823,23,FALSE)=\"-\"),1/0,VLOOKUP($A725,Economática!$A$3:$AI$823,23,FALSE)))","v":""},{"$f":"IF($A725=\"\",\"\",IF(OR(VLOOKUP($A725,Economática!$A$3:$AI$823,24,FALSE)=0,VLOOKUP($A725,Economática!$A$3:$AI$823,24,FALSE)=\"-\"),1/0,VLOOKUP($A725,Economática!$A$3:$AI$823,24,FALSE)))","v":""},{"$f":"IF($A725=\"\",\"\",IF(OR(VLOOKUP($A725,Economática!$A$3:$AI$823,25,FALSE)=0,VLOOKUP($A725,Economática!$A$3:$AI$823,25,FALSE)=\"-\"),1/0,VLOOKUP($A725,Economática!$A$3:$AI$823,25,FALSE)))","v":""},{"$f":"IF($A725=\"\",\"\",IF(ISERROR((F725+VLOOKUP($A725,Economática!$A$3:$AI$823,26,FALSE))/Y725),(F725+VLOOKUP($A725,Economática!$A$3:$AI$823,26,FALSE))/Y725,(F725+VLOOKUP($A725,Economática!$A$3:$AI$823,26,FALSE))/Y725))","v":""},{"$f":"IF($A725=\"\",\"\",IF(OR(-VLOOKUP($A725,Economática!$A$3:$AI$823,27,FALSE)=0,-VLOOKUP($A725,Economática!$A$3:$AI$823,27,FALSE)=\"-\"),1/0,-VLOOKUP($A725,Economática!$A$3:$AI$823,27,FALSE)))","v":""},"",{"$f":"IF($A725=\"\",\"\",IF(OR(VLOOKUP($A725,Economática!$A$3:$AI$823,28,FALSE)=0,VLOOKUP($A725,Economática!$A$3:$AI$823,28,FALSE)=\"-\"),1/0,VLOOKUP($A725,Economática!$A$3:$AI$823,28,FALSE)))","v":""},{"$f":"IF($A725=\"\",\"\",IF(OR(VLOOKUP($A725,Economática!$A$3:$AI$823,29,FALSE)=0,VLOOKUP($A725,Economática!$A$3:$AI$823,29,FALSE)=\"-\"),1/0,VLOOKUP($A725,Economática!$A$3:$AI$823,29,FALSE)))","v":""},{"$f":"IF($A725=\"\",\"\",IF(OR(VLOOKUP($A725,Economática!$A$3:$AI$823,30,FALSE)/E725=0,VLOOKUP($A725,Economática!$A$3:$AI$823,30,FALSE)/E725=\"-\",VLOOKUP($A725,Economática!$A$3:$AI$823,30,FALSE)/E725<33.33%,VLOOKUP($A725,Economática!$A$3:$AI$823,30,FALSE)/E725>100%),1/0,VLOOKUP($A725,Economática!$A$3:$AI$823,30,FALSE)/E725))","v":""},"",{"$f":"IF($A725=\"\",\"\",IF(OR(VLOOKUP($A725,Economática!$A$3:$AI$823,25,FALSE)=0,VLOOKUP($A725,Economática!$A$3:$AI$823,25,FALSE)=\"-\"),1/0,VLOOKUP($A725,Economática!$A$3:$AI$823,25,FALSE)))","v":""},{"$f":"CONCATENATE(Economática!B703,\" \",Economática!C703)","v":" "}]
[{"$f":"IF(Economática!AG704=\"\",\"\",Economática!AG704)","v":""},{"$f":"IF($A726=\"\",\"\",VLOOKUP(VLOOKUP($A726,Economática!$A$3:$AI$823,6,FALSE),Correção!$B$16:$C$36,2,FALSE))","v":""},{"$f":"IF(Economática!B704=\"\",\"\",Economática!B704)","v":""},{"$f":"IF($A726=\"\",\"\",IF(OR(VLOOKUP($A726,Economática!$A$3:$AI$823,8,FALSE)=0,VLOOKUP($A726,Economática!$A$3:$AI$823,8,FALSE)=\"-\"),1/0,VLOOKUP($A726,Economática!$A$3:$AI$823,8,FALSE)))","v":""},{"$f":"IF(A726=\"\",\"\",IF(ISERROR(VLOOKUP(A726,Correção!$B$2:$G$13,9,FALSE)),VLOOKUP($A726,Economática!$A$3:$AI$823,9,FALSE),VLOOKUP(A726,Correção!$B$2:$G$13,9,FALSE)))","v":""},{"$f":"IF($A726=\"\",\"\",Economática!G704)","v":""},{"$f":"IF($A726=\"\",\"\",IF(OR(VLOOKUP($A726,Economática!$A$3:$AI$823,10,FALSE)=0,VLOOKUP($A726,Economática!$A$3:$AI$823,10,FALSE)=\"-\"),1/0,VLOOKUP($A726,Economática!$A$3:$AI$823,10,FALSE)))","v":""},{"$f":"IF($A726=\"\",\"\",IF(OR(VLOOKUP($A726,Economática!$A$3:$AI$823,11,FALSE)=0,VLOOKUP($A726,Economática!$A$3:$AI$823,11,FALSE)=\"-\"),1/0,VLOOKUP($A726,Economática!$A$3:$AI$823,11,FALSE)))","v":""},{"$f":"IF($A726=\"\",\"\",IF(OR(VLOOKUP($A726,Economática!$A$3:$AI$823,12,FALSE)=0,VLOOKUP($A726,Economática!$A$3:$AI$823,12,FALSE)=\"-\"),1/0,VLOOKUP($A726,Economática!$A$3:$AI$823,12,FALSE)))","v":""},{"$f":"IF($A726=\"\",\"\",IF(OR(VLOOKUP($A726,Economática!$A$3:$AI$823,13,FALSE)=0,VLOOKUP($A726,Economática!$A$3:$AI$823,13,FALSE)=\"-\"),1/0,VLOOKUP($A726,Economática!$A$3:$AI$823,13,FALSE)))","v":""},{"$f":"IF($A726=\"\",\"\",IF(OR(VLOOKUP($A726,Economática!$A$3:$AI$823,14,FALSE)=0,VLOOKUP($A726,Economática!$A$3:$AI$823,14,FALSE)=\"-\"),1/0,VLOOKUP($A726,Economática!$A$3:$AI$823,14,FALSE)))","v":""},{"$f":"IF($A726=\"\",\"\",IF(OR(VLOOKUP($A726,Economática!$A$3:$AI$823,15,FALSE)=0,VLOOKUP($A726,Economática!$A$3:$AI$823,15,FALSE)=\"-\"),1/0,VLOOKUP($A726,Economática!$A$3:$AI$823,15,FALSE)))","v":""},{"$f":"IF($A726=\"\",\"\",IF(OR(VLOOKUP($A726,Economática!$A$3:$AI$823,16,FALSE)=0,VLOOKUP($A726,Economática!$A$3:$AI$823,16,FALSE)=\"-\"),1/0,VLOOKUP($A726,Economática!$A$3:$AI$823,16,FALSE)))","v":""},{"$f":"IF($A726=\"\",\"\",IF(OR(VLOOKUP($A726,Economática!$A$3:$AI$823,17,FALSE)=0,VLOOKUP($A726,Economática!$A$3:$AI$823,17,FALSE)=\"-\"),1/0,VLOOKUP($A726,Economática!$A$3:$AI$823,17,FALSE)))","v":""},{"$f":"IF($A726=\"\",\"\",IF(OR(VLOOKUP($A726,Economática!$A$3:$AI$823,18,FALSE)=0,VLOOKUP($A726,Economática!$A$3:$AI$823,18,FALSE)=\"-\"),1/0,VLOOKUP($A726,Economática!$A$3:$AI$823,18,FALSE)))","v":""},{"$f":"IF($A726=\"\",\"\",IF(OR(VLOOKUP($A726,Economática!$A$3:$AI$823,19,FALSE)=0,VLOOKUP($A726,Economática!$A$3:$AI$823,19,FALSE)=\"-\"),1/0,VLOOKUP($A726,Economática!$A$3:$AI$823,19,FALSE)))","v":""},{"$f":"IF($A726=\"\",\"\",VLOOKUP($A726,Economática!$A$3:$AI$823,20,FALSE)/E726)","v":""},"","","",{"$f":"IF($A726=\"\",\"\",IF(OR(VLOOKUP($A726,Economática!$A$3:$AI$823,21,FALSE)/100=0,VLOOKUP($A726,Economática!$A$3:$AI$823,21,FALSE)/100=\"-\"),1/0,VLOOKUP($A726,Economática!$A$3:$AI$823,21,FALSE)/100))","v":""},{"$f":"IF($A726=\"\",\"\",IF(OR(VLOOKUP($A726,Economática!$A$3:$AI$823,22,FALSE)/100=0,VLOOKUP($A726,Economática!$A$3:$AI$823,22,FALSE)/100=\"-\"),1/0,VLOOKUP($A726,Economática!$A$3:$AI$823,22,FALSE)/100))","v":""},{"$f":"IF($A726=\"\",\"\",IF(OR(VLOOKUP($A726,Economática!$A$3:$AI$823,23,FALSE)=0,VLOOKUP($A726,Economática!$A$3:$AI$823,23,FALSE)=\"-\"),1/0,VLOOKUP($A726,Economática!$A$3:$AI$823,23,FALSE)))","v":""},{"$f":"IF($A726=\"\",\"\",IF(OR(VLOOKUP($A726,Economática!$A$3:$AI$823,24,FALSE)=0,VLOOKUP($A726,Economática!$A$3:$AI$823,24,FALSE)=\"-\"),1/0,VLOOKUP($A726,Economática!$A$3:$AI$823,24,FALSE)))","v":""},{"$f":"IF($A726=\"\",\"\",IF(OR(VLOOKUP($A726,Economática!$A$3:$AI$823,25,FALSE)=0,VLOOKUP($A726,Economática!$A$3:$AI$823,25,FALSE)=\"-\"),1/0,VLOOKUP($A726,Economática!$A$3:$AI$823,25,FALSE)))","v":""},{"$f":"IF($A726=\"\",\"\",IF(ISERROR((F726+VLOOKUP($A726,Economática!$A$3:$AI$823,26,FALSE))/Y726),(F726+VLOOKUP($A726,Economática!$A$3:$AI$823,26,FALSE))/Y726,(F726+VLOOKUP($A726,Economática!$A$3:$AI$823,26,FALSE))/Y726))","v":""},{"$f":"IF($A726=\"\",\"\",IF(OR(-VLOOKUP($A726,Economática!$A$3:$AI$823,27,FALSE)=0,-VLOOKUP($A726,Economática!$A$3:$AI$823,27,FALSE)=\"-\"),1/0,-VLOOKUP($A726,Economática!$A$3:$AI$823,27,FALSE)))","v":""},"",{"$f":"IF($A726=\"\",\"\",IF(OR(VLOOKUP($A726,Economática!$A$3:$AI$823,28,FALSE)=0,VLOOKUP($A726,Economática!$A$3:$AI$823,28,FALSE)=\"-\"),1/0,VLOOKUP($A726,Economática!$A$3:$AI$823,28,FALSE)))","v":""},{"$f":"IF($A726=\"\",\"\",IF(OR(VLOOKUP($A726,Economática!$A$3:$AI$823,29,FALSE)=0,VLOOKUP($A726,Economática!$A$3:$AI$823,29,FALSE)=\"-\"),1/0,VLOOKUP($A726,Economática!$A$3:$AI$823,29,FALSE)))","v":""},{"$f":"IF($A726=\"\",\"\",IF(OR(VLOOKUP($A726,Economática!$A$3:$AI$823,30,FALSE)/E726=0,VLOOKUP($A726,Economática!$A$3:$AI$823,30,FALSE)/E726=\"-\",VLOOKUP($A726,Economática!$A$3:$AI$823,30,FALSE)/E726<33.33%,VLOOKUP($A726,Economática!$A$3:$AI$823,30,FALSE)/E726>100%),1/0,VLOOKUP($A726,Economática!$A$3:$AI$823,30,FALSE)/E726))","v":""},"",{"$f":"IF($A726=\"\",\"\",IF(OR(VLOOKUP($A726,Economática!$A$3:$AI$823,25,FALSE)=0,VLOOKUP($A726,Economática!$A$3:$AI$823,25,FALSE)=\"-\"),1/0,VLOOKUP($A726,Economática!$A$3:$AI$823,25,FALSE)))","v":""},{"$f":"CONCATENATE(Economática!B704,\" \",Economática!C704)","v":" "}]
[{"$f":"IF(Economática!AG705=\"\",\"\",Economática!AG705)","v":""},{"$f":"IF($A727=\"\",\"\",VLOOKUP(VLOOKUP($A727,Economática!$A$3:$AI$823,6,FALSE),Correção!$B$16:$C$36,2,FALSE))","v":""},{"$f":"IF(Economática!B705=\"\",\"\",Economática!B705)","v":""},{"$f":"IF($A727=\"\",\"\",IF(OR(VLOOKUP($A727,Economática!$A$3:$AI$823,8,FALSE)=0,VLOOKUP($A727,Economática!$A$3:$AI$823,8,FALSE)=\"-\"),1/0,VLOOKUP($A727,Economática!$A$3:$AI$823,8,FALSE)))","v":""},{"$f":"IF(A727=\"\",\"\",IF(ISERROR(VLOOKUP(A727,Correção!$B$2:$G$13,9,FALSE)),VLOOKUP($A727,Economática!$A$3:$AI$823,9,FALSE),VLOOKUP(A727,Correção!$B$2:$G$13,9,FALSE)))","v":""},{"$f":"IF($A727=\"\",\"\",Economática!G705)","v":""},{"$f":"IF($A727=\"\",\"\",IF(OR(VLOOKUP($A727,Economática!$A$3:$AI$823,10,FALSE)=0,VLOOKUP($A727,Economática!$A$3:$AI$823,10,FALSE)=\"-\"),1/0,VLOOKUP($A727,Economática!$A$3:$AI$823,10,FALSE)))","v":""},{"$f":"IF($A727=\"\",\"\",IF(OR(VLOOKUP($A727,Economática!$A$3:$AI$823,11,FALSE)=0,VLOOKUP($A727,Economática!$A$3:$AI$823,11,FALSE)=\"-\"),1/0,VLOOKUP($A727,Economática!$A$3:$AI$823,11,FALSE)))","v":""},{"$f":"IF($A727=\"\",\"\",IF(OR(VLOOKUP($A727,Economática!$A$3:$AI$823,12,FALSE)=0,VLOOKUP($A727,Economática!$A$3:$AI$823,12,FALSE)=\"-\"),1/0,VLOOKUP($A727,Economática!$A$3:$AI$823,12,FALSE)))","v":""},{"$f":"IF($A727=\"\",\"\",IF(OR(VLOOKUP($A727,Economática!$A$3:$AI$823,13,FALSE)=0,VLOOKUP($A727,Economática!$A$3:$AI$823,13,FALSE)=\"-\"),1/0,VLOOKUP($A727,Economática!$A$3:$AI$823,13,FALSE)))","v":""},{"$f":"IF($A727=\"\",\"\",IF(OR(VLOOKUP($A727,Economática!$A$3:$AI$823,14,FALSE)=0,VLOOKUP($A727,Economática!$A$3:$AI$823,14,FALSE)=\"-\"),1/0,VLOOKUP($A727,Economática!$A$3:$AI$823,14,FALSE)))","v":""},{"$f":"IF($A727=\"\",\"\",IF(OR(VLOOKUP($A727,Economática!$A$3:$AI$823,15,FALSE)=0,VLOOKUP($A727,Economática!$A$3:$AI$823,15,FALSE)=\"-\"),1/0,VLOOKUP($A727,Economática!$A$3:$AI$823,15,FALSE)))","v":""},{"$f":"IF($A727=\"\",\"\",IF(OR(VLOOKUP($A727,Economática!$A$3:$AI$823,16,FALSE)=0,VLOOKUP($A727,Economática!$A$3:$AI$823,16,FALSE)=\"-\"),1/0,VLOOKUP($A727,Economática!$A$3:$AI$823,16,FALSE)))","v":""},{"$f":"IF($A727=\"\",\"\",IF(OR(VLOOKUP($A727,Economática!$A$3:$AI$823,17,FALSE)=0,VLOOKUP($A727,Economática!$A$3:$AI$823,17,FALSE)=\"-\"),1/0,VLOOKUP($A727,Economática!$A$3:$AI$823,17,FALSE)))","v":""},{"$f":"IF($A727=\"\",\"\",IF(OR(VLOOKUP($A727,Economática!$A$3:$AI$823,18,FALSE)=0,VLOOKUP($A727,Economática!$A$3:$AI$823,18,FALSE)=\"-\"),1/0,VLOOKUP($A727,Economática!$A$3:$AI$823,18,FALSE)))","v":""},{"$f":"IF($A727=\"\",\"\",IF(OR(VLOOKUP($A727,Economática!$A$3:$AI$823,19,FALSE)=0,VLOOKUP($A727,Economática!$A$3:$AI$823,19,FALSE)=\"-\"),1/0,VLOOKUP($A727,Economática!$A$3:$AI$823,19,FALSE)))","v":""},{"$f":"IF($A727=\"\",\"\",VLOOKUP($A727,Economática!$A$3:$AI$823,20,FALSE)/E727)","v":""},"","","",{"$f":"IF($A727=\"\",\"\",IF(OR(VLOOKUP($A727,Economática!$A$3:$AI$823,21,FALSE)/100=0,VLOOKUP($A727,Economática!$A$3:$AI$823,21,FALSE)/100=\"-\"),1/0,VLOOKUP($A727,Economática!$A$3:$AI$823,21,FALSE)/100))","v":""},{"$f":"IF($A727=\"\",\"\",IF(OR(VLOOKUP($A727,Economática!$A$3:$AI$823,22,FALSE)/100=0,VLOOKUP($A727,Economática!$A$3:$AI$823,22,FALSE)/100=\"-\"),1/0,VLOOKUP($A727,Economática!$A$3:$AI$823,22,FALSE)/100))","v":""},{"$f":"IF($A727=\"\",\"\",IF(OR(VLOOKUP($A727,Economática!$A$3:$AI$823,23,FALSE)=0,VLOOKUP($A727,Economática!$A$3:$AI$823,23,FALSE)=\"-\"),1/0,VLOOKUP($A727,Economática!$A$3:$AI$823,23,FALSE)))","v":""},{"$f":"IF($A727=\"\",\"\",IF(OR(VLOOKUP($A727,Economática!$A$3:$AI$823,24,FALSE)=0,VLOOKUP($A727,Economática!$A$3:$AI$823,24,FALSE)=\"-\"),1/0,VLOOKUP($A727,Economática!$A$3:$AI$823,24,FALSE)))","v":""},{"$f":"IF($A727=\"\",\"\",IF(OR(VLOOKUP($A727,Economática!$A$3:$AI$823,25,FALSE)=0,VLOOKUP($A727,Economática!$A$3:$AI$823,25,FALSE)=\"-\"),1/0,VLOOKUP($A727,Economática!$A$3:$AI$823,25,FALSE)))","v":""},{"$f":"IF($A727=\"\",\"\",IF(ISERROR((F727+VLOOKUP($A727,Economática!$A$3:$AI$823,26,FALSE))/Y727),(F727+VLOOKUP($A727,Economática!$A$3:$AI$823,26,FALSE))/Y727,(F727+VLOOKUP($A727,Economática!$A$3:$AI$823,26,FALSE))/Y727))","v":""},{"$f":"IF($A727=\"\",\"\",IF(OR(-VLOOKUP($A727,Economática!$A$3:$AI$823,27,FALSE)=0,-VLOOKUP($A727,Economática!$A$3:$AI$823,27,FALSE)=\"-\"),1/0,-VLOOKUP($A727,Economática!$A$3:$AI$823,27,FALSE)))","v":""},"",{"$f":"IF($A727=\"\",\"\",IF(OR(VLOOKUP($A727,Economática!$A$3:$AI$823,28,FALSE)=0,VLOOKUP($A727,Economática!$A$3:$AI$823,28,FALSE)=\"-\"),1/0,VLOOKUP($A727,Economática!$A$3:$AI$823,28,FALSE)))","v":""},{"$f":"IF($A727=\"\",\"\",IF(OR(VLOOKUP($A727,Economática!$A$3:$AI$823,29,FALSE)=0,VLOOKUP($A727,Economática!$A$3:$AI$823,29,FALSE)=\"-\"),1/0,VLOOKUP($A727,Economática!$A$3:$AI$823,29,FALSE)))","v":""},{"$f":"IF($A727=\"\",\"\",IF(OR(VLOOKUP($A727,Economática!$A$3:$AI$823,30,FALSE)/E727=0,VLOOKUP($A727,Economática!$A$3:$AI$823,30,FALSE)/E727=\"-\",VLOOKUP($A727,Economática!$A$3:$AI$823,30,FALSE)/E727<33.33%,VLOOKUP($A727,Economática!$A$3:$AI$823,30,FALSE)/E727>100%),1/0,VLOOKUP($A727,Economática!$A$3:$AI$823,30,FALSE)/E727))","v":""},"",{"$f":"IF($A727=\"\",\"\",IF(OR(VLOOKUP($A727,Economática!$A$3:$AI$823,25,FALSE)=0,VLOOKUP($A727,Economática!$A$3:$AI$823,25,FALSE)=\"-\"),1/0,VLOOKUP($A727,Economática!$A$3:$AI$823,25,FALSE)))","v":""},{"$f":"CONCATENATE(Economática!B705,\" \",Economática!C705)","v":" "}]
[{"$f":"IF(Economática!AG706=\"\",\"\",Economática!AG706)","v":""},{"$f":"IF($A728=\"\",\"\",VLOOKUP(VLOOKUP($A728,Economática!$A$3:$AI$823,6,FALSE),Correção!$B$16:$C$36,2,FALSE))","v":""},{"$f":"IF(Economática!B706=\"\",\"\",Economática!B706)","v":""},{"$f":"IF($A728=\"\",\"\",IF(OR(VLOOKUP($A728,Economática!$A$3:$AI$823,8,FALSE)=0,VLOOKUP($A728,Economática!$A$3:$AI$823,8,FALSE)=\"-\"),1/0,VLOOKUP($A728,Economática!$A$3:$AI$823,8,FALSE)))","v":""},{"$f":"IF(A728=\"\",\"\",IF(ISERROR(VLOOKUP(A728,Correção!$B$2:$G$13,9,FALSE)),VLOOKUP($A728,Economática!$A$3:$AI$823,9,FALSE),VLOOKUP(A728,Correção!$B$2:$G$13,9,FALSE)))","v":""},{"$f":"IF($A728=\"\",\"\",Economática!G706)","v":""},{"$f":"IF($A728=\"\",\"\",IF(OR(VLOOKUP($A728,Economática!$A$3:$AI$823,10,FALSE)=0,VLOOKUP($A728,Economática!$A$3:$AI$823,10,FALSE)=\"-\"),1/0,VLOOKUP($A728,Economática!$A$3:$AI$823,10,FALSE)))","v":""},{"$f":"IF($A728=\"\",\"\",IF(OR(VLOOKUP($A728,Economática!$A$3:$AI$823,11,FALSE)=0,VLOOKUP($A728,Economática!$A$3:$AI$823,11,FALSE)=\"-\"),1/0,VLOOKUP($A728,Economática!$A$3:$AI$823,11,FALSE)))","v":""},{"$f":"IF($A728=\"\",\"\",IF(OR(VLOOKUP($A728,Economática!$A$3:$AI$823,12,FALSE)=0,VLOOKUP($A728,Economática!$A$3:$AI$823,12,FALSE)=\"-\"),1/0,VLOOKUP($A728,Economática!$A$3:$AI$823,12,FALSE)))","v":""},{"$f":"IF($A728=\"\",\"\",IF(OR(VLOOKUP($A728,Economática!$A$3:$AI$823,13,FALSE)=0,VLOOKUP($A728,Economática!$A$3:$AI$823,13,FALSE)=\"-\"),1/0,VLOOKUP($A728,Economática!$A$3:$AI$823,13,FALSE)))","v":""},{"$f":"IF($A728=\"\",\"\",IF(OR(VLOOKUP($A728,Economática!$A$3:$AI$823,14,FALSE)=0,VLOOKUP($A728,Economática!$A$3:$AI$823,14,FALSE)=\"-\"),1/0,VLOOKUP($A728,Economática!$A$3:$AI$823,14,FALSE)))","v":""},{"$f":"IF($A728=\"\",\"\",IF(OR(VLOOKUP($A728,Economática!$A$3:$AI$823,15,FALSE)=0,VLOOKUP($A728,Economática!$A$3:$AI$823,15,FALSE)=\"-\"),1/0,VLOOKUP($A728,Economática!$A$3:$AI$823,15,FALSE)))","v":""},{"$f":"IF($A728=\"\",\"\",IF(OR(VLOOKUP($A728,Economática!$A$3:$AI$823,16,FALSE)=0,VLOOKUP($A728,Economática!$A$3:$AI$823,16,FALSE)=\"-\"),1/0,VLOOKUP($A728,Economática!$A$3:$AI$823,16,FALSE)))","v":""},{"$f":"IF($A728=\"\",\"\",IF(OR(VLOOKUP($A728,Economática!$A$3:$AI$823,17,FALSE)=0,VLOOKUP($A728,Economática!$A$3:$AI$823,17,FALSE)=\"-\"),1/0,VLOOKUP($A728,Economática!$A$3:$AI$823,17,FALSE)))","v":""},{"$f":"IF($A728=\"\",\"\",IF(OR(VLOOKUP($A728,Economática!$A$3:$AI$823,18,FALSE)=0,VLOOKUP($A728,Economática!$A$3:$AI$823,18,FALSE)=\"-\"),1/0,VLOOKUP($A728,Economática!$A$3:$AI$823,18,FALSE)))","v":""},{"$f":"IF($A728=\"\",\"\",IF(OR(VLOOKUP($A728,Economática!$A$3:$AI$823,19,FALSE)=0,VLOOKUP($A728,Economática!$A$3:$AI$823,19,FALSE)=\"-\"),1/0,VLOOKUP($A728,Economática!$A$3:$AI$823,19,FALSE)))","v":""},{"$f":"IF($A728=\"\",\"\",VLOOKUP($A728,Economática!$A$3:$AI$823,20,FALSE)/E728)","v":""},"","","",{"$f":"IF($A728=\"\",\"\",IF(OR(VLOOKUP($A728,Economática!$A$3:$AI$823,21,FALSE)/100=0,VLOOKUP($A728,Economática!$A$3:$AI$823,21,FALSE)/100=\"-\"),1/0,VLOOKUP($A728,Economática!$A$3:$AI$823,21,FALSE)/100))","v":""},{"$f":"IF($A728=\"\",\"\",IF(OR(VLOOKUP($A728,Economática!$A$3:$AI$823,22,FALSE)/100=0,VLOOKUP($A728,Economática!$A$3:$AI$823,22,FALSE)/100=\"-\"),1/0,VLOOKUP($A728,Economática!$A$3:$AI$823,22,FALSE)/100))","v":""},{"$f":"IF($A728=\"\",\"\",IF(OR(VLOOKUP($A728,Economática!$A$3:$AI$823,23,FALSE)=0,VLOOKUP($A728,Economática!$A$3:$AI$823,23,FALSE)=\"-\"),1/0,VLOOKUP($A728,Economática!$A$3:$AI$823,23,FALSE)))","v":""},{"$f":"IF($A728=\"\",\"\",IF(OR(VLOOKUP($A728,Economática!$A$3:$AI$823,24,FALSE)=0,VLOOKUP($A728,Economática!$A$3:$AI$823,24,FALSE)=\"-\"),1/0,VLOOKUP($A728,Economática!$A$3:$AI$823,24,FALSE)))","v":""},{"$f":"IF($A728=\"\",\"\",IF(OR(VLOOKUP($A728,Economática!$A$3:$AI$823,25,FALSE)=0,VLOOKUP($A728,Economática!$A$3:$AI$823,25,FALSE)=\"-\"),1/0,VLOOKUP($A728,Economática!$A$3:$AI$823,25,FALSE)))","v":""},{"$f":"IF($A728=\"\",\"\",IF(ISERROR((F728+VLOOKUP($A728,Economática!$A$3:$AI$823,26,FALSE))/Y728),(F728+VLOOKUP($A728,Economática!$A$3:$AI$823,26,FALSE))/Y728,(F728+VLOOKUP($A728,Economática!$A$3:$AI$823,26,FALSE))/Y728))","v":""},{"$f":"IF($A728=\"\",\"\",IF(OR(-VLOOKUP($A728,Economática!$A$3:$AI$823,27,FALSE)=0,-VLOOKUP($A728,Economática!$A$3:$AI$823,27,FALSE)=\"-\"),1/0,-VLOOKUP($A728,Economática!$A$3:$AI$823,27,FALSE)))","v":""},"",{"$f":"IF($A728=\"\",\"\",IF(OR(VLOOKUP($A728,Economática!$A$3:$AI$823,28,FALSE)=0,VLOOKUP($A728,Economática!$A$3:$AI$823,28,FALSE)=\"-\"),1/0,VLOOKUP($A728,Economática!$A$3:$AI$823,28,FALSE)))","v":""},{"$f":"IF($A728=\"\",\"\",IF(OR(VLOOKUP($A728,Economática!$A$3:$AI$823,29,FALSE)=0,VLOOKUP($A728,Economática!$A$3:$AI$823,29,FALSE)=\"-\"),1/0,VLOOKUP($A728,Economática!$A$3:$AI$823,29,FALSE)))","v":""},{"$f":"IF($A728=\"\",\"\",IF(OR(VLOOKUP($A728,Economática!$A$3:$AI$823,30,FALSE)/E728=0,VLOOKUP($A728,Economática!$A$3:$AI$823,30,FALSE)/E728=\"-\",VLOOKUP($A728,Economática!$A$3:$AI$823,30,FALSE)/E728<33.33%,VLOOKUP($A728,Economática!$A$3:$AI$823,30,FALSE)/E728>100%),1/0,VLOOKUP($A728,Economática!$A$3:$AI$823,30,FALSE)/E728))","v":""},"",{"$f":"IF($A728=\"\",\"\",IF(OR(VLOOKUP($A728,Economática!$A$3:$AI$823,25,FALSE)=0,VLOOKUP($A728,Economática!$A$3:$AI$823,25,FALSE)=\"-\"),1/0,VLOOKUP($A728,Economática!$A$3:$AI$823,25,FALSE)))","v":""},{"$f":"CONCATENATE(Economática!B706,\" \",Economática!C706)","v":" "}]
[{"$f":"IF(Economática!AG707=\"\",\"\",Economática!AG707)","v":""},{"$f":"IF($A729=\"\",\"\",VLOOKUP(VLOOKUP($A729,Economática!$A$3:$AI$823,6,FALSE),Correção!$B$16:$C$36,2,FALSE))","v":""},{"$f":"IF(Economática!B707=\"\",\"\",Economática!B707)","v":""},{"$f":"IF($A729=\"\",\"\",IF(OR(VLOOKUP($A729,Economática!$A$3:$AI$823,8,FALSE)=0,VLOOKUP($A729,Economática!$A$3:$AI$823,8,FALSE)=\"-\"),1/0,VLOOKUP($A729,Economática!$A$3:$AI$823,8,FALSE)))","v":""},{"$f":"IF(A729=\"\",\"\",IF(ISERROR(VLOOKUP(A729,Correção!$B$2:$G$13,9,FALSE)),VLOOKUP($A729,Economática!$A$3:$AI$823,9,FALSE),VLOOKUP(A729,Correção!$B$2:$G$13,9,FALSE)))","v":""},{"$f":"IF($A729=\"\",\"\",Economática!G707)","v":""},{"$f":"IF($A729=\"\",\"\",IF(OR(VLOOKUP($A729,Economática!$A$3:$AI$823,10,FALSE)=0,VLOOKUP($A729,Economática!$A$3:$AI$823,10,FALSE)=\"-\"),1/0,VLOOKUP($A729,Economática!$A$3:$AI$823,10,FALSE)))","v":""},{"$f":"IF($A729=\"\",\"\",IF(OR(VLOOKUP($A729,Economática!$A$3:$AI$823,11,FALSE)=0,VLOOKUP($A729,Economática!$A$3:$AI$823,11,FALSE)=\"-\"),1/0,VLOOKUP($A729,Economática!$A$3:$AI$823,11,FALSE)))","v":""},{"$f":"IF($A729=\"\",\"\",IF(OR(VLOOKUP($A729,Economática!$A$3:$AI$823,12,FALSE)=0,VLOOKUP($A729,Economática!$A$3:$AI$823,12,FALSE)=\"-\"),1/0,VLOOKUP($A729,Economática!$A$3:$AI$823,12,FALSE)))","v":""},{"$f":"IF($A729=\"\",\"\",IF(OR(VLOOKUP($A729,Economática!$A$3:$AI$823,13,FALSE)=0,VLOOKUP($A729,Economática!$A$3:$AI$823,13,FALSE)=\"-\"),1/0,VLOOKUP($A729,Economática!$A$3:$AI$823,13,FALSE)))","v":""},{"$f":"IF($A729=\"\",\"\",IF(OR(VLOOKUP($A729,Economática!$A$3:$AI$823,14,FALSE)=0,VLOOKUP($A729,Economática!$A$3:$AI$823,14,FALSE)=\"-\"),1/0,VLOOKUP($A729,Economática!$A$3:$AI$823,14,FALSE)))","v":""},{"$f":"IF($A729=\"\",\"\",IF(OR(VLOOKUP($A729,Economática!$A$3:$AI$823,15,FALSE)=0,VLOOKUP($A729,Economática!$A$3:$AI$823,15,FALSE)=\"-\"),1/0,VLOOKUP($A729,Economática!$A$3:$AI$823,15,FALSE)))","v":""},{"$f":"IF($A729=\"\",\"\",IF(OR(VLOOKUP($A729,Economática!$A$3:$AI$823,16,FALSE)=0,VLOOKUP($A729,Economática!$A$3:$AI$823,16,FALSE)=\"-\"),1/0,VLOOKUP($A729,Economática!$A$3:$AI$823,16,FALSE)))","v":""},{"$f":"IF($A729=\"\",\"\",IF(OR(VLOOKUP($A729,Economática!$A$3:$AI$823,17,FALSE)=0,VLOOKUP($A729,Economática!$A$3:$AI$823,17,FALSE)=\"-\"),1/0,VLOOKUP($A729,Economática!$A$3:$AI$823,17,FALSE)))","v":""},{"$f":"IF($A729=\"\",\"\",IF(OR(VLOOKUP($A729,Economática!$A$3:$AI$823,18,FALSE)=0,VLOOKUP($A729,Economática!$A$3:$AI$823,18,FALSE)=\"-\"),1/0,VLOOKUP($A729,Economática!$A$3:$AI$823,18,FALSE)))","v":""},{"$f":"IF($A729=\"\",\"\",IF(OR(VLOOKUP($A729,Economática!$A$3:$AI$823,19,FALSE)=0,VLOOKUP($A729,Economática!$A$3:$AI$823,19,FALSE)=\"-\"),1/0,VLOOKUP($A729,Economática!$A$3:$AI$823,19,FALSE)))","v":""},{"$f":"IF($A729=\"\",\"\",VLOOKUP($A729,Economática!$A$3:$AI$823,20,FALSE)/E729)","v":""},"","","",{"$f":"IF($A729=\"\",\"\",IF(OR(VLOOKUP($A729,Economática!$A$3:$AI$823,21,FALSE)/100=0,VLOOKUP($A729,Economática!$A$3:$AI$823,21,FALSE)/100=\"-\"),1/0,VLOOKUP($A729,Economática!$A$3:$AI$823,21,FALSE)/100))","v":""},{"$f":"IF($A729=\"\",\"\",IF(OR(VLOOKUP($A729,Economática!$A$3:$AI$823,22,FALSE)/100=0,VLOOKUP($A729,Economática!$A$3:$AI$823,22,FALSE)/100=\"-\"),1/0,VLOOKUP($A729,Economática!$A$3:$AI$823,22,FALSE)/100))","v":""},{"$f":"IF($A729=\"\",\"\",IF(OR(VLOOKUP($A729,Economática!$A$3:$AI$823,23,FALSE)=0,VLOOKUP($A729,Economática!$A$3:$AI$823,23,FALSE)=\"-\"),1/0,VLOOKUP($A729,Economática!$A$3:$AI$823,23,FALSE)))","v":""},{"$f":"IF($A729=\"\",\"\",IF(OR(VLOOKUP($A729,Economática!$A$3:$AI$823,24,FALSE)=0,VLOOKUP($A729,Economática!$A$3:$AI$823,24,FALSE)=\"-\"),1/0,VLOOKUP($A729,Economática!$A$3:$AI$823,24,FALSE)))","v":""},{"$f":"IF($A729=\"\",\"\",IF(OR(VLOOKUP($A729,Economática!$A$3:$AI$823,25,FALSE)=0,VLOOKUP($A729,Economática!$A$3:$AI$823,25,FALSE)=\"-\"),1/0,VLOOKUP($A729,Economática!$A$3:$AI$823,25,FALSE)))","v":""},{"$f":"IF($A729=\"\",\"\",IF(ISERROR((F729+VLOOKUP($A729,Economática!$A$3:$AI$823,26,FALSE))/Y729),(F729+VLOOKUP($A729,Economática!$A$3:$AI$823,26,FALSE))/Y729,(F729+VLOOKUP($A729,Economática!$A$3:$AI$823,26,FALSE))/Y729))","v":""},{"$f":"IF($A729=\"\",\"\",IF(OR(-VLOOKUP($A729,Economática!$A$3:$AI$823,27,FALSE)=0,-VLOOKUP($A729,Economática!$A$3:$AI$823,27,FALSE)=\"-\"),1/0,-VLOOKUP($A729,Economática!$A$3:$AI$823,27,FALSE)))","v":""},"",{"$f":"IF($A729=\"\",\"\",IF(OR(VLOOKUP($A729,Economática!$A$3:$AI$823,28,FALSE)=0,VLOOKUP($A729,Economática!$A$3:$AI$823,28,FALSE)=\"-\"),1/0,VLOOKUP($A729,Economática!$A$3:$AI$823,28,FALSE)))","v":""},{"$f":"IF($A729=\"\",\"\",IF(OR(VLOOKUP($A729,Economática!$A$3:$AI$823,29,FALSE)=0,VLOOKUP($A729,Economática!$A$3:$AI$823,29,FALSE)=\"-\"),1/0,VLOOKUP($A729,Economática!$A$3:$AI$823,29,FALSE)))","v":""},{"$f":"IF($A729=\"\",\"\",IF(OR(VLOOKUP($A729,Economática!$A$3:$AI$823,30,FALSE)/E729=0,VLOOKUP($A729,Economática!$A$3:$AI$823,30,FALSE)/E729=\"-\",VLOOKUP($A729,Economática!$A$3:$AI$823,30,FALSE)/E729<33.33%,VLOOKUP($A729,Economática!$A$3:$AI$823,30,FALSE)/E729>100%),1/0,VLOOKUP($A729,Economática!$A$3:$AI$823,30,FALSE)/E729))","v":""},"",{"$f":"IF($A729=\"\",\"\",IF(OR(VLOOKUP($A729,Economática!$A$3:$AI$823,25,FALSE)=0,VLOOKUP($A729,Economática!$A$3:$AI$823,25,FALSE)=\"-\"),1/0,VLOOKUP($A729,Economática!$A$3:$AI$823,25,FALSE)))","v":""},{"$f":"CONCATENATE(Economática!B707,\" \",Economática!C707)","v":" "}]
[{"$f":"IF(Economática!AG708=\"\",\"\",Economática!AG708)","v":""},{"$f":"IF($A730=\"\",\"\",VLOOKUP(VLOOKUP($A730,Economática!$A$3:$AI$823,6,FALSE),Correção!$B$16:$C$36,2,FALSE))","v":""},{"$f":"IF(Economática!B708=\"\",\"\",Economática!B708)","v":""},{"$f":"IF($A730=\"\",\"\",IF(OR(VLOOKUP($A730,Economática!$A$3:$AI$823,8,FALSE)=0,VLOOKUP($A730,Economática!$A$3:$AI$823,8,FALSE)=\"-\"),1/0,VLOOKUP($A730,Economática!$A$3:$AI$823,8,FALSE)))","v":""},{"$f":"IF(A730=\"\",\"\",IF(ISERROR(VLOOKUP(A730,Correção!$B$2:$G$13,9,FALSE)),VLOOKUP($A730,Economática!$A$3:$AI$823,9,FALSE),VLOOKUP(A730,Correção!$B$2:$G$13,9,FALSE)))","v":""},{"$f":"IF($A730=\"\",\"\",Economática!G708)","v":""},{"$f":"IF($A730=\"\",\"\",IF(OR(VLOOKUP($A730,Economática!$A$3:$AI$823,10,FALSE)=0,VLOOKUP($A730,Economática!$A$3:$AI$823,10,FALSE)=\"-\"),1/0,VLOOKUP($A730,Economática!$A$3:$AI$823,10,FALSE)))","v":""},{"$f":"IF($A730=\"\",\"\",IF(OR(VLOOKUP($A730,Economática!$A$3:$AI$823,11,FALSE)=0,VLOOKUP($A730,Economática!$A$3:$AI$823,11,FALSE)=\"-\"),1/0,VLOOKUP($A730,Economática!$A$3:$AI$823,11,FALSE)))","v":""},{"$f":"IF($A730=\"\",\"\",IF(OR(VLOOKUP($A730,Economática!$A$3:$AI$823,12,FALSE)=0,VLOOKUP($A730,Economática!$A$3:$AI$823,12,FALSE)=\"-\"),1/0,VLOOKUP($A730,Economática!$A$3:$AI$823,12,FALSE)))","v":""},{"$f":"IF($A730=\"\",\"\",IF(OR(VLOOKUP($A730,Economática!$A$3:$AI$823,13,FALSE)=0,VLOOKUP($A730,Economática!$A$3:$AI$823,13,FALSE)=\"-\"),1/0,VLOOKUP($A730,Economática!$A$3:$AI$823,13,FALSE)))","v":""},{"$f":"IF($A730=\"\",\"\",IF(OR(VLOOKUP($A730,Economática!$A$3:$AI$823,14,FALSE)=0,VLOOKUP($A730,Economática!$A$3:$AI$823,14,FALSE)=\"-\"),1/0,VLOOKUP($A730,Economática!$A$3:$AI$823,14,FALSE)))","v":""},{"$f":"IF($A730=\"\",\"\",IF(OR(VLOOKUP($A730,Economática!$A$3:$AI$823,15,FALSE)=0,VLOOKUP($A730,Economática!$A$3:$AI$823,15,FALSE)=\"-\"),1/0,VLOOKUP($A730,Economática!$A$3:$AI$823,15,FALSE)))","v":""},{"$f":"IF($A730=\"\",\"\",IF(OR(VLOOKUP($A730,Economática!$A$3:$AI$823,16,FALSE)=0,VLOOKUP($A730,Economática!$A$3:$AI$823,16,FALSE)=\"-\"),1/0,VLOOKUP($A730,Economática!$A$3:$AI$823,16,FALSE)))","v":""},{"$f":"IF($A730=\"\",\"\",IF(OR(VLOOKUP($A730,Economática!$A$3:$AI$823,17,FALSE)=0,VLOOKUP($A730,Economática!$A$3:$AI$823,17,FALSE)=\"-\"),1/0,VLOOKUP($A730,Economática!$A$3:$AI$823,17,FALSE)))","v":""},{"$f":"IF($A730=\"\",\"\",IF(OR(VLOOKUP($A730,Economática!$A$3:$AI$823,18,FALSE)=0,VLOOKUP($A730,Economática!$A$3:$AI$823,18,FALSE)=\"-\"),1/0,VLOOKUP($A730,Economática!$A$3:$AI$823,18,FALSE)))","v":""},{"$f":"IF($A730=\"\",\"\",IF(OR(VLOOKUP($A730,Economática!$A$3:$AI$823,19,FALSE)=0,VLOOKUP($A730,Economática!$A$3:$AI$823,19,FALSE)=\"-\"),1/0,VLOOKUP($A730,Economática!$A$3:$AI$823,19,FALSE)))","v":""},{"$f":"IF($A730=\"\",\"\",VLOOKUP($A730,Economática!$A$3:$AI$823,20,FALSE)/E730)","v":""},"","","",{"$f":"IF($A730=\"\",\"\",IF(OR(VLOOKUP($A730,Economática!$A$3:$AI$823,21,FALSE)/100=0,VLOOKUP($A730,Economática!$A$3:$AI$823,21,FALSE)/100=\"-\"),1/0,VLOOKUP($A730,Economática!$A$3:$AI$823,21,FALSE)/100))","v":""},{"$f":"IF($A730=\"\",\"\",IF(OR(VLOOKUP($A730,Economática!$A$3:$AI$823,22,FALSE)/100=0,VLOOKUP($A730,Economática!$A$3:$AI$823,22,FALSE)/100=\"-\"),1/0,VLOOKUP($A730,Economática!$A$3:$AI$823,22,FALSE)/100))","v":""},{"$f":"IF($A730=\"\",\"\",IF(OR(VLOOKUP($A730,Economática!$A$3:$AI$823,23,FALSE)=0,VLOOKUP($A730,Economática!$A$3:$AI$823,23,FALSE)=\"-\"),1/0,VLOOKUP($A730,Economática!$A$3:$AI$823,23,FALSE)))","v":""},{"$f":"IF($A730=\"\",\"\",IF(OR(VLOOKUP($A730,Economática!$A$3:$AI$823,24,FALSE)=0,VLOOKUP($A730,Economática!$A$3:$AI$823,24,FALSE)=\"-\"),1/0,VLOOKUP($A730,Economática!$A$3:$AI$823,24,FALSE)))","v":""},{"$f":"IF($A730=\"\",\"\",IF(OR(VLOOKUP($A730,Economática!$A$3:$AI$823,25,FALSE)=0,VLOOKUP($A730,Economática!$A$3:$AI$823,25,FALSE)=\"-\"),1/0,VLOOKUP($A730,Economática!$A$3:$AI$823,25,FALSE)))","v":""},{"$f":"IF($A730=\"\",\"\",IF(ISERROR((F730+VLOOKUP($A730,Economática!$A$3:$AI$823,26,FALSE))/Y730),(F730+VLOOKUP($A730,Economática!$A$3:$AI$823,26,FALSE))/Y730,(F730+VLOOKUP($A730,Economática!$A$3:$AI$823,26,FALSE))/Y730))","v":""},{"$f":"IF($A730=\"\",\"\",IF(OR(-VLOOKUP($A730,Economática!$A$3:$AI$823,27,FALSE)=0,-VLOOKUP($A730,Economática!$A$3:$AI$823,27,FALSE)=\"-\"),1/0,-VLOOKUP($A730,Economática!$A$3:$AI$823,27,FALSE)))","v":""},"",{"$f":"IF($A730=\"\",\"\",IF(OR(VLOOKUP($A730,Economática!$A$3:$AI$823,28,FALSE)=0,VLOOKUP($A730,Economática!$A$3:$AI$823,28,FALSE)=\"-\"),1/0,VLOOKUP($A730,Economática!$A$3:$AI$823,28,FALSE)))","v":""},{"$f":"IF($A730=\"\",\"\",IF(OR(VLOOKUP($A730,Economática!$A$3:$AI$823,29,FALSE)=0,VLOOKUP($A730,Economática!$A$3:$AI$823,29,FALSE)=\"-\"),1/0,VLOOKUP($A730,Economática!$A$3:$AI$823,29,FALSE)))","v":""},{"$f":"IF($A730=\"\",\"\",IF(OR(VLOOKUP($A730,Economática!$A$3:$AI$823,30,FALSE)/E730=0,VLOOKUP($A730,Economática!$A$3:$AI$823,30,FALSE)/E730=\"-\",VLOOKUP($A730,Economática!$A$3:$AI$823,30,FALSE)/E730<33.33%,VLOOKUP($A730,Economática!$A$3:$AI$823,30,FALSE)/E730>100%),1/0,VLOOKUP($A730,Economática!$A$3:$AI$823,30,FALSE)/E730))","v":""},"",{"$f":"IF($A730=\"\",\"\",IF(OR(VLOOKUP($A730,Economática!$A$3:$AI$823,25,FALSE)=0,VLOOKUP($A730,Economática!$A$3:$AI$823,25,FALSE)=\"-\"),1/0,VLOOKUP($A730,Economática!$A$3:$AI$823,25,FALSE)))","v":""},{"$f":"CONCATENATE(Economática!B708,\" \",Economática!C708)","v":" "}]
[{"$f":"IF(Economática!AG709=\"\",\"\",Economática!AG709)","v":""},{"$f":"IF($A731=\"\",\"\",VLOOKUP(VLOOKUP($A731,Economática!$A$3:$AI$823,6,FALSE),Correção!$B$16:$C$36,2,FALSE))","v":""},{"$f":"IF(Economática!B709=\"\",\"\",Economática!B709)","v":""},{"$f":"IF($A731=\"\",\"\",IF(OR(VLOOKUP($A731,Economática!$A$3:$AI$823,8,FALSE)=0,VLOOKUP($A731,Economática!$A$3:$AI$823,8,FALSE)=\"-\"),1/0,VLOOKUP($A731,Economática!$A$3:$AI$823,8,FALSE)))","v":""},{"$f":"IF(A731=\"\",\"\",IF(ISERROR(VLOOKUP(A731,Correção!$B$2:$G$13,9,FALSE)),VLOOKUP($A731,Economática!$A$3:$AI$823,9,FALSE),VLOOKUP(A731,Correção!$B$2:$G$13,9,FALSE)))","v":""},{"$f":"IF($A731=\"\",\"\",Economática!G709)","v":""},{"$f":"IF($A731=\"\",\"\",IF(OR(VLOOKUP($A731,Economática!$A$3:$AI$823,10,FALSE)=0,VLOOKUP($A731,Economática!$A$3:$AI$823,10,FALSE)=\"-\"),1/0,VLOOKUP($A731,Economática!$A$3:$AI$823,10,FALSE)))","v":""},{"$f":"IF($A731=\"\",\"\",IF(OR(VLOOKUP($A731,Economática!$A$3:$AI$823,11,FALSE)=0,VLOOKUP($A731,Economática!$A$3:$AI$823,11,FALSE)=\"-\"),1/0,VLOOKUP($A731,Economática!$A$3:$AI$823,11,FALSE)))","v":""},{"$f":"IF($A731=\"\",\"\",IF(OR(VLOOKUP($A731,Economática!$A$3:$AI$823,12,FALSE)=0,VLOOKUP($A731,Economática!$A$3:$AI$823,12,FALSE)=\"-\"),1/0,VLOOKUP($A731,Economática!$A$3:$AI$823,12,FALSE)))","v":""},{"$f":"IF($A731=\"\",\"\",IF(OR(VLOOKUP($A731,Economática!$A$3:$AI$823,13,FALSE)=0,VLOOKUP($A731,Economática!$A$3:$AI$823,13,FALSE)=\"-\"),1/0,VLOOKUP($A731,Economática!$A$3:$AI$823,13,FALSE)))","v":""},{"$f":"IF($A731=\"\",\"\",IF(OR(VLOOKUP($A731,Economática!$A$3:$AI$823,14,FALSE)=0,VLOOKUP($A731,Economática!$A$3:$AI$823,14,FALSE)=\"-\"),1/0,VLOOKUP($A731,Economática!$A$3:$AI$823,14,FALSE)))","v":""},{"$f":"IF($A731=\"\",\"\",IF(OR(VLOOKUP($A731,Economática!$A$3:$AI$823,15,FALSE)=0,VLOOKUP($A731,Economática!$A$3:$AI$823,15,FALSE)=\"-\"),1/0,VLOOKUP($A731,Economática!$A$3:$AI$823,15,FALSE)))","v":""},{"$f":"IF($A731=\"\",\"\",IF(OR(VLOOKUP($A731,Economática!$A$3:$AI$823,16,FALSE)=0,VLOOKUP($A731,Economática!$A$3:$AI$823,16,FALSE)=\"-\"),1/0,VLOOKUP($A731,Economática!$A$3:$AI$823,16,FALSE)))","v":""},{"$f":"IF($A731=\"\",\"\",IF(OR(VLOOKUP($A731,Economática!$A$3:$AI$823,17,FALSE)=0,VLOOKUP($A731,Economática!$A$3:$AI$823,17,FALSE)=\"-\"),1/0,VLOOKUP($A731,Economática!$A$3:$AI$823,17,FALSE)))","v":""},{"$f":"IF($A731=\"\",\"\",IF(OR(VLOOKUP($A731,Economática!$A$3:$AI$823,18,FALSE)=0,VLOOKUP($A731,Economática!$A$3:$AI$823,18,FALSE)=\"-\"),1/0,VLOOKUP($A731,Economática!$A$3:$AI$823,18,FALSE)))","v":""},{"$f":"IF($A731=\"\",\"\",IF(OR(VLOOKUP($A731,Economática!$A$3:$AI$823,19,FALSE)=0,VLOOKUP($A731,Economática!$A$3:$AI$823,19,FALSE)=\"-\"),1/0,VLOOKUP($A731,Economática!$A$3:$AI$823,19,FALSE)))","v":""},{"$f":"IF($A731=\"\",\"\",VLOOKUP($A731,Economática!$A$3:$AI$823,20,FALSE)/E731)","v":""},"","","",{"$f":"IF($A731=\"\",\"\",IF(OR(VLOOKUP($A731,Economática!$A$3:$AI$823,21,FALSE)/100=0,VLOOKUP($A731,Economática!$A$3:$AI$823,21,FALSE)/100=\"-\"),1/0,VLOOKUP($A731,Economática!$A$3:$AI$823,21,FALSE)/100))","v":""},{"$f":"IF($A731=\"\",\"\",IF(OR(VLOOKUP($A731,Economática!$A$3:$AI$823,22,FALSE)/100=0,VLOOKUP($A731,Economática!$A$3:$AI$823,22,FALSE)/100=\"-\"),1/0,VLOOKUP($A731,Economática!$A$3:$AI$823,22,FALSE)/100))","v":""},{"$f":"IF($A731=\"\",\"\",IF(OR(VLOOKUP($A731,Economática!$A$3:$AI$823,23,FALSE)=0,VLOOKUP($A731,Economática!$A$3:$AI$823,23,FALSE)=\"-\"),1/0,VLOOKUP($A731,Economática!$A$3:$AI$823,23,FALSE)))","v":""},{"$f":"IF($A731=\"\",\"\",IF(OR(VLOOKUP($A731,Economática!$A$3:$AI$823,24,FALSE)=0,VLOOKUP($A731,Economática!$A$3:$AI$823,24,FALSE)=\"-\"),1/0,VLOOKUP($A731,Economática!$A$3:$AI$823,24,FALSE)))","v":""},{"$f":"IF($A731=\"\",\"\",IF(OR(VLOOKUP($A731,Economática!$A$3:$AI$823,25,FALSE)=0,VLOOKUP($A731,Economática!$A$3:$AI$823,25,FALSE)=\"-\"),1/0,VLOOKUP($A731,Economática!$A$3:$AI$823,25,FALSE)))","v":""},{"$f":"IF($A731=\"\",\"\",IF(ISERROR((F731+VLOOKUP($A731,Economática!$A$3:$AI$823,26,FALSE))/Y731),(F731+VLOOKUP($A731,Economática!$A$3:$AI$823,26,FALSE))/Y731,(F731+VLOOKUP($A731,Economática!$A$3:$AI$823,26,FALSE))/Y731))","v":""},{"$f":"IF($A731=\"\",\"\",IF(OR(-VLOOKUP($A731,Economática!$A$3:$AI$823,27,FALSE)=0,-VLOOKUP($A731,Economática!$A$3:$AI$823,27,FALSE)=\"-\"),1/0,-VLOOKUP($A731,Economática!$A$3:$AI$823,27,FALSE)))","v":""},"",{"$f":"IF($A731=\"\",\"\",IF(OR(VLOOKUP($A731,Economática!$A$3:$AI$823,28,FALSE)=0,VLOOKUP($A731,Economática!$A$3:$AI$823,28,FALSE)=\"-\"),1/0,VLOOKUP($A731,Economática!$A$3:$AI$823,28,FALSE)))","v":""},{"$f":"IF($A731=\"\",\"\",IF(OR(VLOOKUP($A731,Economática!$A$3:$AI$823,29,FALSE)=0,VLOOKUP($A731,Economática!$A$3:$AI$823,29,FALSE)=\"-\"),1/0,VLOOKUP($A731,Economática!$A$3:$AI$823,29,FALSE)))","v":""},{"$f":"IF($A731=\"\",\"\",IF(OR(VLOOKUP($A731,Economática!$A$3:$AI$823,30,FALSE)/E731=0,VLOOKUP($A731,Economática!$A$3:$AI$823,30,FALSE)/E731=\"-\",VLOOKUP($A731,Economática!$A$3:$AI$823,30,FALSE)/E731<33.33%,VLOOKUP($A731,Economática!$A$3:$AI$823,30,FALSE)/E731>100%),1/0,VLOOKUP($A731,Economática!$A$3:$AI$823,30,FALSE)/E731))","v":""},"",{"$f":"IF($A731=\"\",\"\",IF(OR(VLOOKUP($A731,Economática!$A$3:$AI$823,25,FALSE)=0,VLOOKUP($A731,Economática!$A$3:$AI$823,25,FALSE)=\"-\"),1/0,VLOOKUP($A731,Economática!$A$3:$AI$823,25,FALSE)))","v":""},{"$f":"CONCATENATE(Economática!B709,\" \",Economática!C709)","v":" "}]
[{"$f":"IF(Economática!AG710=\"\",\"\",Economática!AG710)","v":""},{"$f":"IF($A732=\"\",\"\",VLOOKUP(VLOOKUP($A732,Economática!$A$3:$AI$823,6,FALSE),Correção!$B$16:$C$36,2,FALSE))","v":""},{"$f":"IF(Economática!B710=\"\",\"\",Economática!B710)","v":""},{"$f":"IF($A732=\"\",\"\",IF(OR(VLOOKUP($A732,Economática!$A$3:$AI$823,8,FALSE)=0,VLOOKUP($A732,Economática!$A$3:$AI$823,8,FALSE)=\"-\"),1/0,VLOOKUP($A732,Economática!$A$3:$AI$823,8,FALSE)))","v":""},{"$f":"IF(A732=\"\",\"\",IF(ISERROR(VLOOKUP(A732,Correção!$B$2:$G$13,9,FALSE)),VLOOKUP($A732,Economática!$A$3:$AI$823,9,FALSE),VLOOKUP(A732,Correção!$B$2:$G$13,9,FALSE)))","v":""},{"$f":"IF($A732=\"\",\"\",Economática!G710)","v":""},{"$f":"IF($A732=\"\",\"\",IF(OR(VLOOKUP($A732,Economática!$A$3:$AI$823,10,FALSE)=0,VLOOKUP($A732,Economática!$A$3:$AI$823,10,FALSE)=\"-\"),1/0,VLOOKUP($A732,Economática!$A$3:$AI$823,10,FALSE)))","v":""},{"$f":"IF($A732=\"\",\"\",IF(OR(VLOOKUP($A732,Economática!$A$3:$AI$823,11,FALSE)=0,VLOOKUP($A732,Economática!$A$3:$AI$823,11,FALSE)=\"-\"),1/0,VLOOKUP($A732,Economática!$A$3:$AI$823,11,FALSE)))","v":""},{"$f":"IF($A732=\"\",\"\",IF(OR(VLOOKUP($A732,Economática!$A$3:$AI$823,12,FALSE)=0,VLOOKUP($A732,Economática!$A$3:$AI$823,12,FALSE)=\"-\"),1/0,VLOOKUP($A732,Economática!$A$3:$AI$823,12,FALSE)))","v":""},{"$f":"IF($A732=\"\",\"\",IF(OR(VLOOKUP($A732,Economática!$A$3:$AI$823,13,FALSE)=0,VLOOKUP($A732,Economática!$A$3:$AI$823,13,FALSE)=\"-\"),1/0,VLOOKUP($A732,Economática!$A$3:$AI$823,13,FALSE)))","v":""},{"$f":"IF($A732=\"\",\"\",IF(OR(VLOOKUP($A732,Economática!$A$3:$AI$823,14,FALSE)=0,VLOOKUP($A732,Economática!$A$3:$AI$823,14,FALSE)=\"-\"),1/0,VLOOKUP($A732,Economática!$A$3:$AI$823,14,FALSE)))","v":""},{"$f":"IF($A732=\"\",\"\",IF(OR(VLOOKUP($A732,Economática!$A$3:$AI$823,15,FALSE)=0,VLOOKUP($A732,Economática!$A$3:$AI$823,15,FALSE)=\"-\"),1/0,VLOOKUP($A732,Economática!$A$3:$AI$823,15,FALSE)))","v":""},{"$f":"IF($A732=\"\",\"\",IF(OR(VLOOKUP($A732,Economática!$A$3:$AI$823,16,FALSE)=0,VLOOKUP($A732,Economática!$A$3:$AI$823,16,FALSE)=\"-\"),1/0,VLOOKUP($A732,Economática!$A$3:$AI$823,16,FALSE)))","v":""},{"$f":"IF($A732=\"\",\"\",IF(OR(VLOOKUP($A732,Economática!$A$3:$AI$823,17,FALSE)=0,VLOOKUP($A732,Economática!$A$3:$AI$823,17,FALSE)=\"-\"),1/0,VLOOKUP($A732,Economática!$A$3:$AI$823,17,FALSE)))","v":""},{"$f":"IF($A732=\"\",\"\",IF(OR(VLOOKUP($A732,Economática!$A$3:$AI$823,18,FALSE)=0,VLOOKUP($A732,Economática!$A$3:$AI$823,18,FALSE)=\"-\"),1/0,VLOOKUP($A732,Economática!$A$3:$AI$823,18,FALSE)))","v":""},{"$f":"IF($A732=\"\",\"\",IF(OR(VLOOKUP($A732,Economática!$A$3:$AI$823,19,FALSE)=0,VLOOKUP($A732,Economática!$A$3:$AI$823,19,FALSE)=\"-\"),1/0,VLOOKUP($A732,Economática!$A$3:$AI$823,19,FALSE)))","v":""},{"$f":"IF($A732=\"\",\"\",VLOOKUP($A732,Economática!$A$3:$AI$823,20,FALSE)/E732)","v":""},"","","",{"$f":"IF($A732=\"\",\"\",IF(OR(VLOOKUP($A732,Economática!$A$3:$AI$823,21,FALSE)/100=0,VLOOKUP($A732,Economática!$A$3:$AI$823,21,FALSE)/100=\"-\"),1/0,VLOOKUP($A732,Economática!$A$3:$AI$823,21,FALSE)/100))","v":""},{"$f":"IF($A732=\"\",\"\",IF(OR(VLOOKUP($A732,Economática!$A$3:$AI$823,22,FALSE)/100=0,VLOOKUP($A732,Economática!$A$3:$AI$823,22,FALSE)/100=\"-\"),1/0,VLOOKUP($A732,Economática!$A$3:$AI$823,22,FALSE)/100))","v":""},{"$f":"IF($A732=\"\",\"\",IF(OR(VLOOKUP($A732,Economática!$A$3:$AI$823,23,FALSE)=0,VLOOKUP($A732,Economática!$A$3:$AI$823,23,FALSE)=\"-\"),1/0,VLOOKUP($A732,Economática!$A$3:$AI$823,23,FALSE)))","v":""},{"$f":"IF($A732=\"\",\"\",IF(OR(VLOOKUP($A732,Economática!$A$3:$AI$823,24,FALSE)=0,VLOOKUP($A732,Economática!$A$3:$AI$823,24,FALSE)=\"-\"),1/0,VLOOKUP($A732,Economática!$A$3:$AI$823,24,FALSE)))","v":""},{"$f":"IF($A732=\"\",\"\",IF(OR(VLOOKUP($A732,Economática!$A$3:$AI$823,25,FALSE)=0,VLOOKUP($A732,Economática!$A$3:$AI$823,25,FALSE)=\"-\"),1/0,VLOOKUP($A732,Economática!$A$3:$AI$823,25,FALSE)))","v":""},{"$f":"IF($A732=\"\",\"\",IF(ISERROR((F732+VLOOKUP($A732,Economática!$A$3:$AI$823,26,FALSE))/Y732),(F732+VLOOKUP($A732,Economática!$A$3:$AI$823,26,FALSE))/Y732,(F732+VLOOKUP($A732,Economática!$A$3:$AI$823,26,FALSE))/Y732))","v":""},{"$f":"IF($A732=\"\",\"\",IF(OR(-VLOOKUP($A732,Economática!$A$3:$AI$823,27,FALSE)=0,-VLOOKUP($A732,Economática!$A$3:$AI$823,27,FALSE)=\"-\"),1/0,-VLOOKUP($A732,Economática!$A$3:$AI$823,27,FALSE)))","v":""},"",{"$f":"IF($A732=\"\",\"\",IF(OR(VLOOKUP($A732,Economática!$A$3:$AI$823,28,FALSE)=0,VLOOKUP($A732,Economática!$A$3:$AI$823,28,FALSE)=\"-\"),1/0,VLOOKUP($A732,Economática!$A$3:$AI$823,28,FALSE)))","v":""},{"$f":"IF($A732=\"\",\"\",IF(OR(VLOOKUP($A732,Economática!$A$3:$AI$823,29,FALSE)=0,VLOOKUP($A732,Economática!$A$3:$AI$823,29,FALSE)=\"-\"),1/0,VLOOKUP($A732,Economática!$A$3:$AI$823,29,FALSE)))","v":""},{"$f":"IF($A732=\"\",\"\",IF(OR(VLOOKUP($A732,Economática!$A$3:$AI$823,30,FALSE)/E732=0,VLOOKUP($A732,Economática!$A$3:$AI$823,30,FALSE)/E732=\"-\",VLOOKUP($A732,Economática!$A$3:$AI$823,30,FALSE)/E732<33.33%,VLOOKUP($A732,Economática!$A$3:$AI$823,30,FALSE)/E732>100%),1/0,VLOOKUP($A732,Economática!$A$3:$AI$823,30,FALSE)/E732))","v":""},"",{"$f":"IF($A732=\"\",\"\",IF(OR(VLOOKUP($A732,Economática!$A$3:$AI$823,25,FALSE)=0,VLOOKUP($A732,Economática!$A$3:$AI$823,25,FALSE)=\"-\"),1/0,VLOOKUP($A732,Economática!$A$3:$AI$823,25,FALSE)))","v":""},{"$f":"CONCATENATE(Economática!B710,\" \",Economática!C710)","v":" "}]
[{"$f":"IF(Economática!AG711=\"\",\"\",Economática!AG711)","v":""},{"$f":"IF($A733=\"\",\"\",VLOOKUP(VLOOKUP($A733,Economática!$A$3:$AI$823,6,FALSE),Correção!$B$16:$C$36,2,FALSE))","v":""},{"$f":"IF(Economática!B711=\"\",\"\",Economática!B711)","v":""},{"$f":"IF($A733=\"\",\"\",IF(OR(VLOOKUP($A733,Economática!$A$3:$AI$823,8,FALSE)=0,VLOOKUP($A733,Economática!$A$3:$AI$823,8,FALSE)=\"-\"),1/0,VLOOKUP($A733,Economática!$A$3:$AI$823,8,FALSE)))","v":""},{"$f":"IF(A733=\"\",\"\",IF(ISERROR(VLOOKUP(A733,Correção!$B$2:$G$13,9,FALSE)),VLOOKUP($A733,Economática!$A$3:$AI$823,9,FALSE),VLOOKUP(A733,Correção!$B$2:$G$13,9,FALSE)))","v":""},{"$f":"IF($A733=\"\",\"\",Economática!G711)","v":""},{"$f":"IF($A733=\"\",\"\",IF(OR(VLOOKUP($A733,Economática!$A$3:$AI$823,10,FALSE)=0,VLOOKUP($A733,Economática!$A$3:$AI$823,10,FALSE)=\"-\"),1/0,VLOOKUP($A733,Economática!$A$3:$AI$823,10,FALSE)))","v":""},{"$f":"IF($A733=\"\",\"\",IF(OR(VLOOKUP($A733,Economática!$A$3:$AI$823,11,FALSE)=0,VLOOKUP($A733,Economática!$A$3:$AI$823,11,FALSE)=\"-\"),1/0,VLOOKUP($A733,Economática!$A$3:$AI$823,11,FALSE)))","v":""},{"$f":"IF($A733=\"\",\"\",IF(OR(VLOOKUP($A733,Economática!$A$3:$AI$823,12,FALSE)=0,VLOOKUP($A733,Economática!$A$3:$AI$823,12,FALSE)=\"-\"),1/0,VLOOKUP($A733,Economática!$A$3:$AI$823,12,FALSE)))","v":""},{"$f":"IF($A733=\"\",\"\",IF(OR(VLOOKUP($A733,Economática!$A$3:$AI$823,13,FALSE)=0,VLOOKUP($A733,Economática!$A$3:$AI$823,13,FALSE)=\"-\"),1/0,VLOOKUP($A733,Economática!$A$3:$AI$823,13,FALSE)))","v":""},{"$f":"IF($A733=\"\",\"\",IF(OR(VLOOKUP($A733,Economática!$A$3:$AI$823,14,FALSE)=0,VLOOKUP($A733,Economática!$A$3:$AI$823,14,FALSE)=\"-\"),1/0,VLOOKUP($A733,Economática!$A$3:$AI$823,14,FALSE)))","v":""},{"$f":"IF($A733=\"\",\"\",IF(OR(VLOOKUP($A733,Economática!$A$3:$AI$823,15,FALSE)=0,VLOOKUP($A733,Economática!$A$3:$AI$823,15,FALSE)=\"-\"),1/0,VLOOKUP($A733,Economática!$A$3:$AI$823,15,FALSE)))","v":""},{"$f":"IF($A733=\"\",\"\",IF(OR(VLOOKUP($A733,Economática!$A$3:$AI$823,16,FALSE)=0,VLOOKUP($A733,Economática!$A$3:$AI$823,16,FALSE)=\"-\"),1/0,VLOOKUP($A733,Economática!$A$3:$AI$823,16,FALSE)))","v":""},{"$f":"IF($A733=\"\",\"\",IF(OR(VLOOKUP($A733,Economática!$A$3:$AI$823,17,FALSE)=0,VLOOKUP($A733,Economática!$A$3:$AI$823,17,FALSE)=\"-\"),1/0,VLOOKUP($A733,Economática!$A$3:$AI$823,17,FALSE)))","v":""},{"$f":"IF($A733=\"\",\"\",IF(OR(VLOOKUP($A733,Economática!$A$3:$AI$823,18,FALSE)=0,VLOOKUP($A733,Economática!$A$3:$AI$823,18,FALSE)=\"-\"),1/0,VLOOKUP($A733,Economática!$A$3:$AI$823,18,FALSE)))","v":""},{"$f":"IF($A733=\"\",\"\",IF(OR(VLOOKUP($A733,Economática!$A$3:$AI$823,19,FALSE)=0,VLOOKUP($A733,Economática!$A$3:$AI$823,19,FALSE)=\"-\"),1/0,VLOOKUP($A733,Economática!$A$3:$AI$823,19,FALSE)))","v":""},{"$f":"IF($A733=\"\",\"\",VLOOKUP($A733,Economática!$A$3:$AI$823,20,FALSE)/E733)","v":""},"","","",{"$f":"IF($A733=\"\",\"\",IF(OR(VLOOKUP($A733,Economática!$A$3:$AI$823,21,FALSE)/100=0,VLOOKUP($A733,Economática!$A$3:$AI$823,21,FALSE)/100=\"-\"),1/0,VLOOKUP($A733,Economática!$A$3:$AI$823,21,FALSE)/100))","v":""},{"$f":"IF($A733=\"\",\"\",IF(OR(VLOOKUP($A733,Economática!$A$3:$AI$823,22,FALSE)/100=0,VLOOKUP($A733,Economática!$A$3:$AI$823,22,FALSE)/100=\"-\"),1/0,VLOOKUP($A733,Economática!$A$3:$AI$823,22,FALSE)/100))","v":""},{"$f":"IF($A733=\"\",\"\",IF(OR(VLOOKUP($A733,Economática!$A$3:$AI$823,23,FALSE)=0,VLOOKUP($A733,Economática!$A$3:$AI$823,23,FALSE)=\"-\"),1/0,VLOOKUP($A733,Economática!$A$3:$AI$823,23,FALSE)))","v":""},{"$f":"IF($A733=\"\",\"\",IF(OR(VLOOKUP($A733,Economática!$A$3:$AI$823,24,FALSE)=0,VLOOKUP($A733,Economática!$A$3:$AI$823,24,FALSE)=\"-\"),1/0,VLOOKUP($A733,Economática!$A$3:$AI$823,24,FALSE)))","v":""},{"$f":"IF($A733=\"\",\"\",IF(OR(VLOOKUP($A733,Economática!$A$3:$AI$823,25,FALSE)=0,VLOOKUP($A733,Economática!$A$3:$AI$823,25,FALSE)=\"-\"),1/0,VLOOKUP($A733,Economática!$A$3:$AI$823,25,FALSE)))","v":""},{"$f":"IF($A733=\"\",\"\",IF(ISERROR((F733+VLOOKUP($A733,Economática!$A$3:$AI$823,26,FALSE))/Y733),(F733+VLOOKUP($A733,Economática!$A$3:$AI$823,26,FALSE))/Y733,(F733+VLOOKUP($A733,Economática!$A$3:$AI$823,26,FALSE))/Y733))","v":""},{"$f":"IF($A733=\"\",\"\",IF(OR(-VLOOKUP($A733,Economática!$A$3:$AI$823,27,FALSE)=0,-VLOOKUP($A733,Economática!$A$3:$AI$823,27,FALSE)=\"-\"),1/0,-VLOOKUP($A733,Economática!$A$3:$AI$823,27,FALSE)))","v":""},"",{"$f":"IF($A733=\"\",\"\",IF(OR(VLOOKUP($A733,Economática!$A$3:$AI$823,28,FALSE)=0,VLOOKUP($A733,Economática!$A$3:$AI$823,28,FALSE)=\"-\"),1/0,VLOOKUP($A733,Economática!$A$3:$AI$823,28,FALSE)))","v":""},{"$f":"IF($A733=\"\",\"\",IF(OR(VLOOKUP($A733,Economática!$A$3:$AI$823,29,FALSE)=0,VLOOKUP($A733,Economática!$A$3:$AI$823,29,FALSE)=\"-\"),1/0,VLOOKUP($A733,Economática!$A$3:$AI$823,29,FALSE)))","v":""},{"$f":"IF($A733=\"\",\"\",IF(OR(VLOOKUP($A733,Economática!$A$3:$AI$823,30,FALSE)/E733=0,VLOOKUP($A733,Economática!$A$3:$AI$823,30,FALSE)/E733=\"-\",VLOOKUP($A733,Economática!$A$3:$AI$823,30,FALSE)/E733<33.33%,VLOOKUP($A733,Economática!$A$3:$AI$823,30,FALSE)/E733>100%),1/0,VLOOKUP($A733,Economática!$A$3:$AI$823,30,FALSE)/E733))","v":""},"",{"$f":"IF($A733=\"\",\"\",IF(OR(VLOOKUP($A733,Economática!$A$3:$AI$823,25,FALSE)=0,VLOOKUP($A733,Economática!$A$3:$AI$823,25,FALSE)=\"-\"),1/0,VLOOKUP($A733,Economática!$A$3:$AI$823,25,FALSE)))","v":""},{"$f":"CONCATENATE(Economática!B711,\" \",Economática!C711)","v":" "}]
[{"$f":"IF(Economática!AG712=\"\",\"\",Economática!AG712)","v":""},{"$f":"IF($A734=\"\",\"\",VLOOKUP(VLOOKUP($A734,Economática!$A$3:$AI$823,6,FALSE),Correção!$B$16:$C$36,2,FALSE))","v":""},{"$f":"IF(Economática!B712=\"\",\"\",Economática!B712)","v":""},{"$f":"IF($A734=\"\",\"\",IF(OR(VLOOKUP($A734,Economática!$A$3:$AI$823,8,FALSE)=0,VLOOKUP($A734,Economática!$A$3:$AI$823,8,FALSE)=\"-\"),1/0,VLOOKUP($A734,Economática!$A$3:$AI$823,8,FALSE)))","v":""},{"$f":"IF(A734=\"\",\"\",IF(ISERROR(VLOOKUP(A734,Correção!$B$2:$G$13,9,FALSE)),VLOOKUP($A734,Economática!$A$3:$AI$823,9,FALSE),VLOOKUP(A734,Correção!$B$2:$G$13,9,FALSE)))","v":""},{"$f":"IF($A734=\"\",\"\",Economática!G712)","v":""},{"$f":"IF($A734=\"\",\"\",IF(OR(VLOOKUP($A734,Economática!$A$3:$AI$823,10,FALSE)=0,VLOOKUP($A734,Economática!$A$3:$AI$823,10,FALSE)=\"-\"),1/0,VLOOKUP($A734,Economática!$A$3:$AI$823,10,FALSE)))","v":""},{"$f":"IF($A734=\"\",\"\",IF(OR(VLOOKUP($A734,Economática!$A$3:$AI$823,11,FALSE)=0,VLOOKUP($A734,Economática!$A$3:$AI$823,11,FALSE)=\"-\"),1/0,VLOOKUP($A734,Economática!$A$3:$AI$823,11,FALSE)))","v":""},{"$f":"IF($A734=\"\",\"\",IF(OR(VLOOKUP($A734,Economática!$A$3:$AI$823,12,FALSE)=0,VLOOKUP($A734,Economática!$A$3:$AI$823,12,FALSE)=\"-\"),1/0,VLOOKUP($A734,Economática!$A$3:$AI$823,12,FALSE)))","v":""},{"$f":"IF($A734=\"\",\"\",IF(OR(VLOOKUP($A734,Economática!$A$3:$AI$823,13,FALSE)=0,VLOOKUP($A734,Economática!$A$3:$AI$823,13,FALSE)=\"-\"),1/0,VLOOKUP($A734,Economática!$A$3:$AI$823,13,FALSE)))","v":""},{"$f":"IF($A734=\"\",\"\",IF(OR(VLOOKUP($A734,Economática!$A$3:$AI$823,14,FALSE)=0,VLOOKUP($A734,Economática!$A$3:$AI$823,14,FALSE)=\"-\"),1/0,VLOOKUP($A734,Economática!$A$3:$AI$823,14,FALSE)))","v":""},{"$f":"IF($A734=\"\",\"\",IF(OR(VLOOKUP($A734,Economática!$A$3:$AI$823,15,FALSE)=0,VLOOKUP($A734,Economática!$A$3:$AI$823,15,FALSE)=\"-\"),1/0,VLOOKUP($A734,Economática!$A$3:$AI$823,15,FALSE)))","v":""},{"$f":"IF($A734=\"\",\"\",IF(OR(VLOOKUP($A734,Economática!$A$3:$AI$823,16,FALSE)=0,VLOOKUP($A734,Economática!$A$3:$AI$823,16,FALSE)=\"-\"),1/0,VLOOKUP($A734,Economática!$A$3:$AI$823,16,FALSE)))","v":""},{"$f":"IF($A734=\"\",\"\",IF(OR(VLOOKUP($A734,Economática!$A$3:$AI$823,17,FALSE)=0,VLOOKUP($A734,Economática!$A$3:$AI$823,17,FALSE)=\"-\"),1/0,VLOOKUP($A734,Economática!$A$3:$AI$823,17,FALSE)))","v":""},{"$f":"IF($A734=\"\",\"\",IF(OR(VLOOKUP($A734,Economática!$A$3:$AI$823,18,FALSE)=0,VLOOKUP($A734,Economática!$A$3:$AI$823,18,FALSE)=\"-\"),1/0,VLOOKUP($A734,Economática!$A$3:$AI$823,18,FALSE)))","v":""},{"$f":"IF($A734=\"\",\"\",IF(OR(VLOOKUP($A734,Economática!$A$3:$AI$823,19,FALSE)=0,VLOOKUP($A734,Economática!$A$3:$AI$823,19,FALSE)=\"-\"),1/0,VLOOKUP($A734,Economática!$A$3:$AI$823,19,FALSE)))","v":""},{"$f":"IF($A734=\"\",\"\",VLOOKUP($A734,Economática!$A$3:$AI$823,20,FALSE)/E734)","v":""},"","","",{"$f":"IF($A734=\"\",\"\",IF(OR(VLOOKUP($A734,Economática!$A$3:$AI$823,21,FALSE)/100=0,VLOOKUP($A734,Economática!$A$3:$AI$823,21,FALSE)/100=\"-\"),1/0,VLOOKUP($A734,Economática!$A$3:$AI$823,21,FALSE)/100))","v":""},{"$f":"IF($A734=\"\",\"\",IF(OR(VLOOKUP($A734,Economática!$A$3:$AI$823,22,FALSE)/100=0,VLOOKUP($A734,Economática!$A$3:$AI$823,22,FALSE)/100=\"-\"),1/0,VLOOKUP($A734,Economática!$A$3:$AI$823,22,FALSE)/100))","v":""},{"$f":"IF($A734=\"\",\"\",IF(OR(VLOOKUP($A734,Economática!$A$3:$AI$823,23,FALSE)=0,VLOOKUP($A734,Economática!$A$3:$AI$823,23,FALSE)=\"-\"),1/0,VLOOKUP($A734,Economática!$A$3:$AI$823,23,FALSE)))","v":""},{"$f":"IF($A734=\"\",\"\",IF(OR(VLOOKUP($A734,Economática!$A$3:$AI$823,24,FALSE)=0,VLOOKUP($A734,Economática!$A$3:$AI$823,24,FALSE)=\"-\"),1/0,VLOOKUP($A734,Economática!$A$3:$AI$823,24,FALSE)))","v":""},{"$f":"IF($A734=\"\",\"\",IF(OR(VLOOKUP($A734,Economática!$A$3:$AI$823,25,FALSE)=0,VLOOKUP($A734,Economática!$A$3:$AI$823,25,FALSE)=\"-\"),1/0,VLOOKUP($A734,Economática!$A$3:$AI$823,25,FALSE)))","v":""},{"$f":"IF($A734=\"\",\"\",IF(ISERROR((F734+VLOOKUP($A734,Economática!$A$3:$AI$823,26,FALSE))/Y734),(F734+VLOOKUP($A734,Economática!$A$3:$AI$823,26,FALSE))/Y734,(F734+VLOOKUP($A734,Economática!$A$3:$AI$823,26,FALSE))/Y734))","v":""},{"$f":"IF($A734=\"\",\"\",IF(OR(-VLOOKUP($A734,Economática!$A$3:$AI$823,27,FALSE)=0,-VLOOKUP($A734,Economática!$A$3:$AI$823,27,FALSE)=\"-\"),1/0,-VLOOKUP($A734,Economática!$A$3:$AI$823,27,FALSE)))","v":""},"",{"$f":"IF($A734=\"\",\"\",IF(OR(VLOOKUP($A734,Economática!$A$3:$AI$823,28,FALSE)=0,VLOOKUP($A734,Economática!$A$3:$AI$823,28,FALSE)=\"-\"),1/0,VLOOKUP($A734,Economática!$A$3:$AI$823,28,FALSE)))","v":""},{"$f":"IF($A734=\"\",\"\",IF(OR(VLOOKUP($A734,Economática!$A$3:$AI$823,29,FALSE)=0,VLOOKUP($A734,Economática!$A$3:$AI$823,29,FALSE)=\"-\"),1/0,VLOOKUP($A734,Economática!$A$3:$AI$823,29,FALSE)))","v":""},{"$f":"IF($A734=\"\",\"\",IF(OR(VLOOKUP($A734,Economática!$A$3:$AI$823,30,FALSE)/E734=0,VLOOKUP($A734,Economática!$A$3:$AI$823,30,FALSE)/E734=\"-\",VLOOKUP($A734,Economática!$A$3:$AI$823,30,FALSE)/E734<33.33%,VLOOKUP($A734,Economática!$A$3:$AI$823,30,FALSE)/E734>100%),1/0,VLOOKUP($A734,Economática!$A$3:$AI$823,30,FALSE)/E734))","v":""},"",{"$f":"IF($A734=\"\",\"\",IF(OR(VLOOKUP($A734,Economática!$A$3:$AI$823,25,FALSE)=0,VLOOKUP($A734,Economática!$A$3:$AI$823,25,FALSE)=\"-\"),1/0,VLOOKUP($A734,Economática!$A$3:$AI$823,25,FALSE)))","v":""},{"$f":"CONCATENATE(Economática!B712,\" \",Economática!C712)","v":" "}]
[{"$f":"IF(Economática!AG713=\"\",\"\",Economática!AG713)","v":""},{"$f":"IF($A735=\"\",\"\",VLOOKUP(VLOOKUP($A735,Economática!$A$3:$AI$823,6,FALSE),Correção!$B$16:$C$36,2,FALSE))","v":""},{"$f":"IF(Economática!B713=\"\",\"\",Economática!B713)","v":""},{"$f":"IF($A735=\"\",\"\",IF(OR(VLOOKUP($A735,Economática!$A$3:$AI$823,8,FALSE)=0,VLOOKUP($A735,Economática!$A$3:$AI$823,8,FALSE)=\"-\"),1/0,VLOOKUP($A735,Economática!$A$3:$AI$823,8,FALSE)))","v":""},{"$f":"IF(A735=\"\",\"\",IF(ISERROR(VLOOKUP(A735,Correção!$B$2:$G$13,9,FALSE)),VLOOKUP($A735,Economática!$A$3:$AI$823,9,FALSE),VLOOKUP(A735,Correção!$B$2:$G$13,9,FALSE)))","v":""},{"$f":"IF($A735=\"\",\"\",Economática!G713)","v":""},{"$f":"IF($A735=\"\",\"\",IF(OR(VLOOKUP($A735,Economática!$A$3:$AI$823,10,FALSE)=0,VLOOKUP($A735,Economática!$A$3:$AI$823,10,FALSE)=\"-\"),1/0,VLOOKUP($A735,Economática!$A$3:$AI$823,10,FALSE)))","v":""},{"$f":"IF($A735=\"\",\"\",IF(OR(VLOOKUP($A735,Economática!$A$3:$AI$823,11,FALSE)=0,VLOOKUP($A735,Economática!$A$3:$AI$823,11,FALSE)=\"-\"),1/0,VLOOKUP($A735,Economática!$A$3:$AI$823,11,FALSE)))","v":""},{"$f":"IF($A735=\"\",\"\",IF(OR(VLOOKUP($A735,Economática!$A$3:$AI$823,12,FALSE)=0,VLOOKUP($A735,Economática!$A$3:$AI$823,12,FALSE)=\"-\"),1/0,VLOOKUP($A735,Economática!$A$3:$AI$823,12,FALSE)))","v":""},{"$f":"IF($A735=\"\",\"\",IF(OR(VLOOKUP($A735,Economática!$A$3:$AI$823,13,FALSE)=0,VLOOKUP($A735,Economática!$A$3:$AI$823,13,FALSE)=\"-\"),1/0,VLOOKUP($A735,Economática!$A$3:$AI$823,13,FALSE)))","v":""},{"$f":"IF($A735=\"\",\"\",IF(OR(VLOOKUP($A735,Economática!$A$3:$AI$823,14,FALSE)=0,VLOOKUP($A735,Economática!$A$3:$AI$823,14,FALSE)=\"-\"),1/0,VLOOKUP($A735,Economática!$A$3:$AI$823,14,FALSE)))","v":""},{"$f":"IF($A735=\"\",\"\",IF(OR(VLOOKUP($A735,Economática!$A$3:$AI$823,15,FALSE)=0,VLOOKUP($A735,Economática!$A$3:$AI$823,15,FALSE)=\"-\"),1/0,VLOOKUP($A735,Economática!$A$3:$AI$823,15,FALSE)))","v":""},{"$f":"IF($A735=\"\",\"\",IF(OR(VLOOKUP($A735,Economática!$A$3:$AI$823,16,FALSE)=0,VLOOKUP($A735,Economática!$A$3:$AI$823,16,FALSE)=\"-\"),1/0,VLOOKUP($A735,Economática!$A$3:$AI$823,16,FALSE)))","v":""},{"$f":"IF($A735=\"\",\"\",IF(OR(VLOOKUP($A735,Economática!$A$3:$AI$823,17,FALSE)=0,VLOOKUP($A735,Economática!$A$3:$AI$823,17,FALSE)=\"-\"),1/0,VLOOKUP($A735,Economática!$A$3:$AI$823,17,FALSE)))","v":""},{"$f":"IF($A735=\"\",\"\",IF(OR(VLOOKUP($A735,Economática!$A$3:$AI$823,18,FALSE)=0,VLOOKUP($A735,Economática!$A$3:$AI$823,18,FALSE)=\"-\"),1/0,VLOOKUP($A735,Economática!$A$3:$AI$823,18,FALSE)))","v":""},{"$f":"IF($A735=\"\",\"\",IF(OR(VLOOKUP($A735,Economática!$A$3:$AI$823,19,FALSE)=0,VLOOKUP($A735,Economática!$A$3:$AI$823,19,FALSE)=\"-\"),1/0,VLOOKUP($A735,Economática!$A$3:$AI$823,19,FALSE)))","v":""},{"$f":"IF($A735=\"\",\"\",VLOOKUP($A735,Economática!$A$3:$AI$823,20,FALSE)/E735)","v":""},"","","",{"$f":"IF($A735=\"\",\"\",IF(OR(VLOOKUP($A735,Economática!$A$3:$AI$823,21,FALSE)/100=0,VLOOKUP($A735,Economática!$A$3:$AI$823,21,FALSE)/100=\"-\"),1/0,VLOOKUP($A735,Economática!$A$3:$AI$823,21,FALSE)/100))","v":""},{"$f":"IF($A735=\"\",\"\",IF(OR(VLOOKUP($A735,Economática!$A$3:$AI$823,22,FALSE)/100=0,VLOOKUP($A735,Economática!$A$3:$AI$823,22,FALSE)/100=\"-\"),1/0,VLOOKUP($A735,Economática!$A$3:$AI$823,22,FALSE)/100))","v":""},{"$f":"IF($A735=\"\",\"\",IF(OR(VLOOKUP($A735,Economática!$A$3:$AI$823,23,FALSE)=0,VLOOKUP($A735,Economática!$A$3:$AI$823,23,FALSE)=\"-\"),1/0,VLOOKUP($A735,Economática!$A$3:$AI$823,23,FALSE)))","v":""},{"$f":"IF($A735=\"\",\"\",IF(OR(VLOOKUP($A735,Economática!$A$3:$AI$823,24,FALSE)=0,VLOOKUP($A735,Economática!$A$3:$AI$823,24,FALSE)=\"-\"),1/0,VLOOKUP($A735,Economática!$A$3:$AI$823,24,FALSE)))","v":""},{"$f":"IF($A735=\"\",\"\",IF(OR(VLOOKUP($A735,Economática!$A$3:$AI$823,25,FALSE)=0,VLOOKUP($A735,Economática!$A$3:$AI$823,25,FALSE)=\"-\"),1/0,VLOOKUP($A735,Economática!$A$3:$AI$823,25,FALSE)))","v":""},{"$f":"IF($A735=\"\",\"\",IF(ISERROR((F735+VLOOKUP($A735,Economática!$A$3:$AI$823,26,FALSE))/Y735),(F735+VLOOKUP($A735,Economática!$A$3:$AI$823,26,FALSE))/Y735,(F735+VLOOKUP($A735,Economática!$A$3:$AI$823,26,FALSE))/Y735))","v":""},{"$f":"IF($A735=\"\",\"\",IF(OR(-VLOOKUP($A735,Economática!$A$3:$AI$823,27,FALSE)=0,-VLOOKUP($A735,Economática!$A$3:$AI$823,27,FALSE)=\"-\"),1/0,-VLOOKUP($A735,Economática!$A$3:$AI$823,27,FALSE)))","v":""},"",{"$f":"IF($A735=\"\",\"\",IF(OR(VLOOKUP($A735,Economática!$A$3:$AI$823,28,FALSE)=0,VLOOKUP($A735,Economática!$A$3:$AI$823,28,FALSE)=\"-\"),1/0,VLOOKUP($A735,Economática!$A$3:$AI$823,28,FALSE)))","v":""},{"$f":"IF($A735=\"\",\"\",IF(OR(VLOOKUP($A735,Economática!$A$3:$AI$823,29,FALSE)=0,VLOOKUP($A735,Economática!$A$3:$AI$823,29,FALSE)=\"-\"),1/0,VLOOKUP($A735,Economática!$A$3:$AI$823,29,FALSE)))","v":""},{"$f":"IF($A735=\"\",\"\",IF(OR(VLOOKUP($A735,Economática!$A$3:$AI$823,30,FALSE)/E735=0,VLOOKUP($A735,Economática!$A$3:$AI$823,30,FALSE)/E735=\"-\",VLOOKUP($A735,Economática!$A$3:$AI$823,30,FALSE)/E735<33.33%,VLOOKUP($A735,Economática!$A$3:$AI$823,30,FALSE)/E735>100%),1/0,VLOOKUP($A735,Economática!$A$3:$AI$823,30,FALSE)/E735))","v":""},"",{"$f":"IF($A735=\"\",\"\",IF(OR(VLOOKUP($A735,Economática!$A$3:$AI$823,25,FALSE)=0,VLOOKUP($A735,Economática!$A$3:$AI$823,25,FALSE)=\"-\"),1/0,VLOOKUP($A735,Economática!$A$3:$AI$823,25,FALSE)))","v":""},{"$f":"CONCATENATE(Economática!B713,\" \",Economática!C713)","v":" "}]
[{"$f":"IF(Economática!AG714=\"\",\"\",Economática!AG714)","v":""},{"$f":"IF($A736=\"\",\"\",VLOOKUP(VLOOKUP($A736,Economática!$A$3:$AI$823,6,FALSE),Correção!$B$16:$C$36,2,FALSE))","v":""},{"$f":"IF(Economática!B714=\"\",\"\",Economática!B714)","v":""},{"$f":"IF($A736=\"\",\"\",IF(OR(VLOOKUP($A736,Economática!$A$3:$AI$823,8,FALSE)=0,VLOOKUP($A736,Economática!$A$3:$AI$823,8,FALSE)=\"-\"),1/0,VLOOKUP($A736,Economática!$A$3:$AI$823,8,FALSE)))","v":""},{"$f":"IF(A736=\"\",\"\",IF(ISERROR(VLOOKUP(A736,Correção!$B$2:$G$13,9,FALSE)),VLOOKUP($A736,Economática!$A$3:$AI$823,9,FALSE),VLOOKUP(A736,Correção!$B$2:$G$13,9,FALSE)))","v":""},{"$f":"IF($A736=\"\",\"\",Economática!G714)","v":""},{"$f":"IF($A736=\"\",\"\",IF(OR(VLOOKUP($A736,Economática!$A$3:$AI$823,10,FALSE)=0,VLOOKUP($A736,Economática!$A$3:$AI$823,10,FALSE)=\"-\"),1/0,VLOOKUP($A736,Economática!$A$3:$AI$823,10,FALSE)))","v":""},{"$f":"IF($A736=\"\",\"\",IF(OR(VLOOKUP($A736,Economática!$A$3:$AI$823,11,FALSE)=0,VLOOKUP($A736,Economática!$A$3:$AI$823,11,FALSE)=\"-\"),1/0,VLOOKUP($A736,Economática!$A$3:$AI$823,11,FALSE)))","v":""},{"$f":"IF($A736=\"\",\"\",IF(OR(VLOOKUP($A736,Economática!$A$3:$AI$823,12,FALSE)=0,VLOOKUP($A736,Economática!$A$3:$AI$823,12,FALSE)=\"-\"),1/0,VLOOKUP($A736,Economática!$A$3:$AI$823,12,FALSE)))","v":""},{"$f":"IF($A736=\"\",\"\",IF(OR(VLOOKUP($A736,Economática!$A$3:$AI$823,13,FALSE)=0,VLOOKUP($A736,Economática!$A$3:$AI$823,13,FALSE)=\"-\"),1/0,VLOOKUP($A736,Economática!$A$3:$AI$823,13,FALSE)))","v":""},{"$f":"IF($A736=\"\",\"\",IF(OR(VLOOKUP($A736,Economática!$A$3:$AI$823,14,FALSE)=0,VLOOKUP($A736,Economática!$A$3:$AI$823,14,FALSE)=\"-\"),1/0,VLOOKUP($A736,Economática!$A$3:$AI$823,14,FALSE)))","v":""},{"$f":"IF($A736=\"\",\"\",IF(OR(VLOOKUP($A736,Economática!$A$3:$AI$823,15,FALSE)=0,VLOOKUP($A736,Economática!$A$3:$AI$823,15,FALSE)=\"-\"),1/0,VLOOKUP($A736,Economática!$A$3:$AI$823,15,FALSE)))","v":""},{"$f":"IF($A736=\"\",\"\",IF(OR(VLOOKUP($A736,Economática!$A$3:$AI$823,16,FALSE)=0,VLOOKUP($A736,Economática!$A$3:$AI$823,16,FALSE)=\"-\"),1/0,VLOOKUP($A736,Economática!$A$3:$AI$823,16,FALSE)))","v":""},{"$f":"IF($A736=\"\",\"\",IF(OR(VLOOKUP($A736,Economática!$A$3:$AI$823,17,FALSE)=0,VLOOKUP($A736,Economática!$A$3:$AI$823,17,FALSE)=\"-\"),1/0,VLOOKUP($A736,Economática!$A$3:$AI$823,17,FALSE)))","v":""},{"$f":"IF($A736=\"\",\"\",IF(OR(VLOOKUP($A736,Economática!$A$3:$AI$823,18,FALSE)=0,VLOOKUP($A736,Economática!$A$3:$AI$823,18,FALSE)=\"-\"),1/0,VLOOKUP($A736,Economática!$A$3:$AI$823,18,FALSE)))","v":""},{"$f":"IF($A736=\"\",\"\",IF(OR(VLOOKUP($A736,Economática!$A$3:$AI$823,19,FALSE)=0,VLOOKUP($A736,Economática!$A$3:$AI$823,19,FALSE)=\"-\"),1/0,VLOOKUP($A736,Economática!$A$3:$AI$823,19,FALSE)))","v":""},{"$f":"IF($A736=\"\",\"\",VLOOKUP($A736,Economática!$A$3:$AI$823,20,FALSE)/E736)","v":""},"","","",{"$f":"IF($A736=\"\",\"\",IF(OR(VLOOKUP($A736,Economática!$A$3:$AI$823,21,FALSE)/100=0,VLOOKUP($A736,Economática!$A$3:$AI$823,21,FALSE)/100=\"-\"),1/0,VLOOKUP($A736,Economática!$A$3:$AI$823,21,FALSE)/100))","v":""},{"$f":"IF($A736=\"\",\"\",IF(OR(VLOOKUP($A736,Economática!$A$3:$AI$823,22,FALSE)/100=0,VLOOKUP($A736,Economática!$A$3:$AI$823,22,FALSE)/100=\"-\"),1/0,VLOOKUP($A736,Economática!$A$3:$AI$823,22,FALSE)/100))","v":""},{"$f":"IF($A736=\"\",\"\",IF(OR(VLOOKUP($A736,Economática!$A$3:$AI$823,23,FALSE)=0,VLOOKUP($A736,Economática!$A$3:$AI$823,23,FALSE)=\"-\"),1/0,VLOOKUP($A736,Economática!$A$3:$AI$823,23,FALSE)))","v":""},{"$f":"IF($A736=\"\",\"\",IF(OR(VLOOKUP($A736,Economática!$A$3:$AI$823,24,FALSE)=0,VLOOKUP($A736,Economática!$A$3:$AI$823,24,FALSE)=\"-\"),1/0,VLOOKUP($A736,Economática!$A$3:$AI$823,24,FALSE)))","v":""},{"$f":"IF($A736=\"\",\"\",IF(OR(VLOOKUP($A736,Economática!$A$3:$AI$823,25,FALSE)=0,VLOOKUP($A736,Economática!$A$3:$AI$823,25,FALSE)=\"-\"),1/0,VLOOKUP($A736,Economática!$A$3:$AI$823,25,FALSE)))","v":""},{"$f":"IF($A736=\"\",\"\",IF(ISERROR((F736+VLOOKUP($A736,Economática!$A$3:$AI$823,26,FALSE))/Y736),(F736+VLOOKUP($A736,Economática!$A$3:$AI$823,26,FALSE))/Y736,(F736+VLOOKUP($A736,Economática!$A$3:$AI$823,26,FALSE))/Y736))","v":""},{"$f":"IF($A736=\"\",\"\",IF(OR(-VLOOKUP($A736,Economática!$A$3:$AI$823,27,FALSE)=0,-VLOOKUP($A736,Economática!$A$3:$AI$823,27,FALSE)=\"-\"),1/0,-VLOOKUP($A736,Economática!$A$3:$AI$823,27,FALSE)))","v":""},"",{"$f":"IF($A736=\"\",\"\",IF(OR(VLOOKUP($A736,Economática!$A$3:$AI$823,28,FALSE)=0,VLOOKUP($A736,Economática!$A$3:$AI$823,28,FALSE)=\"-\"),1/0,VLOOKUP($A736,Economática!$A$3:$AI$823,28,FALSE)))","v":""},{"$f":"IF($A736=\"\",\"\",IF(OR(VLOOKUP($A736,Economática!$A$3:$AI$823,29,FALSE)=0,VLOOKUP($A736,Economática!$A$3:$AI$823,29,FALSE)=\"-\"),1/0,VLOOKUP($A736,Economática!$A$3:$AI$823,29,FALSE)))","v":""},{"$f":"IF($A736=\"\",\"\",IF(OR(VLOOKUP($A736,Economática!$A$3:$AI$823,30,FALSE)/E736=0,VLOOKUP($A736,Economática!$A$3:$AI$823,30,FALSE)/E736=\"-\",VLOOKUP($A736,Economática!$A$3:$AI$823,30,FALSE)/E736<33.33%,VLOOKUP($A736,Economática!$A$3:$AI$823,30,FALSE)/E736>100%),1/0,VLOOKUP($A736,Economática!$A$3:$AI$823,30,FALSE)/E736))","v":""},"",{"$f":"IF($A736=\"\",\"\",IF(OR(VLOOKUP($A736,Economática!$A$3:$AI$823,25,FALSE)=0,VLOOKUP($A736,Economática!$A$3:$AI$823,25,FALSE)=\"-\"),1/0,VLOOKUP($A736,Economática!$A$3:$AI$823,25,FALSE)))","v":""},{"$f":"CONCATENATE(Economática!B714,\" \",Economática!C714)","v":" "}]
[{"$f":"IF(Economática!AG715=\"\",\"\",Economática!AG715)","v":""},{"$f":"IF($A737=\"\",\"\",VLOOKUP(VLOOKUP($A737,Economática!$A$3:$AI$823,6,FALSE),Correção!$B$16:$C$36,2,FALSE))","v":""},{"$f":"IF(Economática!B715=\"\",\"\",Economática!B715)","v":""},{"$f":"IF($A737=\"\",\"\",IF(OR(VLOOKUP($A737,Economática!$A$3:$AI$823,8,FALSE)=0,VLOOKUP($A737,Economática!$A$3:$AI$823,8,FALSE)=\"-\"),1/0,VLOOKUP($A737,Economática!$A$3:$AI$823,8,FALSE)))","v":""},{"$f":"IF(A737=\"\",\"\",IF(ISERROR(VLOOKUP(A737,Correção!$B$2:$G$13,9,FALSE)),VLOOKUP($A737,Economática!$A$3:$AI$823,9,FALSE),VLOOKUP(A737,Correção!$B$2:$G$13,9,FALSE)))","v":""},{"$f":"IF($A737=\"\",\"\",Economática!G715)","v":""},{"$f":"IF($A737=\"\",\"\",IF(OR(VLOOKUP($A737,Economática!$A$3:$AI$823,10,FALSE)=0,VLOOKUP($A737,Economática!$A$3:$AI$823,10,FALSE)=\"-\"),1/0,VLOOKUP($A737,Economática!$A$3:$AI$823,10,FALSE)))","v":""},{"$f":"IF($A737=\"\",\"\",IF(OR(VLOOKUP($A737,Economática!$A$3:$AI$823,11,FALSE)=0,VLOOKUP($A737,Economática!$A$3:$AI$823,11,FALSE)=\"-\"),1/0,VLOOKUP($A737,Economática!$A$3:$AI$823,11,FALSE)))","v":""},{"$f":"IF($A737=\"\",\"\",IF(OR(VLOOKUP($A737,Economática!$A$3:$AI$823,12,FALSE)=0,VLOOKUP($A737,Economática!$A$3:$AI$823,12,FALSE)=\"-\"),1/0,VLOOKUP($A737,Economática!$A$3:$AI$823,12,FALSE)))","v":""},{"$f":"IF($A737=\"\",\"\",IF(OR(VLOOKUP($A737,Economática!$A$3:$AI$823,13,FALSE)=0,VLOOKUP($A737,Economática!$A$3:$AI$823,13,FALSE)=\"-\"),1/0,VLOOKUP($A737,Economática!$A$3:$AI$823,13,FALSE)))","v":""},{"$f":"IF($A737=\"\",\"\",IF(OR(VLOOKUP($A737,Economática!$A$3:$AI$823,14,FALSE)=0,VLOOKUP($A737,Economática!$A$3:$AI$823,14,FALSE)=\"-\"),1/0,VLOOKUP($A737,Economática!$A$3:$AI$823,14,FALSE)))","v":""},{"$f":"IF($A737=\"\",\"\",IF(OR(VLOOKUP($A737,Economática!$A$3:$AI$823,15,FALSE)=0,VLOOKUP($A737,Economática!$A$3:$AI$823,15,FALSE)=\"-\"),1/0,VLOOKUP($A737,Economática!$A$3:$AI$823,15,FALSE)))","v":""},{"$f":"IF($A737=\"\",\"\",IF(OR(VLOOKUP($A737,Economática!$A$3:$AI$823,16,FALSE)=0,VLOOKUP($A737,Economática!$A$3:$AI$823,16,FALSE)=\"-\"),1/0,VLOOKUP($A737,Economática!$A$3:$AI$823,16,FALSE)))","v":""},{"$f":"IF($A737=\"\",\"\",IF(OR(VLOOKUP($A737,Economática!$A$3:$AI$823,17,FALSE)=0,VLOOKUP($A737,Economática!$A$3:$AI$823,17,FALSE)=\"-\"),1/0,VLOOKUP($A737,Economática!$A$3:$AI$823,17,FALSE)))","v":""},{"$f":"IF($A737=\"\",\"\",IF(OR(VLOOKUP($A737,Economática!$A$3:$AI$823,18,FALSE)=0,VLOOKUP($A737,Economática!$A$3:$AI$823,18,FALSE)=\"-\"),1/0,VLOOKUP($A737,Economática!$A$3:$AI$823,18,FALSE)))","v":""},{"$f":"IF($A737=\"\",\"\",IF(OR(VLOOKUP($A737,Economática!$A$3:$AI$823,19,FALSE)=0,VLOOKUP($A737,Economática!$A$3:$AI$823,19,FALSE)=\"-\"),1/0,VLOOKUP($A737,Economática!$A$3:$AI$823,19,FALSE)))","v":""},{"$f":"IF($A737=\"\",\"\",VLOOKUP($A737,Economática!$A$3:$AI$823,20,FALSE)/E737)","v":""},"","","",{"$f":"IF($A737=\"\",\"\",IF(OR(VLOOKUP($A737,Economática!$A$3:$AI$823,21,FALSE)/100=0,VLOOKUP($A737,Economática!$A$3:$AI$823,21,FALSE)/100=\"-\"),1/0,VLOOKUP($A737,Economática!$A$3:$AI$823,21,FALSE)/100))","v":""},{"$f":"IF($A737=\"\",\"\",IF(OR(VLOOKUP($A737,Economática!$A$3:$AI$823,22,FALSE)/100=0,VLOOKUP($A737,Economática!$A$3:$AI$823,22,FALSE)/100=\"-\"),1/0,VLOOKUP($A737,Economática!$A$3:$AI$823,22,FALSE)/100))","v":""},{"$f":"IF($A737=\"\",\"\",IF(OR(VLOOKUP($A737,Economática!$A$3:$AI$823,23,FALSE)=0,VLOOKUP($A737,Economática!$A$3:$AI$823,23,FALSE)=\"-\"),1/0,VLOOKUP($A737,Economática!$A$3:$AI$823,23,FALSE)))","v":""},{"$f":"IF($A737=\"\",\"\",IF(OR(VLOOKUP($A737,Economática!$A$3:$AI$823,24,FALSE)=0,VLOOKUP($A737,Economática!$A$3:$AI$823,24,FALSE)=\"-\"),1/0,VLOOKUP($A737,Economática!$A$3:$AI$823,24,FALSE)))","v":""},{"$f":"IF($A737=\"\",\"\",IF(OR(VLOOKUP($A737,Economática!$A$3:$AI$823,25,FALSE)=0,VLOOKUP($A737,Economática!$A$3:$AI$823,25,FALSE)=\"-\"),1/0,VLOOKUP($A737,Economática!$A$3:$AI$823,25,FALSE)))","v":""},{"$f":"IF($A737=\"\",\"\",IF(ISERROR((F737+VLOOKUP($A737,Economática!$A$3:$AI$823,26,FALSE))/Y737),(F737+VLOOKUP($A737,Economática!$A$3:$AI$823,26,FALSE))/Y737,(F737+VLOOKUP($A737,Economática!$A$3:$AI$823,26,FALSE))/Y737))","v":""},{"$f":"IF($A737=\"\",\"\",IF(OR(-VLOOKUP($A737,Economática!$A$3:$AI$823,27,FALSE)=0,-VLOOKUP($A737,Economática!$A$3:$AI$823,27,FALSE)=\"-\"),1/0,-VLOOKUP($A737,Economática!$A$3:$AI$823,27,FALSE)))","v":""},"",{"$f":"IF($A737=\"\",\"\",IF(OR(VLOOKUP($A737,Economática!$A$3:$AI$823,28,FALSE)=0,VLOOKUP($A737,Economática!$A$3:$AI$823,28,FALSE)=\"-\"),1/0,VLOOKUP($A737,Economática!$A$3:$AI$823,28,FALSE)))","v":""},{"$f":"IF($A737=\"\",\"\",IF(OR(VLOOKUP($A737,Economática!$A$3:$AI$823,29,FALSE)=0,VLOOKUP($A737,Economática!$A$3:$AI$823,29,FALSE)=\"-\"),1/0,VLOOKUP($A737,Economática!$A$3:$AI$823,29,FALSE)))","v":""},{"$f":"IF($A737=\"\",\"\",IF(OR(VLOOKUP($A737,Economática!$A$3:$AI$823,30,FALSE)/E737=0,VLOOKUP($A737,Economática!$A$3:$AI$823,30,FALSE)/E737=\"-\",VLOOKUP($A737,Economática!$A$3:$AI$823,30,FALSE)/E737<33.33%,VLOOKUP($A737,Economática!$A$3:$AI$823,30,FALSE)/E737>100%),1/0,VLOOKUP($A737,Economática!$A$3:$AI$823,30,FALSE)/E737))","v":""},"",{"$f":"IF($A737=\"\",\"\",IF(OR(VLOOKUP($A737,Economática!$A$3:$AI$823,25,FALSE)=0,VLOOKUP($A737,Economática!$A$3:$AI$823,25,FALSE)=\"-\"),1/0,VLOOKUP($A737,Economática!$A$3:$AI$823,25,FALSE)))","v":""},{"$f":"CONCATENATE(Economática!B715,\" \",Economática!C715)","v":" "}]
[{"$f":"IF(Economática!AG716=\"\",\"\",Economática!AG716)","v":""},{"$f":"IF($A738=\"\",\"\",VLOOKUP(VLOOKUP($A738,Economática!$A$3:$AI$823,6,FALSE),Correção!$B$16:$C$36,2,FALSE))","v":""},{"$f":"IF(Economática!B716=\"\",\"\",Economática!B716)","v":""},{"$f":"IF($A738=\"\",\"\",IF(OR(VLOOKUP($A738,Economática!$A$3:$AI$823,8,FALSE)=0,VLOOKUP($A738,Economática!$A$3:$AI$823,8,FALSE)=\"-\"),1/0,VLOOKUP($A738,Economática!$A$3:$AI$823,8,FALSE)))","v":""},{"$f":"IF(A738=\"\",\"\",IF(ISERROR(VLOOKUP(A738,Correção!$B$2:$G$13,9,FALSE)),VLOOKUP($A738,Economática!$A$3:$AI$823,9,FALSE),VLOOKUP(A738,Correção!$B$2:$G$13,9,FALSE)))","v":""},{"$f":"IF($A738=\"\",\"\",Economática!G716)","v":""},{"$f":"IF($A738=\"\",\"\",IF(OR(VLOOKUP($A738,Economática!$A$3:$AI$823,10,FALSE)=0,VLOOKUP($A738,Economática!$A$3:$AI$823,10,FALSE)=\"-\"),1/0,VLOOKUP($A738,Economática!$A$3:$AI$823,10,FALSE)))","v":""},{"$f":"IF($A738=\"\",\"\",IF(OR(VLOOKUP($A738,Economática!$A$3:$AI$823,11,FALSE)=0,VLOOKUP($A738,Economática!$A$3:$AI$823,11,FALSE)=\"-\"),1/0,VLOOKUP($A738,Economática!$A$3:$AI$823,11,FALSE)))","v":""},{"$f":"IF($A738=\"\",\"\",IF(OR(VLOOKUP($A738,Economática!$A$3:$AI$823,12,FALSE)=0,VLOOKUP($A738,Economática!$A$3:$AI$823,12,FALSE)=\"-\"),1/0,VLOOKUP($A738,Economática!$A$3:$AI$823,12,FALSE)))","v":""},{"$f":"IF($A738=\"\",\"\",IF(OR(VLOOKUP($A738,Economática!$A$3:$AI$823,13,FALSE)=0,VLOOKUP($A738,Economática!$A$3:$AI$823,13,FALSE)=\"-\"),1/0,VLOOKUP($A738,Economática!$A$3:$AI$823,13,FALSE)))","v":""},{"$f":"IF($A738=\"\",\"\",IF(OR(VLOOKUP($A738,Economática!$A$3:$AI$823,14,FALSE)=0,VLOOKUP($A738,Economática!$A$3:$AI$823,14,FALSE)=\"-\"),1/0,VLOOKUP($A738,Economática!$A$3:$AI$823,14,FALSE)))","v":""},{"$f":"IF($A738=\"\",\"\",IF(OR(VLOOKUP($A738,Economática!$A$3:$AI$823,15,FALSE)=0,VLOOKUP($A738,Economática!$A$3:$AI$823,15,FALSE)=\"-\"),1/0,VLOOKUP($A738,Economática!$A$3:$AI$823,15,FALSE)))","v":""},{"$f":"IF($A738=\"\",\"\",IF(OR(VLOOKUP($A738,Economática!$A$3:$AI$823,16,FALSE)=0,VLOOKUP($A738,Economática!$A$3:$AI$823,16,FALSE)=\"-\"),1/0,VLOOKUP($A738,Economática!$A$3:$AI$823,16,FALSE)))","v":""},{"$f":"IF($A738=\"\",\"\",IF(OR(VLOOKUP($A738,Economática!$A$3:$AI$823,17,FALSE)=0,VLOOKUP($A738,Economática!$A$3:$AI$823,17,FALSE)=\"-\"),1/0,VLOOKUP($A738,Economática!$A$3:$AI$823,17,FALSE)))","v":""},{"$f":"IF($A738=\"\",\"\",IF(OR(VLOOKUP($A738,Economática!$A$3:$AI$823,18,FALSE)=0,VLOOKUP($A738,Economática!$A$3:$AI$823,18,FALSE)=\"-\"),1/0,VLOOKUP($A738,Economática!$A$3:$AI$823,18,FALSE)))","v":""},{"$f":"IF($A738=\"\",\"\",IF(OR(VLOOKUP($A738,Economática!$A$3:$AI$823,19,FALSE)=0,VLOOKUP($A738,Economática!$A$3:$AI$823,19,FALSE)=\"-\"),1/0,VLOOKUP($A738,Economática!$A$3:$AI$823,19,FALSE)))","v":""},{"$f":"IF($A738=\"\",\"\",VLOOKUP($A738,Economática!$A$3:$AI$823,20,FALSE)/E738)","v":""},"","","",{"$f":"IF($A738=\"\",\"\",IF(OR(VLOOKUP($A738,Economática!$A$3:$AI$823,21,FALSE)/100=0,VLOOKUP($A738,Economática!$A$3:$AI$823,21,FALSE)/100=\"-\"),1/0,VLOOKUP($A738,Economática!$A$3:$AI$823,21,FALSE)/100))","v":""},{"$f":"IF($A738=\"\",\"\",IF(OR(VLOOKUP($A738,Economática!$A$3:$AI$823,22,FALSE)/100=0,VLOOKUP($A738,Economática!$A$3:$AI$823,22,FALSE)/100=\"-\"),1/0,VLOOKUP($A738,Economática!$A$3:$AI$823,22,FALSE)/100))","v":""},{"$f":"IF($A738=\"\",\"\",IF(OR(VLOOKUP($A738,Economática!$A$3:$AI$823,23,FALSE)=0,VLOOKUP($A738,Economática!$A$3:$AI$823,23,FALSE)=\"-\"),1/0,VLOOKUP($A738,Economática!$A$3:$AI$823,23,FALSE)))","v":""},{"$f":"IF($A738=\"\",\"\",IF(OR(VLOOKUP($A738,Economática!$A$3:$AI$823,24,FALSE)=0,VLOOKUP($A738,Economática!$A$3:$AI$823,24,FALSE)=\"-\"),1/0,VLOOKUP($A738,Economática!$A$3:$AI$823,24,FALSE)))","v":""},{"$f":"IF($A738=\"\",\"\",IF(OR(VLOOKUP($A738,Economática!$A$3:$AI$823,25,FALSE)=0,VLOOKUP($A738,Economática!$A$3:$AI$823,25,FALSE)=\"-\"),1/0,VLOOKUP($A738,Economática!$A$3:$AI$823,25,FALSE)))","v":""},{"$f":"IF($A738=\"\",\"\",IF(ISERROR((F738+VLOOKUP($A738,Economática!$A$3:$AI$823,26,FALSE))/Y738),(F738+VLOOKUP($A738,Economática!$A$3:$AI$823,26,FALSE))/Y738,(F738+VLOOKUP($A738,Economática!$A$3:$AI$823,26,FALSE))/Y738))","v":""},{"$f":"IF($A738=\"\",\"\",IF(OR(-VLOOKUP($A738,Economática!$A$3:$AI$823,27,FALSE)=0,-VLOOKUP($A738,Economática!$A$3:$AI$823,27,FALSE)=\"-\"),1/0,-VLOOKUP($A738,Economática!$A$3:$AI$823,27,FALSE)))","v":""},"",{"$f":"IF($A738=\"\",\"\",IF(OR(VLOOKUP($A738,Economática!$A$3:$AI$823,28,FALSE)=0,VLOOKUP($A738,Economática!$A$3:$AI$823,28,FALSE)=\"-\"),1/0,VLOOKUP($A738,Economática!$A$3:$AI$823,28,FALSE)))","v":""},{"$f":"IF($A738=\"\",\"\",IF(OR(VLOOKUP($A738,Economática!$A$3:$AI$823,29,FALSE)=0,VLOOKUP($A738,Economática!$A$3:$AI$823,29,FALSE)=\"-\"),1/0,VLOOKUP($A738,Economática!$A$3:$AI$823,29,FALSE)))","v":""},{"$f":"IF($A738=\"\",\"\",IF(OR(VLOOKUP($A738,Economática!$A$3:$AI$823,30,FALSE)/E738=0,VLOOKUP($A738,Economática!$A$3:$AI$823,30,FALSE)/E738=\"-\",VLOOKUP($A738,Economática!$A$3:$AI$823,30,FALSE)/E738<33.33%,VLOOKUP($A738,Economática!$A$3:$AI$823,30,FALSE)/E738>100%),1/0,VLOOKUP($A738,Economática!$A$3:$AI$823,30,FALSE)/E738))","v":""},"",{"$f":"IF($A738=\"\",\"\",IF(OR(VLOOKUP($A738,Economática!$A$3:$AI$823,25,FALSE)=0,VLOOKUP($A738,Economática!$A$3:$AI$823,25,FALSE)=\"-\"),1/0,VLOOKUP($A738,Economática!$A$3:$AI$823,25,FALSE)))","v":""},{"$f":"CONCATENATE(Economática!B716,\" \",Economática!C716)","v":" "}]
[{"$f":"IF(Economática!AG717=\"\",\"\",Economática!AG717)","v":""},{"$f":"IF($A739=\"\",\"\",VLOOKUP(VLOOKUP($A739,Economática!$A$3:$AI$823,6,FALSE),Correção!$B$16:$C$36,2,FALSE))","v":""},{"$f":"IF(Economática!B717=\"\",\"\",Economática!B717)","v":""},{"$f":"IF($A739=\"\",\"\",IF(OR(VLOOKUP($A739,Economática!$A$3:$AI$823,8,FALSE)=0,VLOOKUP($A739,Economática!$A$3:$AI$823,8,FALSE)=\"-\"),1/0,VLOOKUP($A739,Economática!$A$3:$AI$823,8,FALSE)))","v":""},{"$f":"IF(A739=\"\",\"\",IF(ISERROR(VLOOKUP(A739,Correção!$B$2:$G$13,9,FALSE)),VLOOKUP($A739,Economática!$A$3:$AI$823,9,FALSE),VLOOKUP(A739,Correção!$B$2:$G$13,9,FALSE)))","v":""},{"$f":"IF($A739=\"\",\"\",Economática!G717)","v":""},{"$f":"IF($A739=\"\",\"\",IF(OR(VLOOKUP($A739,Economática!$A$3:$AI$823,10,FALSE)=0,VLOOKUP($A739,Economática!$A$3:$AI$823,10,FALSE)=\"-\"),1/0,VLOOKUP($A739,Economática!$A$3:$AI$823,10,FALSE)))","v":""},{"$f":"IF($A739=\"\",\"\",IF(OR(VLOOKUP($A739,Economática!$A$3:$AI$823,11,FALSE)=0,VLOOKUP($A739,Economática!$A$3:$AI$823,11,FALSE)=\"-\"),1/0,VLOOKUP($A739,Economática!$A$3:$AI$823,11,FALSE)))","v":""},{"$f":"IF($A739=\"\",\"\",IF(OR(VLOOKUP($A739,Economática!$A$3:$AI$823,12,FALSE)=0,VLOOKUP($A739,Economática!$A$3:$AI$823,12,FALSE)=\"-\"),1/0,VLOOKUP($A739,Economática!$A$3:$AI$823,12,FALSE)))","v":""},{"$f":"IF($A739=\"\",\"\",IF(OR(VLOOKUP($A739,Economática!$A$3:$AI$823,13,FALSE)=0,VLOOKUP($A739,Economática!$A$3:$AI$823,13,FALSE)=\"-\"),1/0,VLOOKUP($A739,Economática!$A$3:$AI$823,13,FALSE)))","v":""},{"$f":"IF($A739=\"\",\"\",IF(OR(VLOOKUP($A739,Economática!$A$3:$AI$823,14,FALSE)=0,VLOOKUP($A739,Economática!$A$3:$AI$823,14,FALSE)=\"-\"),1/0,VLOOKUP($A739,Economática!$A$3:$AI$823,14,FALSE)))","v":""},{"$f":"IF($A739=\"\",\"\",IF(OR(VLOOKUP($A739,Economática!$A$3:$AI$823,15,FALSE)=0,VLOOKUP($A739,Economática!$A$3:$AI$823,15,FALSE)=\"-\"),1/0,VLOOKUP($A739,Economática!$A$3:$AI$823,15,FALSE)))","v":""},{"$f":"IF($A739=\"\",\"\",IF(OR(VLOOKUP($A739,Economática!$A$3:$AI$823,16,FALSE)=0,VLOOKUP($A739,Economática!$A$3:$AI$823,16,FALSE)=\"-\"),1/0,VLOOKUP($A739,Economática!$A$3:$AI$823,16,FALSE)))","v":""},{"$f":"IF($A739=\"\",\"\",IF(OR(VLOOKUP($A739,Economática!$A$3:$AI$823,17,FALSE)=0,VLOOKUP($A739,Economática!$A$3:$AI$823,17,FALSE)=\"-\"),1/0,VLOOKUP($A739,Economática!$A$3:$AI$823,17,FALSE)))","v":""},{"$f":"IF($A739=\"\",\"\",IF(OR(VLOOKUP($A739,Economática!$A$3:$AI$823,18,FALSE)=0,VLOOKUP($A739,Economática!$A$3:$AI$823,18,FALSE)=\"-\"),1/0,VLOOKUP($A739,Economática!$A$3:$AI$823,18,FALSE)))","v":""},{"$f":"IF($A739=\"\",\"\",IF(OR(VLOOKUP($A739,Economática!$A$3:$AI$823,19,FALSE)=0,VLOOKUP($A739,Economática!$A$3:$AI$823,19,FALSE)=\"-\"),1/0,VLOOKUP($A739,Economática!$A$3:$AI$823,19,FALSE)))","v":""},{"$f":"IF($A739=\"\",\"\",VLOOKUP($A739,Economática!$A$3:$AI$823,20,FALSE)/E739)","v":""},"","","",{"$f":"IF($A739=\"\",\"\",IF(OR(VLOOKUP($A739,Economática!$A$3:$AI$823,21,FALSE)/100=0,VLOOKUP($A739,Economática!$A$3:$AI$823,21,FALSE)/100=\"-\"),1/0,VLOOKUP($A739,Economática!$A$3:$AI$823,21,FALSE)/100))","v":""},{"$f":"IF($A739=\"\",\"\",IF(OR(VLOOKUP($A739,Economática!$A$3:$AI$823,22,FALSE)/100=0,VLOOKUP($A739,Economática!$A$3:$AI$823,22,FALSE)/100=\"-\"),1/0,VLOOKUP($A739,Economática!$A$3:$AI$823,22,FALSE)/100))","v":""},{"$f":"IF($A739=\"\",\"\",IF(OR(VLOOKUP($A739,Economática!$A$3:$AI$823,23,FALSE)=0,VLOOKUP($A739,Economática!$A$3:$AI$823,23,FALSE)=\"-\"),1/0,VLOOKUP($A739,Economática!$A$3:$AI$823,23,FALSE)))","v":""},{"$f":"IF($A739=\"\",\"\",IF(OR(VLOOKUP($A739,Economática!$A$3:$AI$823,24,FALSE)=0,VLOOKUP($A739,Economática!$A$3:$AI$823,24,FALSE)=\"-\"),1/0,VLOOKUP($A739,Economática!$A$3:$AI$823,24,FALSE)))","v":""},{"$f":"IF($A739=\"\",\"\",IF(OR(VLOOKUP($A739,Economática!$A$3:$AI$823,25,FALSE)=0,VLOOKUP($A739,Economática!$A$3:$AI$823,25,FALSE)=\"-\"),1/0,VLOOKUP($A739,Economática!$A$3:$AI$823,25,FALSE)))","v":""},{"$f":"IF($A739=\"\",\"\",IF(ISERROR((F739+VLOOKUP($A739,Economática!$A$3:$AI$823,26,FALSE))/Y739),(F739+VLOOKUP($A739,Economática!$A$3:$AI$823,26,FALSE))/Y739,(F739+VLOOKUP($A739,Economática!$A$3:$AI$823,26,FALSE))/Y739))","v":""},{"$f":"IF($A739=\"\",\"\",IF(OR(-VLOOKUP($A739,Economática!$A$3:$AI$823,27,FALSE)=0,-VLOOKUP($A739,Economática!$A$3:$AI$823,27,FALSE)=\"-\"),1/0,-VLOOKUP($A739,Economática!$A$3:$AI$823,27,FALSE)))","v":""},"",{"$f":"IF($A739=\"\",\"\",IF(OR(VLOOKUP($A739,Economática!$A$3:$AI$823,28,FALSE)=0,VLOOKUP($A739,Economática!$A$3:$AI$823,28,FALSE)=\"-\"),1/0,VLOOKUP($A739,Economática!$A$3:$AI$823,28,FALSE)))","v":""},{"$f":"IF($A739=\"\",\"\",IF(OR(VLOOKUP($A739,Economática!$A$3:$AI$823,29,FALSE)=0,VLOOKUP($A739,Economática!$A$3:$AI$823,29,FALSE)=\"-\"),1/0,VLOOKUP($A739,Economática!$A$3:$AI$823,29,FALSE)))","v":""},{"$f":"IF($A739=\"\",\"\",IF(OR(VLOOKUP($A739,Economática!$A$3:$AI$823,30,FALSE)/E739=0,VLOOKUP($A739,Economática!$A$3:$AI$823,30,FALSE)/E739=\"-\",VLOOKUP($A739,Economática!$A$3:$AI$823,30,FALSE)/E739<33.33%,VLOOKUP($A739,Economática!$A$3:$AI$823,30,FALSE)/E739>100%),1/0,VLOOKUP($A739,Economática!$A$3:$AI$823,30,FALSE)/E739))","v":""},"",{"$f":"IF($A739=\"\",\"\",IF(OR(VLOOKUP($A739,Economática!$A$3:$AI$823,25,FALSE)=0,VLOOKUP($A739,Economática!$A$3:$AI$823,25,FALSE)=\"-\"),1/0,VLOOKUP($A739,Economática!$A$3:$AI$823,25,FALSE)))","v":""},{"$f":"CONCATENATE(Economática!B717,\" \",Economática!C717)","v":" "}]
[{"$f":"IF(Economática!AG718=\"\",\"\",Economática!AG718)","v":""},{"$f":"IF($A740=\"\",\"\",VLOOKUP(VLOOKUP($A740,Economática!$A$3:$AI$823,6,FALSE),Correção!$B$16:$C$36,2,FALSE))","v":""},{"$f":"IF(Economática!B718=\"\",\"\",Economática!B718)","v":""},{"$f":"IF($A740=\"\",\"\",IF(OR(VLOOKUP($A740,Economática!$A$3:$AI$823,8,FALSE)=0,VLOOKUP($A740,Economática!$A$3:$AI$823,8,FALSE)=\"-\"),1/0,VLOOKUP($A740,Economática!$A$3:$AI$823,8,FALSE)))","v":""},{"$f":"IF(A740=\"\",\"\",IF(ISERROR(VLOOKUP(A740,Correção!$B$2:$G$13,9,FALSE)),VLOOKUP($A740,Economática!$A$3:$AI$823,9,FALSE),VLOOKUP(A740,Correção!$B$2:$G$13,9,FALSE)))","v":""},{"$f":"IF($A740=\"\",\"\",Economática!G718)","v":""},{"$f":"IF($A740=\"\",\"\",IF(OR(VLOOKUP($A740,Economática!$A$3:$AI$823,10,FALSE)=0,VLOOKUP($A740,Economática!$A$3:$AI$823,10,FALSE)=\"-\"),1/0,VLOOKUP($A740,Economática!$A$3:$AI$823,10,FALSE)))","v":""},{"$f":"IF($A740=\"\",\"\",IF(OR(VLOOKUP($A740,Economática!$A$3:$AI$823,11,FALSE)=0,VLOOKUP($A740,Economática!$A$3:$AI$823,11,FALSE)=\"-\"),1/0,VLOOKUP($A740,Economática!$A$3:$AI$823,11,FALSE)))","v":""},{"$f":"IF($A740=\"\",\"\",IF(OR(VLOOKUP($A740,Economática!$A$3:$AI$823,12,FALSE)=0,VLOOKUP($A740,Economática!$A$3:$AI$823,12,FALSE)=\"-\"),1/0,VLOOKUP($A740,Economática!$A$3:$AI$823,12,FALSE)))","v":""},{"$f":"IF($A740=\"\",\"\",IF(OR(VLOOKUP($A740,Economática!$A$3:$AI$823,13,FALSE)=0,VLOOKUP($A740,Economática!$A$3:$AI$823,13,FALSE)=\"-\"),1/0,VLOOKUP($A740,Economática!$A$3:$AI$823,13,FALSE)))","v":""},{"$f":"IF($A740=\"\",\"\",IF(OR(VLOOKUP($A740,Economática!$A$3:$AI$823,14,FALSE)=0,VLOOKUP($A740,Economática!$A$3:$AI$823,14,FALSE)=\"-\"),1/0,VLOOKUP($A740,Economática!$A$3:$AI$823,14,FALSE)))","v":""},{"$f":"IF($A740=\"\",\"\",IF(OR(VLOOKUP($A740,Economática!$A$3:$AI$823,15,FALSE)=0,VLOOKUP($A740,Economática!$A$3:$AI$823,15,FALSE)=\"-\"),1/0,VLOOKUP($A740,Economática!$A$3:$AI$823,15,FALSE)))","v":""},{"$f":"IF($A740=\"\",\"\",IF(OR(VLOOKUP($A740,Economática!$A$3:$AI$823,16,FALSE)=0,VLOOKUP($A740,Economática!$A$3:$AI$823,16,FALSE)=\"-\"),1/0,VLOOKUP($A740,Economática!$A$3:$AI$823,16,FALSE)))","v":""},{"$f":"IF($A740=\"\",\"\",IF(OR(VLOOKUP($A740,Economática!$A$3:$AI$823,17,FALSE)=0,VLOOKUP($A740,Economática!$A$3:$AI$823,17,FALSE)=\"-\"),1/0,VLOOKUP($A740,Economática!$A$3:$AI$823,17,FALSE)))","v":""},{"$f":"IF($A740=\"\",\"\",IF(OR(VLOOKUP($A740,Economática!$A$3:$AI$823,18,FALSE)=0,VLOOKUP($A740,Economática!$A$3:$AI$823,18,FALSE)=\"-\"),1/0,VLOOKUP($A740,Economática!$A$3:$AI$823,18,FALSE)))","v":""},{"$f":"IF($A740=\"\",\"\",IF(OR(VLOOKUP($A740,Economática!$A$3:$AI$823,19,FALSE)=0,VLOOKUP($A740,Economática!$A$3:$AI$823,19,FALSE)=\"-\"),1/0,VLOOKUP($A740,Economática!$A$3:$AI$823,19,FALSE)))","v":""},{"$f":"IF($A740=\"\",\"\",VLOOKUP($A740,Economática!$A$3:$AI$823,20,FALSE)/E740)","v":""},"","","",{"$f":"IF($A740=\"\",\"\",IF(OR(VLOOKUP($A740,Economática!$A$3:$AI$823,21,FALSE)/100=0,VLOOKUP($A740,Economática!$A$3:$AI$823,21,FALSE)/100=\"-\"),1/0,VLOOKUP($A740,Economática!$A$3:$AI$823,21,FALSE)/100))","v":""},{"$f":"IF($A740=\"\",\"\",IF(OR(VLOOKUP($A740,Economática!$A$3:$AI$823,22,FALSE)/100=0,VLOOKUP($A740,Economática!$A$3:$AI$823,22,FALSE)/100=\"-\"),1/0,VLOOKUP($A740,Economática!$A$3:$AI$823,22,FALSE)/100))","v":""},{"$f":"IF($A740=\"\",\"\",IF(OR(VLOOKUP($A740,Economática!$A$3:$AI$823,23,FALSE)=0,VLOOKUP($A740,Economática!$A$3:$AI$823,23,FALSE)=\"-\"),1/0,VLOOKUP($A740,Economática!$A$3:$AI$823,23,FALSE)))","v":""},{"$f":"IF($A740=\"\",\"\",IF(OR(VLOOKUP($A740,Economática!$A$3:$AI$823,24,FALSE)=0,VLOOKUP($A740,Economática!$A$3:$AI$823,24,FALSE)=\"-\"),1/0,VLOOKUP($A740,Economática!$A$3:$AI$823,24,FALSE)))","v":""},{"$f":"IF($A740=\"\",\"\",IF(OR(VLOOKUP($A740,Economática!$A$3:$AI$823,25,FALSE)=0,VLOOKUP($A740,Economática!$A$3:$AI$823,25,FALSE)=\"-\"),1/0,VLOOKUP($A740,Economática!$A$3:$AI$823,25,FALSE)))","v":""},{"$f":"IF($A740=\"\",\"\",IF(ISERROR((F740+VLOOKUP($A740,Economática!$A$3:$AI$823,26,FALSE))/Y740),(F740+VLOOKUP($A740,Economática!$A$3:$AI$823,26,FALSE))/Y740,(F740+VLOOKUP($A740,Economática!$A$3:$AI$823,26,FALSE))/Y740))","v":""},{"$f":"IF($A740=\"\",\"\",IF(OR(-VLOOKUP($A740,Economática!$A$3:$AI$823,27,FALSE)=0,-VLOOKUP($A740,Economática!$A$3:$AI$823,27,FALSE)=\"-\"),1/0,-VLOOKUP($A740,Economática!$A$3:$AI$823,27,FALSE)))","v":""},"",{"$f":"IF($A740=\"\",\"\",IF(OR(VLOOKUP($A740,Economática!$A$3:$AI$823,28,FALSE)=0,VLOOKUP($A740,Economática!$A$3:$AI$823,28,FALSE)=\"-\"),1/0,VLOOKUP($A740,Economática!$A$3:$AI$823,28,FALSE)))","v":""},{"$f":"IF($A740=\"\",\"\",IF(OR(VLOOKUP($A740,Economática!$A$3:$AI$823,29,FALSE)=0,VLOOKUP($A740,Economática!$A$3:$AI$823,29,FALSE)=\"-\"),1/0,VLOOKUP($A740,Economática!$A$3:$AI$823,29,FALSE)))","v":""},{"$f":"IF($A740=\"\",\"\",IF(OR(VLOOKUP($A740,Economática!$A$3:$AI$823,30,FALSE)/E740=0,VLOOKUP($A740,Economática!$A$3:$AI$823,30,FALSE)/E740=\"-\",VLOOKUP($A740,Economática!$A$3:$AI$823,30,FALSE)/E740<33.33%,VLOOKUP($A740,Economática!$A$3:$AI$823,30,FALSE)/E740>100%),1/0,VLOOKUP($A740,Economática!$A$3:$AI$823,30,FALSE)/E740))","v":""},"",{"$f":"IF($A740=\"\",\"\",IF(OR(VLOOKUP($A740,Economática!$A$3:$AI$823,25,FALSE)=0,VLOOKUP($A740,Economática!$A$3:$AI$823,25,FALSE)=\"-\"),1/0,VLOOKUP($A740,Economática!$A$3:$AI$823,25,FALSE)))","v":""},{"$f":"CONCATENATE(Economática!B718,\" \",Economática!C718)","v":" "}]
[{"$f":"IF(Economática!AG719=\"\",\"\",Economática!AG719)","v":""},{"$f":"IF($A741=\"\",\"\",VLOOKUP(VLOOKUP($A741,Economática!$A$3:$AI$823,6,FALSE),Correção!$B$16:$C$36,2,FALSE))","v":""},{"$f":"IF(Economática!B719=\"\",\"\",Economática!B719)","v":""},{"$f":"IF($A741=\"\",\"\",IF(OR(VLOOKUP($A741,Economática!$A$3:$AI$823,8,FALSE)=0,VLOOKUP($A741,Economática!$A$3:$AI$823,8,FALSE)=\"-\"),1/0,VLOOKUP($A741,Economática!$A$3:$AI$823,8,FALSE)))","v":""},{"$f":"IF(A741=\"\",\"\",IF(ISERROR(VLOOKUP(A741,Correção!$B$2:$G$13,9,FALSE)),VLOOKUP($A741,Economática!$A$3:$AI$823,9,FALSE),VLOOKUP(A741,Correção!$B$2:$G$13,9,FALSE)))","v":""},{"$f":"IF($A741=\"\",\"\",Economática!G719)","v":""},{"$f":"IF($A741=\"\",\"\",IF(OR(VLOOKUP($A741,Economática!$A$3:$AI$823,10,FALSE)=0,VLOOKUP($A741,Economática!$A$3:$AI$823,10,FALSE)=\"-\"),1/0,VLOOKUP($A741,Economática!$A$3:$AI$823,10,FALSE)))","v":""},{"$f":"IF($A741=\"\",\"\",IF(OR(VLOOKUP($A741,Economática!$A$3:$AI$823,11,FALSE)=0,VLOOKUP($A741,Economática!$A$3:$AI$823,11,FALSE)=\"-\"),1/0,VLOOKUP($A741,Economática!$A$3:$AI$823,11,FALSE)))","v":""},{"$f":"IF($A741=\"\",\"\",IF(OR(VLOOKUP($A741,Economática!$A$3:$AI$823,12,FALSE)=0,VLOOKUP($A741,Economática!$A$3:$AI$823,12,FALSE)=\"-\"),1/0,VLOOKUP($A741,Economática!$A$3:$AI$823,12,FALSE)))","v":""},{"$f":"IF($A741=\"\",\"\",IF(OR(VLOOKUP($A741,Economática!$A$3:$AI$823,13,FALSE)=0,VLOOKUP($A741,Economática!$A$3:$AI$823,13,FALSE)=\"-\"),1/0,VLOOKUP($A741,Economática!$A$3:$AI$823,13,FALSE)))","v":""},{"$f":"IF($A741=\"\",\"\",IF(OR(VLOOKUP($A741,Economática!$A$3:$AI$823,14,FALSE)=0,VLOOKUP($A741,Economática!$A$3:$AI$823,14,FALSE)=\"-\"),1/0,VLOOKUP($A741,Economática!$A$3:$AI$823,14,FALSE)))","v":""},{"$f":"IF($A741=\"\",\"\",IF(OR(VLOOKUP($A741,Economática!$A$3:$AI$823,15,FALSE)=0,VLOOKUP($A741,Economática!$A$3:$AI$823,15,FALSE)=\"-\"),1/0,VLOOKUP($A741,Economática!$A$3:$AI$823,15,FALSE)))","v":""},{"$f":"IF($A741=\"\",\"\",IF(OR(VLOOKUP($A741,Economática!$A$3:$AI$823,16,FALSE)=0,VLOOKUP($A741,Economática!$A$3:$AI$823,16,FALSE)=\"-\"),1/0,VLOOKUP($A741,Economática!$A$3:$AI$823,16,FALSE)))","v":""},{"$f":"IF($A741=\"\",\"\",IF(OR(VLOOKUP($A741,Economática!$A$3:$AI$823,17,FALSE)=0,VLOOKUP($A741,Economática!$A$3:$AI$823,17,FALSE)=\"-\"),1/0,VLOOKUP($A741,Economática!$A$3:$AI$823,17,FALSE)))","v":""},{"$f":"IF($A741=\"\",\"\",IF(OR(VLOOKUP($A741,Economática!$A$3:$AI$823,18,FALSE)=0,VLOOKUP($A741,Economática!$A$3:$AI$823,18,FALSE)=\"-\"),1/0,VLOOKUP($A741,Economática!$A$3:$AI$823,18,FALSE)))","v":""},{"$f":"IF($A741=\"\",\"\",IF(OR(VLOOKUP($A741,Economática!$A$3:$AI$823,19,FALSE)=0,VLOOKUP($A741,Economática!$A$3:$AI$823,19,FALSE)=\"-\"),1/0,VLOOKUP($A741,Economática!$A$3:$AI$823,19,FALSE)))","v":""},{"$f":"IF($A741=\"\",\"\",VLOOKUP($A741,Economática!$A$3:$AI$823,20,FALSE)/E741)","v":""},"","","",{"$f":"IF($A741=\"\",\"\",IF(OR(VLOOKUP($A741,Economática!$A$3:$AI$823,21,FALSE)/100=0,VLOOKUP($A741,Economática!$A$3:$AI$823,21,FALSE)/100=\"-\"),1/0,VLOOKUP($A741,Economática!$A$3:$AI$823,21,FALSE)/100))","v":""},{"$f":"IF($A741=\"\",\"\",IF(OR(VLOOKUP($A741,Economática!$A$3:$AI$823,22,FALSE)/100=0,VLOOKUP($A741,Economática!$A$3:$AI$823,22,FALSE)/100=\"-\"),1/0,VLOOKUP($A741,Economática!$A$3:$AI$823,22,FALSE)/100))","v":""},{"$f":"IF($A741=\"\",\"\",IF(OR(VLOOKUP($A741,Economática!$A$3:$AI$823,23,FALSE)=0,VLOOKUP($A741,Economática!$A$3:$AI$823,23,FALSE)=\"-\"),1/0,VLOOKUP($A741,Economática!$A$3:$AI$823,23,FALSE)))","v":""},{"$f":"IF($A741=\"\",\"\",IF(OR(VLOOKUP($A741,Economática!$A$3:$AI$823,24,FALSE)=0,VLOOKUP($A741,Economática!$A$3:$AI$823,24,FALSE)=\"-\"),1/0,VLOOKUP($A741,Economática!$A$3:$AI$823,24,FALSE)))","v":""},{"$f":"IF($A741=\"\",\"\",IF(OR(VLOOKUP($A741,Economática!$A$3:$AI$823,25,FALSE)=0,VLOOKUP($A741,Economática!$A$3:$AI$823,25,FALSE)=\"-\"),1/0,VLOOKUP($A741,Economática!$A$3:$AI$823,25,FALSE)))","v":""},{"$f":"IF($A741=\"\",\"\",IF(ISERROR((F741+VLOOKUP($A741,Economática!$A$3:$AI$823,26,FALSE))/Y741),(F741+VLOOKUP($A741,Economática!$A$3:$AI$823,26,FALSE))/Y741,(F741+VLOOKUP($A741,Economática!$A$3:$AI$823,26,FALSE))/Y741))","v":""},{"$f":"IF($A741=\"\",\"\",IF(OR(-VLOOKUP($A741,Economática!$A$3:$AI$823,27,FALSE)=0,-VLOOKUP($A741,Economática!$A$3:$AI$823,27,FALSE)=\"-\"),1/0,-VLOOKUP($A741,Economática!$A$3:$AI$823,27,FALSE)))","v":""},"",{"$f":"IF($A741=\"\",\"\",IF(OR(VLOOKUP($A741,Economática!$A$3:$AI$823,28,FALSE)=0,VLOOKUP($A741,Economática!$A$3:$AI$823,28,FALSE)=\"-\"),1/0,VLOOKUP($A741,Economática!$A$3:$AI$823,28,FALSE)))","v":""},{"$f":"IF($A741=\"\",\"\",IF(OR(VLOOKUP($A741,Economática!$A$3:$AI$823,29,FALSE)=0,VLOOKUP($A741,Economática!$A$3:$AI$823,29,FALSE)=\"-\"),1/0,VLOOKUP($A741,Economática!$A$3:$AI$823,29,FALSE)))","v":""},{"$f":"IF($A741=\"\",\"\",IF(OR(VLOOKUP($A741,Economática!$A$3:$AI$823,30,FALSE)/E741=0,VLOOKUP($A741,Economática!$A$3:$AI$823,30,FALSE)/E741=\"-\",VLOOKUP($A741,Economática!$A$3:$AI$823,30,FALSE)/E741<33.33%,VLOOKUP($A741,Economática!$A$3:$AI$823,30,FALSE)/E741>100%),1/0,VLOOKUP($A741,Economática!$A$3:$AI$823,30,FALSE)/E741))","v":""},"",{"$f":"IF($A741=\"\",\"\",IF(OR(VLOOKUP($A741,Economática!$A$3:$AI$823,25,FALSE)=0,VLOOKUP($A741,Economática!$A$3:$AI$823,25,FALSE)=\"-\"),1/0,VLOOKUP($A741,Economática!$A$3:$AI$823,25,FALSE)))","v":""},{"$f":"CONCATENATE(Economática!B719,\" \",Economática!C719)","v":" "}]
[{"$f":"IF(Economática!AG720=\"\",\"\",Economática!AG720)","v":""},{"$f":"IF($A742=\"\",\"\",VLOOKUP(VLOOKUP($A742,Economática!$A$3:$AI$823,6,FALSE),Correção!$B$16:$C$36,2,FALSE))","v":""},{"$f":"IF(Economática!B720=\"\",\"\",Economática!B720)","v":""},{"$f":"IF($A742=\"\",\"\",IF(OR(VLOOKUP($A742,Economática!$A$3:$AI$823,8,FALSE)=0,VLOOKUP($A742,Economática!$A$3:$AI$823,8,FALSE)=\"-\"),1/0,VLOOKUP($A742,Economática!$A$3:$AI$823,8,FALSE)))","v":""},{"$f":"IF(A742=\"\",\"\",IF(ISERROR(VLOOKUP(A742,Correção!$B$2:$G$13,9,FALSE)),VLOOKUP($A742,Economática!$A$3:$AI$823,9,FALSE),VLOOKUP(A742,Correção!$B$2:$G$13,9,FALSE)))","v":""},{"$f":"IF($A742=\"\",\"\",Economática!G720)","v":""},{"$f":"IF($A742=\"\",\"\",IF(OR(VLOOKUP($A742,Economática!$A$3:$AI$823,10,FALSE)=0,VLOOKUP($A742,Economática!$A$3:$AI$823,10,FALSE)=\"-\"),1/0,VLOOKUP($A742,Economática!$A$3:$AI$823,10,FALSE)))","v":""},{"$f":"IF($A742=\"\",\"\",IF(OR(VLOOKUP($A742,Economática!$A$3:$AI$823,11,FALSE)=0,VLOOKUP($A742,Economática!$A$3:$AI$823,11,FALSE)=\"-\"),1/0,VLOOKUP($A742,Economática!$A$3:$AI$823,11,FALSE)))","v":""},{"$f":"IF($A742=\"\",\"\",IF(OR(VLOOKUP($A742,Economática!$A$3:$AI$823,12,FALSE)=0,VLOOKUP($A742,Economática!$A$3:$AI$823,12,FALSE)=\"-\"),1/0,VLOOKUP($A742,Economática!$A$3:$AI$823,12,FALSE)))","v":""},{"$f":"IF($A742=\"\",\"\",IF(OR(VLOOKUP($A742,Economática!$A$3:$AI$823,13,FALSE)=0,VLOOKUP($A742,Economática!$A$3:$AI$823,13,FALSE)=\"-\"),1/0,VLOOKUP($A742,Economática!$A$3:$AI$823,13,FALSE)))","v":""},{"$f":"IF($A742=\"\",\"\",IF(OR(VLOOKUP($A742,Economática!$A$3:$AI$823,14,FALSE)=0,VLOOKUP($A742,Economática!$A$3:$AI$823,14,FALSE)=\"-\"),1/0,VLOOKUP($A742,Economática!$A$3:$AI$823,14,FALSE)))","v":""},{"$f":"IF($A742=\"\",\"\",IF(OR(VLOOKUP($A742,Economática!$A$3:$AI$823,15,FALSE)=0,VLOOKUP($A742,Economática!$A$3:$AI$823,15,FALSE)=\"-\"),1/0,VLOOKUP($A742,Economática!$A$3:$AI$823,15,FALSE)))","v":""},{"$f":"IF($A742=\"\",\"\",IF(OR(VLOOKUP($A742,Economática!$A$3:$AI$823,16,FALSE)=0,VLOOKUP($A742,Economática!$A$3:$AI$823,16,FALSE)=\"-\"),1/0,VLOOKUP($A742,Economática!$A$3:$AI$823,16,FALSE)))","v":""},{"$f":"IF($A742=\"\",\"\",IF(OR(VLOOKUP($A742,Economática!$A$3:$AI$823,17,FALSE)=0,VLOOKUP($A742,Economática!$A$3:$AI$823,17,FALSE)=\"-\"),1/0,VLOOKUP($A742,Economática!$A$3:$AI$823,17,FALSE)))","v":""},{"$f":"IF($A742=\"\",\"\",IF(OR(VLOOKUP($A742,Economática!$A$3:$AI$823,18,FALSE)=0,VLOOKUP($A742,Economática!$A$3:$AI$823,18,FALSE)=\"-\"),1/0,VLOOKUP($A742,Economática!$A$3:$AI$823,18,FALSE)))","v":""},{"$f":"IF($A742=\"\",\"\",IF(OR(VLOOKUP($A742,Economática!$A$3:$AI$823,19,FALSE)=0,VLOOKUP($A742,Economática!$A$3:$AI$823,19,FALSE)=\"-\"),1/0,VLOOKUP($A742,Economática!$A$3:$AI$823,19,FALSE)))","v":""},{"$f":"IF($A742=\"\",\"\",VLOOKUP($A742,Economática!$A$3:$AI$823,20,FALSE)/E742)","v":""},"","","",{"$f":"IF($A742=\"\",\"\",IF(OR(VLOOKUP($A742,Economática!$A$3:$AI$823,21,FALSE)/100=0,VLOOKUP($A742,Economática!$A$3:$AI$823,21,FALSE)/100=\"-\"),1/0,VLOOKUP($A742,Economática!$A$3:$AI$823,21,FALSE)/100))","v":""},{"$f":"IF($A742=\"\",\"\",IF(OR(VLOOKUP($A742,Economática!$A$3:$AI$823,22,FALSE)/100=0,VLOOKUP($A742,Economática!$A$3:$AI$823,22,FALSE)/100=\"-\"),1/0,VLOOKUP($A742,Economática!$A$3:$AI$823,22,FALSE)/100))","v":""},{"$f":"IF($A742=\"\",\"\",IF(OR(VLOOKUP($A742,Economática!$A$3:$AI$823,23,FALSE)=0,VLOOKUP($A742,Economática!$A$3:$AI$823,23,FALSE)=\"-\"),1/0,VLOOKUP($A742,Economática!$A$3:$AI$823,23,FALSE)))","v":""},{"$f":"IF($A742=\"\",\"\",IF(OR(VLOOKUP($A742,Economática!$A$3:$AI$823,24,FALSE)=0,VLOOKUP($A742,Economática!$A$3:$AI$823,24,FALSE)=\"-\"),1/0,VLOOKUP($A742,Economática!$A$3:$AI$823,24,FALSE)))","v":""},{"$f":"IF($A742=\"\",\"\",IF(OR(VLOOKUP($A742,Economática!$A$3:$AI$823,25,FALSE)=0,VLOOKUP($A742,Economática!$A$3:$AI$823,25,FALSE)=\"-\"),1/0,VLOOKUP($A742,Economática!$A$3:$AI$823,25,FALSE)))","v":""},{"$f":"IF($A742=\"\",\"\",IF(ISERROR((F742+VLOOKUP($A742,Economática!$A$3:$AI$823,26,FALSE))/Y742),(F742+VLOOKUP($A742,Economática!$A$3:$AI$823,26,FALSE))/Y742,(F742+VLOOKUP($A742,Economática!$A$3:$AI$823,26,FALSE))/Y742))","v":""},{"$f":"IF($A742=\"\",\"\",IF(OR(-VLOOKUP($A742,Economática!$A$3:$AI$823,27,FALSE)=0,-VLOOKUP($A742,Economática!$A$3:$AI$823,27,FALSE)=\"-\"),1/0,-VLOOKUP($A742,Economática!$A$3:$AI$823,27,FALSE)))","v":""},"",{"$f":"IF($A742=\"\",\"\",IF(OR(VLOOKUP($A742,Economática!$A$3:$AI$823,28,FALSE)=0,VLOOKUP($A742,Economática!$A$3:$AI$823,28,FALSE)=\"-\"),1/0,VLOOKUP($A742,Economática!$A$3:$AI$823,28,FALSE)))","v":""},{"$f":"IF($A742=\"\",\"\",IF(OR(VLOOKUP($A742,Economática!$A$3:$AI$823,29,FALSE)=0,VLOOKUP($A742,Economática!$A$3:$AI$823,29,FALSE)=\"-\"),1/0,VLOOKUP($A742,Economática!$A$3:$AI$823,29,FALSE)))","v":""},{"$f":"IF($A742=\"\",\"\",IF(OR(VLOOKUP($A742,Economática!$A$3:$AI$823,30,FALSE)/E742=0,VLOOKUP($A742,Economática!$A$3:$AI$823,30,FALSE)/E742=\"-\",VLOOKUP($A742,Economática!$A$3:$AI$823,30,FALSE)/E742<33.33%,VLOOKUP($A742,Economática!$A$3:$AI$823,30,FALSE)/E742>100%),1/0,VLOOKUP($A742,Economática!$A$3:$AI$823,30,FALSE)/E742))","v":""},"",{"$f":"IF($A742=\"\",\"\",IF(OR(VLOOKUP($A742,Economática!$A$3:$AI$823,25,FALSE)=0,VLOOKUP($A742,Economática!$A$3:$AI$823,25,FALSE)=\"-\"),1/0,VLOOKUP($A742,Economática!$A$3:$AI$823,25,FALSE)))","v":""},{"$f":"CONCATENATE(Economática!B720,\" \",Economática!C720)","v":" "}]
[{"$f":"IF(Economática!AG721=\"\",\"\",Economática!AG721)","v":""},{"$f":"IF($A743=\"\",\"\",VLOOKUP(VLOOKUP($A743,Economática!$A$3:$AI$823,6,FALSE),Correção!$B$16:$C$36,2,FALSE))","v":""},{"$f":"IF(Economática!B721=\"\",\"\",Economática!B721)","v":""},{"$f":"IF($A743=\"\",\"\",IF(OR(VLOOKUP($A743,Economática!$A$3:$AI$823,8,FALSE)=0,VLOOKUP($A743,Economática!$A$3:$AI$823,8,FALSE)=\"-\"),1/0,VLOOKUP($A743,Economática!$A$3:$AI$823,8,FALSE)))","v":""},{"$f":"IF(A743=\"\",\"\",IF(ISERROR(VLOOKUP(A743,Correção!$B$2:$G$13,9,FALSE)),VLOOKUP($A743,Economática!$A$3:$AI$823,9,FALSE),VLOOKUP(A743,Correção!$B$2:$G$13,9,FALSE)))","v":""},{"$f":"IF($A743=\"\",\"\",Economática!G721)","v":""},{"$f":"IF($A743=\"\",\"\",IF(OR(VLOOKUP($A743,Economática!$A$3:$AI$823,10,FALSE)=0,VLOOKUP($A743,Economática!$A$3:$AI$823,10,FALSE)=\"-\"),1/0,VLOOKUP($A743,Economática!$A$3:$AI$823,10,FALSE)))","v":""},{"$f":"IF($A743=\"\",\"\",IF(OR(VLOOKUP($A743,Economática!$A$3:$AI$823,11,FALSE)=0,VLOOKUP($A743,Economática!$A$3:$AI$823,11,FALSE)=\"-\"),1/0,VLOOKUP($A743,Economática!$A$3:$AI$823,11,FALSE)))","v":""},{"$f":"IF($A743=\"\",\"\",IF(OR(VLOOKUP($A743,Economática!$A$3:$AI$823,12,FALSE)=0,VLOOKUP($A743,Economática!$A$3:$AI$823,12,FALSE)=\"-\"),1/0,VLOOKUP($A743,Economática!$A$3:$AI$823,12,FALSE)))","v":""},{"$f":"IF($A743=\"\",\"\",IF(OR(VLOOKUP($A743,Economática!$A$3:$AI$823,13,FALSE)=0,VLOOKUP($A743,Economática!$A$3:$AI$823,13,FALSE)=\"-\"),1/0,VLOOKUP($A743,Economática!$A$3:$AI$823,13,FALSE)))","v":""},{"$f":"IF($A743=\"\",\"\",IF(OR(VLOOKUP($A743,Economática!$A$3:$AI$823,14,FALSE)=0,VLOOKUP($A743,Economática!$A$3:$AI$823,14,FALSE)=\"-\"),1/0,VLOOKUP($A743,Economática!$A$3:$AI$823,14,FALSE)))","v":""},{"$f":"IF($A743=\"\",\"\",IF(OR(VLOOKUP($A743,Economática!$A$3:$AI$823,15,FALSE)=0,VLOOKUP($A743,Economática!$A$3:$AI$823,15,FALSE)=\"-\"),1/0,VLOOKUP($A743,Economática!$A$3:$AI$823,15,FALSE)))","v":""},{"$f":"IF($A743=\"\",\"\",IF(OR(VLOOKUP($A743,Economática!$A$3:$AI$823,16,FALSE)=0,VLOOKUP($A743,Economática!$A$3:$AI$823,16,FALSE)=\"-\"),1/0,VLOOKUP($A743,Economática!$A$3:$AI$823,16,FALSE)))","v":""},{"$f":"IF($A743=\"\",\"\",IF(OR(VLOOKUP($A743,Economática!$A$3:$AI$823,17,FALSE)=0,VLOOKUP($A743,Economática!$A$3:$AI$823,17,FALSE)=\"-\"),1/0,VLOOKUP($A743,Economática!$A$3:$AI$823,17,FALSE)))","v":""},{"$f":"IF($A743=\"\",\"\",IF(OR(VLOOKUP($A743,Economática!$A$3:$AI$823,18,FALSE)=0,VLOOKUP($A743,Economática!$A$3:$AI$823,18,FALSE)=\"-\"),1/0,VLOOKUP($A743,Economática!$A$3:$AI$823,18,FALSE)))","v":""},{"$f":"IF($A743=\"\",\"\",IF(OR(VLOOKUP($A743,Economática!$A$3:$AI$823,19,FALSE)=0,VLOOKUP($A743,Economática!$A$3:$AI$823,19,FALSE)=\"-\"),1/0,VLOOKUP($A743,Economática!$A$3:$AI$823,19,FALSE)))","v":""},{"$f":"IF($A743=\"\",\"\",VLOOKUP($A743,Economática!$A$3:$AI$823,20,FALSE)/E743)","v":""},"","","",{"$f":"IF($A743=\"\",\"\",IF(OR(VLOOKUP($A743,Economática!$A$3:$AI$823,21,FALSE)/100=0,VLOOKUP($A743,Economática!$A$3:$AI$823,21,FALSE)/100=\"-\"),1/0,VLOOKUP($A743,Economática!$A$3:$AI$823,21,FALSE)/100))","v":""},{"$f":"IF($A743=\"\",\"\",IF(OR(VLOOKUP($A743,Economática!$A$3:$AI$823,22,FALSE)/100=0,VLOOKUP($A743,Economática!$A$3:$AI$823,22,FALSE)/100=\"-\"),1/0,VLOOKUP($A743,Economática!$A$3:$AI$823,22,FALSE)/100))","v":""},{"$f":"IF($A743=\"\",\"\",IF(OR(VLOOKUP($A743,Economática!$A$3:$AI$823,23,FALSE)=0,VLOOKUP($A743,Economática!$A$3:$AI$823,23,FALSE)=\"-\"),1/0,VLOOKUP($A743,Economática!$A$3:$AI$823,23,FALSE)))","v":""},{"$f":"IF($A743=\"\",\"\",IF(OR(VLOOKUP($A743,Economática!$A$3:$AI$823,24,FALSE)=0,VLOOKUP($A743,Economática!$A$3:$AI$823,24,FALSE)=\"-\"),1/0,VLOOKUP($A743,Economática!$A$3:$AI$823,24,FALSE)))","v":""},{"$f":"IF($A743=\"\",\"\",IF(OR(VLOOKUP($A743,Economática!$A$3:$AI$823,25,FALSE)=0,VLOOKUP($A743,Economática!$A$3:$AI$823,25,FALSE)=\"-\"),1/0,VLOOKUP($A743,Economática!$A$3:$AI$823,25,FALSE)))","v":""},{"$f":"IF($A743=\"\",\"\",IF(ISERROR((F743+VLOOKUP($A743,Economática!$A$3:$AI$823,26,FALSE))/Y743),(F743+VLOOKUP($A743,Economática!$A$3:$AI$823,26,FALSE))/Y743,(F743+VLOOKUP($A743,Economática!$A$3:$AI$823,26,FALSE))/Y743))","v":""},{"$f":"IF($A743=\"\",\"\",IF(OR(-VLOOKUP($A743,Economática!$A$3:$AI$823,27,FALSE)=0,-VLOOKUP($A743,Economática!$A$3:$AI$823,27,FALSE)=\"-\"),1/0,-VLOOKUP($A743,Economática!$A$3:$AI$823,27,FALSE)))","v":""},"",{"$f":"IF($A743=\"\",\"\",IF(OR(VLOOKUP($A743,Economática!$A$3:$AI$823,28,FALSE)=0,VLOOKUP($A743,Economática!$A$3:$AI$823,28,FALSE)=\"-\"),1/0,VLOOKUP($A743,Economática!$A$3:$AI$823,28,FALSE)))","v":""},{"$f":"IF($A743=\"\",\"\",IF(OR(VLOOKUP($A743,Economática!$A$3:$AI$823,29,FALSE)=0,VLOOKUP($A743,Economática!$A$3:$AI$823,29,FALSE)=\"-\"),1/0,VLOOKUP($A743,Economática!$A$3:$AI$823,29,FALSE)))","v":""},{"$f":"IF($A743=\"\",\"\",IF(OR(VLOOKUP($A743,Economática!$A$3:$AI$823,30,FALSE)/E743=0,VLOOKUP($A743,Economática!$A$3:$AI$823,30,FALSE)/E743=\"-\",VLOOKUP($A743,Economática!$A$3:$AI$823,30,FALSE)/E743<33.33%,VLOOKUP($A743,Economática!$A$3:$AI$823,30,FALSE)/E743>100%),1/0,VLOOKUP($A743,Economática!$A$3:$AI$823,30,FALSE)/E743))","v":""},"",{"$f":"IF($A743=\"\",\"\",IF(OR(VLOOKUP($A743,Economática!$A$3:$AI$823,25,FALSE)=0,VLOOKUP($A743,Economática!$A$3:$AI$823,25,FALSE)=\"-\"),1/0,VLOOKUP($A743,Economática!$A$3:$AI$823,25,FALSE)))","v":""},{"$f":"CONCATENATE(Economática!B721,\" \",Economática!C721)","v":" "}]
[{"$f":"IF(Economática!AG722=\"\",\"\",Economática!AG722)","v":""},{"$f":"IF($A744=\"\",\"\",VLOOKUP(VLOOKUP($A744,Economática!$A$3:$AI$823,6,FALSE),Correção!$B$16:$C$36,2,FALSE))","v":""},{"$f":"IF(Economática!B722=\"\",\"\",Economática!B722)","v":""},{"$f":"IF($A744=\"\",\"\",IF(OR(VLOOKUP($A744,Economática!$A$3:$AI$823,8,FALSE)=0,VLOOKUP($A744,Economática!$A$3:$AI$823,8,FALSE)=\"-\"),1/0,VLOOKUP($A744,Economática!$A$3:$AI$823,8,FALSE)))","v":""},{"$f":"IF(A744=\"\",\"\",IF(ISERROR(VLOOKUP(A744,Correção!$B$2:$G$13,9,FALSE)),VLOOKUP($A744,Economática!$A$3:$AI$823,9,FALSE),VLOOKUP(A744,Correção!$B$2:$G$13,9,FALSE)))","v":""},{"$f":"IF($A744=\"\",\"\",Economática!G722)","v":""},{"$f":"IF($A744=\"\",\"\",IF(OR(VLOOKUP($A744,Economática!$A$3:$AI$823,10,FALSE)=0,VLOOKUP($A744,Economática!$A$3:$AI$823,10,FALSE)=\"-\"),1/0,VLOOKUP($A744,Economática!$A$3:$AI$823,10,FALSE)))","v":""},{"$f":"IF($A744=\"\",\"\",IF(OR(VLOOKUP($A744,Economática!$A$3:$AI$823,11,FALSE)=0,VLOOKUP($A744,Economática!$A$3:$AI$823,11,FALSE)=\"-\"),1/0,VLOOKUP($A744,Economática!$A$3:$AI$823,11,FALSE)))","v":""},{"$f":"IF($A744=\"\",\"\",IF(OR(VLOOKUP($A744,Economática!$A$3:$AI$823,12,FALSE)=0,VLOOKUP($A744,Economática!$A$3:$AI$823,12,FALSE)=\"-\"),1/0,VLOOKUP($A744,Economática!$A$3:$AI$823,12,FALSE)))","v":""},{"$f":"IF($A744=\"\",\"\",IF(OR(VLOOKUP($A744,Economática!$A$3:$AI$823,13,FALSE)=0,VLOOKUP($A744,Economática!$A$3:$AI$823,13,FALSE)=\"-\"),1/0,VLOOKUP($A744,Economática!$A$3:$AI$823,13,FALSE)))","v":""},{"$f":"IF($A744=\"\",\"\",IF(OR(VLOOKUP($A744,Economática!$A$3:$AI$823,14,FALSE)=0,VLOOKUP($A744,Economática!$A$3:$AI$823,14,FALSE)=\"-\"),1/0,VLOOKUP($A744,Economática!$A$3:$AI$823,14,FALSE)))","v":""},{"$f":"IF($A744=\"\",\"\",IF(OR(VLOOKUP($A744,Economática!$A$3:$AI$823,15,FALSE)=0,VLOOKUP($A744,Economática!$A$3:$AI$823,15,FALSE)=\"-\"),1/0,VLOOKUP($A744,Economática!$A$3:$AI$823,15,FALSE)))","v":""},{"$f":"IF($A744=\"\",\"\",IF(OR(VLOOKUP($A744,Economática!$A$3:$AI$823,16,FALSE)=0,VLOOKUP($A744,Economática!$A$3:$AI$823,16,FALSE)=\"-\"),1/0,VLOOKUP($A744,Economática!$A$3:$AI$823,16,FALSE)))","v":""},{"$f":"IF($A744=\"\",\"\",IF(OR(VLOOKUP($A744,Economática!$A$3:$AI$823,17,FALSE)=0,VLOOKUP($A744,Economática!$A$3:$AI$823,17,FALSE)=\"-\"),1/0,VLOOKUP($A744,Economática!$A$3:$AI$823,17,FALSE)))","v":""},{"$f":"IF($A744=\"\",\"\",IF(OR(VLOOKUP($A744,Economática!$A$3:$AI$823,18,FALSE)=0,VLOOKUP($A744,Economática!$A$3:$AI$823,18,FALSE)=\"-\"),1/0,VLOOKUP($A744,Economática!$A$3:$AI$823,18,FALSE)))","v":""},{"$f":"IF($A744=\"\",\"\",IF(OR(VLOOKUP($A744,Economática!$A$3:$AI$823,19,FALSE)=0,VLOOKUP($A744,Economática!$A$3:$AI$823,19,FALSE)=\"-\"),1/0,VLOOKUP($A744,Economática!$A$3:$AI$823,19,FALSE)))","v":""},{"$f":"IF($A744=\"\",\"\",VLOOKUP($A744,Economática!$A$3:$AI$823,20,FALSE)/E744)","v":""},"","","",{"$f":"IF($A744=\"\",\"\",IF(OR(VLOOKUP($A744,Economática!$A$3:$AI$823,21,FALSE)/100=0,VLOOKUP($A744,Economática!$A$3:$AI$823,21,FALSE)/100=\"-\"),1/0,VLOOKUP($A744,Economática!$A$3:$AI$823,21,FALSE)/100))","v":""},{"$f":"IF($A744=\"\",\"\",IF(OR(VLOOKUP($A744,Economática!$A$3:$AI$823,22,FALSE)/100=0,VLOOKUP($A744,Economática!$A$3:$AI$823,22,FALSE)/100=\"-\"),1/0,VLOOKUP($A744,Economática!$A$3:$AI$823,22,FALSE)/100))","v":""},{"$f":"IF($A744=\"\",\"\",IF(OR(VLOOKUP($A744,Economática!$A$3:$AI$823,23,FALSE)=0,VLOOKUP($A744,Economática!$A$3:$AI$823,23,FALSE)=\"-\"),1/0,VLOOKUP($A744,Economática!$A$3:$AI$823,23,FALSE)))","v":""},{"$f":"IF($A744=\"\",\"\",IF(OR(VLOOKUP($A744,Economática!$A$3:$AI$823,24,FALSE)=0,VLOOKUP($A744,Economática!$A$3:$AI$823,24,FALSE)=\"-\"),1/0,VLOOKUP($A744,Economática!$A$3:$AI$823,24,FALSE)))","v":""},{"$f":"IF($A744=\"\",\"\",IF(OR(VLOOKUP($A744,Economática!$A$3:$AI$823,25,FALSE)=0,VLOOKUP($A744,Economática!$A$3:$AI$823,25,FALSE)=\"-\"),1/0,VLOOKUP($A744,Economática!$A$3:$AI$823,25,FALSE)))","v":""},{"$f":"IF($A744=\"\",\"\",IF(ISERROR((F744+VLOOKUP($A744,Economática!$A$3:$AI$823,26,FALSE))/Y744),(F744+VLOOKUP($A744,Economática!$A$3:$AI$823,26,FALSE))/Y744,(F744+VLOOKUP($A744,Economática!$A$3:$AI$823,26,FALSE))/Y744))","v":""},{"$f":"IF($A744=\"\",\"\",IF(OR(-VLOOKUP($A744,Economática!$A$3:$AI$823,27,FALSE)=0,-VLOOKUP($A744,Economática!$A$3:$AI$823,27,FALSE)=\"-\"),1/0,-VLOOKUP($A744,Economática!$A$3:$AI$823,27,FALSE)))","v":""},"",{"$f":"IF($A744=\"\",\"\",IF(OR(VLOOKUP($A744,Economática!$A$3:$AI$823,28,FALSE)=0,VLOOKUP($A744,Economática!$A$3:$AI$823,28,FALSE)=\"-\"),1/0,VLOOKUP($A744,Economática!$A$3:$AI$823,28,FALSE)))","v":""},{"$f":"IF($A744=\"\",\"\",IF(OR(VLOOKUP($A744,Economática!$A$3:$AI$823,29,FALSE)=0,VLOOKUP($A744,Economática!$A$3:$AI$823,29,FALSE)=\"-\"),1/0,VLOOKUP($A744,Economática!$A$3:$AI$823,29,FALSE)))","v":""},{"$f":"IF($A744=\"\",\"\",IF(OR(VLOOKUP($A744,Economática!$A$3:$AI$823,30,FALSE)/E744=0,VLOOKUP($A744,Economática!$A$3:$AI$823,30,FALSE)/E744=\"-\",VLOOKUP($A744,Economática!$A$3:$AI$823,30,FALSE)/E744<33.33%,VLOOKUP($A744,Economática!$A$3:$AI$823,30,FALSE)/E744>100%),1/0,VLOOKUP($A744,Economática!$A$3:$AI$823,30,FALSE)/E744))","v":""},"",{"$f":"IF($A744=\"\",\"\",IF(OR(VLOOKUP($A744,Economática!$A$3:$AI$823,25,FALSE)=0,VLOOKUP($A744,Economática!$A$3:$AI$823,25,FALSE)=\"-\"),1/0,VLOOKUP($A744,Economática!$A$3:$AI$823,25,FALSE)))","v":""},{"$f":"CONCATENATE(Economática!B722,\" \",Economática!C722)","v":" "}]
[{"$f":"IF(Economática!AG723=\"\",\"\",Economática!AG723)","v":""},{"$f":"IF($A745=\"\",\"\",VLOOKUP(VLOOKUP($A745,Economática!$A$3:$AI$823,6,FALSE),Correção!$B$16:$C$36,2,FALSE))","v":""},{"$f":"IF(Economática!B723=\"\",\"\",Economática!B723)","v":""},{"$f":"IF($A745=\"\",\"\",IF(OR(VLOOKUP($A745,Economática!$A$3:$AI$823,8,FALSE)=0,VLOOKUP($A745,Economática!$A$3:$AI$823,8,FALSE)=\"-\"),1/0,VLOOKUP($A745,Economática!$A$3:$AI$823,8,FALSE)))","v":""},{"$f":"IF(A745=\"\",\"\",IF(ISERROR(VLOOKUP(A745,Correção!$B$2:$G$13,9,FALSE)),VLOOKUP($A745,Economática!$A$3:$AI$823,9,FALSE),VLOOKUP(A745,Correção!$B$2:$G$13,9,FALSE)))","v":""},{"$f":"IF($A745=\"\",\"\",Economática!G723)","v":""},{"$f":"IF($A745=\"\",\"\",IF(OR(VLOOKUP($A745,Economática!$A$3:$AI$823,10,FALSE)=0,VLOOKUP($A745,Economática!$A$3:$AI$823,10,FALSE)=\"-\"),1/0,VLOOKUP($A745,Economática!$A$3:$AI$823,10,FALSE)))","v":""},{"$f":"IF($A745=\"\",\"\",IF(OR(VLOOKUP($A745,Economática!$A$3:$AI$823,11,FALSE)=0,VLOOKUP($A745,Economática!$A$3:$AI$823,11,FALSE)=\"-\"),1/0,VLOOKUP($A745,Economática!$A$3:$AI$823,11,FALSE)))","v":""},{"$f":"IF($A745=\"\",\"\",IF(OR(VLOOKUP($A745,Economática!$A$3:$AI$823,12,FALSE)=0,VLOOKUP($A745,Economática!$A$3:$AI$823,12,FALSE)=\"-\"),1/0,VLOOKUP($A745,Economática!$A$3:$AI$823,12,FALSE)))","v":""},{"$f":"IF($A745=\"\",\"\",IF(OR(VLOOKUP($A745,Economática!$A$3:$AI$823,13,FALSE)=0,VLOOKUP($A745,Economática!$A$3:$AI$823,13,FALSE)=\"-\"),1/0,VLOOKUP($A745,Economática!$A$3:$AI$823,13,FALSE)))","v":""},{"$f":"IF($A745=\"\",\"\",IF(OR(VLOOKUP($A745,Economática!$A$3:$AI$823,14,FALSE)=0,VLOOKUP($A745,Economática!$A$3:$AI$823,14,FALSE)=\"-\"),1/0,VLOOKUP($A745,Economática!$A$3:$AI$823,14,FALSE)))","v":""},{"$f":"IF($A745=\"\",\"\",IF(OR(VLOOKUP($A745,Economática!$A$3:$AI$823,15,FALSE)=0,VLOOKUP($A745,Economática!$A$3:$AI$823,15,FALSE)=\"-\"),1/0,VLOOKUP($A745,Economática!$A$3:$AI$823,15,FALSE)))","v":""},{"$f":"IF($A745=\"\",\"\",IF(OR(VLOOKUP($A745,Economática!$A$3:$AI$823,16,FALSE)=0,VLOOKUP($A745,Economática!$A$3:$AI$823,16,FALSE)=\"-\"),1/0,VLOOKUP($A745,Economática!$A$3:$AI$823,16,FALSE)))","v":""},{"$f":"IF($A745=\"\",\"\",IF(OR(VLOOKUP($A745,Economática!$A$3:$AI$823,17,FALSE)=0,VLOOKUP($A745,Economática!$A$3:$AI$823,17,FALSE)=\"-\"),1/0,VLOOKUP($A745,Economática!$A$3:$AI$823,17,FALSE)))","v":""},{"$f":"IF($A745=\"\",\"\",IF(OR(VLOOKUP($A745,Economática!$A$3:$AI$823,18,FALSE)=0,VLOOKUP($A745,Economática!$A$3:$AI$823,18,FALSE)=\"-\"),1/0,VLOOKUP($A745,Economática!$A$3:$AI$823,18,FALSE)))","v":""},{"$f":"IF($A745=\"\",\"\",IF(OR(VLOOKUP($A745,Economática!$A$3:$AI$823,19,FALSE)=0,VLOOKUP($A745,Economática!$A$3:$AI$823,19,FALSE)=\"-\"),1/0,VLOOKUP($A745,Economática!$A$3:$AI$823,19,FALSE)))","v":""},{"$f":"IF($A745=\"\",\"\",VLOOKUP($A745,Economática!$A$3:$AI$823,20,FALSE)/E745)","v":""},"","","",{"$f":"IF($A745=\"\",\"\",IF(OR(VLOOKUP($A745,Economática!$A$3:$AI$823,21,FALSE)/100=0,VLOOKUP($A745,Economática!$A$3:$AI$823,21,FALSE)/100=\"-\"),1/0,VLOOKUP($A745,Economática!$A$3:$AI$823,21,FALSE)/100))","v":""},{"$f":"IF($A745=\"\",\"\",IF(OR(VLOOKUP($A745,Economática!$A$3:$AI$823,22,FALSE)/100=0,VLOOKUP($A745,Economática!$A$3:$AI$823,22,FALSE)/100=\"-\"),1/0,VLOOKUP($A745,Economática!$A$3:$AI$823,22,FALSE)/100))","v":""},{"$f":"IF($A745=\"\",\"\",IF(OR(VLOOKUP($A745,Economática!$A$3:$AI$823,23,FALSE)=0,VLOOKUP($A745,Economática!$A$3:$AI$823,23,FALSE)=\"-\"),1/0,VLOOKUP($A745,Economática!$A$3:$AI$823,23,FALSE)))","v":""},{"$f":"IF($A745=\"\",\"\",IF(OR(VLOOKUP($A745,Economática!$A$3:$AI$823,24,FALSE)=0,VLOOKUP($A745,Economática!$A$3:$AI$823,24,FALSE)=\"-\"),1/0,VLOOKUP($A745,Economática!$A$3:$AI$823,24,FALSE)))","v":""},{"$f":"IF($A745=\"\",\"\",IF(OR(VLOOKUP($A745,Economática!$A$3:$AI$823,25,FALSE)=0,VLOOKUP($A745,Economática!$A$3:$AI$823,25,FALSE)=\"-\"),1/0,VLOOKUP($A745,Economática!$A$3:$AI$823,25,FALSE)))","v":""},{"$f":"IF($A745=\"\",\"\",IF(ISERROR((F745+VLOOKUP($A745,Economática!$A$3:$AI$823,26,FALSE))/Y745),(F745+VLOOKUP($A745,Economática!$A$3:$AI$823,26,FALSE))/Y745,(F745+VLOOKUP($A745,Economática!$A$3:$AI$823,26,FALSE))/Y745))","v":""},{"$f":"IF($A745=\"\",\"\",IF(OR(-VLOOKUP($A745,Economática!$A$3:$AI$823,27,FALSE)=0,-VLOOKUP($A745,Economática!$A$3:$AI$823,27,FALSE)=\"-\"),1/0,-VLOOKUP($A745,Economática!$A$3:$AI$823,27,FALSE)))","v":""},"",{"$f":"IF($A745=\"\",\"\",IF(OR(VLOOKUP($A745,Economática!$A$3:$AI$823,28,FALSE)=0,VLOOKUP($A745,Economática!$A$3:$AI$823,28,FALSE)=\"-\"),1/0,VLOOKUP($A745,Economática!$A$3:$AI$823,28,FALSE)))","v":""},{"$f":"IF($A745=\"\",\"\",IF(OR(VLOOKUP($A745,Economática!$A$3:$AI$823,29,FALSE)=0,VLOOKUP($A745,Economática!$A$3:$AI$823,29,FALSE)=\"-\"),1/0,VLOOKUP($A745,Economática!$A$3:$AI$823,29,FALSE)))","v":""},{"$f":"IF($A745=\"\",\"\",IF(OR(VLOOKUP($A745,Economática!$A$3:$AI$823,30,FALSE)/E745=0,VLOOKUP($A745,Economática!$A$3:$AI$823,30,FALSE)/E745=\"-\",VLOOKUP($A745,Economática!$A$3:$AI$823,30,FALSE)/E745<33.33%,VLOOKUP($A745,Economática!$A$3:$AI$823,30,FALSE)/E745>100%),1/0,VLOOKUP($A745,Economática!$A$3:$AI$823,30,FALSE)/E745))","v":""},"",{"$f":"IF($A745=\"\",\"\",IF(OR(VLOOKUP($A745,Economática!$A$3:$AI$823,25,FALSE)=0,VLOOKUP($A745,Economática!$A$3:$AI$823,25,FALSE)=\"-\"),1/0,VLOOKUP($A745,Economática!$A$3:$AI$823,25,FALSE)))","v":""},{"$f":"CONCATENATE(Economática!B723,\" \",Economática!C723)","v":" "}]
[{"$f":"IF(Economática!AG724=\"\",\"\",Economática!AG724)","v":""},{"$f":"IF($A746=\"\",\"\",VLOOKUP(VLOOKUP($A746,Economática!$A$3:$AI$823,6,FALSE),Correção!$B$16:$C$36,2,FALSE))","v":""},{"$f":"IF(Economática!B724=\"\",\"\",Economática!B724)","v":""},{"$f":"IF($A746=\"\",\"\",IF(OR(VLOOKUP($A746,Economática!$A$3:$AI$823,8,FALSE)=0,VLOOKUP($A746,Economática!$A$3:$AI$823,8,FALSE)=\"-\"),1/0,VLOOKUP($A746,Economática!$A$3:$AI$823,8,FALSE)))","v":""},{"$f":"IF(A746=\"\",\"\",IF(ISERROR(VLOOKUP(A746,Correção!$B$2:$G$13,9,FALSE)),VLOOKUP($A746,Economática!$A$3:$AI$823,9,FALSE),VLOOKUP(A746,Correção!$B$2:$G$13,9,FALSE)))","v":""},{"$f":"IF($A746=\"\",\"\",Economática!G724)","v":""},{"$f":"IF($A746=\"\",\"\",IF(OR(VLOOKUP($A746,Economática!$A$3:$AI$823,10,FALSE)=0,VLOOKUP($A746,Economática!$A$3:$AI$823,10,FALSE)=\"-\"),1/0,VLOOKUP($A746,Economática!$A$3:$AI$823,10,FALSE)))","v":""},{"$f":"IF($A746=\"\",\"\",IF(OR(VLOOKUP($A746,Economática!$A$3:$AI$823,11,FALSE)=0,VLOOKUP($A746,Economática!$A$3:$AI$823,11,FALSE)=\"-\"),1/0,VLOOKUP($A746,Economática!$A$3:$AI$823,11,FALSE)))","v":""},{"$f":"IF($A746=\"\",\"\",IF(OR(VLOOKUP($A746,Economática!$A$3:$AI$823,12,FALSE)=0,VLOOKUP($A746,Economática!$A$3:$AI$823,12,FALSE)=\"-\"),1/0,VLOOKUP($A746,Economática!$A$3:$AI$823,12,FALSE)))","v":""},{"$f":"IF($A746=\"\",\"\",IF(OR(VLOOKUP($A746,Economática!$A$3:$AI$823,13,FALSE)=0,VLOOKUP($A746,Economática!$A$3:$AI$823,13,FALSE)=\"-\"),1/0,VLOOKUP($A746,Economática!$A$3:$AI$823,13,FALSE)))","v":""},{"$f":"IF($A746=\"\",\"\",IF(OR(VLOOKUP($A746,Economática!$A$3:$AI$823,14,FALSE)=0,VLOOKUP($A746,Economática!$A$3:$AI$823,14,FALSE)=\"-\"),1/0,VLOOKUP($A746,Economática!$A$3:$AI$823,14,FALSE)))","v":""},{"$f":"IF($A746=\"\",\"\",IF(OR(VLOOKUP($A746,Economática!$A$3:$AI$823,15,FALSE)=0,VLOOKUP($A746,Economática!$A$3:$AI$823,15,FALSE)=\"-\"),1/0,VLOOKUP($A746,Economática!$A$3:$AI$823,15,FALSE)))","v":""},{"$f":"IF($A746=\"\",\"\",IF(OR(VLOOKUP($A746,Economática!$A$3:$AI$823,16,FALSE)=0,VLOOKUP($A746,Economática!$A$3:$AI$823,16,FALSE)=\"-\"),1/0,VLOOKUP($A746,Economática!$A$3:$AI$823,16,FALSE)))","v":""},{"$f":"IF($A746=\"\",\"\",IF(OR(VLOOKUP($A746,Economática!$A$3:$AI$823,17,FALSE)=0,VLOOKUP($A746,Economática!$A$3:$AI$823,17,FALSE)=\"-\"),1/0,VLOOKUP($A746,Economática!$A$3:$AI$823,17,FALSE)))","v":""},{"$f":"IF($A746=\"\",\"\",IF(OR(VLOOKUP($A746,Economática!$A$3:$AI$823,18,FALSE)=0,VLOOKUP($A746,Economática!$A$3:$AI$823,18,FALSE)=\"-\"),1/0,VLOOKUP($A746,Economática!$A$3:$AI$823,18,FALSE)))","v":""},{"$f":"IF($A746=\"\",\"\",IF(OR(VLOOKUP($A746,Economática!$A$3:$AI$823,19,FALSE)=0,VLOOKUP($A746,Economática!$A$3:$AI$823,19,FALSE)=\"-\"),1/0,VLOOKUP($A746,Economática!$A$3:$AI$823,19,FALSE)))","v":""},{"$f":"IF($A746=\"\",\"\",VLOOKUP($A746,Economática!$A$3:$AI$823,20,FALSE)/E746)","v":""},"","","",{"$f":"IF($A746=\"\",\"\",IF(OR(VLOOKUP($A746,Economática!$A$3:$AI$823,21,FALSE)/100=0,VLOOKUP($A746,Economática!$A$3:$AI$823,21,FALSE)/100=\"-\"),1/0,VLOOKUP($A746,Economática!$A$3:$AI$823,21,FALSE)/100))","v":""},{"$f":"IF($A746=\"\",\"\",IF(OR(VLOOKUP($A746,Economática!$A$3:$AI$823,22,FALSE)/100=0,VLOOKUP($A746,Economática!$A$3:$AI$823,22,FALSE)/100=\"-\"),1/0,VLOOKUP($A746,Economática!$A$3:$AI$823,22,FALSE)/100))","v":""},{"$f":"IF($A746=\"\",\"\",IF(OR(VLOOKUP($A746,Economática!$A$3:$AI$823,23,FALSE)=0,VLOOKUP($A746,Economática!$A$3:$AI$823,23,FALSE)=\"-\"),1/0,VLOOKUP($A746,Economática!$A$3:$AI$823,23,FALSE)))","v":""},{"$f":"IF($A746=\"\",\"\",IF(OR(VLOOKUP($A746,Economática!$A$3:$AI$823,24,FALSE)=0,VLOOKUP($A746,Economática!$A$3:$AI$823,24,FALSE)=\"-\"),1/0,VLOOKUP($A746,Economática!$A$3:$AI$823,24,FALSE)))","v":""},{"$f":"IF($A746=\"\",\"\",IF(OR(VLOOKUP($A746,Economática!$A$3:$AI$823,25,FALSE)=0,VLOOKUP($A746,Economática!$A$3:$AI$823,25,FALSE)=\"-\"),1/0,VLOOKUP($A746,Economática!$A$3:$AI$823,25,FALSE)))","v":""},{"$f":"IF($A746=\"\",\"\",IF(ISERROR((F746+VLOOKUP($A746,Economática!$A$3:$AI$823,26,FALSE))/Y746),(F746+VLOOKUP($A746,Economática!$A$3:$AI$823,26,FALSE))/Y746,(F746+VLOOKUP($A746,Economática!$A$3:$AI$823,26,FALSE))/Y746))","v":""},{"$f":"IF($A746=\"\",\"\",IF(OR(-VLOOKUP($A746,Economática!$A$3:$AI$823,27,FALSE)=0,-VLOOKUP($A746,Economática!$A$3:$AI$823,27,FALSE)=\"-\"),1/0,-VLOOKUP($A746,Economática!$A$3:$AI$823,27,FALSE)))","v":""},"",{"$f":"IF($A746=\"\",\"\",IF(OR(VLOOKUP($A746,Economática!$A$3:$AI$823,28,FALSE)=0,VLOOKUP($A746,Economática!$A$3:$AI$823,28,FALSE)=\"-\"),1/0,VLOOKUP($A746,Economática!$A$3:$AI$823,28,FALSE)))","v":""},{"$f":"IF($A746=\"\",\"\",IF(OR(VLOOKUP($A746,Economática!$A$3:$AI$823,29,FALSE)=0,VLOOKUP($A746,Economática!$A$3:$AI$823,29,FALSE)=\"-\"),1/0,VLOOKUP($A746,Economática!$A$3:$AI$823,29,FALSE)))","v":""},{"$f":"IF($A746=\"\",\"\",IF(OR(VLOOKUP($A746,Economática!$A$3:$AI$823,30,FALSE)/E746=0,VLOOKUP($A746,Economática!$A$3:$AI$823,30,FALSE)/E746=\"-\",VLOOKUP($A746,Economática!$A$3:$AI$823,30,FALSE)/E746<33.33%,VLOOKUP($A746,Economática!$A$3:$AI$823,30,FALSE)/E746>100%),1/0,VLOOKUP($A746,Economática!$A$3:$AI$823,30,FALSE)/E746))","v":""},"",{"$f":"IF($A746=\"\",\"\",IF(OR(VLOOKUP($A746,Economática!$A$3:$AI$823,25,FALSE)=0,VLOOKUP($A746,Economática!$A$3:$AI$823,25,FALSE)=\"-\"),1/0,VLOOKUP($A746,Economática!$A$3:$AI$823,25,FALSE)))","v":""},{"$f":"CONCATENATE(Economática!B724,\" \",Economática!C724)","v":" "}]
[{"$f":"IF(Economática!AG725=\"\",\"\",Economática!AG725)","v":""},{"$f":"IF($A747=\"\",\"\",VLOOKUP(VLOOKUP($A747,Economática!$A$3:$AI$823,6,FALSE),Correção!$B$16:$C$36,2,FALSE))","v":""},{"$f":"IF(Economática!B725=\"\",\"\",Economática!B725)","v":""},{"$f":"IF($A747=\"\",\"\",IF(OR(VLOOKUP($A747,Economática!$A$3:$AI$823,8,FALSE)=0,VLOOKUP($A747,Economática!$A$3:$AI$823,8,FALSE)=\"-\"),1/0,VLOOKUP($A747,Economática!$A$3:$AI$823,8,FALSE)))","v":""},{"$f":"IF(A747=\"\",\"\",IF(ISERROR(VLOOKUP(A747,Correção!$B$2:$G$13,9,FALSE)),VLOOKUP($A747,Economática!$A$3:$AI$823,9,FALSE),VLOOKUP(A747,Correção!$B$2:$G$13,9,FALSE)))","v":""},{"$f":"IF($A747=\"\",\"\",Economática!G725)","v":""},{"$f":"IF($A747=\"\",\"\",IF(OR(VLOOKUP($A747,Economática!$A$3:$AI$823,10,FALSE)=0,VLOOKUP($A747,Economática!$A$3:$AI$823,10,FALSE)=\"-\"),1/0,VLOOKUP($A747,Economática!$A$3:$AI$823,10,FALSE)))","v":""},{"$f":"IF($A747=\"\",\"\",IF(OR(VLOOKUP($A747,Economática!$A$3:$AI$823,11,FALSE)=0,VLOOKUP($A747,Economática!$A$3:$AI$823,11,FALSE)=\"-\"),1/0,VLOOKUP($A747,Economática!$A$3:$AI$823,11,FALSE)))","v":""},{"$f":"IF($A747=\"\",\"\",IF(OR(VLOOKUP($A747,Economática!$A$3:$AI$823,12,FALSE)=0,VLOOKUP($A747,Economática!$A$3:$AI$823,12,FALSE)=\"-\"),1/0,VLOOKUP($A747,Economática!$A$3:$AI$823,12,FALSE)))","v":""},{"$f":"IF($A747=\"\",\"\",IF(OR(VLOOKUP($A747,Economática!$A$3:$AI$823,13,FALSE)=0,VLOOKUP($A747,Economática!$A$3:$AI$823,13,FALSE)=\"-\"),1/0,VLOOKUP($A747,Economática!$A$3:$AI$823,13,FALSE)))","v":""},{"$f":"IF($A747=\"\",\"\",IF(OR(VLOOKUP($A747,Economática!$A$3:$AI$823,14,FALSE)=0,VLOOKUP($A747,Economática!$A$3:$AI$823,14,FALSE)=\"-\"),1/0,VLOOKUP($A747,Economática!$A$3:$AI$823,14,FALSE)))","v":""},{"$f":"IF($A747=\"\",\"\",IF(OR(VLOOKUP($A747,Economática!$A$3:$AI$823,15,FALSE)=0,VLOOKUP($A747,Economática!$A$3:$AI$823,15,FALSE)=\"-\"),1/0,VLOOKUP($A747,Economática!$A$3:$AI$823,15,FALSE)))","v":""},{"$f":"IF($A747=\"\",\"\",IF(OR(VLOOKUP($A747,Economática!$A$3:$AI$823,16,FALSE)=0,VLOOKUP($A747,Economática!$A$3:$AI$823,16,FALSE)=\"-\"),1/0,VLOOKUP($A747,Economática!$A$3:$AI$823,16,FALSE)))","v":""},{"$f":"IF($A747=\"\",\"\",IF(OR(VLOOKUP($A747,Economática!$A$3:$AI$823,17,FALSE)=0,VLOOKUP($A747,Economática!$A$3:$AI$823,17,FALSE)=\"-\"),1/0,VLOOKUP($A747,Economática!$A$3:$AI$823,17,FALSE)))","v":""},{"$f":"IF($A747=\"\",\"\",IF(OR(VLOOKUP($A747,Economática!$A$3:$AI$823,18,FALSE)=0,VLOOKUP($A747,Economática!$A$3:$AI$823,18,FALSE)=\"-\"),1/0,VLOOKUP($A747,Economática!$A$3:$AI$823,18,FALSE)))","v":""},{"$f":"IF($A747=\"\",\"\",IF(OR(VLOOKUP($A747,Economática!$A$3:$AI$823,19,FALSE)=0,VLOOKUP($A747,Economática!$A$3:$AI$823,19,FALSE)=\"-\"),1/0,VLOOKUP($A747,Economática!$A$3:$AI$823,19,FALSE)))","v":""},{"$f":"IF($A747=\"\",\"\",VLOOKUP($A747,Economática!$A$3:$AI$823,20,FALSE)/E747)","v":""},"","","",{"$f":"IF($A747=\"\",\"\",IF(OR(VLOOKUP($A747,Economática!$A$3:$AI$823,21,FALSE)/100=0,VLOOKUP($A747,Economática!$A$3:$AI$823,21,FALSE)/100=\"-\"),1/0,VLOOKUP($A747,Economática!$A$3:$AI$823,21,FALSE)/100))","v":""},{"$f":"IF($A747=\"\",\"\",IF(OR(VLOOKUP($A747,Economática!$A$3:$AI$823,22,FALSE)/100=0,VLOOKUP($A747,Economática!$A$3:$AI$823,22,FALSE)/100=\"-\"),1/0,VLOOKUP($A747,Economática!$A$3:$AI$823,22,FALSE)/100))","v":""},{"$f":"IF($A747=\"\",\"\",IF(OR(VLOOKUP($A747,Economática!$A$3:$AI$823,23,FALSE)=0,VLOOKUP($A747,Economática!$A$3:$AI$823,23,FALSE)=\"-\"),1/0,VLOOKUP($A747,Economática!$A$3:$AI$823,23,FALSE)))","v":""},{"$f":"IF($A747=\"\",\"\",IF(OR(VLOOKUP($A747,Economática!$A$3:$AI$823,24,FALSE)=0,VLOOKUP($A747,Economática!$A$3:$AI$823,24,FALSE)=\"-\"),1/0,VLOOKUP($A747,Economática!$A$3:$AI$823,24,FALSE)))","v":""},{"$f":"IF($A747=\"\",\"\",IF(OR(VLOOKUP($A747,Economática!$A$3:$AI$823,25,FALSE)=0,VLOOKUP($A747,Economática!$A$3:$AI$823,25,FALSE)=\"-\"),1/0,VLOOKUP($A747,Economática!$A$3:$AI$823,25,FALSE)))","v":""},{"$f":"IF($A747=\"\",\"\",IF(ISERROR((F747+VLOOKUP($A747,Economática!$A$3:$AI$823,26,FALSE))/Y747),(F747+VLOOKUP($A747,Economática!$A$3:$AI$823,26,FALSE))/Y747,(F747+VLOOKUP($A747,Economática!$A$3:$AI$823,26,FALSE))/Y747))","v":""},{"$f":"IF($A747=\"\",\"\",IF(OR(-VLOOKUP($A747,Economática!$A$3:$AI$823,27,FALSE)=0,-VLOOKUP($A747,Economática!$A$3:$AI$823,27,FALSE)=\"-\"),1/0,-VLOOKUP($A747,Economática!$A$3:$AI$823,27,FALSE)))","v":""},"",{"$f":"IF($A747=\"\",\"\",IF(OR(VLOOKUP($A747,Economática!$A$3:$AI$823,28,FALSE)=0,VLOOKUP($A747,Economática!$A$3:$AI$823,28,FALSE)=\"-\"),1/0,VLOOKUP($A747,Economática!$A$3:$AI$823,28,FALSE)))","v":""},{"$f":"IF($A747=\"\",\"\",IF(OR(VLOOKUP($A747,Economática!$A$3:$AI$823,29,FALSE)=0,VLOOKUP($A747,Economática!$A$3:$AI$823,29,FALSE)=\"-\"),1/0,VLOOKUP($A747,Economática!$A$3:$AI$823,29,FALSE)))","v":""},{"$f":"IF($A747=\"\",\"\",IF(OR(VLOOKUP($A747,Economática!$A$3:$AI$823,30,FALSE)/E747=0,VLOOKUP($A747,Economática!$A$3:$AI$823,30,FALSE)/E747=\"-\",VLOOKUP($A747,Economática!$A$3:$AI$823,30,FALSE)/E747<33.33%,VLOOKUP($A747,Economática!$A$3:$AI$823,30,FALSE)/E747>100%),1/0,VLOOKUP($A747,Economática!$A$3:$AI$823,30,FALSE)/E747))","v":""},"",{"$f":"IF($A747=\"\",\"\",IF(OR(VLOOKUP($A747,Economática!$A$3:$AI$823,25,FALSE)=0,VLOOKUP($A747,Economática!$A$3:$AI$823,25,FALSE)=\"-\"),1/0,VLOOKUP($A747,Economática!$A$3:$AI$823,25,FALSE)))","v":""},{"$f":"CONCATENATE(Economática!B725,\" \",Economática!C725)","v":" "}]
[{"$f":"IF(Economática!AG726=\"\",\"\",Economática!AG726)","v":""},{"$f":"IF($A748=\"\",\"\",VLOOKUP(VLOOKUP($A748,Economática!$A$3:$AI$823,6,FALSE),Correção!$B$16:$C$36,2,FALSE))","v":""},{"$f":"IF(Economática!B726=\"\",\"\",Economática!B726)","v":""},{"$f":"IF($A748=\"\",\"\",IF(OR(VLOOKUP($A748,Economática!$A$3:$AI$823,8,FALSE)=0,VLOOKUP($A748,Economática!$A$3:$AI$823,8,FALSE)=\"-\"),1/0,VLOOKUP($A748,Economática!$A$3:$AI$823,8,FALSE)))","v":""},{"$f":"IF(A748=\"\",\"\",IF(ISERROR(VLOOKUP(A748,Correção!$B$2:$G$13,9,FALSE)),VLOOKUP($A748,Economática!$A$3:$AI$823,9,FALSE),VLOOKUP(A748,Correção!$B$2:$G$13,9,FALSE)))","v":""},{"$f":"IF($A748=\"\",\"\",Economática!G726)","v":""},{"$f":"IF($A748=\"\",\"\",IF(OR(VLOOKUP($A748,Economática!$A$3:$AI$823,10,FALSE)=0,VLOOKUP($A748,Economática!$A$3:$AI$823,10,FALSE)=\"-\"),1/0,VLOOKUP($A748,Economática!$A$3:$AI$823,10,FALSE)))","v":""},{"$f":"IF($A748=\"\",\"\",IF(OR(VLOOKUP($A748,Economática!$A$3:$AI$823,11,FALSE)=0,VLOOKUP($A748,Economática!$A$3:$AI$823,11,FALSE)=\"-\"),1/0,VLOOKUP($A748,Economática!$A$3:$AI$823,11,FALSE)))","v":""},{"$f":"IF($A748=\"\",\"\",IF(OR(VLOOKUP($A748,Economática!$A$3:$AI$823,12,FALSE)=0,VLOOKUP($A748,Economática!$A$3:$AI$823,12,FALSE)=\"-\"),1/0,VLOOKUP($A748,Economática!$A$3:$AI$823,12,FALSE)))","v":""},{"$f":"IF($A748=\"\",\"\",IF(OR(VLOOKUP($A748,Economática!$A$3:$AI$823,13,FALSE)=0,VLOOKUP($A748,Economática!$A$3:$AI$823,13,FALSE)=\"-\"),1/0,VLOOKUP($A748,Economática!$A$3:$AI$823,13,FALSE)))","v":""},{"$f":"IF($A748=\"\",\"\",IF(OR(VLOOKUP($A748,Economática!$A$3:$AI$823,14,FALSE)=0,VLOOKUP($A748,Economática!$A$3:$AI$823,14,FALSE)=\"-\"),1/0,VLOOKUP($A748,Economática!$A$3:$AI$823,14,FALSE)))","v":""},{"$f":"IF($A748=\"\",\"\",IF(OR(VLOOKUP($A748,Economática!$A$3:$AI$823,15,FALSE)=0,VLOOKUP($A748,Economática!$A$3:$AI$823,15,FALSE)=\"-\"),1/0,VLOOKUP($A748,Economática!$A$3:$AI$823,15,FALSE)))","v":""},{"$f":"IF($A748=\"\",\"\",IF(OR(VLOOKUP($A748,Economática!$A$3:$AI$823,16,FALSE)=0,VLOOKUP($A748,Economática!$A$3:$AI$823,16,FALSE)=\"-\"),1/0,VLOOKUP($A748,Economática!$A$3:$AI$823,16,FALSE)))","v":""},{"$f":"IF($A748=\"\",\"\",IF(OR(VLOOKUP($A748,Economática!$A$3:$AI$823,17,FALSE)=0,VLOOKUP($A748,Economática!$A$3:$AI$823,17,FALSE)=\"-\"),1/0,VLOOKUP($A748,Economática!$A$3:$AI$823,17,FALSE)))","v":""},{"$f":"IF($A748=\"\",\"\",IF(OR(VLOOKUP($A748,Economática!$A$3:$AI$823,18,FALSE)=0,VLOOKUP($A748,Economática!$A$3:$AI$823,18,FALSE)=\"-\"),1/0,VLOOKUP($A748,Economática!$A$3:$AI$823,18,FALSE)))","v":""},{"$f":"IF($A748=\"\",\"\",IF(OR(VLOOKUP($A748,Economática!$A$3:$AI$823,19,FALSE)=0,VLOOKUP($A748,Economática!$A$3:$AI$823,19,FALSE)=\"-\"),1/0,VLOOKUP($A748,Economática!$A$3:$AI$823,19,FALSE)))","v":""},{"$f":"IF($A748=\"\",\"\",VLOOKUP($A748,Economática!$A$3:$AI$823,20,FALSE)/E748)","v":""},"","","",{"$f":"IF($A748=\"\",\"\",IF(OR(VLOOKUP($A748,Economática!$A$3:$AI$823,21,FALSE)/100=0,VLOOKUP($A748,Economática!$A$3:$AI$823,21,FALSE)/100=\"-\"),1/0,VLOOKUP($A748,Economática!$A$3:$AI$823,21,FALSE)/100))","v":""},{"$f":"IF($A748=\"\",\"\",IF(OR(VLOOKUP($A748,Economática!$A$3:$AI$823,22,FALSE)/100=0,VLOOKUP($A748,Economática!$A$3:$AI$823,22,FALSE)/100=\"-\"),1/0,VLOOKUP($A748,Economática!$A$3:$AI$823,22,FALSE)/100))","v":""},{"$f":"IF($A748=\"\",\"\",IF(OR(VLOOKUP($A748,Economática!$A$3:$AI$823,23,FALSE)=0,VLOOKUP($A748,Economática!$A$3:$AI$823,23,FALSE)=\"-\"),1/0,VLOOKUP($A748,Economática!$A$3:$AI$823,23,FALSE)))","v":""},{"$f":"IF($A748=\"\",\"\",IF(OR(VLOOKUP($A748,Economática!$A$3:$AI$823,24,FALSE)=0,VLOOKUP($A748,Economática!$A$3:$AI$823,24,FALSE)=\"-\"),1/0,VLOOKUP($A748,Economática!$A$3:$AI$823,24,FALSE)))","v":""},{"$f":"IF($A748=\"\",\"\",IF(OR(VLOOKUP($A748,Economática!$A$3:$AI$823,25,FALSE)=0,VLOOKUP($A748,Economática!$A$3:$AI$823,25,FALSE)=\"-\"),1/0,VLOOKUP($A748,Economática!$A$3:$AI$823,25,FALSE)))","v":""},{"$f":"IF($A748=\"\",\"\",IF(ISERROR((F748+VLOOKUP($A748,Economática!$A$3:$AI$823,26,FALSE))/Y748),(F748+VLOOKUP($A748,Economática!$A$3:$AI$823,26,FALSE))/Y748,(F748+VLOOKUP($A748,Economática!$A$3:$AI$823,26,FALSE))/Y748))","v":""},{"$f":"IF($A748=\"\",\"\",IF(OR(-VLOOKUP($A748,Economática!$A$3:$AI$823,27,FALSE)=0,-VLOOKUP($A748,Economática!$A$3:$AI$823,27,FALSE)=\"-\"),1/0,-VLOOKUP($A748,Economática!$A$3:$AI$823,27,FALSE)))","v":""},"",{"$f":"IF($A748=\"\",\"\",IF(OR(VLOOKUP($A748,Economática!$A$3:$AI$823,28,FALSE)=0,VLOOKUP($A748,Economática!$A$3:$AI$823,28,FALSE)=\"-\"),1/0,VLOOKUP($A748,Economática!$A$3:$AI$823,28,FALSE)))","v":""},{"$f":"IF($A748=\"\",\"\",IF(OR(VLOOKUP($A748,Economática!$A$3:$AI$823,29,FALSE)=0,VLOOKUP($A748,Economática!$A$3:$AI$823,29,FALSE)=\"-\"),1/0,VLOOKUP($A748,Economática!$A$3:$AI$823,29,FALSE)))","v":""},{"$f":"IF($A748=\"\",\"\",IF(OR(VLOOKUP($A748,Economática!$A$3:$AI$823,30,FALSE)/E748=0,VLOOKUP($A748,Economática!$A$3:$AI$823,30,FALSE)/E748=\"-\",VLOOKUP($A748,Economática!$A$3:$AI$823,30,FALSE)/E748<33.33%,VLOOKUP($A748,Economática!$A$3:$AI$823,30,FALSE)/E748>100%),1/0,VLOOKUP($A748,Economática!$A$3:$AI$823,30,FALSE)/E748))","v":""},"",{"$f":"IF($A748=\"\",\"\",IF(OR(VLOOKUP($A748,Economática!$A$3:$AI$823,25,FALSE)=0,VLOOKUP($A748,Economática!$A$3:$AI$823,25,FALSE)=\"-\"),1/0,VLOOKUP($A748,Economática!$A$3:$AI$823,25,FALSE)))","v":""},{"$f":"CONCATENATE(Economática!B726,\" \",Economática!C726)","v":" "}]
[{"$f":"IF(Economática!AG727=\"\",\"\",Economática!AG727)","v":""},{"$f":"IF($A749=\"\",\"\",VLOOKUP(VLOOKUP($A749,Economática!$A$3:$AI$823,6,FALSE),Correção!$B$16:$C$36,2,FALSE))","v":""},{"$f":"IF(Economática!B727=\"\",\"\",Economática!B727)","v":""},{"$f":"IF($A749=\"\",\"\",IF(OR(VLOOKUP($A749,Economática!$A$3:$AI$823,8,FALSE)=0,VLOOKUP($A749,Economática!$A$3:$AI$823,8,FALSE)=\"-\"),1/0,VLOOKUP($A749,Economática!$A$3:$AI$823,8,FALSE)))","v":""},{"$f":"IF(A749=\"\",\"\",IF(ISERROR(VLOOKUP(A749,Correção!$B$2:$G$13,9,FALSE)),VLOOKUP($A749,Economática!$A$3:$AI$823,9,FALSE),VLOOKUP(A749,Correção!$B$2:$G$13,9,FALSE)))","v":""},{"$f":"IF($A749=\"\",\"\",Economática!G727)","v":""},{"$f":"IF($A749=\"\",\"\",IF(OR(VLOOKUP($A749,Economática!$A$3:$AI$823,10,FALSE)=0,VLOOKUP($A749,Economática!$A$3:$AI$823,10,FALSE)=\"-\"),1/0,VLOOKUP($A749,Economática!$A$3:$AI$823,10,FALSE)))","v":""},{"$f":"IF($A749=\"\",\"\",IF(OR(VLOOKUP($A749,Economática!$A$3:$AI$823,11,FALSE)=0,VLOOKUP($A749,Economática!$A$3:$AI$823,11,FALSE)=\"-\"),1/0,VLOOKUP($A749,Economática!$A$3:$AI$823,11,FALSE)))","v":""},{"$f":"IF($A749=\"\",\"\",IF(OR(VLOOKUP($A749,Economática!$A$3:$AI$823,12,FALSE)=0,VLOOKUP($A749,Economática!$A$3:$AI$823,12,FALSE)=\"-\"),1/0,VLOOKUP($A749,Economática!$A$3:$AI$823,12,FALSE)))","v":""},{"$f":"IF($A749=\"\",\"\",IF(OR(VLOOKUP($A749,Economática!$A$3:$AI$823,13,FALSE)=0,VLOOKUP($A749,Economática!$A$3:$AI$823,13,FALSE)=\"-\"),1/0,VLOOKUP($A749,Economática!$A$3:$AI$823,13,FALSE)))","v":""},{"$f":"IF($A749=\"\",\"\",IF(OR(VLOOKUP($A749,Economática!$A$3:$AI$823,14,FALSE)=0,VLOOKUP($A749,Economática!$A$3:$AI$823,14,FALSE)=\"-\"),1/0,VLOOKUP($A749,Economática!$A$3:$AI$823,14,FALSE)))","v":""},{"$f":"IF($A749=\"\",\"\",IF(OR(VLOOKUP($A749,Economática!$A$3:$AI$823,15,FALSE)=0,VLOOKUP($A749,Economática!$A$3:$AI$823,15,FALSE)=\"-\"),1/0,VLOOKUP($A749,Economática!$A$3:$AI$823,15,FALSE)))","v":""},{"$f":"IF($A749=\"\",\"\",IF(OR(VLOOKUP($A749,Economática!$A$3:$AI$823,16,FALSE)=0,VLOOKUP($A749,Economática!$A$3:$AI$823,16,FALSE)=\"-\"),1/0,VLOOKUP($A749,Economática!$A$3:$AI$823,16,FALSE)))","v":""},{"$f":"IF($A749=\"\",\"\",IF(OR(VLOOKUP($A749,Economática!$A$3:$AI$823,17,FALSE)=0,VLOOKUP($A749,Economática!$A$3:$AI$823,17,FALSE)=\"-\"),1/0,VLOOKUP($A749,Economática!$A$3:$AI$823,17,FALSE)))","v":""},{"$f":"IF($A749=\"\",\"\",IF(OR(VLOOKUP($A749,Economática!$A$3:$AI$823,18,FALSE)=0,VLOOKUP($A749,Economática!$A$3:$AI$823,18,FALSE)=\"-\"),1/0,VLOOKUP($A749,Economática!$A$3:$AI$823,18,FALSE)))","v":""},{"$f":"IF($A749=\"\",\"\",IF(OR(VLOOKUP($A749,Economática!$A$3:$AI$823,19,FALSE)=0,VLOOKUP($A749,Economática!$A$3:$AI$823,19,FALSE)=\"-\"),1/0,VLOOKUP($A749,Economática!$A$3:$AI$823,19,FALSE)))","v":""},{"$f":"IF($A749=\"\",\"\",VLOOKUP($A749,Economática!$A$3:$AI$823,20,FALSE)/E749)","v":""},"","","",{"$f":"IF($A749=\"\",\"\",IF(OR(VLOOKUP($A749,Economática!$A$3:$AI$823,21,FALSE)/100=0,VLOOKUP($A749,Economática!$A$3:$AI$823,21,FALSE)/100=\"-\"),1/0,VLOOKUP($A749,Economática!$A$3:$AI$823,21,FALSE)/100))","v":""},{"$f":"IF($A749=\"\",\"\",IF(OR(VLOOKUP($A749,Economática!$A$3:$AI$823,22,FALSE)/100=0,VLOOKUP($A749,Economática!$A$3:$AI$823,22,FALSE)/100=\"-\"),1/0,VLOOKUP($A749,Economática!$A$3:$AI$823,22,FALSE)/100))","v":""},{"$f":"IF($A749=\"\",\"\",IF(OR(VLOOKUP($A749,Economática!$A$3:$AI$823,23,FALSE)=0,VLOOKUP($A749,Economática!$A$3:$AI$823,23,FALSE)=\"-\"),1/0,VLOOKUP($A749,Economática!$A$3:$AI$823,23,FALSE)))","v":""},{"$f":"IF($A749=\"\",\"\",IF(OR(VLOOKUP($A749,Economática!$A$3:$AI$823,24,FALSE)=0,VLOOKUP($A749,Economática!$A$3:$AI$823,24,FALSE)=\"-\"),1/0,VLOOKUP($A749,Economática!$A$3:$AI$823,24,FALSE)))","v":""},{"$f":"IF($A749=\"\",\"\",IF(OR(VLOOKUP($A749,Economática!$A$3:$AI$823,25,FALSE)=0,VLOOKUP($A749,Economática!$A$3:$AI$823,25,FALSE)=\"-\"),1/0,VLOOKUP($A749,Economática!$A$3:$AI$823,25,FALSE)))","v":""},{"$f":"IF($A749=\"\",\"\",IF(ISERROR((F749+VLOOKUP($A749,Economática!$A$3:$AI$823,26,FALSE))/Y749),(F749+VLOOKUP($A749,Economática!$A$3:$AI$823,26,FALSE))/Y749,(F749+VLOOKUP($A749,Economática!$A$3:$AI$823,26,FALSE))/Y749))","v":""},{"$f":"IF($A749=\"\",\"\",IF(OR(-VLOOKUP($A749,Economática!$A$3:$AI$823,27,FALSE)=0,-VLOOKUP($A749,Economática!$A$3:$AI$823,27,FALSE)=\"-\"),1/0,-VLOOKUP($A749,Economática!$A$3:$AI$823,27,FALSE)))","v":""},"",{"$f":"IF($A749=\"\",\"\",IF(OR(VLOOKUP($A749,Economática!$A$3:$AI$823,28,FALSE)=0,VLOOKUP($A749,Economática!$A$3:$AI$823,28,FALSE)=\"-\"),1/0,VLOOKUP($A749,Economática!$A$3:$AI$823,28,FALSE)))","v":""},{"$f":"IF($A749=\"\",\"\",IF(OR(VLOOKUP($A749,Economática!$A$3:$AI$823,29,FALSE)=0,VLOOKUP($A749,Economática!$A$3:$AI$823,29,FALSE)=\"-\"),1/0,VLOOKUP($A749,Economática!$A$3:$AI$823,29,FALSE)))","v":""},{"$f":"IF($A749=\"\",\"\",IF(OR(VLOOKUP($A749,Economática!$A$3:$AI$823,30,FALSE)/E749=0,VLOOKUP($A749,Economática!$A$3:$AI$823,30,FALSE)/E749=\"-\",VLOOKUP($A749,Economática!$A$3:$AI$823,30,FALSE)/E749<33.33%,VLOOKUP($A749,Economática!$A$3:$AI$823,30,FALSE)/E749>100%),1/0,VLOOKUP($A749,Economática!$A$3:$AI$823,30,FALSE)/E749))","v":""},"",{"$f":"IF($A749=\"\",\"\",IF(OR(VLOOKUP($A749,Economática!$A$3:$AI$823,25,FALSE)=0,VLOOKUP($A749,Economática!$A$3:$AI$823,25,FALSE)=\"-\"),1/0,VLOOKUP($A749,Economática!$A$3:$AI$823,25,FALSE)))","v":""},{"$f":"CONCATENATE(Economática!B727,\" \",Economática!C727)","v":" "}]
[{"$f":"IF(Economática!AG728=\"\",\"\",Economática!AG728)","v":""},{"$f":"IF($A750=\"\",\"\",VLOOKUP(VLOOKUP($A750,Economática!$A$3:$AI$823,6,FALSE),Correção!$B$16:$C$36,2,FALSE))","v":""},{"$f":"IF(Economática!B728=\"\",\"\",Economática!B728)","v":""},{"$f":"IF($A750=\"\",\"\",IF(OR(VLOOKUP($A750,Economática!$A$3:$AI$823,8,FALSE)=0,VLOOKUP($A750,Economática!$A$3:$AI$823,8,FALSE)=\"-\"),1/0,VLOOKUP($A750,Economática!$A$3:$AI$823,8,FALSE)))","v":""},{"$f":"IF(A750=\"\",\"\",IF(ISERROR(VLOOKUP(A750,Correção!$B$2:$G$13,9,FALSE)),VLOOKUP($A750,Economática!$A$3:$AI$823,9,FALSE),VLOOKUP(A750,Correção!$B$2:$G$13,9,FALSE)))","v":""},{"$f":"IF($A750=\"\",\"\",Economática!G728)","v":""},{"$f":"IF($A750=\"\",\"\",IF(OR(VLOOKUP($A750,Economática!$A$3:$AI$823,10,FALSE)=0,VLOOKUP($A750,Economática!$A$3:$AI$823,10,FALSE)=\"-\"),1/0,VLOOKUP($A750,Economática!$A$3:$AI$823,10,FALSE)))","v":""},{"$f":"IF($A750=\"\",\"\",IF(OR(VLOOKUP($A750,Economática!$A$3:$AI$823,11,FALSE)=0,VLOOKUP($A750,Economática!$A$3:$AI$823,11,FALSE)=\"-\"),1/0,VLOOKUP($A750,Economática!$A$3:$AI$823,11,FALSE)))","v":""},{"$f":"IF($A750=\"\",\"\",IF(OR(VLOOKUP($A750,Economática!$A$3:$AI$823,12,FALSE)=0,VLOOKUP($A750,Economática!$A$3:$AI$823,12,FALSE)=\"-\"),1/0,VLOOKUP($A750,Economática!$A$3:$AI$823,12,FALSE)))","v":""},{"$f":"IF($A750=\"\",\"\",IF(OR(VLOOKUP($A750,Economática!$A$3:$AI$823,13,FALSE)=0,VLOOKUP($A750,Economática!$A$3:$AI$823,13,FALSE)=\"-\"),1/0,VLOOKUP($A750,Economática!$A$3:$AI$823,13,FALSE)))","v":""},{"$f":"IF($A750=\"\",\"\",IF(OR(VLOOKUP($A750,Economática!$A$3:$AI$823,14,FALSE)=0,VLOOKUP($A750,Economática!$A$3:$AI$823,14,FALSE)=\"-\"),1/0,VLOOKUP($A750,Economática!$A$3:$AI$823,14,FALSE)))","v":""},{"$f":"IF($A750=\"\",\"\",IF(OR(VLOOKUP($A750,Economática!$A$3:$AI$823,15,FALSE)=0,VLOOKUP($A750,Economática!$A$3:$AI$823,15,FALSE)=\"-\"),1/0,VLOOKUP($A750,Economática!$A$3:$AI$823,15,FALSE)))","v":""},{"$f":"IF($A750=\"\",\"\",IF(OR(VLOOKUP($A750,Economática!$A$3:$AI$823,16,FALSE)=0,VLOOKUP($A750,Economática!$A$3:$AI$823,16,FALSE)=\"-\"),1/0,VLOOKUP($A750,Economática!$A$3:$AI$823,16,FALSE)))","v":""},{"$f":"IF($A750=\"\",\"\",IF(OR(VLOOKUP($A750,Economática!$A$3:$AI$823,17,FALSE)=0,VLOOKUP($A750,Economática!$A$3:$AI$823,17,FALSE)=\"-\"),1/0,VLOOKUP($A750,Economática!$A$3:$AI$823,17,FALSE)))","v":""},{"$f":"IF($A750=\"\",\"\",IF(OR(VLOOKUP($A750,Economática!$A$3:$AI$823,18,FALSE)=0,VLOOKUP($A750,Economática!$A$3:$AI$823,18,FALSE)=\"-\"),1/0,VLOOKUP($A750,Economática!$A$3:$AI$823,18,FALSE)))","v":""},{"$f":"IF($A750=\"\",\"\",IF(OR(VLOOKUP($A750,Economática!$A$3:$AI$823,19,FALSE)=0,VLOOKUP($A750,Economática!$A$3:$AI$823,19,FALSE)=\"-\"),1/0,VLOOKUP($A750,Economática!$A$3:$AI$823,19,FALSE)))","v":""},{"$f":"IF($A750=\"\",\"\",VLOOKUP($A750,Economática!$A$3:$AI$823,20,FALSE)/E750)","v":""},"","","",{"$f":"IF($A750=\"\",\"\",IF(OR(VLOOKUP($A750,Economática!$A$3:$AI$823,21,FALSE)/100=0,VLOOKUP($A750,Economática!$A$3:$AI$823,21,FALSE)/100=\"-\"),1/0,VLOOKUP($A750,Economática!$A$3:$AI$823,21,FALSE)/100))","v":""},{"$f":"IF($A750=\"\",\"\",IF(OR(VLOOKUP($A750,Economática!$A$3:$AI$823,22,FALSE)/100=0,VLOOKUP($A750,Economática!$A$3:$AI$823,22,FALSE)/100=\"-\"),1/0,VLOOKUP($A750,Economática!$A$3:$AI$823,22,FALSE)/100))","v":""},{"$f":"IF($A750=\"\",\"\",IF(OR(VLOOKUP($A750,Economática!$A$3:$AI$823,23,FALSE)=0,VLOOKUP($A750,Economática!$A$3:$AI$823,23,FALSE)=\"-\"),1/0,VLOOKUP($A750,Economática!$A$3:$AI$823,23,FALSE)))","v":""},{"$f":"IF($A750=\"\",\"\",IF(OR(VLOOKUP($A750,Economática!$A$3:$AI$823,24,FALSE)=0,VLOOKUP($A750,Economática!$A$3:$AI$823,24,FALSE)=\"-\"),1/0,VLOOKUP($A750,Economática!$A$3:$AI$823,24,FALSE)))","v":""},{"$f":"IF($A750=\"\",\"\",IF(OR(VLOOKUP($A750,Economática!$A$3:$AI$823,25,FALSE)=0,VLOOKUP($A750,Economática!$A$3:$AI$823,25,FALSE)=\"-\"),1/0,VLOOKUP($A750,Economática!$A$3:$AI$823,25,FALSE)))","v":""},{"$f":"IF($A750=\"\",\"\",IF(ISERROR((F750+VLOOKUP($A750,Economática!$A$3:$AI$823,26,FALSE))/Y750),(F750+VLOOKUP($A750,Economática!$A$3:$AI$823,26,FALSE))/Y750,(F750+VLOOKUP($A750,Economática!$A$3:$AI$823,26,FALSE))/Y750))","v":""},{"$f":"IF($A750=\"\",\"\",IF(OR(-VLOOKUP($A750,Economática!$A$3:$AI$823,27,FALSE)=0,-VLOOKUP($A750,Economática!$A$3:$AI$823,27,FALSE)=\"-\"),1/0,-VLOOKUP($A750,Economática!$A$3:$AI$823,27,FALSE)))","v":""},"",{"$f":"IF($A750=\"\",\"\",IF(OR(VLOOKUP($A750,Economática!$A$3:$AI$823,28,FALSE)=0,VLOOKUP($A750,Economática!$A$3:$AI$823,28,FALSE)=\"-\"),1/0,VLOOKUP($A750,Economática!$A$3:$AI$823,28,FALSE)))","v":""},{"$f":"IF($A750=\"\",\"\",IF(OR(VLOOKUP($A750,Economática!$A$3:$AI$823,29,FALSE)=0,VLOOKUP($A750,Economática!$A$3:$AI$823,29,FALSE)=\"-\"),1/0,VLOOKUP($A750,Economática!$A$3:$AI$823,29,FALSE)))","v":""},{"$f":"IF($A750=\"\",\"\",IF(OR(VLOOKUP($A750,Economática!$A$3:$AI$823,30,FALSE)/E750=0,VLOOKUP($A750,Economática!$A$3:$AI$823,30,FALSE)/E750=\"-\",VLOOKUP($A750,Economática!$A$3:$AI$823,30,FALSE)/E750<33.33%,VLOOKUP($A750,Economática!$A$3:$AI$823,30,FALSE)/E750>100%),1/0,VLOOKUP($A750,Economática!$A$3:$AI$823,30,FALSE)/E750))","v":""},"",{"$f":"IF($A750=\"\",\"\",IF(OR(VLOOKUP($A750,Economática!$A$3:$AI$823,25,FALSE)=0,VLOOKUP($A750,Economática!$A$3:$AI$823,25,FALSE)=\"-\"),1/0,VLOOKUP($A750,Economática!$A$3:$AI$823,25,FALSE)))","v":""},{"$f":"CONCATENATE(Economática!B728,\" \",Economática!C728)","v":" "}]
[{"$f":"IF(Economática!AG729=\"\",\"\",Economática!AG729)","v":""},{"$f":"IF($A751=\"\",\"\",VLOOKUP(VLOOKUP($A751,Economática!$A$3:$AI$823,6,FALSE),Correção!$B$16:$C$36,2,FALSE))","v":""},{"$f":"IF(Economática!B729=\"\",\"\",Economática!B729)","v":""},{"$f":"IF($A751=\"\",\"\",IF(OR(VLOOKUP($A751,Economática!$A$3:$AI$823,8,FALSE)=0,VLOOKUP($A751,Economática!$A$3:$AI$823,8,FALSE)=\"-\"),1/0,VLOOKUP($A751,Economática!$A$3:$AI$823,8,FALSE)))","v":""},{"$f":"IF(A751=\"\",\"\",IF(ISERROR(VLOOKUP(A751,Correção!$B$2:$G$13,9,FALSE)),VLOOKUP($A751,Economática!$A$3:$AI$823,9,FALSE),VLOOKUP(A751,Correção!$B$2:$G$13,9,FALSE)))","v":""},{"$f":"IF($A751=\"\",\"\",Economática!G729)","v":""},{"$f":"IF($A751=\"\",\"\",IF(OR(VLOOKUP($A751,Economática!$A$3:$AI$823,10,FALSE)=0,VLOOKUP($A751,Economática!$A$3:$AI$823,10,FALSE)=\"-\"),1/0,VLOOKUP($A751,Economática!$A$3:$AI$823,10,FALSE)))","v":""},{"$f":"IF($A751=\"\",\"\",IF(OR(VLOOKUP($A751,Economática!$A$3:$AI$823,11,FALSE)=0,VLOOKUP($A751,Economática!$A$3:$AI$823,11,FALSE)=\"-\"),1/0,VLOOKUP($A751,Economática!$A$3:$AI$823,11,FALSE)))","v":""},{"$f":"IF($A751=\"\",\"\",IF(OR(VLOOKUP($A751,Economática!$A$3:$AI$823,12,FALSE)=0,VLOOKUP($A751,Economática!$A$3:$AI$823,12,FALSE)=\"-\"),1/0,VLOOKUP($A751,Economática!$A$3:$AI$823,12,FALSE)))","v":""},{"$f":"IF($A751=\"\",\"\",IF(OR(VLOOKUP($A751,Economática!$A$3:$AI$823,13,FALSE)=0,VLOOKUP($A751,Economática!$A$3:$AI$823,13,FALSE)=\"-\"),1/0,VLOOKUP($A751,Economática!$A$3:$AI$823,13,FALSE)))","v":""},{"$f":"IF($A751=\"\",\"\",IF(OR(VLOOKUP($A751,Economática!$A$3:$AI$823,14,FALSE)=0,VLOOKUP($A751,Economática!$A$3:$AI$823,14,FALSE)=\"-\"),1/0,VLOOKUP($A751,Economática!$A$3:$AI$823,14,FALSE)))","v":""},{"$f":"IF($A751=\"\",\"\",IF(OR(VLOOKUP($A751,Economática!$A$3:$AI$823,15,FALSE)=0,VLOOKUP($A751,Economática!$A$3:$AI$823,15,FALSE)=\"-\"),1/0,VLOOKUP($A751,Economática!$A$3:$AI$823,15,FALSE)))","v":""},{"$f":"IF($A751=\"\",\"\",IF(OR(VLOOKUP($A751,Economática!$A$3:$AI$823,16,FALSE)=0,VLOOKUP($A751,Economática!$A$3:$AI$823,16,FALSE)=\"-\"),1/0,VLOOKUP($A751,Economática!$A$3:$AI$823,16,FALSE)))","v":""},{"$f":"IF($A751=\"\",\"\",IF(OR(VLOOKUP($A751,Economática!$A$3:$AI$823,17,FALSE)=0,VLOOKUP($A751,Economática!$A$3:$AI$823,17,FALSE)=\"-\"),1/0,VLOOKUP($A751,Economática!$A$3:$AI$823,17,FALSE)))","v":""},{"$f":"IF($A751=\"\",\"\",IF(OR(VLOOKUP($A751,Economática!$A$3:$AI$823,18,FALSE)=0,VLOOKUP($A751,Economática!$A$3:$AI$823,18,FALSE)=\"-\"),1/0,VLOOKUP($A751,Economática!$A$3:$AI$823,18,FALSE)))","v":""},{"$f":"IF($A751=\"\",\"\",IF(OR(VLOOKUP($A751,Economática!$A$3:$AI$823,19,FALSE)=0,VLOOKUP($A751,Economática!$A$3:$AI$823,19,FALSE)=\"-\"),1/0,VLOOKUP($A751,Economática!$A$3:$AI$823,19,FALSE)))","v":""},{"$f":"IF($A751=\"\",\"\",VLOOKUP($A751,Economática!$A$3:$AI$823,20,FALSE)/E751)","v":""},"","","",{"$f":"IF($A751=\"\",\"\",IF(OR(VLOOKUP($A751,Economática!$A$3:$AI$823,21,FALSE)/100=0,VLOOKUP($A751,Economática!$A$3:$AI$823,21,FALSE)/100=\"-\"),1/0,VLOOKUP($A751,Economática!$A$3:$AI$823,21,FALSE)/100))","v":""},{"$f":"IF($A751=\"\",\"\",IF(OR(VLOOKUP($A751,Economática!$A$3:$AI$823,22,FALSE)/100=0,VLOOKUP($A751,Economática!$A$3:$AI$823,22,FALSE)/100=\"-\"),1/0,VLOOKUP($A751,Economática!$A$3:$AI$823,22,FALSE)/100))","v":""},{"$f":"IF($A751=\"\",\"\",IF(OR(VLOOKUP($A751,Economática!$A$3:$AI$823,23,FALSE)=0,VLOOKUP($A751,Economática!$A$3:$AI$823,23,FALSE)=\"-\"),1/0,VLOOKUP($A751,Economática!$A$3:$AI$823,23,FALSE)))","v":""},{"$f":"IF($A751=\"\",\"\",IF(OR(VLOOKUP($A751,Economática!$A$3:$AI$823,24,FALSE)=0,VLOOKUP($A751,Economática!$A$3:$AI$823,24,FALSE)=\"-\"),1/0,VLOOKUP($A751,Economática!$A$3:$AI$823,24,FALSE)))","v":""},{"$f":"IF($A751=\"\",\"\",IF(OR(VLOOKUP($A751,Economática!$A$3:$AI$823,25,FALSE)=0,VLOOKUP($A751,Economática!$A$3:$AI$823,25,FALSE)=\"-\"),1/0,VLOOKUP($A751,Economática!$A$3:$AI$823,25,FALSE)))","v":""},{"$f":"IF($A751=\"\",\"\",IF(ISERROR((F751+VLOOKUP($A751,Economática!$A$3:$AI$823,26,FALSE))/Y751),(F751+VLOOKUP($A751,Economática!$A$3:$AI$823,26,FALSE))/Y751,(F751+VLOOKUP($A751,Economática!$A$3:$AI$823,26,FALSE))/Y751))","v":""},{"$f":"IF($A751=\"\",\"\",IF(OR(-VLOOKUP($A751,Economática!$A$3:$AI$823,27,FALSE)=0,-VLOOKUP($A751,Economática!$A$3:$AI$823,27,FALSE)=\"-\"),1/0,-VLOOKUP($A751,Economática!$A$3:$AI$823,27,FALSE)))","v":""},"",{"$f":"IF($A751=\"\",\"\",IF(OR(VLOOKUP($A751,Economática!$A$3:$AI$823,28,FALSE)=0,VLOOKUP($A751,Economática!$A$3:$AI$823,28,FALSE)=\"-\"),1/0,VLOOKUP($A751,Economática!$A$3:$AI$823,28,FALSE)))","v":""},{"$f":"IF($A751=\"\",\"\",IF(OR(VLOOKUP($A751,Economática!$A$3:$AI$823,29,FALSE)=0,VLOOKUP($A751,Economática!$A$3:$AI$823,29,FALSE)=\"-\"),1/0,VLOOKUP($A751,Economática!$A$3:$AI$823,29,FALSE)))","v":""},{"$f":"IF($A751=\"\",\"\",IF(OR(VLOOKUP($A751,Economática!$A$3:$AI$823,30,FALSE)/E751=0,VLOOKUP($A751,Economática!$A$3:$AI$823,30,FALSE)/E751=\"-\",VLOOKUP($A751,Economática!$A$3:$AI$823,30,FALSE)/E751<33.33%,VLOOKUP($A751,Economática!$A$3:$AI$823,30,FALSE)/E751>100%),1/0,VLOOKUP($A751,Economática!$A$3:$AI$823,30,FALSE)/E751))","v":""},"",{"$f":"IF($A751=\"\",\"\",IF(OR(VLOOKUP($A751,Economática!$A$3:$AI$823,25,FALSE)=0,VLOOKUP($A751,Economática!$A$3:$AI$823,25,FALSE)=\"-\"),1/0,VLOOKUP($A751,Economática!$A$3:$AI$823,25,FALSE)))","v":""},{"$f":"CONCATENATE(Economática!B729,\" \",Economática!C729)","v":" "}]
[{"$f":"IF(Economática!AG730=\"\",\"\",Economática!AG730)","v":""},{"$f":"IF($A752=\"\",\"\",VLOOKUP(VLOOKUP($A752,Economática!$A$3:$AI$823,6,FALSE),Correção!$B$16:$C$36,2,FALSE))","v":""},{"$f":"IF(Economática!B730=\"\",\"\",Economática!B730)","v":""},{"$f":"IF($A752=\"\",\"\",IF(OR(VLOOKUP($A752,Economática!$A$3:$AI$823,8,FALSE)=0,VLOOKUP($A752,Economática!$A$3:$AI$823,8,FALSE)=\"-\"),1/0,VLOOKUP($A752,Economática!$A$3:$AI$823,8,FALSE)))","v":""},{"$f":"IF(A752=\"\",\"\",IF(ISERROR(VLOOKUP(A752,Correção!$B$2:$G$13,9,FALSE)),VLOOKUP($A752,Economática!$A$3:$AI$823,9,FALSE),VLOOKUP(A752,Correção!$B$2:$G$13,9,FALSE)))","v":""},{"$f":"IF($A752=\"\",\"\",Economática!G730)","v":""},{"$f":"IF($A752=\"\",\"\",IF(OR(VLOOKUP($A752,Economática!$A$3:$AI$823,10,FALSE)=0,VLOOKUP($A752,Economática!$A$3:$AI$823,10,FALSE)=\"-\"),1/0,VLOOKUP($A752,Economática!$A$3:$AI$823,10,FALSE)))","v":""},{"$f":"IF($A752=\"\",\"\",IF(OR(VLOOKUP($A752,Economática!$A$3:$AI$823,11,FALSE)=0,VLOOKUP($A752,Economática!$A$3:$AI$823,11,FALSE)=\"-\"),1/0,VLOOKUP($A752,Economática!$A$3:$AI$823,11,FALSE)))","v":""},{"$f":"IF($A752=\"\",\"\",IF(OR(VLOOKUP($A752,Economática!$A$3:$AI$823,12,FALSE)=0,VLOOKUP($A752,Economática!$A$3:$AI$823,12,FALSE)=\"-\"),1/0,VLOOKUP($A752,Economática!$A$3:$AI$823,12,FALSE)))","v":""},{"$f":"IF($A752=\"\",\"\",IF(OR(VLOOKUP($A752,Economática!$A$3:$AI$823,13,FALSE)=0,VLOOKUP($A752,Economática!$A$3:$AI$823,13,FALSE)=\"-\"),1/0,VLOOKUP($A752,Economática!$A$3:$AI$823,13,FALSE)))","v":""},{"$f":"IF($A752=\"\",\"\",IF(OR(VLOOKUP($A752,Economática!$A$3:$AI$823,14,FALSE)=0,VLOOKUP($A752,Economática!$A$3:$AI$823,14,FALSE)=\"-\"),1/0,VLOOKUP($A752,Economática!$A$3:$AI$823,14,FALSE)))","v":""},{"$f":"IF($A752=\"\",\"\",IF(OR(VLOOKUP($A752,Economática!$A$3:$AI$823,15,FALSE)=0,VLOOKUP($A752,Economática!$A$3:$AI$823,15,FALSE)=\"-\"),1/0,VLOOKUP($A752,Economática!$A$3:$AI$823,15,FALSE)))","v":""},{"$f":"IF($A752=\"\",\"\",IF(OR(VLOOKUP($A752,Economática!$A$3:$AI$823,16,FALSE)=0,VLOOKUP($A752,Economática!$A$3:$AI$823,16,FALSE)=\"-\"),1/0,VLOOKUP($A752,Economática!$A$3:$AI$823,16,FALSE)))","v":""},{"$f":"IF($A752=\"\",\"\",IF(OR(VLOOKUP($A752,Economática!$A$3:$AI$823,17,FALSE)=0,VLOOKUP($A752,Economática!$A$3:$AI$823,17,FALSE)=\"-\"),1/0,VLOOKUP($A752,Economática!$A$3:$AI$823,17,FALSE)))","v":""},{"$f":"IF($A752=\"\",\"\",IF(OR(VLOOKUP($A752,Economática!$A$3:$AI$823,18,FALSE)=0,VLOOKUP($A752,Economática!$A$3:$AI$823,18,FALSE)=\"-\"),1/0,VLOOKUP($A752,Economática!$A$3:$AI$823,18,FALSE)))","v":""},{"$f":"IF($A752=\"\",\"\",IF(OR(VLOOKUP($A752,Economática!$A$3:$AI$823,19,FALSE)=0,VLOOKUP($A752,Economática!$A$3:$AI$823,19,FALSE)=\"-\"),1/0,VLOOKUP($A752,Economática!$A$3:$AI$823,19,FALSE)))","v":""},{"$f":"IF($A752=\"\",\"\",VLOOKUP($A752,Economática!$A$3:$AI$823,20,FALSE)/E752)","v":""},"","","",{"$f":"IF($A752=\"\",\"\",IF(OR(VLOOKUP($A752,Economática!$A$3:$AI$823,21,FALSE)/100=0,VLOOKUP($A752,Economática!$A$3:$AI$823,21,FALSE)/100=\"-\"),1/0,VLOOKUP($A752,Economática!$A$3:$AI$823,21,FALSE)/100))","v":""},{"$f":"IF($A752=\"\",\"\",IF(OR(VLOOKUP($A752,Economática!$A$3:$AI$823,22,FALSE)/100=0,VLOOKUP($A752,Economática!$A$3:$AI$823,22,FALSE)/100=\"-\"),1/0,VLOOKUP($A752,Economática!$A$3:$AI$823,22,FALSE)/100))","v":""},{"$f":"IF($A752=\"\",\"\",IF(OR(VLOOKUP($A752,Economática!$A$3:$AI$823,23,FALSE)=0,VLOOKUP($A752,Economática!$A$3:$AI$823,23,FALSE)=\"-\"),1/0,VLOOKUP($A752,Economática!$A$3:$AI$823,23,FALSE)))","v":""},{"$f":"IF($A752=\"\",\"\",IF(OR(VLOOKUP($A752,Economática!$A$3:$AI$823,24,FALSE)=0,VLOOKUP($A752,Economática!$A$3:$AI$823,24,FALSE)=\"-\"),1/0,VLOOKUP($A752,Economática!$A$3:$AI$823,24,FALSE)))","v":""},{"$f":"IF($A752=\"\",\"\",IF(OR(VLOOKUP($A752,Economática!$A$3:$AI$823,25,FALSE)=0,VLOOKUP($A752,Economática!$A$3:$AI$823,25,FALSE)=\"-\"),1/0,VLOOKUP($A752,Economática!$A$3:$AI$823,25,FALSE)))","v":""},{"$f":"IF($A752=\"\",\"\",IF(ISERROR((F752+VLOOKUP($A752,Economática!$A$3:$AI$823,26,FALSE))/Y752),(F752+VLOOKUP($A752,Economática!$A$3:$AI$823,26,FALSE))/Y752,(F752+VLOOKUP($A752,Economática!$A$3:$AI$823,26,FALSE))/Y752))","v":""},{"$f":"IF($A752=\"\",\"\",IF(OR(-VLOOKUP($A752,Economática!$A$3:$AI$823,27,FALSE)=0,-VLOOKUP($A752,Economática!$A$3:$AI$823,27,FALSE)=\"-\"),1/0,-VLOOKUP($A752,Economática!$A$3:$AI$823,27,FALSE)))","v":""},"",{"$f":"IF($A752=\"\",\"\",IF(OR(VLOOKUP($A752,Economática!$A$3:$AI$823,28,FALSE)=0,VLOOKUP($A752,Economática!$A$3:$AI$823,28,FALSE)=\"-\"),1/0,VLOOKUP($A752,Economática!$A$3:$AI$823,28,FALSE)))","v":""},{"$f":"IF($A752=\"\",\"\",IF(OR(VLOOKUP($A752,Economática!$A$3:$AI$823,29,FALSE)=0,VLOOKUP($A752,Economática!$A$3:$AI$823,29,FALSE)=\"-\"),1/0,VLOOKUP($A752,Economática!$A$3:$AI$823,29,FALSE)))","v":""},{"$f":"IF($A752=\"\",\"\",IF(OR(VLOOKUP($A752,Economática!$A$3:$AI$823,30,FALSE)/E752=0,VLOOKUP($A752,Economática!$A$3:$AI$823,30,FALSE)/E752=\"-\",VLOOKUP($A752,Economática!$A$3:$AI$823,30,FALSE)/E752<33.33%,VLOOKUP($A752,Economática!$A$3:$AI$823,30,FALSE)/E752>100%),1/0,VLOOKUP($A752,Economática!$A$3:$AI$823,30,FALSE)/E752))","v":""},"",{"$f":"IF($A752=\"\",\"\",IF(OR(VLOOKUP($A752,Economática!$A$3:$AI$823,25,FALSE)=0,VLOOKUP($A752,Economática!$A$3:$AI$823,25,FALSE)=\"-\"),1/0,VLOOKUP($A752,Economática!$A$3:$AI$823,25,FALSE)))","v":""},{"$f":"CONCATENATE(Economática!B730,\" \",Economática!C730)","v":" "}]
[{"$f":"IF(Economática!AG731=\"\",\"\",Economática!AG731)","v":""},{"$f":"IF($A753=\"\",\"\",VLOOKUP(VLOOKUP($A753,Economática!$A$3:$AI$823,6,FALSE),Correção!$B$16:$C$36,2,FALSE))","v":""},{"$f":"IF(Economática!B731=\"\",\"\",Economática!B731)","v":""},{"$f":"IF($A753=\"\",\"\",IF(OR(VLOOKUP($A753,Economática!$A$3:$AI$823,8,FALSE)=0,VLOOKUP($A753,Economática!$A$3:$AI$823,8,FALSE)=\"-\"),1/0,VLOOKUP($A753,Economática!$A$3:$AI$823,8,FALSE)))","v":""},{"$f":"IF(A753=\"\",\"\",IF(ISERROR(VLOOKUP(A753,Correção!$B$2:$G$13,9,FALSE)),VLOOKUP($A753,Economática!$A$3:$AI$823,9,FALSE),VLOOKUP(A753,Correção!$B$2:$G$13,9,FALSE)))","v":""},{"$f":"IF($A753=\"\",\"\",Economática!G731)","v":""},{"$f":"IF($A753=\"\",\"\",IF(OR(VLOOKUP($A753,Economática!$A$3:$AI$823,10,FALSE)=0,VLOOKUP($A753,Economática!$A$3:$AI$823,10,FALSE)=\"-\"),1/0,VLOOKUP($A753,Economática!$A$3:$AI$823,10,FALSE)))","v":""},{"$f":"IF($A753=\"\",\"\",IF(OR(VLOOKUP($A753,Economática!$A$3:$AI$823,11,FALSE)=0,VLOOKUP($A753,Economática!$A$3:$AI$823,11,FALSE)=\"-\"),1/0,VLOOKUP($A753,Economática!$A$3:$AI$823,11,FALSE)))","v":""},{"$f":"IF($A753=\"\",\"\",IF(OR(VLOOKUP($A753,Economática!$A$3:$AI$823,12,FALSE)=0,VLOOKUP($A753,Economática!$A$3:$AI$823,12,FALSE)=\"-\"),1/0,VLOOKUP($A753,Economática!$A$3:$AI$823,12,FALSE)))","v":""},{"$f":"IF($A753=\"\",\"\",IF(OR(VLOOKUP($A753,Economática!$A$3:$AI$823,13,FALSE)=0,VLOOKUP($A753,Economática!$A$3:$AI$823,13,FALSE)=\"-\"),1/0,VLOOKUP($A753,Economática!$A$3:$AI$823,13,FALSE)))","v":""},{"$f":"IF($A753=\"\",\"\",IF(OR(VLOOKUP($A753,Economática!$A$3:$AI$823,14,FALSE)=0,VLOOKUP($A753,Economática!$A$3:$AI$823,14,FALSE)=\"-\"),1/0,VLOOKUP($A753,Economática!$A$3:$AI$823,14,FALSE)))","v":""},{"$f":"IF($A753=\"\",\"\",IF(OR(VLOOKUP($A753,Economática!$A$3:$AI$823,15,FALSE)=0,VLOOKUP($A753,Economática!$A$3:$AI$823,15,FALSE)=\"-\"),1/0,VLOOKUP($A753,Economática!$A$3:$AI$823,15,FALSE)))","v":""},{"$f":"IF($A753=\"\",\"\",IF(OR(VLOOKUP($A753,Economática!$A$3:$AI$823,16,FALSE)=0,VLOOKUP($A753,Economática!$A$3:$AI$823,16,FALSE)=\"-\"),1/0,VLOOKUP($A753,Economática!$A$3:$AI$823,16,FALSE)))","v":""},{"$f":"IF($A753=\"\",\"\",IF(OR(VLOOKUP($A753,Economática!$A$3:$AI$823,17,FALSE)=0,VLOOKUP($A753,Economática!$A$3:$AI$823,17,FALSE)=\"-\"),1/0,VLOOKUP($A753,Economática!$A$3:$AI$823,17,FALSE)))","v":""},{"$f":"IF($A753=\"\",\"\",IF(OR(VLOOKUP($A753,Economática!$A$3:$AI$823,18,FALSE)=0,VLOOKUP($A753,Economática!$A$3:$AI$823,18,FALSE)=\"-\"),1/0,VLOOKUP($A753,Economática!$A$3:$AI$823,18,FALSE)))","v":""},{"$f":"IF($A753=\"\",\"\",IF(OR(VLOOKUP($A753,Economática!$A$3:$AI$823,19,FALSE)=0,VLOOKUP($A753,Economática!$A$3:$AI$823,19,FALSE)=\"-\"),1/0,VLOOKUP($A753,Economática!$A$3:$AI$823,19,FALSE)))","v":""},{"$f":"IF($A753=\"\",\"\",VLOOKUP($A753,Economática!$A$3:$AI$823,20,FALSE)/E753)","v":""},"","","",{"$f":"IF($A753=\"\",\"\",IF(OR(VLOOKUP($A753,Economática!$A$3:$AI$823,21,FALSE)/100=0,VLOOKUP($A753,Economática!$A$3:$AI$823,21,FALSE)/100=\"-\"),1/0,VLOOKUP($A753,Economática!$A$3:$AI$823,21,FALSE)/100))","v":""},{"$f":"IF($A753=\"\",\"\",IF(OR(VLOOKUP($A753,Economática!$A$3:$AI$823,22,FALSE)/100=0,VLOOKUP($A753,Economática!$A$3:$AI$823,22,FALSE)/100=\"-\"),1/0,VLOOKUP($A753,Economática!$A$3:$AI$823,22,FALSE)/100))","v":""},{"$f":"IF($A753=\"\",\"\",IF(OR(VLOOKUP($A753,Economática!$A$3:$AI$823,23,FALSE)=0,VLOOKUP($A753,Economática!$A$3:$AI$823,23,FALSE)=\"-\"),1/0,VLOOKUP($A753,Economática!$A$3:$AI$823,23,FALSE)))","v":""},{"$f":"IF($A753=\"\",\"\",IF(OR(VLOOKUP($A753,Economática!$A$3:$AI$823,24,FALSE)=0,VLOOKUP($A753,Economática!$A$3:$AI$823,24,FALSE)=\"-\"),1/0,VLOOKUP($A753,Economática!$A$3:$AI$823,24,FALSE)))","v":""},{"$f":"IF($A753=\"\",\"\",IF(OR(VLOOKUP($A753,Economática!$A$3:$AI$823,25,FALSE)=0,VLOOKUP($A753,Economática!$A$3:$AI$823,25,FALSE)=\"-\"),1/0,VLOOKUP($A753,Economática!$A$3:$AI$823,25,FALSE)))","v":""},{"$f":"IF($A753=\"\",\"\",IF(ISERROR((F753+VLOOKUP($A753,Economática!$A$3:$AI$823,26,FALSE))/Y753),(F753+VLOOKUP($A753,Economática!$A$3:$AI$823,26,FALSE))/Y753,(F753+VLOOKUP($A753,Economática!$A$3:$AI$823,26,FALSE))/Y753))","v":""},{"$f":"IF($A753=\"\",\"\",IF(OR(-VLOOKUP($A753,Economática!$A$3:$AI$823,27,FALSE)=0,-VLOOKUP($A753,Economática!$A$3:$AI$823,27,FALSE)=\"-\"),1/0,-VLOOKUP($A753,Economática!$A$3:$AI$823,27,FALSE)))","v":""},"",{"$f":"IF($A753=\"\",\"\",IF(OR(VLOOKUP($A753,Economática!$A$3:$AI$823,28,FALSE)=0,VLOOKUP($A753,Economática!$A$3:$AI$823,28,FALSE)=\"-\"),1/0,VLOOKUP($A753,Economática!$A$3:$AI$823,28,FALSE)))","v":""},{"$f":"IF($A753=\"\",\"\",IF(OR(VLOOKUP($A753,Economática!$A$3:$AI$823,29,FALSE)=0,VLOOKUP($A753,Economática!$A$3:$AI$823,29,FALSE)=\"-\"),1/0,VLOOKUP($A753,Economática!$A$3:$AI$823,29,FALSE)))","v":""},{"$f":"IF($A753=\"\",\"\",IF(OR(VLOOKUP($A753,Economática!$A$3:$AI$823,30,FALSE)/E753=0,VLOOKUP($A753,Economática!$A$3:$AI$823,30,FALSE)/E753=\"-\",VLOOKUP($A753,Economática!$A$3:$AI$823,30,FALSE)/E753<33.33%,VLOOKUP($A753,Economática!$A$3:$AI$823,30,FALSE)/E753>100%),1/0,VLOOKUP($A753,Economática!$A$3:$AI$823,30,FALSE)/E753))","v":""},"",{"$f":"IF($A753=\"\",\"\",IF(OR(VLOOKUP($A753,Economática!$A$3:$AI$823,25,FALSE)=0,VLOOKUP($A753,Economática!$A$3:$AI$823,25,FALSE)=\"-\"),1/0,VLOOKUP($A753,Economática!$A$3:$AI$823,25,FALSE)))","v":""},{"$f":"CONCATENATE(Economática!B731,\" \",Economática!C731)","v":" "}]
[{"$f":"IF(Economática!AG732=\"\",\"\",Economática!AG732)","v":""},{"$f":"IF($A754=\"\",\"\",VLOOKUP(VLOOKUP($A754,Economática!$A$3:$AI$823,6,FALSE),Correção!$B$16:$C$36,2,FALSE))","v":""},{"$f":"IF(Economática!B732=\"\",\"\",Economática!B732)","v":""},{"$f":"IF($A754=\"\",\"\",IF(OR(VLOOKUP($A754,Economática!$A$3:$AI$823,8,FALSE)=0,VLOOKUP($A754,Economática!$A$3:$AI$823,8,FALSE)=\"-\"),1/0,VLOOKUP($A754,Economática!$A$3:$AI$823,8,FALSE)))","v":""},{"$f":"IF(A754=\"\",\"\",IF(ISERROR(VLOOKUP(A754,Correção!$B$2:$G$13,9,FALSE)),VLOOKUP($A754,Economática!$A$3:$AI$823,9,FALSE),VLOOKUP(A754,Correção!$B$2:$G$13,9,FALSE)))","v":""},{"$f":"IF($A754=\"\",\"\",Economática!G732)","v":""},{"$f":"IF($A754=\"\",\"\",IF(OR(VLOOKUP($A754,Economática!$A$3:$AI$823,10,FALSE)=0,VLOOKUP($A754,Economática!$A$3:$AI$823,10,FALSE)=\"-\"),1/0,VLOOKUP($A754,Economática!$A$3:$AI$823,10,FALSE)))","v":""},{"$f":"IF($A754=\"\",\"\",IF(OR(VLOOKUP($A754,Economática!$A$3:$AI$823,11,FALSE)=0,VLOOKUP($A754,Economática!$A$3:$AI$823,11,FALSE)=\"-\"),1/0,VLOOKUP($A754,Economática!$A$3:$AI$823,11,FALSE)))","v":""},{"$f":"IF($A754=\"\",\"\",IF(OR(VLOOKUP($A754,Economática!$A$3:$AI$823,12,FALSE)=0,VLOOKUP($A754,Economática!$A$3:$AI$823,12,FALSE)=\"-\"),1/0,VLOOKUP($A754,Economática!$A$3:$AI$823,12,FALSE)))","v":""},{"$f":"IF($A754=\"\",\"\",IF(OR(VLOOKUP($A754,Economática!$A$3:$AI$823,13,FALSE)=0,VLOOKUP($A754,Economática!$A$3:$AI$823,13,FALSE)=\"-\"),1/0,VLOOKUP($A754,Economática!$A$3:$AI$823,13,FALSE)))","v":""},{"$f":"IF($A754=\"\",\"\",IF(OR(VLOOKUP($A754,Economática!$A$3:$AI$823,14,FALSE)=0,VLOOKUP($A754,Economática!$A$3:$AI$823,14,FALSE)=\"-\"),1/0,VLOOKUP($A754,Economática!$A$3:$AI$823,14,FALSE)))","v":""},{"$f":"IF($A754=\"\",\"\",IF(OR(VLOOKUP($A754,Economática!$A$3:$AI$823,15,FALSE)=0,VLOOKUP($A754,Economática!$A$3:$AI$823,15,FALSE)=\"-\"),1/0,VLOOKUP($A754,Economática!$A$3:$AI$823,15,FALSE)))","v":""},{"$f":"IF($A754=\"\",\"\",IF(OR(VLOOKUP($A754,Economática!$A$3:$AI$823,16,FALSE)=0,VLOOKUP($A754,Economática!$A$3:$AI$823,16,FALSE)=\"-\"),1/0,VLOOKUP($A754,Economática!$A$3:$AI$823,16,FALSE)))","v":""},{"$f":"IF($A754=\"\",\"\",IF(OR(VLOOKUP($A754,Economática!$A$3:$AI$823,17,FALSE)=0,VLOOKUP($A754,Economática!$A$3:$AI$823,17,FALSE)=\"-\"),1/0,VLOOKUP($A754,Economática!$A$3:$AI$823,17,FALSE)))","v":""},{"$f":"IF($A754=\"\",\"\",IF(OR(VLOOKUP($A754,Economática!$A$3:$AI$823,18,FALSE)=0,VLOOKUP($A754,Economática!$A$3:$AI$823,18,FALSE)=\"-\"),1/0,VLOOKUP($A754,Economática!$A$3:$AI$823,18,FALSE)))","v":""},{"$f":"IF($A754=\"\",\"\",IF(OR(VLOOKUP($A754,Economática!$A$3:$AI$823,19,FALSE)=0,VLOOKUP($A754,Economática!$A$3:$AI$823,19,FALSE)=\"-\"),1/0,VLOOKUP($A754,Economática!$A$3:$AI$823,19,FALSE)))","v":""},{"$f":"IF($A754=\"\",\"\",VLOOKUP($A754,Economática!$A$3:$AI$823,20,FALSE)/E754)","v":""},"","","",{"$f":"IF($A754=\"\",\"\",IF(OR(VLOOKUP($A754,Economática!$A$3:$AI$823,21,FALSE)/100=0,VLOOKUP($A754,Economática!$A$3:$AI$823,21,FALSE)/100=\"-\"),1/0,VLOOKUP($A754,Economática!$A$3:$AI$823,21,FALSE)/100))","v":""},{"$f":"IF($A754=\"\",\"\",IF(OR(VLOOKUP($A754,Economática!$A$3:$AI$823,22,FALSE)/100=0,VLOOKUP($A754,Economática!$A$3:$AI$823,22,FALSE)/100=\"-\"),1/0,VLOOKUP($A754,Economática!$A$3:$AI$823,22,FALSE)/100))","v":""},{"$f":"IF($A754=\"\",\"\",IF(OR(VLOOKUP($A754,Economática!$A$3:$AI$823,23,FALSE)=0,VLOOKUP($A754,Economática!$A$3:$AI$823,23,FALSE)=\"-\"),1/0,VLOOKUP($A754,Economática!$A$3:$AI$823,23,FALSE)))","v":""},{"$f":"IF($A754=\"\",\"\",IF(OR(VLOOKUP($A754,Economática!$A$3:$AI$823,24,FALSE)=0,VLOOKUP($A754,Economática!$A$3:$AI$823,24,FALSE)=\"-\"),1/0,VLOOKUP($A754,Economática!$A$3:$AI$823,24,FALSE)))","v":""},{"$f":"IF($A754=\"\",\"\",IF(OR(VLOOKUP($A754,Economática!$A$3:$AI$823,25,FALSE)=0,VLOOKUP($A754,Economática!$A$3:$AI$823,25,FALSE)=\"-\"),1/0,VLOOKUP($A754,Economática!$A$3:$AI$823,25,FALSE)))","v":""},{"$f":"IF($A754=\"\",\"\",IF(ISERROR((F754+VLOOKUP($A754,Economática!$A$3:$AI$823,26,FALSE))/Y754),(F754+VLOOKUP($A754,Economática!$A$3:$AI$823,26,FALSE))/Y754,(F754+VLOOKUP($A754,Economática!$A$3:$AI$823,26,FALSE))/Y754))","v":""},{"$f":"IF($A754=\"\",\"\",IF(OR(-VLOOKUP($A754,Economática!$A$3:$AI$823,27,FALSE)=0,-VLOOKUP($A754,Economática!$A$3:$AI$823,27,FALSE)=\"-\"),1/0,-VLOOKUP($A754,Economática!$A$3:$AI$823,27,FALSE)))","v":""},"",{"$f":"IF($A754=\"\",\"\",IF(OR(VLOOKUP($A754,Economática!$A$3:$AI$823,28,FALSE)=0,VLOOKUP($A754,Economática!$A$3:$AI$823,28,FALSE)=\"-\"),1/0,VLOOKUP($A754,Economática!$A$3:$AI$823,28,FALSE)))","v":""},{"$f":"IF($A754=\"\",\"\",IF(OR(VLOOKUP($A754,Economática!$A$3:$AI$823,29,FALSE)=0,VLOOKUP($A754,Economática!$A$3:$AI$823,29,FALSE)=\"-\"),1/0,VLOOKUP($A754,Economática!$A$3:$AI$823,29,FALSE)))","v":""},{"$f":"IF($A754=\"\",\"\",IF(OR(VLOOKUP($A754,Economática!$A$3:$AI$823,30,FALSE)/E754=0,VLOOKUP($A754,Economática!$A$3:$AI$823,30,FALSE)/E754=\"-\",VLOOKUP($A754,Economática!$A$3:$AI$823,30,FALSE)/E754<33.33%,VLOOKUP($A754,Economática!$A$3:$AI$823,30,FALSE)/E754>100%),1/0,VLOOKUP($A754,Economática!$A$3:$AI$823,30,FALSE)/E754))","v":""},"",{"$f":"IF($A754=\"\",\"\",IF(OR(VLOOKUP($A754,Economática!$A$3:$AI$823,25,FALSE)=0,VLOOKUP($A754,Economática!$A$3:$AI$823,25,FALSE)=\"-\"),1/0,VLOOKUP($A754,Economática!$A$3:$AI$823,25,FALSE)))","v":""},{"$f":"CONCATENATE(Economática!B732,\" \",Economática!C732)","v":" "}]
[{"$f":"IF(Economática!AG733=\"\",\"\",Economática!AG733)","v":""},{"$f":"IF($A755=\"\",\"\",VLOOKUP(VLOOKUP($A755,Economática!$A$3:$AI$823,6,FALSE),Correção!$B$16:$C$36,2,FALSE))","v":""},{"$f":"IF(Economática!B733=\"\",\"\",Economática!B733)","v":""},{"$f":"IF($A755=\"\",\"\",IF(OR(VLOOKUP($A755,Economática!$A$3:$AI$823,8,FALSE)=0,VLOOKUP($A755,Economática!$A$3:$AI$823,8,FALSE)=\"-\"),1/0,VLOOKUP($A755,Economática!$A$3:$AI$823,8,FALSE)))","v":""},{"$f":"IF(A755=\"\",\"\",IF(ISERROR(VLOOKUP(A755,Correção!$B$2:$G$13,9,FALSE)),VLOOKUP($A755,Economática!$A$3:$AI$823,9,FALSE),VLOOKUP(A755,Correção!$B$2:$G$13,9,FALSE)))","v":""},{"$f":"IF($A755=\"\",\"\",Economática!G733)","v":""},{"$f":"IF($A755=\"\",\"\",IF(OR(VLOOKUP($A755,Economática!$A$3:$AI$823,10,FALSE)=0,VLOOKUP($A755,Economática!$A$3:$AI$823,10,FALSE)=\"-\"),1/0,VLOOKUP($A755,Economática!$A$3:$AI$823,10,FALSE)))","v":""},{"$f":"IF($A755=\"\",\"\",IF(OR(VLOOKUP($A755,Economática!$A$3:$AI$823,11,FALSE)=0,VLOOKUP($A755,Economática!$A$3:$AI$823,11,FALSE)=\"-\"),1/0,VLOOKUP($A755,Economática!$A$3:$AI$823,11,FALSE)))","v":""},{"$f":"IF($A755=\"\",\"\",IF(OR(VLOOKUP($A755,Economática!$A$3:$AI$823,12,FALSE)=0,VLOOKUP($A755,Economática!$A$3:$AI$823,12,FALSE)=\"-\"),1/0,VLOOKUP($A755,Economática!$A$3:$AI$823,12,FALSE)))","v":""},{"$f":"IF($A755=\"\",\"\",IF(OR(VLOOKUP($A755,Economática!$A$3:$AI$823,13,FALSE)=0,VLOOKUP($A755,Economática!$A$3:$AI$823,13,FALSE)=\"-\"),1/0,VLOOKUP($A755,Economática!$A$3:$AI$823,13,FALSE)))","v":""},{"$f":"IF($A755=\"\",\"\",IF(OR(VLOOKUP($A755,Economática!$A$3:$AI$823,14,FALSE)=0,VLOOKUP($A755,Economática!$A$3:$AI$823,14,FALSE)=\"-\"),1/0,VLOOKUP($A755,Economática!$A$3:$AI$823,14,FALSE)))","v":""},{"$f":"IF($A755=\"\",\"\",IF(OR(VLOOKUP($A755,Economática!$A$3:$AI$823,15,FALSE)=0,VLOOKUP($A755,Economática!$A$3:$AI$823,15,FALSE)=\"-\"),1/0,VLOOKUP($A755,Economática!$A$3:$AI$823,15,FALSE)))","v":""},{"$f":"IF($A755=\"\",\"\",IF(OR(VLOOKUP($A755,Economática!$A$3:$AI$823,16,FALSE)=0,VLOOKUP($A755,Economática!$A$3:$AI$823,16,FALSE)=\"-\"),1/0,VLOOKUP($A755,Economática!$A$3:$AI$823,16,FALSE)))","v":""},{"$f":"IF($A755=\"\",\"\",IF(OR(VLOOKUP($A755,Economática!$A$3:$AI$823,17,FALSE)=0,VLOOKUP($A755,Economática!$A$3:$AI$823,17,FALSE)=\"-\"),1/0,VLOOKUP($A755,Economática!$A$3:$AI$823,17,FALSE)))","v":""},{"$f":"IF($A755=\"\",\"\",IF(OR(VLOOKUP($A755,Economática!$A$3:$AI$823,18,FALSE)=0,VLOOKUP($A755,Economática!$A$3:$AI$823,18,FALSE)=\"-\"),1/0,VLOOKUP($A755,Economática!$A$3:$AI$823,18,FALSE)))","v":""},{"$f":"IF($A755=\"\",\"\",IF(OR(VLOOKUP($A755,Economática!$A$3:$AI$823,19,FALSE)=0,VLOOKUP($A755,Economática!$A$3:$AI$823,19,FALSE)=\"-\"),1/0,VLOOKUP($A755,Economática!$A$3:$AI$823,19,FALSE)))","v":""},{"$f":"IF($A755=\"\",\"\",VLOOKUP($A755,Economática!$A$3:$AI$823,20,FALSE)/E755)","v":""},"","","",{"$f":"IF($A755=\"\",\"\",IF(OR(VLOOKUP($A755,Economática!$A$3:$AI$823,21,FALSE)/100=0,VLOOKUP($A755,Economática!$A$3:$AI$823,21,FALSE)/100=\"-\"),1/0,VLOOKUP($A755,Economática!$A$3:$AI$823,21,FALSE)/100))","v":""},{"$f":"IF($A755=\"\",\"\",IF(OR(VLOOKUP($A755,Economática!$A$3:$AI$823,22,FALSE)/100=0,VLOOKUP($A755,Economática!$A$3:$AI$823,22,FALSE)/100=\"-\"),1/0,VLOOKUP($A755,Economática!$A$3:$AI$823,22,FALSE)/100))","v":""},{"$f":"IF($A755=\"\",\"\",IF(OR(VLOOKUP($A755,Economática!$A$3:$AI$823,23,FALSE)=0,VLOOKUP($A755,Economática!$A$3:$AI$823,23,FALSE)=\"-\"),1/0,VLOOKUP($A755,Economática!$A$3:$AI$823,23,FALSE)))","v":""},{"$f":"IF($A755=\"\",\"\",IF(OR(VLOOKUP($A755,Economática!$A$3:$AI$823,24,FALSE)=0,VLOOKUP($A755,Economática!$A$3:$AI$823,24,FALSE)=\"-\"),1/0,VLOOKUP($A755,Economática!$A$3:$AI$823,24,FALSE)))","v":""},{"$f":"IF($A755=\"\",\"\",IF(OR(VLOOKUP($A755,Economática!$A$3:$AI$823,25,FALSE)=0,VLOOKUP($A755,Economática!$A$3:$AI$823,25,FALSE)=\"-\"),1/0,VLOOKUP($A755,Economática!$A$3:$AI$823,25,FALSE)))","v":""},{"$f":"IF($A755=\"\",\"\",IF(ISERROR((F755+VLOOKUP($A755,Economática!$A$3:$AI$823,26,FALSE))/Y755),(F755+VLOOKUP($A755,Economática!$A$3:$AI$823,26,FALSE))/Y755,(F755+VLOOKUP($A755,Economática!$A$3:$AI$823,26,FALSE))/Y755))","v":""},{"$f":"IF($A755=\"\",\"\",IF(OR(-VLOOKUP($A755,Economática!$A$3:$AI$823,27,FALSE)=0,-VLOOKUP($A755,Economática!$A$3:$AI$823,27,FALSE)=\"-\"),1/0,-VLOOKUP($A755,Economática!$A$3:$AI$823,27,FALSE)))","v":""},"",{"$f":"IF($A755=\"\",\"\",IF(OR(VLOOKUP($A755,Economática!$A$3:$AI$823,28,FALSE)=0,VLOOKUP($A755,Economática!$A$3:$AI$823,28,FALSE)=\"-\"),1/0,VLOOKUP($A755,Economática!$A$3:$AI$823,28,FALSE)))","v":""},{"$f":"IF($A755=\"\",\"\",IF(OR(VLOOKUP($A755,Economática!$A$3:$AI$823,29,FALSE)=0,VLOOKUP($A755,Economática!$A$3:$AI$823,29,FALSE)=\"-\"),1/0,VLOOKUP($A755,Economática!$A$3:$AI$823,29,FALSE)))","v":""},{"$f":"IF($A755=\"\",\"\",IF(OR(VLOOKUP($A755,Economática!$A$3:$AI$823,30,FALSE)/E755=0,VLOOKUP($A755,Economática!$A$3:$AI$823,30,FALSE)/E755=\"-\",VLOOKUP($A755,Economática!$A$3:$AI$823,30,FALSE)/E755<33.33%,VLOOKUP($A755,Economática!$A$3:$AI$823,30,FALSE)/E755>100%),1/0,VLOOKUP($A755,Economática!$A$3:$AI$823,30,FALSE)/E755))","v":""},"",{"$f":"IF($A755=\"\",\"\",IF(OR(VLOOKUP($A755,Economática!$A$3:$AI$823,25,FALSE)=0,VLOOKUP($A755,Economática!$A$3:$AI$823,25,FALSE)=\"-\"),1/0,VLOOKUP($A755,Economática!$A$3:$AI$823,25,FALSE)))","v":""},{"$f":"CONCATENATE(Economática!B733,\" \",Economática!C733)","v":" "}]
[{"$f":"IF(Economática!AG734=\"\",\"\",Economática!AG734)","v":""},{"$f":"IF($A756=\"\",\"\",VLOOKUP(VLOOKUP($A756,Economática!$A$3:$AI$823,6,FALSE),Correção!$B$16:$C$36,2,FALSE))","v":""},{"$f":"IF(Economática!B734=\"\",\"\",Economática!B734)","v":""},{"$f":"IF($A756=\"\",\"\",IF(OR(VLOOKUP($A756,Economática!$A$3:$AI$823,8,FALSE)=0,VLOOKUP($A756,Economática!$A$3:$AI$823,8,FALSE)=\"-\"),1/0,VLOOKUP($A756,Economática!$A$3:$AI$823,8,FALSE)))","v":""},{"$f":"IF(A756=\"\",\"\",IF(ISERROR(VLOOKUP(A756,Correção!$B$2:$G$13,9,FALSE)),VLOOKUP($A756,Economática!$A$3:$AI$823,9,FALSE),VLOOKUP(A756,Correção!$B$2:$G$13,9,FALSE)))","v":""},{"$f":"IF($A756=\"\",\"\",Economática!G734)","v":""},{"$f":"IF($A756=\"\",\"\",IF(OR(VLOOKUP($A756,Economática!$A$3:$AI$823,10,FALSE)=0,VLOOKUP($A756,Economática!$A$3:$AI$823,10,FALSE)=\"-\"),1/0,VLOOKUP($A756,Economática!$A$3:$AI$823,10,FALSE)))","v":""},{"$f":"IF($A756=\"\",\"\",IF(OR(VLOOKUP($A756,Economática!$A$3:$AI$823,11,FALSE)=0,VLOOKUP($A756,Economática!$A$3:$AI$823,11,FALSE)=\"-\"),1/0,VLOOKUP($A756,Economática!$A$3:$AI$823,11,FALSE)))","v":""},{"$f":"IF($A756=\"\",\"\",IF(OR(VLOOKUP($A756,Economática!$A$3:$AI$823,12,FALSE)=0,VLOOKUP($A756,Economática!$A$3:$AI$823,12,FALSE)=\"-\"),1/0,VLOOKUP($A756,Economática!$A$3:$AI$823,12,FALSE)))","v":""},{"$f":"IF($A756=\"\",\"\",IF(OR(VLOOKUP($A756,Economática!$A$3:$AI$823,13,FALSE)=0,VLOOKUP($A756,Economática!$A$3:$AI$823,13,FALSE)=\"-\"),1/0,VLOOKUP($A756,Economática!$A$3:$AI$823,13,FALSE)))","v":""},{"$f":"IF($A756=\"\",\"\",IF(OR(VLOOKUP($A756,Economática!$A$3:$AI$823,14,FALSE)=0,VLOOKUP($A756,Economática!$A$3:$AI$823,14,FALSE)=\"-\"),1/0,VLOOKUP($A756,Economática!$A$3:$AI$823,14,FALSE)))","v":""},{"$f":"IF($A756=\"\",\"\",IF(OR(VLOOKUP($A756,Economática!$A$3:$AI$823,15,FALSE)=0,VLOOKUP($A756,Economática!$A$3:$AI$823,15,FALSE)=\"-\"),1/0,VLOOKUP($A756,Economática!$A$3:$AI$823,15,FALSE)))","v":""},{"$f":"IF($A756=\"\",\"\",IF(OR(VLOOKUP($A756,Economática!$A$3:$AI$823,16,FALSE)=0,VLOOKUP($A756,Economática!$A$3:$AI$823,16,FALSE)=\"-\"),1/0,VLOOKUP($A756,Economática!$A$3:$AI$823,16,FALSE)))","v":""},{"$f":"IF($A756=\"\",\"\",IF(OR(VLOOKUP($A756,Economática!$A$3:$AI$823,17,FALSE)=0,VLOOKUP($A756,Economática!$A$3:$AI$823,17,FALSE)=\"-\"),1/0,VLOOKUP($A756,Economática!$A$3:$AI$823,17,FALSE)))","v":""},{"$f":"IF($A756=\"\",\"\",IF(OR(VLOOKUP($A756,Economática!$A$3:$AI$823,18,FALSE)=0,VLOOKUP($A756,Economática!$A$3:$AI$823,18,FALSE)=\"-\"),1/0,VLOOKUP($A756,Economática!$A$3:$AI$823,18,FALSE)))","v":""},{"$f":"IF($A756=\"\",\"\",IF(OR(VLOOKUP($A756,Economática!$A$3:$AI$823,19,FALSE)=0,VLOOKUP($A756,Economática!$A$3:$AI$823,19,FALSE)=\"-\"),1/0,VLOOKUP($A756,Economática!$A$3:$AI$823,19,FALSE)))","v":""},{"$f":"IF($A756=\"\",\"\",VLOOKUP($A756,Economática!$A$3:$AI$823,20,FALSE)/E756)","v":""},"","","",{"$f":"IF($A756=\"\",\"\",IF(OR(VLOOKUP($A756,Economática!$A$3:$AI$823,21,FALSE)/100=0,VLOOKUP($A756,Economática!$A$3:$AI$823,21,FALSE)/100=\"-\"),1/0,VLOOKUP($A756,Economática!$A$3:$AI$823,21,FALSE)/100))","v":""},{"$f":"IF($A756=\"\",\"\",IF(OR(VLOOKUP($A756,Economática!$A$3:$AI$823,22,FALSE)/100=0,VLOOKUP($A756,Economática!$A$3:$AI$823,22,FALSE)/100=\"-\"),1/0,VLOOKUP($A756,Economática!$A$3:$AI$823,22,FALSE)/100))","v":""},{"$f":"IF($A756=\"\",\"\",IF(OR(VLOOKUP($A756,Economática!$A$3:$AI$823,23,FALSE)=0,VLOOKUP($A756,Economática!$A$3:$AI$823,23,FALSE)=\"-\"),1/0,VLOOKUP($A756,Economática!$A$3:$AI$823,23,FALSE)))","v":""},{"$f":"IF($A756=\"\",\"\",IF(OR(VLOOKUP($A756,Economática!$A$3:$AI$823,24,FALSE)=0,VLOOKUP($A756,Economática!$A$3:$AI$823,24,FALSE)=\"-\"),1/0,VLOOKUP($A756,Economática!$A$3:$AI$823,24,FALSE)))","v":""},{"$f":"IF($A756=\"\",\"\",IF(OR(VLOOKUP($A756,Economática!$A$3:$AI$823,25,FALSE)=0,VLOOKUP($A756,Economática!$A$3:$AI$823,25,FALSE)=\"-\"),1/0,VLOOKUP($A756,Economática!$A$3:$AI$823,25,FALSE)))","v":""},{"$f":"IF($A756=\"\",\"\",IF(ISERROR((F756+VLOOKUP($A756,Economática!$A$3:$AI$823,26,FALSE))/Y756),(F756+VLOOKUP($A756,Economática!$A$3:$AI$823,26,FALSE))/Y756,(F756+VLOOKUP($A756,Economática!$A$3:$AI$823,26,FALSE))/Y756))","v":""},{"$f":"IF($A756=\"\",\"\",IF(OR(-VLOOKUP($A756,Economática!$A$3:$AI$823,27,FALSE)=0,-VLOOKUP($A756,Economática!$A$3:$AI$823,27,FALSE)=\"-\"),1/0,-VLOOKUP($A756,Economática!$A$3:$AI$823,27,FALSE)))","v":""},"",{"$f":"IF($A756=\"\",\"\",IF(OR(VLOOKUP($A756,Economática!$A$3:$AI$823,28,FALSE)=0,VLOOKUP($A756,Economática!$A$3:$AI$823,28,FALSE)=\"-\"),1/0,VLOOKUP($A756,Economática!$A$3:$AI$823,28,FALSE)))","v":""},{"$f":"IF($A756=\"\",\"\",IF(OR(VLOOKUP($A756,Economática!$A$3:$AI$823,29,FALSE)=0,VLOOKUP($A756,Economática!$A$3:$AI$823,29,FALSE)=\"-\"),1/0,VLOOKUP($A756,Economática!$A$3:$AI$823,29,FALSE)))","v":""},{"$f":"IF($A756=\"\",\"\",IF(OR(VLOOKUP($A756,Economática!$A$3:$AI$823,30,FALSE)/E756=0,VLOOKUP($A756,Economática!$A$3:$AI$823,30,FALSE)/E756=\"-\",VLOOKUP($A756,Economática!$A$3:$AI$823,30,FALSE)/E756<33.33%,VLOOKUP($A756,Economática!$A$3:$AI$823,30,FALSE)/E756>100%),1/0,VLOOKUP($A756,Economática!$A$3:$AI$823,30,FALSE)/E756))","v":""},"",{"$f":"IF($A756=\"\",\"\",IF(OR(VLOOKUP($A756,Economática!$A$3:$AI$823,25,FALSE)=0,VLOOKUP($A756,Economática!$A$3:$AI$823,25,FALSE)=\"-\"),1/0,VLOOKUP($A756,Economática!$A$3:$AI$823,25,FALSE)))","v":""},{"$f":"CONCATENATE(Economática!B734,\" \",Economática!C734)","v":" "}]
[{"$f":"IF(Economática!AG735=\"\",\"\",Economática!AG735)","v":""},{"$f":"IF($A757=\"\",\"\",VLOOKUP(VLOOKUP($A757,Economática!$A$3:$AI$823,6,FALSE),Correção!$B$16:$C$36,2,FALSE))","v":""},{"$f":"IF(Economática!B735=\"\",\"\",Economática!B735)","v":""},{"$f":"IF($A757=\"\",\"\",IF(OR(VLOOKUP($A757,Economática!$A$3:$AI$823,8,FALSE)=0,VLOOKUP($A757,Economática!$A$3:$AI$823,8,FALSE)=\"-\"),1/0,VLOOKUP($A757,Economática!$A$3:$AI$823,8,FALSE)))","v":""},{"$f":"IF(A757=\"\",\"\",IF(ISERROR(VLOOKUP(A757,Correção!$B$2:$G$13,9,FALSE)),VLOOKUP($A757,Economática!$A$3:$AI$823,9,FALSE),VLOOKUP(A757,Correção!$B$2:$G$13,9,FALSE)))","v":""},{"$f":"IF($A757=\"\",\"\",Economática!G735)","v":""},{"$f":"IF($A757=\"\",\"\",IF(OR(VLOOKUP($A757,Economática!$A$3:$AI$823,10,FALSE)=0,VLOOKUP($A757,Economática!$A$3:$AI$823,10,FALSE)=\"-\"),1/0,VLOOKUP($A757,Economática!$A$3:$AI$823,10,FALSE)))","v":""},{"$f":"IF($A757=\"\",\"\",IF(OR(VLOOKUP($A757,Economática!$A$3:$AI$823,11,FALSE)=0,VLOOKUP($A757,Economática!$A$3:$AI$823,11,FALSE)=\"-\"),1/0,VLOOKUP($A757,Economática!$A$3:$AI$823,11,FALSE)))","v":""},{"$f":"IF($A757=\"\",\"\",IF(OR(VLOOKUP($A757,Economática!$A$3:$AI$823,12,FALSE)=0,VLOOKUP($A757,Economática!$A$3:$AI$823,12,FALSE)=\"-\"),1/0,VLOOKUP($A757,Economática!$A$3:$AI$823,12,FALSE)))","v":""},{"$f":"IF($A757=\"\",\"\",IF(OR(VLOOKUP($A757,Economática!$A$3:$AI$823,13,FALSE)=0,VLOOKUP($A757,Economática!$A$3:$AI$823,13,FALSE)=\"-\"),1/0,VLOOKUP($A757,Economática!$A$3:$AI$823,13,FALSE)))","v":""},{"$f":"IF($A757=\"\",\"\",IF(OR(VLOOKUP($A757,Economática!$A$3:$AI$823,14,FALSE)=0,VLOOKUP($A757,Economática!$A$3:$AI$823,14,FALSE)=\"-\"),1/0,VLOOKUP($A757,Economática!$A$3:$AI$823,14,FALSE)))","v":""},{"$f":"IF($A757=\"\",\"\",IF(OR(VLOOKUP($A757,Economática!$A$3:$AI$823,15,FALSE)=0,VLOOKUP($A757,Economática!$A$3:$AI$823,15,FALSE)=\"-\"),1/0,VLOOKUP($A757,Economática!$A$3:$AI$823,15,FALSE)))","v":""},{"$f":"IF($A757=\"\",\"\",IF(OR(VLOOKUP($A757,Economática!$A$3:$AI$823,16,FALSE)=0,VLOOKUP($A757,Economática!$A$3:$AI$823,16,FALSE)=\"-\"),1/0,VLOOKUP($A757,Economática!$A$3:$AI$823,16,FALSE)))","v":""},{"$f":"IF($A757=\"\",\"\",IF(OR(VLOOKUP($A757,Economática!$A$3:$AI$823,17,FALSE)=0,VLOOKUP($A757,Economática!$A$3:$AI$823,17,FALSE)=\"-\"),1/0,VLOOKUP($A757,Economática!$A$3:$AI$823,17,FALSE)))","v":""},{"$f":"IF($A757=\"\",\"\",IF(OR(VLOOKUP($A757,Economática!$A$3:$AI$823,18,FALSE)=0,VLOOKUP($A757,Economática!$A$3:$AI$823,18,FALSE)=\"-\"),1/0,VLOOKUP($A757,Economática!$A$3:$AI$823,18,FALSE)))","v":""},{"$f":"IF($A757=\"\",\"\",IF(OR(VLOOKUP($A757,Economática!$A$3:$AI$823,19,FALSE)=0,VLOOKUP($A757,Economática!$A$3:$AI$823,19,FALSE)=\"-\"),1/0,VLOOKUP($A757,Economática!$A$3:$AI$823,19,FALSE)))","v":""},{"$f":"IF($A757=\"\",\"\",VLOOKUP($A757,Economática!$A$3:$AI$823,20,FALSE)/E757)","v":""},"","","",{"$f":"IF($A757=\"\",\"\",IF(OR(VLOOKUP($A757,Economática!$A$3:$AI$823,21,FALSE)/100=0,VLOOKUP($A757,Economática!$A$3:$AI$823,21,FALSE)/100=\"-\"),1/0,VLOOKUP($A757,Economática!$A$3:$AI$823,21,FALSE)/100))","v":""},{"$f":"IF($A757=\"\",\"\",IF(OR(VLOOKUP($A757,Economática!$A$3:$AI$823,22,FALSE)/100=0,VLOOKUP($A757,Economática!$A$3:$AI$823,22,FALSE)/100=\"-\"),1/0,VLOOKUP($A757,Economática!$A$3:$AI$823,22,FALSE)/100))","v":""},{"$f":"IF($A757=\"\",\"\",IF(OR(VLOOKUP($A757,Economática!$A$3:$AI$823,23,FALSE)=0,VLOOKUP($A757,Economática!$A$3:$AI$823,23,FALSE)=\"-\"),1/0,VLOOKUP($A757,Economática!$A$3:$AI$823,23,FALSE)))","v":""},{"$f":"IF($A757=\"\",\"\",IF(OR(VLOOKUP($A757,Economática!$A$3:$AI$823,24,FALSE)=0,VLOOKUP($A757,Economática!$A$3:$AI$823,24,FALSE)=\"-\"),1/0,VLOOKUP($A757,Economática!$A$3:$AI$823,24,FALSE)))","v":""},{"$f":"IF($A757=\"\",\"\",IF(OR(VLOOKUP($A757,Economática!$A$3:$AI$823,25,FALSE)=0,VLOOKUP($A757,Economática!$A$3:$AI$823,25,FALSE)=\"-\"),1/0,VLOOKUP($A757,Economática!$A$3:$AI$823,25,FALSE)))","v":""},{"$f":"IF($A757=\"\",\"\",IF(ISERROR((F757+VLOOKUP($A757,Economática!$A$3:$AI$823,26,FALSE))/Y757),(F757+VLOOKUP($A757,Economática!$A$3:$AI$823,26,FALSE))/Y757,(F757+VLOOKUP($A757,Economática!$A$3:$AI$823,26,FALSE))/Y757))","v":""},{"$f":"IF($A757=\"\",\"\",IF(OR(-VLOOKUP($A757,Economática!$A$3:$AI$823,27,FALSE)=0,-VLOOKUP($A757,Economática!$A$3:$AI$823,27,FALSE)=\"-\"),1/0,-VLOOKUP($A757,Economática!$A$3:$AI$823,27,FALSE)))","v":""},"",{"$f":"IF($A757=\"\",\"\",IF(OR(VLOOKUP($A757,Economática!$A$3:$AI$823,28,FALSE)=0,VLOOKUP($A757,Economática!$A$3:$AI$823,28,FALSE)=\"-\"),1/0,VLOOKUP($A757,Economática!$A$3:$AI$823,28,FALSE)))","v":""},{"$f":"IF($A757=\"\",\"\",IF(OR(VLOOKUP($A757,Economática!$A$3:$AI$823,29,FALSE)=0,VLOOKUP($A757,Economática!$A$3:$AI$823,29,FALSE)=\"-\"),1/0,VLOOKUP($A757,Economática!$A$3:$AI$823,29,FALSE)))","v":""},{"$f":"IF($A757=\"\",\"\",IF(OR(VLOOKUP($A757,Economática!$A$3:$AI$823,30,FALSE)/E757=0,VLOOKUP($A757,Economática!$A$3:$AI$823,30,FALSE)/E757=\"-\",VLOOKUP($A757,Economática!$A$3:$AI$823,30,FALSE)/E757<33.33%,VLOOKUP($A757,Economática!$A$3:$AI$823,30,FALSE)/E757>100%),1/0,VLOOKUP($A757,Economática!$A$3:$AI$823,30,FALSE)/E757))","v":""},"",{"$f":"IF($A757=\"\",\"\",IF(OR(VLOOKUP($A757,Economática!$A$3:$AI$823,25,FALSE)=0,VLOOKUP($A757,Economática!$A$3:$AI$823,25,FALSE)=\"-\"),1/0,VLOOKUP($A757,Economática!$A$3:$AI$823,25,FALSE)))","v":""},{"$f":"CONCATENATE(Economática!B735,\" \",Economática!C735)","v":" "}]
[{"$f":"IF(Economática!AG736=\"\",\"\",Economática!AG736)","v":""},{"$f":"IF($A758=\"\",\"\",VLOOKUP(VLOOKUP($A758,Economática!$A$3:$AI$823,6,FALSE),Correção!$B$16:$C$36,2,FALSE))","v":""},{"$f":"IF(Economática!B736=\"\",\"\",Economática!B736)","v":""},{"$f":"IF($A758=\"\",\"\",IF(OR(VLOOKUP($A758,Economática!$A$3:$AI$823,8,FALSE)=0,VLOOKUP($A758,Economática!$A$3:$AI$823,8,FALSE)=\"-\"),1/0,VLOOKUP($A758,Economática!$A$3:$AI$823,8,FALSE)))","v":""},{"$f":"IF(A758=\"\",\"\",IF(ISERROR(VLOOKUP(A758,Correção!$B$2:$G$13,9,FALSE)),VLOOKUP($A758,Economática!$A$3:$AI$823,9,FALSE),VLOOKUP(A758,Correção!$B$2:$G$13,9,FALSE)))","v":""},{"$f":"IF($A758=\"\",\"\",Economática!G736)","v":""},{"$f":"IF($A758=\"\",\"\",IF(OR(VLOOKUP($A758,Economática!$A$3:$AI$823,10,FALSE)=0,VLOOKUP($A758,Economática!$A$3:$AI$823,10,FALSE)=\"-\"),1/0,VLOOKUP($A758,Economática!$A$3:$AI$823,10,FALSE)))","v":""},{"$f":"IF($A758=\"\",\"\",IF(OR(VLOOKUP($A758,Economática!$A$3:$AI$823,11,FALSE)=0,VLOOKUP($A758,Economática!$A$3:$AI$823,11,FALSE)=\"-\"),1/0,VLOOKUP($A758,Economática!$A$3:$AI$823,11,FALSE)))","v":""},{"$f":"IF($A758=\"\",\"\",IF(OR(VLOOKUP($A758,Economática!$A$3:$AI$823,12,FALSE)=0,VLOOKUP($A758,Economática!$A$3:$AI$823,12,FALSE)=\"-\"),1/0,VLOOKUP($A758,Economática!$A$3:$AI$823,12,FALSE)))","v":""},{"$f":"IF($A758=\"\",\"\",IF(OR(VLOOKUP($A758,Economática!$A$3:$AI$823,13,FALSE)=0,VLOOKUP($A758,Economática!$A$3:$AI$823,13,FALSE)=\"-\"),1/0,VLOOKUP($A758,Economática!$A$3:$AI$823,13,FALSE)))","v":""},{"$f":"IF($A758=\"\",\"\",IF(OR(VLOOKUP($A758,Economática!$A$3:$AI$823,14,FALSE)=0,VLOOKUP($A758,Economática!$A$3:$AI$823,14,FALSE)=\"-\"),1/0,VLOOKUP($A758,Economática!$A$3:$AI$823,14,FALSE)))","v":""},{"$f":"IF($A758=\"\",\"\",IF(OR(VLOOKUP($A758,Economática!$A$3:$AI$823,15,FALSE)=0,VLOOKUP($A758,Economática!$A$3:$AI$823,15,FALSE)=\"-\"),1/0,VLOOKUP($A758,Economática!$A$3:$AI$823,15,FALSE)))","v":""},{"$f":"IF($A758=\"\",\"\",IF(OR(VLOOKUP($A758,Economática!$A$3:$AI$823,16,FALSE)=0,VLOOKUP($A758,Economática!$A$3:$AI$823,16,FALSE)=\"-\"),1/0,VLOOKUP($A758,Economática!$A$3:$AI$823,16,FALSE)))","v":""},{"$f":"IF($A758=\"\",\"\",IF(OR(VLOOKUP($A758,Economática!$A$3:$AI$823,17,FALSE)=0,VLOOKUP($A758,Economática!$A$3:$AI$823,17,FALSE)=\"-\"),1/0,VLOOKUP($A758,Economática!$A$3:$AI$823,17,FALSE)))","v":""},{"$f":"IF($A758=\"\",\"\",IF(OR(VLOOKUP($A758,Economática!$A$3:$AI$823,18,FALSE)=0,VLOOKUP($A758,Economática!$A$3:$AI$823,18,FALSE)=\"-\"),1/0,VLOOKUP($A758,Economática!$A$3:$AI$823,18,FALSE)))","v":""},{"$f":"IF($A758=\"\",\"\",IF(OR(VLOOKUP($A758,Economática!$A$3:$AI$823,19,FALSE)=0,VLOOKUP($A758,Economática!$A$3:$AI$823,19,FALSE)=\"-\"),1/0,VLOOKUP($A758,Economática!$A$3:$AI$823,19,FALSE)))","v":""},{"$f":"IF($A758=\"\",\"\",VLOOKUP($A758,Economática!$A$3:$AI$823,20,FALSE)/E758)","v":""},"","","",{"$f":"IF($A758=\"\",\"\",IF(OR(VLOOKUP($A758,Economática!$A$3:$AI$823,21,FALSE)/100=0,VLOOKUP($A758,Economática!$A$3:$AI$823,21,FALSE)/100=\"-\"),1/0,VLOOKUP($A758,Economática!$A$3:$AI$823,21,FALSE)/100))","v":""},{"$f":"IF($A758=\"\",\"\",IF(OR(VLOOKUP($A758,Economática!$A$3:$AI$823,22,FALSE)/100=0,VLOOKUP($A758,Economática!$A$3:$AI$823,22,FALSE)/100=\"-\"),1/0,VLOOKUP($A758,Economática!$A$3:$AI$823,22,FALSE)/100))","v":""},{"$f":"IF($A758=\"\",\"\",IF(OR(VLOOKUP($A758,Economática!$A$3:$AI$823,23,FALSE)=0,VLOOKUP($A758,Economática!$A$3:$AI$823,23,FALSE)=\"-\"),1/0,VLOOKUP($A758,Economática!$A$3:$AI$823,23,FALSE)))","v":""},{"$f":"IF($A758=\"\",\"\",IF(OR(VLOOKUP($A758,Economática!$A$3:$AI$823,24,FALSE)=0,VLOOKUP($A758,Economática!$A$3:$AI$823,24,FALSE)=\"-\"),1/0,VLOOKUP($A758,Economática!$A$3:$AI$823,24,FALSE)))","v":""},{"$f":"IF($A758=\"\",\"\",IF(OR(VLOOKUP($A758,Economática!$A$3:$AI$823,25,FALSE)=0,VLOOKUP($A758,Economática!$A$3:$AI$823,25,FALSE)=\"-\"),1/0,VLOOKUP($A758,Economática!$A$3:$AI$823,25,FALSE)))","v":""},{"$f":"IF($A758=\"\",\"\",IF(ISERROR((F758+VLOOKUP($A758,Economática!$A$3:$AI$823,26,FALSE))/Y758),(F758+VLOOKUP($A758,Economática!$A$3:$AI$823,26,FALSE))/Y758,(F758+VLOOKUP($A758,Economática!$A$3:$AI$823,26,FALSE))/Y758))","v":""},{"$f":"IF($A758=\"\",\"\",IF(OR(-VLOOKUP($A758,Economática!$A$3:$AI$823,27,FALSE)=0,-VLOOKUP($A758,Economática!$A$3:$AI$823,27,FALSE)=\"-\"),1/0,-VLOOKUP($A758,Economática!$A$3:$AI$823,27,FALSE)))","v":""},"",{"$f":"IF($A758=\"\",\"\",IF(OR(VLOOKUP($A758,Economática!$A$3:$AI$823,28,FALSE)=0,VLOOKUP($A758,Economática!$A$3:$AI$823,28,FALSE)=\"-\"),1/0,VLOOKUP($A758,Economática!$A$3:$AI$823,28,FALSE)))","v":""},{"$f":"IF($A758=\"\",\"\",IF(OR(VLOOKUP($A758,Economática!$A$3:$AI$823,29,FALSE)=0,VLOOKUP($A758,Economática!$A$3:$AI$823,29,FALSE)=\"-\"),1/0,VLOOKUP($A758,Economática!$A$3:$AI$823,29,FALSE)))","v":""},{"$f":"IF($A758=\"\",\"\",IF(OR(VLOOKUP($A758,Economática!$A$3:$AI$823,30,FALSE)/E758=0,VLOOKUP($A758,Economática!$A$3:$AI$823,30,FALSE)/E758=\"-\",VLOOKUP($A758,Economática!$A$3:$AI$823,30,FALSE)/E758<33.33%,VLOOKUP($A758,Economática!$A$3:$AI$823,30,FALSE)/E758>100%),1/0,VLOOKUP($A758,Economática!$A$3:$AI$823,30,FALSE)/E758))","v":""},"",{"$f":"IF($A758=\"\",\"\",IF(OR(VLOOKUP($A758,Economática!$A$3:$AI$823,25,FALSE)=0,VLOOKUP($A758,Economática!$A$3:$AI$823,25,FALSE)=\"-\"),1/0,VLOOKUP($A758,Economática!$A$3:$AI$823,25,FALSE)))","v":""},{"$f":"CONCATENATE(Economática!B736,\" \",Economática!C736)","v":" "}]
[{"$f":"IF(Economática!AG737=\"\",\"\",Economática!AG737)","v":""},{"$f":"IF($A759=\"\",\"\",VLOOKUP(VLOOKUP($A759,Economática!$A$3:$AI$823,6,FALSE),Correção!$B$16:$C$36,2,FALSE))","v":""},{"$f":"IF(Economática!B737=\"\",\"\",Economática!B737)","v":""},{"$f":"IF($A759=\"\",\"\",IF(OR(VLOOKUP($A759,Economática!$A$3:$AI$823,8,FALSE)=0,VLOOKUP($A759,Economática!$A$3:$AI$823,8,FALSE)=\"-\"),1/0,VLOOKUP($A759,Economática!$A$3:$AI$823,8,FALSE)))","v":""},{"$f":"IF(A759=\"\",\"\",IF(ISERROR(VLOOKUP(A759,Correção!$B$2:$G$13,9,FALSE)),VLOOKUP($A759,Economática!$A$3:$AI$823,9,FALSE),VLOOKUP(A759,Correção!$B$2:$G$13,9,FALSE)))","v":""},{"$f":"IF($A759=\"\",\"\",Economática!G737)","v":""},{"$f":"IF($A759=\"\",\"\",IF(OR(VLOOKUP($A759,Economática!$A$3:$AI$823,10,FALSE)=0,VLOOKUP($A759,Economática!$A$3:$AI$823,10,FALSE)=\"-\"),1/0,VLOOKUP($A759,Economática!$A$3:$AI$823,10,FALSE)))","v":""},{"$f":"IF($A759=\"\",\"\",IF(OR(VLOOKUP($A759,Economática!$A$3:$AI$823,11,FALSE)=0,VLOOKUP($A759,Economática!$A$3:$AI$823,11,FALSE)=\"-\"),1/0,VLOOKUP($A759,Economática!$A$3:$AI$823,11,FALSE)))","v":""},{"$f":"IF($A759=\"\",\"\",IF(OR(VLOOKUP($A759,Economática!$A$3:$AI$823,12,FALSE)=0,VLOOKUP($A759,Economática!$A$3:$AI$823,12,FALSE)=\"-\"),1/0,VLOOKUP($A759,Economática!$A$3:$AI$823,12,FALSE)))","v":""},{"$f":"IF($A759=\"\",\"\",IF(OR(VLOOKUP($A759,Economática!$A$3:$AI$823,13,FALSE)=0,VLOOKUP($A759,Economática!$A$3:$AI$823,13,FALSE)=\"-\"),1/0,VLOOKUP($A759,Economática!$A$3:$AI$823,13,FALSE)))","v":""},{"$f":"IF($A759=\"\",\"\",IF(OR(VLOOKUP($A759,Economática!$A$3:$AI$823,14,FALSE)=0,VLOOKUP($A759,Economática!$A$3:$AI$823,14,FALSE)=\"-\"),1/0,VLOOKUP($A759,Economática!$A$3:$AI$823,14,FALSE)))","v":""},{"$f":"IF($A759=\"\",\"\",IF(OR(VLOOKUP($A759,Economática!$A$3:$AI$823,15,FALSE)=0,VLOOKUP($A759,Economática!$A$3:$AI$823,15,FALSE)=\"-\"),1/0,VLOOKUP($A759,Economática!$A$3:$AI$823,15,FALSE)))","v":""},{"$f":"IF($A759=\"\",\"\",IF(OR(VLOOKUP($A759,Economática!$A$3:$AI$823,16,FALSE)=0,VLOOKUP($A759,Economática!$A$3:$AI$823,16,FALSE)=\"-\"),1/0,VLOOKUP($A759,Economática!$A$3:$AI$823,16,FALSE)))","v":""},{"$f":"IF($A759=\"\",\"\",IF(OR(VLOOKUP($A759,Economática!$A$3:$AI$823,17,FALSE)=0,VLOOKUP($A759,Economática!$A$3:$AI$823,17,FALSE)=\"-\"),1/0,VLOOKUP($A759,Economática!$A$3:$AI$823,17,FALSE)))","v":""},{"$f":"IF($A759=\"\",\"\",IF(OR(VLOOKUP($A759,Economática!$A$3:$AI$823,18,FALSE)=0,VLOOKUP($A759,Economática!$A$3:$AI$823,18,FALSE)=\"-\"),1/0,VLOOKUP($A759,Economática!$A$3:$AI$823,18,FALSE)))","v":""},{"$f":"IF($A759=\"\",\"\",IF(OR(VLOOKUP($A759,Economática!$A$3:$AI$823,19,FALSE)=0,VLOOKUP($A759,Economática!$A$3:$AI$823,19,FALSE)=\"-\"),1/0,VLOOKUP($A759,Economática!$A$3:$AI$823,19,FALSE)))","v":""},{"$f":"IF($A759=\"\",\"\",VLOOKUP($A759,Economática!$A$3:$AI$823,20,FALSE)/E759)","v":""},"","","",{"$f":"IF($A759=\"\",\"\",IF(OR(VLOOKUP($A759,Economática!$A$3:$AI$823,21,FALSE)/100=0,VLOOKUP($A759,Economática!$A$3:$AI$823,21,FALSE)/100=\"-\"),1/0,VLOOKUP($A759,Economática!$A$3:$AI$823,21,FALSE)/100))","v":""},{"$f":"IF($A759=\"\",\"\",IF(OR(VLOOKUP($A759,Economática!$A$3:$AI$823,22,FALSE)/100=0,VLOOKUP($A759,Economática!$A$3:$AI$823,22,FALSE)/100=\"-\"),1/0,VLOOKUP($A759,Economática!$A$3:$AI$823,22,FALSE)/100))","v":""},{"$f":"IF($A759=\"\",\"\",IF(OR(VLOOKUP($A759,Economática!$A$3:$AI$823,23,FALSE)=0,VLOOKUP($A759,Economática!$A$3:$AI$823,23,FALSE)=\"-\"),1/0,VLOOKUP($A759,Economática!$A$3:$AI$823,23,FALSE)))","v":""},{"$f":"IF($A759=\"\",\"\",IF(OR(VLOOKUP($A759,Economática!$A$3:$AI$823,24,FALSE)=0,VLOOKUP($A759,Economática!$A$3:$AI$823,24,FALSE)=\"-\"),1/0,VLOOKUP($A759,Economática!$A$3:$AI$823,24,FALSE)))","v":""},{"$f":"IF($A759=\"\",\"\",IF(OR(VLOOKUP($A759,Economática!$A$3:$AI$823,25,FALSE)=0,VLOOKUP($A759,Economática!$A$3:$AI$823,25,FALSE)=\"-\"),1/0,VLOOKUP($A759,Economática!$A$3:$AI$823,25,FALSE)))","v":""},{"$f":"IF($A759=\"\",\"\",IF(ISERROR((F759+VLOOKUP($A759,Economática!$A$3:$AI$823,26,FALSE))/Y759),(F759+VLOOKUP($A759,Economática!$A$3:$AI$823,26,FALSE))/Y759,(F759+VLOOKUP($A759,Economática!$A$3:$AI$823,26,FALSE))/Y759))","v":""},{"$f":"IF($A759=\"\",\"\",IF(OR(-VLOOKUP($A759,Economática!$A$3:$AI$823,27,FALSE)=0,-VLOOKUP($A759,Economática!$A$3:$AI$823,27,FALSE)=\"-\"),1/0,-VLOOKUP($A759,Economática!$A$3:$AI$823,27,FALSE)))","v":""},"",{"$f":"IF($A759=\"\",\"\",IF(OR(VLOOKUP($A759,Economática!$A$3:$AI$823,28,FALSE)=0,VLOOKUP($A759,Economática!$A$3:$AI$823,28,FALSE)=\"-\"),1/0,VLOOKUP($A759,Economática!$A$3:$AI$823,28,FALSE)))","v":""},{"$f":"IF($A759=\"\",\"\",IF(OR(VLOOKUP($A759,Economática!$A$3:$AI$823,29,FALSE)=0,VLOOKUP($A759,Economática!$A$3:$AI$823,29,FALSE)=\"-\"),1/0,VLOOKUP($A759,Economática!$A$3:$AI$823,29,FALSE)))","v":""},{"$f":"IF($A759=\"\",\"\",IF(OR(VLOOKUP($A759,Economática!$A$3:$AI$823,30,FALSE)/E759=0,VLOOKUP($A759,Economática!$A$3:$AI$823,30,FALSE)/E759=\"-\",VLOOKUP($A759,Economática!$A$3:$AI$823,30,FALSE)/E759<33.33%,VLOOKUP($A759,Economática!$A$3:$AI$823,30,FALSE)/E759>100%),1/0,VLOOKUP($A759,Economática!$A$3:$AI$823,30,FALSE)/E759))","v":""},"",{"$f":"IF($A759=\"\",\"\",IF(OR(VLOOKUP($A759,Economática!$A$3:$AI$823,25,FALSE)=0,VLOOKUP($A759,Economática!$A$3:$AI$823,25,FALSE)=\"-\"),1/0,VLOOKUP($A759,Economática!$A$3:$AI$823,25,FALSE)))","v":""},{"$f":"CONCATENATE(Economática!B737,\" \",Economática!C737)","v":" "}]
[{"$f":"IF(Economática!AG738=\"\",\"\",Economática!AG738)","v":""},{"$f":"IF($A760=\"\",\"\",VLOOKUP(VLOOKUP($A760,Economática!$A$3:$AI$823,6,FALSE),Correção!$B$16:$C$36,2,FALSE))","v":""},{"$f":"IF(Economática!B738=\"\",\"\",Economática!B738)","v":""},{"$f":"IF($A760=\"\",\"\",IF(OR(VLOOKUP($A760,Economática!$A$3:$AI$823,8,FALSE)=0,VLOOKUP($A760,Economática!$A$3:$AI$823,8,FALSE)=\"-\"),1/0,VLOOKUP($A760,Economática!$A$3:$AI$823,8,FALSE)))","v":""},{"$f":"IF(A760=\"\",\"\",IF(ISERROR(VLOOKUP(A760,Correção!$B$2:$G$13,9,FALSE)),VLOOKUP($A760,Economática!$A$3:$AI$823,9,FALSE),VLOOKUP(A760,Correção!$B$2:$G$13,9,FALSE)))","v":""},{"$f":"IF($A760=\"\",\"\",Economática!G738)","v":""},{"$f":"IF($A760=\"\",\"\",IF(OR(VLOOKUP($A760,Economática!$A$3:$AI$823,10,FALSE)=0,VLOOKUP($A760,Economática!$A$3:$AI$823,10,FALSE)=\"-\"),1/0,VLOOKUP($A760,Economática!$A$3:$AI$823,10,FALSE)))","v":""},{"$f":"IF($A760=\"\",\"\",IF(OR(VLOOKUP($A760,Economática!$A$3:$AI$823,11,FALSE)=0,VLOOKUP($A760,Economática!$A$3:$AI$823,11,FALSE)=\"-\"),1/0,VLOOKUP($A760,Economática!$A$3:$AI$823,11,FALSE)))","v":""},{"$f":"IF($A760=\"\",\"\",IF(OR(VLOOKUP($A760,Economática!$A$3:$AI$823,12,FALSE)=0,VLOOKUP($A760,Economática!$A$3:$AI$823,12,FALSE)=\"-\"),1/0,VLOOKUP($A760,Economática!$A$3:$AI$823,12,FALSE)))","v":""},{"$f":"IF($A760=\"\",\"\",IF(OR(VLOOKUP($A760,Economática!$A$3:$AI$823,13,FALSE)=0,VLOOKUP($A760,Economática!$A$3:$AI$823,13,FALSE)=\"-\"),1/0,VLOOKUP($A760,Economática!$A$3:$AI$823,13,FALSE)))","v":""},{"$f":"IF($A760=\"\",\"\",IF(OR(VLOOKUP($A760,Economática!$A$3:$AI$823,14,FALSE)=0,VLOOKUP($A760,Economática!$A$3:$AI$823,14,FALSE)=\"-\"),1/0,VLOOKUP($A760,Economática!$A$3:$AI$823,14,FALSE)))","v":""},{"$f":"IF($A760=\"\",\"\",IF(OR(VLOOKUP($A760,Economática!$A$3:$AI$823,15,FALSE)=0,VLOOKUP($A760,Economática!$A$3:$AI$823,15,FALSE)=\"-\"),1/0,VLOOKUP($A760,Economática!$A$3:$AI$823,15,FALSE)))","v":""},{"$f":"IF($A760=\"\",\"\",IF(OR(VLOOKUP($A760,Economática!$A$3:$AI$823,16,FALSE)=0,VLOOKUP($A760,Economática!$A$3:$AI$823,16,FALSE)=\"-\"),1/0,VLOOKUP($A760,Economática!$A$3:$AI$823,16,FALSE)))","v":""},{"$f":"IF($A760=\"\",\"\",IF(OR(VLOOKUP($A760,Economática!$A$3:$AI$823,17,FALSE)=0,VLOOKUP($A760,Economática!$A$3:$AI$823,17,FALSE)=\"-\"),1/0,VLOOKUP($A760,Economática!$A$3:$AI$823,17,FALSE)))","v":""},{"$f":"IF($A760=\"\",\"\",IF(OR(VLOOKUP($A760,Economática!$A$3:$AI$823,18,FALSE)=0,VLOOKUP($A760,Economática!$A$3:$AI$823,18,FALSE)=\"-\"),1/0,VLOOKUP($A760,Economática!$A$3:$AI$823,18,FALSE)))","v":""},{"$f":"IF($A760=\"\",\"\",IF(OR(VLOOKUP($A760,Economática!$A$3:$AI$823,19,FALSE)=0,VLOOKUP($A760,Economática!$A$3:$AI$823,19,FALSE)=\"-\"),1/0,VLOOKUP($A760,Economática!$A$3:$AI$823,19,FALSE)))","v":""},{"$f":"IF($A760=\"\",\"\",VLOOKUP($A760,Economática!$A$3:$AI$823,20,FALSE)/E760)","v":""},"","","",{"$f":"IF($A760=\"\",\"\",IF(OR(VLOOKUP($A760,Economática!$A$3:$AI$823,21,FALSE)/100=0,VLOOKUP($A760,Economática!$A$3:$AI$823,21,FALSE)/100=\"-\"),1/0,VLOOKUP($A760,Economática!$A$3:$AI$823,21,FALSE)/100))","v":""},{"$f":"IF($A760=\"\",\"\",IF(OR(VLOOKUP($A760,Economática!$A$3:$AI$823,22,FALSE)/100=0,VLOOKUP($A760,Economática!$A$3:$AI$823,22,FALSE)/100=\"-\"),1/0,VLOOKUP($A760,Economática!$A$3:$AI$823,22,FALSE)/100))","v":""},{"$f":"IF($A760=\"\",\"\",IF(OR(VLOOKUP($A760,Economática!$A$3:$AI$823,23,FALSE)=0,VLOOKUP($A760,Economática!$A$3:$AI$823,23,FALSE)=\"-\"),1/0,VLOOKUP($A760,Economática!$A$3:$AI$823,23,FALSE)))","v":""},{"$f":"IF($A760=\"\",\"\",IF(OR(VLOOKUP($A760,Economática!$A$3:$AI$823,24,FALSE)=0,VLOOKUP($A760,Economática!$A$3:$AI$823,24,FALSE)=\"-\"),1/0,VLOOKUP($A760,Economática!$A$3:$AI$823,24,FALSE)))","v":""},{"$f":"IF($A760=\"\",\"\",IF(OR(VLOOKUP($A760,Economática!$A$3:$AI$823,25,FALSE)=0,VLOOKUP($A760,Economática!$A$3:$AI$823,25,FALSE)=\"-\"),1/0,VLOOKUP($A760,Economática!$A$3:$AI$823,25,FALSE)))","v":""},{"$f":"IF($A760=\"\",\"\",IF(ISERROR((F760+VLOOKUP($A760,Economática!$A$3:$AI$823,26,FALSE))/Y760),(F760+VLOOKUP($A760,Economática!$A$3:$AI$823,26,FALSE))/Y760,(F760+VLOOKUP($A760,Economática!$A$3:$AI$823,26,FALSE))/Y760))","v":""},{"$f":"IF($A760=\"\",\"\",IF(OR(-VLOOKUP($A760,Economática!$A$3:$AI$823,27,FALSE)=0,-VLOOKUP($A760,Economática!$A$3:$AI$823,27,FALSE)=\"-\"),1/0,-VLOOKUP($A760,Economática!$A$3:$AI$823,27,FALSE)))","v":""},"",{"$f":"IF($A760=\"\",\"\",IF(OR(VLOOKUP($A760,Economática!$A$3:$AI$823,28,FALSE)=0,VLOOKUP($A760,Economática!$A$3:$AI$823,28,FALSE)=\"-\"),1/0,VLOOKUP($A760,Economática!$A$3:$AI$823,28,FALSE)))","v":""},{"$f":"IF($A760=\"\",\"\",IF(OR(VLOOKUP($A760,Economática!$A$3:$AI$823,29,FALSE)=0,VLOOKUP($A760,Economática!$A$3:$AI$823,29,FALSE)=\"-\"),1/0,VLOOKUP($A760,Economática!$A$3:$AI$823,29,FALSE)))","v":""},{"$f":"IF($A760=\"\",\"\",IF(OR(VLOOKUP($A760,Economática!$A$3:$AI$823,30,FALSE)/E760=0,VLOOKUP($A760,Economática!$A$3:$AI$823,30,FALSE)/E760=\"-\",VLOOKUP($A760,Economática!$A$3:$AI$823,30,FALSE)/E760<33.33%,VLOOKUP($A760,Economática!$A$3:$AI$823,30,FALSE)/E760>100%),1/0,VLOOKUP($A760,Economática!$A$3:$AI$823,30,FALSE)/E760))","v":""},"",{"$f":"IF($A760=\"\",\"\",IF(OR(VLOOKUP($A760,Economática!$A$3:$AI$823,25,FALSE)=0,VLOOKUP($A760,Economática!$A$3:$AI$823,25,FALSE)=\"-\"),1/0,VLOOKUP($A760,Economática!$A$3:$AI$823,25,FALSE)))","v":""},{"$f":"CONCATENATE(Economática!B738,\" \",Economática!C738)","v":" "}]
[{"$f":"IF(Economática!AG739=\"\",\"\",Economática!AG739)","v":""},{"$f":"IF($A761=\"\",\"\",VLOOKUP(VLOOKUP($A761,Economática!$A$3:$AI$823,6,FALSE),Correção!$B$16:$C$36,2,FALSE))","v":""},{"$f":"IF(Economática!B739=\"\",\"\",Economática!B739)","v":""},{"$f":"IF($A761=\"\",\"\",IF(OR(VLOOKUP($A761,Economática!$A$3:$AI$823,8,FALSE)=0,VLOOKUP($A761,Economática!$A$3:$AI$823,8,FALSE)=\"-\"),1/0,VLOOKUP($A761,Economática!$A$3:$AI$823,8,FALSE)))","v":""},{"$f":"IF(A761=\"\",\"\",IF(ISERROR(VLOOKUP(A761,Correção!$B$2:$G$13,9,FALSE)),VLOOKUP($A761,Economática!$A$3:$AI$823,9,FALSE),VLOOKUP(A761,Correção!$B$2:$G$13,9,FALSE)))","v":""},{"$f":"IF($A761=\"\",\"\",Economática!G739)","v":""},{"$f":"IF($A761=\"\",\"\",IF(OR(VLOOKUP($A761,Economática!$A$3:$AI$823,10,FALSE)=0,VLOOKUP($A761,Economática!$A$3:$AI$823,10,FALSE)=\"-\"),1/0,VLOOKUP($A761,Economática!$A$3:$AI$823,10,FALSE)))","v":""},{"$f":"IF($A761=\"\",\"\",IF(OR(VLOOKUP($A761,Economática!$A$3:$AI$823,11,FALSE)=0,VLOOKUP($A761,Economática!$A$3:$AI$823,11,FALSE)=\"-\"),1/0,VLOOKUP($A761,Economática!$A$3:$AI$823,11,FALSE)))","v":""},{"$f":"IF($A761=\"\",\"\",IF(OR(VLOOKUP($A761,Economática!$A$3:$AI$823,12,FALSE)=0,VLOOKUP($A761,Economática!$A$3:$AI$823,12,FALSE)=\"-\"),1/0,VLOOKUP($A761,Economática!$A$3:$AI$823,12,FALSE)))","v":""},{"$f":"IF($A761=\"\",\"\",IF(OR(VLOOKUP($A761,Economática!$A$3:$AI$823,13,FALSE)=0,VLOOKUP($A761,Economática!$A$3:$AI$823,13,FALSE)=\"-\"),1/0,VLOOKUP($A761,Economática!$A$3:$AI$823,13,FALSE)))","v":""},{"$f":"IF($A761=\"\",\"\",IF(OR(VLOOKUP($A761,Economática!$A$3:$AI$823,14,FALSE)=0,VLOOKUP($A761,Economática!$A$3:$AI$823,14,FALSE)=\"-\"),1/0,VLOOKUP($A761,Economática!$A$3:$AI$823,14,FALSE)))","v":""},{"$f":"IF($A761=\"\",\"\",IF(OR(VLOOKUP($A761,Economática!$A$3:$AI$823,15,FALSE)=0,VLOOKUP($A761,Economática!$A$3:$AI$823,15,FALSE)=\"-\"),1/0,VLOOKUP($A761,Economática!$A$3:$AI$823,15,FALSE)))","v":""},{"$f":"IF($A761=\"\",\"\",IF(OR(VLOOKUP($A761,Economática!$A$3:$AI$823,16,FALSE)=0,VLOOKUP($A761,Economática!$A$3:$AI$823,16,FALSE)=\"-\"),1/0,VLOOKUP($A761,Economática!$A$3:$AI$823,16,FALSE)))","v":""},{"$f":"IF($A761=\"\",\"\",IF(OR(VLOOKUP($A761,Economática!$A$3:$AI$823,17,FALSE)=0,VLOOKUP($A761,Economática!$A$3:$AI$823,17,FALSE)=\"-\"),1/0,VLOOKUP($A761,Economática!$A$3:$AI$823,17,FALSE)))","v":""},{"$f":"IF($A761=\"\",\"\",IF(OR(VLOOKUP($A761,Economática!$A$3:$AI$823,18,FALSE)=0,VLOOKUP($A761,Economática!$A$3:$AI$823,18,FALSE)=\"-\"),1/0,VLOOKUP($A761,Economática!$A$3:$AI$823,18,FALSE)))","v":""},{"$f":"IF($A761=\"\",\"\",IF(OR(VLOOKUP($A761,Economática!$A$3:$AI$823,19,FALSE)=0,VLOOKUP($A761,Economática!$A$3:$AI$823,19,FALSE)=\"-\"),1/0,VLOOKUP($A761,Economática!$A$3:$AI$823,19,FALSE)))","v":""},{"$f":"IF($A761=\"\",\"\",VLOOKUP($A761,Economática!$A$3:$AI$823,20,FALSE)/E761)","v":""},"","","",{"$f":"IF($A761=\"\",\"\",IF(OR(VLOOKUP($A761,Economática!$A$3:$AI$823,21,FALSE)/100=0,VLOOKUP($A761,Economática!$A$3:$AI$823,21,FALSE)/100=\"-\"),1/0,VLOOKUP($A761,Economática!$A$3:$AI$823,21,FALSE)/100))","v":""},{"$f":"IF($A761=\"\",\"\",IF(OR(VLOOKUP($A761,Economática!$A$3:$AI$823,22,FALSE)/100=0,VLOOKUP($A761,Economática!$A$3:$AI$823,22,FALSE)/100=\"-\"),1/0,VLOOKUP($A761,Economática!$A$3:$AI$823,22,FALSE)/100))","v":""},{"$f":"IF($A761=\"\",\"\",IF(OR(VLOOKUP($A761,Economática!$A$3:$AI$823,23,FALSE)=0,VLOOKUP($A761,Economática!$A$3:$AI$823,23,FALSE)=\"-\"),1/0,VLOOKUP($A761,Economática!$A$3:$AI$823,23,FALSE)))","v":""},{"$f":"IF($A761=\"\",\"\",IF(OR(VLOOKUP($A761,Economática!$A$3:$AI$823,24,FALSE)=0,VLOOKUP($A761,Economática!$A$3:$AI$823,24,FALSE)=\"-\"),1/0,VLOOKUP($A761,Economática!$A$3:$AI$823,24,FALSE)))","v":""},{"$f":"IF($A761=\"\",\"\",IF(OR(VLOOKUP($A761,Economática!$A$3:$AI$823,25,FALSE)=0,VLOOKUP($A761,Economática!$A$3:$AI$823,25,FALSE)=\"-\"),1/0,VLOOKUP($A761,Economática!$A$3:$AI$823,25,FALSE)))","v":""},{"$f":"IF($A761=\"\",\"\",IF(ISERROR((F761+VLOOKUP($A761,Economática!$A$3:$AI$823,26,FALSE))/Y761),(F761+VLOOKUP($A761,Economática!$A$3:$AI$823,26,FALSE))/Y761,(F761+VLOOKUP($A761,Economática!$A$3:$AI$823,26,FALSE))/Y761))","v":""},{"$f":"IF($A761=\"\",\"\",IF(OR(-VLOOKUP($A761,Economática!$A$3:$AI$823,27,FALSE)=0,-VLOOKUP($A761,Economática!$A$3:$AI$823,27,FALSE)=\"-\"),1/0,-VLOOKUP($A761,Economática!$A$3:$AI$823,27,FALSE)))","v":""},"",{"$f":"IF($A761=\"\",\"\",IF(OR(VLOOKUP($A761,Economática!$A$3:$AI$823,28,FALSE)=0,VLOOKUP($A761,Economática!$A$3:$AI$823,28,FALSE)=\"-\"),1/0,VLOOKUP($A761,Economática!$A$3:$AI$823,28,FALSE)))","v":""},{"$f":"IF($A761=\"\",\"\",IF(OR(VLOOKUP($A761,Economática!$A$3:$AI$823,29,FALSE)=0,VLOOKUP($A761,Economática!$A$3:$AI$823,29,FALSE)=\"-\"),1/0,VLOOKUP($A761,Economática!$A$3:$AI$823,29,FALSE)))","v":""},{"$f":"IF($A761=\"\",\"\",IF(OR(VLOOKUP($A761,Economática!$A$3:$AI$823,30,FALSE)/E761=0,VLOOKUP($A761,Economática!$A$3:$AI$823,30,FALSE)/E761=\"-\",VLOOKUP($A761,Economática!$A$3:$AI$823,30,FALSE)/E761<33.33%,VLOOKUP($A761,Economática!$A$3:$AI$823,30,FALSE)/E761>100%),1/0,VLOOKUP($A761,Economática!$A$3:$AI$823,30,FALSE)/E761))","v":""},"",{"$f":"IF($A761=\"\",\"\",IF(OR(VLOOKUP($A761,Economática!$A$3:$AI$823,25,FALSE)=0,VLOOKUP($A761,Economática!$A$3:$AI$823,25,FALSE)=\"-\"),1/0,VLOOKUP($A761,Economática!$A$3:$AI$823,25,FALSE)))","v":""},{"$f":"CONCATENATE(Economática!B739,\" \",Economática!C739)","v":" "}]
[{"$f":"IF(Economática!AG740=\"\",\"\",Economática!AG740)","v":""},{"$f":"IF($A762=\"\",\"\",VLOOKUP(VLOOKUP($A762,Economática!$A$3:$AI$823,6,FALSE),Correção!$B$16:$C$36,2,FALSE))","v":""},{"$f":"IF(Economática!B740=\"\",\"\",Economática!B740)","v":""},{"$f":"IF($A762=\"\",\"\",IF(OR(VLOOKUP($A762,Economática!$A$3:$AI$823,8,FALSE)=0,VLOOKUP($A762,Economática!$A$3:$AI$823,8,FALSE)=\"-\"),1/0,VLOOKUP($A762,Economática!$A$3:$AI$823,8,FALSE)))","v":""},{"$f":"IF(A762=\"\",\"\",IF(ISERROR(VLOOKUP(A762,Correção!$B$2:$G$13,9,FALSE)),VLOOKUP($A762,Economática!$A$3:$AI$823,9,FALSE),VLOOKUP(A762,Correção!$B$2:$G$13,9,FALSE)))","v":""},{"$f":"IF($A762=\"\",\"\",Economática!G740)","v":""},{"$f":"IF($A762=\"\",\"\",IF(OR(VLOOKUP($A762,Economática!$A$3:$AI$823,10,FALSE)=0,VLOOKUP($A762,Economática!$A$3:$AI$823,10,FALSE)=\"-\"),1/0,VLOOKUP($A762,Economática!$A$3:$AI$823,10,FALSE)))","v":""},{"$f":"IF($A762=\"\",\"\",IF(OR(VLOOKUP($A762,Economática!$A$3:$AI$823,11,FALSE)=0,VLOOKUP($A762,Economática!$A$3:$AI$823,11,FALSE)=\"-\"),1/0,VLOOKUP($A762,Economática!$A$3:$AI$823,11,FALSE)))","v":""},{"$f":"IF($A762=\"\",\"\",IF(OR(VLOOKUP($A762,Economática!$A$3:$AI$823,12,FALSE)=0,VLOOKUP($A762,Economática!$A$3:$AI$823,12,FALSE)=\"-\"),1/0,VLOOKUP($A762,Economática!$A$3:$AI$823,12,FALSE)))","v":""},{"$f":"IF($A762=\"\",\"\",IF(OR(VLOOKUP($A762,Economática!$A$3:$AI$823,13,FALSE)=0,VLOOKUP($A762,Economática!$A$3:$AI$823,13,FALSE)=\"-\"),1/0,VLOOKUP($A762,Economática!$A$3:$AI$823,13,FALSE)))","v":""},{"$f":"IF($A762=\"\",\"\",IF(OR(VLOOKUP($A762,Economática!$A$3:$AI$823,14,FALSE)=0,VLOOKUP($A762,Economática!$A$3:$AI$823,14,FALSE)=\"-\"),1/0,VLOOKUP($A762,Economática!$A$3:$AI$823,14,FALSE)))","v":""},{"$f":"IF($A762=\"\",\"\",IF(OR(VLOOKUP($A762,Economática!$A$3:$AI$823,15,FALSE)=0,VLOOKUP($A762,Economática!$A$3:$AI$823,15,FALSE)=\"-\"),1/0,VLOOKUP($A762,Economática!$A$3:$AI$823,15,FALSE)))","v":""},{"$f":"IF($A762=\"\",\"\",IF(OR(VLOOKUP($A762,Economática!$A$3:$AI$823,16,FALSE)=0,VLOOKUP($A762,Economática!$A$3:$AI$823,16,FALSE)=\"-\"),1/0,VLOOKUP($A762,Economática!$A$3:$AI$823,16,FALSE)))","v":""},{"$f":"IF($A762=\"\",\"\",IF(OR(VLOOKUP($A762,Economática!$A$3:$AI$823,17,FALSE)=0,VLOOKUP($A762,Economática!$A$3:$AI$823,17,FALSE)=\"-\"),1/0,VLOOKUP($A762,Economática!$A$3:$AI$823,17,FALSE)))","v":""},{"$f":"IF($A762=\"\",\"\",IF(OR(VLOOKUP($A762,Economática!$A$3:$AI$823,18,FALSE)=0,VLOOKUP($A762,Economática!$A$3:$AI$823,18,FALSE)=\"-\"),1/0,VLOOKUP($A762,Economática!$A$3:$AI$823,18,FALSE)))","v":""},{"$f":"IF($A762=\"\",\"\",IF(OR(VLOOKUP($A762,Economática!$A$3:$AI$823,19,FALSE)=0,VLOOKUP($A762,Economática!$A$3:$AI$823,19,FALSE)=\"-\"),1/0,VLOOKUP($A762,Economática!$A$3:$AI$823,19,FALSE)))","v":""},{"$f":"IF($A762=\"\",\"\",VLOOKUP($A762,Economática!$A$3:$AI$823,20,FALSE)/E762)","v":""},"","","",{"$f":"IF($A762=\"\",\"\",IF(OR(VLOOKUP($A762,Economática!$A$3:$AI$823,21,FALSE)/100=0,VLOOKUP($A762,Economática!$A$3:$AI$823,21,FALSE)/100=\"-\"),1/0,VLOOKUP($A762,Economática!$A$3:$AI$823,21,FALSE)/100))","v":""},{"$f":"IF($A762=\"\",\"\",IF(OR(VLOOKUP($A762,Economática!$A$3:$AI$823,22,FALSE)/100=0,VLOOKUP($A762,Economática!$A$3:$AI$823,22,FALSE)/100=\"-\"),1/0,VLOOKUP($A762,Economática!$A$3:$AI$823,22,FALSE)/100))","v":""},{"$f":"IF($A762=\"\",\"\",IF(OR(VLOOKUP($A762,Economática!$A$3:$AI$823,23,FALSE)=0,VLOOKUP($A762,Economática!$A$3:$AI$823,23,FALSE)=\"-\"),1/0,VLOOKUP($A762,Economática!$A$3:$AI$823,23,FALSE)))","v":""},{"$f":"IF($A762=\"\",\"\",IF(OR(VLOOKUP($A762,Economática!$A$3:$AI$823,24,FALSE)=0,VLOOKUP($A762,Economática!$A$3:$AI$823,24,FALSE)=\"-\"),1/0,VLOOKUP($A762,Economática!$A$3:$AI$823,24,FALSE)))","v":""},{"$f":"IF($A762=\"\",\"\",IF(OR(VLOOKUP($A762,Economática!$A$3:$AI$823,25,FALSE)=0,VLOOKUP($A762,Economática!$A$3:$AI$823,25,FALSE)=\"-\"),1/0,VLOOKUP($A762,Economática!$A$3:$AI$823,25,FALSE)))","v":""},{"$f":"IF($A762=\"\",\"\",IF(ISERROR((F762+VLOOKUP($A762,Economática!$A$3:$AI$823,26,FALSE))/Y762),(F762+VLOOKUP($A762,Economática!$A$3:$AI$823,26,FALSE))/Y762,(F762+VLOOKUP($A762,Economática!$A$3:$AI$823,26,FALSE))/Y762))","v":""},{"$f":"IF($A762=\"\",\"\",IF(OR(-VLOOKUP($A762,Economática!$A$3:$AI$823,27,FALSE)=0,-VLOOKUP($A762,Economática!$A$3:$AI$823,27,FALSE)=\"-\"),1/0,-VLOOKUP($A762,Economática!$A$3:$AI$823,27,FALSE)))","v":""},"",{"$f":"IF($A762=\"\",\"\",IF(OR(VLOOKUP($A762,Economática!$A$3:$AI$823,28,FALSE)=0,VLOOKUP($A762,Economática!$A$3:$AI$823,28,FALSE)=\"-\"),1/0,VLOOKUP($A762,Economática!$A$3:$AI$823,28,FALSE)))","v":""},{"$f":"IF($A762=\"\",\"\",IF(OR(VLOOKUP($A762,Economática!$A$3:$AI$823,29,FALSE)=0,VLOOKUP($A762,Economática!$A$3:$AI$823,29,FALSE)=\"-\"),1/0,VLOOKUP($A762,Economática!$A$3:$AI$823,29,FALSE)))","v":""},{"$f":"IF($A762=\"\",\"\",IF(OR(VLOOKUP($A762,Economática!$A$3:$AI$823,30,FALSE)/E762=0,VLOOKUP($A762,Economática!$A$3:$AI$823,30,FALSE)/E762=\"-\",VLOOKUP($A762,Economática!$A$3:$AI$823,30,FALSE)/E762<33.33%,VLOOKUP($A762,Economática!$A$3:$AI$823,30,FALSE)/E762>100%),1/0,VLOOKUP($A762,Economática!$A$3:$AI$823,30,FALSE)/E762))","v":""},"",{"$f":"IF($A762=\"\",\"\",IF(OR(VLOOKUP($A762,Economática!$A$3:$AI$823,25,FALSE)=0,VLOOKUP($A762,Economática!$A$3:$AI$823,25,FALSE)=\"-\"),1/0,VLOOKUP($A762,Economática!$A$3:$AI$823,25,FALSE)))","v":""},{"$f":"CONCATENATE(Economática!B740,\" \",Economática!C740)","v":" "}]
[{"$f":"IF(Economática!AG741=\"\",\"\",Economática!AG741)","v":""},{"$f":"IF($A763=\"\",\"\",VLOOKUP(VLOOKUP($A763,Economática!$A$3:$AI$823,6,FALSE),Correção!$B$16:$C$36,2,FALSE))","v":""},{"$f":"IF(Economática!B741=\"\",\"\",Economática!B741)","v":""},{"$f":"IF($A763=\"\",\"\",IF(OR(VLOOKUP($A763,Economática!$A$3:$AI$823,8,FALSE)=0,VLOOKUP($A763,Economática!$A$3:$AI$823,8,FALSE)=\"-\"),1/0,VLOOKUP($A763,Economática!$A$3:$AI$823,8,FALSE)))","v":""},{"$f":"IF(A763=\"\",\"\",IF(ISERROR(VLOOKUP(A763,Correção!$B$2:$G$13,9,FALSE)),VLOOKUP($A763,Economática!$A$3:$AI$823,9,FALSE),VLOOKUP(A763,Correção!$B$2:$G$13,9,FALSE)))","v":""},{"$f":"IF($A763=\"\",\"\",Economática!G741)","v":""},{"$f":"IF($A763=\"\",\"\",IF(OR(VLOOKUP($A763,Economática!$A$3:$AI$823,10,FALSE)=0,VLOOKUP($A763,Economática!$A$3:$AI$823,10,FALSE)=\"-\"),1/0,VLOOKUP($A763,Economática!$A$3:$AI$823,10,FALSE)))","v":""},{"$f":"IF($A763=\"\",\"\",IF(OR(VLOOKUP($A763,Economática!$A$3:$AI$823,11,FALSE)=0,VLOOKUP($A763,Economática!$A$3:$AI$823,11,FALSE)=\"-\"),1/0,VLOOKUP($A763,Economática!$A$3:$AI$823,11,FALSE)))","v":""},{"$f":"IF($A763=\"\",\"\",IF(OR(VLOOKUP($A763,Economática!$A$3:$AI$823,12,FALSE)=0,VLOOKUP($A763,Economática!$A$3:$AI$823,12,FALSE)=\"-\"),1/0,VLOOKUP($A763,Economática!$A$3:$AI$823,12,FALSE)))","v":""},{"$f":"IF($A763=\"\",\"\",IF(OR(VLOOKUP($A763,Economática!$A$3:$AI$823,13,FALSE)=0,VLOOKUP($A763,Economática!$A$3:$AI$823,13,FALSE)=\"-\"),1/0,VLOOKUP($A763,Economática!$A$3:$AI$823,13,FALSE)))","v":""},{"$f":"IF($A763=\"\",\"\",IF(OR(VLOOKUP($A763,Economática!$A$3:$AI$823,14,FALSE)=0,VLOOKUP($A763,Economática!$A$3:$AI$823,14,FALSE)=\"-\"),1/0,VLOOKUP($A763,Economática!$A$3:$AI$823,14,FALSE)))","v":""},{"$f":"IF($A763=\"\",\"\",IF(OR(VLOOKUP($A763,Economática!$A$3:$AI$823,15,FALSE)=0,VLOOKUP($A763,Economática!$A$3:$AI$823,15,FALSE)=\"-\"),1/0,VLOOKUP($A763,Economática!$A$3:$AI$823,15,FALSE)))","v":""},{"$f":"IF($A763=\"\",\"\",IF(OR(VLOOKUP($A763,Economática!$A$3:$AI$823,16,FALSE)=0,VLOOKUP($A763,Economática!$A$3:$AI$823,16,FALSE)=\"-\"),1/0,VLOOKUP($A763,Economática!$A$3:$AI$823,16,FALSE)))","v":""},{"$f":"IF($A763=\"\",\"\",IF(OR(VLOOKUP($A763,Economática!$A$3:$AI$823,17,FALSE)=0,VLOOKUP($A763,Economática!$A$3:$AI$823,17,FALSE)=\"-\"),1/0,VLOOKUP($A763,Economática!$A$3:$AI$823,17,FALSE)))","v":""},{"$f":"IF($A763=\"\",\"\",IF(OR(VLOOKUP($A763,Economática!$A$3:$AI$823,18,FALSE)=0,VLOOKUP($A763,Economática!$A$3:$AI$823,18,FALSE)=\"-\"),1/0,VLOOKUP($A763,Economática!$A$3:$AI$823,18,FALSE)))","v":""},{"$f":"IF($A763=\"\",\"\",IF(OR(VLOOKUP($A763,Economática!$A$3:$AI$823,19,FALSE)=0,VLOOKUP($A763,Economática!$A$3:$AI$823,19,FALSE)=\"-\"),1/0,VLOOKUP($A763,Economática!$A$3:$AI$823,19,FALSE)))","v":""},{"$f":"IF($A763=\"\",\"\",VLOOKUP($A763,Economática!$A$3:$AI$823,20,FALSE)/E763)","v":""},"","","",{"$f":"IF($A763=\"\",\"\",IF(OR(VLOOKUP($A763,Economática!$A$3:$AI$823,21,FALSE)/100=0,VLOOKUP($A763,Economática!$A$3:$AI$823,21,FALSE)/100=\"-\"),1/0,VLOOKUP($A763,Economática!$A$3:$AI$823,21,FALSE)/100))","v":""},{"$f":"IF($A763=\"\",\"\",IF(OR(VLOOKUP($A763,Economática!$A$3:$AI$823,22,FALSE)/100=0,VLOOKUP($A763,Economática!$A$3:$AI$823,22,FALSE)/100=\"-\"),1/0,VLOOKUP($A763,Economática!$A$3:$AI$823,22,FALSE)/100))","v":""},{"$f":"IF($A763=\"\",\"\",IF(OR(VLOOKUP($A763,Economática!$A$3:$AI$823,23,FALSE)=0,VLOOKUP($A763,Economática!$A$3:$AI$823,23,FALSE)=\"-\"),1/0,VLOOKUP($A763,Economática!$A$3:$AI$823,23,FALSE)))","v":""},{"$f":"IF($A763=\"\",\"\",IF(OR(VLOOKUP($A763,Economática!$A$3:$AI$823,24,FALSE)=0,VLOOKUP($A763,Economática!$A$3:$AI$823,24,FALSE)=\"-\"),1/0,VLOOKUP($A763,Economática!$A$3:$AI$823,24,FALSE)))","v":""},{"$f":"IF($A763=\"\",\"\",IF(OR(VLOOKUP($A763,Economática!$A$3:$AI$823,25,FALSE)=0,VLOOKUP($A763,Economática!$A$3:$AI$823,25,FALSE)=\"-\"),1/0,VLOOKUP($A763,Economática!$A$3:$AI$823,25,FALSE)))","v":""},{"$f":"IF($A763=\"\",\"\",IF(ISERROR((F763+VLOOKUP($A763,Economática!$A$3:$AI$823,26,FALSE))/Y763),(F763+VLOOKUP($A763,Economática!$A$3:$AI$823,26,FALSE))/Y763,(F763+VLOOKUP($A763,Economática!$A$3:$AI$823,26,FALSE))/Y763))","v":""},{"$f":"IF($A763=\"\",\"\",IF(OR(-VLOOKUP($A763,Economática!$A$3:$AI$823,27,FALSE)=0,-VLOOKUP($A763,Economática!$A$3:$AI$823,27,FALSE)=\"-\"),1/0,-VLOOKUP($A763,Economática!$A$3:$AI$823,27,FALSE)))","v":""},"",{"$f":"IF($A763=\"\",\"\",IF(OR(VLOOKUP($A763,Economática!$A$3:$AI$823,28,FALSE)=0,VLOOKUP($A763,Economática!$A$3:$AI$823,28,FALSE)=\"-\"),1/0,VLOOKUP($A763,Economática!$A$3:$AI$823,28,FALSE)))","v":""},{"$f":"IF($A763=\"\",\"\",IF(OR(VLOOKUP($A763,Economática!$A$3:$AI$823,29,FALSE)=0,VLOOKUP($A763,Economática!$A$3:$AI$823,29,FALSE)=\"-\"),1/0,VLOOKUP($A763,Economática!$A$3:$AI$823,29,FALSE)))","v":""},{"$f":"IF($A763=\"\",\"\",IF(OR(VLOOKUP($A763,Economática!$A$3:$AI$823,30,FALSE)/E763=0,VLOOKUP($A763,Economática!$A$3:$AI$823,30,FALSE)/E763=\"-\",VLOOKUP($A763,Economática!$A$3:$AI$823,30,FALSE)/E763<33.33%,VLOOKUP($A763,Economática!$A$3:$AI$823,30,FALSE)/E763>100%),1/0,VLOOKUP($A763,Economática!$A$3:$AI$823,30,FALSE)/E763))","v":""},"",{"$f":"IF($A763=\"\",\"\",IF(OR(VLOOKUP($A763,Economática!$A$3:$AI$823,25,FALSE)=0,VLOOKUP($A763,Economática!$A$3:$AI$823,25,FALSE)=\"-\"),1/0,VLOOKUP($A763,Economática!$A$3:$AI$823,25,FALSE)))","v":""},{"$f":"CONCATENATE(Economática!B741,\" \",Economática!C741)","v":" "}]
[{"$f":"IF(Economática!AG742=\"\",\"\",Economática!AG742)","v":""},{"$f":"IF($A764=\"\",\"\",VLOOKUP(VLOOKUP($A764,Economática!$A$3:$AI$823,6,FALSE),Correção!$B$16:$C$36,2,FALSE))","v":""},{"$f":"IF(Economática!B742=\"\",\"\",Economática!B742)","v":""},{"$f":"IF($A764=\"\",\"\",IF(OR(VLOOKUP($A764,Economática!$A$3:$AI$823,8,FALSE)=0,VLOOKUP($A764,Economática!$A$3:$AI$823,8,FALSE)=\"-\"),1/0,VLOOKUP($A764,Economática!$A$3:$AI$823,8,FALSE)))","v":""},{"$f":"IF(A764=\"\",\"\",IF(ISERROR(VLOOKUP(A764,Correção!$B$2:$G$13,9,FALSE)),VLOOKUP($A764,Economática!$A$3:$AI$823,9,FALSE),VLOOKUP(A764,Correção!$B$2:$G$13,9,FALSE)))","v":""},{"$f":"IF($A764=\"\",\"\",Economática!G742)","v":""},{"$f":"IF($A764=\"\",\"\",IF(OR(VLOOKUP($A764,Economática!$A$3:$AI$823,10,FALSE)=0,VLOOKUP($A764,Economática!$A$3:$AI$823,10,FALSE)=\"-\"),1/0,VLOOKUP($A764,Economática!$A$3:$AI$823,10,FALSE)))","v":""},{"$f":"IF($A764=\"\",\"\",IF(OR(VLOOKUP($A764,Economática!$A$3:$AI$823,11,FALSE)=0,VLOOKUP($A764,Economática!$A$3:$AI$823,11,FALSE)=\"-\"),1/0,VLOOKUP($A764,Economática!$A$3:$AI$823,11,FALSE)))","v":""},{"$f":"IF($A764=\"\",\"\",IF(OR(VLOOKUP($A764,Economática!$A$3:$AI$823,12,FALSE)=0,VLOOKUP($A764,Economática!$A$3:$AI$823,12,FALSE)=\"-\"),1/0,VLOOKUP($A764,Economática!$A$3:$AI$823,12,FALSE)))","v":""},{"$f":"IF($A764=\"\",\"\",IF(OR(VLOOKUP($A764,Economática!$A$3:$AI$823,13,FALSE)=0,VLOOKUP($A764,Economática!$A$3:$AI$823,13,FALSE)=\"-\"),1/0,VLOOKUP($A764,Economática!$A$3:$AI$823,13,FALSE)))","v":""},{"$f":"IF($A764=\"\",\"\",IF(OR(VLOOKUP($A764,Economática!$A$3:$AI$823,14,FALSE)=0,VLOOKUP($A764,Economática!$A$3:$AI$823,14,FALSE)=\"-\"),1/0,VLOOKUP($A764,Economática!$A$3:$AI$823,14,FALSE)))","v":""},{"$f":"IF($A764=\"\",\"\",IF(OR(VLOOKUP($A764,Economática!$A$3:$AI$823,15,FALSE)=0,VLOOKUP($A764,Economática!$A$3:$AI$823,15,FALSE)=\"-\"),1/0,VLOOKUP($A764,Economática!$A$3:$AI$823,15,FALSE)))","v":""},{"$f":"IF($A764=\"\",\"\",IF(OR(VLOOKUP($A764,Economática!$A$3:$AI$823,16,FALSE)=0,VLOOKUP($A764,Economática!$A$3:$AI$823,16,FALSE)=\"-\"),1/0,VLOOKUP($A764,Economática!$A$3:$AI$823,16,FALSE)))","v":""},{"$f":"IF($A764=\"\",\"\",IF(OR(VLOOKUP($A764,Economática!$A$3:$AI$823,17,FALSE)=0,VLOOKUP($A764,Economática!$A$3:$AI$823,17,FALSE)=\"-\"),1/0,VLOOKUP($A764,Economática!$A$3:$AI$823,17,FALSE)))","v":""},{"$f":"IF($A764=\"\",\"\",IF(OR(VLOOKUP($A764,Economática!$A$3:$AI$823,18,FALSE)=0,VLOOKUP($A764,Economática!$A$3:$AI$823,18,FALSE)=\"-\"),1/0,VLOOKUP($A764,Economática!$A$3:$AI$823,18,FALSE)))","v":""},{"$f":"IF($A764=\"\",\"\",IF(OR(VLOOKUP($A764,Economática!$A$3:$AI$823,19,FALSE)=0,VLOOKUP($A764,Economática!$A$3:$AI$823,19,FALSE)=\"-\"),1/0,VLOOKUP($A764,Economática!$A$3:$AI$823,19,FALSE)))","v":""},{"$f":"IF($A764=\"\",\"\",VLOOKUP($A764,Economática!$A$3:$AI$823,20,FALSE)/E764)","v":""},"","","",{"$f":"IF($A764=\"\",\"\",IF(OR(VLOOKUP($A764,Economática!$A$3:$AI$823,21,FALSE)/100=0,VLOOKUP($A764,Economática!$A$3:$AI$823,21,FALSE)/100=\"-\"),1/0,VLOOKUP($A764,Economática!$A$3:$AI$823,21,FALSE)/100))","v":""},{"$f":"IF($A764=\"\",\"\",IF(OR(VLOOKUP($A764,Economática!$A$3:$AI$823,22,FALSE)/100=0,VLOOKUP($A764,Economática!$A$3:$AI$823,22,FALSE)/100=\"-\"),1/0,VLOOKUP($A764,Economática!$A$3:$AI$823,22,FALSE)/100))","v":""},{"$f":"IF($A764=\"\",\"\",IF(OR(VLOOKUP($A764,Economática!$A$3:$AI$823,23,FALSE)=0,VLOOKUP($A764,Economática!$A$3:$AI$823,23,FALSE)=\"-\"),1/0,VLOOKUP($A764,Economática!$A$3:$AI$823,23,FALSE)))","v":""},{"$f":"IF($A764=\"\",\"\",IF(OR(VLOOKUP($A764,Economática!$A$3:$AI$823,24,FALSE)=0,VLOOKUP($A764,Economática!$A$3:$AI$823,24,FALSE)=\"-\"),1/0,VLOOKUP($A764,Economática!$A$3:$AI$823,24,FALSE)))","v":""},{"$f":"IF($A764=\"\",\"\",IF(OR(VLOOKUP($A764,Economática!$A$3:$AI$823,25,FALSE)=0,VLOOKUP($A764,Economática!$A$3:$AI$823,25,FALSE)=\"-\"),1/0,VLOOKUP($A764,Economática!$A$3:$AI$823,25,FALSE)))","v":""},{"$f":"IF($A764=\"\",\"\",IF(ISERROR((F764+VLOOKUP($A764,Economática!$A$3:$AI$823,26,FALSE))/Y764),(F764+VLOOKUP($A764,Economática!$A$3:$AI$823,26,FALSE))/Y764,(F764+VLOOKUP($A764,Economática!$A$3:$AI$823,26,FALSE))/Y764))","v":""},{"$f":"IF($A764=\"\",\"\",IF(OR(-VLOOKUP($A764,Economática!$A$3:$AI$823,27,FALSE)=0,-VLOOKUP($A764,Economática!$A$3:$AI$823,27,FALSE)=\"-\"),1/0,-VLOOKUP($A764,Economática!$A$3:$AI$823,27,FALSE)))","v":""},"",{"$f":"IF($A764=\"\",\"\",IF(OR(VLOOKUP($A764,Economática!$A$3:$AI$823,28,FALSE)=0,VLOOKUP($A764,Economática!$A$3:$AI$823,28,FALSE)=\"-\"),1/0,VLOOKUP($A764,Economática!$A$3:$AI$823,28,FALSE)))","v":""},{"$f":"IF($A764=\"\",\"\",IF(OR(VLOOKUP($A764,Economática!$A$3:$AI$823,29,FALSE)=0,VLOOKUP($A764,Economática!$A$3:$AI$823,29,FALSE)=\"-\"),1/0,VLOOKUP($A764,Economática!$A$3:$AI$823,29,FALSE)))","v":""},{"$f":"IF($A764=\"\",\"\",IF(OR(VLOOKUP($A764,Economática!$A$3:$AI$823,30,FALSE)/E764=0,VLOOKUP($A764,Economática!$A$3:$AI$823,30,FALSE)/E764=\"-\",VLOOKUP($A764,Economática!$A$3:$AI$823,30,FALSE)/E764<33.33%,VLOOKUP($A764,Economática!$A$3:$AI$823,30,FALSE)/E764>100%),1/0,VLOOKUP($A764,Economática!$A$3:$AI$823,30,FALSE)/E764))","v":""},"",{"$f":"IF($A764=\"\",\"\",IF(OR(VLOOKUP($A764,Economática!$A$3:$AI$823,25,FALSE)=0,VLOOKUP($A764,Economática!$A$3:$AI$823,25,FALSE)=\"-\"),1/0,VLOOKUP($A764,Economática!$A$3:$AI$823,25,FALSE)))","v":""},{"$f":"CONCATENATE(Economática!B742,\" \",Economática!C742)","v":" "}]
[{"$f":"IF(Economática!AG743=\"\",\"\",Economática!AG743)","v":""},{"$f":"IF($A765=\"\",\"\",VLOOKUP(VLOOKUP($A765,Economática!$A$3:$AI$823,6,FALSE),Correção!$B$16:$C$36,2,FALSE))","v":""},{"$f":"IF(Economática!B743=\"\",\"\",Economática!B743)","v":""},{"$f":"IF($A765=\"\",\"\",IF(OR(VLOOKUP($A765,Economática!$A$3:$AI$823,8,FALSE)=0,VLOOKUP($A765,Economática!$A$3:$AI$823,8,FALSE)=\"-\"),1/0,VLOOKUP($A765,Economática!$A$3:$AI$823,8,FALSE)))","v":""},{"$f":"IF(A765=\"\",\"\",IF(ISERROR(VLOOKUP(A765,Correção!$B$2:$G$13,9,FALSE)),VLOOKUP($A765,Economática!$A$3:$AI$823,9,FALSE),VLOOKUP(A765,Correção!$B$2:$G$13,9,FALSE)))","v":""},{"$f":"IF($A765=\"\",\"\",Economática!G743)","v":""},{"$f":"IF($A765=\"\",\"\",IF(OR(VLOOKUP($A765,Economática!$A$3:$AI$823,10,FALSE)=0,VLOOKUP($A765,Economática!$A$3:$AI$823,10,FALSE)=\"-\"),1/0,VLOOKUP($A765,Economática!$A$3:$AI$823,10,FALSE)))","v":""},{"$f":"IF($A765=\"\",\"\",IF(OR(VLOOKUP($A765,Economática!$A$3:$AI$823,11,FALSE)=0,VLOOKUP($A765,Economática!$A$3:$AI$823,11,FALSE)=\"-\"),1/0,VLOOKUP($A765,Economática!$A$3:$AI$823,11,FALSE)))","v":""},{"$f":"IF($A765=\"\",\"\",IF(OR(VLOOKUP($A765,Economática!$A$3:$AI$823,12,FALSE)=0,VLOOKUP($A765,Economática!$A$3:$AI$823,12,FALSE)=\"-\"),1/0,VLOOKUP($A765,Economática!$A$3:$AI$823,12,FALSE)))","v":""},{"$f":"IF($A765=\"\",\"\",IF(OR(VLOOKUP($A765,Economática!$A$3:$AI$823,13,FALSE)=0,VLOOKUP($A765,Economática!$A$3:$AI$823,13,FALSE)=\"-\"),1/0,VLOOKUP($A765,Economática!$A$3:$AI$823,13,FALSE)))","v":""},{"$f":"IF($A765=\"\",\"\",IF(OR(VLOOKUP($A765,Economática!$A$3:$AI$823,14,FALSE)=0,VLOOKUP($A765,Economática!$A$3:$AI$823,14,FALSE)=\"-\"),1/0,VLOOKUP($A765,Economática!$A$3:$AI$823,14,FALSE)))","v":""},{"$f":"IF($A765=\"\",\"\",IF(OR(VLOOKUP($A765,Economática!$A$3:$AI$823,15,FALSE)=0,VLOOKUP($A765,Economática!$A$3:$AI$823,15,FALSE)=\"-\"),1/0,VLOOKUP($A765,Economática!$A$3:$AI$823,15,FALSE)))","v":""},{"$f":"IF($A765=\"\",\"\",IF(OR(VLOOKUP($A765,Economática!$A$3:$AI$823,16,FALSE)=0,VLOOKUP($A765,Economática!$A$3:$AI$823,16,FALSE)=\"-\"),1/0,VLOOKUP($A765,Economática!$A$3:$AI$823,16,FALSE)))","v":""},{"$f":"IF($A765=\"\",\"\",IF(OR(VLOOKUP($A765,Economática!$A$3:$AI$823,17,FALSE)=0,VLOOKUP($A765,Economática!$A$3:$AI$823,17,FALSE)=\"-\"),1/0,VLOOKUP($A765,Economática!$A$3:$AI$823,17,FALSE)))","v":""},{"$f":"IF($A765=\"\",\"\",IF(OR(VLOOKUP($A765,Economática!$A$3:$AI$823,18,FALSE)=0,VLOOKUP($A765,Economática!$A$3:$AI$823,18,FALSE)=\"-\"),1/0,VLOOKUP($A765,Economática!$A$3:$AI$823,18,FALSE)))","v":""},{"$f":"IF($A765=\"\",\"\",IF(OR(VLOOKUP($A765,Economática!$A$3:$AI$823,19,FALSE)=0,VLOOKUP($A765,Economática!$A$3:$AI$823,19,FALSE)=\"-\"),1/0,VLOOKUP($A765,Economática!$A$3:$AI$823,19,FALSE)))","v":""},{"$f":"IF($A765=\"\",\"\",VLOOKUP($A765,Economática!$A$3:$AI$823,20,FALSE)/E765)","v":""},"","","",{"$f":"IF($A765=\"\",\"\",IF(OR(VLOOKUP($A765,Economática!$A$3:$AI$823,21,FALSE)/100=0,VLOOKUP($A765,Economática!$A$3:$AI$823,21,FALSE)/100=\"-\"),1/0,VLOOKUP($A765,Economática!$A$3:$AI$823,21,FALSE)/100))","v":""},{"$f":"IF($A765=\"\",\"\",IF(OR(VLOOKUP($A765,Economática!$A$3:$AI$823,22,FALSE)/100=0,VLOOKUP($A765,Economática!$A$3:$AI$823,22,FALSE)/100=\"-\"),1/0,VLOOKUP($A765,Economática!$A$3:$AI$823,22,FALSE)/100))","v":""},{"$f":"IF($A765=\"\",\"\",IF(OR(VLOOKUP($A765,Economática!$A$3:$AI$823,23,FALSE)=0,VLOOKUP($A765,Economática!$A$3:$AI$823,23,FALSE)=\"-\"),1/0,VLOOKUP($A765,Economática!$A$3:$AI$823,23,FALSE)))","v":""},{"$f":"IF($A765=\"\",\"\",IF(OR(VLOOKUP($A765,Economática!$A$3:$AI$823,24,FALSE)=0,VLOOKUP($A765,Economática!$A$3:$AI$823,24,FALSE)=\"-\"),1/0,VLOOKUP($A765,Economática!$A$3:$AI$823,24,FALSE)))","v":""},{"$f":"IF($A765=\"\",\"\",IF(OR(VLOOKUP($A765,Economática!$A$3:$AI$823,25,FALSE)=0,VLOOKUP($A765,Economática!$A$3:$AI$823,25,FALSE)=\"-\"),1/0,VLOOKUP($A765,Economática!$A$3:$AI$823,25,FALSE)))","v":""},{"$f":"IF($A765=\"\",\"\",IF(ISERROR((F765+VLOOKUP($A765,Economática!$A$3:$AI$823,26,FALSE))/Y765),(F765+VLOOKUP($A765,Economática!$A$3:$AI$823,26,FALSE))/Y765,(F765+VLOOKUP($A765,Economática!$A$3:$AI$823,26,FALSE))/Y765))","v":""},{"$f":"IF($A765=\"\",\"\",IF(OR(-VLOOKUP($A765,Economática!$A$3:$AI$823,27,FALSE)=0,-VLOOKUP($A765,Economática!$A$3:$AI$823,27,FALSE)=\"-\"),1/0,-VLOOKUP($A765,Economática!$A$3:$AI$823,27,FALSE)))","v":""},"",{"$f":"IF($A765=\"\",\"\",IF(OR(VLOOKUP($A765,Economática!$A$3:$AI$823,28,FALSE)=0,VLOOKUP($A765,Economática!$A$3:$AI$823,28,FALSE)=\"-\"),1/0,VLOOKUP($A765,Economática!$A$3:$AI$823,28,FALSE)))","v":""},{"$f":"IF($A765=\"\",\"\",IF(OR(VLOOKUP($A765,Economática!$A$3:$AI$823,29,FALSE)=0,VLOOKUP($A765,Economática!$A$3:$AI$823,29,FALSE)=\"-\"),1/0,VLOOKUP($A765,Economática!$A$3:$AI$823,29,FALSE)))","v":""},{"$f":"IF($A765=\"\",\"\",IF(OR(VLOOKUP($A765,Economática!$A$3:$AI$823,30,FALSE)/E765=0,VLOOKUP($A765,Economática!$A$3:$AI$823,30,FALSE)/E765=\"-\",VLOOKUP($A765,Economática!$A$3:$AI$823,30,FALSE)/E765<33.33%,VLOOKUP($A765,Economática!$A$3:$AI$823,30,FALSE)/E765>100%),1/0,VLOOKUP($A765,Economática!$A$3:$AI$823,30,FALSE)/E765))","v":""},"",{"$f":"IF($A765=\"\",\"\",IF(OR(VLOOKUP($A765,Economática!$A$3:$AI$823,25,FALSE)=0,VLOOKUP($A765,Economática!$A$3:$AI$823,25,FALSE)=\"-\"),1/0,VLOOKUP($A765,Economática!$A$3:$AI$823,25,FALSE)))","v":""},{"$f":"CONCATENATE(Economática!B743,\" \",Economática!C743)","v":" "}]
[{"$f":"IF(Economática!AG744=\"\",\"\",Economática!AG744)","v":""},{"$f":"IF($A766=\"\",\"\",VLOOKUP(VLOOKUP($A766,Economática!$A$3:$AI$823,6,FALSE),Correção!$B$16:$C$36,2,FALSE))","v":""},{"$f":"IF(Economática!B744=\"\",\"\",Economática!B744)","v":""},{"$f":"IF($A766=\"\",\"\",IF(OR(VLOOKUP($A766,Economática!$A$3:$AI$823,8,FALSE)=0,VLOOKUP($A766,Economática!$A$3:$AI$823,8,FALSE)=\"-\"),1/0,VLOOKUP($A766,Economática!$A$3:$AI$823,8,FALSE)))","v":""},{"$f":"IF(A766=\"\",\"\",IF(ISERROR(VLOOKUP(A766,Correção!$B$2:$G$13,9,FALSE)),VLOOKUP($A766,Economática!$A$3:$AI$823,9,FALSE),VLOOKUP(A766,Correção!$B$2:$G$13,9,FALSE)))","v":""},{"$f":"IF($A766=\"\",\"\",Economática!G744)","v":""},{"$f":"IF($A766=\"\",\"\",IF(OR(VLOOKUP($A766,Economática!$A$3:$AI$823,10,FALSE)=0,VLOOKUP($A766,Economática!$A$3:$AI$823,10,FALSE)=\"-\"),1/0,VLOOKUP($A766,Economática!$A$3:$AI$823,10,FALSE)))","v":""},{"$f":"IF($A766=\"\",\"\",IF(OR(VLOOKUP($A766,Economática!$A$3:$AI$823,11,FALSE)=0,VLOOKUP($A766,Economática!$A$3:$AI$823,11,FALSE)=\"-\"),1/0,VLOOKUP($A766,Economática!$A$3:$AI$823,11,FALSE)))","v":""},{"$f":"IF($A766=\"\",\"\",IF(OR(VLOOKUP($A766,Economática!$A$3:$AI$823,12,FALSE)=0,VLOOKUP($A766,Economática!$A$3:$AI$823,12,FALSE)=\"-\"),1/0,VLOOKUP($A766,Economática!$A$3:$AI$823,12,FALSE)))","v":""},{"$f":"IF($A766=\"\",\"\",IF(OR(VLOOKUP($A766,Economática!$A$3:$AI$823,13,FALSE)=0,VLOOKUP($A766,Economática!$A$3:$AI$823,13,FALSE)=\"-\"),1/0,VLOOKUP($A766,Economática!$A$3:$AI$823,13,FALSE)))","v":""},{"$f":"IF($A766=\"\",\"\",IF(OR(VLOOKUP($A766,Economática!$A$3:$AI$823,14,FALSE)=0,VLOOKUP($A766,Economática!$A$3:$AI$823,14,FALSE)=\"-\"),1/0,VLOOKUP($A766,Economática!$A$3:$AI$823,14,FALSE)))","v":""},{"$f":"IF($A766=\"\",\"\",IF(OR(VLOOKUP($A766,Economática!$A$3:$AI$823,15,FALSE)=0,VLOOKUP($A766,Economática!$A$3:$AI$823,15,FALSE)=\"-\"),1/0,VLOOKUP($A766,Economática!$A$3:$AI$823,15,FALSE)))","v":""},{"$f":"IF($A766=\"\",\"\",IF(OR(VLOOKUP($A766,Economática!$A$3:$AI$823,16,FALSE)=0,VLOOKUP($A766,Economática!$A$3:$AI$823,16,FALSE)=\"-\"),1/0,VLOOKUP($A766,Economática!$A$3:$AI$823,16,FALSE)))","v":""},{"$f":"IF($A766=\"\",\"\",IF(OR(VLOOKUP($A766,Economática!$A$3:$AI$823,17,FALSE)=0,VLOOKUP($A766,Economática!$A$3:$AI$823,17,FALSE)=\"-\"),1/0,VLOOKUP($A766,Economática!$A$3:$AI$823,17,FALSE)))","v":""},{"$f":"IF($A766=\"\",\"\",IF(OR(VLOOKUP($A766,Economática!$A$3:$AI$823,18,FALSE)=0,VLOOKUP($A766,Economática!$A$3:$AI$823,18,FALSE)=\"-\"),1/0,VLOOKUP($A766,Economática!$A$3:$AI$823,18,FALSE)))","v":""},{"$f":"IF($A766=\"\",\"\",IF(OR(VLOOKUP($A766,Economática!$A$3:$AI$823,19,FALSE)=0,VLOOKUP($A766,Economática!$A$3:$AI$823,19,FALSE)=\"-\"),1/0,VLOOKUP($A766,Economática!$A$3:$AI$823,19,FALSE)))","v":""},{"$f":"IF($A766=\"\",\"\",VLOOKUP($A766,Economática!$A$3:$AI$823,20,FALSE)/E766)","v":""},"","","",{"$f":"IF($A766=\"\",\"\",IF(OR(VLOOKUP($A766,Economática!$A$3:$AI$823,21,FALSE)/100=0,VLOOKUP($A766,Economática!$A$3:$AI$823,21,FALSE)/100=\"-\"),1/0,VLOOKUP($A766,Economática!$A$3:$AI$823,21,FALSE)/100))","v":""},{"$f":"IF($A766=\"\",\"\",IF(OR(VLOOKUP($A766,Economática!$A$3:$AI$823,22,FALSE)/100=0,VLOOKUP($A766,Economática!$A$3:$AI$823,22,FALSE)/100=\"-\"),1/0,VLOOKUP($A766,Economática!$A$3:$AI$823,22,FALSE)/100))","v":""},{"$f":"IF($A766=\"\",\"\",IF(OR(VLOOKUP($A766,Economática!$A$3:$AI$823,23,FALSE)=0,VLOOKUP($A766,Economática!$A$3:$AI$823,23,FALSE)=\"-\"),1/0,VLOOKUP($A766,Economática!$A$3:$AI$823,23,FALSE)))","v":""},{"$f":"IF($A766=\"\",\"\",IF(OR(VLOOKUP($A766,Economática!$A$3:$AI$823,24,FALSE)=0,VLOOKUP($A766,Economática!$A$3:$AI$823,24,FALSE)=\"-\"),1/0,VLOOKUP($A766,Economática!$A$3:$AI$823,24,FALSE)))","v":""},{"$f":"IF($A766=\"\",\"\",IF(OR(VLOOKUP($A766,Economática!$A$3:$AI$823,25,FALSE)=0,VLOOKUP($A766,Economática!$A$3:$AI$823,25,FALSE)=\"-\"),1/0,VLOOKUP($A766,Economática!$A$3:$AI$823,25,FALSE)))","v":""},{"$f":"IF($A766=\"\",\"\",IF(ISERROR((F766+VLOOKUP($A766,Economática!$A$3:$AI$823,26,FALSE))/Y766),(F766+VLOOKUP($A766,Economática!$A$3:$AI$823,26,FALSE))/Y766,(F766+VLOOKUP($A766,Economática!$A$3:$AI$823,26,FALSE))/Y766))","v":""},{"$f":"IF($A766=\"\",\"\",IF(OR(-VLOOKUP($A766,Economática!$A$3:$AI$823,27,FALSE)=0,-VLOOKUP($A766,Economática!$A$3:$AI$823,27,FALSE)=\"-\"),1/0,-VLOOKUP($A766,Economática!$A$3:$AI$823,27,FALSE)))","v":""},"",{"$f":"IF($A766=\"\",\"\",IF(OR(VLOOKUP($A766,Economática!$A$3:$AI$823,28,FALSE)=0,VLOOKUP($A766,Economática!$A$3:$AI$823,28,FALSE)=\"-\"),1/0,VLOOKUP($A766,Economática!$A$3:$AI$823,28,FALSE)))","v":""},{"$f":"IF($A766=\"\",\"\",IF(OR(VLOOKUP($A766,Economática!$A$3:$AI$823,29,FALSE)=0,VLOOKUP($A766,Economática!$A$3:$AI$823,29,FALSE)=\"-\"),1/0,VLOOKUP($A766,Economática!$A$3:$AI$823,29,FALSE)))","v":""},{"$f":"IF($A766=\"\",\"\",IF(OR(VLOOKUP($A766,Economática!$A$3:$AI$823,30,FALSE)/E766=0,VLOOKUP($A766,Economática!$A$3:$AI$823,30,FALSE)/E766=\"-\",VLOOKUP($A766,Economática!$A$3:$AI$823,30,FALSE)/E766<33.33%,VLOOKUP($A766,Economática!$A$3:$AI$823,30,FALSE)/E766>100%),1/0,VLOOKUP($A766,Economática!$A$3:$AI$823,30,FALSE)/E766))","v":""},"",{"$f":"IF($A766=\"\",\"\",IF(OR(VLOOKUP($A766,Economática!$A$3:$AI$823,25,FALSE)=0,VLOOKUP($A766,Economática!$A$3:$AI$823,25,FALSE)=\"-\"),1/0,VLOOKUP($A766,Economática!$A$3:$AI$823,25,FALSE)))","v":""},{"$f":"CONCATENATE(Economática!B744,\" \",Economática!C744)","v":" "}]
[{"$f":"IF(Economática!AG745=\"\",\"\",Economática!AG745)","v":""},{"$f":"IF($A767=\"\",\"\",VLOOKUP(VLOOKUP($A767,Economática!$A$3:$AI$823,6,FALSE),Correção!$B$16:$C$36,2,FALSE))","v":""},{"$f":"IF(Economática!B745=\"\",\"\",Economática!B745)","v":""},{"$f":"IF($A767=\"\",\"\",IF(OR(VLOOKUP($A767,Economática!$A$3:$AI$823,8,FALSE)=0,VLOOKUP($A767,Economática!$A$3:$AI$823,8,FALSE)=\"-\"),1/0,VLOOKUP($A767,Economática!$A$3:$AI$823,8,FALSE)))","v":""},{"$f":"IF(A767=\"\",\"\",IF(ISERROR(VLOOKUP(A767,Correção!$B$2:$G$13,9,FALSE)),VLOOKUP($A767,Economática!$A$3:$AI$823,9,FALSE),VLOOKUP(A767,Correção!$B$2:$G$13,9,FALSE)))","v":""},{"$f":"IF($A767=\"\",\"\",Economática!G745)","v":""},{"$f":"IF($A767=\"\",\"\",IF(OR(VLOOKUP($A767,Economática!$A$3:$AI$823,10,FALSE)=0,VLOOKUP($A767,Economática!$A$3:$AI$823,10,FALSE)=\"-\"),1/0,VLOOKUP($A767,Economática!$A$3:$AI$823,10,FALSE)))","v":""},{"$f":"IF($A767=\"\",\"\",IF(OR(VLOOKUP($A767,Economática!$A$3:$AI$823,11,FALSE)=0,VLOOKUP($A767,Economática!$A$3:$AI$823,11,FALSE)=\"-\"),1/0,VLOOKUP($A767,Economática!$A$3:$AI$823,11,FALSE)))","v":""},{"$f":"IF($A767=\"\",\"\",IF(OR(VLOOKUP($A767,Economática!$A$3:$AI$823,12,FALSE)=0,VLOOKUP($A767,Economática!$A$3:$AI$823,12,FALSE)=\"-\"),1/0,VLOOKUP($A767,Economática!$A$3:$AI$823,12,FALSE)))","v":""},{"$f":"IF($A767=\"\",\"\",IF(OR(VLOOKUP($A767,Economática!$A$3:$AI$823,13,FALSE)=0,VLOOKUP($A767,Economática!$A$3:$AI$823,13,FALSE)=\"-\"),1/0,VLOOKUP($A767,Economática!$A$3:$AI$823,13,FALSE)))","v":""},{"$f":"IF($A767=\"\",\"\",IF(OR(VLOOKUP($A767,Economática!$A$3:$AI$823,14,FALSE)=0,VLOOKUP($A767,Economática!$A$3:$AI$823,14,FALSE)=\"-\"),1/0,VLOOKUP($A767,Economática!$A$3:$AI$823,14,FALSE)))","v":""},{"$f":"IF($A767=\"\",\"\",IF(OR(VLOOKUP($A767,Economática!$A$3:$AI$823,15,FALSE)=0,VLOOKUP($A767,Economática!$A$3:$AI$823,15,FALSE)=\"-\"),1/0,VLOOKUP($A767,Economática!$A$3:$AI$823,15,FALSE)))","v":""},{"$f":"IF($A767=\"\",\"\",IF(OR(VLOOKUP($A767,Economática!$A$3:$AI$823,16,FALSE)=0,VLOOKUP($A767,Economática!$A$3:$AI$823,16,FALSE)=\"-\"),1/0,VLOOKUP($A767,Economática!$A$3:$AI$823,16,FALSE)))","v":""},{"$f":"IF($A767=\"\",\"\",IF(OR(VLOOKUP($A767,Economática!$A$3:$AI$823,17,FALSE)=0,VLOOKUP($A767,Economática!$A$3:$AI$823,17,FALSE)=\"-\"),1/0,VLOOKUP($A767,Economática!$A$3:$AI$823,17,FALSE)))","v":""},{"$f":"IF($A767=\"\",\"\",IF(OR(VLOOKUP($A767,Economática!$A$3:$AI$823,18,FALSE)=0,VLOOKUP($A767,Economática!$A$3:$AI$823,18,FALSE)=\"-\"),1/0,VLOOKUP($A767,Economática!$A$3:$AI$823,18,FALSE)))","v":""},{"$f":"IF($A767=\"\",\"\",IF(OR(VLOOKUP($A767,Economática!$A$3:$AI$823,19,FALSE)=0,VLOOKUP($A767,Economática!$A$3:$AI$823,19,FALSE)=\"-\"),1/0,VLOOKUP($A767,Economática!$A$3:$AI$823,19,FALSE)))","v":""},{"$f":"IF($A767=\"\",\"\",VLOOKUP($A767,Economática!$A$3:$AI$823,20,FALSE)/E767)","v":""},"","","",{"$f":"IF($A767=\"\",\"\",IF(OR(VLOOKUP($A767,Economática!$A$3:$AI$823,21,FALSE)/100=0,VLOOKUP($A767,Economática!$A$3:$AI$823,21,FALSE)/100=\"-\"),1/0,VLOOKUP($A767,Economática!$A$3:$AI$823,21,FALSE)/100))","v":""},{"$f":"IF($A767=\"\",\"\",IF(OR(VLOOKUP($A767,Economática!$A$3:$AI$823,22,FALSE)/100=0,VLOOKUP($A767,Economática!$A$3:$AI$823,22,FALSE)/100=\"-\"),1/0,VLOOKUP($A767,Economática!$A$3:$AI$823,22,FALSE)/100))","v":""},{"$f":"IF($A767=\"\",\"\",IF(OR(VLOOKUP($A767,Economática!$A$3:$AI$823,23,FALSE)=0,VLOOKUP($A767,Economática!$A$3:$AI$823,23,FALSE)=\"-\"),1/0,VLOOKUP($A767,Economática!$A$3:$AI$823,23,FALSE)))","v":""},{"$f":"IF($A767=\"\",\"\",IF(OR(VLOOKUP($A767,Economática!$A$3:$AI$823,24,FALSE)=0,VLOOKUP($A767,Economática!$A$3:$AI$823,24,FALSE)=\"-\"),1/0,VLOOKUP($A767,Economática!$A$3:$AI$823,24,FALSE)))","v":""},{"$f":"IF($A767=\"\",\"\",IF(OR(VLOOKUP($A767,Economática!$A$3:$AI$823,25,FALSE)=0,VLOOKUP($A767,Economática!$A$3:$AI$823,25,FALSE)=\"-\"),1/0,VLOOKUP($A767,Economática!$A$3:$AI$823,25,FALSE)))","v":""},{"$f":"IF($A767=\"\",\"\",IF(ISERROR((F767+VLOOKUP($A767,Economática!$A$3:$AI$823,26,FALSE))/Y767),(F767+VLOOKUP($A767,Economática!$A$3:$AI$823,26,FALSE))/Y767,(F767+VLOOKUP($A767,Economática!$A$3:$AI$823,26,FALSE))/Y767))","v":""},{"$f":"IF($A767=\"\",\"\",IF(OR(-VLOOKUP($A767,Economática!$A$3:$AI$823,27,FALSE)=0,-VLOOKUP($A767,Economática!$A$3:$AI$823,27,FALSE)=\"-\"),1/0,-VLOOKUP($A767,Economática!$A$3:$AI$823,27,FALSE)))","v":""},"",{"$f":"IF($A767=\"\",\"\",IF(OR(VLOOKUP($A767,Economática!$A$3:$AI$823,28,FALSE)=0,VLOOKUP($A767,Economática!$A$3:$AI$823,28,FALSE)=\"-\"),1/0,VLOOKUP($A767,Economática!$A$3:$AI$823,28,FALSE)))","v":""},{"$f":"IF($A767=\"\",\"\",IF(OR(VLOOKUP($A767,Economática!$A$3:$AI$823,29,FALSE)=0,VLOOKUP($A767,Economática!$A$3:$AI$823,29,FALSE)=\"-\"),1/0,VLOOKUP($A767,Economática!$A$3:$AI$823,29,FALSE)))","v":""},{"$f":"IF($A767=\"\",\"\",IF(OR(VLOOKUP($A767,Economática!$A$3:$AI$823,30,FALSE)/E767=0,VLOOKUP($A767,Economática!$A$3:$AI$823,30,FALSE)/E767=\"-\",VLOOKUP($A767,Economática!$A$3:$AI$823,30,FALSE)/E767<33.33%,VLOOKUP($A767,Economática!$A$3:$AI$823,30,FALSE)/E767>100%),1/0,VLOOKUP($A767,Economática!$A$3:$AI$823,30,FALSE)/E767))","v":""},"",{"$f":"IF($A767=\"\",\"\",IF(OR(VLOOKUP($A767,Economática!$A$3:$AI$823,25,FALSE)=0,VLOOKUP($A767,Economática!$A$3:$AI$823,25,FALSE)=\"-\"),1/0,VLOOKUP($A767,Economática!$A$3:$AI$823,25,FALSE)))","v":""},{"$f":"CONCATENATE(Economática!B745,\" \",Economática!C745)","v":" "}]
[{"$f":"IF(Economática!AG746=\"\",\"\",Economática!AG746)","v":""},{"$f":"IF($A768=\"\",\"\",VLOOKUP(VLOOKUP($A768,Economática!$A$3:$AI$823,6,FALSE),Correção!$B$16:$C$36,2,FALSE))","v":""},{"$f":"IF(Economática!B746=\"\",\"\",Economática!B746)","v":""},{"$f":"IF($A768=\"\",\"\",IF(OR(VLOOKUP($A768,Economática!$A$3:$AI$823,8,FALSE)=0,VLOOKUP($A768,Economática!$A$3:$AI$823,8,FALSE)=\"-\"),1/0,VLOOKUP($A768,Economática!$A$3:$AI$823,8,FALSE)))","v":""},{"$f":"IF(A768=\"\",\"\",IF(ISERROR(VLOOKUP(A768,Correção!$B$2:$G$13,9,FALSE)),VLOOKUP($A768,Economática!$A$3:$AI$823,9,FALSE),VLOOKUP(A768,Correção!$B$2:$G$13,9,FALSE)))","v":""},{"$f":"IF($A768=\"\",\"\",Economática!G746)","v":""},{"$f":"IF($A768=\"\",\"\",IF(OR(VLOOKUP($A768,Economática!$A$3:$AI$823,10,FALSE)=0,VLOOKUP($A768,Economática!$A$3:$AI$823,10,FALSE)=\"-\"),1/0,VLOOKUP($A768,Economática!$A$3:$AI$823,10,FALSE)))","v":""},{"$f":"IF($A768=\"\",\"\",IF(OR(VLOOKUP($A768,Economática!$A$3:$AI$823,11,FALSE)=0,VLOOKUP($A768,Economática!$A$3:$AI$823,11,FALSE)=\"-\"),1/0,VLOOKUP($A768,Economática!$A$3:$AI$823,11,FALSE)))","v":""},{"$f":"IF($A768=\"\",\"\",IF(OR(VLOOKUP($A768,Economática!$A$3:$AI$823,12,FALSE)=0,VLOOKUP($A768,Economática!$A$3:$AI$823,12,FALSE)=\"-\"),1/0,VLOOKUP($A768,Economática!$A$3:$AI$823,12,FALSE)))","v":""},{"$f":"IF($A768=\"\",\"\",IF(OR(VLOOKUP($A768,Economática!$A$3:$AI$823,13,FALSE)=0,VLOOKUP($A768,Economática!$A$3:$AI$823,13,FALSE)=\"-\"),1/0,VLOOKUP($A768,Economática!$A$3:$AI$823,13,FALSE)))","v":""},{"$f":"IF($A768=\"\",\"\",IF(OR(VLOOKUP($A768,Economática!$A$3:$AI$823,14,FALSE)=0,VLOOKUP($A768,Economática!$A$3:$AI$823,14,FALSE)=\"-\"),1/0,VLOOKUP($A768,Economática!$A$3:$AI$823,14,FALSE)))","v":""},{"$f":"IF($A768=\"\",\"\",IF(OR(VLOOKUP($A768,Economática!$A$3:$AI$823,15,FALSE)=0,VLOOKUP($A768,Economática!$A$3:$AI$823,15,FALSE)=\"-\"),1/0,VLOOKUP($A768,Economática!$A$3:$AI$823,15,FALSE)))","v":""},{"$f":"IF($A768=\"\",\"\",IF(OR(VLOOKUP($A768,Economática!$A$3:$AI$823,16,FALSE)=0,VLOOKUP($A768,Economática!$A$3:$AI$823,16,FALSE)=\"-\"),1/0,VLOOKUP($A768,Economática!$A$3:$AI$823,16,FALSE)))","v":""},{"$f":"IF($A768=\"\",\"\",IF(OR(VLOOKUP($A768,Economática!$A$3:$AI$823,17,FALSE)=0,VLOOKUP($A768,Economática!$A$3:$AI$823,17,FALSE)=\"-\"),1/0,VLOOKUP($A768,Economática!$A$3:$AI$823,17,FALSE)))","v":""},{"$f":"IF($A768=\"\",\"\",IF(OR(VLOOKUP($A768,Economática!$A$3:$AI$823,18,FALSE)=0,VLOOKUP($A768,Economática!$A$3:$AI$823,18,FALSE)=\"-\"),1/0,VLOOKUP($A768,Economática!$A$3:$AI$823,18,FALSE)))","v":""},{"$f":"IF($A768=\"\",\"\",IF(OR(VLOOKUP($A768,Economática!$A$3:$AI$823,19,FALSE)=0,VLOOKUP($A768,Economática!$A$3:$AI$823,19,FALSE)=\"-\"),1/0,VLOOKUP($A768,Economática!$A$3:$AI$823,19,FALSE)))","v":""},{"$f":"IF($A768=\"\",\"\",VLOOKUP($A768,Economática!$A$3:$AI$823,20,FALSE)/E768)","v":""},"","","",{"$f":"IF($A768=\"\",\"\",IF(OR(VLOOKUP($A768,Economática!$A$3:$AI$823,21,FALSE)/100=0,VLOOKUP($A768,Economática!$A$3:$AI$823,21,FALSE)/100=\"-\"),1/0,VLOOKUP($A768,Economática!$A$3:$AI$823,21,FALSE)/100))","v":""},{"$f":"IF($A768=\"\",\"\",IF(OR(VLOOKUP($A768,Economática!$A$3:$AI$823,22,FALSE)/100=0,VLOOKUP($A768,Economática!$A$3:$AI$823,22,FALSE)/100=\"-\"),1/0,VLOOKUP($A768,Economática!$A$3:$AI$823,22,FALSE)/100))","v":""},{"$f":"IF($A768=\"\",\"\",IF(OR(VLOOKUP($A768,Economática!$A$3:$AI$823,23,FALSE)=0,VLOOKUP($A768,Economática!$A$3:$AI$823,23,FALSE)=\"-\"),1/0,VLOOKUP($A768,Economática!$A$3:$AI$823,23,FALSE)))","v":""},{"$f":"IF($A768=\"\",\"\",IF(OR(VLOOKUP($A768,Economática!$A$3:$AI$823,24,FALSE)=0,VLOOKUP($A768,Economática!$A$3:$AI$823,24,FALSE)=\"-\"),1/0,VLOOKUP($A768,Economática!$A$3:$AI$823,24,FALSE)))","v":""},{"$f":"IF($A768=\"\",\"\",IF(OR(VLOOKUP($A768,Economática!$A$3:$AI$823,25,FALSE)=0,VLOOKUP($A768,Economática!$A$3:$AI$823,25,FALSE)=\"-\"),1/0,VLOOKUP($A768,Economática!$A$3:$AI$823,25,FALSE)))","v":""},{"$f":"IF($A768=\"\",\"\",IF(ISERROR((F768+VLOOKUP($A768,Economática!$A$3:$AI$823,26,FALSE))/Y768),(F768+VLOOKUP($A768,Economática!$A$3:$AI$823,26,FALSE))/Y768,(F768+VLOOKUP($A768,Economática!$A$3:$AI$823,26,FALSE))/Y768))","v":""},{"$f":"IF($A768=\"\",\"\",IF(OR(-VLOOKUP($A768,Economática!$A$3:$AI$823,27,FALSE)=0,-VLOOKUP($A768,Economática!$A$3:$AI$823,27,FALSE)=\"-\"),1/0,-VLOOKUP($A768,Economática!$A$3:$AI$823,27,FALSE)))","v":""},"",{"$f":"IF($A768=\"\",\"\",IF(OR(VLOOKUP($A768,Economática!$A$3:$AI$823,28,FALSE)=0,VLOOKUP($A768,Economática!$A$3:$AI$823,28,FALSE)=\"-\"),1/0,VLOOKUP($A768,Economática!$A$3:$AI$823,28,FALSE)))","v":""},{"$f":"IF($A768=\"\",\"\",IF(OR(VLOOKUP($A768,Economática!$A$3:$AI$823,29,FALSE)=0,VLOOKUP($A768,Economática!$A$3:$AI$823,29,FALSE)=\"-\"),1/0,VLOOKUP($A768,Economática!$A$3:$AI$823,29,FALSE)))","v":""},{"$f":"IF($A768=\"\",\"\",IF(OR(VLOOKUP($A768,Economática!$A$3:$AI$823,30,FALSE)/E768=0,VLOOKUP($A768,Economática!$A$3:$AI$823,30,FALSE)/E768=\"-\",VLOOKUP($A768,Economática!$A$3:$AI$823,30,FALSE)/E768<33.33%,VLOOKUP($A768,Economática!$A$3:$AI$823,30,FALSE)/E768>100%),1/0,VLOOKUP($A768,Economática!$A$3:$AI$823,30,FALSE)/E768))","v":""},"",{"$f":"IF($A768=\"\",\"\",IF(OR(VLOOKUP($A768,Economática!$A$3:$AI$823,25,FALSE)=0,VLOOKUP($A768,Economática!$A$3:$AI$823,25,FALSE)=\"-\"),1/0,VLOOKUP($A768,Economática!$A$3:$AI$823,25,FALSE)))","v":""},{"$f":"CONCATENATE(Economática!B746,\" \",Economática!C746)","v":" "}]
[{"$f":"IF(Economática!AG747=\"\",\"\",Economática!AG747)","v":""},{"$f":"IF($A769=\"\",\"\",VLOOKUP(VLOOKUP($A769,Economática!$A$3:$AI$823,6,FALSE),Correção!$B$16:$C$36,2,FALSE))","v":""},{"$f":"IF(Economática!B747=\"\",\"\",Economática!B747)","v":""},{"$f":"IF($A769=\"\",\"\",IF(OR(VLOOKUP($A769,Economática!$A$3:$AI$823,8,FALSE)=0,VLOOKUP($A769,Economática!$A$3:$AI$823,8,FALSE)=\"-\"),1/0,VLOOKUP($A769,Economática!$A$3:$AI$823,8,FALSE)))","v":""},{"$f":"IF(A769=\"\",\"\",IF(ISERROR(VLOOKUP(A769,Correção!$B$2:$G$13,9,FALSE)),VLOOKUP($A769,Economática!$A$3:$AI$823,9,FALSE),VLOOKUP(A769,Correção!$B$2:$G$13,9,FALSE)))","v":""},{"$f":"IF($A769=\"\",\"\",Economática!G747)","v":""},{"$f":"IF($A769=\"\",\"\",IF(OR(VLOOKUP($A769,Economática!$A$3:$AI$823,10,FALSE)=0,VLOOKUP($A769,Economática!$A$3:$AI$823,10,FALSE)=\"-\"),1/0,VLOOKUP($A769,Economática!$A$3:$AI$823,10,FALSE)))","v":""},{"$f":"IF($A769=\"\",\"\",IF(OR(VLOOKUP($A769,Economática!$A$3:$AI$823,11,FALSE)=0,VLOOKUP($A769,Economática!$A$3:$AI$823,11,FALSE)=\"-\"),1/0,VLOOKUP($A769,Economática!$A$3:$AI$823,11,FALSE)))","v":""},{"$f":"IF($A769=\"\",\"\",IF(OR(VLOOKUP($A769,Economática!$A$3:$AI$823,12,FALSE)=0,VLOOKUP($A769,Economática!$A$3:$AI$823,12,FALSE)=\"-\"),1/0,VLOOKUP($A769,Economática!$A$3:$AI$823,12,FALSE)))","v":""},{"$f":"IF($A769=\"\",\"\",IF(OR(VLOOKUP($A769,Economática!$A$3:$AI$823,13,FALSE)=0,VLOOKUP($A769,Economática!$A$3:$AI$823,13,FALSE)=\"-\"),1/0,VLOOKUP($A769,Economática!$A$3:$AI$823,13,FALSE)))","v":""},{"$f":"IF($A769=\"\",\"\",IF(OR(VLOOKUP($A769,Economática!$A$3:$AI$823,14,FALSE)=0,VLOOKUP($A769,Economática!$A$3:$AI$823,14,FALSE)=\"-\"),1/0,VLOOKUP($A769,Economática!$A$3:$AI$823,14,FALSE)))","v":""},{"$f":"IF($A769=\"\",\"\",IF(OR(VLOOKUP($A769,Economática!$A$3:$AI$823,15,FALSE)=0,VLOOKUP($A769,Economática!$A$3:$AI$823,15,FALSE)=\"-\"),1/0,VLOOKUP($A769,Economática!$A$3:$AI$823,15,FALSE)))","v":""},{"$f":"IF($A769=\"\",\"\",IF(OR(VLOOKUP($A769,Economática!$A$3:$AI$823,16,FALSE)=0,VLOOKUP($A769,Economática!$A$3:$AI$823,16,FALSE)=\"-\"),1/0,VLOOKUP($A769,Economática!$A$3:$AI$823,16,FALSE)))","v":""},{"$f":"IF($A769=\"\",\"\",IF(OR(VLOOKUP($A769,Economática!$A$3:$AI$823,17,FALSE)=0,VLOOKUP($A769,Economática!$A$3:$AI$823,17,FALSE)=\"-\"),1/0,VLOOKUP($A769,Economática!$A$3:$AI$823,17,FALSE)))","v":""},{"$f":"IF($A769=\"\",\"\",IF(OR(VLOOKUP($A769,Economática!$A$3:$AI$823,18,FALSE)=0,VLOOKUP($A769,Economática!$A$3:$AI$823,18,FALSE)=\"-\"),1/0,VLOOKUP($A769,Economática!$A$3:$AI$823,18,FALSE)))","v":""},{"$f":"IF($A769=\"\",\"\",IF(OR(VLOOKUP($A769,Economática!$A$3:$AI$823,19,FALSE)=0,VLOOKUP($A769,Economática!$A$3:$AI$823,19,FALSE)=\"-\"),1/0,VLOOKUP($A769,Economática!$A$3:$AI$823,19,FALSE)))","v":""},{"$f":"IF($A769=\"\",\"\",VLOOKUP($A769,Economática!$A$3:$AI$823,20,FALSE)/E769)","v":""},"","","",{"$f":"IF($A769=\"\",\"\",IF(OR(VLOOKUP($A769,Economática!$A$3:$AI$823,21,FALSE)/100=0,VLOOKUP($A769,Economática!$A$3:$AI$823,21,FALSE)/100=\"-\"),1/0,VLOOKUP($A769,Economática!$A$3:$AI$823,21,FALSE)/100))","v":""},{"$f":"IF($A769=\"\",\"\",IF(OR(VLOOKUP($A769,Economática!$A$3:$AI$823,22,FALSE)/100=0,VLOOKUP($A769,Economática!$A$3:$AI$823,22,FALSE)/100=\"-\"),1/0,VLOOKUP($A769,Economática!$A$3:$AI$823,22,FALSE)/100))","v":""},{"$f":"IF($A769=\"\",\"\",IF(OR(VLOOKUP($A769,Economática!$A$3:$AI$823,23,FALSE)=0,VLOOKUP($A769,Economática!$A$3:$AI$823,23,FALSE)=\"-\"),1/0,VLOOKUP($A769,Economática!$A$3:$AI$823,23,FALSE)))","v":""},{"$f":"IF($A769=\"\",\"\",IF(OR(VLOOKUP($A769,Economática!$A$3:$AI$823,24,FALSE)=0,VLOOKUP($A769,Economática!$A$3:$AI$823,24,FALSE)=\"-\"),1/0,VLOOKUP($A769,Economática!$A$3:$AI$823,24,FALSE)))","v":""},{"$f":"IF($A769=\"\",\"\",IF(OR(VLOOKUP($A769,Economática!$A$3:$AI$823,25,FALSE)=0,VLOOKUP($A769,Economática!$A$3:$AI$823,25,FALSE)=\"-\"),1/0,VLOOKUP($A769,Economática!$A$3:$AI$823,25,FALSE)))","v":""},{"$f":"IF($A769=\"\",\"\",IF(ISERROR((F769+VLOOKUP($A769,Economática!$A$3:$AI$823,26,FALSE))/Y769),(F769+VLOOKUP($A769,Economática!$A$3:$AI$823,26,FALSE))/Y769,(F769+VLOOKUP($A769,Economática!$A$3:$AI$823,26,FALSE))/Y769))","v":""},{"$f":"IF($A769=\"\",\"\",IF(OR(-VLOOKUP($A769,Economática!$A$3:$AI$823,27,FALSE)=0,-VLOOKUP($A769,Economática!$A$3:$AI$823,27,FALSE)=\"-\"),1/0,-VLOOKUP($A769,Economática!$A$3:$AI$823,27,FALSE)))","v":""},"",{"$f":"IF($A769=\"\",\"\",IF(OR(VLOOKUP($A769,Economática!$A$3:$AI$823,28,FALSE)=0,VLOOKUP($A769,Economática!$A$3:$AI$823,28,FALSE)=\"-\"),1/0,VLOOKUP($A769,Economática!$A$3:$AI$823,28,FALSE)))","v":""},{"$f":"IF($A769=\"\",\"\",IF(OR(VLOOKUP($A769,Economática!$A$3:$AI$823,29,FALSE)=0,VLOOKUP($A769,Economática!$A$3:$AI$823,29,FALSE)=\"-\"),1/0,VLOOKUP($A769,Economática!$A$3:$AI$823,29,FALSE)))","v":""},{"$f":"IF($A769=\"\",\"\",IF(OR(VLOOKUP($A769,Economática!$A$3:$AI$823,30,FALSE)/E769=0,VLOOKUP($A769,Economática!$A$3:$AI$823,30,FALSE)/E769=\"-\",VLOOKUP($A769,Economática!$A$3:$AI$823,30,FALSE)/E769<33.33%,VLOOKUP($A769,Economática!$A$3:$AI$823,30,FALSE)/E769>100%),1/0,VLOOKUP($A769,Economática!$A$3:$AI$823,30,FALSE)/E769))","v":""},"",{"$f":"IF($A769=\"\",\"\",IF(OR(VLOOKUP($A769,Economática!$A$3:$AI$823,25,FALSE)=0,VLOOKUP($A769,Economática!$A$3:$AI$823,25,FALSE)=\"-\"),1/0,VLOOKUP($A769,Economática!$A$3:$AI$823,25,FALSE)))","v":""},{"$f":"CONCATENATE(Economática!B747,\" \",Economática!C747)","v":" "}]
[{"$f":"IF(Economática!AG748=\"\",\"\",Economática!AG748)","v":""},{"$f":"IF($A770=\"\",\"\",VLOOKUP(VLOOKUP($A770,Economática!$A$3:$AI$823,6,FALSE),Correção!$B$16:$C$36,2,FALSE))","v":""},{"$f":"IF(Economática!B748=\"\",\"\",Economática!B748)","v":""},{"$f":"IF($A770=\"\",\"\",IF(OR(VLOOKUP($A770,Economática!$A$3:$AI$823,8,FALSE)=0,VLOOKUP($A770,Economática!$A$3:$AI$823,8,FALSE)=\"-\"),1/0,VLOOKUP($A770,Economática!$A$3:$AI$823,8,FALSE)))","v":""},{"$f":"IF(A770=\"\",\"\",IF(ISERROR(VLOOKUP(A770,Correção!$B$2:$G$13,9,FALSE)),VLOOKUP($A770,Economática!$A$3:$AI$823,9,FALSE),VLOOKUP(A770,Correção!$B$2:$G$13,9,FALSE)))","v":""},{"$f":"IF($A770=\"\",\"\",Economática!G748)","v":""},{"$f":"IF($A770=\"\",\"\",IF(OR(VLOOKUP($A770,Economática!$A$3:$AI$823,10,FALSE)=0,VLOOKUP($A770,Economática!$A$3:$AI$823,10,FALSE)=\"-\"),1/0,VLOOKUP($A770,Economática!$A$3:$AI$823,10,FALSE)))","v":""},{"$f":"IF($A770=\"\",\"\",IF(OR(VLOOKUP($A770,Economática!$A$3:$AI$823,11,FALSE)=0,VLOOKUP($A770,Economática!$A$3:$AI$823,11,FALSE)=\"-\"),1/0,VLOOKUP($A770,Economática!$A$3:$AI$823,11,FALSE)))","v":""},{"$f":"IF($A770=\"\",\"\",IF(OR(VLOOKUP($A770,Economática!$A$3:$AI$823,12,FALSE)=0,VLOOKUP($A770,Economática!$A$3:$AI$823,12,FALSE)=\"-\"),1/0,VLOOKUP($A770,Economática!$A$3:$AI$823,12,FALSE)))","v":""},{"$f":"IF($A770=\"\",\"\",IF(OR(VLOOKUP($A770,Economática!$A$3:$AI$823,13,FALSE)=0,VLOOKUP($A770,Economática!$A$3:$AI$823,13,FALSE)=\"-\"),1/0,VLOOKUP($A770,Economática!$A$3:$AI$823,13,FALSE)))","v":""},{"$f":"IF($A770=\"\",\"\",IF(OR(VLOOKUP($A770,Economática!$A$3:$AI$823,14,FALSE)=0,VLOOKUP($A770,Economática!$A$3:$AI$823,14,FALSE)=\"-\"),1/0,VLOOKUP($A770,Economática!$A$3:$AI$823,14,FALSE)))","v":""},{"$f":"IF($A770=\"\",\"\",IF(OR(VLOOKUP($A770,Economática!$A$3:$AI$823,15,FALSE)=0,VLOOKUP($A770,Economática!$A$3:$AI$823,15,FALSE)=\"-\"),1/0,VLOOKUP($A770,Economática!$A$3:$AI$823,15,FALSE)))","v":""},{"$f":"IF($A770=\"\",\"\",IF(OR(VLOOKUP($A770,Economática!$A$3:$AI$823,16,FALSE)=0,VLOOKUP($A770,Economática!$A$3:$AI$823,16,FALSE)=\"-\"),1/0,VLOOKUP($A770,Economática!$A$3:$AI$823,16,FALSE)))","v":""},{"$f":"IF($A770=\"\",\"\",IF(OR(VLOOKUP($A770,Economática!$A$3:$AI$823,17,FALSE)=0,VLOOKUP($A770,Economática!$A$3:$AI$823,17,FALSE)=\"-\"),1/0,VLOOKUP($A770,Economática!$A$3:$AI$823,17,FALSE)))","v":""},{"$f":"IF($A770=\"\",\"\",IF(OR(VLOOKUP($A770,Economática!$A$3:$AI$823,18,FALSE)=0,VLOOKUP($A770,Economática!$A$3:$AI$823,18,FALSE)=\"-\"),1/0,VLOOKUP($A770,Economática!$A$3:$AI$823,18,FALSE)))","v":""},{"$f":"IF($A770=\"\",\"\",IF(OR(VLOOKUP($A770,Economática!$A$3:$AI$823,19,FALSE)=0,VLOOKUP($A770,Economática!$A$3:$AI$823,19,FALSE)=\"-\"),1/0,VLOOKUP($A770,Economática!$A$3:$AI$823,19,FALSE)))","v":""},{"$f":"IF($A770=\"\",\"\",VLOOKUP($A770,Economática!$A$3:$AI$823,20,FALSE)/E770)","v":""},{"$f":"IF($A770=\"\",\"\",IF((G770/E770)<=0,1/0,G770/E770))","v":""},{"$f":"IF($A770=\"\",\"\",D770/R770)","v":""},{"$f":"IF($A770=\"\",\"\",IF((D770/Q770)<=0,1/0,D770/Q770))","v":""},{"$f":"IF($A770=\"\",\"\",IF(OR(VLOOKUP($A770,Economática!$A$3:$AI$823,21,FALSE)/100=0,VLOOKUP($A770,Economática!$A$3:$AI$823,21,FALSE)/100=\"-\"),1/0,VLOOKUP($A770,Economática!$A$3:$AI$823,21,FALSE)/100))","v":""},{"$f":"IF($A770=\"\",\"\",IF(OR(VLOOKUP($A770,Economática!$A$3:$AI$823,22,FALSE)/100=0,VLOOKUP($A770,Economática!$A$3:$AI$823,22,FALSE)/100=\"-\"),1/0,VLOOKUP($A770,Economática!$A$3:$AI$823,22,FALSE)/100))","v":""},{"$f":"IF($A770=\"\",\"\",IF(OR(VLOOKUP($A770,Economática!$A$3:$AI$823,23,FALSE)=0,VLOOKUP($A770,Economática!$A$3:$AI$823,23,FALSE)=\"-\"),1/0,VLOOKUP($A770,Economática!$A$3:$AI$823,23,FALSE)))","v":""},{"$f":"IF($A770=\"\",\"\",IF(OR(VLOOKUP($A770,Economática!$A$3:$AI$823,24,FALSE)=0,VLOOKUP($A770,Economática!$A$3:$AI$823,24,FALSE)=\"-\"),1/0,VLOOKUP($A770,Economática!$A$3:$AI$823,24,FALSE)))","v":""},{"$f":"IF($A770=\"\",\"\",IF(OR(VLOOKUP($A770,Economática!$A$3:$AI$823,25,FALSE)=0,VLOOKUP($A770,Economática!$A$3:$AI$823,25,FALSE)=\"-\"),1/0,VLOOKUP($A770,Economática!$A$3:$AI$823,25,FALSE)))","v":""},{"$f":"IF($A770=\"\",\"\",IF(ISERROR((F770+VLOOKUP($A770,Economática!$A$3:$AI$823,26,FALSE))/Y770),(F770+VLOOKUP($A770,Economática!$A$3:$AI$823,26,FALSE))/Y770,(F770+VLOOKUP($A770,Economática!$A$3:$AI$823,26,FALSE))/Y770))","v":""},{"$f":"IF($A770=\"\",\"\",IF(OR(-VLOOKUP($A770,Economática!$A$3:$AI$823,27,FALSE)=0,-VLOOKUP($A770,Economática!$A$3:$AI$823,27,FALSE)=\"-\"),1/0,-VLOOKUP($A770,Economática!$A$3:$AI$823,27,FALSE)))","v":""},{"$f":"IF(A770=\"\",\"\",AA770/F770)","v":""},{"$f":"IF($A770=\"\",\"\",IF(OR(VLOOKUP($A770,Economática!$A$3:$AI$823,28,FALSE)=0,VLOOKUP($A770,Economática!$A$3:$AI$823,28,FALSE)=\"-\"),1/0,VLOOKUP($A770,Economática!$A$3:$AI$823,28,FALSE)))","v":""},{"$f":"IF($A770=\"\",\"\",IF(OR(VLOOKUP($A770,Economática!$A$3:$AI$823,29,FALSE)=0,VLOOKUP($A770,Economática!$A$3:$AI$823,29,FALSE)=\"-\"),1/0,VLOOKUP($A770,Economática!$A$3:$AI$823,29,FALSE)))","v":""},{"$f":"IF($A770=\"\",\"\",IF(OR(VLOOKUP($A770,Economática!$A$3:$AI$823,30,FALSE)/E770=0,VLOOKUP($A770,Economática!$A$3:$AI$823,30,FALSE)/E770=\"-\",VLOOKUP($A770,Economática!$A$3:$AI$823,30,FALSE)/E770<33.33%,VLOOKUP($A770,Economática!$A$3:$AI$823,30,FALSE)/E770>100%),1/0,VLOOKUP($A770,Economática!$A$3:$AI$823,30,FALSE)/E770))","v":""},{"$f":"IF(A770=\"\",\"\",A770)","v":""},{"$f":"IF($A770=\"\",\"\",IF(OR(VLOOKUP($A770,Economática!$A$3:$AI$823,25,FALSE)=0,VLOOKUP($A770,Economática!$A$3:$AI$823,25,FALSE)=\"-\"),1/0,VLOOKUP($A770,Economática!$A$3:$AI$823,25,FALSE)))","v":""},{"$f":"CONCATENATE(Economática!B748,\" \",Economática!C748)","v":" "}]
[{"$f":"IF(Economática!AG749=\"\",\"\",Economática!AG749)","v":""},{"$f":"IF($A771=\"\",\"\",VLOOKUP(VLOOKUP($A771,Economática!$A$3:$AI$823,6,FALSE),Correção!$B$16:$C$36,2,FALSE))","v":""},{"$f":"IF(Economática!B749=\"\",\"\",Economática!B749)","v":""},{"$f":"IF($A771=\"\",\"\",IF(OR(VLOOKUP($A771,Economática!$A$3:$AI$823,8,FALSE)=0,VLOOKUP($A771,Economática!$A$3:$AI$823,8,FALSE)=\"-\"),1/0,VLOOKUP($A771,Economática!$A$3:$AI$823,8,FALSE)))","v":""},{"$f":"IF(A771=\"\",\"\",IF(ISERROR(VLOOKUP(A771,Correção!$B$2:$G$13,9,FALSE)),VLOOKUP($A771,Economática!$A$3:$AI$823,9,FALSE),VLOOKUP(A771,Correção!$B$2:$G$13,9,FALSE)))","v":""},{"$f":"IF($A771=\"\",\"\",Economática!G749)","v":""},{"$f":"IF($A771=\"\",\"\",IF(OR(VLOOKUP($A771,Economática!$A$3:$AI$823,10,FALSE)=0,VLOOKUP($A771,Economática!$A$3:$AI$823,10,FALSE)=\"-\"),1/0,VLOOKUP($A771,Economática!$A$3:$AI$823,10,FALSE)))","v":""},{"$f":"IF($A771=\"\",\"\",IF(OR(VLOOKUP($A771,Economática!$A$3:$AI$823,11,FALSE)=0,VLOOKUP($A771,Economática!$A$3:$AI$823,11,FALSE)=\"-\"),1/0,VLOOKUP($A771,Economática!$A$3:$AI$823,11,FALSE)))","v":""},{"$f":"IF($A771=\"\",\"\",IF(OR(VLOOKUP($A771,Economática!$A$3:$AI$823,12,FALSE)=0,VLOOKUP($A771,Economática!$A$3:$AI$823,12,FALSE)=\"-\"),1/0,VLOOKUP($A771,Economática!$A$3:$AI$823,12,FALSE)))","v":""},{"$f":"IF($A771=\"\",\"\",IF(OR(VLOOKUP($A771,Economática!$A$3:$AI$823,13,FALSE)=0,VLOOKUP($A771,Economática!$A$3:$AI$823,13,FALSE)=\"-\"),1/0,VLOOKUP($A771,Economática!$A$3:$AI$823,13,FALSE)))","v":""},{"$f":"IF($A771=\"\",\"\",IF(OR(VLOOKUP($A771,Economática!$A$3:$AI$823,14,FALSE)=0,VLOOKUP($A771,Economática!$A$3:$AI$823,14,FALSE)=\"-\"),1/0,VLOOKUP($A771,Economática!$A$3:$AI$823,14,FALSE)))","v":""},{"$f":"IF($A771=\"\",\"\",IF(OR(VLOOKUP($A771,Economática!$A$3:$AI$823,15,FALSE)=0,VLOOKUP($A771,Economática!$A$3:$AI$823,15,FALSE)=\"-\"),1/0,VLOOKUP($A771,Economática!$A$3:$AI$823,15,FALSE)))","v":""},{"$f":"IF($A771=\"\",\"\",IF(OR(VLOOKUP($A771,Economática!$A$3:$AI$823,16,FALSE)=0,VLOOKUP($A771,Economática!$A$3:$AI$823,16,FALSE)=\"-\"),1/0,VLOOKUP($A771,Economática!$A$3:$AI$823,16,FALSE)))","v":""},{"$f":"IF($A771=\"\",\"\",IF(OR(VLOOKUP($A771,Economática!$A$3:$AI$823,17,FALSE)=0,VLOOKUP($A771,Economática!$A$3:$AI$823,17,FALSE)=\"-\"),1/0,VLOOKUP($A771,Economática!$A$3:$AI$823,17,FALSE)))","v":""},{"$f":"IF($A771=\"\",\"\",IF(OR(VLOOKUP($A771,Economática!$A$3:$AI$823,18,FALSE)=0,VLOOKUP($A771,Economática!$A$3:$AI$823,18,FALSE)=\"-\"),1/0,VLOOKUP($A771,Economática!$A$3:$AI$823,18,FALSE)))","v":""},{"$f":"IF($A771=\"\",\"\",IF(OR(VLOOKUP($A771,Economática!$A$3:$AI$823,19,FALSE)=0,VLOOKUP($A771,Economática!$A$3:$AI$823,19,FALSE)=\"-\"),1/0,VLOOKUP($A771,Economática!$A$3:$AI$823,19,FALSE)))","v":""},{"$f":"IF($A771=\"\",\"\",VLOOKUP($A771,Economática!$A$3:$AI$823,20,FALSE)/E771)","v":""},"","","",{"$f":"IF($A771=\"\",\"\",IF(OR(VLOOKUP($A771,Economática!$A$3:$AI$823,21,FALSE)/100=0,VLOOKUP($A771,Economática!$A$3:$AI$823,21,FALSE)/100=\"-\"),1/0,VLOOKUP($A771,Economática!$A$3:$AI$823,21,FALSE)/100))","v":""},{"$f":"IF($A771=\"\",\"\",IF(OR(VLOOKUP($A771,Economática!$A$3:$AI$823,22,FALSE)/100=0,VLOOKUP($A771,Economática!$A$3:$AI$823,22,FALSE)/100=\"-\"),1/0,VLOOKUP($A771,Economática!$A$3:$AI$823,22,FALSE)/100))","v":""},{"$f":"IF($A771=\"\",\"\",IF(OR(VLOOKUP($A771,Economática!$A$3:$AI$823,23,FALSE)=0,VLOOKUP($A771,Economática!$A$3:$AI$823,23,FALSE)=\"-\"),1/0,VLOOKUP($A771,Economática!$A$3:$AI$823,23,FALSE)))","v":""},{"$f":"IF($A771=\"\",\"\",IF(OR(VLOOKUP($A771,Economática!$A$3:$AI$823,24,FALSE)=0,VLOOKUP($A771,Economática!$A$3:$AI$823,24,FALSE)=\"-\"),1/0,VLOOKUP($A771,Economática!$A$3:$AI$823,24,FALSE)))","v":""},{"$f":"IF($A771=\"\",\"\",IF(OR(VLOOKUP($A771,Economática!$A$3:$AI$823,25,FALSE)=0,VLOOKUP($A771,Economática!$A$3:$AI$823,25,FALSE)=\"-\"),1/0,VLOOKUP($A771,Economática!$A$3:$AI$823,25,FALSE)))","v":""},{"$f":"IF($A771=\"\",\"\",IF(ISERROR((F771+VLOOKUP($A771,Economática!$A$3:$AI$823,26,FALSE))/Y771),(F771+VLOOKUP($A771,Economática!$A$3:$AI$823,26,FALSE))/Y771,(F771+VLOOKUP($A771,Economática!$A$3:$AI$823,26,FALSE))/Y771))","v":""},{"$f":"IF($A771=\"\",\"\",IF(OR(-VLOOKUP($A771,Economática!$A$3:$AI$823,27,FALSE)=0,-VLOOKUP($A771,Economática!$A$3:$AI$823,27,FALSE)=\"-\"),1/0,-VLOOKUP($A771,Economática!$A$3:$AI$823,27,FALSE)))","v":""},"",{"$f":"IF($A771=\"\",\"\",IF(OR(VLOOKUP($A771,Economática!$A$3:$AI$823,28,FALSE)=0,VLOOKUP($A771,Economática!$A$3:$AI$823,28,FALSE)=\"-\"),1/0,VLOOKUP($A771,Economática!$A$3:$AI$823,28,FALSE)))","v":""},{"$f":"IF($A771=\"\",\"\",IF(OR(VLOOKUP($A771,Economática!$A$3:$AI$823,29,FALSE)=0,VLOOKUP($A771,Economática!$A$3:$AI$823,29,FALSE)=\"-\"),1/0,VLOOKUP($A771,Economática!$A$3:$AI$823,29,FALSE)))","v":""},{"$f":"IF($A771=\"\",\"\",IF(OR(VLOOKUP($A771,Economática!$A$3:$AI$823,30,FALSE)/E771=0,VLOOKUP($A771,Economática!$A$3:$AI$823,30,FALSE)/E771=\"-\",VLOOKUP($A771,Economática!$A$3:$AI$823,30,FALSE)/E771<33.33%,VLOOKUP($A771,Economática!$A$3:$AI$823,30,FALSE)/E771>100%),1/0,VLOOKUP($A771,Economática!$A$3:$AI$823,30,FALSE)/E771))","v":""},"",{"$f":"IF($A771=\"\",\"\",IF(OR(VLOOKUP($A771,Economática!$A$3:$AI$823,25,FALSE)=0,VLOOKUP($A771,Economática!$A$3:$AI$823,25,FALSE)=\"-\"),1/0,VLOOKUP($A771,Economática!$A$3:$AI$823,25,FALSE)))","v":""},{"$f":"CONCATENATE(Economática!B749,\" \",Economática!C749)","v":" "}]
[{"$f":"IF(Economática!AG750=\"\",\"\",Economática!AG750)","v":""},{"$f":"IF($A772=\"\",\"\",VLOOKUP(VLOOKUP($A772,Economática!$A$3:$AI$823,6,FALSE),Correção!$B$16:$C$36,2,FALSE))","v":""},{"$f":"IF(Economática!B750=\"\",\"\",Economática!B750)","v":""},{"$f":"IF($A772=\"\",\"\",IF(OR(VLOOKUP($A772,Economática!$A$3:$AI$823,8,FALSE)=0,VLOOKUP($A772,Economática!$A$3:$AI$823,8,FALSE)=\"-\"),1/0,VLOOKUP($A772,Economática!$A$3:$AI$823,8,FALSE)))","v":""},{"$f":"IF(A772=\"\",\"\",IF(ISERROR(VLOOKUP(A772,Correção!$B$2:$G$13,9,FALSE)),VLOOKUP($A772,Economática!$A$3:$AI$823,9,FALSE),VLOOKUP(A772,Correção!$B$2:$G$13,9,FALSE)))","v":""},{"$f":"IF($A772=\"\",\"\",Economática!G750)","v":""},{"$f":"IF($A772=\"\",\"\",IF(OR(VLOOKUP($A772,Economática!$A$3:$AI$823,10,FALSE)=0,VLOOKUP($A772,Economática!$A$3:$AI$823,10,FALSE)=\"-\"),1/0,VLOOKUP($A772,Economática!$A$3:$AI$823,10,FALSE)))","v":""},{"$f":"IF($A772=\"\",\"\",IF(OR(VLOOKUP($A772,Economática!$A$3:$AI$823,11,FALSE)=0,VLOOKUP($A772,Economática!$A$3:$AI$823,11,FALSE)=\"-\"),1/0,VLOOKUP($A772,Economática!$A$3:$AI$823,11,FALSE)))","v":""},{"$f":"IF($A772=\"\",\"\",IF(OR(VLOOKUP($A772,Economática!$A$3:$AI$823,12,FALSE)=0,VLOOKUP($A772,Economática!$A$3:$AI$823,12,FALSE)=\"-\"),1/0,VLOOKUP($A772,Economática!$A$3:$AI$823,12,FALSE)))","v":""},{"$f":"IF($A772=\"\",\"\",IF(OR(VLOOKUP($A772,Economática!$A$3:$AI$823,13,FALSE)=0,VLOOKUP($A772,Economática!$A$3:$AI$823,13,FALSE)=\"-\"),1/0,VLOOKUP($A772,Economática!$A$3:$AI$823,13,FALSE)))","v":""},{"$f":"IF($A772=\"\",\"\",IF(OR(VLOOKUP($A772,Economática!$A$3:$AI$823,14,FALSE)=0,VLOOKUP($A772,Economática!$A$3:$AI$823,14,FALSE)=\"-\"),1/0,VLOOKUP($A772,Economática!$A$3:$AI$823,14,FALSE)))","v":""},{"$f":"IF($A772=\"\",\"\",IF(OR(VLOOKUP($A772,Economática!$A$3:$AI$823,15,FALSE)=0,VLOOKUP($A772,Economática!$A$3:$AI$823,15,FALSE)=\"-\"),1/0,VLOOKUP($A772,Economática!$A$3:$AI$823,15,FALSE)))","v":""},{"$f":"IF($A772=\"\",\"\",IF(OR(VLOOKUP($A772,Economática!$A$3:$AI$823,16,FALSE)=0,VLOOKUP($A772,Economática!$A$3:$AI$823,16,FALSE)=\"-\"),1/0,VLOOKUP($A772,Economática!$A$3:$AI$823,16,FALSE)))","v":""},{"$f":"IF($A772=\"\",\"\",IF(OR(VLOOKUP($A772,Economática!$A$3:$AI$823,17,FALSE)=0,VLOOKUP($A772,Economática!$A$3:$AI$823,17,FALSE)=\"-\"),1/0,VLOOKUP($A772,Economática!$A$3:$AI$823,17,FALSE)))","v":""},{"$f":"IF($A772=\"\",\"\",IF(OR(VLOOKUP($A772,Economática!$A$3:$AI$823,18,FALSE)=0,VLOOKUP($A772,Economática!$A$3:$AI$823,18,FALSE)=\"-\"),1/0,VLOOKUP($A772,Economática!$A$3:$AI$823,18,FALSE)))","v":""},{"$f":"IF($A772=\"\",\"\",IF(OR(VLOOKUP($A772,Economática!$A$3:$AI$823,19,FALSE)=0,VLOOKUP($A772,Economática!$A$3:$AI$823,19,FALSE)=\"-\"),1/0,VLOOKUP($A772,Economática!$A$3:$AI$823,19,FALSE)))","v":""},{"$f":"IF($A772=\"\",\"\",VLOOKUP($A772,Economática!$A$3:$AI$823,20,FALSE)/E772)","v":""},"","","",{"$f":"IF($A772=\"\",\"\",IF(OR(VLOOKUP($A772,Economática!$A$3:$AI$823,21,FALSE)/100=0,VLOOKUP($A772,Economática!$A$3:$AI$823,21,FALSE)/100=\"-\"),1/0,VLOOKUP($A772,Economática!$A$3:$AI$823,21,FALSE)/100))","v":""},{"$f":"IF($A772=\"\",\"\",IF(OR(VLOOKUP($A772,Economática!$A$3:$AI$823,22,FALSE)/100=0,VLOOKUP($A772,Economática!$A$3:$AI$823,22,FALSE)/100=\"-\"),1/0,VLOOKUP($A772,Economática!$A$3:$AI$823,22,FALSE)/100))","v":""},{"$f":"IF($A772=\"\",\"\",IF(OR(VLOOKUP($A772,Economática!$A$3:$AI$823,23,FALSE)=0,VLOOKUP($A772,Economática!$A$3:$AI$823,23,FALSE)=\"-\"),1/0,VLOOKUP($A772,Economática!$A$3:$AI$823,23,FALSE)))","v":""},{"$f":"IF($A772=\"\",\"\",IF(OR(VLOOKUP($A772,Economática!$A$3:$AI$823,24,FALSE)=0,VLOOKUP($A772,Economática!$A$3:$AI$823,24,FALSE)=\"-\"),1/0,VLOOKUP($A772,Economática!$A$3:$AI$823,24,FALSE)))","v":""},{"$f":"IF($A772=\"\",\"\",IF(OR(VLOOKUP($A772,Economática!$A$3:$AI$823,25,FALSE)=0,VLOOKUP($A772,Economática!$A$3:$AI$823,25,FALSE)=\"-\"),1/0,VLOOKUP($A772,Economática!$A$3:$AI$823,25,FALSE)))","v":""},{"$f":"IF($A772=\"\",\"\",IF(ISERROR((F772+VLOOKUP($A772,Economática!$A$3:$AI$823,26,FALSE))/Y772),(F772+VLOOKUP($A772,Economática!$A$3:$AI$823,26,FALSE))/Y772,(F772+VLOOKUP($A772,Economática!$A$3:$AI$823,26,FALSE))/Y772))","v":""},{"$f":"IF($A772=\"\",\"\",IF(OR(-VLOOKUP($A772,Economática!$A$3:$AI$823,27,FALSE)=0,-VLOOKUP($A772,Economática!$A$3:$AI$823,27,FALSE)=\"-\"),1/0,-VLOOKUP($A772,Economática!$A$3:$AI$823,27,FALSE)))","v":""},"",{"$f":"IF($A772=\"\",\"\",IF(OR(VLOOKUP($A772,Economática!$A$3:$AI$823,28,FALSE)=0,VLOOKUP($A772,Economática!$A$3:$AI$823,28,FALSE)=\"-\"),1/0,VLOOKUP($A772,Economática!$A$3:$AI$823,28,FALSE)))","v":""},{"$f":"IF($A772=\"\",\"\",IF(OR(VLOOKUP($A772,Economática!$A$3:$AI$823,29,FALSE)=0,VLOOKUP($A772,Economática!$A$3:$AI$823,29,FALSE)=\"-\"),1/0,VLOOKUP($A772,Economática!$A$3:$AI$823,29,FALSE)))","v":""},{"$f":"IF($A772=\"\",\"\",IF(OR(VLOOKUP($A772,Economática!$A$3:$AI$823,30,FALSE)/E772=0,VLOOKUP($A772,Economática!$A$3:$AI$823,30,FALSE)/E772=\"-\",VLOOKUP($A772,Economática!$A$3:$AI$823,30,FALSE)/E772<33.33%,VLOOKUP($A772,Economática!$A$3:$AI$823,30,FALSE)/E772>100%),1/0,VLOOKUP($A772,Economática!$A$3:$AI$823,30,FALSE)/E772))","v":""},"",{"$f":"IF($A772=\"\",\"\",IF(OR(VLOOKUP($A772,Economática!$A$3:$AI$823,25,FALSE)=0,VLOOKUP($A772,Economática!$A$3:$AI$823,25,FALSE)=\"-\"),1/0,VLOOKUP($A772,Economática!$A$3:$AI$823,25,FALSE)))","v":""},{"$f":"CONCATENATE(Economática!B750,\" \",Economática!C750)","v":" "}]
[{"$f":"IF(Economática!AG751=\"\",\"\",Economática!AG751)","v":""},{"$f":"IF($A773=\"\",\"\",VLOOKUP(VLOOKUP($A773,Economática!$A$3:$AI$823,6,FALSE),Correção!$B$16:$C$36,2,FALSE))","v":""},{"$f":"IF(Economática!B751=\"\",\"\",Economática!B751)","v":""},{"$f":"IF($A773=\"\",\"\",IF(OR(VLOOKUP($A773,Economática!$A$3:$AI$823,8,FALSE)=0,VLOOKUP($A773,Economática!$A$3:$AI$823,8,FALSE)=\"-\"),1/0,VLOOKUP($A773,Economática!$A$3:$AI$823,8,FALSE)))","v":""},{"$f":"IF(A773=\"\",\"\",IF(ISERROR(VLOOKUP(A773,Correção!$B$2:$G$13,9,FALSE)),VLOOKUP($A773,Economática!$A$3:$AI$823,9,FALSE),VLOOKUP(A773,Correção!$B$2:$G$13,9,FALSE)))","v":""},{"$f":"IF($A773=\"\",\"\",Economática!G751)","v":""},{"$f":"IF($A773=\"\",\"\",IF(OR(VLOOKUP($A773,Economática!$A$3:$AI$823,10,FALSE)=0,VLOOKUP($A773,Economática!$A$3:$AI$823,10,FALSE)=\"-\"),1/0,VLOOKUP($A773,Economática!$A$3:$AI$823,10,FALSE)))","v":""},{"$f":"IF($A773=\"\",\"\",IF(OR(VLOOKUP($A773,Economática!$A$3:$AI$823,11,FALSE)=0,VLOOKUP($A773,Economática!$A$3:$AI$823,11,FALSE)=\"-\"),1/0,VLOOKUP($A773,Economática!$A$3:$AI$823,11,FALSE)))","v":""},{"$f":"IF($A773=\"\",\"\",IF(OR(VLOOKUP($A773,Economática!$A$3:$AI$823,12,FALSE)=0,VLOOKUP($A773,Economática!$A$3:$AI$823,12,FALSE)=\"-\"),1/0,VLOOKUP($A773,Economática!$A$3:$AI$823,12,FALSE)))","v":""},{"$f":"IF($A773=\"\",\"\",IF(OR(VLOOKUP($A773,Economática!$A$3:$AI$823,13,FALSE)=0,VLOOKUP($A773,Economática!$A$3:$AI$823,13,FALSE)=\"-\"),1/0,VLOOKUP($A773,Economática!$A$3:$AI$823,13,FALSE)))","v":""},{"$f":"IF($A773=\"\",\"\",IF(OR(VLOOKUP($A773,Economática!$A$3:$AI$823,14,FALSE)=0,VLOOKUP($A773,Economática!$A$3:$AI$823,14,FALSE)=\"-\"),1/0,VLOOKUP($A773,Economática!$A$3:$AI$823,14,FALSE)))","v":""},{"$f":"IF($A773=\"\",\"\",IF(OR(VLOOKUP($A773,Economática!$A$3:$AI$823,15,FALSE)=0,VLOOKUP($A773,Economática!$A$3:$AI$823,15,FALSE)=\"-\"),1/0,VLOOKUP($A773,Economática!$A$3:$AI$823,15,FALSE)))","v":""},{"$f":"IF($A773=\"\",\"\",IF(OR(VLOOKUP($A773,Economática!$A$3:$AI$823,16,FALSE)=0,VLOOKUP($A773,Economática!$A$3:$AI$823,16,FALSE)=\"-\"),1/0,VLOOKUP($A773,Economática!$A$3:$AI$823,16,FALSE)))","v":""},{"$f":"IF($A773=\"\",\"\",IF(OR(VLOOKUP($A773,Economática!$A$3:$AI$823,17,FALSE)=0,VLOOKUP($A773,Economática!$A$3:$AI$823,17,FALSE)=\"-\"),1/0,VLOOKUP($A773,Economática!$A$3:$AI$823,17,FALSE)))","v":""},{"$f":"IF($A773=\"\",\"\",IF(OR(VLOOKUP($A773,Economática!$A$3:$AI$823,18,FALSE)=0,VLOOKUP($A773,Economática!$A$3:$AI$823,18,FALSE)=\"-\"),1/0,VLOOKUP($A773,Economática!$A$3:$AI$823,18,FALSE)))","v":""},{"$f":"IF($A773=\"\",\"\",IF(OR(VLOOKUP($A773,Economática!$A$3:$AI$823,19,FALSE)=0,VLOOKUP($A773,Economática!$A$3:$AI$823,19,FALSE)=\"-\"),1/0,VLOOKUP($A773,Economática!$A$3:$AI$823,19,FALSE)))","v":""},{"$f":"IF($A773=\"\",\"\",VLOOKUP($A773,Economática!$A$3:$AI$823,20,FALSE)/E773)","v":""},"","","",{"$f":"IF($A773=\"\",\"\",IF(OR(VLOOKUP($A773,Economática!$A$3:$AI$823,21,FALSE)/100=0,VLOOKUP($A773,Economática!$A$3:$AI$823,21,FALSE)/100=\"-\"),1/0,VLOOKUP($A773,Economática!$A$3:$AI$823,21,FALSE)/100))","v":""},{"$f":"IF($A773=\"\",\"\",IF(OR(VLOOKUP($A773,Economática!$A$3:$AI$823,22,FALSE)/100=0,VLOOKUP($A773,Economática!$A$3:$AI$823,22,FALSE)/100=\"-\"),1/0,VLOOKUP($A773,Economática!$A$3:$AI$823,22,FALSE)/100))","v":""},{"$f":"IF($A773=\"\",\"\",IF(OR(VLOOKUP($A773,Economática!$A$3:$AI$823,23,FALSE)=0,VLOOKUP($A773,Economática!$A$3:$AI$823,23,FALSE)=\"-\"),1/0,VLOOKUP($A773,Economática!$A$3:$AI$823,23,FALSE)))","v":""},{"$f":"IF($A773=\"\",\"\",IF(OR(VLOOKUP($A773,Economática!$A$3:$AI$823,24,FALSE)=0,VLOOKUP($A773,Economática!$A$3:$AI$823,24,FALSE)=\"-\"),1/0,VLOOKUP($A773,Economática!$A$3:$AI$823,24,FALSE)))","v":""},{"$f":"IF($A773=\"\",\"\",IF(OR(VLOOKUP($A773,Economática!$A$3:$AI$823,25,FALSE)=0,VLOOKUP($A773,Economática!$A$3:$AI$823,25,FALSE)=\"-\"),1/0,VLOOKUP($A773,Economática!$A$3:$AI$823,25,FALSE)))","v":""},{"$f":"IF($A773=\"\",\"\",IF(ISERROR((F773+VLOOKUP($A773,Economática!$A$3:$AI$823,26,FALSE))/Y773),(F773+VLOOKUP($A773,Economática!$A$3:$AI$823,26,FALSE))/Y773,(F773+VLOOKUP($A773,Economática!$A$3:$AI$823,26,FALSE))/Y773))","v":""},{"$f":"IF($A773=\"\",\"\",IF(OR(-VLOOKUP($A773,Economática!$A$3:$AI$823,27,FALSE)=0,-VLOOKUP($A773,Economática!$A$3:$AI$823,27,FALSE)=\"-\"),1/0,-VLOOKUP($A773,Economática!$A$3:$AI$823,27,FALSE)))","v":""},"",{"$f":"IF($A773=\"\",\"\",IF(OR(VLOOKUP($A773,Economática!$A$3:$AI$823,28,FALSE)=0,VLOOKUP($A773,Economática!$A$3:$AI$823,28,FALSE)=\"-\"),1/0,VLOOKUP($A773,Economática!$A$3:$AI$823,28,FALSE)))","v":""},{"$f":"IF($A773=\"\",\"\",IF(OR(VLOOKUP($A773,Economática!$A$3:$AI$823,29,FALSE)=0,VLOOKUP($A773,Economática!$A$3:$AI$823,29,FALSE)=\"-\"),1/0,VLOOKUP($A773,Economática!$A$3:$AI$823,29,FALSE)))","v":""},{"$f":"IF($A773=\"\",\"\",IF(OR(VLOOKUP($A773,Economática!$A$3:$AI$823,30,FALSE)/E773=0,VLOOKUP($A773,Economática!$A$3:$AI$823,30,FALSE)/E773=\"-\",VLOOKUP($A773,Economática!$A$3:$AI$823,30,FALSE)/E773<33.33%,VLOOKUP($A773,Economática!$A$3:$AI$823,30,FALSE)/E773>100%),1/0,VLOOKUP($A773,Economática!$A$3:$AI$823,30,FALSE)/E773))","v":""},"",{"$f":"IF($A773=\"\",\"\",IF(OR(VLOOKUP($A773,Economática!$A$3:$AI$823,25,FALSE)=0,VLOOKUP($A773,Economática!$A$3:$AI$823,25,FALSE)=\"-\"),1/0,VLOOKUP($A773,Economática!$A$3:$AI$823,25,FALSE)))","v":""},{"$f":"CONCATENATE(Economática!B751,\" \",Economática!C751)","v":" "}]
[{"$f":"IF(Economática!AG752=\"\",\"\",Economática!AG752)","v":""},{"$f":"IF($A774=\"\",\"\",VLOOKUP(VLOOKUP($A774,Economática!$A$3:$AI$823,6,FALSE),Correção!$B$16:$C$36,2,FALSE))","v":""},{"$f":"IF(Economática!B752=\"\",\"\",Economática!B752)","v":""},{"$f":"IF($A774=\"\",\"\",IF(OR(VLOOKUP($A774,Economática!$A$3:$AI$823,8,FALSE)=0,VLOOKUP($A774,Economática!$A$3:$AI$823,8,FALSE)=\"-\"),1/0,VLOOKUP($A774,Economática!$A$3:$AI$823,8,FALSE)))","v":""},{"$f":"IF(A774=\"\",\"\",IF(ISERROR(VLOOKUP(A774,Correção!$B$2:$G$13,9,FALSE)),VLOOKUP($A774,Economática!$A$3:$AI$823,9,FALSE),VLOOKUP(A774,Correção!$B$2:$G$13,9,FALSE)))","v":""},{"$f":"IF($A774=\"\",\"\",Economática!G752)","v":""},{"$f":"IF($A774=\"\",\"\",IF(OR(VLOOKUP($A774,Economática!$A$3:$AI$823,10,FALSE)=0,VLOOKUP($A774,Economática!$A$3:$AI$823,10,FALSE)=\"-\"),1/0,VLOOKUP($A774,Economática!$A$3:$AI$823,10,FALSE)))","v":""},{"$f":"IF($A774=\"\",\"\",IF(OR(VLOOKUP($A774,Economática!$A$3:$AI$823,11,FALSE)=0,VLOOKUP($A774,Economática!$A$3:$AI$823,11,FALSE)=\"-\"),1/0,VLOOKUP($A774,Economática!$A$3:$AI$823,11,FALSE)))","v":""},{"$f":"IF($A774=\"\",\"\",IF(OR(VLOOKUP($A774,Economática!$A$3:$AI$823,12,FALSE)=0,VLOOKUP($A774,Economática!$A$3:$AI$823,12,FALSE)=\"-\"),1/0,VLOOKUP($A774,Economática!$A$3:$AI$823,12,FALSE)))","v":""},{"$f":"IF($A774=\"\",\"\",IF(OR(VLOOKUP($A774,Economática!$A$3:$AI$823,13,FALSE)=0,VLOOKUP($A774,Economática!$A$3:$AI$823,13,FALSE)=\"-\"),1/0,VLOOKUP($A774,Economática!$A$3:$AI$823,13,FALSE)))","v":""},{"$f":"IF($A774=\"\",\"\",IF(OR(VLOOKUP($A774,Economática!$A$3:$AI$823,14,FALSE)=0,VLOOKUP($A774,Economática!$A$3:$AI$823,14,FALSE)=\"-\"),1/0,VLOOKUP($A774,Economática!$A$3:$AI$823,14,FALSE)))","v":""},{"$f":"IF($A774=\"\",\"\",IF(OR(VLOOKUP($A774,Economática!$A$3:$AI$823,15,FALSE)=0,VLOOKUP($A774,Economática!$A$3:$AI$823,15,FALSE)=\"-\"),1/0,VLOOKUP($A774,Economática!$A$3:$AI$823,15,FALSE)))","v":""},{"$f":"IF($A774=\"\",\"\",IF(OR(VLOOKUP($A774,Economática!$A$3:$AI$823,16,FALSE)=0,VLOOKUP($A774,Economática!$A$3:$AI$823,16,FALSE)=\"-\"),1/0,VLOOKUP($A774,Economática!$A$3:$AI$823,16,FALSE)))","v":""},{"$f":"IF($A774=\"\",\"\",IF(OR(VLOOKUP($A774,Economática!$A$3:$AI$823,17,FALSE)=0,VLOOKUP($A774,Economática!$A$3:$AI$823,17,FALSE)=\"-\"),1/0,VLOOKUP($A774,Economática!$A$3:$AI$823,17,FALSE)))","v":""},{"$f":"IF($A774=\"\",\"\",IF(OR(VLOOKUP($A774,Economática!$A$3:$AI$823,18,FALSE)=0,VLOOKUP($A774,Economática!$A$3:$AI$823,18,FALSE)=\"-\"),1/0,VLOOKUP($A774,Economática!$A$3:$AI$823,18,FALSE)))","v":""},{"$f":"IF($A774=\"\",\"\",IF(OR(VLOOKUP($A774,Economática!$A$3:$AI$823,19,FALSE)=0,VLOOKUP($A774,Economática!$A$3:$AI$823,19,FALSE)=\"-\"),1/0,VLOOKUP($A774,Economática!$A$3:$AI$823,19,FALSE)))","v":""},{"$f":"IF($A774=\"\",\"\",VLOOKUP($A774,Economática!$A$3:$AI$823,20,FALSE)/E774)","v":""},"","","",{"$f":"IF($A774=\"\",\"\",IF(OR(VLOOKUP($A774,Economática!$A$3:$AI$823,21,FALSE)/100=0,VLOOKUP($A774,Economática!$A$3:$AI$823,21,FALSE)/100=\"-\"),1/0,VLOOKUP($A774,Economática!$A$3:$AI$823,21,FALSE)/100))","v":""},{"$f":"IF($A774=\"\",\"\",IF(OR(VLOOKUP($A774,Economática!$A$3:$AI$823,22,FALSE)/100=0,VLOOKUP($A774,Economática!$A$3:$AI$823,22,FALSE)/100=\"-\"),1/0,VLOOKUP($A774,Economática!$A$3:$AI$823,22,FALSE)/100))","v":""},{"$f":"IF($A774=\"\",\"\",IF(OR(VLOOKUP($A774,Economática!$A$3:$AI$823,23,FALSE)=0,VLOOKUP($A774,Economática!$A$3:$AI$823,23,FALSE)=\"-\"),1/0,VLOOKUP($A774,Economática!$A$3:$AI$823,23,FALSE)))","v":""},{"$f":"IF($A774=\"\",\"\",IF(OR(VLOOKUP($A774,Economática!$A$3:$AI$823,24,FALSE)=0,VLOOKUP($A774,Economática!$A$3:$AI$823,24,FALSE)=\"-\"),1/0,VLOOKUP($A774,Economática!$A$3:$AI$823,24,FALSE)))","v":""},{"$f":"IF($A774=\"\",\"\",IF(OR(VLOOKUP($A774,Economática!$A$3:$AI$823,25,FALSE)=0,VLOOKUP($A774,Economática!$A$3:$AI$823,25,FALSE)=\"-\"),1/0,VLOOKUP($A774,Economática!$A$3:$AI$823,25,FALSE)))","v":""},{"$f":"IF($A774=\"\",\"\",IF(ISERROR((F774+VLOOKUP($A774,Economática!$A$3:$AI$823,26,FALSE))/Y774),(F774+VLOOKUP($A774,Economática!$A$3:$AI$823,26,FALSE))/Y774,(F774+VLOOKUP($A774,Economática!$A$3:$AI$823,26,FALSE))/Y774))","v":""},{"$f":"IF($A774=\"\",\"\",IF(OR(-VLOOKUP($A774,Economática!$A$3:$AI$823,27,FALSE)=0,-VLOOKUP($A774,Economática!$A$3:$AI$823,27,FALSE)=\"-\"),1/0,-VLOOKUP($A774,Economática!$A$3:$AI$823,27,FALSE)))","v":""},"",{"$f":"IF($A774=\"\",\"\",IF(OR(VLOOKUP($A774,Economática!$A$3:$AI$823,28,FALSE)=0,VLOOKUP($A774,Economática!$A$3:$AI$823,28,FALSE)=\"-\"),1/0,VLOOKUP($A774,Economática!$A$3:$AI$823,28,FALSE)))","v":""},{"$f":"IF($A774=\"\",\"\",IF(OR(VLOOKUP($A774,Economática!$A$3:$AI$823,29,FALSE)=0,VLOOKUP($A774,Economática!$A$3:$AI$823,29,FALSE)=\"-\"),1/0,VLOOKUP($A774,Economática!$A$3:$AI$823,29,FALSE)))","v":""},{"$f":"IF($A774=\"\",\"\",IF(OR(VLOOKUP($A774,Economática!$A$3:$AI$823,30,FALSE)/E774=0,VLOOKUP($A774,Economática!$A$3:$AI$823,30,FALSE)/E774=\"-\",VLOOKUP($A774,Economática!$A$3:$AI$823,30,FALSE)/E774<33.33%,VLOOKUP($A774,Economática!$A$3:$AI$823,30,FALSE)/E774>100%),1/0,VLOOKUP($A774,Economática!$A$3:$AI$823,30,FALSE)/E774))","v":""},"",{"$f":"IF($A774=\"\",\"\",IF(OR(VLOOKUP($A774,Economática!$A$3:$AI$823,25,FALSE)=0,VLOOKUP($A774,Economática!$A$3:$AI$823,25,FALSE)=\"-\"),1/0,VLOOKUP($A774,Economática!$A$3:$AI$823,25,FALSE)))","v":""},{"$f":"CONCATENATE(Economática!B752,\" \",Economática!C752)","v":" "}]
[{"$f":"IF(Economática!AG753=\"\",\"\",Economática!AG753)","v":""},{"$f":"IF($A775=\"\",\"\",VLOOKUP(VLOOKUP($A775,Economática!$A$3:$AI$823,6,FALSE),Correção!$B$16:$C$36,2,FALSE))","v":""},{"$f":"IF(Economática!B753=\"\",\"\",Economática!B753)","v":""},{"$f":"IF($A775=\"\",\"\",IF(OR(VLOOKUP($A775,Economática!$A$3:$AI$823,8,FALSE)=0,VLOOKUP($A775,Economática!$A$3:$AI$823,8,FALSE)=\"-\"),1/0,VLOOKUP($A775,Economática!$A$3:$AI$823,8,FALSE)))","v":""},{"$f":"IF(A775=\"\",\"\",IF(ISERROR(VLOOKUP(A775,Correção!$B$2:$G$13,9,FALSE)),VLOOKUP($A775,Economática!$A$3:$AI$823,9,FALSE),VLOOKUP(A775,Correção!$B$2:$G$13,9,FALSE)))","v":""},{"$f":"IF($A775=\"\",\"\",Economática!G753)","v":""},{"$f":"IF($A775=\"\",\"\",IF(OR(VLOOKUP($A775,Economática!$A$3:$AI$823,10,FALSE)=0,VLOOKUP($A775,Economática!$A$3:$AI$823,10,FALSE)=\"-\"),1/0,VLOOKUP($A775,Economática!$A$3:$AI$823,10,FALSE)))","v":""},{"$f":"IF($A775=\"\",\"\",IF(OR(VLOOKUP($A775,Economática!$A$3:$AI$823,11,FALSE)=0,VLOOKUP($A775,Economática!$A$3:$AI$823,11,FALSE)=\"-\"),1/0,VLOOKUP($A775,Economática!$A$3:$AI$823,11,FALSE)))","v":""},{"$f":"IF($A775=\"\",\"\",IF(OR(VLOOKUP($A775,Economática!$A$3:$AI$823,12,FALSE)=0,VLOOKUP($A775,Economática!$A$3:$AI$823,12,FALSE)=\"-\"),1/0,VLOOKUP($A775,Economática!$A$3:$AI$823,12,FALSE)))","v":""},{"$f":"IF($A775=\"\",\"\",IF(OR(VLOOKUP($A775,Economática!$A$3:$AI$823,13,FALSE)=0,VLOOKUP($A775,Economática!$A$3:$AI$823,13,FALSE)=\"-\"),1/0,VLOOKUP($A775,Economática!$A$3:$AI$823,13,FALSE)))","v":""},{"$f":"IF($A775=\"\",\"\",IF(OR(VLOOKUP($A775,Economática!$A$3:$AI$823,14,FALSE)=0,VLOOKUP($A775,Economática!$A$3:$AI$823,14,FALSE)=\"-\"),1/0,VLOOKUP($A775,Economática!$A$3:$AI$823,14,FALSE)))","v":""},{"$f":"IF($A775=\"\",\"\",IF(OR(VLOOKUP($A775,Economática!$A$3:$AI$823,15,FALSE)=0,VLOOKUP($A775,Economática!$A$3:$AI$823,15,FALSE)=\"-\"),1/0,VLOOKUP($A775,Economática!$A$3:$AI$823,15,FALSE)))","v":""},{"$f":"IF($A775=\"\",\"\",IF(OR(VLOOKUP($A775,Economática!$A$3:$AI$823,16,FALSE)=0,VLOOKUP($A775,Economática!$A$3:$AI$823,16,FALSE)=\"-\"),1/0,VLOOKUP($A775,Economática!$A$3:$AI$823,16,FALSE)))","v":""},{"$f":"IF($A775=\"\",\"\",IF(OR(VLOOKUP($A775,Economática!$A$3:$AI$823,17,FALSE)=0,VLOOKUP($A775,Economática!$A$3:$AI$823,17,FALSE)=\"-\"),1/0,VLOOKUP($A775,Economática!$A$3:$AI$823,17,FALSE)))","v":""},{"$f":"IF($A775=\"\",\"\",IF(OR(VLOOKUP($A775,Economática!$A$3:$AI$823,18,FALSE)=0,VLOOKUP($A775,Economática!$A$3:$AI$823,18,FALSE)=\"-\"),1/0,VLOOKUP($A775,Economática!$A$3:$AI$823,18,FALSE)))","v":""},{"$f":"IF($A775=\"\",\"\",IF(OR(VLOOKUP($A775,Economática!$A$3:$AI$823,19,FALSE)=0,VLOOKUP($A775,Economática!$A$3:$AI$823,19,FALSE)=\"-\"),1/0,VLOOKUP($A775,Economática!$A$3:$AI$823,19,FALSE)))","v":""},{"$f":"IF($A775=\"\",\"\",VLOOKUP($A775,Economática!$A$3:$AI$823,20,FALSE)/E775)","v":""},"","","",{"$f":"IF($A775=\"\",\"\",IF(OR(VLOOKUP($A775,Economática!$A$3:$AI$823,21,FALSE)/100=0,VLOOKUP($A775,Economática!$A$3:$AI$823,21,FALSE)/100=\"-\"),1/0,VLOOKUP($A775,Economática!$A$3:$AI$823,21,FALSE)/100))","v":""},{"$f":"IF($A775=\"\",\"\",IF(OR(VLOOKUP($A775,Economática!$A$3:$AI$823,22,FALSE)/100=0,VLOOKUP($A775,Economática!$A$3:$AI$823,22,FALSE)/100=\"-\"),1/0,VLOOKUP($A775,Economática!$A$3:$AI$823,22,FALSE)/100))","v":""},{"$f":"IF($A775=\"\",\"\",IF(OR(VLOOKUP($A775,Economática!$A$3:$AI$823,23,FALSE)=0,VLOOKUP($A775,Economática!$A$3:$AI$823,23,FALSE)=\"-\"),1/0,VLOOKUP($A775,Economática!$A$3:$AI$823,23,FALSE)))","v":""},{"$f":"IF($A775=\"\",\"\",IF(OR(VLOOKUP($A775,Economática!$A$3:$AI$823,24,FALSE)=0,VLOOKUP($A775,Economática!$A$3:$AI$823,24,FALSE)=\"-\"),1/0,VLOOKUP($A775,Economática!$A$3:$AI$823,24,FALSE)))","v":""},{"$f":"IF($A775=\"\",\"\",IF(OR(VLOOKUP($A775,Economática!$A$3:$AI$823,25,FALSE)=0,VLOOKUP($A775,Economática!$A$3:$AI$823,25,FALSE)=\"-\"),1/0,VLOOKUP($A775,Economática!$A$3:$AI$823,25,FALSE)))","v":""},{"$f":"IF($A775=\"\",\"\",IF(ISERROR((F775+VLOOKUP($A775,Economática!$A$3:$AI$823,26,FALSE))/Y775),(F775+VLOOKUP($A775,Economática!$A$3:$AI$823,26,FALSE))/Y775,(F775+VLOOKUP($A775,Economática!$A$3:$AI$823,26,FALSE))/Y775))","v":""},{"$f":"IF($A775=\"\",\"\",IF(OR(-VLOOKUP($A775,Economática!$A$3:$AI$823,27,FALSE)=0,-VLOOKUP($A775,Economática!$A$3:$AI$823,27,FALSE)=\"-\"),1/0,-VLOOKUP($A775,Economática!$A$3:$AI$823,27,FALSE)))","v":""},"",{"$f":"IF($A775=\"\",\"\",IF(OR(VLOOKUP($A775,Economática!$A$3:$AI$823,28,FALSE)=0,VLOOKUP($A775,Economática!$A$3:$AI$823,28,FALSE)=\"-\"),1/0,VLOOKUP($A775,Economática!$A$3:$AI$823,28,FALSE)))","v":""},{"$f":"IF($A775=\"\",\"\",IF(OR(VLOOKUP($A775,Economática!$A$3:$AI$823,29,FALSE)=0,VLOOKUP($A775,Economática!$A$3:$AI$823,29,FALSE)=\"-\"),1/0,VLOOKUP($A775,Economática!$A$3:$AI$823,29,FALSE)))","v":""},{"$f":"IF($A775=\"\",\"\",IF(OR(VLOOKUP($A775,Economática!$A$3:$AI$823,30,FALSE)/E775=0,VLOOKUP($A775,Economática!$A$3:$AI$823,30,FALSE)/E775=\"-\",VLOOKUP($A775,Economática!$A$3:$AI$823,30,FALSE)/E775<33.33%,VLOOKUP($A775,Economática!$A$3:$AI$823,30,FALSE)/E775>100%),1/0,VLOOKUP($A775,Economática!$A$3:$AI$823,30,FALSE)/E775))","v":""},"",{"$f":"IF($A775=\"\",\"\",IF(OR(VLOOKUP($A775,Economática!$A$3:$AI$823,25,FALSE)=0,VLOOKUP($A775,Economática!$A$3:$AI$823,25,FALSE)=\"-\"),1/0,VLOOKUP($A775,Economática!$A$3:$AI$823,25,FALSE)))","v":""},{"$f":"CONCATENATE(Economática!B753,\" \",Economática!C753)","v":" "}]
[{"$f":"IF(Economática!AG754=\"\",\"\",Economática!AG754)","v":""},{"$f":"IF($A776=\"\",\"\",VLOOKUP(VLOOKUP($A776,Economática!$A$3:$AI$823,6,FALSE),Correção!$B$16:$C$36,2,FALSE))","v":""},{"$f":"IF(Economática!B754=\"\",\"\",Economática!B754)","v":""},{"$f":"IF($A776=\"\",\"\",IF(OR(VLOOKUP($A776,Economática!$A$3:$AI$823,8,FALSE)=0,VLOOKUP($A776,Economática!$A$3:$AI$823,8,FALSE)=\"-\"),1/0,VLOOKUP($A776,Economática!$A$3:$AI$823,8,FALSE)))","v":""},{"$f":"IF(A776=\"\",\"\",IF(ISERROR(VLOOKUP(A776,Correção!$B$2:$G$13,9,FALSE)),VLOOKUP($A776,Economática!$A$3:$AI$823,9,FALSE),VLOOKUP(A776,Correção!$B$2:$G$13,9,FALSE)))","v":""},{"$f":"IF($A776=\"\",\"\",Economática!G754)","v":""},{"$f":"IF($A776=\"\",\"\",IF(OR(VLOOKUP($A776,Economática!$A$3:$AI$823,10,FALSE)=0,VLOOKUP($A776,Economática!$A$3:$AI$823,10,FALSE)=\"-\"),1/0,VLOOKUP($A776,Economática!$A$3:$AI$823,10,FALSE)))","v":""},{"$f":"IF($A776=\"\",\"\",IF(OR(VLOOKUP($A776,Economática!$A$3:$AI$823,11,FALSE)=0,VLOOKUP($A776,Economática!$A$3:$AI$823,11,FALSE)=\"-\"),1/0,VLOOKUP($A776,Economática!$A$3:$AI$823,11,FALSE)))","v":""},{"$f":"IF($A776=\"\",\"\",IF(OR(VLOOKUP($A776,Economática!$A$3:$AI$823,12,FALSE)=0,VLOOKUP($A776,Economática!$A$3:$AI$823,12,FALSE)=\"-\"),1/0,VLOOKUP($A776,Economática!$A$3:$AI$823,12,FALSE)))","v":""},{"$f":"IF($A776=\"\",\"\",IF(OR(VLOOKUP($A776,Economática!$A$3:$AI$823,13,FALSE)=0,VLOOKUP($A776,Economática!$A$3:$AI$823,13,FALSE)=\"-\"),1/0,VLOOKUP($A776,Economática!$A$3:$AI$823,13,FALSE)))","v":""},{"$f":"IF($A776=\"\",\"\",IF(OR(VLOOKUP($A776,Economática!$A$3:$AI$823,14,FALSE)=0,VLOOKUP($A776,Economática!$A$3:$AI$823,14,FALSE)=\"-\"),1/0,VLOOKUP($A776,Economática!$A$3:$AI$823,14,FALSE)))","v":""},{"$f":"IF($A776=\"\",\"\",IF(OR(VLOOKUP($A776,Economática!$A$3:$AI$823,15,FALSE)=0,VLOOKUP($A776,Economática!$A$3:$AI$823,15,FALSE)=\"-\"),1/0,VLOOKUP($A776,Economática!$A$3:$AI$823,15,FALSE)))","v":""},{"$f":"IF($A776=\"\",\"\",IF(OR(VLOOKUP($A776,Economática!$A$3:$AI$823,16,FALSE)=0,VLOOKUP($A776,Economática!$A$3:$AI$823,16,FALSE)=\"-\"),1/0,VLOOKUP($A776,Economática!$A$3:$AI$823,16,FALSE)))","v":""},{"$f":"IF($A776=\"\",\"\",IF(OR(VLOOKUP($A776,Economática!$A$3:$AI$823,17,FALSE)=0,VLOOKUP($A776,Economática!$A$3:$AI$823,17,FALSE)=\"-\"),1/0,VLOOKUP($A776,Economática!$A$3:$AI$823,17,FALSE)))","v":""},{"$f":"IF($A776=\"\",\"\",IF(OR(VLOOKUP($A776,Economática!$A$3:$AI$823,18,FALSE)=0,VLOOKUP($A776,Economática!$A$3:$AI$823,18,FALSE)=\"-\"),1/0,VLOOKUP($A776,Economática!$A$3:$AI$823,18,FALSE)))","v":""},{"$f":"IF($A776=\"\",\"\",IF(OR(VLOOKUP($A776,Economática!$A$3:$AI$823,19,FALSE)=0,VLOOKUP($A776,Economática!$A$3:$AI$823,19,FALSE)=\"-\"),1/0,VLOOKUP($A776,Economática!$A$3:$AI$823,19,FALSE)))","v":""},{"$f":"IF($A776=\"\",\"\",VLOOKUP($A776,Economática!$A$3:$AI$823,20,FALSE)/E776)","v":""},"","","",{"$f":"IF($A776=\"\",\"\",IF(OR(VLOOKUP($A776,Economática!$A$3:$AI$823,21,FALSE)/100=0,VLOOKUP($A776,Economática!$A$3:$AI$823,21,FALSE)/100=\"-\"),1/0,VLOOKUP($A776,Economática!$A$3:$AI$823,21,FALSE)/100))","v":""},{"$f":"IF($A776=\"\",\"\",IF(OR(VLOOKUP($A776,Economática!$A$3:$AI$823,22,FALSE)/100=0,VLOOKUP($A776,Economática!$A$3:$AI$823,22,FALSE)/100=\"-\"),1/0,VLOOKUP($A776,Economática!$A$3:$AI$823,22,FALSE)/100))","v":""},{"$f":"IF($A776=\"\",\"\",IF(OR(VLOOKUP($A776,Economática!$A$3:$AI$823,23,FALSE)=0,VLOOKUP($A776,Economática!$A$3:$AI$823,23,FALSE)=\"-\"),1/0,VLOOKUP($A776,Economática!$A$3:$AI$823,23,FALSE)))","v":""},{"$f":"IF($A776=\"\",\"\",IF(OR(VLOOKUP($A776,Economática!$A$3:$AI$823,24,FALSE)=0,VLOOKUP($A776,Economática!$A$3:$AI$823,24,FALSE)=\"-\"),1/0,VLOOKUP($A776,Economática!$A$3:$AI$823,24,FALSE)))","v":""},{"$f":"IF($A776=\"\",\"\",IF(OR(VLOOKUP($A776,Economática!$A$3:$AI$823,25,FALSE)=0,VLOOKUP($A776,Economática!$A$3:$AI$823,25,FALSE)=\"-\"),1/0,VLOOKUP($A776,Economática!$A$3:$AI$823,25,FALSE)))","v":""},{"$f":"IF($A776=\"\",\"\",IF(ISERROR((F776+VLOOKUP($A776,Economática!$A$3:$AI$823,26,FALSE))/Y776),(F776+VLOOKUP($A776,Economática!$A$3:$AI$823,26,FALSE))/Y776,(F776+VLOOKUP($A776,Economática!$A$3:$AI$823,26,FALSE))/Y776))","v":""},{"$f":"IF($A776=\"\",\"\",IF(OR(-VLOOKUP($A776,Economática!$A$3:$AI$823,27,FALSE)=0,-VLOOKUP($A776,Economática!$A$3:$AI$823,27,FALSE)=\"-\"),1/0,-VLOOKUP($A776,Economática!$A$3:$AI$823,27,FALSE)))","v":""},"",{"$f":"IF($A776=\"\",\"\",IF(OR(VLOOKUP($A776,Economática!$A$3:$AI$823,28,FALSE)=0,VLOOKUP($A776,Economática!$A$3:$AI$823,28,FALSE)=\"-\"),1/0,VLOOKUP($A776,Economática!$A$3:$AI$823,28,FALSE)))","v":""},{"$f":"IF($A776=\"\",\"\",IF(OR(VLOOKUP($A776,Economática!$A$3:$AI$823,29,FALSE)=0,VLOOKUP($A776,Economática!$A$3:$AI$823,29,FALSE)=\"-\"),1/0,VLOOKUP($A776,Economática!$A$3:$AI$823,29,FALSE)))","v":""},{"$f":"IF($A776=\"\",\"\",IF(OR(VLOOKUP($A776,Economática!$A$3:$AI$823,30,FALSE)/E776=0,VLOOKUP($A776,Economática!$A$3:$AI$823,30,FALSE)/E776=\"-\",VLOOKUP($A776,Economática!$A$3:$AI$823,30,FALSE)/E776<33.33%,VLOOKUP($A776,Economática!$A$3:$AI$823,30,FALSE)/E776>100%),1/0,VLOOKUP($A776,Economática!$A$3:$AI$823,30,FALSE)/E776))","v":""},"",{"$f":"IF($A776=\"\",\"\",IF(OR(VLOOKUP($A776,Economática!$A$3:$AI$823,25,FALSE)=0,VLOOKUP($A776,Economática!$A$3:$AI$823,25,FALSE)=\"-\"),1/0,VLOOKUP($A776,Economática!$A$3:$AI$823,25,FALSE)))","v":""},{"$f":"CONCATENATE(Economática!B754,\" \",Economática!C754)","v":" "}]
[{"$f":"IF(Economática!AG755=\"\",\"\",Economática!AG755)","v":""},{"$f":"IF($A777=\"\",\"\",VLOOKUP(VLOOKUP($A777,Economática!$A$3:$AI$823,6,FALSE),Correção!$B$16:$C$36,2,FALSE))","v":""},{"$f":"IF(Economática!B755=\"\",\"\",Economática!B755)","v":""},{"$f":"IF($A777=\"\",\"\",IF(OR(VLOOKUP($A777,Economática!$A$3:$AI$823,8,FALSE)=0,VLOOKUP($A777,Economática!$A$3:$AI$823,8,FALSE)=\"-\"),1/0,VLOOKUP($A777,Economática!$A$3:$AI$823,8,FALSE)))","v":""},{"$f":"IF(A777=\"\",\"\",IF(ISERROR(VLOOKUP(A777,Correção!$B$2:$G$13,9,FALSE)),VLOOKUP($A777,Economática!$A$3:$AI$823,9,FALSE),VLOOKUP(A777,Correção!$B$2:$G$13,9,FALSE)))","v":""},{"$f":"IF($A777=\"\",\"\",Economática!G755)","v":""},{"$f":"IF($A777=\"\",\"\",IF(OR(VLOOKUP($A777,Economática!$A$3:$AI$823,10,FALSE)=0,VLOOKUP($A777,Economática!$A$3:$AI$823,10,FALSE)=\"-\"),1/0,VLOOKUP($A777,Economática!$A$3:$AI$823,10,FALSE)))","v":""},{"$f":"IF($A777=\"\",\"\",IF(OR(VLOOKUP($A777,Economática!$A$3:$AI$823,11,FALSE)=0,VLOOKUP($A777,Economática!$A$3:$AI$823,11,FALSE)=\"-\"),1/0,VLOOKUP($A777,Economática!$A$3:$AI$823,11,FALSE)))","v":""},{"$f":"IF($A777=\"\",\"\",IF(OR(VLOOKUP($A777,Economática!$A$3:$AI$823,12,FALSE)=0,VLOOKUP($A777,Economática!$A$3:$AI$823,12,FALSE)=\"-\"),1/0,VLOOKUP($A777,Economática!$A$3:$AI$823,12,FALSE)))","v":""},{"$f":"IF($A777=\"\",\"\",IF(OR(VLOOKUP($A777,Economática!$A$3:$AI$823,13,FALSE)=0,VLOOKUP($A777,Economática!$A$3:$AI$823,13,FALSE)=\"-\"),1/0,VLOOKUP($A777,Economática!$A$3:$AI$823,13,FALSE)))","v":""},{"$f":"IF($A777=\"\",\"\",IF(OR(VLOOKUP($A777,Economática!$A$3:$AI$823,14,FALSE)=0,VLOOKUP($A777,Economática!$A$3:$AI$823,14,FALSE)=\"-\"),1/0,VLOOKUP($A777,Economática!$A$3:$AI$823,14,FALSE)))","v":""},{"$f":"IF($A777=\"\",\"\",IF(OR(VLOOKUP($A777,Economática!$A$3:$AI$823,15,FALSE)=0,VLOOKUP($A777,Economática!$A$3:$AI$823,15,FALSE)=\"-\"),1/0,VLOOKUP($A777,Economática!$A$3:$AI$823,15,FALSE)))","v":""},{"$f":"IF($A777=\"\",\"\",IF(OR(VLOOKUP($A777,Economática!$A$3:$AI$823,16,FALSE)=0,VLOOKUP($A777,Economática!$A$3:$AI$823,16,FALSE)=\"-\"),1/0,VLOOKUP($A777,Economática!$A$3:$AI$823,16,FALSE)))","v":""},{"$f":"IF($A777=\"\",\"\",IF(OR(VLOOKUP($A777,Economática!$A$3:$AI$823,17,FALSE)=0,VLOOKUP($A777,Economática!$A$3:$AI$823,17,FALSE)=\"-\"),1/0,VLOOKUP($A777,Economática!$A$3:$AI$823,17,FALSE)))","v":""},{"$f":"IF($A777=\"\",\"\",IF(OR(VLOOKUP($A777,Economática!$A$3:$AI$823,18,FALSE)=0,VLOOKUP($A777,Economática!$A$3:$AI$823,18,FALSE)=\"-\"),1/0,VLOOKUP($A777,Economática!$A$3:$AI$823,18,FALSE)))","v":""},{"$f":"IF($A777=\"\",\"\",IF(OR(VLOOKUP($A777,Economática!$A$3:$AI$823,19,FALSE)=0,VLOOKUP($A777,Economática!$A$3:$AI$823,19,FALSE)=\"-\"),1/0,VLOOKUP($A777,Economática!$A$3:$AI$823,19,FALSE)))","v":""},{"$f":"IF($A777=\"\",\"\",VLOOKUP($A777,Economática!$A$3:$AI$823,20,FALSE)/E777)","v":""},"","","",{"$f":"IF($A777=\"\",\"\",IF(OR(VLOOKUP($A777,Economática!$A$3:$AI$823,21,FALSE)/100=0,VLOOKUP($A777,Economática!$A$3:$AI$823,21,FALSE)/100=\"-\"),1/0,VLOOKUP($A777,Economática!$A$3:$AI$823,21,FALSE)/100))","v":""},{"$f":"IF($A777=\"\",\"\",IF(OR(VLOOKUP($A777,Economática!$A$3:$AI$823,22,FALSE)/100=0,VLOOKUP($A777,Economática!$A$3:$AI$823,22,FALSE)/100=\"-\"),1/0,VLOOKUP($A777,Economática!$A$3:$AI$823,22,FALSE)/100))","v":""},{"$f":"IF($A777=\"\",\"\",IF(OR(VLOOKUP($A777,Economática!$A$3:$AI$823,23,FALSE)=0,VLOOKUP($A777,Economática!$A$3:$AI$823,23,FALSE)=\"-\"),1/0,VLOOKUP($A777,Economática!$A$3:$AI$823,23,FALSE)))","v":""},{"$f":"IF($A777=\"\",\"\",IF(OR(VLOOKUP($A777,Economática!$A$3:$AI$823,24,FALSE)=0,VLOOKUP($A777,Economática!$A$3:$AI$823,24,FALSE)=\"-\"),1/0,VLOOKUP($A777,Economática!$A$3:$AI$823,24,FALSE)))","v":""},{"$f":"IF($A777=\"\",\"\",IF(OR(VLOOKUP($A777,Economática!$A$3:$AI$823,25,FALSE)=0,VLOOKUP($A777,Economática!$A$3:$AI$823,25,FALSE)=\"-\"),1/0,VLOOKUP($A777,Economática!$A$3:$AI$823,25,FALSE)))","v":""},{"$f":"IF($A777=\"\",\"\",IF(ISERROR((F777+VLOOKUP($A777,Economática!$A$3:$AI$823,26,FALSE))/Y777),(F777+VLOOKUP($A777,Economática!$A$3:$AI$823,26,FALSE))/Y777,(F777+VLOOKUP($A777,Economática!$A$3:$AI$823,26,FALSE))/Y777))","v":""},{"$f":"IF($A777=\"\",\"\",IF(OR(-VLOOKUP($A777,Economática!$A$3:$AI$823,27,FALSE)=0,-VLOOKUP($A777,Economática!$A$3:$AI$823,27,FALSE)=\"-\"),1/0,-VLOOKUP($A777,Economática!$A$3:$AI$823,27,FALSE)))","v":""},"",{"$f":"IF($A777=\"\",\"\",IF(OR(VLOOKUP($A777,Economática!$A$3:$AI$823,28,FALSE)=0,VLOOKUP($A777,Economática!$A$3:$AI$823,28,FALSE)=\"-\"),1/0,VLOOKUP($A777,Economática!$A$3:$AI$823,28,FALSE)))","v":""},{"$f":"IF($A777=\"\",\"\",IF(OR(VLOOKUP($A777,Economática!$A$3:$AI$823,29,FALSE)=0,VLOOKUP($A777,Economática!$A$3:$AI$823,29,FALSE)=\"-\"),1/0,VLOOKUP($A777,Economática!$A$3:$AI$823,29,FALSE)))","v":""},{"$f":"IF($A777=\"\",\"\",IF(OR(VLOOKUP($A777,Economática!$A$3:$AI$823,30,FALSE)/E777=0,VLOOKUP($A777,Economática!$A$3:$AI$823,30,FALSE)/E777=\"-\",VLOOKUP($A777,Economática!$A$3:$AI$823,30,FALSE)/E777<33.33%,VLOOKUP($A777,Economática!$A$3:$AI$823,30,FALSE)/E777>100%),1/0,VLOOKUP($A777,Economática!$A$3:$AI$823,30,FALSE)/E777))","v":""},"",{"$f":"IF($A777=\"\",\"\",IF(OR(VLOOKUP($A777,Economática!$A$3:$AI$823,25,FALSE)=0,VLOOKUP($A777,Economática!$A$3:$AI$823,25,FALSE)=\"-\"),1/0,VLOOKUP($A777,Economática!$A$3:$AI$823,25,FALSE)))","v":""},{"$f":"CONCATENATE(Economática!B755,\" \",Economática!C755)","v":" "}]
[{"$f":"IF(Economática!AG756=\"\",\"\",Economática!AG756)","v":""},{"$f":"IF($A778=\"\",\"\",VLOOKUP(VLOOKUP($A778,Economática!$A$3:$AI$823,6,FALSE),Correção!$B$16:$C$36,2,FALSE))","v":""},{"$f":"IF(Economática!B756=\"\",\"\",Economática!B756)","v":""},{"$f":"IF($A778=\"\",\"\",IF(OR(VLOOKUP($A778,Economática!$A$3:$AI$823,8,FALSE)=0,VLOOKUP($A778,Economática!$A$3:$AI$823,8,FALSE)=\"-\"),1/0,VLOOKUP($A778,Economática!$A$3:$AI$823,8,FALSE)))","v":""},{"$f":"IF(A778=\"\",\"\",IF(ISERROR(VLOOKUP(A778,Correção!$B$2:$G$13,9,FALSE)),VLOOKUP($A778,Economática!$A$3:$AI$823,9,FALSE),VLOOKUP(A778,Correção!$B$2:$G$13,9,FALSE)))","v":""},{"$f":"IF($A778=\"\",\"\",Economática!G756)","v":""},{"$f":"IF($A778=\"\",\"\",IF(OR(VLOOKUP($A778,Economática!$A$3:$AI$823,10,FALSE)=0,VLOOKUP($A778,Economática!$A$3:$AI$823,10,FALSE)=\"-\"),1/0,VLOOKUP($A778,Economática!$A$3:$AI$823,10,FALSE)))","v":""},{"$f":"IF($A778=\"\",\"\",IF(OR(VLOOKUP($A778,Economática!$A$3:$AI$823,11,FALSE)=0,VLOOKUP($A778,Economática!$A$3:$AI$823,11,FALSE)=\"-\"),1/0,VLOOKUP($A778,Economática!$A$3:$AI$823,11,FALSE)))","v":""},{"$f":"IF($A778=\"\",\"\",IF(OR(VLOOKUP($A778,Economática!$A$3:$AI$823,12,FALSE)=0,VLOOKUP($A778,Economática!$A$3:$AI$823,12,FALSE)=\"-\"),1/0,VLOOKUP($A778,Economática!$A$3:$AI$823,12,FALSE)))","v":""},{"$f":"IF($A778=\"\",\"\",IF(OR(VLOOKUP($A778,Economática!$A$3:$AI$823,13,FALSE)=0,VLOOKUP($A778,Economática!$A$3:$AI$823,13,FALSE)=\"-\"),1/0,VLOOKUP($A778,Economática!$A$3:$AI$823,13,FALSE)))","v":""},{"$f":"IF($A778=\"\",\"\",IF(OR(VLOOKUP($A778,Economática!$A$3:$AI$823,14,FALSE)=0,VLOOKUP($A778,Economática!$A$3:$AI$823,14,FALSE)=\"-\"),1/0,VLOOKUP($A778,Economática!$A$3:$AI$823,14,FALSE)))","v":""},{"$f":"IF($A778=\"\",\"\",IF(OR(VLOOKUP($A778,Economática!$A$3:$AI$823,15,FALSE)=0,VLOOKUP($A778,Economática!$A$3:$AI$823,15,FALSE)=\"-\"),1/0,VLOOKUP($A778,Economática!$A$3:$AI$823,15,FALSE)))","v":""},{"$f":"IF($A778=\"\",\"\",IF(OR(VLOOKUP($A778,Economática!$A$3:$AI$823,16,FALSE)=0,VLOOKUP($A778,Economática!$A$3:$AI$823,16,FALSE)=\"-\"),1/0,VLOOKUP($A778,Economática!$A$3:$AI$823,16,FALSE)))","v":""},{"$f":"IF($A778=\"\",\"\",IF(OR(VLOOKUP($A778,Economática!$A$3:$AI$823,17,FALSE)=0,VLOOKUP($A778,Economática!$A$3:$AI$823,17,FALSE)=\"-\"),1/0,VLOOKUP($A778,Economática!$A$3:$AI$823,17,FALSE)))","v":""},{"$f":"IF($A778=\"\",\"\",IF(OR(VLOOKUP($A778,Economática!$A$3:$AI$823,18,FALSE)=0,VLOOKUP($A778,Economática!$A$3:$AI$823,18,FALSE)=\"-\"),1/0,VLOOKUP($A778,Economática!$A$3:$AI$823,18,FALSE)))","v":""},{"$f":"IF($A778=\"\",\"\",IF(OR(VLOOKUP($A778,Economática!$A$3:$AI$823,19,FALSE)=0,VLOOKUP($A778,Economática!$A$3:$AI$823,19,FALSE)=\"-\"),1/0,VLOOKUP($A778,Economática!$A$3:$AI$823,19,FALSE)))","v":""},{"$f":"IF($A778=\"\",\"\",VLOOKUP($A778,Economática!$A$3:$AI$823,20,FALSE)/E778)","v":""},"","","",{"$f":"IF($A778=\"\",\"\",IF(OR(VLOOKUP($A778,Economática!$A$3:$AI$823,21,FALSE)/100=0,VLOOKUP($A778,Economática!$A$3:$AI$823,21,FALSE)/100=\"-\"),1/0,VLOOKUP($A778,Economática!$A$3:$AI$823,21,FALSE)/100))","v":""},{"$f":"IF($A778=\"\",\"\",IF(OR(VLOOKUP($A778,Economática!$A$3:$AI$823,22,FALSE)/100=0,VLOOKUP($A778,Economática!$A$3:$AI$823,22,FALSE)/100=\"-\"),1/0,VLOOKUP($A778,Economática!$A$3:$AI$823,22,FALSE)/100))","v":""},{"$f":"IF($A778=\"\",\"\",IF(OR(VLOOKUP($A778,Economática!$A$3:$AI$823,23,FALSE)=0,VLOOKUP($A778,Economática!$A$3:$AI$823,23,FALSE)=\"-\"),1/0,VLOOKUP($A778,Economática!$A$3:$AI$823,23,FALSE)))","v":""},{"$f":"IF($A778=\"\",\"\",IF(OR(VLOOKUP($A778,Economática!$A$3:$AI$823,24,FALSE)=0,VLOOKUP($A778,Economática!$A$3:$AI$823,24,FALSE)=\"-\"),1/0,VLOOKUP($A778,Economática!$A$3:$AI$823,24,FALSE)))","v":""},{"$f":"IF($A778=\"\",\"\",IF(OR(VLOOKUP($A778,Economática!$A$3:$AI$823,25,FALSE)=0,VLOOKUP($A778,Economática!$A$3:$AI$823,25,FALSE)=\"-\"),1/0,VLOOKUP($A778,Economática!$A$3:$AI$823,25,FALSE)))","v":""},{"$f":"IF($A778=\"\",\"\",IF(ISERROR((F778+VLOOKUP($A778,Economática!$A$3:$AI$823,26,FALSE))/Y778),(F778+VLOOKUP($A778,Economática!$A$3:$AI$823,26,FALSE))/Y778,(F778+VLOOKUP($A778,Economática!$A$3:$AI$823,26,FALSE))/Y778))","v":""},{"$f":"IF($A778=\"\",\"\",IF(OR(-VLOOKUP($A778,Economática!$A$3:$AI$823,27,FALSE)=0,-VLOOKUP($A778,Economática!$A$3:$AI$823,27,FALSE)=\"-\"),1/0,-VLOOKUP($A778,Economática!$A$3:$AI$823,27,FALSE)))","v":""},"",{"$f":"IF($A778=\"\",\"\",IF(OR(VLOOKUP($A778,Economática!$A$3:$AI$823,28,FALSE)=0,VLOOKUP($A778,Economática!$A$3:$AI$823,28,FALSE)=\"-\"),1/0,VLOOKUP($A778,Economática!$A$3:$AI$823,28,FALSE)))","v":""},{"$f":"IF($A778=\"\",\"\",IF(OR(VLOOKUP($A778,Economática!$A$3:$AI$823,29,FALSE)=0,VLOOKUP($A778,Economática!$A$3:$AI$823,29,FALSE)=\"-\"),1/0,VLOOKUP($A778,Economática!$A$3:$AI$823,29,FALSE)))","v":""},{"$f":"IF($A778=\"\",\"\",IF(OR(VLOOKUP($A778,Economática!$A$3:$AI$823,30,FALSE)/E778=0,VLOOKUP($A778,Economática!$A$3:$AI$823,30,FALSE)/E778=\"-\",VLOOKUP($A778,Economática!$A$3:$AI$823,30,FALSE)/E778<33.33%,VLOOKUP($A778,Economática!$A$3:$AI$823,30,FALSE)/E778>100%),1/0,VLOOKUP($A778,Economática!$A$3:$AI$823,30,FALSE)/E778))","v":""},"",{"$f":"IF($A778=\"\",\"\",IF(OR(VLOOKUP($A778,Economática!$A$3:$AI$823,25,FALSE)=0,VLOOKUP($A778,Economática!$A$3:$AI$823,25,FALSE)=\"-\"),1/0,VLOOKUP($A778,Economática!$A$3:$AI$823,25,FALSE)))","v":""},{"$f":"CONCATENATE(Economática!B756,\" \",Economática!C756)","v":" "}]
[{"$f":"IF(Economática!AG757=\"\",\"\",Economática!AG757)","v":""},{"$f":"IF($A779=\"\",\"\",VLOOKUP(VLOOKUP($A779,Economática!$A$3:$AI$823,6,FALSE),Correção!$B$16:$C$36,2,FALSE))","v":""},{"$f":"IF(Economática!B757=\"\",\"\",Economática!B757)","v":""},{"$f":"IF($A779=\"\",\"\",IF(OR(VLOOKUP($A779,Economática!$A$3:$AI$823,8,FALSE)=0,VLOOKUP($A779,Economática!$A$3:$AI$823,8,FALSE)=\"-\"),1/0,VLOOKUP($A779,Economática!$A$3:$AI$823,8,FALSE)))","v":""},{"$f":"IF(A779=\"\",\"\",IF(ISERROR(VLOOKUP(A779,Correção!$B$2:$G$13,9,FALSE)),VLOOKUP($A779,Economática!$A$3:$AI$823,9,FALSE),VLOOKUP(A779,Correção!$B$2:$G$13,9,FALSE)))","v":""},{"$f":"IF($A779=\"\",\"\",Economática!G757)","v":""},{"$f":"IF($A779=\"\",\"\",IF(OR(VLOOKUP($A779,Economática!$A$3:$AI$823,10,FALSE)=0,VLOOKUP($A779,Economática!$A$3:$AI$823,10,FALSE)=\"-\"),1/0,VLOOKUP($A779,Economática!$A$3:$AI$823,10,FALSE)))","v":""},{"$f":"IF($A779=\"\",\"\",IF(OR(VLOOKUP($A779,Economática!$A$3:$AI$823,11,FALSE)=0,VLOOKUP($A779,Economática!$A$3:$AI$823,11,FALSE)=\"-\"),1/0,VLOOKUP($A779,Economática!$A$3:$AI$823,11,FALSE)))","v":""},{"$f":"IF($A779=\"\",\"\",IF(OR(VLOOKUP($A779,Economática!$A$3:$AI$823,12,FALSE)=0,VLOOKUP($A779,Economática!$A$3:$AI$823,12,FALSE)=\"-\"),1/0,VLOOKUP($A779,Economática!$A$3:$AI$823,12,FALSE)))","v":""},{"$f":"IF($A779=\"\",\"\",IF(OR(VLOOKUP($A779,Economática!$A$3:$AI$823,13,FALSE)=0,VLOOKUP($A779,Economática!$A$3:$AI$823,13,FALSE)=\"-\"),1/0,VLOOKUP($A779,Economática!$A$3:$AI$823,13,FALSE)))","v":""},{"$f":"IF($A779=\"\",\"\",IF(OR(VLOOKUP($A779,Economática!$A$3:$AI$823,14,FALSE)=0,VLOOKUP($A779,Economática!$A$3:$AI$823,14,FALSE)=\"-\"),1/0,VLOOKUP($A779,Economática!$A$3:$AI$823,14,FALSE)))","v":""},{"$f":"IF($A779=\"\",\"\",IF(OR(VLOOKUP($A779,Economática!$A$3:$AI$823,15,FALSE)=0,VLOOKUP($A779,Economática!$A$3:$AI$823,15,FALSE)=\"-\"),1/0,VLOOKUP($A779,Economática!$A$3:$AI$823,15,FALSE)))","v":""},{"$f":"IF($A779=\"\",\"\",IF(OR(VLOOKUP($A779,Economática!$A$3:$AI$823,16,FALSE)=0,VLOOKUP($A779,Economática!$A$3:$AI$823,16,FALSE)=\"-\"),1/0,VLOOKUP($A779,Economática!$A$3:$AI$823,16,FALSE)))","v":""},{"$f":"IF($A779=\"\",\"\",IF(OR(VLOOKUP($A779,Economática!$A$3:$AI$823,17,FALSE)=0,VLOOKUP($A779,Economática!$A$3:$AI$823,17,FALSE)=\"-\"),1/0,VLOOKUP($A779,Economática!$A$3:$AI$823,17,FALSE)))","v":""},{"$f":"IF($A779=\"\",\"\",IF(OR(VLOOKUP($A779,Economática!$A$3:$AI$823,18,FALSE)=0,VLOOKUP($A779,Economática!$A$3:$AI$823,18,FALSE)=\"-\"),1/0,VLOOKUP($A779,Economática!$A$3:$AI$823,18,FALSE)))","v":""},{"$f":"IF($A779=\"\",\"\",IF(OR(VLOOKUP($A779,Economática!$A$3:$AI$823,19,FALSE)=0,VLOOKUP($A779,Economática!$A$3:$AI$823,19,FALSE)=\"-\"),1/0,VLOOKUP($A779,Economática!$A$3:$AI$823,19,FALSE)))","v":""},{"$f":"IF($A779=\"\",\"\",VLOOKUP($A779,Economática!$A$3:$AI$823,20,FALSE)/E779)","v":""},"","","",{"$f":"IF($A779=\"\",\"\",IF(OR(VLOOKUP($A779,Economática!$A$3:$AI$823,21,FALSE)/100=0,VLOOKUP($A779,Economática!$A$3:$AI$823,21,FALSE)/100=\"-\"),1/0,VLOOKUP($A779,Economática!$A$3:$AI$823,21,FALSE)/100))","v":""},{"$f":"IF($A779=\"\",\"\",IF(OR(VLOOKUP($A779,Economática!$A$3:$AI$823,22,FALSE)/100=0,VLOOKUP($A779,Economática!$A$3:$AI$823,22,FALSE)/100=\"-\"),1/0,VLOOKUP($A779,Economática!$A$3:$AI$823,22,FALSE)/100))","v":""},{"$f":"IF($A779=\"\",\"\",IF(OR(VLOOKUP($A779,Economática!$A$3:$AI$823,23,FALSE)=0,VLOOKUP($A779,Economática!$A$3:$AI$823,23,FALSE)=\"-\"),1/0,VLOOKUP($A779,Economática!$A$3:$AI$823,23,FALSE)))","v":""},{"$f":"IF($A779=\"\",\"\",IF(OR(VLOOKUP($A779,Economática!$A$3:$AI$823,24,FALSE)=0,VLOOKUP($A779,Economática!$A$3:$AI$823,24,FALSE)=\"-\"),1/0,VLOOKUP($A779,Economática!$A$3:$AI$823,24,FALSE)))","v":""},{"$f":"IF($A779=\"\",\"\",IF(OR(VLOOKUP($A779,Economática!$A$3:$AI$823,25,FALSE)=0,VLOOKUP($A779,Economática!$A$3:$AI$823,25,FALSE)=\"-\"),1/0,VLOOKUP($A779,Economática!$A$3:$AI$823,25,FALSE)))","v":""},{"$f":"IF($A779=\"\",\"\",IF(ISERROR((F779+VLOOKUP($A779,Economática!$A$3:$AI$823,26,FALSE))/Y779),(F779+VLOOKUP($A779,Economática!$A$3:$AI$823,26,FALSE))/Y779,(F779+VLOOKUP($A779,Economática!$A$3:$AI$823,26,FALSE))/Y779))","v":""},{"$f":"IF($A779=\"\",\"\",IF(OR(-VLOOKUP($A779,Economática!$A$3:$AI$823,27,FALSE)=0,-VLOOKUP($A779,Economática!$A$3:$AI$823,27,FALSE)=\"-\"),1/0,-VLOOKUP($A779,Economática!$A$3:$AI$823,27,FALSE)))","v":""},"",{"$f":"IF($A779=\"\",\"\",IF(OR(VLOOKUP($A779,Economática!$A$3:$AI$823,28,FALSE)=0,VLOOKUP($A779,Economática!$A$3:$AI$823,28,FALSE)=\"-\"),1/0,VLOOKUP($A779,Economática!$A$3:$AI$823,28,FALSE)))","v":""},{"$f":"IF($A779=\"\",\"\",IF(OR(VLOOKUP($A779,Economática!$A$3:$AI$823,29,FALSE)=0,VLOOKUP($A779,Economática!$A$3:$AI$823,29,FALSE)=\"-\"),1/0,VLOOKUP($A779,Economática!$A$3:$AI$823,29,FALSE)))","v":""},{"$f":"IF($A779=\"\",\"\",IF(OR(VLOOKUP($A779,Economática!$A$3:$AI$823,30,FALSE)/E779=0,VLOOKUP($A779,Economática!$A$3:$AI$823,30,FALSE)/E779=\"-\",VLOOKUP($A779,Economática!$A$3:$AI$823,30,FALSE)/E779<33.33%,VLOOKUP($A779,Economática!$A$3:$AI$823,30,FALSE)/E779>100%),1/0,VLOOKUP($A779,Economática!$A$3:$AI$823,30,FALSE)/E779))","v":""},"",{"$f":"IF($A779=\"\",\"\",IF(OR(VLOOKUP($A779,Economática!$A$3:$AI$823,25,FALSE)=0,VLOOKUP($A779,Economática!$A$3:$AI$823,25,FALSE)=\"-\"),1/0,VLOOKUP($A779,Economática!$A$3:$AI$823,25,FALSE)))","v":""},{"$f":"CONCATENATE(Economática!B757,\" \",Economática!C757)","v":" "}]
[{"$f":"IF(Economática!AG758=\"\",\"\",Economática!AG758)","v":""},{"$f":"IF($A780=\"\",\"\",VLOOKUP(VLOOKUP($A780,Economática!$A$3:$AI$823,6,FALSE),Correção!$B$16:$C$36,2,FALSE))","v":""},{"$f":"IF(Economática!B758=\"\",\"\",Economática!B758)","v":""},{"$f":"IF($A780=\"\",\"\",IF(OR(VLOOKUP($A780,Economática!$A$3:$AI$823,8,FALSE)=0,VLOOKUP($A780,Economática!$A$3:$AI$823,8,FALSE)=\"-\"),1/0,VLOOKUP($A780,Economática!$A$3:$AI$823,8,FALSE)))","v":""},{"$f":"IF(A780=\"\",\"\",IF(ISERROR(VLOOKUP(A780,Correção!$B$2:$G$13,9,FALSE)),VLOOKUP($A780,Economática!$A$3:$AI$823,9,FALSE),VLOOKUP(A780,Correção!$B$2:$G$13,9,FALSE)))","v":""},{"$f":"IF($A780=\"\",\"\",Economática!G758)","v":""},{"$f":"IF($A780=\"\",\"\",IF(OR(VLOOKUP($A780,Economática!$A$3:$AI$823,10,FALSE)=0,VLOOKUP($A780,Economática!$A$3:$AI$823,10,FALSE)=\"-\"),1/0,VLOOKUP($A780,Economática!$A$3:$AI$823,10,FALSE)))","v":""},{"$f":"IF($A780=\"\",\"\",IF(OR(VLOOKUP($A780,Economática!$A$3:$AI$823,11,FALSE)=0,VLOOKUP($A780,Economática!$A$3:$AI$823,11,FALSE)=\"-\"),1/0,VLOOKUP($A780,Economática!$A$3:$AI$823,11,FALSE)))","v":""},{"$f":"IF($A780=\"\",\"\",IF(OR(VLOOKUP($A780,Economática!$A$3:$AI$823,12,FALSE)=0,VLOOKUP($A780,Economática!$A$3:$AI$823,12,FALSE)=\"-\"),1/0,VLOOKUP($A780,Economática!$A$3:$AI$823,12,FALSE)))","v":""},{"$f":"IF($A780=\"\",\"\",IF(OR(VLOOKUP($A780,Economática!$A$3:$AI$823,13,FALSE)=0,VLOOKUP($A780,Economática!$A$3:$AI$823,13,FALSE)=\"-\"),1/0,VLOOKUP($A780,Economática!$A$3:$AI$823,13,FALSE)))","v":""},{"$f":"IF($A780=\"\",\"\",IF(OR(VLOOKUP($A780,Economática!$A$3:$AI$823,14,FALSE)=0,VLOOKUP($A780,Economática!$A$3:$AI$823,14,FALSE)=\"-\"),1/0,VLOOKUP($A780,Economática!$A$3:$AI$823,14,FALSE)))","v":""},{"$f":"IF($A780=\"\",\"\",IF(OR(VLOOKUP($A780,Economática!$A$3:$AI$823,15,FALSE)=0,VLOOKUP($A780,Economática!$A$3:$AI$823,15,FALSE)=\"-\"),1/0,VLOOKUP($A780,Economática!$A$3:$AI$823,15,FALSE)))","v":""},{"$f":"IF($A780=\"\",\"\",IF(OR(VLOOKUP($A780,Economática!$A$3:$AI$823,16,FALSE)=0,VLOOKUP($A780,Economática!$A$3:$AI$823,16,FALSE)=\"-\"),1/0,VLOOKUP($A780,Economática!$A$3:$AI$823,16,FALSE)))","v":""},{"$f":"IF($A780=\"\",\"\",IF(OR(VLOOKUP($A780,Economática!$A$3:$AI$823,17,FALSE)=0,VLOOKUP($A780,Economática!$A$3:$AI$823,17,FALSE)=\"-\"),1/0,VLOOKUP($A780,Economática!$A$3:$AI$823,17,FALSE)))","v":""},{"$f":"IF($A780=\"\",\"\",IF(OR(VLOOKUP($A780,Economática!$A$3:$AI$823,18,FALSE)=0,VLOOKUP($A780,Economática!$A$3:$AI$823,18,FALSE)=\"-\"),1/0,VLOOKUP($A780,Economática!$A$3:$AI$823,18,FALSE)))","v":""},{"$f":"IF($A780=\"\",\"\",IF(OR(VLOOKUP($A780,Economática!$A$3:$AI$823,19,FALSE)=0,VLOOKUP($A780,Economática!$A$3:$AI$823,19,FALSE)=\"-\"),1/0,VLOOKUP($A780,Economática!$A$3:$AI$823,19,FALSE)))","v":""},{"$f":"IF($A780=\"\",\"\",VLOOKUP($A780,Economática!$A$3:$AI$823,20,FALSE)/E780)","v":""},"","","",{"$f":"IF($A780=\"\",\"\",IF(OR(VLOOKUP($A780,Economática!$A$3:$AI$823,21,FALSE)/100=0,VLOOKUP($A780,Economática!$A$3:$AI$823,21,FALSE)/100=\"-\"),1/0,VLOOKUP($A780,Economática!$A$3:$AI$823,21,FALSE)/100))","v":""},{"$f":"IF($A780=\"\",\"\",IF(OR(VLOOKUP($A780,Economática!$A$3:$AI$823,22,FALSE)/100=0,VLOOKUP($A780,Economática!$A$3:$AI$823,22,FALSE)/100=\"-\"),1/0,VLOOKUP($A780,Economática!$A$3:$AI$823,22,FALSE)/100))","v":""},{"$f":"IF($A780=\"\",\"\",IF(OR(VLOOKUP($A780,Economática!$A$3:$AI$823,23,FALSE)=0,VLOOKUP($A780,Economática!$A$3:$AI$823,23,FALSE)=\"-\"),1/0,VLOOKUP($A780,Economática!$A$3:$AI$823,23,FALSE)))","v":""},{"$f":"IF($A780=\"\",\"\",IF(OR(VLOOKUP($A780,Economática!$A$3:$AI$823,24,FALSE)=0,VLOOKUP($A780,Economática!$A$3:$AI$823,24,FALSE)=\"-\"),1/0,VLOOKUP($A780,Economática!$A$3:$AI$823,24,FALSE)))","v":""},{"$f":"IF($A780=\"\",\"\",IF(OR(VLOOKUP($A780,Economática!$A$3:$AI$823,25,FALSE)=0,VLOOKUP($A780,Economática!$A$3:$AI$823,25,FALSE)=\"-\"),1/0,VLOOKUP($A780,Economática!$A$3:$AI$823,25,FALSE)))","v":""},{"$f":"IF($A780=\"\",\"\",IF(ISERROR((F780+VLOOKUP($A780,Economática!$A$3:$AI$823,26,FALSE))/Y780),(F780+VLOOKUP($A780,Economática!$A$3:$AI$823,26,FALSE))/Y780,(F780+VLOOKUP($A780,Economática!$A$3:$AI$823,26,FALSE))/Y780))","v":""},{"$f":"IF($A780=\"\",\"\",IF(OR(-VLOOKUP($A780,Economática!$A$3:$AI$823,27,FALSE)=0,-VLOOKUP($A780,Economática!$A$3:$AI$823,27,FALSE)=\"-\"),1/0,-VLOOKUP($A780,Economática!$A$3:$AI$823,27,FALSE)))","v":""},"",{"$f":"IF($A780=\"\",\"\",IF(OR(VLOOKUP($A780,Economática!$A$3:$AI$823,28,FALSE)=0,VLOOKUP($A780,Economática!$A$3:$AI$823,28,FALSE)=\"-\"),1/0,VLOOKUP($A780,Economática!$A$3:$AI$823,28,FALSE)))","v":""},{"$f":"IF($A780=\"\",\"\",IF(OR(VLOOKUP($A780,Economática!$A$3:$AI$823,29,FALSE)=0,VLOOKUP($A780,Economática!$A$3:$AI$823,29,FALSE)=\"-\"),1/0,VLOOKUP($A780,Economática!$A$3:$AI$823,29,FALSE)))","v":""},{"$f":"IF($A780=\"\",\"\",IF(OR(VLOOKUP($A780,Economática!$A$3:$AI$823,30,FALSE)/E780=0,VLOOKUP($A780,Economática!$A$3:$AI$823,30,FALSE)/E780=\"-\",VLOOKUP($A780,Economática!$A$3:$AI$823,30,FALSE)/E780<33.33%,VLOOKUP($A780,Economática!$A$3:$AI$823,30,FALSE)/E780>100%),1/0,VLOOKUP($A780,Economática!$A$3:$AI$823,30,FALSE)/E780))","v":""},"",{"$f":"IF($A780=\"\",\"\",IF(OR(VLOOKUP($A780,Economática!$A$3:$AI$823,25,FALSE)=0,VLOOKUP($A780,Economática!$A$3:$AI$823,25,FALSE)=\"-\"),1/0,VLOOKUP($A780,Economática!$A$3:$AI$823,25,FALSE)))","v":""},{"$f":"CONCATENATE(Economática!B758,\" \",Economática!C758)","v":" "}]
[{"$f":"IF(Economática!AG759=\"\",\"\",Economática!AG759)","v":""},{"$f":"IF($A781=\"\",\"\",VLOOKUP(VLOOKUP($A781,Economática!$A$3:$AI$823,6,FALSE),Correção!$B$16:$C$36,2,FALSE))","v":""},{"$f":"IF(Economática!B759=\"\",\"\",Economática!B759)","v":""},{"$f":"IF($A781=\"\",\"\",IF(OR(VLOOKUP($A781,Economática!$A$3:$AI$823,8,FALSE)=0,VLOOKUP($A781,Economática!$A$3:$AI$823,8,FALSE)=\"-\"),1/0,VLOOKUP($A781,Economática!$A$3:$AI$823,8,FALSE)))","v":""},{"$f":"IF(A781=\"\",\"\",IF(ISERROR(VLOOKUP(A781,Correção!$B$2:$G$13,9,FALSE)),VLOOKUP($A781,Economática!$A$3:$AI$823,9,FALSE),VLOOKUP(A781,Correção!$B$2:$G$13,9,FALSE)))","v":""},{"$f":"IF($A781=\"\",\"\",Economática!G759)","v":""},{"$f":"IF($A781=\"\",\"\",IF(OR(VLOOKUP($A781,Economática!$A$3:$AI$823,10,FALSE)=0,VLOOKUP($A781,Economática!$A$3:$AI$823,10,FALSE)=\"-\"),1/0,VLOOKUP($A781,Economática!$A$3:$AI$823,10,FALSE)))","v":""},{"$f":"IF($A781=\"\",\"\",IF(OR(VLOOKUP($A781,Economática!$A$3:$AI$823,11,FALSE)=0,VLOOKUP($A781,Economática!$A$3:$AI$823,11,FALSE)=\"-\"),1/0,VLOOKUP($A781,Economática!$A$3:$AI$823,11,FALSE)))","v":""},{"$f":"IF($A781=\"\",\"\",IF(OR(VLOOKUP($A781,Economática!$A$3:$AI$823,12,FALSE)=0,VLOOKUP($A781,Economática!$A$3:$AI$823,12,FALSE)=\"-\"),1/0,VLOOKUP($A781,Economática!$A$3:$AI$823,12,FALSE)))","v":""},{"$f":"IF($A781=\"\",\"\",IF(OR(VLOOKUP($A781,Economática!$A$3:$AI$823,13,FALSE)=0,VLOOKUP($A781,Economática!$A$3:$AI$823,13,FALSE)=\"-\"),1/0,VLOOKUP($A781,Economática!$A$3:$AI$823,13,FALSE)))","v":""},{"$f":"IF($A781=\"\",\"\",IF(OR(VLOOKUP($A781,Economática!$A$3:$AI$823,14,FALSE)=0,VLOOKUP($A781,Economática!$A$3:$AI$823,14,FALSE)=\"-\"),1/0,VLOOKUP($A781,Economática!$A$3:$AI$823,14,FALSE)))","v":""},{"$f":"IF($A781=\"\",\"\",IF(OR(VLOOKUP($A781,Economática!$A$3:$AI$823,15,FALSE)=0,VLOOKUP($A781,Economática!$A$3:$AI$823,15,FALSE)=\"-\"),1/0,VLOOKUP($A781,Economática!$A$3:$AI$823,15,FALSE)))","v":""},{"$f":"IF($A781=\"\",\"\",IF(OR(VLOOKUP($A781,Economática!$A$3:$AI$823,16,FALSE)=0,VLOOKUP($A781,Economática!$A$3:$AI$823,16,FALSE)=\"-\"),1/0,VLOOKUP($A781,Economática!$A$3:$AI$823,16,FALSE)))","v":""},{"$f":"IF($A781=\"\",\"\",IF(OR(VLOOKUP($A781,Economática!$A$3:$AI$823,17,FALSE)=0,VLOOKUP($A781,Economática!$A$3:$AI$823,17,FALSE)=\"-\"),1/0,VLOOKUP($A781,Economática!$A$3:$AI$823,17,FALSE)))","v":""},{"$f":"IF($A781=\"\",\"\",IF(OR(VLOOKUP($A781,Economática!$A$3:$AI$823,18,FALSE)=0,VLOOKUP($A781,Economática!$A$3:$AI$823,18,FALSE)=\"-\"),1/0,VLOOKUP($A781,Economática!$A$3:$AI$823,18,FALSE)))","v":""},{"$f":"IF($A781=\"\",\"\",IF(OR(VLOOKUP($A781,Economática!$A$3:$AI$823,19,FALSE)=0,VLOOKUP($A781,Economática!$A$3:$AI$823,19,FALSE)=\"-\"),1/0,VLOOKUP($A781,Economática!$A$3:$AI$823,19,FALSE)))","v":""},{"$f":"IF($A781=\"\",\"\",VLOOKUP($A781,Economática!$A$3:$AI$823,20,FALSE)/E781)","v":""},"","","",{"$f":"IF($A781=\"\",\"\",IF(OR(VLOOKUP($A781,Economática!$A$3:$AI$823,21,FALSE)/100=0,VLOOKUP($A781,Economática!$A$3:$AI$823,21,FALSE)/100=\"-\"),1/0,VLOOKUP($A781,Economática!$A$3:$AI$823,21,FALSE)/100))","v":""},{"$f":"IF($A781=\"\",\"\",IF(OR(VLOOKUP($A781,Economática!$A$3:$AI$823,22,FALSE)/100=0,VLOOKUP($A781,Economática!$A$3:$AI$823,22,FALSE)/100=\"-\"),1/0,VLOOKUP($A781,Economática!$A$3:$AI$823,22,FALSE)/100))","v":""},{"$f":"IF($A781=\"\",\"\",IF(OR(VLOOKUP($A781,Economática!$A$3:$AI$823,23,FALSE)=0,VLOOKUP($A781,Economática!$A$3:$AI$823,23,FALSE)=\"-\"),1/0,VLOOKUP($A781,Economática!$A$3:$AI$823,23,FALSE)))","v":""},{"$f":"IF($A781=\"\",\"\",IF(OR(VLOOKUP($A781,Economática!$A$3:$AI$823,24,FALSE)=0,VLOOKUP($A781,Economática!$A$3:$AI$823,24,FALSE)=\"-\"),1/0,VLOOKUP($A781,Economática!$A$3:$AI$823,24,FALSE)))","v":""},{"$f":"IF($A781=\"\",\"\",IF(OR(VLOOKUP($A781,Economática!$A$3:$AI$823,25,FALSE)=0,VLOOKUP($A781,Economática!$A$3:$AI$823,25,FALSE)=\"-\"),1/0,VLOOKUP($A781,Economática!$A$3:$AI$823,25,FALSE)))","v":""},{"$f":"IF($A781=\"\",\"\",IF(ISERROR((F781+VLOOKUP($A781,Economática!$A$3:$AI$823,26,FALSE))/Y781),(F781+VLOOKUP($A781,Economática!$A$3:$AI$823,26,FALSE))/Y781,(F781+VLOOKUP($A781,Economática!$A$3:$AI$823,26,FALSE))/Y781))","v":""},{"$f":"IF($A781=\"\",\"\",IF(OR(-VLOOKUP($A781,Economática!$A$3:$AI$823,27,FALSE)=0,-VLOOKUP($A781,Economática!$A$3:$AI$823,27,FALSE)=\"-\"),1/0,-VLOOKUP($A781,Economática!$A$3:$AI$823,27,FALSE)))","v":""},"",{"$f":"IF($A781=\"\",\"\",IF(OR(VLOOKUP($A781,Economática!$A$3:$AI$823,28,FALSE)=0,VLOOKUP($A781,Economática!$A$3:$AI$823,28,FALSE)=\"-\"),1/0,VLOOKUP($A781,Economática!$A$3:$AI$823,28,FALSE)))","v":""},{"$f":"IF($A781=\"\",\"\",IF(OR(VLOOKUP($A781,Economática!$A$3:$AI$823,29,FALSE)=0,VLOOKUP($A781,Economática!$A$3:$AI$823,29,FALSE)=\"-\"),1/0,VLOOKUP($A781,Economática!$A$3:$AI$823,29,FALSE)))","v":""},{"$f":"IF($A781=\"\",\"\",IF(OR(VLOOKUP($A781,Economática!$A$3:$AI$823,30,FALSE)/E781=0,VLOOKUP($A781,Economática!$A$3:$AI$823,30,FALSE)/E781=\"-\",VLOOKUP($A781,Economática!$A$3:$AI$823,30,FALSE)/E781<33.33%,VLOOKUP($A781,Economática!$A$3:$AI$823,30,FALSE)/E781>100%),1/0,VLOOKUP($A781,Economática!$A$3:$AI$823,30,FALSE)/E781))","v":""},"",{"$f":"IF($A781=\"\",\"\",IF(OR(VLOOKUP($A781,Economática!$A$3:$AI$823,25,FALSE)=0,VLOOKUP($A781,Economática!$A$3:$AI$823,25,FALSE)=\"-\"),1/0,VLOOKUP($A781,Economática!$A$3:$AI$823,25,FALSE)))","v":""},{"$f":"CONCATENATE(Economática!B759,\" \",Economática!C759)","v":" "}]
[{"$f":"IF(Economática!AG760=\"\",\"\",Economática!AG760)","v":""},{"$f":"IF($A782=\"\",\"\",VLOOKUP(VLOOKUP($A782,Economática!$A$3:$AI$823,6,FALSE),Correção!$B$16:$C$36,2,FALSE))","v":""},{"$f":"IF(Economática!B760=\"\",\"\",Economática!B760)","v":""},{"$f":"IF($A782=\"\",\"\",IF(OR(VLOOKUP($A782,Economática!$A$3:$AI$823,8,FALSE)=0,VLOOKUP($A782,Economática!$A$3:$AI$823,8,FALSE)=\"-\"),1/0,VLOOKUP($A782,Economática!$A$3:$AI$823,8,FALSE)))","v":""},{"$f":"IF(A782=\"\",\"\",IF(ISERROR(VLOOKUP(A782,Correção!$B$2:$G$13,9,FALSE)),VLOOKUP($A782,Economática!$A$3:$AI$823,9,FALSE),VLOOKUP(A782,Correção!$B$2:$G$13,9,FALSE)))","v":""},{"$f":"IF($A782=\"\",\"\",Economática!G760)","v":""},{"$f":"IF($A782=\"\",\"\",IF(OR(VLOOKUP($A782,Economática!$A$3:$AI$823,10,FALSE)=0,VLOOKUP($A782,Economática!$A$3:$AI$823,10,FALSE)=\"-\"),1/0,VLOOKUP($A782,Economática!$A$3:$AI$823,10,FALSE)))","v":""},{"$f":"IF($A782=\"\",\"\",IF(OR(VLOOKUP($A782,Economática!$A$3:$AI$823,11,FALSE)=0,VLOOKUP($A782,Economática!$A$3:$AI$823,11,FALSE)=\"-\"),1/0,VLOOKUP($A782,Economática!$A$3:$AI$823,11,FALSE)))","v":""},{"$f":"IF($A782=\"\",\"\",IF(OR(VLOOKUP($A782,Economática!$A$3:$AI$823,12,FALSE)=0,VLOOKUP($A782,Economática!$A$3:$AI$823,12,FALSE)=\"-\"),1/0,VLOOKUP($A782,Economática!$A$3:$AI$823,12,FALSE)))","v":""},{"$f":"IF($A782=\"\",\"\",IF(OR(VLOOKUP($A782,Economática!$A$3:$AI$823,13,FALSE)=0,VLOOKUP($A782,Economática!$A$3:$AI$823,13,FALSE)=\"-\"),1/0,VLOOKUP($A782,Economática!$A$3:$AI$823,13,FALSE)))","v":""},{"$f":"IF($A782=\"\",\"\",IF(OR(VLOOKUP($A782,Economática!$A$3:$AI$823,14,FALSE)=0,VLOOKUP($A782,Economática!$A$3:$AI$823,14,FALSE)=\"-\"),1/0,VLOOKUP($A782,Economática!$A$3:$AI$823,14,FALSE)))","v":""},{"$f":"IF($A782=\"\",\"\",IF(OR(VLOOKUP($A782,Economática!$A$3:$AI$823,15,FALSE)=0,VLOOKUP($A782,Economática!$A$3:$AI$823,15,FALSE)=\"-\"),1/0,VLOOKUP($A782,Economática!$A$3:$AI$823,15,FALSE)))","v":""},{"$f":"IF($A782=\"\",\"\",IF(OR(VLOOKUP($A782,Economática!$A$3:$AI$823,16,FALSE)=0,VLOOKUP($A782,Economática!$A$3:$AI$823,16,FALSE)=\"-\"),1/0,VLOOKUP($A782,Economática!$A$3:$AI$823,16,FALSE)))","v":""},{"$f":"IF($A782=\"\",\"\",IF(OR(VLOOKUP($A782,Economática!$A$3:$AI$823,17,FALSE)=0,VLOOKUP($A782,Economática!$A$3:$AI$823,17,FALSE)=\"-\"),1/0,VLOOKUP($A782,Economática!$A$3:$AI$823,17,FALSE)))","v":""},{"$f":"IF($A782=\"\",\"\",IF(OR(VLOOKUP($A782,Economática!$A$3:$AI$823,18,FALSE)=0,VLOOKUP($A782,Economática!$A$3:$AI$823,18,FALSE)=\"-\"),1/0,VLOOKUP($A782,Economática!$A$3:$AI$823,18,FALSE)))","v":""},{"$f":"IF($A782=\"\",\"\",IF(OR(VLOOKUP($A782,Economática!$A$3:$AI$823,19,FALSE)=0,VLOOKUP($A782,Economática!$A$3:$AI$823,19,FALSE)=\"-\"),1/0,VLOOKUP($A782,Economática!$A$3:$AI$823,19,FALSE)))","v":""},{"$f":"IF($A782=\"\",\"\",VLOOKUP($A782,Economática!$A$3:$AI$823,20,FALSE)/E782)","v":""},"","","",{"$f":"IF($A782=\"\",\"\",IF(OR(VLOOKUP($A782,Economática!$A$3:$AI$823,21,FALSE)/100=0,VLOOKUP($A782,Economática!$A$3:$AI$823,21,FALSE)/100=\"-\"),1/0,VLOOKUP($A782,Economática!$A$3:$AI$823,21,FALSE)/100))","v":""},{"$f":"IF($A782=\"\",\"\",IF(OR(VLOOKUP($A782,Economática!$A$3:$AI$823,22,FALSE)/100=0,VLOOKUP($A782,Economática!$A$3:$AI$823,22,FALSE)/100=\"-\"),1/0,VLOOKUP($A782,Economática!$A$3:$AI$823,22,FALSE)/100))","v":""},{"$f":"IF($A782=\"\",\"\",IF(OR(VLOOKUP($A782,Economática!$A$3:$AI$823,23,FALSE)=0,VLOOKUP($A782,Economática!$A$3:$AI$823,23,FALSE)=\"-\"),1/0,VLOOKUP($A782,Economática!$A$3:$AI$823,23,FALSE)))","v":""},{"$f":"IF($A782=\"\",\"\",IF(OR(VLOOKUP($A782,Economática!$A$3:$AI$823,24,FALSE)=0,VLOOKUP($A782,Economática!$A$3:$AI$823,24,FALSE)=\"-\"),1/0,VLOOKUP($A782,Economática!$A$3:$AI$823,24,FALSE)))","v":""},{"$f":"IF($A782=\"\",\"\",IF(OR(VLOOKUP($A782,Economática!$A$3:$AI$823,25,FALSE)=0,VLOOKUP($A782,Economática!$A$3:$AI$823,25,FALSE)=\"-\"),1/0,VLOOKUP($A782,Economática!$A$3:$AI$823,25,FALSE)))","v":""},{"$f":"IF($A782=\"\",\"\",IF(ISERROR((F782+VLOOKUP($A782,Economática!$A$3:$AI$823,26,FALSE))/Y782),(F782+VLOOKUP($A782,Economática!$A$3:$AI$823,26,FALSE))/Y782,(F782+VLOOKUP($A782,Economática!$A$3:$AI$823,26,FALSE))/Y782))","v":""},{"$f":"IF($A782=\"\",\"\",IF(OR(-VLOOKUP($A782,Economática!$A$3:$AI$823,27,FALSE)=0,-VLOOKUP($A782,Economática!$A$3:$AI$823,27,FALSE)=\"-\"),1/0,-VLOOKUP($A782,Economática!$A$3:$AI$823,27,FALSE)))","v":""},"",{"$f":"IF($A782=\"\",\"\",IF(OR(VLOOKUP($A782,Economática!$A$3:$AI$823,28,FALSE)=0,VLOOKUP($A782,Economática!$A$3:$AI$823,28,FALSE)=\"-\"),1/0,VLOOKUP($A782,Economática!$A$3:$AI$823,28,FALSE)))","v":""},{"$f":"IF($A782=\"\",\"\",IF(OR(VLOOKUP($A782,Economática!$A$3:$AI$823,29,FALSE)=0,VLOOKUP($A782,Economática!$A$3:$AI$823,29,FALSE)=\"-\"),1/0,VLOOKUP($A782,Economática!$A$3:$AI$823,29,FALSE)))","v":""},{"$f":"IF($A782=\"\",\"\",IF(OR(VLOOKUP($A782,Economática!$A$3:$AI$823,30,FALSE)/E782=0,VLOOKUP($A782,Economática!$A$3:$AI$823,30,FALSE)/E782=\"-\",VLOOKUP($A782,Economática!$A$3:$AI$823,30,FALSE)/E782<33.33%,VLOOKUP($A782,Economática!$A$3:$AI$823,30,FALSE)/E782>100%),1/0,VLOOKUP($A782,Economática!$A$3:$AI$823,30,FALSE)/E782))","v":""},"",{"$f":"IF($A782=\"\",\"\",IF(OR(VLOOKUP($A782,Economática!$A$3:$AI$823,25,FALSE)=0,VLOOKUP($A782,Economática!$A$3:$AI$823,25,FALSE)=\"-\"),1/0,VLOOKUP($A782,Economática!$A$3:$AI$823,25,FALSE)))","v":""},{"$f":"CONCATENATE(Economática!B760,\" \",Economática!C760)","v":" "}]
[{"$f":"IF(Economática!AG761=\"\",\"\",Economática!AG761)","v":""},{"$f":"IF($A783=\"\",\"\",VLOOKUP(VLOOKUP($A783,Economática!$A$3:$AI$823,6,FALSE),Correção!$B$16:$C$36,2,FALSE))","v":""},{"$f":"IF(Economática!B761=\"\",\"\",Economática!B761)","v":""},{"$f":"IF($A783=\"\",\"\",IF(OR(VLOOKUP($A783,Economática!$A$3:$AI$823,8,FALSE)=0,VLOOKUP($A783,Economática!$A$3:$AI$823,8,FALSE)=\"-\"),1/0,VLOOKUP($A783,Economática!$A$3:$AI$823,8,FALSE)))","v":""},{"$f":"IF(A783=\"\",\"\",IF(ISERROR(VLOOKUP(A783,Correção!$B$2:$G$13,9,FALSE)),VLOOKUP($A783,Economática!$A$3:$AI$823,9,FALSE),VLOOKUP(A783,Correção!$B$2:$G$13,9,FALSE)))","v":""},{"$f":"IF($A783=\"\",\"\",Economática!G761)","v":""},{"$f":"IF($A783=\"\",\"\",IF(OR(VLOOKUP($A783,Economática!$A$3:$AI$823,10,FALSE)=0,VLOOKUP($A783,Economática!$A$3:$AI$823,10,FALSE)=\"-\"),1/0,VLOOKUP($A783,Economática!$A$3:$AI$823,10,FALSE)))","v":""},{"$f":"IF($A783=\"\",\"\",IF(OR(VLOOKUP($A783,Economática!$A$3:$AI$823,11,FALSE)=0,VLOOKUP($A783,Economática!$A$3:$AI$823,11,FALSE)=\"-\"),1/0,VLOOKUP($A783,Economática!$A$3:$AI$823,11,FALSE)))","v":""},{"$f":"IF($A783=\"\",\"\",IF(OR(VLOOKUP($A783,Economática!$A$3:$AI$823,12,FALSE)=0,VLOOKUP($A783,Economática!$A$3:$AI$823,12,FALSE)=\"-\"),1/0,VLOOKUP($A783,Economática!$A$3:$AI$823,12,FALSE)))","v":""},{"$f":"IF($A783=\"\",\"\",IF(OR(VLOOKUP($A783,Economática!$A$3:$AI$823,13,FALSE)=0,VLOOKUP($A783,Economática!$A$3:$AI$823,13,FALSE)=\"-\"),1/0,VLOOKUP($A783,Economática!$A$3:$AI$823,13,FALSE)))","v":""},{"$f":"IF($A783=\"\",\"\",IF(OR(VLOOKUP($A783,Economática!$A$3:$AI$823,14,FALSE)=0,VLOOKUP($A783,Economática!$A$3:$AI$823,14,FALSE)=\"-\"),1/0,VLOOKUP($A783,Economática!$A$3:$AI$823,14,FALSE)))","v":""},{"$f":"IF($A783=\"\",\"\",IF(OR(VLOOKUP($A783,Economática!$A$3:$AI$823,15,FALSE)=0,VLOOKUP($A783,Economática!$A$3:$AI$823,15,FALSE)=\"-\"),1/0,VLOOKUP($A783,Economática!$A$3:$AI$823,15,FALSE)))","v":""},{"$f":"IF($A783=\"\",\"\",IF(OR(VLOOKUP($A783,Economática!$A$3:$AI$823,16,FALSE)=0,VLOOKUP($A783,Economática!$A$3:$AI$823,16,FALSE)=\"-\"),1/0,VLOOKUP($A783,Economática!$A$3:$AI$823,16,FALSE)))","v":""},{"$f":"IF($A783=\"\",\"\",IF(OR(VLOOKUP($A783,Economática!$A$3:$AI$823,17,FALSE)=0,VLOOKUP($A783,Economática!$A$3:$AI$823,17,FALSE)=\"-\"),1/0,VLOOKUP($A783,Economática!$A$3:$AI$823,17,FALSE)))","v":""},{"$f":"IF($A783=\"\",\"\",IF(OR(VLOOKUP($A783,Economática!$A$3:$AI$823,18,FALSE)=0,VLOOKUP($A783,Economática!$A$3:$AI$823,18,FALSE)=\"-\"),1/0,VLOOKUP($A783,Economática!$A$3:$AI$823,18,FALSE)))","v":""},{"$f":"IF($A783=\"\",\"\",IF(OR(VLOOKUP($A783,Economática!$A$3:$AI$823,19,FALSE)=0,VLOOKUP($A783,Economática!$A$3:$AI$823,19,FALSE)=\"-\"),1/0,VLOOKUP($A783,Economática!$A$3:$AI$823,19,FALSE)))","v":""},{"$f":"IF($A783=\"\",\"\",VLOOKUP($A783,Economática!$A$3:$AI$823,20,FALSE)/E783)","v":""},"","","",{"$f":"IF($A783=\"\",\"\",IF(OR(VLOOKUP($A783,Economática!$A$3:$AI$823,21,FALSE)/100=0,VLOOKUP($A783,Economática!$A$3:$AI$823,21,FALSE)/100=\"-\"),1/0,VLOOKUP($A783,Economática!$A$3:$AI$823,21,FALSE)/100))","v":""},{"$f":"IF($A783=\"\",\"\",IF(OR(VLOOKUP($A783,Economática!$A$3:$AI$823,22,FALSE)/100=0,VLOOKUP($A783,Economática!$A$3:$AI$823,22,FALSE)/100=\"-\"),1/0,VLOOKUP($A783,Economática!$A$3:$AI$823,22,FALSE)/100))","v":""},{"$f":"IF($A783=\"\",\"\",IF(OR(VLOOKUP($A783,Economática!$A$3:$AI$823,23,FALSE)=0,VLOOKUP($A783,Economática!$A$3:$AI$823,23,FALSE)=\"-\"),1/0,VLOOKUP($A783,Economática!$A$3:$AI$823,23,FALSE)))","v":""},{"$f":"IF($A783=\"\",\"\",IF(OR(VLOOKUP($A783,Economática!$A$3:$AI$823,24,FALSE)=0,VLOOKUP($A783,Economática!$A$3:$AI$823,24,FALSE)=\"-\"),1/0,VLOOKUP($A783,Economática!$A$3:$AI$823,24,FALSE)))","v":""},{"$f":"IF($A783=\"\",\"\",IF(OR(VLOOKUP($A783,Economática!$A$3:$AI$823,25,FALSE)=0,VLOOKUP($A783,Economática!$A$3:$AI$823,25,FALSE)=\"-\"),1/0,VLOOKUP($A783,Economática!$A$3:$AI$823,25,FALSE)))","v":""},{"$f":"IF($A783=\"\",\"\",IF(ISERROR((F783+VLOOKUP($A783,Economática!$A$3:$AI$823,26,FALSE))/Y783),(F783+VLOOKUP($A783,Economática!$A$3:$AI$823,26,FALSE))/Y783,(F783+VLOOKUP($A783,Economática!$A$3:$AI$823,26,FALSE))/Y783))","v":""},{"$f":"IF($A783=\"\",\"\",IF(OR(-VLOOKUP($A783,Economática!$A$3:$AI$823,27,FALSE)=0,-VLOOKUP($A783,Economática!$A$3:$AI$823,27,FALSE)=\"-\"),1/0,-VLOOKUP($A783,Economática!$A$3:$AI$823,27,FALSE)))","v":""},"",{"$f":"IF($A783=\"\",\"\",IF(OR(VLOOKUP($A783,Economática!$A$3:$AI$823,28,FALSE)=0,VLOOKUP($A783,Economática!$A$3:$AI$823,28,FALSE)=\"-\"),1/0,VLOOKUP($A783,Economática!$A$3:$AI$823,28,FALSE)))","v":""},{"$f":"IF($A783=\"\",\"\",IF(OR(VLOOKUP($A783,Economática!$A$3:$AI$823,29,FALSE)=0,VLOOKUP($A783,Economática!$A$3:$AI$823,29,FALSE)=\"-\"),1/0,VLOOKUP($A783,Economática!$A$3:$AI$823,29,FALSE)))","v":""},{"$f":"IF($A783=\"\",\"\",IF(OR(VLOOKUP($A783,Economática!$A$3:$AI$823,30,FALSE)/E783=0,VLOOKUP($A783,Economática!$A$3:$AI$823,30,FALSE)/E783=\"-\",VLOOKUP($A783,Economática!$A$3:$AI$823,30,FALSE)/E783<33.33%,VLOOKUP($A783,Economática!$A$3:$AI$823,30,FALSE)/E783>100%),1/0,VLOOKUP($A783,Economática!$A$3:$AI$823,30,FALSE)/E783))","v":""},"",{"$f":"IF($A783=\"\",\"\",IF(OR(VLOOKUP($A783,Economática!$A$3:$AI$823,25,FALSE)=0,VLOOKUP($A783,Economática!$A$3:$AI$823,25,FALSE)=\"-\"),1/0,VLOOKUP($A783,Economática!$A$3:$AI$823,25,FALSE)))","v":""},{"$f":"CONCATENATE(Economática!B761,\" \",Economática!C761)","v":" "}]
[{"$f":"IF(Economática!AG762=\"\",\"\",Economática!AG762)","v":""},{"$f":"IF($A784=\"\",\"\",VLOOKUP(VLOOKUP($A784,Economática!$A$3:$AI$823,6,FALSE),Correção!$B$16:$C$36,2,FALSE))","v":""},{"$f":"IF(Economática!B762=\"\",\"\",Economática!B762)","v":""},{"$f":"IF($A784=\"\",\"\",IF(OR(VLOOKUP($A784,Economática!$A$3:$AI$823,8,FALSE)=0,VLOOKUP($A784,Economática!$A$3:$AI$823,8,FALSE)=\"-\"),1/0,VLOOKUP($A784,Economática!$A$3:$AI$823,8,FALSE)))","v":""},{"$f":"IF(A784=\"\",\"\",IF(ISERROR(VLOOKUP(A784,Correção!$B$2:$G$13,9,FALSE)),VLOOKUP($A784,Economática!$A$3:$AI$823,9,FALSE),VLOOKUP(A784,Correção!$B$2:$G$13,9,FALSE)))","v":""},{"$f":"IF($A784=\"\",\"\",Economática!G762)","v":""},{"$f":"IF($A784=\"\",\"\",IF(OR(VLOOKUP($A784,Economática!$A$3:$AI$823,10,FALSE)=0,VLOOKUP($A784,Economática!$A$3:$AI$823,10,FALSE)=\"-\"),1/0,VLOOKUP($A784,Economática!$A$3:$AI$823,10,FALSE)))","v":""},{"$f":"IF($A784=\"\",\"\",IF(OR(VLOOKUP($A784,Economática!$A$3:$AI$823,11,FALSE)=0,VLOOKUP($A784,Economática!$A$3:$AI$823,11,FALSE)=\"-\"),1/0,VLOOKUP($A784,Economática!$A$3:$AI$823,11,FALSE)))","v":""},{"$f":"IF($A784=\"\",\"\",IF(OR(VLOOKUP($A784,Economática!$A$3:$AI$823,12,FALSE)=0,VLOOKUP($A784,Economática!$A$3:$AI$823,12,FALSE)=\"-\"),1/0,VLOOKUP($A784,Economática!$A$3:$AI$823,12,FALSE)))","v":""},{"$f":"IF($A784=\"\",\"\",IF(OR(VLOOKUP($A784,Economática!$A$3:$AI$823,13,FALSE)=0,VLOOKUP($A784,Economática!$A$3:$AI$823,13,FALSE)=\"-\"),1/0,VLOOKUP($A784,Economática!$A$3:$AI$823,13,FALSE)))","v":""},{"$f":"IF($A784=\"\",\"\",IF(OR(VLOOKUP($A784,Economática!$A$3:$AI$823,14,FALSE)=0,VLOOKUP($A784,Economática!$A$3:$AI$823,14,FALSE)=\"-\"),1/0,VLOOKUP($A784,Economática!$A$3:$AI$823,14,FALSE)))","v":""},{"$f":"IF($A784=\"\",\"\",IF(OR(VLOOKUP($A784,Economática!$A$3:$AI$823,15,FALSE)=0,VLOOKUP($A784,Economática!$A$3:$AI$823,15,FALSE)=\"-\"),1/0,VLOOKUP($A784,Economática!$A$3:$AI$823,15,FALSE)))","v":""},{"$f":"IF($A784=\"\",\"\",IF(OR(VLOOKUP($A784,Economática!$A$3:$AI$823,16,FALSE)=0,VLOOKUP($A784,Economática!$A$3:$AI$823,16,FALSE)=\"-\"),1/0,VLOOKUP($A784,Economática!$A$3:$AI$823,16,FALSE)))","v":""},{"$f":"IF($A784=\"\",\"\",IF(OR(VLOOKUP($A784,Economática!$A$3:$AI$823,17,FALSE)=0,VLOOKUP($A784,Economática!$A$3:$AI$823,17,FALSE)=\"-\"),1/0,VLOOKUP($A784,Economática!$A$3:$AI$823,17,FALSE)))","v":""},{"$f":"IF($A784=\"\",\"\",IF(OR(VLOOKUP($A784,Economática!$A$3:$AI$823,18,FALSE)=0,VLOOKUP($A784,Economática!$A$3:$AI$823,18,FALSE)=\"-\"),1/0,VLOOKUP($A784,Economática!$A$3:$AI$823,18,FALSE)))","v":""},{"$f":"IF($A784=\"\",\"\",IF(OR(VLOOKUP($A784,Economática!$A$3:$AI$823,19,FALSE)=0,VLOOKUP($A784,Economática!$A$3:$AI$823,19,FALSE)=\"-\"),1/0,VLOOKUP($A784,Economática!$A$3:$AI$823,19,FALSE)))","v":""},{"$f":"IF($A784=\"\",\"\",VLOOKUP($A784,Economática!$A$3:$AI$823,20,FALSE)/E784)","v":""},"","","",{"$f":"IF($A784=\"\",\"\",IF(OR(VLOOKUP($A784,Economática!$A$3:$AI$823,21,FALSE)/100=0,VLOOKUP($A784,Economática!$A$3:$AI$823,21,FALSE)/100=\"-\"),1/0,VLOOKUP($A784,Economática!$A$3:$AI$823,21,FALSE)/100))","v":""},{"$f":"IF($A784=\"\",\"\",IF(OR(VLOOKUP($A784,Economática!$A$3:$AI$823,22,FALSE)/100=0,VLOOKUP($A784,Economática!$A$3:$AI$823,22,FALSE)/100=\"-\"),1/0,VLOOKUP($A784,Economática!$A$3:$AI$823,22,FALSE)/100))","v":""},{"$f":"IF($A784=\"\",\"\",IF(OR(VLOOKUP($A784,Economática!$A$3:$AI$823,23,FALSE)=0,VLOOKUP($A784,Economática!$A$3:$AI$823,23,FALSE)=\"-\"),1/0,VLOOKUP($A784,Economática!$A$3:$AI$823,23,FALSE)))","v":""},{"$f":"IF($A784=\"\",\"\",IF(OR(VLOOKUP($A784,Economática!$A$3:$AI$823,24,FALSE)=0,VLOOKUP($A784,Economática!$A$3:$AI$823,24,FALSE)=\"-\"),1/0,VLOOKUP($A784,Economática!$A$3:$AI$823,24,FALSE)))","v":""},{"$f":"IF($A784=\"\",\"\",IF(OR(VLOOKUP($A784,Economática!$A$3:$AI$823,25,FALSE)=0,VLOOKUP($A784,Economática!$A$3:$AI$823,25,FALSE)=\"-\"),1/0,VLOOKUP($A784,Economática!$A$3:$AI$823,25,FALSE)))","v":""},{"$f":"IF($A784=\"\",\"\",IF(ISERROR((F784+VLOOKUP($A784,Economática!$A$3:$AI$823,26,FALSE))/Y784),(F784+VLOOKUP($A784,Economática!$A$3:$AI$823,26,FALSE))/Y784,(F784+VLOOKUP($A784,Economática!$A$3:$AI$823,26,FALSE))/Y784))","v":""},{"$f":"IF($A784=\"\",\"\",IF(OR(-VLOOKUP($A784,Economática!$A$3:$AI$823,27,FALSE)=0,-VLOOKUP($A784,Economática!$A$3:$AI$823,27,FALSE)=\"-\"),1/0,-VLOOKUP($A784,Economática!$A$3:$AI$823,27,FALSE)))","v":""},"",{"$f":"IF($A784=\"\",\"\",IF(OR(VLOOKUP($A784,Economática!$A$3:$AI$823,28,FALSE)=0,VLOOKUP($A784,Economática!$A$3:$AI$823,28,FALSE)=\"-\"),1/0,VLOOKUP($A784,Economática!$A$3:$AI$823,28,FALSE)))","v":""},{"$f":"IF($A784=\"\",\"\",IF(OR(VLOOKUP($A784,Economática!$A$3:$AI$823,29,FALSE)=0,VLOOKUP($A784,Economática!$A$3:$AI$823,29,FALSE)=\"-\"),1/0,VLOOKUP($A784,Economática!$A$3:$AI$823,29,FALSE)))","v":""},{"$f":"IF($A784=\"\",\"\",IF(OR(VLOOKUP($A784,Economática!$A$3:$AI$823,30,FALSE)/E784=0,VLOOKUP($A784,Economática!$A$3:$AI$823,30,FALSE)/E784=\"-\",VLOOKUP($A784,Economática!$A$3:$AI$823,30,FALSE)/E784<33.33%,VLOOKUP($A784,Economática!$A$3:$AI$823,30,FALSE)/E784>100%),1/0,VLOOKUP($A784,Economática!$A$3:$AI$823,30,FALSE)/E784))","v":""},"",{"$f":"IF($A784=\"\",\"\",IF(OR(VLOOKUP($A784,Economática!$A$3:$AI$823,25,FALSE)=0,VLOOKUP($A784,Economática!$A$3:$AI$823,25,FALSE)=\"-\"),1/0,VLOOKUP($A784,Economática!$A$3:$AI$823,25,FALSE)))","v":""},{"$f":"CONCATENATE(Economática!B762,\" \",Economática!C762)","v":" "}]
[{"$f":"IF(Economática!AG763=\"\",\"\",Economática!AG763)","v":""},{"$f":"IF($A785=\"\",\"\",VLOOKUP(VLOOKUP($A785,Economática!$A$3:$AI$823,6,FALSE),Correção!$B$16:$C$36,2,FALSE))","v":""},{"$f":"IF(Economática!B763=\"\",\"\",Economática!B763)","v":""},{"$f":"IF($A785=\"\",\"\",IF(OR(VLOOKUP($A785,Economática!$A$3:$AI$823,8,FALSE)=0,VLOOKUP($A785,Economática!$A$3:$AI$823,8,FALSE)=\"-\"),1/0,VLOOKUP($A785,Economática!$A$3:$AI$823,8,FALSE)))","v":""},{"$f":"IF(A785=\"\",\"\",IF(ISERROR(VLOOKUP(A785,Correção!$B$2:$G$13,9,FALSE)),VLOOKUP($A785,Economática!$A$3:$AI$823,9,FALSE),VLOOKUP(A785,Correção!$B$2:$G$13,9,FALSE)))","v":""},{"$f":"IF($A785=\"\",\"\",Economática!G763)","v":""},{"$f":"IF($A785=\"\",\"\",IF(OR(VLOOKUP($A785,Economática!$A$3:$AI$823,10,FALSE)=0,VLOOKUP($A785,Economática!$A$3:$AI$823,10,FALSE)=\"-\"),1/0,VLOOKUP($A785,Economática!$A$3:$AI$823,10,FALSE)))","v":""},{"$f":"IF($A785=\"\",\"\",IF(OR(VLOOKUP($A785,Economática!$A$3:$AI$823,11,FALSE)=0,VLOOKUP($A785,Economática!$A$3:$AI$823,11,FALSE)=\"-\"),1/0,VLOOKUP($A785,Economática!$A$3:$AI$823,11,FALSE)))","v":""},{"$f":"IF($A785=\"\",\"\",IF(OR(VLOOKUP($A785,Economática!$A$3:$AI$823,12,FALSE)=0,VLOOKUP($A785,Economática!$A$3:$AI$823,12,FALSE)=\"-\"),1/0,VLOOKUP($A785,Economática!$A$3:$AI$823,12,FALSE)))","v":""},{"$f":"IF($A785=\"\",\"\",IF(OR(VLOOKUP($A785,Economática!$A$3:$AI$823,13,FALSE)=0,VLOOKUP($A785,Economática!$A$3:$AI$823,13,FALSE)=\"-\"),1/0,VLOOKUP($A785,Economática!$A$3:$AI$823,13,FALSE)))","v":""},{"$f":"IF($A785=\"\",\"\",IF(OR(VLOOKUP($A785,Economática!$A$3:$AI$823,14,FALSE)=0,VLOOKUP($A785,Economática!$A$3:$AI$823,14,FALSE)=\"-\"),1/0,VLOOKUP($A785,Economática!$A$3:$AI$823,14,FALSE)))","v":""},{"$f":"IF($A785=\"\",\"\",IF(OR(VLOOKUP($A785,Economática!$A$3:$AI$823,15,FALSE)=0,VLOOKUP($A785,Economática!$A$3:$AI$823,15,FALSE)=\"-\"),1/0,VLOOKUP($A785,Economática!$A$3:$AI$823,15,FALSE)))","v":""},{"$f":"IF($A785=\"\",\"\",IF(OR(VLOOKUP($A785,Economática!$A$3:$AI$823,16,FALSE)=0,VLOOKUP($A785,Economática!$A$3:$AI$823,16,FALSE)=\"-\"),1/0,VLOOKUP($A785,Economática!$A$3:$AI$823,16,FALSE)))","v":""},{"$f":"IF($A785=\"\",\"\",IF(OR(VLOOKUP($A785,Economática!$A$3:$AI$823,17,FALSE)=0,VLOOKUP($A785,Economática!$A$3:$AI$823,17,FALSE)=\"-\"),1/0,VLOOKUP($A785,Economática!$A$3:$AI$823,17,FALSE)))","v":""},{"$f":"IF($A785=\"\",\"\",IF(OR(VLOOKUP($A785,Economática!$A$3:$AI$823,18,FALSE)=0,VLOOKUP($A785,Economática!$A$3:$AI$823,18,FALSE)=\"-\"),1/0,VLOOKUP($A785,Economática!$A$3:$AI$823,18,FALSE)))","v":""},{"$f":"IF($A785=\"\",\"\",IF(OR(VLOOKUP($A785,Economática!$A$3:$AI$823,19,FALSE)=0,VLOOKUP($A785,Economática!$A$3:$AI$823,19,FALSE)=\"-\"),1/0,VLOOKUP($A785,Economática!$A$3:$AI$823,19,FALSE)))","v":""},{"$f":"IF($A785=\"\",\"\",VLOOKUP($A785,Economática!$A$3:$AI$823,20,FALSE)/E785)","v":""},"","","",{"$f":"IF($A785=\"\",\"\",IF(OR(VLOOKUP($A785,Economática!$A$3:$AI$823,21,FALSE)/100=0,VLOOKUP($A785,Economática!$A$3:$AI$823,21,FALSE)/100=\"-\"),1/0,VLOOKUP($A785,Economática!$A$3:$AI$823,21,FALSE)/100))","v":""},{"$f":"IF($A785=\"\",\"\",IF(OR(VLOOKUP($A785,Economática!$A$3:$AI$823,22,FALSE)/100=0,VLOOKUP($A785,Economática!$A$3:$AI$823,22,FALSE)/100=\"-\"),1/0,VLOOKUP($A785,Economática!$A$3:$AI$823,22,FALSE)/100))","v":""},{"$f":"IF($A785=\"\",\"\",IF(OR(VLOOKUP($A785,Economática!$A$3:$AI$823,23,FALSE)=0,VLOOKUP($A785,Economática!$A$3:$AI$823,23,FALSE)=\"-\"),1/0,VLOOKUP($A785,Economática!$A$3:$AI$823,23,FALSE)))","v":""},{"$f":"IF($A785=\"\",\"\",IF(OR(VLOOKUP($A785,Economática!$A$3:$AI$823,24,FALSE)=0,VLOOKUP($A785,Economática!$A$3:$AI$823,24,FALSE)=\"-\"),1/0,VLOOKUP($A785,Economática!$A$3:$AI$823,24,FALSE)))","v":""},{"$f":"IF($A785=\"\",\"\",IF(OR(VLOOKUP($A785,Economática!$A$3:$AI$823,25,FALSE)=0,VLOOKUP($A785,Economática!$A$3:$AI$823,25,FALSE)=\"-\"),1/0,VLOOKUP($A785,Economática!$A$3:$AI$823,25,FALSE)))","v":""},{"$f":"IF($A785=\"\",\"\",IF(ISERROR((F785+VLOOKUP($A785,Economática!$A$3:$AI$823,26,FALSE))/Y785),(F785+VLOOKUP($A785,Economática!$A$3:$AI$823,26,FALSE))/Y785,(F785+VLOOKUP($A785,Economática!$A$3:$AI$823,26,FALSE))/Y785))","v":""},{"$f":"IF($A785=\"\",\"\",IF(OR(-VLOOKUP($A785,Economática!$A$3:$AI$823,27,FALSE)=0,-VLOOKUP($A785,Economática!$A$3:$AI$823,27,FALSE)=\"-\"),1/0,-VLOOKUP($A785,Economática!$A$3:$AI$823,27,FALSE)))","v":""},"",{"$f":"IF($A785=\"\",\"\",IF(OR(VLOOKUP($A785,Economática!$A$3:$AI$823,28,FALSE)=0,VLOOKUP($A785,Economática!$A$3:$AI$823,28,FALSE)=\"-\"),1/0,VLOOKUP($A785,Economática!$A$3:$AI$823,28,FALSE)))","v":""},{"$f":"IF($A785=\"\",\"\",IF(OR(VLOOKUP($A785,Economática!$A$3:$AI$823,29,FALSE)=0,VLOOKUP($A785,Economática!$A$3:$AI$823,29,FALSE)=\"-\"),1/0,VLOOKUP($A785,Economática!$A$3:$AI$823,29,FALSE)))","v":""},{"$f":"IF($A785=\"\",\"\",IF(OR(VLOOKUP($A785,Economática!$A$3:$AI$823,30,FALSE)/E785=0,VLOOKUP($A785,Economática!$A$3:$AI$823,30,FALSE)/E785=\"-\",VLOOKUP($A785,Economática!$A$3:$AI$823,30,FALSE)/E785<33.33%,VLOOKUP($A785,Economática!$A$3:$AI$823,30,FALSE)/E785>100%),1/0,VLOOKUP($A785,Economática!$A$3:$AI$823,30,FALSE)/E785))","v":""},"",{"$f":"IF($A785=\"\",\"\",IF(OR(VLOOKUP($A785,Economática!$A$3:$AI$823,25,FALSE)=0,VLOOKUP($A785,Economática!$A$3:$AI$823,25,FALSE)=\"-\"),1/0,VLOOKUP($A785,Economática!$A$3:$AI$823,25,FALSE)))","v":""},{"$f":"CONCATENATE(Economática!B763,\" \",Economática!C763)","v":" "}]
[{"$f":"IF(Economática!AG764=\"\",\"\",Economática!AG764)","v":""},{"$f":"IF($A786=\"\",\"\",VLOOKUP(VLOOKUP($A786,Economática!$A$3:$AI$823,6,FALSE),Correção!$B$16:$C$36,2,FALSE))","v":""},{"$f":"IF(Economática!B764=\"\",\"\",Economática!B764)","v":""},{"$f":"IF($A786=\"\",\"\",IF(OR(VLOOKUP($A786,Economática!$A$3:$AI$823,8,FALSE)=0,VLOOKUP($A786,Economática!$A$3:$AI$823,8,FALSE)=\"-\"),1/0,VLOOKUP($A786,Economática!$A$3:$AI$823,8,FALSE)))","v":""},{"$f":"IF(A786=\"\",\"\",IF(ISERROR(VLOOKUP(A786,Correção!$B$2:$G$13,9,FALSE)),VLOOKUP($A786,Economática!$A$3:$AI$823,9,FALSE),VLOOKUP(A786,Correção!$B$2:$G$13,9,FALSE)))","v":""},{"$f":"IF($A786=\"\",\"\",Economática!G764)","v":""},{"$f":"IF($A786=\"\",\"\",IF(OR(VLOOKUP($A786,Economática!$A$3:$AI$823,10,FALSE)=0,VLOOKUP($A786,Economática!$A$3:$AI$823,10,FALSE)=\"-\"),1/0,VLOOKUP($A786,Economática!$A$3:$AI$823,10,FALSE)))","v":""},{"$f":"IF($A786=\"\",\"\",IF(OR(VLOOKUP($A786,Economática!$A$3:$AI$823,11,FALSE)=0,VLOOKUP($A786,Economática!$A$3:$AI$823,11,FALSE)=\"-\"),1/0,VLOOKUP($A786,Economática!$A$3:$AI$823,11,FALSE)))","v":""},{"$f":"IF($A786=\"\",\"\",IF(OR(VLOOKUP($A786,Economática!$A$3:$AI$823,12,FALSE)=0,VLOOKUP($A786,Economática!$A$3:$AI$823,12,FALSE)=\"-\"),1/0,VLOOKUP($A786,Economática!$A$3:$AI$823,12,FALSE)))","v":""},{"$f":"IF($A786=\"\",\"\",IF(OR(VLOOKUP($A786,Economática!$A$3:$AI$823,13,FALSE)=0,VLOOKUP($A786,Economática!$A$3:$AI$823,13,FALSE)=\"-\"),1/0,VLOOKUP($A786,Economática!$A$3:$AI$823,13,FALSE)))","v":""},{"$f":"IF($A786=\"\",\"\",IF(OR(VLOOKUP($A786,Economática!$A$3:$AI$823,14,FALSE)=0,VLOOKUP($A786,Economática!$A$3:$AI$823,14,FALSE)=\"-\"),1/0,VLOOKUP($A786,Economática!$A$3:$AI$823,14,FALSE)))","v":""},{"$f":"IF($A786=\"\",\"\",IF(OR(VLOOKUP($A786,Economática!$A$3:$AI$823,15,FALSE)=0,VLOOKUP($A786,Economática!$A$3:$AI$823,15,FALSE)=\"-\"),1/0,VLOOKUP($A786,Economática!$A$3:$AI$823,15,FALSE)))","v":""},{"$f":"IF($A786=\"\",\"\",IF(OR(VLOOKUP($A786,Economática!$A$3:$AI$823,16,FALSE)=0,VLOOKUP($A786,Economática!$A$3:$AI$823,16,FALSE)=\"-\"),1/0,VLOOKUP($A786,Economática!$A$3:$AI$823,16,FALSE)))","v":""},{"$f":"IF($A786=\"\",\"\",IF(OR(VLOOKUP($A786,Economática!$A$3:$AI$823,17,FALSE)=0,VLOOKUP($A786,Economática!$A$3:$AI$823,17,FALSE)=\"-\"),1/0,VLOOKUP($A786,Economática!$A$3:$AI$823,17,FALSE)))","v":""},{"$f":"IF($A786=\"\",\"\",IF(OR(VLOOKUP($A786,Economática!$A$3:$AI$823,18,FALSE)=0,VLOOKUP($A786,Economática!$A$3:$AI$823,18,FALSE)=\"-\"),1/0,VLOOKUP($A786,Economática!$A$3:$AI$823,18,FALSE)))","v":""},{"$f":"IF($A786=\"\",\"\",IF(OR(VLOOKUP($A786,Economática!$A$3:$AI$823,19,FALSE)=0,VLOOKUP($A786,Economática!$A$3:$AI$823,19,FALSE)=\"-\"),1/0,VLOOKUP($A786,Economática!$A$3:$AI$823,19,FALSE)))","v":""},{"$f":"IF($A786=\"\",\"\",VLOOKUP($A786,Economática!$A$3:$AI$823,20,FALSE)/E786)","v":""},"","","",{"$f":"IF($A786=\"\",\"\",IF(OR(VLOOKUP($A786,Economática!$A$3:$AI$823,21,FALSE)/100=0,VLOOKUP($A786,Economática!$A$3:$AI$823,21,FALSE)/100=\"-\"),1/0,VLOOKUP($A786,Economática!$A$3:$AI$823,21,FALSE)/100))","v":""},{"$f":"IF($A786=\"\",\"\",IF(OR(VLOOKUP($A786,Economática!$A$3:$AI$823,22,FALSE)/100=0,VLOOKUP($A786,Economática!$A$3:$AI$823,22,FALSE)/100=\"-\"),1/0,VLOOKUP($A786,Economática!$A$3:$AI$823,22,FALSE)/100))","v":""},{"$f":"IF($A786=\"\",\"\",IF(OR(VLOOKUP($A786,Economática!$A$3:$AI$823,23,FALSE)=0,VLOOKUP($A786,Economática!$A$3:$AI$823,23,FALSE)=\"-\"),1/0,VLOOKUP($A786,Economática!$A$3:$AI$823,23,FALSE)))","v":""},{"$f":"IF($A786=\"\",\"\",IF(OR(VLOOKUP($A786,Economática!$A$3:$AI$823,24,FALSE)=0,VLOOKUP($A786,Economática!$A$3:$AI$823,24,FALSE)=\"-\"),1/0,VLOOKUP($A786,Economática!$A$3:$AI$823,24,FALSE)))","v":""},{"$f":"IF($A786=\"\",\"\",IF(OR(VLOOKUP($A786,Economática!$A$3:$AI$823,25,FALSE)=0,VLOOKUP($A786,Economática!$A$3:$AI$823,25,FALSE)=\"-\"),1/0,VLOOKUP($A786,Economática!$A$3:$AI$823,25,FALSE)))","v":""},{"$f":"IF($A786=\"\",\"\",IF(ISERROR((F786+VLOOKUP($A786,Economática!$A$3:$AI$823,26,FALSE))/Y786),(F786+VLOOKUP($A786,Economática!$A$3:$AI$823,26,FALSE))/Y786,(F786+VLOOKUP($A786,Economática!$A$3:$AI$823,26,FALSE))/Y786))","v":""},{"$f":"IF($A786=\"\",\"\",IF(OR(-VLOOKUP($A786,Economática!$A$3:$AI$823,27,FALSE)=0,-VLOOKUP($A786,Economática!$A$3:$AI$823,27,FALSE)=\"-\"),1/0,-VLOOKUP($A786,Economática!$A$3:$AI$823,27,FALSE)))","v":""},"",{"$f":"IF($A786=\"\",\"\",IF(OR(VLOOKUP($A786,Economática!$A$3:$AI$823,28,FALSE)=0,VLOOKUP($A786,Economática!$A$3:$AI$823,28,FALSE)=\"-\"),1/0,VLOOKUP($A786,Economática!$A$3:$AI$823,28,FALSE)))","v":""},{"$f":"IF($A786=\"\",\"\",IF(OR(VLOOKUP($A786,Economática!$A$3:$AI$823,29,FALSE)=0,VLOOKUP($A786,Economática!$A$3:$AI$823,29,FALSE)=\"-\"),1/0,VLOOKUP($A786,Economática!$A$3:$AI$823,29,FALSE)))","v":""},{"$f":"IF($A786=\"\",\"\",IF(OR(VLOOKUP($A786,Economática!$A$3:$AI$823,30,FALSE)/E786=0,VLOOKUP($A786,Economática!$A$3:$AI$823,30,FALSE)/E786=\"-\",VLOOKUP($A786,Economática!$A$3:$AI$823,30,FALSE)/E786<33.33%,VLOOKUP($A786,Economática!$A$3:$AI$823,30,FALSE)/E786>100%),1/0,VLOOKUP($A786,Economática!$A$3:$AI$823,30,FALSE)/E786))","v":""},"",{"$f":"IF($A786=\"\",\"\",IF(OR(VLOOKUP($A786,Economática!$A$3:$AI$823,25,FALSE)=0,VLOOKUP($A786,Economática!$A$3:$AI$823,25,FALSE)=\"-\"),1/0,VLOOKUP($A786,Economática!$A$3:$AI$823,25,FALSE)))","v":""},{"$f":"CONCATENATE(Economática!B764,\" \",Economática!C764)","v":" "}]
[{"$f":"IF(Economática!AG765=\"\",\"\",Economática!AG765)","v":""},{"$f":"IF($A787=\"\",\"\",VLOOKUP(VLOOKUP($A787,Economática!$A$3:$AI$823,6,FALSE),Correção!$B$16:$C$36,2,FALSE))","v":""},{"$f":"IF(Economática!B765=\"\",\"\",Economática!B765)","v":""},{"$f":"IF($A787=\"\",\"\",IF(OR(VLOOKUP($A787,Economática!$A$3:$AI$823,8,FALSE)=0,VLOOKUP($A787,Economática!$A$3:$AI$823,8,FALSE)=\"-\"),1/0,VLOOKUP($A787,Economática!$A$3:$AI$823,8,FALSE)))","v":""},{"$f":"IF(A787=\"\",\"\",IF(ISERROR(VLOOKUP(A787,Correção!$B$2:$G$13,9,FALSE)),VLOOKUP($A787,Economática!$A$3:$AI$823,9,FALSE),VLOOKUP(A787,Correção!$B$2:$G$13,9,FALSE)))","v":""},{"$f":"IF($A787=\"\",\"\",Economática!G765)","v":""},{"$f":"IF($A787=\"\",\"\",IF(OR(VLOOKUP($A787,Economática!$A$3:$AI$823,10,FALSE)=0,VLOOKUP($A787,Economática!$A$3:$AI$823,10,FALSE)=\"-\"),1/0,VLOOKUP($A787,Economática!$A$3:$AI$823,10,FALSE)))","v":""},{"$f":"IF($A787=\"\",\"\",IF(OR(VLOOKUP($A787,Economática!$A$3:$AI$823,11,FALSE)=0,VLOOKUP($A787,Economática!$A$3:$AI$823,11,FALSE)=\"-\"),1/0,VLOOKUP($A787,Economática!$A$3:$AI$823,11,FALSE)))","v":""},{"$f":"IF($A787=\"\",\"\",IF(OR(VLOOKUP($A787,Economática!$A$3:$AI$823,12,FALSE)=0,VLOOKUP($A787,Economática!$A$3:$AI$823,12,FALSE)=\"-\"),1/0,VLOOKUP($A787,Economática!$A$3:$AI$823,12,FALSE)))","v":""},{"$f":"IF($A787=\"\",\"\",IF(OR(VLOOKUP($A787,Economática!$A$3:$AI$823,13,FALSE)=0,VLOOKUP($A787,Economática!$A$3:$AI$823,13,FALSE)=\"-\"),1/0,VLOOKUP($A787,Economática!$A$3:$AI$823,13,FALSE)))","v":""},{"$f":"IF($A787=\"\",\"\",IF(OR(VLOOKUP($A787,Economática!$A$3:$AI$823,14,FALSE)=0,VLOOKUP($A787,Economática!$A$3:$AI$823,14,FALSE)=\"-\"),1/0,VLOOKUP($A787,Economática!$A$3:$AI$823,14,FALSE)))","v":""},{"$f":"IF($A787=\"\",\"\",IF(OR(VLOOKUP($A787,Economática!$A$3:$AI$823,15,FALSE)=0,VLOOKUP($A787,Economática!$A$3:$AI$823,15,FALSE)=\"-\"),1/0,VLOOKUP($A787,Economática!$A$3:$AI$823,15,FALSE)))","v":""},{"$f":"IF($A787=\"\",\"\",IF(OR(VLOOKUP($A787,Economática!$A$3:$AI$823,16,FALSE)=0,VLOOKUP($A787,Economática!$A$3:$AI$823,16,FALSE)=\"-\"),1/0,VLOOKUP($A787,Economática!$A$3:$AI$823,16,FALSE)))","v":""},{"$f":"IF($A787=\"\",\"\",IF(OR(VLOOKUP($A787,Economática!$A$3:$AI$823,17,FALSE)=0,VLOOKUP($A787,Economática!$A$3:$AI$823,17,FALSE)=\"-\"),1/0,VLOOKUP($A787,Economática!$A$3:$AI$823,17,FALSE)))","v":""},{"$f":"IF($A787=\"\",\"\",IF(OR(VLOOKUP($A787,Economática!$A$3:$AI$823,18,FALSE)=0,VLOOKUP($A787,Economática!$A$3:$AI$823,18,FALSE)=\"-\"),1/0,VLOOKUP($A787,Economática!$A$3:$AI$823,18,FALSE)))","v":""},{"$f":"IF($A787=\"\",\"\",IF(OR(VLOOKUP($A787,Economática!$A$3:$AI$823,19,FALSE)=0,VLOOKUP($A787,Economática!$A$3:$AI$823,19,FALSE)=\"-\"),1/0,VLOOKUP($A787,Economática!$A$3:$AI$823,19,FALSE)))","v":""},{"$f":"IF($A787=\"\",\"\",VLOOKUP($A787,Economática!$A$3:$AI$823,20,FALSE)/E787)","v":""},"","","",{"$f":"IF($A787=\"\",\"\",IF(OR(VLOOKUP($A787,Economática!$A$3:$AI$823,21,FALSE)/100=0,VLOOKUP($A787,Economática!$A$3:$AI$823,21,FALSE)/100=\"-\"),1/0,VLOOKUP($A787,Economática!$A$3:$AI$823,21,FALSE)/100))","v":""},{"$f":"IF($A787=\"\",\"\",IF(OR(VLOOKUP($A787,Economática!$A$3:$AI$823,22,FALSE)/100=0,VLOOKUP($A787,Economática!$A$3:$AI$823,22,FALSE)/100=\"-\"),1/0,VLOOKUP($A787,Economática!$A$3:$AI$823,22,FALSE)/100))","v":""},{"$f":"IF($A787=\"\",\"\",IF(OR(VLOOKUP($A787,Economática!$A$3:$AI$823,23,FALSE)=0,VLOOKUP($A787,Economática!$A$3:$AI$823,23,FALSE)=\"-\"),1/0,VLOOKUP($A787,Economática!$A$3:$AI$823,23,FALSE)))","v":""},{"$f":"IF($A787=\"\",\"\",IF(OR(VLOOKUP($A787,Economática!$A$3:$AI$823,24,FALSE)=0,VLOOKUP($A787,Economática!$A$3:$AI$823,24,FALSE)=\"-\"),1/0,VLOOKUP($A787,Economática!$A$3:$AI$823,24,FALSE)))","v":""},{"$f":"IF($A787=\"\",\"\",IF(OR(VLOOKUP($A787,Economática!$A$3:$AI$823,25,FALSE)=0,VLOOKUP($A787,Economática!$A$3:$AI$823,25,FALSE)=\"-\"),1/0,VLOOKUP($A787,Economática!$A$3:$AI$823,25,FALSE)))","v":""},{"$f":"IF($A787=\"\",\"\",IF(ISERROR((F787+VLOOKUP($A787,Economática!$A$3:$AI$823,26,FALSE))/Y787),(F787+VLOOKUP($A787,Economática!$A$3:$AI$823,26,FALSE))/Y787,(F787+VLOOKUP($A787,Economática!$A$3:$AI$823,26,FALSE))/Y787))","v":""},{"$f":"IF($A787=\"\",\"\",IF(OR(-VLOOKUP($A787,Economática!$A$3:$AI$823,27,FALSE)=0,-VLOOKUP($A787,Economática!$A$3:$AI$823,27,FALSE)=\"-\"),1/0,-VLOOKUP($A787,Economática!$A$3:$AI$823,27,FALSE)))","v":""},"",{"$f":"IF($A787=\"\",\"\",IF(OR(VLOOKUP($A787,Economática!$A$3:$AI$823,28,FALSE)=0,VLOOKUP($A787,Economática!$A$3:$AI$823,28,FALSE)=\"-\"),1/0,VLOOKUP($A787,Economática!$A$3:$AI$823,28,FALSE)))","v":""},{"$f":"IF($A787=\"\",\"\",IF(OR(VLOOKUP($A787,Economática!$A$3:$AI$823,29,FALSE)=0,VLOOKUP($A787,Economática!$A$3:$AI$823,29,FALSE)=\"-\"),1/0,VLOOKUP($A787,Economática!$A$3:$AI$823,29,FALSE)))","v":""},{"$f":"IF($A787=\"\",\"\",IF(OR(VLOOKUP($A787,Economática!$A$3:$AI$823,30,FALSE)/E787=0,VLOOKUP($A787,Economática!$A$3:$AI$823,30,FALSE)/E787=\"-\",VLOOKUP($A787,Economática!$A$3:$AI$823,30,FALSE)/E787<33.33%,VLOOKUP($A787,Economática!$A$3:$AI$823,30,FALSE)/E787>100%),1/0,VLOOKUP($A787,Economática!$A$3:$AI$823,30,FALSE)/E787))","v":""},"",{"$f":"IF($A787=\"\",\"\",IF(OR(VLOOKUP($A787,Economática!$A$3:$AI$823,25,FALSE)=0,VLOOKUP($A787,Economática!$A$3:$AI$823,25,FALSE)=\"-\"),1/0,VLOOKUP($A787,Economática!$A$3:$AI$823,25,FALSE)))","v":""},{"$f":"CONCATENATE(Economática!B765,\" \",Economática!C765)","v":" "}]
[{"$f":"IF(Economática!AG766=\"\",\"\",Economática!AG766)","v":""},{"$f":"IF($A788=\"\",\"\",VLOOKUP(VLOOKUP($A788,Economática!$A$3:$AI$823,6,FALSE),Correção!$B$16:$C$36,2,FALSE))","v":""},{"$f":"IF(Economática!B766=\"\",\"\",Economática!B766)","v":""},{"$f":"IF($A788=\"\",\"\",IF(OR(VLOOKUP($A788,Economática!$A$3:$AI$823,8,FALSE)=0,VLOOKUP($A788,Economática!$A$3:$AI$823,8,FALSE)=\"-\"),1/0,VLOOKUP($A788,Economática!$A$3:$AI$823,8,FALSE)))","v":""},{"$f":"IF(A788=\"\",\"\",IF(ISERROR(VLOOKUP(A788,Correção!$B$2:$G$13,9,FALSE)),VLOOKUP($A788,Economática!$A$3:$AI$823,9,FALSE),VLOOKUP(A788,Correção!$B$2:$G$13,9,FALSE)))","v":""},{"$f":"IF($A788=\"\",\"\",Economática!G766)","v":""},{"$f":"IF($A788=\"\",\"\",IF(OR(VLOOKUP($A788,Economática!$A$3:$AI$823,10,FALSE)=0,VLOOKUP($A788,Economática!$A$3:$AI$823,10,FALSE)=\"-\"),1/0,VLOOKUP($A788,Economática!$A$3:$AI$823,10,FALSE)))","v":""},{"$f":"IF($A788=\"\",\"\",IF(OR(VLOOKUP($A788,Economática!$A$3:$AI$823,11,FALSE)=0,VLOOKUP($A788,Economática!$A$3:$AI$823,11,FALSE)=\"-\"),1/0,VLOOKUP($A788,Economática!$A$3:$AI$823,11,FALSE)))","v":""},{"$f":"IF($A788=\"\",\"\",IF(OR(VLOOKUP($A788,Economática!$A$3:$AI$823,12,FALSE)=0,VLOOKUP($A788,Economática!$A$3:$AI$823,12,FALSE)=\"-\"),1/0,VLOOKUP($A788,Economática!$A$3:$AI$823,12,FALSE)))","v":""},{"$f":"IF($A788=\"\",\"\",IF(OR(VLOOKUP($A788,Economática!$A$3:$AI$823,13,FALSE)=0,VLOOKUP($A788,Economática!$A$3:$AI$823,13,FALSE)=\"-\"),1/0,VLOOKUP($A788,Economática!$A$3:$AI$823,13,FALSE)))","v":""},{"$f":"IF($A788=\"\",\"\",IF(OR(VLOOKUP($A788,Economática!$A$3:$AI$823,14,FALSE)=0,VLOOKUP($A788,Economática!$A$3:$AI$823,14,FALSE)=\"-\"),1/0,VLOOKUP($A788,Economática!$A$3:$AI$823,14,FALSE)))","v":""},{"$f":"IF($A788=\"\",\"\",IF(OR(VLOOKUP($A788,Economática!$A$3:$AI$823,15,FALSE)=0,VLOOKUP($A788,Economática!$A$3:$AI$823,15,FALSE)=\"-\"),1/0,VLOOKUP($A788,Economática!$A$3:$AI$823,15,FALSE)))","v":""},{"$f":"IF($A788=\"\",\"\",IF(OR(VLOOKUP($A788,Economática!$A$3:$AI$823,16,FALSE)=0,VLOOKUP($A788,Economática!$A$3:$AI$823,16,FALSE)=\"-\"),1/0,VLOOKUP($A788,Economática!$A$3:$AI$823,16,FALSE)))","v":""},{"$f":"IF($A788=\"\",\"\",IF(OR(VLOOKUP($A788,Economática!$A$3:$AI$823,17,FALSE)=0,VLOOKUP($A788,Economática!$A$3:$AI$823,17,FALSE)=\"-\"),1/0,VLOOKUP($A788,Economática!$A$3:$AI$823,17,FALSE)))","v":""},{"$f":"IF($A788=\"\",\"\",IF(OR(VLOOKUP($A788,Economática!$A$3:$AI$823,18,FALSE)=0,VLOOKUP($A788,Economática!$A$3:$AI$823,18,FALSE)=\"-\"),1/0,VLOOKUP($A788,Economática!$A$3:$AI$823,18,FALSE)))","v":""},{"$f":"IF($A788=\"\",\"\",IF(OR(VLOOKUP($A788,Economática!$A$3:$AI$823,19,FALSE)=0,VLOOKUP($A788,Economática!$A$3:$AI$823,19,FALSE)=\"-\"),1/0,VLOOKUP($A788,Economática!$A$3:$AI$823,19,FALSE)))","v":""},{"$f":"IF($A788=\"\",\"\",VLOOKUP($A788,Economática!$A$3:$AI$823,20,FALSE)/E788)","v":""},"","","",{"$f":"IF($A788=\"\",\"\",IF(OR(VLOOKUP($A788,Economática!$A$3:$AI$823,21,FALSE)/100=0,VLOOKUP($A788,Economática!$A$3:$AI$823,21,FALSE)/100=\"-\"),1/0,VLOOKUP($A788,Economática!$A$3:$AI$823,21,FALSE)/100))","v":""},{"$f":"IF($A788=\"\",\"\",IF(OR(VLOOKUP($A788,Economática!$A$3:$AI$823,22,FALSE)/100=0,VLOOKUP($A788,Economática!$A$3:$AI$823,22,FALSE)/100=\"-\"),1/0,VLOOKUP($A788,Economática!$A$3:$AI$823,22,FALSE)/100))","v":""},{"$f":"IF($A788=\"\",\"\",IF(OR(VLOOKUP($A788,Economática!$A$3:$AI$823,23,FALSE)=0,VLOOKUP($A788,Economática!$A$3:$AI$823,23,FALSE)=\"-\"),1/0,VLOOKUP($A788,Economática!$A$3:$AI$823,23,FALSE)))","v":""},{"$f":"IF($A788=\"\",\"\",IF(OR(VLOOKUP($A788,Economática!$A$3:$AI$823,24,FALSE)=0,VLOOKUP($A788,Economática!$A$3:$AI$823,24,FALSE)=\"-\"),1/0,VLOOKUP($A788,Economática!$A$3:$AI$823,24,FALSE)))","v":""},{"$f":"IF($A788=\"\",\"\",IF(OR(VLOOKUP($A788,Economática!$A$3:$AI$823,25,FALSE)=0,VLOOKUP($A788,Economática!$A$3:$AI$823,25,FALSE)=\"-\"),1/0,VLOOKUP($A788,Economática!$A$3:$AI$823,25,FALSE)))","v":""},{"$f":"IF($A788=\"\",\"\",IF(ISERROR((F788+VLOOKUP($A788,Economática!$A$3:$AI$823,26,FALSE))/Y788),(F788+VLOOKUP($A788,Economática!$A$3:$AI$823,26,FALSE))/Y788,(F788+VLOOKUP($A788,Economática!$A$3:$AI$823,26,FALSE))/Y788))","v":""},{"$f":"IF($A788=\"\",\"\",IF(OR(-VLOOKUP($A788,Economática!$A$3:$AI$823,27,FALSE)=0,-VLOOKUP($A788,Economática!$A$3:$AI$823,27,FALSE)=\"-\"),1/0,-VLOOKUP($A788,Economática!$A$3:$AI$823,27,FALSE)))","v":""},"",{"$f":"IF($A788=\"\",\"\",IF(OR(VLOOKUP($A788,Economática!$A$3:$AI$823,28,FALSE)=0,VLOOKUP($A788,Economática!$A$3:$AI$823,28,FALSE)=\"-\"),1/0,VLOOKUP($A788,Economática!$A$3:$AI$823,28,FALSE)))","v":""},{"$f":"IF($A788=\"\",\"\",IF(OR(VLOOKUP($A788,Economática!$A$3:$AI$823,29,FALSE)=0,VLOOKUP($A788,Economática!$A$3:$AI$823,29,FALSE)=\"-\"),1/0,VLOOKUP($A788,Economática!$A$3:$AI$823,29,FALSE)))","v":""},{"$f":"IF($A788=\"\",\"\",IF(OR(VLOOKUP($A788,Economática!$A$3:$AI$823,30,FALSE)/E788=0,VLOOKUP($A788,Economática!$A$3:$AI$823,30,FALSE)/E788=\"-\",VLOOKUP($A788,Economática!$A$3:$AI$823,30,FALSE)/E788<33.33%,VLOOKUP($A788,Economática!$A$3:$AI$823,30,FALSE)/E788>100%),1/0,VLOOKUP($A788,Economática!$A$3:$AI$823,30,FALSE)/E788))","v":""},"",{"$f":"IF($A788=\"\",\"\",IF(OR(VLOOKUP($A788,Economática!$A$3:$AI$823,25,FALSE)=0,VLOOKUP($A788,Economática!$A$3:$AI$823,25,FALSE)=\"-\"),1/0,VLOOKUP($A788,Economática!$A$3:$AI$823,25,FALSE)))","v":""},{"$f":"CONCATENATE(Economática!B766,\" \",Economática!C766)","v":" "}]
[{"$f":"IF(Economática!AG767=\"\",\"\",Economática!AG767)","v":""},{"$f":"IF($A789=\"\",\"\",VLOOKUP(VLOOKUP($A789,Economática!$A$3:$AI$823,6,FALSE),Correção!$B$16:$C$36,2,FALSE))","v":""},{"$f":"IF(Economática!B767=\"\",\"\",Economática!B767)","v":""},{"$f":"IF($A789=\"\",\"\",IF(OR(VLOOKUP($A789,Economática!$A$3:$AI$823,8,FALSE)=0,VLOOKUP($A789,Economática!$A$3:$AI$823,8,FALSE)=\"-\"),1/0,VLOOKUP($A789,Economática!$A$3:$AI$823,8,FALSE)))","v":""},{"$f":"IF(A789=\"\",\"\",IF(ISERROR(VLOOKUP(A789,Correção!$B$2:$G$13,9,FALSE)),VLOOKUP($A789,Economática!$A$3:$AI$823,9,FALSE),VLOOKUP(A789,Correção!$B$2:$G$13,9,FALSE)))","v":""},{"$f":"IF($A789=\"\",\"\",Economática!G767)","v":""},{"$f":"IF($A789=\"\",\"\",IF(OR(VLOOKUP($A789,Economática!$A$3:$AI$823,10,FALSE)=0,VLOOKUP($A789,Economática!$A$3:$AI$823,10,FALSE)=\"-\"),1/0,VLOOKUP($A789,Economática!$A$3:$AI$823,10,FALSE)))","v":""},{"$f":"IF($A789=\"\",\"\",IF(OR(VLOOKUP($A789,Economática!$A$3:$AI$823,11,FALSE)=0,VLOOKUP($A789,Economática!$A$3:$AI$823,11,FALSE)=\"-\"),1/0,VLOOKUP($A789,Economática!$A$3:$AI$823,11,FALSE)))","v":""},{"$f":"IF($A789=\"\",\"\",IF(OR(VLOOKUP($A789,Economática!$A$3:$AI$823,12,FALSE)=0,VLOOKUP($A789,Economática!$A$3:$AI$823,12,FALSE)=\"-\"),1/0,VLOOKUP($A789,Economática!$A$3:$AI$823,12,FALSE)))","v":""},{"$f":"IF($A789=\"\",\"\",IF(OR(VLOOKUP($A789,Economática!$A$3:$AI$823,13,FALSE)=0,VLOOKUP($A789,Economática!$A$3:$AI$823,13,FALSE)=\"-\"),1/0,VLOOKUP($A789,Economática!$A$3:$AI$823,13,FALSE)))","v":""},{"$f":"IF($A789=\"\",\"\",IF(OR(VLOOKUP($A789,Economática!$A$3:$AI$823,14,FALSE)=0,VLOOKUP($A789,Economática!$A$3:$AI$823,14,FALSE)=\"-\"),1/0,VLOOKUP($A789,Economática!$A$3:$AI$823,14,FALSE)))","v":""},{"$f":"IF($A789=\"\",\"\",IF(OR(VLOOKUP($A789,Economática!$A$3:$AI$823,15,FALSE)=0,VLOOKUP($A789,Economática!$A$3:$AI$823,15,FALSE)=\"-\"),1/0,VLOOKUP($A789,Economática!$A$3:$AI$823,15,FALSE)))","v":""},{"$f":"IF($A789=\"\",\"\",IF(OR(VLOOKUP($A789,Economática!$A$3:$AI$823,16,FALSE)=0,VLOOKUP($A789,Economática!$A$3:$AI$823,16,FALSE)=\"-\"),1/0,VLOOKUP($A789,Economática!$A$3:$AI$823,16,FALSE)))","v":""},{"$f":"IF($A789=\"\",\"\",IF(OR(VLOOKUP($A789,Economática!$A$3:$AI$823,17,FALSE)=0,VLOOKUP($A789,Economática!$A$3:$AI$823,17,FALSE)=\"-\"),1/0,VLOOKUP($A789,Economática!$A$3:$AI$823,17,FALSE)))","v":""},{"$f":"IF($A789=\"\",\"\",IF(OR(VLOOKUP($A789,Economática!$A$3:$AI$823,18,FALSE)=0,VLOOKUP($A789,Economática!$A$3:$AI$823,18,FALSE)=\"-\"),1/0,VLOOKUP($A789,Economática!$A$3:$AI$823,18,FALSE)))","v":""},{"$f":"IF($A789=\"\",\"\",IF(OR(VLOOKUP($A789,Economática!$A$3:$AI$823,19,FALSE)=0,VLOOKUP($A789,Economática!$A$3:$AI$823,19,FALSE)=\"-\"),1/0,VLOOKUP($A789,Economática!$A$3:$AI$823,19,FALSE)))","v":""},{"$f":"IF($A789=\"\",\"\",VLOOKUP($A789,Economática!$A$3:$AI$823,20,FALSE)/E789)","v":""},"","","",{"$f":"IF($A789=\"\",\"\",IF(OR(VLOOKUP($A789,Economática!$A$3:$AI$823,21,FALSE)/100=0,VLOOKUP($A789,Economática!$A$3:$AI$823,21,FALSE)/100=\"-\"),1/0,VLOOKUP($A789,Economática!$A$3:$AI$823,21,FALSE)/100))","v":""},{"$f":"IF($A789=\"\",\"\",IF(OR(VLOOKUP($A789,Economática!$A$3:$AI$823,22,FALSE)/100=0,VLOOKUP($A789,Economática!$A$3:$AI$823,22,FALSE)/100=\"-\"),1/0,VLOOKUP($A789,Economática!$A$3:$AI$823,22,FALSE)/100))","v":""},{"$f":"IF($A789=\"\",\"\",IF(OR(VLOOKUP($A789,Economática!$A$3:$AI$823,23,FALSE)=0,VLOOKUP($A789,Economática!$A$3:$AI$823,23,FALSE)=\"-\"),1/0,VLOOKUP($A789,Economática!$A$3:$AI$823,23,FALSE)))","v":""},{"$f":"IF($A789=\"\",\"\",IF(OR(VLOOKUP($A789,Economática!$A$3:$AI$823,24,FALSE)=0,VLOOKUP($A789,Economática!$A$3:$AI$823,24,FALSE)=\"-\"),1/0,VLOOKUP($A789,Economática!$A$3:$AI$823,24,FALSE)))","v":""},{"$f":"IF($A789=\"\",\"\",IF(OR(VLOOKUP($A789,Economática!$A$3:$AI$823,25,FALSE)=0,VLOOKUP($A789,Economática!$A$3:$AI$823,25,FALSE)=\"-\"),1/0,VLOOKUP($A789,Economática!$A$3:$AI$823,25,FALSE)))","v":""},{"$f":"IF($A789=\"\",\"\",IF(ISERROR((F789+VLOOKUP($A789,Economática!$A$3:$AI$823,26,FALSE))/Y789),(F789+VLOOKUP($A789,Economática!$A$3:$AI$823,26,FALSE))/Y789,(F789+VLOOKUP($A789,Economática!$A$3:$AI$823,26,FALSE))/Y789))","v":""},{"$f":"IF($A789=\"\",\"\",IF(OR(-VLOOKUP($A789,Economática!$A$3:$AI$823,27,FALSE)=0,-VLOOKUP($A789,Economática!$A$3:$AI$823,27,FALSE)=\"-\"),1/0,-VLOOKUP($A789,Economática!$A$3:$AI$823,27,FALSE)))","v":""},"",{"$f":"IF($A789=\"\",\"\",IF(OR(VLOOKUP($A789,Economática!$A$3:$AI$823,28,FALSE)=0,VLOOKUP($A789,Economática!$A$3:$AI$823,28,FALSE)=\"-\"),1/0,VLOOKUP($A789,Economática!$A$3:$AI$823,28,FALSE)))","v":""},{"$f":"IF($A789=\"\",\"\",IF(OR(VLOOKUP($A789,Economática!$A$3:$AI$823,29,FALSE)=0,VLOOKUP($A789,Economática!$A$3:$AI$823,29,FALSE)=\"-\"),1/0,VLOOKUP($A789,Economática!$A$3:$AI$823,29,FALSE)))","v":""},{"$f":"IF($A789=\"\",\"\",IF(OR(VLOOKUP($A789,Economática!$A$3:$AI$823,30,FALSE)/E789=0,VLOOKUP($A789,Economática!$A$3:$AI$823,30,FALSE)/E789=\"-\",VLOOKUP($A789,Economática!$A$3:$AI$823,30,FALSE)/E789<33.33%,VLOOKUP($A789,Economática!$A$3:$AI$823,30,FALSE)/E789>100%),1/0,VLOOKUP($A789,Economática!$A$3:$AI$823,30,FALSE)/E789))","v":""},"",{"$f":"IF($A789=\"\",\"\",IF(OR(VLOOKUP($A789,Economática!$A$3:$AI$823,25,FALSE)=0,VLOOKUP($A789,Economática!$A$3:$AI$823,25,FALSE)=\"-\"),1/0,VLOOKUP($A789,Economática!$A$3:$AI$823,25,FALSE)))","v":""},{"$f":"CONCATENATE(Economática!B767,\" \",Economática!C767)","v":" "}]
[{"$f":"IF(Economática!AG768=\"\",\"\",Economática!AG768)","v":""},{"$f":"IF($A790=\"\",\"\",VLOOKUP(VLOOKUP($A790,Economática!$A$3:$AI$823,6,FALSE),Correção!$B$16:$C$36,2,FALSE))","v":""},{"$f":"IF(Economática!B768=\"\",\"\",Economática!B768)","v":""},{"$f":"IF($A790=\"\",\"\",IF(OR(VLOOKUP($A790,Economática!$A$3:$AI$823,8,FALSE)=0,VLOOKUP($A790,Economática!$A$3:$AI$823,8,FALSE)=\"-\"),1/0,VLOOKUP($A790,Economática!$A$3:$AI$823,8,FALSE)))","v":""},{"$f":"IF(A790=\"\",\"\",IF(ISERROR(VLOOKUP(A790,Correção!$B$2:$G$13,9,FALSE)),VLOOKUP($A790,Economática!$A$3:$AI$823,9,FALSE),VLOOKUP(A790,Correção!$B$2:$G$13,9,FALSE)))","v":""},{"$f":"IF($A790=\"\",\"\",Economática!G768)","v":""},{"$f":"IF($A790=\"\",\"\",IF(OR(VLOOKUP($A790,Economática!$A$3:$AI$823,10,FALSE)=0,VLOOKUP($A790,Economática!$A$3:$AI$823,10,FALSE)=\"-\"),1/0,VLOOKUP($A790,Economática!$A$3:$AI$823,10,FALSE)))","v":""},{"$f":"IF($A790=\"\",\"\",IF(OR(VLOOKUP($A790,Economática!$A$3:$AI$823,11,FALSE)=0,VLOOKUP($A790,Economática!$A$3:$AI$823,11,FALSE)=\"-\"),1/0,VLOOKUP($A790,Economática!$A$3:$AI$823,11,FALSE)))","v":""},{"$f":"IF($A790=\"\",\"\",IF(OR(VLOOKUP($A790,Economática!$A$3:$AI$823,12,FALSE)=0,VLOOKUP($A790,Economática!$A$3:$AI$823,12,FALSE)=\"-\"),1/0,VLOOKUP($A790,Economática!$A$3:$AI$823,12,FALSE)))","v":""},{"$f":"IF($A790=\"\",\"\",IF(OR(VLOOKUP($A790,Economática!$A$3:$AI$823,13,FALSE)=0,VLOOKUP($A790,Economática!$A$3:$AI$823,13,FALSE)=\"-\"),1/0,VLOOKUP($A790,Economática!$A$3:$AI$823,13,FALSE)))","v":""},{"$f":"IF($A790=\"\",\"\",IF(OR(VLOOKUP($A790,Economática!$A$3:$AI$823,14,FALSE)=0,VLOOKUP($A790,Economática!$A$3:$AI$823,14,FALSE)=\"-\"),1/0,VLOOKUP($A790,Economática!$A$3:$AI$823,14,FALSE)))","v":""},{"$f":"IF($A790=\"\",\"\",IF(OR(VLOOKUP($A790,Economática!$A$3:$AI$823,15,FALSE)=0,VLOOKUP($A790,Economática!$A$3:$AI$823,15,FALSE)=\"-\"),1/0,VLOOKUP($A790,Economática!$A$3:$AI$823,15,FALSE)))","v":""},{"$f":"IF($A790=\"\",\"\",IF(OR(VLOOKUP($A790,Economática!$A$3:$AI$823,16,FALSE)=0,VLOOKUP($A790,Economática!$A$3:$AI$823,16,FALSE)=\"-\"),1/0,VLOOKUP($A790,Economática!$A$3:$AI$823,16,FALSE)))","v":""},{"$f":"IF($A790=\"\",\"\",IF(OR(VLOOKUP($A790,Economática!$A$3:$AI$823,17,FALSE)=0,VLOOKUP($A790,Economática!$A$3:$AI$823,17,FALSE)=\"-\"),1/0,VLOOKUP($A790,Economática!$A$3:$AI$823,17,FALSE)))","v":""},{"$f":"IF($A790=\"\",\"\",IF(OR(VLOOKUP($A790,Economática!$A$3:$AI$823,18,FALSE)=0,VLOOKUP($A790,Economática!$A$3:$AI$823,18,FALSE)=\"-\"),1/0,VLOOKUP($A790,Economática!$A$3:$AI$823,18,FALSE)))","v":""},{"$f":"IF($A790=\"\",\"\",IF(OR(VLOOKUP($A790,Economática!$A$3:$AI$823,19,FALSE)=0,VLOOKUP($A790,Economática!$A$3:$AI$823,19,FALSE)=\"-\"),1/0,VLOOKUP($A790,Economática!$A$3:$AI$823,19,FALSE)))","v":""},{"$f":"IF($A790=\"\",\"\",VLOOKUP($A790,Economática!$A$3:$AI$823,20,FALSE)/E790)","v":""},"","","",{"$f":"IF($A790=\"\",\"\",IF(OR(VLOOKUP($A790,Economática!$A$3:$AI$823,21,FALSE)/100=0,VLOOKUP($A790,Economática!$A$3:$AI$823,21,FALSE)/100=\"-\"),1/0,VLOOKUP($A790,Economática!$A$3:$AI$823,21,FALSE)/100))","v":""},{"$f":"IF($A790=\"\",\"\",IF(OR(VLOOKUP($A790,Economática!$A$3:$AI$823,22,FALSE)/100=0,VLOOKUP($A790,Economática!$A$3:$AI$823,22,FALSE)/100=\"-\"),1/0,VLOOKUP($A790,Economática!$A$3:$AI$823,22,FALSE)/100))","v":""},{"$f":"IF($A790=\"\",\"\",IF(OR(VLOOKUP($A790,Economática!$A$3:$AI$823,23,FALSE)=0,VLOOKUP($A790,Economática!$A$3:$AI$823,23,FALSE)=\"-\"),1/0,VLOOKUP($A790,Economática!$A$3:$AI$823,23,FALSE)))","v":""},{"$f":"IF($A790=\"\",\"\",IF(OR(VLOOKUP($A790,Economática!$A$3:$AI$823,24,FALSE)=0,VLOOKUP($A790,Economática!$A$3:$AI$823,24,FALSE)=\"-\"),1/0,VLOOKUP($A790,Economática!$A$3:$AI$823,24,FALSE)))","v":""},{"$f":"IF($A790=\"\",\"\",IF(OR(VLOOKUP($A790,Economática!$A$3:$AI$823,25,FALSE)=0,VLOOKUP($A790,Economática!$A$3:$AI$823,25,FALSE)=\"-\"),1/0,VLOOKUP($A790,Economática!$A$3:$AI$823,25,FALSE)))","v":""},{"$f":"IF($A790=\"\",\"\",IF(ISERROR((F790+VLOOKUP($A790,Economática!$A$3:$AI$823,26,FALSE))/Y790),(F790+VLOOKUP($A790,Economática!$A$3:$AI$823,26,FALSE))/Y790,(F790+VLOOKUP($A790,Economática!$A$3:$AI$823,26,FALSE))/Y790))","v":""},{"$f":"IF($A790=\"\",\"\",IF(OR(-VLOOKUP($A790,Economática!$A$3:$AI$823,27,FALSE)=0,-VLOOKUP($A790,Economática!$A$3:$AI$823,27,FALSE)=\"-\"),1/0,-VLOOKUP($A790,Economática!$A$3:$AI$823,27,FALSE)))","v":""},"",{"$f":"IF($A790=\"\",\"\",IF(OR(VLOOKUP($A790,Economática!$A$3:$AI$823,28,FALSE)=0,VLOOKUP($A790,Economática!$A$3:$AI$823,28,FALSE)=\"-\"),1/0,VLOOKUP($A790,Economática!$A$3:$AI$823,28,FALSE)))","v":""},{"$f":"IF($A790=\"\",\"\",IF(OR(VLOOKUP($A790,Economática!$A$3:$AI$823,29,FALSE)=0,VLOOKUP($A790,Economática!$A$3:$AI$823,29,FALSE)=\"-\"),1/0,VLOOKUP($A790,Economática!$A$3:$AI$823,29,FALSE)))","v":""},{"$f":"IF($A790=\"\",\"\",IF(OR(VLOOKUP($A790,Economática!$A$3:$AI$823,30,FALSE)/E790=0,VLOOKUP($A790,Economática!$A$3:$AI$823,30,FALSE)/E790=\"-\",VLOOKUP($A790,Economática!$A$3:$AI$823,30,FALSE)/E790<33.33%,VLOOKUP($A790,Economática!$A$3:$AI$823,30,FALSE)/E790>100%),1/0,VLOOKUP($A790,Economática!$A$3:$AI$823,30,FALSE)/E790))","v":""},"",{"$f":"IF($A790=\"\",\"\",IF(OR(VLOOKUP($A790,Economática!$A$3:$AI$823,25,FALSE)=0,VLOOKUP($A790,Economática!$A$3:$AI$823,25,FALSE)=\"-\"),1/0,VLOOKUP($A790,Economática!$A$3:$AI$823,25,FALSE)))","v":""},{"$f":"CONCATENATE(Economática!B768,\" \",Economática!C768)","v":" "}]
[{"$f":"IF(Economática!AG769=\"\",\"\",Economática!AG769)","v":""},{"$f":"IF($A791=\"\",\"\",VLOOKUP(VLOOKUP($A791,Economática!$A$3:$AI$823,6,FALSE),Correção!$B$16:$C$36,2,FALSE))","v":""},{"$f":"IF(Economática!B769=\"\",\"\",Economática!B769)","v":""},{"$f":"IF($A791=\"\",\"\",IF(OR(VLOOKUP($A791,Economática!$A$3:$AI$823,8,FALSE)=0,VLOOKUP($A791,Economática!$A$3:$AI$823,8,FALSE)=\"-\"),1/0,VLOOKUP($A791,Economática!$A$3:$AI$823,8,FALSE)))","v":""},{"$f":"IF(A791=\"\",\"\",IF(ISERROR(VLOOKUP(A791,Correção!$B$2:$G$13,9,FALSE)),VLOOKUP($A791,Economática!$A$3:$AI$823,9,FALSE),VLOOKUP(A791,Correção!$B$2:$G$13,9,FALSE)))","v":""},{"$f":"IF($A791=\"\",\"\",Economática!G769)","v":""},{"$f":"IF($A791=\"\",\"\",IF(OR(VLOOKUP($A791,Economática!$A$3:$AI$823,10,FALSE)=0,VLOOKUP($A791,Economática!$A$3:$AI$823,10,FALSE)=\"-\"),1/0,VLOOKUP($A791,Economática!$A$3:$AI$823,10,FALSE)))","v":""},{"$f":"IF($A791=\"\",\"\",IF(OR(VLOOKUP($A791,Economática!$A$3:$AI$823,11,FALSE)=0,VLOOKUP($A791,Economática!$A$3:$AI$823,11,FALSE)=\"-\"),1/0,VLOOKUP($A791,Economática!$A$3:$AI$823,11,FALSE)))","v":""},{"$f":"IF($A791=\"\",\"\",IF(OR(VLOOKUP($A791,Economática!$A$3:$AI$823,12,FALSE)=0,VLOOKUP($A791,Economática!$A$3:$AI$823,12,FALSE)=\"-\"),1/0,VLOOKUP($A791,Economática!$A$3:$AI$823,12,FALSE)))","v":""},{"$f":"IF($A791=\"\",\"\",IF(OR(VLOOKUP($A791,Economática!$A$3:$AI$823,13,FALSE)=0,VLOOKUP($A791,Economática!$A$3:$AI$823,13,FALSE)=\"-\"),1/0,VLOOKUP($A791,Economática!$A$3:$AI$823,13,FALSE)))","v":""},{"$f":"IF($A791=\"\",\"\",IF(OR(VLOOKUP($A791,Economática!$A$3:$AI$823,14,FALSE)=0,VLOOKUP($A791,Economática!$A$3:$AI$823,14,FALSE)=\"-\"),1/0,VLOOKUP($A791,Economática!$A$3:$AI$823,14,FALSE)))","v":""},{"$f":"IF($A791=\"\",\"\",IF(OR(VLOOKUP($A791,Economática!$A$3:$AI$823,15,FALSE)=0,VLOOKUP($A791,Economática!$A$3:$AI$823,15,FALSE)=\"-\"),1/0,VLOOKUP($A791,Economática!$A$3:$AI$823,15,FALSE)))","v":""},{"$f":"IF($A791=\"\",\"\",IF(OR(VLOOKUP($A791,Economática!$A$3:$AI$823,16,FALSE)=0,VLOOKUP($A791,Economática!$A$3:$AI$823,16,FALSE)=\"-\"),1/0,VLOOKUP($A791,Economática!$A$3:$AI$823,16,FALSE)))","v":""},{"$f":"IF($A791=\"\",\"\",IF(OR(VLOOKUP($A791,Economática!$A$3:$AI$823,17,FALSE)=0,VLOOKUP($A791,Economática!$A$3:$AI$823,17,FALSE)=\"-\"),1/0,VLOOKUP($A791,Economática!$A$3:$AI$823,17,FALSE)))","v":""},{"$f":"IF($A791=\"\",\"\",IF(OR(VLOOKUP($A791,Economática!$A$3:$AI$823,18,FALSE)=0,VLOOKUP($A791,Economática!$A$3:$AI$823,18,FALSE)=\"-\"),1/0,VLOOKUP($A791,Economática!$A$3:$AI$823,18,FALSE)))","v":""},{"$f":"IF($A791=\"\",\"\",IF(OR(VLOOKUP($A791,Economática!$A$3:$AI$823,19,FALSE)=0,VLOOKUP($A791,Economática!$A$3:$AI$823,19,FALSE)=\"-\"),1/0,VLOOKUP($A791,Economática!$A$3:$AI$823,19,FALSE)))","v":""},{"$f":"IF($A791=\"\",\"\",VLOOKUP($A791,Economática!$A$3:$AI$823,20,FALSE)/E791)","v":""},"","","",{"$f":"IF($A791=\"\",\"\",IF(OR(VLOOKUP($A791,Economática!$A$3:$AI$823,21,FALSE)/100=0,VLOOKUP($A791,Economática!$A$3:$AI$823,21,FALSE)/100=\"-\"),1/0,VLOOKUP($A791,Economática!$A$3:$AI$823,21,FALSE)/100))","v":""},{"$f":"IF($A791=\"\",\"\",IF(OR(VLOOKUP($A791,Economática!$A$3:$AI$823,22,FALSE)/100=0,VLOOKUP($A791,Economática!$A$3:$AI$823,22,FALSE)/100=\"-\"),1/0,VLOOKUP($A791,Economática!$A$3:$AI$823,22,FALSE)/100))","v":""},{"$f":"IF($A791=\"\",\"\",IF(OR(VLOOKUP($A791,Economática!$A$3:$AI$823,23,FALSE)=0,VLOOKUP($A791,Economática!$A$3:$AI$823,23,FALSE)=\"-\"),1/0,VLOOKUP($A791,Economática!$A$3:$AI$823,23,FALSE)))","v":""},{"$f":"IF($A791=\"\",\"\",IF(OR(VLOOKUP($A791,Economática!$A$3:$AI$823,24,FALSE)=0,VLOOKUP($A791,Economática!$A$3:$AI$823,24,FALSE)=\"-\"),1/0,VLOOKUP($A791,Economática!$A$3:$AI$823,24,FALSE)))","v":""},{"$f":"IF($A791=\"\",\"\",IF(OR(VLOOKUP($A791,Economática!$A$3:$AI$823,25,FALSE)=0,VLOOKUP($A791,Economática!$A$3:$AI$823,25,FALSE)=\"-\"),1/0,VLOOKUP($A791,Economática!$A$3:$AI$823,25,FALSE)))","v":""},{"$f":"IF($A791=\"\",\"\",IF(ISERROR((F791+VLOOKUP($A791,Economática!$A$3:$AI$823,26,FALSE))/Y791),(F791+VLOOKUP($A791,Economática!$A$3:$AI$823,26,FALSE))/Y791,(F791+VLOOKUP($A791,Economática!$A$3:$AI$823,26,FALSE))/Y791))","v":""},{"$f":"IF($A791=\"\",\"\",IF(OR(-VLOOKUP($A791,Economática!$A$3:$AI$823,27,FALSE)=0,-VLOOKUP($A791,Economática!$A$3:$AI$823,27,FALSE)=\"-\"),1/0,-VLOOKUP($A791,Economática!$A$3:$AI$823,27,FALSE)))","v":""},"",{"$f":"IF($A791=\"\",\"\",IF(OR(VLOOKUP($A791,Economática!$A$3:$AI$823,28,FALSE)=0,VLOOKUP($A791,Economática!$A$3:$AI$823,28,FALSE)=\"-\"),1/0,VLOOKUP($A791,Economática!$A$3:$AI$823,28,FALSE)))","v":""},{"$f":"IF($A791=\"\",\"\",IF(OR(VLOOKUP($A791,Economática!$A$3:$AI$823,29,FALSE)=0,VLOOKUP($A791,Economática!$A$3:$AI$823,29,FALSE)=\"-\"),1/0,VLOOKUP($A791,Economática!$A$3:$AI$823,29,FALSE)))","v":""},{"$f":"IF($A791=\"\",\"\",IF(OR(VLOOKUP($A791,Economática!$A$3:$AI$823,30,FALSE)/E791=0,VLOOKUP($A791,Economática!$A$3:$AI$823,30,FALSE)/E791=\"-\",VLOOKUP($A791,Economática!$A$3:$AI$823,30,FALSE)/E791<33.33%,VLOOKUP($A791,Economática!$A$3:$AI$823,30,FALSE)/E791>100%),1/0,VLOOKUP($A791,Economática!$A$3:$AI$823,30,FALSE)/E791))","v":""},"",{"$f":"IF($A791=\"\",\"\",IF(OR(VLOOKUP($A791,Economática!$A$3:$AI$823,25,FALSE)=0,VLOOKUP($A791,Economática!$A$3:$AI$823,25,FALSE)=\"-\"),1/0,VLOOKUP($A791,Economática!$A$3:$AI$823,25,FALSE)))","v":""},{"$f":"CONCATENATE(Economática!B769,\" \",Economática!C769)","v":" "}]
[{"$f":"IF(Economática!AG770=\"\",\"\",Economática!AG770)","v":""},{"$f":"IF($A792=\"\",\"\",VLOOKUP(VLOOKUP($A792,Economática!$A$3:$AI$823,6,FALSE),Correção!$B$16:$C$36,2,FALSE))","v":""},{"$f":"IF(Economática!B770=\"\",\"\",Economática!B770)","v":""},{"$f":"IF($A792=\"\",\"\",IF(OR(VLOOKUP($A792,Economática!$A$3:$AI$823,8,FALSE)=0,VLOOKUP($A792,Economática!$A$3:$AI$823,8,FALSE)=\"-\"),1/0,VLOOKUP($A792,Economática!$A$3:$AI$823,8,FALSE)))","v":""},{"$f":"IF(A792=\"\",\"\",IF(ISERROR(VLOOKUP(A792,Correção!$B$2:$G$13,9,FALSE)),VLOOKUP($A792,Economática!$A$3:$AI$823,9,FALSE),VLOOKUP(A792,Correção!$B$2:$G$13,9,FALSE)))","v":""},{"$f":"IF($A792=\"\",\"\",Economática!G770)","v":""},{"$f":"IF($A792=\"\",\"\",IF(OR(VLOOKUP($A792,Economática!$A$3:$AI$823,10,FALSE)=0,VLOOKUP($A792,Economática!$A$3:$AI$823,10,FALSE)=\"-\"),1/0,VLOOKUP($A792,Economática!$A$3:$AI$823,10,FALSE)))","v":""},{"$f":"IF($A792=\"\",\"\",IF(OR(VLOOKUP($A792,Economática!$A$3:$AI$823,11,FALSE)=0,VLOOKUP($A792,Economática!$A$3:$AI$823,11,FALSE)=\"-\"),1/0,VLOOKUP($A792,Economática!$A$3:$AI$823,11,FALSE)))","v":""},{"$f":"IF($A792=\"\",\"\",IF(OR(VLOOKUP($A792,Economática!$A$3:$AI$823,12,FALSE)=0,VLOOKUP($A792,Economática!$A$3:$AI$823,12,FALSE)=\"-\"),1/0,VLOOKUP($A792,Economática!$A$3:$AI$823,12,FALSE)))","v":""},{"$f":"IF($A792=\"\",\"\",IF(OR(VLOOKUP($A792,Economática!$A$3:$AI$823,13,FALSE)=0,VLOOKUP($A792,Economática!$A$3:$AI$823,13,FALSE)=\"-\"),1/0,VLOOKUP($A792,Economática!$A$3:$AI$823,13,FALSE)))","v":""},{"$f":"IF($A792=\"\",\"\",IF(OR(VLOOKUP($A792,Economática!$A$3:$AI$823,14,FALSE)=0,VLOOKUP($A792,Economática!$A$3:$AI$823,14,FALSE)=\"-\"),1/0,VLOOKUP($A792,Economática!$A$3:$AI$823,14,FALSE)))","v":""},{"$f":"IF($A792=\"\",\"\",IF(OR(VLOOKUP($A792,Economática!$A$3:$AI$823,15,FALSE)=0,VLOOKUP($A792,Economática!$A$3:$AI$823,15,FALSE)=\"-\"),1/0,VLOOKUP($A792,Economática!$A$3:$AI$823,15,FALSE)))","v":""},{"$f":"IF($A792=\"\",\"\",IF(OR(VLOOKUP($A792,Economática!$A$3:$AI$823,16,FALSE)=0,VLOOKUP($A792,Economática!$A$3:$AI$823,16,FALSE)=\"-\"),1/0,VLOOKUP($A792,Economática!$A$3:$AI$823,16,FALSE)))","v":""},{"$f":"IF($A792=\"\",\"\",IF(OR(VLOOKUP($A792,Economática!$A$3:$AI$823,17,FALSE)=0,VLOOKUP($A792,Economática!$A$3:$AI$823,17,FALSE)=\"-\"),1/0,VLOOKUP($A792,Economática!$A$3:$AI$823,17,FALSE)))","v":""},{"$f":"IF($A792=\"\",\"\",IF(OR(VLOOKUP($A792,Economática!$A$3:$AI$823,18,FALSE)=0,VLOOKUP($A792,Economática!$A$3:$AI$823,18,FALSE)=\"-\"),1/0,VLOOKUP($A792,Economática!$A$3:$AI$823,18,FALSE)))","v":""},{"$f":"IF($A792=\"\",\"\",IF(OR(VLOOKUP($A792,Economática!$A$3:$AI$823,19,FALSE)=0,VLOOKUP($A792,Economática!$A$3:$AI$823,19,FALSE)=\"-\"),1/0,VLOOKUP($A792,Economática!$A$3:$AI$823,19,FALSE)))","v":""},{"$f":"IF($A792=\"\",\"\",VLOOKUP($A792,Economática!$A$3:$AI$823,20,FALSE)/E792)","v":""},"","","",{"$f":"IF($A792=\"\",\"\",IF(OR(VLOOKUP($A792,Economática!$A$3:$AI$823,21,FALSE)/100=0,VLOOKUP($A792,Economática!$A$3:$AI$823,21,FALSE)/100=\"-\"),1/0,VLOOKUP($A792,Economática!$A$3:$AI$823,21,FALSE)/100))","v":""},{"$f":"IF($A792=\"\",\"\",IF(OR(VLOOKUP($A792,Economática!$A$3:$AI$823,22,FALSE)/100=0,VLOOKUP($A792,Economática!$A$3:$AI$823,22,FALSE)/100=\"-\"),1/0,VLOOKUP($A792,Economática!$A$3:$AI$823,22,FALSE)/100))","v":""},{"$f":"IF($A792=\"\",\"\",IF(OR(VLOOKUP($A792,Economática!$A$3:$AI$823,23,FALSE)=0,VLOOKUP($A792,Economática!$A$3:$AI$823,23,FALSE)=\"-\"),1/0,VLOOKUP($A792,Economática!$A$3:$AI$823,23,FALSE)))","v":""},{"$f":"IF($A792=\"\",\"\",IF(OR(VLOOKUP($A792,Economática!$A$3:$AI$823,24,FALSE)=0,VLOOKUP($A792,Economática!$A$3:$AI$823,24,FALSE)=\"-\"),1/0,VLOOKUP($A792,Economática!$A$3:$AI$823,24,FALSE)))","v":""},{"$f":"IF($A792=\"\",\"\",IF(OR(VLOOKUP($A792,Economática!$A$3:$AI$823,25,FALSE)=0,VLOOKUP($A792,Economática!$A$3:$AI$823,25,FALSE)=\"-\"),1/0,VLOOKUP($A792,Economática!$A$3:$AI$823,25,FALSE)))","v":""},{"$f":"IF($A792=\"\",\"\",IF(ISERROR((F792+VLOOKUP($A792,Economática!$A$3:$AI$823,26,FALSE))/Y792),(F792+VLOOKUP($A792,Economática!$A$3:$AI$823,26,FALSE))/Y792,(F792+VLOOKUP($A792,Economática!$A$3:$AI$823,26,FALSE))/Y792))","v":""},{"$f":"IF($A792=\"\",\"\",IF(OR(-VLOOKUP($A792,Economática!$A$3:$AI$823,27,FALSE)=0,-VLOOKUP($A792,Economática!$A$3:$AI$823,27,FALSE)=\"-\"),1/0,-VLOOKUP($A792,Economática!$A$3:$AI$823,27,FALSE)))","v":""},"",{"$f":"IF($A792=\"\",\"\",IF(OR(VLOOKUP($A792,Economática!$A$3:$AI$823,28,FALSE)=0,VLOOKUP($A792,Economática!$A$3:$AI$823,28,FALSE)=\"-\"),1/0,VLOOKUP($A792,Economática!$A$3:$AI$823,28,FALSE)))","v":""},{"$f":"IF($A792=\"\",\"\",IF(OR(VLOOKUP($A792,Economática!$A$3:$AI$823,29,FALSE)=0,VLOOKUP($A792,Economática!$A$3:$AI$823,29,FALSE)=\"-\"),1/0,VLOOKUP($A792,Economática!$A$3:$AI$823,29,FALSE)))","v":""},{"$f":"IF($A792=\"\",\"\",IF(OR(VLOOKUP($A792,Economática!$A$3:$AI$823,30,FALSE)/E792=0,VLOOKUP($A792,Economática!$A$3:$AI$823,30,FALSE)/E792=\"-\",VLOOKUP($A792,Economática!$A$3:$AI$823,30,FALSE)/E792<33.33%,VLOOKUP($A792,Economática!$A$3:$AI$823,30,FALSE)/E792>100%),1/0,VLOOKUP($A792,Economática!$A$3:$AI$823,30,FALSE)/E792))","v":""},"",{"$f":"IF($A792=\"\",\"\",IF(OR(VLOOKUP($A792,Economática!$A$3:$AI$823,25,FALSE)=0,VLOOKUP($A792,Economática!$A$3:$AI$823,25,FALSE)=\"-\"),1/0,VLOOKUP($A792,Economática!$A$3:$AI$823,25,FALSE)))","v":""},{"$f":"CONCATENATE(Economática!B770,\" \",Economática!C770)","v":" "}]
[{"$f":"IF(Economática!AG771=\"\",\"\",Economática!AG771)","v":""},{"$f":"IF($A793=\"\",\"\",VLOOKUP(VLOOKUP($A793,Economática!$A$3:$AI$823,6,FALSE),Correção!$B$16:$C$36,2,FALSE))","v":""},{"$f":"IF(Economática!B771=\"\",\"\",Economática!B771)","v":""},{"$f":"IF($A793=\"\",\"\",IF(OR(VLOOKUP($A793,Economática!$A$3:$AI$823,8,FALSE)=0,VLOOKUP($A793,Economática!$A$3:$AI$823,8,FALSE)=\"-\"),1/0,VLOOKUP($A793,Economática!$A$3:$AI$823,8,FALSE)))","v":""},{"$f":"IF(A793=\"\",\"\",IF(ISERROR(VLOOKUP(A793,Correção!$B$2:$G$13,9,FALSE)),VLOOKUP($A793,Economática!$A$3:$AI$823,9,FALSE),VLOOKUP(A793,Correção!$B$2:$G$13,9,FALSE)))","v":""},{"$f":"IF($A793=\"\",\"\",Economática!G771)","v":""},{"$f":"IF($A793=\"\",\"\",IF(OR(VLOOKUP($A793,Economática!$A$3:$AI$823,10,FALSE)=0,VLOOKUP($A793,Economática!$A$3:$AI$823,10,FALSE)=\"-\"),1/0,VLOOKUP($A793,Economática!$A$3:$AI$823,10,FALSE)))","v":""},{"$f":"IF($A793=\"\",\"\",IF(OR(VLOOKUP($A793,Economática!$A$3:$AI$823,11,FALSE)=0,VLOOKUP($A793,Economática!$A$3:$AI$823,11,FALSE)=\"-\"),1/0,VLOOKUP($A793,Economática!$A$3:$AI$823,11,FALSE)))","v":""},{"$f":"IF($A793=\"\",\"\",IF(OR(VLOOKUP($A793,Economática!$A$3:$AI$823,12,FALSE)=0,VLOOKUP($A793,Economática!$A$3:$AI$823,12,FALSE)=\"-\"),1/0,VLOOKUP($A793,Economática!$A$3:$AI$823,12,FALSE)))","v":""},{"$f":"IF($A793=\"\",\"\",IF(OR(VLOOKUP($A793,Economática!$A$3:$AI$823,13,FALSE)=0,VLOOKUP($A793,Economática!$A$3:$AI$823,13,FALSE)=\"-\"),1/0,VLOOKUP($A793,Economática!$A$3:$AI$823,13,FALSE)))","v":""},{"$f":"IF($A793=\"\",\"\",IF(OR(VLOOKUP($A793,Economática!$A$3:$AI$823,14,FALSE)=0,VLOOKUP($A793,Economática!$A$3:$AI$823,14,FALSE)=\"-\"),1/0,VLOOKUP($A793,Economática!$A$3:$AI$823,14,FALSE)))","v":""},{"$f":"IF($A793=\"\",\"\",IF(OR(VLOOKUP($A793,Economática!$A$3:$AI$823,15,FALSE)=0,VLOOKUP($A793,Economática!$A$3:$AI$823,15,FALSE)=\"-\"),1/0,VLOOKUP($A793,Economática!$A$3:$AI$823,15,FALSE)))","v":""},{"$f":"IF($A793=\"\",\"\",IF(OR(VLOOKUP($A793,Economática!$A$3:$AI$823,16,FALSE)=0,VLOOKUP($A793,Economática!$A$3:$AI$823,16,FALSE)=\"-\"),1/0,VLOOKUP($A793,Economática!$A$3:$AI$823,16,FALSE)))","v":""},{"$f":"IF($A793=\"\",\"\",IF(OR(VLOOKUP($A793,Economática!$A$3:$AI$823,17,FALSE)=0,VLOOKUP($A793,Economática!$A$3:$AI$823,17,FALSE)=\"-\"),1/0,VLOOKUP($A793,Economática!$A$3:$AI$823,17,FALSE)))","v":""},{"$f":"IF($A793=\"\",\"\",IF(OR(VLOOKUP($A793,Economática!$A$3:$AI$823,18,FALSE)=0,VLOOKUP($A793,Economática!$A$3:$AI$823,18,FALSE)=\"-\"),1/0,VLOOKUP($A793,Economática!$A$3:$AI$823,18,FALSE)))","v":""},{"$f":"IF($A793=\"\",\"\",IF(OR(VLOOKUP($A793,Economática!$A$3:$AI$823,19,FALSE)=0,VLOOKUP($A793,Economática!$A$3:$AI$823,19,FALSE)=\"-\"),1/0,VLOOKUP($A793,Economática!$A$3:$AI$823,19,FALSE)))","v":""},{"$f":"IF($A793=\"\",\"\",VLOOKUP($A793,Economática!$A$3:$AI$823,20,FALSE)/E793)","v":""},"","","",{"$f":"IF($A793=\"\",\"\",IF(OR(VLOOKUP($A793,Economática!$A$3:$AI$823,21,FALSE)/100=0,VLOOKUP($A793,Economática!$A$3:$AI$823,21,FALSE)/100=\"-\"),1/0,VLOOKUP($A793,Economática!$A$3:$AI$823,21,FALSE)/100))","v":""},{"$f":"IF($A793=\"\",\"\",IF(OR(VLOOKUP($A793,Economática!$A$3:$AI$823,22,FALSE)/100=0,VLOOKUP($A793,Economática!$A$3:$AI$823,22,FALSE)/100=\"-\"),1/0,VLOOKUP($A793,Economática!$A$3:$AI$823,22,FALSE)/100))","v":""},{"$f":"IF($A793=\"\",\"\",IF(OR(VLOOKUP($A793,Economática!$A$3:$AI$823,23,FALSE)=0,VLOOKUP($A793,Economática!$A$3:$AI$823,23,FALSE)=\"-\"),1/0,VLOOKUP($A793,Economática!$A$3:$AI$823,23,FALSE)))","v":""},{"$f":"IF($A793=\"\",\"\",IF(OR(VLOOKUP($A793,Economática!$A$3:$AI$823,24,FALSE)=0,VLOOKUP($A793,Economática!$A$3:$AI$823,24,FALSE)=\"-\"),1/0,VLOOKUP($A793,Economática!$A$3:$AI$823,24,FALSE)))","v":""},{"$f":"IF($A793=\"\",\"\",IF(OR(VLOOKUP($A793,Economática!$A$3:$AI$823,25,FALSE)=0,VLOOKUP($A793,Economática!$A$3:$AI$823,25,FALSE)=\"-\"),1/0,VLOOKUP($A793,Economática!$A$3:$AI$823,25,FALSE)))","v":""},{"$f":"IF($A793=\"\",\"\",IF(ISERROR((F793+VLOOKUP($A793,Economática!$A$3:$AI$823,26,FALSE))/Y793),(F793+VLOOKUP($A793,Economática!$A$3:$AI$823,26,FALSE))/Y793,(F793+VLOOKUP($A793,Economática!$A$3:$AI$823,26,FALSE))/Y793))","v":""},{"$f":"IF($A793=\"\",\"\",IF(OR(-VLOOKUP($A793,Economática!$A$3:$AI$823,27,FALSE)=0,-VLOOKUP($A793,Economática!$A$3:$AI$823,27,FALSE)=\"-\"),1/0,-VLOOKUP($A793,Economática!$A$3:$AI$823,27,FALSE)))","v":""},"",{"$f":"IF($A793=\"\",\"\",IF(OR(VLOOKUP($A793,Economática!$A$3:$AI$823,28,FALSE)=0,VLOOKUP($A793,Economática!$A$3:$AI$823,28,FALSE)=\"-\"),1/0,VLOOKUP($A793,Economática!$A$3:$AI$823,28,FALSE)))","v":""},{"$f":"IF($A793=\"\",\"\",IF(OR(VLOOKUP($A793,Economática!$A$3:$AI$823,29,FALSE)=0,VLOOKUP($A793,Economática!$A$3:$AI$823,29,FALSE)=\"-\"),1/0,VLOOKUP($A793,Economática!$A$3:$AI$823,29,FALSE)))","v":""},{"$f":"IF($A793=\"\",\"\",IF(OR(VLOOKUP($A793,Economática!$A$3:$AI$823,30,FALSE)/E793=0,VLOOKUP($A793,Economática!$A$3:$AI$823,30,FALSE)/E793=\"-\",VLOOKUP($A793,Economática!$A$3:$AI$823,30,FALSE)/E793<33.33%,VLOOKUP($A793,Economática!$A$3:$AI$823,30,FALSE)/E793>100%),1/0,VLOOKUP($A793,Economática!$A$3:$AI$823,30,FALSE)/E793))","v":""},"",{"$f":"IF($A793=\"\",\"\",IF(OR(VLOOKUP($A793,Economática!$A$3:$AI$823,25,FALSE)=0,VLOOKUP($A793,Economática!$A$3:$AI$823,25,FALSE)=\"-\"),1/0,VLOOKUP($A793,Economática!$A$3:$AI$823,25,FALSE)))","v":""},{"$f":"CONCATENATE(Economática!B771,\" \",Economática!C771)","v":" "}]
[{"$f":"IF(Economática!AG772=\"\",\"\",Economática!AG772)","v":""},{"$f":"IF($A794=\"\",\"\",VLOOKUP(VLOOKUP($A794,Economática!$A$3:$AI$823,6,FALSE),Correção!$B$16:$C$36,2,FALSE))","v":""},{"$f":"IF(Economática!B772=\"\",\"\",Economática!B772)","v":""},{"$f":"IF($A794=\"\",\"\",IF(OR(VLOOKUP($A794,Economática!$A$3:$AI$823,8,FALSE)=0,VLOOKUP($A794,Economática!$A$3:$AI$823,8,FALSE)=\"-\"),1/0,VLOOKUP($A794,Economática!$A$3:$AI$823,8,FALSE)))","v":""},{"$f":"IF(A794=\"\",\"\",IF(ISERROR(VLOOKUP(A794,Correção!$B$2:$G$13,9,FALSE)),VLOOKUP($A794,Economática!$A$3:$AI$823,9,FALSE),VLOOKUP(A794,Correção!$B$2:$G$13,9,FALSE)))","v":""},{"$f":"IF($A794=\"\",\"\",Economática!G772)","v":""},{"$f":"IF($A794=\"\",\"\",IF(OR(VLOOKUP($A794,Economática!$A$3:$AI$823,10,FALSE)=0,VLOOKUP($A794,Economática!$A$3:$AI$823,10,FALSE)=\"-\"),1/0,VLOOKUP($A794,Economática!$A$3:$AI$823,10,FALSE)))","v":""},{"$f":"IF($A794=\"\",\"\",IF(OR(VLOOKUP($A794,Economática!$A$3:$AI$823,11,FALSE)=0,VLOOKUP($A794,Economática!$A$3:$AI$823,11,FALSE)=\"-\"),1/0,VLOOKUP($A794,Economática!$A$3:$AI$823,11,FALSE)))","v":""},{"$f":"IF($A794=\"\",\"\",IF(OR(VLOOKUP($A794,Economática!$A$3:$AI$823,12,FALSE)=0,VLOOKUP($A794,Economática!$A$3:$AI$823,12,FALSE)=\"-\"),1/0,VLOOKUP($A794,Economática!$A$3:$AI$823,12,FALSE)))","v":""},{"$f":"IF($A794=\"\",\"\",IF(OR(VLOOKUP($A794,Economática!$A$3:$AI$823,13,FALSE)=0,VLOOKUP($A794,Economática!$A$3:$AI$823,13,FALSE)=\"-\"),1/0,VLOOKUP($A794,Economática!$A$3:$AI$823,13,FALSE)))","v":""},{"$f":"IF($A794=\"\",\"\",IF(OR(VLOOKUP($A794,Economática!$A$3:$AI$823,14,FALSE)=0,VLOOKUP($A794,Economática!$A$3:$AI$823,14,FALSE)=\"-\"),1/0,VLOOKUP($A794,Economática!$A$3:$AI$823,14,FALSE)))","v":""},{"$f":"IF($A794=\"\",\"\",IF(OR(VLOOKUP($A794,Economática!$A$3:$AI$823,15,FALSE)=0,VLOOKUP($A794,Economática!$A$3:$AI$823,15,FALSE)=\"-\"),1/0,VLOOKUP($A794,Economática!$A$3:$AI$823,15,FALSE)))","v":""},{"$f":"IF($A794=\"\",\"\",IF(OR(VLOOKUP($A794,Economática!$A$3:$AI$823,16,FALSE)=0,VLOOKUP($A794,Economática!$A$3:$AI$823,16,FALSE)=\"-\"),1/0,VLOOKUP($A794,Economática!$A$3:$AI$823,16,FALSE)))","v":""},{"$f":"IF($A794=\"\",\"\",IF(OR(VLOOKUP($A794,Economática!$A$3:$AI$823,17,FALSE)=0,VLOOKUP($A794,Economática!$A$3:$AI$823,17,FALSE)=\"-\"),1/0,VLOOKUP($A794,Economática!$A$3:$AI$823,17,FALSE)))","v":""},{"$f":"IF($A794=\"\",\"\",IF(OR(VLOOKUP($A794,Economática!$A$3:$AI$823,18,FALSE)=0,VLOOKUP($A794,Economática!$A$3:$AI$823,18,FALSE)=\"-\"),1/0,VLOOKUP($A794,Economática!$A$3:$AI$823,18,FALSE)))","v":""},{"$f":"IF($A794=\"\",\"\",IF(OR(VLOOKUP($A794,Economática!$A$3:$AI$823,19,FALSE)=0,VLOOKUP($A794,Economática!$A$3:$AI$823,19,FALSE)=\"-\"),1/0,VLOOKUP($A794,Economática!$A$3:$AI$823,19,FALSE)))","v":""},{"$f":"IF($A794=\"\",\"\",VLOOKUP($A794,Economática!$A$3:$AI$823,20,FALSE)/E794)","v":""},"","","",{"$f":"IF($A794=\"\",\"\",IF(OR(VLOOKUP($A794,Economática!$A$3:$AI$823,21,FALSE)/100=0,VLOOKUP($A794,Economática!$A$3:$AI$823,21,FALSE)/100=\"-\"),1/0,VLOOKUP($A794,Economática!$A$3:$AI$823,21,FALSE)/100))","v":""},{"$f":"IF($A794=\"\",\"\",IF(OR(VLOOKUP($A794,Economática!$A$3:$AI$823,22,FALSE)/100=0,VLOOKUP($A794,Economática!$A$3:$AI$823,22,FALSE)/100=\"-\"),1/0,VLOOKUP($A794,Economática!$A$3:$AI$823,22,FALSE)/100))","v":""},{"$f":"IF($A794=\"\",\"\",IF(OR(VLOOKUP($A794,Economática!$A$3:$AI$823,23,FALSE)=0,VLOOKUP($A794,Economática!$A$3:$AI$823,23,FALSE)=\"-\"),1/0,VLOOKUP($A794,Economática!$A$3:$AI$823,23,FALSE)))","v":""},{"$f":"IF($A794=\"\",\"\",IF(OR(VLOOKUP($A794,Economática!$A$3:$AI$823,24,FALSE)=0,VLOOKUP($A794,Economática!$A$3:$AI$823,24,FALSE)=\"-\"),1/0,VLOOKUP($A794,Economática!$A$3:$AI$823,24,FALSE)))","v":""},{"$f":"IF($A794=\"\",\"\",IF(OR(VLOOKUP($A794,Economática!$A$3:$AI$823,25,FALSE)=0,VLOOKUP($A794,Economática!$A$3:$AI$823,25,FALSE)=\"-\"),1/0,VLOOKUP($A794,Economática!$A$3:$AI$823,25,FALSE)))","v":""},{"$f":"IF($A794=\"\",\"\",IF(ISERROR((F794+VLOOKUP($A794,Economática!$A$3:$AI$823,26,FALSE))/Y794),(F794+VLOOKUP($A794,Economática!$A$3:$AI$823,26,FALSE))/Y794,(F794+VLOOKUP($A794,Economática!$A$3:$AI$823,26,FALSE))/Y794))","v":""},{"$f":"IF($A794=\"\",\"\",IF(OR(-VLOOKUP($A794,Economática!$A$3:$AI$823,27,FALSE)=0,-VLOOKUP($A794,Economática!$A$3:$AI$823,27,FALSE)=\"-\"),1/0,-VLOOKUP($A794,Economática!$A$3:$AI$823,27,FALSE)))","v":""},"",{"$f":"IF($A794=\"\",\"\",IF(OR(VLOOKUP($A794,Economática!$A$3:$AI$823,28,FALSE)=0,VLOOKUP($A794,Economática!$A$3:$AI$823,28,FALSE)=\"-\"),1/0,VLOOKUP($A794,Economática!$A$3:$AI$823,28,FALSE)))","v":""},{"$f":"IF($A794=\"\",\"\",IF(OR(VLOOKUP($A794,Economática!$A$3:$AI$823,29,FALSE)=0,VLOOKUP($A794,Economática!$A$3:$AI$823,29,FALSE)=\"-\"),1/0,VLOOKUP($A794,Economática!$A$3:$AI$823,29,FALSE)))","v":""},{"$f":"IF($A794=\"\",\"\",IF(OR(VLOOKUP($A794,Economática!$A$3:$AI$823,30,FALSE)/E794=0,VLOOKUP($A794,Economática!$A$3:$AI$823,30,FALSE)/E794=\"-\",VLOOKUP($A794,Economática!$A$3:$AI$823,30,FALSE)/E794<33.33%,VLOOKUP($A794,Economática!$A$3:$AI$823,30,FALSE)/E794>100%),1/0,VLOOKUP($A794,Economática!$A$3:$AI$823,30,FALSE)/E794))","v":""},"",{"$f":"IF($A794=\"\",\"\",IF(OR(VLOOKUP($A794,Economática!$A$3:$AI$823,25,FALSE)=0,VLOOKUP($A794,Economática!$A$3:$AI$823,25,FALSE)=\"-\"),1/0,VLOOKUP($A794,Economática!$A$3:$AI$823,25,FALSE)))","v":""},{"$f":"CONCATENATE(Economática!B772,\" \",Economática!C772)","v":" "}]
[{"$f":"IF(Economática!AG773=\"\",\"\",Economática!AG773)","v":""},{"$f":"IF($A795=\"\",\"\",VLOOKUP(VLOOKUP($A795,Economática!$A$3:$AI$823,6,FALSE),Correção!$B$16:$C$36,2,FALSE))","v":""},{"$f":"IF(Economática!B773=\"\",\"\",Economática!B773)","v":""},{"$f":"IF($A795=\"\",\"\",IF(OR(VLOOKUP($A795,Economática!$A$3:$AI$823,8,FALSE)=0,VLOOKUP($A795,Economática!$A$3:$AI$823,8,FALSE)=\"-\"),1/0,VLOOKUP($A795,Economática!$A$3:$AI$823,8,FALSE)))","v":""},{"$f":"IF(A795=\"\",\"\",IF(ISERROR(VLOOKUP(A795,Correção!$B$2:$G$13,9,FALSE)),VLOOKUP($A795,Economática!$A$3:$AI$823,9,FALSE),VLOOKUP(A795,Correção!$B$2:$G$13,9,FALSE)))","v":""},{"$f":"IF($A795=\"\",\"\",Economática!G773)","v":""},{"$f":"IF($A795=\"\",\"\",IF(OR(VLOOKUP($A795,Economática!$A$3:$AI$823,10,FALSE)=0,VLOOKUP($A795,Economática!$A$3:$AI$823,10,FALSE)=\"-\"),1/0,VLOOKUP($A795,Economática!$A$3:$AI$823,10,FALSE)))","v":""},{"$f":"IF($A795=\"\",\"\",IF(OR(VLOOKUP($A795,Economática!$A$3:$AI$823,11,FALSE)=0,VLOOKUP($A795,Economática!$A$3:$AI$823,11,FALSE)=\"-\"),1/0,VLOOKUP($A795,Economática!$A$3:$AI$823,11,FALSE)))","v":""},{"$f":"IF($A795=\"\",\"\",IF(OR(VLOOKUP($A795,Economática!$A$3:$AI$823,12,FALSE)=0,VLOOKUP($A795,Economática!$A$3:$AI$823,12,FALSE)=\"-\"),1/0,VLOOKUP($A795,Economática!$A$3:$AI$823,12,FALSE)))","v":""},{"$f":"IF($A795=\"\",\"\",IF(OR(VLOOKUP($A795,Economática!$A$3:$AI$823,13,FALSE)=0,VLOOKUP($A795,Economática!$A$3:$AI$823,13,FALSE)=\"-\"),1/0,VLOOKUP($A795,Economática!$A$3:$AI$823,13,FALSE)))","v":""},{"$f":"IF($A795=\"\",\"\",IF(OR(VLOOKUP($A795,Economática!$A$3:$AI$823,14,FALSE)=0,VLOOKUP($A795,Economática!$A$3:$AI$823,14,FALSE)=\"-\"),1/0,VLOOKUP($A795,Economática!$A$3:$AI$823,14,FALSE)))","v":""},{"$f":"IF($A795=\"\",\"\",IF(OR(VLOOKUP($A795,Economática!$A$3:$AI$823,15,FALSE)=0,VLOOKUP($A795,Economática!$A$3:$AI$823,15,FALSE)=\"-\"),1/0,VLOOKUP($A795,Economática!$A$3:$AI$823,15,FALSE)))","v":""},{"$f":"IF($A795=\"\",\"\",IF(OR(VLOOKUP($A795,Economática!$A$3:$AI$823,16,FALSE)=0,VLOOKUP($A795,Economática!$A$3:$AI$823,16,FALSE)=\"-\"),1/0,VLOOKUP($A795,Economática!$A$3:$AI$823,16,FALSE)))","v":""},{"$f":"IF($A795=\"\",\"\",IF(OR(VLOOKUP($A795,Economática!$A$3:$AI$823,17,FALSE)=0,VLOOKUP($A795,Economática!$A$3:$AI$823,17,FALSE)=\"-\"),1/0,VLOOKUP($A795,Economática!$A$3:$AI$823,17,FALSE)))","v":""},{"$f":"IF($A795=\"\",\"\",IF(OR(VLOOKUP($A795,Economática!$A$3:$AI$823,18,FALSE)=0,VLOOKUP($A795,Economática!$A$3:$AI$823,18,FALSE)=\"-\"),1/0,VLOOKUP($A795,Economática!$A$3:$AI$823,18,FALSE)))","v":""},{"$f":"IF($A795=\"\",\"\",IF(OR(VLOOKUP($A795,Economática!$A$3:$AI$823,19,FALSE)=0,VLOOKUP($A795,Economática!$A$3:$AI$823,19,FALSE)=\"-\"),1/0,VLOOKUP($A795,Economática!$A$3:$AI$823,19,FALSE)))","v":""},{"$f":"IF($A795=\"\",\"\",VLOOKUP($A795,Economática!$A$3:$AI$823,20,FALSE)/E795)","v":""},"","","",{"$f":"IF($A795=\"\",\"\",IF(OR(VLOOKUP($A795,Economática!$A$3:$AI$823,21,FALSE)/100=0,VLOOKUP($A795,Economática!$A$3:$AI$823,21,FALSE)/100=\"-\"),1/0,VLOOKUP($A795,Economática!$A$3:$AI$823,21,FALSE)/100))","v":""},{"$f":"IF($A795=\"\",\"\",IF(OR(VLOOKUP($A795,Economática!$A$3:$AI$823,22,FALSE)/100=0,VLOOKUP($A795,Economática!$A$3:$AI$823,22,FALSE)/100=\"-\"),1/0,VLOOKUP($A795,Economática!$A$3:$AI$823,22,FALSE)/100))","v":""},{"$f":"IF($A795=\"\",\"\",IF(OR(VLOOKUP($A795,Economática!$A$3:$AI$823,23,FALSE)=0,VLOOKUP($A795,Economática!$A$3:$AI$823,23,FALSE)=\"-\"),1/0,VLOOKUP($A795,Economática!$A$3:$AI$823,23,FALSE)))","v":""},{"$f":"IF($A795=\"\",\"\",IF(OR(VLOOKUP($A795,Economática!$A$3:$AI$823,24,FALSE)=0,VLOOKUP($A795,Economática!$A$3:$AI$823,24,FALSE)=\"-\"),1/0,VLOOKUP($A795,Economática!$A$3:$AI$823,24,FALSE)))","v":""},{"$f":"IF($A795=\"\",\"\",IF(OR(VLOOKUP($A795,Economática!$A$3:$AI$823,25,FALSE)=0,VLOOKUP($A795,Economática!$A$3:$AI$823,25,FALSE)=\"-\"),1/0,VLOOKUP($A795,Economática!$A$3:$AI$823,25,FALSE)))","v":""},{"$f":"IF($A795=\"\",\"\",IF(ISERROR((F795+VLOOKUP($A795,Economática!$A$3:$AI$823,26,FALSE))/Y795),(F795+VLOOKUP($A795,Economática!$A$3:$AI$823,26,FALSE))/Y795,(F795+VLOOKUP($A795,Economática!$A$3:$AI$823,26,FALSE))/Y795))","v":""},{"$f":"IF($A795=\"\",\"\",IF(OR(-VLOOKUP($A795,Economática!$A$3:$AI$823,27,FALSE)=0,-VLOOKUP($A795,Economática!$A$3:$AI$823,27,FALSE)=\"-\"),1/0,-VLOOKUP($A795,Economática!$A$3:$AI$823,27,FALSE)))","v":""},"",{"$f":"IF($A795=\"\",\"\",IF(OR(VLOOKUP($A795,Economática!$A$3:$AI$823,28,FALSE)=0,VLOOKUP($A795,Economática!$A$3:$AI$823,28,FALSE)=\"-\"),1/0,VLOOKUP($A795,Economática!$A$3:$AI$823,28,FALSE)))","v":""},{"$f":"IF($A795=\"\",\"\",IF(OR(VLOOKUP($A795,Economática!$A$3:$AI$823,29,FALSE)=0,VLOOKUP($A795,Economática!$A$3:$AI$823,29,FALSE)=\"-\"),1/0,VLOOKUP($A795,Economática!$A$3:$AI$823,29,FALSE)))","v":""},{"$f":"IF($A795=\"\",\"\",IF(OR(VLOOKUP($A795,Economática!$A$3:$AI$823,30,FALSE)/E795=0,VLOOKUP($A795,Economática!$A$3:$AI$823,30,FALSE)/E795=\"-\",VLOOKUP($A795,Economática!$A$3:$AI$823,30,FALSE)/E795<33.33%,VLOOKUP($A795,Economática!$A$3:$AI$823,30,FALSE)/E795>100%),1/0,VLOOKUP($A795,Economática!$A$3:$AI$823,30,FALSE)/E795))","v":""},"",{"$f":"IF($A795=\"\",\"\",IF(OR(VLOOKUP($A795,Economática!$A$3:$AI$823,25,FALSE)=0,VLOOKUP($A795,Economática!$A$3:$AI$823,25,FALSE)=\"-\"),1/0,VLOOKUP($A795,Economática!$A$3:$AI$823,25,FALSE)))","v":""},{"$f":"CONCATENATE(Economática!B773,\" \",Economática!C773)","v":" "}]
[{"$f":"IF(Economática!AG774=\"\",\"\",Economática!AG774)","v":""},{"$f":"IF($A796=\"\",\"\",VLOOKUP(VLOOKUP($A796,Economática!$A$3:$AI$823,6,FALSE),Correção!$B$16:$C$36,2,FALSE))","v":""},{"$f":"IF(Economática!B774=\"\",\"\",Economática!B774)","v":""},{"$f":"IF($A796=\"\",\"\",IF(OR(VLOOKUP($A796,Economática!$A$3:$AI$823,8,FALSE)=0,VLOOKUP($A796,Economática!$A$3:$AI$823,8,FALSE)=\"-\"),1/0,VLOOKUP($A796,Economática!$A$3:$AI$823,8,FALSE)))","v":""},{"$f":"IF(A796=\"\",\"\",IF(ISERROR(VLOOKUP(A796,Correção!$B$2:$G$13,9,FALSE)),VLOOKUP($A796,Economática!$A$3:$AI$823,9,FALSE),VLOOKUP(A796,Correção!$B$2:$G$13,9,FALSE)))","v":""},{"$f":"IF($A796=\"\",\"\",Economática!G774)","v":""},{"$f":"IF($A796=\"\",\"\",IF(OR(VLOOKUP($A796,Economática!$A$3:$AI$823,10,FALSE)=0,VLOOKUP($A796,Economática!$A$3:$AI$823,10,FALSE)=\"-\"),1/0,VLOOKUP($A796,Economática!$A$3:$AI$823,10,FALSE)))","v":""},{"$f":"IF($A796=\"\",\"\",IF(OR(VLOOKUP($A796,Economática!$A$3:$AI$823,11,FALSE)=0,VLOOKUP($A796,Economática!$A$3:$AI$823,11,FALSE)=\"-\"),1/0,VLOOKUP($A796,Economática!$A$3:$AI$823,11,FALSE)))","v":""},{"$f":"IF($A796=\"\",\"\",IF(OR(VLOOKUP($A796,Economática!$A$3:$AI$823,12,FALSE)=0,VLOOKUP($A796,Economática!$A$3:$AI$823,12,FALSE)=\"-\"),1/0,VLOOKUP($A796,Economática!$A$3:$AI$823,12,FALSE)))","v":""},{"$f":"IF($A796=\"\",\"\",IF(OR(VLOOKUP($A796,Economática!$A$3:$AI$823,13,FALSE)=0,VLOOKUP($A796,Economática!$A$3:$AI$823,13,FALSE)=\"-\"),1/0,VLOOKUP($A796,Economática!$A$3:$AI$823,13,FALSE)))","v":""},{"$f":"IF($A796=\"\",\"\",IF(OR(VLOOKUP($A796,Economática!$A$3:$AI$823,14,FALSE)=0,VLOOKUP($A796,Economática!$A$3:$AI$823,14,FALSE)=\"-\"),1/0,VLOOKUP($A796,Economática!$A$3:$AI$823,14,FALSE)))","v":""},{"$f":"IF($A796=\"\",\"\",IF(OR(VLOOKUP($A796,Economática!$A$3:$AI$823,15,FALSE)=0,VLOOKUP($A796,Economática!$A$3:$AI$823,15,FALSE)=\"-\"),1/0,VLOOKUP($A796,Economática!$A$3:$AI$823,15,FALSE)))","v":""},{"$f":"IF($A796=\"\",\"\",IF(OR(VLOOKUP($A796,Economática!$A$3:$AI$823,16,FALSE)=0,VLOOKUP($A796,Economática!$A$3:$AI$823,16,FALSE)=\"-\"),1/0,VLOOKUP($A796,Economática!$A$3:$AI$823,16,FALSE)))","v":""},{"$f":"IF($A796=\"\",\"\",IF(OR(VLOOKUP($A796,Economática!$A$3:$AI$823,17,FALSE)=0,VLOOKUP($A796,Economática!$A$3:$AI$823,17,FALSE)=\"-\"),1/0,VLOOKUP($A796,Economática!$A$3:$AI$823,17,FALSE)))","v":""},{"$f":"IF($A796=\"\",\"\",IF(OR(VLOOKUP($A796,Economática!$A$3:$AI$823,18,FALSE)=0,VLOOKUP($A796,Economática!$A$3:$AI$823,18,FALSE)=\"-\"),1/0,VLOOKUP($A796,Economática!$A$3:$AI$823,18,FALSE)))","v":""},{"$f":"IF($A796=\"\",\"\",IF(OR(VLOOKUP($A796,Economática!$A$3:$AI$823,19,FALSE)=0,VLOOKUP($A796,Economática!$A$3:$AI$823,19,FALSE)=\"-\"),1/0,VLOOKUP($A796,Economática!$A$3:$AI$823,19,FALSE)))","v":""},{"$f":"IF($A796=\"\",\"\",VLOOKUP($A796,Economática!$A$3:$AI$823,20,FALSE)/E796)","v":""},"","","",{"$f":"IF($A796=\"\",\"\",IF(OR(VLOOKUP($A796,Economática!$A$3:$AI$823,21,FALSE)/100=0,VLOOKUP($A796,Economática!$A$3:$AI$823,21,FALSE)/100=\"-\"),1/0,VLOOKUP($A796,Economática!$A$3:$AI$823,21,FALSE)/100))","v":""},{"$f":"IF($A796=\"\",\"\",IF(OR(VLOOKUP($A796,Economática!$A$3:$AI$823,22,FALSE)/100=0,VLOOKUP($A796,Economática!$A$3:$AI$823,22,FALSE)/100=\"-\"),1/0,VLOOKUP($A796,Economática!$A$3:$AI$823,22,FALSE)/100))","v":""},{"$f":"IF($A796=\"\",\"\",IF(OR(VLOOKUP($A796,Economática!$A$3:$AI$823,23,FALSE)=0,VLOOKUP($A796,Economática!$A$3:$AI$823,23,FALSE)=\"-\"),1/0,VLOOKUP($A796,Economática!$A$3:$AI$823,23,FALSE)))","v":""},{"$f":"IF($A796=\"\",\"\",IF(OR(VLOOKUP($A796,Economática!$A$3:$AI$823,24,FALSE)=0,VLOOKUP($A796,Economática!$A$3:$AI$823,24,FALSE)=\"-\"),1/0,VLOOKUP($A796,Economática!$A$3:$AI$823,24,FALSE)))","v":""},{"$f":"IF($A796=\"\",\"\",IF(OR(VLOOKUP($A796,Economática!$A$3:$AI$823,25,FALSE)=0,VLOOKUP($A796,Economática!$A$3:$AI$823,25,FALSE)=\"-\"),1/0,VLOOKUP($A796,Economática!$A$3:$AI$823,25,FALSE)))","v":""},{"$f":"IF($A796=\"\",\"\",IF(ISERROR((F796+VLOOKUP($A796,Economática!$A$3:$AI$823,26,FALSE))/Y796),(F796+VLOOKUP($A796,Economática!$A$3:$AI$823,26,FALSE))/Y796,(F796+VLOOKUP($A796,Economática!$A$3:$AI$823,26,FALSE))/Y796))","v":""},{"$f":"IF($A796=\"\",\"\",IF(OR(-VLOOKUP($A796,Economática!$A$3:$AI$823,27,FALSE)=0,-VLOOKUP($A796,Economática!$A$3:$AI$823,27,FALSE)=\"-\"),1/0,-VLOOKUP($A796,Economática!$A$3:$AI$823,27,FALSE)))","v":""},"",{"$f":"IF($A796=\"\",\"\",IF(OR(VLOOKUP($A796,Economática!$A$3:$AI$823,28,FALSE)=0,VLOOKUP($A796,Economática!$A$3:$AI$823,28,FALSE)=\"-\"),1/0,VLOOKUP($A796,Economática!$A$3:$AI$823,28,FALSE)))","v":""},{"$f":"IF($A796=\"\",\"\",IF(OR(VLOOKUP($A796,Economática!$A$3:$AI$823,29,FALSE)=0,VLOOKUP($A796,Economática!$A$3:$AI$823,29,FALSE)=\"-\"),1/0,VLOOKUP($A796,Economática!$A$3:$AI$823,29,FALSE)))","v":""},{"$f":"IF($A796=\"\",\"\",IF(OR(VLOOKUP($A796,Economática!$A$3:$AI$823,30,FALSE)/E796=0,VLOOKUP($A796,Economática!$A$3:$AI$823,30,FALSE)/E796=\"-\",VLOOKUP($A796,Economática!$A$3:$AI$823,30,FALSE)/E796<33.33%,VLOOKUP($A796,Economática!$A$3:$AI$823,30,FALSE)/E796>100%),1/0,VLOOKUP($A796,Economática!$A$3:$AI$823,30,FALSE)/E796))","v":""},"",{"$f":"IF($A796=\"\",\"\",IF(OR(VLOOKUP($A796,Economática!$A$3:$AI$823,25,FALSE)=0,VLOOKUP($A796,Economática!$A$3:$AI$823,25,FALSE)=\"-\"),1/0,VLOOKUP($A796,Economática!$A$3:$AI$823,25,FALSE)))","v":""},{"$f":"CONCATENATE(Economática!B774,\" \",Economática!C774)","v":" "}]
[{"$f":"IF(Economática!AG775=\"\",\"\",Economática!AG775)","v":""},{"$f":"IF($A797=\"\",\"\",VLOOKUP(VLOOKUP($A797,Economática!$A$3:$AI$823,6,FALSE),Correção!$B$16:$C$36,2,FALSE))","v":""},{"$f":"IF(Economática!B775=\"\",\"\",Economática!B775)","v":""},{"$f":"IF($A797=\"\",\"\",IF(OR(VLOOKUP($A797,Economática!$A$3:$AI$823,8,FALSE)=0,VLOOKUP($A797,Economática!$A$3:$AI$823,8,FALSE)=\"-\"),1/0,VLOOKUP($A797,Economática!$A$3:$AI$823,8,FALSE)))","v":""},{"$f":"IF(A797=\"\",\"\",IF(ISERROR(VLOOKUP(A797,Correção!$B$2:$G$13,9,FALSE)),VLOOKUP($A797,Economática!$A$3:$AI$823,9,FALSE),VLOOKUP(A797,Correção!$B$2:$G$13,9,FALSE)))","v":""},{"$f":"IF($A797=\"\",\"\",Economática!G775)","v":""},{"$f":"IF($A797=\"\",\"\",IF(OR(VLOOKUP($A797,Economática!$A$3:$AI$823,10,FALSE)=0,VLOOKUP($A797,Economática!$A$3:$AI$823,10,FALSE)=\"-\"),1/0,VLOOKUP($A797,Economática!$A$3:$AI$823,10,FALSE)))","v":""},{"$f":"IF($A797=\"\",\"\",IF(OR(VLOOKUP($A797,Economática!$A$3:$AI$823,11,FALSE)=0,VLOOKUP($A797,Economática!$A$3:$AI$823,11,FALSE)=\"-\"),1/0,VLOOKUP($A797,Economática!$A$3:$AI$823,11,FALSE)))","v":""},{"$f":"IF($A797=\"\",\"\",IF(OR(VLOOKUP($A797,Economática!$A$3:$AI$823,12,FALSE)=0,VLOOKUP($A797,Economática!$A$3:$AI$823,12,FALSE)=\"-\"),1/0,VLOOKUP($A797,Economática!$A$3:$AI$823,12,FALSE)))","v":""},{"$f":"IF($A797=\"\",\"\",IF(OR(VLOOKUP($A797,Economática!$A$3:$AI$823,13,FALSE)=0,VLOOKUP($A797,Economática!$A$3:$AI$823,13,FALSE)=\"-\"),1/0,VLOOKUP($A797,Economática!$A$3:$AI$823,13,FALSE)))","v":""},{"$f":"IF($A797=\"\",\"\",IF(OR(VLOOKUP($A797,Economática!$A$3:$AI$823,14,FALSE)=0,VLOOKUP($A797,Economática!$A$3:$AI$823,14,FALSE)=\"-\"),1/0,VLOOKUP($A797,Economática!$A$3:$AI$823,14,FALSE)))","v":""},{"$f":"IF($A797=\"\",\"\",IF(OR(VLOOKUP($A797,Economática!$A$3:$AI$823,15,FALSE)=0,VLOOKUP($A797,Economática!$A$3:$AI$823,15,FALSE)=\"-\"),1/0,VLOOKUP($A797,Economática!$A$3:$AI$823,15,FALSE)))","v":""},{"$f":"IF($A797=\"\",\"\",IF(OR(VLOOKUP($A797,Economática!$A$3:$AI$823,16,FALSE)=0,VLOOKUP($A797,Economática!$A$3:$AI$823,16,FALSE)=\"-\"),1/0,VLOOKUP($A797,Economática!$A$3:$AI$823,16,FALSE)))","v":""},{"$f":"IF($A797=\"\",\"\",IF(OR(VLOOKUP($A797,Economática!$A$3:$AI$823,17,FALSE)=0,VLOOKUP($A797,Economática!$A$3:$AI$823,17,FALSE)=\"-\"),1/0,VLOOKUP($A797,Economática!$A$3:$AI$823,17,FALSE)))","v":""},{"$f":"IF($A797=\"\",\"\",IF(OR(VLOOKUP($A797,Economática!$A$3:$AI$823,18,FALSE)=0,VLOOKUP($A797,Economática!$A$3:$AI$823,18,FALSE)=\"-\"),1/0,VLOOKUP($A797,Economática!$A$3:$AI$823,18,FALSE)))","v":""},{"$f":"IF($A797=\"\",\"\",IF(OR(VLOOKUP($A797,Economática!$A$3:$AI$823,19,FALSE)=0,VLOOKUP($A797,Economática!$A$3:$AI$823,19,FALSE)=\"-\"),1/0,VLOOKUP($A797,Economática!$A$3:$AI$823,19,FALSE)))","v":""},{"$f":"IF($A797=\"\",\"\",VLOOKUP($A797,Economática!$A$3:$AI$823,20,FALSE)/E797)","v":""},"","","",{"$f":"IF($A797=\"\",\"\",IF(OR(VLOOKUP($A797,Economática!$A$3:$AI$823,21,FALSE)/100=0,VLOOKUP($A797,Economática!$A$3:$AI$823,21,FALSE)/100=\"-\"),1/0,VLOOKUP($A797,Economática!$A$3:$AI$823,21,FALSE)/100))","v":""},{"$f":"IF($A797=\"\",\"\",IF(OR(VLOOKUP($A797,Economática!$A$3:$AI$823,22,FALSE)/100=0,VLOOKUP($A797,Economática!$A$3:$AI$823,22,FALSE)/100=\"-\"),1/0,VLOOKUP($A797,Economática!$A$3:$AI$823,22,FALSE)/100))","v":""},{"$f":"IF($A797=\"\",\"\",IF(OR(VLOOKUP($A797,Economática!$A$3:$AI$823,23,FALSE)=0,VLOOKUP($A797,Economática!$A$3:$AI$823,23,FALSE)=\"-\"),1/0,VLOOKUP($A797,Economática!$A$3:$AI$823,23,FALSE)))","v":""},{"$f":"IF($A797=\"\",\"\",IF(OR(VLOOKUP($A797,Economática!$A$3:$AI$823,24,FALSE)=0,VLOOKUP($A797,Economática!$A$3:$AI$823,24,FALSE)=\"-\"),1/0,VLOOKUP($A797,Economática!$A$3:$AI$823,24,FALSE)))","v":""},{"$f":"IF($A797=\"\",\"\",IF(OR(VLOOKUP($A797,Economática!$A$3:$AI$823,25,FALSE)=0,VLOOKUP($A797,Economática!$A$3:$AI$823,25,FALSE)=\"-\"),1/0,VLOOKUP($A797,Economática!$A$3:$AI$823,25,FALSE)))","v":""},{"$f":"IF($A797=\"\",\"\",IF(ISERROR((F797+VLOOKUP($A797,Economática!$A$3:$AI$823,26,FALSE))/Y797),(F797+VLOOKUP($A797,Economática!$A$3:$AI$823,26,FALSE))/Y797,(F797+VLOOKUP($A797,Economática!$A$3:$AI$823,26,FALSE))/Y797))","v":""},{"$f":"IF($A797=\"\",\"\",IF(OR(-VLOOKUP($A797,Economática!$A$3:$AI$823,27,FALSE)=0,-VLOOKUP($A797,Economática!$A$3:$AI$823,27,FALSE)=\"-\"),1/0,-VLOOKUP($A797,Economática!$A$3:$AI$823,27,FALSE)))","v":""},"",{"$f":"IF($A797=\"\",\"\",IF(OR(VLOOKUP($A797,Economática!$A$3:$AI$823,28,FALSE)=0,VLOOKUP($A797,Economática!$A$3:$AI$823,28,FALSE)=\"-\"),1/0,VLOOKUP($A797,Economática!$A$3:$AI$823,28,FALSE)))","v":""},{"$f":"IF($A797=\"\",\"\",IF(OR(VLOOKUP($A797,Economática!$A$3:$AI$823,29,FALSE)=0,VLOOKUP($A797,Economática!$A$3:$AI$823,29,FALSE)=\"-\"),1/0,VLOOKUP($A797,Economática!$A$3:$AI$823,29,FALSE)))","v":""},{"$f":"IF($A797=\"\",\"\",IF(OR(VLOOKUP($A797,Economática!$A$3:$AI$823,30,FALSE)/E797=0,VLOOKUP($A797,Economática!$A$3:$AI$823,30,FALSE)/E797=\"-\",VLOOKUP($A797,Economática!$A$3:$AI$823,30,FALSE)/E797<33.33%,VLOOKUP($A797,Economática!$A$3:$AI$823,30,FALSE)/E797>100%),1/0,VLOOKUP($A797,Economática!$A$3:$AI$823,30,FALSE)/E797))","v":""},"",{"$f":"IF($A797=\"\",\"\",IF(OR(VLOOKUP($A797,Economática!$A$3:$AI$823,25,FALSE)=0,VLOOKUP($A797,Economática!$A$3:$AI$823,25,FALSE)=\"-\"),1/0,VLOOKUP($A797,Economática!$A$3:$AI$823,25,FALSE)))","v":""},{"$f":"CONCATENATE(Economática!B775,\" \",Economática!C775)","v":" "}]
[{"$f":"IF(Economática!AG776=\"\",\"\",Economática!AG776)","v":""},{"$f":"IF($A798=\"\",\"\",VLOOKUP(VLOOKUP($A798,Economática!$A$3:$AI$823,6,FALSE),Correção!$B$16:$C$36,2,FALSE))","v":""},{"$f":"IF(Economática!B776=\"\",\"\",Economática!B776)","v":""},{"$f":"IF($A798=\"\",\"\",IF(OR(VLOOKUP($A798,Economática!$A$3:$AI$823,8,FALSE)=0,VLOOKUP($A798,Economática!$A$3:$AI$823,8,FALSE)=\"-\"),1/0,VLOOKUP($A798,Economática!$A$3:$AI$823,8,FALSE)))","v":""},{"$f":"IF(A798=\"\",\"\",IF(ISERROR(VLOOKUP(A798,Correção!$B$2:$G$13,9,FALSE)),VLOOKUP($A798,Economática!$A$3:$AI$823,9,FALSE),VLOOKUP(A798,Correção!$B$2:$G$13,9,FALSE)))","v":""},{"$f":"IF($A798=\"\",\"\",Economática!G776)","v":""},{"$f":"IF($A798=\"\",\"\",IF(OR(VLOOKUP($A798,Economática!$A$3:$AI$823,10,FALSE)=0,VLOOKUP($A798,Economática!$A$3:$AI$823,10,FALSE)=\"-\"),1/0,VLOOKUP($A798,Economática!$A$3:$AI$823,10,FALSE)))","v":""},{"$f":"IF($A798=\"\",\"\",IF(OR(VLOOKUP($A798,Economática!$A$3:$AI$823,11,FALSE)=0,VLOOKUP($A798,Economática!$A$3:$AI$823,11,FALSE)=\"-\"),1/0,VLOOKUP($A798,Economática!$A$3:$AI$823,11,FALSE)))","v":""},{"$f":"IF($A798=\"\",\"\",IF(OR(VLOOKUP($A798,Economática!$A$3:$AI$823,12,FALSE)=0,VLOOKUP($A798,Economática!$A$3:$AI$823,12,FALSE)=\"-\"),1/0,VLOOKUP($A798,Economática!$A$3:$AI$823,12,FALSE)))","v":""},{"$f":"IF($A798=\"\",\"\",IF(OR(VLOOKUP($A798,Economática!$A$3:$AI$823,13,FALSE)=0,VLOOKUP($A798,Economática!$A$3:$AI$823,13,FALSE)=\"-\"),1/0,VLOOKUP($A798,Economática!$A$3:$AI$823,13,FALSE)))","v":""},{"$f":"IF($A798=\"\",\"\",IF(OR(VLOOKUP($A798,Economática!$A$3:$AI$823,14,FALSE)=0,VLOOKUP($A798,Economática!$A$3:$AI$823,14,FALSE)=\"-\"),1/0,VLOOKUP($A798,Economática!$A$3:$AI$823,14,FALSE)))","v":""},{"$f":"IF($A798=\"\",\"\",IF(OR(VLOOKUP($A798,Economática!$A$3:$AI$823,15,FALSE)=0,VLOOKUP($A798,Economática!$A$3:$AI$823,15,FALSE)=\"-\"),1/0,VLOOKUP($A798,Economática!$A$3:$AI$823,15,FALSE)))","v":""},{"$f":"IF($A798=\"\",\"\",IF(OR(VLOOKUP($A798,Economática!$A$3:$AI$823,16,FALSE)=0,VLOOKUP($A798,Economática!$A$3:$AI$823,16,FALSE)=\"-\"),1/0,VLOOKUP($A798,Economática!$A$3:$AI$823,16,FALSE)))","v":""},{"$f":"IF($A798=\"\",\"\",IF(OR(VLOOKUP($A798,Economática!$A$3:$AI$823,17,FALSE)=0,VLOOKUP($A798,Economática!$A$3:$AI$823,17,FALSE)=\"-\"),1/0,VLOOKUP($A798,Economática!$A$3:$AI$823,17,FALSE)))","v":""},{"$f":"IF($A798=\"\",\"\",IF(OR(VLOOKUP($A798,Economática!$A$3:$AI$823,18,FALSE)=0,VLOOKUP($A798,Economática!$A$3:$AI$823,18,FALSE)=\"-\"),1/0,VLOOKUP($A798,Economática!$A$3:$AI$823,18,FALSE)))","v":""},{"$f":"IF($A798=\"\",\"\",IF(OR(VLOOKUP($A798,Economática!$A$3:$AI$823,19,FALSE)=0,VLOOKUP($A798,Economática!$A$3:$AI$823,19,FALSE)=\"-\"),1/0,VLOOKUP($A798,Economática!$A$3:$AI$823,19,FALSE)))","v":""},{"$f":"IF($A798=\"\",\"\",VLOOKUP($A798,Economática!$A$3:$AI$823,20,FALSE)/E798)","v":""},"","","",{"$f":"IF($A798=\"\",\"\",IF(OR(VLOOKUP($A798,Economática!$A$3:$AI$823,21,FALSE)/100=0,VLOOKUP($A798,Economática!$A$3:$AI$823,21,FALSE)/100=\"-\"),1/0,VLOOKUP($A798,Economática!$A$3:$AI$823,21,FALSE)/100))","v":""},{"$f":"IF($A798=\"\",\"\",IF(OR(VLOOKUP($A798,Economática!$A$3:$AI$823,22,FALSE)/100=0,VLOOKUP($A798,Economática!$A$3:$AI$823,22,FALSE)/100=\"-\"),1/0,VLOOKUP($A798,Economática!$A$3:$AI$823,22,FALSE)/100))","v":""},{"$f":"IF($A798=\"\",\"\",IF(OR(VLOOKUP($A798,Economática!$A$3:$AI$823,23,FALSE)=0,VLOOKUP($A798,Economática!$A$3:$AI$823,23,FALSE)=\"-\"),1/0,VLOOKUP($A798,Economática!$A$3:$AI$823,23,FALSE)))","v":""},{"$f":"IF($A798=\"\",\"\",IF(OR(VLOOKUP($A798,Economática!$A$3:$AI$823,24,FALSE)=0,VLOOKUP($A798,Economática!$A$3:$AI$823,24,FALSE)=\"-\"),1/0,VLOOKUP($A798,Economática!$A$3:$AI$823,24,FALSE)))","v":""},{"$f":"IF($A798=\"\",\"\",IF(OR(VLOOKUP($A798,Economática!$A$3:$AI$823,25,FALSE)=0,VLOOKUP($A798,Economática!$A$3:$AI$823,25,FALSE)=\"-\"),1/0,VLOOKUP($A798,Economática!$A$3:$AI$823,25,FALSE)))","v":""},{"$f":"IF($A798=\"\",\"\",IF(ISERROR((F798+VLOOKUP($A798,Economática!$A$3:$AI$823,26,FALSE))/Y798),(F798+VLOOKUP($A798,Economática!$A$3:$AI$823,26,FALSE))/Y798,(F798+VLOOKUP($A798,Economática!$A$3:$AI$823,26,FALSE))/Y798))","v":""},{"$f":"IF($A798=\"\",\"\",IF(OR(-VLOOKUP($A798,Economática!$A$3:$AI$823,27,FALSE)=0,-VLOOKUP($A798,Economática!$A$3:$AI$823,27,FALSE)=\"-\"),1/0,-VLOOKUP($A798,Economática!$A$3:$AI$823,27,FALSE)))","v":""},"",{"$f":"IF($A798=\"\",\"\",IF(OR(VLOOKUP($A798,Economática!$A$3:$AI$823,28,FALSE)=0,VLOOKUP($A798,Economática!$A$3:$AI$823,28,FALSE)=\"-\"),1/0,VLOOKUP($A798,Economática!$A$3:$AI$823,28,FALSE)))","v":""},{"$f":"IF($A798=\"\",\"\",IF(OR(VLOOKUP($A798,Economática!$A$3:$AI$823,29,FALSE)=0,VLOOKUP($A798,Economática!$A$3:$AI$823,29,FALSE)=\"-\"),1/0,VLOOKUP($A798,Economática!$A$3:$AI$823,29,FALSE)))","v":""},{"$f":"IF($A798=\"\",\"\",IF(OR(VLOOKUP($A798,Economática!$A$3:$AI$823,30,FALSE)/E798=0,VLOOKUP($A798,Economática!$A$3:$AI$823,30,FALSE)/E798=\"-\",VLOOKUP($A798,Economática!$A$3:$AI$823,30,FALSE)/E798<33.33%,VLOOKUP($A798,Economática!$A$3:$AI$823,30,FALSE)/E798>100%),1/0,VLOOKUP($A798,Economática!$A$3:$AI$823,30,FALSE)/E798))","v":""},"",{"$f":"IF($A798=\"\",\"\",IF(OR(VLOOKUP($A798,Economática!$A$3:$AI$823,25,FALSE)=0,VLOOKUP($A798,Economática!$A$3:$AI$823,25,FALSE)=\"-\"),1/0,VLOOKUP($A798,Economática!$A$3:$AI$823,25,FALSE)))","v":""},{"$f":"CONCATENATE(Economática!B776,\" \",Economática!C776)","v":" "}]
[{"$f":"IF(Economática!AG777=\"\",\"\",Economática!AG777)","v":""},{"$f":"IF($A799=\"\",\"\",VLOOKUP(VLOOKUP($A799,Economática!$A$3:$AI$823,6,FALSE),Correção!$B$16:$C$36,2,FALSE))","v":""},{"$f":"IF(Economática!B777=\"\",\"\",Economática!B777)","v":""},{"$f":"IF($A799=\"\",\"\",IF(OR(VLOOKUP($A799,Economática!$A$3:$AI$823,8,FALSE)=0,VLOOKUP($A799,Economática!$A$3:$AI$823,8,FALSE)=\"-\"),1/0,VLOOKUP($A799,Economática!$A$3:$AI$823,8,FALSE)))","v":""},{"$f":"IF(A799=\"\",\"\",IF(ISERROR(VLOOKUP(A799,Correção!$B$2:$G$13,9,FALSE)),VLOOKUP($A799,Economática!$A$3:$AI$823,9,FALSE),VLOOKUP(A799,Correção!$B$2:$G$13,9,FALSE)))","v":""},{"$f":"IF($A799=\"\",\"\",Economática!G777)","v":""},{"$f":"IF($A799=\"\",\"\",IF(OR(VLOOKUP($A799,Economática!$A$3:$AI$823,10,FALSE)=0,VLOOKUP($A799,Economática!$A$3:$AI$823,10,FALSE)=\"-\"),1/0,VLOOKUP($A799,Economática!$A$3:$AI$823,10,FALSE)))","v":""},{"$f":"IF($A799=\"\",\"\",IF(OR(VLOOKUP($A799,Economática!$A$3:$AI$823,11,FALSE)=0,VLOOKUP($A799,Economática!$A$3:$AI$823,11,FALSE)=\"-\"),1/0,VLOOKUP($A799,Economática!$A$3:$AI$823,11,FALSE)))","v":""},{"$f":"IF($A799=\"\",\"\",IF(OR(VLOOKUP($A799,Economática!$A$3:$AI$823,12,FALSE)=0,VLOOKUP($A799,Economática!$A$3:$AI$823,12,FALSE)=\"-\"),1/0,VLOOKUP($A799,Economática!$A$3:$AI$823,12,FALSE)))","v":""},{"$f":"IF($A799=\"\",\"\",IF(OR(VLOOKUP($A799,Economática!$A$3:$AI$823,13,FALSE)=0,VLOOKUP($A799,Economática!$A$3:$AI$823,13,FALSE)=\"-\"),1/0,VLOOKUP($A799,Economática!$A$3:$AI$823,13,FALSE)))","v":""},{"$f":"IF($A799=\"\",\"\",IF(OR(VLOOKUP($A799,Economática!$A$3:$AI$823,14,FALSE)=0,VLOOKUP($A799,Economática!$A$3:$AI$823,14,FALSE)=\"-\"),1/0,VLOOKUP($A799,Economática!$A$3:$AI$823,14,FALSE)))","v":""},{"$f":"IF($A799=\"\",\"\",IF(OR(VLOOKUP($A799,Economática!$A$3:$AI$823,15,FALSE)=0,VLOOKUP($A799,Economática!$A$3:$AI$823,15,FALSE)=\"-\"),1/0,VLOOKUP($A799,Economática!$A$3:$AI$823,15,FALSE)))","v":""},{"$f":"IF($A799=\"\",\"\",IF(OR(VLOOKUP($A799,Economática!$A$3:$AI$823,16,FALSE)=0,VLOOKUP($A799,Economática!$A$3:$AI$823,16,FALSE)=\"-\"),1/0,VLOOKUP($A799,Economática!$A$3:$AI$823,16,FALSE)))","v":""},{"$f":"IF($A799=\"\",\"\",IF(OR(VLOOKUP($A799,Economática!$A$3:$AI$823,17,FALSE)=0,VLOOKUP($A799,Economática!$A$3:$AI$823,17,FALSE)=\"-\"),1/0,VLOOKUP($A799,Economática!$A$3:$AI$823,17,FALSE)))","v":""},{"$f":"IF($A799=\"\",\"\",IF(OR(VLOOKUP($A799,Economática!$A$3:$AI$823,18,FALSE)=0,VLOOKUP($A799,Economática!$A$3:$AI$823,18,FALSE)=\"-\"),1/0,VLOOKUP($A799,Economática!$A$3:$AI$823,18,FALSE)))","v":""},{"$f":"IF($A799=\"\",\"\",IF(OR(VLOOKUP($A799,Economática!$A$3:$AI$823,19,FALSE)=0,VLOOKUP($A799,Economática!$A$3:$AI$823,19,FALSE)=\"-\"),1/0,VLOOKUP($A799,Economática!$A$3:$AI$823,19,FALSE)))","v":""},{"$f":"IF($A799=\"\",\"\",VLOOKUP($A799,Economática!$A$3:$AI$823,20,FALSE)/E799)","v":""},"","","",{"$f":"IF($A799=\"\",\"\",IF(OR(VLOOKUP($A799,Economática!$A$3:$AI$823,21,FALSE)/100=0,VLOOKUP($A799,Economática!$A$3:$AI$823,21,FALSE)/100=\"-\"),1/0,VLOOKUP($A799,Economática!$A$3:$AI$823,21,FALSE)/100))","v":""},{"$f":"IF($A799=\"\",\"\",IF(OR(VLOOKUP($A799,Economática!$A$3:$AI$823,22,FALSE)/100=0,VLOOKUP($A799,Economática!$A$3:$AI$823,22,FALSE)/100=\"-\"),1/0,VLOOKUP($A799,Economática!$A$3:$AI$823,22,FALSE)/100))","v":""},{"$f":"IF($A799=\"\",\"\",IF(OR(VLOOKUP($A799,Economática!$A$3:$AI$823,23,FALSE)=0,VLOOKUP($A799,Economática!$A$3:$AI$823,23,FALSE)=\"-\"),1/0,VLOOKUP($A799,Economática!$A$3:$AI$823,23,FALSE)))","v":""},{"$f":"IF($A799=\"\",\"\",IF(OR(VLOOKUP($A799,Economática!$A$3:$AI$823,24,FALSE)=0,VLOOKUP($A799,Economática!$A$3:$AI$823,24,FALSE)=\"-\"),1/0,VLOOKUP($A799,Economática!$A$3:$AI$823,24,FALSE)))","v":""},{"$f":"IF($A799=\"\",\"\",IF(OR(VLOOKUP($A799,Economática!$A$3:$AI$823,25,FALSE)=0,VLOOKUP($A799,Economática!$A$3:$AI$823,25,FALSE)=\"-\"),1/0,VLOOKUP($A799,Economática!$A$3:$AI$823,25,FALSE)))","v":""},{"$f":"IF($A799=\"\",\"\",IF(ISERROR((F799+VLOOKUP($A799,Economática!$A$3:$AI$823,26,FALSE))/Y799),(F799+VLOOKUP($A799,Economática!$A$3:$AI$823,26,FALSE))/Y799,(F799+VLOOKUP($A799,Economática!$A$3:$AI$823,26,FALSE))/Y799))","v":""},{"$f":"IF($A799=\"\",\"\",IF(OR(-VLOOKUP($A799,Economática!$A$3:$AI$823,27,FALSE)=0,-VLOOKUP($A799,Economática!$A$3:$AI$823,27,FALSE)=\"-\"),1/0,-VLOOKUP($A799,Economática!$A$3:$AI$823,27,FALSE)))","v":""},"",{"$f":"IF($A799=\"\",\"\",IF(OR(VLOOKUP($A799,Economática!$A$3:$AI$823,28,FALSE)=0,VLOOKUP($A799,Economática!$A$3:$AI$823,28,FALSE)=\"-\"),1/0,VLOOKUP($A799,Economática!$A$3:$AI$823,28,FALSE)))","v":""},{"$f":"IF($A799=\"\",\"\",IF(OR(VLOOKUP($A799,Economática!$A$3:$AI$823,29,FALSE)=0,VLOOKUP($A799,Economática!$A$3:$AI$823,29,FALSE)=\"-\"),1/0,VLOOKUP($A799,Economática!$A$3:$AI$823,29,FALSE)))","v":""},{"$f":"IF($A799=\"\",\"\",IF(OR(VLOOKUP($A799,Economática!$A$3:$AI$823,30,FALSE)/E799=0,VLOOKUP($A799,Economática!$A$3:$AI$823,30,FALSE)/E799=\"-\",VLOOKUP($A799,Economática!$A$3:$AI$823,30,FALSE)/E799<33.33%,VLOOKUP($A799,Economática!$A$3:$AI$823,30,FALSE)/E799>100%),1/0,VLOOKUP($A799,Economática!$A$3:$AI$823,30,FALSE)/E799))","v":""},"",{"$f":"IF($A799=\"\",\"\",IF(OR(VLOOKUP($A799,Economática!$A$3:$AI$823,25,FALSE)=0,VLOOKUP($A799,Economática!$A$3:$AI$823,25,FALSE)=\"-\"),1/0,VLOOKUP($A799,Economática!$A$3:$AI$823,25,FALSE)))","v":""},{"$f":"CONCATENATE(Economática!B777,\" \",Economática!C777)","v":" "}]
[{"$f":"IF(Economática!AG778=\"\",\"\",Economática!AG778)","v":""},{"$f":"IF($A800=\"\",\"\",VLOOKUP(VLOOKUP($A800,Economática!$A$3:$AI$823,6,FALSE),Correção!$B$16:$C$36,2,FALSE))","v":""},{"$f":"IF(Economática!B778=\"\",\"\",Economática!B778)","v":""},{"$f":"IF($A800=\"\",\"\",IF(OR(VLOOKUP($A800,Economática!$A$3:$AI$823,8,FALSE)=0,VLOOKUP($A800,Economática!$A$3:$AI$823,8,FALSE)=\"-\"),1/0,VLOOKUP($A800,Economática!$A$3:$AI$823,8,FALSE)))","v":""},{"$f":"IF(A800=\"\",\"\",IF(ISERROR(VLOOKUP(A800,Correção!$B$2:$G$13,9,FALSE)),VLOOKUP($A800,Economática!$A$3:$AI$823,9,FALSE),VLOOKUP(A800,Correção!$B$2:$G$13,9,FALSE)))","v":""},{"$f":"IF($A800=\"\",\"\",Economática!G778)","v":""},{"$f":"IF($A800=\"\",\"\",IF(OR(VLOOKUP($A800,Economática!$A$3:$AI$823,10,FALSE)=0,VLOOKUP($A800,Economática!$A$3:$AI$823,10,FALSE)=\"-\"),1/0,VLOOKUP($A800,Economática!$A$3:$AI$823,10,FALSE)))","v":""},{"$f":"IF($A800=\"\",\"\",IF(OR(VLOOKUP($A800,Economática!$A$3:$AI$823,11,FALSE)=0,VLOOKUP($A800,Economática!$A$3:$AI$823,11,FALSE)=\"-\"),1/0,VLOOKUP($A800,Economática!$A$3:$AI$823,11,FALSE)))","v":""},{"$f":"IF($A800=\"\",\"\",IF(OR(VLOOKUP($A800,Economática!$A$3:$AI$823,12,FALSE)=0,VLOOKUP($A800,Economática!$A$3:$AI$823,12,FALSE)=\"-\"),1/0,VLOOKUP($A800,Economática!$A$3:$AI$823,12,FALSE)))","v":""},{"$f":"IF($A800=\"\",\"\",IF(OR(VLOOKUP($A800,Economática!$A$3:$AI$823,13,FALSE)=0,VLOOKUP($A800,Economática!$A$3:$AI$823,13,FALSE)=\"-\"),1/0,VLOOKUP($A800,Economática!$A$3:$AI$823,13,FALSE)))","v":""},{"$f":"IF($A800=\"\",\"\",IF(OR(VLOOKUP($A800,Economática!$A$3:$AI$823,14,FALSE)=0,VLOOKUP($A800,Economática!$A$3:$AI$823,14,FALSE)=\"-\"),1/0,VLOOKUP($A800,Economática!$A$3:$AI$823,14,FALSE)))","v":""},{"$f":"IF($A800=\"\",\"\",IF(OR(VLOOKUP($A800,Economática!$A$3:$AI$823,15,FALSE)=0,VLOOKUP($A800,Economática!$A$3:$AI$823,15,FALSE)=\"-\"),1/0,VLOOKUP($A800,Economática!$A$3:$AI$823,15,FALSE)))","v":""},{"$f":"IF($A800=\"\",\"\",IF(OR(VLOOKUP($A800,Economática!$A$3:$AI$823,16,FALSE)=0,VLOOKUP($A800,Economática!$A$3:$AI$823,16,FALSE)=\"-\"),1/0,VLOOKUP($A800,Economática!$A$3:$AI$823,16,FALSE)))","v":""},{"$f":"IF($A800=\"\",\"\",IF(OR(VLOOKUP($A800,Economática!$A$3:$AI$823,17,FALSE)=0,VLOOKUP($A800,Economática!$A$3:$AI$823,17,FALSE)=\"-\"),1/0,VLOOKUP($A800,Economática!$A$3:$AI$823,17,FALSE)))","v":""},{"$f":"IF($A800=\"\",\"\",IF(OR(VLOOKUP($A800,Economática!$A$3:$AI$823,18,FALSE)=0,VLOOKUP($A800,Economática!$A$3:$AI$823,18,FALSE)=\"-\"),1/0,VLOOKUP($A800,Economática!$A$3:$AI$823,18,FALSE)))","v":""},{"$f":"IF($A800=\"\",\"\",IF(OR(VLOOKUP($A800,Economática!$A$3:$AI$823,19,FALSE)=0,VLOOKUP($A800,Economática!$A$3:$AI$823,19,FALSE)=\"-\"),1/0,VLOOKUP($A800,Economática!$A$3:$AI$823,19,FALSE)))","v":""},{"$f":"IF($A800=\"\",\"\",VLOOKUP($A800,Economática!$A$3:$AI$823,20,FALSE)/E800)","v":""},"","","",{"$f":"IF($A800=\"\",\"\",IF(OR(VLOOKUP($A800,Economática!$A$3:$AI$823,21,FALSE)/100=0,VLOOKUP($A800,Economática!$A$3:$AI$823,21,FALSE)/100=\"-\"),1/0,VLOOKUP($A800,Economática!$A$3:$AI$823,21,FALSE)/100))","v":""},{"$f":"IF($A800=\"\",\"\",IF(OR(VLOOKUP($A800,Economática!$A$3:$AI$823,22,FALSE)/100=0,VLOOKUP($A800,Economática!$A$3:$AI$823,22,FALSE)/100=\"-\"),1/0,VLOOKUP($A800,Economática!$A$3:$AI$823,22,FALSE)/100))","v":""},{"$f":"IF($A800=\"\",\"\",IF(OR(VLOOKUP($A800,Economática!$A$3:$AI$823,23,FALSE)=0,VLOOKUP($A800,Economática!$A$3:$AI$823,23,FALSE)=\"-\"),1/0,VLOOKUP($A800,Economática!$A$3:$AI$823,23,FALSE)))","v":""},{"$f":"IF($A800=\"\",\"\",IF(OR(VLOOKUP($A800,Economática!$A$3:$AI$823,24,FALSE)=0,VLOOKUP($A800,Economática!$A$3:$AI$823,24,FALSE)=\"-\"),1/0,VLOOKUP($A800,Economática!$A$3:$AI$823,24,FALSE)))","v":""},{"$f":"IF($A800=\"\",\"\",IF(OR(VLOOKUP($A800,Economática!$A$3:$AI$823,25,FALSE)=0,VLOOKUP($A800,Economática!$A$3:$AI$823,25,FALSE)=\"-\"),1/0,VLOOKUP($A800,Economática!$A$3:$AI$823,25,FALSE)))","v":""},{"$f":"IF($A800=\"\",\"\",IF(ISERROR((F800+VLOOKUP($A800,Economática!$A$3:$AI$823,26,FALSE))/Y800),(F800+VLOOKUP($A800,Economática!$A$3:$AI$823,26,FALSE))/Y800,(F800+VLOOKUP($A800,Economática!$A$3:$AI$823,26,FALSE))/Y800))","v":""},{"$f":"IF($A800=\"\",\"\",IF(OR(-VLOOKUP($A800,Economática!$A$3:$AI$823,27,FALSE)=0,-VLOOKUP($A800,Economática!$A$3:$AI$823,27,FALSE)=\"-\"),1/0,-VLOOKUP($A800,Economática!$A$3:$AI$823,27,FALSE)))","v":""},"",{"$f":"IF($A800=\"\",\"\",IF(OR(VLOOKUP($A800,Economática!$A$3:$AI$823,28,FALSE)=0,VLOOKUP($A800,Economática!$A$3:$AI$823,28,FALSE)=\"-\"),1/0,VLOOKUP($A800,Economática!$A$3:$AI$823,28,FALSE)))","v":""},{"$f":"IF($A800=\"\",\"\",IF(OR(VLOOKUP($A800,Economática!$A$3:$AI$823,29,FALSE)=0,VLOOKUP($A800,Economática!$A$3:$AI$823,29,FALSE)=\"-\"),1/0,VLOOKUP($A800,Economática!$A$3:$AI$823,29,FALSE)))","v":""},{"$f":"IF($A800=\"\",\"\",IF(OR(VLOOKUP($A800,Economática!$A$3:$AI$823,30,FALSE)/E800=0,VLOOKUP($A800,Economática!$A$3:$AI$823,30,FALSE)/E800=\"-\",VLOOKUP($A800,Economática!$A$3:$AI$823,30,FALSE)/E800<33.33%,VLOOKUP($A800,Economática!$A$3:$AI$823,30,FALSE)/E800>100%),1/0,VLOOKUP($A800,Economática!$A$3:$AI$823,30,FALSE)/E800))","v":""},"",{"$f":"IF($A800=\"\",\"\",IF(OR(VLOOKUP($A800,Economática!$A$3:$AI$823,25,FALSE)=0,VLOOKUP($A800,Economática!$A$3:$AI$823,25,FALSE)=\"-\"),1/0,VLOOKUP($A800,Economática!$A$3:$AI$823,25,FALSE)))","v":""},{"$f":"CONCATENATE(Economática!B778,\" \",Economática!C778)","v":" "}]
[{"$f":"IF(Economática!AG779=\"\",\"\",Economática!AG779)","v":""},{"$f":"IF($A801=\"\",\"\",VLOOKUP(VLOOKUP($A801,Economática!$A$3:$AI$823,6,FALSE),Correção!$B$16:$C$36,2,FALSE))","v":""},{"$f":"IF(Economática!B779=\"\",\"\",Economática!B779)","v":""},{"$f":"IF($A801=\"\",\"\",IF(OR(VLOOKUP($A801,Economática!$A$3:$AI$823,8,FALSE)=0,VLOOKUP($A801,Economática!$A$3:$AI$823,8,FALSE)=\"-\"),1/0,VLOOKUP($A801,Economática!$A$3:$AI$823,8,FALSE)))","v":""},{"$f":"IF(A801=\"\",\"\",IF(ISERROR(VLOOKUP(A801,Correção!$B$2:$G$13,9,FALSE)),VLOOKUP($A801,Economática!$A$3:$AI$823,9,FALSE),VLOOKUP(A801,Correção!$B$2:$G$13,9,FALSE)))","v":""},{"$f":"IF($A801=\"\",\"\",Economática!G779)","v":""},{"$f":"IF($A801=\"\",\"\",IF(OR(VLOOKUP($A801,Economática!$A$3:$AI$823,10,FALSE)=0,VLOOKUP($A801,Economática!$A$3:$AI$823,10,FALSE)=\"-\"),1/0,VLOOKUP($A801,Economática!$A$3:$AI$823,10,FALSE)))","v":""},{"$f":"IF($A801=\"\",\"\",IF(OR(VLOOKUP($A801,Economática!$A$3:$AI$823,11,FALSE)=0,VLOOKUP($A801,Economática!$A$3:$AI$823,11,FALSE)=\"-\"),1/0,VLOOKUP($A801,Economática!$A$3:$AI$823,11,FALSE)))","v":""},{"$f":"IF($A801=\"\",\"\",IF(OR(VLOOKUP($A801,Economática!$A$3:$AI$823,12,FALSE)=0,VLOOKUP($A801,Economática!$A$3:$AI$823,12,FALSE)=\"-\"),1/0,VLOOKUP($A801,Economática!$A$3:$AI$823,12,FALSE)))","v":""},{"$f":"IF($A801=\"\",\"\",IF(OR(VLOOKUP($A801,Economática!$A$3:$AI$823,13,FALSE)=0,VLOOKUP($A801,Economática!$A$3:$AI$823,13,FALSE)=\"-\"),1/0,VLOOKUP($A801,Economática!$A$3:$AI$823,13,FALSE)))","v":""},{"$f":"IF($A801=\"\",\"\",IF(OR(VLOOKUP($A801,Economática!$A$3:$AI$823,14,FALSE)=0,VLOOKUP($A801,Economática!$A$3:$AI$823,14,FALSE)=\"-\"),1/0,VLOOKUP($A801,Economática!$A$3:$AI$823,14,FALSE)))","v":""},{"$f":"IF($A801=\"\",\"\",IF(OR(VLOOKUP($A801,Economática!$A$3:$AI$823,15,FALSE)=0,VLOOKUP($A801,Economática!$A$3:$AI$823,15,FALSE)=\"-\"),1/0,VLOOKUP($A801,Economática!$A$3:$AI$823,15,FALSE)))","v":""},{"$f":"IF($A801=\"\",\"\",IF(OR(VLOOKUP($A801,Economática!$A$3:$AI$823,16,FALSE)=0,VLOOKUP($A801,Economática!$A$3:$AI$823,16,FALSE)=\"-\"),1/0,VLOOKUP($A801,Economática!$A$3:$AI$823,16,FALSE)))","v":""},{"$f":"IF($A801=\"\",\"\",IF(OR(VLOOKUP($A801,Economática!$A$3:$AI$823,17,FALSE)=0,VLOOKUP($A801,Economática!$A$3:$AI$823,17,FALSE)=\"-\"),1/0,VLOOKUP($A801,Economática!$A$3:$AI$823,17,FALSE)))","v":""},{"$f":"IF($A801=\"\",\"\",IF(OR(VLOOKUP($A801,Economática!$A$3:$AI$823,18,FALSE)=0,VLOOKUP($A801,Economática!$A$3:$AI$823,18,FALSE)=\"-\"),1/0,VLOOKUP($A801,Economática!$A$3:$AI$823,18,FALSE)))","v":""},{"$f":"IF($A801=\"\",\"\",IF(OR(VLOOKUP($A801,Economática!$A$3:$AI$823,19,FALSE)=0,VLOOKUP($A801,Economática!$A$3:$AI$823,19,FALSE)=\"-\"),1/0,VLOOKUP($A801,Economática!$A$3:$AI$823,19,FALSE)))","v":""},{"$f":"IF($A801=\"\",\"\",VLOOKUP($A801,Economática!$A$3:$AI$823,20,FALSE)/E801)","v":""},"","","",{"$f":"IF($A801=\"\",\"\",IF(OR(VLOOKUP($A801,Economática!$A$3:$AI$823,21,FALSE)/100=0,VLOOKUP($A801,Economática!$A$3:$AI$823,21,FALSE)/100=\"-\"),1/0,VLOOKUP($A801,Economática!$A$3:$AI$823,21,FALSE)/100))","v":""},{"$f":"IF($A801=\"\",\"\",IF(OR(VLOOKUP($A801,Economática!$A$3:$AI$823,22,FALSE)/100=0,VLOOKUP($A801,Economática!$A$3:$AI$823,22,FALSE)/100=\"-\"),1/0,VLOOKUP($A801,Economática!$A$3:$AI$823,22,FALSE)/100))","v":""},{"$f":"IF($A801=\"\",\"\",IF(OR(VLOOKUP($A801,Economática!$A$3:$AI$823,23,FALSE)=0,VLOOKUP($A801,Economática!$A$3:$AI$823,23,FALSE)=\"-\"),1/0,VLOOKUP($A801,Economática!$A$3:$AI$823,23,FALSE)))","v":""},{"$f":"IF($A801=\"\",\"\",IF(OR(VLOOKUP($A801,Economática!$A$3:$AI$823,24,FALSE)=0,VLOOKUP($A801,Economática!$A$3:$AI$823,24,FALSE)=\"-\"),1/0,VLOOKUP($A801,Economática!$A$3:$AI$823,24,FALSE)))","v":""},{"$f":"IF($A801=\"\",\"\",IF(OR(VLOOKUP($A801,Economática!$A$3:$AI$823,25,FALSE)=0,VLOOKUP($A801,Economática!$A$3:$AI$823,25,FALSE)=\"-\"),1/0,VLOOKUP($A801,Economática!$A$3:$AI$823,25,FALSE)))","v":""},{"$f":"IF($A801=\"\",\"\",IF(ISERROR((F801+VLOOKUP($A801,Economática!$A$3:$AI$823,26,FALSE))/Y801),(F801+VLOOKUP($A801,Economática!$A$3:$AI$823,26,FALSE))/Y801,(F801+VLOOKUP($A801,Economática!$A$3:$AI$823,26,FALSE))/Y801))","v":""},{"$f":"IF($A801=\"\",\"\",IF(OR(-VLOOKUP($A801,Economática!$A$3:$AI$823,27,FALSE)=0,-VLOOKUP($A801,Economática!$A$3:$AI$823,27,FALSE)=\"-\"),1/0,-VLOOKUP($A801,Economática!$A$3:$AI$823,27,FALSE)))","v":""},"",{"$f":"IF($A801=\"\",\"\",IF(OR(VLOOKUP($A801,Economática!$A$3:$AI$823,28,FALSE)=0,VLOOKUP($A801,Economática!$A$3:$AI$823,28,FALSE)=\"-\"),1/0,VLOOKUP($A801,Economática!$A$3:$AI$823,28,FALSE)))","v":""},{"$f":"IF($A801=\"\",\"\",IF(OR(VLOOKUP($A801,Economática!$A$3:$AI$823,29,FALSE)=0,VLOOKUP($A801,Economática!$A$3:$AI$823,29,FALSE)=\"-\"),1/0,VLOOKUP($A801,Economática!$A$3:$AI$823,29,FALSE)))","v":""},{"$f":"IF($A801=\"\",\"\",IF(OR(VLOOKUP($A801,Economática!$A$3:$AI$823,30,FALSE)/E801=0,VLOOKUP($A801,Economática!$A$3:$AI$823,30,FALSE)/E801=\"-\",VLOOKUP($A801,Economática!$A$3:$AI$823,30,FALSE)/E801<33.33%,VLOOKUP($A801,Economática!$A$3:$AI$823,30,FALSE)/E801>100%),1/0,VLOOKUP($A801,Economática!$A$3:$AI$823,30,FALSE)/E801))","v":""},"",{"$f":"IF($A801=\"\",\"\",IF(OR(VLOOKUP($A801,Economática!$A$3:$AI$823,25,FALSE)=0,VLOOKUP($A801,Economática!$A$3:$AI$823,25,FALSE)=\"-\"),1/0,VLOOKUP($A801,Economática!$A$3:$AI$823,25,FALSE)))","v":""},{"$f":"CONCATENATE(Economática!B779,\" \",Economática!C779)","v":" "}]
[{"$f":"IF(Economática!AG780=\"\",\"\",Economática!AG780)","v":""},{"$f":"IF($A802=\"\",\"\",VLOOKUP(VLOOKUP($A802,Economática!$A$3:$AI$823,6,FALSE),Correção!$B$16:$C$36,2,FALSE))","v":""},{"$f":"IF(Economática!B780=\"\",\"\",Economática!B780)","v":""},{"$f":"IF($A802=\"\",\"\",IF(OR(VLOOKUP($A802,Economática!$A$3:$AI$823,8,FALSE)=0,VLOOKUP($A802,Economática!$A$3:$AI$823,8,FALSE)=\"-\"),1/0,VLOOKUP($A802,Economática!$A$3:$AI$823,8,FALSE)))","v":""},{"$f":"IF(A802=\"\",\"\",IF(ISERROR(VLOOKUP(A802,Correção!$B$2:$G$13,9,FALSE)),VLOOKUP($A802,Economática!$A$3:$AI$823,9,FALSE),VLOOKUP(A802,Correção!$B$2:$G$13,9,FALSE)))","v":""},{"$f":"IF($A802=\"\",\"\",Economática!G780)","v":""},{"$f":"IF($A802=\"\",\"\",IF(OR(VLOOKUP($A802,Economática!$A$3:$AI$823,10,FALSE)=0,VLOOKUP($A802,Economática!$A$3:$AI$823,10,FALSE)=\"-\"),1/0,VLOOKUP($A802,Economática!$A$3:$AI$823,10,FALSE)))","v":""},{"$f":"IF($A802=\"\",\"\",IF(OR(VLOOKUP($A802,Economática!$A$3:$AI$823,11,FALSE)=0,VLOOKUP($A802,Economática!$A$3:$AI$823,11,FALSE)=\"-\"),1/0,VLOOKUP($A802,Economática!$A$3:$AI$823,11,FALSE)))","v":""},{"$f":"IF($A802=\"\",\"\",IF(OR(VLOOKUP($A802,Economática!$A$3:$AI$823,12,FALSE)=0,VLOOKUP($A802,Economática!$A$3:$AI$823,12,FALSE)=\"-\"),1/0,VLOOKUP($A802,Economática!$A$3:$AI$823,12,FALSE)))","v":""},{"$f":"IF($A802=\"\",\"\",IF(OR(VLOOKUP($A802,Economática!$A$3:$AI$823,13,FALSE)=0,VLOOKUP($A802,Economática!$A$3:$AI$823,13,FALSE)=\"-\"),1/0,VLOOKUP($A802,Economática!$A$3:$AI$823,13,FALSE)))","v":""},{"$f":"IF($A802=\"\",\"\",IF(OR(VLOOKUP($A802,Economática!$A$3:$AI$823,14,FALSE)=0,VLOOKUP($A802,Economática!$A$3:$AI$823,14,FALSE)=\"-\"),1/0,VLOOKUP($A802,Economática!$A$3:$AI$823,14,FALSE)))","v":""},{"$f":"IF($A802=\"\",\"\",IF(OR(VLOOKUP($A802,Economática!$A$3:$AI$823,15,FALSE)=0,VLOOKUP($A802,Economática!$A$3:$AI$823,15,FALSE)=\"-\"),1/0,VLOOKUP($A802,Economática!$A$3:$AI$823,15,FALSE)))","v":""},{"$f":"IF($A802=\"\",\"\",IF(OR(VLOOKUP($A802,Economática!$A$3:$AI$823,16,FALSE)=0,VLOOKUP($A802,Economática!$A$3:$AI$823,16,FALSE)=\"-\"),1/0,VLOOKUP($A802,Economática!$A$3:$AI$823,16,FALSE)))","v":""},{"$f":"IF($A802=\"\",\"\",IF(OR(VLOOKUP($A802,Economática!$A$3:$AI$823,17,FALSE)=0,VLOOKUP($A802,Economática!$A$3:$AI$823,17,FALSE)=\"-\"),1/0,VLOOKUP($A802,Economática!$A$3:$AI$823,17,FALSE)))","v":""},{"$f":"IF($A802=\"\",\"\",IF(OR(VLOOKUP($A802,Economática!$A$3:$AI$823,18,FALSE)=0,VLOOKUP($A802,Economática!$A$3:$AI$823,18,FALSE)=\"-\"),1/0,VLOOKUP($A802,Economática!$A$3:$AI$823,18,FALSE)))","v":""},{"$f":"IF($A802=\"\",\"\",IF(OR(VLOOKUP($A802,Economática!$A$3:$AI$823,19,FALSE)=0,VLOOKUP($A802,Economática!$A$3:$AI$823,19,FALSE)=\"-\"),1/0,VLOOKUP($A802,Economática!$A$3:$AI$823,19,FALSE)))","v":""},{"$f":"IF($A802=\"\",\"\",VLOOKUP($A802,Economática!$A$3:$AI$823,20,FALSE)/E802)","v":""},"","","",{"$f":"IF($A802=\"\",\"\",IF(OR(VLOOKUP($A802,Economática!$A$3:$AI$823,21,FALSE)/100=0,VLOOKUP($A802,Economática!$A$3:$AI$823,21,FALSE)/100=\"-\"),1/0,VLOOKUP($A802,Economática!$A$3:$AI$823,21,FALSE)/100))","v":""},{"$f":"IF($A802=\"\",\"\",IF(OR(VLOOKUP($A802,Economática!$A$3:$AI$823,22,FALSE)/100=0,VLOOKUP($A802,Economática!$A$3:$AI$823,22,FALSE)/100=\"-\"),1/0,VLOOKUP($A802,Economática!$A$3:$AI$823,22,FALSE)/100))","v":""},{"$f":"IF($A802=\"\",\"\",IF(OR(VLOOKUP($A802,Economática!$A$3:$AI$823,23,FALSE)=0,VLOOKUP($A802,Economática!$A$3:$AI$823,23,FALSE)=\"-\"),1/0,VLOOKUP($A802,Economática!$A$3:$AI$823,23,FALSE)))","v":""},{"$f":"IF($A802=\"\",\"\",IF(OR(VLOOKUP($A802,Economática!$A$3:$AI$823,24,FALSE)=0,VLOOKUP($A802,Economática!$A$3:$AI$823,24,FALSE)=\"-\"),1/0,VLOOKUP($A802,Economática!$A$3:$AI$823,24,FALSE)))","v":""},{"$f":"IF($A802=\"\",\"\",IF(OR(VLOOKUP($A802,Economática!$A$3:$AI$823,25,FALSE)=0,VLOOKUP($A802,Economática!$A$3:$AI$823,25,FALSE)=\"-\"),1/0,VLOOKUP($A802,Economática!$A$3:$AI$823,25,FALSE)))","v":""},{"$f":"IF($A802=\"\",\"\",IF(ISERROR((F802+VLOOKUP($A802,Economática!$A$3:$AI$823,26,FALSE))/Y802),(F802+VLOOKUP($A802,Economática!$A$3:$AI$823,26,FALSE))/Y802,(F802+VLOOKUP($A802,Economática!$A$3:$AI$823,26,FALSE))/Y802))","v":""},{"$f":"IF($A802=\"\",\"\",IF(OR(-VLOOKUP($A802,Economática!$A$3:$AI$823,27,FALSE)=0,-VLOOKUP($A802,Economática!$A$3:$AI$823,27,FALSE)=\"-\"),1/0,-VLOOKUP($A802,Economática!$A$3:$AI$823,27,FALSE)))","v":""},"",{"$f":"IF($A802=\"\",\"\",IF(OR(VLOOKUP($A802,Economática!$A$3:$AI$823,28,FALSE)=0,VLOOKUP($A802,Economática!$A$3:$AI$823,28,FALSE)=\"-\"),1/0,VLOOKUP($A802,Economática!$A$3:$AI$823,28,FALSE)))","v":""},{"$f":"IF($A802=\"\",\"\",IF(OR(VLOOKUP($A802,Economática!$A$3:$AI$823,29,FALSE)=0,VLOOKUP($A802,Economática!$A$3:$AI$823,29,FALSE)=\"-\"),1/0,VLOOKUP($A802,Economática!$A$3:$AI$823,29,FALSE)))","v":""},{"$f":"IF($A802=\"\",\"\",IF(OR(VLOOKUP($A802,Economática!$A$3:$AI$823,30,FALSE)/E802=0,VLOOKUP($A802,Economática!$A$3:$AI$823,30,FALSE)/E802=\"-\",VLOOKUP($A802,Economática!$A$3:$AI$823,30,FALSE)/E802<33.33%,VLOOKUP($A802,Economática!$A$3:$AI$823,30,FALSE)/E802>100%),1/0,VLOOKUP($A802,Economática!$A$3:$AI$823,30,FALSE)/E802))","v":""},"",{"$f":"IF($A802=\"\",\"\",IF(OR(VLOOKUP($A802,Economática!$A$3:$AI$823,25,FALSE)=0,VLOOKUP($A802,Economática!$A$3:$AI$823,25,FALSE)=\"-\"),1/0,VLOOKUP($A802,Economática!$A$3:$AI$823,25,FALSE)))","v":""},{"$f":"CONCATENATE(Economática!B780,\" \",Economática!C780)","v":" "}]
[{"$f":"IF(Economática!AG781=\"\",\"\",Economática!AG781)","v":""},{"$f":"IF($A803=\"\",\"\",VLOOKUP(VLOOKUP($A803,Economática!$A$3:$AI$823,6,FALSE),Correção!$B$16:$C$36,2,FALSE))","v":""},{"$f":"IF(Economática!B781=\"\",\"\",Economática!B781)","v":""},{"$f":"IF($A803=\"\",\"\",IF(OR(VLOOKUP($A803,Economática!$A$3:$AI$823,8,FALSE)=0,VLOOKUP($A803,Economática!$A$3:$AI$823,8,FALSE)=\"-\"),1/0,VLOOKUP($A803,Economática!$A$3:$AI$823,8,FALSE)))","v":""},{"$f":"IF(A803=\"\",\"\",IF(ISERROR(VLOOKUP(A803,Correção!$B$2:$G$13,9,FALSE)),VLOOKUP($A803,Economática!$A$3:$AI$823,9,FALSE),VLOOKUP(A803,Correção!$B$2:$G$13,9,FALSE)))","v":""},{"$f":"IF($A803=\"\",\"\",Economática!G781)","v":""},{"$f":"IF($A803=\"\",\"\",IF(OR(VLOOKUP($A803,Economática!$A$3:$AI$823,10,FALSE)=0,VLOOKUP($A803,Economática!$A$3:$AI$823,10,FALSE)=\"-\"),1/0,VLOOKUP($A803,Economática!$A$3:$AI$823,10,FALSE)))","v":""},{"$f":"IF($A803=\"\",\"\",IF(OR(VLOOKUP($A803,Economática!$A$3:$AI$823,11,FALSE)=0,VLOOKUP($A803,Economática!$A$3:$AI$823,11,FALSE)=\"-\"),1/0,VLOOKUP($A803,Economática!$A$3:$AI$823,11,FALSE)))","v":""},{"$f":"IF($A803=\"\",\"\",IF(OR(VLOOKUP($A803,Economática!$A$3:$AI$823,12,FALSE)=0,VLOOKUP($A803,Economática!$A$3:$AI$823,12,FALSE)=\"-\"),1/0,VLOOKUP($A803,Economática!$A$3:$AI$823,12,FALSE)))","v":""},{"$f":"IF($A803=\"\",\"\",IF(OR(VLOOKUP($A803,Economática!$A$3:$AI$823,13,FALSE)=0,VLOOKUP($A803,Economática!$A$3:$AI$823,13,FALSE)=\"-\"),1/0,VLOOKUP($A803,Economática!$A$3:$AI$823,13,FALSE)))","v":""},{"$f":"IF($A803=\"\",\"\",IF(OR(VLOOKUP($A803,Economática!$A$3:$AI$823,14,FALSE)=0,VLOOKUP($A803,Economática!$A$3:$AI$823,14,FALSE)=\"-\"),1/0,VLOOKUP($A803,Economática!$A$3:$AI$823,14,FALSE)))","v":""},{"$f":"IF($A803=\"\",\"\",IF(OR(VLOOKUP($A803,Economática!$A$3:$AI$823,15,FALSE)=0,VLOOKUP($A803,Economática!$A$3:$AI$823,15,FALSE)=\"-\"),1/0,VLOOKUP($A803,Economática!$A$3:$AI$823,15,FALSE)))","v":""},{"$f":"IF($A803=\"\",\"\",IF(OR(VLOOKUP($A803,Economática!$A$3:$AI$823,16,FALSE)=0,VLOOKUP($A803,Economática!$A$3:$AI$823,16,FALSE)=\"-\"),1/0,VLOOKUP($A803,Economática!$A$3:$AI$823,16,FALSE)))","v":""},{"$f":"IF($A803=\"\",\"\",IF(OR(VLOOKUP($A803,Economática!$A$3:$AI$823,17,FALSE)=0,VLOOKUP($A803,Economática!$A$3:$AI$823,17,FALSE)=\"-\"),1/0,VLOOKUP($A803,Economática!$A$3:$AI$823,17,FALSE)))","v":""},{"$f":"IF($A803=\"\",\"\",IF(OR(VLOOKUP($A803,Economática!$A$3:$AI$823,18,FALSE)=0,VLOOKUP($A803,Economática!$A$3:$AI$823,18,FALSE)=\"-\"),1/0,VLOOKUP($A803,Economática!$A$3:$AI$823,18,FALSE)))","v":""},{"$f":"IF($A803=\"\",\"\",IF(OR(VLOOKUP($A803,Economática!$A$3:$AI$823,19,FALSE)=0,VLOOKUP($A803,Economática!$A$3:$AI$823,19,FALSE)=\"-\"),1/0,VLOOKUP($A803,Economática!$A$3:$AI$823,19,FALSE)))","v":""},{"$f":"IF($A803=\"\",\"\",VLOOKUP($A803,Economática!$A$3:$AI$823,20,FALSE)/E803)","v":""},"","","",{"$f":"IF($A803=\"\",\"\",IF(OR(VLOOKUP($A803,Economática!$A$3:$AI$823,21,FALSE)/100=0,VLOOKUP($A803,Economática!$A$3:$AI$823,21,FALSE)/100=\"-\"),1/0,VLOOKUP($A803,Economática!$A$3:$AI$823,21,FALSE)/100))","v":""},{"$f":"IF($A803=\"\",\"\",IF(OR(VLOOKUP($A803,Economática!$A$3:$AI$823,22,FALSE)/100=0,VLOOKUP($A803,Economática!$A$3:$AI$823,22,FALSE)/100=\"-\"),1/0,VLOOKUP($A803,Economática!$A$3:$AI$823,22,FALSE)/100))","v":""},{"$f":"IF($A803=\"\",\"\",IF(OR(VLOOKUP($A803,Economática!$A$3:$AI$823,23,FALSE)=0,VLOOKUP($A803,Economática!$A$3:$AI$823,23,FALSE)=\"-\"),1/0,VLOOKUP($A803,Economática!$A$3:$AI$823,23,FALSE)))","v":""},{"$f":"IF($A803=\"\",\"\",IF(OR(VLOOKUP($A803,Economática!$A$3:$AI$823,24,FALSE)=0,VLOOKUP($A803,Economática!$A$3:$AI$823,24,FALSE)=\"-\"),1/0,VLOOKUP($A803,Economática!$A$3:$AI$823,24,FALSE)))","v":""},{"$f":"IF($A803=\"\",\"\",IF(OR(VLOOKUP($A803,Economática!$A$3:$AI$823,25,FALSE)=0,VLOOKUP($A803,Economática!$A$3:$AI$823,25,FALSE)=\"-\"),1/0,VLOOKUP($A803,Economática!$A$3:$AI$823,25,FALSE)))","v":""},{"$f":"IF($A803=\"\",\"\",IF(ISERROR((F803+VLOOKUP($A803,Economática!$A$3:$AI$823,26,FALSE))/Y803),(F803+VLOOKUP($A803,Economática!$A$3:$AI$823,26,FALSE))/Y803,(F803+VLOOKUP($A803,Economática!$A$3:$AI$823,26,FALSE))/Y803))","v":""},{"$f":"IF($A803=\"\",\"\",IF(OR(-VLOOKUP($A803,Economática!$A$3:$AI$823,27,FALSE)=0,-VLOOKUP($A803,Economática!$A$3:$AI$823,27,FALSE)=\"-\"),1/0,-VLOOKUP($A803,Economática!$A$3:$AI$823,27,FALSE)))","v":""},"",{"$f":"IF($A803=\"\",\"\",IF(OR(VLOOKUP($A803,Economática!$A$3:$AI$823,28,FALSE)=0,VLOOKUP($A803,Economática!$A$3:$AI$823,28,FALSE)=\"-\"),1/0,VLOOKUP($A803,Economática!$A$3:$AI$823,28,FALSE)))","v":""},{"$f":"IF($A803=\"\",\"\",IF(OR(VLOOKUP($A803,Economática!$A$3:$AI$823,29,FALSE)=0,VLOOKUP($A803,Economática!$A$3:$AI$823,29,FALSE)=\"-\"),1/0,VLOOKUP($A803,Economática!$A$3:$AI$823,29,FALSE)))","v":""},{"$f":"IF($A803=\"\",\"\",IF(OR(VLOOKUP($A803,Economática!$A$3:$AI$823,30,FALSE)/E803=0,VLOOKUP($A803,Economática!$A$3:$AI$823,30,FALSE)/E803=\"-\",VLOOKUP($A803,Economática!$A$3:$AI$823,30,FALSE)/E803<33.33%,VLOOKUP($A803,Economática!$A$3:$AI$823,30,FALSE)/E803>100%),1/0,VLOOKUP($A803,Economática!$A$3:$AI$823,30,FALSE)/E803))","v":""},"",{"$f":"IF($A803=\"\",\"\",IF(OR(VLOOKUP($A803,Economática!$A$3:$AI$823,25,FALSE)=0,VLOOKUP($A803,Economática!$A$3:$AI$823,25,FALSE)=\"-\"),1/0,VLOOKUP($A803,Economática!$A$3:$AI$823,25,FALSE)))","v":""},{"$f":"CONCATENATE(Economática!B781,\" \",Economática!C781)","v":" "}]
[{"$f":"IF(Economática!AG782=\"\",\"\",Economática!AG782)","v":""},{"$f":"IF($A804=\"\",\"\",VLOOKUP(VLOOKUP($A804,Economática!$A$3:$AI$823,6,FALSE),Correção!$B$16:$C$36,2,FALSE))","v":""},{"$f":"IF(Economática!B782=\"\",\"\",Economática!B782)","v":""},{"$f":"IF($A804=\"\",\"\",IF(OR(VLOOKUP($A804,Economática!$A$3:$AI$823,8,FALSE)=0,VLOOKUP($A804,Economática!$A$3:$AI$823,8,FALSE)=\"-\"),1/0,VLOOKUP($A804,Economática!$A$3:$AI$823,8,FALSE)))","v":""},{"$f":"IF(A804=\"\",\"\",IF(ISERROR(VLOOKUP(A804,Correção!$B$2:$G$13,9,FALSE)),VLOOKUP($A804,Economática!$A$3:$AI$823,9,FALSE),VLOOKUP(A804,Correção!$B$2:$G$13,9,FALSE)))","v":""},{"$f":"IF($A804=\"\",\"\",Economática!G782)","v":""},{"$f":"IF($A804=\"\",\"\",IF(OR(VLOOKUP($A804,Economática!$A$3:$AI$823,10,FALSE)=0,VLOOKUP($A804,Economática!$A$3:$AI$823,10,FALSE)=\"-\"),1/0,VLOOKUP($A804,Economática!$A$3:$AI$823,10,FALSE)))","v":""},{"$f":"IF($A804=\"\",\"\",IF(OR(VLOOKUP($A804,Economática!$A$3:$AI$823,11,FALSE)=0,VLOOKUP($A804,Economática!$A$3:$AI$823,11,FALSE)=\"-\"),1/0,VLOOKUP($A804,Economática!$A$3:$AI$823,11,FALSE)))","v":""},{"$f":"IF($A804=\"\",\"\",IF(OR(VLOOKUP($A804,Economática!$A$3:$AI$823,12,FALSE)=0,VLOOKUP($A804,Economática!$A$3:$AI$823,12,FALSE)=\"-\"),1/0,VLOOKUP($A804,Economática!$A$3:$AI$823,12,FALSE)))","v":""},{"$f":"IF($A804=\"\",\"\",IF(OR(VLOOKUP($A804,Economática!$A$3:$AI$823,13,FALSE)=0,VLOOKUP($A804,Economática!$A$3:$AI$823,13,FALSE)=\"-\"),1/0,VLOOKUP($A804,Economática!$A$3:$AI$823,13,FALSE)))","v":""},{"$f":"IF($A804=\"\",\"\",IF(OR(VLOOKUP($A804,Economática!$A$3:$AI$823,14,FALSE)=0,VLOOKUP($A804,Economática!$A$3:$AI$823,14,FALSE)=\"-\"),1/0,VLOOKUP($A804,Economática!$A$3:$AI$823,14,FALSE)))","v":""},{"$f":"IF($A804=\"\",\"\",IF(OR(VLOOKUP($A804,Economática!$A$3:$AI$823,15,FALSE)=0,VLOOKUP($A804,Economática!$A$3:$AI$823,15,FALSE)=\"-\"),1/0,VLOOKUP($A804,Economática!$A$3:$AI$823,15,FALSE)))","v":""},{"$f":"IF($A804=\"\",\"\",IF(OR(VLOOKUP($A804,Economática!$A$3:$AI$823,16,FALSE)=0,VLOOKUP($A804,Economática!$A$3:$AI$823,16,FALSE)=\"-\"),1/0,VLOOKUP($A804,Economática!$A$3:$AI$823,16,FALSE)))","v":""},{"$f":"IF($A804=\"\",\"\",IF(OR(VLOOKUP($A804,Economática!$A$3:$AI$823,17,FALSE)=0,VLOOKUP($A804,Economática!$A$3:$AI$823,17,FALSE)=\"-\"),1/0,VLOOKUP($A804,Economática!$A$3:$AI$823,17,FALSE)))","v":""},{"$f":"IF($A804=\"\",\"\",IF(OR(VLOOKUP($A804,Economática!$A$3:$AI$823,18,FALSE)=0,VLOOKUP($A804,Economática!$A$3:$AI$823,18,FALSE)=\"-\"),1/0,VLOOKUP($A804,Economática!$A$3:$AI$823,18,FALSE)))","v":""},{"$f":"IF($A804=\"\",\"\",IF(OR(VLOOKUP($A804,Economática!$A$3:$AI$823,19,FALSE)=0,VLOOKUP($A804,Economática!$A$3:$AI$823,19,FALSE)=\"-\"),1/0,VLOOKUP($A804,Economática!$A$3:$AI$823,19,FALSE)))","v":""},{"$f":"IF($A804=\"\",\"\",VLOOKUP($A804,Economática!$A$3:$AI$823,20,FALSE)/E804)","v":""},"","","",{"$f":"IF($A804=\"\",\"\",IF(OR(VLOOKUP($A804,Economática!$A$3:$AI$823,21,FALSE)/100=0,VLOOKUP($A804,Economática!$A$3:$AI$823,21,FALSE)/100=\"-\"),1/0,VLOOKUP($A804,Economática!$A$3:$AI$823,21,FALSE)/100))","v":""},{"$f":"IF($A804=\"\",\"\",IF(OR(VLOOKUP($A804,Economática!$A$3:$AI$823,22,FALSE)/100=0,VLOOKUP($A804,Economática!$A$3:$AI$823,22,FALSE)/100=\"-\"),1/0,VLOOKUP($A804,Economática!$A$3:$AI$823,22,FALSE)/100))","v":""},{"$f":"IF($A804=\"\",\"\",IF(OR(VLOOKUP($A804,Economática!$A$3:$AI$823,23,FALSE)=0,VLOOKUP($A804,Economática!$A$3:$AI$823,23,FALSE)=\"-\"),1/0,VLOOKUP($A804,Economática!$A$3:$AI$823,23,FALSE)))","v":""},{"$f":"IF($A804=\"\",\"\",IF(OR(VLOOKUP($A804,Economática!$A$3:$AI$823,24,FALSE)=0,VLOOKUP($A804,Economática!$A$3:$AI$823,24,FALSE)=\"-\"),1/0,VLOOKUP($A804,Economática!$A$3:$AI$823,24,FALSE)))","v":""},{"$f":"IF($A804=\"\",\"\",IF(OR(VLOOKUP($A804,Economática!$A$3:$AI$823,25,FALSE)=0,VLOOKUP($A804,Economática!$A$3:$AI$823,25,FALSE)=\"-\"),1/0,VLOOKUP($A804,Economática!$A$3:$AI$823,25,FALSE)))","v":""},{"$f":"IF($A804=\"\",\"\",IF(ISERROR((F804+VLOOKUP($A804,Economática!$A$3:$AI$823,26,FALSE))/Y804),(F804+VLOOKUP($A804,Economática!$A$3:$AI$823,26,FALSE))/Y804,(F804+VLOOKUP($A804,Economática!$A$3:$AI$823,26,FALSE))/Y804))","v":""},{"$f":"IF($A804=\"\",\"\",IF(OR(-VLOOKUP($A804,Economática!$A$3:$AI$823,27,FALSE)=0,-VLOOKUP($A804,Economática!$A$3:$AI$823,27,FALSE)=\"-\"),1/0,-VLOOKUP($A804,Economática!$A$3:$AI$823,27,FALSE)))","v":""},"",{"$f":"IF($A804=\"\",\"\",IF(OR(VLOOKUP($A804,Economática!$A$3:$AI$823,28,FALSE)=0,VLOOKUP($A804,Economática!$A$3:$AI$823,28,FALSE)=\"-\"),1/0,VLOOKUP($A804,Economática!$A$3:$AI$823,28,FALSE)))","v":""},{"$f":"IF($A804=\"\",\"\",IF(OR(VLOOKUP($A804,Economática!$A$3:$AI$823,29,FALSE)=0,VLOOKUP($A804,Economática!$A$3:$AI$823,29,FALSE)=\"-\"),1/0,VLOOKUP($A804,Economática!$A$3:$AI$823,29,FALSE)))","v":""},{"$f":"IF($A804=\"\",\"\",IF(OR(VLOOKUP($A804,Economática!$A$3:$AI$823,30,FALSE)/E804=0,VLOOKUP($A804,Economática!$A$3:$AI$823,30,FALSE)/E804=\"-\",VLOOKUP($A804,Economática!$A$3:$AI$823,30,FALSE)/E804<33.33%,VLOOKUP($A804,Economática!$A$3:$AI$823,30,FALSE)/E804>100%),1/0,VLOOKUP($A804,Economática!$A$3:$AI$823,30,FALSE)/E804))","v":""},"",{"$f":"IF($A804=\"\",\"\",IF(OR(VLOOKUP($A804,Economática!$A$3:$AI$823,25,FALSE)=0,VLOOKUP($A804,Economática!$A$3:$AI$823,25,FALSE)=\"-\"),1/0,VLOOKUP($A804,Economática!$A$3:$AI$823,25,FALSE)))","v":""},{"$f":"CONCATENATE(Economática!B782,\" \",Economática!C782)","v":" "}]
[{"$f":"IF(Economática!AG783=\"\",\"\",Economática!AG783)","v":""},{"$f":"IF($A805=\"\",\"\",VLOOKUP(VLOOKUP($A805,Economática!$A$3:$AI$823,6,FALSE),Correção!$B$16:$C$36,2,FALSE))","v":""},{"$f":"IF(Economática!B783=\"\",\"\",Economática!B783)","v":""},{"$f":"IF($A805=\"\",\"\",IF(OR(VLOOKUP($A805,Economática!$A$3:$AI$823,8,FALSE)=0,VLOOKUP($A805,Economática!$A$3:$AI$823,8,FALSE)=\"-\"),1/0,VLOOKUP($A805,Economática!$A$3:$AI$823,8,FALSE)))","v":""},{"$f":"IF(A805=\"\",\"\",IF(ISERROR(VLOOKUP(A805,Correção!$B$2:$G$13,9,FALSE)),VLOOKUP($A805,Economática!$A$3:$AI$823,9,FALSE),VLOOKUP(A805,Correção!$B$2:$G$13,9,FALSE)))","v":""},{"$f":"IF($A805=\"\",\"\",Economática!G783)","v":""},{"$f":"IF($A805=\"\",\"\",IF(OR(VLOOKUP($A805,Economática!$A$3:$AI$823,10,FALSE)=0,VLOOKUP($A805,Economática!$A$3:$AI$823,10,FALSE)=\"-\"),1/0,VLOOKUP($A805,Economática!$A$3:$AI$823,10,FALSE)))","v":""},{"$f":"IF($A805=\"\",\"\",IF(OR(VLOOKUP($A805,Economática!$A$3:$AI$823,11,FALSE)=0,VLOOKUP($A805,Economática!$A$3:$AI$823,11,FALSE)=\"-\"),1/0,VLOOKUP($A805,Economática!$A$3:$AI$823,11,FALSE)))","v":""},{"$f":"IF($A805=\"\",\"\",IF(OR(VLOOKUP($A805,Economática!$A$3:$AI$823,12,FALSE)=0,VLOOKUP($A805,Economática!$A$3:$AI$823,12,FALSE)=\"-\"),1/0,VLOOKUP($A805,Economática!$A$3:$AI$823,12,FALSE)))","v":""},{"$f":"IF($A805=\"\",\"\",IF(OR(VLOOKUP($A805,Economática!$A$3:$AI$823,13,FALSE)=0,VLOOKUP($A805,Economática!$A$3:$AI$823,13,FALSE)=\"-\"),1/0,VLOOKUP($A805,Economática!$A$3:$AI$823,13,FALSE)))","v":""},{"$f":"IF($A805=\"\",\"\",IF(OR(VLOOKUP($A805,Economática!$A$3:$AI$823,14,FALSE)=0,VLOOKUP($A805,Economática!$A$3:$AI$823,14,FALSE)=\"-\"),1/0,VLOOKUP($A805,Economática!$A$3:$AI$823,14,FALSE)))","v":""},{"$f":"IF($A805=\"\",\"\",IF(OR(VLOOKUP($A805,Economática!$A$3:$AI$823,15,FALSE)=0,VLOOKUP($A805,Economática!$A$3:$AI$823,15,FALSE)=\"-\"),1/0,VLOOKUP($A805,Economática!$A$3:$AI$823,15,FALSE)))","v":""},{"$f":"IF($A805=\"\",\"\",IF(OR(VLOOKUP($A805,Economática!$A$3:$AI$823,16,FALSE)=0,VLOOKUP($A805,Economática!$A$3:$AI$823,16,FALSE)=\"-\"),1/0,VLOOKUP($A805,Economática!$A$3:$AI$823,16,FALSE)))","v":""},{"$f":"IF($A805=\"\",\"\",IF(OR(VLOOKUP($A805,Economática!$A$3:$AI$823,17,FALSE)=0,VLOOKUP($A805,Economática!$A$3:$AI$823,17,FALSE)=\"-\"),1/0,VLOOKUP($A805,Economática!$A$3:$AI$823,17,FALSE)))","v":""},{"$f":"IF($A805=\"\",\"\",IF(OR(VLOOKUP($A805,Economática!$A$3:$AI$823,18,FALSE)=0,VLOOKUP($A805,Economática!$A$3:$AI$823,18,FALSE)=\"-\"),1/0,VLOOKUP($A805,Economática!$A$3:$AI$823,18,FALSE)))","v":""},{"$f":"IF($A805=\"\",\"\",IF(OR(VLOOKUP($A805,Economática!$A$3:$AI$823,19,FALSE)=0,VLOOKUP($A805,Economática!$A$3:$AI$823,19,FALSE)=\"-\"),1/0,VLOOKUP($A805,Economática!$A$3:$AI$823,19,FALSE)))","v":""},{"$f":"IF($A805=\"\",\"\",VLOOKUP($A805,Economática!$A$3:$AI$823,20,FALSE)/E805)","v":""},"","","",{"$f":"IF($A805=\"\",\"\",IF(OR(VLOOKUP($A805,Economática!$A$3:$AI$823,21,FALSE)/100=0,VLOOKUP($A805,Economática!$A$3:$AI$823,21,FALSE)/100=\"-\"),1/0,VLOOKUP($A805,Economática!$A$3:$AI$823,21,FALSE)/100))","v":""},{"$f":"IF($A805=\"\",\"\",IF(OR(VLOOKUP($A805,Economática!$A$3:$AI$823,22,FALSE)/100=0,VLOOKUP($A805,Economática!$A$3:$AI$823,22,FALSE)/100=\"-\"),1/0,VLOOKUP($A805,Economática!$A$3:$AI$823,22,FALSE)/100))","v":""},{"$f":"IF($A805=\"\",\"\",IF(OR(VLOOKUP($A805,Economática!$A$3:$AI$823,23,FALSE)=0,VLOOKUP($A805,Economática!$A$3:$AI$823,23,FALSE)=\"-\"),1/0,VLOOKUP($A805,Economática!$A$3:$AI$823,23,FALSE)))","v":""},{"$f":"IF($A805=\"\",\"\",IF(OR(VLOOKUP($A805,Economática!$A$3:$AI$823,24,FALSE)=0,VLOOKUP($A805,Economática!$A$3:$AI$823,24,FALSE)=\"-\"),1/0,VLOOKUP($A805,Economática!$A$3:$AI$823,24,FALSE)))","v":""},{"$f":"IF($A805=\"\",\"\",IF(OR(VLOOKUP($A805,Economática!$A$3:$AI$823,25,FALSE)=0,VLOOKUP($A805,Economática!$A$3:$AI$823,25,FALSE)=\"-\"),1/0,VLOOKUP($A805,Economática!$A$3:$AI$823,25,FALSE)))","v":""},{"$f":"IF($A805=\"\",\"\",IF(ISERROR((F805+VLOOKUP($A805,Economática!$A$3:$AI$823,26,FALSE))/Y805),(F805+VLOOKUP($A805,Economática!$A$3:$AI$823,26,FALSE))/Y805,(F805+VLOOKUP($A805,Economática!$A$3:$AI$823,26,FALSE))/Y805))","v":""},{"$f":"IF($A805=\"\",\"\",IF(OR(-VLOOKUP($A805,Economática!$A$3:$AI$823,27,FALSE)=0,-VLOOKUP($A805,Economática!$A$3:$AI$823,27,FALSE)=\"-\"),1/0,-VLOOKUP($A805,Economática!$A$3:$AI$823,27,FALSE)))","v":""},"",{"$f":"IF($A805=\"\",\"\",IF(OR(VLOOKUP($A805,Economática!$A$3:$AI$823,28,FALSE)=0,VLOOKUP($A805,Economática!$A$3:$AI$823,28,FALSE)=\"-\"),1/0,VLOOKUP($A805,Economática!$A$3:$AI$823,28,FALSE)))","v":""},{"$f":"IF($A805=\"\",\"\",IF(OR(VLOOKUP($A805,Economática!$A$3:$AI$823,29,FALSE)=0,VLOOKUP($A805,Economática!$A$3:$AI$823,29,FALSE)=\"-\"),1/0,VLOOKUP($A805,Economática!$A$3:$AI$823,29,FALSE)))","v":""},{"$f":"IF($A805=\"\",\"\",IF(OR(VLOOKUP($A805,Economática!$A$3:$AI$823,30,FALSE)/E805=0,VLOOKUP($A805,Economática!$A$3:$AI$823,30,FALSE)/E805=\"-\",VLOOKUP($A805,Economática!$A$3:$AI$823,30,FALSE)/E805<33.33%,VLOOKUP($A805,Economática!$A$3:$AI$823,30,FALSE)/E805>100%),1/0,VLOOKUP($A805,Economática!$A$3:$AI$823,30,FALSE)/E805))","v":""},"",{"$f":"IF($A805=\"\",\"\",IF(OR(VLOOKUP($A805,Economática!$A$3:$AI$823,25,FALSE)=0,VLOOKUP($A805,Economática!$A$3:$AI$823,25,FALSE)=\"-\"),1/0,VLOOKUP($A805,Economática!$A$3:$AI$823,25,FALSE)))","v":""},{"$f":"CONCATENATE(Economática!B783,\" \",Economática!C783)","v":" "}]
[{"$f":"IF(Economática!AG784=\"\",\"\",Economática!AG784)","v":""},{"$f":"IF($A806=\"\",\"\",VLOOKUP(VLOOKUP($A806,Economática!$A$3:$AI$823,6,FALSE),Correção!$B$16:$C$36,2,FALSE))","v":""},{"$f":"IF(Economática!B784=\"\",\"\",Economática!B784)","v":""},{"$f":"IF($A806=\"\",\"\",IF(OR(VLOOKUP($A806,Economática!$A$3:$AI$823,8,FALSE)=0,VLOOKUP($A806,Economática!$A$3:$AI$823,8,FALSE)=\"-\"),1/0,VLOOKUP($A806,Economática!$A$3:$AI$823,8,FALSE)))","v":""},{"$f":"IF(A806=\"\",\"\",IF(ISERROR(VLOOKUP(A806,Correção!$B$2:$G$13,9,FALSE)),VLOOKUP($A806,Economática!$A$3:$AI$823,9,FALSE),VLOOKUP(A806,Correção!$B$2:$G$13,9,FALSE)))","v":""},{"$f":"IF($A806=\"\",\"\",Economática!G784)","v":""},{"$f":"IF($A806=\"\",\"\",IF(OR(VLOOKUP($A806,Economática!$A$3:$AI$823,10,FALSE)=0,VLOOKUP($A806,Economática!$A$3:$AI$823,10,FALSE)=\"-\"),1/0,VLOOKUP($A806,Economática!$A$3:$AI$823,10,FALSE)))","v":""},{"$f":"IF($A806=\"\",\"\",IF(OR(VLOOKUP($A806,Economática!$A$3:$AI$823,11,FALSE)=0,VLOOKUP($A806,Economática!$A$3:$AI$823,11,FALSE)=\"-\"),1/0,VLOOKUP($A806,Economática!$A$3:$AI$823,11,FALSE)))","v":""},{"$f":"IF($A806=\"\",\"\",IF(OR(VLOOKUP($A806,Economática!$A$3:$AI$823,12,FALSE)=0,VLOOKUP($A806,Economática!$A$3:$AI$823,12,FALSE)=\"-\"),1/0,VLOOKUP($A806,Economática!$A$3:$AI$823,12,FALSE)))","v":""},{"$f":"IF($A806=\"\",\"\",IF(OR(VLOOKUP($A806,Economática!$A$3:$AI$823,13,FALSE)=0,VLOOKUP($A806,Economática!$A$3:$AI$823,13,FALSE)=\"-\"),1/0,VLOOKUP($A806,Economática!$A$3:$AI$823,13,FALSE)))","v":""},{"$f":"IF($A806=\"\",\"\",IF(OR(VLOOKUP($A806,Economática!$A$3:$AI$823,14,FALSE)=0,VLOOKUP($A806,Economática!$A$3:$AI$823,14,FALSE)=\"-\"),1/0,VLOOKUP($A806,Economática!$A$3:$AI$823,14,FALSE)))","v":""},{"$f":"IF($A806=\"\",\"\",IF(OR(VLOOKUP($A806,Economática!$A$3:$AI$823,15,FALSE)=0,VLOOKUP($A806,Economática!$A$3:$AI$823,15,FALSE)=\"-\"),1/0,VLOOKUP($A806,Economática!$A$3:$AI$823,15,FALSE)))","v":""},{"$f":"IF($A806=\"\",\"\",IF(OR(VLOOKUP($A806,Economática!$A$3:$AI$823,16,FALSE)=0,VLOOKUP($A806,Economática!$A$3:$AI$823,16,FALSE)=\"-\"),1/0,VLOOKUP($A806,Economática!$A$3:$AI$823,16,FALSE)))","v":""},{"$f":"IF($A806=\"\",\"\",IF(OR(VLOOKUP($A806,Economática!$A$3:$AI$823,17,FALSE)=0,VLOOKUP($A806,Economática!$A$3:$AI$823,17,FALSE)=\"-\"),1/0,VLOOKUP($A806,Economática!$A$3:$AI$823,17,FALSE)))","v":""},{"$f":"IF($A806=\"\",\"\",IF(OR(VLOOKUP($A806,Economática!$A$3:$AI$823,18,FALSE)=0,VLOOKUP($A806,Economática!$A$3:$AI$823,18,FALSE)=\"-\"),1/0,VLOOKUP($A806,Economática!$A$3:$AI$823,18,FALSE)))","v":""},{"$f":"IF($A806=\"\",\"\",IF(OR(VLOOKUP($A806,Economática!$A$3:$AI$823,19,FALSE)=0,VLOOKUP($A806,Economática!$A$3:$AI$823,19,FALSE)=\"-\"),1/0,VLOOKUP($A806,Economática!$A$3:$AI$823,19,FALSE)))","v":""},{"$f":"IF($A806=\"\",\"\",VLOOKUP($A806,Economática!$A$3:$AI$823,20,FALSE)/E806)","v":""},"","","",{"$f":"IF($A806=\"\",\"\",IF(OR(VLOOKUP($A806,Economática!$A$3:$AI$823,21,FALSE)/100=0,VLOOKUP($A806,Economática!$A$3:$AI$823,21,FALSE)/100=\"-\"),1/0,VLOOKUP($A806,Economática!$A$3:$AI$823,21,FALSE)/100))","v":""},{"$f":"IF($A806=\"\",\"\",IF(OR(VLOOKUP($A806,Economática!$A$3:$AI$823,22,FALSE)/100=0,VLOOKUP($A806,Economática!$A$3:$AI$823,22,FALSE)/100=\"-\"),1/0,VLOOKUP($A806,Economática!$A$3:$AI$823,22,FALSE)/100))","v":""},{"$f":"IF($A806=\"\",\"\",IF(OR(VLOOKUP($A806,Economática!$A$3:$AI$823,23,FALSE)=0,VLOOKUP($A806,Economática!$A$3:$AI$823,23,FALSE)=\"-\"),1/0,VLOOKUP($A806,Economática!$A$3:$AI$823,23,FALSE)))","v":""},{"$f":"IF($A806=\"\",\"\",IF(OR(VLOOKUP($A806,Economática!$A$3:$AI$823,24,FALSE)=0,VLOOKUP($A806,Economática!$A$3:$AI$823,24,FALSE)=\"-\"),1/0,VLOOKUP($A806,Economática!$A$3:$AI$823,24,FALSE)))","v":""},{"$f":"IF($A806=\"\",\"\",IF(OR(VLOOKUP($A806,Economática!$A$3:$AI$823,25,FALSE)=0,VLOOKUP($A806,Economática!$A$3:$AI$823,25,FALSE)=\"-\"),1/0,VLOOKUP($A806,Economática!$A$3:$AI$823,25,FALSE)))","v":""},{"$f":"IF($A806=\"\",\"\",IF(ISERROR((F806+VLOOKUP($A806,Economática!$A$3:$AI$823,26,FALSE))/Y806),(F806+VLOOKUP($A806,Economática!$A$3:$AI$823,26,FALSE))/Y806,(F806+VLOOKUP($A806,Economática!$A$3:$AI$823,26,FALSE))/Y806))","v":""},{"$f":"IF($A806=\"\",\"\",IF(OR(-VLOOKUP($A806,Economática!$A$3:$AI$823,27,FALSE)=0,-VLOOKUP($A806,Economática!$A$3:$AI$823,27,FALSE)=\"-\"),1/0,-VLOOKUP($A806,Economática!$A$3:$AI$823,27,FALSE)))","v":""},"",{"$f":"IF($A806=\"\",\"\",IF(OR(VLOOKUP($A806,Economática!$A$3:$AI$823,28,FALSE)=0,VLOOKUP($A806,Economática!$A$3:$AI$823,28,FALSE)=\"-\"),1/0,VLOOKUP($A806,Economática!$A$3:$AI$823,28,FALSE)))","v":""},{"$f":"IF($A806=\"\",\"\",IF(OR(VLOOKUP($A806,Economática!$A$3:$AI$823,29,FALSE)=0,VLOOKUP($A806,Economática!$A$3:$AI$823,29,FALSE)=\"-\"),1/0,VLOOKUP($A806,Economática!$A$3:$AI$823,29,FALSE)))","v":""},{"$f":"IF($A806=\"\",\"\",IF(OR(VLOOKUP($A806,Economática!$A$3:$AI$823,30,FALSE)/E806=0,VLOOKUP($A806,Economática!$A$3:$AI$823,30,FALSE)/E806=\"-\",VLOOKUP($A806,Economática!$A$3:$AI$823,30,FALSE)/E806<33.33%,VLOOKUP($A806,Economática!$A$3:$AI$823,30,FALSE)/E806>100%),1/0,VLOOKUP($A806,Economática!$A$3:$AI$823,30,FALSE)/E806))","v":""},"",{"$f":"IF($A806=\"\",\"\",IF(OR(VLOOKUP($A806,Economática!$A$3:$AI$823,25,FALSE)=0,VLOOKUP($A806,Economática!$A$3:$AI$823,25,FALSE)=\"-\"),1/0,VLOOKUP($A806,Economática!$A$3:$AI$823,25,FALSE)))","v":""},{"$f":"CONCATENATE(Economática!B784,\" \",Economática!C784)","v":" "}]
[{"$f":"IF(Economática!AG785=\"\",\"\",Economática!AG785)","v":""},{"$f":"IF($A807=\"\",\"\",VLOOKUP(VLOOKUP($A807,Economática!$A$3:$AI$823,6,FALSE),Correção!$B$16:$C$36,2,FALSE))","v":""},{"$f":"IF(Economática!B785=\"\",\"\",Economática!B785)","v":""},{"$f":"IF($A807=\"\",\"\",IF(OR(VLOOKUP($A807,Economática!$A$3:$AI$823,8,FALSE)=0,VLOOKUP($A807,Economática!$A$3:$AI$823,8,FALSE)=\"-\"),1/0,VLOOKUP($A807,Economática!$A$3:$AI$823,8,FALSE)))","v":""},{"$f":"IF(A807=\"\",\"\",IF(ISERROR(VLOOKUP(A807,Correção!$B$2:$G$13,9,FALSE)),VLOOKUP($A807,Economática!$A$3:$AI$823,9,FALSE),VLOOKUP(A807,Correção!$B$2:$G$13,9,FALSE)))","v":""},{"$f":"IF($A807=\"\",\"\",Economática!G785)","v":""},{"$f":"IF($A807=\"\",\"\",IF(OR(VLOOKUP($A807,Economática!$A$3:$AI$823,10,FALSE)=0,VLOOKUP($A807,Economática!$A$3:$AI$823,10,FALSE)=\"-\"),1/0,VLOOKUP($A807,Economática!$A$3:$AI$823,10,FALSE)))","v":""},{"$f":"IF($A807=\"\",\"\",IF(OR(VLOOKUP($A807,Economática!$A$3:$AI$823,11,FALSE)=0,VLOOKUP($A807,Economática!$A$3:$AI$823,11,FALSE)=\"-\"),1/0,VLOOKUP($A807,Economática!$A$3:$AI$823,11,FALSE)))","v":""},{"$f":"IF($A807=\"\",\"\",IF(OR(VLOOKUP($A807,Economática!$A$3:$AI$823,12,FALSE)=0,VLOOKUP($A807,Economática!$A$3:$AI$823,12,FALSE)=\"-\"),1/0,VLOOKUP($A807,Economática!$A$3:$AI$823,12,FALSE)))","v":""},{"$f":"IF($A807=\"\",\"\",IF(OR(VLOOKUP($A807,Economática!$A$3:$AI$823,13,FALSE)=0,VLOOKUP($A807,Economática!$A$3:$AI$823,13,FALSE)=\"-\"),1/0,VLOOKUP($A807,Economática!$A$3:$AI$823,13,FALSE)))","v":""},{"$f":"IF($A807=\"\",\"\",IF(OR(VLOOKUP($A807,Economática!$A$3:$AI$823,14,FALSE)=0,VLOOKUP($A807,Economática!$A$3:$AI$823,14,FALSE)=\"-\"),1/0,VLOOKUP($A807,Economática!$A$3:$AI$823,14,FALSE)))","v":""},{"$f":"IF($A807=\"\",\"\",IF(OR(VLOOKUP($A807,Economática!$A$3:$AI$823,15,FALSE)=0,VLOOKUP($A807,Economática!$A$3:$AI$823,15,FALSE)=\"-\"),1/0,VLOOKUP($A807,Economática!$A$3:$AI$823,15,FALSE)))","v":""},{"$f":"IF($A807=\"\",\"\",IF(OR(VLOOKUP($A807,Economática!$A$3:$AI$823,16,FALSE)=0,VLOOKUP($A807,Economática!$A$3:$AI$823,16,FALSE)=\"-\"),1/0,VLOOKUP($A807,Economática!$A$3:$AI$823,16,FALSE)))","v":""},{"$f":"IF($A807=\"\",\"\",IF(OR(VLOOKUP($A807,Economática!$A$3:$AI$823,17,FALSE)=0,VLOOKUP($A807,Economática!$A$3:$AI$823,17,FALSE)=\"-\"),1/0,VLOOKUP($A807,Economática!$A$3:$AI$823,17,FALSE)))","v":""},{"$f":"IF($A807=\"\",\"\",IF(OR(VLOOKUP($A807,Economática!$A$3:$AI$823,18,FALSE)=0,VLOOKUP($A807,Economática!$A$3:$AI$823,18,FALSE)=\"-\"),1/0,VLOOKUP($A807,Economática!$A$3:$AI$823,18,FALSE)))","v":""},{"$f":"IF($A807=\"\",\"\",IF(OR(VLOOKUP($A807,Economática!$A$3:$AI$823,19,FALSE)=0,VLOOKUP($A807,Economática!$A$3:$AI$823,19,FALSE)=\"-\"),1/0,VLOOKUP($A807,Economática!$A$3:$AI$823,19,FALSE)))","v":""},{"$f":"IF($A807=\"\",\"\",VLOOKUP($A807,Economática!$A$3:$AI$823,20,FALSE)/E807)","v":""},"","","",{"$f":"IF($A807=\"\",\"\",IF(OR(VLOOKUP($A807,Economática!$A$3:$AI$823,21,FALSE)/100=0,VLOOKUP($A807,Economática!$A$3:$AI$823,21,FALSE)/100=\"-\"),1/0,VLOOKUP($A807,Economática!$A$3:$AI$823,21,FALSE)/100))","v":""},{"$f":"IF($A807=\"\",\"\",IF(OR(VLOOKUP($A807,Economática!$A$3:$AI$823,22,FALSE)/100=0,VLOOKUP($A807,Economática!$A$3:$AI$823,22,FALSE)/100=\"-\"),1/0,VLOOKUP($A807,Economática!$A$3:$AI$823,22,FALSE)/100))","v":""},{"$f":"IF($A807=\"\",\"\",IF(OR(VLOOKUP($A807,Economática!$A$3:$AI$823,23,FALSE)=0,VLOOKUP($A807,Economática!$A$3:$AI$823,23,FALSE)=\"-\"),1/0,VLOOKUP($A807,Economática!$A$3:$AI$823,23,FALSE)))","v":""},{"$f":"IF($A807=\"\",\"\",IF(OR(VLOOKUP($A807,Economática!$A$3:$AI$823,24,FALSE)=0,VLOOKUP($A807,Economática!$A$3:$AI$823,24,FALSE)=\"-\"),1/0,VLOOKUP($A807,Economática!$A$3:$AI$823,24,FALSE)))","v":""},{"$f":"IF($A807=\"\",\"\",IF(OR(VLOOKUP($A807,Economática!$A$3:$AI$823,25,FALSE)=0,VLOOKUP($A807,Economática!$A$3:$AI$823,25,FALSE)=\"-\"),1/0,VLOOKUP($A807,Economática!$A$3:$AI$823,25,FALSE)))","v":""},{"$f":"IF($A807=\"\",\"\",IF(ISERROR((F807+VLOOKUP($A807,Economática!$A$3:$AI$823,26,FALSE))/Y807),(F807+VLOOKUP($A807,Economática!$A$3:$AI$823,26,FALSE))/Y807,(F807+VLOOKUP($A807,Economática!$A$3:$AI$823,26,FALSE))/Y807))","v":""},{"$f":"IF($A807=\"\",\"\",IF(OR(-VLOOKUP($A807,Economática!$A$3:$AI$823,27,FALSE)=0,-VLOOKUP($A807,Economática!$A$3:$AI$823,27,FALSE)=\"-\"),1/0,-VLOOKUP($A807,Economática!$A$3:$AI$823,27,FALSE)))","v":""},"",{"$f":"IF($A807=\"\",\"\",IF(OR(VLOOKUP($A807,Economática!$A$3:$AI$823,28,FALSE)=0,VLOOKUP($A807,Economática!$A$3:$AI$823,28,FALSE)=\"-\"),1/0,VLOOKUP($A807,Economática!$A$3:$AI$823,28,FALSE)))","v":""},{"$f":"IF($A807=\"\",\"\",IF(OR(VLOOKUP($A807,Economática!$A$3:$AI$823,29,FALSE)=0,VLOOKUP($A807,Economática!$A$3:$AI$823,29,FALSE)=\"-\"),1/0,VLOOKUP($A807,Economática!$A$3:$AI$823,29,FALSE)))","v":""},{"$f":"IF($A807=\"\",\"\",IF(OR(VLOOKUP($A807,Economática!$A$3:$AI$823,30,FALSE)/E807=0,VLOOKUP($A807,Economática!$A$3:$AI$823,30,FALSE)/E807=\"-\",VLOOKUP($A807,Economática!$A$3:$AI$823,30,FALSE)/E807<33.33%,VLOOKUP($A807,Economática!$A$3:$AI$823,30,FALSE)/E807>100%),1/0,VLOOKUP($A807,Economática!$A$3:$AI$823,30,FALSE)/E807))","v":""},"",{"$f":"IF($A807=\"\",\"\",IF(OR(VLOOKUP($A807,Economática!$A$3:$AI$823,25,FALSE)=0,VLOOKUP($A807,Economática!$A$3:$AI$823,25,FALSE)=\"-\"),1/0,VLOOKUP($A807,Economática!$A$3:$AI$823,25,FALSE)))","v":""},{"$f":"CONCATENATE(Economática!B785,\" \",Economática!C785)","v":" "}]
[{"$f":"IF(Economática!AG786=\"\",\"\",Economática!AG786)","v":""},{"$f":"IF($A808=\"\",\"\",VLOOKUP(VLOOKUP($A808,Economática!$A$3:$AI$823,6,FALSE),Correção!$B$16:$C$36,2,FALSE))","v":""},{"$f":"IF(Economática!B786=\"\",\"\",Economática!B786)","v":""},{"$f":"IF($A808=\"\",\"\",IF(OR(VLOOKUP($A808,Economática!$A$3:$AI$823,8,FALSE)=0,VLOOKUP($A808,Economática!$A$3:$AI$823,8,FALSE)=\"-\"),1/0,VLOOKUP($A808,Economática!$A$3:$AI$823,8,FALSE)))","v":""},{"$f":"IF(A808=\"\",\"\",IF(ISERROR(VLOOKUP(A808,Correção!$B$2:$G$13,9,FALSE)),VLOOKUP($A808,Economática!$A$3:$AI$823,9,FALSE),VLOOKUP(A808,Correção!$B$2:$G$13,9,FALSE)))","v":""},{"$f":"IF($A808=\"\",\"\",Economática!G786)","v":""},{"$f":"IF($A808=\"\",\"\",IF(OR(VLOOKUP($A808,Economática!$A$3:$AI$823,10,FALSE)=0,VLOOKUP($A808,Economática!$A$3:$AI$823,10,FALSE)=\"-\"),1/0,VLOOKUP($A808,Economática!$A$3:$AI$823,10,FALSE)))","v":""},{"$f":"IF($A808=\"\",\"\",IF(OR(VLOOKUP($A808,Economática!$A$3:$AI$823,11,FALSE)=0,VLOOKUP($A808,Economática!$A$3:$AI$823,11,FALSE)=\"-\"),1/0,VLOOKUP($A808,Economática!$A$3:$AI$823,11,FALSE)))","v":""},{"$f":"IF($A808=\"\",\"\",IF(OR(VLOOKUP($A808,Economática!$A$3:$AI$823,12,FALSE)=0,VLOOKUP($A808,Economática!$A$3:$AI$823,12,FALSE)=\"-\"),1/0,VLOOKUP($A808,Economática!$A$3:$AI$823,12,FALSE)))","v":""},{"$f":"IF($A808=\"\",\"\",IF(OR(VLOOKUP($A808,Economática!$A$3:$AI$823,13,FALSE)=0,VLOOKUP($A808,Economática!$A$3:$AI$823,13,FALSE)=\"-\"),1/0,VLOOKUP($A808,Economática!$A$3:$AI$823,13,FALSE)))","v":""},{"$f":"IF($A808=\"\",\"\",IF(OR(VLOOKUP($A808,Economática!$A$3:$AI$823,14,FALSE)=0,VLOOKUP($A808,Economática!$A$3:$AI$823,14,FALSE)=\"-\"),1/0,VLOOKUP($A808,Economática!$A$3:$AI$823,14,FALSE)))","v":""},{"$f":"IF($A808=\"\",\"\",IF(OR(VLOOKUP($A808,Economática!$A$3:$AI$823,15,FALSE)=0,VLOOKUP($A808,Economática!$A$3:$AI$823,15,FALSE)=\"-\"),1/0,VLOOKUP($A808,Economática!$A$3:$AI$823,15,FALSE)))","v":""},{"$f":"IF($A808=\"\",\"\",IF(OR(VLOOKUP($A808,Economática!$A$3:$AI$823,16,FALSE)=0,VLOOKUP($A808,Economática!$A$3:$AI$823,16,FALSE)=\"-\"),1/0,VLOOKUP($A808,Economática!$A$3:$AI$823,16,FALSE)))","v":""},{"$f":"IF($A808=\"\",\"\",IF(OR(VLOOKUP($A808,Economática!$A$3:$AI$823,17,FALSE)=0,VLOOKUP($A808,Economática!$A$3:$AI$823,17,FALSE)=\"-\"),1/0,VLOOKUP($A808,Economática!$A$3:$AI$823,17,FALSE)))","v":""},{"$f":"IF($A808=\"\",\"\",IF(OR(VLOOKUP($A808,Economática!$A$3:$AI$823,18,FALSE)=0,VLOOKUP($A808,Economática!$A$3:$AI$823,18,FALSE)=\"-\"),1/0,VLOOKUP($A808,Economática!$A$3:$AI$823,18,FALSE)))","v":""},{"$f":"IF($A808=\"\",\"\",IF(OR(VLOOKUP($A808,Economática!$A$3:$AI$823,19,FALSE)=0,VLOOKUP($A808,Economática!$A$3:$AI$823,19,FALSE)=\"-\"),1/0,VLOOKUP($A808,Economática!$A$3:$AI$823,19,FALSE)))","v":""},{"$f":"IF($A808=\"\",\"\",VLOOKUP($A808,Economática!$A$3:$AI$823,20,FALSE)/E808)","v":""},"","","",{"$f":"IF($A808=\"\",\"\",IF(OR(VLOOKUP($A808,Economática!$A$3:$AI$823,21,FALSE)/100=0,VLOOKUP($A808,Economática!$A$3:$AI$823,21,FALSE)/100=\"-\"),1/0,VLOOKUP($A808,Economática!$A$3:$AI$823,21,FALSE)/100))","v":""},{"$f":"IF($A808=\"\",\"\",IF(OR(VLOOKUP($A808,Economática!$A$3:$AI$823,22,FALSE)/100=0,VLOOKUP($A808,Economática!$A$3:$AI$823,22,FALSE)/100=\"-\"),1/0,VLOOKUP($A808,Economática!$A$3:$AI$823,22,FALSE)/100))","v":""},{"$f":"IF($A808=\"\",\"\",IF(OR(VLOOKUP($A808,Economática!$A$3:$AI$823,23,FALSE)=0,VLOOKUP($A808,Economática!$A$3:$AI$823,23,FALSE)=\"-\"),1/0,VLOOKUP($A808,Economática!$A$3:$AI$823,23,FALSE)))","v":""},{"$f":"IF($A808=\"\",\"\",IF(OR(VLOOKUP($A808,Economática!$A$3:$AI$823,24,FALSE)=0,VLOOKUP($A808,Economática!$A$3:$AI$823,24,FALSE)=\"-\"),1/0,VLOOKUP($A808,Economática!$A$3:$AI$823,24,FALSE)))","v":""},{"$f":"IF($A808=\"\",\"\",IF(OR(VLOOKUP($A808,Economática!$A$3:$AI$823,25,FALSE)=0,VLOOKUP($A808,Economática!$A$3:$AI$823,25,FALSE)=\"-\"),1/0,VLOOKUP($A808,Economática!$A$3:$AI$823,25,FALSE)))","v":""},{"$f":"IF($A808=\"\",\"\",IF(ISERROR((F808+VLOOKUP($A808,Economática!$A$3:$AI$823,26,FALSE))/Y808),(F808+VLOOKUP($A808,Economática!$A$3:$AI$823,26,FALSE))/Y808,(F808+VLOOKUP($A808,Economática!$A$3:$AI$823,26,FALSE))/Y808))","v":""},{"$f":"IF($A808=\"\",\"\",IF(OR(-VLOOKUP($A808,Economática!$A$3:$AI$823,27,FALSE)=0,-VLOOKUP($A808,Economática!$A$3:$AI$823,27,FALSE)=\"-\"),1/0,-VLOOKUP($A808,Economática!$A$3:$AI$823,27,FALSE)))","v":""},"",{"$f":"IF($A808=\"\",\"\",IF(OR(VLOOKUP($A808,Economática!$A$3:$AI$823,28,FALSE)=0,VLOOKUP($A808,Economática!$A$3:$AI$823,28,FALSE)=\"-\"),1/0,VLOOKUP($A808,Economática!$A$3:$AI$823,28,FALSE)))","v":""},{"$f":"IF($A808=\"\",\"\",IF(OR(VLOOKUP($A808,Economática!$A$3:$AI$823,29,FALSE)=0,VLOOKUP($A808,Economática!$A$3:$AI$823,29,FALSE)=\"-\"),1/0,VLOOKUP($A808,Economática!$A$3:$AI$823,29,FALSE)))","v":""},{"$f":"IF($A808=\"\",\"\",IF(OR(VLOOKUP($A808,Economática!$A$3:$AI$823,30,FALSE)/E808=0,VLOOKUP($A808,Economática!$A$3:$AI$823,30,FALSE)/E808=\"-\",VLOOKUP($A808,Economática!$A$3:$AI$823,30,FALSE)/E808<33.33%,VLOOKUP($A808,Economática!$A$3:$AI$823,30,FALSE)/E808>100%),1/0,VLOOKUP($A808,Economática!$A$3:$AI$823,30,FALSE)/E808))","v":""},"",{"$f":"IF($A808=\"\",\"\",IF(OR(VLOOKUP($A808,Economática!$A$3:$AI$823,25,FALSE)=0,VLOOKUP($A808,Economática!$A$3:$AI$823,25,FALSE)=\"-\"),1/0,VLOOKUP($A808,Economática!$A$3:$AI$823,25,FALSE)))","v":""},{"$f":"CONCATENATE(Economática!B786,\" \",Economática!C786)","v":" "}]
[{"$f":"IF(Economática!AG787=\"\",\"\",Economática!AG787)","v":""},{"$f":"IF($A809=\"\",\"\",VLOOKUP(VLOOKUP($A809,Economática!$A$3:$AI$823,6,FALSE),Correção!$B$16:$C$36,2,FALSE))","v":""},{"$f":"IF(Economática!B787=\"\",\"\",Economática!B787)","v":""},{"$f":"IF($A809=\"\",\"\",IF(OR(VLOOKUP($A809,Economática!$A$3:$AI$823,8,FALSE)=0,VLOOKUP($A809,Economática!$A$3:$AI$823,8,FALSE)=\"-\"),1/0,VLOOKUP($A809,Economática!$A$3:$AI$823,8,FALSE)))","v":""},{"$f":"IF(A809=\"\",\"\",IF(ISERROR(VLOOKUP(A809,Correção!$B$2:$G$13,9,FALSE)),VLOOKUP($A809,Economática!$A$3:$AI$823,9,FALSE),VLOOKUP(A809,Correção!$B$2:$G$13,9,FALSE)))","v":""},{"$f":"IF($A809=\"\",\"\",Economática!G787)","v":""},{"$f":"IF($A809=\"\",\"\",IF(OR(VLOOKUP($A809,Economática!$A$3:$AI$823,10,FALSE)=0,VLOOKUP($A809,Economática!$A$3:$AI$823,10,FALSE)=\"-\"),1/0,VLOOKUP($A809,Economática!$A$3:$AI$823,10,FALSE)))","v":""},{"$f":"IF($A809=\"\",\"\",IF(OR(VLOOKUP($A809,Economática!$A$3:$AI$823,11,FALSE)=0,VLOOKUP($A809,Economática!$A$3:$AI$823,11,FALSE)=\"-\"),1/0,VLOOKUP($A809,Economática!$A$3:$AI$823,11,FALSE)))","v":""},{"$f":"IF($A809=\"\",\"\",IF(OR(VLOOKUP($A809,Economática!$A$3:$AI$823,12,FALSE)=0,VLOOKUP($A809,Economática!$A$3:$AI$823,12,FALSE)=\"-\"),1/0,VLOOKUP($A809,Economática!$A$3:$AI$823,12,FALSE)))","v":""},{"$f":"IF($A809=\"\",\"\",IF(OR(VLOOKUP($A809,Economática!$A$3:$AI$823,13,FALSE)=0,VLOOKUP($A809,Economática!$A$3:$AI$823,13,FALSE)=\"-\"),1/0,VLOOKUP($A809,Economática!$A$3:$AI$823,13,FALSE)))","v":""},{"$f":"IF($A809=\"\",\"\",IF(OR(VLOOKUP($A809,Economática!$A$3:$AI$823,14,FALSE)=0,VLOOKUP($A809,Economática!$A$3:$AI$823,14,FALSE)=\"-\"),1/0,VLOOKUP($A809,Economática!$A$3:$AI$823,14,FALSE)))","v":""},{"$f":"IF($A809=\"\",\"\",IF(OR(VLOOKUP($A809,Economática!$A$3:$AI$823,15,FALSE)=0,VLOOKUP($A809,Economática!$A$3:$AI$823,15,FALSE)=\"-\"),1/0,VLOOKUP($A809,Economática!$A$3:$AI$823,15,FALSE)))","v":""},{"$f":"IF($A809=\"\",\"\",IF(OR(VLOOKUP($A809,Economática!$A$3:$AI$823,16,FALSE)=0,VLOOKUP($A809,Economática!$A$3:$AI$823,16,FALSE)=\"-\"),1/0,VLOOKUP($A809,Economática!$A$3:$AI$823,16,FALSE)))","v":""},{"$f":"IF($A809=\"\",\"\",IF(OR(VLOOKUP($A809,Economática!$A$3:$AI$823,17,FALSE)=0,VLOOKUP($A809,Economática!$A$3:$AI$823,17,FALSE)=\"-\"),1/0,VLOOKUP($A809,Economática!$A$3:$AI$823,17,FALSE)))","v":""},{"$f":"IF($A809=\"\",\"\",IF(OR(VLOOKUP($A809,Economática!$A$3:$AI$823,18,FALSE)=0,VLOOKUP($A809,Economática!$A$3:$AI$823,18,FALSE)=\"-\"),1/0,VLOOKUP($A809,Economática!$A$3:$AI$823,18,FALSE)))","v":""},{"$f":"IF($A809=\"\",\"\",IF(OR(VLOOKUP($A809,Economática!$A$3:$AI$823,19,FALSE)=0,VLOOKUP($A809,Economática!$A$3:$AI$823,19,FALSE)=\"-\"),1/0,VLOOKUP($A809,Economática!$A$3:$AI$823,19,FALSE)))","v":""},{"$f":"IF($A809=\"\",\"\",VLOOKUP($A809,Economática!$A$3:$AI$823,20,FALSE)/E809)","v":""},"","","",{"$f":"IF($A809=\"\",\"\",IF(OR(VLOOKUP($A809,Economática!$A$3:$AI$823,21,FALSE)/100=0,VLOOKUP($A809,Economática!$A$3:$AI$823,21,FALSE)/100=\"-\"),1/0,VLOOKUP($A809,Economática!$A$3:$AI$823,21,FALSE)/100))","v":""},{"$f":"IF($A809=\"\",\"\",IF(OR(VLOOKUP($A809,Economática!$A$3:$AI$823,22,FALSE)/100=0,VLOOKUP($A809,Economática!$A$3:$AI$823,22,FALSE)/100=\"-\"),1/0,VLOOKUP($A809,Economática!$A$3:$AI$823,22,FALSE)/100))","v":""},{"$f":"IF($A809=\"\",\"\",IF(OR(VLOOKUP($A809,Economática!$A$3:$AI$823,23,FALSE)=0,VLOOKUP($A809,Economática!$A$3:$AI$823,23,FALSE)=\"-\"),1/0,VLOOKUP($A809,Economática!$A$3:$AI$823,23,FALSE)))","v":""},{"$f":"IF($A809=\"\",\"\",IF(OR(VLOOKUP($A809,Economática!$A$3:$AI$823,24,FALSE)=0,VLOOKUP($A809,Economática!$A$3:$AI$823,24,FALSE)=\"-\"),1/0,VLOOKUP($A809,Economática!$A$3:$AI$823,24,FALSE)))","v":""},{"$f":"IF($A809=\"\",\"\",IF(OR(VLOOKUP($A809,Economática!$A$3:$AI$823,25,FALSE)=0,VLOOKUP($A809,Economática!$A$3:$AI$823,25,FALSE)=\"-\"),1/0,VLOOKUP($A809,Economática!$A$3:$AI$823,25,FALSE)))","v":""},{"$f":"IF($A809=\"\",\"\",IF(ISERROR((F809+VLOOKUP($A809,Economática!$A$3:$AI$823,26,FALSE))/Y809),(F809+VLOOKUP($A809,Economática!$A$3:$AI$823,26,FALSE))/Y809,(F809+VLOOKUP($A809,Economática!$A$3:$AI$823,26,FALSE))/Y809))","v":""},{"$f":"IF($A809=\"\",\"\",IF(OR(-VLOOKUP($A809,Economática!$A$3:$AI$823,27,FALSE)=0,-VLOOKUP($A809,Economática!$A$3:$AI$823,27,FALSE)=\"-\"),1/0,-VLOOKUP($A809,Economática!$A$3:$AI$823,27,FALSE)))","v":""},"",{"$f":"IF($A809=\"\",\"\",IF(OR(VLOOKUP($A809,Economática!$A$3:$AI$823,28,FALSE)=0,VLOOKUP($A809,Economática!$A$3:$AI$823,28,FALSE)=\"-\"),1/0,VLOOKUP($A809,Economática!$A$3:$AI$823,28,FALSE)))","v":""},{"$f":"IF($A809=\"\",\"\",IF(OR(VLOOKUP($A809,Economática!$A$3:$AI$823,29,FALSE)=0,VLOOKUP($A809,Economática!$A$3:$AI$823,29,FALSE)=\"-\"),1/0,VLOOKUP($A809,Economática!$A$3:$AI$823,29,FALSE)))","v":""},{"$f":"IF($A809=\"\",\"\",IF(OR(VLOOKUP($A809,Economática!$A$3:$AI$823,30,FALSE)/E809=0,VLOOKUP($A809,Economática!$A$3:$AI$823,30,FALSE)/E809=\"-\",VLOOKUP($A809,Economática!$A$3:$AI$823,30,FALSE)/E809<33.33%,VLOOKUP($A809,Economática!$A$3:$AI$823,30,FALSE)/E809>100%),1/0,VLOOKUP($A809,Economática!$A$3:$AI$823,30,FALSE)/E809))","v":""},"",{"$f":"IF($A809=\"\",\"\",IF(OR(VLOOKUP($A809,Economática!$A$3:$AI$823,25,FALSE)=0,VLOOKUP($A809,Economática!$A$3:$AI$823,25,FALSE)=\"-\"),1/0,VLOOKUP($A809,Economática!$A$3:$AI$823,25,FALSE)))","v":""},{"$f":"CONCATENATE(Economática!B787,\" \",Economática!C787)","v":" "}]
[{"$f":"IF(Economática!AG788=\"\",\"\",Economática!AG788)","v":""},{"$f":"IF($A810=\"\",\"\",VLOOKUP(VLOOKUP($A810,Economática!$A$3:$AI$823,6,FALSE),Correção!$B$16:$C$36,2,FALSE))","v":""},{"$f":"IF(Economática!B788=\"\",\"\",Economática!B788)","v":""},{"$f":"IF($A810=\"\",\"\",IF(OR(VLOOKUP($A810,Economática!$A$3:$AI$823,8,FALSE)=0,VLOOKUP($A810,Economática!$A$3:$AI$823,8,FALSE)=\"-\"),1/0,VLOOKUP($A810,Economática!$A$3:$AI$823,8,FALSE)))","v":""},{"$f":"IF(A810=\"\",\"\",IF(ISERROR(VLOOKUP(A810,Correção!$B$2:$G$13,9,FALSE)),VLOOKUP($A810,Economática!$A$3:$AI$823,9,FALSE),VLOOKUP(A810,Correção!$B$2:$G$13,9,FALSE)))","v":""},{"$f":"IF($A810=\"\",\"\",Economática!G788)","v":""},{"$f":"IF($A810=\"\",\"\",IF(OR(VLOOKUP($A810,Economática!$A$3:$AI$823,10,FALSE)=0,VLOOKUP($A810,Economática!$A$3:$AI$823,10,FALSE)=\"-\"),1/0,VLOOKUP($A810,Economática!$A$3:$AI$823,10,FALSE)))","v":""},{"$f":"IF($A810=\"\",\"\",IF(OR(VLOOKUP($A810,Economática!$A$3:$AI$823,11,FALSE)=0,VLOOKUP($A810,Economática!$A$3:$AI$823,11,FALSE)=\"-\"),1/0,VLOOKUP($A810,Economática!$A$3:$AI$823,11,FALSE)))","v":""},{"$f":"IF($A810=\"\",\"\",IF(OR(VLOOKUP($A810,Economática!$A$3:$AI$823,12,FALSE)=0,VLOOKUP($A810,Economática!$A$3:$AI$823,12,FALSE)=\"-\"),1/0,VLOOKUP($A810,Economática!$A$3:$AI$823,12,FALSE)))","v":""},{"$f":"IF($A810=\"\",\"\",IF(OR(VLOOKUP($A810,Economática!$A$3:$AI$823,13,FALSE)=0,VLOOKUP($A810,Economática!$A$3:$AI$823,13,FALSE)=\"-\"),1/0,VLOOKUP($A810,Economática!$A$3:$AI$823,13,FALSE)))","v":""},{"$f":"IF($A810=\"\",\"\",IF(OR(VLOOKUP($A810,Economática!$A$3:$AI$823,14,FALSE)=0,VLOOKUP($A810,Economática!$A$3:$AI$823,14,FALSE)=\"-\"),1/0,VLOOKUP($A810,Economática!$A$3:$AI$823,14,FALSE)))","v":""},{"$f":"IF($A810=\"\",\"\",IF(OR(VLOOKUP($A810,Economática!$A$3:$AI$823,15,FALSE)=0,VLOOKUP($A810,Economática!$A$3:$AI$823,15,FALSE)=\"-\"),1/0,VLOOKUP($A810,Economática!$A$3:$AI$823,15,FALSE)))","v":""},{"$f":"IF($A810=\"\",\"\",IF(OR(VLOOKUP($A810,Economática!$A$3:$AI$823,16,FALSE)=0,VLOOKUP($A810,Economática!$A$3:$AI$823,16,FALSE)=\"-\"),1/0,VLOOKUP($A810,Economática!$A$3:$AI$823,16,FALSE)))","v":""},{"$f":"IF($A810=\"\",\"\",IF(OR(VLOOKUP($A810,Economática!$A$3:$AI$823,17,FALSE)=0,VLOOKUP($A810,Economática!$A$3:$AI$823,17,FALSE)=\"-\"),1/0,VLOOKUP($A810,Economática!$A$3:$AI$823,17,FALSE)))","v":""},{"$f":"IF($A810=\"\",\"\",IF(OR(VLOOKUP($A810,Economática!$A$3:$AI$823,18,FALSE)=0,VLOOKUP($A810,Economática!$A$3:$AI$823,18,FALSE)=\"-\"),1/0,VLOOKUP($A810,Economática!$A$3:$AI$823,18,FALSE)))","v":""},{"$f":"IF($A810=\"\",\"\",IF(OR(VLOOKUP($A810,Economática!$A$3:$AI$823,19,FALSE)=0,VLOOKUP($A810,Economática!$A$3:$AI$823,19,FALSE)=\"-\"),1/0,VLOOKUP($A810,Economática!$A$3:$AI$823,19,FALSE)))","v":""},{"$f":"IF($A810=\"\",\"\",VLOOKUP($A810,Economática!$A$3:$AI$823,20,FALSE)/E810)","v":""},"","","",{"$f":"IF($A810=\"\",\"\",IF(OR(VLOOKUP($A810,Economática!$A$3:$AI$823,21,FALSE)/100=0,VLOOKUP($A810,Economática!$A$3:$AI$823,21,FALSE)/100=\"-\"),1/0,VLOOKUP($A810,Economática!$A$3:$AI$823,21,FALSE)/100))","v":""},{"$f":"IF($A810=\"\",\"\",IF(OR(VLOOKUP($A810,Economática!$A$3:$AI$823,22,FALSE)/100=0,VLOOKUP($A810,Economática!$A$3:$AI$823,22,FALSE)/100=\"-\"),1/0,VLOOKUP($A810,Economática!$A$3:$AI$823,22,FALSE)/100))","v":""},{"$f":"IF($A810=\"\",\"\",IF(OR(VLOOKUP($A810,Economática!$A$3:$AI$823,23,FALSE)=0,VLOOKUP($A810,Economática!$A$3:$AI$823,23,FALSE)=\"-\"),1/0,VLOOKUP($A810,Economática!$A$3:$AI$823,23,FALSE)))","v":""},{"$f":"IF($A810=\"\",\"\",IF(OR(VLOOKUP($A810,Economática!$A$3:$AI$823,24,FALSE)=0,VLOOKUP($A810,Economática!$A$3:$AI$823,24,FALSE)=\"-\"),1/0,VLOOKUP($A810,Economática!$A$3:$AI$823,24,FALSE)))","v":""},{"$f":"IF($A810=\"\",\"\",IF(OR(VLOOKUP($A810,Economática!$A$3:$AI$823,25,FALSE)=0,VLOOKUP($A810,Economática!$A$3:$AI$823,25,FALSE)=\"-\"),1/0,VLOOKUP($A810,Economática!$A$3:$AI$823,25,FALSE)))","v":""},{"$f":"IF($A810=\"\",\"\",IF(ISERROR((F810+VLOOKUP($A810,Economática!$A$3:$AI$823,26,FALSE))/Y810),(F810+VLOOKUP($A810,Economática!$A$3:$AI$823,26,FALSE))/Y810,(F810+VLOOKUP($A810,Economática!$A$3:$AI$823,26,FALSE))/Y810))","v":""},{"$f":"IF($A810=\"\",\"\",IF(OR(-VLOOKUP($A810,Economática!$A$3:$AI$823,27,FALSE)=0,-VLOOKUP($A810,Economática!$A$3:$AI$823,27,FALSE)=\"-\"),1/0,-VLOOKUP($A810,Economática!$A$3:$AI$823,27,FALSE)))","v":""},"",{"$f":"IF($A810=\"\",\"\",IF(OR(VLOOKUP($A810,Economática!$A$3:$AI$823,28,FALSE)=0,VLOOKUP($A810,Economática!$A$3:$AI$823,28,FALSE)=\"-\"),1/0,VLOOKUP($A810,Economática!$A$3:$AI$823,28,FALSE)))","v":""},{"$f":"IF($A810=\"\",\"\",IF(OR(VLOOKUP($A810,Economática!$A$3:$AI$823,29,FALSE)=0,VLOOKUP($A810,Economática!$A$3:$AI$823,29,FALSE)=\"-\"),1/0,VLOOKUP($A810,Economática!$A$3:$AI$823,29,FALSE)))","v":""},{"$f":"IF($A810=\"\",\"\",IF(OR(VLOOKUP($A810,Economática!$A$3:$AI$823,30,FALSE)/E810=0,VLOOKUP($A810,Economática!$A$3:$AI$823,30,FALSE)/E810=\"-\",VLOOKUP($A810,Economática!$A$3:$AI$823,30,FALSE)/E810<33.33%,VLOOKUP($A810,Economática!$A$3:$AI$823,30,FALSE)/E810>100%),1/0,VLOOKUP($A810,Economática!$A$3:$AI$823,30,FALSE)/E810))","v":""},"",{"$f":"IF($A810=\"\",\"\",IF(OR(VLOOKUP($A810,Economática!$A$3:$AI$823,25,FALSE)=0,VLOOKUP($A810,Economática!$A$3:$AI$823,25,FALSE)=\"-\"),1/0,VLOOKUP($A810,Economática!$A$3:$AI$823,25,FALSE)))","v":""},{"$f":"CONCATENATE(Economática!B788,\" \",Economática!C788)","v":" "}]
[{"$f":"IF(Economática!AG789=\"\",\"\",Economática!AG789)","v":""},{"$f":"IF($A811=\"\",\"\",VLOOKUP(VLOOKUP($A811,Economática!$A$3:$AI$823,6,FALSE),Correção!$B$16:$C$36,2,FALSE))","v":""},{"$f":"IF(Economática!B789=\"\",\"\",Economática!B789)","v":""},{"$f":"IF($A811=\"\",\"\",IF(OR(VLOOKUP($A811,Economática!$A$3:$AI$823,8,FALSE)=0,VLOOKUP($A811,Economática!$A$3:$AI$823,8,FALSE)=\"-\"),1/0,VLOOKUP($A811,Economática!$A$3:$AI$823,8,FALSE)))","v":""},{"$f":"IF(A811=\"\",\"\",IF(ISERROR(VLOOKUP(A811,Correção!$B$2:$G$13,9,FALSE)),VLOOKUP($A811,Economática!$A$3:$AI$823,9,FALSE),VLOOKUP(A811,Correção!$B$2:$G$13,9,FALSE)))","v":""},{"$f":"IF($A811=\"\",\"\",Economática!G789)","v":""},{"$f":"IF($A811=\"\",\"\",IF(OR(VLOOKUP($A811,Economática!$A$3:$AI$823,10,FALSE)=0,VLOOKUP($A811,Economática!$A$3:$AI$823,10,FALSE)=\"-\"),1/0,VLOOKUP($A811,Economática!$A$3:$AI$823,10,FALSE)))","v":""},{"$f":"IF($A811=\"\",\"\",IF(OR(VLOOKUP($A811,Economática!$A$3:$AI$823,11,FALSE)=0,VLOOKUP($A811,Economática!$A$3:$AI$823,11,FALSE)=\"-\"),1/0,VLOOKUP($A811,Economática!$A$3:$AI$823,11,FALSE)))","v":""},{"$f":"IF($A811=\"\",\"\",IF(OR(VLOOKUP($A811,Economática!$A$3:$AI$823,12,FALSE)=0,VLOOKUP($A811,Economática!$A$3:$AI$823,12,FALSE)=\"-\"),1/0,VLOOKUP($A811,Economática!$A$3:$AI$823,12,FALSE)))","v":""},{"$f":"IF($A811=\"\",\"\",IF(OR(VLOOKUP($A811,Economática!$A$3:$AI$823,13,FALSE)=0,VLOOKUP($A811,Economática!$A$3:$AI$823,13,FALSE)=\"-\"),1/0,VLOOKUP($A811,Economática!$A$3:$AI$823,13,FALSE)))","v":""},{"$f":"IF($A811=\"\",\"\",IF(OR(VLOOKUP($A811,Economática!$A$3:$AI$823,14,FALSE)=0,VLOOKUP($A811,Economática!$A$3:$AI$823,14,FALSE)=\"-\"),1/0,VLOOKUP($A811,Economática!$A$3:$AI$823,14,FALSE)))","v":""},{"$f":"IF($A811=\"\",\"\",IF(OR(VLOOKUP($A811,Economática!$A$3:$AI$823,15,FALSE)=0,VLOOKUP($A811,Economática!$A$3:$AI$823,15,FALSE)=\"-\"),1/0,VLOOKUP($A811,Economática!$A$3:$AI$823,15,FALSE)))","v":""},{"$f":"IF($A811=\"\",\"\",IF(OR(VLOOKUP($A811,Economática!$A$3:$AI$823,16,FALSE)=0,VLOOKUP($A811,Economática!$A$3:$AI$823,16,FALSE)=\"-\"),1/0,VLOOKUP($A811,Economática!$A$3:$AI$823,16,FALSE)))","v":""},{"$f":"IF($A811=\"\",\"\",IF(OR(VLOOKUP($A811,Economática!$A$3:$AI$823,17,FALSE)=0,VLOOKUP($A811,Economática!$A$3:$AI$823,17,FALSE)=\"-\"),1/0,VLOOKUP($A811,Economática!$A$3:$AI$823,17,FALSE)))","v":""},{"$f":"IF($A811=\"\",\"\",IF(OR(VLOOKUP($A811,Economática!$A$3:$AI$823,18,FALSE)=0,VLOOKUP($A811,Economática!$A$3:$AI$823,18,FALSE)=\"-\"),1/0,VLOOKUP($A811,Economática!$A$3:$AI$823,18,FALSE)))","v":""},{"$f":"IF($A811=\"\",\"\",IF(OR(VLOOKUP($A811,Economática!$A$3:$AI$823,19,FALSE)=0,VLOOKUP($A811,Economática!$A$3:$AI$823,19,FALSE)=\"-\"),1/0,VLOOKUP($A811,Economática!$A$3:$AI$823,19,FALSE)))","v":""},{"$f":"IF($A811=\"\",\"\",VLOOKUP($A811,Economática!$A$3:$AI$823,20,FALSE)/E811)","v":""},"","","",{"$f":"IF($A811=\"\",\"\",IF(OR(VLOOKUP($A811,Economática!$A$3:$AI$823,21,FALSE)/100=0,VLOOKUP($A811,Economática!$A$3:$AI$823,21,FALSE)/100=\"-\"),1/0,VLOOKUP($A811,Economática!$A$3:$AI$823,21,FALSE)/100))","v":""},{"$f":"IF($A811=\"\",\"\",IF(OR(VLOOKUP($A811,Economática!$A$3:$AI$823,22,FALSE)/100=0,VLOOKUP($A811,Economática!$A$3:$AI$823,22,FALSE)/100=\"-\"),1/0,VLOOKUP($A811,Economática!$A$3:$AI$823,22,FALSE)/100))","v":""},{"$f":"IF($A811=\"\",\"\",IF(OR(VLOOKUP($A811,Economática!$A$3:$AI$823,23,FALSE)=0,VLOOKUP($A811,Economática!$A$3:$AI$823,23,FALSE)=\"-\"),1/0,VLOOKUP($A811,Economática!$A$3:$AI$823,23,FALSE)))","v":""},{"$f":"IF($A811=\"\",\"\",IF(OR(VLOOKUP($A811,Economática!$A$3:$AI$823,24,FALSE)=0,VLOOKUP($A811,Economática!$A$3:$AI$823,24,FALSE)=\"-\"),1/0,VLOOKUP($A811,Economática!$A$3:$AI$823,24,FALSE)))","v":""},{"$f":"IF($A811=\"\",\"\",IF(OR(VLOOKUP($A811,Economática!$A$3:$AI$823,25,FALSE)=0,VLOOKUP($A811,Economática!$A$3:$AI$823,25,FALSE)=\"-\"),1/0,VLOOKUP($A811,Economática!$A$3:$AI$823,25,FALSE)))","v":""},{"$f":"IF($A811=\"\",\"\",IF(ISERROR((F811+VLOOKUP($A811,Economática!$A$3:$AI$823,26,FALSE))/Y811),(F811+VLOOKUP($A811,Economática!$A$3:$AI$823,26,FALSE))/Y811,(F811+VLOOKUP($A811,Economática!$A$3:$AI$823,26,FALSE))/Y811))","v":""},{"$f":"IF($A811=\"\",\"\",IF(OR(-VLOOKUP($A811,Economática!$A$3:$AI$823,27,FALSE)=0,-VLOOKUP($A811,Economática!$A$3:$AI$823,27,FALSE)=\"-\"),1/0,-VLOOKUP($A811,Economática!$A$3:$AI$823,27,FALSE)))","v":""},"",{"$f":"IF($A811=\"\",\"\",IF(OR(VLOOKUP($A811,Economática!$A$3:$AI$823,28,FALSE)=0,VLOOKUP($A811,Economática!$A$3:$AI$823,28,FALSE)=\"-\"),1/0,VLOOKUP($A811,Economática!$A$3:$AI$823,28,FALSE)))","v":""},{"$f":"IF($A811=\"\",\"\",IF(OR(VLOOKUP($A811,Economática!$A$3:$AI$823,29,FALSE)=0,VLOOKUP($A811,Economática!$A$3:$AI$823,29,FALSE)=\"-\"),1/0,VLOOKUP($A811,Economática!$A$3:$AI$823,29,FALSE)))","v":""},{"$f":"IF($A811=\"\",\"\",IF(OR(VLOOKUP($A811,Economática!$A$3:$AI$823,30,FALSE)/E811=0,VLOOKUP($A811,Economática!$A$3:$AI$823,30,FALSE)/E811=\"-\",VLOOKUP($A811,Economática!$A$3:$AI$823,30,FALSE)/E811<33.33%,VLOOKUP($A811,Economática!$A$3:$AI$823,30,FALSE)/E811>100%),1/0,VLOOKUP($A811,Economática!$A$3:$AI$823,30,FALSE)/E811))","v":""},"",{"$f":"IF($A811=\"\",\"\",IF(OR(VLOOKUP($A811,Economática!$A$3:$AI$823,25,FALSE)=0,VLOOKUP($A811,Economática!$A$3:$AI$823,25,FALSE)=\"-\"),1/0,VLOOKUP($A811,Economática!$A$3:$AI$823,25,FALSE)))","v":""},{"$f":"CONCATENATE(Economática!B789,\" \",Economática!C789)","v":" "}]
[{"$f":"IF(Economática!AG790=\"\",\"\",Economática!AG790)","v":""},{"$f":"IF($A812=\"\",\"\",VLOOKUP(VLOOKUP($A812,Economática!$A$3:$AI$823,6,FALSE),Correção!$B$16:$C$36,2,FALSE))","v":""},{"$f":"IF(Economática!B790=\"\",\"\",Economática!B790)","v":""},{"$f":"IF($A812=\"\",\"\",IF(OR(VLOOKUP($A812,Economática!$A$3:$AI$823,8,FALSE)=0,VLOOKUP($A812,Economática!$A$3:$AI$823,8,FALSE)=\"-\"),1/0,VLOOKUP($A812,Economática!$A$3:$AI$823,8,FALSE)))","v":""},{"$f":"IF(A812=\"\",\"\",IF(ISERROR(VLOOKUP(A812,Correção!$B$2:$G$13,9,FALSE)),VLOOKUP($A812,Economática!$A$3:$AI$823,9,FALSE),VLOOKUP(A812,Correção!$B$2:$G$13,9,FALSE)))","v":""},{"$f":"IF($A812=\"\",\"\",Economática!G790)","v":""},{"$f":"IF($A812=\"\",\"\",IF(OR(VLOOKUP($A812,Economática!$A$3:$AI$823,10,FALSE)=0,VLOOKUP($A812,Economática!$A$3:$AI$823,10,FALSE)=\"-\"),1/0,VLOOKUP($A812,Economática!$A$3:$AI$823,10,FALSE)))","v":""},{"$f":"IF($A812=\"\",\"\",IF(OR(VLOOKUP($A812,Economática!$A$3:$AI$823,11,FALSE)=0,VLOOKUP($A812,Economática!$A$3:$AI$823,11,FALSE)=\"-\"),1/0,VLOOKUP($A812,Economática!$A$3:$AI$823,11,FALSE)))","v":""},{"$f":"IF($A812=\"\",\"\",IF(OR(VLOOKUP($A812,Economática!$A$3:$AI$823,12,FALSE)=0,VLOOKUP($A812,Economática!$A$3:$AI$823,12,FALSE)=\"-\"),1/0,VLOOKUP($A812,Economática!$A$3:$AI$823,12,FALSE)))","v":""},{"$f":"IF($A812=\"\",\"\",IF(OR(VLOOKUP($A812,Economática!$A$3:$AI$823,13,FALSE)=0,VLOOKUP($A812,Economática!$A$3:$AI$823,13,FALSE)=\"-\"),1/0,VLOOKUP($A812,Economática!$A$3:$AI$823,13,FALSE)))","v":""},{"$f":"IF($A812=\"\",\"\",IF(OR(VLOOKUP($A812,Economática!$A$3:$AI$823,14,FALSE)=0,VLOOKUP($A812,Economática!$A$3:$AI$823,14,FALSE)=\"-\"),1/0,VLOOKUP($A812,Economática!$A$3:$AI$823,14,FALSE)))","v":""},{"$f":"IF($A812=\"\",\"\",IF(OR(VLOOKUP($A812,Economática!$A$3:$AI$823,15,FALSE)=0,VLOOKUP($A812,Economática!$A$3:$AI$823,15,FALSE)=\"-\"),1/0,VLOOKUP($A812,Economática!$A$3:$AI$823,15,FALSE)))","v":""},{"$f":"IF($A812=\"\",\"\",IF(OR(VLOOKUP($A812,Economática!$A$3:$AI$823,16,FALSE)=0,VLOOKUP($A812,Economática!$A$3:$AI$823,16,FALSE)=\"-\"),1/0,VLOOKUP($A812,Economática!$A$3:$AI$823,16,FALSE)))","v":""},{"$f":"IF($A812=\"\",\"\",IF(OR(VLOOKUP($A812,Economática!$A$3:$AI$823,17,FALSE)=0,VLOOKUP($A812,Economática!$A$3:$AI$823,17,FALSE)=\"-\"),1/0,VLOOKUP($A812,Economática!$A$3:$AI$823,17,FALSE)))","v":""},{"$f":"IF($A812=\"\",\"\",IF(OR(VLOOKUP($A812,Economática!$A$3:$AI$823,18,FALSE)=0,VLOOKUP($A812,Economática!$A$3:$AI$823,18,FALSE)=\"-\"),1/0,VLOOKUP($A812,Economática!$A$3:$AI$823,18,FALSE)))","v":""},{"$f":"IF($A812=\"\",\"\",IF(OR(VLOOKUP($A812,Economática!$A$3:$AI$823,19,FALSE)=0,VLOOKUP($A812,Economática!$A$3:$AI$823,19,FALSE)=\"-\"),1/0,VLOOKUP($A812,Economática!$A$3:$AI$823,19,FALSE)))","v":""},{"$f":"IF($A812=\"\",\"\",VLOOKUP($A812,Economática!$A$3:$AI$823,20,FALSE)/E812)","v":""},"","","",{"$f":"IF($A812=\"\",\"\",IF(OR(VLOOKUP($A812,Economática!$A$3:$AI$823,21,FALSE)/100=0,VLOOKUP($A812,Economática!$A$3:$AI$823,21,FALSE)/100=\"-\"),1/0,VLOOKUP($A812,Economática!$A$3:$AI$823,21,FALSE)/100))","v":""},{"$f":"IF($A812=\"\",\"\",IF(OR(VLOOKUP($A812,Economática!$A$3:$AI$823,22,FALSE)/100=0,VLOOKUP($A812,Economática!$A$3:$AI$823,22,FALSE)/100=\"-\"),1/0,VLOOKUP($A812,Economática!$A$3:$AI$823,22,FALSE)/100))","v":""},{"$f":"IF($A812=\"\",\"\",IF(OR(VLOOKUP($A812,Economática!$A$3:$AI$823,23,FALSE)=0,VLOOKUP($A812,Economática!$A$3:$AI$823,23,FALSE)=\"-\"),1/0,VLOOKUP($A812,Economática!$A$3:$AI$823,23,FALSE)))","v":""},{"$f":"IF($A812=\"\",\"\",IF(OR(VLOOKUP($A812,Economática!$A$3:$AI$823,24,FALSE)=0,VLOOKUP($A812,Economática!$A$3:$AI$823,24,FALSE)=\"-\"),1/0,VLOOKUP($A812,Economática!$A$3:$AI$823,24,FALSE)))","v":""},{"$f":"IF($A812=\"\",\"\",IF(OR(VLOOKUP($A812,Economática!$A$3:$AI$823,25,FALSE)=0,VLOOKUP($A812,Economática!$A$3:$AI$823,25,FALSE)=\"-\"),1/0,VLOOKUP($A812,Economática!$A$3:$AI$823,25,FALSE)))","v":""},{"$f":"IF($A812=\"\",\"\",IF(ISERROR((F812+VLOOKUP($A812,Economática!$A$3:$AI$823,26,FALSE))/Y812),(F812+VLOOKUP($A812,Economática!$A$3:$AI$823,26,FALSE))/Y812,(F812+VLOOKUP($A812,Economática!$A$3:$AI$823,26,FALSE))/Y812))","v":""},{"$f":"IF($A812=\"\",\"\",IF(OR(-VLOOKUP($A812,Economática!$A$3:$AI$823,27,FALSE)=0,-VLOOKUP($A812,Economática!$A$3:$AI$823,27,FALSE)=\"-\"),1/0,-VLOOKUP($A812,Economática!$A$3:$AI$823,27,FALSE)))","v":""},"",{"$f":"IF($A812=\"\",\"\",IF(OR(VLOOKUP($A812,Economática!$A$3:$AI$823,28,FALSE)=0,VLOOKUP($A812,Economática!$A$3:$AI$823,28,FALSE)=\"-\"),1/0,VLOOKUP($A812,Economática!$A$3:$AI$823,28,FALSE)))","v":""},{"$f":"IF($A812=\"\",\"\",IF(OR(VLOOKUP($A812,Economática!$A$3:$AI$823,29,FALSE)=0,VLOOKUP($A812,Economática!$A$3:$AI$823,29,FALSE)=\"-\"),1/0,VLOOKUP($A812,Economática!$A$3:$AI$823,29,FALSE)))","v":""},{"$f":"IF($A812=\"\",\"\",IF(OR(VLOOKUP($A812,Economática!$A$3:$AI$823,30,FALSE)/E812=0,VLOOKUP($A812,Economática!$A$3:$AI$823,30,FALSE)/E812=\"-\",VLOOKUP($A812,Economática!$A$3:$AI$823,30,FALSE)/E812<33.33%,VLOOKUP($A812,Economática!$A$3:$AI$823,30,FALSE)/E812>100%),1/0,VLOOKUP($A812,Economática!$A$3:$AI$823,30,FALSE)/E812))","v":""},"",{"$f":"IF($A812=\"\",\"\",IF(OR(VLOOKUP($A812,Economática!$A$3:$AI$823,25,FALSE)=0,VLOOKUP($A812,Economática!$A$3:$AI$823,25,FALSE)=\"-\"),1/0,VLOOKUP($A812,Economática!$A$3:$AI$823,25,FALSE)))","v":""},{"$f":"CONCATENATE(Economática!B790,\" \",Economática!C790)","v":" "}]
[{"$f":"IF(Economática!AG791=\"\",\"\",Economática!AG791)","v":""},{"$f":"IF($A813=\"\",\"\",VLOOKUP(VLOOKUP($A813,Economática!$A$3:$AI$823,6,FALSE),Correção!$B$16:$C$36,2,FALSE))","v":""},{"$f":"IF(Economática!B791=\"\",\"\",Economática!B791)","v":""},{"$f":"IF($A813=\"\",\"\",IF(OR(VLOOKUP($A813,Economática!$A$3:$AI$823,8,FALSE)=0,VLOOKUP($A813,Economática!$A$3:$AI$823,8,FALSE)=\"-\"),1/0,VLOOKUP($A813,Economática!$A$3:$AI$823,8,FALSE)))","v":""},{"$f":"IF(A813=\"\",\"\",IF(ISERROR(VLOOKUP(A813,Correção!$B$2:$G$13,9,FALSE)),VLOOKUP($A813,Economática!$A$3:$AI$823,9,FALSE),VLOOKUP(A813,Correção!$B$2:$G$13,9,FALSE)))","v":""},{"$f":"IF($A813=\"\",\"\",Economática!G791)","v":""},{"$f":"IF($A813=\"\",\"\",IF(OR(VLOOKUP($A813,Economática!$A$3:$AI$823,10,FALSE)=0,VLOOKUP($A813,Economática!$A$3:$AI$823,10,FALSE)=\"-\"),1/0,VLOOKUP($A813,Economática!$A$3:$AI$823,10,FALSE)))","v":""},{"$f":"IF($A813=\"\",\"\",IF(OR(VLOOKUP($A813,Economática!$A$3:$AI$823,11,FALSE)=0,VLOOKUP($A813,Economática!$A$3:$AI$823,11,FALSE)=\"-\"),1/0,VLOOKUP($A813,Economática!$A$3:$AI$823,11,FALSE)))","v":""},{"$f":"IF($A813=\"\",\"\",IF(OR(VLOOKUP($A813,Economática!$A$3:$AI$823,12,FALSE)=0,VLOOKUP($A813,Economática!$A$3:$AI$823,12,FALSE)=\"-\"),1/0,VLOOKUP($A813,Economática!$A$3:$AI$823,12,FALSE)))","v":""},{"$f":"IF($A813=\"\",\"\",IF(OR(VLOOKUP($A813,Economática!$A$3:$AI$823,13,FALSE)=0,VLOOKUP($A813,Economática!$A$3:$AI$823,13,FALSE)=\"-\"),1/0,VLOOKUP($A813,Economática!$A$3:$AI$823,13,FALSE)))","v":""},{"$f":"IF($A813=\"\",\"\",IF(OR(VLOOKUP($A813,Economática!$A$3:$AI$823,14,FALSE)=0,VLOOKUP($A813,Economática!$A$3:$AI$823,14,FALSE)=\"-\"),1/0,VLOOKUP($A813,Economática!$A$3:$AI$823,14,FALSE)))","v":""},{"$f":"IF($A813=\"\",\"\",IF(OR(VLOOKUP($A813,Economática!$A$3:$AI$823,15,FALSE)=0,VLOOKUP($A813,Economática!$A$3:$AI$823,15,FALSE)=\"-\"),1/0,VLOOKUP($A813,Economática!$A$3:$AI$823,15,FALSE)))","v":""},{"$f":"IF($A813=\"\",\"\",IF(OR(VLOOKUP($A813,Economática!$A$3:$AI$823,16,FALSE)=0,VLOOKUP($A813,Economática!$A$3:$AI$823,16,FALSE)=\"-\"),1/0,VLOOKUP($A813,Economática!$A$3:$AI$823,16,FALSE)))","v":""},{"$f":"IF($A813=\"\",\"\",IF(OR(VLOOKUP($A813,Economática!$A$3:$AI$823,17,FALSE)=0,VLOOKUP($A813,Economática!$A$3:$AI$823,17,FALSE)=\"-\"),1/0,VLOOKUP($A813,Economática!$A$3:$AI$823,17,FALSE)))","v":""},{"$f":"IF($A813=\"\",\"\",IF(OR(VLOOKUP($A813,Economática!$A$3:$AI$823,18,FALSE)=0,VLOOKUP($A813,Economática!$A$3:$AI$823,18,FALSE)=\"-\"),1/0,VLOOKUP($A813,Economática!$A$3:$AI$823,18,FALSE)))","v":""},{"$f":"IF($A813=\"\",\"\",IF(OR(VLOOKUP($A813,Economática!$A$3:$AI$823,19,FALSE)=0,VLOOKUP($A813,Economática!$A$3:$AI$823,19,FALSE)=\"-\"),1/0,VLOOKUP($A813,Economática!$A$3:$AI$823,19,FALSE)))","v":""},{"$f":"IF($A813=\"\",\"\",VLOOKUP($A813,Economática!$A$3:$AI$823,20,FALSE)/E813)","v":""},"","","",{"$f":"IF($A813=\"\",\"\",IF(OR(VLOOKUP($A813,Economática!$A$3:$AI$823,21,FALSE)/100=0,VLOOKUP($A813,Economática!$A$3:$AI$823,21,FALSE)/100=\"-\"),1/0,VLOOKUP($A813,Economática!$A$3:$AI$823,21,FALSE)/100))","v":""},{"$f":"IF($A813=\"\",\"\",IF(OR(VLOOKUP($A813,Economática!$A$3:$AI$823,22,FALSE)/100=0,VLOOKUP($A813,Economática!$A$3:$AI$823,22,FALSE)/100=\"-\"),1/0,VLOOKUP($A813,Economática!$A$3:$AI$823,22,FALSE)/100))","v":""},{"$f":"IF($A813=\"\",\"\",IF(OR(VLOOKUP($A813,Economática!$A$3:$AI$823,23,FALSE)=0,VLOOKUP($A813,Economática!$A$3:$AI$823,23,FALSE)=\"-\"),1/0,VLOOKUP($A813,Economática!$A$3:$AI$823,23,FALSE)))","v":""},{"$f":"IF($A813=\"\",\"\",IF(OR(VLOOKUP($A813,Economática!$A$3:$AI$823,24,FALSE)=0,VLOOKUP($A813,Economática!$A$3:$AI$823,24,FALSE)=\"-\"),1/0,VLOOKUP($A813,Economática!$A$3:$AI$823,24,FALSE)))","v":""},{"$f":"IF($A813=\"\",\"\",IF(OR(VLOOKUP($A813,Economática!$A$3:$AI$823,25,FALSE)=0,VLOOKUP($A813,Economática!$A$3:$AI$823,25,FALSE)=\"-\"),1/0,VLOOKUP($A813,Economática!$A$3:$AI$823,25,FALSE)))","v":""},{"$f":"IF($A813=\"\",\"\",IF(ISERROR((F813+VLOOKUP($A813,Economática!$A$3:$AI$823,26,FALSE))/Y813),(F813+VLOOKUP($A813,Economática!$A$3:$AI$823,26,FALSE))/Y813,(F813+VLOOKUP($A813,Economática!$A$3:$AI$823,26,FALSE))/Y813))","v":""},{"$f":"IF($A813=\"\",\"\",IF(OR(-VLOOKUP($A813,Economática!$A$3:$AI$823,27,FALSE)=0,-VLOOKUP($A813,Economática!$A$3:$AI$823,27,FALSE)=\"-\"),1/0,-VLOOKUP($A813,Economática!$A$3:$AI$823,27,FALSE)))","v":""},"",{"$f":"IF($A813=\"\",\"\",IF(OR(VLOOKUP($A813,Economática!$A$3:$AI$823,28,FALSE)=0,VLOOKUP($A813,Economática!$A$3:$AI$823,28,FALSE)=\"-\"),1/0,VLOOKUP($A813,Economática!$A$3:$AI$823,28,FALSE)))","v":""},{"$f":"IF($A813=\"\",\"\",IF(OR(VLOOKUP($A813,Economática!$A$3:$AI$823,29,FALSE)=0,VLOOKUP($A813,Economática!$A$3:$AI$823,29,FALSE)=\"-\"),1/0,VLOOKUP($A813,Economática!$A$3:$AI$823,29,FALSE)))","v":""},{"$f":"IF($A813=\"\",\"\",IF(OR(VLOOKUP($A813,Economática!$A$3:$AI$823,30,FALSE)/E813=0,VLOOKUP($A813,Economática!$A$3:$AI$823,30,FALSE)/E813=\"-\",VLOOKUP($A813,Economática!$A$3:$AI$823,30,FALSE)/E813<33.33%,VLOOKUP($A813,Economática!$A$3:$AI$823,30,FALSE)/E813>100%),1/0,VLOOKUP($A813,Economática!$A$3:$AI$823,30,FALSE)/E813))","v":""},"",{"$f":"IF($A813=\"\",\"\",IF(OR(VLOOKUP($A813,Economática!$A$3:$AI$823,25,FALSE)=0,VLOOKUP($A813,Economática!$A$3:$AI$823,25,FALSE)=\"-\"),1/0,VLOOKUP($A813,Economática!$A$3:$AI$823,25,FALSE)))","v":""},{"$f":"CONCATENATE(Economática!B791,\" \",Economática!C791)","v":" "}]
[{"$f":"IF(Economática!AG792=\"\",\"\",Economática!AG792)","v":""},{"$f":"IF($A814=\"\",\"\",VLOOKUP(VLOOKUP($A814,Economática!$A$3:$AI$823,6,FALSE),Correção!$B$16:$C$36,2,FALSE))","v":""},{"$f":"IF(Economática!B792=\"\",\"\",Economática!B792)","v":""},{"$f":"IF($A814=\"\",\"\",IF(OR(VLOOKUP($A814,Economática!$A$3:$AI$823,8,FALSE)=0,VLOOKUP($A814,Economática!$A$3:$AI$823,8,FALSE)=\"-\"),1/0,VLOOKUP($A814,Economática!$A$3:$AI$823,8,FALSE)))","v":""},{"$f":"IF(A814=\"\",\"\",IF(ISERROR(VLOOKUP(A814,Correção!$B$2:$G$13,9,FALSE)),VLOOKUP($A814,Economática!$A$3:$AI$823,9,FALSE),VLOOKUP(A814,Correção!$B$2:$G$13,9,FALSE)))","v":""},{"$f":"IF($A814=\"\",\"\",Economática!G792)","v":""},{"$f":"IF($A814=\"\",\"\",IF(OR(VLOOKUP($A814,Economática!$A$3:$AI$823,10,FALSE)=0,VLOOKUP($A814,Economática!$A$3:$AI$823,10,FALSE)=\"-\"),1/0,VLOOKUP($A814,Economática!$A$3:$AI$823,10,FALSE)))","v":""},{"$f":"IF($A814=\"\",\"\",IF(OR(VLOOKUP($A814,Economática!$A$3:$AI$823,11,FALSE)=0,VLOOKUP($A814,Economática!$A$3:$AI$823,11,FALSE)=\"-\"),1/0,VLOOKUP($A814,Economática!$A$3:$AI$823,11,FALSE)))","v":""},{"$f":"IF($A814=\"\",\"\",IF(OR(VLOOKUP($A814,Economática!$A$3:$AI$823,12,FALSE)=0,VLOOKUP($A814,Economática!$A$3:$AI$823,12,FALSE)=\"-\"),1/0,VLOOKUP($A814,Economática!$A$3:$AI$823,12,FALSE)))","v":""},{"$f":"IF($A814=\"\",\"\",IF(OR(VLOOKUP($A814,Economática!$A$3:$AI$823,13,FALSE)=0,VLOOKUP($A814,Economática!$A$3:$AI$823,13,FALSE)=\"-\"),1/0,VLOOKUP($A814,Economática!$A$3:$AI$823,13,FALSE)))","v":""},{"$f":"IF($A814=\"\",\"\",IF(OR(VLOOKUP($A814,Economática!$A$3:$AI$823,14,FALSE)=0,VLOOKUP($A814,Economática!$A$3:$AI$823,14,FALSE)=\"-\"),1/0,VLOOKUP($A814,Economática!$A$3:$AI$823,14,FALSE)))","v":""},{"$f":"IF($A814=\"\",\"\",IF(OR(VLOOKUP($A814,Economática!$A$3:$AI$823,15,FALSE)=0,VLOOKUP($A814,Economática!$A$3:$AI$823,15,FALSE)=\"-\"),1/0,VLOOKUP($A814,Economática!$A$3:$AI$823,15,FALSE)))","v":""},{"$f":"IF($A814=\"\",\"\",IF(OR(VLOOKUP($A814,Economática!$A$3:$AI$823,16,FALSE)=0,VLOOKUP($A814,Economática!$A$3:$AI$823,16,FALSE)=\"-\"),1/0,VLOOKUP($A814,Economática!$A$3:$AI$823,16,FALSE)))","v":""},{"$f":"IF($A814=\"\",\"\",IF(OR(VLOOKUP($A814,Economática!$A$3:$AI$823,17,FALSE)=0,VLOOKUP($A814,Economática!$A$3:$AI$823,17,FALSE)=\"-\"),1/0,VLOOKUP($A814,Economática!$A$3:$AI$823,17,FALSE)))","v":""},{"$f":"IF($A814=\"\",\"\",IF(OR(VLOOKUP($A814,Economática!$A$3:$AI$823,18,FALSE)=0,VLOOKUP($A814,Economática!$A$3:$AI$823,18,FALSE)=\"-\"),1/0,VLOOKUP($A814,Economática!$A$3:$AI$823,18,FALSE)))","v":""},{"$f":"IF($A814=\"\",\"\",IF(OR(VLOOKUP($A814,Economática!$A$3:$AI$823,19,FALSE)=0,VLOOKUP($A814,Economática!$A$3:$AI$823,19,FALSE)=\"-\"),1/0,VLOOKUP($A814,Economática!$A$3:$AI$823,19,FALSE)))","v":""},{"$f":"IF($A814=\"\",\"\",VLOOKUP($A814,Economática!$A$3:$AI$823,20,FALSE)/E814)","v":""},"","","",{"$f":"IF($A814=\"\",\"\",IF(OR(VLOOKUP($A814,Economática!$A$3:$AI$823,21,FALSE)/100=0,VLOOKUP($A814,Economática!$A$3:$AI$823,21,FALSE)/100=\"-\"),1/0,VLOOKUP($A814,Economática!$A$3:$AI$823,21,FALSE)/100))","v":""},{"$f":"IF($A814=\"\",\"\",IF(OR(VLOOKUP($A814,Economática!$A$3:$AI$823,22,FALSE)/100=0,VLOOKUP($A814,Economática!$A$3:$AI$823,22,FALSE)/100=\"-\"),1/0,VLOOKUP($A814,Economática!$A$3:$AI$823,22,FALSE)/100))","v":""},{"$f":"IF($A814=\"\",\"\",IF(OR(VLOOKUP($A814,Economática!$A$3:$AI$823,23,FALSE)=0,VLOOKUP($A814,Economática!$A$3:$AI$823,23,FALSE)=\"-\"),1/0,VLOOKUP($A814,Economática!$A$3:$AI$823,23,FALSE)))","v":""},{"$f":"IF($A814=\"\",\"\",IF(OR(VLOOKUP($A814,Economática!$A$3:$AI$823,24,FALSE)=0,VLOOKUP($A814,Economática!$A$3:$AI$823,24,FALSE)=\"-\"),1/0,VLOOKUP($A814,Economática!$A$3:$AI$823,24,FALSE)))","v":""},{"$f":"IF($A814=\"\",\"\",IF(OR(VLOOKUP($A814,Economática!$A$3:$AI$823,25,FALSE)=0,VLOOKUP($A814,Economática!$A$3:$AI$823,25,FALSE)=\"-\"),1/0,VLOOKUP($A814,Economática!$A$3:$AI$823,25,FALSE)))","v":""},{"$f":"IF($A814=\"\",\"\",IF(ISERROR((F814+VLOOKUP($A814,Economática!$A$3:$AI$823,26,FALSE))/Y814),(F814+VLOOKUP($A814,Economática!$A$3:$AI$823,26,FALSE))/Y814,(F814+VLOOKUP($A814,Economática!$A$3:$AI$823,26,FALSE))/Y814))","v":""},{"$f":"IF($A814=\"\",\"\",IF(OR(-VLOOKUP($A814,Economática!$A$3:$AI$823,27,FALSE)=0,-VLOOKUP($A814,Economática!$A$3:$AI$823,27,FALSE)=\"-\"),1/0,-VLOOKUP($A814,Economática!$A$3:$AI$823,27,FALSE)))","v":""},"",{"$f":"IF($A814=\"\",\"\",IF(OR(VLOOKUP($A814,Economática!$A$3:$AI$823,28,FALSE)=0,VLOOKUP($A814,Economática!$A$3:$AI$823,28,FALSE)=\"-\"),1/0,VLOOKUP($A814,Economática!$A$3:$AI$823,28,FALSE)))","v":""},{"$f":"IF($A814=\"\",\"\",IF(OR(VLOOKUP($A814,Economática!$A$3:$AI$823,29,FALSE)=0,VLOOKUP($A814,Economática!$A$3:$AI$823,29,FALSE)=\"-\"),1/0,VLOOKUP($A814,Economática!$A$3:$AI$823,29,FALSE)))","v":""},{"$f":"IF($A814=\"\",\"\",IF(OR(VLOOKUP($A814,Economática!$A$3:$AI$823,30,FALSE)/E814=0,VLOOKUP($A814,Economática!$A$3:$AI$823,30,FALSE)/E814=\"-\",VLOOKUP($A814,Economática!$A$3:$AI$823,30,FALSE)/E814<33.33%,VLOOKUP($A814,Economática!$A$3:$AI$823,30,FALSE)/E814>100%),1/0,VLOOKUP($A814,Economática!$A$3:$AI$823,30,FALSE)/E814))","v":""},"",{"$f":"IF($A814=\"\",\"\",IF(OR(VLOOKUP($A814,Economática!$A$3:$AI$823,25,FALSE)=0,VLOOKUP($A814,Economática!$A$3:$AI$823,25,FALSE)=\"-\"),1/0,VLOOKUP($A814,Economática!$A$3:$AI$823,25,FALSE)))","v":""},{"$f":"CONCATENATE(Economática!B792,\" \",Economática!C792)","v":" "}]
[{"$f":"IF(Economática!AG793=\"\",\"\",Economática!AG793)","v":""},{"$f":"IF($A815=\"\",\"\",VLOOKUP(VLOOKUP($A815,Economática!$A$3:$AI$823,6,FALSE),Correção!$B$16:$C$36,2,FALSE))","v":""},{"$f":"IF(Economática!B793=\"\",\"\",Economática!B793)","v":""},{"$f":"IF($A815=\"\",\"\",IF(OR(VLOOKUP($A815,Economática!$A$3:$AI$823,8,FALSE)=0,VLOOKUP($A815,Economática!$A$3:$AI$823,8,FALSE)=\"-\"),1/0,VLOOKUP($A815,Economática!$A$3:$AI$823,8,FALSE)))","v":""},{"$f":"IF(A815=\"\",\"\",IF(ISERROR(VLOOKUP(A815,Correção!$B$2:$G$13,9,FALSE)),VLOOKUP($A815,Economática!$A$3:$AI$823,9,FALSE),VLOOKUP(A815,Correção!$B$2:$G$13,9,FALSE)))","v":""},{"$f":"IF($A815=\"\",\"\",Economática!G793)","v":""},{"$f":"IF($A815=\"\",\"\",IF(OR(VLOOKUP($A815,Economática!$A$3:$AI$823,10,FALSE)=0,VLOOKUP($A815,Economática!$A$3:$AI$823,10,FALSE)=\"-\"),1/0,VLOOKUP($A815,Economática!$A$3:$AI$823,10,FALSE)))","v":""},{"$f":"IF($A815=\"\",\"\",IF(OR(VLOOKUP($A815,Economática!$A$3:$AI$823,11,FALSE)=0,VLOOKUP($A815,Economática!$A$3:$AI$823,11,FALSE)=\"-\"),1/0,VLOOKUP($A815,Economática!$A$3:$AI$823,11,FALSE)))","v":""},{"$f":"IF($A815=\"\",\"\",IF(OR(VLOOKUP($A815,Economática!$A$3:$AI$823,12,FALSE)=0,VLOOKUP($A815,Economática!$A$3:$AI$823,12,FALSE)=\"-\"),1/0,VLOOKUP($A815,Economática!$A$3:$AI$823,12,FALSE)))","v":""},{"$f":"IF($A815=\"\",\"\",IF(OR(VLOOKUP($A815,Economática!$A$3:$AI$823,13,FALSE)=0,VLOOKUP($A815,Economática!$A$3:$AI$823,13,FALSE)=\"-\"),1/0,VLOOKUP($A815,Economática!$A$3:$AI$823,13,FALSE)))","v":""},{"$f":"IF($A815=\"\",\"\",IF(OR(VLOOKUP($A815,Economática!$A$3:$AI$823,14,FALSE)=0,VLOOKUP($A815,Economática!$A$3:$AI$823,14,FALSE)=\"-\"),1/0,VLOOKUP($A815,Economática!$A$3:$AI$823,14,FALSE)))","v":""},{"$f":"IF($A815=\"\",\"\",IF(OR(VLOOKUP($A815,Economática!$A$3:$AI$823,15,FALSE)=0,VLOOKUP($A815,Economática!$A$3:$AI$823,15,FALSE)=\"-\"),1/0,VLOOKUP($A815,Economática!$A$3:$AI$823,15,FALSE)))","v":""},{"$f":"IF($A815=\"\",\"\",IF(OR(VLOOKUP($A815,Economática!$A$3:$AI$823,16,FALSE)=0,VLOOKUP($A815,Economática!$A$3:$AI$823,16,FALSE)=\"-\"),1/0,VLOOKUP($A815,Economática!$A$3:$AI$823,16,FALSE)))","v":""},{"$f":"IF($A815=\"\",\"\",IF(OR(VLOOKUP($A815,Economática!$A$3:$AI$823,17,FALSE)=0,VLOOKUP($A815,Economática!$A$3:$AI$823,17,FALSE)=\"-\"),1/0,VLOOKUP($A815,Economática!$A$3:$AI$823,17,FALSE)))","v":""},{"$f":"IF($A815=\"\",\"\",IF(OR(VLOOKUP($A815,Economática!$A$3:$AI$823,18,FALSE)=0,VLOOKUP($A815,Economática!$A$3:$AI$823,18,FALSE)=\"-\"),1/0,VLOOKUP($A815,Economática!$A$3:$AI$823,18,FALSE)))","v":""},{"$f":"IF($A815=\"\",\"\",IF(OR(VLOOKUP($A815,Economática!$A$3:$AI$823,19,FALSE)=0,VLOOKUP($A815,Economática!$A$3:$AI$823,19,FALSE)=\"-\"),1/0,VLOOKUP($A815,Economática!$A$3:$AI$823,19,FALSE)))","v":""},{"$f":"IF($A815=\"\",\"\",VLOOKUP($A815,Economática!$A$3:$AI$823,20,FALSE)/E815)","v":""},"","","",{"$f":"IF($A815=\"\",\"\",IF(OR(VLOOKUP($A815,Economática!$A$3:$AI$823,21,FALSE)/100=0,VLOOKUP($A815,Economática!$A$3:$AI$823,21,FALSE)/100=\"-\"),1/0,VLOOKUP($A815,Economática!$A$3:$AI$823,21,FALSE)/100))","v":""},{"$f":"IF($A815=\"\",\"\",IF(OR(VLOOKUP($A815,Economática!$A$3:$AI$823,22,FALSE)/100=0,VLOOKUP($A815,Economática!$A$3:$AI$823,22,FALSE)/100=\"-\"),1/0,VLOOKUP($A815,Economática!$A$3:$AI$823,22,FALSE)/100))","v":""},{"$f":"IF($A815=\"\",\"\",IF(OR(VLOOKUP($A815,Economática!$A$3:$AI$823,23,FALSE)=0,VLOOKUP($A815,Economática!$A$3:$AI$823,23,FALSE)=\"-\"),1/0,VLOOKUP($A815,Economática!$A$3:$AI$823,23,FALSE)))","v":""},{"$f":"IF($A815=\"\",\"\",IF(OR(VLOOKUP($A815,Economática!$A$3:$AI$823,24,FALSE)=0,VLOOKUP($A815,Economática!$A$3:$AI$823,24,FALSE)=\"-\"),1/0,VLOOKUP($A815,Economática!$A$3:$AI$823,24,FALSE)))","v":""},{"$f":"IF($A815=\"\",\"\",IF(OR(VLOOKUP($A815,Economática!$A$3:$AI$823,25,FALSE)=0,VLOOKUP($A815,Economática!$A$3:$AI$823,25,FALSE)=\"-\"),1/0,VLOOKUP($A815,Economática!$A$3:$AI$823,25,FALSE)))","v":""},{"$f":"IF($A815=\"\",\"\",IF(ISERROR((F815+VLOOKUP($A815,Economática!$A$3:$AI$823,26,FALSE))/Y815),(F815+VLOOKUP($A815,Economática!$A$3:$AI$823,26,FALSE))/Y815,(F815+VLOOKUP($A815,Economática!$A$3:$AI$823,26,FALSE))/Y815))","v":""},{"$f":"IF($A815=\"\",\"\",IF(OR(-VLOOKUP($A815,Economática!$A$3:$AI$823,27,FALSE)=0,-VLOOKUP($A815,Economática!$A$3:$AI$823,27,FALSE)=\"-\"),1/0,-VLOOKUP($A815,Economática!$A$3:$AI$823,27,FALSE)))","v":""},"",{"$f":"IF($A815=\"\",\"\",IF(OR(VLOOKUP($A815,Economática!$A$3:$AI$823,28,FALSE)=0,VLOOKUP($A815,Economática!$A$3:$AI$823,28,FALSE)=\"-\"),1/0,VLOOKUP($A815,Economática!$A$3:$AI$823,28,FALSE)))","v":""},{"$f":"IF($A815=\"\",\"\",IF(OR(VLOOKUP($A815,Economática!$A$3:$AI$823,29,FALSE)=0,VLOOKUP($A815,Economática!$A$3:$AI$823,29,FALSE)=\"-\"),1/0,VLOOKUP($A815,Economática!$A$3:$AI$823,29,FALSE)))","v":""},{"$f":"IF($A815=\"\",\"\",IF(OR(VLOOKUP($A815,Economática!$A$3:$AI$823,30,FALSE)/E815=0,VLOOKUP($A815,Economática!$A$3:$AI$823,30,FALSE)/E815=\"-\",VLOOKUP($A815,Economática!$A$3:$AI$823,30,FALSE)/E815<33.33%,VLOOKUP($A815,Economática!$A$3:$AI$823,30,FALSE)/E815>100%),1/0,VLOOKUP($A815,Economática!$A$3:$AI$823,30,FALSE)/E815))","v":""},"",{"$f":"IF($A815=\"\",\"\",IF(OR(VLOOKUP($A815,Economática!$A$3:$AI$823,25,FALSE)=0,VLOOKUP($A815,Economática!$A$3:$AI$823,25,FALSE)=\"-\"),1/0,VLOOKUP($A815,Economática!$A$3:$AI$823,25,FALSE)))","v":""},{"$f":"CONCATENATE(Economática!B793,\" \",Economática!C793)","v":" "}]
[{"$f":"IF(Economática!AG794=\"\",\"\",Economática!AG794)","v":""},{"$f":"IF($A816=\"\",\"\",VLOOKUP(VLOOKUP($A816,Economática!$A$3:$AI$823,6,FALSE),Correção!$B$16:$C$36,2,FALSE))","v":""},{"$f":"IF(Economática!B794=\"\",\"\",Economática!B794)","v":""},{"$f":"IF($A816=\"\",\"\",IF(OR(VLOOKUP($A816,Economática!$A$3:$AI$823,8,FALSE)=0,VLOOKUP($A816,Economática!$A$3:$AI$823,8,FALSE)=\"-\"),1/0,VLOOKUP($A816,Economática!$A$3:$AI$823,8,FALSE)))","v":""},{"$f":"IF(A816=\"\",\"\",IF(ISERROR(VLOOKUP(A816,Correção!$B$2:$G$13,9,FALSE)),VLOOKUP($A816,Economática!$A$3:$AI$823,9,FALSE),VLOOKUP(A816,Correção!$B$2:$G$13,9,FALSE)))","v":""},{"$f":"IF($A816=\"\",\"\",Economática!G794)","v":""},{"$f":"IF($A816=\"\",\"\",IF(OR(VLOOKUP($A816,Economática!$A$3:$AI$823,10,FALSE)=0,VLOOKUP($A816,Economática!$A$3:$AI$823,10,FALSE)=\"-\"),1/0,VLOOKUP($A816,Economática!$A$3:$AI$823,10,FALSE)))","v":""},{"$f":"IF($A816=\"\",\"\",IF(OR(VLOOKUP($A816,Economática!$A$3:$AI$823,11,FALSE)=0,VLOOKUP($A816,Economática!$A$3:$AI$823,11,FALSE)=\"-\"),1/0,VLOOKUP($A816,Economática!$A$3:$AI$823,11,FALSE)))","v":""},{"$f":"IF($A816=\"\",\"\",IF(OR(VLOOKUP($A816,Economática!$A$3:$AI$823,12,FALSE)=0,VLOOKUP($A816,Economática!$A$3:$AI$823,12,FALSE)=\"-\"),1/0,VLOOKUP($A816,Economática!$A$3:$AI$823,12,FALSE)))","v":""},{"$f":"IF($A816=\"\",\"\",IF(OR(VLOOKUP($A816,Economática!$A$3:$AI$823,13,FALSE)=0,VLOOKUP($A816,Economática!$A$3:$AI$823,13,FALSE)=\"-\"),1/0,VLOOKUP($A816,Economática!$A$3:$AI$823,13,FALSE)))","v":""},{"$f":"IF($A816=\"\",\"\",IF(OR(VLOOKUP($A816,Economática!$A$3:$AI$823,14,FALSE)=0,VLOOKUP($A816,Economática!$A$3:$AI$823,14,FALSE)=\"-\"),1/0,VLOOKUP($A816,Economática!$A$3:$AI$823,14,FALSE)))","v":""},{"$f":"IF($A816=\"\",\"\",IF(OR(VLOOKUP($A816,Economática!$A$3:$AI$823,15,FALSE)=0,VLOOKUP($A816,Economática!$A$3:$AI$823,15,FALSE)=\"-\"),1/0,VLOOKUP($A816,Economática!$A$3:$AI$823,15,FALSE)))","v":""},{"$f":"IF($A816=\"\",\"\",IF(OR(VLOOKUP($A816,Economática!$A$3:$AI$823,16,FALSE)=0,VLOOKUP($A816,Economática!$A$3:$AI$823,16,FALSE)=\"-\"),1/0,VLOOKUP($A816,Economática!$A$3:$AI$823,16,FALSE)))","v":""},{"$f":"IF($A816=\"\",\"\",IF(OR(VLOOKUP($A816,Economática!$A$3:$AI$823,17,FALSE)=0,VLOOKUP($A816,Economática!$A$3:$AI$823,17,FALSE)=\"-\"),1/0,VLOOKUP($A816,Economática!$A$3:$AI$823,17,FALSE)))","v":""},{"$f":"IF($A816=\"\",\"\",IF(OR(VLOOKUP($A816,Economática!$A$3:$AI$823,18,FALSE)=0,VLOOKUP($A816,Economática!$A$3:$AI$823,18,FALSE)=\"-\"),1/0,VLOOKUP($A816,Economática!$A$3:$AI$823,18,FALSE)))","v":""},{"$f":"IF($A816=\"\",\"\",IF(OR(VLOOKUP($A816,Economática!$A$3:$AI$823,19,FALSE)=0,VLOOKUP($A816,Economática!$A$3:$AI$823,19,FALSE)=\"-\"),1/0,VLOOKUP($A816,Economática!$A$3:$AI$823,19,FALSE)))","v":""},{"$f":"IF($A816=\"\",\"\",VLOOKUP($A816,Economática!$A$3:$AI$823,20,FALSE)/E816)","v":""},"","","",{"$f":"IF($A816=\"\",\"\",IF(OR(VLOOKUP($A816,Economática!$A$3:$AI$823,21,FALSE)/100=0,VLOOKUP($A816,Economática!$A$3:$AI$823,21,FALSE)/100=\"-\"),1/0,VLOOKUP($A816,Economática!$A$3:$AI$823,21,FALSE)/100))","v":""},{"$f":"IF($A816=\"\",\"\",IF(OR(VLOOKUP($A816,Economática!$A$3:$AI$823,22,FALSE)/100=0,VLOOKUP($A816,Economática!$A$3:$AI$823,22,FALSE)/100=\"-\"),1/0,VLOOKUP($A816,Economática!$A$3:$AI$823,22,FALSE)/100))","v":""},{"$f":"IF($A816=\"\",\"\",IF(OR(VLOOKUP($A816,Economática!$A$3:$AI$823,23,FALSE)=0,VLOOKUP($A816,Economática!$A$3:$AI$823,23,FALSE)=\"-\"),1/0,VLOOKUP($A816,Economática!$A$3:$AI$823,23,FALSE)))","v":""},{"$f":"IF($A816=\"\",\"\",IF(OR(VLOOKUP($A816,Economática!$A$3:$AI$823,24,FALSE)=0,VLOOKUP($A816,Economática!$A$3:$AI$823,24,FALSE)=\"-\"),1/0,VLOOKUP($A816,Economática!$A$3:$AI$823,24,FALSE)))","v":""},{"$f":"IF($A816=\"\",\"\",IF(OR(VLOOKUP($A816,Economática!$A$3:$AI$823,25,FALSE)=0,VLOOKUP($A816,Economática!$A$3:$AI$823,25,FALSE)=\"-\"),1/0,VLOOKUP($A816,Economática!$A$3:$AI$823,25,FALSE)))","v":""},{"$f":"IF($A816=\"\",\"\",IF(ISERROR((F816+VLOOKUP($A816,Economática!$A$3:$AI$823,26,FALSE))/Y816),(F816+VLOOKUP($A816,Economática!$A$3:$AI$823,26,FALSE))/Y816,(F816+VLOOKUP($A816,Economática!$A$3:$AI$823,26,FALSE))/Y816))","v":""},{"$f":"IF($A816=\"\",\"\",IF(OR(-VLOOKUP($A816,Economática!$A$3:$AI$823,27,FALSE)=0,-VLOOKUP($A816,Economática!$A$3:$AI$823,27,FALSE)=\"-\"),1/0,-VLOOKUP($A816,Economática!$A$3:$AI$823,27,FALSE)))","v":""},"",{"$f":"IF($A816=\"\",\"\",IF(OR(VLOOKUP($A816,Economática!$A$3:$AI$823,28,FALSE)=0,VLOOKUP($A816,Economática!$A$3:$AI$823,28,FALSE)=\"-\"),1/0,VLOOKUP($A816,Economática!$A$3:$AI$823,28,FALSE)))","v":""},{"$f":"IF($A816=\"\",\"\",IF(OR(VLOOKUP($A816,Economática!$A$3:$AI$823,29,FALSE)=0,VLOOKUP($A816,Economática!$A$3:$AI$823,29,FALSE)=\"-\"),1/0,VLOOKUP($A816,Economática!$A$3:$AI$823,29,FALSE)))","v":""},{"$f":"IF($A816=\"\",\"\",IF(OR(VLOOKUP($A816,Economática!$A$3:$AI$823,30,FALSE)/E816=0,VLOOKUP($A816,Economática!$A$3:$AI$823,30,FALSE)/E816=\"-\",VLOOKUP($A816,Economática!$A$3:$AI$823,30,FALSE)/E816<33.33%,VLOOKUP($A816,Economática!$A$3:$AI$823,30,FALSE)/E816>100%),1/0,VLOOKUP($A816,Economática!$A$3:$AI$823,30,FALSE)/E816))","v":""},"",{"$f":"IF($A816=\"\",\"\",IF(OR(VLOOKUP($A816,Economática!$A$3:$AI$823,25,FALSE)=0,VLOOKUP($A816,Economática!$A$3:$AI$823,25,FALSE)=\"-\"),1/0,VLOOKUP($A816,Economática!$A$3:$AI$823,25,FALSE)))","v":""},{"$f":"CONCATENATE(Economática!B794,\" \",Economática!C794)","v":" "}]
[{"$f":"IF(Economática!AG795=\"\",\"\",Economática!AG795)","v":""},{"$f":"IF($A817=\"\",\"\",VLOOKUP(VLOOKUP($A817,Economática!$A$3:$AI$823,6,FALSE),Correção!$B$16:$C$36,2,FALSE))","v":""},{"$f":"IF(Economática!B795=\"\",\"\",Economática!B795)","v":""},{"$f":"IF($A817=\"\",\"\",IF(OR(VLOOKUP($A817,Economática!$A$3:$AI$823,8,FALSE)=0,VLOOKUP($A817,Economática!$A$3:$AI$823,8,FALSE)=\"-\"),1/0,VLOOKUP($A817,Economática!$A$3:$AI$823,8,FALSE)))","v":""},{"$f":"IF(A817=\"\",\"\",IF(ISERROR(VLOOKUP(A817,Correção!$B$2:$G$13,9,FALSE)),VLOOKUP($A817,Economática!$A$3:$AI$823,9,FALSE),VLOOKUP(A817,Correção!$B$2:$G$13,9,FALSE)))","v":""},{"$f":"IF($A817=\"\",\"\",Economática!G795)","v":""},{"$f":"IF($A817=\"\",\"\",IF(OR(VLOOKUP($A817,Economática!$A$3:$AI$823,10,FALSE)=0,VLOOKUP($A817,Economática!$A$3:$AI$823,10,FALSE)=\"-\"),1/0,VLOOKUP($A817,Economática!$A$3:$AI$823,10,FALSE)))","v":""},{"$f":"IF($A817=\"\",\"\",IF(OR(VLOOKUP($A817,Economática!$A$3:$AI$823,11,FALSE)=0,VLOOKUP($A817,Economática!$A$3:$AI$823,11,FALSE)=\"-\"),1/0,VLOOKUP($A817,Economática!$A$3:$AI$823,11,FALSE)))","v":""},{"$f":"IF($A817=\"\",\"\",IF(OR(VLOOKUP($A817,Economática!$A$3:$AI$823,12,FALSE)=0,VLOOKUP($A817,Economática!$A$3:$AI$823,12,FALSE)=\"-\"),1/0,VLOOKUP($A817,Economática!$A$3:$AI$823,12,FALSE)))","v":""},{"$f":"IF($A817=\"\",\"\",IF(OR(VLOOKUP($A817,Economática!$A$3:$AI$823,13,FALSE)=0,VLOOKUP($A817,Economática!$A$3:$AI$823,13,FALSE)=\"-\"),1/0,VLOOKUP($A817,Economática!$A$3:$AI$823,13,FALSE)))","v":""},{"$f":"IF($A817=\"\",\"\",IF(OR(VLOOKUP($A817,Economática!$A$3:$AI$823,14,FALSE)=0,VLOOKUP($A817,Economática!$A$3:$AI$823,14,FALSE)=\"-\"),1/0,VLOOKUP($A817,Economática!$A$3:$AI$823,14,FALSE)))","v":""},{"$f":"IF($A817=\"\",\"\",IF(OR(VLOOKUP($A817,Economática!$A$3:$AI$823,15,FALSE)=0,VLOOKUP($A817,Economática!$A$3:$AI$823,15,FALSE)=\"-\"),1/0,VLOOKUP($A817,Economática!$A$3:$AI$823,15,FALSE)))","v":""},{"$f":"IF($A817=\"\",\"\",IF(OR(VLOOKUP($A817,Economática!$A$3:$AI$823,16,FALSE)=0,VLOOKUP($A817,Economática!$A$3:$AI$823,16,FALSE)=\"-\"),1/0,VLOOKUP($A817,Economática!$A$3:$AI$823,16,FALSE)))","v":""},{"$f":"IF($A817=\"\",\"\",IF(OR(VLOOKUP($A817,Economática!$A$3:$AI$823,17,FALSE)=0,VLOOKUP($A817,Economática!$A$3:$AI$823,17,FALSE)=\"-\"),1/0,VLOOKUP($A817,Economática!$A$3:$AI$823,17,FALSE)))","v":""},{"$f":"IF($A817=\"\",\"\",IF(OR(VLOOKUP($A817,Economática!$A$3:$AI$823,18,FALSE)=0,VLOOKUP($A817,Economática!$A$3:$AI$823,18,FALSE)=\"-\"),1/0,VLOOKUP($A817,Economática!$A$3:$AI$823,18,FALSE)))","v":""},{"$f":"IF($A817=\"\",\"\",IF(OR(VLOOKUP($A817,Economática!$A$3:$AI$823,19,FALSE)=0,VLOOKUP($A817,Economática!$A$3:$AI$823,19,FALSE)=\"-\"),1/0,VLOOKUP($A817,Economática!$A$3:$AI$823,19,FALSE)))","v":""},{"$f":"IF($A817=\"\",\"\",VLOOKUP($A817,Economática!$A$3:$AI$823,20,FALSE)/E817)","v":""},"","","",{"$f":"IF($A817=\"\",\"\",IF(OR(VLOOKUP($A817,Economática!$A$3:$AI$823,21,FALSE)/100=0,VLOOKUP($A817,Economática!$A$3:$AI$823,21,FALSE)/100=\"-\"),1/0,VLOOKUP($A817,Economática!$A$3:$AI$823,21,FALSE)/100))","v":""},{"$f":"IF($A817=\"\",\"\",IF(OR(VLOOKUP($A817,Economática!$A$3:$AI$823,22,FALSE)/100=0,VLOOKUP($A817,Economática!$A$3:$AI$823,22,FALSE)/100=\"-\"),1/0,VLOOKUP($A817,Economática!$A$3:$AI$823,22,FALSE)/100))","v":""},{"$f":"IF($A817=\"\",\"\",IF(OR(VLOOKUP($A817,Economática!$A$3:$AI$823,23,FALSE)=0,VLOOKUP($A817,Economática!$A$3:$AI$823,23,FALSE)=\"-\"),1/0,VLOOKUP($A817,Economática!$A$3:$AI$823,23,FALSE)))","v":""},{"$f":"IF($A817=\"\",\"\",IF(OR(VLOOKUP($A817,Economática!$A$3:$AI$823,24,FALSE)=0,VLOOKUP($A817,Economática!$A$3:$AI$823,24,FALSE)=\"-\"),1/0,VLOOKUP($A817,Economática!$A$3:$AI$823,24,FALSE)))","v":""},{"$f":"IF($A817=\"\",\"\",IF(OR(VLOOKUP($A817,Economática!$A$3:$AI$823,25,FALSE)=0,VLOOKUP($A817,Economática!$A$3:$AI$823,25,FALSE)=\"-\"),1/0,VLOOKUP($A817,Economática!$A$3:$AI$823,25,FALSE)))","v":""},{"$f":"IF($A817=\"\",\"\",IF(ISERROR((F817+VLOOKUP($A817,Economática!$A$3:$AI$823,26,FALSE))/Y817),(F817+VLOOKUP($A817,Economática!$A$3:$AI$823,26,FALSE))/Y817,(F817+VLOOKUP($A817,Economática!$A$3:$AI$823,26,FALSE))/Y817))","v":""},{"$f":"IF($A817=\"\",\"\",IF(OR(-VLOOKUP($A817,Economática!$A$3:$AI$823,27,FALSE)=0,-VLOOKUP($A817,Economática!$A$3:$AI$823,27,FALSE)=\"-\"),1/0,-VLOOKUP($A817,Economática!$A$3:$AI$823,27,FALSE)))","v":""},"",{"$f":"IF($A817=\"\",\"\",IF(OR(VLOOKUP($A817,Economática!$A$3:$AI$823,28,FALSE)=0,VLOOKUP($A817,Economática!$A$3:$AI$823,28,FALSE)=\"-\"),1/0,VLOOKUP($A817,Economática!$A$3:$AI$823,28,FALSE)))","v":""},{"$f":"IF($A817=\"\",\"\",IF(OR(VLOOKUP($A817,Economática!$A$3:$AI$823,29,FALSE)=0,VLOOKUP($A817,Economática!$A$3:$AI$823,29,FALSE)=\"-\"),1/0,VLOOKUP($A817,Economática!$A$3:$AI$823,29,FALSE)))","v":""},{"$f":"IF($A817=\"\",\"\",IF(OR(VLOOKUP($A817,Economática!$A$3:$AI$823,30,FALSE)/E817=0,VLOOKUP($A817,Economática!$A$3:$AI$823,30,FALSE)/E817=\"-\",VLOOKUP($A817,Economática!$A$3:$AI$823,30,FALSE)/E817<33.33%,VLOOKUP($A817,Economática!$A$3:$AI$823,30,FALSE)/E817>100%),1/0,VLOOKUP($A817,Economática!$A$3:$AI$823,30,FALSE)/E817))","v":""},"",{"$f":"IF($A817=\"\",\"\",IF(OR(VLOOKUP($A817,Economática!$A$3:$AI$823,25,FALSE)=0,VLOOKUP($A817,Economática!$A$3:$AI$823,25,FALSE)=\"-\"),1/0,VLOOKUP($A817,Economática!$A$3:$AI$823,25,FALSE)))","v":""},{"$f":"CONCATENATE(Economática!B795,\" \",Economática!C795)","v":" "}]
[{"$f":"IF(Economática!AG796=\"\",\"\",Economática!AG796)","v":""},{"$f":"IF($A818=\"\",\"\",VLOOKUP(VLOOKUP($A818,Economática!$A$3:$AI$823,6,FALSE),Correção!$B$16:$C$36,2,FALSE))","v":""},{"$f":"IF(Economática!B796=\"\",\"\",Economática!B796)","v":""},{"$f":"IF($A818=\"\",\"\",IF(OR(VLOOKUP($A818,Economática!$A$3:$AI$823,8,FALSE)=0,VLOOKUP($A818,Economática!$A$3:$AI$823,8,FALSE)=\"-\"),1/0,VLOOKUP($A818,Economática!$A$3:$AI$823,8,FALSE)))","v":""},{"$f":"IF(A818=\"\",\"\",IF(ISERROR(VLOOKUP(A818,Correção!$B$2:$G$13,9,FALSE)),VLOOKUP($A818,Economática!$A$3:$AI$823,9,FALSE),VLOOKUP(A818,Correção!$B$2:$G$13,9,FALSE)))","v":""},{"$f":"IF($A818=\"\",\"\",Economática!G796)","v":""},{"$f":"IF($A818=\"\",\"\",IF(OR(VLOOKUP($A818,Economática!$A$3:$AI$823,10,FALSE)=0,VLOOKUP($A818,Economática!$A$3:$AI$823,10,FALSE)=\"-\"),1/0,VLOOKUP($A818,Economática!$A$3:$AI$823,10,FALSE)))","v":""},{"$f":"IF($A818=\"\",\"\",IF(OR(VLOOKUP($A818,Economática!$A$3:$AI$823,11,FALSE)=0,VLOOKUP($A818,Economática!$A$3:$AI$823,11,FALSE)=\"-\"),1/0,VLOOKUP($A818,Economática!$A$3:$AI$823,11,FALSE)))","v":""},{"$f":"IF($A818=\"\",\"\",IF(OR(VLOOKUP($A818,Economática!$A$3:$AI$823,12,FALSE)=0,VLOOKUP($A818,Economática!$A$3:$AI$823,12,FALSE)=\"-\"),1/0,VLOOKUP($A818,Economática!$A$3:$AI$823,12,FALSE)))","v":""},{"$f":"IF($A818=\"\",\"\",IF(OR(VLOOKUP($A818,Economática!$A$3:$AI$823,13,FALSE)=0,VLOOKUP($A818,Economática!$A$3:$AI$823,13,FALSE)=\"-\"),1/0,VLOOKUP($A818,Economática!$A$3:$AI$823,13,FALSE)))","v":""},{"$f":"IF($A818=\"\",\"\",IF(OR(VLOOKUP($A818,Economática!$A$3:$AI$823,14,FALSE)=0,VLOOKUP($A818,Economática!$A$3:$AI$823,14,FALSE)=\"-\"),1/0,VLOOKUP($A818,Economática!$A$3:$AI$823,14,FALSE)))","v":""},{"$f":"IF($A818=\"\",\"\",IF(OR(VLOOKUP($A818,Economática!$A$3:$AI$823,15,FALSE)=0,VLOOKUP($A818,Economática!$A$3:$AI$823,15,FALSE)=\"-\"),1/0,VLOOKUP($A818,Economática!$A$3:$AI$823,15,FALSE)))","v":""},{"$f":"IF($A818=\"\",\"\",IF(OR(VLOOKUP($A818,Economática!$A$3:$AI$823,16,FALSE)=0,VLOOKUP($A818,Economática!$A$3:$AI$823,16,FALSE)=\"-\"),1/0,VLOOKUP($A818,Economática!$A$3:$AI$823,16,FALSE)))","v":""},{"$f":"IF($A818=\"\",\"\",IF(OR(VLOOKUP($A818,Economática!$A$3:$AI$823,17,FALSE)=0,VLOOKUP($A818,Economática!$A$3:$AI$823,17,FALSE)=\"-\"),1/0,VLOOKUP($A818,Economática!$A$3:$AI$823,17,FALSE)))","v":""},{"$f":"IF($A818=\"\",\"\",IF(OR(VLOOKUP($A818,Economática!$A$3:$AI$823,18,FALSE)=0,VLOOKUP($A818,Economática!$A$3:$AI$823,18,FALSE)=\"-\"),1/0,VLOOKUP($A818,Economática!$A$3:$AI$823,18,FALSE)))","v":""},{"$f":"IF($A818=\"\",\"\",IF(OR(VLOOKUP($A818,Economática!$A$3:$AI$823,19,FALSE)=0,VLOOKUP($A818,Economática!$A$3:$AI$823,19,FALSE)=\"-\"),1/0,VLOOKUP($A818,Economática!$A$3:$AI$823,19,FALSE)))","v":""},{"$f":"IF($A818=\"\",\"\",VLOOKUP($A818,Economática!$A$3:$AI$823,20,FALSE)/E818)","v":""},"","","",{"$f":"IF($A818=\"\",\"\",IF(OR(VLOOKUP($A818,Economática!$A$3:$AI$823,21,FALSE)/100=0,VLOOKUP($A818,Economática!$A$3:$AI$823,21,FALSE)/100=\"-\"),1/0,VLOOKUP($A818,Economática!$A$3:$AI$823,21,FALSE)/100))","v":""},{"$f":"IF($A818=\"\",\"\",IF(OR(VLOOKUP($A818,Economática!$A$3:$AI$823,22,FALSE)/100=0,VLOOKUP($A818,Economática!$A$3:$AI$823,22,FALSE)/100=\"-\"),1/0,VLOOKUP($A818,Economática!$A$3:$AI$823,22,FALSE)/100))","v":""},{"$f":"IF($A818=\"\",\"\",IF(OR(VLOOKUP($A818,Economática!$A$3:$AI$823,23,FALSE)=0,VLOOKUP($A818,Economática!$A$3:$AI$823,23,FALSE)=\"-\"),1/0,VLOOKUP($A818,Economática!$A$3:$AI$823,23,FALSE)))","v":""},{"$f":"IF($A818=\"\",\"\",IF(OR(VLOOKUP($A818,Economática!$A$3:$AI$823,24,FALSE)=0,VLOOKUP($A818,Economática!$A$3:$AI$823,24,FALSE)=\"-\"),1/0,VLOOKUP($A818,Economática!$A$3:$AI$823,24,FALSE)))","v":""},{"$f":"IF($A818=\"\",\"\",IF(OR(VLOOKUP($A818,Economática!$A$3:$AI$823,25,FALSE)=0,VLOOKUP($A818,Economática!$A$3:$AI$823,25,FALSE)=\"-\"),1/0,VLOOKUP($A818,Economática!$A$3:$AI$823,25,FALSE)))","v":""},{"$f":"IF($A818=\"\",\"\",IF(ISERROR((F818+VLOOKUP($A818,Economática!$A$3:$AI$823,26,FALSE))/Y818),(F818+VLOOKUP($A818,Economática!$A$3:$AI$823,26,FALSE))/Y818,(F818+VLOOKUP($A818,Economática!$A$3:$AI$823,26,FALSE))/Y818))","v":""},{"$f":"IF($A818=\"\",\"\",IF(OR(-VLOOKUP($A818,Economática!$A$3:$AI$823,27,FALSE)=0,-VLOOKUP($A818,Economática!$A$3:$AI$823,27,FALSE)=\"-\"),1/0,-VLOOKUP($A818,Economática!$A$3:$AI$823,27,FALSE)))","v":""},"",{"$f":"IF($A818=\"\",\"\",IF(OR(VLOOKUP($A818,Economática!$A$3:$AI$823,28,FALSE)=0,VLOOKUP($A818,Economática!$A$3:$AI$823,28,FALSE)=\"-\"),1/0,VLOOKUP($A818,Economática!$A$3:$AI$823,28,FALSE)))","v":""},{"$f":"IF($A818=\"\",\"\",IF(OR(VLOOKUP($A818,Economática!$A$3:$AI$823,29,FALSE)=0,VLOOKUP($A818,Economática!$A$3:$AI$823,29,FALSE)=\"-\"),1/0,VLOOKUP($A818,Economática!$A$3:$AI$823,29,FALSE)))","v":""},{"$f":"IF($A818=\"\",\"\",IF(OR(VLOOKUP($A818,Economática!$A$3:$AI$823,30,FALSE)/E818=0,VLOOKUP($A818,Economática!$A$3:$AI$823,30,FALSE)/E818=\"-\",VLOOKUP($A818,Economática!$A$3:$AI$823,30,FALSE)/E818<33.33%,VLOOKUP($A818,Economática!$A$3:$AI$823,30,FALSE)/E818>100%),1/0,VLOOKUP($A818,Economática!$A$3:$AI$823,30,FALSE)/E818))","v":""},"",{"$f":"IF($A818=\"\",\"\",IF(OR(VLOOKUP($A818,Economática!$A$3:$AI$823,25,FALSE)=0,VLOOKUP($A818,Economática!$A$3:$AI$823,25,FALSE)=\"-\"),1/0,VLOOKUP($A818,Economática!$A$3:$AI$823,25,FALSE)))","v":""},{"$f":"CONCATENATE(Economática!B796,\" \",Economática!C796)","v":" "}]
[{"$f":"IF(Economática!AG797=\"\",\"\",Economática!AG797)","v":""},{"$f":"IF($A819=\"\",\"\",VLOOKUP(VLOOKUP($A819,Economática!$A$3:$AI$823,6,FALSE),Correção!$B$16:$C$36,2,FALSE))","v":""},{"$f":"IF(Economática!B797=\"\",\"\",Economática!B797)","v":""},{"$f":"IF($A819=\"\",\"\",IF(OR(VLOOKUP($A819,Economática!$A$3:$AI$823,8,FALSE)=0,VLOOKUP($A819,Economática!$A$3:$AI$823,8,FALSE)=\"-\"),1/0,VLOOKUP($A819,Economática!$A$3:$AI$823,8,FALSE)))","v":""},{"$f":"IF(A819=\"\",\"\",IF(ISERROR(VLOOKUP(A819,Correção!$B$2:$G$13,9,FALSE)),VLOOKUP($A819,Economática!$A$3:$AI$823,9,FALSE),VLOOKUP(A819,Correção!$B$2:$G$13,9,FALSE)))","v":""},{"$f":"IF($A819=\"\",\"\",Economática!G797)","v":""},{"$f":"IF($A819=\"\",\"\",IF(OR(VLOOKUP($A819,Economática!$A$3:$AI$823,10,FALSE)=0,VLOOKUP($A819,Economática!$A$3:$AI$823,10,FALSE)=\"-\"),1/0,VLOOKUP($A819,Economática!$A$3:$AI$823,10,FALSE)))","v":""},{"$f":"IF($A819=\"\",\"\",IF(OR(VLOOKUP($A819,Economática!$A$3:$AI$823,11,FALSE)=0,VLOOKUP($A819,Economática!$A$3:$AI$823,11,FALSE)=\"-\"),1/0,VLOOKUP($A819,Economática!$A$3:$AI$823,11,FALSE)))","v":""},{"$f":"IF($A819=\"\",\"\",IF(OR(VLOOKUP($A819,Economática!$A$3:$AI$823,12,FALSE)=0,VLOOKUP($A819,Economática!$A$3:$AI$823,12,FALSE)=\"-\"),1/0,VLOOKUP($A819,Economática!$A$3:$AI$823,12,FALSE)))","v":""},{"$f":"IF($A819=\"\",\"\",IF(OR(VLOOKUP($A819,Economática!$A$3:$AI$823,13,FALSE)=0,VLOOKUP($A819,Economática!$A$3:$AI$823,13,FALSE)=\"-\"),1/0,VLOOKUP($A819,Economática!$A$3:$AI$823,13,FALSE)))","v":""},{"$f":"IF($A819=\"\",\"\",IF(OR(VLOOKUP($A819,Economática!$A$3:$AI$823,14,FALSE)=0,VLOOKUP($A819,Economática!$A$3:$AI$823,14,FALSE)=\"-\"),1/0,VLOOKUP($A819,Economática!$A$3:$AI$823,14,FALSE)))","v":""},{"$f":"IF($A819=\"\",\"\",IF(OR(VLOOKUP($A819,Economática!$A$3:$AI$823,15,FALSE)=0,VLOOKUP($A819,Economática!$A$3:$AI$823,15,FALSE)=\"-\"),1/0,VLOOKUP($A819,Economática!$A$3:$AI$823,15,FALSE)))","v":""},{"$f":"IF($A819=\"\",\"\",IF(OR(VLOOKUP($A819,Economática!$A$3:$AI$823,16,FALSE)=0,VLOOKUP($A819,Economática!$A$3:$AI$823,16,FALSE)=\"-\"),1/0,VLOOKUP($A819,Economática!$A$3:$AI$823,16,FALSE)))","v":""},{"$f":"IF($A819=\"\",\"\",IF(OR(VLOOKUP($A819,Economática!$A$3:$AI$823,17,FALSE)=0,VLOOKUP($A819,Economática!$A$3:$AI$823,17,FALSE)=\"-\"),1/0,VLOOKUP($A819,Economática!$A$3:$AI$823,17,FALSE)))","v":""},{"$f":"IF($A819=\"\",\"\",IF(OR(VLOOKUP($A819,Economática!$A$3:$AI$823,18,FALSE)=0,VLOOKUP($A819,Economática!$A$3:$AI$823,18,FALSE)=\"-\"),1/0,VLOOKUP($A819,Economática!$A$3:$AI$823,18,FALSE)))","v":""},{"$f":"IF($A819=\"\",\"\",IF(OR(VLOOKUP($A819,Economática!$A$3:$AI$823,19,FALSE)=0,VLOOKUP($A819,Economática!$A$3:$AI$823,19,FALSE)=\"-\"),1/0,VLOOKUP($A819,Economática!$A$3:$AI$823,19,FALSE)))","v":""},{"$f":"IF($A819=\"\",\"\",VLOOKUP($A819,Economática!$A$3:$AI$823,20,FALSE)/E819)","v":""},"","","",{"$f":"IF($A819=\"\",\"\",IF(OR(VLOOKUP($A819,Economática!$A$3:$AI$823,21,FALSE)/100=0,VLOOKUP($A819,Economática!$A$3:$AI$823,21,FALSE)/100=\"-\"),1/0,VLOOKUP($A819,Economática!$A$3:$AI$823,21,FALSE)/100))","v":""},{"$f":"IF($A819=\"\",\"\",IF(OR(VLOOKUP($A819,Economática!$A$3:$AI$823,22,FALSE)/100=0,VLOOKUP($A819,Economática!$A$3:$AI$823,22,FALSE)/100=\"-\"),1/0,VLOOKUP($A819,Economática!$A$3:$AI$823,22,FALSE)/100))","v":""},{"$f":"IF($A819=\"\",\"\",IF(OR(VLOOKUP($A819,Economática!$A$3:$AI$823,23,FALSE)=0,VLOOKUP($A819,Economática!$A$3:$AI$823,23,FALSE)=\"-\"),1/0,VLOOKUP($A819,Economática!$A$3:$AI$823,23,FALSE)))","v":""},{"$f":"IF($A819=\"\",\"\",IF(OR(VLOOKUP($A819,Economática!$A$3:$AI$823,24,FALSE)=0,VLOOKUP($A819,Economática!$A$3:$AI$823,24,FALSE)=\"-\"),1/0,VLOOKUP($A819,Economática!$A$3:$AI$823,24,FALSE)))","v":""},{"$f":"IF($A819=\"\",\"\",IF(OR(VLOOKUP($A819,Economática!$A$3:$AI$823,25,FALSE)=0,VLOOKUP($A819,Economática!$A$3:$AI$823,25,FALSE)=\"-\"),1/0,VLOOKUP($A819,Economática!$A$3:$AI$823,25,FALSE)))","v":""},{"$f":"IF($A819=\"\",\"\",IF(ISERROR((F819+VLOOKUP($A819,Economática!$A$3:$AI$823,26,FALSE))/Y819),(F819+VLOOKUP($A819,Economática!$A$3:$AI$823,26,FALSE))/Y819,(F819+VLOOKUP($A819,Economática!$A$3:$AI$823,26,FALSE))/Y819))","v":""},{"$f":"IF($A819=\"\",\"\",IF(OR(-VLOOKUP($A819,Economática!$A$3:$AI$823,27,FALSE)=0,-VLOOKUP($A819,Economática!$A$3:$AI$823,27,FALSE)=\"-\"),1/0,-VLOOKUP($A819,Economática!$A$3:$AI$823,27,FALSE)))","v":""},"",{"$f":"IF($A819=\"\",\"\",IF(OR(VLOOKUP($A819,Economática!$A$3:$AI$823,28,FALSE)=0,VLOOKUP($A819,Economática!$A$3:$AI$823,28,FALSE)=\"-\"),1/0,VLOOKUP($A819,Economática!$A$3:$AI$823,28,FALSE)))","v":""},{"$f":"IF($A819=\"\",\"\",IF(OR(VLOOKUP($A819,Economática!$A$3:$AI$823,29,FALSE)=0,VLOOKUP($A819,Economática!$A$3:$AI$823,29,FALSE)=\"-\"),1/0,VLOOKUP($A819,Economática!$A$3:$AI$823,29,FALSE)))","v":""},{"$f":"IF($A819=\"\",\"\",IF(OR(VLOOKUP($A819,Economática!$A$3:$AI$823,30,FALSE)/E819=0,VLOOKUP($A819,Economática!$A$3:$AI$823,30,FALSE)/E819=\"-\",VLOOKUP($A819,Economática!$A$3:$AI$823,30,FALSE)/E819<33.33%,VLOOKUP($A819,Economática!$A$3:$AI$823,30,FALSE)/E819>100%),1/0,VLOOKUP($A819,Economática!$A$3:$AI$823,30,FALSE)/E819))","v":""},"",{"$f":"IF($A819=\"\",\"\",IF(OR(VLOOKUP($A819,Economática!$A$3:$AI$823,25,FALSE)=0,VLOOKUP($A819,Economática!$A$3:$AI$823,25,FALSE)=\"-\"),1/0,VLOOKUP($A819,Economática!$A$3:$AI$823,25,FALSE)))","v":""},{"$f":"CONCATENATE(Economática!B797,\" \",Economática!C797)","v":" "}]
[{"$f":"IF(Economática!AG798=\"\",\"\",Economática!AG798)","v":""},{"$f":"IF($A820=\"\",\"\",VLOOKUP(VLOOKUP($A820,Economática!$A$3:$AI$823,6,FALSE),Correção!$B$16:$C$36,2,FALSE))","v":""},{"$f":"IF(Economática!B798=\"\",\"\",Economática!B798)","v":""},{"$f":"IF($A820=\"\",\"\",IF(OR(VLOOKUP($A820,Economática!$A$3:$AI$823,8,FALSE)=0,VLOOKUP($A820,Economática!$A$3:$AI$823,8,FALSE)=\"-\"),1/0,VLOOKUP($A820,Economática!$A$3:$AI$823,8,FALSE)))","v":""},{"$f":"IF(A820=\"\",\"\",IF(ISERROR(VLOOKUP(A820,Correção!$B$2:$G$13,9,FALSE)),VLOOKUP($A820,Economática!$A$3:$AI$823,9,FALSE),VLOOKUP(A820,Correção!$B$2:$G$13,9,FALSE)))","v":""},{"$f":"IF($A820=\"\",\"\",Economática!G798)","v":""},{"$f":"IF($A820=\"\",\"\",IF(OR(VLOOKUP($A820,Economática!$A$3:$AI$823,10,FALSE)=0,VLOOKUP($A820,Economática!$A$3:$AI$823,10,FALSE)=\"-\"),1/0,VLOOKUP($A820,Economática!$A$3:$AI$823,10,FALSE)))","v":""},{"$f":"IF($A820=\"\",\"\",IF(OR(VLOOKUP($A820,Economática!$A$3:$AI$823,11,FALSE)=0,VLOOKUP($A820,Economática!$A$3:$AI$823,11,FALSE)=\"-\"),1/0,VLOOKUP($A820,Economática!$A$3:$AI$823,11,FALSE)))","v":""},{"$f":"IF($A820=\"\",\"\",IF(OR(VLOOKUP($A820,Economática!$A$3:$AI$823,12,FALSE)=0,VLOOKUP($A820,Economática!$A$3:$AI$823,12,FALSE)=\"-\"),1/0,VLOOKUP($A820,Economática!$A$3:$AI$823,12,FALSE)))","v":""},{"$f":"IF($A820=\"\",\"\",IF(OR(VLOOKUP($A820,Economática!$A$3:$AI$823,13,FALSE)=0,VLOOKUP($A820,Economática!$A$3:$AI$823,13,FALSE)=\"-\"),1/0,VLOOKUP($A820,Economática!$A$3:$AI$823,13,FALSE)))","v":""},{"$f":"IF($A820=\"\",\"\",IF(OR(VLOOKUP($A820,Economática!$A$3:$AI$823,14,FALSE)=0,VLOOKUP($A820,Economática!$A$3:$AI$823,14,FALSE)=\"-\"),1/0,VLOOKUP($A820,Economática!$A$3:$AI$823,14,FALSE)))","v":""},{"$f":"IF($A820=\"\",\"\",IF(OR(VLOOKUP($A820,Economática!$A$3:$AI$823,15,FALSE)=0,VLOOKUP($A820,Economática!$A$3:$AI$823,15,FALSE)=\"-\"),1/0,VLOOKUP($A820,Economática!$A$3:$AI$823,15,FALSE)))","v":""},{"$f":"IF($A820=\"\",\"\",IF(OR(VLOOKUP($A820,Economática!$A$3:$AI$823,16,FALSE)=0,VLOOKUP($A820,Economática!$A$3:$AI$823,16,FALSE)=\"-\"),1/0,VLOOKUP($A820,Economática!$A$3:$AI$823,16,FALSE)))","v":""},{"$f":"IF($A820=\"\",\"\",IF(OR(VLOOKUP($A820,Economática!$A$3:$AI$823,17,FALSE)=0,VLOOKUP($A820,Economática!$A$3:$AI$823,17,FALSE)=\"-\"),1/0,VLOOKUP($A820,Economática!$A$3:$AI$823,17,FALSE)))","v":""},{"$f":"IF($A820=\"\",\"\",IF(OR(VLOOKUP($A820,Economática!$A$3:$AI$823,18,FALSE)=0,VLOOKUP($A820,Economática!$A$3:$AI$823,18,FALSE)=\"-\"),1/0,VLOOKUP($A820,Economática!$A$3:$AI$823,18,FALSE)))","v":""},{"$f":"IF($A820=\"\",\"\",IF(OR(VLOOKUP($A820,Economática!$A$3:$AI$823,19,FALSE)=0,VLOOKUP($A820,Economática!$A$3:$AI$823,19,FALSE)=\"-\"),1/0,VLOOKUP($A820,Economática!$A$3:$AI$823,19,FALSE)))","v":""},{"$f":"IF($A820=\"\",\"\",VLOOKUP($A820,Economática!$A$3:$AI$823,20,FALSE)/E820)","v":""},"","","",{"$f":"IF($A820=\"\",\"\",IF(OR(VLOOKUP($A820,Economática!$A$3:$AI$823,21,FALSE)/100=0,VLOOKUP($A820,Economática!$A$3:$AI$823,21,FALSE)/100=\"-\"),1/0,VLOOKUP($A820,Economática!$A$3:$AI$823,21,FALSE)/100))","v":""},{"$f":"IF($A820=\"\",\"\",IF(OR(VLOOKUP($A820,Economática!$A$3:$AI$823,22,FALSE)/100=0,VLOOKUP($A820,Economática!$A$3:$AI$823,22,FALSE)/100=\"-\"),1/0,VLOOKUP($A820,Economática!$A$3:$AI$823,22,FALSE)/100))","v":""},{"$f":"IF($A820=\"\",\"\",IF(OR(VLOOKUP($A820,Economática!$A$3:$AI$823,23,FALSE)=0,VLOOKUP($A820,Economática!$A$3:$AI$823,23,FALSE)=\"-\"),1/0,VLOOKUP($A820,Economática!$A$3:$AI$823,23,FALSE)))","v":""},{"$f":"IF($A820=\"\",\"\",IF(OR(VLOOKUP($A820,Economática!$A$3:$AI$823,24,FALSE)=0,VLOOKUP($A820,Economática!$A$3:$AI$823,24,FALSE)=\"-\"),1/0,VLOOKUP($A820,Economática!$A$3:$AI$823,24,FALSE)))","v":""},{"$f":"IF($A820=\"\",\"\",IF(OR(VLOOKUP($A820,Economática!$A$3:$AI$823,25,FALSE)=0,VLOOKUP($A820,Economática!$A$3:$AI$823,25,FALSE)=\"-\"),1/0,VLOOKUP($A820,Economática!$A$3:$AI$823,25,FALSE)))","v":""},{"$f":"IF($A820=\"\",\"\",IF(ISERROR((F820+VLOOKUP($A820,Economática!$A$3:$AI$823,26,FALSE))/Y820),(F820+VLOOKUP($A820,Economática!$A$3:$AI$823,26,FALSE))/Y820,(F820+VLOOKUP($A820,Economática!$A$3:$AI$823,26,FALSE))/Y820))","v":""},{"$f":"IF($A820=\"\",\"\",IF(OR(-VLOOKUP($A820,Economática!$A$3:$AI$823,27,FALSE)=0,-VLOOKUP($A820,Economática!$A$3:$AI$823,27,FALSE)=\"-\"),1/0,-VLOOKUP($A820,Economática!$A$3:$AI$823,27,FALSE)))","v":""},"",{"$f":"IF($A820=\"\",\"\",IF(OR(VLOOKUP($A820,Economática!$A$3:$AI$823,28,FALSE)=0,VLOOKUP($A820,Economática!$A$3:$AI$823,28,FALSE)=\"-\"),1/0,VLOOKUP($A820,Economática!$A$3:$AI$823,28,FALSE)))","v":""},{"$f":"IF($A820=\"\",\"\",IF(OR(VLOOKUP($A820,Economática!$A$3:$AI$823,29,FALSE)=0,VLOOKUP($A820,Economática!$A$3:$AI$823,29,FALSE)=\"-\"),1/0,VLOOKUP($A820,Economática!$A$3:$AI$823,29,FALSE)))","v":""},{"$f":"IF($A820=\"\",\"\",IF(OR(VLOOKUP($A820,Economática!$A$3:$AI$823,30,FALSE)/E820=0,VLOOKUP($A820,Economática!$A$3:$AI$823,30,FALSE)/E820=\"-\",VLOOKUP($A820,Economática!$A$3:$AI$823,30,FALSE)/E820<33.33%,VLOOKUP($A820,Economática!$A$3:$AI$823,30,FALSE)/E820>100%),1/0,VLOOKUP($A820,Economática!$A$3:$AI$823,30,FALSE)/E820))","v":""},"",{"$f":"IF($A820=\"\",\"\",IF(OR(VLOOKUP($A820,Economática!$A$3:$AI$823,25,FALSE)=0,VLOOKUP($A820,Economática!$A$3:$AI$823,25,FALSE)=\"-\"),1/0,VLOOKUP($A820,Economática!$A$3:$AI$823,25,FALSE)))","v":""},{"$f":"CONCATENATE(Economática!B798,\" \",Economática!C798)","v":" "}]
[{"$f":"IF(Economática!AG799=\"\",\"\",Economática!AG799)","v":""},{"$f":"IF($A821=\"\",\"\",VLOOKUP(VLOOKUP($A821,Economática!$A$3:$AI$823,6,FALSE),Correção!$B$16:$C$36,2,FALSE))","v":""},{"$f":"IF(Economática!B799=\"\",\"\",Economática!B799)","v":""},{"$f":"IF($A821=\"\",\"\",IF(OR(VLOOKUP($A821,Economática!$A$3:$AI$823,8,FALSE)=0,VLOOKUP($A821,Economática!$A$3:$AI$823,8,FALSE)=\"-\"),1/0,VLOOKUP($A821,Economática!$A$3:$AI$823,8,FALSE)))","v":""},{"$f":"IF(A821=\"\",\"\",IF(ISERROR(VLOOKUP(A821,Correção!$B$2:$G$13,9,FALSE)),VLOOKUP($A821,Economática!$A$3:$AI$823,9,FALSE),VLOOKUP(A821,Correção!$B$2:$G$13,9,FALSE)))","v":""},{"$f":"IF($A821=\"\",\"\",Economática!G799)","v":""},{"$f":"IF($A821=\"\",\"\",IF(OR(VLOOKUP($A821,Economática!$A$3:$AI$823,10,FALSE)=0,VLOOKUP($A821,Economática!$A$3:$AI$823,10,FALSE)=\"-\"),1/0,VLOOKUP($A821,Economática!$A$3:$AI$823,10,FALSE)))","v":""},{"$f":"IF($A821=\"\",\"\",IF(OR(VLOOKUP($A821,Economática!$A$3:$AI$823,11,FALSE)=0,VLOOKUP($A821,Economática!$A$3:$AI$823,11,FALSE)=\"-\"),1/0,VLOOKUP($A821,Economática!$A$3:$AI$823,11,FALSE)))","v":""},{"$f":"IF($A821=\"\",\"\",IF(OR(VLOOKUP($A821,Economática!$A$3:$AI$823,12,FALSE)=0,VLOOKUP($A821,Economática!$A$3:$AI$823,12,FALSE)=\"-\"),1/0,VLOOKUP($A821,Economática!$A$3:$AI$823,12,FALSE)))","v":""},{"$f":"IF($A821=\"\",\"\",IF(OR(VLOOKUP($A821,Economática!$A$3:$AI$823,13,FALSE)=0,VLOOKUP($A821,Economática!$A$3:$AI$823,13,FALSE)=\"-\"),1/0,VLOOKUP($A821,Economática!$A$3:$AI$823,13,FALSE)))","v":""},{"$f":"IF($A821=\"\",\"\",IF(OR(VLOOKUP($A821,Economática!$A$3:$AI$823,14,FALSE)=0,VLOOKUP($A821,Economática!$A$3:$AI$823,14,FALSE)=\"-\"),1/0,VLOOKUP($A821,Economática!$A$3:$AI$823,14,FALSE)))","v":""},{"$f":"IF($A821=\"\",\"\",IF(OR(VLOOKUP($A821,Economática!$A$3:$AI$823,15,FALSE)=0,VLOOKUP($A821,Economática!$A$3:$AI$823,15,FALSE)=\"-\"),1/0,VLOOKUP($A821,Economática!$A$3:$AI$823,15,FALSE)))","v":""},{"$f":"IF($A821=\"\",\"\",IF(OR(VLOOKUP($A821,Economática!$A$3:$AI$823,16,FALSE)=0,VLOOKUP($A821,Economática!$A$3:$AI$823,16,FALSE)=\"-\"),1/0,VLOOKUP($A821,Economática!$A$3:$AI$823,16,FALSE)))","v":""},{"$f":"IF($A821=\"\",\"\",IF(OR(VLOOKUP($A821,Economática!$A$3:$AI$823,17,FALSE)=0,VLOOKUP($A821,Economática!$A$3:$AI$823,17,FALSE)=\"-\"),1/0,VLOOKUP($A821,Economática!$A$3:$AI$823,17,FALSE)))","v":""},{"$f":"IF($A821=\"\",\"\",IF(OR(VLOOKUP($A821,Economática!$A$3:$AI$823,18,FALSE)=0,VLOOKUP($A821,Economática!$A$3:$AI$823,18,FALSE)=\"-\"),1/0,VLOOKUP($A821,Economática!$A$3:$AI$823,18,FALSE)))","v":""},{"$f":"IF($A821=\"\",\"\",IF(OR(VLOOKUP($A821,Economática!$A$3:$AI$823,19,FALSE)=0,VLOOKUP($A821,Economática!$A$3:$AI$823,19,FALSE)=\"-\"),1/0,VLOOKUP($A821,Economática!$A$3:$AI$823,19,FALSE)))","v":""},{"$f":"IF($A821=\"\",\"\",VLOOKUP($A821,Economática!$A$3:$AI$823,20,FALSE)/E821)","v":""},"","","",{"$f":"IF($A821=\"\",\"\",IF(OR(VLOOKUP($A821,Economática!$A$3:$AI$823,21,FALSE)/100=0,VLOOKUP($A821,Economática!$A$3:$AI$823,21,FALSE)/100=\"-\"),1/0,VLOOKUP($A821,Economática!$A$3:$AI$823,21,FALSE)/100))","v":""},{"$f":"IF($A821=\"\",\"\",IF(OR(VLOOKUP($A821,Economática!$A$3:$AI$823,22,FALSE)/100=0,VLOOKUP($A821,Economática!$A$3:$AI$823,22,FALSE)/100=\"-\"),1/0,VLOOKUP($A821,Economática!$A$3:$AI$823,22,FALSE)/100))","v":""},{"$f":"IF($A821=\"\",\"\",IF(OR(VLOOKUP($A821,Economática!$A$3:$AI$823,23,FALSE)=0,VLOOKUP($A821,Economática!$A$3:$AI$823,23,FALSE)=\"-\"),1/0,VLOOKUP($A821,Economática!$A$3:$AI$823,23,FALSE)))","v":""},{"$f":"IF($A821=\"\",\"\",IF(OR(VLOOKUP($A821,Economática!$A$3:$AI$823,24,FALSE)=0,VLOOKUP($A821,Economática!$A$3:$AI$823,24,FALSE)=\"-\"),1/0,VLOOKUP($A821,Economática!$A$3:$AI$823,24,FALSE)))","v":""},{"$f":"IF($A821=\"\",\"\",IF(OR(VLOOKUP($A821,Economática!$A$3:$AI$823,25,FALSE)=0,VLOOKUP($A821,Economática!$A$3:$AI$823,25,FALSE)=\"-\"),1/0,VLOOKUP($A821,Economática!$A$3:$AI$823,25,FALSE)))","v":""},{"$f":"IF($A821=\"\",\"\",IF(ISERROR((F821+VLOOKUP($A821,Economática!$A$3:$AI$823,26,FALSE))/Y821),(F821+VLOOKUP($A821,Economática!$A$3:$AI$823,26,FALSE))/Y821,(F821+VLOOKUP($A821,Economática!$A$3:$AI$823,26,FALSE))/Y821))","v":""},{"$f":"IF($A821=\"\",\"\",IF(OR(-VLOOKUP($A821,Economática!$A$3:$AI$823,27,FALSE)=0,-VLOOKUP($A821,Economática!$A$3:$AI$823,27,FALSE)=\"-\"),1/0,-VLOOKUP($A821,Economática!$A$3:$AI$823,27,FALSE)))","v":""},"",{"$f":"IF($A821=\"\",\"\",IF(OR(VLOOKUP($A821,Economática!$A$3:$AI$823,28,FALSE)=0,VLOOKUP($A821,Economática!$A$3:$AI$823,28,FALSE)=\"-\"),1/0,VLOOKUP($A821,Economática!$A$3:$AI$823,28,FALSE)))","v":""},{"$f":"IF($A821=\"\",\"\",IF(OR(VLOOKUP($A821,Economática!$A$3:$AI$823,29,FALSE)=0,VLOOKUP($A821,Economática!$A$3:$AI$823,29,FALSE)=\"-\"),1/0,VLOOKUP($A821,Economática!$A$3:$AI$823,29,FALSE)))","v":""},{"$f":"IF($A821=\"\",\"\",IF(OR(VLOOKUP($A821,Economática!$A$3:$AI$823,30,FALSE)/E821=0,VLOOKUP($A821,Economática!$A$3:$AI$823,30,FALSE)/E821=\"-\",VLOOKUP($A821,Economática!$A$3:$AI$823,30,FALSE)/E821<33.33%,VLOOKUP($A821,Economática!$A$3:$AI$823,30,FALSE)/E821>100%),1/0,VLOOKUP($A821,Economática!$A$3:$AI$823,30,FALSE)/E821))","v":""},"",{"$f":"IF($A821=\"\",\"\",IF(OR(VLOOKUP($A821,Economática!$A$3:$AI$823,25,FALSE)=0,VLOOKUP($A821,Economática!$A$3:$AI$823,25,FALSE)=\"-\"),1/0,VLOOKUP($A821,Economática!$A$3:$AI$823,25,FALSE)))","v":""},{"$f":"CONCATENATE(Economática!B799,\" \",Economática!C799)","v":" "}]
[{"$f":"IF(Economática!AG800=\"\",\"\",Economática!AG800)","v":""},{"$f":"IF($A822=\"\",\"\",VLOOKUP(VLOOKUP($A822,Economática!$A$3:$AI$823,6,FALSE),Correção!$B$16:$C$36,2,FALSE))","v":""},{"$f":"IF(Economática!B800=\"\",\"\",Economática!B800)","v":""},{"$f":"IF($A822=\"\",\"\",IF(OR(VLOOKUP($A822,Economática!$A$3:$AI$823,8,FALSE)=0,VLOOKUP($A822,Economática!$A$3:$AI$823,8,FALSE)=\"-\"),1/0,VLOOKUP($A822,Economática!$A$3:$AI$823,8,FALSE)))","v":""},{"$f":"IF(A822=\"\",\"\",IF(ISERROR(VLOOKUP(A822,Correção!$B$2:$G$13,9,FALSE)),VLOOKUP($A822,Economática!$A$3:$AI$823,9,FALSE),VLOOKUP(A822,Correção!$B$2:$G$13,9,FALSE)))","v":""},{"$f":"IF($A822=\"\",\"\",Economática!G800)","v":""},{"$f":"IF($A822=\"\",\"\",IF(OR(VLOOKUP($A822,Economática!$A$3:$AI$823,10,FALSE)=0,VLOOKUP($A822,Economática!$A$3:$AI$823,10,FALSE)=\"-\"),1/0,VLOOKUP($A822,Economática!$A$3:$AI$823,10,FALSE)))","v":""},{"$f":"IF($A822=\"\",\"\",IF(OR(VLOOKUP($A822,Economática!$A$3:$AI$823,11,FALSE)=0,VLOOKUP($A822,Economática!$A$3:$AI$823,11,FALSE)=\"-\"),1/0,VLOOKUP($A822,Economática!$A$3:$AI$823,11,FALSE)))","v":""},{"$f":"IF($A822=\"\",\"\",IF(OR(VLOOKUP($A822,Economática!$A$3:$AI$823,12,FALSE)=0,VLOOKUP($A822,Economática!$A$3:$AI$823,12,FALSE)=\"-\"),1/0,VLOOKUP($A822,Economática!$A$3:$AI$823,12,FALSE)))","v":""},{"$f":"IF($A822=\"\",\"\",IF(OR(VLOOKUP($A822,Economática!$A$3:$AI$823,13,FALSE)=0,VLOOKUP($A822,Economática!$A$3:$AI$823,13,FALSE)=\"-\"),1/0,VLOOKUP($A822,Economática!$A$3:$AI$823,13,FALSE)))","v":""},{"$f":"IF($A822=\"\",\"\",IF(OR(VLOOKUP($A822,Economática!$A$3:$AI$823,14,FALSE)=0,VLOOKUP($A822,Economática!$A$3:$AI$823,14,FALSE)=\"-\"),1/0,VLOOKUP($A822,Economática!$A$3:$AI$823,14,FALSE)))","v":""},{"$f":"IF($A822=\"\",\"\",IF(OR(VLOOKUP($A822,Economática!$A$3:$AI$823,15,FALSE)=0,VLOOKUP($A822,Economática!$A$3:$AI$823,15,FALSE)=\"-\"),1/0,VLOOKUP($A822,Economática!$A$3:$AI$823,15,FALSE)))","v":""},{"$f":"IF($A822=\"\",\"\",IF(OR(VLOOKUP($A822,Economática!$A$3:$AI$823,16,FALSE)=0,VLOOKUP($A822,Economática!$A$3:$AI$823,16,FALSE)=\"-\"),1/0,VLOOKUP($A822,Economática!$A$3:$AI$823,16,FALSE)))","v":""},{"$f":"IF($A822=\"\",\"\",IF(OR(VLOOKUP($A822,Economática!$A$3:$AI$823,17,FALSE)=0,VLOOKUP($A822,Economática!$A$3:$AI$823,17,FALSE)=\"-\"),1/0,VLOOKUP($A822,Economática!$A$3:$AI$823,17,FALSE)))","v":""},{"$f":"IF($A822=\"\",\"\",IF(OR(VLOOKUP($A822,Economática!$A$3:$AI$823,18,FALSE)=0,VLOOKUP($A822,Economática!$A$3:$AI$823,18,FALSE)=\"-\"),1/0,VLOOKUP($A822,Economática!$A$3:$AI$823,18,FALSE)))","v":""},{"$f":"IF($A822=\"\",\"\",IF(OR(VLOOKUP($A822,Economática!$A$3:$AI$823,19,FALSE)=0,VLOOKUP($A822,Economática!$A$3:$AI$823,19,FALSE)=\"-\"),1/0,VLOOKUP($A822,Economática!$A$3:$AI$823,19,FALSE)))","v":""},{"$f":"IF($A822=\"\",\"\",VLOOKUP($A822,Economática!$A$3:$AI$823,20,FALSE)/E822)","v":""},"","","",{"$f":"IF($A822=\"\",\"\",IF(OR(VLOOKUP($A822,Economática!$A$3:$AI$823,21,FALSE)/100=0,VLOOKUP($A822,Economática!$A$3:$AI$823,21,FALSE)/100=\"-\"),1/0,VLOOKUP($A822,Economática!$A$3:$AI$823,21,FALSE)/100))","v":""},{"$f":"IF($A822=\"\",\"\",IF(OR(VLOOKUP($A822,Economática!$A$3:$AI$823,22,FALSE)/100=0,VLOOKUP($A822,Economática!$A$3:$AI$823,22,FALSE)/100=\"-\"),1/0,VLOOKUP($A822,Economática!$A$3:$AI$823,22,FALSE)/100))","v":""},{"$f":"IF($A822=\"\",\"\",IF(OR(VLOOKUP($A822,Economática!$A$3:$AI$823,23,FALSE)=0,VLOOKUP($A822,Economática!$A$3:$AI$823,23,FALSE)=\"-\"),1/0,VLOOKUP($A822,Economática!$A$3:$AI$823,23,FALSE)))","v":""},{"$f":"IF($A822=\"\",\"\",IF(OR(VLOOKUP($A822,Economática!$A$3:$AI$823,24,FALSE)=0,VLOOKUP($A822,Economática!$A$3:$AI$823,24,FALSE)=\"-\"),1/0,VLOOKUP($A822,Economática!$A$3:$AI$823,24,FALSE)))","v":""},{"$f":"IF($A822=\"\",\"\",IF(OR(VLOOKUP($A822,Economática!$A$3:$AI$823,25,FALSE)=0,VLOOKUP($A822,Economática!$A$3:$AI$823,25,FALSE)=\"-\"),1/0,VLOOKUP($A822,Economática!$A$3:$AI$823,25,FALSE)))","v":""},{"$f":"IF($A822=\"\",\"\",IF(ISERROR((F822+VLOOKUP($A822,Economática!$A$3:$AI$823,26,FALSE))/Y822),(F822+VLOOKUP($A822,Economática!$A$3:$AI$823,26,FALSE))/Y822,(F822+VLOOKUP($A822,Economática!$A$3:$AI$823,26,FALSE))/Y822))","v":""},{"$f":"IF($A822=\"\",\"\",IF(OR(-VLOOKUP($A822,Economática!$A$3:$AI$823,27,FALSE)=0,-VLOOKUP($A822,Economática!$A$3:$AI$823,27,FALSE)=\"-\"),1/0,-VLOOKUP($A822,Economática!$A$3:$AI$823,27,FALSE)))","v":""},"",{"$f":"IF($A822=\"\",\"\",IF(OR(VLOOKUP($A822,Economática!$A$3:$AI$823,28,FALSE)=0,VLOOKUP($A822,Economática!$A$3:$AI$823,28,FALSE)=\"-\"),1/0,VLOOKUP($A822,Economática!$A$3:$AI$823,28,FALSE)))","v":""},{"$f":"IF($A822=\"\",\"\",IF(OR(VLOOKUP($A822,Economática!$A$3:$AI$823,29,FALSE)=0,VLOOKUP($A822,Economática!$A$3:$AI$823,29,FALSE)=\"-\"),1/0,VLOOKUP($A822,Economática!$A$3:$AI$823,29,FALSE)))","v":""},{"$f":"IF($A822=\"\",\"\",IF(OR(VLOOKUP($A822,Economática!$A$3:$AI$823,30,FALSE)/E822=0,VLOOKUP($A822,Economática!$A$3:$AI$823,30,FALSE)/E822=\"-\",VLOOKUP($A822,Economática!$A$3:$AI$823,30,FALSE)/E822<33.33%,VLOOKUP($A822,Economática!$A$3:$AI$823,30,FALSE)/E822>100%),1/0,VLOOKUP($A822,Economática!$A$3:$AI$823,30,FALSE)/E822))","v":""},"",{"$f":"IF($A822=\"\",\"\",IF(OR(VLOOKUP($A822,Economática!$A$3:$AI$823,25,FALSE)=0,VLOOKUP($A822,Economática!$A$3:$AI$823,25,FALSE)=\"-\"),1/0,VLOOKUP($A822,Economática!$A$3:$AI$823,25,FALSE)))","v":""},{"$f":"CONCATENATE(Economática!B800,\" \",Economática!C800)","v":" "}]
[{"$f":"IF(Economática!AG801=\"\",\"\",Economática!AG801)","v":""},{"$f":"IF($A823=\"\",\"\",VLOOKUP(VLOOKUP($A823,Economática!$A$3:$AI$823,6,FALSE),Correção!$B$16:$C$36,2,FALSE))","v":""},{"$f":"IF(Economática!B801=\"\",\"\",Economática!B801)","v":""},{"$f":"IF($A823=\"\",\"\",IF(OR(VLOOKUP($A823,Economática!$A$3:$AI$823,8,FALSE)=0,VLOOKUP($A823,Economática!$A$3:$AI$823,8,FALSE)=\"-\"),1/0,VLOOKUP($A823,Economática!$A$3:$AI$823,8,FALSE)))","v":""},{"$f":"IF(A823=\"\",\"\",IF(ISERROR(VLOOKUP(A823,Correção!$B$2:$G$13,9,FALSE)),VLOOKUP($A823,Economática!$A$3:$AI$823,9,FALSE),VLOOKUP(A823,Correção!$B$2:$G$13,9,FALSE)))","v":""},{"$f":"IF($A823=\"\",\"\",Economática!G801)","v":""},{"$f":"IF($A823=\"\",\"\",IF(OR(VLOOKUP($A823,Economática!$A$3:$AI$823,10,FALSE)=0,VLOOKUP($A823,Economática!$A$3:$AI$823,10,FALSE)=\"-\"),1/0,VLOOKUP($A823,Economática!$A$3:$AI$823,10,FALSE)))","v":""},{"$f":"IF($A823=\"\",\"\",IF(OR(VLOOKUP($A823,Economática!$A$3:$AI$823,11,FALSE)=0,VLOOKUP($A823,Economática!$A$3:$AI$823,11,FALSE)=\"-\"),1/0,VLOOKUP($A823,Economática!$A$3:$AI$823,11,FALSE)))","v":""},{"$f":"IF($A823=\"\",\"\",IF(OR(VLOOKUP($A823,Economática!$A$3:$AI$823,12,FALSE)=0,VLOOKUP($A823,Economática!$A$3:$AI$823,12,FALSE)=\"-\"),1/0,VLOOKUP($A823,Economática!$A$3:$AI$823,12,FALSE)))","v":""},{"$f":"IF($A823=\"\",\"\",IF(OR(VLOOKUP($A823,Economática!$A$3:$AI$823,13,FALSE)=0,VLOOKUP($A823,Economática!$A$3:$AI$823,13,FALSE)=\"-\"),1/0,VLOOKUP($A823,Economática!$A$3:$AI$823,13,FALSE)))","v":""},{"$f":"IF($A823=\"\",\"\",IF(OR(VLOOKUP($A823,Economática!$A$3:$AI$823,14,FALSE)=0,VLOOKUP($A823,Economática!$A$3:$AI$823,14,FALSE)=\"-\"),1/0,VLOOKUP($A823,Economática!$A$3:$AI$823,14,FALSE)))","v":""},{"$f":"IF($A823=\"\",\"\",IF(OR(VLOOKUP($A823,Economática!$A$3:$AI$823,15,FALSE)=0,VLOOKUP($A823,Economática!$A$3:$AI$823,15,FALSE)=\"-\"),1/0,VLOOKUP($A823,Economática!$A$3:$AI$823,15,FALSE)))","v":""},{"$f":"IF($A823=\"\",\"\",IF(OR(VLOOKUP($A823,Economática!$A$3:$AI$823,16,FALSE)=0,VLOOKUP($A823,Economática!$A$3:$AI$823,16,FALSE)=\"-\"),1/0,VLOOKUP($A823,Economática!$A$3:$AI$823,16,FALSE)))","v":""},{"$f":"IF($A823=\"\",\"\",IF(OR(VLOOKUP($A823,Economática!$A$3:$AI$823,17,FALSE)=0,VLOOKUP($A823,Economática!$A$3:$AI$823,17,FALSE)=\"-\"),1/0,VLOOKUP($A823,Economática!$A$3:$AI$823,17,FALSE)))","v":""},{"$f":"IF($A823=\"\",\"\",IF(OR(VLOOKUP($A823,Economática!$A$3:$AI$823,18,FALSE)=0,VLOOKUP($A823,Economática!$A$3:$AI$823,18,FALSE)=\"-\"),1/0,VLOOKUP($A823,Economática!$A$3:$AI$823,18,FALSE)))","v":""},{"$f":"IF($A823=\"\",\"\",IF(OR(VLOOKUP($A823,Economática!$A$3:$AI$823,19,FALSE)=0,VLOOKUP($A823,Economática!$A$3:$AI$823,19,FALSE)=\"-\"),1/0,VLOOKUP($A823,Economática!$A$3:$AI$823,19,FALSE)))","v":""},{"$f":"IF($A823=\"\",\"\",VLOOKUP($A823,Economática!$A$3:$AI$823,20,FALSE)/E823)","v":""},"","","",{"$f":"IF($A823=\"\",\"\",IF(OR(VLOOKUP($A823,Economática!$A$3:$AI$823,21,FALSE)/100=0,VLOOKUP($A823,Economática!$A$3:$AI$823,21,FALSE)/100=\"-\"),1/0,VLOOKUP($A823,Economática!$A$3:$AI$823,21,FALSE)/100))","v":""},{"$f":"IF($A823=\"\",\"\",IF(OR(VLOOKUP($A823,Economática!$A$3:$AI$823,22,FALSE)/100=0,VLOOKUP($A823,Economática!$A$3:$AI$823,22,FALSE)/100=\"-\"),1/0,VLOOKUP($A823,Economática!$A$3:$AI$823,22,FALSE)/100))","v":""},{"$f":"IF($A823=\"\",\"\",IF(OR(VLOOKUP($A823,Economática!$A$3:$AI$823,23,FALSE)=0,VLOOKUP($A823,Economática!$A$3:$AI$823,23,FALSE)=\"-\"),1/0,VLOOKUP($A823,Economática!$A$3:$AI$823,23,FALSE)))","v":""},{"$f":"IF($A823=\"\",\"\",IF(OR(VLOOKUP($A823,Economática!$A$3:$AI$823,24,FALSE)=0,VLOOKUP($A823,Economática!$A$3:$AI$823,24,FALSE)=\"-\"),1/0,VLOOKUP($A823,Economática!$A$3:$AI$823,24,FALSE)))","v":""},{"$f":"IF($A823=\"\",\"\",IF(OR(VLOOKUP($A823,Economática!$A$3:$AI$823,25,FALSE)=0,VLOOKUP($A823,Economática!$A$3:$AI$823,25,FALSE)=\"-\"),1/0,VLOOKUP($A823,Economática!$A$3:$AI$823,25,FALSE)))","v":""},{"$f":"IF($A823=\"\",\"\",IF(ISERROR((F823+VLOOKUP($A823,Economática!$A$3:$AI$823,26,FALSE))/Y823),(F823+VLOOKUP($A823,Economática!$A$3:$AI$823,26,FALSE))/Y823,(F823+VLOOKUP($A823,Economática!$A$3:$AI$823,26,FALSE))/Y823))","v":""},{"$f":"IF($A823=\"\",\"\",IF(OR(-VLOOKUP($A823,Economática!$A$3:$AI$823,27,FALSE)=0,-VLOOKUP($A823,Economática!$A$3:$AI$823,27,FALSE)=\"-\"),1/0,-VLOOKUP($A823,Economática!$A$3:$AI$823,27,FALSE)))","v":""},"",{"$f":"IF($A823=\"\",\"\",IF(OR(VLOOKUP($A823,Economática!$A$3:$AI$823,28,FALSE)=0,VLOOKUP($A823,Economática!$A$3:$AI$823,28,FALSE)=\"-\"),1/0,VLOOKUP($A823,Economática!$A$3:$AI$823,28,FALSE)))","v":""},{"$f":"IF($A823=\"\",\"\",IF(OR(VLOOKUP($A823,Economática!$A$3:$AI$823,29,FALSE)=0,VLOOKUP($A823,Economática!$A$3:$AI$823,29,FALSE)=\"-\"),1/0,VLOOKUP($A823,Economática!$A$3:$AI$823,29,FALSE)))","v":""},{"$f":"IF($A823=\"\",\"\",IF(OR(VLOOKUP($A823,Economática!$A$3:$AI$823,30,FALSE)/E823=0,VLOOKUP($A823,Economática!$A$3:$AI$823,30,FALSE)/E823=\"-\",VLOOKUP($A823,Economática!$A$3:$AI$823,30,FALSE)/E823<33.33%,VLOOKUP($A823,Economática!$A$3:$AI$823,30,FALSE)/E823>100%),1/0,VLOOKUP($A823,Economática!$A$3:$AI$823,30,FALSE)/E823))","v":""},"",{"$f":"IF($A823=\"\",\"\",IF(OR(VLOOKUP($A823,Economática!$A$3:$AI$823,25,FALSE)=0,VLOOKUP($A823,Economática!$A$3:$AI$823,25,FALSE)=\"-\"),1/0,VLOOKUP($A823,Economática!$A$3:$AI$823,25,FALSE)))","v":""},{"$f":"CONCATENATE(Economática!B801,\" \",Economática!C801)","v":" "}]
[{"$f":"IF(Economática!AG802=\"\",\"\",Economática!AG802)","v":""},{"$f":"IF($A824=\"\",\"\",VLOOKUP(VLOOKUP($A824,Economática!$A$3:$AI$823,6,FALSE),Correção!$B$16:$C$36,2,FALSE))","v":""},{"$f":"IF(Economática!B802=\"\",\"\",Economática!B802)","v":""},{"$f":"IF($A824=\"\",\"\",IF(OR(VLOOKUP($A824,Economática!$A$3:$AI$823,8,FALSE)=0,VLOOKUP($A824,Economática!$A$3:$AI$823,8,FALSE)=\"-\"),1/0,VLOOKUP($A824,Economática!$A$3:$AI$823,8,FALSE)))","v":""},{"$f":"IF(A824=\"\",\"\",IF(ISERROR(VLOOKUP(A824,Correção!$B$2:$G$13,9,FALSE)),VLOOKUP($A824,Economática!$A$3:$AI$823,9,FALSE),VLOOKUP(A824,Correção!$B$2:$G$13,9,FALSE)))","v":""},{"$f":"IF($A824=\"\",\"\",Economática!G802)","v":""},{"$f":"IF($A824=\"\",\"\",IF(OR(VLOOKUP($A824,Economática!$A$3:$AI$823,10,FALSE)=0,VLOOKUP($A824,Economática!$A$3:$AI$823,10,FALSE)=\"-\"),1/0,VLOOKUP($A824,Economática!$A$3:$AI$823,10,FALSE)))","v":""},{"$f":"IF($A824=\"\",\"\",IF(OR(VLOOKUP($A824,Economática!$A$3:$AI$823,11,FALSE)=0,VLOOKUP($A824,Economática!$A$3:$AI$823,11,FALSE)=\"-\"),1/0,VLOOKUP($A824,Economática!$A$3:$AI$823,11,FALSE)))","v":""},{"$f":"IF($A824=\"\",\"\",IF(OR(VLOOKUP($A824,Economática!$A$3:$AI$823,12,FALSE)=0,VLOOKUP($A824,Economática!$A$3:$AI$823,12,FALSE)=\"-\"),1/0,VLOOKUP($A824,Economática!$A$3:$AI$823,12,FALSE)))","v":""},{"$f":"IF($A824=\"\",\"\",IF(OR(VLOOKUP($A824,Economática!$A$3:$AI$823,13,FALSE)=0,VLOOKUP($A824,Economática!$A$3:$AI$823,13,FALSE)=\"-\"),1/0,VLOOKUP($A824,Economática!$A$3:$AI$823,13,FALSE)))","v":""},{"$f":"IF($A824=\"\",\"\",IF(OR(VLOOKUP($A824,Economática!$A$3:$AI$823,14,FALSE)=0,VLOOKUP($A824,Economática!$A$3:$AI$823,14,FALSE)=\"-\"),1/0,VLOOKUP($A824,Economática!$A$3:$AI$823,14,FALSE)))","v":""},{"$f":"IF($A824=\"\",\"\",IF(OR(VLOOKUP($A824,Economática!$A$3:$AI$823,15,FALSE)=0,VLOOKUP($A824,Economática!$A$3:$AI$823,15,FALSE)=\"-\"),1/0,VLOOKUP($A824,Economática!$A$3:$AI$823,15,FALSE)))","v":""},{"$f":"IF($A824=\"\",\"\",IF(OR(VLOOKUP($A824,Economática!$A$3:$AI$823,16,FALSE)=0,VLOOKUP($A824,Economática!$A$3:$AI$823,16,FALSE)=\"-\"),1/0,VLOOKUP($A824,Economática!$A$3:$AI$823,16,FALSE)))","v":""},{"$f":"IF($A824=\"\",\"\",IF(OR(VLOOKUP($A824,Economática!$A$3:$AI$823,17,FALSE)=0,VLOOKUP($A824,Economática!$A$3:$AI$823,17,FALSE)=\"-\"),1/0,VLOOKUP($A824,Economática!$A$3:$AI$823,17,FALSE)))","v":""},{"$f":"IF($A824=\"\",\"\",IF(OR(VLOOKUP($A824,Economática!$A$3:$AI$823,18,FALSE)=0,VLOOKUP($A824,Economática!$A$3:$AI$823,18,FALSE)=\"-\"),1/0,VLOOKUP($A824,Economática!$A$3:$AI$823,18,FALSE)))","v":""},{"$f":"IF($A824=\"\",\"\",IF(OR(VLOOKUP($A824,Economática!$A$3:$AI$823,19,FALSE)=0,VLOOKUP($A824,Economática!$A$3:$AI$823,19,FALSE)=\"-\"),1/0,VLOOKUP($A824,Economática!$A$3:$AI$823,19,FALSE)))","v":""},{"$f":"IF($A824=\"\",\"\",VLOOKUP($A824,Economática!$A$3:$AI$823,20,FALSE)/E824)","v":""},"","","",{"$f":"IF($A824=\"\",\"\",IF(OR(VLOOKUP($A824,Economática!$A$3:$AI$823,21,FALSE)/100=0,VLOOKUP($A824,Economática!$A$3:$AI$823,21,FALSE)/100=\"-\"),1/0,VLOOKUP($A824,Economática!$A$3:$AI$823,21,FALSE)/100))","v":""},{"$f":"IF($A824=\"\",\"\",IF(OR(VLOOKUP($A824,Economática!$A$3:$AI$823,22,FALSE)/100=0,VLOOKUP($A824,Economática!$A$3:$AI$823,22,FALSE)/100=\"-\"),1/0,VLOOKUP($A824,Economática!$A$3:$AI$823,22,FALSE)/100))","v":""},{"$f":"IF($A824=\"\",\"\",IF(OR(VLOOKUP($A824,Economática!$A$3:$AI$823,23,FALSE)=0,VLOOKUP($A824,Economática!$A$3:$AI$823,23,FALSE)=\"-\"),1/0,VLOOKUP($A824,Economática!$A$3:$AI$823,23,FALSE)))","v":""},{"$f":"IF($A824=\"\",\"\",IF(OR(VLOOKUP($A824,Economática!$A$3:$AI$823,24,FALSE)=0,VLOOKUP($A824,Economática!$A$3:$AI$823,24,FALSE)=\"-\"),1/0,VLOOKUP($A824,Economática!$A$3:$AI$823,24,FALSE)))","v":""},{"$f":"IF($A824=\"\",\"\",IF(OR(VLOOKUP($A824,Economática!$A$3:$AI$823,25,FALSE)=0,VLOOKUP($A824,Economática!$A$3:$AI$823,25,FALSE)=\"-\"),1/0,VLOOKUP($A824,Economática!$A$3:$AI$823,25,FALSE)))","v":""},{"$f":"IF($A824=\"\",\"\",IF(ISERROR((F824+VLOOKUP($A824,Economática!$A$3:$AI$823,26,FALSE))/Y824),(F824+VLOOKUP($A824,Economática!$A$3:$AI$823,26,FALSE))/Y824,(F824+VLOOKUP($A824,Economática!$A$3:$AI$823,26,FALSE))/Y824))","v":""},{"$f":"IF($A824=\"\",\"\",IF(OR(-VLOOKUP($A824,Economática!$A$3:$AI$823,27,FALSE)=0,-VLOOKUP($A824,Economática!$A$3:$AI$823,27,FALSE)=\"-\"),1/0,-VLOOKUP($A824,Economática!$A$3:$AI$823,27,FALSE)))","v":""},"",{"$f":"IF($A824=\"\",\"\",IF(OR(VLOOKUP($A824,Economática!$A$3:$AI$823,28,FALSE)=0,VLOOKUP($A824,Economática!$A$3:$AI$823,28,FALSE)=\"-\"),1/0,VLOOKUP($A824,Economática!$A$3:$AI$823,28,FALSE)))","v":""},{"$f":"IF($A824=\"\",\"\",IF(OR(VLOOKUP($A824,Economática!$A$3:$AI$823,29,FALSE)=0,VLOOKUP($A824,Economática!$A$3:$AI$823,29,FALSE)=\"-\"),1/0,VLOOKUP($A824,Economática!$A$3:$AI$823,29,FALSE)))","v":""},{"$f":"IF($A824=\"\",\"\",IF(OR(VLOOKUP($A824,Economática!$A$3:$AI$823,30,FALSE)/E824=0,VLOOKUP($A824,Economática!$A$3:$AI$823,30,FALSE)/E824=\"-\",VLOOKUP($A824,Economática!$A$3:$AI$823,30,FALSE)/E824<33.33%,VLOOKUP($A824,Economática!$A$3:$AI$823,30,FALSE)/E824>100%),1/0,VLOOKUP($A824,Economática!$A$3:$AI$823,30,FALSE)/E824))","v":""},"",{"$f":"IF($A824=\"\",\"\",IF(OR(VLOOKUP($A824,Economática!$A$3:$AI$823,25,FALSE)=0,VLOOKUP($A824,Economática!$A$3:$AI$823,25,FALSE)=\"-\"),1/0,VLOOKUP($A824,Economática!$A$3:$AI$823,25,FALSE)))","v":""},{"$f":"CONCATENATE(Economática!B802,\" \",Economática!C802)","v":" "}]
[{"$f":"IF(Economática!AG803=\"\",\"\",Economática!AG803)","v":""},{"$f":"IF($A825=\"\",\"\",VLOOKUP(VLOOKUP($A825,Economática!$A$3:$AI$823,6,FALSE),Correção!$B$16:$C$36,2,FALSE))","v":""},{"$f":"IF(Economática!B803=\"\",\"\",Economática!B803)","v":""},{"$f":"IF($A825=\"\",\"\",IF(OR(VLOOKUP($A825,Economática!$A$3:$AI$823,8,FALSE)=0,VLOOKUP($A825,Economática!$A$3:$AI$823,8,FALSE)=\"-\"),1/0,VLOOKUP($A825,Economática!$A$3:$AI$823,8,FALSE)))","v":""},{"$f":"IF(A825=\"\",\"\",IF(ISERROR(VLOOKUP(A825,Correção!$B$2:$G$13,9,FALSE)),VLOOKUP($A825,Economática!$A$3:$AI$823,9,FALSE),VLOOKUP(A825,Correção!$B$2:$G$13,9,FALSE)))","v":""},{"$f":"IF($A825=\"\",\"\",Economática!G803)","v":""},{"$f":"IF($A825=\"\",\"\",IF(OR(VLOOKUP($A825,Economática!$A$3:$AI$823,10,FALSE)=0,VLOOKUP($A825,Economática!$A$3:$AI$823,10,FALSE)=\"-\"),1/0,VLOOKUP($A825,Economática!$A$3:$AI$823,10,FALSE)))","v":""},{"$f":"IF($A825=\"\",\"\",IF(OR(VLOOKUP($A825,Economática!$A$3:$AI$823,11,FALSE)=0,VLOOKUP($A825,Economática!$A$3:$AI$823,11,FALSE)=\"-\"),1/0,VLOOKUP($A825,Economática!$A$3:$AI$823,11,FALSE)))","v":""},{"$f":"IF($A825=\"\",\"\",IF(OR(VLOOKUP($A825,Economática!$A$3:$AI$823,12,FALSE)=0,VLOOKUP($A825,Economática!$A$3:$AI$823,12,FALSE)=\"-\"),1/0,VLOOKUP($A825,Economática!$A$3:$AI$823,12,FALSE)))","v":""},{"$f":"IF($A825=\"\",\"\",IF(OR(VLOOKUP($A825,Economática!$A$3:$AI$823,13,FALSE)=0,VLOOKUP($A825,Economática!$A$3:$AI$823,13,FALSE)=\"-\"),1/0,VLOOKUP($A825,Economática!$A$3:$AI$823,13,FALSE)))","v":""},{"$f":"IF($A825=\"\",\"\",IF(OR(VLOOKUP($A825,Economática!$A$3:$AI$823,14,FALSE)=0,VLOOKUP($A825,Economática!$A$3:$AI$823,14,FALSE)=\"-\"),1/0,VLOOKUP($A825,Economática!$A$3:$AI$823,14,FALSE)))","v":""},{"$f":"IF($A825=\"\",\"\",IF(OR(VLOOKUP($A825,Economática!$A$3:$AI$823,15,FALSE)=0,VLOOKUP($A825,Economática!$A$3:$AI$823,15,FALSE)=\"-\"),1/0,VLOOKUP($A825,Economática!$A$3:$AI$823,15,FALSE)))","v":""},{"$f":"IF($A825=\"\",\"\",IF(OR(VLOOKUP($A825,Economática!$A$3:$AI$823,16,FALSE)=0,VLOOKUP($A825,Economática!$A$3:$AI$823,16,FALSE)=\"-\"),1/0,VLOOKUP($A825,Economática!$A$3:$AI$823,16,FALSE)))","v":""},{"$f":"IF($A825=\"\",\"\",IF(OR(VLOOKUP($A825,Economática!$A$3:$AI$823,17,FALSE)=0,VLOOKUP($A825,Economática!$A$3:$AI$823,17,FALSE)=\"-\"),1/0,VLOOKUP($A825,Economática!$A$3:$AI$823,17,FALSE)))","v":""},{"$f":"IF($A825=\"\",\"\",IF(OR(VLOOKUP($A825,Economática!$A$3:$AI$823,18,FALSE)=0,VLOOKUP($A825,Economática!$A$3:$AI$823,18,FALSE)=\"-\"),1/0,VLOOKUP($A825,Economática!$A$3:$AI$823,18,FALSE)))","v":""},{"$f":"IF($A825=\"\",\"\",IF(OR(VLOOKUP($A825,Economática!$A$3:$AI$823,19,FALSE)=0,VLOOKUP($A825,Economática!$A$3:$AI$823,19,FALSE)=\"-\"),1/0,VLOOKUP($A825,Economática!$A$3:$AI$823,19,FALSE)))","v":""},{"$f":"IF($A825=\"\",\"\",VLOOKUP($A825,Economática!$A$3:$AI$823,20,FALSE)/E825)","v":""},"","","",{"$f":"IF($A825=\"\",\"\",IF(OR(VLOOKUP($A825,Economática!$A$3:$AI$823,21,FALSE)/100=0,VLOOKUP($A825,Economática!$A$3:$AI$823,21,FALSE)/100=\"-\"),1/0,VLOOKUP($A825,Economática!$A$3:$AI$823,21,FALSE)/100))","v":""},{"$f":"IF($A825=\"\",\"\",IF(OR(VLOOKUP($A825,Economática!$A$3:$AI$823,22,FALSE)/100=0,VLOOKUP($A825,Economática!$A$3:$AI$823,22,FALSE)/100=\"-\"),1/0,VLOOKUP($A825,Economática!$A$3:$AI$823,22,FALSE)/100))","v":""},{"$f":"IF($A825=\"\",\"\",IF(OR(VLOOKUP($A825,Economática!$A$3:$AI$823,23,FALSE)=0,VLOOKUP($A825,Economática!$A$3:$AI$823,23,FALSE)=\"-\"),1/0,VLOOKUP($A825,Economática!$A$3:$AI$823,23,FALSE)))","v":""},{"$f":"IF($A825=\"\",\"\",IF(OR(VLOOKUP($A825,Economática!$A$3:$AI$823,24,FALSE)=0,VLOOKUP($A825,Economática!$A$3:$AI$823,24,FALSE)=\"-\"),1/0,VLOOKUP($A825,Economática!$A$3:$AI$823,24,FALSE)))","v":""},{"$f":"IF($A825=\"\",\"\",IF(OR(VLOOKUP($A825,Economática!$A$3:$AI$823,25,FALSE)=0,VLOOKUP($A825,Economática!$A$3:$AI$823,25,FALSE)=\"-\"),1/0,VLOOKUP($A825,Economática!$A$3:$AI$823,25,FALSE)))","v":""},{"$f":"IF($A825=\"\",\"\",IF(ISERROR((F825+VLOOKUP($A825,Economática!$A$3:$AI$823,26,FALSE))/Y825),(F825+VLOOKUP($A825,Economática!$A$3:$AI$823,26,FALSE))/Y825,(F825+VLOOKUP($A825,Economática!$A$3:$AI$823,26,FALSE))/Y825))","v":""},{"$f":"IF($A825=\"\",\"\",IF(OR(-VLOOKUP($A825,Economática!$A$3:$AI$823,27,FALSE)=0,-VLOOKUP($A825,Economática!$A$3:$AI$823,27,FALSE)=\"-\"),1/0,-VLOOKUP($A825,Economática!$A$3:$AI$823,27,FALSE)))","v":""},"",{"$f":"IF($A825=\"\",\"\",IF(OR(VLOOKUP($A825,Economática!$A$3:$AI$823,28,FALSE)=0,VLOOKUP($A825,Economática!$A$3:$AI$823,28,FALSE)=\"-\"),1/0,VLOOKUP($A825,Economática!$A$3:$AI$823,28,FALSE)))","v":""},{"$f":"IF($A825=\"\",\"\",IF(OR(VLOOKUP($A825,Economática!$A$3:$AI$823,29,FALSE)=0,VLOOKUP($A825,Economática!$A$3:$AI$823,29,FALSE)=\"-\"),1/0,VLOOKUP($A825,Economática!$A$3:$AI$823,29,FALSE)))","v":""},{"$f":"IF($A825=\"\",\"\",IF(OR(VLOOKUP($A825,Economática!$A$3:$AI$823,30,FALSE)/E825=0,VLOOKUP($A825,Economática!$A$3:$AI$823,30,FALSE)/E825=\"-\",VLOOKUP($A825,Economática!$A$3:$AI$823,30,FALSE)/E825<33.33%,VLOOKUP($A825,Economática!$A$3:$AI$823,30,FALSE)/E825>100%),1/0,VLOOKUP($A825,Economática!$A$3:$AI$823,30,FALSE)/E825))","v":""},"",{"$f":"IF($A825=\"\",\"\",IF(OR(VLOOKUP($A825,Economática!$A$3:$AI$823,25,FALSE)=0,VLOOKUP($A825,Economática!$A$3:$AI$823,25,FALSE)=\"-\"),1/0,VLOOKUP($A825,Economática!$A$3:$AI$823,25,FALSE)))","v":""},{"$f":"CONCATENATE(Economática!B803,\" \",Economática!C803)","v":" "}]
[{"$f":"IF(Economática!AG804=\"\",\"\",Economática!AG804)","v":""},{"$f":"IF($A826=\"\",\"\",VLOOKUP(VLOOKUP($A826,Economática!$A$3:$AI$823,6,FALSE),Correção!$B$16:$C$36,2,FALSE))","v":""},{"$f":"IF(Economática!B804=\"\",\"\",Economática!B804)","v":""},{"$f":"IF($A826=\"\",\"\",IF(OR(VLOOKUP($A826,Economática!$A$3:$AI$823,8,FALSE)=0,VLOOKUP($A826,Economática!$A$3:$AI$823,8,FALSE)=\"-\"),1/0,VLOOKUP($A826,Economática!$A$3:$AI$823,8,FALSE)))","v":""},{"$f":"IF(A826=\"\",\"\",IF(ISERROR(VLOOKUP(A826,Correção!$B$2:$G$13,9,FALSE)),VLOOKUP($A826,Economática!$A$3:$AI$823,9,FALSE),VLOOKUP(A826,Correção!$B$2:$G$13,9,FALSE)))","v":""},{"$f":"IF($A826=\"\",\"\",Economática!G804)","v":""},{"$f":"IF($A826=\"\",\"\",IF(OR(VLOOKUP($A826,Economática!$A$3:$AI$823,10,FALSE)=0,VLOOKUP($A826,Economática!$A$3:$AI$823,10,FALSE)=\"-\"),1/0,VLOOKUP($A826,Economática!$A$3:$AI$823,10,FALSE)))","v":""},{"$f":"IF($A826=\"\",\"\",IF(OR(VLOOKUP($A826,Economática!$A$3:$AI$823,11,FALSE)=0,VLOOKUP($A826,Economática!$A$3:$AI$823,11,FALSE)=\"-\"),1/0,VLOOKUP($A826,Economática!$A$3:$AI$823,11,FALSE)))","v":""},{"$f":"IF($A826=\"\",\"\",IF(OR(VLOOKUP($A826,Economática!$A$3:$AI$823,12,FALSE)=0,VLOOKUP($A826,Economática!$A$3:$AI$823,12,FALSE)=\"-\"),1/0,VLOOKUP($A826,Economática!$A$3:$AI$823,12,FALSE)))","v":""},{"$f":"IF($A826=\"\",\"\",IF(OR(VLOOKUP($A826,Economática!$A$3:$AI$823,13,FALSE)=0,VLOOKUP($A826,Economática!$A$3:$AI$823,13,FALSE)=\"-\"),1/0,VLOOKUP($A826,Economática!$A$3:$AI$823,13,FALSE)))","v":""},{"$f":"IF($A826=\"\",\"\",IF(OR(VLOOKUP($A826,Economática!$A$3:$AI$823,14,FALSE)=0,VLOOKUP($A826,Economática!$A$3:$AI$823,14,FALSE)=\"-\"),1/0,VLOOKUP($A826,Economática!$A$3:$AI$823,14,FALSE)))","v":""},{"$f":"IF($A826=\"\",\"\",IF(OR(VLOOKUP($A826,Economática!$A$3:$AI$823,15,FALSE)=0,VLOOKUP($A826,Economática!$A$3:$AI$823,15,FALSE)=\"-\"),1/0,VLOOKUP($A826,Economática!$A$3:$AI$823,15,FALSE)))","v":""},{"$f":"IF($A826=\"\",\"\",IF(OR(VLOOKUP($A826,Economática!$A$3:$AI$823,16,FALSE)=0,VLOOKUP($A826,Economática!$A$3:$AI$823,16,FALSE)=\"-\"),1/0,VLOOKUP($A826,Economática!$A$3:$AI$823,16,FALSE)))","v":""},{"$f":"IF($A826=\"\",\"\",IF(OR(VLOOKUP($A826,Economática!$A$3:$AI$823,17,FALSE)=0,VLOOKUP($A826,Economática!$A$3:$AI$823,17,FALSE)=\"-\"),1/0,VLOOKUP($A826,Economática!$A$3:$AI$823,17,FALSE)))","v":""},{"$f":"IF($A826=\"\",\"\",IF(OR(VLOOKUP($A826,Economática!$A$3:$AI$823,18,FALSE)=0,VLOOKUP($A826,Economática!$A$3:$AI$823,18,FALSE)=\"-\"),1/0,VLOOKUP($A826,Economática!$A$3:$AI$823,18,FALSE)))","v":""},{"$f":"IF($A826=\"\",\"\",IF(OR(VLOOKUP($A826,Economática!$A$3:$AI$823,19,FALSE)=0,VLOOKUP($A826,Economática!$A$3:$AI$823,19,FALSE)=\"-\"),1/0,VLOOKUP($A826,Economática!$A$3:$AI$823,19,FALSE)))","v":""},{"$f":"IF($A826=\"\",\"\",VLOOKUP($A826,Economática!$A$3:$AI$823,20,FALSE)/E826)","v":""},"","","",{"$f":"IF($A826=\"\",\"\",IF(OR(VLOOKUP($A826,Economática!$A$3:$AI$823,21,FALSE)/100=0,VLOOKUP($A826,Economática!$A$3:$AI$823,21,FALSE)/100=\"-\"),1/0,VLOOKUP($A826,Economática!$A$3:$AI$823,21,FALSE)/100))","v":""},{"$f":"IF($A826=\"\",\"\",IF(OR(VLOOKUP($A826,Economática!$A$3:$AI$823,22,FALSE)/100=0,VLOOKUP($A826,Economática!$A$3:$AI$823,22,FALSE)/100=\"-\"),1/0,VLOOKUP($A826,Economática!$A$3:$AI$823,22,FALSE)/100))","v":""},{"$f":"IF($A826=\"\",\"\",IF(OR(VLOOKUP($A826,Economática!$A$3:$AI$823,23,FALSE)=0,VLOOKUP($A826,Economática!$A$3:$AI$823,23,FALSE)=\"-\"),1/0,VLOOKUP($A826,Economática!$A$3:$AI$823,23,FALSE)))","v":""},{"$f":"IF($A826=\"\",\"\",IF(OR(VLOOKUP($A826,Economática!$A$3:$AI$823,24,FALSE)=0,VLOOKUP($A826,Economática!$A$3:$AI$823,24,FALSE)=\"-\"),1/0,VLOOKUP($A826,Economática!$A$3:$AI$823,24,FALSE)))","v":""},{"$f":"IF($A826=\"\",\"\",IF(OR(VLOOKUP($A826,Economática!$A$3:$AI$823,25,FALSE)=0,VLOOKUP($A826,Economática!$A$3:$AI$823,25,FALSE)=\"-\"),1/0,VLOOKUP($A826,Economática!$A$3:$AI$823,25,FALSE)))","v":""},{"$f":"IF($A826=\"\",\"\",IF(ISERROR((F826+VLOOKUP($A826,Economática!$A$3:$AI$823,26,FALSE))/Y826),(F826+VLOOKUP($A826,Economática!$A$3:$AI$823,26,FALSE))/Y826,(F826+VLOOKUP($A826,Economática!$A$3:$AI$823,26,FALSE))/Y826))","v":""},{"$f":"IF($A826=\"\",\"\",IF(OR(-VLOOKUP($A826,Economática!$A$3:$AI$823,27,FALSE)=0,-VLOOKUP($A826,Economática!$A$3:$AI$823,27,FALSE)=\"-\"),1/0,-VLOOKUP($A826,Economática!$A$3:$AI$823,27,FALSE)))","v":""},"",{"$f":"IF($A826=\"\",\"\",IF(OR(VLOOKUP($A826,Economática!$A$3:$AI$823,28,FALSE)=0,VLOOKUP($A826,Economática!$A$3:$AI$823,28,FALSE)=\"-\"),1/0,VLOOKUP($A826,Economática!$A$3:$AI$823,28,FALSE)))","v":""},{"$f":"IF($A826=\"\",\"\",IF(OR(VLOOKUP($A826,Economática!$A$3:$AI$823,29,FALSE)=0,VLOOKUP($A826,Economática!$A$3:$AI$823,29,FALSE)=\"-\"),1/0,VLOOKUP($A826,Economática!$A$3:$AI$823,29,FALSE)))","v":""},{"$f":"IF($A826=\"\",\"\",IF(OR(VLOOKUP($A826,Economática!$A$3:$AI$823,30,FALSE)/E826=0,VLOOKUP($A826,Economática!$A$3:$AI$823,30,FALSE)/E826=\"-\",VLOOKUP($A826,Economática!$A$3:$AI$823,30,FALSE)/E826<33.33%,VLOOKUP($A826,Economática!$A$3:$AI$823,30,FALSE)/E826>100%),1/0,VLOOKUP($A826,Economática!$A$3:$AI$823,30,FALSE)/E826))","v":""},"",{"$f":"IF($A826=\"\",\"\",IF(OR(VLOOKUP($A826,Economática!$A$3:$AI$823,25,FALSE)=0,VLOOKUP($A826,Economática!$A$3:$AI$823,25,FALSE)=\"-\"),1/0,VLOOKUP($A826,Economática!$A$3:$AI$823,25,FALSE)))","v":""},{"$f":"CONCATENATE(Economática!B804,\" \",Economática!C804)","v":" "}]
[{"$f":"IF(Economática!AG805=\"\",\"\",Economática!AG805)","v":""},{"$f":"IF($A827=\"\",\"\",VLOOKUP(VLOOKUP($A827,Economática!$A$3:$AI$823,6,FALSE),Correção!$B$16:$C$36,2,FALSE))","v":""},{"$f":"IF(Economática!B805=\"\",\"\",Economática!B805)","v":""},{"$f":"IF($A827=\"\",\"\",IF(OR(VLOOKUP($A827,Economática!$A$3:$AI$823,8,FALSE)=0,VLOOKUP($A827,Economática!$A$3:$AI$823,8,FALSE)=\"-\"),1/0,VLOOKUP($A827,Economática!$A$3:$AI$823,8,FALSE)))","v":""},{"$f":"IF(A827=\"\",\"\",IF(ISERROR(VLOOKUP(A827,Correção!$B$2:$G$13,9,FALSE)),VLOOKUP($A827,Economática!$A$3:$AI$823,9,FALSE),VLOOKUP(A827,Correção!$B$2:$G$13,9,FALSE)))","v":""},{"$f":"IF($A827=\"\",\"\",Economática!G805)","v":""},{"$f":"IF($A827=\"\",\"\",IF(OR(VLOOKUP($A827,Economática!$A$3:$AI$823,10,FALSE)=0,VLOOKUP($A827,Economática!$A$3:$AI$823,10,FALSE)=\"-\"),1/0,VLOOKUP($A827,Economática!$A$3:$AI$823,10,FALSE)))","v":""},{"$f":"IF($A827=\"\",\"\",IF(OR(VLOOKUP($A827,Economática!$A$3:$AI$823,11,FALSE)=0,VLOOKUP($A827,Economática!$A$3:$AI$823,11,FALSE)=\"-\"),1/0,VLOOKUP($A827,Economática!$A$3:$AI$823,11,FALSE)))","v":""},{"$f":"IF($A827=\"\",\"\",IF(OR(VLOOKUP($A827,Economática!$A$3:$AI$823,12,FALSE)=0,VLOOKUP($A827,Economática!$A$3:$AI$823,12,FALSE)=\"-\"),1/0,VLOOKUP($A827,Economática!$A$3:$AI$823,12,FALSE)))","v":""},{"$f":"IF($A827=\"\",\"\",IF(OR(VLOOKUP($A827,Economática!$A$3:$AI$823,13,FALSE)=0,VLOOKUP($A827,Economática!$A$3:$AI$823,13,FALSE)=\"-\"),1/0,VLOOKUP($A827,Economática!$A$3:$AI$823,13,FALSE)))","v":""},{"$f":"IF($A827=\"\",\"\",IF(OR(VLOOKUP($A827,Economática!$A$3:$AI$823,14,FALSE)=0,VLOOKUP($A827,Economática!$A$3:$AI$823,14,FALSE)=\"-\"),1/0,VLOOKUP($A827,Economática!$A$3:$AI$823,14,FALSE)))","v":""},{"$f":"IF($A827=\"\",\"\",IF(OR(VLOOKUP($A827,Economática!$A$3:$AI$823,15,FALSE)=0,VLOOKUP($A827,Economática!$A$3:$AI$823,15,FALSE)=\"-\"),1/0,VLOOKUP($A827,Economática!$A$3:$AI$823,15,FALSE)))","v":""},{"$f":"IF($A827=\"\",\"\",IF(OR(VLOOKUP($A827,Economática!$A$3:$AI$823,16,FALSE)=0,VLOOKUP($A827,Economática!$A$3:$AI$823,16,FALSE)=\"-\"),1/0,VLOOKUP($A827,Economática!$A$3:$AI$823,16,FALSE)))","v":""},{"$f":"IF($A827=\"\",\"\",IF(OR(VLOOKUP($A827,Economática!$A$3:$AI$823,17,FALSE)=0,VLOOKUP($A827,Economática!$A$3:$AI$823,17,FALSE)=\"-\"),1/0,VLOOKUP($A827,Economática!$A$3:$AI$823,17,FALSE)))","v":""},{"$f":"IF($A827=\"\",\"\",IF(OR(VLOOKUP($A827,Economática!$A$3:$AI$823,18,FALSE)=0,VLOOKUP($A827,Economática!$A$3:$AI$823,18,FALSE)=\"-\"),1/0,VLOOKUP($A827,Economática!$A$3:$AI$823,18,FALSE)))","v":""},{"$f":"IF($A827=\"\",\"\",IF(OR(VLOOKUP($A827,Economática!$A$3:$AI$823,19,FALSE)=0,VLOOKUP($A827,Economática!$A$3:$AI$823,19,FALSE)=\"-\"),1/0,VLOOKUP($A827,Economática!$A$3:$AI$823,19,FALSE)))","v":""},{"$f":"IF($A827=\"\",\"\",VLOOKUP($A827,Economática!$A$3:$AI$823,20,FALSE)/E827)","v":""},"","","",{"$f":"IF($A827=\"\",\"\",IF(OR(VLOOKUP($A827,Economática!$A$3:$AI$823,21,FALSE)/100=0,VLOOKUP($A827,Economática!$A$3:$AI$823,21,FALSE)/100=\"-\"),1/0,VLOOKUP($A827,Economática!$A$3:$AI$823,21,FALSE)/100))","v":""},{"$f":"IF($A827=\"\",\"\",IF(OR(VLOOKUP($A827,Economática!$A$3:$AI$823,22,FALSE)/100=0,VLOOKUP($A827,Economática!$A$3:$AI$823,22,FALSE)/100=\"-\"),1/0,VLOOKUP($A827,Economática!$A$3:$AI$823,22,FALSE)/100))","v":""},{"$f":"IF($A827=\"\",\"\",IF(OR(VLOOKUP($A827,Economática!$A$3:$AI$823,23,FALSE)=0,VLOOKUP($A827,Economática!$A$3:$AI$823,23,FALSE)=\"-\"),1/0,VLOOKUP($A827,Economática!$A$3:$AI$823,23,FALSE)))","v":""},{"$f":"IF($A827=\"\",\"\",IF(OR(VLOOKUP($A827,Economática!$A$3:$AI$823,24,FALSE)=0,VLOOKUP($A827,Economática!$A$3:$AI$823,24,FALSE)=\"-\"),1/0,VLOOKUP($A827,Economática!$A$3:$AI$823,24,FALSE)))","v":""},{"$f":"IF($A827=\"\",\"\",IF(OR(VLOOKUP($A827,Economática!$A$3:$AI$823,25,FALSE)=0,VLOOKUP($A827,Economática!$A$3:$AI$823,25,FALSE)=\"-\"),1/0,VLOOKUP($A827,Economática!$A$3:$AI$823,25,FALSE)))","v":""},{"$f":"IF($A827=\"\",\"\",IF(ISERROR((F827+VLOOKUP($A827,Economática!$A$3:$AI$823,26,FALSE))/Y827),(F827+VLOOKUP($A827,Economática!$A$3:$AI$823,26,FALSE))/Y827,(F827+VLOOKUP($A827,Economática!$A$3:$AI$823,26,FALSE))/Y827))","v":""},{"$f":"IF($A827=\"\",\"\",IF(OR(-VLOOKUP($A827,Economática!$A$3:$AI$823,27,FALSE)=0,-VLOOKUP($A827,Economática!$A$3:$AI$823,27,FALSE)=\"-\"),1/0,-VLOOKUP($A827,Economática!$A$3:$AI$823,27,FALSE)))","v":""},"",{"$f":"IF($A827=\"\",\"\",IF(OR(VLOOKUP($A827,Economática!$A$3:$AI$823,28,FALSE)=0,VLOOKUP($A827,Economática!$A$3:$AI$823,28,FALSE)=\"-\"),1/0,VLOOKUP($A827,Economática!$A$3:$AI$823,28,FALSE)))","v":""},{"$f":"IF($A827=\"\",\"\",IF(OR(VLOOKUP($A827,Economática!$A$3:$AI$823,29,FALSE)=0,VLOOKUP($A827,Economática!$A$3:$AI$823,29,FALSE)=\"-\"),1/0,VLOOKUP($A827,Economática!$A$3:$AI$823,29,FALSE)))","v":""},{"$f":"IF($A827=\"\",\"\",IF(OR(VLOOKUP($A827,Economática!$A$3:$AI$823,30,FALSE)/E827=0,VLOOKUP($A827,Economática!$A$3:$AI$823,30,FALSE)/E827=\"-\",VLOOKUP($A827,Economática!$A$3:$AI$823,30,FALSE)/E827<33.33%,VLOOKUP($A827,Economática!$A$3:$AI$823,30,FALSE)/E827>100%),1/0,VLOOKUP($A827,Economática!$A$3:$AI$823,30,FALSE)/E827))","v":""},"",{"$f":"IF($A827=\"\",\"\",IF(OR(VLOOKUP($A827,Economática!$A$3:$AI$823,25,FALSE)=0,VLOOKUP($A827,Economática!$A$3:$AI$823,25,FALSE)=\"-\"),1/0,VLOOKUP($A827,Economática!$A$3:$AI$823,25,FALSE)))","v":""},{"$f":"CONCATENATE(Economática!B805,\" \",Economática!C805)","v":" "}]
[{"$f":"IF(Economática!AG806=\"\",\"\",Economática!AG806)","v":""},{"$f":"IF($A828=\"\",\"\",VLOOKUP(VLOOKUP($A828,Economática!$A$3:$AI$823,6,FALSE),Correção!$B$16:$C$36,2,FALSE))","v":""},{"$f":"IF(Economática!B806=\"\",\"\",Economática!B806)","v":""},{"$f":"IF($A828=\"\",\"\",IF(OR(VLOOKUP($A828,Economática!$A$3:$AI$823,8,FALSE)=0,VLOOKUP($A828,Economática!$A$3:$AI$823,8,FALSE)=\"-\"),1/0,VLOOKUP($A828,Economática!$A$3:$AI$823,8,FALSE)))","v":""},{"$f":"IF(A828=\"\",\"\",IF(ISERROR(VLOOKUP(A828,Correção!$B$2:$G$13,9,FALSE)),VLOOKUP($A828,Economática!$A$3:$AI$823,9,FALSE),VLOOKUP(A828,Correção!$B$2:$G$13,9,FALSE)))","v":""},{"$f":"IF($A828=\"\",\"\",Economática!G806)","v":""},{"$f":"IF($A828=\"\",\"\",IF(OR(VLOOKUP($A828,Economática!$A$3:$AI$823,10,FALSE)=0,VLOOKUP($A828,Economática!$A$3:$AI$823,10,FALSE)=\"-\"),1/0,VLOOKUP($A828,Economática!$A$3:$AI$823,10,FALSE)))","v":""},{"$f":"IF($A828=\"\",\"\",IF(OR(VLOOKUP($A828,Economática!$A$3:$AI$823,11,FALSE)=0,VLOOKUP($A828,Economática!$A$3:$AI$823,11,FALSE)=\"-\"),1/0,VLOOKUP($A828,Economática!$A$3:$AI$823,11,FALSE)))","v":""},{"$f":"IF($A828=\"\",\"\",IF(OR(VLOOKUP($A828,Economática!$A$3:$AI$823,12,FALSE)=0,VLOOKUP($A828,Economática!$A$3:$AI$823,12,FALSE)=\"-\"),1/0,VLOOKUP($A828,Economática!$A$3:$AI$823,12,FALSE)))","v":""},{"$f":"IF($A828=\"\",\"\",IF(OR(VLOOKUP($A828,Economática!$A$3:$AI$823,13,FALSE)=0,VLOOKUP($A828,Economática!$A$3:$AI$823,13,FALSE)=\"-\"),1/0,VLOOKUP($A828,Economática!$A$3:$AI$823,13,FALSE)))","v":""},{"$f":"IF($A828=\"\",\"\",IF(OR(VLOOKUP($A828,Economática!$A$3:$AI$823,14,FALSE)=0,VLOOKUP($A828,Economática!$A$3:$AI$823,14,FALSE)=\"-\"),1/0,VLOOKUP($A828,Economática!$A$3:$AI$823,14,FALSE)))","v":""},{"$f":"IF($A828=\"\",\"\",IF(OR(VLOOKUP($A828,Economática!$A$3:$AI$823,15,FALSE)=0,VLOOKUP($A828,Economática!$A$3:$AI$823,15,FALSE)=\"-\"),1/0,VLOOKUP($A828,Economática!$A$3:$AI$823,15,FALSE)))","v":""},{"$f":"IF($A828=\"\",\"\",IF(OR(VLOOKUP($A828,Economática!$A$3:$AI$823,16,FALSE)=0,VLOOKUP($A828,Economática!$A$3:$AI$823,16,FALSE)=\"-\"),1/0,VLOOKUP($A828,Economática!$A$3:$AI$823,16,FALSE)))","v":""},{"$f":"IF($A828=\"\",\"\",IF(OR(VLOOKUP($A828,Economática!$A$3:$AI$823,17,FALSE)=0,VLOOKUP($A828,Economática!$A$3:$AI$823,17,FALSE)=\"-\"),1/0,VLOOKUP($A828,Economática!$A$3:$AI$823,17,FALSE)))","v":""},{"$f":"IF($A828=\"\",\"\",IF(OR(VLOOKUP($A828,Economática!$A$3:$AI$823,18,FALSE)=0,VLOOKUP($A828,Economática!$A$3:$AI$823,18,FALSE)=\"-\"),1/0,VLOOKUP($A828,Economática!$A$3:$AI$823,18,FALSE)))","v":""},{"$f":"IF($A828=\"\",\"\",IF(OR(VLOOKUP($A828,Economática!$A$3:$AI$823,19,FALSE)=0,VLOOKUP($A828,Economática!$A$3:$AI$823,19,FALSE)=\"-\"),1/0,VLOOKUP($A828,Economática!$A$3:$AI$823,19,FALSE)))","v":""},{"$f":"IF($A828=\"\",\"\",VLOOKUP($A828,Economática!$A$3:$AI$823,20,FALSE)/E828)","v":""},"","","",{"$f":"IF($A828=\"\",\"\",IF(OR(VLOOKUP($A828,Economática!$A$3:$AI$823,21,FALSE)/100=0,VLOOKUP($A828,Economática!$A$3:$AI$823,21,FALSE)/100=\"-\"),1/0,VLOOKUP($A828,Economática!$A$3:$AI$823,21,FALSE)/100))","v":""},{"$f":"IF($A828=\"\",\"\",IF(OR(VLOOKUP($A828,Economática!$A$3:$AI$823,22,FALSE)/100=0,VLOOKUP($A828,Economática!$A$3:$AI$823,22,FALSE)/100=\"-\"),1/0,VLOOKUP($A828,Economática!$A$3:$AI$823,22,FALSE)/100))","v":""},{"$f":"IF($A828=\"\",\"\",IF(OR(VLOOKUP($A828,Economática!$A$3:$AI$823,23,FALSE)=0,VLOOKUP($A828,Economática!$A$3:$AI$823,23,FALSE)=\"-\"),1/0,VLOOKUP($A828,Economática!$A$3:$AI$823,23,FALSE)))","v":""},{"$f":"IF($A828=\"\",\"\",IF(OR(VLOOKUP($A828,Economática!$A$3:$AI$823,24,FALSE)=0,VLOOKUP($A828,Economática!$A$3:$AI$823,24,FALSE)=\"-\"),1/0,VLOOKUP($A828,Economática!$A$3:$AI$823,24,FALSE)))","v":""},{"$f":"IF($A828=\"\",\"\",IF(OR(VLOOKUP($A828,Economática!$A$3:$AI$823,25,FALSE)=0,VLOOKUP($A828,Economática!$A$3:$AI$823,25,FALSE)=\"-\"),1/0,VLOOKUP($A828,Economática!$A$3:$AI$823,25,FALSE)))","v":""},{"$f":"IF($A828=\"\",\"\",IF(ISERROR((F828+VLOOKUP($A828,Economática!$A$3:$AI$823,26,FALSE))/Y828),(F828+VLOOKUP($A828,Economática!$A$3:$AI$823,26,FALSE))/Y828,(F828+VLOOKUP($A828,Economática!$A$3:$AI$823,26,FALSE))/Y828))","v":""},{"$f":"IF($A828=\"\",\"\",IF(OR(-VLOOKUP($A828,Economática!$A$3:$AI$823,27,FALSE)=0,-VLOOKUP($A828,Economática!$A$3:$AI$823,27,FALSE)=\"-\"),1/0,-VLOOKUP($A828,Economática!$A$3:$AI$823,27,FALSE)))","v":""},"",{"$f":"IF($A828=\"\",\"\",IF(OR(VLOOKUP($A828,Economática!$A$3:$AI$823,28,FALSE)=0,VLOOKUP($A828,Economática!$A$3:$AI$823,28,FALSE)=\"-\"),1/0,VLOOKUP($A828,Economática!$A$3:$AI$823,28,FALSE)))","v":""},{"$f":"IF($A828=\"\",\"\",IF(OR(VLOOKUP($A828,Economática!$A$3:$AI$823,29,FALSE)=0,VLOOKUP($A828,Economática!$A$3:$AI$823,29,FALSE)=\"-\"),1/0,VLOOKUP($A828,Economática!$A$3:$AI$823,29,FALSE)))","v":""},{"$f":"IF($A828=\"\",\"\",IF(OR(VLOOKUP($A828,Economática!$A$3:$AI$823,30,FALSE)/E828=0,VLOOKUP($A828,Economática!$A$3:$AI$823,30,FALSE)/E828=\"-\",VLOOKUP($A828,Economática!$A$3:$AI$823,30,FALSE)/E828<33.33%,VLOOKUP($A828,Economática!$A$3:$AI$823,30,FALSE)/E828>100%),1/0,VLOOKUP($A828,Economática!$A$3:$AI$823,30,FALSE)/E828))","v":""},"",{"$f":"IF($A828=\"\",\"\",IF(OR(VLOOKUP($A828,Economática!$A$3:$AI$823,25,FALSE)=0,VLOOKUP($A828,Economática!$A$3:$AI$823,25,FALSE)=\"-\"),1/0,VLOOKUP($A828,Economática!$A$3:$AI$823,25,FALSE)))","v":""},{"$f":"CONCATENATE(Economática!B806,\" \",Economática!C806)","v":" "}]
[{"$f":"IF(Economática!AG807=\"\",\"\",Economática!AG807)","v":""},{"$f":"IF($A829=\"\",\"\",VLOOKUP(VLOOKUP($A829,Economática!$A$3:$AI$823,6,FALSE),Correção!$B$16:$C$36,2,FALSE))","v":""},{"$f":"IF(Economática!B807=\"\",\"\",Economática!B807)","v":""},{"$f":"IF($A829=\"\",\"\",IF(OR(VLOOKUP($A829,Economática!$A$3:$AI$823,8,FALSE)=0,VLOOKUP($A829,Economática!$A$3:$AI$823,8,FALSE)=\"-\"),1/0,VLOOKUP($A829,Economática!$A$3:$AI$823,8,FALSE)))","v":""},{"$f":"IF(A829=\"\",\"\",IF(ISERROR(VLOOKUP(A829,Correção!$B$2:$G$13,9,FALSE)),VLOOKUP($A829,Economática!$A$3:$AI$823,9,FALSE),VLOOKUP(A829,Correção!$B$2:$G$13,9,FALSE)))","v":""},{"$f":"IF($A829=\"\",\"\",Economática!G807)","v":""},{"$f":"IF($A829=\"\",\"\",IF(OR(VLOOKUP($A829,Economática!$A$3:$AI$823,10,FALSE)=0,VLOOKUP($A829,Economática!$A$3:$AI$823,10,FALSE)=\"-\"),1/0,VLOOKUP($A829,Economática!$A$3:$AI$823,10,FALSE)))","v":""},{"$f":"IF($A829=\"\",\"\",IF(OR(VLOOKUP($A829,Economática!$A$3:$AI$823,11,FALSE)=0,VLOOKUP($A829,Economática!$A$3:$AI$823,11,FALSE)=\"-\"),1/0,VLOOKUP($A829,Economática!$A$3:$AI$823,11,FALSE)))","v":""},{"$f":"IF($A829=\"\",\"\",IF(OR(VLOOKUP($A829,Economática!$A$3:$AI$823,12,FALSE)=0,VLOOKUP($A829,Economática!$A$3:$AI$823,12,FALSE)=\"-\"),1/0,VLOOKUP($A829,Economática!$A$3:$AI$823,12,FALSE)))","v":""},{"$f":"IF($A829=\"\",\"\",IF(OR(VLOOKUP($A829,Economática!$A$3:$AI$823,13,FALSE)=0,VLOOKUP($A829,Economática!$A$3:$AI$823,13,FALSE)=\"-\"),1/0,VLOOKUP($A829,Economática!$A$3:$AI$823,13,FALSE)))","v":""},{"$f":"IF($A829=\"\",\"\",IF(OR(VLOOKUP($A829,Economática!$A$3:$AI$823,14,FALSE)=0,VLOOKUP($A829,Economática!$A$3:$AI$823,14,FALSE)=\"-\"),1/0,VLOOKUP($A829,Economática!$A$3:$AI$823,14,FALSE)))","v":""},{"$f":"IF($A829=\"\",\"\",IF(OR(VLOOKUP($A829,Economática!$A$3:$AI$823,15,FALSE)=0,VLOOKUP($A829,Economática!$A$3:$AI$823,15,FALSE)=\"-\"),1/0,VLOOKUP($A829,Economática!$A$3:$AI$823,15,FALSE)))","v":""},{"$f":"IF($A829=\"\",\"\",IF(OR(VLOOKUP($A829,Economática!$A$3:$AI$823,16,FALSE)=0,VLOOKUP($A829,Economática!$A$3:$AI$823,16,FALSE)=\"-\"),1/0,VLOOKUP($A829,Economática!$A$3:$AI$823,16,FALSE)))","v":""},{"$f":"IF($A829=\"\",\"\",IF(OR(VLOOKUP($A829,Economática!$A$3:$AI$823,17,FALSE)=0,VLOOKUP($A829,Economática!$A$3:$AI$823,17,FALSE)=\"-\"),1/0,VLOOKUP($A829,Economática!$A$3:$AI$823,17,FALSE)))","v":""},{"$f":"IF($A829=\"\",\"\",IF(OR(VLOOKUP($A829,Economática!$A$3:$AI$823,18,FALSE)=0,VLOOKUP($A829,Economática!$A$3:$AI$823,18,FALSE)=\"-\"),1/0,VLOOKUP($A829,Economática!$A$3:$AI$823,18,FALSE)))","v":""},{"$f":"IF($A829=\"\",\"\",IF(OR(VLOOKUP($A829,Economática!$A$3:$AI$823,19,FALSE)=0,VLOOKUP($A829,Economática!$A$3:$AI$823,19,FALSE)=\"-\"),1/0,VLOOKUP($A829,Economática!$A$3:$AI$823,19,FALSE)))","v":""},{"$f":"IF($A829=\"\",\"\",VLOOKUP($A829,Economática!$A$3:$AI$823,20,FALSE)/E829)","v":""},"","","",{"$f":"IF($A829=\"\",\"\",IF(OR(VLOOKUP($A829,Economática!$A$3:$AI$823,21,FALSE)/100=0,VLOOKUP($A829,Economática!$A$3:$AI$823,21,FALSE)/100=\"-\"),1/0,VLOOKUP($A829,Economática!$A$3:$AI$823,21,FALSE)/100))","v":""},{"$f":"IF($A829=\"\",\"\",IF(OR(VLOOKUP($A829,Economática!$A$3:$AI$823,22,FALSE)/100=0,VLOOKUP($A829,Economática!$A$3:$AI$823,22,FALSE)/100=\"-\"),1/0,VLOOKUP($A829,Economática!$A$3:$AI$823,22,FALSE)/100))","v":""},{"$f":"IF($A829=\"\",\"\",IF(OR(VLOOKUP($A829,Economática!$A$3:$AI$823,23,FALSE)=0,VLOOKUP($A829,Economática!$A$3:$AI$823,23,FALSE)=\"-\"),1/0,VLOOKUP($A829,Economática!$A$3:$AI$823,23,FALSE)))","v":""},{"$f":"IF($A829=\"\",\"\",IF(OR(VLOOKUP($A829,Economática!$A$3:$AI$823,24,FALSE)=0,VLOOKUP($A829,Economática!$A$3:$AI$823,24,FALSE)=\"-\"),1/0,VLOOKUP($A829,Economática!$A$3:$AI$823,24,FALSE)))","v":""},{"$f":"IF($A829=\"\",\"\",IF(OR(VLOOKUP($A829,Economática!$A$3:$AI$823,25,FALSE)=0,VLOOKUP($A829,Economática!$A$3:$AI$823,25,FALSE)=\"-\"),1/0,VLOOKUP($A829,Economática!$A$3:$AI$823,25,FALSE)))","v":""},{"$f":"IF($A829=\"\",\"\",IF(ISERROR((F829+VLOOKUP($A829,Economática!$A$3:$AI$823,26,FALSE))/Y829),(F829+VLOOKUP($A829,Economática!$A$3:$AI$823,26,FALSE))/Y829,(F829+VLOOKUP($A829,Economática!$A$3:$AI$823,26,FALSE))/Y829))","v":""},{"$f":"IF($A829=\"\",\"\",IF(OR(-VLOOKUP($A829,Economática!$A$3:$AI$823,27,FALSE)=0,-VLOOKUP($A829,Economática!$A$3:$AI$823,27,FALSE)=\"-\"),1/0,-VLOOKUP($A829,Economática!$A$3:$AI$823,27,FALSE)))","v":""},"",{"$f":"IF($A829=\"\",\"\",IF(OR(VLOOKUP($A829,Economática!$A$3:$AI$823,28,FALSE)=0,VLOOKUP($A829,Economática!$A$3:$AI$823,28,FALSE)=\"-\"),1/0,VLOOKUP($A829,Economática!$A$3:$AI$823,28,FALSE)))","v":""},{"$f":"IF($A829=\"\",\"\",IF(OR(VLOOKUP($A829,Economática!$A$3:$AI$823,29,FALSE)=0,VLOOKUP($A829,Economática!$A$3:$AI$823,29,FALSE)=\"-\"),1/0,VLOOKUP($A829,Economática!$A$3:$AI$823,29,FALSE)))","v":""},{"$f":"IF($A829=\"\",\"\",IF(OR(VLOOKUP($A829,Economática!$A$3:$AI$823,30,FALSE)/E829=0,VLOOKUP($A829,Economática!$A$3:$AI$823,30,FALSE)/E829=\"-\",VLOOKUP($A829,Economática!$A$3:$AI$823,30,FALSE)/E829<33.33%,VLOOKUP($A829,Economática!$A$3:$AI$823,30,FALSE)/E829>100%),1/0,VLOOKUP($A829,Economática!$A$3:$AI$823,30,FALSE)/E829))","v":""},"",{"$f":"IF($A829=\"\",\"\",IF(OR(VLOOKUP($A829,Economática!$A$3:$AI$823,25,FALSE)=0,VLOOKUP($A829,Economática!$A$3:$AI$823,25,FALSE)=\"-\"),1/0,VLOOKUP($A829,Economática!$A$3:$AI$823,25,FALSE)))","v":""},{"$f":"CONCATENATE(Economática!B807,\" \",Economática!C807)","v":" "}]
[{"$f":"IF(Economática!AG808=\"\",\"\",Economática!AG808)","v":""},{"$f":"IF($A830=\"\",\"\",VLOOKUP(VLOOKUP($A830,Economática!$A$3:$AI$823,6,FALSE),Correção!$B$16:$C$36,2,FALSE))","v":""},{"$f":"IF(Economática!B808=\"\",\"\",Economática!B808)","v":""},{"$f":"IF($A830=\"\",\"\",IF(OR(VLOOKUP($A830,Economática!$A$3:$AI$823,8,FALSE)=0,VLOOKUP($A830,Economática!$A$3:$AI$823,8,FALSE)=\"-\"),1/0,VLOOKUP($A830,Economática!$A$3:$AI$823,8,FALSE)))","v":""},{"$f":"IF(A830=\"\",\"\",IF(ISERROR(VLOOKUP(A830,Correção!$B$2:$G$13,9,FALSE)),VLOOKUP($A830,Economática!$A$3:$AI$823,9,FALSE),VLOOKUP(A830,Correção!$B$2:$G$13,9,FALSE)))","v":""},{"$f":"IF($A830=\"\",\"\",Economática!G808)","v":""},{"$f":"IF($A830=\"\",\"\",IF(OR(VLOOKUP($A830,Economática!$A$3:$AI$823,10,FALSE)=0,VLOOKUP($A830,Economática!$A$3:$AI$823,10,FALSE)=\"-\"),1/0,VLOOKUP($A830,Economática!$A$3:$AI$823,10,FALSE)))","v":""},{"$f":"IF($A830=\"\",\"\",IF(OR(VLOOKUP($A830,Economática!$A$3:$AI$823,11,FALSE)=0,VLOOKUP($A830,Economática!$A$3:$AI$823,11,FALSE)=\"-\"),1/0,VLOOKUP($A830,Economática!$A$3:$AI$823,11,FALSE)))","v":""},{"$f":"IF($A830=\"\",\"\",IF(OR(VLOOKUP($A830,Economática!$A$3:$AI$823,12,FALSE)=0,VLOOKUP($A830,Economática!$A$3:$AI$823,12,FALSE)=\"-\"),1/0,VLOOKUP($A830,Economática!$A$3:$AI$823,12,FALSE)))","v":""},{"$f":"IF($A830=\"\",\"\",IF(OR(VLOOKUP($A830,Economática!$A$3:$AI$823,13,FALSE)=0,VLOOKUP($A830,Economática!$A$3:$AI$823,13,FALSE)=\"-\"),1/0,VLOOKUP($A830,Economática!$A$3:$AI$823,13,FALSE)))","v":""},{"$f":"IF($A830=\"\",\"\",IF(OR(VLOOKUP($A830,Economática!$A$3:$AI$823,14,FALSE)=0,VLOOKUP($A830,Economática!$A$3:$AI$823,14,FALSE)=\"-\"),1/0,VLOOKUP($A830,Economática!$A$3:$AI$823,14,FALSE)))","v":""},{"$f":"IF($A830=\"\",\"\",IF(OR(VLOOKUP($A830,Economática!$A$3:$AI$823,15,FALSE)=0,VLOOKUP($A830,Economática!$A$3:$AI$823,15,FALSE)=\"-\"),1/0,VLOOKUP($A830,Economática!$A$3:$AI$823,15,FALSE)))","v":""},{"$f":"IF($A830=\"\",\"\",IF(OR(VLOOKUP($A830,Economática!$A$3:$AI$823,16,FALSE)=0,VLOOKUP($A830,Economática!$A$3:$AI$823,16,FALSE)=\"-\"),1/0,VLOOKUP($A830,Economática!$A$3:$AI$823,16,FALSE)))","v":""},{"$f":"IF($A830=\"\",\"\",IF(OR(VLOOKUP($A830,Economática!$A$3:$AI$823,17,FALSE)=0,VLOOKUP($A830,Economática!$A$3:$AI$823,17,FALSE)=\"-\"),1/0,VLOOKUP($A830,Economática!$A$3:$AI$823,17,FALSE)))","v":""},{"$f":"IF($A830=\"\",\"\",IF(OR(VLOOKUP($A830,Economática!$A$3:$AI$823,18,FALSE)=0,VLOOKUP($A830,Economática!$A$3:$AI$823,18,FALSE)=\"-\"),1/0,VLOOKUP($A830,Economática!$A$3:$AI$823,18,FALSE)))","v":""},{"$f":"IF($A830=\"\",\"\",IF(OR(VLOOKUP($A830,Economática!$A$3:$AI$823,19,FALSE)=0,VLOOKUP($A830,Economática!$A$3:$AI$823,19,FALSE)=\"-\"),1/0,VLOOKUP($A830,Economática!$A$3:$AI$823,19,FALSE)))","v":""},{"$f":"IF($A830=\"\",\"\",VLOOKUP($A830,Economática!$A$3:$AI$823,20,FALSE)/E830)","v":""},"","","",{"$f":"IF($A830=\"\",\"\",IF(OR(VLOOKUP($A830,Economática!$A$3:$AI$823,21,FALSE)/100=0,VLOOKUP($A830,Economática!$A$3:$AI$823,21,FALSE)/100=\"-\"),1/0,VLOOKUP($A830,Economática!$A$3:$AI$823,21,FALSE)/100))","v":""},{"$f":"IF($A830=\"\",\"\",IF(OR(VLOOKUP($A830,Economática!$A$3:$AI$823,22,FALSE)/100=0,VLOOKUP($A830,Economática!$A$3:$AI$823,22,FALSE)/100=\"-\"),1/0,VLOOKUP($A830,Economática!$A$3:$AI$823,22,FALSE)/100))","v":""},{"$f":"IF($A830=\"\",\"\",IF(OR(VLOOKUP($A830,Economática!$A$3:$AI$823,23,FALSE)=0,VLOOKUP($A830,Economática!$A$3:$AI$823,23,FALSE)=\"-\"),1/0,VLOOKUP($A830,Economática!$A$3:$AI$823,23,FALSE)))","v":""},{"$f":"IF($A830=\"\",\"\",IF(OR(VLOOKUP($A830,Economática!$A$3:$AI$823,24,FALSE)=0,VLOOKUP($A830,Economática!$A$3:$AI$823,24,FALSE)=\"-\"),1/0,VLOOKUP($A830,Economática!$A$3:$AI$823,24,FALSE)))","v":""},{"$f":"IF($A830=\"\",\"\",IF(OR(VLOOKUP($A830,Economática!$A$3:$AI$823,25,FALSE)=0,VLOOKUP($A830,Economática!$A$3:$AI$823,25,FALSE)=\"-\"),1/0,VLOOKUP($A830,Economática!$A$3:$AI$823,25,FALSE)))","v":""},{"$f":"IF($A830=\"\",\"\",IF(ISERROR((F830+VLOOKUP($A830,Economática!$A$3:$AI$823,26,FALSE))/Y830),(F830+VLOOKUP($A830,Economática!$A$3:$AI$823,26,FALSE))/Y830,(F830+VLOOKUP($A830,Economática!$A$3:$AI$823,26,FALSE))/Y830))","v":""},{"$f":"IF($A830=\"\",\"\",IF(OR(-VLOOKUP($A830,Economática!$A$3:$AI$823,27,FALSE)=0,-VLOOKUP($A830,Economática!$A$3:$AI$823,27,FALSE)=\"-\"),1/0,-VLOOKUP($A830,Economática!$A$3:$AI$823,27,FALSE)))","v":""},"",{"$f":"IF($A830=\"\",\"\",IF(OR(VLOOKUP($A830,Economática!$A$3:$AI$823,28,FALSE)=0,VLOOKUP($A830,Economática!$A$3:$AI$823,28,FALSE)=\"-\"),1/0,VLOOKUP($A830,Economática!$A$3:$AI$823,28,FALSE)))","v":""},{"$f":"IF($A830=\"\",\"\",IF(OR(VLOOKUP($A830,Economática!$A$3:$AI$823,29,FALSE)=0,VLOOKUP($A830,Economática!$A$3:$AI$823,29,FALSE)=\"-\"),1/0,VLOOKUP($A830,Economática!$A$3:$AI$823,29,FALSE)))","v":""},{"$f":"IF($A830=\"\",\"\",IF(OR(VLOOKUP($A830,Economática!$A$3:$AI$823,30,FALSE)/E830=0,VLOOKUP($A830,Economática!$A$3:$AI$823,30,FALSE)/E830=\"-\",VLOOKUP($A830,Economática!$A$3:$AI$823,30,FALSE)/E830<33.33%,VLOOKUP($A830,Economática!$A$3:$AI$823,30,FALSE)/E830>100%),1/0,VLOOKUP($A830,Economática!$A$3:$AI$823,30,FALSE)/E830))","v":""},"",{"$f":"IF($A830=\"\",\"\",IF(OR(VLOOKUP($A830,Economática!$A$3:$AI$823,25,FALSE)=0,VLOOKUP($A830,Economática!$A$3:$AI$823,25,FALSE)=\"-\"),1/0,VLOOKUP($A830,Economática!$A$3:$AI$823,25,FALSE)))","v":""},{"$f":"CONCATENATE(Economática!B808,\" \",Economática!C808)","v":" "}]
[{"$f":"IF(Economática!AG809=\"\",\"\",Economática!AG809)","v":""},{"$f":"IF($A831=\"\",\"\",VLOOKUP(VLOOKUP($A831,Economática!$A$3:$AI$823,6,FALSE),Correção!$B$16:$C$36,2,FALSE))","v":""},{"$f":"IF(Economática!B809=\"\",\"\",Economática!B809)","v":""},{"$f":"IF($A831=\"\",\"\",IF(OR(VLOOKUP($A831,Economática!$A$3:$AI$823,8,FALSE)=0,VLOOKUP($A831,Economática!$A$3:$AI$823,8,FALSE)=\"-\"),1/0,VLOOKUP($A831,Economática!$A$3:$AI$823,8,FALSE)))","v":""},{"$f":"IF(A831=\"\",\"\",IF(ISERROR(VLOOKUP(A831,Correção!$B$2:$G$13,9,FALSE)),VLOOKUP($A831,Economática!$A$3:$AI$823,9,FALSE),VLOOKUP(A831,Correção!$B$2:$G$13,9,FALSE)))","v":""},{"$f":"IF($A831=\"\",\"\",Economática!G809)","v":""},{"$f":"IF($A831=\"\",\"\",IF(OR(VLOOKUP($A831,Economática!$A$3:$AI$823,10,FALSE)=0,VLOOKUP($A831,Economática!$A$3:$AI$823,10,FALSE)=\"-\"),1/0,VLOOKUP($A831,Economática!$A$3:$AI$823,10,FALSE)))","v":""},{"$f":"IF($A831=\"\",\"\",IF(OR(VLOOKUP($A831,Economática!$A$3:$AI$823,11,FALSE)=0,VLOOKUP($A831,Economática!$A$3:$AI$823,11,FALSE)=\"-\"),1/0,VLOOKUP($A831,Economática!$A$3:$AI$823,11,FALSE)))","v":""},{"$f":"IF($A831=\"\",\"\",IF(OR(VLOOKUP($A831,Economática!$A$3:$AI$823,12,FALSE)=0,VLOOKUP($A831,Economática!$A$3:$AI$823,12,FALSE)=\"-\"),1/0,VLOOKUP($A831,Economática!$A$3:$AI$823,12,FALSE)))","v":""},{"$f":"IF($A831=\"\",\"\",IF(OR(VLOOKUP($A831,Economática!$A$3:$AI$823,13,FALSE)=0,VLOOKUP($A831,Economática!$A$3:$AI$823,13,FALSE)=\"-\"),1/0,VLOOKUP($A831,Economática!$A$3:$AI$823,13,FALSE)))","v":""},{"$f":"IF($A831=\"\",\"\",IF(OR(VLOOKUP($A831,Economática!$A$3:$AI$823,14,FALSE)=0,VLOOKUP($A831,Economática!$A$3:$AI$823,14,FALSE)=\"-\"),1/0,VLOOKUP($A831,Economática!$A$3:$AI$823,14,FALSE)))","v":""},{"$f":"IF($A831=\"\",\"\",IF(OR(VLOOKUP($A831,Economática!$A$3:$AI$823,15,FALSE)=0,VLOOKUP($A831,Economática!$A$3:$AI$823,15,FALSE)=\"-\"),1/0,VLOOKUP($A831,Economática!$A$3:$AI$823,15,FALSE)))","v":""},{"$f":"IF($A831=\"\",\"\",IF(OR(VLOOKUP($A831,Economática!$A$3:$AI$823,16,FALSE)=0,VLOOKUP($A831,Economática!$A$3:$AI$823,16,FALSE)=\"-\"),1/0,VLOOKUP($A831,Economática!$A$3:$AI$823,16,FALSE)))","v":""},{"$f":"IF($A831=\"\",\"\",IF(OR(VLOOKUP($A831,Economática!$A$3:$AI$823,17,FALSE)=0,VLOOKUP($A831,Economática!$A$3:$AI$823,17,FALSE)=\"-\"),1/0,VLOOKUP($A831,Economática!$A$3:$AI$823,17,FALSE)))","v":""},{"$f":"IF($A831=\"\",\"\",IF(OR(VLOOKUP($A831,Economática!$A$3:$AI$823,18,FALSE)=0,VLOOKUP($A831,Economática!$A$3:$AI$823,18,FALSE)=\"-\"),1/0,VLOOKUP($A831,Economática!$A$3:$AI$823,18,FALSE)))","v":""},{"$f":"IF($A831=\"\",\"\",IF(OR(VLOOKUP($A831,Economática!$A$3:$AI$823,19,FALSE)=0,VLOOKUP($A831,Economática!$A$3:$AI$823,19,FALSE)=\"-\"),1/0,VLOOKUP($A831,Economática!$A$3:$AI$823,19,FALSE)))","v":""},{"$f":"IF($A831=\"\",\"\",VLOOKUP($A831,Economática!$A$3:$AI$823,20,FALSE)/E831)","v":""},"","","",{"$f":"IF($A831=\"\",\"\",IF(OR(VLOOKUP($A831,Economática!$A$3:$AI$823,21,FALSE)/100=0,VLOOKUP($A831,Economática!$A$3:$AI$823,21,FALSE)/100=\"-\"),1/0,VLOOKUP($A831,Economática!$A$3:$AI$823,21,FALSE)/100))","v":""},{"$f":"IF($A831=\"\",\"\",IF(OR(VLOOKUP($A831,Economática!$A$3:$AI$823,22,FALSE)/100=0,VLOOKUP($A831,Economática!$A$3:$AI$823,22,FALSE)/100=\"-\"),1/0,VLOOKUP($A831,Economática!$A$3:$AI$823,22,FALSE)/100))","v":""},{"$f":"IF($A831=\"\",\"\",IF(OR(VLOOKUP($A831,Economática!$A$3:$AI$823,23,FALSE)=0,VLOOKUP($A831,Economática!$A$3:$AI$823,23,FALSE)=\"-\"),1/0,VLOOKUP($A831,Economática!$A$3:$AI$823,23,FALSE)))","v":""},{"$f":"IF($A831=\"\",\"\",IF(OR(VLOOKUP($A831,Economática!$A$3:$AI$823,24,FALSE)=0,VLOOKUP($A831,Economática!$A$3:$AI$823,24,FALSE)=\"-\"),1/0,VLOOKUP($A831,Economática!$A$3:$AI$823,24,FALSE)))","v":""},{"$f":"IF($A831=\"\",\"\",IF(OR(VLOOKUP($A831,Economática!$A$3:$AI$823,25,FALSE)=0,VLOOKUP($A831,Economática!$A$3:$AI$823,25,FALSE)=\"-\"),1/0,VLOOKUP($A831,Economática!$A$3:$AI$823,25,FALSE)))","v":""},{"$f":"IF($A831=\"\",\"\",IF(ISERROR((F831+VLOOKUP($A831,Economática!$A$3:$AI$823,26,FALSE))/Y831),(F831+VLOOKUP($A831,Economática!$A$3:$AI$823,26,FALSE))/Y831,(F831+VLOOKUP($A831,Economática!$A$3:$AI$823,26,FALSE))/Y831))","v":""},{"$f":"IF($A831=\"\",\"\",IF(OR(-VLOOKUP($A831,Economática!$A$3:$AI$823,27,FALSE)=0,-VLOOKUP($A831,Economática!$A$3:$AI$823,27,FALSE)=\"-\"),1/0,-VLOOKUP($A831,Economática!$A$3:$AI$823,27,FALSE)))","v":""},"",{"$f":"IF($A831=\"\",\"\",IF(OR(VLOOKUP($A831,Economática!$A$3:$AI$823,28,FALSE)=0,VLOOKUP($A831,Economática!$A$3:$AI$823,28,FALSE)=\"-\"),1/0,VLOOKUP($A831,Economática!$A$3:$AI$823,28,FALSE)))","v":""},{"$f":"IF($A831=\"\",\"\",IF(OR(VLOOKUP($A831,Economática!$A$3:$AI$823,29,FALSE)=0,VLOOKUP($A831,Economática!$A$3:$AI$823,29,FALSE)=\"-\"),1/0,VLOOKUP($A831,Economática!$A$3:$AI$823,29,FALSE)))","v":""},{"$f":"IF($A831=\"\",\"\",IF(OR(VLOOKUP($A831,Economática!$A$3:$AI$823,30,FALSE)/E831=0,VLOOKUP($A831,Economática!$A$3:$AI$823,30,FALSE)/E831=\"-\",VLOOKUP($A831,Economática!$A$3:$AI$823,30,FALSE)/E831<33.33%,VLOOKUP($A831,Economática!$A$3:$AI$823,30,FALSE)/E831>100%),1/0,VLOOKUP($A831,Economática!$A$3:$AI$823,30,FALSE)/E831))","v":""},"",{"$f":"IF($A831=\"\",\"\",IF(OR(VLOOKUP($A831,Economática!$A$3:$AI$823,25,FALSE)=0,VLOOKUP($A831,Economática!$A$3:$AI$823,25,FALSE)=\"-\"),1/0,VLOOKUP($A831,Economática!$A$3:$AI$823,25,FALSE)))","v":""},{"$f":"CONCATENATE(Economática!B809,\" \",Economática!C809)","v":" "}]
[{"$f":"IF(Economática!AG810=\"\",\"\",Economática!AG810)","v":""},{"$f":"IF($A832=\"\",\"\",VLOOKUP(VLOOKUP($A832,Economática!$A$3:$AI$823,6,FALSE),Correção!$B$16:$C$36,2,FALSE))","v":""},{"$f":"IF(Economática!B810=\"\",\"\",Economática!B810)","v":""},{"$f":"IF($A832=\"\",\"\",IF(OR(VLOOKUP($A832,Economática!$A$3:$AI$823,8,FALSE)=0,VLOOKUP($A832,Economática!$A$3:$AI$823,8,FALSE)=\"-\"),1/0,VLOOKUP($A832,Economática!$A$3:$AI$823,8,FALSE)))","v":""},{"$f":"IF(A832=\"\",\"\",IF(ISERROR(VLOOKUP(A832,Correção!$B$2:$G$13,9,FALSE)),VLOOKUP($A832,Economática!$A$3:$AI$823,9,FALSE),VLOOKUP(A832,Correção!$B$2:$G$13,9,FALSE)))","v":""},{"$f":"IF($A832=\"\",\"\",Economática!G810)","v":""},{"$f":"IF($A832=\"\",\"\",IF(OR(VLOOKUP($A832,Economática!$A$3:$AI$823,10,FALSE)=0,VLOOKUP($A832,Economática!$A$3:$AI$823,10,FALSE)=\"-\"),1/0,VLOOKUP($A832,Economática!$A$3:$AI$823,10,FALSE)))","v":""},{"$f":"IF($A832=\"\",\"\",IF(OR(VLOOKUP($A832,Economática!$A$3:$AI$823,11,FALSE)=0,VLOOKUP($A832,Economática!$A$3:$AI$823,11,FALSE)=\"-\"),1/0,VLOOKUP($A832,Economática!$A$3:$AI$823,11,FALSE)))","v":""},{"$f":"IF($A832=\"\",\"\",IF(OR(VLOOKUP($A832,Economática!$A$3:$AI$823,12,FALSE)=0,VLOOKUP($A832,Economática!$A$3:$AI$823,12,FALSE)=\"-\"),1/0,VLOOKUP($A832,Economática!$A$3:$AI$823,12,FALSE)))","v":""},{"$f":"IF($A832=\"\",\"\",IF(OR(VLOOKUP($A832,Economática!$A$3:$AI$823,13,FALSE)=0,VLOOKUP($A832,Economática!$A$3:$AI$823,13,FALSE)=\"-\"),1/0,VLOOKUP($A832,Economática!$A$3:$AI$823,13,FALSE)))","v":""},{"$f":"IF($A832=\"\",\"\",IF(OR(VLOOKUP($A832,Economática!$A$3:$AI$823,14,FALSE)=0,VLOOKUP($A832,Economática!$A$3:$AI$823,14,FALSE)=\"-\"),1/0,VLOOKUP($A832,Economática!$A$3:$AI$823,14,FALSE)))","v":""},{"$f":"IF($A832=\"\",\"\",IF(OR(VLOOKUP($A832,Economática!$A$3:$AI$823,15,FALSE)=0,VLOOKUP($A832,Economática!$A$3:$AI$823,15,FALSE)=\"-\"),1/0,VLOOKUP($A832,Economática!$A$3:$AI$823,15,FALSE)))","v":""},{"$f":"IF($A832=\"\",\"\",IF(OR(VLOOKUP($A832,Economática!$A$3:$AI$823,16,FALSE)=0,VLOOKUP($A832,Economática!$A$3:$AI$823,16,FALSE)=\"-\"),1/0,VLOOKUP($A832,Economática!$A$3:$AI$823,16,FALSE)))","v":""},{"$f":"IF($A832=\"\",\"\",IF(OR(VLOOKUP($A832,Economática!$A$3:$AI$823,17,FALSE)=0,VLOOKUP($A832,Economática!$A$3:$AI$823,17,FALSE)=\"-\"),1/0,VLOOKUP($A832,Economática!$A$3:$AI$823,17,FALSE)))","v":""},{"$f":"IF($A832=\"\",\"\",IF(OR(VLOOKUP($A832,Economática!$A$3:$AI$823,18,FALSE)=0,VLOOKUP($A832,Economática!$A$3:$AI$823,18,FALSE)=\"-\"),1/0,VLOOKUP($A832,Economática!$A$3:$AI$823,18,FALSE)))","v":""},{"$f":"IF($A832=\"\",\"\",IF(OR(VLOOKUP($A832,Economática!$A$3:$AI$823,19,FALSE)=0,VLOOKUP($A832,Economática!$A$3:$AI$823,19,FALSE)=\"-\"),1/0,VLOOKUP($A832,Economática!$A$3:$AI$823,19,FALSE)))","v":""},{"$f":"IF($A832=\"\",\"\",VLOOKUP($A832,Economática!$A$3:$AI$823,20,FALSE)/E832)","v":""},"","","",{"$f":"IF($A832=\"\",\"\",IF(OR(VLOOKUP($A832,Economática!$A$3:$AI$823,21,FALSE)/100=0,VLOOKUP($A832,Economática!$A$3:$AI$823,21,FALSE)/100=\"-\"),1/0,VLOOKUP($A832,Economática!$A$3:$AI$823,21,FALSE)/100))","v":""},{"$f":"IF($A832=\"\",\"\",IF(OR(VLOOKUP($A832,Economática!$A$3:$AI$823,22,FALSE)/100=0,VLOOKUP($A832,Economática!$A$3:$AI$823,22,FALSE)/100=\"-\"),1/0,VLOOKUP($A832,Economática!$A$3:$AI$823,22,FALSE)/100))","v":""},{"$f":"IF($A832=\"\",\"\",IF(OR(VLOOKUP($A832,Economática!$A$3:$AI$823,23,FALSE)=0,VLOOKUP($A832,Economática!$A$3:$AI$823,23,FALSE)=\"-\"),1/0,VLOOKUP($A832,Economática!$A$3:$AI$823,23,FALSE)))","v":""},{"$f":"IF($A832=\"\",\"\",IF(OR(VLOOKUP($A832,Economática!$A$3:$AI$823,24,FALSE)=0,VLOOKUP($A832,Economática!$A$3:$AI$823,24,FALSE)=\"-\"),1/0,VLOOKUP($A832,Economática!$A$3:$AI$823,24,FALSE)))","v":""},{"$f":"IF($A832=\"\",\"\",IF(OR(VLOOKUP($A832,Economática!$A$3:$AI$823,25,FALSE)=0,VLOOKUP($A832,Economática!$A$3:$AI$823,25,FALSE)=\"-\"),1/0,VLOOKUP($A832,Economática!$A$3:$AI$823,25,FALSE)))","v":""},{"$f":"IF($A832=\"\",\"\",IF(ISERROR((F832+VLOOKUP($A832,Economática!$A$3:$AI$823,26,FALSE))/Y832),(F832+VLOOKUP($A832,Economática!$A$3:$AI$823,26,FALSE))/Y832,(F832+VLOOKUP($A832,Economática!$A$3:$AI$823,26,FALSE))/Y832))","v":""},{"$f":"IF($A832=\"\",\"\",IF(OR(-VLOOKUP($A832,Economática!$A$3:$AI$823,27,FALSE)=0,-VLOOKUP($A832,Economática!$A$3:$AI$823,27,FALSE)=\"-\"),1/0,-VLOOKUP($A832,Economática!$A$3:$AI$823,27,FALSE)))","v":""},"",{"$f":"IF($A832=\"\",\"\",IF(OR(VLOOKUP($A832,Economática!$A$3:$AI$823,28,FALSE)=0,VLOOKUP($A832,Economática!$A$3:$AI$823,28,FALSE)=\"-\"),1/0,VLOOKUP($A832,Economática!$A$3:$AI$823,28,FALSE)))","v":""},{"$f":"IF($A832=\"\",\"\",IF(OR(VLOOKUP($A832,Economática!$A$3:$AI$823,29,FALSE)=0,VLOOKUP($A832,Economática!$A$3:$AI$823,29,FALSE)=\"-\"),1/0,VLOOKUP($A832,Economática!$A$3:$AI$823,29,FALSE)))","v":""},{"$f":"IF($A832=\"\",\"\",IF(OR(VLOOKUP($A832,Economática!$A$3:$AI$823,30,FALSE)/E832=0,VLOOKUP($A832,Economática!$A$3:$AI$823,30,FALSE)/E832=\"-\",VLOOKUP($A832,Economática!$A$3:$AI$823,30,FALSE)/E832<33.33%,VLOOKUP($A832,Economática!$A$3:$AI$823,30,FALSE)/E832>100%),1/0,VLOOKUP($A832,Economática!$A$3:$AI$823,30,FALSE)/E832))","v":""},"",{"$f":"IF($A832=\"\",\"\",IF(OR(VLOOKUP($A832,Economática!$A$3:$AI$823,25,FALSE)=0,VLOOKUP($A832,Economática!$A$3:$AI$823,25,FALSE)=\"-\"),1/0,VLOOKUP($A832,Economática!$A$3:$AI$823,25,FALSE)))","v":""},{"$f":"CONCATENATE(Economática!B810,\" \",Economática!C810)","v":" "}]
[{"$f":"IF(Economática!AG811=\"\",\"\",Economática!AG811)","v":""},{"$f":"IF($A833=\"\",\"\",VLOOKUP(VLOOKUP($A833,Economática!$A$3:$AI$823,6,FALSE),Correção!$B$16:$C$36,2,FALSE))","v":""},{"$f":"IF(Economática!B811=\"\",\"\",Economática!B811)","v":""},{"$f":"IF($A833=\"\",\"\",IF(OR(VLOOKUP($A833,Economática!$A$3:$AI$823,8,FALSE)=0,VLOOKUP($A833,Economática!$A$3:$AI$823,8,FALSE)=\"-\"),1/0,VLOOKUP($A833,Economática!$A$3:$AI$823,8,FALSE)))","v":""},{"$f":"IF(A833=\"\",\"\",IF(ISERROR(VLOOKUP(A833,Correção!$B$2:$G$13,9,FALSE)),VLOOKUP($A833,Economática!$A$3:$AI$823,9,FALSE),VLOOKUP(A833,Correção!$B$2:$G$13,9,FALSE)))","v":""},{"$f":"IF($A833=\"\",\"\",Economática!G811)","v":""},{"$f":"IF($A833=\"\",\"\",IF(OR(VLOOKUP($A833,Economática!$A$3:$AI$823,10,FALSE)=0,VLOOKUP($A833,Economática!$A$3:$AI$823,10,FALSE)=\"-\"),1/0,VLOOKUP($A833,Economática!$A$3:$AI$823,10,FALSE)))","v":""},{"$f":"IF($A833=\"\",\"\",IF(OR(VLOOKUP($A833,Economática!$A$3:$AI$823,11,FALSE)=0,VLOOKUP($A833,Economática!$A$3:$AI$823,11,FALSE)=\"-\"),1/0,VLOOKUP($A833,Economática!$A$3:$AI$823,11,FALSE)))","v":""},{"$f":"IF($A833=\"\",\"\",IF(OR(VLOOKUP($A833,Economática!$A$3:$AI$823,12,FALSE)=0,VLOOKUP($A833,Economática!$A$3:$AI$823,12,FALSE)=\"-\"),1/0,VLOOKUP($A833,Economática!$A$3:$AI$823,12,FALSE)))","v":""},{"$f":"IF($A833=\"\",\"\",IF(OR(VLOOKUP($A833,Economática!$A$3:$AI$823,13,FALSE)=0,VLOOKUP($A833,Economática!$A$3:$AI$823,13,FALSE)=\"-\"),1/0,VLOOKUP($A833,Economática!$A$3:$AI$823,13,FALSE)))","v":""},{"$f":"IF($A833=\"\",\"\",IF(OR(VLOOKUP($A833,Economática!$A$3:$AI$823,14,FALSE)=0,VLOOKUP($A833,Economática!$A$3:$AI$823,14,FALSE)=\"-\"),1/0,VLOOKUP($A833,Economática!$A$3:$AI$823,14,FALSE)))","v":""},{"$f":"IF($A833=\"\",\"\",IF(OR(VLOOKUP($A833,Economática!$A$3:$AI$823,15,FALSE)=0,VLOOKUP($A833,Economática!$A$3:$AI$823,15,FALSE)=\"-\"),1/0,VLOOKUP($A833,Economática!$A$3:$AI$823,15,FALSE)))","v":""},{"$f":"IF($A833=\"\",\"\",IF(OR(VLOOKUP($A833,Economática!$A$3:$AI$823,16,FALSE)=0,VLOOKUP($A833,Economática!$A$3:$AI$823,16,FALSE)=\"-\"),1/0,VLOOKUP($A833,Economática!$A$3:$AI$823,16,FALSE)))","v":""},{"$f":"IF($A833=\"\",\"\",IF(OR(VLOOKUP($A833,Economática!$A$3:$AI$823,17,FALSE)=0,VLOOKUP($A833,Economática!$A$3:$AI$823,17,FALSE)=\"-\"),1/0,VLOOKUP($A833,Economática!$A$3:$AI$823,17,FALSE)))","v":""},{"$f":"IF($A833=\"\",\"\",IF(OR(VLOOKUP($A833,Economática!$A$3:$AI$823,18,FALSE)=0,VLOOKUP($A833,Economática!$A$3:$AI$823,18,FALSE)=\"-\"),1/0,VLOOKUP($A833,Economática!$A$3:$AI$823,18,FALSE)))","v":""},{"$f":"IF($A833=\"\",\"\",IF(OR(VLOOKUP($A833,Economática!$A$3:$AI$823,19,FALSE)=0,VLOOKUP($A833,Economática!$A$3:$AI$823,19,FALSE)=\"-\"),1/0,VLOOKUP($A833,Economática!$A$3:$AI$823,19,FALSE)))","v":""},{"$f":"IF($A833=\"\",\"\",VLOOKUP($A833,Economática!$A$3:$AI$823,20,FALSE)/E833)","v":""},"","","",{"$f":"IF($A833=\"\",\"\",IF(OR(VLOOKUP($A833,Economática!$A$3:$AI$823,21,FALSE)/100=0,VLOOKUP($A833,Economática!$A$3:$AI$823,21,FALSE)/100=\"-\"),1/0,VLOOKUP($A833,Economática!$A$3:$AI$823,21,FALSE)/100))","v":""},{"$f":"IF($A833=\"\",\"\",IF(OR(VLOOKUP($A833,Economática!$A$3:$AI$823,22,FALSE)/100=0,VLOOKUP($A833,Economática!$A$3:$AI$823,22,FALSE)/100=\"-\"),1/0,VLOOKUP($A833,Economática!$A$3:$AI$823,22,FALSE)/100))","v":""},{"$f":"IF($A833=\"\",\"\",IF(OR(VLOOKUP($A833,Economática!$A$3:$AI$823,23,FALSE)=0,VLOOKUP($A833,Economática!$A$3:$AI$823,23,FALSE)=\"-\"),1/0,VLOOKUP($A833,Economática!$A$3:$AI$823,23,FALSE)))","v":""},{"$f":"IF($A833=\"\",\"\",IF(OR(VLOOKUP($A833,Economática!$A$3:$AI$823,24,FALSE)=0,VLOOKUP($A833,Economática!$A$3:$AI$823,24,FALSE)=\"-\"),1/0,VLOOKUP($A833,Economática!$A$3:$AI$823,24,FALSE)))","v":""},{"$f":"IF($A833=\"\",\"\",IF(OR(VLOOKUP($A833,Economática!$A$3:$AI$823,25,FALSE)=0,VLOOKUP($A833,Economática!$A$3:$AI$823,25,FALSE)=\"-\"),1/0,VLOOKUP($A833,Economática!$A$3:$AI$823,25,FALSE)))","v":""},{"$f":"IF($A833=\"\",\"\",IF(ISERROR((F833+VLOOKUP($A833,Economática!$A$3:$AI$823,26,FALSE))/Y833),(F833+VLOOKUP($A833,Economática!$A$3:$AI$823,26,FALSE))/Y833,(F833+VLOOKUP($A833,Economática!$A$3:$AI$823,26,FALSE))/Y833))","v":""},{"$f":"IF($A833=\"\",\"\",IF(OR(-VLOOKUP($A833,Economática!$A$3:$AI$823,27,FALSE)=0,-VLOOKUP($A833,Economática!$A$3:$AI$823,27,FALSE)=\"-\"),1/0,-VLOOKUP($A833,Economática!$A$3:$AI$823,27,FALSE)))","v":""},"",{"$f":"IF($A833=\"\",\"\",IF(OR(VLOOKUP($A833,Economática!$A$3:$AI$823,28,FALSE)=0,VLOOKUP($A833,Economática!$A$3:$AI$823,28,FALSE)=\"-\"),1/0,VLOOKUP($A833,Economática!$A$3:$AI$823,28,FALSE)))","v":""},{"$f":"IF($A833=\"\",\"\",IF(OR(VLOOKUP($A833,Economática!$A$3:$AI$823,29,FALSE)=0,VLOOKUP($A833,Economática!$A$3:$AI$823,29,FALSE)=\"-\"),1/0,VLOOKUP($A833,Economática!$A$3:$AI$823,29,FALSE)))","v":""},{"$f":"IF($A833=\"\",\"\",IF(OR(VLOOKUP($A833,Economática!$A$3:$AI$823,30,FALSE)/E833=0,VLOOKUP($A833,Economática!$A$3:$AI$823,30,FALSE)/E833=\"-\",VLOOKUP($A833,Economática!$A$3:$AI$823,30,FALSE)/E833<33.33%,VLOOKUP($A833,Economática!$A$3:$AI$823,30,FALSE)/E833>100%),1/0,VLOOKUP($A833,Economática!$A$3:$AI$823,30,FALSE)/E833))","v":""},"",{"$f":"IF($A833=\"\",\"\",IF(OR(VLOOKUP($A833,Economática!$A$3:$AI$823,25,FALSE)=0,VLOOKUP($A833,Economática!$A$3:$AI$823,25,FALSE)=\"-\"),1/0,VLOOKUP($A833,Economática!$A$3:$AI$823,25,FALSE)))","v":""},{"$f":"CONCATENATE(Economática!B811,\" \",Economática!C811)","v":" "}]
[{"$f":"IF(Economática!AG812=\"\",\"\",Economática!AG812)","v":""},{"$f":"IF($A834=\"\",\"\",VLOOKUP(VLOOKUP($A834,Economática!$A$3:$AI$823,6,FALSE),Correção!$B$16:$C$36,2,FALSE))","v":""},{"$f":"IF(Economática!B812=\"\",\"\",Economática!B812)","v":""},{"$f":"IF($A834=\"\",\"\",IF(OR(VLOOKUP($A834,Economática!$A$3:$AI$823,8,FALSE)=0,VLOOKUP($A834,Economática!$A$3:$AI$823,8,FALSE)=\"-\"),1/0,VLOOKUP($A834,Economática!$A$3:$AI$823,8,FALSE)))","v":""},{"$f":"IF(A834=\"\",\"\",IF(ISERROR(VLOOKUP(A834,Correção!$B$2:$G$13,9,FALSE)),VLOOKUP($A834,Economática!$A$3:$AI$823,9,FALSE),VLOOKUP(A834,Correção!$B$2:$G$13,9,FALSE)))","v":""},{"$f":"IF($A834=\"\",\"\",Economática!G812)","v":""},{"$f":"IF($A834=\"\",\"\",IF(OR(VLOOKUP($A834,Economática!$A$3:$AI$823,10,FALSE)=0,VLOOKUP($A834,Economática!$A$3:$AI$823,10,FALSE)=\"-\"),1/0,VLOOKUP($A834,Economática!$A$3:$AI$823,10,FALSE)))","v":""},{"$f":"IF($A834=\"\",\"\",IF(OR(VLOOKUP($A834,Economática!$A$3:$AI$823,11,FALSE)=0,VLOOKUP($A834,Economática!$A$3:$AI$823,11,FALSE)=\"-\"),1/0,VLOOKUP($A834,Economática!$A$3:$AI$823,11,FALSE)))","v":""},{"$f":"IF($A834=\"\",\"\",IF(OR(VLOOKUP($A834,Economática!$A$3:$AI$823,12,FALSE)=0,VLOOKUP($A834,Economática!$A$3:$AI$823,12,FALSE)=\"-\"),1/0,VLOOKUP($A834,Economática!$A$3:$AI$823,12,FALSE)))","v":""},{"$f":"IF($A834=\"\",\"\",IF(OR(VLOOKUP($A834,Economática!$A$3:$AI$823,13,FALSE)=0,VLOOKUP($A834,Economática!$A$3:$AI$823,13,FALSE)=\"-\"),1/0,VLOOKUP($A834,Economática!$A$3:$AI$823,13,FALSE)))","v":""},{"$f":"IF($A834=\"\",\"\",IF(OR(VLOOKUP($A834,Economática!$A$3:$AI$823,14,FALSE)=0,VLOOKUP($A834,Economática!$A$3:$AI$823,14,FALSE)=\"-\"),1/0,VLOOKUP($A834,Economática!$A$3:$AI$823,14,FALSE)))","v":""},{"$f":"IF($A834=\"\",\"\",IF(OR(VLOOKUP($A834,Economática!$A$3:$AI$823,15,FALSE)=0,VLOOKUP($A834,Economática!$A$3:$AI$823,15,FALSE)=\"-\"),1/0,VLOOKUP($A834,Economática!$A$3:$AI$823,15,FALSE)))","v":""},{"$f":"IF($A834=\"\",\"\",IF(OR(VLOOKUP($A834,Economática!$A$3:$AI$823,16,FALSE)=0,VLOOKUP($A834,Economática!$A$3:$AI$823,16,FALSE)=\"-\"),1/0,VLOOKUP($A834,Economática!$A$3:$AI$823,16,FALSE)))","v":""},{"$f":"IF($A834=\"\",\"\",IF(OR(VLOOKUP($A834,Economática!$A$3:$AI$823,17,FALSE)=0,VLOOKUP($A834,Economática!$A$3:$AI$823,17,FALSE)=\"-\"),1/0,VLOOKUP($A834,Economática!$A$3:$AI$823,17,FALSE)))","v":""},{"$f":"IF($A834=\"\",\"\",IF(OR(VLOOKUP($A834,Economática!$A$3:$AI$823,18,FALSE)=0,VLOOKUP($A834,Economática!$A$3:$AI$823,18,FALSE)=\"-\"),1/0,VLOOKUP($A834,Economática!$A$3:$AI$823,18,FALSE)))","v":""},{"$f":"IF($A834=\"\",\"\",IF(OR(VLOOKUP($A834,Economática!$A$3:$AI$823,19,FALSE)=0,VLOOKUP($A834,Economática!$A$3:$AI$823,19,FALSE)=\"-\"),1/0,VLOOKUP($A834,Economática!$A$3:$AI$823,19,FALSE)))","v":""},{"$f":"IF($A834=\"\",\"\",VLOOKUP($A834,Economática!$A$3:$AI$823,20,FALSE)/E834)","v":""},{"$f":"IF($A834=\"\",\"\",IF((G834/E834)<=0,1/0,G834/E834))","v":""},{"$f":"IF($A834=\"\",\"\",D834/R834)","v":""},{"$f":"IF($A834=\"\",\"\",IF((D834/Q834)<=0,1/0,D834/Q834))","v":""},{"$f":"IF($A834=\"\",\"\",IF(OR(VLOOKUP($A834,Economática!$A$3:$AI$823,21,FALSE)/100=0,VLOOKUP($A834,Economática!$A$3:$AI$823,21,FALSE)/100=\"-\"),1/0,VLOOKUP($A834,Economática!$A$3:$AI$823,21,FALSE)/100))","v":""},{"$f":"IF($A834=\"\",\"\",IF(OR(VLOOKUP($A834,Economática!$A$3:$AI$823,22,FALSE)/100=0,VLOOKUP($A834,Economática!$A$3:$AI$823,22,FALSE)/100=\"-\"),1/0,VLOOKUP($A834,Economática!$A$3:$AI$823,22,FALSE)/100))","v":""},{"$f":"IF($A834=\"\",\"\",IF(OR(VLOOKUP($A834,Economática!$A$3:$AI$823,23,FALSE)=0,VLOOKUP($A834,Economática!$A$3:$AI$823,23,FALSE)=\"-\"),1/0,VLOOKUP($A834,Economática!$A$3:$AI$823,23,FALSE)))","v":""},{"$f":"IF($A834=\"\",\"\",IF(OR(VLOOKUP($A834,Economática!$A$3:$AI$823,24,FALSE)=0,VLOOKUP($A834,Economática!$A$3:$AI$823,24,FALSE)=\"-\"),1/0,VLOOKUP($A834,Economática!$A$3:$AI$823,24,FALSE)))","v":""},{"$f":"IF($A834=\"\",\"\",IF(OR(VLOOKUP($A834,Economática!$A$3:$AI$823,25,FALSE)=0,VLOOKUP($A834,Economática!$A$3:$AI$823,25,FALSE)=\"-\"),1/0,VLOOKUP($A834,Economática!$A$3:$AI$823,25,FALSE)))","v":""},{"$f":"IF($A834=\"\",\"\",IF(ISERROR((F834+VLOOKUP($A834,Economática!$A$3:$AI$823,26,FALSE))/Y834),(F834+VLOOKUP($A834,Economática!$A$3:$AI$823,26,FALSE))/Y834,(F834+VLOOKUP($A834,Economática!$A$3:$AI$823,26,FALSE))/Y834))","v":""},{"$f":"IF($A834=\"\",\"\",IF(OR(-VLOOKUP($A834,Economática!$A$3:$AI$823,27,FALSE)=0,-VLOOKUP($A834,Economática!$A$3:$AI$823,27,FALSE)=\"-\"),1/0,-VLOOKUP($A834,Economática!$A$3:$AI$823,27,FALSE)))","v":""},{"$f":"IF(A834=\"\",\"\",AA834/F834)","v":""},{"$f":"IF($A834=\"\",\"\",IF(OR(VLOOKUP($A834,Economática!$A$3:$AI$823,28,FALSE)=0,VLOOKUP($A834,Economática!$A$3:$AI$823,28,FALSE)=\"-\"),1/0,VLOOKUP($A834,Economática!$A$3:$AI$823,28,FALSE)))","v":""},{"$f":"IF($A834=\"\",\"\",IF(OR(VLOOKUP($A834,Economática!$A$3:$AI$823,29,FALSE)=0,VLOOKUP($A834,Economática!$A$3:$AI$823,29,FALSE)=\"-\"),1/0,VLOOKUP($A834,Economática!$A$3:$AI$823,29,FALSE)))","v":""},{"$f":"IF($A834=\"\",\"\",IF(OR(VLOOKUP($A834,Economática!$A$3:$AI$823,30,FALSE)/E834=0,VLOOKUP($A834,Economática!$A$3:$AI$823,30,FALSE)/E834=\"-\",VLOOKUP($A834,Economática!$A$3:$AI$823,30,FALSE)/E834<33.33%,VLOOKUP($A834,Economática!$A$3:$AI$823,30,FALSE)/E834>100%),1/0,VLOOKUP($A834,Economática!$A$3:$AI$823,30,FALSE)/E834))","v":""},{"$f":"IF(A834=\"\",\"\",A834)","v":""},{"$f":"IF($A834=\"\",\"\",IF(OR(VLOOKUP($A834,Economática!$A$3:$AI$823,25,FALSE)=0,VLOOKUP($A834,Economática!$A$3:$AI$823,25,FALSE)=\"-\"),1/0,VLOOKUP($A834,Economática!$A$3:$AI$823,25,FALSE)))","v":""},{"$f":"CONCATENATE(Economática!B812,\" \",Economática!C812)","v":" "}]
[{"$f":"IF(Economática!AG813=\"\",\"\",Economática!AG813)","v":""},{"$f":"IF($A835=\"\",\"\",VLOOKUP(VLOOKUP($A835,Economática!$A$3:$AI$823,6,FALSE),Correção!$B$16:$C$36,2,FALSE))","v":""},{"$f":"IF(Economática!B813=\"\",\"\",Economática!B813)","v":""},{"$f":"IF($A835=\"\",\"\",IF(OR(VLOOKUP($A835,Economática!$A$3:$AI$823,8,FALSE)=0,VLOOKUP($A835,Economática!$A$3:$AI$823,8,FALSE)=\"-\"),1/0,VLOOKUP($A835,Economática!$A$3:$AI$823,8,FALSE)))","v":""},{"$f":"IF(A835=\"\",\"\",IF(ISERROR(VLOOKUP(A835,Correção!$B$2:$G$13,9,FALSE)),VLOOKUP($A835,Economática!$A$3:$AI$823,9,FALSE),VLOOKUP(A835,Correção!$B$2:$G$13,9,FALSE)))","v":""},{"$f":"IF($A835=\"\",\"\",Economática!G813)","v":""},{"$f":"IF($A835=\"\",\"\",IF(OR(VLOOKUP($A835,Economática!$A$3:$AI$823,10,FALSE)=0,VLOOKUP($A835,Economática!$A$3:$AI$823,10,FALSE)=\"-\"),1/0,VLOOKUP($A835,Economática!$A$3:$AI$823,10,FALSE)))","v":""},{"$f":"IF($A835=\"\",\"\",IF(OR(VLOOKUP($A835,Economática!$A$3:$AI$823,11,FALSE)=0,VLOOKUP($A835,Economática!$A$3:$AI$823,11,FALSE)=\"-\"),1/0,VLOOKUP($A835,Economática!$A$3:$AI$823,11,FALSE)))","v":""},{"$f":"IF($A835=\"\",\"\",IF(OR(VLOOKUP($A835,Economática!$A$3:$AI$823,12,FALSE)=0,VLOOKUP($A835,Economática!$A$3:$AI$823,12,FALSE)=\"-\"),1/0,VLOOKUP($A835,Economática!$A$3:$AI$823,12,FALSE)))","v":""},{"$f":"IF($A835=\"\",\"\",IF(OR(VLOOKUP($A835,Economática!$A$3:$AI$823,13,FALSE)=0,VLOOKUP($A835,Economática!$A$3:$AI$823,13,FALSE)=\"-\"),1/0,VLOOKUP($A835,Economática!$A$3:$AI$823,13,FALSE)))","v":""},{"$f":"IF($A835=\"\",\"\",IF(OR(VLOOKUP($A835,Economática!$A$3:$AI$823,14,FALSE)=0,VLOOKUP($A835,Economática!$A$3:$AI$823,14,FALSE)=\"-\"),1/0,VLOOKUP($A835,Economática!$A$3:$AI$823,14,FALSE)))","v":""},{"$f":"IF($A835=\"\",\"\",IF(OR(VLOOKUP($A835,Economática!$A$3:$AI$823,15,FALSE)=0,VLOOKUP($A835,Economática!$A$3:$AI$823,15,FALSE)=\"-\"),1/0,VLOOKUP($A835,Economática!$A$3:$AI$823,15,FALSE)))","v":""},{"$f":"IF($A835=\"\",\"\",IF(OR(VLOOKUP($A835,Economática!$A$3:$AI$823,16,FALSE)=0,VLOOKUP($A835,Economática!$A$3:$AI$823,16,FALSE)=\"-\"),1/0,VLOOKUP($A835,Economática!$A$3:$AI$823,16,FALSE)))","v":""},{"$f":"IF($A835=\"\",\"\",IF(OR(VLOOKUP($A835,Economática!$A$3:$AI$823,17,FALSE)=0,VLOOKUP($A835,Economática!$A$3:$AI$823,17,FALSE)=\"-\"),1/0,VLOOKUP($A835,Economática!$A$3:$AI$823,17,FALSE)))","v":""},{"$f":"IF($A835=\"\",\"\",IF(OR(VLOOKUP($A835,Economática!$A$3:$AI$823,18,FALSE)=0,VLOOKUP($A835,Economática!$A$3:$AI$823,18,FALSE)=\"-\"),1/0,VLOOKUP($A835,Economática!$A$3:$AI$823,18,FALSE)))","v":""},{"$f":"IF($A835=\"\",\"\",IF(OR(VLOOKUP($A835,Economática!$A$3:$AI$823,19,FALSE)=0,VLOOKUP($A835,Economática!$A$3:$AI$823,19,FALSE)=\"-\"),1/0,VLOOKUP($A835,Economática!$A$3:$AI$823,19,FALSE)))","v":""},{"$f":"IF($A835=\"\",\"\",VLOOKUP($A835,Economática!$A$3:$AI$823,20,FALSE)/E835)","v":""},"","","",{"$f":"IF($A835=\"\",\"\",IF(OR(VLOOKUP($A835,Economática!$A$3:$AI$823,21,FALSE)/100=0,VLOOKUP($A835,Economática!$A$3:$AI$823,21,FALSE)/100=\"-\"),1/0,VLOOKUP($A835,Economática!$A$3:$AI$823,21,FALSE)/100))","v":""},{"$f":"IF($A835=\"\",\"\",IF(OR(VLOOKUP($A835,Economática!$A$3:$AI$823,22,FALSE)/100=0,VLOOKUP($A835,Economática!$A$3:$AI$823,22,FALSE)/100=\"-\"),1/0,VLOOKUP($A835,Economática!$A$3:$AI$823,22,FALSE)/100))","v":""},{"$f":"IF($A835=\"\",\"\",IF(OR(VLOOKUP($A835,Economática!$A$3:$AI$823,23,FALSE)=0,VLOOKUP($A835,Economática!$A$3:$AI$823,23,FALSE)=\"-\"),1/0,VLOOKUP($A835,Economática!$A$3:$AI$823,23,FALSE)))","v":""},{"$f":"IF($A835=\"\",\"\",IF(OR(VLOOKUP($A835,Economática!$A$3:$AI$823,24,FALSE)=0,VLOOKUP($A835,Economática!$A$3:$AI$823,24,FALSE)=\"-\"),1/0,VLOOKUP($A835,Economática!$A$3:$AI$823,24,FALSE)))","v":""},{"$f":"IF($A835=\"\",\"\",IF(OR(VLOOKUP($A835,Economática!$A$3:$AI$823,25,FALSE)=0,VLOOKUP($A835,Economática!$A$3:$AI$823,25,FALSE)=\"-\"),1/0,VLOOKUP($A835,Economática!$A$3:$AI$823,25,FALSE)))","v":""},{"$f":"IF($A835=\"\",\"\",IF(ISERROR((F835+VLOOKUP($A835,Economática!$A$3:$AI$823,26,FALSE))/Y835),(F835+VLOOKUP($A835,Economática!$A$3:$AI$823,26,FALSE))/Y835,(F835+VLOOKUP($A835,Economática!$A$3:$AI$823,26,FALSE))/Y835))","v":""},{"$f":"IF($A835=\"\",\"\",IF(OR(-VLOOKUP($A835,Economática!$A$3:$AI$823,27,FALSE)=0,-VLOOKUP($A835,Economática!$A$3:$AI$823,27,FALSE)=\"-\"),1/0,-VLOOKUP($A835,Economática!$A$3:$AI$823,27,FALSE)))","v":""},"",{"$f":"IF($A835=\"\",\"\",IF(OR(VLOOKUP($A835,Economática!$A$3:$AI$823,28,FALSE)=0,VLOOKUP($A835,Economática!$A$3:$AI$823,28,FALSE)=\"-\"),1/0,VLOOKUP($A835,Economática!$A$3:$AI$823,28,FALSE)))","v":""},{"$f":"IF($A835=\"\",\"\",IF(OR(VLOOKUP($A835,Economática!$A$3:$AI$823,29,FALSE)=0,VLOOKUP($A835,Economática!$A$3:$AI$823,29,FALSE)=\"-\"),1/0,VLOOKUP($A835,Economática!$A$3:$AI$823,29,FALSE)))","v":""},{"$f":"IF($A835=\"\",\"\",IF(OR(VLOOKUP($A835,Economática!$A$3:$AI$823,30,FALSE)/E835=0,VLOOKUP($A835,Economática!$A$3:$AI$823,30,FALSE)/E835=\"-\",VLOOKUP($A835,Economática!$A$3:$AI$823,30,FALSE)/E835<33.33%,VLOOKUP($A835,Economática!$A$3:$AI$823,30,FALSE)/E835>100%),1/0,VLOOKUP($A835,Economática!$A$3:$AI$823,30,FALSE)/E835))","v":""},"",{"$f":"IF($A835=\"\",\"\",IF(OR(VLOOKUP($A835,Economática!$A$3:$AI$823,25,FALSE)=0,VLOOKUP($A835,Economática!$A$3:$AI$823,25,FALSE)=\"-\"),1/0,VLOOKUP($A835,Economática!$A$3:$AI$823,25,FALSE)))","v":""},{"$f":"CONCATENATE(Economática!B813,\" \",Economática!C813)","v":" "}]
[{"$f":"IF(Economática!AG814=\"\",\"\",Economática!AG814)","v":""},{"$f":"IF($A836=\"\",\"\",VLOOKUP(VLOOKUP($A836,Economática!$A$3:$AI$823,6,FALSE),Correção!$B$16:$C$36,2,FALSE))","v":""},{"$f":"IF(Economática!B814=\"\",\"\",Economática!B814)","v":""},{"$f":"IF($A836=\"\",\"\",IF(OR(VLOOKUP($A836,Economática!$A$3:$AI$823,8,FALSE)=0,VLOOKUP($A836,Economática!$A$3:$AI$823,8,FALSE)=\"-\"),1/0,VLOOKUP($A836,Economática!$A$3:$AI$823,8,FALSE)))","v":""},{"$f":"IF(A836=\"\",\"\",IF(ISERROR(VLOOKUP(A836,Correção!$B$2:$G$13,9,FALSE)),VLOOKUP($A836,Economática!$A$3:$AI$823,9,FALSE),VLOOKUP(A836,Correção!$B$2:$G$13,9,FALSE)))","v":""},{"$f":"IF($A836=\"\",\"\",Economática!G814)","v":""},{"$f":"IF($A836=\"\",\"\",IF(OR(VLOOKUP($A836,Economática!$A$3:$AI$823,10,FALSE)=0,VLOOKUP($A836,Economática!$A$3:$AI$823,10,FALSE)=\"-\"),1/0,VLOOKUP($A836,Economática!$A$3:$AI$823,10,FALSE)))","v":""},{"$f":"IF($A836=\"\",\"\",IF(OR(VLOOKUP($A836,Economática!$A$3:$AI$823,11,FALSE)=0,VLOOKUP($A836,Economática!$A$3:$AI$823,11,FALSE)=\"-\"),1/0,VLOOKUP($A836,Economática!$A$3:$AI$823,11,FALSE)))","v":""},{"$f":"IF($A836=\"\",\"\",IF(OR(VLOOKUP($A836,Economática!$A$3:$AI$823,12,FALSE)=0,VLOOKUP($A836,Economática!$A$3:$AI$823,12,FALSE)=\"-\"),1/0,VLOOKUP($A836,Economática!$A$3:$AI$823,12,FALSE)))","v":""},{"$f":"IF($A836=\"\",\"\",IF(OR(VLOOKUP($A836,Economática!$A$3:$AI$823,13,FALSE)=0,VLOOKUP($A836,Economática!$A$3:$AI$823,13,FALSE)=\"-\"),1/0,VLOOKUP($A836,Economática!$A$3:$AI$823,13,FALSE)))","v":""},{"$f":"IF($A836=\"\",\"\",IF(OR(VLOOKUP($A836,Economática!$A$3:$AI$823,14,FALSE)=0,VLOOKUP($A836,Economática!$A$3:$AI$823,14,FALSE)=\"-\"),1/0,VLOOKUP($A836,Economática!$A$3:$AI$823,14,FALSE)))","v":""},{"$f":"IF($A836=\"\",\"\",IF(OR(VLOOKUP($A836,Economática!$A$3:$AI$823,15,FALSE)=0,VLOOKUP($A836,Economática!$A$3:$AI$823,15,FALSE)=\"-\"),1/0,VLOOKUP($A836,Economática!$A$3:$AI$823,15,FALSE)))","v":""},{"$f":"IF($A836=\"\",\"\",IF(OR(VLOOKUP($A836,Economática!$A$3:$AI$823,16,FALSE)=0,VLOOKUP($A836,Economática!$A$3:$AI$823,16,FALSE)=\"-\"),1/0,VLOOKUP($A836,Economática!$A$3:$AI$823,16,FALSE)))","v":""},{"$f":"IF($A836=\"\",\"\",IF(OR(VLOOKUP($A836,Economática!$A$3:$AI$823,17,FALSE)=0,VLOOKUP($A836,Economática!$A$3:$AI$823,17,FALSE)=\"-\"),1/0,VLOOKUP($A836,Economática!$A$3:$AI$823,17,FALSE)))","v":""},{"$f":"IF($A836=\"\",\"\",IF(OR(VLOOKUP($A836,Economática!$A$3:$AI$823,18,FALSE)=0,VLOOKUP($A836,Economática!$A$3:$AI$823,18,FALSE)=\"-\"),1/0,VLOOKUP($A836,Economática!$A$3:$AI$823,18,FALSE)))","v":""},{"$f":"IF($A836=\"\",\"\",IF(OR(VLOOKUP($A836,Economática!$A$3:$AI$823,19,FALSE)=0,VLOOKUP($A836,Economática!$A$3:$AI$823,19,FALSE)=\"-\"),1/0,VLOOKUP($A836,Economática!$A$3:$AI$823,19,FALSE)))","v":""},{"$f":"IF($A836=\"\",\"\",VLOOKUP($A836,Economática!$A$3:$AI$823,20,FALSE)/E836)","v":""},"","","",{"$f":"IF($A836=\"\",\"\",IF(OR(VLOOKUP($A836,Economática!$A$3:$AI$823,21,FALSE)/100=0,VLOOKUP($A836,Economática!$A$3:$AI$823,21,FALSE)/100=\"-\"),1/0,VLOOKUP($A836,Economática!$A$3:$AI$823,21,FALSE)/100))","v":""},{"$f":"IF($A836=\"\",\"\",IF(OR(VLOOKUP($A836,Economática!$A$3:$AI$823,22,FALSE)/100=0,VLOOKUP($A836,Economática!$A$3:$AI$823,22,FALSE)/100=\"-\"),1/0,VLOOKUP($A836,Economática!$A$3:$AI$823,22,FALSE)/100))","v":""},{"$f":"IF($A836=\"\",\"\",IF(OR(VLOOKUP($A836,Economática!$A$3:$AI$823,23,FALSE)=0,VLOOKUP($A836,Economática!$A$3:$AI$823,23,FALSE)=\"-\"),1/0,VLOOKUP($A836,Economática!$A$3:$AI$823,23,FALSE)))","v":""},{"$f":"IF($A836=\"\",\"\",IF(OR(VLOOKUP($A836,Economática!$A$3:$AI$823,24,FALSE)=0,VLOOKUP($A836,Economática!$A$3:$AI$823,24,FALSE)=\"-\"),1/0,VLOOKUP($A836,Economática!$A$3:$AI$823,24,FALSE)))","v":""},{"$f":"IF($A836=\"\",\"\",IF(OR(VLOOKUP($A836,Economática!$A$3:$AI$823,25,FALSE)=0,VLOOKUP($A836,Economática!$A$3:$AI$823,25,FALSE)=\"-\"),1/0,VLOOKUP($A836,Economática!$A$3:$AI$823,25,FALSE)))","v":""},{"$f":"IF($A836=\"\",\"\",IF(ISERROR((F836+VLOOKUP($A836,Economática!$A$3:$AI$823,26,FALSE))/Y836),(F836+VLOOKUP($A836,Economática!$A$3:$AI$823,26,FALSE))/Y836,(F836+VLOOKUP($A836,Economática!$A$3:$AI$823,26,FALSE))/Y836))","v":""},{"$f":"IF($A836=\"\",\"\",IF(OR(-VLOOKUP($A836,Economática!$A$3:$AI$823,27,FALSE)=0,-VLOOKUP($A836,Economática!$A$3:$AI$823,27,FALSE)=\"-\"),1/0,-VLOOKUP($A836,Economática!$A$3:$AI$823,27,FALSE)))","v":""},"",{"$f":"IF($A836=\"\",\"\",IF(OR(VLOOKUP($A836,Economática!$A$3:$AI$823,28,FALSE)=0,VLOOKUP($A836,Economática!$A$3:$AI$823,28,FALSE)=\"-\"),1/0,VLOOKUP($A836,Economática!$A$3:$AI$823,28,FALSE)))","v":""},{"$f":"IF($A836=\"\",\"\",IF(OR(VLOOKUP($A836,Economática!$A$3:$AI$823,29,FALSE)=0,VLOOKUP($A836,Economática!$A$3:$AI$823,29,FALSE)=\"-\"),1/0,VLOOKUP($A836,Economática!$A$3:$AI$823,29,FALSE)))","v":""},{"$f":"IF($A836=\"\",\"\",IF(OR(VLOOKUP($A836,Economática!$A$3:$AI$823,30,FALSE)/E836=0,VLOOKUP($A836,Economática!$A$3:$AI$823,30,FALSE)/E836=\"-\",VLOOKUP($A836,Economática!$A$3:$AI$823,30,FALSE)/E836<33.33%,VLOOKUP($A836,Economática!$A$3:$AI$823,30,FALSE)/E836>100%),1/0,VLOOKUP($A836,Economática!$A$3:$AI$823,30,FALSE)/E836))","v":""},"",{"$f":"IF($A836=\"\",\"\",IF(OR(VLOOKUP($A836,Economática!$A$3:$AI$823,25,FALSE)=0,VLOOKUP($A836,Economática!$A$3:$AI$823,25,FALSE)=\"-\"),1/0,VLOOKUP($A836,Economática!$A$3:$AI$823,25,FALSE)))","v":""},{"$f":"CONCATENATE(Economática!B814,\" \",Economática!C814)","v":" "}]
[{"$f":"IF(Economática!AG815=\"\",\"\",Economática!AG815)","v":""},{"$f":"IF($A837=\"\",\"\",VLOOKUP(VLOOKUP($A837,Economática!$A$3:$AI$823,6,FALSE),Correção!$B$16:$C$36,2,FALSE))","v":""},{"$f":"IF(Economática!B815=\"\",\"\",Economática!B815)","v":""},{"$f":"IF($A837=\"\",\"\",IF(OR(VLOOKUP($A837,Economática!$A$3:$AI$823,8,FALSE)=0,VLOOKUP($A837,Economática!$A$3:$AI$823,8,FALSE)=\"-\"),1/0,VLOOKUP($A837,Economática!$A$3:$AI$823,8,FALSE)))","v":""},{"$f":"IF(A837=\"\",\"\",IF(ISERROR(VLOOKUP(A837,Correção!$B$2:$G$13,9,FALSE)),VLOOKUP($A837,Economática!$A$3:$AI$823,9,FALSE),VLOOKUP(A837,Correção!$B$2:$G$13,9,FALSE)))","v":""},{"$f":"IF($A837=\"\",\"\",Economática!G815)","v":""},{"$f":"IF($A837=\"\",\"\",IF(OR(VLOOKUP($A837,Economática!$A$3:$AI$823,10,FALSE)=0,VLOOKUP($A837,Economática!$A$3:$AI$823,10,FALSE)=\"-\"),1/0,VLOOKUP($A837,Economática!$A$3:$AI$823,10,FALSE)))","v":""},{"$f":"IF($A837=\"\",\"\",IF(OR(VLOOKUP($A837,Economática!$A$3:$AI$823,11,FALSE)=0,VLOOKUP($A837,Economática!$A$3:$AI$823,11,FALSE)=\"-\"),1/0,VLOOKUP($A837,Economática!$A$3:$AI$823,11,FALSE)))","v":""},{"$f":"IF($A837=\"\",\"\",IF(OR(VLOOKUP($A837,Economática!$A$3:$AI$823,12,FALSE)=0,VLOOKUP($A837,Economática!$A$3:$AI$823,12,FALSE)=\"-\"),1/0,VLOOKUP($A837,Economática!$A$3:$AI$823,12,FALSE)))","v":""},{"$f":"IF($A837=\"\",\"\",IF(OR(VLOOKUP($A837,Economática!$A$3:$AI$823,13,FALSE)=0,VLOOKUP($A837,Economática!$A$3:$AI$823,13,FALSE)=\"-\"),1/0,VLOOKUP($A837,Economática!$A$3:$AI$823,13,FALSE)))","v":""},{"$f":"IF($A837=\"\",\"\",IF(OR(VLOOKUP($A837,Economática!$A$3:$AI$823,14,FALSE)=0,VLOOKUP($A837,Economática!$A$3:$AI$823,14,FALSE)=\"-\"),1/0,VLOOKUP($A837,Economática!$A$3:$AI$823,14,FALSE)))","v":""},{"$f":"IF($A837=\"\",\"\",IF(OR(VLOOKUP($A837,Economática!$A$3:$AI$823,15,FALSE)=0,VLOOKUP($A837,Economática!$A$3:$AI$823,15,FALSE)=\"-\"),1/0,VLOOKUP($A837,Economática!$A$3:$AI$823,15,FALSE)))","v":""},{"$f":"IF($A837=\"\",\"\",IF(OR(VLOOKUP($A837,Economática!$A$3:$AI$823,16,FALSE)=0,VLOOKUP($A837,Economática!$A$3:$AI$823,16,FALSE)=\"-\"),1/0,VLOOKUP($A837,Economática!$A$3:$AI$823,16,FALSE)))","v":""},{"$f":"IF($A837=\"\",\"\",IF(OR(VLOOKUP($A837,Economática!$A$3:$AI$823,17,FALSE)=0,VLOOKUP($A837,Economática!$A$3:$AI$823,17,FALSE)=\"-\"),1/0,VLOOKUP($A837,Economática!$A$3:$AI$823,17,FALSE)))","v":""},{"$f":"IF($A837=\"\",\"\",IF(OR(VLOOKUP($A837,Economática!$A$3:$AI$823,18,FALSE)=0,VLOOKUP($A837,Economática!$A$3:$AI$823,18,FALSE)=\"-\"),1/0,VLOOKUP($A837,Economática!$A$3:$AI$823,18,FALSE)))","v":""},{"$f":"IF($A837=\"\",\"\",IF(OR(VLOOKUP($A837,Economática!$A$3:$AI$823,19,FALSE)=0,VLOOKUP($A837,Economática!$A$3:$AI$823,19,FALSE)=\"-\"),1/0,VLOOKUP($A837,Economática!$A$3:$AI$823,19,FALSE)))","v":""},{"$f":"IF($A837=\"\",\"\",VLOOKUP($A837,Economática!$A$3:$AI$823,20,FALSE)/E837)","v":""},"","","",{"$f":"IF($A837=\"\",\"\",IF(OR(VLOOKUP($A837,Economática!$A$3:$AI$823,21,FALSE)/100=0,VLOOKUP($A837,Economática!$A$3:$AI$823,21,FALSE)/100=\"-\"),1/0,VLOOKUP($A837,Economática!$A$3:$AI$823,21,FALSE)/100))","v":""},{"$f":"IF($A837=\"\",\"\",IF(OR(VLOOKUP($A837,Economática!$A$3:$AI$823,22,FALSE)/100=0,VLOOKUP($A837,Economática!$A$3:$AI$823,22,FALSE)/100=\"-\"),1/0,VLOOKUP($A837,Economática!$A$3:$AI$823,22,FALSE)/100))","v":""},{"$f":"IF($A837=\"\",\"\",IF(OR(VLOOKUP($A837,Economática!$A$3:$AI$823,23,FALSE)=0,VLOOKUP($A837,Economática!$A$3:$AI$823,23,FALSE)=\"-\"),1/0,VLOOKUP($A837,Economática!$A$3:$AI$823,23,FALSE)))","v":""},{"$f":"IF($A837=\"\",\"\",IF(OR(VLOOKUP($A837,Economática!$A$3:$AI$823,24,FALSE)=0,VLOOKUP($A837,Economática!$A$3:$AI$823,24,FALSE)=\"-\"),1/0,VLOOKUP($A837,Economática!$A$3:$AI$823,24,FALSE)))","v":""},{"$f":"IF($A837=\"\",\"\",IF(OR(VLOOKUP($A837,Economática!$A$3:$AI$823,25,FALSE)=0,VLOOKUP($A837,Economática!$A$3:$AI$823,25,FALSE)=\"-\"),1/0,VLOOKUP($A837,Economática!$A$3:$AI$823,25,FALSE)))","v":""},{"$f":"IF($A837=\"\",\"\",IF(ISERROR((F837+VLOOKUP($A837,Economática!$A$3:$AI$823,26,FALSE))/Y837),(F837+VLOOKUP($A837,Economática!$A$3:$AI$823,26,FALSE))/Y837,(F837+VLOOKUP($A837,Economática!$A$3:$AI$823,26,FALSE))/Y837))","v":""},{"$f":"IF($A837=\"\",\"\",IF(OR(-VLOOKUP($A837,Economática!$A$3:$AI$823,27,FALSE)=0,-VLOOKUP($A837,Economática!$A$3:$AI$823,27,FALSE)=\"-\"),1/0,-VLOOKUP($A837,Economática!$A$3:$AI$823,27,FALSE)))","v":""},"",{"$f":"IF($A837=\"\",\"\",IF(OR(VLOOKUP($A837,Economática!$A$3:$AI$823,28,FALSE)=0,VLOOKUP($A837,Economática!$A$3:$AI$823,28,FALSE)=\"-\"),1/0,VLOOKUP($A837,Economática!$A$3:$AI$823,28,FALSE)))","v":""},{"$f":"IF($A837=\"\",\"\",IF(OR(VLOOKUP($A837,Economática!$A$3:$AI$823,29,FALSE)=0,VLOOKUP($A837,Economática!$A$3:$AI$823,29,FALSE)=\"-\"),1/0,VLOOKUP($A837,Economática!$A$3:$AI$823,29,FALSE)))","v":""},{"$f":"IF($A837=\"\",\"\",IF(OR(VLOOKUP($A837,Economática!$A$3:$AI$823,30,FALSE)/E837=0,VLOOKUP($A837,Economática!$A$3:$AI$823,30,FALSE)/E837=\"-\",VLOOKUP($A837,Economática!$A$3:$AI$823,30,FALSE)/E837<33.33%,VLOOKUP($A837,Economática!$A$3:$AI$823,30,FALSE)/E837>100%),1/0,VLOOKUP($A837,Economática!$A$3:$AI$823,30,FALSE)/E837))","v":""},"",{"$f":"IF($A837=\"\",\"\",IF(OR(VLOOKUP($A837,Economática!$A$3:$AI$823,25,FALSE)=0,VLOOKUP($A837,Economática!$A$3:$AI$823,25,FALSE)=\"-\"),1/0,VLOOKUP($A837,Economática!$A$3:$AI$823,25,FALSE)))","v":""},{"$f":"CONCATENATE(Economática!B815,\" \",Economática!C815)","v":" "}]
[{"$f":"IF(Economática!AG816=\"\",\"\",Economática!AG816)","v":""},{"$f":"IF($A838=\"\",\"\",VLOOKUP(VLOOKUP($A838,Economática!$A$3:$AI$823,6,FALSE),Correção!$B$16:$C$36,2,FALSE))","v":""},{"$f":"IF(Economática!B816=\"\",\"\",Economática!B816)","v":""},{"$f":"IF($A838=\"\",\"\",IF(OR(VLOOKUP($A838,Economática!$A$3:$AI$823,8,FALSE)=0,VLOOKUP($A838,Economática!$A$3:$AI$823,8,FALSE)=\"-\"),1/0,VLOOKUP($A838,Economática!$A$3:$AI$823,8,FALSE)))","v":""},{"$f":"IF(A838=\"\",\"\",IF(ISERROR(VLOOKUP(A838,Correção!$B$2:$G$13,9,FALSE)),VLOOKUP($A838,Economática!$A$3:$AI$823,9,FALSE),VLOOKUP(A838,Correção!$B$2:$G$13,9,FALSE)))","v":""},{"$f":"IF($A838=\"\",\"\",Economática!G816)","v":""},{"$f":"IF($A838=\"\",\"\",IF(OR(VLOOKUP($A838,Economática!$A$3:$AI$823,10,FALSE)=0,VLOOKUP($A838,Economática!$A$3:$AI$823,10,FALSE)=\"-\"),1/0,VLOOKUP($A838,Economática!$A$3:$AI$823,10,FALSE)))","v":""},{"$f":"IF($A838=\"\",\"\",IF(OR(VLOOKUP($A838,Economática!$A$3:$AI$823,11,FALSE)=0,VLOOKUP($A838,Economática!$A$3:$AI$823,11,FALSE)=\"-\"),1/0,VLOOKUP($A838,Economática!$A$3:$AI$823,11,FALSE)))","v":""},{"$f":"IF($A838=\"\",\"\",IF(OR(VLOOKUP($A838,Economática!$A$3:$AI$823,12,FALSE)=0,VLOOKUP($A838,Economática!$A$3:$AI$823,12,FALSE)=\"-\"),1/0,VLOOKUP($A838,Economática!$A$3:$AI$823,12,FALSE)))","v":""},{"$f":"IF($A838=\"\",\"\",IF(OR(VLOOKUP($A838,Economática!$A$3:$AI$823,13,FALSE)=0,VLOOKUP($A838,Economática!$A$3:$AI$823,13,FALSE)=\"-\"),1/0,VLOOKUP($A838,Economática!$A$3:$AI$823,13,FALSE)))","v":""},{"$f":"IF($A838=\"\",\"\",IF(OR(VLOOKUP($A838,Economática!$A$3:$AI$823,14,FALSE)=0,VLOOKUP($A838,Economática!$A$3:$AI$823,14,FALSE)=\"-\"),1/0,VLOOKUP($A838,Economática!$A$3:$AI$823,14,FALSE)))","v":""},{"$f":"IF($A838=\"\",\"\",IF(OR(VLOOKUP($A838,Economática!$A$3:$AI$823,15,FALSE)=0,VLOOKUP($A838,Economática!$A$3:$AI$823,15,FALSE)=\"-\"),1/0,VLOOKUP($A838,Economática!$A$3:$AI$823,15,FALSE)))","v":""},{"$f":"IF($A838=\"\",\"\",IF(OR(VLOOKUP($A838,Economática!$A$3:$AI$823,16,FALSE)=0,VLOOKUP($A838,Economática!$A$3:$AI$823,16,FALSE)=\"-\"),1/0,VLOOKUP($A838,Economática!$A$3:$AI$823,16,FALSE)))","v":""},{"$f":"IF($A838=\"\",\"\",IF(OR(VLOOKUP($A838,Economática!$A$3:$AI$823,17,FALSE)=0,VLOOKUP($A838,Economática!$A$3:$AI$823,17,FALSE)=\"-\"),1/0,VLOOKUP($A838,Economática!$A$3:$AI$823,17,FALSE)))","v":""},{"$f":"IF($A838=\"\",\"\",IF(OR(VLOOKUP($A838,Economática!$A$3:$AI$823,18,FALSE)=0,VLOOKUP($A838,Economática!$A$3:$AI$823,18,FALSE)=\"-\"),1/0,VLOOKUP($A838,Economática!$A$3:$AI$823,18,FALSE)))","v":""},{"$f":"IF($A838=\"\",\"\",IF(OR(VLOOKUP($A838,Economática!$A$3:$AI$823,19,FALSE)=0,VLOOKUP($A838,Economática!$A$3:$AI$823,19,FALSE)=\"-\"),1/0,VLOOKUP($A838,Economática!$A$3:$AI$823,19,FALSE)))","v":""},{"$f":"IF($A838=\"\",\"\",VLOOKUP($A838,Economática!$A$3:$AI$823,20,FALSE)/E838)","v":""},"","","",{"$f":"IF($A838=\"\",\"\",IF(OR(VLOOKUP($A838,Economática!$A$3:$AI$823,21,FALSE)/100=0,VLOOKUP($A838,Economática!$A$3:$AI$823,21,FALSE)/100=\"-\"),1/0,VLOOKUP($A838,Economática!$A$3:$AI$823,21,FALSE)/100))","v":""},{"$f":"IF($A838=\"\",\"\",IF(OR(VLOOKUP($A838,Economática!$A$3:$AI$823,22,FALSE)/100=0,VLOOKUP($A838,Economática!$A$3:$AI$823,22,FALSE)/100=\"-\"),1/0,VLOOKUP($A838,Economática!$A$3:$AI$823,22,FALSE)/100))","v":""},{"$f":"IF($A838=\"\",\"\",IF(OR(VLOOKUP($A838,Economática!$A$3:$AI$823,23,FALSE)=0,VLOOKUP($A838,Economática!$A$3:$AI$823,23,FALSE)=\"-\"),1/0,VLOOKUP($A838,Economática!$A$3:$AI$823,23,FALSE)))","v":""},{"$f":"IF($A838=\"\",\"\",IF(OR(VLOOKUP($A838,Economática!$A$3:$AI$823,24,FALSE)=0,VLOOKUP($A838,Economática!$A$3:$AI$823,24,FALSE)=\"-\"),1/0,VLOOKUP($A838,Economática!$A$3:$AI$823,24,FALSE)))","v":""},{"$f":"IF($A838=\"\",\"\",IF(OR(VLOOKUP($A838,Economática!$A$3:$AI$823,25,FALSE)=0,VLOOKUP($A838,Economática!$A$3:$AI$823,25,FALSE)=\"-\"),1/0,VLOOKUP($A838,Economática!$A$3:$AI$823,25,FALSE)))","v":""},{"$f":"IF($A838=\"\",\"\",IF(ISERROR((F838+VLOOKUP($A838,Economática!$A$3:$AI$823,26,FALSE))/Y838),(F838+VLOOKUP($A838,Economática!$A$3:$AI$823,26,FALSE))/Y838,(F838+VLOOKUP($A838,Economática!$A$3:$AI$823,26,FALSE))/Y838))","v":""},{"$f":"IF($A838=\"\",\"\",IF(OR(-VLOOKUP($A838,Economática!$A$3:$AI$823,27,FALSE)=0,-VLOOKUP($A838,Economática!$A$3:$AI$823,27,FALSE)=\"-\"),1/0,-VLOOKUP($A838,Economática!$A$3:$AI$823,27,FALSE)))","v":""},"",{"$f":"IF($A838=\"\",\"\",IF(OR(VLOOKUP($A838,Economática!$A$3:$AI$823,28,FALSE)=0,VLOOKUP($A838,Economática!$A$3:$AI$823,28,FALSE)=\"-\"),1/0,VLOOKUP($A838,Economática!$A$3:$AI$823,28,FALSE)))","v":""},{"$f":"IF($A838=\"\",\"\",IF(OR(VLOOKUP($A838,Economática!$A$3:$AI$823,29,FALSE)=0,VLOOKUP($A838,Economática!$A$3:$AI$823,29,FALSE)=\"-\"),1/0,VLOOKUP($A838,Economática!$A$3:$AI$823,29,FALSE)))","v":""},{"$f":"IF($A838=\"\",\"\",IF(OR(VLOOKUP($A838,Economática!$A$3:$AI$823,30,FALSE)/E838=0,VLOOKUP($A838,Economática!$A$3:$AI$823,30,FALSE)/E838=\"-\",VLOOKUP($A838,Economática!$A$3:$AI$823,30,FALSE)/E838<33.33%,VLOOKUP($A838,Economática!$A$3:$AI$823,30,FALSE)/E838>100%),1/0,VLOOKUP($A838,Economática!$A$3:$AI$823,30,FALSE)/E838))","v":""},"",{"$f":"IF($A838=\"\",\"\",IF(OR(VLOOKUP($A838,Economática!$A$3:$AI$823,25,FALSE)=0,VLOOKUP($A838,Economática!$A$3:$AI$823,25,FALSE)=\"-\"),1/0,VLOOKUP($A838,Economática!$A$3:$AI$823,25,FALSE)))","v":""},{"$f":"CONCATENATE(Economática!B816,\" \",Economática!C816)","v":" "}]
[{"$f":"IF(Economática!AG817=\"\",\"\",Economática!AG817)","v":""},{"$f":"IF($A839=\"\",\"\",VLOOKUP(VLOOKUP($A839,Economática!$A$3:$AI$823,6,FALSE),Correção!$B$16:$C$36,2,FALSE))","v":""},{"$f":"IF(Economática!B817=\"\",\"\",Economática!B817)","v":""},{"$f":"IF($A839=\"\",\"\",IF(OR(VLOOKUP($A839,Economática!$A$3:$AI$823,8,FALSE)=0,VLOOKUP($A839,Economática!$A$3:$AI$823,8,FALSE)=\"-\"),1/0,VLOOKUP($A839,Economática!$A$3:$AI$823,8,FALSE)))","v":""},{"$f":"IF(A839=\"\",\"\",IF(ISERROR(VLOOKUP(A839,Correção!$B$2:$G$13,9,FALSE)),VLOOKUP($A839,Economática!$A$3:$AI$823,9,FALSE),VLOOKUP(A839,Correção!$B$2:$G$13,9,FALSE)))","v":""},{"$f":"IF($A839=\"\",\"\",Economática!G817)","v":""},{"$f":"IF($A839=\"\",\"\",IF(OR(VLOOKUP($A839,Economática!$A$3:$AI$823,10,FALSE)=0,VLOOKUP($A839,Economática!$A$3:$AI$823,10,FALSE)=\"-\"),1/0,VLOOKUP($A839,Economática!$A$3:$AI$823,10,FALSE)))","v":""},{"$f":"IF($A839=\"\",\"\",IF(OR(VLOOKUP($A839,Economática!$A$3:$AI$823,11,FALSE)=0,VLOOKUP($A839,Economática!$A$3:$AI$823,11,FALSE)=\"-\"),1/0,VLOOKUP($A839,Economática!$A$3:$AI$823,11,FALSE)))","v":""},{"$f":"IF($A839=\"\",\"\",IF(OR(VLOOKUP($A839,Economática!$A$3:$AI$823,12,FALSE)=0,VLOOKUP($A839,Economática!$A$3:$AI$823,12,FALSE)=\"-\"),1/0,VLOOKUP($A839,Economática!$A$3:$AI$823,12,FALSE)))","v":""},{"$f":"IF($A839=\"\",\"\",IF(OR(VLOOKUP($A839,Economática!$A$3:$AI$823,13,FALSE)=0,VLOOKUP($A839,Economática!$A$3:$AI$823,13,FALSE)=\"-\"),1/0,VLOOKUP($A839,Economática!$A$3:$AI$823,13,FALSE)))","v":""},{"$f":"IF($A839=\"\",\"\",IF(OR(VLOOKUP($A839,Economática!$A$3:$AI$823,14,FALSE)=0,VLOOKUP($A839,Economática!$A$3:$AI$823,14,FALSE)=\"-\"),1/0,VLOOKUP($A839,Economática!$A$3:$AI$823,14,FALSE)))","v":""},{"$f":"IF($A839=\"\",\"\",IF(OR(VLOOKUP($A839,Economática!$A$3:$AI$823,15,FALSE)=0,VLOOKUP($A839,Economática!$A$3:$AI$823,15,FALSE)=\"-\"),1/0,VLOOKUP($A839,Economática!$A$3:$AI$823,15,FALSE)))","v":""},{"$f":"IF($A839=\"\",\"\",IF(OR(VLOOKUP($A839,Economática!$A$3:$AI$823,16,FALSE)=0,VLOOKUP($A839,Economática!$A$3:$AI$823,16,FALSE)=\"-\"),1/0,VLOOKUP($A839,Economática!$A$3:$AI$823,16,FALSE)))","v":""},{"$f":"IF($A839=\"\",\"\",IF(OR(VLOOKUP($A839,Economática!$A$3:$AI$823,17,FALSE)=0,VLOOKUP($A839,Economática!$A$3:$AI$823,17,FALSE)=\"-\"),1/0,VLOOKUP($A839,Economática!$A$3:$AI$823,17,FALSE)))","v":""},{"$f":"IF($A839=\"\",\"\",IF(OR(VLOOKUP($A839,Economática!$A$3:$AI$823,18,FALSE)=0,VLOOKUP($A839,Economática!$A$3:$AI$823,18,FALSE)=\"-\"),1/0,VLOOKUP($A839,Economática!$A$3:$AI$823,18,FALSE)))","v":""},{"$f":"IF($A839=\"\",\"\",IF(OR(VLOOKUP($A839,Economática!$A$3:$AI$823,19,FALSE)=0,VLOOKUP($A839,Economática!$A$3:$AI$823,19,FALSE)=\"-\"),1/0,VLOOKUP($A839,Economática!$A$3:$AI$823,19,FALSE)))","v":""},{"$f":"IF($A839=\"\",\"\",VLOOKUP($A839,Economática!$A$3:$AI$823,20,FALSE)/E839)","v":""},"","","",{"$f":"IF($A839=\"\",\"\",IF(OR(VLOOKUP($A839,Economática!$A$3:$AI$823,21,FALSE)/100=0,VLOOKUP($A839,Economática!$A$3:$AI$823,21,FALSE)/100=\"-\"),1/0,VLOOKUP($A839,Economática!$A$3:$AI$823,21,FALSE)/100))","v":""},{"$f":"IF($A839=\"\",\"\",IF(OR(VLOOKUP($A839,Economática!$A$3:$AI$823,22,FALSE)/100=0,VLOOKUP($A839,Economática!$A$3:$AI$823,22,FALSE)/100=\"-\"),1/0,VLOOKUP($A839,Economática!$A$3:$AI$823,22,FALSE)/100))","v":""},{"$f":"IF($A839=\"\",\"\",IF(OR(VLOOKUP($A839,Economática!$A$3:$AI$823,23,FALSE)=0,VLOOKUP($A839,Economática!$A$3:$AI$823,23,FALSE)=\"-\"),1/0,VLOOKUP($A839,Economática!$A$3:$AI$823,23,FALSE)))","v":""},{"$f":"IF($A839=\"\",\"\",IF(OR(VLOOKUP($A839,Economática!$A$3:$AI$823,24,FALSE)=0,VLOOKUP($A839,Economática!$A$3:$AI$823,24,FALSE)=\"-\"),1/0,VLOOKUP($A839,Economática!$A$3:$AI$823,24,FALSE)))","v":""},{"$f":"IF($A839=\"\",\"\",IF(OR(VLOOKUP($A839,Economática!$A$3:$AI$823,25,FALSE)=0,VLOOKUP($A839,Economática!$A$3:$AI$823,25,FALSE)=\"-\"),1/0,VLOOKUP($A839,Economática!$A$3:$AI$823,25,FALSE)))","v":""},{"$f":"IF($A839=\"\",\"\",IF(ISERROR((F839+VLOOKUP($A839,Economática!$A$3:$AI$823,26,FALSE))/Y839),(F839+VLOOKUP($A839,Economática!$A$3:$AI$823,26,FALSE))/Y839,(F839+VLOOKUP($A839,Economática!$A$3:$AI$823,26,FALSE))/Y839))","v":""},{"$f":"IF($A839=\"\",\"\",IF(OR(-VLOOKUP($A839,Economática!$A$3:$AI$823,27,FALSE)=0,-VLOOKUP($A839,Economática!$A$3:$AI$823,27,FALSE)=\"-\"),1/0,-VLOOKUP($A839,Economática!$A$3:$AI$823,27,FALSE)))","v":""},"",{"$f":"IF($A839=\"\",\"\",IF(OR(VLOOKUP($A839,Economática!$A$3:$AI$823,28,FALSE)=0,VLOOKUP($A839,Economática!$A$3:$AI$823,28,FALSE)=\"-\"),1/0,VLOOKUP($A839,Economática!$A$3:$AI$823,28,FALSE)))","v":""},{"$f":"IF($A839=\"\",\"\",IF(OR(VLOOKUP($A839,Economática!$A$3:$AI$823,29,FALSE)=0,VLOOKUP($A839,Economática!$A$3:$AI$823,29,FALSE)=\"-\"),1/0,VLOOKUP($A839,Economática!$A$3:$AI$823,29,FALSE)))","v":""},{"$f":"IF($A839=\"\",\"\",IF(OR(VLOOKUP($A839,Economática!$A$3:$AI$823,30,FALSE)/E839=0,VLOOKUP($A839,Economática!$A$3:$AI$823,30,FALSE)/E839=\"-\",VLOOKUP($A839,Economática!$A$3:$AI$823,30,FALSE)/E839<33.33%,VLOOKUP($A839,Economática!$A$3:$AI$823,30,FALSE)/E839>100%),1/0,VLOOKUP($A839,Economática!$A$3:$AI$823,30,FALSE)/E839))","v":""},"",{"$f":"IF($A839=\"\",\"\",IF(OR(VLOOKUP($A839,Economática!$A$3:$AI$823,25,FALSE)=0,VLOOKUP($A839,Economática!$A$3:$AI$823,25,FALSE)=\"-\"),1/0,VLOOKUP($A839,Economática!$A$3:$AI$823,25,FALSE)))","v":""},{"$f":"CONCATENATE(Economática!B817,\" \",Economática!C817)","v":" "}]
[{"$f":"IF(Economática!AG818=\"\",\"\",Economática!AG818)","v":""},{"$f":"IF($A840=\"\",\"\",VLOOKUP(VLOOKUP($A840,Economática!$A$3:$AI$823,6,FALSE),Correção!$B$16:$C$36,2,FALSE))","v":""},{"$f":"IF(Economática!B818=\"\",\"\",Economática!B818)","v":""},{"$f":"IF($A840=\"\",\"\",IF(OR(VLOOKUP($A840,Economática!$A$3:$AI$823,8,FALSE)=0,VLOOKUP($A840,Economática!$A$3:$AI$823,8,FALSE)=\"-\"),1/0,VLOOKUP($A840,Economática!$A$3:$AI$823,8,FALSE)))","v":""},{"$f":"IF(A840=\"\",\"\",IF(ISERROR(VLOOKUP(A840,Correção!$B$2:$G$13,9,FALSE)),VLOOKUP($A840,Economática!$A$3:$AI$823,9,FALSE),VLOOKUP(A840,Correção!$B$2:$G$13,9,FALSE)))","v":""},{"$f":"IF($A840=\"\",\"\",Economática!G818)","v":""},{"$f":"IF($A840=\"\",\"\",IF(OR(VLOOKUP($A840,Economática!$A$3:$AI$823,10,FALSE)=0,VLOOKUP($A840,Economática!$A$3:$AI$823,10,FALSE)=\"-\"),1/0,VLOOKUP($A840,Economática!$A$3:$AI$823,10,FALSE)))","v":""},{"$f":"IF($A840=\"\",\"\",IF(OR(VLOOKUP($A840,Economática!$A$3:$AI$823,11,FALSE)=0,VLOOKUP($A840,Economática!$A$3:$AI$823,11,FALSE)=\"-\"),1/0,VLOOKUP($A840,Economática!$A$3:$AI$823,11,FALSE)))","v":""},{"$f":"IF($A840=\"\",\"\",IF(OR(VLOOKUP($A840,Economática!$A$3:$AI$823,12,FALSE)=0,VLOOKUP($A840,Economática!$A$3:$AI$823,12,FALSE)=\"-\"),1/0,VLOOKUP($A840,Economática!$A$3:$AI$823,12,FALSE)))","v":""},{"$f":"IF($A840=\"\",\"\",IF(OR(VLOOKUP($A840,Economática!$A$3:$AI$823,13,FALSE)=0,VLOOKUP($A840,Economática!$A$3:$AI$823,13,FALSE)=\"-\"),1/0,VLOOKUP($A840,Economática!$A$3:$AI$823,13,FALSE)))","v":""},{"$f":"IF($A840=\"\",\"\",IF(OR(VLOOKUP($A840,Economática!$A$3:$AI$823,14,FALSE)=0,VLOOKUP($A840,Economática!$A$3:$AI$823,14,FALSE)=\"-\"),1/0,VLOOKUP($A840,Economática!$A$3:$AI$823,14,FALSE)))","v":""},{"$f":"IF($A840=\"\",\"\",IF(OR(VLOOKUP($A840,Economática!$A$3:$AI$823,15,FALSE)=0,VLOOKUP($A840,Economática!$A$3:$AI$823,15,FALSE)=\"-\"),1/0,VLOOKUP($A840,Economática!$A$3:$AI$823,15,FALSE)))","v":""},{"$f":"IF($A840=\"\",\"\",IF(OR(VLOOKUP($A840,Economática!$A$3:$AI$823,16,FALSE)=0,VLOOKUP($A840,Economática!$A$3:$AI$823,16,FALSE)=\"-\"),1/0,VLOOKUP($A840,Economática!$A$3:$AI$823,16,FALSE)))","v":""},{"$f":"IF($A840=\"\",\"\",IF(OR(VLOOKUP($A840,Economática!$A$3:$AI$823,17,FALSE)=0,VLOOKUP($A840,Economática!$A$3:$AI$823,17,FALSE)=\"-\"),1/0,VLOOKUP($A840,Economática!$A$3:$AI$823,17,FALSE)))","v":""},{"$f":"IF($A840=\"\",\"\",IF(OR(VLOOKUP($A840,Economática!$A$3:$AI$823,18,FALSE)=0,VLOOKUP($A840,Economática!$A$3:$AI$823,18,FALSE)=\"-\"),1/0,VLOOKUP($A840,Economática!$A$3:$AI$823,18,FALSE)))","v":""},{"$f":"IF($A840=\"\",\"\",IF(OR(VLOOKUP($A840,Economática!$A$3:$AI$823,19,FALSE)=0,VLOOKUP($A840,Economática!$A$3:$AI$823,19,FALSE)=\"-\"),1/0,VLOOKUP($A840,Economática!$A$3:$AI$823,19,FALSE)))","v":""},{"$f":"IF($A840=\"\",\"\",VLOOKUP($A840,Economática!$A$3:$AI$823,20,FALSE)/E840)","v":""},"","","",{"$f":"IF($A840=\"\",\"\",IF(OR(VLOOKUP($A840,Economática!$A$3:$AI$823,21,FALSE)/100=0,VLOOKUP($A840,Economática!$A$3:$AI$823,21,FALSE)/100=\"-\"),1/0,VLOOKUP($A840,Economática!$A$3:$AI$823,21,FALSE)/100))","v":""},{"$f":"IF($A840=\"\",\"\",IF(OR(VLOOKUP($A840,Economática!$A$3:$AI$823,22,FALSE)/100=0,VLOOKUP($A840,Economática!$A$3:$AI$823,22,FALSE)/100=\"-\"),1/0,VLOOKUP($A840,Economática!$A$3:$AI$823,22,FALSE)/100))","v":""},{"$f":"IF($A840=\"\",\"\",IF(OR(VLOOKUP($A840,Economática!$A$3:$AI$823,23,FALSE)=0,VLOOKUP($A840,Economática!$A$3:$AI$823,23,FALSE)=\"-\"),1/0,VLOOKUP($A840,Economática!$A$3:$AI$823,23,FALSE)))","v":""},{"$f":"IF($A840=\"\",\"\",IF(OR(VLOOKUP($A840,Economática!$A$3:$AI$823,24,FALSE)=0,VLOOKUP($A840,Economática!$A$3:$AI$823,24,FALSE)=\"-\"),1/0,VLOOKUP($A840,Economática!$A$3:$AI$823,24,FALSE)))","v":""},{"$f":"IF($A840=\"\",\"\",IF(OR(VLOOKUP($A840,Economática!$A$3:$AI$823,25,FALSE)=0,VLOOKUP($A840,Economática!$A$3:$AI$823,25,FALSE)=\"-\"),1/0,VLOOKUP($A840,Economática!$A$3:$AI$823,25,FALSE)))","v":""},{"$f":"IF($A840=\"\",\"\",IF(ISERROR((F840+VLOOKUP($A840,Economática!$A$3:$AI$823,26,FALSE))/Y840),(F840+VLOOKUP($A840,Economática!$A$3:$AI$823,26,FALSE))/Y840,(F840+VLOOKUP($A840,Economática!$A$3:$AI$823,26,FALSE))/Y840))","v":""},{"$f":"IF($A840=\"\",\"\",IF(OR(-VLOOKUP($A840,Economática!$A$3:$AI$823,27,FALSE)=0,-VLOOKUP($A840,Economática!$A$3:$AI$823,27,FALSE)=\"-\"),1/0,-VLOOKUP($A840,Economática!$A$3:$AI$823,27,FALSE)))","v":""},"",{"$f":"IF($A840=\"\",\"\",IF(OR(VLOOKUP($A840,Economática!$A$3:$AI$823,28,FALSE)=0,VLOOKUP($A840,Economática!$A$3:$AI$823,28,FALSE)=\"-\"),1/0,VLOOKUP($A840,Economática!$A$3:$AI$823,28,FALSE)))","v":""},{"$f":"IF($A840=\"\",\"\",IF(OR(VLOOKUP($A840,Economática!$A$3:$AI$823,29,FALSE)=0,VLOOKUP($A840,Economática!$A$3:$AI$823,29,FALSE)=\"-\"),1/0,VLOOKUP($A840,Economática!$A$3:$AI$823,29,FALSE)))","v":""},{"$f":"IF($A840=\"\",\"\",IF(OR(VLOOKUP($A840,Economática!$A$3:$AI$823,30,FALSE)/E840=0,VLOOKUP($A840,Economática!$A$3:$AI$823,30,FALSE)/E840=\"-\",VLOOKUP($A840,Economática!$A$3:$AI$823,30,FALSE)/E840<33.33%,VLOOKUP($A840,Economática!$A$3:$AI$823,30,FALSE)/E840>100%),1/0,VLOOKUP($A840,Economática!$A$3:$AI$823,30,FALSE)/E840))","v":""},"",{"$f":"IF($A840=\"\",\"\",IF(OR(VLOOKUP($A840,Economática!$A$3:$AI$823,25,FALSE)=0,VLOOKUP($A840,Economática!$A$3:$AI$823,25,FALSE)=\"-\"),1/0,VLOOKUP($A840,Economática!$A$3:$AI$823,25,FALSE)))","v":""},{"$f":"CONCATENATE(Economática!B818,\" \",Economática!C818)","v":" "}]
[{"$f":"IF(Economática!AG819=\"\",\"\",Economática!AG819)","v":""},{"$f":"IF($A841=\"\",\"\",VLOOKUP(VLOOKUP($A841,Economática!$A$3:$AI$823,6,FALSE),Correção!$B$16:$C$36,2,FALSE))","v":""},{"$f":"IF(Economática!B819=\"\",\"\",Economática!B819)","v":""},{"$f":"IF($A841=\"\",\"\",IF(OR(VLOOKUP($A841,Economática!$A$3:$AI$823,8,FALSE)=0,VLOOKUP($A841,Economática!$A$3:$AI$823,8,FALSE)=\"-\"),1/0,VLOOKUP($A841,Economática!$A$3:$AI$823,8,FALSE)))","v":""},{"$f":"IF(A841=\"\",\"\",IF(ISERROR(VLOOKUP(A841,Correção!$B$2:$G$13,9,FALSE)),VLOOKUP($A841,Economática!$A$3:$AI$823,9,FALSE),VLOOKUP(A841,Correção!$B$2:$G$13,9,FALSE)))","v":""},{"$f":"IF($A841=\"\",\"\",Economática!G819)","v":""},{"$f":"IF($A841=\"\",\"\",IF(OR(VLOOKUP($A841,Economática!$A$3:$AI$823,10,FALSE)=0,VLOOKUP($A841,Economática!$A$3:$AI$823,10,FALSE)=\"-\"),1/0,VLOOKUP($A841,Economática!$A$3:$AI$823,10,FALSE)))","v":""},{"$f":"IF($A841=\"\",\"\",IF(OR(VLOOKUP($A841,Economática!$A$3:$AI$823,11,FALSE)=0,VLOOKUP($A841,Economática!$A$3:$AI$823,11,FALSE)=\"-\"),1/0,VLOOKUP($A841,Economática!$A$3:$AI$823,11,FALSE)))","v":""},{"$f":"IF($A841=\"\",\"\",IF(OR(VLOOKUP($A841,Economática!$A$3:$AI$823,12,FALSE)=0,VLOOKUP($A841,Economática!$A$3:$AI$823,12,FALSE)=\"-\"),1/0,VLOOKUP($A841,Economática!$A$3:$AI$823,12,FALSE)))","v":""},{"$f":"IF($A841=\"\",\"\",IF(OR(VLOOKUP($A841,Economática!$A$3:$AI$823,13,FALSE)=0,VLOOKUP($A841,Economática!$A$3:$AI$823,13,FALSE)=\"-\"),1/0,VLOOKUP($A841,Economática!$A$3:$AI$823,13,FALSE)))","v":""},{"$f":"IF($A841=\"\",\"\",IF(OR(VLOOKUP($A841,Economática!$A$3:$AI$823,14,FALSE)=0,VLOOKUP($A841,Economática!$A$3:$AI$823,14,FALSE)=\"-\"),1/0,VLOOKUP($A841,Economática!$A$3:$AI$823,14,FALSE)))","v":""},{"$f":"IF($A841=\"\",\"\",IF(OR(VLOOKUP($A841,Economática!$A$3:$AI$823,15,FALSE)=0,VLOOKUP($A841,Economática!$A$3:$AI$823,15,FALSE)=\"-\"),1/0,VLOOKUP($A841,Economática!$A$3:$AI$823,15,FALSE)))","v":""},{"$f":"IF($A841=\"\",\"\",IF(OR(VLOOKUP($A841,Economática!$A$3:$AI$823,16,FALSE)=0,VLOOKUP($A841,Economática!$A$3:$AI$823,16,FALSE)=\"-\"),1/0,VLOOKUP($A841,Economática!$A$3:$AI$823,16,FALSE)))","v":""},{"$f":"IF($A841=\"\",\"\",IF(OR(VLOOKUP($A841,Economática!$A$3:$AI$823,17,FALSE)=0,VLOOKUP($A841,Economática!$A$3:$AI$823,17,FALSE)=\"-\"),1/0,VLOOKUP($A841,Economática!$A$3:$AI$823,17,FALSE)))","v":""},{"$f":"IF($A841=\"\",\"\",IF(OR(VLOOKUP($A841,Economática!$A$3:$AI$823,18,FALSE)=0,VLOOKUP($A841,Economática!$A$3:$AI$823,18,FALSE)=\"-\"),1/0,VLOOKUP($A841,Economática!$A$3:$AI$823,18,FALSE)))","v":""},{"$f":"IF($A841=\"\",\"\",IF(OR(VLOOKUP($A841,Economática!$A$3:$AI$823,19,FALSE)=0,VLOOKUP($A841,Economática!$A$3:$AI$823,19,FALSE)=\"-\"),1/0,VLOOKUP($A841,Economática!$A$3:$AI$823,19,FALSE)))","v":""},{"$f":"IF($A841=\"\",\"\",VLOOKUP($A841,Economática!$A$3:$AI$823,20,FALSE)/E841)","v":""},"","","",{"$f":"IF($A841=\"\",\"\",IF(OR(VLOOKUP($A841,Economática!$A$3:$AI$823,21,FALSE)/100=0,VLOOKUP($A841,Economática!$A$3:$AI$823,21,FALSE)/100=\"-\"),1/0,VLOOKUP($A841,Economática!$A$3:$AI$823,21,FALSE)/100))","v":""},{"$f":"IF($A841=\"\",\"\",IF(OR(VLOOKUP($A841,Economática!$A$3:$AI$823,22,FALSE)/100=0,VLOOKUP($A841,Economática!$A$3:$AI$823,22,FALSE)/100=\"-\"),1/0,VLOOKUP($A841,Economática!$A$3:$AI$823,22,FALSE)/100))","v":""},{"$f":"IF($A841=\"\",\"\",IF(OR(VLOOKUP($A841,Economática!$A$3:$AI$823,23,FALSE)=0,VLOOKUP($A841,Economática!$A$3:$AI$823,23,FALSE)=\"-\"),1/0,VLOOKUP($A841,Economática!$A$3:$AI$823,23,FALSE)))","v":""},{"$f":"IF($A841=\"\",\"\",IF(OR(VLOOKUP($A841,Economática!$A$3:$AI$823,24,FALSE)=0,VLOOKUP($A841,Economática!$A$3:$AI$823,24,FALSE)=\"-\"),1/0,VLOOKUP($A841,Economática!$A$3:$AI$823,24,FALSE)))","v":""},{"$f":"IF($A841=\"\",\"\",IF(OR(VLOOKUP($A841,Economática!$A$3:$AI$823,25,FALSE)=0,VLOOKUP($A841,Economática!$A$3:$AI$823,25,FALSE)=\"-\"),1/0,VLOOKUP($A841,Economática!$A$3:$AI$823,25,FALSE)))","v":""},{"$f":"IF($A841=\"\",\"\",IF(ISERROR((F841+VLOOKUP($A841,Economática!$A$3:$AI$823,26,FALSE))/Y841),(F841+VLOOKUP($A841,Economática!$A$3:$AI$823,26,FALSE))/Y841,(F841+VLOOKUP($A841,Economática!$A$3:$AI$823,26,FALSE))/Y841))","v":""},{"$f":"IF($A841=\"\",\"\",IF(OR(-VLOOKUP($A841,Economática!$A$3:$AI$823,27,FALSE)=0,-VLOOKUP($A841,Economática!$A$3:$AI$823,27,FALSE)=\"-\"),1/0,-VLOOKUP($A841,Economática!$A$3:$AI$823,27,FALSE)))","v":""},"",{"$f":"IF($A841=\"\",\"\",IF(OR(VLOOKUP($A841,Economática!$A$3:$AI$823,28,FALSE)=0,VLOOKUP($A841,Economática!$A$3:$AI$823,28,FALSE)=\"-\"),1/0,VLOOKUP($A841,Economática!$A$3:$AI$823,28,FALSE)))","v":""},{"$f":"IF($A841=\"\",\"\",IF(OR(VLOOKUP($A841,Economática!$A$3:$AI$823,29,FALSE)=0,VLOOKUP($A841,Economática!$A$3:$AI$823,29,FALSE)=\"-\"),1/0,VLOOKUP($A841,Economática!$A$3:$AI$823,29,FALSE)))","v":""},{"$f":"IF($A841=\"\",\"\",IF(OR(VLOOKUP($A841,Economática!$A$3:$AI$823,30,FALSE)/E841=0,VLOOKUP($A841,Economática!$A$3:$AI$823,30,FALSE)/E841=\"-\",VLOOKUP($A841,Economática!$A$3:$AI$823,30,FALSE)/E841<33.33%,VLOOKUP($A841,Economática!$A$3:$AI$823,30,FALSE)/E841>100%),1/0,VLOOKUP($A841,Economática!$A$3:$AI$823,30,FALSE)/E841))","v":""},"",{"$f":"IF($A841=\"\",\"\",IF(OR(VLOOKUP($A841,Economática!$A$3:$AI$823,25,FALSE)=0,VLOOKUP($A841,Economática!$A$3:$AI$823,25,FALSE)=\"-\"),1/0,VLOOKUP($A841,Economática!$A$3:$AI$823,25,FALSE)))","v":""},{"$f":"CONCATENATE(Economática!B819,\" \",Economática!C819)","v":" "}]
[{"$f":"IF(Economática!AG820=\"\",\"\",Economática!AG820)","v":""},{"$f":"IF($A842=\"\",\"\",VLOOKUP(VLOOKUP($A842,Economática!$A$3:$AI$823,6,FALSE),Correção!$B$16:$C$36,2,FALSE))","v":""},{"$f":"IF(Economática!B820=\"\",\"\",Economática!B820)","v":""},{"$f":"IF($A842=\"\",\"\",IF(OR(VLOOKUP($A842,Economática!$A$3:$AI$823,8,FALSE)=0,VLOOKUP($A842,Economática!$A$3:$AI$823,8,FALSE)=\"-\"),1/0,VLOOKUP($A842,Economática!$A$3:$AI$823,8,FALSE)))","v":""},{"$f":"IF(A842=\"\",\"\",IF(ISERROR(VLOOKUP(A842,Correção!$B$2:$G$13,9,FALSE)),VLOOKUP($A842,Economática!$A$3:$AI$823,9,FALSE),VLOOKUP(A842,Correção!$B$2:$G$13,9,FALSE)))","v":""},{"$f":"IF($A842=\"\",\"\",Economática!G820)","v":""},{"$f":"IF($A842=\"\",\"\",IF(OR(VLOOKUP($A842,Economática!$A$3:$AI$823,10,FALSE)=0,VLOOKUP($A842,Economática!$A$3:$AI$823,10,FALSE)=\"-\"),1/0,VLOOKUP($A842,Economática!$A$3:$AI$823,10,FALSE)))","v":""},{"$f":"IF($A842=\"\",\"\",IF(OR(VLOOKUP($A842,Economática!$A$3:$AI$823,11,FALSE)=0,VLOOKUP($A842,Economática!$A$3:$AI$823,11,FALSE)=\"-\"),1/0,VLOOKUP($A842,Economática!$A$3:$AI$823,11,FALSE)))","v":""},{"$f":"IF($A842=\"\",\"\",IF(OR(VLOOKUP($A842,Economática!$A$3:$AI$823,12,FALSE)=0,VLOOKUP($A842,Economática!$A$3:$AI$823,12,FALSE)=\"-\"),1/0,VLOOKUP($A842,Economática!$A$3:$AI$823,12,FALSE)))","v":""},{"$f":"IF($A842=\"\",\"\",IF(OR(VLOOKUP($A842,Economática!$A$3:$AI$823,13,FALSE)=0,VLOOKUP($A842,Economática!$A$3:$AI$823,13,FALSE)=\"-\"),1/0,VLOOKUP($A842,Economática!$A$3:$AI$823,13,FALSE)))","v":""},{"$f":"IF($A842=\"\",\"\",IF(OR(VLOOKUP($A842,Economática!$A$3:$AI$823,14,FALSE)=0,VLOOKUP($A842,Economática!$A$3:$AI$823,14,FALSE)=\"-\"),1/0,VLOOKUP($A842,Economática!$A$3:$AI$823,14,FALSE)))","v":""},{"$f":"IF($A842=\"\",\"\",IF(OR(VLOOKUP($A842,Economática!$A$3:$AI$823,15,FALSE)=0,VLOOKUP($A842,Economática!$A$3:$AI$823,15,FALSE)=\"-\"),1/0,VLOOKUP($A842,Economática!$A$3:$AI$823,15,FALSE)))","v":""},{"$f":"IF($A842=\"\",\"\",IF(OR(VLOOKUP($A842,Economática!$A$3:$AI$823,16,FALSE)=0,VLOOKUP($A842,Economática!$A$3:$AI$823,16,FALSE)=\"-\"),1/0,VLOOKUP($A842,Economática!$A$3:$AI$823,16,FALSE)))","v":""},{"$f":"IF($A842=\"\",\"\",IF(OR(VLOOKUP($A842,Economática!$A$3:$AI$823,17,FALSE)=0,VLOOKUP($A842,Economática!$A$3:$AI$823,17,FALSE)=\"-\"),1/0,VLOOKUP($A842,Economática!$A$3:$AI$823,17,FALSE)))","v":""},{"$f":"IF($A842=\"\",\"\",IF(OR(VLOOKUP($A842,Economática!$A$3:$AI$823,18,FALSE)=0,VLOOKUP($A842,Economática!$A$3:$AI$823,18,FALSE)=\"-\"),1/0,VLOOKUP($A842,Economática!$A$3:$AI$823,18,FALSE)))","v":""},{"$f":"IF($A842=\"\",\"\",IF(OR(VLOOKUP($A842,Economática!$A$3:$AI$823,19,FALSE)=0,VLOOKUP($A842,Economática!$A$3:$AI$823,19,FALSE)=\"-\"),1/0,VLOOKUP($A842,Economática!$A$3:$AI$823,19,FALSE)))","v":""},{"$f":"IF($A842=\"\",\"\",VLOOKUP($A842,Economática!$A$3:$AI$823,20,FALSE)/E842)","v":""},"","","",{"$f":"IF($A842=\"\",\"\",IF(OR(VLOOKUP($A842,Economática!$A$3:$AI$823,21,FALSE)/100=0,VLOOKUP($A842,Economática!$A$3:$AI$823,21,FALSE)/100=\"-\"),1/0,VLOOKUP($A842,Economática!$A$3:$AI$823,21,FALSE)/100))","v":""},{"$f":"IF($A842=\"\",\"\",IF(OR(VLOOKUP($A842,Economática!$A$3:$AI$823,22,FALSE)/100=0,VLOOKUP($A842,Economática!$A$3:$AI$823,22,FALSE)/100=\"-\"),1/0,VLOOKUP($A842,Economática!$A$3:$AI$823,22,FALSE)/100))","v":""},{"$f":"IF($A842=\"\",\"\",IF(OR(VLOOKUP($A842,Economática!$A$3:$AI$823,23,FALSE)=0,VLOOKUP($A842,Economática!$A$3:$AI$823,23,FALSE)=\"-\"),1/0,VLOOKUP($A842,Economática!$A$3:$AI$823,23,FALSE)))","v":""},{"$f":"IF($A842=\"\",\"\",IF(OR(VLOOKUP($A842,Economática!$A$3:$AI$823,24,FALSE)=0,VLOOKUP($A842,Economática!$A$3:$AI$823,24,FALSE)=\"-\"),1/0,VLOOKUP($A842,Economática!$A$3:$AI$823,24,FALSE)))","v":""},{"$f":"IF($A842=\"\",\"\",IF(OR(VLOOKUP($A842,Economática!$A$3:$AI$823,25,FALSE)=0,VLOOKUP($A842,Economática!$A$3:$AI$823,25,FALSE)=\"-\"),1/0,VLOOKUP($A842,Economática!$A$3:$AI$823,25,FALSE)))","v":""},{"$f":"IF($A842=\"\",\"\",IF(ISERROR((F842+VLOOKUP($A842,Economática!$A$3:$AI$823,26,FALSE))/Y842),(F842+VLOOKUP($A842,Economática!$A$3:$AI$823,26,FALSE))/Y842,(F842+VLOOKUP($A842,Economática!$A$3:$AI$823,26,FALSE))/Y842))","v":""},{"$f":"IF($A842=\"\",\"\",IF(OR(-VLOOKUP($A842,Economática!$A$3:$AI$823,27,FALSE)=0,-VLOOKUP($A842,Economática!$A$3:$AI$823,27,FALSE)=\"-\"),1/0,-VLOOKUP($A842,Economática!$A$3:$AI$823,27,FALSE)))","v":""},"",{"$f":"IF($A842=\"\",\"\",IF(OR(VLOOKUP($A842,Economática!$A$3:$AI$823,28,FALSE)=0,VLOOKUP($A842,Economática!$A$3:$AI$823,28,FALSE)=\"-\"),1/0,VLOOKUP($A842,Economática!$A$3:$AI$823,28,FALSE)))","v":""},{"$f":"IF($A842=\"\",\"\",IF(OR(VLOOKUP($A842,Economática!$A$3:$AI$823,29,FALSE)=0,VLOOKUP($A842,Economática!$A$3:$AI$823,29,FALSE)=\"-\"),1/0,VLOOKUP($A842,Economática!$A$3:$AI$823,29,FALSE)))","v":""},{"$f":"IF($A842=\"\",\"\",IF(OR(VLOOKUP($A842,Economática!$A$3:$AI$823,30,FALSE)/E842=0,VLOOKUP($A842,Economática!$A$3:$AI$823,30,FALSE)/E842=\"-\",VLOOKUP($A842,Economática!$A$3:$AI$823,30,FALSE)/E842<33.33%,VLOOKUP($A842,Economática!$A$3:$AI$823,30,FALSE)/E842>100%),1/0,VLOOKUP($A842,Economática!$A$3:$AI$823,30,FALSE)/E842))","v":""},"",{"$f":"IF($A842=\"\",\"\",IF(OR(VLOOKUP($A842,Economática!$A$3:$AI$823,25,FALSE)=0,VLOOKUP($A842,Economática!$A$3:$AI$823,25,FALSE)=\"-\"),1/0,VLOOKUP($A842,Economática!$A$3:$AI$823,25,FALSE)))","v":""},{"$f":"CONCATENATE(Economática!B820,\" \",Economática!C820)","v":" "}]
[{"$f":"IF(Economática!AG821=\"\",\"\",Economática!AG821)","v":""},{"$f":"IF($A843=\"\",\"\",VLOOKUP(VLOOKUP($A843,Economática!$A$3:$AI$823,6,FALSE),Correção!$B$16:$C$36,2,FALSE))","v":""},{"$f":"IF(Economática!B821=\"\",\"\",Economática!B821)","v":""},{"$f":"IF($A843=\"\",\"\",IF(OR(VLOOKUP($A843,Economática!$A$3:$AI$823,8,FALSE)=0,VLOOKUP($A843,Economática!$A$3:$AI$823,8,FALSE)=\"-\"),1/0,VLOOKUP($A843,Economática!$A$3:$AI$823,8,FALSE)))","v":""},{"$f":"IF(A843=\"\",\"\",IF(ISERROR(VLOOKUP(A843,Correção!$B$2:$G$13,9,FALSE)),VLOOKUP($A843,Economática!$A$3:$AI$823,9,FALSE),VLOOKUP(A843,Correção!$B$2:$G$13,9,FALSE)))","v":""},{"$f":"IF($A843=\"\",\"\",Economática!G821)","v":""},{"$f":"IF($A843=\"\",\"\",IF(OR(VLOOKUP($A843,Economática!$A$3:$AI$823,10,FALSE)=0,VLOOKUP($A843,Economática!$A$3:$AI$823,10,FALSE)=\"-\"),1/0,VLOOKUP($A843,Economática!$A$3:$AI$823,10,FALSE)))","v":""},{"$f":"IF($A843=\"\",\"\",IF(OR(VLOOKUP($A843,Economática!$A$3:$AI$823,11,FALSE)=0,VLOOKUP($A843,Economática!$A$3:$AI$823,11,FALSE)=\"-\"),1/0,VLOOKUP($A843,Economática!$A$3:$AI$823,11,FALSE)))","v":""},{"$f":"IF($A843=\"\",\"\",IF(OR(VLOOKUP($A843,Economática!$A$3:$AI$823,12,FALSE)=0,VLOOKUP($A843,Economática!$A$3:$AI$823,12,FALSE)=\"-\"),1/0,VLOOKUP($A843,Economática!$A$3:$AI$823,12,FALSE)))","v":""},{"$f":"IF($A843=\"\",\"\",IF(OR(VLOOKUP($A843,Economática!$A$3:$AI$823,13,FALSE)=0,VLOOKUP($A843,Economática!$A$3:$AI$823,13,FALSE)=\"-\"),1/0,VLOOKUP($A843,Economática!$A$3:$AI$823,13,FALSE)))","v":""},{"$f":"IF($A843=\"\",\"\",IF(OR(VLOOKUP($A843,Economática!$A$3:$AI$823,14,FALSE)=0,VLOOKUP($A843,Economática!$A$3:$AI$823,14,FALSE)=\"-\"),1/0,VLOOKUP($A843,Economática!$A$3:$AI$823,14,FALSE)))","v":""},{"$f":"IF($A843=\"\",\"\",IF(OR(VLOOKUP($A843,Economática!$A$3:$AI$823,15,FALSE)=0,VLOOKUP($A843,Economática!$A$3:$AI$823,15,FALSE)=\"-\"),1/0,VLOOKUP($A843,Economática!$A$3:$AI$823,15,FALSE)))","v":""},{"$f":"IF($A843=\"\",\"\",IF(OR(VLOOKUP($A843,Economática!$A$3:$AI$823,16,FALSE)=0,VLOOKUP($A843,Economática!$A$3:$AI$823,16,FALSE)=\"-\"),1/0,VLOOKUP($A843,Economática!$A$3:$AI$823,16,FALSE)))","v":""},{"$f":"IF($A843=\"\",\"\",IF(OR(VLOOKUP($A843,Economática!$A$3:$AI$823,17,FALSE)=0,VLOOKUP($A843,Economática!$A$3:$AI$823,17,FALSE)=\"-\"),1/0,VLOOKUP($A843,Economática!$A$3:$AI$823,17,FALSE)))","v":""},{"$f":"IF($A843=\"\",\"\",IF(OR(VLOOKUP($A843,Economática!$A$3:$AI$823,18,FALSE)=0,VLOOKUP($A843,Economática!$A$3:$AI$823,18,FALSE)=\"-\"),1/0,VLOOKUP($A843,Economática!$A$3:$AI$823,18,FALSE)))","v":""},{"$f":"IF($A843=\"\",\"\",IF(OR(VLOOKUP($A843,Economática!$A$3:$AI$823,19,FALSE)=0,VLOOKUP($A843,Economática!$A$3:$AI$823,19,FALSE)=\"-\"),1/0,VLOOKUP($A843,Economática!$A$3:$AI$823,19,FALSE)))","v":""},{"$f":"IF($A843=\"\",\"\",VLOOKUP($A843,Economática!$A$3:$AI$823,20,FALSE)/E843)","v":""},"","","",{"$f":"IF($A843=\"\",\"\",IF(OR(VLOOKUP($A843,Economática!$A$3:$AI$823,21,FALSE)/100=0,VLOOKUP($A843,Economática!$A$3:$AI$823,21,FALSE)/100=\"-\"),1/0,VLOOKUP($A843,Economática!$A$3:$AI$823,21,FALSE)/100))","v":""},{"$f":"IF($A843=\"\",\"\",IF(OR(VLOOKUP($A843,Economática!$A$3:$AI$823,22,FALSE)/100=0,VLOOKUP($A843,Economática!$A$3:$AI$823,22,FALSE)/100=\"-\"),1/0,VLOOKUP($A843,Economática!$A$3:$AI$823,22,FALSE)/100))","v":""},{"$f":"IF($A843=\"\",\"\",IF(OR(VLOOKUP($A843,Economática!$A$3:$AI$823,23,FALSE)=0,VLOOKUP($A843,Economática!$A$3:$AI$823,23,FALSE)=\"-\"),1/0,VLOOKUP($A843,Economática!$A$3:$AI$823,23,FALSE)))","v":""},{"$f":"IF($A843=\"\",\"\",IF(OR(VLOOKUP($A843,Economática!$A$3:$AI$823,24,FALSE)=0,VLOOKUP($A843,Economática!$A$3:$AI$823,24,FALSE)=\"-\"),1/0,VLOOKUP($A843,Economática!$A$3:$AI$823,24,FALSE)))","v":""},{"$f":"IF($A843=\"\",\"\",IF(OR(VLOOKUP($A843,Economática!$A$3:$AI$823,25,FALSE)=0,VLOOKUP($A843,Economática!$A$3:$AI$823,25,FALSE)=\"-\"),1/0,VLOOKUP($A843,Economática!$A$3:$AI$823,25,FALSE)))","v":""},{"$f":"IF($A843=\"\",\"\",IF(ISERROR((F843+VLOOKUP($A843,Economática!$A$3:$AI$823,26,FALSE))/Y843),(F843+VLOOKUP($A843,Economática!$A$3:$AI$823,26,FALSE))/Y843,(F843+VLOOKUP($A843,Economática!$A$3:$AI$823,26,FALSE))/Y843))","v":""},{"$f":"IF($A843=\"\",\"\",IF(OR(-VLOOKUP($A843,Economática!$A$3:$AI$823,27,FALSE)=0,-VLOOKUP($A843,Economática!$A$3:$AI$823,27,FALSE)=\"-\"),1/0,-VLOOKUP($A843,Economática!$A$3:$AI$823,27,FALSE)))","v":""},"",{"$f":"IF($A843=\"\",\"\",IF(OR(VLOOKUP($A843,Economática!$A$3:$AI$823,28,FALSE)=0,VLOOKUP($A843,Economática!$A$3:$AI$823,28,FALSE)=\"-\"),1/0,VLOOKUP($A843,Economática!$A$3:$AI$823,28,FALSE)))","v":""},{"$f":"IF($A843=\"\",\"\",IF(OR(VLOOKUP($A843,Economática!$A$3:$AI$823,29,FALSE)=0,VLOOKUP($A843,Economática!$A$3:$AI$823,29,FALSE)=\"-\"),1/0,VLOOKUP($A843,Economática!$A$3:$AI$823,29,FALSE)))","v":""},{"$f":"IF($A843=\"\",\"\",IF(OR(VLOOKUP($A843,Economática!$A$3:$AI$823,30,FALSE)/E843=0,VLOOKUP($A843,Economática!$A$3:$AI$823,30,FALSE)/E843=\"-\",VLOOKUP($A843,Economática!$A$3:$AI$823,30,FALSE)/E843<33.33%,VLOOKUP($A843,Economática!$A$3:$AI$823,30,FALSE)/E843>100%),1/0,VLOOKUP($A843,Economática!$A$3:$AI$823,30,FALSE)/E843))","v":""},"",{"$f":"IF($A843=\"\",\"\",IF(OR(VLOOKUP($A843,Economática!$A$3:$AI$823,25,FALSE)=0,VLOOKUP($A843,Economática!$A$3:$AI$823,25,FALSE)=\"-\"),1/0,VLOOKUP($A843,Economática!$A$3:$AI$823,25,FALSE)))","v":""},{"$f":"CONCATENATE(Economática!B821,\" \",Economática!C821)","v":" "}]
[{"$f":"IF(Economática!AG822=\"\",\"\",Economática!AG822)","v":""},{"$f":"IF($A844=\"\",\"\",VLOOKUP(VLOOKUP($A844,Economática!$A$3:$AI$823,6,FALSE),Correção!$B$16:$C$36,2,FALSE))","v":""},{"$f":"IF(Economática!B822=\"\",\"\",Economática!B822)","v":""},{"$f":"IF($A844=\"\",\"\",IF(OR(VLOOKUP($A844,Economática!$A$3:$AI$823,8,FALSE)=0,VLOOKUP($A844,Economática!$A$3:$AI$823,8,FALSE)=\"-\"),1/0,VLOOKUP($A844,Economática!$A$3:$AI$823,8,FALSE)))","v":""},{"$f":"IF(A844=\"\",\"\",IF(ISERROR(VLOOKUP(A844,Correção!$B$2:$G$13,9,FALSE)),VLOOKUP($A844,Economática!$A$3:$AI$823,9,FALSE),VLOOKUP(A844,Correção!$B$2:$G$13,9,FALSE)))","v":""},{"$f":"IF($A844=\"\",\"\",Economática!G822)","v":""},{"$f":"IF($A844=\"\",\"\",IF(OR(VLOOKUP($A844,Economática!$A$3:$AI$823,10,FALSE)=0,VLOOKUP($A844,Economática!$A$3:$AI$823,10,FALSE)=\"-\"),1/0,VLOOKUP($A844,Economática!$A$3:$AI$823,10,FALSE)))","v":""},{"$f":"IF($A844=\"\",\"\",IF(OR(VLOOKUP($A844,Economática!$A$3:$AI$823,11,FALSE)=0,VLOOKUP($A844,Economática!$A$3:$AI$823,11,FALSE)=\"-\"),1/0,VLOOKUP($A844,Economática!$A$3:$AI$823,11,FALSE)))","v":""},{"$f":"IF($A844=\"\",\"\",IF(OR(VLOOKUP($A844,Economática!$A$3:$AI$823,12,FALSE)=0,VLOOKUP($A844,Economática!$A$3:$AI$823,12,FALSE)=\"-\"),1/0,VLOOKUP($A844,Economática!$A$3:$AI$823,12,FALSE)))","v":""},{"$f":"IF($A844=\"\",\"\",IF(OR(VLOOKUP($A844,Economática!$A$3:$AI$823,13,FALSE)=0,VLOOKUP($A844,Economática!$A$3:$AI$823,13,FALSE)=\"-\"),1/0,VLOOKUP($A844,Economática!$A$3:$AI$823,13,FALSE)))","v":""},{"$f":"IF($A844=\"\",\"\",IF(OR(VLOOKUP($A844,Economática!$A$3:$AI$823,14,FALSE)=0,VLOOKUP($A844,Economática!$A$3:$AI$823,14,FALSE)=\"-\"),1/0,VLOOKUP($A844,Economática!$A$3:$AI$823,14,FALSE)))","v":""},{"$f":"IF($A844=\"\",\"\",IF(OR(VLOOKUP($A844,Economática!$A$3:$AI$823,15,FALSE)=0,VLOOKUP($A844,Economática!$A$3:$AI$823,15,FALSE)=\"-\"),1/0,VLOOKUP($A844,Economática!$A$3:$AI$823,15,FALSE)))","v":""},{"$f":"IF($A844=\"\",\"\",IF(OR(VLOOKUP($A844,Economática!$A$3:$AI$823,16,FALSE)=0,VLOOKUP($A844,Economática!$A$3:$AI$823,16,FALSE)=\"-\"),1/0,VLOOKUP($A844,Economática!$A$3:$AI$823,16,FALSE)))","v":""},{"$f":"IF($A844=\"\",\"\",IF(OR(VLOOKUP($A844,Economática!$A$3:$AI$823,17,FALSE)=0,VLOOKUP($A844,Economática!$A$3:$AI$823,17,FALSE)=\"-\"),1/0,VLOOKUP($A844,Economática!$A$3:$AI$823,17,FALSE)))","v":""},{"$f":"IF($A844=\"\",\"\",IF(OR(VLOOKUP($A844,Economática!$A$3:$AI$823,18,FALSE)=0,VLOOKUP($A844,Economática!$A$3:$AI$823,18,FALSE)=\"-\"),1/0,VLOOKUP($A844,Economática!$A$3:$AI$823,18,FALSE)))","v":""},{"$f":"IF($A844=\"\",\"\",IF(OR(VLOOKUP($A844,Economática!$A$3:$AI$823,19,FALSE)=0,VLOOKUP($A844,Economática!$A$3:$AI$823,19,FALSE)=\"-\"),1/0,VLOOKUP($A844,Economática!$A$3:$AI$823,19,FALSE)))","v":""},{"$f":"IF($A844=\"\",\"\",VLOOKUP($A844,Economática!$A$3:$AI$823,20,FALSE)/E844)","v":""},"","","",{"$f":"IF($A844=\"\",\"\",IF(OR(VLOOKUP($A844,Economática!$A$3:$AI$823,21,FALSE)/100=0,VLOOKUP($A844,Economática!$A$3:$AI$823,21,FALSE)/100=\"-\"),1/0,VLOOKUP($A844,Economática!$A$3:$AI$823,21,FALSE)/100))","v":""},{"$f":"IF($A844=\"\",\"\",IF(OR(VLOOKUP($A844,Economática!$A$3:$AI$823,22,FALSE)/100=0,VLOOKUP($A844,Economática!$A$3:$AI$823,22,FALSE)/100=\"-\"),1/0,VLOOKUP($A844,Economática!$A$3:$AI$823,22,FALSE)/100))","v":""},{"$f":"IF($A844=\"\",\"\",IF(OR(VLOOKUP($A844,Economática!$A$3:$AI$823,23,FALSE)=0,VLOOKUP($A844,Economática!$A$3:$AI$823,23,FALSE)=\"-\"),1/0,VLOOKUP($A844,Economática!$A$3:$AI$823,23,FALSE)))","v":""},{"$f":"IF($A844=\"\",\"\",IF(OR(VLOOKUP($A844,Economática!$A$3:$AI$823,24,FALSE)=0,VLOOKUP($A844,Economática!$A$3:$AI$823,24,FALSE)=\"-\"),1/0,VLOOKUP($A844,Economática!$A$3:$AI$823,24,FALSE)))","v":""},{"$f":"IF($A844=\"\",\"\",IF(OR(VLOOKUP($A844,Economática!$A$3:$AI$823,25,FALSE)=0,VLOOKUP($A844,Economática!$A$3:$AI$823,25,FALSE)=\"-\"),1/0,VLOOKUP($A844,Economática!$A$3:$AI$823,25,FALSE)))","v":""},{"$f":"IF($A844=\"\",\"\",IF(ISERROR((F844+VLOOKUP($A844,Economática!$A$3:$AI$823,26,FALSE))/Y844),(F844+VLOOKUP($A844,Economática!$A$3:$AI$823,26,FALSE))/Y844,(F844+VLOOKUP($A844,Economática!$A$3:$AI$823,26,FALSE))/Y844))","v":""},{"$f":"IF($A844=\"\",\"\",IF(OR(-VLOOKUP($A844,Economática!$A$3:$AI$823,27,FALSE)=0,-VLOOKUP($A844,Economática!$A$3:$AI$823,27,FALSE)=\"-\"),1/0,-VLOOKUP($A844,Economática!$A$3:$AI$823,27,FALSE)))","v":""},"",{"$f":"IF($A844=\"\",\"\",IF(OR(VLOOKUP($A844,Economática!$A$3:$AI$823,28,FALSE)=0,VLOOKUP($A844,Economática!$A$3:$AI$823,28,FALSE)=\"-\"),1/0,VLOOKUP($A844,Economática!$A$3:$AI$823,28,FALSE)))","v":""},{"$f":"IF($A844=\"\",\"\",IF(OR(VLOOKUP($A844,Economática!$A$3:$AI$823,29,FALSE)=0,VLOOKUP($A844,Economática!$A$3:$AI$823,29,FALSE)=\"-\"),1/0,VLOOKUP($A844,Economática!$A$3:$AI$823,29,FALSE)))","v":""},{"$f":"IF($A844=\"\",\"\",IF(OR(VLOOKUP($A844,Economática!$A$3:$AI$823,30,FALSE)/E844=0,VLOOKUP($A844,Economática!$A$3:$AI$823,30,FALSE)/E844=\"-\",VLOOKUP($A844,Economática!$A$3:$AI$823,30,FALSE)/E844<33.33%,VLOOKUP($A844,Economática!$A$3:$AI$823,30,FALSE)/E844>100%),1/0,VLOOKUP($A844,Economática!$A$3:$AI$823,30,FALSE)/E844))","v":""},"",{"$f":"IF($A844=\"\",\"\",IF(OR(VLOOKUP($A844,Economática!$A$3:$AI$823,25,FALSE)=0,VLOOKUP($A844,Economática!$A$3:$AI$823,25,FALSE)=\"-\"),1/0,VLOOKUP($A844,Economática!$A$3:$AI$823,25,FALSE)))","v":""},{"$f":"CONCATENATE(Economática!B822,\" \",Economática!C822)","v":" "}]
[{"$f":"IF(Economática!AG823=\"\",\"\",Economática!AG823)","v":""},{"$f":"IF($A845=\"\",\"\",VLOOKUP(VLOOKUP($A845,Economática!$A$3:$AI$823,6,FALSE),Correção!$B$16:$C$36,2,FALSE))","v":""},{"$f":"IF(Economática!B823=\"\",\"\",Economática!B823)","v":""},{"$f":"IF($A845=\"\",\"\",IF(OR(VLOOKUP($A845,Economática!$A$3:$AI$823,8,FALSE)=0,VLOOKUP($A845,Economática!$A$3:$AI$823,8,FALSE)=\"-\"),1/0,VLOOKUP($A845,Economática!$A$3:$AI$823,8,FALSE)))","v":""},{"$f":"IF(A845=\"\",\"\",IF(ISERROR(VLOOKUP(A845,Correção!$B$2:$G$13,9,FALSE)),VLOOKUP($A845,Economática!$A$3:$AI$823,9,FALSE),VLOOKUP(A845,Correção!$B$2:$G$13,9,FALSE)))","v":""},{"$f":"IF($A845=\"\",\"\",Economática!G823)","v":""},{"$f":"IF($A845=\"\",\"\",IF(OR(VLOOKUP($A845,Economática!$A$3:$AI$823,10,FALSE)=0,VLOOKUP($A845,Economática!$A$3:$AI$823,10,FALSE)=\"-\"),1/0,VLOOKUP($A845,Economática!$A$3:$AI$823,10,FALSE)))","v":""},{"$f":"IF($A845=\"\",\"\",IF(OR(VLOOKUP($A845,Economática!$A$3:$AI$823,11,FALSE)=0,VLOOKUP($A845,Economática!$A$3:$AI$823,11,FALSE)=\"-\"),1/0,VLOOKUP($A845,Economática!$A$3:$AI$823,11,FALSE)))","v":""},{"$f":"IF($A845=\"\",\"\",IF(OR(VLOOKUP($A845,Economática!$A$3:$AI$823,12,FALSE)=0,VLOOKUP($A845,Economática!$A$3:$AI$823,12,FALSE)=\"-\"),1/0,VLOOKUP($A845,Economática!$A$3:$AI$823,12,FALSE)))","v":""},{"$f":"IF($A845=\"\",\"\",IF(OR(VLOOKUP($A845,Economática!$A$3:$AI$823,13,FALSE)=0,VLOOKUP($A845,Economática!$A$3:$AI$823,13,FALSE)=\"-\"),1/0,VLOOKUP($A845,Economática!$A$3:$AI$823,13,FALSE)))","v":""},{"$f":"IF($A845=\"\",\"\",IF(OR(VLOOKUP($A845,Economática!$A$3:$AI$823,14,FALSE)=0,VLOOKUP($A845,Economática!$A$3:$AI$823,14,FALSE)=\"-\"),1/0,VLOOKUP($A845,Economática!$A$3:$AI$823,14,FALSE)))","v":""},{"$f":"IF($A845=\"\",\"\",IF(OR(VLOOKUP($A845,Economática!$A$3:$AI$823,15,FALSE)=0,VLOOKUP($A845,Economática!$A$3:$AI$823,15,FALSE)=\"-\"),1/0,VLOOKUP($A845,Economática!$A$3:$AI$823,15,FALSE)))","v":""},{"$f":"IF($A845=\"\",\"\",IF(OR(VLOOKUP($A845,Economática!$A$3:$AI$823,16,FALSE)=0,VLOOKUP($A845,Economática!$A$3:$AI$823,16,FALSE)=\"-\"),1/0,VLOOKUP($A845,Economática!$A$3:$AI$823,16,FALSE)))","v":""},{"$f":"IF($A845=\"\",\"\",IF(OR(VLOOKUP($A845,Economática!$A$3:$AI$823,17,FALSE)=0,VLOOKUP($A845,Economática!$A$3:$AI$823,17,FALSE)=\"-\"),1/0,VLOOKUP($A845,Economática!$A$3:$AI$823,17,FALSE)))","v":""},{"$f":"IF($A845=\"\",\"\",IF(OR(VLOOKUP($A845,Economática!$A$3:$AI$823,18,FALSE)=0,VLOOKUP($A845,Economática!$A$3:$AI$823,18,FALSE)=\"-\"),1/0,VLOOKUP($A845,Economática!$A$3:$AI$823,18,FALSE)))","v":""},{"$f":"IF($A845=\"\",\"\",IF(OR(VLOOKUP($A845,Economática!$A$3:$AI$823,19,FALSE)=0,VLOOKUP($A845,Economática!$A$3:$AI$823,19,FALSE)=\"-\"),1/0,VLOOKUP($A845,Economática!$A$3:$AI$823,19,FALSE)))","v":""},{"$f":"IF($A845=\"\",\"\",VLOOKUP($A845,Economática!$A$3:$AI$823,20,FALSE)/E845)","v":""},"","","",{"$f":"IF($A845=\"\",\"\",IF(OR(VLOOKUP($A845,Economática!$A$3:$AI$823,21,FALSE)/100=0,VLOOKUP($A845,Economática!$A$3:$AI$823,21,FALSE)/100=\"-\"),1/0,VLOOKUP($A845,Economática!$A$3:$AI$823,21,FALSE)/100))","v":""},{"$f":"IF($A845=\"\",\"\",IF(OR(VLOOKUP($A845,Economática!$A$3:$AI$823,22,FALSE)/100=0,VLOOKUP($A845,Economática!$A$3:$AI$823,22,FALSE)/100=\"-\"),1/0,VLOOKUP($A845,Economática!$A$3:$AI$823,22,FALSE)/100))","v":""},{"$f":"IF($A845=\"\",\"\",IF(OR(VLOOKUP($A845,Economática!$A$3:$AI$823,23,FALSE)=0,VLOOKUP($A845,Economática!$A$3:$AI$823,23,FALSE)=\"-\"),1/0,VLOOKUP($A845,Economática!$A$3:$AI$823,23,FALSE)))","v":""},{"$f":"IF($A845=\"\",\"\",IF(OR(VLOOKUP($A845,Economática!$A$3:$AI$823,24,FALSE)=0,VLOOKUP($A845,Economática!$A$3:$AI$823,24,FALSE)=\"-\"),1/0,VLOOKUP($A845,Economática!$A$3:$AI$823,24,FALSE)))","v":""},{"$f":"IF($A845=\"\",\"\",IF(OR(VLOOKUP($A845,Economática!$A$3:$AI$823,25,FALSE)=0,VLOOKUP($A845,Economática!$A$3:$AI$823,25,FALSE)=\"-\"),1/0,VLOOKUP($A845,Economática!$A$3:$AI$823,25,FALSE)))","v":""},{"$f":"IF($A845=\"\",\"\",IF(ISERROR((F845+VLOOKUP($A845,Economática!$A$3:$AI$823,26,FALSE))/Y845),(F845+VLOOKUP($A845,Economática!$A$3:$AI$823,26,FALSE))/Y845,(F845+VLOOKUP($A845,Economática!$A$3:$AI$823,26,FALSE))/Y845))","v":""},{"$f":"IF($A845=\"\",\"\",IF(OR(-VLOOKUP($A845,Economática!$A$3:$AI$823,27,FALSE)=0,-VLOOKUP($A845,Economática!$A$3:$AI$823,27,FALSE)=\"-\"),1/0,-VLOOKUP($A845,Economática!$A$3:$AI$823,27,FALSE)))","v":""},"",{"$f":"IF($A845=\"\",\"\",IF(OR(VLOOKUP($A845,Economática!$A$3:$AI$823,28,FALSE)=0,VLOOKUP($A845,Economática!$A$3:$AI$823,28,FALSE)=\"-\"),1/0,VLOOKUP($A845,Economática!$A$3:$AI$823,28,FALSE)))","v":""},{"$f":"IF($A845=\"\",\"\",IF(OR(VLOOKUP($A845,Economática!$A$3:$AI$823,29,FALSE)=0,VLOOKUP($A845,Economática!$A$3:$AI$823,29,FALSE)=\"-\"),1/0,VLOOKUP($A845,Economática!$A$3:$AI$823,29,FALSE)))","v":""},{"$f":"IF($A845=\"\",\"\",IF(OR(VLOOKUP($A845,Economática!$A$3:$AI$823,30,FALSE)/E845=0,VLOOKUP($A845,Economática!$A$3:$AI$823,30,FALSE)/E845=\"-\",VLOOKUP($A845,Economática!$A$3:$AI$823,30,FALSE)/E845<33.33%,VLOOKUP($A845,Economática!$A$3:$AI$823,30,FALSE)/E845>100%),1/0,VLOOKUP($A845,Economática!$A$3:$AI$823,30,FALSE)/E845))","v":""},"",{"$f":"IF($A845=\"\",\"\",IF(OR(VLOOKUP($A845,Economática!$A$3:$AI$823,25,FALSE)=0,VLOOKUP($A845,Economática!$A$3:$AI$823,25,FALSE)=\"-\"),1/0,VLOOKUP($A845,Economática!$A$3:$AI$823,25,FALSE)))","v":""},{"$f":"CONCATENATE(Economática!B823,\" \",Economática!C823)","v":" "}]
[{"$f":"IF(Economática!AG824=\"\",\"\",Economática!AG824)","v":""},{"$f":"IF($A846=\"\",\"\",VLOOKUP(VLOOKUP($A846,Economática!$A$3:$AI$823,6,FALSE),Correção!$B$16:$C$36,2,FALSE))","v":""},{"$f":"IF(Economática!B824=\"\",\"\",Economática!B824)","v":""},{"$f":"IF($A846=\"\",\"\",IF(OR(VLOOKUP($A846,Economática!$A$3:$AI$823,8,FALSE)=0,VLOOKUP($A846,Economática!$A$3:$AI$823,8,FALSE)=\"-\"),1/0,VLOOKUP($A846,Economática!$A$3:$AI$823,8,FALSE)))","v":""},{"$f":"IF(A846=\"\",\"\",IF(ISERROR(VLOOKUP(A846,Correção!$B$2:$G$13,9,FALSE)),VLOOKUP($A846,Economática!$A$3:$AI$823,9,FALSE),VLOOKUP(A846,Correção!$B$2:$G$13,9,FALSE)))","v":""},{"$f":"IF($A846=\"\",\"\",Economática!G824)","v":""},{"$f":"IF($A846=\"\",\"\",IF(OR(VLOOKUP($A846,Economática!$A$3:$AI$823,10,FALSE)=0,VLOOKUP($A846,Economática!$A$3:$AI$823,10,FALSE)=\"-\"),1/0,VLOOKUP($A846,Economática!$A$3:$AI$823,10,FALSE)))","v":""},{"$f":"IF($A846=\"\",\"\",IF(OR(VLOOKUP($A846,Economática!$A$3:$AI$823,11,FALSE)=0,VLOOKUP($A846,Economática!$A$3:$AI$823,11,FALSE)=\"-\"),1/0,VLOOKUP($A846,Economática!$A$3:$AI$823,11,FALSE)))","v":""},{"$f":"IF($A846=\"\",\"\",IF(OR(VLOOKUP($A846,Economática!$A$3:$AI$823,12,FALSE)=0,VLOOKUP($A846,Economática!$A$3:$AI$823,12,FALSE)=\"-\"),1/0,VLOOKUP($A846,Economática!$A$3:$AI$823,12,FALSE)))","v":""},{"$f":"IF($A846=\"\",\"\",IF(OR(VLOOKUP($A846,Economática!$A$3:$AI$823,13,FALSE)=0,VLOOKUP($A846,Economática!$A$3:$AI$823,13,FALSE)=\"-\"),1/0,VLOOKUP($A846,Economática!$A$3:$AI$823,13,FALSE)))","v":""},{"$f":"IF($A846=\"\",\"\",IF(OR(VLOOKUP($A846,Economática!$A$3:$AI$823,14,FALSE)=0,VLOOKUP($A846,Economática!$A$3:$AI$823,14,FALSE)=\"-\"),1/0,VLOOKUP($A846,Economática!$A$3:$AI$823,14,FALSE)))","v":""},{"$f":"IF($A846=\"\",\"\",IF(OR(VLOOKUP($A846,Economática!$A$3:$AI$823,15,FALSE)=0,VLOOKUP($A846,Economática!$A$3:$AI$823,15,FALSE)=\"-\"),1/0,VLOOKUP($A846,Economática!$A$3:$AI$823,15,FALSE)))","v":""},{"$f":"IF($A846=\"\",\"\",IF(OR(VLOOKUP($A846,Economática!$A$3:$AI$823,16,FALSE)=0,VLOOKUP($A846,Economática!$A$3:$AI$823,16,FALSE)=\"-\"),1/0,VLOOKUP($A846,Economática!$A$3:$AI$823,16,FALSE)))","v":""},{"$f":"IF($A846=\"\",\"\",IF(OR(VLOOKUP($A846,Economática!$A$3:$AI$823,17,FALSE)=0,VLOOKUP($A846,Economática!$A$3:$AI$823,17,FALSE)=\"-\"),1/0,VLOOKUP($A846,Economática!$A$3:$AI$823,17,FALSE)))","v":""},{"$f":"IF($A846=\"\",\"\",IF(OR(VLOOKUP($A846,Economática!$A$3:$AI$823,18,FALSE)=0,VLOOKUP($A846,Economática!$A$3:$AI$823,18,FALSE)=\"-\"),1/0,VLOOKUP($A846,Economática!$A$3:$AI$823,18,FALSE)))","v":""},{"$f":"IF($A846=\"\",\"\",IF(OR(VLOOKUP($A846,Economática!$A$3:$AI$823,19,FALSE)=0,VLOOKUP($A846,Economática!$A$3:$AI$823,19,FALSE)=\"-\"),1/0,VLOOKUP($A846,Economática!$A$3:$AI$823,19,FALSE)))","v":""},{"$f":"IF($A846=\"\",\"\",VLOOKUP($A846,Economática!$A$3:$AI$823,20,FALSE)/E846)","v":""},"","","",{"$f":"IF($A846=\"\",\"\",IF(OR(VLOOKUP($A846,Economática!$A$3:$AI$823,21,FALSE)/100=0,VLOOKUP($A846,Economática!$A$3:$AI$823,21,FALSE)/100=\"-\"),1/0,VLOOKUP($A846,Economática!$A$3:$AI$823,21,FALSE)/100))","v":""},{"$f":"IF($A846=\"\",\"\",IF(OR(VLOOKUP($A846,Economática!$A$3:$AI$823,22,FALSE)/100=0,VLOOKUP($A846,Economática!$A$3:$AI$823,22,FALSE)/100=\"-\"),1/0,VLOOKUP($A846,Economática!$A$3:$AI$823,22,FALSE)/100))","v":""},{"$f":"IF($A846=\"\",\"\",IF(OR(VLOOKUP($A846,Economática!$A$3:$AI$823,23,FALSE)=0,VLOOKUP($A846,Economática!$A$3:$AI$823,23,FALSE)=\"-\"),1/0,VLOOKUP($A846,Economática!$A$3:$AI$823,23,FALSE)))","v":""},{"$f":"IF($A846=\"\",\"\",IF(OR(VLOOKUP($A846,Economática!$A$3:$AI$823,24,FALSE)=0,VLOOKUP($A846,Economática!$A$3:$AI$823,24,FALSE)=\"-\"),1/0,VLOOKUP($A846,Economática!$A$3:$AI$823,24,FALSE)))","v":""},{"$f":"IF($A846=\"\",\"\",IF(OR(VLOOKUP($A846,Economática!$A$3:$AI$823,25,FALSE)=0,VLOOKUP($A846,Economática!$A$3:$AI$823,25,FALSE)=\"-\"),1/0,VLOOKUP($A846,Economática!$A$3:$AI$823,25,FALSE)))","v":""},{"$f":"IF($A846=\"\",\"\",IF(ISERROR((F846+VLOOKUP($A846,Economática!$A$3:$AI$823,26,FALSE))/Y846),(F846+VLOOKUP($A846,Economática!$A$3:$AI$823,26,FALSE))/Y846,(F846+VLOOKUP($A846,Economática!$A$3:$AI$823,26,FALSE))/Y846))","v":""},{"$f":"IF($A846=\"\",\"\",IF(OR(-VLOOKUP($A846,Economática!$A$3:$AI$823,27,FALSE)=0,-VLOOKUP($A846,Economática!$A$3:$AI$823,27,FALSE)=\"-\"),1/0,-VLOOKUP($A846,Economática!$A$3:$AI$823,27,FALSE)))","v":""},"",{"$f":"IF($A846=\"\",\"\",IF(OR(VLOOKUP($A846,Economática!$A$3:$AI$823,28,FALSE)=0,VLOOKUP($A846,Economática!$A$3:$AI$823,28,FALSE)=\"-\"),1/0,VLOOKUP($A846,Economática!$A$3:$AI$823,28,FALSE)))","v":""},{"$f":"IF($A846=\"\",\"\",IF(OR(VLOOKUP($A846,Economática!$A$3:$AI$823,29,FALSE)=0,VLOOKUP($A846,Economática!$A$3:$AI$823,29,FALSE)=\"-\"),1/0,VLOOKUP($A846,Economática!$A$3:$AI$823,29,FALSE)))","v":""},{"$f":"IF($A846=\"\",\"\",IF(OR(VLOOKUP($A846,Economática!$A$3:$AI$823,30,FALSE)/E846=0,VLOOKUP($A846,Economática!$A$3:$AI$823,30,FALSE)/E846=\"-\",VLOOKUP($A846,Economática!$A$3:$AI$823,30,FALSE)/E846<33.33%,VLOOKUP($A846,Economática!$A$3:$AI$823,30,FALSE)/E846>100%),1/0,VLOOKUP($A846,Economática!$A$3:$AI$823,30,FALSE)/E846))","v":""},"",{"$f":"IF($A846=\"\",\"\",IF(OR(VLOOKUP($A846,Economática!$A$3:$AI$823,25,FALSE)=0,VLOOKUP($A846,Economática!$A$3:$AI$823,25,FALSE)=\"-\"),1/0,VLOOKUP($A846,Economática!$A$3:$AI$823,25,FALSE)))","v":""},{"$f":"CONCATENATE(Economática!B824,\" \",Economática!C824)","v":" "}]
[{"$f":"IF(Economática!AG825=\"\",\"\",Economática!AG825)","v":""},{"$f":"IF($A847=\"\",\"\",VLOOKUP(VLOOKUP($A847,Economática!$A$3:$AI$823,6,FALSE),Correção!$B$16:$C$36,2,FALSE))","v":""},{"$f":"IF(Economática!B825=\"\",\"\",Economática!B825)","v":""},{"$f":"IF($A847=\"\",\"\",IF(OR(VLOOKUP($A847,Economática!$A$3:$AI$823,8,FALSE)=0,VLOOKUP($A847,Economática!$A$3:$AI$823,8,FALSE)=\"-\"),1/0,VLOOKUP($A847,Economática!$A$3:$AI$823,8,FALSE)))","v":""},{"$f":"IF(A847=\"\",\"\",IF(ISERROR(VLOOKUP(A847,Correção!$B$2:$G$13,9,FALSE)),VLOOKUP($A847,Economática!$A$3:$AI$823,9,FALSE),VLOOKUP(A847,Correção!$B$2:$G$13,9,FALSE)))","v":""},{"$f":"IF($A847=\"\",\"\",Economática!G825)","v":""},{"$f":"IF($A847=\"\",\"\",IF(OR(VLOOKUP($A847,Economática!$A$3:$AI$823,10,FALSE)=0,VLOOKUP($A847,Economática!$A$3:$AI$823,10,FALSE)=\"-\"),1/0,VLOOKUP($A847,Economática!$A$3:$AI$823,10,FALSE)))","v":""},{"$f":"IF($A847=\"\",\"\",IF(OR(VLOOKUP($A847,Economática!$A$3:$AI$823,11,FALSE)=0,VLOOKUP($A847,Economática!$A$3:$AI$823,11,FALSE)=\"-\"),1/0,VLOOKUP($A847,Economática!$A$3:$AI$823,11,FALSE)))","v":""},{"$f":"IF($A847=\"\",\"\",IF(OR(VLOOKUP($A847,Economática!$A$3:$AI$823,12,FALSE)=0,VLOOKUP($A847,Economática!$A$3:$AI$823,12,FALSE)=\"-\"),1/0,VLOOKUP($A847,Economática!$A$3:$AI$823,12,FALSE)))","v":""},{"$f":"IF($A847=\"\",\"\",IF(OR(VLOOKUP($A847,Economática!$A$3:$AI$823,13,FALSE)=0,VLOOKUP($A847,Economática!$A$3:$AI$823,13,FALSE)=\"-\"),1/0,VLOOKUP($A847,Economática!$A$3:$AI$823,13,FALSE)))","v":""},{"$f":"IF($A847=\"\",\"\",IF(OR(VLOOKUP($A847,Economática!$A$3:$AI$823,14,FALSE)=0,VLOOKUP($A847,Economática!$A$3:$AI$823,14,FALSE)=\"-\"),1/0,VLOOKUP($A847,Economática!$A$3:$AI$823,14,FALSE)))","v":""},{"$f":"IF($A847=\"\",\"\",IF(OR(VLOOKUP($A847,Economática!$A$3:$AI$823,15,FALSE)=0,VLOOKUP($A847,Economática!$A$3:$AI$823,15,FALSE)=\"-\"),1/0,VLOOKUP($A847,Economática!$A$3:$AI$823,15,FALSE)))","v":""},{"$f":"IF($A847=\"\",\"\",IF(OR(VLOOKUP($A847,Economática!$A$3:$AI$823,16,FALSE)=0,VLOOKUP($A847,Economática!$A$3:$AI$823,16,FALSE)=\"-\"),1/0,VLOOKUP($A847,Economática!$A$3:$AI$823,16,FALSE)))","v":""},{"$f":"IF($A847=\"\",\"\",IF(OR(VLOOKUP($A847,Economática!$A$3:$AI$823,17,FALSE)=0,VLOOKUP($A847,Economática!$A$3:$AI$823,17,FALSE)=\"-\"),1/0,VLOOKUP($A847,Economática!$A$3:$AI$823,17,FALSE)))","v":""},{"$f":"IF($A847=\"\",\"\",IF(OR(VLOOKUP($A847,Economática!$A$3:$AI$823,18,FALSE)=0,VLOOKUP($A847,Economática!$A$3:$AI$823,18,FALSE)=\"-\"),1/0,VLOOKUP($A847,Economática!$A$3:$AI$823,18,FALSE)))","v":""},{"$f":"IF($A847=\"\",\"\",IF(OR(VLOOKUP($A847,Economática!$A$3:$AI$823,19,FALSE)=0,VLOOKUP($A847,Economática!$A$3:$AI$823,19,FALSE)=\"-\"),1/0,VLOOKUP($A847,Economática!$A$3:$AI$823,19,FALSE)))","v":""},{"$f":"IF($A847=\"\",\"\",VLOOKUP($A847,Economática!$A$3:$AI$823,20,FALSE)/E847)","v":""},"","","",{"$f":"IF($A847=\"\",\"\",IF(OR(VLOOKUP($A847,Economática!$A$3:$AI$823,21,FALSE)/100=0,VLOOKUP($A847,Economática!$A$3:$AI$823,21,FALSE)/100=\"-\"),1/0,VLOOKUP($A847,Economática!$A$3:$AI$823,21,FALSE)/100))","v":""},{"$f":"IF($A847=\"\",\"\",IF(OR(VLOOKUP($A847,Economática!$A$3:$AI$823,22,FALSE)/100=0,VLOOKUP($A847,Economática!$A$3:$AI$823,22,FALSE)/100=\"-\"),1/0,VLOOKUP($A847,Economática!$A$3:$AI$823,22,FALSE)/100))","v":""},{"$f":"IF($A847=\"\",\"\",IF(OR(VLOOKUP($A847,Economática!$A$3:$AI$823,23,FALSE)=0,VLOOKUP($A847,Economática!$A$3:$AI$823,23,FALSE)=\"-\"),1/0,VLOOKUP($A847,Economática!$A$3:$AI$823,23,FALSE)))","v":""},{"$f":"IF($A847=\"\",\"\",IF(OR(VLOOKUP($A847,Economática!$A$3:$AI$823,24,FALSE)=0,VLOOKUP($A847,Economática!$A$3:$AI$823,24,FALSE)=\"-\"),1/0,VLOOKUP($A847,Economática!$A$3:$AI$823,24,FALSE)))","v":""},{"$f":"IF($A847=\"\",\"\",IF(OR(VLOOKUP($A847,Economática!$A$3:$AI$823,25,FALSE)=0,VLOOKUP($A847,Economática!$A$3:$AI$823,25,FALSE)=\"-\"),1/0,VLOOKUP($A847,Economática!$A$3:$AI$823,25,FALSE)))","v":""},{"$f":"IF($A847=\"\",\"\",IF(ISERROR((F847+VLOOKUP($A847,Economática!$A$3:$AI$823,26,FALSE))/Y847),(F847+VLOOKUP($A847,Economática!$A$3:$AI$823,26,FALSE))/Y847,(F847+VLOOKUP($A847,Economática!$A$3:$AI$823,26,FALSE))/Y847))","v":""},{"$f":"IF($A847=\"\",\"\",IF(OR(-VLOOKUP($A847,Economática!$A$3:$AI$823,27,FALSE)=0,-VLOOKUP($A847,Economática!$A$3:$AI$823,27,FALSE)=\"-\"),1/0,-VLOOKUP($A847,Economática!$A$3:$AI$823,27,FALSE)))","v":""},"",{"$f":"IF($A847=\"\",\"\",IF(OR(VLOOKUP($A847,Economática!$A$3:$AI$823,28,FALSE)=0,VLOOKUP($A847,Economática!$A$3:$AI$823,28,FALSE)=\"-\"),1/0,VLOOKUP($A847,Economática!$A$3:$AI$823,28,FALSE)))","v":""},{"$f":"IF($A847=\"\",\"\",IF(OR(VLOOKUP($A847,Economática!$A$3:$AI$823,29,FALSE)=0,VLOOKUP($A847,Economática!$A$3:$AI$823,29,FALSE)=\"-\"),1/0,VLOOKUP($A847,Economática!$A$3:$AI$823,29,FALSE)))","v":""},{"$f":"IF($A847=\"\",\"\",IF(OR(VLOOKUP($A847,Economática!$A$3:$AI$823,30,FALSE)/E847=0,VLOOKUP($A847,Economática!$A$3:$AI$823,30,FALSE)/E847=\"-\",VLOOKUP($A847,Economática!$A$3:$AI$823,30,FALSE)/E847<33.33%,VLOOKUP($A847,Economática!$A$3:$AI$823,30,FALSE)/E847>100%),1/0,VLOOKUP($A847,Economática!$A$3:$AI$823,30,FALSE)/E847))","v":""},"",{"$f":"IF($A847=\"\",\"\",IF(OR(VLOOKUP($A847,Economática!$A$3:$AI$823,25,FALSE)=0,VLOOKUP($A847,Economática!$A$3:$AI$823,25,FALSE)=\"-\"),1/0,VLOOKUP($A847,Economática!$A$3:$AI$823,25,FALSE)))","v":""},{"$f":"CONCATENATE(Economática!B825,\" \",Economática!C825)","v":" "}]
[{"$f":"IF(Economática!AG826=\"\",\"\",Economática!AG826)","v":""},{"$f":"IF($A848=\"\",\"\",VLOOKUP(VLOOKUP($A848,Economática!$A$3:$AI$823,6,FALSE),Correção!$B$16:$C$36,2,FALSE))","v":""},{"$f":"IF(Economática!B826=\"\",\"\",Economática!B826)","v":""},{"$f":"IF($A848=\"\",\"\",IF(OR(VLOOKUP($A848,Economática!$A$3:$AI$823,8,FALSE)=0,VLOOKUP($A848,Economática!$A$3:$AI$823,8,FALSE)=\"-\"),1/0,VLOOKUP($A848,Economática!$A$3:$AI$823,8,FALSE)))","v":""},{"$f":"IF(A848=\"\",\"\",IF(ISERROR(VLOOKUP(A848,Correção!$B$2:$G$13,9,FALSE)),VLOOKUP($A848,Economática!$A$3:$AI$823,9,FALSE),VLOOKUP(A848,Correção!$B$2:$G$13,9,FALSE)))","v":""},{"$f":"IF($A848=\"\",\"\",Economática!G826)","v":""},{"$f":"IF($A848=\"\",\"\",IF(OR(VLOOKUP($A848,Economática!$A$3:$AI$823,10,FALSE)=0,VLOOKUP($A848,Economática!$A$3:$AI$823,10,FALSE)=\"-\"),1/0,VLOOKUP($A848,Economática!$A$3:$AI$823,10,FALSE)))","v":""},{"$f":"IF($A848=\"\",\"\",IF(OR(VLOOKUP($A848,Economática!$A$3:$AI$823,11,FALSE)=0,VLOOKUP($A848,Economática!$A$3:$AI$823,11,FALSE)=\"-\"),1/0,VLOOKUP($A848,Economática!$A$3:$AI$823,11,FALSE)))","v":""},{"$f":"IF($A848=\"\",\"\",IF(OR(VLOOKUP($A848,Economática!$A$3:$AI$823,12,FALSE)=0,VLOOKUP($A848,Economática!$A$3:$AI$823,12,FALSE)=\"-\"),1/0,VLOOKUP($A848,Economática!$A$3:$AI$823,12,FALSE)))","v":""},{"$f":"IF($A848=\"\",\"\",IF(OR(VLOOKUP($A848,Economática!$A$3:$AI$823,13,FALSE)=0,VLOOKUP($A848,Economática!$A$3:$AI$823,13,FALSE)=\"-\"),1/0,VLOOKUP($A848,Economática!$A$3:$AI$823,13,FALSE)))","v":""},{"$f":"IF($A848=\"\",\"\",IF(OR(VLOOKUP($A848,Economática!$A$3:$AI$823,14,FALSE)=0,VLOOKUP($A848,Economática!$A$3:$AI$823,14,FALSE)=\"-\"),1/0,VLOOKUP($A848,Economática!$A$3:$AI$823,14,FALSE)))","v":""},{"$f":"IF($A848=\"\",\"\",IF(OR(VLOOKUP($A848,Economática!$A$3:$AI$823,15,FALSE)=0,VLOOKUP($A848,Economática!$A$3:$AI$823,15,FALSE)=\"-\"),1/0,VLOOKUP($A848,Economática!$A$3:$AI$823,15,FALSE)))","v":""},{"$f":"IF($A848=\"\",\"\",IF(OR(VLOOKUP($A848,Economática!$A$3:$AI$823,16,FALSE)=0,VLOOKUP($A848,Economática!$A$3:$AI$823,16,FALSE)=\"-\"),1/0,VLOOKUP($A848,Economática!$A$3:$AI$823,16,FALSE)))","v":""},{"$f":"IF($A848=\"\",\"\",IF(OR(VLOOKUP($A848,Economática!$A$3:$AI$823,17,FALSE)=0,VLOOKUP($A848,Economática!$A$3:$AI$823,17,FALSE)=\"-\"),1/0,VLOOKUP($A848,Economática!$A$3:$AI$823,17,FALSE)))","v":""},{"$f":"IF($A848=\"\",\"\",IF(OR(VLOOKUP($A848,Economática!$A$3:$AI$823,18,FALSE)=0,VLOOKUP($A848,Economática!$A$3:$AI$823,18,FALSE)=\"-\"),1/0,VLOOKUP($A848,Economática!$A$3:$AI$823,18,FALSE)))","v":""},{"$f":"IF($A848=\"\",\"\",IF(OR(VLOOKUP($A848,Economática!$A$3:$AI$823,19,FALSE)=0,VLOOKUP($A848,Economática!$A$3:$AI$823,19,FALSE)=\"-\"),1/0,VLOOKUP($A848,Economática!$A$3:$AI$823,19,FALSE)))","v":""},{"$f":"IF($A848=\"\",\"\",VLOOKUP($A848,Economática!$A$3:$AI$823,20,FALSE)/E848)","v":""},"","","",{"$f":"IF($A848=\"\",\"\",IF(OR(VLOOKUP($A848,Economática!$A$3:$AI$823,21,FALSE)/100=0,VLOOKUP($A848,Economática!$A$3:$AI$823,21,FALSE)/100=\"-\"),1/0,VLOOKUP($A848,Economática!$A$3:$AI$823,21,FALSE)/100))","v":""},{"$f":"IF($A848=\"\",\"\",IF(OR(VLOOKUP($A848,Economática!$A$3:$AI$823,22,FALSE)/100=0,VLOOKUP($A848,Economática!$A$3:$AI$823,22,FALSE)/100=\"-\"),1/0,VLOOKUP($A848,Economática!$A$3:$AI$823,22,FALSE)/100))","v":""},{"$f":"IF($A848=\"\",\"\",IF(OR(VLOOKUP($A848,Economática!$A$3:$AI$823,23,FALSE)=0,VLOOKUP($A848,Economática!$A$3:$AI$823,23,FALSE)=\"-\"),1/0,VLOOKUP($A848,Economática!$A$3:$AI$823,23,FALSE)))","v":""},{"$f":"IF($A848=\"\",\"\",IF(OR(VLOOKUP($A848,Economática!$A$3:$AI$823,24,FALSE)=0,VLOOKUP($A848,Economática!$A$3:$AI$823,24,FALSE)=\"-\"),1/0,VLOOKUP($A848,Economática!$A$3:$AI$823,24,FALSE)))","v":""},{"$f":"IF($A848=\"\",\"\",IF(OR(VLOOKUP($A848,Economática!$A$3:$AI$823,25,FALSE)=0,VLOOKUP($A848,Economática!$A$3:$AI$823,25,FALSE)=\"-\"),1/0,VLOOKUP($A848,Economática!$A$3:$AI$823,25,FALSE)))","v":""},{"$f":"IF($A848=\"\",\"\",IF(ISERROR((F848+VLOOKUP($A848,Economática!$A$3:$AI$823,26,FALSE))/Y848),(F848+VLOOKUP($A848,Economática!$A$3:$AI$823,26,FALSE))/Y848,(F848+VLOOKUP($A848,Economática!$A$3:$AI$823,26,FALSE))/Y848))","v":""},{"$f":"IF($A848=\"\",\"\",IF(OR(-VLOOKUP($A848,Economática!$A$3:$AI$823,27,FALSE)=0,-VLOOKUP($A848,Economática!$A$3:$AI$823,27,FALSE)=\"-\"),1/0,-VLOOKUP($A848,Economática!$A$3:$AI$823,27,FALSE)))","v":""},"",{"$f":"IF($A848=\"\",\"\",IF(OR(VLOOKUP($A848,Economática!$A$3:$AI$823,28,FALSE)=0,VLOOKUP($A848,Economática!$A$3:$AI$823,28,FALSE)=\"-\"),1/0,VLOOKUP($A848,Economática!$A$3:$AI$823,28,FALSE)))","v":""},{"$f":"IF($A848=\"\",\"\",IF(OR(VLOOKUP($A848,Economática!$A$3:$AI$823,29,FALSE)=0,VLOOKUP($A848,Economática!$A$3:$AI$823,29,FALSE)=\"-\"),1/0,VLOOKUP($A848,Economática!$A$3:$AI$823,29,FALSE)))","v":""},{"$f":"IF($A848=\"\",\"\",IF(OR(VLOOKUP($A848,Economática!$A$3:$AI$823,30,FALSE)/E848=0,VLOOKUP($A848,Economática!$A$3:$AI$823,30,FALSE)/E848=\"-\",VLOOKUP($A848,Economática!$A$3:$AI$823,30,FALSE)/E848<33.33%,VLOOKUP($A848,Economática!$A$3:$AI$823,30,FALSE)/E848>100%),1/0,VLOOKUP($A848,Economática!$A$3:$AI$823,30,FALSE)/E848))","v":""},"",{"$f":"IF($A848=\"\",\"\",IF(OR(VLOOKUP($A848,Economática!$A$3:$AI$823,25,FALSE)=0,VLOOKUP($A848,Economática!$A$3:$AI$823,25,FALSE)=\"-\"),1/0,VLOOKUP($A848,Economática!$A$3:$AI$823,25,FALSE)))","v":""},{"$f":"CONCATENATE(Economática!B826,\" \",Economática!C826)","v":" "}]
[{"$f":"IF(Economática!AG827=\"\",\"\",Economática!AG827)","v":""},{"$f":"IF($A849=\"\",\"\",VLOOKUP(VLOOKUP($A849,Economática!$A$3:$AI$823,6,FALSE),Correção!$B$16:$C$36,2,FALSE))","v":""},{"$f":"IF(Economática!B827=\"\",\"\",Economática!B827)","v":""},{"$f":"IF($A849=\"\",\"\",IF(OR(VLOOKUP($A849,Economática!$A$3:$AI$823,8,FALSE)=0,VLOOKUP($A849,Economática!$A$3:$AI$823,8,FALSE)=\"-\"),1/0,VLOOKUP($A849,Economática!$A$3:$AI$823,8,FALSE)))","v":""},{"$f":"IF(A849=\"\",\"\",IF(ISERROR(VLOOKUP(A849,Correção!$B$2:$G$13,9,FALSE)),VLOOKUP($A849,Economática!$A$3:$AI$823,9,FALSE),VLOOKUP(A849,Correção!$B$2:$G$13,9,FALSE)))","v":""},{"$f":"IF($A849=\"\",\"\",Economática!G827)","v":""},{"$f":"IF($A849=\"\",\"\",IF(OR(VLOOKUP($A849,Economática!$A$3:$AI$823,10,FALSE)=0,VLOOKUP($A849,Economática!$A$3:$AI$823,10,FALSE)=\"-\"),1/0,VLOOKUP($A849,Economática!$A$3:$AI$823,10,FALSE)))","v":""},{"$f":"IF($A849=\"\",\"\",IF(OR(VLOOKUP($A849,Economática!$A$3:$AI$823,11,FALSE)=0,VLOOKUP($A849,Economática!$A$3:$AI$823,11,FALSE)=\"-\"),1/0,VLOOKUP($A849,Economática!$A$3:$AI$823,11,FALSE)))","v":""},{"$f":"IF($A849=\"\",\"\",IF(OR(VLOOKUP($A849,Economática!$A$3:$AI$823,12,FALSE)=0,VLOOKUP($A849,Economática!$A$3:$AI$823,12,FALSE)=\"-\"),1/0,VLOOKUP($A849,Economática!$A$3:$AI$823,12,FALSE)))","v":""},{"$f":"IF($A849=\"\",\"\",IF(OR(VLOOKUP($A849,Economática!$A$3:$AI$823,13,FALSE)=0,VLOOKUP($A849,Economática!$A$3:$AI$823,13,FALSE)=\"-\"),1/0,VLOOKUP($A849,Economática!$A$3:$AI$823,13,FALSE)))","v":""},{"$f":"IF($A849=\"\",\"\",IF(OR(VLOOKUP($A849,Economática!$A$3:$AI$823,14,FALSE)=0,VLOOKUP($A849,Economática!$A$3:$AI$823,14,FALSE)=\"-\"),1/0,VLOOKUP($A849,Economática!$A$3:$AI$823,14,FALSE)))","v":""},{"$f":"IF($A849=\"\",\"\",IF(OR(VLOOKUP($A849,Economática!$A$3:$AI$823,15,FALSE)=0,VLOOKUP($A849,Economática!$A$3:$AI$823,15,FALSE)=\"-\"),1/0,VLOOKUP($A849,Economática!$A$3:$AI$823,15,FALSE)))","v":""},{"$f":"IF($A849=\"\",\"\",IF(OR(VLOOKUP($A849,Economática!$A$3:$AI$823,16,FALSE)=0,VLOOKUP($A849,Economática!$A$3:$AI$823,16,FALSE)=\"-\"),1/0,VLOOKUP($A849,Economática!$A$3:$AI$823,16,FALSE)))","v":""},{"$f":"IF($A849=\"\",\"\",IF(OR(VLOOKUP($A849,Economática!$A$3:$AI$823,17,FALSE)=0,VLOOKUP($A849,Economática!$A$3:$AI$823,17,FALSE)=\"-\"),1/0,VLOOKUP($A849,Economática!$A$3:$AI$823,17,FALSE)))","v":""},{"$f":"IF($A849=\"\",\"\",IF(OR(VLOOKUP($A849,Economática!$A$3:$AI$823,18,FALSE)=0,VLOOKUP($A849,Economática!$A$3:$AI$823,18,FALSE)=\"-\"),1/0,VLOOKUP($A849,Economática!$A$3:$AI$823,18,FALSE)))","v":""},{"$f":"IF($A849=\"\",\"\",IF(OR(VLOOKUP($A849,Economática!$A$3:$AI$823,19,FALSE)=0,VLOOKUP($A849,Economática!$A$3:$AI$823,19,FALSE)=\"-\"),1/0,VLOOKUP($A849,Economática!$A$3:$AI$823,19,FALSE)))","v":""},{"$f":"IF($A849=\"\",\"\",VLOOKUP($A849,Economática!$A$3:$AI$823,20,FALSE)/E849)","v":""},"","","",{"$f":"IF($A849=\"\",\"\",IF(OR(VLOOKUP($A849,Economática!$A$3:$AI$823,21,FALSE)/100=0,VLOOKUP($A849,Economática!$A$3:$AI$823,21,FALSE)/100=\"-\"),1/0,VLOOKUP($A849,Economática!$A$3:$AI$823,21,FALSE)/100))","v":""},{"$f":"IF($A849=\"\",\"\",IF(OR(VLOOKUP($A849,Economática!$A$3:$AI$823,22,FALSE)/100=0,VLOOKUP($A849,Economática!$A$3:$AI$823,22,FALSE)/100=\"-\"),1/0,VLOOKUP($A849,Economática!$A$3:$AI$823,22,FALSE)/100))","v":""},{"$f":"IF($A849=\"\",\"\",IF(OR(VLOOKUP($A849,Economática!$A$3:$AI$823,23,FALSE)=0,VLOOKUP($A849,Economática!$A$3:$AI$823,23,FALSE)=\"-\"),1/0,VLOOKUP($A849,Economática!$A$3:$AI$823,23,FALSE)))","v":""},{"$f":"IF($A849=\"\",\"\",IF(OR(VLOOKUP($A849,Economática!$A$3:$AI$823,24,FALSE)=0,VLOOKUP($A849,Economática!$A$3:$AI$823,24,FALSE)=\"-\"),1/0,VLOOKUP($A849,Economática!$A$3:$AI$823,24,FALSE)))","v":""},{"$f":"IF($A849=\"\",\"\",IF(OR(VLOOKUP($A849,Economática!$A$3:$AI$823,25,FALSE)=0,VLOOKUP($A849,Economática!$A$3:$AI$823,25,FALSE)=\"-\"),1/0,VLOOKUP($A849,Economática!$A$3:$AI$823,25,FALSE)))","v":""},{"$f":"IF($A849=\"\",\"\",IF(ISERROR((F849+VLOOKUP($A849,Economática!$A$3:$AI$823,26,FALSE))/Y849),(F849+VLOOKUP($A849,Economática!$A$3:$AI$823,26,FALSE))/Y849,(F849+VLOOKUP($A849,Economática!$A$3:$AI$823,26,FALSE))/Y849))","v":""},{"$f":"IF($A849=\"\",\"\",IF(OR(-VLOOKUP($A849,Economática!$A$3:$AI$823,27,FALSE)=0,-VLOOKUP($A849,Economática!$A$3:$AI$823,27,FALSE)=\"-\"),1/0,-VLOOKUP($A849,Economática!$A$3:$AI$823,27,FALSE)))","v":""},"",{"$f":"IF($A849=\"\",\"\",IF(OR(VLOOKUP($A849,Economática!$A$3:$AI$823,28,FALSE)=0,VLOOKUP($A849,Economática!$A$3:$AI$823,28,FALSE)=\"-\"),1/0,VLOOKUP($A849,Economática!$A$3:$AI$823,28,FALSE)))","v":""},{"$f":"IF($A849=\"\",\"\",IF(OR(VLOOKUP($A849,Economática!$A$3:$AI$823,29,FALSE)=0,VLOOKUP($A849,Economática!$A$3:$AI$823,29,FALSE)=\"-\"),1/0,VLOOKUP($A849,Economática!$A$3:$AI$823,29,FALSE)))","v":""},{"$f":"IF($A849=\"\",\"\",IF(OR(VLOOKUP($A849,Economática!$A$3:$AI$823,30,FALSE)/E849=0,VLOOKUP($A849,Economática!$A$3:$AI$823,30,FALSE)/E849=\"-\",VLOOKUP($A849,Economática!$A$3:$AI$823,30,FALSE)/E849<33.33%,VLOOKUP($A849,Economática!$A$3:$AI$823,30,FALSE)/E849>100%),1/0,VLOOKUP($A849,Economática!$A$3:$AI$823,30,FALSE)/E849))","v":""},"",{"$f":"IF($A849=\"\",\"\",IF(OR(VLOOKUP($A849,Economática!$A$3:$AI$823,25,FALSE)=0,VLOOKUP($A849,Economática!$A$3:$AI$823,25,FALSE)=\"-\"),1/0,VLOOKUP($A849,Economática!$A$3:$AI$823,25,FALSE)))","v":""},{"$f":"CONCATENATE(Economática!B827,\" \",Economática!C827)","v":" "}]
[{"$f":"IF(Economática!AG828=\"\",\"\",Economática!AG828)","v":""},{"$f":"IF($A850=\"\",\"\",VLOOKUP(VLOOKUP($A850,Economática!$A$3:$AI$823,6,FALSE),Correção!$B$16:$C$36,2,FALSE))","v":""},{"$f":"IF(Economática!B828=\"\",\"\",Economática!B828)","v":""},{"$f":"IF($A850=\"\",\"\",IF(OR(VLOOKUP($A850,Economática!$A$3:$AI$823,8,FALSE)=0,VLOOKUP($A850,Economática!$A$3:$AI$823,8,FALSE)=\"-\"),1/0,VLOOKUP($A850,Economática!$A$3:$AI$823,8,FALSE)))","v":""},{"$f":"IF(A850=\"\",\"\",IF(ISERROR(VLOOKUP(A850,Correção!$B$2:$G$13,9,FALSE)),VLOOKUP($A850,Economática!$A$3:$AI$823,9,FALSE),VLOOKUP(A850,Correção!$B$2:$G$13,9,FALSE)))","v":""},{"$f":"IF($A850=\"\",\"\",Economática!G828)","v":""},{"$f":"IF($A850=\"\",\"\",IF(OR(VLOOKUP($A850,Economática!$A$3:$AI$823,10,FALSE)=0,VLOOKUP($A850,Economática!$A$3:$AI$823,10,FALSE)=\"-\"),1/0,VLOOKUP($A850,Economática!$A$3:$AI$823,10,FALSE)))","v":""},{"$f":"IF($A850=\"\",\"\",IF(OR(VLOOKUP($A850,Economática!$A$3:$AI$823,11,FALSE)=0,VLOOKUP($A850,Economática!$A$3:$AI$823,11,FALSE)=\"-\"),1/0,VLOOKUP($A850,Economática!$A$3:$AI$823,11,FALSE)))","v":""},{"$f":"IF($A850=\"\",\"\",IF(OR(VLOOKUP($A850,Economática!$A$3:$AI$823,12,FALSE)=0,VLOOKUP($A850,Economática!$A$3:$AI$823,12,FALSE)=\"-\"),1/0,VLOOKUP($A850,Economática!$A$3:$AI$823,12,FALSE)))","v":""},{"$f":"IF($A850=\"\",\"\",IF(OR(VLOOKUP($A850,Economática!$A$3:$AI$823,13,FALSE)=0,VLOOKUP($A850,Economática!$A$3:$AI$823,13,FALSE)=\"-\"),1/0,VLOOKUP($A850,Economática!$A$3:$AI$823,13,FALSE)))","v":""},{"$f":"IF($A850=\"\",\"\",IF(OR(VLOOKUP($A850,Economática!$A$3:$AI$823,14,FALSE)=0,VLOOKUP($A850,Economática!$A$3:$AI$823,14,FALSE)=\"-\"),1/0,VLOOKUP($A850,Economática!$A$3:$AI$823,14,FALSE)))","v":""},{"$f":"IF($A850=\"\",\"\",IF(OR(VLOOKUP($A850,Economática!$A$3:$AI$823,15,FALSE)=0,VLOOKUP($A850,Economática!$A$3:$AI$823,15,FALSE)=\"-\"),1/0,VLOOKUP($A850,Economática!$A$3:$AI$823,15,FALSE)))","v":""},{"$f":"IF($A850=\"\",\"\",IF(OR(VLOOKUP($A850,Economática!$A$3:$AI$823,16,FALSE)=0,VLOOKUP($A850,Economática!$A$3:$AI$823,16,FALSE)=\"-\"),1/0,VLOOKUP($A850,Economática!$A$3:$AI$823,16,FALSE)))","v":""},{"$f":"IF($A850=\"\",\"\",IF(OR(VLOOKUP($A850,Economática!$A$3:$AI$823,17,FALSE)=0,VLOOKUP($A850,Economática!$A$3:$AI$823,17,FALSE)=\"-\"),1/0,VLOOKUP($A850,Economática!$A$3:$AI$823,17,FALSE)))","v":""},{"$f":"IF($A850=\"\",\"\",IF(OR(VLOOKUP($A850,Economática!$A$3:$AI$823,18,FALSE)=0,VLOOKUP($A850,Economática!$A$3:$AI$823,18,FALSE)=\"-\"),1/0,VLOOKUP($A850,Economática!$A$3:$AI$823,18,FALSE)))","v":""},{"$f":"IF($A850=\"\",\"\",IF(OR(VLOOKUP($A850,Economática!$A$3:$AI$823,19,FALSE)=0,VLOOKUP($A850,Economática!$A$3:$AI$823,19,FALSE)=\"-\"),1/0,VLOOKUP($A850,Economática!$A$3:$AI$823,19,FALSE)))","v":""},{"$f":"IF($A850=\"\",\"\",VLOOKUP($A850,Economática!$A$3:$AI$823,20,FALSE)/E850)","v":""},"","","",{"$f":"IF($A850=\"\",\"\",IF(OR(VLOOKUP($A850,Economática!$A$3:$AI$823,21,FALSE)/100=0,VLOOKUP($A850,Economática!$A$3:$AI$823,21,FALSE)/100=\"-\"),1/0,VLOOKUP($A850,Economática!$A$3:$AI$823,21,FALSE)/100))","v":""},{"$f":"IF($A850=\"\",\"\",IF(OR(VLOOKUP($A850,Economática!$A$3:$AI$823,22,FALSE)/100=0,VLOOKUP($A850,Economática!$A$3:$AI$823,22,FALSE)/100=\"-\"),1/0,VLOOKUP($A850,Economática!$A$3:$AI$823,22,FALSE)/100))","v":""},{"$f":"IF($A850=\"\",\"\",IF(OR(VLOOKUP($A850,Economática!$A$3:$AI$823,23,FALSE)=0,VLOOKUP($A850,Economática!$A$3:$AI$823,23,FALSE)=\"-\"),1/0,VLOOKUP($A850,Economática!$A$3:$AI$823,23,FALSE)))","v":""},{"$f":"IF($A850=\"\",\"\",IF(OR(VLOOKUP($A850,Economática!$A$3:$AI$823,24,FALSE)=0,VLOOKUP($A850,Economática!$A$3:$AI$823,24,FALSE)=\"-\"),1/0,VLOOKUP($A850,Economática!$A$3:$AI$823,24,FALSE)))","v":""},{"$f":"IF($A850=\"\",\"\",IF(OR(VLOOKUP($A850,Economática!$A$3:$AI$823,25,FALSE)=0,VLOOKUP($A850,Economática!$A$3:$AI$823,25,FALSE)=\"-\"),1/0,VLOOKUP($A850,Economática!$A$3:$AI$823,25,FALSE)))","v":""},{"$f":"IF($A850=\"\",\"\",IF(ISERROR((F850+VLOOKUP($A850,Economática!$A$3:$AI$823,26,FALSE))/Y850),(F850+VLOOKUP($A850,Economática!$A$3:$AI$823,26,FALSE))/Y850,(F850+VLOOKUP($A850,Economática!$A$3:$AI$823,26,FALSE))/Y850))","v":""},{"$f":"IF($A850=\"\",\"\",IF(OR(-VLOOKUP($A850,Economática!$A$3:$AI$823,27,FALSE)=0,-VLOOKUP($A850,Economática!$A$3:$AI$823,27,FALSE)=\"-\"),1/0,-VLOOKUP($A850,Economática!$A$3:$AI$823,27,FALSE)))","v":""},"",{"$f":"IF($A850=\"\",\"\",IF(OR(VLOOKUP($A850,Economática!$A$3:$AI$823,28,FALSE)=0,VLOOKUP($A850,Economática!$A$3:$AI$823,28,FALSE)=\"-\"),1/0,VLOOKUP($A850,Economática!$A$3:$AI$823,28,FALSE)))","v":""},{"$f":"IF($A850=\"\",\"\",IF(OR(VLOOKUP($A850,Economática!$A$3:$AI$823,29,FALSE)=0,VLOOKUP($A850,Economática!$A$3:$AI$823,29,FALSE)=\"-\"),1/0,VLOOKUP($A850,Economática!$A$3:$AI$823,29,FALSE)))","v":""},{"$f":"IF($A850=\"\",\"\",IF(OR(VLOOKUP($A850,Economática!$A$3:$AI$823,30,FALSE)/E850=0,VLOOKUP($A850,Economática!$A$3:$AI$823,30,FALSE)/E850=\"-\",VLOOKUP($A850,Economática!$A$3:$AI$823,30,FALSE)/E850<33.33%,VLOOKUP($A850,Economática!$A$3:$AI$823,30,FALSE)/E850>100%),1/0,VLOOKUP($A850,Economática!$A$3:$AI$823,30,FALSE)/E850))","v":""},"",{"$f":"IF($A850=\"\",\"\",IF(OR(VLOOKUP($A850,Economática!$A$3:$AI$823,25,FALSE)=0,VLOOKUP($A850,Economática!$A$3:$AI$823,25,FALSE)=\"-\"),1/0,VLOOKUP($A850,Economática!$A$3:$AI$823,25,FALSE)))","v":""},{"$f":"CONCATENATE(Economática!B828,\" \",Economática!C828)","v":" "}]
[{"$f":"IF(Economática!AG829=\"\",\"\",Economática!AG829)","v":""},{"$f":"IF($A851=\"\",\"\",VLOOKUP(VLOOKUP($A851,Economática!$A$3:$AI$823,6,FALSE),Correção!$B$16:$C$36,2,FALSE))","v":""},{"$f":"IF(Economática!B829=\"\",\"\",Economática!B829)","v":""},{"$f":"IF($A851=\"\",\"\",IF(OR(VLOOKUP($A851,Economática!$A$3:$AI$823,8,FALSE)=0,VLOOKUP($A851,Economática!$A$3:$AI$823,8,FALSE)=\"-\"),1/0,VLOOKUP($A851,Economática!$A$3:$AI$823,8,FALSE)))","v":""},{"$f":"IF(A851=\"\",\"\",IF(ISERROR(VLOOKUP(A851,Correção!$B$2:$G$13,9,FALSE)),VLOOKUP($A851,Economática!$A$3:$AI$823,9,FALSE),VLOOKUP(A851,Correção!$B$2:$G$13,9,FALSE)))","v":""},{"$f":"IF($A851=\"\",\"\",Economática!G829)","v":""},{"$f":"IF($A851=\"\",\"\",IF(OR(VLOOKUP($A851,Economática!$A$3:$AI$823,10,FALSE)=0,VLOOKUP($A851,Economática!$A$3:$AI$823,10,FALSE)=\"-\"),1/0,VLOOKUP($A851,Economática!$A$3:$AI$823,10,FALSE)))","v":""},{"$f":"IF($A851=\"\",\"\",IF(OR(VLOOKUP($A851,Economática!$A$3:$AI$823,11,FALSE)=0,VLOOKUP($A851,Economática!$A$3:$AI$823,11,FALSE)=\"-\"),1/0,VLOOKUP($A851,Economática!$A$3:$AI$823,11,FALSE)))","v":""},{"$f":"IF($A851=\"\",\"\",IF(OR(VLOOKUP($A851,Economática!$A$3:$AI$823,12,FALSE)=0,VLOOKUP($A851,Economática!$A$3:$AI$823,12,FALSE)=\"-\"),1/0,VLOOKUP($A851,Economática!$A$3:$AI$823,12,FALSE)))","v":""},{"$f":"IF($A851=\"\",\"\",IF(OR(VLOOKUP($A851,Economática!$A$3:$AI$823,13,FALSE)=0,VLOOKUP($A851,Economática!$A$3:$AI$823,13,FALSE)=\"-\"),1/0,VLOOKUP($A851,Economática!$A$3:$AI$823,13,FALSE)))","v":""},{"$f":"IF($A851=\"\",\"\",IF(OR(VLOOKUP($A851,Economática!$A$3:$AI$823,14,FALSE)=0,VLOOKUP($A851,Economática!$A$3:$AI$823,14,FALSE)=\"-\"),1/0,VLOOKUP($A851,Economática!$A$3:$AI$823,14,FALSE)))","v":""},{"$f":"IF($A851=\"\",\"\",IF(OR(VLOOKUP($A851,Economática!$A$3:$AI$823,15,FALSE)=0,VLOOKUP($A851,Economática!$A$3:$AI$823,15,FALSE)=\"-\"),1/0,VLOOKUP($A851,Economática!$A$3:$AI$823,15,FALSE)))","v":""},{"$f":"IF($A851=\"\",\"\",IF(OR(VLOOKUP($A851,Economática!$A$3:$AI$823,16,FALSE)=0,VLOOKUP($A851,Economática!$A$3:$AI$823,16,FALSE)=\"-\"),1/0,VLOOKUP($A851,Economática!$A$3:$AI$823,16,FALSE)))","v":""},{"$f":"IF($A851=\"\",\"\",IF(OR(VLOOKUP($A851,Economática!$A$3:$AI$823,17,FALSE)=0,VLOOKUP($A851,Economática!$A$3:$AI$823,17,FALSE)=\"-\"),1/0,VLOOKUP($A851,Economática!$A$3:$AI$823,17,FALSE)))","v":""},{"$f":"IF($A851=\"\",\"\",IF(OR(VLOOKUP($A851,Economática!$A$3:$AI$823,18,FALSE)=0,VLOOKUP($A851,Economática!$A$3:$AI$823,18,FALSE)=\"-\"),1/0,VLOOKUP($A851,Economática!$A$3:$AI$823,18,FALSE)))","v":""},{"$f":"IF($A851=\"\",\"\",IF(OR(VLOOKUP($A851,Economática!$A$3:$AI$823,19,FALSE)=0,VLOOKUP($A851,Economática!$A$3:$AI$823,19,FALSE)=\"-\"),1/0,VLOOKUP($A851,Economática!$A$3:$AI$823,19,FALSE)))","v":""},{"$f":"IF($A851=\"\",\"\",VLOOKUP($A851,Economática!$A$3:$AI$823,20,FALSE)/E851)","v":""},"","","",{"$f":"IF($A851=\"\",\"\",IF(OR(VLOOKUP($A851,Economática!$A$3:$AI$823,21,FALSE)/100=0,VLOOKUP($A851,Economática!$A$3:$AI$823,21,FALSE)/100=\"-\"),1/0,VLOOKUP($A851,Economática!$A$3:$AI$823,21,FALSE)/100))","v":""},{"$f":"IF($A851=\"\",\"\",IF(OR(VLOOKUP($A851,Economática!$A$3:$AI$823,22,FALSE)/100=0,VLOOKUP($A851,Economática!$A$3:$AI$823,22,FALSE)/100=\"-\"),1/0,VLOOKUP($A851,Economática!$A$3:$AI$823,22,FALSE)/100))","v":""},{"$f":"IF($A851=\"\",\"\",IF(OR(VLOOKUP($A851,Economática!$A$3:$AI$823,23,FALSE)=0,VLOOKUP($A851,Economática!$A$3:$AI$823,23,FALSE)=\"-\"),1/0,VLOOKUP($A851,Economática!$A$3:$AI$823,23,FALSE)))","v":""},{"$f":"IF($A851=\"\",\"\",IF(OR(VLOOKUP($A851,Economática!$A$3:$AI$823,24,FALSE)=0,VLOOKUP($A851,Economática!$A$3:$AI$823,24,FALSE)=\"-\"),1/0,VLOOKUP($A851,Economática!$A$3:$AI$823,24,FALSE)))","v":""},{"$f":"IF($A851=\"\",\"\",IF(OR(VLOOKUP($A851,Economática!$A$3:$AI$823,25,FALSE)=0,VLOOKUP($A851,Economática!$A$3:$AI$823,25,FALSE)=\"-\"),1/0,VLOOKUP($A851,Economática!$A$3:$AI$823,25,FALSE)))","v":""},{"$f":"IF($A851=\"\",\"\",IF(ISERROR((F851+VLOOKUP($A851,Economática!$A$3:$AI$823,26,FALSE))/Y851),(F851+VLOOKUP($A851,Economática!$A$3:$AI$823,26,FALSE))/Y851,(F851+VLOOKUP($A851,Economática!$A$3:$AI$823,26,FALSE))/Y851))","v":""},{"$f":"IF($A851=\"\",\"\",IF(OR(-VLOOKUP($A851,Economática!$A$3:$AI$823,27,FALSE)=0,-VLOOKUP($A851,Economática!$A$3:$AI$823,27,FALSE)=\"-\"),1/0,-VLOOKUP($A851,Economática!$A$3:$AI$823,27,FALSE)))","v":""},"",{"$f":"IF($A851=\"\",\"\",IF(OR(VLOOKUP($A851,Economática!$A$3:$AI$823,28,FALSE)=0,VLOOKUP($A851,Economática!$A$3:$AI$823,28,FALSE)=\"-\"),1/0,VLOOKUP($A851,Economática!$A$3:$AI$823,28,FALSE)))","v":""},{"$f":"IF($A851=\"\",\"\",IF(OR(VLOOKUP($A851,Economática!$A$3:$AI$823,29,FALSE)=0,VLOOKUP($A851,Economática!$A$3:$AI$823,29,FALSE)=\"-\"),1/0,VLOOKUP($A851,Economática!$A$3:$AI$823,29,FALSE)))","v":""},{"$f":"IF($A851=\"\",\"\",IF(OR(VLOOKUP($A851,Economática!$A$3:$AI$823,30,FALSE)/E851=0,VLOOKUP($A851,Economática!$A$3:$AI$823,30,FALSE)/E851=\"-\",VLOOKUP($A851,Economática!$A$3:$AI$823,30,FALSE)/E851<33.33%,VLOOKUP($A851,Economática!$A$3:$AI$823,30,FALSE)/E851>100%),1/0,VLOOKUP($A851,Economática!$A$3:$AI$823,30,FALSE)/E851))","v":""},"",{"$f":"IF($A851=\"\",\"\",IF(OR(VLOOKUP($A851,Economática!$A$3:$AI$823,25,FALSE)=0,VLOOKUP($A851,Economática!$A$3:$AI$823,25,FALSE)=\"-\"),1/0,VLOOKUP($A851,Economática!$A$3:$AI$823,25,FALSE)))","v":""},{"$f":"CONCATENATE(Economática!B829,\" \",Economática!C829)","v":" "}]
[{"$f":"IF(Economática!AG830=\"\",\"\",Economática!AG830)","v":""},{"$f":"IF($A852=\"\",\"\",VLOOKUP(VLOOKUP($A852,Economática!$A$3:$AI$823,6,FALSE),Correção!$B$16:$C$36,2,FALSE))","v":""},{"$f":"IF(Economática!B830=\"\",\"\",Economática!B830)","v":""},{"$f":"IF($A852=\"\",\"\",IF(OR(VLOOKUP($A852,Economática!$A$3:$AI$823,8,FALSE)=0,VLOOKUP($A852,Economática!$A$3:$AI$823,8,FALSE)=\"-\"),1/0,VLOOKUP($A852,Economática!$A$3:$AI$823,8,FALSE)))","v":""},{"$f":"IF(A852=\"\",\"\",IF(ISERROR(VLOOKUP(A852,Correção!$B$2:$G$13,9,FALSE)),VLOOKUP($A852,Economática!$A$3:$AI$823,9,FALSE),VLOOKUP(A852,Correção!$B$2:$G$13,9,FALSE)))","v":""},{"$f":"IF($A852=\"\",\"\",Economática!G830)","v":""},{"$f":"IF($A852=\"\",\"\",IF(OR(VLOOKUP($A852,Economática!$A$3:$AI$823,10,FALSE)=0,VLOOKUP($A852,Economática!$A$3:$AI$823,10,FALSE)=\"-\"),1/0,VLOOKUP($A852,Economática!$A$3:$AI$823,10,FALSE)))","v":""},{"$f":"IF($A852=\"\",\"\",IF(OR(VLOOKUP($A852,Economática!$A$3:$AI$823,11,FALSE)=0,VLOOKUP($A852,Economática!$A$3:$AI$823,11,FALSE)=\"-\"),1/0,VLOOKUP($A852,Economática!$A$3:$AI$823,11,FALSE)))","v":""},{"$f":"IF($A852=\"\",\"\",IF(OR(VLOOKUP($A852,Economática!$A$3:$AI$823,12,FALSE)=0,VLOOKUP($A852,Economática!$A$3:$AI$823,12,FALSE)=\"-\"),1/0,VLOOKUP($A852,Economática!$A$3:$AI$823,12,FALSE)))","v":""},{"$f":"IF($A852=\"\",\"\",IF(OR(VLOOKUP($A852,Economática!$A$3:$AI$823,13,FALSE)=0,VLOOKUP($A852,Economática!$A$3:$AI$823,13,FALSE)=\"-\"),1/0,VLOOKUP($A852,Economática!$A$3:$AI$823,13,FALSE)))","v":""},{"$f":"IF($A852=\"\",\"\",IF(OR(VLOOKUP($A852,Economática!$A$3:$AI$823,14,FALSE)=0,VLOOKUP($A852,Economática!$A$3:$AI$823,14,FALSE)=\"-\"),1/0,VLOOKUP($A852,Economática!$A$3:$AI$823,14,FALSE)))","v":""},{"$f":"IF($A852=\"\",\"\",IF(OR(VLOOKUP($A852,Economática!$A$3:$AI$823,15,FALSE)=0,VLOOKUP($A852,Economática!$A$3:$AI$823,15,FALSE)=\"-\"),1/0,VLOOKUP($A852,Economática!$A$3:$AI$823,15,FALSE)))","v":""},{"$f":"IF($A852=\"\",\"\",IF(OR(VLOOKUP($A852,Economática!$A$3:$AI$823,16,FALSE)=0,VLOOKUP($A852,Economática!$A$3:$AI$823,16,FALSE)=\"-\"),1/0,VLOOKUP($A852,Economática!$A$3:$AI$823,16,FALSE)))","v":""},{"$f":"IF($A852=\"\",\"\",IF(OR(VLOOKUP($A852,Economática!$A$3:$AI$823,17,FALSE)=0,VLOOKUP($A852,Economática!$A$3:$AI$823,17,FALSE)=\"-\"),1/0,VLOOKUP($A852,Economática!$A$3:$AI$823,17,FALSE)))","v":""},{"$f":"IF($A852=\"\",\"\",IF(OR(VLOOKUP($A852,Economática!$A$3:$AI$823,18,FALSE)=0,VLOOKUP($A852,Economática!$A$3:$AI$823,18,FALSE)=\"-\"),1/0,VLOOKUP($A852,Economática!$A$3:$AI$823,18,FALSE)))","v":""},{"$f":"IF($A852=\"\",\"\",IF(OR(VLOOKUP($A852,Economática!$A$3:$AI$823,19,FALSE)=0,VLOOKUP($A852,Economática!$A$3:$AI$823,19,FALSE)=\"-\"),1/0,VLOOKUP($A852,Economática!$A$3:$AI$823,19,FALSE)))","v":""},{"$f":"IF($A852=\"\",\"\",VLOOKUP($A852,Economática!$A$3:$AI$823,20,FALSE)/E852)","v":""},"","","",{"$f":"IF($A852=\"\",\"\",IF(OR(VLOOKUP($A852,Economática!$A$3:$AI$823,21,FALSE)/100=0,VLOOKUP($A852,Economática!$A$3:$AI$823,21,FALSE)/100=\"-\"),1/0,VLOOKUP($A852,Economática!$A$3:$AI$823,21,FALSE)/100))","v":""},{"$f":"IF($A852=\"\",\"\",IF(OR(VLOOKUP($A852,Economática!$A$3:$AI$823,22,FALSE)/100=0,VLOOKUP($A852,Economática!$A$3:$AI$823,22,FALSE)/100=\"-\"),1/0,VLOOKUP($A852,Economática!$A$3:$AI$823,22,FALSE)/100))","v":""},{"$f":"IF($A852=\"\",\"\",IF(OR(VLOOKUP($A852,Economática!$A$3:$AI$823,23,FALSE)=0,VLOOKUP($A852,Economática!$A$3:$AI$823,23,FALSE)=\"-\"),1/0,VLOOKUP($A852,Economática!$A$3:$AI$823,23,FALSE)))","v":""},{"$f":"IF($A852=\"\",\"\",IF(OR(VLOOKUP($A852,Economática!$A$3:$AI$823,24,FALSE)=0,VLOOKUP($A852,Economática!$A$3:$AI$823,24,FALSE)=\"-\"),1/0,VLOOKUP($A852,Economática!$A$3:$AI$823,24,FALSE)))","v":""},{"$f":"IF($A852=\"\",\"\",IF(OR(VLOOKUP($A852,Economática!$A$3:$AI$823,25,FALSE)=0,VLOOKUP($A852,Economática!$A$3:$AI$823,25,FALSE)=\"-\"),1/0,VLOOKUP($A852,Economática!$A$3:$AI$823,25,FALSE)))","v":""},{"$f":"IF($A852=\"\",\"\",IF(ISERROR((F852+VLOOKUP($A852,Economática!$A$3:$AI$823,26,FALSE))/Y852),(F852+VLOOKUP($A852,Economática!$A$3:$AI$823,26,FALSE))/Y852,(F852+VLOOKUP($A852,Economática!$A$3:$AI$823,26,FALSE))/Y852))","v":""},{"$f":"IF($A852=\"\",\"\",IF(OR(-VLOOKUP($A852,Economática!$A$3:$AI$823,27,FALSE)=0,-VLOOKUP($A852,Economática!$A$3:$AI$823,27,FALSE)=\"-\"),1/0,-VLOOKUP($A852,Economática!$A$3:$AI$823,27,FALSE)))","v":""},"",{"$f":"IF($A852=\"\",\"\",IF(OR(VLOOKUP($A852,Economática!$A$3:$AI$823,28,FALSE)=0,VLOOKUP($A852,Economática!$A$3:$AI$823,28,FALSE)=\"-\"),1/0,VLOOKUP($A852,Economática!$A$3:$AI$823,28,FALSE)))","v":""},{"$f":"IF($A852=\"\",\"\",IF(OR(VLOOKUP($A852,Economática!$A$3:$AI$823,29,FALSE)=0,VLOOKUP($A852,Economática!$A$3:$AI$823,29,FALSE)=\"-\"),1/0,VLOOKUP($A852,Economática!$A$3:$AI$823,29,FALSE)))","v":""},{"$f":"IF($A852=\"\",\"\",IF(OR(VLOOKUP($A852,Economática!$A$3:$AI$823,30,FALSE)/E852=0,VLOOKUP($A852,Economática!$A$3:$AI$823,30,FALSE)/E852=\"-\",VLOOKUP($A852,Economática!$A$3:$AI$823,30,FALSE)/E852<33.33%,VLOOKUP($A852,Economática!$A$3:$AI$823,30,FALSE)/E852>100%),1/0,VLOOKUP($A852,Economática!$A$3:$AI$823,30,FALSE)/E852))","v":""},"",{"$f":"IF($A852=\"\",\"\",IF(OR(VLOOKUP($A852,Economática!$A$3:$AI$823,25,FALSE)=0,VLOOKUP($A852,Economática!$A$3:$AI$823,25,FALSE)=\"-\"),1/0,VLOOKUP($A852,Economática!$A$3:$AI$823,25,FALSE)))","v":""},{"$f":"CONCATENATE(Economática!B830,\" \",Economática!C830)","v":" "}]
[{"$f":"IF(Economática!AG831=\"\",\"\",Economática!AG831)","v":""},{"$f":"IF($A853=\"\",\"\",VLOOKUP(VLOOKUP($A853,Economática!$A$3:$AI$823,6,FALSE),Correção!$B$16:$C$36,2,FALSE))","v":""},{"$f":"IF(Economática!B831=\"\",\"\",Economática!B831)","v":""},{"$f":"IF($A853=\"\",\"\",IF(OR(VLOOKUP($A853,Economática!$A$3:$AI$823,8,FALSE)=0,VLOOKUP($A853,Economática!$A$3:$AI$823,8,FALSE)=\"-\"),1/0,VLOOKUP($A853,Economática!$A$3:$AI$823,8,FALSE)))","v":""},{"$f":"IF(A853=\"\",\"\",IF(ISERROR(VLOOKUP(A853,Correção!$B$2:$G$13,9,FALSE)),VLOOKUP($A853,Economática!$A$3:$AI$823,9,FALSE),VLOOKUP(A853,Correção!$B$2:$G$13,9,FALSE)))","v":""},{"$f":"IF($A853=\"\",\"\",Economática!G831)","v":""},{"$f":"IF($A853=\"\",\"\",IF(OR(VLOOKUP($A853,Economática!$A$3:$AI$823,10,FALSE)=0,VLOOKUP($A853,Economática!$A$3:$AI$823,10,FALSE)=\"-\"),1/0,VLOOKUP($A853,Economática!$A$3:$AI$823,10,FALSE)))","v":""},{"$f":"IF($A853=\"\",\"\",IF(OR(VLOOKUP($A853,Economática!$A$3:$AI$823,11,FALSE)=0,VLOOKUP($A853,Economática!$A$3:$AI$823,11,FALSE)=\"-\"),1/0,VLOOKUP($A853,Economática!$A$3:$AI$823,11,FALSE)))","v":""},{"$f":"IF($A853=\"\",\"\",IF(OR(VLOOKUP($A853,Economática!$A$3:$AI$823,12,FALSE)=0,VLOOKUP($A853,Economática!$A$3:$AI$823,12,FALSE)=\"-\"),1/0,VLOOKUP($A853,Economática!$A$3:$AI$823,12,FALSE)))","v":""},{"$f":"IF($A853=\"\",\"\",IF(OR(VLOOKUP($A853,Economática!$A$3:$AI$823,13,FALSE)=0,VLOOKUP($A853,Economática!$A$3:$AI$823,13,FALSE)=\"-\"),1/0,VLOOKUP($A853,Economática!$A$3:$AI$823,13,FALSE)))","v":""},{"$f":"IF($A853=\"\",\"\",IF(OR(VLOOKUP($A853,Economática!$A$3:$AI$823,14,FALSE)=0,VLOOKUP($A853,Economática!$A$3:$AI$823,14,FALSE)=\"-\"),1/0,VLOOKUP($A853,Economática!$A$3:$AI$823,14,FALSE)))","v":""},{"$f":"IF($A853=\"\",\"\",IF(OR(VLOOKUP($A853,Economática!$A$3:$AI$823,15,FALSE)=0,VLOOKUP($A853,Economática!$A$3:$AI$823,15,FALSE)=\"-\"),1/0,VLOOKUP($A853,Economática!$A$3:$AI$823,15,FALSE)))","v":""},{"$f":"IF($A853=\"\",\"\",IF(OR(VLOOKUP($A853,Economática!$A$3:$AI$823,16,FALSE)=0,VLOOKUP($A853,Economática!$A$3:$AI$823,16,FALSE)=\"-\"),1/0,VLOOKUP($A853,Economática!$A$3:$AI$823,16,FALSE)))","v":""},{"$f":"IF($A853=\"\",\"\",IF(OR(VLOOKUP($A853,Economática!$A$3:$AI$823,17,FALSE)=0,VLOOKUP($A853,Economática!$A$3:$AI$823,17,FALSE)=\"-\"),1/0,VLOOKUP($A853,Economática!$A$3:$AI$823,17,FALSE)))","v":""},{"$f":"IF($A853=\"\",\"\",IF(OR(VLOOKUP($A853,Economática!$A$3:$AI$823,18,FALSE)=0,VLOOKUP($A853,Economática!$A$3:$AI$823,18,FALSE)=\"-\"),1/0,VLOOKUP($A853,Economática!$A$3:$AI$823,18,FALSE)))","v":""},{"$f":"IF($A853=\"\",\"\",IF(OR(VLOOKUP($A853,Economática!$A$3:$AI$823,19,FALSE)=0,VLOOKUP($A853,Economática!$A$3:$AI$823,19,FALSE)=\"-\"),1/0,VLOOKUP($A853,Economática!$A$3:$AI$823,19,FALSE)))","v":""},{"$f":"IF($A853=\"\",\"\",VLOOKUP($A853,Economática!$A$3:$AI$823,20,FALSE)/E853)","v":""},"","","",{"$f":"IF($A853=\"\",\"\",IF(OR(VLOOKUP($A853,Economática!$A$3:$AI$823,21,FALSE)/100=0,VLOOKUP($A853,Economática!$A$3:$AI$823,21,FALSE)/100=\"-\"),1/0,VLOOKUP($A853,Economática!$A$3:$AI$823,21,FALSE)/100))","v":""},{"$f":"IF($A853=\"\",\"\",IF(OR(VLOOKUP($A853,Economática!$A$3:$AI$823,22,FALSE)/100=0,VLOOKUP($A853,Economática!$A$3:$AI$823,22,FALSE)/100=\"-\"),1/0,VLOOKUP($A853,Economática!$A$3:$AI$823,22,FALSE)/100))","v":""},{"$f":"IF($A853=\"\",\"\",IF(OR(VLOOKUP($A853,Economática!$A$3:$AI$823,23,FALSE)=0,VLOOKUP($A853,Economática!$A$3:$AI$823,23,FALSE)=\"-\"),1/0,VLOOKUP($A853,Economática!$A$3:$AI$823,23,FALSE)))","v":""},{"$f":"IF($A853=\"\",\"\",IF(OR(VLOOKUP($A853,Economática!$A$3:$AI$823,24,FALSE)=0,VLOOKUP($A853,Economática!$A$3:$AI$823,24,FALSE)=\"-\"),1/0,VLOOKUP($A853,Economática!$A$3:$AI$823,24,FALSE)))","v":""},{"$f":"IF($A853=\"\",\"\",IF(OR(VLOOKUP($A853,Economática!$A$3:$AI$823,25,FALSE)=0,VLOOKUP($A853,Economática!$A$3:$AI$823,25,FALSE)=\"-\"),1/0,VLOOKUP($A853,Economática!$A$3:$AI$823,25,FALSE)))","v":""},{"$f":"IF($A853=\"\",\"\",IF(ISERROR((F853+VLOOKUP($A853,Economática!$A$3:$AI$823,26,FALSE))/Y853),(F853+VLOOKUP($A853,Economática!$A$3:$AI$823,26,FALSE))/Y853,(F853+VLOOKUP($A853,Economática!$A$3:$AI$823,26,FALSE))/Y853))","v":""},{"$f":"IF($A853=\"\",\"\",IF(OR(-VLOOKUP($A853,Economática!$A$3:$AI$823,27,FALSE)=0,-VLOOKUP($A853,Economática!$A$3:$AI$823,27,FALSE)=\"-\"),1/0,-VLOOKUP($A853,Economática!$A$3:$AI$823,27,FALSE)))","v":""},"",{"$f":"IF($A853=\"\",\"\",IF(OR(VLOOKUP($A853,Economática!$A$3:$AI$823,28,FALSE)=0,VLOOKUP($A853,Economática!$A$3:$AI$823,28,FALSE)=\"-\"),1/0,VLOOKUP($A853,Economática!$A$3:$AI$823,28,FALSE)))","v":""},{"$f":"IF($A853=\"\",\"\",IF(OR(VLOOKUP($A853,Economática!$A$3:$AI$823,29,FALSE)=0,VLOOKUP($A853,Economática!$A$3:$AI$823,29,FALSE)=\"-\"),1/0,VLOOKUP($A853,Economática!$A$3:$AI$823,29,FALSE)))","v":""},{"$f":"IF($A853=\"\",\"\",IF(OR(VLOOKUP($A853,Economática!$A$3:$AI$823,30,FALSE)/E853=0,VLOOKUP($A853,Economática!$A$3:$AI$823,30,FALSE)/E853=\"-\",VLOOKUP($A853,Economática!$A$3:$AI$823,30,FALSE)/E853<33.33%,VLOOKUP($A853,Economática!$A$3:$AI$823,30,FALSE)/E853>100%),1/0,VLOOKUP($A853,Economática!$A$3:$AI$823,30,FALSE)/E853))","v":""},"",{"$f":"IF($A853=\"\",\"\",IF(OR(VLOOKUP($A853,Economática!$A$3:$AI$823,25,FALSE)=0,VLOOKUP($A853,Economática!$A$3:$AI$823,25,FALSE)=\"-\"),1/0,VLOOKUP($A853,Economática!$A$3:$AI$823,25,FALSE)))","v":""},{"$f":"CONCATENATE(Economática!B831,\" \",Economática!C831)","v":" "}]
[{"$f":"IF(Economática!AG832=\"\",\"\",Economática!AG832)","v":""},{"$f":"IF($A854=\"\",\"\",VLOOKUP(VLOOKUP($A854,Economática!$A$3:$AI$823,6,FALSE),Correção!$B$16:$C$36,2,FALSE))","v":""},{"$f":"IF(Economática!B832=\"\",\"\",Economática!B832)","v":""},{"$f":"IF($A854=\"\",\"\",IF(OR(VLOOKUP($A854,Economática!$A$3:$AI$823,8,FALSE)=0,VLOOKUP($A854,Economática!$A$3:$AI$823,8,FALSE)=\"-\"),1/0,VLOOKUP($A854,Economática!$A$3:$AI$823,8,FALSE)))","v":""},{"$f":"IF(A854=\"\",\"\",IF(ISERROR(VLOOKUP(A854,Correção!$B$2:$G$13,9,FALSE)),VLOOKUP($A854,Economática!$A$3:$AI$823,9,FALSE),VLOOKUP(A854,Correção!$B$2:$G$13,9,FALSE)))","v":""},{"$f":"IF($A854=\"\",\"\",Economática!G832)","v":""},{"$f":"IF($A854=\"\",\"\",IF(OR(VLOOKUP($A854,Economática!$A$3:$AI$823,10,FALSE)=0,VLOOKUP($A854,Economática!$A$3:$AI$823,10,FALSE)=\"-\"),1/0,VLOOKUP($A854,Economática!$A$3:$AI$823,10,FALSE)))","v":""},{"$f":"IF($A854=\"\",\"\",IF(OR(VLOOKUP($A854,Economática!$A$3:$AI$823,11,FALSE)=0,VLOOKUP($A854,Economática!$A$3:$AI$823,11,FALSE)=\"-\"),1/0,VLOOKUP($A854,Economática!$A$3:$AI$823,11,FALSE)))","v":""},{"$f":"IF($A854=\"\",\"\",IF(OR(VLOOKUP($A854,Economática!$A$3:$AI$823,12,FALSE)=0,VLOOKUP($A854,Economática!$A$3:$AI$823,12,FALSE)=\"-\"),1/0,VLOOKUP($A854,Economática!$A$3:$AI$823,12,FALSE)))","v":""},{"$f":"IF($A854=\"\",\"\",IF(OR(VLOOKUP($A854,Economática!$A$3:$AI$823,13,FALSE)=0,VLOOKUP($A854,Economática!$A$3:$AI$823,13,FALSE)=\"-\"),1/0,VLOOKUP($A854,Economática!$A$3:$AI$823,13,FALSE)))","v":""},{"$f":"IF($A854=\"\",\"\",IF(OR(VLOOKUP($A854,Economática!$A$3:$AI$823,14,FALSE)=0,VLOOKUP($A854,Economática!$A$3:$AI$823,14,FALSE)=\"-\"),1/0,VLOOKUP($A854,Economática!$A$3:$AI$823,14,FALSE)))","v":""},{"$f":"IF($A854=\"\",\"\",IF(OR(VLOOKUP($A854,Economática!$A$3:$AI$823,15,FALSE)=0,VLOOKUP($A854,Economática!$A$3:$AI$823,15,FALSE)=\"-\"),1/0,VLOOKUP($A854,Economática!$A$3:$AI$823,15,FALSE)))","v":""},{"$f":"IF($A854=\"\",\"\",IF(OR(VLOOKUP($A854,Economática!$A$3:$AI$823,16,FALSE)=0,VLOOKUP($A854,Economática!$A$3:$AI$823,16,FALSE)=\"-\"),1/0,VLOOKUP($A854,Economática!$A$3:$AI$823,16,FALSE)))","v":""},{"$f":"IF($A854=\"\",\"\",IF(OR(VLOOKUP($A854,Economática!$A$3:$AI$823,17,FALSE)=0,VLOOKUP($A854,Economática!$A$3:$AI$823,17,FALSE)=\"-\"),1/0,VLOOKUP($A854,Economática!$A$3:$AI$823,17,FALSE)))","v":""},{"$f":"IF($A854=\"\",\"\",IF(OR(VLOOKUP($A854,Economática!$A$3:$AI$823,18,FALSE)=0,VLOOKUP($A854,Economática!$A$3:$AI$823,18,FALSE)=\"-\"),1/0,VLOOKUP($A854,Economática!$A$3:$AI$823,18,FALSE)))","v":""},{"$f":"IF($A854=\"\",\"\",IF(OR(VLOOKUP($A854,Economática!$A$3:$AI$823,19,FALSE)=0,VLOOKUP($A854,Economática!$A$3:$AI$823,19,FALSE)=\"-\"),1/0,VLOOKUP($A854,Economática!$A$3:$AI$823,19,FALSE)))","v":""},{"$f":"IF($A854=\"\",\"\",VLOOKUP($A854,Economática!$A$3:$AI$823,20,FALSE)/E854)","v":""},"","","",{"$f":"IF($A854=\"\",\"\",IF(OR(VLOOKUP($A854,Economática!$A$3:$AI$823,21,FALSE)/100=0,VLOOKUP($A854,Economática!$A$3:$AI$823,21,FALSE)/100=\"-\"),1/0,VLOOKUP($A854,Economática!$A$3:$AI$823,21,FALSE)/100))","v":""},{"$f":"IF($A854=\"\",\"\",IF(OR(VLOOKUP($A854,Economática!$A$3:$AI$823,22,FALSE)/100=0,VLOOKUP($A854,Economática!$A$3:$AI$823,22,FALSE)/100=\"-\"),1/0,VLOOKUP($A854,Economática!$A$3:$AI$823,22,FALSE)/100))","v":""},{"$f":"IF($A854=\"\",\"\",IF(OR(VLOOKUP($A854,Economática!$A$3:$AI$823,23,FALSE)=0,VLOOKUP($A854,Economática!$A$3:$AI$823,23,FALSE)=\"-\"),1/0,VLOOKUP($A854,Economática!$A$3:$AI$823,23,FALSE)))","v":""},{"$f":"IF($A854=\"\",\"\",IF(OR(VLOOKUP($A854,Economática!$A$3:$AI$823,24,FALSE)=0,VLOOKUP($A854,Economática!$A$3:$AI$823,24,FALSE)=\"-\"),1/0,VLOOKUP($A854,Economática!$A$3:$AI$823,24,FALSE)))","v":""},{"$f":"IF($A854=\"\",\"\",IF(OR(VLOOKUP($A854,Economática!$A$3:$AI$823,25,FALSE)=0,VLOOKUP($A854,Economática!$A$3:$AI$823,25,FALSE)=\"-\"),1/0,VLOOKUP($A854,Economática!$A$3:$AI$823,25,FALSE)))","v":""},{"$f":"IF($A854=\"\",\"\",IF(ISERROR((F854+VLOOKUP($A854,Economática!$A$3:$AI$823,26,FALSE))/Y854),(F854+VLOOKUP($A854,Economática!$A$3:$AI$823,26,FALSE))/Y854,(F854+VLOOKUP($A854,Economática!$A$3:$AI$823,26,FALSE))/Y854))","v":""},{"$f":"IF($A854=\"\",\"\",IF(OR(-VLOOKUP($A854,Economática!$A$3:$AI$823,27,FALSE)=0,-VLOOKUP($A854,Economática!$A$3:$AI$823,27,FALSE)=\"-\"),1/0,-VLOOKUP($A854,Economática!$A$3:$AI$823,27,FALSE)))","v":""},"",{"$f":"IF($A854=\"\",\"\",IF(OR(VLOOKUP($A854,Economática!$A$3:$AI$823,28,FALSE)=0,VLOOKUP($A854,Economática!$A$3:$AI$823,28,FALSE)=\"-\"),1/0,VLOOKUP($A854,Economática!$A$3:$AI$823,28,FALSE)))","v":""},{"$f":"IF($A854=\"\",\"\",IF(OR(VLOOKUP($A854,Economática!$A$3:$AI$823,29,FALSE)=0,VLOOKUP($A854,Economática!$A$3:$AI$823,29,FALSE)=\"-\"),1/0,VLOOKUP($A854,Economática!$A$3:$AI$823,29,FALSE)))","v":""},{"$f":"IF($A854=\"\",\"\",IF(OR(VLOOKUP($A854,Economática!$A$3:$AI$823,30,FALSE)/E854=0,VLOOKUP($A854,Economática!$A$3:$AI$823,30,FALSE)/E854=\"-\",VLOOKUP($A854,Economática!$A$3:$AI$823,30,FALSE)/E854<33.33%,VLOOKUP($A854,Economática!$A$3:$AI$823,30,FALSE)/E854>100%),1/0,VLOOKUP($A854,Economática!$A$3:$AI$823,30,FALSE)/E854))","v":""},"",{"$f":"IF($A854=\"\",\"\",IF(OR(VLOOKUP($A854,Economática!$A$3:$AI$823,25,FALSE)=0,VLOOKUP($A854,Economática!$A$3:$AI$823,25,FALSE)=\"-\"),1/0,VLOOKUP($A854,Economática!$A$3:$AI$823,25,FALSE)))","v":""},{"$f":"CONCATENATE(Economática!B832,\" \",Economática!C832)","v":" "}]
[{"$f":"IF(Economática!AG833=\"\",\"\",Economática!AG833)","v":""},{"$f":"IF($A855=\"\",\"\",VLOOKUP(VLOOKUP($A855,Economática!$A$3:$AI$823,6,FALSE),Correção!$B$16:$C$36,2,FALSE))","v":""},{"$f":"IF(Economática!B833=\"\",\"\",Economática!B833)","v":""},{"$f":"IF($A855=\"\",\"\",IF(OR(VLOOKUP($A855,Economática!$A$3:$AI$823,8,FALSE)=0,VLOOKUP($A855,Economática!$A$3:$AI$823,8,FALSE)=\"-\"),1/0,VLOOKUP($A855,Economática!$A$3:$AI$823,8,FALSE)))","v":""},{"$f":"IF(A855=\"\",\"\",IF(ISERROR(VLOOKUP(A855,Correção!$B$2:$G$13,9,FALSE)),VLOOKUP($A855,Economática!$A$3:$AI$823,9,FALSE),VLOOKUP(A855,Correção!$B$2:$G$13,9,FALSE)))","v":""},{"$f":"IF($A855=\"\",\"\",Economática!G833)","v":""},{"$f":"IF($A855=\"\",\"\",IF(OR(VLOOKUP($A855,Economática!$A$3:$AI$823,10,FALSE)=0,VLOOKUP($A855,Economática!$A$3:$AI$823,10,FALSE)=\"-\"),1/0,VLOOKUP($A855,Economática!$A$3:$AI$823,10,FALSE)))","v":""},{"$f":"IF($A855=\"\",\"\",IF(OR(VLOOKUP($A855,Economática!$A$3:$AI$823,11,FALSE)=0,VLOOKUP($A855,Economática!$A$3:$AI$823,11,FALSE)=\"-\"),1/0,VLOOKUP($A855,Economática!$A$3:$AI$823,11,FALSE)))","v":""},{"$f":"IF($A855=\"\",\"\",IF(OR(VLOOKUP($A855,Economática!$A$3:$AI$823,12,FALSE)=0,VLOOKUP($A855,Economática!$A$3:$AI$823,12,FALSE)=\"-\"),1/0,VLOOKUP($A855,Economática!$A$3:$AI$823,12,FALSE)))","v":""},{"$f":"IF($A855=\"\",\"\",IF(OR(VLOOKUP($A855,Economática!$A$3:$AI$823,13,FALSE)=0,VLOOKUP($A855,Economática!$A$3:$AI$823,13,FALSE)=\"-\"),1/0,VLOOKUP($A855,Economática!$A$3:$AI$823,13,FALSE)))","v":""},{"$f":"IF($A855=\"\",\"\",IF(OR(VLOOKUP($A855,Economática!$A$3:$AI$823,14,FALSE)=0,VLOOKUP($A855,Economática!$A$3:$AI$823,14,FALSE)=\"-\"),1/0,VLOOKUP($A855,Economática!$A$3:$AI$823,14,FALSE)))","v":""},{"$f":"IF($A855=\"\",\"\",IF(OR(VLOOKUP($A855,Economática!$A$3:$AI$823,15,FALSE)=0,VLOOKUP($A855,Economática!$A$3:$AI$823,15,FALSE)=\"-\"),1/0,VLOOKUP($A855,Economática!$A$3:$AI$823,15,FALSE)))","v":""},{"$f":"IF($A855=\"\",\"\",IF(OR(VLOOKUP($A855,Economática!$A$3:$AI$823,16,FALSE)=0,VLOOKUP($A855,Economática!$A$3:$AI$823,16,FALSE)=\"-\"),1/0,VLOOKUP($A855,Economática!$A$3:$AI$823,16,FALSE)))","v":""},{"$f":"IF($A855=\"\",\"\",IF(OR(VLOOKUP($A855,Economática!$A$3:$AI$823,17,FALSE)=0,VLOOKUP($A855,Economática!$A$3:$AI$823,17,FALSE)=\"-\"),1/0,VLOOKUP($A855,Economática!$A$3:$AI$823,17,FALSE)))","v":""},{"$f":"IF($A855=\"\",\"\",IF(OR(VLOOKUP($A855,Economática!$A$3:$AI$823,18,FALSE)=0,VLOOKUP($A855,Economática!$A$3:$AI$823,18,FALSE)=\"-\"),1/0,VLOOKUP($A855,Economática!$A$3:$AI$823,18,FALSE)))","v":""},{"$f":"IF($A855=\"\",\"\",IF(OR(VLOOKUP($A855,Economática!$A$3:$AI$823,19,FALSE)=0,VLOOKUP($A855,Economática!$A$3:$AI$823,19,FALSE)=\"-\"),1/0,VLOOKUP($A855,Economática!$A$3:$AI$823,19,FALSE)))","v":""},{"$f":"IF($A855=\"\",\"\",VLOOKUP($A855,Economática!$A$3:$AI$823,20,FALSE)/E855)","v":""},"","","",{"$f":"IF($A855=\"\",\"\",IF(OR(VLOOKUP($A855,Economática!$A$3:$AI$823,21,FALSE)/100=0,VLOOKUP($A855,Economática!$A$3:$AI$823,21,FALSE)/100=\"-\"),1/0,VLOOKUP($A855,Economática!$A$3:$AI$823,21,FALSE)/100))","v":""},{"$f":"IF($A855=\"\",\"\",IF(OR(VLOOKUP($A855,Economática!$A$3:$AI$823,22,FALSE)/100=0,VLOOKUP($A855,Economática!$A$3:$AI$823,22,FALSE)/100=\"-\"),1/0,VLOOKUP($A855,Economática!$A$3:$AI$823,22,FALSE)/100))","v":""},{"$f":"IF($A855=\"\",\"\",IF(OR(VLOOKUP($A855,Economática!$A$3:$AI$823,23,FALSE)=0,VLOOKUP($A855,Economática!$A$3:$AI$823,23,FALSE)=\"-\"),1/0,VLOOKUP($A855,Economática!$A$3:$AI$823,23,FALSE)))","v":""},{"$f":"IF($A855=\"\",\"\",IF(OR(VLOOKUP($A855,Economática!$A$3:$AI$823,24,FALSE)=0,VLOOKUP($A855,Economática!$A$3:$AI$823,24,FALSE)=\"-\"),1/0,VLOOKUP($A855,Economática!$A$3:$AI$823,24,FALSE)))","v":""},{"$f":"IF($A855=\"\",\"\",IF(OR(VLOOKUP($A855,Economática!$A$3:$AI$823,25,FALSE)=0,VLOOKUP($A855,Economática!$A$3:$AI$823,25,FALSE)=\"-\"),1/0,VLOOKUP($A855,Economática!$A$3:$AI$823,25,FALSE)))","v":""},{"$f":"IF($A855=\"\",\"\",IF(ISERROR((F855+VLOOKUP($A855,Economática!$A$3:$AI$823,26,FALSE))/Y855),(F855+VLOOKUP($A855,Economática!$A$3:$AI$823,26,FALSE))/Y855,(F855+VLOOKUP($A855,Economática!$A$3:$AI$823,26,FALSE))/Y855))","v":""},{"$f":"IF($A855=\"\",\"\",IF(OR(-VLOOKUP($A855,Economática!$A$3:$AI$823,27,FALSE)=0,-VLOOKUP($A855,Economática!$A$3:$AI$823,27,FALSE)=\"-\"),1/0,-VLOOKUP($A855,Economática!$A$3:$AI$823,27,FALSE)))","v":""},"",{"$f":"IF($A855=\"\",\"\",IF(OR(VLOOKUP($A855,Economática!$A$3:$AI$823,28,FALSE)=0,VLOOKUP($A855,Economática!$A$3:$AI$823,28,FALSE)=\"-\"),1/0,VLOOKUP($A855,Economática!$A$3:$AI$823,28,FALSE)))","v":""},{"$f":"IF($A855=\"\",\"\",IF(OR(VLOOKUP($A855,Economática!$A$3:$AI$823,29,FALSE)=0,VLOOKUP($A855,Economática!$A$3:$AI$823,29,FALSE)=\"-\"),1/0,VLOOKUP($A855,Economática!$A$3:$AI$823,29,FALSE)))","v":""},{"$f":"IF($A855=\"\",\"\",IF(OR(VLOOKUP($A855,Economática!$A$3:$AI$823,30,FALSE)/E855=0,VLOOKUP($A855,Economática!$A$3:$AI$823,30,FALSE)/E855=\"-\",VLOOKUP($A855,Economática!$A$3:$AI$823,30,FALSE)/E855<33.33%,VLOOKUP($A855,Economática!$A$3:$AI$823,30,FALSE)/E855>100%),1/0,VLOOKUP($A855,Economática!$A$3:$AI$823,30,FALSE)/E855))","v":""},"",{"$f":"IF($A855=\"\",\"\",IF(OR(VLOOKUP($A855,Economática!$A$3:$AI$823,25,FALSE)=0,VLOOKUP($A855,Economática!$A$3:$AI$823,25,FALSE)=\"-\"),1/0,VLOOKUP($A855,Economática!$A$3:$AI$823,25,FALSE)))","v":""},{"$f":"CONCATENATE(Economática!B833,\" \",Economática!C833)","v":" "}]
[{"$f":"IF(Economática!AG834=\"\",\"\",Economática!AG834)","v":""},{"$f":"IF($A856=\"\",\"\",VLOOKUP(VLOOKUP($A856,Economática!$A$3:$AI$823,6,FALSE),Correção!$B$16:$C$36,2,FALSE))","v":""},{"$f":"IF(Economática!B834=\"\",\"\",Economática!B834)","v":""},{"$f":"IF($A856=\"\",\"\",IF(OR(VLOOKUP($A856,Economática!$A$3:$AI$823,8,FALSE)=0,VLOOKUP($A856,Economática!$A$3:$AI$823,8,FALSE)=\"-\"),1/0,VLOOKUP($A856,Economática!$A$3:$AI$823,8,FALSE)))","v":""},{"$f":"IF(A856=\"\",\"\",IF(ISERROR(VLOOKUP(A856,Correção!$B$2:$G$13,9,FALSE)),VLOOKUP($A856,Economática!$A$3:$AI$823,9,FALSE),VLOOKUP(A856,Correção!$B$2:$G$13,9,FALSE)))","v":""},{"$f":"IF($A856=\"\",\"\",Economática!G834)","v":""},{"$f":"IF($A856=\"\",\"\",IF(OR(VLOOKUP($A856,Economática!$A$3:$AI$823,10,FALSE)=0,VLOOKUP($A856,Economática!$A$3:$AI$823,10,FALSE)=\"-\"),1/0,VLOOKUP($A856,Economática!$A$3:$AI$823,10,FALSE)))","v":""},{"$f":"IF($A856=\"\",\"\",IF(OR(VLOOKUP($A856,Economática!$A$3:$AI$823,11,FALSE)=0,VLOOKUP($A856,Economática!$A$3:$AI$823,11,FALSE)=\"-\"),1/0,VLOOKUP($A856,Economática!$A$3:$AI$823,11,FALSE)))","v":""},{"$f":"IF($A856=\"\",\"\",IF(OR(VLOOKUP($A856,Economática!$A$3:$AI$823,12,FALSE)=0,VLOOKUP($A856,Economática!$A$3:$AI$823,12,FALSE)=\"-\"),1/0,VLOOKUP($A856,Economática!$A$3:$AI$823,12,FALSE)))","v":""},{"$f":"IF($A856=\"\",\"\",IF(OR(VLOOKUP($A856,Economática!$A$3:$AI$823,13,FALSE)=0,VLOOKUP($A856,Economática!$A$3:$AI$823,13,FALSE)=\"-\"),1/0,VLOOKUP($A856,Economática!$A$3:$AI$823,13,FALSE)))","v":""},{"$f":"IF($A856=\"\",\"\",IF(OR(VLOOKUP($A856,Economática!$A$3:$AI$823,14,FALSE)=0,VLOOKUP($A856,Economática!$A$3:$AI$823,14,FALSE)=\"-\"),1/0,VLOOKUP($A856,Economática!$A$3:$AI$823,14,FALSE)))","v":""},{"$f":"IF($A856=\"\",\"\",IF(OR(VLOOKUP($A856,Economática!$A$3:$AI$823,15,FALSE)=0,VLOOKUP($A856,Economática!$A$3:$AI$823,15,FALSE)=\"-\"),1/0,VLOOKUP($A856,Economática!$A$3:$AI$823,15,FALSE)))","v":""},{"$f":"IF($A856=\"\",\"\",IF(OR(VLOOKUP($A856,Economática!$A$3:$AI$823,16,FALSE)=0,VLOOKUP($A856,Economática!$A$3:$AI$823,16,FALSE)=\"-\"),1/0,VLOOKUP($A856,Economática!$A$3:$AI$823,16,FALSE)))","v":""},{"$f":"IF($A856=\"\",\"\",IF(OR(VLOOKUP($A856,Economática!$A$3:$AI$823,17,FALSE)=0,VLOOKUP($A856,Economática!$A$3:$AI$823,17,FALSE)=\"-\"),1/0,VLOOKUP($A856,Economática!$A$3:$AI$823,17,FALSE)))","v":""},{"$f":"IF($A856=\"\",\"\",IF(OR(VLOOKUP($A856,Economática!$A$3:$AI$823,18,FALSE)=0,VLOOKUP($A856,Economática!$A$3:$AI$823,18,FALSE)=\"-\"),1/0,VLOOKUP($A856,Economática!$A$3:$AI$823,18,FALSE)))","v":""},{"$f":"IF($A856=\"\",\"\",IF(OR(VLOOKUP($A856,Economática!$A$3:$AI$823,19,FALSE)=0,VLOOKUP($A856,Economática!$A$3:$AI$823,19,FALSE)=\"-\"),1/0,VLOOKUP($A856,Economática!$A$3:$AI$823,19,FALSE)))","v":""},{"$f":"IF($A856=\"\",\"\",VLOOKUP($A856,Economática!$A$3:$AI$823,20,FALSE)/E856)","v":""},"","","",{"$f":"IF($A856=\"\",\"\",IF(OR(VLOOKUP($A856,Economática!$A$3:$AI$823,21,FALSE)/100=0,VLOOKUP($A856,Economática!$A$3:$AI$823,21,FALSE)/100=\"-\"),1/0,VLOOKUP($A856,Economática!$A$3:$AI$823,21,FALSE)/100))","v":""},{"$f":"IF($A856=\"\",\"\",IF(OR(VLOOKUP($A856,Economática!$A$3:$AI$823,22,FALSE)/100=0,VLOOKUP($A856,Economática!$A$3:$AI$823,22,FALSE)/100=\"-\"),1/0,VLOOKUP($A856,Economática!$A$3:$AI$823,22,FALSE)/100))","v":""},{"$f":"IF($A856=\"\",\"\",IF(OR(VLOOKUP($A856,Economática!$A$3:$AI$823,23,FALSE)=0,VLOOKUP($A856,Economática!$A$3:$AI$823,23,FALSE)=\"-\"),1/0,VLOOKUP($A856,Economática!$A$3:$AI$823,23,FALSE)))","v":""},{"$f":"IF($A856=\"\",\"\",IF(OR(VLOOKUP($A856,Economática!$A$3:$AI$823,24,FALSE)=0,VLOOKUP($A856,Economática!$A$3:$AI$823,24,FALSE)=\"-\"),1/0,VLOOKUP($A856,Economática!$A$3:$AI$823,24,FALSE)))","v":""},{"$f":"IF($A856=\"\",\"\",IF(OR(VLOOKUP($A856,Economática!$A$3:$AI$823,25,FALSE)=0,VLOOKUP($A856,Economática!$A$3:$AI$823,25,FALSE)=\"-\"),1/0,VLOOKUP($A856,Economática!$A$3:$AI$823,25,FALSE)))","v":""},{"$f":"IF($A856=\"\",\"\",IF(ISERROR((F856+VLOOKUP($A856,Economática!$A$3:$AI$823,26,FALSE))/Y856),(F856+VLOOKUP($A856,Economática!$A$3:$AI$823,26,FALSE))/Y856,(F856+VLOOKUP($A856,Economática!$A$3:$AI$823,26,FALSE))/Y856))","v":""},{"$f":"IF($A856=\"\",\"\",IF(OR(-VLOOKUP($A856,Economática!$A$3:$AI$823,27,FALSE)=0,-VLOOKUP($A856,Economática!$A$3:$AI$823,27,FALSE)=\"-\"),1/0,-VLOOKUP($A856,Economática!$A$3:$AI$823,27,FALSE)))","v":""},"",{"$f":"IF($A856=\"\",\"\",IF(OR(VLOOKUP($A856,Economática!$A$3:$AI$823,28,FALSE)=0,VLOOKUP($A856,Economática!$A$3:$AI$823,28,FALSE)=\"-\"),1/0,VLOOKUP($A856,Economática!$A$3:$AI$823,28,FALSE)))","v":""},{"$f":"IF($A856=\"\",\"\",IF(OR(VLOOKUP($A856,Economática!$A$3:$AI$823,29,FALSE)=0,VLOOKUP($A856,Economática!$A$3:$AI$823,29,FALSE)=\"-\"),1/0,VLOOKUP($A856,Economática!$A$3:$AI$823,29,FALSE)))","v":""},{"$f":"IF($A856=\"\",\"\",IF(OR(VLOOKUP($A856,Economática!$A$3:$AI$823,30,FALSE)/E856=0,VLOOKUP($A856,Economática!$A$3:$AI$823,30,FALSE)/E856=\"-\",VLOOKUP($A856,Economática!$A$3:$AI$823,30,FALSE)/E856<33.33%,VLOOKUP($A856,Economática!$A$3:$AI$823,30,FALSE)/E856>100%),1/0,VLOOKUP($A856,Economática!$A$3:$AI$823,30,FALSE)/E856))","v":""},"",{"$f":"IF($A856=\"\",\"\",IF(OR(VLOOKUP($A856,Economática!$A$3:$AI$823,25,FALSE)=0,VLOOKUP($A856,Economática!$A$3:$AI$823,25,FALSE)=\"-\"),1/0,VLOOKUP($A856,Economática!$A$3:$AI$823,25,FALSE)))","v":""},{"$f":"CONCATENATE(Economática!B834,\" \",Economática!C834)","v":" "}]
[{"$f":"IF(Economática!AG835=\"\",\"\",Economática!AG835)","v":""},{"$f":"IF($A857=\"\",\"\",VLOOKUP(VLOOKUP($A857,Economática!$A$3:$AI$823,6,FALSE),Correção!$B$16:$C$36,2,FALSE))","v":""},{"$f":"IF(Economática!B835=\"\",\"\",Economática!B835)","v":""},{"$f":"IF($A857=\"\",\"\",IF(OR(VLOOKUP($A857,Economática!$A$3:$AI$823,8,FALSE)=0,VLOOKUP($A857,Economática!$A$3:$AI$823,8,FALSE)=\"-\"),1/0,VLOOKUP($A857,Economática!$A$3:$AI$823,8,FALSE)))","v":""},{"$f":"IF(A857=\"\",\"\",IF(ISERROR(VLOOKUP(A857,Correção!$B$2:$G$13,9,FALSE)),VLOOKUP($A857,Economática!$A$3:$AI$823,9,FALSE),VLOOKUP(A857,Correção!$B$2:$G$13,9,FALSE)))","v":""},{"$f":"IF($A857=\"\",\"\",Economática!G835)","v":""},{"$f":"IF($A857=\"\",\"\",IF(OR(VLOOKUP($A857,Economática!$A$3:$AI$823,10,FALSE)=0,VLOOKUP($A857,Economática!$A$3:$AI$823,10,FALSE)=\"-\"),1/0,VLOOKUP($A857,Economática!$A$3:$AI$823,10,FALSE)))","v":""},{"$f":"IF($A857=\"\",\"\",IF(OR(VLOOKUP($A857,Economática!$A$3:$AI$823,11,FALSE)=0,VLOOKUP($A857,Economática!$A$3:$AI$823,11,FALSE)=\"-\"),1/0,VLOOKUP($A857,Economática!$A$3:$AI$823,11,FALSE)))","v":""},{"$f":"IF($A857=\"\",\"\",IF(OR(VLOOKUP($A857,Economática!$A$3:$AI$823,12,FALSE)=0,VLOOKUP($A857,Economática!$A$3:$AI$823,12,FALSE)=\"-\"),1/0,VLOOKUP($A857,Economática!$A$3:$AI$823,12,FALSE)))","v":""},{"$f":"IF($A857=\"\",\"\",IF(OR(VLOOKUP($A857,Economática!$A$3:$AI$823,13,FALSE)=0,VLOOKUP($A857,Economática!$A$3:$AI$823,13,FALSE)=\"-\"),1/0,VLOOKUP($A857,Economática!$A$3:$AI$823,13,FALSE)))","v":""},{"$f":"IF($A857=\"\",\"\",IF(OR(VLOOKUP($A857,Economática!$A$3:$AI$823,14,FALSE)=0,VLOOKUP($A857,Economática!$A$3:$AI$823,14,FALSE)=\"-\"),1/0,VLOOKUP($A857,Economática!$A$3:$AI$823,14,FALSE)))","v":""},{"$f":"IF($A857=\"\",\"\",IF(OR(VLOOKUP($A857,Economática!$A$3:$AI$823,15,FALSE)=0,VLOOKUP($A857,Economática!$A$3:$AI$823,15,FALSE)=\"-\"),1/0,VLOOKUP($A857,Economática!$A$3:$AI$823,15,FALSE)))","v":""},{"$f":"IF($A857=\"\",\"\",IF(OR(VLOOKUP($A857,Economática!$A$3:$AI$823,16,FALSE)=0,VLOOKUP($A857,Economática!$A$3:$AI$823,16,FALSE)=\"-\"),1/0,VLOOKUP($A857,Economática!$A$3:$AI$823,16,FALSE)))","v":""},{"$f":"IF($A857=\"\",\"\",IF(OR(VLOOKUP($A857,Economática!$A$3:$AI$823,17,FALSE)=0,VLOOKUP($A857,Economática!$A$3:$AI$823,17,FALSE)=\"-\"),1/0,VLOOKUP($A857,Economática!$A$3:$AI$823,17,FALSE)))","v":""},{"$f":"IF($A857=\"\",\"\",IF(OR(VLOOKUP($A857,Economática!$A$3:$AI$823,18,FALSE)=0,VLOOKUP($A857,Economática!$A$3:$AI$823,18,FALSE)=\"-\"),1/0,VLOOKUP($A857,Economática!$A$3:$AI$823,18,FALSE)))","v":""},{"$f":"IF($A857=\"\",\"\",IF(OR(VLOOKUP($A857,Economática!$A$3:$AI$823,19,FALSE)=0,VLOOKUP($A857,Economática!$A$3:$AI$823,19,FALSE)=\"-\"),1/0,VLOOKUP($A857,Economática!$A$3:$AI$823,19,FALSE)))","v":""},{"$f":"IF($A857=\"\",\"\",VLOOKUP($A857,Economática!$A$3:$AI$823,20,FALSE)/E857)","v":""},"","","",{"$f":"IF($A857=\"\",\"\",IF(OR(VLOOKUP($A857,Economática!$A$3:$AI$823,21,FALSE)/100=0,VLOOKUP($A857,Economática!$A$3:$AI$823,21,FALSE)/100=\"-\"),1/0,VLOOKUP($A857,Economática!$A$3:$AI$823,21,FALSE)/100))","v":""},{"$f":"IF($A857=\"\",\"\",IF(OR(VLOOKUP($A857,Economática!$A$3:$AI$823,22,FALSE)/100=0,VLOOKUP($A857,Economática!$A$3:$AI$823,22,FALSE)/100=\"-\"),1/0,VLOOKUP($A857,Economática!$A$3:$AI$823,22,FALSE)/100))","v":""},{"$f":"IF($A857=\"\",\"\",IF(OR(VLOOKUP($A857,Economática!$A$3:$AI$823,23,FALSE)=0,VLOOKUP($A857,Economática!$A$3:$AI$823,23,FALSE)=\"-\"),1/0,VLOOKUP($A857,Economática!$A$3:$AI$823,23,FALSE)))","v":""},{"$f":"IF($A857=\"\",\"\",IF(OR(VLOOKUP($A857,Economática!$A$3:$AI$823,24,FALSE)=0,VLOOKUP($A857,Economática!$A$3:$AI$823,24,FALSE)=\"-\"),1/0,VLOOKUP($A857,Economática!$A$3:$AI$823,24,FALSE)))","v":""},{"$f":"IF($A857=\"\",\"\",IF(OR(VLOOKUP($A857,Economática!$A$3:$AI$823,25,FALSE)=0,VLOOKUP($A857,Economática!$A$3:$AI$823,25,FALSE)=\"-\"),1/0,VLOOKUP($A857,Economática!$A$3:$AI$823,25,FALSE)))","v":""},{"$f":"IF($A857=\"\",\"\",IF(ISERROR((F857+VLOOKUP($A857,Economática!$A$3:$AI$823,26,FALSE))/Y857),(F857+VLOOKUP($A857,Economática!$A$3:$AI$823,26,FALSE))/Y857,(F857+VLOOKUP($A857,Economática!$A$3:$AI$823,26,FALSE))/Y857))","v":""},{"$f":"IF($A857=\"\",\"\",IF(OR(-VLOOKUP($A857,Economática!$A$3:$AI$823,27,FALSE)=0,-VLOOKUP($A857,Economática!$A$3:$AI$823,27,FALSE)=\"-\"),1/0,-VLOOKUP($A857,Economática!$A$3:$AI$823,27,FALSE)))","v":""},"",{"$f":"IF($A857=\"\",\"\",IF(OR(VLOOKUP($A857,Economática!$A$3:$AI$823,28,FALSE)=0,VLOOKUP($A857,Economática!$A$3:$AI$823,28,FALSE)=\"-\"),1/0,VLOOKUP($A857,Economática!$A$3:$AI$823,28,FALSE)))","v":""},{"$f":"IF($A857=\"\",\"\",IF(OR(VLOOKUP($A857,Economática!$A$3:$AI$823,29,FALSE)=0,VLOOKUP($A857,Economática!$A$3:$AI$823,29,FALSE)=\"-\"),1/0,VLOOKUP($A857,Economática!$A$3:$AI$823,29,FALSE)))","v":""},{"$f":"IF($A857=\"\",\"\",IF(OR(VLOOKUP($A857,Economática!$A$3:$AI$823,30,FALSE)/E857=0,VLOOKUP($A857,Economática!$A$3:$AI$823,30,FALSE)/E857=\"-\",VLOOKUP($A857,Economática!$A$3:$AI$823,30,FALSE)/E857<33.33%,VLOOKUP($A857,Economática!$A$3:$AI$823,30,FALSE)/E857>100%),1/0,VLOOKUP($A857,Economática!$A$3:$AI$823,30,FALSE)/E857))","v":""},"",{"$f":"IF($A857=\"\",\"\",IF(OR(VLOOKUP($A857,Economática!$A$3:$AI$823,25,FALSE)=0,VLOOKUP($A857,Economática!$A$3:$AI$823,25,FALSE)=\"-\"),1/0,VLOOKUP($A857,Economática!$A$3:$AI$823,25,FALSE)))","v":""},{"$f":"CONCATENATE(Economática!B835,\" \",Economática!C835)","v":" "}]
[{"$f":"IF(Economática!AG836=\"\",\"\",Economática!AG836)","v":""},{"$f":"IF($A858=\"\",\"\",VLOOKUP(VLOOKUP($A858,Economática!$A$3:$AI$823,6,FALSE),Correção!$B$16:$C$36,2,FALSE))","v":""},{"$f":"IF(Economática!B836=\"\",\"\",Economática!B836)","v":""},{"$f":"IF($A858=\"\",\"\",IF(OR(VLOOKUP($A858,Economática!$A$3:$AI$823,8,FALSE)=0,VLOOKUP($A858,Economática!$A$3:$AI$823,8,FALSE)=\"-\"),1/0,VLOOKUP($A858,Economática!$A$3:$AI$823,8,FALSE)))","v":""},{"$f":"IF(A858=\"\",\"\",IF(ISERROR(VLOOKUP(A858,Correção!$B$2:$G$13,9,FALSE)),VLOOKUP($A858,Economática!$A$3:$AI$823,9,FALSE),VLOOKUP(A858,Correção!$B$2:$G$13,9,FALSE)))","v":""},{"$f":"IF($A858=\"\",\"\",Economática!G836)","v":""},{"$f":"IF($A858=\"\",\"\",IF(OR(VLOOKUP($A858,Economática!$A$3:$AI$823,10,FALSE)=0,VLOOKUP($A858,Economática!$A$3:$AI$823,10,FALSE)=\"-\"),1/0,VLOOKUP($A858,Economática!$A$3:$AI$823,10,FALSE)))","v":""},{"$f":"IF($A858=\"\",\"\",IF(OR(VLOOKUP($A858,Economática!$A$3:$AI$823,11,FALSE)=0,VLOOKUP($A858,Economática!$A$3:$AI$823,11,FALSE)=\"-\"),1/0,VLOOKUP($A858,Economática!$A$3:$AI$823,11,FALSE)))","v":""},{"$f":"IF($A858=\"\",\"\",IF(OR(VLOOKUP($A858,Economática!$A$3:$AI$823,12,FALSE)=0,VLOOKUP($A858,Economática!$A$3:$AI$823,12,FALSE)=\"-\"),1/0,VLOOKUP($A858,Economática!$A$3:$AI$823,12,FALSE)))","v":""},{"$f":"IF($A858=\"\",\"\",IF(OR(VLOOKUP($A858,Economática!$A$3:$AI$823,13,FALSE)=0,VLOOKUP($A858,Economática!$A$3:$AI$823,13,FALSE)=\"-\"),1/0,VLOOKUP($A858,Economática!$A$3:$AI$823,13,FALSE)))","v":""},{"$f":"IF($A858=\"\",\"\",IF(OR(VLOOKUP($A858,Economática!$A$3:$AI$823,14,FALSE)=0,VLOOKUP($A858,Economática!$A$3:$AI$823,14,FALSE)=\"-\"),1/0,VLOOKUP($A858,Economática!$A$3:$AI$823,14,FALSE)))","v":""},{"$f":"IF($A858=\"\",\"\",IF(OR(VLOOKUP($A858,Economática!$A$3:$AI$823,15,FALSE)=0,VLOOKUP($A858,Economática!$A$3:$AI$823,15,FALSE)=\"-\"),1/0,VLOOKUP($A858,Economática!$A$3:$AI$823,15,FALSE)))","v":""},{"$f":"IF($A858=\"\",\"\",IF(OR(VLOOKUP($A858,Economática!$A$3:$AI$823,16,FALSE)=0,VLOOKUP($A858,Economática!$A$3:$AI$823,16,FALSE)=\"-\"),1/0,VLOOKUP($A858,Economática!$A$3:$AI$823,16,FALSE)))","v":""},{"$f":"IF($A858=\"\",\"\",IF(OR(VLOOKUP($A858,Economática!$A$3:$AI$823,17,FALSE)=0,VLOOKUP($A858,Economática!$A$3:$AI$823,17,FALSE)=\"-\"),1/0,VLOOKUP($A858,Economática!$A$3:$AI$823,17,FALSE)))","v":""},{"$f":"IF($A858=\"\",\"\",IF(OR(VLOOKUP($A858,Economática!$A$3:$AI$823,18,FALSE)=0,VLOOKUP($A858,Economática!$A$3:$AI$823,18,FALSE)=\"-\"),1/0,VLOOKUP($A858,Economática!$A$3:$AI$823,18,FALSE)))","v":""},{"$f":"IF($A858=\"\",\"\",IF(OR(VLOOKUP($A858,Economática!$A$3:$AI$823,19,FALSE)=0,VLOOKUP($A858,Economática!$A$3:$AI$823,19,FALSE)=\"-\"),1/0,VLOOKUP($A858,Economática!$A$3:$AI$823,19,FALSE)))","v":""},{"$f":"IF($A858=\"\",\"\",VLOOKUP($A858,Economática!$A$3:$AI$823,20,FALSE)/E858)","v":""},"","","",{"$f":"IF($A858=\"\",\"\",IF(OR(VLOOKUP($A858,Economática!$A$3:$AI$823,21,FALSE)/100=0,VLOOKUP($A858,Economática!$A$3:$AI$823,21,FALSE)/100=\"-\"),1/0,VLOOKUP($A858,Economática!$A$3:$AI$823,21,FALSE)/100))","v":""},{"$f":"IF($A858=\"\",\"\",IF(OR(VLOOKUP($A858,Economática!$A$3:$AI$823,22,FALSE)/100=0,VLOOKUP($A858,Economática!$A$3:$AI$823,22,FALSE)/100=\"-\"),1/0,VLOOKUP($A858,Economática!$A$3:$AI$823,22,FALSE)/100))","v":""},{"$f":"IF($A858=\"\",\"\",IF(OR(VLOOKUP($A858,Economática!$A$3:$AI$823,23,FALSE)=0,VLOOKUP($A858,Economática!$A$3:$AI$823,23,FALSE)=\"-\"),1/0,VLOOKUP($A858,Economática!$A$3:$AI$823,23,FALSE)))","v":""},{"$f":"IF($A858=\"\",\"\",IF(OR(VLOOKUP($A858,Economática!$A$3:$AI$823,24,FALSE)=0,VLOOKUP($A858,Economática!$A$3:$AI$823,24,FALSE)=\"-\"),1/0,VLOOKUP($A858,Economática!$A$3:$AI$823,24,FALSE)))","v":""},{"$f":"IF($A858=\"\",\"\",IF(OR(VLOOKUP($A858,Economática!$A$3:$AI$823,25,FALSE)=0,VLOOKUP($A858,Economática!$A$3:$AI$823,25,FALSE)=\"-\"),1/0,VLOOKUP($A858,Economática!$A$3:$AI$823,25,FALSE)))","v":""},{"$f":"IF($A858=\"\",\"\",IF(ISERROR((F858+VLOOKUP($A858,Economática!$A$3:$AI$823,26,FALSE))/Y858),(F858+VLOOKUP($A858,Economática!$A$3:$AI$823,26,FALSE))/Y858,(F858+VLOOKUP($A858,Economática!$A$3:$AI$823,26,FALSE))/Y858))","v":""},{"$f":"IF($A858=\"\",\"\",IF(OR(-VLOOKUP($A858,Economática!$A$3:$AI$823,27,FALSE)=0,-VLOOKUP($A858,Economática!$A$3:$AI$823,27,FALSE)=\"-\"),1/0,-VLOOKUP($A858,Economática!$A$3:$AI$823,27,FALSE)))","v":""},"",{"$f":"IF($A858=\"\",\"\",IF(OR(VLOOKUP($A858,Economática!$A$3:$AI$823,28,FALSE)=0,VLOOKUP($A858,Economática!$A$3:$AI$823,28,FALSE)=\"-\"),1/0,VLOOKUP($A858,Economática!$A$3:$AI$823,28,FALSE)))","v":""},{"$f":"IF($A858=\"\",\"\",IF(OR(VLOOKUP($A858,Economática!$A$3:$AI$823,29,FALSE)=0,VLOOKUP($A858,Economática!$A$3:$AI$823,29,FALSE)=\"-\"),1/0,VLOOKUP($A858,Economática!$A$3:$AI$823,29,FALSE)))","v":""},{"$f":"IF($A858=\"\",\"\",IF(OR(VLOOKUP($A858,Economática!$A$3:$AI$823,30,FALSE)/E858=0,VLOOKUP($A858,Economática!$A$3:$AI$823,30,FALSE)/E858=\"-\",VLOOKUP($A858,Economática!$A$3:$AI$823,30,FALSE)/E858<33.33%,VLOOKUP($A858,Economática!$A$3:$AI$823,30,FALSE)/E858>100%),1/0,VLOOKUP($A858,Economática!$A$3:$AI$823,30,FALSE)/E858))","v":""},"",{"$f":"IF($A858=\"\",\"\",IF(OR(VLOOKUP($A858,Economática!$A$3:$AI$823,25,FALSE)=0,VLOOKUP($A858,Economática!$A$3:$AI$823,25,FALSE)=\"-\"),1/0,VLOOKUP($A858,Economática!$A$3:$AI$823,25,FALSE)))","v":""},{"$f":"CONCATENATE(Economática!B836,\" \",Economática!C836)","v":" "}]
[{"$f":"IF(Economática!AG837=\"\",\"\",Economática!AG837)","v":""},{"$f":"IF($A859=\"\",\"\",VLOOKUP(VLOOKUP($A859,Economática!$A$3:$AI$823,6,FALSE),Correção!$B$16:$C$36,2,FALSE))","v":""},{"$f":"IF(Economática!B837=\"\",\"\",Economática!B837)","v":""},{"$f":"IF($A859=\"\",\"\",IF(OR(VLOOKUP($A859,Economática!$A$3:$AI$823,8,FALSE)=0,VLOOKUP($A859,Economática!$A$3:$AI$823,8,FALSE)=\"-\"),1/0,VLOOKUP($A859,Economática!$A$3:$AI$823,8,FALSE)))","v":""},{"$f":"IF(A859=\"\",\"\",IF(ISERROR(VLOOKUP(A859,Correção!$B$2:$G$13,9,FALSE)),VLOOKUP($A859,Economática!$A$3:$AI$823,9,FALSE),VLOOKUP(A859,Correção!$B$2:$G$13,9,FALSE)))","v":""},{"$f":"IF($A859=\"\",\"\",Economática!G837)","v":""},{"$f":"IF($A859=\"\",\"\",IF(OR(VLOOKUP($A859,Economática!$A$3:$AI$823,10,FALSE)=0,VLOOKUP($A859,Economática!$A$3:$AI$823,10,FALSE)=\"-\"),1/0,VLOOKUP($A859,Economática!$A$3:$AI$823,10,FALSE)))","v":""},{"$f":"IF($A859=\"\",\"\",IF(OR(VLOOKUP($A859,Economática!$A$3:$AI$823,11,FALSE)=0,VLOOKUP($A859,Economática!$A$3:$AI$823,11,FALSE)=\"-\"),1/0,VLOOKUP($A859,Economática!$A$3:$AI$823,11,FALSE)))","v":""},{"$f":"IF($A859=\"\",\"\",IF(OR(VLOOKUP($A859,Economática!$A$3:$AI$823,12,FALSE)=0,VLOOKUP($A859,Economática!$A$3:$AI$823,12,FALSE)=\"-\"),1/0,VLOOKUP($A859,Economática!$A$3:$AI$823,12,FALSE)))","v":""},{"$f":"IF($A859=\"\",\"\",IF(OR(VLOOKUP($A859,Economática!$A$3:$AI$823,13,FALSE)=0,VLOOKUP($A859,Economática!$A$3:$AI$823,13,FALSE)=\"-\"),1/0,VLOOKUP($A859,Economática!$A$3:$AI$823,13,FALSE)))","v":""},{"$f":"IF($A859=\"\",\"\",IF(OR(VLOOKUP($A859,Economática!$A$3:$AI$823,14,FALSE)=0,VLOOKUP($A859,Economática!$A$3:$AI$823,14,FALSE)=\"-\"),1/0,VLOOKUP($A859,Economática!$A$3:$AI$823,14,FALSE)))","v":""},{"$f":"IF($A859=\"\",\"\",IF(OR(VLOOKUP($A859,Economática!$A$3:$AI$823,15,FALSE)=0,VLOOKUP($A859,Economática!$A$3:$AI$823,15,FALSE)=\"-\"),1/0,VLOOKUP($A859,Economática!$A$3:$AI$823,15,FALSE)))","v":""},{"$f":"IF($A859=\"\",\"\",IF(OR(VLOOKUP($A859,Economática!$A$3:$AI$823,16,FALSE)=0,VLOOKUP($A859,Economática!$A$3:$AI$823,16,FALSE)=\"-\"),1/0,VLOOKUP($A859,Economática!$A$3:$AI$823,16,FALSE)))","v":""},{"$f":"IF($A859=\"\",\"\",IF(OR(VLOOKUP($A859,Economática!$A$3:$AI$823,17,FALSE)=0,VLOOKUP($A859,Economática!$A$3:$AI$823,17,FALSE)=\"-\"),1/0,VLOOKUP($A859,Economática!$A$3:$AI$823,17,FALSE)))","v":""},{"$f":"IF($A859=\"\",\"\",IF(OR(VLOOKUP($A859,Economática!$A$3:$AI$823,18,FALSE)=0,VLOOKUP($A859,Economática!$A$3:$AI$823,18,FALSE)=\"-\"),1/0,VLOOKUP($A859,Economática!$A$3:$AI$823,18,FALSE)))","v":""},{"$f":"IF($A859=\"\",\"\",IF(OR(VLOOKUP($A859,Economática!$A$3:$AI$823,19,FALSE)=0,VLOOKUP($A859,Economática!$A$3:$AI$823,19,FALSE)=\"-\"),1/0,VLOOKUP($A859,Economática!$A$3:$AI$823,19,FALSE)))","v":""},{"$f":"IF($A859=\"\",\"\",VLOOKUP($A859,Economática!$A$3:$AI$823,20,FALSE)/E859)","v":""},"","","",{"$f":"IF($A859=\"\",\"\",IF(OR(VLOOKUP($A859,Economática!$A$3:$AI$823,21,FALSE)/100=0,VLOOKUP($A859,Economática!$A$3:$AI$823,21,FALSE)/100=\"-\"),1/0,VLOOKUP($A859,Economática!$A$3:$AI$823,21,FALSE)/100))","v":""},{"$f":"IF($A859=\"\",\"\",IF(OR(VLOOKUP($A859,Economática!$A$3:$AI$823,22,FALSE)/100=0,VLOOKUP($A859,Economática!$A$3:$AI$823,22,FALSE)/100=\"-\"),1/0,VLOOKUP($A859,Economática!$A$3:$AI$823,22,FALSE)/100))","v":""},{"$f":"IF($A859=\"\",\"\",IF(OR(VLOOKUP($A859,Economática!$A$3:$AI$823,23,FALSE)=0,VLOOKUP($A859,Economática!$A$3:$AI$823,23,FALSE)=\"-\"),1/0,VLOOKUP($A859,Economática!$A$3:$AI$823,23,FALSE)))","v":""},{"$f":"IF($A859=\"\",\"\",IF(OR(VLOOKUP($A859,Economática!$A$3:$AI$823,24,FALSE)=0,VLOOKUP($A859,Economática!$A$3:$AI$823,24,FALSE)=\"-\"),1/0,VLOOKUP($A859,Economática!$A$3:$AI$823,24,FALSE)))","v":""},{"$f":"IF($A859=\"\",\"\",IF(OR(VLOOKUP($A859,Economática!$A$3:$AI$823,25,FALSE)=0,VLOOKUP($A859,Economática!$A$3:$AI$823,25,FALSE)=\"-\"),1/0,VLOOKUP($A859,Economática!$A$3:$AI$823,25,FALSE)))","v":""},{"$f":"IF($A859=\"\",\"\",IF(ISERROR((F859+VLOOKUP($A859,Economática!$A$3:$AI$823,26,FALSE))/Y859),(F859+VLOOKUP($A859,Economática!$A$3:$AI$823,26,FALSE))/Y859,(F859+VLOOKUP($A859,Economática!$A$3:$AI$823,26,FALSE))/Y859))","v":""},{"$f":"IF($A859=\"\",\"\",IF(OR(-VLOOKUP($A859,Economática!$A$3:$AI$823,27,FALSE)=0,-VLOOKUP($A859,Economática!$A$3:$AI$823,27,FALSE)=\"-\"),1/0,-VLOOKUP($A859,Economática!$A$3:$AI$823,27,FALSE)))","v":""},"",{"$f":"IF($A859=\"\",\"\",IF(OR(VLOOKUP($A859,Economática!$A$3:$AI$823,28,FALSE)=0,VLOOKUP($A859,Economática!$A$3:$AI$823,28,FALSE)=\"-\"),1/0,VLOOKUP($A859,Economática!$A$3:$AI$823,28,FALSE)))","v":""},{"$f":"IF($A859=\"\",\"\",IF(OR(VLOOKUP($A859,Economática!$A$3:$AI$823,29,FALSE)=0,VLOOKUP($A859,Economática!$A$3:$AI$823,29,FALSE)=\"-\"),1/0,VLOOKUP($A859,Economática!$A$3:$AI$823,29,FALSE)))","v":""},{"$f":"IF($A859=\"\",\"\",IF(OR(VLOOKUP($A859,Economática!$A$3:$AI$823,30,FALSE)/E859=0,VLOOKUP($A859,Economática!$A$3:$AI$823,30,FALSE)/E859=\"-\",VLOOKUP($A859,Economática!$A$3:$AI$823,30,FALSE)/E859<33.33%,VLOOKUP($A859,Economática!$A$3:$AI$823,30,FALSE)/E859>100%),1/0,VLOOKUP($A859,Economática!$A$3:$AI$823,30,FALSE)/E859))","v":""},"",{"$f":"IF($A859=\"\",\"\",IF(OR(VLOOKUP($A859,Economática!$A$3:$AI$823,25,FALSE)=0,VLOOKUP($A859,Economática!$A$3:$AI$823,25,FALSE)=\"-\"),1/0,VLOOKUP($A859,Economática!$A$3:$AI$823,25,FALSE)))","v":""},{"$f":"CONCATENATE(Economática!B837,\" \",Economática!C837)","v":" "}]
[{"$f":"IF(Economática!AG838=\"\",\"\",Economática!AG838)","v":""},{"$f":"IF($A860=\"\",\"\",VLOOKUP(VLOOKUP($A860,Economática!$A$3:$AI$823,6,FALSE),Correção!$B$16:$C$36,2,FALSE))","v":""},{"$f":"IF(Economática!B838=\"\",\"\",Economática!B838)","v":""},{"$f":"IF($A860=\"\",\"\",IF(OR(VLOOKUP($A860,Economática!$A$3:$AI$823,8,FALSE)=0,VLOOKUP($A860,Economática!$A$3:$AI$823,8,FALSE)=\"-\"),1/0,VLOOKUP($A860,Economática!$A$3:$AI$823,8,FALSE)))","v":""},{"$f":"IF(A860=\"\",\"\",IF(ISERROR(VLOOKUP(A860,Correção!$B$2:$G$13,9,FALSE)),VLOOKUP($A860,Economática!$A$3:$AI$823,9,FALSE),VLOOKUP(A860,Correção!$B$2:$G$13,9,FALSE)))","v":""},{"$f":"IF($A860=\"\",\"\",Economática!G838)","v":""},{"$f":"IF($A860=\"\",\"\",IF(OR(VLOOKUP($A860,Economática!$A$3:$AI$823,10,FALSE)=0,VLOOKUP($A860,Economática!$A$3:$AI$823,10,FALSE)=\"-\"),1/0,VLOOKUP($A860,Economática!$A$3:$AI$823,10,FALSE)))","v":""},{"$f":"IF($A860=\"\",\"\",IF(OR(VLOOKUP($A860,Economática!$A$3:$AI$823,11,FALSE)=0,VLOOKUP($A860,Economática!$A$3:$AI$823,11,FALSE)=\"-\"),1/0,VLOOKUP($A860,Economática!$A$3:$AI$823,11,FALSE)))","v":""},{"$f":"IF($A860=\"\",\"\",IF(OR(VLOOKUP($A860,Economática!$A$3:$AI$823,12,FALSE)=0,VLOOKUP($A860,Economática!$A$3:$AI$823,12,FALSE)=\"-\"),1/0,VLOOKUP($A860,Economática!$A$3:$AI$823,12,FALSE)))","v":""},{"$f":"IF($A860=\"\",\"\",IF(OR(VLOOKUP($A860,Economática!$A$3:$AI$823,13,FALSE)=0,VLOOKUP($A860,Economática!$A$3:$AI$823,13,FALSE)=\"-\"),1/0,VLOOKUP($A860,Economática!$A$3:$AI$823,13,FALSE)))","v":""},{"$f":"IF($A860=\"\",\"\",IF(OR(VLOOKUP($A860,Economática!$A$3:$AI$823,14,FALSE)=0,VLOOKUP($A860,Economática!$A$3:$AI$823,14,FALSE)=\"-\"),1/0,VLOOKUP($A860,Economática!$A$3:$AI$823,14,FALSE)))","v":""},{"$f":"IF($A860=\"\",\"\",IF(OR(VLOOKUP($A860,Economática!$A$3:$AI$823,15,FALSE)=0,VLOOKUP($A860,Economática!$A$3:$AI$823,15,FALSE)=\"-\"),1/0,VLOOKUP($A860,Economática!$A$3:$AI$823,15,FALSE)))","v":""},{"$f":"IF($A860=\"\",\"\",IF(OR(VLOOKUP($A860,Economática!$A$3:$AI$823,16,FALSE)=0,VLOOKUP($A860,Economática!$A$3:$AI$823,16,FALSE)=\"-\"),1/0,VLOOKUP($A860,Economática!$A$3:$AI$823,16,FALSE)))","v":""},{"$f":"IF($A860=\"\",\"\",IF(OR(VLOOKUP($A860,Economática!$A$3:$AI$823,17,FALSE)=0,VLOOKUP($A860,Economática!$A$3:$AI$823,17,FALSE)=\"-\"),1/0,VLOOKUP($A860,Economática!$A$3:$AI$823,17,FALSE)))","v":""},{"$f":"IF($A860=\"\",\"\",IF(OR(VLOOKUP($A860,Economática!$A$3:$AI$823,18,FALSE)=0,VLOOKUP($A860,Economática!$A$3:$AI$823,18,FALSE)=\"-\"),1/0,VLOOKUP($A860,Economática!$A$3:$AI$823,18,FALSE)))","v":""},{"$f":"IF($A860=\"\",\"\",IF(OR(VLOOKUP($A860,Economática!$A$3:$AI$823,19,FALSE)=0,VLOOKUP($A860,Economática!$A$3:$AI$823,19,FALSE)=\"-\"),1/0,VLOOKUP($A860,Economática!$A$3:$AI$823,19,FALSE)))","v":""},{"$f":"IF($A860=\"\",\"\",VLOOKUP($A860,Economática!$A$3:$AI$823,20,FALSE)/E860)","v":""},"","","",{"$f":"IF($A860=\"\",\"\",IF(OR(VLOOKUP($A860,Economática!$A$3:$AI$823,21,FALSE)/100=0,VLOOKUP($A860,Economática!$A$3:$AI$823,21,FALSE)/100=\"-\"),1/0,VLOOKUP($A860,Economática!$A$3:$AI$823,21,FALSE)/100))","v":""},{"$f":"IF($A860=\"\",\"\",IF(OR(VLOOKUP($A860,Economática!$A$3:$AI$823,22,FALSE)/100=0,VLOOKUP($A860,Economática!$A$3:$AI$823,22,FALSE)/100=\"-\"),1/0,VLOOKUP($A860,Economática!$A$3:$AI$823,22,FALSE)/100))","v":""},{"$f":"IF($A860=\"\",\"\",IF(OR(VLOOKUP($A860,Economática!$A$3:$AI$823,23,FALSE)=0,VLOOKUP($A860,Economática!$A$3:$AI$823,23,FALSE)=\"-\"),1/0,VLOOKUP($A860,Economática!$A$3:$AI$823,23,FALSE)))","v":""},{"$f":"IF($A860=\"\",\"\",IF(OR(VLOOKUP($A860,Economática!$A$3:$AI$823,24,FALSE)=0,VLOOKUP($A860,Economática!$A$3:$AI$823,24,FALSE)=\"-\"),1/0,VLOOKUP($A860,Economática!$A$3:$AI$823,24,FALSE)))","v":""},{"$f":"IF($A860=\"\",\"\",IF(OR(VLOOKUP($A860,Economática!$A$3:$AI$823,25,FALSE)=0,VLOOKUP($A860,Economática!$A$3:$AI$823,25,FALSE)=\"-\"),1/0,VLOOKUP($A860,Economática!$A$3:$AI$823,25,FALSE)))","v":""},{"$f":"IF($A860=\"\",\"\",IF(ISERROR((F860+VLOOKUP($A860,Economática!$A$3:$AI$823,26,FALSE))/Y860),(F860+VLOOKUP($A860,Economática!$A$3:$AI$823,26,FALSE))/Y860,(F860+VLOOKUP($A860,Economática!$A$3:$AI$823,26,FALSE))/Y860))","v":""},{"$f":"IF($A860=\"\",\"\",IF(OR(-VLOOKUP($A860,Economática!$A$3:$AI$823,27,FALSE)=0,-VLOOKUP($A860,Economática!$A$3:$AI$823,27,FALSE)=\"-\"),1/0,-VLOOKUP($A860,Economática!$A$3:$AI$823,27,FALSE)))","v":""},"",{"$f":"IF($A860=\"\",\"\",IF(OR(VLOOKUP($A860,Economática!$A$3:$AI$823,28,FALSE)=0,VLOOKUP($A860,Economática!$A$3:$AI$823,28,FALSE)=\"-\"),1/0,VLOOKUP($A860,Economática!$A$3:$AI$823,28,FALSE)))","v":""},{"$f":"IF($A860=\"\",\"\",IF(OR(VLOOKUP($A860,Economática!$A$3:$AI$823,29,FALSE)=0,VLOOKUP($A860,Economática!$A$3:$AI$823,29,FALSE)=\"-\"),1/0,VLOOKUP($A860,Economática!$A$3:$AI$823,29,FALSE)))","v":""},{"$f":"IF($A860=\"\",\"\",IF(OR(VLOOKUP($A860,Economática!$A$3:$AI$823,30,FALSE)/E860=0,VLOOKUP($A860,Economática!$A$3:$AI$823,30,FALSE)/E860=\"-\",VLOOKUP($A860,Economática!$A$3:$AI$823,30,FALSE)/E860<33.33%,VLOOKUP($A860,Economática!$A$3:$AI$823,30,FALSE)/E860>100%),1/0,VLOOKUP($A860,Economática!$A$3:$AI$823,30,FALSE)/E860))","v":""},"",{"$f":"IF($A860=\"\",\"\",IF(OR(VLOOKUP($A860,Economática!$A$3:$AI$823,25,FALSE)=0,VLOOKUP($A860,Economática!$A$3:$AI$823,25,FALSE)=\"-\"),1/0,VLOOKUP($A860,Economática!$A$3:$AI$823,25,FALSE)))","v":""},{"$f":"CONCATENATE(Economática!B838,\" \",Economática!C838)","v":" "}]
[{"$f":"IF(Economática!AG839=\"\",\"\",Economática!AG839)","v":""},{"$f":"IF($A861=\"\",\"\",VLOOKUP(VLOOKUP($A861,Economática!$A$3:$AI$823,6,FALSE),Correção!$B$16:$C$36,2,FALSE))","v":""},{"$f":"IF(Economática!B839=\"\",\"\",Economática!B839)","v":""},{"$f":"IF($A861=\"\",\"\",IF(OR(VLOOKUP($A861,Economática!$A$3:$AI$823,8,FALSE)=0,VLOOKUP($A861,Economática!$A$3:$AI$823,8,FALSE)=\"-\"),1/0,VLOOKUP($A861,Economática!$A$3:$AI$823,8,FALSE)))","v":""},{"$f":"IF(A861=\"\",\"\",IF(ISERROR(VLOOKUP(A861,Correção!$B$2:$G$13,9,FALSE)),VLOOKUP($A861,Economática!$A$3:$AI$823,9,FALSE),VLOOKUP(A861,Correção!$B$2:$G$13,9,FALSE)))","v":""},{"$f":"IF($A861=\"\",\"\",Economática!G839)","v":""},{"$f":"IF($A861=\"\",\"\",IF(OR(VLOOKUP($A861,Economática!$A$3:$AI$823,10,FALSE)=0,VLOOKUP($A861,Economática!$A$3:$AI$823,10,FALSE)=\"-\"),1/0,VLOOKUP($A861,Economática!$A$3:$AI$823,10,FALSE)))","v":""},{"$f":"IF($A861=\"\",\"\",IF(OR(VLOOKUP($A861,Economática!$A$3:$AI$823,11,FALSE)=0,VLOOKUP($A861,Economática!$A$3:$AI$823,11,FALSE)=\"-\"),1/0,VLOOKUP($A861,Economática!$A$3:$AI$823,11,FALSE)))","v":""},{"$f":"IF($A861=\"\",\"\",IF(OR(VLOOKUP($A861,Economática!$A$3:$AI$823,12,FALSE)=0,VLOOKUP($A861,Economática!$A$3:$AI$823,12,FALSE)=\"-\"),1/0,VLOOKUP($A861,Economática!$A$3:$AI$823,12,FALSE)))","v":""},{"$f":"IF($A861=\"\",\"\",IF(OR(VLOOKUP($A861,Economática!$A$3:$AI$823,13,FALSE)=0,VLOOKUP($A861,Economática!$A$3:$AI$823,13,FALSE)=\"-\"),1/0,VLOOKUP($A861,Economática!$A$3:$AI$823,13,FALSE)))","v":""},{"$f":"IF($A861=\"\",\"\",IF(OR(VLOOKUP($A861,Economática!$A$3:$AI$823,14,FALSE)=0,VLOOKUP($A861,Economática!$A$3:$AI$823,14,FALSE)=\"-\"),1/0,VLOOKUP($A861,Economática!$A$3:$AI$823,14,FALSE)))","v":""},{"$f":"IF($A861=\"\",\"\",IF(OR(VLOOKUP($A861,Economática!$A$3:$AI$823,15,FALSE)=0,VLOOKUP($A861,Economática!$A$3:$AI$823,15,FALSE)=\"-\"),1/0,VLOOKUP($A861,Economática!$A$3:$AI$823,15,FALSE)))","v":""},{"$f":"IF($A861=\"\",\"\",IF(OR(VLOOKUP($A861,Economática!$A$3:$AI$823,16,FALSE)=0,VLOOKUP($A861,Economática!$A$3:$AI$823,16,FALSE)=\"-\"),1/0,VLOOKUP($A861,Economática!$A$3:$AI$823,16,FALSE)))","v":""},{"$f":"IF($A861=\"\",\"\",IF(OR(VLOOKUP($A861,Economática!$A$3:$AI$823,17,FALSE)=0,VLOOKUP($A861,Economática!$A$3:$AI$823,17,FALSE)=\"-\"),1/0,VLOOKUP($A861,Economática!$A$3:$AI$823,17,FALSE)))","v":""},{"$f":"IF($A861=\"\",\"\",IF(OR(VLOOKUP($A861,Economática!$A$3:$AI$823,18,FALSE)=0,VLOOKUP($A861,Economática!$A$3:$AI$823,18,FALSE)=\"-\"),1/0,VLOOKUP($A861,Economática!$A$3:$AI$823,18,FALSE)))","v":""},{"$f":"IF($A861=\"\",\"\",IF(OR(VLOOKUP($A861,Economática!$A$3:$AI$823,19,FALSE)=0,VLOOKUP($A861,Economática!$A$3:$AI$823,19,FALSE)=\"-\"),1/0,VLOOKUP($A861,Economática!$A$3:$AI$823,19,FALSE)))","v":""},{"$f":"IF($A861=\"\",\"\",VLOOKUP($A861,Economática!$A$3:$AI$823,20,FALSE)/E861)","v":""},"","","",{"$f":"IF($A861=\"\",\"\",IF(OR(VLOOKUP($A861,Economática!$A$3:$AI$823,21,FALSE)/100=0,VLOOKUP($A861,Economática!$A$3:$AI$823,21,FALSE)/100=\"-\"),1/0,VLOOKUP($A861,Economática!$A$3:$AI$823,21,FALSE)/100))","v":""},{"$f":"IF($A861=\"\",\"\",IF(OR(VLOOKUP($A861,Economática!$A$3:$AI$823,22,FALSE)/100=0,VLOOKUP($A861,Economática!$A$3:$AI$823,22,FALSE)/100=\"-\"),1/0,VLOOKUP($A861,Economática!$A$3:$AI$823,22,FALSE)/100))","v":""},{"$f":"IF($A861=\"\",\"\",IF(OR(VLOOKUP($A861,Economática!$A$3:$AI$823,23,FALSE)=0,VLOOKUP($A861,Economática!$A$3:$AI$823,23,FALSE)=\"-\"),1/0,VLOOKUP($A861,Economática!$A$3:$AI$823,23,FALSE)))","v":""},{"$f":"IF($A861=\"\",\"\",IF(OR(VLOOKUP($A861,Economática!$A$3:$AI$823,24,FALSE)=0,VLOOKUP($A861,Economática!$A$3:$AI$823,24,FALSE)=\"-\"),1/0,VLOOKUP($A861,Economática!$A$3:$AI$823,24,FALSE)))","v":""},{"$f":"IF($A861=\"\",\"\",IF(OR(VLOOKUP($A861,Economática!$A$3:$AI$823,25,FALSE)=0,VLOOKUP($A861,Economática!$A$3:$AI$823,25,FALSE)=\"-\"),1/0,VLOOKUP($A861,Economática!$A$3:$AI$823,25,FALSE)))","v":""},{"$f":"IF($A861=\"\",\"\",IF(ISERROR((F861+VLOOKUP($A861,Economática!$A$3:$AI$823,26,FALSE))/Y861),(F861+VLOOKUP($A861,Economática!$A$3:$AI$823,26,FALSE))/Y861,(F861+VLOOKUP($A861,Economática!$A$3:$AI$823,26,FALSE))/Y861))","v":""},{"$f":"IF($A861=\"\",\"\",IF(OR(-VLOOKUP($A861,Economática!$A$3:$AI$823,27,FALSE)=0,-VLOOKUP($A861,Economática!$A$3:$AI$823,27,FALSE)=\"-\"),1/0,-VLOOKUP($A861,Economática!$A$3:$AI$823,27,FALSE)))","v":""},"",{"$f":"IF($A861=\"\",\"\",IF(OR(VLOOKUP($A861,Economática!$A$3:$AI$823,28,FALSE)=0,VLOOKUP($A861,Economática!$A$3:$AI$823,28,FALSE)=\"-\"),1/0,VLOOKUP($A861,Economática!$A$3:$AI$823,28,FALSE)))","v":""},{"$f":"IF($A861=\"\",\"\",IF(OR(VLOOKUP($A861,Economática!$A$3:$AI$823,29,FALSE)=0,VLOOKUP($A861,Economática!$A$3:$AI$823,29,FALSE)=\"-\"),1/0,VLOOKUP($A861,Economática!$A$3:$AI$823,29,FALSE)))","v":""},{"$f":"IF($A861=\"\",\"\",IF(OR(VLOOKUP($A861,Economática!$A$3:$AI$823,30,FALSE)/E861=0,VLOOKUP($A861,Economática!$A$3:$AI$823,30,FALSE)/E861=\"-\",VLOOKUP($A861,Economática!$A$3:$AI$823,30,FALSE)/E861<33.33%,VLOOKUP($A861,Economática!$A$3:$AI$823,30,FALSE)/E861>100%),1/0,VLOOKUP($A861,Economática!$A$3:$AI$823,30,FALSE)/E861))","v":""},"",{"$f":"IF($A861=\"\",\"\",IF(OR(VLOOKUP($A861,Economática!$A$3:$AI$823,25,FALSE)=0,VLOOKUP($A861,Economática!$A$3:$AI$823,25,FALSE)=\"-\"),1/0,VLOOKUP($A861,Economática!$A$3:$AI$823,25,FALSE)))","v":""},{"$f":"CONCATENATE(Economática!B839,\" \",Economática!C839)","v":" "}]
[{"$f":"IF(Economática!AG840=\"\",\"\",Economática!AG840)","v":""},{"$f":"IF($A862=\"\",\"\",VLOOKUP(VLOOKUP($A862,Economática!$A$3:$AI$823,6,FALSE),Correção!$B$16:$C$36,2,FALSE))","v":""},{"$f":"IF(Economática!B840=\"\",\"\",Economática!B840)","v":""},{"$f":"IF($A862=\"\",\"\",IF(OR(VLOOKUP($A862,Economática!$A$3:$AI$823,8,FALSE)=0,VLOOKUP($A862,Economática!$A$3:$AI$823,8,FALSE)=\"-\"),1/0,VLOOKUP($A862,Economática!$A$3:$AI$823,8,FALSE)))","v":""},{"$f":"IF(A862=\"\",\"\",IF(ISERROR(VLOOKUP(A862,Correção!$B$2:$G$13,9,FALSE)),VLOOKUP($A862,Economática!$A$3:$AI$823,9,FALSE),VLOOKUP(A862,Correção!$B$2:$G$13,9,FALSE)))","v":""},{"$f":"IF($A862=\"\",\"\",Economática!G840)","v":""},{"$f":"IF($A862=\"\",\"\",IF(OR(VLOOKUP($A862,Economática!$A$3:$AI$823,10,FALSE)=0,VLOOKUP($A862,Economática!$A$3:$AI$823,10,FALSE)=\"-\"),1/0,VLOOKUP($A862,Economática!$A$3:$AI$823,10,FALSE)))","v":""},{"$f":"IF($A862=\"\",\"\",IF(OR(VLOOKUP($A862,Economática!$A$3:$AI$823,11,FALSE)=0,VLOOKUP($A862,Economática!$A$3:$AI$823,11,FALSE)=\"-\"),1/0,VLOOKUP($A862,Economática!$A$3:$AI$823,11,FALSE)))","v":""},{"$f":"IF($A862=\"\",\"\",IF(OR(VLOOKUP($A862,Economática!$A$3:$AI$823,12,FALSE)=0,VLOOKUP($A862,Economática!$A$3:$AI$823,12,FALSE)=\"-\"),1/0,VLOOKUP($A862,Economática!$A$3:$AI$823,12,FALSE)))","v":""},{"$f":"IF($A862=\"\",\"\",IF(OR(VLOOKUP($A862,Economática!$A$3:$AI$823,13,FALSE)=0,VLOOKUP($A862,Economática!$A$3:$AI$823,13,FALSE)=\"-\"),1/0,VLOOKUP($A862,Economática!$A$3:$AI$823,13,FALSE)))","v":""},{"$f":"IF($A862=\"\",\"\",IF(OR(VLOOKUP($A862,Economática!$A$3:$AI$823,14,FALSE)=0,VLOOKUP($A862,Economática!$A$3:$AI$823,14,FALSE)=\"-\"),1/0,VLOOKUP($A862,Economática!$A$3:$AI$823,14,FALSE)))","v":""},{"$f":"IF($A862=\"\",\"\",IF(OR(VLOOKUP($A862,Economática!$A$3:$AI$823,15,FALSE)=0,VLOOKUP($A862,Economática!$A$3:$AI$823,15,FALSE)=\"-\"),1/0,VLOOKUP($A862,Economática!$A$3:$AI$823,15,FALSE)))","v":""},{"$f":"IF($A862=\"\",\"\",IF(OR(VLOOKUP($A862,Economática!$A$3:$AI$823,16,FALSE)=0,VLOOKUP($A862,Economática!$A$3:$AI$823,16,FALSE)=\"-\"),1/0,VLOOKUP($A862,Economática!$A$3:$AI$823,16,FALSE)))","v":""},{"$f":"IF($A862=\"\",\"\",IF(OR(VLOOKUP($A862,Economática!$A$3:$AI$823,17,FALSE)=0,VLOOKUP($A862,Economática!$A$3:$AI$823,17,FALSE)=\"-\"),1/0,VLOOKUP($A862,Economática!$A$3:$AI$823,17,FALSE)))","v":""},{"$f":"IF($A862=\"\",\"\",IF(OR(VLOOKUP($A862,Economática!$A$3:$AI$823,18,FALSE)=0,VLOOKUP($A862,Economática!$A$3:$AI$823,18,FALSE)=\"-\"),1/0,VLOOKUP($A862,Economática!$A$3:$AI$823,18,FALSE)))","v":""},{"$f":"IF($A862=\"\",\"\",IF(OR(VLOOKUP($A862,Economática!$A$3:$AI$823,19,FALSE)=0,VLOOKUP($A862,Economática!$A$3:$AI$823,19,FALSE)=\"-\"),1/0,VLOOKUP($A862,Economática!$A$3:$AI$823,19,FALSE)))","v":""},{"$f":"IF($A862=\"\",\"\",VLOOKUP($A862,Economática!$A$3:$AI$823,20,FALSE)/E862)","v":""},"","","",{"$f":"IF($A862=\"\",\"\",IF(OR(VLOOKUP($A862,Economática!$A$3:$AI$823,21,FALSE)/100=0,VLOOKUP($A862,Economática!$A$3:$AI$823,21,FALSE)/100=\"-\"),1/0,VLOOKUP($A862,Economática!$A$3:$AI$823,21,FALSE)/100))","v":""},{"$f":"IF($A862=\"\",\"\",IF(OR(VLOOKUP($A862,Economática!$A$3:$AI$823,22,FALSE)/100=0,VLOOKUP($A862,Economática!$A$3:$AI$823,22,FALSE)/100=\"-\"),1/0,VLOOKUP($A862,Economática!$A$3:$AI$823,22,FALSE)/100))","v":""},{"$f":"IF($A862=\"\",\"\",IF(OR(VLOOKUP($A862,Economática!$A$3:$AI$823,23,FALSE)=0,VLOOKUP($A862,Economática!$A$3:$AI$823,23,FALSE)=\"-\"),1/0,VLOOKUP($A862,Economática!$A$3:$AI$823,23,FALSE)))","v":""},{"$f":"IF($A862=\"\",\"\",IF(OR(VLOOKUP($A862,Economática!$A$3:$AI$823,24,FALSE)=0,VLOOKUP($A862,Economática!$A$3:$AI$823,24,FALSE)=\"-\"),1/0,VLOOKUP($A862,Economática!$A$3:$AI$823,24,FALSE)))","v":""},{"$f":"IF($A862=\"\",\"\",IF(OR(VLOOKUP($A862,Economática!$A$3:$AI$823,25,FALSE)=0,VLOOKUP($A862,Economática!$A$3:$AI$823,25,FALSE)=\"-\"),1/0,VLOOKUP($A862,Economática!$A$3:$AI$823,25,FALSE)))","v":""},{"$f":"IF($A862=\"\",\"\",IF(ISERROR((F862+VLOOKUP($A862,Economática!$A$3:$AI$823,26,FALSE))/Y862),(F862+VLOOKUP($A862,Economática!$A$3:$AI$823,26,FALSE))/Y862,(F862+VLOOKUP($A862,Economática!$A$3:$AI$823,26,FALSE))/Y862))","v":""},{"$f":"IF($A862=\"\",\"\",IF(OR(-VLOOKUP($A862,Economática!$A$3:$AI$823,27,FALSE)=0,-VLOOKUP($A862,Economática!$A$3:$AI$823,27,FALSE)=\"-\"),1/0,-VLOOKUP($A862,Economática!$A$3:$AI$823,27,FALSE)))","v":""},"",{"$f":"IF($A862=\"\",\"\",IF(OR(VLOOKUP($A862,Economática!$A$3:$AI$823,28,FALSE)=0,VLOOKUP($A862,Economática!$A$3:$AI$823,28,FALSE)=\"-\"),1/0,VLOOKUP($A862,Economática!$A$3:$AI$823,28,FALSE)))","v":""},{"$f":"IF($A862=\"\",\"\",IF(OR(VLOOKUP($A862,Economática!$A$3:$AI$823,29,FALSE)=0,VLOOKUP($A862,Economática!$A$3:$AI$823,29,FALSE)=\"-\"),1/0,VLOOKUP($A862,Economática!$A$3:$AI$823,29,FALSE)))","v":""},{"$f":"IF($A862=\"\",\"\",IF(OR(VLOOKUP($A862,Economática!$A$3:$AI$823,30,FALSE)/E862=0,VLOOKUP($A862,Economática!$A$3:$AI$823,30,FALSE)/E862=\"-\",VLOOKUP($A862,Economática!$A$3:$AI$823,30,FALSE)/E862<33.33%,VLOOKUP($A862,Economática!$A$3:$AI$823,30,FALSE)/E862>100%),1/0,VLOOKUP($A862,Economática!$A$3:$AI$823,30,FALSE)/E862))","v":""},"",{"$f":"IF($A862=\"\",\"\",IF(OR(VLOOKUP($A862,Economática!$A$3:$AI$823,25,FALSE)=0,VLOOKUP($A862,Economática!$A$3:$AI$823,25,FALSE)=\"-\"),1/0,VLOOKUP($A862,Economática!$A$3:$AI$823,25,FALSE)))","v":""},{"$f":"CONCATENATE(Economática!B840,\" \",Economática!C840)","v":" "}]
[{"$f":"IF(Economática!AG841=\"\",\"\",Economática!AG841)","v":""},{"$f":"IF($A863=\"\",\"\",VLOOKUP(VLOOKUP($A863,Economática!$A$3:$AI$823,6,FALSE),Correção!$B$16:$C$36,2,FALSE))","v":""},{"$f":"IF(Economática!B841=\"\",\"\",Economática!B841)","v":""},{"$f":"IF($A863=\"\",\"\",IF(OR(VLOOKUP($A863,Economática!$A$3:$AI$823,8,FALSE)=0,VLOOKUP($A863,Economática!$A$3:$AI$823,8,FALSE)=\"-\"),1/0,VLOOKUP($A863,Economática!$A$3:$AI$823,8,FALSE)))","v":""},{"$f":"IF(A863=\"\",\"\",IF(ISERROR(VLOOKUP(A863,Correção!$B$2:$G$13,9,FALSE)),VLOOKUP($A863,Economática!$A$3:$AI$823,9,FALSE),VLOOKUP(A863,Correção!$B$2:$G$13,9,FALSE)))","v":""},{"$f":"IF($A863=\"\",\"\",Economática!G841)","v":""},{"$f":"IF($A863=\"\",\"\",IF(OR(VLOOKUP($A863,Economática!$A$3:$AI$823,10,FALSE)=0,VLOOKUP($A863,Economática!$A$3:$AI$823,10,FALSE)=\"-\"),1/0,VLOOKUP($A863,Economática!$A$3:$AI$823,10,FALSE)))","v":""},{"$f":"IF($A863=\"\",\"\",IF(OR(VLOOKUP($A863,Economática!$A$3:$AI$823,11,FALSE)=0,VLOOKUP($A863,Economática!$A$3:$AI$823,11,FALSE)=\"-\"),1/0,VLOOKUP($A863,Economática!$A$3:$AI$823,11,FALSE)))","v":""},{"$f":"IF($A863=\"\",\"\",IF(OR(VLOOKUP($A863,Economática!$A$3:$AI$823,12,FALSE)=0,VLOOKUP($A863,Economática!$A$3:$AI$823,12,FALSE)=\"-\"),1/0,VLOOKUP($A863,Economática!$A$3:$AI$823,12,FALSE)))","v":""},{"$f":"IF($A863=\"\",\"\",IF(OR(VLOOKUP($A863,Economática!$A$3:$AI$823,13,FALSE)=0,VLOOKUP($A863,Economática!$A$3:$AI$823,13,FALSE)=\"-\"),1/0,VLOOKUP($A863,Economática!$A$3:$AI$823,13,FALSE)))","v":""},{"$f":"IF($A863=\"\",\"\",IF(OR(VLOOKUP($A863,Economática!$A$3:$AI$823,14,FALSE)=0,VLOOKUP($A863,Economática!$A$3:$AI$823,14,FALSE)=\"-\"),1/0,VLOOKUP($A863,Economática!$A$3:$AI$823,14,FALSE)))","v":""},{"$f":"IF($A863=\"\",\"\",IF(OR(VLOOKUP($A863,Economática!$A$3:$AI$823,15,FALSE)=0,VLOOKUP($A863,Economática!$A$3:$AI$823,15,FALSE)=\"-\"),1/0,VLOOKUP($A863,Economática!$A$3:$AI$823,15,FALSE)))","v":""},{"$f":"IF($A863=\"\",\"\",IF(OR(VLOOKUP($A863,Economática!$A$3:$AI$823,16,FALSE)=0,VLOOKUP($A863,Economática!$A$3:$AI$823,16,FALSE)=\"-\"),1/0,VLOOKUP($A863,Economática!$A$3:$AI$823,16,FALSE)))","v":""},{"$f":"IF($A863=\"\",\"\",IF(OR(VLOOKUP($A863,Economática!$A$3:$AI$823,17,FALSE)=0,VLOOKUP($A863,Economática!$A$3:$AI$823,17,FALSE)=\"-\"),1/0,VLOOKUP($A863,Economática!$A$3:$AI$823,17,FALSE)))","v":""},{"$f":"IF($A863=\"\",\"\",IF(OR(VLOOKUP($A863,Economática!$A$3:$AI$823,18,FALSE)=0,VLOOKUP($A863,Economática!$A$3:$AI$823,18,FALSE)=\"-\"),1/0,VLOOKUP($A863,Economática!$A$3:$AI$823,18,FALSE)))","v":""},{"$f":"IF($A863=\"\",\"\",IF(OR(VLOOKUP($A863,Economática!$A$3:$AI$823,19,FALSE)=0,VLOOKUP($A863,Economática!$A$3:$AI$823,19,FALSE)=\"-\"),1/0,VLOOKUP($A863,Economática!$A$3:$AI$823,19,FALSE)))","v":""},{"$f":"IF($A863=\"\",\"\",VLOOKUP($A863,Economática!$A$3:$AI$823,20,FALSE)/E863)","v":""},"","","",{"$f":"IF($A863=\"\",\"\",IF(OR(VLOOKUP($A863,Economática!$A$3:$AI$823,21,FALSE)/100=0,VLOOKUP($A863,Economática!$A$3:$AI$823,21,FALSE)/100=\"-\"),1/0,VLOOKUP($A863,Economática!$A$3:$AI$823,21,FALSE)/100))","v":""},{"$f":"IF($A863=\"\",\"\",IF(OR(VLOOKUP($A863,Economática!$A$3:$AI$823,22,FALSE)/100=0,VLOOKUP($A863,Economática!$A$3:$AI$823,22,FALSE)/100=\"-\"),1/0,VLOOKUP($A863,Economática!$A$3:$AI$823,22,FALSE)/100))","v":""},{"$f":"IF($A863=\"\",\"\",IF(OR(VLOOKUP($A863,Economática!$A$3:$AI$823,23,FALSE)=0,VLOOKUP($A863,Economática!$A$3:$AI$823,23,FALSE)=\"-\"),1/0,VLOOKUP($A863,Economática!$A$3:$AI$823,23,FALSE)))","v":""},{"$f":"IF($A863=\"\",\"\",IF(OR(VLOOKUP($A863,Economática!$A$3:$AI$823,24,FALSE)=0,VLOOKUP($A863,Economática!$A$3:$AI$823,24,FALSE)=\"-\"),1/0,VLOOKUP($A863,Economática!$A$3:$AI$823,24,FALSE)))","v":""},{"$f":"IF($A863=\"\",\"\",IF(OR(VLOOKUP($A863,Economática!$A$3:$AI$823,25,FALSE)=0,VLOOKUP($A863,Economática!$A$3:$AI$823,25,FALSE)=\"-\"),1/0,VLOOKUP($A863,Economática!$A$3:$AI$823,25,FALSE)))","v":""},{"$f":"IF($A863=\"\",\"\",IF(ISERROR((F863+VLOOKUP($A863,Economática!$A$3:$AI$823,26,FALSE))/Y863),(F863+VLOOKUP($A863,Economática!$A$3:$AI$823,26,FALSE))/Y863,(F863+VLOOKUP($A863,Economática!$A$3:$AI$823,26,FALSE))/Y863))","v":""},{"$f":"IF($A863=\"\",\"\",IF(OR(-VLOOKUP($A863,Economática!$A$3:$AI$823,27,FALSE)=0,-VLOOKUP($A863,Economática!$A$3:$AI$823,27,FALSE)=\"-\"),1/0,-VLOOKUP($A863,Economática!$A$3:$AI$823,27,FALSE)))","v":""},"",{"$f":"IF($A863=\"\",\"\",IF(OR(VLOOKUP($A863,Economática!$A$3:$AI$823,28,FALSE)=0,VLOOKUP($A863,Economática!$A$3:$AI$823,28,FALSE)=\"-\"),1/0,VLOOKUP($A863,Economática!$A$3:$AI$823,28,FALSE)))","v":""},{"$f":"IF($A863=\"\",\"\",IF(OR(VLOOKUP($A863,Economática!$A$3:$AI$823,29,FALSE)=0,VLOOKUP($A863,Economática!$A$3:$AI$823,29,FALSE)=\"-\"),1/0,VLOOKUP($A863,Economática!$A$3:$AI$823,29,FALSE)))","v":""},{"$f":"IF($A863=\"\",\"\",IF(OR(VLOOKUP($A863,Economática!$A$3:$AI$823,30,FALSE)/E863=0,VLOOKUP($A863,Economática!$A$3:$AI$823,30,FALSE)/E863=\"-\",VLOOKUP($A863,Economática!$A$3:$AI$823,30,FALSE)/E863<33.33%,VLOOKUP($A863,Economática!$A$3:$AI$823,30,FALSE)/E863>100%),1/0,VLOOKUP($A863,Economática!$A$3:$AI$823,30,FALSE)/E863))","v":""},"",{"$f":"IF($A863=\"\",\"\",IF(OR(VLOOKUP($A863,Economática!$A$3:$AI$823,25,FALSE)=0,VLOOKUP($A863,Economática!$A$3:$AI$823,25,FALSE)=\"-\"),1/0,VLOOKUP($A863,Economática!$A$3:$AI$823,25,FALSE)))","v":""},{"$f":"CONCATENATE(Economática!B841,\" \",Economática!C841)","v":" "}]
[{"$f":"IF(Economática!AG842=\"\",\"\",Economática!AG842)","v":""},{"$f":"IF($A864=\"\",\"\",VLOOKUP(VLOOKUP($A864,Economática!$A$3:$AI$823,6,FALSE),Correção!$B$16:$C$36,2,FALSE))","v":""},{"$f":"IF(Economática!B842=\"\",\"\",Economática!B842)","v":""},{"$f":"IF($A864=\"\",\"\",IF(OR(VLOOKUP($A864,Economática!$A$3:$AI$823,8,FALSE)=0,VLOOKUP($A864,Economática!$A$3:$AI$823,8,FALSE)=\"-\"),1/0,VLOOKUP($A864,Economática!$A$3:$AI$823,8,FALSE)))","v":""},{"$f":"IF(A864=\"\",\"\",IF(ISERROR(VLOOKUP(A864,Correção!$B$2:$G$13,9,FALSE)),VLOOKUP($A864,Economática!$A$3:$AI$823,9,FALSE),VLOOKUP(A864,Correção!$B$2:$G$13,9,FALSE)))","v":""},{"$f":"IF($A864=\"\",\"\",Economática!G842)","v":""},{"$f":"IF($A864=\"\",\"\",IF(OR(VLOOKUP($A864,Economática!$A$3:$AI$823,10,FALSE)=0,VLOOKUP($A864,Economática!$A$3:$AI$823,10,FALSE)=\"-\"),1/0,VLOOKUP($A864,Economática!$A$3:$AI$823,10,FALSE)))","v":""},{"$f":"IF($A864=\"\",\"\",IF(OR(VLOOKUP($A864,Economática!$A$3:$AI$823,11,FALSE)=0,VLOOKUP($A864,Economática!$A$3:$AI$823,11,FALSE)=\"-\"),1/0,VLOOKUP($A864,Economática!$A$3:$AI$823,11,FALSE)))","v":""},{"$f":"IF($A864=\"\",\"\",IF(OR(VLOOKUP($A864,Economática!$A$3:$AI$823,12,FALSE)=0,VLOOKUP($A864,Economática!$A$3:$AI$823,12,FALSE)=\"-\"),1/0,VLOOKUP($A864,Economática!$A$3:$AI$823,12,FALSE)))","v":""},{"$f":"IF($A864=\"\",\"\",IF(OR(VLOOKUP($A864,Economática!$A$3:$AI$823,13,FALSE)=0,VLOOKUP($A864,Economática!$A$3:$AI$823,13,FALSE)=\"-\"),1/0,VLOOKUP($A864,Economática!$A$3:$AI$823,13,FALSE)))","v":""},{"$f":"IF($A864=\"\",\"\",IF(OR(VLOOKUP($A864,Economática!$A$3:$AI$823,14,FALSE)=0,VLOOKUP($A864,Economática!$A$3:$AI$823,14,FALSE)=\"-\"),1/0,VLOOKUP($A864,Economática!$A$3:$AI$823,14,FALSE)))","v":""},{"$f":"IF($A864=\"\",\"\",IF(OR(VLOOKUP($A864,Economática!$A$3:$AI$823,15,FALSE)=0,VLOOKUP($A864,Economática!$A$3:$AI$823,15,FALSE)=\"-\"),1/0,VLOOKUP($A864,Economática!$A$3:$AI$823,15,FALSE)))","v":""},{"$f":"IF($A864=\"\",\"\",IF(OR(VLOOKUP($A864,Economática!$A$3:$AI$823,16,FALSE)=0,VLOOKUP($A864,Economática!$A$3:$AI$823,16,FALSE)=\"-\"),1/0,VLOOKUP($A864,Economática!$A$3:$AI$823,16,FALSE)))","v":""},{"$f":"IF($A864=\"\",\"\",IF(OR(VLOOKUP($A864,Economática!$A$3:$AI$823,17,FALSE)=0,VLOOKUP($A864,Economática!$A$3:$AI$823,17,FALSE)=\"-\"),1/0,VLOOKUP($A864,Economática!$A$3:$AI$823,17,FALSE)))","v":""},{"$f":"IF($A864=\"\",\"\",IF(OR(VLOOKUP($A864,Economática!$A$3:$AI$823,18,FALSE)=0,VLOOKUP($A864,Economática!$A$3:$AI$823,18,FALSE)=\"-\"),1/0,VLOOKUP($A864,Economática!$A$3:$AI$823,18,FALSE)))","v":""},{"$f":"IF($A864=\"\",\"\",IF(OR(VLOOKUP($A864,Economática!$A$3:$AI$823,19,FALSE)=0,VLOOKUP($A864,Economática!$A$3:$AI$823,19,FALSE)=\"-\"),1/0,VLOOKUP($A864,Economática!$A$3:$AI$823,19,FALSE)))","v":""},{"$f":"IF($A864=\"\",\"\",VLOOKUP($A864,Economática!$A$3:$AI$823,20,FALSE)/E864)","v":""},"","","",{"$f":"IF($A864=\"\",\"\",IF(OR(VLOOKUP($A864,Economática!$A$3:$AI$823,21,FALSE)/100=0,VLOOKUP($A864,Economática!$A$3:$AI$823,21,FALSE)/100=\"-\"),1/0,VLOOKUP($A864,Economática!$A$3:$AI$823,21,FALSE)/100))","v":""},{"$f":"IF($A864=\"\",\"\",IF(OR(VLOOKUP($A864,Economática!$A$3:$AI$823,22,FALSE)/100=0,VLOOKUP($A864,Economática!$A$3:$AI$823,22,FALSE)/100=\"-\"),1/0,VLOOKUP($A864,Economática!$A$3:$AI$823,22,FALSE)/100))","v":""},{"$f":"IF($A864=\"\",\"\",IF(OR(VLOOKUP($A864,Economática!$A$3:$AI$823,23,FALSE)=0,VLOOKUP($A864,Economática!$A$3:$AI$823,23,FALSE)=\"-\"),1/0,VLOOKUP($A864,Economática!$A$3:$AI$823,23,FALSE)))","v":""},{"$f":"IF($A864=\"\",\"\",IF(OR(VLOOKUP($A864,Economática!$A$3:$AI$823,24,FALSE)=0,VLOOKUP($A864,Economática!$A$3:$AI$823,24,FALSE)=\"-\"),1/0,VLOOKUP($A864,Economática!$A$3:$AI$823,24,FALSE)))","v":""},{"$f":"IF($A864=\"\",\"\",IF(OR(VLOOKUP($A864,Economática!$A$3:$AI$823,25,FALSE)=0,VLOOKUP($A864,Economática!$A$3:$AI$823,25,FALSE)=\"-\"),1/0,VLOOKUP($A864,Economática!$A$3:$AI$823,25,FALSE)))","v":""},{"$f":"IF($A864=\"\",\"\",IF(ISERROR((F864+VLOOKUP($A864,Economática!$A$3:$AI$823,26,FALSE))/Y864),(F864+VLOOKUP($A864,Economática!$A$3:$AI$823,26,FALSE))/Y864,(F864+VLOOKUP($A864,Economática!$A$3:$AI$823,26,FALSE))/Y864))","v":""},{"$f":"IF($A864=\"\",\"\",IF(OR(-VLOOKUP($A864,Economática!$A$3:$AI$823,27,FALSE)=0,-VLOOKUP($A864,Economática!$A$3:$AI$823,27,FALSE)=\"-\"),1/0,-VLOOKUP($A864,Economática!$A$3:$AI$823,27,FALSE)))","v":""},"",{"$f":"IF($A864=\"\",\"\",IF(OR(VLOOKUP($A864,Economática!$A$3:$AI$823,28,FALSE)=0,VLOOKUP($A864,Economática!$A$3:$AI$823,28,FALSE)=\"-\"),1/0,VLOOKUP($A864,Economática!$A$3:$AI$823,28,FALSE)))","v":""},{"$f":"IF($A864=\"\",\"\",IF(OR(VLOOKUP($A864,Economática!$A$3:$AI$823,29,FALSE)=0,VLOOKUP($A864,Economática!$A$3:$AI$823,29,FALSE)=\"-\"),1/0,VLOOKUP($A864,Economática!$A$3:$AI$823,29,FALSE)))","v":""},{"$f":"IF($A864=\"\",\"\",IF(OR(VLOOKUP($A864,Economática!$A$3:$AI$823,30,FALSE)/E864=0,VLOOKUP($A864,Economática!$A$3:$AI$823,30,FALSE)/E864=\"-\",VLOOKUP($A864,Economática!$A$3:$AI$823,30,FALSE)/E864<33.33%,VLOOKUP($A864,Economática!$A$3:$AI$823,30,FALSE)/E864>100%),1/0,VLOOKUP($A864,Economática!$A$3:$AI$823,30,FALSE)/E864))","v":""},"",{"$f":"IF($A864=\"\",\"\",IF(OR(VLOOKUP($A864,Economática!$A$3:$AI$823,25,FALSE)=0,VLOOKUP($A864,Economática!$A$3:$AI$823,25,FALSE)=\"-\"),1/0,VLOOKUP($A864,Economática!$A$3:$AI$823,25,FALSE)))","v":""},{"$f":"CONCATENATE(Economática!B842,\" \",Economática!C842)","v":" "}]
[{"$f":"IF(Economática!AG843=\"\",\"\",Economática!AG843)","v":""},{"$f":"IF($A865=\"\",\"\",VLOOKUP(VLOOKUP($A865,Economática!$A$3:$AI$823,6,FALSE),Correção!$B$16:$C$36,2,FALSE))","v":""},{"$f":"IF(Economática!B843=\"\",\"\",Economática!B843)","v":""},{"$f":"IF($A865=\"\",\"\",IF(OR(VLOOKUP($A865,Economática!$A$3:$AI$823,8,FALSE)=0,VLOOKUP($A865,Economática!$A$3:$AI$823,8,FALSE)=\"-\"),1/0,VLOOKUP($A865,Economática!$A$3:$AI$823,8,FALSE)))","v":""},{"$f":"IF(A865=\"\",\"\",IF(ISERROR(VLOOKUP(A865,Correção!$B$2:$G$13,9,FALSE)),VLOOKUP($A865,Economática!$A$3:$AI$823,9,FALSE),VLOOKUP(A865,Correção!$B$2:$G$13,9,FALSE)))","v":""},{"$f":"IF($A865=\"\",\"\",Economática!G843)","v":""},{"$f":"IF($A865=\"\",\"\",IF(OR(VLOOKUP($A865,Economática!$A$3:$AI$823,10,FALSE)=0,VLOOKUP($A865,Economática!$A$3:$AI$823,10,FALSE)=\"-\"),1/0,VLOOKUP($A865,Economática!$A$3:$AI$823,10,FALSE)))","v":""},{"$f":"IF($A865=\"\",\"\",IF(OR(VLOOKUP($A865,Economática!$A$3:$AI$823,11,FALSE)=0,VLOOKUP($A865,Economática!$A$3:$AI$823,11,FALSE)=\"-\"),1/0,VLOOKUP($A865,Economática!$A$3:$AI$823,11,FALSE)))","v":""},{"$f":"IF($A865=\"\",\"\",IF(OR(VLOOKUP($A865,Economática!$A$3:$AI$823,12,FALSE)=0,VLOOKUP($A865,Economática!$A$3:$AI$823,12,FALSE)=\"-\"),1/0,VLOOKUP($A865,Economática!$A$3:$AI$823,12,FALSE)))","v":""},{"$f":"IF($A865=\"\",\"\",IF(OR(VLOOKUP($A865,Economática!$A$3:$AI$823,13,FALSE)=0,VLOOKUP($A865,Economática!$A$3:$AI$823,13,FALSE)=\"-\"),1/0,VLOOKUP($A865,Economática!$A$3:$AI$823,13,FALSE)))","v":""},{"$f":"IF($A865=\"\",\"\",IF(OR(VLOOKUP($A865,Economática!$A$3:$AI$823,14,FALSE)=0,VLOOKUP($A865,Economática!$A$3:$AI$823,14,FALSE)=\"-\"),1/0,VLOOKUP($A865,Economática!$A$3:$AI$823,14,FALSE)))","v":""},{"$f":"IF($A865=\"\",\"\",IF(OR(VLOOKUP($A865,Economática!$A$3:$AI$823,15,FALSE)=0,VLOOKUP($A865,Economática!$A$3:$AI$823,15,FALSE)=\"-\"),1/0,VLOOKUP($A865,Economática!$A$3:$AI$823,15,FALSE)))","v":""},{"$f":"IF($A865=\"\",\"\",IF(OR(VLOOKUP($A865,Economática!$A$3:$AI$823,16,FALSE)=0,VLOOKUP($A865,Economática!$A$3:$AI$823,16,FALSE)=\"-\"),1/0,VLOOKUP($A865,Economática!$A$3:$AI$823,16,FALSE)))","v":""},{"$f":"IF($A865=\"\",\"\",IF(OR(VLOOKUP($A865,Economática!$A$3:$AI$823,17,FALSE)=0,VLOOKUP($A865,Economática!$A$3:$AI$823,17,FALSE)=\"-\"),1/0,VLOOKUP($A865,Economática!$A$3:$AI$823,17,FALSE)))","v":""},{"$f":"IF($A865=\"\",\"\",IF(OR(VLOOKUP($A865,Economática!$A$3:$AI$823,18,FALSE)=0,VLOOKUP($A865,Economática!$A$3:$AI$823,18,FALSE)=\"-\"),1/0,VLOOKUP($A865,Economática!$A$3:$AI$823,18,FALSE)))","v":""},{"$f":"IF($A865=\"\",\"\",IF(OR(VLOOKUP($A865,Economática!$A$3:$AI$823,19,FALSE)=0,VLOOKUP($A865,Economática!$A$3:$AI$823,19,FALSE)=\"-\"),1/0,VLOOKUP($A865,Economática!$A$3:$AI$823,19,FALSE)))","v":""},{"$f":"IF($A865=\"\",\"\",VLOOKUP($A865,Economática!$A$3:$AI$823,20,FALSE)/E865)","v":""},"","","",{"$f":"IF($A865=\"\",\"\",IF(OR(VLOOKUP($A865,Economática!$A$3:$AI$823,21,FALSE)/100=0,VLOOKUP($A865,Economática!$A$3:$AI$823,21,FALSE)/100=\"-\"),1/0,VLOOKUP($A865,Economática!$A$3:$AI$823,21,FALSE)/100))","v":""},{"$f":"IF($A865=\"\",\"\",IF(OR(VLOOKUP($A865,Economática!$A$3:$AI$823,22,FALSE)/100=0,VLOOKUP($A865,Economática!$A$3:$AI$823,22,FALSE)/100=\"-\"),1/0,VLOOKUP($A865,Economática!$A$3:$AI$823,22,FALSE)/100))","v":""},{"$f":"IF($A865=\"\",\"\",IF(OR(VLOOKUP($A865,Economática!$A$3:$AI$823,23,FALSE)=0,VLOOKUP($A865,Economática!$A$3:$AI$823,23,FALSE)=\"-\"),1/0,VLOOKUP($A865,Economática!$A$3:$AI$823,23,FALSE)))","v":""},{"$f":"IF($A865=\"\",\"\",IF(OR(VLOOKUP($A865,Economática!$A$3:$AI$823,24,FALSE)=0,VLOOKUP($A865,Economática!$A$3:$AI$823,24,FALSE)=\"-\"),1/0,VLOOKUP($A865,Economática!$A$3:$AI$823,24,FALSE)))","v":""},{"$f":"IF($A865=\"\",\"\",IF(OR(VLOOKUP($A865,Economática!$A$3:$AI$823,25,FALSE)=0,VLOOKUP($A865,Economática!$A$3:$AI$823,25,FALSE)=\"-\"),1/0,VLOOKUP($A865,Economática!$A$3:$AI$823,25,FALSE)))","v":""},{"$f":"IF($A865=\"\",\"\",IF(ISERROR((F865+VLOOKUP($A865,Economática!$A$3:$AI$823,26,FALSE))/Y865),(F865+VLOOKUP($A865,Economática!$A$3:$AI$823,26,FALSE))/Y865,(F865+VLOOKUP($A865,Economática!$A$3:$AI$823,26,FALSE))/Y865))","v":""},{"$f":"IF($A865=\"\",\"\",IF(OR(-VLOOKUP($A865,Economática!$A$3:$AI$823,27,FALSE)=0,-VLOOKUP($A865,Economática!$A$3:$AI$823,27,FALSE)=\"-\"),1/0,-VLOOKUP($A865,Economática!$A$3:$AI$823,27,FALSE)))","v":""},"",{"$f":"IF($A865=\"\",\"\",IF(OR(VLOOKUP($A865,Economática!$A$3:$AI$823,28,FALSE)=0,VLOOKUP($A865,Economática!$A$3:$AI$823,28,FALSE)=\"-\"),1/0,VLOOKUP($A865,Economática!$A$3:$AI$823,28,FALSE)))","v":""},{"$f":"IF($A865=\"\",\"\",IF(OR(VLOOKUP($A865,Economática!$A$3:$AI$823,29,FALSE)=0,VLOOKUP($A865,Economática!$A$3:$AI$823,29,FALSE)=\"-\"),1/0,VLOOKUP($A865,Economática!$A$3:$AI$823,29,FALSE)))","v":""},{"$f":"IF($A865=\"\",\"\",IF(OR(VLOOKUP($A865,Economática!$A$3:$AI$823,30,FALSE)/E865=0,VLOOKUP($A865,Economática!$A$3:$AI$823,30,FALSE)/E865=\"-\",VLOOKUP($A865,Economática!$A$3:$AI$823,30,FALSE)/E865<33.33%,VLOOKUP($A865,Economática!$A$3:$AI$823,30,FALSE)/E865>100%),1/0,VLOOKUP($A865,Economática!$A$3:$AI$823,30,FALSE)/E865))","v":""},"",{"$f":"IF($A865=\"\",\"\",IF(OR(VLOOKUP($A865,Economática!$A$3:$AI$823,25,FALSE)=0,VLOOKUP($A865,Economática!$A$3:$AI$823,25,FALSE)=\"-\"),1/0,VLOOKUP($A865,Economática!$A$3:$AI$823,25,FALSE)))","v":""},{"$f":"CONCATENATE(Economática!B843,\" \",Economática!C843)","v":" "}]
[{"$f":"IF(Economática!AG844=\"\",\"\",Economática!AG844)","v":""},{"$f":"IF($A866=\"\",\"\",VLOOKUP(VLOOKUP($A866,Economática!$A$3:$AI$823,6,FALSE),Correção!$B$16:$C$36,2,FALSE))","v":""},{"$f":"IF(Economática!B844=\"\",\"\",Economática!B844)","v":""},{"$f":"IF($A866=\"\",\"\",IF(OR(VLOOKUP($A866,Economática!$A$3:$AI$823,8,FALSE)=0,VLOOKUP($A866,Economática!$A$3:$AI$823,8,FALSE)=\"-\"),1/0,VLOOKUP($A866,Economática!$A$3:$AI$823,8,FALSE)))","v":""},{"$f":"IF(A866=\"\",\"\",IF(ISERROR(VLOOKUP(A866,Correção!$B$2:$G$13,9,FALSE)),VLOOKUP($A866,Economática!$A$3:$AI$823,9,FALSE),VLOOKUP(A866,Correção!$B$2:$G$13,9,FALSE)))","v":""},{"$f":"IF($A866=\"\",\"\",Economática!G844)","v":""},{"$f":"IF($A866=\"\",\"\",IF(OR(VLOOKUP($A866,Economática!$A$3:$AI$823,10,FALSE)=0,VLOOKUP($A866,Economática!$A$3:$AI$823,10,FALSE)=\"-\"),1/0,VLOOKUP($A866,Economática!$A$3:$AI$823,10,FALSE)))","v":""},{"$f":"IF($A866=\"\",\"\",IF(OR(VLOOKUP($A866,Economática!$A$3:$AI$823,11,FALSE)=0,VLOOKUP($A866,Economática!$A$3:$AI$823,11,FALSE)=\"-\"),1/0,VLOOKUP($A866,Economática!$A$3:$AI$823,11,FALSE)))","v":""},{"$f":"IF($A866=\"\",\"\",IF(OR(VLOOKUP($A866,Economática!$A$3:$AI$823,12,FALSE)=0,VLOOKUP($A866,Economática!$A$3:$AI$823,12,FALSE)=\"-\"),1/0,VLOOKUP($A866,Economática!$A$3:$AI$823,12,FALSE)))","v":""},{"$f":"IF($A866=\"\",\"\",IF(OR(VLOOKUP($A866,Economática!$A$3:$AI$823,13,FALSE)=0,VLOOKUP($A866,Economática!$A$3:$AI$823,13,FALSE)=\"-\"),1/0,VLOOKUP($A866,Economática!$A$3:$AI$823,13,FALSE)))","v":""},{"$f":"IF($A866=\"\",\"\",IF(OR(VLOOKUP($A866,Economática!$A$3:$AI$823,14,FALSE)=0,VLOOKUP($A866,Economática!$A$3:$AI$823,14,FALSE)=\"-\"),1/0,VLOOKUP($A866,Economática!$A$3:$AI$823,14,FALSE)))","v":""},{"$f":"IF($A866=\"\",\"\",IF(OR(VLOOKUP($A866,Economática!$A$3:$AI$823,15,FALSE)=0,VLOOKUP($A866,Economática!$A$3:$AI$823,15,FALSE)=\"-\"),1/0,VLOOKUP($A866,Economática!$A$3:$AI$823,15,FALSE)))","v":""},{"$f":"IF($A866=\"\",\"\",IF(OR(VLOOKUP($A866,Economática!$A$3:$AI$823,16,FALSE)=0,VLOOKUP($A866,Economática!$A$3:$AI$823,16,FALSE)=\"-\"),1/0,VLOOKUP($A866,Economática!$A$3:$AI$823,16,FALSE)))","v":""},{"$f":"IF($A866=\"\",\"\",IF(OR(VLOOKUP($A866,Economática!$A$3:$AI$823,17,FALSE)=0,VLOOKUP($A866,Economática!$A$3:$AI$823,17,FALSE)=\"-\"),1/0,VLOOKUP($A866,Economática!$A$3:$AI$823,17,FALSE)))","v":""},{"$f":"IF($A866=\"\",\"\",IF(OR(VLOOKUP($A866,Economática!$A$3:$AI$823,18,FALSE)=0,VLOOKUP($A866,Economática!$A$3:$AI$823,18,FALSE)=\"-\"),1/0,VLOOKUP($A866,Economática!$A$3:$AI$823,18,FALSE)))","v":""},{"$f":"IF($A866=\"\",\"\",IF(OR(VLOOKUP($A866,Economática!$A$3:$AI$823,19,FALSE)=0,VLOOKUP($A866,Economática!$A$3:$AI$823,19,FALSE)=\"-\"),1/0,VLOOKUP($A866,Economática!$A$3:$AI$823,19,FALSE)))","v":""},{"$f":"IF($A866=\"\",\"\",VLOOKUP($A866,Economática!$A$3:$AI$823,20,FALSE)/E866)","v":""},"","","",{"$f":"IF($A866=\"\",\"\",IF(OR(VLOOKUP($A866,Economática!$A$3:$AI$823,21,FALSE)/100=0,VLOOKUP($A866,Economática!$A$3:$AI$823,21,FALSE)/100=\"-\"),1/0,VLOOKUP($A866,Economática!$A$3:$AI$823,21,FALSE)/100))","v":""},{"$f":"IF($A866=\"\",\"\",IF(OR(VLOOKUP($A866,Economática!$A$3:$AI$823,22,FALSE)/100=0,VLOOKUP($A866,Economática!$A$3:$AI$823,22,FALSE)/100=\"-\"),1/0,VLOOKUP($A866,Economática!$A$3:$AI$823,22,FALSE)/100))","v":""},{"$f":"IF($A866=\"\",\"\",IF(OR(VLOOKUP($A866,Economática!$A$3:$AI$823,23,FALSE)=0,VLOOKUP($A866,Economática!$A$3:$AI$823,23,FALSE)=\"-\"),1/0,VLOOKUP($A866,Economática!$A$3:$AI$823,23,FALSE)))","v":""},{"$f":"IF($A866=\"\",\"\",IF(OR(VLOOKUP($A866,Economática!$A$3:$AI$823,24,FALSE)=0,VLOOKUP($A866,Economática!$A$3:$AI$823,24,FALSE)=\"-\"),1/0,VLOOKUP($A866,Economática!$A$3:$AI$823,24,FALSE)))","v":""},{"$f":"IF($A866=\"\",\"\",IF(OR(VLOOKUP($A866,Economática!$A$3:$AI$823,25,FALSE)=0,VLOOKUP($A866,Economática!$A$3:$AI$823,25,FALSE)=\"-\"),1/0,VLOOKUP($A866,Economática!$A$3:$AI$823,25,FALSE)))","v":""},{"$f":"IF($A866=\"\",\"\",IF(ISERROR((F866+VLOOKUP($A866,Economática!$A$3:$AI$823,26,FALSE))/Y866),(F866+VLOOKUP($A866,Economática!$A$3:$AI$823,26,FALSE))/Y866,(F866+VLOOKUP($A866,Economática!$A$3:$AI$823,26,FALSE))/Y866))","v":""},{"$f":"IF($A866=\"\",\"\",IF(OR(-VLOOKUP($A866,Economática!$A$3:$AI$823,27,FALSE)=0,-VLOOKUP($A866,Economática!$A$3:$AI$823,27,FALSE)=\"-\"),1/0,-VLOOKUP($A866,Economática!$A$3:$AI$823,27,FALSE)))","v":""},"",{"$f":"IF($A866=\"\",\"\",IF(OR(VLOOKUP($A866,Economática!$A$3:$AI$823,28,FALSE)=0,VLOOKUP($A866,Economática!$A$3:$AI$823,28,FALSE)=\"-\"),1/0,VLOOKUP($A866,Economática!$A$3:$AI$823,28,FALSE)))","v":""},{"$f":"IF($A866=\"\",\"\",IF(OR(VLOOKUP($A866,Economática!$A$3:$AI$823,29,FALSE)=0,VLOOKUP($A866,Economática!$A$3:$AI$823,29,FALSE)=\"-\"),1/0,VLOOKUP($A866,Economática!$A$3:$AI$823,29,FALSE)))","v":""},{"$f":"IF($A866=\"\",\"\",IF(OR(VLOOKUP($A866,Economática!$A$3:$AI$823,30,FALSE)/E866=0,VLOOKUP($A866,Economática!$A$3:$AI$823,30,FALSE)/E866=\"-\",VLOOKUP($A866,Economática!$A$3:$AI$823,30,FALSE)/E866<33.33%,VLOOKUP($A866,Economática!$A$3:$AI$823,30,FALSE)/E866>100%),1/0,VLOOKUP($A866,Economática!$A$3:$AI$823,30,FALSE)/E866))","v":""},"",{"$f":"IF($A866=\"\",\"\",IF(OR(VLOOKUP($A866,Economática!$A$3:$AI$823,25,FALSE)=0,VLOOKUP($A866,Economática!$A$3:$AI$823,25,FALSE)=\"-\"),1/0,VLOOKUP($A866,Economática!$A$3:$AI$823,25,FALSE)))","v":""},{"$f":"CONCATENATE(Economática!B844,\" \",Economática!C844)","v":" "}]
[{"$f":"IF(Economática!AG845=\"\",\"\",Economática!AG845)","v":""},{"$f":"IF($A867=\"\",\"\",VLOOKUP(VLOOKUP($A867,Economática!$A$3:$AI$823,6,FALSE),Correção!$B$16:$C$36,2,FALSE))","v":""},{"$f":"IF(Economática!B845=\"\",\"\",Economática!B845)","v":""},{"$f":"IF($A867=\"\",\"\",IF(OR(VLOOKUP($A867,Economática!$A$3:$AI$823,8,FALSE)=0,VLOOKUP($A867,Economática!$A$3:$AI$823,8,FALSE)=\"-\"),1/0,VLOOKUP($A867,Economática!$A$3:$AI$823,8,FALSE)))","v":""},{"$f":"IF(A867=\"\",\"\",IF(ISERROR(VLOOKUP(A867,Correção!$B$2:$G$13,9,FALSE)),VLOOKUP($A867,Economática!$A$3:$AI$823,9,FALSE),VLOOKUP(A867,Correção!$B$2:$G$13,9,FALSE)))","v":""},{"$f":"IF($A867=\"\",\"\",Economática!G845)","v":""},{"$f":"IF($A867=\"\",\"\",IF(OR(VLOOKUP($A867,Economática!$A$3:$AI$823,10,FALSE)=0,VLOOKUP($A867,Economática!$A$3:$AI$823,10,FALSE)=\"-\"),1/0,VLOOKUP($A867,Economática!$A$3:$AI$823,10,FALSE)))","v":""},{"$f":"IF($A867=\"\",\"\",IF(OR(VLOOKUP($A867,Economática!$A$3:$AI$823,11,FALSE)=0,VLOOKUP($A867,Economática!$A$3:$AI$823,11,FALSE)=\"-\"),1/0,VLOOKUP($A867,Economática!$A$3:$AI$823,11,FALSE)))","v":""},{"$f":"IF($A867=\"\",\"\",IF(OR(VLOOKUP($A867,Economática!$A$3:$AI$823,12,FALSE)=0,VLOOKUP($A867,Economática!$A$3:$AI$823,12,FALSE)=\"-\"),1/0,VLOOKUP($A867,Economática!$A$3:$AI$823,12,FALSE)))","v":""},{"$f":"IF($A867=\"\",\"\",IF(OR(VLOOKUP($A867,Economática!$A$3:$AI$823,13,FALSE)=0,VLOOKUP($A867,Economática!$A$3:$AI$823,13,FALSE)=\"-\"),1/0,VLOOKUP($A867,Economática!$A$3:$AI$823,13,FALSE)))","v":""},{"$f":"IF($A867=\"\",\"\",IF(OR(VLOOKUP($A867,Economática!$A$3:$AI$823,14,FALSE)=0,VLOOKUP($A867,Economática!$A$3:$AI$823,14,FALSE)=\"-\"),1/0,VLOOKUP($A867,Economática!$A$3:$AI$823,14,FALSE)))","v":""},{"$f":"IF($A867=\"\",\"\",IF(OR(VLOOKUP($A867,Economática!$A$3:$AI$823,15,FALSE)=0,VLOOKUP($A867,Economática!$A$3:$AI$823,15,FALSE)=\"-\"),1/0,VLOOKUP($A867,Economática!$A$3:$AI$823,15,FALSE)))","v":""},{"$f":"IF($A867=\"\",\"\",IF(OR(VLOOKUP($A867,Economática!$A$3:$AI$823,16,FALSE)=0,VLOOKUP($A867,Economática!$A$3:$AI$823,16,FALSE)=\"-\"),1/0,VLOOKUP($A867,Economática!$A$3:$AI$823,16,FALSE)))","v":""},{"$f":"IF($A867=\"\",\"\",IF(OR(VLOOKUP($A867,Economática!$A$3:$AI$823,17,FALSE)=0,VLOOKUP($A867,Economática!$A$3:$AI$823,17,FALSE)=\"-\"),1/0,VLOOKUP($A867,Economática!$A$3:$AI$823,17,FALSE)))","v":""},{"$f":"IF($A867=\"\",\"\",IF(OR(VLOOKUP($A867,Economática!$A$3:$AI$823,18,FALSE)=0,VLOOKUP($A867,Economática!$A$3:$AI$823,18,FALSE)=\"-\"),1/0,VLOOKUP($A867,Economática!$A$3:$AI$823,18,FALSE)))","v":""},{"$f":"IF($A867=\"\",\"\",IF(OR(VLOOKUP($A867,Economática!$A$3:$AI$823,19,FALSE)=0,VLOOKUP($A867,Economática!$A$3:$AI$823,19,FALSE)=\"-\"),1/0,VLOOKUP($A867,Economática!$A$3:$AI$823,19,FALSE)))","v":""},{"$f":"IF($A867=\"\",\"\",VLOOKUP($A867,Economática!$A$3:$AI$823,20,FALSE)/E867)","v":""},"","","",{"$f":"IF($A867=\"\",\"\",IF(OR(VLOOKUP($A867,Economática!$A$3:$AI$823,21,FALSE)/100=0,VLOOKUP($A867,Economática!$A$3:$AI$823,21,FALSE)/100=\"-\"),1/0,VLOOKUP($A867,Economática!$A$3:$AI$823,21,FALSE)/100))","v":""},{"$f":"IF($A867=\"\",\"\",IF(OR(VLOOKUP($A867,Economática!$A$3:$AI$823,22,FALSE)/100=0,VLOOKUP($A867,Economática!$A$3:$AI$823,22,FALSE)/100=\"-\"),1/0,VLOOKUP($A867,Economática!$A$3:$AI$823,22,FALSE)/100))","v":""},{"$f":"IF($A867=\"\",\"\",IF(OR(VLOOKUP($A867,Economática!$A$3:$AI$823,23,FALSE)=0,VLOOKUP($A867,Economática!$A$3:$AI$823,23,FALSE)=\"-\"),1/0,VLOOKUP($A867,Economática!$A$3:$AI$823,23,FALSE)))","v":""},{"$f":"IF($A867=\"\",\"\",IF(OR(VLOOKUP($A867,Economática!$A$3:$AI$823,24,FALSE)=0,VLOOKUP($A867,Economática!$A$3:$AI$823,24,FALSE)=\"-\"),1/0,VLOOKUP($A867,Economática!$A$3:$AI$823,24,FALSE)))","v":""},{"$f":"IF($A867=\"\",\"\",IF(OR(VLOOKUP($A867,Economática!$A$3:$AI$823,25,FALSE)=0,VLOOKUP($A867,Economática!$A$3:$AI$823,25,FALSE)=\"-\"),1/0,VLOOKUP($A867,Economática!$A$3:$AI$823,25,FALSE)))","v":""},{"$f":"IF($A867=\"\",\"\",IF(ISERROR((F867+VLOOKUP($A867,Economática!$A$3:$AI$823,26,FALSE))/Y867),(F867+VLOOKUP($A867,Economática!$A$3:$AI$823,26,FALSE))/Y867,(F867+VLOOKUP($A867,Economática!$A$3:$AI$823,26,FALSE))/Y867))","v":""},{"$f":"IF($A867=\"\",\"\",IF(OR(-VLOOKUP($A867,Economática!$A$3:$AI$823,27,FALSE)=0,-VLOOKUP($A867,Economática!$A$3:$AI$823,27,FALSE)=\"-\"),1/0,-VLOOKUP($A867,Economática!$A$3:$AI$823,27,FALSE)))","v":""},"",{"$f":"IF($A867=\"\",\"\",IF(OR(VLOOKUP($A867,Economática!$A$3:$AI$823,28,FALSE)=0,VLOOKUP($A867,Economática!$A$3:$AI$823,28,FALSE)=\"-\"),1/0,VLOOKUP($A867,Economática!$A$3:$AI$823,28,FALSE)))","v":""},{"$f":"IF($A867=\"\",\"\",IF(OR(VLOOKUP($A867,Economática!$A$3:$AI$823,29,FALSE)=0,VLOOKUP($A867,Economática!$A$3:$AI$823,29,FALSE)=\"-\"),1/0,VLOOKUP($A867,Economática!$A$3:$AI$823,29,FALSE)))","v":""},{"$f":"IF($A867=\"\",\"\",IF(OR(VLOOKUP($A867,Economática!$A$3:$AI$823,30,FALSE)/E867=0,VLOOKUP($A867,Economática!$A$3:$AI$823,30,FALSE)/E867=\"-\",VLOOKUP($A867,Economática!$A$3:$AI$823,30,FALSE)/E867<33.33%,VLOOKUP($A867,Economática!$A$3:$AI$823,30,FALSE)/E867>100%),1/0,VLOOKUP($A867,Economática!$A$3:$AI$823,30,FALSE)/E867))","v":""},"",{"$f":"IF($A867=\"\",\"\",IF(OR(VLOOKUP($A867,Economática!$A$3:$AI$823,25,FALSE)=0,VLOOKUP($A867,Economática!$A$3:$AI$823,25,FALSE)=\"-\"),1/0,VLOOKUP($A867,Economática!$A$3:$AI$823,25,FALSE)))","v":""},{"$f":"CONCATENATE(Economática!B845,\" \",Economática!C845)","v":" "}]
[{"$f":"IF(Economática!AG846=\"\",\"\",Economática!AG846)","v":""},{"$f":"IF($A868=\"\",\"\",VLOOKUP(VLOOKUP($A868,Economática!$A$3:$AI$823,6,FALSE),Correção!$B$16:$C$36,2,FALSE))","v":""},{"$f":"IF(Economática!B846=\"\",\"\",Economática!B846)","v":""},{"$f":"IF($A868=\"\",\"\",IF(OR(VLOOKUP($A868,Economática!$A$3:$AI$823,8,FALSE)=0,VLOOKUP($A868,Economática!$A$3:$AI$823,8,FALSE)=\"-\"),1/0,VLOOKUP($A868,Economática!$A$3:$AI$823,8,FALSE)))","v":""},{"$f":"IF(A868=\"\",\"\",IF(ISERROR(VLOOKUP(A868,Correção!$B$2:$G$13,9,FALSE)),VLOOKUP($A868,Economática!$A$3:$AI$823,9,FALSE),VLOOKUP(A868,Correção!$B$2:$G$13,9,FALSE)))","v":""},{"$f":"IF($A868=\"\",\"\",Economática!G846)","v":""},{"$f":"IF($A868=\"\",\"\",IF(OR(VLOOKUP($A868,Economática!$A$3:$AI$823,10,FALSE)=0,VLOOKUP($A868,Economática!$A$3:$AI$823,10,FALSE)=\"-\"),1/0,VLOOKUP($A868,Economática!$A$3:$AI$823,10,FALSE)))","v":""},{"$f":"IF($A868=\"\",\"\",IF(OR(VLOOKUP($A868,Economática!$A$3:$AI$823,11,FALSE)=0,VLOOKUP($A868,Economática!$A$3:$AI$823,11,FALSE)=\"-\"),1/0,VLOOKUP($A868,Economática!$A$3:$AI$823,11,FALSE)))","v":""},{"$f":"IF($A868=\"\",\"\",IF(OR(VLOOKUP($A868,Economática!$A$3:$AI$823,12,FALSE)=0,VLOOKUP($A868,Economática!$A$3:$AI$823,12,FALSE)=\"-\"),1/0,VLOOKUP($A868,Economática!$A$3:$AI$823,12,FALSE)))","v":""},{"$f":"IF($A868=\"\",\"\",IF(OR(VLOOKUP($A868,Economática!$A$3:$AI$823,13,FALSE)=0,VLOOKUP($A868,Economática!$A$3:$AI$823,13,FALSE)=\"-\"),1/0,VLOOKUP($A868,Economática!$A$3:$AI$823,13,FALSE)))","v":""},{"$f":"IF($A868=\"\",\"\",IF(OR(VLOOKUP($A868,Economática!$A$3:$AI$823,14,FALSE)=0,VLOOKUP($A868,Economática!$A$3:$AI$823,14,FALSE)=\"-\"),1/0,VLOOKUP($A868,Economática!$A$3:$AI$823,14,FALSE)))","v":""},{"$f":"IF($A868=\"\",\"\",IF(OR(VLOOKUP($A868,Economática!$A$3:$AI$823,15,FALSE)=0,VLOOKUP($A868,Economática!$A$3:$AI$823,15,FALSE)=\"-\"),1/0,VLOOKUP($A868,Economática!$A$3:$AI$823,15,FALSE)))","v":""},{"$f":"IF($A868=\"\",\"\",IF(OR(VLOOKUP($A868,Economática!$A$3:$AI$823,16,FALSE)=0,VLOOKUP($A868,Economática!$A$3:$AI$823,16,FALSE)=\"-\"),1/0,VLOOKUP($A868,Economática!$A$3:$AI$823,16,FALSE)))","v":""},{"$f":"IF($A868=\"\",\"\",IF(OR(VLOOKUP($A868,Economática!$A$3:$AI$823,17,FALSE)=0,VLOOKUP($A868,Economática!$A$3:$AI$823,17,FALSE)=\"-\"),1/0,VLOOKUP($A868,Economática!$A$3:$AI$823,17,FALSE)))","v":""},{"$f":"IF($A868=\"\",\"\",IF(OR(VLOOKUP($A868,Economática!$A$3:$AI$823,18,FALSE)=0,VLOOKUP($A868,Economática!$A$3:$AI$823,18,FALSE)=\"-\"),1/0,VLOOKUP($A868,Economática!$A$3:$AI$823,18,FALSE)))","v":""},{"$f":"IF($A868=\"\",\"\",IF(OR(VLOOKUP($A868,Economática!$A$3:$AI$823,19,FALSE)=0,VLOOKUP($A868,Economática!$A$3:$AI$823,19,FALSE)=\"-\"),1/0,VLOOKUP($A868,Economática!$A$3:$AI$823,19,FALSE)))","v":""},{"$f":"IF($A868=\"\",\"\",VLOOKUP($A868,Economática!$A$3:$AI$823,20,FALSE)/E868)","v":""},"","","",{"$f":"IF($A868=\"\",\"\",IF(OR(VLOOKUP($A868,Economática!$A$3:$AI$823,21,FALSE)/100=0,VLOOKUP($A868,Economática!$A$3:$AI$823,21,FALSE)/100=\"-\"),1/0,VLOOKUP($A868,Economática!$A$3:$AI$823,21,FALSE)/100))","v":""},{"$f":"IF($A868=\"\",\"\",IF(OR(VLOOKUP($A868,Economática!$A$3:$AI$823,22,FALSE)/100=0,VLOOKUP($A868,Economática!$A$3:$AI$823,22,FALSE)/100=\"-\"),1/0,VLOOKUP($A868,Economática!$A$3:$AI$823,22,FALSE)/100))","v":""},{"$f":"IF($A868=\"\",\"\",IF(OR(VLOOKUP($A868,Economática!$A$3:$AI$823,23,FALSE)=0,VLOOKUP($A868,Economática!$A$3:$AI$823,23,FALSE)=\"-\"),1/0,VLOOKUP($A868,Economática!$A$3:$AI$823,23,FALSE)))","v":""},{"$f":"IF($A868=\"\",\"\",IF(OR(VLOOKUP($A868,Economática!$A$3:$AI$823,24,FALSE)=0,VLOOKUP($A868,Economática!$A$3:$AI$823,24,FALSE)=\"-\"),1/0,VLOOKUP($A868,Economática!$A$3:$AI$823,24,FALSE)))","v":""},{"$f":"IF($A868=\"\",\"\",IF(OR(VLOOKUP($A868,Economática!$A$3:$AI$823,25,FALSE)=0,VLOOKUP($A868,Economática!$A$3:$AI$823,25,FALSE)=\"-\"),1/0,VLOOKUP($A868,Economática!$A$3:$AI$823,25,FALSE)))","v":""},{"$f":"IF($A868=\"\",\"\",IF(ISERROR((F868+VLOOKUP($A868,Economática!$A$3:$AI$823,26,FALSE))/Y868),(F868+VLOOKUP($A868,Economática!$A$3:$AI$823,26,FALSE))/Y868,(F868+VLOOKUP($A868,Economática!$A$3:$AI$823,26,FALSE))/Y868))","v":""},{"$f":"IF($A868=\"\",\"\",IF(OR(-VLOOKUP($A868,Economática!$A$3:$AI$823,27,FALSE)=0,-VLOOKUP($A868,Economática!$A$3:$AI$823,27,FALSE)=\"-\"),1/0,-VLOOKUP($A868,Economática!$A$3:$AI$823,27,FALSE)))","v":""},"",{"$f":"IF($A868=\"\",\"\",IF(OR(VLOOKUP($A868,Economática!$A$3:$AI$823,28,FALSE)=0,VLOOKUP($A868,Economática!$A$3:$AI$823,28,FALSE)=\"-\"),1/0,VLOOKUP($A868,Economática!$A$3:$AI$823,28,FALSE)))","v":""},{"$f":"IF($A868=\"\",\"\",IF(OR(VLOOKUP($A868,Economática!$A$3:$AI$823,29,FALSE)=0,VLOOKUP($A868,Economática!$A$3:$AI$823,29,FALSE)=\"-\"),1/0,VLOOKUP($A868,Economática!$A$3:$AI$823,29,FALSE)))","v":""},{"$f":"IF($A868=\"\",\"\",IF(OR(VLOOKUP($A868,Economática!$A$3:$AI$823,30,FALSE)/E868=0,VLOOKUP($A868,Economática!$A$3:$AI$823,30,FALSE)/E868=\"-\",VLOOKUP($A868,Economática!$A$3:$AI$823,30,FALSE)/E868<33.33%,VLOOKUP($A868,Economática!$A$3:$AI$823,30,FALSE)/E868>100%),1/0,VLOOKUP($A868,Economática!$A$3:$AI$823,30,FALSE)/E868))","v":""},"",{"$f":"IF($A868=\"\",\"\",IF(OR(VLOOKUP($A868,Economática!$A$3:$AI$823,25,FALSE)=0,VLOOKUP($A868,Economática!$A$3:$AI$823,25,FALSE)=\"-\"),1/0,VLOOKUP($A868,Economática!$A$3:$AI$823,25,FALSE)))","v":""},{"$f":"CONCATENATE(Economática!B846,\" \",Economática!C846)","v":" "}]
[{"$f":"IF(Economática!AG847=\"\",\"\",Economática!AG847)","v":""},{"$f":"IF($A869=\"\",\"\",VLOOKUP(VLOOKUP($A869,Economática!$A$3:$AI$823,6,FALSE),Correção!$B$16:$C$36,2,FALSE))","v":""},{"$f":"IF(Economática!B847=\"\",\"\",Economática!B847)","v":""},{"$f":"IF($A869=\"\",\"\",IF(OR(VLOOKUP($A869,Economática!$A$3:$AI$823,8,FALSE)=0,VLOOKUP($A869,Economática!$A$3:$AI$823,8,FALSE)=\"-\"),1/0,VLOOKUP($A869,Economática!$A$3:$AI$823,8,FALSE)))","v":""},{"$f":"IF(A869=\"\",\"\",IF(ISERROR(VLOOKUP(A869,Correção!$B$2:$G$13,9,FALSE)),VLOOKUP($A869,Economática!$A$3:$AI$823,9,FALSE),VLOOKUP(A869,Correção!$B$2:$G$13,9,FALSE)))","v":""},{"$f":"IF($A869=\"\",\"\",Economática!G847)","v":""},{"$f":"IF($A869=\"\",\"\",IF(OR(VLOOKUP($A869,Economática!$A$3:$AI$823,10,FALSE)=0,VLOOKUP($A869,Economática!$A$3:$AI$823,10,FALSE)=\"-\"),1/0,VLOOKUP($A869,Economática!$A$3:$AI$823,10,FALSE)))","v":""},{"$f":"IF($A869=\"\",\"\",IF(OR(VLOOKUP($A869,Economática!$A$3:$AI$823,11,FALSE)=0,VLOOKUP($A869,Economática!$A$3:$AI$823,11,FALSE)=\"-\"),1/0,VLOOKUP($A869,Economática!$A$3:$AI$823,11,FALSE)))","v":""},{"$f":"IF($A869=\"\",\"\",IF(OR(VLOOKUP($A869,Economática!$A$3:$AI$823,12,FALSE)=0,VLOOKUP($A869,Economática!$A$3:$AI$823,12,FALSE)=\"-\"),1/0,VLOOKUP($A869,Economática!$A$3:$AI$823,12,FALSE)))","v":""},{"$f":"IF($A869=\"\",\"\",IF(OR(VLOOKUP($A869,Economática!$A$3:$AI$823,13,FALSE)=0,VLOOKUP($A869,Economática!$A$3:$AI$823,13,FALSE)=\"-\"),1/0,VLOOKUP($A869,Economática!$A$3:$AI$823,13,FALSE)))","v":""},{"$f":"IF($A869=\"\",\"\",IF(OR(VLOOKUP($A869,Economática!$A$3:$AI$823,14,FALSE)=0,VLOOKUP($A869,Economática!$A$3:$AI$823,14,FALSE)=\"-\"),1/0,VLOOKUP($A869,Economática!$A$3:$AI$823,14,FALSE)))","v":""},{"$f":"IF($A869=\"\",\"\",IF(OR(VLOOKUP($A869,Economática!$A$3:$AI$823,15,FALSE)=0,VLOOKUP($A869,Economática!$A$3:$AI$823,15,FALSE)=\"-\"),1/0,VLOOKUP($A869,Economática!$A$3:$AI$823,15,FALSE)))","v":""},{"$f":"IF($A869=\"\",\"\",IF(OR(VLOOKUP($A869,Economática!$A$3:$AI$823,16,FALSE)=0,VLOOKUP($A869,Economática!$A$3:$AI$823,16,FALSE)=\"-\"),1/0,VLOOKUP($A869,Economática!$A$3:$AI$823,16,FALSE)))","v":""},{"$f":"IF($A869=\"\",\"\",IF(OR(VLOOKUP($A869,Economática!$A$3:$AI$823,17,FALSE)=0,VLOOKUP($A869,Economática!$A$3:$AI$823,17,FALSE)=\"-\"),1/0,VLOOKUP($A869,Economática!$A$3:$AI$823,17,FALSE)))","v":""},{"$f":"IF($A869=\"\",\"\",IF(OR(VLOOKUP($A869,Economática!$A$3:$AI$823,18,FALSE)=0,VLOOKUP($A869,Economática!$A$3:$AI$823,18,FALSE)=\"-\"),1/0,VLOOKUP($A869,Economática!$A$3:$AI$823,18,FALSE)))","v":""},{"$f":"IF($A869=\"\",\"\",IF(OR(VLOOKUP($A869,Economática!$A$3:$AI$823,19,FALSE)=0,VLOOKUP($A869,Economática!$A$3:$AI$823,19,FALSE)=\"-\"),1/0,VLOOKUP($A869,Economática!$A$3:$AI$823,19,FALSE)))","v":""},{"$f":"IF($A869=\"\",\"\",VLOOKUP($A869,Economática!$A$3:$AI$823,20,FALSE)/E869)","v":""},"","","",{"$f":"IF($A869=\"\",\"\",IF(OR(VLOOKUP($A869,Economática!$A$3:$AI$823,21,FALSE)/100=0,VLOOKUP($A869,Economática!$A$3:$AI$823,21,FALSE)/100=\"-\"),1/0,VLOOKUP($A869,Economática!$A$3:$AI$823,21,FALSE)/100))","v":""},{"$f":"IF($A869=\"\",\"\",IF(OR(VLOOKUP($A869,Economática!$A$3:$AI$823,22,FALSE)/100=0,VLOOKUP($A869,Economática!$A$3:$AI$823,22,FALSE)/100=\"-\"),1/0,VLOOKUP($A869,Economática!$A$3:$AI$823,22,FALSE)/100))","v":""},{"$f":"IF($A869=\"\",\"\",IF(OR(VLOOKUP($A869,Economática!$A$3:$AI$823,23,FALSE)=0,VLOOKUP($A869,Economática!$A$3:$AI$823,23,FALSE)=\"-\"),1/0,VLOOKUP($A869,Economática!$A$3:$AI$823,23,FALSE)))","v":""},{"$f":"IF($A869=\"\",\"\",IF(OR(VLOOKUP($A869,Economática!$A$3:$AI$823,24,FALSE)=0,VLOOKUP($A869,Economática!$A$3:$AI$823,24,FALSE)=\"-\"),1/0,VLOOKUP($A869,Economática!$A$3:$AI$823,24,FALSE)))","v":""},{"$f":"IF($A869=\"\",\"\",IF(OR(VLOOKUP($A869,Economática!$A$3:$AI$823,25,FALSE)=0,VLOOKUP($A869,Economática!$A$3:$AI$823,25,FALSE)=\"-\"),1/0,VLOOKUP($A869,Economática!$A$3:$AI$823,25,FALSE)))","v":""},{"$f":"IF($A869=\"\",\"\",IF(ISERROR((F869+VLOOKUP($A869,Economática!$A$3:$AI$823,26,FALSE))/Y869),(F869+VLOOKUP($A869,Economática!$A$3:$AI$823,26,FALSE))/Y869,(F869+VLOOKUP($A869,Economática!$A$3:$AI$823,26,FALSE))/Y869))","v":""},{"$f":"IF($A869=\"\",\"\",IF(OR(-VLOOKUP($A869,Economática!$A$3:$AI$823,27,FALSE)=0,-VLOOKUP($A869,Economática!$A$3:$AI$823,27,FALSE)=\"-\"),1/0,-VLOOKUP($A869,Economática!$A$3:$AI$823,27,FALSE)))","v":""},"",{"$f":"IF($A869=\"\",\"\",IF(OR(VLOOKUP($A869,Economática!$A$3:$AI$823,28,FALSE)=0,VLOOKUP($A869,Economática!$A$3:$AI$823,28,FALSE)=\"-\"),1/0,VLOOKUP($A869,Economática!$A$3:$AI$823,28,FALSE)))","v":""},{"$f":"IF($A869=\"\",\"\",IF(OR(VLOOKUP($A869,Economática!$A$3:$AI$823,29,FALSE)=0,VLOOKUP($A869,Economática!$A$3:$AI$823,29,FALSE)=\"-\"),1/0,VLOOKUP($A869,Economática!$A$3:$AI$823,29,FALSE)))","v":""},{"$f":"IF($A869=\"\",\"\",IF(OR(VLOOKUP($A869,Economática!$A$3:$AI$823,30,FALSE)/E869=0,VLOOKUP($A869,Economática!$A$3:$AI$823,30,FALSE)/E869=\"-\",VLOOKUP($A869,Economática!$A$3:$AI$823,30,FALSE)/E869<33.33%,VLOOKUP($A869,Economática!$A$3:$AI$823,30,FALSE)/E869>100%),1/0,VLOOKUP($A869,Economática!$A$3:$AI$823,30,FALSE)/E869))","v":""},"",{"$f":"IF($A869=\"\",\"\",IF(OR(VLOOKUP($A869,Economática!$A$3:$AI$823,25,FALSE)=0,VLOOKUP($A869,Economática!$A$3:$AI$823,25,FALSE)=\"-\"),1/0,VLOOKUP($A869,Economática!$A$3:$AI$823,25,FALSE)))","v":""},{"$f":"CONCATENATE(Economática!B847,\" \",Economática!C847)","v":" "}]
[{"$f":"IF(Economática!AG848=\"\",\"\",Economática!AG848)","v":""},{"$f":"IF($A870=\"\",\"\",VLOOKUP(VLOOKUP($A870,Economática!$A$3:$AI$823,6,FALSE),Correção!$B$16:$C$36,2,FALSE))","v":""},{"$f":"IF(Economática!B848=\"\",\"\",Economática!B848)","v":""},{"$f":"IF($A870=\"\",\"\",IF(OR(VLOOKUP($A870,Economática!$A$3:$AI$823,8,FALSE)=0,VLOOKUP($A870,Economática!$A$3:$AI$823,8,FALSE)=\"-\"),1/0,VLOOKUP($A870,Economática!$A$3:$AI$823,8,FALSE)))","v":""},{"$f":"IF(A870=\"\",\"\",IF(ISERROR(VLOOKUP(A870,Correção!$B$2:$G$13,9,FALSE)),VLOOKUP($A870,Economática!$A$3:$AI$823,9,FALSE),VLOOKUP(A870,Correção!$B$2:$G$13,9,FALSE)))","v":""},{"$f":"IF($A870=\"\",\"\",Economática!G848)","v":""},{"$f":"IF($A870=\"\",\"\",IF(OR(VLOOKUP($A870,Economática!$A$3:$AI$823,10,FALSE)=0,VLOOKUP($A870,Economática!$A$3:$AI$823,10,FALSE)=\"-\"),1/0,VLOOKUP($A870,Economática!$A$3:$AI$823,10,FALSE)))","v":""},{"$f":"IF($A870=\"\",\"\",IF(OR(VLOOKUP($A870,Economática!$A$3:$AI$823,11,FALSE)=0,VLOOKUP($A870,Economática!$A$3:$AI$823,11,FALSE)=\"-\"),1/0,VLOOKUP($A870,Economática!$A$3:$AI$823,11,FALSE)))","v":""},{"$f":"IF($A870=\"\",\"\",IF(OR(VLOOKUP($A870,Economática!$A$3:$AI$823,12,FALSE)=0,VLOOKUP($A870,Economática!$A$3:$AI$823,12,FALSE)=\"-\"),1/0,VLOOKUP($A870,Economática!$A$3:$AI$823,12,FALSE)))","v":""},{"$f":"IF($A870=\"\",\"\",IF(OR(VLOOKUP($A870,Economática!$A$3:$AI$823,13,FALSE)=0,VLOOKUP($A870,Economática!$A$3:$AI$823,13,FALSE)=\"-\"),1/0,VLOOKUP($A870,Economática!$A$3:$AI$823,13,FALSE)))","v":""},{"$f":"IF($A870=\"\",\"\",IF(OR(VLOOKUP($A870,Economática!$A$3:$AI$823,14,FALSE)=0,VLOOKUP($A870,Economática!$A$3:$AI$823,14,FALSE)=\"-\"),1/0,VLOOKUP($A870,Economática!$A$3:$AI$823,14,FALSE)))","v":""},{"$f":"IF($A870=\"\",\"\",IF(OR(VLOOKUP($A870,Economática!$A$3:$AI$823,15,FALSE)=0,VLOOKUP($A870,Economática!$A$3:$AI$823,15,FALSE)=\"-\"),1/0,VLOOKUP($A870,Economática!$A$3:$AI$823,15,FALSE)))","v":""},{"$f":"IF($A870=\"\",\"\",IF(OR(VLOOKUP($A870,Economática!$A$3:$AI$823,16,FALSE)=0,VLOOKUP($A870,Economática!$A$3:$AI$823,16,FALSE)=\"-\"),1/0,VLOOKUP($A870,Economática!$A$3:$AI$823,16,FALSE)))","v":""},{"$f":"IF($A870=\"\",\"\",IF(OR(VLOOKUP($A870,Economática!$A$3:$AI$823,17,FALSE)=0,VLOOKUP($A870,Economática!$A$3:$AI$823,17,FALSE)=\"-\"),1/0,VLOOKUP($A870,Economática!$A$3:$AI$823,17,FALSE)))","v":""},{"$f":"IF($A870=\"\",\"\",IF(OR(VLOOKUP($A870,Economática!$A$3:$AI$823,18,FALSE)=0,VLOOKUP($A870,Economática!$A$3:$AI$823,18,FALSE)=\"-\"),1/0,VLOOKUP($A870,Economática!$A$3:$AI$823,18,FALSE)))","v":""},{"$f":"IF($A870=\"\",\"\",IF(OR(VLOOKUP($A870,Economática!$A$3:$AI$823,19,FALSE)=0,VLOOKUP($A870,Economática!$A$3:$AI$823,19,FALSE)=\"-\"),1/0,VLOOKUP($A870,Economática!$A$3:$AI$823,19,FALSE)))","v":""},{"$f":"IF($A870=\"\",\"\",VLOOKUP($A870,Economática!$A$3:$AI$823,20,FALSE)/E870)","v":""},"","","",{"$f":"IF($A870=\"\",\"\",IF(OR(VLOOKUP($A870,Economática!$A$3:$AI$823,21,FALSE)/100=0,VLOOKUP($A870,Economática!$A$3:$AI$823,21,FALSE)/100=\"-\"),1/0,VLOOKUP($A870,Economática!$A$3:$AI$823,21,FALSE)/100))","v":""},{"$f":"IF($A870=\"\",\"\",IF(OR(VLOOKUP($A870,Economática!$A$3:$AI$823,22,FALSE)/100=0,VLOOKUP($A870,Economática!$A$3:$AI$823,22,FALSE)/100=\"-\"),1/0,VLOOKUP($A870,Economática!$A$3:$AI$823,22,FALSE)/100))","v":""},{"$f":"IF($A870=\"\",\"\",IF(OR(VLOOKUP($A870,Economática!$A$3:$AI$823,23,FALSE)=0,VLOOKUP($A870,Economática!$A$3:$AI$823,23,FALSE)=\"-\"),1/0,VLOOKUP($A870,Economática!$A$3:$AI$823,23,FALSE)))","v":""},{"$f":"IF($A870=\"\",\"\",IF(OR(VLOOKUP($A870,Economática!$A$3:$AI$823,24,FALSE)=0,VLOOKUP($A870,Economática!$A$3:$AI$823,24,FALSE)=\"-\"),1/0,VLOOKUP($A870,Economática!$A$3:$AI$823,24,FALSE)))","v":""},{"$f":"IF($A870=\"\",\"\",IF(OR(VLOOKUP($A870,Economática!$A$3:$AI$823,25,FALSE)=0,VLOOKUP($A870,Economática!$A$3:$AI$823,25,FALSE)=\"-\"),1/0,VLOOKUP($A870,Economática!$A$3:$AI$823,25,FALSE)))","v":""},{"$f":"IF($A870=\"\",\"\",IF(ISERROR((F870+VLOOKUP($A870,Economática!$A$3:$AI$823,26,FALSE))/Y870),(F870+VLOOKUP($A870,Economática!$A$3:$AI$823,26,FALSE))/Y870,(F870+VLOOKUP($A870,Economática!$A$3:$AI$823,26,FALSE))/Y870))","v":""},{"$f":"IF($A870=\"\",\"\",IF(OR(-VLOOKUP($A870,Economática!$A$3:$AI$823,27,FALSE)=0,-VLOOKUP($A870,Economática!$A$3:$AI$823,27,FALSE)=\"-\"),1/0,-VLOOKUP($A870,Economática!$A$3:$AI$823,27,FALSE)))","v":""},"",{"$f":"IF($A870=\"\",\"\",IF(OR(VLOOKUP($A870,Economática!$A$3:$AI$823,28,FALSE)=0,VLOOKUP($A870,Economática!$A$3:$AI$823,28,FALSE)=\"-\"),1/0,VLOOKUP($A870,Economática!$A$3:$AI$823,28,FALSE)))","v":""},{"$f":"IF($A870=\"\",\"\",IF(OR(VLOOKUP($A870,Economática!$A$3:$AI$823,29,FALSE)=0,VLOOKUP($A870,Economática!$A$3:$AI$823,29,FALSE)=\"-\"),1/0,VLOOKUP($A870,Economática!$A$3:$AI$823,29,FALSE)))","v":""},{"$f":"IF($A870=\"\",\"\",IF(OR(VLOOKUP($A870,Economática!$A$3:$AI$823,30,FALSE)/E870=0,VLOOKUP($A870,Economática!$A$3:$AI$823,30,FALSE)/E870=\"-\",VLOOKUP($A870,Economática!$A$3:$AI$823,30,FALSE)/E870<33.33%,VLOOKUP($A870,Economática!$A$3:$AI$823,30,FALSE)/E870>100%),1/0,VLOOKUP($A870,Economática!$A$3:$AI$823,30,FALSE)/E870))","v":""},"",{"$f":"IF($A870=\"\",\"\",IF(OR(VLOOKUP($A870,Economática!$A$3:$AI$823,25,FALSE)=0,VLOOKUP($A870,Economática!$A$3:$AI$823,25,FALSE)=\"-\"),1/0,VLOOKUP($A870,Economática!$A$3:$AI$823,25,FALSE)))","v":""},{"$f":"CONCATENATE(Economática!B848,\" \",Economática!C848)","v":" "}]
[{"$f":"IF(Economática!AG849=\"\",\"\",Economática!AG849)","v":""},{"$f":"IF($A871=\"\",\"\",VLOOKUP(VLOOKUP($A871,Economática!$A$3:$AI$823,6,FALSE),Correção!$B$16:$C$36,2,FALSE))","v":""},{"$f":"IF(Economática!B849=\"\",\"\",Economática!B849)","v":""},{"$f":"IF($A871=\"\",\"\",IF(OR(VLOOKUP($A871,Economática!$A$3:$AI$823,8,FALSE)=0,VLOOKUP($A871,Economática!$A$3:$AI$823,8,FALSE)=\"-\"),1/0,VLOOKUP($A871,Economática!$A$3:$AI$823,8,FALSE)))","v":""},{"$f":"IF(A871=\"\",\"\",IF(ISERROR(VLOOKUP(A871,Correção!$B$2:$G$13,9,FALSE)),VLOOKUP($A871,Economática!$A$3:$AI$823,9,FALSE),VLOOKUP(A871,Correção!$B$2:$G$13,9,FALSE)))","v":""},{"$f":"IF($A871=\"\",\"\",Economática!G849)","v":""},{"$f":"IF($A871=\"\",\"\",IF(OR(VLOOKUP($A871,Economática!$A$3:$AI$823,10,FALSE)=0,VLOOKUP($A871,Economática!$A$3:$AI$823,10,FALSE)=\"-\"),1/0,VLOOKUP($A871,Economática!$A$3:$AI$823,10,FALSE)))","v":""},{"$f":"IF($A871=\"\",\"\",IF(OR(VLOOKUP($A871,Economática!$A$3:$AI$823,11,FALSE)=0,VLOOKUP($A871,Economática!$A$3:$AI$823,11,FALSE)=\"-\"),1/0,VLOOKUP($A871,Economática!$A$3:$AI$823,11,FALSE)))","v":""},{"$f":"IF($A871=\"\",\"\",IF(OR(VLOOKUP($A871,Economática!$A$3:$AI$823,12,FALSE)=0,VLOOKUP($A871,Economática!$A$3:$AI$823,12,FALSE)=\"-\"),1/0,VLOOKUP($A871,Economática!$A$3:$AI$823,12,FALSE)))","v":""},{"$f":"IF($A871=\"\",\"\",IF(OR(VLOOKUP($A871,Economática!$A$3:$AI$823,13,FALSE)=0,VLOOKUP($A871,Economática!$A$3:$AI$823,13,FALSE)=\"-\"),1/0,VLOOKUP($A871,Economática!$A$3:$AI$823,13,FALSE)))","v":""},{"$f":"IF($A871=\"\",\"\",IF(OR(VLOOKUP($A871,Economática!$A$3:$AI$823,14,FALSE)=0,VLOOKUP($A871,Economática!$A$3:$AI$823,14,FALSE)=\"-\"),1/0,VLOOKUP($A871,Economática!$A$3:$AI$823,14,FALSE)))","v":""},{"$f":"IF($A871=\"\",\"\",IF(OR(VLOOKUP($A871,Economática!$A$3:$AI$823,15,FALSE)=0,VLOOKUP($A871,Economática!$A$3:$AI$823,15,FALSE)=\"-\"),1/0,VLOOKUP($A871,Economática!$A$3:$AI$823,15,FALSE)))","v":""},{"$f":"IF($A871=\"\",\"\",IF(OR(VLOOKUP($A871,Economática!$A$3:$AI$823,16,FALSE)=0,VLOOKUP($A871,Economática!$A$3:$AI$823,16,FALSE)=\"-\"),1/0,VLOOKUP($A871,Economática!$A$3:$AI$823,16,FALSE)))","v":""},{"$f":"IF($A871=\"\",\"\",IF(OR(VLOOKUP($A871,Economática!$A$3:$AI$823,17,FALSE)=0,VLOOKUP($A871,Economática!$A$3:$AI$823,17,FALSE)=\"-\"),1/0,VLOOKUP($A871,Economática!$A$3:$AI$823,17,FALSE)))","v":""},{"$f":"IF($A871=\"\",\"\",IF(OR(VLOOKUP($A871,Economática!$A$3:$AI$823,18,FALSE)=0,VLOOKUP($A871,Economática!$A$3:$AI$823,18,FALSE)=\"-\"),1/0,VLOOKUP($A871,Economática!$A$3:$AI$823,18,FALSE)))","v":""},{"$f":"IF($A871=\"\",\"\",IF(OR(VLOOKUP($A871,Economática!$A$3:$AI$823,19,FALSE)=0,VLOOKUP($A871,Economática!$A$3:$AI$823,19,FALSE)=\"-\"),1/0,VLOOKUP($A871,Economática!$A$3:$AI$823,19,FALSE)))","v":""},{"$f":"IF($A871=\"\",\"\",VLOOKUP($A871,Economática!$A$3:$AI$823,20,FALSE)/E871)","v":""},"","","",{"$f":"IF($A871=\"\",\"\",IF(OR(VLOOKUP($A871,Economática!$A$3:$AI$823,21,FALSE)/100=0,VLOOKUP($A871,Economática!$A$3:$AI$823,21,FALSE)/100=\"-\"),1/0,VLOOKUP($A871,Economática!$A$3:$AI$823,21,FALSE)/100))","v":""},{"$f":"IF($A871=\"\",\"\",IF(OR(VLOOKUP($A871,Economática!$A$3:$AI$823,22,FALSE)/100=0,VLOOKUP($A871,Economática!$A$3:$AI$823,22,FALSE)/100=\"-\"),1/0,VLOOKUP($A871,Economática!$A$3:$AI$823,22,FALSE)/100))","v":""},{"$f":"IF($A871=\"\",\"\",IF(OR(VLOOKUP($A871,Economática!$A$3:$AI$823,23,FALSE)=0,VLOOKUP($A871,Economática!$A$3:$AI$823,23,FALSE)=\"-\"),1/0,VLOOKUP($A871,Economática!$A$3:$AI$823,23,FALSE)))","v":""},{"$f":"IF($A871=\"\",\"\",IF(OR(VLOOKUP($A871,Economática!$A$3:$AI$823,24,FALSE)=0,VLOOKUP($A871,Economática!$A$3:$AI$823,24,FALSE)=\"-\"),1/0,VLOOKUP($A871,Economática!$A$3:$AI$823,24,FALSE)))","v":""},{"$f":"IF($A871=\"\",\"\",IF(OR(VLOOKUP($A871,Economática!$A$3:$AI$823,25,FALSE)=0,VLOOKUP($A871,Economática!$A$3:$AI$823,25,FALSE)=\"-\"),1/0,VLOOKUP($A871,Economática!$A$3:$AI$823,25,FALSE)))","v":""},{"$f":"IF($A871=\"\",\"\",IF(ISERROR((F871+VLOOKUP($A871,Economática!$A$3:$AI$823,26,FALSE))/Y871),(F871+VLOOKUP($A871,Economática!$A$3:$AI$823,26,FALSE))/Y871,(F871+VLOOKUP($A871,Economática!$A$3:$AI$823,26,FALSE))/Y871))","v":""},{"$f":"IF($A871=\"\",\"\",IF(OR(-VLOOKUP($A871,Economática!$A$3:$AI$823,27,FALSE)=0,-VLOOKUP($A871,Economática!$A$3:$AI$823,27,FALSE)=\"-\"),1/0,-VLOOKUP($A871,Economática!$A$3:$AI$823,27,FALSE)))","v":""},"",{"$f":"IF($A871=\"\",\"\",IF(OR(VLOOKUP($A871,Economática!$A$3:$AI$823,28,FALSE)=0,VLOOKUP($A871,Economática!$A$3:$AI$823,28,FALSE)=\"-\"),1/0,VLOOKUP($A871,Economática!$A$3:$AI$823,28,FALSE)))","v":""},{"$f":"IF($A871=\"\",\"\",IF(OR(VLOOKUP($A871,Economática!$A$3:$AI$823,29,FALSE)=0,VLOOKUP($A871,Economática!$A$3:$AI$823,29,FALSE)=\"-\"),1/0,VLOOKUP($A871,Economática!$A$3:$AI$823,29,FALSE)))","v":""},{"$f":"IF($A871=\"\",\"\",IF(OR(VLOOKUP($A871,Economática!$A$3:$AI$823,30,FALSE)/E871=0,VLOOKUP($A871,Economática!$A$3:$AI$823,30,FALSE)/E871=\"-\",VLOOKUP($A871,Economática!$A$3:$AI$823,30,FALSE)/E871<33.33%,VLOOKUP($A871,Economática!$A$3:$AI$823,30,FALSE)/E871>100%),1/0,VLOOKUP($A871,Economática!$A$3:$AI$823,30,FALSE)/E871))","v":""},"",{"$f":"IF($A871=\"\",\"\",IF(OR(VLOOKUP($A871,Economática!$A$3:$AI$823,25,FALSE)=0,VLOOKUP($A871,Economática!$A$3:$AI$823,25,FALSE)=\"-\"),1/0,VLOOKUP($A871,Economática!$A$3:$AI$823,25,FALSE)))","v":""},{"$f":"CONCATENATE(Economática!B849,\" \",Economática!C849)","v":" "}]
[{"$f":"IF(Economática!AG850=\"\",\"\",Economática!AG850)","v":""},{"$f":"IF($A872=\"\",\"\",VLOOKUP(VLOOKUP($A872,Economática!$A$3:$AI$823,6,FALSE),Correção!$B$16:$C$36,2,FALSE))","v":""},{"$f":"IF(Economática!B850=\"\",\"\",Economática!B850)","v":""},{"$f":"IF($A872=\"\",\"\",IF(OR(VLOOKUP($A872,Economática!$A$3:$AI$823,8,FALSE)=0,VLOOKUP($A872,Economática!$A$3:$AI$823,8,FALSE)=\"-\"),1/0,VLOOKUP($A872,Economática!$A$3:$AI$823,8,FALSE)))","v":""},{"$f":"IF(A872=\"\",\"\",IF(ISERROR(VLOOKUP(A872,Correção!$B$2:$G$13,9,FALSE)),VLOOKUP($A872,Economática!$A$3:$AI$823,9,FALSE),VLOOKUP(A872,Correção!$B$2:$G$13,9,FALSE)))","v":""},{"$f":"IF($A872=\"\",\"\",Economática!G850)","v":""},{"$f":"IF($A872=\"\",\"\",IF(OR(VLOOKUP($A872,Economática!$A$3:$AI$823,10,FALSE)=0,VLOOKUP($A872,Economática!$A$3:$AI$823,10,FALSE)=\"-\"),1/0,VLOOKUP($A872,Economática!$A$3:$AI$823,10,FALSE)))","v":""},{"$f":"IF($A872=\"\",\"\",IF(OR(VLOOKUP($A872,Economática!$A$3:$AI$823,11,FALSE)=0,VLOOKUP($A872,Economática!$A$3:$AI$823,11,FALSE)=\"-\"),1/0,VLOOKUP($A872,Economática!$A$3:$AI$823,11,FALSE)))","v":""},{"$f":"IF($A872=\"\",\"\",IF(OR(VLOOKUP($A872,Economática!$A$3:$AI$823,12,FALSE)=0,VLOOKUP($A872,Economática!$A$3:$AI$823,12,FALSE)=\"-\"),1/0,VLOOKUP($A872,Economática!$A$3:$AI$823,12,FALSE)))","v":""},{"$f":"IF($A872=\"\",\"\",IF(OR(VLOOKUP($A872,Economática!$A$3:$AI$823,13,FALSE)=0,VLOOKUP($A872,Economática!$A$3:$AI$823,13,FALSE)=\"-\"),1/0,VLOOKUP($A872,Economática!$A$3:$AI$823,13,FALSE)))","v":""},{"$f":"IF($A872=\"\",\"\",IF(OR(VLOOKUP($A872,Economática!$A$3:$AI$823,14,FALSE)=0,VLOOKUP($A872,Economática!$A$3:$AI$823,14,FALSE)=\"-\"),1/0,VLOOKUP($A872,Economática!$A$3:$AI$823,14,FALSE)))","v":""},{"$f":"IF($A872=\"\",\"\",IF(OR(VLOOKUP($A872,Economática!$A$3:$AI$823,15,FALSE)=0,VLOOKUP($A872,Economática!$A$3:$AI$823,15,FALSE)=\"-\"),1/0,VLOOKUP($A872,Economática!$A$3:$AI$823,15,FALSE)))","v":""},{"$f":"IF($A872=\"\",\"\",IF(OR(VLOOKUP($A872,Economática!$A$3:$AI$823,16,FALSE)=0,VLOOKUP($A872,Economática!$A$3:$AI$823,16,FALSE)=\"-\"),1/0,VLOOKUP($A872,Economática!$A$3:$AI$823,16,FALSE)))","v":""},{"$f":"IF($A872=\"\",\"\",IF(OR(VLOOKUP($A872,Economática!$A$3:$AI$823,17,FALSE)=0,VLOOKUP($A872,Economática!$A$3:$AI$823,17,FALSE)=\"-\"),1/0,VLOOKUP($A872,Economática!$A$3:$AI$823,17,FALSE)))","v":""},{"$f":"IF($A872=\"\",\"\",IF(OR(VLOOKUP($A872,Economática!$A$3:$AI$823,18,FALSE)=0,VLOOKUP($A872,Economática!$A$3:$AI$823,18,FALSE)=\"-\"),1/0,VLOOKUP($A872,Economática!$A$3:$AI$823,18,FALSE)))","v":""},{"$f":"IF($A872=\"\",\"\",IF(OR(VLOOKUP($A872,Economática!$A$3:$AI$823,19,FALSE)=0,VLOOKUP($A872,Economática!$A$3:$AI$823,19,FALSE)=\"-\"),1/0,VLOOKUP($A872,Economática!$A$3:$AI$823,19,FALSE)))","v":""},{"$f":"IF($A872=\"\",\"\",VLOOKUP($A872,Economática!$A$3:$AI$823,20,FALSE)/E872)","v":""},"","","",{"$f":"IF($A872=\"\",\"\",IF(OR(VLOOKUP($A872,Economática!$A$3:$AI$823,21,FALSE)/100=0,VLOOKUP($A872,Economática!$A$3:$AI$823,21,FALSE)/100=\"-\"),1/0,VLOOKUP($A872,Economática!$A$3:$AI$823,21,FALSE)/100))","v":""},{"$f":"IF($A872=\"\",\"\",IF(OR(VLOOKUP($A872,Economática!$A$3:$AI$823,22,FALSE)/100=0,VLOOKUP($A872,Economática!$A$3:$AI$823,22,FALSE)/100=\"-\"),1/0,VLOOKUP($A872,Economática!$A$3:$AI$823,22,FALSE)/100))","v":""},{"$f":"IF($A872=\"\",\"\",IF(OR(VLOOKUP($A872,Economática!$A$3:$AI$823,23,FALSE)=0,VLOOKUP($A872,Economática!$A$3:$AI$823,23,FALSE)=\"-\"),1/0,VLOOKUP($A872,Economática!$A$3:$AI$823,23,FALSE)))","v":""},{"$f":"IF($A872=\"\",\"\",IF(OR(VLOOKUP($A872,Economática!$A$3:$AI$823,24,FALSE)=0,VLOOKUP($A872,Economática!$A$3:$AI$823,24,FALSE)=\"-\"),1/0,VLOOKUP($A872,Economática!$A$3:$AI$823,24,FALSE)))","v":""},{"$f":"IF($A872=\"\",\"\",IF(OR(VLOOKUP($A872,Economática!$A$3:$AI$823,25,FALSE)=0,VLOOKUP($A872,Economática!$A$3:$AI$823,25,FALSE)=\"-\"),1/0,VLOOKUP($A872,Economática!$A$3:$AI$823,25,FALSE)))","v":""},{"$f":"IF($A872=\"\",\"\",IF(ISERROR((F872+VLOOKUP($A872,Economática!$A$3:$AI$823,26,FALSE))/Y872),(F872+VLOOKUP($A872,Economática!$A$3:$AI$823,26,FALSE))/Y872,(F872+VLOOKUP($A872,Economática!$A$3:$AI$823,26,FALSE))/Y872))","v":""},{"$f":"IF($A872=\"\",\"\",IF(OR(-VLOOKUP($A872,Economática!$A$3:$AI$823,27,FALSE)=0,-VLOOKUP($A872,Economática!$A$3:$AI$823,27,FALSE)=\"-\"),1/0,-VLOOKUP($A872,Economática!$A$3:$AI$823,27,FALSE)))","v":""},"",{"$f":"IF($A872=\"\",\"\",IF(OR(VLOOKUP($A872,Economática!$A$3:$AI$823,28,FALSE)=0,VLOOKUP($A872,Economática!$A$3:$AI$823,28,FALSE)=\"-\"),1/0,VLOOKUP($A872,Economática!$A$3:$AI$823,28,FALSE)))","v":""},{"$f":"IF($A872=\"\",\"\",IF(OR(VLOOKUP($A872,Economática!$A$3:$AI$823,29,FALSE)=0,VLOOKUP($A872,Economática!$A$3:$AI$823,29,FALSE)=\"-\"),1/0,VLOOKUP($A872,Economática!$A$3:$AI$823,29,FALSE)))","v":""},{"$f":"IF($A872=\"\",\"\",IF(OR(VLOOKUP($A872,Economática!$A$3:$AI$823,30,FALSE)/E872=0,VLOOKUP($A872,Economática!$A$3:$AI$823,30,FALSE)/E872=\"-\",VLOOKUP($A872,Economática!$A$3:$AI$823,30,FALSE)/E872<33.33%,VLOOKUP($A872,Economática!$A$3:$AI$823,30,FALSE)/E872>100%),1/0,VLOOKUP($A872,Economática!$A$3:$AI$823,30,FALSE)/E872))","v":""},"",{"$f":"IF($A872=\"\",\"\",IF(OR(VLOOKUP($A872,Economática!$A$3:$AI$823,25,FALSE)=0,VLOOKUP($A872,Economática!$A$3:$AI$823,25,FALSE)=\"-\"),1/0,VLOOKUP($A872,Economática!$A$3:$AI$823,25,FALSE)))","v":""},{"$f":"CONCATENATE(Economática!B850,\" \",Economática!C850)","v":" "}]
[{"$f":"IF(Economática!AG851=\"\",\"\",Economática!AG851)","v":""},{"$f":"IF($A873=\"\",\"\",VLOOKUP(VLOOKUP($A873,Economática!$A$3:$AI$823,6,FALSE),Correção!$B$16:$C$36,2,FALSE))","v":""},{"$f":"IF(Economática!B851=\"\",\"\",Economática!B851)","v":""},{"$f":"IF($A873=\"\",\"\",IF(OR(VLOOKUP($A873,Economática!$A$3:$AI$823,8,FALSE)=0,VLOOKUP($A873,Economática!$A$3:$AI$823,8,FALSE)=\"-\"),1/0,VLOOKUP($A873,Economática!$A$3:$AI$823,8,FALSE)))","v":""},{"$f":"IF(A873=\"\",\"\",IF(ISERROR(VLOOKUP(A873,Correção!$B$2:$G$13,9,FALSE)),VLOOKUP($A873,Economática!$A$3:$AI$823,9,FALSE),VLOOKUP(A873,Correção!$B$2:$G$13,9,FALSE)))","v":""},{"$f":"IF($A873=\"\",\"\",Economática!G851)","v":""},{"$f":"IF($A873=\"\",\"\",IF(OR(VLOOKUP($A873,Economática!$A$3:$AI$823,10,FALSE)=0,VLOOKUP($A873,Economática!$A$3:$AI$823,10,FALSE)=\"-\"),1/0,VLOOKUP($A873,Economática!$A$3:$AI$823,10,FALSE)))","v":""},{"$f":"IF($A873=\"\",\"\",IF(OR(VLOOKUP($A873,Economática!$A$3:$AI$823,11,FALSE)=0,VLOOKUP($A873,Economática!$A$3:$AI$823,11,FALSE)=\"-\"),1/0,VLOOKUP($A873,Economática!$A$3:$AI$823,11,FALSE)))","v":""},{"$f":"IF($A873=\"\",\"\",IF(OR(VLOOKUP($A873,Economática!$A$3:$AI$823,12,FALSE)=0,VLOOKUP($A873,Economática!$A$3:$AI$823,12,FALSE)=\"-\"),1/0,VLOOKUP($A873,Economática!$A$3:$AI$823,12,FALSE)))","v":""},{"$f":"IF($A873=\"\",\"\",IF(OR(VLOOKUP($A873,Economática!$A$3:$AI$823,13,FALSE)=0,VLOOKUP($A873,Economática!$A$3:$AI$823,13,FALSE)=\"-\"),1/0,VLOOKUP($A873,Economática!$A$3:$AI$823,13,FALSE)))","v":""},{"$f":"IF($A873=\"\",\"\",IF(OR(VLOOKUP($A873,Economática!$A$3:$AI$823,14,FALSE)=0,VLOOKUP($A873,Economática!$A$3:$AI$823,14,FALSE)=\"-\"),1/0,VLOOKUP($A873,Economática!$A$3:$AI$823,14,FALSE)))","v":""},{"$f":"IF($A873=\"\",\"\",IF(OR(VLOOKUP($A873,Economática!$A$3:$AI$823,15,FALSE)=0,VLOOKUP($A873,Economática!$A$3:$AI$823,15,FALSE)=\"-\"),1/0,VLOOKUP($A873,Economática!$A$3:$AI$823,15,FALSE)))","v":""},{"$f":"IF($A873=\"\",\"\",IF(OR(VLOOKUP($A873,Economática!$A$3:$AI$823,16,FALSE)=0,VLOOKUP($A873,Economática!$A$3:$AI$823,16,FALSE)=\"-\"),1/0,VLOOKUP($A873,Economática!$A$3:$AI$823,16,FALSE)))","v":""},{"$f":"IF($A873=\"\",\"\",IF(OR(VLOOKUP($A873,Economática!$A$3:$AI$823,17,FALSE)=0,VLOOKUP($A873,Economática!$A$3:$AI$823,17,FALSE)=\"-\"),1/0,VLOOKUP($A873,Economática!$A$3:$AI$823,17,FALSE)))","v":""},{"$f":"IF($A873=\"\",\"\",IF(OR(VLOOKUP($A873,Economática!$A$3:$AI$823,18,FALSE)=0,VLOOKUP($A873,Economática!$A$3:$AI$823,18,FALSE)=\"-\"),1/0,VLOOKUP($A873,Economática!$A$3:$AI$823,18,FALSE)))","v":""},{"$f":"IF($A873=\"\",\"\",IF(OR(VLOOKUP($A873,Economática!$A$3:$AI$823,19,FALSE)=0,VLOOKUP($A873,Economática!$A$3:$AI$823,19,FALSE)=\"-\"),1/0,VLOOKUP($A873,Economática!$A$3:$AI$823,19,FALSE)))","v":""},{"$f":"IF($A873=\"\",\"\",VLOOKUP($A873,Economática!$A$3:$AI$823,20,FALSE)/E873)","v":""},"","","",{"$f":"IF($A873=\"\",\"\",IF(OR(VLOOKUP($A873,Economática!$A$3:$AI$823,21,FALSE)/100=0,VLOOKUP($A873,Economática!$A$3:$AI$823,21,FALSE)/100=\"-\"),1/0,VLOOKUP($A873,Economática!$A$3:$AI$823,21,FALSE)/100))","v":""},{"$f":"IF($A873=\"\",\"\",IF(OR(VLOOKUP($A873,Economática!$A$3:$AI$823,22,FALSE)/100=0,VLOOKUP($A873,Economática!$A$3:$AI$823,22,FALSE)/100=\"-\"),1/0,VLOOKUP($A873,Economática!$A$3:$AI$823,22,FALSE)/100))","v":""},{"$f":"IF($A873=\"\",\"\",IF(OR(VLOOKUP($A873,Economática!$A$3:$AI$823,23,FALSE)=0,VLOOKUP($A873,Economática!$A$3:$AI$823,23,FALSE)=\"-\"),1/0,VLOOKUP($A873,Economática!$A$3:$AI$823,23,FALSE)))","v":""},{"$f":"IF($A873=\"\",\"\",IF(OR(VLOOKUP($A873,Economática!$A$3:$AI$823,24,FALSE)=0,VLOOKUP($A873,Economática!$A$3:$AI$823,24,FALSE)=\"-\"),1/0,VLOOKUP($A873,Economática!$A$3:$AI$823,24,FALSE)))","v":""},{"$f":"IF($A873=\"\",\"\",IF(OR(VLOOKUP($A873,Economática!$A$3:$AI$823,25,FALSE)=0,VLOOKUP($A873,Economática!$A$3:$AI$823,25,FALSE)=\"-\"),1/0,VLOOKUP($A873,Economática!$A$3:$AI$823,25,FALSE)))","v":""},{"$f":"IF($A873=\"\",\"\",IF(ISERROR((F873+VLOOKUP($A873,Economática!$A$3:$AI$823,26,FALSE))/Y873),(F873+VLOOKUP($A873,Economática!$A$3:$AI$823,26,FALSE))/Y873,(F873+VLOOKUP($A873,Economática!$A$3:$AI$823,26,FALSE))/Y873))","v":""},{"$f":"IF($A873=\"\",\"\",IF(OR(-VLOOKUP($A873,Economática!$A$3:$AI$823,27,FALSE)=0,-VLOOKUP($A873,Economática!$A$3:$AI$823,27,FALSE)=\"-\"),1/0,-VLOOKUP($A873,Economática!$A$3:$AI$823,27,FALSE)))","v":""},"",{"$f":"IF($A873=\"\",\"\",IF(OR(VLOOKUP($A873,Economática!$A$3:$AI$823,28,FALSE)=0,VLOOKUP($A873,Economática!$A$3:$AI$823,28,FALSE)=\"-\"),1/0,VLOOKUP($A873,Economática!$A$3:$AI$823,28,FALSE)))","v":""},{"$f":"IF($A873=\"\",\"\",IF(OR(VLOOKUP($A873,Economática!$A$3:$AI$823,29,FALSE)=0,VLOOKUP($A873,Economática!$A$3:$AI$823,29,FALSE)=\"-\"),1/0,VLOOKUP($A873,Economática!$A$3:$AI$823,29,FALSE)))","v":""},{"$f":"IF($A873=\"\",\"\",IF(OR(VLOOKUP($A873,Economática!$A$3:$AI$823,30,FALSE)/E873=0,VLOOKUP($A873,Economática!$A$3:$AI$823,30,FALSE)/E873=\"-\",VLOOKUP($A873,Economática!$A$3:$AI$823,30,FALSE)/E873<33.33%,VLOOKUP($A873,Economática!$A$3:$AI$823,30,FALSE)/E873>100%),1/0,VLOOKUP($A873,Economática!$A$3:$AI$823,30,FALSE)/E873))","v":""},"",{"$f":"IF($A873=\"\",\"\",IF(OR(VLOOKUP($A873,Economática!$A$3:$AI$823,25,FALSE)=0,VLOOKUP($A873,Economática!$A$3:$AI$823,25,FALSE)=\"-\"),1/0,VLOOKUP($A873,Economática!$A$3:$AI$823,25,FALSE)))","v":""},{"$f":"CONCATENATE(Economática!B851,\" \",Economática!C851)","v":" "}]
[{"$f":"IF(Economática!AG852=\"\",\"\",Economática!AG852)","v":""},{"$f":"IF($A874=\"\",\"\",VLOOKUP(VLOOKUP($A874,Economática!$A$3:$AI$823,6,FALSE),Correção!$B$16:$C$36,2,FALSE))","v":""},{"$f":"IF(Economática!B852=\"\",\"\",Economática!B852)","v":""},{"$f":"IF($A874=\"\",\"\",IF(OR(VLOOKUP($A874,Economática!$A$3:$AI$823,8,FALSE)=0,VLOOKUP($A874,Economática!$A$3:$AI$823,8,FALSE)=\"-\"),1/0,VLOOKUP($A874,Economática!$A$3:$AI$823,8,FALSE)))","v":""},{"$f":"IF(A874=\"\",\"\",IF(ISERROR(VLOOKUP(A874,Correção!$B$2:$G$13,9,FALSE)),VLOOKUP($A874,Economática!$A$3:$AI$823,9,FALSE),VLOOKUP(A874,Correção!$B$2:$G$13,9,FALSE)))","v":""},{"$f":"IF($A874=\"\",\"\",Economática!G852)","v":""},{"$f":"IF($A874=\"\",\"\",IF(OR(VLOOKUP($A874,Economática!$A$3:$AI$823,10,FALSE)=0,VLOOKUP($A874,Economática!$A$3:$AI$823,10,FALSE)=\"-\"),1/0,VLOOKUP($A874,Economática!$A$3:$AI$823,10,FALSE)))","v":""},{"$f":"IF($A874=\"\",\"\",IF(OR(VLOOKUP($A874,Economática!$A$3:$AI$823,11,FALSE)=0,VLOOKUP($A874,Economática!$A$3:$AI$823,11,FALSE)=\"-\"),1/0,VLOOKUP($A874,Economática!$A$3:$AI$823,11,FALSE)))","v":""},{"$f":"IF($A874=\"\",\"\",IF(OR(VLOOKUP($A874,Economática!$A$3:$AI$823,12,FALSE)=0,VLOOKUP($A874,Economática!$A$3:$AI$823,12,FALSE)=\"-\"),1/0,VLOOKUP($A874,Economática!$A$3:$AI$823,12,FALSE)))","v":""},{"$f":"IF($A874=\"\",\"\",IF(OR(VLOOKUP($A874,Economática!$A$3:$AI$823,13,FALSE)=0,VLOOKUP($A874,Economática!$A$3:$AI$823,13,FALSE)=\"-\"),1/0,VLOOKUP($A874,Economática!$A$3:$AI$823,13,FALSE)))","v":""},{"$f":"IF($A874=\"\",\"\",IF(OR(VLOOKUP($A874,Economática!$A$3:$AI$823,14,FALSE)=0,VLOOKUP($A874,Economática!$A$3:$AI$823,14,FALSE)=\"-\"),1/0,VLOOKUP($A874,Economática!$A$3:$AI$823,14,FALSE)))","v":""},{"$f":"IF($A874=\"\",\"\",IF(OR(VLOOKUP($A874,Economática!$A$3:$AI$823,15,FALSE)=0,VLOOKUP($A874,Economática!$A$3:$AI$823,15,FALSE)=\"-\"),1/0,VLOOKUP($A874,Economática!$A$3:$AI$823,15,FALSE)))","v":""},{"$f":"IF($A874=\"\",\"\",IF(OR(VLOOKUP($A874,Economática!$A$3:$AI$823,16,FALSE)=0,VLOOKUP($A874,Economática!$A$3:$AI$823,16,FALSE)=\"-\"),1/0,VLOOKUP($A874,Economática!$A$3:$AI$823,16,FALSE)))","v":""},{"$f":"IF($A874=\"\",\"\",IF(OR(VLOOKUP($A874,Economática!$A$3:$AI$823,17,FALSE)=0,VLOOKUP($A874,Economática!$A$3:$AI$823,17,FALSE)=\"-\"),1/0,VLOOKUP($A874,Economática!$A$3:$AI$823,17,FALSE)))","v":""},{"$f":"IF($A874=\"\",\"\",IF(OR(VLOOKUP($A874,Economática!$A$3:$AI$823,18,FALSE)=0,VLOOKUP($A874,Economática!$A$3:$AI$823,18,FALSE)=\"-\"),1/0,VLOOKUP($A874,Economática!$A$3:$AI$823,18,FALSE)))","v":""},{"$f":"IF($A874=\"\",\"\",IF(OR(VLOOKUP($A874,Economática!$A$3:$AI$823,19,FALSE)=0,VLOOKUP($A874,Economática!$A$3:$AI$823,19,FALSE)=\"-\"),1/0,VLOOKUP($A874,Economática!$A$3:$AI$823,19,FALSE)))","v":""},{"$f":"IF($A874=\"\",\"\",VLOOKUP($A874,Economática!$A$3:$AI$823,20,FALSE)/E874)","v":""},"","","",{"$f":"IF($A874=\"\",\"\",IF(OR(VLOOKUP($A874,Economática!$A$3:$AI$823,21,FALSE)/100=0,VLOOKUP($A874,Economática!$A$3:$AI$823,21,FALSE)/100=\"-\"),1/0,VLOOKUP($A874,Economática!$A$3:$AI$823,21,FALSE)/100))","v":""},{"$f":"IF($A874=\"\",\"\",IF(OR(VLOOKUP($A874,Economática!$A$3:$AI$823,22,FALSE)/100=0,VLOOKUP($A874,Economática!$A$3:$AI$823,22,FALSE)/100=\"-\"),1/0,VLOOKUP($A874,Economática!$A$3:$AI$823,22,FALSE)/100))","v":""},{"$f":"IF($A874=\"\",\"\",IF(OR(VLOOKUP($A874,Economática!$A$3:$AI$823,23,FALSE)=0,VLOOKUP($A874,Economática!$A$3:$AI$823,23,FALSE)=\"-\"),1/0,VLOOKUP($A874,Economática!$A$3:$AI$823,23,FALSE)))","v":""},{"$f":"IF($A874=\"\",\"\",IF(OR(VLOOKUP($A874,Economática!$A$3:$AI$823,24,FALSE)=0,VLOOKUP($A874,Economática!$A$3:$AI$823,24,FALSE)=\"-\"),1/0,VLOOKUP($A874,Economática!$A$3:$AI$823,24,FALSE)))","v":""},{"$f":"IF($A874=\"\",\"\",IF(OR(VLOOKUP($A874,Economática!$A$3:$AI$823,25,FALSE)=0,VLOOKUP($A874,Economática!$A$3:$AI$823,25,FALSE)=\"-\"),1/0,VLOOKUP($A874,Economática!$A$3:$AI$823,25,FALSE)))","v":""},{"$f":"IF($A874=\"\",\"\",IF(ISERROR((F874+VLOOKUP($A874,Economática!$A$3:$AI$823,26,FALSE))/Y874),(F874+VLOOKUP($A874,Economática!$A$3:$AI$823,26,FALSE))/Y874,(F874+VLOOKUP($A874,Economática!$A$3:$AI$823,26,FALSE))/Y874))","v":""},{"$f":"IF($A874=\"\",\"\",IF(OR(-VLOOKUP($A874,Economática!$A$3:$AI$823,27,FALSE)=0,-VLOOKUP($A874,Economática!$A$3:$AI$823,27,FALSE)=\"-\"),1/0,-VLOOKUP($A874,Economática!$A$3:$AI$823,27,FALSE)))","v":""},"",{"$f":"IF($A874=\"\",\"\",IF(OR(VLOOKUP($A874,Economática!$A$3:$AI$823,28,FALSE)=0,VLOOKUP($A874,Economática!$A$3:$AI$823,28,FALSE)=\"-\"),1/0,VLOOKUP($A874,Economática!$A$3:$AI$823,28,FALSE)))","v":""},{"$f":"IF($A874=\"\",\"\",IF(OR(VLOOKUP($A874,Economática!$A$3:$AI$823,29,FALSE)=0,VLOOKUP($A874,Economática!$A$3:$AI$823,29,FALSE)=\"-\"),1/0,VLOOKUP($A874,Economática!$A$3:$AI$823,29,FALSE)))","v":""},{"$f":"IF($A874=\"\",\"\",IF(OR(VLOOKUP($A874,Economática!$A$3:$AI$823,30,FALSE)/E874=0,VLOOKUP($A874,Economática!$A$3:$AI$823,30,FALSE)/E874=\"-\",VLOOKUP($A874,Economática!$A$3:$AI$823,30,FALSE)/E874<33.33%,VLOOKUP($A874,Economática!$A$3:$AI$823,30,FALSE)/E874>100%),1/0,VLOOKUP($A874,Economática!$A$3:$AI$823,30,FALSE)/E874))","v":""},"",{"$f":"IF($A874=\"\",\"\",IF(OR(VLOOKUP($A874,Economática!$A$3:$AI$823,25,FALSE)=0,VLOOKUP($A874,Economática!$A$3:$AI$823,25,FALSE)=\"-\"),1/0,VLOOKUP($A874,Economática!$A$3:$AI$823,25,FALSE)))","v":""},{"$f":"CONCATENATE(Economática!B852,\" \",Economática!C852)","v":" "}]
[{"$f":"IF(Economática!AG853=\"\",\"\",Economática!AG853)","v":""},{"$f":"IF($A875=\"\",\"\",VLOOKUP(VLOOKUP($A875,Economática!$A$3:$AI$823,6,FALSE),Correção!$B$16:$C$36,2,FALSE))","v":""},{"$f":"IF(Economática!B853=\"\",\"\",Economática!B853)","v":""},{"$f":"IF($A875=\"\",\"\",IF(OR(VLOOKUP($A875,Economática!$A$3:$AI$823,8,FALSE)=0,VLOOKUP($A875,Economática!$A$3:$AI$823,8,FALSE)=\"-\"),1/0,VLOOKUP($A875,Economática!$A$3:$AI$823,8,FALSE)))","v":""},{"$f":"IF(A875=\"\",\"\",IF(ISERROR(VLOOKUP(A875,Correção!$B$2:$G$13,9,FALSE)),VLOOKUP($A875,Economática!$A$3:$AI$823,9,FALSE),VLOOKUP(A875,Correção!$B$2:$G$13,9,FALSE)))","v":""},{"$f":"IF($A875=\"\",\"\",Economática!G853)","v":""},{"$f":"IF($A875=\"\",\"\",IF(OR(VLOOKUP($A875,Economática!$A$3:$AI$823,10,FALSE)=0,VLOOKUP($A875,Economática!$A$3:$AI$823,10,FALSE)=\"-\"),1/0,VLOOKUP($A875,Economática!$A$3:$AI$823,10,FALSE)))","v":""},{"$f":"IF($A875=\"\",\"\",IF(OR(VLOOKUP($A875,Economática!$A$3:$AI$823,11,FALSE)=0,VLOOKUP($A875,Economática!$A$3:$AI$823,11,FALSE)=\"-\"),1/0,VLOOKUP($A875,Economática!$A$3:$AI$823,11,FALSE)))","v":""},{"$f":"IF($A875=\"\",\"\",IF(OR(VLOOKUP($A875,Economática!$A$3:$AI$823,12,FALSE)=0,VLOOKUP($A875,Economática!$A$3:$AI$823,12,FALSE)=\"-\"),1/0,VLOOKUP($A875,Economática!$A$3:$AI$823,12,FALSE)))","v":""},{"$f":"IF($A875=\"\",\"\",IF(OR(VLOOKUP($A875,Economática!$A$3:$AI$823,13,FALSE)=0,VLOOKUP($A875,Economática!$A$3:$AI$823,13,FALSE)=\"-\"),1/0,VLOOKUP($A875,Economática!$A$3:$AI$823,13,FALSE)))","v":""},{"$f":"IF($A875=\"\",\"\",IF(OR(VLOOKUP($A875,Economática!$A$3:$AI$823,14,FALSE)=0,VLOOKUP($A875,Economática!$A$3:$AI$823,14,FALSE)=\"-\"),1/0,VLOOKUP($A875,Economática!$A$3:$AI$823,14,FALSE)))","v":""},{"$f":"IF($A875=\"\",\"\",IF(OR(VLOOKUP($A875,Economática!$A$3:$AI$823,15,FALSE)=0,VLOOKUP($A875,Economática!$A$3:$AI$823,15,FALSE)=\"-\"),1/0,VLOOKUP($A875,Economática!$A$3:$AI$823,15,FALSE)))","v":""},{"$f":"IF($A875=\"\",\"\",IF(OR(VLOOKUP($A875,Economática!$A$3:$AI$823,16,FALSE)=0,VLOOKUP($A875,Economática!$A$3:$AI$823,16,FALSE)=\"-\"),1/0,VLOOKUP($A875,Economática!$A$3:$AI$823,16,FALSE)))","v":""},{"$f":"IF($A875=\"\",\"\",IF(OR(VLOOKUP($A875,Economática!$A$3:$AI$823,17,FALSE)=0,VLOOKUP($A875,Economática!$A$3:$AI$823,17,FALSE)=\"-\"),1/0,VLOOKUP($A875,Economática!$A$3:$AI$823,17,FALSE)))","v":""},{"$f":"IF($A875=\"\",\"\",IF(OR(VLOOKUP($A875,Economática!$A$3:$AI$823,18,FALSE)=0,VLOOKUP($A875,Economática!$A$3:$AI$823,18,FALSE)=\"-\"),1/0,VLOOKUP($A875,Economática!$A$3:$AI$823,18,FALSE)))","v":""},{"$f":"IF($A875=\"\",\"\",IF(OR(VLOOKUP($A875,Economática!$A$3:$AI$823,19,FALSE)=0,VLOOKUP($A875,Economática!$A$3:$AI$823,19,FALSE)=\"-\"),1/0,VLOOKUP($A875,Economática!$A$3:$AI$823,19,FALSE)))","v":""},{"$f":"IF($A875=\"\",\"\",VLOOKUP($A875,Economática!$A$3:$AI$823,20,FALSE)/E875)","v":""},"","","",{"$f":"IF($A875=\"\",\"\",IF(OR(VLOOKUP($A875,Economática!$A$3:$AI$823,21,FALSE)/100=0,VLOOKUP($A875,Economática!$A$3:$AI$823,21,FALSE)/100=\"-\"),1/0,VLOOKUP($A875,Economática!$A$3:$AI$823,21,FALSE)/100))","v":""},{"$f":"IF($A875=\"\",\"\",IF(OR(VLOOKUP($A875,Economática!$A$3:$AI$823,22,FALSE)/100=0,VLOOKUP($A875,Economática!$A$3:$AI$823,22,FALSE)/100=\"-\"),1/0,VLOOKUP($A875,Economática!$A$3:$AI$823,22,FALSE)/100))","v":""},{"$f":"IF($A875=\"\",\"\",IF(OR(VLOOKUP($A875,Economática!$A$3:$AI$823,23,FALSE)=0,VLOOKUP($A875,Economática!$A$3:$AI$823,23,FALSE)=\"-\"),1/0,VLOOKUP($A875,Economática!$A$3:$AI$823,23,FALSE)))","v":""},{"$f":"IF($A875=\"\",\"\",IF(OR(VLOOKUP($A875,Economática!$A$3:$AI$823,24,FALSE)=0,VLOOKUP($A875,Economática!$A$3:$AI$823,24,FALSE)=\"-\"),1/0,VLOOKUP($A875,Economática!$A$3:$AI$823,24,FALSE)))","v":""},{"$f":"IF($A875=\"\",\"\",IF(OR(VLOOKUP($A875,Economática!$A$3:$AI$823,25,FALSE)=0,VLOOKUP($A875,Economática!$A$3:$AI$823,25,FALSE)=\"-\"),1/0,VLOOKUP($A875,Economática!$A$3:$AI$823,25,FALSE)))","v":""},{"$f":"IF($A875=\"\",\"\",IF(ISERROR((F875+VLOOKUP($A875,Economática!$A$3:$AI$823,26,FALSE))/Y875),(F875+VLOOKUP($A875,Economática!$A$3:$AI$823,26,FALSE))/Y875,(F875+VLOOKUP($A875,Economática!$A$3:$AI$823,26,FALSE))/Y875))","v":""},{"$f":"IF($A875=\"\",\"\",IF(OR(-VLOOKUP($A875,Economática!$A$3:$AI$823,27,FALSE)=0,-VLOOKUP($A875,Economática!$A$3:$AI$823,27,FALSE)=\"-\"),1/0,-VLOOKUP($A875,Economática!$A$3:$AI$823,27,FALSE)))","v":""},"",{"$f":"IF($A875=\"\",\"\",IF(OR(VLOOKUP($A875,Economática!$A$3:$AI$823,28,FALSE)=0,VLOOKUP($A875,Economática!$A$3:$AI$823,28,FALSE)=\"-\"),1/0,VLOOKUP($A875,Economática!$A$3:$AI$823,28,FALSE)))","v":""},{"$f":"IF($A875=\"\",\"\",IF(OR(VLOOKUP($A875,Economática!$A$3:$AI$823,29,FALSE)=0,VLOOKUP($A875,Economática!$A$3:$AI$823,29,FALSE)=\"-\"),1/0,VLOOKUP($A875,Economática!$A$3:$AI$823,29,FALSE)))","v":""},{"$f":"IF($A875=\"\",\"\",IF(OR(VLOOKUP($A875,Economática!$A$3:$AI$823,30,FALSE)/E875=0,VLOOKUP($A875,Economática!$A$3:$AI$823,30,FALSE)/E875=\"-\",VLOOKUP($A875,Economática!$A$3:$AI$823,30,FALSE)/E875<33.33%,VLOOKUP($A875,Economática!$A$3:$AI$823,30,FALSE)/E875>100%),1/0,VLOOKUP($A875,Economática!$A$3:$AI$823,30,FALSE)/E875))","v":""},"",{"$f":"IF($A875=\"\",\"\",IF(OR(VLOOKUP($A875,Economática!$A$3:$AI$823,25,FALSE)=0,VLOOKUP($A875,Economática!$A$3:$AI$823,25,FALSE)=\"-\"),1/0,VLOOKUP($A875,Economática!$A$3:$AI$823,25,FALSE)))","v":""},{"$f":"CONCATENATE(Economática!B853,\" \",Economática!C853)","v":" "}]
[{"$f":"IF(Economática!AG854=\"\",\"\",Economática!AG854)","v":""},{"$f":"IF($A876=\"\",\"\",VLOOKUP(VLOOKUP($A876,Economática!$A$3:$AI$823,6,FALSE),Correção!$B$16:$C$36,2,FALSE))","v":""},{"$f":"IF(Economática!B854=\"\",\"\",Economática!B854)","v":""},{"$f":"IF($A876=\"\",\"\",IF(OR(VLOOKUP($A876,Economática!$A$3:$AI$823,8,FALSE)=0,VLOOKUP($A876,Economática!$A$3:$AI$823,8,FALSE)=\"-\"),1/0,VLOOKUP($A876,Economática!$A$3:$AI$823,8,FALSE)))","v":""},{"$f":"IF(A876=\"\",\"\",IF(ISERROR(VLOOKUP(A876,Correção!$B$2:$G$13,9,FALSE)),VLOOKUP($A876,Economática!$A$3:$AI$823,9,FALSE),VLOOKUP(A876,Correção!$B$2:$G$13,9,FALSE)))","v":""},{"$f":"IF($A876=\"\",\"\",Economática!G854)","v":""},{"$f":"IF($A876=\"\",\"\",IF(OR(VLOOKUP($A876,Economática!$A$3:$AI$823,10,FALSE)=0,VLOOKUP($A876,Economática!$A$3:$AI$823,10,FALSE)=\"-\"),1/0,VLOOKUP($A876,Economática!$A$3:$AI$823,10,FALSE)))","v":""},{"$f":"IF($A876=\"\",\"\",IF(OR(VLOOKUP($A876,Economática!$A$3:$AI$823,11,FALSE)=0,VLOOKUP($A876,Economática!$A$3:$AI$823,11,FALSE)=\"-\"),1/0,VLOOKUP($A876,Economática!$A$3:$AI$823,11,FALSE)))","v":""},{"$f":"IF($A876=\"\",\"\",IF(OR(VLOOKUP($A876,Economática!$A$3:$AI$823,12,FALSE)=0,VLOOKUP($A876,Economática!$A$3:$AI$823,12,FALSE)=\"-\"),1/0,VLOOKUP($A876,Economática!$A$3:$AI$823,12,FALSE)))","v":""},{"$f":"IF($A876=\"\",\"\",IF(OR(VLOOKUP($A876,Economática!$A$3:$AI$823,13,FALSE)=0,VLOOKUP($A876,Economática!$A$3:$AI$823,13,FALSE)=\"-\"),1/0,VLOOKUP($A876,Economática!$A$3:$AI$823,13,FALSE)))","v":""},{"$f":"IF($A876=\"\",\"\",IF(OR(VLOOKUP($A876,Economática!$A$3:$AI$823,14,FALSE)=0,VLOOKUP($A876,Economática!$A$3:$AI$823,14,FALSE)=\"-\"),1/0,VLOOKUP($A876,Economática!$A$3:$AI$823,14,FALSE)))","v":""},{"$f":"IF($A876=\"\",\"\",IF(OR(VLOOKUP($A876,Economática!$A$3:$AI$823,15,FALSE)=0,VLOOKUP($A876,Economática!$A$3:$AI$823,15,FALSE)=\"-\"),1/0,VLOOKUP($A876,Economática!$A$3:$AI$823,15,FALSE)))","v":""},{"$f":"IF($A876=\"\",\"\",IF(OR(VLOOKUP($A876,Economática!$A$3:$AI$823,16,FALSE)=0,VLOOKUP($A876,Economática!$A$3:$AI$823,16,FALSE)=\"-\"),1/0,VLOOKUP($A876,Economática!$A$3:$AI$823,16,FALSE)))","v":""},{"$f":"IF($A876=\"\",\"\",IF(OR(VLOOKUP($A876,Economática!$A$3:$AI$823,17,FALSE)=0,VLOOKUP($A876,Economática!$A$3:$AI$823,17,FALSE)=\"-\"),1/0,VLOOKUP($A876,Economática!$A$3:$AI$823,17,FALSE)))","v":""},{"$f":"IF($A876=\"\",\"\",IF(OR(VLOOKUP($A876,Economática!$A$3:$AI$823,18,FALSE)=0,VLOOKUP($A876,Economática!$A$3:$AI$823,18,FALSE)=\"-\"),1/0,VLOOKUP($A876,Economática!$A$3:$AI$823,18,FALSE)))","v":""},{"$f":"IF($A876=\"\",\"\",IF(OR(VLOOKUP($A876,Economática!$A$3:$AI$823,19,FALSE)=0,VLOOKUP($A876,Economática!$A$3:$AI$823,19,FALSE)=\"-\"),1/0,VLOOKUP($A876,Economática!$A$3:$AI$823,19,FALSE)))","v":""},{"$f":"IF($A876=\"\",\"\",VLOOKUP($A876,Economática!$A$3:$AI$823,20,FALSE)/E876)","v":""},"","","",{"$f":"IF($A876=\"\",\"\",IF(OR(VLOOKUP($A876,Economática!$A$3:$AI$823,21,FALSE)/100=0,VLOOKUP($A876,Economática!$A$3:$AI$823,21,FALSE)/100=\"-\"),1/0,VLOOKUP($A876,Economática!$A$3:$AI$823,21,FALSE)/100))","v":""},{"$f":"IF($A876=\"\",\"\",IF(OR(VLOOKUP($A876,Economática!$A$3:$AI$823,22,FALSE)/100=0,VLOOKUP($A876,Economática!$A$3:$AI$823,22,FALSE)/100=\"-\"),1/0,VLOOKUP($A876,Economática!$A$3:$AI$823,22,FALSE)/100))","v":""},{"$f":"IF($A876=\"\",\"\",IF(OR(VLOOKUP($A876,Economática!$A$3:$AI$823,23,FALSE)=0,VLOOKUP($A876,Economática!$A$3:$AI$823,23,FALSE)=\"-\"),1/0,VLOOKUP($A876,Economática!$A$3:$AI$823,23,FALSE)))","v":""},{"$f":"IF($A876=\"\",\"\",IF(OR(VLOOKUP($A876,Economática!$A$3:$AI$823,24,FALSE)=0,VLOOKUP($A876,Economática!$A$3:$AI$823,24,FALSE)=\"-\"),1/0,VLOOKUP($A876,Economática!$A$3:$AI$823,24,FALSE)))","v":""},{"$f":"IF($A876=\"\",\"\",IF(OR(VLOOKUP($A876,Economática!$A$3:$AI$823,25,FALSE)=0,VLOOKUP($A876,Economática!$A$3:$AI$823,25,FALSE)=\"-\"),1/0,VLOOKUP($A876,Economática!$A$3:$AI$823,25,FALSE)))","v":""},{"$f":"IF($A876=\"\",\"\",IF(ISERROR((F876+VLOOKUP($A876,Economática!$A$3:$AI$823,26,FALSE))/Y876),(F876+VLOOKUP($A876,Economática!$A$3:$AI$823,26,FALSE))/Y876,(F876+VLOOKUP($A876,Economática!$A$3:$AI$823,26,FALSE))/Y876))","v":""},{"$f":"IF($A876=\"\",\"\",IF(OR(-VLOOKUP($A876,Economática!$A$3:$AI$823,27,FALSE)=0,-VLOOKUP($A876,Economática!$A$3:$AI$823,27,FALSE)=\"-\"),1/0,-VLOOKUP($A876,Economática!$A$3:$AI$823,27,FALSE)))","v":""},"",{"$f":"IF($A876=\"\",\"\",IF(OR(VLOOKUP($A876,Economática!$A$3:$AI$823,28,FALSE)=0,VLOOKUP($A876,Economática!$A$3:$AI$823,28,FALSE)=\"-\"),1/0,VLOOKUP($A876,Economática!$A$3:$AI$823,28,FALSE)))","v":""},{"$f":"IF($A876=\"\",\"\",IF(OR(VLOOKUP($A876,Economática!$A$3:$AI$823,29,FALSE)=0,VLOOKUP($A876,Economática!$A$3:$AI$823,29,FALSE)=\"-\"),1/0,VLOOKUP($A876,Economática!$A$3:$AI$823,29,FALSE)))","v":""},{"$f":"IF($A876=\"\",\"\",IF(OR(VLOOKUP($A876,Economática!$A$3:$AI$823,30,FALSE)/E876=0,VLOOKUP($A876,Economática!$A$3:$AI$823,30,FALSE)/E876=\"-\",VLOOKUP($A876,Economática!$A$3:$AI$823,30,FALSE)/E876<33.33%,VLOOKUP($A876,Economática!$A$3:$AI$823,30,FALSE)/E876>100%),1/0,VLOOKUP($A876,Economática!$A$3:$AI$823,30,FALSE)/E876))","v":""},"",{"$f":"IF($A876=\"\",\"\",IF(OR(VLOOKUP($A876,Economática!$A$3:$AI$823,25,FALSE)=0,VLOOKUP($A876,Economática!$A$3:$AI$823,25,FALSE)=\"-\"),1/0,VLOOKUP($A876,Economática!$A$3:$AI$823,25,FALSE)))","v":""},{"$f":"CONCATENATE(Economática!B854,\" \",Economática!C854)","v":" "}]
[{"$f":"IF(Economática!AG855=\"\",\"\",Economática!AG855)","v":""},{"$f":"IF($A877=\"\",\"\",VLOOKUP(VLOOKUP($A877,Economática!$A$3:$AI$823,6,FALSE),Correção!$B$16:$C$36,2,FALSE))","v":""},{"$f":"IF(Economática!B855=\"\",\"\",Economática!B855)","v":""},{"$f":"IF($A877=\"\",\"\",IF(OR(VLOOKUP($A877,Economática!$A$3:$AI$823,8,FALSE)=0,VLOOKUP($A877,Economática!$A$3:$AI$823,8,FALSE)=\"-\"),1/0,VLOOKUP($A877,Economática!$A$3:$AI$823,8,FALSE)))","v":""},{"$f":"IF(A877=\"\",\"\",IF(ISERROR(VLOOKUP(A877,Correção!$B$2:$G$13,9,FALSE)),VLOOKUP($A877,Economática!$A$3:$AI$823,9,FALSE),VLOOKUP(A877,Correção!$B$2:$G$13,9,FALSE)))","v":""},{"$f":"IF($A877=\"\",\"\",Economática!G855)","v":""},{"$f":"IF($A877=\"\",\"\",IF(OR(VLOOKUP($A877,Economática!$A$3:$AI$823,10,FALSE)=0,VLOOKUP($A877,Economática!$A$3:$AI$823,10,FALSE)=\"-\"),1/0,VLOOKUP($A877,Economática!$A$3:$AI$823,10,FALSE)))","v":""},{"$f":"IF($A877=\"\",\"\",IF(OR(VLOOKUP($A877,Economática!$A$3:$AI$823,11,FALSE)=0,VLOOKUP($A877,Economática!$A$3:$AI$823,11,FALSE)=\"-\"),1/0,VLOOKUP($A877,Economática!$A$3:$AI$823,11,FALSE)))","v":""},{"$f":"IF($A877=\"\",\"\",IF(OR(VLOOKUP($A877,Economática!$A$3:$AI$823,12,FALSE)=0,VLOOKUP($A877,Economática!$A$3:$AI$823,12,FALSE)=\"-\"),1/0,VLOOKUP($A877,Economática!$A$3:$AI$823,12,FALSE)))","v":""},{"$f":"IF($A877=\"\",\"\",IF(OR(VLOOKUP($A877,Economática!$A$3:$AI$823,13,FALSE)=0,VLOOKUP($A877,Economática!$A$3:$AI$823,13,FALSE)=\"-\"),1/0,VLOOKUP($A877,Economática!$A$3:$AI$823,13,FALSE)))","v":""},{"$f":"IF($A877=\"\",\"\",IF(OR(VLOOKUP($A877,Economática!$A$3:$AI$823,14,FALSE)=0,VLOOKUP($A877,Economática!$A$3:$AI$823,14,FALSE)=\"-\"),1/0,VLOOKUP($A877,Economática!$A$3:$AI$823,14,FALSE)))","v":""},{"$f":"IF($A877=\"\",\"\",IF(OR(VLOOKUP($A877,Economática!$A$3:$AI$823,15,FALSE)=0,VLOOKUP($A877,Economática!$A$3:$AI$823,15,FALSE)=\"-\"),1/0,VLOOKUP($A877,Economática!$A$3:$AI$823,15,FALSE)))","v":""},{"$f":"IF($A877=\"\",\"\",IF(OR(VLOOKUP($A877,Economática!$A$3:$AI$823,16,FALSE)=0,VLOOKUP($A877,Economática!$A$3:$AI$823,16,FALSE)=\"-\"),1/0,VLOOKUP($A877,Economática!$A$3:$AI$823,16,FALSE)))","v":""},{"$f":"IF($A877=\"\",\"\",IF(OR(VLOOKUP($A877,Economática!$A$3:$AI$823,17,FALSE)=0,VLOOKUP($A877,Economática!$A$3:$AI$823,17,FALSE)=\"-\"),1/0,VLOOKUP($A877,Economática!$A$3:$AI$823,17,FALSE)))","v":""},{"$f":"IF($A877=\"\",\"\",IF(OR(VLOOKUP($A877,Economática!$A$3:$AI$823,18,FALSE)=0,VLOOKUP($A877,Economática!$A$3:$AI$823,18,FALSE)=\"-\"),1/0,VLOOKUP($A877,Economática!$A$3:$AI$823,18,FALSE)))","v":""},{"$f":"IF($A877=\"\",\"\",IF(OR(VLOOKUP($A877,Economática!$A$3:$AI$823,19,FALSE)=0,VLOOKUP($A877,Economática!$A$3:$AI$823,19,FALSE)=\"-\"),1/0,VLOOKUP($A877,Economática!$A$3:$AI$823,19,FALSE)))","v":""},{"$f":"IF($A877=\"\",\"\",VLOOKUP($A877,Economática!$A$3:$AI$823,20,FALSE)/E877)","v":""},"","","",{"$f":"IF($A877=\"\",\"\",IF(OR(VLOOKUP($A877,Economática!$A$3:$AI$823,21,FALSE)/100=0,VLOOKUP($A877,Economática!$A$3:$AI$823,21,FALSE)/100=\"-\"),1/0,VLOOKUP($A877,Economática!$A$3:$AI$823,21,FALSE)/100))","v":""},{"$f":"IF($A877=\"\",\"\",IF(OR(VLOOKUP($A877,Economática!$A$3:$AI$823,22,FALSE)/100=0,VLOOKUP($A877,Economática!$A$3:$AI$823,22,FALSE)/100=\"-\"),1/0,VLOOKUP($A877,Economática!$A$3:$AI$823,22,FALSE)/100))","v":""},{"$f":"IF($A877=\"\",\"\",IF(OR(VLOOKUP($A877,Economática!$A$3:$AI$823,23,FALSE)=0,VLOOKUP($A877,Economática!$A$3:$AI$823,23,FALSE)=\"-\"),1/0,VLOOKUP($A877,Economática!$A$3:$AI$823,23,FALSE)))","v":""},{"$f":"IF($A877=\"\",\"\",IF(OR(VLOOKUP($A877,Economática!$A$3:$AI$823,24,FALSE)=0,VLOOKUP($A877,Economática!$A$3:$AI$823,24,FALSE)=\"-\"),1/0,VLOOKUP($A877,Economática!$A$3:$AI$823,24,FALSE)))","v":""},{"$f":"IF($A877=\"\",\"\",IF(OR(VLOOKUP($A877,Economática!$A$3:$AI$823,25,FALSE)=0,VLOOKUP($A877,Economática!$A$3:$AI$823,25,FALSE)=\"-\"),1/0,VLOOKUP($A877,Economática!$A$3:$AI$823,25,FALSE)))","v":""},{"$f":"IF($A877=\"\",\"\",IF(ISERROR((F877+VLOOKUP($A877,Economática!$A$3:$AI$823,26,FALSE))/Y877),(F877+VLOOKUP($A877,Economática!$A$3:$AI$823,26,FALSE))/Y877,(F877+VLOOKUP($A877,Economática!$A$3:$AI$823,26,FALSE))/Y877))","v":""},{"$f":"IF($A877=\"\",\"\",IF(OR(-VLOOKUP($A877,Economática!$A$3:$AI$823,27,FALSE)=0,-VLOOKUP($A877,Economática!$A$3:$AI$823,27,FALSE)=\"-\"),1/0,-VLOOKUP($A877,Economática!$A$3:$AI$823,27,FALSE)))","v":""},"",{"$f":"IF($A877=\"\",\"\",IF(OR(VLOOKUP($A877,Economática!$A$3:$AI$823,28,FALSE)=0,VLOOKUP($A877,Economática!$A$3:$AI$823,28,FALSE)=\"-\"),1/0,VLOOKUP($A877,Economática!$A$3:$AI$823,28,FALSE)))","v":""},{"$f":"IF($A877=\"\",\"\",IF(OR(VLOOKUP($A877,Economática!$A$3:$AI$823,29,FALSE)=0,VLOOKUP($A877,Economática!$A$3:$AI$823,29,FALSE)=\"-\"),1/0,VLOOKUP($A877,Economática!$A$3:$AI$823,29,FALSE)))","v":""},{"$f":"IF($A877=\"\",\"\",IF(OR(VLOOKUP($A877,Economática!$A$3:$AI$823,30,FALSE)/E877=0,VLOOKUP($A877,Economática!$A$3:$AI$823,30,FALSE)/E877=\"-\",VLOOKUP($A877,Economática!$A$3:$AI$823,30,FALSE)/E877<33.33%,VLOOKUP($A877,Economática!$A$3:$AI$823,30,FALSE)/E877>100%),1/0,VLOOKUP($A877,Economática!$A$3:$AI$823,30,FALSE)/E877))","v":""},"",{"$f":"IF($A877=\"\",\"\",IF(OR(VLOOKUP($A877,Economática!$A$3:$AI$823,25,FALSE)=0,VLOOKUP($A877,Economática!$A$3:$AI$823,25,FALSE)=\"-\"),1/0,VLOOKUP($A877,Economática!$A$3:$AI$823,25,FALSE)))","v":""},{"$f":"CONCATENATE(Economática!B855,\" \",Economática!C855)","v":" "}]
[{"$f":"IF(Economática!AG856=\"\",\"\",Economática!AG856)","v":""},{"$f":"IF($A878=\"\",\"\",VLOOKUP(VLOOKUP($A878,Economática!$A$3:$AI$823,6,FALSE),Correção!$B$16:$C$36,2,FALSE))","v":""},{"$f":"IF(Economática!B856=\"\",\"\",Economática!B856)","v":""},{"$f":"IF($A878=\"\",\"\",IF(OR(VLOOKUP($A878,Economática!$A$3:$AI$823,8,FALSE)=0,VLOOKUP($A878,Economática!$A$3:$AI$823,8,FALSE)=\"-\"),1/0,VLOOKUP($A878,Economática!$A$3:$AI$823,8,FALSE)))","v":""},{"$f":"IF(A878=\"\",\"\",IF(ISERROR(VLOOKUP(A878,Correção!$B$2:$G$13,9,FALSE)),VLOOKUP($A878,Economática!$A$3:$AI$823,9,FALSE),VLOOKUP(A878,Correção!$B$2:$G$13,9,FALSE)))","v":""},{"$f":"IF($A878=\"\",\"\",Economática!G856)","v":""},{"$f":"IF($A878=\"\",\"\",IF(OR(VLOOKUP($A878,Economática!$A$3:$AI$823,10,FALSE)=0,VLOOKUP($A878,Economática!$A$3:$AI$823,10,FALSE)=\"-\"),1/0,VLOOKUP($A878,Economática!$A$3:$AI$823,10,FALSE)))","v":""},{"$f":"IF($A878=\"\",\"\",IF(OR(VLOOKUP($A878,Economática!$A$3:$AI$823,11,FALSE)=0,VLOOKUP($A878,Economática!$A$3:$AI$823,11,FALSE)=\"-\"),1/0,VLOOKUP($A878,Economática!$A$3:$AI$823,11,FALSE)))","v":""},{"$f":"IF($A878=\"\",\"\",IF(OR(VLOOKUP($A878,Economática!$A$3:$AI$823,12,FALSE)=0,VLOOKUP($A878,Economática!$A$3:$AI$823,12,FALSE)=\"-\"),1/0,VLOOKUP($A878,Economática!$A$3:$AI$823,12,FALSE)))","v":""},{"$f":"IF($A878=\"\",\"\",IF(OR(VLOOKUP($A878,Economática!$A$3:$AI$823,13,FALSE)=0,VLOOKUP($A878,Economática!$A$3:$AI$823,13,FALSE)=\"-\"),1/0,VLOOKUP($A878,Economática!$A$3:$AI$823,13,FALSE)))","v":""},{"$f":"IF($A878=\"\",\"\",IF(OR(VLOOKUP($A878,Economática!$A$3:$AI$823,14,FALSE)=0,VLOOKUP($A878,Economática!$A$3:$AI$823,14,FALSE)=\"-\"),1/0,VLOOKUP($A878,Economática!$A$3:$AI$823,14,FALSE)))","v":""},{"$f":"IF($A878=\"\",\"\",IF(OR(VLOOKUP($A878,Economática!$A$3:$AI$823,15,FALSE)=0,VLOOKUP($A878,Economática!$A$3:$AI$823,15,FALSE)=\"-\"),1/0,VLOOKUP($A878,Economática!$A$3:$AI$823,15,FALSE)))","v":""},{"$f":"IF($A878=\"\",\"\",IF(OR(VLOOKUP($A878,Economática!$A$3:$AI$823,16,FALSE)=0,VLOOKUP($A878,Economática!$A$3:$AI$823,16,FALSE)=\"-\"),1/0,VLOOKUP($A878,Economática!$A$3:$AI$823,16,FALSE)))","v":""},{"$f":"IF($A878=\"\",\"\",IF(OR(VLOOKUP($A878,Economática!$A$3:$AI$823,17,FALSE)=0,VLOOKUP($A878,Economática!$A$3:$AI$823,17,FALSE)=\"-\"),1/0,VLOOKUP($A878,Economática!$A$3:$AI$823,17,FALSE)))","v":""},{"$f":"IF($A878=\"\",\"\",IF(OR(VLOOKUP($A878,Economática!$A$3:$AI$823,18,FALSE)=0,VLOOKUP($A878,Economática!$A$3:$AI$823,18,FALSE)=\"-\"),1/0,VLOOKUP($A878,Economática!$A$3:$AI$823,18,FALSE)))","v":""},{"$f":"IF($A878=\"\",\"\",IF(OR(VLOOKUP($A878,Economática!$A$3:$AI$823,19,FALSE)=0,VLOOKUP($A878,Economática!$A$3:$AI$823,19,FALSE)=\"-\"),1/0,VLOOKUP($A878,Economática!$A$3:$AI$823,19,FALSE)))","v":""},{"$f":"IF($A878=\"\",\"\",VLOOKUP($A878,Economática!$A$3:$AI$823,20,FALSE)/E878)","v":""},"","","",{"$f":"IF($A878=\"\",\"\",IF(OR(VLOOKUP($A878,Economática!$A$3:$AI$823,21,FALSE)/100=0,VLOOKUP($A878,Economática!$A$3:$AI$823,21,FALSE)/100=\"-\"),1/0,VLOOKUP($A878,Economática!$A$3:$AI$823,21,FALSE)/100))","v":""},{"$f":"IF($A878=\"\",\"\",IF(OR(VLOOKUP($A878,Economática!$A$3:$AI$823,22,FALSE)/100=0,VLOOKUP($A878,Economática!$A$3:$AI$823,22,FALSE)/100=\"-\"),1/0,VLOOKUP($A878,Economática!$A$3:$AI$823,22,FALSE)/100))","v":""},{"$f":"IF($A878=\"\",\"\",IF(OR(VLOOKUP($A878,Economática!$A$3:$AI$823,23,FALSE)=0,VLOOKUP($A878,Economática!$A$3:$AI$823,23,FALSE)=\"-\"),1/0,VLOOKUP($A878,Economática!$A$3:$AI$823,23,FALSE)))","v":""},{"$f":"IF($A878=\"\",\"\",IF(OR(VLOOKUP($A878,Economática!$A$3:$AI$823,24,FALSE)=0,VLOOKUP($A878,Economática!$A$3:$AI$823,24,FALSE)=\"-\"),1/0,VLOOKUP($A878,Economática!$A$3:$AI$823,24,FALSE)))","v":""},{"$f":"IF($A878=\"\",\"\",IF(OR(VLOOKUP($A878,Economática!$A$3:$AI$823,25,FALSE)=0,VLOOKUP($A878,Economática!$A$3:$AI$823,25,FALSE)=\"-\"),1/0,VLOOKUP($A878,Economática!$A$3:$AI$823,25,FALSE)))","v":""},{"$f":"IF($A878=\"\",\"\",IF(ISERROR((F878+VLOOKUP($A878,Economática!$A$3:$AI$823,26,FALSE))/Y878),(F878+VLOOKUP($A878,Economática!$A$3:$AI$823,26,FALSE))/Y878,(F878+VLOOKUP($A878,Economática!$A$3:$AI$823,26,FALSE))/Y878))","v":""},{"$f":"IF($A878=\"\",\"\",IF(OR(-VLOOKUP($A878,Economática!$A$3:$AI$823,27,FALSE)=0,-VLOOKUP($A878,Economática!$A$3:$AI$823,27,FALSE)=\"-\"),1/0,-VLOOKUP($A878,Economática!$A$3:$AI$823,27,FALSE)))","v":""},"",{"$f":"IF($A878=\"\",\"\",IF(OR(VLOOKUP($A878,Economática!$A$3:$AI$823,28,FALSE)=0,VLOOKUP($A878,Economática!$A$3:$AI$823,28,FALSE)=\"-\"),1/0,VLOOKUP($A878,Economática!$A$3:$AI$823,28,FALSE)))","v":""},{"$f":"IF($A878=\"\",\"\",IF(OR(VLOOKUP($A878,Economática!$A$3:$AI$823,29,FALSE)=0,VLOOKUP($A878,Economática!$A$3:$AI$823,29,FALSE)=\"-\"),1/0,VLOOKUP($A878,Economática!$A$3:$AI$823,29,FALSE)))","v":""},{"$f":"IF($A878=\"\",\"\",IF(OR(VLOOKUP($A878,Economática!$A$3:$AI$823,30,FALSE)/E878=0,VLOOKUP($A878,Economática!$A$3:$AI$823,30,FALSE)/E878=\"-\",VLOOKUP($A878,Economática!$A$3:$AI$823,30,FALSE)/E878<33.33%,VLOOKUP($A878,Economática!$A$3:$AI$823,30,FALSE)/E878>100%),1/0,VLOOKUP($A878,Economática!$A$3:$AI$823,30,FALSE)/E878))","v":""},"",{"$f":"IF($A878=\"\",\"\",IF(OR(VLOOKUP($A878,Economática!$A$3:$AI$823,25,FALSE)=0,VLOOKUP($A878,Economática!$A$3:$AI$823,25,FALSE)=\"-\"),1/0,VLOOKUP($A878,Economática!$A$3:$AI$823,25,FALSE)))","v":""},{"$f":"CONCATENATE(Economática!B856,\" \",Economática!C856)","v":" "}]
[{"$f":"IF(Economática!AG857=\"\",\"\",Economática!AG857)","v":""},{"$f":"IF($A879=\"\",\"\",VLOOKUP(VLOOKUP($A879,Economática!$A$3:$AI$823,6,FALSE),Correção!$B$16:$C$36,2,FALSE))","v":""},{"$f":"IF(Economática!B857=\"\",\"\",Economática!B857)","v":""},{"$f":"IF($A879=\"\",\"\",IF(OR(VLOOKUP($A879,Economática!$A$3:$AI$823,8,FALSE)=0,VLOOKUP($A879,Economática!$A$3:$AI$823,8,FALSE)=\"-\"),1/0,VLOOKUP($A879,Economática!$A$3:$AI$823,8,FALSE)))","v":""},{"$f":"IF(A879=\"\",\"\",IF(ISERROR(VLOOKUP(A879,Correção!$B$2:$G$13,9,FALSE)),VLOOKUP($A879,Economática!$A$3:$AI$823,9,FALSE),VLOOKUP(A879,Correção!$B$2:$G$13,9,FALSE)))","v":""},{"$f":"IF($A879=\"\",\"\",Economática!G857)","v":""},{"$f":"IF($A879=\"\",\"\",IF(OR(VLOOKUP($A879,Economática!$A$3:$AI$823,10,FALSE)=0,VLOOKUP($A879,Economática!$A$3:$AI$823,10,FALSE)=\"-\"),1/0,VLOOKUP($A879,Economática!$A$3:$AI$823,10,FALSE)))","v":""},{"$f":"IF($A879=\"\",\"\",IF(OR(VLOOKUP($A879,Economática!$A$3:$AI$823,11,FALSE)=0,VLOOKUP($A879,Economática!$A$3:$AI$823,11,FALSE)=\"-\"),1/0,VLOOKUP($A879,Economática!$A$3:$AI$823,11,FALSE)))","v":""},{"$f":"IF($A879=\"\",\"\",IF(OR(VLOOKUP($A879,Economática!$A$3:$AI$823,12,FALSE)=0,VLOOKUP($A879,Economática!$A$3:$AI$823,12,FALSE)=\"-\"),1/0,VLOOKUP($A879,Economática!$A$3:$AI$823,12,FALSE)))","v":""},{"$f":"IF($A879=\"\",\"\",IF(OR(VLOOKUP($A879,Economática!$A$3:$AI$823,13,FALSE)=0,VLOOKUP($A879,Economática!$A$3:$AI$823,13,FALSE)=\"-\"),1/0,VLOOKUP($A879,Economática!$A$3:$AI$823,13,FALSE)))","v":""},{"$f":"IF($A879=\"\",\"\",IF(OR(VLOOKUP($A879,Economática!$A$3:$AI$823,14,FALSE)=0,VLOOKUP($A879,Economática!$A$3:$AI$823,14,FALSE)=\"-\"),1/0,VLOOKUP($A879,Economática!$A$3:$AI$823,14,FALSE)))","v":""},{"$f":"IF($A879=\"\",\"\",IF(OR(VLOOKUP($A879,Economática!$A$3:$AI$823,15,FALSE)=0,VLOOKUP($A879,Economática!$A$3:$AI$823,15,FALSE)=\"-\"),1/0,VLOOKUP($A879,Economática!$A$3:$AI$823,15,FALSE)))","v":""},{"$f":"IF($A879=\"\",\"\",IF(OR(VLOOKUP($A879,Economática!$A$3:$AI$823,16,FALSE)=0,VLOOKUP($A879,Economática!$A$3:$AI$823,16,FALSE)=\"-\"),1/0,VLOOKUP($A879,Economática!$A$3:$AI$823,16,FALSE)))","v":""},{"$f":"IF($A879=\"\",\"\",IF(OR(VLOOKUP($A879,Economática!$A$3:$AI$823,17,FALSE)=0,VLOOKUP($A879,Economática!$A$3:$AI$823,17,FALSE)=\"-\"),1/0,VLOOKUP($A879,Economática!$A$3:$AI$823,17,FALSE)))","v":""},{"$f":"IF($A879=\"\",\"\",IF(OR(VLOOKUP($A879,Economática!$A$3:$AI$823,18,FALSE)=0,VLOOKUP($A879,Economática!$A$3:$AI$823,18,FALSE)=\"-\"),1/0,VLOOKUP($A879,Economática!$A$3:$AI$823,18,FALSE)))","v":""},{"$f":"IF($A879=\"\",\"\",IF(OR(VLOOKUP($A879,Economática!$A$3:$AI$823,19,FALSE)=0,VLOOKUP($A879,Economática!$A$3:$AI$823,19,FALSE)=\"-\"),1/0,VLOOKUP($A879,Economática!$A$3:$AI$823,19,FALSE)))","v":""},{"$f":"IF($A879=\"\",\"\",VLOOKUP($A879,Economática!$A$3:$AI$823,20,FALSE)/E879)","v":""},"","","",{"$f":"IF($A879=\"\",\"\",IF(OR(VLOOKUP($A879,Economática!$A$3:$AI$823,21,FALSE)/100=0,VLOOKUP($A879,Economática!$A$3:$AI$823,21,FALSE)/100=\"-\"),1/0,VLOOKUP($A879,Economática!$A$3:$AI$823,21,FALSE)/100))","v":""},{"$f":"IF($A879=\"\",\"\",IF(OR(VLOOKUP($A879,Economática!$A$3:$AI$823,22,FALSE)/100=0,VLOOKUP($A879,Economática!$A$3:$AI$823,22,FALSE)/100=\"-\"),1/0,VLOOKUP($A879,Economática!$A$3:$AI$823,22,FALSE)/100))","v":""},{"$f":"IF($A879=\"\",\"\",IF(OR(VLOOKUP($A879,Economática!$A$3:$AI$823,23,FALSE)=0,VLOOKUP($A879,Economática!$A$3:$AI$823,23,FALSE)=\"-\"),1/0,VLOOKUP($A879,Economática!$A$3:$AI$823,23,FALSE)))","v":""},{"$f":"IF($A879=\"\",\"\",IF(OR(VLOOKUP($A879,Economática!$A$3:$AI$823,24,FALSE)=0,VLOOKUP($A879,Economática!$A$3:$AI$823,24,FALSE)=\"-\"),1/0,VLOOKUP($A879,Economática!$A$3:$AI$823,24,FALSE)))","v":""},{"$f":"IF($A879=\"\",\"\",IF(OR(VLOOKUP($A879,Economática!$A$3:$AI$823,25,FALSE)=0,VLOOKUP($A879,Economática!$A$3:$AI$823,25,FALSE)=\"-\"),1/0,VLOOKUP($A879,Economática!$A$3:$AI$823,25,FALSE)))","v":""},{"$f":"IF($A879=\"\",\"\",IF(ISERROR((F879+VLOOKUP($A879,Economática!$A$3:$AI$823,26,FALSE))/Y879),(F879+VLOOKUP($A879,Economática!$A$3:$AI$823,26,FALSE))/Y879,(F879+VLOOKUP($A879,Economática!$A$3:$AI$823,26,FALSE))/Y879))","v":""},{"$f":"IF($A879=\"\",\"\",IF(OR(-VLOOKUP($A879,Economática!$A$3:$AI$823,27,FALSE)=0,-VLOOKUP($A879,Economática!$A$3:$AI$823,27,FALSE)=\"-\"),1/0,-VLOOKUP($A879,Economática!$A$3:$AI$823,27,FALSE)))","v":""},"",{"$f":"IF($A879=\"\",\"\",IF(OR(VLOOKUP($A879,Economática!$A$3:$AI$823,28,FALSE)=0,VLOOKUP($A879,Economática!$A$3:$AI$823,28,FALSE)=\"-\"),1/0,VLOOKUP($A879,Economática!$A$3:$AI$823,28,FALSE)))","v":""},{"$f":"IF($A879=\"\",\"\",IF(OR(VLOOKUP($A879,Economática!$A$3:$AI$823,29,FALSE)=0,VLOOKUP($A879,Economática!$A$3:$AI$823,29,FALSE)=\"-\"),1/0,VLOOKUP($A879,Economática!$A$3:$AI$823,29,FALSE)))","v":""},{"$f":"IF($A879=\"\",\"\",IF(OR(VLOOKUP($A879,Economática!$A$3:$AI$823,30,FALSE)/E879=0,VLOOKUP($A879,Economática!$A$3:$AI$823,30,FALSE)/E879=\"-\",VLOOKUP($A879,Economática!$A$3:$AI$823,30,FALSE)/E879<33.33%,VLOOKUP($A879,Economática!$A$3:$AI$823,30,FALSE)/E879>100%),1/0,VLOOKUP($A879,Economática!$A$3:$AI$823,30,FALSE)/E879))","v":""},"",{"$f":"IF($A879=\"\",\"\",IF(OR(VLOOKUP($A879,Economática!$A$3:$AI$823,25,FALSE)=0,VLOOKUP($A879,Economática!$A$3:$AI$823,25,FALSE)=\"-\"),1/0,VLOOKUP($A879,Economática!$A$3:$AI$823,25,FALSE)))","v":""},{"$f":"CONCATENATE(Economática!B857,\" \",Economática!C857)","v":" "}]
[{"$f":"IF(Economática!AG858=\"\",\"\",Economática!AG858)","v":""},{"$f":"IF($A880=\"\",\"\",VLOOKUP(VLOOKUP($A880,Economática!$A$3:$AI$823,6,FALSE),Correção!$B$16:$C$36,2,FALSE))","v":""},{"$f":"IF(Economática!B858=\"\",\"\",Economática!B858)","v":""},{"$f":"IF($A880=\"\",\"\",IF(OR(VLOOKUP($A880,Economática!$A$3:$AI$823,8,FALSE)=0,VLOOKUP($A880,Economática!$A$3:$AI$823,8,FALSE)=\"-\"),1/0,VLOOKUP($A880,Economática!$A$3:$AI$823,8,FALSE)))","v":""},{"$f":"IF(A880=\"\",\"\",IF(ISERROR(VLOOKUP(A880,Correção!$B$2:$G$13,9,FALSE)),VLOOKUP($A880,Economática!$A$3:$AI$823,9,FALSE),VLOOKUP(A880,Correção!$B$2:$G$13,9,FALSE)))","v":""},{"$f":"IF($A880=\"\",\"\",Economática!G858)","v":""},{"$f":"IF($A880=\"\",\"\",IF(OR(VLOOKUP($A880,Economática!$A$3:$AI$823,10,FALSE)=0,VLOOKUP($A880,Economática!$A$3:$AI$823,10,FALSE)=\"-\"),1/0,VLOOKUP($A880,Economática!$A$3:$AI$823,10,FALSE)))","v":""},{"$f":"IF($A880=\"\",\"\",IF(OR(VLOOKUP($A880,Economática!$A$3:$AI$823,11,FALSE)=0,VLOOKUP($A880,Economática!$A$3:$AI$823,11,FALSE)=\"-\"),1/0,VLOOKUP($A880,Economática!$A$3:$AI$823,11,FALSE)))","v":""},{"$f":"IF($A880=\"\",\"\",IF(OR(VLOOKUP($A880,Economática!$A$3:$AI$823,12,FALSE)=0,VLOOKUP($A880,Economática!$A$3:$AI$823,12,FALSE)=\"-\"),1/0,VLOOKUP($A880,Economática!$A$3:$AI$823,12,FALSE)))","v":""},{"$f":"IF($A880=\"\",\"\",IF(OR(VLOOKUP($A880,Economática!$A$3:$AI$823,13,FALSE)=0,VLOOKUP($A880,Economática!$A$3:$AI$823,13,FALSE)=\"-\"),1/0,VLOOKUP($A880,Economática!$A$3:$AI$823,13,FALSE)))","v":""},{"$f":"IF($A880=\"\",\"\",IF(OR(VLOOKUP($A880,Economática!$A$3:$AI$823,14,FALSE)=0,VLOOKUP($A880,Economática!$A$3:$AI$823,14,FALSE)=\"-\"),1/0,VLOOKUP($A880,Economática!$A$3:$AI$823,14,FALSE)))","v":""},{"$f":"IF($A880=\"\",\"\",IF(OR(VLOOKUP($A880,Economática!$A$3:$AI$823,15,FALSE)=0,VLOOKUP($A880,Economática!$A$3:$AI$823,15,FALSE)=\"-\"),1/0,VLOOKUP($A880,Economática!$A$3:$AI$823,15,FALSE)))","v":""},{"$f":"IF($A880=\"\",\"\",IF(OR(VLOOKUP($A880,Economática!$A$3:$AI$823,16,FALSE)=0,VLOOKUP($A880,Economática!$A$3:$AI$823,16,FALSE)=\"-\"),1/0,VLOOKUP($A880,Economática!$A$3:$AI$823,16,FALSE)))","v":""},{"$f":"IF($A880=\"\",\"\",IF(OR(VLOOKUP($A880,Economática!$A$3:$AI$823,17,FALSE)=0,VLOOKUP($A880,Economática!$A$3:$AI$823,17,FALSE)=\"-\"),1/0,VLOOKUP($A880,Economática!$A$3:$AI$823,17,FALSE)))","v":""},{"$f":"IF($A880=\"\",\"\",IF(OR(VLOOKUP($A880,Economática!$A$3:$AI$823,18,FALSE)=0,VLOOKUP($A880,Economática!$A$3:$AI$823,18,FALSE)=\"-\"),1/0,VLOOKUP($A880,Economática!$A$3:$AI$823,18,FALSE)))","v":""},{"$f":"IF($A880=\"\",\"\",IF(OR(VLOOKUP($A880,Economática!$A$3:$AI$823,19,FALSE)=0,VLOOKUP($A880,Economática!$A$3:$AI$823,19,FALSE)=\"-\"),1/0,VLOOKUP($A880,Economática!$A$3:$AI$823,19,FALSE)))","v":""},{"$f":"IF($A880=\"\",\"\",VLOOKUP($A880,Economática!$A$3:$AI$823,20,FALSE)/E880)","v":""},"","","",{"$f":"IF($A880=\"\",\"\",IF(OR(VLOOKUP($A880,Economática!$A$3:$AI$823,21,FALSE)/100=0,VLOOKUP($A880,Economática!$A$3:$AI$823,21,FALSE)/100=\"-\"),1/0,VLOOKUP($A880,Economática!$A$3:$AI$823,21,FALSE)/100))","v":""},{"$f":"IF($A880=\"\",\"\",IF(OR(VLOOKUP($A880,Economática!$A$3:$AI$823,22,FALSE)/100=0,VLOOKUP($A880,Economática!$A$3:$AI$823,22,FALSE)/100=\"-\"),1/0,VLOOKUP($A880,Economática!$A$3:$AI$823,22,FALSE)/100))","v":""},{"$f":"IF($A880=\"\",\"\",IF(OR(VLOOKUP($A880,Economática!$A$3:$AI$823,23,FALSE)=0,VLOOKUP($A880,Economática!$A$3:$AI$823,23,FALSE)=\"-\"),1/0,VLOOKUP($A880,Economática!$A$3:$AI$823,23,FALSE)))","v":""},{"$f":"IF($A880=\"\",\"\",IF(OR(VLOOKUP($A880,Economática!$A$3:$AI$823,24,FALSE)=0,VLOOKUP($A880,Economática!$A$3:$AI$823,24,FALSE)=\"-\"),1/0,VLOOKUP($A880,Economática!$A$3:$AI$823,24,FALSE)))","v":""},{"$f":"IF($A880=\"\",\"\",IF(OR(VLOOKUP($A880,Economática!$A$3:$AI$823,25,FALSE)=0,VLOOKUP($A880,Economática!$A$3:$AI$823,25,FALSE)=\"-\"),1/0,VLOOKUP($A880,Economática!$A$3:$AI$823,25,FALSE)))","v":""},{"$f":"IF($A880=\"\",\"\",IF(ISERROR((F880+VLOOKUP($A880,Economática!$A$3:$AI$823,26,FALSE))/Y880),(F880+VLOOKUP($A880,Economática!$A$3:$AI$823,26,FALSE))/Y880,(F880+VLOOKUP($A880,Economática!$A$3:$AI$823,26,FALSE))/Y880))","v":""},{"$f":"IF($A880=\"\",\"\",IF(OR(-VLOOKUP($A880,Economática!$A$3:$AI$823,27,FALSE)=0,-VLOOKUP($A880,Economática!$A$3:$AI$823,27,FALSE)=\"-\"),1/0,-VLOOKUP($A880,Economática!$A$3:$AI$823,27,FALSE)))","v":""},"",{"$f":"IF($A880=\"\",\"\",IF(OR(VLOOKUP($A880,Economática!$A$3:$AI$823,28,FALSE)=0,VLOOKUP($A880,Economática!$A$3:$AI$823,28,FALSE)=\"-\"),1/0,VLOOKUP($A880,Economática!$A$3:$AI$823,28,FALSE)))","v":""},{"$f":"IF($A880=\"\",\"\",IF(OR(VLOOKUP($A880,Economática!$A$3:$AI$823,29,FALSE)=0,VLOOKUP($A880,Economática!$A$3:$AI$823,29,FALSE)=\"-\"),1/0,VLOOKUP($A880,Economática!$A$3:$AI$823,29,FALSE)))","v":""},{"$f":"IF($A880=\"\",\"\",IF(OR(VLOOKUP($A880,Economática!$A$3:$AI$823,30,FALSE)/E880=0,VLOOKUP($A880,Economática!$A$3:$AI$823,30,FALSE)/E880=\"-\",VLOOKUP($A880,Economática!$A$3:$AI$823,30,FALSE)/E880<33.33%,VLOOKUP($A880,Economática!$A$3:$AI$823,30,FALSE)/E880>100%),1/0,VLOOKUP($A880,Economática!$A$3:$AI$823,30,FALSE)/E880))","v":""},"",{"$f":"IF($A880=\"\",\"\",IF(OR(VLOOKUP($A880,Economática!$A$3:$AI$823,25,FALSE)=0,VLOOKUP($A880,Economática!$A$3:$AI$823,25,FALSE)=\"-\"),1/0,VLOOKUP($A880,Economática!$A$3:$AI$823,25,FALSE)))","v":""},{"$f":"CONCATENATE(Economática!B858,\" \",Economática!C858)","v":" "}]
[{"$f":"IF(Economática!AG859=\"\",\"\",Economática!AG859)","v":""},{"$f":"IF($A881=\"\",\"\",VLOOKUP(VLOOKUP($A881,Economática!$A$3:$AI$823,6,FALSE),Correção!$B$16:$C$36,2,FALSE))","v":""},{"$f":"IF(Economática!B859=\"\",\"\",Economática!B859)","v":""},{"$f":"IF($A881=\"\",\"\",IF(OR(VLOOKUP($A881,Economática!$A$3:$AI$823,8,FALSE)=0,VLOOKUP($A881,Economática!$A$3:$AI$823,8,FALSE)=\"-\"),1/0,VLOOKUP($A881,Economática!$A$3:$AI$823,8,FALSE)))","v":""},{"$f":"IF(A881=\"\",\"\",IF(ISERROR(VLOOKUP(A881,Correção!$B$2:$G$13,9,FALSE)),VLOOKUP($A881,Economática!$A$3:$AI$823,9,FALSE),VLOOKUP(A881,Correção!$B$2:$G$13,9,FALSE)))","v":""},{"$f":"IF($A881=\"\",\"\",Economática!G859)","v":""},{"$f":"IF($A881=\"\",\"\",IF(OR(VLOOKUP($A881,Economática!$A$3:$AI$823,10,FALSE)=0,VLOOKUP($A881,Economática!$A$3:$AI$823,10,FALSE)=\"-\"),1/0,VLOOKUP($A881,Economática!$A$3:$AI$823,10,FALSE)))","v":""},{"$f":"IF($A881=\"\",\"\",IF(OR(VLOOKUP($A881,Economática!$A$3:$AI$823,11,FALSE)=0,VLOOKUP($A881,Economática!$A$3:$AI$823,11,FALSE)=\"-\"),1/0,VLOOKUP($A881,Economática!$A$3:$AI$823,11,FALSE)))","v":""},{"$f":"IF($A881=\"\",\"\",IF(OR(VLOOKUP($A881,Economática!$A$3:$AI$823,12,FALSE)=0,VLOOKUP($A881,Economática!$A$3:$AI$823,12,FALSE)=\"-\"),1/0,VLOOKUP($A881,Economática!$A$3:$AI$823,12,FALSE)))","v":""},{"$f":"IF($A881=\"\",\"\",IF(OR(VLOOKUP($A881,Economática!$A$3:$AI$823,13,FALSE)=0,VLOOKUP($A881,Economática!$A$3:$AI$823,13,FALSE)=\"-\"),1/0,VLOOKUP($A881,Economática!$A$3:$AI$823,13,FALSE)))","v":""},{"$f":"IF($A881=\"\",\"\",IF(OR(VLOOKUP($A881,Economática!$A$3:$AI$823,14,FALSE)=0,VLOOKUP($A881,Economática!$A$3:$AI$823,14,FALSE)=\"-\"),1/0,VLOOKUP($A881,Economática!$A$3:$AI$823,14,FALSE)))","v":""},{"$f":"IF($A881=\"\",\"\",IF(OR(VLOOKUP($A881,Economática!$A$3:$AI$823,15,FALSE)=0,VLOOKUP($A881,Economática!$A$3:$AI$823,15,FALSE)=\"-\"),1/0,VLOOKUP($A881,Economática!$A$3:$AI$823,15,FALSE)))","v":""},{"$f":"IF($A881=\"\",\"\",IF(OR(VLOOKUP($A881,Economática!$A$3:$AI$823,16,FALSE)=0,VLOOKUP($A881,Economática!$A$3:$AI$823,16,FALSE)=\"-\"),1/0,VLOOKUP($A881,Economática!$A$3:$AI$823,16,FALSE)))","v":""},{"$f":"IF($A881=\"\",\"\",IF(OR(VLOOKUP($A881,Economática!$A$3:$AI$823,17,FALSE)=0,VLOOKUP($A881,Economática!$A$3:$AI$823,17,FALSE)=\"-\"),1/0,VLOOKUP($A881,Economática!$A$3:$AI$823,17,FALSE)))","v":""},{"$f":"IF($A881=\"\",\"\",IF(OR(VLOOKUP($A881,Economática!$A$3:$AI$823,18,FALSE)=0,VLOOKUP($A881,Economática!$A$3:$AI$823,18,FALSE)=\"-\"),1/0,VLOOKUP($A881,Economática!$A$3:$AI$823,18,FALSE)))","v":""},{"$f":"IF($A881=\"\",\"\",IF(OR(VLOOKUP($A881,Economática!$A$3:$AI$823,19,FALSE)=0,VLOOKUP($A881,Economática!$A$3:$AI$823,19,FALSE)=\"-\"),1/0,VLOOKUP($A881,Economática!$A$3:$AI$823,19,FALSE)))","v":""},{"$f":"IF($A881=\"\",\"\",VLOOKUP($A881,Economática!$A$3:$AI$823,20,FALSE)/E881)","v":""},"","","",{"$f":"IF($A881=\"\",\"\",IF(OR(VLOOKUP($A881,Economática!$A$3:$AI$823,21,FALSE)/100=0,VLOOKUP($A881,Economática!$A$3:$AI$823,21,FALSE)/100=\"-\"),1/0,VLOOKUP($A881,Economática!$A$3:$AI$823,21,FALSE)/100))","v":""},{"$f":"IF($A881=\"\",\"\",IF(OR(VLOOKUP($A881,Economática!$A$3:$AI$823,22,FALSE)/100=0,VLOOKUP($A881,Economática!$A$3:$AI$823,22,FALSE)/100=\"-\"),1/0,VLOOKUP($A881,Economática!$A$3:$AI$823,22,FALSE)/100))","v":""},{"$f":"IF($A881=\"\",\"\",IF(OR(VLOOKUP($A881,Economática!$A$3:$AI$823,23,FALSE)=0,VLOOKUP($A881,Economática!$A$3:$AI$823,23,FALSE)=\"-\"),1/0,VLOOKUP($A881,Economática!$A$3:$AI$823,23,FALSE)))","v":""},{"$f":"IF($A881=\"\",\"\",IF(OR(VLOOKUP($A881,Economática!$A$3:$AI$823,24,FALSE)=0,VLOOKUP($A881,Economática!$A$3:$AI$823,24,FALSE)=\"-\"),1/0,VLOOKUP($A881,Economática!$A$3:$AI$823,24,FALSE)))","v":""},{"$f":"IF($A881=\"\",\"\",IF(OR(VLOOKUP($A881,Economática!$A$3:$AI$823,25,FALSE)=0,VLOOKUP($A881,Economática!$A$3:$AI$823,25,FALSE)=\"-\"),1/0,VLOOKUP($A881,Economática!$A$3:$AI$823,25,FALSE)))","v":""},{"$f":"IF($A881=\"\",\"\",IF(ISERROR((F881+VLOOKUP($A881,Economática!$A$3:$AI$823,26,FALSE))/Y881),(F881+VLOOKUP($A881,Economática!$A$3:$AI$823,26,FALSE))/Y881,(F881+VLOOKUP($A881,Economática!$A$3:$AI$823,26,FALSE))/Y881))","v":""},{"$f":"IF($A881=\"\",\"\",IF(OR(-VLOOKUP($A881,Economática!$A$3:$AI$823,27,FALSE)=0,-VLOOKUP($A881,Economática!$A$3:$AI$823,27,FALSE)=\"-\"),1/0,-VLOOKUP($A881,Economática!$A$3:$AI$823,27,FALSE)))","v":""},"",{"$f":"IF($A881=\"\",\"\",IF(OR(VLOOKUP($A881,Economática!$A$3:$AI$823,28,FALSE)=0,VLOOKUP($A881,Economática!$A$3:$AI$823,28,FALSE)=\"-\"),1/0,VLOOKUP($A881,Economática!$A$3:$AI$823,28,FALSE)))","v":""},{"$f":"IF($A881=\"\",\"\",IF(OR(VLOOKUP($A881,Economática!$A$3:$AI$823,29,FALSE)=0,VLOOKUP($A881,Economática!$A$3:$AI$823,29,FALSE)=\"-\"),1/0,VLOOKUP($A881,Economática!$A$3:$AI$823,29,FALSE)))","v":""},{"$f":"IF($A881=\"\",\"\",IF(OR(VLOOKUP($A881,Economática!$A$3:$AI$823,30,FALSE)/E881=0,VLOOKUP($A881,Economática!$A$3:$AI$823,30,FALSE)/E881=\"-\",VLOOKUP($A881,Economática!$A$3:$AI$823,30,FALSE)/E881<33.33%,VLOOKUP($A881,Economática!$A$3:$AI$823,30,FALSE)/E881>100%),1/0,VLOOKUP($A881,Economática!$A$3:$AI$823,30,FALSE)/E881))","v":""},"",{"$f":"IF($A881=\"\",\"\",IF(OR(VLOOKUP($A881,Economática!$A$3:$AI$823,25,FALSE)=0,VLOOKUP($A881,Economática!$A$3:$AI$823,25,FALSE)=\"-\"),1/0,VLOOKUP($A881,Economática!$A$3:$AI$823,25,FALSE)))","v":""},{"$f":"CONCATENATE(Economática!B859,\" \",Economática!C859)","v":" "}]
[{"$f":"IF(Economática!AG860=\"\",\"\",Economática!AG860)","v":""},{"$f":"IF($A882=\"\",\"\",VLOOKUP(VLOOKUP($A882,Economática!$A$3:$AI$823,6,FALSE),Correção!$B$16:$C$36,2,FALSE))","v":""},{"$f":"IF(Economática!B860=\"\",\"\",Economática!B860)","v":""},{"$f":"IF($A882=\"\",\"\",IF(OR(VLOOKUP($A882,Economática!$A$3:$AI$823,8,FALSE)=0,VLOOKUP($A882,Economática!$A$3:$AI$823,8,FALSE)=\"-\"),1/0,VLOOKUP($A882,Economática!$A$3:$AI$823,8,FALSE)))","v":""},{"$f":"IF(A882=\"\",\"\",IF(ISERROR(VLOOKUP(A882,Correção!$B$2:$G$13,9,FALSE)),VLOOKUP($A882,Economática!$A$3:$AI$823,9,FALSE),VLOOKUP(A882,Correção!$B$2:$G$13,9,FALSE)))","v":""},{"$f":"IF($A882=\"\",\"\",Economática!G860)","v":""},{"$f":"IF($A882=\"\",\"\",IF(OR(VLOOKUP($A882,Economática!$A$3:$AI$823,10,FALSE)=0,VLOOKUP($A882,Economática!$A$3:$AI$823,10,FALSE)=\"-\"),1/0,VLOOKUP($A882,Economática!$A$3:$AI$823,10,FALSE)))","v":""},{"$f":"IF($A882=\"\",\"\",IF(OR(VLOOKUP($A882,Economática!$A$3:$AI$823,11,FALSE)=0,VLOOKUP($A882,Economática!$A$3:$AI$823,11,FALSE)=\"-\"),1/0,VLOOKUP($A882,Economática!$A$3:$AI$823,11,FALSE)))","v":""},{"$f":"IF($A882=\"\",\"\",IF(OR(VLOOKUP($A882,Economática!$A$3:$AI$823,12,FALSE)=0,VLOOKUP($A882,Economática!$A$3:$AI$823,12,FALSE)=\"-\"),1/0,VLOOKUP($A882,Economática!$A$3:$AI$823,12,FALSE)))","v":""},{"$f":"IF($A882=\"\",\"\",IF(OR(VLOOKUP($A882,Economática!$A$3:$AI$823,13,FALSE)=0,VLOOKUP($A882,Economática!$A$3:$AI$823,13,FALSE)=\"-\"),1/0,VLOOKUP($A882,Economática!$A$3:$AI$823,13,FALSE)))","v":""},{"$f":"IF($A882=\"\",\"\",IF(OR(VLOOKUP($A882,Economática!$A$3:$AI$823,14,FALSE)=0,VLOOKUP($A882,Economática!$A$3:$AI$823,14,FALSE)=\"-\"),1/0,VLOOKUP($A882,Economática!$A$3:$AI$823,14,FALSE)))","v":""},{"$f":"IF($A882=\"\",\"\",IF(OR(VLOOKUP($A882,Economática!$A$3:$AI$823,15,FALSE)=0,VLOOKUP($A882,Economática!$A$3:$AI$823,15,FALSE)=\"-\"),1/0,VLOOKUP($A882,Economática!$A$3:$AI$823,15,FALSE)))","v":""},{"$f":"IF($A882=\"\",\"\",IF(OR(VLOOKUP($A882,Economática!$A$3:$AI$823,16,FALSE)=0,VLOOKUP($A882,Economática!$A$3:$AI$823,16,FALSE)=\"-\"),1/0,VLOOKUP($A882,Economática!$A$3:$AI$823,16,FALSE)))","v":""},{"$f":"IF($A882=\"\",\"\",IF(OR(VLOOKUP($A882,Economática!$A$3:$AI$823,17,FALSE)=0,VLOOKUP($A882,Economática!$A$3:$AI$823,17,FALSE)=\"-\"),1/0,VLOOKUP($A882,Economática!$A$3:$AI$823,17,FALSE)))","v":""},{"$f":"IF($A882=\"\",\"\",IF(OR(VLOOKUP($A882,Economática!$A$3:$AI$823,18,FALSE)=0,VLOOKUP($A882,Economática!$A$3:$AI$823,18,FALSE)=\"-\"),1/0,VLOOKUP($A882,Economática!$A$3:$AI$823,18,FALSE)))","v":""},{"$f":"IF($A882=\"\",\"\",IF(OR(VLOOKUP($A882,Economática!$A$3:$AI$823,19,FALSE)=0,VLOOKUP($A882,Economática!$A$3:$AI$823,19,FALSE)=\"-\"),1/0,VLOOKUP($A882,Economática!$A$3:$AI$823,19,FALSE)))","v":""},{"$f":"IF($A882=\"\",\"\",VLOOKUP($A882,Economática!$A$3:$AI$823,20,FALSE)/E882)","v":""},"","","",{"$f":"IF($A882=\"\",\"\",IF(OR(VLOOKUP($A882,Economática!$A$3:$AI$823,21,FALSE)/100=0,VLOOKUP($A882,Economática!$A$3:$AI$823,21,FALSE)/100=\"-\"),1/0,VLOOKUP($A882,Economática!$A$3:$AI$823,21,FALSE)/100))","v":""},{"$f":"IF($A882=\"\",\"\",IF(OR(VLOOKUP($A882,Economática!$A$3:$AI$823,22,FALSE)/100=0,VLOOKUP($A882,Economática!$A$3:$AI$823,22,FALSE)/100=\"-\"),1/0,VLOOKUP($A882,Economática!$A$3:$AI$823,22,FALSE)/100))","v":""},{"$f":"IF($A882=\"\",\"\",IF(OR(VLOOKUP($A882,Economática!$A$3:$AI$823,23,FALSE)=0,VLOOKUP($A882,Economática!$A$3:$AI$823,23,FALSE)=\"-\"),1/0,VLOOKUP($A882,Economática!$A$3:$AI$823,23,FALSE)))","v":""},{"$f":"IF($A882=\"\",\"\",IF(OR(VLOOKUP($A882,Economática!$A$3:$AI$823,24,FALSE)=0,VLOOKUP($A882,Economática!$A$3:$AI$823,24,FALSE)=\"-\"),1/0,VLOOKUP($A882,Economática!$A$3:$AI$823,24,FALSE)))","v":""},{"$f":"IF($A882=\"\",\"\",IF(OR(VLOOKUP($A882,Economática!$A$3:$AI$823,25,FALSE)=0,VLOOKUP($A882,Economática!$A$3:$AI$823,25,FALSE)=\"-\"),1/0,VLOOKUP($A882,Economática!$A$3:$AI$823,25,FALSE)))","v":""},{"$f":"IF($A882=\"\",\"\",IF(ISERROR((F882+VLOOKUP($A882,Economática!$A$3:$AI$823,26,FALSE))/Y882),(F882+VLOOKUP($A882,Economática!$A$3:$AI$823,26,FALSE))/Y882,(F882+VLOOKUP($A882,Economática!$A$3:$AI$823,26,FALSE))/Y882))","v":""},{"$f":"IF($A882=\"\",\"\",IF(OR(-VLOOKUP($A882,Economática!$A$3:$AI$823,27,FALSE)=0,-VLOOKUP($A882,Economática!$A$3:$AI$823,27,FALSE)=\"-\"),1/0,-VLOOKUP($A882,Economática!$A$3:$AI$823,27,FALSE)))","v":""},"",{"$f":"IF($A882=\"\",\"\",IF(OR(VLOOKUP($A882,Economática!$A$3:$AI$823,28,FALSE)=0,VLOOKUP($A882,Economática!$A$3:$AI$823,28,FALSE)=\"-\"),1/0,VLOOKUP($A882,Economática!$A$3:$AI$823,28,FALSE)))","v":""},{"$f":"IF($A882=\"\",\"\",IF(OR(VLOOKUP($A882,Economática!$A$3:$AI$823,29,FALSE)=0,VLOOKUP($A882,Economática!$A$3:$AI$823,29,FALSE)=\"-\"),1/0,VLOOKUP($A882,Economática!$A$3:$AI$823,29,FALSE)))","v":""},{"$f":"IF($A882=\"\",\"\",IF(OR(VLOOKUP($A882,Economática!$A$3:$AI$823,30,FALSE)/E882=0,VLOOKUP($A882,Economática!$A$3:$AI$823,30,FALSE)/E882=\"-\",VLOOKUP($A882,Economática!$A$3:$AI$823,30,FALSE)/E882<33.33%,VLOOKUP($A882,Economática!$A$3:$AI$823,30,FALSE)/E882>100%),1/0,VLOOKUP($A882,Economática!$A$3:$AI$823,30,FALSE)/E882))","v":""},"",{"$f":"IF($A882=\"\",\"\",IF(OR(VLOOKUP($A882,Economática!$A$3:$AI$823,25,FALSE)=0,VLOOKUP($A882,Economática!$A$3:$AI$823,25,FALSE)=\"-\"),1/0,VLOOKUP($A882,Economática!$A$3:$AI$823,25,FALSE)))","v":""},{"$f":"CONCATENATE(Economática!B860,\" \",Economática!C860)","v":" "}]
[{"$f":"IF(Economática!AG861=\"\",\"\",Economática!AG861)","v":""},{"$f":"IF($A883=\"\",\"\",VLOOKUP(VLOOKUP($A883,Economática!$A$3:$AI$823,6,FALSE),Correção!$B$16:$C$36,2,FALSE))","v":""},{"$f":"IF(Economática!B861=\"\",\"\",Economática!B861)","v":""},{"$f":"IF($A883=\"\",\"\",IF(OR(VLOOKUP($A883,Economática!$A$3:$AI$823,8,FALSE)=0,VLOOKUP($A883,Economática!$A$3:$AI$823,8,FALSE)=\"-\"),1/0,VLOOKUP($A883,Economática!$A$3:$AI$823,8,FALSE)))","v":""},{"$f":"IF(A883=\"\",\"\",IF(ISERROR(VLOOKUP(A883,Correção!$B$2:$G$13,9,FALSE)),VLOOKUP($A883,Economática!$A$3:$AI$823,9,FALSE),VLOOKUP(A883,Correção!$B$2:$G$13,9,FALSE)))","v":""},{"$f":"IF($A883=\"\",\"\",Economática!G861)","v":""},{"$f":"IF($A883=\"\",\"\",IF(OR(VLOOKUP($A883,Economática!$A$3:$AI$823,10,FALSE)=0,VLOOKUP($A883,Economática!$A$3:$AI$823,10,FALSE)=\"-\"),1/0,VLOOKUP($A883,Economática!$A$3:$AI$823,10,FALSE)))","v":""},{"$f":"IF($A883=\"\",\"\",IF(OR(VLOOKUP($A883,Economática!$A$3:$AI$823,11,FALSE)=0,VLOOKUP($A883,Economática!$A$3:$AI$823,11,FALSE)=\"-\"),1/0,VLOOKUP($A883,Economática!$A$3:$AI$823,11,FALSE)))","v":""},{"$f":"IF($A883=\"\",\"\",IF(OR(VLOOKUP($A883,Economática!$A$3:$AI$823,12,FALSE)=0,VLOOKUP($A883,Economática!$A$3:$AI$823,12,FALSE)=\"-\"),1/0,VLOOKUP($A883,Economática!$A$3:$AI$823,12,FALSE)))","v":""},{"$f":"IF($A883=\"\",\"\",IF(OR(VLOOKUP($A883,Economática!$A$3:$AI$823,13,FALSE)=0,VLOOKUP($A883,Economática!$A$3:$AI$823,13,FALSE)=\"-\"),1/0,VLOOKUP($A883,Economática!$A$3:$AI$823,13,FALSE)))","v":""},{"$f":"IF($A883=\"\",\"\",IF(OR(VLOOKUP($A883,Economática!$A$3:$AI$823,14,FALSE)=0,VLOOKUP($A883,Economática!$A$3:$AI$823,14,FALSE)=\"-\"),1/0,VLOOKUP($A883,Economática!$A$3:$AI$823,14,FALSE)))","v":""},{"$f":"IF($A883=\"\",\"\",IF(OR(VLOOKUP($A883,Economática!$A$3:$AI$823,15,FALSE)=0,VLOOKUP($A883,Economática!$A$3:$AI$823,15,FALSE)=\"-\"),1/0,VLOOKUP($A883,Economática!$A$3:$AI$823,15,FALSE)))","v":""},{"$f":"IF($A883=\"\",\"\",IF(OR(VLOOKUP($A883,Economática!$A$3:$AI$823,16,FALSE)=0,VLOOKUP($A883,Economática!$A$3:$AI$823,16,FALSE)=\"-\"),1/0,VLOOKUP($A883,Economática!$A$3:$AI$823,16,FALSE)))","v":""},{"$f":"IF($A883=\"\",\"\",IF(OR(VLOOKUP($A883,Economática!$A$3:$AI$823,17,FALSE)=0,VLOOKUP($A883,Economática!$A$3:$AI$823,17,FALSE)=\"-\"),1/0,VLOOKUP($A883,Economática!$A$3:$AI$823,17,FALSE)))","v":""},{"$f":"IF($A883=\"\",\"\",IF(OR(VLOOKUP($A883,Economática!$A$3:$AI$823,18,FALSE)=0,VLOOKUP($A883,Economática!$A$3:$AI$823,18,FALSE)=\"-\"),1/0,VLOOKUP($A883,Economática!$A$3:$AI$823,18,FALSE)))","v":""},{"$f":"IF($A883=\"\",\"\",IF(OR(VLOOKUP($A883,Economática!$A$3:$AI$823,19,FALSE)=0,VLOOKUP($A883,Economática!$A$3:$AI$823,19,FALSE)=\"-\"),1/0,VLOOKUP($A883,Economática!$A$3:$AI$823,19,FALSE)))","v":""},{"$f":"IF($A883=\"\",\"\",VLOOKUP($A883,Economática!$A$3:$AI$823,20,FALSE)/E883)","v":""},"","","",{"$f":"IF($A883=\"\",\"\",IF(OR(VLOOKUP($A883,Economática!$A$3:$AI$823,21,FALSE)/100=0,VLOOKUP($A883,Economática!$A$3:$AI$823,21,FALSE)/100=\"-\"),1/0,VLOOKUP($A883,Economática!$A$3:$AI$823,21,FALSE)/100))","v":""},{"$f":"IF($A883=\"\",\"\",IF(OR(VLOOKUP($A883,Economática!$A$3:$AI$823,22,FALSE)/100=0,VLOOKUP($A883,Economática!$A$3:$AI$823,22,FALSE)/100=\"-\"),1/0,VLOOKUP($A883,Economática!$A$3:$AI$823,22,FALSE)/100))","v":""},{"$f":"IF($A883=\"\",\"\",IF(OR(VLOOKUP($A883,Economática!$A$3:$AI$823,23,FALSE)=0,VLOOKUP($A883,Economática!$A$3:$AI$823,23,FALSE)=\"-\"),1/0,VLOOKUP($A883,Economática!$A$3:$AI$823,23,FALSE)))","v":""},{"$f":"IF($A883=\"\",\"\",IF(OR(VLOOKUP($A883,Economática!$A$3:$AI$823,24,FALSE)=0,VLOOKUP($A883,Economática!$A$3:$AI$823,24,FALSE)=\"-\"),1/0,VLOOKUP($A883,Economática!$A$3:$AI$823,24,FALSE)))","v":""},{"$f":"IF($A883=\"\",\"\",IF(OR(VLOOKUP($A883,Economática!$A$3:$AI$823,25,FALSE)=0,VLOOKUP($A883,Economática!$A$3:$AI$823,25,FALSE)=\"-\"),1/0,VLOOKUP($A883,Economática!$A$3:$AI$823,25,FALSE)))","v":""},{"$f":"IF($A883=\"\",\"\",IF(ISERROR((F883+VLOOKUP($A883,Economática!$A$3:$AI$823,26,FALSE))/Y883),(F883+VLOOKUP($A883,Economática!$A$3:$AI$823,26,FALSE))/Y883,(F883+VLOOKUP($A883,Economática!$A$3:$AI$823,26,FALSE))/Y883))","v":""},{"$f":"IF($A883=\"\",\"\",IF(OR(-VLOOKUP($A883,Economática!$A$3:$AI$823,27,FALSE)=0,-VLOOKUP($A883,Economática!$A$3:$AI$823,27,FALSE)=\"-\"),1/0,-VLOOKUP($A883,Economática!$A$3:$AI$823,27,FALSE)))","v":""},"",{"$f":"IF($A883=\"\",\"\",IF(OR(VLOOKUP($A883,Economática!$A$3:$AI$823,28,FALSE)=0,VLOOKUP($A883,Economática!$A$3:$AI$823,28,FALSE)=\"-\"),1/0,VLOOKUP($A883,Economática!$A$3:$AI$823,28,FALSE)))","v":""},{"$f":"IF($A883=\"\",\"\",IF(OR(VLOOKUP($A883,Economática!$A$3:$AI$823,29,FALSE)=0,VLOOKUP($A883,Economática!$A$3:$AI$823,29,FALSE)=\"-\"),1/0,VLOOKUP($A883,Economática!$A$3:$AI$823,29,FALSE)))","v":""},{"$f":"IF($A883=\"\",\"\",IF(OR(VLOOKUP($A883,Economática!$A$3:$AI$823,30,FALSE)/E883=0,VLOOKUP($A883,Economática!$A$3:$AI$823,30,FALSE)/E883=\"-\",VLOOKUP($A883,Economática!$A$3:$AI$823,30,FALSE)/E883<33.33%,VLOOKUP($A883,Economática!$A$3:$AI$823,30,FALSE)/E883>100%),1/0,VLOOKUP($A883,Economática!$A$3:$AI$823,30,FALSE)/E883))","v":""},"",{"$f":"IF($A883=\"\",\"\",IF(OR(VLOOKUP($A883,Economática!$A$3:$AI$823,25,FALSE)=0,VLOOKUP($A883,Economática!$A$3:$AI$823,25,FALSE)=\"-\"),1/0,VLOOKUP($A883,Economática!$A$3:$AI$823,25,FALSE)))","v":""},{"$f":"CONCATENATE(Economática!B861,\" \",Economática!C861)","v":" "}]
[{"$f":"IF(Economática!AG862=\"\",\"\",Economática!AG862)","v":""},{"$f":"IF($A884=\"\",\"\",VLOOKUP(VLOOKUP($A884,Economática!$A$3:$AI$823,6,FALSE),Correção!$B$16:$C$36,2,FALSE))","v":""},{"$f":"IF(Economática!B862=\"\",\"\",Economática!B862)","v":""},{"$f":"IF($A884=\"\",\"\",IF(OR(VLOOKUP($A884,Economática!$A$3:$AI$823,8,FALSE)=0,VLOOKUP($A884,Economática!$A$3:$AI$823,8,FALSE)=\"-\"),1/0,VLOOKUP($A884,Economática!$A$3:$AI$823,8,FALSE)))","v":""},{"$f":"IF(A884=\"\",\"\",IF(ISERROR(VLOOKUP(A884,Correção!$B$2:$G$13,9,FALSE)),VLOOKUP($A884,Economática!$A$3:$AI$823,9,FALSE),VLOOKUP(A884,Correção!$B$2:$G$13,9,FALSE)))","v":""},{"$f":"IF($A884=\"\",\"\",Economática!G862)","v":""},{"$f":"IF($A884=\"\",\"\",IF(OR(VLOOKUP($A884,Economática!$A$3:$AI$823,10,FALSE)=0,VLOOKUP($A884,Economática!$A$3:$AI$823,10,FALSE)=\"-\"),1/0,VLOOKUP($A884,Economática!$A$3:$AI$823,10,FALSE)))","v":""},{"$f":"IF($A884=\"\",\"\",IF(OR(VLOOKUP($A884,Economática!$A$3:$AI$823,11,FALSE)=0,VLOOKUP($A884,Economática!$A$3:$AI$823,11,FALSE)=\"-\"),1/0,VLOOKUP($A884,Economática!$A$3:$AI$823,11,FALSE)))","v":""},{"$f":"IF($A884=\"\",\"\",IF(OR(VLOOKUP($A884,Economática!$A$3:$AI$823,12,FALSE)=0,VLOOKUP($A884,Economática!$A$3:$AI$823,12,FALSE)=\"-\"),1/0,VLOOKUP($A884,Economática!$A$3:$AI$823,12,FALSE)))","v":""},{"$f":"IF($A884=\"\",\"\",IF(OR(VLOOKUP($A884,Economática!$A$3:$AI$823,13,FALSE)=0,VLOOKUP($A884,Economática!$A$3:$AI$823,13,FALSE)=\"-\"),1/0,VLOOKUP($A884,Economática!$A$3:$AI$823,13,FALSE)))","v":""},{"$f":"IF($A884=\"\",\"\",IF(OR(VLOOKUP($A884,Economática!$A$3:$AI$823,14,FALSE)=0,VLOOKUP($A884,Economática!$A$3:$AI$823,14,FALSE)=\"-\"),1/0,VLOOKUP($A884,Economática!$A$3:$AI$823,14,FALSE)))","v":""},{"$f":"IF($A884=\"\",\"\",IF(OR(VLOOKUP($A884,Economática!$A$3:$AI$823,15,FALSE)=0,VLOOKUP($A884,Economática!$A$3:$AI$823,15,FALSE)=\"-\"),1/0,VLOOKUP($A884,Economática!$A$3:$AI$823,15,FALSE)))","v":""},{"$f":"IF($A884=\"\",\"\",IF(OR(VLOOKUP($A884,Economática!$A$3:$AI$823,16,FALSE)=0,VLOOKUP($A884,Economática!$A$3:$AI$823,16,FALSE)=\"-\"),1/0,VLOOKUP($A884,Economática!$A$3:$AI$823,16,FALSE)))","v":""},{"$f":"IF($A884=\"\",\"\",IF(OR(VLOOKUP($A884,Economática!$A$3:$AI$823,17,FALSE)=0,VLOOKUP($A884,Economática!$A$3:$AI$823,17,FALSE)=\"-\"),1/0,VLOOKUP($A884,Economática!$A$3:$AI$823,17,FALSE)))","v":""},{"$f":"IF($A884=\"\",\"\",IF(OR(VLOOKUP($A884,Economática!$A$3:$AI$823,18,FALSE)=0,VLOOKUP($A884,Economática!$A$3:$AI$823,18,FALSE)=\"-\"),1/0,VLOOKUP($A884,Economática!$A$3:$AI$823,18,FALSE)))","v":""},{"$f":"IF($A884=\"\",\"\",IF(OR(VLOOKUP($A884,Economática!$A$3:$AI$823,19,FALSE)=0,VLOOKUP($A884,Economática!$A$3:$AI$823,19,FALSE)=\"-\"),1/0,VLOOKUP($A884,Economática!$A$3:$AI$823,19,FALSE)))","v":""},{"$f":"IF($A884=\"\",\"\",VLOOKUP($A884,Economática!$A$3:$AI$823,20,FALSE)/E884)","v":""},"","","",{"$f":"IF($A884=\"\",\"\",IF(OR(VLOOKUP($A884,Economática!$A$3:$AI$823,21,FALSE)/100=0,VLOOKUP($A884,Economática!$A$3:$AI$823,21,FALSE)/100=\"-\"),1/0,VLOOKUP($A884,Economática!$A$3:$AI$823,21,FALSE)/100))","v":""},{"$f":"IF($A884=\"\",\"\",IF(OR(VLOOKUP($A884,Economática!$A$3:$AI$823,22,FALSE)/100=0,VLOOKUP($A884,Economática!$A$3:$AI$823,22,FALSE)/100=\"-\"),1/0,VLOOKUP($A884,Economática!$A$3:$AI$823,22,FALSE)/100))","v":""},{"$f":"IF($A884=\"\",\"\",IF(OR(VLOOKUP($A884,Economática!$A$3:$AI$823,23,FALSE)=0,VLOOKUP($A884,Economática!$A$3:$AI$823,23,FALSE)=\"-\"),1/0,VLOOKUP($A884,Economática!$A$3:$AI$823,23,FALSE)))","v":""},{"$f":"IF($A884=\"\",\"\",IF(OR(VLOOKUP($A884,Economática!$A$3:$AI$823,24,FALSE)=0,VLOOKUP($A884,Economática!$A$3:$AI$823,24,FALSE)=\"-\"),1/0,VLOOKUP($A884,Economática!$A$3:$AI$823,24,FALSE)))","v":""},{"$f":"IF($A884=\"\",\"\",IF(OR(VLOOKUP($A884,Economática!$A$3:$AI$823,25,FALSE)=0,VLOOKUP($A884,Economática!$A$3:$AI$823,25,FALSE)=\"-\"),1/0,VLOOKUP($A884,Economática!$A$3:$AI$823,25,FALSE)))","v":""},{"$f":"IF($A884=\"\",\"\",IF(ISERROR((F884+VLOOKUP($A884,Economática!$A$3:$AI$823,26,FALSE))/Y884),(F884+VLOOKUP($A884,Economática!$A$3:$AI$823,26,FALSE))/Y884,(F884+VLOOKUP($A884,Economática!$A$3:$AI$823,26,FALSE))/Y884))","v":""},{"$f":"IF($A884=\"\",\"\",IF(OR(-VLOOKUP($A884,Economática!$A$3:$AI$823,27,FALSE)=0,-VLOOKUP($A884,Economática!$A$3:$AI$823,27,FALSE)=\"-\"),1/0,-VLOOKUP($A884,Economática!$A$3:$AI$823,27,FALSE)))","v":""},"",{"$f":"IF($A884=\"\",\"\",IF(OR(VLOOKUP($A884,Economática!$A$3:$AI$823,28,FALSE)=0,VLOOKUP($A884,Economática!$A$3:$AI$823,28,FALSE)=\"-\"),1/0,VLOOKUP($A884,Economática!$A$3:$AI$823,28,FALSE)))","v":""},{"$f":"IF($A884=\"\",\"\",IF(OR(VLOOKUP($A884,Economática!$A$3:$AI$823,29,FALSE)=0,VLOOKUP($A884,Economática!$A$3:$AI$823,29,FALSE)=\"-\"),1/0,VLOOKUP($A884,Economática!$A$3:$AI$823,29,FALSE)))","v":""},{"$f":"IF($A884=\"\",\"\",IF(OR(VLOOKUP($A884,Economática!$A$3:$AI$823,30,FALSE)/E884=0,VLOOKUP($A884,Economática!$A$3:$AI$823,30,FALSE)/E884=\"-\",VLOOKUP($A884,Economática!$A$3:$AI$823,30,FALSE)/E884<33.33%,VLOOKUP($A884,Economática!$A$3:$AI$823,30,FALSE)/E884>100%),1/0,VLOOKUP($A884,Economática!$A$3:$AI$823,30,FALSE)/E884))","v":""},"",{"$f":"IF($A884=\"\",\"\",IF(OR(VLOOKUP($A884,Economática!$A$3:$AI$823,25,FALSE)=0,VLOOKUP($A884,Economática!$A$3:$AI$823,25,FALSE)=\"-\"),1/0,VLOOKUP($A884,Economática!$A$3:$AI$823,25,FALSE)))","v":""},{"$f":"CONCATENATE(Economática!B862,\" \",Economática!C862)","v":" "}]
[{"$f":"IF(Economática!AG863=\"\",\"\",Economática!AG863)","v":""},{"$f":"IF($A885=\"\",\"\",VLOOKUP(VLOOKUP($A885,Economática!$A$3:$AI$823,6,FALSE),Correção!$B$16:$C$36,2,FALSE))","v":""},{"$f":"IF(Economática!B863=\"\",\"\",Economática!B863)","v":""},{"$f":"IF($A885=\"\",\"\",IF(OR(VLOOKUP($A885,Economática!$A$3:$AI$823,8,FALSE)=0,VLOOKUP($A885,Economática!$A$3:$AI$823,8,FALSE)=\"-\"),1/0,VLOOKUP($A885,Economática!$A$3:$AI$823,8,FALSE)))","v":""},{"$f":"IF(A885=\"\",\"\",IF(ISERROR(VLOOKUP(A885,Correção!$B$2:$G$13,9,FALSE)),VLOOKUP($A885,Economática!$A$3:$AI$823,9,FALSE),VLOOKUP(A885,Correção!$B$2:$G$13,9,FALSE)))","v":""},{"$f":"IF($A885=\"\",\"\",Economática!G863)","v":""},{"$f":"IF($A885=\"\",\"\",IF(OR(VLOOKUP($A885,Economática!$A$3:$AI$823,10,FALSE)=0,VLOOKUP($A885,Economática!$A$3:$AI$823,10,FALSE)=\"-\"),1/0,VLOOKUP($A885,Economática!$A$3:$AI$823,10,FALSE)))","v":""},{"$f":"IF($A885=\"\",\"\",IF(OR(VLOOKUP($A885,Economática!$A$3:$AI$823,11,FALSE)=0,VLOOKUP($A885,Economática!$A$3:$AI$823,11,FALSE)=\"-\"),1/0,VLOOKUP($A885,Economática!$A$3:$AI$823,11,FALSE)))","v":""},{"$f":"IF($A885=\"\",\"\",IF(OR(VLOOKUP($A885,Economática!$A$3:$AI$823,12,FALSE)=0,VLOOKUP($A885,Economática!$A$3:$AI$823,12,FALSE)=\"-\"),1/0,VLOOKUP($A885,Economática!$A$3:$AI$823,12,FALSE)))","v":""},{"$f":"IF($A885=\"\",\"\",IF(OR(VLOOKUP($A885,Economática!$A$3:$AI$823,13,FALSE)=0,VLOOKUP($A885,Economática!$A$3:$AI$823,13,FALSE)=\"-\"),1/0,VLOOKUP($A885,Economática!$A$3:$AI$823,13,FALSE)))","v":""},{"$f":"IF($A885=\"\",\"\",IF(OR(VLOOKUP($A885,Economática!$A$3:$AI$823,14,FALSE)=0,VLOOKUP($A885,Economática!$A$3:$AI$823,14,FALSE)=\"-\"),1/0,VLOOKUP($A885,Economática!$A$3:$AI$823,14,FALSE)))","v":""},{"$f":"IF($A885=\"\",\"\",IF(OR(VLOOKUP($A885,Economática!$A$3:$AI$823,15,FALSE)=0,VLOOKUP($A885,Economática!$A$3:$AI$823,15,FALSE)=\"-\"),1/0,VLOOKUP($A885,Economática!$A$3:$AI$823,15,FALSE)))","v":""},{"$f":"IF($A885=\"\",\"\",IF(OR(VLOOKUP($A885,Economática!$A$3:$AI$823,16,FALSE)=0,VLOOKUP($A885,Economática!$A$3:$AI$823,16,FALSE)=\"-\"),1/0,VLOOKUP($A885,Economática!$A$3:$AI$823,16,FALSE)))","v":""},{"$f":"IF($A885=\"\",\"\",IF(OR(VLOOKUP($A885,Economática!$A$3:$AI$823,17,FALSE)=0,VLOOKUP($A885,Economática!$A$3:$AI$823,17,FALSE)=\"-\"),1/0,VLOOKUP($A885,Economática!$A$3:$AI$823,17,FALSE)))","v":""},{"$f":"IF($A885=\"\",\"\",IF(OR(VLOOKUP($A885,Economática!$A$3:$AI$823,18,FALSE)=0,VLOOKUP($A885,Economática!$A$3:$AI$823,18,FALSE)=\"-\"),1/0,VLOOKUP($A885,Economática!$A$3:$AI$823,18,FALSE)))","v":""},{"$f":"IF($A885=\"\",\"\",IF(OR(VLOOKUP($A885,Economática!$A$3:$AI$823,19,FALSE)=0,VLOOKUP($A885,Economática!$A$3:$AI$823,19,FALSE)=\"-\"),1/0,VLOOKUP($A885,Economática!$A$3:$AI$823,19,FALSE)))","v":""},{"$f":"IF($A885=\"\",\"\",VLOOKUP($A885,Economática!$A$3:$AI$823,20,FALSE)/E885)","v":""},"","","",{"$f":"IF($A885=\"\",\"\",IF(OR(VLOOKUP($A885,Economática!$A$3:$AI$823,21,FALSE)/100=0,VLOOKUP($A885,Economática!$A$3:$AI$823,21,FALSE)/100=\"-\"),1/0,VLOOKUP($A885,Economática!$A$3:$AI$823,21,FALSE)/100))","v":""},{"$f":"IF($A885=\"\",\"\",IF(OR(VLOOKUP($A885,Economática!$A$3:$AI$823,22,FALSE)/100=0,VLOOKUP($A885,Economática!$A$3:$AI$823,22,FALSE)/100=\"-\"),1/0,VLOOKUP($A885,Economática!$A$3:$AI$823,22,FALSE)/100))","v":""},{"$f":"IF($A885=\"\",\"\",IF(OR(VLOOKUP($A885,Economática!$A$3:$AI$823,23,FALSE)=0,VLOOKUP($A885,Economática!$A$3:$AI$823,23,FALSE)=\"-\"),1/0,VLOOKUP($A885,Economática!$A$3:$AI$823,23,FALSE)))","v":""},{"$f":"IF($A885=\"\",\"\",IF(OR(VLOOKUP($A885,Economática!$A$3:$AI$823,24,FALSE)=0,VLOOKUP($A885,Economática!$A$3:$AI$823,24,FALSE)=\"-\"),1/0,VLOOKUP($A885,Economática!$A$3:$AI$823,24,FALSE)))","v":""},{"$f":"IF($A885=\"\",\"\",IF(OR(VLOOKUP($A885,Economática!$A$3:$AI$823,25,FALSE)=0,VLOOKUP($A885,Economática!$A$3:$AI$823,25,FALSE)=\"-\"),1/0,VLOOKUP($A885,Economática!$A$3:$AI$823,25,FALSE)))","v":""},{"$f":"IF($A885=\"\",\"\",IF(ISERROR((F885+VLOOKUP($A885,Economática!$A$3:$AI$823,26,FALSE))/Y885),(F885+VLOOKUP($A885,Economática!$A$3:$AI$823,26,FALSE))/Y885,(F885+VLOOKUP($A885,Economática!$A$3:$AI$823,26,FALSE))/Y885))","v":""},{"$f":"IF($A885=\"\",\"\",IF(OR(-VLOOKUP($A885,Economática!$A$3:$AI$823,27,FALSE)=0,-VLOOKUP($A885,Economática!$A$3:$AI$823,27,FALSE)=\"-\"),1/0,-VLOOKUP($A885,Economática!$A$3:$AI$823,27,FALSE)))","v":""},"",{"$f":"IF($A885=\"\",\"\",IF(OR(VLOOKUP($A885,Economática!$A$3:$AI$823,28,FALSE)=0,VLOOKUP($A885,Economática!$A$3:$AI$823,28,FALSE)=\"-\"),1/0,VLOOKUP($A885,Economática!$A$3:$AI$823,28,FALSE)))","v":""},{"$f":"IF($A885=\"\",\"\",IF(OR(VLOOKUP($A885,Economática!$A$3:$AI$823,29,FALSE)=0,VLOOKUP($A885,Economática!$A$3:$AI$823,29,FALSE)=\"-\"),1/0,VLOOKUP($A885,Economática!$A$3:$AI$823,29,FALSE)))","v":""},{"$f":"IF($A885=\"\",\"\",IF(OR(VLOOKUP($A885,Economática!$A$3:$AI$823,30,FALSE)/E885=0,VLOOKUP($A885,Economática!$A$3:$AI$823,30,FALSE)/E885=\"-\",VLOOKUP($A885,Economática!$A$3:$AI$823,30,FALSE)/E885<33.33%,VLOOKUP($A885,Economática!$A$3:$AI$823,30,FALSE)/E885>100%),1/0,VLOOKUP($A885,Economática!$A$3:$AI$823,30,FALSE)/E885))","v":""},"",{"$f":"IF($A885=\"\",\"\",IF(OR(VLOOKUP($A885,Economática!$A$3:$AI$823,25,FALSE)=0,VLOOKUP($A885,Economática!$A$3:$AI$823,25,FALSE)=\"-\"),1/0,VLOOKUP($A885,Economática!$A$3:$AI$823,25,FALSE)))","v":""},{"$f":"CONCATENATE(Economática!B863,\" \",Economática!C863)","v":" "}]
[{"$f":"IF(Economática!AG864=\"\",\"\",Economática!AG864)","v":""},{"$f":"IF($A886=\"\",\"\",VLOOKUP(VLOOKUP($A886,Economática!$A$3:$AI$823,6,FALSE),Correção!$B$16:$C$36,2,FALSE))","v":""},{"$f":"IF(Economática!B864=\"\",\"\",Economática!B864)","v":""},{"$f":"IF($A886=\"\",\"\",IF(OR(VLOOKUP($A886,Economática!$A$3:$AI$823,8,FALSE)=0,VLOOKUP($A886,Economática!$A$3:$AI$823,8,FALSE)=\"-\"),1/0,VLOOKUP($A886,Economática!$A$3:$AI$823,8,FALSE)))","v":""},{"$f":"IF(A886=\"\",\"\",IF(ISERROR(VLOOKUP(A886,Correção!$B$2:$G$13,9,FALSE)),VLOOKUP($A886,Economática!$A$3:$AI$823,9,FALSE),VLOOKUP(A886,Correção!$B$2:$G$13,9,FALSE)))","v":""},{"$f":"IF($A886=\"\",\"\",Economática!G864)","v":""},{"$f":"IF($A886=\"\",\"\",IF(OR(VLOOKUP($A886,Economática!$A$3:$AI$823,10,FALSE)=0,VLOOKUP($A886,Economática!$A$3:$AI$823,10,FALSE)=\"-\"),1/0,VLOOKUP($A886,Economática!$A$3:$AI$823,10,FALSE)))","v":""},{"$f":"IF($A886=\"\",\"\",IF(OR(VLOOKUP($A886,Economática!$A$3:$AI$823,11,FALSE)=0,VLOOKUP($A886,Economática!$A$3:$AI$823,11,FALSE)=\"-\"),1/0,VLOOKUP($A886,Economática!$A$3:$AI$823,11,FALSE)))","v":""},{"$f":"IF($A886=\"\",\"\",IF(OR(VLOOKUP($A886,Economática!$A$3:$AI$823,12,FALSE)=0,VLOOKUP($A886,Economática!$A$3:$AI$823,12,FALSE)=\"-\"),1/0,VLOOKUP($A886,Economática!$A$3:$AI$823,12,FALSE)))","v":""},{"$f":"IF($A886=\"\",\"\",IF(OR(VLOOKUP($A886,Economática!$A$3:$AI$823,13,FALSE)=0,VLOOKUP($A886,Economática!$A$3:$AI$823,13,FALSE)=\"-\"),1/0,VLOOKUP($A886,Economática!$A$3:$AI$823,13,FALSE)))","v":""},{"$f":"IF($A886=\"\",\"\",IF(OR(VLOOKUP($A886,Economática!$A$3:$AI$823,14,FALSE)=0,VLOOKUP($A886,Economática!$A$3:$AI$823,14,FALSE)=\"-\"),1/0,VLOOKUP($A886,Economática!$A$3:$AI$823,14,FALSE)))","v":""},{"$f":"IF($A886=\"\",\"\",IF(OR(VLOOKUP($A886,Economática!$A$3:$AI$823,15,FALSE)=0,VLOOKUP($A886,Economática!$A$3:$AI$823,15,FALSE)=\"-\"),1/0,VLOOKUP($A886,Economática!$A$3:$AI$823,15,FALSE)))","v":""},{"$f":"IF($A886=\"\",\"\",IF(OR(VLOOKUP($A886,Economática!$A$3:$AI$823,16,FALSE)=0,VLOOKUP($A886,Economática!$A$3:$AI$823,16,FALSE)=\"-\"),1/0,VLOOKUP($A886,Economática!$A$3:$AI$823,16,FALSE)))","v":""},{"$f":"IF($A886=\"\",\"\",IF(OR(VLOOKUP($A886,Economática!$A$3:$AI$823,17,FALSE)=0,VLOOKUP($A886,Economática!$A$3:$AI$823,17,FALSE)=\"-\"),1/0,VLOOKUP($A886,Economática!$A$3:$AI$823,17,FALSE)))","v":""},{"$f":"IF($A886=\"\",\"\",IF(OR(VLOOKUP($A886,Economática!$A$3:$AI$823,18,FALSE)=0,VLOOKUP($A886,Economática!$A$3:$AI$823,18,FALSE)=\"-\"),1/0,VLOOKUP($A886,Economática!$A$3:$AI$823,18,FALSE)))","v":""},{"$f":"IF($A886=\"\",\"\",IF(OR(VLOOKUP($A886,Economática!$A$3:$AI$823,19,FALSE)=0,VLOOKUP($A886,Economática!$A$3:$AI$823,19,FALSE)=\"-\"),1/0,VLOOKUP($A886,Economática!$A$3:$AI$823,19,FALSE)))","v":""},{"$f":"IF($A886=\"\",\"\",VLOOKUP($A886,Economática!$A$3:$AI$823,20,FALSE)/E886)","v":""},"","","",{"$f":"IF($A886=\"\",\"\",IF(OR(VLOOKUP($A886,Economática!$A$3:$AI$823,21,FALSE)/100=0,VLOOKUP($A886,Economática!$A$3:$AI$823,21,FALSE)/100=\"-\"),1/0,VLOOKUP($A886,Economática!$A$3:$AI$823,21,FALSE)/100))","v":""},{"$f":"IF($A886=\"\",\"\",IF(OR(VLOOKUP($A886,Economática!$A$3:$AI$823,22,FALSE)/100=0,VLOOKUP($A886,Economática!$A$3:$AI$823,22,FALSE)/100=\"-\"),1/0,VLOOKUP($A886,Economática!$A$3:$AI$823,22,FALSE)/100))","v":""},{"$f":"IF($A886=\"\",\"\",IF(OR(VLOOKUP($A886,Economática!$A$3:$AI$823,23,FALSE)=0,VLOOKUP($A886,Economática!$A$3:$AI$823,23,FALSE)=\"-\"),1/0,VLOOKUP($A886,Economática!$A$3:$AI$823,23,FALSE)))","v":""},{"$f":"IF($A886=\"\",\"\",IF(OR(VLOOKUP($A886,Economática!$A$3:$AI$823,24,FALSE)=0,VLOOKUP($A886,Economática!$A$3:$AI$823,24,FALSE)=\"-\"),1/0,VLOOKUP($A886,Economática!$A$3:$AI$823,24,FALSE)))","v":""},{"$f":"IF($A886=\"\",\"\",IF(OR(VLOOKUP($A886,Economática!$A$3:$AI$823,25,FALSE)=0,VLOOKUP($A886,Economática!$A$3:$AI$823,25,FALSE)=\"-\"),1/0,VLOOKUP($A886,Economática!$A$3:$AI$823,25,FALSE)))","v":""},{"$f":"IF($A886=\"\",\"\",IF(ISERROR((F886+VLOOKUP($A886,Economática!$A$3:$AI$823,26,FALSE))/Y886),(F886+VLOOKUP($A886,Economática!$A$3:$AI$823,26,FALSE))/Y886,(F886+VLOOKUP($A886,Economática!$A$3:$AI$823,26,FALSE))/Y886))","v":""},{"$f":"IF($A886=\"\",\"\",IF(OR(-VLOOKUP($A886,Economática!$A$3:$AI$823,27,FALSE)=0,-VLOOKUP($A886,Economática!$A$3:$AI$823,27,FALSE)=\"-\"),1/0,-VLOOKUP($A886,Economática!$A$3:$AI$823,27,FALSE)))","v":""},"",{"$f":"IF($A886=\"\",\"\",IF(OR(VLOOKUP($A886,Economática!$A$3:$AI$823,28,FALSE)=0,VLOOKUP($A886,Economática!$A$3:$AI$823,28,FALSE)=\"-\"),1/0,VLOOKUP($A886,Economática!$A$3:$AI$823,28,FALSE)))","v":""},{"$f":"IF($A886=\"\",\"\",IF(OR(VLOOKUP($A886,Economática!$A$3:$AI$823,29,FALSE)=0,VLOOKUP($A886,Economática!$A$3:$AI$823,29,FALSE)=\"-\"),1/0,VLOOKUP($A886,Economática!$A$3:$AI$823,29,FALSE)))","v":""},{"$f":"IF($A886=\"\",\"\",IF(OR(VLOOKUP($A886,Economática!$A$3:$AI$823,30,FALSE)/E886=0,VLOOKUP($A886,Economática!$A$3:$AI$823,30,FALSE)/E886=\"-\",VLOOKUP($A886,Economática!$A$3:$AI$823,30,FALSE)/E886<33.33%,VLOOKUP($A886,Economática!$A$3:$AI$823,30,FALSE)/E886>100%),1/0,VLOOKUP($A886,Economática!$A$3:$AI$823,30,FALSE)/E886))","v":""},"",{"$f":"IF($A886=\"\",\"\",IF(OR(VLOOKUP($A886,Economática!$A$3:$AI$823,25,FALSE)=0,VLOOKUP($A886,Economática!$A$3:$AI$823,25,FALSE)=\"-\"),1/0,VLOOKUP($A886,Economática!$A$3:$AI$823,25,FALSE)))","v":""},{"$f":"CONCATENATE(Economática!B864,\" \",Economática!C864)","v":" "}]
[{"$f":"IF(Economática!AG865=\"\",\"\",Economática!AG865)","v":""},{"$f":"IF($A887=\"\",\"\",VLOOKUP(VLOOKUP($A887,Economática!$A$3:$AI$823,6,FALSE),Correção!$B$16:$C$36,2,FALSE))","v":""},{"$f":"IF(Economática!B865=\"\",\"\",Economática!B865)","v":""},{"$f":"IF($A887=\"\",\"\",IF(OR(VLOOKUP($A887,Economática!$A$3:$AI$823,8,FALSE)=0,VLOOKUP($A887,Economática!$A$3:$AI$823,8,FALSE)=\"-\"),1/0,VLOOKUP($A887,Economática!$A$3:$AI$823,8,FALSE)))","v":""},{"$f":"IF(A887=\"\",\"\",IF(ISERROR(VLOOKUP(A887,Correção!$B$2:$G$13,9,FALSE)),VLOOKUP($A887,Economática!$A$3:$AI$823,9,FALSE),VLOOKUP(A887,Correção!$B$2:$G$13,9,FALSE)))","v":""},{"$f":"IF($A887=\"\",\"\",Economática!G865)","v":""},{"$f":"IF($A887=\"\",\"\",IF(OR(VLOOKUP($A887,Economática!$A$3:$AI$823,10,FALSE)=0,VLOOKUP($A887,Economática!$A$3:$AI$823,10,FALSE)=\"-\"),1/0,VLOOKUP($A887,Economática!$A$3:$AI$823,10,FALSE)))","v":""},{"$f":"IF($A887=\"\",\"\",IF(OR(VLOOKUP($A887,Economática!$A$3:$AI$823,11,FALSE)=0,VLOOKUP($A887,Economática!$A$3:$AI$823,11,FALSE)=\"-\"),1/0,VLOOKUP($A887,Economática!$A$3:$AI$823,11,FALSE)))","v":""},{"$f":"IF($A887=\"\",\"\",IF(OR(VLOOKUP($A887,Economática!$A$3:$AI$823,12,FALSE)=0,VLOOKUP($A887,Economática!$A$3:$AI$823,12,FALSE)=\"-\"),1/0,VLOOKUP($A887,Economática!$A$3:$AI$823,12,FALSE)))","v":""},{"$f":"IF($A887=\"\",\"\",IF(OR(VLOOKUP($A887,Economática!$A$3:$AI$823,13,FALSE)=0,VLOOKUP($A887,Economática!$A$3:$AI$823,13,FALSE)=\"-\"),1/0,VLOOKUP($A887,Economática!$A$3:$AI$823,13,FALSE)))","v":""},{"$f":"IF($A887=\"\",\"\",IF(OR(VLOOKUP($A887,Economática!$A$3:$AI$823,14,FALSE)=0,VLOOKUP($A887,Economática!$A$3:$AI$823,14,FALSE)=\"-\"),1/0,VLOOKUP($A887,Economática!$A$3:$AI$823,14,FALSE)))","v":""},{"$f":"IF($A887=\"\",\"\",IF(OR(VLOOKUP($A887,Economática!$A$3:$AI$823,15,FALSE)=0,VLOOKUP($A887,Economática!$A$3:$AI$823,15,FALSE)=\"-\"),1/0,VLOOKUP($A887,Economática!$A$3:$AI$823,15,FALSE)))","v":""},{"$f":"IF($A887=\"\",\"\",IF(OR(VLOOKUP($A887,Economática!$A$3:$AI$823,16,FALSE)=0,VLOOKUP($A887,Economática!$A$3:$AI$823,16,FALSE)=\"-\"),1/0,VLOOKUP($A887,Economática!$A$3:$AI$823,16,FALSE)))","v":""},{"$f":"IF($A887=\"\",\"\",IF(OR(VLOOKUP($A887,Economática!$A$3:$AI$823,17,FALSE)=0,VLOOKUP($A887,Economática!$A$3:$AI$823,17,FALSE)=\"-\"),1/0,VLOOKUP($A887,Economática!$A$3:$AI$823,17,FALSE)))","v":""},{"$f":"IF($A887=\"\",\"\",IF(OR(VLOOKUP($A887,Economática!$A$3:$AI$823,18,FALSE)=0,VLOOKUP($A887,Economática!$A$3:$AI$823,18,FALSE)=\"-\"),1/0,VLOOKUP($A887,Economática!$A$3:$AI$823,18,FALSE)))","v":""},{"$f":"IF($A887=\"\",\"\",IF(OR(VLOOKUP($A887,Economática!$A$3:$AI$823,19,FALSE)=0,VLOOKUP($A887,Economática!$A$3:$AI$823,19,FALSE)=\"-\"),1/0,VLOOKUP($A887,Economática!$A$3:$AI$823,19,FALSE)))","v":""},{"$f":"IF($A887=\"\",\"\",VLOOKUP($A887,Economática!$A$3:$AI$823,20,FALSE)/E887)","v":""},"","","",{"$f":"IF($A887=\"\",\"\",IF(OR(VLOOKUP($A887,Economática!$A$3:$AI$823,21,FALSE)/100=0,VLOOKUP($A887,Economática!$A$3:$AI$823,21,FALSE)/100=\"-\"),1/0,VLOOKUP($A887,Economática!$A$3:$AI$823,21,FALSE)/100))","v":""},{"$f":"IF($A887=\"\",\"\",IF(OR(VLOOKUP($A887,Economática!$A$3:$AI$823,22,FALSE)/100=0,VLOOKUP($A887,Economática!$A$3:$AI$823,22,FALSE)/100=\"-\"),1/0,VLOOKUP($A887,Economática!$A$3:$AI$823,22,FALSE)/100))","v":""},{"$f":"IF($A887=\"\",\"\",IF(OR(VLOOKUP($A887,Economática!$A$3:$AI$823,23,FALSE)=0,VLOOKUP($A887,Economática!$A$3:$AI$823,23,FALSE)=\"-\"),1/0,VLOOKUP($A887,Economática!$A$3:$AI$823,23,FALSE)))","v":""},{"$f":"IF($A887=\"\",\"\",IF(OR(VLOOKUP($A887,Economática!$A$3:$AI$823,24,FALSE)=0,VLOOKUP($A887,Economática!$A$3:$AI$823,24,FALSE)=\"-\"),1/0,VLOOKUP($A887,Economática!$A$3:$AI$823,24,FALSE)))","v":""},{"$f":"IF($A887=\"\",\"\",IF(OR(VLOOKUP($A887,Economática!$A$3:$AI$823,25,FALSE)=0,VLOOKUP($A887,Economática!$A$3:$AI$823,25,FALSE)=\"-\"),1/0,VLOOKUP($A887,Economática!$A$3:$AI$823,25,FALSE)))","v":""},{"$f":"IF($A887=\"\",\"\",IF(ISERROR((F887+VLOOKUP($A887,Economática!$A$3:$AI$823,26,FALSE))/Y887),(F887+VLOOKUP($A887,Economática!$A$3:$AI$823,26,FALSE))/Y887,(F887+VLOOKUP($A887,Economática!$A$3:$AI$823,26,FALSE))/Y887))","v":""},{"$f":"IF($A887=\"\",\"\",IF(OR(-VLOOKUP($A887,Economática!$A$3:$AI$823,27,FALSE)=0,-VLOOKUP($A887,Economática!$A$3:$AI$823,27,FALSE)=\"-\"),1/0,-VLOOKUP($A887,Economática!$A$3:$AI$823,27,FALSE)))","v":""},"",{"$f":"IF($A887=\"\",\"\",IF(OR(VLOOKUP($A887,Economática!$A$3:$AI$823,28,FALSE)=0,VLOOKUP($A887,Economática!$A$3:$AI$823,28,FALSE)=\"-\"),1/0,VLOOKUP($A887,Economática!$A$3:$AI$823,28,FALSE)))","v":""},{"$f":"IF($A887=\"\",\"\",IF(OR(VLOOKUP($A887,Economática!$A$3:$AI$823,29,FALSE)=0,VLOOKUP($A887,Economática!$A$3:$AI$823,29,FALSE)=\"-\"),1/0,VLOOKUP($A887,Economática!$A$3:$AI$823,29,FALSE)))","v":""},{"$f":"IF($A887=\"\",\"\",IF(OR(VLOOKUP($A887,Economática!$A$3:$AI$823,30,FALSE)/E887=0,VLOOKUP($A887,Economática!$A$3:$AI$823,30,FALSE)/E887=\"-\",VLOOKUP($A887,Economática!$A$3:$AI$823,30,FALSE)/E887<33.33%,VLOOKUP($A887,Economática!$A$3:$AI$823,30,FALSE)/E887>100%),1/0,VLOOKUP($A887,Economática!$A$3:$AI$823,30,FALSE)/E887))","v":""},"",{"$f":"IF($A887=\"\",\"\",IF(OR(VLOOKUP($A887,Economática!$A$3:$AI$823,25,FALSE)=0,VLOOKUP($A887,Economática!$A$3:$AI$823,25,FALSE)=\"-\"),1/0,VLOOKUP($A887,Economática!$A$3:$AI$823,25,FALSE)))","v":""},{"$f":"CONCATENATE(Economática!B865,\" \",Economática!C865)","v":" "}]
[{"$f":"IF(Economática!AG866=\"\",\"\",Economática!AG866)","v":""},{"$f":"IF($A888=\"\",\"\",VLOOKUP(VLOOKUP($A888,Economática!$A$3:$AI$823,6,FALSE),Correção!$B$16:$C$36,2,FALSE))","v":""},{"$f":"IF(Economática!B866=\"\",\"\",Economática!B866)","v":""},{"$f":"IF($A888=\"\",\"\",IF(OR(VLOOKUP($A888,Economática!$A$3:$AI$823,8,FALSE)=0,VLOOKUP($A888,Economática!$A$3:$AI$823,8,FALSE)=\"-\"),1/0,VLOOKUP($A888,Economática!$A$3:$AI$823,8,FALSE)))","v":""},{"$f":"IF(A888=\"\",\"\",IF(ISERROR(VLOOKUP(A888,Correção!$B$2:$G$13,9,FALSE)),VLOOKUP($A888,Economática!$A$3:$AI$823,9,FALSE),VLOOKUP(A888,Correção!$B$2:$G$13,9,FALSE)))","v":""},{"$f":"IF($A888=\"\",\"\",Economática!G866)","v":""},{"$f":"IF($A888=\"\",\"\",IF(OR(VLOOKUP($A888,Economática!$A$3:$AI$823,10,FALSE)=0,VLOOKUP($A888,Economática!$A$3:$AI$823,10,FALSE)=\"-\"),1/0,VLOOKUP($A888,Economática!$A$3:$AI$823,10,FALSE)))","v":""},{"$f":"IF($A888=\"\",\"\",IF(OR(VLOOKUP($A888,Economática!$A$3:$AI$823,11,FALSE)=0,VLOOKUP($A888,Economática!$A$3:$AI$823,11,FALSE)=\"-\"),1/0,VLOOKUP($A888,Economática!$A$3:$AI$823,11,FALSE)))","v":""},{"$f":"IF($A888=\"\",\"\",IF(OR(VLOOKUP($A888,Economática!$A$3:$AI$823,12,FALSE)=0,VLOOKUP($A888,Economática!$A$3:$AI$823,12,FALSE)=\"-\"),1/0,VLOOKUP($A888,Economática!$A$3:$AI$823,12,FALSE)))","v":""},{"$f":"IF($A888=\"\",\"\",IF(OR(VLOOKUP($A888,Economática!$A$3:$AI$823,13,FALSE)=0,VLOOKUP($A888,Economática!$A$3:$AI$823,13,FALSE)=\"-\"),1/0,VLOOKUP($A888,Economática!$A$3:$AI$823,13,FALSE)))","v":""},{"$f":"IF($A888=\"\",\"\",IF(OR(VLOOKUP($A888,Economática!$A$3:$AI$823,14,FALSE)=0,VLOOKUP($A888,Economática!$A$3:$AI$823,14,FALSE)=\"-\"),1/0,VLOOKUP($A888,Economática!$A$3:$AI$823,14,FALSE)))","v":""},{"$f":"IF($A888=\"\",\"\",IF(OR(VLOOKUP($A888,Economática!$A$3:$AI$823,15,FALSE)=0,VLOOKUP($A888,Economática!$A$3:$AI$823,15,FALSE)=\"-\"),1/0,VLOOKUP($A888,Economática!$A$3:$AI$823,15,FALSE)))","v":""},{"$f":"IF($A888=\"\",\"\",IF(OR(VLOOKUP($A888,Economática!$A$3:$AI$823,16,FALSE)=0,VLOOKUP($A888,Economática!$A$3:$AI$823,16,FALSE)=\"-\"),1/0,VLOOKUP($A888,Economática!$A$3:$AI$823,16,FALSE)))","v":""},{"$f":"IF($A888=\"\",\"\",IF(OR(VLOOKUP($A888,Economática!$A$3:$AI$823,17,FALSE)=0,VLOOKUP($A888,Economática!$A$3:$AI$823,17,FALSE)=\"-\"),1/0,VLOOKUP($A888,Economática!$A$3:$AI$823,17,FALSE)))","v":""},{"$f":"IF($A888=\"\",\"\",IF(OR(VLOOKUP($A888,Economática!$A$3:$AI$823,18,FALSE)=0,VLOOKUP($A888,Economática!$A$3:$AI$823,18,FALSE)=\"-\"),1/0,VLOOKUP($A888,Economática!$A$3:$AI$823,18,FALSE)))","v":""},{"$f":"IF($A888=\"\",\"\",IF(OR(VLOOKUP($A888,Economática!$A$3:$AI$823,19,FALSE)=0,VLOOKUP($A888,Economática!$A$3:$AI$823,19,FALSE)=\"-\"),1/0,VLOOKUP($A888,Economática!$A$3:$AI$823,19,FALSE)))","v":""},{"$f":"IF($A888=\"\",\"\",VLOOKUP($A888,Economática!$A$3:$AI$823,20,FALSE)/E888)","v":""},"","","",{"$f":"IF($A888=\"\",\"\",IF(OR(VLOOKUP($A888,Economática!$A$3:$AI$823,21,FALSE)/100=0,VLOOKUP($A888,Economática!$A$3:$AI$823,21,FALSE)/100=\"-\"),1/0,VLOOKUP($A888,Economática!$A$3:$AI$823,21,FALSE)/100))","v":""},{"$f":"IF($A888=\"\",\"\",IF(OR(VLOOKUP($A888,Economática!$A$3:$AI$823,22,FALSE)/100=0,VLOOKUP($A888,Economática!$A$3:$AI$823,22,FALSE)/100=\"-\"),1/0,VLOOKUP($A888,Economática!$A$3:$AI$823,22,FALSE)/100))","v":""},{"$f":"IF($A888=\"\",\"\",IF(OR(VLOOKUP($A888,Economática!$A$3:$AI$823,23,FALSE)=0,VLOOKUP($A888,Economática!$A$3:$AI$823,23,FALSE)=\"-\"),1/0,VLOOKUP($A888,Economática!$A$3:$AI$823,23,FALSE)))","v":""},{"$f":"IF($A888=\"\",\"\",IF(OR(VLOOKUP($A888,Economática!$A$3:$AI$823,24,FALSE)=0,VLOOKUP($A888,Economática!$A$3:$AI$823,24,FALSE)=\"-\"),1/0,VLOOKUP($A888,Economática!$A$3:$AI$823,24,FALSE)))","v":""},{"$f":"IF($A888=\"\",\"\",IF(OR(VLOOKUP($A888,Economática!$A$3:$AI$823,25,FALSE)=0,VLOOKUP($A888,Economática!$A$3:$AI$823,25,FALSE)=\"-\"),1/0,VLOOKUP($A888,Economática!$A$3:$AI$823,25,FALSE)))","v":""},{"$f":"IF($A888=\"\",\"\",IF(ISERROR((F888+VLOOKUP($A888,Economática!$A$3:$AI$823,26,FALSE))/Y888),(F888+VLOOKUP($A888,Economática!$A$3:$AI$823,26,FALSE))/Y888,(F888+VLOOKUP($A888,Economática!$A$3:$AI$823,26,FALSE))/Y888))","v":""},{"$f":"IF($A888=\"\",\"\",IF(OR(-VLOOKUP($A888,Economática!$A$3:$AI$823,27,FALSE)=0,-VLOOKUP($A888,Economática!$A$3:$AI$823,27,FALSE)=\"-\"),1/0,-VLOOKUP($A888,Economática!$A$3:$AI$823,27,FALSE)))","v":""},"",{"$f":"IF($A888=\"\",\"\",IF(OR(VLOOKUP($A888,Economática!$A$3:$AI$823,28,FALSE)=0,VLOOKUP($A888,Economática!$A$3:$AI$823,28,FALSE)=\"-\"),1/0,VLOOKUP($A888,Economática!$A$3:$AI$823,28,FALSE)))","v":""},{"$f":"IF($A888=\"\",\"\",IF(OR(VLOOKUP($A888,Economática!$A$3:$AI$823,29,FALSE)=0,VLOOKUP($A888,Economática!$A$3:$AI$823,29,FALSE)=\"-\"),1/0,VLOOKUP($A888,Economática!$A$3:$AI$823,29,FALSE)))","v":""},{"$f":"IF($A888=\"\",\"\",IF(OR(VLOOKUP($A888,Economática!$A$3:$AI$823,30,FALSE)/E888=0,VLOOKUP($A888,Economática!$A$3:$AI$823,30,FALSE)/E888=\"-\",VLOOKUP($A888,Economática!$A$3:$AI$823,30,FALSE)/E888<33.33%,VLOOKUP($A888,Economática!$A$3:$AI$823,30,FALSE)/E888>100%),1/0,VLOOKUP($A888,Economática!$A$3:$AI$823,30,FALSE)/E888))","v":""},"",{"$f":"IF($A888=\"\",\"\",IF(OR(VLOOKUP($A888,Economática!$A$3:$AI$823,25,FALSE)=0,VLOOKUP($A888,Economática!$A$3:$AI$823,25,FALSE)=\"-\"),1/0,VLOOKUP($A888,Economática!$A$3:$AI$823,25,FALSE)))","v":""},{"$f":"CONCATENATE(Economática!B866,\" \",Economática!C866)","v":" "}]
[{"$f":"IF(Economática!AG867=\"\",\"\",Economática!AG867)","v":""},{"$f":"IF($A889=\"\",\"\",VLOOKUP(VLOOKUP($A889,Economática!$A$3:$AI$823,6,FALSE),Correção!$B$16:$C$36,2,FALSE))","v":""},{"$f":"IF(Economática!B867=\"\",\"\",Economática!B867)","v":""},{"$f":"IF($A889=\"\",\"\",IF(OR(VLOOKUP($A889,Economática!$A$3:$AI$823,8,FALSE)=0,VLOOKUP($A889,Economática!$A$3:$AI$823,8,FALSE)=\"-\"),1/0,VLOOKUP($A889,Economática!$A$3:$AI$823,8,FALSE)))","v":""},{"$f":"IF(A889=\"\",\"\",IF(ISERROR(VLOOKUP(A889,Correção!$B$2:$G$13,9,FALSE)),VLOOKUP($A889,Economática!$A$3:$AI$823,9,FALSE),VLOOKUP(A889,Correção!$B$2:$G$13,9,FALSE)))","v":""},{"$f":"IF($A889=\"\",\"\",Economática!G867)","v":""},{"$f":"IF($A889=\"\",\"\",IF(OR(VLOOKUP($A889,Economática!$A$3:$AI$823,10,FALSE)=0,VLOOKUP($A889,Economática!$A$3:$AI$823,10,FALSE)=\"-\"),1/0,VLOOKUP($A889,Economática!$A$3:$AI$823,10,FALSE)))","v":""},{"$f":"IF($A889=\"\",\"\",IF(OR(VLOOKUP($A889,Economática!$A$3:$AI$823,11,FALSE)=0,VLOOKUP($A889,Economática!$A$3:$AI$823,11,FALSE)=\"-\"),1/0,VLOOKUP($A889,Economática!$A$3:$AI$823,11,FALSE)))","v":""},{"$f":"IF($A889=\"\",\"\",IF(OR(VLOOKUP($A889,Economática!$A$3:$AI$823,12,FALSE)=0,VLOOKUP($A889,Economática!$A$3:$AI$823,12,FALSE)=\"-\"),1/0,VLOOKUP($A889,Economática!$A$3:$AI$823,12,FALSE)))","v":""},{"$f":"IF($A889=\"\",\"\",IF(OR(VLOOKUP($A889,Economática!$A$3:$AI$823,13,FALSE)=0,VLOOKUP($A889,Economática!$A$3:$AI$823,13,FALSE)=\"-\"),1/0,VLOOKUP($A889,Economática!$A$3:$AI$823,13,FALSE)))","v":""},{"$f":"IF($A889=\"\",\"\",IF(OR(VLOOKUP($A889,Economática!$A$3:$AI$823,14,FALSE)=0,VLOOKUP($A889,Economática!$A$3:$AI$823,14,FALSE)=\"-\"),1/0,VLOOKUP($A889,Economática!$A$3:$AI$823,14,FALSE)))","v":""},{"$f":"IF($A889=\"\",\"\",IF(OR(VLOOKUP($A889,Economática!$A$3:$AI$823,15,FALSE)=0,VLOOKUP($A889,Economática!$A$3:$AI$823,15,FALSE)=\"-\"),1/0,VLOOKUP($A889,Economática!$A$3:$AI$823,15,FALSE)))","v":""},{"$f":"IF($A889=\"\",\"\",IF(OR(VLOOKUP($A889,Economática!$A$3:$AI$823,16,FALSE)=0,VLOOKUP($A889,Economática!$A$3:$AI$823,16,FALSE)=\"-\"),1/0,VLOOKUP($A889,Economática!$A$3:$AI$823,16,FALSE)))","v":""},{"$f":"IF($A889=\"\",\"\",IF(OR(VLOOKUP($A889,Economática!$A$3:$AI$823,17,FALSE)=0,VLOOKUP($A889,Economática!$A$3:$AI$823,17,FALSE)=\"-\"),1/0,VLOOKUP($A889,Economática!$A$3:$AI$823,17,FALSE)))","v":""},{"$f":"IF($A889=\"\",\"\",IF(OR(VLOOKUP($A889,Economática!$A$3:$AI$823,18,FALSE)=0,VLOOKUP($A889,Economática!$A$3:$AI$823,18,FALSE)=\"-\"),1/0,VLOOKUP($A889,Economática!$A$3:$AI$823,18,FALSE)))","v":""},{"$f":"IF($A889=\"\",\"\",IF(OR(VLOOKUP($A889,Economática!$A$3:$AI$823,19,FALSE)=0,VLOOKUP($A889,Economática!$A$3:$AI$823,19,FALSE)=\"-\"),1/0,VLOOKUP($A889,Economática!$A$3:$AI$823,19,FALSE)))","v":""},{"$f":"IF($A889=\"\",\"\",VLOOKUP($A889,Economática!$A$3:$AI$823,20,FALSE)/E889)","v":""},"","","",{"$f":"IF($A889=\"\",\"\",IF(OR(VLOOKUP($A889,Economática!$A$3:$AI$823,21,FALSE)/100=0,VLOOKUP($A889,Economática!$A$3:$AI$823,21,FALSE)/100=\"-\"),1/0,VLOOKUP($A889,Economática!$A$3:$AI$823,21,FALSE)/100))","v":""},{"$f":"IF($A889=\"\",\"\",IF(OR(VLOOKUP($A889,Economática!$A$3:$AI$823,22,FALSE)/100=0,VLOOKUP($A889,Economática!$A$3:$AI$823,22,FALSE)/100=\"-\"),1/0,VLOOKUP($A889,Economática!$A$3:$AI$823,22,FALSE)/100))","v":""},{"$f":"IF($A889=\"\",\"\",IF(OR(VLOOKUP($A889,Economática!$A$3:$AI$823,23,FALSE)=0,VLOOKUP($A889,Economática!$A$3:$AI$823,23,FALSE)=\"-\"),1/0,VLOOKUP($A889,Economática!$A$3:$AI$823,23,FALSE)))","v":""},{"$f":"IF($A889=\"\",\"\",IF(OR(VLOOKUP($A889,Economática!$A$3:$AI$823,24,FALSE)=0,VLOOKUP($A889,Economática!$A$3:$AI$823,24,FALSE)=\"-\"),1/0,VLOOKUP($A889,Economática!$A$3:$AI$823,24,FALSE)))","v":""},{"$f":"IF($A889=\"\",\"\",IF(OR(VLOOKUP($A889,Economática!$A$3:$AI$823,25,FALSE)=0,VLOOKUP($A889,Economática!$A$3:$AI$823,25,FALSE)=\"-\"),1/0,VLOOKUP($A889,Economática!$A$3:$AI$823,25,FALSE)))","v":""},{"$f":"IF($A889=\"\",\"\",IF(ISERROR((F889+VLOOKUP($A889,Economática!$A$3:$AI$823,26,FALSE))/Y889),(F889+VLOOKUP($A889,Economática!$A$3:$AI$823,26,FALSE))/Y889,(F889+VLOOKUP($A889,Economática!$A$3:$AI$823,26,FALSE))/Y889))","v":""},{"$f":"IF($A889=\"\",\"\",IF(OR(-VLOOKUP($A889,Economática!$A$3:$AI$823,27,FALSE)=0,-VLOOKUP($A889,Economática!$A$3:$AI$823,27,FALSE)=\"-\"),1/0,-VLOOKUP($A889,Economática!$A$3:$AI$823,27,FALSE)))","v":""},"",{"$f":"IF($A889=\"\",\"\",IF(OR(VLOOKUP($A889,Economática!$A$3:$AI$823,28,FALSE)=0,VLOOKUP($A889,Economática!$A$3:$AI$823,28,FALSE)=\"-\"),1/0,VLOOKUP($A889,Economática!$A$3:$AI$823,28,FALSE)))","v":""},{"$f":"IF($A889=\"\",\"\",IF(OR(VLOOKUP($A889,Economática!$A$3:$AI$823,29,FALSE)=0,VLOOKUP($A889,Economática!$A$3:$AI$823,29,FALSE)=\"-\"),1/0,VLOOKUP($A889,Economática!$A$3:$AI$823,29,FALSE)))","v":""},{"$f":"IF($A889=\"\",\"\",IF(OR(VLOOKUP($A889,Economática!$A$3:$AI$823,30,FALSE)/E889=0,VLOOKUP($A889,Economática!$A$3:$AI$823,30,FALSE)/E889=\"-\",VLOOKUP($A889,Economática!$A$3:$AI$823,30,FALSE)/E889<33.33%,VLOOKUP($A889,Economática!$A$3:$AI$823,30,FALSE)/E889>100%),1/0,VLOOKUP($A889,Economática!$A$3:$AI$823,30,FALSE)/E889))","v":""},"",{"$f":"IF($A889=\"\",\"\",IF(OR(VLOOKUP($A889,Economática!$A$3:$AI$823,25,FALSE)=0,VLOOKUP($A889,Economática!$A$3:$AI$823,25,FALSE)=\"-\"),1/0,VLOOKUP($A889,Economática!$A$3:$AI$823,25,FALSE)))","v":""},{"$f":"CONCATENATE(Economática!B867,\" \",Economática!C867)","v":" "}]
[{"$f":"IF(Economática!AG868=\"\",\"\",Economática!AG868)","v":""},{"$f":"IF($A890=\"\",\"\",VLOOKUP(VLOOKUP($A890,Economática!$A$3:$AI$823,6,FALSE),Correção!$B$16:$C$36,2,FALSE))","v":""},{"$f":"IF(Economática!B868=\"\",\"\",Economática!B868)","v":""},{"$f":"IF($A890=\"\",\"\",IF(OR(VLOOKUP($A890,Economática!$A$3:$AI$823,8,FALSE)=0,VLOOKUP($A890,Economática!$A$3:$AI$823,8,FALSE)=\"-\"),1/0,VLOOKUP($A890,Economática!$A$3:$AI$823,8,FALSE)))","v":""},{"$f":"IF(A890=\"\",\"\",IF(ISERROR(VLOOKUP(A890,Correção!$B$2:$G$13,9,FALSE)),VLOOKUP($A890,Economática!$A$3:$AI$823,9,FALSE),VLOOKUP(A890,Correção!$B$2:$G$13,9,FALSE)))","v":""},{"$f":"IF($A890=\"\",\"\",Economática!G868)","v":""},{"$f":"IF($A890=\"\",\"\",IF(OR(VLOOKUP($A890,Economática!$A$3:$AI$823,10,FALSE)=0,VLOOKUP($A890,Economática!$A$3:$AI$823,10,FALSE)=\"-\"),1/0,VLOOKUP($A890,Economática!$A$3:$AI$823,10,FALSE)))","v":""},{"$f":"IF($A890=\"\",\"\",IF(OR(VLOOKUP($A890,Economática!$A$3:$AI$823,11,FALSE)=0,VLOOKUP($A890,Economática!$A$3:$AI$823,11,FALSE)=\"-\"),1/0,VLOOKUP($A890,Economática!$A$3:$AI$823,11,FALSE)))","v":""},{"$f":"IF($A890=\"\",\"\",IF(OR(VLOOKUP($A890,Economática!$A$3:$AI$823,12,FALSE)=0,VLOOKUP($A890,Economática!$A$3:$AI$823,12,FALSE)=\"-\"),1/0,VLOOKUP($A890,Economática!$A$3:$AI$823,12,FALSE)))","v":""},{"$f":"IF($A890=\"\",\"\",IF(OR(VLOOKUP($A890,Economática!$A$3:$AI$823,13,FALSE)=0,VLOOKUP($A890,Economática!$A$3:$AI$823,13,FALSE)=\"-\"),1/0,VLOOKUP($A890,Economática!$A$3:$AI$823,13,FALSE)))","v":""},{"$f":"IF($A890=\"\",\"\",IF(OR(VLOOKUP($A890,Economática!$A$3:$AI$823,14,FALSE)=0,VLOOKUP($A890,Economática!$A$3:$AI$823,14,FALSE)=\"-\"),1/0,VLOOKUP($A890,Economática!$A$3:$AI$823,14,FALSE)))","v":""},{"$f":"IF($A890=\"\",\"\",IF(OR(VLOOKUP($A890,Economática!$A$3:$AI$823,15,FALSE)=0,VLOOKUP($A890,Economática!$A$3:$AI$823,15,FALSE)=\"-\"),1/0,VLOOKUP($A890,Economática!$A$3:$AI$823,15,FALSE)))","v":""},{"$f":"IF($A890=\"\",\"\",IF(OR(VLOOKUP($A890,Economática!$A$3:$AI$823,16,FALSE)=0,VLOOKUP($A890,Economática!$A$3:$AI$823,16,FALSE)=\"-\"),1/0,VLOOKUP($A890,Economática!$A$3:$AI$823,16,FALSE)))","v":""},{"$f":"IF($A890=\"\",\"\",IF(OR(VLOOKUP($A890,Economática!$A$3:$AI$823,17,FALSE)=0,VLOOKUP($A890,Economática!$A$3:$AI$823,17,FALSE)=\"-\"),1/0,VLOOKUP($A890,Economática!$A$3:$AI$823,17,FALSE)))","v":""},{"$f":"IF($A890=\"\",\"\",IF(OR(VLOOKUP($A890,Economática!$A$3:$AI$823,18,FALSE)=0,VLOOKUP($A890,Economática!$A$3:$AI$823,18,FALSE)=\"-\"),1/0,VLOOKUP($A890,Economática!$A$3:$AI$823,18,FALSE)))","v":""},{"$f":"IF($A890=\"\",\"\",IF(OR(VLOOKUP($A890,Economática!$A$3:$AI$823,19,FALSE)=0,VLOOKUP($A890,Economática!$A$3:$AI$823,19,FALSE)=\"-\"),1/0,VLOOKUP($A890,Economática!$A$3:$AI$823,19,FALSE)))","v":""},{"$f":"IF($A890=\"\",\"\",VLOOKUP($A890,Economática!$A$3:$AI$823,20,FALSE)/E890)","v":""},"","","",{"$f":"IF($A890=\"\",\"\",IF(OR(VLOOKUP($A890,Economática!$A$3:$AI$823,21,FALSE)/100=0,VLOOKUP($A890,Economática!$A$3:$AI$823,21,FALSE)/100=\"-\"),1/0,VLOOKUP($A890,Economática!$A$3:$AI$823,21,FALSE)/100))","v":""},{"$f":"IF($A890=\"\",\"\",IF(OR(VLOOKUP($A890,Economática!$A$3:$AI$823,22,FALSE)/100=0,VLOOKUP($A890,Economática!$A$3:$AI$823,22,FALSE)/100=\"-\"),1/0,VLOOKUP($A890,Economática!$A$3:$AI$823,22,FALSE)/100))","v":""},{"$f":"IF($A890=\"\",\"\",IF(OR(VLOOKUP($A890,Economática!$A$3:$AI$823,23,FALSE)=0,VLOOKUP($A890,Economática!$A$3:$AI$823,23,FALSE)=\"-\"),1/0,VLOOKUP($A890,Economática!$A$3:$AI$823,23,FALSE)))","v":""},{"$f":"IF($A890=\"\",\"\",IF(OR(VLOOKUP($A890,Economática!$A$3:$AI$823,24,FALSE)=0,VLOOKUP($A890,Economática!$A$3:$AI$823,24,FALSE)=\"-\"),1/0,VLOOKUP($A890,Economática!$A$3:$AI$823,24,FALSE)))","v":""},{"$f":"IF($A890=\"\",\"\",IF(OR(VLOOKUP($A890,Economática!$A$3:$AI$823,25,FALSE)=0,VLOOKUP($A890,Economática!$A$3:$AI$823,25,FALSE)=\"-\"),1/0,VLOOKUP($A890,Economática!$A$3:$AI$823,25,FALSE)))","v":""},{"$f":"IF($A890=\"\",\"\",IF(ISERROR((F890+VLOOKUP($A890,Economática!$A$3:$AI$823,26,FALSE))/Y890),(F890+VLOOKUP($A890,Economática!$A$3:$AI$823,26,FALSE))/Y890,(F890+VLOOKUP($A890,Economática!$A$3:$AI$823,26,FALSE))/Y890))","v":""},{"$f":"IF($A890=\"\",\"\",IF(OR(-VLOOKUP($A890,Economática!$A$3:$AI$823,27,FALSE)=0,-VLOOKUP($A890,Economática!$A$3:$AI$823,27,FALSE)=\"-\"),1/0,-VLOOKUP($A890,Economática!$A$3:$AI$823,27,FALSE)))","v":""},"",{"$f":"IF($A890=\"\",\"\",IF(OR(VLOOKUP($A890,Economática!$A$3:$AI$823,28,FALSE)=0,VLOOKUP($A890,Economática!$A$3:$AI$823,28,FALSE)=\"-\"),1/0,VLOOKUP($A890,Economática!$A$3:$AI$823,28,FALSE)))","v":""},{"$f":"IF($A890=\"\",\"\",IF(OR(VLOOKUP($A890,Economática!$A$3:$AI$823,29,FALSE)=0,VLOOKUP($A890,Economática!$A$3:$AI$823,29,FALSE)=\"-\"),1/0,VLOOKUP($A890,Economática!$A$3:$AI$823,29,FALSE)))","v":""},{"$f":"IF($A890=\"\",\"\",IF(OR(VLOOKUP($A890,Economática!$A$3:$AI$823,30,FALSE)/E890=0,VLOOKUP($A890,Economática!$A$3:$AI$823,30,FALSE)/E890=\"-\",VLOOKUP($A890,Economática!$A$3:$AI$823,30,FALSE)/E890<33.33%,VLOOKUP($A890,Economática!$A$3:$AI$823,30,FALSE)/E890>100%),1/0,VLOOKUP($A890,Economática!$A$3:$AI$823,30,FALSE)/E890))","v":""},"",{"$f":"IF($A890=\"\",\"\",IF(OR(VLOOKUP($A890,Economática!$A$3:$AI$823,25,FALSE)=0,VLOOKUP($A890,Economática!$A$3:$AI$823,25,FALSE)=\"-\"),1/0,VLOOKUP($A890,Economática!$A$3:$AI$823,25,FALSE)))","v":""},{"$f":"CONCATENATE(Economática!B868,\" \",Economática!C868)","v":" "}]
[{"$f":"IF(Economática!AG869=\"\",\"\",Economática!AG869)","v":""},{"$f":"IF($A891=\"\",\"\",VLOOKUP(VLOOKUP($A891,Economática!$A$3:$AI$823,6,FALSE),Correção!$B$16:$C$36,2,FALSE))","v":""},{"$f":"IF(Economática!B869=\"\",\"\",Economática!B869)","v":""},{"$f":"IF($A891=\"\",\"\",IF(OR(VLOOKUP($A891,Economática!$A$3:$AI$823,8,FALSE)=0,VLOOKUP($A891,Economática!$A$3:$AI$823,8,FALSE)=\"-\"),1/0,VLOOKUP($A891,Economática!$A$3:$AI$823,8,FALSE)))","v":""},{"$f":"IF(A891=\"\",\"\",IF(ISERROR(VLOOKUP(A891,Correção!$B$2:$G$13,9,FALSE)),VLOOKUP($A891,Economática!$A$3:$AI$823,9,FALSE),VLOOKUP(A891,Correção!$B$2:$G$13,9,FALSE)))","v":""},{"$f":"IF($A891=\"\",\"\",Economática!G869)","v":""},{"$f":"IF($A891=\"\",\"\",IF(OR(VLOOKUP($A891,Economática!$A$3:$AI$823,10,FALSE)=0,VLOOKUP($A891,Economática!$A$3:$AI$823,10,FALSE)=\"-\"),1/0,VLOOKUP($A891,Economática!$A$3:$AI$823,10,FALSE)))","v":""},{"$f":"IF($A891=\"\",\"\",IF(OR(VLOOKUP($A891,Economática!$A$3:$AI$823,11,FALSE)=0,VLOOKUP($A891,Economática!$A$3:$AI$823,11,FALSE)=\"-\"),1/0,VLOOKUP($A891,Economática!$A$3:$AI$823,11,FALSE)))","v":""},{"$f":"IF($A891=\"\",\"\",IF(OR(VLOOKUP($A891,Economática!$A$3:$AI$823,12,FALSE)=0,VLOOKUP($A891,Economática!$A$3:$AI$823,12,FALSE)=\"-\"),1/0,VLOOKUP($A891,Economática!$A$3:$AI$823,12,FALSE)))","v":""},{"$f":"IF($A891=\"\",\"\",IF(OR(VLOOKUP($A891,Economática!$A$3:$AI$823,13,FALSE)=0,VLOOKUP($A891,Economática!$A$3:$AI$823,13,FALSE)=\"-\"),1/0,VLOOKUP($A891,Economática!$A$3:$AI$823,13,FALSE)))","v":""},{"$f":"IF($A891=\"\",\"\",IF(OR(VLOOKUP($A891,Economática!$A$3:$AI$823,14,FALSE)=0,VLOOKUP($A891,Economática!$A$3:$AI$823,14,FALSE)=\"-\"),1/0,VLOOKUP($A891,Economática!$A$3:$AI$823,14,FALSE)))","v":""},{"$f":"IF($A891=\"\",\"\",IF(OR(VLOOKUP($A891,Economática!$A$3:$AI$823,15,FALSE)=0,VLOOKUP($A891,Economática!$A$3:$AI$823,15,FALSE)=\"-\"),1/0,VLOOKUP($A891,Economática!$A$3:$AI$823,15,FALSE)))","v":""},{"$f":"IF($A891=\"\",\"\",IF(OR(VLOOKUP($A891,Economática!$A$3:$AI$823,16,FALSE)=0,VLOOKUP($A891,Economática!$A$3:$AI$823,16,FALSE)=\"-\"),1/0,VLOOKUP($A891,Economática!$A$3:$AI$823,16,FALSE)))","v":""},{"$f":"IF($A891=\"\",\"\",IF(OR(VLOOKUP($A891,Economática!$A$3:$AI$823,17,FALSE)=0,VLOOKUP($A891,Economática!$A$3:$AI$823,17,FALSE)=\"-\"),1/0,VLOOKUP($A891,Economática!$A$3:$AI$823,17,FALSE)))","v":""},{"$f":"IF($A891=\"\",\"\",IF(OR(VLOOKUP($A891,Economática!$A$3:$AI$823,18,FALSE)=0,VLOOKUP($A891,Economática!$A$3:$AI$823,18,FALSE)=\"-\"),1/0,VLOOKUP($A891,Economática!$A$3:$AI$823,18,FALSE)))","v":""},{"$f":"IF($A891=\"\",\"\",IF(OR(VLOOKUP($A891,Economática!$A$3:$AI$823,19,FALSE)=0,VLOOKUP($A891,Economática!$A$3:$AI$823,19,FALSE)=\"-\"),1/0,VLOOKUP($A891,Economática!$A$3:$AI$823,19,FALSE)))","v":""},{"$f":"IF($A891=\"\",\"\",VLOOKUP($A891,Economática!$A$3:$AI$823,20,FALSE)/E891)","v":""},"","","",{"$f":"IF($A891=\"\",\"\",IF(OR(VLOOKUP($A891,Economática!$A$3:$AI$823,21,FALSE)/100=0,VLOOKUP($A891,Economática!$A$3:$AI$823,21,FALSE)/100=\"-\"),1/0,VLOOKUP($A891,Economática!$A$3:$AI$823,21,FALSE)/100))","v":""},{"$f":"IF($A891=\"\",\"\",IF(OR(VLOOKUP($A891,Economática!$A$3:$AI$823,22,FALSE)/100=0,VLOOKUP($A891,Economática!$A$3:$AI$823,22,FALSE)/100=\"-\"),1/0,VLOOKUP($A891,Economática!$A$3:$AI$823,22,FALSE)/100))","v":""},{"$f":"IF($A891=\"\",\"\",IF(OR(VLOOKUP($A891,Economática!$A$3:$AI$823,23,FALSE)=0,VLOOKUP($A891,Economática!$A$3:$AI$823,23,FALSE)=\"-\"),1/0,VLOOKUP($A891,Economática!$A$3:$AI$823,23,FALSE)))","v":""},{"$f":"IF($A891=\"\",\"\",IF(OR(VLOOKUP($A891,Economática!$A$3:$AI$823,24,FALSE)=0,VLOOKUP($A891,Economática!$A$3:$AI$823,24,FALSE)=\"-\"),1/0,VLOOKUP($A891,Economática!$A$3:$AI$823,24,FALSE)))","v":""},{"$f":"IF($A891=\"\",\"\",IF(OR(VLOOKUP($A891,Economática!$A$3:$AI$823,25,FALSE)=0,VLOOKUP($A891,Economática!$A$3:$AI$823,25,FALSE)=\"-\"),1/0,VLOOKUP($A891,Economática!$A$3:$AI$823,25,FALSE)))","v":""},{"$f":"IF($A891=\"\",\"\",IF(ISERROR((F891+VLOOKUP($A891,Economática!$A$3:$AI$823,26,FALSE))/Y891),(F891+VLOOKUP($A891,Economática!$A$3:$AI$823,26,FALSE))/Y891,(F891+VLOOKUP($A891,Economática!$A$3:$AI$823,26,FALSE))/Y891))","v":""},{"$f":"IF($A891=\"\",\"\",IF(OR(-VLOOKUP($A891,Economática!$A$3:$AI$823,27,FALSE)=0,-VLOOKUP($A891,Economática!$A$3:$AI$823,27,FALSE)=\"-\"),1/0,-VLOOKUP($A891,Economática!$A$3:$AI$823,27,FALSE)))","v":""},"",{"$f":"IF($A891=\"\",\"\",IF(OR(VLOOKUP($A891,Economática!$A$3:$AI$823,28,FALSE)=0,VLOOKUP($A891,Economática!$A$3:$AI$823,28,FALSE)=\"-\"),1/0,VLOOKUP($A891,Economática!$A$3:$AI$823,28,FALSE)))","v":""},{"$f":"IF($A891=\"\",\"\",IF(OR(VLOOKUP($A891,Economática!$A$3:$AI$823,29,FALSE)=0,VLOOKUP($A891,Economática!$A$3:$AI$823,29,FALSE)=\"-\"),1/0,VLOOKUP($A891,Economática!$A$3:$AI$823,29,FALSE)))","v":""},{"$f":"IF($A891=\"\",\"\",IF(OR(VLOOKUP($A891,Economática!$A$3:$AI$823,30,FALSE)/E891=0,VLOOKUP($A891,Economática!$A$3:$AI$823,30,FALSE)/E891=\"-\",VLOOKUP($A891,Economática!$A$3:$AI$823,30,FALSE)/E891<33.33%,VLOOKUP($A891,Economática!$A$3:$AI$823,30,FALSE)/E891>100%),1/0,VLOOKUP($A891,Economática!$A$3:$AI$823,30,FALSE)/E891))","v":""},"",{"$f":"IF($A891=\"\",\"\",IF(OR(VLOOKUP($A891,Economática!$A$3:$AI$823,25,FALSE)=0,VLOOKUP($A891,Economática!$A$3:$AI$823,25,FALSE)=\"-\"),1/0,VLOOKUP($A891,Economática!$A$3:$AI$823,25,FALSE)))","v":""},{"$f":"CONCATENATE(Economática!B869,\" \",Economática!C869)","v":" "}]
[{"$f":"IF(Economática!AG870=\"\",\"\",Economática!AG870)","v":""},{"$f":"IF($A892=\"\",\"\",VLOOKUP(VLOOKUP($A892,Economática!$A$3:$AI$823,6,FALSE),Correção!$B$16:$C$36,2,FALSE))","v":""},{"$f":"IF(Economática!B870=\"\",\"\",Economática!B870)","v":""},{"$f":"IF($A892=\"\",\"\",IF(OR(VLOOKUP($A892,Economática!$A$3:$AI$823,8,FALSE)=0,VLOOKUP($A892,Economática!$A$3:$AI$823,8,FALSE)=\"-\"),1/0,VLOOKUP($A892,Economática!$A$3:$AI$823,8,FALSE)))","v":""},{"$f":"IF(A892=\"\",\"\",IF(ISERROR(VLOOKUP(A892,Correção!$B$2:$G$13,9,FALSE)),VLOOKUP($A892,Economática!$A$3:$AI$823,9,FALSE),VLOOKUP(A892,Correção!$B$2:$G$13,9,FALSE)))","v":""},{"$f":"IF($A892=\"\",\"\",Economática!G870)","v":""},{"$f":"IF($A892=\"\",\"\",IF(OR(VLOOKUP($A892,Economática!$A$3:$AI$823,10,FALSE)=0,VLOOKUP($A892,Economática!$A$3:$AI$823,10,FALSE)=\"-\"),1/0,VLOOKUP($A892,Economática!$A$3:$AI$823,10,FALSE)))","v":""},{"$f":"IF($A892=\"\",\"\",IF(OR(VLOOKUP($A892,Economática!$A$3:$AI$823,11,FALSE)=0,VLOOKUP($A892,Economática!$A$3:$AI$823,11,FALSE)=\"-\"),1/0,VLOOKUP($A892,Economática!$A$3:$AI$823,11,FALSE)))","v":""},{"$f":"IF($A892=\"\",\"\",IF(OR(VLOOKUP($A892,Economática!$A$3:$AI$823,12,FALSE)=0,VLOOKUP($A892,Economática!$A$3:$AI$823,12,FALSE)=\"-\"),1/0,VLOOKUP($A892,Economática!$A$3:$AI$823,12,FALSE)))","v":""},{"$f":"IF($A892=\"\",\"\",IF(OR(VLOOKUP($A892,Economática!$A$3:$AI$823,13,FALSE)=0,VLOOKUP($A892,Economática!$A$3:$AI$823,13,FALSE)=\"-\"),1/0,VLOOKUP($A892,Economática!$A$3:$AI$823,13,FALSE)))","v":""},{"$f":"IF($A892=\"\",\"\",IF(OR(VLOOKUP($A892,Economática!$A$3:$AI$823,14,FALSE)=0,VLOOKUP($A892,Economática!$A$3:$AI$823,14,FALSE)=\"-\"),1/0,VLOOKUP($A892,Economática!$A$3:$AI$823,14,FALSE)))","v":""},{"$f":"IF($A892=\"\",\"\",IF(OR(VLOOKUP($A892,Economática!$A$3:$AI$823,15,FALSE)=0,VLOOKUP($A892,Economática!$A$3:$AI$823,15,FALSE)=\"-\"),1/0,VLOOKUP($A892,Economática!$A$3:$AI$823,15,FALSE)))","v":""},{"$f":"IF($A892=\"\",\"\",IF(OR(VLOOKUP($A892,Economática!$A$3:$AI$823,16,FALSE)=0,VLOOKUP($A892,Economática!$A$3:$AI$823,16,FALSE)=\"-\"),1/0,VLOOKUP($A892,Economática!$A$3:$AI$823,16,FALSE)))","v":""},{"$f":"IF($A892=\"\",\"\",IF(OR(VLOOKUP($A892,Economática!$A$3:$AI$823,17,FALSE)=0,VLOOKUP($A892,Economática!$A$3:$AI$823,17,FALSE)=\"-\"),1/0,VLOOKUP($A892,Economática!$A$3:$AI$823,17,FALSE)))","v":""},{"$f":"IF($A892=\"\",\"\",IF(OR(VLOOKUP($A892,Economática!$A$3:$AI$823,18,FALSE)=0,VLOOKUP($A892,Economática!$A$3:$AI$823,18,FALSE)=\"-\"),1/0,VLOOKUP($A892,Economática!$A$3:$AI$823,18,FALSE)))","v":""},{"$f":"IF($A892=\"\",\"\",IF(OR(VLOOKUP($A892,Economática!$A$3:$AI$823,19,FALSE)=0,VLOOKUP($A892,Economática!$A$3:$AI$823,19,FALSE)=\"-\"),1/0,VLOOKUP($A892,Economática!$A$3:$AI$823,19,FALSE)))","v":""},{"$f":"IF($A892=\"\",\"\",VLOOKUP($A892,Economática!$A$3:$AI$823,20,FALSE)/E892)","v":""},"","","",{"$f":"IF($A892=\"\",\"\",IF(OR(VLOOKUP($A892,Economática!$A$3:$AI$823,21,FALSE)/100=0,VLOOKUP($A892,Economática!$A$3:$AI$823,21,FALSE)/100=\"-\"),1/0,VLOOKUP($A892,Economática!$A$3:$AI$823,21,FALSE)/100))","v":""},{"$f":"IF($A892=\"\",\"\",IF(OR(VLOOKUP($A892,Economática!$A$3:$AI$823,22,FALSE)/100=0,VLOOKUP($A892,Economática!$A$3:$AI$823,22,FALSE)/100=\"-\"),1/0,VLOOKUP($A892,Economática!$A$3:$AI$823,22,FALSE)/100))","v":""},{"$f":"IF($A892=\"\",\"\",IF(OR(VLOOKUP($A892,Economática!$A$3:$AI$823,23,FALSE)=0,VLOOKUP($A892,Economática!$A$3:$AI$823,23,FALSE)=\"-\"),1/0,VLOOKUP($A892,Economática!$A$3:$AI$823,23,FALSE)))","v":""},{"$f":"IF($A892=\"\",\"\",IF(OR(VLOOKUP($A892,Economática!$A$3:$AI$823,24,FALSE)=0,VLOOKUP($A892,Economática!$A$3:$AI$823,24,FALSE)=\"-\"),1/0,VLOOKUP($A892,Economática!$A$3:$AI$823,24,FALSE)))","v":""},{"$f":"IF($A892=\"\",\"\",IF(OR(VLOOKUP($A892,Economática!$A$3:$AI$823,25,FALSE)=0,VLOOKUP($A892,Economática!$A$3:$AI$823,25,FALSE)=\"-\"),1/0,VLOOKUP($A892,Economática!$A$3:$AI$823,25,FALSE)))","v":""},{"$f":"IF($A892=\"\",\"\",IF(ISERROR((F892+VLOOKUP($A892,Economática!$A$3:$AI$823,26,FALSE))/Y892),(F892+VLOOKUP($A892,Economática!$A$3:$AI$823,26,FALSE))/Y892,(F892+VLOOKUP($A892,Economática!$A$3:$AI$823,26,FALSE))/Y892))","v":""},{"$f":"IF($A892=\"\",\"\",IF(OR(-VLOOKUP($A892,Economática!$A$3:$AI$823,27,FALSE)=0,-VLOOKUP($A892,Economática!$A$3:$AI$823,27,FALSE)=\"-\"),1/0,-VLOOKUP($A892,Economática!$A$3:$AI$823,27,FALSE)))","v":""},"",{"$f":"IF($A892=\"\",\"\",IF(OR(VLOOKUP($A892,Economática!$A$3:$AI$823,28,FALSE)=0,VLOOKUP($A892,Economática!$A$3:$AI$823,28,FALSE)=\"-\"),1/0,VLOOKUP($A892,Economática!$A$3:$AI$823,28,FALSE)))","v":""},{"$f":"IF($A892=\"\",\"\",IF(OR(VLOOKUP($A892,Economática!$A$3:$AI$823,29,FALSE)=0,VLOOKUP($A892,Economática!$A$3:$AI$823,29,FALSE)=\"-\"),1/0,VLOOKUP($A892,Economática!$A$3:$AI$823,29,FALSE)))","v":""},{"$f":"IF($A892=\"\",\"\",IF(OR(VLOOKUP($A892,Economática!$A$3:$AI$823,30,FALSE)/E892=0,VLOOKUP($A892,Economática!$A$3:$AI$823,30,FALSE)/E892=\"-\",VLOOKUP($A892,Economática!$A$3:$AI$823,30,FALSE)/E892<33.33%,VLOOKUP($A892,Economática!$A$3:$AI$823,30,FALSE)/E892>100%),1/0,VLOOKUP($A892,Economática!$A$3:$AI$823,30,FALSE)/E892))","v":""},"",{"$f":"IF($A892=\"\",\"\",IF(OR(VLOOKUP($A892,Economática!$A$3:$AI$823,25,FALSE)=0,VLOOKUP($A892,Economática!$A$3:$AI$823,25,FALSE)=\"-\"),1/0,VLOOKUP($A892,Economática!$A$3:$AI$823,25,FALSE)))","v":""},{"$f":"CONCATENATE(Economática!B870,\" \",Economática!C870)","v":" "}]
[{"$f":"IF(Economática!AG871=\"\",\"\",Economática!AG871)","v":""},{"$f":"IF($A893=\"\",\"\",VLOOKUP(VLOOKUP($A893,Economática!$A$3:$AI$823,6,FALSE),Correção!$B$16:$C$36,2,FALSE))","v":""},{"$f":"IF(Economática!B871=\"\",\"\",Economática!B871)","v":""},{"$f":"IF($A893=\"\",\"\",IF(OR(VLOOKUP($A893,Economática!$A$3:$AI$823,8,FALSE)=0,VLOOKUP($A893,Economática!$A$3:$AI$823,8,FALSE)=\"-\"),1/0,VLOOKUP($A893,Economática!$A$3:$AI$823,8,FALSE)))","v":""},{"$f":"IF(A893=\"\",\"\",IF(ISERROR(VLOOKUP(A893,Correção!$B$2:$G$13,9,FALSE)),VLOOKUP($A893,Economática!$A$3:$AI$823,9,FALSE),VLOOKUP(A893,Correção!$B$2:$G$13,9,FALSE)))","v":""},{"$f":"IF($A893=\"\",\"\",Economática!G871)","v":""},{"$f":"IF($A893=\"\",\"\",IF(OR(VLOOKUP($A893,Economática!$A$3:$AI$823,10,FALSE)=0,VLOOKUP($A893,Economática!$A$3:$AI$823,10,FALSE)=\"-\"),1/0,VLOOKUP($A893,Economática!$A$3:$AI$823,10,FALSE)))","v":""},{"$f":"IF($A893=\"\",\"\",IF(OR(VLOOKUP($A893,Economática!$A$3:$AI$823,11,FALSE)=0,VLOOKUP($A893,Economática!$A$3:$AI$823,11,FALSE)=\"-\"),1/0,VLOOKUP($A893,Economática!$A$3:$AI$823,11,FALSE)))","v":""},{"$f":"IF($A893=\"\",\"\",IF(OR(VLOOKUP($A893,Economática!$A$3:$AI$823,12,FALSE)=0,VLOOKUP($A893,Economática!$A$3:$AI$823,12,FALSE)=\"-\"),1/0,VLOOKUP($A893,Economática!$A$3:$AI$823,12,FALSE)))","v":""},{"$f":"IF($A893=\"\",\"\",IF(OR(VLOOKUP($A893,Economática!$A$3:$AI$823,13,FALSE)=0,VLOOKUP($A893,Economática!$A$3:$AI$823,13,FALSE)=\"-\"),1/0,VLOOKUP($A893,Economática!$A$3:$AI$823,13,FALSE)))","v":""},{"$f":"IF($A893=\"\",\"\",IF(OR(VLOOKUP($A893,Economática!$A$3:$AI$823,14,FALSE)=0,VLOOKUP($A893,Economática!$A$3:$AI$823,14,FALSE)=\"-\"),1/0,VLOOKUP($A893,Economática!$A$3:$AI$823,14,FALSE)))","v":""},{"$f":"IF($A893=\"\",\"\",IF(OR(VLOOKUP($A893,Economática!$A$3:$AI$823,15,FALSE)=0,VLOOKUP($A893,Economática!$A$3:$AI$823,15,FALSE)=\"-\"),1/0,VLOOKUP($A893,Economática!$A$3:$AI$823,15,FALSE)))","v":""},{"$f":"IF($A893=\"\",\"\",IF(OR(VLOOKUP($A893,Economática!$A$3:$AI$823,16,FALSE)=0,VLOOKUP($A893,Economática!$A$3:$AI$823,16,FALSE)=\"-\"),1/0,VLOOKUP($A893,Economática!$A$3:$AI$823,16,FALSE)))","v":""},{"$f":"IF($A893=\"\",\"\",IF(OR(VLOOKUP($A893,Economática!$A$3:$AI$823,17,FALSE)=0,VLOOKUP($A893,Economática!$A$3:$AI$823,17,FALSE)=\"-\"),1/0,VLOOKUP($A893,Economática!$A$3:$AI$823,17,FALSE)))","v":""},{"$f":"IF($A893=\"\",\"\",IF(OR(VLOOKUP($A893,Economática!$A$3:$AI$823,18,FALSE)=0,VLOOKUP($A893,Economática!$A$3:$AI$823,18,FALSE)=\"-\"),1/0,VLOOKUP($A893,Economática!$A$3:$AI$823,18,FALSE)))","v":""},{"$f":"IF($A893=\"\",\"\",IF(OR(VLOOKUP($A893,Economática!$A$3:$AI$823,19,FALSE)=0,VLOOKUP($A893,Economática!$A$3:$AI$823,19,FALSE)=\"-\"),1/0,VLOOKUP($A893,Economática!$A$3:$AI$823,19,FALSE)))","v":""},{"$f":"IF($A893=\"\",\"\",VLOOKUP($A893,Economática!$A$3:$AI$823,20,FALSE)/E893)","v":""},"","","",{"$f":"IF($A893=\"\",\"\",IF(OR(VLOOKUP($A893,Economática!$A$3:$AI$823,21,FALSE)/100=0,VLOOKUP($A893,Economática!$A$3:$AI$823,21,FALSE)/100=\"-\"),1/0,VLOOKUP($A893,Economática!$A$3:$AI$823,21,FALSE)/100))","v":""},{"$f":"IF($A893=\"\",\"\",IF(OR(VLOOKUP($A893,Economática!$A$3:$AI$823,22,FALSE)/100=0,VLOOKUP($A893,Economática!$A$3:$AI$823,22,FALSE)/100=\"-\"),1/0,VLOOKUP($A893,Economática!$A$3:$AI$823,22,FALSE)/100))","v":""},{"$f":"IF($A893=\"\",\"\",IF(OR(VLOOKUP($A893,Economática!$A$3:$AI$823,23,FALSE)=0,VLOOKUP($A893,Economática!$A$3:$AI$823,23,FALSE)=\"-\"),1/0,VLOOKUP($A893,Economática!$A$3:$AI$823,23,FALSE)))","v":""},{"$f":"IF($A893=\"\",\"\",IF(OR(VLOOKUP($A893,Economática!$A$3:$AI$823,24,FALSE)=0,VLOOKUP($A893,Economática!$A$3:$AI$823,24,FALSE)=\"-\"),1/0,VLOOKUP($A893,Economática!$A$3:$AI$823,24,FALSE)))","v":""},{"$f":"IF($A893=\"\",\"\",IF(OR(VLOOKUP($A893,Economática!$A$3:$AI$823,25,FALSE)=0,VLOOKUP($A893,Economática!$A$3:$AI$823,25,FALSE)=\"-\"),1/0,VLOOKUP($A893,Economática!$A$3:$AI$823,25,FALSE)))","v":""},{"$f":"IF($A893=\"\",\"\",IF(ISERROR((F893+VLOOKUP($A893,Economática!$A$3:$AI$823,26,FALSE))/Y893),(F893+VLOOKUP($A893,Economática!$A$3:$AI$823,26,FALSE))/Y893,(F893+VLOOKUP($A893,Economática!$A$3:$AI$823,26,FALSE))/Y893))","v":""},{"$f":"IF($A893=\"\",\"\",IF(OR(-VLOOKUP($A893,Economática!$A$3:$AI$823,27,FALSE)=0,-VLOOKUP($A893,Economática!$A$3:$AI$823,27,FALSE)=\"-\"),1/0,-VLOOKUP($A893,Economática!$A$3:$AI$823,27,FALSE)))","v":""},"",{"$f":"IF($A893=\"\",\"\",IF(OR(VLOOKUP($A893,Economática!$A$3:$AI$823,28,FALSE)=0,VLOOKUP($A893,Economática!$A$3:$AI$823,28,FALSE)=\"-\"),1/0,VLOOKUP($A893,Economática!$A$3:$AI$823,28,FALSE)))","v":""},{"$f":"IF($A893=\"\",\"\",IF(OR(VLOOKUP($A893,Economática!$A$3:$AI$823,29,FALSE)=0,VLOOKUP($A893,Economática!$A$3:$AI$823,29,FALSE)=\"-\"),1/0,VLOOKUP($A893,Economática!$A$3:$AI$823,29,FALSE)))","v":""},{"$f":"IF($A893=\"\",\"\",IF(OR(VLOOKUP($A893,Economática!$A$3:$AI$823,30,FALSE)/E893=0,VLOOKUP($A893,Economática!$A$3:$AI$823,30,FALSE)/E893=\"-\",VLOOKUP($A893,Economática!$A$3:$AI$823,30,FALSE)/E893<33.33%,VLOOKUP($A893,Economática!$A$3:$AI$823,30,FALSE)/E893>100%),1/0,VLOOKUP($A893,Economática!$A$3:$AI$823,30,FALSE)/E893))","v":""},"",{"$f":"IF($A893=\"\",\"\",IF(OR(VLOOKUP($A893,Economática!$A$3:$AI$823,25,FALSE)=0,VLOOKUP($A893,Economática!$A$3:$AI$823,25,FALSE)=\"-\"),1/0,VLOOKUP($A893,Economática!$A$3:$AI$823,25,FALSE)))","v":""},{"$f":"CONCATENATE(Economática!B871,\" \",Economática!C871)","v":" "}]
[{"$f":"IF(Economática!AG872=\"\",\"\",Economática!AG872)","v":""},{"$f":"IF($A894=\"\",\"\",VLOOKUP(VLOOKUP($A894,Economática!$A$3:$AI$823,6,FALSE),Correção!$B$16:$C$36,2,FALSE))","v":""},{"$f":"IF(Economática!B872=\"\",\"\",Economática!B872)","v":""},{"$f":"IF($A894=\"\",\"\",IF(OR(VLOOKUP($A894,Economática!$A$3:$AI$823,8,FALSE)=0,VLOOKUP($A894,Economática!$A$3:$AI$823,8,FALSE)=\"-\"),1/0,VLOOKUP($A894,Economática!$A$3:$AI$823,8,FALSE)))","v":""},{"$f":"IF(A894=\"\",\"\",IF(ISERROR(VLOOKUP(A894,Correção!$B$2:$G$13,9,FALSE)),VLOOKUP($A894,Economática!$A$3:$AI$823,9,FALSE),VLOOKUP(A894,Correção!$B$2:$G$13,9,FALSE)))","v":""},{"$f":"IF($A894=\"\",\"\",Economática!G872)","v":""},{"$f":"IF($A894=\"\",\"\",IF(OR(VLOOKUP($A894,Economática!$A$3:$AI$823,10,FALSE)=0,VLOOKUP($A894,Economática!$A$3:$AI$823,10,FALSE)=\"-\"),1/0,VLOOKUP($A894,Economática!$A$3:$AI$823,10,FALSE)))","v":""},{"$f":"IF($A894=\"\",\"\",IF(OR(VLOOKUP($A894,Economática!$A$3:$AI$823,11,FALSE)=0,VLOOKUP($A894,Economática!$A$3:$AI$823,11,FALSE)=\"-\"),1/0,VLOOKUP($A894,Economática!$A$3:$AI$823,11,FALSE)))","v":""},{"$f":"IF($A894=\"\",\"\",IF(OR(VLOOKUP($A894,Economática!$A$3:$AI$823,12,FALSE)=0,VLOOKUP($A894,Economática!$A$3:$AI$823,12,FALSE)=\"-\"),1/0,VLOOKUP($A894,Economática!$A$3:$AI$823,12,FALSE)))","v":""},{"$f":"IF($A894=\"\",\"\",IF(OR(VLOOKUP($A894,Economática!$A$3:$AI$823,13,FALSE)=0,VLOOKUP($A894,Economática!$A$3:$AI$823,13,FALSE)=\"-\"),1/0,VLOOKUP($A894,Economática!$A$3:$AI$823,13,FALSE)))","v":""},{"$f":"IF($A894=\"\",\"\",IF(OR(VLOOKUP($A894,Economática!$A$3:$AI$823,14,FALSE)=0,VLOOKUP($A894,Economática!$A$3:$AI$823,14,FALSE)=\"-\"),1/0,VLOOKUP($A894,Economática!$A$3:$AI$823,14,FALSE)))","v":""},{"$f":"IF($A894=\"\",\"\",IF(OR(VLOOKUP($A894,Economática!$A$3:$AI$823,15,FALSE)=0,VLOOKUP($A894,Economática!$A$3:$AI$823,15,FALSE)=\"-\"),1/0,VLOOKUP($A894,Economática!$A$3:$AI$823,15,FALSE)))","v":""},{"$f":"IF($A894=\"\",\"\",IF(OR(VLOOKUP($A894,Economática!$A$3:$AI$823,16,FALSE)=0,VLOOKUP($A894,Economática!$A$3:$AI$823,16,FALSE)=\"-\"),1/0,VLOOKUP($A894,Economática!$A$3:$AI$823,16,FALSE)))","v":""},{"$f":"IF($A894=\"\",\"\",IF(OR(VLOOKUP($A894,Economática!$A$3:$AI$823,17,FALSE)=0,VLOOKUP($A894,Economática!$A$3:$AI$823,17,FALSE)=\"-\"),1/0,VLOOKUP($A894,Economática!$A$3:$AI$823,17,FALSE)))","v":""},{"$f":"IF($A894=\"\",\"\",IF(OR(VLOOKUP($A894,Economática!$A$3:$AI$823,18,FALSE)=0,VLOOKUP($A894,Economática!$A$3:$AI$823,18,FALSE)=\"-\"),1/0,VLOOKUP($A894,Economática!$A$3:$AI$823,18,FALSE)))","v":""},{"$f":"IF($A894=\"\",\"\",IF(OR(VLOOKUP($A894,Economática!$A$3:$AI$823,19,FALSE)=0,VLOOKUP($A894,Economática!$A$3:$AI$823,19,FALSE)=\"-\"),1/0,VLOOKUP($A894,Economática!$A$3:$AI$823,19,FALSE)))","v":""},{"$f":"IF($A894=\"\",\"\",VLOOKUP($A894,Economática!$A$3:$AI$823,20,FALSE)/E894)","v":""},"","","",{"$f":"IF($A894=\"\",\"\",IF(OR(VLOOKUP($A894,Economática!$A$3:$AI$823,21,FALSE)/100=0,VLOOKUP($A894,Economática!$A$3:$AI$823,21,FALSE)/100=\"-\"),1/0,VLOOKUP($A894,Economática!$A$3:$AI$823,21,FALSE)/100))","v":""},{"$f":"IF($A894=\"\",\"\",IF(OR(VLOOKUP($A894,Economática!$A$3:$AI$823,22,FALSE)/100=0,VLOOKUP($A894,Economática!$A$3:$AI$823,22,FALSE)/100=\"-\"),1/0,VLOOKUP($A894,Economática!$A$3:$AI$823,22,FALSE)/100))","v":""},{"$f":"IF($A894=\"\",\"\",IF(OR(VLOOKUP($A894,Economática!$A$3:$AI$823,23,FALSE)=0,VLOOKUP($A894,Economática!$A$3:$AI$823,23,FALSE)=\"-\"),1/0,VLOOKUP($A894,Economática!$A$3:$AI$823,23,FALSE)))","v":""},{"$f":"IF($A894=\"\",\"\",IF(OR(VLOOKUP($A894,Economática!$A$3:$AI$823,24,FALSE)=0,VLOOKUP($A894,Economática!$A$3:$AI$823,24,FALSE)=\"-\"),1/0,VLOOKUP($A894,Economática!$A$3:$AI$823,24,FALSE)))","v":""},{"$f":"IF($A894=\"\",\"\",IF(OR(VLOOKUP($A894,Economática!$A$3:$AI$823,25,FALSE)=0,VLOOKUP($A894,Economática!$A$3:$AI$823,25,FALSE)=\"-\"),1/0,VLOOKUP($A894,Economática!$A$3:$AI$823,25,FALSE)))","v":""},{"$f":"IF($A894=\"\",\"\",IF(ISERROR((F894+VLOOKUP($A894,Economática!$A$3:$AI$823,26,FALSE))/Y894),(F894+VLOOKUP($A894,Economática!$A$3:$AI$823,26,FALSE))/Y894,(F894+VLOOKUP($A894,Economática!$A$3:$AI$823,26,FALSE))/Y894))","v":""},{"$f":"IF($A894=\"\",\"\",IF(OR(-VLOOKUP($A894,Economática!$A$3:$AI$823,27,FALSE)=0,-VLOOKUP($A894,Economática!$A$3:$AI$823,27,FALSE)=\"-\"),1/0,-VLOOKUP($A894,Economática!$A$3:$AI$823,27,FALSE)))","v":""},"",{"$f":"IF($A894=\"\",\"\",IF(OR(VLOOKUP($A894,Economática!$A$3:$AI$823,28,FALSE)=0,VLOOKUP($A894,Economática!$A$3:$AI$823,28,FALSE)=\"-\"),1/0,VLOOKUP($A894,Economática!$A$3:$AI$823,28,FALSE)))","v":""},{"$f":"IF($A894=\"\",\"\",IF(OR(VLOOKUP($A894,Economática!$A$3:$AI$823,29,FALSE)=0,VLOOKUP($A894,Economática!$A$3:$AI$823,29,FALSE)=\"-\"),1/0,VLOOKUP($A894,Economática!$A$3:$AI$823,29,FALSE)))","v":""},{"$f":"IF($A894=\"\",\"\",IF(OR(VLOOKUP($A894,Economática!$A$3:$AI$823,30,FALSE)/E894=0,VLOOKUP($A894,Economática!$A$3:$AI$823,30,FALSE)/E894=\"-\",VLOOKUP($A894,Economática!$A$3:$AI$823,30,FALSE)/E894<33.33%,VLOOKUP($A894,Economática!$A$3:$AI$823,30,FALSE)/E894>100%),1/0,VLOOKUP($A894,Economática!$A$3:$AI$823,30,FALSE)/E894))","v":""},"",{"$f":"IF($A894=\"\",\"\",IF(OR(VLOOKUP($A894,Economática!$A$3:$AI$823,25,FALSE)=0,VLOOKUP($A894,Economática!$A$3:$AI$823,25,FALSE)=\"-\"),1/0,VLOOKUP($A894,Economática!$A$3:$AI$823,25,FALSE)))","v":""},{"$f":"CONCATENATE(Economática!B872,\" \",Economática!C872)","v":" "}]
[{"$f":"IF(Economática!AG873=\"\",\"\",Economática!AG873)","v":""},{"$f":"IF($A895=\"\",\"\",VLOOKUP(VLOOKUP($A895,Economática!$A$3:$AI$823,6,FALSE),Correção!$B$16:$C$36,2,FALSE))","v":""},{"$f":"IF(Economática!B873=\"\",\"\",Economática!B873)","v":""},{"$f":"IF($A895=\"\",\"\",IF(OR(VLOOKUP($A895,Economática!$A$3:$AI$823,8,FALSE)=0,VLOOKUP($A895,Economática!$A$3:$AI$823,8,FALSE)=\"-\"),1/0,VLOOKUP($A895,Economática!$A$3:$AI$823,8,FALSE)))","v":""},{"$f":"IF(A895=\"\",\"\",IF(ISERROR(VLOOKUP(A895,Correção!$B$2:$G$13,9,FALSE)),VLOOKUP($A895,Economática!$A$3:$AI$823,9,FALSE),VLOOKUP(A895,Correção!$B$2:$G$13,9,FALSE)))","v":""},{"$f":"IF($A895=\"\",\"\",Economática!G873)","v":""},{"$f":"IF($A895=\"\",\"\",IF(OR(VLOOKUP($A895,Economática!$A$3:$AI$823,10,FALSE)=0,VLOOKUP($A895,Economática!$A$3:$AI$823,10,FALSE)=\"-\"),1/0,VLOOKUP($A895,Economática!$A$3:$AI$823,10,FALSE)))","v":""},{"$f":"IF($A895=\"\",\"\",IF(OR(VLOOKUP($A895,Economática!$A$3:$AI$823,11,FALSE)=0,VLOOKUP($A895,Economática!$A$3:$AI$823,11,FALSE)=\"-\"),1/0,VLOOKUP($A895,Economática!$A$3:$AI$823,11,FALSE)))","v":""},{"$f":"IF($A895=\"\",\"\",IF(OR(VLOOKUP($A895,Economática!$A$3:$AI$823,12,FALSE)=0,VLOOKUP($A895,Economática!$A$3:$AI$823,12,FALSE)=\"-\"),1/0,VLOOKUP($A895,Economática!$A$3:$AI$823,12,FALSE)))","v":""},{"$f":"IF($A895=\"\",\"\",IF(OR(VLOOKUP($A895,Economática!$A$3:$AI$823,13,FALSE)=0,VLOOKUP($A895,Economática!$A$3:$AI$823,13,FALSE)=\"-\"),1/0,VLOOKUP($A895,Economática!$A$3:$AI$823,13,FALSE)))","v":""},{"$f":"IF($A895=\"\",\"\",IF(OR(VLOOKUP($A895,Economática!$A$3:$AI$823,14,FALSE)=0,VLOOKUP($A895,Economática!$A$3:$AI$823,14,FALSE)=\"-\"),1/0,VLOOKUP($A895,Economática!$A$3:$AI$823,14,FALSE)))","v":""},{"$f":"IF($A895=\"\",\"\",IF(OR(VLOOKUP($A895,Economática!$A$3:$AI$823,15,FALSE)=0,VLOOKUP($A895,Economática!$A$3:$AI$823,15,FALSE)=\"-\"),1/0,VLOOKUP($A895,Economática!$A$3:$AI$823,15,FALSE)))","v":""},{"$f":"IF($A895=\"\",\"\",IF(OR(VLOOKUP($A895,Economática!$A$3:$AI$823,16,FALSE)=0,VLOOKUP($A895,Economática!$A$3:$AI$823,16,FALSE)=\"-\"),1/0,VLOOKUP($A895,Economática!$A$3:$AI$823,16,FALSE)))","v":""},{"$f":"IF($A895=\"\",\"\",IF(OR(VLOOKUP($A895,Economática!$A$3:$AI$823,17,FALSE)=0,VLOOKUP($A895,Economática!$A$3:$AI$823,17,FALSE)=\"-\"),1/0,VLOOKUP($A895,Economática!$A$3:$AI$823,17,FALSE)))","v":""},{"$f":"IF($A895=\"\",\"\",IF(OR(VLOOKUP($A895,Economática!$A$3:$AI$823,18,FALSE)=0,VLOOKUP($A895,Economática!$A$3:$AI$823,18,FALSE)=\"-\"),1/0,VLOOKUP($A895,Economática!$A$3:$AI$823,18,FALSE)))","v":""},{"$f":"IF($A895=\"\",\"\",IF(OR(VLOOKUP($A895,Economática!$A$3:$AI$823,19,FALSE)=0,VLOOKUP($A895,Economática!$A$3:$AI$823,19,FALSE)=\"-\"),1/0,VLOOKUP($A895,Economática!$A$3:$AI$823,19,FALSE)))","v":""},{"$f":"IF($A895=\"\",\"\",VLOOKUP($A895,Economática!$A$3:$AI$823,20,FALSE)/E895)","v":""},"","","",{"$f":"IF($A895=\"\",\"\",IF(OR(VLOOKUP($A895,Economática!$A$3:$AI$823,21,FALSE)/100=0,VLOOKUP($A895,Economática!$A$3:$AI$823,21,FALSE)/100=\"-\"),1/0,VLOOKUP($A895,Economática!$A$3:$AI$823,21,FALSE)/100))","v":""},{"$f":"IF($A895=\"\",\"\",IF(OR(VLOOKUP($A895,Economática!$A$3:$AI$823,22,FALSE)/100=0,VLOOKUP($A895,Economática!$A$3:$AI$823,22,FALSE)/100=\"-\"),1/0,VLOOKUP($A895,Economática!$A$3:$AI$823,22,FALSE)/100))","v":""},{"$f":"IF($A895=\"\",\"\",IF(OR(VLOOKUP($A895,Economática!$A$3:$AI$823,23,FALSE)=0,VLOOKUP($A895,Economática!$A$3:$AI$823,23,FALSE)=\"-\"),1/0,VLOOKUP($A895,Economática!$A$3:$AI$823,23,FALSE)))","v":""},{"$f":"IF($A895=\"\",\"\",IF(OR(VLOOKUP($A895,Economática!$A$3:$AI$823,24,FALSE)=0,VLOOKUP($A895,Economática!$A$3:$AI$823,24,FALSE)=\"-\"),1/0,VLOOKUP($A895,Economática!$A$3:$AI$823,24,FALSE)))","v":""},{"$f":"IF($A895=\"\",\"\",IF(OR(VLOOKUP($A895,Economática!$A$3:$AI$823,25,FALSE)=0,VLOOKUP($A895,Economática!$A$3:$AI$823,25,FALSE)=\"-\"),1/0,VLOOKUP($A895,Economática!$A$3:$AI$823,25,FALSE)))","v":""},{"$f":"IF($A895=\"\",\"\",IF(ISERROR((F895+VLOOKUP($A895,Economática!$A$3:$AI$823,26,FALSE))/Y895),(F895+VLOOKUP($A895,Economática!$A$3:$AI$823,26,FALSE))/Y895,(F895+VLOOKUP($A895,Economática!$A$3:$AI$823,26,FALSE))/Y895))","v":""},{"$f":"IF($A895=\"\",\"\",IF(OR(-VLOOKUP($A895,Economática!$A$3:$AI$823,27,FALSE)=0,-VLOOKUP($A895,Economática!$A$3:$AI$823,27,FALSE)=\"-\"),1/0,-VLOOKUP($A895,Economática!$A$3:$AI$823,27,FALSE)))","v":""},"",{"$f":"IF($A895=\"\",\"\",IF(OR(VLOOKUP($A895,Economática!$A$3:$AI$823,28,FALSE)=0,VLOOKUP($A895,Economática!$A$3:$AI$823,28,FALSE)=\"-\"),1/0,VLOOKUP($A895,Economática!$A$3:$AI$823,28,FALSE)))","v":""},{"$f":"IF($A895=\"\",\"\",IF(OR(VLOOKUP($A895,Economática!$A$3:$AI$823,29,FALSE)=0,VLOOKUP($A895,Economática!$A$3:$AI$823,29,FALSE)=\"-\"),1/0,VLOOKUP($A895,Economática!$A$3:$AI$823,29,FALSE)))","v":""},{"$f":"IF($A895=\"\",\"\",IF(OR(VLOOKUP($A895,Economática!$A$3:$AI$823,30,FALSE)/E895=0,VLOOKUP($A895,Economática!$A$3:$AI$823,30,FALSE)/E895=\"-\",VLOOKUP($A895,Economática!$A$3:$AI$823,30,FALSE)/E895<33.33%,VLOOKUP($A895,Economática!$A$3:$AI$823,30,FALSE)/E895>100%),1/0,VLOOKUP($A895,Economática!$A$3:$AI$823,30,FALSE)/E895))","v":""},"",{"$f":"IF($A895=\"\",\"\",IF(OR(VLOOKUP($A895,Economática!$A$3:$AI$823,25,FALSE)=0,VLOOKUP($A895,Economática!$A$3:$AI$823,25,FALSE)=\"-\"),1/0,VLOOKUP($A895,Economática!$A$3:$AI$823,25,FALSE)))","v":""},{"$f":"CONCATENATE(Economática!B873,\" \",Economática!C873)","v":" "}]
[{"$f":"IF(Economática!AG874=\"\",\"\",Economática!AG874)","v":""},{"$f":"IF($A896=\"\",\"\",VLOOKUP(VLOOKUP($A896,Economática!$A$3:$AI$823,6,FALSE),Correção!$B$16:$C$36,2,FALSE))","v":""},{"$f":"IF(Economática!B874=\"\",\"\",Economática!B874)","v":""},{"$f":"IF($A896=\"\",\"\",IF(OR(VLOOKUP($A896,Economática!$A$3:$AI$823,8,FALSE)=0,VLOOKUP($A896,Economática!$A$3:$AI$823,8,FALSE)=\"-\"),1/0,VLOOKUP($A896,Economática!$A$3:$AI$823,8,FALSE)))","v":""},{"$f":"IF(A896=\"\",\"\",IF(ISERROR(VLOOKUP(A896,Correção!$B$2:$G$13,9,FALSE)),VLOOKUP($A896,Economática!$A$3:$AI$823,9,FALSE),VLOOKUP(A896,Correção!$B$2:$G$13,9,FALSE)))","v":""},{"$f":"IF($A896=\"\",\"\",Economática!G874)","v":""},{"$f":"IF($A896=\"\",\"\",IF(OR(VLOOKUP($A896,Economática!$A$3:$AI$823,10,FALSE)=0,VLOOKUP($A896,Economática!$A$3:$AI$823,10,FALSE)=\"-\"),1/0,VLOOKUP($A896,Economática!$A$3:$AI$823,10,FALSE)))","v":""},{"$f":"IF($A896=\"\",\"\",IF(OR(VLOOKUP($A896,Economática!$A$3:$AI$823,11,FALSE)=0,VLOOKUP($A896,Economática!$A$3:$AI$823,11,FALSE)=\"-\"),1/0,VLOOKUP($A896,Economática!$A$3:$AI$823,11,FALSE)))","v":""},{"$f":"IF($A896=\"\",\"\",IF(OR(VLOOKUP($A896,Economática!$A$3:$AI$823,12,FALSE)=0,VLOOKUP($A896,Economática!$A$3:$AI$823,12,FALSE)=\"-\"),1/0,VLOOKUP($A896,Economática!$A$3:$AI$823,12,FALSE)))","v":""},{"$f":"IF($A896=\"\",\"\",IF(OR(VLOOKUP($A896,Economática!$A$3:$AI$823,13,FALSE)=0,VLOOKUP($A896,Economática!$A$3:$AI$823,13,FALSE)=\"-\"),1/0,VLOOKUP($A896,Economática!$A$3:$AI$823,13,FALSE)))","v":""},{"$f":"IF($A896=\"\",\"\",IF(OR(VLOOKUP($A896,Economática!$A$3:$AI$823,14,FALSE)=0,VLOOKUP($A896,Economática!$A$3:$AI$823,14,FALSE)=\"-\"),1/0,VLOOKUP($A896,Economática!$A$3:$AI$823,14,FALSE)))","v":""},{"$f":"IF($A896=\"\",\"\",IF(OR(VLOOKUP($A896,Economática!$A$3:$AI$823,15,FALSE)=0,VLOOKUP($A896,Economática!$A$3:$AI$823,15,FALSE)=\"-\"),1/0,VLOOKUP($A896,Economática!$A$3:$AI$823,15,FALSE)))","v":""},{"$f":"IF($A896=\"\",\"\",IF(OR(VLOOKUP($A896,Economática!$A$3:$AI$823,16,FALSE)=0,VLOOKUP($A896,Economática!$A$3:$AI$823,16,FALSE)=\"-\"),1/0,VLOOKUP($A896,Economática!$A$3:$AI$823,16,FALSE)))","v":""},{"$f":"IF($A896=\"\",\"\",IF(OR(VLOOKUP($A896,Economática!$A$3:$AI$823,17,FALSE)=0,VLOOKUP($A896,Economática!$A$3:$AI$823,17,FALSE)=\"-\"),1/0,VLOOKUP($A896,Economática!$A$3:$AI$823,17,FALSE)))","v":""},{"$f":"IF($A896=\"\",\"\",IF(OR(VLOOKUP($A896,Economática!$A$3:$AI$823,18,FALSE)=0,VLOOKUP($A896,Economática!$A$3:$AI$823,18,FALSE)=\"-\"),1/0,VLOOKUP($A896,Economática!$A$3:$AI$823,18,FALSE)))","v":""},{"$f":"IF($A896=\"\",\"\",IF(OR(VLOOKUP($A896,Economática!$A$3:$AI$823,19,FALSE)=0,VLOOKUP($A896,Economática!$A$3:$AI$823,19,FALSE)=\"-\"),1/0,VLOOKUP($A896,Economática!$A$3:$AI$823,19,FALSE)))","v":""},{"$f":"IF($A896=\"\",\"\",VLOOKUP($A896,Economática!$A$3:$AI$823,20,FALSE)/E896)","v":""},"","","",{"$f":"IF($A896=\"\",\"\",IF(OR(VLOOKUP($A896,Economática!$A$3:$AI$823,21,FALSE)/100=0,VLOOKUP($A896,Economática!$A$3:$AI$823,21,FALSE)/100=\"-\"),1/0,VLOOKUP($A896,Economática!$A$3:$AI$823,21,FALSE)/100))","v":""},{"$f":"IF($A896=\"\",\"\",IF(OR(VLOOKUP($A896,Economática!$A$3:$AI$823,22,FALSE)/100=0,VLOOKUP($A896,Economática!$A$3:$AI$823,22,FALSE)/100=\"-\"),1/0,VLOOKUP($A896,Economática!$A$3:$AI$823,22,FALSE)/100))","v":""},{"$f":"IF($A896=\"\",\"\",IF(OR(VLOOKUP($A896,Economática!$A$3:$AI$823,23,FALSE)=0,VLOOKUP($A896,Economática!$A$3:$AI$823,23,FALSE)=\"-\"),1/0,VLOOKUP($A896,Economática!$A$3:$AI$823,23,FALSE)))","v":""},{"$f":"IF($A896=\"\",\"\",IF(OR(VLOOKUP($A896,Economática!$A$3:$AI$823,24,FALSE)=0,VLOOKUP($A896,Economática!$A$3:$AI$823,24,FALSE)=\"-\"),1/0,VLOOKUP($A896,Economática!$A$3:$AI$823,24,FALSE)))","v":""},{"$f":"IF($A896=\"\",\"\",IF(OR(VLOOKUP($A896,Economática!$A$3:$AI$823,25,FALSE)=0,VLOOKUP($A896,Economática!$A$3:$AI$823,25,FALSE)=\"-\"),1/0,VLOOKUP($A896,Economática!$A$3:$AI$823,25,FALSE)))","v":""},{"$f":"IF($A896=\"\",\"\",IF(ISERROR((F896+VLOOKUP($A896,Economática!$A$3:$AI$823,26,FALSE))/Y896),(F896+VLOOKUP($A896,Economática!$A$3:$AI$823,26,FALSE))/Y896,(F896+VLOOKUP($A896,Economática!$A$3:$AI$823,26,FALSE))/Y896))","v":""},{"$f":"IF($A896=\"\",\"\",IF(OR(-VLOOKUP($A896,Economática!$A$3:$AI$823,27,FALSE)=0,-VLOOKUP($A896,Economática!$A$3:$AI$823,27,FALSE)=\"-\"),1/0,-VLOOKUP($A896,Economática!$A$3:$AI$823,27,FALSE)))","v":""},"",{"$f":"IF($A896=\"\",\"\",IF(OR(VLOOKUP($A896,Economática!$A$3:$AI$823,28,FALSE)=0,VLOOKUP($A896,Economática!$A$3:$AI$823,28,FALSE)=\"-\"),1/0,VLOOKUP($A896,Economática!$A$3:$AI$823,28,FALSE)))","v":""},{"$f":"IF($A896=\"\",\"\",IF(OR(VLOOKUP($A896,Economática!$A$3:$AI$823,29,FALSE)=0,VLOOKUP($A896,Economática!$A$3:$AI$823,29,FALSE)=\"-\"),1/0,VLOOKUP($A896,Economática!$A$3:$AI$823,29,FALSE)))","v":""},{"$f":"IF($A896=\"\",\"\",IF(OR(VLOOKUP($A896,Economática!$A$3:$AI$823,30,FALSE)/E896=0,VLOOKUP($A896,Economática!$A$3:$AI$823,30,FALSE)/E896=\"-\",VLOOKUP($A896,Economática!$A$3:$AI$823,30,FALSE)/E896<33.33%,VLOOKUP($A896,Economática!$A$3:$AI$823,30,FALSE)/E896>100%),1/0,VLOOKUP($A896,Economática!$A$3:$AI$823,30,FALSE)/E896))","v":""},"",{"$f":"IF($A896=\"\",\"\",IF(OR(VLOOKUP($A896,Economática!$A$3:$AI$823,25,FALSE)=0,VLOOKUP($A896,Economática!$A$3:$AI$823,25,FALSE)=\"-\"),1/0,VLOOKUP($A896,Economática!$A$3:$AI$823,25,FALSE)))","v":""},{"$f":"CONCATENATE(Economática!B874,\" \",Economática!C874)","v":" "}]
[{"$f":"IF(Economática!AG875=\"\",\"\",Economática!AG875)","v":""},{"$f":"IF($A897=\"\",\"\",VLOOKUP(VLOOKUP($A897,Economática!$A$3:$AI$823,6,FALSE),Correção!$B$16:$C$36,2,FALSE))","v":""},{"$f":"IF(Economática!B875=\"\",\"\",Economática!B875)","v":""},{"$f":"IF($A897=\"\",\"\",IF(OR(VLOOKUP($A897,Economática!$A$3:$AI$823,8,FALSE)=0,VLOOKUP($A897,Economática!$A$3:$AI$823,8,FALSE)=\"-\"),1/0,VLOOKUP($A897,Economática!$A$3:$AI$823,8,FALSE)))","v":""},{"$f":"IF(A897=\"\",\"\",IF(ISERROR(VLOOKUP(A897,Correção!$B$2:$G$13,9,FALSE)),VLOOKUP($A897,Economática!$A$3:$AI$823,9,FALSE),VLOOKUP(A897,Correção!$B$2:$G$13,9,FALSE)))","v":""},{"$f":"IF($A897=\"\",\"\",Economática!G875)","v":""},{"$f":"IF($A897=\"\",\"\",IF(OR(VLOOKUP($A897,Economática!$A$3:$AI$823,10,FALSE)=0,VLOOKUP($A897,Economática!$A$3:$AI$823,10,FALSE)=\"-\"),1/0,VLOOKUP($A897,Economática!$A$3:$AI$823,10,FALSE)))","v":""},{"$f":"IF($A897=\"\",\"\",IF(OR(VLOOKUP($A897,Economática!$A$3:$AI$823,11,FALSE)=0,VLOOKUP($A897,Economática!$A$3:$AI$823,11,FALSE)=\"-\"),1/0,VLOOKUP($A897,Economática!$A$3:$AI$823,11,FALSE)))","v":""},{"$f":"IF($A897=\"\",\"\",IF(OR(VLOOKUP($A897,Economática!$A$3:$AI$823,12,FALSE)=0,VLOOKUP($A897,Economática!$A$3:$AI$823,12,FALSE)=\"-\"),1/0,VLOOKUP($A897,Economática!$A$3:$AI$823,12,FALSE)))","v":""},{"$f":"IF($A897=\"\",\"\",IF(OR(VLOOKUP($A897,Economática!$A$3:$AI$823,13,FALSE)=0,VLOOKUP($A897,Economática!$A$3:$AI$823,13,FALSE)=\"-\"),1/0,VLOOKUP($A897,Economática!$A$3:$AI$823,13,FALSE)))","v":""},{"$f":"IF($A897=\"\",\"\",IF(OR(VLOOKUP($A897,Economática!$A$3:$AI$823,14,FALSE)=0,VLOOKUP($A897,Economática!$A$3:$AI$823,14,FALSE)=\"-\"),1/0,VLOOKUP($A897,Economática!$A$3:$AI$823,14,FALSE)))","v":""},{"$f":"IF($A897=\"\",\"\",IF(OR(VLOOKUP($A897,Economática!$A$3:$AI$823,15,FALSE)=0,VLOOKUP($A897,Economática!$A$3:$AI$823,15,FALSE)=\"-\"),1/0,VLOOKUP($A897,Economática!$A$3:$AI$823,15,FALSE)))","v":""},{"$f":"IF($A897=\"\",\"\",IF(OR(VLOOKUP($A897,Economática!$A$3:$AI$823,16,FALSE)=0,VLOOKUP($A897,Economática!$A$3:$AI$823,16,FALSE)=\"-\"),1/0,VLOOKUP($A897,Economática!$A$3:$AI$823,16,FALSE)))","v":""},{"$f":"IF($A897=\"\",\"\",IF(OR(VLOOKUP($A897,Economática!$A$3:$AI$823,17,FALSE)=0,VLOOKUP($A897,Economática!$A$3:$AI$823,17,FALSE)=\"-\"),1/0,VLOOKUP($A897,Economática!$A$3:$AI$823,17,FALSE)))","v":""},{"$f":"IF($A897=\"\",\"\",IF(OR(VLOOKUP($A897,Economática!$A$3:$AI$823,18,FALSE)=0,VLOOKUP($A897,Economática!$A$3:$AI$823,18,FALSE)=\"-\"),1/0,VLOOKUP($A897,Economática!$A$3:$AI$823,18,FALSE)))","v":""},{"$f":"IF($A897=\"\",\"\",IF(OR(VLOOKUP($A897,Economática!$A$3:$AI$823,19,FALSE)=0,VLOOKUP($A897,Economática!$A$3:$AI$823,19,FALSE)=\"-\"),1/0,VLOOKUP($A897,Economática!$A$3:$AI$823,19,FALSE)))","v":""},{"$f":"IF($A897=\"\",\"\",VLOOKUP($A897,Economática!$A$3:$AI$823,20,FALSE)/E897)","v":""},"","","",{"$f":"IF($A897=\"\",\"\",IF(OR(VLOOKUP($A897,Economática!$A$3:$AI$823,21,FALSE)/100=0,VLOOKUP($A897,Economática!$A$3:$AI$823,21,FALSE)/100=\"-\"),1/0,VLOOKUP($A897,Economática!$A$3:$AI$823,21,FALSE)/100))","v":""},{"$f":"IF($A897=\"\",\"\",IF(OR(VLOOKUP($A897,Economática!$A$3:$AI$823,22,FALSE)/100=0,VLOOKUP($A897,Economática!$A$3:$AI$823,22,FALSE)/100=\"-\"),1/0,VLOOKUP($A897,Economática!$A$3:$AI$823,22,FALSE)/100))","v":""},{"$f":"IF($A897=\"\",\"\",IF(OR(VLOOKUP($A897,Economática!$A$3:$AI$823,23,FALSE)=0,VLOOKUP($A897,Economática!$A$3:$AI$823,23,FALSE)=\"-\"),1/0,VLOOKUP($A897,Economática!$A$3:$AI$823,23,FALSE)))","v":""},{"$f":"IF($A897=\"\",\"\",IF(OR(VLOOKUP($A897,Economática!$A$3:$AI$823,24,FALSE)=0,VLOOKUP($A897,Economática!$A$3:$AI$823,24,FALSE)=\"-\"),1/0,VLOOKUP($A897,Economática!$A$3:$AI$823,24,FALSE)))","v":""},{"$f":"IF($A897=\"\",\"\",IF(OR(VLOOKUP($A897,Economática!$A$3:$AI$823,25,FALSE)=0,VLOOKUP($A897,Economática!$A$3:$AI$823,25,FALSE)=\"-\"),1/0,VLOOKUP($A897,Economática!$A$3:$AI$823,25,FALSE)))","v":""},{"$f":"IF($A897=\"\",\"\",IF(ISERROR((F897+VLOOKUP($A897,Economática!$A$3:$AI$823,26,FALSE))/Y897),(F897+VLOOKUP($A897,Economática!$A$3:$AI$823,26,FALSE))/Y897,(F897+VLOOKUP($A897,Economática!$A$3:$AI$823,26,FALSE))/Y897))","v":""},{"$f":"IF($A897=\"\",\"\",IF(OR(-VLOOKUP($A897,Economática!$A$3:$AI$823,27,FALSE)=0,-VLOOKUP($A897,Economática!$A$3:$AI$823,27,FALSE)=\"-\"),1/0,-VLOOKUP($A897,Economática!$A$3:$AI$823,27,FALSE)))","v":""},"",{"$f":"IF($A897=\"\",\"\",IF(OR(VLOOKUP($A897,Economática!$A$3:$AI$823,28,FALSE)=0,VLOOKUP($A897,Economática!$A$3:$AI$823,28,FALSE)=\"-\"),1/0,VLOOKUP($A897,Economática!$A$3:$AI$823,28,FALSE)))","v":""},{"$f":"IF($A897=\"\",\"\",IF(OR(VLOOKUP($A897,Economática!$A$3:$AI$823,29,FALSE)=0,VLOOKUP($A897,Economática!$A$3:$AI$823,29,FALSE)=\"-\"),1/0,VLOOKUP($A897,Economática!$A$3:$AI$823,29,FALSE)))","v":""},{"$f":"IF($A897=\"\",\"\",IF(OR(VLOOKUP($A897,Economática!$A$3:$AI$823,30,FALSE)/E897=0,VLOOKUP($A897,Economática!$A$3:$AI$823,30,FALSE)/E897=\"-\",VLOOKUP($A897,Economática!$A$3:$AI$823,30,FALSE)/E897<33.33%,VLOOKUP($A897,Economática!$A$3:$AI$823,30,FALSE)/E897>100%),1/0,VLOOKUP($A897,Economática!$A$3:$AI$823,30,FALSE)/E897))","v":""},"",{"$f":"IF($A897=\"\",\"\",IF(OR(VLOOKUP($A897,Economática!$A$3:$AI$823,25,FALSE)=0,VLOOKUP($A897,Economática!$A$3:$AI$823,25,FALSE)=\"-\"),1/0,VLOOKUP($A897,Economática!$A$3:$AI$823,25,FALSE)))","v":""},{"$f":"CONCATENATE(Economática!B875,\" \",Economática!C875)","v":" "}]
[{"$f":"IF(Economática!AG876=\"\",\"\",Economática!AG876)","v":""},{"$f":"IF($A898=\"\",\"\",VLOOKUP(VLOOKUP($A898,Economática!$A$3:$AI$823,6,FALSE),Correção!$B$16:$C$36,2,FALSE))","v":""},{"$f":"IF(Economática!B876=\"\",\"\",Economática!B876)","v":""},{"$f":"IF($A898=\"\",\"\",IF(OR(VLOOKUP($A898,Economática!$A$3:$AI$823,8,FALSE)=0,VLOOKUP($A898,Economática!$A$3:$AI$823,8,FALSE)=\"-\"),1/0,VLOOKUP($A898,Economática!$A$3:$AI$823,8,FALSE)))","v":""},{"$f":"IF(A898=\"\",\"\",IF(ISERROR(VLOOKUP(A898,Correção!$B$2:$G$13,9,FALSE)),VLOOKUP($A898,Economática!$A$3:$AI$823,9,FALSE),VLOOKUP(A898,Correção!$B$2:$G$13,9,FALSE)))","v":""},{"$f":"IF($A898=\"\",\"\",Economática!G876)","v":""},{"$f":"IF($A898=\"\",\"\",IF(OR(VLOOKUP($A898,Economática!$A$3:$AI$823,10,FALSE)=0,VLOOKUP($A898,Economática!$A$3:$AI$823,10,FALSE)=\"-\"),1/0,VLOOKUP($A898,Economática!$A$3:$AI$823,10,FALSE)))","v":""},{"$f":"IF($A898=\"\",\"\",IF(OR(VLOOKUP($A898,Economática!$A$3:$AI$823,11,FALSE)=0,VLOOKUP($A898,Economática!$A$3:$AI$823,11,FALSE)=\"-\"),1/0,VLOOKUP($A898,Economática!$A$3:$AI$823,11,FALSE)))","v":""},{"$f":"IF($A898=\"\",\"\",IF(OR(VLOOKUP($A898,Economática!$A$3:$AI$823,12,FALSE)=0,VLOOKUP($A898,Economática!$A$3:$AI$823,12,FALSE)=\"-\"),1/0,VLOOKUP($A898,Economática!$A$3:$AI$823,12,FALSE)))","v":""},{"$f":"IF($A898=\"\",\"\",IF(OR(VLOOKUP($A898,Economática!$A$3:$AI$823,13,FALSE)=0,VLOOKUP($A898,Economática!$A$3:$AI$823,13,FALSE)=\"-\"),1/0,VLOOKUP($A898,Economática!$A$3:$AI$823,13,FALSE)))","v":""},{"$f":"IF($A898=\"\",\"\",IF(OR(VLOOKUP($A898,Economática!$A$3:$AI$823,14,FALSE)=0,VLOOKUP($A898,Economática!$A$3:$AI$823,14,FALSE)=\"-\"),1/0,VLOOKUP($A898,Economática!$A$3:$AI$823,14,FALSE)))","v":""},{"$f":"IF($A898=\"\",\"\",IF(OR(VLOOKUP($A898,Economática!$A$3:$AI$823,15,FALSE)=0,VLOOKUP($A898,Economática!$A$3:$AI$823,15,FALSE)=\"-\"),1/0,VLOOKUP($A898,Economática!$A$3:$AI$823,15,FALSE)))","v":""},{"$f":"IF($A898=\"\",\"\",IF(OR(VLOOKUP($A898,Economática!$A$3:$AI$823,16,FALSE)=0,VLOOKUP($A898,Economática!$A$3:$AI$823,16,FALSE)=\"-\"),1/0,VLOOKUP($A898,Economática!$A$3:$AI$823,16,FALSE)))","v":""},{"$f":"IF($A898=\"\",\"\",IF(OR(VLOOKUP($A898,Economática!$A$3:$AI$823,17,FALSE)=0,VLOOKUP($A898,Economática!$A$3:$AI$823,17,FALSE)=\"-\"),1/0,VLOOKUP($A898,Economática!$A$3:$AI$823,17,FALSE)))","v":""},{"$f":"IF($A898=\"\",\"\",IF(OR(VLOOKUP($A898,Economática!$A$3:$AI$823,18,FALSE)=0,VLOOKUP($A898,Economática!$A$3:$AI$823,18,FALSE)=\"-\"),1/0,VLOOKUP($A898,Economática!$A$3:$AI$823,18,FALSE)))","v":""},{"$f":"IF($A898=\"\",\"\",IF(OR(VLOOKUP($A898,Economática!$A$3:$AI$823,19,FALSE)=0,VLOOKUP($A898,Economática!$A$3:$AI$823,19,FALSE)=\"-\"),1/0,VLOOKUP($A898,Economática!$A$3:$AI$823,19,FALSE)))","v":""},{"$f":"IF($A898=\"\",\"\",VLOOKUP($A898,Economática!$A$3:$AI$823,20,FALSE)/E898)","v":""},{"$f":"IF($A898=\"\",\"\",IF((G898/E898)<=0,1/0,G898/E898))","v":""},{"$f":"IF($A898=\"\",\"\",D898/R898)","v":""},{"$f":"IF($A898=\"\",\"\",IF((D898/Q898)<=0,1/0,D898/Q898))","v":""},{"$f":"IF($A898=\"\",\"\",IF(OR(VLOOKUP($A898,Economática!$A$3:$AI$823,21,FALSE)/100=0,VLOOKUP($A898,Economática!$A$3:$AI$823,21,FALSE)/100=\"-\"),1/0,VLOOKUP($A898,Economática!$A$3:$AI$823,21,FALSE)/100))","v":""},{"$f":"IF($A898=\"\",\"\",IF(OR(VLOOKUP($A898,Economática!$A$3:$AI$823,22,FALSE)/100=0,VLOOKUP($A898,Economática!$A$3:$AI$823,22,FALSE)/100=\"-\"),1/0,VLOOKUP($A898,Economática!$A$3:$AI$823,22,FALSE)/100))","v":""},{"$f":"IF($A898=\"\",\"\",IF(OR(VLOOKUP($A898,Economática!$A$3:$AI$823,23,FALSE)=0,VLOOKUP($A898,Economática!$A$3:$AI$823,23,FALSE)=\"-\"),1/0,VLOOKUP($A898,Economática!$A$3:$AI$823,23,FALSE)))","v":""},{"$f":"IF($A898=\"\",\"\",IF(OR(VLOOKUP($A898,Economática!$A$3:$AI$823,24,FALSE)=0,VLOOKUP($A898,Economática!$A$3:$AI$823,24,FALSE)=\"-\"),1/0,VLOOKUP($A898,Economática!$A$3:$AI$823,24,FALSE)))","v":""},{"$f":"IF($A898=\"\",\"\",IF(OR(VLOOKUP($A898,Economática!$A$3:$AI$823,25,FALSE)=0,VLOOKUP($A898,Economática!$A$3:$AI$823,25,FALSE)=\"-\"),1/0,VLOOKUP($A898,Economática!$A$3:$AI$823,25,FALSE)))","v":""},{"$f":"IF($A898=\"\",\"\",IF(ISERROR((F898+VLOOKUP($A898,Economática!$A$3:$AI$823,26,FALSE))/Y898),(F898+VLOOKUP($A898,Economática!$A$3:$AI$823,26,FALSE))/Y898,(F898+VLOOKUP($A898,Economática!$A$3:$AI$823,26,FALSE))/Y898))","v":""},{"$f":"IF($A898=\"\",\"\",IF(OR(-VLOOKUP($A898,Economática!$A$3:$AI$823,27,FALSE)=0,-VLOOKUP($A898,Economática!$A$3:$AI$823,27,FALSE)=\"-\"),1/0,-VLOOKUP($A898,Economática!$A$3:$AI$823,27,FALSE)))","v":""},{"$f":"IF(A898=\"\",\"\",AA898/F898)","v":""},{"$f":"IF($A898=\"\",\"\",IF(OR(VLOOKUP($A898,Economática!$A$3:$AI$823,28,FALSE)=0,VLOOKUP($A898,Economática!$A$3:$AI$823,28,FALSE)=\"-\"),1/0,VLOOKUP($A898,Economática!$A$3:$AI$823,28,FALSE)))","v":""},{"$f":"IF($A898=\"\",\"\",IF(OR(VLOOKUP($A898,Economática!$A$3:$AI$823,29,FALSE)=0,VLOOKUP($A898,Economática!$A$3:$AI$823,29,FALSE)=\"-\"),1/0,VLOOKUP($A898,Economática!$A$3:$AI$823,29,FALSE)))","v":""},{"$f":"IF($A898=\"\",\"\",IF(OR(VLOOKUP($A898,Economática!$A$3:$AI$823,30,FALSE)/E898=0,VLOOKUP($A898,Economática!$A$3:$AI$823,30,FALSE)/E898=\"-\",VLOOKUP($A898,Economática!$A$3:$AI$823,30,FALSE)/E898<33.33%,VLOOKUP($A898,Economática!$A$3:$AI$823,30,FALSE)/E898>100%),1/0,VLOOKUP($A898,Economática!$A$3:$AI$823,30,FALSE)/E898))","v":""},{"$f":"IF(A898=\"\",\"\",A898)","v":""},{"$f":"IF($A898=\"\",\"\",IF(OR(VLOOKUP($A898,Economática!$A$3:$AI$823,25,FALSE)=0,VLOOKUP($A898,Economática!$A$3:$AI$823,25,FALSE)=\"-\"),1/0,VLOOKUP($A898,Economática!$A$3:$AI$823,25,FALSE)))","v":""},{"$f":"CONCATENATE(Economática!B876,\" \",Economática!C876)","v":" "}]
[{"$f":"IF(Economática!AG877=\"\",\"\",Economática!AG877)","v":""},{"$f":"IF($A899=\"\",\"\",VLOOKUP(VLOOKUP($A899,Economática!$A$3:$AI$823,6,FALSE),Correção!$B$16:$C$36,2,FALSE))","v":""},{"$f":"IF(Economática!B877=\"\",\"\",Economática!B877)","v":""},{"$f":"IF($A899=\"\",\"\",IF(OR(VLOOKUP($A899,Economática!$A$3:$AI$823,8,FALSE)=0,VLOOKUP($A899,Economática!$A$3:$AI$823,8,FALSE)=\"-\"),1/0,VLOOKUP($A899,Economática!$A$3:$AI$823,8,FALSE)))","v":""},{"$f":"IF(A899=\"\",\"\",IF(ISERROR(VLOOKUP(A899,Correção!$B$2:$G$13,9,FALSE)),VLOOKUP($A899,Economática!$A$3:$AI$823,9,FALSE),VLOOKUP(A899,Correção!$B$2:$G$13,9,FALSE)))","v":""},{"$f":"IF($A899=\"\",\"\",Economática!G877)","v":""},{"$f":"IF($A899=\"\",\"\",IF(OR(VLOOKUP($A899,Economática!$A$3:$AI$823,10,FALSE)=0,VLOOKUP($A899,Economática!$A$3:$AI$823,10,FALSE)=\"-\"),1/0,VLOOKUP($A899,Economática!$A$3:$AI$823,10,FALSE)))","v":""},{"$f":"IF($A899=\"\",\"\",IF(OR(VLOOKUP($A899,Economática!$A$3:$AI$823,11,FALSE)=0,VLOOKUP($A899,Economática!$A$3:$AI$823,11,FALSE)=\"-\"),1/0,VLOOKUP($A899,Economática!$A$3:$AI$823,11,FALSE)))","v":""},{"$f":"IF($A899=\"\",\"\",IF(OR(VLOOKUP($A899,Economática!$A$3:$AI$823,12,FALSE)=0,VLOOKUP($A899,Economática!$A$3:$AI$823,12,FALSE)=\"-\"),1/0,VLOOKUP($A899,Economática!$A$3:$AI$823,12,FALSE)))","v":""},{"$f":"IF($A899=\"\",\"\",IF(OR(VLOOKUP($A899,Economática!$A$3:$AI$823,13,FALSE)=0,VLOOKUP($A899,Economática!$A$3:$AI$823,13,FALSE)=\"-\"),1/0,VLOOKUP($A899,Economática!$A$3:$AI$823,13,FALSE)))","v":""},{"$f":"IF($A899=\"\",\"\",IF(OR(VLOOKUP($A899,Economática!$A$3:$AI$823,14,FALSE)=0,VLOOKUP($A899,Economática!$A$3:$AI$823,14,FALSE)=\"-\"),1/0,VLOOKUP($A899,Economática!$A$3:$AI$823,14,FALSE)))","v":""},{"$f":"IF($A899=\"\",\"\",IF(OR(VLOOKUP($A899,Economática!$A$3:$AI$823,15,FALSE)=0,VLOOKUP($A899,Economática!$A$3:$AI$823,15,FALSE)=\"-\"),1/0,VLOOKUP($A899,Economática!$A$3:$AI$823,15,FALSE)))","v":""},{"$f":"IF($A899=\"\",\"\",IF(OR(VLOOKUP($A899,Economática!$A$3:$AI$823,16,FALSE)=0,VLOOKUP($A899,Economática!$A$3:$AI$823,16,FALSE)=\"-\"),1/0,VLOOKUP($A899,Economática!$A$3:$AI$823,16,FALSE)))","v":""},{"$f":"IF($A899=\"\",\"\",IF(OR(VLOOKUP($A899,Economática!$A$3:$AI$823,17,FALSE)=0,VLOOKUP($A899,Economática!$A$3:$AI$823,17,FALSE)=\"-\"),1/0,VLOOKUP($A899,Economática!$A$3:$AI$823,17,FALSE)))","v":""},{"$f":"IF($A899=\"\",\"\",IF(OR(VLOOKUP($A899,Economática!$A$3:$AI$823,18,FALSE)=0,VLOOKUP($A899,Economática!$A$3:$AI$823,18,FALSE)=\"-\"),1/0,VLOOKUP($A899,Economática!$A$3:$AI$823,18,FALSE)))","v":""},{"$f":"IF($A899=\"\",\"\",IF(OR(VLOOKUP($A899,Economática!$A$3:$AI$823,19,FALSE)=0,VLOOKUP($A899,Economática!$A$3:$AI$823,19,FALSE)=\"-\"),1/0,VLOOKUP($A899,Economática!$A$3:$AI$823,19,FALSE)))","v":""},{"$f":"IF($A899=\"\",\"\",VLOOKUP($A899,Economática!$A$3:$AI$823,20,FALSE)/E899)","v":""},"","","",{"$f":"IF($A899=\"\",\"\",IF(OR(VLOOKUP($A899,Economática!$A$3:$AI$823,21,FALSE)/100=0,VLOOKUP($A899,Economática!$A$3:$AI$823,21,FALSE)/100=\"-\"),1/0,VLOOKUP($A899,Economática!$A$3:$AI$823,21,FALSE)/100))","v":""},{"$f":"IF($A899=\"\",\"\",IF(OR(VLOOKUP($A899,Economática!$A$3:$AI$823,22,FALSE)/100=0,VLOOKUP($A899,Economática!$A$3:$AI$823,22,FALSE)/100=\"-\"),1/0,VLOOKUP($A899,Economática!$A$3:$AI$823,22,FALSE)/100))","v":""},{"$f":"IF($A899=\"\",\"\",IF(OR(VLOOKUP($A899,Economática!$A$3:$AI$823,23,FALSE)=0,VLOOKUP($A899,Economática!$A$3:$AI$823,23,FALSE)=\"-\"),1/0,VLOOKUP($A899,Economática!$A$3:$AI$823,23,FALSE)))","v":""},{"$f":"IF($A899=\"\",\"\",IF(OR(VLOOKUP($A899,Economática!$A$3:$AI$823,24,FALSE)=0,VLOOKUP($A899,Economática!$A$3:$AI$823,24,FALSE)=\"-\"),1/0,VLOOKUP($A899,Economática!$A$3:$AI$823,24,FALSE)))","v":""},{"$f":"IF($A899=\"\",\"\",IF(OR(VLOOKUP($A899,Economática!$A$3:$AI$823,25,FALSE)=0,VLOOKUP($A899,Economática!$A$3:$AI$823,25,FALSE)=\"-\"),1/0,VLOOKUP($A899,Economática!$A$3:$AI$823,25,FALSE)))","v":""},{"$f":"IF($A899=\"\",\"\",IF(ISERROR((F899+VLOOKUP($A899,Economática!$A$3:$AI$823,26,FALSE))/Y899),(F899+VLOOKUP($A899,Economática!$A$3:$AI$823,26,FALSE))/Y899,(F899+VLOOKUP($A899,Economática!$A$3:$AI$823,26,FALSE))/Y899))","v":""},{"$f":"IF($A899=\"\",\"\",IF(OR(-VLOOKUP($A899,Economática!$A$3:$AI$823,27,FALSE)=0,-VLOOKUP($A899,Economática!$A$3:$AI$823,27,FALSE)=\"-\"),1/0,-VLOOKUP($A899,Economática!$A$3:$AI$823,27,FALSE)))","v":""},"",{"$f":"IF($A899=\"\",\"\",IF(OR(VLOOKUP($A899,Economática!$A$3:$AI$823,28,FALSE)=0,VLOOKUP($A899,Economática!$A$3:$AI$823,28,FALSE)=\"-\"),1/0,VLOOKUP($A899,Economática!$A$3:$AI$823,28,FALSE)))","v":""},{"$f":"IF($A899=\"\",\"\",IF(OR(VLOOKUP($A899,Economática!$A$3:$AI$823,29,FALSE)=0,VLOOKUP($A899,Economática!$A$3:$AI$823,29,FALSE)=\"-\"),1/0,VLOOKUP($A899,Economática!$A$3:$AI$823,29,FALSE)))","v":""},{"$f":"IF($A899=\"\",\"\",IF(OR(VLOOKUP($A899,Economática!$A$3:$AI$823,30,FALSE)/E899=0,VLOOKUP($A899,Economática!$A$3:$AI$823,30,FALSE)/E899=\"-\",VLOOKUP($A899,Economática!$A$3:$AI$823,30,FALSE)/E899<33.33%,VLOOKUP($A899,Economática!$A$3:$AI$823,30,FALSE)/E899>100%),1/0,VLOOKUP($A899,Economática!$A$3:$AI$823,30,FALSE)/E899))","v":""},"",{"$f":"IF($A899=\"\",\"\",IF(OR(VLOOKUP($A899,Economática!$A$3:$AI$823,25,FALSE)=0,VLOOKUP($A899,Economática!$A$3:$AI$823,25,FALSE)=\"-\"),1/0,VLOOKUP($A899,Economática!$A$3:$AI$823,25,FALSE)))","v":""},{"$f":"CONCATENATE(Economática!B877,\" \",Economática!C877)","v":" "}]
[{"$f":"IF(Economática!AG878=\"\",\"\",Economática!AG878)","v":""},{"$f":"IF($A900=\"\",\"\",VLOOKUP(VLOOKUP($A900,Economática!$A$3:$AI$823,6,FALSE),Correção!$B$16:$C$36,2,FALSE))","v":""},{"$f":"IF(Economática!B878=\"\",\"\",Economática!B878)","v":""},{"$f":"IF($A900=\"\",\"\",IF(OR(VLOOKUP($A900,Economática!$A$3:$AI$823,8,FALSE)=0,VLOOKUP($A900,Economática!$A$3:$AI$823,8,FALSE)=\"-\"),1/0,VLOOKUP($A900,Economática!$A$3:$AI$823,8,FALSE)))","v":""},{"$f":"IF(A900=\"\",\"\",IF(ISERROR(VLOOKUP(A900,Correção!$B$2:$G$13,9,FALSE)),VLOOKUP($A900,Economática!$A$3:$AI$823,9,FALSE),VLOOKUP(A900,Correção!$B$2:$G$13,9,FALSE)))","v":""},{"$f":"IF($A900=\"\",\"\",Economática!G878)","v":""},{"$f":"IF($A900=\"\",\"\",IF(OR(VLOOKUP($A900,Economática!$A$3:$AI$823,10,FALSE)=0,VLOOKUP($A900,Economática!$A$3:$AI$823,10,FALSE)=\"-\"),1/0,VLOOKUP($A900,Economática!$A$3:$AI$823,10,FALSE)))","v":""},{"$f":"IF($A900=\"\",\"\",IF(OR(VLOOKUP($A900,Economática!$A$3:$AI$823,11,FALSE)=0,VLOOKUP($A900,Economática!$A$3:$AI$823,11,FALSE)=\"-\"),1/0,VLOOKUP($A900,Economática!$A$3:$AI$823,11,FALSE)))","v":""},{"$f":"IF($A900=\"\",\"\",IF(OR(VLOOKUP($A900,Economática!$A$3:$AI$823,12,FALSE)=0,VLOOKUP($A900,Economática!$A$3:$AI$823,12,FALSE)=\"-\"),1/0,VLOOKUP($A900,Economática!$A$3:$AI$823,12,FALSE)))","v":""},{"$f":"IF($A900=\"\",\"\",IF(OR(VLOOKUP($A900,Economática!$A$3:$AI$823,13,FALSE)=0,VLOOKUP($A900,Economática!$A$3:$AI$823,13,FALSE)=\"-\"),1/0,VLOOKUP($A900,Economática!$A$3:$AI$823,13,FALSE)))","v":""},{"$f":"IF($A900=\"\",\"\",IF(OR(VLOOKUP($A900,Economática!$A$3:$AI$823,14,FALSE)=0,VLOOKUP($A900,Economática!$A$3:$AI$823,14,FALSE)=\"-\"),1/0,VLOOKUP($A900,Economática!$A$3:$AI$823,14,FALSE)))","v":""},{"$f":"IF($A900=\"\",\"\",IF(OR(VLOOKUP($A900,Economática!$A$3:$AI$823,15,FALSE)=0,VLOOKUP($A900,Economática!$A$3:$AI$823,15,FALSE)=\"-\"),1/0,VLOOKUP($A900,Economática!$A$3:$AI$823,15,FALSE)))","v":""},{"$f":"IF($A900=\"\",\"\",IF(OR(VLOOKUP($A900,Economática!$A$3:$AI$823,16,FALSE)=0,VLOOKUP($A900,Economática!$A$3:$AI$823,16,FALSE)=\"-\"),1/0,VLOOKUP($A900,Economática!$A$3:$AI$823,16,FALSE)))","v":""},{"$f":"IF($A900=\"\",\"\",IF(OR(VLOOKUP($A900,Economática!$A$3:$AI$823,17,FALSE)=0,VLOOKUP($A900,Economática!$A$3:$AI$823,17,FALSE)=\"-\"),1/0,VLOOKUP($A900,Economática!$A$3:$AI$823,17,FALSE)))","v":""},{"$f":"IF($A900=\"\",\"\",IF(OR(VLOOKUP($A900,Economática!$A$3:$AI$823,18,FALSE)=0,VLOOKUP($A900,Economática!$A$3:$AI$823,18,FALSE)=\"-\"),1/0,VLOOKUP($A900,Economática!$A$3:$AI$823,18,FALSE)))","v":""},{"$f":"IF($A900=\"\",\"\",IF(OR(VLOOKUP($A900,Economática!$A$3:$AI$823,19,FALSE)=0,VLOOKUP($A900,Economática!$A$3:$AI$823,19,FALSE)=\"-\"),1/0,VLOOKUP($A900,Economática!$A$3:$AI$823,19,FALSE)))","v":""},{"$f":"IF($A900=\"\",\"\",VLOOKUP($A900,Economática!$A$3:$AI$823,20,FALSE)/E900)","v":""},"","","",{"$f":"IF($A900=\"\",\"\",IF(OR(VLOOKUP($A900,Economática!$A$3:$AI$823,21,FALSE)/100=0,VLOOKUP($A900,Economática!$A$3:$AI$823,21,FALSE)/100=\"-\"),1/0,VLOOKUP($A900,Economática!$A$3:$AI$823,21,FALSE)/100))","v":""},{"$f":"IF($A900=\"\",\"\",IF(OR(VLOOKUP($A900,Economática!$A$3:$AI$823,22,FALSE)/100=0,VLOOKUP($A900,Economática!$A$3:$AI$823,22,FALSE)/100=\"-\"),1/0,VLOOKUP($A900,Economática!$A$3:$AI$823,22,FALSE)/100))","v":""},{"$f":"IF($A900=\"\",\"\",IF(OR(VLOOKUP($A900,Economática!$A$3:$AI$823,23,FALSE)=0,VLOOKUP($A900,Economática!$A$3:$AI$823,23,FALSE)=\"-\"),1/0,VLOOKUP($A900,Economática!$A$3:$AI$823,23,FALSE)))","v":""},{"$f":"IF($A900=\"\",\"\",IF(OR(VLOOKUP($A900,Economática!$A$3:$AI$823,24,FALSE)=0,VLOOKUP($A900,Economática!$A$3:$AI$823,24,FALSE)=\"-\"),1/0,VLOOKUP($A900,Economática!$A$3:$AI$823,24,FALSE)))","v":""},{"$f":"IF($A900=\"\",\"\",IF(OR(VLOOKUP($A900,Economática!$A$3:$AI$823,25,FALSE)=0,VLOOKUP($A900,Economática!$A$3:$AI$823,25,FALSE)=\"-\"),1/0,VLOOKUP($A900,Economática!$A$3:$AI$823,25,FALSE)))","v":""},{"$f":"IF($A900=\"\",\"\",IF(ISERROR((F900+VLOOKUP($A900,Economática!$A$3:$AI$823,26,FALSE))/Y900),(F900+VLOOKUP($A900,Economática!$A$3:$AI$823,26,FALSE))/Y900,(F900+VLOOKUP($A900,Economática!$A$3:$AI$823,26,FALSE))/Y900))","v":""},{"$f":"IF($A900=\"\",\"\",IF(OR(-VLOOKUP($A900,Economática!$A$3:$AI$823,27,FALSE)=0,-VLOOKUP($A900,Economática!$A$3:$AI$823,27,FALSE)=\"-\"),1/0,-VLOOKUP($A900,Economática!$A$3:$AI$823,27,FALSE)))","v":""},"",{"$f":"IF($A900=\"\",\"\",IF(OR(VLOOKUP($A900,Economática!$A$3:$AI$823,28,FALSE)=0,VLOOKUP($A900,Economática!$A$3:$AI$823,28,FALSE)=\"-\"),1/0,VLOOKUP($A900,Economática!$A$3:$AI$823,28,FALSE)))","v":""},{"$f":"IF($A900=\"\",\"\",IF(OR(VLOOKUP($A900,Economática!$A$3:$AI$823,29,FALSE)=0,VLOOKUP($A900,Economática!$A$3:$AI$823,29,FALSE)=\"-\"),1/0,VLOOKUP($A900,Economática!$A$3:$AI$823,29,FALSE)))","v":""},{"$f":"IF($A900=\"\",\"\",IF(OR(VLOOKUP($A900,Economática!$A$3:$AI$823,30,FALSE)/E900=0,VLOOKUP($A900,Economática!$A$3:$AI$823,30,FALSE)/E900=\"-\",VLOOKUP($A900,Economática!$A$3:$AI$823,30,FALSE)/E900<33.33%,VLOOKUP($A900,Economática!$A$3:$AI$823,30,FALSE)/E900>100%),1/0,VLOOKUP($A900,Economática!$A$3:$AI$823,30,FALSE)/E900))","v":""},"",{"$f":"IF($A900=\"\",\"\",IF(OR(VLOOKUP($A900,Economática!$A$3:$AI$823,25,FALSE)=0,VLOOKUP($A900,Economática!$A$3:$AI$823,25,FALSE)=\"-\"),1/0,VLOOKUP($A900,Economática!$A$3:$AI$823,25,FALSE)))","v":""},{"$f":"CONCATENATE(Economática!B878,\" \",Economática!C878)","v":" "}]
[{"$f":"IF(Economática!AG879=\"\",\"\",Economática!AG879)","v":""},{"$f":"IF($A901=\"\",\"\",VLOOKUP(VLOOKUP($A901,Economática!$A$3:$AI$823,6,FALSE),Correção!$B$16:$C$36,2,FALSE))","v":""},{"$f":"IF(Economática!B879=\"\",\"\",Economática!B879)","v":""},{"$f":"IF($A901=\"\",\"\",IF(OR(VLOOKUP($A901,Economática!$A$3:$AI$823,8,FALSE)=0,VLOOKUP($A901,Economática!$A$3:$AI$823,8,FALSE)=\"-\"),1/0,VLOOKUP($A901,Economática!$A$3:$AI$823,8,FALSE)))","v":""},{"$f":"IF(A901=\"\",\"\",IF(ISERROR(VLOOKUP(A901,Correção!$B$2:$G$13,9,FALSE)),VLOOKUP($A901,Economática!$A$3:$AI$823,9,FALSE),VLOOKUP(A901,Correção!$B$2:$G$13,9,FALSE)))","v":""},{"$f":"IF($A901=\"\",\"\",Economática!G879)","v":""},{"$f":"IF($A901=\"\",\"\",IF(OR(VLOOKUP($A901,Economática!$A$3:$AI$823,10,FALSE)=0,VLOOKUP($A901,Economática!$A$3:$AI$823,10,FALSE)=\"-\"),1/0,VLOOKUP($A901,Economática!$A$3:$AI$823,10,FALSE)))","v":""},{"$f":"IF($A901=\"\",\"\",IF(OR(VLOOKUP($A901,Economática!$A$3:$AI$823,11,FALSE)=0,VLOOKUP($A901,Economática!$A$3:$AI$823,11,FALSE)=\"-\"),1/0,VLOOKUP($A901,Economática!$A$3:$AI$823,11,FALSE)))","v":""},{"$f":"IF($A901=\"\",\"\",IF(OR(VLOOKUP($A901,Economática!$A$3:$AI$823,12,FALSE)=0,VLOOKUP($A901,Economática!$A$3:$AI$823,12,FALSE)=\"-\"),1/0,VLOOKUP($A901,Economática!$A$3:$AI$823,12,FALSE)))","v":""},{"$f":"IF($A901=\"\",\"\",IF(OR(VLOOKUP($A901,Economática!$A$3:$AI$823,13,FALSE)=0,VLOOKUP($A901,Economática!$A$3:$AI$823,13,FALSE)=\"-\"),1/0,VLOOKUP($A901,Economática!$A$3:$AI$823,13,FALSE)))","v":""},{"$f":"IF($A901=\"\",\"\",IF(OR(VLOOKUP($A901,Economática!$A$3:$AI$823,14,FALSE)=0,VLOOKUP($A901,Economática!$A$3:$AI$823,14,FALSE)=\"-\"),1/0,VLOOKUP($A901,Economática!$A$3:$AI$823,14,FALSE)))","v":""},{"$f":"IF($A901=\"\",\"\",IF(OR(VLOOKUP($A901,Economática!$A$3:$AI$823,15,FALSE)=0,VLOOKUP($A901,Economática!$A$3:$AI$823,15,FALSE)=\"-\"),1/0,VLOOKUP($A901,Economática!$A$3:$AI$823,15,FALSE)))","v":""},{"$f":"IF($A901=\"\",\"\",IF(OR(VLOOKUP($A901,Economática!$A$3:$AI$823,16,FALSE)=0,VLOOKUP($A901,Economática!$A$3:$AI$823,16,FALSE)=\"-\"),1/0,VLOOKUP($A901,Economática!$A$3:$AI$823,16,FALSE)))","v":""},{"$f":"IF($A901=\"\",\"\",IF(OR(VLOOKUP($A901,Economática!$A$3:$AI$823,17,FALSE)=0,VLOOKUP($A901,Economática!$A$3:$AI$823,17,FALSE)=\"-\"),1/0,VLOOKUP($A901,Economática!$A$3:$AI$823,17,FALSE)))","v":""},{"$f":"IF($A901=\"\",\"\",IF(OR(VLOOKUP($A901,Economática!$A$3:$AI$823,18,FALSE)=0,VLOOKUP($A901,Economática!$A$3:$AI$823,18,FALSE)=\"-\"),1/0,VLOOKUP($A901,Economática!$A$3:$AI$823,18,FALSE)))","v":""},{"$f":"IF($A901=\"\",\"\",IF(OR(VLOOKUP($A901,Economática!$A$3:$AI$823,19,FALSE)=0,VLOOKUP($A901,Economática!$A$3:$AI$823,19,FALSE)=\"-\"),1/0,VLOOKUP($A901,Economática!$A$3:$AI$823,19,FALSE)))","v":""},{"$f":"IF($A901=\"\",\"\",VLOOKUP($A901,Economática!$A$3:$AI$823,20,FALSE)/E901)","v":""},"","","",{"$f":"IF($A901=\"\",\"\",IF(OR(VLOOKUP($A901,Economática!$A$3:$AI$823,21,FALSE)/100=0,VLOOKUP($A901,Economática!$A$3:$AI$823,21,FALSE)/100=\"-\"),1/0,VLOOKUP($A901,Economática!$A$3:$AI$823,21,FALSE)/100))","v":""},{"$f":"IF($A901=\"\",\"\",IF(OR(VLOOKUP($A901,Economática!$A$3:$AI$823,22,FALSE)/100=0,VLOOKUP($A901,Economática!$A$3:$AI$823,22,FALSE)/100=\"-\"),1/0,VLOOKUP($A901,Economática!$A$3:$AI$823,22,FALSE)/100))","v":""},{"$f":"IF($A901=\"\",\"\",IF(OR(VLOOKUP($A901,Economática!$A$3:$AI$823,23,FALSE)=0,VLOOKUP($A901,Economática!$A$3:$AI$823,23,FALSE)=\"-\"),1/0,VLOOKUP($A901,Economática!$A$3:$AI$823,23,FALSE)))","v":""},{"$f":"IF($A901=\"\",\"\",IF(OR(VLOOKUP($A901,Economática!$A$3:$AI$823,24,FALSE)=0,VLOOKUP($A901,Economática!$A$3:$AI$823,24,FALSE)=\"-\"),1/0,VLOOKUP($A901,Economática!$A$3:$AI$823,24,FALSE)))","v":""},{"$f":"IF($A901=\"\",\"\",IF(OR(VLOOKUP($A901,Economática!$A$3:$AI$823,25,FALSE)=0,VLOOKUP($A901,Economática!$A$3:$AI$823,25,FALSE)=\"-\"),1/0,VLOOKUP($A901,Economática!$A$3:$AI$823,25,FALSE)))","v":""},{"$f":"IF($A901=\"\",\"\",IF(ISERROR((F901+VLOOKUP($A901,Economática!$A$3:$AI$823,26,FALSE))/Y901),(F901+VLOOKUP($A901,Economática!$A$3:$AI$823,26,FALSE))/Y901,(F901+VLOOKUP($A901,Economática!$A$3:$AI$823,26,FALSE))/Y901))","v":""},{"$f":"IF($A901=\"\",\"\",IF(OR(-VLOOKUP($A901,Economática!$A$3:$AI$823,27,FALSE)=0,-VLOOKUP($A901,Economática!$A$3:$AI$823,27,FALSE)=\"-\"),1/0,-VLOOKUP($A901,Economática!$A$3:$AI$823,27,FALSE)))","v":""},"",{"$f":"IF($A901=\"\",\"\",IF(OR(VLOOKUP($A901,Economática!$A$3:$AI$823,28,FALSE)=0,VLOOKUP($A901,Economática!$A$3:$AI$823,28,FALSE)=\"-\"),1/0,VLOOKUP($A901,Economática!$A$3:$AI$823,28,FALSE)))","v":""},{"$f":"IF($A901=\"\",\"\",IF(OR(VLOOKUP($A901,Economática!$A$3:$AI$823,29,FALSE)=0,VLOOKUP($A901,Economática!$A$3:$AI$823,29,FALSE)=\"-\"),1/0,VLOOKUP($A901,Economática!$A$3:$AI$823,29,FALSE)))","v":""},{"$f":"IF($A901=\"\",\"\",IF(OR(VLOOKUP($A901,Economática!$A$3:$AI$823,30,FALSE)/E901=0,VLOOKUP($A901,Economática!$A$3:$AI$823,30,FALSE)/E901=\"-\",VLOOKUP($A901,Economática!$A$3:$AI$823,30,FALSE)/E901<33.33%,VLOOKUP($A901,Economática!$A$3:$AI$823,30,FALSE)/E901>100%),1/0,VLOOKUP($A901,Economática!$A$3:$AI$823,30,FALSE)/E901))","v":""},"",{"$f":"IF($A901=\"\",\"\",IF(OR(VLOOKUP($A901,Economática!$A$3:$AI$823,25,FALSE)=0,VLOOKUP($A901,Economática!$A$3:$AI$823,25,FALSE)=\"-\"),1/0,VLOOKUP($A901,Economática!$A$3:$AI$823,25,FALSE)))","v":""},{"$f":"CONCATENATE(Economática!B879,\" \",Economática!C879)","v":" "}]
[{"$f":"IF(Economática!AG880=\"\",\"\",Economática!AG880)","v":""},{"$f":"IF($A902=\"\",\"\",VLOOKUP(VLOOKUP($A902,Economática!$A$3:$AI$823,6,FALSE),Correção!$B$16:$C$36,2,FALSE))","v":""},{"$f":"IF(Economática!B880=\"\",\"\",Economática!B880)","v":""},{"$f":"IF($A902=\"\",\"\",IF(OR(VLOOKUP($A902,Economática!$A$3:$AI$823,8,FALSE)=0,VLOOKUP($A902,Economática!$A$3:$AI$823,8,FALSE)=\"-\"),1/0,VLOOKUP($A902,Economática!$A$3:$AI$823,8,FALSE)))","v":""},{"$f":"IF(A902=\"\",\"\",IF(ISERROR(VLOOKUP(A902,Correção!$B$2:$G$13,9,FALSE)),VLOOKUP($A902,Economática!$A$3:$AI$823,9,FALSE),VLOOKUP(A902,Correção!$B$2:$G$13,9,FALSE)))","v":""},{"$f":"IF($A902=\"\",\"\",Economática!G880)","v":""},{"$f":"IF($A902=\"\",\"\",IF(OR(VLOOKUP($A902,Economática!$A$3:$AI$823,10,FALSE)=0,VLOOKUP($A902,Economática!$A$3:$AI$823,10,FALSE)=\"-\"),1/0,VLOOKUP($A902,Economática!$A$3:$AI$823,10,FALSE)))","v":""},{"$f":"IF($A902=\"\",\"\",IF(OR(VLOOKUP($A902,Economática!$A$3:$AI$823,11,FALSE)=0,VLOOKUP($A902,Economática!$A$3:$AI$823,11,FALSE)=\"-\"),1/0,VLOOKUP($A902,Economática!$A$3:$AI$823,11,FALSE)))","v":""},{"$f":"IF($A902=\"\",\"\",IF(OR(VLOOKUP($A902,Economática!$A$3:$AI$823,12,FALSE)=0,VLOOKUP($A902,Economática!$A$3:$AI$823,12,FALSE)=\"-\"),1/0,VLOOKUP($A902,Economática!$A$3:$AI$823,12,FALSE)))","v":""},{"$f":"IF($A902=\"\",\"\",IF(OR(VLOOKUP($A902,Economática!$A$3:$AI$823,13,FALSE)=0,VLOOKUP($A902,Economática!$A$3:$AI$823,13,FALSE)=\"-\"),1/0,VLOOKUP($A902,Economática!$A$3:$AI$823,13,FALSE)))","v":""},{"$f":"IF($A902=\"\",\"\",IF(OR(VLOOKUP($A902,Economática!$A$3:$AI$823,14,FALSE)=0,VLOOKUP($A902,Economática!$A$3:$AI$823,14,FALSE)=\"-\"),1/0,VLOOKUP($A902,Economática!$A$3:$AI$823,14,FALSE)))","v":""},{"$f":"IF($A902=\"\",\"\",IF(OR(VLOOKUP($A902,Economática!$A$3:$AI$823,15,FALSE)=0,VLOOKUP($A902,Economática!$A$3:$AI$823,15,FALSE)=\"-\"),1/0,VLOOKUP($A902,Economática!$A$3:$AI$823,15,FALSE)))","v":""},{"$f":"IF($A902=\"\",\"\",IF(OR(VLOOKUP($A902,Economática!$A$3:$AI$823,16,FALSE)=0,VLOOKUP($A902,Economática!$A$3:$AI$823,16,FALSE)=\"-\"),1/0,VLOOKUP($A902,Economática!$A$3:$AI$823,16,FALSE)))","v":""},{"$f":"IF($A902=\"\",\"\",IF(OR(VLOOKUP($A902,Economática!$A$3:$AI$823,17,FALSE)=0,VLOOKUP($A902,Economática!$A$3:$AI$823,17,FALSE)=\"-\"),1/0,VLOOKUP($A902,Economática!$A$3:$AI$823,17,FALSE)))","v":""},{"$f":"IF($A902=\"\",\"\",IF(OR(VLOOKUP($A902,Economática!$A$3:$AI$823,18,FALSE)=0,VLOOKUP($A902,Economática!$A$3:$AI$823,18,FALSE)=\"-\"),1/0,VLOOKUP($A902,Economática!$A$3:$AI$823,18,FALSE)))","v":""},{"$f":"IF($A902=\"\",\"\",IF(OR(VLOOKUP($A902,Economática!$A$3:$AI$823,19,FALSE)=0,VLOOKUP($A902,Economática!$A$3:$AI$823,19,FALSE)=\"-\"),1/0,VLOOKUP($A902,Economática!$A$3:$AI$823,19,FALSE)))","v":""},{"$f":"IF($A902=\"\",\"\",VLOOKUP($A902,Economática!$A$3:$AI$823,20,FALSE)/E902)","v":""},"","","",{"$f":"IF($A902=\"\",\"\",IF(OR(VLOOKUP($A902,Economática!$A$3:$AI$823,21,FALSE)/100=0,VLOOKUP($A902,Economática!$A$3:$AI$823,21,FALSE)/100=\"-\"),1/0,VLOOKUP($A902,Economática!$A$3:$AI$823,21,FALSE)/100))","v":""},{"$f":"IF($A902=\"\",\"\",IF(OR(VLOOKUP($A902,Economática!$A$3:$AI$823,22,FALSE)/100=0,VLOOKUP($A902,Economática!$A$3:$AI$823,22,FALSE)/100=\"-\"),1/0,VLOOKUP($A902,Economática!$A$3:$AI$823,22,FALSE)/100))","v":""},{"$f":"IF($A902=\"\",\"\",IF(OR(VLOOKUP($A902,Economática!$A$3:$AI$823,23,FALSE)=0,VLOOKUP($A902,Economática!$A$3:$AI$823,23,FALSE)=\"-\"),1/0,VLOOKUP($A902,Economática!$A$3:$AI$823,23,FALSE)))","v":""},{"$f":"IF($A902=\"\",\"\",IF(OR(VLOOKUP($A902,Economática!$A$3:$AI$823,24,FALSE)=0,VLOOKUP($A902,Economática!$A$3:$AI$823,24,FALSE)=\"-\"),1/0,VLOOKUP($A902,Economática!$A$3:$AI$823,24,FALSE)))","v":""},{"$f":"IF($A902=\"\",\"\",IF(OR(VLOOKUP($A902,Economática!$A$3:$AI$823,25,FALSE)=0,VLOOKUP($A902,Economática!$A$3:$AI$823,25,FALSE)=\"-\"),1/0,VLOOKUP($A902,Economática!$A$3:$AI$823,25,FALSE)))","v":""},{"$f":"IF($A902=\"\",\"\",IF(ISERROR((F902+VLOOKUP($A902,Economática!$A$3:$AI$823,26,FALSE))/Y902),(F902+VLOOKUP($A902,Economática!$A$3:$AI$823,26,FALSE))/Y902,(F902+VLOOKUP($A902,Economática!$A$3:$AI$823,26,FALSE))/Y902))","v":""},{"$f":"IF($A902=\"\",\"\",IF(OR(-VLOOKUP($A902,Economática!$A$3:$AI$823,27,FALSE)=0,-VLOOKUP($A902,Economática!$A$3:$AI$823,27,FALSE)=\"-\"),1/0,-VLOOKUP($A902,Economática!$A$3:$AI$823,27,FALSE)))","v":""},"",{"$f":"IF($A902=\"\",\"\",IF(OR(VLOOKUP($A902,Economática!$A$3:$AI$823,28,FALSE)=0,VLOOKUP($A902,Economática!$A$3:$AI$823,28,FALSE)=\"-\"),1/0,VLOOKUP($A902,Economática!$A$3:$AI$823,28,FALSE)))","v":""},{"$f":"IF($A902=\"\",\"\",IF(OR(VLOOKUP($A902,Economática!$A$3:$AI$823,29,FALSE)=0,VLOOKUP($A902,Economática!$A$3:$AI$823,29,FALSE)=\"-\"),1/0,VLOOKUP($A902,Economática!$A$3:$AI$823,29,FALSE)))","v":""},{"$f":"IF($A902=\"\",\"\",IF(OR(VLOOKUP($A902,Economática!$A$3:$AI$823,30,FALSE)/E902=0,VLOOKUP($A902,Economática!$A$3:$AI$823,30,FALSE)/E902=\"-\",VLOOKUP($A902,Economática!$A$3:$AI$823,30,FALSE)/E902<33.33%,VLOOKUP($A902,Economática!$A$3:$AI$823,30,FALSE)/E902>100%),1/0,VLOOKUP($A902,Economática!$A$3:$AI$823,30,FALSE)/E902))","v":""},"",{"$f":"IF($A902=\"\",\"\",IF(OR(VLOOKUP($A902,Economática!$A$3:$AI$823,25,FALSE)=0,VLOOKUP($A902,Economática!$A$3:$AI$823,25,FALSE)=\"-\"),1/0,VLOOKUP($A902,Economática!$A$3:$AI$823,25,FALSE)))","v":""},{"$f":"CONCATENATE(Economática!B880,\" \",Economática!C880)","v":" "}]
[{"$f":"IF(Economática!AG881=\"\",\"\",Economática!AG881)","v":""},{"$f":"IF($A903=\"\",\"\",VLOOKUP(VLOOKUP($A903,Economática!$A$3:$AI$823,6,FALSE),Correção!$B$16:$C$36,2,FALSE))","v":""},{"$f":"IF(Economática!B881=\"\",\"\",Economática!B881)","v":""},{"$f":"IF($A903=\"\",\"\",IF(OR(VLOOKUP($A903,Economática!$A$3:$AI$823,8,FALSE)=0,VLOOKUP($A903,Economática!$A$3:$AI$823,8,FALSE)=\"-\"),1/0,VLOOKUP($A903,Economática!$A$3:$AI$823,8,FALSE)))","v":""},{"$f":"IF(A903=\"\",\"\",IF(ISERROR(VLOOKUP(A903,Correção!$B$2:$G$13,9,FALSE)),VLOOKUP($A903,Economática!$A$3:$AI$823,9,FALSE),VLOOKUP(A903,Correção!$B$2:$G$13,9,FALSE)))","v":""},{"$f":"IF($A903=\"\",\"\",Economática!G881)","v":""},{"$f":"IF($A903=\"\",\"\",IF(OR(VLOOKUP($A903,Economática!$A$3:$AI$823,10,FALSE)=0,VLOOKUP($A903,Economática!$A$3:$AI$823,10,FALSE)=\"-\"),1/0,VLOOKUP($A903,Economática!$A$3:$AI$823,10,FALSE)))","v":""},{"$f":"IF($A903=\"\",\"\",IF(OR(VLOOKUP($A903,Economática!$A$3:$AI$823,11,FALSE)=0,VLOOKUP($A903,Economática!$A$3:$AI$823,11,FALSE)=\"-\"),1/0,VLOOKUP($A903,Economática!$A$3:$AI$823,11,FALSE)))","v":""},{"$f":"IF($A903=\"\",\"\",IF(OR(VLOOKUP($A903,Economática!$A$3:$AI$823,12,FALSE)=0,VLOOKUP($A903,Economática!$A$3:$AI$823,12,FALSE)=\"-\"),1/0,VLOOKUP($A903,Economática!$A$3:$AI$823,12,FALSE)))","v":""},{"$f":"IF($A903=\"\",\"\",IF(OR(VLOOKUP($A903,Economática!$A$3:$AI$823,13,FALSE)=0,VLOOKUP($A903,Economática!$A$3:$AI$823,13,FALSE)=\"-\"),1/0,VLOOKUP($A903,Economática!$A$3:$AI$823,13,FALSE)))","v":""},{"$f":"IF($A903=\"\",\"\",IF(OR(VLOOKUP($A903,Economática!$A$3:$AI$823,14,FALSE)=0,VLOOKUP($A903,Economática!$A$3:$AI$823,14,FALSE)=\"-\"),1/0,VLOOKUP($A903,Economática!$A$3:$AI$823,14,FALSE)))","v":""},{"$f":"IF($A903=\"\",\"\",IF(OR(VLOOKUP($A903,Economática!$A$3:$AI$823,15,FALSE)=0,VLOOKUP($A903,Economática!$A$3:$AI$823,15,FALSE)=\"-\"),1/0,VLOOKUP($A903,Economática!$A$3:$AI$823,15,FALSE)))","v":""},{"$f":"IF($A903=\"\",\"\",IF(OR(VLOOKUP($A903,Economática!$A$3:$AI$823,16,FALSE)=0,VLOOKUP($A903,Economática!$A$3:$AI$823,16,FALSE)=\"-\"),1/0,VLOOKUP($A903,Economática!$A$3:$AI$823,16,FALSE)))","v":""},{"$f":"IF($A903=\"\",\"\",IF(OR(VLOOKUP($A903,Economática!$A$3:$AI$823,17,FALSE)=0,VLOOKUP($A903,Economática!$A$3:$AI$823,17,FALSE)=\"-\"),1/0,VLOOKUP($A903,Economática!$A$3:$AI$823,17,FALSE)))","v":""},{"$f":"IF($A903=\"\",\"\",IF(OR(VLOOKUP($A903,Economática!$A$3:$AI$823,18,FALSE)=0,VLOOKUP($A903,Economática!$A$3:$AI$823,18,FALSE)=\"-\"),1/0,VLOOKUP($A903,Economática!$A$3:$AI$823,18,FALSE)))","v":""},{"$f":"IF($A903=\"\",\"\",IF(OR(VLOOKUP($A903,Economática!$A$3:$AI$823,19,FALSE)=0,VLOOKUP($A903,Economática!$A$3:$AI$823,19,FALSE)=\"-\"),1/0,VLOOKUP($A903,Economática!$A$3:$AI$823,19,FALSE)))","v":""},{"$f":"IF($A903=\"\",\"\",VLOOKUP($A903,Economática!$A$3:$AI$823,20,FALSE)/E903)","v":""},"","","",{"$f":"IF($A903=\"\",\"\",IF(OR(VLOOKUP($A903,Economática!$A$3:$AI$823,21,FALSE)/100=0,VLOOKUP($A903,Economática!$A$3:$AI$823,21,FALSE)/100=\"-\"),1/0,VLOOKUP($A903,Economática!$A$3:$AI$823,21,FALSE)/100))","v":""},{"$f":"IF($A903=\"\",\"\",IF(OR(VLOOKUP($A903,Economática!$A$3:$AI$823,22,FALSE)/100=0,VLOOKUP($A903,Economática!$A$3:$AI$823,22,FALSE)/100=\"-\"),1/0,VLOOKUP($A903,Economática!$A$3:$AI$823,22,FALSE)/100))","v":""},{"$f":"IF($A903=\"\",\"\",IF(OR(VLOOKUP($A903,Economática!$A$3:$AI$823,23,FALSE)=0,VLOOKUP($A903,Economática!$A$3:$AI$823,23,FALSE)=\"-\"),1/0,VLOOKUP($A903,Economática!$A$3:$AI$823,23,FALSE)))","v":""},{"$f":"IF($A903=\"\",\"\",IF(OR(VLOOKUP($A903,Economática!$A$3:$AI$823,24,FALSE)=0,VLOOKUP($A903,Economática!$A$3:$AI$823,24,FALSE)=\"-\"),1/0,VLOOKUP($A903,Economática!$A$3:$AI$823,24,FALSE)))","v":""},{"$f":"IF($A903=\"\",\"\",IF(OR(VLOOKUP($A903,Economática!$A$3:$AI$823,25,FALSE)=0,VLOOKUP($A903,Economática!$A$3:$AI$823,25,FALSE)=\"-\"),1/0,VLOOKUP($A903,Economática!$A$3:$AI$823,25,FALSE)))","v":""},{"$f":"IF($A903=\"\",\"\",IF(ISERROR((F903+VLOOKUP($A903,Economática!$A$3:$AI$823,26,FALSE))/Y903),(F903+VLOOKUP($A903,Economática!$A$3:$AI$823,26,FALSE))/Y903,(F903+VLOOKUP($A903,Economática!$A$3:$AI$823,26,FALSE))/Y903))","v":""},{"$f":"IF($A903=\"\",\"\",IF(OR(-VLOOKUP($A903,Economática!$A$3:$AI$823,27,FALSE)=0,-VLOOKUP($A903,Economática!$A$3:$AI$823,27,FALSE)=\"-\"),1/0,-VLOOKUP($A903,Economática!$A$3:$AI$823,27,FALSE)))","v":""},"",{"$f":"IF($A903=\"\",\"\",IF(OR(VLOOKUP($A903,Economática!$A$3:$AI$823,28,FALSE)=0,VLOOKUP($A903,Economática!$A$3:$AI$823,28,FALSE)=\"-\"),1/0,VLOOKUP($A903,Economática!$A$3:$AI$823,28,FALSE)))","v":""},{"$f":"IF($A903=\"\",\"\",IF(OR(VLOOKUP($A903,Economática!$A$3:$AI$823,29,FALSE)=0,VLOOKUP($A903,Economática!$A$3:$AI$823,29,FALSE)=\"-\"),1/0,VLOOKUP($A903,Economática!$A$3:$AI$823,29,FALSE)))","v":""},{"$f":"IF($A903=\"\",\"\",IF(OR(VLOOKUP($A903,Economática!$A$3:$AI$823,30,FALSE)/E903=0,VLOOKUP($A903,Economática!$A$3:$AI$823,30,FALSE)/E903=\"-\",VLOOKUP($A903,Economática!$A$3:$AI$823,30,FALSE)/E903<33.33%,VLOOKUP($A903,Economática!$A$3:$AI$823,30,FALSE)/E903>100%),1/0,VLOOKUP($A903,Economática!$A$3:$AI$823,30,FALSE)/E903))","v":""},"",{"$f":"IF($A903=\"\",\"\",IF(OR(VLOOKUP($A903,Economática!$A$3:$AI$823,25,FALSE)=0,VLOOKUP($A903,Economática!$A$3:$AI$823,25,FALSE)=\"-\"),1/0,VLOOKUP($A903,Economática!$A$3:$AI$823,25,FALSE)))","v":""},{"$f":"CONCATENATE(Economática!B881,\" \",Economática!C881)","v":" "}]
[{"$f":"IF(Economática!AG882=\"\",\"\",Economática!AG882)","v":""},{"$f":"IF($A904=\"\",\"\",VLOOKUP(VLOOKUP($A904,Economática!$A$3:$AI$823,6,FALSE),Correção!$B$16:$C$36,2,FALSE))","v":""},{"$f":"IF(Economática!B882=\"\",\"\",Economática!B882)","v":""},{"$f":"IF($A904=\"\",\"\",IF(OR(VLOOKUP($A904,Economática!$A$3:$AI$823,8,FALSE)=0,VLOOKUP($A904,Economática!$A$3:$AI$823,8,FALSE)=\"-\"),1/0,VLOOKUP($A904,Economática!$A$3:$AI$823,8,FALSE)))","v":""},{"$f":"IF(A904=\"\",\"\",IF(ISERROR(VLOOKUP(A904,Correção!$B$2:$G$13,9,FALSE)),VLOOKUP($A904,Economática!$A$3:$AI$823,9,FALSE),VLOOKUP(A904,Correção!$B$2:$G$13,9,FALSE)))","v":""},{"$f":"IF($A904=\"\",\"\",Economática!G882)","v":""},{"$f":"IF($A904=\"\",\"\",IF(OR(VLOOKUP($A904,Economática!$A$3:$AI$823,10,FALSE)=0,VLOOKUP($A904,Economática!$A$3:$AI$823,10,FALSE)=\"-\"),1/0,VLOOKUP($A904,Economática!$A$3:$AI$823,10,FALSE)))","v":""},{"$f":"IF($A904=\"\",\"\",IF(OR(VLOOKUP($A904,Economática!$A$3:$AI$823,11,FALSE)=0,VLOOKUP($A904,Economática!$A$3:$AI$823,11,FALSE)=\"-\"),1/0,VLOOKUP($A904,Economática!$A$3:$AI$823,11,FALSE)))","v":""},{"$f":"IF($A904=\"\",\"\",IF(OR(VLOOKUP($A904,Economática!$A$3:$AI$823,12,FALSE)=0,VLOOKUP($A904,Economática!$A$3:$AI$823,12,FALSE)=\"-\"),1/0,VLOOKUP($A904,Economática!$A$3:$AI$823,12,FALSE)))","v":""},{"$f":"IF($A904=\"\",\"\",IF(OR(VLOOKUP($A904,Economática!$A$3:$AI$823,13,FALSE)=0,VLOOKUP($A904,Economática!$A$3:$AI$823,13,FALSE)=\"-\"),1/0,VLOOKUP($A904,Economática!$A$3:$AI$823,13,FALSE)))","v":""},{"$f":"IF($A904=\"\",\"\",IF(OR(VLOOKUP($A904,Economática!$A$3:$AI$823,14,FALSE)=0,VLOOKUP($A904,Economática!$A$3:$AI$823,14,FALSE)=\"-\"),1/0,VLOOKUP($A904,Economática!$A$3:$AI$823,14,FALSE)))","v":""},{"$f":"IF($A904=\"\",\"\",IF(OR(VLOOKUP($A904,Economática!$A$3:$AI$823,15,FALSE)=0,VLOOKUP($A904,Economática!$A$3:$AI$823,15,FALSE)=\"-\"),1/0,VLOOKUP($A904,Economática!$A$3:$AI$823,15,FALSE)))","v":""},{"$f":"IF($A904=\"\",\"\",IF(OR(VLOOKUP($A904,Economática!$A$3:$AI$823,16,FALSE)=0,VLOOKUP($A904,Economática!$A$3:$AI$823,16,FALSE)=\"-\"),1/0,VLOOKUP($A904,Economática!$A$3:$AI$823,16,FALSE)))","v":""},{"$f":"IF($A904=\"\",\"\",IF(OR(VLOOKUP($A904,Economática!$A$3:$AI$823,17,FALSE)=0,VLOOKUP($A904,Economática!$A$3:$AI$823,17,FALSE)=\"-\"),1/0,VLOOKUP($A904,Economática!$A$3:$AI$823,17,FALSE)))","v":""},{"$f":"IF($A904=\"\",\"\",IF(OR(VLOOKUP($A904,Economática!$A$3:$AI$823,18,FALSE)=0,VLOOKUP($A904,Economática!$A$3:$AI$823,18,FALSE)=\"-\"),1/0,VLOOKUP($A904,Economática!$A$3:$AI$823,18,FALSE)))","v":""},{"$f":"IF($A904=\"\",\"\",IF(OR(VLOOKUP($A904,Economática!$A$3:$AI$823,19,FALSE)=0,VLOOKUP($A904,Economática!$A$3:$AI$823,19,FALSE)=\"-\"),1/0,VLOOKUP($A904,Economática!$A$3:$AI$823,19,FALSE)))","v":""},{"$f":"IF($A904=\"\",\"\",VLOOKUP($A904,Economática!$A$3:$AI$823,20,FALSE)/E904)","v":""},"","","",{"$f":"IF($A904=\"\",\"\",IF(OR(VLOOKUP($A904,Economática!$A$3:$AI$823,21,FALSE)/100=0,VLOOKUP($A904,Economática!$A$3:$AI$823,21,FALSE)/100=\"-\"),1/0,VLOOKUP($A904,Economática!$A$3:$AI$823,21,FALSE)/100))","v":""},{"$f":"IF($A904=\"\",\"\",IF(OR(VLOOKUP($A904,Economática!$A$3:$AI$823,22,FALSE)/100=0,VLOOKUP($A904,Economática!$A$3:$AI$823,22,FALSE)/100=\"-\"),1/0,VLOOKUP($A904,Economática!$A$3:$AI$823,22,FALSE)/100))","v":""},{"$f":"IF($A904=\"\",\"\",IF(OR(VLOOKUP($A904,Economática!$A$3:$AI$823,23,FALSE)=0,VLOOKUP($A904,Economática!$A$3:$AI$823,23,FALSE)=\"-\"),1/0,VLOOKUP($A904,Economática!$A$3:$AI$823,23,FALSE)))","v":""},{"$f":"IF($A904=\"\",\"\",IF(OR(VLOOKUP($A904,Economática!$A$3:$AI$823,24,FALSE)=0,VLOOKUP($A904,Economática!$A$3:$AI$823,24,FALSE)=\"-\"),1/0,VLOOKUP($A904,Economática!$A$3:$AI$823,24,FALSE)))","v":""},{"$f":"IF($A904=\"\",\"\",IF(OR(VLOOKUP($A904,Economática!$A$3:$AI$823,25,FALSE)=0,VLOOKUP($A904,Economática!$A$3:$AI$823,25,FALSE)=\"-\"),1/0,VLOOKUP($A904,Economática!$A$3:$AI$823,25,FALSE)))","v":""},{"$f":"IF($A904=\"\",\"\",IF(ISERROR((F904+VLOOKUP($A904,Economática!$A$3:$AI$823,26,FALSE))/Y904),(F904+VLOOKUP($A904,Economática!$A$3:$AI$823,26,FALSE))/Y904,(F904+VLOOKUP($A904,Economática!$A$3:$AI$823,26,FALSE))/Y904))","v":""},{"$f":"IF($A904=\"\",\"\",IF(OR(-VLOOKUP($A904,Economática!$A$3:$AI$823,27,FALSE)=0,-VLOOKUP($A904,Economática!$A$3:$AI$823,27,FALSE)=\"-\"),1/0,-VLOOKUP($A904,Economática!$A$3:$AI$823,27,FALSE)))","v":""},"",{"$f":"IF($A904=\"\",\"\",IF(OR(VLOOKUP($A904,Economática!$A$3:$AI$823,28,FALSE)=0,VLOOKUP($A904,Economática!$A$3:$AI$823,28,FALSE)=\"-\"),1/0,VLOOKUP($A904,Economática!$A$3:$AI$823,28,FALSE)))","v":""},{"$f":"IF($A904=\"\",\"\",IF(OR(VLOOKUP($A904,Economática!$A$3:$AI$823,29,FALSE)=0,VLOOKUP($A904,Economática!$A$3:$AI$823,29,FALSE)=\"-\"),1/0,VLOOKUP($A904,Economática!$A$3:$AI$823,29,FALSE)))","v":""},{"$f":"IF($A904=\"\",\"\",IF(OR(VLOOKUP($A904,Economática!$A$3:$AI$823,30,FALSE)/E904=0,VLOOKUP($A904,Economática!$A$3:$AI$823,30,FALSE)/E904=\"-\",VLOOKUP($A904,Economática!$A$3:$AI$823,30,FALSE)/E904<33.33%,VLOOKUP($A904,Economática!$A$3:$AI$823,30,FALSE)/E904>100%),1/0,VLOOKUP($A904,Economática!$A$3:$AI$823,30,FALSE)/E904))","v":""},"",{"$f":"IF($A904=\"\",\"\",IF(OR(VLOOKUP($A904,Economática!$A$3:$AI$823,25,FALSE)=0,VLOOKUP($A904,Economática!$A$3:$AI$823,25,FALSE)=\"-\"),1/0,VLOOKUP($A904,Economática!$A$3:$AI$823,25,FALSE)))","v":""},{"$f":"CONCATENATE(Economática!B882,\" \",Economática!C882)","v":" "}]
[{"$f":"IF(Economática!AG883=\"\",\"\",Economática!AG883)","v":""},{"$f":"IF($A905=\"\",\"\",VLOOKUP(VLOOKUP($A905,Economática!$A$3:$AI$823,6,FALSE),Correção!$B$16:$C$36,2,FALSE))","v":""},{"$f":"IF(Economática!B883=\"\",\"\",Economática!B883)","v":""},{"$f":"IF($A905=\"\",\"\",IF(OR(VLOOKUP($A905,Economática!$A$3:$AI$823,8,FALSE)=0,VLOOKUP($A905,Economática!$A$3:$AI$823,8,FALSE)=\"-\"),1/0,VLOOKUP($A905,Economática!$A$3:$AI$823,8,FALSE)))","v":""},{"$f":"IF(A905=\"\",\"\",IF(ISERROR(VLOOKUP(A905,Correção!$B$2:$G$13,9,FALSE)),VLOOKUP($A905,Economática!$A$3:$AI$823,9,FALSE),VLOOKUP(A905,Correção!$B$2:$G$13,9,FALSE)))","v":""},{"$f":"IF($A905=\"\",\"\",Economática!G883)","v":""},{"$f":"IF($A905=\"\",\"\",IF(OR(VLOOKUP($A905,Economática!$A$3:$AI$823,10,FALSE)=0,VLOOKUP($A905,Economática!$A$3:$AI$823,10,FALSE)=\"-\"),1/0,VLOOKUP($A905,Economática!$A$3:$AI$823,10,FALSE)))","v":""},{"$f":"IF($A905=\"\",\"\",IF(OR(VLOOKUP($A905,Economática!$A$3:$AI$823,11,FALSE)=0,VLOOKUP($A905,Economática!$A$3:$AI$823,11,FALSE)=\"-\"),1/0,VLOOKUP($A905,Economática!$A$3:$AI$823,11,FALSE)))","v":""},{"$f":"IF($A905=\"\",\"\",IF(OR(VLOOKUP($A905,Economática!$A$3:$AI$823,12,FALSE)=0,VLOOKUP($A905,Economática!$A$3:$AI$823,12,FALSE)=\"-\"),1/0,VLOOKUP($A905,Economática!$A$3:$AI$823,12,FALSE)))","v":""},{"$f":"IF($A905=\"\",\"\",IF(OR(VLOOKUP($A905,Economática!$A$3:$AI$823,13,FALSE)=0,VLOOKUP($A905,Economática!$A$3:$AI$823,13,FALSE)=\"-\"),1/0,VLOOKUP($A905,Economática!$A$3:$AI$823,13,FALSE)))","v":""},{"$f":"IF($A905=\"\",\"\",IF(OR(VLOOKUP($A905,Economática!$A$3:$AI$823,14,FALSE)=0,VLOOKUP($A905,Economática!$A$3:$AI$823,14,FALSE)=\"-\"),1/0,VLOOKUP($A905,Economática!$A$3:$AI$823,14,FALSE)))","v":""},{"$f":"IF($A905=\"\",\"\",IF(OR(VLOOKUP($A905,Economática!$A$3:$AI$823,15,FALSE)=0,VLOOKUP($A905,Economática!$A$3:$AI$823,15,FALSE)=\"-\"),1/0,VLOOKUP($A905,Economática!$A$3:$AI$823,15,FALSE)))","v":""},{"$f":"IF($A905=\"\",\"\",IF(OR(VLOOKUP($A905,Economática!$A$3:$AI$823,16,FALSE)=0,VLOOKUP($A905,Economática!$A$3:$AI$823,16,FALSE)=\"-\"),1/0,VLOOKUP($A905,Economática!$A$3:$AI$823,16,FALSE)))","v":""},{"$f":"IF($A905=\"\",\"\",IF(OR(VLOOKUP($A905,Economática!$A$3:$AI$823,17,FALSE)=0,VLOOKUP($A905,Economática!$A$3:$AI$823,17,FALSE)=\"-\"),1/0,VLOOKUP($A905,Economática!$A$3:$AI$823,17,FALSE)))","v":""},{"$f":"IF($A905=\"\",\"\",IF(OR(VLOOKUP($A905,Economática!$A$3:$AI$823,18,FALSE)=0,VLOOKUP($A905,Economática!$A$3:$AI$823,18,FALSE)=\"-\"),1/0,VLOOKUP($A905,Economática!$A$3:$AI$823,18,FALSE)))","v":""},{"$f":"IF($A905=\"\",\"\",IF(OR(VLOOKUP($A905,Economática!$A$3:$AI$823,19,FALSE)=0,VLOOKUP($A905,Economática!$A$3:$AI$823,19,FALSE)=\"-\"),1/0,VLOOKUP($A905,Economática!$A$3:$AI$823,19,FALSE)))","v":""},{"$f":"IF($A905=\"\",\"\",VLOOKUP($A905,Economática!$A$3:$AI$823,20,FALSE)/E905)","v":""},"","","",{"$f":"IF($A905=\"\",\"\",IF(OR(VLOOKUP($A905,Economática!$A$3:$AI$823,21,FALSE)/100=0,VLOOKUP($A905,Economática!$A$3:$AI$823,21,FALSE)/100=\"-\"),1/0,VLOOKUP($A905,Economática!$A$3:$AI$823,21,FALSE)/100))","v":""},{"$f":"IF($A905=\"\",\"\",IF(OR(VLOOKUP($A905,Economática!$A$3:$AI$823,22,FALSE)/100=0,VLOOKUP($A905,Economática!$A$3:$AI$823,22,FALSE)/100=\"-\"),1/0,VLOOKUP($A905,Economática!$A$3:$AI$823,22,FALSE)/100))","v":""},{"$f":"IF($A905=\"\",\"\",IF(OR(VLOOKUP($A905,Economática!$A$3:$AI$823,23,FALSE)=0,VLOOKUP($A905,Economática!$A$3:$AI$823,23,FALSE)=\"-\"),1/0,VLOOKUP($A905,Economática!$A$3:$AI$823,23,FALSE)))","v":""},{"$f":"IF($A905=\"\",\"\",IF(OR(VLOOKUP($A905,Economática!$A$3:$AI$823,24,FALSE)=0,VLOOKUP($A905,Economática!$A$3:$AI$823,24,FALSE)=\"-\"),1/0,VLOOKUP($A905,Economática!$A$3:$AI$823,24,FALSE)))","v":""},{"$f":"IF($A905=\"\",\"\",IF(OR(VLOOKUP($A905,Economática!$A$3:$AI$823,25,FALSE)=0,VLOOKUP($A905,Economática!$A$3:$AI$823,25,FALSE)=\"-\"),1/0,VLOOKUP($A905,Economática!$A$3:$AI$823,25,FALSE)))","v":""},{"$f":"IF($A905=\"\",\"\",IF(ISERROR((F905+VLOOKUP($A905,Economática!$A$3:$AI$823,26,FALSE))/Y905),(F905+VLOOKUP($A905,Economática!$A$3:$AI$823,26,FALSE))/Y905,(F905+VLOOKUP($A905,Economática!$A$3:$AI$823,26,FALSE))/Y905))","v":""},{"$f":"IF($A905=\"\",\"\",IF(OR(-VLOOKUP($A905,Economática!$A$3:$AI$823,27,FALSE)=0,-VLOOKUP($A905,Economática!$A$3:$AI$823,27,FALSE)=\"-\"),1/0,-VLOOKUP($A905,Economática!$A$3:$AI$823,27,FALSE)))","v":""},"",{"$f":"IF($A905=\"\",\"\",IF(OR(VLOOKUP($A905,Economática!$A$3:$AI$823,28,FALSE)=0,VLOOKUP($A905,Economática!$A$3:$AI$823,28,FALSE)=\"-\"),1/0,VLOOKUP($A905,Economática!$A$3:$AI$823,28,FALSE)))","v":""},{"$f":"IF($A905=\"\",\"\",IF(OR(VLOOKUP($A905,Economática!$A$3:$AI$823,29,FALSE)=0,VLOOKUP($A905,Economática!$A$3:$AI$823,29,FALSE)=\"-\"),1/0,VLOOKUP($A905,Economática!$A$3:$AI$823,29,FALSE)))","v":""},{"$f":"IF($A905=\"\",\"\",IF(OR(VLOOKUP($A905,Economática!$A$3:$AI$823,30,FALSE)/E905=0,VLOOKUP($A905,Economática!$A$3:$AI$823,30,FALSE)/E905=\"-\",VLOOKUP($A905,Economática!$A$3:$AI$823,30,FALSE)/E905<33.33%,VLOOKUP($A905,Economática!$A$3:$AI$823,30,FALSE)/E905>100%),1/0,VLOOKUP($A905,Economática!$A$3:$AI$823,30,FALSE)/E905))","v":""},"",{"$f":"IF($A905=\"\",\"\",IF(OR(VLOOKUP($A905,Economática!$A$3:$AI$823,25,FALSE)=0,VLOOKUP($A905,Economática!$A$3:$AI$823,25,FALSE)=\"-\"),1/0,VLOOKUP($A905,Economática!$A$3:$AI$823,25,FALSE)))","v":""},{"$f":"CONCATENATE(Economática!B883,\" \",Economática!C883)","v":" "}]
[{"$f":"IF(Economática!AG884=\"\",\"\",Economática!AG884)","v":""},{"$f":"IF($A906=\"\",\"\",VLOOKUP(VLOOKUP($A906,Economática!$A$3:$AI$823,6,FALSE),Correção!$B$16:$C$36,2,FALSE))","v":""},{"$f":"IF(Economática!B884=\"\",\"\",Economática!B884)","v":""},{"$f":"IF($A906=\"\",\"\",IF(OR(VLOOKUP($A906,Economática!$A$3:$AI$823,8,FALSE)=0,VLOOKUP($A906,Economática!$A$3:$AI$823,8,FALSE)=\"-\"),1/0,VLOOKUP($A906,Economática!$A$3:$AI$823,8,FALSE)))","v":""},{"$f":"IF(A906=\"\",\"\",IF(ISERROR(VLOOKUP(A906,Correção!$B$2:$G$13,9,FALSE)),VLOOKUP($A906,Economática!$A$3:$AI$823,9,FALSE),VLOOKUP(A906,Correção!$B$2:$G$13,9,FALSE)))","v":""},{"$f":"IF($A906=\"\",\"\",Economática!G884)","v":""},{"$f":"IF($A906=\"\",\"\",IF(OR(VLOOKUP($A906,Economática!$A$3:$AI$823,10,FALSE)=0,VLOOKUP($A906,Economática!$A$3:$AI$823,10,FALSE)=\"-\"),1/0,VLOOKUP($A906,Economática!$A$3:$AI$823,10,FALSE)))","v":""},{"$f":"IF($A906=\"\",\"\",IF(OR(VLOOKUP($A906,Economática!$A$3:$AI$823,11,FALSE)=0,VLOOKUP($A906,Economática!$A$3:$AI$823,11,FALSE)=\"-\"),1/0,VLOOKUP($A906,Economática!$A$3:$AI$823,11,FALSE)))","v":""},{"$f":"IF($A906=\"\",\"\",IF(OR(VLOOKUP($A906,Economática!$A$3:$AI$823,12,FALSE)=0,VLOOKUP($A906,Economática!$A$3:$AI$823,12,FALSE)=\"-\"),1/0,VLOOKUP($A906,Economática!$A$3:$AI$823,12,FALSE)))","v":""},{"$f":"IF($A906=\"\",\"\",IF(OR(VLOOKUP($A906,Economática!$A$3:$AI$823,13,FALSE)=0,VLOOKUP($A906,Economática!$A$3:$AI$823,13,FALSE)=\"-\"),1/0,VLOOKUP($A906,Economática!$A$3:$AI$823,13,FALSE)))","v":""},{"$f":"IF($A906=\"\",\"\",IF(OR(VLOOKUP($A906,Economática!$A$3:$AI$823,14,FALSE)=0,VLOOKUP($A906,Economática!$A$3:$AI$823,14,FALSE)=\"-\"),1/0,VLOOKUP($A906,Economática!$A$3:$AI$823,14,FALSE)))","v":""},{"$f":"IF($A906=\"\",\"\",IF(OR(VLOOKUP($A906,Economática!$A$3:$AI$823,15,FALSE)=0,VLOOKUP($A906,Economática!$A$3:$AI$823,15,FALSE)=\"-\"),1/0,VLOOKUP($A906,Economática!$A$3:$AI$823,15,FALSE)))","v":""},{"$f":"IF($A906=\"\",\"\",IF(OR(VLOOKUP($A906,Economática!$A$3:$AI$823,16,FALSE)=0,VLOOKUP($A906,Economática!$A$3:$AI$823,16,FALSE)=\"-\"),1/0,VLOOKUP($A906,Economática!$A$3:$AI$823,16,FALSE)))","v":""},{"$f":"IF($A906=\"\",\"\",IF(OR(VLOOKUP($A906,Economática!$A$3:$AI$823,17,FALSE)=0,VLOOKUP($A906,Economática!$A$3:$AI$823,17,FALSE)=\"-\"),1/0,VLOOKUP($A906,Economática!$A$3:$AI$823,17,FALSE)))","v":""},{"$f":"IF($A906=\"\",\"\",IF(OR(VLOOKUP($A906,Economática!$A$3:$AI$823,18,FALSE)=0,VLOOKUP($A906,Economática!$A$3:$AI$823,18,FALSE)=\"-\"),1/0,VLOOKUP($A906,Economática!$A$3:$AI$823,18,FALSE)))","v":""},{"$f":"IF($A906=\"\",\"\",IF(OR(VLOOKUP($A906,Economática!$A$3:$AI$823,19,FALSE)=0,VLOOKUP($A906,Economática!$A$3:$AI$823,19,FALSE)=\"-\"),1/0,VLOOKUP($A906,Economática!$A$3:$AI$823,19,FALSE)))","v":""},{"$f":"IF($A906=\"\",\"\",VLOOKUP($A906,Economática!$A$3:$AI$823,20,FALSE)/E906)","v":""},"","","",{"$f":"IF($A906=\"\",\"\",IF(OR(VLOOKUP($A906,Economática!$A$3:$AI$823,21,FALSE)/100=0,VLOOKUP($A906,Economática!$A$3:$AI$823,21,FALSE)/100=\"-\"),1/0,VLOOKUP($A906,Economática!$A$3:$AI$823,21,FALSE)/100))","v":""},{"$f":"IF($A906=\"\",\"\",IF(OR(VLOOKUP($A906,Economática!$A$3:$AI$823,22,FALSE)/100=0,VLOOKUP($A906,Economática!$A$3:$AI$823,22,FALSE)/100=\"-\"),1/0,VLOOKUP($A906,Economática!$A$3:$AI$823,22,FALSE)/100))","v":""},{"$f":"IF($A906=\"\",\"\",IF(OR(VLOOKUP($A906,Economática!$A$3:$AI$823,23,FALSE)=0,VLOOKUP($A906,Economática!$A$3:$AI$823,23,FALSE)=\"-\"),1/0,VLOOKUP($A906,Economática!$A$3:$AI$823,23,FALSE)))","v":""},{"$f":"IF($A906=\"\",\"\",IF(OR(VLOOKUP($A906,Economática!$A$3:$AI$823,24,FALSE)=0,VLOOKUP($A906,Economática!$A$3:$AI$823,24,FALSE)=\"-\"),1/0,VLOOKUP($A906,Economática!$A$3:$AI$823,24,FALSE)))","v":""},{"$f":"IF($A906=\"\",\"\",IF(OR(VLOOKUP($A906,Economática!$A$3:$AI$823,25,FALSE)=0,VLOOKUP($A906,Economática!$A$3:$AI$823,25,FALSE)=\"-\"),1/0,VLOOKUP($A906,Economática!$A$3:$AI$823,25,FALSE)))","v":""},{"$f":"IF($A906=\"\",\"\",IF(ISERROR((F906+VLOOKUP($A906,Economática!$A$3:$AI$823,26,FALSE))/Y906),(F906+VLOOKUP($A906,Economática!$A$3:$AI$823,26,FALSE))/Y906,(F906+VLOOKUP($A906,Economática!$A$3:$AI$823,26,FALSE))/Y906))","v":""},{"$f":"IF($A906=\"\",\"\",IF(OR(-VLOOKUP($A906,Economática!$A$3:$AI$823,27,FALSE)=0,-VLOOKUP($A906,Economática!$A$3:$AI$823,27,FALSE)=\"-\"),1/0,-VLOOKUP($A906,Economática!$A$3:$AI$823,27,FALSE)))","v":""},"",{"$f":"IF($A906=\"\",\"\",IF(OR(VLOOKUP($A906,Economática!$A$3:$AI$823,28,FALSE)=0,VLOOKUP($A906,Economática!$A$3:$AI$823,28,FALSE)=\"-\"),1/0,VLOOKUP($A906,Economática!$A$3:$AI$823,28,FALSE)))","v":""},{"$f":"IF($A906=\"\",\"\",IF(OR(VLOOKUP($A906,Economática!$A$3:$AI$823,29,FALSE)=0,VLOOKUP($A906,Economática!$A$3:$AI$823,29,FALSE)=\"-\"),1/0,VLOOKUP($A906,Economática!$A$3:$AI$823,29,FALSE)))","v":""},{"$f":"IF($A906=\"\",\"\",IF(OR(VLOOKUP($A906,Economática!$A$3:$AI$823,30,FALSE)/E906=0,VLOOKUP($A906,Economática!$A$3:$AI$823,30,FALSE)/E906=\"-\",VLOOKUP($A906,Economática!$A$3:$AI$823,30,FALSE)/E906<33.33%,VLOOKUP($A906,Economática!$A$3:$AI$823,30,FALSE)/E906>100%),1/0,VLOOKUP($A906,Economática!$A$3:$AI$823,30,FALSE)/E906))","v":""},"",{"$f":"IF($A906=\"\",\"\",IF(OR(VLOOKUP($A906,Economática!$A$3:$AI$823,25,FALSE)=0,VLOOKUP($A906,Economática!$A$3:$AI$823,25,FALSE)=\"-\"),1/0,VLOOKUP($A906,Economática!$A$3:$AI$823,25,FALSE)))","v":""},{"$f":"CONCATENATE(Economática!B884,\" \",Economática!C884)","v":" "}]
[{"$f":"IF(Economática!AG885=\"\",\"\",Economática!AG885)","v":""},{"$f":"IF($A907=\"\",\"\",VLOOKUP(VLOOKUP($A907,Economática!$A$3:$AI$823,6,FALSE),Correção!$B$16:$C$36,2,FALSE))","v":""},{"$f":"IF(Economática!B885=\"\",\"\",Economática!B885)","v":""},{"$f":"IF($A907=\"\",\"\",IF(OR(VLOOKUP($A907,Economática!$A$3:$AI$823,8,FALSE)=0,VLOOKUP($A907,Economática!$A$3:$AI$823,8,FALSE)=\"-\"),1/0,VLOOKUP($A907,Economática!$A$3:$AI$823,8,FALSE)))","v":""},{"$f":"IF(A907=\"\",\"\",IF(ISERROR(VLOOKUP(A907,Correção!$B$2:$G$13,9,FALSE)),VLOOKUP($A907,Economática!$A$3:$AI$823,9,FALSE),VLOOKUP(A907,Correção!$B$2:$G$13,9,FALSE)))","v":""},{"$f":"IF($A907=\"\",\"\",Economática!G885)","v":""},{"$f":"IF($A907=\"\",\"\",IF(OR(VLOOKUP($A907,Economática!$A$3:$AI$823,10,FALSE)=0,VLOOKUP($A907,Economática!$A$3:$AI$823,10,FALSE)=\"-\"),1/0,VLOOKUP($A907,Economática!$A$3:$AI$823,10,FALSE)))","v":""},{"$f":"IF($A907=\"\",\"\",IF(OR(VLOOKUP($A907,Economática!$A$3:$AI$823,11,FALSE)=0,VLOOKUP($A907,Economática!$A$3:$AI$823,11,FALSE)=\"-\"),1/0,VLOOKUP($A907,Economática!$A$3:$AI$823,11,FALSE)))","v":""},{"$f":"IF($A907=\"\",\"\",IF(OR(VLOOKUP($A907,Economática!$A$3:$AI$823,12,FALSE)=0,VLOOKUP($A907,Economática!$A$3:$AI$823,12,FALSE)=\"-\"),1/0,VLOOKUP($A907,Economática!$A$3:$AI$823,12,FALSE)))","v":""},{"$f":"IF($A907=\"\",\"\",IF(OR(VLOOKUP($A907,Economática!$A$3:$AI$823,13,FALSE)=0,VLOOKUP($A907,Economática!$A$3:$AI$823,13,FALSE)=\"-\"),1/0,VLOOKUP($A907,Economática!$A$3:$AI$823,13,FALSE)))","v":""},{"$f":"IF($A907=\"\",\"\",IF(OR(VLOOKUP($A907,Economática!$A$3:$AI$823,14,FALSE)=0,VLOOKUP($A907,Economática!$A$3:$AI$823,14,FALSE)=\"-\"),1/0,VLOOKUP($A907,Economática!$A$3:$AI$823,14,FALSE)))","v":""},{"$f":"IF($A907=\"\",\"\",IF(OR(VLOOKUP($A907,Economática!$A$3:$AI$823,15,FALSE)=0,VLOOKUP($A907,Economática!$A$3:$AI$823,15,FALSE)=\"-\"),1/0,VLOOKUP($A907,Economática!$A$3:$AI$823,15,FALSE)))","v":""},{"$f":"IF($A907=\"\",\"\",IF(OR(VLOOKUP($A907,Economática!$A$3:$AI$823,16,FALSE)=0,VLOOKUP($A907,Economática!$A$3:$AI$823,16,FALSE)=\"-\"),1/0,VLOOKUP($A907,Economática!$A$3:$AI$823,16,FALSE)))","v":""},{"$f":"IF($A907=\"\",\"\",IF(OR(VLOOKUP($A907,Economática!$A$3:$AI$823,17,FALSE)=0,VLOOKUP($A907,Economática!$A$3:$AI$823,17,FALSE)=\"-\"),1/0,VLOOKUP($A907,Economática!$A$3:$AI$823,17,FALSE)))","v":""},{"$f":"IF($A907=\"\",\"\",IF(OR(VLOOKUP($A907,Economática!$A$3:$AI$823,18,FALSE)=0,VLOOKUP($A907,Economática!$A$3:$AI$823,18,FALSE)=\"-\"),1/0,VLOOKUP($A907,Economática!$A$3:$AI$823,18,FALSE)))","v":""},{"$f":"IF($A907=\"\",\"\",IF(OR(VLOOKUP($A907,Economática!$A$3:$AI$823,19,FALSE)=0,VLOOKUP($A907,Economática!$A$3:$AI$823,19,FALSE)=\"-\"),1/0,VLOOKUP($A907,Economática!$A$3:$AI$823,19,FALSE)))","v":""},{"$f":"IF($A907=\"\",\"\",VLOOKUP($A907,Economática!$A$3:$AI$823,20,FALSE)/E907)","v":""},"","","",{"$f":"IF($A907=\"\",\"\",IF(OR(VLOOKUP($A907,Economática!$A$3:$AI$823,21,FALSE)/100=0,VLOOKUP($A907,Economática!$A$3:$AI$823,21,FALSE)/100=\"-\"),1/0,VLOOKUP($A907,Economática!$A$3:$AI$823,21,FALSE)/100))","v":""},{"$f":"IF($A907=\"\",\"\",IF(OR(VLOOKUP($A907,Economática!$A$3:$AI$823,22,FALSE)/100=0,VLOOKUP($A907,Economática!$A$3:$AI$823,22,FALSE)/100=\"-\"),1/0,VLOOKUP($A907,Economática!$A$3:$AI$823,22,FALSE)/100))","v":""},{"$f":"IF($A907=\"\",\"\",IF(OR(VLOOKUP($A907,Economática!$A$3:$AI$823,23,FALSE)=0,VLOOKUP($A907,Economática!$A$3:$AI$823,23,FALSE)=\"-\"),1/0,VLOOKUP($A907,Economática!$A$3:$AI$823,23,FALSE)))","v":""},{"$f":"IF($A907=\"\",\"\",IF(OR(VLOOKUP($A907,Economática!$A$3:$AI$823,24,FALSE)=0,VLOOKUP($A907,Economática!$A$3:$AI$823,24,FALSE)=\"-\"),1/0,VLOOKUP($A907,Economática!$A$3:$AI$823,24,FALSE)))","v":""},{"$f":"IF($A907=\"\",\"\",IF(OR(VLOOKUP($A907,Economática!$A$3:$AI$823,25,FALSE)=0,VLOOKUP($A907,Economática!$A$3:$AI$823,25,FALSE)=\"-\"),1/0,VLOOKUP($A907,Economática!$A$3:$AI$823,25,FALSE)))","v":""},{"$f":"IF($A907=\"\",\"\",IF(ISERROR((F907+VLOOKUP($A907,Economática!$A$3:$AI$823,26,FALSE))/Y907),(F907+VLOOKUP($A907,Economática!$A$3:$AI$823,26,FALSE))/Y907,(F907+VLOOKUP($A907,Economática!$A$3:$AI$823,26,FALSE))/Y907))","v":""},{"$f":"IF($A907=\"\",\"\",IF(OR(-VLOOKUP($A907,Economática!$A$3:$AI$823,27,FALSE)=0,-VLOOKUP($A907,Economática!$A$3:$AI$823,27,FALSE)=\"-\"),1/0,-VLOOKUP($A907,Economática!$A$3:$AI$823,27,FALSE)))","v":""},"",{"$f":"IF($A907=\"\",\"\",IF(OR(VLOOKUP($A907,Economática!$A$3:$AI$823,28,FALSE)=0,VLOOKUP($A907,Economática!$A$3:$AI$823,28,FALSE)=\"-\"),1/0,VLOOKUP($A907,Economática!$A$3:$AI$823,28,FALSE)))","v":""},{"$f":"IF($A907=\"\",\"\",IF(OR(VLOOKUP($A907,Economática!$A$3:$AI$823,29,FALSE)=0,VLOOKUP($A907,Economática!$A$3:$AI$823,29,FALSE)=\"-\"),1/0,VLOOKUP($A907,Economática!$A$3:$AI$823,29,FALSE)))","v":""},{"$f":"IF($A907=\"\",\"\",IF(OR(VLOOKUP($A907,Economática!$A$3:$AI$823,30,FALSE)/E907=0,VLOOKUP($A907,Economática!$A$3:$AI$823,30,FALSE)/E907=\"-\",VLOOKUP($A907,Economática!$A$3:$AI$823,30,FALSE)/E907<33.33%,VLOOKUP($A907,Economática!$A$3:$AI$823,30,FALSE)/E907>100%),1/0,VLOOKUP($A907,Economática!$A$3:$AI$823,30,FALSE)/E907))","v":""},"",{"$f":"IF($A907=\"\",\"\",IF(OR(VLOOKUP($A907,Economática!$A$3:$AI$823,25,FALSE)=0,VLOOKUP($A907,Economática!$A$3:$AI$823,25,FALSE)=\"-\"),1/0,VLOOKUP($A907,Economática!$A$3:$AI$823,25,FALSE)))","v":""},{"$f":"CONCATENATE(Economática!B885,\" \",Economática!C885)","v":" "}]
[{"$f":"IF(Economática!AG886=\"\",\"\",Economática!AG886)","v":""},{"$f":"IF($A908=\"\",\"\",VLOOKUP(VLOOKUP($A908,Economática!$A$3:$AI$823,6,FALSE),Correção!$B$16:$C$36,2,FALSE))","v":""},{"$f":"IF(Economática!B886=\"\",\"\",Economática!B886)","v":""},{"$f":"IF($A908=\"\",\"\",IF(OR(VLOOKUP($A908,Economática!$A$3:$AI$823,8,FALSE)=0,VLOOKUP($A908,Economática!$A$3:$AI$823,8,FALSE)=\"-\"),1/0,VLOOKUP($A908,Economática!$A$3:$AI$823,8,FALSE)))","v":""},{"$f":"IF(A908=\"\",\"\",IF(ISERROR(VLOOKUP(A908,Correção!$B$2:$G$13,9,FALSE)),VLOOKUP($A908,Economática!$A$3:$AI$823,9,FALSE),VLOOKUP(A908,Correção!$B$2:$G$13,9,FALSE)))","v":""},{"$f":"IF($A908=\"\",\"\",Economática!G886)","v":""},{"$f":"IF($A908=\"\",\"\",IF(OR(VLOOKUP($A908,Economática!$A$3:$AI$823,10,FALSE)=0,VLOOKUP($A908,Economática!$A$3:$AI$823,10,FALSE)=\"-\"),1/0,VLOOKUP($A908,Economática!$A$3:$AI$823,10,FALSE)))","v":""},{"$f":"IF($A908=\"\",\"\",IF(OR(VLOOKUP($A908,Economática!$A$3:$AI$823,11,FALSE)=0,VLOOKUP($A908,Economática!$A$3:$AI$823,11,FALSE)=\"-\"),1/0,VLOOKUP($A908,Economática!$A$3:$AI$823,11,FALSE)))","v":""},{"$f":"IF($A908=\"\",\"\",IF(OR(VLOOKUP($A908,Economática!$A$3:$AI$823,12,FALSE)=0,VLOOKUP($A908,Economática!$A$3:$AI$823,12,FALSE)=\"-\"),1/0,VLOOKUP($A908,Economática!$A$3:$AI$823,12,FALSE)))","v":""},{"$f":"IF($A908=\"\",\"\",IF(OR(VLOOKUP($A908,Economática!$A$3:$AI$823,13,FALSE)=0,VLOOKUP($A908,Economática!$A$3:$AI$823,13,FALSE)=\"-\"),1/0,VLOOKUP($A908,Economática!$A$3:$AI$823,13,FALSE)))","v":""},{"$f":"IF($A908=\"\",\"\",IF(OR(VLOOKUP($A908,Economática!$A$3:$AI$823,14,FALSE)=0,VLOOKUP($A908,Economática!$A$3:$AI$823,14,FALSE)=\"-\"),1/0,VLOOKUP($A908,Economática!$A$3:$AI$823,14,FALSE)))","v":""},{"$f":"IF($A908=\"\",\"\",IF(OR(VLOOKUP($A908,Economática!$A$3:$AI$823,15,FALSE)=0,VLOOKUP($A908,Economática!$A$3:$AI$823,15,FALSE)=\"-\"),1/0,VLOOKUP($A908,Economática!$A$3:$AI$823,15,FALSE)))","v":""},{"$f":"IF($A908=\"\",\"\",IF(OR(VLOOKUP($A908,Economática!$A$3:$AI$823,16,FALSE)=0,VLOOKUP($A908,Economática!$A$3:$AI$823,16,FALSE)=\"-\"),1/0,VLOOKUP($A908,Economática!$A$3:$AI$823,16,FALSE)))","v":""},{"$f":"IF($A908=\"\",\"\",IF(OR(VLOOKUP($A908,Economática!$A$3:$AI$823,17,FALSE)=0,VLOOKUP($A908,Economática!$A$3:$AI$823,17,FALSE)=\"-\"),1/0,VLOOKUP($A908,Economática!$A$3:$AI$823,17,FALSE)))","v":""},{"$f":"IF($A908=\"\",\"\",IF(OR(VLOOKUP($A908,Economática!$A$3:$AI$823,18,FALSE)=0,VLOOKUP($A908,Economática!$A$3:$AI$823,18,FALSE)=\"-\"),1/0,VLOOKUP($A908,Economática!$A$3:$AI$823,18,FALSE)))","v":""},{"$f":"IF($A908=\"\",\"\",IF(OR(VLOOKUP($A908,Economática!$A$3:$AI$823,19,FALSE)=0,VLOOKUP($A908,Economática!$A$3:$AI$823,19,FALSE)=\"-\"),1/0,VLOOKUP($A908,Economática!$A$3:$AI$823,19,FALSE)))","v":""},{"$f":"IF($A908=\"\",\"\",VLOOKUP($A908,Economática!$A$3:$AI$823,20,FALSE)/E908)","v":""},"","","",{"$f":"IF($A908=\"\",\"\",IF(OR(VLOOKUP($A908,Economática!$A$3:$AI$823,21,FALSE)/100=0,VLOOKUP($A908,Economática!$A$3:$AI$823,21,FALSE)/100=\"-\"),1/0,VLOOKUP($A908,Economática!$A$3:$AI$823,21,FALSE)/100))","v":""},{"$f":"IF($A908=\"\",\"\",IF(OR(VLOOKUP($A908,Economática!$A$3:$AI$823,22,FALSE)/100=0,VLOOKUP($A908,Economática!$A$3:$AI$823,22,FALSE)/100=\"-\"),1/0,VLOOKUP($A908,Economática!$A$3:$AI$823,22,FALSE)/100))","v":""},{"$f":"IF($A908=\"\",\"\",IF(OR(VLOOKUP($A908,Economática!$A$3:$AI$823,23,FALSE)=0,VLOOKUP($A908,Economática!$A$3:$AI$823,23,FALSE)=\"-\"),1/0,VLOOKUP($A908,Economática!$A$3:$AI$823,23,FALSE)))","v":""},{"$f":"IF($A908=\"\",\"\",IF(OR(VLOOKUP($A908,Economática!$A$3:$AI$823,24,FALSE)=0,VLOOKUP($A908,Economática!$A$3:$AI$823,24,FALSE)=\"-\"),1/0,VLOOKUP($A908,Economática!$A$3:$AI$823,24,FALSE)))","v":""},{"$f":"IF($A908=\"\",\"\",IF(OR(VLOOKUP($A908,Economática!$A$3:$AI$823,25,FALSE)=0,VLOOKUP($A908,Economática!$A$3:$AI$823,25,FALSE)=\"-\"),1/0,VLOOKUP($A908,Economática!$A$3:$AI$823,25,FALSE)))","v":""},{"$f":"IF($A908=\"\",\"\",IF(ISERROR((F908+VLOOKUP($A908,Economática!$A$3:$AI$823,26,FALSE))/Y908),(F908+VLOOKUP($A908,Economática!$A$3:$AI$823,26,FALSE))/Y908,(F908+VLOOKUP($A908,Economática!$A$3:$AI$823,26,FALSE))/Y908))","v":""},{"$f":"IF($A908=\"\",\"\",IF(OR(-VLOOKUP($A908,Economática!$A$3:$AI$823,27,FALSE)=0,-VLOOKUP($A908,Economática!$A$3:$AI$823,27,FALSE)=\"-\"),1/0,-VLOOKUP($A908,Economática!$A$3:$AI$823,27,FALSE)))","v":""},"",{"$f":"IF($A908=\"\",\"\",IF(OR(VLOOKUP($A908,Economática!$A$3:$AI$823,28,FALSE)=0,VLOOKUP($A908,Economática!$A$3:$AI$823,28,FALSE)=\"-\"),1/0,VLOOKUP($A908,Economática!$A$3:$AI$823,28,FALSE)))","v":""},{"$f":"IF($A908=\"\",\"\",IF(OR(VLOOKUP($A908,Economática!$A$3:$AI$823,29,FALSE)=0,VLOOKUP($A908,Economática!$A$3:$AI$823,29,FALSE)=\"-\"),1/0,VLOOKUP($A908,Economática!$A$3:$AI$823,29,FALSE)))","v":""},{"$f":"IF($A908=\"\",\"\",IF(OR(VLOOKUP($A908,Economática!$A$3:$AI$823,30,FALSE)/E908=0,VLOOKUP($A908,Economática!$A$3:$AI$823,30,FALSE)/E908=\"-\",VLOOKUP($A908,Economática!$A$3:$AI$823,30,FALSE)/E908<33.33%,VLOOKUP($A908,Economática!$A$3:$AI$823,30,FALSE)/E908>100%),1/0,VLOOKUP($A908,Economática!$A$3:$AI$823,30,FALSE)/E908))","v":""},"",{"$f":"IF($A908=\"\",\"\",IF(OR(VLOOKUP($A908,Economática!$A$3:$AI$823,25,FALSE)=0,VLOOKUP($A908,Economática!$A$3:$AI$823,25,FALSE)=\"-\"),1/0,VLOOKUP($A908,Economática!$A$3:$AI$823,25,FALSE)))","v":""},{"$f":"CONCATENATE(Economática!B886,\" \",Economática!C886)","v":" "}]
[{"$f":"IF(Economática!AG887=\"\",\"\",Economática!AG887)","v":""},{"$f":"IF($A909=\"\",\"\",VLOOKUP(VLOOKUP($A909,Economática!$A$3:$AI$823,6,FALSE),Correção!$B$16:$C$36,2,FALSE))","v":""},{"$f":"IF(Economática!B887=\"\",\"\",Economática!B887)","v":""},{"$f":"IF($A909=\"\",\"\",IF(OR(VLOOKUP($A909,Economática!$A$3:$AI$823,8,FALSE)=0,VLOOKUP($A909,Economática!$A$3:$AI$823,8,FALSE)=\"-\"),1/0,VLOOKUP($A909,Economática!$A$3:$AI$823,8,FALSE)))","v":""},{"$f":"IF(A909=\"\",\"\",IF(ISERROR(VLOOKUP(A909,Correção!$B$2:$G$13,9,FALSE)),VLOOKUP($A909,Economática!$A$3:$AI$823,9,FALSE),VLOOKUP(A909,Correção!$B$2:$G$13,9,FALSE)))","v":""},{"$f":"IF($A909=\"\",\"\",Economática!G887)","v":""},{"$f":"IF($A909=\"\",\"\",IF(OR(VLOOKUP($A909,Economática!$A$3:$AI$823,10,FALSE)=0,VLOOKUP($A909,Economática!$A$3:$AI$823,10,FALSE)=\"-\"),1/0,VLOOKUP($A909,Economática!$A$3:$AI$823,10,FALSE)))","v":""},{"$f":"IF($A909=\"\",\"\",IF(OR(VLOOKUP($A909,Economática!$A$3:$AI$823,11,FALSE)=0,VLOOKUP($A909,Economática!$A$3:$AI$823,11,FALSE)=\"-\"),1/0,VLOOKUP($A909,Economática!$A$3:$AI$823,11,FALSE)))","v":""},{"$f":"IF($A909=\"\",\"\",IF(OR(VLOOKUP($A909,Economática!$A$3:$AI$823,12,FALSE)=0,VLOOKUP($A909,Economática!$A$3:$AI$823,12,FALSE)=\"-\"),1/0,VLOOKUP($A909,Economática!$A$3:$AI$823,12,FALSE)))","v":""},{"$f":"IF($A909=\"\",\"\",IF(OR(VLOOKUP($A909,Economática!$A$3:$AI$823,13,FALSE)=0,VLOOKUP($A909,Economática!$A$3:$AI$823,13,FALSE)=\"-\"),1/0,VLOOKUP($A909,Economática!$A$3:$AI$823,13,FALSE)))","v":""},{"$f":"IF($A909=\"\",\"\",IF(OR(VLOOKUP($A909,Economática!$A$3:$AI$823,14,FALSE)=0,VLOOKUP($A909,Economática!$A$3:$AI$823,14,FALSE)=\"-\"),1/0,VLOOKUP($A909,Economática!$A$3:$AI$823,14,FALSE)))","v":""},{"$f":"IF($A909=\"\",\"\",IF(OR(VLOOKUP($A909,Economática!$A$3:$AI$823,15,FALSE)=0,VLOOKUP($A909,Economática!$A$3:$AI$823,15,FALSE)=\"-\"),1/0,VLOOKUP($A909,Economática!$A$3:$AI$823,15,FALSE)))","v":""},{"$f":"IF($A909=\"\",\"\",IF(OR(VLOOKUP($A909,Economática!$A$3:$AI$823,16,FALSE)=0,VLOOKUP($A909,Economática!$A$3:$AI$823,16,FALSE)=\"-\"),1/0,VLOOKUP($A909,Economática!$A$3:$AI$823,16,FALSE)))","v":""},{"$f":"IF($A909=\"\",\"\",IF(OR(VLOOKUP($A909,Economática!$A$3:$AI$823,17,FALSE)=0,VLOOKUP($A909,Economática!$A$3:$AI$823,17,FALSE)=\"-\"),1/0,VLOOKUP($A909,Economática!$A$3:$AI$823,17,FALSE)))","v":""},{"$f":"IF($A909=\"\",\"\",IF(OR(VLOOKUP($A909,Economática!$A$3:$AI$823,18,FALSE)=0,VLOOKUP($A909,Economática!$A$3:$AI$823,18,FALSE)=\"-\"),1/0,VLOOKUP($A909,Economática!$A$3:$AI$823,18,FALSE)))","v":""},{"$f":"IF($A909=\"\",\"\",IF(OR(VLOOKUP($A909,Economática!$A$3:$AI$823,19,FALSE)=0,VLOOKUP($A909,Economática!$A$3:$AI$823,19,FALSE)=\"-\"),1/0,VLOOKUP($A909,Economática!$A$3:$AI$823,19,FALSE)))","v":""},{"$f":"IF($A909=\"\",\"\",VLOOKUP($A909,Economática!$A$3:$AI$823,20,FALSE)/E909)","v":""},"","","",{"$f":"IF($A909=\"\",\"\",IF(OR(VLOOKUP($A909,Economática!$A$3:$AI$823,21,FALSE)/100=0,VLOOKUP($A909,Economática!$A$3:$AI$823,21,FALSE)/100=\"-\"),1/0,VLOOKUP($A909,Economática!$A$3:$AI$823,21,FALSE)/100))","v":""},{"$f":"IF($A909=\"\",\"\",IF(OR(VLOOKUP($A909,Economática!$A$3:$AI$823,22,FALSE)/100=0,VLOOKUP($A909,Economática!$A$3:$AI$823,22,FALSE)/100=\"-\"),1/0,VLOOKUP($A909,Economática!$A$3:$AI$823,22,FALSE)/100))","v":""},{"$f":"IF($A909=\"\",\"\",IF(OR(VLOOKUP($A909,Economática!$A$3:$AI$823,23,FALSE)=0,VLOOKUP($A909,Economática!$A$3:$AI$823,23,FALSE)=\"-\"),1/0,VLOOKUP($A909,Economática!$A$3:$AI$823,23,FALSE)))","v":""},{"$f":"IF($A909=\"\",\"\",IF(OR(VLOOKUP($A909,Economática!$A$3:$AI$823,24,FALSE)=0,VLOOKUP($A909,Economática!$A$3:$AI$823,24,FALSE)=\"-\"),1/0,VLOOKUP($A909,Economática!$A$3:$AI$823,24,FALSE)))","v":""},{"$f":"IF($A909=\"\",\"\",IF(OR(VLOOKUP($A909,Economática!$A$3:$AI$823,25,FALSE)=0,VLOOKUP($A909,Economática!$A$3:$AI$823,25,FALSE)=\"-\"),1/0,VLOOKUP($A909,Economática!$A$3:$AI$823,25,FALSE)))","v":""},{"$f":"IF($A909=\"\",\"\",IF(ISERROR((F909+VLOOKUP($A909,Economática!$A$3:$AI$823,26,FALSE))/Y909),(F909+VLOOKUP($A909,Economática!$A$3:$AI$823,26,FALSE))/Y909,(F909+VLOOKUP($A909,Economática!$A$3:$AI$823,26,FALSE))/Y909))","v":""},{"$f":"IF($A909=\"\",\"\",IF(OR(-VLOOKUP($A909,Economática!$A$3:$AI$823,27,FALSE)=0,-VLOOKUP($A909,Economática!$A$3:$AI$823,27,FALSE)=\"-\"),1/0,-VLOOKUP($A909,Economática!$A$3:$AI$823,27,FALSE)))","v":""},"",{"$f":"IF($A909=\"\",\"\",IF(OR(VLOOKUP($A909,Economática!$A$3:$AI$823,28,FALSE)=0,VLOOKUP($A909,Economática!$A$3:$AI$823,28,FALSE)=\"-\"),1/0,VLOOKUP($A909,Economática!$A$3:$AI$823,28,FALSE)))","v":""},{"$f":"IF($A909=\"\",\"\",IF(OR(VLOOKUP($A909,Economática!$A$3:$AI$823,29,FALSE)=0,VLOOKUP($A909,Economática!$A$3:$AI$823,29,FALSE)=\"-\"),1/0,VLOOKUP($A909,Economática!$A$3:$AI$823,29,FALSE)))","v":""},{"$f":"IF($A909=\"\",\"\",IF(OR(VLOOKUP($A909,Economática!$A$3:$AI$823,30,FALSE)/E909=0,VLOOKUP($A909,Economática!$A$3:$AI$823,30,FALSE)/E909=\"-\",VLOOKUP($A909,Economática!$A$3:$AI$823,30,FALSE)/E909<33.33%,VLOOKUP($A909,Economática!$A$3:$AI$823,30,FALSE)/E909>100%),1/0,VLOOKUP($A909,Economática!$A$3:$AI$823,30,FALSE)/E909))","v":""},"",{"$f":"IF($A909=\"\",\"\",IF(OR(VLOOKUP($A909,Economática!$A$3:$AI$823,25,FALSE)=0,VLOOKUP($A909,Economática!$A$3:$AI$823,25,FALSE)=\"-\"),1/0,VLOOKUP($A909,Economática!$A$3:$AI$823,25,FALSE)))","v":""},{"$f":"CONCATENATE(Economática!B887,\" \",Economática!C887)","v":" "}]
[{"$f":"IF(Economática!AG888=\"\",\"\",Economática!AG888)","v":""},{"$f":"IF($A910=\"\",\"\",VLOOKUP(VLOOKUP($A910,Economática!$A$3:$AI$823,6,FALSE),Correção!$B$16:$C$36,2,FALSE))","v":""},{"$f":"IF(Economática!B888=\"\",\"\",Economática!B888)","v":""},{"$f":"IF($A910=\"\",\"\",IF(OR(VLOOKUP($A910,Economática!$A$3:$AI$823,8,FALSE)=0,VLOOKUP($A910,Economática!$A$3:$AI$823,8,FALSE)=\"-\"),1/0,VLOOKUP($A910,Economática!$A$3:$AI$823,8,FALSE)))","v":""},{"$f":"IF(A910=\"\",\"\",IF(ISERROR(VLOOKUP(A910,Correção!$B$2:$G$13,9,FALSE)),VLOOKUP($A910,Economática!$A$3:$AI$823,9,FALSE),VLOOKUP(A910,Correção!$B$2:$G$13,9,FALSE)))","v":""},{"$f":"IF($A910=\"\",\"\",Economática!G888)","v":""},{"$f":"IF($A910=\"\",\"\",IF(OR(VLOOKUP($A910,Economática!$A$3:$AI$823,10,FALSE)=0,VLOOKUP($A910,Economática!$A$3:$AI$823,10,FALSE)=\"-\"),1/0,VLOOKUP($A910,Economática!$A$3:$AI$823,10,FALSE)))","v":""},{"$f":"IF($A910=\"\",\"\",IF(OR(VLOOKUP($A910,Economática!$A$3:$AI$823,11,FALSE)=0,VLOOKUP($A910,Economática!$A$3:$AI$823,11,FALSE)=\"-\"),1/0,VLOOKUP($A910,Economática!$A$3:$AI$823,11,FALSE)))","v":""},{"$f":"IF($A910=\"\",\"\",IF(OR(VLOOKUP($A910,Economática!$A$3:$AI$823,12,FALSE)=0,VLOOKUP($A910,Economática!$A$3:$AI$823,12,FALSE)=\"-\"),1/0,VLOOKUP($A910,Economática!$A$3:$AI$823,12,FALSE)))","v":""},{"$f":"IF($A910=\"\",\"\",IF(OR(VLOOKUP($A910,Economática!$A$3:$AI$823,13,FALSE)=0,VLOOKUP($A910,Economática!$A$3:$AI$823,13,FALSE)=\"-\"),1/0,VLOOKUP($A910,Economática!$A$3:$AI$823,13,FALSE)))","v":""},{"$f":"IF($A910=\"\",\"\",IF(OR(VLOOKUP($A910,Economática!$A$3:$AI$823,14,FALSE)=0,VLOOKUP($A910,Economática!$A$3:$AI$823,14,FALSE)=\"-\"),1/0,VLOOKUP($A910,Economática!$A$3:$AI$823,14,FALSE)))","v":""},{"$f":"IF($A910=\"\",\"\",IF(OR(VLOOKUP($A910,Economática!$A$3:$AI$823,15,FALSE)=0,VLOOKUP($A910,Economática!$A$3:$AI$823,15,FALSE)=\"-\"),1/0,VLOOKUP($A910,Economática!$A$3:$AI$823,15,FALSE)))","v":""},{"$f":"IF($A910=\"\",\"\",IF(OR(VLOOKUP($A910,Economática!$A$3:$AI$823,16,FALSE)=0,VLOOKUP($A910,Economática!$A$3:$AI$823,16,FALSE)=\"-\"),1/0,VLOOKUP($A910,Economática!$A$3:$AI$823,16,FALSE)))","v":""},{"$f":"IF($A910=\"\",\"\",IF(OR(VLOOKUP($A910,Economática!$A$3:$AI$823,17,FALSE)=0,VLOOKUP($A910,Economática!$A$3:$AI$823,17,FALSE)=\"-\"),1/0,VLOOKUP($A910,Economática!$A$3:$AI$823,17,FALSE)))","v":""},{"$f":"IF($A910=\"\",\"\",IF(OR(VLOOKUP($A910,Economática!$A$3:$AI$823,18,FALSE)=0,VLOOKUP($A910,Economática!$A$3:$AI$823,18,FALSE)=\"-\"),1/0,VLOOKUP($A910,Economática!$A$3:$AI$823,18,FALSE)))","v":""},{"$f":"IF($A910=\"\",\"\",IF(OR(VLOOKUP($A910,Economática!$A$3:$AI$823,19,FALSE)=0,VLOOKUP($A910,Economática!$A$3:$AI$823,19,FALSE)=\"-\"),1/0,VLOOKUP($A910,Economática!$A$3:$AI$823,19,FALSE)))","v":""},{"$f":"IF($A910=\"\",\"\",VLOOKUP($A910,Economática!$A$3:$AI$823,20,FALSE)/E910)","v":""},"","","",{"$f":"IF($A910=\"\",\"\",IF(OR(VLOOKUP($A910,Economática!$A$3:$AI$823,21,FALSE)/100=0,VLOOKUP($A910,Economática!$A$3:$AI$823,21,FALSE)/100=\"-\"),1/0,VLOOKUP($A910,Economática!$A$3:$AI$823,21,FALSE)/100))","v":""},{"$f":"IF($A910=\"\",\"\",IF(OR(VLOOKUP($A910,Economática!$A$3:$AI$823,22,FALSE)/100=0,VLOOKUP($A910,Economática!$A$3:$AI$823,22,FALSE)/100=\"-\"),1/0,VLOOKUP($A910,Economática!$A$3:$AI$823,22,FALSE)/100))","v":""},{"$f":"IF($A910=\"\",\"\",IF(OR(VLOOKUP($A910,Economática!$A$3:$AI$823,23,FALSE)=0,VLOOKUP($A910,Economática!$A$3:$AI$823,23,FALSE)=\"-\"),1/0,VLOOKUP($A910,Economática!$A$3:$AI$823,23,FALSE)))","v":""},{"$f":"IF($A910=\"\",\"\",IF(OR(VLOOKUP($A910,Economática!$A$3:$AI$823,24,FALSE)=0,VLOOKUP($A910,Economática!$A$3:$AI$823,24,FALSE)=\"-\"),1/0,VLOOKUP($A910,Economática!$A$3:$AI$823,24,FALSE)))","v":""},{"$f":"IF($A910=\"\",\"\",IF(OR(VLOOKUP($A910,Economática!$A$3:$AI$823,25,FALSE)=0,VLOOKUP($A910,Economática!$A$3:$AI$823,25,FALSE)=\"-\"),1/0,VLOOKUP($A910,Economática!$A$3:$AI$823,25,FALSE)))","v":""},{"$f":"IF($A910=\"\",\"\",IF(ISERROR((F910+VLOOKUP($A910,Economática!$A$3:$AI$823,26,FALSE))/Y910),(F910+VLOOKUP($A910,Economática!$A$3:$AI$823,26,FALSE))/Y910,(F910+VLOOKUP($A910,Economática!$A$3:$AI$823,26,FALSE))/Y910))","v":""},{"$f":"IF($A910=\"\",\"\",IF(OR(-VLOOKUP($A910,Economática!$A$3:$AI$823,27,FALSE)=0,-VLOOKUP($A910,Economática!$A$3:$AI$823,27,FALSE)=\"-\"),1/0,-VLOOKUP($A910,Economática!$A$3:$AI$823,27,FALSE)))","v":""},"",{"$f":"IF($A910=\"\",\"\",IF(OR(VLOOKUP($A910,Economática!$A$3:$AI$823,28,FALSE)=0,VLOOKUP($A910,Economática!$A$3:$AI$823,28,FALSE)=\"-\"),1/0,VLOOKUP($A910,Economática!$A$3:$AI$823,28,FALSE)))","v":""},{"$f":"IF($A910=\"\",\"\",IF(OR(VLOOKUP($A910,Economática!$A$3:$AI$823,29,FALSE)=0,VLOOKUP($A910,Economática!$A$3:$AI$823,29,FALSE)=\"-\"),1/0,VLOOKUP($A910,Economática!$A$3:$AI$823,29,FALSE)))","v":""},{"$f":"IF($A910=\"\",\"\",IF(OR(VLOOKUP($A910,Economática!$A$3:$AI$823,30,FALSE)/E910=0,VLOOKUP($A910,Economática!$A$3:$AI$823,30,FALSE)/E910=\"-\",VLOOKUP($A910,Economática!$A$3:$AI$823,30,FALSE)/E910<33.33%,VLOOKUP($A910,Economática!$A$3:$AI$823,30,FALSE)/E910>100%),1/0,VLOOKUP($A910,Economática!$A$3:$AI$823,30,FALSE)/E910))","v":""},"",{"$f":"IF($A910=\"\",\"\",IF(OR(VLOOKUP($A910,Economática!$A$3:$AI$823,25,FALSE)=0,VLOOKUP($A910,Economática!$A$3:$AI$823,25,FALSE)=\"-\"),1/0,VLOOKUP($A910,Economática!$A$3:$AI$823,25,FALSE)))","v":""},{"$f":"CONCATENATE(Economática!B888,\" \",Economática!C888)","v":" "}]
[{"$f":"IF(Economática!AG889=\"\",\"\",Economática!AG889)","v":""},{"$f":"IF($A911=\"\",\"\",VLOOKUP(VLOOKUP($A911,Economática!$A$3:$AI$823,6,FALSE),Correção!$B$16:$C$36,2,FALSE))","v":""},{"$f":"IF(Economática!B889=\"\",\"\",Economática!B889)","v":""},{"$f":"IF($A911=\"\",\"\",IF(OR(VLOOKUP($A911,Economática!$A$3:$AI$823,8,FALSE)=0,VLOOKUP($A911,Economática!$A$3:$AI$823,8,FALSE)=\"-\"),1/0,VLOOKUP($A911,Economática!$A$3:$AI$823,8,FALSE)))","v":""},{"$f":"IF(A911=\"\",\"\",IF(ISERROR(VLOOKUP(A911,Correção!$B$2:$G$13,9,FALSE)),VLOOKUP($A911,Economática!$A$3:$AI$823,9,FALSE),VLOOKUP(A911,Correção!$B$2:$G$13,9,FALSE)))","v":""},{"$f":"IF($A911=\"\",\"\",Economática!G889)","v":""},{"$f":"IF($A911=\"\",\"\",IF(OR(VLOOKUP($A911,Economática!$A$3:$AI$823,10,FALSE)=0,VLOOKUP($A911,Economática!$A$3:$AI$823,10,FALSE)=\"-\"),1/0,VLOOKUP($A911,Economática!$A$3:$AI$823,10,FALSE)))","v":""},{"$f":"IF($A911=\"\",\"\",IF(OR(VLOOKUP($A911,Economática!$A$3:$AI$823,11,FALSE)=0,VLOOKUP($A911,Economática!$A$3:$AI$823,11,FALSE)=\"-\"),1/0,VLOOKUP($A911,Economática!$A$3:$AI$823,11,FALSE)))","v":""},{"$f":"IF($A911=\"\",\"\",IF(OR(VLOOKUP($A911,Economática!$A$3:$AI$823,12,FALSE)=0,VLOOKUP($A911,Economática!$A$3:$AI$823,12,FALSE)=\"-\"),1/0,VLOOKUP($A911,Economática!$A$3:$AI$823,12,FALSE)))","v":""},{"$f":"IF($A911=\"\",\"\",IF(OR(VLOOKUP($A911,Economática!$A$3:$AI$823,13,FALSE)=0,VLOOKUP($A911,Economática!$A$3:$AI$823,13,FALSE)=\"-\"),1/0,VLOOKUP($A911,Economática!$A$3:$AI$823,13,FALSE)))","v":""},{"$f":"IF($A911=\"\",\"\",IF(OR(VLOOKUP($A911,Economática!$A$3:$AI$823,14,FALSE)=0,VLOOKUP($A911,Economática!$A$3:$AI$823,14,FALSE)=\"-\"),1/0,VLOOKUP($A911,Economática!$A$3:$AI$823,14,FALSE)))","v":""},{"$f":"IF($A911=\"\",\"\",IF(OR(VLOOKUP($A911,Economática!$A$3:$AI$823,15,FALSE)=0,VLOOKUP($A911,Economática!$A$3:$AI$823,15,FALSE)=\"-\"),1/0,VLOOKUP($A911,Economática!$A$3:$AI$823,15,FALSE)))","v":""},{"$f":"IF($A911=\"\",\"\",IF(OR(VLOOKUP($A911,Economática!$A$3:$AI$823,16,FALSE)=0,VLOOKUP($A911,Economática!$A$3:$AI$823,16,FALSE)=\"-\"),1/0,VLOOKUP($A911,Economática!$A$3:$AI$823,16,FALSE)))","v":""},{"$f":"IF($A911=\"\",\"\",IF(OR(VLOOKUP($A911,Economática!$A$3:$AI$823,17,FALSE)=0,VLOOKUP($A911,Economática!$A$3:$AI$823,17,FALSE)=\"-\"),1/0,VLOOKUP($A911,Economática!$A$3:$AI$823,17,FALSE)))","v":""},{"$f":"IF($A911=\"\",\"\",IF(OR(VLOOKUP($A911,Economática!$A$3:$AI$823,18,FALSE)=0,VLOOKUP($A911,Economática!$A$3:$AI$823,18,FALSE)=\"-\"),1/0,VLOOKUP($A911,Economática!$A$3:$AI$823,18,FALSE)))","v":""},{"$f":"IF($A911=\"\",\"\",IF(OR(VLOOKUP($A911,Economática!$A$3:$AI$823,19,FALSE)=0,VLOOKUP($A911,Economática!$A$3:$AI$823,19,FALSE)=\"-\"),1/0,VLOOKUP($A911,Economática!$A$3:$AI$823,19,FALSE)))","v":""},{"$f":"IF($A911=\"\",\"\",VLOOKUP($A911,Economática!$A$3:$AI$823,20,FALSE)/E911)","v":""},"","","",{"$f":"IF($A911=\"\",\"\",IF(OR(VLOOKUP($A911,Economática!$A$3:$AI$823,21,FALSE)/100=0,VLOOKUP($A911,Economática!$A$3:$AI$823,21,FALSE)/100=\"-\"),1/0,VLOOKUP($A911,Economática!$A$3:$AI$823,21,FALSE)/100))","v":""},{"$f":"IF($A911=\"\",\"\",IF(OR(VLOOKUP($A911,Economática!$A$3:$AI$823,22,FALSE)/100=0,VLOOKUP($A911,Economática!$A$3:$AI$823,22,FALSE)/100=\"-\"),1/0,VLOOKUP($A911,Economática!$A$3:$AI$823,22,FALSE)/100))","v":""},{"$f":"IF($A911=\"\",\"\",IF(OR(VLOOKUP($A911,Economática!$A$3:$AI$823,23,FALSE)=0,VLOOKUP($A911,Economática!$A$3:$AI$823,23,FALSE)=\"-\"),1/0,VLOOKUP($A911,Economática!$A$3:$AI$823,23,FALSE)))","v":""},{"$f":"IF($A911=\"\",\"\",IF(OR(VLOOKUP($A911,Economática!$A$3:$AI$823,24,FALSE)=0,VLOOKUP($A911,Economática!$A$3:$AI$823,24,FALSE)=\"-\"),1/0,VLOOKUP($A911,Economática!$A$3:$AI$823,24,FALSE)))","v":""},{"$f":"IF($A911=\"\",\"\",IF(OR(VLOOKUP($A911,Economática!$A$3:$AI$823,25,FALSE)=0,VLOOKUP($A911,Economática!$A$3:$AI$823,25,FALSE)=\"-\"),1/0,VLOOKUP($A911,Economática!$A$3:$AI$823,25,FALSE)))","v":""},{"$f":"IF($A911=\"\",\"\",IF(ISERROR((F911+VLOOKUP($A911,Economática!$A$3:$AI$823,26,FALSE))/Y911),(F911+VLOOKUP($A911,Economática!$A$3:$AI$823,26,FALSE))/Y911,(F911+VLOOKUP($A911,Economática!$A$3:$AI$823,26,FALSE))/Y911))","v":""},{"$f":"IF($A911=\"\",\"\",IF(OR(-VLOOKUP($A911,Economática!$A$3:$AI$823,27,FALSE)=0,-VLOOKUP($A911,Economática!$A$3:$AI$823,27,FALSE)=\"-\"),1/0,-VLOOKUP($A911,Economática!$A$3:$AI$823,27,FALSE)))","v":""},"",{"$f":"IF($A911=\"\",\"\",IF(OR(VLOOKUP($A911,Economática!$A$3:$AI$823,28,FALSE)=0,VLOOKUP($A911,Economática!$A$3:$AI$823,28,FALSE)=\"-\"),1/0,VLOOKUP($A911,Economática!$A$3:$AI$823,28,FALSE)))","v":""},{"$f":"IF($A911=\"\",\"\",IF(OR(VLOOKUP($A911,Economática!$A$3:$AI$823,29,FALSE)=0,VLOOKUP($A911,Economática!$A$3:$AI$823,29,FALSE)=\"-\"),1/0,VLOOKUP($A911,Economática!$A$3:$AI$823,29,FALSE)))","v":""},{"$f":"IF($A911=\"\",\"\",IF(OR(VLOOKUP($A911,Economática!$A$3:$AI$823,30,FALSE)/E911=0,VLOOKUP($A911,Economática!$A$3:$AI$823,30,FALSE)/E911=\"-\",VLOOKUP($A911,Economática!$A$3:$AI$823,30,FALSE)/E911<33.33%,VLOOKUP($A911,Economática!$A$3:$AI$823,30,FALSE)/E911>100%),1/0,VLOOKUP($A911,Economática!$A$3:$AI$823,30,FALSE)/E911))","v":""},"",{"$f":"IF($A911=\"\",\"\",IF(OR(VLOOKUP($A911,Economática!$A$3:$AI$823,25,FALSE)=0,VLOOKUP($A911,Economática!$A$3:$AI$823,25,FALSE)=\"-\"),1/0,VLOOKUP($A911,Economática!$A$3:$AI$823,25,FALSE)))","v":""},{"$f":"CONCATENATE(Economática!B889,\" \",Economática!C889)","v":" "}]
[{"$f":"IF(Economática!AG890=\"\",\"\",Economática!AG890)","v":""},{"$f":"IF($A912=\"\",\"\",VLOOKUP(VLOOKUP($A912,Economática!$A$3:$AI$823,6,FALSE),Correção!$B$16:$C$36,2,FALSE))","v":""},{"$f":"IF(Economática!B890=\"\",\"\",Economática!B890)","v":""},{"$f":"IF($A912=\"\",\"\",IF(OR(VLOOKUP($A912,Economática!$A$3:$AI$823,8,FALSE)=0,VLOOKUP($A912,Economática!$A$3:$AI$823,8,FALSE)=\"-\"),1/0,VLOOKUP($A912,Economática!$A$3:$AI$823,8,FALSE)))","v":""},{"$f":"IF(A912=\"\",\"\",IF(ISERROR(VLOOKUP(A912,Correção!$B$2:$G$13,9,FALSE)),VLOOKUP($A912,Economática!$A$3:$AI$823,9,FALSE),VLOOKUP(A912,Correção!$B$2:$G$13,9,FALSE)))","v":""},{"$f":"IF($A912=\"\",\"\",Economática!G890)","v":""},{"$f":"IF($A912=\"\",\"\",IF(OR(VLOOKUP($A912,Economática!$A$3:$AI$823,10,FALSE)=0,VLOOKUP($A912,Economática!$A$3:$AI$823,10,FALSE)=\"-\"),1/0,VLOOKUP($A912,Economática!$A$3:$AI$823,10,FALSE)))","v":""},{"$f":"IF($A912=\"\",\"\",IF(OR(VLOOKUP($A912,Economática!$A$3:$AI$823,11,FALSE)=0,VLOOKUP($A912,Economática!$A$3:$AI$823,11,FALSE)=\"-\"),1/0,VLOOKUP($A912,Economática!$A$3:$AI$823,11,FALSE)))","v":""},{"$f":"IF($A912=\"\",\"\",IF(OR(VLOOKUP($A912,Economática!$A$3:$AI$823,12,FALSE)=0,VLOOKUP($A912,Economática!$A$3:$AI$823,12,FALSE)=\"-\"),1/0,VLOOKUP($A912,Economática!$A$3:$AI$823,12,FALSE)))","v":""},{"$f":"IF($A912=\"\",\"\",IF(OR(VLOOKUP($A912,Economática!$A$3:$AI$823,13,FALSE)=0,VLOOKUP($A912,Economática!$A$3:$AI$823,13,FALSE)=\"-\"),1/0,VLOOKUP($A912,Economática!$A$3:$AI$823,13,FALSE)))","v":""},{"$f":"IF($A912=\"\",\"\",IF(OR(VLOOKUP($A912,Economática!$A$3:$AI$823,14,FALSE)=0,VLOOKUP($A912,Economática!$A$3:$AI$823,14,FALSE)=\"-\"),1/0,VLOOKUP($A912,Economática!$A$3:$AI$823,14,FALSE)))","v":""},{"$f":"IF($A912=\"\",\"\",IF(OR(VLOOKUP($A912,Economática!$A$3:$AI$823,15,FALSE)=0,VLOOKUP($A912,Economática!$A$3:$AI$823,15,FALSE)=\"-\"),1/0,VLOOKUP($A912,Economática!$A$3:$AI$823,15,FALSE)))","v":""},{"$f":"IF($A912=\"\",\"\",IF(OR(VLOOKUP($A912,Economática!$A$3:$AI$823,16,FALSE)=0,VLOOKUP($A912,Economática!$A$3:$AI$823,16,FALSE)=\"-\"),1/0,VLOOKUP($A912,Economática!$A$3:$AI$823,16,FALSE)))","v":""},{"$f":"IF($A912=\"\",\"\",IF(OR(VLOOKUP($A912,Economática!$A$3:$AI$823,17,FALSE)=0,VLOOKUP($A912,Economática!$A$3:$AI$823,17,FALSE)=\"-\"),1/0,VLOOKUP($A912,Economática!$A$3:$AI$823,17,FALSE)))","v":""},{"$f":"IF($A912=\"\",\"\",IF(OR(VLOOKUP($A912,Economática!$A$3:$AI$823,18,FALSE)=0,VLOOKUP($A912,Economática!$A$3:$AI$823,18,FALSE)=\"-\"),1/0,VLOOKUP($A912,Economática!$A$3:$AI$823,18,FALSE)))","v":""},{"$f":"IF($A912=\"\",\"\",IF(OR(VLOOKUP($A912,Economática!$A$3:$AI$823,19,FALSE)=0,VLOOKUP($A912,Economática!$A$3:$AI$823,19,FALSE)=\"-\"),1/0,VLOOKUP($A912,Economática!$A$3:$AI$823,19,FALSE)))","v":""},{"$f":"IF($A912=\"\",\"\",VLOOKUP($A912,Economática!$A$3:$AI$823,20,FALSE)/E912)","v":""},"","","",{"$f":"IF($A912=\"\",\"\",IF(OR(VLOOKUP($A912,Economática!$A$3:$AI$823,21,FALSE)/100=0,VLOOKUP($A912,Economática!$A$3:$AI$823,21,FALSE)/100=\"-\"),1/0,VLOOKUP($A912,Economática!$A$3:$AI$823,21,FALSE)/100))","v":""},{"$f":"IF($A912=\"\",\"\",IF(OR(VLOOKUP($A912,Economática!$A$3:$AI$823,22,FALSE)/100=0,VLOOKUP($A912,Economática!$A$3:$AI$823,22,FALSE)/100=\"-\"),1/0,VLOOKUP($A912,Economática!$A$3:$AI$823,22,FALSE)/100))","v":""},{"$f":"IF($A912=\"\",\"\",IF(OR(VLOOKUP($A912,Economática!$A$3:$AI$823,23,FALSE)=0,VLOOKUP($A912,Economática!$A$3:$AI$823,23,FALSE)=\"-\"),1/0,VLOOKUP($A912,Economática!$A$3:$AI$823,23,FALSE)))","v":""},{"$f":"IF($A912=\"\",\"\",IF(OR(VLOOKUP($A912,Economática!$A$3:$AI$823,24,FALSE)=0,VLOOKUP($A912,Economática!$A$3:$AI$823,24,FALSE)=\"-\"),1/0,VLOOKUP($A912,Economática!$A$3:$AI$823,24,FALSE)))","v":""},{"$f":"IF($A912=\"\",\"\",IF(OR(VLOOKUP($A912,Economática!$A$3:$AI$823,25,FALSE)=0,VLOOKUP($A912,Economática!$A$3:$AI$823,25,FALSE)=\"-\"),1/0,VLOOKUP($A912,Economática!$A$3:$AI$823,25,FALSE)))","v":""},{"$f":"IF($A912=\"\",\"\",IF(ISERROR((F912+VLOOKUP($A912,Economática!$A$3:$AI$823,26,FALSE))/Y912),(F912+VLOOKUP($A912,Economática!$A$3:$AI$823,26,FALSE))/Y912,(F912+VLOOKUP($A912,Economática!$A$3:$AI$823,26,FALSE))/Y912))","v":""},{"$f":"IF($A912=\"\",\"\",IF(OR(-VLOOKUP($A912,Economática!$A$3:$AI$823,27,FALSE)=0,-VLOOKUP($A912,Economática!$A$3:$AI$823,27,FALSE)=\"-\"),1/0,-VLOOKUP($A912,Economática!$A$3:$AI$823,27,FALSE)))","v":""},"",{"$f":"IF($A912=\"\",\"\",IF(OR(VLOOKUP($A912,Economática!$A$3:$AI$823,28,FALSE)=0,VLOOKUP($A912,Economática!$A$3:$AI$823,28,FALSE)=\"-\"),1/0,VLOOKUP($A912,Economática!$A$3:$AI$823,28,FALSE)))","v":""},{"$f":"IF($A912=\"\",\"\",IF(OR(VLOOKUP($A912,Economática!$A$3:$AI$823,29,FALSE)=0,VLOOKUP($A912,Economática!$A$3:$AI$823,29,FALSE)=\"-\"),1/0,VLOOKUP($A912,Economática!$A$3:$AI$823,29,FALSE)))","v":""},{"$f":"IF($A912=\"\",\"\",IF(OR(VLOOKUP($A912,Economática!$A$3:$AI$823,30,FALSE)/E912=0,VLOOKUP($A912,Economática!$A$3:$AI$823,30,FALSE)/E912=\"-\",VLOOKUP($A912,Economática!$A$3:$AI$823,30,FALSE)/E912<33.33%,VLOOKUP($A912,Economática!$A$3:$AI$823,30,FALSE)/E912>100%),1/0,VLOOKUP($A912,Economática!$A$3:$AI$823,30,FALSE)/E912))","v":""},"",{"$f":"IF($A912=\"\",\"\",IF(OR(VLOOKUP($A912,Economática!$A$3:$AI$823,25,FALSE)=0,VLOOKUP($A912,Economática!$A$3:$AI$823,25,FALSE)=\"-\"),1/0,VLOOKUP($A912,Economática!$A$3:$AI$823,25,FALSE)))","v":""},{"$f":"CONCATENATE(Economática!B890,\" \",Economática!C890)","v":" "}]
[{"$f":"IF(Economática!AG891=\"\",\"\",Economática!AG891)","v":""},{"$f":"IF($A913=\"\",\"\",VLOOKUP(VLOOKUP($A913,Economática!$A$3:$AI$823,6,FALSE),Correção!$B$16:$C$36,2,FALSE))","v":""},{"$f":"IF(Economática!B891=\"\",\"\",Economática!B891)","v":""},{"$f":"IF($A913=\"\",\"\",IF(OR(VLOOKUP($A913,Economática!$A$3:$AI$823,8,FALSE)=0,VLOOKUP($A913,Economática!$A$3:$AI$823,8,FALSE)=\"-\"),1/0,VLOOKUP($A913,Economática!$A$3:$AI$823,8,FALSE)))","v":""},{"$f":"IF(A913=\"\",\"\",IF(ISERROR(VLOOKUP(A913,Correção!$B$2:$G$13,9,FALSE)),VLOOKUP($A913,Economática!$A$3:$AI$823,9,FALSE),VLOOKUP(A913,Correção!$B$2:$G$13,9,FALSE)))","v":""},{"$f":"IF($A913=\"\",\"\",Economática!G891)","v":""},{"$f":"IF($A913=\"\",\"\",IF(OR(VLOOKUP($A913,Economática!$A$3:$AI$823,10,FALSE)=0,VLOOKUP($A913,Economática!$A$3:$AI$823,10,FALSE)=\"-\"),1/0,VLOOKUP($A913,Economática!$A$3:$AI$823,10,FALSE)))","v":""},{"$f":"IF($A913=\"\",\"\",IF(OR(VLOOKUP($A913,Economática!$A$3:$AI$823,11,FALSE)=0,VLOOKUP($A913,Economática!$A$3:$AI$823,11,FALSE)=\"-\"),1/0,VLOOKUP($A913,Economática!$A$3:$AI$823,11,FALSE)))","v":""},{"$f":"IF($A913=\"\",\"\",IF(OR(VLOOKUP($A913,Economática!$A$3:$AI$823,12,FALSE)=0,VLOOKUP($A913,Economática!$A$3:$AI$823,12,FALSE)=\"-\"),1/0,VLOOKUP($A913,Economática!$A$3:$AI$823,12,FALSE)))","v":""},{"$f":"IF($A913=\"\",\"\",IF(OR(VLOOKUP($A913,Economática!$A$3:$AI$823,13,FALSE)=0,VLOOKUP($A913,Economática!$A$3:$AI$823,13,FALSE)=\"-\"),1/0,VLOOKUP($A913,Economática!$A$3:$AI$823,13,FALSE)))","v":""},{"$f":"IF($A913=\"\",\"\",IF(OR(VLOOKUP($A913,Economática!$A$3:$AI$823,14,FALSE)=0,VLOOKUP($A913,Economática!$A$3:$AI$823,14,FALSE)=\"-\"),1/0,VLOOKUP($A913,Economática!$A$3:$AI$823,14,FALSE)))","v":""},{"$f":"IF($A913=\"\",\"\",IF(OR(VLOOKUP($A913,Economática!$A$3:$AI$823,15,FALSE)=0,VLOOKUP($A913,Economática!$A$3:$AI$823,15,FALSE)=\"-\"),1/0,VLOOKUP($A913,Economática!$A$3:$AI$823,15,FALSE)))","v":""},{"$f":"IF($A913=\"\",\"\",IF(OR(VLOOKUP($A913,Economática!$A$3:$AI$823,16,FALSE)=0,VLOOKUP($A913,Economática!$A$3:$AI$823,16,FALSE)=\"-\"),1/0,VLOOKUP($A913,Economática!$A$3:$AI$823,16,FALSE)))","v":""},{"$f":"IF($A913=\"\",\"\",IF(OR(VLOOKUP($A913,Economática!$A$3:$AI$823,17,FALSE)=0,VLOOKUP($A913,Economática!$A$3:$AI$823,17,FALSE)=\"-\"),1/0,VLOOKUP($A913,Economática!$A$3:$AI$823,17,FALSE)))","v":""},{"$f":"IF($A913=\"\",\"\",IF(OR(VLOOKUP($A913,Economática!$A$3:$AI$823,18,FALSE)=0,VLOOKUP($A913,Economática!$A$3:$AI$823,18,FALSE)=\"-\"),1/0,VLOOKUP($A913,Economática!$A$3:$AI$823,18,FALSE)))","v":""},{"$f":"IF($A913=\"\",\"\",IF(OR(VLOOKUP($A913,Economática!$A$3:$AI$823,19,FALSE)=0,VLOOKUP($A913,Economática!$A$3:$AI$823,19,FALSE)=\"-\"),1/0,VLOOKUP($A913,Economática!$A$3:$AI$823,19,FALSE)))","v":""},{"$f":"IF($A913=\"\",\"\",VLOOKUP($A913,Economática!$A$3:$AI$823,20,FALSE)/E913)","v":""},"","","",{"$f":"IF($A913=\"\",\"\",IF(OR(VLOOKUP($A913,Economática!$A$3:$AI$823,21,FALSE)/100=0,VLOOKUP($A913,Economática!$A$3:$AI$823,21,FALSE)/100=\"-\"),1/0,VLOOKUP($A913,Economática!$A$3:$AI$823,21,FALSE)/100))","v":""},{"$f":"IF($A913=\"\",\"\",IF(OR(VLOOKUP($A913,Economática!$A$3:$AI$823,22,FALSE)/100=0,VLOOKUP($A913,Economática!$A$3:$AI$823,22,FALSE)/100=\"-\"),1/0,VLOOKUP($A913,Economática!$A$3:$AI$823,22,FALSE)/100))","v":""},{"$f":"IF($A913=\"\",\"\",IF(OR(VLOOKUP($A913,Economática!$A$3:$AI$823,23,FALSE)=0,VLOOKUP($A913,Economática!$A$3:$AI$823,23,FALSE)=\"-\"),1/0,VLOOKUP($A913,Economática!$A$3:$AI$823,23,FALSE)))","v":""},{"$f":"IF($A913=\"\",\"\",IF(OR(VLOOKUP($A913,Economática!$A$3:$AI$823,24,FALSE)=0,VLOOKUP($A913,Economática!$A$3:$AI$823,24,FALSE)=\"-\"),1/0,VLOOKUP($A913,Economática!$A$3:$AI$823,24,FALSE)))","v":""},{"$f":"IF($A913=\"\",\"\",IF(OR(VLOOKUP($A913,Economática!$A$3:$AI$823,25,FALSE)=0,VLOOKUP($A913,Economática!$A$3:$AI$823,25,FALSE)=\"-\"),1/0,VLOOKUP($A913,Economática!$A$3:$AI$823,25,FALSE)))","v":""},{"$f":"IF($A913=\"\",\"\",IF(ISERROR((F913+VLOOKUP($A913,Economática!$A$3:$AI$823,26,FALSE))/Y913),(F913+VLOOKUP($A913,Economática!$A$3:$AI$823,26,FALSE))/Y913,(F913+VLOOKUP($A913,Economática!$A$3:$AI$823,26,FALSE))/Y913))","v":""},{"$f":"IF($A913=\"\",\"\",IF(OR(-VLOOKUP($A913,Economática!$A$3:$AI$823,27,FALSE)=0,-VLOOKUP($A913,Economática!$A$3:$AI$823,27,FALSE)=\"-\"),1/0,-VLOOKUP($A913,Economática!$A$3:$AI$823,27,FALSE)))","v":""},"",{"$f":"IF($A913=\"\",\"\",IF(OR(VLOOKUP($A913,Economática!$A$3:$AI$823,28,FALSE)=0,VLOOKUP($A913,Economática!$A$3:$AI$823,28,FALSE)=\"-\"),1/0,VLOOKUP($A913,Economática!$A$3:$AI$823,28,FALSE)))","v":""},{"$f":"IF($A913=\"\",\"\",IF(OR(VLOOKUP($A913,Economática!$A$3:$AI$823,29,FALSE)=0,VLOOKUP($A913,Economática!$A$3:$AI$823,29,FALSE)=\"-\"),1/0,VLOOKUP($A913,Economática!$A$3:$AI$823,29,FALSE)))","v":""},{"$f":"IF($A913=\"\",\"\",IF(OR(VLOOKUP($A913,Economática!$A$3:$AI$823,30,FALSE)/E913=0,VLOOKUP($A913,Economática!$A$3:$AI$823,30,FALSE)/E913=\"-\",VLOOKUP($A913,Economática!$A$3:$AI$823,30,FALSE)/E913<33.33%,VLOOKUP($A913,Economática!$A$3:$AI$823,30,FALSE)/E913>100%),1/0,VLOOKUP($A913,Economática!$A$3:$AI$823,30,FALSE)/E913))","v":""},"",{"$f":"IF($A913=\"\",\"\",IF(OR(VLOOKUP($A913,Economática!$A$3:$AI$823,25,FALSE)=0,VLOOKUP($A913,Economática!$A$3:$AI$823,25,FALSE)=\"-\"),1/0,VLOOKUP($A913,Economática!$A$3:$AI$823,25,FALSE)))","v":""},{"$f":"CONCATENATE(Economática!B891,\" \",Economática!C891)","v":" "}]
[{"$f":"IF(Economática!AG892=\"\",\"\",Economática!AG892)","v":""},{"$f":"IF($A914=\"\",\"\",VLOOKUP(VLOOKUP($A914,Economática!$A$3:$AI$823,6,FALSE),Correção!$B$16:$C$36,2,FALSE))","v":""},{"$f":"IF(Economática!B892=\"\",\"\",Economática!B892)","v":""},{"$f":"IF($A914=\"\",\"\",IF(OR(VLOOKUP($A914,Economática!$A$3:$AI$823,8,FALSE)=0,VLOOKUP($A914,Economática!$A$3:$AI$823,8,FALSE)=\"-\"),1/0,VLOOKUP($A914,Economática!$A$3:$AI$823,8,FALSE)))","v":""},{"$f":"IF(A914=\"\",\"\",IF(ISERROR(VLOOKUP(A914,Correção!$B$2:$G$13,9,FALSE)),VLOOKUP($A914,Economática!$A$3:$AI$823,9,FALSE),VLOOKUP(A914,Correção!$B$2:$G$13,9,FALSE)))","v":""},{"$f":"IF($A914=\"\",\"\",Economática!G892)","v":""},{"$f":"IF($A914=\"\",\"\",IF(OR(VLOOKUP($A914,Economática!$A$3:$AI$823,10,FALSE)=0,VLOOKUP($A914,Economática!$A$3:$AI$823,10,FALSE)=\"-\"),1/0,VLOOKUP($A914,Economática!$A$3:$AI$823,10,FALSE)))","v":""},{"$f":"IF($A914=\"\",\"\",IF(OR(VLOOKUP($A914,Economática!$A$3:$AI$823,11,FALSE)=0,VLOOKUP($A914,Economática!$A$3:$AI$823,11,FALSE)=\"-\"),1/0,VLOOKUP($A914,Economática!$A$3:$AI$823,11,FALSE)))","v":""},{"$f":"IF($A914=\"\",\"\",IF(OR(VLOOKUP($A914,Economática!$A$3:$AI$823,12,FALSE)=0,VLOOKUP($A914,Economática!$A$3:$AI$823,12,FALSE)=\"-\"),1/0,VLOOKUP($A914,Economática!$A$3:$AI$823,12,FALSE)))","v":""},{"$f":"IF($A914=\"\",\"\",IF(OR(VLOOKUP($A914,Economática!$A$3:$AI$823,13,FALSE)=0,VLOOKUP($A914,Economática!$A$3:$AI$823,13,FALSE)=\"-\"),1/0,VLOOKUP($A914,Economática!$A$3:$AI$823,13,FALSE)))","v":""},{"$f":"IF($A914=\"\",\"\",IF(OR(VLOOKUP($A914,Economática!$A$3:$AI$823,14,FALSE)=0,VLOOKUP($A914,Economática!$A$3:$AI$823,14,FALSE)=\"-\"),1/0,VLOOKUP($A914,Economática!$A$3:$AI$823,14,FALSE)))","v":""},{"$f":"IF($A914=\"\",\"\",IF(OR(VLOOKUP($A914,Economática!$A$3:$AI$823,15,FALSE)=0,VLOOKUP($A914,Economática!$A$3:$AI$823,15,FALSE)=\"-\"),1/0,VLOOKUP($A914,Economática!$A$3:$AI$823,15,FALSE)))","v":""},{"$f":"IF($A914=\"\",\"\",IF(OR(VLOOKUP($A914,Economática!$A$3:$AI$823,16,FALSE)=0,VLOOKUP($A914,Economática!$A$3:$AI$823,16,FALSE)=\"-\"),1/0,VLOOKUP($A914,Economática!$A$3:$AI$823,16,FALSE)))","v":""},{"$f":"IF($A914=\"\",\"\",IF(OR(VLOOKUP($A914,Economática!$A$3:$AI$823,17,FALSE)=0,VLOOKUP($A914,Economática!$A$3:$AI$823,17,FALSE)=\"-\"),1/0,VLOOKUP($A914,Economática!$A$3:$AI$823,17,FALSE)))","v":""},{"$f":"IF($A914=\"\",\"\",IF(OR(VLOOKUP($A914,Economática!$A$3:$AI$823,18,FALSE)=0,VLOOKUP($A914,Economática!$A$3:$AI$823,18,FALSE)=\"-\"),1/0,VLOOKUP($A914,Economática!$A$3:$AI$823,18,FALSE)))","v":""},{"$f":"IF($A914=\"\",\"\",IF(OR(VLOOKUP($A914,Economática!$A$3:$AI$823,19,FALSE)=0,VLOOKUP($A914,Economática!$A$3:$AI$823,19,FALSE)=\"-\"),1/0,VLOOKUP($A914,Economática!$A$3:$AI$823,19,FALSE)))","v":""},{"$f":"IF($A914=\"\",\"\",VLOOKUP($A914,Economática!$A$3:$AI$823,20,FALSE)/E914)","v":""},"","","",{"$f":"IF($A914=\"\",\"\",IF(OR(VLOOKUP($A914,Economática!$A$3:$AI$823,21,FALSE)/100=0,VLOOKUP($A914,Economática!$A$3:$AI$823,21,FALSE)/100=\"-\"),1/0,VLOOKUP($A914,Economática!$A$3:$AI$823,21,FALSE)/100))","v":""},{"$f":"IF($A914=\"\",\"\",IF(OR(VLOOKUP($A914,Economática!$A$3:$AI$823,22,FALSE)/100=0,VLOOKUP($A914,Economática!$A$3:$AI$823,22,FALSE)/100=\"-\"),1/0,VLOOKUP($A914,Economática!$A$3:$AI$823,22,FALSE)/100))","v":""},{"$f":"IF($A914=\"\",\"\",IF(OR(VLOOKUP($A914,Economática!$A$3:$AI$823,23,FALSE)=0,VLOOKUP($A914,Economática!$A$3:$AI$823,23,FALSE)=\"-\"),1/0,VLOOKUP($A914,Economática!$A$3:$AI$823,23,FALSE)))","v":""},{"$f":"IF($A914=\"\",\"\",IF(OR(VLOOKUP($A914,Economática!$A$3:$AI$823,24,FALSE)=0,VLOOKUP($A914,Economática!$A$3:$AI$823,24,FALSE)=\"-\"),1/0,VLOOKUP($A914,Economática!$A$3:$AI$823,24,FALSE)))","v":""},{"$f":"IF($A914=\"\",\"\",IF(OR(VLOOKUP($A914,Economática!$A$3:$AI$823,25,FALSE)=0,VLOOKUP($A914,Economática!$A$3:$AI$823,25,FALSE)=\"-\"),1/0,VLOOKUP($A914,Economática!$A$3:$AI$823,25,FALSE)))","v":""},{"$f":"IF($A914=\"\",\"\",IF(ISERROR((F914+VLOOKUP($A914,Economática!$A$3:$AI$823,26,FALSE))/Y914),(F914+VLOOKUP($A914,Economática!$A$3:$AI$823,26,FALSE))/Y914,(F914+VLOOKUP($A914,Economática!$A$3:$AI$823,26,FALSE))/Y914))","v":""},{"$f":"IF($A914=\"\",\"\",IF(OR(-VLOOKUP($A914,Economática!$A$3:$AI$823,27,FALSE)=0,-VLOOKUP($A914,Economática!$A$3:$AI$823,27,FALSE)=\"-\"),1/0,-VLOOKUP($A914,Economática!$A$3:$AI$823,27,FALSE)))","v":""},"",{"$f":"IF($A914=\"\",\"\",IF(OR(VLOOKUP($A914,Economática!$A$3:$AI$823,28,FALSE)=0,VLOOKUP($A914,Economática!$A$3:$AI$823,28,FALSE)=\"-\"),1/0,VLOOKUP($A914,Economática!$A$3:$AI$823,28,FALSE)))","v":""},{"$f":"IF($A914=\"\",\"\",IF(OR(VLOOKUP($A914,Economática!$A$3:$AI$823,29,FALSE)=0,VLOOKUP($A914,Economática!$A$3:$AI$823,29,FALSE)=\"-\"),1/0,VLOOKUP($A914,Economática!$A$3:$AI$823,29,FALSE)))","v":""},{"$f":"IF($A914=\"\",\"\",IF(OR(VLOOKUP($A914,Economática!$A$3:$AI$823,30,FALSE)/E914=0,VLOOKUP($A914,Economática!$A$3:$AI$823,30,FALSE)/E914=\"-\",VLOOKUP($A914,Economática!$A$3:$AI$823,30,FALSE)/E914<33.33%,VLOOKUP($A914,Economática!$A$3:$AI$823,30,FALSE)/E914>100%),1/0,VLOOKUP($A914,Economática!$A$3:$AI$823,30,FALSE)/E914))","v":""},"",{"$f":"IF($A914=\"\",\"\",IF(OR(VLOOKUP($A914,Economática!$A$3:$AI$823,25,FALSE)=0,VLOOKUP($A914,Economática!$A$3:$AI$823,25,FALSE)=\"-\"),1/0,VLOOKUP($A914,Economática!$A$3:$AI$823,25,FALSE)))","v":""},{"$f":"CONCATENATE(Economática!B892,\" \",Economática!C892)","v":" "}]
[{"$f":"IF(Economática!AG893=\"\",\"\",Economática!AG893)","v":""},{"$f":"IF($A915=\"\",\"\",VLOOKUP(VLOOKUP($A915,Economática!$A$3:$AI$823,6,FALSE),Correção!$B$16:$C$36,2,FALSE))","v":""},{"$f":"IF(Economática!B893=\"\",\"\",Economática!B893)","v":""},{"$f":"IF($A915=\"\",\"\",IF(OR(VLOOKUP($A915,Economática!$A$3:$AI$823,8,FALSE)=0,VLOOKUP($A915,Economática!$A$3:$AI$823,8,FALSE)=\"-\"),1/0,VLOOKUP($A915,Economática!$A$3:$AI$823,8,FALSE)))","v":""},{"$f":"IF(A915=\"\",\"\",IF(ISERROR(VLOOKUP(A915,Correção!$B$2:$G$13,9,FALSE)),VLOOKUP($A915,Economática!$A$3:$AI$823,9,FALSE),VLOOKUP(A915,Correção!$B$2:$G$13,9,FALSE)))","v":""},{"$f":"IF($A915=\"\",\"\",Economática!G893)","v":""},{"$f":"IF($A915=\"\",\"\",IF(OR(VLOOKUP($A915,Economática!$A$3:$AI$823,10,FALSE)=0,VLOOKUP($A915,Economática!$A$3:$AI$823,10,FALSE)=\"-\"),1/0,VLOOKUP($A915,Economática!$A$3:$AI$823,10,FALSE)))","v":""},{"$f":"IF($A915=\"\",\"\",IF(OR(VLOOKUP($A915,Economática!$A$3:$AI$823,11,FALSE)=0,VLOOKUP($A915,Economática!$A$3:$AI$823,11,FALSE)=\"-\"),1/0,VLOOKUP($A915,Economática!$A$3:$AI$823,11,FALSE)))","v":""},{"$f":"IF($A915=\"\",\"\",IF(OR(VLOOKUP($A915,Economática!$A$3:$AI$823,12,FALSE)=0,VLOOKUP($A915,Economática!$A$3:$AI$823,12,FALSE)=\"-\"),1/0,VLOOKUP($A915,Economática!$A$3:$AI$823,12,FALSE)))","v":""},{"$f":"IF($A915=\"\",\"\",IF(OR(VLOOKUP($A915,Economática!$A$3:$AI$823,13,FALSE)=0,VLOOKUP($A915,Economática!$A$3:$AI$823,13,FALSE)=\"-\"),1/0,VLOOKUP($A915,Economática!$A$3:$AI$823,13,FALSE)))","v":""},{"$f":"IF($A915=\"\",\"\",IF(OR(VLOOKUP($A915,Economática!$A$3:$AI$823,14,FALSE)=0,VLOOKUP($A915,Economática!$A$3:$AI$823,14,FALSE)=\"-\"),1/0,VLOOKUP($A915,Economática!$A$3:$AI$823,14,FALSE)))","v":""},{"$f":"IF($A915=\"\",\"\",IF(OR(VLOOKUP($A915,Economática!$A$3:$AI$823,15,FALSE)=0,VLOOKUP($A915,Economática!$A$3:$AI$823,15,FALSE)=\"-\"),1/0,VLOOKUP($A915,Economática!$A$3:$AI$823,15,FALSE)))","v":""},{"$f":"IF($A915=\"\",\"\",IF(OR(VLOOKUP($A915,Economática!$A$3:$AI$823,16,FALSE)=0,VLOOKUP($A915,Economática!$A$3:$AI$823,16,FALSE)=\"-\"),1/0,VLOOKUP($A915,Economática!$A$3:$AI$823,16,FALSE)))","v":""},{"$f":"IF($A915=\"\",\"\",IF(OR(VLOOKUP($A915,Economática!$A$3:$AI$823,17,FALSE)=0,VLOOKUP($A915,Economática!$A$3:$AI$823,17,FALSE)=\"-\"),1/0,VLOOKUP($A915,Economática!$A$3:$AI$823,17,FALSE)))","v":""},{"$f":"IF($A915=\"\",\"\",IF(OR(VLOOKUP($A915,Economática!$A$3:$AI$823,18,FALSE)=0,VLOOKUP($A915,Economática!$A$3:$AI$823,18,FALSE)=\"-\"),1/0,VLOOKUP($A915,Economática!$A$3:$AI$823,18,FALSE)))","v":""},{"$f":"IF($A915=\"\",\"\",IF(OR(VLOOKUP($A915,Economática!$A$3:$AI$823,19,FALSE)=0,VLOOKUP($A915,Economática!$A$3:$AI$823,19,FALSE)=\"-\"),1/0,VLOOKUP($A915,Economática!$A$3:$AI$823,19,FALSE)))","v":""},{"$f":"IF($A915=\"\",\"\",VLOOKUP($A915,Economática!$A$3:$AI$823,20,FALSE)/E915)","v":""},"","","",{"$f":"IF($A915=\"\",\"\",IF(OR(VLOOKUP($A915,Economática!$A$3:$AI$823,21,FALSE)/100=0,VLOOKUP($A915,Economática!$A$3:$AI$823,21,FALSE)/100=\"-\"),1/0,VLOOKUP($A915,Economática!$A$3:$AI$823,21,FALSE)/100))","v":""},{"$f":"IF($A915=\"\",\"\",IF(OR(VLOOKUP($A915,Economática!$A$3:$AI$823,22,FALSE)/100=0,VLOOKUP($A915,Economática!$A$3:$AI$823,22,FALSE)/100=\"-\"),1/0,VLOOKUP($A915,Economática!$A$3:$AI$823,22,FALSE)/100))","v":""},{"$f":"IF($A915=\"\",\"\",IF(OR(VLOOKUP($A915,Economática!$A$3:$AI$823,23,FALSE)=0,VLOOKUP($A915,Economática!$A$3:$AI$823,23,FALSE)=\"-\"),1/0,VLOOKUP($A915,Economática!$A$3:$AI$823,23,FALSE)))","v":""},{"$f":"IF($A915=\"\",\"\",IF(OR(VLOOKUP($A915,Economática!$A$3:$AI$823,24,FALSE)=0,VLOOKUP($A915,Economática!$A$3:$AI$823,24,FALSE)=\"-\"),1/0,VLOOKUP($A915,Economática!$A$3:$AI$823,24,FALSE)))","v":""},{"$f":"IF($A915=\"\",\"\",IF(OR(VLOOKUP($A915,Economática!$A$3:$AI$823,25,FALSE)=0,VLOOKUP($A915,Economática!$A$3:$AI$823,25,FALSE)=\"-\"),1/0,VLOOKUP($A915,Economática!$A$3:$AI$823,25,FALSE)))","v":""},{"$f":"IF($A915=\"\",\"\",IF(ISERROR((F915+VLOOKUP($A915,Economática!$A$3:$AI$823,26,FALSE))/Y915),(F915+VLOOKUP($A915,Economática!$A$3:$AI$823,26,FALSE))/Y915,(F915+VLOOKUP($A915,Economática!$A$3:$AI$823,26,FALSE))/Y915))","v":""},{"$f":"IF($A915=\"\",\"\",IF(OR(-VLOOKUP($A915,Economática!$A$3:$AI$823,27,FALSE)=0,-VLOOKUP($A915,Economática!$A$3:$AI$823,27,FALSE)=\"-\"),1/0,-VLOOKUP($A915,Economática!$A$3:$AI$823,27,FALSE)))","v":""},"",{"$f":"IF($A915=\"\",\"\",IF(OR(VLOOKUP($A915,Economática!$A$3:$AI$823,28,FALSE)=0,VLOOKUP($A915,Economática!$A$3:$AI$823,28,FALSE)=\"-\"),1/0,VLOOKUP($A915,Economática!$A$3:$AI$823,28,FALSE)))","v":""},{"$f":"IF($A915=\"\",\"\",IF(OR(VLOOKUP($A915,Economática!$A$3:$AI$823,29,FALSE)=0,VLOOKUP($A915,Economática!$A$3:$AI$823,29,FALSE)=\"-\"),1/0,VLOOKUP($A915,Economática!$A$3:$AI$823,29,FALSE)))","v":""},{"$f":"IF($A915=\"\",\"\",IF(OR(VLOOKUP($A915,Economática!$A$3:$AI$823,30,FALSE)/E915=0,VLOOKUP($A915,Economática!$A$3:$AI$823,30,FALSE)/E915=\"-\",VLOOKUP($A915,Economática!$A$3:$AI$823,30,FALSE)/E915<33.33%,VLOOKUP($A915,Economática!$A$3:$AI$823,30,FALSE)/E915>100%),1/0,VLOOKUP($A915,Economática!$A$3:$AI$823,30,FALSE)/E915))","v":""},"",{"$f":"IF($A915=\"\",\"\",IF(OR(VLOOKUP($A915,Economática!$A$3:$AI$823,25,FALSE)=0,VLOOKUP($A915,Economática!$A$3:$AI$823,25,FALSE)=\"-\"),1/0,VLOOKUP($A915,Economática!$A$3:$AI$823,25,FALSE)))","v":""},{"$f":"CONCATENATE(Economática!B893,\" \",Economática!C893)","v":" "}]
[{"$f":"IF(Economática!AG894=\"\",\"\",Economática!AG894)","v":""},{"$f":"IF($A916=\"\",\"\",VLOOKUP(VLOOKUP($A916,Economática!$A$3:$AI$823,6,FALSE),Correção!$B$16:$C$36,2,FALSE))","v":""},{"$f":"IF(Economática!B894=\"\",\"\",Economática!B894)","v":""},{"$f":"IF($A916=\"\",\"\",IF(OR(VLOOKUP($A916,Economática!$A$3:$AI$823,8,FALSE)=0,VLOOKUP($A916,Economática!$A$3:$AI$823,8,FALSE)=\"-\"),1/0,VLOOKUP($A916,Economática!$A$3:$AI$823,8,FALSE)))","v":""},{"$f":"IF(A916=\"\",\"\",IF(ISERROR(VLOOKUP(A916,Correção!$B$2:$G$13,9,FALSE)),VLOOKUP($A916,Economática!$A$3:$AI$823,9,FALSE),VLOOKUP(A916,Correção!$B$2:$G$13,9,FALSE)))","v":""},{"$f":"IF($A916=\"\",\"\",Economática!G894)","v":""},{"$f":"IF($A916=\"\",\"\",IF(OR(VLOOKUP($A916,Economática!$A$3:$AI$823,10,FALSE)=0,VLOOKUP($A916,Economática!$A$3:$AI$823,10,FALSE)=\"-\"),1/0,VLOOKUP($A916,Economática!$A$3:$AI$823,10,FALSE)))","v":""},{"$f":"IF($A916=\"\",\"\",IF(OR(VLOOKUP($A916,Economática!$A$3:$AI$823,11,FALSE)=0,VLOOKUP($A916,Economática!$A$3:$AI$823,11,FALSE)=\"-\"),1/0,VLOOKUP($A916,Economática!$A$3:$AI$823,11,FALSE)))","v":""},{"$f":"IF($A916=\"\",\"\",IF(OR(VLOOKUP($A916,Economática!$A$3:$AI$823,12,FALSE)=0,VLOOKUP($A916,Economática!$A$3:$AI$823,12,FALSE)=\"-\"),1/0,VLOOKUP($A916,Economática!$A$3:$AI$823,12,FALSE)))","v":""},{"$f":"IF($A916=\"\",\"\",IF(OR(VLOOKUP($A916,Economática!$A$3:$AI$823,13,FALSE)=0,VLOOKUP($A916,Economática!$A$3:$AI$823,13,FALSE)=\"-\"),1/0,VLOOKUP($A916,Economática!$A$3:$AI$823,13,FALSE)))","v":""},{"$f":"IF($A916=\"\",\"\",IF(OR(VLOOKUP($A916,Economática!$A$3:$AI$823,14,FALSE)=0,VLOOKUP($A916,Economática!$A$3:$AI$823,14,FALSE)=\"-\"),1/0,VLOOKUP($A916,Economática!$A$3:$AI$823,14,FALSE)))","v":""},{"$f":"IF($A916=\"\",\"\",IF(OR(VLOOKUP($A916,Economática!$A$3:$AI$823,15,FALSE)=0,VLOOKUP($A916,Economática!$A$3:$AI$823,15,FALSE)=\"-\"),1/0,VLOOKUP($A916,Economática!$A$3:$AI$823,15,FALSE)))","v":""},{"$f":"IF($A916=\"\",\"\",IF(OR(VLOOKUP($A916,Economática!$A$3:$AI$823,16,FALSE)=0,VLOOKUP($A916,Economática!$A$3:$AI$823,16,FALSE)=\"-\"),1/0,VLOOKUP($A916,Economática!$A$3:$AI$823,16,FALSE)))","v":""},{"$f":"IF($A916=\"\",\"\",IF(OR(VLOOKUP($A916,Economática!$A$3:$AI$823,17,FALSE)=0,VLOOKUP($A916,Economática!$A$3:$AI$823,17,FALSE)=\"-\"),1/0,VLOOKUP($A916,Economática!$A$3:$AI$823,17,FALSE)))","v":""},{"$f":"IF($A916=\"\",\"\",IF(OR(VLOOKUP($A916,Economática!$A$3:$AI$823,18,FALSE)=0,VLOOKUP($A916,Economática!$A$3:$AI$823,18,FALSE)=\"-\"),1/0,VLOOKUP($A916,Economática!$A$3:$AI$823,18,FALSE)))","v":""},{"$f":"IF($A916=\"\",\"\",IF(OR(VLOOKUP($A916,Economática!$A$3:$AI$823,19,FALSE)=0,VLOOKUP($A916,Economática!$A$3:$AI$823,19,FALSE)=\"-\"),1/0,VLOOKUP($A916,Economática!$A$3:$AI$823,19,FALSE)))","v":""},{"$f":"IF($A916=\"\",\"\",VLOOKUP($A916,Economática!$A$3:$AI$823,20,FALSE)/E916)","v":""},"","","",{"$f":"IF($A916=\"\",\"\",IF(OR(VLOOKUP($A916,Economática!$A$3:$AI$823,21,FALSE)/100=0,VLOOKUP($A916,Economática!$A$3:$AI$823,21,FALSE)/100=\"-\"),1/0,VLOOKUP($A916,Economática!$A$3:$AI$823,21,FALSE)/100))","v":""},{"$f":"IF($A916=\"\",\"\",IF(OR(VLOOKUP($A916,Economática!$A$3:$AI$823,22,FALSE)/100=0,VLOOKUP($A916,Economática!$A$3:$AI$823,22,FALSE)/100=\"-\"),1/0,VLOOKUP($A916,Economática!$A$3:$AI$823,22,FALSE)/100))","v":""},{"$f":"IF($A916=\"\",\"\",IF(OR(VLOOKUP($A916,Economática!$A$3:$AI$823,23,FALSE)=0,VLOOKUP($A916,Economática!$A$3:$AI$823,23,FALSE)=\"-\"),1/0,VLOOKUP($A916,Economática!$A$3:$AI$823,23,FALSE)))","v":""},{"$f":"IF($A916=\"\",\"\",IF(OR(VLOOKUP($A916,Economática!$A$3:$AI$823,24,FALSE)=0,VLOOKUP($A916,Economática!$A$3:$AI$823,24,FALSE)=\"-\"),1/0,VLOOKUP($A916,Economática!$A$3:$AI$823,24,FALSE)))","v":""},{"$f":"IF($A916=\"\",\"\",IF(OR(VLOOKUP($A916,Economática!$A$3:$AI$823,25,FALSE)=0,VLOOKUP($A916,Economática!$A$3:$AI$823,25,FALSE)=\"-\"),1/0,VLOOKUP($A916,Economática!$A$3:$AI$823,25,FALSE)))","v":""},{"$f":"IF($A916=\"\",\"\",IF(ISERROR((F916+VLOOKUP($A916,Economática!$A$3:$AI$823,26,FALSE))/Y916),(F916+VLOOKUP($A916,Economática!$A$3:$AI$823,26,FALSE))/Y916,(F916+VLOOKUP($A916,Economática!$A$3:$AI$823,26,FALSE))/Y916))","v":""},{"$f":"IF($A916=\"\",\"\",IF(OR(-VLOOKUP($A916,Economática!$A$3:$AI$823,27,FALSE)=0,-VLOOKUP($A916,Economática!$A$3:$AI$823,27,FALSE)=\"-\"),1/0,-VLOOKUP($A916,Economática!$A$3:$AI$823,27,FALSE)))","v":""},"",{"$f":"IF($A916=\"\",\"\",IF(OR(VLOOKUP($A916,Economática!$A$3:$AI$823,28,FALSE)=0,VLOOKUP($A916,Economática!$A$3:$AI$823,28,FALSE)=\"-\"),1/0,VLOOKUP($A916,Economática!$A$3:$AI$823,28,FALSE)))","v":""},{"$f":"IF($A916=\"\",\"\",IF(OR(VLOOKUP($A916,Economática!$A$3:$AI$823,29,FALSE)=0,VLOOKUP($A916,Economática!$A$3:$AI$823,29,FALSE)=\"-\"),1/0,VLOOKUP($A916,Economática!$A$3:$AI$823,29,FALSE)))","v":""},{"$f":"IF($A916=\"\",\"\",IF(OR(VLOOKUP($A916,Economática!$A$3:$AI$823,30,FALSE)/E916=0,VLOOKUP($A916,Economática!$A$3:$AI$823,30,FALSE)/E916=\"-\",VLOOKUP($A916,Economática!$A$3:$AI$823,30,FALSE)/E916<33.33%,VLOOKUP($A916,Economática!$A$3:$AI$823,30,FALSE)/E916>100%),1/0,VLOOKUP($A916,Economática!$A$3:$AI$823,30,FALSE)/E916))","v":""},"",{"$f":"IF($A916=\"\",\"\",IF(OR(VLOOKUP($A916,Economática!$A$3:$AI$823,25,FALSE)=0,VLOOKUP($A916,Economática!$A$3:$AI$823,25,FALSE)=\"-\"),1/0,VLOOKUP($A916,Economática!$A$3:$AI$823,25,FALSE)))","v":""},{"$f":"CONCATENATE(Economática!B894,\" \",Economática!C894)","v":" "}]
[{"$f":"IF(Economática!AG895=\"\",\"\",Economática!AG895)","v":""},{"$f":"IF($A917=\"\",\"\",VLOOKUP(VLOOKUP($A917,Economática!$A$3:$AI$823,6,FALSE),Correção!$B$16:$C$36,2,FALSE))","v":""},{"$f":"IF(Economática!B895=\"\",\"\",Economática!B895)","v":""},{"$f":"IF($A917=\"\",\"\",IF(OR(VLOOKUP($A917,Economática!$A$3:$AI$823,8,FALSE)=0,VLOOKUP($A917,Economática!$A$3:$AI$823,8,FALSE)=\"-\"),1/0,VLOOKUP($A917,Economática!$A$3:$AI$823,8,FALSE)))","v":""},{"$f":"IF(A917=\"\",\"\",IF(ISERROR(VLOOKUP(A917,Correção!$B$2:$G$13,9,FALSE)),VLOOKUP($A917,Economática!$A$3:$AI$823,9,FALSE),VLOOKUP(A917,Correção!$B$2:$G$13,9,FALSE)))","v":""},{"$f":"IF($A917=\"\",\"\",Economática!G895)","v":""},{"$f":"IF($A917=\"\",\"\",IF(OR(VLOOKUP($A917,Economática!$A$3:$AI$823,10,FALSE)=0,VLOOKUP($A917,Economática!$A$3:$AI$823,10,FALSE)=\"-\"),1/0,VLOOKUP($A917,Economática!$A$3:$AI$823,10,FALSE)))","v":""},{"$f":"IF($A917=\"\",\"\",IF(OR(VLOOKUP($A917,Economática!$A$3:$AI$823,11,FALSE)=0,VLOOKUP($A917,Economática!$A$3:$AI$823,11,FALSE)=\"-\"),1/0,VLOOKUP($A917,Economática!$A$3:$AI$823,11,FALSE)))","v":""},{"$f":"IF($A917=\"\",\"\",IF(OR(VLOOKUP($A917,Economática!$A$3:$AI$823,12,FALSE)=0,VLOOKUP($A917,Economática!$A$3:$AI$823,12,FALSE)=\"-\"),1/0,VLOOKUP($A917,Economática!$A$3:$AI$823,12,FALSE)))","v":""},{"$f":"IF($A917=\"\",\"\",IF(OR(VLOOKUP($A917,Economática!$A$3:$AI$823,13,FALSE)=0,VLOOKUP($A917,Economática!$A$3:$AI$823,13,FALSE)=\"-\"),1/0,VLOOKUP($A917,Economática!$A$3:$AI$823,13,FALSE)))","v":""},{"$f":"IF($A917=\"\",\"\",IF(OR(VLOOKUP($A917,Economática!$A$3:$AI$823,14,FALSE)=0,VLOOKUP($A917,Economática!$A$3:$AI$823,14,FALSE)=\"-\"),1/0,VLOOKUP($A917,Economática!$A$3:$AI$823,14,FALSE)))","v":""},{"$f":"IF($A917=\"\",\"\",IF(OR(VLOOKUP($A917,Economática!$A$3:$AI$823,15,FALSE)=0,VLOOKUP($A917,Economática!$A$3:$AI$823,15,FALSE)=\"-\"),1/0,VLOOKUP($A917,Economática!$A$3:$AI$823,15,FALSE)))","v":""},{"$f":"IF($A917=\"\",\"\",IF(OR(VLOOKUP($A917,Economática!$A$3:$AI$823,16,FALSE)=0,VLOOKUP($A917,Economática!$A$3:$AI$823,16,FALSE)=\"-\"),1/0,VLOOKUP($A917,Economática!$A$3:$AI$823,16,FALSE)))","v":""},{"$f":"IF($A917=\"\",\"\",IF(OR(VLOOKUP($A917,Economática!$A$3:$AI$823,17,FALSE)=0,VLOOKUP($A917,Economática!$A$3:$AI$823,17,FALSE)=\"-\"),1/0,VLOOKUP($A917,Economática!$A$3:$AI$823,17,FALSE)))","v":""},{"$f":"IF($A917=\"\",\"\",IF(OR(VLOOKUP($A917,Economática!$A$3:$AI$823,18,FALSE)=0,VLOOKUP($A917,Economática!$A$3:$AI$823,18,FALSE)=\"-\"),1/0,VLOOKUP($A917,Economática!$A$3:$AI$823,18,FALSE)))","v":""},{"$f":"IF($A917=\"\",\"\",IF(OR(VLOOKUP($A917,Economática!$A$3:$AI$823,19,FALSE)=0,VLOOKUP($A917,Economática!$A$3:$AI$823,19,FALSE)=\"-\"),1/0,VLOOKUP($A917,Economática!$A$3:$AI$823,19,FALSE)))","v":""},{"$f":"IF($A917=\"\",\"\",VLOOKUP($A917,Economática!$A$3:$AI$823,20,FALSE)/E917)","v":""},"","","",{"$f":"IF($A917=\"\",\"\",IF(OR(VLOOKUP($A917,Economática!$A$3:$AI$823,21,FALSE)/100=0,VLOOKUP($A917,Economática!$A$3:$AI$823,21,FALSE)/100=\"-\"),1/0,VLOOKUP($A917,Economática!$A$3:$AI$823,21,FALSE)/100))","v":""},{"$f":"IF($A917=\"\",\"\",IF(OR(VLOOKUP($A917,Economática!$A$3:$AI$823,22,FALSE)/100=0,VLOOKUP($A917,Economática!$A$3:$AI$823,22,FALSE)/100=\"-\"),1/0,VLOOKUP($A917,Economática!$A$3:$AI$823,22,FALSE)/100))","v":""},{"$f":"IF($A917=\"\",\"\",IF(OR(VLOOKUP($A917,Economática!$A$3:$AI$823,23,FALSE)=0,VLOOKUP($A917,Economática!$A$3:$AI$823,23,FALSE)=\"-\"),1/0,VLOOKUP($A917,Economática!$A$3:$AI$823,23,FALSE)))","v":""},{"$f":"IF($A917=\"\",\"\",IF(OR(VLOOKUP($A917,Economática!$A$3:$AI$823,24,FALSE)=0,VLOOKUP($A917,Economática!$A$3:$AI$823,24,FALSE)=\"-\"),1/0,VLOOKUP($A917,Economática!$A$3:$AI$823,24,FALSE)))","v":""},{"$f":"IF($A917=\"\",\"\",IF(OR(VLOOKUP($A917,Economática!$A$3:$AI$823,25,FALSE)=0,VLOOKUP($A917,Economática!$A$3:$AI$823,25,FALSE)=\"-\"),1/0,VLOOKUP($A917,Economática!$A$3:$AI$823,25,FALSE)))","v":""},{"$f":"IF($A917=\"\",\"\",IF(ISERROR((F917+VLOOKUP($A917,Economática!$A$3:$AI$823,26,FALSE))/Y917),(F917+VLOOKUP($A917,Economática!$A$3:$AI$823,26,FALSE))/Y917,(F917+VLOOKUP($A917,Economática!$A$3:$AI$823,26,FALSE))/Y917))","v":""},{"$f":"IF($A917=\"\",\"\",IF(OR(-VLOOKUP($A917,Economática!$A$3:$AI$823,27,FALSE)=0,-VLOOKUP($A917,Economática!$A$3:$AI$823,27,FALSE)=\"-\"),1/0,-VLOOKUP($A917,Economática!$A$3:$AI$823,27,FALSE)))","v":""},"",{"$f":"IF($A917=\"\",\"\",IF(OR(VLOOKUP($A917,Economática!$A$3:$AI$823,28,FALSE)=0,VLOOKUP($A917,Economática!$A$3:$AI$823,28,FALSE)=\"-\"),1/0,VLOOKUP($A917,Economática!$A$3:$AI$823,28,FALSE)))","v":""},{"$f":"IF($A917=\"\",\"\",IF(OR(VLOOKUP($A917,Economática!$A$3:$AI$823,29,FALSE)=0,VLOOKUP($A917,Economática!$A$3:$AI$823,29,FALSE)=\"-\"),1/0,VLOOKUP($A917,Economática!$A$3:$AI$823,29,FALSE)))","v":""},{"$f":"IF($A917=\"\",\"\",IF(OR(VLOOKUP($A917,Economática!$A$3:$AI$823,30,FALSE)/E917=0,VLOOKUP($A917,Economática!$A$3:$AI$823,30,FALSE)/E917=\"-\",VLOOKUP($A917,Economática!$A$3:$AI$823,30,FALSE)/E917<33.33%,VLOOKUP($A917,Economática!$A$3:$AI$823,30,FALSE)/E917>100%),1/0,VLOOKUP($A917,Economática!$A$3:$AI$823,30,FALSE)/E917))","v":""},"",{"$f":"IF($A917=\"\",\"\",IF(OR(VLOOKUP($A917,Economática!$A$3:$AI$823,25,FALSE)=0,VLOOKUP($A917,Economática!$A$3:$AI$823,25,FALSE)=\"-\"),1/0,VLOOKUP($A917,Economática!$A$3:$AI$823,25,FALSE)))","v":""},{"$f":"CONCATENATE(Economática!B895,\" \",Economática!C895)","v":" "}]
[{"$f":"IF(Economática!AG896=\"\",\"\",Economática!AG896)","v":""},{"$f":"IF($A918=\"\",\"\",VLOOKUP(VLOOKUP($A918,Economática!$A$3:$AI$823,6,FALSE),Correção!$B$16:$C$36,2,FALSE))","v":""},{"$f":"IF(Economática!B896=\"\",\"\",Economática!B896)","v":""},{"$f":"IF($A918=\"\",\"\",IF(OR(VLOOKUP($A918,Economática!$A$3:$AI$823,8,FALSE)=0,VLOOKUP($A918,Economática!$A$3:$AI$823,8,FALSE)=\"-\"),1/0,VLOOKUP($A918,Economática!$A$3:$AI$823,8,FALSE)))","v":""},{"$f":"IF(A918=\"\",\"\",IF(ISERROR(VLOOKUP(A918,Correção!$B$2:$G$13,9,FALSE)),VLOOKUP($A918,Economática!$A$3:$AI$823,9,FALSE),VLOOKUP(A918,Correção!$B$2:$G$13,9,FALSE)))","v":""},{"$f":"IF($A918=\"\",\"\",Economática!G896)","v":""},{"$f":"IF($A918=\"\",\"\",IF(OR(VLOOKUP($A918,Economática!$A$3:$AI$823,10,FALSE)=0,VLOOKUP($A918,Economática!$A$3:$AI$823,10,FALSE)=\"-\"),1/0,VLOOKUP($A918,Economática!$A$3:$AI$823,10,FALSE)))","v":""},{"$f":"IF($A918=\"\",\"\",IF(OR(VLOOKUP($A918,Economática!$A$3:$AI$823,11,FALSE)=0,VLOOKUP($A918,Economática!$A$3:$AI$823,11,FALSE)=\"-\"),1/0,VLOOKUP($A918,Economática!$A$3:$AI$823,11,FALSE)))","v":""},{"$f":"IF($A918=\"\",\"\",IF(OR(VLOOKUP($A918,Economática!$A$3:$AI$823,12,FALSE)=0,VLOOKUP($A918,Economática!$A$3:$AI$823,12,FALSE)=\"-\"),1/0,VLOOKUP($A918,Economática!$A$3:$AI$823,12,FALSE)))","v":""},{"$f":"IF($A918=\"\",\"\",IF(OR(VLOOKUP($A918,Economática!$A$3:$AI$823,13,FALSE)=0,VLOOKUP($A918,Economática!$A$3:$AI$823,13,FALSE)=\"-\"),1/0,VLOOKUP($A918,Economática!$A$3:$AI$823,13,FALSE)))","v":""},{"$f":"IF($A918=\"\",\"\",IF(OR(VLOOKUP($A918,Economática!$A$3:$AI$823,14,FALSE)=0,VLOOKUP($A918,Economática!$A$3:$AI$823,14,FALSE)=\"-\"),1/0,VLOOKUP($A918,Economática!$A$3:$AI$823,14,FALSE)))","v":""},{"$f":"IF($A918=\"\",\"\",IF(OR(VLOOKUP($A918,Economática!$A$3:$AI$823,15,FALSE)=0,VLOOKUP($A918,Economática!$A$3:$AI$823,15,FALSE)=\"-\"),1/0,VLOOKUP($A918,Economática!$A$3:$AI$823,15,FALSE)))","v":""},{"$f":"IF($A918=\"\",\"\",IF(OR(VLOOKUP($A918,Economática!$A$3:$AI$823,16,FALSE)=0,VLOOKUP($A918,Economática!$A$3:$AI$823,16,FALSE)=\"-\"),1/0,VLOOKUP($A918,Economática!$A$3:$AI$823,16,FALSE)))","v":""},{"$f":"IF($A918=\"\",\"\",IF(OR(VLOOKUP($A918,Economática!$A$3:$AI$823,17,FALSE)=0,VLOOKUP($A918,Economática!$A$3:$AI$823,17,FALSE)=\"-\"),1/0,VLOOKUP($A918,Economática!$A$3:$AI$823,17,FALSE)))","v":""},{"$f":"IF($A918=\"\",\"\",IF(OR(VLOOKUP($A918,Economática!$A$3:$AI$823,18,FALSE)=0,VLOOKUP($A918,Economática!$A$3:$AI$823,18,FALSE)=\"-\"),1/0,VLOOKUP($A918,Economática!$A$3:$AI$823,18,FALSE)))","v":""},{"$f":"IF($A918=\"\",\"\",IF(OR(VLOOKUP($A918,Economática!$A$3:$AI$823,19,FALSE)=0,VLOOKUP($A918,Economática!$A$3:$AI$823,19,FALSE)=\"-\"),1/0,VLOOKUP($A918,Economática!$A$3:$AI$823,19,FALSE)))","v":""},{"$f":"IF($A918=\"\",\"\",VLOOKUP($A918,Economática!$A$3:$AI$823,20,FALSE)/E918)","v":""},"","","",{"$f":"IF($A918=\"\",\"\",IF(OR(VLOOKUP($A918,Economática!$A$3:$AI$823,21,FALSE)/100=0,VLOOKUP($A918,Economática!$A$3:$AI$823,21,FALSE)/100=\"-\"),1/0,VLOOKUP($A918,Economática!$A$3:$AI$823,21,FALSE)/100))","v":""},{"$f":"IF($A918=\"\",\"\",IF(OR(VLOOKUP($A918,Economática!$A$3:$AI$823,22,FALSE)/100=0,VLOOKUP($A918,Economática!$A$3:$AI$823,22,FALSE)/100=\"-\"),1/0,VLOOKUP($A918,Economática!$A$3:$AI$823,22,FALSE)/100))","v":""},{"$f":"IF($A918=\"\",\"\",IF(OR(VLOOKUP($A918,Economática!$A$3:$AI$823,23,FALSE)=0,VLOOKUP($A918,Economática!$A$3:$AI$823,23,FALSE)=\"-\"),1/0,VLOOKUP($A918,Economática!$A$3:$AI$823,23,FALSE)))","v":""},{"$f":"IF($A918=\"\",\"\",IF(OR(VLOOKUP($A918,Economática!$A$3:$AI$823,24,FALSE)=0,VLOOKUP($A918,Economática!$A$3:$AI$823,24,FALSE)=\"-\"),1/0,VLOOKUP($A918,Economática!$A$3:$AI$823,24,FALSE)))","v":""},{"$f":"IF($A918=\"\",\"\",IF(OR(VLOOKUP($A918,Economática!$A$3:$AI$823,25,FALSE)=0,VLOOKUP($A918,Economática!$A$3:$AI$823,25,FALSE)=\"-\"),1/0,VLOOKUP($A918,Economática!$A$3:$AI$823,25,FALSE)))","v":""},{"$f":"IF($A918=\"\",\"\",IF(ISERROR((F918+VLOOKUP($A918,Economática!$A$3:$AI$823,26,FALSE))/Y918),(F918+VLOOKUP($A918,Economática!$A$3:$AI$823,26,FALSE))/Y918,(F918+VLOOKUP($A918,Economática!$A$3:$AI$823,26,FALSE))/Y918))","v":""},{"$f":"IF($A918=\"\",\"\",IF(OR(-VLOOKUP($A918,Economática!$A$3:$AI$823,27,FALSE)=0,-VLOOKUP($A918,Economática!$A$3:$AI$823,27,FALSE)=\"-\"),1/0,-VLOOKUP($A918,Economática!$A$3:$AI$823,27,FALSE)))","v":""},"",{"$f":"IF($A918=\"\",\"\",IF(OR(VLOOKUP($A918,Economática!$A$3:$AI$823,28,FALSE)=0,VLOOKUP($A918,Economática!$A$3:$AI$823,28,FALSE)=\"-\"),1/0,VLOOKUP($A918,Economática!$A$3:$AI$823,28,FALSE)))","v":""},{"$f":"IF($A918=\"\",\"\",IF(OR(VLOOKUP($A918,Economática!$A$3:$AI$823,29,FALSE)=0,VLOOKUP($A918,Economática!$A$3:$AI$823,29,FALSE)=\"-\"),1/0,VLOOKUP($A918,Economática!$A$3:$AI$823,29,FALSE)))","v":""},{"$f":"IF($A918=\"\",\"\",IF(OR(VLOOKUP($A918,Economática!$A$3:$AI$823,30,FALSE)/E918=0,VLOOKUP($A918,Economática!$A$3:$AI$823,30,FALSE)/E918=\"-\",VLOOKUP($A918,Economática!$A$3:$AI$823,30,FALSE)/E918<33.33%,VLOOKUP($A918,Economática!$A$3:$AI$823,30,FALSE)/E918>100%),1/0,VLOOKUP($A918,Economática!$A$3:$AI$823,30,FALSE)/E918))","v":""},"",{"$f":"IF($A918=\"\",\"\",IF(OR(VLOOKUP($A918,Economática!$A$3:$AI$823,25,FALSE)=0,VLOOKUP($A918,Economática!$A$3:$AI$823,25,FALSE)=\"-\"),1/0,VLOOKUP($A918,Economática!$A$3:$AI$823,25,FALSE)))","v":""},{"$f":"CONCATENATE(Economática!B896,\" \",Economática!C896)","v":" "}]
[{"$f":"IF(Economática!AG897=\"\",\"\",Economática!AG897)","v":""},{"$f":"IF($A919=\"\",\"\",VLOOKUP(VLOOKUP($A919,Economática!$A$3:$AI$823,6,FALSE),Correção!$B$16:$C$36,2,FALSE))","v":""},{"$f":"IF(Economática!B897=\"\",\"\",Economática!B897)","v":""},{"$f":"IF($A919=\"\",\"\",IF(OR(VLOOKUP($A919,Economática!$A$3:$AI$823,8,FALSE)=0,VLOOKUP($A919,Economática!$A$3:$AI$823,8,FALSE)=\"-\"),1/0,VLOOKUP($A919,Economática!$A$3:$AI$823,8,FALSE)))","v":""},{"$f":"IF(A919=\"\",\"\",IF(ISERROR(VLOOKUP(A919,Correção!$B$2:$G$13,9,FALSE)),VLOOKUP($A919,Economática!$A$3:$AI$823,9,FALSE),VLOOKUP(A919,Correção!$B$2:$G$13,9,FALSE)))","v":""},{"$f":"IF($A919=\"\",\"\",Economática!G897)","v":""},{"$f":"IF($A919=\"\",\"\",IF(OR(VLOOKUP($A919,Economática!$A$3:$AI$823,10,FALSE)=0,VLOOKUP($A919,Economática!$A$3:$AI$823,10,FALSE)=\"-\"),1/0,VLOOKUP($A919,Economática!$A$3:$AI$823,10,FALSE)))","v":""},{"$f":"IF($A919=\"\",\"\",IF(OR(VLOOKUP($A919,Economática!$A$3:$AI$823,11,FALSE)=0,VLOOKUP($A919,Economática!$A$3:$AI$823,11,FALSE)=\"-\"),1/0,VLOOKUP($A919,Economática!$A$3:$AI$823,11,FALSE)))","v":""},{"$f":"IF($A919=\"\",\"\",IF(OR(VLOOKUP($A919,Economática!$A$3:$AI$823,12,FALSE)=0,VLOOKUP($A919,Economática!$A$3:$AI$823,12,FALSE)=\"-\"),1/0,VLOOKUP($A919,Economática!$A$3:$AI$823,12,FALSE)))","v":""},{"$f":"IF($A919=\"\",\"\",IF(OR(VLOOKUP($A919,Economática!$A$3:$AI$823,13,FALSE)=0,VLOOKUP($A919,Economática!$A$3:$AI$823,13,FALSE)=\"-\"),1/0,VLOOKUP($A919,Economática!$A$3:$AI$823,13,FALSE)))","v":""},{"$f":"IF($A919=\"\",\"\",IF(OR(VLOOKUP($A919,Economática!$A$3:$AI$823,14,FALSE)=0,VLOOKUP($A919,Economática!$A$3:$AI$823,14,FALSE)=\"-\"),1/0,VLOOKUP($A919,Economática!$A$3:$AI$823,14,FALSE)))","v":""},{"$f":"IF($A919=\"\",\"\",IF(OR(VLOOKUP($A919,Economática!$A$3:$AI$823,15,FALSE)=0,VLOOKUP($A919,Economática!$A$3:$AI$823,15,FALSE)=\"-\"),1/0,VLOOKUP($A919,Economática!$A$3:$AI$823,15,FALSE)))","v":""},{"$f":"IF($A919=\"\",\"\",IF(OR(VLOOKUP($A919,Economática!$A$3:$AI$823,16,FALSE)=0,VLOOKUP($A919,Economática!$A$3:$AI$823,16,FALSE)=\"-\"),1/0,VLOOKUP($A919,Economática!$A$3:$AI$823,16,FALSE)))","v":""},{"$f":"IF($A919=\"\",\"\",IF(OR(VLOOKUP($A919,Economática!$A$3:$AI$823,17,FALSE)=0,VLOOKUP($A919,Economática!$A$3:$AI$823,17,FALSE)=\"-\"),1/0,VLOOKUP($A919,Economática!$A$3:$AI$823,17,FALSE)))","v":""},{"$f":"IF($A919=\"\",\"\",IF(OR(VLOOKUP($A919,Economática!$A$3:$AI$823,18,FALSE)=0,VLOOKUP($A919,Economática!$A$3:$AI$823,18,FALSE)=\"-\"),1/0,VLOOKUP($A919,Economática!$A$3:$AI$823,18,FALSE)))","v":""},{"$f":"IF($A919=\"\",\"\",IF(OR(VLOOKUP($A919,Economática!$A$3:$AI$823,19,FALSE)=0,VLOOKUP($A919,Economática!$A$3:$AI$823,19,FALSE)=\"-\"),1/0,VLOOKUP($A919,Economática!$A$3:$AI$823,19,FALSE)))","v":""},{"$f":"IF($A919=\"\",\"\",VLOOKUP($A919,Economática!$A$3:$AI$823,20,FALSE)/E919)","v":""},"","","",{"$f":"IF($A919=\"\",\"\",IF(OR(VLOOKUP($A919,Economática!$A$3:$AI$823,21,FALSE)/100=0,VLOOKUP($A919,Economática!$A$3:$AI$823,21,FALSE)/100=\"-\"),1/0,VLOOKUP($A919,Economática!$A$3:$AI$823,21,FALSE)/100))","v":""},{"$f":"IF($A919=\"\",\"\",IF(OR(VLOOKUP($A919,Economática!$A$3:$AI$823,22,FALSE)/100=0,VLOOKUP($A919,Economática!$A$3:$AI$823,22,FALSE)/100=\"-\"),1/0,VLOOKUP($A919,Economática!$A$3:$AI$823,22,FALSE)/100))","v":""},{"$f":"IF($A919=\"\",\"\",IF(OR(VLOOKUP($A919,Economática!$A$3:$AI$823,23,FALSE)=0,VLOOKUP($A919,Economática!$A$3:$AI$823,23,FALSE)=\"-\"),1/0,VLOOKUP($A919,Economática!$A$3:$AI$823,23,FALSE)))","v":""},{"$f":"IF($A919=\"\",\"\",IF(OR(VLOOKUP($A919,Economática!$A$3:$AI$823,24,FALSE)=0,VLOOKUP($A919,Economática!$A$3:$AI$823,24,FALSE)=\"-\"),1/0,VLOOKUP($A919,Economática!$A$3:$AI$823,24,FALSE)))","v":""},{"$f":"IF($A919=\"\",\"\",IF(OR(VLOOKUP($A919,Economática!$A$3:$AI$823,25,FALSE)=0,VLOOKUP($A919,Economática!$A$3:$AI$823,25,FALSE)=\"-\"),1/0,VLOOKUP($A919,Economática!$A$3:$AI$823,25,FALSE)))","v":""},{"$f":"IF($A919=\"\",\"\",IF(ISERROR((F919+VLOOKUP($A919,Economática!$A$3:$AI$823,26,FALSE))/Y919),(F919+VLOOKUP($A919,Economática!$A$3:$AI$823,26,FALSE))/Y919,(F919+VLOOKUP($A919,Economática!$A$3:$AI$823,26,FALSE))/Y919))","v":""},{"$f":"IF($A919=\"\",\"\",IF(OR(-VLOOKUP($A919,Economática!$A$3:$AI$823,27,FALSE)=0,-VLOOKUP($A919,Economática!$A$3:$AI$823,27,FALSE)=\"-\"),1/0,-VLOOKUP($A919,Economática!$A$3:$AI$823,27,FALSE)))","v":""},"",{"$f":"IF($A919=\"\",\"\",IF(OR(VLOOKUP($A919,Economática!$A$3:$AI$823,28,FALSE)=0,VLOOKUP($A919,Economática!$A$3:$AI$823,28,FALSE)=\"-\"),1/0,VLOOKUP($A919,Economática!$A$3:$AI$823,28,FALSE)))","v":""},{"$f":"IF($A919=\"\",\"\",IF(OR(VLOOKUP($A919,Economática!$A$3:$AI$823,29,FALSE)=0,VLOOKUP($A919,Economática!$A$3:$AI$823,29,FALSE)=\"-\"),1/0,VLOOKUP($A919,Economática!$A$3:$AI$823,29,FALSE)))","v":""},{"$f":"IF($A919=\"\",\"\",IF(OR(VLOOKUP($A919,Economática!$A$3:$AI$823,30,FALSE)/E919=0,VLOOKUP($A919,Economática!$A$3:$AI$823,30,FALSE)/E919=\"-\",VLOOKUP($A919,Economática!$A$3:$AI$823,30,FALSE)/E919<33.33%,VLOOKUP($A919,Economática!$A$3:$AI$823,30,FALSE)/E919>100%),1/0,VLOOKUP($A919,Economática!$A$3:$AI$823,30,FALSE)/E919))","v":""},"",{"$f":"IF($A919=\"\",\"\",IF(OR(VLOOKUP($A919,Economática!$A$3:$AI$823,25,FALSE)=0,VLOOKUP($A919,Economática!$A$3:$AI$823,25,FALSE)=\"-\"),1/0,VLOOKUP($A919,Economática!$A$3:$AI$823,25,FALSE)))","v":""},{"$f":"CONCATENATE(Economática!B897,\" \",Economática!C897)","v":" "}]
[{"$f":"IF(Economática!AG898=\"\",\"\",Economática!AG898)","v":""},{"$f":"IF($A920=\"\",\"\",VLOOKUP(VLOOKUP($A920,Economática!$A$3:$AI$823,6,FALSE),Correção!$B$16:$C$36,2,FALSE))","v":""},{"$f":"IF(Economática!B898=\"\",\"\",Economática!B898)","v":""},{"$f":"IF($A920=\"\",\"\",IF(OR(VLOOKUP($A920,Economática!$A$3:$AI$823,8,FALSE)=0,VLOOKUP($A920,Economática!$A$3:$AI$823,8,FALSE)=\"-\"),1/0,VLOOKUP($A920,Economática!$A$3:$AI$823,8,FALSE)))","v":""},{"$f":"IF(A920=\"\",\"\",IF(ISERROR(VLOOKUP(A920,Correção!$B$2:$G$13,9,FALSE)),VLOOKUP($A920,Economática!$A$3:$AI$823,9,FALSE),VLOOKUP(A920,Correção!$B$2:$G$13,9,FALSE)))","v":""},{"$f":"IF($A920=\"\",\"\",Economática!G898)","v":""},{"$f":"IF($A920=\"\",\"\",IF(OR(VLOOKUP($A920,Economática!$A$3:$AI$823,10,FALSE)=0,VLOOKUP($A920,Economática!$A$3:$AI$823,10,FALSE)=\"-\"),1/0,VLOOKUP($A920,Economática!$A$3:$AI$823,10,FALSE)))","v":""},{"$f":"IF($A920=\"\",\"\",IF(OR(VLOOKUP($A920,Economática!$A$3:$AI$823,11,FALSE)=0,VLOOKUP($A920,Economática!$A$3:$AI$823,11,FALSE)=\"-\"),1/0,VLOOKUP($A920,Economática!$A$3:$AI$823,11,FALSE)))","v":""},{"$f":"IF($A920=\"\",\"\",IF(OR(VLOOKUP($A920,Economática!$A$3:$AI$823,12,FALSE)=0,VLOOKUP($A920,Economática!$A$3:$AI$823,12,FALSE)=\"-\"),1/0,VLOOKUP($A920,Economática!$A$3:$AI$823,12,FALSE)))","v":""},{"$f":"IF($A920=\"\",\"\",IF(OR(VLOOKUP($A920,Economática!$A$3:$AI$823,13,FALSE)=0,VLOOKUP($A920,Economática!$A$3:$AI$823,13,FALSE)=\"-\"),1/0,VLOOKUP($A920,Economática!$A$3:$AI$823,13,FALSE)))","v":""},{"$f":"IF($A920=\"\",\"\",IF(OR(VLOOKUP($A920,Economática!$A$3:$AI$823,14,FALSE)=0,VLOOKUP($A920,Economática!$A$3:$AI$823,14,FALSE)=\"-\"),1/0,VLOOKUP($A920,Economática!$A$3:$AI$823,14,FALSE)))","v":""},{"$f":"IF($A920=\"\",\"\",IF(OR(VLOOKUP($A920,Economática!$A$3:$AI$823,15,FALSE)=0,VLOOKUP($A920,Economática!$A$3:$AI$823,15,FALSE)=\"-\"),1/0,VLOOKUP($A920,Economática!$A$3:$AI$823,15,FALSE)))","v":""},{"$f":"IF($A920=\"\",\"\",IF(OR(VLOOKUP($A920,Economática!$A$3:$AI$823,16,FALSE)=0,VLOOKUP($A920,Economática!$A$3:$AI$823,16,FALSE)=\"-\"),1/0,VLOOKUP($A920,Economática!$A$3:$AI$823,16,FALSE)))","v":""},{"$f":"IF($A920=\"\",\"\",IF(OR(VLOOKUP($A920,Economática!$A$3:$AI$823,17,FALSE)=0,VLOOKUP($A920,Economática!$A$3:$AI$823,17,FALSE)=\"-\"),1/0,VLOOKUP($A920,Economática!$A$3:$AI$823,17,FALSE)))","v":""},{"$f":"IF($A920=\"\",\"\",IF(OR(VLOOKUP($A920,Economática!$A$3:$AI$823,18,FALSE)=0,VLOOKUP($A920,Economática!$A$3:$AI$823,18,FALSE)=\"-\"),1/0,VLOOKUP($A920,Economática!$A$3:$AI$823,18,FALSE)))","v":""},{"$f":"IF($A920=\"\",\"\",IF(OR(VLOOKUP($A920,Economática!$A$3:$AI$823,19,FALSE)=0,VLOOKUP($A920,Economática!$A$3:$AI$823,19,FALSE)=\"-\"),1/0,VLOOKUP($A920,Economática!$A$3:$AI$823,19,FALSE)))","v":""},{"$f":"IF($A920=\"\",\"\",VLOOKUP($A920,Economática!$A$3:$AI$823,20,FALSE)/E920)","v":""},"","","",{"$f":"IF($A920=\"\",\"\",IF(OR(VLOOKUP($A920,Economática!$A$3:$AI$823,21,FALSE)/100=0,VLOOKUP($A920,Economática!$A$3:$AI$823,21,FALSE)/100=\"-\"),1/0,VLOOKUP($A920,Economática!$A$3:$AI$823,21,FALSE)/100))","v":""},{"$f":"IF($A920=\"\",\"\",IF(OR(VLOOKUP($A920,Economática!$A$3:$AI$823,22,FALSE)/100=0,VLOOKUP($A920,Economática!$A$3:$AI$823,22,FALSE)/100=\"-\"),1/0,VLOOKUP($A920,Economática!$A$3:$AI$823,22,FALSE)/100))","v":""},{"$f":"IF($A920=\"\",\"\",IF(OR(VLOOKUP($A920,Economática!$A$3:$AI$823,23,FALSE)=0,VLOOKUP($A920,Economática!$A$3:$AI$823,23,FALSE)=\"-\"),1/0,VLOOKUP($A920,Economática!$A$3:$AI$823,23,FALSE)))","v":""},{"$f":"IF($A920=\"\",\"\",IF(OR(VLOOKUP($A920,Economática!$A$3:$AI$823,24,FALSE)=0,VLOOKUP($A920,Economática!$A$3:$AI$823,24,FALSE)=\"-\"),1/0,VLOOKUP($A920,Economática!$A$3:$AI$823,24,FALSE)))","v":""},{"$f":"IF($A920=\"\",\"\",IF(OR(VLOOKUP($A920,Economática!$A$3:$AI$823,25,FALSE)=0,VLOOKUP($A920,Economática!$A$3:$AI$823,25,FALSE)=\"-\"),1/0,VLOOKUP($A920,Economática!$A$3:$AI$823,25,FALSE)))","v":""},{"$f":"IF($A920=\"\",\"\",IF(ISERROR((F920+VLOOKUP($A920,Economática!$A$3:$AI$823,26,FALSE))/Y920),(F920+VLOOKUP($A920,Economática!$A$3:$AI$823,26,FALSE))/Y920,(F920+VLOOKUP($A920,Economática!$A$3:$AI$823,26,FALSE))/Y920))","v":""},{"$f":"IF($A920=\"\",\"\",IF(OR(-VLOOKUP($A920,Economática!$A$3:$AI$823,27,FALSE)=0,-VLOOKUP($A920,Economática!$A$3:$AI$823,27,FALSE)=\"-\"),1/0,-VLOOKUP($A920,Economática!$A$3:$AI$823,27,FALSE)))","v":""},"",{"$f":"IF($A920=\"\",\"\",IF(OR(VLOOKUP($A920,Economática!$A$3:$AI$823,28,FALSE)=0,VLOOKUP($A920,Economática!$A$3:$AI$823,28,FALSE)=\"-\"),1/0,VLOOKUP($A920,Economática!$A$3:$AI$823,28,FALSE)))","v":""},{"$f":"IF($A920=\"\",\"\",IF(OR(VLOOKUP($A920,Economática!$A$3:$AI$823,29,FALSE)=0,VLOOKUP($A920,Economática!$A$3:$AI$823,29,FALSE)=\"-\"),1/0,VLOOKUP($A920,Economática!$A$3:$AI$823,29,FALSE)))","v":""},{"$f":"IF($A920=\"\",\"\",IF(OR(VLOOKUP($A920,Economática!$A$3:$AI$823,30,FALSE)/E920=0,VLOOKUP($A920,Economática!$A$3:$AI$823,30,FALSE)/E920=\"-\",VLOOKUP($A920,Economática!$A$3:$AI$823,30,FALSE)/E920<33.33%,VLOOKUP($A920,Economática!$A$3:$AI$823,30,FALSE)/E920>100%),1/0,VLOOKUP($A920,Economática!$A$3:$AI$823,30,FALSE)/E920))","v":""},"",{"$f":"IF($A920=\"\",\"\",IF(OR(VLOOKUP($A920,Economática!$A$3:$AI$823,25,FALSE)=0,VLOOKUP($A920,Economática!$A$3:$AI$823,25,FALSE)=\"-\"),1/0,VLOOKUP($A920,Economática!$A$3:$AI$823,25,FALSE)))","v":""},{"$f":"CONCATENATE(Economática!B898,\" \",Economática!C898)","v":" "}]
[{"$f":"IF(Economática!AG899=\"\",\"\",Economática!AG899)","v":""},{"$f":"IF($A921=\"\",\"\",VLOOKUP(VLOOKUP($A921,Economática!$A$3:$AI$823,6,FALSE),Correção!$B$16:$C$36,2,FALSE))","v":""},{"$f":"IF(Economática!B899=\"\",\"\",Economática!B899)","v":""},{"$f":"IF($A921=\"\",\"\",IF(OR(VLOOKUP($A921,Economática!$A$3:$AI$823,8,FALSE)=0,VLOOKUP($A921,Economática!$A$3:$AI$823,8,FALSE)=\"-\"),1/0,VLOOKUP($A921,Economática!$A$3:$AI$823,8,FALSE)))","v":""},{"$f":"IF(A921=\"\",\"\",IF(ISERROR(VLOOKUP(A921,Correção!$B$2:$G$13,9,FALSE)),VLOOKUP($A921,Economática!$A$3:$AI$823,9,FALSE),VLOOKUP(A921,Correção!$B$2:$G$13,9,FALSE)))","v":""},{"$f":"IF($A921=\"\",\"\",Economática!G899)","v":""},{"$f":"IF($A921=\"\",\"\",IF(OR(VLOOKUP($A921,Economática!$A$3:$AI$823,10,FALSE)=0,VLOOKUP($A921,Economática!$A$3:$AI$823,10,FALSE)=\"-\"),1/0,VLOOKUP($A921,Economática!$A$3:$AI$823,10,FALSE)))","v":""},{"$f":"IF($A921=\"\",\"\",IF(OR(VLOOKUP($A921,Economática!$A$3:$AI$823,11,FALSE)=0,VLOOKUP($A921,Economática!$A$3:$AI$823,11,FALSE)=\"-\"),1/0,VLOOKUP($A921,Economática!$A$3:$AI$823,11,FALSE)))","v":""},{"$f":"IF($A921=\"\",\"\",IF(OR(VLOOKUP($A921,Economática!$A$3:$AI$823,12,FALSE)=0,VLOOKUP($A921,Economática!$A$3:$AI$823,12,FALSE)=\"-\"),1/0,VLOOKUP($A921,Economática!$A$3:$AI$823,12,FALSE)))","v":""},{"$f":"IF($A921=\"\",\"\",IF(OR(VLOOKUP($A921,Economática!$A$3:$AI$823,13,FALSE)=0,VLOOKUP($A921,Economática!$A$3:$AI$823,13,FALSE)=\"-\"),1/0,VLOOKUP($A921,Economática!$A$3:$AI$823,13,FALSE)))","v":""},{"$f":"IF($A921=\"\",\"\",IF(OR(VLOOKUP($A921,Economática!$A$3:$AI$823,14,FALSE)=0,VLOOKUP($A921,Economática!$A$3:$AI$823,14,FALSE)=\"-\"),1/0,VLOOKUP($A921,Economática!$A$3:$AI$823,14,FALSE)))","v":""},{"$f":"IF($A921=\"\",\"\",IF(OR(VLOOKUP($A921,Economática!$A$3:$AI$823,15,FALSE)=0,VLOOKUP($A921,Economática!$A$3:$AI$823,15,FALSE)=\"-\"),1/0,VLOOKUP($A921,Economática!$A$3:$AI$823,15,FALSE)))","v":""},{"$f":"IF($A921=\"\",\"\",IF(OR(VLOOKUP($A921,Economática!$A$3:$AI$823,16,FALSE)=0,VLOOKUP($A921,Economática!$A$3:$AI$823,16,FALSE)=\"-\"),1/0,VLOOKUP($A921,Economática!$A$3:$AI$823,16,FALSE)))","v":""},{"$f":"IF($A921=\"\",\"\",IF(OR(VLOOKUP($A921,Economática!$A$3:$AI$823,17,FALSE)=0,VLOOKUP($A921,Economática!$A$3:$AI$823,17,FALSE)=\"-\"),1/0,VLOOKUP($A921,Economática!$A$3:$AI$823,17,FALSE)))","v":""},{"$f":"IF($A921=\"\",\"\",IF(OR(VLOOKUP($A921,Economática!$A$3:$AI$823,18,FALSE)=0,VLOOKUP($A921,Economática!$A$3:$AI$823,18,FALSE)=\"-\"),1/0,VLOOKUP($A921,Economática!$A$3:$AI$823,18,FALSE)))","v":""},{"$f":"IF($A921=\"\",\"\",IF(OR(VLOOKUP($A921,Economática!$A$3:$AI$823,19,FALSE)=0,VLOOKUP($A921,Economática!$A$3:$AI$823,19,FALSE)=\"-\"),1/0,VLOOKUP($A921,Economática!$A$3:$AI$823,19,FALSE)))","v":""},{"$f":"IF($A921=\"\",\"\",VLOOKUP($A921,Economática!$A$3:$AI$823,20,FALSE)/E921)","v":""},"","","",{"$f":"IF($A921=\"\",\"\",IF(OR(VLOOKUP($A921,Economática!$A$3:$AI$823,21,FALSE)/100=0,VLOOKUP($A921,Economática!$A$3:$AI$823,21,FALSE)/100=\"-\"),1/0,VLOOKUP($A921,Economática!$A$3:$AI$823,21,FALSE)/100))","v":""},{"$f":"IF($A921=\"\",\"\",IF(OR(VLOOKUP($A921,Economática!$A$3:$AI$823,22,FALSE)/100=0,VLOOKUP($A921,Economática!$A$3:$AI$823,22,FALSE)/100=\"-\"),1/0,VLOOKUP($A921,Economática!$A$3:$AI$823,22,FALSE)/100))","v":""},{"$f":"IF($A921=\"\",\"\",IF(OR(VLOOKUP($A921,Economática!$A$3:$AI$823,23,FALSE)=0,VLOOKUP($A921,Economática!$A$3:$AI$823,23,FALSE)=\"-\"),1/0,VLOOKUP($A921,Economática!$A$3:$AI$823,23,FALSE)))","v":""},{"$f":"IF($A921=\"\",\"\",IF(OR(VLOOKUP($A921,Economática!$A$3:$AI$823,24,FALSE)=0,VLOOKUP($A921,Economática!$A$3:$AI$823,24,FALSE)=\"-\"),1/0,VLOOKUP($A921,Economática!$A$3:$AI$823,24,FALSE)))","v":""},{"$f":"IF($A921=\"\",\"\",IF(OR(VLOOKUP($A921,Economática!$A$3:$AI$823,25,FALSE)=0,VLOOKUP($A921,Economática!$A$3:$AI$823,25,FALSE)=\"-\"),1/0,VLOOKUP($A921,Economática!$A$3:$AI$823,25,FALSE)))","v":""},{"$f":"IF($A921=\"\",\"\",IF(ISERROR((F921+VLOOKUP($A921,Economática!$A$3:$AI$823,26,FALSE))/Y921),(F921+VLOOKUP($A921,Economática!$A$3:$AI$823,26,FALSE))/Y921,(F921+VLOOKUP($A921,Economática!$A$3:$AI$823,26,FALSE))/Y921))","v":""},{"$f":"IF($A921=\"\",\"\",IF(OR(-VLOOKUP($A921,Economática!$A$3:$AI$823,27,FALSE)=0,-VLOOKUP($A921,Economática!$A$3:$AI$823,27,FALSE)=\"-\"),1/0,-VLOOKUP($A921,Economática!$A$3:$AI$823,27,FALSE)))","v":""},"",{"$f":"IF($A921=\"\",\"\",IF(OR(VLOOKUP($A921,Economática!$A$3:$AI$823,28,FALSE)=0,VLOOKUP($A921,Economática!$A$3:$AI$823,28,FALSE)=\"-\"),1/0,VLOOKUP($A921,Economática!$A$3:$AI$823,28,FALSE)))","v":""},{"$f":"IF($A921=\"\",\"\",IF(OR(VLOOKUP($A921,Economática!$A$3:$AI$823,29,FALSE)=0,VLOOKUP($A921,Economática!$A$3:$AI$823,29,FALSE)=\"-\"),1/0,VLOOKUP($A921,Economática!$A$3:$AI$823,29,FALSE)))","v":""},{"$f":"IF($A921=\"\",\"\",IF(OR(VLOOKUP($A921,Economática!$A$3:$AI$823,30,FALSE)/E921=0,VLOOKUP($A921,Economática!$A$3:$AI$823,30,FALSE)/E921=\"-\",VLOOKUP($A921,Economática!$A$3:$AI$823,30,FALSE)/E921<33.33%,VLOOKUP($A921,Economática!$A$3:$AI$823,30,FALSE)/E921>100%),1/0,VLOOKUP($A921,Economática!$A$3:$AI$823,30,FALSE)/E921))","v":""},"",{"$f":"IF($A921=\"\",\"\",IF(OR(VLOOKUP($A921,Economática!$A$3:$AI$823,25,FALSE)=0,VLOOKUP($A921,Economática!$A$3:$AI$823,25,FALSE)=\"-\"),1/0,VLOOKUP($A921,Economática!$A$3:$AI$823,25,FALSE)))","v":""},{"$f":"CONCATENATE(Economática!B899,\" \",Economática!C899)","v":" "}]
[{"$f":"IF(Economática!AG900=\"\",\"\",Economática!AG900)","v":""},{"$f":"IF($A922=\"\",\"\",VLOOKUP(VLOOKUP($A922,Economática!$A$3:$AI$823,6,FALSE),Correção!$B$16:$C$36,2,FALSE))","v":""},{"$f":"IF(Economática!B900=\"\",\"\",Economática!B900)","v":""},{"$f":"IF($A922=\"\",\"\",IF(OR(VLOOKUP($A922,Economática!$A$3:$AI$823,8,FALSE)=0,VLOOKUP($A922,Economática!$A$3:$AI$823,8,FALSE)=\"-\"),1/0,VLOOKUP($A922,Economática!$A$3:$AI$823,8,FALSE)))","v":""},{"$f":"IF(A922=\"\",\"\",IF(ISERROR(VLOOKUP(A922,Correção!$B$2:$G$13,9,FALSE)),VLOOKUP($A922,Economática!$A$3:$AI$823,9,FALSE),VLOOKUP(A922,Correção!$B$2:$G$13,9,FALSE)))","v":""},{"$f":"IF($A922=\"\",\"\",Economática!G900)","v":""},{"$f":"IF($A922=\"\",\"\",IF(OR(VLOOKUP($A922,Economática!$A$3:$AI$823,10,FALSE)=0,VLOOKUP($A922,Economática!$A$3:$AI$823,10,FALSE)=\"-\"),1/0,VLOOKUP($A922,Economática!$A$3:$AI$823,10,FALSE)))","v":""},{"$f":"IF($A922=\"\",\"\",IF(OR(VLOOKUP($A922,Economática!$A$3:$AI$823,11,FALSE)=0,VLOOKUP($A922,Economática!$A$3:$AI$823,11,FALSE)=\"-\"),1/0,VLOOKUP($A922,Economática!$A$3:$AI$823,11,FALSE)))","v":""},{"$f":"IF($A922=\"\",\"\",IF(OR(VLOOKUP($A922,Economática!$A$3:$AI$823,12,FALSE)=0,VLOOKUP($A922,Economática!$A$3:$AI$823,12,FALSE)=\"-\"),1/0,VLOOKUP($A922,Economática!$A$3:$AI$823,12,FALSE)))","v":""},{"$f":"IF($A922=\"\",\"\",IF(OR(VLOOKUP($A922,Economática!$A$3:$AI$823,13,FALSE)=0,VLOOKUP($A922,Economática!$A$3:$AI$823,13,FALSE)=\"-\"),1/0,VLOOKUP($A922,Economática!$A$3:$AI$823,13,FALSE)))","v":""},{"$f":"IF($A922=\"\",\"\",IF(OR(VLOOKUP($A922,Economática!$A$3:$AI$823,14,FALSE)=0,VLOOKUP($A922,Economática!$A$3:$AI$823,14,FALSE)=\"-\"),1/0,VLOOKUP($A922,Economática!$A$3:$AI$823,14,FALSE)))","v":""},{"$f":"IF($A922=\"\",\"\",IF(OR(VLOOKUP($A922,Economática!$A$3:$AI$823,15,FALSE)=0,VLOOKUP($A922,Economática!$A$3:$AI$823,15,FALSE)=\"-\"),1/0,VLOOKUP($A922,Economática!$A$3:$AI$823,15,FALSE)))","v":""},{"$f":"IF($A922=\"\",\"\",IF(OR(VLOOKUP($A922,Economática!$A$3:$AI$823,16,FALSE)=0,VLOOKUP($A922,Economática!$A$3:$AI$823,16,FALSE)=\"-\"),1/0,VLOOKUP($A922,Economática!$A$3:$AI$823,16,FALSE)))","v":""},{"$f":"IF($A922=\"\",\"\",IF(OR(VLOOKUP($A922,Economática!$A$3:$AI$823,17,FALSE)=0,VLOOKUP($A922,Economática!$A$3:$AI$823,17,FALSE)=\"-\"),1/0,VLOOKUP($A922,Economática!$A$3:$AI$823,17,FALSE)))","v":""},{"$f":"IF($A922=\"\",\"\",IF(OR(VLOOKUP($A922,Economática!$A$3:$AI$823,18,FALSE)=0,VLOOKUP($A922,Economática!$A$3:$AI$823,18,FALSE)=\"-\"),1/0,VLOOKUP($A922,Economática!$A$3:$AI$823,18,FALSE)))","v":""},{"$f":"IF($A922=\"\",\"\",IF(OR(VLOOKUP($A922,Economática!$A$3:$AI$823,19,FALSE)=0,VLOOKUP($A922,Economática!$A$3:$AI$823,19,FALSE)=\"-\"),1/0,VLOOKUP($A922,Economática!$A$3:$AI$823,19,FALSE)))","v":""},{"$f":"IF($A922=\"\",\"\",VLOOKUP($A922,Economática!$A$3:$AI$823,20,FALSE)/E922)","v":""},"","","",{"$f":"IF($A922=\"\",\"\",IF(OR(VLOOKUP($A922,Economática!$A$3:$AI$823,21,FALSE)/100=0,VLOOKUP($A922,Economática!$A$3:$AI$823,21,FALSE)/100=\"-\"),1/0,VLOOKUP($A922,Economática!$A$3:$AI$823,21,FALSE)/100))","v":""},{"$f":"IF($A922=\"\",\"\",IF(OR(VLOOKUP($A922,Economática!$A$3:$AI$823,22,FALSE)/100=0,VLOOKUP($A922,Economática!$A$3:$AI$823,22,FALSE)/100=\"-\"),1/0,VLOOKUP($A922,Economática!$A$3:$AI$823,22,FALSE)/100))","v":""},{"$f":"IF($A922=\"\",\"\",IF(OR(VLOOKUP($A922,Economática!$A$3:$AI$823,23,FALSE)=0,VLOOKUP($A922,Economática!$A$3:$AI$823,23,FALSE)=\"-\"),1/0,VLOOKUP($A922,Economática!$A$3:$AI$823,23,FALSE)))","v":""},{"$f":"IF($A922=\"\",\"\",IF(OR(VLOOKUP($A922,Economática!$A$3:$AI$823,24,FALSE)=0,VLOOKUP($A922,Economática!$A$3:$AI$823,24,FALSE)=\"-\"),1/0,VLOOKUP($A922,Economática!$A$3:$AI$823,24,FALSE)))","v":""},{"$f":"IF($A922=\"\",\"\",IF(OR(VLOOKUP($A922,Economática!$A$3:$AI$823,25,FALSE)=0,VLOOKUP($A922,Economática!$A$3:$AI$823,25,FALSE)=\"-\"),1/0,VLOOKUP($A922,Economática!$A$3:$AI$823,25,FALSE)))","v":""},{"$f":"IF($A922=\"\",\"\",IF(ISERROR((F922+VLOOKUP($A922,Economática!$A$3:$AI$823,26,FALSE))/Y922),(F922+VLOOKUP($A922,Economática!$A$3:$AI$823,26,FALSE))/Y922,(F922+VLOOKUP($A922,Economática!$A$3:$AI$823,26,FALSE))/Y922))","v":""},{"$f":"IF($A922=\"\",\"\",IF(OR(-VLOOKUP($A922,Economática!$A$3:$AI$823,27,FALSE)=0,-VLOOKUP($A922,Economática!$A$3:$AI$823,27,FALSE)=\"-\"),1/0,-VLOOKUP($A922,Economática!$A$3:$AI$823,27,FALSE)))","v":""},"",{"$f":"IF($A922=\"\",\"\",IF(OR(VLOOKUP($A922,Economática!$A$3:$AI$823,28,FALSE)=0,VLOOKUP($A922,Economática!$A$3:$AI$823,28,FALSE)=\"-\"),1/0,VLOOKUP($A922,Economática!$A$3:$AI$823,28,FALSE)))","v":""},{"$f":"IF($A922=\"\",\"\",IF(OR(VLOOKUP($A922,Economática!$A$3:$AI$823,29,FALSE)=0,VLOOKUP($A922,Economática!$A$3:$AI$823,29,FALSE)=\"-\"),1/0,VLOOKUP($A922,Economática!$A$3:$AI$823,29,FALSE)))","v":""},{"$f":"IF($A922=\"\",\"\",IF(OR(VLOOKUP($A922,Economática!$A$3:$AI$823,30,FALSE)/E922=0,VLOOKUP($A922,Economática!$A$3:$AI$823,30,FALSE)/E922=\"-\",VLOOKUP($A922,Economática!$A$3:$AI$823,30,FALSE)/E922<33.33%,VLOOKUP($A922,Economática!$A$3:$AI$823,30,FALSE)/E922>100%),1/0,VLOOKUP($A922,Economática!$A$3:$AI$823,30,FALSE)/E922))","v":""},"",{"$f":"IF($A922=\"\",\"\",IF(OR(VLOOKUP($A922,Economática!$A$3:$AI$823,25,FALSE)=0,VLOOKUP($A922,Economática!$A$3:$AI$823,25,FALSE)=\"-\"),1/0,VLOOKUP($A922,Economática!$A$3:$AI$823,25,FALSE)))","v":""},{"$f":"CONCATENATE(Economática!B900,\" \",Economática!C900)","v":" "}]
[{"$f":"IF(Economática!AG901=\"\",\"\",Economática!AG901)","v":""},{"$f":"IF($A923=\"\",\"\",VLOOKUP(VLOOKUP($A923,Economática!$A$3:$AI$823,6,FALSE),Correção!$B$16:$C$36,2,FALSE))","v":""},{"$f":"IF(Economática!B901=\"\",\"\",Economática!B901)","v":""},{"$f":"IF($A923=\"\",\"\",IF(OR(VLOOKUP($A923,Economática!$A$3:$AI$823,8,FALSE)=0,VLOOKUP($A923,Economática!$A$3:$AI$823,8,FALSE)=\"-\"),1/0,VLOOKUP($A923,Economática!$A$3:$AI$823,8,FALSE)))","v":""},{"$f":"IF(A923=\"\",\"\",IF(ISERROR(VLOOKUP(A923,Correção!$B$2:$G$13,9,FALSE)),VLOOKUP($A923,Economática!$A$3:$AI$823,9,FALSE),VLOOKUP(A923,Correção!$B$2:$G$13,9,FALSE)))","v":""},{"$f":"IF($A923=\"\",\"\",Economática!G901)","v":""},{"$f":"IF($A923=\"\",\"\",IF(OR(VLOOKUP($A923,Economática!$A$3:$AI$823,10,FALSE)=0,VLOOKUP($A923,Economática!$A$3:$AI$823,10,FALSE)=\"-\"),1/0,VLOOKUP($A923,Economática!$A$3:$AI$823,10,FALSE)))","v":""},{"$f":"IF($A923=\"\",\"\",IF(OR(VLOOKUP($A923,Economática!$A$3:$AI$823,11,FALSE)=0,VLOOKUP($A923,Economática!$A$3:$AI$823,11,FALSE)=\"-\"),1/0,VLOOKUP($A923,Economática!$A$3:$AI$823,11,FALSE)))","v":""},{"$f":"IF($A923=\"\",\"\",IF(OR(VLOOKUP($A923,Economática!$A$3:$AI$823,12,FALSE)=0,VLOOKUP($A923,Economática!$A$3:$AI$823,12,FALSE)=\"-\"),1/0,VLOOKUP($A923,Economática!$A$3:$AI$823,12,FALSE)))","v":""},{"$f":"IF($A923=\"\",\"\",IF(OR(VLOOKUP($A923,Economática!$A$3:$AI$823,13,FALSE)=0,VLOOKUP($A923,Economática!$A$3:$AI$823,13,FALSE)=\"-\"),1/0,VLOOKUP($A923,Economática!$A$3:$AI$823,13,FALSE)))","v":""},{"$f":"IF($A923=\"\",\"\",IF(OR(VLOOKUP($A923,Economática!$A$3:$AI$823,14,FALSE)=0,VLOOKUP($A923,Economática!$A$3:$AI$823,14,FALSE)=\"-\"),1/0,VLOOKUP($A923,Economática!$A$3:$AI$823,14,FALSE)))","v":""},{"$f":"IF($A923=\"\",\"\",IF(OR(VLOOKUP($A923,Economática!$A$3:$AI$823,15,FALSE)=0,VLOOKUP($A923,Economática!$A$3:$AI$823,15,FALSE)=\"-\"),1/0,VLOOKUP($A923,Economática!$A$3:$AI$823,15,FALSE)))","v":""},{"$f":"IF($A923=\"\",\"\",IF(OR(VLOOKUP($A923,Economática!$A$3:$AI$823,16,FALSE)=0,VLOOKUP($A923,Economática!$A$3:$AI$823,16,FALSE)=\"-\"),1/0,VLOOKUP($A923,Economática!$A$3:$AI$823,16,FALSE)))","v":""},{"$f":"IF($A923=\"\",\"\",IF(OR(VLOOKUP($A923,Economática!$A$3:$AI$823,17,FALSE)=0,VLOOKUP($A923,Economática!$A$3:$AI$823,17,FALSE)=\"-\"),1/0,VLOOKUP($A923,Economática!$A$3:$AI$823,17,FALSE)))","v":""},{"$f":"IF($A923=\"\",\"\",IF(OR(VLOOKUP($A923,Economática!$A$3:$AI$823,18,FALSE)=0,VLOOKUP($A923,Economática!$A$3:$AI$823,18,FALSE)=\"-\"),1/0,VLOOKUP($A923,Economática!$A$3:$AI$823,18,FALSE)))","v":""},{"$f":"IF($A923=\"\",\"\",IF(OR(VLOOKUP($A923,Economática!$A$3:$AI$823,19,FALSE)=0,VLOOKUP($A923,Economática!$A$3:$AI$823,19,FALSE)=\"-\"),1/0,VLOOKUP($A923,Economática!$A$3:$AI$823,19,FALSE)))","v":""},{"$f":"IF($A923=\"\",\"\",VLOOKUP($A923,Economática!$A$3:$AI$823,20,FALSE)/E923)","v":""},"","","",{"$f":"IF($A923=\"\",\"\",IF(OR(VLOOKUP($A923,Economática!$A$3:$AI$823,21,FALSE)/100=0,VLOOKUP($A923,Economática!$A$3:$AI$823,21,FALSE)/100=\"-\"),1/0,VLOOKUP($A923,Economática!$A$3:$AI$823,21,FALSE)/100))","v":""},{"$f":"IF($A923=\"\",\"\",IF(OR(VLOOKUP($A923,Economática!$A$3:$AI$823,22,FALSE)/100=0,VLOOKUP($A923,Economática!$A$3:$AI$823,22,FALSE)/100=\"-\"),1/0,VLOOKUP($A923,Economática!$A$3:$AI$823,22,FALSE)/100))","v":""},{"$f":"IF($A923=\"\",\"\",IF(OR(VLOOKUP($A923,Economática!$A$3:$AI$823,23,FALSE)=0,VLOOKUP($A923,Economática!$A$3:$AI$823,23,FALSE)=\"-\"),1/0,VLOOKUP($A923,Economática!$A$3:$AI$823,23,FALSE)))","v":""},{"$f":"IF($A923=\"\",\"\",IF(OR(VLOOKUP($A923,Economática!$A$3:$AI$823,24,FALSE)=0,VLOOKUP($A923,Economática!$A$3:$AI$823,24,FALSE)=\"-\"),1/0,VLOOKUP($A923,Economática!$A$3:$AI$823,24,FALSE)))","v":""},{"$f":"IF($A923=\"\",\"\",IF(OR(VLOOKUP($A923,Economática!$A$3:$AI$823,25,FALSE)=0,VLOOKUP($A923,Economática!$A$3:$AI$823,25,FALSE)=\"-\"),1/0,VLOOKUP($A923,Economática!$A$3:$AI$823,25,FALSE)))","v":""},{"$f":"IF($A923=\"\",\"\",IF(ISERROR((F923+VLOOKUP($A923,Economática!$A$3:$AI$823,26,FALSE))/Y923),(F923+VLOOKUP($A923,Economática!$A$3:$AI$823,26,FALSE))/Y923,(F923+VLOOKUP($A923,Economática!$A$3:$AI$823,26,FALSE))/Y923))","v":""},{"$f":"IF($A923=\"\",\"\",IF(OR(-VLOOKUP($A923,Economática!$A$3:$AI$823,27,FALSE)=0,-VLOOKUP($A923,Economática!$A$3:$AI$823,27,FALSE)=\"-\"),1/0,-VLOOKUP($A923,Economática!$A$3:$AI$823,27,FALSE)))","v":""},"",{"$f":"IF($A923=\"\",\"\",IF(OR(VLOOKUP($A923,Economática!$A$3:$AI$823,28,FALSE)=0,VLOOKUP($A923,Economática!$A$3:$AI$823,28,FALSE)=\"-\"),1/0,VLOOKUP($A923,Economática!$A$3:$AI$823,28,FALSE)))","v":""},{"$f":"IF($A923=\"\",\"\",IF(OR(VLOOKUP($A923,Economática!$A$3:$AI$823,29,FALSE)=0,VLOOKUP($A923,Economática!$A$3:$AI$823,29,FALSE)=\"-\"),1/0,VLOOKUP($A923,Economática!$A$3:$AI$823,29,FALSE)))","v":""},{"$f":"IF($A923=\"\",\"\",IF(OR(VLOOKUP($A923,Economática!$A$3:$AI$823,30,FALSE)/E923=0,VLOOKUP($A923,Economática!$A$3:$AI$823,30,FALSE)/E923=\"-\",VLOOKUP($A923,Economática!$A$3:$AI$823,30,FALSE)/E923<33.33%,VLOOKUP($A923,Economática!$A$3:$AI$823,30,FALSE)/E923>100%),1/0,VLOOKUP($A923,Economática!$A$3:$AI$823,30,FALSE)/E923))","v":""},"",{"$f":"IF($A923=\"\",\"\",IF(OR(VLOOKUP($A923,Economática!$A$3:$AI$823,25,FALSE)=0,VLOOKUP($A923,Economática!$A$3:$AI$823,25,FALSE)=\"-\"),1/0,VLOOKUP($A923,Economática!$A$3:$AI$823,25,FALSE)))","v":""},{"$f":"CONCATENATE(Economática!B901,\" \",Economática!C901)","v":" "}]
[{"$f":"IF(Economática!AG902=\"\",\"\",Economática!AG902)","v":""},{"$f":"IF($A924=\"\",\"\",VLOOKUP(VLOOKUP($A924,Economática!$A$3:$AI$823,6,FALSE),Correção!$B$16:$C$36,2,FALSE))","v":""},{"$f":"IF(Economática!B902=\"\",\"\",Economática!B902)","v":""},{"$f":"IF($A924=\"\",\"\",IF(OR(VLOOKUP($A924,Economática!$A$3:$AI$823,8,FALSE)=0,VLOOKUP($A924,Economática!$A$3:$AI$823,8,FALSE)=\"-\"),1/0,VLOOKUP($A924,Economática!$A$3:$AI$823,8,FALSE)))","v":""},{"$f":"IF(A924=\"\",\"\",IF(ISERROR(VLOOKUP(A924,Correção!$B$2:$G$13,9,FALSE)),VLOOKUP($A924,Economática!$A$3:$AI$823,9,FALSE),VLOOKUP(A924,Correção!$B$2:$G$13,9,FALSE)))","v":""},{"$f":"IF($A924=\"\",\"\",Economática!G902)","v":""},{"$f":"IF($A924=\"\",\"\",IF(OR(VLOOKUP($A924,Economática!$A$3:$AI$823,10,FALSE)=0,VLOOKUP($A924,Economática!$A$3:$AI$823,10,FALSE)=\"-\"),1/0,VLOOKUP($A924,Economática!$A$3:$AI$823,10,FALSE)))","v":""},{"$f":"IF($A924=\"\",\"\",IF(OR(VLOOKUP($A924,Economática!$A$3:$AI$823,11,FALSE)=0,VLOOKUP($A924,Economática!$A$3:$AI$823,11,FALSE)=\"-\"),1/0,VLOOKUP($A924,Economática!$A$3:$AI$823,11,FALSE)))","v":""},{"$f":"IF($A924=\"\",\"\",IF(OR(VLOOKUP($A924,Economática!$A$3:$AI$823,12,FALSE)=0,VLOOKUP($A924,Economática!$A$3:$AI$823,12,FALSE)=\"-\"),1/0,VLOOKUP($A924,Economática!$A$3:$AI$823,12,FALSE)))","v":""},{"$f":"IF($A924=\"\",\"\",IF(OR(VLOOKUP($A924,Economática!$A$3:$AI$823,13,FALSE)=0,VLOOKUP($A924,Economática!$A$3:$AI$823,13,FALSE)=\"-\"),1/0,VLOOKUP($A924,Economática!$A$3:$AI$823,13,FALSE)))","v":""},{"$f":"IF($A924=\"\",\"\",IF(OR(VLOOKUP($A924,Economática!$A$3:$AI$823,14,FALSE)=0,VLOOKUP($A924,Economática!$A$3:$AI$823,14,FALSE)=\"-\"),1/0,VLOOKUP($A924,Economática!$A$3:$AI$823,14,FALSE)))","v":""},{"$f":"IF($A924=\"\",\"\",IF(OR(VLOOKUP($A924,Economática!$A$3:$AI$823,15,FALSE)=0,VLOOKUP($A924,Economática!$A$3:$AI$823,15,FALSE)=\"-\"),1/0,VLOOKUP($A924,Economática!$A$3:$AI$823,15,FALSE)))","v":""},{"$f":"IF($A924=\"\",\"\",IF(OR(VLOOKUP($A924,Economática!$A$3:$AI$823,16,FALSE)=0,VLOOKUP($A924,Economática!$A$3:$AI$823,16,FALSE)=\"-\"),1/0,VLOOKUP($A924,Economática!$A$3:$AI$823,16,FALSE)))","v":""},{"$f":"IF($A924=\"\",\"\",IF(OR(VLOOKUP($A924,Economática!$A$3:$AI$823,17,FALSE)=0,VLOOKUP($A924,Economática!$A$3:$AI$823,17,FALSE)=\"-\"),1/0,VLOOKUP($A924,Economática!$A$3:$AI$823,17,FALSE)))","v":""},{"$f":"IF($A924=\"\",\"\",IF(OR(VLOOKUP($A924,Economática!$A$3:$AI$823,18,FALSE)=0,VLOOKUP($A924,Economática!$A$3:$AI$823,18,FALSE)=\"-\"),1/0,VLOOKUP($A924,Economática!$A$3:$AI$823,18,FALSE)))","v":""},{"$f":"IF($A924=\"\",\"\",IF(OR(VLOOKUP($A924,Economática!$A$3:$AI$823,19,FALSE)=0,VLOOKUP($A924,Economática!$A$3:$AI$823,19,FALSE)=\"-\"),1/0,VLOOKUP($A924,Economática!$A$3:$AI$823,19,FALSE)))","v":""},{"$f":"IF($A924=\"\",\"\",VLOOKUP($A924,Economática!$A$3:$AI$823,20,FALSE)/E924)","v":""},"","","",{"$f":"IF($A924=\"\",\"\",IF(OR(VLOOKUP($A924,Economática!$A$3:$AI$823,21,FALSE)/100=0,VLOOKUP($A924,Economática!$A$3:$AI$823,21,FALSE)/100=\"-\"),1/0,VLOOKUP($A924,Economática!$A$3:$AI$823,21,FALSE)/100))","v":""},{"$f":"IF($A924=\"\",\"\",IF(OR(VLOOKUP($A924,Economática!$A$3:$AI$823,22,FALSE)/100=0,VLOOKUP($A924,Economática!$A$3:$AI$823,22,FALSE)/100=\"-\"),1/0,VLOOKUP($A924,Economática!$A$3:$AI$823,22,FALSE)/100))","v":""},{"$f":"IF($A924=\"\",\"\",IF(OR(VLOOKUP($A924,Economática!$A$3:$AI$823,23,FALSE)=0,VLOOKUP($A924,Economática!$A$3:$AI$823,23,FALSE)=\"-\"),1/0,VLOOKUP($A924,Economática!$A$3:$AI$823,23,FALSE)))","v":""},{"$f":"IF($A924=\"\",\"\",IF(OR(VLOOKUP($A924,Economática!$A$3:$AI$823,24,FALSE)=0,VLOOKUP($A924,Economática!$A$3:$AI$823,24,FALSE)=\"-\"),1/0,VLOOKUP($A924,Economática!$A$3:$AI$823,24,FALSE)))","v":""},{"$f":"IF($A924=\"\",\"\",IF(OR(VLOOKUP($A924,Economática!$A$3:$AI$823,25,FALSE)=0,VLOOKUP($A924,Economática!$A$3:$AI$823,25,FALSE)=\"-\"),1/0,VLOOKUP($A924,Economática!$A$3:$AI$823,25,FALSE)))","v":""},{"$f":"IF($A924=\"\",\"\",IF(ISERROR((F924+VLOOKUP($A924,Economática!$A$3:$AI$823,26,FALSE))/Y924),(F924+VLOOKUP($A924,Economática!$A$3:$AI$823,26,FALSE))/Y924,(F924+VLOOKUP($A924,Economática!$A$3:$AI$823,26,FALSE))/Y924))","v":""},{"$f":"IF($A924=\"\",\"\",IF(OR(-VLOOKUP($A924,Economática!$A$3:$AI$823,27,FALSE)=0,-VLOOKUP($A924,Economática!$A$3:$AI$823,27,FALSE)=\"-\"),1/0,-VLOOKUP($A924,Economática!$A$3:$AI$823,27,FALSE)))","v":""},"",{"$f":"IF($A924=\"\",\"\",IF(OR(VLOOKUP($A924,Economática!$A$3:$AI$823,28,FALSE)=0,VLOOKUP($A924,Economática!$A$3:$AI$823,28,FALSE)=\"-\"),1/0,VLOOKUP($A924,Economática!$A$3:$AI$823,28,FALSE)))","v":""},{"$f":"IF($A924=\"\",\"\",IF(OR(VLOOKUP($A924,Economática!$A$3:$AI$823,29,FALSE)=0,VLOOKUP($A924,Economática!$A$3:$AI$823,29,FALSE)=\"-\"),1/0,VLOOKUP($A924,Economática!$A$3:$AI$823,29,FALSE)))","v":""},{"$f":"IF($A924=\"\",\"\",IF(OR(VLOOKUP($A924,Economática!$A$3:$AI$823,30,FALSE)/E924=0,VLOOKUP($A924,Economática!$A$3:$AI$823,30,FALSE)/E924=\"-\",VLOOKUP($A924,Economática!$A$3:$AI$823,30,FALSE)/E924<33.33%,VLOOKUP($A924,Economática!$A$3:$AI$823,30,FALSE)/E924>100%),1/0,VLOOKUP($A924,Economática!$A$3:$AI$823,30,FALSE)/E924))","v":""},"",{"$f":"IF($A924=\"\",\"\",IF(OR(VLOOKUP($A924,Economática!$A$3:$AI$823,25,FALSE)=0,VLOOKUP($A924,Economática!$A$3:$AI$823,25,FALSE)=\"-\"),1/0,VLOOKUP($A924,Economática!$A$3:$AI$823,25,FALSE)))","v":""},{"$f":"CONCATENATE(Economática!B902,\" \",Economática!C902)","v":" "}]
[{"$f":"IF(Economática!AG903=\"\",\"\",Economática!AG903)","v":""},{"$f":"IF($A925=\"\",\"\",VLOOKUP(VLOOKUP($A925,Economática!$A$3:$AI$823,6,FALSE),Correção!$B$16:$C$36,2,FALSE))","v":""},{"$f":"IF(Economática!B903=\"\",\"\",Economática!B903)","v":""},{"$f":"IF($A925=\"\",\"\",IF(OR(VLOOKUP($A925,Economática!$A$3:$AI$823,8,FALSE)=0,VLOOKUP($A925,Economática!$A$3:$AI$823,8,FALSE)=\"-\"),1/0,VLOOKUP($A925,Economática!$A$3:$AI$823,8,FALSE)))","v":""},{"$f":"IF(A925=\"\",\"\",IF(ISERROR(VLOOKUP(A925,Correção!$B$2:$G$13,9,FALSE)),VLOOKUP($A925,Economática!$A$3:$AI$823,9,FALSE),VLOOKUP(A925,Correção!$B$2:$G$13,9,FALSE)))","v":""},{"$f":"IF($A925=\"\",\"\",Economática!G903)","v":""},{"$f":"IF($A925=\"\",\"\",IF(OR(VLOOKUP($A925,Economática!$A$3:$AI$823,10,FALSE)=0,VLOOKUP($A925,Economática!$A$3:$AI$823,10,FALSE)=\"-\"),1/0,VLOOKUP($A925,Economática!$A$3:$AI$823,10,FALSE)))","v":""},{"$f":"IF($A925=\"\",\"\",IF(OR(VLOOKUP($A925,Economática!$A$3:$AI$823,11,FALSE)=0,VLOOKUP($A925,Economática!$A$3:$AI$823,11,FALSE)=\"-\"),1/0,VLOOKUP($A925,Economática!$A$3:$AI$823,11,FALSE)))","v":""},{"$f":"IF($A925=\"\",\"\",IF(OR(VLOOKUP($A925,Economática!$A$3:$AI$823,12,FALSE)=0,VLOOKUP($A925,Economática!$A$3:$AI$823,12,FALSE)=\"-\"),1/0,VLOOKUP($A925,Economática!$A$3:$AI$823,12,FALSE)))","v":""},{"$f":"IF($A925=\"\",\"\",IF(OR(VLOOKUP($A925,Economática!$A$3:$AI$823,13,FALSE)=0,VLOOKUP($A925,Economática!$A$3:$AI$823,13,FALSE)=\"-\"),1/0,VLOOKUP($A925,Economática!$A$3:$AI$823,13,FALSE)))","v":""},{"$f":"IF($A925=\"\",\"\",IF(OR(VLOOKUP($A925,Economática!$A$3:$AI$823,14,FALSE)=0,VLOOKUP($A925,Economática!$A$3:$AI$823,14,FALSE)=\"-\"),1/0,VLOOKUP($A925,Economática!$A$3:$AI$823,14,FALSE)))","v":""},{"$f":"IF($A925=\"\",\"\",IF(OR(VLOOKUP($A925,Economática!$A$3:$AI$823,15,FALSE)=0,VLOOKUP($A925,Economática!$A$3:$AI$823,15,FALSE)=\"-\"),1/0,VLOOKUP($A925,Economática!$A$3:$AI$823,15,FALSE)))","v":""},{"$f":"IF($A925=\"\",\"\",IF(OR(VLOOKUP($A925,Economática!$A$3:$AI$823,16,FALSE)=0,VLOOKUP($A925,Economática!$A$3:$AI$823,16,FALSE)=\"-\"),1/0,VLOOKUP($A925,Economática!$A$3:$AI$823,16,FALSE)))","v":""},{"$f":"IF($A925=\"\",\"\",IF(OR(VLOOKUP($A925,Economática!$A$3:$AI$823,17,FALSE)=0,VLOOKUP($A925,Economática!$A$3:$AI$823,17,FALSE)=\"-\"),1/0,VLOOKUP($A925,Economática!$A$3:$AI$823,17,FALSE)))","v":""},{"$f":"IF($A925=\"\",\"\",IF(OR(VLOOKUP($A925,Economática!$A$3:$AI$823,18,FALSE)=0,VLOOKUP($A925,Economática!$A$3:$AI$823,18,FALSE)=\"-\"),1/0,VLOOKUP($A925,Economática!$A$3:$AI$823,18,FALSE)))","v":""},{"$f":"IF($A925=\"\",\"\",IF(OR(VLOOKUP($A925,Economática!$A$3:$AI$823,19,FALSE)=0,VLOOKUP($A925,Economática!$A$3:$AI$823,19,FALSE)=\"-\"),1/0,VLOOKUP($A925,Economática!$A$3:$AI$823,19,FALSE)))","v":""},{"$f":"IF($A925=\"\",\"\",VLOOKUP($A925,Economática!$A$3:$AI$823,20,FALSE)/E925)","v":""},"","","",{"$f":"IF($A925=\"\",\"\",IF(OR(VLOOKUP($A925,Economática!$A$3:$AI$823,21,FALSE)/100=0,VLOOKUP($A925,Economática!$A$3:$AI$823,21,FALSE)/100=\"-\"),1/0,VLOOKUP($A925,Economática!$A$3:$AI$823,21,FALSE)/100))","v":""},{"$f":"IF($A925=\"\",\"\",IF(OR(VLOOKUP($A925,Economática!$A$3:$AI$823,22,FALSE)/100=0,VLOOKUP($A925,Economática!$A$3:$AI$823,22,FALSE)/100=\"-\"),1/0,VLOOKUP($A925,Economática!$A$3:$AI$823,22,FALSE)/100))","v":""},{"$f":"IF($A925=\"\",\"\",IF(OR(VLOOKUP($A925,Economática!$A$3:$AI$823,23,FALSE)=0,VLOOKUP($A925,Economática!$A$3:$AI$823,23,FALSE)=\"-\"),1/0,VLOOKUP($A925,Economática!$A$3:$AI$823,23,FALSE)))","v":""},{"$f":"IF($A925=\"\",\"\",IF(OR(VLOOKUP($A925,Economática!$A$3:$AI$823,24,FALSE)=0,VLOOKUP($A925,Economática!$A$3:$AI$823,24,FALSE)=\"-\"),1/0,VLOOKUP($A925,Economática!$A$3:$AI$823,24,FALSE)))","v":""},{"$f":"IF($A925=\"\",\"\",IF(OR(VLOOKUP($A925,Economática!$A$3:$AI$823,25,FALSE)=0,VLOOKUP($A925,Economática!$A$3:$AI$823,25,FALSE)=\"-\"),1/0,VLOOKUP($A925,Economática!$A$3:$AI$823,25,FALSE)))","v":""},{"$f":"IF($A925=\"\",\"\",IF(ISERROR((F925+VLOOKUP($A925,Economática!$A$3:$AI$823,26,FALSE))/Y925),(F925+VLOOKUP($A925,Economática!$A$3:$AI$823,26,FALSE))/Y925,(F925+VLOOKUP($A925,Economática!$A$3:$AI$823,26,FALSE))/Y925))","v":""},{"$f":"IF($A925=\"\",\"\",IF(OR(-VLOOKUP($A925,Economática!$A$3:$AI$823,27,FALSE)=0,-VLOOKUP($A925,Economática!$A$3:$AI$823,27,FALSE)=\"-\"),1/0,-VLOOKUP($A925,Economática!$A$3:$AI$823,27,FALSE)))","v":""},"",{"$f":"IF($A925=\"\",\"\",IF(OR(VLOOKUP($A925,Economática!$A$3:$AI$823,28,FALSE)=0,VLOOKUP($A925,Economática!$A$3:$AI$823,28,FALSE)=\"-\"),1/0,VLOOKUP($A925,Economática!$A$3:$AI$823,28,FALSE)))","v":""},{"$f":"IF($A925=\"\",\"\",IF(OR(VLOOKUP($A925,Economática!$A$3:$AI$823,29,FALSE)=0,VLOOKUP($A925,Economática!$A$3:$AI$823,29,FALSE)=\"-\"),1/0,VLOOKUP($A925,Economática!$A$3:$AI$823,29,FALSE)))","v":""},{"$f":"IF($A925=\"\",\"\",IF(OR(VLOOKUP($A925,Economática!$A$3:$AI$823,30,FALSE)/E925=0,VLOOKUP($A925,Economática!$A$3:$AI$823,30,FALSE)/E925=\"-\",VLOOKUP($A925,Economática!$A$3:$AI$823,30,FALSE)/E925<33.33%,VLOOKUP($A925,Economática!$A$3:$AI$823,30,FALSE)/E925>100%),1/0,VLOOKUP($A925,Economática!$A$3:$AI$823,30,FALSE)/E925))","v":""},"",{"$f":"IF($A925=\"\",\"\",IF(OR(VLOOKUP($A925,Economática!$A$3:$AI$823,25,FALSE)=0,VLOOKUP($A925,Economática!$A$3:$AI$823,25,FALSE)=\"-\"),1/0,VLOOKUP($A925,Economática!$A$3:$AI$823,25,FALSE)))","v":""},{"$f":"CONCATENATE(Economática!B903,\" \",Economática!C903)","v":" "}]
[{"$f":"IF(Economática!AG904=\"\",\"\",Economática!AG904)","v":""},{"$f":"IF($A926=\"\",\"\",VLOOKUP(VLOOKUP($A926,Economática!$A$3:$AI$823,6,FALSE),Correção!$B$16:$C$36,2,FALSE))","v":""},{"$f":"IF(Economática!B904=\"\",\"\",Economática!B904)","v":""},{"$f":"IF($A926=\"\",\"\",IF(OR(VLOOKUP($A926,Economática!$A$3:$AI$823,8,FALSE)=0,VLOOKUP($A926,Economática!$A$3:$AI$823,8,FALSE)=\"-\"),1/0,VLOOKUP($A926,Economática!$A$3:$AI$823,8,FALSE)))","v":""},{"$f":"IF(A926=\"\",\"\",IF(ISERROR(VLOOKUP(A926,Correção!$B$2:$G$13,9,FALSE)),VLOOKUP($A926,Economática!$A$3:$AI$823,9,FALSE),VLOOKUP(A926,Correção!$B$2:$G$13,9,FALSE)))","v":""},{"$f":"IF($A926=\"\",\"\",Economática!G904)","v":""},{"$f":"IF($A926=\"\",\"\",IF(OR(VLOOKUP($A926,Economática!$A$3:$AI$823,10,FALSE)=0,VLOOKUP($A926,Economática!$A$3:$AI$823,10,FALSE)=\"-\"),1/0,VLOOKUP($A926,Economática!$A$3:$AI$823,10,FALSE)))","v":""},{"$f":"IF($A926=\"\",\"\",IF(OR(VLOOKUP($A926,Economática!$A$3:$AI$823,11,FALSE)=0,VLOOKUP($A926,Economática!$A$3:$AI$823,11,FALSE)=\"-\"),1/0,VLOOKUP($A926,Economática!$A$3:$AI$823,11,FALSE)))","v":""},{"$f":"IF($A926=\"\",\"\",IF(OR(VLOOKUP($A926,Economática!$A$3:$AI$823,12,FALSE)=0,VLOOKUP($A926,Economática!$A$3:$AI$823,12,FALSE)=\"-\"),1/0,VLOOKUP($A926,Economática!$A$3:$AI$823,12,FALSE)))","v":""},{"$f":"IF($A926=\"\",\"\",IF(OR(VLOOKUP($A926,Economática!$A$3:$AI$823,13,FALSE)=0,VLOOKUP($A926,Economática!$A$3:$AI$823,13,FALSE)=\"-\"),1/0,VLOOKUP($A926,Economática!$A$3:$AI$823,13,FALSE)))","v":""},{"$f":"IF($A926=\"\",\"\",IF(OR(VLOOKUP($A926,Economática!$A$3:$AI$823,14,FALSE)=0,VLOOKUP($A926,Economática!$A$3:$AI$823,14,FALSE)=\"-\"),1/0,VLOOKUP($A926,Economática!$A$3:$AI$823,14,FALSE)))","v":""},{"$f":"IF($A926=\"\",\"\",IF(OR(VLOOKUP($A926,Economática!$A$3:$AI$823,15,FALSE)=0,VLOOKUP($A926,Economática!$A$3:$AI$823,15,FALSE)=\"-\"),1/0,VLOOKUP($A926,Economática!$A$3:$AI$823,15,FALSE)))","v":""},{"$f":"IF($A926=\"\",\"\",IF(OR(VLOOKUP($A926,Economática!$A$3:$AI$823,16,FALSE)=0,VLOOKUP($A926,Economática!$A$3:$AI$823,16,FALSE)=\"-\"),1/0,VLOOKUP($A926,Economática!$A$3:$AI$823,16,FALSE)))","v":""},{"$f":"IF($A926=\"\",\"\",IF(OR(VLOOKUP($A926,Economática!$A$3:$AI$823,17,FALSE)=0,VLOOKUP($A926,Economática!$A$3:$AI$823,17,FALSE)=\"-\"),1/0,VLOOKUP($A926,Economática!$A$3:$AI$823,17,FALSE)))","v":""},{"$f":"IF($A926=\"\",\"\",IF(OR(VLOOKUP($A926,Economática!$A$3:$AI$823,18,FALSE)=0,VLOOKUP($A926,Economática!$A$3:$AI$823,18,FALSE)=\"-\"),1/0,VLOOKUP($A926,Economática!$A$3:$AI$823,18,FALSE)))","v":""},{"$f":"IF($A926=\"\",\"\",IF(OR(VLOOKUP($A926,Economática!$A$3:$AI$823,19,FALSE)=0,VLOOKUP($A926,Economática!$A$3:$AI$823,19,FALSE)=\"-\"),1/0,VLOOKUP($A926,Economática!$A$3:$AI$823,19,FALSE)))","v":""},{"$f":"IF($A926=\"\",\"\",VLOOKUP($A926,Economática!$A$3:$AI$823,20,FALSE)/E926)","v":""},"","","",{"$f":"IF($A926=\"\",\"\",IF(OR(VLOOKUP($A926,Economática!$A$3:$AI$823,21,FALSE)/100=0,VLOOKUP($A926,Economática!$A$3:$AI$823,21,FALSE)/100=\"-\"),1/0,VLOOKUP($A926,Economática!$A$3:$AI$823,21,FALSE)/100))","v":""},{"$f":"IF($A926=\"\",\"\",IF(OR(VLOOKUP($A926,Economática!$A$3:$AI$823,22,FALSE)/100=0,VLOOKUP($A926,Economática!$A$3:$AI$823,22,FALSE)/100=\"-\"),1/0,VLOOKUP($A926,Economática!$A$3:$AI$823,22,FALSE)/100))","v":""},{"$f":"IF($A926=\"\",\"\",IF(OR(VLOOKUP($A926,Economática!$A$3:$AI$823,23,FALSE)=0,VLOOKUP($A926,Economática!$A$3:$AI$823,23,FALSE)=\"-\"),1/0,VLOOKUP($A926,Economática!$A$3:$AI$823,23,FALSE)))","v":""},{"$f":"IF($A926=\"\",\"\",IF(OR(VLOOKUP($A926,Economática!$A$3:$AI$823,24,FALSE)=0,VLOOKUP($A926,Economática!$A$3:$AI$823,24,FALSE)=\"-\"),1/0,VLOOKUP($A926,Economática!$A$3:$AI$823,24,FALSE)))","v":""},{"$f":"IF($A926=\"\",\"\",IF(OR(VLOOKUP($A926,Economática!$A$3:$AI$823,25,FALSE)=0,VLOOKUP($A926,Economática!$A$3:$AI$823,25,FALSE)=\"-\"),1/0,VLOOKUP($A926,Economática!$A$3:$AI$823,25,FALSE)))","v":""},{"$f":"IF($A926=\"\",\"\",IF(ISERROR((F926+VLOOKUP($A926,Economática!$A$3:$AI$823,26,FALSE))/Y926),(F926+VLOOKUP($A926,Economática!$A$3:$AI$823,26,FALSE))/Y926,(F926+VLOOKUP($A926,Economática!$A$3:$AI$823,26,FALSE))/Y926))","v":""},{"$f":"IF($A926=\"\",\"\",IF(OR(-VLOOKUP($A926,Economática!$A$3:$AI$823,27,FALSE)=0,-VLOOKUP($A926,Economática!$A$3:$AI$823,27,FALSE)=\"-\"),1/0,-VLOOKUP($A926,Economática!$A$3:$AI$823,27,FALSE)))","v":""},"",{"$f":"IF($A926=\"\",\"\",IF(OR(VLOOKUP($A926,Economática!$A$3:$AI$823,28,FALSE)=0,VLOOKUP($A926,Economática!$A$3:$AI$823,28,FALSE)=\"-\"),1/0,VLOOKUP($A926,Economática!$A$3:$AI$823,28,FALSE)))","v":""},{"$f":"IF($A926=\"\",\"\",IF(OR(VLOOKUP($A926,Economática!$A$3:$AI$823,29,FALSE)=0,VLOOKUP($A926,Economática!$A$3:$AI$823,29,FALSE)=\"-\"),1/0,VLOOKUP($A926,Economática!$A$3:$AI$823,29,FALSE)))","v":""},{"$f":"IF($A926=\"\",\"\",IF(OR(VLOOKUP($A926,Economática!$A$3:$AI$823,30,FALSE)/E926=0,VLOOKUP($A926,Economática!$A$3:$AI$823,30,FALSE)/E926=\"-\",VLOOKUP($A926,Economática!$A$3:$AI$823,30,FALSE)/E926<33.33%,VLOOKUP($A926,Economática!$A$3:$AI$823,30,FALSE)/E926>100%),1/0,VLOOKUP($A926,Economática!$A$3:$AI$823,30,FALSE)/E926))","v":""},"",{"$f":"IF($A926=\"\",\"\",IF(OR(VLOOKUP($A926,Economática!$A$3:$AI$823,25,FALSE)=0,VLOOKUP($A926,Economática!$A$3:$AI$823,25,FALSE)=\"-\"),1/0,VLOOKUP($A926,Economática!$A$3:$AI$823,25,FALSE)))","v":""},{"$f":"CONCATENATE(Economática!B904,\" \",Economática!C904)","v":" "}]
[{"$f":"IF(Economática!AG905=\"\",\"\",Economática!AG905)","v":""},{"$f":"IF($A927=\"\",\"\",VLOOKUP(VLOOKUP($A927,Economática!$A$3:$AI$823,6,FALSE),Correção!$B$16:$C$36,2,FALSE))","v":""},{"$f":"IF(Economática!B905=\"\",\"\",Economática!B905)","v":""},{"$f":"IF($A927=\"\",\"\",IF(OR(VLOOKUP($A927,Economática!$A$3:$AI$823,8,FALSE)=0,VLOOKUP($A927,Economática!$A$3:$AI$823,8,FALSE)=\"-\"),1/0,VLOOKUP($A927,Economática!$A$3:$AI$823,8,FALSE)))","v":""},{"$f":"IF(A927=\"\",\"\",IF(ISERROR(VLOOKUP(A927,Correção!$B$2:$G$13,9,FALSE)),VLOOKUP($A927,Economática!$A$3:$AI$823,9,FALSE),VLOOKUP(A927,Correção!$B$2:$G$13,9,FALSE)))","v":""},{"$f":"IF($A927=\"\",\"\",Economática!G905)","v":""},{"$f":"IF($A927=\"\",\"\",IF(OR(VLOOKUP($A927,Economática!$A$3:$AI$823,10,FALSE)=0,VLOOKUP($A927,Economática!$A$3:$AI$823,10,FALSE)=\"-\"),1/0,VLOOKUP($A927,Economática!$A$3:$AI$823,10,FALSE)))","v":""},{"$f":"IF($A927=\"\",\"\",IF(OR(VLOOKUP($A927,Economática!$A$3:$AI$823,11,FALSE)=0,VLOOKUP($A927,Economática!$A$3:$AI$823,11,FALSE)=\"-\"),1/0,VLOOKUP($A927,Economática!$A$3:$AI$823,11,FALSE)))","v":""},{"$f":"IF($A927=\"\",\"\",IF(OR(VLOOKUP($A927,Economática!$A$3:$AI$823,12,FALSE)=0,VLOOKUP($A927,Economática!$A$3:$AI$823,12,FALSE)=\"-\"),1/0,VLOOKUP($A927,Economática!$A$3:$AI$823,12,FALSE)))","v":""},{"$f":"IF($A927=\"\",\"\",IF(OR(VLOOKUP($A927,Economática!$A$3:$AI$823,13,FALSE)=0,VLOOKUP($A927,Economática!$A$3:$AI$823,13,FALSE)=\"-\"),1/0,VLOOKUP($A927,Economática!$A$3:$AI$823,13,FALSE)))","v":""},{"$f":"IF($A927=\"\",\"\",IF(OR(VLOOKUP($A927,Economática!$A$3:$AI$823,14,FALSE)=0,VLOOKUP($A927,Economática!$A$3:$AI$823,14,FALSE)=\"-\"),1/0,VLOOKUP($A927,Economática!$A$3:$AI$823,14,FALSE)))","v":""},{"$f":"IF($A927=\"\",\"\",IF(OR(VLOOKUP($A927,Economática!$A$3:$AI$823,15,FALSE)=0,VLOOKUP($A927,Economática!$A$3:$AI$823,15,FALSE)=\"-\"),1/0,VLOOKUP($A927,Economática!$A$3:$AI$823,15,FALSE)))","v":""},{"$f":"IF($A927=\"\",\"\",IF(OR(VLOOKUP($A927,Economática!$A$3:$AI$823,16,FALSE)=0,VLOOKUP($A927,Economática!$A$3:$AI$823,16,FALSE)=\"-\"),1/0,VLOOKUP($A927,Economática!$A$3:$AI$823,16,FALSE)))","v":""},{"$f":"IF($A927=\"\",\"\",IF(OR(VLOOKUP($A927,Economática!$A$3:$AI$823,17,FALSE)=0,VLOOKUP($A927,Economática!$A$3:$AI$823,17,FALSE)=\"-\"),1/0,VLOOKUP($A927,Economática!$A$3:$AI$823,17,FALSE)))","v":""},{"$f":"IF($A927=\"\",\"\",IF(OR(VLOOKUP($A927,Economática!$A$3:$AI$823,18,FALSE)=0,VLOOKUP($A927,Economática!$A$3:$AI$823,18,FALSE)=\"-\"),1/0,VLOOKUP($A927,Economática!$A$3:$AI$823,18,FALSE)))","v":""},{"$f":"IF($A927=\"\",\"\",IF(OR(VLOOKUP($A927,Economática!$A$3:$AI$823,19,FALSE)=0,VLOOKUP($A927,Economática!$A$3:$AI$823,19,FALSE)=\"-\"),1/0,VLOOKUP($A927,Economática!$A$3:$AI$823,19,FALSE)))","v":""},{"$f":"IF($A927=\"\",\"\",VLOOKUP($A927,Economática!$A$3:$AI$823,20,FALSE)/E927)","v":""},"","","",{"$f":"IF($A927=\"\",\"\",IF(OR(VLOOKUP($A927,Economática!$A$3:$AI$823,21,FALSE)/100=0,VLOOKUP($A927,Economática!$A$3:$AI$823,21,FALSE)/100=\"-\"),1/0,VLOOKUP($A927,Economática!$A$3:$AI$823,21,FALSE)/100))","v":""},{"$f":"IF($A927=\"\",\"\",IF(OR(VLOOKUP($A927,Economática!$A$3:$AI$823,22,FALSE)/100=0,VLOOKUP($A927,Economática!$A$3:$AI$823,22,FALSE)/100=\"-\"),1/0,VLOOKUP($A927,Economática!$A$3:$AI$823,22,FALSE)/100))","v":""},{"$f":"IF($A927=\"\",\"\",IF(OR(VLOOKUP($A927,Economática!$A$3:$AI$823,23,FALSE)=0,VLOOKUP($A927,Economática!$A$3:$AI$823,23,FALSE)=\"-\"),1/0,VLOOKUP($A927,Economática!$A$3:$AI$823,23,FALSE)))","v":""},{"$f":"IF($A927=\"\",\"\",IF(OR(VLOOKUP($A927,Economática!$A$3:$AI$823,24,FALSE)=0,VLOOKUP($A927,Economática!$A$3:$AI$823,24,FALSE)=\"-\"),1/0,VLOOKUP($A927,Economática!$A$3:$AI$823,24,FALSE)))","v":""},{"$f":"IF($A927=\"\",\"\",IF(OR(VLOOKUP($A927,Economática!$A$3:$AI$823,25,FALSE)=0,VLOOKUP($A927,Economática!$A$3:$AI$823,25,FALSE)=\"-\"),1/0,VLOOKUP($A927,Economática!$A$3:$AI$823,25,FALSE)))","v":""},{"$f":"IF($A927=\"\",\"\",IF(ISERROR((F927+VLOOKUP($A927,Economática!$A$3:$AI$823,26,FALSE))/Y927),(F927+VLOOKUP($A927,Economática!$A$3:$AI$823,26,FALSE))/Y927,(F927+VLOOKUP($A927,Economática!$A$3:$AI$823,26,FALSE))/Y927))","v":""},{"$f":"IF($A927=\"\",\"\",IF(OR(-VLOOKUP($A927,Economática!$A$3:$AI$823,27,FALSE)=0,-VLOOKUP($A927,Economática!$A$3:$AI$823,27,FALSE)=\"-\"),1/0,-VLOOKUP($A927,Economática!$A$3:$AI$823,27,FALSE)))","v":""},"",{"$f":"IF($A927=\"\",\"\",IF(OR(VLOOKUP($A927,Economática!$A$3:$AI$823,28,FALSE)=0,VLOOKUP($A927,Economática!$A$3:$AI$823,28,FALSE)=\"-\"),1/0,VLOOKUP($A927,Economática!$A$3:$AI$823,28,FALSE)))","v":""},{"$f":"IF($A927=\"\",\"\",IF(OR(VLOOKUP($A927,Economática!$A$3:$AI$823,29,FALSE)=0,VLOOKUP($A927,Economática!$A$3:$AI$823,29,FALSE)=\"-\"),1/0,VLOOKUP($A927,Economática!$A$3:$AI$823,29,FALSE)))","v":""},{"$f":"IF($A927=\"\",\"\",IF(OR(VLOOKUP($A927,Economática!$A$3:$AI$823,30,FALSE)/E927=0,VLOOKUP($A927,Economática!$A$3:$AI$823,30,FALSE)/E927=\"-\",VLOOKUP($A927,Economática!$A$3:$AI$823,30,FALSE)/E927<33.33%,VLOOKUP($A927,Economática!$A$3:$AI$823,30,FALSE)/E927>100%),1/0,VLOOKUP($A927,Economática!$A$3:$AI$823,30,FALSE)/E927))","v":""},"",{"$f":"IF($A927=\"\",\"\",IF(OR(VLOOKUP($A927,Economática!$A$3:$AI$823,25,FALSE)=0,VLOOKUP($A927,Economática!$A$3:$AI$823,25,FALSE)=\"-\"),1/0,VLOOKUP($A927,Economática!$A$3:$AI$823,25,FALSE)))","v":""},{"$f":"CONCATENATE(Economática!B905,\" \",Economática!C905)","v":" "}]
[{"$f":"IF(Economática!AG906=\"\",\"\",Economática!AG906)","v":""},{"$f":"IF($A928=\"\",\"\",VLOOKUP(VLOOKUP($A928,Economática!$A$3:$AI$823,6,FALSE),Correção!$B$16:$C$36,2,FALSE))","v":""},{"$f":"IF(Economática!B906=\"\",\"\",Economática!B906)","v":""},{"$f":"IF($A928=\"\",\"\",IF(OR(VLOOKUP($A928,Economática!$A$3:$AI$823,8,FALSE)=0,VLOOKUP($A928,Economática!$A$3:$AI$823,8,FALSE)=\"-\"),1/0,VLOOKUP($A928,Economática!$A$3:$AI$823,8,FALSE)))","v":""},{"$f":"IF(A928=\"\",\"\",IF(ISERROR(VLOOKUP(A928,Correção!$B$2:$G$13,9,FALSE)),VLOOKUP($A928,Economática!$A$3:$AI$823,9,FALSE),VLOOKUP(A928,Correção!$B$2:$G$13,9,FALSE)))","v":""},{"$f":"IF($A928=\"\",\"\",Economática!G906)","v":""},{"$f":"IF($A928=\"\",\"\",IF(OR(VLOOKUP($A928,Economática!$A$3:$AI$823,10,FALSE)=0,VLOOKUP($A928,Economática!$A$3:$AI$823,10,FALSE)=\"-\"),1/0,VLOOKUP($A928,Economática!$A$3:$AI$823,10,FALSE)))","v":""},{"$f":"IF($A928=\"\",\"\",IF(OR(VLOOKUP($A928,Economática!$A$3:$AI$823,11,FALSE)=0,VLOOKUP($A928,Economática!$A$3:$AI$823,11,FALSE)=\"-\"),1/0,VLOOKUP($A928,Economática!$A$3:$AI$823,11,FALSE)))","v":""},{"$f":"IF($A928=\"\",\"\",IF(OR(VLOOKUP($A928,Economática!$A$3:$AI$823,12,FALSE)=0,VLOOKUP($A928,Economática!$A$3:$AI$823,12,FALSE)=\"-\"),1/0,VLOOKUP($A928,Economática!$A$3:$AI$823,12,FALSE)))","v":""},{"$f":"IF($A928=\"\",\"\",IF(OR(VLOOKUP($A928,Economática!$A$3:$AI$823,13,FALSE)=0,VLOOKUP($A928,Economática!$A$3:$AI$823,13,FALSE)=\"-\"),1/0,VLOOKUP($A928,Economática!$A$3:$AI$823,13,FALSE)))","v":""},{"$f":"IF($A928=\"\",\"\",IF(OR(VLOOKUP($A928,Economática!$A$3:$AI$823,14,FALSE)=0,VLOOKUP($A928,Economática!$A$3:$AI$823,14,FALSE)=\"-\"),1/0,VLOOKUP($A928,Economática!$A$3:$AI$823,14,FALSE)))","v":""},{"$f":"IF($A928=\"\",\"\",IF(OR(VLOOKUP($A928,Economática!$A$3:$AI$823,15,FALSE)=0,VLOOKUP($A928,Economática!$A$3:$AI$823,15,FALSE)=\"-\"),1/0,VLOOKUP($A928,Economática!$A$3:$AI$823,15,FALSE)))","v":""},{"$f":"IF($A928=\"\",\"\",IF(OR(VLOOKUP($A928,Economática!$A$3:$AI$823,16,FALSE)=0,VLOOKUP($A928,Economática!$A$3:$AI$823,16,FALSE)=\"-\"),1/0,VLOOKUP($A928,Economática!$A$3:$AI$823,16,FALSE)))","v":""},{"$f":"IF($A928=\"\",\"\",IF(OR(VLOOKUP($A928,Economática!$A$3:$AI$823,17,FALSE)=0,VLOOKUP($A928,Economática!$A$3:$AI$823,17,FALSE)=\"-\"),1/0,VLOOKUP($A928,Economática!$A$3:$AI$823,17,FALSE)))","v":""},{"$f":"IF($A928=\"\",\"\",IF(OR(VLOOKUP($A928,Economática!$A$3:$AI$823,18,FALSE)=0,VLOOKUP($A928,Economática!$A$3:$AI$823,18,FALSE)=\"-\"),1/0,VLOOKUP($A928,Economática!$A$3:$AI$823,18,FALSE)))","v":""},{"$f":"IF($A928=\"\",\"\",IF(OR(VLOOKUP($A928,Economática!$A$3:$AI$823,19,FALSE)=0,VLOOKUP($A928,Economática!$A$3:$AI$823,19,FALSE)=\"-\"),1/0,VLOOKUP($A928,Economática!$A$3:$AI$823,19,FALSE)))","v":""},{"$f":"IF($A928=\"\",\"\",VLOOKUP($A928,Economática!$A$3:$AI$823,20,FALSE)/E928)","v":""},"","","",{"$f":"IF($A928=\"\",\"\",IF(OR(VLOOKUP($A928,Economática!$A$3:$AI$823,21,FALSE)/100=0,VLOOKUP($A928,Economática!$A$3:$AI$823,21,FALSE)/100=\"-\"),1/0,VLOOKUP($A928,Economática!$A$3:$AI$823,21,FALSE)/100))","v":""},{"$f":"IF($A928=\"\",\"\",IF(OR(VLOOKUP($A928,Economática!$A$3:$AI$823,22,FALSE)/100=0,VLOOKUP($A928,Economática!$A$3:$AI$823,22,FALSE)/100=\"-\"),1/0,VLOOKUP($A928,Economática!$A$3:$AI$823,22,FALSE)/100))","v":""},{"$f":"IF($A928=\"\",\"\",IF(OR(VLOOKUP($A928,Economática!$A$3:$AI$823,23,FALSE)=0,VLOOKUP($A928,Economática!$A$3:$AI$823,23,FALSE)=\"-\"),1/0,VLOOKUP($A928,Economática!$A$3:$AI$823,23,FALSE)))","v":""},{"$f":"IF($A928=\"\",\"\",IF(OR(VLOOKUP($A928,Economática!$A$3:$AI$823,24,FALSE)=0,VLOOKUP($A928,Economática!$A$3:$AI$823,24,FALSE)=\"-\"),1/0,VLOOKUP($A928,Economática!$A$3:$AI$823,24,FALSE)))","v":""},{"$f":"IF($A928=\"\",\"\",IF(OR(VLOOKUP($A928,Economática!$A$3:$AI$823,25,FALSE)=0,VLOOKUP($A928,Economática!$A$3:$AI$823,25,FALSE)=\"-\"),1/0,VLOOKUP($A928,Economática!$A$3:$AI$823,25,FALSE)))","v":""},{"$f":"IF($A928=\"\",\"\",IF(ISERROR((F928+VLOOKUP($A928,Economática!$A$3:$AI$823,26,FALSE))/Y928),(F928+VLOOKUP($A928,Economática!$A$3:$AI$823,26,FALSE))/Y928,(F928+VLOOKUP($A928,Economática!$A$3:$AI$823,26,FALSE))/Y928))","v":""},{"$f":"IF($A928=\"\",\"\",IF(OR(-VLOOKUP($A928,Economática!$A$3:$AI$823,27,FALSE)=0,-VLOOKUP($A928,Economática!$A$3:$AI$823,27,FALSE)=\"-\"),1/0,-VLOOKUP($A928,Economática!$A$3:$AI$823,27,FALSE)))","v":""},"",{"$f":"IF($A928=\"\",\"\",IF(OR(VLOOKUP($A928,Economática!$A$3:$AI$823,28,FALSE)=0,VLOOKUP($A928,Economática!$A$3:$AI$823,28,FALSE)=\"-\"),1/0,VLOOKUP($A928,Economática!$A$3:$AI$823,28,FALSE)))","v":""},{"$f":"IF($A928=\"\",\"\",IF(OR(VLOOKUP($A928,Economática!$A$3:$AI$823,29,FALSE)=0,VLOOKUP($A928,Economática!$A$3:$AI$823,29,FALSE)=\"-\"),1/0,VLOOKUP($A928,Economática!$A$3:$AI$823,29,FALSE)))","v":""},{"$f":"IF($A928=\"\",\"\",IF(OR(VLOOKUP($A928,Economática!$A$3:$AI$823,30,FALSE)/E928=0,VLOOKUP($A928,Economática!$A$3:$AI$823,30,FALSE)/E928=\"-\",VLOOKUP($A928,Economática!$A$3:$AI$823,30,FALSE)/E928<33.33%,VLOOKUP($A928,Economática!$A$3:$AI$823,30,FALSE)/E928>100%),1/0,VLOOKUP($A928,Economática!$A$3:$AI$823,30,FALSE)/E928))","v":""},"",{"$f":"IF($A928=\"\",\"\",IF(OR(VLOOKUP($A928,Economática!$A$3:$AI$823,25,FALSE)=0,VLOOKUP($A928,Economática!$A$3:$AI$823,25,FALSE)=\"-\"),1/0,VLOOKUP($A928,Economática!$A$3:$AI$823,25,FALSE)))","v":""},{"$f":"CONCATENATE(Economática!B906,\" \",Economática!C906)","v":" "}]
[{"$f":"IF(Economática!AG907=\"\",\"\",Economática!AG907)","v":""},{"$f":"IF($A929=\"\",\"\",VLOOKUP(VLOOKUP($A929,Economática!$A$3:$AI$823,6,FALSE),Correção!$B$16:$C$36,2,FALSE))","v":""},{"$f":"IF(Economática!B907=\"\",\"\",Economática!B907)","v":""},{"$f":"IF($A929=\"\",\"\",IF(OR(VLOOKUP($A929,Economática!$A$3:$AI$823,8,FALSE)=0,VLOOKUP($A929,Economática!$A$3:$AI$823,8,FALSE)=\"-\"),1/0,VLOOKUP($A929,Economática!$A$3:$AI$823,8,FALSE)))","v":""},{"$f":"IF(A929=\"\",\"\",IF(ISERROR(VLOOKUP(A929,Correção!$B$2:$G$13,9,FALSE)),VLOOKUP($A929,Economática!$A$3:$AI$823,9,FALSE),VLOOKUP(A929,Correção!$B$2:$G$13,9,FALSE)))","v":""},{"$f":"IF($A929=\"\",\"\",Economática!G907)","v":""},{"$f":"IF($A929=\"\",\"\",IF(OR(VLOOKUP($A929,Economática!$A$3:$AI$823,10,FALSE)=0,VLOOKUP($A929,Economática!$A$3:$AI$823,10,FALSE)=\"-\"),1/0,VLOOKUP($A929,Economática!$A$3:$AI$823,10,FALSE)))","v":""},{"$f":"IF($A929=\"\",\"\",IF(OR(VLOOKUP($A929,Economática!$A$3:$AI$823,11,FALSE)=0,VLOOKUP($A929,Economática!$A$3:$AI$823,11,FALSE)=\"-\"),1/0,VLOOKUP($A929,Economática!$A$3:$AI$823,11,FALSE)))","v":""},{"$f":"IF($A929=\"\",\"\",IF(OR(VLOOKUP($A929,Economática!$A$3:$AI$823,12,FALSE)=0,VLOOKUP($A929,Economática!$A$3:$AI$823,12,FALSE)=\"-\"),1/0,VLOOKUP($A929,Economática!$A$3:$AI$823,12,FALSE)))","v":""},{"$f":"IF($A929=\"\",\"\",IF(OR(VLOOKUP($A929,Economática!$A$3:$AI$823,13,FALSE)=0,VLOOKUP($A929,Economática!$A$3:$AI$823,13,FALSE)=\"-\"),1/0,VLOOKUP($A929,Economática!$A$3:$AI$823,13,FALSE)))","v":""},{"$f":"IF($A929=\"\",\"\",IF(OR(VLOOKUP($A929,Economática!$A$3:$AI$823,14,FALSE)=0,VLOOKUP($A929,Economática!$A$3:$AI$823,14,FALSE)=\"-\"),1/0,VLOOKUP($A929,Economática!$A$3:$AI$823,14,FALSE)))","v":""},{"$f":"IF($A929=\"\",\"\",IF(OR(VLOOKUP($A929,Economática!$A$3:$AI$823,15,FALSE)=0,VLOOKUP($A929,Economática!$A$3:$AI$823,15,FALSE)=\"-\"),1/0,VLOOKUP($A929,Economática!$A$3:$AI$823,15,FALSE)))","v":""},{"$f":"IF($A929=\"\",\"\",IF(OR(VLOOKUP($A929,Economática!$A$3:$AI$823,16,FALSE)=0,VLOOKUP($A929,Economática!$A$3:$AI$823,16,FALSE)=\"-\"),1/0,VLOOKUP($A929,Economática!$A$3:$AI$823,16,FALSE)))","v":""},{"$f":"IF($A929=\"\",\"\",IF(OR(VLOOKUP($A929,Economática!$A$3:$AI$823,17,FALSE)=0,VLOOKUP($A929,Economática!$A$3:$AI$823,17,FALSE)=\"-\"),1/0,VLOOKUP($A929,Economática!$A$3:$AI$823,17,FALSE)))","v":""},{"$f":"IF($A929=\"\",\"\",IF(OR(VLOOKUP($A929,Economática!$A$3:$AI$823,18,FALSE)=0,VLOOKUP($A929,Economática!$A$3:$AI$823,18,FALSE)=\"-\"),1/0,VLOOKUP($A929,Economática!$A$3:$AI$823,18,FALSE)))","v":""},{"$f":"IF($A929=\"\",\"\",IF(OR(VLOOKUP($A929,Economática!$A$3:$AI$823,19,FALSE)=0,VLOOKUP($A929,Economática!$A$3:$AI$823,19,FALSE)=\"-\"),1/0,VLOOKUP($A929,Economática!$A$3:$AI$823,19,FALSE)))","v":""},{"$f":"IF($A929=\"\",\"\",VLOOKUP($A929,Economática!$A$3:$AI$823,20,FALSE)/E929)","v":""},"","","",{"$f":"IF($A929=\"\",\"\",IF(OR(VLOOKUP($A929,Economática!$A$3:$AI$823,21,FALSE)/100=0,VLOOKUP($A929,Economática!$A$3:$AI$823,21,FALSE)/100=\"-\"),1/0,VLOOKUP($A929,Economática!$A$3:$AI$823,21,FALSE)/100))","v":""},{"$f":"IF($A929=\"\",\"\",IF(OR(VLOOKUP($A929,Economática!$A$3:$AI$823,22,FALSE)/100=0,VLOOKUP($A929,Economática!$A$3:$AI$823,22,FALSE)/100=\"-\"),1/0,VLOOKUP($A929,Economática!$A$3:$AI$823,22,FALSE)/100))","v":""},{"$f":"IF($A929=\"\",\"\",IF(OR(VLOOKUP($A929,Economática!$A$3:$AI$823,23,FALSE)=0,VLOOKUP($A929,Economática!$A$3:$AI$823,23,FALSE)=\"-\"),1/0,VLOOKUP($A929,Economática!$A$3:$AI$823,23,FALSE)))","v":""},{"$f":"IF($A929=\"\",\"\",IF(OR(VLOOKUP($A929,Economática!$A$3:$AI$823,24,FALSE)=0,VLOOKUP($A929,Economática!$A$3:$AI$823,24,FALSE)=\"-\"),1/0,VLOOKUP($A929,Economática!$A$3:$AI$823,24,FALSE)))","v":""},{"$f":"IF($A929=\"\",\"\",IF(OR(VLOOKUP($A929,Economática!$A$3:$AI$823,25,FALSE)=0,VLOOKUP($A929,Economática!$A$3:$AI$823,25,FALSE)=\"-\"),1/0,VLOOKUP($A929,Economática!$A$3:$AI$823,25,FALSE)))","v":""},{"$f":"IF($A929=\"\",\"\",IF(ISERROR((F929+VLOOKUP($A929,Economática!$A$3:$AI$823,26,FALSE))/Y929),(F929+VLOOKUP($A929,Economática!$A$3:$AI$823,26,FALSE))/Y929,(F929+VLOOKUP($A929,Economática!$A$3:$AI$823,26,FALSE))/Y929))","v":""},{"$f":"IF($A929=\"\",\"\",IF(OR(-VLOOKUP($A929,Economática!$A$3:$AI$823,27,FALSE)=0,-VLOOKUP($A929,Economática!$A$3:$AI$823,27,FALSE)=\"-\"),1/0,-VLOOKUP($A929,Economática!$A$3:$AI$823,27,FALSE)))","v":""},"",{"$f":"IF($A929=\"\",\"\",IF(OR(VLOOKUP($A929,Economática!$A$3:$AI$823,28,FALSE)=0,VLOOKUP($A929,Economática!$A$3:$AI$823,28,FALSE)=\"-\"),1/0,VLOOKUP($A929,Economática!$A$3:$AI$823,28,FALSE)))","v":""},{"$f":"IF($A929=\"\",\"\",IF(OR(VLOOKUP($A929,Economática!$A$3:$AI$823,29,FALSE)=0,VLOOKUP($A929,Economática!$A$3:$AI$823,29,FALSE)=\"-\"),1/0,VLOOKUP($A929,Economática!$A$3:$AI$823,29,FALSE)))","v":""},{"$f":"IF($A929=\"\",\"\",IF(OR(VLOOKUP($A929,Economática!$A$3:$AI$823,30,FALSE)/E929=0,VLOOKUP($A929,Economática!$A$3:$AI$823,30,FALSE)/E929=\"-\",VLOOKUP($A929,Economática!$A$3:$AI$823,30,FALSE)/E929<33.33%,VLOOKUP($A929,Economática!$A$3:$AI$823,30,FALSE)/E929>100%),1/0,VLOOKUP($A929,Economática!$A$3:$AI$823,30,FALSE)/E929))","v":""},"",{"$f":"IF($A929=\"\",\"\",IF(OR(VLOOKUP($A929,Economática!$A$3:$AI$823,25,FALSE)=0,VLOOKUP($A929,Economática!$A$3:$AI$823,25,FALSE)=\"-\"),1/0,VLOOKUP($A929,Economática!$A$3:$AI$823,25,FALSE)))","v":""},{"$f":"CONCATENATE(Economática!B907,\" \",Economática!C907)","v":" "}]
[{"$f":"IF(Economática!AG908=\"\",\"\",Economática!AG908)","v":""},{"$f":"IF($A930=\"\",\"\",VLOOKUP(VLOOKUP($A930,Economática!$A$3:$AI$823,6,FALSE),Correção!$B$16:$C$36,2,FALSE))","v":""},{"$f":"IF(Economática!B908=\"\",\"\",Economática!B908)","v":""},{"$f":"IF($A930=\"\",\"\",IF(OR(VLOOKUP($A930,Economática!$A$3:$AI$823,8,FALSE)=0,VLOOKUP($A930,Economática!$A$3:$AI$823,8,FALSE)=\"-\"),1/0,VLOOKUP($A930,Economática!$A$3:$AI$823,8,FALSE)))","v":""},{"$f":"IF(A930=\"\",\"\",IF(ISERROR(VLOOKUP(A930,Correção!$B$2:$G$13,9,FALSE)),VLOOKUP($A930,Economática!$A$3:$AI$823,9,FALSE),VLOOKUP(A930,Correção!$B$2:$G$13,9,FALSE)))","v":""},{"$f":"IF($A930=\"\",\"\",Economática!G908)","v":""},{"$f":"IF($A930=\"\",\"\",IF(OR(VLOOKUP($A930,Economática!$A$3:$AI$823,10,FALSE)=0,VLOOKUP($A930,Economática!$A$3:$AI$823,10,FALSE)=\"-\"),1/0,VLOOKUP($A930,Economática!$A$3:$AI$823,10,FALSE)))","v":""},{"$f":"IF($A930=\"\",\"\",IF(OR(VLOOKUP($A930,Economática!$A$3:$AI$823,11,FALSE)=0,VLOOKUP($A930,Economática!$A$3:$AI$823,11,FALSE)=\"-\"),1/0,VLOOKUP($A930,Economática!$A$3:$AI$823,11,FALSE)))","v":""},{"$f":"IF($A930=\"\",\"\",IF(OR(VLOOKUP($A930,Economática!$A$3:$AI$823,12,FALSE)=0,VLOOKUP($A930,Economática!$A$3:$AI$823,12,FALSE)=\"-\"),1/0,VLOOKUP($A930,Economática!$A$3:$AI$823,12,FALSE)))","v":""},{"$f":"IF($A930=\"\",\"\",IF(OR(VLOOKUP($A930,Economática!$A$3:$AI$823,13,FALSE)=0,VLOOKUP($A930,Economática!$A$3:$AI$823,13,FALSE)=\"-\"),1/0,VLOOKUP($A930,Economática!$A$3:$AI$823,13,FALSE)))","v":""},{"$f":"IF($A930=\"\",\"\",IF(OR(VLOOKUP($A930,Economática!$A$3:$AI$823,14,FALSE)=0,VLOOKUP($A930,Economática!$A$3:$AI$823,14,FALSE)=\"-\"),1/0,VLOOKUP($A930,Economática!$A$3:$AI$823,14,FALSE)))","v":""},{"$f":"IF($A930=\"\",\"\",IF(OR(VLOOKUP($A930,Economática!$A$3:$AI$823,15,FALSE)=0,VLOOKUP($A930,Economática!$A$3:$AI$823,15,FALSE)=\"-\"),1/0,VLOOKUP($A930,Economática!$A$3:$AI$823,15,FALSE)))","v":""},{"$f":"IF($A930=\"\",\"\",IF(OR(VLOOKUP($A930,Economática!$A$3:$AI$823,16,FALSE)=0,VLOOKUP($A930,Economática!$A$3:$AI$823,16,FALSE)=\"-\"),1/0,VLOOKUP($A930,Economática!$A$3:$AI$823,16,FALSE)))","v":""},{"$f":"IF($A930=\"\",\"\",IF(OR(VLOOKUP($A930,Economática!$A$3:$AI$823,17,FALSE)=0,VLOOKUP($A930,Economática!$A$3:$AI$823,17,FALSE)=\"-\"),1/0,VLOOKUP($A930,Economática!$A$3:$AI$823,17,FALSE)))","v":""},{"$f":"IF($A930=\"\",\"\",IF(OR(VLOOKUP($A930,Economática!$A$3:$AI$823,18,FALSE)=0,VLOOKUP($A930,Economática!$A$3:$AI$823,18,FALSE)=\"-\"),1/0,VLOOKUP($A930,Economática!$A$3:$AI$823,18,FALSE)))","v":""},{"$f":"IF($A930=\"\",\"\",IF(OR(VLOOKUP($A930,Economática!$A$3:$AI$823,19,FALSE)=0,VLOOKUP($A930,Economática!$A$3:$AI$823,19,FALSE)=\"-\"),1/0,VLOOKUP($A930,Economática!$A$3:$AI$823,19,FALSE)))","v":""},{"$f":"IF($A930=\"\",\"\",VLOOKUP($A930,Economática!$A$3:$AI$823,20,FALSE)/E930)","v":""},"","","",{"$f":"IF($A930=\"\",\"\",IF(OR(VLOOKUP($A930,Economática!$A$3:$AI$823,21,FALSE)/100=0,VLOOKUP($A930,Economática!$A$3:$AI$823,21,FALSE)/100=\"-\"),1/0,VLOOKUP($A930,Economática!$A$3:$AI$823,21,FALSE)/100))","v":""},{"$f":"IF($A930=\"\",\"\",IF(OR(VLOOKUP($A930,Economática!$A$3:$AI$823,22,FALSE)/100=0,VLOOKUP($A930,Economática!$A$3:$AI$823,22,FALSE)/100=\"-\"),1/0,VLOOKUP($A930,Economática!$A$3:$AI$823,22,FALSE)/100))","v":""},{"$f":"IF($A930=\"\",\"\",IF(OR(VLOOKUP($A930,Economática!$A$3:$AI$823,23,FALSE)=0,VLOOKUP($A930,Economática!$A$3:$AI$823,23,FALSE)=\"-\"),1/0,VLOOKUP($A930,Economática!$A$3:$AI$823,23,FALSE)))","v":""},{"$f":"IF($A930=\"\",\"\",IF(OR(VLOOKUP($A930,Economática!$A$3:$AI$823,24,FALSE)=0,VLOOKUP($A930,Economática!$A$3:$AI$823,24,FALSE)=\"-\"),1/0,VLOOKUP($A930,Economática!$A$3:$AI$823,24,FALSE)))","v":""},{"$f":"IF($A930=\"\",\"\",IF(OR(VLOOKUP($A930,Economática!$A$3:$AI$823,25,FALSE)=0,VLOOKUP($A930,Economática!$A$3:$AI$823,25,FALSE)=\"-\"),1/0,VLOOKUP($A930,Economática!$A$3:$AI$823,25,FALSE)))","v":""},{"$f":"IF($A930=\"\",\"\",IF(ISERROR((F930+VLOOKUP($A930,Economática!$A$3:$AI$823,26,FALSE))/Y930),(F930+VLOOKUP($A930,Economática!$A$3:$AI$823,26,FALSE))/Y930,(F930+VLOOKUP($A930,Economática!$A$3:$AI$823,26,FALSE))/Y930))","v":""},{"$f":"IF($A930=\"\",\"\",IF(OR(-VLOOKUP($A930,Economática!$A$3:$AI$823,27,FALSE)=0,-VLOOKUP($A930,Economática!$A$3:$AI$823,27,FALSE)=\"-\"),1/0,-VLOOKUP($A930,Economática!$A$3:$AI$823,27,FALSE)))","v":""},"",{"$f":"IF($A930=\"\",\"\",IF(OR(VLOOKUP($A930,Economática!$A$3:$AI$823,28,FALSE)=0,VLOOKUP($A930,Economática!$A$3:$AI$823,28,FALSE)=\"-\"),1/0,VLOOKUP($A930,Economática!$A$3:$AI$823,28,FALSE)))","v":""},{"$f":"IF($A930=\"\",\"\",IF(OR(VLOOKUP($A930,Economática!$A$3:$AI$823,29,FALSE)=0,VLOOKUP($A930,Economática!$A$3:$AI$823,29,FALSE)=\"-\"),1/0,VLOOKUP($A930,Economática!$A$3:$AI$823,29,FALSE)))","v":""},{"$f":"IF($A930=\"\",\"\",IF(OR(VLOOKUP($A930,Economática!$A$3:$AI$823,30,FALSE)/E930=0,VLOOKUP($A930,Economática!$A$3:$AI$823,30,FALSE)/E930=\"-\",VLOOKUP($A930,Economática!$A$3:$AI$823,30,FALSE)/E930<33.33%,VLOOKUP($A930,Economática!$A$3:$AI$823,30,FALSE)/E930>100%),1/0,VLOOKUP($A930,Economática!$A$3:$AI$823,30,FALSE)/E930))","v":""},"",{"$f":"IF($A930=\"\",\"\",IF(OR(VLOOKUP($A930,Economática!$A$3:$AI$823,25,FALSE)=0,VLOOKUP($A930,Economática!$A$3:$AI$823,25,FALSE)=\"-\"),1/0,VLOOKUP($A930,Economática!$A$3:$AI$823,25,FALSE)))","v":""},{"$f":"CONCATENATE(Economática!B908,\" \",Economática!C908)","v":" "}]
[{"$f":"IF(Economática!AG909=\"\",\"\",Economática!AG909)","v":""},{"$f":"IF($A931=\"\",\"\",VLOOKUP(VLOOKUP($A931,Economática!$A$3:$AI$823,6,FALSE),Correção!$B$16:$C$36,2,FALSE))","v":""},{"$f":"IF(Economática!B909=\"\",\"\",Economática!B909)","v":""},{"$f":"IF($A931=\"\",\"\",IF(OR(VLOOKUP($A931,Economática!$A$3:$AI$823,8,FALSE)=0,VLOOKUP($A931,Economática!$A$3:$AI$823,8,FALSE)=\"-\"),1/0,VLOOKUP($A931,Economática!$A$3:$AI$823,8,FALSE)))","v":""},{"$f":"IF(A931=\"\",\"\",IF(ISERROR(VLOOKUP(A931,Correção!$B$2:$G$13,9,FALSE)),VLOOKUP($A931,Economática!$A$3:$AI$823,9,FALSE),VLOOKUP(A931,Correção!$B$2:$G$13,9,FALSE)))","v":""},{"$f":"IF($A931=\"\",\"\",Economática!G909)","v":""},{"$f":"IF($A931=\"\",\"\",IF(OR(VLOOKUP($A931,Economática!$A$3:$AI$823,10,FALSE)=0,VLOOKUP($A931,Economática!$A$3:$AI$823,10,FALSE)=\"-\"),1/0,VLOOKUP($A931,Economática!$A$3:$AI$823,10,FALSE)))","v":""},{"$f":"IF($A931=\"\",\"\",IF(OR(VLOOKUP($A931,Economática!$A$3:$AI$823,11,FALSE)=0,VLOOKUP($A931,Economática!$A$3:$AI$823,11,FALSE)=\"-\"),1/0,VLOOKUP($A931,Economática!$A$3:$AI$823,11,FALSE)))","v":""},{"$f":"IF($A931=\"\",\"\",IF(OR(VLOOKUP($A931,Economática!$A$3:$AI$823,12,FALSE)=0,VLOOKUP($A931,Economática!$A$3:$AI$823,12,FALSE)=\"-\"),1/0,VLOOKUP($A931,Economática!$A$3:$AI$823,12,FALSE)))","v":""},{"$f":"IF($A931=\"\",\"\",IF(OR(VLOOKUP($A931,Economática!$A$3:$AI$823,13,FALSE)=0,VLOOKUP($A931,Economática!$A$3:$AI$823,13,FALSE)=\"-\"),1/0,VLOOKUP($A931,Economática!$A$3:$AI$823,13,FALSE)))","v":""},{"$f":"IF($A931=\"\",\"\",IF(OR(VLOOKUP($A931,Economática!$A$3:$AI$823,14,FALSE)=0,VLOOKUP($A931,Economática!$A$3:$AI$823,14,FALSE)=\"-\"),1/0,VLOOKUP($A931,Economática!$A$3:$AI$823,14,FALSE)))","v":""},{"$f":"IF($A931=\"\",\"\",IF(OR(VLOOKUP($A931,Economática!$A$3:$AI$823,15,FALSE)=0,VLOOKUP($A931,Economática!$A$3:$AI$823,15,FALSE)=\"-\"),1/0,VLOOKUP($A931,Economática!$A$3:$AI$823,15,FALSE)))","v":""},{"$f":"IF($A931=\"\",\"\",IF(OR(VLOOKUP($A931,Economática!$A$3:$AI$823,16,FALSE)=0,VLOOKUP($A931,Economática!$A$3:$AI$823,16,FALSE)=\"-\"),1/0,VLOOKUP($A931,Economática!$A$3:$AI$823,16,FALSE)))","v":""},{"$f":"IF($A931=\"\",\"\",IF(OR(VLOOKUP($A931,Economática!$A$3:$AI$823,17,FALSE)=0,VLOOKUP($A931,Economática!$A$3:$AI$823,17,FALSE)=\"-\"),1/0,VLOOKUP($A931,Economática!$A$3:$AI$823,17,FALSE)))","v":""},{"$f":"IF($A931=\"\",\"\",IF(OR(VLOOKUP($A931,Economática!$A$3:$AI$823,18,FALSE)=0,VLOOKUP($A931,Economática!$A$3:$AI$823,18,FALSE)=\"-\"),1/0,VLOOKUP($A931,Economática!$A$3:$AI$823,18,FALSE)))","v":""},{"$f":"IF($A931=\"\",\"\",IF(OR(VLOOKUP($A931,Economática!$A$3:$AI$823,19,FALSE)=0,VLOOKUP($A931,Economática!$A$3:$AI$823,19,FALSE)=\"-\"),1/0,VLOOKUP($A931,Economática!$A$3:$AI$823,19,FALSE)))","v":""},{"$f":"IF($A931=\"\",\"\",VLOOKUP($A931,Economática!$A$3:$AI$823,20,FALSE)/E931)","v":""},"","","",{"$f":"IF($A931=\"\",\"\",IF(OR(VLOOKUP($A931,Economática!$A$3:$AI$823,21,FALSE)/100=0,VLOOKUP($A931,Economática!$A$3:$AI$823,21,FALSE)/100=\"-\"),1/0,VLOOKUP($A931,Economática!$A$3:$AI$823,21,FALSE)/100))","v":""},{"$f":"IF($A931=\"\",\"\",IF(OR(VLOOKUP($A931,Economática!$A$3:$AI$823,22,FALSE)/100=0,VLOOKUP($A931,Economática!$A$3:$AI$823,22,FALSE)/100=\"-\"),1/0,VLOOKUP($A931,Economática!$A$3:$AI$823,22,FALSE)/100))","v":""},{"$f":"IF($A931=\"\",\"\",IF(OR(VLOOKUP($A931,Economática!$A$3:$AI$823,23,FALSE)=0,VLOOKUP($A931,Economática!$A$3:$AI$823,23,FALSE)=\"-\"),1/0,VLOOKUP($A931,Economática!$A$3:$AI$823,23,FALSE)))","v":""},{"$f":"IF($A931=\"\",\"\",IF(OR(VLOOKUP($A931,Economática!$A$3:$AI$823,24,FALSE)=0,VLOOKUP($A931,Economática!$A$3:$AI$823,24,FALSE)=\"-\"),1/0,VLOOKUP($A931,Economática!$A$3:$AI$823,24,FALSE)))","v":""},{"$f":"IF($A931=\"\",\"\",IF(OR(VLOOKUP($A931,Economática!$A$3:$AI$823,25,FALSE)=0,VLOOKUP($A931,Economática!$A$3:$AI$823,25,FALSE)=\"-\"),1/0,VLOOKUP($A931,Economática!$A$3:$AI$823,25,FALSE)))","v":""},{"$f":"IF($A931=\"\",\"\",IF(ISERROR((F931+VLOOKUP($A931,Economática!$A$3:$AI$823,26,FALSE))/Y931),(F931+VLOOKUP($A931,Economática!$A$3:$AI$823,26,FALSE))/Y931,(F931+VLOOKUP($A931,Economática!$A$3:$AI$823,26,FALSE))/Y931))","v":""},{"$f":"IF($A931=\"\",\"\",IF(OR(-VLOOKUP($A931,Economática!$A$3:$AI$823,27,FALSE)=0,-VLOOKUP($A931,Economática!$A$3:$AI$823,27,FALSE)=\"-\"),1/0,-VLOOKUP($A931,Economática!$A$3:$AI$823,27,FALSE)))","v":""},"",{"$f":"IF($A931=\"\",\"\",IF(OR(VLOOKUP($A931,Economática!$A$3:$AI$823,28,FALSE)=0,VLOOKUP($A931,Economática!$A$3:$AI$823,28,FALSE)=\"-\"),1/0,VLOOKUP($A931,Economática!$A$3:$AI$823,28,FALSE)))","v":""},{"$f":"IF($A931=\"\",\"\",IF(OR(VLOOKUP($A931,Economática!$A$3:$AI$823,29,FALSE)=0,VLOOKUP($A931,Economática!$A$3:$AI$823,29,FALSE)=\"-\"),1/0,VLOOKUP($A931,Economática!$A$3:$AI$823,29,FALSE)))","v":""},{"$f":"IF($A931=\"\",\"\",IF(OR(VLOOKUP($A931,Economática!$A$3:$AI$823,30,FALSE)/E931=0,VLOOKUP($A931,Economática!$A$3:$AI$823,30,FALSE)/E931=\"-\",VLOOKUP($A931,Economática!$A$3:$AI$823,30,FALSE)/E931<33.33%,VLOOKUP($A931,Economática!$A$3:$AI$823,30,FALSE)/E931>100%),1/0,VLOOKUP($A931,Economática!$A$3:$AI$823,30,FALSE)/E931))","v":""},"",{"$f":"IF($A931=\"\",\"\",IF(OR(VLOOKUP($A931,Economática!$A$3:$AI$823,25,FALSE)=0,VLOOKUP($A931,Economática!$A$3:$AI$823,25,FALSE)=\"-\"),1/0,VLOOKUP($A931,Economática!$A$3:$AI$823,25,FALSE)))","v":""},{"$f":"CONCATENATE(Economática!B909,\" \",Economática!C909)","v":" "}]
[{"$f":"IF(Economática!AG910=\"\",\"\",Economática!AG910)","v":""},{"$f":"IF($A932=\"\",\"\",VLOOKUP(VLOOKUP($A932,Economática!$A$3:$AI$823,6,FALSE),Correção!$B$16:$C$36,2,FALSE))","v":""},{"$f":"IF(Economática!B910=\"\",\"\",Economática!B910)","v":""},{"$f":"IF($A932=\"\",\"\",IF(OR(VLOOKUP($A932,Economática!$A$3:$AI$823,8,FALSE)=0,VLOOKUP($A932,Economática!$A$3:$AI$823,8,FALSE)=\"-\"),1/0,VLOOKUP($A932,Economática!$A$3:$AI$823,8,FALSE)))","v":""},{"$f":"IF(A932=\"\",\"\",IF(ISERROR(VLOOKUP(A932,Correção!$B$2:$G$13,9,FALSE)),VLOOKUP($A932,Economática!$A$3:$AI$823,9,FALSE),VLOOKUP(A932,Correção!$B$2:$G$13,9,FALSE)))","v":""},{"$f":"IF($A932=\"\",\"\",Economática!G910)","v":""},{"$f":"IF($A932=\"\",\"\",IF(OR(VLOOKUP($A932,Economática!$A$3:$AI$823,10,FALSE)=0,VLOOKUP($A932,Economática!$A$3:$AI$823,10,FALSE)=\"-\"),1/0,VLOOKUP($A932,Economática!$A$3:$AI$823,10,FALSE)))","v":""},{"$f":"IF($A932=\"\",\"\",IF(OR(VLOOKUP($A932,Economática!$A$3:$AI$823,11,FALSE)=0,VLOOKUP($A932,Economática!$A$3:$AI$823,11,FALSE)=\"-\"),1/0,VLOOKUP($A932,Economática!$A$3:$AI$823,11,FALSE)))","v":""},{"$f":"IF($A932=\"\",\"\",IF(OR(VLOOKUP($A932,Economática!$A$3:$AI$823,12,FALSE)=0,VLOOKUP($A932,Economática!$A$3:$AI$823,12,FALSE)=\"-\"),1/0,VLOOKUP($A932,Economática!$A$3:$AI$823,12,FALSE)))","v":""},{"$f":"IF($A932=\"\",\"\",IF(OR(VLOOKUP($A932,Economática!$A$3:$AI$823,13,FALSE)=0,VLOOKUP($A932,Economática!$A$3:$AI$823,13,FALSE)=\"-\"),1/0,VLOOKUP($A932,Economática!$A$3:$AI$823,13,FALSE)))","v":""},{"$f":"IF($A932=\"\",\"\",IF(OR(VLOOKUP($A932,Economática!$A$3:$AI$823,14,FALSE)=0,VLOOKUP($A932,Economática!$A$3:$AI$823,14,FALSE)=\"-\"),1/0,VLOOKUP($A932,Economática!$A$3:$AI$823,14,FALSE)))","v":""},{"$f":"IF($A932=\"\",\"\",IF(OR(VLOOKUP($A932,Economática!$A$3:$AI$823,15,FALSE)=0,VLOOKUP($A932,Economática!$A$3:$AI$823,15,FALSE)=\"-\"),1/0,VLOOKUP($A932,Economática!$A$3:$AI$823,15,FALSE)))","v":""},{"$f":"IF($A932=\"\",\"\",IF(OR(VLOOKUP($A932,Economática!$A$3:$AI$823,16,FALSE)=0,VLOOKUP($A932,Economática!$A$3:$AI$823,16,FALSE)=\"-\"),1/0,VLOOKUP($A932,Economática!$A$3:$AI$823,16,FALSE)))","v":""},{"$f":"IF($A932=\"\",\"\",IF(OR(VLOOKUP($A932,Economática!$A$3:$AI$823,17,FALSE)=0,VLOOKUP($A932,Economática!$A$3:$AI$823,17,FALSE)=\"-\"),1/0,VLOOKUP($A932,Economática!$A$3:$AI$823,17,FALSE)))","v":""},{"$f":"IF($A932=\"\",\"\",IF(OR(VLOOKUP($A932,Economática!$A$3:$AI$823,18,FALSE)=0,VLOOKUP($A932,Economática!$A$3:$AI$823,18,FALSE)=\"-\"),1/0,VLOOKUP($A932,Economática!$A$3:$AI$823,18,FALSE)))","v":""},{"$f":"IF($A932=\"\",\"\",IF(OR(VLOOKUP($A932,Economática!$A$3:$AI$823,19,FALSE)=0,VLOOKUP($A932,Economática!$A$3:$AI$823,19,FALSE)=\"-\"),1/0,VLOOKUP($A932,Economática!$A$3:$AI$823,19,FALSE)))","v":""},{"$f":"IF($A932=\"\",\"\",VLOOKUP($A932,Economática!$A$3:$AI$823,20,FALSE)/E932)","v":""},"","","",{"$f":"IF($A932=\"\",\"\",IF(OR(VLOOKUP($A932,Economática!$A$3:$AI$823,21,FALSE)/100=0,VLOOKUP($A932,Economática!$A$3:$AI$823,21,FALSE)/100=\"-\"),1/0,VLOOKUP($A932,Economática!$A$3:$AI$823,21,FALSE)/100))","v":""},{"$f":"IF($A932=\"\",\"\",IF(OR(VLOOKUP($A932,Economática!$A$3:$AI$823,22,FALSE)/100=0,VLOOKUP($A932,Economática!$A$3:$AI$823,22,FALSE)/100=\"-\"),1/0,VLOOKUP($A932,Economática!$A$3:$AI$823,22,FALSE)/100))","v":""},{"$f":"IF($A932=\"\",\"\",IF(OR(VLOOKUP($A932,Economática!$A$3:$AI$823,23,FALSE)=0,VLOOKUP($A932,Economática!$A$3:$AI$823,23,FALSE)=\"-\"),1/0,VLOOKUP($A932,Economática!$A$3:$AI$823,23,FALSE)))","v":""},{"$f":"IF($A932=\"\",\"\",IF(OR(VLOOKUP($A932,Economática!$A$3:$AI$823,24,FALSE)=0,VLOOKUP($A932,Economática!$A$3:$AI$823,24,FALSE)=\"-\"),1/0,VLOOKUP($A932,Economática!$A$3:$AI$823,24,FALSE)))","v":""},{"$f":"IF($A932=\"\",\"\",IF(OR(VLOOKUP($A932,Economática!$A$3:$AI$823,25,FALSE)=0,VLOOKUP($A932,Economática!$A$3:$AI$823,25,FALSE)=\"-\"),1/0,VLOOKUP($A932,Economática!$A$3:$AI$823,25,FALSE)))","v":""},{"$f":"IF($A932=\"\",\"\",IF(ISERROR((F932+VLOOKUP($A932,Economática!$A$3:$AI$823,26,FALSE))/Y932),(F932+VLOOKUP($A932,Economática!$A$3:$AI$823,26,FALSE))/Y932,(F932+VLOOKUP($A932,Economática!$A$3:$AI$823,26,FALSE))/Y932))","v":""},{"$f":"IF($A932=\"\",\"\",IF(OR(-VLOOKUP($A932,Economática!$A$3:$AI$823,27,FALSE)=0,-VLOOKUP($A932,Economática!$A$3:$AI$823,27,FALSE)=\"-\"),1/0,-VLOOKUP($A932,Economática!$A$3:$AI$823,27,FALSE)))","v":""},"",{"$f":"IF($A932=\"\",\"\",IF(OR(VLOOKUP($A932,Economática!$A$3:$AI$823,28,FALSE)=0,VLOOKUP($A932,Economática!$A$3:$AI$823,28,FALSE)=\"-\"),1/0,VLOOKUP($A932,Economática!$A$3:$AI$823,28,FALSE)))","v":""},{"$f":"IF($A932=\"\",\"\",IF(OR(VLOOKUP($A932,Economática!$A$3:$AI$823,29,FALSE)=0,VLOOKUP($A932,Economática!$A$3:$AI$823,29,FALSE)=\"-\"),1/0,VLOOKUP($A932,Economática!$A$3:$AI$823,29,FALSE)))","v":""},{"$f":"IF($A932=\"\",\"\",IF(OR(VLOOKUP($A932,Economática!$A$3:$AI$823,30,FALSE)/E932=0,VLOOKUP($A932,Economática!$A$3:$AI$823,30,FALSE)/E932=\"-\",VLOOKUP($A932,Economática!$A$3:$AI$823,30,FALSE)/E932<33.33%,VLOOKUP($A932,Economática!$A$3:$AI$823,30,FALSE)/E932>100%),1/0,VLOOKUP($A932,Economática!$A$3:$AI$823,30,FALSE)/E932))","v":""},"",{"$f":"IF($A932=\"\",\"\",IF(OR(VLOOKUP($A932,Economática!$A$3:$AI$823,25,FALSE)=0,VLOOKUP($A932,Economática!$A$3:$AI$823,25,FALSE)=\"-\"),1/0,VLOOKUP($A932,Economática!$A$3:$AI$823,25,FALSE)))","v":""},{"$f":"CONCATENATE(Economática!B910,\" \",Economática!C910)","v":" "}]
[{"$f":"IF(Economática!AG911=\"\",\"\",Economática!AG911)","v":""},{"$f":"IF($A933=\"\",\"\",VLOOKUP(VLOOKUP($A933,Economática!$A$3:$AI$823,6,FALSE),Correção!$B$16:$C$36,2,FALSE))","v":""},{"$f":"IF(Economática!B911=\"\",\"\",Economática!B911)","v":""},{"$f":"IF($A933=\"\",\"\",IF(OR(VLOOKUP($A933,Economática!$A$3:$AI$823,8,FALSE)=0,VLOOKUP($A933,Economática!$A$3:$AI$823,8,FALSE)=\"-\"),1/0,VLOOKUP($A933,Economática!$A$3:$AI$823,8,FALSE)))","v":""},{"$f":"IF(A933=\"\",\"\",IF(ISERROR(VLOOKUP(A933,Correção!$B$2:$G$13,9,FALSE)),VLOOKUP($A933,Economática!$A$3:$AI$823,9,FALSE),VLOOKUP(A933,Correção!$B$2:$G$13,9,FALSE)))","v":""},{"$f":"IF($A933=\"\",\"\",Economática!G911)","v":""},{"$f":"IF($A933=\"\",\"\",IF(OR(VLOOKUP($A933,Economática!$A$3:$AI$823,10,FALSE)=0,VLOOKUP($A933,Economática!$A$3:$AI$823,10,FALSE)=\"-\"),1/0,VLOOKUP($A933,Economática!$A$3:$AI$823,10,FALSE)))","v":""},{"$f":"IF($A933=\"\",\"\",IF(OR(VLOOKUP($A933,Economática!$A$3:$AI$823,11,FALSE)=0,VLOOKUP($A933,Economática!$A$3:$AI$823,11,FALSE)=\"-\"),1/0,VLOOKUP($A933,Economática!$A$3:$AI$823,11,FALSE)))","v":""},{"$f":"IF($A933=\"\",\"\",IF(OR(VLOOKUP($A933,Economática!$A$3:$AI$823,12,FALSE)=0,VLOOKUP($A933,Economática!$A$3:$AI$823,12,FALSE)=\"-\"),1/0,VLOOKUP($A933,Economática!$A$3:$AI$823,12,FALSE)))","v":""},{"$f":"IF($A933=\"\",\"\",IF(OR(VLOOKUP($A933,Economática!$A$3:$AI$823,13,FALSE)=0,VLOOKUP($A933,Economática!$A$3:$AI$823,13,FALSE)=\"-\"),1/0,VLOOKUP($A933,Economática!$A$3:$AI$823,13,FALSE)))","v":""},{"$f":"IF($A933=\"\",\"\",IF(OR(VLOOKUP($A933,Economática!$A$3:$AI$823,14,FALSE)=0,VLOOKUP($A933,Economática!$A$3:$AI$823,14,FALSE)=\"-\"),1/0,VLOOKUP($A933,Economática!$A$3:$AI$823,14,FALSE)))","v":""},{"$f":"IF($A933=\"\",\"\",IF(OR(VLOOKUP($A933,Economática!$A$3:$AI$823,15,FALSE)=0,VLOOKUP($A933,Economática!$A$3:$AI$823,15,FALSE)=\"-\"),1/0,VLOOKUP($A933,Economática!$A$3:$AI$823,15,FALSE)))","v":""},{"$f":"IF($A933=\"\",\"\",IF(OR(VLOOKUP($A933,Economática!$A$3:$AI$823,16,FALSE)=0,VLOOKUP($A933,Economática!$A$3:$AI$823,16,FALSE)=\"-\"),1/0,VLOOKUP($A933,Economática!$A$3:$AI$823,16,FALSE)))","v":""},{"$f":"IF($A933=\"\",\"\",IF(OR(VLOOKUP($A933,Economática!$A$3:$AI$823,17,FALSE)=0,VLOOKUP($A933,Economática!$A$3:$AI$823,17,FALSE)=\"-\"),1/0,VLOOKUP($A933,Economática!$A$3:$AI$823,17,FALSE)))","v":""},{"$f":"IF($A933=\"\",\"\",IF(OR(VLOOKUP($A933,Economática!$A$3:$AI$823,18,FALSE)=0,VLOOKUP($A933,Economática!$A$3:$AI$823,18,FALSE)=\"-\"),1/0,VLOOKUP($A933,Economática!$A$3:$AI$823,18,FALSE)))","v":""},{"$f":"IF($A933=\"\",\"\",IF(OR(VLOOKUP($A933,Economática!$A$3:$AI$823,19,FALSE)=0,VLOOKUP($A933,Economática!$A$3:$AI$823,19,FALSE)=\"-\"),1/0,VLOOKUP($A933,Economática!$A$3:$AI$823,19,FALSE)))","v":""},{"$f":"IF($A933=\"\",\"\",VLOOKUP($A933,Economática!$A$3:$AI$823,20,FALSE)/E933)","v":""},"","","",{"$f":"IF($A933=\"\",\"\",IF(OR(VLOOKUP($A933,Economática!$A$3:$AI$823,21,FALSE)/100=0,VLOOKUP($A933,Economática!$A$3:$AI$823,21,FALSE)/100=\"-\"),1/0,VLOOKUP($A933,Economática!$A$3:$AI$823,21,FALSE)/100))","v":""},{"$f":"IF($A933=\"\",\"\",IF(OR(VLOOKUP($A933,Economática!$A$3:$AI$823,22,FALSE)/100=0,VLOOKUP($A933,Economática!$A$3:$AI$823,22,FALSE)/100=\"-\"),1/0,VLOOKUP($A933,Economática!$A$3:$AI$823,22,FALSE)/100))","v":""},{"$f":"IF($A933=\"\",\"\",IF(OR(VLOOKUP($A933,Economática!$A$3:$AI$823,23,FALSE)=0,VLOOKUP($A933,Economática!$A$3:$AI$823,23,FALSE)=\"-\"),1/0,VLOOKUP($A933,Economática!$A$3:$AI$823,23,FALSE)))","v":""},{"$f":"IF($A933=\"\",\"\",IF(OR(VLOOKUP($A933,Economática!$A$3:$AI$823,24,FALSE)=0,VLOOKUP($A933,Economática!$A$3:$AI$823,24,FALSE)=\"-\"),1/0,VLOOKUP($A933,Economática!$A$3:$AI$823,24,FALSE)))","v":""},{"$f":"IF($A933=\"\",\"\",IF(OR(VLOOKUP($A933,Economática!$A$3:$AI$823,25,FALSE)=0,VLOOKUP($A933,Economática!$A$3:$AI$823,25,FALSE)=\"-\"),1/0,VLOOKUP($A933,Economática!$A$3:$AI$823,25,FALSE)))","v":""},{"$f":"IF($A933=\"\",\"\",IF(ISERROR((F933+VLOOKUP($A933,Economática!$A$3:$AI$823,26,FALSE))/Y933),(F933+VLOOKUP($A933,Economática!$A$3:$AI$823,26,FALSE))/Y933,(F933+VLOOKUP($A933,Economática!$A$3:$AI$823,26,FALSE))/Y933))","v":""},{"$f":"IF($A933=\"\",\"\",IF(OR(-VLOOKUP($A933,Economática!$A$3:$AI$823,27,FALSE)=0,-VLOOKUP($A933,Economática!$A$3:$AI$823,27,FALSE)=\"-\"),1/0,-VLOOKUP($A933,Economática!$A$3:$AI$823,27,FALSE)))","v":""},"",{"$f":"IF($A933=\"\",\"\",IF(OR(VLOOKUP($A933,Economática!$A$3:$AI$823,28,FALSE)=0,VLOOKUP($A933,Economática!$A$3:$AI$823,28,FALSE)=\"-\"),1/0,VLOOKUP($A933,Economática!$A$3:$AI$823,28,FALSE)))","v":""},{"$f":"IF($A933=\"\",\"\",IF(OR(VLOOKUP($A933,Economática!$A$3:$AI$823,29,FALSE)=0,VLOOKUP($A933,Economática!$A$3:$AI$823,29,FALSE)=\"-\"),1/0,VLOOKUP($A933,Economática!$A$3:$AI$823,29,FALSE)))","v":""},{"$f":"IF($A933=\"\",\"\",IF(OR(VLOOKUP($A933,Economática!$A$3:$AI$823,30,FALSE)/E933=0,VLOOKUP($A933,Economática!$A$3:$AI$823,30,FALSE)/E933=\"-\",VLOOKUP($A933,Economática!$A$3:$AI$823,30,FALSE)/E933<33.33%,VLOOKUP($A933,Economática!$A$3:$AI$823,30,FALSE)/E933>100%),1/0,VLOOKUP($A933,Economática!$A$3:$AI$823,30,FALSE)/E933))","v":""},"",{"$f":"IF($A933=\"\",\"\",IF(OR(VLOOKUP($A933,Economática!$A$3:$AI$823,25,FALSE)=0,VLOOKUP($A933,Economática!$A$3:$AI$823,25,FALSE)=\"-\"),1/0,VLOOKUP($A933,Economática!$A$3:$AI$823,25,FALSE)))","v":""},{"$f":"CONCATENATE(Economática!B911,\" \",Economática!C911)","v":" "}]
[{"$f":"IF(Economática!AG912=\"\",\"\",Economática!AG912)","v":""},{"$f":"IF($A934=\"\",\"\",VLOOKUP(VLOOKUP($A934,Economática!$A$3:$AI$823,6,FALSE),Correção!$B$16:$C$36,2,FALSE))","v":""},{"$f":"IF(Economática!B912=\"\",\"\",Economática!B912)","v":""},{"$f":"IF($A934=\"\",\"\",IF(OR(VLOOKUP($A934,Economática!$A$3:$AI$823,8,FALSE)=0,VLOOKUP($A934,Economática!$A$3:$AI$823,8,FALSE)=\"-\"),1/0,VLOOKUP($A934,Economática!$A$3:$AI$823,8,FALSE)))","v":""},{"$f":"IF(A934=\"\",\"\",IF(ISERROR(VLOOKUP(A934,Correção!$B$2:$G$13,9,FALSE)),VLOOKUP($A934,Economática!$A$3:$AI$823,9,FALSE),VLOOKUP(A934,Correção!$B$2:$G$13,9,FALSE)))","v":""},{"$f":"IF($A934=\"\",\"\",Economática!G912)","v":""},{"$f":"IF($A934=\"\",\"\",IF(OR(VLOOKUP($A934,Economática!$A$3:$AI$823,10,FALSE)=0,VLOOKUP($A934,Economática!$A$3:$AI$823,10,FALSE)=\"-\"),1/0,VLOOKUP($A934,Economática!$A$3:$AI$823,10,FALSE)))","v":""},{"$f":"IF($A934=\"\",\"\",IF(OR(VLOOKUP($A934,Economática!$A$3:$AI$823,11,FALSE)=0,VLOOKUP($A934,Economática!$A$3:$AI$823,11,FALSE)=\"-\"),1/0,VLOOKUP($A934,Economática!$A$3:$AI$823,11,FALSE)))","v":""},{"$f":"IF($A934=\"\",\"\",IF(OR(VLOOKUP($A934,Economática!$A$3:$AI$823,12,FALSE)=0,VLOOKUP($A934,Economática!$A$3:$AI$823,12,FALSE)=\"-\"),1/0,VLOOKUP($A934,Economática!$A$3:$AI$823,12,FALSE)))","v":""},{"$f":"IF($A934=\"\",\"\",IF(OR(VLOOKUP($A934,Economática!$A$3:$AI$823,13,FALSE)=0,VLOOKUP($A934,Economática!$A$3:$AI$823,13,FALSE)=\"-\"),1/0,VLOOKUP($A934,Economática!$A$3:$AI$823,13,FALSE)))","v":""},{"$f":"IF($A934=\"\",\"\",IF(OR(VLOOKUP($A934,Economática!$A$3:$AI$823,14,FALSE)=0,VLOOKUP($A934,Economática!$A$3:$AI$823,14,FALSE)=\"-\"),1/0,VLOOKUP($A934,Economática!$A$3:$AI$823,14,FALSE)))","v":""},{"$f":"IF($A934=\"\",\"\",IF(OR(VLOOKUP($A934,Economática!$A$3:$AI$823,15,FALSE)=0,VLOOKUP($A934,Economática!$A$3:$AI$823,15,FALSE)=\"-\"),1/0,VLOOKUP($A934,Economática!$A$3:$AI$823,15,FALSE)))","v":""},{"$f":"IF($A934=\"\",\"\",IF(OR(VLOOKUP($A934,Economática!$A$3:$AI$823,16,FALSE)=0,VLOOKUP($A934,Economática!$A$3:$AI$823,16,FALSE)=\"-\"),1/0,VLOOKUP($A934,Economática!$A$3:$AI$823,16,FALSE)))","v":""},{"$f":"IF($A934=\"\",\"\",IF(OR(VLOOKUP($A934,Economática!$A$3:$AI$823,17,FALSE)=0,VLOOKUP($A934,Economática!$A$3:$AI$823,17,FALSE)=\"-\"),1/0,VLOOKUP($A934,Economática!$A$3:$AI$823,17,FALSE)))","v":""},{"$f":"IF($A934=\"\",\"\",IF(OR(VLOOKUP($A934,Economática!$A$3:$AI$823,18,FALSE)=0,VLOOKUP($A934,Economática!$A$3:$AI$823,18,FALSE)=\"-\"),1/0,VLOOKUP($A934,Economática!$A$3:$AI$823,18,FALSE)))","v":""},{"$f":"IF($A934=\"\",\"\",IF(OR(VLOOKUP($A934,Economática!$A$3:$AI$823,19,FALSE)=0,VLOOKUP($A934,Economática!$A$3:$AI$823,19,FALSE)=\"-\"),1/0,VLOOKUP($A934,Economática!$A$3:$AI$823,19,FALSE)))","v":""},{"$f":"IF($A934=\"\",\"\",VLOOKUP($A934,Economática!$A$3:$AI$823,20,FALSE)/E934)","v":""},"","","",{"$f":"IF($A934=\"\",\"\",IF(OR(VLOOKUP($A934,Economática!$A$3:$AI$823,21,FALSE)/100=0,VLOOKUP($A934,Economática!$A$3:$AI$823,21,FALSE)/100=\"-\"),1/0,VLOOKUP($A934,Economática!$A$3:$AI$823,21,FALSE)/100))","v":""},{"$f":"IF($A934=\"\",\"\",IF(OR(VLOOKUP($A934,Economática!$A$3:$AI$823,22,FALSE)/100=0,VLOOKUP($A934,Economática!$A$3:$AI$823,22,FALSE)/100=\"-\"),1/0,VLOOKUP($A934,Economática!$A$3:$AI$823,22,FALSE)/100))","v":""},{"$f":"IF($A934=\"\",\"\",IF(OR(VLOOKUP($A934,Economática!$A$3:$AI$823,23,FALSE)=0,VLOOKUP($A934,Economática!$A$3:$AI$823,23,FALSE)=\"-\"),1/0,VLOOKUP($A934,Economática!$A$3:$AI$823,23,FALSE)))","v":""},{"$f":"IF($A934=\"\",\"\",IF(OR(VLOOKUP($A934,Economática!$A$3:$AI$823,24,FALSE)=0,VLOOKUP($A934,Economática!$A$3:$AI$823,24,FALSE)=\"-\"),1/0,VLOOKUP($A934,Economática!$A$3:$AI$823,24,FALSE)))","v":""},{"$f":"IF($A934=\"\",\"\",IF(OR(VLOOKUP($A934,Economática!$A$3:$AI$823,25,FALSE)=0,VLOOKUP($A934,Economática!$A$3:$AI$823,25,FALSE)=\"-\"),1/0,VLOOKUP($A934,Economática!$A$3:$AI$823,25,FALSE)))","v":""},{"$f":"IF($A934=\"\",\"\",IF(ISERROR((F934+VLOOKUP($A934,Economática!$A$3:$AI$823,26,FALSE))/Y934),(F934+VLOOKUP($A934,Economática!$A$3:$AI$823,26,FALSE))/Y934,(F934+VLOOKUP($A934,Economática!$A$3:$AI$823,26,FALSE))/Y934))","v":""},{"$f":"IF($A934=\"\",\"\",IF(OR(-VLOOKUP($A934,Economática!$A$3:$AI$823,27,FALSE)=0,-VLOOKUP($A934,Economática!$A$3:$AI$823,27,FALSE)=\"-\"),1/0,-VLOOKUP($A934,Economática!$A$3:$AI$823,27,FALSE)))","v":""},"",{"$f":"IF($A934=\"\",\"\",IF(OR(VLOOKUP($A934,Economática!$A$3:$AI$823,28,FALSE)=0,VLOOKUP($A934,Economática!$A$3:$AI$823,28,FALSE)=\"-\"),1/0,VLOOKUP($A934,Economática!$A$3:$AI$823,28,FALSE)))","v":""},{"$f":"IF($A934=\"\",\"\",IF(OR(VLOOKUP($A934,Economática!$A$3:$AI$823,29,FALSE)=0,VLOOKUP($A934,Economática!$A$3:$AI$823,29,FALSE)=\"-\"),1/0,VLOOKUP($A934,Economática!$A$3:$AI$823,29,FALSE)))","v":""},{"$f":"IF($A934=\"\",\"\",IF(OR(VLOOKUP($A934,Economática!$A$3:$AI$823,30,FALSE)/E934=0,VLOOKUP($A934,Economática!$A$3:$AI$823,30,FALSE)/E934=\"-\",VLOOKUP($A934,Economática!$A$3:$AI$823,30,FALSE)/E934<33.33%,VLOOKUP($A934,Economática!$A$3:$AI$823,30,FALSE)/E934>100%),1/0,VLOOKUP($A934,Economática!$A$3:$AI$823,30,FALSE)/E934))","v":""},"",{"$f":"IF($A934=\"\",\"\",IF(OR(VLOOKUP($A934,Economática!$A$3:$AI$823,25,FALSE)=0,VLOOKUP($A934,Economática!$A$3:$AI$823,25,FALSE)=\"-\"),1/0,VLOOKUP($A934,Economática!$A$3:$AI$823,25,FALSE)))","v":""},{"$f":"CONCATENATE(Economática!B912,\" \",Economática!C912)","v":" "}]
[{"$f":"IF(Economática!AG913=\"\",\"\",Economática!AG913)","v":""},{"$f":"IF($A935=\"\",\"\",VLOOKUP(VLOOKUP($A935,Economática!$A$3:$AI$823,6,FALSE),Correção!$B$16:$C$36,2,FALSE))","v":""},{"$f":"IF(Economática!B913=\"\",\"\",Economática!B913)","v":""},{"$f":"IF($A935=\"\",\"\",IF(OR(VLOOKUP($A935,Economática!$A$3:$AI$823,8,FALSE)=0,VLOOKUP($A935,Economática!$A$3:$AI$823,8,FALSE)=\"-\"),1/0,VLOOKUP($A935,Economática!$A$3:$AI$823,8,FALSE)))","v":""},{"$f":"IF(A935=\"\",\"\",IF(ISERROR(VLOOKUP(A935,Correção!$B$2:$G$13,9,FALSE)),VLOOKUP($A935,Economática!$A$3:$AI$823,9,FALSE),VLOOKUP(A935,Correção!$B$2:$G$13,9,FALSE)))","v":""},{"$f":"IF($A935=\"\",\"\",Economática!G913)","v":""},{"$f":"IF($A935=\"\",\"\",IF(OR(VLOOKUP($A935,Economática!$A$3:$AI$823,10,FALSE)=0,VLOOKUP($A935,Economática!$A$3:$AI$823,10,FALSE)=\"-\"),1/0,VLOOKUP($A935,Economática!$A$3:$AI$823,10,FALSE)))","v":""},{"$f":"IF($A935=\"\",\"\",IF(OR(VLOOKUP($A935,Economática!$A$3:$AI$823,11,FALSE)=0,VLOOKUP($A935,Economática!$A$3:$AI$823,11,FALSE)=\"-\"),1/0,VLOOKUP($A935,Economática!$A$3:$AI$823,11,FALSE)))","v":""},{"$f":"IF($A935=\"\",\"\",IF(OR(VLOOKUP($A935,Economática!$A$3:$AI$823,12,FALSE)=0,VLOOKUP($A935,Economática!$A$3:$AI$823,12,FALSE)=\"-\"),1/0,VLOOKUP($A935,Economática!$A$3:$AI$823,12,FALSE)))","v":""},{"$f":"IF($A935=\"\",\"\",IF(OR(VLOOKUP($A935,Economática!$A$3:$AI$823,13,FALSE)=0,VLOOKUP($A935,Economática!$A$3:$AI$823,13,FALSE)=\"-\"),1/0,VLOOKUP($A935,Economática!$A$3:$AI$823,13,FALSE)))","v":""},{"$f":"IF($A935=\"\",\"\",IF(OR(VLOOKUP($A935,Economática!$A$3:$AI$823,14,FALSE)=0,VLOOKUP($A935,Economática!$A$3:$AI$823,14,FALSE)=\"-\"),1/0,VLOOKUP($A935,Economática!$A$3:$AI$823,14,FALSE)))","v":""},{"$f":"IF($A935=\"\",\"\",IF(OR(VLOOKUP($A935,Economática!$A$3:$AI$823,15,FALSE)=0,VLOOKUP($A935,Economática!$A$3:$AI$823,15,FALSE)=\"-\"),1/0,VLOOKUP($A935,Economática!$A$3:$AI$823,15,FALSE)))","v":""},{"$f":"IF($A935=\"\",\"\",IF(OR(VLOOKUP($A935,Economática!$A$3:$AI$823,16,FALSE)=0,VLOOKUP($A935,Economática!$A$3:$AI$823,16,FALSE)=\"-\"),1/0,VLOOKUP($A935,Economática!$A$3:$AI$823,16,FALSE)))","v":""},{"$f":"IF($A935=\"\",\"\",IF(OR(VLOOKUP($A935,Economática!$A$3:$AI$823,17,FALSE)=0,VLOOKUP($A935,Economática!$A$3:$AI$823,17,FALSE)=\"-\"),1/0,VLOOKUP($A935,Economática!$A$3:$AI$823,17,FALSE)))","v":""},{"$f":"IF($A935=\"\",\"\",IF(OR(VLOOKUP($A935,Economática!$A$3:$AI$823,18,FALSE)=0,VLOOKUP($A935,Economática!$A$3:$AI$823,18,FALSE)=\"-\"),1/0,VLOOKUP($A935,Economática!$A$3:$AI$823,18,FALSE)))","v":""},{"$f":"IF($A935=\"\",\"\",IF(OR(VLOOKUP($A935,Economática!$A$3:$AI$823,19,FALSE)=0,VLOOKUP($A935,Economática!$A$3:$AI$823,19,FALSE)=\"-\"),1/0,VLOOKUP($A935,Economática!$A$3:$AI$823,19,FALSE)))","v":""},{"$f":"IF($A935=\"\",\"\",VLOOKUP($A935,Economática!$A$3:$AI$823,20,FALSE)/E935)","v":""},"","","",{"$f":"IF($A935=\"\",\"\",IF(OR(VLOOKUP($A935,Economática!$A$3:$AI$823,21,FALSE)/100=0,VLOOKUP($A935,Economática!$A$3:$AI$823,21,FALSE)/100=\"-\"),1/0,VLOOKUP($A935,Economática!$A$3:$AI$823,21,FALSE)/100))","v":""},{"$f":"IF($A935=\"\",\"\",IF(OR(VLOOKUP($A935,Economática!$A$3:$AI$823,22,FALSE)/100=0,VLOOKUP($A935,Economática!$A$3:$AI$823,22,FALSE)/100=\"-\"),1/0,VLOOKUP($A935,Economática!$A$3:$AI$823,22,FALSE)/100))","v":""},{"$f":"IF($A935=\"\",\"\",IF(OR(VLOOKUP($A935,Economática!$A$3:$AI$823,23,FALSE)=0,VLOOKUP($A935,Economática!$A$3:$AI$823,23,FALSE)=\"-\"),1/0,VLOOKUP($A935,Economática!$A$3:$AI$823,23,FALSE)))","v":""},{"$f":"IF($A935=\"\",\"\",IF(OR(VLOOKUP($A935,Economática!$A$3:$AI$823,24,FALSE)=0,VLOOKUP($A935,Economática!$A$3:$AI$823,24,FALSE)=\"-\"),1/0,VLOOKUP($A935,Economática!$A$3:$AI$823,24,FALSE)))","v":""},{"$f":"IF($A935=\"\",\"\",IF(OR(VLOOKUP($A935,Economática!$A$3:$AI$823,25,FALSE)=0,VLOOKUP($A935,Economática!$A$3:$AI$823,25,FALSE)=\"-\"),1/0,VLOOKUP($A935,Economática!$A$3:$AI$823,25,FALSE)))","v":""},{"$f":"IF($A935=\"\",\"\",IF(ISERROR((F935+VLOOKUP($A935,Economática!$A$3:$AI$823,26,FALSE))/Y935),(F935+VLOOKUP($A935,Economática!$A$3:$AI$823,26,FALSE))/Y935,(F935+VLOOKUP($A935,Economática!$A$3:$AI$823,26,FALSE))/Y935))","v":""},{"$f":"IF($A935=\"\",\"\",IF(OR(-VLOOKUP($A935,Economática!$A$3:$AI$823,27,FALSE)=0,-VLOOKUP($A935,Economática!$A$3:$AI$823,27,FALSE)=\"-\"),1/0,-VLOOKUP($A935,Economática!$A$3:$AI$823,27,FALSE)))","v":""},"",{"$f":"IF($A935=\"\",\"\",IF(OR(VLOOKUP($A935,Economática!$A$3:$AI$823,28,FALSE)=0,VLOOKUP($A935,Economática!$A$3:$AI$823,28,FALSE)=\"-\"),1/0,VLOOKUP($A935,Economática!$A$3:$AI$823,28,FALSE)))","v":""},{"$f":"IF($A935=\"\",\"\",IF(OR(VLOOKUP($A935,Economática!$A$3:$AI$823,29,FALSE)=0,VLOOKUP($A935,Economática!$A$3:$AI$823,29,FALSE)=\"-\"),1/0,VLOOKUP($A935,Economática!$A$3:$AI$823,29,FALSE)))","v":""},{"$f":"IF($A935=\"\",\"\",IF(OR(VLOOKUP($A935,Economática!$A$3:$AI$823,30,FALSE)/E935=0,VLOOKUP($A935,Economática!$A$3:$AI$823,30,FALSE)/E935=\"-\",VLOOKUP($A935,Economática!$A$3:$AI$823,30,FALSE)/E935<33.33%,VLOOKUP($A935,Economática!$A$3:$AI$823,30,FALSE)/E935>100%),1/0,VLOOKUP($A935,Economática!$A$3:$AI$823,30,FALSE)/E935))","v":""},"",{"$f":"IF($A935=\"\",\"\",IF(OR(VLOOKUP($A935,Economática!$A$3:$AI$823,25,FALSE)=0,VLOOKUP($A935,Economática!$A$3:$AI$823,25,FALSE)=\"-\"),1/0,VLOOKUP($A935,Economática!$A$3:$AI$823,25,FALSE)))","v":""},{"$f":"CONCATENATE(Economática!B913,\" \",Economática!C913)","v":" "}]
[{"$f":"IF(Economática!AG914=\"\",\"\",Economática!AG914)","v":""},{"$f":"IF($A936=\"\",\"\",VLOOKUP(VLOOKUP($A936,Economática!$A$3:$AI$823,6,FALSE),Correção!$B$16:$C$36,2,FALSE))","v":""},{"$f":"IF(Economática!B914=\"\",\"\",Economática!B914)","v":""},{"$f":"IF($A936=\"\",\"\",IF(OR(VLOOKUP($A936,Economática!$A$3:$AI$823,8,FALSE)=0,VLOOKUP($A936,Economática!$A$3:$AI$823,8,FALSE)=\"-\"),1/0,VLOOKUP($A936,Economática!$A$3:$AI$823,8,FALSE)))","v":""},{"$f":"IF(A936=\"\",\"\",IF(ISERROR(VLOOKUP(A936,Correção!$B$2:$G$13,9,FALSE)),VLOOKUP($A936,Economática!$A$3:$AI$823,9,FALSE),VLOOKUP(A936,Correção!$B$2:$G$13,9,FALSE)))","v":""},{"$f":"IF($A936=\"\",\"\",Economática!G914)","v":""},{"$f":"IF($A936=\"\",\"\",IF(OR(VLOOKUP($A936,Economática!$A$3:$AI$823,10,FALSE)=0,VLOOKUP($A936,Economática!$A$3:$AI$823,10,FALSE)=\"-\"),1/0,VLOOKUP($A936,Economática!$A$3:$AI$823,10,FALSE)))","v":""},{"$f":"IF($A936=\"\",\"\",IF(OR(VLOOKUP($A936,Economática!$A$3:$AI$823,11,FALSE)=0,VLOOKUP($A936,Economática!$A$3:$AI$823,11,FALSE)=\"-\"),1/0,VLOOKUP($A936,Economática!$A$3:$AI$823,11,FALSE)))","v":""},{"$f":"IF($A936=\"\",\"\",IF(OR(VLOOKUP($A936,Economática!$A$3:$AI$823,12,FALSE)=0,VLOOKUP($A936,Economática!$A$3:$AI$823,12,FALSE)=\"-\"),1/0,VLOOKUP($A936,Economática!$A$3:$AI$823,12,FALSE)))","v":""},{"$f":"IF($A936=\"\",\"\",IF(OR(VLOOKUP($A936,Economática!$A$3:$AI$823,13,FALSE)=0,VLOOKUP($A936,Economática!$A$3:$AI$823,13,FALSE)=\"-\"),1/0,VLOOKUP($A936,Economática!$A$3:$AI$823,13,FALSE)))","v":""},{"$f":"IF($A936=\"\",\"\",IF(OR(VLOOKUP($A936,Economática!$A$3:$AI$823,14,FALSE)=0,VLOOKUP($A936,Economática!$A$3:$AI$823,14,FALSE)=\"-\"),1/0,VLOOKUP($A936,Economática!$A$3:$AI$823,14,FALSE)))","v":""},{"$f":"IF($A936=\"\",\"\",IF(OR(VLOOKUP($A936,Economática!$A$3:$AI$823,15,FALSE)=0,VLOOKUP($A936,Economática!$A$3:$AI$823,15,FALSE)=\"-\"),1/0,VLOOKUP($A936,Economática!$A$3:$AI$823,15,FALSE)))","v":""},{"$f":"IF($A936=\"\",\"\",IF(OR(VLOOKUP($A936,Economática!$A$3:$AI$823,16,FALSE)=0,VLOOKUP($A936,Economática!$A$3:$AI$823,16,FALSE)=\"-\"),1/0,VLOOKUP($A936,Economática!$A$3:$AI$823,16,FALSE)))","v":""},{"$f":"IF($A936=\"\",\"\",IF(OR(VLOOKUP($A936,Economática!$A$3:$AI$823,17,FALSE)=0,VLOOKUP($A936,Economática!$A$3:$AI$823,17,FALSE)=\"-\"),1/0,VLOOKUP($A936,Economática!$A$3:$AI$823,17,FALSE)))","v":""},{"$f":"IF($A936=\"\",\"\",IF(OR(VLOOKUP($A936,Economática!$A$3:$AI$823,18,FALSE)=0,VLOOKUP($A936,Economática!$A$3:$AI$823,18,FALSE)=\"-\"),1/0,VLOOKUP($A936,Economática!$A$3:$AI$823,18,FALSE)))","v":""},{"$f":"IF($A936=\"\",\"\",IF(OR(VLOOKUP($A936,Economática!$A$3:$AI$823,19,FALSE)=0,VLOOKUP($A936,Economática!$A$3:$AI$823,19,FALSE)=\"-\"),1/0,VLOOKUP($A936,Economática!$A$3:$AI$823,19,FALSE)))","v":""},{"$f":"IF($A936=\"\",\"\",VLOOKUP($A936,Economática!$A$3:$AI$823,20,FALSE)/E936)","v":""},"","","",{"$f":"IF($A936=\"\",\"\",IF(OR(VLOOKUP($A936,Economática!$A$3:$AI$823,21,FALSE)/100=0,VLOOKUP($A936,Economática!$A$3:$AI$823,21,FALSE)/100=\"-\"),1/0,VLOOKUP($A936,Economática!$A$3:$AI$823,21,FALSE)/100))","v":""},{"$f":"IF($A936=\"\",\"\",IF(OR(VLOOKUP($A936,Economática!$A$3:$AI$823,22,FALSE)/100=0,VLOOKUP($A936,Economática!$A$3:$AI$823,22,FALSE)/100=\"-\"),1/0,VLOOKUP($A936,Economática!$A$3:$AI$823,22,FALSE)/100))","v":""},{"$f":"IF($A936=\"\",\"\",IF(OR(VLOOKUP($A936,Economática!$A$3:$AI$823,23,FALSE)=0,VLOOKUP($A936,Economática!$A$3:$AI$823,23,FALSE)=\"-\"),1/0,VLOOKUP($A936,Economática!$A$3:$AI$823,23,FALSE)))","v":""},{"$f":"IF($A936=\"\",\"\",IF(OR(VLOOKUP($A936,Economática!$A$3:$AI$823,24,FALSE)=0,VLOOKUP($A936,Economática!$A$3:$AI$823,24,FALSE)=\"-\"),1/0,VLOOKUP($A936,Economática!$A$3:$AI$823,24,FALSE)))","v":""},{"$f":"IF($A936=\"\",\"\",IF(OR(VLOOKUP($A936,Economática!$A$3:$AI$823,25,FALSE)=0,VLOOKUP($A936,Economática!$A$3:$AI$823,25,FALSE)=\"-\"),1/0,VLOOKUP($A936,Economática!$A$3:$AI$823,25,FALSE)))","v":""},{"$f":"IF($A936=\"\",\"\",IF(ISERROR((F936+VLOOKUP($A936,Economática!$A$3:$AI$823,26,FALSE))/Y936),(F936+VLOOKUP($A936,Economática!$A$3:$AI$823,26,FALSE))/Y936,(F936+VLOOKUP($A936,Economática!$A$3:$AI$823,26,FALSE))/Y936))","v":""},{"$f":"IF($A936=\"\",\"\",IF(OR(-VLOOKUP($A936,Economática!$A$3:$AI$823,27,FALSE)=0,-VLOOKUP($A936,Economática!$A$3:$AI$823,27,FALSE)=\"-\"),1/0,-VLOOKUP($A936,Economática!$A$3:$AI$823,27,FALSE)))","v":""},"",{"$f":"IF($A936=\"\",\"\",IF(OR(VLOOKUP($A936,Economática!$A$3:$AI$823,28,FALSE)=0,VLOOKUP($A936,Economática!$A$3:$AI$823,28,FALSE)=\"-\"),1/0,VLOOKUP($A936,Economática!$A$3:$AI$823,28,FALSE)))","v":""},{"$f":"IF($A936=\"\",\"\",IF(OR(VLOOKUP($A936,Economática!$A$3:$AI$823,29,FALSE)=0,VLOOKUP($A936,Economática!$A$3:$AI$823,29,FALSE)=\"-\"),1/0,VLOOKUP($A936,Economática!$A$3:$AI$823,29,FALSE)))","v":""},{"$f":"IF($A936=\"\",\"\",IF(OR(VLOOKUP($A936,Economática!$A$3:$AI$823,30,FALSE)/E936=0,VLOOKUP($A936,Economática!$A$3:$AI$823,30,FALSE)/E936=\"-\",VLOOKUP($A936,Economática!$A$3:$AI$823,30,FALSE)/E936<33.33%,VLOOKUP($A936,Economática!$A$3:$AI$823,30,FALSE)/E936>100%),1/0,VLOOKUP($A936,Economática!$A$3:$AI$823,30,FALSE)/E936))","v":""},"",{"$f":"IF($A936=\"\",\"\",IF(OR(VLOOKUP($A936,Economática!$A$3:$AI$823,25,FALSE)=0,VLOOKUP($A936,Economática!$A$3:$AI$823,25,FALSE)=\"-\"),1/0,VLOOKUP($A936,Economática!$A$3:$AI$823,25,FALSE)))","v":""},{"$f":"CONCATENATE(Economática!B914,\" \",Economática!C914)","v":" "}]
[{"$f":"IF(Economática!AG915=\"\",\"\",Economática!AG915)","v":""},{"$f":"IF($A937=\"\",\"\",VLOOKUP(VLOOKUP($A937,Economática!$A$3:$AI$823,6,FALSE),Correção!$B$16:$C$36,2,FALSE))","v":""},{"$f":"IF(Economática!B915=\"\",\"\",Economática!B915)","v":""},{"$f":"IF($A937=\"\",\"\",IF(OR(VLOOKUP($A937,Economática!$A$3:$AI$823,8,FALSE)=0,VLOOKUP($A937,Economática!$A$3:$AI$823,8,FALSE)=\"-\"),1/0,VLOOKUP($A937,Economática!$A$3:$AI$823,8,FALSE)))","v":""},{"$f":"IF(A937=\"\",\"\",IF(ISERROR(VLOOKUP(A937,Correção!$B$2:$G$13,9,FALSE)),VLOOKUP($A937,Economática!$A$3:$AI$823,9,FALSE),VLOOKUP(A937,Correção!$B$2:$G$13,9,FALSE)))","v":""},{"$f":"IF($A937=\"\",\"\",Economática!G915)","v":""},{"$f":"IF($A937=\"\",\"\",IF(OR(VLOOKUP($A937,Economática!$A$3:$AI$823,10,FALSE)=0,VLOOKUP($A937,Economática!$A$3:$AI$823,10,FALSE)=\"-\"),1/0,VLOOKUP($A937,Economática!$A$3:$AI$823,10,FALSE)))","v":""},{"$f":"IF($A937=\"\",\"\",IF(OR(VLOOKUP($A937,Economática!$A$3:$AI$823,11,FALSE)=0,VLOOKUP($A937,Economática!$A$3:$AI$823,11,FALSE)=\"-\"),1/0,VLOOKUP($A937,Economática!$A$3:$AI$823,11,FALSE)))","v":""},{"$f":"IF($A937=\"\",\"\",IF(OR(VLOOKUP($A937,Economática!$A$3:$AI$823,12,FALSE)=0,VLOOKUP($A937,Economática!$A$3:$AI$823,12,FALSE)=\"-\"),1/0,VLOOKUP($A937,Economática!$A$3:$AI$823,12,FALSE)))","v":""},{"$f":"IF($A937=\"\",\"\",IF(OR(VLOOKUP($A937,Economática!$A$3:$AI$823,13,FALSE)=0,VLOOKUP($A937,Economática!$A$3:$AI$823,13,FALSE)=\"-\"),1/0,VLOOKUP($A937,Economática!$A$3:$AI$823,13,FALSE)))","v":""},{"$f":"IF($A937=\"\",\"\",IF(OR(VLOOKUP($A937,Economática!$A$3:$AI$823,14,FALSE)=0,VLOOKUP($A937,Economática!$A$3:$AI$823,14,FALSE)=\"-\"),1/0,VLOOKUP($A937,Economática!$A$3:$AI$823,14,FALSE)))","v":""},{"$f":"IF($A937=\"\",\"\",IF(OR(VLOOKUP($A937,Economática!$A$3:$AI$823,15,FALSE)=0,VLOOKUP($A937,Economática!$A$3:$AI$823,15,FALSE)=\"-\"),1/0,VLOOKUP($A937,Economática!$A$3:$AI$823,15,FALSE)))","v":""},{"$f":"IF($A937=\"\",\"\",IF(OR(VLOOKUP($A937,Economática!$A$3:$AI$823,16,FALSE)=0,VLOOKUP($A937,Economática!$A$3:$AI$823,16,FALSE)=\"-\"),1/0,VLOOKUP($A937,Economática!$A$3:$AI$823,16,FALSE)))","v":""},{"$f":"IF($A937=\"\",\"\",IF(OR(VLOOKUP($A937,Economática!$A$3:$AI$823,17,FALSE)=0,VLOOKUP($A937,Economática!$A$3:$AI$823,17,FALSE)=\"-\"),1/0,VLOOKUP($A937,Economática!$A$3:$AI$823,17,FALSE)))","v":""},{"$f":"IF($A937=\"\",\"\",IF(OR(VLOOKUP($A937,Economática!$A$3:$AI$823,18,FALSE)=0,VLOOKUP($A937,Economática!$A$3:$AI$823,18,FALSE)=\"-\"),1/0,VLOOKUP($A937,Economática!$A$3:$AI$823,18,FALSE)))","v":""},{"$f":"IF($A937=\"\",\"\",IF(OR(VLOOKUP($A937,Economática!$A$3:$AI$823,19,FALSE)=0,VLOOKUP($A937,Economática!$A$3:$AI$823,19,FALSE)=\"-\"),1/0,VLOOKUP($A937,Economática!$A$3:$AI$823,19,FALSE)))","v":""},{"$f":"IF($A937=\"\",\"\",VLOOKUP($A937,Economática!$A$3:$AI$823,20,FALSE)/E937)","v":""},"","","",{"$f":"IF($A937=\"\",\"\",IF(OR(VLOOKUP($A937,Economática!$A$3:$AI$823,21,FALSE)/100=0,VLOOKUP($A937,Economática!$A$3:$AI$823,21,FALSE)/100=\"-\"),1/0,VLOOKUP($A937,Economática!$A$3:$AI$823,21,FALSE)/100))","v":""},{"$f":"IF($A937=\"\",\"\",IF(OR(VLOOKUP($A937,Economática!$A$3:$AI$823,22,FALSE)/100=0,VLOOKUP($A937,Economática!$A$3:$AI$823,22,FALSE)/100=\"-\"),1/0,VLOOKUP($A937,Economática!$A$3:$AI$823,22,FALSE)/100))","v":""},{"$f":"IF($A937=\"\",\"\",IF(OR(VLOOKUP($A937,Economática!$A$3:$AI$823,23,FALSE)=0,VLOOKUP($A937,Economática!$A$3:$AI$823,23,FALSE)=\"-\"),1/0,VLOOKUP($A937,Economática!$A$3:$AI$823,23,FALSE)))","v":""},{"$f":"IF($A937=\"\",\"\",IF(OR(VLOOKUP($A937,Economática!$A$3:$AI$823,24,FALSE)=0,VLOOKUP($A937,Economática!$A$3:$AI$823,24,FALSE)=\"-\"),1/0,VLOOKUP($A937,Economática!$A$3:$AI$823,24,FALSE)))","v":""},{"$f":"IF($A937=\"\",\"\",IF(OR(VLOOKUP($A937,Economática!$A$3:$AI$823,25,FALSE)=0,VLOOKUP($A937,Economática!$A$3:$AI$823,25,FALSE)=\"-\"),1/0,VLOOKUP($A937,Economática!$A$3:$AI$823,25,FALSE)))","v":""},{"$f":"IF($A937=\"\",\"\",IF(ISERROR((F937+VLOOKUP($A937,Economática!$A$3:$AI$823,26,FALSE))/Y937),(F937+VLOOKUP($A937,Economática!$A$3:$AI$823,26,FALSE))/Y937,(F937+VLOOKUP($A937,Economática!$A$3:$AI$823,26,FALSE))/Y937))","v":""},{"$f":"IF($A937=\"\",\"\",IF(OR(-VLOOKUP($A937,Economática!$A$3:$AI$823,27,FALSE)=0,-VLOOKUP($A937,Economática!$A$3:$AI$823,27,FALSE)=\"-\"),1/0,-VLOOKUP($A937,Economática!$A$3:$AI$823,27,FALSE)))","v":""},"",{"$f":"IF($A937=\"\",\"\",IF(OR(VLOOKUP($A937,Economática!$A$3:$AI$823,28,FALSE)=0,VLOOKUP($A937,Economática!$A$3:$AI$823,28,FALSE)=\"-\"),1/0,VLOOKUP($A937,Economática!$A$3:$AI$823,28,FALSE)))","v":""},{"$f":"IF($A937=\"\",\"\",IF(OR(VLOOKUP($A937,Economática!$A$3:$AI$823,29,FALSE)=0,VLOOKUP($A937,Economática!$A$3:$AI$823,29,FALSE)=\"-\"),1/0,VLOOKUP($A937,Economática!$A$3:$AI$823,29,FALSE)))","v":""},{"$f":"IF($A937=\"\",\"\",IF(OR(VLOOKUP($A937,Economática!$A$3:$AI$823,30,FALSE)/E937=0,VLOOKUP($A937,Economática!$A$3:$AI$823,30,FALSE)/E937=\"-\",VLOOKUP($A937,Economática!$A$3:$AI$823,30,FALSE)/E937<33.33%,VLOOKUP($A937,Economática!$A$3:$AI$823,30,FALSE)/E937>100%),1/0,VLOOKUP($A937,Economática!$A$3:$AI$823,30,FALSE)/E937))","v":""},"",{"$f":"IF($A937=\"\",\"\",IF(OR(VLOOKUP($A937,Economática!$A$3:$AI$823,25,FALSE)=0,VLOOKUP($A937,Economática!$A$3:$AI$823,25,FALSE)=\"-\"),1/0,VLOOKUP($A937,Economática!$A$3:$AI$823,25,FALSE)))","v":""},{"$f":"CONCATENATE(Economática!B915,\" \",Economática!C915)","v":" "}]
[{"$f":"IF(Economática!AG916=\"\",\"\",Economática!AG916)","v":""},{"$f":"IF($A938=\"\",\"\",VLOOKUP(VLOOKUP($A938,Economática!$A$3:$AI$823,6,FALSE),Correção!$B$16:$C$36,2,FALSE))","v":""},{"$f":"IF(Economática!B916=\"\",\"\",Economática!B916)","v":""},{"$f":"IF($A938=\"\",\"\",IF(OR(VLOOKUP($A938,Economática!$A$3:$AI$823,8,FALSE)=0,VLOOKUP($A938,Economática!$A$3:$AI$823,8,FALSE)=\"-\"),1/0,VLOOKUP($A938,Economática!$A$3:$AI$823,8,FALSE)))","v":""},{"$f":"IF(A938=\"\",\"\",IF(ISERROR(VLOOKUP(A938,Correção!$B$2:$G$13,9,FALSE)),VLOOKUP($A938,Economática!$A$3:$AI$823,9,FALSE),VLOOKUP(A938,Correção!$B$2:$G$13,9,FALSE)))","v":""},{"$f":"IF($A938=\"\",\"\",Economática!G916)","v":""},{"$f":"IF($A938=\"\",\"\",IF(OR(VLOOKUP($A938,Economática!$A$3:$AI$823,10,FALSE)=0,VLOOKUP($A938,Economática!$A$3:$AI$823,10,FALSE)=\"-\"),1/0,VLOOKUP($A938,Economática!$A$3:$AI$823,10,FALSE)))","v":""},{"$f":"IF($A938=\"\",\"\",IF(OR(VLOOKUP($A938,Economática!$A$3:$AI$823,11,FALSE)=0,VLOOKUP($A938,Economática!$A$3:$AI$823,11,FALSE)=\"-\"),1/0,VLOOKUP($A938,Economática!$A$3:$AI$823,11,FALSE)))","v":""},{"$f":"IF($A938=\"\",\"\",IF(OR(VLOOKUP($A938,Economática!$A$3:$AI$823,12,FALSE)=0,VLOOKUP($A938,Economática!$A$3:$AI$823,12,FALSE)=\"-\"),1/0,VLOOKUP($A938,Economática!$A$3:$AI$823,12,FALSE)))","v":""},{"$f":"IF($A938=\"\",\"\",IF(OR(VLOOKUP($A938,Economática!$A$3:$AI$823,13,FALSE)=0,VLOOKUP($A938,Economática!$A$3:$AI$823,13,FALSE)=\"-\"),1/0,VLOOKUP($A938,Economática!$A$3:$AI$823,13,FALSE)))","v":""},{"$f":"IF($A938=\"\",\"\",IF(OR(VLOOKUP($A938,Economática!$A$3:$AI$823,14,FALSE)=0,VLOOKUP($A938,Economática!$A$3:$AI$823,14,FALSE)=\"-\"),1/0,VLOOKUP($A938,Economática!$A$3:$AI$823,14,FALSE)))","v":""},{"$f":"IF($A938=\"\",\"\",IF(OR(VLOOKUP($A938,Economática!$A$3:$AI$823,15,FALSE)=0,VLOOKUP($A938,Economática!$A$3:$AI$823,15,FALSE)=\"-\"),1/0,VLOOKUP($A938,Economática!$A$3:$AI$823,15,FALSE)))","v":""},{"$f":"IF($A938=\"\",\"\",IF(OR(VLOOKUP($A938,Economática!$A$3:$AI$823,16,FALSE)=0,VLOOKUP($A938,Economática!$A$3:$AI$823,16,FALSE)=\"-\"),1/0,VLOOKUP($A938,Economática!$A$3:$AI$823,16,FALSE)))","v":""},{"$f":"IF($A938=\"\",\"\",IF(OR(VLOOKUP($A938,Economática!$A$3:$AI$823,17,FALSE)=0,VLOOKUP($A938,Economática!$A$3:$AI$823,17,FALSE)=\"-\"),1/0,VLOOKUP($A938,Economática!$A$3:$AI$823,17,FALSE)))","v":""},{"$f":"IF($A938=\"\",\"\",IF(OR(VLOOKUP($A938,Economática!$A$3:$AI$823,18,FALSE)=0,VLOOKUP($A938,Economática!$A$3:$AI$823,18,FALSE)=\"-\"),1/0,VLOOKUP($A938,Economática!$A$3:$AI$823,18,FALSE)))","v":""},{"$f":"IF($A938=\"\",\"\",IF(OR(VLOOKUP($A938,Economática!$A$3:$AI$823,19,FALSE)=0,VLOOKUP($A938,Economática!$A$3:$AI$823,19,FALSE)=\"-\"),1/0,VLOOKUP($A938,Economática!$A$3:$AI$823,19,FALSE)))","v":""},{"$f":"IF($A938=\"\",\"\",VLOOKUP($A938,Economática!$A$3:$AI$823,20,FALSE)/E938)","v":""},"","","",{"$f":"IF($A938=\"\",\"\",IF(OR(VLOOKUP($A938,Economática!$A$3:$AI$823,21,FALSE)/100=0,VLOOKUP($A938,Economática!$A$3:$AI$823,21,FALSE)/100=\"-\"),1/0,VLOOKUP($A938,Economática!$A$3:$AI$823,21,FALSE)/100))","v":""},{"$f":"IF($A938=\"\",\"\",IF(OR(VLOOKUP($A938,Economática!$A$3:$AI$823,22,FALSE)/100=0,VLOOKUP($A938,Economática!$A$3:$AI$823,22,FALSE)/100=\"-\"),1/0,VLOOKUP($A938,Economática!$A$3:$AI$823,22,FALSE)/100))","v":""},{"$f":"IF($A938=\"\",\"\",IF(OR(VLOOKUP($A938,Economática!$A$3:$AI$823,23,FALSE)=0,VLOOKUP($A938,Economática!$A$3:$AI$823,23,FALSE)=\"-\"),1/0,VLOOKUP($A938,Economática!$A$3:$AI$823,23,FALSE)))","v":""},{"$f":"IF($A938=\"\",\"\",IF(OR(VLOOKUP($A938,Economática!$A$3:$AI$823,24,FALSE)=0,VLOOKUP($A938,Economática!$A$3:$AI$823,24,FALSE)=\"-\"),1/0,VLOOKUP($A938,Economática!$A$3:$AI$823,24,FALSE)))","v":""},{"$f":"IF($A938=\"\",\"\",IF(OR(VLOOKUP($A938,Economática!$A$3:$AI$823,25,FALSE)=0,VLOOKUP($A938,Economática!$A$3:$AI$823,25,FALSE)=\"-\"),1/0,VLOOKUP($A938,Economática!$A$3:$AI$823,25,FALSE)))","v":""},{"$f":"IF($A938=\"\",\"\",IF(ISERROR((F938+VLOOKUP($A938,Economática!$A$3:$AI$823,26,FALSE))/Y938),(F938+VLOOKUP($A938,Economática!$A$3:$AI$823,26,FALSE))/Y938,(F938+VLOOKUP($A938,Economática!$A$3:$AI$823,26,FALSE))/Y938))","v":""},{"$f":"IF($A938=\"\",\"\",IF(OR(-VLOOKUP($A938,Economática!$A$3:$AI$823,27,FALSE)=0,-VLOOKUP($A938,Economática!$A$3:$AI$823,27,FALSE)=\"-\"),1/0,-VLOOKUP($A938,Economática!$A$3:$AI$823,27,FALSE)))","v":""},"",{"$f":"IF($A938=\"\",\"\",IF(OR(VLOOKUP($A938,Economática!$A$3:$AI$823,28,FALSE)=0,VLOOKUP($A938,Economática!$A$3:$AI$823,28,FALSE)=\"-\"),1/0,VLOOKUP($A938,Economática!$A$3:$AI$823,28,FALSE)))","v":""},{"$f":"IF($A938=\"\",\"\",IF(OR(VLOOKUP($A938,Economática!$A$3:$AI$823,29,FALSE)=0,VLOOKUP($A938,Economática!$A$3:$AI$823,29,FALSE)=\"-\"),1/0,VLOOKUP($A938,Economática!$A$3:$AI$823,29,FALSE)))","v":""},{"$f":"IF($A938=\"\",\"\",IF(OR(VLOOKUP($A938,Economática!$A$3:$AI$823,30,FALSE)/E938=0,VLOOKUP($A938,Economática!$A$3:$AI$823,30,FALSE)/E938=\"-\",VLOOKUP($A938,Economática!$A$3:$AI$823,30,FALSE)/E938<33.33%,VLOOKUP($A938,Economática!$A$3:$AI$823,30,FALSE)/E938>100%),1/0,VLOOKUP($A938,Economática!$A$3:$AI$823,30,FALSE)/E938))","v":""},"",{"$f":"IF($A938=\"\",\"\",IF(OR(VLOOKUP($A938,Economática!$A$3:$AI$823,25,FALSE)=0,VLOOKUP($A938,Economática!$A$3:$AI$823,25,FALSE)=\"-\"),1/0,VLOOKUP($A938,Economática!$A$3:$AI$823,25,FALSE)))","v":""},{"$f":"CONCATENATE(Economática!B916,\" \",Economática!C916)","v":" "}]
[{"$f":"IF(Economática!AG917=\"\",\"\",Economática!AG917)","v":""},{"$f":"IF($A939=\"\",\"\",VLOOKUP(VLOOKUP($A939,Economática!$A$3:$AI$823,6,FALSE),Correção!$B$16:$C$36,2,FALSE))","v":""},{"$f":"IF(Economática!B917=\"\",\"\",Economática!B917)","v":""},{"$f":"IF($A939=\"\",\"\",IF(OR(VLOOKUP($A939,Economática!$A$3:$AI$823,8,FALSE)=0,VLOOKUP($A939,Economática!$A$3:$AI$823,8,FALSE)=\"-\"),1/0,VLOOKUP($A939,Economática!$A$3:$AI$823,8,FALSE)))","v":""},{"$f":"IF(A939=\"\",\"\",IF(ISERROR(VLOOKUP(A939,Correção!$B$2:$G$13,9,FALSE)),VLOOKUP($A939,Economática!$A$3:$AI$823,9,FALSE),VLOOKUP(A939,Correção!$B$2:$G$13,9,FALSE)))","v":""},{"$f":"IF($A939=\"\",\"\",Economática!G917)","v":""},{"$f":"IF($A939=\"\",\"\",IF(OR(VLOOKUP($A939,Economática!$A$3:$AI$823,10,FALSE)=0,VLOOKUP($A939,Economática!$A$3:$AI$823,10,FALSE)=\"-\"),1/0,VLOOKUP($A939,Economática!$A$3:$AI$823,10,FALSE)))","v":""},{"$f":"IF($A939=\"\",\"\",IF(OR(VLOOKUP($A939,Economática!$A$3:$AI$823,11,FALSE)=0,VLOOKUP($A939,Economática!$A$3:$AI$823,11,FALSE)=\"-\"),1/0,VLOOKUP($A939,Economática!$A$3:$AI$823,11,FALSE)))","v":""},{"$f":"IF($A939=\"\",\"\",IF(OR(VLOOKUP($A939,Economática!$A$3:$AI$823,12,FALSE)=0,VLOOKUP($A939,Economática!$A$3:$AI$823,12,FALSE)=\"-\"),1/0,VLOOKUP($A939,Economática!$A$3:$AI$823,12,FALSE)))","v":""},{"$f":"IF($A939=\"\",\"\",IF(OR(VLOOKUP($A939,Economática!$A$3:$AI$823,13,FALSE)=0,VLOOKUP($A939,Economática!$A$3:$AI$823,13,FALSE)=\"-\"),1/0,VLOOKUP($A939,Economática!$A$3:$AI$823,13,FALSE)))","v":""},{"$f":"IF($A939=\"\",\"\",IF(OR(VLOOKUP($A939,Economática!$A$3:$AI$823,14,FALSE)=0,VLOOKUP($A939,Economática!$A$3:$AI$823,14,FALSE)=\"-\"),1/0,VLOOKUP($A939,Economática!$A$3:$AI$823,14,FALSE)))","v":""},{"$f":"IF($A939=\"\",\"\",IF(OR(VLOOKUP($A939,Economática!$A$3:$AI$823,15,FALSE)=0,VLOOKUP($A939,Economática!$A$3:$AI$823,15,FALSE)=\"-\"),1/0,VLOOKUP($A939,Economática!$A$3:$AI$823,15,FALSE)))","v":""},{"$f":"IF($A939=\"\",\"\",IF(OR(VLOOKUP($A939,Economática!$A$3:$AI$823,16,FALSE)=0,VLOOKUP($A939,Economática!$A$3:$AI$823,16,FALSE)=\"-\"),1/0,VLOOKUP($A939,Economática!$A$3:$AI$823,16,FALSE)))","v":""},{"$f":"IF($A939=\"\",\"\",IF(OR(VLOOKUP($A939,Economática!$A$3:$AI$823,17,FALSE)=0,VLOOKUP($A939,Economática!$A$3:$AI$823,17,FALSE)=\"-\"),1/0,VLOOKUP($A939,Economática!$A$3:$AI$823,17,FALSE)))","v":""},{"$f":"IF($A939=\"\",\"\",IF(OR(VLOOKUP($A939,Economática!$A$3:$AI$823,18,FALSE)=0,VLOOKUP($A939,Economática!$A$3:$AI$823,18,FALSE)=\"-\"),1/0,VLOOKUP($A939,Economática!$A$3:$AI$823,18,FALSE)))","v":""},{"$f":"IF($A939=\"\",\"\",IF(OR(VLOOKUP($A939,Economática!$A$3:$AI$823,19,FALSE)=0,VLOOKUP($A939,Economática!$A$3:$AI$823,19,FALSE)=\"-\"),1/0,VLOOKUP($A939,Economática!$A$3:$AI$823,19,FALSE)))","v":""},{"$f":"IF($A939=\"\",\"\",VLOOKUP($A939,Economática!$A$3:$AI$823,20,FALSE)/E939)","v":""},"","","",{"$f":"IF($A939=\"\",\"\",IF(OR(VLOOKUP($A939,Economática!$A$3:$AI$823,21,FALSE)/100=0,VLOOKUP($A939,Economática!$A$3:$AI$823,21,FALSE)/100=\"-\"),1/0,VLOOKUP($A939,Economática!$A$3:$AI$823,21,FALSE)/100))","v":""},{"$f":"IF($A939=\"\",\"\",IF(OR(VLOOKUP($A939,Economática!$A$3:$AI$823,22,FALSE)/100=0,VLOOKUP($A939,Economática!$A$3:$AI$823,22,FALSE)/100=\"-\"),1/0,VLOOKUP($A939,Economática!$A$3:$AI$823,22,FALSE)/100))","v":""},{"$f":"IF($A939=\"\",\"\",IF(OR(VLOOKUP($A939,Economática!$A$3:$AI$823,23,FALSE)=0,VLOOKUP($A939,Economática!$A$3:$AI$823,23,FALSE)=\"-\"),1/0,VLOOKUP($A939,Economática!$A$3:$AI$823,23,FALSE)))","v":""},{"$f":"IF($A939=\"\",\"\",IF(OR(VLOOKUP($A939,Economática!$A$3:$AI$823,24,FALSE)=0,VLOOKUP($A939,Economática!$A$3:$AI$823,24,FALSE)=\"-\"),1/0,VLOOKUP($A939,Economática!$A$3:$AI$823,24,FALSE)))","v":""},{"$f":"IF($A939=\"\",\"\",IF(OR(VLOOKUP($A939,Economática!$A$3:$AI$823,25,FALSE)=0,VLOOKUP($A939,Economática!$A$3:$AI$823,25,FALSE)=\"-\"),1/0,VLOOKUP($A939,Economática!$A$3:$AI$823,25,FALSE)))","v":""},{"$f":"IF($A939=\"\",\"\",IF(ISERROR((F939+VLOOKUP($A939,Economática!$A$3:$AI$823,26,FALSE))/Y939),(F939+VLOOKUP($A939,Economática!$A$3:$AI$823,26,FALSE))/Y939,(F939+VLOOKUP($A939,Economática!$A$3:$AI$823,26,FALSE))/Y939))","v":""},{"$f":"IF($A939=\"\",\"\",IF(OR(-VLOOKUP($A939,Economática!$A$3:$AI$823,27,FALSE)=0,-VLOOKUP($A939,Economática!$A$3:$AI$823,27,FALSE)=\"-\"),1/0,-VLOOKUP($A939,Economática!$A$3:$AI$823,27,FALSE)))","v":""},"",{"$f":"IF($A939=\"\",\"\",IF(OR(VLOOKUP($A939,Economática!$A$3:$AI$823,28,FALSE)=0,VLOOKUP($A939,Economática!$A$3:$AI$823,28,FALSE)=\"-\"),1/0,VLOOKUP($A939,Economática!$A$3:$AI$823,28,FALSE)))","v":""},{"$f":"IF($A939=\"\",\"\",IF(OR(VLOOKUP($A939,Economática!$A$3:$AI$823,29,FALSE)=0,VLOOKUP($A939,Economática!$A$3:$AI$823,29,FALSE)=\"-\"),1/0,VLOOKUP($A939,Economática!$A$3:$AI$823,29,FALSE)))","v":""},{"$f":"IF($A939=\"\",\"\",IF(OR(VLOOKUP($A939,Economática!$A$3:$AI$823,30,FALSE)/E939=0,VLOOKUP($A939,Economática!$A$3:$AI$823,30,FALSE)/E939=\"-\",VLOOKUP($A939,Economática!$A$3:$AI$823,30,FALSE)/E939<33.33%,VLOOKUP($A939,Economática!$A$3:$AI$823,30,FALSE)/E939>100%),1/0,VLOOKUP($A939,Economática!$A$3:$AI$823,30,FALSE)/E939))","v":""},"",{"$f":"IF($A939=\"\",\"\",IF(OR(VLOOKUP($A939,Economática!$A$3:$AI$823,25,FALSE)=0,VLOOKUP($A939,Economática!$A$3:$AI$823,25,FALSE)=\"-\"),1/0,VLOOKUP($A939,Economática!$A$3:$AI$823,25,FALSE)))","v":""},{"$f":"CONCATENATE(Economática!B917,\" \",Economática!C917)","v":" "}]
[{"$f":"IF(Economática!AG918=\"\",\"\",Economática!AG918)","v":""},{"$f":"IF($A940=\"\",\"\",VLOOKUP(VLOOKUP($A940,Economática!$A$3:$AI$823,6,FALSE),Correção!$B$16:$C$36,2,FALSE))","v":""},{"$f":"IF(Economática!B918=\"\",\"\",Economática!B918)","v":""},{"$f":"IF($A940=\"\",\"\",IF(OR(VLOOKUP($A940,Economática!$A$3:$AI$823,8,FALSE)=0,VLOOKUP($A940,Economática!$A$3:$AI$823,8,FALSE)=\"-\"),1/0,VLOOKUP($A940,Economática!$A$3:$AI$823,8,FALSE)))","v":""},{"$f":"IF(A940=\"\",\"\",IF(ISERROR(VLOOKUP(A940,Correção!$B$2:$G$13,9,FALSE)),VLOOKUP($A940,Economática!$A$3:$AI$823,9,FALSE),VLOOKUP(A940,Correção!$B$2:$G$13,9,FALSE)))","v":""},{"$f":"IF($A940=\"\",\"\",Economática!G918)","v":""},{"$f":"IF($A940=\"\",\"\",IF(OR(VLOOKUP($A940,Economática!$A$3:$AI$823,10,FALSE)=0,VLOOKUP($A940,Economática!$A$3:$AI$823,10,FALSE)=\"-\"),1/0,VLOOKUP($A940,Economática!$A$3:$AI$823,10,FALSE)))","v":""},{"$f":"IF($A940=\"\",\"\",IF(OR(VLOOKUP($A940,Economática!$A$3:$AI$823,11,FALSE)=0,VLOOKUP($A940,Economática!$A$3:$AI$823,11,FALSE)=\"-\"),1/0,VLOOKUP($A940,Economática!$A$3:$AI$823,11,FALSE)))","v":""},{"$f":"IF($A940=\"\",\"\",IF(OR(VLOOKUP($A940,Economática!$A$3:$AI$823,12,FALSE)=0,VLOOKUP($A940,Economática!$A$3:$AI$823,12,FALSE)=\"-\"),1/0,VLOOKUP($A940,Economática!$A$3:$AI$823,12,FALSE)))","v":""},{"$f":"IF($A940=\"\",\"\",IF(OR(VLOOKUP($A940,Economática!$A$3:$AI$823,13,FALSE)=0,VLOOKUP($A940,Economática!$A$3:$AI$823,13,FALSE)=\"-\"),1/0,VLOOKUP($A940,Economática!$A$3:$AI$823,13,FALSE)))","v":""},{"$f":"IF($A940=\"\",\"\",IF(OR(VLOOKUP($A940,Economática!$A$3:$AI$823,14,FALSE)=0,VLOOKUP($A940,Economática!$A$3:$AI$823,14,FALSE)=\"-\"),1/0,VLOOKUP($A940,Economática!$A$3:$AI$823,14,FALSE)))","v":""},{"$f":"IF($A940=\"\",\"\",IF(OR(VLOOKUP($A940,Economática!$A$3:$AI$823,15,FALSE)=0,VLOOKUP($A940,Economática!$A$3:$AI$823,15,FALSE)=\"-\"),1/0,VLOOKUP($A940,Economática!$A$3:$AI$823,15,FALSE)))","v":""},{"$f":"IF($A940=\"\",\"\",IF(OR(VLOOKUP($A940,Economática!$A$3:$AI$823,16,FALSE)=0,VLOOKUP($A940,Economática!$A$3:$AI$823,16,FALSE)=\"-\"),1/0,VLOOKUP($A940,Economática!$A$3:$AI$823,16,FALSE)))","v":""},{"$f":"IF($A940=\"\",\"\",IF(OR(VLOOKUP($A940,Economática!$A$3:$AI$823,17,FALSE)=0,VLOOKUP($A940,Economática!$A$3:$AI$823,17,FALSE)=\"-\"),1/0,VLOOKUP($A940,Economática!$A$3:$AI$823,17,FALSE)))","v":""},{"$f":"IF($A940=\"\",\"\",IF(OR(VLOOKUP($A940,Economática!$A$3:$AI$823,18,FALSE)=0,VLOOKUP($A940,Economática!$A$3:$AI$823,18,FALSE)=\"-\"),1/0,VLOOKUP($A940,Economática!$A$3:$AI$823,18,FALSE)))","v":""},{"$f":"IF($A940=\"\",\"\",IF(OR(VLOOKUP($A940,Economática!$A$3:$AI$823,19,FALSE)=0,VLOOKUP($A940,Economática!$A$3:$AI$823,19,FALSE)=\"-\"),1/0,VLOOKUP($A940,Economática!$A$3:$AI$823,19,FALSE)))","v":""},{"$f":"IF($A940=\"\",\"\",VLOOKUP($A940,Economática!$A$3:$AI$823,20,FALSE)/E940)","v":""},"","","",{"$f":"IF($A940=\"\",\"\",IF(OR(VLOOKUP($A940,Economática!$A$3:$AI$823,21,FALSE)/100=0,VLOOKUP($A940,Economática!$A$3:$AI$823,21,FALSE)/100=\"-\"),1/0,VLOOKUP($A940,Economática!$A$3:$AI$823,21,FALSE)/100))","v":""},{"$f":"IF($A940=\"\",\"\",IF(OR(VLOOKUP($A940,Economática!$A$3:$AI$823,22,FALSE)/100=0,VLOOKUP($A940,Economática!$A$3:$AI$823,22,FALSE)/100=\"-\"),1/0,VLOOKUP($A940,Economática!$A$3:$AI$823,22,FALSE)/100))","v":""},{"$f":"IF($A940=\"\",\"\",IF(OR(VLOOKUP($A940,Economática!$A$3:$AI$823,23,FALSE)=0,VLOOKUP($A940,Economática!$A$3:$AI$823,23,FALSE)=\"-\"),1/0,VLOOKUP($A940,Economática!$A$3:$AI$823,23,FALSE)))","v":""},{"$f":"IF($A940=\"\",\"\",IF(OR(VLOOKUP($A940,Economática!$A$3:$AI$823,24,FALSE)=0,VLOOKUP($A940,Economática!$A$3:$AI$823,24,FALSE)=\"-\"),1/0,VLOOKUP($A940,Economática!$A$3:$AI$823,24,FALSE)))","v":""},{"$f":"IF($A940=\"\",\"\",IF(OR(VLOOKUP($A940,Economática!$A$3:$AI$823,25,FALSE)=0,VLOOKUP($A940,Economática!$A$3:$AI$823,25,FALSE)=\"-\"),1/0,VLOOKUP($A940,Economática!$A$3:$AI$823,25,FALSE)))","v":""},{"$f":"IF($A940=\"\",\"\",IF(ISERROR((F940+VLOOKUP($A940,Economática!$A$3:$AI$823,26,FALSE))/Y940),(F940+VLOOKUP($A940,Economática!$A$3:$AI$823,26,FALSE))/Y940,(F940+VLOOKUP($A940,Economática!$A$3:$AI$823,26,FALSE))/Y940))","v":""},{"$f":"IF($A940=\"\",\"\",IF(OR(-VLOOKUP($A940,Economática!$A$3:$AI$823,27,FALSE)=0,-VLOOKUP($A940,Economática!$A$3:$AI$823,27,FALSE)=\"-\"),1/0,-VLOOKUP($A940,Economática!$A$3:$AI$823,27,FALSE)))","v":""},"",{"$f":"IF($A940=\"\",\"\",IF(OR(VLOOKUP($A940,Economática!$A$3:$AI$823,28,FALSE)=0,VLOOKUP($A940,Economática!$A$3:$AI$823,28,FALSE)=\"-\"),1/0,VLOOKUP($A940,Economática!$A$3:$AI$823,28,FALSE)))","v":""},{"$f":"IF($A940=\"\",\"\",IF(OR(VLOOKUP($A940,Economática!$A$3:$AI$823,29,FALSE)=0,VLOOKUP($A940,Economática!$A$3:$AI$823,29,FALSE)=\"-\"),1/0,VLOOKUP($A940,Economática!$A$3:$AI$823,29,FALSE)))","v":""},{"$f":"IF($A940=\"\",\"\",IF(OR(VLOOKUP($A940,Economática!$A$3:$AI$823,30,FALSE)/E940=0,VLOOKUP($A940,Economática!$A$3:$AI$823,30,FALSE)/E940=\"-\",VLOOKUP($A940,Economática!$A$3:$AI$823,30,FALSE)/E940<33.33%,VLOOKUP($A940,Economática!$A$3:$AI$823,30,FALSE)/E940>100%),1/0,VLOOKUP($A940,Economática!$A$3:$AI$823,30,FALSE)/E940))","v":""},"",{"$f":"IF($A940=\"\",\"\",IF(OR(VLOOKUP($A940,Economática!$A$3:$AI$823,25,FALSE)=0,VLOOKUP($A940,Economática!$A$3:$AI$823,25,FALSE)=\"-\"),1/0,VLOOKUP($A940,Economática!$A$3:$AI$823,25,FALSE)))","v":""},{"$f":"CONCATENATE(Economática!B918,\" \",Economática!C918)","v":" "}]
[{"$f":"IF(Economática!AG919=\"\",\"\",Economática!AG919)","v":""},{"$f":"IF($A941=\"\",\"\",VLOOKUP(VLOOKUP($A941,Economática!$A$3:$AI$823,6,FALSE),Correção!$B$16:$C$36,2,FALSE))","v":""},{"$f":"IF(Economática!B919=\"\",\"\",Economática!B919)","v":""},{"$f":"IF($A941=\"\",\"\",IF(OR(VLOOKUP($A941,Economática!$A$3:$AI$823,8,FALSE)=0,VLOOKUP($A941,Economática!$A$3:$AI$823,8,FALSE)=\"-\"),1/0,VLOOKUP($A941,Economática!$A$3:$AI$823,8,FALSE)))","v":""},{"$f":"IF(A941=\"\",\"\",IF(ISERROR(VLOOKUP(A941,Correção!$B$2:$G$13,9,FALSE)),VLOOKUP($A941,Economática!$A$3:$AI$823,9,FALSE),VLOOKUP(A941,Correção!$B$2:$G$13,9,FALSE)))","v":""},{"$f":"IF($A941=\"\",\"\",Economática!G919)","v":""},{"$f":"IF($A941=\"\",\"\",IF(OR(VLOOKUP($A941,Economática!$A$3:$AI$823,10,FALSE)=0,VLOOKUP($A941,Economática!$A$3:$AI$823,10,FALSE)=\"-\"),1/0,VLOOKUP($A941,Economática!$A$3:$AI$823,10,FALSE)))","v":""},{"$f":"IF($A941=\"\",\"\",IF(OR(VLOOKUP($A941,Economática!$A$3:$AI$823,11,FALSE)=0,VLOOKUP($A941,Economática!$A$3:$AI$823,11,FALSE)=\"-\"),1/0,VLOOKUP($A941,Economática!$A$3:$AI$823,11,FALSE)))","v":""},{"$f":"IF($A941=\"\",\"\",IF(OR(VLOOKUP($A941,Economática!$A$3:$AI$823,12,FALSE)=0,VLOOKUP($A941,Economática!$A$3:$AI$823,12,FALSE)=\"-\"),1/0,VLOOKUP($A941,Economática!$A$3:$AI$823,12,FALSE)))","v":""},{"$f":"IF($A941=\"\",\"\",IF(OR(VLOOKUP($A941,Economática!$A$3:$AI$823,13,FALSE)=0,VLOOKUP($A941,Economática!$A$3:$AI$823,13,FALSE)=\"-\"),1/0,VLOOKUP($A941,Economática!$A$3:$AI$823,13,FALSE)))","v":""},{"$f":"IF($A941=\"\",\"\",IF(OR(VLOOKUP($A941,Economática!$A$3:$AI$823,14,FALSE)=0,VLOOKUP($A941,Economática!$A$3:$AI$823,14,FALSE)=\"-\"),1/0,VLOOKUP($A941,Economática!$A$3:$AI$823,14,FALSE)))","v":""},{"$f":"IF($A941=\"\",\"\",IF(OR(VLOOKUP($A941,Economática!$A$3:$AI$823,15,FALSE)=0,VLOOKUP($A941,Economática!$A$3:$AI$823,15,FALSE)=\"-\"),1/0,VLOOKUP($A941,Economática!$A$3:$AI$823,15,FALSE)))","v":""},{"$f":"IF($A941=\"\",\"\",IF(OR(VLOOKUP($A941,Economática!$A$3:$AI$823,16,FALSE)=0,VLOOKUP($A941,Economática!$A$3:$AI$823,16,FALSE)=\"-\"),1/0,VLOOKUP($A941,Economática!$A$3:$AI$823,16,FALSE)))","v":""},{"$f":"IF($A941=\"\",\"\",IF(OR(VLOOKUP($A941,Economática!$A$3:$AI$823,17,FALSE)=0,VLOOKUP($A941,Economática!$A$3:$AI$823,17,FALSE)=\"-\"),1/0,VLOOKUP($A941,Economática!$A$3:$AI$823,17,FALSE)))","v":""},{"$f":"IF($A941=\"\",\"\",IF(OR(VLOOKUP($A941,Economática!$A$3:$AI$823,18,FALSE)=0,VLOOKUP($A941,Economática!$A$3:$AI$823,18,FALSE)=\"-\"),1/0,VLOOKUP($A941,Economática!$A$3:$AI$823,18,FALSE)))","v":""},{"$f":"IF($A941=\"\",\"\",IF(OR(VLOOKUP($A941,Economática!$A$3:$AI$823,19,FALSE)=0,VLOOKUP($A941,Economática!$A$3:$AI$823,19,FALSE)=\"-\"),1/0,VLOOKUP($A941,Economática!$A$3:$AI$823,19,FALSE)))","v":""},{"$f":"IF($A941=\"\",\"\",VLOOKUP($A941,Economática!$A$3:$AI$823,20,FALSE)/E941)","v":""},"","","",{"$f":"IF($A941=\"\",\"\",IF(OR(VLOOKUP($A941,Economática!$A$3:$AI$823,21,FALSE)/100=0,VLOOKUP($A941,Economática!$A$3:$AI$823,21,FALSE)/100=\"-\"),1/0,VLOOKUP($A941,Economática!$A$3:$AI$823,21,FALSE)/100))","v":""},{"$f":"IF($A941=\"\",\"\",IF(OR(VLOOKUP($A941,Economática!$A$3:$AI$823,22,FALSE)/100=0,VLOOKUP($A941,Economática!$A$3:$AI$823,22,FALSE)/100=\"-\"),1/0,VLOOKUP($A941,Economática!$A$3:$AI$823,22,FALSE)/100))","v":""},{"$f":"IF($A941=\"\",\"\",IF(OR(VLOOKUP($A941,Economática!$A$3:$AI$823,23,FALSE)=0,VLOOKUP($A941,Economática!$A$3:$AI$823,23,FALSE)=\"-\"),1/0,VLOOKUP($A941,Economática!$A$3:$AI$823,23,FALSE)))","v":""},{"$f":"IF($A941=\"\",\"\",IF(OR(VLOOKUP($A941,Economática!$A$3:$AI$823,24,FALSE)=0,VLOOKUP($A941,Economática!$A$3:$AI$823,24,FALSE)=\"-\"),1/0,VLOOKUP($A941,Economática!$A$3:$AI$823,24,FALSE)))","v":""},{"$f":"IF($A941=\"\",\"\",IF(OR(VLOOKUP($A941,Economática!$A$3:$AI$823,25,FALSE)=0,VLOOKUP($A941,Economática!$A$3:$AI$823,25,FALSE)=\"-\"),1/0,VLOOKUP($A941,Economática!$A$3:$AI$823,25,FALSE)))","v":""},{"$f":"IF($A941=\"\",\"\",IF(ISERROR((F941+VLOOKUP($A941,Economática!$A$3:$AI$823,26,FALSE))/Y941),(F941+VLOOKUP($A941,Economática!$A$3:$AI$823,26,FALSE))/Y941,(F941+VLOOKUP($A941,Economática!$A$3:$AI$823,26,FALSE))/Y941))","v":""},{"$f":"IF($A941=\"\",\"\",IF(OR(-VLOOKUP($A941,Economática!$A$3:$AI$823,27,FALSE)=0,-VLOOKUP($A941,Economática!$A$3:$AI$823,27,FALSE)=\"-\"),1/0,-VLOOKUP($A941,Economática!$A$3:$AI$823,27,FALSE)))","v":""},"",{"$f":"IF($A941=\"\",\"\",IF(OR(VLOOKUP($A941,Economática!$A$3:$AI$823,28,FALSE)=0,VLOOKUP($A941,Economática!$A$3:$AI$823,28,FALSE)=\"-\"),1/0,VLOOKUP($A941,Economática!$A$3:$AI$823,28,FALSE)))","v":""},{"$f":"IF($A941=\"\",\"\",IF(OR(VLOOKUP($A941,Economática!$A$3:$AI$823,29,FALSE)=0,VLOOKUP($A941,Economática!$A$3:$AI$823,29,FALSE)=\"-\"),1/0,VLOOKUP($A941,Economática!$A$3:$AI$823,29,FALSE)))","v":""},{"$f":"IF($A941=\"\",\"\",IF(OR(VLOOKUP($A941,Economática!$A$3:$AI$823,30,FALSE)/E941=0,VLOOKUP($A941,Economática!$A$3:$AI$823,30,FALSE)/E941=\"-\",VLOOKUP($A941,Economática!$A$3:$AI$823,30,FALSE)/E941<33.33%,VLOOKUP($A941,Economática!$A$3:$AI$823,30,FALSE)/E941>100%),1/0,VLOOKUP($A941,Economática!$A$3:$AI$823,30,FALSE)/E941))","v":""},"",{"$f":"IF($A941=\"\",\"\",IF(OR(VLOOKUP($A941,Economática!$A$3:$AI$823,25,FALSE)=0,VLOOKUP($A941,Economática!$A$3:$AI$823,25,FALSE)=\"-\"),1/0,VLOOKUP($A941,Economática!$A$3:$AI$823,25,FALSE)))","v":""},{"$f":"CONCATENATE(Economática!B919,\" \",Economática!C919)","v":" "}]
[{"$f":"IF(Economática!AG920=\"\",\"\",Economática!AG920)","v":""},{"$f":"IF($A942=\"\",\"\",VLOOKUP(VLOOKUP($A942,Economática!$A$3:$AI$823,6,FALSE),Correção!$B$16:$C$36,2,FALSE))","v":""},{"$f":"IF(Economática!B920=\"\",\"\",Economática!B920)","v":""},{"$f":"IF($A942=\"\",\"\",IF(OR(VLOOKUP($A942,Economática!$A$3:$AI$823,8,FALSE)=0,VLOOKUP($A942,Economática!$A$3:$AI$823,8,FALSE)=\"-\"),1/0,VLOOKUP($A942,Economática!$A$3:$AI$823,8,FALSE)))","v":""},{"$f":"IF(A942=\"\",\"\",IF(ISERROR(VLOOKUP(A942,Correção!$B$2:$G$13,9,FALSE)),VLOOKUP($A942,Economática!$A$3:$AI$823,9,FALSE),VLOOKUP(A942,Correção!$B$2:$G$13,9,FALSE)))","v":""},{"$f":"IF($A942=\"\",\"\",Economática!G920)","v":""},{"$f":"IF($A942=\"\",\"\",IF(OR(VLOOKUP($A942,Economática!$A$3:$AI$823,10,FALSE)=0,VLOOKUP($A942,Economática!$A$3:$AI$823,10,FALSE)=\"-\"),1/0,VLOOKUP($A942,Economática!$A$3:$AI$823,10,FALSE)))","v":""},{"$f":"IF($A942=\"\",\"\",IF(OR(VLOOKUP($A942,Economática!$A$3:$AI$823,11,FALSE)=0,VLOOKUP($A942,Economática!$A$3:$AI$823,11,FALSE)=\"-\"),1/0,VLOOKUP($A942,Economática!$A$3:$AI$823,11,FALSE)))","v":""},{"$f":"IF($A942=\"\",\"\",IF(OR(VLOOKUP($A942,Economática!$A$3:$AI$823,12,FALSE)=0,VLOOKUP($A942,Economática!$A$3:$AI$823,12,FALSE)=\"-\"),1/0,VLOOKUP($A942,Economática!$A$3:$AI$823,12,FALSE)))","v":""},{"$f":"IF($A942=\"\",\"\",IF(OR(VLOOKUP($A942,Economática!$A$3:$AI$823,13,FALSE)=0,VLOOKUP($A942,Economática!$A$3:$AI$823,13,FALSE)=\"-\"),1/0,VLOOKUP($A942,Economática!$A$3:$AI$823,13,FALSE)))","v":""},{"$f":"IF($A942=\"\",\"\",IF(OR(VLOOKUP($A942,Economática!$A$3:$AI$823,14,FALSE)=0,VLOOKUP($A942,Economática!$A$3:$AI$823,14,FALSE)=\"-\"),1/0,VLOOKUP($A942,Economática!$A$3:$AI$823,14,FALSE)))","v":""},{"$f":"IF($A942=\"\",\"\",IF(OR(VLOOKUP($A942,Economática!$A$3:$AI$823,15,FALSE)=0,VLOOKUP($A942,Economática!$A$3:$AI$823,15,FALSE)=\"-\"),1/0,VLOOKUP($A942,Economática!$A$3:$AI$823,15,FALSE)))","v":""},{"$f":"IF($A942=\"\",\"\",IF(OR(VLOOKUP($A942,Economática!$A$3:$AI$823,16,FALSE)=0,VLOOKUP($A942,Economática!$A$3:$AI$823,16,FALSE)=\"-\"),1/0,VLOOKUP($A942,Economática!$A$3:$AI$823,16,FALSE)))","v":""},{"$f":"IF($A942=\"\",\"\",IF(OR(VLOOKUP($A942,Economática!$A$3:$AI$823,17,FALSE)=0,VLOOKUP($A942,Economática!$A$3:$AI$823,17,FALSE)=\"-\"),1/0,VLOOKUP($A942,Economática!$A$3:$AI$823,17,FALSE)))","v":""},{"$f":"IF($A942=\"\",\"\",IF(OR(VLOOKUP($A942,Economática!$A$3:$AI$823,18,FALSE)=0,VLOOKUP($A942,Economática!$A$3:$AI$823,18,FALSE)=\"-\"),1/0,VLOOKUP($A942,Economática!$A$3:$AI$823,18,FALSE)))","v":""},{"$f":"IF($A942=\"\",\"\",IF(OR(VLOOKUP($A942,Economática!$A$3:$AI$823,19,FALSE)=0,VLOOKUP($A942,Economática!$A$3:$AI$823,19,FALSE)=\"-\"),1/0,VLOOKUP($A942,Economática!$A$3:$AI$823,19,FALSE)))","v":""},{"$f":"IF($A942=\"\",\"\",VLOOKUP($A942,Economática!$A$3:$AI$823,20,FALSE)/E942)","v":""},"","","",{"$f":"IF($A942=\"\",\"\",IF(OR(VLOOKUP($A942,Economática!$A$3:$AI$823,21,FALSE)/100=0,VLOOKUP($A942,Economática!$A$3:$AI$823,21,FALSE)/100=\"-\"),1/0,VLOOKUP($A942,Economática!$A$3:$AI$823,21,FALSE)/100))","v":""},{"$f":"IF($A942=\"\",\"\",IF(OR(VLOOKUP($A942,Economática!$A$3:$AI$823,22,FALSE)/100=0,VLOOKUP($A942,Economática!$A$3:$AI$823,22,FALSE)/100=\"-\"),1/0,VLOOKUP($A942,Economática!$A$3:$AI$823,22,FALSE)/100))","v":""},{"$f":"IF($A942=\"\",\"\",IF(OR(VLOOKUP($A942,Economática!$A$3:$AI$823,23,FALSE)=0,VLOOKUP($A942,Economática!$A$3:$AI$823,23,FALSE)=\"-\"),1/0,VLOOKUP($A942,Economática!$A$3:$AI$823,23,FALSE)))","v":""},{"$f":"IF($A942=\"\",\"\",IF(OR(VLOOKUP($A942,Economática!$A$3:$AI$823,24,FALSE)=0,VLOOKUP($A942,Economática!$A$3:$AI$823,24,FALSE)=\"-\"),1/0,VLOOKUP($A942,Economática!$A$3:$AI$823,24,FALSE)))","v":""},{"$f":"IF($A942=\"\",\"\",IF(OR(VLOOKUP($A942,Economática!$A$3:$AI$823,25,FALSE)=0,VLOOKUP($A942,Economática!$A$3:$AI$823,25,FALSE)=\"-\"),1/0,VLOOKUP($A942,Economática!$A$3:$AI$823,25,FALSE)))","v":""},{"$f":"IF($A942=\"\",\"\",IF(ISERROR((F942+VLOOKUP($A942,Economática!$A$3:$AI$823,26,FALSE))/Y942),(F942+VLOOKUP($A942,Economática!$A$3:$AI$823,26,FALSE))/Y942,(F942+VLOOKUP($A942,Economática!$A$3:$AI$823,26,FALSE))/Y942))","v":""},{"$f":"IF($A942=\"\",\"\",IF(OR(-VLOOKUP($A942,Economática!$A$3:$AI$823,27,FALSE)=0,-VLOOKUP($A942,Economática!$A$3:$AI$823,27,FALSE)=\"-\"),1/0,-VLOOKUP($A942,Economática!$A$3:$AI$823,27,FALSE)))","v":""},"",{"$f":"IF($A942=\"\",\"\",IF(OR(VLOOKUP($A942,Economática!$A$3:$AI$823,28,FALSE)=0,VLOOKUP($A942,Economática!$A$3:$AI$823,28,FALSE)=\"-\"),1/0,VLOOKUP($A942,Economática!$A$3:$AI$823,28,FALSE)))","v":""},{"$f":"IF($A942=\"\",\"\",IF(OR(VLOOKUP($A942,Economática!$A$3:$AI$823,29,FALSE)=0,VLOOKUP($A942,Economática!$A$3:$AI$823,29,FALSE)=\"-\"),1/0,VLOOKUP($A942,Economática!$A$3:$AI$823,29,FALSE)))","v":""},{"$f":"IF($A942=\"\",\"\",IF(OR(VLOOKUP($A942,Economática!$A$3:$AI$823,30,FALSE)/E942=0,VLOOKUP($A942,Economática!$A$3:$AI$823,30,FALSE)/E942=\"-\",VLOOKUP($A942,Economática!$A$3:$AI$823,30,FALSE)/E942<33.33%,VLOOKUP($A942,Economática!$A$3:$AI$823,30,FALSE)/E942>100%),1/0,VLOOKUP($A942,Economática!$A$3:$AI$823,30,FALSE)/E942))","v":""},"",{"$f":"IF($A942=\"\",\"\",IF(OR(VLOOKUP($A942,Economática!$A$3:$AI$823,25,FALSE)=0,VLOOKUP($A942,Economática!$A$3:$AI$823,25,FALSE)=\"-\"),1/0,VLOOKUP($A942,Economática!$A$3:$AI$823,25,FALSE)))","v":""},{"$f":"CONCATENATE(Economática!B920,\" \",Economática!C920)","v":" "}]
[{"$f":"IF(Economática!AG921=\"\",\"\",Economática!AG921)","v":""},{"$f":"IF($A943=\"\",\"\",VLOOKUP(VLOOKUP($A943,Economática!$A$3:$AI$823,6,FALSE),Correção!$B$16:$C$36,2,FALSE))","v":""},{"$f":"IF(Economática!B921=\"\",\"\",Economática!B921)","v":""},{"$f":"IF($A943=\"\",\"\",IF(OR(VLOOKUP($A943,Economática!$A$3:$AI$823,8,FALSE)=0,VLOOKUP($A943,Economática!$A$3:$AI$823,8,FALSE)=\"-\"),1/0,VLOOKUP($A943,Economática!$A$3:$AI$823,8,FALSE)))","v":""},{"$f":"IF(A943=\"\",\"\",IF(ISERROR(VLOOKUP(A943,Correção!$B$2:$G$13,9,FALSE)),VLOOKUP($A943,Economática!$A$3:$AI$823,9,FALSE),VLOOKUP(A943,Correção!$B$2:$G$13,9,FALSE)))","v":""},{"$f":"IF($A943=\"\",\"\",Economática!G921)","v":""},{"$f":"IF($A943=\"\",\"\",IF(OR(VLOOKUP($A943,Economática!$A$3:$AI$823,10,FALSE)=0,VLOOKUP($A943,Economática!$A$3:$AI$823,10,FALSE)=\"-\"),1/0,VLOOKUP($A943,Economática!$A$3:$AI$823,10,FALSE)))","v":""},{"$f":"IF($A943=\"\",\"\",IF(OR(VLOOKUP($A943,Economática!$A$3:$AI$823,11,FALSE)=0,VLOOKUP($A943,Economática!$A$3:$AI$823,11,FALSE)=\"-\"),1/0,VLOOKUP($A943,Economática!$A$3:$AI$823,11,FALSE)))","v":""},{"$f":"IF($A943=\"\",\"\",IF(OR(VLOOKUP($A943,Economática!$A$3:$AI$823,12,FALSE)=0,VLOOKUP($A943,Economática!$A$3:$AI$823,12,FALSE)=\"-\"),1/0,VLOOKUP($A943,Economática!$A$3:$AI$823,12,FALSE)))","v":""},{"$f":"IF($A943=\"\",\"\",IF(OR(VLOOKUP($A943,Economática!$A$3:$AI$823,13,FALSE)=0,VLOOKUP($A943,Economática!$A$3:$AI$823,13,FALSE)=\"-\"),1/0,VLOOKUP($A943,Economática!$A$3:$AI$823,13,FALSE)))","v":""},{"$f":"IF($A943=\"\",\"\",IF(OR(VLOOKUP($A943,Economática!$A$3:$AI$823,14,FALSE)=0,VLOOKUP($A943,Economática!$A$3:$AI$823,14,FALSE)=\"-\"),1/0,VLOOKUP($A943,Economática!$A$3:$AI$823,14,FALSE)))","v":""},{"$f":"IF($A943=\"\",\"\",IF(OR(VLOOKUP($A943,Economática!$A$3:$AI$823,15,FALSE)=0,VLOOKUP($A943,Economática!$A$3:$AI$823,15,FALSE)=\"-\"),1/0,VLOOKUP($A943,Economática!$A$3:$AI$823,15,FALSE)))","v":""},{"$f":"IF($A943=\"\",\"\",IF(OR(VLOOKUP($A943,Economática!$A$3:$AI$823,16,FALSE)=0,VLOOKUP($A943,Economática!$A$3:$AI$823,16,FALSE)=\"-\"),1/0,VLOOKUP($A943,Economática!$A$3:$AI$823,16,FALSE)))","v":""},{"$f":"IF($A943=\"\",\"\",IF(OR(VLOOKUP($A943,Economática!$A$3:$AI$823,17,FALSE)=0,VLOOKUP($A943,Economática!$A$3:$AI$823,17,FALSE)=\"-\"),1/0,VLOOKUP($A943,Economática!$A$3:$AI$823,17,FALSE)))","v":""},{"$f":"IF($A943=\"\",\"\",IF(OR(VLOOKUP($A943,Economática!$A$3:$AI$823,18,FALSE)=0,VLOOKUP($A943,Economática!$A$3:$AI$823,18,FALSE)=\"-\"),1/0,VLOOKUP($A943,Economática!$A$3:$AI$823,18,FALSE)))","v":""},{"$f":"IF($A943=\"\",\"\",IF(OR(VLOOKUP($A943,Economática!$A$3:$AI$823,19,FALSE)=0,VLOOKUP($A943,Economática!$A$3:$AI$823,19,FALSE)=\"-\"),1/0,VLOOKUP($A943,Economática!$A$3:$AI$823,19,FALSE)))","v":""},{"$f":"IF($A943=\"\",\"\",VLOOKUP($A943,Economática!$A$3:$AI$823,20,FALSE)/E943)","v":""},"","","",{"$f":"IF($A943=\"\",\"\",IF(OR(VLOOKUP($A943,Economática!$A$3:$AI$823,21,FALSE)/100=0,VLOOKUP($A943,Economática!$A$3:$AI$823,21,FALSE)/100=\"-\"),1/0,VLOOKUP($A943,Economática!$A$3:$AI$823,21,FALSE)/100))","v":""},{"$f":"IF($A943=\"\",\"\",IF(OR(VLOOKUP($A943,Economática!$A$3:$AI$823,22,FALSE)/100=0,VLOOKUP($A943,Economática!$A$3:$AI$823,22,FALSE)/100=\"-\"),1/0,VLOOKUP($A943,Economática!$A$3:$AI$823,22,FALSE)/100))","v":""},{"$f":"IF($A943=\"\",\"\",IF(OR(VLOOKUP($A943,Economática!$A$3:$AI$823,23,FALSE)=0,VLOOKUP($A943,Economática!$A$3:$AI$823,23,FALSE)=\"-\"),1/0,VLOOKUP($A943,Economática!$A$3:$AI$823,23,FALSE)))","v":""},{"$f":"IF($A943=\"\",\"\",IF(OR(VLOOKUP($A943,Economática!$A$3:$AI$823,24,FALSE)=0,VLOOKUP($A943,Economática!$A$3:$AI$823,24,FALSE)=\"-\"),1/0,VLOOKUP($A943,Economática!$A$3:$AI$823,24,FALSE)))","v":""},{"$f":"IF($A943=\"\",\"\",IF(OR(VLOOKUP($A943,Economática!$A$3:$AI$823,25,FALSE)=0,VLOOKUP($A943,Economática!$A$3:$AI$823,25,FALSE)=\"-\"),1/0,VLOOKUP($A943,Economática!$A$3:$AI$823,25,FALSE)))","v":""},{"$f":"IF($A943=\"\",\"\",IF(ISERROR((F943+VLOOKUP($A943,Economática!$A$3:$AI$823,26,FALSE))/Y943),(F943+VLOOKUP($A943,Economática!$A$3:$AI$823,26,FALSE))/Y943,(F943+VLOOKUP($A943,Economática!$A$3:$AI$823,26,FALSE))/Y943))","v":""},{"$f":"IF($A943=\"\",\"\",IF(OR(-VLOOKUP($A943,Economática!$A$3:$AI$823,27,FALSE)=0,-VLOOKUP($A943,Economática!$A$3:$AI$823,27,FALSE)=\"-\"),1/0,-VLOOKUP($A943,Economática!$A$3:$AI$823,27,FALSE)))","v":""},"",{"$f":"IF($A943=\"\",\"\",IF(OR(VLOOKUP($A943,Economática!$A$3:$AI$823,28,FALSE)=0,VLOOKUP($A943,Economática!$A$3:$AI$823,28,FALSE)=\"-\"),1/0,VLOOKUP($A943,Economática!$A$3:$AI$823,28,FALSE)))","v":""},{"$f":"IF($A943=\"\",\"\",IF(OR(VLOOKUP($A943,Economática!$A$3:$AI$823,29,FALSE)=0,VLOOKUP($A943,Economática!$A$3:$AI$823,29,FALSE)=\"-\"),1/0,VLOOKUP($A943,Economática!$A$3:$AI$823,29,FALSE)))","v":""},{"$f":"IF($A943=\"\",\"\",IF(OR(VLOOKUP($A943,Economática!$A$3:$AI$823,30,FALSE)/E943=0,VLOOKUP($A943,Economática!$A$3:$AI$823,30,FALSE)/E943=\"-\",VLOOKUP($A943,Economática!$A$3:$AI$823,30,FALSE)/E943<33.33%,VLOOKUP($A943,Economática!$A$3:$AI$823,30,FALSE)/E943>100%),1/0,VLOOKUP($A943,Economática!$A$3:$AI$823,30,FALSE)/E943))","v":""},"",{"$f":"IF($A943=\"\",\"\",IF(OR(VLOOKUP($A943,Economática!$A$3:$AI$823,25,FALSE)=0,VLOOKUP($A943,Economática!$A$3:$AI$823,25,FALSE)=\"-\"),1/0,VLOOKUP($A943,Economática!$A$3:$AI$823,25,FALSE)))","v":""},{"$f":"CONCATENATE(Economática!B921,\" \",Economática!C921)","v":" "}]
[{"$f":"IF(Economática!AG922=\"\",\"\",Economática!AG922)","v":""},{"$f":"IF($A944=\"\",\"\",VLOOKUP(VLOOKUP($A944,Economática!$A$3:$AI$823,6,FALSE),Correção!$B$16:$C$36,2,FALSE))","v":""},{"$f":"IF(Economática!B922=\"\",\"\",Economática!B922)","v":""},{"$f":"IF($A944=\"\",\"\",IF(OR(VLOOKUP($A944,Economática!$A$3:$AI$823,8,FALSE)=0,VLOOKUP($A944,Economática!$A$3:$AI$823,8,FALSE)=\"-\"),1/0,VLOOKUP($A944,Economática!$A$3:$AI$823,8,FALSE)))","v":""},{"$f":"IF(A944=\"\",\"\",IF(ISERROR(VLOOKUP(A944,Correção!$B$2:$G$13,9,FALSE)),VLOOKUP($A944,Economática!$A$3:$AI$823,9,FALSE),VLOOKUP(A944,Correção!$B$2:$G$13,9,FALSE)))","v":""},{"$f":"IF($A944=\"\",\"\",Economática!G922)","v":""},{"$f":"IF($A944=\"\",\"\",IF(OR(VLOOKUP($A944,Economática!$A$3:$AI$823,10,FALSE)=0,VLOOKUP($A944,Economática!$A$3:$AI$823,10,FALSE)=\"-\"),1/0,VLOOKUP($A944,Economática!$A$3:$AI$823,10,FALSE)))","v":""},{"$f":"IF($A944=\"\",\"\",IF(OR(VLOOKUP($A944,Economática!$A$3:$AI$823,11,FALSE)=0,VLOOKUP($A944,Economática!$A$3:$AI$823,11,FALSE)=\"-\"),1/0,VLOOKUP($A944,Economática!$A$3:$AI$823,11,FALSE)))","v":""},{"$f":"IF($A944=\"\",\"\",IF(OR(VLOOKUP($A944,Economática!$A$3:$AI$823,12,FALSE)=0,VLOOKUP($A944,Economática!$A$3:$AI$823,12,FALSE)=\"-\"),1/0,VLOOKUP($A944,Economática!$A$3:$AI$823,12,FALSE)))","v":""},{"$f":"IF($A944=\"\",\"\",IF(OR(VLOOKUP($A944,Economática!$A$3:$AI$823,13,FALSE)=0,VLOOKUP($A944,Economática!$A$3:$AI$823,13,FALSE)=\"-\"),1/0,VLOOKUP($A944,Economática!$A$3:$AI$823,13,FALSE)))","v":""},{"$f":"IF($A944=\"\",\"\",IF(OR(VLOOKUP($A944,Economática!$A$3:$AI$823,14,FALSE)=0,VLOOKUP($A944,Economática!$A$3:$AI$823,14,FALSE)=\"-\"),1/0,VLOOKUP($A944,Economática!$A$3:$AI$823,14,FALSE)))","v":""},{"$f":"IF($A944=\"\",\"\",IF(OR(VLOOKUP($A944,Economática!$A$3:$AI$823,15,FALSE)=0,VLOOKUP($A944,Economática!$A$3:$AI$823,15,FALSE)=\"-\"),1/0,VLOOKUP($A944,Economática!$A$3:$AI$823,15,FALSE)))","v":""},{"$f":"IF($A944=\"\",\"\",IF(OR(VLOOKUP($A944,Economática!$A$3:$AI$823,16,FALSE)=0,VLOOKUP($A944,Economática!$A$3:$AI$823,16,FALSE)=\"-\"),1/0,VLOOKUP($A944,Economática!$A$3:$AI$823,16,FALSE)))","v":""},{"$f":"IF($A944=\"\",\"\",IF(OR(VLOOKUP($A944,Economática!$A$3:$AI$823,17,FALSE)=0,VLOOKUP($A944,Economática!$A$3:$AI$823,17,FALSE)=\"-\"),1/0,VLOOKUP($A944,Economática!$A$3:$AI$823,17,FALSE)))","v":""},{"$f":"IF($A944=\"\",\"\",IF(OR(VLOOKUP($A944,Economática!$A$3:$AI$823,18,FALSE)=0,VLOOKUP($A944,Economática!$A$3:$AI$823,18,FALSE)=\"-\"),1/0,VLOOKUP($A944,Economática!$A$3:$AI$823,18,FALSE)))","v":""},{"$f":"IF($A944=\"\",\"\",IF(OR(VLOOKUP($A944,Economática!$A$3:$AI$823,19,FALSE)=0,VLOOKUP($A944,Economática!$A$3:$AI$823,19,FALSE)=\"-\"),1/0,VLOOKUP($A944,Economática!$A$3:$AI$823,19,FALSE)))","v":""},{"$f":"IF($A944=\"\",\"\",VLOOKUP($A944,Economática!$A$3:$AI$823,20,FALSE)/E944)","v":""},"","","",{"$f":"IF($A944=\"\",\"\",IF(OR(VLOOKUP($A944,Economática!$A$3:$AI$823,21,FALSE)/100=0,VLOOKUP($A944,Economática!$A$3:$AI$823,21,FALSE)/100=\"-\"),1/0,VLOOKUP($A944,Economática!$A$3:$AI$823,21,FALSE)/100))","v":""},{"$f":"IF($A944=\"\",\"\",IF(OR(VLOOKUP($A944,Economática!$A$3:$AI$823,22,FALSE)/100=0,VLOOKUP($A944,Economática!$A$3:$AI$823,22,FALSE)/100=\"-\"),1/0,VLOOKUP($A944,Economática!$A$3:$AI$823,22,FALSE)/100))","v":""},{"$f":"IF($A944=\"\",\"\",IF(OR(VLOOKUP($A944,Economática!$A$3:$AI$823,23,FALSE)=0,VLOOKUP($A944,Economática!$A$3:$AI$823,23,FALSE)=\"-\"),1/0,VLOOKUP($A944,Economática!$A$3:$AI$823,23,FALSE)))","v":""},{"$f":"IF($A944=\"\",\"\",IF(OR(VLOOKUP($A944,Economática!$A$3:$AI$823,24,FALSE)=0,VLOOKUP($A944,Economática!$A$3:$AI$823,24,FALSE)=\"-\"),1/0,VLOOKUP($A944,Economática!$A$3:$AI$823,24,FALSE)))","v":""},{"$f":"IF($A944=\"\",\"\",IF(OR(VLOOKUP($A944,Economática!$A$3:$AI$823,25,FALSE)=0,VLOOKUP($A944,Economática!$A$3:$AI$823,25,FALSE)=\"-\"),1/0,VLOOKUP($A944,Economática!$A$3:$AI$823,25,FALSE)))","v":""},{"$f":"IF($A944=\"\",\"\",IF(ISERROR((F944+VLOOKUP($A944,Economática!$A$3:$AI$823,26,FALSE))/Y944),(F944+VLOOKUP($A944,Economática!$A$3:$AI$823,26,FALSE))/Y944,(F944+VLOOKUP($A944,Economática!$A$3:$AI$823,26,FALSE))/Y944))","v":""},{"$f":"IF($A944=\"\",\"\",IF(OR(-VLOOKUP($A944,Economática!$A$3:$AI$823,27,FALSE)=0,-VLOOKUP($A944,Economática!$A$3:$AI$823,27,FALSE)=\"-\"),1/0,-VLOOKUP($A944,Economática!$A$3:$AI$823,27,FALSE)))","v":""},"",{"$f":"IF($A944=\"\",\"\",IF(OR(VLOOKUP($A944,Economática!$A$3:$AI$823,28,FALSE)=0,VLOOKUP($A944,Economática!$A$3:$AI$823,28,FALSE)=\"-\"),1/0,VLOOKUP($A944,Economática!$A$3:$AI$823,28,FALSE)))","v":""},{"$f":"IF($A944=\"\",\"\",IF(OR(VLOOKUP($A944,Economática!$A$3:$AI$823,29,FALSE)=0,VLOOKUP($A944,Economática!$A$3:$AI$823,29,FALSE)=\"-\"),1/0,VLOOKUP($A944,Economática!$A$3:$AI$823,29,FALSE)))","v":""},{"$f":"IF($A944=\"\",\"\",IF(OR(VLOOKUP($A944,Economática!$A$3:$AI$823,30,FALSE)/E944=0,VLOOKUP($A944,Economática!$A$3:$AI$823,30,FALSE)/E944=\"-\",VLOOKUP($A944,Economática!$A$3:$AI$823,30,FALSE)/E944<33.33%,VLOOKUP($A944,Economática!$A$3:$AI$823,30,FALSE)/E944>100%),1/0,VLOOKUP($A944,Economática!$A$3:$AI$823,30,FALSE)/E944))","v":""},"",{"$f":"IF($A944=\"\",\"\",IF(OR(VLOOKUP($A944,Economática!$A$3:$AI$823,25,FALSE)=0,VLOOKUP($A944,Economática!$A$3:$AI$823,25,FALSE)=\"-\"),1/0,VLOOKUP($A944,Economática!$A$3:$AI$823,25,FALSE)))","v":""},{"$f":"CONCATENATE(Economática!B922,\" \",Economática!C922)","v":" "}]
[{"$f":"IF(Economática!AG923=\"\",\"\",Economática!AG923)","v":""},{"$f":"IF($A945=\"\",\"\",VLOOKUP(VLOOKUP($A945,Economática!$A$3:$AI$823,6,FALSE),Correção!$B$16:$C$36,2,FALSE))","v":""},{"$f":"IF(Economática!B923=\"\",\"\",Economática!B923)","v":""},{"$f":"IF($A945=\"\",\"\",IF(OR(VLOOKUP($A945,Economática!$A$3:$AI$823,8,FALSE)=0,VLOOKUP($A945,Economática!$A$3:$AI$823,8,FALSE)=\"-\"),1/0,VLOOKUP($A945,Economática!$A$3:$AI$823,8,FALSE)))","v":""},{"$f":"IF(A945=\"\",\"\",IF(ISERROR(VLOOKUP(A945,Correção!$B$2:$G$13,9,FALSE)),VLOOKUP($A945,Economática!$A$3:$AI$823,9,FALSE),VLOOKUP(A945,Correção!$B$2:$G$13,9,FALSE)))","v":""},{"$f":"IF($A945=\"\",\"\",Economática!G923)","v":""},{"$f":"IF($A945=\"\",\"\",IF(OR(VLOOKUP($A945,Economática!$A$3:$AI$823,10,FALSE)=0,VLOOKUP($A945,Economática!$A$3:$AI$823,10,FALSE)=\"-\"),1/0,VLOOKUP($A945,Economática!$A$3:$AI$823,10,FALSE)))","v":""},{"$f":"IF($A945=\"\",\"\",IF(OR(VLOOKUP($A945,Economática!$A$3:$AI$823,11,FALSE)=0,VLOOKUP($A945,Economática!$A$3:$AI$823,11,FALSE)=\"-\"),1/0,VLOOKUP($A945,Economática!$A$3:$AI$823,11,FALSE)))","v":""},{"$f":"IF($A945=\"\",\"\",IF(OR(VLOOKUP($A945,Economática!$A$3:$AI$823,12,FALSE)=0,VLOOKUP($A945,Economática!$A$3:$AI$823,12,FALSE)=\"-\"),1/0,VLOOKUP($A945,Economática!$A$3:$AI$823,12,FALSE)))","v":""},{"$f":"IF($A945=\"\",\"\",IF(OR(VLOOKUP($A945,Economática!$A$3:$AI$823,13,FALSE)=0,VLOOKUP($A945,Economática!$A$3:$AI$823,13,FALSE)=\"-\"),1/0,VLOOKUP($A945,Economática!$A$3:$AI$823,13,FALSE)))","v":""},{"$f":"IF($A945=\"\",\"\",IF(OR(VLOOKUP($A945,Economática!$A$3:$AI$823,14,FALSE)=0,VLOOKUP($A945,Economática!$A$3:$AI$823,14,FALSE)=\"-\"),1/0,VLOOKUP($A945,Economática!$A$3:$AI$823,14,FALSE)))","v":""},{"$f":"IF($A945=\"\",\"\",IF(OR(VLOOKUP($A945,Economática!$A$3:$AI$823,15,FALSE)=0,VLOOKUP($A945,Economática!$A$3:$AI$823,15,FALSE)=\"-\"),1/0,VLOOKUP($A945,Economática!$A$3:$AI$823,15,FALSE)))","v":""},{"$f":"IF($A945=\"\",\"\",IF(OR(VLOOKUP($A945,Economática!$A$3:$AI$823,16,FALSE)=0,VLOOKUP($A945,Economática!$A$3:$AI$823,16,FALSE)=\"-\"),1/0,VLOOKUP($A945,Economática!$A$3:$AI$823,16,FALSE)))","v":""},{"$f":"IF($A945=\"\",\"\",IF(OR(VLOOKUP($A945,Economática!$A$3:$AI$823,17,FALSE)=0,VLOOKUP($A945,Economática!$A$3:$AI$823,17,FALSE)=\"-\"),1/0,VLOOKUP($A945,Economática!$A$3:$AI$823,17,FALSE)))","v":""},{"$f":"IF($A945=\"\",\"\",IF(OR(VLOOKUP($A945,Economática!$A$3:$AI$823,18,FALSE)=0,VLOOKUP($A945,Economática!$A$3:$AI$823,18,FALSE)=\"-\"),1/0,VLOOKUP($A945,Economática!$A$3:$AI$823,18,FALSE)))","v":""},{"$f":"IF($A945=\"\",\"\",IF(OR(VLOOKUP($A945,Economática!$A$3:$AI$823,19,FALSE)=0,VLOOKUP($A945,Economática!$A$3:$AI$823,19,FALSE)=\"-\"),1/0,VLOOKUP($A945,Economática!$A$3:$AI$823,19,FALSE)))","v":""},{"$f":"IF($A945=\"\",\"\",VLOOKUP($A945,Economática!$A$3:$AI$823,20,FALSE)/E945)","v":""},"","","",{"$f":"IF($A945=\"\",\"\",IF(OR(VLOOKUP($A945,Economática!$A$3:$AI$823,21,FALSE)/100=0,VLOOKUP($A945,Economática!$A$3:$AI$823,21,FALSE)/100=\"-\"),1/0,VLOOKUP($A945,Economática!$A$3:$AI$823,21,FALSE)/100))","v":""},{"$f":"IF($A945=\"\",\"\",IF(OR(VLOOKUP($A945,Economática!$A$3:$AI$823,22,FALSE)/100=0,VLOOKUP($A945,Economática!$A$3:$AI$823,22,FALSE)/100=\"-\"),1/0,VLOOKUP($A945,Economática!$A$3:$AI$823,22,FALSE)/100))","v":""},{"$f":"IF($A945=\"\",\"\",IF(OR(VLOOKUP($A945,Economática!$A$3:$AI$823,23,FALSE)=0,VLOOKUP($A945,Economática!$A$3:$AI$823,23,FALSE)=\"-\"),1/0,VLOOKUP($A945,Economática!$A$3:$AI$823,23,FALSE)))","v":""},{"$f":"IF($A945=\"\",\"\",IF(OR(VLOOKUP($A945,Economática!$A$3:$AI$823,24,FALSE)=0,VLOOKUP($A945,Economática!$A$3:$AI$823,24,FALSE)=\"-\"),1/0,VLOOKUP($A945,Economática!$A$3:$AI$823,24,FALSE)))","v":""},{"$f":"IF($A945=\"\",\"\",IF(OR(VLOOKUP($A945,Economática!$A$3:$AI$823,25,FALSE)=0,VLOOKUP($A945,Economática!$A$3:$AI$823,25,FALSE)=\"-\"),1/0,VLOOKUP($A945,Economática!$A$3:$AI$823,25,FALSE)))","v":""},{"$f":"IF($A945=\"\",\"\",IF(ISERROR((F945+VLOOKUP($A945,Economática!$A$3:$AI$823,26,FALSE))/Y945),(F945+VLOOKUP($A945,Economática!$A$3:$AI$823,26,FALSE))/Y945,(F945+VLOOKUP($A945,Economática!$A$3:$AI$823,26,FALSE))/Y945))","v":""},{"$f":"IF($A945=\"\",\"\",IF(OR(-VLOOKUP($A945,Economática!$A$3:$AI$823,27,FALSE)=0,-VLOOKUP($A945,Economática!$A$3:$AI$823,27,FALSE)=\"-\"),1/0,-VLOOKUP($A945,Economática!$A$3:$AI$823,27,FALSE)))","v":""},"",{"$f":"IF($A945=\"\",\"\",IF(OR(VLOOKUP($A945,Economática!$A$3:$AI$823,28,FALSE)=0,VLOOKUP($A945,Economática!$A$3:$AI$823,28,FALSE)=\"-\"),1/0,VLOOKUP($A945,Economática!$A$3:$AI$823,28,FALSE)))","v":""},{"$f":"IF($A945=\"\",\"\",IF(OR(VLOOKUP($A945,Economática!$A$3:$AI$823,29,FALSE)=0,VLOOKUP($A945,Economática!$A$3:$AI$823,29,FALSE)=\"-\"),1/0,VLOOKUP($A945,Economática!$A$3:$AI$823,29,FALSE)))","v":""},{"$f":"IF($A945=\"\",\"\",IF(OR(VLOOKUP($A945,Economática!$A$3:$AI$823,30,FALSE)/E945=0,VLOOKUP($A945,Economática!$A$3:$AI$823,30,FALSE)/E945=\"-\",VLOOKUP($A945,Economática!$A$3:$AI$823,30,FALSE)/E945<33.33%,VLOOKUP($A945,Economática!$A$3:$AI$823,30,FALSE)/E945>100%),1/0,VLOOKUP($A945,Economática!$A$3:$AI$823,30,FALSE)/E945))","v":""},"",{"$f":"IF($A945=\"\",\"\",IF(OR(VLOOKUP($A945,Economática!$A$3:$AI$823,25,FALSE)=0,VLOOKUP($A945,Economática!$A$3:$AI$823,25,FALSE)=\"-\"),1/0,VLOOKUP($A945,Economática!$A$3:$AI$823,25,FALSE)))","v":""},{"$f":"CONCATENATE(Economática!B923,\" \",Economática!C923)","v":" "}]
[{"$f":"IF(Economática!AG924=\"\",\"\",Economática!AG924)","v":""},{"$f":"IF($A946=\"\",\"\",VLOOKUP(VLOOKUP($A946,Economática!$A$3:$AI$823,6,FALSE),Correção!$B$16:$C$36,2,FALSE))","v":""},{"$f":"IF(Economática!B924=\"\",\"\",Economática!B924)","v":""},{"$f":"IF($A946=\"\",\"\",IF(OR(VLOOKUP($A946,Economática!$A$3:$AI$823,8,FALSE)=0,VLOOKUP($A946,Economática!$A$3:$AI$823,8,FALSE)=\"-\"),1/0,VLOOKUP($A946,Economática!$A$3:$AI$823,8,FALSE)))","v":""},{"$f":"IF(A946=\"\",\"\",IF(ISERROR(VLOOKUP(A946,Correção!$B$2:$G$13,9,FALSE)),VLOOKUP($A946,Economática!$A$3:$AI$823,9,FALSE),VLOOKUP(A946,Correção!$B$2:$G$13,9,FALSE)))","v":""},{"$f":"IF($A946=\"\",\"\",Economática!G924)","v":""},{"$f":"IF($A946=\"\",\"\",IF(OR(VLOOKUP($A946,Economática!$A$3:$AI$823,10,FALSE)=0,VLOOKUP($A946,Economática!$A$3:$AI$823,10,FALSE)=\"-\"),1/0,VLOOKUP($A946,Economática!$A$3:$AI$823,10,FALSE)))","v":""},{"$f":"IF($A946=\"\",\"\",IF(OR(VLOOKUP($A946,Economática!$A$3:$AI$823,11,FALSE)=0,VLOOKUP($A946,Economática!$A$3:$AI$823,11,FALSE)=\"-\"),1/0,VLOOKUP($A946,Economática!$A$3:$AI$823,11,FALSE)))","v":""},{"$f":"IF($A946=\"\",\"\",IF(OR(VLOOKUP($A946,Economática!$A$3:$AI$823,12,FALSE)=0,VLOOKUP($A946,Economática!$A$3:$AI$823,12,FALSE)=\"-\"),1/0,VLOOKUP($A946,Economática!$A$3:$AI$823,12,FALSE)))","v":""},{"$f":"IF($A946=\"\",\"\",IF(OR(VLOOKUP($A946,Economática!$A$3:$AI$823,13,FALSE)=0,VLOOKUP($A946,Economática!$A$3:$AI$823,13,FALSE)=\"-\"),1/0,VLOOKUP($A946,Economática!$A$3:$AI$823,13,FALSE)))","v":""},{"$f":"IF($A946=\"\",\"\",IF(OR(VLOOKUP($A946,Economática!$A$3:$AI$823,14,FALSE)=0,VLOOKUP($A946,Economática!$A$3:$AI$823,14,FALSE)=\"-\"),1/0,VLOOKUP($A946,Economática!$A$3:$AI$823,14,FALSE)))","v":""},{"$f":"IF($A946=\"\",\"\",IF(OR(VLOOKUP($A946,Economática!$A$3:$AI$823,15,FALSE)=0,VLOOKUP($A946,Economática!$A$3:$AI$823,15,FALSE)=\"-\"),1/0,VLOOKUP($A946,Economática!$A$3:$AI$823,15,FALSE)))","v":""},{"$f":"IF($A946=\"\",\"\",IF(OR(VLOOKUP($A946,Economática!$A$3:$AI$823,16,FALSE)=0,VLOOKUP($A946,Economática!$A$3:$AI$823,16,FALSE)=\"-\"),1/0,VLOOKUP($A946,Economática!$A$3:$AI$823,16,FALSE)))","v":""},{"$f":"IF($A946=\"\",\"\",IF(OR(VLOOKUP($A946,Economática!$A$3:$AI$823,17,FALSE)=0,VLOOKUP($A946,Economática!$A$3:$AI$823,17,FALSE)=\"-\"),1/0,VLOOKUP($A946,Economática!$A$3:$AI$823,17,FALSE)))","v":""},{"$f":"IF($A946=\"\",\"\",IF(OR(VLOOKUP($A946,Economática!$A$3:$AI$823,18,FALSE)=0,VLOOKUP($A946,Economática!$A$3:$AI$823,18,FALSE)=\"-\"),1/0,VLOOKUP($A946,Economática!$A$3:$AI$823,18,FALSE)))","v":""},{"$f":"IF($A946=\"\",\"\",IF(OR(VLOOKUP($A946,Economática!$A$3:$AI$823,19,FALSE)=0,VLOOKUP($A946,Economática!$A$3:$AI$823,19,FALSE)=\"-\"),1/0,VLOOKUP($A946,Economática!$A$3:$AI$823,19,FALSE)))","v":""},{"$f":"IF($A946=\"\",\"\",VLOOKUP($A946,Economática!$A$3:$AI$823,20,FALSE)/E946)","v":""},"","","",{"$f":"IF($A946=\"\",\"\",IF(OR(VLOOKUP($A946,Economática!$A$3:$AI$823,21,FALSE)/100=0,VLOOKUP($A946,Economática!$A$3:$AI$823,21,FALSE)/100=\"-\"),1/0,VLOOKUP($A946,Economática!$A$3:$AI$823,21,FALSE)/100))","v":""},{"$f":"IF($A946=\"\",\"\",IF(OR(VLOOKUP($A946,Economática!$A$3:$AI$823,22,FALSE)/100=0,VLOOKUP($A946,Economática!$A$3:$AI$823,22,FALSE)/100=\"-\"),1/0,VLOOKUP($A946,Economática!$A$3:$AI$823,22,FALSE)/100))","v":""},{"$f":"IF($A946=\"\",\"\",IF(OR(VLOOKUP($A946,Economática!$A$3:$AI$823,23,FALSE)=0,VLOOKUP($A946,Economática!$A$3:$AI$823,23,FALSE)=\"-\"),1/0,VLOOKUP($A946,Economática!$A$3:$AI$823,23,FALSE)))","v":""},{"$f":"IF($A946=\"\",\"\",IF(OR(VLOOKUP($A946,Economática!$A$3:$AI$823,24,FALSE)=0,VLOOKUP($A946,Economática!$A$3:$AI$823,24,FALSE)=\"-\"),1/0,VLOOKUP($A946,Economática!$A$3:$AI$823,24,FALSE)))","v":""},{"$f":"IF($A946=\"\",\"\",IF(OR(VLOOKUP($A946,Economática!$A$3:$AI$823,25,FALSE)=0,VLOOKUP($A946,Economática!$A$3:$AI$823,25,FALSE)=\"-\"),1/0,VLOOKUP($A946,Economática!$A$3:$AI$823,25,FALSE)))","v":""},{"$f":"IF($A946=\"\",\"\",IF(ISERROR((F946+VLOOKUP($A946,Economática!$A$3:$AI$823,26,FALSE))/Y946),(F946+VLOOKUP($A946,Economática!$A$3:$AI$823,26,FALSE))/Y946,(F946+VLOOKUP($A946,Economática!$A$3:$AI$823,26,FALSE))/Y946))","v":""},{"$f":"IF($A946=\"\",\"\",IF(OR(-VLOOKUP($A946,Economática!$A$3:$AI$823,27,FALSE)=0,-VLOOKUP($A946,Economática!$A$3:$AI$823,27,FALSE)=\"-\"),1/0,-VLOOKUP($A946,Economática!$A$3:$AI$823,27,FALSE)))","v":""},"",{"$f":"IF($A946=\"\",\"\",IF(OR(VLOOKUP($A946,Economática!$A$3:$AI$823,28,FALSE)=0,VLOOKUP($A946,Economática!$A$3:$AI$823,28,FALSE)=\"-\"),1/0,VLOOKUP($A946,Economática!$A$3:$AI$823,28,FALSE)))","v":""},{"$f":"IF($A946=\"\",\"\",IF(OR(VLOOKUP($A946,Economática!$A$3:$AI$823,29,FALSE)=0,VLOOKUP($A946,Economática!$A$3:$AI$823,29,FALSE)=\"-\"),1/0,VLOOKUP($A946,Economática!$A$3:$AI$823,29,FALSE)))","v":""},{"$f":"IF($A946=\"\",\"\",IF(OR(VLOOKUP($A946,Economática!$A$3:$AI$823,30,FALSE)/E946=0,VLOOKUP($A946,Economática!$A$3:$AI$823,30,FALSE)/E946=\"-\",VLOOKUP($A946,Economática!$A$3:$AI$823,30,FALSE)/E946<33.33%,VLOOKUP($A946,Economática!$A$3:$AI$823,30,FALSE)/E946>100%),1/0,VLOOKUP($A946,Economática!$A$3:$AI$823,30,FALSE)/E946))","v":""},"",{"$f":"IF($A946=\"\",\"\",IF(OR(VLOOKUP($A946,Economática!$A$3:$AI$823,25,FALSE)=0,VLOOKUP($A946,Economática!$A$3:$AI$823,25,FALSE)=\"-\"),1/0,VLOOKUP($A946,Economática!$A$3:$AI$823,25,FALSE)))","v":""},{"$f":"CONCATENATE(Economática!B924,\" \",Economática!C924)","v":" "}]
[{"$f":"IF(Economática!AG925=\"\",\"\",Economática!AG925)","v":""},{"$f":"IF($A947=\"\",\"\",VLOOKUP(VLOOKUP($A947,Economática!$A$3:$AI$823,6,FALSE),Correção!$B$16:$C$36,2,FALSE))","v":""},{"$f":"IF(Economática!B925=\"\",\"\",Economática!B925)","v":""},{"$f":"IF($A947=\"\",\"\",IF(OR(VLOOKUP($A947,Economática!$A$3:$AI$823,8,FALSE)=0,VLOOKUP($A947,Economática!$A$3:$AI$823,8,FALSE)=\"-\"),1/0,VLOOKUP($A947,Economática!$A$3:$AI$823,8,FALSE)))","v":""},{"$f":"IF(A947=\"\",\"\",IF(ISERROR(VLOOKUP(A947,Correção!$B$2:$G$13,9,FALSE)),VLOOKUP($A947,Economática!$A$3:$AI$823,9,FALSE),VLOOKUP(A947,Correção!$B$2:$G$13,9,FALSE)))","v":""},{"$f":"IF($A947=\"\",\"\",Economática!G925)","v":""},{"$f":"IF($A947=\"\",\"\",IF(OR(VLOOKUP($A947,Economática!$A$3:$AI$823,10,FALSE)=0,VLOOKUP($A947,Economática!$A$3:$AI$823,10,FALSE)=\"-\"),1/0,VLOOKUP($A947,Economática!$A$3:$AI$823,10,FALSE)))","v":""},{"$f":"IF($A947=\"\",\"\",IF(OR(VLOOKUP($A947,Economática!$A$3:$AI$823,11,FALSE)=0,VLOOKUP($A947,Economática!$A$3:$AI$823,11,FALSE)=\"-\"),1/0,VLOOKUP($A947,Economática!$A$3:$AI$823,11,FALSE)))","v":""},{"$f":"IF($A947=\"\",\"\",IF(OR(VLOOKUP($A947,Economática!$A$3:$AI$823,12,FALSE)=0,VLOOKUP($A947,Economática!$A$3:$AI$823,12,FALSE)=\"-\"),1/0,VLOOKUP($A947,Economática!$A$3:$AI$823,12,FALSE)))","v":""},{"$f":"IF($A947=\"\",\"\",IF(OR(VLOOKUP($A947,Economática!$A$3:$AI$823,13,FALSE)=0,VLOOKUP($A947,Economática!$A$3:$AI$823,13,FALSE)=\"-\"),1/0,VLOOKUP($A947,Economática!$A$3:$AI$823,13,FALSE)))","v":""},{"$f":"IF($A947=\"\",\"\",IF(OR(VLOOKUP($A947,Economática!$A$3:$AI$823,14,FALSE)=0,VLOOKUP($A947,Economática!$A$3:$AI$823,14,FALSE)=\"-\"),1/0,VLOOKUP($A947,Economática!$A$3:$AI$823,14,FALSE)))","v":""},{"$f":"IF($A947=\"\",\"\",IF(OR(VLOOKUP($A947,Economática!$A$3:$AI$823,15,FALSE)=0,VLOOKUP($A947,Economática!$A$3:$AI$823,15,FALSE)=\"-\"),1/0,VLOOKUP($A947,Economática!$A$3:$AI$823,15,FALSE)))","v":""},{"$f":"IF($A947=\"\",\"\",IF(OR(VLOOKUP($A947,Economática!$A$3:$AI$823,16,FALSE)=0,VLOOKUP($A947,Economática!$A$3:$AI$823,16,FALSE)=\"-\"),1/0,VLOOKUP($A947,Economática!$A$3:$AI$823,16,FALSE)))","v":""},{"$f":"IF($A947=\"\",\"\",IF(OR(VLOOKUP($A947,Economática!$A$3:$AI$823,17,FALSE)=0,VLOOKUP($A947,Economática!$A$3:$AI$823,17,FALSE)=\"-\"),1/0,VLOOKUP($A947,Economática!$A$3:$AI$823,17,FALSE)))","v":""},{"$f":"IF($A947=\"\",\"\",IF(OR(VLOOKUP($A947,Economática!$A$3:$AI$823,18,FALSE)=0,VLOOKUP($A947,Economática!$A$3:$AI$823,18,FALSE)=\"-\"),1/0,VLOOKUP($A947,Economática!$A$3:$AI$823,18,FALSE)))","v":""},{"$f":"IF($A947=\"\",\"\",IF(OR(VLOOKUP($A947,Economática!$A$3:$AI$823,19,FALSE)=0,VLOOKUP($A947,Economática!$A$3:$AI$823,19,FALSE)=\"-\"),1/0,VLOOKUP($A947,Economática!$A$3:$AI$823,19,FALSE)))","v":""},{"$f":"IF($A947=\"\",\"\",VLOOKUP($A947,Economática!$A$3:$AI$823,20,FALSE)/E947)","v":""},"","","",{"$f":"IF($A947=\"\",\"\",IF(OR(VLOOKUP($A947,Economática!$A$3:$AI$823,21,FALSE)/100=0,VLOOKUP($A947,Economática!$A$3:$AI$823,21,FALSE)/100=\"-\"),1/0,VLOOKUP($A947,Economática!$A$3:$AI$823,21,FALSE)/100))","v":""},{"$f":"IF($A947=\"\",\"\",IF(OR(VLOOKUP($A947,Economática!$A$3:$AI$823,22,FALSE)/100=0,VLOOKUP($A947,Economática!$A$3:$AI$823,22,FALSE)/100=\"-\"),1/0,VLOOKUP($A947,Economática!$A$3:$AI$823,22,FALSE)/100))","v":""},{"$f":"IF($A947=\"\",\"\",IF(OR(VLOOKUP($A947,Economática!$A$3:$AI$823,23,FALSE)=0,VLOOKUP($A947,Economática!$A$3:$AI$823,23,FALSE)=\"-\"),1/0,VLOOKUP($A947,Economática!$A$3:$AI$823,23,FALSE)))","v":""},{"$f":"IF($A947=\"\",\"\",IF(OR(VLOOKUP($A947,Economática!$A$3:$AI$823,24,FALSE)=0,VLOOKUP($A947,Economática!$A$3:$AI$823,24,FALSE)=\"-\"),1/0,VLOOKUP($A947,Economática!$A$3:$AI$823,24,FALSE)))","v":""},{"$f":"IF($A947=\"\",\"\",IF(OR(VLOOKUP($A947,Economática!$A$3:$AI$823,25,FALSE)=0,VLOOKUP($A947,Economática!$A$3:$AI$823,25,FALSE)=\"-\"),1/0,VLOOKUP($A947,Economática!$A$3:$AI$823,25,FALSE)))","v":""},{"$f":"IF($A947=\"\",\"\",IF(ISERROR((F947+VLOOKUP($A947,Economática!$A$3:$AI$823,26,FALSE))/Y947),(F947+VLOOKUP($A947,Economática!$A$3:$AI$823,26,FALSE))/Y947,(F947+VLOOKUP($A947,Economática!$A$3:$AI$823,26,FALSE))/Y947))","v":""},{"$f":"IF($A947=\"\",\"\",IF(OR(-VLOOKUP($A947,Economática!$A$3:$AI$823,27,FALSE)=0,-VLOOKUP($A947,Economática!$A$3:$AI$823,27,FALSE)=\"-\"),1/0,-VLOOKUP($A947,Economática!$A$3:$AI$823,27,FALSE)))","v":""},"",{"$f":"IF($A947=\"\",\"\",IF(OR(VLOOKUP($A947,Economática!$A$3:$AI$823,28,FALSE)=0,VLOOKUP($A947,Economática!$A$3:$AI$823,28,FALSE)=\"-\"),1/0,VLOOKUP($A947,Economática!$A$3:$AI$823,28,FALSE)))","v":""},{"$f":"IF($A947=\"\",\"\",IF(OR(VLOOKUP($A947,Economática!$A$3:$AI$823,29,FALSE)=0,VLOOKUP($A947,Economática!$A$3:$AI$823,29,FALSE)=\"-\"),1/0,VLOOKUP($A947,Economática!$A$3:$AI$823,29,FALSE)))","v":""},{"$f":"IF($A947=\"\",\"\",IF(OR(VLOOKUP($A947,Economática!$A$3:$AI$823,30,FALSE)/E947=0,VLOOKUP($A947,Economática!$A$3:$AI$823,30,FALSE)/E947=\"-\",VLOOKUP($A947,Economática!$A$3:$AI$823,30,FALSE)/E947<33.33%,VLOOKUP($A947,Economática!$A$3:$AI$823,30,FALSE)/E947>100%),1/0,VLOOKUP($A947,Economática!$A$3:$AI$823,30,FALSE)/E947))","v":""},"",{"$f":"IF($A947=\"\",\"\",IF(OR(VLOOKUP($A947,Economática!$A$3:$AI$823,25,FALSE)=0,VLOOKUP($A947,Economática!$A$3:$AI$823,25,FALSE)=\"-\"),1/0,VLOOKUP($A947,Economática!$A$3:$AI$823,25,FALSE)))","v":""},{"$f":"CONCATENATE(Economática!B925,\" \",Economática!C925)","v":" "}]
[{"$f":"IF(Economática!AG926=\"\",\"\",Economática!AG926)","v":""},{"$f":"IF($A948=\"\",\"\",VLOOKUP(VLOOKUP($A948,Economática!$A$3:$AI$823,6,FALSE),Correção!$B$16:$C$36,2,FALSE))","v":""},{"$f":"IF(Economática!B926=\"\",\"\",Economática!B926)","v":""},{"$f":"IF($A948=\"\",\"\",IF(OR(VLOOKUP($A948,Economática!$A$3:$AI$823,8,FALSE)=0,VLOOKUP($A948,Economática!$A$3:$AI$823,8,FALSE)=\"-\"),1/0,VLOOKUP($A948,Economática!$A$3:$AI$823,8,FALSE)))","v":""},{"$f":"IF(A948=\"\",\"\",IF(ISERROR(VLOOKUP(A948,Correção!$B$2:$G$13,9,FALSE)),VLOOKUP($A948,Economática!$A$3:$AI$823,9,FALSE),VLOOKUP(A948,Correção!$B$2:$G$13,9,FALSE)))","v":""},{"$f":"IF($A948=\"\",\"\",Economática!G926)","v":""},{"$f":"IF($A948=\"\",\"\",IF(OR(VLOOKUP($A948,Economática!$A$3:$AI$823,10,FALSE)=0,VLOOKUP($A948,Economática!$A$3:$AI$823,10,FALSE)=\"-\"),1/0,VLOOKUP($A948,Economática!$A$3:$AI$823,10,FALSE)))","v":""},{"$f":"IF($A948=\"\",\"\",IF(OR(VLOOKUP($A948,Economática!$A$3:$AI$823,11,FALSE)=0,VLOOKUP($A948,Economática!$A$3:$AI$823,11,FALSE)=\"-\"),1/0,VLOOKUP($A948,Economática!$A$3:$AI$823,11,FALSE)))","v":""},{"$f":"IF($A948=\"\",\"\",IF(OR(VLOOKUP($A948,Economática!$A$3:$AI$823,12,FALSE)=0,VLOOKUP($A948,Economática!$A$3:$AI$823,12,FALSE)=\"-\"),1/0,VLOOKUP($A948,Economática!$A$3:$AI$823,12,FALSE)))","v":""},{"$f":"IF($A948=\"\",\"\",IF(OR(VLOOKUP($A948,Economática!$A$3:$AI$823,13,FALSE)=0,VLOOKUP($A948,Economática!$A$3:$AI$823,13,FALSE)=\"-\"),1/0,VLOOKUP($A948,Economática!$A$3:$AI$823,13,FALSE)))","v":""},{"$f":"IF($A948=\"\",\"\",IF(OR(VLOOKUP($A948,Economática!$A$3:$AI$823,14,FALSE)=0,VLOOKUP($A948,Economática!$A$3:$AI$823,14,FALSE)=\"-\"),1/0,VLOOKUP($A948,Economática!$A$3:$AI$823,14,FALSE)))","v":""},{"$f":"IF($A948=\"\",\"\",IF(OR(VLOOKUP($A948,Economática!$A$3:$AI$823,15,FALSE)=0,VLOOKUP($A948,Economática!$A$3:$AI$823,15,FALSE)=\"-\"),1/0,VLOOKUP($A948,Economática!$A$3:$AI$823,15,FALSE)))","v":""},{"$f":"IF($A948=\"\",\"\",IF(OR(VLOOKUP($A948,Economática!$A$3:$AI$823,16,FALSE)=0,VLOOKUP($A948,Economática!$A$3:$AI$823,16,FALSE)=\"-\"),1/0,VLOOKUP($A948,Economática!$A$3:$AI$823,16,FALSE)))","v":""},{"$f":"IF($A948=\"\",\"\",IF(OR(VLOOKUP($A948,Economática!$A$3:$AI$823,17,FALSE)=0,VLOOKUP($A948,Economática!$A$3:$AI$823,17,FALSE)=\"-\"),1/0,VLOOKUP($A948,Economática!$A$3:$AI$823,17,FALSE)))","v":""},{"$f":"IF($A948=\"\",\"\",IF(OR(VLOOKUP($A948,Economática!$A$3:$AI$823,18,FALSE)=0,VLOOKUP($A948,Economática!$A$3:$AI$823,18,FALSE)=\"-\"),1/0,VLOOKUP($A948,Economática!$A$3:$AI$823,18,FALSE)))","v":""},{"$f":"IF($A948=\"\",\"\",IF(OR(VLOOKUP($A948,Economática!$A$3:$AI$823,19,FALSE)=0,VLOOKUP($A948,Economática!$A$3:$AI$823,19,FALSE)=\"-\"),1/0,VLOOKUP($A948,Economática!$A$3:$AI$823,19,FALSE)))","v":""},{"$f":"IF($A948=\"\",\"\",VLOOKUP($A948,Economática!$A$3:$AI$823,20,FALSE)/E948)","v":""},"","","",{"$f":"IF($A948=\"\",\"\",IF(OR(VLOOKUP($A948,Economática!$A$3:$AI$823,21,FALSE)/100=0,VLOOKUP($A948,Economática!$A$3:$AI$823,21,FALSE)/100=\"-\"),1/0,VLOOKUP($A948,Economática!$A$3:$AI$823,21,FALSE)/100))","v":""},{"$f":"IF($A948=\"\",\"\",IF(OR(VLOOKUP($A948,Economática!$A$3:$AI$823,22,FALSE)/100=0,VLOOKUP($A948,Economática!$A$3:$AI$823,22,FALSE)/100=\"-\"),1/0,VLOOKUP($A948,Economática!$A$3:$AI$823,22,FALSE)/100))","v":""},{"$f":"IF($A948=\"\",\"\",IF(OR(VLOOKUP($A948,Economática!$A$3:$AI$823,23,FALSE)=0,VLOOKUP($A948,Economática!$A$3:$AI$823,23,FALSE)=\"-\"),1/0,VLOOKUP($A948,Economática!$A$3:$AI$823,23,FALSE)))","v":""},{"$f":"IF($A948=\"\",\"\",IF(OR(VLOOKUP($A948,Economática!$A$3:$AI$823,24,FALSE)=0,VLOOKUP($A948,Economática!$A$3:$AI$823,24,FALSE)=\"-\"),1/0,VLOOKUP($A948,Economática!$A$3:$AI$823,24,FALSE)))","v":""},{"$f":"IF($A948=\"\",\"\",IF(OR(VLOOKUP($A948,Economática!$A$3:$AI$823,25,FALSE)=0,VLOOKUP($A948,Economática!$A$3:$AI$823,25,FALSE)=\"-\"),1/0,VLOOKUP($A948,Economática!$A$3:$AI$823,25,FALSE)))","v":""},{"$f":"IF($A948=\"\",\"\",IF(ISERROR((F948+VLOOKUP($A948,Economática!$A$3:$AI$823,26,FALSE))/Y948),(F948+VLOOKUP($A948,Economática!$A$3:$AI$823,26,FALSE))/Y948,(F948+VLOOKUP($A948,Economática!$A$3:$AI$823,26,FALSE))/Y948))","v":""},{"$f":"IF($A948=\"\",\"\",IF(OR(-VLOOKUP($A948,Economática!$A$3:$AI$823,27,FALSE)=0,-VLOOKUP($A948,Economática!$A$3:$AI$823,27,FALSE)=\"-\"),1/0,-VLOOKUP($A948,Economática!$A$3:$AI$823,27,FALSE)))","v":""},"",{"$f":"IF($A948=\"\",\"\",IF(OR(VLOOKUP($A948,Economática!$A$3:$AI$823,28,FALSE)=0,VLOOKUP($A948,Economática!$A$3:$AI$823,28,FALSE)=\"-\"),1/0,VLOOKUP($A948,Economática!$A$3:$AI$823,28,FALSE)))","v":""},{"$f":"IF($A948=\"\",\"\",IF(OR(VLOOKUP($A948,Economática!$A$3:$AI$823,29,FALSE)=0,VLOOKUP($A948,Economática!$A$3:$AI$823,29,FALSE)=\"-\"),1/0,VLOOKUP($A948,Economática!$A$3:$AI$823,29,FALSE)))","v":""},{"$f":"IF($A948=\"\",\"\",IF(OR(VLOOKUP($A948,Economática!$A$3:$AI$823,30,FALSE)/E948=0,VLOOKUP($A948,Economática!$A$3:$AI$823,30,FALSE)/E948=\"-\",VLOOKUP($A948,Economática!$A$3:$AI$823,30,FALSE)/E948<33.33%,VLOOKUP($A948,Economática!$A$3:$AI$823,30,FALSE)/E948>100%),1/0,VLOOKUP($A948,Economática!$A$3:$AI$823,30,FALSE)/E948))","v":""},"",{"$f":"IF($A948=\"\",\"\",IF(OR(VLOOKUP($A948,Economática!$A$3:$AI$823,25,FALSE)=0,VLOOKUP($A948,Economática!$A$3:$AI$823,25,FALSE)=\"-\"),1/0,VLOOKUP($A948,Economática!$A$3:$AI$823,25,FALSE)))","v":""},{"$f":"CONCATENATE(Economática!B926,\" \",Economática!C926)","v":" "}]
[{"$f":"IF(Economática!AG927=\"\",\"\",Economática!AG927)","v":""},{"$f":"IF($A949=\"\",\"\",VLOOKUP(VLOOKUP($A949,Economática!$A$3:$AI$823,6,FALSE),Correção!$B$16:$C$36,2,FALSE))","v":""},{"$f":"IF(Economática!B927=\"\",\"\",Economática!B927)","v":""},{"$f":"IF($A949=\"\",\"\",IF(OR(VLOOKUP($A949,Economática!$A$3:$AI$823,8,FALSE)=0,VLOOKUP($A949,Economática!$A$3:$AI$823,8,FALSE)=\"-\"),1/0,VLOOKUP($A949,Economática!$A$3:$AI$823,8,FALSE)))","v":""},{"$f":"IF(A949=\"\",\"\",IF(ISERROR(VLOOKUP(A949,Correção!$B$2:$G$13,9,FALSE)),VLOOKUP($A949,Economática!$A$3:$AI$823,9,FALSE),VLOOKUP(A949,Correção!$B$2:$G$13,9,FALSE)))","v":""},{"$f":"IF($A949=\"\",\"\",Economática!G927)","v":""},{"$f":"IF($A949=\"\",\"\",IF(OR(VLOOKUP($A949,Economática!$A$3:$AI$823,10,FALSE)=0,VLOOKUP($A949,Economática!$A$3:$AI$823,10,FALSE)=\"-\"),1/0,VLOOKUP($A949,Economática!$A$3:$AI$823,10,FALSE)))","v":""},{"$f":"IF($A949=\"\",\"\",IF(OR(VLOOKUP($A949,Economática!$A$3:$AI$823,11,FALSE)=0,VLOOKUP($A949,Economática!$A$3:$AI$823,11,FALSE)=\"-\"),1/0,VLOOKUP($A949,Economática!$A$3:$AI$823,11,FALSE)))","v":""},{"$f":"IF($A949=\"\",\"\",IF(OR(VLOOKUP($A949,Economática!$A$3:$AI$823,12,FALSE)=0,VLOOKUP($A949,Economática!$A$3:$AI$823,12,FALSE)=\"-\"),1/0,VLOOKUP($A949,Economática!$A$3:$AI$823,12,FALSE)))","v":""},{"$f":"IF($A949=\"\",\"\",IF(OR(VLOOKUP($A949,Economática!$A$3:$AI$823,13,FALSE)=0,VLOOKUP($A949,Economática!$A$3:$AI$823,13,FALSE)=\"-\"),1/0,VLOOKUP($A949,Economática!$A$3:$AI$823,13,FALSE)))","v":""},{"$f":"IF($A949=\"\",\"\",IF(OR(VLOOKUP($A949,Economática!$A$3:$AI$823,14,FALSE)=0,VLOOKUP($A949,Economática!$A$3:$AI$823,14,FALSE)=\"-\"),1/0,VLOOKUP($A949,Economática!$A$3:$AI$823,14,FALSE)))","v":""},{"$f":"IF($A949=\"\",\"\",IF(OR(VLOOKUP($A949,Economática!$A$3:$AI$823,15,FALSE)=0,VLOOKUP($A949,Economática!$A$3:$AI$823,15,FALSE)=\"-\"),1/0,VLOOKUP($A949,Economática!$A$3:$AI$823,15,FALSE)))","v":""},{"$f":"IF($A949=\"\",\"\",IF(OR(VLOOKUP($A949,Economática!$A$3:$AI$823,16,FALSE)=0,VLOOKUP($A949,Economática!$A$3:$AI$823,16,FALSE)=\"-\"),1/0,VLOOKUP($A949,Economática!$A$3:$AI$823,16,FALSE)))","v":""},{"$f":"IF($A949=\"\",\"\",IF(OR(VLOOKUP($A949,Economática!$A$3:$AI$823,17,FALSE)=0,VLOOKUP($A949,Economática!$A$3:$AI$823,17,FALSE)=\"-\"),1/0,VLOOKUP($A949,Economática!$A$3:$AI$823,17,FALSE)))","v":""},{"$f":"IF($A949=\"\",\"\",IF(OR(VLOOKUP($A949,Economática!$A$3:$AI$823,18,FALSE)=0,VLOOKUP($A949,Economática!$A$3:$AI$823,18,FALSE)=\"-\"),1/0,VLOOKUP($A949,Economática!$A$3:$AI$823,18,FALSE)))","v":""},{"$f":"IF($A949=\"\",\"\",IF(OR(VLOOKUP($A949,Economática!$A$3:$AI$823,19,FALSE)=0,VLOOKUP($A949,Economática!$A$3:$AI$823,19,FALSE)=\"-\"),1/0,VLOOKUP($A949,Economática!$A$3:$AI$823,19,FALSE)))","v":""},{"$f":"IF($A949=\"\",\"\",VLOOKUP($A949,Economática!$A$3:$AI$823,20,FALSE)/E949)","v":""},"","","",{"$f":"IF($A949=\"\",\"\",IF(OR(VLOOKUP($A949,Economática!$A$3:$AI$823,21,FALSE)/100=0,VLOOKUP($A949,Economática!$A$3:$AI$823,21,FALSE)/100=\"-\"),1/0,VLOOKUP($A949,Economática!$A$3:$AI$823,21,FALSE)/100))","v":""},{"$f":"IF($A949=\"\",\"\",IF(OR(VLOOKUP($A949,Economática!$A$3:$AI$823,22,FALSE)/100=0,VLOOKUP($A949,Economática!$A$3:$AI$823,22,FALSE)/100=\"-\"),1/0,VLOOKUP($A949,Economática!$A$3:$AI$823,22,FALSE)/100))","v":""},{"$f":"IF($A949=\"\",\"\",IF(OR(VLOOKUP($A949,Economática!$A$3:$AI$823,23,FALSE)=0,VLOOKUP($A949,Economática!$A$3:$AI$823,23,FALSE)=\"-\"),1/0,VLOOKUP($A949,Economática!$A$3:$AI$823,23,FALSE)))","v":""},{"$f":"IF($A949=\"\",\"\",IF(OR(VLOOKUP($A949,Economática!$A$3:$AI$823,24,FALSE)=0,VLOOKUP($A949,Economática!$A$3:$AI$823,24,FALSE)=\"-\"),1/0,VLOOKUP($A949,Economática!$A$3:$AI$823,24,FALSE)))","v":""},{"$f":"IF($A949=\"\",\"\",IF(OR(VLOOKUP($A949,Economática!$A$3:$AI$823,25,FALSE)=0,VLOOKUP($A949,Economática!$A$3:$AI$823,25,FALSE)=\"-\"),1/0,VLOOKUP($A949,Economática!$A$3:$AI$823,25,FALSE)))","v":""},{"$f":"IF($A949=\"\",\"\",IF(ISERROR((F949+VLOOKUP($A949,Economática!$A$3:$AI$823,26,FALSE))/Y949),(F949+VLOOKUP($A949,Economática!$A$3:$AI$823,26,FALSE))/Y949,(F949+VLOOKUP($A949,Economática!$A$3:$AI$823,26,FALSE))/Y949))","v":""},{"$f":"IF($A949=\"\",\"\",IF(OR(-VLOOKUP($A949,Economática!$A$3:$AI$823,27,FALSE)=0,-VLOOKUP($A949,Economática!$A$3:$AI$823,27,FALSE)=\"-\"),1/0,-VLOOKUP($A949,Economática!$A$3:$AI$823,27,FALSE)))","v":""},"",{"$f":"IF($A949=\"\",\"\",IF(OR(VLOOKUP($A949,Economática!$A$3:$AI$823,28,FALSE)=0,VLOOKUP($A949,Economática!$A$3:$AI$823,28,FALSE)=\"-\"),1/0,VLOOKUP($A949,Economática!$A$3:$AI$823,28,FALSE)))","v":""},{"$f":"IF($A949=\"\",\"\",IF(OR(VLOOKUP($A949,Economática!$A$3:$AI$823,29,FALSE)=0,VLOOKUP($A949,Economática!$A$3:$AI$823,29,FALSE)=\"-\"),1/0,VLOOKUP($A949,Economática!$A$3:$AI$823,29,FALSE)))","v":""},{"$f":"IF($A949=\"\",\"\",IF(OR(VLOOKUP($A949,Economática!$A$3:$AI$823,30,FALSE)/E949=0,VLOOKUP($A949,Economática!$A$3:$AI$823,30,FALSE)/E949=\"-\",VLOOKUP($A949,Economática!$A$3:$AI$823,30,FALSE)/E949<33.33%,VLOOKUP($A949,Economática!$A$3:$AI$823,30,FALSE)/E949>100%),1/0,VLOOKUP($A949,Economática!$A$3:$AI$823,30,FALSE)/E949))","v":""},"",{"$f":"IF($A949=\"\",\"\",IF(OR(VLOOKUP($A949,Economática!$A$3:$AI$823,25,FALSE)=0,VLOOKUP($A949,Economática!$A$3:$AI$823,25,FALSE)=\"-\"),1/0,VLOOKUP($A949,Economática!$A$3:$AI$823,25,FALSE)))","v":""},{"$f":"CONCATENATE(Economática!B927,\" \",Economática!C927)","v":" "}]
[{"$f":"IF(Economática!AG928=\"\",\"\",Economática!AG928)","v":""},{"$f":"IF($A950=\"\",\"\",VLOOKUP(VLOOKUP($A950,Economática!$A$3:$AI$823,6,FALSE),Correção!$B$16:$C$36,2,FALSE))","v":""},{"$f":"IF(Economática!B928=\"\",\"\",Economática!B928)","v":""},{"$f":"IF($A950=\"\",\"\",IF(OR(VLOOKUP($A950,Economática!$A$3:$AI$823,8,FALSE)=0,VLOOKUP($A950,Economática!$A$3:$AI$823,8,FALSE)=\"-\"),1/0,VLOOKUP($A950,Economática!$A$3:$AI$823,8,FALSE)))","v":""},{"$f":"IF(A950=\"\",\"\",IF(ISERROR(VLOOKUP(A950,Correção!$B$2:$G$13,9,FALSE)),VLOOKUP($A950,Economática!$A$3:$AI$823,9,FALSE),VLOOKUP(A950,Correção!$B$2:$G$13,9,FALSE)))","v":""},{"$f":"IF($A950=\"\",\"\",Economática!G928)","v":""},{"$f":"IF($A950=\"\",\"\",IF(OR(VLOOKUP($A950,Economática!$A$3:$AI$823,10,FALSE)=0,VLOOKUP($A950,Economática!$A$3:$AI$823,10,FALSE)=\"-\"),1/0,VLOOKUP($A950,Economática!$A$3:$AI$823,10,FALSE)))","v":""},{"$f":"IF($A950=\"\",\"\",IF(OR(VLOOKUP($A950,Economática!$A$3:$AI$823,11,FALSE)=0,VLOOKUP($A950,Economática!$A$3:$AI$823,11,FALSE)=\"-\"),1/0,VLOOKUP($A950,Economática!$A$3:$AI$823,11,FALSE)))","v":""},{"$f":"IF($A950=\"\",\"\",IF(OR(VLOOKUP($A950,Economática!$A$3:$AI$823,12,FALSE)=0,VLOOKUP($A950,Economática!$A$3:$AI$823,12,FALSE)=\"-\"),1/0,VLOOKUP($A950,Economática!$A$3:$AI$823,12,FALSE)))","v":""},{"$f":"IF($A950=\"\",\"\",IF(OR(VLOOKUP($A950,Economática!$A$3:$AI$823,13,FALSE)=0,VLOOKUP($A950,Economática!$A$3:$AI$823,13,FALSE)=\"-\"),1/0,VLOOKUP($A950,Economática!$A$3:$AI$823,13,FALSE)))","v":""},{"$f":"IF($A950=\"\",\"\",IF(OR(VLOOKUP($A950,Economática!$A$3:$AI$823,14,FALSE)=0,VLOOKUP($A950,Economática!$A$3:$AI$823,14,FALSE)=\"-\"),1/0,VLOOKUP($A950,Economática!$A$3:$AI$823,14,FALSE)))","v":""},{"$f":"IF($A950=\"\",\"\",IF(OR(VLOOKUP($A950,Economática!$A$3:$AI$823,15,FALSE)=0,VLOOKUP($A950,Economática!$A$3:$AI$823,15,FALSE)=\"-\"),1/0,VLOOKUP($A950,Economática!$A$3:$AI$823,15,FALSE)))","v":""},{"$f":"IF($A950=\"\",\"\",IF(OR(VLOOKUP($A950,Economática!$A$3:$AI$823,16,FALSE)=0,VLOOKUP($A950,Economática!$A$3:$AI$823,16,FALSE)=\"-\"),1/0,VLOOKUP($A950,Economática!$A$3:$AI$823,16,FALSE)))","v":""},{"$f":"IF($A950=\"\",\"\",IF(OR(VLOOKUP($A950,Economática!$A$3:$AI$823,17,FALSE)=0,VLOOKUP($A950,Economática!$A$3:$AI$823,17,FALSE)=\"-\"),1/0,VLOOKUP($A950,Economática!$A$3:$AI$823,17,FALSE)))","v":""},{"$f":"IF($A950=\"\",\"\",IF(OR(VLOOKUP($A950,Economática!$A$3:$AI$823,18,FALSE)=0,VLOOKUP($A950,Economática!$A$3:$AI$823,18,FALSE)=\"-\"),1/0,VLOOKUP($A950,Economática!$A$3:$AI$823,18,FALSE)))","v":""},{"$f":"IF($A950=\"\",\"\",IF(OR(VLOOKUP($A950,Economática!$A$3:$AI$823,19,FALSE)=0,VLOOKUP($A950,Economática!$A$3:$AI$823,19,FALSE)=\"-\"),1/0,VLOOKUP($A950,Economática!$A$3:$AI$823,19,FALSE)))","v":""},{"$f":"IF($A950=\"\",\"\",VLOOKUP($A950,Economática!$A$3:$AI$823,20,FALSE)/E950)","v":""},"","","",{"$f":"IF($A950=\"\",\"\",IF(OR(VLOOKUP($A950,Economática!$A$3:$AI$823,21,FALSE)/100=0,VLOOKUP($A950,Economática!$A$3:$AI$823,21,FALSE)/100=\"-\"),1/0,VLOOKUP($A950,Economática!$A$3:$AI$823,21,FALSE)/100))","v":""},{"$f":"IF($A950=\"\",\"\",IF(OR(VLOOKUP($A950,Economática!$A$3:$AI$823,22,FALSE)/100=0,VLOOKUP($A950,Economática!$A$3:$AI$823,22,FALSE)/100=\"-\"),1/0,VLOOKUP($A950,Economática!$A$3:$AI$823,22,FALSE)/100))","v":""},{"$f":"IF($A950=\"\",\"\",IF(OR(VLOOKUP($A950,Economática!$A$3:$AI$823,23,FALSE)=0,VLOOKUP($A950,Economática!$A$3:$AI$823,23,FALSE)=\"-\"),1/0,VLOOKUP($A950,Economática!$A$3:$AI$823,23,FALSE)))","v":""},{"$f":"IF($A950=\"\",\"\",IF(OR(VLOOKUP($A950,Economática!$A$3:$AI$823,24,FALSE)=0,VLOOKUP($A950,Economática!$A$3:$AI$823,24,FALSE)=\"-\"),1/0,VLOOKUP($A950,Economática!$A$3:$AI$823,24,FALSE)))","v":""},{"$f":"IF($A950=\"\",\"\",IF(OR(VLOOKUP($A950,Economática!$A$3:$AI$823,25,FALSE)=0,VLOOKUP($A950,Economática!$A$3:$AI$823,25,FALSE)=\"-\"),1/0,VLOOKUP($A950,Economática!$A$3:$AI$823,25,FALSE)))","v":""},{"$f":"IF($A950=\"\",\"\",IF(ISERROR((F950+VLOOKUP($A950,Economática!$A$3:$AI$823,26,FALSE))/Y950),(F950+VLOOKUP($A950,Economática!$A$3:$AI$823,26,FALSE))/Y950,(F950+VLOOKUP($A950,Economática!$A$3:$AI$823,26,FALSE))/Y950))","v":""},{"$f":"IF($A950=\"\",\"\",IF(OR(-VLOOKUP($A950,Economática!$A$3:$AI$823,27,FALSE)=0,-VLOOKUP($A950,Economática!$A$3:$AI$823,27,FALSE)=\"-\"),1/0,-VLOOKUP($A950,Economática!$A$3:$AI$823,27,FALSE)))","v":""},"",{"$f":"IF($A950=\"\",\"\",IF(OR(VLOOKUP($A950,Economática!$A$3:$AI$823,28,FALSE)=0,VLOOKUP($A950,Economática!$A$3:$AI$823,28,FALSE)=\"-\"),1/0,VLOOKUP($A950,Economática!$A$3:$AI$823,28,FALSE)))","v":""},{"$f":"IF($A950=\"\",\"\",IF(OR(VLOOKUP($A950,Economática!$A$3:$AI$823,29,FALSE)=0,VLOOKUP($A950,Economática!$A$3:$AI$823,29,FALSE)=\"-\"),1/0,VLOOKUP($A950,Economática!$A$3:$AI$823,29,FALSE)))","v":""},{"$f":"IF($A950=\"\",\"\",IF(OR(VLOOKUP($A950,Economática!$A$3:$AI$823,30,FALSE)/E950=0,VLOOKUP($A950,Economática!$A$3:$AI$823,30,FALSE)/E950=\"-\",VLOOKUP($A950,Economática!$A$3:$AI$823,30,FALSE)/E950<33.33%,VLOOKUP($A950,Economática!$A$3:$AI$823,30,FALSE)/E950>100%),1/0,VLOOKUP($A950,Economática!$A$3:$AI$823,30,FALSE)/E950))","v":""},"",{"$f":"IF($A950=\"\",\"\",IF(OR(VLOOKUP($A950,Economática!$A$3:$AI$823,25,FALSE)=0,VLOOKUP($A950,Economática!$A$3:$AI$823,25,FALSE)=\"-\"),1/0,VLOOKUP($A950,Economática!$A$3:$AI$823,25,FALSE)))","v":""},{"$f":"CONCATENATE(Economática!B928,\" \",Economática!C928)","v":" "}]

{"sheet":"Dados MM","index":5,"n_rows":320,"n_cols":35,"rows_kept":320,"cut":false,"hidden":true,"merged":[]}
["Empresa","Valor Mercado",null,"Empresa","Patrimônio Líquido (últ. balan.)",null,"Empresa","EBITDA Anual (t-1)",null,"Empresa","Dividend Yield.",null,"Empresa","P/VPA (últimos 12 meses) ",null,"Empresa","P/L (últimos 12 meses) ",null,"Empresa","Rentab. Patrimonial",null,"Empresa","FirmValue/Ebitda ",null,"Empresa","Oscliação mês % altas",null,"Empresa","Oscliação ano % altas",null,"Empresa","Oscliação mês % baixas",null,"Empresa","Oscliação ano % baixas"]
[{"$f":"IF(ISERROR(Dados!C49),\"-\",Dados!C49)","v":"Viver"},{"$f":"IF(ISERROR(Dados!F49),\"-\",Dados!F49)","v":171.34},null,{"$f":"IF(ISERROR(Dados!C49),\"-\",Dados!C49)","v":"Viver"},{"$f":"IF(ISERROR(Dados!G49),\"-\",Dados!G49)","v":46.11},null,{"$f":"IF(ISERROR(Dados!C49),\"-\",Dados!C49)","v":"Viver"},{"$f":"IF(ISERROR(Dados!X49),\"0\",Dados!X49)","v":-81.900000000000006},null,{"$f":"IF(ISERROR(Dados!C49),\"-\",Dados!C49)","v":"Viver"},{"$f":"IF(ISERROR(Dados!AB49),\"0\",Dados!AB49)","v":"0"},null,{"$f":"IF(ISERROR(Dados!C49),\"-\",Dados!C49)","v":"Viver"},{"$f":"IF(ISERROR(Dados!S49),\"-\",Dados!S49)","v":3.7159282151377138},null,{"$f":"IF(ISERROR(Dados!C49),\"-\",Dados!C49)","v":"Viver"},{"$f":"IF(ISERROR(Dados!T49),\"-\",Dados!T49)","v":"-"},null,{"$f":"IF(ISERROR(Dados!C49),\"-\",Dados!C49)","v":"Viver"},{"$f":"IF(ISERROR(Dados!U49),\"0\",Dados!U49)","v":"0"},null,{"$f":"IF(ISERROR(Dados!C49),\"-\",Dados!C49)","v":"Viver"},{"$f":"IF(ISERROR(IF(Dados!Z49<0,\"-\",Dados!Z49)),\"-\",IF(Dados!Z49<0,\"-\",Dados!Z49))","v":"-"},null,{"$f":"IF(ISERROR(Dados!C49),\"-\",Dados!C49)","v":"Viver"},{"$f":"IF(ISERROR(Dados!AC49),\"-1000000\",Dados!AC49)","v":"-1000000"},null,{"$f":"IF(ISERROR(Dados!C49),\"-\",Dados!C49)","v":"Viver"},{"$f":"IF(ISERROR(Dados!AD49),\"-1000000\",Dados!AD49)","v":-76.7},null,{"$f":"IF(ISERROR(Dados!C49),\"-\",Dados!C49)","v":"Viver"},{"$f":"IF(ISERROR(Dados!AC49),\"-\",Dados!AC49)","v":"-"},null,{"$f":"IF(ISERROR(Dados!C49),\"-\",Dados!C49)","v":"Viver"},{"$f":"IF(ISERROR(Dados!AD49),\"-\",Dados!AD49)","v":-76.7}]
[{"$f":"IF(ISERROR(Dados!C15),\"-\",Dados!C15)","v":"J B Duarte"},{"$f":"IF(ISERROR(Dados!F15),\"-\",Dados!F15)","v":0.93},null,{"$f":"IF(ISERROR(Dados!C15),\"-\",Dados!C15)","v":"J B Duarte"},{"$f":"IF(ISERROR(Dados!G15),\"-\",Dados!G15)","v":25.77},null,{"$f":"IF(ISERROR(Dados!C15),\"-\",Dados!C15)","v":"J B Duarte"},{"$f":"IF(ISERROR(Dados!X15),\"0\",Dados!X15)","v":"0"},null,{"$f":"IF(ISERROR(Dados!C15),\"-\",Dados!C15)","v":"J B Duarte"},{"$f":"IF(ISERROR(Dados!AB15),\"0\",Dados!AB15)","v":"0"},null,{"$f":"IF(ISERROR(Dados!C15),\"-\",Dados!C15)","v":"J B Duarte"},{"$f":"IF(ISERROR(Dados!S15),\"-\",Dados!S15)","v":3.5886689949553748E-2},null,{"$f":"IF(ISERROR(Dados!C15),\"-\",Dados!C15)","v":"J B Duarte"},{"$f":"IF(ISERROR(Dados!T15),\"-\",Dados!T15)","v":3.3519391083725987E-2},null,{"$f":"IF(ISERROR(Dados!C15),\"-\",Dados!C15)","v":"J B Duarte"},{"$f":"IF(ISERROR(Dados!U15),\"0\",Dados!U15)","v":"0"},null,{"$f":"IF(ISERROR(Dados!C15),\"-\",Dados!C15)","v":"J B Duarte"},{"$f":"IF(ISERROR(IF(Dados!Z15<0,\"-\",Dados!Z15)),\"-\",IF(Dados!Z15<0,\"-\",Dados!Z15))","v":"-"},null,{"$f":"IF(ISERROR(Dados!C15),\"-\",Dados!C15)","v":"J B Duarte"},{"$f":"IF(ISERROR(Dados!AC15),\"-1000000\",Dados!AC15)","v":-8.4},null,{"$f":"IF(ISERROR(Dados!C15),\"-\",Dados!C15)","v":"J B Duarte"},{"$f":"IF(ISERROR(Dados!AD15),\"-1000000\",Dados!AD15)","v":-77.599999999999994},null,{"$f":"IF(ISERROR(Dados!C15),\"-\",Dados!C15)","v":"J B Duarte"},{"$f":"IF(ISERROR(Dados!AC15),\"-\",Dados!AC15)","v":-8.4},null,{"$f":"IF(ISERROR(Dados!C15),\"-\",Dados!C15)","v":"J B Duarte"},{"$f":"IF(ISERROR(Dados!AD15),\"-\",Dados!AD15)","v":-77.599999999999994}]
[{"$f":"IF(ISERROR(Dados!C80),\"-\",Dados!C80)","v":"Renova"},{"$f":"IF(ISERROR(Dados!F80),\"-\",Dados!F80)","v":470.3},null,{"$f":"IF(ISERROR(Dados!C80),\"-\",Dados!C80)","v":"Renova"},{"$f":"IF(ISERROR(Dados!G80),\"-\",Dados!G80)","v":-76.489999999999995},null,{"$f":"IF(ISERROR(Dados!C80),\"-\",Dados!C80)","v":"Renova"},{"$f":"IF(ISERROR(Dados!X80),\"0\",Dados!X80)","v":-522.70000000000005},null,{"$f":"IF(ISERROR(Dados!C80),\"-\",Dados!C80)","v":"Renova"},{"$f":"IF(ISERROR(Dados!AB80),\"0\",Dados!AB80)","v":"0"},null,{"$f":"IF(ISERROR(Dados!C80),\"-\",Dados!C80)","v":"Renova"},{"$f":"IF(ISERROR(Dados!S80),\"-\",Dados!S80)","v":"-"},null,{"$f":"IF(ISERROR(Dados!C80),\"-\",Dados!C80)","v":"Renova"},{"$f":"IF(ISERROR(Dados!T80),\"-\",Dados!T80)","v":"-"},null,{"$f":"IF(ISERROR(Dados!C80),\"-\",Dados!C80)","v":"Renova"},{"$f":"IF(ISERROR(Dados!U80),\"0\",Dados!U80)","v":-1.098087},null,{"$f":"IF(ISERROR(Dados!C80),\"-\",Dados!C80)","v":"Renova"},{"$f":"IF(ISERROR(IF(Dados!Z80<0,\"-\",Dados!Z80)),\"-\",IF(Dados!Z80<0,\"-\",Dados!Z80))","v":"-"},null,{"$f":"IF(ISERROR(Dados!C80),\"-\",Dados!C80)","v":"Renova"},{"$f":"IF(ISERROR(Dados!AC80),\"-1000000\",Dados!AC80)","v":90.1},null,{"$f":"IF(ISERROR(Dados!C80),\"-\",Dados!C80)","v":"Renova"},{"$f":"IF(ISERROR(Dados!AD80),\"-1000000\",Dados!AD80)","v":-44.5},null,{"$f":"IF(ISERROR(Dados!C80),\"-\",Dados!C80)","v":"Renova"},{"$f":"IF(ISERROR(Dados!AC80),\"-\",Dados!AC80)","v":90.1},null,{"$f":"IF(ISERROR(Dados!C80),\"-\",Dados!C80)","v":"Renova"},{"$f":"IF(ISERROR(Dados!AD80),\"-\",Dados!AD80)","v":-44.5}]
[{"$f":"IF(ISERROR(Dados!C160),\"-\",Dados!C160)","v":"Mills"},{"$f":"IF(ISERROR(Dados!F160),\"-\",Dados!F160)","v":831.88},null,{"$f":"IF(ISERROR(Dados!C160),\"-\",Dados!C160)","v":"Mills"},{"$f":"IF(ISERROR(Dados!G160),\"-\",Dados!G160)","v":750.31},null,{"$f":"IF(ISERROR(Dados!C160),\"-\",Dados!C160)","v":"Mills"},{"$f":"IF(ISERROR(Dados!X160),\"0\",Dados!X160)","v":0.3},null,{"$f":"IF(ISERROR(Dados!C160),\"-\",Dados!C160)","v":"Mills"},{"$f":"IF(ISERROR(Dados!AB160),\"0\",Dados!AB160)","v":"0"},null,{"$f":"IF(ISERROR(Dados!C160),\"-\",Dados!C160)","v":"Mills"},{"$f":"IF(ISERROR(Dados!S160),\"-\",Dados!S160)","v":1.1087129319881117},null,{"$f":"IF(ISERROR(Dados!C160),\"-\",Dados!C160)","v":"Mills"},{"$f":"IF(ISERROR(Dados!T160),\"-\",Dados!T160)","v":"-"},null,{"$f":"IF(ISERROR(Dados!C160),\"-\",Dados!C160)","v":"Mills"},{"$f":"IF(ISERROR(Dados!U160),\"0\",Dados!U160)","v":-0.11218},null,{"$f":"IF(ISERROR(Dados!C160),\"-\",Dados!C160)","v":"Mills"},{"$f":"IF(ISERROR(IF(Dados!Z160<0,\"-\",Dados!Z160)),\"-\",IF(Dados!Z160<0,\"-\",Dados!Z160))","v":2968.1},null,{"$f":"IF(ISERROR(Dados!C160),\"-\",Dados!C160)","v":"Mills"},{"$f":"IF(ISERROR(Dados!AC160),\"-1000000\",Dados!AC160)","v":-11.6},null,{"$f":"IF(ISERROR(Dados!C160),\"-\",Dados!C160)","v":"Mills"},{"$f":"IF(ISERROR(Dados!AD160),\"-1000000\",Dados!AD160)","v":16.5},null,{"$f":"IF(ISERROR(Dados!C160),\"-\",Dados!C160)","v":"Mills"},{"$f":"IF(ISERROR(Dados!AC160),\"-\",Dados!AC160)","v":-11.6},null,{"$f":"IF(ISERROR(Dados!C160),\"-\",Dados!C160)","v":"Mills"},{"$f":"IF(ISERROR(Dados!AD160),\"-\",Dados!AD160)","v":16.5}]
[{"$f":"IF(ISERROR(Dados!C48),\"-\",Dados!C48)","v":"PDG Realt"},{"$f":"IF(ISERROR(Dados!F48),\"-\",Dados!F48)","v":58.89},null,{"$f":"IF(ISERROR(Dados!C48),\"-\",Dados!C48)","v":"PDG Realt"},{"$f":"IF(ISERROR(Dados!G48),\"-\",Dados!G48)","v":-3963.66},null,{"$f":"IF(ISERROR(Dados!C48),\"-\",Dados!C48)","v":"PDG Realt"},{"$f":"IF(ISERROR(Dados!X48),\"0\",Dados!X48)","v":-359.1},null,{"$f":"IF(ISERROR(Dados!C48),\"-\",Dados!C48)","v":"PDG Realt"},{"$f":"IF(ISERROR(Dados!AB48),\"0\",Dados!AB48)","v":"0"},null,{"$f":"IF(ISERROR(Dados!C48),\"-\",Dados!C48)","v":"PDG Realt"},{"$f":"IF(ISERROR(Dados!S48),\"-\",Dados!S48)","v":"-"},null,{"$f":"IF(ISERROR(Dados!C48),\"-\",Dados!C48)","v":"PDG Realt"},{"$f":"IF(ISERROR(Dados!T48),\"-\",Dados!T48)","v":"-"},null,{"$f":"IF(ISERROR(Dados!C48),\"-\",Dados!C48)","v":"PDG Realt"},{"$f":"IF(ISERROR(Dados!U48),\"0\",Dados!U48)","v":"0"},null,{"$f":"IF(ISERROR(Dados!C48),\"-\",Dados!C48)","v":"PDG Realt"},{"$f":"IF(ISERROR(IF(Dados!Z48<0,\"-\",Dados!Z48)),\"-\",IF(Dados!Z48<0,\"-\",Dados!Z48))","v":"-"},null,{"$f":"IF(ISERROR(Dados!C48),\"-\",Dados!C48)","v":"PDG Realt"},{"$f":"IF(ISERROR(Dados!AC48),\"-1000000\",Dados!AC48)","v":"-1000000"},null,{"$f":"IF(ISERROR(Dados!C48),\"-\",Dados!C48)","v":"PDG Realt"},{"$f":"IF(ISERROR(Dados!AD48),\"-1000000\",Dados!AD48)","v":-67.8},null,{"$f":"IF(ISERROR(Dados!C48),\"-\",Dados!C48)","v":"PDG Realt"},{"$f":"IF(ISERROR(Dados!AC48),\"-\",Dados!AC48)","v":"-"},null,{"$f":"IF(ISERROR(Dados!C48),\"-\",Dados!C48)","v":"PDG Realt"},{"$f":"IF(ISERROR(Dados!AD48),\"-\",Dados!AD48)","v":-67.8}]
[{"$f":"IF(ISERROR(Dados!C177),\"-\",Dados!C177)","v":"Petrobras"},{"$f":"IF(ISERROR(Dados!F177),\"-\",Dados!F177)","v":389016.77},null,{"$f":"IF(ISERROR(Dados!C177),\"-\",Dados!C177)","v":"Petrobras"},{"$f":"IF(ISERROR(Dados!G177),\"-\",Dados!G177)","v":277225},null,{"$f":"IF(ISERROR(Dados!C177),\"-\",Dados!C177)","v":"Petrobras"},{"$f":"IF(ISERROR(Dados!X177),\"0\",Dados!X177)","v":108522},null,{"$f":"IF(ISERROR(Dados!C177),\"-\",Dados!C177)","v":"Petrobras"},{"$f":"IF(ISERROR(Dados!AB177),\"0\",Dados!AB177)","v":6.0871411790293772E-3},null,{"$f":"IF(ISERROR(Dados!C177),\"-\",Dados!C177)","v":"Petrobras"},{"$f":"IF(ISERROR(Dados!S177),\"-\",Dados!S177)","v":1.3203004060239876},null,{"$f":"IF(ISERROR(Dados!C177),\"-\",Dados!C177)","v":"Petrobras"},{"$f":"IF(ISERROR(Dados!T177),\"-\",Dados!T177)","v":14.198389389037587},null,{"$f":"IF(ISERROR(Dados!C177),\"-\",Dados!C177)","v":"Petrobras"},{"$f":"IF(ISERROR(Dados!U177),\"0\",Dados!U177)","v":9.9025000000000002E-2},null,{"$f":"IF(ISERROR(Dados!C177),\"-\",Dados!C177)","v":"Petrobras"},{"$f":"IF(ISERROR(IF(Dados!Z177<0,\"-\",Dados!Z177)),\"-\",IF(Dados!Z177<0,\"-\",Dados!Z177))","v":6.0618194467481246},null,{"$f":"IF(ISERROR(Dados!C177),\"-\",Dados!C177)","v":"Petrobras"},{"$f":"IF(ISERROR(Dados!AC177),\"-1000000\",Dados!AC177)","v":3.7},null,{"$f":"IF(ISERROR(Dados!C177),\"-\",Dados!C177)","v":"Petrobras"},{"$f":"IF(ISERROR(Dados!AD177),\"-1000000\",Dados!AD177)","v":81.7},null,{"$f":"IF(ISERROR(Dados!C177),\"-\",Dados!C177)","v":"Petrobras"},{"$f":"IF(ISERROR(Dados!AC177),\"-\",Dados!AC177)","v":3.7},null,{"$f":"IF(ISERROR(Dados!C177),\"-\",Dados!C177)","v":"Petrobras"},{"$f":"IF(ISERROR(Dados!AD177),\"-\",Dados!AD177)","v":81.7}]
[{"$f":"IF(ISERROR(Dados!C30),\"-\",Dados!C30)","v":"B2W Digital"},{"$f":"IF(ISERROR(Dados!F30),\"-\",Dados!F30)","v":19306.400000000001},null,{"$f":"IF(ISERROR(Dados!C30),\"-\",Dados!C30)","v":"B2W Digital"},{"$f":"IF(ISERROR(Dados!G30),\"-\",Dados!G30)","v":3537.12},null,{"$f":"IF(ISERROR(Dados!C30),\"-\",Dados!C30)","v":"B2W Digital"},{"$f":"IF(ISERROR(Dados!X30),\"0\",Dados!X30)","v":412.3},null,{"$f":"IF(ISERROR(Dados!C30),\"-\",Dados!C30)","v":"B2W Digital"},{"$f":"IF(ISERROR(Dados!AB30),\"0\",Dados!AB30)","v":"0"},null,{"$f":"IF(ISERROR(Dados!C30),\"-\",Dados!C30)","v":"B2W Digital"},{"$f":"IF(ISERROR(Dados!S30),\"-\",Dados!S30)","v":5.4582269812729001},null,{"$f":"IF(ISERROR(Dados!C30),\"-\",Dados!C30)","v":"B2W Digital"},{"$f":"IF(ISERROR(Dados!T30),\"-\",Dados!T30)","v":"-"},null,{"$f":"IF(ISERROR(Dados!C30),\"-\",Dados!C30)","v":"B2W Digital"},{"$f":"IF(ISERROR(Dados!U30),\"0\",Dados!U30)","v":-0.10188000000000001},null,{"$f":"IF(ISERROR(Dados!C30),\"-\",Dados!C30)","v":"B2W Digital"},{"$f":"IF(ISERROR(IF(Dados!Z30<0,\"-\",Dados!Z30)),\"-\",IF(Dados!Z30<0,\"-\",Dados!Z30))","v":51.210177055542083},null,{"$f":"IF(ISERROR(Dados!C30),\"-\",Dados!C30)","v":"B2W Digital"},{"$f":"IF(ISERROR(Dados!AC30),\"-1000000\",Dados!AC30)","v":-12.7},null,{"$f":"IF(ISERROR(Dados!C30),\"-\",Dados!C30)","v":"B2W Digital"},{"$f":"IF(ISERROR(Dados!AD30),\"-1000000\",Dados!AD30)","v":106},null,{"$f":"IF(ISERROR(Dados!C30),\"-\",Dados!C30)","v":"B2W Digital"},{"$f":"IF(ISERROR(Dados!AC30),\"-\",Dados!AC30)","v":-12.7},null,{"$f":"IF(ISERROR(Dados!C30),\"-\",Dados!C30)","v":"B2W Digital"},{"$f":"IF(ISERROR(Dados!AD30),\"-\",Dados!AD30)","v":106}]
[{"$f":"IF(ISERROR(Dados!C101),\"-\",Dados!C101)","v":"Alper S.A."},{"$f":"IF(ISERROR(Dados!F101),\"-\",Dados!F101)","v":183.47},null,{"$f":"IF(ISERROR(Dados!C101),\"-\",Dados!C101)","v":"Alper S.A."},{"$f":"IF(ISERROR(Dados!G101),\"-\",Dados!G101)","v":93.14},null,{"$f":"IF(ISERROR(Dados!C101),\"-\",Dados!C101)","v":"Alper S.A."},{"$f":"IF(ISERROR(Dados!X101),\"0\",Dados!X101)","v":-158.30000000000001},null,{"$f":"IF(ISERROR(Dados!C101),\"-\",Dados!C101)","v":"Alper S.A."},{"$f":"IF(ISERROR(Dados!AB101),\"0\",Dados!AB101)","v":"0"},null,{"$f":"IF(ISERROR(Dados!C101),\"-\",Dados!C101)","v":"Alper S.A."},{"$f":"IF(ISERROR(Dados!S101),\"-\",Dados!S101)","v":1.9697573545200773},null,{"$f":"IF(ISERROR(Dados!C101),\"-\",Dados!C101)","v":"Alper S.A."},{"$f":"IF(ISERROR(Dados!T101),\"-\",Dados!T101)","v":"-"},null,{"$f":"IF(ISERROR(Dados!C101),\"-\",Dados!C101)","v":"Alper S.A."},{"$f":"IF(ISERROR(Dados!U101),\"0\",Dados!U101)","v":-0.63826300000000002},null,{"$f":"IF(ISERROR(Dados!C101),\"-\",Dados!C101)","v":"Alper S.A."},{"$f":"IF(ISERROR(IF(Dados!Z101<0,\"-\",Dados!Z101)),\"-\",IF(Dados!Z101<0,\"-\",Dados!Z101))","v":"-"},null,{"$f":"IF(ISERROR(Dados!C101),\"-\",Dados!C101)","v":"Alper S.A."},{"$f":"IF(ISERROR(Dados!AC101),\"-1000000\",Dados!AC101)","v":1.6},null,{"$f":"IF(ISERROR(Dados!C101),\"-\",Dados!C101)","v":"Alper S.A."},{"$f":"IF(ISERROR(Dados!AD101),\"-1000000\",Dados!AD101)","v":106.2},null,{"$f":"IF(ISERROR(Dados!C101),\"-\",Dados!C101)","v":"Alper S.A."},{"$f":"IF(ISERROR(Dados!AC101),\"-\",Dados!AC101)","v":1.6},null,{"$f":"IF(ISERROR(Dados!C101),\"-\",Dados!C101)","v":"Alper S.A."},{"$f":"IF(ISERROR(Dados!AD101),\"-\",Dados!AD101)","v":106.2}]
[{"$f":"IF(ISERROR(Dados!C182),\"-\",Dados!C182)","v":"Cristal"},{"$f":"IF(ISERROR(Dados!F182),\"-\",Dados!F182)","v":921.78},null,{"$f":"IF(ISERROR(Dados!C182),\"-\",Dados!C182)","v":"Cristal"},{"$f":"IF(ISERROR(Dados!G182),\"-\",Dados!G182)","v":509.05},null,{"$f":"IF(ISERROR(Dados!C182),\"-\",Dados!C182)","v":"Cristal"},{"$f":"IF(ISERROR(Dados!X182),\"0\",Dados!X182)","v":172.1},null,{"$f":"IF(ISERROR(Dados!C182),\"-\",Dados!C182)","v":"Cristal"},{"$f":"IF(ISERROR(Dados!AB182),\"0\",Dados!AB182)","v":0.11737073922194016},null,{"$f":"IF(ISERROR(Dados!C182),\"-\",Dados!C182)","v":"Cristal"},{"$f":"IF(ISERROR(Dados!S182),\"-\",Dados!S182)","v":1.815061388861605},null,{"$f":"IF(ISERROR(Dados!C182),\"-\",Dados!C182)","v":"Cristal"},{"$f":"IF(ISERROR(Dados!T182),\"-\",Dados!T182)","v":5.935356844607182},null,{"$f":"IF(ISERROR(Dados!C182),\"-\",Dados!C182)","v":"Cristal"},{"$f":"IF(ISERROR(Dados!U182),\"0\",Dados!U182)","v":0.34552500000000003},null,{"$f":"IF(ISERROR(Dados!C182),\"-\",Dados!C182)","v":"Cristal"},{"$f":"IF(ISERROR(IF(Dados!Z182<0,\"-\",Dados!Z182)),\"-\",IF(Dados!Z182<0,\"-\",Dados!Z182))","v":5.0157757117954676},null,{"$f":"IF(ISERROR(Dados!C182),\"-\",Dados!C182)","v":"Cristal"},{"$f":"IF(ISERROR(Dados!AC182),\"-1000000\",Dados!AC182)","v":8.1999999999999993},null,{"$f":"IF(ISERROR(Dados!C182),\"-\",Dados!C182)","v":"Cristal"},{"$f":"IF(ISERROR(Dados!AD182),\"-1000000\",Dados!AD182)","v":209.7},null,{"$f":"IF(ISERROR(Dados!C182),\"-\",Dados!C182)","v":"Cristal"},{"$f":"IF(ISERROR(Dados!AC182),\"-\",Dados!AC182)","v":8.1999999999999993},null,{"$f":"IF(ISERROR(Dados!C182),\"-\",Dados!C182)","v":"Cristal"},{"$f":"IF(ISERROR(Dados!AD182),\"-\",Dados!AD182)","v":209.7}]
[{"$f":"IF(ISERROR(Dados!C44),\"-\",Dados!C44)","v":"Tecnisa"},{"$f":"IF(ISERROR(Dados!F44),\"-\",Dados!F44)","v":433.86},null,{"$f":"IF(ISERROR(Dados!C44),\"-\",Dados!C44)","v":"Tecnisa"},{"$f":"IF(ISERROR(Dados!G44),\"-\",Dados!G44)","v":772.01},null,{"$f":"IF(ISERROR(Dados!C44),\"-\",Dados!C44)","v":"Tecnisa"},{"$f":"IF(ISERROR(Dados!X44),\"0\",Dados!X44)","v":-209},null,{"$f":"IF(ISERROR(Dados!C44),\"-\",Dados!C44)","v":"Tecnisa"},{"$f":"IF(ISERROR(Dados!AB44),\"0\",Dados!AB44)","v":"0"},null,{"$f":"IF(ISERROR(Dados!C44),\"-\",Dados!C44)","v":"Tecnisa"},{"$f":"IF(ISERROR(Dados!S44),\"-\",Dados!S44)","v":0.56198950790792868},null,{"$f":"IF(ISERROR(Dados!C44),\"-\",Dados!C44)","v":"Tecnisa"},{"$f":"IF(ISERROR(Dados!T44),\"-\",Dados!T44)","v":"-"},null,{"$f":"IF(ISERROR(Dados!C44),\"-\",Dados!C44)","v":"Tecnisa"},{"$f":"IF(ISERROR(Dados!U44),\"0\",Dados!U44)","v":-0.26585000000000003},null,{"$f":"IF(ISERROR(Dados!C44),\"-\",Dados!C44)","v":"Tecnisa"},{"$f":"IF(ISERROR(IF(Dados!Z44<0,\"-\",Dados!Z44)),\"-\",IF(Dados!Z44<0,\"-\",Dados!Z44))","v":"-"},null,{"$f":"IF(ISERROR(Dados!C44),\"-\",Dados!C44)","v":"Tecnisa"},{"$f":"IF(ISERROR(Dados!AC44),\"-1000000\",Dados!AC44)","v":2.2999999999999998},null,{"$f":"IF(ISERROR(Dados!C44),\"-\",Dados!C44)","v":"Tecnisa"},{"$f":"IF(ISERROR(Dados!AD44),\"-1000000\",Dados!AD44)","v":-36.4},null,{"$f":"IF(ISERROR(Dados!C44),\"-\",Dados!C44)","v":"Tecnisa"},{"$f":"IF(ISERROR(Dados!AC44),\"-\",Dados!AC44)","v":2.2999999999999998},null,{"$f":"IF(ISERROR(Dados!C44),\"-\",Dados!C44)","v":"Tecnisa"},{"$f":"IF(ISERROR(Dados!AD44),\"-\",Dados!AD44)","v":-36.4}]
[{"$f":"IF(ISERROR(Dados!C111),\"-\",Dados!C111)","v":"Metalfrio"},{"$f":"IF(ISERROR(Dados!F111),\"-\",Dados!F111)","v":195.56},null,{"$f":"IF(ISERROR(Dados!C111),\"-\",Dados!C111)","v":"Metalfrio"},{"$f":"IF(ISERROR(Dados!G111),\"-\",Dados!G111)","v":37.76},null,{"$f":"IF(ISERROR(Dados!C111),\"-\",Dados!C111)","v":"Metalfrio"},{"$f":"IF(ISERROR(Dados!X111),\"0\",Dados!X111)","v":117.8},null,{"$f":"IF(ISERROR(Dados!C111),\"-\",Dados!C111)","v":"Metalfrio"},{"$f":"IF(ISERROR(Dados!AB111),\"0\",Dados!AB111)","v":"0"},null,{"$f":"IF(ISERROR(Dados!C111),\"-\",Dados!C111)","v":"Metalfrio"},{"$f":"IF(ISERROR(Dados!S111),\"-\",Dados!S111)","v":5.1794316737288133},null,{"$f":"IF(ISERROR(Dados!C111),\"-\",Dados!C111)","v":"Metalfrio"},{"$f":"IF(ISERROR(Dados!T111),\"-\",Dados!T111)","v":"-"},null,{"$f":"IF(ISERROR(Dados!C111),\"-\",Dados!C111)","v":"Metalfrio"},{"$f":"IF(ISERROR(Dados!U111),\"0\",Dados!U111)","v":-5.5087000000000004E-2},null,{"$f":"IF(ISERROR(Dados!C111),\"-\",Dados!C111)","v":"Metalfrio"},{"$f":"IF(ISERROR(IF(Dados!Z111<0,\"-\",Dados!Z111)),\"-\",IF(Dados!Z111<0,\"-\",Dados!Z111))","v":4.4973259762309006},null,{"$f":"IF(ISERROR(Dados!C111),\"-\",Dados!C111)","v":"Metalfrio"},{"$f":"IF(ISERROR(Dados!AC111),\"-1000000\",Dados!AC111)","v":-19.3},null,{"$f":"IF(ISERROR(Dados!C111),\"-\",Dados!C111)","v":"Metalfrio"},{"$f":"IF(ISERROR(Dados!AD111),\"-1000000\",Dados!AD111)","v":13.4},null,{"$f":"IF(ISERROR(Dados!C111),\"-\",Dados!C111)","v":"Metalfrio"},{"$f":"IF(ISERROR(Dados!AC111),\"-\",Dados!AC111)","v":-19.3},null,{"$f":"IF(ISERROR(Dados!C111),\"-\",Dados!C111)","v":"Metalfrio"},{"$f":"IF(ISERROR(Dados!AD111),\"-\",Dados!AD111)","v":13.4}]
[{"$f":"IF(ISERROR(Dados!C106),\"-\",Dados!C106)","v":"Eternit"},{"$f":"IF(ISERROR(Dados!F106),\"-\",Dados!F106)","v":61.73},null,{"$f":"IF(ISERROR(Dados!C106),\"-\",Dados!C106)","v":"Eternit"},{"$f":"IF(ISERROR(Dados!G106),\"-\",Dados!G106)","v":12.23},null,{"$f":"IF(ISERROR(Dados!C106),\"-\",Dados!C106)","v":"Eternit"},{"$f":"IF(ISERROR(Dados!X106),\"0\",Dados!X106)","v":-92.3},null,{"$f":"IF(ISERROR(Dados!C106),\"-\",Dados!C106)","v":"Eternit"},{"$f":"IF(ISERROR(Dados!AB106),\"0\",Dados!AB106)","v":"0"},null,{"$f":"IF(ISERROR(Dados!C106),\"-\",Dados!C106)","v":"Eternit"},{"$f":"IF(ISERROR(Dados!S106),\"-\",Dados!S106)","v":5.047719542109566},null,{"$f":"IF(ISERROR(Dados!C106),\"-\",Dados!C106)","v":"Eternit"},{"$f":"IF(ISERROR(Dados!T106),\"-\",Dados!T106)","v":"-"},null,{"$f":"IF(ISERROR(Dados!C106),\"-\",Dados!C106)","v":"Eternit"},{"$f":"IF(ISERROR(Dados!U106),\"0\",Dados!U106)","v":-0.87600100000000003},null,{"$f":"IF(ISERROR(Dados!C106),\"-\",Dados!C106)","v":"Eternit"},{"$f":"IF(ISERROR(IF(Dados!Z106<0,\"-\",Dados!Z106)),\"-\",IF(Dados!Z106<0,\"-\",Dados!Z106))","v":"-"},null,{"$f":"IF(ISERROR(Dados!C106),\"-\",Dados!C106)","v":"Eternit"},{"$f":"IF(ISERROR(Dados!AC106),\"-1000000\",Dados!AC106)","v":-24.5},null,{"$f":"IF(ISERROR(Dados!C106),\"-\",Dados!C106)","v":"Eternit"},{"$f":"IF(ISERROR(Dados!AD106),\"-1000000\",Dados!AD106)","v":-62.5},null,{"$f":"IF(ISERROR(Dados!C106),\"-\",Dados!C106)","v":"Eternit"},{"$f":"IF(ISERROR(Dados!AC106),\"-\",Dados!AC106)","v":-24.5},null,{"$f":"IF(ISERROR(Dados!C106),\"-\",Dados!C106)","v":"Eternit"},{"$f":"IF(ISERROR(Dados!AD106),\"-\",Dados!AD106)","v":-62.5}]
[{"$f":"IF(ISERROR(Dados!C125),\"-\",Dados!C125)","v":"Sanepar"},{"$f":"IF(ISERROR(Dados!F125),\"-\",Dados!F125)","v":7967.41},null,{"$f":"IF(ISERROR(Dados!C125),\"-\",Dados!C125)","v":"Sanepar"},{"$f":"IF(ISERROR(Dados!G125),\"-\",Dados!G125)","v":5717.19},null,{"$f":"IF(ISERROR(Dados!C125),\"-\",Dados!C125)","v":"Sanepar"},{"$f":"IF(ISERROR(Dados!X125),\"0\",Dados!X125)","v":1642},null,{"$f":"IF(ISERROR(Dados!C125),\"-\",Dados!C125)","v":"Sanepar"},{"$f":"IF(ISERROR(Dados!AB125),\"0\",Dados!AB125)","v":3.7452572416883274E-2},null,{"$f":"IF(ISERROR(Dados!C125),\"-\",Dados!C125)","v":"Sanepar"},{"$f":"IF(ISERROR(Dados!S125),\"-\",Dados!S125)","v":6.6037578338309562},null,{"$f":"IF(ISERROR(Dados!C125),\"-\",Dados!C125)","v":"Sanepar"},{"$f":"IF(ISERROR(Dados!T125),\"-\",Dados!T125)","v":42.302925803090233},null,{"$f":"IF(ISERROR(Dados!C125),\"-\",Dados!C125)","v":"Sanepar"},{"$f":"IF(ISERROR(Dados!U125),\"0\",Dados!U125)","v":0.17320900000000003},null,{"$f":"IF(ISERROR(Dados!C125),\"-\",Dados!C125)","v":"Sanepar"},{"$f":"IF(ISERROR(IF(Dados!Z125<0,\"-\",Dados!Z125)),\"-\",IF(Dados!Z125<0,\"-\",Dados!Z125))","v":6.341110840438489},null,{"$f":"IF(ISERROR(Dados!C125),\"-\",Dados!C125)","v":"Sanepar"},{"$f":"IF(ISERROR(Dados!AC125),\"-1000000\",Dados!AC125)","v":-2.8},null,{"$f":"IF(ISERROR(Dados!C125),\"-\",Dados!C125)","v":"Sanepar"},{"$f":"IF(ISERROR(Dados!AD125),\"-1000000\",Dados!AD125)","v":37},null,{"$f":"IF(ISERROR(Dados!C125),\"-\",Dados!C125)","v":"Sanepar"},{"$f":"IF(ISERROR(Dados!AC125),\"-\",Dados!AC125)","v":-2.8},null,{"$f":"IF(ISERROR(Dados!C125),\"-\",Dados!C125)","v":"Sanepar"},{"$f":"IF(ISERROR(Dados!AD125),\"-\",Dados!AD125)","v":37}]
[{"$f":"IF(ISERROR(Dados!C201),\"-\",Dados!C201)","v":"Mundial"},{"$f":"IF(ISERROR(Dados!F201),\"-\",Dados!F201)","v":72.8},null,{"$f":"IF(ISERROR(Dados!C201),\"-\",Dados!C201)","v":"Mundial"},{"$f":"IF(ISERROR(Dados!G201),\"-\",Dados!G201)","v":-134.68},null,{"$f":"IF(ISERROR(Dados!C201),\"-\",Dados!C201)","v":"Mundial"},{"$f":"IF(ISERROR(Dados!X201),\"0\",Dados!X201)","v":69.400000000000006},null,{"$f":"IF(ISERROR(Dados!C201),\"-\",Dados!C201)","v":"Mundial"},{"$f":"IF(ISERROR(Dados!AB201),\"0\",Dados!AB201)","v":"0"},null,{"$f":"IF(ISERROR(Dados!C201),\"-\",Dados!C201)","v":"Mundial"},{"$f":"IF(ISERROR(Dados!S201),\"-\",Dados!S201)","v":"-"},null,{"$f":"IF(ISERROR(Dados!C201),\"-\",Dados!C201)","v":"Mundial"},{"$f":"IF(ISERROR(Dados!T201),\"-\",Dados!T201)","v":23.785437908496736},null,{"$f":"IF(ISERROR(Dados!C201),\"-\",Dados!C201)","v":"Mundial"},{"$f":"IF(ISERROR(Dados!U201),\"0\",Dados!U201)","v":"0"},null,{"$f":"IF(ISERROR(Dados!C201),\"-\",Dados!C201)","v":"Mundial"},{"$f":"IF(ISERROR(IF(Dados!Z201<0,\"-\",Dados!Z201)),\"-\",IF(Dados!Z201<0,\"-\",Dados!Z201))","v":3.7623775216138324},null,{"$f":"IF(ISERROR(Dados!C201),\"-\",Dados!C201)","v":"Mundial"},{"$f":"IF(ISERROR(Dados!AC201),\"-1000000\",Dados!AC201)","v":-0.3},null,{"$f":"IF(ISERROR(Dados!C201),\"-\",Dados!C201)","v":"Mundial"},{"$f":"IF(ISERROR(Dados!AD201),\"-1000000\",Dados!AD201)","v":28.8},null,{"$f":"IF(ISERROR(Dados!C201),\"-\",Dados!C201)","v":"Mundial"},{"$f":"IF(ISERROR(Dados!AC201),\"-\",Dados!AC201)","v":-0.3},null,{"$f":"IF(ISERROR(Dados!C201),\"-\",Dados!C201)","v":"Mundial"},{"$f":"IF(ISERROR(Dados!AD201),\"-\",Dados!AD201)","v":28.8}]
[{"$f":"IF(ISERROR(Dados!C158),\"-\",Dados!C158)","v":"BR Propert"},{"$f":"IF(ISERROR(Dados!F158),\"-\",Dados!F158)","v":3590.5},null,{"$f":"IF(ISERROR(Dados!C158),\"-\",Dados!C158)","v":"BR Propert"},{"$f":"IF(ISERROR(Dados!G158),\"-\",Dados!G158)","v":5870.37},null,{"$f":"IF(ISERROR(Dados!C158),\"-\",Dados!C158)","v":"BR Propert"},{"$f":"IF(ISERROR(Dados!X158),\"0\",Dados!X158)","v":520.5},null,{"$f":"IF(ISERROR(Dados!C158),\"-\",Dados!C158)","v":"BR Propert"},{"$f":"IF(ISERROR(Dados!AB158),\"0\",Dados!AB158)","v":1.8323353293413176E-2},null,{"$f":"IF(ISERROR(Dados!C158),\"-\",Dados!C158)","v":"BR Propert"},{"$f":"IF(ISERROR(Dados!S158),\"-\",Dados!S158)","v":0.61163100451930641},null,{"$f":"IF(ISERROR(Dados!C158),\"-\",Dados!C158)","v":"BR Propert"},{"$f":"IF(ISERROR(Dados!T158),\"-\",Dados!T158)","v":261.88915390226111},null,{"$f":"IF(ISERROR(Dados!C158),\"-\",Dados!C158)","v":"BR Propert"},{"$f":"IF(ISERROR(Dados!U158),\"0\",Dados!U158)","v":2.3319999999999999E-3},null,{"$f":"IF(ISERROR(Dados!C158),\"-\",Dados!C158)","v":"BR Propert"},{"$f":"IF(ISERROR(IF(Dados!Z158<0,\"-\",Dados!Z158)),\"-\",IF(Dados!Z158<0,\"-\",Dados!Z158))","v":10.782197886647454},null,{"$f":"IF(ISERROR(Dados!C158),\"-\",Dados!C158)","v":"BR Propert"},{"$f":"IF(ISERROR(Dados!AC158),\"-1000000\",Dados!AC158)","v":1.6},null,{"$f":"IF(ISERROR(Dados!C158),\"-\",Dados!C158)","v":"BR Propert"},{"$f":"IF(ISERROR(Dados!AD158),\"-1000000\",Dados!AD158)","v":-14.5},null,{"$f":"IF(ISERROR(Dados!C158),\"-\",Dados!C158)","v":"BR Propert"},{"$f":"IF(ISERROR(Dados!AC158),\"-\",Dados!AC158)","v":1.6},null,{"$f":"IF(ISERROR(Dados!C158),\"-\",Dados!C158)","v":"BR Propert"},{"$f":"IF(ISERROR(Dados!AD158),\"-\",Dados!AD158)","v":-14.5}]
[{"$f":"IF(ISERROR(Dados!C184),\"-\",Dados!C184)","v":"Biotoscana"},{"$f":"IF(ISERROR(Dados!F184),\"-\",Dados!F184)","v":894.28},null,{"$f":"IF(ISERROR(Dados!C184),\"-\",Dados!C184)","v":"Biotoscana"},{"$f":"IF(ISERROR(Dados!G184),\"-\",Dados!G184)","v":729.24},null,{"$f":"IF(ISERROR(Dados!C184),\"-\",Dados!C184)","v":"Biotoscana"},{"$f":"IF(ISERROR(Dados!X184),\"0\",Dados!X184)","v":"0"},null,{"$f":"IF(ISERROR(Dados!C184),\"-\",Dados!C184)","v":"Biotoscana"},{"$f":"IF(ISERROR(Dados!AB184),\"0\",Dados!AB184)","v":"0"},null,{"$f":"IF(ISERROR(Dados!C184),\"-\",Dados!C184)","v":"Biotoscana"},{"$f":"IF(ISERROR(Dados!S184),\"-\",Dados!S184)","v":1.2263253798475124},null,{"$f":"IF(ISERROR(Dados!C184),\"-\",Dados!C184)","v":"Biotoscana"},{"$f":"IF(ISERROR(Dados!T184),\"-\",Dados!T184)","v":14.092113457295932},null,{"$f":"IF(ISERROR(Dados!C184),\"-\",Dados!C184)","v":"Biotoscana"},{"$f":"IF(ISERROR(Dados!U184),\"0\",Dados!U184)","v":0.10696},null,{"$f":"IF(ISERROR(Dados!C184),\"-\",Dados!C184)","v":"Biotoscana"},{"$f":"IF(ISERROR(IF(Dados!Z184<0,\"-\",Dados!Z184)),\"-\",IF(Dados!Z184<0,\"-\",Dados!Z184))","v":"-"},null,{"$f":"IF(ISERROR(Dados!C184),\"-\",Dados!C184)","v":"Biotoscana"},{"$f":"IF(ISERROR(Dados!AC184),\"-1000000\",Dados!AC184)","v":-3.3},null,{"$f":"IF(ISERROR(Dados!C184),\"-\",Dados!C184)","v":"Biotoscana"},{"$f":"IF(ISERROR(Dados!AD184),\"-1000000\",Dados!AD184)","v":-59},null,{"$f":"IF(ISERROR(Dados!C184),\"-\",Dados!C184)","v":"Biotoscana"},{"$f":"IF(ISERROR(Dados!AC184),\"-\",Dados!AC184)","v":-3.3},null,{"$f":"IF(ISERROR(Dados!C184),\"-\",Dados!C184)","v":"Biotoscana"},{"$f":"IF(ISERROR(Dados!AD184),\"-\",Dados!AD184)","v":-59}]
[{"$f":"IF(ISERROR(Dados!C13),\"-\",Dados!C13)","v":"BRF SA"},{"$f":"IF(ISERROR(Dados!F13),\"-\",Dados!F13)","v":18378.57},null,{"$f":"IF(ISERROR(Dados!C13),\"-\",Dados!C13)","v":"BRF SA"},{"$f":"IF(ISERROR(Dados!G13),\"-\",Dados!G13)","v":6964.63},null,{"$f":"IF(ISERROR(Dados!C13),\"-\",Dados!C13)","v":"BRF SA"},{"$f":"IF(ISERROR(Dados!X13),\"0\",Dados!X13)","v":1540.9},null,{"$f":"IF(ISERROR(Dados!C13),\"-\",Dados!C13)","v":"BRF SA"},{"$f":"IF(ISERROR(Dados!AB13),\"0\",Dados!AB13)","v":"0"},null,{"$f":"IF(ISERROR(Dados!C13),\"-\",Dados!C13)","v":"BRF SA"},{"$f":"IF(ISERROR(Dados!S13),\"-\",Dados!S13)","v":2.6388440448379882},null,{"$f":"IF(ISERROR(Dados!C13),\"-\",Dados!C13)","v":"BRF SA"},{"$f":"IF(ISERROR(Dados!T13),\"-\",Dados!T13)","v":"-"},null,{"$f":"IF(ISERROR(Dados!C13),\"-\",Dados!C13)","v":"BRF SA"},{"$f":"IF(ISERROR(Dados!U13),\"0\",Dados!U13)","v":-0.38131399999999999},null,{"$f":"IF(ISERROR(Dados!C13),\"-\",Dados!C13)","v":"BRF SA"},{"$f":"IF(ISERROR(IF(Dados!Z13<0,\"-\",Dados!Z13)),\"-\",IF(Dados!Z13<0,\"-\",Dados!Z13))","v":22.822647154260498},null,{"$f":"IF(ISERROR(Dados!C13),\"-\",Dados!C13)","v":"BRF SA"},{"$f":"IF(ISERROR(Dados!AC13),\"-1000000\",Dados!AC13)","v":10.1},null,{"$f":"IF(ISERROR(Dados!C13),\"-\",Dados!C13)","v":"BRF SA"},{"$f":"IF(ISERROR(Dados!AD13),\"-1000000\",Dados!AD13)","v":-38.1},null,{"$f":"IF(ISERROR(Dados!C13),\"-\",Dados!C13)","v":"BRF SA"},{"$f":"IF(ISERROR(Dados!AC13),\"-\",Dados!AC13)","v":10.1},null,{"$f":"IF(ISERROR(Dados!C13),\"-\",Dados!C13)","v":"BRF SA"},{"$f":"IF(ISERROR(Dados!AD13),\"-\",Dados!AD13)","v":-38.1}]
[{"$f":"IF(ISERROR(Dados!C45),\"-\",Dados!C45)","v":"Gafisa"},{"$f":"IF(ISERROR(Dados!F45),\"-\",Dados!F45)","v":339.76},null,{"$f":"IF(ISERROR(Dados!C45),\"-\",Dados!C45)","v":"Gafisa"},{"$f":"IF(ISERROR(Dados!G45),\"-\",Dados!G45)","v":491.32},null,{"$f":"IF(ISERROR(Dados!C45),\"-\",Dados!C45)","v":"Gafisa"},{"$f":"IF(ISERROR(Dados!X45),\"0\",Dados!X45)","v":-341.2},null,{"$f":"IF(ISERROR(Dados!C45),\"-\",Dados!C45)","v":"Gafisa"},{"$f":"IF(ISERROR(Dados!AB45),\"0\",Dados!AB45)","v":"0"},null,{"$f":"IF(ISERROR(Dados!C45),\"-\",Dados!C45)","v":"Gafisa"},{"$f":"IF(ISERROR(Dados!S45),\"-\",Dados!S45)","v":0.69153280957420815},null,{"$f":"IF(ISERROR(Dados!C45),\"-\",Dados!C45)","v":"Gafisa"},{"$f":"IF(ISERROR(Dados!T45),\"-\",Dados!T45)","v":"-"},null,{"$f":"IF(ISERROR(Dados!C45),\"-\",Dados!C45)","v":"Gafisa"},{"$f":"IF(ISERROR(Dados!U45),\"0\",Dados!U45)","v":-0.55474600000000007},null,{"$f":"IF(ISERROR(Dados!C45),\"-\",Dados!C45)","v":"Gafisa"},{"$f":"IF(ISERROR(IF(Dados!Z45<0,\"-\",Dados!Z45)),\"-\",IF(Dados!Z45<0,\"-\",Dados!Z45))","v":"-"},null,{"$f":"IF(ISERROR(Dados!C45),\"-\",Dados!C45)","v":"Gafisa"},{"$f":"IF(ISERROR(Dados!AC45),\"-1000000\",Dados!AC45)","v":-13},null,{"$f":"IF(ISERROR(Dados!C45),\"-\",Dados!C45)","v":"Gafisa"},{"$f":"IF(ISERROR(Dados!AD45),\"-1000000\",Dados!AD45)","v":-58.3},null,{"$f":"IF(ISERROR(Dados!C45),\"-\",Dados!C45)","v":"Gafisa"},{"$f":"IF(ISERROR(Dados!AC45),\"-\",Dados!AC45)","v":-13},null,{"$f":"IF(ISERROR(Dados!C45),\"-\",Dados!C45)","v":"Gafisa"},{"$f":"IF(ISERROR(Dados!AD45),\"-\",Dados!AD45)","v":-58.3}]
[{"$f":"IF(ISERROR(Dados!C224),\"-\",Dados!C224)","v":"Karsten"},{"$f":"IF(ISERROR(Dados!F224),\"-\",Dados!F224)","v":20.48},null,{"$f":"IF(ISERROR(Dados!C224),\"-\",Dados!C224)","v":"Karsten"},{"$f":"IF(ISERROR(Dados!G224),\"-\",Dados!G224)","v":-260.17},null,{"$f":"IF(ISERROR(Dados!C224),\"-\",Dados!C224)","v":"Karsten"},{"$f":"IF(ISERROR(Dados!X224),\"0\",Dados!X224)","v":54.8},null,{"$f":"IF(ISERROR(Dados!C224),\"-\",Dados!C224)","v":"Karsten"},{"$f":"IF(ISERROR(Dados!AB224),\"0\",Dados!AB224)","v":"0"},null,{"$f":"IF(ISERROR(Dados!C224),\"-\",Dados!C224)","v":"Karsten"},{"$f":"IF(ISERROR(Dados!S224),\"-\",Dados!S224)","v":"-"},null,{"$f":"IF(ISERROR(Dados!C224),\"-\",Dados!C224)","v":"Karsten"},{"$f":"IF(ISERROR(Dados!T224),\"-\",Dados!T224)","v":"-"},null,{"$f":"IF(ISERROR(Dados!C224),\"-\",Dados!C224)","v":"Karsten"},{"$f":"IF(ISERROR(Dados!U224),\"0\",Dados!U224)","v":"0"},null,{"$f":"IF(ISERROR(Dados!C224),\"-\",Dados!C224)","v":"Karsten"},{"$f":"IF(ISERROR(IF(Dados!Z224<0,\"-\",Dados!Z224)),\"-\",IF(Dados!Z224<0,\"-\",Dados!Z224))","v":9.1640145985401471},null,{"$f":"IF(ISERROR(Dados!C224),\"-\",Dados!C224)","v":"Karsten"},{"$f":"IF(ISERROR(Dados!AC224),\"-1000000\",Dados!AC224)","v":-17.5},null,{"$f":"IF(ISERROR(Dados!C224),\"-\",Dados!C224)","v":"Karsten"},{"$f":"IF(ISERROR(Dados!AD224),\"-1000000\",Dados!AD224)","v":18.3},null,{"$f":"IF(ISERROR(Dados!C224),\"-\",Dados!C224)","v":"Karsten"},{"$f":"IF(ISERROR(Dados!AC224),\"-\",Dados!AC224)","v":-17.5},null,{"$f":"IF(ISERROR(Dados!C224),\"-\",Dados!C224)","v":"Karsten"},{"$f":"IF(ISERROR(Dados!AD224),\"-\",Dados!AD224)","v":18.3}]
[{"$f":"IF(ISERROR(Dados!C119),\"-\",Dados!C119)","v":"Localiza"},{"$f":"IF(ISERROR(Dados!F119),\"-\",Dados!F119)","v":23710.14},null,{"$f":"IF(ISERROR(Dados!C119),\"-\",Dados!C119)","v":"Localiza"},{"$f":"IF(ISERROR(Dados!G119),\"-\",Dados!G119)","v":3094.5},null,{"$f":"IF(ISERROR(Dados!C119),\"-\",Dados!C119)","v":"Localiza"},{"$f":"IF(ISERROR(Dados!X119),\"0\",Dados!X119)","v":1590.1},null,{"$f":"IF(ISERROR(Dados!C119),\"-\",Dados!C119)","v":"Localiza"},{"$f":"IF(ISERROR(Dados!AB119),\"0\",Dados!AB119)","v":7.2673548110639584E-3},null,{"$f":"IF(ISERROR(Dados!C119),\"-\",Dados!C119)","v":"Localiza"},{"$f":"IF(ISERROR(Dados!S119),\"-\",Dados!S119)","v":7.6620249151720792},null,{"$f":"IF(ISERROR(Dados!C119),\"-\",Dados!C119)","v":"Localiza"},{"$f":"IF(ISERROR(Dados!T119),\"-\",Dados!T119)","v":35.967500644711095},null,{"$f":"IF(ISERROR(Dados!C119),\"-\",Dados!C119)","v":"Localiza"},{"$f":"IF(ISERROR(Dados!U119),\"0\",Dados!U119)","v":0.253471},null,{"$f":"IF(ISERROR(Dados!C119),\"-\",Dados!C119)","v":"Localiza"},{"$f":"IF(ISERROR(IF(Dados!Z119<0,\"-\",Dados!Z119)),\"-\",IF(Dados!Z119<0,\"-\",Dados!Z119))","v":18.183341928180617},null,{"$f":"IF(ISERROR(Dados!C119),\"-\",Dados!C119)","v":"Localiza"},{"$f":"IF(ISERROR(Dados!AC119),\"-1000000\",Dados!AC119)","v":-4},null,{"$f":"IF(ISERROR(Dados!C119),\"-\",Dados!C119)","v":"Localiza"},{"$f":"IF(ISERROR(Dados!AD119),\"-1000000\",Dados!AD119)","v":52.3},null,{"$f":"IF(ISERROR(Dados!C119),\"-\",Dados!C119)","v":"Localiza"},{"$f":"IF(ISERROR(Dados!AC119),\"-\",Dados!AC119)","v":-4},null,{"$f":"IF(ISERROR(Dados!C119),\"-\",Dados!C119)","v":"Localiza"},{"$f":"IF(ISERROR(Dados!AD119),\"-\",Dados!AD119)","v":52.3}]
[{"$f":"IF(ISERROR(Dados!C162),\"-\",Dados!C162)","v":"Generalshopp"},{"$f":"IF(ISERROR(Dados!F162),\"-\",Dados!F162)","v":73.59},null,{"$f":"IF(ISERROR(Dados!C162),\"-\",Dados!C162)","v":"Generalshopp"},{"$f":"IF(ISERROR(Dados!G162),\"-\",Dados!G162)","v":38.68},null,{"$f":"IF(ISERROR(Dados!C162),\"-\",Dados!C162)","v":"Generalshopp"},{"$f":"IF(ISERROR(Dados!X162),\"0\",Dados!X162)","v":57},null,{"$f":"IF(ISERROR(Dados!C162),\"-\",Dados!C162)","v":"Generalshopp"},{"$f":"IF(ISERROR(Dados!AB162),\"0\",Dados!AB162)","v":"0"},null,{"$f":"IF(ISERROR(Dados!C162),\"-\",Dados!C162)","v":"Generalshopp"},{"$f":"IF(ISERROR(Dados!S162),\"-\",Dados!S162)","v":1.9024839710444676},null,{"$f":"IF(ISERROR(Dados!C162),\"-\",Dados!C162)","v":"Generalshopp"},{"$f":"IF(ISERROR(Dados!T162),\"-\",Dados!T162)","v":"-"},null,{"$f":"IF(ISERROR(Dados!C162),\"-\",Dados!C162)","v":"Generalshopp"},{"$f":"IF(ISERROR(Dados!U162),\"0\",Dados!U162)","v":-0.29154199999999997},null,{"$f":"IF(ISERROR(Dados!C162),\"-\",Dados!C162)","v":"Generalshopp"},{"$f":"IF(ISERROR(IF(Dados!Z162<0,\"-\",Dados!Z162)),\"-\",IF(Dados!Z162<0,\"-\",Dados!Z162))","v":13.95698245614035},null,{"$f":"IF(ISERROR(Dados!C162),\"-\",Dados!C162)","v":"Generalshopp"},{"$f":"IF(ISERROR(Dados!AC162),\"-1000000\",Dados!AC162)","v":12799.7},null,{"$f":"IF(ISERROR(Dados!C162),\"-\",Dados!C162)","v":"Generalshopp"},{"$f":"IF(ISERROR(Dados!AD162),\"-1000000\",Dados!AD162)","v":13567.8},null,{"$f":"IF(ISERROR(Dados!C162),\"-\",Dados!C162)","v":"Generalshopp"},{"$f":"IF(ISERROR(Dados!AC162),\"-\",Dados!AC162)","v":12799.7},null,{"$f":"IF(ISERROR(Dados!C162),\"-\",Dados!C162)","v":"Generalshopp"},{"$f":"IF(ISERROR(Dados!AD162),\"-\",Dados!AD162)","v":13567.8}]
[{"$f":"IF(ISERROR(Dados!C14),\"-\",Dados!C14)","v":"Minerva"},{"$f":"IF(ISERROR(Dados!F14),\"-\",Dados!F14)","v":2623.15},null,{"$f":"IF(ISERROR(Dados!C14),\"-\",Dados!C14)","v":"Minerva"},{"$f":"IF(ISERROR(Dados!G14),\"-\",Dados!G14)","v":-301.11},null,{"$f":"IF(ISERROR(Dados!C14),\"-\",Dados!C14)","v":"Minerva"},{"$f":"IF(ISERROR(Dados!X14),\"0\",Dados!X14)","v":896.2},null,{"$f":"IF(ISERROR(Dados!C14),\"-\",Dados!C14)","v":"Minerva"},{"$f":"IF(ISERROR(Dados!AB14),\"0\",Dados!AB14)","v":"0"},null,{"$f":"IF(ISERROR(Dados!C14),\"-\",Dados!C14)","v":"Minerva"},{"$f":"IF(ISERROR(Dados!S14),\"-\",Dados!S14)","v":"-"},null,{"$f":"IF(ISERROR(Dados!C14),\"-\",Dados!C14)","v":"Minerva"},{"$f":"IF(ISERROR(Dados!T14),\"-\",Dados!T14)","v":"-"},null,{"$f":"IF(ISERROR(Dados!C14),\"-\",Dados!C14)","v":"Minerva"},{"$f":"IF(ISERROR(Dados!U14),\"0\",Dados!U14)","v":-17.794532999999998},null,{"$f":"IF(ISERROR(Dados!C14),\"-\",Dados!C14)","v":"Minerva"},{"$f":"IF(ISERROR(IF(Dados!Z14<0,\"-\",Dados!Z14)),\"-\",IF(Dados!Z14<0,\"-\",Dados!Z14))","v":9.7006683775942868},null,{"$f":"IF(ISERROR(Dados!C14),\"-\",Dados!C14)","v":"Minerva"},{"$f":"IF(ISERROR(Dados!AC14),\"-1000000\",Dados!AC14)","v":10.199999999999999},null,{"$f":"IF(ISERROR(Dados!C14),\"-\",Dados!C14)","v":"Minerva"},{"$f":"IF(ISERROR(Dados!AD14),\"-1000000\",Dados!AD14)","v":-34},null,{"$f":"IF(ISERROR(Dados!C14),\"-\",Dados!C14)","v":"Minerva"},{"$f":"IF(ISERROR(Dados!AC14),\"-\",Dados!AC14)","v":10.199999999999999},null,{"$f":"IF(ISERROR(Dados!C14),\"-\",Dados!C14)","v":"Minerva"},{"$f":"IF(ISERROR(Dados!AD14),\"-\",Dados!AD14)","v":-34}]
[{"$f":"IF(ISERROR(Dados!C27),\"-\",Dados!C27)","v":"Lojas Marisa"},{"$f":"IF(ISERROR(Dados!F27),\"-\",Dados!F27)","v":1313.52},null,{"$f":"IF(ISERROR(Dados!C27),\"-\",Dados!C27)","v":"Lojas Marisa"},{"$f":"IF(ISERROR(Dados!G27),\"-\",Dados!G27)","v":973.65},null,{"$f":"IF(ISERROR(Dados!C27),\"-\",Dados!C27)","v":"Lojas Marisa"},{"$f":"IF(ISERROR(Dados!X27),\"0\",Dados!X27)","v":417.9},null,{"$f":"IF(ISERROR(Dados!C27),\"-\",Dados!C27)","v":"Lojas Marisa"},{"$f":"IF(ISERROR(Dados!AB27),\"0\",Dados!AB27)","v":"0"},null,{"$f":"IF(ISERROR(Dados!C27),\"-\",Dados!C27)","v":"Lojas Marisa"},{"$f":"IF(ISERROR(Dados!S27),\"-\",Dados!S27)","v":1.349068351050172},null,{"$f":"IF(ISERROR(Dados!C27),\"-\",Dados!C27)","v":"Lojas Marisa"},{"$f":"IF(ISERROR(Dados!T27),\"-\",Dados!T27)","v":46.315952045133983},null,{"$f":"IF(ISERROR(Dados!C27),\"-\",Dados!C27)","v":"Lojas Marisa"},{"$f":"IF(ISERROR(Dados!U27),\"0\",Dados!U27)","v":2.9555999999999999E-2},null,{"$f":"IF(ISERROR(Dados!C27),\"-\",Dados!C27)","v":"Lojas Marisa"},{"$f":"IF(ISERROR(IF(Dados!Z27<0,\"-\",Dados!Z27)),\"-\",IF(Dados!Z27<0,\"-\",Dados!Z27))","v":4.6257860732232592},null,{"$f":"IF(ISERROR(Dados!C27),\"-\",Dados!C27)","v":"Lojas Marisa"},{"$f":"IF(ISERROR(Dados!AC27),\"-1000000\",Dados!AC27)","v":4.4000000000000004},null,{"$f":"IF(ISERROR(Dados!C27),\"-\",Dados!C27)","v":"Lojas Marisa"},{"$f":"IF(ISERROR(Dados!AD27),\"-1000000\",Dados!AD27)","v":-11.3},null,{"$f":"IF(ISERROR(Dados!C27),\"-\",Dados!C27)","v":"Lojas Marisa"},{"$f":"IF(ISERROR(Dados!AC27),\"-\",Dados!AC27)","v":4.4000000000000004},null,{"$f":"IF(ISERROR(Dados!C27),\"-\",Dados!C27)","v":"Lojas Marisa"},{"$f":"IF(ISERROR(Dados!AD27),\"-\",Dados!AD27)","v":-11.3}]
[{"$f":"IF(ISERROR(Dados!C242),\"-\",Dados!C242)","v":"Fras-Le"},{"$f":"IF(ISERROR(Dados!F242),\"-\",Dados!F242)","v":1094.29},null,{"$f":"IF(ISERROR(Dados!C242),\"-\",Dados!C242)","v":"Fras-Le"},{"$f":"IF(ISERROR(Dados!G242),\"-\",Dados!G242)","v":807.13},null,{"$f":"IF(ISERROR(Dados!C242),\"-\",Dados!C242)","v":"Fras-Le"},{"$f":"IF(ISERROR(Dados!X242),\"0\",Dados!X242)","v":183.8},null,{"$f":"IF(ISERROR(Dados!C242),\"-\",Dados!C242)","v":"Fras-Le"},{"$f":"IF(ISERROR(Dados!AB242),\"0\",Dados!AB242)","v":4.2027250546016144E-2},null,{"$f":"IF(ISERROR(Dados!C242),\"-\",Dados!C242)","v":"Fras-Le"},{"$f":"IF(ISERROR(Dados!S242),\"-\",Dados!S242)","v":1.3557749061489475},null,{"$f":"IF(ISERROR(Dados!C242),\"-\",Dados!C242)","v":"Fras-Le"},{"$f":"IF(ISERROR(Dados!T242),\"-\",Dados!T242)","v":11.724918032786885},null,{"$f":"IF(ISERROR(Dados!C242),\"-\",Dados!C242)","v":"Fras-Le"},{"$f":"IF(ISERROR(Dados!U242),\"0\",Dados!U242)","v":0.11310199999999999},null,{"$f":"IF(ISERROR(Dados!C242),\"-\",Dados!C242)","v":"Fras-Le"},{"$f":"IF(ISERROR(IF(Dados!Z242<0,\"-\",Dados!Z242)),\"-\",IF(Dados!Z242<0,\"-\",Dados!Z242))","v":6.7217573449401522},null,{"$f":"IF(ISERROR(Dados!C242),\"-\",Dados!C242)","v":"Fras-Le"},{"$f":"IF(ISERROR(Dados!AC242),\"-1000000\",Dados!AC242)","v":1.8},null,{"$f":"IF(ISERROR(Dados!C242),\"-\",Dados!C242)","v":"Fras-Le"},{"$f":"IF(ISERROR(Dados!AD242),\"-1000000\",Dados!AD242)","v":"-1000000"},null,{"$f":"IF(ISERROR(Dados!C242),\"-\",Dados!C242)","v":"Fras-Le"},{"$f":"IF(ISERROR(Dados!AC242),\"-\",Dados!AC242)","v":1.8},null,{"$f":"IF(ISERROR(Dados!C242),\"-\",Dados!C242)","v":"Fras-Le"},{"$f":"IF(ISERROR(Dados!AD242),\"-\",Dados!AD242)","v":"-"}]
[{"$f":"IF(ISERROR(Dados!C112),\"-\",Dados!C112)","v":"Bardella"},{"$f":"IF(ISERROR(Dados!F112),\"-\",Dados!F112)","v":22.24},null,{"$f":"IF(ISERROR(Dados!C112),\"-\",Dados!C112)","v":"Bardella"},{"$f":"IF(ISERROR(Dados!G112),\"-\",Dados!G112)","v":126.62},null,{"$f":"IF(ISERROR(Dados!C112),\"-\",Dados!C112)","v":"Bardella"},{"$f":"IF(ISERROR(Dados!X112),\"0\",Dados!X112)","v":"0"},null,{"$f":"IF(ISERROR(Dados!C112),\"-\",Dados!C112)","v":"Bardella"},{"$f":"IF(ISERROR(Dados!AB112),\"0\",Dados!AB112)","v":"0"},null,{"$f":"IF(ISERROR(Dados!C112),\"-\",Dados!C112)","v":"Bardella"},{"$f":"IF(ISERROR(Dados!S112),\"-\",Dados!S112)","v":0.17564365818985941},null,{"$f":"IF(ISERROR(Dados!C112),\"-\",Dados!C112)","v":"Bardella"},{"$f":"IF(ISERROR(Dados!T112),\"-\",Dados!T112)","v":"-"},null,{"$f":"IF(ISERROR(Dados!C112),\"-\",Dados!C112)","v":"Bardella"},{"$f":"IF(ISERROR(Dados!U112),\"0\",Dados!U112)","v":-0.47607300000000002},null,{"$f":"IF(ISERROR(Dados!C112),\"-\",Dados!C112)","v":"Bardella"},{"$f":"IF(ISERROR(IF(Dados!Z112<0,\"-\",Dados!Z112)),\"-\",IF(Dados!Z112<0,\"-\",Dados!Z112))","v":"-"},null,{"$f":"IF(ISERROR(Dados!C112),\"-\",Dados!C112)","v":"Bardella"},{"$f":"IF(ISERROR(Dados!AC112),\"-1000000\",Dados!AC112)","v":-2.7},null,{"$f":"IF(ISERROR(Dados!C112),\"-\",Dados!C112)","v":"Bardella"},{"$f":"IF(ISERROR(Dados!AD112),\"-1000000\",Dados!AD112)","v":-53.3},null,{"$f":"IF(ISERROR(Dados!C112),\"-\",Dados!C112)","v":"Bardella"},{"$f":"IF(ISERROR(Dados!AC112),\"-\",Dados!AC112)","v":-2.7},null,{"$f":"IF(ISERROR(Dados!C112),\"-\",Dados!C112)","v":"Bardella"},{"$f":"IF(ISERROR(Dados!AD112),\"-\",Dados!AD112)","v":-53.3}]
[{"$f":"IF(ISERROR(Dados!C131),\"-\",Dados!C131)","v":"Bradespar"},{"$f":"IF(ISERROR(Dados!F131),\"-\",Dados!F131)","v":10520.75},null,{"$f":"IF(ISERROR(Dados!C131),\"-\",Dados!C131)","v":"Bradespar"},{"$f":"IF(ISERROR(Dados!G131),\"-\",Dados!G131)","v":9959.84},null,{"$f":"IF(ISERROR(Dados!C131),\"-\",Dados!C131)","v":"Bradespar"},{"$f":"IF(ISERROR(Dados!X131),\"0\",Dados!X131)","v":1234.3},null,{"$f":"IF(ISERROR(Dados!C131),\"-\",Dados!C131)","v":"Bradespar"},{"$f":"IF(ISERROR(Dados!AB131),\"0\",Dados!AB131)","v":6.8381056483615713E-2},null,{"$f":"IF(ISERROR(Dados!C131),\"-\",Dados!C131)","v":"Bradespar"},{"$f":"IF(ISERROR(Dados!S131),\"-\",Dados!S131)","v":1.1147051157448311},null,{"$f":"IF(ISERROR(Dados!C131),\"-\",Dados!C131)","v":"Bradespar"},{"$f":"IF(ISERROR(Dados!T131),\"-\",Dados!T131)","v":9.3257325493490111},null,{"$f":"IF(ISERROR(Dados!C131),\"-\",Dados!C131)","v":"Bradespar"},{"$f":"IF(ISERROR(Dados!U131),\"0\",Dados!U131)","v":0.13519100000000001},null,{"$f":"IF(ISERROR(Dados!C131),\"-\",Dados!C131)","v":"Bradespar"},{"$f":"IF(ISERROR(IF(Dados!Z131<0,\"-\",Dados!Z131)),\"-\",IF(Dados!Z131<0,\"-\",Dados!Z131))","v":8.3211536903508065},null,{"$f":"IF(ISERROR(Dados!C131),\"-\",Dados!C131)","v":"Bradespar"},{"$f":"IF(ISERROR(Dados!AC131),\"-1000000\",Dados!AC131)","v":10.7},null,{"$f":"IF(ISERROR(Dados!C131),\"-\",Dados!C131)","v":"Bradespar"},{"$f":"IF(ISERROR(Dados!AD131),\"-1000000\",Dados!AD131)","v":17.5},null,{"$f":"IF(ISERROR(Dados!C131),\"-\",Dados!C131)","v":"Bradespar"},{"$f":"IF(ISERROR(Dados!AC131),\"-\",Dados!AC131)","v":10.7},null,{"$f":"IF(ISERROR(Dados!C131),\"-\",Dados!C131)","v":"Bradespar"},{"$f":"IF(ISERROR(Dados!AD131),\"-\",Dados!AD131)","v":17.5}]
[{"$f":"IF(ISERROR(Dados!C43),\"-\",Dados!C43)","v":"Helbor"},{"$f":"IF(ISERROR(Dados!F43),\"-\",Dados!F43)","v":601.33000000000004},null,{"$f":"IF(ISERROR(Dados!C43),\"-\",Dados!C43)","v":"Helbor"},{"$f":"IF(ISERROR(Dados!G43),\"-\",Dados!G43)","v":823.34},null,{"$f":"IF(ISERROR(Dados!C43),\"-\",Dados!C43)","v":"Helbor"},{"$f":"IF(ISERROR(Dados!X43),\"0\",Dados!X43)","v":-305.39999999999998},null,{"$f":"IF(ISERROR(Dados!C43),\"-\",Dados!C43)","v":"Helbor"},{"$f":"IF(ISERROR(Dados!AB43),\"0\",Dados!AB43)","v":"0"},null,{"$f":"IF(ISERROR(Dados!C43),\"-\",Dados!C43)","v":"Helbor"},{"$f":"IF(ISERROR(Dados!S43),\"-\",Dados!S43)","v":0.73035147083829277},null,{"$f":"IF(ISERROR(Dados!C43),\"-\",Dados!C43)","v":"Helbor"},{"$f":"IF(ISERROR(Dados!T43),\"-\",Dados!T43)","v":"-"},null,{"$f":"IF(ISERROR(Dados!C43),\"-\",Dados!C43)","v":"Helbor"},{"$f":"IF(ISERROR(Dados!U43),\"0\",Dados!U43)","v":-0.18989999999999999},null,{"$f":"IF(ISERROR(Dados!C43),\"-\",Dados!C43)","v":"Helbor"},{"$f":"IF(ISERROR(IF(Dados!Z43<0,\"-\",Dados!Z43)),\"-\",IF(Dados!Z43<0,\"-\",Dados!Z43))","v":"-"},null,{"$f":"IF(ISERROR(Dados!C43),\"-\",Dados!C43)","v":"Helbor"},{"$f":"IF(ISERROR(Dados!AC43),\"-1000000\",Dados!AC43)","v":-5.7},null,{"$f":"IF(ISERROR(Dados!C43),\"-\",Dados!C43)","v":"Helbor"},{"$f":"IF(ISERROR(Dados!AD43),\"-1000000\",Dados!AD43)","v":-32.1},null,{"$f":"IF(ISERROR(Dados!C43),\"-\",Dados!C43)","v":"Helbor"},{"$f":"IF(ISERROR(Dados!AC43),\"-\",Dados!AC43)","v":-5.7},null,{"$f":"IF(ISERROR(Dados!C43),\"-\",Dados!C43)","v":"Helbor"},{"$f":"IF(ISERROR(Dados!AD43),\"-\",Dados!AD43)","v":-32.1}]
[{"$f":"IF(ISERROR(Dados!C126),\"-\",Dados!C126)","v":"Itausa"},{"$f":"IF(ISERROR(Dados!F126),\"-\",Dados!F126)","v":108504.93},null,{"$f":"IF(ISERROR(Dados!C126),\"-\",Dados!C126)","v":"Itausa"},{"$f":"IF(ISERROR(Dados!G126),\"-\",Dados!G126)","v":55143},null,{"$f":"IF(ISERROR(Dados!C126),\"-\",Dados!C126)","v":"Itausa"},{"$f":"IF(ISERROR(Dados!X126),\"0\",Dados!X126)","v":10752},null,{"$f":"IF(ISERROR(Dados!C126),\"-\",Dados!C126)","v":"Itausa"},{"$f":"IF(ISERROR(Dados!AB126),\"0\",Dados!AB126)","v":6.0845161597726488E-2},null,{"$f":"IF(ISERROR(Dados!C126),\"-\",Dados!C126)","v":"Itausa"},{"$f":"IF(ISERROR(Dados!S126),\"-\",Dados!S126)","v":1.8272520907458789},null,{"$f":"IF(ISERROR(Dados!C126),\"-\",Dados!C126)","v":"Itausa"},{"$f":"IF(ISERROR(Dados!T126),\"-\",Dados!T126)","v":10.67827066977533},null,{"$f":"IF(ISERROR(Dados!C126),\"-\",Dados!C126)","v":"Itausa"},{"$f":"IF(ISERROR(Dados!U126),\"0\",Dados!U126)","v":0.172708},null,{"$f":"IF(ISERROR(Dados!C126),\"-\",Dados!C126)","v":"Itausa"},{"$f":"IF(ISERROR(IF(Dados!Z126<0,\"-\",Dados!Z126)),\"-\",IF(Dados!Z126<0,\"-\",Dados!Z126))","v":10.149268043154761},null,{"$f":"IF(ISERROR(Dados!C126),\"-\",Dados!C126)","v":"Itausa"},{"$f":"IF(ISERROR(Dados!AC126),\"-1000000\",Dados!AC126)","v":-3},null,{"$f":"IF(ISERROR(Dados!C126),\"-\",Dados!C126)","v":"Itausa"},{"$f":"IF(ISERROR(Dados!AD126),\"-1000000\",Dados!AD126)","v":40.799999999999997},null,{"$f":"IF(ISERROR(Dados!C126),\"-\",Dados!C126)","v":"Itausa"},{"$f":"IF(ISERROR(Dados!AC126),\"-\",Dados!AC126)","v":-3},null,{"$f":"IF(ISERROR(Dados!C126),\"-\",Dados!C126)","v":"Itausa"},{"$f":"IF(ISERROR(Dados!AD126),\"-\",Dados!AD126)","v":40.799999999999997}]
[{"$f":"IF(ISERROR(Dados!C4),\"-\",Dados!C4)","v":"Biosev"},{"$f":"IF(ISERROR(Dados!F4),\"-\",Dados!F4)","v":2724.55},null,{"$f":"IF(ISERROR(Dados!C4),\"-\",Dados!C4)","v":"Biosev"},{"$f":"IF(ISERROR(Dados!G4),\"-\",Dados!G4)","v":624.41999999999996},null,{"$f":"IF(ISERROR(Dados!C4),\"-\",Dados!C4)","v":"Biosev"},{"$f":"IF(ISERROR(Dados!X4),\"0\",Dados!X4)","v":1050.0999999999999},null,{"$f":"IF(ISERROR(Dados!C4),\"-\",Dados!C4)","v":"Biosev"},{"$f":"IF(ISERROR(Dados!AB4),\"0\",Dados!AB4)","v":"0"},null,{"$f":"IF(ISERROR(Dados!C4),\"-\",Dados!C4)","v":"Biosev"},{"$f":"IF(ISERROR(Dados!S4),\"-\",Dados!S4)","v":4.3633218506774289},null,{"$f":"IF(ISERROR(Dados!C4),\"-\",Dados!C4)","v":"Biosev"},{"$f":"IF(ISERROR(Dados!T4),\"-\",Dados!T4)","v":"-"},null,{"$f":"IF(ISERROR(Dados!C4),\"-\",Dados!C4)","v":"Biosev"},{"$f":"IF(ISERROR(Dados!U4),\"0\",Dados!U4)","v":"0"},null,{"$f":"IF(ISERROR(Dados!C4),\"-\",Dados!C4)","v":"Biosev"},{"$f":"IF(ISERROR(IF(Dados!Z4<0,\"-\",Dados!Z4)),\"-\",IF(Dados!Z4<0,\"-\",Dados!Z4))","v":7.7129654624851129},null,{"$f":"IF(ISERROR(Dados!C4),\"-\",Dados!C4)","v":"Biosev"},{"$f":"IF(ISERROR(Dados!AC4),\"-1000000\",Dados!AC4)","v":-8.6},null,{"$f":"IF(ISERROR(Dados!C4),\"-\",Dados!C4)","v":"Biosev"},{"$f":"IF(ISERROR(Dados!AD4),\"-1000000\",Dados!AD4)","v":-40.799999999999997},null,{"$f":"IF(ISERROR(Dados!C4),\"-\",Dados!C4)","v":"Biosev"},{"$f":"IF(ISERROR(Dados!AC4),\"-\",Dados!AC4)","v":-8.6},null,{"$f":"IF(ISERROR(Dados!C4),\"-\",Dados!C4)","v":"Biosev"},{"$f":"IF(ISERROR(Dados!AD4),\"-\",Dados!AD4)","v":-40.799999999999997}]
[{"$f":"IF(ISERROR(Dados!C5),\"-\",Dados!C5)","v":"Pomifrutas"},{"$f":"IF(ISERROR(Dados!F5),\"-\",Dados!F5)","v":10.69},null,{"$f":"IF(ISERROR(Dados!C5),\"-\",Dados!C5)","v":"Pomifrutas"},{"$f":"IF(ISERROR(Dados!G5),\"-\",Dados!G5)","v":-68.56},null,{"$f":"IF(ISERROR(Dados!C5),\"-\",Dados!C5)","v":"Pomifrutas"},{"$f":"IF(ISERROR(Dados!X5),\"0\",Dados!X5)","v":-10.8},null,{"$f":"IF(ISERROR(Dados!C5),\"-\",Dados!C5)","v":"Pomifrutas"},{"$f":"IF(ISERROR(Dados!AB5),\"0\",Dados!AB5)","v":"0"},null,{"$f":"IF(ISERROR(Dados!C5),\"-\",Dados!C5)","v":"Pomifrutas"},{"$f":"IF(ISERROR(Dados!S5),\"-\",Dados!S5)","v":"-"},null,{"$f":"IF(ISERROR(Dados!C5),\"-\",Dados!C5)","v":"Pomifrutas"},{"$f":"IF(ISERROR(Dados!T5),\"-\",Dados!T5)","v":"-"},null,{"$f":"IF(ISERROR(Dados!C5),\"-\",Dados!C5)","v":"Pomifrutas"},{"$f":"IF(ISERROR(Dados!U5),\"0\",Dados!U5)","v":"0"},null,{"$f":"IF(ISERROR(Dados!C5),\"-\",Dados!C5)","v":"Pomifrutas"},{"$f":"IF(ISERROR(IF(Dados!Z5<0,\"-\",Dados!Z5)),\"-\",IF(Dados!Z5<0,\"-\",Dados!Z5))","v":"-"},null,{"$f":"IF(ISERROR(Dados!C5),\"-\",Dados!C5)","v":"Pomifrutas"},{"$f":"IF(ISERROR(Dados!AC5),\"-1000000\",Dados!AC5)","v":-6.3},null,{"$f":"IF(ISERROR(Dados!C5),\"-\",Dados!C5)","v":"Pomifrutas"},{"$f":"IF(ISERROR(Dados!AD5),\"-1000000\",Dados!AD5)","v":-38.200000000000003},null,{"$f":"IF(ISERROR(Dados!C5),\"-\",Dados!C5)","v":"Pomifrutas"},{"$f":"IF(ISERROR(Dados!AC5),\"-\",Dados!AC5)","v":-6.3},null,{"$f":"IF(ISERROR(Dados!C5),\"-\",Dados!C5)","v":"Pomifrutas"},{"$f":"IF(ISERROR(Dados!AD5),\"-\",Dados!AD5)","v":-38.200000000000003}]
[{"$f":"IF(ISERROR(Dados!C114),\"-\",Dados!C114)","v":"Hapvida"},{"$f":"IF(ISERROR(Dados!F114),\"-\",Dados!F114)","v":20669.45},null,{"$f":"IF(ISERROR(Dados!C114),\"-\",Dados!C114)","v":"Hapvida"},{"$f":"IF(ISERROR(Dados!G114),\"-\",Dados!G114)","v":3602.54},null,{"$f":"IF(ISERROR(Dados!C114),\"-\",Dados!C114)","v":"Hapvida"},{"$f":"IF(ISERROR(Dados!X114),\"0\",Dados!X114)","v":913},null,{"$f":"IF(ISERROR(Dados!C114),\"-\",Dados!C114)","v":"Hapvida"},{"$f":"IF(ISERROR(Dados!AB114),\"0\",Dados!AB114)","v":3.9781900340841191E-2},null,{"$f":"IF(ISERROR(Dados!C114),\"-\",Dados!C114)","v":"Hapvida"},{"$f":"IF(ISERROR(Dados!S114),\"-\",Dados!S114)","v":5.7374682418515821},null,{"$f":"IF(ISERROR(Dados!C114),\"-\",Dados!C114)","v":"Hapvida"},{"$f":"IF(ISERROR(Dados!T114),\"-\",Dados!T114)","v":26.247931781528184},null,{"$f":"IF(ISERROR(Dados!C114),\"-\",Dados!C114)","v":"Hapvida"},{"$f":"IF(ISERROR(Dados!U114),\"0\",Dados!U114)","v":1.6701889999999999},null,{"$f":"IF(ISERROR(Dados!C114),\"-\",Dados!C114)","v":"Hapvida"},{"$f":"IF(ISERROR(IF(Dados!Z114<0,\"-\",Dados!Z114)),\"-\",IF(Dados!Z114<0,\"-\",Dados!Z114))","v":21.666596933187293},null,{"$f":"IF(ISERROR(Dados!C114),\"-\",Dados!C114)","v":"Hapvida"},{"$f":"IF(ISERROR(Dados!AC114),\"-1000000\",Dados!AC114)","v":-5.6},null,{"$f":"IF(ISERROR(Dados!C114),\"-\",Dados!C114)","v":"Hapvida"},{"$f":"IF(ISERROR(Dados!AD114),\"-1000000\",Dados!AD114)","v":"-1000000"},null,{"$f":"IF(ISERROR(Dados!C114),\"-\",Dados!C114)","v":"Hapvida"},{"$f":"IF(ISERROR(Dados!AC114),\"-\",Dados!AC114)","v":-5.6},null,{"$f":"IF(ISERROR(Dados!C114),\"-\",Dados!C114)","v":"Hapvida"},{"$f":"IF(ISERROR(Dados!AD114),\"-\",Dados!AD114)","v":"-"}]
[{"$f":"IF(ISERROR(Dados!C145),\"-\",Dados!C145)","v":"Aliansce"},{"$f":"IF(ISERROR(Dados!F145),\"-\",Dados!F145)","v":4047.27},null,{"$f":"IF(ISERROR(Dados!C145),\"-\",Dados!C145)","v":"Aliansce"},{"$f":"IF(ISERROR(Dados!G145),\"-\",Dados!G145)","v":2553.98},null,{"$f":"IF(ISERROR(Dados!C145),\"-\",Dados!C145)","v":"Aliansce"},{"$f":"IF(ISERROR(Dados!X145),\"0\",Dados!X145)","v":394.4},null,{"$f":"IF(ISERROR(Dados!C145),\"-\",Dados!C145)","v":"Aliansce"},{"$f":"IF(ISERROR(Dados!AB145),\"0\",Dados!AB145)","v":5.840974286370813E-3},null,{"$f":"IF(ISERROR(Dados!C145),\"-\",Dados!C145)","v":"Aliansce"},{"$f":"IF(ISERROR(Dados!S145),\"-\",Dados!S145)","v":1.5846952442853899},null,{"$f":"IF(ISERROR(Dados!C145),\"-\",Dados!C145)","v":"Aliansce"},{"$f":"IF(ISERROR(Dados!T145),\"-\",Dados!T145)","v":35.514917163917168},null,{"$f":"IF(ISERROR(Dados!C145),\"-\",Dados!C145)","v":"Aliansce"},{"$f":"IF(ISERROR(Dados!U145),\"0\",Dados!U145)","v":4.7744000000000002E-2},null,{"$f":"IF(ISERROR(Dados!C145),\"-\",Dados!C145)","v":"Aliansce"},{"$f":"IF(ISERROR(IF(Dados!Z145<0,\"-\",Dados!Z145)),\"-\",IF(Dados!Z145<0,\"-\",Dados!Z145))","v":8.8101597363083162},null,{"$f":"IF(ISERROR(Dados!C145),\"-\",Dados!C145)","v":"Aliansce"},{"$f":"IF(ISERROR(Dados!AC145),\"-1000000\",Dados!AC145)","v":-0.6},null,{"$f":"IF(ISERROR(Dados!C145),\"-\",Dados!C145)","v":"Aliansce"},{"$f":"IF(ISERROR(Dados!AD145),\"-1000000\",Dados!AD145)","v":11.5},null,{"$f":"IF(ISERROR(Dados!C145),\"-\",Dados!C145)","v":"Aliansce"},{"$f":"IF(ISERROR(Dados!AC145),\"-\",Dados!AC145)","v":-0.6},null,{"$f":"IF(ISERROR(Dados!C145),\"-\",Dados!C145)","v":"Aliansce"},{"$f":"IF(ISERROR(Dados!AD145),\"-\",Dados!AD145)","v":11.5}]
[{"$f":"IF(ISERROR(Dados!C195),\"-\",Dados!C195)","v":"Paranapanema"},{"$f":"IF(ISERROR(Dados!F195),\"-\",Dados!F195)","v":1010.82},null,{"$f":"IF(ISERROR(Dados!C195),\"-\",Dados!C195)","v":"Paranapanema"},{"$f":"IF(ISERROR(Dados!G195),\"-\",Dados!G195)","v":602.5},null,{"$f":"IF(ISERROR(Dados!C195),\"-\",Dados!C195)","v":"Paranapanema"},{"$f":"IF(ISERROR(Dados!X195),\"0\",Dados!X195)","v":82.7},null,{"$f":"IF(ISERROR(Dados!C195),\"-\",Dados!C195)","v":"Paranapanema"},{"$f":"IF(ISERROR(Dados!AB195),\"0\",Dados!AB195)","v":"0"},null,{"$f":"IF(ISERROR(Dados!C195),\"-\",Dados!C195)","v":"Paranapanema"},{"$f":"IF(ISERROR(Dados!S195),\"-\",Dados!S195)","v":1.6777181078838175},null,{"$f":"IF(ISERROR(Dados!C195),\"-\",Dados!C195)","v":"Paranapanema"},{"$f":"IF(ISERROR(Dados!T195),\"-\",Dados!T195)","v":"-"},null,{"$f":"IF(ISERROR(Dados!C195),\"-\",Dados!C195)","v":"Paranapanema"},{"$f":"IF(ISERROR(Dados!U195),\"0\",Dados!U195)","v":-0.36394500000000002},null,{"$f":"IF(ISERROR(Dados!C195),\"-\",Dados!C195)","v":"Paranapanema"},{"$f":"IF(ISERROR(IF(Dados!Z195<0,\"-\",Dados!Z195)),\"-\",IF(Dados!Z195<0,\"-\",Dados!Z195))","v":35.239105199516324},null,{"$f":"IF(ISERROR(Dados!C195),\"-\",Dados!C195)","v":"Paranapanema"},{"$f":"IF(ISERROR(Dados!AC195),\"-1000000\",Dados!AC195)","v":"-1000000"},null,{"$f":"IF(ISERROR(Dados!C195),\"-\",Dados!C195)","v":"Paranapanema"},{"$f":"IF(ISERROR(Dados!AD195),\"-1000000\",Dados!AD195)","v":-8.1999999999999993},null,{"$f":"IF(ISERROR(Dados!C195),\"-\",Dados!C195)","v":"Paranapanema"},{"$f":"IF(ISERROR(Dados!AC195),\"-\",Dados!AC195)","v":"-"},null,{"$f":"IF(ISERROR(Dados!C195),\"-\",Dados!C195)","v":"Paranapanema"},{"$f":"IF(ISERROR(Dados!AD195),\"-\",Dados!AD195)","v":-8.1999999999999993}]
[{"$f":"IF(ISERROR(Dados!C38),\"-\",Dados!C38)","v":"Cyrela Realt"},{"$f":"IF(ISERROR(Dados!F38),\"-\",Dados!F38)","v":6251.41},null,{"$f":"IF(ISERROR(Dados!C38),\"-\",Dados!C38)","v":"Cyrela Realt"},{"$f":"IF(ISERROR(Dados!G38),\"-\",Dados!G38)","v":5148.55},null,{"$f":"IF(ISERROR(Dados!C38),\"-\",Dados!C38)","v":"Cyrela Realt"},{"$f":"IF(ISERROR(Dados!X38),\"0\",Dados!X38)","v":113.8},null,{"$f":"IF(ISERROR(Dados!C38),\"-\",Dados!C38)","v":"Cyrela Realt"},{"$f":"IF(ISERROR(Dados!AB38),\"0\",Dados!AB38)","v":6.8784482220810989E-2},null,{"$f":"IF(ISERROR(Dados!C38),\"-\",Dados!C38)","v":"Cyrela Realt"},{"$f":"IF(ISERROR(Dados!S38),\"-\",Dados!S38)","v":1.2142070738363226},null,{"$f":"IF(ISERROR(Dados!C38),\"-\",Dados!C38)","v":"Cyrela Realt"},{"$f":"IF(ISERROR(Dados!T38),\"-\",Dados!T38)","v":"-"},null,{"$f":"IF(ISERROR(Dados!C38),\"-\",Dados!C38)","v":"Cyrela Realt"},{"$f":"IF(ISERROR(Dados!U38),\"0\",Dados!U38)","v":9.4700000000000003E-4},null,{"$f":"IF(ISERROR(Dados!C38),\"-\",Dados!C38)","v":"Cyrela Realt"},{"$f":"IF(ISERROR(IF(Dados!Z38<0,\"-\",Dados!Z38)),\"-\",IF(Dados!Z38<0,\"-\",Dados!Z38))","v":63.428005272407731},null,{"$f":"IF(ISERROR(Dados!C38),\"-\",Dados!C38)","v":"Cyrela Realt"},{"$f":"IF(ISERROR(Dados!AC38),\"-1000000\",Dados!AC38)","v":-4.9000000000000004},null,{"$f":"IF(ISERROR(Dados!C38),\"-\",Dados!C38)","v":"Cyrela Realt"},{"$f":"IF(ISERROR(Dados!AD38),\"-1000000\",Dados!AD38)","v":33.200000000000003},null,{"$f":"IF(ISERROR(Dados!C38),\"-\",Dados!C38)","v":"Cyrela Realt"},{"$f":"IF(ISERROR(Dados!AC38),\"-\",Dados!AC38)","v":-4.9000000000000004},null,{"$f":"IF(ISERROR(Dados!C38),\"-\",Dados!C38)","v":"Cyrela Realt"},{"$f":"IF(ISERROR(Dados!AD38),\"-\",Dados!AD38)","v":33.200000000000003}]
[{"$f":"IF(ISERROR(Dados!C46),\"-\",Dados!C46)","v":"Rossi Resid"},{"$f":"IF(ISERROR(Dados!F46),\"-\",Dados!F46)","v":78.88},null,{"$f":"IF(ISERROR(Dados!C46),\"-\",Dados!C46)","v":"Rossi Resid"},{"$f":"IF(ISERROR(Dados!G46),\"-\",Dados!G46)","v":-237.45},null,{"$f":"IF(ISERROR(Dados!C46),\"-\",Dados!C46)","v":"Rossi Resid"},{"$f":"IF(ISERROR(Dados!X46),\"0\",Dados!X46)","v":-427.4},null,{"$f":"IF(ISERROR(Dados!C46),\"-\",Dados!C46)","v":"Rossi Resid"},{"$f":"IF(ISERROR(Dados!AB46),\"0\",Dados!AB46)","v":"0"},null,{"$f":"IF(ISERROR(Dados!C46),\"-\",Dados!C46)","v":"Rossi Resid"},{"$f":"IF(ISERROR(Dados!S46),\"-\",Dados!S46)","v":"-"},null,{"$f":"IF(ISERROR(Dados!C46),\"-\",Dados!C46)","v":"Rossi Resid"},{"$f":"IF(ISERROR(Dados!T46),\"-\",Dados!T46)","v":"-"},null,{"$f":"IF(ISERROR(Dados!C46),\"-\",Dados!C46)","v":"Rossi Resid"},{"$f":"IF(ISERROR(Dados!U46),\"0\",Dados!U46)","v":-1.6409659999999999},null,{"$f":"IF(ISERROR(Dados!C46),\"-\",Dados!C46)","v":"Rossi Resid"},{"$f":"IF(ISERROR(IF(Dados!Z46<0,\"-\",Dados!Z46)),\"-\",IF(Dados!Z46<0,\"-\",Dados!Z46))","v":"-"},null,{"$f":"IF(ISERROR(Dados!C46),\"-\",Dados!C46)","v":"Rossi Resid"},{"$f":"IF(ISERROR(Dados!AC46),\"-1000000\",Dados!AC46)","v":-5.8},null,{"$f":"IF(ISERROR(Dados!C46),\"-\",Dados!C46)","v":"Rossi Resid"},{"$f":"IF(ISERROR(Dados!AD46),\"-1000000\",Dados!AD46)","v":-34.799999999999997},null,{"$f":"IF(ISERROR(Dados!C46),\"-\",Dados!C46)","v":"Rossi Resid"},{"$f":"IF(ISERROR(Dados!AC46),\"-\",Dados!AC46)","v":-5.8},null,{"$f":"IF(ISERROR(Dados!C46),\"-\",Dados!C46)","v":"Rossi Resid"},{"$f":"IF(ISERROR(Dados!AD46),\"-\",Dados!AD46)","v":-34.799999999999997}]
[{"$f":"IF(ISERROR(Dados!C149),\"-\",Dados!C149)","v":"Mont Aranha"},{"$f":"IF(ISERROR(Dados!F149),\"-\",Dados!F149)","v":2082.71},null,{"$f":"IF(ISERROR(Dados!C149),\"-\",Dados!C149)","v":"Mont Aranha"},{"$f":"IF(ISERROR(Dados!G149),\"-\",Dados!G149)","v":1134.1600000000001},null,{"$f":"IF(ISERROR(Dados!C149),\"-\",Dados!C149)","v":"Mont Aranha"},{"$f":"IF(ISERROR(Dados!X149),\"0\",Dados!X149)","v":21},null,{"$f":"IF(ISERROR(Dados!C149),\"-\",Dados!C149)","v":"Mont Aranha"},{"$f":"IF(ISERROR(Dados!AB149),\"0\",Dados!AB149)","v":9.0334228001017897E-2},null,{"$f":"IF(ISERROR(Dados!C149),\"-\",Dados!C149)","v":"Mont Aranha"},{"$f":"IF(ISERROR(Dados!S149),\"-\",Dados!S149)","v":1.8363105734640612},null,{"$f":"IF(ISERROR(Dados!C149),\"-\",Dados!C149)","v":"Mont Aranha"},{"$f":"IF(ISERROR(Dados!T149),\"-\",Dados!T149)","v":51.033325165400626},null,{"$f":"IF(ISERROR(Dados!C149),\"-\",Dados!C149)","v":"Mont Aranha"},{"$f":"IF(ISERROR(Dados!U149),\"0\",Dados!U149)","v":3.4019000000000001E-2},null,{"$f":"IF(ISERROR(Dados!C149),\"-\",Dados!C149)","v":"Mont Aranha"},{"$f":"IF(ISERROR(IF(Dados!Z149<0,\"-\",Dados!Z149)),\"-\",IF(Dados!Z149<0,\"-\",Dados!Z149))","v":82.56280952380952},null,{"$f":"IF(ISERROR(Dados!C149),\"-\",Dados!C149)","v":"Mont Aranha"},{"$f":"IF(ISERROR(Dados!AC149),\"-1000000\",Dados!AC149)","v":-2.9},null,{"$f":"IF(ISERROR(Dados!C149),\"-\",Dados!C149)","v":"Mont Aranha"},{"$f":"IF(ISERROR(Dados!AD149),\"-1000000\",Dados!AD149)","v":29},null,{"$f":"IF(ISERROR(Dados!C149),\"-\",Dados!C149)","v":"Mont Aranha"},{"$f":"IF(ISERROR(Dados!AC149),\"-\",Dados!AC149)","v":-2.9},null,{"$f":"IF(ISERROR(Dados!C149),\"-\",Dados!C149)","v":"Mont Aranha"},{"$f":"IF(ISERROR(Dados!AD149),\"-\",Dados!AD149)","v":29}]
[{"$f":"IF(ISERROR(Dados!C198),\"-\",Dados!C198)","v":"Forja Taurus"},{"$f":"IF(ISERROR(Dados!F198),\"-\",Dados!F198)","v":298.08},null,{"$f":"IF(ISERROR(Dados!C198),\"-\",Dados!C198)","v":"Forja Taurus"},{"$f":"IF(ISERROR(Dados!G198),\"-\",Dados!G198)","v":-406.96},null,{"$f":"IF(ISERROR(Dados!C198),\"-\",Dados!C198)","v":"Forja Taurus"},{"$f":"IF(ISERROR(Dados!X198),\"0\",Dados!X198)","v":80.5},null,{"$f":"IF(ISERROR(Dados!C198),\"-\",Dados!C198)","v":"Forja Taurus"},{"$f":"IF(ISERROR(Dados!AB198),\"0\",Dados!AB198)","v":"0"},null,{"$f":"IF(ISERROR(Dados!C198),\"-\",Dados!C198)","v":"Forja Taurus"},{"$f":"IF(ISERROR(Dados!S198),\"-\",Dados!S198)","v":"-"},null,{"$f":"IF(ISERROR(Dados!C198),\"-\",Dados!C198)","v":"Forja Taurus"},{"$f":"IF(ISERROR(Dados!T198),\"-\",Dados!T198)","v":"-"},null,{"$f":"IF(ISERROR(Dados!C198),\"-\",Dados!C198)","v":"Forja Taurus"},{"$f":"IF(ISERROR(Dados!U198),\"0\",Dados!U198)","v":"0"},null,{"$f":"IF(ISERROR(Dados!C198),\"-\",Dados!C198)","v":"Forja Taurus"},{"$f":"IF(ISERROR(IF(Dados!Z198<0,\"-\",Dados!Z198)),\"-\",IF(Dados!Z198<0,\"-\",Dados!Z198))","v":13.493217391304347},null,{"$f":"IF(ISERROR(Dados!C198),\"-\",Dados!C198)","v":"Forja Taurus"},{"$f":"IF(ISERROR(Dados!AC198),\"-1000000\",Dados!AC198)","v":-7.9},null,{"$f":"IF(ISERROR(Dados!C198),\"-\",Dados!C198)","v":"Forja Taurus"},{"$f":"IF(ISERROR(Dados!AD198),\"-1000000\",Dados!AD198)","v":120.7},null,{"$f":"IF(ISERROR(Dados!C198),\"-\",Dados!C198)","v":"Forja Taurus"},{"$f":"IF(ISERROR(Dados!AC198),\"-\",Dados!AC198)","v":-7.9},null,{"$f":"IF(ISERROR(Dados!C198),\"-\",Dados!C198)","v":"Forja Taurus"},{"$f":"IF(ISERROR(Dados!AD198),\"-\",Dados!AD198)","v":120.7}]
[{"$f":"IF(ISERROR(Dados!C121),\"-\",Dados!C121)","v":"Estacio Part"},{"$f":"IF(ISERROR(Dados!F121),\"-\",Dados!F121)","v":7983.01},null,{"$f":"IF(ISERROR(Dados!C121),\"-\",Dados!C121)","v":"Estacio Part"},{"$f":"IF(ISERROR(Dados!G121),\"-\",Dados!G121)","v":2591.41},null,{"$f":"IF(ISERROR(Dados!C121),\"-\",Dados!C121)","v":"Estacio Part"},{"$f":"IF(ISERROR(Dados!X121),\"0\",Dados!X121)","v":967.4},null,{"$f":"IF(ISERROR(Dados!C121),\"-\",Dados!C121)","v":"Estacio Part"},{"$f":"IF(ISERROR(Dados!AB121),\"0\",Dados!AB121)","v":6.2738240337917653E-2},null,{"$f":"IF(ISERROR(Dados!C121),\"-\",Dados!C121)","v":"Estacio Part"},{"$f":"IF(ISERROR(Dados!S121),\"-\",Dados!S121)","v":3.0805645575188798},null,{"$f":"IF(ISERROR(Dados!C121),\"-\",Dados!C121)","v":"Estacio Part"},{"$f":"IF(ISERROR(Dados!T121),\"-\",Dados!T121)","v":12.379248220571588},null,{"$f":"IF(ISERROR(Dados!C121),\"-\",Dados!C121)","v":"Estacio Part"},{"$f":"IF(ISERROR(Dados!U121),\"0\",Dados!U121)","v":0.23219799999999999},null,{"$f":"IF(ISERROR(Dados!C121),\"-\",Dados!C121)","v":"Estacio Part"},{"$f":"IF(ISERROR(IF(Dados!Z121<0,\"-\",Dados!Z121)),\"-\",IF(Dados!Z121<0,\"-\",Dados!Z121))","v":8.2511670456894777},null,{"$f":"IF(ISERROR(Dados!C121),\"-\",Dados!C121)","v":"Estacio Part"},{"$f":"IF(ISERROR(Dados!AC121),\"-1000000\",Dados!AC121)","v":-3.4},null,{"$f":"IF(ISERROR(Dados!C121),\"-\",Dados!C121)","v":"Estacio Part"},{"$f":"IF(ISERROR(Dados!AD121),\"-1000000\",Dados!AD121)","v":-13.2},null,{"$f":"IF(ISERROR(Dados!C121),\"-\",Dados!C121)","v":"Estacio Part"},{"$f":"IF(ISERROR(Dados!AC121),\"-\",Dados!AC121)","v":-3.4},null,{"$f":"IF(ISERROR(Dados!C121),\"-\",Dados!C121)","v":"Estacio Part"},{"$f":"IF(ISERROR(Dados!AD121),\"-\",Dados!AD121)","v":-13.2}]
[{"$f":"IF(ISERROR(Dados!C159),\"-\",Dados!C159)","v":"Bahema"},{"$f":"IF(ISERROR(Dados!F159),\"-\",Dados!F159)","v":155.29},null,{"$f":"IF(ISERROR(Dados!C159),\"-\",Dados!C159)","v":"Bahema"},{"$f":"IF(ISERROR(Dados!G159),\"-\",Dados!G159)","v":52.57},null,{"$f":"IF(ISERROR(Dados!C159),\"-\",Dados!C159)","v":"Bahema"},{"$f":"IF(ISERROR(Dados!X159),\"0\",Dados!X159)","v":-1.4},null,{"$f":"IF(ISERROR(Dados!C159),\"-\",Dados!C159)","v":"Bahema"},{"$f":"IF(ISERROR(Dados!AB159),\"0\",Dados!AB159)","v":"0"},null,{"$f":"IF(ISERROR(Dados!C159),\"-\",Dados!C159)","v":"Bahema"},{"$f":"IF(ISERROR(Dados!S159),\"-\",Dados!S159)","v":2.9539661403842494},null,{"$f":"IF(ISERROR(Dados!C159),\"-\",Dados!C159)","v":"Bahema"},{"$f":"IF(ISERROR(Dados!T159),\"-\",Dados!T159)","v":"-"},null,{"$f":"IF(ISERROR(Dados!C159),\"-\",Dados!C159)","v":"Bahema"},{"$f":"IF(ISERROR(Dados!U159),\"0\",Dados!U159)","v":-4.3601000000000001E-2},null,{"$f":"IF(ISERROR(Dados!C159),\"-\",Dados!C159)","v":"Bahema"},{"$f":"IF(ISERROR(IF(Dados!Z159<0,\"-\",Dados!Z159)),\"-\",IF(Dados!Z159<0,\"-\",Dados!Z159))","v":"-"},null,{"$f":"IF(ISERROR(Dados!C159),\"-\",Dados!C159)","v":"Bahema"},{"$f":"IF(ISERROR(Dados!AC159),\"-1000000\",Dados!AC159)","v":-1.1000000000000001},null,{"$f":"IF(ISERROR(Dados!C159),\"-\",Dados!C159)","v":"Bahema"},{"$f":"IF(ISERROR(Dados!AD159),\"-1000000\",Dados!AD159)","v":110.4},null,{"$f":"IF(ISERROR(Dados!C159),\"-\",Dados!C159)","v":"Bahema"},{"$f":"IF(ISERROR(Dados!AC159),\"-\",Dados!AC159)","v":-1.1000000000000001},null,{"$f":"IF(ISERROR(Dados!C159),\"-\",Dados!C159)","v":"Bahema"},{"$f":"IF(ISERROR(Dados!AD159),\"-\",Dados!AD159)","v":110.4}]
[{"$f":"IF(ISERROR(Dados!C205),\"-\",Dados!C205)","v":"Sinqia"},{"$f":"IF(ISERROR(Dados!F205),\"-\",Dados!F205)","v":391.6},null,{"$f":"IF(ISERROR(Dados!C205),\"-\",Dados!C205)","v":"Sinqia"},{"$f":"IF(ISERROR(Dados!G205),\"-\",Dados!G205)","v":85.35},null,{"$f":"IF(ISERROR(Dados!C205),\"-\",Dados!C205)","v":"Sinqia"},{"$f":"IF(ISERROR(Dados!X205),\"0\",Dados!X205)","v":15.3},null,{"$f":"IF(ISERROR(Dados!C205),\"-\",Dados!C205)","v":"Sinqia"},{"$f":"IF(ISERROR(Dados!AB205),\"0\",Dados!AB205)","v":5.3370786516853926E-3},null,{"$f":"IF(ISERROR(Dados!C205),\"-\",Dados!C205)","v":"Sinqia"},{"$f":"IF(ISERROR(Dados!S205),\"-\",Dados!S205)","v":4.5883069712946698},null,{"$f":"IF(ISERROR(Dados!C205),\"-\",Dados!C205)","v":"Sinqia"},{"$f":"IF(ISERROR(Dados!T205),\"-\",Dados!T205)","v":143.44761904761907},null,{"$f":"IF(ISERROR(Dados!C205),\"-\",Dados!C205)","v":"Sinqia"},{"$f":"IF(ISERROR(Dados!U205),\"0\",Dados!U205)","v":3.6055000000000004E-2},null,{"$f":"IF(ISERROR(Dados!C205),\"-\",Dados!C205)","v":"Sinqia"},{"$f":"IF(ISERROR(IF(Dados!Z205<0,\"-\",Dados!Z205)),\"-\",IF(Dados!Z205<0,\"-\",Dados!Z205))","v":24.847843137254902},null,{"$f":"IF(ISERROR(Dados!C205),\"-\",Dados!C205)","v":"Sinqia"},{"$f":"IF(ISERROR(Dados!AC205),\"-1000000\",Dados!AC205)","v":14},null,{"$f":"IF(ISERROR(Dados!C205),\"-\",Dados!C205)","v":"Sinqia"},{"$f":"IF(ISERROR(Dados!AD205),\"-1000000\",Dados!AD205)","v":28.2},null,{"$f":"IF(ISERROR(Dados!C205),\"-\",Dados!C205)","v":"Sinqia"},{"$f":"IF(ISERROR(Dados!AC205),\"-\",Dados!AC205)","v":14},null,{"$f":"IF(ISERROR(Dados!C205),\"-\",Dados!C205)","v":"Sinqia"},{"$f":"IF(ISERROR(Dados!AD205),\"-\",Dados!AD205)","v":28.2}]
[{"$f":"IF(ISERROR(Dados!C108),\"-\",Dados!C108)","v":"MMX Miner"},{"$f":"IF(ISERROR(Dados!F108),\"-\",Dados!F108)","v":13.43},null,{"$f":"IF(ISERROR(Dados!C108),\"-\",Dados!C108)","v":"MMX Miner"},{"$f":"IF(ISERROR(Dados!G108),\"-\",Dados!G108)","v":-611.64},null,{"$f":"IF(ISERROR(Dados!C108),\"-\",Dados!C108)","v":"MMX Miner"},{"$f":"IF(ISERROR(Dados!X108),\"0\",Dados!X108)","v":-45.2},null,{"$f":"IF(ISERROR(Dados!C108),\"-\",Dados!C108)","v":"MMX Miner"},{"$f":"IF(ISERROR(Dados!AB108),\"0\",Dados!AB108)","v":"0"},null,{"$f":"IF(ISERROR(Dados!C108),\"-\",Dados!C108)","v":"MMX Miner"},{"$f":"IF(ISERROR(Dados!S108),\"-\",Dados!S108)","v":"-"},null,{"$f":"IF(ISERROR(Dados!C108),\"-\",Dados!C108)","v":"MMX Miner"},{"$f":"IF(ISERROR(Dados!T108),\"-\",Dados!T108)","v":"-"},null,{"$f":"IF(ISERROR(Dados!C108),\"-\",Dados!C108)","v":"MMX Miner"},{"$f":"IF(ISERROR(Dados!U108),\"0\",Dados!U108)","v":"0"},null,{"$f":"IF(ISERROR(Dados!C108),\"-\",Dados!C108)","v":"MMX Miner"},{"$f":"IF(ISERROR(IF(Dados!Z108<0,\"-\",Dados!Z108)),\"-\",IF(Dados!Z108<0,\"-\",Dados!Z108))","v":"-"},null,{"$f":"IF(ISERROR(Dados!C108),\"-\",Dados!C108)","v":"MMX Miner"},{"$f":"IF(ISERROR(Dados!AC108),\"-1000000\",Dados!AC108)","v":-1.9},null,{"$f":"IF(ISERROR(Dados!C108),\"-\",Dados!C108)","v":"MMX Miner"},{"$f":"IF(ISERROR(Dados!AD108),\"-1000000\",Dados!AD108)","v":-30.1},null,{"$f":"IF(ISERROR(Dados!C108),\"-\",Dados!C108)","v":"MMX Miner"},{"$f":"IF(ISERROR(Dados!AC108),\"-\",Dados!AC108)","v":-1.9},null,{"$f":"IF(ISERROR(Dados!C108),\"-\",Dados!C108)","v":"MMX Miner"},{"$f":"IF(ISERROR(Dados!AD108),\"-\",Dados!AD108)","v":-30.1}]
[{"$f":"IF(ISERROR(Dados!C42),\"-\",Dados!C42)","v":"Cr2"},{"$f":"IF(ISERROR(Dados!F42),\"-\",Dados!F42)","v":47.47},null,{"$f":"IF(ISERROR(Dados!C42),\"-\",Dados!C42)","v":"Cr2"},{"$f":"IF(ISERROR(Dados!G42),\"-\",Dados!G42)","v":167.02},null,{"$f":"IF(ISERROR(Dados!C42),\"-\",Dados!C42)","v":"Cr2"},{"$f":"IF(ISERROR(Dados!X42),\"0\",Dados!X42)","v":-18.3},null,{"$f":"IF(ISERROR(Dados!C42),\"-\",Dados!C42)","v":"Cr2"},{"$f":"IF(ISERROR(Dados!AB42),\"0\",Dados!AB42)","v":"0"},null,{"$f":"IF(ISERROR(Dados!C42),\"-\",Dados!C42)","v":"Cr2"},{"$f":"IF(ISERROR(Dados!S42),\"-\",Dados!S42)","v":0.28422464375523893},null,{"$f":"IF(ISERROR(Dados!C42),\"-\",Dados!C42)","v":"Cr2"},{"$f":"IF(ISERROR(Dados!T42),\"-\",Dados!T42)","v":"-"},null,{"$f":"IF(ISERROR(Dados!C42),\"-\",Dados!C42)","v":"Cr2"},{"$f":"IF(ISERROR(Dados!U42),\"0\",Dados!U42)","v":-0.11118399999999999},null,{"$f":"IF(ISERROR(Dados!C42),\"-\",Dados!C42)","v":"Cr2"},{"$f":"IF(ISERROR(IF(Dados!Z42<0,\"-\",Dados!Z42)),\"-\",IF(Dados!Z42<0,\"-\",Dados!Z42))","v":"-"},null,{"$f":"IF(ISERROR(Dados!C42),\"-\",Dados!C42)","v":"Cr2"},{"$f":"IF(ISERROR(Dados!AC42),\"-1000000\",Dados!AC42)","v":-2.8},null,{"$f":"IF(ISERROR(Dados!C42),\"-\",Dados!C42)","v":"Cr2"},{"$f":"IF(ISERROR(Dados!AD42),\"-1000000\",Dados!AD42)","v":-33.799999999999997},null,{"$f":"IF(ISERROR(Dados!C42),\"-\",Dados!C42)","v":"Cr2"},{"$f":"IF(ISERROR(Dados!AC42),\"-\",Dados!AC42)","v":-2.8},null,{"$f":"IF(ISERROR(Dados!C42),\"-\",Dados!C42)","v":"Cr2"},{"$f":"IF(ISERROR(Dados!AD42),\"-\",Dados!AD42)","v":-33.799999999999997}]
[{"$f":"IF(ISERROR(Dados!C19),\"-\",Dados!C19)","v":"Magaz Luiza"},{"$f":"IF(ISERROR(Dados!F19),\"-\",Dados!F19)","v":32662.46},null,{"$f":"IF(ISERROR(Dados!C19),\"-\",Dados!C19)","v":"Magaz Luiza"},{"$f":"IF(ISERROR(Dados!G19),\"-\",Dados!G19)","v":2302.87},null,{"$f":"IF(ISERROR(Dados!C19),\"-\",Dados!C19)","v":"Magaz Luiza"},{"$f":"IF(ISERROR(Dados!X19),\"0\",Dados!X19)","v":1245.2},null,{"$f":"IF(ISERROR(Dados!C19),\"-\",Dados!C19)","v":"Magaz Luiza"},{"$f":"IF(ISERROR(Dados!AB19),\"0\",Dados!AB19)","v":3.498511747124987E-3},null,{"$f":"IF(ISERROR(Dados!C19),\"-\",Dados!C19)","v":"Magaz Luiza"},{"$f":"IF(ISERROR(Dados!S19),\"-\",Dados!S19)","v":14.183357028403687},null,{"$f":"IF(ISERROR(Dados!C19),\"-\",Dados!C19)","v":"Magaz Luiza"},{"$f":"IF(ISERROR(Dados!T19),\"-\",Dados!T19)","v":54.671555496041385},null,{"$f":"IF(ISERROR(Dados!C19),\"-\",Dados!C19)","v":"Magaz Luiza"},{"$f":"IF(ISERROR(Dados!U19),\"0\",Dados!U19)","v":0.28805999999999998},null,{"$f":"IF(ISERROR(Dados!C19),\"-\",Dados!C19)","v":"Magaz Luiza"},{"$f":"IF(ISERROR(IF(Dados!Z19<0,\"-\",Dados!Z19)),\"-\",IF(Dados!Z19<0,\"-\",Dados!Z19))","v":25.787206071313843},null,{"$f":"IF(ISERROR(Dados!C19),\"-\",Dados!C19)","v":"Magaz Luiza"},{"$f":"IF(ISERROR(Dados!AC19),\"-1000000\",Dados!AC19)","v":-0.4},null,{"$f":"IF(ISERROR(Dados!C19),\"-\",Dados!C19)","v":"Magaz Luiza"},{"$f":"IF(ISERROR(Dados!AD19),\"-1000000\",Dados!AD19)","v":116.8},null,{"$f":"IF(ISERROR(Dados!C19),\"-\",Dados!C19)","v":"Magaz Luiza"},{"$f":"IF(ISERROR(Dados!AC19),\"-\",Dados!AC19)","v":-0.4},null,{"$f":"IF(ISERROR(Dados!C19),\"-\",Dados!C19)","v":"Magaz Luiza"},{"$f":"IF(ISERROR(Dados!AD19),\"-\",Dados!AD19)","v":116.8}]
[{"$f":"IF(ISERROR(Dados!C174),\"-\",Dados!C174)","v":"Cosan"},{"$f":"IF(ISERROR(Dados!F174),\"-\",Dados!F174)","v":16740.810000000001},null,{"$f":"IF(ISERROR(Dados!C174),\"-\",Dados!C174)","v":"Cosan"},{"$f":"IF(ISERROR(Dados!G174),\"-\",Dados!G174)","v":9928.7199999999993},null,{"$f":"IF(ISERROR(Dados!C174),\"-\",Dados!C174)","v":"Cosan"},{"$f":"IF(ISERROR(Dados!X174),\"0\",Dados!X174)","v":3322.8},null,{"$f":"IF(ISERROR(Dados!C174),\"-\",Dados!C174)","v":"Cosan"},{"$f":"IF(ISERROR(Dados!AB174),\"0\",Dados!AB174)","v":2.6659402979903598E-2},null,{"$f":"IF(ISERROR(Dados!C174),\"-\",Dados!C174)","v":"Cosan"},{"$f":"IF(ISERROR(Dados!S174),\"-\",Dados!S174)","v":1.6860992554931553},null,{"$f":"IF(ISERROR(Dados!C174),\"-\",Dados!C174)","v":"Cosan"},{"$f":"IF(ISERROR(Dados!T174),\"-\",Dados!T174)","v":10.131698097220877},null,{"$f":"IF(ISERROR(Dados!C174),\"-\",Dados!C174)","v":"Cosan"},{"$f":"IF(ISERROR(Dados!U174),\"0\",Dados!U174)","v":0.18487899999999999},null,{"$f":"IF(ISERROR(Dados!C174),\"-\",Dados!C174)","v":"Cosan"},{"$f":"IF(ISERROR(IF(Dados!Z174<0,\"-\",Dados!Z174)),\"-\",IF(Dados!Z174<0,\"-\",Dados!Z174))","v":7.2231253761887562},null,{"$f":"IF(ISERROR(Dados!C174),\"-\",Dados!C174)","v":"Cosan"},{"$f":"IF(ISERROR(Dados!AC174),\"-1000000\",Dados!AC174)","v":-2.4},null,{"$f":"IF(ISERROR(Dados!C174),\"-\",Dados!C174)","v":"Cosan"},{"$f":"IF(ISERROR(Dados!AD174),\"-1000000\",Dados!AD174)","v":5.7},null,{"$f":"IF(ISERROR(Dados!C174),\"-\",Dados!C174)","v":"Cosan"},{"$f":"IF(ISERROR(Dados!AC174),\"-\",Dados!AC174)","v":-2.4},null,{"$f":"IF(ISERROR(Dados!C174),\"-\",Dados!C174)","v":"Cosan"},{"$f":"IF(ISERROR(Dados!AD174),\"-\",Dados!AD174)","v":5.7}]
[{"$f":"IF(ISERROR(Dados!C6),\"-\",Dados!C6)","v":"Marfrig"},{"$f":"IF(ISERROR(Dados!F6),\"-\",Dados!F6)","v":3702.47},null,{"$f":"IF(ISERROR(Dados!C6),\"-\",Dados!C6)","v":"Marfrig"},{"$f":"IF(ISERROR(Dados!G6),\"-\",Dados!G6)","v":673.46},null,{"$f":"IF(ISERROR(Dados!C6),\"-\",Dados!C6)","v":"Marfrig"},{"$f":"IF(ISERROR(Dados!X6),\"0\",Dados!X6)","v":1075.2},null,{"$f":"IF(ISERROR(Dados!C6),\"-\",Dados!C6)","v":"Marfrig"},{"$f":"IF(ISERROR(Dados!AB6),\"0\",Dados!AB6)","v":"0"},null,{"$f":"IF(ISERROR(Dados!C6),\"-\",Dados!C6)","v":"Marfrig"},{"$f":"IF(ISERROR(Dados!S6),\"-\",Dados!S6)","v":5.4976734772666527},null,{"$f":"IF(ISERROR(Dados!C6),\"-\",Dados!C6)","v":"Marfrig"},{"$f":"IF(ISERROR(Dados!T6),\"-\",Dados!T6)","v":2.6536008915900977},null,{"$f":"IF(ISERROR(Dados!C6),\"-\",Dados!C6)","v":"Marfrig"},{"$f":"IF(ISERROR(Dados!U6),\"0\",Dados!U6)","v":0.81753600000000004},null,{"$f":"IF(ISERROR(Dados!C6),\"-\",Dados!C6)","v":"Marfrig"},{"$f":"IF(ISERROR(IF(Dados!Z6<0,\"-\",Dados!Z6)),\"-\",IF(Dados!Z6<0,\"-\",Dados!Z6))","v":10.927664620535714},null,{"$f":"IF(ISERROR(Dados!C6),\"-\",Dados!C6)","v":"Marfrig"},{"$f":"IF(ISERROR(Dados!AC6),\"-1000000\",Dados!AC6)","v":8.6999999999999993},null,{"$f":"IF(ISERROR(Dados!C6),\"-\",Dados!C6)","v":"Marfrig"},{"$f":"IF(ISERROR(Dados!AD6),\"-1000000\",Dados!AD6)","v":-18.3},null,{"$f":"IF(ISERROR(Dados!C6),\"-\",Dados!C6)","v":"Marfrig"},{"$f":"IF(ISERROR(Dados!AC6),\"-\",Dados!AC6)","v":8.6999999999999993},null,{"$f":"IF(ISERROR(Dados!C6),\"-\",Dados!C6)","v":"Marfrig"},{"$f":"IF(ISERROR(Dados!AD6),\"-\",Dados!AD6)","v":-18.3}]
[{"$f":"IF(ISERROR(Dados!C51),\"-\",Dados!C51)","v":"Positivo Tec"},{"$f":"IF(ISERROR(Dados!F51),\"-\",Dados!F51)","v":196},null,{"$f":"IF(ISERROR(Dados!C51),\"-\",Dados!C51)","v":"Positivo Tec"},{"$f":"IF(ISERROR(Dados!G51),\"-\",Dados!G51)","v":508.99},null,{"$f":"IF(ISERROR(Dados!C51),\"-\",Dados!C51)","v":"Positivo Tec"},{"$f":"IF(ISERROR(Dados!X51),\"0\",Dados!X51)","v":107.6},null,{"$f":"IF(ISERROR(Dados!C51),\"-\",Dados!C51)","v":"Positivo Tec"},{"$f":"IF(ISERROR(Dados!AB51),\"0\",Dados!AB51)","v":"0"},null,{"$f":"IF(ISERROR(Dados!C51),\"-\",Dados!C51)","v":"Positivo Tec"},{"$f":"IF(ISERROR(Dados!S51),\"-\",Dados!S51)","v":0.38507672056425468},null,{"$f":"IF(ISERROR(Dados!C51),\"-\",Dados!C51)","v":"Positivo Tec"},{"$f":"IF(ISERROR(Dados!T51),\"-\",Dados!T51)","v":"-"},null,{"$f":"IF(ISERROR(Dados!C51),\"-\",Dados!C51)","v":"Positivo Tec"},{"$f":"IF(ISERROR(Dados!U51),\"0\",Dados!U51)","v":-9.1E-4},null,{"$f":"IF(ISERROR(Dados!C51),\"-\",Dados!C51)","v":"Positivo Tec"},{"$f":"IF(ISERROR(IF(Dados!Z51<0,\"-\",Dados!Z51)),\"-\",IF(Dados!Z51<0,\"-\",Dados!Z51))","v":3.8372397769516731},null,{"$f":"IF(ISERROR(Dados!C51),\"-\",Dados!C51)","v":"Positivo Tec"},{"$f":"IF(ISERROR(Dados!AC51),\"-1000000\",Dados!AC51)","v":-3},null,{"$f":"IF(ISERROR(Dados!C51),\"-\",Dados!C51)","v":"Positivo Tec"},{"$f":"IF(ISERROR(Dados!AD51),\"-1000000\",Dados!AD51)","v":-26.7},null,{"$f":"IF(ISERROR(Dados!C51),\"-\",Dados!C51)","v":"Positivo Tec"},{"$f":"IF(ISERROR(Dados!AC51),\"-\",Dados!AC51)","v":-3},null,{"$f":"IF(ISERROR(Dados!C51),\"-\",Dados!C51)","v":"Positivo Tec"},{"$f":"IF(ISERROR(Dados!AD51),\"-\",Dados!AD51)","v":-26.7}]
[{"$f":"IF(ISERROR(Dados!C127),\"-\",Dados!C127)","v":"Qualicorp"},{"$f":"IF(ISERROR(Dados!F127),\"-\",Dados!F127)","v":4398.8},null,{"$f":"IF(ISERROR(Dados!C127),\"-\",Dados!C127)","v":"Qualicorp"},{"$f":"IF(ISERROR(Dados!G127),\"-\",Dados!G127)","v":2354.4899999999998},null,{"$f":"IF(ISERROR(Dados!C127),\"-\",Dados!C127)","v":"Qualicorp"},{"$f":"IF(ISERROR(Dados!X127),\"0\",Dados!X127)","v":979.6},null,{"$f":"IF(ISERROR(Dados!C127),\"-\",Dados!C127)","v":"Qualicorp"},{"$f":"IF(ISERROR(Dados!AB127),\"0\",Dados!AB127)","v":8.0674274802218782E-2},null,{"$f":"IF(ISERROR(Dados!C127),\"-\",Dados!C127)","v":"Qualicorp"},{"$f":"IF(ISERROR(Dados!S127),\"-\",Dados!S127)","v":1.8682621204592078},null,{"$f":"IF(ISERROR(Dados!C127),\"-\",Dados!C127)","v":"Qualicorp"},{"$f":"IF(ISERROR(Dados!T127),\"-\",Dados!T127)","v":11.078995768688293},null,{"$f":"IF(ISERROR(Dados!C127),\"-\",Dados!C127)","v":"Qualicorp"},{"$f":"IF(ISERROR(Dados!U127),\"0\",Dados!U127)","v":0.16774799999999998},null,{"$f":"IF(ISERROR(Dados!C127),\"-\",Dados!C127)","v":"Qualicorp"},{"$f":"IF(ISERROR(IF(Dados!Z127<0,\"-\",Dados!Z127)),\"-\",IF(Dados!Z127<0,\"-\",Dados!Z127))","v":4.6192211106574117},null,{"$f":"IF(ISERROR(Dados!C127),\"-\",Dados!C127)","v":"Qualicorp"},{"$f":"IF(ISERROR(Dados!AC127),\"-1000000\",Dados!AC127)","v":1.2},null,{"$f":"IF(ISERROR(Dados!C127),\"-\",Dados!C127)","v":"Qualicorp"},{"$f":"IF(ISERROR(Dados!AD127),\"-1000000\",Dados!AD127)","v":-47.6},null,{"$f":"IF(ISERROR(Dados!C127),\"-\",Dados!C127)","v":"Qualicorp"},{"$f":"IF(ISERROR(Dados!AC127),\"-\",Dados!AC127)","v":1.2},null,{"$f":"IF(ISERROR(Dados!C127),\"-\",Dados!C127)","v":"Qualicorp"},{"$f":"IF(ISERROR(Dados!AD127),\"-\",Dados!AD127)","v":-47.6}]
[{"$f":"IF(ISERROR(Dados!C219),\"-\",Dados!C219)","v":"Santanense"},{"$f":"IF(ISERROR(Dados!F219),\"-\",Dados!F219)","v":198.27},null,{"$f":"IF(ISERROR(Dados!C219),\"-\",Dados!C219)","v":"Santanense"},{"$f":"IF(ISERROR(Dados!G219),\"-\",Dados!G219)","v":205.43},null,{"$f":"IF(ISERROR(Dados!C219),\"-\",Dados!C219)","v":"Santanense"},{"$f":"IF(ISERROR(Dados!X219),\"0\",Dados!X219)","v":"0"},null,{"$f":"IF(ISERROR(Dados!C219),\"-\",Dados!C219)","v":"Santanense"},{"$f":"IF(ISERROR(Dados!AB219),\"0\",Dados!AB219)","v":6.0271347152872336E-2},null,{"$f":"IF(ISERROR(Dados!C219),\"-\",Dados!C219)","v":"Santanense"},{"$f":"IF(ISERROR(Dados!S219),\"-\",Dados!S219)","v":0.96033188920800261},null,{"$f":"IF(ISERROR(Dados!C219),\"-\",Dados!C219)","v":"Santanense"},{"$f":"IF(ISERROR(Dados!T219),\"-\",Dados!T219)","v":7.4784298711144803},null,{"$f":"IF(ISERROR(Dados!C219),\"-\",Dados!C219)","v":"Santanense"},{"$f":"IF(ISERROR(Dados!U219),\"0\",Dados!U219)","v":0.101274},null,{"$f":"IF(ISERROR(Dados!C219),\"-\",Dados!C219)","v":"Santanense"},{"$f":"IF(ISERROR(IF(Dados!Z219<0,\"-\",Dados!Z219)),\"-\",IF(Dados!Z219<0,\"-\",Dados!Z219))","v":8.1002166064981953},null,{"$f":"IF(ISERROR(Dados!C219),\"-\",Dados!C219)","v":"Santanense"},{"$f":"IF(ISERROR(Dados!AC219),\"-1000000\",Dados!AC219)","v":-2.5},null,{"$f":"IF(ISERROR(Dados!C219),\"-\",Dados!C219)","v":"Santanense"},{"$f":"IF(ISERROR(Dados!AD219),\"-1000000\",Dados!AD219)","v":97.3},null,{"$f":"IF(ISERROR(Dados!C219),\"-\",Dados!C219)","v":"Santanense"},{"$f":"IF(ISERROR(Dados!AC219),\"-\",Dados!AC219)","v":-2.5},null,{"$f":"IF(ISERROR(Dados!C219),\"-\",Dados!C219)","v":"Santanense"},{"$f":"IF(ISERROR(Dados!AD219),\"-\",Dados!AD219)","v":97.3}]
[{"$f":"IF(ISERROR(Dados!C82),\"-\",Dados!C82)","v":"Tarpon Inv"},{"$f":"IF(ISERROR(Dados!F82),\"-\",Dados!F82)","v":49.21},null,{"$f":"IF(ISERROR(Dados!C82),\"-\",Dados!C82)","v":"Tarpon Inv"},{"$f":"IF(ISERROR(Dados!G82),\"-\",Dados!G82)","v":58.62},null,{"$f":"IF(ISERROR(Dados!C82),\"-\",Dados!C82)","v":"Tarpon Inv"},{"$f":"IF(ISERROR(Dados!X82),\"0\",Dados!X82)","v":81.900000000000006},null,{"$f":"IF(ISERROR(Dados!C82),\"-\",Dados!C82)","v":"Tarpon Inv"},{"$f":"IF(ISERROR(Dados!AB82),\"0\",Dados!AB82)","v":0.69762243446453964},null,{"$f":"IF(ISERROR(Dados!C82),\"-\",Dados!C82)","v":"Tarpon Inv"},{"$f":"IF(ISERROR(Dados!S82),\"-\",Dados!S82)","v":0.83940412828386235},null,{"$f":"IF(ISERROR(Dados!C82),\"-\",Dados!C82)","v":"Tarpon Inv"},{"$f":"IF(ISERROR(Dados!T82),\"-\",Dados!T82)","v":0.87586098255606981},null,{"$f":"IF(ISERROR(Dados!C82),\"-\",Dados!C82)","v":"Tarpon Inv"},{"$f":"IF(ISERROR(Dados!U82),\"0\",Dados!U82)","v":1.06446},null,{"$f":"IF(ISERROR(Dados!C82),\"-\",Dados!C82)","v":"Tarpon Inv"},{"$f":"IF(ISERROR(IF(Dados!Z82<0,\"-\",Dados!Z82)),\"-\",IF(Dados!Z82<0,\"-\",Dados!Z82))","v":"-"},null,{"$f":"IF(ISERROR(Dados!C82),\"-\",Dados!C82)","v":"Tarpon Inv"},{"$f":"IF(ISERROR(Dados!AC82),\"-1000000\",Dados!AC82)","v":-2.7},null,{"$f":"IF(ISERROR(Dados!C82),\"-\",Dados!C82)","v":"Tarpon Inv"},{"$f":"IF(ISERROR(Dados!AD82),\"-1000000\",Dados!AD82)","v":-24.2},null,{"$f":"IF(ISERROR(Dados!C82),\"-\",Dados!C82)","v":"Tarpon Inv"},{"$f":"IF(ISERROR(Dados!AC82),\"-\",Dados!AC82)","v":-2.7},null,{"$f":"IF(ISERROR(Dados!C82),\"-\",Dados!C82)","v":"Tarpon Inv"},{"$f":"IF(ISERROR(Dados!AD82),\"-\",Dados!AD82)","v":-24.2}]
[{"$f":"IF(ISERROR(Dados!C26),\"-\",Dados!C26)","v":"Lojas Americ"},{"$f":"IF(ISERROR(Dados!F26),\"-\",Dados!F26)","v":24887.58},null,{"$f":"IF(ISERROR(Dados!C26),\"-\",Dados!C26)","v":"Lojas Americ"},{"$f":"IF(ISERROR(Dados!G26),\"-\",Dados!G26)","v":4924.6000000000004},null,{"$f":"IF(ISERROR(Dados!C26),\"-\",Dados!C26)","v":"Lojas Americ"},{"$f":"IF(ISERROR(Dados!X26),\"0\",Dados!X26)","v":2654.4},null,{"$f":"IF(ISERROR(Dados!C26),\"-\",Dados!C26)","v":"Lojas Americ"},{"$f":"IF(ISERROR(Dados!AB26),\"0\",Dados!AB26)","v":4.0875810343954698E-3},null,{"$f":"IF(ISERROR(Dados!C26),\"-\",Dados!C26)","v":"Lojas Americ"},{"$f":"IF(ISERROR(Dados!S26),\"-\",Dados!S26)","v":5.4429557344758965},null,{"$f":"IF(ISERROR(Dados!C26),\"-\",Dados!C26)","v":"Lojas Americ"},{"$f":"IF(ISERROR(Dados!T26),\"-\",Dados!T26)","v":70.447002049988171},null,{"$f":"IF(ISERROR(Dados!C26),\"-\",Dados!C26)","v":"Lojas Americ"},{"$f":"IF(ISERROR(Dados!U26),\"0\",Dados!U26)","v":3.7257999999999999E-2},null,{"$f":"IF(ISERROR(Dados!C26),\"-\",Dados!C26)","v":"Lojas Americ"},{"$f":"IF(ISERROR(IF(Dados!Z26<0,\"-\",Dados!Z26)),\"-\",IF(Dados!Z26<0,\"-\",Dados!Z26))","v":11.474804852320675},null,{"$f":"IF(ISERROR(Dados!C26),\"-\",Dados!C26)","v":"Lojas Americ"},{"$f":"IF(ISERROR(Dados!AC26),\"-1000000\",Dados!AC26)","v":-15.8},null,{"$f":"IF(ISERROR(Dados!C26),\"-\",Dados!C26)","v":"Lojas Americ"},{"$f":"IF(ISERROR(Dados!AD26),\"-1000000\",Dados!AD26)","v":-0.8},null,{"$f":"IF(ISERROR(Dados!C26),\"-\",Dados!C26)","v":"Lojas Americ"},{"$f":"IF(ISERROR(Dados!AC26),\"-\",Dados!AC26)","v":-15.8},null,{"$f":"IF(ISERROR(Dados!C26),\"-\",Dados!C26)","v":"Lojas Americ"},{"$f":"IF(ISERROR(Dados!AD26),\"-\",Dados!AD26)","v":-0.8}]
[{"$f":"IF(ISERROR(Dados!C99),\"-\",Dados!C99)","v":"Pine"},{"$f":"IF(ISERROR(Dados!F99),\"-\",Dados!F99)","v":283.52999999999997},null,{"$f":"IF(ISERROR(Dados!C99),\"-\",Dados!C99)","v":"Pine"},{"$f":"IF(ISERROR(Dados!G99),\"-\",Dados!G99)","v":868.74},null,{"$f":"IF(ISERROR(Dados!C99),\"-\",Dados!C99)","v":"Pine"},{"$f":"IF(ISERROR(Dados!X99),\"0\",Dados!X99)","v":"0"},null,{"$f":"IF(ISERROR(Dados!C99),\"-\",Dados!C99)","v":"Pine"},{"$f":"IF(ISERROR(Dados!AB99),\"0\",Dados!AB99)","v":"0"},null,{"$f":"IF(ISERROR(Dados!C99),\"-\",Dados!C99)","v":"Pine"},{"$f":"IF(ISERROR(Dados!S99),\"-\",Dados!S99)","v":0.32637281580219629},null,{"$f":"IF(ISERROR(Dados!C99),\"-\",Dados!C99)","v":"Pine"},{"$f":"IF(ISERROR(Dados!T99),\"-\",Dados!T99)","v":"-"},null,{"$f":"IF(ISERROR(Dados!C99),\"-\",Dados!C99)","v":"Pine"},{"$f":"IF(ISERROR(Dados!U99),\"0\",Dados!U99)","v":-6.5723000000000004E-2},null,{"$f":"IF(ISERROR(Dados!C99),\"-\",Dados!C99)","v":"Pine"},{"$f":"IF(ISERROR(IF(Dados!Z99<0,\"-\",Dados!Z99)),\"-\",IF(Dados!Z99<0,\"-\",Dados!Z99))","v":"-"},null,{"$f":"IF(ISERROR(Dados!C99),\"-\",Dados!C99)","v":"Pine"},{"$f":"IF(ISERROR(Dados!AC99),\"-1000000\",Dados!AC99)","v":-14.9},null,{"$f":"IF(ISERROR(Dados!C99),\"-\",Dados!C99)","v":"Pine"},{"$f":"IF(ISERROR(Dados!AD99),\"-1000000\",Dados!AD99)","v":-33.1},null,{"$f":"IF(ISERROR(Dados!C99),\"-\",Dados!C99)","v":"Pine"},{"$f":"IF(ISERROR(Dados!AC99),\"-\",Dados!AC99)","v":-14.9},null,{"$f":"IF(ISERROR(Dados!C99),\"-\",Dados!C99)","v":"Pine"},{"$f":"IF(ISERROR(Dados!AD99),\"-\",Dados!AD99)","v":-33.1}]
[{"$f":"IF(ISERROR(Dados!C128),\"-\",Dados!C128)","v":"Sabesp"},{"$f":"IF(ISERROR(Dados!F128),\"-\",Dados!F128)","v":28707.41},null,{"$f":"IF(ISERROR(Dados!C128),\"-\",Dados!C128)","v":"Sabesp"},{"$f":"IF(ISERROR(Dados!G128),\"-\",Dados!G128)","v":19551.689999999999},null,{"$f":"IF(ISERROR(Dados!C128),\"-\",Dados!C128)","v":"Sabesp"},{"$f":"IF(ISERROR(Dados!X128),\"0\",Dados!X128)","v":6569.2},null,{"$f":"IF(ISERROR(Dados!C128),\"-\",Dados!C128)","v":"Sabesp"},{"$f":"IF(ISERROR(Dados!AB128),\"0\",Dados!AB128)","v":2.2760325644145537E-2},null,{"$f":"IF(ISERROR(Dados!C128),\"-\",Dados!C128)","v":"Sabesp"},{"$f":"IF(ISERROR(Dados!S128),\"-\",Dados!S128)","v":1.4682833044100025},null,{"$f":"IF(ISERROR(Dados!C128),\"-\",Dados!C128)","v":"Sabesp"},{"$f":"IF(ISERROR(Dados!T128),\"-\",Dados!T128)","v":10.125824053727067},null,{"$f":"IF(ISERROR(Dados!C128),\"-\",Dados!C128)","v":"Sabesp"},{"$f":"IF(ISERROR(Dados!U128),\"0\",Dados!U128)","v":0.16188400000000003},null,{"$f":"IF(ISERROR(Dados!C128),\"-\",Dados!C128)","v":"Sabesp"},{"$f":"IF(ISERROR(IF(Dados!Z128<0,\"-\",Dados!Z128)),\"-\",IF(Dados!Z128<0,\"-\",Dados!Z128))","v":5.9110721244595998},null,{"$f":"IF(ISERROR(Dados!C128),\"-\",Dados!C128)","v":"Sabesp"},{"$f":"IF(ISERROR(Dados!AC128),\"-1000000\",Dados!AC128)","v":6.7},null,{"$f":"IF(ISERROR(Dados!C128),\"-\",Dados!C128)","v":"Sabesp"},{"$f":"IF(ISERROR(Dados!AD128),\"-1000000\",Dados!AD128)","v":26},null,{"$f":"IF(ISERROR(Dados!C128),\"-\",Dados!C128)","v":"Sabesp"},{"$f":"IF(ISERROR(Dados!AC128),\"-\",Dados!AC128)","v":6.7},null,{"$f":"IF(ISERROR(Dados!C128),\"-\",Dados!C128)","v":"Sabesp"},{"$f":"IF(ISERROR(Dados!AD128),\"-\",Dados!AD128)","v":26}]
[{"$f":"IF(ISERROR(Dados!C137),\"-\",Dados!C137)","v":"Iguatemi"},{"$f":"IF(ISERROR(Dados!F137),\"-\",Dados!F137)","v":6861.47},null,{"$f":"IF(ISERROR(Dados!C137),\"-\",Dados!C137)","v":"Iguatemi"},{"$f":"IF(ISERROR(Dados!G137),\"-\",Dados!G137)","v":2835.66},null,{"$f":"IF(ISERROR(Dados!C137),\"-\",Dados!C137)","v":"Iguatemi"},{"$f":"IF(ISERROR(Dados!X137),\"0\",Dados!X137)","v":558.5},null,{"$f":"IF(ISERROR(Dados!C137),\"-\",Dados!C137)","v":"Iguatemi"},{"$f":"IF(ISERROR(Dados!AB137),\"0\",Dados!AB137)","v":1.7488963735176281E-2},null,{"$f":"IF(ISERROR(Dados!C137),\"-\",Dados!C137)","v":"Iguatemi"},{"$f":"IF(ISERROR(Dados!S137),\"-\",Dados!S137)","v":2.4197115451076647},null,{"$f":"IF(ISERROR(Dados!C137),\"-\",Dados!C137)","v":"Iguatemi"},{"$f":"IF(ISERROR(Dados!T137),\"-\",Dados!T137)","v":26.76501497893587},null,{"$f":"IF(ISERROR(Dados!C137),\"-\",Dados!C137)","v":"Iguatemi"},{"$f":"IF(ISERROR(Dados!U137),\"0\",Dados!U137)","v":9.2753999999999989E-2},null,{"$f":"IF(ISERROR(Dados!C137),\"-\",Dados!C137)","v":"Iguatemi"},{"$f":"IF(ISERROR(IF(Dados!Z137<0,\"-\",Dados!Z137)),\"-\",IF(Dados!Z137<0,\"-\",Dados!Z137))","v":15.13056042972247},null,{"$f":"IF(ISERROR(Dados!C137),\"-\",Dados!C137)","v":"Iguatemi"},{"$f":"IF(ISERROR(Dados!AC137),\"-1000000\",Dados!AC137)","v":-6.9},null,{"$f":"IF(ISERROR(Dados!C137),\"-\",Dados!C137)","v":"Iguatemi"},{"$f":"IF(ISERROR(Dados!AD137),\"-1000000\",Dados!AD137)","v":1.2},null,{"$f":"IF(ISERROR(Dados!C137),\"-\",Dados!C137)","v":"Iguatemi"},{"$f":"IF(ISERROR(Dados!AC137),\"-\",Dados!AC137)","v":-6.9},null,{"$f":"IF(ISERROR(Dados!C137),\"-\",Dados!C137)","v":"Iguatemi"},{"$f":"IF(ISERROR(Dados!AD137),\"-\",Dados!AD137)","v":1.2}]
[{"$f":"IF(ISERROR(Dados!C81),\"-\",Dados!C81)","v":"Wiz S.A"},{"$f":"IF(ISERROR(Dados!F81),\"-\",Dados!F81)","v":1359.21},null,{"$f":"IF(ISERROR(Dados!C81),\"-\",Dados!C81)","v":"Wiz S.A"},{"$f":"IF(ISERROR(Dados!G81),\"-\",Dados!G81)","v":168.97},null,{"$f":"IF(ISERROR(Dados!C81),\"-\",Dados!C81)","v":"Wiz S.A"},{"$f":"IF(ISERROR(Dados!X81),\"0\",Dados!X81)","v":"0"},null,{"$f":"IF(ISERROR(Dados!C81),\"-\",Dados!C81)","v":"Wiz S.A"},{"$f":"IF(ISERROR(Dados!AB81),\"0\",Dados!AB81)","v":"0"},null,{"$f":"IF(ISERROR(Dados!C81),\"-\",Dados!C81)","v":"Wiz S.A"},{"$f":"IF(ISERROR(Dados!S81),\"-\",Dados!S81)","v":8.0440877078771393},null,{"$f":"IF(ISERROR(Dados!C81),\"-\",Dados!C81)","v":"Wiz S.A"},{"$f":"IF(ISERROR(Dados!T81),\"-\",Dados!T81)","v":7.6476087323468187},null,{"$f":"IF(ISERROR(Dados!C81),\"-\",Dados!C81)","v":"Wiz S.A"},{"$f":"IF(ISERROR(Dados!U81),\"0\",Dados!U81)","v":1.1035410000000001},null,{"$f":"IF(ISERROR(Dados!C81),\"-\",Dados!C81)","v":"Wiz S.A"},{"$f":"IF(ISERROR(IF(Dados!Z81<0,\"-\",Dados!Z81)),\"-\",IF(Dados!Z81<0,\"-\",Dados!Z81))","v":"-"},null,{"$f":"IF(ISERROR(Dados!C81),\"-\",Dados!C81)","v":"Wiz S.A"},{"$f":"IF(ISERROR(Dados!AC81),\"-1000000\",Dados!AC81)","v":-5.5},null,{"$f":"IF(ISERROR(Dados!C81),\"-\",Dados!C81)","v":"Wiz S.A"},{"$f":"IF(ISERROR(Dados!AD81),\"-1000000\",Dados!AD81)","v":-23.9},null,{"$f":"IF(ISERROR(Dados!C81),\"-\",Dados!C81)","v":"Wiz S.A"},{"$f":"IF(ISERROR(Dados!AC81),\"-\",Dados!AC81)","v":-5.5},null,{"$f":"IF(ISERROR(Dados!C81),\"-\",Dados!C81)","v":"Wiz S.A"},{"$f":"IF(ISERROR(Dados!AD81),\"-\",Dados!AD81)","v":-23.9}]
[{"$f":"IF(ISERROR(Dados!C113),\"-\",Dados!C113)","v":"Ideiasnet"},{"$f":"IF(ISERROR(Dados!F113),\"-\",Dados!F113)","v":48.71},null,{"$f":"IF(ISERROR(Dados!C113),\"-\",Dados!C113)","v":"Ideiasnet"},{"$f":"IF(ISERROR(Dados!G113),\"-\",Dados!G113)","v":13.3},null,{"$f":"IF(ISERROR(Dados!C113),\"-\",Dados!C113)","v":"Ideiasnet"},{"$f":"IF(ISERROR(Dados!X113),\"0\",Dados!X113)","v":9.6},null,{"$f":"IF(ISERROR(Dados!C113),\"-\",Dados!C113)","v":"Ideiasnet"},{"$f":"IF(ISERROR(Dados!AB113),\"0\",Dados!AB113)","v":"0"},null,{"$f":"IF(ISERROR(Dados!C113),\"-\",Dados!C113)","v":"Ideiasnet"},{"$f":"IF(ISERROR(Dados!S113),\"-\",Dados!S113)","v":3.6620390977443611},null,{"$f":"IF(ISERROR(Dados!C113),\"-\",Dados!C113)","v":"Ideiasnet"},{"$f":"IF(ISERROR(Dados!T113),\"-\",Dados!T113)","v":4.3101876106194688},null,{"$f":"IF(ISERROR(Dados!C113),\"-\",Dados!C113)","v":"Ideiasnet"},{"$f":"IF(ISERROR(Dados!U113),\"0\",Dados!U113)","v":4.7052459999999998},null,{"$f":"IF(ISERROR(Dados!C113),\"-\",Dados!C113)","v":"Ideiasnet"},{"$f":"IF(ISERROR(IF(Dados!Z113<0,\"-\",Dados!Z113)),\"-\",IF(Dados!Z113<0,\"-\",Dados!Z113))","v":4.6995833333333339},null,{"$f":"IF(ISERROR(Dados!C113),\"-\",Dados!C113)","v":"Ideiasnet"},{"$f":"IF(ISERROR(Dados!AC113),\"-1000000\",Dados!AC113)","v":-6.9},null,{"$f":"IF(ISERROR(Dados!C113),\"-\",Dados!C113)","v":"Ideiasnet"},{"$f":"IF(ISERROR(Dados!AD113),\"-1000000\",Dados!AD113)","v":-71.3},null,{"$f":"IF(ISERROR(Dados!C113),\"-\",Dados!C113)","v":"Ideiasnet"},{"$f":"IF(ISERROR(Dados!AC113),\"-\",Dados!AC113)","v":-6.9},null,{"$f":"IF(ISERROR(Dados!C113),\"-\",Dados!C113)","v":"Ideiasnet"},{"$f":"IF(ISERROR(Dados!AD113),\"-\",Dados!AD113)","v":-71.3}]
[{"$f":"IF(ISERROR(Dados!C8),\"-\",Dados!C8)","v":"Ambev S/A"},{"$f":"IF(ISERROR(Dados!F8),\"-\",Dados!F8)","v":264586.43},null,{"$f":"IF(ISERROR(Dados!C8),\"-\",Dados!C8)","v":"Ambev S/A"},{"$f":"IF(ISERROR(Dados!G8),\"-\",Dados!G8)","v":56340.62},null,{"$f":"IF(ISERROR(Dados!C8),\"-\",Dados!C8)","v":"Ambev S/A"},{"$f":"IF(ISERROR(Dados!X8),\"0\",Dados!X8)","v":21013.5},null,{"$f":"IF(ISERROR(Dados!C8),\"-\",Dados!C8)","v":"Ambev S/A"},{"$f":"IF(ISERROR(Dados!AB8),\"0\",Dados!AB8)","v":3.2496451159645647E-2},null,{"$f":"IF(ISERROR(Dados!C8),\"-\",Dados!C8)","v":"Ambev S/A"},{"$f":"IF(ISERROR(Dados!S8),\"-\",Dados!S8)","v":4.6961931333024021},null,{"$f":"IF(ISERROR(Dados!C8),\"-\",Dados!C8)","v":"Ambev S/A"},{"$f":"IF(ISERROR(Dados!T8),\"-\",Dados!T8)","v":23.999465995384899},null,{"$f":"IF(ISERROR(Dados!C8),\"-\",Dados!C8)","v":"Ambev S/A"},{"$f":"IF(ISERROR(Dados!U8),\"0\",Dados!U8)","v":0.23711400000000002},null,{"$f":"IF(ISERROR(Dados!C8),\"-\",Dados!C8)","v":"Ambev S/A"},{"$f":"IF(ISERROR(IF(Dados!Z8<0,\"-\",Dados!Z8)),\"-\",IF(Dados!Z8<0,\"-\",Dados!Z8))","v":12.160387798320128},null,{"$f":"IF(ISERROR(Dados!C8),\"-\",Dados!C8)","v":"Ambev S/A"},{"$f":"IF(ISERROR(Dados!AC8),\"-1000000\",Dados!AC8)","v":-2.2999999999999998},null,{"$f":"IF(ISERROR(Dados!C8),\"-\",Dados!C8)","v":"Ambev S/A"},{"$f":"IF(ISERROR(Dados!AD8),\"-1000000\",Dados!AD8)","v":-18.3},null,{"$f":"IF(ISERROR(Dados!C8),\"-\",Dados!C8)","v":"Ambev S/A"},{"$f":"IF(ISERROR(Dados!AC8),\"-\",Dados!AC8)","v":-2.2999999999999998},null,{"$f":"IF(ISERROR(Dados!C8),\"-\",Dados!C8)","v":"Ambev S/A"},{"$f":"IF(ISERROR(Dados!AD8),\"-\",Dados!AD8)","v":-18.3}]
[{"$f":"IF(ISERROR(Dados!C150),\"-\",Dados!C150)","v":"Time For Fun"},{"$f":"IF(ISERROR(Dados!F150),\"-\",Dados!F150)","v":456.2},null,{"$f":"IF(ISERROR(Dados!C150),\"-\",Dados!C150)","v":"Time For Fun"},{"$f":"IF(ISERROR(Dados!G150),\"-\",Dados!G150)","v":329.17},null,{"$f":"IF(ISERROR(Dados!C150),\"-\",Dados!C150)","v":"Time For Fun"},{"$f":"IF(ISERROR(Dados!X150),\"0\",Dados!X150)","v":37.4},null,{"$f":"IF(ISERROR(Dados!C150),\"-\",Dados!C150)","v":"Time For Fun"},{"$f":"IF(ISERROR(Dados!AB150),\"0\",Dados!AB150)","v":4.6185883384480493E-2},null,{"$f":"IF(ISERROR(Dados!C150),\"-\",Dados!C150)","v":"Time For Fun"},{"$f":"IF(ISERROR(Dados!S150),\"-\",Dados!S150)","v":1.3859072211926968},null,{"$f":"IF(ISERROR(Dados!C150),\"-\",Dados!C150)","v":"Time For Fun"},{"$f":"IF(ISERROR(Dados!T150),\"-\",Dados!T150)","v":54.439031026252984},null,{"$f":"IF(ISERROR(Dados!C150),\"-\",Dados!C150)","v":"Time For Fun"},{"$f":"IF(ISERROR(Dados!U150),\"0\",Dados!U150)","v":3.2508000000000002E-2},null,{"$f":"IF(ISERROR(Dados!C150),\"-\",Dados!C150)","v":"Time For Fun"},{"$f":"IF(ISERROR(IF(Dados!Z150<0,\"-\",Dados!Z150)),\"-\",IF(Dados!Z150<0,\"-\",Dados!Z150))","v":9.92},null,{"$f":"IF(ISERROR(Dados!C150),\"-\",Dados!C150)","v":"Time For Fun"},{"$f":"IF(ISERROR(Dados!AC150),\"-1000000\",Dados!AC150)","v":-6.5},null,{"$f":"IF(ISERROR(Dados!C150),\"-\",Dados!C150)","v":"Time For Fun"},{"$f":"IF(ISERROR(Dados!AD150),\"-1000000\",Dados!AD150)","v":-4.8},null,{"$f":"IF(ISERROR(Dados!C150),\"-\",Dados!C150)","v":"Time For Fun"},{"$f":"IF(ISERROR(Dados!AC150),\"-\",Dados!AC150)","v":-6.5},null,{"$f":"IF(ISERROR(Dados!C150),\"-\",Dados!C150)","v":"Time For Fun"},{"$f":"IF(ISERROR(Dados!AD150),\"-\",Dados!AD150)","v":-4.8}]
[{"$f":"IF(ISERROR(Dados!C29),\"-\",Dados!C29)","v":"Profarma"},{"$f":"IF(ISERROR(Dados!F29),\"-\",Dados!F29)","v":530.91},null,{"$f":"IF(ISERROR(Dados!C29),\"-\",Dados!C29)","v":"Profarma"},{"$f":"IF(ISERROR(Dados!G29),\"-\",Dados!G29)","v":1021.21},null,{"$f":"IF(ISERROR(Dados!C29),\"-\",Dados!C29)","v":"Profarma"},{"$f":"IF(ISERROR(Dados!X29),\"0\",Dados!X29)","v":88.6},null,{"$f":"IF(ISERROR(Dados!C29),\"-\",Dados!C29)","v":"Profarma"},{"$f":"IF(ISERROR(Dados!AB29),\"0\",Dados!AB29)","v":"0"},null,{"$f":"IF(ISERROR(Dados!C29),\"-\",Dados!C29)","v":"Profarma"},{"$f":"IF(ISERROR(Dados!S29),\"-\",Dados!S29)","v":0.51987899648456248},null,{"$f":"IF(ISERROR(Dados!C29),\"-\",Dados!C29)","v":"Profarma"},{"$f":"IF(ISERROR(Dados!T29),\"-\",Dados!T29)","v":"-"},null,{"$f":"IF(ISERROR(Dados!C29),\"-\",Dados!C29)","v":"Profarma"},{"$f":"IF(ISERROR(Dados!U29),\"0\",Dados!U29)","v":-1.3049E-2},null,{"$f":"IF(ISERROR(Dados!C29),\"-\",Dados!C29)","v":"Profarma"},{"$f":"IF(ISERROR(IF(Dados!Z29<0,\"-\",Dados!Z29)),\"-\",IF(Dados!Z29<0,\"-\",Dados!Z29))","v":10.584198645598194},null,{"$f":"IF(ISERROR(Dados!C29),\"-\",Dados!C29)","v":"Profarma"},{"$f":"IF(ISERROR(Dados!AC29),\"-1000000\",Dados!AC29)","v":1.2},null,{"$f":"IF(ISERROR(Dados!C29),\"-\",Dados!C29)","v":"Profarma"},{"$f":"IF(ISERROR(Dados!AD29),\"-1000000\",Dados!AD29)","v":-39.299999999999997},null,{"$f":"IF(ISERROR(Dados!C29),\"-\",Dados!C29)","v":"Profarma"},{"$f":"IF(ISERROR(Dados!AC29),\"-\",Dados!AC29)","v":1.2},null,{"$f":"IF(ISERROR(Dados!C29),\"-\",Dados!C29)","v":"Profarma"},{"$f":"IF(ISERROR(Dados!AD29),\"-\",Dados!AD29)","v":-39.299999999999997}]
[{"$f":"IF(ISERROR(Dados!C176),\"-\",Dados!C176)","v":"Ultrapar"},{"$f":"IF(ISERROR(Dados!F176),\"-\",Dados!F176)","v":25521.7},null,{"$f":"IF(ISERROR(Dados!C176),\"-\",Dados!C176)","v":"Ultrapar"},{"$f":"IF(ISERROR(Dados!G176),\"-\",Dados!G176)","v":9448.11},null,{"$f":"IF(ISERROR(Dados!C176),\"-\",Dados!C176)","v":"Ultrapar"},{"$f":"IF(ISERROR(Dados!X176),\"0\",Dados!X176)","v":2697.1},null,{"$f":"IF(ISERROR(Dados!C176),\"-\",Dados!C176)","v":"Ultrapar"},{"$f":"IF(ISERROR(Dados!AB176),\"0\",Dados!AB176)","v":3.0929757813938724E-2},null,{"$f":"IF(ISERROR(Dados!C176),\"-\",Dados!C176)","v":"Ultrapar"},{"$f":"IF(ISERROR(Dados!S176),\"-\",Dados!S176)","v":2.7012497737642764},null,{"$f":"IF(ISERROR(Dados!C176),\"-\",Dados!C176)","v":"Ultrapar"},{"$f":"IF(ISERROR(Dados!T176),\"-\",Dados!T176)","v":22.184684723839986},null,{"$f":"IF(ISERROR(Dados!C176),\"-\",Dados!C176)","v":"Ultrapar"},{"$f":"IF(ISERROR(Dados!U176),\"0\",Dados!U176)","v":0.116484},null,{"$f":"IF(ISERROR(Dados!C176),\"-\",Dados!C176)","v":"Ultrapar"},{"$f":"IF(ISERROR(IF(Dados!Z176<0,\"-\",Dados!Z176)),\"-\",IF(Dados!Z176<0,\"-\",Dados!Z176))","v":12.582326202217198},null,{"$f":"IF(ISERROR(Dados!C176),\"-\",Dados!C176)","v":"Ultrapar"},{"$f":"IF(ISERROR(Dados!AC176),\"-1000000\",Dados!AC176)","v":-10.8},null,{"$f":"IF(ISERROR(Dados!C176),\"-\",Dados!C176)","v":"Ultrapar"},{"$f":"IF(ISERROR(Dados!AD176),\"-1000000\",Dados!AD176)","v":-34.9},null,{"$f":"IF(ISERROR(Dados!C176),\"-\",Dados!C176)","v":"Ultrapar"},{"$f":"IF(ISERROR(Dados!AC176),\"-\",Dados!AC176)","v":-10.8},null,{"$f":"IF(ISERROR(Dados!C176),\"-\",Dados!C176)","v":"Ultrapar"},{"$f":"IF(ISERROR(Dados!AD176),\"-\",Dados!AD176)","v":-34.9}]
[{"$f":"IF(ISERROR(Dados!C57),\"-\",Dados!C57)","v":"Elektro"},{"$f":"IF(ISERROR(Dados!F57),\"-\",Dados!F57)","v":3607.92},null,{"$f":"IF(ISERROR(Dados!C57),\"-\",Dados!C57)","v":"Elektro"},{"$f":"IF(ISERROR(Dados!G57),\"-\",Dados!G57)","v":2293.83},null,{"$f":"IF(ISERROR(Dados!C57),\"-\",Dados!C57)","v":"Elektro"},{"$f":"IF(ISERROR(Dados!X57),\"0\",Dados!X57)","v":928.5},null,{"$f":"IF(ISERROR(Dados!C57),\"-\",Dados!C57)","v":"Elektro"},{"$f":"IF(ISERROR(Dados!AB57),\"0\",Dados!AB57)","v":"0"},null,{"$f":"IF(ISERROR(Dados!C57),\"-\",Dados!C57)","v":"Elektro"},{"$f":"IF(ISERROR(Dados!S57),\"-\",Dados!S57)","v":1.6049232070380106},null,{"$f":"IF(ISERROR(Dados!C57),\"-\",Dados!C57)","v":"Elektro"},{"$f":"IF(ISERROR(Dados!T57),\"-\",Dados!T57)","v":8.8852388192986265},null,{"$f":"IF(ISERROR(Dados!C57),\"-\",Dados!C57)","v":"Elektro"},{"$f":"IF(ISERROR(Dados!U57),\"0\",Dados!U57)","v":0.20407399999999998},null,{"$f":"IF(ISERROR(Dados!C57),\"-\",Dados!C57)","v":"Elektro"},{"$f":"IF(ISERROR(IF(Dados!Z57<0,\"-\",Dados!Z57)),\"-\",IF(Dados!Z57<0,\"-\",Dados!Z57))","v":7.1546623586429732},null,{"$f":"IF(ISERROR(Dados!C57),\"-\",Dados!C57)","v":"Elektro"},{"$f":"IF(ISERROR(Dados!AC57),\"-1000000\",Dados!AC57)","v":"-1000000"},null,{"$f":"IF(ISERROR(Dados!C57),\"-\",Dados!C57)","v":"Elektro"},{"$f":"IF(ISERROR(Dados!AD57),\"-1000000\",Dados!AD57)","v":-13.7},null,{"$f":"IF(ISERROR(Dados!C57),\"-\",Dados!C57)","v":"Elektro"},{"$f":"IF(ISERROR(Dados!AC57),\"-\",Dados!AC57)","v":"-"},null,{"$f":"IF(ISERROR(Dados!C57),\"-\",Dados!C57)","v":"Elektro"},{"$f":"IF(ISERROR(Dados!AD57),\"-\",Dados!AD57)","v":-13.7}]
[{"$f":"IF(ISERROR(Dados!C209),\"-\",Dados!C209)","v":"Telebras"},{"$f":"IF(ISERROR(Dados!F209),\"-\",Dados!F209)","v":1866.42},null,{"$f":"IF(ISERROR(Dados!C209),\"-\",Dados!C209)","v":"Telebras"},{"$f":"IF(ISERROR(Dados!G209),\"-\",Dados!G209)","v":370.43},null,{"$f":"IF(ISERROR(Dados!C209),\"-\",Dados!C209)","v":"Telebras"},{"$f":"IF(ISERROR(Dados!X209),\"0\",Dados!X209)","v":-62.8},null,{"$f":"IF(ISERROR(Dados!C209),\"-\",Dados!C209)","v":"Telebras"},{"$f":"IF(ISERROR(Dados!AB209),\"0\",Dados!AB209)","v":5.3578508588634927E-6},null,{"$f":"IF(ISERROR(Dados!C209),\"-\",Dados!C209)","v":"Telebras"},{"$f":"IF(ISERROR(Dados!S209),\"-\",Dados!S209)","v":3.8298814890802579},null,{"$f":"IF(ISERROR(Dados!C209),\"-\",Dados!C209)","v":"Telebras"},{"$f":"IF(ISERROR(Dados!T209),\"-\",Dados!T209)","v":"-"},null,{"$f":"IF(ISERROR(Dados!C209),\"-\",Dados!C209)","v":"Telebras"},{"$f":"IF(ISERROR(Dados!U209),\"0\",Dados!U209)","v":-0.38121899999999997},null,{"$f":"IF(ISERROR(Dados!C209),\"-\",Dados!C209)","v":"Telebras"},{"$f":"IF(ISERROR(IF(Dados!Z209<0,\"-\",Dados!Z209)),\"-\",IF(Dados!Z209<0,\"-\",Dados!Z209))","v":"-"},null,{"$f":"IF(ISERROR(Dados!C209),\"-\",Dados!C209)","v":"Telebras"},{"$f":"IF(ISERROR(Dados!AC209),\"-1000000\",Dados!AC209)","v":5.0999999999999996},null,{"$f":"IF(ISERROR(Dados!C209),\"-\",Dados!C209)","v":"Telebras"},{"$f":"IF(ISERROR(Dados!AD209),\"-1000000\",Dados!AD209)","v":30.1},null,{"$f":"IF(ISERROR(Dados!C209),\"-\",Dados!C209)","v":"Telebras"},{"$f":"IF(ISERROR(Dados!AC209),\"-\",Dados!AC209)","v":5.0999999999999996},null,{"$f":"IF(ISERROR(Dados!C209),\"-\",Dados!C209)","v":"Telebras"},{"$f":"IF(ISERROR(Dados!AD209),\"-\",Dados!AD209)","v":30.1}]
[{"$f":"IF(ISERROR(Dados!C143),\"-\",Dados!C143)","v":"Bk Brasil"},{"$f":"IF(ISERROR(Dados!F143),\"-\",Dados!F143)","v":5020.63},null,{"$f":"IF(ISERROR(Dados!C143),\"-\",Dados!C143)","v":"Bk Brasil"},{"$f":"IF(ISERROR(Dados!G143),\"-\",Dados!G143)","v":1716.96},null,{"$f":"IF(ISERROR(Dados!C143),\"-\",Dados!C143)","v":"Bk Brasil"},{"$f":"IF(ISERROR(Dados!X143),\"0\",Dados!X143)","v":260},null,{"$f":"IF(ISERROR(Dados!C143),\"-\",Dados!C143)","v":"Bk Brasil"},{"$f":"IF(ISERROR(Dados!AB143),\"0\",Dados!AB143)","v":"0"},null,{"$f":"IF(ISERROR(Dados!C143),\"-\",Dados!C143)","v":"Bk Brasil"},{"$f":"IF(ISERROR(Dados!S143),\"-\",Dados!S143)","v":2.9241381569751184},null,{"$f":"IF(ISERROR(Dados!C143),\"-\",Dados!C143)","v":"Bk Brasil"},{"$f":"IF(ISERROR(Dados!T143),\"-\",Dados!T143)","v":39.211404639175257},null,{"$f":"IF(ISERROR(Dados!C143),\"-\",Dados!C143)","v":"Bk Brasil"},{"$f":"IF(ISERROR(Dados!U143),\"0\",Dados!U143)","v":7.9172000000000006E-2},null,{"$f":"IF(ISERROR(Dados!C143),\"-\",Dados!C143)","v":"Bk Brasil"},{"$f":"IF(ISERROR(IF(Dados!Z143<0,\"-\",Dados!Z143)),\"-\",IF(Dados!Z143<0,\"-\",Dados!Z143))","v":18.112146153846155},null,{"$f":"IF(ISERROR(Dados!C143),\"-\",Dados!C143)","v":"Bk Brasil"},{"$f":"IF(ISERROR(Dados!AC143),\"-1000000\",Dados!AC143)","v":0.1},null,{"$f":"IF(ISERROR(Dados!C143),\"-\",Dados!C143)","v":"Bk Brasil"},{"$f":"IF(ISERROR(Dados!AD143),\"-1000000\",Dados!AD143)","v":27.1},null,{"$f":"IF(ISERROR(Dados!C143),\"-\",Dados!C143)","v":"Bk Brasil"},{"$f":"IF(ISERROR(Dados!AC143),\"-\",Dados!AC143)","v":0.1},null,{"$f":"IF(ISERROR(Dados!C143),\"-\",Dados!C143)","v":"Bk Brasil"},{"$f":"IF(ISERROR(Dados!AD143),\"-\",Dados!AD143)","v":27.1}]
[{"$f":"IF(ISERROR(Dados!C193),\"-\",Dados!C193)","v":"Kepler Weber"},{"$f":"IF(ISERROR(Dados!F193),\"-\",Dados!F193)","v":455.2},null,{"$f":"IF(ISERROR(Dados!C193),\"-\",Dados!C193)","v":"Kepler Weber"},{"$f":"IF(ISERROR(Dados!G193),\"-\",Dados!G193)","v":441.03},null,{"$f":"IF(ISERROR(Dados!C193),\"-\",Dados!C193)","v":"Kepler Weber"},{"$f":"IF(ISERROR(Dados!X193),\"0\",Dados!X193)","v":48.4},null,{"$f":"IF(ISERROR(Dados!C193),\"-\",Dados!C193)","v":"Kepler Weber"},{"$f":"IF(ISERROR(Dados!AB193),\"0\",Dados!AB193)","v":"0"},null,{"$f":"IF(ISERROR(Dados!C193),\"-\",Dados!C193)","v":"Kepler Weber"},{"$f":"IF(ISERROR(Dados!S193),\"-\",Dados!S193)","v":1.0321238917987441},null,{"$f":"IF(ISERROR(Dados!C193),\"-\",Dados!C193)","v":"Kepler Weber"},{"$f":"IF(ISERROR(Dados!T193),\"-\",Dados!T193)","v":55.042031438935915},null,{"$f":"IF(ISERROR(Dados!C193),\"-\",Dados!C193)","v":"Kepler Weber"},{"$f":"IF(ISERROR(Dados!U193),\"0\",Dados!U193)","v":1.8987E-2},null,{"$f":"IF(ISERROR(Dados!C193),\"-\",Dados!C193)","v":"Kepler Weber"},{"$f":"IF(ISERROR(IF(Dados!Z193<0,\"-\",Dados!Z193)),\"-\",IF(Dados!Z193<0,\"-\",Dados!Z193))","v":9.74745867768595},null,{"$f":"IF(ISERROR(Dados!C193),\"-\",Dados!C193)","v":"Kepler Weber"},{"$f":"IF(ISERROR(Dados!AC193),\"-1000000\",Dados!AC193)","v":0.3},null,{"$f":"IF(ISERROR(Dados!C193),\"-\",Dados!C193)","v":"Kepler Weber"},{"$f":"IF(ISERROR(Dados!AD193),\"-1000000\",Dados!AD193)","v":-11.4},null,{"$f":"IF(ISERROR(Dados!C193),\"-\",Dados!C193)","v":"Kepler Weber"},{"$f":"IF(ISERROR(Dados!AC193),\"-\",Dados!AC193)","v":0.3},null,{"$f":"IF(ISERROR(Dados!C193),\"-\",Dados!C193)","v":"Kepler Weber"},{"$f":"IF(ISERROR(Dados!AD193),\"-\",Dados!AD193)","v":-11.4}]
[{"$f":"IF(ISERROR(Dados!C183),\"-\",Dados!C183)","v":"Ourofino S/A"},{"$f":"IF(ISERROR(Dados!F183),\"-\",Dados!F183)","v":1685.91},null,{"$f":"IF(ISERROR(Dados!C183),\"-\",Dados!C183)","v":"Ourofino S/A"},{"$f":"IF(ISERROR(Dados!G183),\"-\",Dados!G183)","v":455.94},null,{"$f":"IF(ISERROR(Dados!C183),\"-\",Dados!C183)","v":"Ourofino S/A"},{"$f":"IF(ISERROR(Dados!X183),\"0\",Dados!X183)","v":123.5},null,{"$f":"IF(ISERROR(Dados!C183),\"-\",Dados!C183)","v":"Ourofino S/A"},{"$f":"IF(ISERROR(Dados!AB183),\"0\",Dados!AB183)","v":"0"},null,{"$f":"IF(ISERROR(Dados!C183),\"-\",Dados!C183)","v":"Ourofino S/A"},{"$f":"IF(ISERROR(Dados!S183),\"-\",Dados!S183)","v":3.6976493617581259},null,{"$f":"IF(ISERROR(Dados!C183),\"-\",Dados!C183)","v":"Ourofino S/A"},{"$f":"IF(ISERROR(Dados!T183),\"-\",Dados!T183)","v":24.48665577342048},null,{"$f":"IF(ISERROR(Dados!C183),\"-\",Dados!C183)","v":"Ourofino S/A"},{"$f":"IF(ISERROR(Dados!U183),\"0\",Dados!U183)","v":0.16977499999999998},null,{"$f":"IF(ISERROR(Dados!C183),\"-\",Dados!C183)","v":"Ourofino S/A"},{"$f":"IF(ISERROR(IF(Dados!Z183<0,\"-\",Dados!Z183)),\"-\",IF(Dados!Z183<0,\"-\",Dados!Z183))","v":15.451465587044535},null,{"$f":"IF(ISERROR(Dados!C183),\"-\",Dados!C183)","v":"Ourofino S/A"},{"$f":"IF(ISERROR(Dados!AC183),\"-1000000\",Dados!AC183)","v":-3.5},null,{"$f":"IF(ISERROR(Dados!C183),\"-\",Dados!C183)","v":"Ourofino S/A"},{"$f":"IF(ISERROR(Dados!AD183),\"-1000000\",Dados!AD183)","v":31.3},null,{"$f":"IF(ISERROR(Dados!C183),\"-\",Dados!C183)","v":"Ourofino S/A"},{"$f":"IF(ISERROR(Dados!AC183),\"-\",Dados!AC183)","v":-3.5},null,{"$f":"IF(ISERROR(Dados!C183),\"-\",Dados!C183)","v":"Ourofino S/A"},{"$f":"IF(ISERROR(Dados!AD183),\"-\",Dados!AD183)","v":31.3}]
[{"$f":"IF(ISERROR(Dados!C120),\"-\",Dados!C120)","v":"Intermedica"},{"$f":"IF(ISERROR(Dados!F120),\"-\",Dados!F120)","v":17334},null,{"$f":"IF(ISERROR(Dados!C120),\"-\",Dados!C120)","v":"Intermedica"},{"$f":"IF(ISERROR(Dados!G120),\"-\",Dados!G120)","v":2340.0700000000002},null,{"$f":"IF(ISERROR(Dados!C120),\"-\",Dados!C120)","v":"Intermedica"},{"$f":"IF(ISERROR(Dados!X120),\"0\",Dados!X120)","v":744.8},null,{"$f":"IF(ISERROR(Dados!C120),\"-\",Dados!C120)","v":"Intermedica"},{"$f":"IF(ISERROR(Dados!AB120),\"0\",Dados!AB120)","v":"0"},null,{"$f":"IF(ISERROR(Dados!C120),\"-\",Dados!C120)","v":"Intermedica"},{"$f":"IF(ISERROR(Dados!S120),\"-\",Dados!S120)","v":7.4074761866098013},null,{"$f":"IF(ISERROR(Dados!C120),\"-\",Dados!C120)","v":"Intermedica"},{"$f":"IF(ISERROR(Dados!T120),\"-\",Dados!T120)","v":51.887367318226715},null,{"$f":"IF(ISERROR(Dados!C120),\"-\",Dados!C120)","v":"Intermedica"},{"$f":"IF(ISERROR(Dados!U120),\"0\",Dados!U120)","v":0.24725000000000003},null,{"$f":"IF(ISERROR(Dados!C120),\"-\",Dados!C120)","v":"Intermedica"},{"$f":"IF(ISERROR(IF(Dados!Z120<0,\"-\",Dados!Z120)),\"-\",IF(Dados!Z120<0,\"-\",Dados!Z120))","v":22.69121240601504},null,{"$f":"IF(ISERROR(Dados!C120),\"-\",Dados!C120)","v":"Intermedica"},{"$f":"IF(ISERROR(Dados!AC120),\"-1000000\",Dados!AC120)","v":-0.8},null,{"$f":"IF(ISERROR(Dados!C120),\"-\",Dados!C120)","v":"Intermedica"},{"$f":"IF(ISERROR(Dados!AD120),\"-1000000\",Dados!AD120)","v":"-1000000"},null,{"$f":"IF(ISERROR(Dados!C120),\"-\",Dados!C120)","v":"Intermedica"},{"$f":"IF(ISERROR(Dados!AC120),\"-\",Dados!AC120)","v":-0.8},null,{"$f":"IF(ISERROR(Dados!C120),\"-\",Dados!C120)","v":"Intermedica"},{"$f":"IF(ISERROR(Dados!AD120),\"-\",Dados!AD120)","v":"-"}]
[{"$f":"IF(ISERROR(Dados!C10),\"-\",Dados!C10)","v":"M.Diasbranco"},{"$f":"IF(ISERROR(Dados!F10),\"-\",Dados!F10)","v":14729.55},null,{"$f":"IF(ISERROR(Dados!C10),\"-\",Dados!C10)","v":"M.Diasbranco"},{"$f":"IF(ISERROR(Dados!G10),\"-\",Dados!G10)","v":5561.84},null,{"$f":"IF(ISERROR(Dados!C10),\"-\",Dados!C10)","v":"M.Diasbranco"},{"$f":"IF(ISERROR(Dados!X10),\"0\",Dados!X10)","v":933.1},null,{"$f":"IF(ISERROR(Dados!C10),\"-\",Dados!C10)","v":"M.Diasbranco"},{"$f":"IF(ISERROR(Dados!AB10),\"0\",Dados!AB10)","v":8.9866968101537398E-3},null,{"$f":"IF(ISERROR(Dados!C10),\"-\",Dados!C10)","v":"M.Diasbranco"},{"$f":"IF(ISERROR(Dados!S10),\"-\",Dados!S10)","v":2.6483232167771815},null,{"$f":"IF(ISERROR(Dados!C10),\"-\",Dados!C10)","v":"M.Diasbranco"},{"$f":"IF(ISERROR(Dados!T10),\"-\",Dados!T10)","v":20.35874222529371},null,{"$f":"IF(ISERROR(Dados!C10),\"-\",Dados!C10)","v":"M.Diasbranco"},{"$f":"IF(ISERROR(Dados!U10),\"0\",Dados!U10)","v":0.14493400000000001},null,{"$f":"IF(ISERROR(Dados!C10),\"-\",Dados!C10)","v":"M.Diasbranco"},{"$f":"IF(ISERROR(IF(Dados!Z10<0,\"-\",Dados!Z10)),\"-\",IF(Dados!Z10<0,\"-\",Dados!Z10))","v":16.640610867002465},null,{"$f":"IF(ISERROR(Dados!C10),\"-\",Dados!C10)","v":"M.Diasbranco"},{"$f":"IF(ISERROR(Dados!AC10),\"-1000000\",Dados!AC10)","v":-7.5},null,{"$f":"IF(ISERROR(Dados!C10),\"-\",Dados!C10)","v":"M.Diasbranco"},{"$f":"IF(ISERROR(Dados!AD10),\"-1000000\",Dados!AD10)","v":-15.8},null,{"$f":"IF(ISERROR(Dados!C10),\"-\",Dados!C10)","v":"M.Diasbranco"},{"$f":"IF(ISERROR(Dados!AC10),\"-\",Dados!AC10)","v":-7.5},null,{"$f":"IF(ISERROR(Dados!C10),\"-\",Dados!C10)","v":"M.Diasbranco"},{"$f":"IF(ISERROR(Dados!AD10),\"-\",Dados!AD10)","v":-15.8}]
[{"$f":"IF(ISERROR(Dados!C216),\"-\",Dados!C216)","v":"Grendene"},{"$f":"IF(ISERROR(Dados!F216),\"-\",Dados!F216)","v":7544.14},null,{"$f":"IF(ISERROR(Dados!C216),\"-\",Dados!C216)","v":"Grendene"},{"$f":"IF(ISERROR(Dados!G216),\"-\",Dados!G216)","v":3465.04},null,{"$f":"IF(ISERROR(Dados!C216),\"-\",Dados!C216)","v":"Grendene"},{"$f":"IF(ISERROR(Dados!X216),\"0\",Dados!X216)","v":522.70000000000005},null,{"$f":"IF(ISERROR(Dados!C216),\"-\",Dados!C216)","v":"Grendene"},{"$f":"IF(ISERROR(Dados!AB216),\"0\",Dados!AB216)","v":4.2585370897146653E-2},null,{"$f":"IF(ISERROR(Dados!C216),\"-\",Dados!C216)","v":"Grendene"},{"$f":"IF(ISERROR(Dados!S216),\"-\",Dados!S216)","v":2.1772149527855378},null,{"$f":"IF(ISERROR(Dados!C216),\"-\",Dados!C216)","v":"Grendene"},{"$f":"IF(ISERROR(Dados!T216),\"-\",Dados!T216)","v":12.884287568527661},null,{"$f":"IF(ISERROR(Dados!C216),\"-\",Dados!C216)","v":"Grendene"},{"$f":"IF(ISERROR(Dados!U216),\"0\",Dados!U216)","v":0.181977},null,{"$f":"IF(ISERROR(Dados!C216),\"-\",Dados!C216)","v":"Grendene"},{"$f":"IF(ISERROR(IF(Dados!Z216<0,\"-\",Dados!Z216)),\"-\",IF(Dados!Z216<0,\"-\",Dados!Z216))","v":11.730612205854218},null,{"$f":"IF(ISERROR(Dados!C216),\"-\",Dados!C216)","v":"Grendene"},{"$f":"IF(ISERROR(Dados!AC216),\"-1000000\",Dados!AC216)","v":-3.3},null,{"$f":"IF(ISERROR(Dados!C216),\"-\",Dados!C216)","v":"Grendene"},{"$f":"IF(ISERROR(Dados!AD216),\"-1000000\",Dados!AD216)","v":-7.8},null,{"$f":"IF(ISERROR(Dados!C216),\"-\",Dados!C216)","v":"Grendene"},{"$f":"IF(ISERROR(Dados!AC216),\"-\",Dados!AC216)","v":-3.3},null,{"$f":"IF(ISERROR(Dados!C216),\"-\",Dados!C216)","v":"Grendene"},{"$f":"IF(ISERROR(Dados!AD216),\"-\",Dados!AD216)","v":-7.8}]
[{"$f":"IF(ISERROR(Dados!C194),\"-\",Dados!C194)","v":"Aliperti"},{"$f":"IF(ISERROR(Dados!F194),\"-\",Dados!F194)","v":"-"},null,{"$f":"IF(ISERROR(Dados!C194),\"-\",Dados!C194)","v":"Aliperti"},{"$f":"IF(ISERROR(Dados!G194),\"-\",Dados!G194)","v":232.15},null,{"$f":"IF(ISERROR(Dados!C194),\"-\",Dados!C194)","v":"Aliperti"},{"$f":"IF(ISERROR(Dados!X194),\"0\",Dados!X194)","v":0.8},null,{"$f":"IF(ISERROR(Dados!C194),\"-\",Dados!C194)","v":"Aliperti"},{"$f":"IF(ISERROR(Dados!AB194),\"0\",Dados!AB194)","v":"0"},null,{"$f":"IF(ISERROR(Dados!C194),\"-\",Dados!C194)","v":"Aliperti"},{"$f":"IF(ISERROR(Dados!S194),\"-\",Dados!S194)","v":"-"},null,{"$f":"IF(ISERROR(Dados!C194),\"-\",Dados!C194)","v":"Aliperti"},{"$f":"IF(ISERROR(Dados!T194),\"-\",Dados!T194)","v":"-"},null,{"$f":"IF(ISERROR(Dados!C194),\"-\",Dados!C194)","v":"Aliperti"},{"$f":"IF(ISERROR(Dados!U194),\"0\",Dados!U194)","v":-4.6954000000000003E-2},null,{"$f":"IF(ISERROR(Dados!C194),\"-\",Dados!C194)","v":"Aliperti"},{"$f":"IF(ISERROR(IF(Dados!Z194<0,\"-\",Dados!Z194)),\"-\",IF(Dados!Z194<0,\"-\",Dados!Z194))","v":"-"},null,{"$f":"IF(ISERROR(Dados!C194),\"-\",Dados!C194)","v":"Aliperti"},{"$f":"IF(ISERROR(Dados!AC194),\"-1000000\",Dados!AC194)","v":"-1000000"},null,{"$f":"IF(ISERROR(Dados!C194),\"-\",Dados!C194)","v":"Aliperti"},{"$f":"IF(ISERROR(Dados!AD194),\"-1000000\",Dados!AD194)","v":"-1000000"},null,{"$f":"IF(ISERROR(Dados!C194),\"-\",Dados!C194)","v":"Aliperti"},{"$f":"IF(ISERROR(Dados!AC194),\"-\",Dados!AC194)","v":"-"},null,{"$f":"IF(ISERROR(Dados!C194),\"-\",Dados!C194)","v":"Aliperti"},{"$f":"IF(ISERROR(Dados!AD194),\"-\",Dados!AD194)","v":"-"}]
[{"$f":"IF(ISERROR(Dados!C206),\"-\",Dados!C206)","v":"Oi"},{"$f":"IF(ISERROR(Dados!F206),\"-\",Dados!F206)","v":9048.81},null,{"$f":"IF(ISERROR(Dados!C206),\"-\",Dados!C206)","v":"Oi"},{"$f":"IF(ISERROR(Dados!G206),\"-\",Dados!G206)","v":25986.86},null,{"$f":"IF(ISERROR(Dados!C206),\"-\",Dados!C206)","v":"Oi"},{"$f":"IF(ISERROR(Dados!X206),\"0\",Dados!X206)","v":"0"},null,{"$f":"IF(ISERROR(Dados!C206),\"-\",Dados!C206)","v":"Oi"},{"$f":"IF(ISERROR(Dados!AB206),\"0\",Dados!AB206)","v":6.6307061370500652E-6},null,{"$f":"IF(ISERROR(Dados!C206),\"-\",Dados!C206)","v":"Oi"},{"$f":"IF(ISERROR(Dados!S206),\"-\",Dados!S206)","v":0.3459767570995495},null,{"$f":"IF(ISERROR(Dados!C206),\"-\",Dados!C206)","v":"Oi"},{"$f":"IF(ISERROR(Dados!T206),\"-\",Dados!T206)","v":0.35893334411229277},null,{"$f":"IF(ISERROR(Dados!C206),\"-\",Dados!C206)","v":"Oi"},{"$f":"IF(ISERROR(Dados!U206),\"0\",Dados!U206)","v":2.8750970000000002},null,{"$f":"IF(ISERROR(Dados!C206),\"-\",Dados!C206)","v":"Oi"},{"$f":"IF(ISERROR(IF(Dados!Z206<0,\"-\",Dados!Z206)),\"-\",IF(Dados!Z206<0,\"-\",Dados!Z206))","v":7.8675065606517567},null,{"$f":"IF(ISERROR(Dados!C206),\"-\",Dados!C206)","v":"Oi"},{"$f":"IF(ISERROR(Dados!AC206),\"-1000000\",Dados!AC206)","v":-16.100000000000001},null,{"$f":"IF(ISERROR(Dados!C206),\"-\",Dados!C206)","v":"Oi"},{"$f":"IF(ISERROR(Dados!AD206),\"-1000000\",Dados!AD206)","v":-40.4},null,{"$f":"IF(ISERROR(Dados!C206),\"-\",Dados!C206)","v":"Oi"},{"$f":"IF(ISERROR(Dados!AC206),\"-\",Dados!AC206)","v":-16.100000000000001},null,{"$f":"IF(ISERROR(Dados!C206),\"-\",Dados!C206)","v":"Oi"},{"$f":"IF(ISERROR(Dados!AD206),\"-\",Dados!AD206)","v":-40.4}]
[{"$f":"IF(ISERROR(Dados!C229),\"-\",Dados!C229)","v":"Cvc Brasil"},{"$f":"IF(ISERROR(Dados!F229),\"-\",Dados!F229)","v":7936.38},null,{"$f":"IF(ISERROR(Dados!C229),\"-\",Dados!C229)","v":"Cvc Brasil"},{"$f":"IF(ISERROR(Dados!G229),\"-\",Dados!G229)","v":1087.94},null,{"$f":"IF(ISERROR(Dados!C229),\"-\",Dados!C229)","v":"Cvc Brasil"},{"$f":"IF(ISERROR(Dados!X229),\"0\",Dados!X229)","v":659.1},null,{"$f":"IF(ISERROR(Dados!C229),\"-\",Dados!C229)","v":"Cvc Brasil"},{"$f":"IF(ISERROR(Dados!AB229),\"0\",Dados!AB229)","v":9.1464874413775561E-3},null,{"$f":"IF(ISERROR(Dados!C229),\"-\",Dados!C229)","v":"Cvc Brasil"},{"$f":"IF(ISERROR(Dados!S229),\"-\",Dados!S229)","v":7.2948836792470164},null,{"$f":"IF(ISERROR(Dados!C229),\"-\",Dados!C229)","v":"Cvc Brasil"},{"$f":"IF(ISERROR(Dados!T229),\"-\",Dados!T229)","v":29.363607185141337},null,{"$f":"IF(ISERROR(Dados!C229),\"-\",Dados!C229)","v":"Cvc Brasil"},{"$f":"IF(ISERROR(Dados!U229),\"0\",Dados!U229)","v":0.33288899999999999},null,{"$f":"IF(ISERROR(Dados!C229),\"-\",Dados!C229)","v":"Cvc Brasil"},{"$f":"IF(ISERROR(IF(Dados!Z229<0,\"-\",Dados!Z229)),\"-\",IF(Dados!Z229<0,\"-\",Dados!Z229))","v":13.660606888180853},null,{"$f":"IF(ISERROR(Dados!C229),\"-\",Dados!C229)","v":"Cvc Brasil"},{"$f":"IF(ISERROR(Dados!AC229),\"-1000000\",Dados!AC229)","v":-6.3},null,{"$f":"IF(ISERROR(Dados!C229),\"-\",Dados!C229)","v":"Cvc Brasil"},{"$f":"IF(ISERROR(Dados!AD229),\"-1000000\",Dados!AD229)","v":13.9},null,{"$f":"IF(ISERROR(Dados!C229),\"-\",Dados!C229)","v":"Cvc Brasil"},{"$f":"IF(ISERROR(Dados!AC229),\"-\",Dados!AC229)","v":-6.3},null,{"$f":"IF(ISERROR(Dados!C229),\"-\",Dados!C229)","v":"Cvc Brasil"},{"$f":"IF(ISERROR(Dados!AD229),\"-\",Dados!AD229)","v":13.9}]
[{"$f":"IF(ISERROR(Dados!C9),\"-\",Dados!C9)","v":"Camil"},{"$f":"IF(ISERROR(Dados!F9),\"-\",Dados!F9)","v":2752.81},null,{"$f":"IF(ISERROR(Dados!C9),\"-\",Dados!C9)","v":"Camil"},{"$f":"IF(ISERROR(Dados!G9),\"-\",Dados!G9)","v":2091.19},null,{"$f":"IF(ISERROR(Dados!C9),\"-\",Dados!C9)","v":"Camil"},{"$f":"IF(ISERROR(Dados!X9),\"0\",Dados!X9)","v":"0"},null,{"$f":"IF(ISERROR(Dados!C9),\"-\",Dados!C9)","v":"Camil"},{"$f":"IF(ISERROR(Dados!AB9),\"0\",Dados!AB9)","v":3.0877539677638486E-2},null,{"$f":"IF(ISERROR(Dados!C9),\"-\",Dados!C9)","v":"Camil"},{"$f":"IF(ISERROR(Dados!S9),\"-\",Dados!S9)","v":1.3163826816310329},null,{"$f":"IF(ISERROR(Dados!C9),\"-\",Dados!C9)","v":"Camil"},{"$f":"IF(ISERROR(Dados!T9),\"-\",Dados!T9)","v":8.116302444202022},null,{"$f":"IF(ISERROR(Dados!C9),\"-\",Dados!C9)","v":"Camil"},{"$f":"IF(ISERROR(Dados!U9),\"0\",Dados!U9)","v":0.186252},null,{"$f":"IF(ISERROR(Dados!C9),\"-\",Dados!C9)","v":"Camil"},{"$f":"IF(ISERROR(IF(Dados!Z9<0,\"-\",Dados!Z9)),\"-\",IF(Dados!Z9<0,\"-\",Dados!Z9))","v":7.5451764464505535},null,{"$f":"IF(ISERROR(Dados!C9),\"-\",Dados!C9)","v":"Camil"},{"$f":"IF(ISERROR(Dados!AC9),\"-1000000\",Dados!AC9)","v":-5.3},null,{"$f":"IF(ISERROR(Dados!C9),\"-\",Dados!C9)","v":"Camil"},{"$f":"IF(ISERROR(Dados!AD9),\"-1000000\",Dados!AD9)","v":-11},null,{"$f":"IF(ISERROR(Dados!C9),\"-\",Dados!C9)","v":"Camil"},{"$f":"IF(ISERROR(Dados!AC9),\"-\",Dados!AC9)","v":-5.3},null,{"$f":"IF(ISERROR(Dados!C9),\"-\",Dados!C9)","v":"Camil"},{"$f":"IF(ISERROR(Dados!AD9),\"-\",Dados!AD9)","v":-11}]
[{"$f":"IF(ISERROR(Dados!C39),\"-\",Dados!C39)","v":"Rni"},{"$f":"IF(ISERROR(Dados!F39),\"-\",Dados!F39)","v":232.04},null,{"$f":"IF(ISERROR(Dados!C39),\"-\",Dados!C39)","v":"Rni"},{"$f":"IF(ISERROR(Dados!G39),\"-\",Dados!G39)","v":615.29999999999995},null,{"$f":"IF(ISERROR(Dados!C39),\"-\",Dados!C39)","v":"Rni"},{"$f":"IF(ISERROR(Dados!X39),\"0\",Dados!X39)","v":-28},null,{"$f":"IF(ISERROR(Dados!C39),\"-\",Dados!C39)","v":"Rni"},{"$f":"IF(ISERROR(Dados!AB39),\"0\",Dados!AB39)","v":"0"},null,{"$f":"IF(ISERROR(Dados!C39),\"-\",Dados!C39)","v":"Rni"},{"$f":"IF(ISERROR(Dados!S39),\"-\",Dados!S39)","v":0.37711604095563139},null,{"$f":"IF(ISERROR(Dados!C39),\"-\",Dados!C39)","v":"Rni"},{"$f":"IF(ISERROR(Dados!T39),\"-\",Dados!T39)","v":"-"},null,{"$f":"IF(ISERROR(Dados!C39),\"-\",Dados!C39)","v":"Rni"},{"$f":"IF(ISERROR(Dados!U39),\"0\",Dados!U39)","v":-4.1749999999999995E-2},null,{"$f":"IF(ISERROR(Dados!C39),\"-\",Dados!C39)","v":"Rni"},{"$f":"IF(ISERROR(IF(Dados!Z39<0,\"-\",Dados!Z39)),\"-\",IF(Dados!Z39<0,\"-\",Dados!Z39))","v":"-"},null,{"$f":"IF(ISERROR(Dados!C39),\"-\",Dados!C39)","v":"Rni"},{"$f":"IF(ISERROR(Dados!AC39),\"-1000000\",Dados!AC39)","v":-6},null,{"$f":"IF(ISERROR(Dados!C39),\"-\",Dados!C39)","v":"Rni"},{"$f":"IF(ISERROR(Dados!AD39),\"-1000000\",Dados!AD39)","v":-10.6},null,{"$f":"IF(ISERROR(Dados!C39),\"-\",Dados!C39)","v":"Rni"},{"$f":"IF(ISERROR(Dados!AC39),\"-\",Dados!AC39)","v":-6},null,{"$f":"IF(ISERROR(Dados!C39),\"-\",Dados!C39)","v":"Rni"},{"$f":"IF(ISERROR(Dados!AD39),\"-\",Dados!AD39)","v":-10.6}]
[{"$f":"IF(ISERROR(Dados!C213),\"-\",Dados!C213)","v":"Arezzo Co"},{"$f":"IF(ISERROR(Dados!F213),\"-\",Dados!F213)","v":4510.74},null,{"$f":"IF(ISERROR(Dados!C213),\"-\",Dados!C213)","v":"Arezzo Co"},{"$f":"IF(ISERROR(Dados!G213),\"-\",Dados!G213)","v":711.34},null,{"$f":"IF(ISERROR(Dados!C213),\"-\",Dados!C213)","v":"Arezzo Co"},{"$f":"IF(ISERROR(Dados!X213),\"0\",Dados!X213)","v":232.2},null,{"$f":"IF(ISERROR(Dados!C213),\"-\",Dados!C213)","v":"Arezzo Co"},{"$f":"IF(ISERROR(Dados!AB213),\"0\",Dados!AB213)","v":9.2933753663478735E-3},null,{"$f":"IF(ISERROR(Dados!C213),\"-\",Dados!C213)","v":"Arezzo Co"},{"$f":"IF(ISERROR(Dados!S213),\"-\",Dados!S213)","v":6.3411940562881313},null,{"$f":"IF(ISERROR(Dados!C213),\"-\",Dados!C213)","v":"Arezzo Co"},{"$f":"IF(ISERROR(Dados!T213),\"-\",Dados!T213)","v":31.623282249018509},null,{"$f":"IF(ISERROR(Dados!C213),\"-\",Dados!C213)","v":"Arezzo Co"},{"$f":"IF(ISERROR(Dados!U213),\"0\",Dados!U213)","v":0.21451499999999998},null,{"$f":"IF(ISERROR(Dados!C213),\"-\",Dados!C213)","v":"Arezzo Co"},{"$f":"IF(ISERROR(IF(Dados!Z213<0,\"-\",Dados!Z213)),\"-\",IF(Dados!Z213<0,\"-\",Dados!Z213))","v":18.890426356589149},null,{"$f":"IF(ISERROR(Dados!C213),\"-\",Dados!C213)","v":"Arezzo Co"},{"$f":"IF(ISERROR(Dados!AC213),\"-1000000\",Dados!AC213)","v":-7.4},null,{"$f":"IF(ISERROR(Dados!C213),\"-\",Dados!C213)","v":"Arezzo Co"},{"$f":"IF(ISERROR(Dados!AD213),\"-1000000\",Dados!AD213)","v":-4.5999999999999996},null,{"$f":"IF(ISERROR(Dados!C213),\"-\",Dados!C213)","v":"Arezzo Co"},{"$f":"IF(ISERROR(Dados!AC213),\"-\",Dados!AC213)","v":-7.4},null,{"$f":"IF(ISERROR(Dados!C213),\"-\",Dados!C213)","v":"Arezzo Co"},{"$f":"IF(ISERROR(Dados!AD213),\"-\",Dados!AD213)","v":-4.5999999999999996}]
[{"$f":"IF(ISERROR(Dados!C20),\"-\",Dados!C20)","v":"Dimed"},{"$f":"IF(ISERROR(Dados!F20),\"-\",Dados!F20)","v":1704.16},null,{"$f":"IF(ISERROR(Dados!C20),\"-\",Dados!C20)","v":"Dimed"},{"$f":"IF(ISERROR(Dados!G20),\"-\",Dados!G20)","v":463.91},null,{"$f":"IF(ISERROR(Dados!C20),\"-\",Dados!C20)","v":"Dimed"},{"$f":"IF(ISERROR(Dados!X20),\"0\",Dados!X20)","v":139.69999999999999},null,{"$f":"IF(ISERROR(Dados!C20),\"-\",Dados!C20)","v":"Dimed"},{"$f":"IF(ISERROR(Dados!AB20),\"0\",Dados!AB20)","v":1.0497840578349451E-2},null,{"$f":"IF(ISERROR(Dados!C20),\"-\",Dados!C20)","v":"Dimed"},{"$f":"IF(ISERROR(Dados!S20),\"-\",Dados!S20)","v":3.8158842016770493},null,{"$f":"IF(ISERROR(Dados!C20),\"-\",Dados!C20)","v":"Dimed"},{"$f":"IF(ISERROR(Dados!T20),\"-\",Dados!T20)","v":23.609320352093889},null,{"$f":"IF(ISERROR(Dados!C20),\"-\",Dados!C20)","v":"Dimed"},{"$f":"IF(ISERROR(Dados!U20),\"0\",Dados!U20)","v":0.175706},null,{"$f":"IF(ISERROR(Dados!C20),\"-\",Dados!C20)","v":"Dimed"},{"$f":"IF(ISERROR(IF(Dados!Z20<0,\"-\",Dados!Z20)),\"-\",IF(Dados!Z20<0,\"-\",Dados!Z20))","v":12.92675733715104},null,{"$f":"IF(ISERROR(Dados!C20),\"-\",Dados!C20)","v":"Dimed"},{"$f":"IF(ISERROR(Dados!AC20),\"-1000000\",Dados!AC20)","v":4.8},null,{"$f":"IF(ISERROR(Dados!C20),\"-\",Dados!C20)","v":"Dimed"},{"$f":"IF(ISERROR(Dados!AD20),\"-1000000\",Dados!AD20)","v":-0.1},null,{"$f":"IF(ISERROR(Dados!C20),\"-\",Dados!C20)","v":"Dimed"},{"$f":"IF(ISERROR(Dados!AC20),\"-\",Dados!AC20)","v":4.8},null,{"$f":"IF(ISERROR(Dados!C20),\"-\",Dados!C20)","v":"Dimed"},{"$f":"IF(ISERROR(Dados!AD20),\"-\",Dados!AD20)","v":-0.1}]
[{"$f":"IF(ISERROR(Dados!C241),\"-\",Dados!C241)","v":"Iochp-Maxion"},{"$f":"IF(ISERROR(Dados!F241),\"-\",Dados!F241)","v":3203.58},null,{"$f":"IF(ISERROR(Dados!C241),\"-\",Dados!C241)","v":"Iochp-Maxion"},{"$f":"IF(ISERROR(Dados!G241),\"-\",Dados!G241)","v":2921.95},null,{"$f":"IF(ISERROR(Dados!C241),\"-\",Dados!C241)","v":"Iochp-Maxion"},{"$f":"IF(ISERROR(Dados!X241),\"0\",Dados!X241)","v":1057.0999999999999},null,{"$f":"IF(ISERROR(Dados!C241),\"-\",Dados!C241)","v":"Iochp-Maxion"},{"$f":"IF(ISERROR(Dados!AB241),\"0\",Dados!AB241)","v":1.1315465822610954E-2},null,{"$f":"IF(ISERROR(Dados!C241),\"-\",Dados!C241)","v":"Iochp-Maxion"},{"$f":"IF(ISERROR(Dados!S241),\"-\",Dados!S241)","v":1.0963839045842674},null,{"$f":"IF(ISERROR(Dados!C241),\"-\",Dados!C241)","v":"Iochp-Maxion"},{"$f":"IF(ISERROR(Dados!T241),\"-\",Dados!T241)","v":15.91207942184473},null,{"$f":"IF(ISERROR(Dados!C241),\"-\",Dados!C241)","v":"Iochp-Maxion"},{"$f":"IF(ISERROR(Dados!U241),\"0\",Dados!U241)","v":0.116381},null,{"$f":"IF(ISERROR(Dados!C241),\"-\",Dados!C241)","v":"Iochp-Maxion"},{"$f":"IF(ISERROR(IF(Dados!Z241<0,\"-\",Dados!Z241)),\"-\",IF(Dados!Z241<0,\"-\",Dados!Z241))","v":5.23165452653486},null,{"$f":"IF(ISERROR(Dados!C241),\"-\",Dados!C241)","v":"Iochp-Maxion"},{"$f":"IF(ISERROR(Dados!AC241),\"-1000000\",Dados!AC241)","v":-1.2},null,{"$f":"IF(ISERROR(Dados!C241),\"-\",Dados!C241)","v":"Iochp-Maxion"},{"$f":"IF(ISERROR(Dados!AD241),\"-1000000\",Dados!AD241)","v":-2.5},null,{"$f":"IF(ISERROR(Dados!C241),\"-\",Dados!C241)","v":"Iochp-Maxion"},{"$f":"IF(ISERROR(Dados!AC241),\"-\",Dados!AC241)","v":-1.2},null,{"$f":"IF(ISERROR(Dados!C241),\"-\",Dados!C241)","v":"Iochp-Maxion"},{"$f":"IF(ISERROR(Dados!AD241),\"-\",Dados!AD241)","v":-2.5}]
[{"$f":"IF(ISERROR(Dados!C61),\"-\",Dados!C61)","v":"AES Tiete E"},{"$f":"IF(ISERROR(Dados!F61),\"-\",Dados!F61)","v":4378.93},null,{"$f":"IF(ISERROR(Dados!C61),\"-\",Dados!C61)","v":"AES Tiete E"},{"$f":"IF(ISERROR(Dados!G61),\"-\",Dados!G61)","v":1523.47},null,{"$f":"IF(ISERROR(Dados!C61),\"-\",Dados!C61)","v":"AES Tiete E"},{"$f":"IF(ISERROR(Dados!X61),\"0\",Dados!X61)","v":1011.2},null,{"$f":"IF(ISERROR(Dados!C61),\"-\",Dados!C61)","v":"AES Tiete E"},{"$f":"IF(ISERROR(Dados!AB61),\"0\",Dados!AB61)","v":6.1672600384112097E-2},null,{"$f":"IF(ISERROR(Dados!C61),\"-\",Dados!C61)","v":"AES Tiete E"},{"$f":"IF(ISERROR(Dados!S61),\"-\",Dados!S61)","v":2.8539589555422813},null,{"$f":"IF(ISERROR(Dados!C61),\"-\",Dados!C61)","v":"AES Tiete E"},{"$f":"IF(ISERROR(Dados!T61),\"-\",Dados!T61)","v":15.099044485345186},null,{"$f":"IF(ISERROR(Dados!C61),\"-\",Dados!C61)","v":"AES Tiete E"},{"$f":"IF(ISERROR(Dados!U61),\"0\",Dados!U61)","v":0.184865},null,{"$f":"IF(ISERROR(Dados!C61),\"-\",Dados!C61)","v":"AES Tiete E"},{"$f":"IF(ISERROR(IF(Dados!Z61<0,\"-\",Dados!Z61)),\"-\",IF(Dados!Z61<0,\"-\",Dados!Z61))","v":7.3901246044303797},null,{"$f":"IF(ISERROR(Dados!C61),\"-\",Dados!C61)","v":"AES Tiete E"},{"$f":"IF(ISERROR(Dados!AC61),\"-1000000\",Dados!AC61)","v":-5.2},null,{"$f":"IF(ISERROR(Dados!C61),\"-\",Dados!C61)","v":"AES Tiete E"},{"$f":"IF(ISERROR(Dados!AD61),\"-1000000\",Dados!AD61)","v":-7.8},null,{"$f":"IF(ISERROR(Dados!C61),\"-\",Dados!C61)","v":"AES Tiete E"},{"$f":"IF(ISERROR(Dados!AC61),\"-\",Dados!AC61)","v":-5.2},null,{"$f":"IF(ISERROR(Dados!C61),\"-\",Dados!C61)","v":"AES Tiete E"},{"$f":"IF(ISERROR(Dados!AD61),\"-\",Dados!AD61)","v":-7.8}]
[{"$f":"IF(ISERROR(Dados!C236),\"-\",Dados!C236)","v":"Log-In"},{"$f":"IF(ISERROR(Dados!F236),\"-\",Dados!F236)","v":308.12},null,{"$f":"IF(ISERROR(Dados!C236),\"-\",Dados!C236)","v":"Log-In"},{"$f":"IF(ISERROR(Dados!G236),\"-\",Dados!G236)","v":-354.75},null,{"$f":"IF(ISERROR(Dados!C236),\"-\",Dados!C236)","v":"Log-In"},{"$f":"IF(ISERROR(Dados!X236),\"0\",Dados!X236)","v":198},null,{"$f":"IF(ISERROR(Dados!C236),\"-\",Dados!C236)","v":"Log-In"},{"$f":"IF(ISERROR(Dados!AB236),\"0\",Dados!AB236)","v":"0"},null,{"$f":"IF(ISERROR(Dados!C236),\"-\",Dados!C236)","v":"Log-In"},{"$f":"IF(ISERROR(Dados!S236),\"-\",Dados!S236)","v":"-"},null,{"$f":"IF(ISERROR(Dados!C236),\"-\",Dados!C236)","v":"Log-In"},{"$f":"IF(ISERROR(Dados!T236),\"-\",Dados!T236)","v":51.352693333333328},null,{"$f":"IF(ISERROR(Dados!C236),\"-\",Dados!C236)","v":"Log-In"},{"$f":"IF(ISERROR(Dados!U236),\"0\",Dados!U236)","v":"0"},null,{"$f":"IF(ISERROR(Dados!C236),\"-\",Dados!C236)","v":"Log-In"},{"$f":"IF(ISERROR(IF(Dados!Z236<0,\"-\",Dados!Z236)),\"-\",IF(Dados!Z236<0,\"-\",Dados!Z236))","v":7.7743333333333347},null,{"$f":"IF(ISERROR(Dados!C236),\"-\",Dados!C236)","v":"Log-In"},{"$f":"IF(ISERROR(Dados!AC236),\"-1000000\",Dados!AC236)","v":-6.4},null,{"$f":"IF(ISERROR(Dados!C236),\"-\",Dados!C236)","v":"Log-In"},{"$f":"IF(ISERROR(Dados!AD236),\"-1000000\",Dados!AD236)","v":173.9},null,{"$f":"IF(ISERROR(Dados!C236),\"-\",Dados!C236)","v":"Log-In"},{"$f":"IF(ISERROR(Dados!AC236),\"-\",Dados!AC236)","v":-6.4},null,{"$f":"IF(ISERROR(Dados!C236),\"-\",Dados!C236)","v":"Log-In"},{"$f":"IF(ISERROR(Dados!AD236),\"-\",Dados!AD236)","v":173.9}]
[{"$f":"IF(ISERROR(Dados!C62),\"-\",Dados!C62)","v":"AES Tiete E"},{"$f":"IF(ISERROR(Dados!F62),\"-\",Dados!F62)","v":4378.93},null,{"$f":"IF(ISERROR(Dados!C62),\"-\",Dados!C62)","v":"AES Tiete E"},{"$f":"IF(ISERROR(Dados!G62),\"-\",Dados!G62)","v":1523.47},null,{"$f":"IF(ISERROR(Dados!C62),\"-\",Dados!C62)","v":"AES Tiete E"},{"$f":"IF(ISERROR(Dados!X62),\"0\",Dados!X62)","v":1011.2},null,{"$f":"IF(ISERROR(Dados!C62),\"-\",Dados!C62)","v":"AES Tiete E"},{"$f":"IF(ISERROR(Dados!AB62),\"0\",Dados!AB62)","v":6.1672600384112097E-2},null,{"$f":"IF(ISERROR(Dados!C62),\"-\",Dados!C62)","v":"AES Tiete E"},{"$f":"IF(ISERROR(Dados!S62),\"-\",Dados!S62)","v":14.308536301994787},null,{"$f":"IF(ISERROR(Dados!C62),\"-\",Dados!C62)","v":"AES Tiete E"},{"$f":"IF(ISERROR(Dados!T62),\"-\",Dados!T62)","v":75.700186831504368},null,{"$f":"IF(ISERROR(Dados!C62),\"-\",Dados!C62)","v":"AES Tiete E"},{"$f":"IF(ISERROR(Dados!U62),\"0\",Dados!U62)","v":0.184865},null,{"$f":"IF(ISERROR(Dados!C62),\"-\",Dados!C62)","v":"AES Tiete E"},{"$f":"IF(ISERROR(IF(Dados!Z62<0,\"-\",Dados!Z62)),\"-\",IF(Dados!Z62<0,\"-\",Dados!Z62))","v":7.3901246044303797},null,{"$f":"IF(ISERROR(Dados!C62),\"-\",Dados!C62)","v":"AES Tiete E"},{"$f":"IF(ISERROR(Dados!AC62),\"-1000000\",Dados!AC62)","v":-4.8},null,{"$f":"IF(ISERROR(Dados!C62),\"-\",Dados!C62)","v":"AES Tiete E"},{"$f":"IF(ISERROR(Dados!AD62),\"-1000000\",Dados!AD62)","v":-6.4},null,{"$f":"IF(ISERROR(Dados!C62),\"-\",Dados!C62)","v":"AES Tiete E"},{"$f":"IF(ISERROR(Dados!AC62),\"-\",Dados!AC62)","v":-4.8},null,{"$f":"IF(ISERROR(Dados!C62),\"-\",Dados!C62)","v":"AES Tiete E"},{"$f":"IF(ISERROR(Dados!AD62),\"-\",Dados!AD62)","v":-6.4}]
[{"$f":"IF(ISERROR(Dados!C60),\"-\",Dados!C60)","v":"AES Tiete E"},{"$f":"IF(ISERROR(Dados!F60),\"-\",Dados!F60)","v":4378.93},null,{"$f":"IF(ISERROR(Dados!C60),\"-\",Dados!C60)","v":"AES Tiete E"},{"$f":"IF(ISERROR(Dados!G60),\"-\",Dados!G60)","v":1523.47},null,{"$f":"IF(ISERROR(Dados!C60),\"-\",Dados!C60)","v":"AES Tiete E"},{"$f":"IF(ISERROR(Dados!X60),\"0\",Dados!X60)","v":1011.2},null,{"$f":"IF(ISERROR(Dados!C60),\"-\",Dados!C60)","v":"AES Tiete E"},{"$f":"IF(ISERROR(Dados!AB60),\"0\",Dados!AB60)","v":6.1672600384112097E-2},null,{"$f":"IF(ISERROR(Dados!C60),\"-\",Dados!C60)","v":"AES Tiete E"},{"$f":"IF(ISERROR(Dados!S60),\"-\",Dados!S60)","v":2.905614321253454},null,{"$f":"IF(ISERROR(Dados!C60),\"-\",Dados!C60)","v":"AES Tiete E"},{"$f":"IF(ISERROR(Dados!T60),\"-\",Dados!T60)","v":15.372330358383108},null,{"$f":"IF(ISERROR(Dados!C60),\"-\",Dados!C60)","v":"AES Tiete E"},{"$f":"IF(ISERROR(Dados!U60),\"0\",Dados!U60)","v":0.184865},null,{"$f":"IF(ISERROR(Dados!C60),\"-\",Dados!C60)","v":"AES Tiete E"},{"$f":"IF(ISERROR(IF(Dados!Z60<0,\"-\",Dados!Z60)),\"-\",IF(Dados!Z60<0,\"-\",Dados!Z60))","v":7.3901246044303797},null,{"$f":"IF(ISERROR(Dados!C60),\"-\",Dados!C60)","v":"AES Tiete E"},{"$f":"IF(ISERROR(Dados!AC60),\"-1000000\",Dados!AC60)","v":-4.7},null,{"$f":"IF(ISERROR(Dados!C60),\"-\",Dados!C60)","v":"AES Tiete E"},{"$f":"IF(ISERROR(Dados!AD60),\"-1000000\",Dados!AD60)","v":-6.1},null,{"$f":"IF(ISERROR(Dados!C60),\"-\",Dados!C60)","v":"AES Tiete E"},{"$f":"IF(ISERROR(Dados!AC60),\"-\",Dados!AC60)","v":-4.7},null,{"$f":"IF(ISERROR(Dados!C60),\"-\",Dados!C60)","v":"AES Tiete E"},{"$f":"IF(ISERROR(Dados!AD60),\"-\",Dados!AD60)","v":-6.1}]
[{"$f":"IF(ISERROR(Dados!C240),\"-\",Dados!C240)","v":"Randon Part"},{"$f":"IF(ISERROR(Dados!F240),\"-\",Dados!F240)","v":3053.59},null,{"$f":"IF(ISERROR(Dados!C240),\"-\",Dados!C240)","v":"Randon Part"},{"$f":"IF(ISERROR(Dados!G240),\"-\",Dados!G240)","v":1527.31},null,{"$f":"IF(ISERROR(Dados!C240),\"-\",Dados!C240)","v":"Randon Part"},{"$f":"IF(ISERROR(Dados!X240),\"0\",Dados!X240)","v":559.70000000000005},null,{"$f":"IF(ISERROR(Dados!C240),\"-\",Dados!C240)","v":"Randon Part"},{"$f":"IF(ISERROR(Dados!AB240),\"0\",Dados!AB240)","v":1.14357199231069E-2},null,{"$f":"IF(ISERROR(Dados!C240),\"-\",Dados!C240)","v":"Randon Part"},{"$f":"IF(ISERROR(Dados!S240),\"-\",Dados!S240)","v":2.1747914306853224},null,{"$f":"IF(ISERROR(Dados!C240),\"-\",Dados!C240)","v":"Randon Part"},{"$f":"IF(ISERROR(Dados!T240),\"-\",Dados!T240)","v":21.892833509095698},null,{"$f":"IF(ISERROR(Dados!C240),\"-\",Dados!C240)","v":"Randon Part"},{"$f":"IF(ISERROR(Dados!U240),\"0\",Dados!U240)","v":0.118918},null,{"$f":"IF(ISERROR(Dados!C240),\"-\",Dados!C240)","v":"Randon Part"},{"$f":"IF(ISERROR(IF(Dados!Z240<0,\"-\",Dados!Z240)),\"-\",IF(Dados!Z240<0,\"-\",Dados!Z240))","v":7.4405109880292999},null,{"$f":"IF(ISERROR(Dados!C240),\"-\",Dados!C240)","v":"Randon Part"},{"$f":"IF(ISERROR(Dados!AC240),\"-1000000\",Dados!AC240)","v":0.5},null,{"$f":"IF(ISERROR(Dados!C240),\"-\",Dados!C240)","v":"Randon Part"},{"$f":"IF(ISERROR(Dados!AD240),\"-1000000\",Dados!AD240)","v":37.1},null,{"$f":"IF(ISERROR(Dados!C240),\"-\",Dados!C240)","v":"Randon Part"},{"$f":"IF(ISERROR(Dados!AC240),\"-\",Dados!AC240)","v":0.5},null,{"$f":"IF(ISERROR(Dados!C240),\"-\",Dados!C240)","v":"Randon Part"},{"$f":"IF(ISERROR(Dados!AD240),\"-\",Dados!AD240)","v":37.1}]
[{"$f":"IF(ISERROR(Dados!C105),\"-\",Dados!C105)","v":"Portobello"},{"$f":"IF(ISERROR(Dados!F105),\"-\",Dados!F105)","v":778.18},null,{"$f":"IF(ISERROR(Dados!C105),\"-\",Dados!C105)","v":"Portobello"},{"$f":"IF(ISERROR(Dados!G105),\"-\",Dados!G105)","v":362.11},null,{"$f":"IF(ISERROR(Dados!C105),\"-\",Dados!C105)","v":"Portobello"},{"$f":"IF(ISERROR(Dados!X105),\"0\",Dados!X105)","v":288},null,{"$f":"IF(ISERROR(Dados!C105),\"-\",Dados!C105)","v":"Portobello"},{"$f":"IF(ISERROR(Dados!AB105),\"0\",Dados!AB105)","v":3.8165977023310801E-2},null,{"$f":"IF(ISERROR(Dados!C105),\"-\",Dados!C105)","v":"Portobello"},{"$f":"IF(ISERROR(Dados!S105),\"-\",Dados!S105)","v":2.149018226505758},null,{"$f":"IF(ISERROR(Dados!C105),\"-\",Dados!C105)","v":"Portobello"},{"$f":"IF(ISERROR(Dados!T105),\"-\",Dados!T105)","v":5.7952114238903789},null,{"$f":"IF(ISERROR(Dados!C105),\"-\",Dados!C105)","v":"Portobello"},{"$f":"IF(ISERROR(Dados!U105),\"0\",Dados!U105)","v":0.47117100000000001},null,{"$f":"IF(ISERROR(Dados!C105),\"-\",Dados!C105)","v":"Portobello"},{"$f":"IF(ISERROR(IF(Dados!Z105<0,\"-\",Dados!Z105)),\"-\",IF(Dados!Z105<0,\"-\",Dados!Z105))","v":4.4833090277777776},null,{"$f":"IF(ISERROR(Dados!C105),\"-\",Dados!C105)","v":"Portobello"},{"$f":"IF(ISERROR(Dados!AC105),\"-1000000\",Dados!AC105)","v":-5.6},null,{"$f":"IF(ISERROR(Dados!C105),\"-\",Dados!C105)","v":"Portobello"},{"$f":"IF(ISERROR(Dados!AD105),\"-1000000\",Dados!AD105)","v":-6.8},null,{"$f":"IF(ISERROR(Dados!C105),\"-\",Dados!C105)","v":"Portobello"},{"$f":"IF(ISERROR(Dados!AC105),\"-\",Dados!AC105)","v":-5.6},null,{"$f":"IF(ISERROR(Dados!C105),\"-\",Dados!C105)","v":"Portobello"},{"$f":"IF(ISERROR(Dados!AD105),\"-\",Dados!AD105)","v":-6.8}]
[{"$f":"IF(ISERROR(Dados!C225),\"-\",Dados!C225)","v":"Teka"},{"$f":"IF(ISERROR(Dados!F225),\"-\",Dados!F225)","v":4.6100000000000003},null,{"$f":"IF(ISERROR(Dados!C225),\"-\",Dados!C225)","v":"Teka"},{"$f":"IF(ISERROR(Dados!G225),\"-\",Dados!G225)","v":-1435.22},null,{"$f":"IF(ISERROR(Dados!C225),\"-\",Dados!C225)","v":"Teka"},{"$f":"IF(ISERROR(Dados!X225),\"0\",Dados!X225)","v":-12.5},null,{"$f":"IF(ISERROR(Dados!C225),\"-\",Dados!C225)","v":"Teka"},{"$f":"IF(ISERROR(Dados!AB225),\"0\",Dados!AB225)","v":"0"},null,{"$f":"IF(ISERROR(Dados!C225),\"-\",Dados!C225)","v":"Teka"},{"$f":"IF(ISERROR(Dados!S225),\"-\",Dados!S225)","v":"-"},null,{"$f":"IF(ISERROR(Dados!C225),\"-\",Dados!C225)","v":"Teka"},{"$f":"IF(ISERROR(Dados!T225),\"-\",Dados!T225)","v":"-"},null,{"$f":"IF(ISERROR(Dados!C225),\"-\",Dados!C225)","v":"Teka"},{"$f":"IF(ISERROR(Dados!U225),\"0\",Dados!U225)","v":"0"},null,{"$f":"IF(ISERROR(Dados!C225),\"-\",Dados!C225)","v":"Teka"},{"$f":"IF(ISERROR(IF(Dados!Z225<0,\"-\",Dados!Z225)),\"-\",IF(Dados!Z225<0,\"-\",Dados!Z225))","v":"-"},null,{"$f":"IF(ISERROR(Dados!C225),\"-\",Dados!C225)","v":"Teka"},{"$f":"IF(ISERROR(Dados!AC225),\"-1000000\",Dados!AC225)","v":0.7},null,{"$f":"IF(ISERROR(Dados!C225),\"-\",Dados!C225)","v":"Teka"},{"$f":"IF(ISERROR(Dados!AD225),\"-1000000\",Dados!AD225)","v":25.1},null,{"$f":"IF(ISERROR(Dados!C225),\"-\",Dados!C225)","v":"Teka"},{"$f":"IF(ISERROR(Dados!AC225),\"-\",Dados!AC225)","v":0.7},null,{"$f":"IF(ISERROR(Dados!C225),\"-\",Dados!C225)","v":"Teka"},{"$f":"IF(ISERROR(Dados!AD225),\"-\",Dados!AD225)","v":25.1}]
[{"$f":"IF(ISERROR(Dados!C11),\"-\",Dados!C11)","v":"Sao Martinho"},{"$f":"IF(ISERROR(Dados!F11),\"-\",Dados!F11)","v":6433.72},null,{"$f":"IF(ISERROR(Dados!C11),\"-\",Dados!C11)","v":"Sao Martinho"},{"$f":"IF(ISERROR(Dados!G11),\"-\",Dados!G11)","v":3344.62},null,{"$f":"IF(ISERROR(Dados!C11),\"-\",Dados!C11)","v":"Sao Martinho"},{"$f":"IF(ISERROR(Dados!X11),\"0\",Dados!X11)","v":739},null,{"$f":"IF(ISERROR(Dados!C11),\"-\",Dados!C11)","v":"Sao Martinho"},{"$f":"IF(ISERROR(Dados!AB11),\"0\",Dados!AB11)","v":2.7977593056583126E-2},null,{"$f":"IF(ISERROR(Dados!C11),\"-\",Dados!C11)","v":"Sao Martinho"},{"$f":"IF(ISERROR(Dados!S11),\"-\",Dados!S11)","v":1.9236047802141949},null,{"$f":"IF(ISERROR(Dados!C11),\"-\",Dados!C11)","v":"Sao Martinho"},{"$f":"IF(ISERROR(Dados!T11),\"-\",Dados!T11)","v":16.852364041176628},null,{"$f":"IF(ISERROR(Dados!C11),\"-\",Dados!C11)","v":"Sao Martinho"},{"$f":"IF(ISERROR(Dados!U11),\"0\",Dados!U11)","v":0.11311400000000001},null,{"$f":"IF(ISERROR(Dados!C11),\"-\",Dados!C11)","v":"Sao Martinho"},{"$f":"IF(ISERROR(IF(Dados!Z11<0,\"-\",Dados!Z11)),\"-\",IF(Dados!Z11<0,\"-\",Dados!Z11))","v":5.9038963448574426},null,{"$f":"IF(ISERROR(Dados!C11),\"-\",Dados!C11)","v":"Sao Martinho"},{"$f":"IF(ISERROR(Dados!AC11),\"-1000000\",Dados!AC11)","v":-2.2999999999999998},null,{"$f":"IF(ISERROR(Dados!C11),\"-\",Dados!C11)","v":"Sao Martinho"},{"$f":"IF(ISERROR(Dados!AD11),\"-1000000\",Dados!AD11)","v":-2.5},null,{"$f":"IF(ISERROR(Dados!C11),\"-\",Dados!C11)","v":"Sao Martinho"},{"$f":"IF(ISERROR(Dados!AC11),\"-\",Dados!AC11)","v":-2.2999999999999998},null,{"$f":"IF(ISERROR(Dados!C11),\"-\",Dados!C11)","v":"Sao Martinho"},{"$f":"IF(ISERROR(Dados!AD11),\"-\",Dados!AD11)","v":-2.5}]
[{"$f":"IF(ISERROR(Dados!C22),\"-\",Dados!C22)","v":"Carrefour BR"},{"$f":"IF(ISERROR(Dados!F22),\"-\",Dados!F22)","v":39847.269999999997},null,{"$f":"IF(ISERROR(Dados!C22),\"-\",Dados!C22)","v":"Carrefour BR"},{"$f":"IF(ISERROR(Dados!G22),\"-\",Dados!G22)","v":13033},null,{"$f":"IF(ISERROR(Dados!C22),\"-\",Dados!C22)","v":"Carrefour BR"},{"$f":"IF(ISERROR(Dados!X22),\"0\",Dados!X22)","v":3891},null,{"$f":"IF(ISERROR(Dados!C22),\"-\",Dados!C22)","v":"Carrefour BR"},{"$f":"IF(ISERROR(Dados!AB22),\"0\",Dados!AB22)","v":1.749178801960586E-2},null,{"$f":"IF(ISERROR(Dados!C22),\"-\",Dados!C22)","v":"Carrefour BR"},{"$f":"IF(ISERROR(Dados!S22),\"-\",Dados!S22)","v":3.0574134443336152},null,{"$f":"IF(ISERROR(Dados!C22),\"-\",Dados!C22)","v":"Carrefour BR"},{"$f":"IF(ISERROR(Dados!T22),\"-\",Dados!T22)","v":24.004379168674699},null,{"$f":"IF(ISERROR(Dados!C22),\"-\",Dados!C22)","v":"Carrefour BR"},{"$f":"IF(ISERROR(Dados!U22),\"0\",Dados!U22)","v":0.14178100000000002},null,{"$f":"IF(ISERROR(Dados!C22),\"-\",Dados!C22)","v":"Carrefour BR"},{"$f":"IF(ISERROR(IF(Dados!Z22<0,\"-\",Dados!Z22)),\"-\",IF(Dados!Z22<0,\"-\",Dados!Z22))","v":9.4647314315086088},null,{"$f":"IF(ISERROR(Dados!C22),\"-\",Dados!C22)","v":"Carrefour BR"},{"$f":"IF(ISERROR(Dados!AC22),\"-1000000\",Dados!AC22)","v":2.9},null,{"$f":"IF(ISERROR(Dados!C22),\"-\",Dados!C22)","v":"Carrefour BR"},{"$f":"IF(ISERROR(Dados!AD22),\"-1000000\",Dados!AD22)","v":34.799999999999997},null,{"$f":"IF(ISERROR(Dados!C22),\"-\",Dados!C22)","v":"Carrefour BR"},{"$f":"IF(ISERROR(Dados!AC22),\"-\",Dados!AC22)","v":2.9},null,{"$f":"IF(ISERROR(Dados!C22),\"-\",Dados!C22)","v":"Carrefour BR"},{"$f":"IF(ISERROR(Dados!AD22),\"-\",Dados!AD22)","v":34.799999999999997}]
[{"$f":"IF(ISERROR(Dados!C214),\"-\",Dados!C214)","v":"Cia Hering"},{"$f":"IF(ISERROR(Dados!F214),\"-\",Dados!F214)","v":4824.34},null,{"$f":"IF(ISERROR(Dados!C214),\"-\",Dados!C214)","v":"Cia Hering"},{"$f":"IF(ISERROR(Dados!G214),\"-\",Dados!G214)","v":1320.08},null,{"$f":"IF(ISERROR(Dados!C214),\"-\",Dados!C214)","v":"Cia Hering"},{"$f":"IF(ISERROR(Dados!X214),\"0\",Dados!X214)","v":259.60000000000002},null,{"$f":"IF(ISERROR(Dados!C214),\"-\",Dados!C214)","v":"Cia Hering"},{"$f":"IF(ISERROR(Dados!AB214),\"0\",Dados!AB214)","v":2.2798973538349285E-2},null,{"$f":"IF(ISERROR(Dados!C214),\"-\",Dados!C214)","v":"Cia Hering"},{"$f":"IF(ISERROR(Dados!S214),\"-\",Dados!S214)","v":3.6545782604084605},null,{"$f":"IF(ISERROR(Dados!C214),\"-\",Dados!C214)","v":"Cia Hering"},{"$f":"IF(ISERROR(Dados!T214),\"-\",Dados!T214)","v":20.142522942674628},null,{"$f":"IF(ISERROR(Dados!C214),\"-\",Dados!C214)","v":"Cia Hering"},{"$f":"IF(ISERROR(Dados!U214),\"0\",Dados!U214)","v":0.194267},null,{"$f":"IF(ISERROR(Dados!C214),\"-\",Dados!C214)","v":"Cia Hering"},{"$f":"IF(ISERROR(IF(Dados!Z214<0,\"-\",Dados!Z214)),\"-\",IF(Dados!Z214<0,\"-\",Dados!Z214))","v":17.348998459167952},null,{"$f":"IF(ISERROR(Dados!C214),\"-\",Dados!C214)","v":"Cia Hering"},{"$f":"IF(ISERROR(Dados!AC214),\"-1000000\",Dados!AC214)","v":-1},null,{"$f":"IF(ISERROR(Dados!C214),\"-\",Dados!C214)","v":"Cia Hering"},{"$f":"IF(ISERROR(Dados!AD214),\"-1000000\",Dados!AD214)","v":21.8},null,{"$f":"IF(ISERROR(Dados!C214),\"-\",Dados!C214)","v":"Cia Hering"},{"$f":"IF(ISERROR(Dados!AC214),\"-\",Dados!AC214)","v":-1},null,{"$f":"IF(ISERROR(Dados!C214),\"-\",Dados!C214)","v":"Cia Hering"},{"$f":"IF(ISERROR(Dados!AD214),\"-\",Dados!AD214)","v":21.8}]
[{"$f":"IF(ISERROR(Dados!C244),\"-\",Dados!C244)","v":"Embraer"},{"$f":"IF(ISERROR(Dados!F244),\"-\",Dados!F244)","v":13575.27},null,{"$f":"IF(ISERROR(Dados!C244),\"-\",Dados!C244)","v":"Embraer"},{"$f":"IF(ISERROR(Dados!G244),\"-\",Dados!G244)","v":14901.26},null,{"$f":"IF(ISERROR(Dados!C244),\"-\",Dados!C244)","v":"Embraer"},{"$f":"IF(ISERROR(Dados!X244),\"0\",Dados!X244)","v":1097.9000000000001},null,{"$f":"IF(ISERROR(Dados!C244),\"-\",Dados!C244)","v":"Embraer"},{"$f":"IF(ISERROR(Dados!AB244),\"0\",Dados!AB244)","v":1.0287088212610136E-2},null,{"$f":"IF(ISERROR(Dados!C244),\"-\",Dados!C244)","v":"Embraer"},{"$f":"IF(ISERROR(Dados!S244),\"-\",Dados!S244)","v":0.91101491753046393},null,{"$f":"IF(ISERROR(Dados!C244),\"-\",Dados!C244)","v":"Embraer"},{"$f":"IF(ISERROR(Dados!T244),\"-\",Dados!T244)","v":"-"},null,{"$f":"IF(ISERROR(Dados!C244),\"-\",Dados!C244)","v":"Embraer"},{"$f":"IF(ISERROR(Dados!U244),\"0\",Dados!U244)","v":-4.6519000000000005E-2},null,{"$f":"IF(ISERROR(Dados!C244),\"-\",Dados!C244)","v":"Embraer"},{"$f":"IF(ISERROR(IF(Dados!Z244<0,\"-\",Dados!Z244)),\"-\",IF(Dados!Z244<0,\"-\",Dados!Z244))","v":14.565075143455688},null,{"$f":"IF(ISERROR(Dados!C244),\"-\",Dados!C244)","v":"Embraer"},{"$f":"IF(ISERROR(Dados!AC244),\"-1000000\",Dados!AC244)","v":-3.3},null,{"$f":"IF(ISERROR(Dados!C244),\"-\",Dados!C244)","v":"Embraer"},{"$f":"IF(ISERROR(Dados!AD244),\"-1000000\",Dados!AD244)","v":-7.2},null,{"$f":"IF(ISERROR(Dados!C244),\"-\",Dados!C244)","v":"Embraer"},{"$f":"IF(ISERROR(Dados!AC244),\"-\",Dados!AC244)","v":-3.3},null,{"$f":"IF(ISERROR(Dados!C244),\"-\",Dados!C244)","v":"Embraer"},{"$f":"IF(ISERROR(Dados!AD244),\"-\",Dados!AD244)","v":-7.2}]
[{"$f":"IF(ISERROR(Dados!C50),\"-\",Dados!C50)","v":"Whirlpool"},{"$f":"IF(ISERROR(Dados!F50),\"-\",Dados!F50)","v":6763.97},null,{"$f":"IF(ISERROR(Dados!C50),\"-\",Dados!C50)","v":"Whirlpool"},{"$f":"IF(ISERROR(Dados!G50),\"-\",Dados!G50)","v":2189.91},null,{"$f":"IF(ISERROR(Dados!C50),\"-\",Dados!C50)","v":"Whirlpool"},{"$f":"IF(ISERROR(Dados!X50),\"0\",Dados!X50)","v":408.5},null,{"$f":"IF(ISERROR(Dados!C50),\"-\",Dados!C50)","v":"Whirlpool"},{"$f":"IF(ISERROR(Dados!AB50),\"0\",Dados!AB50)","v":3.1048334040511709E-2},null,{"$f":"IF(ISERROR(Dados!C50),\"-\",Dados!C50)","v":"Whirlpool"},{"$f":"IF(ISERROR(Dados!S50),\"-\",Dados!S50)","v":3.2390143521879895},null,{"$f":"IF(ISERROR(Dados!C50),\"-\",Dados!C50)","v":"Whirlpool"},{"$f":"IF(ISERROR(Dados!T50),\"-\",Dados!T50)","v":39.275470210409743},null,{"$f":"IF(ISERROR(Dados!C50),\"-\",Dados!C50)","v":"Whirlpool"},{"$f":"IF(ISERROR(Dados!U50),\"0\",Dados!U50)","v":7.3301000000000005E-2},null,{"$f":"IF(ISERROR(Dados!C50),\"-\",Dados!C50)","v":"Whirlpool"},{"$f":"IF(ISERROR(IF(Dados!Z50<0,\"-\",Dados!Z50)),\"-\",IF(Dados!Z50<0,\"-\",Dados!Z50))","v":15.317990208078337},null,{"$f":"IF(ISERROR(Dados!C50),\"-\",Dados!C50)","v":"Whirlpool"},{"$f":"IF(ISERROR(Dados!AC50),\"-1000000\",Dados!AC50)","v":-3.3},null,{"$f":"IF(ISERROR(Dados!C50),\"-\",Dados!C50)","v":"Whirlpool"},{"$f":"IF(ISERROR(Dados!AD50),\"-1000000\",Dados!AD50)","v":-2.4},null,{"$f":"IF(ISERROR(Dados!C50),\"-\",Dados!C50)","v":"Whirlpool"},{"$f":"IF(ISERROR(Dados!AC50),\"-\",Dados!AC50)","v":-3.3},null,{"$f":"IF(ISERROR(Dados!C50),\"-\",Dados!C50)","v":"Whirlpool"},{"$f":"IF(ISERROR(Dados!AD50),\"-\",Dados!AD50)","v":-2.4}]
[{"$f":"IF(ISERROR(Dados!C109),\"-\",Dados!C109)","v":"Weg"},{"$f":"IF(ISERROR(Dados!F109),\"-\",Dados!F109)","v":37748.959999999999},null,{"$f":"IF(ISERROR(Dados!C109),\"-\",Dados!C109)","v":"Weg"},{"$f":"IF(ISERROR(Dados!G109),\"-\",Dados!G109)","v":7714.27},null,{"$f":"IF(ISERROR(Dados!C109),\"-\",Dados!C109)","v":"Weg"},{"$f":"IF(ISERROR(Dados!X109),\"0\",Dados!X109)","v":1824.1},null,{"$f":"IF(ISERROR(Dados!C109),\"-\",Dados!C109)","v":"Weg"},{"$f":"IF(ISERROR(Dados!AB109),\"0\",Dados!AB109)","v":1.6004414426251744E-2},null,{"$f":"IF(ISERROR(Dados!C109),\"-\",Dados!C109)","v":"Weg"},{"$f":"IF(ISERROR(Dados!S109),\"-\",Dados!S109)","v":4.8933949680267865},null,{"$f":"IF(ISERROR(Dados!C109),\"-\",Dados!C109)","v":"Weg"},{"$f":"IF(ISERROR(Dados!T109),\"-\",Dados!T109)","v":28.206236176699143},null,{"$f":"IF(ISERROR(Dados!C109),\"-\",Dados!C109)","v":"Weg"},{"$f":"IF(ISERROR(Dados!U109),\"0\",Dados!U109)","v":0.19641800000000001},null,{"$f":"IF(ISERROR(Dados!C109),\"-\",Dados!C109)","v":"Weg"},{"$f":"IF(ISERROR(IF(Dados!Z109<0,\"-\",Dados!Z109)),\"-\",IF(Dados!Z109<0,\"-\",Dados!Z109))","v":20.827359245655394},null,{"$f":"IF(ISERROR(Dados!C109),\"-\",Dados!C109)","v":"Weg"},{"$f":"IF(ISERROR(Dados!AC109),\"-1000000\",Dados!AC109)","v":-2},null,{"$f":"IF(ISERROR(Dados!C109),\"-\",Dados!C109)","v":"Weg"},{"$f":"IF(ISERROR(Dados!AD109),\"-1000000\",Dados!AD109)","v":-0.5},null,{"$f":"IF(ISERROR(Dados!C109),\"-\",Dados!C109)","v":"Weg"},{"$f":"IF(ISERROR(Dados!AC109),\"-\",Dados!AC109)","v":-2},null,{"$f":"IF(ISERROR(Dados!C109),\"-\",Dados!C109)","v":"Weg"},{"$f":"IF(ISERROR(Dados!AD109),\"-\",Dados!AD109)","v":-0.5}]
[{"$f":"IF(ISERROR(Dados!C146),\"-\",Dados!C146)","v":"Terra Santa"},{"$f":"IF(ISERROR(Dados!F146),\"-\",Dados!F146)","v":236.46},null,{"$f":"IF(ISERROR(Dados!C146),\"-\",Dados!C146)","v":"Terra Santa"},{"$f":"IF(ISERROR(Dados!G146),\"-\",Dados!G146)","v":940.01},null,{"$f":"IF(ISERROR(Dados!C146),\"-\",Dados!C146)","v":"Terra Santa"},{"$f":"IF(ISERROR(Dados!X146),\"0\",Dados!X146)","v":172.3},null,{"$f":"IF(ISERROR(Dados!C146),\"-\",Dados!C146)","v":"Terra Santa"},{"$f":"IF(ISERROR(Dados!AB146),\"0\",Dados!AB146)","v":"0"},null,{"$f":"IF(ISERROR(Dados!C146),\"-\",Dados!C146)","v":"Terra Santa"},{"$f":"IF(ISERROR(Dados!S146),\"-\",Dados!S146)","v":0.25155562174870483},null,{"$f":"IF(ISERROR(Dados!C146),\"-\",Dados!C146)","v":"Terra Santa"},{"$f":"IF(ISERROR(Dados!T146),\"-\",Dados!T146)","v":5.5954756270705159},null,{"$f":"IF(ISERROR(Dados!C146),\"-\",Dados!C146)","v":"Terra Santa"},{"$f":"IF(ISERROR(Dados!U146),\"0\",Dados!U146)","v":4.2606000000000005E-2},null,{"$f":"IF(ISERROR(Dados!C146),\"-\",Dados!C146)","v":"Terra Santa"},{"$f":"IF(ISERROR(IF(Dados!Z146<0,\"-\",Dados!Z146)),\"-\",IF(Dados!Z146<0,\"-\",Dados!Z146))","v":6.3176900754497964},null,{"$f":"IF(ISERROR(Dados!C146),\"-\",Dados!C146)","v":"Terra Santa"},{"$f":"IF(ISERROR(Dados!AC146),\"-1000000\",Dados!AC146)","v":0.8},null,{"$f":"IF(ISERROR(Dados!C146),\"-\",Dados!C146)","v":"Terra Santa"},{"$f":"IF(ISERROR(Dados!AD146),\"-1000000\",Dados!AD146)","v":-11.3},null,{"$f":"IF(ISERROR(Dados!C146),\"-\",Dados!C146)","v":"Terra Santa"},{"$f":"IF(ISERROR(Dados!AC146),\"-\",Dados!AC146)","v":0.8},null,{"$f":"IF(ISERROR(Dados!C146),\"-\",Dados!C146)","v":"Terra Santa"},{"$f":"IF(ISERROR(Dados!AD146),\"-\",Dados!AD146)","v":-11.3}]
[{"$f":"IF(ISERROR(Dados!C67),\"-\",Dados!C67)","v":"Ger Paranap"},{"$f":"IF(ISERROR(Dados!F67),\"-\",Dados!F67)","v":3667.15},null,{"$f":"IF(ISERROR(Dados!C67),\"-\",Dados!C67)","v":"Ger Paranap"},{"$f":"IF(ISERROR(Dados!G67),\"-\",Dados!G67)","v":1635.42},null,{"$f":"IF(ISERROR(Dados!C67),\"-\",Dados!C67)","v":"Ger Paranap"},{"$f":"IF(ISERROR(Dados!X67),\"0\",Dados!X67)","v":705.4},null,{"$f":"IF(ISERROR(Dados!C67),\"-\",Dados!C67)","v":"Ger Paranap"},{"$f":"IF(ISERROR(Dados!AB67),\"0\",Dados!AB67)","v":8.3833494675701836E-2},null,{"$f":"IF(ISERROR(Dados!C67),\"-\",Dados!C67)","v":"Ger Paranap"},{"$f":"IF(ISERROR(Dados!S67),\"-\",Dados!S67)","v":2.3385653226694063},null,{"$f":"IF(ISERROR(Dados!C67),\"-\",Dados!C67)","v":"Ger Paranap"},{"$f":"IF(ISERROR(Dados!T67),\"-\",Dados!T67)","v":14.94484975186589},null,{"$f":"IF(ISERROR(Dados!C67),\"-\",Dados!C67)","v":"Ger Paranap"},{"$f":"IF(ISERROR(Dados!U67),\"0\",Dados!U67)","v":0.15109899999999998},null,{"$f":"IF(ISERROR(Dados!C67),\"-\",Dados!C67)","v":"Ger Paranap"},{"$f":"IF(ISERROR(IF(Dados!Z67<0,\"-\",Dados!Z67)),\"-\",IF(Dados!Z67<0,\"-\",Dados!Z67))","v":5.9541820243833286},null,{"$f":"IF(ISERROR(Dados!C67),\"-\",Dados!C67)","v":"Ger Paranap"},{"$f":"IF(ISERROR(Dados!AC67),\"-1000000\",Dados!AC67)","v":1.4},null,{"$f":"IF(ISERROR(Dados!C67),\"-\",Dados!C67)","v":"Ger Paranap"},{"$f":"IF(ISERROR(Dados!AD67),\"-1000000\",Dados!AD67)","v":10.8},null,{"$f":"IF(ISERROR(Dados!C67),\"-\",Dados!C67)","v":"Ger Paranap"},{"$f":"IF(ISERROR(Dados!AC67),\"-\",Dados!AC67)","v":1.4},null,{"$f":"IF(ISERROR(Dados!C67),\"-\",Dados!C67)","v":"Ger Paranap"},{"$f":"IF(ISERROR(Dados!AD67),\"-\",Dados!AD67)","v":10.8}]
[{"$f":"IF(ISERROR(Dados!C161),\"-\",Dados!C161)","v":"BR Brokers"},{"$f":"IF(ISERROR(Dados!F161),\"-\",Dados!F161)","v":186.28},null,{"$f":"IF(ISERROR(Dados!C161),\"-\",Dados!C161)","v":"BR Brokers"},{"$f":"IF(ISERROR(Dados!G161),\"-\",Dados!G161)","v":225},null,{"$f":"IF(ISERROR(Dados!C161),\"-\",Dados!C161)","v":"BR Brokers"},{"$f":"IF(ISERROR(Dados!X161),\"0\",Dados!X161)","v":-61.7},null,{"$f":"IF(ISERROR(Dados!C161),\"-\",Dados!C161)","v":"BR Brokers"},{"$f":"IF(ISERROR(Dados!AB161),\"0\",Dados!AB161)","v":"0"},null,{"$f":"IF(ISERROR(Dados!C161),\"-\",Dados!C161)","v":"BR Brokers"},{"$f":"IF(ISERROR(Dados!S161),\"-\",Dados!S161)","v":0.82789000000000001},null,{"$f":"IF(ISERROR(Dados!C161),\"-\",Dados!C161)","v":"BR Brokers"},{"$f":"IF(ISERROR(Dados!T161),\"-\",Dados!T161)","v":"-"},null,{"$f":"IF(ISERROR(Dados!C161),\"-\",Dados!C161)","v":"BR Brokers"},{"$f":"IF(ISERROR(Dados!U161),\"0\",Dados!U161)","v":-0.270484},null,{"$f":"IF(ISERROR(Dados!C161),\"-\",Dados!C161)","v":"BR Brokers"},{"$f":"IF(ISERROR(IF(Dados!Z161<0,\"-\",Dados!Z161)),\"-\",IF(Dados!Z161<0,\"-\",Dados!Z161))","v":"-"},null,{"$f":"IF(ISERROR(Dados!C161),\"-\",Dados!C161)","v":"BR Brokers"},{"$f":"IF(ISERROR(Dados!AC161),\"-1000000\",Dados!AC161)","v":-24.7},null,{"$f":"IF(ISERROR(Dados!C161),\"-\",Dados!C161)","v":"BR Brokers"},{"$f":"IF(ISERROR(Dados!AD161),\"-1000000\",Dados!AD161)","v":-47},null,{"$f":"IF(ISERROR(Dados!C161),\"-\",Dados!C161)","v":"BR Brokers"},{"$f":"IF(ISERROR(Dados!AC161),\"-\",Dados!AC161)","v":-24.7},null,{"$f":"IF(ISERROR(Dados!C161),\"-\",Dados!C161)","v":"BR Brokers"},{"$f":"IF(ISERROR(Dados!AD161),\"-\",Dados!AD161)","v":-47}]
[{"$f":"IF(ISERROR(Dados!C211),\"-\",Dados!C211)","v":"Guararapes"},{"$f":"IF(ISERROR(Dados!F211),\"-\",Dados!F211)","v":8985.6},null,{"$f":"IF(ISERROR(Dados!C211),\"-\",Dados!C211)","v":"Guararapes"},{"$f":"IF(ISERROR(Dados!G211),\"-\",Dados!G211)","v":4929.1499999999996},null,{"$f":"IF(ISERROR(Dados!C211),\"-\",Dados!C211)","v":"Guararapes"},{"$f":"IF(ISERROR(Dados!X211),\"0\",Dados!X211)","v":1701.3},null,{"$f":"IF(ISERROR(Dados!C211),\"-\",Dados!C211)","v":"Guararapes"},{"$f":"IF(ISERROR(Dados!AB211),\"0\",Dados!AB211)","v":1.5577145655270654E-2},null,{"$f":"IF(ISERROR(Dados!C211),\"-\",Dados!C211)","v":"Guararapes"},{"$f":"IF(ISERROR(Dados!S211),\"-\",Dados!S211)","v":1.8229512187699708},null,{"$f":"IF(ISERROR(Dados!C211),\"-\",Dados!C211)","v":"Guararapes"},{"$f":"IF(ISERROR(Dados!T211),\"-\",Dados!T211)","v":7.2718444244822642},null,{"$f":"IF(ISERROR(Dados!C211),\"-\",Dados!C211)","v":"Guararapes"},{"$f":"IF(ISERROR(Dados!U211),\"0\",Dados!U211)","v":0.30699700000000002},null,{"$f":"IF(ISERROR(Dados!C211),\"-\",Dados!C211)","v":"Guararapes"},{"$f":"IF(ISERROR(IF(Dados!Z211<0,\"-\",Dados!Z211)),\"-\",IF(Dados!Z211<0,\"-\",Dados!Z211))","v":5.857885734438371},null,{"$f":"IF(ISERROR(Dados!C211),\"-\",Dados!C211)","v":"Guararapes"},{"$f":"IF(ISERROR(Dados!AC211),\"-1000000\",Dados!AC211)","v":-1.1000000000000001},null,{"$f":"IF(ISERROR(Dados!C211),\"-\",Dados!C211)","v":"Guararapes"},{"$f":"IF(ISERROR(Dados!AD211),\"-1000000\",Dados!AD211)","v":-0.5},null,{"$f":"IF(ISERROR(Dados!C211),\"-\",Dados!C211)","v":"Guararapes"},{"$f":"IF(ISERROR(Dados!AC211),\"-\",Dados!AC211)","v":-1.1000000000000001},null,{"$f":"IF(ISERROR(Dados!C211),\"-\",Dados!C211)","v":"Guararapes"},{"$f":"IF(ISERROR(Dados!AD211),\"-\",Dados!AD211)","v":-0.5}]
[{"$f":"IF(ISERROR(Dados!C47),\"-\",Dados!C47)","v":"Azevedo"},{"$f":"IF(ISERROR(Dados!F47),\"-\",Dados!F47)","v":71.819999999999993},null,{"$f":"IF(ISERROR(Dados!C47),\"-\",Dados!C47)","v":"Azevedo"},{"$f":"IF(ISERROR(Dados!G47),\"-\",Dados!G47)","v":-101.34},null,{"$f":"IF(ISERROR(Dados!C47),\"-\",Dados!C47)","v":"Azevedo"},{"$f":"IF(ISERROR(Dados!X47),\"0\",Dados!X47)","v":"0"},null,{"$f":"IF(ISERROR(Dados!C47),\"-\",Dados!C47)","v":"Azevedo"},{"$f":"IF(ISERROR(Dados!AB47),\"0\",Dados!AB47)","v":"0"},null,{"$f":"IF(ISERROR(Dados!C47),\"-\",Dados!C47)","v":"Azevedo"},{"$f":"IF(ISERROR(Dados!S47),\"-\",Dados!S47)","v":"-"},null,{"$f":"IF(ISERROR(Dados!C47),\"-\",Dados!C47)","v":"Azevedo"},{"$f":"IF(ISERROR(Dados!T47),\"-\",Dados!T47)","v":"-"},null,{"$f":"IF(ISERROR(Dados!C47),\"-\",Dados!C47)","v":"Azevedo"},{"$f":"IF(ISERROR(Dados!U47),\"0\",Dados!U47)","v":"0"},null,{"$f":"IF(ISERROR(Dados!C47),\"-\",Dados!C47)","v":"Azevedo"},{"$f":"IF(ISERROR(IF(Dados!Z47<0,\"-\",Dados!Z47)),\"-\",IF(Dados!Z47<0,\"-\",Dados!Z47))","v":"-"},null,{"$f":"IF(ISERROR(Dados!C47),\"-\",Dados!C47)","v":"Azevedo"},{"$f":"IF(ISERROR(Dados!AC47),\"-1000000\",Dados!AC47)","v":-10},null,{"$f":"IF(ISERROR(Dados!C47),\"-\",Dados!C47)","v":"Azevedo"},{"$f":"IF(ISERROR(Dados!AD47),\"-1000000\",Dados!AD47)","v":-6.6},null,{"$f":"IF(ISERROR(Dados!C47),\"-\",Dados!C47)","v":"Azevedo"},{"$f":"IF(ISERROR(Dados!AC47),\"-\",Dados!AC47)","v":-10},null,{"$f":"IF(ISERROR(Dados!C47),\"-\",Dados!C47)","v":"Azevedo"},{"$f":"IF(ISERROR(Dados!AD47),\"-\",Dados!AD47)","v":-6.6}]
[{"$f":"IF(ISERROR(Dados!C41),\"-\",Dados!C41)","v":"Even"},{"$f":"IF(ISERROR(Dados!F41),\"-\",Dados!F41)","v":1283.25},null,{"$f":"IF(ISERROR(Dados!C41),\"-\",Dados!C41)","v":"Even"},{"$f":"IF(ISERROR(Dados!G41),\"-\",Dados!G41)","v":1577.77},null,{"$f":"IF(ISERROR(Dados!C41),\"-\",Dados!C41)","v":"Even"},{"$f":"IF(ISERROR(Dados!X41),\"0\",Dados!X41)","v":-148.19999999999999},null,{"$f":"IF(ISERROR(Dados!C41),\"-\",Dados!C41)","v":"Even"},{"$f":"IF(ISERROR(Dados!AB41),\"0\",Dados!AB41)","v":"0"},null,{"$f":"IF(ISERROR(Dados!C41),\"-\",Dados!C41)","v":"Even"},{"$f":"IF(ISERROR(Dados!S41),\"-\",Dados!S41)","v":0.81333527700488661},null,{"$f":"IF(ISERROR(Dados!C41),\"-\",Dados!C41)","v":"Even"},{"$f":"IF(ISERROR(Dados!T41),\"-\",Dados!T41)","v":"-"},null,{"$f":"IF(ISERROR(Dados!C41),\"-\",Dados!C41)","v":"Even"},{"$f":"IF(ISERROR(Dados!U41),\"0\",Dados!U41)","v":-7.0108000000000004E-2},null,{"$f":"IF(ISERROR(Dados!C41),\"-\",Dados!C41)","v":"Even"},{"$f":"IF(ISERROR(IF(Dados!Z41<0,\"-\",Dados!Z41)),\"-\",IF(Dados!Z41<0,\"-\",Dados!Z41))","v":"-"},null,{"$f":"IF(ISERROR(Dados!C41),\"-\",Dados!C41)","v":"Even"},{"$f":"IF(ISERROR(Dados!AC41),\"-1000000\",Dados!AC41)","v":0.5},null,{"$f":"IF(ISERROR(Dados!C41),\"-\",Dados!C41)","v":"Even"},{"$f":"IF(ISERROR(Dados!AD41),\"-1000000\",Dados!AD41)","v":4.5},null,{"$f":"IF(ISERROR(Dados!C41),\"-\",Dados!C41)","v":"Even"},{"$f":"IF(ISERROR(Dados!AC41),\"-\",Dados!AC41)","v":0.5},null,{"$f":"IF(ISERROR(Dados!C41),\"-\",Dados!C41)","v":"Even"},{"$f":"IF(ISERROR(Dados!AD41),\"-\",Dados!AD41)","v":4.5}]
[{"$f":"IF(ISERROR(Dados!C238),\"-\",Dados!C238)","v":"Schulz"},{"$f":"IF(ISERROR(Dados!F238),\"-\",Dados!F238)","v":664.46},null,{"$f":"IF(ISERROR(Dados!C238),\"-\",Dados!C238)","v":"Schulz"},{"$f":"IF(ISERROR(Dados!G238),\"-\",Dados!G238)","v":540.71},null,{"$f":"IF(ISERROR(Dados!C238),\"-\",Dados!C238)","v":"Schulz"},{"$f":"IF(ISERROR(Dados!X238),\"0\",Dados!X238)","v":122},null,{"$f":"IF(ISERROR(Dados!C238),\"-\",Dados!C238)","v":"Schulz"},{"$f":"IF(ISERROR(Dados!AB238),\"0\",Dados!AB238)","v":2.6442524756945487E-2},null,{"$f":"IF(ISERROR(Dados!C238),\"-\",Dados!C238)","v":"Schulz"},{"$f":"IF(ISERROR(Dados!S238),\"-\",Dados!S238)","v":1.2288730927854115},null,{"$f":"IF(ISERROR(Dados!C238),\"-\",Dados!C238)","v":"Schulz"},{"$f":"IF(ISERROR(Dados!T238),\"-\",Dados!T238)","v":9.4626028197094829},null,{"$f":"IF(ISERROR(Dados!C238),\"-\",Dados!C238)","v":"Schulz"},{"$f":"IF(ISERROR(Dados!U238),\"0\",Dados!U238)","v":0.144121},null,{"$f":"IF(ISERROR(Dados!C238),\"-\",Dados!C238)","v":"Schulz"},{"$f":"IF(ISERROR(IF(Dados!Z238<0,\"-\",Dados!Z238)),\"-\",IF(Dados!Z238<0,\"-\",Dados!Z238))","v":7.2170409836065579},null,{"$f":"IF(ISERROR(Dados!C238),\"-\",Dados!C238)","v":"Schulz"},{"$f":"IF(ISERROR(Dados!AC238),\"-1000000\",Dados!AC238)","v":4.2},null,{"$f":"IF(ISERROR(Dados!C238),\"-\",Dados!C238)","v":"Schulz"},{"$f":"IF(ISERROR(Dados!AD238),\"-1000000\",Dados!AD238)","v":58.4},null,{"$f":"IF(ISERROR(Dados!C238),\"-\",Dados!C238)","v":"Schulz"},{"$f":"IF(ISERROR(Dados!AC238),\"-\",Dados!AC238)","v":4.2},null,{"$f":"IF(ISERROR(Dados!C238),\"-\",Dados!C238)","v":"Schulz"},{"$f":"IF(ISERROR(Dados!AD238),\"-\",Dados!AD238)","v":58.4}]
[{"$f":"IF(ISERROR(Dados!C207),\"-\",Dados!C207)","v":"Tim Part S/A"},{"$f":"IF(ISERROR(Dados!F207),\"-\",Dados!F207)","v":28534.73},null,{"$f":"IF(ISERROR(Dados!C207),\"-\",Dados!C207)","v":"Tim Part S/A"},{"$f":"IF(ISERROR(Dados!G207),\"-\",Dados!G207)","v":19794.84},null,{"$f":"IF(ISERROR(Dados!C207),\"-\",Dados!C207)","v":"Tim Part S/A"},{"$f":"IF(ISERROR(Dados!X207),\"0\",Dados!X207)","v":6371.8},null,{"$f":"IF(ISERROR(Dados!C207),\"-\",Dados!C207)","v":"Tim Part S/A"},{"$f":"IF(ISERROR(Dados!AB207),\"0\",Dados!AB207)","v":2.0615229231185996E-2},null,{"$f":"IF(ISERROR(Dados!C207),\"-\",Dados!C207)","v":"Tim Part S/A"},{"$f":"IF(ISERROR(Dados!S207),\"-\",Dados!S207)","v":1.4415233424468195},null,{"$f":"IF(ISERROR(Dados!C207),\"-\",Dados!C207)","v":"Tim Part S/A"},{"$f":"IF(ISERROR(Dados!T207),\"-\",Dados!T207)","v":11.21163173156261},null,{"$f":"IF(ISERROR(Dados!C207),\"-\",Dados!C207)","v":"Tim Part S/A"},{"$f":"IF(ISERROR(Dados!U207),\"0\",Dados!U207)","v":0.14021699999999998},null,{"$f":"IF(ISERROR(Dados!C207),\"-\",Dados!C207)","v":"Tim Part S/A"},{"$f":"IF(ISERROR(IF(Dados!Z207<0,\"-\",Dados!Z207)),\"-\",IF(Dados!Z207<0,\"-\",Dados!Z207))","v":4.4473109639348376},null,{"$f":"IF(ISERROR(Dados!C207),\"-\",Dados!C207)","v":"Tim Part S/A"},{"$f":"IF(ISERROR(Dados!AC207),\"-1000000\",Dados!AC207)","v":-0.3},null,{"$f":"IF(ISERROR(Dados!C207),\"-\",Dados!C207)","v":"Tim Part S/A"},{"$f":"IF(ISERROR(Dados!AD207),\"-1000000\",Dados!AD207)","v":-7.3},null,{"$f":"IF(ISERROR(Dados!C207),\"-\",Dados!C207)","v":"Tim Part S/A"},{"$f":"IF(ISERROR(Dados!AC207),\"-\",Dados!AC207)","v":-0.3},null,{"$f":"IF(ISERROR(Dados!C207),\"-\",Dados!C207)","v":"Tim Part S/A"},{"$f":"IF(ISERROR(Dados!AD207),\"-\",Dados!AD207)","v":-7.3}]
[{"$f":"IF(ISERROR(Dados!C154),\"-\",Dados!C154)","v":"Eucatex"},{"$f":"IF(ISERROR(Dados!F154),\"-\",Dados!F154)","v":364.94},null,{"$f":"IF(ISERROR(Dados!C154),\"-\",Dados!C154)","v":"Eucatex"},{"$f":"IF(ISERROR(Dados!G154),\"-\",Dados!G154)","v":1262.97},null,{"$f":"IF(ISERROR(Dados!C154),\"-\",Dados!C154)","v":"Eucatex"},{"$f":"IF(ISERROR(Dados!X154),\"0\",Dados!X154)","v":234},null,{"$f":"IF(ISERROR(Dados!C154),\"-\",Dados!C154)","v":"Eucatex"},{"$f":"IF(ISERROR(Dados!AB154),\"0\",Dados!AB154)","v":"0"},null,{"$f":"IF(ISERROR(Dados!C154),\"-\",Dados!C154)","v":"Eucatex"},{"$f":"IF(ISERROR(Dados!S154),\"-\",Dados!S154)","v":0.28895204161619042},null,{"$f":"IF(ISERROR(Dados!C154),\"-\",Dados!C154)","v":"Eucatex"},{"$f":"IF(ISERROR(Dados!T154),\"-\",Dados!T154)","v":12.597092164307906},null,{"$f":"IF(ISERROR(Dados!C154),\"-\",Dados!C154)","v":"Eucatex"},{"$f":"IF(ISERROR(Dados!U154),\"0\",Dados!U154)","v":2.3414000000000001E-2},null,{"$f":"IF(ISERROR(Dados!C154),\"-\",Dados!C154)","v":"Eucatex"},{"$f":"IF(ISERROR(IF(Dados!Z154<0,\"-\",Dados!Z154)),\"-\",IF(Dados!Z154<0,\"-\",Dados!Z154))","v":3.3375726495726492},null,{"$f":"IF(ISERROR(Dados!C154),\"-\",Dados!C154)","v":"Eucatex"},{"$f":"IF(ISERROR(Dados!AC154),\"-1000000\",Dados!AC154)","v":-5.9},null,{"$f":"IF(ISERROR(Dados!C154),\"-\",Dados!C154)","v":"Eucatex"},{"$f":"IF(ISERROR(Dados!AD154),\"-1000000\",Dados!AD154)","v":1.7},null,{"$f":"IF(ISERROR(Dados!C154),\"-\",Dados!C154)","v":"Eucatex"},{"$f":"IF(ISERROR(Dados!AC154),\"-\",Dados!AC154)","v":-5.9},null,{"$f":"IF(ISERROR(Dados!C154),\"-\",Dados!C154)","v":"Eucatex"},{"$f":"IF(ISERROR(Dados!AD154),\"-\",Dados!AD154)","v":1.7}]
[{"$f":"IF(ISERROR(Dados!C155),\"-\",Dados!C155)","v":"Unicasa"},{"$f":"IF(ISERROR(Dados!F155),\"-\",Dados!F155)","v":193.63},null,{"$f":"IF(ISERROR(Dados!C155),\"-\",Dados!C155)","v":"Unicasa"},{"$f":"IF(ISERROR(Dados!G155),\"-\",Dados!G155)","v":171.27},null,{"$f":"IF(ISERROR(Dados!C155),\"-\",Dados!C155)","v":"Unicasa"},{"$f":"IF(ISERROR(Dados!X155),\"0\",Dados!X155)","v":10.5},null,{"$f":"IF(ISERROR(Dados!C155),\"-\",Dados!C155)","v":"Unicasa"},{"$f":"IF(ISERROR(Dados!AB155),\"0\",Dados!AB155)","v":"0"},null,{"$f":"IF(ISERROR(Dados!C155),\"-\",Dados!C155)","v":"Unicasa"},{"$f":"IF(ISERROR(Dados!S155),\"-\",Dados!S155)","v":1.1305656565656566},null,{"$f":"IF(ISERROR(Dados!C155),\"-\",Dados!C155)","v":"Unicasa"},{"$f":"IF(ISERROR(Dados!T155),\"-\",Dados!T155)","v":57.118578171091443},null,{"$f":"IF(ISERROR(Dados!C155),\"-\",Dados!C155)","v":"Unicasa"},{"$f":"IF(ISERROR(Dados!U155),\"0\",Dados!U155)","v":2.0218E-2},null,{"$f":"IF(ISERROR(Dados!C155),\"-\",Dados!C155)","v":"Unicasa"},{"$f":"IF(ISERROR(IF(Dados!Z155<0,\"-\",Dados!Z155)),\"-\",IF(Dados!Z155<0,\"-\",Dados!Z155))","v":14.768380952380951},null,{"$f":"IF(ISERROR(Dados!C155),\"-\",Dados!C155)","v":"Unicasa"},{"$f":"IF(ISERROR(Dados!AC155),\"-1000000\",Dados!AC155)","v":2.4},null,{"$f":"IF(ISERROR(Dados!C155),\"-\",Dados!C155)","v":"Unicasa"},{"$f":"IF(ISERROR(Dados!AD155),\"-1000000\",Dados!AD155)","v":15.4},null,{"$f":"IF(ISERROR(Dados!C155),\"-\",Dados!C155)","v":"Unicasa"},{"$f":"IF(ISERROR(Dados!AC155),\"-\",Dados!AC155)","v":2.4},null,{"$f":"IF(ISERROR(Dados!C155),\"-\",Dados!C155)","v":"Unicasa"},{"$f":"IF(ISERROR(Dados!AD155),\"-\",Dados!AD155)","v":15.4}]
[{"$f":"IF(ISERROR(Dados!C141),\"-\",Dados!C141)","v":"Multiplan"},{"$f":"IF(ISERROR(Dados!F141),\"-\",Dados!F141)","v":13902.95},null,{"$f":"IF(ISERROR(Dados!C141),\"-\",Dados!C141)","v":"Multiplan"},{"$f":"IF(ISERROR(Dados!G141),\"-\",Dados!G141)","v":5335.98},null,{"$f":"IF(ISERROR(Dados!C141),\"-\",Dados!C141)","v":"Multiplan"},{"$f":"IF(ISERROR(Dados!X141),\"0\",Dados!X141)","v":939.2},null,{"$f":"IF(ISERROR(Dados!C141),\"-\",Dados!C141)","v":"Multiplan"},{"$f":"IF(ISERROR(Dados!AB141),\"0\",Dados!AB141)","v":2.1655116360196933E-2},null,{"$f":"IF(ISERROR(Dados!C141),\"-\",Dados!C141)","v":"Multiplan"},{"$f":"IF(ISERROR(Dados!S141),\"-\",Dados!S141)","v":2.605509359105544},null,{"$f":"IF(ISERROR(Dados!C141),\"-\",Dados!C141)","v":"Multiplan"},{"$f":"IF(ISERROR(Dados!T141),\"-\",Dados!T141)","v":29.396227571624909},null,{"$f":"IF(ISERROR(Dados!C141),\"-\",Dados!C141)","v":"Multiplan"},{"$f":"IF(ISERROR(Dados!U141),\"0\",Dados!U141)","v":9.0489E-2},null,{"$f":"IF(ISERROR(Dados!C141),\"-\",Dados!C141)","v":"Multiplan"},{"$f":"IF(ISERROR(IF(Dados!Z141<0,\"-\",Dados!Z141)),\"-\",IF(Dados!Z141<0,\"-\",Dados!Z141))","v":16.887684199318567},null,{"$f":"IF(ISERROR(Dados!C141),\"-\",Dados!C141)","v":"Multiplan"},{"$f":"IF(ISERROR(Dados!AC141),\"-1000000\",Dados!AC141)","v":-7.1},null,{"$f":"IF(ISERROR(Dados!C141),\"-\",Dados!C141)","v":"Multiplan"},{"$f":"IF(ISERROR(Dados!AD141),\"-1000000\",Dados!AD141)","v":1.2},null,{"$f":"IF(ISERROR(Dados!C141),\"-\",Dados!C141)","v":"Multiplan"},{"$f":"IF(ISERROR(Dados!AC141),\"-\",Dados!AC141)","v":-7.1},null,{"$f":"IF(ISERROR(Dados!C141),\"-\",Dados!C141)","v":"Multiplan"},{"$f":"IF(ISERROR(Dados!AD141),\"-\",Dados!AD141)","v":1.2}]
[{"$f":"IF(ISERROR(Dados!C116),\"-\",Dados!C116)","v":"Smiles"},{"$f":"IF(ISERROR(Dados!F116),\"-\",Dados!F116)","v":5915.18},null,{"$f":"IF(ISERROR(Dados!C116),\"-\",Dados!C116)","v":"Smiles"},{"$f":"IF(ISERROR(Dados!G116),\"-\",Dados!G116)","v":1014.23},null,{"$f":"IF(ISERROR(Dados!C116),\"-\",Dados!C116)","v":"Smiles"},{"$f":"IF(ISERROR(Dados!X116),\"0\",Dados!X116)","v":759.3},null,{"$f":"IF(ISERROR(Dados!C116),\"-\",Dados!C116)","v":"Smiles"},{"$f":"IF(ISERROR(Dados!AB116),\"0\",Dados!AB116)","v":7.8222471674572872E-2},null,{"$f":"IF(ISERROR(Dados!C116),\"-\",Dados!C116)","v":"Smiles"},{"$f":"IF(ISERROR(Dados!S116),\"-\",Dados!S116)","v":5.8321895428058719},null,{"$f":"IF(ISERROR(Dados!C116),\"-\",Dados!C116)","v":"Smiles"},{"$f":"IF(ISERROR(Dados!T116),\"-\",Dados!T116)","v":9.1588963210702339},null,{"$f":"IF(ISERROR(Dados!C116),\"-\",Dados!C116)","v":"Smiles"},{"$f":"IF(ISERROR(Dados!U116),\"0\",Dados!U116)","v":0.74088300000000007},null,{"$f":"IF(ISERROR(Dados!C116),\"-\",Dados!C116)","v":"Smiles"},{"$f":"IF(ISERROR(IF(Dados!Z116<0,\"-\",Dados!Z116)),\"-\",IF(Dados!Z116<0,\"-\",Dados!Z116))","v":6.900921901751615},null,{"$f":"IF(ISERROR(Dados!C116),\"-\",Dados!C116)","v":"Smiles"},{"$f":"IF(ISERROR(Dados!AC116),\"-1000000\",Dados!AC116)","v":-0.6},null,{"$f":"IF(ISERROR(Dados!C116),\"-\",Dados!C116)","v":"Smiles"},{"$f":"IF(ISERROR(Dados!AD116),\"-1000000\",Dados!AD116)","v":-33.6},null,{"$f":"IF(ISERROR(Dados!C116),\"-\",Dados!C116)","v":"Smiles"},{"$f":"IF(ISERROR(Dados!AC116),\"-\",Dados!AC116)","v":-0.6},null,{"$f":"IF(ISERROR(Dados!C116),\"-\",Dados!C116)","v":"Smiles"},{"$f":"IF(ISERROR(Dados!AD116),\"-\",Dados!AD116)","v":-33.6}]
[{"$f":"IF(ISERROR(Dados!C148),\"-\",Dados!C148)","v":"Alliar"},{"$f":"IF(ISERROR(Dados!F148),\"-\",Dados!F148)","v":1714.25},null,{"$f":"IF(ISERROR(Dados!C148),\"-\",Dados!C148)","v":"Alliar"},{"$f":"IF(ISERROR(Dados!G148),\"-\",Dados!G148)","v":1256.95},null,{"$f":"IF(ISERROR(Dados!C148),\"-\",Dados!C148)","v":"Alliar"},{"$f":"IF(ISERROR(Dados!X148),\"0\",Dados!X148)","v":219.9},null,{"$f":"IF(ISERROR(Dados!C148),\"-\",Dados!C148)","v":"Alliar"},{"$f":"IF(ISERROR(Dados!AB148),\"0\",Dados!AB148)","v":"0"},null,{"$f":"IF(ISERROR(Dados!C148),\"-\",Dados!C148)","v":"Alliar"},{"$f":"IF(ISERROR(Dados!S148),\"-\",Dados!S148)","v":1.3638253232029913},null,{"$f":"IF(ISERROR(Dados!C148),\"-\",Dados!C148)","v":"Alliar"},{"$f":"IF(ISERROR(Dados!T148),\"-\",Dados!T148)","v":42.76029533549513},null,{"$f":"IF(ISERROR(Dados!C148),\"-\",Dados!C148)","v":"Alliar"},{"$f":"IF(ISERROR(Dados!U148),\"0\",Dados!U148)","v":4.0594999999999999E-2},null,{"$f":"IF(ISERROR(Dados!C148),\"-\",Dados!C148)","v":"Alliar"},{"$f":"IF(ISERROR(IF(Dados!Z148<0,\"-\",Dados!Z148)),\"-\",IF(Dados!Z148<0,\"-\",Dados!Z148))","v":10.216443838108232},null,{"$f":"IF(ISERROR(Dados!C148),\"-\",Dados!C148)","v":"Alliar"},{"$f":"IF(ISERROR(Dados!AC148),\"-1000000\",Dados!AC148)","v":-8.1},null,{"$f":"IF(ISERROR(Dados!C148),\"-\",Dados!C148)","v":"Alliar"},{"$f":"IF(ISERROR(Dados!AD148),\"-1000000\",Dados!AD148)","v":-1.9},null,{"$f":"IF(ISERROR(Dados!C148),\"-\",Dados!C148)","v":"Alliar"},{"$f":"IF(ISERROR(Dados!AC148),\"-\",Dados!AC148)","v":-8.1},null,{"$f":"IF(ISERROR(Dados!C148),\"-\",Dados!C148)","v":"Alliar"},{"$f":"IF(ISERROR(Dados!AD148),\"-\",Dados!AD148)","v":-1.9}]
[{"$f":"IF(ISERROR(Dados!C237),\"-\",Dados!C237)","v":"Metal Leve"},{"$f":"IF(ISERROR(Dados!F237),\"-\",Dados!F237)","v":3117.9},null,{"$f":"IF(ISERROR(Dados!C237),\"-\",Dados!C237)","v":"Metal Leve"},{"$f":"IF(ISERROR(Dados!G237),\"-\",Dados!G237)","v":1356.36},null,{"$f":"IF(ISERROR(Dados!C237),\"-\",Dados!C237)","v":"Metal Leve"},{"$f":"IF(ISERROR(Dados!X237),\"0\",Dados!X237)","v":466.8},null,{"$f":"IF(ISERROR(Dados!C237),\"-\",Dados!C237)","v":"Metal Leve"},{"$f":"IF(ISERROR(Dados!AB237),\"0\",Dados!AB237)","v":7.3732319830655244E-2},null,{"$f":"IF(ISERROR(Dados!C237),\"-\",Dados!C237)","v":"Metal Leve"},{"$f":"IF(ISERROR(Dados!S237),\"-\",Dados!S237)","v":2.2987324161726979},null,{"$f":"IF(ISERROR(Dados!C237),\"-\",Dados!C237)","v":"Metal Leve"},{"$f":"IF(ISERROR(Dados!T237),\"-\",Dados!T237)","v":10.689484023587493},null,{"$f":"IF(ISERROR(Dados!C237),\"-\",Dados!C237)","v":"Metal Leve"},{"$f":"IF(ISERROR(Dados!U237),\"0\",Dados!U237)","v":0.21704100000000001},null,{"$f":"IF(ISERROR(Dados!C237),\"-\",Dados!C237)","v":"Metal Leve"},{"$f":"IF(ISERROR(IF(Dados!Z237<0,\"-\",Dados!Z237)),\"-\",IF(Dados!Z237<0,\"-\",Dados!Z237))","v":7.0949657240788353},null,{"$f":"IF(ISERROR(Dados!C237),\"-\",Dados!C237)","v":"Metal Leve"},{"$f":"IF(ISERROR(Dados!AC237),\"-1000000\",Dados!AC237)","v":-7.7},null,{"$f":"IF(ISERROR(Dados!C237),\"-\",Dados!C237)","v":"Metal Leve"},{"$f":"IF(ISERROR(Dados!AD237),\"-1000000\",Dados!AD237)","v":9.9},null,{"$f":"IF(ISERROR(Dados!C237),\"-\",Dados!C237)","v":"Metal Leve"},{"$f":"IF(ISERROR(Dados!AC237),\"-\",Dados!AC237)","v":-7.7},null,{"$f":"IF(ISERROR(Dados!C237),\"-\",Dados!C237)","v":"Metal Leve"},{"$f":"IF(ISERROR(Dados!AD237),\"-\",Dados!AD237)","v":9.9}]
[{"$f":"IF(ISERROR(Dados!C190),\"-\",Dados!C190)","v":"Gerdau Met"},{"$f":"IF(ISERROR(Dados!F190),\"-\",Dados!F190)","v":6983.56},null,{"$f":"IF(ISERROR(Dados!C190),\"-\",Dados!C190)","v":"Gerdau Met"},{"$f":"IF(ISERROR(Dados!G190),\"-\",Dados!G190)","v":9345.17},null,{"$f":"IF(ISERROR(Dados!C190),\"-\",Dados!C190)","v":"Gerdau Met"},{"$f":"IF(ISERROR(Dados!X190),\"0\",Dados!X190)","v":5914.5},null,{"$f":"IF(ISERROR(Dados!C190),\"-\",Dados!C190)","v":"Gerdau Met"},{"$f":"IF(ISERROR(Dados!AB190),\"0\",Dados!AB190)","v":2.7979998739897701E-2},null,{"$f":"IF(ISERROR(Dados!C190),\"-\",Dados!C190)","v":"Gerdau Met"},{"$f":"IF(ISERROR(Dados!S190),\"-\",Dados!S190)","v":0.74516389857006349},null,{"$f":"IF(ISERROR(Dados!C190),\"-\",Dados!C190)","v":"Gerdau Met"},{"$f":"IF(ISERROR(Dados!T190),\"-\",Dados!T190)","v":8.7153894319220058},null,{"$f":"IF(ISERROR(Dados!C190),\"-\",Dados!C190)","v":"Gerdau Met"},{"$f":"IF(ISERROR(Dados!U190),\"0\",Dados!U190)","v":9.5991999999999994E-2},null,{"$f":"IF(ISERROR(Dados!C190),\"-\",Dados!C190)","v":"Gerdau Met"},{"$f":"IF(ISERROR(IF(Dados!Z190<0,\"-\",Dados!Z190)),\"-\",IF(Dados!Z190<0,\"-\",Dados!Z190))","v":3.2443043367993916},null,{"$f":"IF(ISERROR(Dados!C190),\"-\",Dados!C190)","v":"Gerdau Met"},{"$f":"IF(ISERROR(Dados!AC190),\"-1000000\",Dados!AC190)","v":-0.3},null,{"$f":"IF(ISERROR(Dados!C190),\"-\",Dados!C190)","v":"Gerdau Met"},{"$f":"IF(ISERROR(Dados!AD190),\"-1000000\",Dados!AD190)","v":27},null,{"$f":"IF(ISERROR(Dados!C190),\"-\",Dados!C190)","v":"Gerdau Met"},{"$f":"IF(ISERROR(Dados!AC190),\"-\",Dados!AC190)","v":-0.3},null,{"$f":"IF(ISERROR(Dados!C190),\"-\",Dados!C190)","v":"Gerdau Met"},{"$f":"IF(ISERROR(Dados!AD190),\"-\",Dados!AD190)","v":27}]
[{"$f":"IF(ISERROR(Dados!C98),\"-\",Dados!C98)","v":"Amazonia"},{"$f":"IF(ISERROR(Dados!F98),\"-\",Dados!F98)","v":809.33},null,{"$f":"IF(ISERROR(Dados!C98),\"-\",Dados!C98)","v":"Amazonia"},{"$f":"IF(ISERROR(Dados!G98),\"-\",Dados!G98)","v":1938.61},null,{"$f":"IF(ISERROR(Dados!C98),\"-\",Dados!C98)","v":"Amazonia"},{"$f":"IF(ISERROR(Dados!X98),\"0\",Dados!X98)","v":"0"},null,{"$f":"IF(ISERROR(Dados!C98),\"-\",Dados!C98)","v":"Amazonia"},{"$f":"IF(ISERROR(Dados!AB98),\"0\",Dados!AB98)","v":2.3537988212472046E-2},null,{"$f":"IF(ISERROR(Dados!C98),\"-\",Dados!C98)","v":"Amazonia"},{"$f":"IF(ISERROR(Dados!S98),\"-\",Dados!S98)","v":0.41748252613986314},null,{"$f":"IF(ISERROR(Dados!C98),\"-\",Dados!C98)","v":"Amazonia"},{"$f":"IF(ISERROR(Dados!T98),\"-\",Dados!T98)","v":7.4196534653465349},null,{"$f":"IF(ISERROR(Dados!C98),\"-\",Dados!C98)","v":"Amazonia"},{"$f":"IF(ISERROR(Dados!U98),\"0\",Dados!U98)","v":5.7857000000000006E-2},null,{"$f":"IF(ISERROR(Dados!C98),\"-\",Dados!C98)","v":"Amazonia"},{"$f":"IF(ISERROR(IF(Dados!Z98<0,\"-\",Dados!Z98)),\"-\",IF(Dados!Z98<0,\"-\",Dados!Z98))","v":"-"},null,{"$f":"IF(ISERROR(Dados!C98),\"-\",Dados!C98)","v":"Amazonia"},{"$f":"IF(ISERROR(Dados!AC98),\"-1000000\",Dados!AC98)","v":4.2},null,{"$f":"IF(ISERROR(Dados!C98),\"-\",Dados!C98)","v":"Amazonia"},{"$f":"IF(ISERROR(Dados!AD98),\"-1000000\",Dados!AD98)","v":12},null,{"$f":"IF(ISERROR(Dados!C98),\"-\",Dados!C98)","v":"Amazonia"},{"$f":"IF(ISERROR(Dados!AC98),\"-\",Dados!AC98)","v":4.2},null,{"$f":"IF(ISERROR(Dados!C98),\"-\",Dados!C98)","v":"Amazonia"},{"$f":"IF(ISERROR(Dados!AD98),\"-\",Dados!AD98)","v":12}]
[{"$f":"IF(ISERROR(Dados!C151),\"-\",Dados!C151)","v":"Technos"},{"$f":"IF(ISERROR(Dados!F151),\"-\",Dados!F151)","v":188.61},null,{"$f":"IF(ISERROR(Dados!C151),\"-\",Dados!C151)","v":"Technos"},{"$f":"IF(ISERROR(Dados!G151),\"-\",Dados!G151)","v":465.69},null,{"$f":"IF(ISERROR(Dados!C151),\"-\",Dados!C151)","v":"Technos"},{"$f":"IF(ISERROR(Dados!X151),\"0\",Dados!X151)","v":8.4},null,{"$f":"IF(ISERROR(Dados!C151),\"-\",Dados!C151)","v":"Technos"},{"$f":"IF(ISERROR(Dados!AB151),\"0\",Dados!AB151)","v":"0"},null,{"$f":"IF(ISERROR(Dados!C151),\"-\",Dados!C151)","v":"Technos"},{"$f":"IF(ISERROR(Dados!S151),\"-\",Dados!S151)","v":0.40500573342781676},null,{"$f":"IF(ISERROR(Dados!C151),\"-\",Dados!C151)","v":"Technos"},{"$f":"IF(ISERROR(Dados!T151),\"-\",Dados!T151)","v":13.125060542797495},null,{"$f":"IF(ISERROR(Dados!C151),\"-\",Dados!C151)","v":"Technos"},{"$f":"IF(ISERROR(Dados!U151),\"0\",Dados!U151)","v":3.0971000000000002E-2},null,{"$f":"IF(ISERROR(Dados!C151),\"-\",Dados!C151)","v":"Technos"},{"$f":"IF(ISERROR(IF(Dados!Z151<0,\"-\",Dados!Z151)),\"-\",IF(Dados!Z151<0,\"-\",Dados!Z151))","v":25.896785714285716},null,{"$f":"IF(ISERROR(Dados!C151),\"-\",Dados!C151)","v":"Technos"},{"$f":"IF(ISERROR(Dados!AC151),\"-1000000\",Dados!AC151)","v":-1.6},null,{"$f":"IF(ISERROR(Dados!C151),\"-\",Dados!C151)","v":"Technos"},{"$f":"IF(ISERROR(Dados!AD151),\"-1000000\",Dados!AD151)","v":-31.3},null,{"$f":"IF(ISERROR(Dados!C151),\"-\",Dados!C151)","v":"Technos"},{"$f":"IF(ISERROR(Dados!AC151),\"-\",Dados!AC151)","v":-1.6},null,{"$f":"IF(ISERROR(Dados!C151),\"-\",Dados!C151)","v":"Technos"},{"$f":"IF(ISERROR(Dados!AD151),\"-\",Dados!AD151)","v":-31.3}]
[{"$f":"IF(ISERROR(Dados!C210),\"-\",Dados!C210)","v":"Cambuci"},{"$f":"IF(ISERROR(Dados!F210),\"-\",Dados!F210)","v":131.07},null,{"$f":"IF(ISERROR(Dados!C210),\"-\",Dados!C210)","v":"Cambuci"},{"$f":"IF(ISERROR(Dados!G210),\"-\",Dados!G210)","v":24.35},null,{"$f":"IF(ISERROR(Dados!C210),\"-\",Dados!C210)","v":"Cambuci"},{"$f":"IF(ISERROR(Dados!X210),\"0\",Dados!X210)","v":36},null,{"$f":"IF(ISERROR(Dados!C210),\"-\",Dados!C210)","v":"Cambuci"},{"$f":"IF(ISERROR(Dados!AB210),\"0\",Dados!AB210)","v":"0"},null,{"$f":"IF(ISERROR(Dados!C210),\"-\",Dados!C210)","v":"Cambuci"},{"$f":"IF(ISERROR(Dados!S210),\"-\",Dados!S210)","v":5.3827515400410668},null,{"$f":"IF(ISERROR(Dados!C210),\"-\",Dados!C210)","v":"Cambuci"},{"$f":"IF(ISERROR(Dados!T210),\"-\",Dados!T210)","v":7.876802884615385},null,{"$f":"IF(ISERROR(Dados!C210),\"-\",Dados!C210)","v":"Cambuci"},{"$f":"IF(ISERROR(Dados!U210),\"0\",Dados!U210)","v":2.4780470000000001},null,{"$f":"IF(ISERROR(Dados!C210),\"-\",Dados!C210)","v":"Cambuci"},{"$f":"IF(ISERROR(IF(Dados!Z210<0,\"-\",Dados!Z210)),\"-\",IF(Dados!Z210<0,\"-\",Dados!Z210))","v":5.1186388888888885},null,{"$f":"IF(ISERROR(Dados!C210),\"-\",Dados!C210)","v":"Cambuci"},{"$f":"IF(ISERROR(Dados!AC210),\"-1000000\",Dados!AC210)","v":"-1000000"},null,{"$f":"IF(ISERROR(Dados!C210),\"-\",Dados!C210)","v":"Cambuci"},{"$f":"IF(ISERROR(Dados!AD210),\"-1000000\",Dados!AD210)","v":297.60000000000002},null,{"$f":"IF(ISERROR(Dados!C210),\"-\",Dados!C210)","v":"Cambuci"},{"$f":"IF(ISERROR(Dados!AC210),\"-\",Dados!AC210)","v":"-"},null,{"$f":"IF(ISERROR(Dados!C210),\"-\",Dados!C210)","v":"Cambuci"},{"$f":"IF(ISERROR(Dados!AD210),\"-\",Dados!AD210)","v":297.60000000000002}]
[{"$f":"IF(ISERROR(Dados!C171),\"-\",Dados!C171)","v":"Comgas"},{"$f":"IF(ISERROR(Dados!F171),\"-\",Dados!F171)","v":10274.64},null,{"$f":"IF(ISERROR(Dados!C171),\"-\",Dados!C171)","v":"Comgas"},{"$f":"IF(ISERROR(Dados!G171),\"-\",Dados!G171)","v":2721.32},null,{"$f":"IF(ISERROR(Dados!C171),\"-\",Dados!C171)","v":"Comgas"},{"$f":"IF(ISERROR(Dados!X171),\"0\",Dados!X171)","v":2186.3000000000002},null,{"$f":"IF(ISERROR(Dados!C171),\"-\",Dados!C171)","v":"Comgas"},{"$f":"IF(ISERROR(Dados!AB171),\"0\",Dados!AB171)","v":7.3654162092297151E-2},null,{"$f":"IF(ISERROR(Dados!C171),\"-\",Dados!C171)","v":"Comgas"},{"$f":"IF(ISERROR(Dados!S171),\"-\",Dados!S171)","v":3.9733231299516412},null,{"$f":"IF(ISERROR(Dados!C171),\"-\",Dados!C171)","v":"Comgas"},{"$f":"IF(ISERROR(Dados!T171),\"-\",Dados!T171)","v":8.072600807806305},null,{"$f":"IF(ISERROR(Dados!C171),\"-\",Dados!C171)","v":"Comgas"},{"$f":"IF(ISERROR(Dados!U171),\"0\",Dados!U171)","v":0.664045},null,{"$f":"IF(ISERROR(Dados!C171),\"-\",Dados!C171)","v":"Comgas"},{"$f":"IF(ISERROR(IF(Dados!Z171<0,\"-\",Dados!Z171)),\"-\",IF(Dados!Z171<0,\"-\",Dados!Z171))","v":6.094116543932671},null,{"$f":"IF(ISERROR(Dados!C171),\"-\",Dados!C171)","v":"Comgas"},{"$f":"IF(ISERROR(Dados!AC171),\"-1000000\",Dados!AC171)","v":1},null,{"$f":"IF(ISERROR(Dados!C171),\"-\",Dados!C171)","v":"Comgas"},{"$f":"IF(ISERROR(Dados!AD171),\"-1000000\",Dados!AD171)","v":48},null,{"$f":"IF(ISERROR(Dados!C171),\"-\",Dados!C171)","v":"Comgas"},{"$f":"IF(ISERROR(Dados!AC171),\"-\",Dados!AC171)","v":1},null,{"$f":"IF(ISERROR(Dados!C171),\"-\",Dados!C171)","v":"Comgas"},{"$f":"IF(ISERROR(Dados!AD171),\"-\",Dados!AD171)","v":48}]
[{"$f":"IF(ISERROR(Dados!C133),\"-\",Dados!C133)","v":"Movida"},{"$f":"IF(ISERROR(Dados!F133),\"-\",Dados!F133)","v":2846.69},null,{"$f":"IF(ISERROR(Dados!C133),\"-\",Dados!C133)","v":"Movida"},{"$f":"IF(ISERROR(Dados!G133),\"-\",Dados!G133)","v":1658.84},null,{"$f":"IF(ISERROR(Dados!C133),\"-\",Dados!C133)","v":"Movida"},{"$f":"IF(ISERROR(Dados!X133),\"0\",Dados!X133)","v":481.7},null,{"$f":"IF(ISERROR(Dados!C133),\"-\",Dados!C133)","v":"Movida"},{"$f":"IF(ISERROR(Dados!AB133),\"0\",Dados!AB133)","v":8.304381580010468E-3},null,{"$f":"IF(ISERROR(Dados!C133),\"-\",Dados!C133)","v":"Movida"},{"$f":"IF(ISERROR(Dados!S133),\"-\",Dados!S133)","v":1.7160743652190689},null,{"$f":"IF(ISERROR(Dados!C133),\"-\",Dados!C133)","v":"Movida"},{"$f":"IF(ISERROR(Dados!T133),\"-\",Dados!T133)","v":17.819673239436622},null,{"$f":"IF(ISERROR(Dados!C133),\"-\",Dados!C133)","v":"Movida"},{"$f":"IF(ISERROR(Dados!U133),\"0\",Dados!U133)","v":0.124338},null,{"$f":"IF(ISERROR(Dados!C133),\"-\",Dados!C133)","v":"Movida"},{"$f":"IF(ISERROR(IF(Dados!Z133<0,\"-\",Dados!Z133)),\"-\",IF(Dados!Z133<0,\"-\",Dados!Z133))","v":8.9276956611999161},null,{"$f":"IF(ISERROR(Dados!C133),\"-\",Dados!C133)","v":"Movida"},{"$f":"IF(ISERROR(Dados!AC133),\"-1000000\",Dados!AC133)","v":-6.5},null,{"$f":"IF(ISERROR(Dados!C133),\"-\",Dados!C133)","v":"Movida"},{"$f":"IF(ISERROR(Dados!AD133),\"-1000000\",Dados!AD133)","v":61.8},null,{"$f":"IF(ISERROR(Dados!C133),\"-\",Dados!C133)","v":"Movida"},{"$f":"IF(ISERROR(Dados!AC133),\"-\",Dados!AC133)","v":-6.5},null,{"$f":"IF(ISERROR(Dados!C133),\"-\",Dados!C133)","v":"Movida"},{"$f":"IF(ISERROR(Dados!AD133),\"-\",Dados!AD133)","v":61.8}]
[{"$f":"IF(ISERROR(Dados!C168),\"-\",Dados!C168)","v":"Sansuy"},{"$f":"IF(ISERROR(Dados!F168),\"-\",Dados!F168)","v":14.37},null,{"$f":"IF(ISERROR(Dados!C168),\"-\",Dados!C168)","v":"Sansuy"},{"$f":"IF(ISERROR(Dados!G168),\"-\",Dados!G168)","v":-1045.26},null,{"$f":"IF(ISERROR(Dados!C168),\"-\",Dados!C168)","v":"Sansuy"},{"$f":"IF(ISERROR(Dados!X168),\"0\",Dados!X168)","v":-67.599999999999994},null,{"$f":"IF(ISERROR(Dados!C168),\"-\",Dados!C168)","v":"Sansuy"},{"$f":"IF(ISERROR(Dados!AB168),\"0\",Dados!AB168)","v":"0"},null,{"$f":"IF(ISERROR(Dados!C168),\"-\",Dados!C168)","v":"Sansuy"},{"$f":"IF(ISERROR(Dados!S168),\"-\",Dados!S168)","v":"-"},null,{"$f":"IF(ISERROR(Dados!C168),\"-\",Dados!C168)","v":"Sansuy"},{"$f":"IF(ISERROR(Dados!T168),\"-\",Dados!T168)","v":"-"},null,{"$f":"IF(ISERROR(Dados!C168),\"-\",Dados!C168)","v":"Sansuy"},{"$f":"IF(ISERROR(Dados!U168),\"0\",Dados!U168)","v":"0"},null,{"$f":"IF(ISERROR(Dados!C168),\"-\",Dados!C168)","v":"Sansuy"},{"$f":"IF(ISERROR(IF(Dados!Z168<0,\"-\",Dados!Z168)),\"-\",IF(Dados!Z168<0,\"-\",Dados!Z168))","v":"-"},null,{"$f":"IF(ISERROR(Dados!C168),\"-\",Dados!C168)","v":"Sansuy"},{"$f":"IF(ISERROR(Dados!AC168),\"-1000000\",Dados!AC168)","v":0.8},null,{"$f":"IF(ISERROR(Dados!C168),\"-\",Dados!C168)","v":"Sansuy"},{"$f":"IF(ISERROR(Dados!AD168),\"-1000000\",Dados!AD168)","v":"-1000000"},null,{"$f":"IF(ISERROR(Dados!C168),\"-\",Dados!C168)","v":"Sansuy"},{"$f":"IF(ISERROR(Dados!AC168),\"-\",Dados!AC168)","v":0.8},null,{"$f":"IF(ISERROR(Dados!C168),\"-\",Dados!C168)","v":"Sansuy"},{"$f":"IF(ISERROR(Dados!AD168),\"-\",Dados!AD168)","v":"-"}]
[{"$f":"IF(ISERROR(Dados!C136),\"-\",Dados!C136)","v":"Sierrabrasil"},{"$f":"IF(ISERROR(Dados!F136),\"-\",Dados!F136)","v":2193.36},null,{"$f":"IF(ISERROR(Dados!C136),\"-\",Dados!C136)","v":"Sierrabrasil"},{"$f":"IF(ISERROR(Dados!G136),\"-\",Dados!G136)","v":2766.6},null,{"$f":"IF(ISERROR(Dados!C136),\"-\",Dados!C136)","v":"Sierrabrasil"},{"$f":"IF(ISERROR(Dados!X136),\"0\",Dados!X136)","v":562.20000000000005},null,{"$f":"IF(ISERROR(Dados!C136),\"-\",Dados!C136)","v":"Sierrabrasil"},{"$f":"IF(ISERROR(Dados!AB136),\"0\",Dados!AB136)","v":1.5852390852390853E-2},null,{"$f":"IF(ISERROR(Dados!C136),\"-\",Dados!C136)","v":"Sierrabrasil"},{"$f":"IF(ISERROR(Dados!S136),\"-\",Dados!S136)","v":0.79280300730138087},null,{"$f":"IF(ISERROR(Dados!C136),\"-\",Dados!C136)","v":"Sierrabrasil"},{"$f":"IF(ISERROR(Dados!T136),\"-\",Dados!T136)","v":11.589183134312588},null,{"$f":"IF(ISERROR(Dados!C136),\"-\",Dados!C136)","v":"Sierrabrasil"},{"$f":"IF(ISERROR(Dados!U136),\"0\",Dados!U136)","v":0.10036899999999999},null,{"$f":"IF(ISERROR(Dados!C136),\"-\",Dados!C136)","v":"Sierrabrasil"},{"$f":"IF(ISERROR(IF(Dados!Z136<0,\"-\",Dados!Z136)),\"-\",IF(Dados!Z136<0,\"-\",Dados!Z136))","v":4.7641319815012446},null,{"$f":"IF(ISERROR(Dados!C136),\"-\",Dados!C136)","v":"Sierrabrasil"},{"$f":"IF(ISERROR(Dados!AC136),\"-1000000\",Dados!AC136)","v":-7.1},null,{"$f":"IF(ISERROR(Dados!C136),\"-\",Dados!C136)","v":"Sierrabrasil"},{"$f":"IF(ISERROR(Dados!AD136),\"-1000000\",Dados!AD136)","v":15.5},null,{"$f":"IF(ISERROR(Dados!C136),\"-\",Dados!C136)","v":"Sierrabrasil"},{"$f":"IF(ISERROR(Dados!AC136),\"-\",Dados!AC136)","v":-7.1},null,{"$f":"IF(ISERROR(Dados!C136),\"-\",Dados!C136)","v":"Sierrabrasil"},{"$f":"IF(ISERROR(Dados!AD136),\"-\",Dados!AD136)","v":15.5}]
[{"$f":"IF(ISERROR(Dados!C74),\"-\",Dados!C74)","v":"Celesc"},{"$f":"IF(ISERROR(Dados!F74),\"-\",Dados!F74)","v":2060.85},null,{"$f":"IF(ISERROR(Dados!C74),\"-\",Dados!C74)","v":"Celesc"},{"$f":"IF(ISERROR(Dados!G74),\"-\",Dados!G74)","v":1800.86},null,{"$f":"IF(ISERROR(Dados!C74),\"-\",Dados!C74)","v":"Celesc"},{"$f":"IF(ISERROR(Dados!X74),\"0\",Dados!X74)","v":"0"},null,{"$f":"IF(ISERROR(Dados!C74),\"-\",Dados!C74)","v":"Celesc"},{"$f":"IF(ISERROR(Dados!AB74),\"0\",Dados!AB74)","v":7.4289734818157559E-3},null,{"$f":"IF(ISERROR(Dados!C74),\"-\",Dados!C74)","v":"Celesc"},{"$f":"IF(ISERROR(Dados!S74),\"-\",Dados!S74)","v":1.1443690958764148},null,{"$f":"IF(ISERROR(Dados!C74),\"-\",Dados!C74)","v":"Celesc"},{"$f":"IF(ISERROR(Dados!T74),\"-\",Dados!T74)","v":12.487720596255224},null,{"$f":"IF(ISERROR(Dados!C74),\"-\",Dados!C74)","v":"Celesc"},{"$f":"IF(ISERROR(Dados!U74),\"0\",Dados!U74)","v":8.9581999999999995E-2},null,{"$f":"IF(ISERROR(Dados!C74),\"-\",Dados!C74)","v":"Celesc"},{"$f":"IF(ISERROR(IF(Dados!Z74<0,\"-\",Dados!Z74)),\"-\",IF(Dados!Z74<0,\"-\",Dados!Z74))","v":"-"},null,{"$f":"IF(ISERROR(Dados!C74),\"-\",Dados!C74)","v":"Celesc"},{"$f":"IF(ISERROR(Dados!AC74),\"-1000000\",Dados!AC74)","v":-2.5},null,{"$f":"IF(ISERROR(Dados!C74),\"-\",Dados!C74)","v":"Celesc"},{"$f":"IF(ISERROR(Dados!AD74),\"-1000000\",Dados!AD74)","v":100.6},null,{"$f":"IF(ISERROR(Dados!C74),\"-\",Dados!C74)","v":"Celesc"},{"$f":"IF(ISERROR(Dados!AC74),\"-\",Dados!AC74)","v":-2.5},null,{"$f":"IF(ISERROR(Dados!C74),\"-\",Dados!C74)","v":"Celesc"},{"$f":"IF(ISERROR(Dados!AD74),\"-\",Dados!AD74)","v":100.6}]
[{"$f":"IF(ISERROR(Dados!C83),\"-\",Dados!C83)","v":"BBSeguridade"},{"$f":"IF(ISERROR(Dados!F83),\"-\",Dados!F83)","v":52949.75},null,{"$f":"IF(ISERROR(Dados!C83),\"-\",Dados!C83)","v":"BBSeguridade"},{"$f":"IF(ISERROR(Dados!G83),\"-\",Dados!G83)","v":6830.39},null,{"$f":"IF(ISERROR(Dados!C83),\"-\",Dados!C83)","v":"BBSeguridade"},{"$f":"IF(ISERROR(Dados!X83),\"0\",Dados!X83)","v":"0"},null,{"$f":"IF(ISERROR(Dados!C83),\"-\",Dados!C83)","v":"BBSeguridade"},{"$f":"IF(ISERROR(Dados!AB83),\"0\",Dados!AB83)","v":6.582769512603931E-2},null,{"$f":"IF(ISERROR(Dados!C83),\"-\",Dados!C83)","v":"BBSeguridade"},{"$f":"IF(ISERROR(Dados!S83),\"-\",Dados!S83)","v":7.7520833275991547},null,{"$f":"IF(ISERROR(Dados!C83),\"-\",Dados!C83)","v":"BBSeguridade"},{"$f":"IF(ISERROR(Dados!T83),\"-\",Dados!T83)","v":14.959458812560918},null,{"$f":"IF(ISERROR(Dados!C83),\"-\",Dados!C83)","v":"BBSeguridade"},{"$f":"IF(ISERROR(Dados!U83),\"0\",Dados!U83)","v":0.39777099999999999},null,{"$f":"IF(ISERROR(Dados!C83),\"-\",Dados!C83)","v":"BBSeguridade"},{"$f":"IF(ISERROR(IF(Dados!Z83<0,\"-\",Dados!Z83)),\"-\",IF(Dados!Z83<0,\"-\",Dados!Z83))","v":"-"},null,{"$f":"IF(ISERROR(Dados!C83),\"-\",Dados!C83)","v":"BBSeguridade"},{"$f":"IF(ISERROR(Dados!AC83),\"-1000000\",Dados!AC83)","v":-2.9},null,{"$f":"IF(ISERROR(Dados!C83),\"-\",Dados!C83)","v":"BBSeguridade"},{"$f":"IF(ISERROR(Dados!AD83),\"-1000000\",Dados!AD83)","v":6.8},null,{"$f":"IF(ISERROR(Dados!C83),\"-\",Dados!C83)","v":"BBSeguridade"},{"$f":"IF(ISERROR(Dados!AC83),\"-\",Dados!AC83)","v":-2.9},null,{"$f":"IF(ISERROR(Dados!C83),\"-\",Dados!C83)","v":"BBSeguridade"},{"$f":"IF(ISERROR(Dados!AD83),\"-\",Dados!AD83)","v":6.8}]
[{"$f":"IF(ISERROR(Dados!C144),\"-\",Dados!C144)","v":"Trevisa"},{"$f":"IF(ISERROR(Dados!F144),\"-\",Dados!F144)","v":77.94},null,{"$f":"IF(ISERROR(Dados!C144),\"-\",Dados!C144)","v":"Trevisa"},{"$f":"IF(ISERROR(Dados!G144),\"-\",Dados!G144)","v":105.11},null,{"$f":"IF(ISERROR(Dados!C144),\"-\",Dados!C144)","v":"Trevisa"},{"$f":"IF(ISERROR(Dados!X144),\"0\",Dados!X144)","v":31.7},null,{"$f":"IF(ISERROR(Dados!C144),\"-\",Dados!C144)","v":"Trevisa"},{"$f":"IF(ISERROR(Dados!AB144),\"0\",Dados!AB144)","v":"0"},null,{"$f":"IF(ISERROR(Dados!C144),\"-\",Dados!C144)","v":"Trevisa"},{"$f":"IF(ISERROR(Dados!S144),\"-\",Dados!S144)","v":0.74150889544286924},null,{"$f":"IF(ISERROR(Dados!C144),\"-\",Dados!C144)","v":"Trevisa"},{"$f":"IF(ISERROR(Dados!T144),\"-\",Dados!T144)","v":12.51043338683788},null,{"$f":"IF(ISERROR(Dados!C144),\"-\",Dados!C144)","v":"Trevisa"},{"$f":"IF(ISERROR(Dados!U144),\"0\",Dados!U144)","v":6.1619E-2},null,{"$f":"IF(ISERROR(Dados!C144),\"-\",Dados!C144)","v":"Trevisa"},{"$f":"IF(ISERROR(IF(Dados!Z144<0,\"-\",Dados!Z144)),\"-\",IF(Dados!Z144<0,\"-\",Dados!Z144))","v":3.4013249211356467},null,{"$f":"IF(ISERROR(Dados!C144),\"-\",Dados!C144)","v":"Trevisa"},{"$f":"IF(ISERROR(Dados!AC144),\"-1000000\",Dados!AC144)","v":-27.2},null,{"$f":"IF(ISERROR(Dados!C144),\"-\",Dados!C144)","v":"Trevisa"},{"$f":"IF(ISERROR(Dados!AD144),\"-1000000\",Dados!AD144)","v":"-1000000"},null,{"$f":"IF(ISERROR(Dados!C144),\"-\",Dados!C144)","v":"Trevisa"},{"$f":"IF(ISERROR(Dados!AC144),\"-\",Dados!AC144)","v":-27.2},null,{"$f":"IF(ISERROR(Dados!C144),\"-\",Dados!C144)","v":"Trevisa"},{"$f":"IF(ISERROR(Dados!AD144),\"-\",Dados!AD144)","v":"-"}]
[{"$f":"IF(ISERROR(Dados!C204),\"-\",Dados!C204)","v":"Totvs"},{"$f":"IF(ISERROR(Dados!F204),\"-\",Dados!F204)","v":6439.99},null,{"$f":"IF(ISERROR(Dados!C204),\"-\",Dados!C204)","v":"Totvs"},{"$f":"IF(ISERROR(Dados!G204),\"-\",Dados!G204)","v":1287.04},null,{"$f":"IF(ISERROR(Dados!C204),\"-\",Dados!C204)","v":"Totvs"},{"$f":"IF(ISERROR(Dados!X204),\"0\",Dados!X204)","v":259.39999999999998},null,{"$f":"IF(ISERROR(Dados!C204),\"-\",Dados!C204)","v":"Totvs"},{"$f":"IF(ISERROR(Dados!AB204),\"0\",Dados!AB204)","v":7.9332421323635612E-3},null,{"$f":"IF(ISERROR(Dados!C204),\"-\",Dados!C204)","v":"Totvs"},{"$f":"IF(ISERROR(Dados!S204),\"-\",Dados!S204)","v":5.0037363252113378},null,{"$f":"IF(ISERROR(Dados!C204),\"-\",Dados!C204)","v":"Totvs"},{"$f":"IF(ISERROR(Dados!T204),\"-\",Dados!T204)","v":108.14456423173803},null,{"$f":"IF(ISERROR(Dados!C204),\"-\",Dados!C204)","v":"Totvs"},{"$f":"IF(ISERROR(Dados!U204),\"0\",Dados!U204)","v":4.8069000000000001E-2},null,{"$f":"IF(ISERROR(Dados!C204),\"-\",Dados!C204)","v":"Totvs"},{"$f":"IF(ISERROR(IF(Dados!Z204<0,\"-\",Dados!Z204)),\"-\",IF(Dados!Z204<0,\"-\",Dados!Z204))","v":24.926175790285274},null,{"$f":"IF(ISERROR(Dados!C204),\"-\",Dados!C204)","v":"Totvs"},{"$f":"IF(ISERROR(Dados!AC204),\"-1000000\",Dados!AC204)","v":8.1},null,{"$f":"IF(ISERROR(Dados!C204),\"-\",Dados!C204)","v":"Totvs"},{"$f":"IF(ISERROR(Dados!AD204),\"-1000000\",Dados!AD204)","v":33.200000000000003},null,{"$f":"IF(ISERROR(Dados!C204),\"-\",Dados!C204)","v":"Totvs"},{"$f":"IF(ISERROR(Dados!AC204),\"-\",Dados!AC204)","v":8.1},null,{"$f":"IF(ISERROR(Dados!C204),\"-\",Dados!C204)","v":"Totvs"},{"$f":"IF(ISERROR(Dados!AD204),\"-\",Dados!AD204)","v":33.200000000000003}]
[{"$f":"IF(ISERROR(Dados!C152),\"-\",Dados!C152)","v":"Omega Ger"},{"$f":"IF(ISERROR(Dados!F152),\"-\",Dados!F152)","v":2668.35},null,{"$f":"IF(ISERROR(Dados!C152),\"-\",Dados!C152)","v":"Omega Ger"},{"$f":"IF(ISERROR(Dados!G152),\"-\",Dados!G152)","v":1811.96},null,{"$f":"IF(ISERROR(Dados!C152),\"-\",Dados!C152)","v":"Omega Ger"},{"$f":"IF(ISERROR(Dados!X152),\"0\",Dados!X152)","v":393.2},null,{"$f":"IF(ISERROR(Dados!C152),\"-\",Dados!C152)","v":"Omega Ger"},{"$f":"IF(ISERROR(Dados!AB152),\"0\",Dados!AB152)","v":4.0024734386418575E-3},null,{"$f":"IF(ISERROR(Dados!C152),\"-\",Dados!C152)","v":"Omega Ger"},{"$f":"IF(ISERROR(Dados!S152),\"-\",Dados!S152)","v":1.4726268791805559},null,{"$f":"IF(ISERROR(Dados!C152),\"-\",Dados!C152)","v":"Omega Ger"},{"$f":"IF(ISERROR(Dados!T152),\"-\",Dados!T152)","v":63.698758653616608},null,{"$f":"IF(ISERROR(Dados!C152),\"-\",Dados!C152)","v":"Omega Ger"},{"$f":"IF(ISERROR(Dados!U152),\"0\",Dados!U152)","v":2.7633999999999999E-2},null,{"$f":"IF(ISERROR(Dados!C152),\"-\",Dados!C152)","v":"Omega Ger"},{"$f":"IF(ISERROR(IF(Dados!Z152<0,\"-\",Dados!Z152)),\"-\",IF(Dados!Z152<0,\"-\",Dados!Z152))","v":11.653031536113936},null,{"$f":"IF(ISERROR(Dados!C152),\"-\",Dados!C152)","v":"Omega Ger"},{"$f":"IF(ISERROR(Dados!AC152),\"-1000000\",Dados!AC152)","v":-2},null,{"$f":"IF(ISERROR(Dados!C152),\"-\",Dados!C152)","v":"Omega Ger"},{"$f":"IF(ISERROR(Dados!AD152),\"-1000000\",Dados!AD152)","v":12},null,{"$f":"IF(ISERROR(Dados!C152),\"-\",Dados!C152)","v":"Omega Ger"},{"$f":"IF(ISERROR(Dados!AC152),\"-\",Dados!AC152)","v":-2},null,{"$f":"IF(ISERROR(Dados!C152),\"-\",Dados!C152)","v":"Omega Ger"},{"$f":"IF(ISERROR(Dados!AD152),\"-\",Dados!AD152)","v":12}]
[{"$f":"IF(ISERROR(Dados!C142),\"-\",Dados!C142)","v":"Jereissati"},{"$f":"IF(ISERROR(Dados!F142),\"-\",Dados!F142)","v":2130.4299999999998},null,{"$f":"IF(ISERROR(Dados!C142),\"-\",Dados!C142)","v":"Jereissati"},{"$f":"IF(ISERROR(Dados!G142),\"-\",Dados!G142)","v":1446.32},null,{"$f":"IF(ISERROR(Dados!C142),\"-\",Dados!C142)","v":"Jereissati"},{"$f":"IF(ISERROR(Dados!X142),\"0\",Dados!X142)","v":544.70000000000005},null,{"$f":"IF(ISERROR(Dados!C142),\"-\",Dados!C142)","v":"Jereissati"},{"$f":"IF(ISERROR(Dados!AB142),\"0\",Dados!AB142)","v":1.6381669428237492E-2},null,{"$f":"IF(ISERROR(Dados!C142),\"-\",Dados!C142)","v":"Jereissati"},{"$f":"IF(ISERROR(Dados!S142),\"-\",Dados!S142)","v":"-"},null,{"$f":"IF(ISERROR(Dados!C142),\"-\",Dados!C142)","v":"Jereissati"},{"$f":"IF(ISERROR(Dados!T142),\"-\",Dados!T142)","v":"-"},null,{"$f":"IF(ISERROR(Dados!C142),\"-\",Dados!C142)","v":"Jereissati"},{"$f":"IF(ISERROR(Dados!U142),\"0\",Dados!U142)","v":8.5086999999999996E-2},null,{"$f":"IF(ISERROR(Dados!C142),\"-\",Dados!C142)","v":"Jereissati"},{"$f":"IF(ISERROR(IF(Dados!Z142<0,\"-\",Dados!Z142)),\"-\",IF(Dados!Z142<0,\"-\",Dados!Z142))","v":6.9671966219937573},null,{"$f":"IF(ISERROR(Dados!C142),\"-\",Dados!C142)","v":"Jereissati"},{"$f":"IF(ISERROR(Dados!AC142),\"-1000000\",Dados!AC142)","v":"-1000000"},null,{"$f":"IF(ISERROR(Dados!C142),\"-\",Dados!C142)","v":"Jereissati"},{"$f":"IF(ISERROR(Dados!AD142),\"-1000000\",Dados!AD142)","v":12.7},null,{"$f":"IF(ISERROR(Dados!C142),\"-\",Dados!C142)","v":"Jereissati"},{"$f":"IF(ISERROR(Dados!AC142),\"-\",Dados!AC142)","v":"-"},null,{"$f":"IF(ISERROR(Dados!C142),\"-\",Dados!C142)","v":"Jereissati"},{"$f":"IF(ISERROR(Dados!AD142),\"-\",Dados!AD142)","v":12.7}]
[{"$f":"IF(ISERROR(Dados!C138),\"-\",Dados!C138)","v":"Copasa"},{"$f":"IF(ISERROR(Dados!F138),\"-\",Dados!F138)","v":7718.88},null,{"$f":"IF(ISERROR(Dados!C138),\"-\",Dados!C138)","v":"Copasa"},{"$f":"IF(ISERROR(Dados!G138),\"-\",Dados!G138)","v":6226.63},null,{"$f":"IF(ISERROR(Dados!C138),\"-\",Dados!C138)","v":"Copasa"},{"$f":"IF(ISERROR(Dados!X138),\"0\",Dados!X138)","v":1490.9},null,{"$f":"IF(ISERROR(Dados!C138),\"-\",Dados!C138)","v":"Copasa"},{"$f":"IF(ISERROR(Dados!AB138),\"0\",Dados!AB138)","v":5.7461704288705097E-2},null,{"$f":"IF(ISERROR(Dados!C138),\"-\",Dados!C138)","v":"Copasa"},{"$f":"IF(ISERROR(Dados!S138),\"-\",Dados!S138)","v":1.2396563759208432},null,{"$f":"IF(ISERROR(Dados!C138),\"-\",Dados!C138)","v":"Copasa"},{"$f":"IF(ISERROR(Dados!T138),\"-\",Dados!T138)","v":13.338312735441507},null,{"$f":"IF(ISERROR(Dados!C138),\"-\",Dados!C138)","v":"Copasa"},{"$f":"IF(ISERROR(Dados!U138),\"0\",Dados!U138)","v":9.2675999999999994E-2},null,{"$f":"IF(ISERROR(Dados!C138),\"-\",Dados!C138)","v":"Copasa"},{"$f":"IF(ISERROR(IF(Dados!Z138<0,\"-\",Dados!Z138)),\"-\",IF(Dados!Z138<0,\"-\",Dados!Z138))","v":7.3429317861694283},null,{"$f":"IF(ISERROR(Dados!C138),\"-\",Dados!C138)","v":"Copasa"},{"$f":"IF(ISERROR(Dados!AC138),\"-1000000\",Dados!AC138)","v":0.5},null,{"$f":"IF(ISERROR(Dados!C138),\"-\",Dados!C138)","v":"Copasa"},{"$f":"IF(ISERROR(Dados!AD138),\"-1000000\",Dados!AD138)","v":56.4},null,{"$f":"IF(ISERROR(Dados!C138),\"-\",Dados!C138)","v":"Copasa"},{"$f":"IF(ISERROR(Dados!AC138),\"-\",Dados!AC138)","v":0.5},null,{"$f":"IF(ISERROR(Dados!C138),\"-\",Dados!C138)","v":"Copasa"},{"$f":"IF(ISERROR(Dados!AD138),\"-\",Dados!AD138)","v":56.4}]
[{"$f":"IF(ISERROR(Dados!C215),\"-\",Dados!C215)","v":"Vulcabras"},{"$f":"IF(ISERROR(Dados!F215),\"-\",Dados!F215)","v":1658.85},null,{"$f":"IF(ISERROR(Dados!C215),\"-\",Dados!C215)","v":"Vulcabras"},{"$f":"IF(ISERROR(Dados!G215),\"-\",Dados!G215)","v":941.16},null,{"$f":"IF(ISERROR(Dados!C215),\"-\",Dados!C215)","v":"Vulcabras"},{"$f":"IF(ISERROR(Dados!X215),\"0\",Dados!X215)","v":218},null,{"$f":"IF(ISERROR(Dados!C215),\"-\",Dados!C215)","v":"Vulcabras"},{"$f":"IF(ISERROR(Dados!AB215),\"0\",Dados!AB215)","v":"0"},null,{"$f":"IF(ISERROR(Dados!C215),\"-\",Dados!C215)","v":"Vulcabras"},{"$f":"IF(ISERROR(Dados!S215),\"-\",Dados!S215)","v":1.7625621573377535},null,{"$f":"IF(ISERROR(Dados!C215),\"-\",Dados!C215)","v":"Vulcabras"},{"$f":"IF(ISERROR(Dados!T215),\"-\",Dados!T215)","v":10.905614358030371},null,{"$f":"IF(ISERROR(Dados!C215),\"-\",Dados!C215)","v":"Vulcabras"},{"$f":"IF(ISERROR(Dados!U215),\"0\",Dados!U215)","v":0.19388100000000003},null,{"$f":"IF(ISERROR(Dados!C215),\"-\",Dados!C215)","v":"Vulcabras"},{"$f":"IF(ISERROR(IF(Dados!Z215<0,\"-\",Dados!Z215)),\"-\",IF(Dados!Z215<0,\"-\",Dados!Z215))","v":7.5698623853211009},null,{"$f":"IF(ISERROR(Dados!C215),\"-\",Dados!C215)","v":"Vulcabras"},{"$f":"IF(ISERROR(Dados!AC215),\"-1000000\",Dados!AC215)","v":-15.2},null,{"$f":"IF(ISERROR(Dados!C215),\"-\",Dados!C215)","v":"Vulcabras"},{"$f":"IF(ISERROR(Dados!AD215),\"-1000000\",Dados!AD215)","v":-25.8},null,{"$f":"IF(ISERROR(Dados!C215),\"-\",Dados!C215)","v":"Vulcabras"},{"$f":"IF(ISERROR(Dados!AC215),\"-\",Dados!AC215)","v":-15.2},null,{"$f":"IF(ISERROR(Dados!C215),\"-\",Dados!C215)","v":"Vulcabras"},{"$f":"IF(ISERROR(Dados!AD215),\"-\",Dados!AD215)","v":-25.8}]
[{"$f":"IF(ISERROR(Dados!C132),\"-\",Dados!C132)","v":"Ser Educa"},{"$f":"IF(ISERROR(Dados!F132),\"-\",Dados!F132)","v":2620.77},null,{"$f":"IF(ISERROR(Dados!C132),\"-\",Dados!C132)","v":"Ser Educa"},{"$f":"IF(ISERROR(Dados!G132),\"-\",Dados!G132)","v":1470.54},null,{"$f":"IF(ISERROR(Dados!C132),\"-\",Dados!C132)","v":"Ser Educa"},{"$f":"IF(ISERROR(Dados!X132),\"0\",Dados!X132)","v":312},null,{"$f":"IF(ISERROR(Dados!C132),\"-\",Dados!C132)","v":"Ser Educa"},{"$f":"IF(ISERROR(Dados!AB132),\"0\",Dados!AB132)","v":2.2333131102691195E-2},null,{"$f":"IF(ISERROR(Dados!C132),\"-\",Dados!C132)","v":"Ser Educa"},{"$f":"IF(ISERROR(Dados!S132),\"-\",Dados!S132)","v":1.7821888013926859},null,{"$f":"IF(ISERROR(Dados!C132),\"-\",Dados!C132)","v":"Ser Educa"},{"$f":"IF(ISERROR(Dados!T132),\"-\",Dados!T132)","v":13.020567965023847},null,{"$f":"IF(ISERROR(Dados!C132),\"-\",Dados!C132)","v":"Ser Educa"},{"$f":"IF(ISERROR(Dados!U132),\"0\",Dados!U132)","v":0.13344},null,{"$f":"IF(ISERROR(Dados!C132),\"-\",Dados!C132)","v":"Ser Educa"},{"$f":"IF(ISERROR(IF(Dados!Z132<0,\"-\",Dados!Z132)),\"-\",IF(Dados!Z132<0,\"-\",Dados!Z132))","v":6.4297756410256417},null,{"$f":"IF(ISERROR(Dados!C132),\"-\",Dados!C132)","v":"Ser Educa"},{"$f":"IF(ISERROR(Dados!AC132),\"-1000000\",Dados!AC132)","v":7.3},null,{"$f":"IF(ISERROR(Dados!C132),\"-\",Dados!C132)","v":"Ser Educa"},{"$f":"IF(ISERROR(Dados!AD132),\"-1000000\",Dados!AD132)","v":-33.200000000000003},null,{"$f":"IF(ISERROR(Dados!C132),\"-\",Dados!C132)","v":"Ser Educa"},{"$f":"IF(ISERROR(Dados!AC132),\"-\",Dados!AC132)","v":7.3},null,{"$f":"IF(ISERROR(Dados!C132),\"-\",Dados!C132)","v":"Ser Educa"},{"$f":"IF(ISERROR(Dados!AD132),\"-\",Dados!AD132)","v":-33.200000000000003}]
[{"$f":"IF(ISERROR(Dados!C189),\"-\",Dados!C189)","v":"Gerdau"},{"$f":"IF(ISERROR(Dados!F189),\"-\",Dados!F189)","v":23998.44},null,{"$f":"IF(ISERROR(Dados!C189),\"-\",Dados!C189)","v":"Gerdau"},{"$f":"IF(ISERROR(Dados!G189),\"-\",Dados!G189)","v":25730.6},null,{"$f":"IF(ISERROR(Dados!C189),\"-\",Dados!C189)","v":"Gerdau"},{"$f":"IF(ISERROR(Dados!X189),\"0\",Dados!X189)","v":5939},null,{"$f":"IF(ISERROR(Dados!C189),\"-\",Dados!C189)","v":"Gerdau"},{"$f":"IF(ISERROR(Dados!AB189),\"0\",Dados!AB189)","v":2.4693688423080836E-2},null,{"$f":"IF(ISERROR(Dados!C189),\"-\",Dados!C189)","v":"Gerdau"},{"$f":"IF(ISERROR(Dados!S189),\"-\",Dados!S189)","v":0.99803047577592441},null,{"$f":"IF(ISERROR(Dados!C189),\"-\",Dados!C189)","v":"Gerdau"},{"$f":"IF(ISERROR(Dados!T189),\"-\",Dados!T189)","v":11.146428817598217},null,{"$f":"IF(ISERROR(Dados!C189),\"-\",Dados!C189)","v":"Gerdau"},{"$f":"IF(ISERROR(Dados!U189),\"0\",Dados!U189)","v":9.7363000000000005E-2},null,{"$f":"IF(ISERROR(Dados!C189),\"-\",Dados!C189)","v":"Gerdau"},{"$f":"IF(ISERROR(IF(Dados!Z189<0,\"-\",Dados!Z189)),\"-\",IF(Dados!Z189<0,\"-\",Dados!Z189))","v":5.9867890217208286},null,{"$f":"IF(ISERROR(Dados!C189),\"-\",Dados!C189)","v":"Gerdau"},{"$f":"IF(ISERROR(Dados!AC189),\"-1000000\",Dados!AC189)","v":0.7},null,{"$f":"IF(ISERROR(Dados!C189),\"-\",Dados!C189)","v":"Gerdau"},{"$f":"IF(ISERROR(Dados!AD189),\"-1000000\",Dados!AD189)","v":26.1},null,{"$f":"IF(ISERROR(Dados!C189),\"-\",Dados!C189)","v":"Gerdau"},{"$f":"IF(ISERROR(Dados!AC189),\"-\",Dados!AC189)","v":0.7},null,{"$f":"IF(ISERROR(Dados!C189),\"-\",Dados!C189)","v":"Gerdau"},{"$f":"IF(ISERROR(Dados!AD189),\"-\",Dados!AD189)","v":26.1}]
[{"$f":"IF(ISERROR(Dados!C33),\"-\",Dados!C33)","v":"Trisul"},{"$f":"IF(ISERROR(Dados!F33),\"-\",Dados!F33)","v":686.75},null,{"$f":"IF(ISERROR(Dados!C33),\"-\",Dados!C33)","v":"Trisul"},{"$f":"IF(ISERROR(Dados!G33),\"-\",Dados!G33)","v":560.76},null,{"$f":"IF(ISERROR(Dados!C33),\"-\",Dados!C33)","v":"Trisul"},{"$f":"IF(ISERROR(Dados!X33),\"0\",Dados!X33)","v":102.7},null,{"$f":"IF(ISERROR(Dados!C33),\"-\",Dados!C33)","v":"Trisul"},{"$f":"IF(ISERROR(Dados!AB33),\"0\",Dados!AB33)","v":"0"},null,{"$f":"IF(ISERROR(Dados!C33),\"-\",Dados!C33)","v":"Trisul"},{"$f":"IF(ISERROR(Dados!S33),\"-\",Dados!S33)","v":1.2246854269206078},null,{"$f":"IF(ISERROR(Dados!C33),\"-\",Dados!C33)","v":"Trisul"},{"$f":"IF(ISERROR(Dados!T33),\"-\",Dados!T33)","v":9.5448867268936759},null,{"$f":"IF(ISERROR(Dados!C33),\"-\",Dados!C33)","v":"Trisul"},{"$f":"IF(ISERROR(Dados!U33),\"0\",Dados!U33)","v":0.140541},null,{"$f":"IF(ISERROR(Dados!C33),\"-\",Dados!C33)","v":"Trisul"},{"$f":"IF(ISERROR(IF(Dados!Z33<0,\"-\",Dados!Z33)),\"-\",IF(Dados!Z33<0,\"-\",Dados!Z33))","v":8.4158812074001954},null,{"$f":"IF(ISERROR(Dados!C33),\"-\",Dados!C33)","v":"Trisul"},{"$f":"IF(ISERROR(Dados!AC33),\"-1000000\",Dados!AC33)","v":-0.8},null,{"$f":"IF(ISERROR(Dados!C33),\"-\",Dados!C33)","v":"Trisul"},{"$f":"IF(ISERROR(Dados!AD33),\"-1000000\",Dados!AD33)","v":136.9},null,{"$f":"IF(ISERROR(Dados!C33),\"-\",Dados!C33)","v":"Trisul"},{"$f":"IF(ISERROR(Dados!AC33),\"-\",Dados!AC33)","v":-0.8},null,{"$f":"IF(ISERROR(Dados!C33),\"-\",Dados!C33)","v":"Trisul"},{"$f":"IF(ISERROR(Dados!AD33),\"-\",Dados!AD33)","v":136.9}]
[{"$f":"IF(ISERROR(Dados!C78),\"-\",Dados!C78)","v":"Cesp"},{"$f":"IF(ISERROR(Dados!F78),\"-\",Dados!F78)","v":7715.17},null,{"$f":"IF(ISERROR(Dados!C78),\"-\",Dados!C78)","v":"Cesp"},{"$f":"IF(ISERROR(Dados!G78),\"-\",Dados!G78)","v":7102.07},null,{"$f":"IF(ISERROR(Dados!C78),\"-\",Dados!C78)","v":"Cesp"},{"$f":"IF(ISERROR(Dados!X78),\"0\",Dados!X78)","v":613.70000000000005},null,{"$f":"IF(ISERROR(Dados!C78),\"-\",Dados!C78)","v":"Cesp"},{"$f":"IF(ISERROR(Dados!AB78),\"0\",Dados!AB78)","v":3.3142497184119081E-3},null,{"$f":"IF(ISERROR(Dados!C78),\"-\",Dados!C78)","v":"Cesp"},{"$f":"IF(ISERROR(Dados!S78),\"-\",Dados!S78)","v":1.1131856515072365},null,{"$f":"IF(ISERROR(Dados!C78),\"-\",Dados!C78)","v":"Cesp"},{"$f":"IF(ISERROR(Dados!T78),\"-\",Dados!T78)","v":26.851619807764152},null,{"$f":"IF(ISERROR(Dados!C78),\"-\",Dados!C78)","v":"Cesp"},{"$f":"IF(ISERROR(Dados!U78),\"0\",Dados!U78)","v":4.1384999999999998E-2},null,{"$f":"IF(ISERROR(Dados!C78),\"-\",Dados!C78)","v":"Cesp"},{"$f":"IF(ISERROR(IF(Dados!Z78<0,\"-\",Dados!Z78)),\"-\",IF(Dados!Z78<0,\"-\",Dados!Z78))","v":12.25341372005866},null,{"$f":"IF(ISERROR(Dados!C78),\"-\",Dados!C78)","v":"Cesp"},{"$f":"IF(ISERROR(Dados!AC78),\"-1000000\",Dados!AC78)","v":0.2},null,{"$f":"IF(ISERROR(Dados!C78),\"-\",Dados!C78)","v":"Cesp"},{"$f":"IF(ISERROR(Dados!AD78),\"-1000000\",Dados!AD78)","v":83.3},null,{"$f":"IF(ISERROR(Dados!C78),\"-\",Dados!C78)","v":"Cesp"},{"$f":"IF(ISERROR(Dados!AC78),\"-\",Dados!AC78)","v":0.2},null,{"$f":"IF(ISERROR(Dados!C78),\"-\",Dados!C78)","v":"Cesp"},{"$f":"IF(ISERROR(Dados!AD78),\"-\",Dados!AD78)","v":83.3}]
[{"$f":"IF(ISERROR(Dados!C24),\"-\",Dados!C24)","v":"P.Acucar-Cbd"},{"$f":"IF(ISERROR(Dados!F24),\"-\",Dados!F24)","v":24384.33},null,{"$f":"IF(ISERROR(Dados!C24),\"-\",Dados!C24)","v":"P.Acucar-Cbd"},{"$f":"IF(ISERROR(Dados!G24),\"-\",Dados!G24)","v":11083},null,{"$f":"IF(ISERROR(Dados!C24),\"-\",Dados!C24)","v":"P.Acucar-Cbd"},{"$f":"IF(ISERROR(Dados!X24),\"0\",Dados!X24)","v":3066},null,{"$f":"IF(ISERROR(Dados!C24),\"-\",Dados!C24)","v":"P.Acucar-Cbd"},{"$f":"IF(ISERROR(Dados!AB24),\"0\",Dados!AB24)","v":1.4025400738917164E-2},null,{"$f":"IF(ISERROR(Dados!C24),\"-\",Dados!C24)","v":"P.Acucar-Cbd"},{"$f":"IF(ISERROR(Dados!S24),\"-\",Dados!S24)","v":2.2001564125236848},null,{"$f":"IF(ISERROR(Dados!C24),\"-\",Dados!C24)","v":"P.Acucar-Cbd"},{"$f":"IF(ISERROR(Dados!T24),\"-\",Dados!T24)","v":20.439508398994132},null,{"$f":"IF(ISERROR(Dados!C24),\"-\",Dados!C24)","v":"P.Acucar-Cbd"},{"$f":"IF(ISERROR(Dados!U24),\"0\",Dados!U24)","v":8.8774999999999993E-2},null,{"$f":"IF(ISERROR(Dados!C24),\"-\",Dados!C24)","v":"P.Acucar-Cbd"},{"$f":"IF(ISERROR(IF(Dados!Z24<0,\"-\",Dados!Z24)),\"-\",IF(Dados!Z24<0,\"-\",Dados!Z24))","v":8.3301793868232235},null,{"$f":"IF(ISERROR(Dados!C24),\"-\",Dados!C24)","v":"P.Acucar-Cbd"},{"$f":"IF(ISERROR(Dados!AC24),\"-1000000\",Dados!AC24)","v":-1},null,{"$f":"IF(ISERROR(Dados!C24),\"-\",Dados!C24)","v":"P.Acucar-Cbd"},{"$f":"IF(ISERROR(Dados!AD24),\"-1000000\",Dados!AD24)","v":18.899999999999999},null,{"$f":"IF(ISERROR(Dados!C24),\"-\",Dados!C24)","v":"P.Acucar-Cbd"},{"$f":"IF(ISERROR(Dados!AC24),\"-\",Dados!AC24)","v":-1},null,{"$f":"IF(ISERROR(Dados!C24),\"-\",Dados!C24)","v":"P.Acucar-Cbd"},{"$f":"IF(ISERROR(Dados!AD24),\"-\",Dados!AD24)","v":18.899999999999999}]
[{"$f":"IF(ISERROR(Dados!C130),\"-\",Dados!C130)","v":"Hypera"},{"$f":"IF(ISERROR(Dados!F130),\"-\",Dados!F130)","v":16370.01},null,{"$f":"IF(ISERROR(Dados!C130),\"-\",Dados!C130)","v":"Hypera"},{"$f":"IF(ISERROR(Dados!G130),\"-\",Dados!G130)","v":8267.67},null,{"$f":"IF(ISERROR(Dados!C130),\"-\",Dados!C130)","v":"Hypera"},{"$f":"IF(ISERROR(Dados!X130),\"0\",Dados!X130)","v":1318.7},null,{"$f":"IF(ISERROR(Dados!C130),\"-\",Dados!C130)","v":"Hypera"},{"$f":"IF(ISERROR(Dados!AB130),\"0\",Dados!AB130)","v":3.8668272041373221E-2},null,{"$f":"IF(ISERROR(Dados!C130),\"-\",Dados!C130)","v":"Hypera"},{"$f":"IF(ISERROR(Dados!S130),\"-\",Dados!S130)","v":1.9800037132589956},null,{"$f":"IF(ISERROR(Dados!C130),\"-\",Dados!C130)","v":"Hypera"},{"$f":"IF(ISERROR(Dados!T130),\"-\",Dados!T130)","v":14.49187083923513},null,{"$f":"IF(ISERROR(Dados!C130),\"-\",Dados!C130)","v":"Hypera"},{"$f":"IF(ISERROR(Dados!U130),\"0\",Dados!U130)","v":0.145986},null,{"$f":"IF(ISERROR(Dados!C130),\"-\",Dados!C130)","v":"Hypera"},{"$f":"IF(ISERROR(IF(Dados!Z130<0,\"-\",Dados!Z130)),\"-\",IF(Dados!Z130<0,\"-\",Dados!Z130))","v":11.592818685068629},null,{"$f":"IF(ISERROR(Dados!C130),\"-\",Dados!C130)","v":"Hypera"},{"$f":"IF(ISERROR(Dados!AC130),\"-1000000\",Dados!AC130)","v":-3.7},null,{"$f":"IF(ISERROR(Dados!C130),\"-\",Dados!C130)","v":"Hypera"},{"$f":"IF(ISERROR(Dados!AD130),\"-1000000\",Dados!AD130)","v":-23.8},null,{"$f":"IF(ISERROR(Dados!C130),\"-\",Dados!C130)","v":"Hypera"},{"$f":"IF(ISERROR(Dados!AC130),\"-\",Dados!AC130)","v":-3.7},null,{"$f":"IF(ISERROR(Dados!C130),\"-\",Dados!C130)","v":"Hypera"},{"$f":"IF(ISERROR(Dados!AD130),\"-\",Dados!AD130)","v":-23.8}]
[{"$f":"IF(ISERROR(Dados!C234),\"-\",Dados!C234)","v":"Rumo S.A."},{"$f":"IF(ISERROR(Dados!F234),\"-\",Dados!F234)","v":29855.15},null,{"$f":"IF(ISERROR(Dados!C234),\"-\",Dados!C234)","v":"Rumo S.A."},{"$f":"IF(ISERROR(Dados!G234),\"-\",Dados!G234)","v":8028.2},null,{"$f":"IF(ISERROR(Dados!C234),\"-\",Dados!C234)","v":"Rumo S.A."},{"$f":"IF(ISERROR(Dados!X234),\"0\",Dados!X234)","v":3242},null,{"$f":"IF(ISERROR(Dados!C234),\"-\",Dados!C234)","v":"Rumo S.A."},{"$f":"IF(ISERROR(Dados!AB234),\"0\",Dados!AB234)","v":"0"},null,{"$f":"IF(ISERROR(Dados!C234),\"-\",Dados!C234)","v":"Rumo S.A."},{"$f":"IF(ISERROR(Dados!S234),\"-\",Dados!S234)","v":3.7187858299494279},null,{"$f":"IF(ISERROR(Dados!C234),\"-\",Dados!C234)","v":"Rumo S.A."},{"$f":"IF(ISERROR(Dados!T234),\"-\",Dados!T234)","v":112.93371311847478},null,{"$f":"IF(ISERROR(Dados!C234),\"-\",Dados!C234)","v":"Rumo S.A."},{"$f":"IF(ISERROR(Dados!U234),\"0\",Dados!U234)","v":3.4037999999999999E-2},null,{"$f":"IF(ISERROR(Dados!C234),\"-\",Dados!C234)","v":"Rumo S.A."},{"$f":"IF(ISERROR(IF(Dados!Z234<0,\"-\",Dados!Z234)),\"-\",IF(Dados!Z234<0,\"-\",Dados!Z234))","v":12.433067242442936},null,{"$f":"IF(ISERROR(Dados!C234),\"-\",Dados!C234)","v":"Rumo S.A."},{"$f":"IF(ISERROR(Dados!AC234),\"-1000000\",Dados!AC234)","v":-1.6},null,{"$f":"IF(ISERROR(Dados!C234),\"-\",Dados!C234)","v":"Rumo S.A."},{"$f":"IF(ISERROR(Dados!AD234),\"-1000000\",Dados!AD234)","v":47.6},null,{"$f":"IF(ISERROR(Dados!C234),\"-\",Dados!C234)","v":"Rumo S.A."},{"$f":"IF(ISERROR(Dados!AC234),\"-\",Dados!AC234)","v":-1.6},null,{"$f":"IF(ISERROR(Dados!C234),\"-\",Dados!C234)","v":"Rumo S.A."},{"$f":"IF(ISERROR(Dados!AD234),\"-\",Dados!AD234)","v":47.6}]
[{"$f":"IF(ISERROR(Dados!C76),\"-\",Dados!C76)","v":"Eletropar"},{"$f":"IF(ISERROR(Dados!F76),\"-\",Dados!F76)","v":705.84},null,{"$f":"IF(ISERROR(Dados!C76),\"-\",Dados!C76)","v":"Eletropar"},{"$f":"IF(ISERROR(Dados!G76),\"-\",Dados!G76)","v":187.43},null,{"$f":"IF(ISERROR(Dados!C76),\"-\",Dados!C76)","v":"Eletropar"},{"$f":"IF(ISERROR(Dados!X76),\"0\",Dados!X76)","v":9.1},null,{"$f":"IF(ISERROR(Dados!C76),\"-\",Dados!C76)","v":"Eletropar"},{"$f":"IF(ISERROR(Dados!AB76),\"0\",Dados!AB76)","v":0.12379576107899806},null,{"$f":"IF(ISERROR(Dados!C76),\"-\",Dados!C76)","v":"Eletropar"},{"$f":"IF(ISERROR(Dados!S76),\"-\",Dados!S76)","v":3.765885930747479},null,{"$f":"IF(ISERROR(Dados!C76),\"-\",Dados!C76)","v":"Eletropar"},{"$f":"IF(ISERROR(Dados!T76),\"-\",Dados!T76)","v":53.553869499241273},null,{"$f":"IF(ISERROR(Dados!C76),\"-\",Dados!C76)","v":"Eletropar"},{"$f":"IF(ISERROR(Dados!U76),\"0\",Dados!U76)","v":6.5540000000000001E-2},null,{"$f":"IF(ISERROR(Dados!C76),\"-\",Dados!C76)","v":"Eletropar"},{"$f":"IF(ISERROR(IF(Dados!Z76<0,\"-\",Dados!Z76)),\"-\",IF(Dados!Z76<0,\"-\",Dados!Z76))","v":66.057252747252761},null,{"$f":"IF(ISERROR(Dados!C76),\"-\",Dados!C76)","v":"Eletropar"},{"$f":"IF(ISERROR(Dados!AC76),\"-1000000\",Dados!AC76)","v":"-1000000"},null,{"$f":"IF(ISERROR(Dados!C76),\"-\",Dados!C76)","v":"Eletropar"},{"$f":"IF(ISERROR(Dados!AD76),\"-1000000\",Dados!AD76)","v":28.9},null,{"$f":"IF(ISERROR(Dados!C76),\"-\",Dados!C76)","v":"Eletropar"},{"$f":"IF(ISERROR(Dados!AC76),\"-\",Dados!AC76)","v":"-"},null,{"$f":"IF(ISERROR(Dados!C76),\"-\",Dados!C76)","v":"Eletropar"},{"$f":"IF(ISERROR(Dados!AD76),\"-\",Dados!AD76)","v":28.9}]
[{"$f":"IF(ISERROR(Dados!C230),\"-\",Dados!C230)","v":"Tegma"},{"$f":"IF(ISERROR(Dados!F230),\"-\",Dados!F230)","v":1739.44},null,{"$f":"IF(ISERROR(Dados!C230),\"-\",Dados!C230)","v":"Tegma"},{"$f":"IF(ISERROR(Dados!G230),\"-\",Dados!G230)","v":484.37},null,{"$f":"IF(ISERROR(Dados!C230),\"-\",Dados!C230)","v":"Tegma"},{"$f":"IF(ISERROR(Dados!X230),\"0\",Dados!X230)","v":182.7},null,{"$f":"IF(ISERROR(Dados!C230),\"-\",Dados!C230)","v":"Tegma"},{"$f":"IF(ISERROR(Dados!AB230),\"0\",Dados!AB230)","v":4.3404773950236855E-2},null,{"$f":"IF(ISERROR(Dados!C230),\"-\",Dados!C230)","v":"Tegma"},{"$f":"IF(ISERROR(Dados!S230),\"-\",Dados!S230)","v":3.5911481718520966},null,{"$f":"IF(ISERROR(Dados!C230),\"-\",Dados!C230)","v":"Tegma"},{"$f":"IF(ISERROR(Dados!T230),\"-\",Dados!T230)","v":16.068770808314088},null,{"$f":"IF(ISERROR(Dados!C230),\"-\",Dados!C230)","v":"Tegma"},{"$f":"IF(ISERROR(Dados!U230),\"0\",Dados!U230)","v":0.24119299999999999},null,{"$f":"IF(ISERROR(Dados!C230),\"-\",Dados!C230)","v":"Tegma"},{"$f":"IF(ISERROR(IF(Dados!Z230<0,\"-\",Dados!Z230)),\"-\",IF(Dados!Z230<0,\"-\",Dados!Z230))","v":9.9403284072249587},null,{"$f":"IF(ISERROR(Dados!C230),\"-\",Dados!C230)","v":"Tegma"},{"$f":"IF(ISERROR(Dados!AC230),\"-1000000\",Dados!AC230)","v":-4.2},null,{"$f":"IF(ISERROR(Dados!C230),\"-\",Dados!C230)","v":"Tegma"},{"$f":"IF(ISERROR(Dados!AD230),\"-1000000\",Dados!AD230)","v":40.299999999999997},null,{"$f":"IF(ISERROR(Dados!C230),\"-\",Dados!C230)","v":"Tegma"},{"$f":"IF(ISERROR(Dados!AC230),\"-\",Dados!AC230)","v":-4.2},null,{"$f":"IF(ISERROR(Dados!C230),\"-\",Dados!C230)","v":"Tegma"},{"$f":"IF(ISERROR(Dados!AD230),\"-\",Dados!AD230)","v":40.299999999999997}]
[{"$f":"IF(ISERROR(Dados!C23),\"-\",Dados!C23)","v":"Grazziotin"},{"$f":"IF(ISERROR(Dados!F23),\"-\",Dados!F23)","v":483.54},null,{"$f":"IF(ISERROR(Dados!C23),\"-\",Dados!C23)","v":"Grazziotin"},{"$f":"IF(ISERROR(Dados!G23),\"-\",Dados!G23)","v":497.95},null,{"$f":"IF(ISERROR(Dados!C23),\"-\",Dados!C23)","v":"Grazziotin"},{"$f":"IF(ISERROR(Dados!X23),\"0\",Dados!X23)","v":59.8},null,{"$f":"IF(ISERROR(Dados!C23),\"-\",Dados!C23)","v":"Grazziotin"},{"$f":"IF(ISERROR(Dados!AB23),\"0\",Dados!AB23)","v":4.5497787153079373E-2},null,{"$f":"IF(ISERROR(Dados!C23),\"-\",Dados!C23)","v":"Grazziotin"},{"$f":"IF(ISERROR(Dados!S23),\"-\",Dados!S23)","v":0.96992179937744749},null,{"$f":"IF(ISERROR(Dados!C23),\"-\",Dados!C23)","v":"Grazziotin"},{"$f":"IF(ISERROR(Dados!T23),\"-\",Dados!T23)","v":8.9821937883578187},null,{"$f":"IF(ISERROR(Dados!C23),\"-\",Dados!C23)","v":"Grazziotin"},{"$f":"IF(ISERROR(Dados!U23),\"0\",Dados!U23)","v":0.11241300000000001},null,{"$f":"IF(ISERROR(Dados!C23),\"-\",Dados!C23)","v":"Grazziotin"},{"$f":"IF(ISERROR(IF(Dados!Z23<0,\"-\",Dados!Z23)),\"-\",IF(Dados!Z23<0,\"-\",Dados!Z23))","v":7.0442474916387967},null,{"$f":"IF(ISERROR(Dados!C23),\"-\",Dados!C23)","v":"Grazziotin"},{"$f":"IF(ISERROR(Dados!AC23),\"-1000000\",Dados!AC23)","v":-7.6},null,{"$f":"IF(ISERROR(Dados!C23),\"-\",Dados!C23)","v":"Grazziotin"},{"$f":"IF(ISERROR(Dados!AD23),\"-1000000\",Dados!AD23)","v":-7.5},null,{"$f":"IF(ISERROR(Dados!C23),\"-\",Dados!C23)","v":"Grazziotin"},{"$f":"IF(ISERROR(Dados!AC23),\"-\",Dados!AC23)","v":-7.6},null,{"$f":"IF(ISERROR(Dados!C23),\"-\",Dados!C23)","v":"Grazziotin"},{"$f":"IF(ISERROR(Dados!AD23),\"-\",Dados!AD23)","v":-7.5}]
[{"$f":"IF(ISERROR(Dados!C103),\"-\",Dados!C103)","v":"Abc Brasil"},{"$f":"IF(ISERROR(Dados!F103),\"-\",Dados!F103)","v":3974.18},null,{"$f":"IF(ISERROR(Dados!C103),\"-\",Dados!C103)","v":"Abc Brasil"},{"$f":"IF(ISERROR(Dados!G103),\"-\",Dados!G103)","v":3665.51},null,{"$f":"IF(ISERROR(Dados!C103),\"-\",Dados!C103)","v":"Abc Brasil"},{"$f":"IF(ISERROR(Dados!X103),\"0\",Dados!X103)","v":"0"},null,{"$f":"IF(ISERROR(Dados!C103),\"-\",Dados!C103)","v":"Abc Brasil"},{"$f":"IF(ISERROR(Dados!AB103),\"0\",Dados!AB103)","v":5.5470562480813654E-2},null,{"$f":"IF(ISERROR(Dados!C103),\"-\",Dados!C103)","v":"Abc Brasil"},{"$f":"IF(ISERROR(Dados!S103),\"-\",Dados!S103)","v":1.0842073545018291},null,{"$f":"IF(ISERROR(Dados!C103),\"-\",Dados!C103)","v":"Abc Brasil"},{"$f":"IF(ISERROR(Dados!T103),\"-\",Dados!T103)","v":9.5055440216221392},null,{"$f":"IF(ISERROR(Dados!C103),\"-\",Dados!C103)","v":"Abc Brasil"},{"$f":"IF(ISERROR(Dados!U103),\"0\",Dados!U103)","v":"0"},null,{"$f":"IF(ISERROR(Dados!C103),\"-\",Dados!C103)","v":"Abc Brasil"},{"$f":"IF(ISERROR(IF(Dados!Z103<0,\"-\",Dados!Z103)),\"-\",IF(Dados!Z103<0,\"-\",Dados!Z103))","v":"-"},null,{"$f":"IF(ISERROR(Dados!C103),\"-\",Dados!C103)","v":"Abc Brasil"},{"$f":"IF(ISERROR(Dados!AC103),\"-1000000\",Dados!AC103)","v":4.2},null,{"$f":"IF(ISERROR(Dados!C103),\"-\",Dados!C103)","v":"Abc Brasil"},{"$f":"IF(ISERROR(Dados!AD103),\"-1000000\",Dados!AD103)","v":25.2},null,{"$f":"IF(ISERROR(Dados!C103),\"-\",Dados!C103)","v":"Abc Brasil"},{"$f":"IF(ISERROR(Dados!AC103),\"-\",Dados!AC103)","v":4.2},null,{"$f":"IF(ISERROR(Dados!C103),\"-\",Dados!C103)","v":"Abc Brasil"},{"$f":"IF(ISERROR(Dados!AD103),\"-\",Dados!AD103)","v":25.2}]
[{"$f":"IF(ISERROR(Dados!C226),\"-\",Dados!C226)","v":"Tex Renaux"},{"$f":"IF(ISERROR(Dados!F226),\"-\",Dados!F226)","v":9.8000000000000007},null,{"$f":"IF(ISERROR(Dados!C226),\"-\",Dados!C226)","v":"Tex Renaux"},{"$f":"IF(ISERROR(Dados!G226),\"-\",Dados!G226)","v":-312.81},null,{"$f":"IF(ISERROR(Dados!C226),\"-\",Dados!C226)","v":"Tex Renaux"},{"$f":"IF(ISERROR(Dados!X226),\"0\",Dados!X226)","v":"0"},null,{"$f":"IF(ISERROR(Dados!C226),\"-\",Dados!C226)","v":"Tex Renaux"},{"$f":"IF(ISERROR(Dados!AB226),\"0\",Dados!AB226)","v":"0"},null,{"$f":"IF(ISERROR(Dados!C226),\"-\",Dados!C226)","v":"Tex Renaux"},{"$f":"IF(ISERROR(Dados!S226),\"-\",Dados!S226)","v":"-"},null,{"$f":"IF(ISERROR(Dados!C226),\"-\",Dados!C226)","v":"Tex Renaux"},{"$f":"IF(ISERROR(Dados!T226),\"-\",Dados!T226)","v":"-"},null,{"$f":"IF(ISERROR(Dados!C226),\"-\",Dados!C226)","v":"Tex Renaux"},{"$f":"IF(ISERROR(Dados!U226),\"0\",Dados!U226)","v":"0"},null,{"$f":"IF(ISERROR(Dados!C226),\"-\",Dados!C226)","v":"Tex Renaux"},{"$f":"IF(ISERROR(IF(Dados!Z226<0,\"-\",Dados!Z226)),\"-\",IF(Dados!Z226<0,\"-\",Dados!Z226))","v":"-"},null,{"$f":"IF(ISERROR(Dados!C226),\"-\",Dados!C226)","v":"Tex Renaux"},{"$f":"IF(ISERROR(Dados!AC226),\"-1000000\",Dados!AC226)","v":-18.399999999999999},null,{"$f":"IF(ISERROR(Dados!C226),\"-\",Dados!C226)","v":"Tex Renaux"},{"$f":"IF(ISERROR(Dados!AD226),\"-1000000\",Dados!AD226)","v":-0.4},null,{"$f":"IF(ISERROR(Dados!C226),\"-\",Dados!C226)","v":"Tex Renaux"},{"$f":"IF(ISERROR(Dados!AC226),\"-\",Dados!AC226)","v":-18.399999999999999},null,{"$f":"IF(ISERROR(Dados!C226),\"-\",Dados!C226)","v":"Tex Renaux"},{"$f":"IF(ISERROR(Dados!AD226),\"-\",Dados!AD226)","v":-0.4}]
[{"$f":"IF(ISERROR(Dados!C25),\"-\",Dados!C25)","v":"Wlm Ind Com"},{"$f":"IF(ISERROR(Dados!F25),\"-\",Dados!F25)","v":233.41},null,{"$f":"IF(ISERROR(Dados!C25),\"-\",Dados!C25)","v":"Wlm Ind Com"},{"$f":"IF(ISERROR(Dados!G25),\"-\",Dados!G25)","v":388.14},null,{"$f":"IF(ISERROR(Dados!C25),\"-\",Dados!C25)","v":"Wlm Ind Com"},{"$f":"IF(ISERROR(Dados!X25),\"0\",Dados!X25)","v":21.9},null,{"$f":"IF(ISERROR(Dados!C25),\"-\",Dados!C25)","v":"Wlm Ind Com"},{"$f":"IF(ISERROR(Dados!AB25),\"0\",Dados!AB25)","v":"0"},null,{"$f":"IF(ISERROR(Dados!C25),\"-\",Dados!C25)","v":"Wlm Ind Com"},{"$f":"IF(ISERROR(Dados!S25),\"-\",Dados!S25)","v":0.62952710362240427},null,{"$f":"IF(ISERROR(Dados!C25),\"-\",Dados!C25)","v":"Wlm Ind Com"},{"$f":"IF(ISERROR(Dados!T25),\"-\",Dados!T25)","v":15.195562810945274},null,{"$f":"IF(ISERROR(Dados!C25),\"-\",Dados!C25)","v":"Wlm Ind Com"},{"$f":"IF(ISERROR(Dados!U25),\"0\",Dados!U25)","v":4.2812000000000003E-2},null,{"$f":"IF(ISERROR(Dados!C25),\"-\",Dados!C25)","v":"Wlm Ind Com"},{"$f":"IF(ISERROR(IF(Dados!Z25<0,\"-\",Dados!Z25)),\"-\",IF(Dados!Z25<0,\"-\",Dados!Z25))","v":9.2611872146118728},null,{"$f":"IF(ISERROR(Dados!C25),\"-\",Dados!C25)","v":"Wlm Ind Com"},{"$f":"IF(ISERROR(Dados!AC25),\"-1000000\",Dados!AC25)","v":5},null,{"$f":"IF(ISERROR(Dados!C25),\"-\",Dados!C25)","v":"Wlm Ind Com"},{"$f":"IF(ISERROR(Dados!AD25),\"-1000000\",Dados!AD25)","v":27.8},null,{"$f":"IF(ISERROR(Dados!C25),\"-\",Dados!C25)","v":"Wlm Ind Com"},{"$f":"IF(ISERROR(Dados!AC25),\"-\",Dados!AC25)","v":5},null,{"$f":"IF(ISERROR(Dados!C25),\"-\",Dados!C25)","v":"Wlm Ind Com"},{"$f":"IF(ISERROR(Dados!AD25),\"-\",Dados!AD25)","v":27.8}]
[{"$f":"IF(ISERROR(Dados!C107),\"-\",Dados!C107)","v":"Vale"},{"$f":"IF(ISERROR(Dados!F107),\"-\",Dados!F107)","v":261080.37},null,{"$f":"IF(ISERROR(Dados!C107),\"-\",Dados!C107)","v":"Vale"},{"$f":"IF(ISERROR(Dados!G107),\"-\",Dados!G107)","v":170402.63},null,{"$f":"IF(ISERROR(Dados!C107),\"-\",Dados!C107)","v":"Vale"},{"$f":"IF(ISERROR(Dados!X107),\"0\",Dados!X107)","v":55414.7},null,{"$f":"IF(ISERROR(Dados!C107),\"-\",Dados!C107)","v":"Vale"},{"$f":"IF(ISERROR(Dados!AB107),\"0\",Dados!AB107)","v":4.7553441110873257E-2},null,{"$f":"IF(ISERROR(Dados!C107),\"-\",Dados!C107)","v":"Vale"},{"$f":"IF(ISERROR(Dados!S107),\"-\",Dados!S107)","v":1.5321381534428193},null,{"$f":"IF(ISERROR(Dados!C107),\"-\",Dados!C107)","v":"Vale"},{"$f":"IF(ISERROR(Dados!T107),\"-\",Dados!T107)","v":10.17598135328511},null,{"$f":"IF(ISERROR(Dados!C107),\"-\",Dados!C107)","v":"Vale"},{"$f":"IF(ISERROR(Dados!U107),\"0\",Dados!U107)","v":0.17402300000000001},null,{"$f":"IF(ISERROR(Dados!C107),\"-\",Dados!C107)","v":"Vale"},{"$f":"IF(ISERROR(IF(Dados!Z107<0,\"-\",Dados!Z107)),\"-\",IF(Dados!Z107<0,\"-\",Dados!Z107))","v":5.3883856991015024},null,{"$f":"IF(ISERROR(Dados!C107),\"-\",Dados!C107)","v":"Vale"},{"$f":"IF(ISERROR(Dados!AC107),\"-1000000\",Dados!AC107)","v":8.1},null,{"$f":"IF(ISERROR(Dados!C107),\"-\",Dados!C107)","v":"Vale"},{"$f":"IF(ISERROR(Dados!AD107),\"-1000000\",Dados!AD107)","v":31.6},null,{"$f":"IF(ISERROR(Dados!C107),\"-\",Dados!C107)","v":"Vale"},{"$f":"IF(ISERROR(Dados!AC107),\"-\",Dados!AC107)","v":8.1},null,{"$f":"IF(ISERROR(Dados!C107),\"-\",Dados!C107)","v":"Vale"},{"$f":"IF(ISERROR(Dados!AD107),\"-\",Dados!AD107)","v":31.6}]
[{"$f":"IF(ISERROR(Dados!C223),\"-\",Dados!C223)","v":"Springs"},{"$f":"IF(ISERROR(Dados!F223),\"-\",Dados!F223)","v":444.5},null,{"$f":"IF(ISERROR(Dados!C223),\"-\",Dados!C223)","v":"Springs"},{"$f":"IF(ISERROR(Dados!G223),\"-\",Dados!G223)","v":1160.5899999999999},null,{"$f":"IF(ISERROR(Dados!C223),\"-\",Dados!C223)","v":"Springs"},{"$f":"IF(ISERROR(Dados!X223),\"0\",Dados!X223)","v":"0"},null,{"$f":"IF(ISERROR(Dados!C223),\"-\",Dados!C223)","v":"Springs"},{"$f":"IF(ISERROR(Dados!AB223),\"0\",Dados!AB223)","v":"0"},null,{"$f":"IF(ISERROR(Dados!C223),\"-\",Dados!C223)","v":"Springs"},{"$f":"IF(ISERROR(Dados!S223),\"-\",Dados!S223)","v":0.38299485606458794},null,{"$f":"IF(ISERROR(Dados!C223),\"-\",Dados!C223)","v":"Springs"},{"$f":"IF(ISERROR(Dados!T223),\"-\",Dados!T223)","v":59.905660377358494},null,{"$f":"IF(ISERROR(Dados!C223),\"-\",Dados!C223)","v":"Springs"},{"$f":"IF(ISERROR(Dados!U223),\"0\",Dados!U223)","v":7.4110000000000001E-3},null,{"$f":"IF(ISERROR(Dados!C223),\"-\",Dados!C223)","v":"Springs"},{"$f":"IF(ISERROR(IF(Dados!Z223<0,\"-\",Dados!Z223)),\"-\",IF(Dados!Z223<0,\"-\",Dados!Z223))","v":5.855269828291088},null,{"$f":"IF(ISERROR(Dados!C223),\"-\",Dados!C223)","v":"Springs"},{"$f":"IF(ISERROR(Dados!AC223),\"-1000000\",Dados!AC223)","v":5.7},null,{"$f":"IF(ISERROR(Dados!C223),\"-\",Dados!C223)","v":"Springs"},{"$f":"IF(ISERROR(Dados!AD223),\"-1000000\",Dados!AD223)","v":-17.8},null,{"$f":"IF(ISERROR(Dados!C223),\"-\",Dados!C223)","v":"Springs"},{"$f":"IF(ISERROR(Dados!AC223),\"-\",Dados!AC223)","v":5.7},null,{"$f":"IF(ISERROR(Dados!C223),\"-\",Dados!C223)","v":"Springs"},{"$f":"IF(ISERROR(Dados!AD223),\"-\",Dados!AD223)","v":-17.8}]
[{"$f":"IF(ISERROR(Dados!C212),\"-\",Dados!C212)","v":"Cedro"},{"$f":"IF(ISERROR(Dados!F212),\"-\",Dados!F212)","v":60.94},null,{"$f":"IF(ISERROR(Dados!C212),\"-\",Dados!C212)","v":"Cedro"},{"$f":"IF(ISERROR(Dados!G212),\"-\",Dados!G212)","v":190.19},null,{"$f":"IF(ISERROR(Dados!C212),\"-\",Dados!C212)","v":"Cedro"},{"$f":"IF(ISERROR(Dados!X212),\"0\",Dados!X212)","v":80.5},null,{"$f":"IF(ISERROR(Dados!C212),\"-\",Dados!C212)","v":"Cedro"},{"$f":"IF(ISERROR(Dados!AB212),\"0\",Dados!AB212)","v":"0"},null,{"$f":"IF(ISERROR(Dados!C212),\"-\",Dados!C212)","v":"Cedro"},{"$f":"IF(ISERROR(Dados!S212),\"-\",Dados!S212)","v":0.32704137967295865},null,{"$f":"IF(ISERROR(Dados!C212),\"-\",Dados!C212)","v":"Cedro"},{"$f":"IF(ISERROR(Dados!T212),\"-\",Dados!T212)","v":1.2795721045052459},null,{"$f":"IF(ISERROR(Dados!C212),\"-\",Dados!C212)","v":"Cedro"},{"$f":"IF(ISERROR(Dados!U212),\"0\",Dados!U212)","v":0.280696},null,{"$f":"IF(ISERROR(Dados!C212),\"-\",Dados!C212)","v":"Cedro"},{"$f":"IF(ISERROR(IF(Dados!Z212<0,\"-\",Dados!Z212)),\"-\",IF(Dados!Z212<0,\"-\",Dados!Z212))","v":3.8488695652173912},null,{"$f":"IF(ISERROR(Dados!C212),\"-\",Dados!C212)","v":"Cedro"},{"$f":"IF(ISERROR(Dados!AC212),\"-1000000\",Dados!AC212)","v":-2.5},null,{"$f":"IF(ISERROR(Dados!C212),\"-\",Dados!C212)","v":"Cedro"},{"$f":"IF(ISERROR(Dados!AD212),\"-1000000\",Dados!AD212)","v":-8.8000000000000007},null,{"$f":"IF(ISERROR(Dados!C212),\"-\",Dados!C212)","v":"Cedro"},{"$f":"IF(ISERROR(Dados!AC212),\"-\",Dados!AC212)","v":-2.5},null,{"$f":"IF(ISERROR(Dados!C212),\"-\",Dados!C212)","v":"Cedro"},{"$f":"IF(ISERROR(Dados!AD212),\"-\",Dados!AD212)","v":-8.8000000000000007}]
[{"$f":"IF(ISERROR(Dados!C203),\"-\",Dados!C203)","v":"Linx"},{"$f":"IF(ISERROR(Dados!F203),\"-\",Dados!F203)","v":5874.91},null,{"$f":"IF(ISERROR(Dados!C203),\"-\",Dados!C203)","v":"Linx"},{"$f":"IF(ISERROR(Dados!G203),\"-\",Dados!G203)","v":1057.21},null,{"$f":"IF(ISERROR(Dados!C203),\"-\",Dados!C203)","v":"Linx"},{"$f":"IF(ISERROR(Dados!X203),\"0\",Dados!X203)","v":168.8},null,{"$f":"IF(ISERROR(Dados!C203),\"-\",Dados!C203)","v":"Linx"},{"$f":"IF(ISERROR(Dados!AB203),\"0\",Dados!AB203)","v":6.4681841934599851E-3},null,{"$f":"IF(ISERROR(Dados!C203),\"-\",Dados!C203)","v":"Linx"},{"$f":"IF(ISERROR(Dados!S203),\"-\",Dados!S203)","v":5.5569820565450572},null,{"$f":"IF(ISERROR(Dados!C203),\"-\",Dados!C203)","v":"Linx"},{"$f":"IF(ISERROR(Dados!T203),\"-\",Dados!T203)","v":82.675161835068963},null,{"$f":"IF(ISERROR(Dados!C203),\"-\",Dados!C203)","v":"Linx"},{"$f":"IF(ISERROR(Dados!U203),\"0\",Dados!U203)","v":6.0704000000000001E-2},null,{"$f":"IF(ISERROR(Dados!C203),\"-\",Dados!C203)","v":"Linx"},{"$f":"IF(ISERROR(IF(Dados!Z203<0,\"-\",Dados!Z203)),\"-\",IF(Dados!Z203<0,\"-\",Dados!Z203))","v":33.540681279620848},null,{"$f":"IF(ISERROR(Dados!C203),\"-\",Dados!C203)","v":"Linx"},{"$f":"IF(ISERROR(Dados!AC203),\"-1000000\",Dados!AC203)","v":29.7},null,{"$f":"IF(ISERROR(Dados!C203),\"-\",Dados!C203)","v":"Linx"},{"$f":"IF(ISERROR(Dados!AD203),\"-1000000\",Dados!AD203)","v":74.8},null,{"$f":"IF(ISERROR(Dados!C203),\"-\",Dados!C203)","v":"Linx"},{"$f":"IF(ISERROR(Dados!AC203),\"-\",Dados!AC203)","v":29.7},null,{"$f":"IF(ISERROR(Dados!C203),\"-\",Dados!C203)","v":"Linx"},{"$f":"IF(ISERROR(Dados!AD203),\"-\",Dados!AD203)","v":74.8}]
[{"$f":"IF(ISERROR(Dados!C17),\"-\",Dados!C17)","v":"Natura"},{"$f":"IF(ISERROR(Dados!F17),\"-\",Dados!F17)","v":19550.7},null,{"$f":"IF(ISERROR(Dados!C17),\"-\",Dados!C17)","v":"Natura"},{"$f":"IF(ISERROR(Dados!G17),\"-\",Dados!G17)","v":2574.1},null,{"$f":"IF(ISERROR(Dados!C17),\"-\",Dados!C17)","v":"Natura"},{"$f":"IF(ISERROR(Dados!X17),\"0\",Dados!X17)","v":1846.6},null,{"$f":"IF(ISERROR(Dados!C17),\"-\",Dados!C17)","v":"Natura"},{"$f":"IF(ISERROR(Dados!AB17),\"0\",Dados!AB17)","v":1.0314208698409776E-2},null,{"$f":"IF(ISERROR(Dados!C17),\"-\",Dados!C17)","v":"Natura"},{"$f":"IF(ISERROR(Dados!S17),\"-\",Dados!S17)","v":7.5951589021405539},null,{"$f":"IF(ISERROR(Dados!C17),\"-\",Dados!C17)","v":"Natura"},{"$f":"IF(ISERROR(Dados!T17),\"-\",Dados!T17)","v":35.651735165396261},null,{"$f":"IF(ISERROR(Dados!C17),\"-\",Dados!C17)","v":"Natura"},{"$f":"IF(ISERROR(Dados!U17),\"0\",Dados!U17)","v":0.33545200000000003},null,{"$f":"IF(ISERROR(Dados!C17),\"-\",Dados!C17)","v":"Natura"},{"$f":"IF(ISERROR(IF(Dados!Z17<0,\"-\",Dados!Z17)),\"-\",IF(Dados!Z17<0,\"-\",Dados!Z17))","v":13.84200963933716},null,{"$f":"IF(ISERROR(Dados!C17),\"-\",Dados!C17)","v":"Natura"},{"$f":"IF(ISERROR(Dados!AC17),\"-1000000\",Dados!AC17)","v":-6.2},null,{"$f":"IF(ISERROR(Dados!C17),\"-\",Dados!C17)","v":"Natura"},{"$f":"IF(ISERROR(Dados!AD17),\"-1000000\",Dados!AD17)","v":39.799999999999997},null,{"$f":"IF(ISERROR(Dados!C17),\"-\",Dados!C17)","v":"Natura"},{"$f":"IF(ISERROR(Dados!AC17),\"-\",Dados!AC17)","v":-6.2},null,{"$f":"IF(ISERROR(Dados!C17),\"-\",Dados!C17)","v":"Natura"},{"$f":"IF(ISERROR(Dados!AD17),\"-\",Dados!AD17)","v":39.799999999999997}]
[{"$f":"IF(ISERROR(Dados!C208),\"-\",Dados!C208)","v":"Telef Brasil"},{"$f":"IF(ISERROR(Dados!F208),\"-\",Dados!F208)","v":78220.23},null,{"$f":"IF(ISERROR(Dados!C208),\"-\",Dados!C208)","v":"Telef Brasil"},{"$f":"IF(ISERROR(Dados!G208),\"-\",Dados!G208)","v":71607.03},null,{"$f":"IF(ISERROR(Dados!C208),\"-\",Dados!C208)","v":"Telef Brasil"},{"$f":"IF(ISERROR(Dados!X208),\"0\",Dados!X208)","v":17819},null,{"$f":"IF(ISERROR(Dados!C208),\"-\",Dados!C208)","v":"Telef Brasil"},{"$f":"IF(ISERROR(Dados!AB208),\"0\",Dados!AB208)","v":5.2887596980985614E-2},null,{"$f":"IF(ISERROR(Dados!C208),\"-\",Dados!C208)","v":"Telef Brasil"},{"$f":"IF(ISERROR(Dados!S208),\"-\",Dados!S208)","v":1.1201828228317807},null,{"$f":"IF(ISERROR(Dados!C208),\"-\",Dados!C208)","v":"Telef Brasil"},{"$f":"IF(ISERROR(Dados!T208),\"-\",Dados!T208)","v":8.984165447690815},null,{"$f":"IF(ISERROR(Dados!C208),\"-\",Dados!C208)","v":"Telef Brasil"},{"$f":"IF(ISERROR(Dados!U208),\"0\",Dados!U208)","v":0.12853600000000001},null,{"$f":"IF(ISERROR(Dados!C208),\"-\",Dados!C208)","v":"Telef Brasil"},{"$f":"IF(ISERROR(IF(Dados!Z208<0,\"-\",Dados!Z208)),\"-\",IF(Dados!Z208<0,\"-\",Dados!Z208))","v":4.5444940232336268},null,{"$f":"IF(ISERROR(Dados!C208),\"-\",Dados!C208)","v":"Telef Brasil"},{"$f":"IF(ISERROR(Dados!AC208),\"-1000000\",Dados!AC208)","v":2.5},null,{"$f":"IF(ISERROR(Dados!C208),\"-\",Dados!C208)","v":"Telef Brasil"},{"$f":"IF(ISERROR(Dados!AD208),\"-1000000\",Dados!AD208)","v":8.3000000000000007},null,{"$f":"IF(ISERROR(Dados!C208),\"-\",Dados!C208)","v":"Telef Brasil"},{"$f":"IF(ISERROR(Dados!AC208),\"-\",Dados!AC208)","v":2.5},null,{"$f":"IF(ISERROR(Dados!C208),\"-\",Dados!C208)","v":"Telef Brasil"},{"$f":"IF(ISERROR(Dados!AD208),\"-\",Dados!AD208)","v":8.3000000000000007}]
[{"$f":"IF(ISERROR(Dados!C222),\"-\",Dados!C222)","v":"Le Lis Blanc"},{"$f":"IF(ISERROR(Dados!F222),\"-\",Dados!F222)","v":1651.23},null,{"$f":"IF(ISERROR(Dados!C222),\"-\",Dados!C222)","v":"Le Lis Blanc"},{"$f":"IF(ISERROR(Dados!G222),\"-\",Dados!G222)","v":2225.87},null,{"$f":"IF(ISERROR(Dados!C222),\"-\",Dados!C222)","v":"Le Lis Blanc"},{"$f":"IF(ISERROR(Dados!X222),\"0\",Dados!X222)","v":350.6},null,{"$f":"IF(ISERROR(Dados!C222),\"-\",Dados!C222)","v":"Le Lis Blanc"},{"$f":"IF(ISERROR(Dados!AB222),\"0\",Dados!AB222)","v":5.8453395347710491E-2},null,{"$f":"IF(ISERROR(Dados!C222),\"-\",Dados!C222)","v":"Le Lis Blanc"},{"$f":"IF(ISERROR(Dados!S222),\"-\",Dados!S222)","v":0.74183667509782691},null,{"$f":"IF(ISERROR(Dados!C222),\"-\",Dados!C222)","v":"Le Lis Blanc"},{"$f":"IF(ISERROR(Dados!T222),\"-\",Dados!T222)","v":15.960100521940848},null,{"$f":"IF(ISERROR(Dados!C222),\"-\",Dados!C222)","v":"Le Lis Blanc"},{"$f":"IF(ISERROR(Dados!U222),\"0\",Dados!U222)","v":4.8201000000000001E-2},null,{"$f":"IF(ISERROR(Dados!C222),\"-\",Dados!C222)","v":"Le Lis Blanc"},{"$f":"IF(ISERROR(IF(Dados!Z222<0,\"-\",Dados!Z222)),\"-\",IF(Dados!Z222<0,\"-\",Dados!Z222))","v":7.1740074158585276},null,{"$f":"IF(ISERROR(Dados!C222),\"-\",Dados!C222)","v":"Le Lis Blanc"},{"$f":"IF(ISERROR(Dados!AC222),\"-1000000\",Dados!AC222)","v":-3.1},null,{"$f":"IF(ISERROR(Dados!C222),\"-\",Dados!C222)","v":"Le Lis Blanc"},{"$f":"IF(ISERROR(Dados!AD222),\"-1000000\",Dados!AD222)","v":4.9000000000000004},null,{"$f":"IF(ISERROR(Dados!C222),\"-\",Dados!C222)","v":"Le Lis Blanc"},{"$f":"IF(ISERROR(Dados!AC222),\"-\",Dados!AC222)","v":-3.1},null,{"$f":"IF(ISERROR(Dados!C222),\"-\",Dados!C222)","v":"Le Lis Blanc"},{"$f":"IF(ISERROR(Dados!AD222),\"-\",Dados!AD222)","v":4.9000000000000004}]
[{"$f":"IF(ISERROR(Dados!C140),\"-\",Dados!C140)","v":"Duratex"},{"$f":"IF(ISERROR(Dados!F140),\"-\",Dados!F140)","v":7563.47},null,{"$f":"IF(ISERROR(Dados!C140),\"-\",Dados!C140)","v":"Duratex"},{"$f":"IF(ISERROR(Dados!G140),\"-\",Dados!G140)","v":4633.7},null,{"$f":"IF(ISERROR(Dados!C140),\"-\",Dados!C140)","v":"Duratex"},{"$f":"IF(ISERROR(Dados!X140),\"0\",Dados!X140)","v":1546},null,{"$f":"IF(ISERROR(Dados!C140),\"-\",Dados!C140)","v":"Duratex"},{"$f":"IF(ISERROR(Dados!AB140),\"0\",Dados!AB140)","v":8.0346719164616238E-3},null,{"$f":"IF(ISERROR(Dados!C140),\"-\",Dados!C140)","v":"Duratex"},{"$f":"IF(ISERROR(Dados!S140),\"-\",Dados!S140)","v":1.6322754882707127},null,{"$f":"IF(ISERROR(Dados!C140),\"-\",Dados!C140)","v":"Duratex"},{"$f":"IF(ISERROR(Dados!T140),\"-\",Dados!T140)","v":17.525488171096235},null,{"$f":"IF(ISERROR(Dados!C140),\"-\",Dados!C140)","v":"Duratex"},{"$f":"IF(ISERROR(Dados!U140),\"0\",Dados!U140)","v":9.1553999999999996E-2},null,{"$f":"IF(ISERROR(Dados!C140),\"-\",Dados!C140)","v":"Duratex"},{"$f":"IF(ISERROR(IF(Dados!Z140<0,\"-\",Dados!Z140)),\"-\",IF(Dados!Z140<0,\"-\",Dados!Z140))","v":5.9921300129366113},null,{"$f":"IF(ISERROR(Dados!C140),\"-\",Dados!C140)","v":"Duratex"},{"$f":"IF(ISERROR(Dados!AC140),\"-1000000\",Dados!AC140)","v":-7},null,{"$f":"IF(ISERROR(Dados!C140),\"-\",Dados!C140)","v":"Duratex"},{"$f":"IF(ISERROR(Dados!AD140),\"-1000000\",Dados!AD140)","v":27.7},null,{"$f":"IF(ISERROR(Dados!C140),\"-\",Dados!C140)","v":"Duratex"},{"$f":"IF(ISERROR(Dados!AC140),\"-\",Dados!AC140)","v":-7},null,{"$f":"IF(ISERROR(Dados!C140),\"-\",Dados!C140)","v":"Duratex"},{"$f":"IF(ISERROR(Dados!AD140),\"-\",Dados!AD140)","v":27.7}]
[{"$f":"IF(ISERROR(Dados!C187),\"-\",Dados!C187)","v":"Sid Nacional"},{"$f":"IF(ISERROR(Dados!F187),\"-\",Dados!F187)","v":22426.86},null,{"$f":"IF(ISERROR(Dados!C187),\"-\",Dados!C187)","v":"Sid Nacional"},{"$f":"IF(ISERROR(Dados!G187),\"-\",Dados!G187)","v":8702.74},null,{"$f":"IF(ISERROR(Dados!C187),\"-\",Dados!C187)","v":"Sid Nacional"},{"$f":"IF(ISERROR(Dados!X187),\"0\",Dados!X187)","v":8219.6},null,{"$f":"IF(ISERROR(Dados!C187),\"-\",Dados!C187)","v":"Sid Nacional"},{"$f":"IF(ISERROR(Dados!AB187),\"0\",Dados!AB187)","v":"0"},null,{"$f":"IF(ISERROR(Dados!C187),\"-\",Dados!C187)","v":"Sid Nacional"},{"$f":"IF(ISERROR(Dados!S187),\"-\",Dados!S187)","v":2.5769894021882767},null,{"$f":"IF(ISERROR(Dados!C187),\"-\",Dados!C187)","v":"Sid Nacional"},{"$f":"IF(ISERROR(Dados!T187),\"-\",Dados!T187)","v":4.4198364156290522},null,{"$f":"IF(ISERROR(Dados!C187),\"-\",Dados!C187)","v":"Sid Nacional"},{"$f":"IF(ISERROR(Dados!U187),\"0\",Dados!U187)","v":0.62746599999999997},null,{"$f":"IF(ISERROR(Dados!C187),\"-\",Dados!C187)","v":"Sid Nacional"},{"$f":"IF(ISERROR(IF(Dados!Z187<0,\"-\",Dados!Z187)),\"-\",IF(Dados!Z187<0,\"-\",Dados!Z187))","v":5.8531092753905298},null,{"$f":"IF(ISERROR(Dados!C187),\"-\",Dados!C187)","v":"Sid Nacional"},{"$f":"IF(ISERROR(Dados!AC187),\"-1000000\",Dados!AC187)","v":24.2},null,{"$f":"IF(ISERROR(Dados!C187),\"-\",Dados!C187)","v":"Sid Nacional"},{"$f":"IF(ISERROR(Dados!AD187),\"-1000000\",Dados!AD187)","v":93.9},null,{"$f":"IF(ISERROR(Dados!C187),\"-\",Dados!C187)","v":"Sid Nacional"},{"$f":"IF(ISERROR(Dados!AC187),\"-\",Dados!AC187)","v":24.2},null,{"$f":"IF(ISERROR(Dados!C187),\"-\",Dados!C187)","v":"Sid Nacional"},{"$f":"IF(ISERROR(Dados!AD187),\"-\",Dados!AD187)","v":93.9}]
[{"$f":"IF(ISERROR(Dados!C35),\"-\",Dados!C35)","v":"JHSF Part"},{"$f":"IF(ISERROR(Dados!F35),\"-\",Dados!F35)","v":1289.3499999999999},null,{"$f":"IF(ISERROR(Dados!C35),\"-\",Dados!C35)","v":"JHSF Part"},{"$f":"IF(ISERROR(Dados!G35),\"-\",Dados!G35)","v":2227.84},null,{"$f":"IF(ISERROR(Dados!C35),\"-\",Dados!C35)","v":"JHSF Part"},{"$f":"IF(ISERROR(Dados!X35),\"0\",Dados!X35)","v":342.1},null,{"$f":"IF(ISERROR(Dados!C35),\"-\",Dados!C35)","v":"JHSF Part"},{"$f":"IF(ISERROR(Dados!AB35),\"0\",Dados!AB35)","v":"0"},null,{"$f":"IF(ISERROR(Dados!C35),\"-\",Dados!C35)","v":"JHSF Part"},{"$f":"IF(ISERROR(Dados!S35),\"-\",Dados!S35)","v":0.57874519714162598},null,{"$f":"IF(ISERROR(Dados!C35),\"-\",Dados!C35)","v":"JHSF Part"},{"$f":"IF(ISERROR(Dados!T35),\"-\",Dados!T35)","v":7.0715279986837043},null,{"$f":"IF(ISERROR(Dados!C35),\"-\",Dados!C35)","v":"JHSF Part"},{"$f":"IF(ISERROR(Dados!U35),\"0\",Dados!U35)","v":9.0996000000000007E-2},null,{"$f":"IF(ISERROR(Dados!C35),\"-\",Dados!C35)","v":"JHSF Part"},{"$f":"IF(ISERROR(IF(Dados!Z35<0,\"-\",Dados!Z35)),\"-\",IF(Dados!Z35<0,\"-\",Dados!Z35))","v":6.566670564162524},null,{"$f":"IF(ISERROR(Dados!C35),\"-\",Dados!C35)","v":"JHSF Part"},{"$f":"IF(ISERROR(Dados!AC35),\"-1000000\",Dados!AC35)","v":7},null,{"$f":"IF(ISERROR(Dados!C35),\"-\",Dados!C35)","v":"JHSF Part"},{"$f":"IF(ISERROR(Dados!AD35),\"-1000000\",Dados!AD35)","v":40},null,{"$f":"IF(ISERROR(Dados!C35),\"-\",Dados!C35)","v":"JHSF Part"},{"$f":"IF(ISERROR(Dados!AC35),\"-\",Dados!AC35)","v":7},null,{"$f":"IF(ISERROR(Dados!C35),\"-\",Dados!C35)","v":"JHSF Part"},{"$f":"IF(ISERROR(Dados!AD35),\"-\",Dados!AD35)","v":40}]
[{"$f":"IF(ISERROR(Dados!C139),\"-\",Dados!C139)","v":"Kroton"},{"$f":"IF(ISERROR(Dados!F139),\"-\",Dados!F139)","v":17273.82},null,{"$f":"IF(ISERROR(Dados!C139),\"-\",Dados!C139)","v":"Kroton"},{"$f":"IF(ISERROR(Dados!G139),\"-\",Dados!G139)","v":15902.64},null,{"$f":"IF(ISERROR(Dados!C139),\"-\",Dados!C139)","v":"Kroton"},{"$f":"IF(ISERROR(Dados!X139),\"0\",Dados!X139)","v":1721.7},null,{"$f":"IF(ISERROR(Dados!C139),\"-\",Dados!C139)","v":"Kroton"},{"$f":"IF(ISERROR(Dados!AB139),\"0\",Dados!AB139)","v":3.6984870746598029E-2},null,{"$f":"IF(ISERROR(Dados!C139),\"-\",Dados!C139)","v":"Kroton"},{"$f":"IF(ISERROR(Dados!S139),\"-\",Dados!S139)","v":1.0862229793292184},null,{"$f":"IF(ISERROR(Dados!C139),\"-\",Dados!C139)","v":"Kroton"},{"$f":"IF(ISERROR(Dados!T139),\"-\",Dados!T139)","v":12.305476758682103},null,{"$f":"IF(ISERROR(Dados!C139),\"-\",Dados!C139)","v":"Kroton"},{"$f":"IF(ISERROR(Dados!U139),\"0\",Dados!U139)","v":9.158899999999999E-2},null,{"$f":"IF(ISERROR(Dados!C139),\"-\",Dados!C139)","v":"Kroton"},{"$f":"IF(ISERROR(IF(Dados!Z139<0,\"-\",Dados!Z139)),\"-\",IF(Dados!Z139<0,\"-\",Dados!Z139))","v":12.995089736887959},null,{"$f":"IF(ISERROR(Dados!C139),\"-\",Dados!C139)","v":"Kroton"},{"$f":"IF(ISERROR(Dados!AC139),\"-1000000\",Dados!AC139)","v":-3.4},null,{"$f":"IF(ISERROR(Dados!C139),\"-\",Dados!C139)","v":"Kroton"},{"$f":"IF(ISERROR(Dados!AD139),\"-1000000\",Dados!AD139)","v":-40.4},null,{"$f":"IF(ISERROR(Dados!C139),\"-\",Dados!C139)","v":"Kroton"},{"$f":"IF(ISERROR(Dados!AC139),\"-\",Dados!AC139)","v":-3.4},null,{"$f":"IF(ISERROR(Dados!C139),\"-\",Dados!C139)","v":"Kroton"},{"$f":"IF(ISERROR(Dados!AD139),\"-\",Dados!AD139)","v":-40.4}]
[{"$f":"IF(ISERROR(Dados!C56),\"-\",Dados!C56)","v":"Taesa"},{"$f":"IF(ISERROR(Dados!F56),\"-\",Dados!F56)","v":8931.1},null,{"$f":"IF(ISERROR(Dados!C56),\"-\",Dados!C56)","v":"Taesa"},{"$f":"IF(ISERROR(Dados!G56),\"-\",Dados!G56)","v":4572.05},null,{"$f":"IF(ISERROR(Dados!C56),\"-\",Dados!C56)","v":"Taesa"},{"$f":"IF(ISERROR(Dados!X56),\"0\",Dados!X56)","v":1436.3},null,{"$f":"IF(ISERROR(Dados!C56),\"-\",Dados!C56)","v":"Taesa"},{"$f":"IF(ISERROR(Dados!AB56),\"0\",Dados!AB56)","v":0.10751195261501943},null,{"$f":"IF(ISERROR(Dados!C56),\"-\",Dados!C56)","v":"Taesa"},{"$f":"IF(ISERROR(Dados!S56),\"-\",Dados!S56)","v":5.6059591649260181},null,{"$f":"IF(ISERROR(Dados!C56),\"-\",Dados!C56)","v":"Taesa"},{"$f":"IF(ISERROR(Dados!T56),\"-\",Dados!T56)","v":23.924658222176589},null,{"$f":"IF(ISERROR(Dados!C56),\"-\",Dados!C56)","v":"Taesa"},{"$f":"IF(ISERROR(Dados!U56),\"0\",Dados!U56)","v":0.246416},null,{"$f":"IF(ISERROR(Dados!C56),\"-\",Dados!C56)","v":"Taesa"},{"$f":"IF(ISERROR(IF(Dados!Z56<0,\"-\",Dados!Z56)),\"-\",IF(Dados!Z56<0,\"-\",Dados!Z56))","v":8.5011390378054728},null,{"$f":"IF(ISERROR(Dados!C56),\"-\",Dados!C56)","v":"Taesa"},{"$f":"IF(ISERROR(Dados!AC56),\"-1000000\",Dados!AC56)","v":-0.6},null,{"$f":"IF(ISERROR(Dados!C56),\"-\",Dados!C56)","v":"Taesa"},{"$f":"IF(ISERROR(Dados!AD56),\"-1000000\",Dados!AD56)","v":32.5},null,{"$f":"IF(ISERROR(Dados!C56),\"-\",Dados!C56)","v":"Taesa"},{"$f":"IF(ISERROR(Dados!AC56),\"-\",Dados!AC56)","v":-0.6},null,{"$f":"IF(ISERROR(Dados!C56),\"-\",Dados!C56)","v":"Taesa"},{"$f":"IF(ISERROR(Dados!AD56),\"-\",Dados!AD56)","v":32.5}]
[{"$f":"IF(ISERROR(Dados!C188),\"-\",Dados!C188)","v":"Ferbasa"},{"$f":"IF(ISERROR(Dados!F188),\"-\",Dados!F188)","v":2090.88},null,{"$f":"IF(ISERROR(Dados!C188),\"-\",Dados!C188)","v":"Ferbasa"},{"$f":"IF(ISERROR(Dados!G188),\"-\",Dados!G188)","v":1743.32},null,{"$f":"IF(ISERROR(Dados!C188),\"-\",Dados!C188)","v":"Ferbasa"},{"$f":"IF(ISERROR(Dados!X188),\"0\",Dados!X188)","v":522.70000000000005},null,{"$f":"IF(ISERROR(Dados!C188),\"-\",Dados!C188)","v":"Ferbasa"},{"$f":"IF(ISERROR(Dados!AB188),\"0\",Dados!AB188)","v":5.1892026323844501E-2},null,{"$f":"IF(ISERROR(Dados!C188),\"-\",Dados!C188)","v":"Ferbasa"},{"$f":"IF(ISERROR(Dados!S188),\"-\",Dados!S188)","v":1.0597342255007687},null,{"$f":"IF(ISERROR(Dados!C188),\"-\",Dados!C188)","v":"Ferbasa"},{"$f":"IF(ISERROR(Dados!T188),\"-\",Dados!T188)","v":5.9826938795336781},null,{"$f":"IF(ISERROR(Dados!C188),\"-\",Dados!C188)","v":"Ferbasa"},{"$f":"IF(ISERROR(Dados!U188),\"0\",Dados!U188)","v":0.20307099999999997},null,{"$f":"IF(ISERROR(Dados!C188),\"-\",Dados!C188)","v":"Ferbasa"},{"$f":"IF(ISERROR(IF(Dados!Z188<0,\"-\",Dados!Z188)),\"-\",IF(Dados!Z188<0,\"-\",Dados!Z188))","v":4.2002104457623881},null,{"$f":"IF(ISERROR(Dados!C188),\"-\",Dados!C188)","v":"Ferbasa"},{"$f":"IF(ISERROR(Dados!AC188),\"-1000000\",Dados!AC188)","v":-20.8},null,{"$f":"IF(ISERROR(Dados!C188),\"-\",Dados!C188)","v":"Ferbasa"},{"$f":"IF(ISERROR(Dados!AD188),\"-1000000\",Dados!AD188)","v":13.7},null,{"$f":"IF(ISERROR(Dados!C188),\"-\",Dados!C188)","v":"Ferbasa"},{"$f":"IF(ISERROR(Dados!AC188),\"-\",Dados!AC188)","v":-20.8},null,{"$f":"IF(ISERROR(Dados!C188),\"-\",Dados!C188)","v":"Ferbasa"},{"$f":"IF(ISERROR(Dados!AD188),\"-\",Dados!AD188)","v":13.7}]
[{"$f":"IF(ISERROR(Dados!C59),\"-\",Dados!C59)","v":"CPFL Energia"},{"$f":"IF(ISERROR(Dados!F59),\"-\",Dados!F59)","v":31026.04},null,{"$f":"IF(ISERROR(Dados!C59),\"-\",Dados!C59)","v":"CPFL Energia"},{"$f":"IF(ISERROR(Dados!G59),\"-\",Dados!G59)","v":10262.75},null,{"$f":"IF(ISERROR(Dados!C59),\"-\",Dados!C59)","v":"CPFL Energia"},{"$f":"IF(ISERROR(Dados!X59),\"0\",Dados!X59)","v":5636.7},null,{"$f":"IF(ISERROR(Dados!C59),\"-\",Dados!C59)","v":"CPFL Energia"},{"$f":"IF(ISERROR(Dados!AB59),\"0\",Dados!AB59)","v":8.995669444118554E-3},null,{"$f":"IF(ISERROR(Dados!C59),\"-\",Dados!C59)","v":"CPFL Energia"},{"$f":"IF(ISERROR(Dados!S59),\"-\",Dados!S59)","v":3.0231710993642054},null,{"$f":"IF(ISERROR(Dados!C59),\"-\",Dados!C59)","v":"CPFL Energia"},{"$f":"IF(ISERROR(Dados!T59),\"-\",Dados!T59)","v":15.075532642708596},null,{"$f":"IF(ISERROR(Dados!C59),\"-\",Dados!C59)","v":"CPFL Energia"},{"$f":"IF(ISERROR(Dados!U59),\"0\",Dados!U59)","v":0.19362799999999999},null,{"$f":"IF(ISERROR(Dados!C59),\"-\",Dados!C59)","v":"CPFL Energia"},{"$f":"IF(ISERROR(IF(Dados!Z59<0,\"-\",Dados!Z59)),\"-\",IF(Dados!Z59<0,\"-\",Dados!Z59))","v":8.7837541469299421},null,{"$f":"IF(ISERROR(Dados!C59),\"-\",Dados!C59)","v":"CPFL Energia"},{"$f":"IF(ISERROR(Dados!AC59),\"-1000000\",Dados!AC59)","v":-0.7},null,{"$f":"IF(ISERROR(Dados!C59),\"-\",Dados!C59)","v":"CPFL Energia"},{"$f":"IF(ISERROR(Dados!AD59),\"-1000000\",Dados!AD59)","v":59.3},null,{"$f":"IF(ISERROR(Dados!C59),\"-\",Dados!C59)","v":"CPFL Energia"},{"$f":"IF(ISERROR(Dados!AC59),\"-\",Dados!AC59)","v":-0.7},null,{"$f":"IF(ISERROR(Dados!C59),\"-\",Dados!C59)","v":"CPFL Energia"},{"$f":"IF(ISERROR(Dados!AD59),\"-\",Dados!AD59)","v":59.3}]
[{"$f":"IF(ISERROR(Dados!C68),\"-\",Dados!C68)","v":"Coelce"},{"$f":"IF(ISERROR(Dados!F68),\"-\",Dados!F68)","v":3720.94},null,{"$f":"IF(ISERROR(Dados!C68),\"-\",Dados!C68)","v":"Coelce"},{"$f":"IF(ISERROR(Dados!G68),\"-\",Dados!G68)","v":2862.64},null,{"$f":"IF(ISERROR(Dados!C68),\"-\",Dados!C68)","v":"Coelce"},{"$f":"IF(ISERROR(Dados!X68),\"0\",Dados!X68)","v":741.3},null,{"$f":"IF(ISERROR(Dados!C68),\"-\",Dados!C68)","v":"Coelce"},{"$f":"IF(ISERROR(Dados!AB68),\"0\",Dados!AB68)","v":2.2832940063532332E-2},null,{"$f":"IF(ISERROR(Dados!C68),\"-\",Dados!C68)","v":"Coelce"},{"$f":"IF(ISERROR(Dados!S68),\"-\",Dados!S68)","v":1.4223990791716739},null,{"$f":"IF(ISERROR(Dados!C68),\"-\",Dados!C68)","v":"Coelce"},{"$f":"IF(ISERROR(Dados!T68),\"-\",Dados!T68)","v":11.170351421046856},null,{"$f":"IF(ISERROR(Dados!C68),\"-\",Dados!C68)","v":"Coelce"},{"$f":"IF(ISERROR(Dados!U68),\"0\",Dados!U68)","v":0.141127},null,{"$f":"IF(ISERROR(Dados!C68),\"-\",Dados!C68)","v":"Coelce"},{"$f":"IF(ISERROR(IF(Dados!Z68<0,\"-\",Dados!Z68)),\"-\",IF(Dados!Z68<0,\"-\",Dados!Z68))","v":7.345854579792257},null,{"$f":"IF(ISERROR(Dados!C68),\"-\",Dados!C68)","v":"Coelce"},{"$f":"IF(ISERROR(Dados!AC68),\"-1000000\",Dados!AC68)","v":-4.9000000000000004},null,{"$f":"IF(ISERROR(Dados!C68),\"-\",Dados!C68)","v":"Coelce"},{"$f":"IF(ISERROR(Dados!AD68),\"-1000000\",Dados!AD68)","v":-2.6},null,{"$f":"IF(ISERROR(Dados!C68),\"-\",Dados!C68)","v":"Coelce"},{"$f":"IF(ISERROR(Dados!AC68),\"-\",Dados!AC68)","v":-4.9000000000000004},null,{"$f":"IF(ISERROR(Dados!C68),\"-\",Dados!C68)","v":"Coelce"},{"$f":"IF(ISERROR(Dados!AD68),\"-\",Dados!AD68)","v":-2.6}]
[{"$f":"IF(ISERROR(Dados!C122),\"-\",Dados!C122)","v":"Ihpardini"},{"$f":"IF(ISERROR(Dados!F122),\"-\",Dados!F122)","v":2642.43},null,{"$f":"IF(ISERROR(Dados!C122),\"-\",Dados!C122)","v":"Ihpardini"},{"$f":"IF(ISERROR(Dados!G122),\"-\",Dados!G122)","v":605.62},null,{"$f":"IF(ISERROR(Dados!C122),\"-\",Dados!C122)","v":"Ihpardini"},{"$f":"IF(ISERROR(Dados!X122),\"0\",Dados!X122)","v":226.1},null,{"$f":"IF(ISERROR(Dados!C122),\"-\",Dados!C122)","v":"Ihpardini"},{"$f":"IF(ISERROR(Dados!AB122),\"0\",Dados!AB122)","v":1.6076111760765659E-2},null,{"$f":"IF(ISERROR(Dados!C122),\"-\",Dados!C122)","v":"Ihpardini"},{"$f":"IF(ISERROR(Dados!S122),\"-\",Dados!S122)","v":4.3631826888147689},null,{"$f":"IF(ISERROR(Dados!C122),\"-\",Dados!C122)","v":"Ihpardini"},{"$f":"IF(ISERROR(Dados!T122),\"-\",Dados!T122)","v":21.46223765432099},null,{"$f":"IF(ISERROR(Dados!C122),\"-\",Dados!C122)","v":"Ihpardini"},{"$f":"IF(ISERROR(Dados!U122),\"0\",Dados!U122)","v":0.22945299999999999},null,{"$f":"IF(ISERROR(Dados!C122),\"-\",Dados!C122)","v":"Ihpardini"},{"$f":"IF(ISERROR(IF(Dados!Z122<0,\"-\",Dados!Z122)),\"-\",IF(Dados!Z122<0,\"-\",Dados!Z122))","v":12.122636001769129},null,{"$f":"IF(ISERROR(Dados!C122),\"-\",Dados!C122)","v":"Ihpardini"},{"$f":"IF(ISERROR(Dados!AC122),\"-1000000\",Dados!AC122)","v":6.4},null,{"$f":"IF(ISERROR(Dados!C122),\"-\",Dados!C122)","v":"Ihpardini"},{"$f":"IF(ISERROR(Dados!AD122),\"-1000000\",Dados!AD122)","v":-37.9},null,{"$f":"IF(ISERROR(Dados!C122),\"-\",Dados!C122)","v":"Ihpardini"},{"$f":"IF(ISERROR(Dados!AC122),\"-\",Dados!AC122)","v":6.4},null,{"$f":"IF(ISERROR(Dados!C122),\"-\",Dados!C122)","v":"Ihpardini"},{"$f":"IF(ISERROR(Dados!AD122),\"-\",Dados!AD122)","v":-37.9}]
[{"$f":"IF(ISERROR(Dados!C200),\"-\",Dados!C200)","v":"Mangels Indl"},{"$f":"IF(ISERROR(Dados!F200),\"-\",Dados!F200)","v":40.479999999999997},null,{"$f":"IF(ISERROR(Dados!C200),\"-\",Dados!C200)","v":"Mangels Indl"},{"$f":"IF(ISERROR(Dados!G200),\"-\",Dados!G200)","v":-364.13},null,{"$f":"IF(ISERROR(Dados!C200),\"-\",Dados!C200)","v":"Mangels Indl"},{"$f":"IF(ISERROR(Dados!X200),\"0\",Dados!X200)","v":54.3},null,{"$f":"IF(ISERROR(Dados!C200),\"-\",Dados!C200)","v":"Mangels Indl"},{"$f":"IF(ISERROR(Dados!AB200),\"0\",Dados!AB200)","v":"0"},null,{"$f":"IF(ISERROR(Dados!C200),\"-\",Dados!C200)","v":"Mangels Indl"},{"$f":"IF(ISERROR(Dados!S200),\"-\",Dados!S200)","v":"-"},null,{"$f":"IF(ISERROR(Dados!C200),\"-\",Dados!C200)","v":"Mangels Indl"},{"$f":"IF(ISERROR(Dados!T200),\"-\",Dados!T200)","v":"-"},null,{"$f":"IF(ISERROR(Dados!C200),\"-\",Dados!C200)","v":"Mangels Indl"},{"$f":"IF(ISERROR(Dados!U200),\"0\",Dados!U200)","v":"0"},null,{"$f":"IF(ISERROR(Dados!C200),\"-\",Dados!C200)","v":"Mangels Indl"},{"$f":"IF(ISERROR(IF(Dados!Z200<0,\"-\",Dados!Z200)),\"-\",IF(Dados!Z200<0,\"-\",Dados!Z200))","v":11.673406998158379},null,{"$f":"IF(ISERROR(Dados!C200),\"-\",Dados!C200)","v":"Mangels Indl"},{"$f":"IF(ISERROR(Dados!AC200),\"-1000000\",Dados!AC200)","v":-3.2},null,{"$f":"IF(ISERROR(Dados!C200),\"-\",Dados!C200)","v":"Mangels Indl"},{"$f":"IF(ISERROR(Dados!AD200),\"-1000000\",Dados!AD200)","v":69.900000000000006},null,{"$f":"IF(ISERROR(Dados!C200),\"-\",Dados!C200)","v":"Mangels Indl"},{"$f":"IF(ISERROR(Dados!AC200),\"-\",Dados!AC200)","v":-3.2},null,{"$f":"IF(ISERROR(Dados!C200),\"-\",Dados!C200)","v":"Mangels Indl"},{"$f":"IF(ISERROR(Dados!AD200),\"-\",Dados!AD200)","v":69.900000000000006}]
[{"$f":"IF(ISERROR(Dados!C34),\"-\",Dados!C34)","v":"MRV"},{"$f":"IF(ISERROR(Dados!F34),\"-\",Dados!F34)","v":6169.74},null,{"$f":"IF(ISERROR(Dados!C34),\"-\",Dados!C34)","v":"MRV"},{"$f":"IF(ISERROR(Dados!G34),\"-\",Dados!G34)","v":4630.45},null,{"$f":"IF(ISERROR(Dados!C34),\"-\",Dados!C34)","v":"MRV"},{"$f":"IF(ISERROR(Dados!X34),\"0\",Dados!X34)","v":805.6},null,{"$f":"IF(ISERROR(Dados!C34),\"-\",Dados!C34)","v":"MRV"},{"$f":"IF(ISERROR(Dados!AB34),\"0\",Dados!AB34)","v":7.3849141130744575E-2},null,{"$f":"IF(ISERROR(Dados!C34),\"-\",Dados!C34)","v":"MRV"},{"$f":"IF(ISERROR(Dados!S34),\"-\",Dados!S34)","v":1.3324285738967057},null,{"$f":"IF(ISERROR(Dados!C34),\"-\",Dados!C34)","v":"MRV"},{"$f":"IF(ISERROR(Dados!T34),\"-\",Dados!T34)","v":8.9376423490895398},null,{"$f":"IF(ISERROR(Dados!C34),\"-\",Dados!C34)","v":"MRV"},{"$f":"IF(ISERROR(Dados!U34),\"0\",Dados!U34)","v":0.13077800000000001},null,{"$f":"IF(ISERROR(Dados!C34),\"-\",Dados!C34)","v":"MRV"},{"$f":"IF(ISERROR(IF(Dados!Z34<0,\"-\",Dados!Z34)),\"-\",IF(Dados!Z34<0,\"-\",Dados!Z34))","v":10.225801886792452},null,{"$f":"IF(ISERROR(Dados!C34),\"-\",Dados!C34)","v":"MRV"},{"$f":"IF(ISERROR(Dados!AC34),\"-1000000\",Dados!AC34)","v":2.9},null,{"$f":"IF(ISERROR(Dados!C34),\"-\",Dados!C34)","v":"MRV"},{"$f":"IF(ISERROR(Dados!AD34),\"-1000000\",Dados!AD34)","v":20.100000000000001},null,{"$f":"IF(ISERROR(Dados!C34),\"-\",Dados!C34)","v":"MRV"},{"$f":"IF(ISERROR(Dados!AC34),\"-\",Dados!AC34)","v":2.9},null,{"$f":"IF(ISERROR(Dados!C34),\"-\",Dados!C34)","v":"MRV"},{"$f":"IF(ISERROR(Dados!AD34),\"-\",Dados!AD34)","v":20.100000000000001}]
[{"$f":"IF(ISERROR(Dados!C21),\"-\",Dados!C21)","v":"RaiaDrogasil"},{"$f":"IF(ISERROR(Dados!F21),\"-\",Dados!F21)","v":21505.86},null,{"$f":"IF(ISERROR(Dados!C21),\"-\",Dados!C21)","v":"RaiaDrogasil"},{"$f":"IF(ISERROR(Dados!G21),\"-\",Dados!G21)","v":3499.86},null,{"$f":"IF(ISERROR(Dados!C21),\"-\",Dados!C21)","v":"RaiaDrogasil"},{"$f":"IF(ISERROR(Dados!X21),\"0\",Dados!X21)","v":1137.3},null,{"$f":"IF(ISERROR(Dados!C21),\"-\",Dados!C21)","v":"RaiaDrogasil"},{"$f":"IF(ISERROR(Dados!AB21),\"0\",Dados!AB21)","v":8.0731484348916995E-3},null,{"$f":"IF(ISERROR(Dados!C21),\"-\",Dados!C21)","v":"RaiaDrogasil"},{"$f":"IF(ISERROR(Dados!S21),\"-\",Dados!S21)","v":6.1447705622510611},null,{"$f":"IF(ISERROR(Dados!C21),\"-\",Dados!C21)","v":"RaiaDrogasil"},{"$f":"IF(ISERROR(Dados!T21),\"-\",Dados!T21)","v":42.801943875012441},null,{"$f":"IF(ISERROR(Dados!C21),\"-\",Dados!C21)","v":"RaiaDrogasil"},{"$f":"IF(ISERROR(Dados!U21),\"0\",Dados!U21)","v":0.156694},null,{"$f":"IF(ISERROR(Dados!C21),\"-\",Dados!C21)","v":"RaiaDrogasil"},{"$f":"IF(ISERROR(IF(Dados!Z21<0,\"-\",Dados!Z21)),\"-\",IF(Dados!Z21<0,\"-\",Dados!Z21))","v":19.438531609953397},null,{"$f":"IF(ISERROR(Dados!C21),\"-\",Dados!C21)","v":"RaiaDrogasil"},{"$f":"IF(ISERROR(Dados!AC21),\"-1000000\",Dados!AC21)","v":0.1},null,{"$f":"IF(ISERROR(Dados!C21),\"-\",Dados!C21)","v":"RaiaDrogasil"},{"$f":"IF(ISERROR(Dados!AD21),\"-1000000\",Dados!AD21)","v":-28},null,{"$f":"IF(ISERROR(Dados!C21),\"-\",Dados!C21)","v":"RaiaDrogasil"},{"$f":"IF(ISERROR(Dados!AC21),\"-\",Dados!AC21)","v":0.1},null,{"$f":"IF(ISERROR(Dados!C21),\"-\",Dados!C21)","v":"RaiaDrogasil"},{"$f":"IF(ISERROR(Dados!AD21),\"-\",Dados!AD21)","v":-28}]
[{"$f":"IF(ISERROR(Dados!C157),\"-\",Dados!C157)","v":"Anima"},{"$f":"IF(ISERROR(Dados!F157),\"-\",Dados!F157)","v":1451.72},null,{"$f":"IF(ISERROR(Dados!C157),\"-\",Dados!C157)","v":"Anima"},{"$f":"IF(ISERROR(Dados!G157),\"-\",Dados!G157)","v":665.25},null,{"$f":"IF(ISERROR(Dados!C157),\"-\",Dados!C157)","v":"Anima"},{"$f":"IF(ISERROR(Dados!X157),\"0\",Dados!X157)","v":93},null,{"$f":"IF(ISERROR(Dados!C157),\"-\",Dados!C157)","v":"Anima"},{"$f":"IF(ISERROR(Dados!AB157),\"0\",Dados!AB157)","v":1.3921417353208608E-2},null,{"$f":"IF(ISERROR(Dados!C157),\"-\",Dados!C157)","v":"Anima"},{"$f":"IF(ISERROR(Dados!S157),\"-\",Dados!S157)","v":2.1822148064637354},null,{"$f":"IF(ISERROR(Dados!C157),\"-\",Dados!C157)","v":"Anima"},{"$f":"IF(ISERROR(Dados!T157),\"-\",Dados!T157)","v":645.20817777777779},null,{"$f":"IF(ISERROR(Dados!C157),\"-\",Dados!C157)","v":"Anima"},{"$f":"IF(ISERROR(Dados!U157),\"0\",Dados!U157)","v":3.2320000000000001E-3},null,{"$f":"IF(ISERROR(Dados!C157),\"-\",Dados!C157)","v":"Anima"},{"$f":"IF(ISERROR(IF(Dados!Z157<0,\"-\",Dados!Z157)),\"-\",IF(Dados!Z157<0,\"-\",Dados!Z157))","v":17.882645161290323},null,{"$f":"IF(ISERROR(Dados!C157),\"-\",Dados!C157)","v":"Anima"},{"$f":"IF(ISERROR(Dados!AC157),\"-1000000\",Dados!AC157)","v":-0.1},null,{"$f":"IF(ISERROR(Dados!C157),\"-\",Dados!C157)","v":"Anima"},{"$f":"IF(ISERROR(Dados!AD157),\"-1000000\",Dados!AD157)","v":-33.200000000000003},null,{"$f":"IF(ISERROR(Dados!C157),\"-\",Dados!C157)","v":"Anima"},{"$f":"IF(ISERROR(Dados!AC157),\"-\",Dados!AC157)","v":-0.1},null,{"$f":"IF(ISERROR(Dados!C157),\"-\",Dados!C157)","v":"Anima"},{"$f":"IF(ISERROR(Dados!AD157),\"-\",Dados!AD157)","v":-33.200000000000003}]
[{"$f":"IF(ISERROR(Dados!C95),\"-\",Dados!C95)","v":"Merc Invest"},{"$f":"IF(ISERROR(Dados!F95),\"-\",Dados!F95)","v":93.39},null,{"$f":"IF(ISERROR(Dados!C95),\"-\",Dados!C95)","v":"Merc Invest"},{"$f":"IF(ISERROR(Dados!G95),\"-\",Dados!G95)","v":119.04},null,{"$f":"IF(ISERROR(Dados!C95),\"-\",Dados!C95)","v":"Merc Invest"},{"$f":"IF(ISERROR(Dados!X95),\"0\",Dados!X95)","v":"0"},null,{"$f":"IF(ISERROR(Dados!C95),\"-\",Dados!C95)","v":"Merc Invest"},{"$f":"IF(ISERROR(Dados!AB95),\"0\",Dados!AB95)","v":7.4954491915622656E-3},null,{"$f":"IF(ISERROR(Dados!C95),\"-\",Dados!C95)","v":"Merc Invest"},{"$f":"IF(ISERROR(Dados!S95),\"-\",Dados!S95)","v":0.74823168682795704},null,{"$f":"IF(ISERROR(Dados!C95),\"-\",Dados!C95)","v":"Merc Invest"},{"$f":"IF(ISERROR(Dados!T95),\"-\",Dados!T95)","v":21.566464891041164},null,{"$f":"IF(ISERROR(Dados!C95),\"-\",Dados!C95)","v":"Merc Invest"},{"$f":"IF(ISERROR(Dados!U95),\"0\",Dados!U95)","v":7.3479000000000003E-2},null,{"$f":"IF(ISERROR(Dados!C95),\"-\",Dados!C95)","v":"Merc Invest"},{"$f":"IF(ISERROR(IF(Dados!Z95<0,\"-\",Dados!Z95)),\"-\",IF(Dados!Z95<0,\"-\",Dados!Z95))","v":"-"},null,{"$f":"IF(ISERROR(Dados!C95),\"-\",Dados!C95)","v":"Merc Invest"},{"$f":"IF(ISERROR(Dados!AC95),\"-1000000\",Dados!AC95)","v":18.7},null,{"$f":"IF(ISERROR(Dados!C95),\"-\",Dados!C95)","v":"Merc Invest"},{"$f":"IF(ISERROR(Dados!AD95),\"-1000000\",Dados!AD95)","v":15.9},null,{"$f":"IF(ISERROR(Dados!C95),\"-\",Dados!C95)","v":"Merc Invest"},{"$f":"IF(ISERROR(Dados!AC95),\"-\",Dados!AC95)","v":18.7},null,{"$f":"IF(ISERROR(Dados!C95),\"-\",Dados!C95)","v":"Merc Invest"},{"$f":"IF(ISERROR(Dados!AD95),\"-\",Dados!AD95)","v":15.9}]
[{"$f":"IF(ISERROR(Dados!C178),\"-\",Dados!C178)","v":"Dommo"},{"$f":"IF(ISERROR(Dados!F178),\"-\",Dados!F178)","v":2133.3200000000002},null,{"$f":"IF(ISERROR(Dados!C178),\"-\",Dados!C178)","v":"Dommo"},{"$f":"IF(ISERROR(Dados!G178),\"-\",Dados!G178)","v":-376.35},null,{"$f":"IF(ISERROR(Dados!C178),\"-\",Dados!C178)","v":"Dommo"},{"$f":"IF(ISERROR(Dados!X178),\"0\",Dados!X178)","v":-478.6},null,{"$f":"IF(ISERROR(Dados!C178),\"-\",Dados!C178)","v":"Dommo"},{"$f":"IF(ISERROR(Dados!AB178),\"0\",Dados!AB178)","v":"0"},null,{"$f":"IF(ISERROR(Dados!C178),\"-\",Dados!C178)","v":"Dommo"},{"$f":"IF(ISERROR(Dados!S178),\"-\",Dados!S178)","v":"-"},null,{"$f":"IF(ISERROR(Dados!C178),\"-\",Dados!C178)","v":"Dommo"},{"$f":"IF(ISERROR(Dados!T178),\"-\",Dados!T178)","v":"-"},null,{"$f":"IF(ISERROR(Dados!C178),\"-\",Dados!C178)","v":"Dommo"},{"$f":"IF(ISERROR(Dados!U178),\"0\",Dados!U178)","v":-1.7098789999999999},null,{"$f":"IF(ISERROR(Dados!C178),\"-\",Dados!C178)","v":"Dommo"},{"$f":"IF(ISERROR(IF(Dados!Z178<0,\"-\",Dados!Z178)),\"-\",IF(Dados!Z178<0,\"-\",Dados!Z178))","v":"-"},null,{"$f":"IF(ISERROR(Dados!C178),\"-\",Dados!C178)","v":"Dommo"},{"$f":"IF(ISERROR(Dados!AC178),\"-1000000\",Dados!AC178)","v":-11.2},null,{"$f":"IF(ISERROR(Dados!C178),\"-\",Dados!C178)","v":"Dommo"},{"$f":"IF(ISERROR(Dados!AD178),\"-1000000\",Dados!AD178)","v":-24},null,{"$f":"IF(ISERROR(Dados!C178),\"-\",Dados!C178)","v":"Dommo"},{"$f":"IF(ISERROR(Dados!AC178),\"-\",Dados!AC178)","v":-11.2},null,{"$f":"IF(ISERROR(Dados!C178),\"-\",Dados!C178)","v":"Dommo"},{"$f":"IF(ISERROR(Dados!AD178),\"-\",Dados!AD178)","v":-24}]
[{"$f":"IF(ISERROR(Dados!C165),\"-\",Dados!C165)","v":"Saraiva Livr"},{"$f":"IF(ISERROR(Dados!F165),\"-\",Dados!F165)","v":51.28},null,{"$f":"IF(ISERROR(Dados!C165),\"-\",Dados!C165)","v":"Saraiva Livr"},{"$f":"IF(ISERROR(Dados!G165),\"-\",Dados!G165)","v":120.91},null,{"$f":"IF(ISERROR(Dados!C165),\"-\",Dados!C165)","v":"Saraiva Livr"},{"$f":"IF(ISERROR(Dados!X165),\"0\",Dados!X165)","v":-167.2},null,{"$f":"IF(ISERROR(Dados!C165),\"-\",Dados!C165)","v":"Saraiva Livr"},{"$f":"IF(ISERROR(Dados!AB165),\"0\",Dados!AB165)","v":"0"},null,{"$f":"IF(ISERROR(Dados!C165),\"-\",Dados!C165)","v":"Saraiva Livr"},{"$f":"IF(ISERROR(Dados!S165),\"-\",Dados!S165)","v":0.42806136795963945},null,{"$f":"IF(ISERROR(Dados!C165),\"-\",Dados!C165)","v":"Saraiva Livr"},{"$f":"IF(ISERROR(Dados!T165),\"-\",Dados!T165)","v":"-"},null,{"$f":"IF(ISERROR(Dados!C165),\"-\",Dados!C165)","v":"Saraiva Livr"},{"$f":"IF(ISERROR(Dados!U165),\"0\",Dados!U165)","v":-0.71495900000000001},null,{"$f":"IF(ISERROR(Dados!C165),\"-\",Dados!C165)","v":"Saraiva Livr"},{"$f":"IF(ISERROR(IF(Dados!Z165<0,\"-\",Dados!Z165)),\"-\",IF(Dados!Z165<0,\"-\",Dados!Z165))","v":"-"},null,{"$f":"IF(ISERROR(Dados!C165),\"-\",Dados!C165)","v":"Saraiva Livr"},{"$f":"IF(ISERROR(Dados!AC165),\"-1000000\",Dados!AC165)","v":-9.3000000000000007},null,{"$f":"IF(ISERROR(Dados!C165),\"-\",Dados!C165)","v":"Saraiva Livr"},{"$f":"IF(ISERROR(Dados!AD165),\"-1000000\",Dados!AD165)","v":-52.1},null,{"$f":"IF(ISERROR(Dados!C165),\"-\",Dados!C165)","v":"Saraiva Livr"},{"$f":"IF(ISERROR(Dados!AC165),\"-\",Dados!AC165)","v":-9.3000000000000007},null,{"$f":"IF(ISERROR(Dados!C165),\"-\",Dados!C165)","v":"Saraiva Livr"},{"$f":"IF(ISERROR(Dados!AD165),\"-\",Dados!AD165)","v":-52.1}]
[{"$f":"IF(ISERROR(Dados!C54),\"-\",Dados!C54)","v":"Eletrobras"},{"$f":"IF(ISERROR(Dados!F54),\"-\",Dados!F54)","v":49940.37},null,{"$f":"IF(ISERROR(Dados!C54),\"-\",Dados!C54)","v":"Eletrobras"},{"$f":"IF(ISERROR(Dados!G54),\"-\",Dados!G54)","v":55542.91},null,{"$f":"IF(ISERROR(Dados!C54),\"-\",Dados!C54)","v":"Eletrobras"},{"$f":"IF(ISERROR(Dados!X54),\"0\",Dados!X54)","v":19990.400000000001},null,{"$f":"IF(ISERROR(Dados!C54),\"-\",Dados!C54)","v":"Eletrobras"},{"$f":"IF(ISERROR(Dados!AB54),\"0\",Dados!AB54)","v":3.1637731158179244E-5},null,{"$f":"IF(ISERROR(Dados!C54),\"-\",Dados!C54)","v":"Eletrobras"},{"$f":"IF(ISERROR(Dados!S54),\"-\",Dados!S54)","v":0.9220028846165963},null,{"$f":"IF(ISERROR(Dados!C54),\"-\",Dados!C54)","v":"Eletrobras"},{"$f":"IF(ISERROR(Dados!T54),\"-\",Dados!T54)","v":3.8613524299560109},null,{"$f":"IF(ISERROR(Dados!C54),\"-\",Dados!C54)","v":"Eletrobras"},{"$f":"IF(ISERROR(Dados!U54),\"0\",Dados!U54)","v":0.31220599999999998},null,{"$f":"IF(ISERROR(Dados!C54),\"-\",Dados!C54)","v":"Eletrobras"},{"$f":"IF(ISERROR(IF(Dados!Z54<0,\"-\",Dados!Z54)),\"-\",IF(Dados!Z54<0,\"-\",Dados!Z54))","v":4.8626324135585079},null,{"$f":"IF(ISERROR(Dados!C54),\"-\",Dados!C54)","v":"Eletrobras"},{"$f":"IF(ISERROR(Dados!AC54),\"-1000000\",Dados!AC54)","v":-2.8},null,{"$f":"IF(ISERROR(Dados!C54),\"-\",Dados!C54)","v":"Eletrobras"},{"$f":"IF(ISERROR(Dados!AD54),\"-1000000\",Dados!AD54)","v":66.8},null,{"$f":"IF(ISERROR(Dados!C54),\"-\",Dados!C54)","v":"Eletrobras"},{"$f":"IF(ISERROR(Dados!AC54),\"-\",Dados!AC54)","v":-2.8},null,{"$f":"IF(ISERROR(Dados!C54),\"-\",Dados!C54)","v":"Eletrobras"},{"$f":"IF(ISERROR(Dados!AD54),\"-\",Dados!AD54)","v":66.8}]
[{"$f":"IF(ISERROR(Dados!C2),\"-\",Dados!C2)","v":"Brasilagro"},{"$f":"IF(ISERROR(Dados!F2),\"-\",Dados!F2)","v":836.62},null,{"$f":"IF(ISERROR(Dados!C2),\"-\",Dados!C2)","v":"Brasilagro"},{"$f":"IF(ISERROR(Dados!G2),\"-\",Dados!G2)","v":882.81},null,{"$f":"IF(ISERROR(Dados!C2),\"-\",Dados!C2)","v":"Brasilagro"},{"$f":"IF(ISERROR(Dados!X2),\"0\",Dados!X2)","v":175.9},null,{"$f":"IF(ISERROR(Dados!C2),\"-\",Dados!C2)","v":"Brasilagro"},{"$f":"IF(ISERROR(Dados!AB2),\"0\",Dados!AB2)","v":4.900671750615572E-2},null,{"$f":"IF(ISERROR(Dados!C2),\"-\",Dados!C2)","v":"Brasilagro"},{"$f":"IF(ISERROR(Dados!S2),\"-\",Dados!S2)","v":0.94767968192476315},null,{"$f":"IF(ISERROR(Dados!C2),\"-\",Dados!C2)","v":"Brasilagro"},{"$f":"IF(ISERROR(Dados!T2),\"-\",Dados!T2)","v":3.6244036736992595},null,{"$f":"IF(ISERROR(Dados!C2),\"-\",Dados!C2)","v":"Brasilagro"},{"$f":"IF(ISERROR(Dados!U2),\"0\",Dados!U2)","v":0.33271099999999998},null,{"$f":"IF(ISERROR(Dados!C2),\"-\",Dados!C2)","v":"Brasilagro"},{"$f":"IF(ISERROR(IF(Dados!Z2<0,\"-\",Dados!Z2)),\"-\",IF(Dados!Z2<0,\"-\",Dados!Z2))","v":3.4715775489870468},null,{"$f":"IF(ISERROR(Dados!C2),\"-\",Dados!C2)","v":"Brasilagro"},{"$f":"IF(ISERROR(Dados!AC2),\"-1000000\",Dados!AC2)","v":-1.9},null,{"$f":"IF(ISERROR(Dados!C2),\"-\",Dados!C2)","v":"Brasilagro"},{"$f":"IF(ISERROR(Dados!AD2),\"-1000000\",Dados!AD2)","v":31.2},null,{"$f":"IF(ISERROR(Dados!C2),\"-\",Dados!C2)","v":"Brasilagro"},{"$f":"IF(ISERROR(Dados!AC2),\"-\",Dados!AC2)","v":-1.9},null,{"$f":"IF(ISERROR(Dados!C2),\"-\",Dados!C2)","v":"Brasilagro"},{"$f":"IF(ISERROR(Dados!AD2),\"-\",Dados!AD2)","v":31.2}]
[{"$f":"IF(ISERROR(Dados!C69),\"-\",Dados!C69)","v":"Rede Energia"},{"$f":"IF(ISERROR(Dados!F69),\"-\",Dados!F69)","v":15434.06},null,{"$f":"IF(ISERROR(Dados!C69),\"-\",Dados!C69)","v":"Rede Energia"},{"$f":"IF(ISERROR(Dados!G69),\"-\",Dados!G69)","v":3258.2},null,{"$f":"IF(ISERROR(Dados!C69),\"-\",Dados!C69)","v":"Rede Energia"},{"$f":"IF(ISERROR(Dados!X69),\"0\",Dados!X69)","v":1793},null,{"$f":"IF(ISERROR(Dados!C69),\"-\",Dados!C69)","v":"Rede Energia"},{"$f":"IF(ISERROR(Dados!AB69),\"0\",Dados!AB69)","v":1.7143901215882276E-3},null,{"$f":"IF(ISERROR(Dados!C69),\"-\",Dados!C69)","v":"Rede Energia"},{"$f":"IF(ISERROR(Dados!S69),\"-\",Dados!S69)","v":"-"},null,{"$f":"IF(ISERROR(Dados!C69),\"-\",Dados!C69)","v":"Rede Energia"},{"$f":"IF(ISERROR(Dados!T69),\"-\",Dados!T69)","v":"-"},null,{"$f":"IF(ISERROR(Dados!C69),\"-\",Dados!C69)","v":"Rede Energia"},{"$f":"IF(ISERROR(Dados!U69),\"0\",Dados!U69)","v":0.13966799999999999},null,{"$f":"IF(ISERROR(Dados!C69),\"-\",Dados!C69)","v":"Rede Energia"},{"$f":"IF(ISERROR(IF(Dados!Z69<0,\"-\",Dados!Z69)),\"-\",IF(Dados!Z69<0,\"-\",Dados!Z69))","v":11.766193530395984},null,{"$f":"IF(ISERROR(Dados!C69),\"-\",Dados!C69)","v":"Rede Energia"},{"$f":"IF(ISERROR(Dados!AC69),\"-1000000\",Dados!AC69)","v":"-1000000"},null,{"$f":"IF(ISERROR(Dados!C69),\"-\",Dados!C69)","v":"Rede Energia"},{"$f":"IF(ISERROR(Dados!AD69),\"-1000000\",Dados!AD69)","v":"-1000000"},null,{"$f":"IF(ISERROR(Dados!C69),\"-\",Dados!C69)","v":"Rede Energia"},{"$f":"IF(ISERROR(Dados!AC69),\"-\",Dados!AC69)","v":"-"},null,{"$f":"IF(ISERROR(Dados!C69),\"-\",Dados!C69)","v":"Rede Energia"},{"$f":"IF(ISERROR(Dados!AD69),\"-\",Dados!AD69)","v":"-"}]
[{"$f":"IF(ISERROR(Dados!C202),\"-\",Dados!C202)","v":"Cielo"},{"$f":"IF(ISERROR(Dados!F202),\"-\",Dados!F202)","v":25758.080000000002},null,{"$f":"IF(ISERROR(Dados!C202),\"-\",Dados!C202)","v":"Cielo"},{"$f":"IF(ISERROR(Dados!G202),\"-\",Dados!G202)","v":11204.09},null,{"$f":"IF(ISERROR(Dados!C202),\"-\",Dados!C202)","v":"Cielo"},{"$f":"IF(ISERROR(Dados!X202),\"0\",Dados!X202)","v":4634.8},null,{"$f":"IF(ISERROR(Dados!C202),\"-\",Dados!C202)","v":"Cielo"},{"$f":"IF(ISERROR(Dados!AB202),\"0\",Dados!AB202)","v":0.27337324831664467},null,{"$f":"IF(ISERROR(Dados!C202),\"-\",Dados!C202)","v":"Cielo"},{"$f":"IF(ISERROR(Dados!S202),\"-\",Dados!S202)","v":2.2989890888059628},null,{"$f":"IF(ISERROR(Dados!C202),\"-\",Dados!C202)","v":"Cielo"},{"$f":"IF(ISERROR(Dados!T202),\"-\",Dados!T202)","v":7.7075925623371075},null,{"$f":"IF(ISERROR(Dados!C202),\"-\",Dados!C202)","v":"Cielo"},{"$f":"IF(ISERROR(Dados!U202),\"0\",Dados!U202)","v":0.23172000000000001},null,{"$f":"IF(ISERROR(Dados!C202),\"-\",Dados!C202)","v":"Cielo"},{"$f":"IF(ISERROR(IF(Dados!Z202<0,\"-\",Dados!Z202)),\"-\",IF(Dados!Z202<0,\"-\",Dados!Z202))","v":6.633864028652801},null,{"$f":"IF(ISERROR(Dados!C202),\"-\",Dados!C202)","v":"Cielo"},{"$f":"IF(ISERROR(Dados!AC202),\"-1000000\",Dados!AC202)","v":-12.2},null,{"$f":"IF(ISERROR(Dados!C202),\"-\",Dados!C202)","v":"Cielo"},{"$f":"IF(ISERROR(Dados!AD202),\"-1000000\",Dados!AD202)","v":-54},null,{"$f":"IF(ISERROR(Dados!C202),\"-\",Dados!C202)","v":"Cielo"},{"$f":"IF(ISERROR(Dados!AC202),\"-\",Dados!AC202)","v":-12.2},null,{"$f":"IF(ISERROR(Dados!C202),\"-\",Dados!C202)","v":"Cielo"},{"$f":"IF(ISERROR(Dados!AD202),\"-\",Dados!AD202)","v":-54}]
[{"$f":"IF(ISERROR(Dados!C65),\"-\",Dados!C65)","v":"Eneva"},{"$f":"IF(ISERROR(Dados!F65),\"-\",Dados!F65)","v":5827.32},null,{"$f":"IF(ISERROR(Dados!C65),\"-\",Dados!C65)","v":"Eneva"},{"$f":"IF(ISERROR(Dados!G65),\"-\",Dados!G65)","v":6298.04},null,{"$f":"IF(ISERROR(Dados!C65),\"-\",Dados!C65)","v":"Eneva"},{"$f":"IF(ISERROR(Dados!X65),\"0\",Dados!X65)","v":1563},null,{"$f":"IF(ISERROR(Dados!C65),\"-\",Dados!C65)","v":"Eneva"},{"$f":"IF(ISERROR(Dados!AB65),\"0\",Dados!AB65)","v":"0"},null,{"$f":"IF(ISERROR(Dados!C65),\"-\",Dados!C65)","v":"Eneva"},{"$f":"IF(ISERROR(Dados!S65),\"-\",Dados!S65)","v":0.92525849311849406},null,{"$f":"IF(ISERROR(Dados!C65),\"-\",Dados!C65)","v":"Eneva"},{"$f":"IF(ISERROR(Dados!T65),\"-\",Dados!T65)","v":6.5632525031817721},null,{"$f":"IF(ISERROR(Dados!C65),\"-\",Dados!C65)","v":"Eneva"},{"$f":"IF(ISERROR(Dados!U65),\"0\",Dados!U65)","v":0.16522200000000001},null,{"$f":"IF(ISERROR(Dados!C65),\"-\",Dados!C65)","v":"Eneva"},{"$f":"IF(ISERROR(IF(Dados!Z65<0,\"-\",Dados!Z65)),\"-\",IF(Dados!Z65<0,\"-\",Dados!Z65))","v":6.1623678822776702},null,{"$f":"IF(ISERROR(Dados!C65),\"-\",Dados!C65)","v":"Eneva"},{"$f":"IF(ISERROR(Dados!AC65),\"-1000000\",Dados!AC65)","v":-1},null,{"$f":"IF(ISERROR(Dados!C65),\"-\",Dados!C65)","v":"Eneva"},{"$f":"IF(ISERROR(Dados!AD65),\"-1000000\",Dados!AD65)","v":33.1},null,{"$f":"IF(ISERROR(Dados!C65),\"-\",Dados!C65)","v":"Eneva"},{"$f":"IF(ISERROR(Dados!AC65),\"-\",Dados!AC65)","v":-1},null,{"$f":"IF(ISERROR(Dados!C65),\"-\",Dados!C65)","v":"Eneva"},{"$f":"IF(ISERROR(Dados!AD65),\"-\",Dados!AD65)","v":33.1}]
[{"$f":"IF(ISERROR(Dados!C181),\"-\",Dados!C181)","v":"Unipar"},{"$f":"IF(ISERROR(Dados!F181),\"-\",Dados!F181)","v":3348.19},null,{"$f":"IF(ISERROR(Dados!C181),\"-\",Dados!C181)","v":"Unipar"},{"$f":"IF(ISERROR(Dados!G181),\"-\",Dados!G181)","v":1347.52},null,{"$f":"IF(ISERROR(Dados!C181),\"-\",Dados!C181)","v":"Unipar"},{"$f":"IF(ISERROR(Dados!X181),\"0\",Dados!X181)","v":1007},null,{"$f":"IF(ISERROR(Dados!C181),\"-\",Dados!C181)","v":"Unipar"},{"$f":"IF(ISERROR(Dados!AB181),\"0\",Dados!AB181)","v":6.1812501680012184E-2},null,{"$f":"IF(ISERROR(Dados!C181),\"-\",Dados!C181)","v":"Unipar"},{"$f":"IF(ISERROR(Dados!S181),\"-\",Dados!S181)","v":2.4674685718950369},null,{"$f":"IF(ISERROR(Dados!C181),\"-\",Dados!C181)","v":"Unipar"},{"$f":"IF(ISERROR(Dados!T181),\"-\",Dados!T181)","v":6.2968018521324138},null,{"$f":"IF(ISERROR(Dados!C181),\"-\",Dados!C181)","v":"Unipar"},{"$f":"IF(ISERROR(Dados!U181),\"0\",Dados!U181)","v":0.51027599999999995},null,{"$f":"IF(ISERROR(Dados!C181),\"-\",Dados!C181)","v":"Unipar"},{"$f":"IF(ISERROR(IF(Dados!Z181<0,\"-\",Dados!Z181)),\"-\",IF(Dados!Z181<0,\"-\",Dados!Z181))","v":3.4901241310824234},null,{"$f":"IF(ISERROR(Dados!C181),\"-\",Dados!C181)","v":"Unipar"},{"$f":"IF(ISERROR(Dados!AC181),\"-1000000\",Dados!AC181)","v":-4.2},null,{"$f":"IF(ISERROR(Dados!C181),\"-\",Dados!C181)","v":"Unipar"},{"$f":"IF(ISERROR(Dados!AD181),\"-1000000\",Dados!AD181)","v":182.9},null,{"$f":"IF(ISERROR(Dados!C181),\"-\",Dados!C181)","v":"Unipar"},{"$f":"IF(ISERROR(Dados!AC181),\"-\",Dados!AC181)","v":-4.2},null,{"$f":"IF(ISERROR(Dados!C181),\"-\",Dados!C181)","v":"Unipar"},{"$f":"IF(ISERROR(Dados!AD181),\"-\",Dados!AD181)","v":182.9}]
[{"$f":"IF(ISERROR(Dados!C239),\"-\",Dados!C239)","v":"Tupy"},{"$f":"IF(ISERROR(Dados!F239),\"-\",Dados!F239)","v":2612.25},null,{"$f":"IF(ISERROR(Dados!C239),\"-\",Dados!C239)","v":"Tupy"},{"$f":"IF(ISERROR(Dados!G239),\"-\",Dados!G239)","v":2199.96},null,{"$f":"IF(ISERROR(Dados!C239),\"-\",Dados!C239)","v":"Tupy"},{"$f":"IF(ISERROR(Dados!X239),\"0\",Dados!X239)","v":649.29999999999995},null,{"$f":"IF(ISERROR(Dados!C239),\"-\",Dados!C239)","v":"Tupy"},{"$f":"IF(ISERROR(Dados!AB239),\"0\",Dados!AB239)","v":6.6972916068523305E-2},null,{"$f":"IF(ISERROR(Dados!C239),\"-\",Dados!C239)","v":"Tupy"},{"$f":"IF(ISERROR(Dados!S239),\"-\",Dados!S239)","v":1.1874087165221185},null,{"$f":"IF(ISERROR(Dados!C239),\"-\",Dados!C239)","v":"Tupy"},{"$f":"IF(ISERROR(Dados!T239),\"-\",Dados!T239)","v":9.6137629913145872},null,{"$f":"IF(ISERROR(Dados!C239),\"-\",Dados!C239)","v":"Tupy"},{"$f":"IF(ISERROR(Dados!U239),\"0\",Dados!U239)","v":0.13700300000000001},null,{"$f":"IF(ISERROR(Dados!C239),\"-\",Dados!C239)","v":"Tupy"},{"$f":"IF(ISERROR(IF(Dados!Z239<0,\"-\",Dados!Z239)),\"-\",IF(Dados!Z239<0,\"-\",Dados!Z239))","v":5.0907746804250733},null,{"$f":"IF(ISERROR(Dados!C239),\"-\",Dados!C239)","v":"Tupy"},{"$f":"IF(ISERROR(Dados!AC239),\"-1000000\",Dados!AC239)","v":3.4},null,{"$f":"IF(ISERROR(Dados!C239),\"-\",Dados!C239)","v":"Tupy"},{"$f":"IF(ISERROR(Dados!AD239),\"-1000000\",Dados!AD239)","v":11.1},null,{"$f":"IF(ISERROR(Dados!C239),\"-\",Dados!C239)","v":"Tupy"},{"$f":"IF(ISERROR(Dados!AC239),\"-\",Dados!AC239)","v":3.4},null,{"$f":"IF(ISERROR(Dados!C239),\"-\",Dados!C239)","v":"Tupy"},{"$f":"IF(ISERROR(Dados!AD239),\"-\",Dados!AD239)","v":11.1}]
[{"$f":"IF(ISERROR(Dados!C135),\"-\",Dados!C135)","v":"Valid"},{"$f":"IF(ISERROR(Dados!F135),\"-\",Dados!F135)","v":1357.41},null,{"$f":"IF(ISERROR(Dados!C135),\"-\",Dados!C135)","v":"Valid"},{"$f":"IF(ISERROR(Dados!G135),\"-\",Dados!G135)","v":1071.9100000000001},null,{"$f":"IF(ISERROR(Dados!C135),\"-\",Dados!C135)","v":"Valid"},{"$f":"IF(ISERROR(Dados!X135),\"0\",Dados!X135)","v":269.8},null,{"$f":"IF(ISERROR(Dados!C135),\"-\",Dados!C135)","v":"Valid"},{"$f":"IF(ISERROR(Dados!AB135),\"0\",Dados!AB135)","v":2.2926013511024673E-2},null,{"$f":"IF(ISERROR(Dados!C135),\"-\",Dados!C135)","v":"Valid"},{"$f":"IF(ISERROR(Dados!S135),\"-\",Dados!S135)","v":1.2663454954240561},null,{"$f":"IF(ISERROR(Dados!C135),\"-\",Dados!C135)","v":"Valid"},{"$f":"IF(ISERROR(Dados!T135),\"-\",Dados!T135)","v":13.568656537385047},null,{"$f":"IF(ISERROR(Dados!C135),\"-\",Dados!C135)","v":"Valid"},{"$f":"IF(ISERROR(Dados!U135),\"0\",Dados!U135)","v":0.10101800000000001},null,{"$f":"IF(ISERROR(Dados!C135),\"-\",Dados!C135)","v":"Valid"},{"$f":"IF(ISERROR(IF(Dados!Z135<0,\"-\",Dados!Z135)),\"-\",IF(Dados!Z135<0,\"-\",Dados!Z135))","v":6.9558191252779835},null,{"$f":"IF(ISERROR(Dados!C135),\"-\",Dados!C135)","v":"Valid"},{"$f":"IF(ISERROR(Dados!AC135),\"-1000000\",Dados!AC135)","v":-2.1},null,{"$f":"IF(ISERROR(Dados!C135),\"-\",Dados!C135)","v":"Valid"},{"$f":"IF(ISERROR(Dados!AD135),\"-1000000\",Dados!AD135)","v":10.3},null,{"$f":"IF(ISERROR(Dados!C135),\"-\",Dados!C135)","v":"Valid"},{"$f":"IF(ISERROR(Dados!AC135),\"-\",Dados!AC135)","v":-2.1},null,{"$f":"IF(ISERROR(Dados!C135),\"-\",Dados!C135)","v":"Valid"},{"$f":"IF(ISERROR(Dados!AD135),\"-\",Dados!AD135)","v":10.3}]
[{"$f":"IF(ISERROR(Dados!C12),\"-\",Dados!C12)","v":"JBS"},{"$f":"IF(ISERROR(Dados!F12),\"-\",Dados!F12)","v":42396.68},null,{"$f":"IF(ISERROR(Dados!C12),\"-\",Dados!C12)","v":"JBS"},{"$f":"IF(ISERROR(Dados!G12),\"-\",Dados!G12)","v":25647},null,{"$f":"IF(ISERROR(Dados!C12),\"-\",Dados!C12)","v":"JBS"},{"$f":"IF(ISERROR(Dados!X12),\"0\",Dados!X12)","v":11988.8},null,{"$f":"IF(ISERROR(Dados!C12),\"-\",Dados!C12)","v":"JBS"},{"$f":"IF(ISERROR(Dados!AB12),\"0\",Dados!AB12)","v":2.9926871632401405E-3},null,{"$f":"IF(ISERROR(Dados!C12),\"-\",Dados!C12)","v":"JBS"},{"$f":"IF(ISERROR(Dados!S12),\"-\",Dados!S12)","v":1.6530853261590051},null,{"$f":"IF(ISERROR(Dados!C12),\"-\",Dados!C12)","v":"JBS"},{"$f":"IF(ISERROR(Dados!T12),\"-\",Dados!T12)","v":1682.4079111111114},null,{"$f":"IF(ISERROR(Dados!C12),\"-\",Dados!C12)","v":"JBS"},{"$f":"IF(ISERROR(Dados!U12),\"0\",Dados!U12)","v":8.038E-3},null,{"$f":"IF(ISERROR(Dados!C12),\"-\",Dados!C12)","v":"JBS"},{"$f":"IF(ISERROR(IF(Dados!Z12<0,\"-\",Dados!Z12)),\"-\",IF(Dados!Z12<0,\"-\",Dados!Z12))","v":7.4748456058988397},null,{"$f":"IF(ISERROR(Dados!C12),\"-\",Dados!C12)","v":"JBS"},{"$f":"IF(ISERROR(Dados!AC12),\"-1000000\",Dados!AC12)","v":18.5},null,{"$f":"IF(ISERROR(Dados!C12),\"-\",Dados!C12)","v":"JBS"},{"$f":"IF(ISERROR(Dados!AD12),\"-1000000\",Dados!AD12)","v":63.2},null,{"$f":"IF(ISERROR(Dados!C12),\"-\",Dados!C12)","v":"JBS"},{"$f":"IF(ISERROR(Dados!AC12),\"-\",Dados!AC12)","v":18.5},null,{"$f":"IF(ISERROR(Dados!C12),\"-\",Dados!C12)","v":"JBS"},{"$f":"IF(ISERROR(Dados!AD12),\"-\",Dados!AD12)","v":63.2}]
[{"$f":"IF(ISERROR(Dados!C64),\"-\",Dados!C64)","v":"Tran Paulist"},{"$f":"IF(ISERROR(Dados!F64),\"-\",Dados!F64)","v":13109.59},null,{"$f":"IF(ISERROR(Dados!C64),\"-\",Dados!C64)","v":"Tran Paulist"},{"$f":"IF(ISERROR(Dados!G64),\"-\",Dados!G64)","v":11068.65},null,{"$f":"IF(ISERROR(Dados!C64),\"-\",Dados!C64)","v":"Tran Paulist"},{"$f":"IF(ISERROR(Dados!X64),\"0\",Dados!X64)","v":2468.1},null,{"$f":"IF(ISERROR(Dados!C64),\"-\",Dados!C64)","v":"Tran Paulist"},{"$f":"IF(ISERROR(Dados!AB64),\"0\",Dados!AB64)","v":0.15746182756287574},null,{"$f":"IF(ISERROR(Dados!C64),\"-\",Dados!C64)","v":"Tran Paulist"},{"$f":"IF(ISERROR(Dados!S64),\"-\",Dados!S64)","v":1.1479790164112156},null,{"$f":"IF(ISERROR(Dados!C64),\"-\",Dados!C64)","v":"Tran Paulist"},{"$f":"IF(ISERROR(Dados!T64),\"-\",Dados!T64)","v":6.7528195379636173},null,{"$f":"IF(ISERROR(Dados!C64),\"-\",Dados!C64)","v":"Tran Paulist"},{"$f":"IF(ISERROR(Dados!U64),\"0\",Dados!U64)","v":0.16922399999999999},null,{"$f":"IF(ISERROR(Dados!C64),\"-\",Dados!C64)","v":"Tran Paulist"},{"$f":"IF(ISERROR(IF(Dados!Z64<0,\"-\",Dados!Z64)),\"-\",IF(Dados!Z64<0,\"-\",Dados!Z64))","v":6.2505198330699727},null,{"$f":"IF(ISERROR(Dados!C64),\"-\",Dados!C64)","v":"Tran Paulist"},{"$f":"IF(ISERROR(Dados!AC64),\"-1000000\",Dados!AC64)","v":-0.1},null,{"$f":"IF(ISERROR(Dados!C64),\"-\",Dados!C64)","v":"Tran Paulist"},{"$f":"IF(ISERROR(Dados!AD64),\"-1000000\",Dados!AD64)","v":38.1},null,{"$f":"IF(ISERROR(Dados!C64),\"-\",Dados!C64)","v":"Tran Paulist"},{"$f":"IF(ISERROR(Dados!AC64),\"-\",Dados!AC64)","v":-0.1},null,{"$f":"IF(ISERROR(Dados!C64),\"-\",Dados!C64)","v":"Tran Paulist"},{"$f":"IF(ISERROR(Dados!AD64),\"-\",Dados!AD64)","v":38.1}]
[{"$f":"IF(ISERROR(Dados!C86),\"-\",Dados!C86)","v":"ItauUnibanco"},{"$f":"IF(ISERROR(Dados!F86),\"-\",Dados!F86)","v":311968.57},null,{"$f":"IF(ISERROR(Dados!C86),\"-\",Dados!C86)","v":"ItauUnibanco"},{"$f":"IF(ISERROR(Dados!G86),\"-\",Dados!G86)","v":131756.57},null,{"$f":"IF(ISERROR(Dados!C86),\"-\",Dados!C86)","v":"ItauUnibanco"},{"$f":"IF(ISERROR(Dados!X86),\"0\",Dados!X86)","v":"0"},null,{"$f":"IF(ISERROR(Dados!C86),\"-\",Dados!C86)","v":"ItauUnibanco"},{"$f":"IF(ISERROR(Dados!AB86),\"0\",Dados!AB86)","v":6.4406327855399015E-2},null,{"$f":"IF(ISERROR(Dados!C86),\"-\",Dados!C86)","v":"ItauUnibanco"},{"$f":"IF(ISERROR(Dados!S86),\"-\",Dados!S86)","v":2.5401202993520551},null,{"$f":"IF(ISERROR(Dados!C86),\"-\",Dados!C86)","v":"ItauUnibanco"},{"$f":"IF(ISERROR(Dados!T86),\"-\",Dados!T86)","v":13.399203681965552},null,{"$f":"IF(ISERROR(Dados!C86),\"-\",Dados!C86)","v":"ItauUnibanco"},{"$f":"IF(ISERROR(Dados!U86),\"0\",Dados!U86)","v":0.18209},null,{"$f":"IF(ISERROR(Dados!C86),\"-\",Dados!C86)","v":"ItauUnibanco"},{"$f":"IF(ISERROR(IF(Dados!Z86<0,\"-\",Dados!Z86)),\"-\",IF(Dados!Z86<0,\"-\",Dados!Z86))","v":"-"},null,{"$f":"IF(ISERROR(Dados!C86),\"-\",Dados!C86)","v":"ItauUnibanco"},{"$f":"IF(ISERROR(Dados!AC86),\"-1000000\",Dados!AC86)","v":-2.2000000000000002},null,{"$f":"IF(ISERROR(Dados!C86),\"-\",Dados!C86)","v":"ItauUnibanco"},{"$f":"IF(ISERROR(Dados!AD86),\"-1000000\",Dados!AD86)","v":36.1},null,{"$f":"IF(ISERROR(Dados!C86),\"-\",Dados!C86)","v":"ItauUnibanco"},{"$f":"IF(ISERROR(Dados!AC86),\"-\",Dados!AC86)","v":-2.2000000000000002},null,{"$f":"IF(ISERROR(Dados!C86),\"-\",Dados!C86)","v":"ItauUnibanco"},{"$f":"IF(ISERROR(Dados!AD86),\"-\",Dados!AD86)","v":36.1}]
[{"$f":"IF(ISERROR(Dados!C37),\"-\",Dados!C37)","v":"Log Com Prop"},{"$f":"IF(ISERROR(Dados!F37),\"-\",Dados!F37)","v":1252.8599999999999},null,{"$f":"IF(ISERROR(Dados!C37),\"-\",Dados!C37)","v":"Log Com Prop"},{"$f":"IF(ISERROR(Dados!G37),\"-\",Dados!G37)","v":2147.27},null,{"$f":"IF(ISERROR(Dados!C37),\"-\",Dados!C37)","v":"Log Com Prop"},{"$f":"IF(ISERROR(Dados!X37),\"0\",Dados!X37)","v":83.7},null,{"$f":"IF(ISERROR(Dados!C37),\"-\",Dados!C37)","v":"Log Com Prop"},{"$f":"IF(ISERROR(Dados!AB37),\"0\",Dados!AB37)","v":2.8335169133023642E-3},null,{"$f":"IF(ISERROR(Dados!C37),\"-\",Dados!C37)","v":"Log Com Prop"},{"$f":"IF(ISERROR(Dados!S37),\"-\",Dados!S37)","v":0.58347077917541812},null,{"$f":"IF(ISERROR(Dados!C37),\"-\",Dados!C37)","v":"Log Com Prop"},{"$f":"IF(ISERROR(Dados!T37),\"-\",Dados!T37)","v":28.808215681765919},null,{"$f":"IF(ISERROR(Dados!C37),\"-\",Dados!C37)","v":"Log Com Prop"},{"$f":"IF(ISERROR(Dados!U37),\"0\",Dados!U37)","v":2.3311000000000002E-2},null,{"$f":"IF(ISERROR(Dados!C37),\"-\",Dados!C37)","v":"Log Com Prop"},{"$f":"IF(ISERROR(IF(Dados!Z37<0,\"-\",Dados!Z37)),\"-\",IF(Dados!Z37<0,\"-\",Dados!Z37))","v":24.404838709677417},null,{"$f":"IF(ISERROR(Dados!C37),\"-\",Dados!C37)","v":"Log Com Prop"},{"$f":"IF(ISERROR(Dados!AC37),\"-1000000\",Dados!AC37)","v":-2.8},null,{"$f":"IF(ISERROR(Dados!C37),\"-\",Dados!C37)","v":"Log Com Prop"},{"$f":"IF(ISERROR(Dados!AD37),\"-1000000\",Dados!AD37)","v":"-1000000"},null,{"$f":"IF(ISERROR(Dados!C37),\"-\",Dados!C37)","v":"Log Com Prop"},{"$f":"IF(ISERROR(Dados!AC37),\"-\",Dados!AC37)","v":-2.8},null,{"$f":"IF(ISERROR(Dados!C37),\"-\",Dados!C37)","v":"Log Com Prop"},{"$f":"IF(ISERROR(Dados!AD37),\"-\",Dados!AD37)","v":"-"}]
[{"$f":"IF(ISERROR(Dados!C228),\"-\",Dados!C228)","v":"Ecorodovias"},{"$f":"IF(ISERROR(Dados!F228),\"-\",Dados!F228)","v":5336.48},null,{"$f":"IF(ISERROR(Dados!C228),\"-\",Dados!C228)","v":"Ecorodovias"},{"$f":"IF(ISERROR(Dados!G228),\"-\",Dados!G228)","v":640.32000000000005},null,{"$f":"IF(ISERROR(Dados!C228),\"-\",Dados!C228)","v":"Ecorodovias"},{"$f":"IF(ISERROR(Dados!X228),\"0\",Dados!X228)","v":1617.9},null,{"$f":"IF(ISERROR(Dados!C228),\"-\",Dados!C228)","v":"Ecorodovias"},{"$f":"IF(ISERROR(Dados!AB228),\"0\",Dados!AB228)","v":7.5298698767727046E-2},null,{"$f":"IF(ISERROR(Dados!C228),\"-\",Dados!C228)","v":"Ecorodovias"},{"$f":"IF(ISERROR(Dados!S228),\"-\",Dados!S228)","v":8.3340832240129927},null,{"$f":"IF(ISERROR(Dados!C228),\"-\",Dados!C228)","v":"Ecorodovias"},{"$f":"IF(ISERROR(Dados!T228),\"-\",Dados!T228)","v":14.249232784171316},null,{"$f":"IF(ISERROR(Dados!C228),\"-\",Dados!C228)","v":"Ecorodovias"},{"$f":"IF(ISERROR(Dados!U228),\"0\",Dados!U228)","v":0.50508900000000001},null,{"$f":"IF(ISERROR(Dados!C228),\"-\",Dados!C228)","v":"Ecorodovias"},{"$f":"IF(ISERROR(IF(Dados!Z228<0,\"-\",Dados!Z228)),\"-\",IF(Dados!Z228<0,\"-\",Dados!Z228))","v":6.2630440694727723},null,{"$f":"IF(ISERROR(Dados!C228),\"-\",Dados!C228)","v":"Ecorodovias"},{"$f":"IF(ISERROR(Dados!AC228),\"-1000000\",Dados!AC228)","v":-15.3},null,{"$f":"IF(ISERROR(Dados!C228),\"-\",Dados!C228)","v":"Ecorodovias"},{"$f":"IF(ISERROR(Dados!AD228),\"-1000000\",Dados!AD228)","v":-15.9},null,{"$f":"IF(ISERROR(Dados!C228),\"-\",Dados!C228)","v":"Ecorodovias"},{"$f":"IF(ISERROR(Dados!AC228),\"-\",Dados!AC228)","v":-15.3},null,{"$f":"IF(ISERROR(Dados!C228),\"-\",Dados!C228)","v":"Ecorodovias"},{"$f":"IF(ISERROR(Dados!AD228),\"-\",Dados!AD228)","v":-15.9}]
[{"$f":"IF(ISERROR(Dados!C123),\"-\",Dados!C123)","v":"Fleury"},{"$f":"IF(ISERROR(Dados!F123),\"-\",Dados!F123)","v":6448.71},null,{"$f":"IF(ISERROR(Dados!C123),\"-\",Dados!C123)","v":"Fleury"},{"$f":"IF(ISERROR(Dados!G123),\"-\",Dados!G123)","v":1749.96},null,{"$f":"IF(ISERROR(Dados!C123),\"-\",Dados!C123)","v":"Fleury"},{"$f":"IF(ISERROR(Dados!X123),\"0\",Dados!X123)","v":692.5},null,{"$f":"IF(ISERROR(Dados!C123),\"-\",Dados!C123)","v":"Fleury"},{"$f":"IF(ISERROR(Dados!AB123),\"0\",Dados!AB123)","v":4.7018706066794751E-2},null,{"$f":"IF(ISERROR(Dados!C123),\"-\",Dados!C123)","v":"Fleury"},{"$f":"IF(ISERROR(Dados!S123),\"-\",Dados!S123)","v":3.6850586299115404},null,{"$f":"IF(ISERROR(Dados!C123),\"-\",Dados!C123)","v":"Fleury"},{"$f":"IF(ISERROR(Dados!T123),\"-\",Dados!T123)","v":19.447827739075361},null,{"$f":"IF(ISERROR(Dados!C123),\"-\",Dados!C123)","v":"Fleury"},{"$f":"IF(ISERROR(Dados!U123),\"0\",Dados!U123)","v":0.19430399999999998},null,{"$f":"IF(ISERROR(Dados!C123),\"-\",Dados!C123)","v":"Fleury"},{"$f":"IF(ISERROR(IF(Dados!Z123<0,\"-\",Dados!Z123)),\"-\",IF(Dados!Z123<0,\"-\",Dados!Z123))","v":9.9624606498194943},null,{"$f":"IF(ISERROR(Dados!C123),\"-\",Dados!C123)","v":"Fleury"},{"$f":"IF(ISERROR(Dados!AC123),\"-1000000\",Dados!AC123)","v":5.6},null,{"$f":"IF(ISERROR(Dados!C123),\"-\",Dados!C123)","v":"Fleury"},{"$f":"IF(ISERROR(Dados!AD123),\"-1000000\",Dados!AD123)","v":-25.7},null,{"$f":"IF(ISERROR(Dados!C123),\"-\",Dados!C123)","v":"Fleury"},{"$f":"IF(ISERROR(Dados!AC123),\"-\",Dados!AC123)","v":5.6},null,{"$f":"IF(ISERROR(Dados!C123),\"-\",Dados!C123)","v":"Fleury"},{"$f":"IF(ISERROR(Dados!AD123),\"-\",Dados!AD123)","v":-25.7}]
[{"$f":"IF(ISERROR(Dados!C172),\"-\",Dados!C172)","v":"Petrobras BR"},{"$f":"IF(ISERROR(Dados!F172),\"-\",Dados!F172)","v":26969.75},null,{"$f":"IF(ISERROR(Dados!C172),\"-\",Dados!C172)","v":"Petrobras BR"},{"$f":"IF(ISERROR(Dados!G172),\"-\",Dados!G172)","v":9686},null,{"$f":"IF(ISERROR(Dados!C172),\"-\",Dados!C172)","v":"Petrobras BR"},{"$f":"IF(ISERROR(Dados!X172),\"0\",Dados!X172)","v":2803},null,{"$f":"IF(ISERROR(Dados!C172),\"-\",Dados!C172)","v":"Petrobras BR"},{"$f":"IF(ISERROR(Dados!AB172),\"0\",Dados!AB172)","v":3.833925045653E-2},null,{"$f":"IF(ISERROR(Dados!C172),\"-\",Dados!C172)","v":"Petrobras BR"},{"$f":"IF(ISERROR(Dados!S172),\"-\",Dados!S172)","v":2.7844053272764815},null,{"$f":"IF(ISERROR(Dados!C172),\"-\",Dados!C172)","v":"Petrobras BR"},{"$f":"IF(ISERROR(Dados!T172),\"-\",Dados!T172)","v":8.4465236454744748},null,{"$f":"IF(ISERROR(Dados!C172),\"-\",Dados!C172)","v":"Petrobras BR"},{"$f":"IF(ISERROR(Dados!U172),\"0\",Dados!U172)","v":0.36177199999999998},null,{"$f":"IF(ISERROR(Dados!C172),\"-\",Dados!C172)","v":"Petrobras BR"},{"$f":"IF(ISERROR(IF(Dados!Z172<0,\"-\",Dados!Z172)),\"-\",IF(Dados!Z172<0,\"-\",Dados!Z172))","v":10.518997502675704},null,{"$f":"IF(ISERROR(Dados!C172),\"-\",Dados!C172)","v":"Petrobras BR"},{"$f":"IF(ISERROR(Dados!AC172),\"-1000000\",Dados!AC172)","v":-5.3},null,{"$f":"IF(ISERROR(Dados!C172),\"-\",Dados!C172)","v":"Petrobras BR"},{"$f":"IF(ISERROR(Dados!AD172),\"-1000000\",Dados!AD172)","v":44.4},null,{"$f":"IF(ISERROR(Dados!C172),\"-\",Dados!C172)","v":"Petrobras BR"},{"$f":"IF(ISERROR(Dados!AC172),\"-\",Dados!AC172)","v":-5.3},null,{"$f":"IF(ISERROR(Dados!C172),\"-\",Dados!C172)","v":"Petrobras BR"},{"$f":"IF(ISERROR(Dados!AD172),\"-\",Dados!AD172)","v":44.4}]
[{"$f":"IF(ISERROR(Dados!C221),\"-\",Dados!C221)","v":"Coteminas"},{"$f":"IF(ISERROR(Dados!F221),\"-\",Dados!F221)","v":333.22},null,{"$f":"IF(ISERROR(Dados!C221),\"-\",Dados!C221)","v":"Coteminas"},{"$f":"IF(ISERROR(Dados!G221),\"-\",Dados!G221)","v":852.11},null,{"$f":"IF(ISERROR(Dados!C221),\"-\",Dados!C221)","v":"Coteminas"},{"$f":"IF(ISERROR(Dados!X221),\"0\",Dados!X221)","v":"0"},null,{"$f":"IF(ISERROR(Dados!C221),\"-\",Dados!C221)","v":"Coteminas"},{"$f":"IF(ISERROR(Dados!AB221),\"0\",Dados!AB221)","v":"0"},null,{"$f":"IF(ISERROR(Dados!C221),\"-\",Dados!C221)","v":"Coteminas"},{"$f":"IF(ISERROR(Dados!S221),\"-\",Dados!S221)","v":0.37391228831958312},null,{"$f":"IF(ISERROR(Dados!C221),\"-\",Dados!C221)","v":"Coteminas"},{"$f":"IF(ISERROR(Dados!T221),\"-\",Dados!T221)","v":4.8613732072017086},null,{"$f":"IF(ISERROR(Dados!C221),\"-\",Dados!C221)","v":"Coteminas"},{"$f":"IF(ISERROR(Dados!U221),\"0\",Dados!U221)","v":6.2826000000000007E-2},null,{"$f":"IF(ISERROR(Dados!C221),\"-\",Dados!C221)","v":"Coteminas"},{"$f":"IF(ISERROR(IF(Dados!Z221<0,\"-\",Dados!Z221)),\"-\",IF(Dados!Z221<0,\"-\",Dados!Z221))","v":4.6102566180443008},null,{"$f":"IF(ISERROR(Dados!C221),\"-\",Dados!C221)","v":"Coteminas"},{"$f":"IF(ISERROR(Dados!AC221),\"-1000000\",Dados!AC221)","v":3.9},null,{"$f":"IF(ISERROR(Dados!C221),\"-\",Dados!C221)","v":"Coteminas"},{"$f":"IF(ISERROR(Dados!AD221),\"-1000000\",Dados!AD221)","v":66.7},null,{"$f":"IF(ISERROR(Dados!C221),\"-\",Dados!C221)","v":"Coteminas"},{"$f":"IF(ISERROR(Dados!AC221),\"-\",Dados!AC221)","v":3.9},null,{"$f":"IF(ISERROR(Dados!C221),\"-\",Dados!C221)","v":"Coteminas"},{"$f":"IF(ISERROR(Dados!AD221),\"-\",Dados!AD221)","v":66.7}]
[{"$f":"IF(ISERROR(Dados!C186),\"-\",Dados!C186)","v":"Bombril"},{"$f":"IF(ISERROR(Dados!F186),\"-\",Dados!F186)","v":122.73},null,{"$f":"IF(ISERROR(Dados!C186),\"-\",Dados!C186)","v":"Bombril"},{"$f":"IF(ISERROR(Dados!G186),\"-\",Dados!G186)","v":-241.39},null,{"$f":"IF(ISERROR(Dados!C186),\"-\",Dados!C186)","v":"Bombril"},{"$f":"IF(ISERROR(Dados!X186),\"0\",Dados!X186)","v":19.2},null,{"$f":"IF(ISERROR(Dados!C186),\"-\",Dados!C186)","v":"Bombril"},{"$f":"IF(ISERROR(Dados!AB186),\"0\",Dados!AB186)","v":"0"},null,{"$f":"IF(ISERROR(Dados!C186),\"-\",Dados!C186)","v":"Bombril"},{"$f":"IF(ISERROR(Dados!S186),\"-\",Dados!S186)","v":"-"},null,{"$f":"IF(ISERROR(Dados!C186),\"-\",Dados!C186)","v":"Bombril"},{"$f":"IF(ISERROR(Dados!T186),\"-\",Dados!T186)","v":1.7490031352429813},null,{"$f":"IF(ISERROR(Dados!C186),\"-\",Dados!C186)","v":"Bombril"},{"$f":"IF(ISERROR(Dados!U186),\"0\",Dados!U186)","v":"0"},null,{"$f":"IF(ISERROR(Dados!C186),\"-\",Dados!C186)","v":"Bombril"},{"$f":"IF(ISERROR(IF(Dados!Z186<0,\"-\",Dados!Z186)),\"-\",IF(Dados!Z186<0,\"-\",Dados!Z186))","v":20.519166666666667},null,{"$f":"IF(ISERROR(Dados!C186),\"-\",Dados!C186)","v":"Bombril"},{"$f":"IF(ISERROR(Dados!AC186),\"-1000000\",Dados!AC186)","v":-15},null,{"$f":"IF(ISERROR(Dados!C186),\"-\",Dados!C186)","v":"Bombril"},{"$f":"IF(ISERROR(Dados!AD186),\"-1000000\",Dados!AD186)","v":-54},null,{"$f":"IF(ISERROR(Dados!C186),\"-\",Dados!C186)","v":"Bombril"},{"$f":"IF(ISERROR(Dados!AC186),\"-\",Dados!AC186)","v":-15},null,{"$f":"IF(ISERROR(Dados!C186),\"-\",Dados!C186)","v":"Bombril"},{"$f":"IF(ISERROR(Dados!AD186),\"-\",Dados!AD186)","v":-54}]
[{"$f":"IF(ISERROR(Dados!C124),\"-\",Dados!C124)","v":"Sanepar"},{"$f":"IF(ISERROR(Dados!F124),\"-\",Dados!F124)","v":7967.41},null,{"$f":"IF(ISERROR(Dados!C124),\"-\",Dados!C124)","v":"Sanepar"},{"$f":"IF(ISERROR(Dados!G124),\"-\",Dados!G124)","v":5717.19},null,{"$f":"IF(ISERROR(Dados!C124),\"-\",Dados!C124)","v":"Sanepar"},{"$f":"IF(ISERROR(Dados!X124),\"0\",Dados!X124)","v":1642},null,{"$f":"IF(ISERROR(Dados!C124),\"-\",Dados!C124)","v":"Sanepar"},{"$f":"IF(ISERROR(Dados!AB124),\"0\",Dados!AB124)","v":3.7452572416883274E-2},null,{"$f":"IF(ISERROR(Dados!C124),\"-\",Dados!C124)","v":"Sanepar"},{"$f":"IF(ISERROR(Dados!S124),\"-\",Dados!S124)","v":1.2247129271547736},null,{"$f":"IF(ISERROR(Dados!C124),\"-\",Dados!C124)","v":"Sanepar"},{"$f":"IF(ISERROR(Dados!T124),\"-\",Dados!T124)","v":7.8453724971708372},null,{"$f":"IF(ISERROR(Dados!C124),\"-\",Dados!C124)","v":"Sanepar"},{"$f":"IF(ISERROR(Dados!U124),\"0\",Dados!U124)","v":0.17320900000000003},null,{"$f":"IF(ISERROR(Dados!C124),\"-\",Dados!C124)","v":"Sanepar"},{"$f":"IF(ISERROR(IF(Dados!Z124<0,\"-\",Dados!Z124)),\"-\",IF(Dados!Z124<0,\"-\",Dados!Z124))","v":6.341110840438489},null,{"$f":"IF(ISERROR(Dados!C124),\"-\",Dados!C124)","v":"Sanepar"},{"$f":"IF(ISERROR(Dados!AC124),\"-1000000\",Dados!AC124)","v":1.6},null,{"$f":"IF(ISERROR(Dados!C124),\"-\",Dados!C124)","v":"Sanepar"},{"$f":"IF(ISERROR(Dados!AD124),\"-1000000\",Dados!AD124)","v":31.2},null,{"$f":"IF(ISERROR(Dados!C124),\"-\",Dados!C124)","v":"Sanepar"},{"$f":"IF(ISERROR(Dados!AC124),\"-\",Dados!AC124)","v":1.6},null,{"$f":"IF(ISERROR(Dados!C124),\"-\",Dados!C124)","v":"Sanepar"},{"$f":"IF(ISERROR(Dados!AD124),\"-\",Dados!AD124)","v":31.2}]
[{"$f":"IF(ISERROR(Dados!C87),\"-\",Dados!C87)","v":"Bradesco"},{"$f":"IF(ISERROR(Dados!F87),\"-\",Dados!F87)","v":270348.51},null,{"$f":"IF(ISERROR(Dados!C87),\"-\",Dados!C87)","v":"Bradesco"},{"$f":"IF(ISERROR(Dados!G87),\"-\",Dados!G87)","v":121120.87},null,{"$f":"IF(ISERROR(Dados!C87),\"-\",Dados!C87)","v":"Bradesco"},{"$f":"IF(ISERROR(Dados!X87),\"0\",Dados!X87)","v":"0"},null,{"$f":"IF(ISERROR(Dados!C87),\"-\",Dados!C87)","v":"Bradesco"},{"$f":"IF(ISERROR(Dados!AB87),\"0\",Dados!AB87)","v":2.398089784182646E-2},null,{"$f":"IF(ISERROR(Dados!C87),\"-\",Dados!C87)","v":"Bradesco"},{"$f":"IF(ISERROR(Dados!S87),\"-\",Dados!S87)","v":2.3730210007573427},null,{"$f":"IF(ISERROR(Dados!C87),\"-\",Dados!C87)","v":"Bradesco"},{"$f":"IF(ISERROR(Dados!T87),\"-\",Dados!T87)","v":15.060158299602564},null,{"$f":"IF(ISERROR(Dados!C87),\"-\",Dados!C87)","v":"Bradesco"},{"$f":"IF(ISERROR(Dados!U87),\"0\",Dados!U87)","v":0.17338899999999999},null,{"$f":"IF(ISERROR(Dados!C87),\"-\",Dados!C87)","v":"Bradesco"},{"$f":"IF(ISERROR(IF(Dados!Z87<0,\"-\",Dados!Z87)),\"-\",IF(Dados!Z87<0,\"-\",Dados!Z87))","v":"-"},null,{"$f":"IF(ISERROR(Dados!C87),\"-\",Dados!C87)","v":"Bradesco"},{"$f":"IF(ISERROR(Dados!AC87),\"-1000000\",Dados!AC87)","v":-0.7},null,{"$f":"IF(ISERROR(Dados!C87),\"-\",Dados!C87)","v":"Bradesco"},{"$f":"IF(ISERROR(Dados!AD87),\"-1000000\",Dados!AD87)","v":44.5},null,{"$f":"IF(ISERROR(Dados!C87),\"-\",Dados!C87)","v":"Bradesco"},{"$f":"IF(ISERROR(Dados!AC87),\"-\",Dados!AC87)","v":-0.7},null,{"$f":"IF(ISERROR(Dados!C87),\"-\",Dados!C87)","v":"Bradesco"},{"$f":"IF(ISERROR(Dados!AD87),\"-\",Dados!AD87)","v":44.5}]
[{"$f":"IF(ISERROR(Dados!C92),\"-\",Dados!C92)","v":"Banestes"},{"$f":"IF(ISERROR(Dados!F92),\"-\",Dados!F92)","v":1565.28},null,{"$f":"IF(ISERROR(Dados!C92),\"-\",Dados!C92)","v":"Banestes"},{"$f":"IF(ISERROR(Dados!G92),\"-\",Dados!G92)","v":1492.01},null,{"$f":"IF(ISERROR(Dados!C92),\"-\",Dados!C92)","v":"Banestes"},{"$f":"IF(ISERROR(Dados!X92),\"0\",Dados!X92)","v":"0"},null,{"$f":"IF(ISERROR(Dados!C92),\"-\",Dados!C92)","v":"Banestes"},{"$f":"IF(ISERROR(Dados!AB92),\"0\",Dados!AB92)","v":4.9601349279362161E-2},null,{"$f":"IF(ISERROR(Dados!C92),\"-\",Dados!C92)","v":"Banestes"},{"$f":"IF(ISERROR(Dados!S92),\"-\",Dados!S92)","v":1.0417403636704847},null,{"$f":"IF(ISERROR(Dados!C92),\"-\",Dados!C92)","v":"Banestes"},{"$f":"IF(ISERROR(Dados!T92),\"-\",Dados!T92)","v":8.5843755661106815},null,{"$f":"IF(ISERROR(Dados!C92),\"-\",Dados!C92)","v":"Banestes"},{"$f":"IF(ISERROR(Dados!U92),\"0\",Dados!U92)","v":0.12993399999999999},null,{"$f":"IF(ISERROR(Dados!C92),\"-\",Dados!C92)","v":"Banestes"},{"$f":"IF(ISERROR(IF(Dados!Z92<0,\"-\",Dados!Z92)),\"-\",IF(Dados!Z92<0,\"-\",Dados!Z92))","v":"-"},null,{"$f":"IF(ISERROR(Dados!C92),\"-\",Dados!C92)","v":"Banestes"},{"$f":"IF(ISERROR(Dados!AC92),\"-1000000\",Dados!AC92)","v":1},null,{"$f":"IF(ISERROR(Dados!C92),\"-\",Dados!C92)","v":"Banestes"},{"$f":"IF(ISERROR(Dados!AD92),\"-1000000\",Dados!AD92)","v":47.6},null,{"$f":"IF(ISERROR(Dados!C92),\"-\",Dados!C92)","v":"Banestes"},{"$f":"IF(ISERROR(Dados!AC92),\"-\",Dados!AC92)","v":1},null,{"$f":"IF(ISERROR(Dados!C92),\"-\",Dados!C92)","v":"Banestes"},{"$f":"IF(ISERROR(Dados!AD92),\"-\",Dados!AD92)","v":47.6}]
[{"$f":"IF(ISERROR(Dados!C227),\"-\",Dados!C227)","v":"Triunfo Part"},{"$f":"IF(ISERROR(Dados!F227),\"-\",Dados!F227)","v":301.89999999999998},null,{"$f":"IF(ISERROR(Dados!C227),\"-\",Dados!C227)","v":"Triunfo Part"},{"$f":"IF(ISERROR(Dados!G227),\"-\",Dados!G227)","v":1170.1199999999999},null,{"$f":"IF(ISERROR(Dados!C227),\"-\",Dados!C227)","v":"Triunfo Part"},{"$f":"IF(ISERROR(Dados!X227),\"0\",Dados!X227)","v":"0"},null,{"$f":"IF(ISERROR(Dados!C227),\"-\",Dados!C227)","v":"Triunfo Part"},{"$f":"IF(ISERROR(Dados!AB227),\"0\",Dados!AB227)","v":0.26568400132494202},null,{"$f":"IF(ISERROR(Dados!C227),\"-\",Dados!C227)","v":"Triunfo Part"},{"$f":"IF(ISERROR(Dados!S227),\"-\",Dados!S227)","v":0.2580095887601272},null,{"$f":"IF(ISERROR(Dados!C227),\"-\",Dados!C227)","v":"Triunfo Part"},{"$f":"IF(ISERROR(Dados!T227),\"-\",Dados!T227)","v":0.40668442109517072},null,{"$f":"IF(ISERROR(Dados!C227),\"-\",Dados!C227)","v":"Triunfo Part"},{"$f":"IF(ISERROR(Dados!U227),\"0\",Dados!U227)","v":1.2558830000000001},null,{"$f":"IF(ISERROR(Dados!C227),\"-\",Dados!C227)","v":"Triunfo Part"},{"$f":"IF(ISERROR(IF(Dados!Z227<0,\"-\",Dados!Z227)),\"-\",IF(Dados!Z227<0,\"-\",Dados!Z227))","v":1.5786547294667186},null,{"$f":"IF(ISERROR(Dados!C227),\"-\",Dados!C227)","v":"Triunfo Part"},{"$f":"IF(ISERROR(Dados!AC227),\"-1000000\",Dados!AC227)","v":-3.9},null,{"$f":"IF(ISERROR(Dados!C227),\"-\",Dados!C227)","v":"Triunfo Part"},{"$f":"IF(ISERROR(Dados!AD227),\"-1000000\",Dados!AD227)","v":-43.9},null,{"$f":"IF(ISERROR(Dados!C227),\"-\",Dados!C227)","v":"Triunfo Part"},{"$f":"IF(ISERROR(Dados!AC227),\"-\",Dados!AC227)","v":-3.9},null,{"$f":"IF(ISERROR(Dados!C227),\"-\",Dados!C227)","v":"Triunfo Part"},{"$f":"IF(ISERROR(Dados!AD227),\"-\",Dados!AD227)","v":-43.9}]
[{"$f":"IF(ISERROR(Dados!C169),\"-\",Dados!C169)","v":"Suzano Papel"},{"$f":"IF(ISERROR(Dados!F169),\"-\",Dados!F169)","v":62806.26},null,{"$f":"IF(ISERROR(Dados!C169),\"-\",Dados!C169)","v":"Suzano Papel"},{"$f":"IF(ISERROR(Dados!G169),\"-\",Dados!G169)","v":12012.01},null,{"$f":"IF(ISERROR(Dados!C169),\"-\",Dados!C169)","v":"Suzano Papel"},{"$f":"IF(ISERROR(Dados!X169),\"0\",Dados!X169)","v":6569},null,{"$f":"IF(ISERROR(Dados!C169),\"-\",Dados!C169)","v":"Suzano Papel"},{"$f":"IF(ISERROR(Dados!AB169),\"0\",Dados!AB169)","v":3.3469593636048381E-3},null,{"$f":"IF(ISERROR(Dados!C169),\"-\",Dados!C169)","v":"Suzano Papel"},{"$f":"IF(ISERROR(Dados!S169),\"-\",Dados!S169)","v":5.2286201518313753},null,{"$f":"IF(ISERROR(Dados!C169),\"-\",Dados!C169)","v":"Suzano Papel"},{"$f":"IF(ISERROR(Dados!T169),\"-\",Dados!T169)","v":197.29294951938178},null,{"$f":"IF(ISERROR(Dados!C169),\"-\",Dados!C169)","v":"Suzano Papel"},{"$f":"IF(ISERROR(Dados!U169),\"0\",Dados!U169)","v":2.7403E-2},null,{"$f":"IF(ISERROR(Dados!C169),\"-\",Dados!C169)","v":"Suzano Papel"},{"$f":"IF(ISERROR(IF(Dados!Z169<0,\"-\",Dados!Z169)),\"-\",IF(Dados!Z169<0,\"-\",Dados!Z169))","v":11.121594002131223},null,{"$f":"IF(ISERROR(Dados!C169),\"-\",Dados!C169)","v":"Suzano Papel"},{"$f":"IF(ISERROR(Dados!AC169),\"-1000000\",Dados!AC169)","v":-2.2999999999999998},null,{"$f":"IF(ISERROR(Dados!C169),\"-\",Dados!C169)","v":"Suzano Papel"},{"$f":"IF(ISERROR(Dados!AD169),\"-1000000\",Dados!AD169)","v":150.30000000000001},null,{"$f":"IF(ISERROR(Dados!C169),\"-\",Dados!C169)","v":"Suzano Papel"},{"$f":"IF(ISERROR(Dados!AC169),\"-\",Dados!AC169)","v":-2.2999999999999998},null,{"$f":"IF(ISERROR(Dados!C169),\"-\",Dados!C169)","v":"Suzano Papel"},{"$f":"IF(ISERROR(Dados!AD169),\"-\",Dados!AD169)","v":150.30000000000001}]
[{"$f":"IF(ISERROR(Dados!C94),\"-\",Dados!C94)","v":"B3"},{"$f":"IF(ISERROR(Dados!F94),\"-\",Dados!F94)","v":65660.210000000006},null,{"$f":"IF(ISERROR(Dados!C94),\"-\",Dados!C94)","v":"B3"},{"$f":"IF(ISERROR(Dados!G94),\"-\",Dados!G94)","v":25032.97},null,{"$f":"IF(ISERROR(Dados!C94),\"-\",Dados!C94)","v":"B3"},{"$f":"IF(ISERROR(Dados!X94),\"0\",Dados!X94)","v":3345.2},null,{"$f":"IF(ISERROR(Dados!C94),\"-\",Dados!C94)","v":"B3"},{"$f":"IF(ISERROR(Dados!AB94),\"0\",Dados!AB94)","v":2.3284421417476425E-2},null,{"$f":"IF(ISERROR(Dados!C94),\"-\",Dados!C94)","v":"B3"},{"$f":"IF(ISERROR(Dados!S94),\"-\",Dados!S94)","v":2.622949570905889},null,{"$f":"IF(ISERROR(Dados!C94),\"-\",Dados!C94)","v":"B3"},{"$f":"IF(ISERROR(Dados!T94),\"-\",Dados!T94)","v":31.454900701337518},null,{"$f":"IF(ISERROR(Dados!C94),\"-\",Dados!C94)","v":"B3"},{"$f":"IF(ISERROR(Dados!U94),\"0\",Dados!U94)","v":8.5905000000000009E-2},null,{"$f":"IF(ISERROR(Dados!C94),\"-\",Dados!C94)","v":"B3"},{"$f":"IF(ISERROR(IF(Dados!Z94<0,\"-\",Dados!Z94)),\"-\",IF(Dados!Z94<0,\"-\",Dados!Z94))","v":18.930783211766116},null,{"$f":"IF(ISERROR(Dados!C94),\"-\",Dados!C94)","v":"B3"},{"$f":"IF(ISERROR(Dados!AC94),\"-1000000\",Dados!AC94)","v":-1.5},null,{"$f":"IF(ISERROR(Dados!C94),\"-\",Dados!C94)","v":"B3"},{"$f":"IF(ISERROR(Dados!AD94),\"-1000000\",Dados!AD94)","v":46.2},null,{"$f":"IF(ISERROR(Dados!C94),\"-\",Dados!C94)","v":"B3"},{"$f":"IF(ISERROR(Dados!AC94),\"-\",Dados!AC94)","v":-1.5},null,{"$f":"IF(ISERROR(Dados!C94),\"-\",Dados!C94)","v":"B3"},{"$f":"IF(ISERROR(Dados!AD94),\"-\",Dados!AD94)","v":46.2}]
[{"$f":"IF(ISERROR(Dados!C16),\"-\",Dados!C16)","v":"Minupar"},{"$f":"IF(ISERROR(Dados!F16),\"-\",Dados!F16)","v":14.91},null,{"$f":"IF(ISERROR(Dados!C16),\"-\",Dados!C16)","v":"Minupar"},{"$f":"IF(ISERROR(Dados!G16),\"-\",Dados!G16)","v":-359.63},null,{"$f":"IF(ISERROR(Dados!C16),\"-\",Dados!C16)","v":"Minupar"},{"$f":"IF(ISERROR(Dados!X16),\"0\",Dados!X16)","v":"0"},null,{"$f":"IF(ISERROR(Dados!C16),\"-\",Dados!C16)","v":"Minupar"},{"$f":"IF(ISERROR(Dados!AB16),\"0\",Dados!AB16)","v":"0"},null,{"$f":"IF(ISERROR(Dados!C16),\"-\",Dados!C16)","v":"Minupar"},{"$f":"IF(ISERROR(Dados!S16),\"-\",Dados!S16)","v":"-"},null,{"$f":"IF(ISERROR(Dados!C16),\"-\",Dados!C16)","v":"Minupar"},{"$f":"IF(ISERROR(Dados!T16),\"-\",Dados!T16)","v":"-"},null,{"$f":"IF(ISERROR(Dados!C16),\"-\",Dados!C16)","v":"Minupar"},{"$f":"IF(ISERROR(Dados!U16),\"0\",Dados!U16)","v":"0"},null,{"$f":"IF(ISERROR(Dados!C16),\"-\",Dados!C16)","v":"Minupar"},{"$f":"IF(ISERROR(IF(Dados!Z16<0,\"-\",Dados!Z16)),\"-\",IF(Dados!Z16<0,\"-\",Dados!Z16))","v":"-"},null,{"$f":"IF(ISERROR(Dados!C16),\"-\",Dados!C16)","v":"Minupar"},{"$f":"IF(ISERROR(Dados!AC16),\"-1000000\",Dados!AC16)","v":-6.7},null,{"$f":"IF(ISERROR(Dados!C16),\"-\",Dados!C16)","v":"Minupar"},{"$f":"IF(ISERROR(Dados!AD16),\"-1000000\",Dados!AD16)","v":-26.3},null,{"$f":"IF(ISERROR(Dados!C16),\"-\",Dados!C16)","v":"Minupar"},{"$f":"IF(ISERROR(Dados!AC16),\"-\",Dados!AC16)","v":-6.7},null,{"$f":"IF(ISERROR(Dados!C16),\"-\",Dados!C16)","v":"Minupar"},{"$f":"IF(ISERROR(Dados!AD16),\"-\",Dados!AD16)","v":-26.3}]
[{"$f":"IF(ISERROR(Dados!C156),\"-\",Dados!C156)","v":"Sao Carlos"},{"$f":"IF(ISERROR(Dados!F156),\"-\",Dados!F156)","v":1894.22},null,{"$f":"IF(ISERROR(Dados!C156),\"-\",Dados!C156)","v":"Sao Carlos"},{"$f":"IF(ISERROR(Dados!G156),\"-\",Dados!G156)","v":1400.28},null,{"$f":"IF(ISERROR(Dados!C156),\"-\",Dados!C156)","v":"Sao Carlos"},{"$f":"IF(ISERROR(Dados!X156),\"0\",Dados!X156)","v":191.8},null,{"$f":"IF(ISERROR(Dados!C156),\"-\",Dados!C156)","v":"Sao Carlos"},{"$f":"IF(ISERROR(Dados!AB156),\"0\",Dados!AB156)","v":1.3108297874586901E-2},null,{"$f":"IF(ISERROR(Dados!C156),\"-\",Dados!C156)","v":"Sao Carlos"},{"$f":"IF(ISERROR(Dados!S156),\"-\",Dados!S156)","v":1.3527434513097381},null,{"$f":"IF(ISERROR(Dados!C156),\"-\",Dados!C156)","v":"Sao Carlos"},{"$f":"IF(ISERROR(Dados!T156),\"-\",Dados!T156)","v":121.03639616613417},null,{"$f":"IF(ISERROR(Dados!C156),\"-\",Dados!C156)","v":"Sao Carlos"},{"$f":"IF(ISERROR(Dados!U156),\"0\",Dados!U156)","v":1.2115000000000001E-2},null,{"$f":"IF(ISERROR(Dados!C156),\"-\",Dados!C156)","v":"Sao Carlos"},{"$f":"IF(ISERROR(IF(Dados!Z156<0,\"-\",Dados!Z156)),\"-\",IF(Dados!Z156<0,\"-\",Dados!Z156))","v":14.915886339937435},null,{"$f":"IF(ISERROR(Dados!C156),\"-\",Dados!C156)","v":"Sao Carlos"},{"$f":"IF(ISERROR(Dados!AC156),\"-1000000\",Dados!AC156)","v":-1.5},null,{"$f":"IF(ISERROR(Dados!C156),\"-\",Dados!C156)","v":"Sao Carlos"},{"$f":"IF(ISERROR(Dados!AD156),\"-1000000\",Dados!AD156)","v":-21.4},null,{"$f":"IF(ISERROR(Dados!C156),\"-\",Dados!C156)","v":"Sao Carlos"},{"$f":"IF(ISERROR(Dados!AC156),\"-\",Dados!AC156)","v":-1.5},null,{"$f":"IF(ISERROR(Dados!C156),\"-\",Dados!C156)","v":"Sao Carlos"},{"$f":"IF(ISERROR(Dados!AD156),\"-\",Dados!AD156)","v":-21.4}]
[{"$f":"IF(ISERROR(Dados!C231),\"-\",Dados!C231)","v":"JSL"},{"$f":"IF(ISERROR(Dados!F231),\"-\",Dados!F231)","v":2034.74},null,{"$f":"IF(ISERROR(Dados!C231),\"-\",Dados!C231)","v":"JSL"},{"$f":"IF(ISERROR(Dados!G231),\"-\",Dados!G231)","v":753.15},null,{"$f":"IF(ISERROR(Dados!C231),\"-\",Dados!C231)","v":"JSL"},{"$f":"IF(ISERROR(Dados!X231),\"0\",Dados!X231)","v":1597.5},null,{"$f":"IF(ISERROR(Dados!C231),\"-\",Dados!C231)","v":"JSL"},{"$f":"IF(ISERROR(Dados!AB231),\"0\",Dados!AB231)","v":"0"},null,{"$f":"IF(ISERROR(Dados!C231),\"-\",Dados!C231)","v":"JSL"},{"$f":"IF(ISERROR(Dados!S231),\"-\",Dados!S231)","v":2.7016408417977829},null,{"$f":"IF(ISERROR(Dados!C231),\"-\",Dados!C231)","v":"JSL"},{"$f":"IF(ISERROR(Dados!T231),\"-\",Dados!T231)","v":15.500425078083341},null,{"$f":"IF(ISERROR(Dados!C231),\"-\",Dados!C231)","v":"JSL"},{"$f":"IF(ISERROR(Dados!U231),\"0\",Dados!U231)","v":0.159057},null,{"$f":"IF(ISERROR(Dados!C231),\"-\",Dados!C231)","v":"JSL"},{"$f":"IF(ISERROR(IF(Dados!Z231<0,\"-\",Dados!Z231)),\"-\",IF(Dados!Z231<0,\"-\",Dados!Z231))","v":5.7507680751173718},null,{"$f":"IF(ISERROR(Dados!C231),\"-\",Dados!C231)","v":"JSL"},{"$f":"IF(ISERROR(Dados!AC231),\"-1000000\",Dados!AC231)","v":2.6},null,{"$f":"IF(ISERROR(Dados!C231),\"-\",Dados!C231)","v":"JSL"},{"$f":"IF(ISERROR(Dados!AD231),\"-1000000\",Dados!AD231)","v":23},null,{"$f":"IF(ISERROR(Dados!C231),\"-\",Dados!C231)","v":"JSL"},{"$f":"IF(ISERROR(Dados!AC231),\"-\",Dados!AC231)","v":2.6},null,{"$f":"IF(ISERROR(Dados!C231),\"-\",Dados!C231)","v":"JSL"},{"$f":"IF(ISERROR(Dados!AD231),\"-\",Dados!AD231)","v":23}]
[{"$f":"IF(ISERROR(Dados!C235),\"-\",Dados!C235)","v":"Gol"},{"$f":"IF(ISERROR(Dados!F235),\"-\",Dados!F235)","v":9005.92},null,{"$f":"IF(ISERROR(Dados!C235),\"-\",Dados!C235)","v":"Gol"},{"$f":"IF(ISERROR(Dados!G235),\"-\",Dados!G235)","v":-4985.41},null,{"$f":"IF(ISERROR(Dados!C235),\"-\",Dados!C235)","v":"Gol"},{"$f":"IF(ISERROR(Dados!X235),\"0\",Dados!X235)","v":2068.5},null,{"$f":"IF(ISERROR(Dados!C235),\"-\",Dados!C235)","v":"Gol"},{"$f":"IF(ISERROR(Dados!AB235),\"0\",Dados!AB235)","v":"0"},null,{"$f":"IF(ISERROR(Dados!C235),\"-\",Dados!C235)","v":"Gol"},{"$f":"IF(ISERROR(Dados!S235),\"-\",Dados!S235)","v":"-"},null,{"$f":"IF(ISERROR(Dados!C235),\"-\",Dados!C235)","v":"Gol"},{"$f":"IF(ISERROR(Dados!T235),\"-\",Dados!T235)","v":"-"},null,{"$f":"IF(ISERROR(Dados!C235),\"-\",Dados!C235)","v":"Gol"},{"$f":"IF(ISERROR(Dados!U235),\"0\",Dados!U235)","v":"0"},null,{"$f":"IF(ISERROR(Dados!C235),\"-\",Dados!C235)","v":"Gol"},{"$f":"IF(ISERROR(IF(Dados!Z235<0,\"-\",Dados!Z235)),\"-\",IF(Dados!Z235<0,\"-\",Dados!Z235))","v":7.148095721537346},null,{"$f":"IF(ISERROR(Dados!C235),\"-\",Dados!C235)","v":"Gol"},{"$f":"IF(ISERROR(Dados!AC235),\"-1000000\",Dados!AC235)","v":-2.9},null,{"$f":"IF(ISERROR(Dados!C235),\"-\",Dados!C235)","v":"Gol"},{"$f":"IF(ISERROR(Dados!AD235),\"-1000000\",Dados!AD235)","v":77.400000000000006},null,{"$f":"IF(ISERROR(Dados!C235),\"-\",Dados!C235)","v":"Gol"},{"$f":"IF(ISERROR(Dados!AC235),\"-\",Dados!AC235)","v":-2.9},null,{"$f":"IF(ISERROR(Dados!C235),\"-\",Dados!C235)","v":"Gol"},{"$f":"IF(ISERROR(Dados!AD235),\"-\",Dados!AD235)","v":77.400000000000006}]
[{"$f":"IF(ISERROR(Dados!C170),\"-\",Dados!C170)","v":"Klabin S/A"},{"$f":"IF(ISERROR(Dados!F170),\"-\",Dados!F170)","v":19339.12},null,{"$f":"IF(ISERROR(Dados!C170),\"-\",Dados!C170)","v":"Klabin S/A"},{"$f":"IF(ISERROR(Dados!G170),\"-\",Dados!G170)","v":6292.24},null,{"$f":"IF(ISERROR(Dados!C170),\"-\",Dados!C170)","v":"Klabin S/A"},{"$f":"IF(ISERROR(Dados!X170),\"0\",Dados!X170)","v":4657},null,{"$f":"IF(ISERROR(Dados!C170),\"-\",Dados!C170)","v":"Klabin S/A"},{"$f":"IF(ISERROR(Dados!AB170),\"0\",Dados!AB170)","v":4.3435275234860737E-2},null,{"$f":"IF(ISERROR(Dados!C170),\"-\",Dados!C170)","v":"Klabin S/A"},{"$f":"IF(ISERROR(Dados!S170),\"-\",Dados!S170)","v":14.244916315970148},null,{"$f":"IF(ISERROR(Dados!C170),\"-\",Dados!C170)","v":"Klabin S/A"},{"$f":"IF(ISERROR(Dados!T170),\"-\",Dados!T170)","v":652.06192521460787},null,{"$f":"IF(ISERROR(Dados!C170),\"-\",Dados!C170)","v":"Klabin S/A"},{"$f":"IF(ISERROR(Dados!U170),\"0\",Dados!U170)","v":2.5824E-2},null,{"$f":"IF(ISERROR(Dados!C170),\"-\",Dados!C170)","v":"Klabin S/A"},{"$f":"IF(ISERROR(IF(Dados!Z170<0,\"-\",Dados!Z170)),\"-\",IF(Dados!Z170<0,\"-\",Dados!Z170))","v":6.8150285591582564},null,{"$f":"IF(ISERROR(Dados!C170),\"-\",Dados!C170)","v":"Klabin S/A"},{"$f":"IF(ISERROR(Dados!AC170),\"-1000000\",Dados!AC170)","v":-5.6},null,{"$f":"IF(ISERROR(Dados!C170),\"-\",Dados!C170)","v":"Klabin S/A"},{"$f":"IF(ISERROR(Dados!AD170),\"-1000000\",Dados!AD170)","v":2.5},null,{"$f":"IF(ISERROR(Dados!C170),\"-\",Dados!C170)","v":"Klabin S/A"},{"$f":"IF(ISERROR(Dados!AC170),\"-\",Dados!AC170)","v":-5.6},null,{"$f":"IF(ISERROR(Dados!C170),\"-\",Dados!C170)","v":"Klabin S/A"},{"$f":"IF(ISERROR(Dados!AD170),\"-\",Dados!AD170)","v":2.5}]
[{"$f":"IF(ISERROR(Dados!C85),\"-\",Dados!C85)","v":"Santander BR"},{"$f":"IF(ISERROR(Dados!F85),\"-\",Dados!F85)","v":163053.46},null,{"$f":"IF(ISERROR(Dados!C85),\"-\",Dados!C85)","v":"Santander BR"},{"$f":"IF(ISERROR(Dados!G85),\"-\",Dados!G85)","v":65233.74},null,{"$f":"IF(ISERROR(Dados!C85),\"-\",Dados!C85)","v":"Santander BR"},{"$f":"IF(ISERROR(Dados!X85),\"0\",Dados!X85)","v":"0"},null,{"$f":"IF(ISERROR(Dados!C85),\"-\",Dados!C85)","v":"Santander BR"},{"$f":"IF(ISERROR(Dados!AB85),\"0\",Dados!AB85)","v":3.7057416628877425E-2},null,{"$f":"IF(ISERROR(Dados!C85),\"-\",Dados!C85)","v":"Santander BR"},{"$f":"IF(ISERROR(Dados!S85),\"-\",Dados!S85)","v":5.0363402602702223},null,{"$f":"IF(ISERROR(Dados!C85),\"-\",Dados!C85)","v":"Santander BR"},{"$f":"IF(ISERROR(Dados!T85),\"-\",Dados!T85)","v":27.004377809742603},null,{"$f":"IF(ISERROR(Dados!C85),\"-\",Dados!C85)","v":"Santander BR"},{"$f":"IF(ISERROR(Dados!U85),\"0\",Dados!U85)","v":0.198157},null,{"$f":"IF(ISERROR(Dados!C85),\"-\",Dados!C85)","v":"Santander BR"},{"$f":"IF(ISERROR(IF(Dados!Z85<0,\"-\",Dados!Z85)),\"-\",IF(Dados!Z85<0,\"-\",Dados!Z85))","v":"-"},null,{"$f":"IF(ISERROR(Dados!C85),\"-\",Dados!C85)","v":"Santander BR"},{"$f":"IF(ISERROR(Dados!AC85),\"-1000000\",Dados!AC85)","v":-2.2000000000000002},null,{"$f":"IF(ISERROR(Dados!C85),\"-\",Dados!C85)","v":"Santander BR"},{"$f":"IF(ISERROR(Dados!AD85),\"-1000000\",Dados!AD85)","v":49.4},null,{"$f":"IF(ISERROR(Dados!C85),\"-\",Dados!C85)","v":"Santander BR"},{"$f":"IF(ISERROR(Dados!AC85),\"-\",Dados!AC85)","v":-2.2000000000000002},null,{"$f":"IF(ISERROR(Dados!C85),\"-\",Dados!C85)","v":"Santander BR"},{"$f":"IF(ISERROR(Dados!AD85),\"-\",Dados!AD85)","v":49.4}]
[{"$f":"IF(ISERROR(Dados!C147),\"-\",Dados!C147)","v":"GPC Part"},{"$f":"IF(ISERROR(Dados!F147),\"-\",Dados!F147)","v":80.48},null,{"$f":"IF(ISERROR(Dados!C147),\"-\",Dados!C147)","v":"GPC Part"},{"$f":"IF(ISERROR(Dados!G147),\"-\",Dados!G147)","v":161.22},null,{"$f":"IF(ISERROR(Dados!C147),\"-\",Dados!C147)","v":"GPC Part"},{"$f":"IF(ISERROR(Dados!X147),\"0\",Dados!X147)","v":65.2},null,{"$f":"IF(ISERROR(Dados!C147),\"-\",Dados!C147)","v":"GPC Part"},{"$f":"IF(ISERROR(Dados!AB147),\"0\",Dados!AB147)","v":"0"},null,{"$f":"IF(ISERROR(Dados!C147),\"-\",Dados!C147)","v":"GPC Part"},{"$f":"IF(ISERROR(Dados!S147),\"-\",Dados!S147)","v":0.49920059545962037},null,{"$f":"IF(ISERROR(Dados!C147),\"-\",Dados!C147)","v":"GPC Part"},{"$f":"IF(ISERROR(Dados!T147),\"-\",Dados!T147)","v":11.835458823529413},null,{"$f":"IF(ISERROR(Dados!C147),\"-\",Dados!C147)","v":"GPC Part"},{"$f":"IF(ISERROR(Dados!U147),\"0\",Dados!U147)","v":4.1346999999999995E-2},null,{"$f":"IF(ISERROR(Dados!C147),\"-\",Dados!C147)","v":"GPC Part"},{"$f":"IF(ISERROR(IF(Dados!Z147<0,\"-\",Dados!Z147)),\"-\",IF(Dados!Z147<0,\"-\",Dados!Z147))","v":3.7758128834355826},null,{"$f":"IF(ISERROR(Dados!C147),\"-\",Dados!C147)","v":"GPC Part"},{"$f":"IF(ISERROR(Dados!AC147),\"-1000000\",Dados!AC147)","v":29.7},null,{"$f":"IF(ISERROR(Dados!C147),\"-\",Dados!C147)","v":"GPC Part"},{"$f":"IF(ISERROR(Dados!AD147),\"-1000000\",Dados!AD147)","v":-21.4},null,{"$f":"IF(ISERROR(Dados!C147),\"-\",Dados!C147)","v":"GPC Part"},{"$f":"IF(ISERROR(Dados!AC147),\"-\",Dados!AC147)","v":29.7},null,{"$f":"IF(ISERROR(Dados!C147),\"-\",Dados!C147)","v":"GPC Part"},{"$f":"IF(ISERROR(Dados!AD147),\"-\",Dados!AD147)","v":-21.4}]
[{"$f":"IF(ISERROR(Dados!C110),\"-\",Dados!C110)","v":"Inds Romi"},{"$f":"IF(ISERROR(Dados!F110),\"-\",Dados!F110)","v":688.92},null,{"$f":"IF(ISERROR(Dados!C110),\"-\",Dados!C110)","v":"Inds Romi"},{"$f":"IF(ISERROR(Dados!G110),\"-\",Dados!G110)","v":695.98},null,{"$f":"IF(ISERROR(Dados!C110),\"-\",Dados!C110)","v":"Inds Romi"},{"$f":"IF(ISERROR(Dados!X110),\"0\",Dados!X110)","v":79.3},null,{"$f":"IF(ISERROR(Dados!C110),\"-\",Dados!C110)","v":"Inds Romi"},{"$f":"IF(ISERROR(Dados!AB110),\"0\",Dados!AB110)","v":3.9627242640654939E-2},null,{"$f":"IF(ISERROR(Dados!C110),\"-\",Dados!C110)","v":"Inds Romi"},{"$f":"IF(ISERROR(Dados!S110),\"-\",Dados!S110)","v":0.98986131785396136},null,{"$f":"IF(ISERROR(Dados!C110),\"-\",Dados!C110)","v":"Inds Romi"},{"$f":"IF(ISERROR(Dados!T110),\"-\",Dados!T110)","v":8.2014723809523815},null,{"$f":"IF(ISERROR(Dados!C110),\"-\",Dados!C110)","v":"Inds Romi"},{"$f":"IF(ISERROR(Dados!U110),\"0\",Dados!U110)","v":0.13092499999999999},null,{"$f":"IF(ISERROR(Dados!C110),\"-\",Dados!C110)","v":"Inds Romi"},{"$f":"IF(ISERROR(IF(Dados!Z110<0,\"-\",Dados!Z110)),\"-\",IF(Dados!Z110<0,\"-\",Dados!Z110))","v":11.369382093316521},null,{"$f":"IF(ISERROR(Dados!C110),\"-\",Dados!C110)","v":"Inds Romi"},{"$f":"IF(ISERROR(Dados!AC110),\"-1000000\",Dados!AC110)","v":0.6},null,{"$f":"IF(ISERROR(Dados!C110),\"-\",Dados!C110)","v":"Inds Romi"},{"$f":"IF(ISERROR(Dados!AD110),\"-1000000\",Dados!AD110)","v":54.9},null,{"$f":"IF(ISERROR(Dados!C110),\"-\",Dados!C110)","v":"Inds Romi"},{"$f":"IF(ISERROR(Dados!AC110),\"-\",Dados!AC110)","v":0.6},null,{"$f":"IF(ISERROR(Dados!C110),\"-\",Dados!C110)","v":"Inds Romi"},{"$f":"IF(ISERROR(Dados!AD110),\"-\",Dados!AD110)","v":54.9}]
[{"$f":"IF(ISERROR(Dados!C66),\"-\",Dados!C66)","v":"Energias BR"},{"$f":"IF(ISERROR(Dados!F66),\"-\",Dados!F66)","v":10283.870000000001},null,{"$f":"IF(ISERROR(Dados!C66),\"-\",Dados!C66)","v":"Energias BR"},{"$f":"IF(ISERROR(Dados!G66),\"-\",Dados!G66)","v":8523.7099999999991},null,{"$f":"IF(ISERROR(Dados!C66),\"-\",Dados!C66)","v":"Energias BR"},{"$f":"IF(ISERROR(Dados!X66),\"0\",Dados!X66)","v":2773.2},null,{"$f":"IF(ISERROR(Dados!C66),\"-\",Dados!C66)","v":"Energias BR"},{"$f":"IF(ISERROR(Dados!AB66),\"0\",Dados!AB66)","v":3.4617318188580756E-2},null,{"$f":"IF(ISERROR(Dados!C66),\"-\",Dados!C66)","v":"Energias BR"},{"$f":"IF(ISERROR(Dados!S66),\"-\",Dados!S66)","v":1.2065015210512793},null,{"$f":"IF(ISERROR(Dados!C66),\"-\",Dados!C66)","v":"Energias BR"},{"$f":"IF(ISERROR(Dados!T66),\"-\",Dados!T66)","v":8.0795307150208586},null,{"$f":"IF(ISERROR(Dados!C66),\"-\",Dados!C66)","v":"Energias BR"},{"$f":"IF(ISERROR(Dados!U66),\"0\",Dados!U66)","v":0.15654099999999999},null,{"$f":"IF(ISERROR(Dados!C66),\"-\",Dados!C66)","v":"Energias BR"},{"$f":"IF(ISERROR(IF(Dados!Z66<0,\"-\",Dados!Z66)),\"-\",IF(Dados!Z66<0,\"-\",Dados!Z66))","v":5.540463003028993},null,{"$f":"IF(ISERROR(Dados!C66),\"-\",Dados!C66)","v":"Energias BR"},{"$f":"IF(ISERROR(Dados!AC66),\"-1000000\",Dados!AC66)","v":-1.8},null,{"$f":"IF(ISERROR(Dados!C66),\"-\",Dados!C66)","v":"Energias BR"},{"$f":"IF(ISERROR(Dados!AD66),\"-1000000\",Dados!AD66)","v":32.299999999999997},null,{"$f":"IF(ISERROR(Dados!C66),\"-\",Dados!C66)","v":"Energias BR"},{"$f":"IF(ISERROR(Dados!AC66),\"-\",Dados!AC66)","v":-1.8},null,{"$f":"IF(ISERROR(Dados!C66),\"-\",Dados!C66)","v":"Energias BR"},{"$f":"IF(ISERROR(Dados!AD66),\"-\",Dados!AD66)","v":32.299999999999997}]
[{"$f":"IF(ISERROR(Dados!C75),\"-\",Dados!C75)","v":"Ceee-Gt"},{"$f":"IF(ISERROR(Dados!F75),\"-\",Dados!F75)","v":2277.44},null,{"$f":"IF(ISERROR(Dados!C75),\"-\",Dados!C75)","v":"Ceee-Gt"},{"$f":"IF(ISERROR(Dados!G75),\"-\",Dados!G75)","v":2372.58},null,{"$f":"IF(ISERROR(Dados!C75),\"-\",Dados!C75)","v":"Ceee-Gt"},{"$f":"IF(ISERROR(Dados!X75),\"0\",Dados!X75)","v":329.5},null,{"$f":"IF(ISERROR(Dados!C75),\"-\",Dados!C75)","v":"Ceee-Gt"},{"$f":"IF(ISERROR(Dados!AB75),\"0\",Dados!AB75)","v":"0"},null,{"$f":"IF(ISERROR(Dados!C75),\"-\",Dados!C75)","v":"Ceee-Gt"},{"$f":"IF(ISERROR(Dados!S75),\"-\",Dados!S75)","v":1.0200920516905647},null,{"$f":"IF(ISERROR(Dados!C75),\"-\",Dados!C75)","v":"Ceee-Gt"},{"$f":"IF(ISERROR(Dados!T75),\"-\",Dados!T75)","v":13.958417440452161},null,{"$f":"IF(ISERROR(Dados!C75),\"-\",Dados!C75)","v":"Ceee-Gt"},{"$f":"IF(ISERROR(Dados!U75),\"0\",Dados!U75)","v":7.4162999999999993E-2},null,{"$f":"IF(ISERROR(Dados!C75),\"-\",Dados!C75)","v":"Ceee-Gt"},{"$f":"IF(ISERROR(IF(Dados!Z75<0,\"-\",Dados!Z75)),\"-\",IF(Dados!Z75<0,\"-\",Dados!Z75))","v":7.8162336874051599},null,{"$f":"IF(ISERROR(Dados!C75),\"-\",Dados!C75)","v":"Ceee-Gt"},{"$f":"IF(ISERROR(Dados!AC75),\"-1000000\",Dados!AC75)","v":"-1000000"},null,{"$f":"IF(ISERROR(Dados!C75),\"-\",Dados!C75)","v":"Ceee-Gt"},{"$f":"IF(ISERROR(Dados!AD75),\"-1000000\",Dados!AD75)","v":141.30000000000001},null,{"$f":"IF(ISERROR(Dados!C75),\"-\",Dados!C75)","v":"Ceee-Gt"},{"$f":"IF(ISERROR(Dados!AC75),\"-\",Dados!AC75)","v":"-"},null,{"$f":"IF(ISERROR(Dados!C75),\"-\",Dados!C75)","v":"Ceee-Gt"},{"$f":"IF(ISERROR(Dados!AD75),\"-\",Dados!AD75)","v":141.30000000000001}]
[{"$f":"IF(ISERROR(Dados!C134),\"-\",Dados!C134)","v":"BR Malls Par"},{"$f":"IF(ISERROR(Dados!F134),\"-\",Dados!F134)","v":10587.23},null,{"$f":"IF(ISERROR(Dados!C134),\"-\",Dados!C134)","v":"BR Malls Par"},{"$f":"IF(ISERROR(Dados!G134),\"-\",Dados!G134)","v":10485.1},null,{"$f":"IF(ISERROR(Dados!C134),\"-\",Dados!C134)","v":"BR Malls Par"},{"$f":"IF(ISERROR(Dados!X134),\"0\",Dados!X134)","v":"0"},null,{"$f":"IF(ISERROR(Dados!C134),\"-\",Dados!C134)","v":"BR Malls Par"},{"$f":"IF(ISERROR(Dados!AB134),\"0\",Dados!AB134)","v":"0"},null,{"$f":"IF(ISERROR(Dados!C134),\"-\",Dados!C134)","v":"BR Malls Par"},{"$f":"IF(ISERROR(Dados!S134),\"-\",Dados!S134)","v":1.009740807431498},null,{"$f":"IF(ISERROR(Dados!C134),\"-\",Dados!C134)","v":"BR Malls Par"},{"$f":"IF(ISERROR(Dados!T134),\"-\",Dados!T134)","v":10.440131881785641},null,{"$f":"IF(ISERROR(Dados!C134),\"-\",Dados!C134)","v":"BR Malls Par"},{"$f":"IF(ISERROR(Dados!U134),\"0\",Dados!U134)","v":0.105336},null,{"$f":"IF(ISERROR(Dados!C134),\"-\",Dados!C134)","v":"BR Malls Par"},{"$f":"IF(ISERROR(IF(Dados!Z134<0,\"-\",Dados!Z134)),\"-\",IF(Dados!Z134<0,\"-\",Dados!Z134))","v":"-"},null,{"$f":"IF(ISERROR(Dados!C134),\"-\",Dados!C134)","v":"BR Malls Par"},{"$f":"IF(ISERROR(Dados!AC134),\"-1000000\",Dados!AC134)","v":-5.6},null,{"$f":"IF(ISERROR(Dados!C134),\"-\",Dados!C134)","v":"BR Malls Par"},{"$f":"IF(ISERROR(Dados!AD134),\"-1000000\",Dados!AD134)","v":"-1000000"},null,{"$f":"IF(ISERROR(Dados!C134),\"-\",Dados!C134)","v":"BR Malls Par"},{"$f":"IF(ISERROR(Dados!AC134),\"-\",Dados!AC134)","v":-5.6},null,{"$f":"IF(ISERROR(Dados!C134),\"-\",Dados!C134)","v":"BR Malls Par"},{"$f":"IF(ISERROR(Dados!AD134),\"-\",Dados!AD134)","v":"-"}]
[{"$f":"IF(ISERROR(Dados!C185),\"-\",Dados!C185)","v":"Fer Heringer"},{"$f":"IF(ISERROR(Dados!F185),\"-\",Dados!F185)","v":119.02},null,{"$f":"IF(ISERROR(Dados!C185),\"-\",Dados!C185)","v":"Fer Heringer"},{"$f":"IF(ISERROR(Dados!G185),\"-\",Dados!G185)","v":-621.84},null,{"$f":"IF(ISERROR(Dados!C185),\"-\",Dados!C185)","v":"Fer Heringer"},{"$f":"IF(ISERROR(Dados!X185),\"0\",Dados!X185)","v":-150.4},null,{"$f":"IF(ISERROR(Dados!C185),\"-\",Dados!C185)","v":"Fer Heringer"},{"$f":"IF(ISERROR(Dados!AB185),\"0\",Dados!AB185)","v":"0"},null,{"$f":"IF(ISERROR(Dados!C185),\"-\",Dados!C185)","v":"Fer Heringer"},{"$f":"IF(ISERROR(Dados!S185),\"-\",Dados!S185)","v":"-"},null,{"$f":"IF(ISERROR(Dados!C185),\"-\",Dados!C185)","v":"Fer Heringer"},{"$f":"IF(ISERROR(Dados!T185),\"-\",Dados!T185)","v":"-"},null,{"$f":"IF(ISERROR(Dados!C185),\"-\",Dados!C185)","v":"Fer Heringer"},{"$f":"IF(ISERROR(Dados!U185),\"0\",Dados!U185)","v":-4.7652549999999998},null,{"$f":"IF(ISERROR(Dados!C185),\"-\",Dados!C185)","v":"Fer Heringer"},{"$f":"IF(ISERROR(IF(Dados!Z185<0,\"-\",Dados!Z185)),\"-\",IF(Dados!Z185<0,\"-\",Dados!Z185))","v":"-"},null,{"$f":"IF(ISERROR(Dados!C185),\"-\",Dados!C185)","v":"Fer Heringer"},{"$f":"IF(ISERROR(Dados!AC185),\"-1000000\",Dados!AC185)","v":-2.6},null,{"$f":"IF(ISERROR(Dados!C185),\"-\",Dados!C185)","v":"Fer Heringer"},{"$f":"IF(ISERROR(Dados!AD185),\"-1000000\",Dados!AD185)","v":-13.3},null,{"$f":"IF(ISERROR(Dados!C185),\"-\",Dados!C185)","v":"Fer Heringer"},{"$f":"IF(ISERROR(Dados!AC185),\"-\",Dados!AC185)","v":-2.6},null,{"$f":"IF(ISERROR(Dados!C185),\"-\",Dados!C185)","v":"Fer Heringer"},{"$f":"IF(ISERROR(Dados!AD185),\"-\",Dados!AD185)","v":-13.3}]
[{"$f":"IF(ISERROR(Dados!C117),\"-\",Dados!C117)","v":"Locamerica"},{"$f":"IF(ISERROR(Dados!F117),\"-\",Dados!F117)","v":5721.68},null,{"$f":"IF(ISERROR(Dados!C117),\"-\",Dados!C117)","v":"Locamerica"},{"$f":"IF(ISERROR(Dados!G117),\"-\",Dados!G117)","v":2565.5500000000002},null,{"$f":"IF(ISERROR(Dados!C117),\"-\",Dados!C117)","v":"Locamerica"},{"$f":"IF(ISERROR(Dados!X117),\"0\",Dados!X117)","v":840.7},null,{"$f":"IF(ISERROR(Dados!C117),\"-\",Dados!C117)","v":"Locamerica"},{"$f":"IF(ISERROR(Dados!AB117),\"0\",Dados!AB117)","v":1.3247857272689139E-2},null,{"$f":"IF(ISERROR(Dados!C117),\"-\",Dados!C117)","v":"Locamerica"},{"$f":"IF(ISERROR(Dados!S117),\"-\",Dados!S117)","v":2.2301906140983414},null,{"$f":"IF(ISERROR(Dados!C117),\"-\",Dados!C117)","v":"Locamerica"},{"$f":"IF(ISERROR(Dados!T117),\"-\",Dados!T117)","v":30.241361152219881},null,{"$f":"IF(ISERROR(Dados!C117),\"-\",Dados!C117)","v":"Locamerica"},{"$f":"IF(ISERROR(Dados!U117),\"0\",Dados!U117)","v":0.39149500000000004},null,{"$f":"IF(ISERROR(Dados!C117),\"-\",Dados!C117)","v":"Locamerica"},{"$f":"IF(ISERROR(IF(Dados!Z117<0,\"-\",Dados!Z117)),\"-\",IF(Dados!Z117<0,\"-\",Dados!Z117))","v":9.101145474009753},null,{"$f":"IF(ISERROR(Dados!C117),\"-\",Dados!C117)","v":"Locamerica"},{"$f":"IF(ISERROR(Dados!AC117),\"-1000000\",Dados!AC117)","v":-0.3},null,{"$f":"IF(ISERROR(Dados!C117),\"-\",Dados!C117)","v":"Locamerica"},{"$f":"IF(ISERROR(Dados!AD117),\"-1000000\",Dados!AD117)","v":111.8},null,{"$f":"IF(ISERROR(Dados!C117),\"-\",Dados!C117)","v":"Locamerica"},{"$f":"IF(ISERROR(Dados!AC117),\"-\",Dados!AC117)","v":-0.3},null,{"$f":"IF(ISERROR(Dados!C117),\"-\",Dados!C117)","v":"Locamerica"},{"$f":"IF(ISERROR(Dados!AD117),\"-\",Dados!AD117)","v":111.8}]
[{"$f":"IF(ISERROR(Dados!C243),\"-\",Dados!C243)","v":"Marcopolo"},{"$f":"IF(ISERROR(Dados!F243),\"-\",Dados!F243)","v":3564.63},null,{"$f":"IF(ISERROR(Dados!C243),\"-\",Dados!C243)","v":"Marcopolo"},{"$f":"IF(ISERROR(Dados!G243),\"-\",Dados!G243)","v":2105.62},null,{"$f":"IF(ISERROR(Dados!C243),\"-\",Dados!C243)","v":"Marcopolo"},{"$f":"IF(ISERROR(Dados!X243),\"0\",Dados!X243)","v":362.1},null,{"$f":"IF(ISERROR(Dados!C243),\"-\",Dados!C243)","v":"Marcopolo"},{"$f":"IF(ISERROR(Dados!AB243),\"0\",Dados!AB243)","v":9.5072980926491669E-3},null,{"$f":"IF(ISERROR(Dados!C243),\"-\",Dados!C243)","v":"Marcopolo"},{"$f":"IF(ISERROR(Dados!S243),\"-\",Dados!S243)","v":1.7464558657307587},null,{"$f":"IF(ISERROR(Dados!C243),\"-\",Dados!C243)","v":"Marcopolo"},{"$f":"IF(ISERROR(Dados!T243),\"-\",Dados!T243)","v":19.693527553151611},null,{"$f":"IF(ISERROR(Dados!C243),\"-\",Dados!C243)","v":"Marcopolo"},{"$f":"IF(ISERROR(Dados!U243),\"0\",Dados!U243)","v":9.9007000000000012E-2},null,{"$f":"IF(ISERROR(Dados!C243),\"-\",Dados!C243)","v":"Marcopolo"},{"$f":"IF(ISERROR(IF(Dados!Z243<0,\"-\",Dados!Z243)),\"-\",IF(Dados!Z243<0,\"-\",Dados!Z243))","v":12.54899199116266},null,{"$f":"IF(ISERROR(Dados!C243),\"-\",Dados!C243)","v":"Marcopolo"},{"$f":"IF(ISERROR(Dados!AC243),\"-1000000\",Dados!AC243)","v":-3.7},null,{"$f":"IF(ISERROR(Dados!C243),\"-\",Dados!C243)","v":"Marcopolo"},{"$f":"IF(ISERROR(Dados!AD243),\"-1000000\",Dados!AD243)","v":0.9},null,{"$f":"IF(ISERROR(Dados!C243),\"-\",Dados!C243)","v":"Marcopolo"},{"$f":"IF(ISERROR(Dados!AC243),\"-\",Dados!AC243)","v":-3.7},null,{"$f":"IF(ISERROR(Dados!C243),\"-\",Dados!C243)","v":"Marcopolo"},{"$f":"IF(ISERROR(Dados!AD243),\"-\",Dados!AD243)","v":0.9}]
[{"$f":"IF(ISERROR(Dados!C63),\"-\",Dados!C63)","v":"Celpa"},{"$f":"IF(ISERROR(Dados!F63),\"-\",Dados!F63)","v":5316.86},null,{"$f":"IF(ISERROR(Dados!C63),\"-\",Dados!C63)","v":"Celpa"},{"$f":"IF(ISERROR(Dados!G63),\"-\",Dados!G63)","v":3006.08},null,{"$f":"IF(ISERROR(Dados!C63),\"-\",Dados!C63)","v":"Celpa"},{"$f":"IF(ISERROR(Dados!X63),\"0\",Dados!X63)","v":"0"},null,{"$f":"IF(ISERROR(Dados!C63),\"-\",Dados!C63)","v":"Celpa"},{"$f":"IF(ISERROR(Dados!AB63),\"0\",Dados!AB63)","v":2.4932008742001861E-2},null,{"$f":"IF(ISERROR(Dados!C63),\"-\",Dados!C63)","v":"Celpa"},{"$f":"IF(ISERROR(Dados!S63),\"-\",Dados!S63)","v":4.7913437034277191},null,{"$f":"IF(ISERROR(Dados!C63),\"-\",Dados!C63)","v":"Celpa"},{"$f":"IF(ISERROR(Dados!T63),\"-\",Dados!T63)","v":31.628192274753506},null,{"$f":"IF(ISERROR(Dados!C63),\"-\",Dados!C63)","v":"Celpa"},{"$f":"IF(ISERROR(Dados!U63),\"0\",Dados!U63)","v":0.17632300000000001},null,{"$f":"IF(ISERROR(Dados!C63),\"-\",Dados!C63)","v":"Celpa"},{"$f":"IF(ISERROR(IF(Dados!Z63<0,\"-\",Dados!Z63)),\"-\",IF(Dados!Z63<0,\"-\",Dados!Z63))","v":"-"},null,{"$f":"IF(ISERROR(Dados!C63),\"-\",Dados!C63)","v":"Celpa"},{"$f":"IF(ISERROR(Dados!AC63),\"-1000000\",Dados!AC63)","v":-6.3},null,{"$f":"IF(ISERROR(Dados!C63),\"-\",Dados!C63)","v":"Celpa"},{"$f":"IF(ISERROR(Dados!AD63),\"-1000000\",Dados!AD63)","v":186.8},null,{"$f":"IF(ISERROR(Dados!C63),\"-\",Dados!C63)","v":"Celpa"},{"$f":"IF(ISERROR(Dados!AC63),\"-\",Dados!AC63)","v":-6.3},null,{"$f":"IF(ISERROR(Dados!C63),\"-\",Dados!C63)","v":"Celpa"},{"$f":"IF(ISERROR(Dados!AD63),\"-\",Dados!AD63)","v":186.8}]
[{"$f":"IF(ISERROR(Dados!C218),\"-\",Dados!C218)","v":"Pettenati"},{"$f":"IF(ISERROR(Dados!F218),\"-\",Dados!F218)","v":156.15},null,{"$f":"IF(ISERROR(Dados!C218),\"-\",Dados!C218)","v":"Pettenati"},{"$f":"IF(ISERROR(Dados!G218),\"-\",Dados!G218)","v":191.75},null,{"$f":"IF(ISERROR(Dados!C218),\"-\",Dados!C218)","v":"Pettenati"},{"$f":"IF(ISERROR(Dados!X218),\"0\",Dados!X218)","v":24.1},null,{"$f":"IF(ISERROR(Dados!C218),\"-\",Dados!C218)","v":"Pettenati"},{"$f":"IF(ISERROR(Dados!AB218),\"0\",Dados!AB218)","v":"0"},null,{"$f":"IF(ISERROR(Dados!C218),\"-\",Dados!C218)","v":"Pettenati"},{"$f":"IF(ISERROR(Dados!S218),\"-\",Dados!S218)","v":0.8143389830508474},null,{"$f":"IF(ISERROR(Dados!C218),\"-\",Dados!C218)","v":"Pettenati"},{"$f":"IF(ISERROR(Dados!T218),\"-\",Dados!T218)","v":9.9079631979695435},null,{"$f":"IF(ISERROR(Dados!C218),\"-\",Dados!C218)","v":"Pettenati"},{"$f":"IF(ISERROR(Dados!U218),\"0\",Dados!U218)","v":0.138292},null,{"$f":"IF(ISERROR(Dados!C218),\"-\",Dados!C218)","v":"Pettenati"},{"$f":"IF(ISERROR(IF(Dados!Z218<0,\"-\",Dados!Z218)),\"-\",IF(Dados!Z218<0,\"-\",Dados!Z218))","v":3.6275166666666667},null,{"$f":"IF(ISERROR(Dados!C218),\"-\",Dados!C218)","v":"Pettenati"},{"$f":"IF(ISERROR(Dados!AC218),\"-1000000\",Dados!AC218)","v":7.6},null,{"$f":"IF(ISERROR(Dados!C218),\"-\",Dados!C218)","v":"Pettenati"},{"$f":"IF(ISERROR(Dados!AD218),\"-1000000\",Dados!AD218)","v":-2},null,{"$f":"IF(ISERROR(Dados!C218),\"-\",Dados!C218)","v":"Pettenati"},{"$f":"IF(ISERROR(Dados!AC218),\"-\",Dados!AC218)","v":7.6},null,{"$f":"IF(ISERROR(Dados!C218),\"-\",Dados!C218)","v":"Pettenati"},{"$f":"IF(ISERROR(Dados!AD218),\"-\",Dados!AD218)","v":-2}]
[{"$f":"IF(ISERROR(Dados!C102),\"-\",Dados!C102)","v":"Ppla"},{"$f":"IF(ISERROR(Dados!F102),\"-\",Dados!F102)","v":71.39},null,{"$f":"IF(ISERROR(Dados!C102),\"-\",Dados!C102)","v":"Ppla"},{"$f":"IF(ISERROR(Dados!G102),\"-\",Dados!G102)","v":10.43},null,{"$f":"IF(ISERROR(Dados!C102),\"-\",Dados!C102)","v":"Ppla"},{"$f":"IF(ISERROR(Dados!X102),\"0\",Dados!X102)","v":"0"},null,{"$f":"IF(ISERROR(Dados!C102),\"-\",Dados!C102)","v":"Ppla"},{"$f":"IF(ISERROR(Dados!AB102),\"0\",Dados!AB102)","v":"0"},null,{"$f":"IF(ISERROR(Dados!C102),\"-\",Dados!C102)","v":"Ppla"},{"$f":"IF(ISERROR(Dados!S102),\"-\",Dados!S102)","v":20.533020134228188},null,{"$f":"IF(ISERROR(Dados!C102),\"-\",Dados!C102)","v":"Ppla"},{"$f":"IF(ISERROR(Dados!T102),\"-\",Dados!T102)","v":"-"},null,{"$f":"IF(ISERROR(Dados!C102),\"-\",Dados!C102)","v":"Ppla"},{"$f":"IF(ISERROR(Dados!U102),\"0\",Dados!U102)","v":-1.0307360000000001},null,{"$f":"IF(ISERROR(Dados!C102),\"-\",Dados!C102)","v":"Ppla"},{"$f":"IF(ISERROR(IF(Dados!Z102<0,\"-\",Dados!Z102)),\"-\",IF(Dados!Z102<0,\"-\",Dados!Z102))","v":"-"},null,{"$f":"IF(ISERROR(Dados!C102),\"-\",Dados!C102)","v":"Ppla"},{"$f":"IF(ISERROR(Dados!AC102),\"-1000000\",Dados!AC102)","v":20.9},null,{"$f":"IF(ISERROR(Dados!C102),\"-\",Dados!C102)","v":"Ppla"},{"$f":"IF(ISERROR(Dados!AD102),\"-1000000\",Dados!AD102)","v":94},null,{"$f":"IF(ISERROR(Dados!C102),\"-\",Dados!C102)","v":"Ppla"},{"$f":"IF(ISERROR(Dados!AC102),\"-\",Dados!AC102)","v":20.9},null,{"$f":"IF(ISERROR(Dados!C102),\"-\",Dados!C102)","v":"Ppla"},{"$f":"IF(ISERROR(Dados!AD102),\"-\",Dados!AD102)","v":94}]
[{"$f":"IF(ISERROR(Dados!C3),\"-\",Dados!C3)","v":"SLC Agricola"},{"$f":"IF(ISERROR(Dados!F3),\"-\",Dados!F3)","v":3862.93},null,{"$f":"IF(ISERROR(Dados!C3),\"-\",Dados!C3)","v":"SLC Agricola"},{"$f":"IF(ISERROR(Dados!G3),\"-\",Dados!G3)","v":2598.17},null,{"$f":"IF(ISERROR(Dados!C3),\"-\",Dados!C3)","v":"SLC Agricola"},{"$f":"IF(ISERROR(Dados!X3),\"0\",Dados!X3)","v":769},null,{"$f":"IF(ISERROR(Dados!C3),\"-\",Dados!C3)","v":"SLC Agricola"},{"$f":"IF(ISERROR(Dados!AB3),\"0\",Dados!AB3)","v":5.1771582710533198E-2},null,{"$f":"IF(ISERROR(Dados!C3),\"-\",Dados!C3)","v":"SLC Agricola"},{"$f":"IF(ISERROR(Dados!S3),\"-\",Dados!S3)","v":1.4867867768467806},null,{"$f":"IF(ISERROR(Dados!C3),\"-\",Dados!C3)","v":"SLC Agricola"},{"$f":"IF(ISERROR(Dados!T3),\"-\",Dados!T3)","v":10.132261770491805},null,{"$f":"IF(ISERROR(Dados!C3),\"-\",Dados!C3)","v":"SLC Agricola"},{"$f":"IF(ISERROR(Dados!U3),\"0\",Dados!U3)","v":0.150454},null,{"$f":"IF(ISERROR(Dados!C3),\"-\",Dados!C3)","v":"SLC Agricola"},{"$f":"IF(ISERROR(IF(Dados!Z3<0,\"-\",Dados!Z3)),\"-\",IF(Dados!Z3<0,\"-\",Dados!Z3))","v":6.2747269180754222},null,{"$f":"IF(ISERROR(Dados!C3),\"-\",Dados!C3)","v":"SLC Agricola"},{"$f":"IF(ISERROR(Dados!AC3),\"-1000000\",Dados!AC3)","v":0.1},null,{"$f":"IF(ISERROR(Dados!C3),\"-\",Dados!C3)","v":"SLC Agricola"},{"$f":"IF(ISERROR(Dados!AD3),\"-1000000\",Dados!AD3)","v":61.7},null,{"$f":"IF(ISERROR(Dados!C3),\"-\",Dados!C3)","v":"SLC Agricola"},{"$f":"IF(ISERROR(Dados!AC3),\"-\",Dados!AC3)","v":0.1},null,{"$f":"IF(ISERROR(Dados!C3),\"-\",Dados!C3)","v":"SLC Agricola"},{"$f":"IF(ISERROR(Dados!AD3),\"-\",Dados!AD3)","v":61.7}]
[{"$f":"IF(ISERROR(Dados!C53),\"-\",Dados!C53)","v":"Engie Brasil"},{"$f":"IF(ISERROR(Dados!F53),\"-\",Dados!F53)","v":34848.269999999997},null,{"$f":"IF(ISERROR(Dados!C53),\"-\",Dados!C53)","v":"Engie Brasil"},{"$f":"IF(ISERROR(Dados!G53),\"-\",Dados!G53)","v":6316.19},null,{"$f":"IF(ISERROR(Dados!C53),\"-\",Dados!C53)","v":"Engie Brasil"},{"$f":"IF(ISERROR(Dados!X53),\"0\",Dados!X53)","v":4327.3},null,{"$f":"IF(ISERROR(Dados!C53),\"-\",Dados!C53)","v":"Engie Brasil"},{"$f":"IF(ISERROR(Dados!AB53),\"0\",Dados!AB53)","v":5.7103839014103146E-2},null,{"$f":"IF(ISERROR(Dados!C53),\"-\",Dados!C53)","v":"Engie Brasil"},{"$f":"IF(ISERROR(Dados!S53),\"-\",Dados!S53)","v":5.5172952175282886},null,{"$f":"IF(ISERROR(Dados!C53),\"-\",Dados!C53)","v":"Engie Brasil"},{"$f":"IF(ISERROR(Dados!T53),\"-\",Dados!T53)","v":15.057417549560137},null,{"$f":"IF(ISERROR(Dados!C53),\"-\",Dados!C53)","v":"Engie Brasil"},{"$f":"IF(ISERROR(Dados!U53),\"0\",Dados!U53)","v":0.33877099999999999},null,{"$f":"IF(ISERROR(Dados!C53),\"-\",Dados!C53)","v":"Engie Brasil"},{"$f":"IF(ISERROR(IF(Dados!Z53<0,\"-\",Dados!Z53)),\"-\",IF(Dados!Z53<0,\"-\",Dados!Z53))","v":9.7411115476162955},null,{"$f":"IF(ISERROR(Dados!C53),\"-\",Dados!C53)","v":"Engie Brasil"},{"$f":"IF(ISERROR(Dados!AC53),\"-1000000\",Dados!AC53)","v":3.8},null,{"$f":"IF(ISERROR(Dados!C53),\"-\",Dados!C53)","v":"Engie Brasil"},{"$f":"IF(ISERROR(Dados!AD53),\"-1000000\",Dados!AD53)","v":68.5},null,{"$f":"IF(ISERROR(Dados!C53),\"-\",Dados!C53)","v":"Engie Brasil"},{"$f":"IF(ISERROR(Dados!AC53),\"-\",Dados!AC53)","v":3.8},null,{"$f":"IF(ISERROR(Dados!C53),\"-\",Dados!C53)","v":"Engie Brasil"},{"$f":"IF(ISERROR(Dados!AD53),\"-\",Dados!AD53)","v":68.5}]
[{"$f":"IF(ISERROR(Dados!C196),\"-\",Dados!C196)","v":"Lupatech"},{"$f":"IF(ISERROR(Dados!F196),\"-\",Dados!F196)","v":30.21},null,{"$f":"IF(ISERROR(Dados!C196),\"-\",Dados!C196)","v":"Lupatech"},{"$f":"IF(ISERROR(Dados!G196),\"-\",Dados!G196)","v":84.61},null,{"$f":"IF(ISERROR(Dados!C196),\"-\",Dados!C196)","v":"Lupatech"},{"$f":"IF(ISERROR(Dados!X196),\"0\",Dados!X196)","v":-43.5},null,{"$f":"IF(ISERROR(Dados!C196),\"-\",Dados!C196)","v":"Lupatech"},{"$f":"IF(ISERROR(Dados!AB196),\"0\",Dados!AB196)","v":"0"},null,{"$f":"IF(ISERROR(Dados!C196),\"-\",Dados!C196)","v":"Lupatech"},{"$f":"IF(ISERROR(Dados!S196),\"-\",Dados!S196)","v":0.35703061103888428},null,{"$f":"IF(ISERROR(Dados!C196),\"-\",Dados!C196)","v":"Lupatech"},{"$f":"IF(ISERROR(Dados!T196),\"-\",Dados!T196)","v":"-"},null,{"$f":"IF(ISERROR(Dados!C196),\"-\",Dados!C196)","v":"Lupatech"},{"$f":"IF(ISERROR(Dados!U196),\"0\",Dados!U196)","v":-0.90340900000000002},null,{"$f":"IF(ISERROR(Dados!C196),\"-\",Dados!C196)","v":"Lupatech"},{"$f":"IF(ISERROR(IF(Dados!Z196<0,\"-\",Dados!Z196)),\"-\",IF(Dados!Z196<0,\"-\",Dados!Z196))","v":"-"},null,{"$f":"IF(ISERROR(Dados!C196),\"-\",Dados!C196)","v":"Lupatech"},{"$f":"IF(ISERROR(Dados!AC196),\"-1000000\",Dados!AC196)","v":-7.1},null,{"$f":"IF(ISERROR(Dados!C196),\"-\",Dados!C196)","v":"Lupatech"},{"$f":"IF(ISERROR(Dados!AD196),\"-1000000\",Dados!AD196)","v":-37.200000000000003},null,{"$f":"IF(ISERROR(Dados!C196),\"-\",Dados!C196)","v":"Lupatech"},{"$f":"IF(ISERROR(Dados!AC196),\"-\",Dados!AC196)","v":-7.1},null,{"$f":"IF(ISERROR(Dados!C196),\"-\",Dados!C196)","v":"Lupatech"},{"$f":"IF(ISERROR(Dados!AD196),\"-\",Dados!AD196)","v":-37.200000000000003}]
[{"$f":"IF(ISERROR(Dados!C97),\"-\",Dados!C97)","v":"Banco Pan"},{"$f":"IF(ISERROR(Dados!F97),\"-\",Dados!F97)","v":3722.29},null,{"$f":"IF(ISERROR(Dados!C97),\"-\",Dados!C97)","v":"Banco Pan"},{"$f":"IF(ISERROR(Dados!G97),\"-\",Dados!G97)","v":4095.92},null,{"$f":"IF(ISERROR(Dados!C97),\"-\",Dados!C97)","v":"Banco Pan"},{"$f":"IF(ISERROR(Dados!X97),\"0\",Dados!X97)","v":"0"},null,{"$f":"IF(ISERROR(Dados!C97),\"-\",Dados!C97)","v":"Banco Pan"},{"$f":"IF(ISERROR(Dados!AB97),\"0\",Dados!AB97)","v":"0"},null,{"$f":"IF(ISERROR(Dados!C97),\"-\",Dados!C97)","v":"Banco Pan"},{"$f":"IF(ISERROR(Dados!S97),\"-\",Dados!S97)","v":0.90877936092501799},null,{"$f":"IF(ISERROR(Dados!C97),\"-\",Dados!C97)","v":"Banco Pan"},{"$f":"IF(ISERROR(Dados!T97),\"-\",Dados!T97)","v":16.803392741061753},null,{"$f":"IF(ISERROR(Dados!C97),\"-\",Dados!C97)","v":"Banco Pan"},{"$f":"IF(ISERROR(Dados!U97),\"0\",Dados!U97)","v":6.2295999999999997E-2},null,{"$f":"IF(ISERROR(Dados!C97),\"-\",Dados!C97)","v":"Banco Pan"},{"$f":"IF(ISERROR(IF(Dados!Z97<0,\"-\",Dados!Z97)),\"-\",IF(Dados!Z97<0,\"-\",Dados!Z97))","v":"-"},null,{"$f":"IF(ISERROR(Dados!C97),\"-\",Dados!C97)","v":"Banco Pan"},{"$f":"IF(ISERROR(Dados!AC97),\"-1000000\",Dados!AC97)","v":8.6999999999999993},null,{"$f":"IF(ISERROR(Dados!C97),\"-\",Dados!C97)","v":"Banco Pan"},{"$f":"IF(ISERROR(Dados!AD97),\"-1000000\",Dados!AD97)","v":80.099999999999994},null,{"$f":"IF(ISERROR(Dados!C97),\"-\",Dados!C97)","v":"Banco Pan"},{"$f":"IF(ISERROR(Dados!AC97),\"-\",Dados!AC97)","v":8.6999999999999993},null,{"$f":"IF(ISERROR(Dados!C97),\"-\",Dados!C97)","v":"Banco Pan"},{"$f":"IF(ISERROR(Dados!AD97),\"-\",Dados!AD97)","v":80.099999999999994}]
[{"$f":"IF(ISERROR(Dados!C91),\"-\",Dados!C91)","v":"Brasil"},{"$f":"IF(ISERROR(Dados!F91),\"-\",Dados!F91)","v":135711.06},null,{"$f":"IF(ISERROR(Dados!C91),\"-\",Dados!C91)","v":"Brasil"},{"$f":"IF(ISERROR(Dados!G91),\"-\",Dados!G91)","v":102252.88},null,{"$f":"IF(ISERROR(Dados!C91),\"-\",Dados!C91)","v":"Brasil"},{"$f":"IF(ISERROR(Dados!X91),\"0\",Dados!X91)","v":"0"},null,{"$f":"IF(ISERROR(Dados!C91),\"-\",Dados!C91)","v":"Brasil"},{"$f":"IF(ISERROR(Dados!AB91),\"0\",Dados!AB91)","v":3.0996147255794779E-2},null,{"$f":"IF(ISERROR(Dados!C91),\"-\",Dados!C91)","v":"Brasil"},{"$f":"IF(ISERROR(Dados!S91),\"-\",Dados!S91)","v":1.3272102489435993},null,{"$f":"IF(ISERROR(Dados!C91),\"-\",Dados!C91)","v":"Brasil"},{"$f":"IF(ISERROR(Dados!T91),\"-\",Dados!T91)","v":10.551294804941366},null,{"$f":"IF(ISERROR(Dados!C91),\"-\",Dados!C91)","v":"Brasil"},{"$f":"IF(ISERROR(Dados!U91),\"0\",Dados!U91)","v":0.14442199999999999},null,{"$f":"IF(ISERROR(Dados!C91),\"-\",Dados!C91)","v":"Brasil"},{"$f":"IF(ISERROR(IF(Dados!Z91<0,\"-\",Dados!Z91)),\"-\",IF(Dados!Z91<0,\"-\",Dados!Z91))","v":"-"},null,{"$f":"IF(ISERROR(Dados!C91),\"-\",Dados!C91)","v":"Brasil"},{"$f":"IF(ISERROR(Dados!AC91),\"-1000000\",Dados!AC91)","v":-3.4},null,{"$f":"IF(ISERROR(Dados!C91),\"-\",Dados!C91)","v":"Brasil"},{"$f":"IF(ISERROR(Dados!AD91),\"-1000000\",Dados!AD91)","v":62},null,{"$f":"IF(ISERROR(Dados!C91),\"-\",Dados!C91)","v":"Brasil"},{"$f":"IF(ISERROR(Dados!AC91),\"-\",Dados!AC91)","v":-3.4},null,{"$f":"IF(ISERROR(Dados!C91),\"-\",Dados!C91)","v":"Brasil"},{"$f":"IF(ISERROR(Dados!AD91),\"-\",Dados!AD91)","v":62}]
[{"$f":"IF(ISERROR(Dados!C88),\"-\",Dados!C88)","v":"Porto Seguro"},{"$f":"IF(ISERROR(Dados!F88),\"-\",Dados!F88)","v":17402.86},null,{"$f":"IF(ISERROR(Dados!C88),\"-\",Dados!C88)","v":"Porto Seguro"},{"$f":"IF(ISERROR(Dados!G88),\"-\",Dados!G88)","v":7643.24},null,{"$f":"IF(ISERROR(Dados!C88),\"-\",Dados!C88)","v":"Porto Seguro"},{"$f":"IF(ISERROR(Dados!X88),\"0\",Dados!X88)","v":1493.1},null,{"$f":"IF(ISERROR(Dados!C88),\"-\",Dados!C88)","v":"Porto Seguro"},{"$f":"IF(ISERROR(Dados!AB88),\"0\",Dados!AB88)","v":7.1272767809429011E-2},null,{"$f":"IF(ISERROR(Dados!C88),\"-\",Dados!C88)","v":"Porto Seguro"},{"$f":"IF(ISERROR(Dados!S88),\"-\",Dados!S88)","v":2.2768959485767817},null,{"$f":"IF(ISERROR(Dados!C88),\"-\",Dados!C88)","v":"Porto Seguro"},{"$f":"IF(ISERROR(Dados!T88),\"-\",Dados!T88)","v":13.278343219239751},null,{"$f":"IF(ISERROR(Dados!C88),\"-\",Dados!C88)","v":"Porto Seguro"},{"$f":"IF(ISERROR(Dados!U88),\"0\",Dados!U88)","v":0.16969400000000001},null,{"$f":"IF(ISERROR(Dados!C88),\"-\",Dados!C88)","v":"Porto Seguro"},{"$f":"IF(ISERROR(IF(Dados!Z88<0,\"-\",Dados!Z88)),\"-\",IF(Dados!Z88<0,\"-\",Dados!Z88))","v":4.4142984394883138},null,{"$f":"IF(ISERROR(Dados!C88),\"-\",Dados!C88)","v":"Porto Seguro"},{"$f":"IF(ISERROR(Dados!AC88),\"-1000000\",Dados!AC88)","v":-3.9},null,{"$f":"IF(ISERROR(Dados!C88),\"-\",Dados!C88)","v":"Porto Seguro"},{"$f":"IF(ISERROR(Dados!AD88),\"-1000000\",Dados!AD88)","v":61.5},null,{"$f":"IF(ISERROR(Dados!C88),\"-\",Dados!C88)","v":"Porto Seguro"},{"$f":"IF(ISERROR(Dados!AC88),\"-\",Dados!AC88)","v":-3.9},null,{"$f":"IF(ISERROR(Dados!C88),\"-\",Dados!C88)","v":"Porto Seguro"},{"$f":"IF(ISERROR(Dados!AD88),\"-\",Dados!AD88)","v":61.5}]
[{"$f":"IF(ISERROR(Dados!C40),\"-\",Dados!C40)","v":"Direcional"},{"$f":"IF(ISERROR(Dados!F40),\"-\",Dados!F40)","v":1274.44},null,{"$f":"IF(ISERROR(Dados!C40),\"-\",Dados!C40)","v":"Direcional"},{"$f":"IF(ISERROR(Dados!G40),\"-\",Dados!G40)","v":1282.69},null,{"$f":"IF(ISERROR(Dados!C40),\"-\",Dados!C40)","v":"Direcional"},{"$f":"IF(ISERROR(Dados!X40),\"0\",Dados!X40)","v":-10.7},null,{"$f":"IF(ISERROR(Dados!C40),\"-\",Dados!C40)","v":"Direcional"},{"$f":"IF(ISERROR(Dados!AB40),\"0\",Dados!AB40)","v":7.0619252377514832E-2},null,{"$f":"IF(ISERROR(Dados!C40),\"-\",Dados!C40)","v":"Direcional"},{"$f":"IF(ISERROR(Dados!S40),\"-\",Dados!S40)","v":0.99356662950518038},null,{"$f":"IF(ISERROR(Dados!C40),\"-\",Dados!C40)","v":"Direcional"},{"$f":"IF(ISERROR(Dados!T40),\"-\",Dados!T40)","v":"-"},null,{"$f":"IF(ISERROR(Dados!C40),\"-\",Dados!C40)","v":"Direcional"},{"$f":"IF(ISERROR(Dados!U40),\"0\",Dados!U40)","v":-4.6086000000000002E-2},null,{"$f":"IF(ISERROR(Dados!C40),\"-\",Dados!C40)","v":"Direcional"},{"$f":"IF(ISERROR(IF(Dados!Z40<0,\"-\",Dados!Z40)),\"-\",IF(Dados!Z40<0,\"-\",Dados!Z40))","v":"-"},null,{"$f":"IF(ISERROR(Dados!C40),\"-\",Dados!C40)","v":"Direcional"},{"$f":"IF(ISERROR(Dados!AC40),\"-1000000\",Dados!AC40)","v":3.7},null,{"$f":"IF(ISERROR(Dados!C40),\"-\",Dados!C40)","v":"Direcional"},{"$f":"IF(ISERROR(Dados!AD40),\"-1000000\",Dados!AD40)","v":75.599999999999994},null,{"$f":"IF(ISERROR(Dados!C40),\"-\",Dados!C40)","v":"Direcional"},{"$f":"IF(ISERROR(Dados!AC40),\"-\",Dados!AC40)","v":3.7},null,{"$f":"IF(ISERROR(Dados!C40),\"-\",Dados!C40)","v":"Direcional"},{"$f":"IF(ISERROR(Dados!AD40),\"-\",Dados!AD40)","v":75.599999999999994}]
[{"$f":"IF(ISERROR(Dados!C89),\"-\",Dados!C89)","v":"Sul America"},{"$f":"IF(ISERROR(Dados!F89),\"-\",Dados!F89)","v":12069.68},null,{"$f":"IF(ISERROR(Dados!C89),\"-\",Dados!C89)","v":"Sul America"},{"$f":"IF(ISERROR(Dados!G89),\"-\",Dados!G89)","v":6286.11},null,{"$f":"IF(ISERROR(Dados!C89),\"-\",Dados!C89)","v":"Sul America"},{"$f":"IF(ISERROR(Dados!X89),\"0\",Dados!X89)","v":814.5},null,{"$f":"IF(ISERROR(Dados!C89),\"-\",Dados!C89)","v":"Sul America"},{"$f":"IF(ISERROR(Dados!AB89),\"0\",Dados!AB89)","v":1.5321035851820429E-2},null,{"$f":"IF(ISERROR(Dados!C89),\"-\",Dados!C89)","v":"Sul America"},{"$f":"IF(ISERROR(Dados!S89),\"-\",Dados!S89)","v":5.5025737379714963},null,{"$f":"IF(ISERROR(Dados!C89),\"-\",Dados!C89)","v":"Sul America"},{"$f":"IF(ISERROR(Dados!T89),\"-\",Dados!T89)","v":38.222444969943425},null,{"$f":"IF(ISERROR(Dados!C89),\"-\",Dados!C89)","v":"Sul America"},{"$f":"IF(ISERROR(Dados!U89),\"0\",Dados!U89)","v":0.16045999999999999},null,{"$f":"IF(ISERROR(Dados!C89),\"-\",Dados!C89)","v":"Sul America"},{"$f":"IF(ISERROR(IF(Dados!Z89<0,\"-\",Dados!Z89)),\"-\",IF(Dados!Z89<0,\"-\",Dados!Z89))","v":"-"},null,{"$f":"IF(ISERROR(Dados!C89),\"-\",Dados!C89)","v":"Sul America"},{"$f":"IF(ISERROR(Dados!AC89),\"-1000000\",Dados!AC89)","v":-1.3},null,{"$f":"IF(ISERROR(Dados!C89),\"-\",Dados!C89)","v":"Sul America"},{"$f":"IF(ISERROR(Dados!AD89),\"-1000000\",Dados!AD89)","v":67.7},null,{"$f":"IF(ISERROR(Dados!C89),\"-\",Dados!C89)","v":"Sul America"},{"$f":"IF(ISERROR(Dados!AC89),\"-\",Dados!AC89)","v":-1.3},null,{"$f":"IF(ISERROR(Dados!C89),\"-\",Dados!C89)","v":"Sul America"},{"$f":"IF(ISERROR(Dados!AD89),\"-\",Dados!AD89)","v":67.7}]
[{"$f":"IF(ISERROR(Dados!C31),\"-\",Dados!C31)","v":"BR Pharma"},{"$f":"IF(ISERROR(Dados!F31),\"-\",Dados!F31)","v":157.18},null,{"$f":"IF(ISERROR(Dados!C31),\"-\",Dados!C31)","v":"BR Pharma"},{"$f":"IF(ISERROR(Dados!G31),\"-\",Dados!G31)","v":-268.38},null,{"$f":"IF(ISERROR(Dados!C31),\"-\",Dados!C31)","v":"BR Pharma"},{"$f":"IF(ISERROR(Dados!X31),\"0\",Dados!X31)","v":"0"},null,{"$f":"IF(ISERROR(Dados!C31),\"-\",Dados!C31)","v":"BR Pharma"},{"$f":"IF(ISERROR(Dados!AB31),\"0\",Dados!AB31)","v":"0"},null,{"$f":"IF(ISERROR(Dados!C31),\"-\",Dados!C31)","v":"BR Pharma"},{"$f":"IF(ISERROR(Dados!S31),\"-\",Dados!S31)","v":"-"},null,{"$f":"IF(ISERROR(Dados!C31),\"-\",Dados!C31)","v":"BR Pharma"},{"$f":"IF(ISERROR(Dados!T31),\"-\",Dados!T31)","v":0.14984612377974374},null,{"$f":"IF(ISERROR(Dados!C31),\"-\",Dados!C31)","v":"BR Pharma"},{"$f":"IF(ISERROR(Dados!U31),\"0\",Dados!U31)","v":"0"},null,{"$f":"IF(ISERROR(Dados!C31),\"-\",Dados!C31)","v":"BR Pharma"},{"$f":"IF(ISERROR(IF(Dados!Z31<0,\"-\",Dados!Z31)),\"-\",IF(Dados!Z31<0,\"-\",Dados!Z31))","v":"-"},null,{"$f":"IF(ISERROR(Dados!C31),\"-\",Dados!C31)","v":"BR Pharma"},{"$f":"IF(ISERROR(Dados!AC31),\"-1000000\",Dados!AC31)","v":-6.1},null,{"$f":"IF(ISERROR(Dados!C31),\"-\",Dados!C31)","v":"BR Pharma"},{"$f":"IF(ISERROR(Dados!AD31),\"-1000000\",Dados!AD31)","v":-61.8},null,{"$f":"IF(ISERROR(Dados!C31),\"-\",Dados!C31)","v":"BR Pharma"},{"$f":"IF(ISERROR(Dados!AC31),\"-\",Dados!AC31)","v":-6.1},null,{"$f":"IF(ISERROR(Dados!C31),\"-\",Dados!C31)","v":"BR Pharma"},{"$f":"IF(ISERROR(Dados!AD31),\"-\",Dados!AD31)","v":-61.8}]
[{"$f":"IF(ISERROR(Dados!C79),\"-\",Dados!C79)","v":"CPFL Renovav"},{"$f":"IF(ISERROR(Dados!F79),\"-\",Dados!F79)","v":8325.5499999999993},null,{"$f":"IF(ISERROR(Dados!C79),\"-\",Dados!C79)","v":"CPFL Renovav"},{"$f":"IF(ISERROR(Dados!G79),\"-\",Dados!G79)","v":4147.79},null,{"$f":"IF(ISERROR(Dados!C79),\"-\",Dados!C79)","v":"CPFL Renovav"},{"$f":"IF(ISERROR(Dados!X79),\"0\",Dados!X79)","v":1208.8},null,{"$f":"IF(ISERROR(Dados!C79),\"-\",Dados!C79)","v":"CPFL Renovav"},{"$f":"IF(ISERROR(Dados!AB79),\"0\",Dados!AB79)","v":4.3480610890571798E-4},null,{"$f":"IF(ISERROR(Dados!C79),\"-\",Dados!C79)","v":"CPFL Renovav"},{"$f":"IF(ISERROR(Dados!S79),\"-\",Dados!S79)","v":2.0072280057572831},null,{"$f":"IF(ISERROR(Dados!C79),\"-\",Dados!C79)","v":"CPFL Renovav"},{"$f":"IF(ISERROR(Dados!T79),\"-\",Dados!T79)","v":76.199526359143334},null,{"$f":"IF(ISERROR(Dados!C79),\"-\",Dados!C79)","v":"CPFL Renovav"},{"$f":"IF(ISERROR(Dados!U79),\"0\",Dados!U79)","v":2.8704E-2},null,{"$f":"IF(ISERROR(Dados!C79),\"-\",Dados!C79)","v":"CPFL Renovav"},{"$f":"IF(ISERROR(IF(Dados!Z79<0,\"-\",Dados!Z79)),\"-\",IF(Dados!Z79<0,\"-\",Dados!Z79))","v":10.698856717405691},null,{"$f":"IF(ISERROR(Dados!C79),\"-\",Dados!C79)","v":"CPFL Renovav"},{"$f":"IF(ISERROR(Dados!AC79),\"-1000000\",Dados!AC79)","v":1.7},null,{"$f":"IF(ISERROR(Dados!C79),\"-\",Dados!C79)","v":"CPFL Renovav"},{"$f":"IF(ISERROR(Dados!AD79),\"-1000000\",Dados!AD79)","v":19.7},null,{"$f":"IF(ISERROR(Dados!C79),\"-\",Dados!C79)","v":"CPFL Renovav"},{"$f":"IF(ISERROR(Dados!AC79),\"-\",Dados!AC79)","v":1.7},null,{"$f":"IF(ISERROR(Dados!C79),\"-\",Dados!C79)","v":"CPFL Renovav"},{"$f":"IF(ISERROR(Dados!AD79),\"-\",Dados!AD79)","v":19.7}]
[{"$f":"IF(ISERROR(Dados!C129),\"-\",Dados!C129)","v":"Csu Cardsyst"},{"$f":"IF(ISERROR(Dados!F129),\"-\",Dados!F129)","v":277.38},null,{"$f":"IF(ISERROR(Dados!C129),\"-\",Dados!C129)","v":"Csu Cardsyst"},{"$f":"IF(ISERROR(Dados!G129),\"-\",Dados!G129)","v":240.84},null,{"$f":"IF(ISERROR(Dados!C129),\"-\",Dados!C129)","v":"Csu Cardsyst"},{"$f":"IF(ISERROR(Dados!X129),\"0\",Dados!X129)","v":81.5},null,{"$f":"IF(ISERROR(Dados!C129),\"-\",Dados!C129)","v":"Csu Cardsyst"},{"$f":"IF(ISERROR(Dados!AB129),\"0\",Dados!AB129)","v":5.7971014492753617E-2},null,{"$f":"IF(ISERROR(Dados!C129),\"-\",Dados!C129)","v":"Csu Cardsyst"},{"$f":"IF(ISERROR(Dados!S129),\"-\",Dados!S129)","v":1.1517096412556056},null,{"$f":"IF(ISERROR(Dados!C129),\"-\",Dados!C129)","v":"Csu Cardsyst"},{"$f":"IF(ISERROR(Dados!T129),\"-\",Dados!T129)","v":8.4566387195121955},null,{"$f":"IF(ISERROR(Dados!C129),\"-\",Dados!C129)","v":"Csu Cardsyst"},{"$f":"IF(ISERROR(Dados!U129),\"0\",Dados!U129)","v":0.146505},null,{"$f":"IF(ISERROR(Dados!C129),\"-\",Dados!C129)","v":"Csu Cardsyst"},{"$f":"IF(ISERROR(IF(Dados!Z129<0,\"-\",Dados!Z129)),\"-\",IF(Dados!Z129<0,\"-\",Dados!Z129))","v":3.7203435582822082},null,{"$f":"IF(ISERROR(Dados!C129),\"-\",Dados!C129)","v":"Csu Cardsyst"},{"$f":"IF(ISERROR(Dados!AC129),\"-1000000\",Dados!AC129)","v":-7},null,{"$f":"IF(ISERROR(Dados!C129),\"-\",Dados!C129)","v":"Csu Cardsyst"},{"$f":"IF(ISERROR(Dados!AD129),\"-1000000\",Dados!AD129)","v":-28.5},null,{"$f":"IF(ISERROR(Dados!C129),\"-\",Dados!C129)","v":"Csu Cardsyst"},{"$f":"IF(ISERROR(Dados!AC129),\"-\",Dados!AC129)","v":-7},null,{"$f":"IF(ISERROR(Dados!C129),\"-\",Dados!C129)","v":"Csu Cardsyst"},{"$f":"IF(ISERROR(Dados!AD129),\"-\",Dados!AD129)","v":-28.5}]
[{"$f":"IF(ISERROR(Dados!C175),\"-\",Dados!C175)","v":"Qgep Part"},{"$f":"IF(ISERROR(Dados!F175),\"-\",Dados!F175)","v":4000.53},null,{"$f":"IF(ISERROR(Dados!C175),\"-\",Dados!C175)","v":"Qgep Part"},{"$f":"IF(ISERROR(Dados!G175),\"-\",Dados!G175)","v":3199.59},null,{"$f":"IF(ISERROR(Dados!C175),\"-\",Dados!C175)","v":"Qgep Part"},{"$f":"IF(ISERROR(Dados!X175),\"0\",Dados!X175)","v":573.70000000000005},null,{"$f":"IF(ISERROR(Dados!C175),\"-\",Dados!C175)","v":"Qgep Part"},{"$f":"IF(ISERROR(Dados!AB175),\"0\",Dados!AB175)","v":9.99867517553924E-2},null,{"$f":"IF(ISERROR(Dados!C175),\"-\",Dados!C175)","v":"Qgep Part"},{"$f":"IF(ISERROR(Dados!S175),\"-\",Dados!S175)","v":1.2503279795223763},null,{"$f":"IF(ISERROR(Dados!C175),\"-\",Dados!C175)","v":"Qgep Part"},{"$f":"IF(ISERROR(Dados!T175),\"-\",Dados!T175)","v":9.4081578947368421},null,{"$f":"IF(ISERROR(Dados!C175),\"-\",Dados!C175)","v":"Qgep Part"},{"$f":"IF(ISERROR(Dados!U175),\"0\",Dados!U175)","v":0.13672200000000001},null,{"$f":"IF(ISERROR(Dados!C175),\"-\",Dados!C175)","v":"Qgep Part"},{"$f":"IF(ISERROR(IF(Dados!Z175<0,\"-\",Dados!Z175)),\"-\",IF(Dados!Z175<0,\"-\",Dados!Z175))","v":4.1138487014118876},null,{"$f":"IF(ISERROR(Dados!C175),\"-\",Dados!C175)","v":"Qgep Part"},{"$f":"IF(ISERROR(Dados!AC175),\"-1000000\",Dados!AC175)","v":15.7},null,{"$f":"IF(ISERROR(Dados!C175),\"-\",Dados!C175)","v":"Qgep Part"},{"$f":"IF(ISERROR(Dados!AD175),\"-1000000\",Dados!AD175)","v":63.4},null,{"$f":"IF(ISERROR(Dados!C175),\"-\",Dados!C175)","v":"Qgep Part"},{"$f":"IF(ISERROR(Dados!AC175),\"-\",Dados!AC175)","v":15.7},null,{"$f":"IF(ISERROR(Dados!C175),\"-\",Dados!C175)","v":"Qgep Part"},{"$f":"IF(ISERROR(Dados!AD175),\"-\",Dados!AD175)","v":63.4}]
[{"$f":"IF(ISERROR(Dados!C199),\"-\",Dados!C199)","v":"Haga S/A"},{"$f":"IF(ISERROR(Dados!F199),\"-\",Dados!F199)","v":23.8},null,{"$f":"IF(ISERROR(Dados!C199),\"-\",Dados!C199)","v":"Haga S/A"},{"$f":"IF(ISERROR(Dados!G199),\"-\",Dados!G199)","v":-76.84},null,{"$f":"IF(ISERROR(Dados!C199),\"-\",Dados!C199)","v":"Haga S/A"},{"$f":"IF(ISERROR(Dados!X199),\"0\",Dados!X199)","v":"0"},null,{"$f":"IF(ISERROR(Dados!C199),\"-\",Dados!C199)","v":"Haga S/A"},{"$f":"IF(ISERROR(Dados!AB199),\"0\",Dados!AB199)","v":"0"},null,{"$f":"IF(ISERROR(Dados!C199),\"-\",Dados!C199)","v":"Haga S/A"},{"$f":"IF(ISERROR(Dados!S199),\"-\",Dados!S199)","v":"-"},null,{"$f":"IF(ISERROR(Dados!C199),\"-\",Dados!C199)","v":"Haga S/A"},{"$f":"IF(ISERROR(Dados!T199),\"-\",Dados!T199)","v":2.9899497487437188},null,{"$f":"IF(ISERROR(Dados!C199),\"-\",Dados!C199)","v":"Haga S/A"},{"$f":"IF(ISERROR(Dados!U199),\"0\",Dados!U199)","v":"0"},null,{"$f":"IF(ISERROR(Dados!C199),\"-\",Dados!C199)","v":"Haga S/A"},{"$f":"IF(ISERROR(IF(Dados!Z199<0,\"-\",Dados!Z199)),\"-\",IF(Dados!Z199<0,\"-\",Dados!Z199))","v":"-"},null,{"$f":"IF(ISERROR(Dados!C199),\"-\",Dados!C199)","v":"Haga S/A"},{"$f":"IF(ISERROR(Dados!AC199),\"-1000000\",Dados!AC199)","v":-2.6},null,{"$f":"IF(ISERROR(Dados!C199),\"-\",Dados!C199)","v":"Haga S/A"},{"$f":"IF(ISERROR(Dados!AD199),\"-1000000\",Dados!AD199)","v":-31.8},null,{"$f":"IF(ISERROR(Dados!C199),\"-\",Dados!C199)","v":"Haga S/A"},{"$f":"IF(ISERROR(Dados!AC199),\"-\",Dados!AC199)","v":-2.6},null,{"$f":"IF(ISERROR(Dados!C199),\"-\",Dados!C199)","v":"Haga S/A"},{"$f":"IF(ISERROR(Dados!AD199),\"-\",Dados!AD199)","v":-31.8}]
[{"$f":"IF(ISERROR(Dados!C96),\"-\",Dados!C96)","v":"Merc Brasil"},{"$f":"IF(ISERROR(Dados!F96),\"-\",Dados!F96)","v":392.77},null,{"$f":"IF(ISERROR(Dados!C96),\"-\",Dados!C96)","v":"Merc Brasil"},{"$f":"IF(ISERROR(Dados!G96),\"-\",Dados!G96)","v":800.1},null,{"$f":"IF(ISERROR(Dados!C96),\"-\",Dados!C96)","v":"Merc Brasil"},{"$f":"IF(ISERROR(Dados!X96),\"0\",Dados!X96)","v":"0"},null,{"$f":"IF(ISERROR(Dados!C96),\"-\",Dados!C96)","v":"Merc Brasil"},{"$f":"IF(ISERROR(Dados!AB96),\"0\",Dados!AB96)","v":"0"},null,{"$f":"IF(ISERROR(Dados!C96),\"-\",Dados!C96)","v":"Merc Brasil"},{"$f":"IF(ISERROR(Dados!S96),\"-\",Dados!S96)","v":0.4847874015748031},null,{"$f":"IF(ISERROR(Dados!C96),\"-\",Dados!C96)","v":"Merc Brasil"},{"$f":"IF(ISERROR(Dados!T96),\"-\",Dados!T96)","v":7.2636404494382028},null,{"$f":"IF(ISERROR(Dados!C96),\"-\",Dados!C96)","v":"Merc Brasil"},{"$f":"IF(ISERROR(Dados!U96),\"0\",Dados!U96)","v":7.1506E-2},null,{"$f":"IF(ISERROR(Dados!C96),\"-\",Dados!C96)","v":"Merc Brasil"},{"$f":"IF(ISERROR(IF(Dados!Z96<0,\"-\",Dados!Z96)),\"-\",IF(Dados!Z96<0,\"-\",Dados!Z96))","v":"-"},null,{"$f":"IF(ISERROR(Dados!C96),\"-\",Dados!C96)","v":"Merc Brasil"},{"$f":"IF(ISERROR(Dados!AC96),\"-1000000\",Dados!AC96)","v":-0.1},null,{"$f":"IF(ISERROR(Dados!C96),\"-\",Dados!C96)","v":"Merc Brasil"},{"$f":"IF(ISERROR(Dados!AD96),\"-1000000\",Dados!AD96)","v":80},null,{"$f":"IF(ISERROR(Dados!C96),\"-\",Dados!C96)","v":"Merc Brasil"},{"$f":"IF(ISERROR(Dados!AC96),\"-\",Dados!AC96)","v":-0.1},null,{"$f":"IF(ISERROR(Dados!C96),\"-\",Dados!C96)","v":"Merc Brasil"},{"$f":"IF(ISERROR(Dados!AD96),\"-\",Dados!AD96)","v":80}]
[{"$f":"IF(ISERROR(Dados!C232),\"-\",Dados!C232)","v":"Azul S.A."},{"$f":"IF(ISERROR(Dados!F232),\"-\",Dados!F232)","v":12949.76},null,{"$f":"IF(ISERROR(Dados!C232),\"-\",Dados!C232)","v":"Azul S.A."},{"$f":"IF(ISERROR(Dados!G232),\"-\",Dados!G232)","v":3163.7},null,{"$f":"IF(ISERROR(Dados!C232),\"-\",Dados!C232)","v":"Azul S.A."},{"$f":"IF(ISERROR(Dados!X232),\"0\",Dados!X232)","v":850.4},null,{"$f":"IF(ISERROR(Dados!C232),\"-\",Dados!C232)","v":"Azul S.A."},{"$f":"IF(ISERROR(Dados!AB232),\"0\",Dados!AB232)","v":"0"},null,{"$f":"IF(ISERROR(Dados!C232),\"-\",Dados!C232)","v":"Azul S.A."},{"$f":"IF(ISERROR(Dados!S232),\"-\",Dados!S232)","v":4.0932339760407128},null,{"$f":"IF(ISERROR(Dados!C232),\"-\",Dados!C232)","v":"Azul S.A."},{"$f":"IF(ISERROR(Dados!T232),\"-\",Dados!T232)","v":30.812230727134299},null,{"$f":"IF(ISERROR(Dados!C232),\"-\",Dados!C232)","v":"Azul S.A."},{"$f":"IF(ISERROR(Dados!U232),\"0\",Dados!U232)","v":0.14831899999999998},null,{"$f":"IF(ISERROR(Dados!C232),\"-\",Dados!C232)","v":"Azul S.A."},{"$f":"IF(ISERROR(IF(Dados!Z232<0,\"-\",Dados!Z232)),\"-\",IF(Dados!Z232<0,\"-\",Dados!Z232))","v":17.602567027281278},null,{"$f":"IF(ISERROR(Dados!C232),\"-\",Dados!C232)","v":"Azul S.A."},{"$f":"IF(ISERROR(Dados!AC232),\"-1000000\",Dados!AC232)","v":1.6},null,{"$f":"IF(ISERROR(Dados!C232),\"-\",Dados!C232)","v":"Azul S.A."},{"$f":"IF(ISERROR(Dados!AD232),\"-1000000\",Dados!AD232)","v":42.3},null,{"$f":"IF(ISERROR(Dados!C232),\"-\",Dados!C232)","v":"Azul S.A."},{"$f":"IF(ISERROR(Dados!AC232),\"-\",Dados!AC232)","v":1.6},null,{"$f":"IF(ISERROR(Dados!C232),\"-\",Dados!C232)","v":"Azul S.A."},{"$f":"IF(ISERROR(Dados!AD232),\"-\",Dados!AD232)","v":42.3}]
[{"$f":"IF(ISERROR(Dados!C77),\"-\",Dados!C77)","v":"Light S/A"},{"$f":"IF(ISERROR(Dados!F77),\"-\",Dados!F77)","v":4190.84},null,{"$f":"IF(ISERROR(Dados!C77),\"-\",Dados!C77)","v":"Light S/A"},{"$f":"IF(ISERROR(Dados!G77),\"-\",Dados!G77)","v":3389.49},null,{"$f":"IF(ISERROR(Dados!C77),\"-\",Dados!C77)","v":"Light S/A"},{"$f":"IF(ISERROR(Dados!X77),\"0\",Dados!X77)","v":1507.1},null,{"$f":"IF(ISERROR(Dados!C77),\"-\",Dados!C77)","v":"Light S/A"},{"$f":"IF(ISERROR(Dados!AB77),\"0\",Dados!AB77)","v":7.0391616000610854E-3},null,{"$f":"IF(ISERROR(Dados!C77),\"-\",Dados!C77)","v":"Light S/A"},{"$f":"IF(ISERROR(Dados!S77),\"-\",Dados!S77)","v":1.2364230901994104},null,{"$f":"IF(ISERROR(Dados!C77),\"-\",Dados!C77)","v":"Light S/A"},{"$f":"IF(ISERROR(Dados!T77),\"-\",Dados!T77)","v":25.279549402823019},null,{"$f":"IF(ISERROR(Dados!C77),\"-\",Dados!C77)","v":"Light S/A"},{"$f":"IF(ISERROR(Dados!U77),\"0\",Dados!U77)","v":4.8297999999999994E-2},null,{"$f":"IF(ISERROR(Dados!C77),\"-\",Dados!C77)","v":"Light S/A"},{"$f":"IF(ISERROR(IF(Dados!Z77<0,\"-\",Dados!Z77)),\"-\",IF(Dados!Z77<0,\"-\",Dados!Z77))","v":8.317604007696902},null,{"$f":"IF(ISERROR(Dados!C77),\"-\",Dados!C77)","v":"Light S/A"},{"$f":"IF(ISERROR(Dados!AC77),\"-1000000\",Dados!AC77)","v":3.5},null,{"$f":"IF(ISERROR(Dados!C77),\"-\",Dados!C77)","v":"Light S/A"},{"$f":"IF(ISERROR(Dados!AD77),\"-1000000\",Dados!AD77)","v":24.1},null,{"$f":"IF(ISERROR(Dados!C77),\"-\",Dados!C77)","v":"Light S/A"},{"$f":"IF(ISERROR(Dados!AC77),\"-\",Dados!AC77)","v":3.5},null,{"$f":"IF(ISERROR(Dados!C77),\"-\",Dados!C77)","v":"Light S/A"},{"$f":"IF(ISERROR(Dados!AD77),\"-\",Dados!AD77)","v":24.1}]
[{"$f":"IF(ISERROR(Dados!C173),\"-\",Dados!C173)","v":"Petrorio"},{"$f":"IF(ISERROR(Dados!F173),\"-\",Dados!F173)","v":2339.98},null,{"$f":"IF(ISERROR(Dados!C173),\"-\",Dados!C173)","v":"Petrorio"},{"$f":"IF(ISERROR(Dados!G173),\"-\",Dados!G173)","v":1006.6},null,{"$f":"IF(ISERROR(Dados!C173),\"-\",Dados!C173)","v":"Petrorio"},{"$f":"IF(ISERROR(Dados!X173),\"0\",Dados!X173)","v":247.2},null,{"$f":"IF(ISERROR(Dados!C173),\"-\",Dados!C173)","v":"Petrorio"},{"$f":"IF(ISERROR(Dados!AB173),\"0\",Dados!AB173)","v":"0"},null,{"$f":"IF(ISERROR(Dados!C173),\"-\",Dados!C173)","v":"Petrorio"},{"$f":"IF(ISERROR(Dados!S173),\"-\",Dados!S173)","v":2.3246286509040335},null,{"$f":"IF(ISERROR(Dados!C173),\"-\",Dados!C173)","v":"Petrorio"},{"$f":"IF(ISERROR(Dados!T173),\"-\",Dados!T173)","v":11.421179226864504},null,{"$f":"IF(ISERROR(Dados!C173),\"-\",Dados!C173)","v":"Petrorio"},{"$f":"IF(ISERROR(Dados!U173),\"0\",Dados!U173)","v":0.231987},null,{"$f":"IF(ISERROR(Dados!C173),\"-\",Dados!C173)","v":"Petrorio"},{"$f":"IF(ISERROR(IF(Dados!Z173<0,\"-\",Dados!Z173)),\"-\",IF(Dados!Z173<0,\"-\",Dados!Z173))","v":7.3697006472491911},null,{"$f":"IF(ISERROR(Dados!C173),\"-\",Dados!C173)","v":"Petrorio"},{"$f":"IF(ISERROR(Dados!AC173),\"-1000000\",Dados!AC173)","v":25.2},null,{"$f":"IF(ISERROR(Dados!C173),\"-\",Dados!C173)","v":"Petrorio"},{"$f":"IF(ISERROR(Dados!AD173),\"-1000000\",Dados!AD173)","v":131.1},null,{"$f":"IF(ISERROR(Dados!C173),\"-\",Dados!C173)","v":"Petrorio"},{"$f":"IF(ISERROR(Dados!AC173),\"-\",Dados!AC173)","v":25.2},null,{"$f":"IF(ISERROR(Dados!C173),\"-\",Dados!C173)","v":"Petrorio"},{"$f":"IF(ISERROR(Dados!AD173),\"-\",Dados!AD173)","v":131.1}]
[{"$f":"IF(ISERROR(Dados!C90),\"-\",Dados!C90)","v":"Banrisul"},{"$f":"IF(ISERROR(Dados!F90),\"-\",Dados!F90)","v":10020.69},null,{"$f":"IF(ISERROR(Dados!C90),\"-\",Dados!C90)","v":"Banrisul"},{"$f":"IF(ISERROR(Dados!G90),\"-\",Dados!G90)","v":7278.9},null,{"$f":"IF(ISERROR(Dados!C90),\"-\",Dados!C90)","v":"Banrisul"},{"$f":"IF(ISERROR(Dados!X90),\"0\",Dados!X90)","v":"0"},null,{"$f":"IF(ISERROR(Dados!C90),\"-\",Dados!C90)","v":"Banrisul"},{"$f":"IF(ISERROR(Dados!AB90),\"0\",Dados!AB90)","v":3.8051271918400825E-2},null,{"$f":"IF(ISERROR(Dados!C90),\"-\",Dados!C90)","v":"Banrisul"},{"$f":"IF(ISERROR(Dados!S90),\"-\",Dados!S90)","v":1.3591450713706743},null,{"$f":"IF(ISERROR(Dados!C90),\"-\",Dados!C90)","v":"Banrisul"},{"$f":"IF(ISERROR(Dados!T90),\"-\",Dados!T90)","v":9.4342914660080286},null,{"$f":"IF(ISERROR(Dados!C90),\"-\",Dados!C90)","v":"Banrisul"},{"$f":"IF(ISERROR(Dados!U90),\"0\",Dados!U90)","v":0.14916600000000002},null,{"$f":"IF(ISERROR(Dados!C90),\"-\",Dados!C90)","v":"Banrisul"},{"$f":"IF(ISERROR(IF(Dados!Z90<0,\"-\",Dados!Z90)),\"-\",IF(Dados!Z90<0,\"-\",Dados!Z90))","v":"-"},null,{"$f":"IF(ISERROR(Dados!C90),\"-\",Dados!C90)","v":"Banrisul"},{"$f":"IF(ISERROR(Dados!AC90),\"-1000000\",Dados!AC90)","v":-2},null,{"$f":"IF(ISERROR(Dados!C90),\"-\",Dados!C90)","v":"Banrisul"},{"$f":"IF(ISERROR(Dados!AD90),\"-1000000\",Dados!AD90)","v":85.5},null,{"$f":"IF(ISERROR(Dados!C90),\"-\",Dados!C90)","v":"Banrisul"},{"$f":"IF(ISERROR(Dados!AC90),\"-\",Dados!AC90)","v":-2},null,{"$f":"IF(ISERROR(Dados!C90),\"-\",Dados!C90)","v":"Banrisul"},{"$f":"IF(ISERROR(Dados!AD90),\"-\",Dados!AD90)","v":85.5}]
[{"$f":"IF(ISERROR(Dados!C93),\"-\",Dados!C93)","v":"Btgp Banco"},{"$f":"IF(ISERROR(Dados!F93),\"-\",Dados!F93)","v":42846.6},null,{"$f":"IF(ISERROR(Dados!C93),\"-\",Dados!C93)","v":"Btgp Banco"},{"$f":"IF(ISERROR(Dados!G93),\"-\",Dados!G93)","v":18844.93},null,{"$f":"IF(ISERROR(Dados!C93),\"-\",Dados!C93)","v":"Btgp Banco"},{"$f":"IF(ISERROR(Dados!X93),\"0\",Dados!X93)","v":"0"},null,{"$f":"IF(ISERROR(Dados!C93),\"-\",Dados!C93)","v":"Btgp Banco"},{"$f":"IF(ISERROR(Dados!AB93),\"0\",Dados!AB93)","v":2.8041431525488606E-2},null,{"$f":"IF(ISERROR(Dados!C93),\"-\",Dados!C93)","v":"Btgp Banco"},{"$f":"IF(ISERROR(Dados!S93),\"-\",Dados!S93)","v":5.0293310720708435},null,{"$f":"IF(ISERROR(Dados!C93),\"-\",Dados!C93)","v":"Btgp Banco"},{"$f":"IF(ISERROR(Dados!T93),\"-\",Dados!T93)","v":40.146643058650106},null,{"$f":"IF(ISERROR(Dados!C93),\"-\",Dados!C93)","v":"Btgp Banco"},{"$f":"IF(ISERROR(Dados!U93),\"0\",Dados!U93)","v":0.126914},null,{"$f":"IF(ISERROR(Dados!C93),\"-\",Dados!C93)","v":"Btgp Banco"},{"$f":"IF(ISERROR(IF(Dados!Z93<0,\"-\",Dados!Z93)),\"-\",IF(Dados!Z93<0,\"-\",Dados!Z93))","v":"-"},null,{"$f":"IF(ISERROR(Dados!C93),\"-\",Dados!C93)","v":"Btgp Banco"},{"$f":"IF(ISERROR(Dados!AC93),\"-1000000\",Dados!AC93)","v":6},null,{"$f":"IF(ISERROR(Dados!C93),\"-\",Dados!C93)","v":"Btgp Banco"},{"$f":"IF(ISERROR(Dados!AD93),\"-1000000\",Dados!AD93)","v":109.8},null,{"$f":"IF(ISERROR(Dados!C93),\"-\",Dados!C93)","v":"Btgp Banco"},{"$f":"IF(ISERROR(Dados!AC93),\"-\",Dados!AC93)","v":6},null,{"$f":"IF(ISERROR(Dados!C93),\"-\",Dados!C93)","v":"Btgp Banco"},{"$f":"IF(ISERROR(Dados!AD93),\"-\",Dados!AD93)","v":109.8}]
[{"$f":"IF(ISERROR(Dados!C217),\"-\",Dados!C217)","v":"Alpargatas"},{"$f":"IF(ISERROR(Dados!F217),\"-\",Dados!F217)","v":8962.6},null,{"$f":"IF(ISERROR(Dados!C217),\"-\",Dados!C217)","v":"Alpargatas"},{"$f":"IF(ISERROR(Dados!G217),\"-\",Dados!G217)","v":2380.81},null,{"$f":"IF(ISERROR(Dados!C217),\"-\",Dados!C217)","v":"Alpargatas"},{"$f":"IF(ISERROR(Dados!X217),\"0\",Dados!X217)","v":564.70000000000005},null,{"$f":"IF(ISERROR(Dados!C217),\"-\",Dados!C217)","v":"Alpargatas"},{"$f":"IF(ISERROR(Dados!AB217),\"0\",Dados!AB217)","v":2.3030147501840983E-2},null,{"$f":"IF(ISERROR(Dados!C217),\"-\",Dados!C217)","v":"Alpargatas"},{"$f":"IF(ISERROR(Dados!S217),\"-\",Dados!S217)","v":3.7391498943636829},null,{"$f":"IF(ISERROR(Dados!C217),\"-\",Dados!C217)","v":"Alpargatas"},{"$f":"IF(ISERROR(Dados!T217),\"-\",Dados!T217)","v":26.854315113122176},null,{"$f":"IF(ISERROR(Dados!C217),\"-\",Dados!C217)","v":"Alpargatas"},{"$f":"IF(ISERROR(Dados!U217),\"0\",Dados!U217)","v":0.14310300000000001},null,{"$f":"IF(ISERROR(Dados!C217),\"-\",Dados!C217)","v":"Alpargatas"},{"$f":"IF(ISERROR(IF(Dados!Z217<0,\"-\",Dados!Z217)),\"-\",IF(Dados!Z217<0,\"-\",Dados!Z217))","v":15.998930405525055},null,{"$f":"IF(ISERROR(Dados!C217),\"-\",Dados!C217)","v":"Alpargatas"},{"$f":"IF(ISERROR(Dados!AC217),\"-1000000\",Dados!AC217)","v":0.2},null,{"$f":"IF(ISERROR(Dados!C217),\"-\",Dados!C217)","v":"Alpargatas"},{"$f":"IF(ISERROR(Dados!AD217),\"-1000000\",Dados!AD217)","v":13.7},null,{"$f":"IF(ISERROR(Dados!C217),\"-\",Dados!C217)","v":"Alpargatas"},{"$f":"IF(ISERROR(Dados!AC217),\"-\",Dados!AC217)","v":0.2},null,{"$f":"IF(ISERROR(Dados!C217),\"-\",Dados!C217)","v":"Alpargatas"},{"$f":"IF(ISERROR(Dados!AD217),\"-\",Dados!AD217)","v":13.7}]
[{"$f":"IF(ISERROR(Dados!C52),\"-\",Dados!C52)","v":"IGB S/A"},{"$f":"IF(ISERROR(Dados!F52),\"-\",Dados!F52)","v":28.26},null,{"$f":"IF(ISERROR(Dados!C52),\"-\",Dados!C52)","v":"IGB S/A"},{"$f":"IF(ISERROR(Dados!G52),\"-\",Dados!G52)","v":-828.34},null,{"$f":"IF(ISERROR(Dados!C52),\"-\",Dados!C52)","v":"IGB S/A"},{"$f":"IF(ISERROR(Dados!X52),\"0\",Dados!X52)","v":"0"},null,{"$f":"IF(ISERROR(Dados!C52),\"-\",Dados!C52)","v":"IGB S/A"},{"$f":"IF(ISERROR(Dados!AB52),\"0\",Dados!AB52)","v":"0"},null,{"$f":"IF(ISERROR(Dados!C52),\"-\",Dados!C52)","v":"IGB S/A"},{"$f":"IF(ISERROR(Dados!S52),\"-\",Dados!S52)","v":"-"},null,{"$f":"IF(ISERROR(Dados!C52),\"-\",Dados!C52)","v":"IGB S/A"},{"$f":"IF(ISERROR(Dados!T52),\"-\",Dados!T52)","v":0.57232280275415148},null,{"$f":"IF(ISERROR(Dados!C52),\"-\",Dados!C52)","v":"IGB S/A"},{"$f":"IF(ISERROR(Dados!U52),\"0\",Dados!U52)","v":"0"},null,{"$f":"IF(ISERROR(Dados!C52),\"-\",Dados!C52)","v":"IGB S/A"},{"$f":"IF(ISERROR(IF(Dados!Z52<0,\"-\",Dados!Z52)),\"-\",IF(Dados!Z52<0,\"-\",Dados!Z52))","v":"-"},null,{"$f":"IF(ISERROR(Dados!C52),\"-\",Dados!C52)","v":"IGB S/A"},{"$f":"IF(ISERROR(Dados!AC52),\"-1000000\",Dados!AC52)","v":-3},null,{"$f":"IF(ISERROR(Dados!C52),\"-\",Dados!C52)","v":"IGB S/A"},{"$f":"IF(ISERROR(Dados!AD52),\"-1000000\",Dados!AD52)","v":96.5},null,{"$f":"IF(ISERROR(Dados!C52),\"-\",Dados!C52)","v":"IGB S/A"},{"$f":"IF(ISERROR(Dados!AC52),\"-\",Dados!AC52)","v":-3},null,{"$f":"IF(ISERROR(Dados!C52),\"-\",Dados!C52)","v":"IGB S/A"},{"$f":"IF(ISERROR(Dados!AD52),\"-\",Dados!AD52)","v":96.5}]
[{"$f":"IF(ISERROR(Dados!C100),\"-\",Dados!C100)","v":"Indusval"},{"$f":"IF(ISERROR(Dados!F100),\"-\",Dados!F100)","v":1081.8399999999999},null,{"$f":"IF(ISERROR(Dados!C100),\"-\",Dados!C100)","v":"Indusval"},{"$f":"IF(ISERROR(Dados!G100),\"-\",Dados!G100)","v":145.52000000000001},null,{"$f":"IF(ISERROR(Dados!C100),\"-\",Dados!C100)","v":"Indusval"},{"$f":"IF(ISERROR(Dados!X100),\"0\",Dados!X100)","v":"0"},null,{"$f":"IF(ISERROR(Dados!C100),\"-\",Dados!C100)","v":"Indusval"},{"$f":"IF(ISERROR(Dados!AB100),\"0\",Dados!AB100)","v":"0"},null,{"$f":"IF(ISERROR(Dados!C100),\"-\",Dados!C100)","v":"Indusval"},{"$f":"IF(ISERROR(Dados!S100),\"-\",Dados!S100)","v":5.0931576415612962},null,{"$f":"IF(ISERROR(Dados!C100),\"-\",Dados!C100)","v":"Indusval"},{"$f":"IF(ISERROR(Dados!T100),\"-\",Dados!T100)","v":"-"},null,{"$f":"IF(ISERROR(Dados!C100),\"-\",Dados!C100)","v":"Indusval"},{"$f":"IF(ISERROR(Dados!U100),\"0\",Dados!U100)","v":-0.461729},null,{"$f":"IF(ISERROR(Dados!C100),\"-\",Dados!C100)","v":"Indusval"},{"$f":"IF(ISERROR(IF(Dados!Z100<0,\"-\",Dados!Z100)),\"-\",IF(Dados!Z100<0,\"-\",Dados!Z100))","v":"-"},null,{"$f":"IF(ISERROR(Dados!C100),\"-\",Dados!C100)","v":"Indusval"},{"$f":"IF(ISERROR(Dados!AC100),\"-1000000\",Dados!AC100)","v":143},null,{"$f":"IF(ISERROR(Dados!C100),\"-\",Dados!C100)","v":"Indusval"},{"$f":"IF(ISERROR(Dados!AD100),\"-1000000\",Dados!AD100)","v":1.6},null,{"$f":"IF(ISERROR(Dados!C100),\"-\",Dados!C100)","v":"Indusval"},{"$f":"IF(ISERROR(Dados!AC100),\"-\",Dados!AC100)","v":143},null,{"$f":"IF(ISERROR(Dados!C100),\"-\",Dados!C100)","v":"Indusval"},{"$f":"IF(ISERROR(Dados!AD100),\"-\",Dados!AD100)","v":1.6}]
[{"$f":"IF(ISERROR(Dados!C73),\"-\",Dados!C73)","v":"Copel"},{"$f":"IF(ISERROR(Dados!F73),\"-\",Dados!F73)","v":9337.42},null,{"$f":"IF(ISERROR(Dados!C73),\"-\",Dados!C73)","v":"Copel"},{"$f":"IF(ISERROR(Dados!G73),\"-\",Dados!G73)","v":16032.93},null,{"$f":"IF(ISERROR(Dados!C73),\"-\",Dados!C73)","v":"Copel"},{"$f":"IF(ISERROR(Dados!X73),\"0\",Dados!X73)","v":3143.2},null,{"$f":"IF(ISERROR(Dados!C73),\"-\",Dados!C73)","v":"Copel"},{"$f":"IF(ISERROR(Dados!AB73),\"0\",Dados!AB73)","v":2.835151465822465E-2},null,{"$f":"IF(ISERROR(Dados!C73),\"-\",Dados!C73)","v":"Copel"},{"$f":"IF(ISERROR(Dados!S73),\"-\",Dados!S73)","v":0.62128643984599186},null,{"$f":"IF(ISERROR(Dados!C73),\"-\",Dados!C73)","v":"Copel"},{"$f":"IF(ISERROR(Dados!T73),\"-\",Dados!T73)","v":7.079329950393018},null,{"$f":"IF(ISERROR(Dados!C73),\"-\",Dados!C73)","v":"Copel"},{"$f":"IF(ISERROR(Dados!U73),\"0\",Dados!U73)","v":9.3097999999999986E-2},null,{"$f":"IF(ISERROR(Dados!C73),\"-\",Dados!C73)","v":"Copel"},{"$f":"IF(ISERROR(IF(Dados!Z73<0,\"-\",Dados!Z73)),\"-\",IF(Dados!Z73<0,\"-\",Dados!Z73))","v":5.990514125731738},null,{"$f":"IF(ISERROR(Dados!C73),\"-\",Dados!C73)","v":"Copel"},{"$f":"IF(ISERROR(Dados!AC73),\"-1000000\",Dados!AC73)","v":1.8},null,{"$f":"IF(ISERROR(Dados!C73),\"-\",Dados!C73)","v":"Copel"},{"$f":"IF(ISERROR(Dados!AD73),\"-1000000\",Dados!AD73)","v":58.4},null,{"$f":"IF(ISERROR(Dados!C73),\"-\",Dados!C73)","v":"Copel"},{"$f":"IF(ISERROR(Dados!AC73),\"-\",Dados!AC73)","v":1.8},null,{"$f":"IF(ISERROR(Dados!C73),\"-\",Dados!C73)","v":"Copel"},{"$f":"IF(ISERROR(Dados!AD73),\"-\",Dados!AD73)","v":58.4}]
[{"$f":"IF(ISERROR(Dados!C115),\"-\",Dados!C115)","v":"Multiplus"},{"$f":"IF(ISERROR(Dados!F115),\"-\",Dados!F115)","v":4348.6400000000003},null,{"$f":"IF(ISERROR(Dados!C115),\"-\",Dados!C115)","v":"Multiplus"},{"$f":"IF(ISERROR(Dados!G115),\"-\",Dados!G115)","v":250.28},null,{"$f":"IF(ISERROR(Dados!C115),\"-\",Dados!C115)","v":"Multiplus"},{"$f":"IF(ISERROR(Dados!X115),\"0\",Dados!X115)","v":444.5},null,{"$f":"IF(ISERROR(Dados!C115),\"-\",Dados!C115)","v":"Multiplus"},{"$f":"IF(ISERROR(Dados!AB115),\"0\",Dados!AB115)","v":7.8362430553000462E-2},null,{"$f":"IF(ISERROR(Dados!C115),\"-\",Dados!C115)","v":"Multiplus"},{"$f":"IF(ISERROR(Dados!S115),\"-\",Dados!S115)","v":17.375114431836341},null,{"$f":"IF(ISERROR(Dados!C115),\"-\",Dados!C115)","v":"Multiplus"},{"$f":"IF(ISERROR(Dados!T115),\"-\",Dados!T115)","v":12.201581481481481},null,{"$f":"IF(ISERROR(Dados!C115),\"-\",Dados!C115)","v":"Multiplus"},{"$f":"IF(ISERROR(Dados!U115),\"0\",Dados!U115)","v":1.4865010000000001},null,{"$f":"IF(ISERROR(Dados!C115),\"-\",Dados!C115)","v":"Multiplus"},{"$f":"IF(ISERROR(IF(Dados!Z115<0,\"-\",Dados!Z115)),\"-\",IF(Dados!Z115<0,\"-\",Dados!Z115))","v":7.2955613048368964},null,{"$f":"IF(ISERROR(Dados!C115),\"-\",Dados!C115)","v":"Multiplus"},{"$f":"IF(ISERROR(Dados!AC115),\"-1000000\",Dados!AC115)","v":0.6},null,{"$f":"IF(ISERROR(Dados!C115),\"-\",Dados!C115)","v":"Multiplus"},{"$f":"IF(ISERROR(Dados!AD115),\"-1000000\",Dados!AD115)","v":-17.600000000000001},null,{"$f":"IF(ISERROR(Dados!C115),\"-\",Dados!C115)","v":"Multiplus"},{"$f":"IF(ISERROR(Dados!AC115),\"-\",Dados!AC115)","v":0.6},null,{"$f":"IF(ISERROR(Dados!C115),\"-\",Dados!C115)","v":"Multiplus"},{"$f":"IF(ISERROR(Dados!AD115),\"-\",Dados!AD115)","v":-17.600000000000001}]
[{"$f":"IF(ISERROR(Dados!C153),\"-\",Dados!C153)","v":"Cyre Com-Ccp"},{"$f":"IF(ISERROR(Dados!F153),\"-\",Dados!F153)","v":1519.73},null,{"$f":"IF(ISERROR(Dados!C153),\"-\",Dados!C153)","v":"Cyre Com-Ccp"},{"$f":"IF(ISERROR(Dados!G153),\"-\",Dados!G153)","v":1045.42},null,{"$f":"IF(ISERROR(Dados!C153),\"-\",Dados!C153)","v":"Cyre Com-Ccp"},{"$f":"IF(ISERROR(Dados!X153),\"0\",Dados!X153)","v":256.89999999999998},null,{"$f":"IF(ISERROR(Dados!C153),\"-\",Dados!C153)","v":"Cyre Com-Ccp"},{"$f":"IF(ISERROR(Dados!AB153),\"0\",Dados!AB153)","v":7.8961394458226128E-2},null,{"$f":"IF(ISERROR(Dados!C153),\"-\",Dados!C153)","v":"Cyre Com-Ccp"},{"$f":"IF(ISERROR(Dados!S153),\"-\",Dados!S153)","v":1.4537054963555316},null,{"$f":"IF(ISERROR(Dados!C153),\"-\",Dados!C153)","v":"Cyre Com-Ccp"},{"$f":"IF(ISERROR(Dados!T153),\"-\",Dados!T153)","v":"-"},null,{"$f":"IF(ISERROR(Dados!C153),\"-\",Dados!C153)","v":"Cyre Com-Ccp"},{"$f":"IF(ISERROR(Dados!U153),\"0\",Dados!U153)","v":2.6459E-2},null,{"$f":"IF(ISERROR(Dados!C153),\"-\",Dados!C153)","v":"Cyre Com-Ccp"},{"$f":"IF(ISERROR(IF(Dados!Z153<0,\"-\",Dados!Z153)),\"-\",IF(Dados!Z153<0,\"-\",Dados!Z153))","v":11.175274425846634},null,{"$f":"IF(ISERROR(Dados!C153),\"-\",Dados!C153)","v":"Cyre Com-Ccp"},{"$f":"IF(ISERROR(Dados!AC153),\"-1000000\",Dados!AC153)","v":2.8},null,{"$f":"IF(ISERROR(Dados!C153),\"-\",Dados!C153)","v":"Cyre Com-Ccp"},{"$f":"IF(ISERROR(Dados!AD153),\"-1000000\",Dados!AD153)","v":58.3},null,{"$f":"IF(ISERROR(Dados!C153),\"-\",Dados!C153)","v":"Cyre Com-Ccp"},{"$f":"IF(ISERROR(Dados!AC153),\"-\",Dados!AC153)","v":2.8},null,{"$f":"IF(ISERROR(Dados!C153),\"-\",Dados!C153)","v":"Cyre Com-Ccp"},{"$f":"IF(ISERROR(Dados!AD153),\"-\",Dados!AD153)","v":58.3}]
[{"$f":"IF(ISERROR(Dados!C18),\"-\",Dados!C18)","v":"Lojas Renner"},{"$f":"IF(ISERROR(Dados!F18),\"-\",Dados!F18)","v":31445.73},null,{"$f":"IF(ISERROR(Dados!C18),\"-\",Dados!C18)","v":"Lojas Renner"},{"$f":"IF(ISERROR(Dados!G18),\"-\",Dados!G18)","v":3954.51},null,{"$f":"IF(ISERROR(Dados!C18),\"-\",Dados!C18)","v":"Lojas Renner"},{"$f":"IF(ISERROR(Dados!X18),\"0\",Dados!X18)","v":1738.4},null,{"$f":"IF(ISERROR(Dados!C18),\"-\",Dados!C18)","v":"Lojas Renner"},{"$f":"IF(ISERROR(Dados!AB18),\"0\",Dados!AB18)","v":9.1475058775865592E-3},null,{"$f":"IF(ISERROR(Dados!C18),\"-\",Dados!C18)","v":"Lojas Renner"},{"$f":"IF(ISERROR(Dados!S18),\"-\",Dados!S18)","v":7.951864630510479},null,{"$f":"IF(ISERROR(Dados!C18),\"-\",Dados!C18)","v":"Lojas Renner"},{"$f":"IF(ISERROR(Dados!T18),\"-\",Dados!T18)","v":30.824914423510496},null,{"$f":"IF(ISERROR(Dados!C18),\"-\",Dados!C18)","v":"Lojas Renner"},{"$f":"IF(ISERROR(Dados!U18),\"0\",Dados!U18)","v":0.31647400000000003},null,{"$f":"IF(ISERROR(Dados!C18),\"-\",Dados!C18)","v":"Lojas Renner"},{"$f":"IF(ISERROR(IF(Dados!Z18<0,\"-\",Dados!Z18)),\"-\",IF(Dados!Z18<0,\"-\",Dados!Z18))","v":18.399076161988035},null,{"$f":"IF(ISERROR(Dados!C18),\"-\",Dados!C18)","v":"Lojas Renner"},{"$f":"IF(ISERROR(Dados!AC18),\"-1000000\",Dados!AC18)","v":1.4},null,{"$f":"IF(ISERROR(Dados!C18),\"-\",Dados!C18)","v":"Lojas Renner"},{"$f":"IF(ISERROR(Dados!AD18),\"-1000000\",Dados!AD18)","v":25.4},null,{"$f":"IF(ISERROR(Dados!C18),\"-\",Dados!C18)","v":"Lojas Renner"},{"$f":"IF(ISERROR(Dados!AC18),\"-\",Dados!AC18)","v":1.4},null,{"$f":"IF(ISERROR(Dados!C18),\"-\",Dados!C18)","v":"Lojas Renner"},{"$f":"IF(ISERROR(Dados!AD18),\"-\",Dados!AD18)","v":25.4}]
[{"$f":"IF(ISERROR(Dados!C72),\"-\",Dados!C72)","v":"Cemig"},{"$f":"IF(ISERROR(Dados!F72),\"-\",Dados!F72)","v":21634.17},null,{"$f":"IF(ISERROR(Dados!C72),\"-\",Dados!C72)","v":"Cemig"},{"$f":"IF(ISERROR(Dados!G72),\"-\",Dados!G72)","v":14968.53},null,{"$f":"IF(ISERROR(Dados!C72),\"-\",Dados!C72)","v":"Cemig"},{"$f":"IF(ISERROR(Dados!X72),\"0\",Dados!X72)","v":"0"},null,{"$f":"IF(ISERROR(Dados!C72),\"-\",Dados!C72)","v":"Cemig"},{"$f":"IF(ISERROR(Dados!AB72),\"0\",Dados!AB72)","v":1.251030198986141E-2},null,{"$f":"IF(ISERROR(Dados!C72),\"-\",Dados!C72)","v":"Cemig"},{"$f":"IF(ISERROR(Dados!S72),\"-\",Dados!S72)","v":1.3540978907080388},null,{"$f":"IF(ISERROR(Dados!C72),\"-\",Dados!C72)","v":"Cemig"},{"$f":"IF(ISERROR(Dados!T72),\"-\",Dados!T72)","v":15.568194310029646},null,{"$f":"IF(ISERROR(Dados!C72),\"-\",Dados!C72)","v":"Cemig"},{"$f":"IF(ISERROR(Dados!U72),\"0\",Dados!U72)","v":9.8039000000000001E-2},null,{"$f":"IF(ISERROR(Dados!C72),\"-\",Dados!C72)","v":"Cemig"},{"$f":"IF(ISERROR(IF(Dados!Z72<0,\"-\",Dados!Z72)),\"-\",IF(Dados!Z72<0,\"-\",Dados!Z72))","v":8.1141873796096444},null,{"$f":"IF(ISERROR(Dados!C72),\"-\",Dados!C72)","v":"Cemig"},{"$f":"IF(ISERROR(Dados!AC72),\"-1000000\",Dados!AC72)","v":-3.5},null,{"$f":"IF(ISERROR(Dados!C72),\"-\",Dados!C72)","v":"Cemig"},{"$f":"IF(ISERROR(Dados!AD72),\"-1000000\",Dados!AD72)","v":117.4},null,{"$f":"IF(ISERROR(Dados!C72),\"-\",Dados!C72)","v":"Cemig"},{"$f":"IF(ISERROR(Dados!AC72),\"-\",Dados!AC72)","v":-3.5},null,{"$f":"IF(ISERROR(Dados!C72),\"-\",Dados!C72)","v":"Cemig"},{"$f":"IF(ISERROR(Dados!AD72),\"-\",Dados!AD72)","v":117.4}]
[{"$f":"IF(ISERROR(Dados!C7),\"-\",Dados!C7)","v":"Excelsior"},{"$f":"IF(ISERROR(Dados!F7),\"-\",Dados!F7)","v":138.33000000000001},null,{"$f":"IF(ISERROR(Dados!C7),\"-\",Dados!C7)","v":"Excelsior"},{"$f":"IF(ISERROR(Dados!G7),\"-\",Dados!G7)","v":49.15},null,{"$f":"IF(ISERROR(Dados!C7),\"-\",Dados!C7)","v":"Excelsior"},{"$f":"IF(ISERROR(Dados!X7),\"0\",Dados!X7)","v":17.899999999999999},null,{"$f":"IF(ISERROR(Dados!C7),\"-\",Dados!C7)","v":"Excelsior"},{"$f":"IF(ISERROR(Dados!AB7),\"0\",Dados!AB7)","v":2.2627051254247087E-2},null,{"$f":"IF(ISERROR(Dados!C7),\"-\",Dados!C7)","v":"Excelsior"},{"$f":"IF(ISERROR(Dados!S7),\"-\",Dados!S7)","v":2.8144614445574772},null,{"$f":"IF(ISERROR(Dados!C7),\"-\",Dados!C7)","v":"Excelsior"},{"$f":"IF(ISERROR(Dados!T7),\"-\",Dados!T7)","v":13.764256716417909},null,{"$f":"IF(ISERROR(Dados!C7),\"-\",Dados!C7)","v":"Excelsior"},{"$f":"IF(ISERROR(Dados!U7),\"0\",Dados!U7)","v":0.24229199999999998},null,{"$f":"IF(ISERROR(Dados!C7),\"-\",Dados!C7)","v":"Excelsior"},{"$f":"IF(ISERROR(IF(Dados!Z7<0,\"-\",Dados!Z7)),\"-\",IF(Dados!Z7<0,\"-\",Dados!Z7))","v":6.3819553072625705},null,{"$f":"IF(ISERROR(Dados!C7),\"-\",Dados!C7)","v":"Excelsior"},{"$f":"IF(ISERROR(Dados!AC7),\"-1000000\",Dados!AC7)","v":7.9},null,{"$f":"IF(ISERROR(Dados!C7),\"-\",Dados!C7)","v":"Excelsior"},{"$f":"IF(ISERROR(Dados!AD7),\"-1000000\",Dados!AD7)","v":152.9},null,{"$f":"IF(ISERROR(Dados!C7),\"-\",Dados!C7)","v":"Excelsior"},{"$f":"IF(ISERROR(Dados!AC7),\"-\",Dados!AC7)","v":7.9},null,{"$f":"IF(ISERROR(Dados!C7),\"-\",Dados!C7)","v":"Excelsior"},{"$f":"IF(ISERROR(Dados!AD7),\"-\",Dados!AD7)","v":152.9}]
[{"$f":"IF(ISERROR(Dados!C28),\"-\",Dados!C28)","v":"Imc S/A"},{"$f":"IF(ISERROR(Dados!F28),\"-\",Dados!F28)","v":1025.25},null,{"$f":"IF(ISERROR(Dados!C28),\"-\",Dados!C28)","v":"Imc S/A"},{"$f":"IF(ISERROR(Dados!G28),\"-\",Dados!G28)","v":1015.22},null,{"$f":"IF(ISERROR(Dados!C28),\"-\",Dados!C28)","v":"Imc S/A"},{"$f":"IF(ISERROR(Dados!X28),\"0\",Dados!X28)","v":102.8},null,{"$f":"IF(ISERROR(Dados!C28),\"-\",Dados!C28)","v":"Imc S/A"},{"$f":"IF(ISERROR(Dados!AB28),\"0\",Dados!AB28)","v":8.4857351865398687E-4},null,{"$f":"IF(ISERROR(Dados!C28),\"-\",Dados!C28)","v":"Imc S/A"},{"$f":"IF(ISERROR(Dados!S28),\"-\",Dados!S28)","v":1.0098808731112467},null,{"$f":"IF(ISERROR(Dados!C28),\"-\",Dados!C28)","v":"Imc S/A"},{"$f":"IF(ISERROR(Dados!T28),\"-\",Dados!T28)","v":129.94312547528517},null,{"$f":"IF(ISERROR(Dados!C28),\"-\",Dados!C28)","v":"Imc S/A"},{"$f":"IF(ISERROR(Dados!U28),\"0\",Dados!U28)","v":7.8630000000000002E-3},null,{"$f":"IF(ISERROR(Dados!C28),\"-\",Dados!C28)","v":"Imc S/A"},{"$f":"IF(ISERROR(IF(Dados!Z28<0,\"-\",Dados!Z28)),\"-\",IF(Dados!Z28<0,\"-\",Dados!Z28))","v":10.256780155642023},null,{"$f":"IF(ISERROR(Dados!C28),\"-\",Dados!C28)","v":"Imc S/A"},{"$f":"IF(ISERROR(Dados!AC28),\"-1000000\",Dados!AC28)","v":5},null,{"$f":"IF(ISERROR(Dados!C28),\"-\",Dados!C28)","v":"Imc S/A"},{"$f":"IF(ISERROR(Dados!AD28),\"-1000000\",Dados!AD28)","v":-18},null,{"$f":"IF(ISERROR(Dados!C28),\"-\",Dados!C28)","v":"Imc S/A"},{"$f":"IF(ISERROR(Dados!AC28),\"-\",Dados!AC28)","v":5},null,{"$f":"IF(ISERROR(Dados!C28),\"-\",Dados!C28)","v":"Imc S/A"},{"$f":"IF(ISERROR(Dados!AD28),\"-\",Dados!AD28)","v":-18}]
[{"$f":"IF(ISERROR(Dados!C32),\"-\",Dados!C32)","v":"Tenda"},{"$f":"IF(ISERROR(Dados!F32),\"-\",Dados!F32)","v":816.87},null,{"$f":"IF(ISERROR(Dados!C32),\"-\",Dados!C32)","v":"Tenda"},{"$f":"IF(ISERROR(Dados!G32),\"-\",Dados!G32)","v":1197.67},null,{"$f":"IF(ISERROR(Dados!C32),\"-\",Dados!C32)","v":"Tenda"},{"$f":"IF(ISERROR(Dados!X32),\"0\",Dados!X32)","v":243.5},null,{"$f":"IF(ISERROR(Dados!C32),\"-\",Dados!C32)","v":"Tenda"},{"$f":"IF(ISERROR(Dados!AB32),\"0\",Dados!AB32)","v":3.0592383120937233E-2},null,{"$f":"IF(ISERROR(Dados!C32),\"-\",Dados!C32)","v":"Tenda"},{"$f":"IF(ISERROR(Dados!S32),\"-\",Dados!S32)","v":0.68205251864035987},null,{"$f":"IF(ISERROR(Dados!C32),\"-\",Dados!C32)","v":"Tenda"},{"$f":"IF(ISERROR(Dados!T32),\"-\",Dados!T32)","v":4.0784554396125614},null,{"$f":"IF(ISERROR(Dados!C32),\"-\",Dados!C32)","v":"Tenda"},{"$f":"IF(ISERROR(Dados!U32),\"0\",Dados!U32)","v":0.173016},null,{"$f":"IF(ISERROR(Dados!C32),\"-\",Dados!C32)","v":"Tenda"},{"$f":"IF(ISERROR(IF(Dados!Z32<0,\"-\",Dados!Z32)),\"-\",IF(Dados!Z32<0,\"-\",Dados!Z32))","v":2.0690020533880906},null,{"$f":"IF(ISERROR(Dados!C32),\"-\",Dados!C32)","v":"Tenda"},{"$f":"IF(ISERROR(Dados!AC32),\"-1000000\",Dados!AC32)","v":0.8},null,{"$f":"IF(ISERROR(Dados!C32),\"-\",Dados!C32)","v":"Tenda"},{"$f":"IF(ISERROR(Dados!AD32),\"-1000000\",Dados!AD32)","v":71.7},null,{"$f":"IF(ISERROR(Dados!C32),\"-\",Dados!C32)","v":"Tenda"},{"$f":"IF(ISERROR(Dados!AC32),\"-\",Dados!AC32)","v":0.8},null,{"$f":"IF(ISERROR(Dados!C32),\"-\",Dados!C32)","v":"Tenda"},{"$f":"IF(ISERROR(Dados!AD32),\"-\",Dados!AD32)","v":71.7}]
[{"$f":"IF(ISERROR(Dados!C197),\"-\",Dados!C197)","v":"Aco Altona"},{"$f":"IF(ISERROR(Dados!F197),\"-\",Dados!F197)","v":122.88},null,{"$f":"IF(ISERROR(Dados!C197),\"-\",Dados!C197)","v":"Aco Altona"},{"$f":"IF(ISERROR(Dados!G197),\"-\",Dados!G197)","v":154.62},null,{"$f":"IF(ISERROR(Dados!C197),\"-\",Dados!C197)","v":"Aco Altona"},{"$f":"IF(ISERROR(Dados!X197),\"0\",Dados!X197)","v":30.1},null,{"$f":"IF(ISERROR(Dados!C197),\"-\",Dados!C197)","v":"Aco Altona"},{"$f":"IF(ISERROR(Dados!AB197),\"0\",Dados!AB197)","v":4.7281901041666664E-2},null,{"$f":"IF(ISERROR(Dados!C197),\"-\",Dados!C197)","v":"Aco Altona"},{"$f":"IF(ISERROR(Dados!S197),\"-\",Dados!S197)","v":0.75814901047729921},null,{"$f":"IF(ISERROR(Dados!C197),\"-\",Dados!C197)","v":"Aco Altona"},{"$f":"IF(ISERROR(Dados!T197),\"-\",Dados!T197)","v":9.5693877551020421},null,{"$f":"IF(ISERROR(Dados!C197),\"-\",Dados!C197)","v":"Aco Altona"},{"$f":"IF(ISERROR(Dados!U197),\"0\",Dados!U197)","v":"0"},null,{"$f":"IF(ISERROR(Dados!C197),\"-\",Dados!C197)","v":"Aco Altona"},{"$f":"IF(ISERROR(IF(Dados!Z197<0,\"-\",Dados!Z197)),\"-\",IF(Dados!Z197<0,\"-\",Dados!Z197))","v":6.6279734219269102},null,{"$f":"IF(ISERROR(Dados!C197),\"-\",Dados!C197)","v":"Aco Altona"},{"$f":"IF(ISERROR(Dados!AC197),\"-1000000\",Dados!AC197)","v":1.2},null,{"$f":"IF(ISERROR(Dados!C197),\"-\",Dados!C197)","v":"Aco Altona"},{"$f":"IF(ISERROR(Dados!AD197),\"-1000000\",Dados!AD197)","v":66.2},null,{"$f":"IF(ISERROR(Dados!C197),\"-\",Dados!C197)","v":"Aco Altona"},{"$f":"IF(ISERROR(Dados!AC197),\"-\",Dados!AC197)","v":1.2},null,{"$f":"IF(ISERROR(Dados!C197),\"-\",Dados!C197)","v":"Aco Altona"},{"$f":"IF(ISERROR(Dados!AD197),\"-\",Dados!AD197)","v":66.2}]
[{"$f":"IF(ISERROR(Dados!C70),\"-\",Dados!C70)","v":"Alupar"},{"$f":"IF(ISERROR(Dados!F70),\"-\",Dados!F70)","v":6840.79},null,{"$f":"IF(ISERROR(Dados!C70),\"-\",Dados!C70)","v":"Alupar"},{"$f":"IF(ISERROR(Dados!G70),\"-\",Dados!G70)","v":4328.05},null,{"$f":"IF(ISERROR(Dados!C70),\"-\",Dados!C70)","v":"Alupar"},{"$f":"IF(ISERROR(Dados!X70),\"0\",Dados!X70)","v":"0"},null,{"$f":"IF(ISERROR(Dados!C70),\"-\",Dados!C70)","v":"Alupar"},{"$f":"IF(ISERROR(Dados!AB70),\"0\",Dados!AB70)","v":3.0842928959959305E-2},null,{"$f":"IF(ISERROR(Dados!C70),\"-\",Dados!C70)","v":"Alupar"},{"$f":"IF(ISERROR(Dados!S70),\"-\",Dados!S70)","v":4.7164329016531692},null,{"$f":"IF(ISERROR(Dados!C70),\"-\",Dados!C70)","v":"Alupar"},{"$f":"IF(ISERROR(Dados!T70),\"-\",Dados!T70)","v":52.780756095669034},null,{"$f":"IF(ISERROR(Dados!C70),\"-\",Dados!C70)","v":"Alupar"},{"$f":"IF(ISERROR(Dados!U70),\"0\",Dados!U70)","v":0.133907},null,{"$f":"IF(ISERROR(Dados!C70),\"-\",Dados!C70)","v":"Alupar"},{"$f":"IF(ISERROR(IF(Dados!Z70<0,\"-\",Dados!Z70)),\"-\",IF(Dados!Z70<0,\"-\",Dados!Z70))","v":"-"},null,{"$f":"IF(ISERROR(Dados!C70),\"-\",Dados!C70)","v":"Alupar"},{"$f":"IF(ISERROR(Dados!AC70),\"-1000000\",Dados!AC70)","v":1.6},null,{"$f":"IF(ISERROR(Dados!C70),\"-\",Dados!C70)","v":"Alupar"},{"$f":"IF(ISERROR(Dados!AD70),\"-1000000\",Dados!AD70)","v":31},null,{"$f":"IF(ISERROR(Dados!C70),\"-\",Dados!C70)","v":"Alupar"},{"$f":"IF(ISERROR(Dados!AC70),\"-\",Dados!AC70)","v":1.6},null,{"$f":"IF(ISERROR(Dados!C70),\"-\",Dados!C70)","v":"Alupar"},{"$f":"IF(ISERROR(Dados!AD70),\"-\",Dados!AD70)","v":31}]
[{"$f":"IF(ISERROR(Dados!C167),\"-\",Dados!C167)","v":"Inepar"},{"$f":"IF(ISERROR(Dados!F167),\"-\",Dados!F167)","v":95.63},null,{"$f":"IF(ISERROR(Dados!C167),\"-\",Dados!C167)","v":"Inepar"},{"$f":"IF(ISERROR(Dados!G167),\"-\",Dados!G167)","v":-1382.43},null,{"$f":"IF(ISERROR(Dados!C167),\"-\",Dados!C167)","v":"Inepar"},{"$f":"IF(ISERROR(Dados!X167),\"0\",Dados!X167)","v":"0"},null,{"$f":"IF(ISERROR(Dados!C167),\"-\",Dados!C167)","v":"Inepar"},{"$f":"IF(ISERROR(Dados!AB167),\"0\",Dados!AB167)","v":1.3071211962773189E-2},null,{"$f":"IF(ISERROR(Dados!C167),\"-\",Dados!C167)","v":"Inepar"},{"$f":"IF(ISERROR(Dados!S167),\"-\",Dados!S167)","v":"-"},null,{"$f":"IF(ISERROR(Dados!C167),\"-\",Dados!C167)","v":"Inepar"},{"$f":"IF(ISERROR(Dados!T167),\"-\",Dados!T167)","v":"-"},null,{"$f":"IF(ISERROR(Dados!C167),\"-\",Dados!C167)","v":"Inepar"},{"$f":"IF(ISERROR(Dados!U167),\"0\",Dados!U167)","v":"0"},null,{"$f":"IF(ISERROR(Dados!C167),\"-\",Dados!C167)","v":"Inepar"},{"$f":"IF(ISERROR(IF(Dados!Z167<0,\"-\",Dados!Z167)),\"-\",IF(Dados!Z167<0,\"-\",Dados!Z167))","v":"-"},null,{"$f":"IF(ISERROR(Dados!C167),\"-\",Dados!C167)","v":"Inepar"},{"$f":"IF(ISERROR(Dados!AC167),\"-1000000\",Dados!AC167)","v":-17.8},null,{"$f":"IF(ISERROR(Dados!C167),\"-\",Dados!C167)","v":"Inepar"},{"$f":"IF(ISERROR(Dados!AD167),\"-1000000\",Dados!AD167)","v":342.1},null,{"$f":"IF(ISERROR(Dados!C167),\"-\",Dados!C167)","v":"Inepar"},{"$f":"IF(ISERROR(Dados!AC167),\"-\",Dados!AC167)","v":-17.8},null,{"$f":"IF(ISERROR(Dados!C167),\"-\",Dados!C167)","v":"Inepar"},{"$f":"IF(ISERROR(Dados!AD167),\"-\",Dados!AD167)","v":342.1}]
[{"$f":"IF(ISERROR(Dados!C84),\"-\",Dados!C84)","v":"Irbbrasil Re"},{"$f":"IF(ISERROR(Dados!F84),\"-\",Dados!F84)","v":28325.41},null,{"$f":"IF(ISERROR(Dados!C84),\"-\",Dados!C84)","v":"Irbbrasil Re"},{"$f":"IF(ISERROR(Dados!G84),\"-\",Dados!G84)","v":4000.78},null,{"$f":"IF(ISERROR(Dados!C84),\"-\",Dados!C84)","v":"Irbbrasil Re"},{"$f":"IF(ISERROR(Dados!X84),\"0\",Dados!X84)","v":"0"},null,{"$f":"IF(ISERROR(Dados!C84),\"-\",Dados!C84)","v":"Irbbrasil Re"},{"$f":"IF(ISERROR(Dados!AB84),\"0\",Dados!AB84)","v":2.4157108405491748E-2},null,{"$f":"IF(ISERROR(Dados!C84),\"-\",Dados!C84)","v":"Irbbrasil Re"},{"$f":"IF(ISERROR(Dados!S84),\"-\",Dados!S84)","v":7.0799615949889771},null,{"$f":"IF(ISERROR(Dados!C84),\"-\",Dados!C84)","v":"Irbbrasil Re"},{"$f":"IF(ISERROR(Dados!T84),\"-\",Dados!T84)","v":23.240374753856255},null,{"$f":"IF(ISERROR(Dados!C84),\"-\",Dados!C84)","v":"Irbbrasil Re"},{"$f":"IF(ISERROR(Dados!U84),\"0\",Dados!U84)","v":0.340333},null,{"$f":"IF(ISERROR(Dados!C84),\"-\",Dados!C84)","v":"Irbbrasil Re"},{"$f":"IF(ISERROR(IF(Dados!Z84<0,\"-\",Dados!Z84)),\"-\",IF(Dados!Z84<0,\"-\",Dados!Z84))","v":"-"},null,{"$f":"IF(ISERROR(Dados!C84),\"-\",Dados!C84)","v":"Irbbrasil Re"},{"$f":"IF(ISERROR(Dados!AC84),\"-1000000\",Dados!AC84)","v":5.2},null,{"$f":"IF(ISERROR(Dados!C84),\"-\",Dados!C84)","v":"Irbbrasil Re"},{"$f":"IF(ISERROR(Dados!AD84),\"-1000000\",Dados!AD84)","v":189},null,{"$f":"IF(ISERROR(Dados!C84),\"-\",Dados!C84)","v":"Irbbrasil Re"},{"$f":"IF(ISERROR(Dados!AC84),\"-\",Dados!AC84)","v":5.2},null,{"$f":"IF(ISERROR(Dados!C84),\"-\",Dados!C84)","v":"Irbbrasil Re"},{"$f":"IF(ISERROR(Dados!AD84),\"-\",Dados!AD84)","v":189}]
[{"$f":"IF(ISERROR(Dados!C58),\"-\",Dados!C58)","v":"Equatorial"},{"$f":"IF(ISERROR(Dados!F58),\"-\",Dados!F58)","v":16088.18},null,{"$f":"IF(ISERROR(Dados!C58),\"-\",Dados!C58)","v":"Equatorial"},{"$f":"IF(ISERROR(Dados!G58),\"-\",Dados!G58)","v":5596.03},null,{"$f":"IF(ISERROR(Dados!C58),\"-\",Dados!C58)","v":"Equatorial"},{"$f":"IF(ISERROR(Dados!X58),\"0\",Dados!X58)","v":"0"},null,{"$f":"IF(ISERROR(Dados!C58),\"-\",Dados!C58)","v":"Equatorial"},{"$f":"IF(ISERROR(Dados!AB58),\"0\",Dados!AB58)","v":"0"},null,{"$f":"IF(ISERROR(Dados!C58),\"-\",Dados!C58)","v":"Equatorial"},{"$f":"IF(ISERROR(Dados!S58),\"-\",Dados!S58)","v":2.8749238299294322},null,{"$f":"IF(ISERROR(Dados!C58),\"-\",Dados!C58)","v":"Equatorial"},{"$f":"IF(ISERROR(Dados!T58),\"-\",Dados!T58)","v":17.526374272828289},null,{"$f":"IF(ISERROR(Dados!C58),\"-\",Dados!C58)","v":"Equatorial"},{"$f":"IF(ISERROR(Dados!U58),\"0\",Dados!U58)","v":0.20199},null,{"$f":"IF(ISERROR(Dados!C58),\"-\",Dados!C58)","v":"Equatorial"},{"$f":"IF(ISERROR(IF(Dados!Z58<0,\"-\",Dados!Z58)),\"-\",IF(Dados!Z58<0,\"-\",Dados!Z58))","v":"-"},null,{"$f":"IF(ISERROR(Dados!C58),\"-\",Dados!C58)","v":"Equatorial"},{"$f":"IF(ISERROR(Dados!AC58),\"-1000000\",Dados!AC58)","v":-2.6},null,{"$f":"IF(ISERROR(Dados!C58),\"-\",Dados!C58)","v":"Equatorial"},{"$f":"IF(ISERROR(Dados!AD58),\"-1000000\",Dados!AD58)","v":24},null,{"$f":"IF(ISERROR(Dados!C58),\"-\",Dados!C58)","v":"Equatorial"},{"$f":"IF(ISERROR(Dados!AC58),\"-\",Dados!AC58)","v":-2.6},null,{"$f":"IF(ISERROR(Dados!C58),\"-\",Dados!C58)","v":"Equatorial"},{"$f":"IF(ISERROR(Dados!AD58),\"-\",Dados!AD58)","v":24}]
[{"$f":"IF(ISERROR(Dados!C180),\"-\",Dados!C180)","v":"Braskem"},{"$f":"IF(ISERROR(Dados!F180),\"-\",Dados!F180)","v":41482.15},null,{"$f":"IF(ISERROR(Dados!C180),\"-\",Dados!C180)","v":"Braskem"},{"$f":"IF(ISERROR(Dados!G180),\"-\",Dados!G180)","v":6787.65},null,{"$f":"IF(ISERROR(Dados!C180),\"-\",Dados!C180)","v":"Braskem"},{"$f":"IF(ISERROR(Dados!X180),\"0\",Dados!X180)","v":11294.5},null,{"$f":"IF(ISERROR(Dados!C180),\"-\",Dados!C180)","v":"Braskem"},{"$f":"IF(ISERROR(Dados!AB180),\"0\",Dados!AB180)","v":3.6122766057207739E-2},null,{"$f":"IF(ISERROR(Dados!C180),\"-\",Dados!C180)","v":"Braskem"},{"$f":"IF(ISERROR(Dados!S180),\"-\",Dados!S180)","v":5.9690151377870109},null,{"$f":"IF(ISERROR(Dados!C180),\"-\",Dados!C180)","v":"Braskem"},{"$f":"IF(ISERROR(Dados!T180),\"-\",Dados!T180)","v":14.133278077776383},null,{"$f":"IF(ISERROR(Dados!C180),\"-\",Dados!C180)","v":"Braskem"},{"$f":"IF(ISERROR(Dados!U180),\"0\",Dados!U180)","v":0.51090200000000008},null,{"$f":"IF(ISERROR(Dados!C180),\"-\",Dados!C180)","v":"Braskem"},{"$f":"IF(ISERROR(IF(Dados!Z180<0,\"-\",Dados!Z180)),\"-\",IF(Dados!Z180<0,\"-\",Dados!Z180))","v":5.2009237239364294},null,{"$f":"IF(ISERROR(Dados!C180),\"-\",Dados!C180)","v":"Braskem"},{"$f":"IF(ISERROR(Dados!AC180),\"-1000000\",Dados!AC180)","v":-6.4},null,{"$f":"IF(ISERROR(Dados!C180),\"-\",Dados!C180)","v":"Braskem"},{"$f":"IF(ISERROR(Dados!AD180),\"-1000000\",Dados!AD180)","v":23.8},null,{"$f":"IF(ISERROR(Dados!C180),\"-\",Dados!C180)","v":"Braskem"},{"$f":"IF(ISERROR(Dados!AC180),\"-\",Dados!AC180)","v":-6.4},null,{"$f":"IF(ISERROR(Dados!C180),\"-\",Dados!C180)","v":"Braskem"},{"$f":"IF(ISERROR(Dados!AD180),\"-\",Dados!AD180)","v":23.8}]
[{"$f":"IF(ISERROR(Dados!C233),\"-\",Dados!C233)","v":"CCR SA"},{"$f":"IF(ISERROR(Dados!F233),\"-\",Dados!F233)","v":23714.799999999999},null,{"$f":"IF(ISERROR(Dados!C233),\"-\",Dados!C233)","v":"CCR SA"},{"$f":"IF(ISERROR(Dados!G233),\"-\",Dados!G233)","v":8231.49},null,{"$f":"IF(ISERROR(Dados!C233),\"-\",Dados!C233)","v":"CCR SA"},{"$f":"IF(ISERROR(Dados!X233),\"0\",Dados!X233)","v":3817.8},null,{"$f":"IF(ISERROR(Dados!C233),\"-\",Dados!C233)","v":"CCR SA"},{"$f":"IF(ISERROR(Dados!AB233),\"0\",Dados!AB233)","v":5.060046890549362E-2},null,{"$f":"IF(ISERROR(Dados!C233),\"-\",Dados!C233)","v":"CCR SA"},{"$f":"IF(ISERROR(Dados!S233),\"-\",Dados!S233)","v":2.8809850950435463},null,{"$f":"IF(ISERROR(Dados!C233),\"-\",Dados!C233)","v":"CCR SA"},{"$f":"IF(ISERROR(Dados!T233),\"-\",Dados!T233)","v":30.297161254056263},null,{"$f":"IF(ISERROR(Dados!C233),\"-\",Dados!C233)","v":"CCR SA"},{"$f":"IF(ISERROR(Dados!U233),\"0\",Dados!U233)","v":7.4912000000000006E-2},null,{"$f":"IF(ISERROR(Dados!C233),\"-\",Dados!C233)","v":"CCR SA"},{"$f":"IF(ISERROR(IF(Dados!Z233<0,\"-\",Dados!Z233)),\"-\",IF(Dados!Z233<0,\"-\",Dados!Z233))","v":9.8797626905547684},null,{"$f":"IF(ISERROR(Dados!C233),\"-\",Dados!C233)","v":"CCR SA"},{"$f":"IF(ISERROR(Dados!AC233),\"-1000000\",Dados!AC233)","v":-17.5},null,{"$f":"IF(ISERROR(Dados!C233),\"-\",Dados!C233)","v":"CCR SA"},{"$f":"IF(ISERROR(Dados!AD233),\"-1000000\",Dados!AD233)","v":-23.3},null,{"$f":"IF(ISERROR(Dados!C233),\"-\",Dados!C233)","v":"CCR SA"},{"$f":"IF(ISERROR(Dados!AC233),\"-\",Dados!AC233)","v":-17.5},null,{"$f":"IF(ISERROR(Dados!C233),\"-\",Dados!C233)","v":"CCR SA"},{"$f":"IF(ISERROR(Dados!AD233),\"-\",Dados!AD233)","v":-23.3}]
[{"$f":"IF(ISERROR(Dados!C179),\"-\",Dados!C179)","v":"Pet Manguinh"},{"$f":"IF(ISERROR(Dados!F179),\"-\",Dados!F179)","v":173.27},null,{"$f":"IF(ISERROR(Dados!C179),\"-\",Dados!C179)","v":"Pet Manguinh"},{"$f":"IF(ISERROR(Dados!G179),\"-\",Dados!G179)","v":-2465.0100000000002},null,{"$f":"IF(ISERROR(Dados!C179),\"-\",Dados!C179)","v":"Pet Manguinh"},{"$f":"IF(ISERROR(Dados!X179),\"0\",Dados!X179)","v":"0"},null,{"$f":"IF(ISERROR(Dados!C179),\"-\",Dados!C179)","v":"Pet Manguinh"},{"$f":"IF(ISERROR(Dados!AB179),\"0\",Dados!AB179)","v":"0"},null,{"$f":"IF(ISERROR(Dados!C179),\"-\",Dados!C179)","v":"Pet Manguinh"},{"$f":"IF(ISERROR(Dados!S179),\"-\",Dados!S179)","v":"-"},null,{"$f":"IF(ISERROR(Dados!C179),\"-\",Dados!C179)","v":"Pet Manguinh"},{"$f":"IF(ISERROR(Dados!T179),\"-\",Dados!T179)","v":"-"},null,{"$f":"IF(ISERROR(Dados!C179),\"-\",Dados!C179)","v":"Pet Manguinh"},{"$f":"IF(ISERROR(Dados!U179),\"0\",Dados!U179)","v":"0"},null,{"$f":"IF(ISERROR(Dados!C179),\"-\",Dados!C179)","v":"Pet Manguinh"},{"$f":"IF(ISERROR(IF(Dados!Z179<0,\"-\",Dados!Z179)),\"-\",IF(Dados!Z179<0,\"-\",Dados!Z179))","v":"-"},null,{"$f":"IF(ISERROR(Dados!C179),\"-\",Dados!C179)","v":"Pet Manguinh"},{"$f":"IF(ISERROR(Dados!AC179),\"-1000000\",Dados!AC179)","v":-12.9},null,{"$f":"IF(ISERROR(Dados!C179),\"-\",Dados!C179)","v":"Pet Manguinh"},{"$f":"IF(ISERROR(Dados!AD179),\"-1000000\",Dados!AD179)","v":-67.599999999999994},null,{"$f":"IF(ISERROR(Dados!C179),\"-\",Dados!C179)","v":"Pet Manguinh"},{"$f":"IF(ISERROR(Dados!AC179),\"-\",Dados!AC179)","v":-12.9},null,{"$f":"IF(ISERROR(Dados!C179),\"-\",Dados!C179)","v":"Pet Manguinh"},{"$f":"IF(ISERROR(Dados!AD179),\"-\",Dados!AD179)","v":-67.599999999999994}]
[{"$f":"IF(ISERROR(Dados!C55),\"-\",Dados!C55)","v":"Energisa"},{"$f":"IF(ISERROR(Dados!F55),\"-\",Dados!F55)","v":18303.71},null,{"$f":"IF(ISERROR(Dados!C55),\"-\",Dados!C55)","v":"Energisa"},{"$f":"IF(ISERROR(Dados!G55),\"-\",Dados!G55)","v":5388.14},null,{"$f":"IF(ISERROR(Dados!C55),\"-\",Dados!C55)","v":"Energisa"},{"$f":"IF(ISERROR(Dados!X55),\"0\",Dados!X55)","v":3817.6},null,{"$f":"IF(ISERROR(Dados!C55),\"-\",Dados!C55)","v":"Energisa"},{"$f":"IF(ISERROR(Dados!AB55),\"0\",Dados!AB55)","v":1.4717781258553594E-2},null,{"$f":"IF(ISERROR(Dados!C55),\"-\",Dados!C55)","v":"Energisa"},{"$f":"IF(ISERROR(Dados!S55),\"-\",Dados!S55)","v":13.656009142301421},null,{"$f":"IF(ISERROR(Dados!C55),\"-\",Dados!C55)","v":"Energisa"},{"$f":"IF(ISERROR(Dados!T55),\"-\",Dados!T55)","v":64.070504166557811},null,{"$f":"IF(ISERROR(Dados!C55),\"-\",Dados!C55)","v":"Energisa"},{"$f":"IF(ISERROR(Dados!U55),\"0\",Dados!U55)","v":0.24656},null,{"$f":"IF(ISERROR(Dados!C55),\"-\",Dados!C55)","v":"Energisa"},{"$f":"IF(ISERROR(IF(Dados!Z55<0,\"-\",Dados!Z55)),\"-\",IF(Dados!Z55<0,\"-\",Dados!Z55))","v":7.7947095033528919},null,{"$f":"IF(ISERROR(Dados!C55),\"-\",Dados!C55)","v":"Energisa"},{"$f":"IF(ISERROR(Dados!AC55),\"-1000000\",Dados!AC55)","v":1},null,{"$f":"IF(ISERROR(Dados!C55),\"-\",Dados!C55)","v":"Energisa"},{"$f":"IF(ISERROR(Dados!AD55),\"-1000000\",Dados!AD55)","v":55.8},null,{"$f":"IF(ISERROR(Dados!C55),\"-\",Dados!C55)","v":"Energisa"},{"$f":"IF(ISERROR(Dados!AC55),\"-\",Dados!AC55)","v":1},null,{"$f":"IF(ISERROR(Dados!C55),\"-\",Dados!C55)","v":"Energisa"},{"$f":"IF(ISERROR(Dados!AD55),\"-\",Dados!AD55)","v":55.8}]
[{"$f":"IF(ISERROR(Dados!C191),\"-\",Dados!C191)","v":"Metisa"},{"$f":"IF(ISERROR(Dados!F191),\"-\",Dados!F191)","v":152.72},null,{"$f":"IF(ISERROR(Dados!C191),\"-\",Dados!C191)","v":"Metisa"},{"$f":"IF(ISERROR(Dados!G191),\"-\",Dados!G191)","v":230.64},null,{"$f":"IF(ISERROR(Dados!C191),\"-\",Dados!C191)","v":"Metisa"},{"$f":"IF(ISERROR(Dados!X191),\"0\",Dados!X191)","v":24.7},null,{"$f":"IF(ISERROR(Dados!C191),\"-\",Dados!C191)","v":"Metisa"},{"$f":"IF(ISERROR(Dados!AB191),\"0\",Dados!AB191)","v":3.6668412781561022E-2},null,{"$f":"IF(ISERROR(Dados!C191),\"-\",Dados!C191)","v":"Metisa"},{"$f":"IF(ISERROR(Dados!S191),\"-\",Dados!S191)","v":0.66217828650711086},null,{"$f":"IF(ISERROR(Dados!C191),\"-\",Dados!C191)","v":"Metisa"},{"$f":"IF(ISERROR(Dados!T191),\"-\",Dados!T191)","v":9.3466829865361092},null,{"$f":"IF(ISERROR(Dados!C191),\"-\",Dados!C191)","v":"Metisa"},{"$f":"IF(ISERROR(Dados!U191),\"0\",Dados!U191)","v":7.4279999999999999E-2},null,{"$f":"IF(ISERROR(Dados!C191),\"-\",Dados!C191)","v":"Metisa"},{"$f":"IF(ISERROR(IF(Dados!Z191<0,\"-\",Dados!Z191)),\"-\",IF(Dados!Z191<0,\"-\",Dados!Z191))","v":4.6280566801619436},null,{"$f":"IF(ISERROR(Dados!C191),\"-\",Dados!C191)","v":"Metisa"},{"$f":"IF(ISERROR(Dados!AC191),\"-1000000\",Dados!AC191)","v":-5.8},null,{"$f":"IF(ISERROR(Dados!C191),\"-\",Dados!C191)","v":"Metisa"},{"$f":"IF(ISERROR(Dados!AD191),\"-1000000\",Dados!AD191)","v":9.4},null,{"$f":"IF(ISERROR(Dados!C191),\"-\",Dados!C191)","v":"Metisa"},{"$f":"IF(ISERROR(Dados!AC191),\"-\",Dados!AC191)","v":-5.8},null,{"$f":"IF(ISERROR(Dados!C191),\"-\",Dados!C191)","v":"Metisa"},{"$f":"IF(ISERROR(Dados!AD191),\"-\",Dados!AD191)","v":9.4}]
[{"$f":"IF(ISERROR(Dados!C220),\"-\",Dados!C220)","v":"Dohler"},{"$f":"IF(ISERROR(Dados!F220),\"-\",Dados!F220)","v":459.92},null,{"$f":"IF(ISERROR(Dados!C220),\"-\",Dados!C220)","v":"Dohler"},{"$f":"IF(ISERROR(Dados!G220),\"-\",Dados!G220)","v":570.80999999999995},null,{"$f":"IF(ISERROR(Dados!C220),\"-\",Dados!C220)","v":"Dohler"},{"$f":"IF(ISERROR(Dados!X220),\"0\",Dados!X220)","v":45.8},null,{"$f":"IF(ISERROR(Dados!C220),\"-\",Dados!C220)","v":"Dohler"},{"$f":"IF(ISERROR(Dados!AB220),\"0\",Dados!AB220)","v":2.0851452426508956E-2},null,{"$f":"IF(ISERROR(Dados!C220),\"-\",Dados!C220)","v":"Dohler"},{"$f":"IF(ISERROR(Dados!S220),\"-\",Dados!S220)","v":0.80573500814631838},null,{"$f":"IF(ISERROR(Dados!C220),\"-\",Dados!C220)","v":"Dohler"},{"$f":"IF(ISERROR(Dados!T220),\"-\",Dados!T220)","v":9.2782247327012293},null,{"$f":"IF(ISERROR(Dados!C220),\"-\",Dados!C220)","v":"Dohler"},{"$f":"IF(ISERROR(Dados!U220),\"0\",Dados!U220)","v":9.2905999999999989E-2},null,{"$f":"IF(ISERROR(Dados!C220),\"-\",Dados!C220)","v":"Dohler"},{"$f":"IF(ISERROR(IF(Dados!Z220<0,\"-\",Dados!Z220)),\"-\",IF(Dados!Z220<0,\"-\",Dados!Z220))","v":9.689563318777294},null,{"$f":"IF(ISERROR(Dados!C220),\"-\",Dados!C220)","v":"Dohler"},{"$f":"IF(ISERROR(Dados!AC220),\"-1000000\",Dados!AC220)","v":10.1},null,{"$f":"IF(ISERROR(Dados!C220),\"-\",Dados!C220)","v":"Dohler"},{"$f":"IF(ISERROR(Dados!AD220),\"-1000000\",Dados!AD220)","v":35.700000000000003},null,{"$f":"IF(ISERROR(Dados!C220),\"-\",Dados!C220)","v":"Dohler"},{"$f":"IF(ISERROR(Dados!AC220),\"-\",Dados!AC220)","v":10.1},null,{"$f":"IF(ISERROR(Dados!C220),\"-\",Dados!C220)","v":"Dohler"},{"$f":"IF(ISERROR(Dados!AD220),\"-\",Dados!AD220)","v":35.700000000000003}]
[{"$f":"IF(ISERROR(Dados!C164),\"-\",Dados!C164)","v":"Lopes Brasil"},{"$f":"IF(ISERROR(Dados!F164),\"-\",Dados!F164)","v":609.47},null,{"$f":"IF(ISERROR(Dados!C164),\"-\",Dados!C164)","v":"Lopes Brasil"},{"$f":"IF(ISERROR(Dados!G164),\"-\",Dados!G164)","v":47.12},null,{"$f":"IF(ISERROR(Dados!C164),\"-\",Dados!C164)","v":"Lopes Brasil"},{"$f":"IF(ISERROR(Dados!X164),\"0\",Dados!X164)","v":-16.2},null,{"$f":"IF(ISERROR(Dados!C164),\"-\",Dados!C164)","v":"Lopes Brasil"},{"$f":"IF(ISERROR(Dados!AB164),\"0\",Dados!AB164)","v":"0"},null,{"$f":"IF(ISERROR(Dados!C164),\"-\",Dados!C164)","v":"Lopes Brasil"},{"$f":"IF(ISERROR(Dados!S164),\"-\",Dados!S164)","v":12.934328310696094},null,{"$f":"IF(ISERROR(Dados!C164),\"-\",Dados!C164)","v":"Lopes Brasil"},{"$f":"IF(ISERROR(Dados!T164),\"-\",Dados!T164)","v":"-"},null,{"$f":"IF(ISERROR(Dados!C164),\"-\",Dados!C164)","v":"Lopes Brasil"},{"$f":"IF(ISERROR(Dados!U164),\"0\",Dados!U164)","v":-0.60600200000000004},null,{"$f":"IF(ISERROR(Dados!C164),\"-\",Dados!C164)","v":"Lopes Brasil"},{"$f":"IF(ISERROR(IF(Dados!Z164<0,\"-\",Dados!Z164)),\"-\",IF(Dados!Z164<0,\"-\",Dados!Z164))","v":"-"},null,{"$f":"IF(ISERROR(Dados!C164),\"-\",Dados!C164)","v":"Lopes Brasil"},{"$f":"IF(ISERROR(Dados!AC164),\"-1000000\",Dados!AC164)","v":-15.7},null,{"$f":"IF(ISERROR(Dados!C164),\"-\",Dados!C164)","v":"Lopes Brasil"},{"$f":"IF(ISERROR(Dados!AD164),\"-1000000\",Dados!AD164)","v":-13.2},null,{"$f":"IF(ISERROR(Dados!C164),\"-\",Dados!C164)","v":"Lopes Brasil"},{"$f":"IF(ISERROR(Dados!AC164),\"-\",Dados!AC164)","v":-15.7},null,{"$f":"IF(ISERROR(Dados!C164),\"-\",Dados!C164)","v":"Lopes Brasil"},{"$f":"IF(ISERROR(Dados!AD164),\"-\",Dados!AD164)","v":-13.2}]
[{"$f":"IF(ISERROR(Dados!C273),\"-\",Dados!C273)","v":""},{"$f":"IF(ISERROR(Dados!F273),\"-\",Dados!F273)","v":""},null,{"$f":"IF(ISERROR(Dados!C273),\"-\",Dados!C273)","v":""},{"$f":"IF(ISERROR(Dados!G273),\"-\",Dados!G273)","v":""},null,{"$f":"IF(ISERROR(Dados!C273),\"-\",Dados!C273)","v":""},{"$f":"IF(ISERROR(Dados!X273),\"0\",Dados!X273)","v":""},null,{"$f":"IF(ISERROR(Dados!C273),\"-\",Dados!C273)","v":""},{"$f":"IF(ISERROR(Dados!AB273),\"0\",Dados!AB273)","v":""},null,{"$f":"IF(ISERROR(Dados!C273),\"-\",Dados!C273)","v":""},{"$f":"IF(ISERROR(Dados!S273),\"-\",Dados!S273)","v":""},null,{"$f":"IF(ISERROR(Dados!C273),\"-\",Dados!C273)","v":""},{"$f":"IF(ISERROR(Dados!T273),\"-\",Dados!T273)","v":""},null,{"$f":"IF(ISERROR(Dados!C273),\"-\",Dados!C273)","v":""},{"$f":"IF(ISERROR(Dados!U273),\"0\",Dados!U273)","v":""},null,{"$f":"IF(ISERROR(Dados!C273),\"-\",Dados!C273)","v":""},{"$f":"IF(ISERROR(IF(Dados!Z273<0,\"-\",Dados!Z273)),\"-\",IF(Dados!Z273<0,\"-\",Dados!Z273))","v":""},null,{"$f":"IF(ISERROR(Dados!C273),\"-\",Dados!C273)","v":""},{"$f":"IF(ISERROR(Dados!AC273),\"-1000000\",Dados!AC273)","v":""},null,{"$f":"IF(ISERROR(Dados!C273),\"-\",Dados!C273)","v":""},{"$f":"IF(ISERROR(Dados!AD273),\"-1000000\",Dados!AD273)","v":""},null,{"$f":"IF(ISERROR(Dados!C273),\"-\",Dados!C273)","v":""},{"$f":"IF(ISERROR(Dados!AC273),\"-\",Dados!AC273)","v":""},null,{"$f":"IF(ISERROR(Dados!C273),\"-\",Dados!C273)","v":""},{"$f":"IF(ISERROR(Dados!AD273),\"-\",Dados!AD273)","v":""}]
[{"$f":"IF(ISERROR(Dados!C274),\"-\",Dados!C274)","v":""},{"$f":"IF(ISERROR(Dados!F274),\"-\",Dados!F274)","v":""},null,{"$f":"IF(ISERROR(Dados!C274),\"-\",Dados!C274)","v":""},{"$f":"IF(ISERROR(Dados!G274),\"-\",Dados!G274)","v":""},null,{"$f":"IF(ISERROR(Dados!C274),\"-\",Dados!C274)","v":""},{"$f":"IF(ISERROR(Dados!X274),\"0\",Dados!X274)","v":""},null,{"$f":"IF(ISERROR(Dados!C274),\"-\",Dados!C274)","v":""},{"$f":"IF(ISERROR(Dados!AB274),\"0\",Dados!AB274)","v":""},null,{"$f":"IF(ISERROR(Dados!C274),\"-\",Dados!C274)","v":""},{"$f":"IF(ISERROR(Dados!S274),\"-\",Dados!S274)","v":""},null,{"$f":"IF(ISERROR(Dados!C274),\"-\",Dados!C274)","v":""},{"$f":"IF(ISERROR(Dados!T274),\"-\",Dados!T274)","v":""},null,{"$f":"IF(ISERROR(Dados!C274),\"-\",Dados!C274)","v":""},{"$f":"IF(ISERROR(Dados!U274),\"0\",Dados!U274)","v":""},null,{"$f":"IF(ISERROR(Dados!C274),\"-\",Dados!C274)","v":""},{"$f":"IF(ISERROR(IF(Dados!Z274<0,\"-\",Dados!Z274)),\"-\",IF(Dados!Z274<0,\"-\",Dados!Z274))","v":""},null,{"$f":"IF(ISERROR(Dados!C274),\"-\",Dados!C274)","v":""},{"$f":"IF(ISERROR(Dados!AC274),\"-1000000\",Dados!AC274)","v":""},null,{"$f":"IF(ISERROR(Dados!C274),\"-\",Dados!C274)","v":""},{"$f":"IF(ISERROR(Dados!AD274),\"-1000000\",Dados!AD274)","v":""},null,{"$f":"IF(ISERROR(Dados!C274),\"-\",Dados!C274)","v":""},{"$f":"IF(ISERROR(Dados!AC274),\"-\",Dados!AC274)","v":""},null,{"$f":"IF(ISERROR(Dados!C274),\"-\",Dados!C274)","v":""},{"$f":"IF(ISERROR(Dados!AD274),\"-\",Dados!AD274)","v":""}]
[{"$f":"IF(ISERROR(Dados!C272),\"-\",Dados!C272)","v":""},{"$f":"IF(ISERROR(Dados!F272),\"-\",Dados!F272)","v":""},null,{"$f":"IF(ISERROR(Dados!C272),\"-\",Dados!C272)","v":""},{"$f":"IF(ISERROR(Dados!G272),\"-\",Dados!G272)","v":""},null,{"$f":"IF(ISERROR(Dados!C272),\"-\",Dados!C272)","v":""},{"$f":"IF(ISERROR(Dados!X272),\"0\",Dados!X272)","v":""},null,{"$f":"IF(ISERROR(Dados!C272),\"-\",Dados!C272)","v":""},{"$f":"IF(ISERROR(Dados!AB272),\"0\",Dados!AB272)","v":""},null,{"$f":"IF(ISERROR(Dados!C272),\"-\",Dados!C272)","v":""},{"$f":"IF(ISERROR(Dados!S272),\"-\",Dados!S272)","v":""},null,{"$f":"IF(ISERROR(Dados!C272),\"-\",Dados!C272)","v":""},{"$f":"IF(ISERROR(Dados!T272),\"-\",Dados!T272)","v":""},null,{"$f":"IF(ISERROR(Dados!C272),\"-\",Dados!C272)","v":""},{"$f":"IF(ISERROR(Dados!U272),\"0\",Dados!U272)","v":""},null,{"$f":"IF(ISERROR(Dados!C272),\"-\",Dados!C272)","v":""},{"$f":"IF(ISERROR(IF(Dados!Z272<0,\"-\",Dados!Z272)),\"-\",IF(Dados!Z272<0,\"-\",Dados!Z272))","v":""},null,{"$f":"IF(ISERROR(Dados!C272),\"-\",Dados!C272)","v":""},{"$f":"IF(ISERROR(Dados!AC272),\"-1000000\",Dados!AC272)","v":""},null,{"$f":"IF(ISERROR(Dados!C272),\"-\",Dados!C272)","v":""},{"$f":"IF(ISERROR(Dados!AD272),\"-1000000\",Dados!AD272)","v":""},null,{"$f":"IF(ISERROR(Dados!C272),\"-\",Dados!C272)","v":""},{"$f":"IF(ISERROR(Dados!AC272),\"-\",Dados!AC272)","v":""},null,{"$f":"IF(ISERROR(Dados!C272),\"-\",Dados!C272)","v":""},{"$f":"IF(ISERROR(Dados!AD272),\"-\",Dados!AD272)","v":""}]
[{"$f":"IF(ISERROR(Dados!C270),\"-\",Dados!C270)","v":"Recrusul"},{"$f":"IF(ISERROR(Dados!F270),\"-\",Dados!F270)","v":9.02},null,{"$f":"IF(ISERROR(Dados!C270),\"-\",Dados!C270)","v":"Recrusul"},{"$f":"IF(ISERROR(Dados!G270),\"-\",Dados!G270)","v":-63.73},null,{"$f":"IF(ISERROR(Dados!C270),\"-\",Dados!C270)","v":"Recrusul"},{"$f":"IF(ISERROR(Dados!X270),\"0\",Dados!X270)","v":-4.7},null,{"$f":"IF(ISERROR(Dados!C270),\"-\",Dados!C270)","v":"Recrusul"},{"$f":"IF(ISERROR(Dados!AB270),\"0\",Dados!AB270)","v":"0"},null,{"$f":"IF(ISERROR(Dados!C270),\"-\",Dados!C270)","v":"Recrusul"},{"$f":"IF(ISERROR(Dados!S270),\"-\",Dados!S270)","v":"-"},null,{"$f":"IF(ISERROR(Dados!C270),\"-\",Dados!C270)","v":"Recrusul"},{"$f":"IF(ISERROR(Dados!T270),\"-\",Dados!T270)","v":"-"},null,{"$f":"IF(ISERROR(Dados!C270),\"-\",Dados!C270)","v":"Recrusul"},{"$f":"IF(ISERROR(Dados!U270),\"0\",Dados!U270)","v":"0"},null,{"$f":"IF(ISERROR(Dados!C270),\"-\",Dados!C270)","v":"Recrusul"},{"$f":"IF(ISERROR(IF(Dados!Z270<0,\"-\",Dados!Z270)),\"-\",IF(Dados!Z270<0,\"-\",Dados!Z270))","v":"-"},null,{"$f":"IF(ISERROR(Dados!C270),\"-\",Dados!C270)","v":"Recrusul"},{"$f":"IF(ISERROR(Dados!AC270),\"-1000000\",Dados!AC270)","v":-4.4000000000000004},null,{"$f":"IF(ISERROR(Dados!C270),\"-\",Dados!C270)","v":"Recrusul"},{"$f":"IF(ISERROR(Dados!AD270),\"-1000000\",Dados!AD270)","v":-3.8},null,{"$f":"IF(ISERROR(Dados!C270),\"-\",Dados!C270)","v":"Recrusul"},{"$f":"IF(ISERROR(Dados!AC270),\"-\",Dados!AC270)","v":-4.4000000000000004},null,{"$f":"IF(ISERROR(Dados!C270),\"-\",Dados!C270)","v":"Recrusul"},{"$f":"IF(ISERROR(Dados!AD270),\"-\",Dados!AD270)","v":-3.8}]
[{"$f":"IF(ISERROR(Dados!C269),\"-\",Dados!C269)","v":"Plascar Part"},{"$f":"IF(ISERROR(Dados!F269),\"-\",Dados!F269)","v":94.43},null,{"$f":"IF(ISERROR(Dados!C269),\"-\",Dados!C269)","v":"Plascar Part"},{"$f":"IF(ISERROR(Dados!G269),\"-\",Dados!G269)","v":-514.30999999999995},null,{"$f":"IF(ISERROR(Dados!C269),\"-\",Dados!C269)","v":"Plascar Part"},{"$f":"IF(ISERROR(Dados!X269),\"0\",Dados!X269)","v":-85.3},null,{"$f":"IF(ISERROR(Dados!C269),\"-\",Dados!C269)","v":"Plascar Part"},{"$f":"IF(ISERROR(Dados!AB269),\"0\",Dados!AB269)","v":"0"},null,{"$f":"IF(ISERROR(Dados!C269),\"-\",Dados!C269)","v":"Plascar Part"},{"$f":"IF(ISERROR(Dados!S269),\"-\",Dados!S269)","v":"-"},null,{"$f":"IF(ISERROR(Dados!C269),\"-\",Dados!C269)","v":"Plascar Part"},{"$f":"IF(ISERROR(Dados!T269),\"-\",Dados!T269)","v":"-"},null,{"$f":"IF(ISERROR(Dados!C269),\"-\",Dados!C269)","v":"Plascar Part"},{"$f":"IF(ISERROR(Dados!U269),\"0\",Dados!U269)","v":"0"},null,{"$f":"IF(ISERROR(Dados!C269),\"-\",Dados!C269)","v":"Plascar Part"},{"$f":"IF(ISERROR(IF(Dados!Z269<0,\"-\",Dados!Z269)),\"-\",IF(Dados!Z269<0,\"-\",Dados!Z269))","v":"-"},null,{"$f":"IF(ISERROR(Dados!C269),\"-\",Dados!C269)","v":"Plascar Part"},{"$f":"IF(ISERROR(Dados!AC269),\"-1000000\",Dados!AC269)","v":-17.5},null,{"$f":"IF(ISERROR(Dados!C269),\"-\",Dados!C269)","v":"Plascar Part"},{"$f":"IF(ISERROR(Dados!AD269),\"-1000000\",Dados!AD269)","v":31},null,{"$f":"IF(ISERROR(Dados!C269),\"-\",Dados!C269)","v":"Plascar Part"},{"$f":"IF(ISERROR(Dados!AC269),\"-\",Dados!AC269)","v":-17.5},null,{"$f":"IF(ISERROR(Dados!C269),\"-\",Dados!C269)","v":"Plascar Part"},{"$f":"IF(ISERROR(Dados!AD269),\"-\",Dados!AD269)","v":31}]
[{"$f":"IF(ISERROR(Dados!C271),\"-\",Dados!C271)","v":""},{"$f":"IF(ISERROR(Dados!F271),\"-\",Dados!F271)","v":""},null,{"$f":"IF(ISERROR(Dados!C271),\"-\",Dados!C271)","v":""},{"$f":"IF(ISERROR(Dados!G271),\"-\",Dados!G271)","v":""},null,{"$f":"IF(ISERROR(Dados!C271),\"-\",Dados!C271)","v":""},{"$f":"IF(ISERROR(Dados!X271),\"0\",Dados!X271)","v":""},null,{"$f":"IF(ISERROR(Dados!C271),\"-\",Dados!C271)","v":""},{"$f":"IF(ISERROR(Dados!AB271),\"0\",Dados!AB271)","v":""},null,{"$f":"IF(ISERROR(Dados!C271),\"-\",Dados!C271)","v":""},{"$f":"IF(ISERROR(Dados!S271),\"-\",Dados!S271)","v":""},null,{"$f":"IF(ISERROR(Dados!C271),\"-\",Dados!C271)","v":""},{"$f":"IF(ISERROR(Dados!T271),\"-\",Dados!T271)","v":""},null,{"$f":"IF(ISERROR(Dados!C271),\"-\",Dados!C271)","v":""},{"$f":"IF(ISERROR(Dados!U271),\"0\",Dados!U271)","v":""},null,{"$f":"IF(ISERROR(Dados!C271),\"-\",Dados!C271)","v":""},{"$f":"IF(ISERROR(IF(Dados!Z271<0,\"-\",Dados!Z271)),\"-\",IF(Dados!Z271<0,\"-\",Dados!Z271))","v":""},null,{"$f":"IF(ISERROR(Dados!C271),\"-\",Dados!C271)","v":""},{"$f":"IF(ISERROR(Dados!AC271),\"-1000000\",Dados!AC271)","v":""},null,{"$f":"IF(ISERROR(Dados!C271),\"-\",Dados!C271)","v":""},{"$f":"IF(ISERROR(Dados!AD271),\"-1000000\",Dados!AD271)","v":""},null,{"$f":"IF(ISERROR(Dados!C271),\"-\",Dados!C271)","v":""},{"$f":"IF(ISERROR(Dados!AC271),\"-\",Dados!AC271)","v":""},null,{"$f":"IF(ISERROR(Dados!C271),\"-\",Dados!C271)","v":""},{"$f":"IF(ISERROR(Dados!AD271),\"-\",Dados!AD271)","v":""}]
[{"$f":"IF(ISERROR(Dados!C36),\"-\",Dados!C36)","v":"Eztec"},{"$f":"IF(ISERROR(Dados!F36),\"-\",Dados!F36)","v":4422.05},null,{"$f":"IF(ISERROR(Dados!C36),\"-\",Dados!C36)","v":"Eztec"},{"$f":"IF(ISERROR(Dados!G36),\"-\",Dados!G36)","v":2609.7199999999998},null,{"$f":"IF(ISERROR(Dados!C36),\"-\",Dados!C36)","v":"Eztec"},{"$f":"IF(ISERROR(Dados!X36),\"0\",Dados!X36)","v":6},null,{"$f":"IF(ISERROR(Dados!C36),\"-\",Dados!C36)","v":"Eztec"},{"$f":"IF(ISERROR(Dados!AB36),\"0\",Dados!AB36)","v":1.9271604798679346E-2},null,{"$f":"IF(ISERROR(Dados!C36),\"-\",Dados!C36)","v":"Eztec"},{"$f":"IF(ISERROR(Dados!S36),\"-\",Dados!S36)","v":1.6944551905951599},null,{"$f":"IF(ISERROR(Dados!C36),\"-\",Dados!C36)","v":"Eztec"},{"$f":"IF(ISERROR(Dados!T36),\"-\",Dados!T36)","v":45.335796596268203},null,{"$f":"IF(ISERROR(Dados!C36),\"-\",Dados!C36)","v":"Eztec"},{"$f":"IF(ISERROR(Dados!U36),\"0\",Dados!U36)","v":3.9837999999999998E-2},null,{"$f":"IF(ISERROR(Dados!C36),\"-\",Dados!C36)","v":"Eztec"},{"$f":"IF(ISERROR(IF(Dados!Z36<0,\"-\",Dados!Z36)),\"-\",IF(Dados!Z36<0,\"-\",Dados!Z36))","v":669.81900000000007},null,{"$f":"IF(ISERROR(Dados!C36),\"-\",Dados!C36)","v":"Eztec"},{"$f":"IF(ISERROR(Dados!AC36),\"-1000000\",Dados!AC36)","v":0.5},null,{"$f":"IF(ISERROR(Dados!C36),\"-\",Dados!C36)","v":"Eztec"},{"$f":"IF(ISERROR(Dados!AD36),\"-1000000\",Dados!AD36)","v":27},null,{"$f":"IF(ISERROR(Dados!C36),\"-\",Dados!C36)","v":"Eztec"},{"$f":"IF(ISERROR(Dados!AC36),\"-\",Dados!AC36)","v":0.5},null,{"$f":"IF(ISERROR(Dados!C36),\"-\",Dados!C36)","v":"Eztec"},{"$f":"IF(ISERROR(Dados!AD36),\"-\",Dados!AD36)","v":27}]
[{"$f":"IF(ISERROR(Dados!C104),\"-\",Dados!C104)","v":"Banco Inter"},{"$f":"IF(ISERROR(Dados!F104),\"-\",Dados!F104)","v":5359.3},null,{"$f":"IF(ISERROR(Dados!C104),\"-\",Dados!C104)","v":"Banco Inter"},{"$f":"IF(ISERROR(Dados!G104),\"-\",Dados!G104)","v":948.78},null,{"$f":"IF(ISERROR(Dados!C104),\"-\",Dados!C104)","v":"Banco Inter"},{"$f":"IF(ISERROR(Dados!X104),\"0\",Dados!X104)","v":"0"},null,{"$f":"IF(ISERROR(Dados!C104),\"-\",Dados!C104)","v":"Banco Inter"},{"$f":"IF(ISERROR(Dados!AB104),\"0\",Dados!AB104)","v":3.9520086578471066E-3},null,{"$f":"IF(ISERROR(Dados!C104),\"-\",Dados!C104)","v":"Banco Inter"},{"$f":"IF(ISERROR(Dados!S104),\"-\",Dados!S104)","v":5.6486296190897782},null,{"$f":"IF(ISERROR(Dados!C104),\"-\",Dados!C104)","v":"Banco Inter"},{"$f":"IF(ISERROR(Dados!T104),\"-\",Dados!T104)","v":76.736924541809842},null,{"$f":"IF(ISERROR(Dados!C104),\"-\",Dados!C104)","v":"Banco Inter"},{"$f":"IF(ISERROR(Dados!U104),\"0\",Dados!U104)","v":"0"},null,{"$f":"IF(ISERROR(Dados!C104),\"-\",Dados!C104)","v":"Banco Inter"},{"$f":"IF(ISERROR(IF(Dados!Z104<0,\"-\",Dados!Z104)),\"-\",IF(Dados!Z104<0,\"-\",Dados!Z104))","v":"-"},null,{"$f":"IF(ISERROR(Dados!C104),\"-\",Dados!C104)","v":"Banco Inter"},{"$f":"IF(ISERROR(Dados!AC104),\"-1000000\",Dados!AC104)","v":38.9},null,{"$f":"IF(ISERROR(Dados!C104),\"-\",Dados!C104)","v":"Banco Inter"},{"$f":"IF(ISERROR(Dados!AD104),\"-1000000\",Dados!AD104)","v":"-1000000"},null,{"$f":"IF(ISERROR(Dados!C104),\"-\",Dados!C104)","v":"Banco Inter"},{"$f":"IF(ISERROR(Dados!AC104),\"-\",Dados!AC104)","v":38.9},null,{"$f":"IF(ISERROR(Dados!C104),\"-\",Dados!C104)","v":"Banco Inter"},{"$f":"IF(ISERROR(Dados!AD104),\"-\",Dados!AD104)","v":"-"}]
[{"$f":"IF(ISERROR(Dados!C163),\"-\",Dados!C163)","v":"Somos Educa"},{"$f":"IF(ISERROR(Dados!F163),\"-\",Dados!F163)","v":5863.82},null,{"$f":"IF(ISERROR(Dados!C163),\"-\",Dados!C163)","v":"Somos Educa"},{"$f":"IF(ISERROR(Dados!G163),\"-\",Dados!G163)","v":390.94},null,{"$f":"IF(ISERROR(Dados!C163),\"-\",Dados!C163)","v":"Somos Educa"},{"$f":"IF(ISERROR(Dados!X163),\"0\",Dados!X163)","v":-146},null,{"$f":"IF(ISERROR(Dados!C163),\"-\",Dados!C163)","v":"Somos Educa"},{"$f":"IF(ISERROR(Dados!AB163),\"0\",Dados!AB163)","v":"0"},null,{"$f":"IF(ISERROR(Dados!C163),\"-\",Dados!C163)","v":"Somos Educa"},{"$f":"IF(ISERROR(Dados!S163),\"-\",Dados!S163)","v":14.999298434542386},null,{"$f":"IF(ISERROR(Dados!C163),\"-\",Dados!C163)","v":"Somos Educa"},{"$f":"IF(ISERROR(Dados!T163),\"-\",Dados!T163)","v":"-"},null,{"$f":"IF(ISERROR(Dados!C163),\"-\",Dados!C163)","v":"Somos Educa"},{"$f":"IF(ISERROR(Dados!U163),\"0\",Dados!U163)","v":-0.46932899999999994},null,{"$f":"IF(ISERROR(Dados!C163),\"-\",Dados!C163)","v":"Somos Educa"},{"$f":"IF(ISERROR(IF(Dados!Z163<0,\"-\",Dados!Z163)),\"-\",IF(Dados!Z163<0,\"-\",Dados!Z163))","v":"-"},null,{"$f":"IF(ISERROR(Dados!C163),\"-\",Dados!C163)","v":"Somos Educa"},{"$f":"IF(ISERROR(Dados!AC163),\"-1000000\",Dados!AC163)","v":1.4},null,{"$f":"IF(ISERROR(Dados!C163),\"-\",Dados!C163)","v":"Somos Educa"},{"$f":"IF(ISERROR(Dados!AD163),\"-1000000\",Dados!AD163)","v":51.6},null,{"$f":"IF(ISERROR(Dados!C163),\"-\",Dados!C163)","v":"Somos Educa"},{"$f":"IF(ISERROR(Dados!AC163),\"-\",Dados!AC163)","v":1.4},null,{"$f":"IF(ISERROR(Dados!C163),\"-\",Dados!C163)","v":"Somos Educa"},{"$f":"IF(ISERROR(Dados!AD163),\"-\",Dados!AD163)","v":51.6}]
[{"$f":"IF(ISERROR(Dados!C118),\"-\",Dados!C118)","v":"Odontoprev"},{"$f":"IF(ISERROR(Dados!F118),\"-\",Dados!F118)","v":8694.32},null,{"$f":"IF(ISERROR(Dados!C118),\"-\",Dados!C118)","v":"Odontoprev"},{"$f":"IF(ISERROR(Dados!G118),\"-\",Dados!G118)","v":1027.46},null,{"$f":"IF(ISERROR(Dados!C118),\"-\",Dados!C118)","v":"Odontoprev"},{"$f":"IF(ISERROR(Dados!X118),\"0\",Dados!X118)","v":397.5},null,{"$f":"IF(ISERROR(Dados!C118),\"-\",Dados!C118)","v":"Odontoprev"},{"$f":"IF(ISERROR(Dados!AB118),\"0\",Dados!AB118)","v":9.9743280670598743E-3},null,{"$f":"IF(ISERROR(Dados!C118),\"-\",Dados!C118)","v":"Odontoprev"},{"$f":"IF(ISERROR(Dados!S118),\"-\",Dados!S118)","v":8.4619632881085387},null,{"$f":"IF(ISERROR(Dados!C118),\"-\",Dados!C118)","v":"Odontoprev"},{"$f":"IF(ISERROR(Dados!T118),\"-\",Dados!T118)","v":30.528911829769303},null,{"$f":"IF(ISERROR(Dados!C118),\"-\",Dados!C118)","v":"Odontoprev"},{"$f":"IF(ISERROR(Dados!U118),\"0\",Dados!U118)","v":0.30787199999999998},null,{"$f":"IF(ISERROR(Dados!C118),\"-\",Dados!C118)","v":"Odontoprev"},{"$f":"IF(ISERROR(IF(Dados!Z118<0,\"-\",Dados!Z118)),\"-\",IF(Dados!Z118<0,\"-\",Dados!Z118))","v":20.661091823899369},null,{"$f":"IF(ISERROR(Dados!C118),\"-\",Dados!C118)","v":"Odontoprev"},{"$f":"IF(ISERROR(Dados!AC118),\"-1000000\",Dados!AC118)","v":-1},null,{"$f":"IF(ISERROR(Dados!C118),\"-\",Dados!C118)","v":"Odontoprev"},{"$f":"IF(ISERROR(Dados!AD118),\"-1000000\",Dados!AD118)","v":5.4},null,{"$f":"IF(ISERROR(Dados!C118),\"-\",Dados!C118)","v":"Odontoprev"},{"$f":"IF(ISERROR(Dados!AC118),\"-\",Dados!AC118)","v":-1},null,{"$f":"IF(ISERROR(Dados!C118),\"-\",Dados!C118)","v":"Odontoprev"},{"$f":"IF(ISERROR(Dados!AD118),\"-\",Dados!AD118)","v":5.4}]
[{"$f":"IF(ISERROR(Dados!C166),\"-\",Dados!C166)","v":"Hoteis Othon"},{"$f":"IF(ISERROR(Dados!F166),\"-\",Dados!F166)","v":34.909999999999997},null,{"$f":"IF(ISERROR(Dados!C166),\"-\",Dados!C166)","v":"Hoteis Othon"},{"$f":"IF(ISERROR(Dados!G166),\"-\",Dados!G166)","v":-226.26},null,{"$f":"IF(ISERROR(Dados!C166),\"-\",Dados!C166)","v":"Hoteis Othon"},{"$f":"IF(ISERROR(Dados!X166),\"0\",Dados!X166)","v":-24},null,{"$f":"IF(ISERROR(Dados!C166),\"-\",Dados!C166)","v":"Hoteis Othon"},{"$f":"IF(ISERROR(Dados!AB166),\"0\",Dados!AB166)","v":"0"},null,{"$f":"IF(ISERROR(Dados!C166),\"-\",Dados!C166)","v":"Hoteis Othon"},{"$f":"IF(ISERROR(Dados!S166),\"-\",Dados!S166)","v":"-"},null,{"$f":"IF(ISERROR(Dados!C166),\"-\",Dados!C166)","v":"Hoteis Othon"},{"$f":"IF(ISERROR(Dados!T166),\"-\",Dados!T166)","v":"-"},null,{"$f":"IF(ISERROR(Dados!C166),\"-\",Dados!C166)","v":"Hoteis Othon"},{"$f":"IF(ISERROR(Dados!U166),\"0\",Dados!U166)","v":"0"},null,{"$f":"IF(ISERROR(Dados!C166),\"-\",Dados!C166)","v":"Hoteis Othon"},{"$f":"IF(ISERROR(IF(Dados!Z166<0,\"-\",Dados!Z166)),\"-\",IF(Dados!Z166<0,\"-\",Dados!Z166))","v":"-"},null,{"$f":"IF(ISERROR(Dados!C166),\"-\",Dados!C166)","v":"Hoteis Othon"},{"$f":"IF(ISERROR(Dados!AC166),\"-1000000\",Dados!AC166)","v":-2.1},null,{"$f":"IF(ISERROR(Dados!C166),\"-\",Dados!C166)","v":"Hoteis Othon"},{"$f":"IF(ISERROR(Dados!AD166),\"-1000000\",Dados!AD166)","v":-29.4},null,{"$f":"IF(ISERROR(Dados!C166),\"-\",Dados!C166)","v":"Hoteis Othon"},{"$f":"IF(ISERROR(Dados!AC166),\"-\",Dados!AC166)","v":-2.1},null,{"$f":"IF(ISERROR(Dados!C166),\"-\",Dados!C166)","v":"Hoteis Othon"},{"$f":"IF(ISERROR(Dados!AD166),\"-\",Dados!AD166)","v":-29.4}]
[{"$f":"IF(ISERROR(Dados!C71),\"-\",Dados!C71)","v":"Emae"},{"$f":"IF(ISERROR(Dados!F71),\"-\",Dados!F71)","v":856.8},null,{"$f":"IF(ISERROR(Dados!C71),\"-\",Dados!C71)","v":"Emae"},{"$f":"IF(ISERROR(Dados!G71),\"-\",Dados!G71)","v":868.86},null,{"$f":"IF(ISERROR(Dados!C71),\"-\",Dados!C71)","v":"Emae"},{"$f":"IF(ISERROR(Dados!X71),\"0\",Dados!X71)","v":6.7},null,{"$f":"IF(ISERROR(Dados!C71),\"-\",Dados!C71)","v":"Emae"},{"$f":"IF(ISERROR(Dados!AB71),\"0\",Dados!AB71)","v":4.0021008403361348E-2},null,{"$f":"IF(ISERROR(Dados!C71),\"-\",Dados!C71)","v":"Emae"},{"$f":"IF(ISERROR(Dados!S71),\"-\",Dados!S71)","v":0.98612081347973213},null,{"$f":"IF(ISERROR(Dados!C71),\"-\",Dados!C71)","v":"Emae"},{"$f":"IF(ISERROR(Dados!T71),\"-\",Dados!T71)","v":8.4397254728132403},null,{"$f":"IF(ISERROR(Dados!C71),\"-\",Dados!C71)","v":"Emae"},{"$f":"IF(ISERROR(Dados!U71),\"0\",Dados!U71)","v":0.12382},null,{"$f":"IF(ISERROR(Dados!C71),\"-\",Dados!C71)","v":"Emae"},{"$f":"IF(ISERROR(IF(Dados!Z71<0,\"-\",Dados!Z71)),\"-\",IF(Dados!Z71<0,\"-\",Dados!Z71))","v":105.09104477611939},null,{"$f":"IF(ISERROR(Dados!C71),\"-\",Dados!C71)","v":"Emae"},{"$f":"IF(ISERROR(Dados!AC71),\"-1000000\",Dados!AC71)","v":3.3},null,{"$f":"IF(ISERROR(Dados!C71),\"-\",Dados!C71)","v":"Emae"},{"$f":"IF(ISERROR(Dados!AD71),\"-1000000\",Dados!AD71)","v":186.2},null,{"$f":"IF(ISERROR(Dados!C71),\"-\",Dados!C71)","v":"Emae"},{"$f":"IF(ISERROR(Dados!AC71),\"-\",Dados!AC71)","v":3.3},null,{"$f":"IF(ISERROR(Dados!C71),\"-\",Dados!C71)","v":"Emae"},{"$f":"IF(ISERROR(Dados!AD71),\"-\",Dados!AD71)","v":186.2}]
[{"$f":"IF(ISERROR(Dados!C246),\"-\",Dados!C246)","v":"-"},{"$f":"IF(ISERROR(Dados!F246),\"-\",Dados!F246)","v":"-"},null,{"$f":"IF(ISERROR(Dados!C246),\"-\",Dados!C246)","v":"-"},{"$f":"IF(ISERROR(Dados!G246),\"-\",Dados!G246)","v":"-"},null,{"$f":"IF(ISERROR(Dados!C246),\"-\",Dados!C246)","v":"-"},{"$f":"IF(ISERROR(Dados!X246),\"0\",Dados!X246)","v":"0"},null,{"$f":"IF(ISERROR(Dados!C246),\"-\",Dados!C246)","v":"-"},{"$f":"IF(ISERROR(Dados!AB246),\"0\",Dados!AB246)","v":"0"},null,{"$f":"IF(ISERROR(Dados!C246),\"-\",Dados!C246)","v":"-"},{"$f":"IF(ISERROR(Dados!S246),\"-\",Dados!S246)","v":"-"},null,{"$f":"IF(ISERROR(Dados!C246),\"-\",Dados!C246)","v":"-"},{"$f":"IF(ISERROR(Dados!T246),\"-\",Dados!T246)","v":"-"},null,{"$f":"IF(ISERROR(Dados!C246),\"-\",Dados!C246)","v":"-"},{"$f":"IF(ISERROR(Dados!U246),\"0\",Dados!U246)","v":"0"},null,{"$f":"IF(ISERROR(Dados!C246),\"-\",Dados!C246)","v":"-"},{"$f":"IF(ISERROR(IF(Dados!Z246<0,\"-\",Dados!Z246)),\"-\",IF(Dados!Z246<0,\"-\",Dados!Z246))","v":"-"},null,{"$f":"IF(ISERROR(Dados!C246),\"-\",Dados!C246)","v":"-"},{"$f":"IF(ISERROR(Dados!AC246),\"-1000000\",Dados!AC246)","v":"-1000000"},null,{"$f":"IF(ISERROR(Dados!C246),\"-\",Dados!C246)","v":"-"},{"$f":"IF(ISERROR(Dados!AD246),\"-1000000\",Dados!AD246)","v":"-1000000"},null,{"$f":"IF(ISERROR(Dados!C246),\"-\",Dados!C246)","v":"-"},{"$f":"IF(ISERROR(Dados!AC246),\"-\",Dados!AC246)","v":"-"},null,{"$f":"IF(ISERROR(Dados!C246),\"-\",Dados!C246)","v":"-"},{"$f":"IF(ISERROR(Dados!AD246),\"-\",Dados!AD246)","v":"-"}]
[{"$f":"IF(ISERROR(Dados!C245),\"-\",Dados!C245)","v":"-"},{"$f":"IF(ISERROR(Dados!F245),\"-\",Dados!F245)","v":"-"},null,{"$f":"IF(ISERROR(Dados!C245),\"-\",Dados!C245)","v":"-"},{"$f":"IF(ISERROR(Dados!G245),\"-\",Dados!G245)","v":"-"},null,{"$f":"IF(ISERROR(Dados!C245),\"-\",Dados!C245)","v":"-"},{"$f":"IF(ISERROR(Dados!X245),\"0\",Dados!X245)","v":"0"},null,{"$f":"IF(ISERROR(Dados!C245),\"-\",Dados!C245)","v":"-"},{"$f":"IF(ISERROR(Dados!AB245),\"0\",Dados!AB245)","v":"0"},null,{"$f":"IF(ISERROR(Dados!C245),\"-\",Dados!C245)","v":"-"},{"$f":"IF(ISERROR(Dados!S245),\"-\",Dados!S245)","v":"-"},null,{"$f":"IF(ISERROR(Dados!C245),\"-\",Dados!C245)","v":"-"},{"$f":"IF(ISERROR(Dados!T245),\"-\",Dados!T245)","v":"-"},null,{"$f":"IF(ISERROR(Dados!C245),\"-\",Dados!C245)","v":"-"},{"$f":"IF(ISERROR(Dados!U245),\"0\",Dados!U245)","v":"0"},null,{"$f":"IF(ISERROR(Dados!C245),\"-\",Dados!C245)","v":"-"},{"$f":"IF(ISERROR(IF(Dados!Z245<0,\"-\",Dados!Z245)),\"-\",IF(Dados!Z245<0,\"-\",Dados!Z245))","v":"-"},null,{"$f":"IF(ISERROR(Dados!C245),\"-\",Dados!C245)","v":"-"},{"$f":"IF(ISERROR(Dados!AC245),\"-1000000\",Dados!AC245)","v":"-1000000"},null,{"$f":"IF(ISERROR(Dados!C245),\"-\",Dados!C245)","v":"-"},{"$f":"IF(ISERROR(Dados!AD245),\"-1000000\",Dados!AD245)","v":"-1000000"},null,{"$f":"IF(ISERROR(Dados!C245),\"-\",Dados!C245)","v":"-"},{"$f":"IF(ISERROR(Dados!AC245),\"-\",Dados!AC245)","v":"-"},null,{"$f":"IF(ISERROR(Dados!C245),\"-\",Dados!C245)","v":"-"},{"$f":"IF(ISERROR(Dados!AD245),\"-\",Dados!AD245)","v":"-"}]
[{"$f":"IF(ISERROR(Dados!C268),\"-\",Dados!C268)","v":"-"},{"$f":"IF(ISERROR(Dados!F268),\"-\",Dados!F268)","v":"-"},null,{"$f":"IF(ISERROR(Dados!C268),\"-\",Dados!C268)","v":"-"},{"$f":"IF(ISERROR(Dados!G268),\"-\",Dados!G268)","v":"-"},null,{"$f":"IF(ISERROR(Dados!C268),\"-\",Dados!C268)","v":"-"},{"$f":"IF(ISERROR(Dados!X268),\"0\",Dados!X268)","v":"0"},null,{"$f":"IF(ISERROR(Dados!C268),\"-\",Dados!C268)","v":"-"},{"$f":"IF(ISERROR(Dados!AB268),\"0\",Dados!AB268)","v":"0"},null,{"$f":"IF(ISERROR(Dados!C268),\"-\",Dados!C268)","v":"-"},{"$f":"IF(ISERROR(Dados!S268),\"-\",Dados!S268)","v":"-"},null,{"$f":"IF(ISERROR(Dados!C268),\"-\",Dados!C268)","v":"-"},{"$f":"IF(ISERROR(Dados!T268),\"-\",Dados!T268)","v":"-"},null,{"$f":"IF(ISERROR(Dados!C268),\"-\",Dados!C268)","v":"-"},{"$f":"IF(ISERROR(Dados!U268),\"0\",Dados!U268)","v":"0"},null,{"$f":"IF(ISERROR(Dados!C268),\"-\",Dados!C268)","v":"-"},{"$f":"IF(ISERROR(IF(Dados!Z268<0,\"-\",Dados!Z268)),\"-\",IF(Dados!Z268<0,\"-\",Dados!Z268))","v":"-"},null,{"$f":"IF(ISERROR(Dados!C268),\"-\",Dados!C268)","v":"-"},{"$f":"IF(ISERROR(Dados!AC268),\"-1000000\",Dados!AC268)","v":"-1000000"},null,{"$f":"IF(ISERROR(Dados!C268),\"-\",Dados!C268)","v":"-"},{"$f":"IF(ISERROR(Dados!AD268),\"-1000000\",Dados!AD268)","v":"-1000000"},null,{"$f":"IF(ISERROR(Dados!C268),\"-\",Dados!C268)","v":"-"},{"$f":"IF(ISERROR(Dados!AC268),\"-\",Dados!AC268)","v":"-"},null,{"$f":"IF(ISERROR(Dados!C268),\"-\",Dados!C268)","v":"-"},{"$f":"IF(ISERROR(Dados!AD268),\"-\",Dados!AD268)","v":"-"}]
[{"$f":"IF(ISERROR(Dados!C247),\"-\",Dados!C247)","v":"-"},{"$f":"IF(ISERROR(Dados!F247),\"-\",Dados!F247)","v":"-"},null,{"$f":"IF(ISERROR(Dados!C247),\"-\",Dados!C247)","v":"-"},{"$f":"IF(ISERROR(Dados!G247),\"-\",Dados!G247)","v":"-"},null,{"$f":"IF(ISERROR(Dados!C247),\"-\",Dados!C247)","v":"-"},{"$f":"IF(ISERROR(Dados!X247),\"0\",Dados!X247)","v":"0"},null,{"$f":"IF(ISERROR(Dados!C247),\"-\",Dados!C247)","v":"-"},{"$f":"IF(ISERROR(Dados!AB247),\"0\",Dados!AB247)","v":"0"},null,{"$f":"IF(ISERROR(Dados!C247),\"-\",Dados!C247)","v":"-"},{"$f":"IF(ISERROR(Dados!S247),\"-\",Dados!S247)","v":"-"},null,{"$f":"IF(ISERROR(Dados!C247),\"-\",Dados!C247)","v":"-"},{"$f":"IF(ISERROR(Dados!T247),\"-\",Dados!T247)","v":"-"},null,{"$f":"IF(ISERROR(Dados!C247),\"-\",Dados!C247)","v":"-"},{"$f":"IF(ISERROR(Dados!U247),\"0\",Dados!U247)","v":"0"},null,{"$f":"IF(ISERROR(Dados!C247),\"-\",Dados!C247)","v":"-"},{"$f":"IF(ISERROR(IF(Dados!Z247<0,\"-\",Dados!Z247)),\"-\",IF(Dados!Z247<0,\"-\",Dados!Z247))","v":"-"},null,{"$f":"IF(ISERROR(Dados!C247),\"-\",Dados!C247)","v":"-"},{"$f":"IF(ISERROR(Dados!AC247),\"-1000000\",Dados!AC247)","v":"-1000000"},null,{"$f":"IF(ISERROR(Dados!C247),\"-\",Dados!C247)","v":"-"},{"$f":"IF(ISERROR(Dados!AD247),\"-1000000\",Dados!AD247)","v":"-1000000"},null,{"$f":"IF(ISERROR(Dados!C247),\"-\",Dados!C247)","v":"-"},{"$f":"IF(ISERROR(Dados!AC247),\"-\",Dados!AC247)","v":"-"},null,{"$f":"IF(ISERROR(Dados!C247),\"-\",Dados!C247)","v":"-"},{"$f":"IF(ISERROR(Dados!AD247),\"-\",Dados!AD247)","v":"-"}]
[{"$f":"IF(ISERROR(Dados!C256),\"-\",Dados!C256)","v":"-"},{"$f":"IF(ISERROR(Dados!F256),\"-\",Dados!F256)","v":"-"},null,{"$f":"IF(ISERROR(Dados!C256),\"-\",Dados!C256)","v":"-"},{"$f":"IF(ISERROR(Dados!G256),\"-\",Dados!G256)","v":"-"},null,{"$f":"IF(ISERROR(Dados!C256),\"-\",Dados!C256)","v":"-"},{"$f":"IF(ISERROR(Dados!X256),\"0\",Dados!X256)","v":"0"},null,{"$f":"IF(ISERROR(Dados!C256),\"-\",Dados!C256)","v":"-"},{"$f":"IF(ISERROR(Dados!AB256),\"0\",Dados!AB256)","v":"0"},null,{"$f":"IF(ISERROR(Dados!C256),\"-\",Dados!C256)","v":"-"},{"$f":"IF(ISERROR(Dados!S256),\"-\",Dados!S256)","v":"-"},null,{"$f":"IF(ISERROR(Dados!C256),\"-\",Dados!C256)","v":"-"},{"$f":"IF(ISERROR(Dados!T256),\"-\",Dados!T256)","v":"-"},null,{"$f":"IF(ISERROR(Dados!C256),\"-\",Dados!C256)","v":"-"},{"$f":"IF(ISERROR(Dados!U256),\"0\",Dados!U256)","v":"0"},null,{"$f":"IF(ISERROR(Dados!C256),\"-\",Dados!C256)","v":"-"},{"$f":"IF(ISERROR(IF(Dados!Z256<0,\"-\",Dados!Z256)),\"-\",IF(Dados!Z256<0,\"-\",Dados!Z256))","v":"-"},null,{"$f":"IF(ISERROR(Dados!C256),\"-\",Dados!C256)","v":"-"},{"$f":"IF(ISERROR(Dados!AC256),\"-1000000\",Dados!AC256)","v":"-1000000"},null,{"$f":"IF(ISERROR(Dados!C256),\"-\",Dados!C256)","v":"-"},{"$f":"IF(ISERROR(Dados!AD256),\"-1000000\",Dados!AD256)","v":"-1000000"},null,{"$f":"IF(ISERROR(Dados!C256),\"-\",Dados!C256)","v":"-"},{"$f":"IF(ISERROR(Dados!AC256),\"-\",Dados!AC256)","v":"-"},null,{"$f":"IF(ISERROR(Dados!C256),\"-\",Dados!C256)","v":"-"},{"$f":"IF(ISERROR(Dados!AD256),\"-\",Dados!AD256)","v":"-"}]
[{"$f":"IF(ISERROR(Dados!C255),\"-\",Dados!C255)","v":"-"},{"$f":"IF(ISERROR(Dados!F255),\"-\",Dados!F255)","v":"-"},null,{"$f":"IF(ISERROR(Dados!C255),\"-\",Dados!C255)","v":"-"},{"$f":"IF(ISERROR(Dados!G255),\"-\",Dados!G255)","v":"-"},null,{"$f":"IF(ISERROR(Dados!C255),\"-\",Dados!C255)","v":"-"},{"$f":"IF(ISERROR(Dados!X255),\"0\",Dados!X255)","v":"0"},null,{"$f":"IF(ISERROR(Dados!C255),\"-\",Dados!C255)","v":"-"},{"$f":"IF(ISERROR(Dados!AB255),\"0\",Dados!AB255)","v":"0"},null,{"$f":"IF(ISERROR(Dados!C255),\"-\",Dados!C255)","v":"-"},{"$f":"IF(ISERROR(Dados!S255),\"-\",Dados!S255)","v":"-"},null,{"$f":"IF(ISERROR(Dados!C255),\"-\",Dados!C255)","v":"-"},{"$f":"IF(ISERROR(Dados!T255),\"-\",Dados!T255)","v":"-"},null,{"$f":"IF(ISERROR(Dados!C255),\"-\",Dados!C255)","v":"-"},{"$f":"IF(ISERROR(Dados!U255),\"0\",Dados!U255)","v":"0"},null,{"$f":"IF(ISERROR(Dados!C255),\"-\",Dados!C255)","v":"-"},{"$f":"IF(ISERROR(IF(Dados!Z255<0,\"-\",Dados!Z255)),\"-\",IF(Dados!Z255<0,\"-\",Dados!Z255))","v":"-"},null,{"$f":"IF(ISERROR(Dados!C255),\"-\",Dados!C255)","v":"-"},{"$f":"IF(ISERROR(Dados!AC255),\"-1000000\",Dados!AC255)","v":"-1000000"},null,{"$f":"IF(ISERROR(Dados!C255),\"-\",Dados!C255)","v":"-"},{"$f":"IF(ISERROR(Dados!AD255),\"-1000000\",Dados!AD255)","v":"-1000000"},null,{"$f":"IF(ISERROR(Dados!C255),\"-\",Dados!C255)","v":"-"},{"$f":"IF(ISERROR(Dados!AC255),\"-\",Dados!AC255)","v":"-"},null,{"$f":"IF(ISERROR(Dados!C255),\"-\",Dados!C255)","v":"-"},{"$f":"IF(ISERROR(Dados!AD255),\"-\",Dados!AD255)","v":"-"}]
[{"$f":"IF(ISERROR(Dados!C266),\"-\",Dados!C266)","v":"-"},{"$f":"IF(ISERROR(Dados!F266),\"-\",Dados!F266)","v":"-"},null,{"$f":"IF(ISERROR(Dados!C266),\"-\",Dados!C266)","v":"-"},{"$f":"IF(ISERROR(Dados!G266),\"-\",Dados!G266)","v":"-"},null,{"$f":"IF(ISERROR(Dados!C266),\"-\",Dados!C266)","v":"-"},{"$f":"IF(ISERROR(Dados!X266),\"0\",Dados!X266)","v":"0"},null,{"$f":"IF(ISERROR(Dados!C266),\"-\",Dados!C266)","v":"-"},{"$f":"IF(ISERROR(Dados!AB266),\"0\",Dados!AB266)","v":"0"},null,{"$f":"IF(ISERROR(Dados!C266),\"-\",Dados!C266)","v":"-"},{"$f":"IF(ISERROR(Dados!S266),\"-\",Dados!S266)","v":"-"},null,{"$f":"IF(ISERROR(Dados!C266),\"-\",Dados!C266)","v":"-"},{"$f":"IF(ISERROR(Dados!T266),\"-\",Dados!T266)","v":"-"},null,{"$f":"IF(ISERROR(Dados!C266),\"-\",Dados!C266)","v":"-"},{"$f":"IF(ISERROR(Dados!U266),\"0\",Dados!U266)","v":"0"},null,{"$f":"IF(ISERROR(Dados!C266),\"-\",Dados!C266)","v":"-"},{"$f":"IF(ISERROR(IF(Dados!Z266<0,\"-\",Dados!Z266)),\"-\",IF(Dados!Z266<0,\"-\",Dados!Z266))","v":"-"},null,{"$f":"IF(ISERROR(Dados!C266),\"-\",Dados!C266)","v":"-"},{"$f":"IF(ISERROR(Dados!AC266),\"-1000000\",Dados!AC266)","v":"-1000000"},null,{"$f":"IF(ISERROR(Dados!C266),\"-\",Dados!C266)","v":"-"},{"$f":"IF(ISERROR(Dados!AD266),\"-1000000\",Dados!AD266)","v":"-1000000"},null,{"$f":"IF(ISERROR(Dados!C266),\"-\",Dados!C266)","v":"-"},{"$f":"IF(ISERROR(Dados!AC266),\"-\",Dados!AC266)","v":"-"},null,{"$f":"IF(ISERROR(Dados!C266),\"-\",Dados!C266)","v":"-"},{"$f":"IF(ISERROR(Dados!AD266),\"-\",Dados!AD266)","v":"-"}]
[{"$f":"IF(ISERROR(Dados!C264),\"-\",Dados!C264)","v":"-"},{"$f":"IF(ISERROR(Dados!F264),\"-\",Dados!F264)","v":"-"},null,{"$f":"IF(ISERROR(Dados!C264),\"-\",Dados!C264)","v":"-"},{"$f":"IF(ISERROR(Dados!G264),\"-\",Dados!G264)","v":"-"},null,{"$f":"IF(ISERROR(Dados!C264),\"-\",Dados!C264)","v":"-"},{"$f":"IF(ISERROR(Dados!X264),\"0\",Dados!X264)","v":"0"},null,{"$f":"IF(ISERROR(Dados!C264),\"-\",Dados!C264)","v":"-"},{"$f":"IF(ISERROR(Dados!AB264),\"0\",Dados!AB264)","v":"0"},null,{"$f":"IF(ISERROR(Dados!C264),\"-\",Dados!C264)","v":"-"},{"$f":"IF(ISERROR(Dados!S264),\"-\",Dados!S264)","v":"-"},null,{"$f":"IF(ISERROR(Dados!C264),\"-\",Dados!C264)","v":"-"},{"$f":"IF(ISERROR(Dados!T264),\"-\",Dados!T264)","v":"-"},null,{"$f":"IF(ISERROR(Dados!C264),\"-\",Dados!C264)","v":"-"},{"$f":"IF(ISERROR(Dados!U264),\"0\",Dados!U264)","v":"0"},null,{"$f":"IF(ISERROR(Dados!C264),\"-\",Dados!C264)","v":"-"},{"$f":"IF(ISERROR(IF(Dados!Z264<0,\"-\",Dados!Z264)),\"-\",IF(Dados!Z264<0,\"-\",Dados!Z264))","v":"-"},null,{"$f":"IF(ISERROR(Dados!C264),\"-\",Dados!C264)","v":"-"},{"$f":"IF(ISERROR(Dados!AC264),\"-1000000\",Dados!AC264)","v":"-1000000"},null,{"$f":"IF(ISERROR(Dados!C264),\"-\",Dados!C264)","v":"-"},{"$f":"IF(ISERROR(Dados!AD264),\"-1000000\",Dados!AD264)","v":"-1000000"},null,{"$f":"IF(ISERROR(Dados!C264),\"-\",Dados!C264)","v":"-"},{"$f":"IF(ISERROR(Dados!AC264),\"-\",Dados!AC264)","v":"-"},null,{"$f":"IF(ISERROR(Dados!C264),\"-\",Dados!C264)","v":"-"},{"$f":"IF(ISERROR(Dados!AD264),\"-\",Dados!AD264)","v":"-"}]
[{"$f":"IF(ISERROR(Dados!C267),\"-\",Dados!C267)","v":"-"},{"$f":"IF(ISERROR(Dados!F267),\"-\",Dados!F267)","v":"-"},null,{"$f":"IF(ISERROR(Dados!C267),\"-\",Dados!C267)","v":"-"},{"$f":"IF(ISERROR(Dados!G267),\"-\",Dados!G267)","v":"-"},null,{"$f":"IF(ISERROR(Dados!C267),\"-\",Dados!C267)","v":"-"},{"$f":"IF(ISERROR(Dados!X267),\"0\",Dados!X267)","v":"0"},null,{"$f":"IF(ISERROR(Dados!C267),\"-\",Dados!C267)","v":"-"},{"$f":"IF(ISERROR(Dados!AB267),\"0\",Dados!AB267)","v":"0"},null,{"$f":"IF(ISERROR(Dados!C267),\"-\",Dados!C267)","v":"-"},{"$f":"IF(ISERROR(Dados!S267),\"-\",Dados!S267)","v":"-"},null,{"$f":"IF(ISERROR(Dados!C267),\"-\",Dados!C267)","v":"-"},{"$f":"IF(ISERROR(Dados!T267),\"-\",Dados!T267)","v":"-"},null,{"$f":"IF(ISERROR(Dados!C267),\"-\",Dados!C267)","v":"-"},{"$f":"IF(ISERROR(Dados!U267),\"0\",Dados!U267)","v":"0"},null,{"$f":"IF(ISERROR(Dados!C267),\"-\",Dados!C267)","v":"-"},{"$f":"IF(ISERROR(IF(Dados!Z267<0,\"-\",Dados!Z267)),\"-\",IF(Dados!Z267<0,\"-\",Dados!Z267))","v":"-"},null,{"$f":"IF(ISERROR(Dados!C267),\"-\",Dados!C267)","v":"-"},{"$f":"IF(ISERROR(Dados!AC267),\"-1000000\",Dados!AC267)","v":"-1000000"},null,{"$f":"IF(ISERROR(Dados!C267),\"-\",Dados!C267)","v":"-"},{"$f":"IF(ISERROR(Dados!AD267),\"-1000000\",Dados!AD267)","v":"-1000000"},null,{"$f":"IF(ISERROR(Dados!C267),\"-\",Dados!C267)","v":"-"},{"$f":"IF(ISERROR(Dados!AC267),\"-\",Dados!AC267)","v":"-"},null,{"$f":"IF(ISERROR(Dados!C267),\"-\",Dados!C267)","v":"-"},{"$f":"IF(ISERROR(Dados!AD267),\"-\",Dados!AD267)","v":"-"}]
[{"$f":"IF(ISERROR(Dados!C263),\"-\",Dados!C263)","v":"-"},{"$f":"IF(ISERROR(Dados!F263),\"-\",Dados!F263)","v":"-"},null,{"$f":"IF(ISERROR(Dados!C263),\"-\",Dados!C263)","v":"-"},{"$f":"IF(ISERROR(Dados!G263),\"-\",Dados!G263)","v":"-"},null,{"$f":"IF(ISERROR(Dados!C263),\"-\",Dados!C263)","v":"-"},{"$f":"IF(ISERROR(Dados!X263),\"0\",Dados!X263)","v":"0"},null,{"$f":"IF(ISERROR(Dados!C263),\"-\",Dados!C263)","v":"-"},{"$f":"IF(ISERROR(Dados!AB263),\"0\",Dados!AB263)","v":"0"},null,{"$f":"IF(ISERROR(Dados!C263),\"-\",Dados!C263)","v":"-"},{"$f":"IF(ISERROR(Dados!S263),\"-\",Dados!S263)","v":"-"},null,{"$f":"IF(ISERROR(Dados!C263),\"-\",Dados!C263)","v":"-"},{"$f":"IF(ISERROR(Dados!T263),\"-\",Dados!T263)","v":"-"},null,{"$f":"IF(ISERROR(Dados!C263),\"-\",Dados!C263)","v":"-"},{"$f":"IF(ISERROR(Dados!U263),\"0\",Dados!U263)","v":"0"},null,{"$f":"IF(ISERROR(Dados!C263),\"-\",Dados!C263)","v":"-"},{"$f":"IF(ISERROR(IF(Dados!Z263<0,\"-\",Dados!Z263)),\"-\",IF(Dados!Z263<0,\"-\",Dados!Z263))","v":"-"},null,{"$f":"IF(ISERROR(Dados!C263),\"-\",Dados!C263)","v":"-"},{"$f":"IF(ISERROR(Dados!AC263),\"-1000000\",Dados!AC263)","v":"-1000000"},null,{"$f":"IF(ISERROR(Dados!C263),\"-\",Dados!C263)","v":"-"},{"$f":"IF(ISERROR(Dados!AD263),\"-1000000\",Dados!AD263)","v":"-1000000"},null,{"$f":"IF(ISERROR(Dados!C263),\"-\",Dados!C263)","v":"-"},{"$f":"IF(ISERROR(Dados!AC263),\"-\",Dados!AC263)","v":"-"},null,{"$f":"IF(ISERROR(Dados!C263),\"-\",Dados!C263)","v":"-"},{"$f":"IF(ISERROR(Dados!AD263),\"-\",Dados!AD263)","v":"-"}]
[{"$f":"IF(ISERROR(Dados!C265),\"-\",Dados!C265)","v":"-"},{"$f":"IF(ISERROR(Dados!F265),\"-\",Dados!F265)","v":"-"},null,{"$f":"IF(ISERROR(Dados!C265),\"-\",Dados!C265)","v":"-"},{"$f":"IF(ISERROR(Dados!G265),\"-\",Dados!G265)","v":"-"},null,{"$f":"IF(ISERROR(Dados!C265),\"-\",Dados!C265)","v":"-"},{"$f":"IF(ISERROR(Dados!X265),\"0\",Dados!X265)","v":"0"},null,{"$f":"IF(ISERROR(Dados!C265),\"-\",Dados!C265)","v":"-"},{"$f":"IF(ISERROR(Dados!AB265),\"0\",Dados!AB265)","v":"0"},null,{"$f":"IF(ISERROR(Dados!C265),\"-\",Dados!C265)","v":"-"},{"$f":"IF(ISERROR(Dados!S265),\"-\",Dados!S265)","v":"-"},null,{"$f":"IF(ISERROR(Dados!C265),\"-\",Dados!C265)","v":"-"},{"$f":"IF(ISERROR(Dados!T265),\"-\",Dados!T265)","v":"-"},null,{"$f":"IF(ISERROR(Dados!C265),\"-\",Dados!C265)","v":"-"},{"$f":"IF(ISERROR(Dados!U265),\"0\",Dados!U265)","v":"0"},null,{"$f":"IF(ISERROR(Dados!C265),\"-\",Dados!C265)","v":"-"},{"$f":"IF(ISERROR(IF(Dados!Z265<0,\"-\",Dados!Z265)),\"-\",IF(Dados!Z265<0,\"-\",Dados!Z265))","v":"-"},null,{"$f":"IF(ISERROR(Dados!C265),\"-\",Dados!C265)","v":"-"},{"$f":"IF(ISERROR(Dados!AC265),\"-1000000\",Dados!AC265)","v":"-1000000"},null,{"$f":"IF(ISERROR(Dados!C265),\"-\",Dados!C265)","v":"-"},{"$f":"IF(ISERROR(Dados!AD265),\"-1000000\",Dados!AD265)","v":"-1000000"},null,{"$f":"IF(ISERROR(Dados!C265),\"-\",Dados!C265)","v":"-"},{"$f":"IF(ISERROR(Dados!AC265),\"-\",Dados!AC265)","v":"-"},null,{"$f":"IF(ISERROR(Dados!C265),\"-\",Dados!C265)","v":"-"},{"$f":"IF(ISERROR(Dados!AD265),\"-\",Dados!AD265)","v":"-"}]
[{"$f":"IF(ISERROR(Dados!C262),\"-\",Dados!C262)","v":"-"},{"$f":"IF(ISERROR(Dados!F262),\"-\",Dados!F262)","v":"-"},null,{"$f":"IF(ISERROR(Dados!C262),\"-\",Dados!C262)","v":"-"},{"$f":"IF(ISERROR(Dados!G262),\"-\",Dados!G262)","v":"-"},null,{"$f":"IF(ISERROR(Dados!C262),\"-\",Dados!C262)","v":"-"},{"$f":"IF(ISERROR(Dados!X262),\"0\",Dados!X262)","v":"0"},null,{"$f":"IF(ISERROR(Dados!C262),\"-\",Dados!C262)","v":"-"},{"$f":"IF(ISERROR(Dados!AB262),\"0\",Dados!AB262)","v":"0"},null,{"$f":"IF(ISERROR(Dados!C262),\"-\",Dados!C262)","v":"-"},{"$f":"IF(ISERROR(Dados!S262),\"-\",Dados!S262)","v":"-"},null,{"$f":"IF(ISERROR(Dados!C262),\"-\",Dados!C262)","v":"-"},{"$f":"IF(ISERROR(Dados!T262),\"-\",Dados!T262)","v":"-"},null,{"$f":"IF(ISERROR(Dados!C262),\"-\",Dados!C262)","v":"-"},{"$f":"IF(ISERROR(Dados!U262),\"0\",Dados!U262)","v":"0"},null,{"$f":"IF(ISERROR(Dados!C262),\"-\",Dados!C262)","v":"-"},{"$f":"IF(ISERROR(IF(Dados!Z262<0,\"-\",Dados!Z262)),\"-\",IF(Dados!Z262<0,\"-\",Dados!Z262))","v":"-"},null,{"$f":"IF(ISERROR(Dados!C262),\"-\",Dados!C262)","v":"-"},{"$f":"IF(ISERROR(Dados!AC262),\"-1000000\",Dados!AC262)","v":"-1000000"},null,{"$f":"IF(ISERROR(Dados!C262),\"-\",Dados!C262)","v":"-"},{"$f":"IF(ISERROR(Dados!AD262),\"-1000000\",Dados!AD262)","v":"-1000000"},null,{"$f":"IF(ISERROR(Dados!C262),\"-\",Dados!C262)","v":"-"},{"$f":"IF(ISERROR(Dados!AC262),\"-\",Dados!AC262)","v":"-"},null,{"$f":"IF(ISERROR(Dados!C262),\"-\",Dados!C262)","v":"-"},{"$f":"IF(ISERROR(Dados!AD262),\"-\",Dados!AD262)","v":"-"}]
[{"$f":"IF(ISERROR(Dados!#REF!),\"-\",Dados!#REF!)","v":"-"},{"$f":"IF(ISERROR(Dados!#REF!),\"-\",Dados!#REF!)","v":"-"},null,{"$f":"IF(ISERROR(Dados!#REF!),\"-\",Dados!#REF!)","v":"-"},{"$f":"IF(ISERROR(Dados!#REF!),\"-\",Dados!#REF!)","v":"-"},null,{"$f":"IF(ISERROR(Dados!#REF!),\"-\",Dados!#REF!)","v":"-"},{"$f":"IF(ISERROR(Dados!#REF!),\"0\",Dados!#REF!)","v":"0"},null,{"$f":"IF(ISERROR(Dados!#REF!),\"-\",Dados!#REF!)","v":"-"},{"$f":"IF(ISERROR(Dados!#REF!),\"0\",Dados!#REF!)","v":"0"},null,{"$f":"IF(ISERROR(Dados!#REF!),\"-\",Dados!#REF!)","v":"-"},{"$f":"IF(ISERROR(Dados!#REF!),\"-\",Dados!#REF!)","v":"-"},null,{"$f":"IF(ISERROR(Dados!#REF!),\"-\",Dados!#REF!)","v":"-"},{"$f":"IF(ISERROR(Dados!#REF!),\"-\",Dados!#REF!)","v":"-"},null,{"$f":"IF(ISERROR(Dados!#REF!),\"-\",Dados!#REF!)","v":"-"},{"$f":"IF(ISERROR(Dados!#REF!),\"0\",Dados!#REF!)","v":"0"},null,{"$f":"IF(ISERROR(Dados!#REF!),\"-\",Dados!#REF!)","v":"-"},{"$f":"IF(ISERROR(IF(Dados!#REF!<0,\"-\",Dados!#REF!)),\"-\",IF(Dados!#REF!<0,\"-\",Dados!#REF!))","v":"-"},null,{"$f":"IF(ISERROR(Dados!#REF!),\"-\",Dados!#REF!)","v":"-"},{"$f":"IF(ISERROR(Dados!#REF!),\"-1000000\",Dados!#REF!)","v":"-1000000"},null,{"$f":"IF(ISERROR(Dados!#REF!),\"-\",Dados!#REF!)","v":"-"},{"$f":"IF(ISERROR(Dados!#REF!),\"-1000000\",Dados!#REF!)","v":"-1000000"},null,{"$f":"IF(ISERROR(Dados!#REF!),\"-\",Dados!#REF!)","v":"-"},{"$f":"IF(ISERROR(Dados!#REF!),\"-\",Dados!#REF!)","v":"-"},null,{"$f":"IF(ISERROR(Dados!#REF!),\"-\",Dados!#REF!)","v":"-"},{"$f":"IF(ISERROR(Dados!#REF!),\"-\",Dados!#REF!)","v":"-"}]
[{"$f":"IF(ISERROR(Dados!C254),\"-\",Dados!C254)","v":"-"},{"$f":"IF(ISERROR(Dados!F254),\"-\",Dados!F254)","v":"-"},null,{"$f":"IF(ISERROR(Dados!C254),\"-\",Dados!C254)","v":"-"},{"$f":"IF(ISERROR(Dados!G254),\"-\",Dados!G254)","v":"-"},null,{"$f":"IF(ISERROR(Dados!C254),\"-\",Dados!C254)","v":"-"},{"$f":"IF(ISERROR(Dados!X254),\"0\",Dados!X254)","v":"0"},null,{"$f":"IF(ISERROR(Dados!C254),\"-\",Dados!C254)","v":"-"},{"$f":"IF(ISERROR(Dados!AB254),\"0\",Dados!AB254)","v":"0"},null,{"$f":"IF(ISERROR(Dados!C254),\"-\",Dados!C254)","v":"-"},{"$f":"IF(ISERROR(Dados!S254),\"-\",Dados!S254)","v":"-"},null,{"$f":"IF(ISERROR(Dados!C254),\"-\",Dados!C254)","v":"-"},{"$f":"IF(ISERROR(Dados!T254),\"-\",Dados!T254)","v":"-"},null,{"$f":"IF(ISERROR(Dados!C254),\"-\",Dados!C254)","v":"-"},{"$f":"IF(ISERROR(Dados!U254),\"0\",Dados!U254)","v":"0"},null,{"$f":"IF(ISERROR(Dados!C254),\"-\",Dados!C254)","v":"-"},{"$f":"IF(ISERROR(IF(Dados!Z254<0,\"-\",Dados!Z254)),\"-\",IF(Dados!Z254<0,\"-\",Dados!Z254))","v":"-"},null,{"$f":"IF(ISERROR(Dados!C254),\"-\",Dados!C254)","v":"-"},{"$f":"IF(ISERROR(Dados!AC254),\"-1000000\",Dados!AC254)","v":"-1000000"},null,{"$f":"IF(ISERROR(Dados!C254),\"-\",Dados!C254)","v":"-"},{"$f":"IF(ISERROR(Dados!AD254),\"-1000000\",Dados!AD254)","v":"-1000000"},null,{"$f":"IF(ISERROR(Dados!C254),\"-\",Dados!C254)","v":"-"},{"$f":"IF(ISERROR(Dados!AC254),\"-\",Dados!AC254)","v":"-"},null,{"$f":"IF(ISERROR(Dados!C254),\"-\",Dados!C254)","v":"-"},{"$f":"IF(ISERROR(Dados!AD254),\"-\",Dados!AD254)","v":"-"}]
[{"$f":"IF(ISERROR(Dados!C250),\"-\",Dados!C250)","v":"-"},{"$f":"IF(ISERROR(Dados!F250),\"-\",Dados!F250)","v":"-"},null,{"$f":"IF(ISERROR(Dados!C250),\"-\",Dados!C250)","v":"-"},{"$f":"IF(ISERROR(Dados!G250),\"-\",Dados!G250)","v":"-"},null,{"$f":"IF(ISERROR(Dados!C250),\"-\",Dados!C250)","v":"-"},{"$f":"IF(ISERROR(Dados!X250),\"0\",Dados!X250)","v":"0"},null,{"$f":"IF(ISERROR(Dados!C250),\"-\",Dados!C250)","v":"-"},{"$f":"IF(ISERROR(Dados!AB250),\"0\",Dados!AB250)","v":"0"},null,{"$f":"IF(ISERROR(Dados!C250),\"-\",Dados!C250)","v":"-"},{"$f":"IF(ISERROR(Dados!S250),\"-\",Dados!S250)","v":"-"},null,{"$f":"IF(ISERROR(Dados!C250),\"-\",Dados!C250)","v":"-"},{"$f":"IF(ISERROR(Dados!T250),\"-\",Dados!T250)","v":"-"},null,{"$f":"IF(ISERROR(Dados!C250),\"-\",Dados!C250)","v":"-"},{"$f":"IF(ISERROR(Dados!U250),\"0\",Dados!U250)","v":"0"},null,{"$f":"IF(ISERROR(Dados!C250),\"-\",Dados!C250)","v":"-"},{"$f":"IF(ISERROR(IF(Dados!Z250<0,\"-\",Dados!Z250)),\"-\",IF(Dados!Z250<0,\"-\",Dados!Z250))","v":"-"},null,{"$f":"IF(ISERROR(Dados!C250),\"-\",Dados!C250)","v":"-"},{"$f":"IF(ISERROR(Dados!AC250),\"-1000000\",Dados!AC250)","v":"-1000000"},null,{"$f":"IF(ISERROR(Dados!C250),\"-\",Dados!C250)","v":"-"},{"$f":"IF(ISERROR(Dados!AD250),\"-1000000\",Dados!AD250)","v":"-1000000"},null,{"$f":"IF(ISERROR(Dados!C250),\"-\",Dados!C250)","v":"-"},{"$f":"IF(ISERROR(Dados!AC250),\"-\",Dados!AC250)","v":"-"},null,{"$f":"IF(ISERROR(Dados!C250),\"-\",Dados!C250)","v":"-"},{"$f":"IF(ISERROR(Dados!AD250),\"-\",Dados!AD250)","v":"-"}]
[{"$f":"IF(ISERROR(Dados!C252),\"-\",Dados!C252)","v":"-"},{"$f":"IF(ISERROR(Dados!F252),\"-\",Dados!F252)","v":"-"},null,{"$f":"IF(ISERROR(Dados!C252),\"-\",Dados!C252)","v":"-"},{"$f":"IF(ISERROR(Dados!G252),\"-\",Dados!G252)","v":"-"},null,{"$f":"IF(ISERROR(Dados!C252),\"-\",Dados!C252)","v":"-"},{"$f":"IF(ISERROR(Dados!X252),\"0\",Dados!X252)","v":"0"},null,{"$f":"IF(ISERROR(Dados!C252),\"-\",Dados!C252)","v":"-"},{"$f":"IF(ISERROR(Dados!AB252),\"0\",Dados!AB252)","v":"0"},null,{"$f":"IF(ISERROR(Dados!C252),\"-\",Dados!C252)","v":"-"},{"$f":"IF(ISERROR(Dados!S252),\"-\",Dados!S252)","v":"-"},null,{"$f":"IF(ISERROR(Dados!C252),\"-\",Dados!C252)","v":"-"},{"$f":"IF(ISERROR(Dados!T252),\"-\",Dados!T252)","v":"-"},null,{"$f":"IF(ISERROR(Dados!C252),\"-\",Dados!C252)","v":"-"},{"$f":"IF(ISERROR(Dados!U252),\"0\",Dados!U252)","v":"0"},null,{"$f":"IF(ISERROR(Dados!C252),\"-\",Dados!C252)","v":"-"},{"$f":"IF(ISERROR(IF(Dados!Z252<0,\"-\",Dados!Z252)),\"-\",IF(Dados!Z252<0,\"-\",Dados!Z252))","v":"-"},null,{"$f":"IF(ISERROR(Dados!C252),\"-\",Dados!C252)","v":"-"},{"$f":"IF(ISERROR(Dados!AC252),\"-1000000\",Dados!AC252)","v":"-1000000"},null,{"$f":"IF(ISERROR(Dados!C252),\"-\",Dados!C252)","v":"-"},{"$f":"IF(ISERROR(Dados!AD252),\"-1000000\",Dados!AD252)","v":"-1000000"},null,{"$f":"IF(ISERROR(Dados!C252),\"-\",Dados!C252)","v":"-"},{"$f":"IF(ISERROR(Dados!AC252),\"-\",Dados!AC252)","v":"-"},null,{"$f":"IF(ISERROR(Dados!C252),\"-\",Dados!C252)","v":"-"},{"$f":"IF(ISERROR(Dados!AD252),\"-\",Dados!AD252)","v":"-"}]
[{"$f":"IF(ISERROR(Dados!C248),\"-\",Dados!C248)","v":"-"},{"$f":"IF(ISERROR(Dados!F248),\"-\",Dados!F248)","v":"-"},null,{"$f":"IF(ISERROR(Dados!C248),\"-\",Dados!C248)","v":"-"},{"$f":"IF(ISERROR(Dados!G248),\"-\",Dados!G248)","v":"-"},null,{"$f":"IF(ISERROR(Dados!C248),\"-\",Dados!C248)","v":"-"},{"$f":"IF(ISERROR(Dados!X248),\"0\",Dados!X248)","v":"0"},null,{"$f":"IF(ISERROR(Dados!C248),\"-\",Dados!C248)","v":"-"},{"$f":"IF(ISERROR(Dados!AB248),\"0\",Dados!AB248)","v":"0"},null,{"$f":"IF(ISERROR(Dados!C248),\"-\",Dados!C248)","v":"-"},{"$f":"IF(ISERROR(Dados!S248),\"-\",Dados!S248)","v":"-"},null,{"$f":"IF(ISERROR(Dados!C248),\"-\",Dados!C248)","v":"-"},{"$f":"IF(ISERROR(Dados!T248),\"-\",Dados!T248)","v":"-"},null,{"$f":"IF(ISERROR(Dados!C248),\"-\",Dados!C248)","v":"-"},{"$f":"IF(ISERROR(Dados!U248),\"0\",Dados!U248)","v":"0"},null,{"$f":"IF(ISERROR(Dados!C248),\"-\",Dados!C248)","v":"-"},{"$f":"IF(ISERROR(IF(Dados!Z248<0,\"-\",Dados!Z248)),\"-\",IF(Dados!Z248<0,\"-\",Dados!Z248))","v":"-"},null,{"$f":"IF(ISERROR(Dados!C248),\"-\",Dados!C248)","v":"-"},{"$f":"IF(ISERROR(Dados!AC248),\"-1000000\",Dados!AC248)","v":"-1000000"},null,{"$f":"IF(ISERROR(Dados!C248),\"-\",Dados!C248)","v":"-"},{"$f":"IF(ISERROR(Dados!AD248),\"-1000000\",Dados!AD248)","v":"-1000000"},null,{"$f":"IF(ISERROR(Dados!C248),\"-\",Dados!C248)","v":"-"},{"$f":"IF(ISERROR(Dados!AC248),\"-\",Dados!AC248)","v":"-"},null,{"$f":"IF(ISERROR(Dados!C248),\"-\",Dados!C248)","v":"-"},{"$f":"IF(ISERROR(Dados!AD248),\"-\",Dados!AD248)","v":"-"}]
[{"$f":"IF(ISERROR(Dados!C251),\"-\",Dados!C251)","v":"-"},{"$f":"IF(ISERROR(Dados!F251),\"-\",Dados!F251)","v":"-"},null,{"$f":"IF(ISERROR(Dados!C251),\"-\",Dados!C251)","v":"-"},{"$f":"IF(ISERROR(Dados!G251),\"-\",Dados!G251)","v":"-"},null,{"$f":"IF(ISERROR(Dados!C251),\"-\",Dados!C251)","v":"-"},{"$f":"IF(ISERROR(Dados!X251),\"0\",Dados!X251)","v":"0"},null,{"$f":"IF(ISERROR(Dados!C251),\"-\",Dados!C251)","v":"-"},{"$f":"IF(ISERROR(Dados!AB251),\"0\",Dados!AB251)","v":"0"},null,{"$f":"IF(ISERROR(Dados!C251),\"-\",Dados!C251)","v":"-"},{"$f":"IF(ISERROR(Dados!S251),\"-\",Dados!S251)","v":"-"},null,{"$f":"IF(ISERROR(Dados!C251),\"-\",Dados!C251)","v":"-"},{"$f":"IF(ISERROR(Dados!T251),\"-\",Dados!T251)","v":"-"},null,{"$f":"IF(ISERROR(Dados!C251),\"-\",Dados!C251)","v":"-"},{"$f":"IF(ISERROR(Dados!U251),\"0\",Dados!U251)","v":"0"},null,{"$f":"IF(ISERROR(Dados!C251),\"-\",Dados!C251)","v":"-"},{"$f":"IF(ISERROR(IF(Dados!Z251<0,\"-\",Dados!Z251)),\"-\",IF(Dados!Z251<0,\"-\",Dados!Z251))","v":"-"},null,{"$f":"IF(ISERROR(Dados!C251),\"-\",Dados!C251)","v":"-"},{"$f":"IF(ISERROR(Dados!AC251),\"-1000000\",Dados!AC251)","v":"-1000000"},null,{"$f":"IF(ISERROR(Dados!C251),\"-\",Dados!C251)","v":"-"},{"$f":"IF(ISERROR(Dados!AD251),\"-1000000\",Dados!AD251)","v":"-1000000"},null,{"$f":"IF(ISERROR(Dados!C251),\"-\",Dados!C251)","v":"-"},{"$f":"IF(ISERROR(Dados!AC251),\"-\",Dados!AC251)","v":"-"},null,{"$f":"IF(ISERROR(Dados!C251),\"-\",Dados!C251)","v":"-"},{"$f":"IF(ISERROR(Dados!AD251),\"-\",Dados!AD251)","v":"-"}]
[{"$f":"IF(ISERROR(Dados!C249),\"-\",Dados!C249)","v":"-"},{"$f":"IF(ISERROR(Dados!F249),\"-\",Dados!F249)","v":"-"},null,{"$f":"IF(ISERROR(Dados!C249),\"-\",Dados!C249)","v":"-"},{"$f":"IF(ISERROR(Dados!G249),\"-\",Dados!G249)","v":"-"},null,{"$f":"IF(ISERROR(Dados!C249),\"-\",Dados!C249)","v":"-"},{"$f":"IF(ISERROR(Dados!X249),\"0\",Dados!X249)","v":"0"},null,{"$f":"IF(ISERROR(Dados!C249),\"-\",Dados!C249)","v":"-"},{"$f":"IF(ISERROR(Dados!AB249),\"0\",Dados!AB249)","v":"0"},null,{"$f":"IF(ISERROR(Dados!C249),\"-\",Dados!C249)","v":"-"},{"$f":"IF(ISERROR(Dados!S249),\"-\",Dados!S249)","v":"-"},null,{"$f":"IF(ISERROR(Dados!C249),\"-\",Dados!C249)","v":"-"},{"$f":"IF(ISERROR(Dados!T249),\"-\",Dados!T249)","v":"-"},null,{"$f":"IF(ISERROR(Dados!C249),\"-\",Dados!C249)","v":"-"},{"$f":"IF(ISERROR(Dados!U249),\"0\",Dados!U249)","v":"0"},null,{"$f":"IF(ISERROR(Dados!C249),\"-\",Dados!C249)","v":"-"},{"$f":"IF(ISERROR(IF(Dados!Z249<0,\"-\",Dados!Z249)),\"-\",IF(Dados!Z249<0,\"-\",Dados!Z249))","v":"-"},null,{"$f":"IF(ISERROR(Dados!C249),\"-\",Dados!C249)","v":"-"},{"$f":"IF(ISERROR(Dados!AC249),\"-1000000\",Dados!AC249)","v":"-1000000"},null,{"$f":"IF(ISERROR(Dados!C249),\"-\",Dados!C249)","v":"-"},{"$f":"IF(ISERROR(Dados!AD249),\"-1000000\",Dados!AD249)","v":"-1000000"},null,{"$f":"IF(ISERROR(Dados!C249),\"-\",Dados!C249)","v":"-"},{"$f":"IF(ISERROR(Dados!AC249),\"-\",Dados!AC249)","v":"-"},null,{"$f":"IF(ISERROR(Dados!C249),\"-\",Dados!C249)","v":"-"},{"$f":"IF(ISERROR(Dados!AD249),\"-\",Dados!AD249)","v":"-"}]
[{"$f":"IF(ISERROR(Dados!C253),\"-\",Dados!C253)","v":"-"},{"$f":"IF(ISERROR(Dados!F253),\"-\",Dados!F253)","v":"-"},null,{"$f":"IF(ISERROR(Dados!C253),\"-\",Dados!C253)","v":"-"},{"$f":"IF(ISERROR(Dados!G253),\"-\",Dados!G253)","v":"-"},null,{"$f":"IF(ISERROR(Dados!C253),\"-\",Dados!C253)","v":"-"},{"$f":"IF(ISERROR(Dados!X253),\"0\",Dados!X253)","v":"0"},null,{"$f":"IF(ISERROR(Dados!C253),\"-\",Dados!C253)","v":"-"},{"$f":"IF(ISERROR(Dados!AB253),\"0\",Dados!AB253)","v":"0"},null,{"$f":"IF(ISERROR(Dados!C253),\"-\",Dados!C253)","v":"-"},{"$f":"IF(ISERROR(Dados!S253),\"-\",Dados!S253)","v":"-"},null,{"$f":"IF(ISERROR(Dados!C253),\"-\",Dados!C253)","v":"-"},{"$f":"IF(ISERROR(Dados!T253),\"-\",Dados!T253)","v":"-"},null,{"$f":"IF(ISERROR(Dados!C253),\"-\",Dados!C253)","v":"-"},{"$f":"IF(ISERROR(Dados!U253),\"0\",Dados!U253)","v":"0"},null,{"$f":"IF(ISERROR(Dados!C253),\"-\",Dados!C253)","v":"-"},{"$f":"IF(ISERROR(IF(Dados!Z253<0,\"-\",Dados!Z253)),\"-\",IF(Dados!Z253<0,\"-\",Dados!Z253))","v":"-"},null,{"$f":"IF(ISERROR(Dados!C253),\"-\",Dados!C253)","v":"-"},{"$f":"IF(ISERROR(Dados!AC253),\"-1000000\",Dados!AC253)","v":"-1000000"},null,{"$f":"IF(ISERROR(Dados!C253),\"-\",Dados!C253)","v":"-"},{"$f":"IF(ISERROR(Dados!AD253),\"-1000000\",Dados!AD253)","v":"-1000000"},null,{"$f":"IF(ISERROR(Dados!C253),\"-\",Dados!C253)","v":"-"},{"$f":"IF(ISERROR(Dados!AC253),\"-\",Dados!AC253)","v":"-"},null,{"$f":"IF(ISERROR(Dados!C253),\"-\",Dados!C253)","v":"-"},{"$f":"IF(ISERROR(Dados!AD253),\"-\",Dados!AD253)","v":"-"}]
[{"$f":"IF(ISERROR(Dados!#REF!),\"-\",Dados!#REF!)","v":"-"},{"$f":"IF(ISERROR(Dados!#REF!),\"-\",Dados!#REF!)","v":"-"},null,{"$f":"IF(ISERROR(Dados!#REF!),\"-\",Dados!#REF!)","v":"-"},{"$f":"IF(ISERROR(Dados!#REF!),\"-\",Dados!#REF!)","v":"-"},null,{"$f":"IF(ISERROR(Dados!#REF!),\"-\",Dados!#REF!)","v":"-"},{"$f":"IF(ISERROR(Dados!#REF!),\"0\",Dados!#REF!)","v":"0"},null,{"$f":"IF(ISERROR(Dados!#REF!),\"-\",Dados!#REF!)","v":"-"},{"$f":"IF(ISERROR(Dados!#REF!),\"0\",Dados!#REF!)","v":"0"},null,{"$f":"IF(ISERROR(Dados!#REF!),\"-\",Dados!#REF!)","v":"-"},{"$f":"IF(ISERROR(Dados!#REF!),\"-\",Dados!#REF!)","v":"-"},null,{"$f":"IF(ISERROR(Dados!#REF!),\"-\",Dados!#REF!)","v":"-"},{"$f":"IF(ISERROR(Dados!#REF!),\"-\",Dados!#REF!)","v":"-"},null,{"$f":"IF(ISERROR(Dados!#REF!),\"-\",Dados!#REF!)","v":"-"},{"$f":"IF(ISERROR(Dados!#REF!),\"0\",Dados!#REF!)","v":"0"},null,{"$f":"IF(ISERROR(Dados!#REF!),\"-\",Dados!#REF!)","v":"-"},{"$f":"IF(ISERROR(IF(Dados!#REF!<0,\"-\",Dados!#REF!)),\"-\",IF(Dados!#REF!<0,\"-\",Dados!#REF!))","v":"-"},null,{"$f":"IF(ISERROR(Dados!#REF!),\"-\",Dados!#REF!)","v":"-"},{"$f":"IF(ISERROR(Dados!#REF!),\"-1000000\",Dados!#REF!)","v":"-1000000"},null,{"$f":"IF(ISERROR(Dados!#REF!),\"-\",Dados!#REF!)","v":"-"},{"$f":"IF(ISERROR(Dados!#REF!),\"-1000000\",Dados!#REF!)","v":"-1000000"},null,{"$f":"IF(ISERROR(Dados!#REF!),\"-\",Dados!#REF!)","v":"-"},{"$f":"IF(ISERROR(Dados!#REF!),\"-\",Dados!#REF!)","v":"-"},null,{"$f":"IF(ISERROR(Dados!#REF!),\"-\",Dados!#REF!)","v":"-"},{"$f":"IF(ISERROR(Dados!#REF!),\"-\",Dados!#REF!)","v":"-"}]
[{"$f":"IF(ISERROR(Dados!#REF!),\"-\",Dados!#REF!)","v":"-"},{"$f":"IF(ISERROR(Dados!#REF!),\"-\",Dados!#REF!)","v":"-"},null,{"$f":"IF(ISERROR(Dados!#REF!),\"-\",Dados!#REF!)","v":"-"},{"$f":"IF(ISERROR(Dados!#REF!),\"-\",Dados!#REF!)","v":"-"},null,{"$f":"IF(ISERROR(Dados!#REF!),\"-\",Dados!#REF!)","v":"-"},{"$f":"IF(ISERROR(Dados!#REF!),\"0\",Dados!#REF!)","v":"0"},null,{"$f":"IF(ISERROR(Dados!#REF!),\"-\",Dados!#REF!)","v":"-"},{"$f":"IF(ISERROR(Dados!#REF!),\"0\",Dados!#REF!)","v":"0"},null,{"$f":"IF(ISERROR(Dados!#REF!),\"-\",Dados!#REF!)","v":"-"},{"$f":"IF(ISERROR(Dados!#REF!),\"-\",Dados!#REF!)","v":"-"},null,{"$f":"IF(ISERROR(Dados!#REF!),\"-\",Dados!#REF!)","v":"-"},{"$f":"IF(ISERROR(Dados!#REF!),\"-\",Dados!#REF!)","v":"-"},null,{"$f":"IF(ISERROR(Dados!#REF!),\"-\",Dados!#REF!)","v":"-"},{"$f":"IF(ISERROR(Dados!#REF!),\"0\",Dados!#REF!)","v":"0"},null,{"$f":"IF(ISERROR(Dados!#REF!),\"-\",Dados!#REF!)","v":"-"},{"$f":"IF(ISERROR(IF(Dados!#REF!<0,\"-\",Dados!#REF!)),\"-\",IF(Dados!#REF!<0,\"-\",Dados!#REF!))","v":"-"},null,{"$f":"IF(ISERROR(Dados!#REF!),\"-\",Dados!#REF!)","v":"-"},{"$f":"IF(ISERROR(Dados!#REF!),\"-1000000\",Dados!#REF!)","v":"-1000000"},null,{"$f":"IF(ISERROR(Dados!#REF!),\"-\",Dados!#REF!)","v":"-"},{"$f":"IF(ISERROR(Dados!#REF!),\"-1000000\",Dados!#REF!)","v":"-1000000"},null,{"$f":"IF(ISERROR(Dados!#REF!),\"-\",Dados!#REF!)","v":"-"},{"$f":"IF(ISERROR(Dados!#REF!),\"-\",Dados!#REF!)","v":"-"},null,{"$f":"IF(ISERROR(Dados!#REF!),\"-\",Dados!#REF!)","v":"-"},{"$f":"IF(ISERROR(Dados!#REF!),\"-\",Dados!#REF!)","v":"-"}]
[{"$f":"IF(ISERROR(Dados!#REF!),\"-\",Dados!#REF!)","v":"-"},{"$f":"IF(ISERROR(Dados!#REF!),\"-\",Dados!#REF!)","v":"-"},null,{"$f":"IF(ISERROR(Dados!#REF!),\"-\",Dados!#REF!)","v":"-"},{"$f":"IF(ISERROR(Dados!#REF!),\"-\",Dados!#REF!)","v":"-"},null,{"$f":"IF(ISERROR(Dados!#REF!),\"-\",Dados!#REF!)","v":"-"},{"$f":"IF(ISERROR(Dados!#REF!),\"0\",Dados!#REF!)","v":"0"},null,{"$f":"IF(ISERROR(Dados!#REF!),\"-\",Dados!#REF!)","v":"-"},{"$f":"IF(ISERROR(Dados!#REF!),\"0\",Dados!#REF!)","v":"0"},null,{"$f":"IF(ISERROR(Dados!#REF!),\"-\",Dados!#REF!)","v":"-"},{"$f":"IF(ISERROR(Dados!#REF!),\"-\",Dados!#REF!)","v":"-"},null,{"$f":"IF(ISERROR(Dados!#REF!),\"-\",Dados!#REF!)","v":"-"},{"$f":"IF(ISERROR(Dados!#REF!),\"-\",Dados!#REF!)","v":"-"},null,{"$f":"IF(ISERROR(Dados!#REF!),\"-\",Dados!#REF!)","v":"-"},{"$f":"IF(ISERROR(Dados!#REF!),\"0\",Dados!#REF!)","v":"0"},null,{"$f":"IF(ISERROR(Dados!#REF!),\"-\",Dados!#REF!)","v":"-"},{"$f":"IF(ISERROR(IF(Dados!#REF!<0,\"-\",Dados!#REF!)),\"-\",IF(Dados!#REF!<0,\"-\",Dados!#REF!))","v":"-"},null,{"$f":"IF(ISERROR(Dados!#REF!),\"-\",Dados!#REF!)","v":"-"},{"$f":"IF(ISERROR(Dados!#REF!),\"-1000000\",Dados!#REF!)","v":"-1000000"},null,{"$f":"IF(ISERROR(Dados!#REF!),\"-\",Dados!#REF!)","v":"-"},{"$f":"IF(ISERROR(Dados!#REF!),\"-1000000\",Dados!#REF!)","v":"-1000000"},null,{"$f":"IF(ISERROR(Dados!#REF!),\"-\",Dados!#REF!)","v":"-"},{"$f":"IF(ISERROR(Dados!#REF!),\"-\",Dados!#REF!)","v":"-"},null,{"$f":"IF(ISERROR(Dados!#REF!),\"-\",Dados!#REF!)","v":"-"},{"$f":"IF(ISERROR(Dados!#REF!),\"-\",Dados!#REF!)","v":"-"}]
[{"$f":"IF(ISERROR(Dados!#REF!),\"-\",Dados!#REF!)","v":"-"},{"$f":"IF(ISERROR(Dados!#REF!),\"-\",Dados!#REF!)","v":"-"},null,{"$f":"IF(ISERROR(Dados!#REF!),\"-\",Dados!#REF!)","v":"-"},{"$f":"IF(ISERROR(Dados!#REF!),\"-\",Dados!#REF!)","v":"-"},null,{"$f":"IF(ISERROR(Dados!#REF!),\"-\",Dados!#REF!)","v":"-"},{"$f":"IF(ISERROR(Dados!#REF!),\"0\",Dados!#REF!)","v":"0"},null,{"$f":"IF(ISERROR(Dados!#REF!),\"-\",Dados!#REF!)","v":"-"},{"$f":"IF(ISERROR(Dados!#REF!),\"0\",Dados!#REF!)","v":"0"},null,{"$f":"IF(ISERROR(Dados!#REF!),\"-\",Dados!#REF!)","v":"-"},{"$f":"IF(ISERROR(Dados!#REF!),\"-\",Dados!#REF!)","v":"-"},null,{"$f":"IF(ISERROR(Dados!#REF!),\"-\",Dados!#REF!)","v":"-"},{"$f":"IF(ISERROR(Dados!#REF!),\"-\",Dados!#REF!)","v":"-"},null,{"$f":"IF(ISERROR(Dados!#REF!),\"-\",Dados!#REF!)","v":"-"},{"$f":"IF(ISERROR(Dados!#REF!),\"0\",Dados!#REF!)","v":"0"},null,{"$f":"IF(ISERROR(Dados!#REF!),\"-\",Dados!#REF!)","v":"-"},{"$f":"IF(ISERROR(IF(Dados!#REF!<0,\"-\",Dados!#REF!)),\"-\",IF(Dados!#REF!<0,\"-\",Dados!#REF!))","v":"-"},null,{"$f":"IF(ISERROR(Dados!#REF!),\"-\",Dados!#REF!)","v":"-"},{"$f":"IF(ISERROR(Dados!#REF!),\"-1000000\",Dados!#REF!)","v":"-1000000"},null,{"$f":"IF(ISERROR(Dados!#REF!),\"-\",Dados!#REF!)","v":"-"},{"$f":"IF(ISERROR(Dados!#REF!),\"-1000000\",Dados!#REF!)","v":"-1000000"},null,{"$f":"IF(ISERROR(Dados!#REF!),\"-\",Dados!#REF!)","v":"-"},{"$f":"IF(ISERROR(Dados!#REF!),\"-\",Dados!#REF!)","v":"-"},null,{"$f":"IF(ISERROR(Dados!#REF!),\"-\",Dados!#REF!)","v":"-"},{"$f":"IF(ISERROR(Dados!#REF!),\"-\",Dados!#REF!)","v":"-"}]
[{"$f":"IF(ISERROR(Dados!#REF!),\"-\",Dados!#REF!)","v":"-"},{"$f":"IF(ISERROR(Dados!#REF!),\"-\",Dados!#REF!)","v":"-"},null,{"$f":"IF(ISERROR(Dados!#REF!),\"-\",Dados!#REF!)","v":"-"},{"$f":"IF(ISERROR(Dados!#REF!),\"-\",Dados!#REF!)","v":"-"},null,{"$f":"IF(ISERROR(Dados!#REF!),\"-\",Dados!#REF!)","v":"-"},{"$f":"IF(ISERROR(Dados!#REF!),\"0\",Dados!#REF!)","v":"0"},null,{"$f":"IF(ISERROR(Dados!#REF!),\"-\",Dados!#REF!)","v":"-"},{"$f":"IF(ISERROR(Dados!#REF!),\"0\",Dados!#REF!)","v":"0"},null,{"$f":"IF(ISERROR(Dados!#REF!),\"-\",Dados!#REF!)","v":"-"},{"$f":"IF(ISERROR(Dados!#REF!),\"-\",Dados!#REF!)","v":"-"},null,{"$f":"IF(ISERROR(Dados!#REF!),\"-\",Dados!#REF!)","v":"-"},{"$f":"IF(ISERROR(Dados!#REF!),\"-\",Dados!#REF!)","v":"-"},null,{"$f":"IF(ISERROR(Dados!#REF!),\"-\",Dados!#REF!)","v":"-"},{"$f":"IF(ISERROR(Dados!#REF!),\"0\",Dados!#REF!)","v":"0"},null,{"$f":"IF(ISERROR(Dados!#REF!),\"-\",Dados!#REF!)","v":"-"},{"$f":"IF(ISERROR(IF(Dados!#REF!<0,\"-\",Dados!#REF!)),\"-\",IF(Dados!#REF!<0,\"-\",Dados!#REF!))","v":"-"},null,{"$f":"IF(ISERROR(Dados!#REF!),\"-\",Dados!#REF!)","v":"-"},{"$f":"IF(ISERROR(Dados!#REF!),\"-1000000\",Dados!#REF!)","v":"-1000000"},null,{"$f":"IF(ISERROR(Dados!#REF!),\"-\",Dados!#REF!)","v":"-"},{"$f":"IF(ISERROR(Dados!#REF!),\"-1000000\",Dados!#REF!)","v":"-1000000"},null,{"$f":"IF(ISERROR(Dados!#REF!),\"-\",Dados!#REF!)","v":"-"},{"$f":"IF(ISERROR(Dados!#REF!),\"-\",Dados!#REF!)","v":"-"},null,{"$f":"IF(ISERROR(Dados!#REF!),\"-\",Dados!#REF!)","v":"-"},{"$f":"IF(ISERROR(Dados!#REF!),\"-\",Dados!#REF!)","v":"-"}]
[{"$f":"IF(ISERROR(Dados!#REF!),\"-\",Dados!#REF!)","v":"-"},{"$f":"IF(ISERROR(Dados!#REF!),\"-\",Dados!#REF!)","v":"-"},null,{"$f":"IF(ISERROR(Dados!#REF!),\"-\",Dados!#REF!)","v":"-"},{"$f":"IF(ISERROR(Dados!#REF!),\"-\",Dados!#REF!)","v":"-"},null,{"$f":"IF(ISERROR(Dados!#REF!),\"-\",Dados!#REF!)","v":"-"},{"$f":"IF(ISERROR(Dados!#REF!),\"0\",Dados!#REF!)","v":"0"},null,{"$f":"IF(ISERROR(Dados!#REF!),\"-\",Dados!#REF!)","v":"-"},{"$f":"IF(ISERROR(Dados!#REF!),\"0\",Dados!#REF!)","v":"0"},null,{"$f":"IF(ISERROR(Dados!#REF!),\"-\",Dados!#REF!)","v":"-"},{"$f":"IF(ISERROR(Dados!#REF!),\"-\",Dados!#REF!)","v":"-"},null,{"$f":"IF(ISERROR(Dados!#REF!),\"-\",Dados!#REF!)","v":"-"},{"$f":"IF(ISERROR(Dados!#REF!),\"-\",Dados!#REF!)","v":"-"},null,{"$f":"IF(ISERROR(Dados!#REF!),\"-\",Dados!#REF!)","v":"-"},{"$f":"IF(ISERROR(Dados!#REF!),\"0\",Dados!#REF!)","v":"0"},null,{"$f":"IF(ISERROR(Dados!#REF!),\"-\",Dados!#REF!)","v":"-"},{"$f":"IF(ISERROR(IF(Dados!#REF!<0,\"-\",Dados!#REF!)),\"-\",IF(Dados!#REF!<0,\"-\",Dados!#REF!))","v":"-"},null,{"$f":"IF(ISERROR(Dados!#REF!),\"-\",Dados!#REF!)","v":"-"},{"$f":"IF(ISERROR(Dados!#REF!),\"-1000000\",Dados!#REF!)","v":"-1000000"},null,{"$f":"IF(ISERROR(Dados!#REF!),\"-\",Dados!#REF!)","v":"-"},{"$f":"IF(ISERROR(Dados!#REF!),\"-1000000\",Dados!#REF!)","v":"-1000000"},null,{"$f":"IF(ISERROR(Dados!#REF!),\"-\",Dados!#REF!)","v":"-"},{"$f":"IF(ISERROR(Dados!#REF!),\"-\",Dados!#REF!)","v":"-"},null,{"$f":"IF(ISERROR(Dados!#REF!),\"-\",Dados!#REF!)","v":"-"},{"$f":"IF(ISERROR(Dados!#REF!),\"-\",Dados!#REF!)","v":"-"}]
[{"$f":"IF(ISERROR(Dados!#REF!),\"-\",Dados!#REF!)","v":"-"},{"$f":"IF(ISERROR(Dados!#REF!),\"-\",Dados!#REF!)","v":"-"},null,{"$f":"IF(ISERROR(Dados!#REF!),\"-\",Dados!#REF!)","v":"-"},{"$f":"IF(ISERROR(Dados!#REF!),\"-\",Dados!#REF!)","v":"-"},null,{"$f":"IF(ISERROR(Dados!#REF!),\"-\",Dados!#REF!)","v":"-"},{"$f":"IF(ISERROR(Dados!#REF!),\"0\",Dados!#REF!)","v":"0"},null,{"$f":"IF(ISERROR(Dados!#REF!),\"-\",Dados!#REF!)","v":"-"},{"$f":"IF(ISERROR(Dados!#REF!),\"0\",Dados!#REF!)","v":"0"},null,{"$f":"IF(ISERROR(Dados!#REF!),\"-\",Dados!#REF!)","v":"-"},{"$f":"IF(ISERROR(Dados!#REF!),\"-\",Dados!#REF!)","v":"-"},null,{"$f":"IF(ISERROR(Dados!#REF!),\"-\",Dados!#REF!)","v":"-"},{"$f":"IF(ISERROR(Dados!#REF!),\"-\",Dados!#REF!)","v":"-"},null,{"$f":"IF(ISERROR(Dados!#REF!),\"-\",Dados!#REF!)","v":"-"},{"$f":"IF(ISERROR(Dados!#REF!),\"0\",Dados!#REF!)","v":"0"},null,{"$f":"IF(ISERROR(Dados!#REF!),\"-\",Dados!#REF!)","v":"-"},{"$f":"IF(ISERROR(IF(Dados!#REF!<0,\"-\",Dados!#REF!)),\"-\",IF(Dados!#REF!<0,\"-\",Dados!#REF!))","v":"-"},null,{"$f":"IF(ISERROR(Dados!#REF!),\"-\",Dados!#REF!)","v":"-"},{"$f":"IF(ISERROR(Dados!#REF!),\"-1000000\",Dados!#REF!)","v":"-1000000"},null,{"$f":"IF(ISERROR(Dados!#REF!),\"-\",Dados!#REF!)","v":"-"},{"$f":"IF(ISERROR(Dados!#REF!),\"-1000000\",Dados!#REF!)","v":"-1000000"},null,{"$f":"IF(ISERROR(Dados!#REF!),\"-\",Dados!#REF!)","v":"-"},{"$f":"IF(ISERROR(Dados!#REF!),\"-\",Dados!#REF!)","v":"-"},null,{"$f":"IF(ISERROR(Dados!#REF!),\"-\",Dados!#REF!)","v":"-"},{"$f":"IF(ISERROR(Dados!#REF!),\"-\",Dados!#REF!)","v":"-"}]
[{"$f":"IF(ISERROR(Dados!#REF!),\"-\",Dados!#REF!)","v":"-"},{"$f":"IF(ISERROR(Dados!#REF!),\"-\",Dados!#REF!)","v":"-"},null,{"$f":"IF(ISERROR(Dados!#REF!),\"-\",Dados!#REF!)","v":"-"},{"$f":"IF(ISERROR(Dados!#REF!),\"-\",Dados!#REF!)","v":"-"},null,{"$f":"IF(ISERROR(Dados!#REF!),\"-\",Dados!#REF!)","v":"-"},{"$f":"IF(ISERROR(Dados!#REF!),\"0\",Dados!#REF!)","v":"0"},null,{"$f":"IF(ISERROR(Dados!#REF!),\"-\",Dados!#REF!)","v":"-"},{"$f":"IF(ISERROR(Dados!#REF!),\"0\",Dados!#REF!)","v":"0"},null,{"$f":"IF(ISERROR(Dados!#REF!),\"-\",Dados!#REF!)","v":"-"},{"$f":"IF(ISERROR(Dados!#REF!),\"-\",Dados!#REF!)","v":"-"},null,{"$f":"IF(ISERROR(Dados!#REF!),\"-\",Dados!#REF!)","v":"-"},{"$f":"IF(ISERROR(Dados!#REF!),\"-\",Dados!#REF!)","v":"-"},null,{"$f":"IF(ISERROR(Dados!#REF!),\"-\",Dados!#REF!)","v":"-"},{"$f":"IF(ISERROR(Dados!#REF!),\"0\",Dados!#REF!)","v":"0"},null,{"$f":"IF(ISERROR(Dados!#REF!),\"-\",Dados!#REF!)","v":"-"},{"$f":"IF(ISERROR(IF(Dados!#REF!<0,\"-\",Dados!#REF!)),\"-\",IF(Dados!#REF!<0,\"-\",Dados!#REF!))","v":"-"},null,{"$f":"IF(ISERROR(Dados!#REF!),\"-\",Dados!#REF!)","v":"-"},{"$f":"IF(ISERROR(Dados!#REF!),\"-1000000\",Dados!#REF!)","v":"-1000000"},null,{"$f":"IF(ISERROR(Dados!#REF!),\"-\",Dados!#REF!)","v":"-"},{"$f":"IF(ISERROR(Dados!#REF!),\"-1000000\",Dados!#REF!)","v":"-1000000"},null,{"$f":"IF(ISERROR(Dados!#REF!),\"-\",Dados!#REF!)","v":"-"},{"$f":"IF(ISERROR(Dados!#REF!),\"-\",Dados!#REF!)","v":"-"},null,{"$f":"IF(ISERROR(Dados!#REF!),\"-\",Dados!#REF!)","v":"-"},{"$f":"IF(ISERROR(Dados!#REF!),\"-\",Dados!#REF!)","v":"-"}]
[{"$f":"IF(ISERROR(Dados!#REF!),\"-\",Dados!#REF!)","v":"-"},{"$f":"IF(ISERROR(Dados!#REF!),\"-\",Dados!#REF!)","v":"-"},null,{"$f":"IF(ISERROR(Dados!#REF!),\"-\",Dados!#REF!)","v":"-"},{"$f":"IF(ISERROR(Dados!#REF!),\"-\",Dados!#REF!)","v":"-"},null,{"$f":"IF(ISERROR(Dados!#REF!),\"-\",Dados!#REF!)","v":"-"},{"$f":"IF(ISERROR(Dados!#REF!),\"0\",Dados!#REF!)","v":"0"},null,{"$f":"IF(ISERROR(Dados!#REF!),\"-\",Dados!#REF!)","v":"-"},{"$f":"IF(ISERROR(Dados!#REF!),\"0\",Dados!#REF!)","v":"0"},null,{"$f":"IF(ISERROR(Dados!#REF!),\"-\",Dados!#REF!)","v":"-"},{"$f":"IF(ISERROR(Dados!#REF!),\"-\",Dados!#REF!)","v":"-"},null,{"$f":"IF(ISERROR(Dados!#REF!),\"-\",Dados!#REF!)","v":"-"},{"$f":"IF(ISERROR(Dados!#REF!),\"-\",Dados!#REF!)","v":"-"},null,{"$f":"IF(ISERROR(Dados!#REF!),\"-\",Dados!#REF!)","v":"-"},{"$f":"IF(ISERROR(Dados!#REF!),\"0\",Dados!#REF!)","v":"0"},null,{"$f":"IF(ISERROR(Dados!#REF!),\"-\",Dados!#REF!)","v":"-"},{"$f":"IF(ISERROR(IF(Dados!#REF!<0,\"-\",Dados!#REF!)),\"-\",IF(Dados!#REF!<0,\"-\",Dados!#REF!))","v":"-"},null,{"$f":"IF(ISERROR(Dados!#REF!),\"-\",Dados!#REF!)","v":"-"},{"$f":"IF(ISERROR(Dados!#REF!),\"-1000000\",Dados!#REF!)","v":"-1000000"},null,{"$f":"IF(ISERROR(Dados!#REF!),\"-\",Dados!#REF!)","v":"-"},{"$f":"IF(ISERROR(Dados!#REF!),\"-1000000\",Dados!#REF!)","v":"-1000000"},null,{"$f":"IF(ISERROR(Dados!#REF!),\"-\",Dados!#REF!)","v":"-"},{"$f":"IF(ISERROR(Dados!#REF!),\"-\",Dados!#REF!)","v":"-"},null,{"$f":"IF(ISERROR(Dados!#REF!),\"-\",Dados!#REF!)","v":"-"},{"$f":"IF(ISERROR(Dados!#REF!),\"-\",Dados!#REF!)","v":"-"}]
[{"$f":"IF(ISERROR(Dados!#REF!),\"-\",Dados!#REF!)","v":"-"},{"$f":"IF(ISERROR(Dados!#REF!),\"-\",Dados!#REF!)","v":"-"},null,{"$f":"IF(ISERROR(Dados!#REF!),\"-\",Dados!#REF!)","v":"-"},{"$f":"IF(ISERROR(Dados!#REF!),\"-\",Dados!#REF!)","v":"-"},null,{"$f":"IF(ISERROR(Dados!#REF!),\"-\",Dados!#REF!)","v":"-"},{"$f":"IF(ISERROR(Dados!#REF!),\"0\",Dados!#REF!)","v":"0"},null,{"$f":"IF(ISERROR(Dados!#REF!),\"-\",Dados!#REF!)","v":"-"},{"$f":"IF(ISERROR(Dados!#REF!),\"0\",Dados!#REF!)","v":"0"},null,{"$f":"IF(ISERROR(Dados!#REF!),\"-\",Dados!#REF!)","v":"-"},{"$f":"IF(ISERROR(Dados!#REF!),\"-\",Dados!#REF!)","v":"-"},null,{"$f":"IF(ISERROR(Dados!#REF!),\"-\",Dados!#REF!)","v":"-"},{"$f":"IF(ISERROR(Dados!#REF!),\"-\",Dados!#REF!)","v":"-"},null,{"$f":"IF(ISERROR(Dados!#REF!),\"-\",Dados!#REF!)","v":"-"},{"$f":"IF(ISERROR(Dados!#REF!),\"0\",Dados!#REF!)","v":"0"},null,{"$f":"IF(ISERROR(Dados!#REF!),\"-\",Dados!#REF!)","v":"-"},{"$f":"IF(ISERROR(IF(Dados!#REF!<0,\"-\",Dados!#REF!)),\"-\",IF(Dados!#REF!<0,\"-\",Dados!#REF!))","v":"-"},null,{"$f":"IF(ISERROR(Dados!#REF!),\"-\",Dados!#REF!)","v":"-"},{"$f":"IF(ISERROR(Dados!#REF!),\"-1000000\",Dados!#REF!)","v":"-1000000"},null,{"$f":"IF(ISERROR(Dados!#REF!),\"-\",Dados!#REF!)","v":"-"},{"$f":"IF(ISERROR(Dados!#REF!),\"-1000000\",Dados!#REF!)","v":"-1000000"},null,{"$f":"IF(ISERROR(Dados!#REF!),\"-\",Dados!#REF!)","v":"-"},{"$f":"IF(ISERROR(Dados!#REF!),\"-\",Dados!#REF!)","v":"-"},null,{"$f":"IF(ISERROR(Dados!#REF!),\"-\",Dados!#REF!)","v":"-"},{"$f":"IF(ISERROR(Dados!#REF!),\"-\",Dados!#REF!)","v":"-"}]
[{"$f":"IF(ISERROR(Dados!#REF!),\"-\",Dados!#REF!)","v":"-"},{"$f":"IF(ISERROR(Dados!#REF!),\"-\",Dados!#REF!)","v":"-"},null,{"$f":"IF(ISERROR(Dados!#REF!),\"-\",Dados!#REF!)","v":"-"},{"$f":"IF(ISERROR(Dados!#REF!),\"-\",Dados!#REF!)","v":"-"},null,{"$f":"IF(ISERROR(Dados!#REF!),\"-\",Dados!#REF!)","v":"-"},{"$f":"IF(ISERROR(Dados!#REF!),\"0\",Dados!#REF!)","v":"0"},null,{"$f":"IF(ISERROR(Dados!#REF!),\"-\",Dados!#REF!)","v":"-"},{"$f":"IF(ISERROR(Dados!#REF!),\"0\",Dados!#REF!)","v":"0"},null,{"$f":"IF(ISERROR(Dados!#REF!),\"-\",Dados!#REF!)","v":"-"},{"$f":"IF(ISERROR(Dados!#REF!),\"-\",Dados!#REF!)","v":"-"},null,{"$f":"IF(ISERROR(Dados!#REF!),\"-\",Dados!#REF!)","v":"-"},{"$f":"IF(ISERROR(Dados!#REF!),\"-\",Dados!#REF!)","v":"-"},null,{"$f":"IF(ISERROR(Dados!#REF!),\"-\",Dados!#REF!)","v":"-"},{"$f":"IF(ISERROR(Dados!#REF!),\"0\",Dados!#REF!)","v":"0"},null,{"$f":"IF(ISERROR(Dados!#REF!),\"-\",Dados!#REF!)","v":"-"},{"$f":"IF(ISERROR(IF(Dados!#REF!<0,\"-\",Dados!#REF!)),\"-\",IF(Dados!#REF!<0,\"-\",Dados!#REF!))","v":"-"},null,{"$f":"IF(ISERROR(Dados!#REF!),\"-\",Dados!#REF!)","v":"-"},{"$f":"IF(ISERROR(Dados!#REF!),\"-1000000\",Dados!#REF!)","v":"-1000000"},null,{"$f":"IF(ISERROR(Dados!#REF!),\"-\",Dados!#REF!)","v":"-"},{"$f":"IF(ISERROR(Dados!#REF!),\"-1000000\",Dados!#REF!)","v":"-1000000"},null,{"$f":"IF(ISERROR(Dados!#REF!),\"-\",Dados!#REF!)","v":"-"},{"$f":"IF(ISERROR(Dados!#REF!),\"-\",Dados!#REF!)","v":"-"},null,{"$f":"IF(ISERROR(Dados!#REF!),\"-\",Dados!#REF!)","v":"-"},{"$f":"IF(ISERROR(Dados!#REF!),\"-\",Dados!#REF!)","v":"-"}]
[{"$f":"IF(ISERROR(Dados!#REF!),\"-\",Dados!#REF!)","v":"-"},{"$f":"IF(ISERROR(Dados!#REF!),\"-\",Dados!#REF!)","v":"-"},null,{"$f":"IF(ISERROR(Dados!#REF!),\"-\",Dados!#REF!)","v":"-"},{"$f":"IF(ISERROR(Dados!#REF!),\"-\",Dados!#REF!)","v":"-"},null,{"$f":"IF(ISERROR(Dados!#REF!),\"-\",Dados!#REF!)","v":"-"},{"$f":"IF(ISERROR(Dados!#REF!),\"0\",Dados!#REF!)","v":"0"},null,{"$f":"IF(ISERROR(Dados!#REF!),\"-\",Dados!#REF!)","v":"-"},{"$f":"IF(ISERROR(Dados!#REF!),\"0\",Dados!#REF!)","v":"0"},null,{"$f":"IF(ISERROR(Dados!#REF!),\"-\",Dados!#REF!)","v":"-"},{"$f":"IF(ISERROR(Dados!#REF!),\"-\",Dados!#REF!)","v":"-"},null,{"$f":"IF(ISERROR(Dados!#REF!),\"-\",Dados!#REF!)","v":"-"},{"$f":"IF(ISERROR(Dados!#REF!),\"-\",Dados!#REF!)","v":"-"},null,{"$f":"IF(ISERROR(Dados!#REF!),\"-\",Dados!#REF!)","v":"-"},{"$f":"IF(ISERROR(Dados!#REF!),\"0\",Dados!#REF!)","v":"0"},null,{"$f":"IF(ISERROR(Dados!#REF!),\"-\",Dados!#REF!)","v":"-"},{"$f":"IF(ISERROR(IF(Dados!#REF!<0,\"-\",Dados!#REF!)),\"-\",IF(Dados!#REF!<0,\"-\",Dados!#REF!))","v":"-"},null,{"$f":"IF(ISERROR(Dados!#REF!),\"-\",Dados!#REF!)","v":"-"},{"$f":"IF(ISERROR(Dados!#REF!),\"-1000000\",Dados!#REF!)","v":"-1000000"},null,{"$f":"IF(ISERROR(Dados!#REF!),\"-\",Dados!#REF!)","v":"-"},{"$f":"IF(ISERROR(Dados!#REF!),\"-1000000\",Dados!#REF!)","v":"-1000000"},null,{"$f":"IF(ISERROR(Dados!#REF!),\"-\",Dados!#REF!)","v":"-"},{"$f":"IF(ISERROR(Dados!#REF!),\"-\",Dados!#REF!)","v":"-"},null,{"$f":"IF(ISERROR(Dados!#REF!),\"-\",Dados!#REF!)","v":"-"},{"$f":"IF(ISERROR(Dados!#REF!),\"-\",Dados!#REF!)","v":"-"}]
[{"$f":"IF(ISERROR(Dados!#REF!),\"-\",Dados!#REF!)","v":"-"},{"$f":"IF(ISERROR(Dados!#REF!),\"-\",Dados!#REF!)","v":"-"},null,{"$f":"IF(ISERROR(Dados!#REF!),\"-\",Dados!#REF!)","v":"-"},{"$f":"IF(ISERROR(Dados!#REF!),\"-\",Dados!#REF!)","v":"-"},null,{"$f":"IF(ISERROR(Dados!#REF!),\"-\",Dados!#REF!)","v":"-"},{"$f":"IF(ISERROR(Dados!#REF!),\"0\",Dados!#REF!)","v":"0"},null,{"$f":"IF(ISERROR(Dados!#REF!),\"-\",Dados!#REF!)","v":"-"},{"$f":"IF(ISERROR(Dados!#REF!),\"0\",Dados!#REF!)","v":"0"},null,{"$f":"IF(ISERROR(Dados!#REF!),\"-\",Dados!#REF!)","v":"-"},{"$f":"IF(ISERROR(Dados!#REF!),\"-\",Dados!#REF!)","v":"-"},null,{"$f":"IF(ISERROR(Dados!#REF!),\"-\",Dados!#REF!)","v":"-"},{"$f":"IF(ISERROR(Dados!#REF!),\"-\",Dados!#REF!)","v":"-"},null,{"$f":"IF(ISERROR(Dados!#REF!),\"-\",Dados!#REF!)","v":"-"},{"$f":"IF(ISERROR(Dados!#REF!),\"0\",Dados!#REF!)","v":"0"},null,{"$f":"IF(ISERROR(Dados!#REF!),\"-\",Dados!#REF!)","v":"-"},{"$f":"IF(ISERROR(IF(Dados!#REF!<0,\"-\",Dados!#REF!)),\"-\",IF(Dados!#REF!<0,\"-\",Dados!#REF!))","v":"-"},null,{"$f":"IF(ISERROR(Dados!#REF!),\"-\",Dados!#REF!)","v":"-"},{"$f":"IF(ISERROR(Dados!#REF!),\"-1000000\",Dados!#REF!)","v":"-1000000"},null,{"$f":"IF(ISERROR(Dados!#REF!),\"-\",Dados!#REF!)","v":"-"},{"$f":"IF(ISERROR(Dados!#REF!),\"-1000000\",Dados!#REF!)","v":"-1000000"},null,{"$f":"IF(ISERROR(Dados!#REF!),\"-\",Dados!#REF!)","v":"-"},{"$f":"IF(ISERROR(Dados!#REF!),\"-\",Dados!#REF!)","v":"-"},null,{"$f":"IF(ISERROR(Dados!#REF!),\"-\",Dados!#REF!)","v":"-"},{"$f":"IF(ISERROR(Dados!#REF!),\"-\",Dados!#REF!)","v":"-"}]
[{"$f":"IF(ISERROR(Dados!#REF!),\"-\",Dados!#REF!)","v":"-"},{"$f":"IF(ISERROR(Dados!#REF!),\"-\",Dados!#REF!)","v":"-"},null,{"$f":"IF(ISERROR(Dados!#REF!),\"-\",Dados!#REF!)","v":"-"},{"$f":"IF(ISERROR(Dados!#REF!),\"-\",Dados!#REF!)","v":"-"},null,{"$f":"IF(ISERROR(Dados!#REF!),\"-\",Dados!#REF!)","v":"-"},{"$f":"IF(ISERROR(Dados!#REF!),\"0\",Dados!#REF!)","v":"0"},null,{"$f":"IF(ISERROR(Dados!#REF!),\"-\",Dados!#REF!)","v":"-"},{"$f":"IF(ISERROR(Dados!#REF!),\"0\",Dados!#REF!)","v":"0"},null,{"$f":"IF(ISERROR(Dados!#REF!),\"-\",Dados!#REF!)","v":"-"},{"$f":"IF(ISERROR(Dados!#REF!),\"-\",Dados!#REF!)","v":"-"},null,{"$f":"IF(ISERROR(Dados!#REF!),\"-\",Dados!#REF!)","v":"-"},{"$f":"IF(ISERROR(Dados!#REF!),\"-\",Dados!#REF!)","v":"-"},null,{"$f":"IF(ISERROR(Dados!#REF!),\"-\",Dados!#REF!)","v":"-"},{"$f":"IF(ISERROR(Dados!#REF!),\"0\",Dados!#REF!)","v":"0"},null,{"$f":"IF(ISERROR(Dados!#REF!),\"-\",Dados!#REF!)","v":"-"},{"$f":"IF(ISERROR(IF(Dados!#REF!<0,\"-\",Dados!#REF!)),\"-\",IF(Dados!#REF!<0,\"-\",Dados!#REF!))","v":"-"},null,{"$f":"IF(ISERROR(Dados!#REF!),\"-\",Dados!#REF!)","v":"-"},{"$f":"IF(ISERROR(Dados!#REF!),\"-1000000\",Dados!#REF!)","v":"-1000000"},null,{"$f":"IF(ISERROR(Dados!#REF!),\"-\",Dados!#REF!)","v":"-"},{"$f":"IF(ISERROR(Dados!#REF!),\"-1000000\",Dados!#REF!)","v":"-1000000"},null,{"$f":"IF(ISERROR(Dados!#REF!),\"-\",Dados!#REF!)","v":"-"},{"$f":"IF(ISERROR(Dados!#REF!),\"-\",Dados!#REF!)","v":"-"},null,{"$f":"IF(ISERROR(Dados!#REF!),\"-\",Dados!#REF!)","v":"-"},{"$f":"IF(ISERROR(Dados!#REF!),\"-\",Dados!#REF!)","v":"-"}]
[{"$f":"IF(ISERROR(Dados!#REF!),\"-\",Dados!#REF!)","v":"-"},{"$f":"IF(ISERROR(Dados!#REF!),\"-\",Dados!#REF!)","v":"-"},null,{"$f":"IF(ISERROR(Dados!#REF!),\"-\",Dados!#REF!)","v":"-"},{"$f":"IF(ISERROR(Dados!#REF!),\"-\",Dados!#REF!)","v":"-"},null,{"$f":"IF(ISERROR(Dados!#REF!),\"-\",Dados!#REF!)","v":"-"},{"$f":"IF(ISERROR(Dados!#REF!),\"0\",Dados!#REF!)","v":"0"},null,{"$f":"IF(ISERROR(Dados!#REF!),\"-\",Dados!#REF!)","v":"-"},{"$f":"IF(ISERROR(Dados!#REF!),\"0\",Dados!#REF!)","v":"0"},null,{"$f":"IF(ISERROR(Dados!#REF!),\"-\",Dados!#REF!)","v":"-"},{"$f":"IF(ISERROR(Dados!#REF!),\"-\",Dados!#REF!)","v":"-"},null,{"$f":"IF(ISERROR(Dados!#REF!),\"-\",Dados!#REF!)","v":"-"},{"$f":"IF(ISERROR(Dados!#REF!),\"-\",Dados!#REF!)","v":"-"},null,{"$f":"IF(ISERROR(Dados!#REF!),\"-\",Dados!#REF!)","v":"-"},{"$f":"IF(ISERROR(Dados!#REF!),\"0\",Dados!#REF!)","v":"0"},null,{"$f":"IF(ISERROR(Dados!#REF!),\"-\",Dados!#REF!)","v":"-"},{"$f":"IF(ISERROR(IF(Dados!#REF!<0,\"-\",Dados!#REF!)),\"-\",IF(Dados!#REF!<0,\"-\",Dados!#REF!))","v":"-"},null,{"$f":"IF(ISERROR(Dados!#REF!),\"-\",Dados!#REF!)","v":"-"},{"$f":"IF(ISERROR(Dados!#REF!),\"-1000000\",Dados!#REF!)","v":"-1000000"},null,{"$f":"IF(ISERROR(Dados!#REF!),\"-\",Dados!#REF!)","v":"-"},{"$f":"IF(ISERROR(Dados!#REF!),\"-1000000\",Dados!#REF!)","v":"-1000000"},null,{"$f":"IF(ISERROR(Dados!#REF!),\"-\",Dados!#REF!)","v":"-"},{"$f":"IF(ISERROR(Dados!#REF!),\"-\",Dados!#REF!)","v":"-"},null,{"$f":"IF(ISERROR(Dados!#REF!),\"-\",Dados!#REF!)","v":"-"},{"$f":"IF(ISERROR(Dados!#REF!),\"-\",Dados!#REF!)","v":"-"}]
[{"$f":"IF(ISERROR(Dados!#REF!),\"-\",Dados!#REF!)","v":"-"},{"$f":"IF(ISERROR(Dados!#REF!),\"-\",Dados!#REF!)","v":"-"},null,{"$f":"IF(ISERROR(Dados!#REF!),\"-\",Dados!#REF!)","v":"-"},{"$f":"IF(ISERROR(Dados!#REF!),\"-\",Dados!#REF!)","v":"-"},null,{"$f":"IF(ISERROR(Dados!#REF!),\"-\",Dados!#REF!)","v":"-"},{"$f":"IF(ISERROR(Dados!#REF!),\"0\",Dados!#REF!)","v":"0"},null,{"$f":"IF(ISERROR(Dados!#REF!),\"-\",Dados!#REF!)","v":"-"},{"$f":"IF(ISERROR(Dados!#REF!),\"0\",Dados!#REF!)","v":"0"},null,{"$f":"IF(ISERROR(Dados!#REF!),\"-\",Dados!#REF!)","v":"-"},{"$f":"IF(ISERROR(Dados!#REF!),\"-\",Dados!#REF!)","v":"-"},null,{"$f":"IF(ISERROR(Dados!#REF!),\"-\",Dados!#REF!)","v":"-"},{"$f":"IF(ISERROR(Dados!#REF!),\"-\",Dados!#REF!)","v":"-"},null,{"$f":"IF(ISERROR(Dados!#REF!),\"-\",Dados!#REF!)","v":"-"},{"$f":"IF(ISERROR(Dados!#REF!),\"0\",Dados!#REF!)","v":"0"},null,{"$f":"IF(ISERROR(Dados!#REF!),\"-\",Dados!#REF!)","v":"-"},{"$f":"IF(ISERROR(IF(Dados!#REF!<0,\"-\",Dados!#REF!)),\"-\",IF(Dados!#REF!<0,\"-\",Dados!#REF!))","v":"-"},null,{"$f":"IF(ISERROR(Dados!#REF!),\"-\",Dados!#REF!)","v":"-"},{"$f":"IF(ISERROR(Dados!#REF!),\"-1000000\",Dados!#REF!)","v":"-1000000"},null,{"$f":"IF(ISERROR(Dados!#REF!),\"-\",Dados!#REF!)","v":"-"},{"$f":"IF(ISERROR(Dados!#REF!),\"-1000000\",Dados!#REF!)","v":"-1000000"},null,{"$f":"IF(ISERROR(Dados!#REF!),\"-\",Dados!#REF!)","v":"-"},{"$f":"IF(ISERROR(Dados!#REF!),\"-\",Dados!#REF!)","v":"-"},null,{"$f":"IF(ISERROR(Dados!#REF!),\"-\",Dados!#REF!)","v":"-"},{"$f":"IF(ISERROR(Dados!#REF!),\"-\",Dados!#REF!)","v":"-"}]
[{"$f":"IF(ISERROR(Dados!#REF!),\"-\",Dados!#REF!)","v":"-"},{"$f":"IF(ISERROR(Dados!#REF!),\"-\",Dados!#REF!)","v":"-"},null,{"$f":"IF(ISERROR(Dados!#REF!),\"-\",Dados!#REF!)","v":"-"},{"$f":"IF(ISERROR(Dados!#REF!),\"-\",Dados!#REF!)","v":"-"},null,{"$f":"IF(ISERROR(Dados!#REF!),\"-\",Dados!#REF!)","v":"-"},{"$f":"IF(ISERROR(Dados!#REF!),\"0\",Dados!#REF!)","v":"0"},null,{"$f":"IF(ISERROR(Dados!#REF!),\"-\",Dados!#REF!)","v":"-"},{"$f":"IF(ISERROR(Dados!#REF!),\"0\",Dados!#REF!)","v":"0"},null,{"$f":"IF(ISERROR(Dados!#REF!),\"-\",Dados!#REF!)","v":"-"},{"$f":"IF(ISERROR(Dados!#REF!),\"-\",Dados!#REF!)","v":"-"},null,{"$f":"IF(ISERROR(Dados!#REF!),\"-\",Dados!#REF!)","v":"-"},{"$f":"IF(ISERROR(Dados!#REF!),\"-\",Dados!#REF!)","v":"-"},null,{"$f":"IF(ISERROR(Dados!#REF!),\"-\",Dados!#REF!)","v":"-"},{"$f":"IF(ISERROR(Dados!#REF!),\"0\",Dados!#REF!)","v":"0"},null,{"$f":"IF(ISERROR(Dados!#REF!),\"-\",Dados!#REF!)","v":"-"},{"$f":"IF(ISERROR(IF(Dados!#REF!<0,\"-\",Dados!#REF!)),\"-\",IF(Dados!#REF!<0,\"-\",Dados!#REF!))","v":"-"},null,{"$f":"IF(ISERROR(Dados!#REF!),\"-\",Dados!#REF!)","v":"-"},{"$f":"IF(ISERROR(Dados!#REF!),\"-1000000\",Dados!#REF!)","v":"-1000000"},null,{"$f":"IF(ISERROR(Dados!#REF!),\"-\",Dados!#REF!)","v":"-"},{"$f":"IF(ISERROR(Dados!#REF!),\"-1000000\",Dados!#REF!)","v":"-1000000"},null,{"$f":"IF(ISERROR(Dados!#REF!),\"-\",Dados!#REF!)","v":"-"},{"$f":"IF(ISERROR(Dados!#REF!),\"-\",Dados!#REF!)","v":"-"},null,{"$f":"IF(ISERROR(Dados!#REF!),\"-\",Dados!#REF!)","v":"-"},{"$f":"IF(ISERROR(Dados!#REF!),\"-\",Dados!#REF!)","v":"-"}]
[{"$f":"IF(ISERROR(Dados!#REF!),\"-\",Dados!#REF!)","v":"-"},{"$f":"IF(ISERROR(Dados!#REF!),\"-\",Dados!#REF!)","v":"-"},null,{"$f":"IF(ISERROR(Dados!#REF!),\"-\",Dados!#REF!)","v":"-"},{"$f":"IF(ISERROR(Dados!#REF!),\"-\",Dados!#REF!)","v":"-"},null,{"$f":"IF(ISERROR(Dados!#REF!),\"-\",Dados!#REF!)","v":"-"},{"$f":"IF(ISERROR(Dados!#REF!),\"0\",Dados!#REF!)","v":"0"},null,{"$f":"IF(ISERROR(Dados!#REF!),\"-\",Dados!#REF!)","v":"-"},{"$f":"IF(ISERROR(Dados!#REF!),\"0\",Dados!#REF!)","v":"0"},null,{"$f":"IF(ISERROR(Dados!#REF!),\"-\",Dados!#REF!)","v":"-"},{"$f":"IF(ISERROR(Dados!#REF!),\"-\",Dados!#REF!)","v":"-"},null,{"$f":"IF(ISERROR(Dados!#REF!),\"-\",Dados!#REF!)","v":"-"},{"$f":"IF(ISERROR(Dados!#REF!),\"-\",Dados!#REF!)","v":"-"},null,{"$f":"IF(ISERROR(Dados!#REF!),\"-\",Dados!#REF!)","v":"-"},{"$f":"IF(ISERROR(Dados!#REF!),\"0\",Dados!#REF!)","v":"0"},null,{"$f":"IF(ISERROR(Dados!#REF!),\"-\",Dados!#REF!)","v":"-"},{"$f":"IF(ISERROR(IF(Dados!#REF!<0,\"-\",Dados!#REF!)),\"-\",IF(Dados!#REF!<0,\"-\",Dados!#REF!))","v":"-"},null,{"$f":"IF(ISERROR(Dados!#REF!),\"-\",Dados!#REF!)","v":"-"},{"$f":"IF(ISERROR(Dados!#REF!),\"-1000000\",Dados!#REF!)","v":"-1000000"},null,{"$f":"IF(ISERROR(Dados!#REF!),\"-\",Dados!#REF!)","v":"-"},{"$f":"IF(ISERROR(Dados!#REF!),\"-1000000\",Dados!#REF!)","v":"-1000000"},null,{"$f":"IF(ISERROR(Dados!#REF!),\"-\",Dados!#REF!)","v":"-"},{"$f":"IF(ISERROR(Dados!#REF!),\"-\",Dados!#REF!)","v":"-"},null,{"$f":"IF(ISERROR(Dados!#REF!),\"-\",Dados!#REF!)","v":"-"},{"$f":"IF(ISERROR(Dados!#REF!),\"-\",Dados!#REF!)","v":"-"}]
[{"$f":"IF(ISERROR(Dados!#REF!),\"-\",Dados!#REF!)","v":"-"},{"$f":"IF(ISERROR(Dados!#REF!),\"-\",Dados!#REF!)","v":"-"},null,{"$f":"IF(ISERROR(Dados!#REF!),\"-\",Dados!#REF!)","v":"-"},{"$f":"IF(ISERROR(Dados!#REF!),\"-\",Dados!#REF!)","v":"-"},null,{"$f":"IF(ISERROR(Dados!#REF!),\"-\",Dados!#REF!)","v":"-"},{"$f":"IF(ISERROR(Dados!#REF!),\"0\",Dados!#REF!)","v":"0"},null,{"$f":"IF(ISERROR(Dados!#REF!),\"-\",Dados!#REF!)","v":"-"},{"$f":"IF(ISERROR(Dados!#REF!),\"0\",Dados!#REF!)","v":"0"},null,{"$f":"IF(ISERROR(Dados!#REF!),\"-\",Dados!#REF!)","v":"-"},{"$f":"IF(ISERROR(Dados!#REF!),\"-\",Dados!#REF!)","v":"-"},null,{"$f":"IF(ISERROR(Dados!#REF!),\"-\",Dados!#REF!)","v":"-"},{"$f":"IF(ISERROR(Dados!#REF!),\"-\",Dados!#REF!)","v":"-"},null,{"$f":"IF(ISERROR(Dados!#REF!),\"-\",Dados!#REF!)","v":"-"},{"$f":"IF(ISERROR(Dados!#REF!),\"0\",Dados!#REF!)","v":"0"},null,{"$f":"IF(ISERROR(Dados!#REF!),\"-\",Dados!#REF!)","v":"-"},{"$f":"IF(ISERROR(IF(Dados!#REF!<0,\"-\",Dados!#REF!)),\"-\",IF(Dados!#REF!<0,\"-\",Dados!#REF!))","v":"-"},null,{"$f":"IF(ISERROR(Dados!#REF!),\"-\",Dados!#REF!)","v":"-"},{"$f":"IF(ISERROR(Dados!#REF!),\"-1000000\",Dados!#REF!)","v":"-1000000"},null,{"$f":"IF(ISERROR(Dados!#REF!),\"-\",Dados!#REF!)","v":"-"},{"$f":"IF(ISERROR(Dados!#REF!),\"-1000000\",Dados!#REF!)","v":"-1000000"},null,{"$f":"IF(ISERROR(Dados!#REF!),\"-\",Dados!#REF!)","v":"-"},{"$f":"IF(ISERROR(Dados!#REF!),\"-\",Dados!#REF!)","v":"-"},null,{"$f":"IF(ISERROR(Dados!#REF!),\"-\",Dados!#REF!)","v":"-"},{"$f":"IF(ISERROR(Dados!#REF!),\"-\",Dados!#REF!)","v":"-"}]
[{"$f":"IF(ISERROR(Dados!#REF!),\"-\",Dados!#REF!)","v":"-"},{"$f":"IF(ISERROR(Dados!#REF!),\"-\",Dados!#REF!)","v":"-"},null,{"$f":"IF(ISERROR(Dados!#REF!),\"-\",Dados!#REF!)","v":"-"},{"$f":"IF(ISERROR(Dados!#REF!),\"-\",Dados!#REF!)","v":"-"},null,{"$f":"IF(ISERROR(Dados!#REF!),\"-\",Dados!#REF!)","v":"-"},{"$f":"IF(ISERROR(Dados!#REF!),\"0\",Dados!#REF!)","v":"0"},null,{"$f":"IF(ISERROR(Dados!#REF!),\"-\",Dados!#REF!)","v":"-"},{"$f":"IF(ISERROR(Dados!#REF!),\"0\",Dados!#REF!)","v":"0"},null,{"$f":"IF(ISERROR(Dados!#REF!),\"-\",Dados!#REF!)","v":"-"},{"$f":"IF(ISERROR(Dados!#REF!),\"-\",Dados!#REF!)","v":"-"},null,{"$f":"IF(ISERROR(Dados!#REF!),\"-\",Dados!#REF!)","v":"-"},{"$f":"IF(ISERROR(Dados!#REF!),\"-\",Dados!#REF!)","v":"-"},null,{"$f":"IF(ISERROR(Dados!#REF!),\"-\",Dados!#REF!)","v":"-"},{"$f":"IF(ISERROR(Dados!#REF!),\"0\",Dados!#REF!)","v":"0"},null,{"$f":"IF(ISERROR(Dados!#REF!),\"-\",Dados!#REF!)","v":"-"},{"$f":"IF(ISERROR(IF(Dados!#REF!<0,\"-\",Dados!#REF!)),\"-\",IF(Dados!#REF!<0,\"-\",Dados!#REF!))","v":"-"},null,{"$f":"IF(ISERROR(Dados!#REF!),\"-\",Dados!#REF!)","v":"-"},{"$f":"IF(ISERROR(Dados!#REF!),\"-1000000\",Dados!#REF!)","v":"-1000000"},null,{"$f":"IF(ISERROR(Dados!#REF!),\"-\",Dados!#REF!)","v":"-"},{"$f":"IF(ISERROR(Dados!#REF!),\"-1000000\",Dados!#REF!)","v":"-1000000"},null,{"$f":"IF(ISERROR(Dados!#REF!),\"-\",Dados!#REF!)","v":"-"},{"$f":"IF(ISERROR(Dados!#REF!),\"-\",Dados!#REF!)","v":"-"},null,{"$f":"IF(ISERROR(Dados!#REF!),\"-\",Dados!#REF!)","v":"-"},{"$f":"IF(ISERROR(Dados!#REF!),\"-\",Dados!#REF!)","v":"-"}]
[{"$f":"IF(ISERROR(Dados!#REF!),\"-\",Dados!#REF!)","v":"-"},{"$f":"IF(ISERROR(Dados!#REF!),\"-\",Dados!#REF!)","v":"-"},null,{"$f":"IF(ISERROR(Dados!#REF!),\"-\",Dados!#REF!)","v":"-"},{"$f":"IF(ISERROR(Dados!#REF!),\"-\",Dados!#REF!)","v":"-"},null,{"$f":"IF(ISERROR(Dados!#REF!),\"-\",Dados!#REF!)","v":"-"},{"$f":"IF(ISERROR(Dados!#REF!),\"0\",Dados!#REF!)","v":"0"},null,{"$f":"IF(ISERROR(Dados!#REF!),\"-\",Dados!#REF!)","v":"-"},{"$f":"IF(ISERROR(Dados!#REF!),\"0\",Dados!#REF!)","v":"0"},null,{"$f":"IF(ISERROR(Dados!#REF!),\"-\",Dados!#REF!)","v":"-"},{"$f":"IF(ISERROR(Dados!#REF!),\"-\",Dados!#REF!)","v":"-"},null,{"$f":"IF(ISERROR(Dados!#REF!),\"-\",Dados!#REF!)","v":"-"},{"$f":"IF(ISERROR(Dados!#REF!),\"-\",Dados!#REF!)","v":"-"},null,{"$f":"IF(ISERROR(Dados!#REF!),\"-\",Dados!#REF!)","v":"-"},{"$f":"IF(ISERROR(Dados!#REF!),\"0\",Dados!#REF!)","v":"0"},null,{"$f":"IF(ISERROR(Dados!#REF!),\"-\",Dados!#REF!)","v":"-"},{"$f":"IF(ISERROR(IF(Dados!#REF!<0,\"-\",Dados!#REF!)),\"-\",IF(Dados!#REF!<0,\"-\",Dados!#REF!))","v":"-"},null,{"$f":"IF(ISERROR(Dados!#REF!),\"-\",Dados!#REF!)","v":"-"},{"$f":"IF(ISERROR(Dados!#REF!),\"-1000000\",Dados!#REF!)","v":"-1000000"},null,{"$f":"IF(ISERROR(Dados!#REF!),\"-\",Dados!#REF!)","v":"-"},{"$f":"IF(ISERROR(Dados!#REF!),\"-1000000\",Dados!#REF!)","v":"-1000000"},null,{"$f":"IF(ISERROR(Dados!#REF!),\"-\",Dados!#REF!)","v":"-"},{"$f":"IF(ISERROR(Dados!#REF!),\"-\",Dados!#REF!)","v":"-"},null,{"$f":"IF(ISERROR(Dados!#REF!),\"-\",Dados!#REF!)","v":"-"},{"$f":"IF(ISERROR(Dados!#REF!),\"-\",Dados!#REF!)","v":"-"}]
[{"$f":"IF(ISERROR(Dados!#REF!),\"-\",Dados!#REF!)","v":"-"},{"$f":"IF(ISERROR(Dados!#REF!),\"-\",Dados!#REF!)","v":"-"},null,{"$f":"IF(ISERROR(Dados!#REF!),\"-\",Dados!#REF!)","v":"-"},{"$f":"IF(ISERROR(Dados!#REF!),\"-\",Dados!#REF!)","v":"-"},null,{"$f":"IF(ISERROR(Dados!#REF!),\"-\",Dados!#REF!)","v":"-"},{"$f":"IF(ISERROR(Dados!#REF!),\"0\",Dados!#REF!)","v":"0"},null,{"$f":"IF(ISERROR(Dados!#REF!),\"-\",Dados!#REF!)","v":"-"},{"$f":"IF(ISERROR(Dados!#REF!),\"0\",Dados!#REF!)","v":"0"},null,{"$f":"IF(ISERROR(Dados!#REF!),\"-\",Dados!#REF!)","v":"-"},{"$f":"IF(ISERROR(Dados!#REF!),\"-\",Dados!#REF!)","v":"-"},null,{"$f":"IF(ISERROR(Dados!#REF!),\"-\",Dados!#REF!)","v":"-"},{"$f":"IF(ISERROR(Dados!#REF!),\"-\",Dados!#REF!)","v":"-"},null,{"$f":"IF(ISERROR(Dados!#REF!),\"-\",Dados!#REF!)","v":"-"},{"$f":"IF(ISERROR(Dados!#REF!),\"0\",Dados!#REF!)","v":"0"},null,{"$f":"IF(ISERROR(Dados!#REF!),\"-\",Dados!#REF!)","v":"-"},{"$f":"IF(ISERROR(IF(Dados!#REF!<0,\"-\",Dados!#REF!)),\"-\",IF(Dados!#REF!<0,\"-\",Dados!#REF!))","v":"-"},null,{"$f":"IF(ISERROR(Dados!#REF!),\"-\",Dados!#REF!)","v":"-"},{"$f":"IF(ISERROR(Dados!#REF!),\"-1000000\",Dados!#REF!)","v":"-1000000"},null,{"$f":"IF(ISERROR(Dados!#REF!),\"-\",Dados!#REF!)","v":"-"},{"$f":"IF(ISERROR(Dados!#REF!),\"-1000000\",Dados!#REF!)","v":"-1000000"},null,{"$f":"IF(ISERROR(Dados!#REF!),\"-\",Dados!#REF!)","v":"-"},{"$f":"IF(ISERROR(Dados!#REF!),\"-\",Dados!#REF!)","v":"-"},null,{"$f":"IF(ISERROR(Dados!#REF!),\"-\",Dados!#REF!)","v":"-"},{"$f":"IF(ISERROR(Dados!#REF!),\"-\",Dados!#REF!)","v":"-"}]
[{"$f":"IF(ISERROR(Dados!#REF!),\"-\",Dados!#REF!)","v":"-"},{"$f":"IF(ISERROR(Dados!#REF!),\"-\",Dados!#REF!)","v":"-"},null,{"$f":"IF(ISERROR(Dados!#REF!),\"-\",Dados!#REF!)","v":"-"},{"$f":"IF(ISERROR(Dados!#REF!),\"-\",Dados!#REF!)","v":"-"},null,{"$f":"IF(ISERROR(Dados!#REF!),\"-\",Dados!#REF!)","v":"-"},{"$f":"IF(ISERROR(Dados!#REF!),\"0\",Dados!#REF!)","v":"0"},null,{"$f":"IF(ISERROR(Dados!#REF!),\"-\",Dados!#REF!)","v":"-"},{"$f":"IF(ISERROR(Dados!#REF!),\"0\",Dados!#REF!)","v":"0"},null,{"$f":"IF(ISERROR(Dados!#REF!),\"-\",Dados!#REF!)","v":"-"},{"$f":"IF(ISERROR(Dados!#REF!),\"-\",Dados!#REF!)","v":"-"},null,{"$f":"IF(ISERROR(Dados!#REF!),\"-\",Dados!#REF!)","v":"-"},{"$f":"IF(ISERROR(Dados!#REF!),\"-\",Dados!#REF!)","v":"-"},null,{"$f":"IF(ISERROR(Dados!#REF!),\"-\",Dados!#REF!)","v":"-"},{"$f":"IF(ISERROR(Dados!#REF!),\"0\",Dados!#REF!)","v":"0"},null,{"$f":"IF(ISERROR(Dados!#REF!),\"-\",Dados!#REF!)","v":"-"},{"$f":"IF(ISERROR(IF(Dados!#REF!<0,\"-\",Dados!#REF!)),\"-\",IF(Dados!#REF!<0,\"-\",Dados!#REF!))","v":"-"},null,{"$f":"IF(ISERROR(Dados!#REF!),\"-\",Dados!#REF!)","v":"-"},{"$f":"IF(ISERROR(Dados!#REF!),\"-1000000\",Dados!#REF!)","v":"-1000000"},null,{"$f":"IF(ISERROR(Dados!#REF!),\"-\",Dados!#REF!)","v":"-"},{"$f":"IF(ISERROR(Dados!#REF!),\"-1000000\",Dados!#REF!)","v":"-1000000"},null,{"$f":"IF(ISERROR(Dados!#REF!),\"-\",Dados!#REF!)","v":"-"},{"$f":"IF(ISERROR(Dados!#REF!),\"-\",Dados!#REF!)","v":"-"},null,{"$f":"IF(ISERROR(Dados!#REF!),\"-\",Dados!#REF!)","v":"-"},{"$f":"IF(ISERROR(Dados!#REF!),\"-\",Dados!#REF!)","v":"-"}]
[{"$f":"IF(ISERROR(Dados!#REF!),\"-\",Dados!#REF!)","v":"-"},{"$f":"IF(ISERROR(Dados!#REF!),\"-\",Dados!#REF!)","v":"-"},null,{"$f":"IF(ISERROR(Dados!#REF!),\"-\",Dados!#REF!)","v":"-"},{"$f":"IF(ISERROR(Dados!#REF!),\"-\",Dados!#REF!)","v":"-"},null,{"$f":"IF(ISERROR(Dados!#REF!),\"-\",Dados!#REF!)","v":"-"},{"$f":"IF(ISERROR(Dados!#REF!),\"0\",Dados!#REF!)","v":"0"},null,{"$f":"IF(ISERROR(Dados!#REF!),\"-\",Dados!#REF!)","v":"-"},{"$f":"IF(ISERROR(Dados!#REF!),\"0\",Dados!#REF!)","v":"0"},null,{"$f":"IF(ISERROR(Dados!#REF!),\"-\",Dados!#REF!)","v":"-"},{"$f":"IF(ISERROR(Dados!#REF!),\"-\",Dados!#REF!)","v":"-"},null,{"$f":"IF(ISERROR(Dados!#REF!),\"-\",Dados!#REF!)","v":"-"},{"$f":"IF(ISERROR(Dados!#REF!),\"-\",Dados!#REF!)","v":"-"},null,{"$f":"IF(ISERROR(Dados!#REF!),\"-\",Dados!#REF!)","v":"-"},{"$f":"IF(ISERROR(Dados!#REF!),\"0\",Dados!#REF!)","v":"0"},null,{"$f":"IF(ISERROR(Dados!#REF!),\"-\",Dados!#REF!)","v":"-"},{"$f":"IF(ISERROR(IF(Dados!#REF!<0,\"-\",Dados!#REF!)),\"-\",IF(Dados!#REF!<0,\"-\",Dados!#REF!))","v":"-"},null,{"$f":"IF(ISERROR(Dados!#REF!),\"-\",Dados!#REF!)","v":"-"},{"$f":"IF(ISERROR(Dados!#REF!),\"-1000000\",Dados!#REF!)","v":"-1000000"},null,{"$f":"IF(ISERROR(Dados!#REF!),\"-\",Dados!#REF!)","v":"-"},{"$f":"IF(ISERROR(Dados!#REF!),\"-1000000\",Dados!#REF!)","v":"-1000000"},null,{"$f":"IF(ISERROR(Dados!#REF!),\"-\",Dados!#REF!)","v":"-"},{"$f":"IF(ISERROR(Dados!#REF!),\"-\",Dados!#REF!)","v":"-"},null,{"$f":"IF(ISERROR(Dados!#REF!),\"-\",Dados!#REF!)","v":"-"},{"$f":"IF(ISERROR(Dados!#REF!),\"-\",Dados!#REF!)","v":"-"}]
[{"$f":"IF(ISERROR(Dados!#REF!),\"-\",Dados!#REF!)","v":"-"},{"$f":"IF(ISERROR(Dados!#REF!),\"-\",Dados!#REF!)","v":"-"},null,{"$f":"IF(ISERROR(Dados!#REF!),\"-\",Dados!#REF!)","v":"-"},{"$f":"IF(ISERROR(Dados!#REF!),\"-\",Dados!#REF!)","v":"-"},null,{"$f":"IF(ISERROR(Dados!#REF!),\"-\",Dados!#REF!)","v":"-"},{"$f":"IF(ISERROR(Dados!#REF!),\"0\",Dados!#REF!)","v":"0"},null,{"$f":"IF(ISERROR(Dados!#REF!),\"-\",Dados!#REF!)","v":"-"},{"$f":"IF(ISERROR(Dados!#REF!),\"0\",Dados!#REF!)","v":"0"},null,{"$f":"IF(ISERROR(Dados!#REF!),\"-\",Dados!#REF!)","v":"-"},{"$f":"IF(ISERROR(Dados!#REF!),\"-\",Dados!#REF!)","v":"-"},null,{"$f":"IF(ISERROR(Dados!#REF!),\"-\",Dados!#REF!)","v":"-"},{"$f":"IF(ISERROR(Dados!#REF!),\"-\",Dados!#REF!)","v":"-"},null,{"$f":"IF(ISERROR(Dados!#REF!),\"-\",Dados!#REF!)","v":"-"},{"$f":"IF(ISERROR(Dados!#REF!),\"0\",Dados!#REF!)","v":"0"},null,{"$f":"IF(ISERROR(Dados!#REF!),\"-\",Dados!#REF!)","v":"-"},{"$f":"IF(ISERROR(IF(Dados!#REF!<0,\"-\",Dados!#REF!)),\"-\",IF(Dados!#REF!<0,\"-\",Dados!#REF!))","v":"-"},null,{"$f":"IF(ISERROR(Dados!#REF!),\"-\",Dados!#REF!)","v":"-"},{"$f":"IF(ISERROR(Dados!#REF!),\"-1000000\",Dados!#REF!)","v":"-1000000"},null,{"$f":"IF(ISERROR(Dados!#REF!),\"-\",Dados!#REF!)","v":"-"},{"$f":"IF(ISERROR(Dados!#REF!),\"-1000000\",Dados!#REF!)","v":"-1000000"},null,{"$f":"IF(ISERROR(Dados!#REF!),\"-\",Dados!#REF!)","v":"-"},{"$f":"IF(ISERROR(Dados!#REF!),\"-\",Dados!#REF!)","v":"-"},null,{"$f":"IF(ISERROR(Dados!#REF!),\"-\",Dados!#REF!)","v":"-"},{"$f":"IF(ISERROR(Dados!#REF!),\"-\",Dados!#REF!)","v":"-"}]
[{"$f":"IF(ISERROR(Dados!#REF!),\"-\",Dados!#REF!)","v":"-"},{"$f":"IF(ISERROR(Dados!#REF!),\"-\",Dados!#REF!)","v":"-"},null,{"$f":"IF(ISERROR(Dados!#REF!),\"-\",Dados!#REF!)","v":"-"},{"$f":"IF(ISERROR(Dados!#REF!),\"-\",Dados!#REF!)","v":"-"},null,{"$f":"IF(ISERROR(Dados!#REF!),\"-\",Dados!#REF!)","v":"-"},{"$f":"IF(ISERROR(Dados!#REF!),\"0\",Dados!#REF!)","v":"0"},null,{"$f":"IF(ISERROR(Dados!#REF!),\"-\",Dados!#REF!)","v":"-"},{"$f":"IF(ISERROR(Dados!#REF!),\"0\",Dados!#REF!)","v":"0"},null,{"$f":"IF(ISERROR(Dados!#REF!),\"-\",Dados!#REF!)","v":"-"},{"$f":"IF(ISERROR(Dados!#REF!),\"-\",Dados!#REF!)","v":"-"},null,{"$f":"IF(ISERROR(Dados!#REF!),\"-\",Dados!#REF!)","v":"-"},{"$f":"IF(ISERROR(Dados!#REF!),\"-\",Dados!#REF!)","v":"-"},null,{"$f":"IF(ISERROR(Dados!#REF!),\"-\",Dados!#REF!)","v":"-"},{"$f":"IF(ISERROR(Dados!#REF!),\"0\",Dados!#REF!)","v":"0"},null,{"$f":"IF(ISERROR(Dados!#REF!),\"-\",Dados!#REF!)","v":"-"},{"$f":"IF(ISERROR(IF(Dados!#REF!<0,\"-\",Dados!#REF!)),\"-\",IF(Dados!#REF!<0,\"-\",Dados!#REF!))","v":"-"},null,{"$f":"IF(ISERROR(Dados!#REF!),\"-\",Dados!#REF!)","v":"-"},{"$f":"IF(ISERROR(Dados!#REF!),\"-1000000\",Dados!#REF!)","v":"-1000000"},null,{"$f":"IF(ISERROR(Dados!#REF!),\"-\",Dados!#REF!)","v":"-"},{"$f":"IF(ISERROR(Dados!#REF!),\"-1000000\",Dados!#REF!)","v":"-1000000"},null,{"$f":"IF(ISERROR(Dados!#REF!),\"-\",Dados!#REF!)","v":"-"},{"$f":"IF(ISERROR(Dados!#REF!),\"-\",Dados!#REF!)","v":"-"},null,{"$f":"IF(ISERROR(Dados!#REF!),\"-\",Dados!#REF!)","v":"-"},{"$f":"IF(ISERROR(Dados!#REF!),\"-\",Dados!#REF!)","v":"-"}]
[{"$f":"IF(ISERROR(Dados!#REF!),\"-\",Dados!#REF!)","v":"-"},{"$f":"IF(ISERROR(Dados!#REF!),\"-\",Dados!#REF!)","v":"-"},null,{"$f":"IF(ISERROR(Dados!#REF!),\"-\",Dados!#REF!)","v":"-"},{"$f":"IF(ISERROR(Dados!#REF!),\"-\",Dados!#REF!)","v":"-"},null,{"$f":"IF(ISERROR(Dados!#REF!),\"-\",Dados!#REF!)","v":"-"},{"$f":"IF(ISERROR(Dados!#REF!),\"0\",Dados!#REF!)","v":"0"},null,{"$f":"IF(ISERROR(Dados!#REF!),\"-\",Dados!#REF!)","v":"-"},{"$f":"IF(ISERROR(Dados!#REF!),\"0\",Dados!#REF!)","v":"0"},null,{"$f":"IF(ISERROR(Dados!#REF!),\"-\",Dados!#REF!)","v":"-"},{"$f":"IF(ISERROR(Dados!#REF!),\"-\",Dados!#REF!)","v":"-"},null,{"$f":"IF(ISERROR(Dados!#REF!),\"-\",Dados!#REF!)","v":"-"},{"$f":"IF(ISERROR(Dados!#REF!),\"-\",Dados!#REF!)","v":"-"},null,{"$f":"IF(ISERROR(Dados!#REF!),\"-\",Dados!#REF!)","v":"-"},{"$f":"IF(ISERROR(Dados!#REF!),\"0\",Dados!#REF!)","v":"0"},null,{"$f":"IF(ISERROR(Dados!#REF!),\"-\",Dados!#REF!)","v":"-"},{"$f":"IF(ISERROR(IF(Dados!#REF!<0,\"-\",Dados!#REF!)),\"-\",IF(Dados!#REF!<0,\"-\",Dados!#REF!))","v":"-"},null,{"$f":"IF(ISERROR(Dados!#REF!),\"-\",Dados!#REF!)","v":"-"},{"$f":"IF(ISERROR(Dados!#REF!),\"-1000000\",Dados!#REF!)","v":"-1000000"},null,{"$f":"IF(ISERROR(Dados!#REF!),\"-\",Dados!#REF!)","v":"-"},{"$f":"IF(ISERROR(Dados!#REF!),\"-1000000\",Dados!#REF!)","v":"-1000000"},null,{"$f":"IF(ISERROR(Dados!#REF!),\"-\",Dados!#REF!)","v":"-"},{"$f":"IF(ISERROR(Dados!#REF!),\"-\",Dados!#REF!)","v":"-"},null,{"$f":"IF(ISERROR(Dados!#REF!),\"-\",Dados!#REF!)","v":"-"},{"$f":"IF(ISERROR(Dados!#REF!),\"-\",Dados!#REF!)","v":"-"}]
[{"$f":"IF(ISERROR(Dados!#REF!),\"-\",Dados!#REF!)","v":"-"},{"$f":"IF(ISERROR(Dados!#REF!),\"-\",Dados!#REF!)","v":"-"},null,{"$f":"IF(ISERROR(Dados!#REF!),\"-\",Dados!#REF!)","v":"-"},{"$f":"IF(ISERROR(Dados!#REF!),\"-\",Dados!#REF!)","v":"-"},null,{"$f":"IF(ISERROR(Dados!#REF!),\"-\",Dados!#REF!)","v":"-"},{"$f":"IF(ISERROR(Dados!#REF!),\"0\",Dados!#REF!)","v":"0"},null,{"$f":"IF(ISERROR(Dados!#REF!),\"-\",Dados!#REF!)","v":"-"},{"$f":"IF(ISERROR(Dados!#REF!),\"0\",Dados!#REF!)","v":"0"},null,{"$f":"IF(ISERROR(Dados!#REF!),\"-\",Dados!#REF!)","v":"-"},{"$f":"IF(ISERROR(Dados!#REF!),\"-\",Dados!#REF!)","v":"-"},null,{"$f":"IF(ISERROR(Dados!#REF!),\"-\",Dados!#REF!)","v":"-"},{"$f":"IF(ISERROR(Dados!#REF!),\"-\",Dados!#REF!)","v":"-"},null,{"$f":"IF(ISERROR(Dados!#REF!),\"-\",Dados!#REF!)","v":"-"},{"$f":"IF(ISERROR(Dados!#REF!),\"0\",Dados!#REF!)","v":"0"},null,{"$f":"IF(ISERROR(Dados!#REF!),\"-\",Dados!#REF!)","v":"-"},{"$f":"IF(ISERROR(IF(Dados!#REF!<0,\"-\",Dados!#REF!)),\"-\",IF(Dados!#REF!<0,\"-\",Dados!#REF!))","v":"-"},null,{"$f":"IF(ISERROR(Dados!#REF!),\"-\",Dados!#REF!)","v":"-"},{"$f":"IF(ISERROR(Dados!#REF!),\"-1000000\",Dados!#REF!)","v":"-1000000"},null,{"$f":"IF(ISERROR(Dados!#REF!),\"-\",Dados!#REF!)","v":"-"},{"$f":"IF(ISERROR(Dados!#REF!),\"-1000000\",Dados!#REF!)","v":"-1000000"},null,{"$f":"IF(ISERROR(Dados!#REF!),\"-\",Dados!#REF!)","v":"-"},{"$f":"IF(ISERROR(Dados!#REF!),\"-\",Dados!#REF!)","v":"-"},null,{"$f":"IF(ISERROR(Dados!#REF!),\"-\",Dados!#REF!)","v":"-"},{"$f":"IF(ISERROR(Dados!#REF!),\"-\",Dados!#REF!)","v":"-"}]
[{"$f":"IF(ISERROR(Dados!#REF!),\"-\",Dados!#REF!)","v":"-"},{"$f":"IF(ISERROR(Dados!#REF!),\"-\",Dados!#REF!)","v":"-"},null,{"$f":"IF(ISERROR(Dados!#REF!),\"-\",Dados!#REF!)","v":"-"},{"$f":"IF(ISERROR(Dados!#REF!),\"-\",Dados!#REF!)","v":"-"},null,{"$f":"IF(ISERROR(Dados!#REF!),\"-\",Dados!#REF!)","v":"-"},{"$f":"IF(ISERROR(Dados!#REF!),\"0\",Dados!#REF!)","v":"0"},null,{"$f":"IF(ISERROR(Dados!#REF!),\"-\",Dados!#REF!)","v":"-"},{"$f":"IF(ISERROR(Dados!#REF!),\"0\",Dados!#REF!)","v":"0"},null,{"$f":"IF(ISERROR(Dados!#REF!),\"-\",Dados!#REF!)","v":"-"},{"$f":"IF(ISERROR(Dados!#REF!),\"-\",Dados!#REF!)","v":"-"},null,{"$f":"IF(ISERROR(Dados!#REF!),\"-\",Dados!#REF!)","v":"-"},{"$f":"IF(ISERROR(Dados!#REF!),\"-\",Dados!#REF!)","v":"-"},null,{"$f":"IF(ISERROR(Dados!#REF!),\"-\",Dados!#REF!)","v":"-"},{"$f":"IF(ISERROR(Dados!#REF!),\"0\",Dados!#REF!)","v":"0"},null,{"$f":"IF(ISERROR(Dados!#REF!),\"-\",Dados!#REF!)","v":"-"},{"$f":"IF(ISERROR(IF(Dados!#REF!<0,\"-\",Dados!#REF!)),\"-\",IF(Dados!#REF!<0,\"-\",Dados!#REF!))","v":"-"},null,{"$f":"IF(ISERROR(Dados!#REF!),\"-\",Dados!#REF!)","v":"-"},{"$f":"IF(ISERROR(Dados!#REF!),\"-1000000\",Dados!#REF!)","v":"-1000000"},null,{"$f":"IF(ISERROR(Dados!#REF!),\"-\",Dados!#REF!)","v":"-"},{"$f":"IF(ISERROR(Dados!#REF!),\"-1000000\",Dados!#REF!)","v":"-1000000"},null,{"$f":"IF(ISERROR(Dados!#REF!),\"-\",Dados!#REF!)","v":"-"},{"$f":"IF(ISERROR(Dados!#REF!),\"-\",Dados!#REF!)","v":"-"},null,{"$f":"IF(ISERROR(Dados!#REF!),\"-\",Dados!#REF!)","v":"-"},{"$f":"IF(ISERROR(Dados!#REF!),\"-\",Dados!#REF!)","v":"-"}]
[{"$f":"IF(ISERROR(Dados!#REF!),\"-\",Dados!#REF!)","v":"-"},{"$f":"IF(ISERROR(Dados!#REF!),\"-\",Dados!#REF!)","v":"-"},null,{"$f":"IF(ISERROR(Dados!#REF!),\"-\",Dados!#REF!)","v":"-"},{"$f":"IF(ISERROR(Dados!#REF!),\"-\",Dados!#REF!)","v":"-"},null,{"$f":"IF(ISERROR(Dados!#REF!),\"-\",Dados!#REF!)","v":"-"},{"$f":"IF(ISERROR(Dados!#REF!),\"0\",Dados!#REF!)","v":"0"},null,{"$f":"IF(ISERROR(Dados!#REF!),\"-\",Dados!#REF!)","v":"-"},{"$f":"IF(ISERROR(Dados!#REF!),\"0\",Dados!#REF!)","v":"0"},null,{"$f":"IF(ISERROR(Dados!#REF!),\"-\",Dados!#REF!)","v":"-"},{"$f":"IF(ISERROR(Dados!#REF!),\"-\",Dados!#REF!)","v":"-"},null,{"$f":"IF(ISERROR(Dados!#REF!),\"-\",Dados!#REF!)","v":"-"},{"$f":"IF(ISERROR(Dados!#REF!),\"-\",Dados!#REF!)","v":"-"},null,{"$f":"IF(ISERROR(Dados!#REF!),\"-\",Dados!#REF!)","v":"-"},{"$f":"IF(ISERROR(Dados!#REF!),\"0\",Dados!#REF!)","v":"0"},null,{"$f":"IF(ISERROR(Dados!#REF!),\"-\",Dados!#REF!)","v":"-"},{"$f":"IF(ISERROR(IF(Dados!#REF!<0,\"-\",Dados!#REF!)),\"-\",IF(Dados!#REF!<0,\"-\",Dados!#REF!))","v":"-"},null,{"$f":"IF(ISERROR(Dados!#REF!),\"-\",Dados!#REF!)","v":"-"},{"$f":"IF(ISERROR(Dados!#REF!),\"-1000000\",Dados!#REF!)","v":"-1000000"},null,{"$f":"IF(ISERROR(Dados!#REF!),\"-\",Dados!#REF!)","v":"-"},{"$f":"IF(ISERROR(Dados!#REF!),\"-1000000\",Dados!#REF!)","v":"-1000000"},null,{"$f":"IF(ISERROR(Dados!#REF!),\"-\",Dados!#REF!)","v":"-"},{"$f":"IF(ISERROR(Dados!#REF!),\"-\",Dados!#REF!)","v":"-"},null,{"$f":"IF(ISERROR(Dados!#REF!),\"-\",Dados!#REF!)","v":"-"},{"$f":"IF(ISERROR(Dados!#REF!),\"-\",Dados!#REF!)","v":"-"}]
[{"$f":"IF(ISERROR(Dados!#REF!),\"-\",Dados!#REF!)","v":"-"},{"$f":"IF(ISERROR(Dados!#REF!),\"-\",Dados!#REF!)","v":"-"},null,{"$f":"IF(ISERROR(Dados!#REF!),\"-\",Dados!#REF!)","v":"-"},{"$f":"IF(ISERROR(Dados!#REF!),\"-\",Dados!#REF!)","v":"-"},null,{"$f":"IF(ISERROR(Dados!#REF!),\"-\",Dados!#REF!)","v":"-"},{"$f":"IF(ISERROR(Dados!#REF!),\"0\",Dados!#REF!)","v":"0"},null,{"$f":"IF(ISERROR(Dados!#REF!),\"-\",Dados!#REF!)","v":"-"},{"$f":"IF(ISERROR(Dados!#REF!),\"0\",Dados!#REF!)","v":"0"},null,{"$f":"IF(ISERROR(Dados!#REF!),\"-\",Dados!#REF!)","v":"-"},{"$f":"IF(ISERROR(Dados!#REF!),\"-\",Dados!#REF!)","v":"-"},null,{"$f":"IF(ISERROR(Dados!#REF!),\"-\",Dados!#REF!)","v":"-"},{"$f":"IF(ISERROR(Dados!#REF!),\"-\",Dados!#REF!)","v":"-"},null,{"$f":"IF(ISERROR(Dados!#REF!),\"-\",Dados!#REF!)","v":"-"},{"$f":"IF(ISERROR(Dados!#REF!),\"0\",Dados!#REF!)","v":"0"},null,{"$f":"IF(ISERROR(Dados!#REF!),\"-\",Dados!#REF!)","v":"-"},{"$f":"IF(ISERROR(IF(Dados!#REF!<0,\"-\",Dados!#REF!)),\"-\",IF(Dados!#REF!<0,\"-\",Dados!#REF!))","v":"-"},null,{"$f":"IF(ISERROR(Dados!#REF!),\"-\",Dados!#REF!)","v":"-"},{"$f":"IF(ISERROR(Dados!#REF!),\"-1000000\",Dados!#REF!)","v":"-1000000"},null,{"$f":"IF(ISERROR(Dados!#REF!),\"-\",Dados!#REF!)","v":"-"},{"$f":"IF(ISERROR(Dados!#REF!),\"-1000000\",Dados!#REF!)","v":"-1000000"},null,{"$f":"IF(ISERROR(Dados!#REF!),\"-\",Dados!#REF!)","v":"-"},{"$f":"IF(ISERROR(Dados!#REF!),\"-\",Dados!#REF!)","v":"-"},null,{"$f":"IF(ISERROR(Dados!#REF!),\"-\",Dados!#REF!)","v":"-"},{"$f":"IF(ISERROR(Dados!#REF!),\"-\",Dados!#REF!)","v":"-"}]
[{"$f":"IF(ISERROR(Dados!#REF!),\"-\",Dados!#REF!)","v":"-"},{"$f":"IF(ISERROR(Dados!#REF!),\"-\",Dados!#REF!)","v":"-"},null,{"$f":"IF(ISERROR(Dados!#REF!),\"-\",Dados!#REF!)","v":"-"},{"$f":"IF(ISERROR(Dados!#REF!),\"-\",Dados!#REF!)","v":"-"},null,{"$f":"IF(ISERROR(Dados!#REF!),\"-\",Dados!#REF!)","v":"-"},{"$f":"IF(ISERROR(Dados!#REF!),\"0\",Dados!#REF!)","v":"0"},null,{"$f":"IF(ISERROR(Dados!#REF!),\"-\",Dados!#REF!)","v":"-"},{"$f":"IF(ISERROR(Dados!#REF!),\"0\",Dados!#REF!)","v":"0"},null,{"$f":"IF(ISERROR(Dados!#REF!),\"-\",Dados!#REF!)","v":"-"},{"$f":"IF(ISERROR(Dados!#REF!),\"-\",Dados!#REF!)","v":"-"},null,{"$f":"IF(ISERROR(Dados!#REF!),\"-\",Dados!#REF!)","v":"-"},{"$f":"IF(ISERROR(Dados!#REF!),\"-\",Dados!#REF!)","v":"-"},null,{"$f":"IF(ISERROR(Dados!#REF!),\"-\",Dados!#REF!)","v":"-"},{"$f":"IF(ISERROR(Dados!#REF!),\"0\",Dados!#REF!)","v":"0"},null,{"$f":"IF(ISERROR(Dados!#REF!),\"-\",Dados!#REF!)","v":"-"},{"$f":"IF(ISERROR(IF(Dados!#REF!<0,\"-\",Dados!#REF!)),\"-\",IF(Dados!#REF!<0,\"-\",Dados!#REF!))","v":"-"},null,{"$f":"IF(ISERROR(Dados!#REF!),\"-\",Dados!#REF!)","v":"-"},{"$f":"IF(ISERROR(Dados!#REF!),\"-1000000\",Dados!#REF!)","v":"-1000000"},null,{"$f":"IF(ISERROR(Dados!#REF!),\"-\",Dados!#REF!)","v":"-"},{"$f":"IF(ISERROR(Dados!#REF!),\"-1000000\",Dados!#REF!)","v":"-1000000"},null,{"$f":"IF(ISERROR(Dados!#REF!),\"-\",Dados!#REF!)","v":"-"},{"$f":"IF(ISERROR(Dados!#REF!),\"-\",Dados!#REF!)","v":"-"},null,{"$f":"IF(ISERROR(Dados!#REF!),\"-\",Dados!#REF!)","v":"-"},{"$f":"IF(ISERROR(Dados!#REF!),\"-\",Dados!#REF!)","v":"-"}]
[{"$f":"IF(ISERROR(Dados!#REF!),\"-\",Dados!#REF!)","v":"-"},{"$f":"IF(ISERROR(Dados!#REF!),\"-\",Dados!#REF!)","v":"-"},null,{"$f":"IF(ISERROR(Dados!#REF!),\"-\",Dados!#REF!)","v":"-"},{"$f":"IF(ISERROR(Dados!#REF!),\"-\",Dados!#REF!)","v":"-"},null,{"$f":"IF(ISERROR(Dados!#REF!),\"-\",Dados!#REF!)","v":"-"},{"$f":"IF(ISERROR(Dados!#REF!),\"0\",Dados!#REF!)","v":"0"},null,{"$f":"IF(ISERROR(Dados!#REF!),\"-\",Dados!#REF!)","v":"-"},{"$f":"IF(ISERROR(Dados!#REF!),\"0\",Dados!#REF!)","v":"0"},null,{"$f":"IF(ISERROR(Dados!#REF!),\"-\",Dados!#REF!)","v":"-"},{"$f":"IF(ISERROR(Dados!#REF!),\"-\",Dados!#REF!)","v":"-"},null,{"$f":"IF(ISERROR(Dados!#REF!),\"-\",Dados!#REF!)","v":"-"},{"$f":"IF(ISERROR(Dados!#REF!),\"-\",Dados!#REF!)","v":"-"},null,{"$f":"IF(ISERROR(Dados!#REF!),\"-\",Dados!#REF!)","v":"-"},{"$f":"IF(ISERROR(Dados!#REF!),\"0\",Dados!#REF!)","v":"0"},null,{"$f":"IF(ISERROR(Dados!#REF!),\"-\",Dados!#REF!)","v":"-"},{"$f":"IF(ISERROR(IF(Dados!#REF!<0,\"-\",Dados!#REF!)),\"-\",IF(Dados!#REF!<0,\"-\",Dados!#REF!))","v":"-"},null,{"$f":"IF(ISERROR(Dados!#REF!),\"-\",Dados!#REF!)","v":"-"},{"$f":"IF(ISERROR(Dados!#REF!),\"-1000000\",Dados!#REF!)","v":"-1000000"},null,{"$f":"IF(ISERROR(Dados!#REF!),\"-\",Dados!#REF!)","v":"-"},{"$f":"IF(ISERROR(Dados!#REF!),\"-1000000\",Dados!#REF!)","v":"-1000000"},null,{"$f":"IF(ISERROR(Dados!#REF!),\"-\",Dados!#REF!)","v":"-"},{"$f":"IF(ISERROR(Dados!#REF!),\"-\",Dados!#REF!)","v":"-"},null,{"$f":"IF(ISERROR(Dados!#REF!),\"-\",Dados!#REF!)","v":"-"},{"$f":"IF(ISERROR(Dados!#REF!),\"-\",Dados!#REF!)","v":"-"}]
[{"$f":"IF(ISERROR(Dados!#REF!),\"-\",Dados!#REF!)","v":"-"},{"$f":"IF(ISERROR(Dados!#REF!),\"-\",Dados!#REF!)","v":"-"},null,{"$f":"IF(ISERROR(Dados!#REF!),\"-\",Dados!#REF!)","v":"-"},{"$f":"IF(ISERROR(Dados!#REF!),\"-\",Dados!#REF!)","v":"-"},null,{"$f":"IF(ISERROR(Dados!#REF!),\"-\",Dados!#REF!)","v":"-"},{"$f":"IF(ISERROR(Dados!#REF!),\"0\",Dados!#REF!)","v":"0"},null,{"$f":"IF(ISERROR(Dados!#REF!),\"-\",Dados!#REF!)","v":"-"},{"$f":"IF(ISERROR(Dados!#REF!),\"0\",Dados!#REF!)","v":"0"},null,{"$f":"IF(ISERROR(Dados!#REF!),\"-\",Dados!#REF!)","v":"-"},{"$f":"IF(ISERROR(Dados!#REF!),\"-\",Dados!#REF!)","v":"-"},null,{"$f":"IF(ISERROR(Dados!#REF!),\"-\",Dados!#REF!)","v":"-"},{"$f":"IF(ISERROR(Dados!#REF!),\"-\",Dados!#REF!)","v":"-"},null,{"$f":"IF(ISERROR(Dados!#REF!),\"-\",Dados!#REF!)","v":"-"},{"$f":"IF(ISERROR(Dados!#REF!),\"0\",Dados!#REF!)","v":"0"},null,{"$f":"IF(ISERROR(Dados!#REF!),\"-\",Dados!#REF!)","v":"-"},{"$f":"IF(ISERROR(IF(Dados!#REF!<0,\"-\",Dados!#REF!)),\"-\",IF(Dados!#REF!<0,\"-\",Dados!#REF!))","v":"-"},null,{"$f":"IF(ISERROR(Dados!#REF!),\"-\",Dados!#REF!)","v":"-"},{"$f":"IF(ISERROR(Dados!#REF!),\"-1000000\",Dados!#REF!)","v":"-1000000"},null,{"$f":"IF(ISERROR(Dados!#REF!),\"-\",Dados!#REF!)","v":"-"},{"$f":"IF(ISERROR(Dados!#REF!),\"-1000000\",Dados!#REF!)","v":"-1000000"},null,{"$f":"IF(ISERROR(Dados!#REF!),\"-\",Dados!#REF!)","v":"-"},{"$f":"IF(ISERROR(Dados!#REF!),\"-\",Dados!#REF!)","v":"-"},null,{"$f":"IF(ISERROR(Dados!#REF!),\"-\",Dados!#REF!)","v":"-"},{"$f":"IF(ISERROR(Dados!#REF!),\"-\",Dados!#REF!)","v":"-"}]
[{"$f":"IF(ISERROR(Dados!#REF!),\"-\",Dados!#REF!)","v":"-"},{"$f":"IF(ISERROR(Dados!#REF!),\"-\",Dados!#REF!)","v":"-"},null,{"$f":"IF(ISERROR(Dados!#REF!),\"-\",Dados!#REF!)","v":"-"},{"$f":"IF(ISERROR(Dados!#REF!),\"-\",Dados!#REF!)","v":"-"},null,{"$f":"IF(ISERROR(Dados!#REF!),\"-\",Dados!#REF!)","v":"-"},{"$f":"IF(ISERROR(Dados!#REF!),\"0\",Dados!#REF!)","v":"0"},null,{"$f":"IF(ISERROR(Dados!#REF!),\"-\",Dados!#REF!)","v":"-"},{"$f":"IF(ISERROR(Dados!#REF!),\"0\",Dados!#REF!)","v":"0"},null,{"$f":"IF(ISERROR(Dados!#REF!),\"-\",Dados!#REF!)","v":"-"},{"$f":"IF(ISERROR(Dados!#REF!),\"-\",Dados!#REF!)","v":"-"},null,{"$f":"IF(ISERROR(Dados!#REF!),\"-\",Dados!#REF!)","v":"-"},{"$f":"IF(ISERROR(Dados!#REF!),\"-\",Dados!#REF!)","v":"-"},null,{"$f":"IF(ISERROR(Dados!#REF!),\"-\",Dados!#REF!)","v":"-"},{"$f":"IF(ISERROR(Dados!#REF!),\"0\",Dados!#REF!)","v":"0"},null,{"$f":"IF(ISERROR(Dados!#REF!),\"-\",Dados!#REF!)","v":"-"},{"$f":"IF(ISERROR(IF(Dados!#REF!<0,\"-\",Dados!#REF!)),\"-\",IF(Dados!#REF!<0,\"-\",Dados!#REF!))","v":"-"},null,{"$f":"IF(ISERROR(Dados!#REF!),\"-\",Dados!#REF!)","v":"-"},{"$f":"IF(ISERROR(Dados!#REF!),\"-1000000\",Dados!#REF!)","v":"-1000000"},null,{"$f":"IF(ISERROR(Dados!#REF!),\"-\",Dados!#REF!)","v":"-"},{"$f":"IF(ISERROR(Dados!#REF!),\"-1000000\",Dados!#REF!)","v":"-1000000"},null,{"$f":"IF(ISERROR(Dados!#REF!),\"-\",Dados!#REF!)","v":"-"},{"$f":"IF(ISERROR(Dados!#REF!),\"-\",Dados!#REF!)","v":"-"},null,{"$f":"IF(ISERROR(Dados!#REF!),\"-\",Dados!#REF!)","v":"-"},{"$f":"IF(ISERROR(Dados!#REF!),\"-\",Dados!#REF!)","v":"-"}]
[{"$f":"IF(ISERROR(Dados!#REF!),\"-\",Dados!#REF!)","v":"-"},{"$f":"IF(ISERROR(Dados!#REF!),\"-\",Dados!#REF!)","v":"-"},null,{"$f":"IF(ISERROR(Dados!#REF!),\"-\",Dados!#REF!)","v":"-"},{"$f":"IF(ISERROR(Dados!#REF!),\"-\",Dados!#REF!)","v":"-"},null,{"$f":"IF(ISERROR(Dados!#REF!),\"-\",Dados!#REF!)","v":"-"},{"$f":"IF(ISERROR(Dados!#REF!),\"0\",Dados!#REF!)","v":"0"},null,{"$f":"IF(ISERROR(Dados!#REF!),\"-\",Dados!#REF!)","v":"-"},{"$f":"IF(ISERROR(Dados!#REF!),\"0\",Dados!#REF!)","v":"0"},null,{"$f":"IF(ISERROR(Dados!#REF!),\"-\",Dados!#REF!)","v":"-"},{"$f":"IF(ISERROR(Dados!#REF!),\"-\",Dados!#REF!)","v":"-"},null,{"$f":"IF(ISERROR(Dados!#REF!),\"-\",Dados!#REF!)","v":"-"},{"$f":"IF(ISERROR(Dados!#REF!),\"-\",Dados!#REF!)","v":"-"},null,{"$f":"IF(ISERROR(Dados!#REF!),\"-\",Dados!#REF!)","v":"-"},{"$f":"IF(ISERROR(Dados!#REF!),\"0\",Dados!#REF!)","v":"0"},null,{"$f":"IF(ISERROR(Dados!#REF!),\"-\",Dados!#REF!)","v":"-"},{"$f":"IF(ISERROR(IF(Dados!#REF!<0,\"-\",Dados!#REF!)),\"-\",IF(Dados!#REF!<0,\"-\",Dados!#REF!))","v":"-"},null,{"$f":"IF(ISERROR(Dados!#REF!),\"-\",Dados!#REF!)","v":"-"},{"$f":"IF(ISERROR(Dados!#REF!),\"-1000000\",Dados!#REF!)","v":"-1000000"},null,{"$f":"IF(ISERROR(Dados!#REF!),\"-\",Dados!#REF!)","v":"-"},{"$f":"IF(ISERROR(Dados!#REF!),\"-1000000\",Dados!#REF!)","v":"-1000000"},null,{"$f":"IF(ISERROR(Dados!#REF!),\"-\",Dados!#REF!)","v":"-"},{"$f":"IF(ISERROR(Dados!#REF!),\"-\",Dados!#REF!)","v":"-"},null,{"$f":"IF(ISERROR(Dados!#REF!),\"-\",Dados!#REF!)","v":"-"},{"$f":"IF(ISERROR(Dados!#REF!),\"-\",Dados!#REF!)","v":"-"}]
[{"$f":"IF(ISERROR(Dados!#REF!),\"-\",Dados!#REF!)","v":"-"},{"$f":"IF(ISERROR(Dados!#REF!),\"-\",Dados!#REF!)","v":"-"},null,{"$f":"IF(ISERROR(Dados!#REF!),\"-\",Dados!#REF!)","v":"-"},{"$f":"IF(ISERROR(Dados!#REF!),\"-\",Dados!#REF!)","v":"-"},null,{"$f":"IF(ISERROR(Dados!#REF!),\"-\",Dados!#REF!)","v":"-"},{"$f":"IF(ISERROR(Dados!#REF!),\"0\",Dados!#REF!)","v":"0"},null,{"$f":"IF(ISERROR(Dados!#REF!),\"-\",Dados!#REF!)","v":"-"},{"$f":"IF(ISERROR(Dados!#REF!),\"0\",Dados!#REF!)","v":"0"},null,{"$f":"IF(ISERROR(Dados!#REF!),\"-\",Dados!#REF!)","v":"-"},{"$f":"IF(ISERROR(Dados!#REF!),\"-\",Dados!#REF!)","v":"-"},null,{"$f":"IF(ISERROR(Dados!#REF!),\"-\",Dados!#REF!)","v":"-"},{"$f":"IF(ISERROR(Dados!#REF!),\"-\",Dados!#REF!)","v":"-"},null,{"$f":"IF(ISERROR(Dados!#REF!),\"-\",Dados!#REF!)","v":"-"},{"$f":"IF(ISERROR(Dados!#REF!),\"0\",Dados!#REF!)","v":"0"},null,{"$f":"IF(ISERROR(Dados!#REF!),\"-\",Dados!#REF!)","v":"-"},{"$f":"IF(ISERROR(IF(Dados!#REF!<0,\"-\",Dados!#REF!)),\"-\",IF(Dados!#REF!<0,\"-\",Dados!#REF!))","v":"-"},null,{"$f":"IF(ISERROR(Dados!#REF!),\"-\",Dados!#REF!)","v":"-"},{"$f":"IF(ISERROR(Dados!#REF!),\"-1000000\",Dados!#REF!)","v":"-1000000"},null,{"$f":"IF(ISERROR(Dados!#REF!),\"-\",Dados!#REF!)","v":"-"},{"$f":"IF(ISERROR(Dados!#REF!),\"-1000000\",Dados!#REF!)","v":"-1000000"},null,{"$f":"IF(ISERROR(Dados!#REF!),\"-\",Dados!#REF!)","v":"-"},{"$f":"IF(ISERROR(Dados!#REF!),\"-\",Dados!#REF!)","v":"-"},null,{"$f":"IF(ISERROR(Dados!#REF!),\"-\",Dados!#REF!)","v":"-"},{"$f":"IF(ISERROR(Dados!#REF!),\"-\",Dados!#REF!)","v":"-"}]
[{"$f":"IF(ISERROR(Dados!#REF!),\"-\",Dados!#REF!)","v":"-"},{"$f":"IF(ISERROR(Dados!#REF!),\"-\",Dados!#REF!)","v":"-"},null,{"$f":"IF(ISERROR(Dados!#REF!),\"-\",Dados!#REF!)","v":"-"},{"$f":"IF(ISERROR(Dados!#REF!),\"-\",Dados!#REF!)","v":"-"},null,{"$f":"IF(ISERROR(Dados!#REF!),\"-\",Dados!#REF!)","v":"-"},{"$f":"IF(ISERROR(Dados!#REF!),\"0\",Dados!#REF!)","v":"0"},null,{"$f":"IF(ISERROR(Dados!#REF!),\"-\",Dados!#REF!)","v":"-"},{"$f":"IF(ISERROR(Dados!#REF!),\"0\",Dados!#REF!)","v":"0"},null,{"$f":"IF(ISERROR(Dados!#REF!),\"-\",Dados!#REF!)","v":"-"},{"$f":"IF(ISERROR(Dados!#REF!),\"-\",Dados!#REF!)","v":"-"},null,{"$f":"IF(ISERROR(Dados!#REF!),\"-\",Dados!#REF!)","v":"-"},{"$f":"IF(ISERROR(Dados!#REF!),\"-\",Dados!#REF!)","v":"-"},null,{"$f":"IF(ISERROR(Dados!#REF!),\"-\",Dados!#REF!)","v":"-"},{"$f":"IF(ISERROR(Dados!#REF!),\"0\",Dados!#REF!)","v":"0"},null,{"$f":"IF(ISERROR(Dados!#REF!),\"-\",Dados!#REF!)","v":"-"},{"$f":"IF(ISERROR(IF(Dados!#REF!<0,\"-\",Dados!#REF!)),\"-\",IF(Dados!#REF!<0,\"-\",Dados!#REF!))","v":"-"},null,{"$f":"IF(ISERROR(Dados!#REF!),\"-\",Dados!#REF!)","v":"-"},{"$f":"IF(ISERROR(Dados!#REF!),\"-1000000\",Dados!#REF!)","v":"-1000000"},null,{"$f":"IF(ISERROR(Dados!#REF!),\"-\",Dados!#REF!)","v":"-"},{"$f":"IF(ISERROR(Dados!#REF!),\"-1000000\",Dados!#REF!)","v":"-1000000"},null,{"$f":"IF(ISERROR(Dados!#REF!),\"-\",Dados!#REF!)","v":"-"},{"$f":"IF(ISERROR(Dados!#REF!),\"-\",Dados!#REF!)","v":"-"},null,{"$f":"IF(ISERROR(Dados!#REF!),\"-\",Dados!#REF!)","v":"-"},{"$f":"IF(ISERROR(Dados!#REF!),\"-\",Dados!#REF!)","v":"-"}]
[{"$f":"IF(ISERROR(Dados!#REF!),\"-\",Dados!#REF!)","v":"-"},{"$f":"IF(ISERROR(Dados!#REF!),\"-\",Dados!#REF!)","v":"-"},null,{"$f":"IF(ISERROR(Dados!#REF!),\"-\",Dados!#REF!)","v":"-"},{"$f":"IF(ISERROR(Dados!#REF!),\"-\",Dados!#REF!)","v":"-"},null,{"$f":"IF(ISERROR(Dados!#REF!),\"-\",Dados!#REF!)","v":"-"},{"$f":"IF(ISERROR(Dados!#REF!),\"0\",Dados!#REF!)","v":"0"},null,{"$f":"IF(ISERROR(Dados!#REF!),\"-\",Dados!#REF!)","v":"-"},{"$f":"IF(ISERROR(Dados!#REF!),\"0\",Dados!#REF!)","v":"0"},null,{"$f":"IF(ISERROR(Dados!#REF!),\"-\",Dados!#REF!)","v":"-"},{"$f":"IF(ISERROR(Dados!#REF!),\"-\",Dados!#REF!)","v":"-"},null,{"$f":"IF(ISERROR(Dados!#REF!),\"-\",Dados!#REF!)","v":"-"},{"$f":"IF(ISERROR(Dados!#REF!),\"-\",Dados!#REF!)","v":"-"},null,{"$f":"IF(ISERROR(Dados!#REF!),\"-\",Dados!#REF!)","v":"-"},{"$f":"IF(ISERROR(Dados!#REF!),\"0\",Dados!#REF!)","v":"0"},null,{"$f":"IF(ISERROR(Dados!#REF!),\"-\",Dados!#REF!)","v":"-"},{"$f":"IF(ISERROR(IF(Dados!#REF!<0,\"-\",Dados!#REF!)),\"-\",IF(Dados!#REF!<0,\"-\",Dados!#REF!))","v":"-"},null,{"$f":"IF(ISERROR(Dados!#REF!),\"-\",Dados!#REF!)","v":"-"},{"$f":"IF(ISERROR(Dados!#REF!),\"-1000000\",Dados!#REF!)","v":"-1000000"},null,{"$f":"IF(ISERROR(Dados!#REF!),\"-\",Dados!#REF!)","v":"-"},{"$f":"IF(ISERROR(Dados!#REF!),\"-1000000\",Dados!#REF!)","v":"-1000000"},null,{"$f":"IF(ISERROR(Dados!#REF!),\"-\",Dados!#REF!)","v":"-"},{"$f":"IF(ISERROR(Dados!#REF!),\"-\",Dados!#REF!)","v":"-"},null,{"$f":"IF(ISERROR(Dados!#REF!),\"-\",Dados!#REF!)","v":"-"},{"$f":"IF(ISERROR(Dados!#REF!),\"-\",Dados!#REF!)","v":"-"}]
[{"$f":"IF(ISERROR(Dados!#REF!),\"-\",Dados!#REF!)","v":"-"},{"$f":"IF(ISERROR(Dados!#REF!),\"-\",Dados!#REF!)","v":"-"},null,{"$f":"IF(ISERROR(Dados!#REF!),\"-\",Dados!#REF!)","v":"-"},{"$f":"IF(ISERROR(Dados!#REF!),\"-\",Dados!#REF!)","v":"-"},null,{"$f":"IF(ISERROR(Dados!#REF!),\"-\",Dados!#REF!)","v":"-"},{"$f":"IF(ISERROR(Dados!#REF!),\"0\",Dados!#REF!)","v":"0"},null,{"$f":"IF(ISERROR(Dados!#REF!),\"-\",Dados!#REF!)","v":"-"},{"$f":"IF(ISERROR(Dados!#REF!),\"0\",Dados!#REF!)","v":"0"},null,{"$f":"IF(ISERROR(Dados!#REF!),\"-\",Dados!#REF!)","v":"-"},{"$f":"IF(ISERROR(Dados!#REF!),\"-\",Dados!#REF!)","v":"-"},null,{"$f":"IF(ISERROR(Dados!#REF!),\"-\",Dados!#REF!)","v":"-"},{"$f":"IF(ISERROR(Dados!#REF!),\"-\",Dados!#REF!)","v":"-"},null,{"$f":"IF(ISERROR(Dados!#REF!),\"-\",Dados!#REF!)","v":"-"},{"$f":"IF(ISERROR(Dados!#REF!),\"0\",Dados!#REF!)","v":"0"},null,{"$f":"IF(ISERROR(Dados!#REF!),\"-\",Dados!#REF!)","v":"-"},{"$f":"IF(ISERROR(IF(Dados!#REF!<0,\"-\",Dados!#REF!)),\"-\",IF(Dados!#REF!<0,\"-\",Dados!#REF!))","v":"-"},null,{"$f":"IF(ISERROR(Dados!#REF!),\"-\",Dados!#REF!)","v":"-"},{"$f":"IF(ISERROR(Dados!#REF!),\"-1000000\",Dados!#REF!)","v":"-1000000"},null,{"$f":"IF(ISERROR(Dados!#REF!),\"-\",Dados!#REF!)","v":"-"},{"$f":"IF(ISERROR(Dados!#REF!),\"-1000000\",Dados!#REF!)","v":"-1000000"},null,{"$f":"IF(ISERROR(Dados!#REF!),\"-\",Dados!#REF!)","v":"-"},{"$f":"IF(ISERROR(Dados!#REF!),\"-\",Dados!#REF!)","v":"-"},null,{"$f":"IF(ISERROR(Dados!#REF!),\"-\",Dados!#REF!)","v":"-"},{"$f":"IF(ISERROR(Dados!#REF!),\"-\",Dados!#REF!)","v":"-"}]
[{"$f":"IF(ISERROR(Dados!#REF!),\"-\",Dados!#REF!)","v":"-"},{"$f":"IF(ISERROR(Dados!#REF!),\"-\",Dados!#REF!)","v":"-"},null,{"$f":"IF(ISERROR(Dados!#REF!),\"-\",Dados!#REF!)","v":"-"},{"$f":"IF(ISERROR(Dados!#REF!),\"-\",Dados!#REF!)","v":"-"},null,{"$f":"IF(ISERROR(Dados!#REF!),\"-\",Dados!#REF!)","v":"-"},{"$f":"IF(ISERROR(Dados!#REF!),\"0\",Dados!#REF!)","v":"0"},null,{"$f":"IF(ISERROR(Dados!#REF!),\"-\",Dados!#REF!)","v":"-"},{"$f":"IF(ISERROR(Dados!#REF!),\"0\",Dados!#REF!)","v":"0"},null,{"$f":"IF(ISERROR(Dados!#REF!),\"-\",Dados!#REF!)","v":"-"},{"$f":"IF(ISERROR(Dados!#REF!),\"-\",Dados!#REF!)","v":"-"},null,{"$f":"IF(ISERROR(Dados!#REF!),\"-\",Dados!#REF!)","v":"-"},{"$f":"IF(ISERROR(Dados!#REF!),\"-\",Dados!#REF!)","v":"-"},null,{"$f":"IF(ISERROR(Dados!#REF!),\"-\",Dados!#REF!)","v":"-"},{"$f":"IF(ISERROR(Dados!#REF!),\"0\",Dados!#REF!)","v":"0"},null,{"$f":"IF(ISERROR(Dados!#REF!),\"-\",Dados!#REF!)","v":"-"},{"$f":"IF(ISERROR(IF(Dados!#REF!<0,\"-\",Dados!#REF!)),\"-\",IF(Dados!#REF!<0,\"-\",Dados!#REF!))","v":"-"},null,{"$f":"IF(ISERROR(Dados!#REF!),\"-\",Dados!#REF!)","v":"-"},{"$f":"IF(ISERROR(Dados!#REF!),\"-1000000\",Dados!#REF!)","v":"-1000000"},null,{"$f":"IF(ISERROR(Dados!#REF!),\"-\",Dados!#REF!)","v":"-"},{"$f":"IF(ISERROR(Dados!#REF!),\"-1000000\",Dados!#REF!)","v":"-1000000"},null,{"$f":"IF(ISERROR(Dados!#REF!),\"-\",Dados!#REF!)","v":"-"},{"$f":"IF(ISERROR(Dados!#REF!),\"-\",Dados!#REF!)","v":"-"},null,{"$f":"IF(ISERROR(Dados!#REF!),\"-\",Dados!#REF!)","v":"-"},{"$f":"IF(ISERROR(Dados!#REF!),\"-\",Dados!#REF!)","v":"-"}]
[{"$f":"IF(ISERROR(Dados!#REF!),\"-\",Dados!#REF!)","v":"-"},{"$f":"IF(ISERROR(Dados!#REF!),\"-\",Dados!#REF!)","v":"-"},null,{"$f":"IF(ISERROR(Dados!#REF!),\"-\",Dados!#REF!)","v":"-"},{"$f":"IF(ISERROR(Dados!#REF!),\"-\",Dados!#REF!)","v":"-"},null,{"$f":"IF(ISERROR(Dados!#REF!),\"-\",Dados!#REF!)","v":"-"},{"$f":"IF(ISERROR(Dados!#REF!),\"0\",Dados!#REF!)","v":"0"},null,{"$f":"IF(ISERROR(Dados!#REF!),\"-\",Dados!#REF!)","v":"-"},{"$f":"IF(ISERROR(Dados!#REF!),\"0\",Dados!#REF!)","v":"0"},null,{"$f":"IF(ISERROR(Dados!#REF!),\"-\",Dados!#REF!)","v":"-"},{"$f":"IF(ISERROR(Dados!#REF!),\"-\",Dados!#REF!)","v":"-"},null,{"$f":"IF(ISERROR(Dados!#REF!),\"-\",Dados!#REF!)","v":"-"},{"$f":"IF(ISERROR(Dados!#REF!),\"-\",Dados!#REF!)","v":"-"},null,{"$f":"IF(ISERROR(Dados!#REF!),\"-\",Dados!#REF!)","v":"-"},{"$f":"IF(ISERROR(Dados!#REF!),\"0\",Dados!#REF!)","v":"0"},null,{"$f":"IF(ISERROR(Dados!#REF!),\"-\",Dados!#REF!)","v":"-"},{"$f":"IF(ISERROR(IF(Dados!#REF!<0,\"-\",Dados!#REF!)),\"-\",IF(Dados!#REF!<0,\"-\",Dados!#REF!))","v":"-"},null,{"$f":"IF(ISERROR(Dados!#REF!),\"-\",Dados!#REF!)","v":"-"},{"$f":"IF(ISERROR(Dados!#REF!),\"-1000000\",Dados!#REF!)","v":"-1000000"},null,{"$f":"IF(ISERROR(Dados!#REF!),\"-\",Dados!#REF!)","v":"-"},{"$f":"IF(ISERROR(Dados!#REF!),\"-1000000\",Dados!#REF!)","v":"-1000000"},null,{"$f":"IF(ISERROR(Dados!#REF!),\"-\",Dados!#REF!)","v":"-"},{"$f":"IF(ISERROR(Dados!#REF!),\"-\",Dados!#REF!)","v":"-"},null,{"$f":"IF(ISERROR(Dados!#REF!),\"-\",Dados!#REF!)","v":"-"},{"$f":"IF(ISERROR(Dados!#REF!),\"-\",Dados!#REF!)","v":"-"}]
[{"$f":"IF(ISERROR(Dados!#REF!),\"-\",Dados!#REF!)","v":"-"},{"$f":"IF(ISERROR(Dados!#REF!),\"-\",Dados!#REF!)","v":"-"},null,{"$f":"IF(ISERROR(Dados!#REF!),\"-\",Dados!#REF!)","v":"-"},{"$f":"IF(ISERROR(Dados!#REF!),\"-\",Dados!#REF!)","v":"-"},null,{"$f":"IF(ISERROR(Dados!#REF!),\"-\",Dados!#REF!)","v":"-"},{"$f":"IF(ISERROR(Dados!#REF!),\"0\",Dados!#REF!)","v":"0"},null,{"$f":"IF(ISERROR(Dados!#REF!),\"-\",Dados!#REF!)","v":"-"},{"$f":"IF(ISERROR(Dados!#REF!),\"0\",Dados!#REF!)","v":"0"},null,{"$f":"IF(ISERROR(Dados!#REF!),\"-\",Dados!#REF!)","v":"-"},{"$f":"IF(ISERROR(Dados!#REF!),\"-\",Dados!#REF!)","v":"-"},null,{"$f":"IF(ISERROR(Dados!#REF!),\"-\",Dados!#REF!)","v":"-"},{"$f":"IF(ISERROR(Dados!#REF!),\"-\",Dados!#REF!)","v":"-"},null,{"$f":"IF(ISERROR(Dados!#REF!),\"-\",Dados!#REF!)","v":"-"},{"$f":"IF(ISERROR(Dados!#REF!),\"0\",Dados!#REF!)","v":"0"},null,{"$f":"IF(ISERROR(Dados!#REF!),\"-\",Dados!#REF!)","v":"-"},{"$f":"IF(ISERROR(IF(Dados!#REF!<0,\"-\",Dados!#REF!)),\"-\",IF(Dados!#REF!<0,\"-\",Dados!#REF!))","v":"-"},null,{"$f":"IF(ISERROR(Dados!#REF!),\"-\",Dados!#REF!)","v":"-"},{"$f":"IF(ISERROR(Dados!#REF!),\"-1000000\",Dados!#REF!)","v":"-1000000"},null,{"$f":"IF(ISERROR(Dados!#REF!),\"-\",Dados!#REF!)","v":"-"},{"$f":"IF(ISERROR(Dados!#REF!),\"-1000000\",Dados!#REF!)","v":"-1000000"},null,{"$f":"IF(ISERROR(Dados!#REF!),\"-\",Dados!#REF!)","v":"-"},{"$f":"IF(ISERROR(Dados!#REF!),\"-\",Dados!#REF!)","v":"-"},null,{"$f":"IF(ISERROR(Dados!#REF!),\"-\",Dados!#REF!)","v":"-"},{"$f":"IF(ISERROR(Dados!#REF!),\"-\",Dados!#REF!)","v":"-"}]
[{"$f":"IF(ISERROR(Dados!#REF!),\"-\",Dados!#REF!)","v":"-"},{"$f":"IF(ISERROR(Dados!#REF!),\"-\",Dados!#REF!)","v":"-"},null,{"$f":"IF(ISERROR(Dados!#REF!),\"-\",Dados!#REF!)","v":"-"},{"$f":"IF(ISERROR(Dados!#REF!),\"-\",Dados!#REF!)","v":"-"},null,{"$f":"IF(ISERROR(Dados!#REF!),\"-\",Dados!#REF!)","v":"-"},{"$f":"IF(ISERROR(Dados!#REF!),\"0\",Dados!#REF!)","v":"0"},null,{"$f":"IF(ISERROR(Dados!#REF!),\"-\",Dados!#REF!)","v":"-"},{"$f":"IF(ISERROR(Dados!#REF!),\"0\",Dados!#REF!)","v":"0"},null,{"$f":"IF(ISERROR(Dados!#REF!),\"-\",Dados!#REF!)","v":"-"},{"$f":"IF(ISERROR(Dados!#REF!),\"-\",Dados!#REF!)","v":"-"},null,{"$f":"IF(ISERROR(Dados!#REF!),\"-\",Dados!#REF!)","v":"-"},{"$f":"IF(ISERROR(Dados!#REF!),\"-\",Dados!#REF!)","v":"-"},null,{"$f":"IF(ISERROR(Dados!#REF!),\"-\",Dados!#REF!)","v":"-"},{"$f":"IF(ISERROR(Dados!#REF!),\"0\",Dados!#REF!)","v":"0"},null,{"$f":"IF(ISERROR(Dados!#REF!),\"-\",Dados!#REF!)","v":"-"},{"$f":"IF(ISERROR(IF(Dados!#REF!<0,\"-\",Dados!#REF!)),\"-\",IF(Dados!#REF!<0,\"-\",Dados!#REF!))","v":"-"},null,{"$f":"IF(ISERROR(Dados!#REF!),\"-\",Dados!#REF!)","v":"-"},{"$f":"IF(ISERROR(Dados!#REF!),\"-1000000\",Dados!#REF!)","v":"-1000000"},null,{"$f":"IF(ISERROR(Dados!#REF!),\"-\",Dados!#REF!)","v":"-"},{"$f":"IF(ISERROR(Dados!#REF!),\"-1000000\",Dados!#REF!)","v":"-1000000"},null,{"$f":"IF(ISERROR(Dados!#REF!),\"-\",Dados!#REF!)","v":"-"},{"$f":"IF(ISERROR(Dados!#REF!),\"-\",Dados!#REF!)","v":"-"},null,{"$f":"IF(ISERROR(Dados!#REF!),\"-\",Dados!#REF!)","v":"-"},{"$f":"IF(ISERROR(Dados!#REF!),\"-\",Dados!#REF!)","v":"-"}]
[{"$f":"IF(ISERROR(Dados!#REF!),\"-\",Dados!#REF!)","v":"-"},{"$f":"IF(ISERROR(Dados!#REF!),\"-\",Dados!#REF!)","v":"-"},null,{"$f":"IF(ISERROR(Dados!#REF!),\"-\",Dados!#REF!)","v":"-"},{"$f":"IF(ISERROR(Dados!#REF!),\"-\",Dados!#REF!)","v":"-"},null,{"$f":"IF(ISERROR(Dados!#REF!),\"-\",Dados!#REF!)","v":"-"},{"$f":"IF(ISERROR(Dados!#REF!),\"0\",Dados!#REF!)","v":"0"},null,{"$f":"IF(ISERROR(Dados!#REF!),\"-\",Dados!#REF!)","v":"-"},{"$f":"IF(ISERROR(Dados!#REF!),\"0\",Dados!#REF!)","v":"0"},null,{"$f":"IF(ISERROR(Dados!#REF!),\"-\",Dados!#REF!)","v":"-"},{"$f":"IF(ISERROR(Dados!#REF!),\"-\",Dados!#REF!)","v":"-"},null,{"$f":"IF(ISERROR(Dados!#REF!),\"-\",Dados!#REF!)","v":"-"},{"$f":"IF(ISERROR(Dados!#REF!),\"-\",Dados!#REF!)","v":"-"},null,{"$f":"IF(ISERROR(Dados!#REF!),\"-\",Dados!#REF!)","v":"-"},{"$f":"IF(ISERROR(Dados!#REF!),\"0\",Dados!#REF!)","v":"0"},null,{"$f":"IF(ISERROR(Dados!#REF!),\"-\",Dados!#REF!)","v":"-"},{"$f":"IF(ISERROR(IF(Dados!#REF!<0,\"-\",Dados!#REF!)),\"-\",IF(Dados!#REF!<0,\"-\",Dados!#REF!))","v":"-"},null,{"$f":"IF(ISERROR(Dados!#REF!),\"-\",Dados!#REF!)","v":"-"},{"$f":"IF(ISERROR(Dados!#REF!),\"-1000000\",Dados!#REF!)","v":"-1000000"},null,{"$f":"IF(ISERROR(Dados!#REF!),\"-\",Dados!#REF!)","v":"-"},{"$f":"IF(ISERROR(Dados!#REF!),\"-1000000\",Dados!#REF!)","v":"-1000000"},null,{"$f":"IF(ISERROR(Dados!#REF!),\"-\",Dados!#REF!)","v":"-"},{"$f":"IF(ISERROR(Dados!#REF!),\"-\",Dados!#REF!)","v":"-"},null,{"$f":"IF(ISERROR(Dados!#REF!),\"-\",Dados!#REF!)","v":"-"},{"$f":"IF(ISERROR(Dados!#REF!),\"-\",Dados!#REF!)","v":"-"}]
[{"$f":"IF(ISERROR(Dados!C258),\"-\",Dados!C258)","v":"-"},{"$f":"IF(ISERROR(Dados!F258),\"-\",Dados!F258)","v":"-"},null,{"$f":"IF(ISERROR(Dados!C258),\"-\",Dados!C258)","v":"-"},{"$f":"IF(ISERROR(Dados!G258),\"-\",Dados!G258)","v":"-"},null,{"$f":"IF(ISERROR(Dados!C258),\"-\",Dados!C258)","v":"-"},{"$f":"IF(ISERROR(Dados!X258),\"0\",Dados!X258)","v":"0"},null,{"$f":"IF(ISERROR(Dados!C258),\"-\",Dados!C258)","v":"-"},{"$f":"IF(ISERROR(Dados!AB258),\"0\",Dados!AB258)","v":"0"},null,{"$f":"IF(ISERROR(Dados!C258),\"-\",Dados!C258)","v":"-"},{"$f":"IF(ISERROR(Dados!S258),\"-\",Dados!S258)","v":"-"},null,{"$f":"IF(ISERROR(Dados!C258),\"-\",Dados!C258)","v":"-"},{"$f":"IF(ISERROR(Dados!T258),\"-\",Dados!T258)","v":"-"},null,{"$f":"IF(ISERROR(Dados!C258),\"-\",Dados!C258)","v":"-"},{"$f":"IF(ISERROR(Dados!U258),\"0\",Dados!U258)","v":"0"},null,{"$f":"IF(ISERROR(Dados!C258),\"-\",Dados!C258)","v":"-"},{"$f":"IF(ISERROR(IF(Dados!Z258<0,\"-\",Dados!Z258)),\"-\",IF(Dados!Z258<0,\"-\",Dados!Z258))","v":"-"},null,{"$f":"IF(ISERROR(Dados!C258),\"-\",Dados!C258)","v":"-"},{"$f":"IF(ISERROR(Dados!AC258),\"-1000000\",Dados!AC258)","v":"-1000000"},null,{"$f":"IF(ISERROR(Dados!C258),\"-\",Dados!C258)","v":"-"},{"$f":"IF(ISERROR(Dados!AD258),\"-1000000\",Dados!AD258)","v":"-1000000"},null,{"$f":"IF(ISERROR(Dados!C258),\"-\",Dados!C258)","v":"-"},{"$f":"IF(ISERROR(Dados!AC258),\"-\",Dados!AC258)","v":"-"},null,{"$f":"IF(ISERROR(Dados!C258),\"-\",Dados!C258)","v":"-"},{"$f":"IF(ISERROR(Dados!AD258),\"-\",Dados!AD258)","v":"-"}]
[{"$f":"IF(ISERROR(Dados!C261),\"-\",Dados!C261)","v":"-"},{"$f":"IF(ISERROR(Dados!F261),\"-\",Dados!F261)","v":"-"},null,{"$f":"IF(ISERROR(Dados!C261),\"-\",Dados!C261)","v":"-"},{"$f":"IF(ISERROR(Dados!G261),\"-\",Dados!G261)","v":"-"},null,{"$f":"IF(ISERROR(Dados!C261),\"-\",Dados!C261)","v":"-"},{"$f":"IF(ISERROR(Dados!X261),\"0\",Dados!X261)","v":"0"},null,{"$f":"IF(ISERROR(Dados!C261),\"-\",Dados!C261)","v":"-"},{"$f":"IF(ISERROR(Dados!AB261),\"0\",Dados!AB261)","v":"0"},null,{"$f":"IF(ISERROR(Dados!C261),\"-\",Dados!C261)","v":"-"},{"$f":"IF(ISERROR(Dados!S261),\"-\",Dados!S261)","v":"-"},null,{"$f":"IF(ISERROR(Dados!C261),\"-\",Dados!C261)","v":"-"},{"$f":"IF(ISERROR(Dados!T261),\"-\",Dados!T261)","v":"-"},null,{"$f":"IF(ISERROR(Dados!C261),\"-\",Dados!C261)","v":"-"},{"$f":"IF(ISERROR(Dados!U261),\"0\",Dados!U261)","v":"0"},null,{"$f":"IF(ISERROR(Dados!C261),\"-\",Dados!C261)","v":"-"},{"$f":"IF(ISERROR(IF(Dados!Z261<0,\"-\",Dados!Z261)),\"-\",IF(Dados!Z261<0,\"-\",Dados!Z261))","v":"-"},null,{"$f":"IF(ISERROR(Dados!C261),\"-\",Dados!C261)","v":"-"},{"$f":"IF(ISERROR(Dados!AC261),\"-1000000\",Dados!AC261)","v":"-1000000"},null,{"$f":"IF(ISERROR(Dados!C261),\"-\",Dados!C261)","v":"-"},{"$f":"IF(ISERROR(Dados!AD261),\"-1000000\",Dados!AD261)","v":"-1000000"},null,{"$f":"IF(ISERROR(Dados!C261),\"-\",Dados!C261)","v":"-"},{"$f":"IF(ISERROR(Dados!AC261),\"-\",Dados!AC261)","v":"-"},null,{"$f":"IF(ISERROR(Dados!C261),\"-\",Dados!C261)","v":"-"},{"$f":"IF(ISERROR(Dados!AD261),\"-\",Dados!AD261)","v":"-"}]
[{"$f":"IF(ISERROR(Dados!C259),\"-\",Dados!C259)","v":"-"},{"$f":"IF(ISERROR(Dados!F259),\"-\",Dados!F259)","v":"-"},null,{"$f":"IF(ISERROR(Dados!C259),\"-\",Dados!C259)","v":"-"},{"$f":"IF(ISERROR(Dados!G259),\"-\",Dados!G259)","v":"-"},null,{"$f":"IF(ISERROR(Dados!C259),\"-\",Dados!C259)","v":"-"},{"$f":"IF(ISERROR(Dados!X259),\"0\",Dados!X259)","v":"0"},null,{"$f":"IF(ISERROR(Dados!C259),\"-\",Dados!C259)","v":"-"},{"$f":"IF(ISERROR(Dados!AB259),\"0\",Dados!AB259)","v":"0"},null,{"$f":"IF(ISERROR(Dados!C259),\"-\",Dados!C259)","v":"-"},{"$f":"IF(ISERROR(Dados!S259),\"-\",Dados!S259)","v":"-"},null,{"$f":"IF(ISERROR(Dados!C259),\"-\",Dados!C259)","v":"-"},{"$f":"IF(ISERROR(Dados!T259),\"-\",Dados!T259)","v":"-"},null,{"$f":"IF(ISERROR(Dados!C259),\"-\",Dados!C259)","v":"-"},{"$f":"IF(ISERROR(Dados!U259),\"0\",Dados!U259)","v":"0"},null,{"$f":"IF(ISERROR(Dados!C259),\"-\",Dados!C259)","v":"-"},{"$f":"IF(ISERROR(IF(Dados!Z259<0,\"-\",Dados!Z259)),\"-\",IF(Dados!Z259<0,\"-\",Dados!Z259))","v":"-"},null,{"$f":"IF(ISERROR(Dados!C259),\"-\",Dados!C259)","v":"-"},{"$f":"IF(ISERROR(Dados!AC259),\"-1000000\",Dados!AC259)","v":"-1000000"},null,{"$f":"IF(ISERROR(Dados!C259),\"-\",Dados!C259)","v":"-"},{"$f":"IF(ISERROR(Dados!AD259),\"-1000000\",Dados!AD259)","v":"-1000000"},null,{"$f":"IF(ISERROR(Dados!C259),\"-\",Dados!C259)","v":"-"},{"$f":"IF(ISERROR(Dados!AC259),\"-\",Dados!AC259)","v":"-"},null,{"$f":"IF(ISERROR(Dados!C259),\"-\",Dados!C259)","v":"-"},{"$f":"IF(ISERROR(Dados!AD259),\"-\",Dados!AD259)","v":"-"}]
[{"$f":"IF(ISERROR(Dados!C260),\"-\",Dados!C260)","v":"-"},{"$f":"IF(ISERROR(Dados!F260),\"-\",Dados!F260)","v":"-"},null,{"$f":"IF(ISERROR(Dados!C260),\"-\",Dados!C260)","v":"-"},{"$f":"IF(ISERROR(Dados!G260),\"-\",Dados!G260)","v":"-"},null,{"$f":"IF(ISERROR(Dados!C260),\"-\",Dados!C260)","v":"-"},{"$f":"IF(ISERROR(Dados!X260),\"0\",Dados!X260)","v":"0"},null,{"$f":"IF(ISERROR(Dados!C260),\"-\",Dados!C260)","v":"-"},{"$f":"IF(ISERROR(Dados!AB260),\"0\",Dados!AB260)","v":"0"},null,{"$f":"IF(ISERROR(Dados!C260),\"-\",Dados!C260)","v":"-"},{"$f":"IF(ISERROR(Dados!S260),\"-\",Dados!S260)","v":"-"},null,{"$f":"IF(ISERROR(Dados!C260),\"-\",Dados!C260)","v":"-"},{"$f":"IF(ISERROR(Dados!T260),\"-\",Dados!T260)","v":"-"},null,{"$f":"IF(ISERROR(Dados!C260),\"-\",Dados!C260)","v":"-"},{"$f":"IF(ISERROR(Dados!U260),\"0\",Dados!U260)","v":"0"},null,{"$f":"IF(ISERROR(Dados!C260),\"-\",Dados!C260)","v":"-"},{"$f":"IF(ISERROR(IF(Dados!Z260<0,\"-\",Dados!Z260)),\"-\",IF(Dados!Z260<0,\"-\",Dados!Z260))","v":"-"},null,{"$f":"IF(ISERROR(Dados!C260),\"-\",Dados!C260)","v":"-"},{"$f":"IF(ISERROR(Dados!AC260),\"-1000000\",Dados!AC260)","v":"-1000000"},null,{"$f":"IF(ISERROR(Dados!C260),\"-\",Dados!C260)","v":"-"},{"$f":"IF(ISERROR(Dados!AD260),\"-1000000\",Dados!AD260)","v":"-1000000"},null,{"$f":"IF(ISERROR(Dados!C260),\"-\",Dados!C260)","v":"-"},{"$f":"IF(ISERROR(Dados!AC260),\"-\",Dados!AC260)","v":"-"},null,{"$f":"IF(ISERROR(Dados!C260),\"-\",Dados!C260)","v":"-"},{"$f":"IF(ISERROR(Dados!AD260),\"-\",Dados!AD260)","v":"-"}]
[{"$f":"IF(ISERROR(Dados!C257),\"-\",Dados!C257)","v":"-"},{"$f":"IF(ISERROR(Dados!F257),\"-\",Dados!F257)","v":"-"},null,{"$f":"IF(ISERROR(Dados!C257),\"-\",Dados!C257)","v":"-"},{"$f":"IF(ISERROR(Dados!G257),\"-\",Dados!G257)","v":"-"},null,{"$f":"IF(ISERROR(Dados!C257),\"-\",Dados!C257)","v":"-"},{"$f":"IF(ISERROR(Dados!X257),\"0\",Dados!X257)","v":"0"},null,{"$f":"IF(ISERROR(Dados!C257),\"-\",Dados!C257)","v":"-"},{"$f":"IF(ISERROR(Dados!AB257),\"0\",Dados!AB257)","v":"0"},null,{"$f":"IF(ISERROR(Dados!C257),\"-\",Dados!C257)","v":"-"},{"$f":"IF(ISERROR(Dados!S257),\"-\",Dados!S257)","v":"-"},null,{"$f":"IF(ISERROR(Dados!C257),\"-\",Dados!C257)","v":"-"},{"$f":"IF(ISERROR(Dados!T257),\"-\",Dados!T257)","v":"-"},null,{"$f":"IF(ISERROR(Dados!C257),\"-\",Dados!C257)","v":"-"},{"$f":"IF(ISERROR(Dados!U257),\"0\",Dados!U257)","v":"0"},null,{"$f":"IF(ISERROR(Dados!C257),\"-\",Dados!C257)","v":"-"},{"$f":"IF(ISERROR(IF(Dados!Z257<0,\"-\",Dados!Z257)),\"-\",IF(Dados!Z257<0,\"-\",Dados!Z257))","v":"-"},null,{"$f":"IF(ISERROR(Dados!C257),\"-\",Dados!C257)","v":"-"},{"$f":"IF(ISERROR(Dados!AC257),\"-1000000\",Dados!AC257)","v":"-1000000"},null,{"$f":"IF(ISERROR(Dados!C257),\"-\",Dados!C257)","v":"-"},{"$f":"IF(ISERROR(Dados!AD257),\"-1000000\",Dados!AD257)","v":"-1000000"},null,{"$f":"IF(ISERROR(Dados!C257),\"-\",Dados!C257)","v":"-"},{"$f":"IF(ISERROR(Dados!AC257),\"-\",Dados!AC257)","v":"-"},null,{"$f":"IF(ISERROR(Dados!C257),\"-\",Dados!C257)","v":"-"},{"$f":"IF(ISERROR(Dados!AD257),\"-\",Dados!AD257)","v":"-"}]
[{"$f":"IF(ISERROR(Dados!C192),\"-\",Dados!C192)","v":"Usiminas"},{"$f":"IF(ISERROR(Dados!F192),\"-\",Dados!F192)","v":13473.59},null,{"$f":"IF(ISERROR(Dados!C192),\"-\",Dados!C192)","v":"Usiminas"},{"$f":"IF(ISERROR(Dados!G192),\"-\",Dados!G192)","v":14266.3},null,{"$f":"IF(ISERROR(Dados!C192),\"-\",Dados!C192)","v":"Usiminas"},{"$f":"IF(ISERROR(Dados!X192),\"0\",Dados!X192)","v":2171.8000000000002},null,{"$f":"IF(ISERROR(Dados!C192),\"-\",Dados!C192)","v":"Usiminas"},{"$f":"IF(ISERROR(Dados!AB192),\"0\",Dados!AB192)","v":4.1013568024557672E-3},null,{"$f":"IF(ISERROR(Dados!C192),\"-\",Dados!C192)","v":"Usiminas"},{"$f":"IF(ISERROR(Dados!S192),\"-\",Dados!S192)","v":0.86512915612317132},null,{"$f":"IF(ISERROR(Dados!C192),\"-\",Dados!C192)","v":"Usiminas"},{"$f":"IF(ISERROR(Dados!T192),\"-\",Dados!T192)","v":16.984823824071778},null,{"$f":"IF(ISERROR(Dados!C192),\"-\",Dados!C192)","v":"Usiminas"},{"$f":"IF(ISERROR(Dados!U192),\"0\",Dados!U192)","v":5.4577000000000001E-2},null,{"$f":"IF(ISERROR(Dados!C192),\"-\",Dados!C192)","v":"Usiminas"},{"$f":"IF(ISERROR(IF(Dados!Z192<0,\"-\",Dados!Z192)),\"-\",IF(Dados!Z192<0,\"-\",Dados!Z192))","v":8.117704668938206},null,{"$f":"IF(ISERROR(Dados!C192),\"-\",Dados!C192)","v":"Usiminas"},{"$f":"IF(ISERROR(Dados!AC192),\"-1000000\",Dados!AC192)","v":3.9},null,{"$f":"IF(ISERROR(Dados!C192),\"-\",Dados!C192)","v":"Usiminas"},{"$f":"IF(ISERROR(Dados!AD192),\"-1000000\",Dados!AD192)","v":11.7},null,{"$f":"IF(ISERROR(Dados!C192),\"-\",Dados!C192)","v":"Usiminas"},{"$f":"IF(ISERROR(Dados!AC192),\"-\",Dados!AC192)","v":3.9},null,{"$f":"IF(ISERROR(Dados!C192),\"-\",Dados!C192)","v":"Usiminas"},{"$f":"IF(ISERROR(Dados!AD192),\"-\",Dados!AD192)","v":11.7}]

{"sheet":"Dados MM2","index":6,"n_rows":320,"n_cols":35,"rows_kept":320,"cut":false,"hidden":true,"merged":[]}
["Empresa","Valor Mercado",null,"Empresa","Patrimônio Líquido (últ. balan.)",null,"Empresa","EBITDA Anual (t-1)",null,"Empresa","Dividend Yield.",null,"Empresa","P/VPA (últimos 12 meses) ",null,"Empresa","P/L (últimos 12 meses) ",null,"Empresa","Rentab. Patrimonial",null,"Empresa","FirmValue/Ebitda ",null,"Empresa","Oscliação mês % altas",null,"Empresa","Oscliação ano % altas",null,"Empresa","Oscliação mês % baixas",null,"Empresa","Oscliação ano % baixas"]
["Petrobras",373814.33,null,"Petrobras",277225,null,"Petrobras",80251,null,"Tarpon Inv",0.67899525316455689,null,"Bardella",0.15229467794578033,null,"PDG Realt",0.10303763581964202,null,"Oi",2.8750970000000002,null,"GPC Part",1.4306267409470752,null,"Inepar",141,null,"Inepar",437.9,null,"Fer Heringer",-42.7,null,"Viver",-76.7]
["ItauUnibanco",322025.8,null,"Vale",163258.04,null,"Vale",46376,null,"Triunfo Part",0.25540519025632857,null,"Saraiva Livr",0.17947042447370889,null,"Triunfo Part",0.42304528861049367,null,"GPC Part",2.3020230000000002,null,"Triunfo Part",1.5881136629038537,null,"Banco Pan",37.6,null,"Cambuci",297.5,null,"Gafisa",-30.4,null,"J B Duarte",-75.5]
["Bradesco",273731.43,null,"ItauUnibanco",131756.57,null,"Ambev S/A",20035.8,null,"Cielo",0.2386671917981868,null,"Terra Santa",0.26288930959929202,null,"Oi",0.42786756251796493,null,"Triunfo Part",1.2558830000000001,null,"Metal Iguacu",2.570049751243781,null,"Oi",34.299999999999997,null,"Metal Iguacu",282.10000000000002,null,"Bardella",-22.8,null,"Renova",-70.8]
["Ambev S/A",270874.88,null,"Bradesco",121120.87,null,"Telef Brasil",14487.6,null,"Tran Paulist",0.15776967458753091,null,"Triunfo Part",0.26838928485967256,null,"IGB S/A",0.59004961522883759,null,"Multiplus",1.1076439999999999,null,"Generalshopp",2.8278595116068739,null,"Petrorio",31.3,null,"Celpa",206,null,"J B Duarte",-20.6,null,"Ideiasnet",-69.2]
["Vale",243064.03,null,"Brasil",102252.88,null,"Braskem",12287.9,null,"Cristal",0.1250014442351908,null,"Cr2",0.28264845151953694,null,"GPC Part",0.63371323529411761,null,"Wiz S.A",1.1035410000000001,null,"Qgep Part",3.010651033631595,null,"Sid Nacional",28.2,null,"Unipar",195.2,null,"Indusval",-16.399999999999999,null,"PDG Realt",-67.8]
["Santander BR",168655.61,null,"Telef Brasil",71607.03,null,"JBS",11218.8,null,"Eletropar",0.12379576107899806,null,"Eucatex",0.31464609544204608,null,"Tarpon Inv",0.89996724813100748,null,"Tarpon Inv",1.06446,null,"Gerdau Met",3.2670974723138051,null,"Tex Renaux",22.6,null,"Log-In",192.6,null,"Hypera",-15.5,null,"Pet Manguinh",-62.8]
["Brasil",140947.85,null,"Santander BR",65233.74,null,"Itausa",9182,null,"Eztec",0.11947916193246375,null,"Lupatech",0.32588992518192067,null,"Bombril",1.046191839397014,null,"Marfrig",0.81753600000000004,null,"Mundial",3.3776793248945149,null,"JHSF Part",22.5,null,"Cristal",186.2,null,"Helbor",-15.1,null,"BR Pharma",-59.3]
["Itausa",111640.61,null,"Ambev S/A",56340.62,null,"Eletrobras",6744.2,null,"Qgep Part",0.11571830692545138,null,"Coteminas",0.35989057750759873,null,"J B Duarte",1.3497999275099675,null,"Vulcabras",0.77669100000000002,null,"Pettenati",3.4433500000000001,null,"Ferbasa",18.8,null,"Emae",177.2,null,"Forja Taurus",-14.1,null,"Indusval",-58.2]
["Telef Brasil",76930.16,null,"Itausa",55143,null,"Tim Part S/A",5947,null,"SLC Agricola",0.10376467658335883,null,"Springs",0.36231571872926704,null,"Cambuci",2.2800812619502873,null,"Smiles",0.74088300000000007,null,"Brasilagro",3.52518100298904,null,"Movida",16.899999999999999,null,"Irbbrasil Re",174.6,null,"Ideiasnet",-14,null,"Biotoscana",-57.6]
["B3",67029.84,null,"Eletrobras",43313.61,null,"Cielo",5277.9,null,"Multiplus",0.10028696396750827,null,"Pine",0.38355779634873499,null,"Marfrig",2.4406028267133006,null,"Comgas",0.664045,null,"Unipar",3.7142993855142539,null,"Ppla",16.8,null,"Suzano Papel",156.19999999999999,null,"PDG Realt",-13.1,null,"Gafisa",-52]
["Suzano Papel",64303.89,null,"JBS",26569.16,null,"Sabesp",5263.6,null,"Ger Paranap",8.4726305705130317E-2,null,"Positivo Tec",0.39045868825350433,null,"Le Lis Blanc",3.4946944256375532,null,"Sid Nacional",0.62746599999999997,null,"Csu Cardsyst",3.9775214723926373,null,"Excelsior",16.600000000000001,null,"Ceee-Gt",141.30000000000001,null,"Ser Educa",-12.9,null,"Bardella",-52]
["BBSeguridade",54507.1,null,"Oi",25986.86,null,"CCR SA",5052.3,null,"Taesa",8.3859921357970699E-2,null,"GPC Part",0.39451459088308222,null,"Sid Nacional",3.5576283271648004,null,"Ecorodovias",0.54089399999999999,null,"Tim Part S/A",4.4587049185473493,null,"Cristal",15.5,null,"Forja Taurus",139.5,null,"BRF SA",-12.6,null,"Eternit",-50.4]
["Eletrobras",50550.25,null,"Gerdau",25730.6,null,"CPFL Energia",4863.3,null,"Cyre Com-Ccp",8.1199039144703458E-2,null,"Rni",0.39612494984351176,null,"Brasilagro",3.6943278603301128,null,"Braskem",0.48535299999999998,null,"Telef Brasil",4.4720954599023512,null,"Sansuy",15.5,null,"Trisul",138.9,null,"Renova",-11.5,null,"Qualicorp",-48.2]
["Btgp Banco",44062.14,null,"B3",25032.97,null,"Suzano Papel",4660.7,null,"Qualicorp",8.0979318748673632E-2,null,"Amazonia",0.40750729260666096,null,"Terra Santa",4.0128830369357056,null,"Portobello",0.47117100000000001,null,"Celesc",4.5219044437019713,null,"Btgp Banco",15.4,null,"B2W Digital",135.9,null,"Estacio Part",-11.4,null,"Cielo",-47.6]
["Braskem",43078.32,null,"Tim Part S/A",19794.84,null,"Sid Nacional",4437.3,null,"Smiles",7.7733612437377989E-2,null,"Oi",0.41242262435707888,null,"Coteminas",4.6790717119316438,null,"Unipar",0.454065,null,"Ferbasa",4.5312097209720976,null,"Kepler Weber",15,null,"Excelsior",134.4,null,"Even",-11.3,null,"Saraiva Livr",-47.2]
["Carrefour BR",38716.71,null,"Btgp Banco",18844.93,null,"Ultrapar",4063.5,null,"Bradespar",7.5145559267221121E-2,null,"Technos",0.42236552316742682,null,"Cristal",5.5908675403096302,null,"BBSeguridade",0.39777099999999999,null,"Eucatex",4.5486389316897791,null,"Pine",14.1,null,"Cemig",125.2,null,"JBS",-11,null,"Bombril",-46]
["Weg",38629.769999999997,null,"Sabesp",18786.95,null,"Carrefour BR",3785,null,"Aco Altona",7.4907934382323391E-2,null,"Generalshopp",0.4665093542271056,null,"Emae",5.8616205410750872,null,"Locamerica",0.39149500000000004,null,"Coteminas",4.5719800108049702,null,"Generalshopp",13.7,null,"Magaz Luiza",117.6,null,"Bahema",-10.4,null,"BRF SA",-43.8]
["JBS",36437.53,null,"Copel",16225.94,null,"Engie Brasil",3499.2,null,"Comgas",7.3986627521027096E-2,null,"Merc Brasil",0.48544251968503932,null,"Portobello",6.1374947870122138,null,"Petrobras BR",0.36177199999999998,null,"Portobello",4.6428923611111115,null,"Sinqia",13,null,"Bahema",112.7,null,"Fleury",-10.199999999999999,null,"Joao Fortes",-43.3]
["Engie Brasil",33583.589999999997,null,"Kroton",15893.9,null,"Klabin S/A",3492.5,null,"Porto Seguro",6.8462036921534838E-2,null,"Gafisa",0.49343172651536921,null,"JHSF Part",6.6097139253002783,null,"Cristal",0.34552500000000003,null,"Cristal",4.6888146426496222,null,"Trisul",12.6,null,"Locamerica",112.4,null,"BBSeguridade",-10,null,"Triunfo Part",-41.6]
["Magaz Luiza",32777.730000000003,null,"Embraer",15519.63,null,"Cemig",3492.2,null,"BBSeguridade",6.3946898660908399E-2,null,"Tecnisa",0.5069669457067687,null,"Ferbasa",6.6464975342778141,null,"Irbbrasil Re",0.340333,null,"Qualicorp",4.7223212738301559,null,"Emae",12.4,null,"Celesc",105.7,null,"Portobello",-9.9,null,"Ihpardini",-41.6]
["CPFL Energia",31239.8,null,"Cemig",14968.53,null,"Cosan",3463.3,null,"Tupy",6.3474412713729972E-2,null,"Profarma",0.51499531889419914,null,"Tran Paulist",6.7580719254704604,null,"Engie Brasil",0.33877099999999999,null,"Porto Seguro",4.8928196369968529,null,"Pomifrutas",11.8,null,"Alper S.A.",102.9,null,"Rossi Resid",-9.8000000000000007,null,"Tecnosolo",-40.6]
["Lojas Renner",31072.400000000001,null,"Usiminas",14266.3,null,"Gerdau",3192.6,null,"Copel",5.9835034101255812E-2,null,"JHSF Part",0.54094959243033613,null,"Qgep Part",7.0120761522233055,null,"Natura",0.33545200000000003,null,"Braskem",4.9637736902584688,null,"Wiz S.A",11.7,null,"IGB S/A",102.6,null,"Marfrig",-9.5,null,"Minerva",-40.1]
["Rumo S.A.",30338.45,null,"Carrefour BR",13033,null,"Gerdau Met",3184.3,null,"Engie Brasil",5.9254236965136847E-2,null,"Log Com Prop",0.56324919549008734,null,"Unipar",7.221098291569402,null,"Cvc Brasil",0.33288899999999999,null,"Bombril",5.0429501385041551,null,"Qgep Part",9.6999999999999993,null,"Santanense",102.5,null,"Tenda",-9.4,null,"Profarma",-40]
["Cielo",29503.72,null,"Suzano Papel",12012.01,null,"Copel",2873,null,"Itausa",5.913618709177601E-2,null,"Wlm Ind Com",0.60100692202391703,null,"Merc Brasil",7.2734561797752812,null,"Brasilagro",0.33271099999999998,null,"Petrorio",5.2054977203647415,null,"Totvs",9.6,null,"Btgp Banco",97.9,null,"MRV",-9.4,null,"OSX Brasil",-39.9]
["Lojas Americ",29172.09,null,"Cielo",11204.09,null,"Rumo S.A.",2757,null,"Santanense",5.8728130528798897E-2,null,"BR Propert",0.60200984265046331,null,"Santanense",7.6720943896891596,null,"Tegma",0.33013700000000001,null,"Sid Nacional",5.3208497980436995,null,"Plascar Part",9.6,null,"Banrisul",89.3,null,"Sabesp",-9.3000000000000007,null,"GPC Part",-39.4]
["Ultrapar",29002.43,null,"P.Acucar-Cbd",11083,null,"Oi",2748.3,null,"AES Tiete E",5.8616184022607792E-2,null,"Copel",0.60276506014443532,null,"Sanepar",7.7212011339062618,null,"Lojas Renner",0.31647400000000003,null,"Vale",5.4951897739240056,null,"Coelce",9.4,null,"Petrorio",84.6,null,"Pettenati",-9.3000000000000007,null,"Kroton",-38.299999999999997]
["CCR SA",28744.6,null,"Tran Paulist",11068.65,null,"Lojas Americ",2682.2,null,"AES Tiete E",5.8616184022607792E-2,null,"Helbor",0.61790991567316067,null,"SLC Agricola",7.9741264351171885,null,"Odontoprev",0.30787199999999998,null,"Ceee-Gt",5.513914625272859,null,"Inds Romi",9,null,"Cesp",83,null,"Saraiva Livr",-9.3000000000000007,null,"Tecnisa",-37.9]
["Tim Part S/A",28607.33,null,"CPFL Energia",10373.06,null,"BRF SA",2654.1,null,"AES Tiete E",5.8616184022607792E-2,null,"Alfa Financ",0.65763837492666644,null,"Comgas",7.9917762331738125,null,"Le Lis Blanc",0.29124700000000003,null,"Terra Santa",5.5978702807357212,null,"Log-In",8.9,null,"Gol",82.6,null,"Log Com Prop",-9.1999999999999993,null,"Ser Educa",-37.700000000000003]
["Petrobras BR",28484.25,null,"BR Malls Par",9954.93,null,"Bradespar",2609.8000000000002,null,"Braskem",5.7970923657189977E-2,null,"Metisa",0.69471520342612425,null,"Wiz S.A",8.0884708827997525,null,"Magaz Luiza",0.28805999999999998,null,"Energias BR",5.6103497764315593,null,"Cambuci",8.5,null,"Merc Brasil",80.2,null,"Banco Inter",-8.8000000000000007,null,"Biosev",-35.299999999999997]
["Irbbrasil Re",27626.97,null,"Cosan",9928.7199999999993,null,"Petrobras BR",2574,null,"Abc Brasil",5.7807181778609898E-2,null,"Gerdau Met",0.75250025200183623,null,"Inds Romi",8.1565738095238096,null,"Localiza",0.253471,null,"Tupy",5.6465089535074746,null,"Cyre Com-Ccp",8.3000000000000007,null,"Mangels Indl",75.5,null,"Cvc Brasil",-8.6999999999999993,null,"Pomifrutas",-34]
["Sabesp",26896.11,null,"Petrobras BR",9686,null,"P.Acucar-Cbd",2342,null,"Whirlpool",5.7025051116808785E-2,null,"Pettenati",0.75670883963494129,null,"Energias BR",8.2317951336784958,null,"Intermedica",0.24725000000000003,null,"Fras-Le",5.68514096185738,null,"Lupatech",8.3000000000000007,null,"Petrobras",75.2,null,"Eternit",-8.6999999999999993,null,"Smiles",-33.200000000000003]
["P.Acucar-Cbd",24863.119999999999,null,"Ultrapar",9448.11,null,"B3",2199.8000000000002,null,"Le Lis Blanc",5.6658936801009779E-2,null,"Even",0.76941671170555848,null,"Banestes",8.5320318126587864,null,"Excelsior",0.24229199999999998,null,"Springs",5.7571504497138193,null,"Metisa",8.1,null,"Movida",73,null,"Abc Brasil",-8.4,null,"Anima",-33.1]
["Localiza",24778.74,null,"CCR SA",9393.5400000000009,null,"Energias BR",2170.3000000000002,null,"Copasa",5.6645436654146626E-2,null,"Alper S.A.",0.77048102778607719,null,"Camil",8.5691945042309161,null,"Taesa",0.24011099999999999,null,"Tenda",5.7572445951674434,null,"Gol",7.8,null,"Eletrobras",71.7,null,"Petrobras BR",-8.3000000000000007,null,"Lupatech",-32.4]
["Gerdau",24158.58,null,"Gerdau Met",9345.17,null,"Kroton",2111.1999999999998,null,"Csu Cardsyst",5.3898236910907019E-2,null,"Le Lis Blanc",0.77240280511141535,null,"MRV",8.6820986078718274,null,"Ambev S/A",0.23711400000000002,null,"SLC Agricola",5.7615316841748561,null,"JSL",7.6,null,"Tenda",70.400000000000006,null,"Technos",-8.1,null,"Cr2",-31.9]
["Cemig",22143.84,null,"Bradespar",9158.59,null,"Embraer",2057.5,null,"Unipar",5.3804430446916962E-2,null,"Metal Iguacu",0.80639170896785095,null,"Gerdau Met",8.8011949537552727,null,"Celpa",0.23414200000000002,null,"Iochp-Maxion",5.770035527484457,null,"Smiles",7.4,null,"Sul America",69.8,null,"BR Malls Par",-8,null,"Rossi Resid",-30.7]
["B2W Digital",22108.71,null,"Sid Nacional",8702.74,null,"Tran Paulist",2056.9,null,"Telef Brasil",5.3774488445103977E-2,null,"Indusval",0.8152503290917068,null,"Copel",8.8237578715649292,null,"Ferbasa",0.23283100000000001,null,"Petrobras",5.921733196955457,null,"Dommo",7.2,null,"Direcional",69.400000000000006,null,"Tecnisa",-7.9,null,"Technos",-30.1]
["Hapvida",21899.13,null,"Energias BR",8523.7099999999991,null,"Usiminas",2055.6999999999998,null,"Ecorodovias",5.3570634814800705E-2,null,"Usiminas",0.83238522391930636,null,"Cielo",8.8284015966917124,null,"Azul S.A.",0.23267099999999999,null,"Excelsior",5.9473184357541911,null,"Celpa",6.6,null,"Porto Seguro",68.2,null,"Time For Fun",-7.8,null,"Haga S/A",-30]
["RaiaDrogasil",21542.09,null,"Hypera",8267.67,null,"Energisa",2052.6,null,"Metal Leve",5.3416450585491188E-2,null,"Banco Pan",0.83630002539112092,null,"Tenda",8.8291363853376481,null,"Ihpardini",0.231904,null,"Sao Martinho",5.9993567938648029,null,"Banrisul",6.4,null,"Brasil",67.7,null,"Triunfo Part",-7.7,null,"Fleury",-29.7]
["Klabin S/A",21211.64,null,"Rumo S.A.",8028.2,null,"Equatorial",1797,null,"Vale",5.1110688817263501E-2,null,"Tarpon Inv",0.86250699419993193,null,"Telef Brasil",8.8498758167884901,null,"Cielo",0.23172000000000001,null,"Gerdau",6.0137531570971543,null,"Unipar",6.2,null,"Banco Pan",65.7,null,"Azevedo",-7.6,null,"BR Brokers",-29.6]
["Natura",20838.57,null,"Weg",7714.27,null,"Natura",1742,null,"Grazziotin",5.0538351595998093E-2,null,"Sierrabrasil",0.8832153062789716,null,"Elektro",8.8852388192986265,null,"Arezzo Co",0.21451499999999998,null,"JSL",6.0240838015298186,null,"Alupar",6,null,"Aco Altona",64.2,null,"SLC Agricola",-7.4,null,"Oi",-28.9]
["Porto Seguro",18117.34,null,"Porto Seguro",7643.24,null,"Light S/A",1694.1,null,"Banestes",5.0368813374593722E-2,null,"Embraer",0.90280057449823226,null,"Petrobras BR",8.9208424678985274,null,"Estacio Part",0.213341,null,"Comgas",6.0729986735580654,null,"Mundial",5.9,null,"Engie Brasil",62.4,null,"Metal Iguacu",-7.2,null,"MMX Miner",-28.7]
["Sid Nacional",18051.900000000001,null,"Cesp",7352.76,null,"Ecorodovias",1630.2,null,"Brasilagro",4.807917819785168E-2,null,"BR Brokers",0.93632655611085869,null,"Alfa Financ",8.98988818630475,null,"Equatorial",0.21186199999999999,null,"Metisa",6.1520437956204388,null,"Petrobras",5.8,null,"SLC Agricola",61.5,null,"Anima",-7.2,null,"Helbor",-28.1]
["Kroton",17848.48,null,"Banrisul",7278.9,null,"Marfrig",1566.1,null,"Fleury",4.7959040028344245E-2,null,"Brasilagro",0.96596289122234691,null,"Metisa",9.0170094496942763,null,"Elektro",0.20407399999999998,null,"Eneva",6.1997273233166386,null,"Paranapanema",5.8,null,"Ppla",60.4,null,"Imc S/A",-7.1,null,"RaiaDrogasil",-28.1]
["Energisa",17758.09,null,"Braskem",7173.16,null,"Copasa",1520.7,null,"CCR SA",4.4738490012037044E-2,null,"Emae",0.96664913915616335,null,"Csu Cardsyst",9.095584756097562,null,"Santander BR",0.198157,null,"Copel",6.3019175491679285,null,"Cesp",5.7,null,"Coteminas",60.4,null,"Guararapes",-6.9,null,"Ultrapar",-27]
["Intermedica",17555.96,null,"BRF SA",6964.63,null,"Comgas",1518.5,null,"Time For Fun",4.3192161043007667E-2,null,"Imc S/A",0.96894240485011784,null,"Abc Brasil",9.1213304312468608,null,"Metal Leve",0.19779699999999997,null,"JHSF Part",6.3205437006723173,null,"RaiaDrogasil",5.5,null,"CPFL Energia",60.4,null,"Equatorial",-6.8,null,"Marfrig",-24.9]
["Cosan",17152.95,null,"BBSeguridade",6830.39,null,"Gol",1495.2,null,"Fras-Le",4.2782191296582263E-2,null,"Inds Romi",0.98444236903359295,null,"Pettenati",9.2067842639593902,null,"Weg",0.19641800000000001,null,"Duratex",6.3622852522639057,null,"CPFL Renovav",5.4,null,"Plascar Part",58.8,null,"Cielo",-6.8,null,"Positivo Tec",-24.4]
["Hypera",17002.05,null,"Engie Brasil",6316.19,null,"Weg",1466.3,null,"Grendene",4.1160968122574533E-2,null,"Santanense",0.98520104171737344,null,"Smiles",9.2164994425863984,null,"Fleury",0.19430399999999998,null,"Emae",6.4373303167420817,null,"Merc Brasil",5.3,null,"Localiza",58.7,null,"Ultrapar",-6.6,null,"Csu Cardsyst",-23.1]
["BRF SA",16690.830000000002,null,"Klabin S/A",6292.24,null,"Lojas Renner",1416.3,null,"Ferbasa",4.0804167304533477E-2,null,"Ceee-Gt",0.99781492857290088,null,"Ceee-Gt",9.2358328563251266,null,"Cia Hering",0.194267,null,"Sanepar",6.4648440925700363,null,"Minerva",4.5999999999999996,null,"Sid Nacional",56.1,null,"Santander BR",-6.5,null,"Springs",-22.2]
["Equatorial",16516.53,null,"Sul America",6286.11,null,"Sanepar",1383.5,null,"Inds Romi",3.9845289352696489E-2,null,"Gerdau",0.99803047577592441,null,"Grazziotin",9.5901543221110082,null,"Emae",0.19153999999999999,null,"Sanepar",6.4648440925700363,null,"Banestes",4.5,null,"Copasa",55.7,null,"Telebras",-6.5,null,"Tarpon Inv",-22.1]
["M.Diasbranco",15926.22,null,"Copasa",6226.63,null,"Sanepar",1383.5,null,"Klabin S/A",3.9600898374665988E-2,null,"Eternit",1.0018114502880964,null,"Trisul",9.6507060627177719,null,"Eletropar",0.18683700000000003,null,"Ecorodovias",6.5472496839063163,null,"Irbbrasil Re",4.4000000000000004,null,"Copel",55.5,null,"Springs",-6.5,null,"Imc S/A",-21.9]
["Multiplan",14960.97,null,"BR Propert",5870.37,null,"Rede Energia",1316.7,null,"Kroton",3.7978023898953862E-2,null,"Joao Fortes",1.0084493518963034,null,"Banrisul",9.7501978772302902,null,"Camil",0.186252,null,"Ser Educa",6.5723218066337337,null,"Ceee-Gt",4.2,null,"Energisa",54.3,null,"Le Lis Blanc",-6.4,null,"Pine",-21.4]
["Rede Energia",14940.17,null,"Eneva",5814.92,null,"Localiza",1240.2,null,"Banrisul",3.763669582778522E-2,null,"Eneva",1.0124237478761533,null,"Cosan",10.381130289532296,null,"SLC Agricola",0.18584700000000001,null,"Sabesp",6.5738998738652308,null,"Sanepar",4.2,null,"Inds Romi",54,null,"Terra Santa",-6.4,null,"Hypera",-20.8]
["Embraer",14011.13,null,"Sanepar",5717.19,null,"Hypera",1236.9000000000001,null,"Tegma",3.7234130459931583E-2,null,"Direcional",1.0134147082802347,null,"Schulz",10.439984776559173,null,"Cosan",0.18487899999999999,null,"Multiplus",6.8672360176375049,null,"B3",4.2,null,"Cyre Com-Ccp",53.9,null,"CPFL Energia",-5.9,null,"Sao Carlos",-20.2]
["Tran Paulist",13084.01,null,"Sanepar",5717.19,null,"JSL",1230.2,null,"Hypera",3.7230804520631336E-2,null,"Grazziotin",1.0306044628713356,null,"Kroton",10.616256584425781,null,"AES Tiete E",0.184865,null,"Sierrabrasil",6.9134896085065254,null,"Braskem",4.0999999999999996,null,"Santander BR",52.7,null,"Schulz",-5.7,null,"Wiz S.A",-19.5]
["Usiminas",12964.39,null,"M.Diasbranco",5508.33,null,"CPFL Renovav",1221.5999999999999,null,"Sanepar",3.6521275111436394E-2,null,"Banestes",1.0353882882822498,null,"Brasil",10.958446574918577,null,"AES Tiete E",0.184865,null,"Smiles",6.9499143948373501,null,"Cemig",4,null,"Petrobras BR",52.5,null,"Valid",-5.7,null,"Multiplus",-18.100000000000001]
["Azul S.A.",12739.97,null,"Multiplan",5335.98,null,"Guararapes",1188.7,null,"Sanepar",3.6521275111436394E-2,null,"Abc Brasil",1.0403837501466371,null,"Itausa",11.025893838490887,null,"AES Tiete E",0.184865,null,"Schulz",7.0034650967199319,null,"BR Brokers",4,null,"Schulz",52.1,null,"Iguatemi",-5.7,null,"Ambev S/A",-16.399999999999999]
["Sul America",12633.03,null,"Cyrela Realt",5321.92,null,"Alupar",1170.2,null,"Petrobras BR",3.6300762702195073E-2,null,"Celesc",1.0513782331874253,null,"Gerdau",11.146428817598217,null,"ItauUnibanco",0.18209,null,"Ger Paranap",7.0763320857434504,null,"Copasa",3.9,null,"Rumo S.A.",50,null,"Lojas Americ",-5.5,null,"BR Propert",-15.8]
["BR Malls Par",11277.89,null,"Equatorial",5221.8900000000003,null,"Azul S.A.",1164.8,null,"Portobello",3.6037566432887615E-2,null,"Cesp",1.0734502826149637,null,"Qualicorp",11.162356224050537,null,"Grendene",0.181977,null,"Valid",7.1228704393149656,null,"Dimed",3.9,null,"Somos Educa",49.5,null,"Fras-Le",-5.5,null,"Lojas Marisa",-15]
["Oi",10659.6,null,"Lojas Americ",4774.72,null,"Minerva",1134.5999999999999,null,"Energias BR",3.3976987271991506E-2,null,"Kepler Weber",1.0940342757972377,null,"Tim Part S/A",11.24016005657931,null,"CPFL Energia",0.17966300000000002,null,"Cambuci",7.1413058419243987,null,"Sierrabrasil",3.8,null,"Natura",49,null,"Biosev",-5.5,null,"Dommo",-14.4]
["Energias BR",10477.68,null,"Duratex",4633.7,null,"RaiaDrogasil",1130.7,null,"Ambev S/A",3.1742035289503409E-2,null,"Bradespar",1.0951838525362529,null,"Celesc",11.288671224097413,null,"Bradesco",0.17338899999999999,null,"Grazziotin",7.1494376098418275,null,"Localiza",3.8,null,"B3",48.4,null,"Recrusul",-5.4,null,"Elektro",-13.7]
["Comgas",10228.469999999999,null,"MRV",4630.45,null,"Eneva",1124.5999999999999,null,"Merc Brasil",3.1490938219685592E-2,null,"Iochp-Maxion",1.1002997489993893,null,"Eneva",11.545720925671702,null,"Sanepar",0.17320900000000003,null,"Klabin S/A",7.2171157397466184,null,"Sao Carlos",3.6,null,"Comgas",46.5,null,"Sul America",-5.3,null,"Vulcabras",-12.5]
["Banrisul",10131.07,null,"Taesa",4514.28,null,"Magaz Luiza",1030.8,null,"Alfa Financ",3.092404201696131E-2,null,"Telef Brasil",1.1034390374799792,null,"Coelce",11.747023482936465,null,"Sanepar",0.17320900000000003,null,"JBS",7.2752949737688271,null,"Suzano Papel",3.6,null,"Tegma",46.4,null,"Direcional",-5.3,null,"Terra Santa",-12]
["Bradespar",9573.42,null,"Energisa",4228.96,null,"Duratex",986.8,null,"Cyrela Realt",3.0445663624130016E-2,null,"Unicasa",1.1153426177268972,null,"Metal Leve",12.63416593118923,null,"Itausa",0.172708,null,"Light S/A",7.3100773060029285,null,"Vale",3.5,null,"Banestes",46.1,null,"Grendene",-5.0999999999999996,null,"Kepler Weber",-11.7]
["Copel",9313.44,null,"Alupar",4160.34,null,"Biosev",968.8,null,"Brasil",2.9844513414003834E-2,null,"Kroton",1.1229764387595242,null,"Fras-Le",12.661668551236748,null,"Qualicorp",0.17172000000000001,null,"Elektro",7.3327883683360264,null,"GPC Part",3.1,null,"Bradesco",45.5,null,"Viver",-5.0999999999999996,null,"Fer Heringer",-11]
["Gol",9270.19,null,"Guararapes",4110.68,null,"M.Diasbranco",966.3,null,"Camil",2.9245601117526027E-2,null,"Qgep Part",1.128112821952143,null,"Tupy",12.770170405314333,null,"Qgep Part",0.16978499999999999,null,"Cosan",7.3471593234621402,null,"Wlm Ind Com",3.1,null,"Itausa",45.1,null,"Alper S.A.",-5,null,"Estacio Part",-10.1]
["Guararapes",9119.14,null,"Banco Pan",4095.92,null,"Celpa",940.7,null,"Gerdau Met",2.745010444806887E-2,null,"BR Malls Par",1.1328947747497973,null,"Vulcabras",12.923417850300586,null,"Ourofino S/A",0.16977499999999998,null,"Coelce",7.3894941319303937,null,"Alfa Financ",3.1,null,"Ferbasa",43.5,null,"Lojas Renner",-4.9000000000000004,null,"M.Diasbranco",-9]
["Taesa",9099.4599999999991,null,"CPFL Renovav",4037.55,null,"Taesa",930.2,null,"Sao Martinho",2.7322114063754635E-2,null,"Tran Paulist",1.1488719220501147,null,"Excelsior",12.990049751243781,null,"Porto Seguro",0.16969400000000001,null,"Copasa",7.4175377288885906,null,"Energias BR",3,null,"Karsten",43.4,null,"Hapvida",-4.8,null,"Pettenati",-8.9]
["Alpargatas",8970.76,null,"Irbbrasil Re",4000.78,null,"Elektro",873,null,"Btgp Banco",2.7267853989842529E-2,null,"Aco Altona",1.1760377549984777,null,"Braskem",12.998303500403741,null,"Tran Paulist",0.16922399999999999,null,"Cielo",7.4420197203762841,null,"Whirlpool",2.7,null,"Qgep Part",41.2,null,"Joao Fortes",-4.8,null,"Paranapanema",-8.1999999999999993]
["Odontoprev",8800.35,null,"Lojas Renner",3954.51,null,"AES Tiete E",842.2,null,"Ultrapar",2.721771934282748E-2,null,"Tupy",1.1837802429250965,null,"Multiplus",13.042074339007607,null,"Tenda",0.16782599999999998,null,"Jereissati",7.4755473763684419,null,"Haga S/A",2.7,null,"Sanepar",40.9,null,"Linx",-4.7,null,"Tim Part S/A",-7]
["Cvc Brasil",8465.4699999999993,null,"Abc Brasil",3665.51,null,"AES Tiete E",842.2,null,"Cosan",2.6018848069865534E-2,null,"Schulz",1.1905741566951031,null,"Biotoscana",13.299976132278935,null,"M.Diasbranco",0.16187499999999999,null,"Metal Leve",7.6054048801554739,null,"Amazonia",2.7,null,"Azul S.A.",40,null,"Tim Part S/A",-4.7,null,"CCR SA",-7]
["Estacio Part",8268.11,null,"B2W Digital",3598.87,null,"AES Tiete E",842.2,null,"Irbbrasil Re",2.4767826511557366E-2,null,"Sanepar",1.2053289815451298,null,"Grendene",13.330163868631837,null,"Sul America",0.16045999999999999,null,"AES Tiete E",7.6159256329113925,null,"Multiplus",2.6,null,"Cyrela Realt",40,null,"Coteminas",-4.5999999999999996,null,"Camil",-6]
["Sanepar",8170.58,null,"Hapvida",3555.37,null,"Qualicorp",836.8,null,"Gerdau",2.453000134941706E-2,null,"Light S/A",1.21327072300098,null,"Estacio Part",13.4268389385992,null,"RaiaDrogasil",0.156694,null,"AES Tiete E",7.6159256329113925,null,"Profarma",2.6,null,"ItauUnibanco",39.200000000000003,null,"ItauUnibanco",-4.5999999999999996,null,"Rni",-4.9000000000000004]
["Sanepar",8170.58,null,"RaiaDrogasil",3499.86,null,"Hapvida",824.4,null,"Amazonia",2.4526212792254608E-2,null,"Trisul",1.2160411646938991,null,"Copasa",13.530513737687922,null,"Energias BR",0.15654099999999999,null,"AES Tiete E",7.6159256329113925,null,"Bradespar",2.5,null,"Tran Paulist",38.200000000000003,null,"Lopes Brasil",-4.5,null,"Grendene",-4.5999999999999996]
["Duratex",8135.73,null,"Grendene",3465.04,null,"Multiplan",818.1,null,"Sabesp",2.4293104095722391E-2,null,"Eletrobras",1.216988077881294,null,"Petrobras",13.692388341673453,null,"Dimed",0.15593299999999999,null,"Randon Part",7.7289894859813089,null,"Natura",2.2999999999999998,null,"JBS",37.6,null,"Bradesco",-4.4000000000000004,null,"Dimed",-4.5999999999999996]
["CPFL Renovav",7902.61,null,"Sao Martinho",3344.62,null,"Sao Martinho",817.3,null,"Metisa",2.4245827165535194E-2,null,"Energias BR",1.2292388877613152,null,"ItauUnibanco",13.710541554331872,null,"Energisa",0.15124299999999999,null,"Camil",7.8603385309807141,null,"Tarpon Inv",1.8,null,"Duratex",37.299999999999997,null,"Alpargatas",-4.4000000000000004,null,"Embraer",-4]
["Copasa",7830.11,null,"Light S/A",3336.51,null,"Coelce",808,null,"Alupar",2.4010281450145741E-2,null,"Cyrela Realt",1.2343448792916842,null,"Tegma",13.725035082413429,null,"Ser Educa",0.150842,null,"Usiminas",7.8832447739202491,null,"Azul S.A.",1.5,null,"Randon Part",36.4,null,"CCR SA",-4.4000000000000004,null,"AES Tiete E",-2.8]
["Grendene",7805.21,null,"Rede Energia",3334.4,null,"Iochp-Maxion",798.6,null,"Excelsior",2.3975488318651855E-2,null,"Csu Cardsyst",1.2387277030393624,null,"Porto Seguro",13.823487906487008,null,"Banrisul",0.14916600000000002,null,"Alupar",7.926293191056911,null,"Odontoprev",1.5,null,"Ourofino S/A",36.1,null,"Eletrobras",-4.3,null,"Fras-Le",-1.8]
["Cesp",7650.15,null,"Estacio Part",3123.34,null,"Triunfo Part",784.1,null,"Bradesco",2.3684529029055962E-2,null,"Copasa",1.257519444707651,null,"Sabesp",13.863264007009949,null,"Whirlpool",0.14888400000000002,null,"Biosev",7.9661413259229841,null,"MMX Miner",1.4,null,"Energias BR",34.799999999999997,null,"P.Acucar-Cbd",-4.3,null,"AES Tiete E",-1.7]
["Iguatemi",7404.46,null,"Localiza",3094.5,null,"Estacio Part",737.8,null,"Ser Educa",2.3194620021161676E-2,null,"Petrobras",1.2732476474343943,null,"Engie Brasil",14.510964793722668,null,"CCR SA",0.14824999999999999,null,"Celpa",8.0467078319611574,null,"Sanepar",1.3,null,"Linx",34.700000000000003,null,"Eucatex",-4.3,null,"AES Tiete E",-1.5]
["Gerdau Met",7118.37,null,"Qgep Part",3064.12,null,"MRV",715.7,null,"Alpargatas",2.3009198774685755E-2,null,"Valid",1.2761902767293283,null,"Petrorio",14.588681243167265,null,"Guararapes",0.14715700000000001,null,"Santanense",8.1942599277978339,null,"Copel",1.2,null,"Eneva",34.5,null,"Camil",-4.3,null,"Iochp-Maxion",-1.3]
["Whirlpool",7086.71,null,"Azul S.A.",2949.75,null,"SLC Agricola",685,null,"B3",2.2808647611272829E-2,null,"Mills",1.2886147147023783,null,"Ser Educa",14.628573681159422,null,"Csu Cardsyst",0.146505,null,"Cemig",8.2324704681009084,null,"Tupy",1,null,"Brasilagro",33.700000000000003,null,"Kroton",-4,null,"Portobello",-1.2]
["Alupar",6590.51,null,"Iochp-Maxion",2948.2,null,"Smiles",663.4,null,"Coelce",2.2636140559349264E-2,null,"MRV",1.2943319742141695,null,"Hypera",15.051402531869689,null,"Hypera",0.145986,null,"Log-In",8.371010154997327,null,"Eneva",1,null,"Taesa",33.4,null,"Telef Brasil",-3.9,null,"Ecorodovias",-0.8]
["Sao Martinho",6588.07,null,"Coelce",2862.64,null,"Ger Paranap",644.5,null,"Cia Hering",2.2572423021039408E-2,null,"Fras-Le",1.2975432544328702,null,"Bradesco",15.175897755561319,null,"Brasil",0.14442199999999999,null,"Omega Ger",8.4843192282394213,null,"Eletropar",0.8,null,"Mont Aranha",32.799999999999997,null,"BR Pharma",-3.9,null,"Sao Martinho",-0.2]
["Cyrela Realt",6569.08,null,"Iguatemi",2835.66,null,"Porto Seguro",628.29999999999995,null,"Sao Carlos",2.1296498394187895E-2,null,"Biotoscana",1.3151349806642403,null,"Ecorodovias",15.331648639439225,null,"Alpargatas",0.14310300000000001,null,"P.Acucar-Cbd",8.4863405088062613,null,"Bk Brasil",0.8,null,"Braskem",32.4,null,"Eztec",-3.7,null,"Grazziotin",0.2]
["Fleury",6322.27,null,"Celpa",2760.68,null,"Fleury",619.6,null,"Ihpardini",2.1126365254767365E-2,null,"Omega Ger",1.3326974267968057,null,"BBSeguridade",15.399442895283299,null,"Carrefour BR",0.14178100000000002,null,"Oi",8.4984219184520775,null,"Alliar",0.6,null,"Alfa Financ",32.200000000000003,null,"Duratex",-3.6,null,"Guararapes",0.6]
["Ecorodovias",6299.16,null,"Comgas",2721.32,null,"Intermedica",616.1,null,"Tim Part S/A",2.0562911673336869E-2,null,"Ferbasa",1.3376577227796613,null,"Banco Pan",15.463244853737811,null,"Coelce",0.141127,null,"Estacio Part",8.5756416360095216,null,"Cyrela Realt",0.5,null,"Mills",31.8,null,"Gerdau Met",-3.6,null,"Recrusul",0.7]
["MRV",5993.34,null,"Sierrabrasil",2672.89,null,"Multiplus",610.4,null,"Banco Pan",2.0377063250637876E-2,null,"Sao Carlos",1.367072777390983,null,"AES Tiete E",15.918902104458953,null,"Tim Part S/A",0.14021699999999998,null,"CPFL Energia",8.709576931246902,null,"Somos Educa",0.3,null,"Carrefour BR",31,null,"Randon Part",-3.5,null,"Whirlpool",1]
["Totvs",5957.81,null,"Eztec",2589.34,null,"Whirlpool",594.70000000000005,null,"Multiplan",2.0123695188213064E-2,null,"JBS",1.371421750631183,null,"Sao Carlos",16.020850054117059,null,"Trisul",0.13975599999999999,null,"Trisul",8.7289600000000007,null,"Comgas",0.2,null,"JHSF Part",30.9,null,"Aco Altona",-3.4,null,"Weg",1.5]
["Smiles",5952.38,null,"Natura",2574.1,null,"Odontoprev",584.1,null,"Schulz",1.9850105051898773E-2,null,"Tenda",1.3735685636945829,null,"AES Tiete E",16.123866509237391,null,"Pettenati",0.138292,null,"Vulcabras",8.816803465572276,null,"Porto Seguro",-0.1,null,"Mundial",29.2,null,"B2W Digital",-3.3,null,"Time For Fun",1.8]
["Eneva",5887.16,null,"Locamerica",2565.5500000000002,null,"B2W Digital",583.29999999999995,null,"BR Propert",1.8616193456743313E-2,null,"Brasil",1.3784244375317352,null,"Cemig",16.128201299599059,null,"Petrorio",0.13200200000000001,null,"Aliansce",8.8769700811359034,null,"Ger Paranap",-0.1,null,"Sanepar",29.1,null,"Gerdau",-3.3,null,"Coelce",2.4]
["Locamerica",5781.85,null,"Aliansce",2553.98,null,"Unipar",575.79999999999995,null,"Carrefour BR",1.8002562717751587E-2,null,"Camil",1.3898372218688881,null,"CPFL Energia",16.340522727272727,null,"Inds Romi",0.13092499999999999,null,"Guararapes",8.8985202639019789,null,"AES Tiete E",-0.1,null,"Alupar",28.9,null,"Multiplan",-3.3,null,"Lopes Brasil",2.9]
["Somos Educa",5743.18,null,"SLC Agricola",2530.71,null,"Cvc Brasil",561.20000000000005,null,"Emae",1.7859079570514441E-2,null,"Cemig",1.4028064479277524,null,"Usiminas",16.341971926347949,null,"MRV",0.13077800000000001,null,"Kroton",8.9278649051779233,null,"Biotoscana",-0.2,null,"Eletropar",28.9,null,"Cia Hering",-3.2,null,"Arezzo Co",3]
["Celpa",5384.83,null,"Ceee-Gt",2425.5500000000002,null,"Iguatemi",540.6,null,"Valid",1.7803169656704681E-2,null,"Banrisul",1.4046559232851119,null,"Guararapes",16.56458620940202,null,"Banestes",0.12993399999999999,null,"Gol",8.9504928530588916,null,"Arezzo Co",-0.3,null,"Gerdau Met",27.3,null,"Magaz Luiza",-3.1,null,"Azevedo",3.8]
["Bk Brasil",4933.3999999999996,null,"Alpargatas",2380.81,null,"Grendene",526.20000000000005,null,"Celpa",1.6416488542813794E-2,null,"Cyre Com-Ccp",1.4136427464559698,null,"Sierrabrasil",17.13908349063453,null,"Telef Brasil",0.12853600000000001,null,"CCR SA",9.0563428546641518,null,"Unicasa",-0.3,null,"Equatorial",27.3,null,"Taesa",-3,null,"Even",4]
["Cia Hering",4872.76,null,"Whirlpool",2353.36,null,"Celesc",523.20000000000005,null,"Iguatemi",1.6206448545876405E-2,null,"Sabesp",1.4316383713162595,null,"Sao Martinho",17.256673756450223,null,"Alupar",0.12751300000000002,null,"Le Lis Blanc",9.1379903314917126,null,"Celesc",-0.4,null,"Bk Brasil",27,null,"Tegma",-2.9,null,"Marcopolo",4.8]
["Arezzo Co",4870.8500000000004,null,"Intermedica",2340.0700000000002,null,"Cyre Com-Ccp",523.1,null,"Weg",1.56394925468104E-2,null,"J B Duarte",1.445129220023283,null,"Amazonia",17.391965965069414,null,"Btgp Banco",0.126914,null,"Taesa",9.1521828887112004,null,"Positivo Tec",-0.4,null,"Eztec",26.4,null,"Itausa",-2.9,null,"Telef Brasil",5.7]
["AES Tiete E",4607.26,null,"Magaz Luiza",2302.87,null,"Jereissati",510.1,null,"Jereissati",1.5572223436865564E-2,null,"Tim Part S/A",1.4451913407736563,null,"Equatorial",17.520056071792261,null,"Schulz",0.126114,null,"Locamerica",9.1727167836326871,null,"Light S/A",-0.5,null,"Gerdau",25.2,null,"Klabin S/A",-2.9,null,"BR Malls Par",6]
["AES Tiete E",4607.26,null,"Elektro",2293.83,null,"Sul America",491.4,null,"Energisa",1.5167734818327873E-2,null,"Time For Fun",1.4819804356411579,null,"Vale",17.736682165757081,null,"Movida",0.124338,null,"Carrefour BR",9.1741737342585452,null,"BR Propert",-0.5,null,"Sierrabrasil",24.3,null,"Iochp-Maxion",-2.8,null,"Generalshopp",6]
["AES Tiete E",4607.26,null,"Qualicorp",2288.7399999999998,null,"BR Propert",487.3,null,"Sierrabrasil",1.4728494999428144E-2,null,"Vale",1.4888334105934384,null,"Bradespar",18.046346557276767,null,"JSL",0.12213599999999999,null,"Sao Carlos",9.3235586162716206,null,"Ecorodovias",-0.6,null,"Teka",24.3,null,"Vulcabras",-2.7,null,"Bradespar",6.2]
["Linx",4528.4399999999996,null,"Tupy",2241.02,null,"Alpargatas",486.2,null,"Sul America",1.4637818480602039E-2,null,"Alliar",1.4950113280655826,null,"Eletropar",18.525984251968502,null,"Biotoscana",0.12195600000000001,null,"Movida",9.3361864230849072,null,"Mangels Indl",-0.6,null,"Telebras",23.7,null,"Teka",-2.6,null,"Odontoprev",6.5]
["Eztec",4400.6000000000004,null,"JHSF Part",2227.84,null,"Tupy",447.4,null,"Anima",1.3906473632059893E-2,null,"Coelce",1.4958307715954506,null,"Duratex",18.851482262437152,null,"Ultrapar",0.116484,null,"Karsten",9.436345776031434,null,"Marcopolo",-0.7,null,"Lojas Renner",23.6,null,"Locamerica",-2.5,null,"Alliar",6.8]
["Qualicorp",4382.2299999999996,null,"Le Lis Blanc",2205.2600000000002,null,"Generalshopp",433.1,null,"P.Acucar-Cbd",1.3755313090231636E-2,null,"SLC Agricola",1.5231980195281167,null,"Movida",19.051447887323945,null,"Eneva",0.11337799999999999,null,"Engie Brasil",9.4488554063734895,null,"AES Tiete E",-0.8,null,"Totvs",23.3,null,"IGB S/A",-2.5,null,"Tupy",7.4]
["Multiplus",4321.1000000000004,null,"Log Com Prop",2147.27,null,"Ceee-Gt",408.7,null,"Locamerica",1.3109990746906266E-2,null,"Lojas Marisa",1.5251295900524575,null,"Fleury",19.066497783407218,null,"Sao Martinho",0.11311400000000001,null,"Lojas Marisa",9.7752568578553625,null,"Ihpardini",-0.8,null,"Cia Hering",23.1,null,"Grazziotin",-2.5,null,"Usiminas",7.5]
["Aliansce",4073.62,null,"Marcopolo",2105.62,null,"Qgep Part",407.9,null,"Guararapes",1.2673344196930851E-2,null,"Aliansce",1.5950112373628613,null,"Ihpardini",19.776687336452305,null,"Grazziotin",0.112785,null,"Fleury",9.7798758122743692,null,"Rumo S.A.",-1,null,"Tex Renaux",22.1,null,"Rni",-2.5,null,"Amazonia",7.5]
["Light S/A",4048.09,null,"Camil",2091.19,null,"Metal Leve",405.4,null,"Embraer",1.2431545492761827E-2,null,"Elektro",1.6049232070380106,null,"Marcopolo",19.980383173566114,null,"Sabesp",0.11238300000000001,null,"Imc S/A",9.7906238003838766,null,"Aliansce",-1.1000000000000001,null,"Vale",21.7,null,"Karsten",-2.4,null,"Eucatex",8.1]
["Banco Inter",3869.31,null,"Celesc",2010.4,null,"Aliansce",388.8,null,"Cemig",1.2222360710698776E-2,null,"Ser Educa",1.6332239265789033,null,"CCR SA",20.259083060224832,null,"Kroton",0.11176899999999999,null,"Energisa",9.817604632798103,null,"Intermedica",-1.1000000000000001,null,"Wlm Ind Com",21.7,null,"Carrefour BR",-2.4,null,"Le Lis Blanc",8.1999999999999993]
["SLC Agricola",3854.78,null,"Amazonia",1906.04,null,"Sierrabrasil",384.7,null,"Estacio Part",1.2196257669527861E-2,null,"Paranapanema",1.6777181078838175,null,"M.Diasbranco",20.276812996536972,null,"Ceee-Gt",0.10571,null,"CPFL Renovav",9.9285356210959108,null,"Embraer",-1.3,null,"Cvc Brasil",21.5,null,"Sao Martinho",-2.4,null,"Cosan",8.3000000000000007]
["Abc Brasil",3813.54,null,"Ger Paranap",1821.54,null,"Locamerica",361.3,null,"Randon Part",1.13617501846976E-2,null,"Eztec",1.699507727837982,null,"Cia Hering",20.344689449292307,null,"Rede Energia",0.10488,null,"Tegma",9.9532239280042347,null,"M.Diasbranco",-1.3,null,"Abc Brasil",20.2,null,"Mills",-2.2999999999999998,null,"Iguatemi",8.6]
["Elektro",3773.31,null,"Omega Ger",1758.12,null,"Coteminas",356.7,null,"Inepar",1.1309146837962544E-2,null,"Cristal",1.7097148610156174,null,"Whirlpool",20.496354611514814,null,"Omega Ger",0.103286,null,"MRV",10.006834657398212,null,"Brasil",-1.3,null,"P.Acucar-Cbd",20.100000000000001,null,"Qualicorp",-2.2999999999999998,null,"Klabin S/A",8.6]
["Coelce",3753.29,null,"Fleury",1749.96,null,"Ferbasa",356.1,null,"Iochp-Maxion",1.1174820432195814E-2,null,"Cosan",1.7276093192274535,null,"P.Acucar-Cbd",20.808250896898578,null,"Fras-Le",0.10195,null,"Itausa",10.440904947916668,null,"Cr2",-1.3,null,"JSL",19.899999999999999,null,"Ourofino S/A",-2.1,null,"Multiplan",8.9]
["Ger Paranap",3632.52,null,"Ferbasa",1743.09,null,"Sao Carlos",341.1,null,"Positivo Tec",1.0882946767124637E-2,null,"Duratex",1.7557749098992168,null,"Azul S.A.",21.749098366252966,null,"Tupy",0.10170299999999999,null,"Equatorial",10.508307490832896,null,"Brasilagro",-1.4,null,"Light S/A",19.899999999999999,null,"Metal Leve",-2.1,null,"Ger Paranap",9.1999999999999993]
["BR Propert",3534.02,null,"Bk Brasil",1716.96,null,"Movida",326.8,null,"Dimed",1.0697247706422018E-2,null,"Marcopolo",1.7718947150957913,null,"JSL",22.577826408651109,null,"Santanense",0.101274,null,"Marfrig",10.651260230654762,null,"Lojas Marisa",-1.4,null,"Metal Leve",19.100000000000001,null,"Pet Manguinh",-2,null,"BBSeguridade",9.9]
["Marcopolo",3498.63,null,"Even",1683.73,null,"Somos Educa",324.60000000000002,null,"Equatorial",1.0352053367141888E-2,null,"Movida",1.834697017192737,null,"Irbbrasil Re",22.667324417459799,null,"Petrobras",9.9025000000000002E-2,null,"BR Propert",10.67368683957733,null,"Usiminas",-1.5,null,"Sabesp",18,null,"Santanense",-1.9,null,"Aliansce",12.2]
["Unipar",3486.33,null,"Movida",1658.84,null,"Eztec",321.2,null,"Odontoprev",9.8541535279846812E-3,null,"Itausa",1.8867369250856862,null,"Carrefour BR",23.32331913253012,null,"Marcopolo",9.9007000000000012E-2,null,"Time For Fun",10.765454545454546,null,"Omega Ger",-1.5,null,"Lojas Americ",17.8,null,"Energisa",-1.8,null,"Sinqia",12.5]
["Qgep Part",3456.67,null,"Ser Educa",1545.06,null,"Ser Educa",321.10000000000002,null,"Marcopolo",9.6866487739486595E-3,null,"Qualicorp",1.914690803673637,null,"Omega Ger",23.595589123867068,null,"Cemig",9.8039000000000001E-2,null,"Cyre Com-Ccp",11.01225379525107,null,"OSX Brasil",-1.5,null,"CPFL Renovav",17.7,null,"Tran Paulist",-1.8,null,"Unicasa",12.6]
["Banco Pan",3425.42,null,"AES Tiete E",1523.47,null,"Randon Part",308.2,null,"Natura",9.6767676476840793E-3,null,"Mont Aranha",1.9301499844229826,null,"Iochp-Maxion",23.773570685232688,null,"Gerdau",9.7363000000000005E-2,null,"Petrobras BR",11.059311452015697,null,"Csu Cardsyst",-1.6,null,"MRV",16.7,null,"Weg",-1.8,null,"Valid",12.7]
["Marfrig",3405.28,null,"AES Tiete E",1523.47,null,"Vulcabras",296.5,null,"Lojas Renner",9.2574117223001746E-3,null,"Petrorio",1.9467790548637522,null,"Valid",23.884811337008962,null,"Randon Part",9.7039000000000014E-2,null,"Rede Energia",11.156415574359826,null,"Cosan",-1.6,null,"Metisa",16.100000000000001,null,"Tecnosolo",-1.8,null,"Jereissati",12.7]
["Metal Leve",3378.36,null,"AES Tiete E",1523.47,null,"Totvs",294.5,null,"CPFL Energia",8.9347563044577753E-3,null,"CPFL Renovav",1.957278721006551,null,"Ger Paranap",24.236145123988184,null,"Gerdau Met",9.5991999999999994E-2,null,"Whirlpool",11.18435515002632,null,"Engie Brasil",-1.6,null,"Omega Ger",14.3,null,"Bombril",-1.8,null,"Alpargatas",13.4]
["Iochp-Maxion",3243.9,null,"Randon Part",1510.93,null,"Omega Ger",291.89999999999998,null,"Arezzo Co",8.6063007483293472E-3,null,"Sao Martinho",1.9697545132182432,null,"Ambev S/A",24.5698632858278,null,"Iguatemi",9.2753999999999989E-2,null,"Inds Romi",11.321841109709963,null,"Ambev S/A",-1.6,null,"Alpargatas",13.4,null,"Engie Brasil",-1.6,null,"Omega Ger",14.3]
["Randon Part",3072.59,null,"Banestes",1492.01,null,"Wiz S.A",268,null,"Totvs",8.5752986416149559E-3,null,"Hypera",2.0564517330759453,null,"Light S/A",24.586030367446099,null,"Copasa",9.2675999999999994E-2,null,"Suzano Papel",11.349578474653676,null,"Bombril",-1.8,null,"Jereissati",12.7,null,"Cosan",-1.6,null,"Metisa",16.100000000000001]
["Movida",3043.46,null,"Jereissati",1442.25,null,"Lojas Marisa",265.60000000000002,null,"Cvc Brasil",8.5748340021286479E-3,null,"Ger Paranap",2.0711037638481726,null,"Ultrapar",25.210298108516884,null,"Vale",9.1704000000000008E-2,null,"Ihpardini",11.660957683741646,null,"Energisa",-1.8,null,"Valid",12.7,null,"Ambev S/A",-1.6,null,"MRV",16.7]
["Biosev",2979.65,null,"Sao Carlos",1407.58,null,"Le Lis Blanc",262.60000000000002,null,"Linx",8.3914107286394441E-3,null,"Sid Nacional",2.074278238807548,null,"Taesa",25.245481175561018,null,"Duratex",9.1553999999999996E-2,null,"Minerva",11.79184871889175,null,"Weg",-1.8,null,"Unicasa",12.6,null,"Csu Cardsyst",-1.6,null,"CPFL Renovav",17.7]
["Camil",2906.42,null,"Metal Leve",1356.42,null,"Cia Hering",260.89999999999998,null,"M.Diasbranco",8.3114511792503187E-3,null,"Anima",2.1231132797662529,null,"Ourofino S/A",25.372093246187365,null,"JHSF Part",9.0996000000000007E-2,null,"Bradespar",11.899069578190696,null,"Tran Paulist",-1.8,null,"Sinqia",12.5,null,"Omega Ger",-1.5,null,"Lojas Americ",17.8]
["Tupy",2652.88,null,"Cia Hering",1320.08,null,"Springs",254.6,null,"RaiaDrogasil",8.0595708215869498E-3,null,"Vulcabras",2.1838880937761651,null,"Dimed",26.255877342419087,null,"Multiplan",9.0489E-2,null,"Hypera",12.072108895123986,null,"Tecnosolo",-1.8,null,"Aliansce",12.2,null,"Usiminas",-1.5,null,"Sabesp",18]
["Ser Educa",2523.4299999999998,null,"Unipar",1294.95,null,"Ihpardini",234.7,null,"Movida",7.7674751762796292E-3,null,"Randon Part",2.1870365602642079,null,"Alpargatas",26.791422443438915,null,"Sao Carlos",8.9968000000000006E-2,null,"Grendene",12.230076525731777,null,"Santanense",-1.9,null,"BBSeguridade",9.9,null,"OSX Brasil",-1.5,null,"Metal Leve",19.100000000000001]
["Ihpardini",2494.04,null,"Totvs",1287.04,null,"Eucatex",211.8,null,"Duratex",7.4695202520240972E-3,null,"Guararapes",2.2184008485214122,null,"Santander BR",27.50172562560876,null,"P.Acucar-Cbd",8.8774999999999993E-2,null,"Marcopolo",12.366721900027615,null,"Pet Manguinh",-2,null,"Ger Paranap",9.1999999999999993,null,"Brasilagro",-1.4,null,"Light S/A",19.899999999999999]
["Ferbasa",2416.91,null,"Direcional",1263.3699999999999,null,"Valid",206.7,null,"Eletrobras",7.3125256551649096E-3,null,"P.Acucar-Cbd",2.2398487160516107,null,"Randon Part",27.569323794426833,null,"Iochp-Maxion",8.8389000000000009E-2,null,"Ambev S/A",12.459645418421491,null,"Metal Leve",-2.1,null,"Multiplan",8.9,null,"Lojas Marisa",-1.4,null,"JSL",19.899999999999999]
["Dommo",2403.36,null,"Alliar",1249.1099999999999,null,"Arezzo Co",206.3,null,"Light S/A",7.2873873851618913E-3,null,"Grendene",2.2525601003163023,null,"Log Com Prop",27.809797654633247,null,"Celesc",8.7601999999999999E-2,null,"Rumo S.A.",12.582141887723628,null,"Ourofino S/A",-2.1,null,"Klabin S/A",8.6,null,"Brasil",-1.3,null,"P.Acucar-Cbd",20.100000000000001]
["Minerva",2403.2600000000002,null,"Eucatex",1232.79,null,"JHSF Part",203.8,null,"Localiza",6.9539451965677027E-3,null,"Locamerica",2.2536422209662645,null,"Celpa",28.110076567392412,null,"B3",8.5905000000000009E-2,null,"Lojas Americ",13.638570182425001,null,"Qualicorp",-2.2999999999999998,null,"Iguatemi",8.6,null,"Embraer",-1.3,null,"Abc Brasil",20.2]
["Sierrabrasil",2360.73,null,"Tenda",1211.72,null,"Bombril",203,null,"Petrobras",6.3346956228243038E-3,null,"Portobello",2.2759459832647537,null,"Weg",28.864381687488795,null,"Metisa",8.1693000000000002E-2,null,"Eletropar",13.70006833712984,null,"Mills",-2.2999999999999998,null,"Cosan",8.3000000000000007,null,"M.Diasbranco",-1.3,null,"Cvc Brasil",21.5]
["Omega Ger",2343.04,null,"Triunfo Part",1170.1199999999999,null,"Cesp",197.3,null,"Sinqia",6.0853108167127669E-3,null,"Porto Seguro",2.3703743072309647,null,"Iguatemi",28.88310968949914,null,"Jereissati",8.0276999999999987E-2,null,"Embraer",13.78800579968771,null,"Sao Martinho",-2.4,null,"Le Lis Blanc",8.1999999999999993,null,"Cr2",-1.3,null,"Wlm Ind Com",21.7]
["Jereissati",2241.17,null,"Springs",1160.5899999999999,null,"Portobello",189,null,"Aliansce",5.8031922466994963E-3,null,"Bradesco",2.39125800425641,null,"Lojas Renner",30.458956535377496,null,"Bk Brasil",7.9172000000000006E-2,null,"Ultrapar",13.872871602832671,null,"Carrefour BR",-2.4,null,"Eucatex",8.1,null,"Intermedica",-1.1000000000000001,null,"Vale",21.7]
["Mont Aranha",2168.4299999999998,null,"Mont Aranha",1123.45,null,"Bk Brasil",185,null,"Banco Inter",5.4738441737674157E-3,null,"BRF SA",2.396513112685096,null,"Locamerica",30.559364693446092,null,"Ger Paranap",7.8551999999999997E-2,null,"Cvc Brasil",14.463353057199209,null,"Karsten",-2.4,null,"Amazonia",7.5,null,"Aliansce",-1.1000000000000001,null,"Tex Renaux",22.1]
["Celesc",2147.85,null,"Cvc Brasil",1087.94,null,"Petrorio",166,null,"Omega Ger",4.5581808249112264E-3,null,"Metal Leve",2.4906562642839236,null,"Odontoprev",30.901215632571375,null,"Alfa Financ",7.7037000000000008E-2,null,"Natura",14.53943734430846,null,"Grazziotin",-2.5,null,"Usiminas",7.5,null,"Rumo S.A.",-1,null,"Cia Hering",23.1]
["Ceee-Gt",2087.1,null,"Valid",1086.26,null,"Alliar",149.4,null,"Usiminas",4.262445051406198E-3,null,"Renova",2.5201529793409594,null,"Cvc Brasil",31.321180997484092,null,"Copel",7.5484999999999997E-2,null,"Dimed",14.642539159109646,null,"Locamerica",-2.5,null,"Tupy",7.4,null,"AES Tiete E",-0.8,null,"Totvs",23.3]
["JSL",1983.46,null,"Linx",1057.21,null,"Linx",144.4,null,"BR Malls Par",3.6372051864311502E-3,null,"ItauUnibanco",2.5991413925696452,null,"Multiplan",31.633306882334288,null,"Sierrabrasil",7.3163999999999993E-2,null,"Profarma",15.192552504038773,null,"IGB S/A",-2.5,null,"Alliar",6.8,null,"Ihpardini",-0.8,null,"Lojas Renner",23.6]
["Vulcabras",1956.22,null,"Cyre Com-Ccp",1045.42,null,"Tenda",141.9,null,"Celesc",3.622226878040832E-3,null,"Iguatemi",2.6111995091089906,null,"B3",32.111027210362927,null,"Merc Brasil",7.1506E-2,null,"Alliar",15.466696258719088,null,"Rni",-2.5,null,"Odontoprev",6.5,null,"Marcopolo",-0.7,null,"Telebras",23.7]
["Sao Carlos",1924.26,null,"Imc S/A",1039.1500000000001,null,"Anima",137.5,null,"Lojas Americ",3.4872372874209562E-3,null,"Cielo",2.6332994094120981,null,"Arezzo Co",34.147829991587216,null,"Coteminas",6.2826000000000007E-2,null,"Ourofino S/A",15.94506882591093,null,"Teka",-2.6,null,"Bradespar",6.2,null,"Mangels Indl",-0.6,null,"Teka",24.3]
["Petrorio",1868.17,null,"Helbor",1031.7,null,"Tegma",136.9,null,"Magaz Luiza",3.4862084714225171E-3,null,"Estacio Part",2.647202401915898,null,"Aliansce",35.746110916110922,null,"Bradespar",6.2339000000000006E-2,null,"Alpargatas",16.013380556047455,null,"Vulcabras",-2.7,null,"Generalshopp",6,null,"Ecorodovias",-0.6,null,"Sierrabrasil",24.3]
["Alliar",1867.43,null,"Odontoprev",1027.46,null,"Marcopolo",119.7,null,"JBS",3.372072695377541E-3,null,"Excelsior",2.6561546286876911,null,"Localiza",37.588540449932488,null,"Banco Pan",6.2295999999999997E-2,null,"Iguatemi",16.102789615040287,null,"Iochp-Maxion",-2.8,null,"BR Malls Par",6,null,"Light S/A",-0.5,null,"Gerdau",25.2]
["Tegma",1815.27,null,"Profarma",1018.99,null,"GPC Part",118.9,null,"Cesp",3.3424181225204736E-3,null,"B3",2.6776624044210493,null,"Btgp Banco",37.873145316378476,null,"Linx",6.0704000000000001E-2,null,"Anima",16.116238716148445,null,"Klabin S/A",-2.9,null,"Telef Brasil",5.7,null,"BR Propert",-0.5,null,"Eztec",26.4]
["Ourofino S/A",1746.87,null,"Smiles",1014.23,null,"Dimed",117.9,null,"Suzano Papel",3.2690090755007201E-3,null,"Bahema",2.6961030042918455,null,"Natura",38.000241183121197,null,"Valid",5.9920999999999995E-2,null,"Positivo Tec",16.300283911671926,null,"Tegma",-2.9,null,"Marcopolo",4.8,null,"Celesc",-0.4,null,"Bk Brasil",27]
["Telebras",1734.14,null,"Petrorio",959.65,null,"Emae",115.4,null,"Log Com Prop",2.935218487742362E-3,null,"Unipar",2.69934518707286,null,"Bk Brasil",38.530157919400189,null,"Terra Santa",5.9537000000000007E-2,null,"Cesp",16.918671186440676,null,"Itausa",-2.9,null,"Even",4,null,"Positivo Tec",-0.4,null,"Equatorial",27.3]
["Le Lis Blanc",1703.35,null,"Banco Inter",948.78,null,"Cristal",112.9,null,"Bahema",2.4834437086092716E-3,null,"Multiplan",2.8037909606107974,null,"Sul America",38.992024398868452,null,"Usiminas",5.4577000000000001E-2,null,"Azul S.A.",17.472320383805286,null,"Taesa",-3,null,"Azevedo",3.8,null,"Unicasa",-0.3,null,"Gerdau Met",27.3]
["Tenda",1664.38,null,"Vulcabras",895.75,null,"Imc S/A",108.5,null,"Rede Energia",1.7710641846779521E-3,null,"Bk Brasil",2.873335092256081,null,"RaiaDrogasil",42.874045158722261,null,"Light S/A",4.8844000000000005E-2,null,"Bk Brasil",17.776646153846155,null,"Magaz Luiza",-3.1,null,"Arezzo Co",3,null,"Arezzo Co",-0.3,null,"Eletropar",28.9]
["Dimed",1635,null,"Terra Santa",892.67,null,"Fras-Le",106.4,null,"Imc S/A",8.6406388113659163E-4,null,"M.Diasbranco",2.8912973623584644,null,"Sanepar",43.522062824233323,null,"Totvs",4.8069000000000001E-2,null,"M.Diasbranco",17.808252427184467,null,"Cia Hering",-3.2,null,"Lopes Brasil",2.9,null,"Biotoscana",-0.2,null,"Alupar",28.9]
["Banestes",1541.43,null,"Alfa Financ",886.36,null,"Csu Cardsyst",100.3,null,"CPFL Renovav",4.5807650890022412E-4,null,"Petrobras BR",2.9407650216807766,null,"Anima",46.698940874035983,null,"Aliansce",4.7744000000000002E-2,null,"Multiplan",18.01419612436116,null,"Gerdau",-3.3,null,"Coelce",2.4,null,"Porto Seguro",-0.1,null,"Sanepar",29.1]
["Cyre Com-Ccp",1477.85,null,"Brasilagro",882.81,null,"Mont Aranha",99.6,null,"Telebras",5.7665471069233161E-6,null,"Carrefour BR",2.9706675178393311,null,"Intermedica",52.551778729008888,null,"Anima",4.4089999999999997E-2,null,"Lojas Renner",18.184321214910263,null,"Multiplan",-3.3,null,"Time For Fun",1.8,null,"Ger Paranap",-0.1,null,"Mundial",29.2]
["Anima",1453.28,null,"Generalshopp",875.54,null,"Fer Heringer",91.9,null,"Oi",5.6287290329843517E-6,null,"AES Tiete E",3.0089250526757993,null,"Wlm Ind Com",53.615633640552993,null,"Lojas Americ",4.2481999999999999E-2,null,"Localiza",18.855375133639395,null,"B2W Digital",-3.3,null,"Weg",1.5,null,"AES Tiete E",-0.1,null,"JHSF Part",30.9]
["Wiz S.A",1437.57,null,"Gafisa",870.25,null,"Schulz",91.3,null,"Vulcabras",5.1118994796086326E-6,null,"CPFL Energia",3.0116292926098951,null,"Magaz Luiza",54.864495321627651,null,"Sinqia",3.6055000000000004E-2,null,"B3",19.34021463589621,null,"Aco Altona",-3.4,null,"Whirlpool",1,null,"Comgas",0.2,null,"Carrefour BR",31]
["Valid",1386.27,null,"Pine",868.74,null,"Ourofino S/A",91.2,null,"Eneva",-2.3848510996813403E-3,null,"AES Tiete E",3.0476665769591782,null,"Banco Inter",55.402580183276058,null,"Rumo S.A.",3.4037999999999999E-2,null,"RaiaDrogasil",19.470387760485359,null,"Randon Part",-3.5,null,"Recrusul",0.7,null,"Somos Educa",0.3,null,"Mills",31.8]
["Even",1295.49,null,"Emae",858.46,null,"Terra Santa",85.6,null,null,null,null,"CCR SA",3.0600391332766987,null,"Eztec",55.500105183503592,null,"Time For Fun",3.2508000000000002E-2,null,"Arezzo Co",20.441287683031874,null,"Gerdau Met",-3.6,null,"Guararapes",0.6,null,"Cyrela Realt",0.5,null,"Alfa Financ",32.200000000000003]
["Direcional",1280.32,null,"Coteminas",852.11,null,"Cyrela Realt",83.4,null,null,null,null,"Ultrapar",3.0696542641861702,null,"Springs",56.671159029649594,null,"Eztec",2.7486E-2,null,"Odontoprev",20.927833962264152,null,"Duratex",-3.6,null,"Grazziotin",0.2,null,"Alliar",0.6,null,"Braskem",32.4]
["Lojas Marisa",1255.97,null,"Tecnisa",836.2,null,"Inds Romi",81.5,null,null,null,null,"Whirlpool",3.1162234762212324,null,"Alupar",58.134185188400764,null,"Suzano Papel",2.7403E-2,null,"Weg",21.310232991612303,null,"Eztec",-3.7,null,"Sao Martinho",-0.2,null,"Eletropar",0.8,null,"Mont Aranha",32.799999999999997]
["Log Com Prop",1209.45,null,"Fras-Le",828.47,null,"Time For Fun",75,null,null,null,null,"Equatorial",3.1629366493740769,null,"Time For Fun",58.212828162291167,null,"Cyre Com-Ccp",2.6459E-2,null,"Sinqia",21.700784313725489,null,"Telef Brasil",-3.9,null,"Ecorodovias",-0.8,null,"Bk Brasil",0.8,null,"Taesa",33.4]
["JHSF Part",1205.1500000000001,null,"Lojas Marisa",823.52,null,"Log Com Prop",72.2,null,null,null,null,"JSL",3.2852917646669098,null,"Technos",59.166370370370366,null,"Klabin S/A",2.5824E-2,null,"Intermedica",22.989225295381313,null,"BR Pharma",-3.9,null,"Portobello",-1.2,null,"Eneva",1,null,"Brasilagro",33.700000000000003]
["Fras-Le",1074.98,null,"Merc Brasil",800.1,null,"Positivo Tec",71.099999999999994,null,null,null,null,"Fleury",3.6128025783446476,null,"Cesp",59.291032902644226,null,"Log Com Prop",2.3311000000000002E-2,null,"Totvs",23.067347725520435,null,"Kroton",-4,null,"Iochp-Maxion",-1.3,null,"Tupy",1,null,"Eneva",34.5]
["Paranapanema",1010.82,null,"Ecorodovias",778.11,null,"Grazziotin",61.2,null,null,null,null,"Telebras",3.6608856088560886,null,"Linx",63.726908528004508,null,"Amazonia",2.2732000000000002E-2,null,"Log Com Prop",23.886200716845877,null,"Eucatex",-4.3,null,"AES Tiete E",-1.5,null,"Copel",1.2,null,"Linx",34.700000000000003]
["Imc S/A",1006.87,null,"Mills",730.29,null,"Trisul",61.1,null,null,null,null,"Cia Hering",3.6912585373613722,null,"Haga S/A",67.874074074074073,null,"Cesp",1.8861000000000003E-2,null,"Linx",25.563963270142175,null,"Camil",-4.3,null,"AES Tiete E",-1.7,null,"Sanepar",1.3,null,"Energias BR",34.799999999999997]
["Mills",941.06,null,"Arezzo Co",711.34,null,"Brasilagro",58.8,null,null,null,null,"Alpargatas",3.7303928242908926,null,"AES Tiete E",79.526189054035285,null,"Alliar",1.494E-2,null,"Magaz Luiza",25.879777545775781,null,"P.Acucar-Cbd",-4.3,null,"Fras-Le",-1.8,null,"MMX Miner",1.4,null,"Ourofino S/A",36.1]
["Biotoscana",925.01,null,"Biotoscana",703.36,null,"Aco Altona",57.7,null,null,null,null,"Dimed",3.7445433462175597,null,"Lojas Americ",81.096832980810888,null,"CPFL Renovav",1.4378E-2,null,"Eletrobras",26.616273920852169,null,"Eletrobras",-4.3,null,"AES Tiete E",-2.8,null,"Azul S.A.",1.5,null,"Randon Part",36.4]
["Cristal",865.51,null,"Inds Romi",695.98,null,"Karsten",53.1,null,null,null,null,"Rumo S.A.",3.7789854961261553,null,"Energisa",99.305859203128804,null,"Wlm Ind Com",1.0204E-2,null,"Technos",32.187599999999996,null,"CCR SA",-4.4000000000000004,null,"Embraer",-4,null,"Odontoprev",1.5,null,"Duratex",37.299999999999997]
["Brasilagro",852.76,null,"Anima",684.5,null,"Santanense",47.8,null,null,null,null,"Ourofino S/A",3.8313563626792999,null,"Totvs",100.04744584382873,null,"Springs",7.4110000000000001E-3,null,"Wlm Ind Com",34.735272727272722,null,"Alpargatas",-4.4000000000000004,null,"Dimed",-4.5999999999999996,null,"Tarpon Inv",1.8,null,"JBS",37.6]
["Emae",829.83,null,"Marfrig",673.46,null,"Eletropar",44.6,null,null,null,null,"Tegma",3.9002903613940099,null,"Rumo S.A.",114.7618828869723,null,"Technos",7.2160000000000002E-3,null,"Paranapanema",35.239105199516324,null,"Bradesco",-4.4000000000000004,null,"Grendene",-4.5999999999999996,null,"Natura",2.2999999999999998,null,"Tran Paulist",38.200000000000003]
["Portobello",824.14,null,"Somos Educa",655.51,null,"Mundial",42,null,null,null,null,"Comgas",3.9335413843281932,null,"Sinqia",125.81200000000001,null,"BR Propert",2.3319999999999999E-3,null,"Somos Educa",36.14249361267246,null,"Lopes Brasil",-4.5,null,"Rni",-4.9000000000000004,null,"Bradespar",2.5,null,"ItauUnibanco",39.200000000000003]
["Amazonia",776.72,null,"Biosev",624.41999999999996,null,"Mangels Indl",26.8,null,null,null,null,"Tecnosolo",3.9479272727272727,null,"CPFL Renovav",145.50931136070704,null,"Eucatex",-3.9250000000000005E-3,null,"Unicasa",48.328387096774186,null,"Coteminas",-4.5999999999999996,null,"Camil",-6,null,"Multiplus",2.6,null,"Cyrela Realt",40]
["Lopes Brasil",722.5,null,"Rni",623.04999999999995,null,"Metal Iguacu",26.7,null,null,null,null,"Sinqia",4.0242151142355018,null,"Alliar",180.95286821705426,null,"Imc S/A",-6.5380000000000004E-3,null,"B2W Digital",55.977414510166355,null,"ItauUnibanco",-4.5999999999999996,null,"CCR SA",-7,null,"Profarma",2.6,null,"Azul S.A.",40]
["Eletropar",705.84,null,"JSL",603.74,null,"Cambuci",26.3,null,null,null,null,"Eletropar",4.0446965789926077,null,"Suzano Papel",201.99746453477414,null,"Cyrela Realt",-1.1470000000000001E-2,null,"Cyrela Realt",187.85267676767677,null,"Tim Part S/A",-4.7,null,"Tim Part S/A",-7,null,"Amazonia",2.7,null,"Sanepar",40.9]
["Trisul",692.44,null,"Paranapanema",602.5,null,"Pettenati",25.6,null,null,null,null,"Banco Inter",4.0782016905921292,null,"BR Propert",257.76954923413564,null,"Unicasa",-1.7475000000000001E-2,null,"","",null,"Linx",-4.7,null,"Paranapanema",-8.1999999999999993,null,"Whirlpool",2.7,null,"Qgep Part",41.2]
["Inds Romi",685.15,null,"Ihpardini",589.97,null,"Ideiasnet",23.2,null,null,null,null,"Ihpardini",4.227398071088361,null,"Klabin S/A",690.73383035064739,null,"JBS",-2.6575000000000001E-2,null,"","",null,"Hapvida",-4.8,null,"Pettenati",-8.9,null,"Haga S/A",2.7,null,"Karsten",43.4]
["Schulz",637.78,null,"Trisul",569.41999999999996,null,"Profarma",20.2,null,null,null,null,"Linx",4.2833818446666223,null,"","",null,"Bahema",-3.0026000000000001E-2,null,"","",null,"Joao Fortes",-4.8,null,"M.Diasbranco",-9,null,"Energias BR",3,null,"Ferbasa",43.5]
["Helbor",637.5,null,"Schulz",535.69000000000005,null,"Sinqia",18.2,null,null,null,null,"Azul S.A.",4.3189996948893974,null,"","",null,"Embraer",-3.3652000000000001E-2,null,"","",null,"Lojas Renner",-4.9000000000000004,null,"Estacio Part",-10.1,null,"Alfa Financ",3.1,null,"Itausa",45.1]
["Alfa Financ",543.59,null,"Positivo Tec",520.07000000000005,null,"Excelsior",17.100000000000001,null,null,null,null,"Totvs",4.6290910927399311,null,"","",null,"BR Malls Par",-3.5802E-2,null,"","",null,"Alper S.A.",-5,null,"Fer Heringer",-11,null,"Wlm Ind Com",3.1,null,"Bradesco",45.5]
["Profarma",524.78,null,"Grazziotin",511.33,null,"Metisa",15.8,null,null,null,null,"Btgp Banco",4.744520887050256,null,"","",null,"Profarma",-4.8494999999999996E-2,null,"","",null,"Grendene",-5.0999999999999996,null,"Kepler Weber",-11.7,null,"GPC Part",3.1,null,"Banestes",46.1]
["Grazziotin",524.75,null,"Cristal",509.05,null,"Saraiva Livr",15.2,null,null,null,null,"Biosev",4.771872585759585,null,"","",null,"Cr2",-5.2625000000000005E-2,null,"PDG Realt","-",null,"Viver",-5.0999999999999996,null,"Terra Santa",-12,null,"Vale",3.5,null,"Tegma",46.4]
["Eucatex",512.61,null,"Tegma",465.42,null,"Tarpon Inv",14.4,null,null,null,null,"Ambev S/A",4.8078079433630663,null,"","",null,"Metal Iguacu",-5.5670000000000004E-2,null,"IGB S/A","-",null,"Sul America",-5.3,null,"Vulcabras",-12.5,null,"Suzano Papel",3.6,null,"Comgas",46.5]
["Time For Fun",487.82,null,"Ourofino S/A",455.94,null,"Technos",9.3000000000000007,null,null,null,null,"Alupar",4.828376130316272,null,"Bardella","-",null,"Rni",-5.6980000000000003E-2,null,"J B Duarte","-",null,"Direcional",-5.3,null,"Elektro",-13.7,null,"Sao Carlos",3.6,null,"B3",48.4]
["Kepler Weber",453.88,null,"Technos",453.87,null,"Plascar Part",0.7,null,null,null,null,"Weg",5.0075741839474119,null,"Saraiva Livr","-",null,"Eletrobras",-5.8154000000000004E-2,null,"Abc Brasil","-",null,"Recrusul",-5.4,null,"Dommo",-14.4,null,"Localiza",3.8,null,"Natura",49]
["Gafisa",429.41,null,"Dimed",452.75,null,"Bahema",-1.3,null,null,null,null,"Marfrig",5.0563886496599642,null,"Cr2","-",null,"Generalshopp",-6.0658000000000004E-2,null,"Banco Inter","-",null,"Fras-Le",-5.5,null,"Lojas Marisa",-15,null,"Sierrabrasil",3.8,null,"Somos Educa",49.5]
["Tecnisa",423.93,null,"Kepler Weber",414.87,null,"Unicasa",-4.0999999999999996,null,null,null,null,"Santander BR",5.1290960662381151,null,"Eucatex","-",null,"Pine",-6.5723000000000004E-2,null,"Haga S/A","-",null,"Biosev",-5.5,null,"BR Propert",-15.8,null,"Copasa",3.9,null,"Rumo S.A.",50]
["Springs",420.5,null,"Joao Fortes",395.77,null,"Wlm Ind Com",-4.7,null,null,null,null,"Engie Brasil",5.3170655854241247,null,"Lupatech","-",null,"Positivo Tec",-7.8459000000000001E-2,null,"Aco Altona","-",null,"Lojas Americ",-5.5,null,"Ambev S/A",-16.399999999999999,null,"Dimed",3.9,null,"Schulz",52.1]
["Generalshopp",408.45,null,"Wlm Ind Com",387.17,null,"Cr2",-7.4,null,null,null,null,"Suzano Papel",5.3532983122724671,null,"Pine","-",null,"Aliperti",-8.2230999999999999E-2,null,"Mont Aranha","-",null,"Schulz",-5.7,null,"Multiplus",-18.100000000000001,null,"Cemig",4,null,"Petrobras BR",52.5]
["Merc Brasil",399.48,null,"Telebras",368.56,null,"Kepler Weber",-12.7,null,null,null,null,"Celpa",5.5933419519828451,null,"Positivo Tec","-",null,"Kepler Weber",-8.7734000000000006E-2,null,"Hapvida","-",null,"Valid",-5.7,null,"Wiz S.A",-19.5,null,"BR Brokers",4,null,"Santander BR",52.7]
["Joao Fortes",399.11,null,"Portobello",362.11,null,"Teka",-13.9,null,null,null,null,"Sul America",5.6133638132326675,null,"Rni","-",null,"Direcional",-9.1899999999999996E-2,null,"-","-",null,"Iguatemi",-5.7,null,"Sao Carlos",-20.2,null,"Braskem",4.0999999999999996,null,"Cyre Com-Ccp",53.9]
["Sinqia",343.45,null,"Time For Fun",329.17,null,"MMX Miner",-14.5,null,null,null,null,"Taesa",5.7143298864935286,null,"Generalshopp","-",null,"B2W Digital",-9.2756000000000005E-2,null,"-","-",null,"CPFL Energia",-5.9,null,"Hypera",-20.8,null,"Ceee-Gt",4.2,null,"Inds Romi",54]
["Pine",333.21,null,"Saraiva Livr",319.69,null,"Aliperti",-15.6,null,null,null,null,"Smiles",5.8688699801820094,null,"Gafisa","-",null,"Even",-0.120514,null,"-","-",null,"Terra Santa",-6.4,null,"Pine",-21.4,null,"B3",4.2,null,"Energisa",54.3]
["Log-In",328.77,null,"Renova",292.85000000000002,null,"Pomifrutas",-18.100000000000001,null,null,null,null,"Braskem",6.0366196209202085,null,"Tecnisa","-",null,"Somos Educa",-0.124872,null,"-","-",null,"Le Lis Blanc",-6.4,null,"Imc S/A",-21.9,null,"Sanepar",4.2,null,"Copel",55.5]
["Forja Taurus",319.07,null,"BR Brokers",264.12,null,"Recrusul",-26,null,null,null,null,"B2W Digital",6.1432378496583651,null,"Profarma","-",null,"Lojas Marisa",-0.13724800000000001,null,"-","-",null,"Springs",-6.5,null,"Tarpon Inv",-22.1,null,"Irbbrasil Re",4.4000000000000004,null,"Copasa",55.7]
["Coteminas",319.05,null,"Csu Cardsyst",240.84,null,"Lupatech",-40.700000000000003,null,null,null,null,"RaiaDrogasil",6.1551216305795089,null,"Helbor","-",null,"Mills",-0.162636,null,"-","-",null,"Santander BR",-6.5,null,"Springs",-22.2,null,"Banestes",4.5,null,"Sid Nacional",56.1]
["Triunfo Part",314.05,null,"Alper S.A.",234.29,null,"Mills",-43.2,null,null,null,null,"Hapvida",6.1594556431538781,null,"Even","-",null,"Alper S.A.",-0.23350799999999999,null,"-","-",null,"Telebras",-6.5,null,"Csu Cardsyst",-23.1,null,"Minerva",4.5999999999999996,null,"Localiza",58.7]
["Csu Cardsyst",298.33999999999997,null,"Metisa",233.5,null,"Bardella",-47.7,null,null,null,null,"Lojas Americ",6.6649370497118161,null,"Alper S.A.","-",null,"Saraiva Livr",-0.23778400000000002,null,"-","-",null,"Ultrapar",-6.6,null,"Positivo Tec",-24.4,null,"Merc Brasil",5.3,null,"Plascar Part",58.8]
["Renova",263.89999999999998,null,"Aliperti",231.21,null,"Lopes Brasil",-57.5,null,null,null,null,"Sanepar",6.7940729361801875,null,"Metal Iguacu","-",null,"Helbor",-0.25982700000000003,null,"-","-",null,"Cielo",-6.8,null,"Marfrig",-24.9,null,"CPFL Renovav",5.4,null,"CPFL Energia",60.4]
["BR Brokers",247.3,null,"Santanense",205.43,null,"Sansuy",-69.099999999999994,null,null,null,null,"Arezzo Co",6.8474238338909661,null,"Indusval","-",null,"Tecnisa",-0.31812099999999999,null,"-","-",null,"Equatorial",-6.8,null,"Ultrapar",-27,null,"RaiaDrogasil",5.5,null,"Coteminas",60.4]
["Rni",246.81,null,"Multiplus",192.11,null,"Alper S.A.",-69.5,null,null,null,null,"Irbbrasil Re",6.9053871994960989,null,"Embraer","-",null,"BR Brokers",-0.31930399999999998,null,"-","-",null,"Guararapes",-6.9,null,"RaiaDrogasil",-28.1,null,"Cesp",5.7,null,"Ppla",60.4]
["Terra Santa",234.67,null,"Pettenati",191.75,null,"Azevedo",-70.900000000000006,null,null,null,null,"Intermedica",7.5023280158285859,null,"BR Brokers","-",null,"Paranapanema",-0.36394500000000002,null,"-","-",null,"Imc S/A",-7.1,null,"Helbor",-28.1,null,"Petrobras",5.8,null,"SLC Agricola",61.5]
["Wlm Ind Com",234.51,null,"Eletropar",174.51,null,"Rni",-73.900000000000006,null,null,null,null,"Cvc Brasil",7.7812092578634848,null,"Imc S/A","-",null,"BRF SA",-0.38131399999999999,null,"-","-",null,"Metal Iguacu",-7.2,null,"MMX Miner",-28.7,null,"Paranapanema",5.8,null,"Engie Brasil",62.4]
["Santanense",203.48,null,"Cr2",172.75,null,"OSX Brasil",-80.2,null,null,null,null,"Lojas Renner",7.8574589317007657,null,"Eternit","-",null,"Ideiasnet",-0.40996499999999997,null,"-","-",null,"Anima",-7.2,null,"Oi",-28.9,null,"Mundial",5.9,null,"Aco Altona",64.2]
["Positivo Tec",203.07,null,"Unicasa",169.46,null,"Viver",-94.7,null,null,null,null,"BBSeguridade",7.9800857784108956,null,"Joao Fortes","-",null,"Bardella",-0.41255200000000003,null,"-","-",null,"SLC Agricola",-7.4,null,"BR Brokers",-29.6,null,"Alupar",6,null,"Banco Pan",65.7]
["Pet Manguinh",198.99,null,"Wiz S.A",168.97,null,"BR Brokers",-103.8,null,null,null,null,"Localiza",8.007349087089997,null,"Direcional","-",null,"Telebras",-0.48059199999999996,null,"-","-",null,"Azevedo",-7.6,null,"Fleury",-29.7,null,"Unipar",6.2,null,"Brasil",67.7]
["Metisa",195.91,null,"GPC Part",157.29,null,"Direcional",-108.8,null,null,null,null,"Ecorodovias",8.0954635719885353,null,"Kepler Weber","-",null,"Gafisa",-0.48088500000000001,null,"-","-",null,"Triunfo Part",-7.7,null,"Haga S/A",-30,null,"Banrisul",6.4,null,"Porto Seguro",68.2]
["Technos",191.7,null,"Bardella",150.13,null,"Forja Taurus",-125.8,null,null,null,null,"Natura",8.0954789091332895,null,"Unicasa","-",null,"Lopes Brasil",-0.49528899999999998,null,"-","-",null,"Time For Fun",-7.8,null,"Technos",-30.1,null,"Celpa",6.6,null,"Direcional",69.400000000000006]
["Unicasa",189.01,null,"Aco Altona",98.53,null,"Inepar",-127,null,null,null,null,"Cambuci",8.3487689614935832,null,"BR Malls Par","-",null,"Indusval",-0.72522699999999996,null,"-","-",null,"Tecnisa",-7.9,null,"Rossi Resid",-30.7,null,"Dommo",7.2,null,"Sul America",69.8]
["Indusval",184.87,null,"Lupatech",97.57,null,"Telebras",-150.80000000000001,null,null,null,null,"Wiz S.A",8.5078057051547624,null,"Aco Altona","-",null,"Dommo",-0.7343559999999999,null,"-","-",null,"BR Malls Par",-8,null,"Cr2",-31.9,null,"Smiles",7.4,null,"Tenda",70.400000000000006]
["Alper S.A.",180.52,null,"Indusval",91.16,null,"Eternit",-192.9,null,null,null,null,"Odontoprev",8.5651579623537675,null,"Eletrobras","-",null,"Eternit",-0.77158699999999991,null,"-","-",null,"Technos",-8.1,null,"Lupatech",-32.4,null,"JSL",7.6,null,"Eletrobras",71.7]
["BR Pharma",167.36,null,"Dommo",89.27,null,"Paranapanema",-214.7,null,null,null,null,"Somos Educa",8.7614050739119165,null,"Cyrela Realt","-",null,"Tecnosolo",-0.822801,null,"-","-",null,"Petrobras BR",-8.3000000000000007,null,"Anima",-33.1,null,"Gol",7.8,null,"Movida",73]
["Viver",164.8,null,"Sinqia",85.35,null,"Helbor",-244,null,null,null,null,"Lopes Brasil",11.543453427065026,null,"Mills","-",null,"Renova",-0.829619,null,"-","-",null,"Abc Brasil",-8.4,null,"Smiles",-33.200000000000003,null,"Metisa",8.1,null,"Petrobras",75.2]
["Bahema",157.04,null,"Eternit",81.569999999999993,null,"Pet Manguinh",-270.39999999999998,null,null,null,null,"Ideiasnet",12.364255319148937,null,"JBS","-",null,"Joao Fortes",-0.88368199999999997,null,"-","-",null,"Cvc Brasil",-8.6999999999999993,null,"Pomifrutas",-34,null,"Cyre Com-Ccp",8.3000000000000007,null,"Mangels Indl",75.5]
["Pettenati",145.1,null,"Lopes Brasil",62.59,null,"Even",-346.2,null,null,null,null,"Magaz Luiza",14.233411108746912,null,"Cyre Com-Ccp","-",null,"Rossi Resid",-0.98642399999999997,null,"-","-",null,"Eternit",-8.6999999999999993,null,"Biosev",-35.299999999999997,null,"Lupatech",8.3000000000000007,null,"Merc Brasil",80.2]
["Bombril",144.35,null,"Tarpon Inv",58.62,null,"Rossi Resid",-418,null,null,null,null,"AES Tiete E",15.031711421951202,null,"Lojas Marisa","-",null,"Ppla",-1.0307360000000001,null,"-","-",null,"Banco Inter",-8.8000000000000007,null,"Ser Educa",-37.700000000000003,null,"Cambuci",8.5,null,"Gol",82.6]
["Cambuci",143.09,null,"Bahema",58.25,null,"Joao Fortes",-437.2,null,null,null,null,"Klabin S/A",15.089741065185052,null,"Paranapanema","-",null,"Lupatech",-1.5393020000000002,null,"-","-",null,"Log Com Prop",-9.1999999999999993,null,"Tecnisa",-37.9,null,"Log-In",8.9,null,"Cesp",83]
["Excelsior",130.55000000000001,null,"Excelsior",49.15,null,"Log-In",-442.7,null,null,null,null,"Ppla",16.979228187919464,null,"Mont Aranha","-",null,"Fer Heringer",-2.4875759999999998,null,"-","-",null,"Pettenati",-9.3000000000000007,null,"Kroton",-38.299999999999997,null,"Inds Romi",9,null,"Petrorio",84.6]
["Fer Heringer",122.26,null,"J B Duarte",25.77,null,"Tecnisa",-464.4,null,null,null,null,"Energisa",17.291922505769737,null,"BRF SA","-",null,"Minerva",-3.7541950000000002,null,"-","-",null,"Sabesp",-9.3000000000000007,null,"GPC Part",-39.4,null,"Coelce",9.4,null,"Banrisul",89.3]
["Aco Altona",119.48,null,"Metal Iguacu",23.64,null,"Renova",-776.1,null,null,null,null,"Multiplus",22.492843006610794,null,"Renova","-",null,null,null,null,"-","-",null,"Saraiva Livr",-9.3000000000000007,null,"OSX Brasil",-39.9,null,"Plascar Part",9.6,null,"Btgp Banco",97.9]
["Plascar Part",114.44,null,"Cambuci",17.14,null,"Dommo",-798.3,null,null,null,null,"Dommo",26.922315559538479,null,"Bahema","-",null,null,null,null,"-","-",null,"Tenda",-9.4,null,"Profarma",-40,null,"Totvs",9.6,null,"Santanense",102.5]
["Inepar",110.53,null,"Ppla",10.43,null,"Gafisa",-832.1,null,null,null,null,"","",null,"Telebras","-",null,null,null,null,"-","-",null,"MRV",-9.4,null,"Minerva",-40.1,null,"Qgep Part",9.6999999999999993,null,"IGB S/A",102.6]
["Rossi Resid",83.67,null,"Ideiasnet",4.2300000000000004,null,"BR Malls Par",-899.5,null,null,null,null,"","",null,"Tecnosolo","-",null,null,null,null,"-","-",null,"Marfrig",-9.5,null,"Tecnosolo",-40.6,null,"Wiz S.A",11.7,null,"Alper S.A.",102.9]
["Eternit",81.72,null,"Tecnosolo",2.75,null,"BR Pharma",-1475.8,null,null,null,null,"","",null,"Biosev","-",null,null,null,null,"-","-",null,"Rossi Resid",-9.8000000000000007,null,"Ihpardini",-41.6,null,"Pomifrutas",11.8,null,"Celesc",105.7]
["Mundial",73,null,"Rossi Resid",-24.2,null,"PDG Realt",-1745.7,null,null,null,null,"","",null,"B2W Digital","-",null,null,null,null,"-","-",null,"Portobello",-9.9,null,"Triunfo Part",-41.6,null,"Emae",12.4,null,"Locamerica",112.4]
["GPC Part",62.05,null,"Pomifrutas",-65.19,null,null,null,null,null,null,null,"","",null,"Hapvida","-",null,null,null,null,"-","-",null,"BBSeguridade",-10,null,"Joao Fortes",-43.3,null,"Trisul",12.6,null,"Bahema",112.7]
["Ppla",59.03,null,"Haga S/A",-81.84,null,null,null,null,null,null,null,"","",null,"Somos Educa","-",null,null,null,null,"-","-",null,"Fleury",-10.199999999999999,null,"BRF SA",-43.8,null,"Sinqia",13,null,"Magaz Luiza",117.6]
["PDG Realt",58.89,null,"Azevedo",-90.35,null,null,null,null,null,null,null,"-","-",null,"Lopes Brasil","-",null,null,null,null,"-","-",null,"Bahema",-10.4,null,"Bombril",-46,null,"Generalshopp",13.7,null,"Cemig",125.2]
["Saraiva Livr",56.99,null,"Recrusul",-126.83,null,null,null,null,null,null,null,"-","-",null,"Ideiasnet","-",null,null,null,null,"-","-",null,"JBS",-11,null,"Saraiva Livr",-47.2,null,"Pine",14.1,null,"Excelsior",134.4]
["Azevedo",55.8,null,"Mundial",-138.09,null,null,null,null,null,null,null,"-","-",null,"Ppla","-",null,null,null,null,"-","-",null,"Even",-11.3,null,"Cielo",-47.6,null,"Kepler Weber",15,null,"B2W Digital",135.9]
["Ideiasnet",52.3,null,"Viver",-176.87,null,null,null,null,null,null,null,"-","-",null,"Dommo","-",null,null,null,null,"-","-",null,"Estacio Part",-11.4,null,"Qualicorp",-48.2,null,"Btgp Banco",15.4,null,"Trisul",138.9]
["Tarpon Inv",50.56,null,"Bombril",-195.33,null,null,null,null,null,null,null,"-","-",null,"-","-",null,null,null,null,"-","-",null,"Renova",-11.5,null,"Eternit",-50.4,null,"Sansuy",15.5,null,"Forja Taurus",139.5]
["Cr2",48.83,null,"Karsten",-255.58,null,null,null,null,null,null,null,"-","-",null,"-","-",null,null,null,null,"-","-",null,"BRF SA",-12.6,null,"Bardella",-52,null,"Cristal",15.5,null,"Ceee-Gt",141.30000000000001]
["Mangels Indl",41.51,null,"Fer Heringer",-283.68,null,null,null,null,null,null,null,"-","-",null,"-","-",null,null,null,null,"-","-",null,"Ser Educa",-12.9,null,"Gafisa",-52,null,"Excelsior",16.600000000000001,null,"Suzano Papel",156.19999999999999]
["J B Duarte",36.56,null,"Tex Renaux",-312.85000000000002,null,null,null,null,null,null,null,"-","-",null,"-","-",null,null,null,null,"-","-",null,"PDG Realt",-13.1,null,"Biotoscana",-57.6,null,"Ppla",16.8,null,"Irbbrasil Re",174.6]
["Lupatech",31.8,null,"Mangels Indl",-364.13,null,null,null,null,null,null,null,"-","-",null,"-","-",null,null,null,null,"-","-",null,"Ideiasnet",-14,null,"Indusval",-58.2,null,"Movida",16.899999999999999,null,"Emae",177.2]
["IGB S/A",29.14,null,"Log-In",-373.97,null,null,null,null,null,null,null,"-","-",null,"-","-",null,null,null,null,"-","-",null,"Forja Taurus",-14.1,null,"BR Pharma",-59.3,null,"Ferbasa",18.8,null,"Cristal",186.2]
["Karsten",24.82,null,"Plascar Part",-398.51,null,null,null,null,null,null,null,"-","-",null,"-","-",null,null,null,null,"-","-",null,"Helbor",-15.1,null,"Pet Manguinh",-62.8,null,"JHSF Part",22.5,null,"Log-In",192.6]
["Bardella",22.86,null,"Forja Taurus",-456.06,null,null,null,null,null,null,null,"-","-",null,"-","-",null,null,null,null,"-","-",null,"Hypera",-15.5,null,"PDG Realt",-67.8,null,"Tex Renaux",22.6,null,"Unipar",195.2]
["Haga S/A",22.02,null,"MMX Miner",-562.13,null,null,null,null,null,null,null,"-","-",null,"-","-",null,null,null,null,"-","-",null,"Indusval",-16.399999999999999,null,"Ideiasnet",-69.2,null,"Sid Nacional",28.2,null,"Celpa",206]
["Metal Iguacu",19.09,null,"IGB S/A",-828.34,null,null,null,null,null,null,null,"-","-",null,"-","-",null,null,null,null,"-","-",null,"J B Duarte",-20.6,null,"Renova",-70.8,null,"Petrorio",31.3,null,"Metal Iguacu",282.10000000000002]
["OSX Brasil",14.48,null,"Sansuy",-1008.69,null,null,null,null,null,null,null,"-","-",null,"-","-",null,null,null,null,"-","-",null,"Bardella",-22.8,null,"J B Duarte",-75.5,null,"Oi",34.299999999999997,null,"Cambuci",297.5]
["Sansuy",14.26,null,"Minerva",-1365.75,null,null,null,null,null,null,null,"-","-",null,"-","-",null,null,null,null,"-","-",null,"Gafisa",-30.4,null,"Viver",-76.7,null,"Banco Pan",37.6,null,"Inepar",437.9]
["MMX Miner",13.69,null,"Inepar",-1382.43,null,null,null,null,null,null,null,"-","-",null,"-","-",null,null,null,null,"-","-",null,"Fer Heringer",-42.7,null,null,null,null,"Inepar",141,null,"",""]
["Tex Renaux",12.01,null,"BR Pharma",-1550.68,null,null,null,null,null,null,null,"-","-",null,"-","-",null,null,null,null,"-","-",null,null,null,null,null,null,null,"","",null,"",""]
["Pomifrutas",11.41,null,"Teka",-1628.65,null,null,null,null,null,null,null,"-","-",null,"-","-",null,null,null,null,"-","-",null,null,null,null,null,null,null,"","",null,"",""]
["Tecnosolo",10.77,null,"Pet Manguinh",-2450.04,null,null,null,null,null,null,null,"-","-",null,"-","-",null,null,null,null,"-","-",null,null,null,null,null,null,null,"","",null,"",""]
["Recrusul",9.32,null,"PDG Realt",-3833.74,null,null,null,null,null,null,null,"-","-",null,"-","-",null,null,null,null,"-","-",null,null,null,null,null,null,null,"","",null,"",""]
["Teka",4.59,null,"OSX Brasil",-3924.32,null,null,null,null,null,null,null,"-","-",null,"-","-",null,null,null,null,"-","-",null,null,null,null,null,null,null,"","",null,"",""]
[null,null,null,"Gol",-4969.99,null,null,null,null,null,null,null,"-","-",null,"-","-",null,null,null,null,"-","-",null,null,null,null,null,null,null,"","",null,"Log Com Prop","-"]
[null,null,null,null,null,null,null,null,null,null,null,null,"-","-",null,"-","-",null,null,null,null,"-","-",null,null,null,null,null,null,null,"Rede Energia","-",null,"Banco Inter","-"]
[null,null,null,"OSX Brasil",-3924.32,null,null,null,null,null,null,null,"-","-",null,"-","-",null,null,null,null,"-","-",null,null,null,null,null,null,null,"-","-",null,"Hapvida","-"]
[null,null,null,"Gol",-4969.99,null,null,null,null,null,null,null,"-","-",null,"-","-",null,null,null,null,"-","-",null,null,null,null,null,null,null,"-","-",null,"Intermedica","-"]
[null,null,null,"Gol",-4969.99,null,null,null,null,null,null,null,"-","-",null,"-","-",null,null,null,null,"-","-",null,null,null,null,null,null,null,"-","-",null,"Sansuy","-"]
[null,null,null,"Mendes Jr",-10447.58,null,null,null,null,null,null,null,"-","-",null,"-","-",null,null,null,null,"-","-",null,null,null,null,null,null,null,"-","-",null,"Rede Energia","-"]
[null,null,null,null,null,null,null,null,null,null,null,null,"-","-",null,"-","-",null,null,null,null,"-","-",null,null,null,null,null,null,null,"-","-",null,"-","-"]
[null,null,null,null,null,null,null,null,null,null,null,null,"-","-",null,"-","-",null,null,null,null,"-","-",null,null,null,null,null,null,null,"-","-",null,"-","-"]
[null,null,null,null,null,null,null,null,null,null,null,null,"-","-",null,"-","-",null,null,null,null,"-","-",null,null,null,null,null,null,null,"-","-",null,"-","-"]
[null,null,null,null,null,null,null,null,null,null,null,null,"-","-",null,"-","-",null,null,null,null,"-","-",null,null,null,null,null,null,null,"-","-",null,"-","-"]
[null,null,null,null,null,null,null,null,null,null,null,null,"-","-",null,"-","-",null,null,null,null,"-","-",null,null,null,null,null,null,null,"-","-",null,"-","-"]
[null,null,null,null,null,null,null,null,null,null,null,null,"-","-",null,"-","-",null,null,null,null,"Tex Renaux","-",null,null,null,null,null,null,null,"-","-",null,"-","-"]
[null,null,null,null,null,null,null,null,null,null,null,null,"-","-",null,"-","-",null,null,null,null,"Mangels Indl","-",null,null,null,null,null,null,null,"-","-",null,"-","-"]
[null,null,null,null,null,null,null,null,null,null,null,null,"-","-",null,"-","-",null,null,null,null,"Plascar Part","-",null,null,null,null,null,null,null,"-","-",null,"-","-"]
[null,null,null,null,null,null,null,null,null,null,null,null,"-","-",null,"-","-",null,null,null,null,"Teka","-",null,null,null,null,null,null,null,"-","-",null,"-","-"]
[null,null,null,null,null,null,null,null,null,null,null,null,"-","-",null,"-","-",null,null,null,null,"MMX Miner","-",null,null,null,null,null,null,null,"-","-",null,"-","-"]
[null,null,null,null,null,null,null,null,null,null,null,null,"-","-",null,"-","-",null,null,null,null,"Pomifrutas","-",null,null,null,null,null,null,null,"-","-",null,"-","-"]
[null,null,null,null,null,null,null,null,null,null,null,null,"-","-",null,"-","-",null,null,null,null,"Recrusul","-",null,null,null,null,null,null,null,"-","-",null,"-","-"]
[null,null,null,null,null,null,null,null,null,null,null,null,"-","-",null,"-","-",null,null,null,null,"Sansuy","-",null,null,null,null,null,null,null,"-","-",null,"-","-"]
[null,null,null,null,null,null,null,null,null,null,null,null,"-","-",null,"-","-",null,null,null,null,"Azevedo","-",null,null,null,null,null,null,null,"-","-",null,"-","-"]
[null,null,null,null,null,null,null,null,null,null,null,null,"-","-",null,"-","-",null,null,null,null,"OSX Brasil","-",null,null,null,null,null,null,null,"-","-",null,"-","-"]
[null,null,null,null,null,null,null,null,null,null,null,null,"-","-",null,"-","-",null,null,null,null,"Viver","-",null,null,null,null,null,null,null,"-","-",null,"-","-"]
[null,null,null,null,null,null,null,null,null,null,null,null,"-","-",null,"-","-",null,null,null,null,"Forja Taurus","-",null,null,null,null,null,null,null,"-","-",null,"-","-"]
[null,null,null,null,null,null,null,null,null,null,null,null,"-","-",null,"-","-",null,null,null,null,"Pet Manguinh","-",null,null,null,null,null,null,null,"-","-",null,"-","-"]
[null,null,null,null,null,null,null,null,null,null,null,null,"-","-",null,"-","-",null,null,null,null,"BR Pharma","-",null,null,null,null,null,null,null,"-","-",null,"-","-"]
[null,null,null,null,null,null,null,null,null,null,null,null,"-","-",null,"-","-",null,null,null,null,"Inepar","-",null,null,null,null,null,null,null,"-","-",null,"-","-"]
[null,null,null,null,null,null,null,null,null,null,null,null,"-","-",null,"-","-",null,null,null,null,"Wiz S.A","-",null,null,null,null,null,null,null,"-","-",null,"-","-"]
[null,null,null,null,null,null,null,null,null,null,null,null,"-","-",null,"-","-",null,null,null,null,"Tarpon Inv","-",null,null,null,null,null,null,null,"-","-",null,"-","-"]
[null,null,null,null,null,null,null,null,null,null,null,null,"-","-",null,"-","-",null,null,null,null,"BBSeguridade","-",null,null,null,null,null,null,null,"-","-",null,"-","-"]
[null,null,null,null,null,null,null,null,null,null,null,null,"-","-",null,"-","-",null,null,null,null,"Irbbrasil Re","-",null,null,null,null,null,null,null,"-","-",null,"-","-"]
[null,null,null,null,null,null,null,null,null,null,null,null,"-","-",null,"-","-",null,null,null,null,"Santander BR","-",null,null,null,null,null,null,null,"-","-",null,"-","-"]
[null,null,null,null,null,null,null,null,null,null,null,null,"-","-",null,"-","-",null,null,null,null,"Cia Hering","-",null,null,null,null,null,null,null,"-","-",null,"-","-"]
[null,null,null,null,null,null,null,null,null,null,null,null,"-","-",null,"-","-",null,null,null,null,"ItauUnibanco","-",null,null,null,null,null,null,null,"-","-",null,"-","-"]
[null,null,null,null,null,null,null,null,null,null,null,null,"-","-",null,"-","-",null,null,null,null,"Bradesco","-",null,null,null,null,null,null,null,"-","-",null,"-","-"]
[null,null,null,null,null,null,null,null,null,null,null,null,"-","-",null,"-","-",null,null,null,null,"Tran Paulist","-",null,null,null,null,null,null,null,"-","-",null,"-","-"]
[null,null,null,null,null,null,null,null,null,null,null,null,"-","-",null,"-","-",null,null,null,null,"Sul America","-",null,null,null,null,null,null,null,"-","-",null,"-","-"]
[null,null,null,null,null,null,null,null,null,null,null,null,"-","-",null,"-","-",null,null,null,null,"Banrisul","-",null,null,null,null,null,null,null,"-","-",null,"-","-"]
[null,null,null,null,null,null,null,null,null,null,null,null,"-","-",null,"-","-",null,null,null,null,"Brasil","-",null,null,null,null,null,null,null,"-","-",null,"-","-"]
[null,null,null,null,null,null,null,null,null,null,null,null,"-","-",null,"-","-",null,null,null,null,"Banestes","-",null,null,null,null,null,null,null,"-","-",null,"-","-"]
[null,null,null,null,null,null,null,null,null,null,null,null,"-","-",null,"-","-",null,null,null,null,"Btgp Banco","-",null,null,null,null,null,null,null,"-","-",null,"-","-"]
[null,null,null,null,null,null,null,null,null,null,null,null,"-","-",null,"-","-",null,null,null,null,"Biotoscana","-",null,null,null,null,null,null,null,"-","-",null,"-","-"]
[null,null,null,null,null,null,null,null,null,null,null,null,"-","-",null,"-","-",null,null,null,null,"Alfa Financ","-",null,null,null,null,null,null,null,"-","-",null,"-","-"]
[null,null,null,null,null,null,null,null,null,null,null,null,"-","-",null,"-","-",null,null,null,null,"Merc Brasil","-",null,null,null,null,null,null,null,"-","-",null,"-","-"]
[null,null,null,null,null,null,"Lupatech",-228.7,null,"Mendes Jr","0",null,"-","-",null,"-","-",null,"Lopes Brasil",-0.67598400000000003,null,"Banco Pan","-",null,"-","-1000000",null,"-","-1000000",null,"-","-",null,"-","-"]
[null,null,null,null,null,null,"Nova Oleo",-267.7,null,"Telebras","0",null,"-","-",null,"-","-",null,"PDG Realt",-0.69484399999999991,null,"Eztec","-",null,"-","-1000000",null,"-","-1000000",null,"-","-",null,"-","-"]
[null,null,null,null,null,null,"Pet Manguinh",-276.60000000000002,null,"Viver","0",null,"-","-",null,"-","-",null,"Metal Iguacu",-0.70488099999999998,null,"Amazonia","-",null,"-","-1000000",null,"-","-1000000",null,"-","-",null,"-","-"]
[null,null,null,null,null,null,"Rossi Resid",-317.10000000000002,null,"Ideiasnet","0",null,"-","-",null,"-","-",null,"Biosev",-0.80076499999999995,null,"Bahema","-",null,"-","-1000000",null,"-","-1000000",null,"-","-",null,"-","-"]
[null,null,null,null,null,null,"Lopes Brasil",-332.9,null,"Jereissati","0",null,"-","-",null,"-","-",null,"Minerva",-1.0701499999999999,null,"BR Malls Par","-",null,"-","-1000000",null,"-","-1000000",null,"-","-",null,"-","-"]
[null,null,null,null,null,null,"BR Pharma",-429.1,null,"Inepar","0",null,"Haga S/A","-",null,"-","-",null,"Plascar Part",-1.3472919999999999,null,"Cr2","-",null,"-","-1000000",null,"-","-1000000",null,"-","-",null,"-","-"]
[null,null,null,null,null,null,"Gerdau",-607.6,null,"OGX Petroleo","0",null,"Tex Renaux","-",null,"-","-",null,"Pomifrutas",-1.4256010000000001,null,"Rni","-",null,"-","-1000000",null,"-","-1000000",null,"-","-",null,"-","-"]
[null,null,null,null,null,null,"Gerdau Met",-728.5,null,"Lupatech","0",null,"IGB S/A","-",null,"-","-",null,"Fibam",-1.4567060000000001,null,"Pine","-",null,"-","-1000000",null,"-","-1000000",null,"-","-",null,"-","-"]
[null,null,null,null,null,null,"PDG Realt",-1716.4,null,"Nova Oleo","0",null,"Gol","-",null,"-","-",null,"Cambuci",-1.5811000000000002,null,"Aliperti","-",null,"-","-1000000",null,"-","-1000000",null,"-","-",null,"-","-"]
[null,null,null,null,null,null,"Usiminas",-2317.5,null,"Pet Manguinh","0",null,"Minerva","-",null,"Tex Renaux","-",null,"Nova Oleo",-3.1849959999999999,null,"Kepler Weber","-",null,"-","-1000000",null,"-","-1000000",null,"-","-",null,"-","-"]
[null,null,null,null,null,null,"Bradespar",-2476.5,null,"Rossi Resid","0",null,"Bombril","-",null,"Gol","-",null,"Ideiasnet",-3.6224380000000003,null,"Direcional","-",null,"-","-1000000",null,"-","-1000000",null,"-","-",null,"-","-"]
[null,null,null,null,null,null,"Eletrobras",-10701.9,null,"BR Pharma","0",null,"Fer Heringer","-",null,"Minerva","-",null,"Mundial",-9.3562440000000002,null,"Even","-",null,"-","-1000000",null,"-","-1000000",null,"-","-",null,"-","-"]
[null,null,null,null,null,null,"Vale",-14848.1,null,"PDG Realt","0",null,"Karsten","-",null,"Fer Heringer","-",null,"GPC Part",-9.4491650000000007,null,"Mills","-",null,"Banco Pan","-1000000",null,"-","-1000000",null,"-","-",null,"-","-"]
[null,null,null,null,null,null,"PDG Realt",-1716.4,null,"Lupatech","0",null,"Mundial","-",null,"Karsten","-",null,"Cambuci",-1.5811000000000002,null,"Alper S.A.","-",null,"Cor Ribeiro","-1000000",null,"-","-1000000",null,"-","-",null,"-","-"]
[null,null,null,null,null,null,"Usiminas",-2317.5,null,"Nova Oleo","0",null,"Mangels Indl","-",null,"Mundial","-",null,"Nova Oleo",-3.1849959999999999,null,"Saraiva Livr","-",null,"-","-1000000",null,"-","-1000000",null,"-","-",null,"-","-"]
[null,null,null,null,null,null,"Bradespar",-2476.5,null,"Pet Manguinh","0",null,"Plascar Part","-",null,"Mangels Indl","-",null,"Ideiasnet",-3.6224380000000003,null,"Helbor","-",null,"-","-1000000",null,"-","-1000000",null,"-","-",null,"-","-"]
[null,null,null,null,null,null,"Eletrobras",-10701.9,null,"Rossi Resid","0",null,"Teka","-",null,"Plascar Part","-",null,"Mundial",-9.3562440000000002,null,"Tecnisa","-",null,"-","-1000000",null,"-","-1000000",null,"-","-",null,"-","-"]
[null,null,null,null,null,null,"Vale",-14848.1,null,"PDG Realt","0",null,"MMX Miner","-",null,"Teka","-",null,"GPC Part",-9.4491650000000007,null,"BR Brokers","-",null,"Banco Pan","-1000000",null,"-","-1000000",null,"-","-",null,"-","-"]
[null,null,null,null,null,null,null,null,null,null,null,null,"Aliperti","-",null,"MMX Miner","-",null,null,null,null,"BRF SA","-",null,"Cor Ribeiro","-1000000",null,null,null,null,"-","-",null,"-","-"]
[null,null,null,null,null,null,null,null,null,null,null,null,"Pomifrutas","-",null,"Aliperti","-",null,null,null,null,"Ideiasnet","-",null,null,null,null,null,null,null,"-","-",null,"-","-"]
[null,null,null,null,null,null,null,null,null,null,null,null,"Recrusul","-",null,"Pomifrutas","-",null,null,null,null,"Bardella","-",null,null,null,null,null,null,null,"-","-",null,"-","-"]
[null,null,null,null,null,null,null,null,null,null,null,null,"Sansuy","-",null,"Recrusul","-",null,null,null,null,"Telebras","-",null,null,null,null,null,null,null,"-","-",null,"-","-"]
[null,null,null,null,null,null,null,null,null,null,null,null,"Azevedo","-",null,"Sansuy","-",null,null,null,null,"Gafisa","-",null,null,null,null,null,null,null,"-","-",null,"-","-"]
[null,null,null,null,null,null,null,null,null,null,null,null,"OSX Brasil","-",null,"Azevedo","-",null,null,null,null,"Lopes Brasil","-",null,null,null,null,null,null,null,"-","-",null,"-","-"]
[null,null,null,null,null,null,null,null,null,null,null,null,"Viver","-",null,"OSX Brasil","-",null,null,null,null,"Indusval","-",null,null,null,null,null,null,null,"-","-",null,"-","-"]
[null,null,null,null,null,null,null,null,null,null,null,null,"Forja Taurus","-",null,"Viver","-",null,null,null,null,"Dommo","-",null,null,null,null,null,null,null,"-","-",null,"-","-"]
[null,null,null,null,null,null,null,null,null,null,null,null,"Pet Manguinh","-",null,"Forja Taurus","-",null,null,null,null,"Eternit","-",null,null,null,null,null,null,null,"-","-",null,"-","-"]
[null,null,null,null,null,null,null,null,null,null,null,null,"Rossi Resid","-",null,"Pet Manguinh","-",null,null,null,null,"Tecnosolo","-",null,null,null,null,null,null,null,"-","-",null,"-","-"]
[null,null,null,null,null,null,null,null,null,null,null,null,"Log-In","-",null,"Rossi Resid","-",null,null,null,null,"Renova","-",null,null,null,null,null,null,null,"-","-",null,"-","-"]
[null,null,null,null,null,null,null,null,null,null,null,null,"BR Pharma","-",null,"Log-In","-",null,null,null,null,"Joao Fortes","-",null,null,null,null,null,null,null,"Aliperti","-",null,"-","-"]
[null,null,null,null,null,null,null,null,null,null,null,null,"PDG Realt","-",null,"BR Pharma","-",null,null,null,null,"Rossi Resid","-",null,null,null,null,null,null,null,"Mont Aranha","-",null,"-","-"]
[null,null,null,null,null,null,null,null,null,null,null,null,"Jereissati","-",null,"Jereissati","-",null,null,null,null,"Ppla","-",null,null,null,null,null,null,null,"Jereissati","-",null,"-","-"]
[null,null,null,null,null,null,null,null,null,null,null,null,"Inepar","-",null,"Inepar","-",null,null,null,null,"Lupatech","-",null,null,null,null,null,null,null,"AES Tiete E","-",null,"-","-"]
[null,null,null,null,null,null,null,null,null,null,null,null,"Rede Energia","-",null,"Rede Energia","-",null,null,null,null,"Fer Heringer","-",null,null,null,null,null,null,null,"Elektro","-",null,"Aliperti","-"]

{"sheet":"Dados setorial","index":7,"n_rows":962,"n_cols":33,"rows_kept":962,"cut":false,"hidden":true,"merged":[]}
["Código","Setor","Empresa","Fech (R$)","Quantidade de Ações","Valor Mercado","Patrimônio Líquido (últ. balan.)","Rec Líq. Anual (t-2)","Rec Líq. Anual (t-1)","Lucr Líq. Anual Acum. (t-4)","Lucr Líq. Anual Acum. (t-3)","Lucr Líq. Anual Acum. (t-2)","Lucr Líq. Anual Acum. (t-1)","Lucr Líq. Anual Acum. (t)","Lucr Líq. Anual (t-2)","Lucr Líq. Anual (t-1)","LPA (últimos 12 meses) ","VPA (últimos 12 meses) ","P/VPA (últimos 12 meses) ","P/L (últimos 12 meses) ","Rentab. Patrimonial","Dívida Líq/ Patrimônio","EBITDA Anual (t-2)","EBITDA Anual (t-1)","EBITDA 12 meses","FirmValue/Ebitda ","Dividendos acum ano (t-1)","Dividend Yield.","Oscliação mês %","Oscliação ano %","% ON / Total","Código Ação","Dívida Líqeuida"]
[{"$f":"IF(ISERROR(Dados!A2),\"-\",Dados!A2)","v":"AGRO3"},{"$f":"IF(ISERROR(Dados!B2),\"-\",Dados!B2)","v":"Agro "},{"$f":"IF(ISERROR(Dados!C2),\"-\",Dados!C2)","v":"Brasilagro"},{"$f":"IF(ISERROR(Dados!D2),\"-\",Dados!D2)","v":15.55},{"$f":"IF(ISERROR(Dados!E2),\"-\",Dados!E2)","v":53.802},{"$f":"IF(ISERROR(Dados!F2),\"-\",Dados!F2)","v":836.62},{"$f":"IF(ISERROR(Dados!G2),\"-\",Dados!G2)","v":882.81},{"$f":"IF(ISERROR(Dados!H2),\"-\",Dados!H2)","v":174.6},{"$f":"IF(ISERROR(Dados!I2),\"-\",Dados!I2)","v":336.38},{"$f":"IF(ISERROR(Dados!J2),\"-\",Dados!J2)","v":31.64},{"$f":"IF(ISERROR(Dados!K2),\"-\",Dados!K2)","v":85.62},{"$f":"IF(ISERROR(Dados!L2),\"-\",Dados!L2)","v":126.34},{"$f":"IF(ISERROR(Dados!M2),\"-\",Dados!M2)","v":136.63999999999999},{"$f":"IF(ISERROR(Dados!N2),\"-\",Dados!N2)","v":136.12},{"$f":"IF(ISERROR(Dados!O2),\"-\",Dados!O2)","v":31.64},{"$f":"IF(ISERROR(Dados!P2),\"-\",Dados!P2)","v":136.12},{"$f":"IF(ISERROR(Dados!Q2),\"-\",Dados!Q2)","v":4.2903609531244191},{"$f":"IF(ISERROR(Dados!R2),\"-\",Dados!R2)","v":16.40849782535965},{"$f":"IF(ISERROR(Dados!S2),\"-\",Dados!S2)","v":0.94767968192476315},{"$f":"IF(ISERROR(Dados!T2),\"-\",Dados!T2)","v":3.6244036736992595},{"$f":"IF(ISERROR(Dados!U2),\"-\",Dados!U2)","v":0.33271099999999998},{"$f":"IF(ISERROR(Dados!V2),\"-\",Dados!V2)","v":0.236371},{"$f":"IF(ISERROR(Dados!W2),\"-\",Dados!W2)","v":58.8},{"$f":"IF(ISERROR(Dados!X2),\"-\",Dados!X2)","v":175.9},{"$f":"IF(ISERROR(Dados!Y2),\"-\",Dados!Y2)","v":301.10000000000002},{"$f":"IF(ISERROR(Dados!Z2),\"-\",Dados!Z2)","v":3.4715775489870468},{"$f":"IF(ISERROR(Dados!AA2),\"-\",Dados!AA2)","v":41},{"$f":"IF(ISERROR(Dados!AB2),\"-\",Dados!AB2)","v":4.900671750615572E-2},{"$f":"IF(ISERROR(Dados!AC2),\"-\",Dados!AC2)","v":-1.9},{"$f":"IF(ISERROR(Dados!AD2),\"-\",Dados!AD2)","v":31.2},{"$f":"IF(ISERROR(Dados!AE2),\"-\",Dados!AE2)","v":"-"},{"$f":"IF(ISERROR(Dados!AF2),\"-\",Dados!AF2)","v":"AGRO3"},{"$f":"IF(ISERROR(Dados!AG2),\"-\",Dados!AG2)","v":301.10000000000002}]
[{"$f":"IF(ISERROR(Dados!A3),\"-\",Dados!A3)","v":"SLCE3"},{"$f":"IF(ISERROR(Dados!B3),\"-\",Dados!B3)","v":"Agro "},{"$f":"IF(ISERROR(Dados!C3),\"-\",Dados!C3)","v":"SLC Agricola"},{"$f":"IF(ISERROR(Dados!D3),\"-\",Dados!D3)","v":41.06},{"$f":"IF(ISERROR(Dados!E3),\"-\",Dados!E3)","v":94.08},{"$f":"IF(ISERROR(Dados!F3),\"-\",Dados!F3)","v":3862.93},{"$f":"IF(ISERROR(Dados!G3),\"-\",Dados!G3)","v":2598.17},{"$f":"IF(ISERROR(Dados!H3),\"-\",Dados!H3)","v":2219.9},{"$f":"IF(ISERROR(Dados!I3),\"-\",Dados!I3)","v":2823.47},{"$f":"IF(ISERROR(Dados!J3),\"-\",Dados!J3)","v":356.34},{"$f":"IF(ISERROR(Dados!K3),\"-\",Dados!K3)","v":154.32},{"$f":"IF(ISERROR(Dados!L3),\"-\",Dados!L3)","v":311.37},{"$f":"IF(ISERROR(Dados!M3),\"-\",Dados!M3)","v":347.16},{"$f":"IF(ISERROR(Dados!N3),\"-\",Dados!N3)","v":381.25},{"$f":"IF(ISERROR(Dados!O3),\"-\",Dados!O3)","v":356.34},{"$f":"IF(ISERROR(Dados!P3),\"-\",Dados!P3)","v":381.25},{"$f":"IF(ISERROR(Dados!Q3),\"-\",Dados!Q3)","v":4.0524022108843534},{"$f":"IF(ISERROR(Dados!R3),\"-\",Dados!R3)","v":27.616602891156464},{"$f":"IF(ISERROR(Dados!S3),\"-\",Dados!S3)","v":1.4867867768467806},{"$f":"IF(ISERROR(Dados!T3),\"-\",Dados!T3)","v":10.132261770491805},{"$f":"IF(ISERROR(Dados!U3),\"-\",Dados!U3)","v":0.150454},{"$f":"IF(ISERROR(Dados!V3),\"-\",Dados!V3)","v":0.34433599999999998},{"$f":"IF(ISERROR(Dados!W3),\"-\",Dados!W3)","v":685},{"$f":"IF(ISERROR(Dados!X3),\"-\",Dados!X3)","v":769},{"$f":"IF(ISERROR(Dados!Y3),\"-\",Dados!Y3)","v":769},{"$f":"IF(ISERROR(Dados!Z3),\"-\",Dados!Z3)","v":6.2747269180754222},{"$f":"IF(ISERROR(Dados!AA3),\"-\",Dados!AA3)","v":199.99},{"$f":"IF(ISERROR(Dados!AB3),\"-\",Dados!AB3)","v":5.1771582710533198E-2},{"$f":"IF(ISERROR(Dados!AC3),\"-\",Dados!AC3)","v":0.1},{"$f":"IF(ISERROR(Dados!AD3),\"-\",Dados!AD3)","v":61.7},{"$f":"IF(ISERROR(Dados!AE3),\"-\",Dados!AE3)","v":"-"},{"$f":"IF(ISERROR(Dados!AF3),\"-\",Dados!AF3)","v":"SLCE3"},{"$f":"IF(ISERROR(Dados!AG3),\"-\",Dados!AG3)","v":769}]
[{"$f":"IF(ISERROR(Dados!A4),\"-\",Dados!A4)","v":"BSEV3"},{"$f":"IF(ISERROR(Dados!B4),\"-\",Dados!B4)","v":"Agro "},{"$f":"IF(ISERROR(Dados!C4),\"-\",Dados!C4)","v":"Biosev"},{"$f":"IF(ISERROR(Dados!D4),\"-\",Dados!D4)","v":2.67},{"$f":"IF(ISERROR(Dados!E4),\"-\",Dados!E4)","v":1020.429},{"$f":"IF(ISERROR(Dados!F4),\"-\",Dados!F4)","v":2724.55},{"$f":"IF(ISERROR(Dados!G4),\"-\",Dados!G4)","v":624.41999999999996},{"$f":"IF(ISERROR(Dados!H4),\"-\",Dados!H4)","v":5147.72},{"$f":"IF(ISERROR(Dados!I4),\"-\",Dados!I4)","v":4959.07},{"$f":"IF(ISERROR(Dados!J4),\"-\",Dados!J4)","v":-823.16},{"$f":"IF(ISERROR(Dados!K4),\"-\",Dados!K4)","v":-1269.83},{"$f":"IF(ISERROR(Dados!L4),\"-\",Dados!L4)","v":-506.21},{"$f":"IF(ISERROR(Dados!M4),\"-\",Dados!M4)","v":-661.76},{"$f":"IF(ISERROR(Dados!N4),\"-\",Dados!N4)","v":-892.2},{"$f":"IF(ISERROR(Dados!O4),\"-\",Dados!O4)","v":-823.16},{"$f":"IF(ISERROR(Dados!P4),\"-\",Dados!P4)","v":-892.2},{"$f":"IF(ISERROR(Dados!Q4),\"-\",Dados!Q4)","v":-1.3120658076162084},{"$f":"IF(ISERROR(Dados!R4),\"-\",Dados!R4)","v":0.61191910461188381},{"$f":"IF(ISERROR(Dados!S4),\"-\",Dados!S4)","v":4.3633218506774289},{"$f":"IF(ISERROR(Dados!T4),\"-\",Dados!T4)","v":"-"},{"$f":"IF(ISERROR(Dados!U4),\"-\",Dados!U4)","v":"-"},{"$f":"IF(ISERROR(Dados!V4),\"-\",Dados!V4)","v":8.001728},{"$f":"IF(ISERROR(Dados!W4),\"-\",Dados!W4)","v":968.8},{"$f":"IF(ISERROR(Dados!X4),\"-\",Dados!X4)","v":1050.0999999999999},{"$f":"IF(ISERROR(Dados!Y4),\"-\",Dados!Y4)","v":1007.6},{"$f":"IF(ISERROR(Dados!Z4),\"-\",Dados!Z4)","v":7.7129654624851129},{"$f":"IF(ISERROR(Dados!AA4),\"-\",Dados!AA4)","v":"-"},{"$f":"IF(ISERROR(Dados!AB4),\"-\",Dados!AB4)","v":"-"},{"$f":"IF(ISERROR(Dados!AC4),\"-\",Dados!AC4)","v":-8.6},{"$f":"IF(ISERROR(Dados!AD4),\"-\",Dados!AD4)","v":-40.799999999999997},{"$f":"IF(ISERROR(Dados!AE4),\"-\",Dados!AE4)","v":0.99997158058032454},{"$f":"IF(ISERROR(Dados!AF4),\"-\",Dados!AF4)","v":"BSEV3"},{"$f":"IF(ISERROR(Dados!AG4),\"-\",Dados!AG4)","v":1007.6}]
[{"$f":"IF(ISERROR(Dados!A5),\"-\",Dados!A5)","v":"FRTA3"},{"$f":"IF(ISERROR(Dados!B5),\"-\",Dados!B5)","v":"Agro "},{"$f":"IF(ISERROR(Dados!C5),\"-\",Dados!C5)","v":"Pomifrutas"},{"$f":"IF(ISERROR(Dados!D5),\"-\",Dados!D5)","v":0.89},{"$f":"IF(ISERROR(Dados!E5),\"-\",Dados!E5)","v":12.006},{"$f":"IF(ISERROR(Dados!F5),\"-\",Dados!F5)","v":10.69},{"$f":"IF(ISERROR(Dados!G5),\"-\",Dados!G5)","v":-68.56},{"$f":"IF(ISERROR(Dados!H5),\"-\",Dados!H5)","v":44.73},{"$f":"IF(ISERROR(Dados!I5),\"-\",Dados!I5)","v":5.22},{"$f":"IF(ISERROR(Dados!J5),\"-\",Dados!J5)","v":-20.05},{"$f":"IF(ISERROR(Dados!K5),\"-\",Dados!K5)","v":-1.56},{"$f":"IF(ISERROR(Dados!L5),\"-\",Dados!L5)","v":-5.72},{"$f":"IF(ISERROR(Dados!M5),\"-\",Dados!M5)","v":-7.1},{"$f":"IF(ISERROR(Dados!N5),\"-\",Dados!N5)","v":-7.51},{"$f":"IF(ISERROR(Dados!O5),\"-\",Dados!O5)","v":-20.05},{"$f":"IF(ISERROR(Dados!P5),\"-\",Dados!P5)","v":-7.51},{"$f":"IF(ISERROR(Dados!Q5),\"-\",Dados!Q5)","v":-0.62552057304680986},{"$f":"IF(ISERROR(Dados!R5),\"-\",Dados!R5)","v":"-"},{"$f":"IF(ISERROR(Dados!S5),\"-\",Dados!S5)","v":"-"},{"$f":"IF(ISERROR(Dados!T5),\"-\",Dados!T5)","v":"-"},{"$f":"IF(ISERROR(Dados!U5),\"-\",Dados!U5)","v":"-"},{"$f":"IF(ISERROR(Dados!V5),\"-\",Dados!V5)","v":-0.69867599999999996},{"$f":"IF(ISERROR(Dados!W5),\"-\",Dados!W5)","v":-18.100000000000001},{"$f":"IF(ISERROR(Dados!X5),\"-\",Dados!X5)","v":-10.8},{"$f":"IF(ISERROR(Dados!Y5),\"-\",Dados!Y5)","v":-10.8},{"$f":"IF(ISERROR(Dados!Z5),\"-\",Dados!Z5)","v":-5.42537037037037},{"$f":"IF(ISERROR(Dados!AA5),\"-\",Dados!AA5)","v":"-"},{"$f":"IF(ISERROR(Dados!AB5),\"-\",Dados!AB5)","v":"-"},{"$f":"IF(ISERROR(Dados!AC5),\"-\",Dados!AC5)","v":-6.3},{"$f":"IF(ISERROR(Dados!AD5),\"-\",Dados!AD5)","v":-38.200000000000003},{"$f":"IF(ISERROR(Dados!AE5),\"-\",Dados!AE5)","v":0.99950024987506247},{"$f":"IF(ISERROR(Dados!AF5),\"-\",Dados!AF5)","v":"FRTA3"},{"$f":"IF(ISERROR(Dados!AG5),\"-\",Dados!AG5)","v":-10.8}]
[{"$f":"IF(ISERROR(Dados!A6),\"-\",Dados!A6)","v":"MRFG3"},{"$f":"IF(ISERROR(Dados!B6),\"-\",Dados!B6)","v":"Alimentos e Bebidas"},{"$f":"IF(ISERROR(Dados!C6),\"-\",Dados!C6)","v":"Marfrig"},{"$f":"IF(ISERROR(Dados!D6),\"-\",Dados!D6)","v":5.98},{"$f":"IF(ISERROR(Dados!E6),\"-\",Dados!E6)","v":619.14099999999996},{"$f":"IF(ISERROR(Dados!F6),\"-\",Dados!F6)","v":3702.47},{"$f":"IF(ISERROR(Dados!G6),\"-\",Dados!G6)","v":673.46},{"$f":"IF(ISERROR(Dados!H6),\"-\",Dados!H6)","v":18577.87},{"$f":"IF(ISERROR(Dados!I6),\"-\",Dados!I6)","v":29715.18},{"$f":"IF(ISERROR(Dados!J6),\"-\",Dados!J6)","v":-483.47},{"$f":"IF(ISERROR(Dados!K6),\"-\",Dados!K6)","v":-202.69},{"$f":"IF(ISERROR(Dados!L6),\"-\",Dados!L6)","v":-740.35},{"$f":"IF(ISERROR(Dados!M6),\"-\",Dados!M6)","v":-820.79},{"$f":"IF(ISERROR(Dados!N6),\"-\",Dados!N6)","v":1395.26},{"$f":"IF(ISERROR(Dados!O6),\"-\",Dados!O6)","v":-483.47},{"$f":"IF(ISERROR(Dados!P6),\"-\",Dados!P6)","v":1395.26},{"$f":"IF(ISERROR(Dados!Q6),\"-\",Dados!Q6)","v":2.2535416003785893},{"$f":"IF(ISERROR(Dados!R6),\"-\",Dados!R6)","v":1.0877328427611805},{"$f":"IF(ISERROR(Dados!S6),\"-\",Dados!S6)","v":5.4976734772666527},{"$f":"IF(ISERROR(Dados!T6),\"-\",Dados!T6)","v":2.6536008915900977},{"$f":"IF(ISERROR(Dados!U6),\"-\",Dados!U6)","v":0.81753600000000004},{"$f":"IF(ISERROR(Dados!V6),\"-\",Dados!V6)","v":2.0059430000000003},{"$f":"IF(ISERROR(Dados!W6),\"-\",Dados!W6)","v":1566.1},{"$f":"IF(ISERROR(Dados!X6),\"-\",Dados!X6)","v":1075.2},{"$f":"IF(ISERROR(Dados!Y6),\"-\",Dados!Y6)","v":1075.2},{"$f":"IF(ISERROR(Dados!Z6),\"-\",Dados!Z6)","v":10.927664620535714},{"$f":"IF(ISERROR(Dados!AA6),\"-\",Dados!AA6)","v":"-"},{"$f":"IF(ISERROR(Dados!AB6),\"-\",Dados!AB6)","v":"-"},{"$f":"IF(ISERROR(Dados!AC6),\"-\",Dados!AC6)","v":8.6999999999999993},{"$f":"IF(ISERROR(Dados!AD6),\"-\",Dados!AD6)","v":-18.3},{"$f":"IF(ISERROR(Dados!AE6),\"-\",Dados!AE6)","v":"-"},{"$f":"IF(ISERROR(Dados!AF6),\"-\",Dados!AF6)","v":"MRFG3"},{"$f":"IF(ISERROR(Dados!AG6),\"-\",Dados!AG6)","v":1075.2}]
[{"$f":"IF(ISERROR(Dados!A7),\"-\",Dados!A7)","v":"BAUH4"},{"$f":"IF(ISERROR(Dados!B7),\"-\",Dados!B7)","v":"Alimentos e Bebidas"},{"$f":"IF(ISERROR(Dados!C7),\"-\",Dados!C7)","v":"Excelsior"},{"$f":"IF(ISERROR(Dados!D7),\"-\",Dados!D7)","v":26.49},{"$f":"IF(ISERROR(Dados!E7),\"-\",Dados!E7)","v":5.2220000000000004},{"$f":"IF(ISERROR(Dados!F7),\"-\",Dados!F7)","v":138.33000000000001},{"$f":"IF(ISERROR(Dados!G7),\"-\",Dados!G7)","v":49.15},{"$f":"IF(ISERROR(Dados!H7),\"-\",Dados!H7)","v":163.05000000000001},{"$f":"IF(ISERROR(Dados!I7),\"-\",Dados!I7)","v":173.87},{"$f":"IF(ISERROR(Dados!J7),\"-\",Dados!J7)","v":9.42},{"$f":"IF(ISERROR(Dados!K7),\"-\",Dados!K7)","v":2.38},{"$f":"IF(ISERROR(Dados!L7),\"-\",Dados!L7)","v":4.05},{"$f":"IF(ISERROR(Dados!M7),\"-\",Dados!M7)","v":8.0299999999999994},{"$f":"IF(ISERROR(Dados!N7),\"-\",Dados!N7)","v":10.050000000000001},{"$f":"IF(ISERROR(Dados!O7),\"-\",Dados!O7)","v":9.42},{"$f":"IF(ISERROR(Dados!P7),\"-\",Dados!P7)","v":10.050000000000001},{"$f":"IF(ISERROR(Dados!Q7),\"-\",Dados!Q7)","v":1.9245499808502489},{"$f":"IF(ISERROR(Dados!R7),\"-\",Dados!R7)","v":9.4121026426656442},{"$f":"IF(ISERROR(Dados!S7),\"-\",Dados!S7)","v":2.8144614445574772},{"$f":"IF(ISERROR(Dados!T7),\"-\",Dados!T7)","v":13.764256716417909},{"$f":"IF(ISERROR(Dados!U7),\"-\",Dados!U7)","v":0.24229199999999998},{"$f":"IF(ISERROR(Dados!V7),\"-\",Dados!V7)","v":-0.49022300000000002},{"$f":"IF(ISERROR(Dados!W7),\"-\",Dados!W7)","v":17.100000000000001},{"$f":"IF(ISERROR(Dados!X7),\"-\",Dados!X7)","v":17.899999999999999},{"$f":"IF(ISERROR(Dados!Y7),\"-\",Dados!Y7)","v":17.899999999999999},{"$f":"IF(ISERROR(Dados!Z7),\"-\",Dados!Z7)","v":6.3819553072625705},{"$f":"IF(ISERROR(Dados!AA7),\"-\",Dados!AA7)","v":3.13},{"$f":"IF(ISERROR(Dados!AB7),\"-\",Dados!AB7)","v":2.2627051254247087E-2},{"$f":"IF(ISERROR(Dados!AC7),\"-\",Dados!AC7)","v":7.9},{"$f":"IF(ISERROR(Dados!AD7),\"-\",Dados!AD7)","v":152.9},{"$f":"IF(ISERROR(Dados!AE7),\"-\",Dados!AE7)","v":0.53619302949061654},{"$f":"IF(ISERROR(Dados!AF7),\"-\",Dados!AF7)","v":"BAUH4"},{"$f":"IF(ISERROR(Dados!AG7),\"-\",Dados!AG7)","v":17.899999999999999}]
[{"$f":"IF(ISERROR(Dados!A8),\"-\",Dados!A8)","v":"ABEV3"},{"$f":"IF(ISERROR(Dados!B8),\"-\",Dados!B8)","v":"Alimentos e Bebidas"},{"$f":"IF(ISERROR(Dados!C8),\"-\",Dados!C8)","v":"Ambev S/A"},{"$f":"IF(ISERROR(Dados!D8),\"-\",Dados!D8)","v":16.829999999999998},{"$f":"IF(ISERROR(Dados!E8),\"-\",Dados!E8)","v":15721.119000000001},{"$f":"IF(ISERROR(Dados!F8),\"-\",Dados!F8)","v":264586.43},{"$f":"IF(ISERROR(Dados!G8),\"-\",Dados!G8)","v":56340.62},{"$f":"IF(ISERROR(Dados!H8),\"-\",Dados!H8)","v":47899.28},{"$f":"IF(ISERROR(Dados!I8),\"-\",Dados!I8)","v":50231.34},{"$f":"IF(ISERROR(Dados!J8),\"-\",Dados!J8)","v":7331.97},{"$f":"IF(ISERROR(Dados!K8),\"-\",Dados!K8)","v":2515.96},{"$f":"IF(ISERROR(Dados!L8),\"-\",Dados!L8)","v":4833.1099999999997},{"$f":"IF(ISERROR(Dados!M8),\"-\",Dados!M8)","v":7664.27},{"$f":"IF(ISERROR(Dados!N8),\"-\",Dados!N8)","v":11024.68},{"$f":"IF(ISERROR(Dados!O8),\"-\",Dados!O8)","v":7331.97},{"$f":"IF(ISERROR(Dados!P8),\"-\",Dados!P8)","v":11024.68},{"$f":"IF(ISERROR(Dados!Q8),\"-\",Dados!Q8)","v":0.7012656032945237},{"$f":"IF(ISERROR(Dados!R8),\"-\",Dados!R8)","v":3.5837538027668385},{"$f":"IF(ISERROR(Dados!S8),\"-\",Dados!S8)","v":4.6961931333024021},{"$f":"IF(ISERROR(Dados!T8),\"-\",Dados!T8)","v":23.999465995384899},{"$f":"IF(ISERROR(Dados!U8),\"-\",Dados!U8)","v":0.23711400000000002},{"$f":"IF(ISERROR(Dados!V8),\"-\",Dados!V8)","v":-0.157333},{"$f":"IF(ISERROR(Dados!W8),\"-\",Dados!W8)","v":20035.8},{"$f":"IF(ISERROR(Dados!X8),\"-\",Dados!X8)","v":21013.5},{"$f":"IF(ISERROR(Dados!Y8),\"-\",Dados!Y8)","v":21013.5},{"$f":"IF(ISERROR(Dados!Z8),\"-\",Dados!Z8)","v":12.160387798320128},{"$f":"IF(ISERROR(Dados!AA8),\"-\",Dados!AA8)","v":8598.1200000000008},{"$f":"IF(ISERROR(Dados!AB8),\"-\",Dados!AB8)","v":3.2496451159645647E-2},{"$f":"IF(ISERROR(Dados!AC8),\"-\",Dados!AC8)","v":-2.2999999999999998},{"$f":"IF(ISERROR(Dados!AD8),\"-\",Dados!AD8)","v":-18.3},{"$f":"IF(ISERROR(Dados!AE8),\"-\",Dados!AE8)","v":"-"},{"$f":"IF(ISERROR(Dados!AF8),\"-\",Dados!AF8)","v":"ABEV3"},{"$f":"IF(ISERROR(Dados!AG8),\"-\",Dados!AG8)","v":21013.5}]
[{"$f":"IF(ISERROR(Dados!A9),\"-\",Dados!A9)","v":"CAML3"},{"$f":"IF(ISERROR(Dados!B9),\"-\",Dados!B9)","v":"Alimentos e Bebidas"},{"$f":"IF(ISERROR(Dados!C9),\"-\",Dados!C9)","v":"Camil"},{"$f":"IF(ISERROR(Dados!D9),\"-\",Dados!D9)","v":6.81},{"$f":"IF(ISERROR(Dados!E9),\"-\",Dados!E9)","v":404.23},{"$f":"IF(ISERROR(Dados!F9),\"-\",Dados!F9)","v":2752.81},{"$f":"IF(ISERROR(Dados!G9),\"-\",Dados!G9)","v":2091.19},{"$f":"IF(ISERROR(Dados!H9),\"-\",Dados!H9)","v":"-"},{"$f":"IF(ISERROR(Dados!I9),\"-\",Dados!I9)","v":"-"},{"$f":"IF(ISERROR(Dados!J9),\"-\",Dados!J9)","v":173.43},{"$f":"IF(ISERROR(Dados!K9),\"-\",Dados!K9)","v":250.67},{"$f":"IF(ISERROR(Dados!L9),\"-\",Dados!L9)","v":32.56},{"$f":"IF(ISERROR(Dados!M9),\"-\",Dados!M9)","v":111.63},{"$f":"IF(ISERROR(Dados!N9),\"-\",Dados!N9)","v":261.93},{"$f":"IF(ISERROR(Dados!O9),\"-\",Dados!O9)","v":"-"},{"$f":"IF(ISERROR(Dados!P9),\"-\",Dados!P9)","v":"-"},{"$f":"IF(ISERROR(Dados!Q9),\"-\",Dados!Q9)","v":0.83905202483734509},{"$f":"IF(ISERROR(Dados!R9),\"-\",Dados!R9)","v":5.1732676941345277},{"$f":"IF(ISERROR(Dados!S9),\"-\",Dados!S9)","v":1.3163826816310329},{"$f":"IF(ISERROR(Dados!T9),\"-\",Dados!T9)","v":8.116302444202022},{"$f":"IF(ISERROR(Dados!U9),\"-\",Dados!U9)","v":0.186252},{"$f":"IF(ISERROR(Dados!V9),\"-\",Dados!V9)","v":0.44219299999999995},{"$f":"IF(ISERROR(Dados!W9),\"-\",Dados!W9)","v":"-"},{"$f":"IF(ISERROR(Dados!X9),\"-\",Dados!X9)","v":"-"},{"$f":"IF(ISERROR(Dados!Y9),\"-\",Dados!Y9)","v":487.4},{"$f":"IF(ISERROR(Dados!Z9),\"-\",Dados!Z9)","v":7.5451764464505535},{"$f":"IF(ISERROR(Dados!AA9),\"-\",Dados!AA9)","v":85},{"$f":"IF(ISERROR(Dados!AB9),\"-\",Dados!AB9)","v":3.0877539677638486E-2},{"$f":"IF(ISERROR(Dados!AC9),\"-\",Dados!AC9)","v":-5.3},{"$f":"IF(ISERROR(Dados!AD9),\"-\",Dados!AD9)","v":-11},{"$f":"IF(ISERROR(Dados!AE9),\"-\",Dados!AE9)","v":"-"},{"$f":"IF(ISERROR(Dados!AF9),\"-\",Dados!AF9)","v":"CAML3"},{"$f":"IF(ISERROR(Dados!AG9),\"-\",Dados!AG9)","v":487.4}]
[{"$f":"IF(ISERROR(Dados!A10),\"-\",Dados!A10)","v":"MDIA3"},{"$f":"IF(ISERROR(Dados!B10),\"-\",Dados!B10)","v":"Alimentos e Bebidas"},{"$f":"IF(ISERROR(Dados!C10),\"-\",Dados!C10)","v":"M.Diasbranco"},{"$f":"IF(ISERROR(Dados!D10),\"-\",Dados!D10)","v":43.45},{"$f":"IF(ISERROR(Dados!E10),\"-\",Dados!E10)","v":339},{"$f":"IF(ISERROR(Dados!F10),\"-\",Dados!F10)","v":14729.55},{"$f":"IF(ISERROR(Dados!G10),\"-\",Dados!G10)","v":5561.84},{"$f":"IF(ISERROR(Dados!H10),\"-\",Dados!H10)","v":5415.42},{"$f":"IF(ISERROR(Dados!I10),\"-\",Dados!I10)","v":6025.05},{"$f":"IF(ISERROR(Dados!J10),\"-\",Dados!J10)","v":844.18},{"$f":"IF(ISERROR(Dados!K10),\"-\",Dados!K10)","v":139.78},{"$f":"IF(ISERROR(Dados!L10),\"-\",Dados!L10)","v":349.4},{"$f":"IF(ISERROR(Dados!M10),\"-\",Dados!M10)","v":583.69000000000005},{"$f":"IF(ISERROR(Dados!N10),\"-\",Dados!N10)","v":723.5},{"$f":"IF(ISERROR(Dados!O10),\"-\",Dados!O10)","v":844.18},{"$f":"IF(ISERROR(Dados!P10),\"-\",Dados!P10)","v":723.5},{"$f":"IF(ISERROR(Dados!Q10),\"-\",Dados!Q10)","v":2.1342182890855459},{"$f":"IF(ISERROR(Dados!R10),\"-\",Dados!R10)","v":16.40660766961652},{"$f":"IF(ISERROR(Dados!S10),\"-\",Dados!S10)","v":2.6483232167771815},{"$f":"IF(ISERROR(Dados!T10),\"-\",Dados!T10)","v":20.35874222529371},{"$f":"IF(ISERROR(Dados!U10),\"-\",Dados!U10)","v":0.14493400000000001},{"$f":"IF(ISERROR(Dados!V10),\"-\",Dados!V10)","v":0.14344200000000001},{"$f":"IF(ISERROR(Dados!W10),\"-\",Dados!W10)","v":966.3},{"$f":"IF(ISERROR(Dados!X10),\"-\",Dados!X10)","v":933.1},{"$f":"IF(ISERROR(Dados!Y10),\"-\",Dados!Y10)","v":933.1},{"$f":"IF(ISERROR(Dados!Z10),\"-\",Dados!Z10)","v":16.640610867002465},{"$f":"IF(ISERROR(Dados!AA10),\"-\",Dados!AA10)","v":132.37},{"$f":"IF(ISERROR(Dados!AB10),\"-\",Dados!AB10)","v":8.9866968101537398E-3},{"$f":"IF(ISERROR(Dados!AC10),\"-\",Dados!AC10)","v":-7.5},{"$f":"IF(ISERROR(Dados!AD10),\"-\",Dados!AD10)","v":-15.8},{"$f":"IF(ISERROR(Dados!AE10),\"-\",Dados!AE10)","v":1},{"$f":"IF(ISERROR(Dados!AF10),\"-\",Dados!AF10)","v":"MDIA3"},{"$f":"IF(ISERROR(Dados!AG10),\"-\",Dados!AG10)","v":933.1}]
[{"$f":"IF(ISERROR(Dados!A11),\"-\",Dados!A11)","v":"SMTO3"},{"$f":"IF(ISERROR(Dados!B11),\"-\",Dados!B11)","v":"Alimentos e Bebidas"},{"$f":"IF(ISERROR(Dados!C11),\"-\",Dados!C11)","v":"Sao Martinho"},{"$f":"IF(ISERROR(Dados!D11),\"-\",Dados!D11)","v":18.34},{"$f":"IF(ISERROR(Dados!E11),\"-\",Dados!E11)","v":350.803},{"$f":"IF(ISERROR(Dados!F11),\"-\",Dados!F11)","v":6433.72},{"$f":"IF(ISERROR(Dados!G11),\"-\",Dados!G11)","v":3344.62},{"$f":"IF(ISERROR(Dados!H11),\"-\",Dados!H11)","v":2321.36},{"$f":"IF(ISERROR(Dados!I11),\"-\",Dados!I11)","v":2236.67},{"$f":"IF(ISERROR(Dados!J11),\"-\",Dados!J11)","v":338.37},{"$f":"IF(ISERROR(Dados!K11),\"-\",Dados!K11)","v":491.71},{"$f":"IF(ISERROR(Dados!L11),\"-\",Dados!L11)","v":103.96},{"$f":"IF(ISERROR(Dados!M11),\"-\",Dados!M11)","v":162.51},{"$f":"IF(ISERROR(Dados!N11),\"-\",Dados!N11)","v":228.44},{"$f":"IF(ISERROR(Dados!O11),\"-\",Dados!O11)","v":338.37},{"$f":"IF(ISERROR(Dados!P11),\"-\",Dados!P11)","v":228.44},{"$f":"IF(ISERROR(Dados!Q11),\"-\",Dados!Q11)","v":1.0882746156674827},{"$f":"IF(ISERROR(Dados!R11),\"-\",Dados!R11)","v":9.5341830029959826},{"$f":"IF(ISERROR(Dados!S11),\"-\",Dados!S11)","v":1.9236047802141949},{"$f":"IF(ISERROR(Dados!T11),\"-\",Dados!T11)","v":16.852364041176628},{"$f":"IF(ISERROR(Dados!U11),\"-\",Dados!U11)","v":0.11311400000000001},{"$f":"IF(ISERROR(Dados!V11),\"-\",Dados!V11)","v":0.93053799999999998},{"$f":"IF(ISERROR(Dados!W11),\"-\",Dados!W11)","v":817.3},{"$f":"IF(ISERROR(Dados!X11),\"-\",Dados!X11)","v":739},{"$f":"IF(ISERROR(Dados!Y11),\"-\",Dados!Y11)","v":1616.9},{"$f":"IF(ISERROR(Dados!Z11),\"-\",Dados!Z11)","v":5.9038963448574426},{"$f":"IF(ISERROR(Dados!AA11),\"-\",Dados!AA11)","v":180},{"$f":"IF(ISERROR(Dados!AB11),\"-\",Dados!AB11)","v":2.7977593056583126E-2},{"$f":"IF(ISERROR(Dados!AC11),\"-\",Dados!AC11)","v":-2.2999999999999998},{"$f":"IF(ISERROR(Dados!AD11),\"-\",Dados!AD11)","v":-2.5},{"$f":"IF(ISERROR(Dados!AE11),\"-\",Dados!AE11)","v":"-"},{"$f":"IF(ISERROR(Dados!AF11),\"-\",Dados!AF11)","v":"SMTO3"},{"$f":"IF(ISERROR(Dados!AG11),\"-\",Dados!AG11)","v":1616.9}]
[{"$f":"IF(ISERROR(Dados!A12),\"-\",Dados!A12)","v":"JBSS3"},{"$f":"IF(ISERROR(Dados!B12),\"-\",Dados!B12)","v":"Alimentos e Bebidas"},{"$f":"IF(ISERROR(Dados!C12),\"-\",Dados!C12)","v":"JBS"},{"$f":"IF(ISERROR(Dados!D12),\"-\",Dados!D12)","v":15.92},{"$f":"IF(ISERROR(Dados!E12),\"-\",Dados!E12)","v":2663.1080000000002},{"$f":"IF(ISERROR(Dados!F12),\"-\",Dados!F12)","v":42396.68},{"$f":"IF(ISERROR(Dados!G12),\"-\",Dados!G12)","v":25647},{"$f":"IF(ISERROR(Dados!H12),\"-\",Dados!H12)","v":163169.98000000001},{"$f":"IF(ISERROR(Dados!I12),\"-\",Dados!I12)","v":181680.24},{"$f":"IF(ISERROR(Dados!J12),\"-\",Dados!J12)","v":534.20000000000005},{"$f":"IF(ISERROR(Dados!K12),\"-\",Dados!K12)","v":506.52},{"$f":"IF(ISERROR(Dados!L12),\"-\",Dados!L12)","v":-404.56},{"$f":"IF(ISERROR(Dados!M12),\"-\",Dados!M12)","v":-538.04999999999995},{"$f":"IF(ISERROR(Dados!N12),\"-\",Dados!N12)","v":25.2},{"$f":"IF(ISERROR(Dados!O12),\"-\",Dados!O12)","v":534.20000000000005},{"$f":"IF(ISERROR(Dados!P12),\"-\",Dados!P12)","v":25.2},{"$f":"IF(ISERROR(Dados!Q12),\"-\",Dados!Q12)","v":9.4626278769017243E-3},{"$f":"IF(ISERROR(Dados!R12),\"-\",Dados!R12)","v":9.6304768713848627},{"$f":"IF(ISERROR(Dados!S12),\"-\",Dados!S12)","v":1.6530853261590051},{"$f":"IF(ISERROR(Dados!T12),\"-\",Dados!T12)","v":1682.4079111111114},{"$f":"IF(ISERROR(Dados!U12),\"-\",Dados!U12)","v":8.038E-3},{"$f":"IF(ISERROR(Dados!V12),\"-\",Dados!V12)","v":1.6895939999999998},{"$f":"IF(ISERROR(Dados!W12),\"-\",Dados!W12)","v":11218.8},{"$f":"IF(ISERROR(Dados!X12),\"-\",Dados!X12)","v":11988.8},{"$f":"IF(ISERROR(Dados!Y12),\"-\",Dados!Y12)","v":11988.8},{"$f":"IF(ISERROR(Dados!Z12),\"-\",Dados!Z12)","v":7.4748456058988397},{"$f":"IF(ISERROR(Dados!AA12),\"-\",Dados!AA12)","v":126.88},{"$f":"IF(ISERROR(Dados!AB12),\"-\",Dados!AB12)","v":2.9926871632401405E-3},{"$f":"IF(ISERROR(Dados!AC12),\"-\",Dados!AC12)","v":18.5},{"$f":"IF(ISERROR(Dados!AD12),\"-\",Dados!AD12)","v":63.2},{"$f":"IF(ISERROR(Dados!AE12),\"-\",Dados!AE12)","v":"-"},{"$f":"IF(ISERROR(Dados!AF12),\"-\",Dados!AF12)","v":"JBSS3"},{"$f":"IF(ISERROR(Dados!AG12),\"-\",Dados!AG12)","v":11988.8}]
[{"$f":"IF(ISERROR(Dados!A13),\"-\",Dados!A13)","v":"BRFS3"},{"$f":"IF(ISERROR(Dados!B13),\"-\",Dados!B13)","v":"Alimentos e Bebidas"},{"$f":"IF(ISERROR(Dados!C13),\"-\",Dados!C13)","v":"BRF SA"},{"$f":"IF(ISERROR(Dados!D13),\"-\",Dados!D13)","v":22.65},{"$f":"IF(ISERROR(Dados!E13),\"-\",Dados!E13)","v":811.41600000000005},{"$f":"IF(ISERROR(Dados!F13),\"-\",Dados!F13)","v":18378.57},{"$f":"IF(ISERROR(Dados!G13),\"-\",Dados!G13)","v":6964.63},{"$f":"IF(ISERROR(Dados!H13),\"-\",Dados!H13)","v":33469.35},{"$f":"IF(ISERROR(Dados!I13),\"-\",Dados!I13)","v":30188.42},{"$f":"IF(ISERROR(Dados!J13),\"-\",Dados!J13)","v":-1125.57},{"$f":"IF(ISERROR(Dados!K13),\"-\",Dados!K13)","v":-124.32},{"$f":"IF(ISERROR(Dados!L13),\"-\",Dados!L13)","v":-1709.24},{"$f":"IF(ISERROR(Dados!M13),\"-\",Dados!M13)","v":-2351.8000000000002},{"$f":"IF(ISERROR(Dados!N13),\"-\",Dados!N13)","v":-4448.0600000000004},{"$f":"IF(ISERROR(Dados!O13),\"-\",Dados!O13)","v":-1125.57},{"$f":"IF(ISERROR(Dados!P13),\"-\",Dados!P13)","v":-4448.0600000000004},{"$f":"IF(ISERROR(Dados!Q13),\"-\",Dados!Q13)","v":-5.4818490145621972},{"$f":"IF(ISERROR(Dados!R13),\"-\",Dados!R13)","v":8.5833037554102951},{"$f":"IF(ISERROR(Dados!S13),\"-\",Dados!S13)","v":2.6388440448379882},{"$f":"IF(ISERROR(Dados!T13),\"-\",Dados!T13)","v":"-"},{"$f":"IF(ISERROR(Dados!U13),\"-\",Dados!U13)","v":-0.38131399999999999},{"$f":"IF(ISERROR(Dados!V13),\"-\",Dados!V13)","v":2.229069},{"$f":"IF(ISERROR(Dados!W13),\"-\",Dados!W13)","v":2654.1},{"$f":"IF(ISERROR(Dados!X13),\"-\",Dados!X13)","v":1540.9},{"$f":"IF(ISERROR(Dados!Y13),\"-\",Dados!Y13)","v":1540.9},{"$f":"IF(ISERROR(Dados!Z13),\"-\",Dados!Z13)","v":22.822647154260498},{"$f":"IF(ISERROR(Dados!AA13),\"-\",Dados!AA13)","v":"-"},{"$f":"IF(ISERROR(Dados!AB13),\"-\",Dados!AB13)","v":"-"},{"$f":"IF(ISERROR(Dados!AC13),\"-\",Dados!AC13)","v":10.1},{"$f":"IF(ISERROR(Dados!AD13),\"-\",Dados!AD13)","v":-38.1},{"$f":"IF(ISERROR(Dados!AE13),\"-\",Dados!AE13)","v":"-"},{"$f":"IF(ISERROR(Dados!AF13),\"-\",Dados!AF13)","v":"BRFS3"},{"$f":"IF(ISERROR(Dados!AG13),\"-\",Dados!AG13)","v":1540.9}]
[{"$f":"IF(ISERROR(Dados!A14),\"-\",Dados!A14)","v":"BEEF3"},{"$f":"IF(ISERROR(Dados!B14),\"-\",Dados!B14)","v":"Alimentos e Bebidas"},{"$f":"IF(ISERROR(Dados!C14),\"-\",Dados!C14)","v":"Minerva"},{"$f":"IF(ISERROR(Dados!D14),\"-\",Dados!D14)","v":7.03},{"$f":"IF(ISERROR(Dados!E14),\"-\",Dados!E14)","v":373.137},{"$f":"IF(ISERROR(Dados!F14),\"-\",Dados!F14)","v":2623.15},{"$f":"IF(ISERROR(Dados!G14),\"-\",Dados!G14)","v":-301.11},{"$f":"IF(ISERROR(Dados!H14),\"-\",Dados!H14)","v":12103.79},{"$f":"IF(ISERROR(Dados!I14),\"-\",Dados!I14)","v":16214.91},{"$f":"IF(ISERROR(Dados!J14),\"-\",Dados!J14)","v":-281.02},{"$f":"IF(ISERROR(Dados!K14),\"-\",Dados!K14)","v":-114.72},{"$f":"IF(ISERROR(Dados!L14),\"-\",Dados!L14)","v":-1040.7},{"$f":"IF(ISERROR(Dados!M14),\"-\",Dados!M14)","v":-1172.72},{"$f":"IF(ISERROR(Dados!N14),\"-\",Dados!N14)","v":-1264.78},{"$f":"IF(ISERROR(Dados!O14),\"-\",Dados!O14)","v":-281.02},{"$f":"IF(ISERROR(Dados!P14),\"-\",Dados!P14)","v":-1264.78},{"$f":"IF(ISERROR(Dados!Q14),\"-\",Dados!Q14)","v":-3.389586130563305},{"$f":"IF(ISERROR(Dados!R14),\"-\",Dados!R14)","v":"-"},{"$f":"IF(ISERROR(Dados!S14),\"-\",Dados!S14)","v":"-"},{"$f":"IF(ISERROR(Dados!T14),\"-\",Dados!T14)","v":"-"},{"$f":"IF(ISERROR(Dados!U14),\"-\",Dados!U14)","v":-17.794532999999998},{"$f":"IF(ISERROR(Dados!V14),\"-\",Dados!V14)","v":-20.160433999999999},{"$f":"IF(ISERROR(Dados!W14),\"-\",Dados!W14)","v":1134.5999999999999},{"$f":"IF(ISERROR(Dados!X14),\"-\",Dados!X14)","v":896.2},{"$f":"IF(ISERROR(Dados!Y14),\"-\",Dados!Y14)","v":896.2},{"$f":"IF(ISERROR(Dados!Z14),\"-\",Dados!Z14)","v":9.7006683775942868},{"$f":"IF(ISERROR(Dados!AA14),\"-\",Dados!AA14)","v":"-"},{"$f":"IF(ISERROR(Dados!AB14),\"-\",Dados!AB14)","v":"-"},{"$f":"IF(ISERROR(Dados!AC14),\"-\",Dados!AC14)","v":10.199999999999999},{"$f":"IF(ISERROR(Dados!AD14),\"-\",Dados!AD14)","v":-34},{"$f":"IF(ISERROR(Dados!AE14),\"-\",Dados!AE14)","v":"-"},{"$f":"IF(ISERROR(Dados!AF14),\"-\",Dados!AF14)","v":"BEEF3"},{"$f":"IF(ISERROR(Dados!AG14),\"-\",Dados!AG14)","v":896.2}]
[{"$f":"IF(ISERROR(Dados!A15),\"-\",Dados!A15)","v":"JBDU4"},{"$f":"IF(ISERROR(Dados!B15),\"-\",Dados!B15)","v":"Alimentos e Bebidas"},{"$f":"IF(ISERROR(Dados!C15),\"-\",Dados!C15)","v":"J B Duarte"},{"$f":"IF(ISERROR(Dados!D15),\"-\",Dados!D15)","v":6.8},{"$f":"IF(ISERROR(Dados!E15),\"-\",Dados!E15)","v":0.13600000000000001},{"$f":"IF(ISERROR(Dados!F15),\"-\",Dados!F15)","v":0.93},{"$f":"IF(ISERROR(Dados!G15),\"-\",Dados!G15)","v":25.77},{"$f":"IF(ISERROR(Dados!H15),\"-\",Dados!H15)","v":"-"},{"$f":"IF(ISERROR(Dados!I15),\"-\",Dados!I15)","v":"-"},{"$f":"IF(ISERROR(Dados!J15),\"-\",Dados!J15)","v":-1.44},{"$f":"IF(ISERROR(Dados!K15),\"-\",Dados!K15)","v":33.520000000000003},{"$f":"IF(ISERROR(Dados!L15),\"-\",Dados!L15)","v":27.9},{"$f":"IF(ISERROR(Dados!M15),\"-\",Dados!M15)","v":"-"},{"$f":"IF(ISERROR(Dados!N15),\"-\",Dados!N15)","v":"-"},{"$f":"IF(ISERROR(Dados!O15),\"-\",Dados!O15)","v":-1.44},{"$f":"IF(ISERROR(Dados!P15),\"-\",Dados!P15)","v":"-"},{"$f":"IF(ISERROR(Dados!Q15),\"-\",Dados!Q15)","v":202.86764705882351},{"$f":"IF(ISERROR(Dados!R15),\"-\",Dados!R15)","v":189.48529411764704},{"$f":"IF(ISERROR(Dados!S15),\"-\",Dados!S15)","v":3.5886689949553748E-2},{"$f":"IF(ISERROR(Dados!T15),\"-\",Dados!T15)","v":3.3519391083725987E-2},{"$f":"IF(ISERROR(Dados!U15),\"-\",Dados!U15)","v":"-"},{"$f":"IF(ISERROR(Dados!V15),\"-\",Dados!V15)","v":0.20507500000000001},{"$f":"IF(ISERROR(Dados!W15),\"-\",Dados!W15)","v":"-"},{"$f":"IF(ISERROR(Dados!X15),\"-\",Dados!X15)","v":"-"},{"$f":"IF(ISERROR(Dados!Y15),\"-\",Dados!Y15)","v":"-"},{"$f":"IF(ISERROR(Dados!Z15),\"-\",Dados!Z15)","v":"-"},{"$f":"IF(ISERROR(Dados!AA15),\"-\",Dados!AA15)","v":"-"},{"$f":"IF(ISERROR(Dados!AB15),\"-\",Dados!AB15)","v":"-"},{"$f":"IF(ISERROR(Dados!AC15),\"-\",Dados!AC15)","v":-8.4},{"$f":"IF(ISERROR(Dados!AD15),\"-\",Dados!AD15)","v":-77.599999999999994},{"$f":"IF(ISERROR(Dados!AE15),\"-\",Dados!AE15)","v":"-"},{"$f":"IF(ISERROR(Dados!AF15),\"-\",Dados!AF15)","v":"JBDU4"},{"$f":"IF(ISERROR(Dados!AG15),\"-\",Dados!AG15)","v":"-"}]
[{"$f":"IF(ISERROR(Dados!A16),\"-\",Dados!A16)","v":"MNPR3"},{"$f":"IF(ISERROR(Dados!B16),\"-\",Dados!B16)","v":"Alimentos e Bebidas"},{"$f":"IF(ISERROR(Dados!C16),\"-\",Dados!C16)","v":"Minupar"},{"$f":"IF(ISERROR(Dados!D16),\"-\",Dados!D16)","v":2.1},{"$f":"IF(ISERROR(Dados!E16),\"-\",Dados!E16)","v":7.1},{"$f":"IF(ISERROR(Dados!F16),\"-\",Dados!F16)","v":14.91},{"$f":"IF(ISERROR(Dados!G16),\"-\",Dados!G16)","v":-359.63},{"$f":"IF(ISERROR(Dados!H16),\"-\",Dados!H16)","v":190.42},{"$f":"IF(ISERROR(Dados!I16),\"-\",Dados!I16)","v":199.56},{"$f":"IF(ISERROR(Dados!J16),\"-\",Dados!J16)","v":-25.34},{"$f":"IF(ISERROR(Dados!K16),\"-\",Dados!K16)","v":-1.69},{"$f":"IF(ISERROR(Dados!L16),\"-\",Dados!L16)","v":-8.0399999999999991},{"$f":"IF(ISERROR(Dados!M16),\"-\",Dados!M16)","v":-5.83},{"$f":"IF(ISERROR(Dados!N16),\"-\",Dados!N16)","v":-66.97},{"$f":"IF(ISERROR(Dados!O16),\"-\",Dados!O16)","v":-25.34},{"$f":"IF(ISERROR(Dados!P16),\"-\",Dados!P16)","v":-66.97},{"$f":"IF(ISERROR(Dados!Q16),\"-\",Dados!Q16)","v":-9.4323943661971832},{"$f":"IF(ISERROR(Dados!R16),\"-\",Dados!R16)","v":"-"},{"$f":"IF(ISERROR(Dados!S16),\"-\",Dados!S16)","v":"-"},{"$f":"IF(ISERROR(Dados!T16),\"-\",Dados!T16)","v":"-"},{"$f":"IF(ISERROR(Dados!U16),\"-\",Dados!U16)","v":"-"},{"$f":"IF(ISERROR(Dados!V16),\"-\",Dados!V16)","v":-1.258E-3},{"$f":"IF(ISERROR(Dados!W16),\"-\",Dados!W16)","v":11.6},{"$f":"IF(ISERROR(Dados!X16),\"-\",Dados!X16)","v":"-"},{"$f":"IF(ISERROR(Dados!Y16),\"-\",Dados!Y16)","v":"-"},{"$f":"IF(ISERROR(Dados!Z16),\"-\",Dados!Z16)","v":"-"},{"$f":"IF(ISERROR(Dados!AA16),\"-\",Dados!AA16)","v":"-"},{"$f":"IF(ISERROR(Dados!AB16),\"-\",Dados!AB16)","v":"-"},{"$f":"IF(ISERROR(Dados!AC16),\"-\",Dados!AC16)","v":-6.7},{"$f":"IF(ISERROR(Dados!AD16),\"-\",Dados!AD16)","v":-26.3},{"$f":"IF(ISERROR(Dados!AE16),\"-\",Dados!AE16)","v":1},{"$f":"IF(ISERROR(Dados!AF16),\"-\",Dados!AF16)","v":"MNPR3"},{"$f":"IF(ISERROR(Dados!AG16),\"-\",Dados!AG16)","v":"-"}]
[{"$f":"IF(ISERROR(Dados!A17),\"-\",Dados!A17)","v":"NATU3"},{"$f":"IF(ISERROR(Dados!B17),\"-\",Dados!B17)","v":"Comércio"},{"$f":"IF(ISERROR(Dados!C17),\"-\",Dados!C17)","v":"Natura"},{"$f":"IF(ISERROR(Dados!D17),\"-\",Dados!D17)","v":45.39},{"$f":"IF(ISERROR(Dados!E17),\"-\",Dados!E17)","v":430.72699999999998},{"$f":"IF(ISERROR(Dados!F17),\"-\",Dados!F17)","v":19550.7},{"$f":"IF(ISERROR(Dados!G17),\"-\",Dados!G17)","v":2574.1},{"$f":"IF(ISERROR(Dados!H17),\"-\",Dados!H17)","v":9852.7099999999991},{"$f":"IF(ISERROR(Dados!I17),\"-\",Dados!I17)","v":13397.42},{"$f":"IF(ISERROR(Dados!J17),\"-\",Dados!J17)","v":670.25},{"$f":"IF(ISERROR(Dados!K17),\"-\",Dados!K17)","v":24.39},{"$f":"IF(ISERROR(Dados!L17),\"-\",Dados!L17)","v":56.19},{"$f":"IF(ISERROR(Dados!M17),\"-\",Dados!M17)","v":166.75},{"$f":"IF(ISERROR(Dados!N17),\"-\",Dados!N17)","v":548.38},{"$f":"IF(ISERROR(Dados!O17),\"-\",Dados!O17)","v":670.25},{"$f":"IF(ISERROR(Dados!P17),\"-\",Dados!P17)","v":548.38},{"$f":"IF(ISERROR(Dados!Q17),\"-\",Dados!Q17)","v":1.273149814151423},{"$f":"IF(ISERROR(Dados!R17),\"-\",Dados!R17)","v":5.9761751643152161},{"$f":"IF(ISERROR(Dados!S17),\"-\",Dados!S17)","v":7.5951589021405539},{"$f":"IF(ISERROR(Dados!T17),\"-\",Dados!T17)","v":35.651735165396261},{"$f":"IF(ISERROR(Dados!U17),\"-\",Dados!U17)","v":0.33545200000000003},{"$f":"IF(ISERROR(Dados!V17),\"-\",Dados!V17)","v":2.3347769999999999},{"$f":"IF(ISERROR(Dados!W17),\"-\",Dados!W17)","v":1742},{"$f":"IF(ISERROR(Dados!X17),\"-\",Dados!X17)","v":1846.6},{"$f":"IF(ISERROR(Dados!Y17),\"-\",Dados!Y17)","v":1846.6},{"$f":"IF(ISERROR(Dados!Z17),\"-\",Dados!Z17)","v":13.84200963933716},{"$f":"IF(ISERROR(Dados!AA17),\"-\",Dados!AA17)","v":201.65},{"$f":"IF(ISERROR(Dados!AB17),\"-\",Dados!AB17)","v":1.0314208698409776E-2},{"$f":"IF(ISERROR(Dados!AC17),\"-\",Dados!AC17)","v":-6.2},{"$f":"IF(ISERROR(Dados!AD17),\"-\",Dados!AD17)","v":39.799999999999997},{"$f":"IF(ISERROR(Dados!AE17),\"-\",Dados!AE17)","v":"-"},{"$f":"IF(ISERROR(Dados!AF17),\"-\",Dados!AF17)","v":"NATU3"},{"$f":"IF(ISERROR(Dados!AG17),\"-\",Dados!AG17)","v":1846.6}]
[{"$f":"IF(ISERROR(Dados!A18),\"-\",Dados!A18)","v":"LREN3"},{"$f":"IF(ISERROR(Dados!B18),\"-\",Dados!B18)","v":"Comércio"},{"$f":"IF(ISERROR(Dados!C18),\"-\",Dados!C18)","v":"Lojas Renner"},{"$f":"IF(ISERROR(Dados!D18),\"-\",Dados!D18)","v":43.8},{"$f":"IF(ISERROR(Dados!E18),\"-\",Dados!E18)","v":717.93899999999996},{"$f":"IF(ISERROR(Dados!F18),\"-\",Dados!F18)","v":31445.73},{"$f":"IF(ISERROR(Dados!G18),\"-\",Dados!G18)","v":3954.51},{"$f":"IF(ISERROR(Dados!H18),\"-\",Dados!H18)","v":7444.31},{"$f":"IF(ISERROR(Dados!I18),\"-\",Dados!I18)","v":8426.5400000000009},{"$f":"IF(ISERROR(Dados!J18),\"-\",Dados!J18)","v":732.68},{"$f":"IF(ISERROR(Dados!K18),\"-\",Dados!K18)","v":111.44},{"$f":"IF(ISERROR(Dados!L18),\"-\",Dados!L18)","v":386.15},{"$f":"IF(ISERROR(Dados!M18),\"-\",Dados!M18)","v":580.36},{"$f":"IF(ISERROR(Dados!N18),\"-\",Dados!N18)","v":1020.14},{"$f":"IF(ISERROR(Dados!O18),\"-\",Dados!O18)","v":732.68},{"$f":"IF(ISERROR(Dados!P18),\"-\",Dados!P18)","v":1020.14},{"$f":"IF(ISERROR(Dados!Q18),\"-\",Dados!Q18)","v":1.4209285189967393},{"$f":"IF(ISERROR(Dados!R18),\"-\",Dados!R18)","v":5.5081420566371246},{"$f":"IF(ISERROR(Dados!S18),\"-\",Dados!S18)","v":7.951864630510479},{"$f":"IF(ISERROR(Dados!T18),\"-\",Dados!T18)","v":30.824914423510496},{"$f":"IF(ISERROR(Dados!U18),\"-\",Dados!U18)","v":0.31647400000000003},{"$f":"IF(ISERROR(Dados!V18),\"-\",Dados!V18)","v":0.13635700000000001},{"$f":"IF(ISERROR(Dados!W18),\"-\",Dados!W18)","v":1416.3},{"$f":"IF(ISERROR(Dados!X18),\"-\",Dados!X18)","v":1738.4},{"$f":"IF(ISERROR(Dados!Y18),\"-\",Dados!Y18)","v":1738.4},{"$f":"IF(ISERROR(Dados!Z18),\"-\",Dados!Z18)","v":18.399076161988035},{"$f":"IF(ISERROR(Dados!AA18),\"-\",Dados!AA18)","v":287.64999999999998},{"$f":"IF(ISERROR(Dados!AB18),\"-\",Dados!AB18)","v":9.1475058775865592E-3},{"$f":"IF(ISERROR(Dados!AC18),\"-\",Dados!AC18)","v":1.4},{"$f":"IF(ISERROR(Dados!AD18),\"-\",Dados!AD18)","v":25.4},{"$f":"IF(ISERROR(Dados!AE18),\"-\",Dados!AE18)","v":"-"},{"$f":"IF(ISERROR(Dados!AF18),\"-\",Dados!AF18)","v":"LREN3"},{"$f":"IF(ISERROR(Dados!AG18),\"-\",Dados!AG18)","v":1738.4}]
[{"$f":"IF(ISERROR(Dados!A19),\"-\",Dados!A19)","v":"MGLU3"},{"$f":"IF(ISERROR(Dados!B19),\"-\",Dados!B19)","v":"Comércio"},{"$f":"IF(ISERROR(Dados!C19),\"-\",Dados!C19)","v":"Magaz Luiza"},{"$f":"IF(ISERROR(Dados!D19),\"-\",Dados!D19)","v":172.85},{"$f":"IF(ISERROR(Dados!E19),\"-\",Dados!E19)","v":188.964},{"$f":"IF(ISERROR(Dados!F19),\"-\",Dados!F19)","v":32662.46},{"$f":"IF(ISERROR(Dados!G19),\"-\",Dados!G19)","v":2302.87},{"$f":"IF(ISERROR(Dados!H19),\"-\",Dados!H19)","v":11984.25},{"$f":"IF(ISERROR(Dados!I19),\"-\",Dados!I19)","v":15590.44},{"$f":"IF(ISERROR(Dados!J19),\"-\",Dados!J19)","v":389.02},{"$f":"IF(ISERROR(Dados!K19),\"-\",Dados!K19)","v":147.47999999999999},{"$f":"IF(ISERROR(Dados!L19),\"-\",Dados!L19)","v":288.23},{"$f":"IF(ISERROR(Dados!M19),\"-\",Dados!M19)","v":407.79},{"$f":"IF(ISERROR(Dados!N19),\"-\",Dados!N19)","v":597.42999999999995},{"$f":"IF(ISERROR(Dados!O19),\"-\",Dados!O19)","v":389.02},{"$f":"IF(ISERROR(Dados!P19),\"-\",Dados!P19)","v":597.42999999999995},{"$f":"IF(ISERROR(Dados!Q19),\"-\",Dados!Q19)","v":3.1616075019580445},{"$f":"IF(ISERROR(Dados!R19),\"-\",Dados!R19)","v":12.186818653288457},{"$f":"IF(ISERROR(Dados!S19),\"-\",Dados!S19)","v":14.183357028403687},{"$f":"IF(ISERROR(Dados!T19),\"-\",Dados!T19)","v":54.671555496041385},{"$f":"IF(ISERROR(Dados!U19),\"-\",Dados!U19)","v":0.28805999999999998},{"$f":"IF(ISERROR(Dados!V19),\"-\",Dados!V19)","v":-0.23980100000000001},{"$f":"IF(ISERROR(Dados!W19),\"-\",Dados!W19)","v":1030.8},{"$f":"IF(ISERROR(Dados!X19),\"-\",Dados!X19)","v":1245.2},{"$f":"IF(ISERROR(Dados!Y19),\"-\",Dados!Y19)","v":1245.2},{"$f":"IF(ISERROR(Dados!Z19),\"-\",Dados!Z19)","v":25.787206071313843},{"$f":"IF(ISERROR(Dados!AA19),\"-\",Dados!AA19)","v":114.27},{"$f":"IF(ISERROR(Dados!AB19),\"-\",Dados!AB19)","v":3.498511747124987E-3},{"$f":"IF(ISERROR(Dados!AC19),\"-\",Dados!AC19)","v":-0.4},{"$f":"IF(ISERROR(Dados!AD19),\"-\",Dados!AD19)","v":116.8},{"$f":"IF(ISERROR(Dados!AE19),\"-\",Dados!AE19)","v":"-"},{"$f":"IF(ISERROR(Dados!AF19),\"-\",Dados!AF19)","v":"MGLU3"},{"$f":"IF(ISERROR(Dados!AG19),\"-\",Dados!AG19)","v":1245.2}]
[{"$f":"IF(ISERROR(Dados!A20),\"-\",Dados!A20)","v":"PNVL3"},{"$f":"IF(ISERROR(Dados!B20),\"-\",Dados!B20)","v":"Comércio"},{"$f":"IF(ISERROR(Dados!C20),\"-\",Dados!C20)","v":"Dimed"},{"$f":"IF(ISERROR(Dados!D20),\"-\",Dados!D20)","v":391.99},{"$f":"IF(ISERROR(Dados!E20),\"-\",Dados!E20)","v":4.516},{"$f":"IF(ISERROR(Dados!F20),\"-\",Dados!F20)","v":1704.16},{"$f":"IF(ISERROR(Dados!G20),\"-\",Dados!G20)","v":463.91},{"$f":"IF(ISERROR(Dados!H20),\"-\",Dados!H20)","v":2258.25},{"$f":"IF(ISERROR(Dados!I20),\"-\",Dados!I20)","v":2432.25},{"$f":"IF(ISERROR(Dados!J20),\"-\",Dados!J20)","v":59.8},{"$f":"IF(ISERROR(Dados!K20),\"-\",Dados!K20)","v":12.65},{"$f":"IF(ISERROR(Dados!L20),\"-\",Dados!L20)","v":28.35},{"$f":"IF(ISERROR(Dados!M20),\"-\",Dados!M20)","v":49.15},{"$f":"IF(ISERROR(Dados!N20),\"-\",Dados!N20)","v":74.98},{"$f":"IF(ISERROR(Dados!O20),\"-\",Dados!O20)","v":59.8},{"$f":"IF(ISERROR(Dados!P20),\"-\",Dados!P20)","v":74.98},{"$f":"IF(ISERROR(Dados!Q20),\"-\",Dados!Q20)","v":16.603188662533217},{"$f":"IF(ISERROR(Dados!R20),\"-\",Dados!R20)","v":102.72586359610276},{"$f":"IF(ISERROR(Dados!S20),\"-\",Dados!S20)","v":3.8158842016770493},{"$f":"IF(ISERROR(Dados!T20),\"-\",Dados!T20)","v":23.609320352093889},{"$f":"IF(ISERROR(Dados!U20),\"-\",Dados!U20)","v":0.175706},{"$f":"IF(ISERROR(Dados!V20),\"-\",Dados!V20)","v":0.21923999999999999},{"$f":"IF(ISERROR(Dados!W20),\"-\",Dados!W20)","v":117.9},{"$f":"IF(ISERROR(Dados!X20),\"-\",Dados!X20)","v":139.69999999999999},{"$f":"IF(ISERROR(Dados!Y20),\"-\",Dados!Y20)","v":139.69999999999999},{"$f":"IF(ISERROR(Dados!Z20),\"-\",Dados!Z20)","v":12.92675733715104},{"$f":"IF(ISERROR(Dados!AA20),\"-\",Dados!AA20)","v":17.89},{"$f":"IF(ISERROR(Dados!AB20),\"-\",Dados!AB20)","v":1.0497840578349451E-2},{"$f":"IF(ISERROR(Dados!AC20),\"-\",Dados!AC20)","v":4.8},{"$f":"IF(ISERROR(Dados!AD20),\"-\",Dados!AD20)","v":-0.1},{"$f":"IF(ISERROR(Dados!AE20),\"-\",Dados!AE20)","v":0.90788308237378201},{"$f":"IF(ISERROR(Dados!AF20),\"-\",Dados!AF20)","v":"PNVL3"},{"$f":"IF(ISERROR(Dados!AG20),\"-\",Dados!AG20)","v":139.69999999999999}]
[{"$f":"IF(ISERROR(Dados!A21),\"-\",Dados!A21)","v":"RADL3"},{"$f":"IF(ISERROR(Dados!B21),\"-\",Dados!B21)","v":"Comércio"},{"$f":"IF(ISERROR(Dados!C21),\"-\",Dados!C21)","v":"RaiaDrogasil"},{"$f":"IF(ISERROR(Dados!D21),\"-\",Dados!D21)","v":65.3},{"$f":"IF(ISERROR(Dados!E21),\"-\",Dados!E21)","v":329.339},{"$f":"IF(ISERROR(Dados!F21),\"-\",Dados!F21)","v":21505.86},{"$f":"IF(ISERROR(Dados!G21),\"-\",Dados!G21)","v":3499.86},{"$f":"IF(ISERROR(Dados!H21),\"-\",Dados!H21)","v":13212.51},{"$f":"IF(ISERROR(Dados!I21),\"-\",Dados!I21)","v":14801.45},{"$f":"IF(ISERROR(Dados!J21),\"-\",Dados!J21)","v":511.16},{"$f":"IF(ISERROR(Dados!K21),\"-\",Dados!K21)","v":120.95},{"$f":"IF(ISERROR(Dados!L21),\"-\",Dados!L21)","v":257.41000000000003},{"$f":"IF(ISERROR(Dados!M21),\"-\",Dados!M21)","v":385.36},{"$f":"IF(ISERROR(Dados!N21),\"-\",Dados!N21)","v":502.45},{"$f":"IF(ISERROR(Dados!O21),\"-\",Dados!O21)","v":511.16},{"$f":"IF(ISERROR(Dados!P21),\"-\",Dados!P21)","v":502.45},{"$f":"IF(ISERROR(Dados!Q21),\"-\",Dados!Q21)","v":1.5256316439899313},{"$f":"IF(ISERROR(Dados!R21),\"-\",Dados!R21)","v":10.626922411254057},{"$f":"IF(ISERROR(Dados!S21),\"-\",Dados!S21)","v":6.1447705622510611},{"$f":"IF(ISERROR(Dados!T21),\"-\",Dados!T21)","v":42.801943875012441},{"$f":"IF(ISERROR(Dados!U21),\"-\",Dados!U21)","v":0.156694},{"$f":"IF(ISERROR(Dados!V21),\"-\",Dados!V21)","v":0.17018999999999998},{"$f":"IF(ISERROR(Dados!W21),\"-\",Dados!W21)","v":1130.7},{"$f":"IF(ISERROR(Dados!X21),\"-\",Dados!X21)","v":1137.3},{"$f":"IF(ISERROR(Dados!Y21),\"-\",Dados!Y21)","v":1137.3},{"$f":"IF(ISERROR(Dados!Z21),\"-\",Dados!Z21)","v":19.438531609953397},{"$f":"IF(ISERROR(Dados!AA21),\"-\",Dados!AA21)","v":173.62},{"$f":"IF(ISERROR(Dados!AB21),\"-\",Dados!AB21)","v":8.0731484348916995E-3},{"$f":"IF(ISERROR(Dados!AC21),\"-\",Dados!AC21)","v":0.1},{"$f":"IF(ISERROR(Dados!AD21),\"-\",Dados!AD21)","v":-28},{"$f":"IF(ISERROR(Dados!AE21),\"-\",Dados!AE21)","v":"-"},{"$f":"IF(ISERROR(Dados!AF21),\"-\",Dados!AF21)","v":"RADL3"},{"$f":"IF(ISERROR(Dados!AG21),\"-\",Dados!AG21)","v":1137.3}]
[{"$f":"IF(ISERROR(Dados!A22),\"-\",Dados!A22)","v":"CRFB3"},{"$f":"IF(ISERROR(Dados!B22),\"-\",Dados!B22)","v":"Comércio"},{"$f":"IF(ISERROR(Dados!C22),\"-\",Dados!C22)","v":"Carrefour BR"},{"$f":"IF(ISERROR(Dados!D22),\"-\",Dados!D22)","v":20.09},{"$f":"IF(ISERROR(Dados!E22),\"-\",Dados!E22)","v":1983.4380000000001},{"$f":"IF(ISERROR(Dados!F22),\"-\",Dados!F22)","v":39847.269999999997},{"$f":"IF(ISERROR(Dados!G22),\"-\",Dados!G22)","v":13033},{"$f":"IF(ISERROR(Dados!H22),\"-\",Dados!H22)","v":50280},{"$f":"IF(ISERROR(Dados!I22),\"-\",Dados!I22)","v":54267},{"$f":"IF(ISERROR(Dados!J22),\"-\",Dados!J22)","v":1599},{"$f":"IF(ISERROR(Dados!K22),\"-\",Dados!K22)","v":280},{"$f":"IF(ISERROR(Dados!L22),\"-\",Dados!L22)","v":669},{"$f":"IF(ISERROR(Dados!M22),\"-\",Dados!M22)","v":1024},{"$f":"IF(ISERROR(Dados!N22),\"-\",Dados!N22)","v":1660},{"$f":"IF(ISERROR(Dados!O22),\"-\",Dados!O22)","v":1599},{"$f":"IF(ISERROR(Dados!P22),\"-\",Dados!P22)","v":1660},{"$f":"IF(ISERROR(Dados!Q22),\"-\",Dados!Q22)","v":0.83693062248479655},{"$f":"IF(ISERROR(Dados!R22),\"-\",Dados!R22)","v":6.5709137366532246},{"$f":"IF(ISERROR(Dados!S22),\"-\",Dados!S22)","v":3.0574134443336152},{"$f":"IF(ISERROR(Dados!T22),\"-\",Dados!T22)","v":24.004379168674699},{"$f":"IF(ISERROR(Dados!U22),\"-\",Dados!U22)","v":0.14178100000000002},{"$f":"IF(ISERROR(Dados!V22),\"-\",Dados!V22)","v":-0.21499300000000002},{"$f":"IF(ISERROR(Dados!W22),\"-\",Dados!W22)","v":3785},{"$f":"IF(ISERROR(Dados!X22),\"-\",Dados!X22)","v":3891},{"$f":"IF(ISERROR(Dados!Y22),\"-\",Dados!Y22)","v":3891},{"$f":"IF(ISERROR(Dados!Z22),\"-\",Dados!Z22)","v":9.4647314315086088},{"$f":"IF(ISERROR(Dados!AA22),\"-\",Dados!AA22)","v":697},{"$f":"IF(ISERROR(Dados!AB22),\"-\",Dados!AB22)","v":1.749178801960586E-2},{"$f":"IF(ISERROR(Dados!AC22),\"-\",Dados!AC22)","v":2.9},{"$f":"IF(ISERROR(Dados!AD22),\"-\",Dados!AD22)","v":34.799999999999997},{"$f":"IF(ISERROR(Dados!AE22),\"-\",Dados!AE22)","v":0.99998084134719611},{"$f":"IF(ISERROR(Dados!AF22),\"-\",Dados!AF22)","v":"CRFB3"},{"$f":"IF(ISERROR(Dados!AG22),\"-\",Dados!AG22)","v":3891}]
[{"$f":"IF(ISERROR(Dados!A23),\"-\",Dados!A23)","v":"CGRA4"},{"$f":"IF(ISERROR(Dados!B23),\"-\",Dados!B23)","v":"Comércio"},{"$f":"IF(ISERROR(Dados!C23),\"-\",Dados!C23)","v":"Grazziotin"},{"$f":"IF(ISERROR(Dados!D23),\"-\",Dados!D23)","v":24.08},{"$f":"IF(ISERROR(Dados!E23),\"-\",Dados!E23)","v":20.056999999999999},{"$f":"IF(ISERROR(Dados!F23),\"-\",Dados!F23)","v":483.54},{"$f":"IF(ISERROR(Dados!G23),\"-\",Dados!G23)","v":497.95},{"$f":"IF(ISERROR(Dados!H23),\"-\",Dados!H23)","v":428.28},{"$f":"IF(ISERROR(Dados!I23),\"-\",Dados!I23)","v":463.17},{"$f":"IF(ISERROR(Dados!J23),\"-\",Dados!J23)","v":61.4},{"$f":"IF(ISERROR(Dados!K23),\"-\",Dados!K23)","v":4.76},{"$f":"IF(ISERROR(Dados!L23),\"-\",Dados!L23)","v":22.57},{"$f":"IF(ISERROR(Dados!M23),\"-\",Dados!M23)","v":32.29},{"$f":"IF(ISERROR(Dados!N23),\"-\",Dados!N23)","v":53.77},{"$f":"IF(ISERROR(Dados!O23),\"-\",Dados!O23)","v":61.4},{"$f":"IF(ISERROR(Dados!P23),\"-\",Dados!P23)","v":53.77},{"$f":"IF(ISERROR(Dados!Q23),\"-\",Dados!Q23)","v":2.6808595502816974},{"$f":"IF(ISERROR(Dados!R23),\"-\",Dados!R23)","v":24.826743780226355},{"$f":"IF(ISERROR(Dados!S23),\"-\",Dados!S23)","v":0.96992179937744749},{"$f":"IF(ISERROR(Dados!T23),\"-\",Dados!T23)","v":8.9821937883578187},{"$f":"IF(ISERROR(Dados!U23),\"-\",Dados!U23)","v":0.11241300000000001},{"$f":"IF(ISERROR(Dados!V23),\"-\",Dados!V23)","v":-0.12510199999999999},{"$f":"IF(ISERROR(Dados!W23),\"-\",Dados!W23)","v":61.2},{"$f":"IF(ISERROR(Dados!X23),\"-\",Dados!X23)","v":59.8},{"$f":"IF(ISERROR(Dados!Y23),\"-\",Dados!Y23)","v":59.8},{"$f":"IF(ISERROR(Dados!Z23),\"-\",Dados!Z23)","v":7.0442474916387967},{"$f":"IF(ISERROR(Dados!AA23),\"-\",Dados!AA23)","v":22},{"$f":"IF(ISERROR(Dados!AB23),\"-\",Dados!AB23)","v":4.5497787153079373E-2},{"$f":"IF(ISERROR(Dados!AC23),\"-\",Dados!AC23)","v":-7.6},{"$f":"IF(ISERROR(Dados!AD23),\"-\",Dados!AD23)","v":-7.5},{"$f":"IF(ISERROR(Dados!AE23),\"-\",Dados!AE23)","v":0.40883482076083161},{"$f":"IF(ISERROR(Dados!AF23),\"-\",Dados!AF23)","v":"CGRA4"},{"$f":"IF(ISERROR(Dados!AG23),\"-\",Dados!AG23)","v":59.8}]
[{"$f":"IF(ISERROR(Dados!A24),\"-\",Dados!A24)","v":"PCAR4"},{"$f":"IF(ISERROR(Dados!B24),\"-\",Dados!B24)","v":"Comércio"},{"$f":"IF(ISERROR(Dados!C24),\"-\",Dados!C24)","v":"P.Acucar-Cbd"},{"$f":"IF(ISERROR(Dados!D24),\"-\",Dados!D24)","v":91.46},{"$f":"IF(ISERROR(Dados!E24),\"-\",Dados!E24)","v":266.61200000000002},{"$f":"IF(ISERROR(Dados!F24),\"-\",Dados!F24)","v":24384.33},{"$f":"IF(ISERROR(Dados!G24),\"-\",Dados!G24)","v":11083},{"$f":"IF(ISERROR(Dados!H24),\"-\",Dados!H24)","v":44634},{"$f":"IF(ISERROR(Dados!I24),\"-\",Dados!I24)","v":49388},{"$f":"IF(ISERROR(Dados!J24),\"-\",Dados!J24)","v":619},{"$f":"IF(ISERROR(Dados!K24),\"-\",Dados!K24)","v":150},{"$f":"IF(ISERROR(Dados!L24),\"-\",Dados!L24)","v":628},{"$f":"IF(ISERROR(Dados!M24),\"-\",Dados!M24)","v":778},{"$f":"IF(ISERROR(Dados!N24),\"-\",Dados!N24)","v":1193},{"$f":"IF(ISERROR(Dados!O24),\"-\",Dados!O24)","v":619},{"$f":"IF(ISERROR(Dados!P24),\"-\",Dados!P24)","v":1193},{"$f":"IF(ISERROR(Dados!Q24),\"-\",Dados!Q24)","v":4.474667306797893},{"$f":"IF(ISERROR(Dados!R24),\"-\",Dados!R24)","v":41.569771803219659},{"$f":"IF(ISERROR(Dados!S24),\"-\",Dados!S24)","v":2.2001564125236848},{"$f":"IF(ISERROR(Dados!T24),\"-\",Dados!T24)","v":20.439508398994132},{"$f":"IF(ISERROR(Dados!U24),\"-\",Dados!U24)","v":8.8774999999999993E-2},{"$f":"IF(ISERROR(Dados!V24),\"-\",Dados!V24)","v":8.2933000000000007E-2},{"$f":"IF(ISERROR(Dados!W24),\"-\",Dados!W24)","v":2342},{"$f":"IF(ISERROR(Dados!X24),\"-\",Dados!X24)","v":3066},{"$f":"IF(ISERROR(Dados!Y24),\"-\",Dados!Y24)","v":3066},{"$f":"IF(ISERROR(Dados!Z24),\"-\",Dados!Z24)","v":8.3301793868232235},{"$f":"IF(ISERROR(Dados!AA24),\"-\",Dados!AA24)","v":342},{"$f":"IF(ISERROR(Dados!AB24),\"-\",Dados!AB24)","v":1.4025400738917164E-2},{"$f":"IF(ISERROR(Dados!AC24),\"-\",Dados!AC24)","v":-1},{"$f":"IF(ISERROR(Dados!AD24),\"-\",Dados!AD24)","v":18.899999999999999},{"$f":"IF(ISERROR(Dados!AE24),\"-\",Dados!AE24)","v":0.37395166009031849},{"$f":"IF(ISERROR(Dados!AF24),\"-\",Dados!AF24)","v":"PCAR4"},{"$f":"IF(ISERROR(Dados!AG24),\"-\",Dados!AG24)","v":3066}]
[{"$f":"IF(ISERROR(Dados!A25),\"-\",Dados!A25)","v":"WLMM4"},{"$f":"IF(ISERROR(Dados!B25),\"-\",Dados!B25)","v":"Comércio"},{"$f":"IF(ISERROR(Dados!C25),\"-\",Dados!C25)","v":"Wlm Ind Com"},{"$f":"IF(ISERROR(Dados!D25),\"-\",Dados!D25)","v":6.71},{"$f":"IF(ISERROR(Dados!E25),\"-\",Dados!E25)","v":36.414999999999999},{"$f":"IF(ISERROR(Dados!F25),\"-\",Dados!F25)","v":233.41},{"$f":"IF(ISERROR(Dados!G25),\"-\",Dados!G25)","v":388.14},{"$f":"IF(ISERROR(Dados!H25),\"-\",Dados!H25)","v":489.74},{"$f":"IF(ISERROR(Dados!I25),\"-\",Dados!I25)","v":752.3},{"$f":"IF(ISERROR(Dados!J25),\"-\",Dados!J25)","v":-6.68},{"$f":"IF(ISERROR(Dados!K25),\"-\",Dados!K25)","v":5.43},{"$f":"IF(ISERROR(Dados!L25),\"-\",Dados!L25)","v":4.4000000000000004},{"$f":"IF(ISERROR(Dados!M25),\"-\",Dados!M25)","v":11.13},{"$f":"IF(ISERROR(Dados!N25),\"-\",Dados!N25)","v":16.079999999999998},{"$f":"IF(ISERROR(Dados!O25),\"-\",Dados!O25)","v":-6.68},{"$f":"IF(ISERROR(Dados!P25),\"-\",Dados!P25)","v":16.079999999999998},{"$f":"IF(ISERROR(Dados!Q25),\"-\",Dados!Q25)","v":0.44157627351366191},{"$f":"IF(ISERROR(Dados!R25),\"-\",Dados!R25)","v":10.65879445283537},{"$f":"IF(ISERROR(Dados!S25),\"-\",Dados!S25)","v":0.62952710362240427},{"$f":"IF(ISERROR(Dados!T25),\"-\",Dados!T25)","v":15.195562810945274},{"$f":"IF(ISERROR(Dados!U25),\"-\",Dados!U25)","v":4.2812000000000003E-2},{"$f":"IF(ISERROR(Dados!V25),\"-\",Dados!V25)","v":-7.8728999999999993E-2},{"$f":"IF(ISERROR(Dados!W25),\"-\",Dados!W25)","v":-4.7},{"$f":"IF(ISERROR(Dados!X25),\"-\",Dados!X25)","v":21.9},{"$f":"IF(ISERROR(Dados!Y25),\"-\",Dados!Y25)","v":21.9},{"$f":"IF(ISERROR(Dados!Z25),\"-\",Dados!Z25)","v":9.2611872146118728},{"$f":"IF(ISERROR(Dados!AA25),\"-\",Dados!AA25)","v":"-"},{"$f":"IF(ISERROR(Dados!AB25),\"-\",Dados!AB25)","v":"-"},{"$f":"IF(ISERROR(Dados!AC25),\"-\",Dados!AC25)","v":5},{"$f":"IF(ISERROR(Dados!AD25),\"-\",Dados!AD25)","v":27.8},{"$f":"IF(ISERROR(Dados!AE25),\"-\",Dados!AE25)","v":0.45585610325415354},{"$f":"IF(ISERROR(Dados!AF25),\"-\",Dados!AF25)","v":"WLMM4"},{"$f":"IF(ISERROR(Dados!AG25),\"-\",Dados!AG25)","v":21.9}]
[{"$f":"IF(ISERROR(Dados!A26),\"-\",Dados!A26)","v":"LAME4"},{"$f":"IF(ISERROR(Dados!B26),\"-\",Dados!B26)","v":"Comércio"},{"$f":"IF(ISERROR(Dados!C26),\"-\",Dados!C26)","v":"Lojas Americ"},{"$f":"IF(ISERROR(Dados!D26),\"-\",Dados!D26)","v":16.77},{"$f":"IF(ISERROR(Dados!E26),\"-\",Dados!E26)","v":1598.3530000000001},{"$f":"IF(ISERROR(Dados!F26),\"-\",Dados!F26)","v":24887.58},{"$f":"IF(ISERROR(Dados!G26),\"-\",Dados!G26)","v":4924.6000000000004},{"$f":"IF(ISERROR(Dados!H26),\"-\",Dados!H26)","v":17044.72},{"$f":"IF(ISERROR(Dados!I26),\"-\",Dados!I26)","v":17689.86},{"$f":"IF(ISERROR(Dados!J26),\"-\",Dados!J26)","v":237.63},{"$f":"IF(ISERROR(Dados!K26),\"-\",Dados!K26)","v":20.02},{"$f":"IF(ISERROR(Dados!L26),\"-\",Dados!L26)","v":46.29},{"$f":"IF(ISERROR(Dados!M26),\"-\",Dados!M26)","v":107.69},{"$f":"IF(ISERROR(Dados!N26),\"-\",Dados!N26)","v":380.49},{"$f":"IF(ISERROR(Dados!O26),\"-\",Dados!O26)","v":237.63},{"$f":"IF(ISERROR(Dados!P26),\"-\",Dados!P26)","v":380.49},{"$f":"IF(ISERROR(Dados!Q26),\"-\",Dados!Q26)","v":0.23805129405081354},{"$f":"IF(ISERROR(Dados!R26),\"-\",Dados!R26)","v":3.0810465522947683},{"$f":"IF(ISERROR(Dados!S26),\"-\",Dados!S26)","v":5.4429557344758965},{"$f":"IF(ISERROR(Dados!T26),\"-\",Dados!T26)","v":70.447002049988171},{"$f":"IF(ISERROR(Dados!U26),\"-\",Dados!U26)","v":3.7257999999999999E-2},{"$f":"IF(ISERROR(Dados!V26),\"-\",Dados!V26)","v":0.88626000000000005},{"$f":"IF(ISERROR(Dados!W26),\"-\",Dados!W26)","v":2682.2},{"$f":"IF(ISERROR(Dados!X26),\"-\",Dados!X26)","v":2654.4},{"$f":"IF(ISERROR(Dados!Y26),\"-\",Dados!Y26)","v":2654.4},{"$f":"IF(ISERROR(Dados!Z26),\"-\",Dados!Z26)","v":11.474804852320675},{"$f":"IF(ISERROR(Dados!AA26),\"-\",Dados!AA26)","v":101.73},{"$f":"IF(ISERROR(Dados!AB26),\"-\",Dados!AB26)","v":4.0875810343954698E-3},{"$f":"IF(ISERROR(Dados!AC26),\"-\",Dados!AC26)","v":-15.8},{"$f":"IF(ISERROR(Dados!AD26),\"-\",Dados!AD26)","v":-0.8},{"$f":"IF(ISERROR(Dados!AE26),\"-\",Dados!AE26)","v":0.33778520764812275},{"$f":"IF(ISERROR(Dados!AF26),\"-\",Dados!AF26)","v":"LAME4"},{"$f":"IF(ISERROR(Dados!AG26),\"-\",Dados!AG26)","v":2654.4}]
[{"$f":"IF(ISERROR(Dados!A27),\"-\",Dados!A27)","v":"AMAR3"},{"$f":"IF(ISERROR(Dados!B27),\"-\",Dados!B27)","v":"Comércio"},{"$f":"IF(ISERROR(Dados!C27),\"-\",Dados!C27)","v":"Lojas Marisa"},{"$f":"IF(ISERROR(Dados!D27),\"-\",Dados!D27)","v":6.43},{"$f":"IF(ISERROR(Dados!E27),\"-\",Dados!E27)","v":204.28},{"$f":"IF(ISERROR(Dados!F27),\"-\",Dados!F27)","v":1313.52},{"$f":"IF(ISERROR(Dados!G27),\"-\",Dados!G27)","v":973.65},{"$f":"IF(ISERROR(Dados!H27),\"-\",Dados!H27)","v":2875.58},{"$f":"IF(ISERROR(Dados!I27),\"-\",Dados!I27)","v":2764.13},{"$f":"IF(ISERROR(Dados!J27),\"-\",Dados!J27)","v":-60.44},{"$f":"IF(ISERROR(Dados!K27),\"-\",Dados!K27)","v":-41.08},{"$f":"IF(ISERROR(Dados!L27),\"-\",Dados!L27)","v":-78.09},{"$f":"IF(ISERROR(Dados!M27),\"-\",Dados!M27)","v":-131.16999999999999},{"$f":"IF(ISERROR(Dados!N27),\"-\",Dados!N27)","v":28.36},{"$f":"IF(ISERROR(Dados!O27),\"-\",Dados!O27)","v":-60.44},{"$f":"IF(ISERROR(Dados!P27),\"-\",Dados!P27)","v":28.36},{"$f":"IF(ISERROR(Dados!Q27),\"-\",Dados!Q27)","v":0.13882905815547289},{"$f":"IF(ISERROR(Dados!R27),\"-\",Dados!R27)","v":4.766252202858821},{"$f":"IF(ISERROR(Dados!S27),\"-\",Dados!S27)","v":1.349068351050172},{"$f":"IF(ISERROR(Dados!T27),\"-\",Dados!T27)","v":46.315952045133983},{"$f":"IF(ISERROR(Dados!U27),\"-\",Dados!U27)","v":2.9555999999999999E-2},{"$f":"IF(ISERROR(Dados!V27),\"-\",Dados!V27)","v":0.63636400000000004},{"$f":"IF(ISERROR(Dados!W27),\"-\",Dados!W27)","v":265.60000000000002},{"$f":"IF(ISERROR(Dados!X27),\"-\",Dados!X27)","v":417.9},{"$f":"IF(ISERROR(Dados!Y27),\"-\",Dados!Y27)","v":417.9},{"$f":"IF(ISERROR(Dados!Z27),\"-\",Dados!Z27)","v":4.6257860732232592},{"$f":"IF(ISERROR(Dados!AA27),\"-\",Dados!AA27)","v":"-"},{"$f":"IF(ISERROR(Dados!AB27),\"-\",Dados!AB27)","v":"-"},{"$f":"IF(ISERROR(Dados!AC27),\"-\",Dados!AC27)","v":4.4000000000000004},{"$f":"IF(ISERROR(Dados!AD27),\"-\",Dados!AD27)","v":-11.3},{"$f":"IF(ISERROR(Dados!AE27),\"-\",Dados!AE27)","v":0.99911885647150966},{"$f":"IF(ISERROR(Dados!AF27),\"-\",Dados!AF27)","v":"AMAR3"},{"$f":"IF(ISERROR(Dados!AG27),\"-\",Dados!AG27)","v":417.9}]
[{"$f":"IF(ISERROR(Dados!A28),\"-\",Dados!A28)","v":"MEAL3"},{"$f":"IF(ISERROR(Dados!B28),\"-\",Dados!B28)","v":"Comércio"},{"$f":"IF(ISERROR(Dados!C28),\"-\",Dados!C28)","v":"Imc S/A"},{"$f":"IF(ISERROR(Dados!D28),\"-\",Dados!D28)","v":6.49},{"$f":"IF(ISERROR(Dados!E28),\"-\",Dados!E28)","v":157.97399999999999},{"$f":"IF(ISERROR(Dados!F28),\"-\",Dados!F28)","v":1025.25},{"$f":"IF(ISERROR(Dados!G28),\"-\",Dados!G28)","v":1015.22},{"$f":"IF(ISERROR(Dados!H28),\"-\",Dados!H28)","v":1494.51},{"$f":"IF(ISERROR(Dados!I28),\"-\",Dados!I28)","v":1582.08},{"$f":"IF(ISERROR(Dados!J28),\"-\",Dados!J28)","v":3.67},{"$f":"IF(ISERROR(Dados!K28),\"-\",Dados!K28)","v":-6.43},{"$f":"IF(ISERROR(Dados!L28),\"-\",Dados!L28)","v":-3.84},{"$f":"IF(ISERROR(Dados!M28),\"-\",Dados!M28)","v":9.41},{"$f":"IF(ISERROR(Dados!N28),\"-\",Dados!N28)","v":7.89},{"$f":"IF(ISERROR(Dados!O28),\"-\",Dados!O28)","v":3.67},{"$f":"IF(ISERROR(Dados!P28),\"-\",Dados!P28)","v":7.89},{"$f":"IF(ISERROR(Dados!Q28),\"-\",Dados!Q28)","v":4.9944927646321545E-2},{"$f":"IF(ISERROR(Dados!R28),\"-\",Dados!R28)","v":6.4265005633838488},{"$f":"IF(ISERROR(Dados!S28),\"-\",Dados!S28)","v":1.0098808731112467},{"$f":"IF(ISERROR(Dados!T28),\"-\",Dados!T28)","v":129.94312547528517},{"$f":"IF(ISERROR(Dados!U28),\"-\",Dados!U28)","v":7.8630000000000002E-3},{"$f":"IF(ISERROR(Dados!V28),\"-\",Dados!V28)","v":2.8709999999999999E-2},{"$f":"IF(ISERROR(Dados!W28),\"-\",Dados!W28)","v":108.5},{"$f":"IF(ISERROR(Dados!X28),\"-\",Dados!X28)","v":102.8},{"$f":"IF(ISERROR(Dados!Y28),\"-\",Dados!Y28)","v":102.8},{"$f":"IF(ISERROR(Dados!Z28),\"-\",Dados!Z28)","v":10.256780155642023},{"$f":"IF(ISERROR(Dados!AA28),\"-\",Dados!AA28)","v":0.87},{"$f":"IF(ISERROR(Dados!AB28),\"-\",Dados!AB28)","v":8.4857351865398687E-4},{"$f":"IF(ISERROR(Dados!AC28),\"-\",Dados!AC28)","v":5},{"$f":"IF(ISERROR(Dados!AD28),\"-\",Dados!AD28)","v":-18},{"$f":"IF(ISERROR(Dados!AE28),\"-\",Dados!AE28)","v":"-"},{"$f":"IF(ISERROR(Dados!AF28),\"-\",Dados!AF28)","v":"MEAL3"},{"$f":"IF(ISERROR(Dados!AG28),\"-\",Dados!AG28)","v":102.8}]
[{"$f":"IF(ISERROR(Dados!A29),\"-\",Dados!A29)","v":"PFRM3"},{"$f":"IF(ISERROR(Dados!B29),\"-\",Dados!B29)","v":"Comércio"},{"$f":"IF(ISERROR(Dados!C29),\"-\",Dados!C29)","v":"Profarma"},{"$f":"IF(ISERROR(Dados!D29),\"-\",Dados!D29)","v":4.33},{"$f":"IF(ISERROR(Dados!E29),\"-\",Dados!E29)","v":122.611},{"$f":"IF(ISERROR(Dados!F29),\"-\",Dados!F29)","v":530.91},{"$f":"IF(ISERROR(Dados!G29),\"-\",Dados!G29)","v":1021.21},{"$f":"IF(ISERROR(Dados!H29),\"-\",Dados!H29)","v":4100.71},{"$f":"IF(ISERROR(Dados!I29),\"-\",Dados!I29)","v":4271.13},{"$f":"IF(ISERROR(Dados!J29),\"-\",Dados!J29)","v":-112.72},{"$f":"IF(ISERROR(Dados!K29),\"-\",Dados!K29)","v":-5.9},{"$f":"IF(ISERROR(Dados!L29),\"-\",Dados!L29)","v":-4.3899999999999997},{"$f":"IF(ISERROR(Dados!M29),\"-\",Dados!M29)","v":-11.94},{"$f":"IF(ISERROR(Dados!N29),\"-\",Dados!N29)","v":-9.73},{"$f":"IF(ISERROR(Dados!O29),\"-\",Dados!O29)","v":-112.72},{"$f":"IF(ISERROR(Dados!P29),\"-\",Dados!P29)","v":-9.73},{"$f":"IF(ISERROR(Dados!Q29),\"-\",Dados!Q29)","v":-7.9356664573325394E-2},{"$f":"IF(ISERROR(Dados!R29),\"-\",Dados!R29)","v":8.3288611951619345},{"$f":"IF(ISERROR(Dados!S29),\"-\",Dados!S29)","v":0.51987899648456248},{"$f":"IF(ISERROR(Dados!T29),\"-\",Dados!T29)","v":"-"},{"$f":"IF(ISERROR(Dados!U29),\"-\",Dados!U29)","v":-1.3049E-2},{"$f":"IF(ISERROR(Dados!V29),\"-\",Dados!V29)","v":0.39840000000000003},{"$f":"IF(ISERROR(Dados!W29),\"-\",Dados!W29)","v":20.2},{"$f":"IF(ISERROR(Dados!X29),\"-\",Dados!X29)","v":88.6},{"$f":"IF(ISERROR(Dados!Y29),\"-\",Dados!Y29)","v":88.6},{"$f":"IF(ISERROR(Dados!Z29),\"-\",Dados!Z29)","v":10.584198645598194},{"$f":"IF(ISERROR(Dados!AA29),\"-\",Dados!AA29)","v":"-"},{"$f":"IF(ISERROR(Dados!AB29),\"-\",Dados!AB29)","v":"-"},{"$f":"IF(ISERROR(Dados!AC29),\"-\",Dados!AC29)","v":1.2},{"$f":"IF(ISERROR(Dados!AD29),\"-\",Dados!AD29)","v":-39.299999999999997},{"$f":"IF(ISERROR(Dados!AE29),\"-\",Dados!AE29)","v":"-"},{"$f":"IF(ISERROR(Dados!AF29),\"-\",Dados!AF29)","v":"PFRM3"},{"$f":"IF(ISERROR(Dados!AG29),\"-\",Dados!AG29)","v":88.6}]
[{"$f":"IF(ISERROR(Dados!A30),\"-\",Dados!A30)","v":"BTOW3"},{"$f":"IF(ISERROR(Dados!B30),\"-\",Dados!B30)","v":"Comércio"},{"$f":"IF(ISERROR(Dados!C30),\"-\",Dados!C30)","v":"B2W Digital"},{"$f":"IF(ISERROR(Dados!D30),\"-\",Dados!D30)","v":42.22},{"$f":"IF(ISERROR(Dados!E30),\"-\",Dados!E30)","v":457.28100000000001},{"$f":"IF(ISERROR(Dados!F30),\"-\",Dados!F30)","v":19306.400000000001},{"$f":"IF(ISERROR(Dados!G30),\"-\",Dados!G30)","v":3537.12},{"$f":"IF(ISERROR(Dados!H30),\"-\",Dados!H30)","v":7120.78},{"$f":"IF(ISERROR(Dados!I30),\"-\",Dados!I30)","v":6488.47},{"$f":"IF(ISERROR(Dados!J30),\"-\",Dados!J30)","v":-411.45},{"$f":"IF(ISERROR(Dados!K30),\"-\",Dados!K30)","v":-115.14},{"$f":"IF(ISERROR(Dados!L30),\"-\",Dados!L30)","v":-223.95},{"$f":"IF(ISERROR(Dados!M30),\"-\",Dados!M30)","v":-329.74},{"$f":"IF(ISERROR(Dados!N30),\"-\",Dados!N30)","v":-397.43},{"$f":"IF(ISERROR(Dados!O30),\"-\",Dados!O30)","v":-411.45},{"$f":"IF(ISERROR(Dados!P30),\"-\",Dados!P30)","v":-397.43},{"$f":"IF(ISERROR(Dados!Q30),\"-\",Dados!Q30)","v":-0.86911548916311854},{"$f":"IF(ISERROR(Dados!R30),\"-\",Dados!R30)","v":7.7351125456776026},{"$f":"IF(ISERROR(Dados!S30),\"-\",Dados!S30)","v":5.4582269812729001},{"$f":"IF(ISERROR(Dados!T30),\"-\",Dados!T30)","v":"-"},{"$f":"IF(ISERROR(Dados!U30),\"-\",Dados!U30)","v":-0.10188000000000001},{"$f":"IF(ISERROR(Dados!V30),\"-\",Dados!V30)","v":0.51102599999999998},{"$f":"IF(ISERROR(Dados!W30),\"-\",Dados!W30)","v":583.29999999999995},{"$f":"IF(ISERROR(Dados!X30),\"-\",Dados!X30)","v":412.3},{"$f":"IF(ISERROR(Dados!Y30),\"-\",Dados!Y30)","v":412.3},{"$f":"IF(ISERROR(Dados!Z30),\"-\",Dados!Z30)","v":51.210177055542083},{"$f":"IF(ISERROR(Dados!AA30),\"-\",Dados!AA30)","v":"-"},{"$f":"IF(ISERROR(Dados!AB30),\"-\",Dados!AB30)","v":"-"},{"$f":"IF(ISERROR(Dados!AC30),\"-\",Dados!AC30)","v":-12.7},{"$f":"IF(ISERROR(Dados!AD30),\"-\",Dados!AD30)","v":106},{"$f":"IF(ISERROR(Dados!AE30),\"-\",Dados!AE30)","v":"-"},{"$f":"IF(ISERROR(Dados!AF30),\"-\",Dados!AF30)","v":"BTOW3"},{"$f":"IF(ISERROR(Dados!AG30),\"-\",Dados!AG30)","v":412.3}]
[{"$f":"IF(ISERROR(Dados!A31),\"-\",Dados!A31)","v":"BPHA3"},{"$f":"IF(ISERROR(Dados!B31),\"-\",Dados!B31)","v":"Comércio"},{"$f":"IF(ISERROR(Dados!C31),\"-\",Dados!C31)","v":"BR Pharma"},{"$f":"IF(ISERROR(Dados!D31),\"-\",Dados!D31)","v":1.39},{"$f":"IF(ISERROR(Dados!E31),\"-\",Dados!E31)","v":113.081},{"$f":"IF(ISERROR(Dados!F31),\"-\",Dados!F31)","v":157.18},{"$f":"IF(ISERROR(Dados!G31),\"-\",Dados!G31)","v":-268.38},{"$f":"IF(ISERROR(Dados!H31),\"-\",Dados!H31)","v":516.79},{"$f":"IF(ISERROR(Dados!I31),\"-\",Dados!I31)","v":9.5399999999999991},{"$f":"IF(ISERROR(Dados!J31),\"-\",Dados!J31)","v":-1621.68},{"$f":"IF(ISERROR(Dados!K31),\"-\",Dados!K31)","v":-151.44999999999999},{"$f":"IF(ISERROR(Dados!L31),\"-\",Dados!L31)","v":-220.97},{"$f":"IF(ISERROR(Dados!M31),\"-\",Dados!M31)","v":-233.34},{"$f":"IF(ISERROR(Dados!N31),\"-\",Dados!N31)","v":1048.96},{"$f":"IF(ISERROR(Dados!O31),\"-\",Dados!O31)","v":-1621.68},{"$f":"IF(ISERROR(Dados!P31),\"-\",Dados!P31)","v":1048.96},{"$f":"IF(ISERROR(Dados!Q31),\"-\",Dados!Q31)","v":9.2761825594043206},{"$f":"IF(ISERROR(Dados!R31),\"-\",Dados!R31)","v":"-"},{"$f":"IF(ISERROR(Dados!S31),\"-\",Dados!S31)","v":"-"},{"$f":"IF(ISERROR(Dados!T31),\"-\",Dados!T31)","v":0.14984612377974374},{"$f":"IF(ISERROR(Dados!U31),\"-\",Dados!U31)","v":"-"},{"$f":"IF(ISERROR(Dados!V31),\"-\",Dados!V31)","v":-0.234899},{"$f":"IF(ISERROR(Dados!W31),\"-\",Dados!W31)","v":-1475.8},{"$f":"IF(ISERROR(Dados!X31),\"-\",Dados!X31)","v":"-"},{"$f":"IF(ISERROR(Dados!Y31),\"-\",Dados!Y31)","v":"-"},{"$f":"IF(ISERROR(Dados!Z31),\"-\",Dados!Z31)","v":"-"},{"$f":"IF(ISERROR(Dados!AA31),\"-\",Dados!AA31)","v":"-"},{"$f":"IF(ISERROR(Dados!AB31),\"-\",Dados!AB31)","v":"-"},{"$f":"IF(ISERROR(Dados!AC31),\"-\",Dados!AC31)","v":-6.1},{"$f":"IF(ISERROR(Dados!AD31),\"-\",Dados!AD31)","v":-61.8},{"$f":"IF(ISERROR(Dados!AE31),\"-\",Dados!AE31)","v":"-"},{"$f":"IF(ISERROR(Dados!AF31),\"-\",Dados!AF31)","v":"BPHA3"},{"$f":"IF(ISERROR(Dados!AG31),\"-\",Dados!AG31)","v":"-"}]
[{"$f":"IF(ISERROR(Dados!A32),\"-\",Dados!A32)","v":"TEND3"},{"$f":"IF(ISERROR(Dados!B32),\"-\",Dados!B32)","v":"Construção"},{"$f":"IF(ISERROR(Dados!C32),\"-\",Dados!C32)","v":"Tenda"},{"$f":"IF(ISERROR(Dados!D32),\"-\",Dados!D32)","v":16.88},{"$f":"IF(ISERROR(Dados!E32),\"-\",Dados!E32)","v":48.393000000000001},{"$f":"IF(ISERROR(Dados!F32),\"-\",Dados!F32)","v":816.87},{"$f":"IF(ISERROR(Dados!G32),\"-\",Dados!G32)","v":1197.67},{"$f":"IF(ISERROR(Dados!H32),\"-\",Dados!H32)","v":1357.9},{"$f":"IF(ISERROR(Dados!I32),\"-\",Dados!I32)","v":1681.25},{"$f":"IF(ISERROR(Dados!J32),\"-\",Dados!J32)","v":106.69},{"$f":"IF(ISERROR(Dados!K32),\"-\",Dados!K32)","v":36.270000000000003},{"$f":"IF(ISERROR(Dados!L32),\"-\",Dados!L32)","v":87.86},{"$f":"IF(ISERROR(Dados!M32),\"-\",Dados!M32)","v":152.29},{"$f":"IF(ISERROR(Dados!N32),\"-\",Dados!N32)","v":200.29},{"$f":"IF(ISERROR(Dados!O32),\"-\",Dados!O32)","v":106.69},{"$f":"IF(ISERROR(Dados!P32),\"-\",Dados!P32)","v":200.29},{"$f":"IF(ISERROR(Dados!Q32),\"-\",Dados!Q32)","v":4.1388217304155557},{"$f":"IF(ISERROR(Dados!R32),\"-\",Dados!R32)","v":24.748827309734882},{"$f":"IF(ISERROR(Dados!S32),\"-\",Dados!S32)","v":0.68205251864035987},{"$f":"IF(ISERROR(Dados!T32),\"-\",Dados!T32)","v":4.0784554396125614},{"$f":"IF(ISERROR(Dados!U32),\"-\",Dados!U32)","v":0.173016},{"$f":"IF(ISERROR(Dados!V32),\"-\",Dados!V32)","v":-0.26007200000000003},{"$f":"IF(ISERROR(Dados!W32),\"-\",Dados!W32)","v":141.9},{"$f":"IF(ISERROR(Dados!X32),\"-\",Dados!X32)","v":243.5},{"$f":"IF(ISERROR(Dados!Y32),\"-\",Dados!Y32)","v":243.5},{"$f":"IF(ISERROR(Dados!Z32),\"-\",Dados!Z32)","v":2.0690020533880906},{"$f":"IF(ISERROR(Dados!AA32),\"-\",Dados!AA32)","v":24.99},{"$f":"IF(ISERROR(Dados!AB32),\"-\",Dados!AB32)","v":3.0592383120937233E-2},{"$f":"IF(ISERROR(Dados!AC32),\"-\",Dados!AC32)","v":0.8},{"$f":"IF(ISERROR(Dados!AD32),\"-\",Dados!AD32)","v":71.7},{"$f":"IF(ISERROR(Dados!AE32),\"-\",Dados!AE32)","v":"-"},{"$f":"IF(ISERROR(Dados!AF32),\"-\",Dados!AF32)","v":"TEND3"},{"$f":"IF(ISERROR(Dados!AG32),\"-\",Dados!AG32)","v":243.5}]
[{"$f":"IF(ISERROR(Dados!A33),\"-\",Dados!A33)","v":"TRIS3"},{"$f":"IF(ISERROR(Dados!B33),\"-\",Dados!B33)","v":"Construção"},{"$f":"IF(ISERROR(Dados!C33),\"-\",Dados!C33)","v":"Trisul"},{"$f":"IF(ISERROR(Dados!D33),\"-\",Dados!D33)","v":4.7},{"$f":"IF(ISERROR(Dados!E33),\"-\",Dados!E33)","v":146.11799999999999},{"$f":"IF(ISERROR(Dados!F33),\"-\",Dados!F33)","v":686.75},{"$f":"IF(ISERROR(Dados!G33),\"-\",Dados!G33)","v":560.76},{"$f":"IF(ISERROR(Dados!H33),\"-\",Dados!H33)","v":441.68},{"$f":"IF(ISERROR(Dados!I33),\"-\",Dados!I33)","v":545.25},{"$f":"IF(ISERROR(Dados!J33),\"-\",Dados!J33)","v":34.99},{"$f":"IF(ISERROR(Dados!K33),\"-\",Dados!K33)","v":12.89},{"$f":"IF(ISERROR(Dados!L33),\"-\",Dados!L33)","v":30.29},{"$f":"IF(ISERROR(Dados!M33),\"-\",Dados!M33)","v":51.39},{"$f":"IF(ISERROR(Dados!N33),\"-\",Dados!N33)","v":71.95},{"$f":"IF(ISERROR(Dados!O33),\"-\",Dados!O33)","v":34.99},{"$f":"IF(ISERROR(Dados!P33),\"-\",Dados!P33)","v":71.95},{"$f":"IF(ISERROR(Dados!Q33),\"-\",Dados!Q33)","v":0.49241024377557868},{"$f":"IF(ISERROR(Dados!R33),\"-\",Dados!R33)","v":3.8377201987434812},{"$f":"IF(ISERROR(Dados!S33),\"-\",Dados!S33)","v":1.2246854269206078},{"$f":"IF(ISERROR(Dados!T33),\"-\",Dados!T33)","v":9.5448867268936759},{"$f":"IF(ISERROR(Dados!U33),\"-\",Dados!U33)","v":0.140541},{"$f":"IF(ISERROR(Dados!V33),\"-\",Dados!V33)","v":0.29569299999999998},{"$f":"IF(ISERROR(Dados!W33),\"-\",Dados!W33)","v":61.1},{"$f":"IF(ISERROR(Dados!X33),\"-\",Dados!X33)","v":102.7},{"$f":"IF(ISERROR(Dados!Y33),\"-\",Dados!Y33)","v":102.7},{"$f":"IF(ISERROR(Dados!Z33),\"-\",Dados!Z33)","v":8.4158812074001954},{"$f":"IF(ISERROR(Dados!AA33),\"-\",Dados!AA33)","v":"-"},{"$f":"IF(ISERROR(Dados!AB33),\"-\",Dados!AB33)","v":"-"},{"$f":"IF(ISERROR(Dados!AC33),\"-\",Dados!AC33)","v":-0.8},{"$f":"IF(ISERROR(Dados!AD33),\"-\",Dados!AD33)","v":136.9},{"$f":"IF(ISERROR(Dados!AE33),\"-\",Dados!AE33)","v":0.9998768118917587},{"$f":"IF(ISERROR(Dados!AF33),\"-\",Dados!AF33)","v":"TRIS3"},{"$f":"IF(ISERROR(Dados!AG33),\"-\",Dados!AG33)","v":102.7}]
[{"$f":"IF(ISERROR(Dados!A34),\"-\",Dados!A34)","v":"MRVE3"},{"$f":"IF(ISERROR(Dados!B34),\"-\",Dados!B34)","v":"Construção"},{"$f":"IF(ISERROR(Dados!C34),\"-\",Dados!C34)","v":"MRV"},{"$f":"IF(ISERROR(Dados!D34),\"-\",Dados!D34)","v":13.99},{"$f":"IF(ISERROR(Dados!E34),\"-\",Dados!E34)","v":441.01100000000002},{"$f":"IF(ISERROR(Dados!F34),\"-\",Dados!F34)","v":6169.74},{"$f":"IF(ISERROR(Dados!G34),\"-\",Dados!G34)","v":4630.45},{"$f":"IF(ISERROR(Dados!H34),\"-\",Dados!H34)","v":4759.8900000000003},{"$f":"IF(ISERROR(Dados!I34),\"-\",Dados!I34)","v":5419},{"$f":"IF(ISERROR(Dados!J34),\"-\",Dados!J34)","v":653.4},{"$f":"IF(ISERROR(Dados!K34),\"-\",Dados!K34)","v":159.66},{"$f":"IF(ISERROR(Dados!L34),\"-\",Dados!L34)","v":325.74},{"$f":"IF(ISERROR(Dados!M34),\"-\",Dados!M34)","v":499.8},{"$f":"IF(ISERROR(Dados!N34),\"-\",Dados!N34)","v":690.31},{"$f":"IF(ISERROR(Dados!O34),\"-\",Dados!O34)","v":653.4},{"$f":"IF(ISERROR(Dados!P34),\"-\",Dados!P34)","v":690.31},{"$f":"IF(ISERROR(Dados!Q34),\"-\",Dados!Q34)","v":1.5652897546773208},{"$f":"IF(ISERROR(Dados!R34),\"-\",Dados!R34)","v":10.499624725913865},{"$f":"IF(ISERROR(Dados!S34),\"-\",Dados!S34)","v":1.3324285738967057},{"$f":"IF(ISERROR(Dados!T34),\"-\",Dados!T34)","v":8.9376423490895398},{"$f":"IF(ISERROR(Dados!U34),\"-\",Dados!U34)","v":0.13077800000000001},{"$f":"IF(ISERROR(Dados!V34),\"-\",Dados!V34)","v":0.42427500000000001},{"$f":"IF(ISERROR(Dados!W34),\"-\",Dados!W34)","v":715.7},{"$f":"IF(ISERROR(Dados!X34),\"-\",Dados!X34)","v":805.6},{"$f":"IF(ISERROR(Dados!Y34),\"-\",Dados!Y34)","v":805.6},{"$f":"IF(ISERROR(Dados!Z34),\"-\",Dados!Z34)","v":10.225801886792452},{"$f":"IF(ISERROR(Dados!AA34),\"-\",Dados!AA34)","v":455.63},{"$f":"IF(ISERROR(Dados!AB34),\"-\",Dados!AB34)","v":7.3849141130744575E-2},{"$f":"IF(ISERROR(Dados!AC34),\"-\",Dados!AC34)","v":2.9},{"$f":"IF(ISERROR(Dados!AD34),\"-\",Dados!AD34)","v":20.100000000000001},{"$f":"IF(ISERROR(Dados!AE34),\"-\",Dados!AE34)","v":"-"},{"$f":"IF(ISERROR(Dados!AF34),\"-\",Dados!AF34)","v":"MRVE3"},{"$f":"IF(ISERROR(Dados!AG34),\"-\",Dados!AG34)","v":805.6}]
[{"$f":"IF(ISERROR(Dados!A35),\"-\",Dados!A35)","v":"JHSF3"},{"$f":"IF(ISERROR(Dados!B35),\"-\",Dados!B35)","v":"Construção"},{"$f":"IF(ISERROR(Dados!C35),\"-\",Dados!C35)","v":"JHSF Part"},{"$f":"IF(ISERROR(Dados!D35),\"-\",Dados!D35)","v":2.4500000000000002},{"$f":"IF(ISERROR(Dados!E35),\"-\",Dados!E35)","v":526.26599999999996},{"$f":"IF(ISERROR(Dados!F35),\"-\",Dados!F35)","v":1289.3499999999999},{"$f":"IF(ISERROR(Dados!G35),\"-\",Dados!G35)","v":2227.84},{"$f":"IF(ISERROR(Dados!H35),\"-\",Dados!H35)","v":355.89},{"$f":"IF(ISERROR(Dados!I35),\"-\",Dados!I35)","v":485.69},{"$f":"IF(ISERROR(Dados!J35),\"-\",Dados!J35)","v":-22.65},{"$f":"IF(ISERROR(Dados!K35),\"-\",Dados!K35)","v":-10.94},{"$f":"IF(ISERROR(Dados!L35),\"-\",Dados!L35)","v":-3.72},{"$f":"IF(ISERROR(Dados!M35),\"-\",Dados!M35)","v":114.86},{"$f":"IF(ISERROR(Dados!N35),\"-\",Dados!N35)","v":182.33},{"$f":"IF(ISERROR(Dados!O35),\"-\",Dados!O35)","v":-22.65},{"$f":"IF(ISERROR(Dados!P35),\"-\",Dados!P35)","v":182.33},{"$f":"IF(ISERROR(Dados!Q35),\"-\",Dados!Q35)","v":0.34645977509472403},{"$f":"IF(ISERROR(Dados!R35),\"-\",Dados!R35)","v":4.2332964698460476},{"$f":"IF(ISERROR(Dados!S35),\"-\",Dados!S35)","v":0.57874519714162598},{"$f":"IF(ISERROR(Dados!T35),\"-\",Dados!T35)","v":7.0715279986837043},{"$f":"IF(ISERROR(Dados!U35),\"-\",Dados!U35)","v":9.0996000000000007E-2},{"$f":"IF(ISERROR(Dados!V35),\"-\",Dados!V35)","v":0.42214499999999999},{"$f":"IF(ISERROR(Dados!W35),\"-\",Dados!W35)","v":203.8},{"$f":"IF(ISERROR(Dados!X35),\"-\",Dados!X35)","v":342.1},{"$f":"IF(ISERROR(Dados!Y35),\"-\",Dados!Y35)","v":342.1},{"$f":"IF(ISERROR(Dados!Z35),\"-\",Dados!Z35)","v":6.566670564162524},{"$f":"IF(ISERROR(Dados!AA35),\"-\",Dados!AA35)","v":"-"},{"$f":"IF(ISERROR(Dados!AB35),\"-\",Dados!AB35)","v":"-"},{"$f":"IF(ISERROR(Dados!AC35),\"-\",Dados!AC35)","v":7},{"$f":"IF(ISERROR(Dados!AD35),\"-\",Dados!AD35)","v":40},{"$f":"IF(ISERROR(Dados!AE35),\"-\",Dados!AE35)","v":"-"},{"$f":"IF(ISERROR(Dados!AF35),\"-\",Dados!AF35)","v":"JHSF3"},{"$f":"IF(ISERROR(Dados!AG35),\"-\",Dados!AG35)","v":342.1}]
[{"$f":"IF(ISERROR(Dados!A36),\"-\",Dados!A36)","v":"EZTC3"},{"$f":"IF(ISERROR(Dados!B36),\"-\",Dados!B36)","v":"Construção"},{"$f":"IF(ISERROR(Dados!C36),\"-\",Dados!C36)","v":"Eztec"},{"$f":"IF(ISERROR(Dados!D36),\"-\",Dados!D36)","v":26.8},{"$f":"IF(ISERROR(Dados!E36),\"-\",Dados!E36)","v":165.00200000000001},{"$f":"IF(ISERROR(Dados!F36),\"-\",Dados!F36)","v":4422.05},{"$f":"IF(ISERROR(Dados!G36),\"-\",Dados!G36)","v":2609.7199999999998},{"$f":"IF(ISERROR(Dados!H36),\"-\",Dados!H36)","v":980.32},{"$f":"IF(ISERROR(Dados!I36),\"-\",Dados!I36)","v":390.76},{"$f":"IF(ISERROR(Dados!J36),\"-\",Dados!J36)","v":358.83},{"$f":"IF(ISERROR(Dados!K36),\"-\",Dados!K36)","v":5.43},{"$f":"IF(ISERROR(Dados!L36),\"-\",Dados!L36)","v":20.14},{"$f":"IF(ISERROR(Dados!M36),\"-\",Dados!M36)","v":54},{"$f":"IF(ISERROR(Dados!N36),\"-\",Dados!N36)","v":97.54},{"$f":"IF(ISERROR(Dados!O36),\"-\",Dados!O36)","v":358.83},{"$f":"IF(ISERROR(Dados!P36),\"-\",Dados!P36)","v":97.54},{"$f":"IF(ISERROR(Dados!Q36),\"-\",Dados!Q36)","v":0.59114434976545738},{"$f":"IF(ISERROR(Dados!R36),\"-\",Dados!R36)","v":15.816293135840775},{"$f":"IF(ISERROR(Dados!S36),\"-\",Dados!S36)","v":1.6944551905951599},{"$f":"IF(ISERROR(Dados!T36),\"-\",Dados!T36)","v":45.335796596268203},{"$f":"IF(ISERROR(Dados!U36),\"-\",Dados!U36)","v":3.9837999999999998E-2},{"$f":"IF(ISERROR(Dados!V36),\"-\",Dados!V36)","v":-0.15287599999999998},{"$f":"IF(ISERROR(Dados!W36),\"-\",Dados!W36)","v":321.2},{"$f":"IF(ISERROR(Dados!X36),\"-\",Dados!X36)","v":6},{"$f":"IF(ISERROR(Dados!Y36),\"-\",Dados!Y36)","v":6},{"$f":"IF(ISERROR(Dados!Z36),\"-\",Dados!Z36)","v":669.81900000000007},{"$f":"IF(ISERROR(Dados!AA36),\"-\",Dados!AA36)","v":85.22},{"$f":"IF(ISERROR(Dados!AB36),\"-\",Dados!AB36)","v":1.9271604798679346E-2},{"$f":"IF(ISERROR(Dados!AC36),\"-\",Dados!AC36)","v":0.5},{"$f":"IF(ISERROR(Dados!AD36),\"-\",Dados!AD36)","v":27},{"$f":"IF(ISERROR(Dados!AE36),\"-\",Dados!AE36)","v":0.99998787893480068},{"$f":"IF(ISERROR(Dados!AF36),\"-\",Dados!AF36)","v":"EZTC3"},{"$f":"IF(ISERROR(Dados!AG36),\"-\",Dados!AG36)","v":6}]
[{"$f":"IF(ISERROR(Dados!A37),\"-\",Dados!A37)","v":"LOGG3"},{"$f":"IF(ISERROR(Dados!B37),\"-\",Dados!B37)","v":"Construção"},{"$f":"IF(ISERROR(Dados!C37),\"-\",Dados!C37)","v":"Log Com Prop"},{"$f":"IF(ISERROR(Dados!D37),\"-\",Dados!D37)","v":16.98},{"$f":"IF(ISERROR(Dados!E37),\"-\",Dados!E37)","v":73.784999999999997},{"$f":"IF(ISERROR(Dados!F37),\"-\",Dados!F37)","v":1252.8599999999999},{"$f":"IF(ISERROR(Dados!G37),\"-\",Dados!G37)","v":2147.27},{"$f":"IF(ISERROR(Dados!H37),\"-\",Dados!H37)","v":99.49},{"$f":"IF(ISERROR(Dados!I37),\"-\",Dados!I37)","v":104.83},{"$f":"IF(ISERROR(Dados!J37),\"-\",Dados!J37)","v":37.409999999999997},{"$f":"IF(ISERROR(Dados!K37),\"-\",Dados!K37)","v":10.67},{"$f":"IF(ISERROR(Dados!L37),\"-\",Dados!L37)","v":23.12},{"$f":"IF(ISERROR(Dados!M37),\"-\",Dados!M37)","v":33.869999999999997},{"$f":"IF(ISERROR(Dados!N37),\"-\",Dados!N37)","v":43.49},{"$f":"IF(ISERROR(Dados!O37),\"-\",Dados!O37)","v":37.409999999999997},{"$f":"IF(ISERROR(Dados!P37),\"-\",Dados!P37)","v":43.49},{"$f":"IF(ISERROR(Dados!Q37),\"-\",Dados!Q37)","v":0.58941519278986254},{"$f":"IF(ISERROR(Dados!R37),\"-\",Dados!R37)","v":29.101714440604461},{"$f":"IF(ISERROR(Dados!S37),\"-\",Dados!S37)","v":0.58347077917541812},{"$f":"IF(ISERROR(Dados!T37),\"-\",Dados!T37)","v":28.808215681765919},{"$f":"IF(ISERROR(Dados!U37),\"-\",Dados!U37)","v":2.3311000000000002E-2},{"$f":"IF(ISERROR(Dados!V37),\"-\",Dados!V37)","v":0.36572399999999999},{"$f":"IF(ISERROR(Dados!W37),\"-\",Dados!W37)","v":72.2},{"$f":"IF(ISERROR(Dados!X37),\"-\",Dados!X37)","v":83.7},{"$f":"IF(ISERROR(Dados!Y37),\"-\",Dados!Y37)","v":83.7},{"$f":"IF(ISERROR(Dados!Z37),\"-\",Dados!Z37)","v":24.404838709677417},{"$f":"IF(ISERROR(Dados!AA37),\"-\",Dados!AA37)","v":3.55},{"$f":"IF(ISERROR(Dados!AB37),\"-\",Dados!AB37)","v":2.8335169133023642E-3},{"$f":"IF(ISERROR(Dados!AC37),\"-\",Dados!AC37)","v":-2.8},{"$f":"IF(ISERROR(Dados!AD37),\"-\",Dados!AD37)","v":"-"},{"$f":"IF(ISERROR(Dados!AE37),\"-\",Dados!AE37)","v":0.93785999864471103},{"$f":"IF(ISERROR(Dados!AF37),\"-\",Dados!AF37)","v":"LOGG3"},{"$f":"IF(ISERROR(Dados!AG37),\"-\",Dados!AG37)","v":83.7}]
[{"$f":"IF(ISERROR(Dados!A38),\"-\",Dados!A38)","v":"CYRE3"},{"$f":"IF(ISERROR(Dados!B38),\"-\",Dados!B38)","v":"Construção"},{"$f":"IF(ISERROR(Dados!C38),\"-\",Dados!C38)","v":"Cyrela Realt"},{"$f":"IF(ISERROR(Dados!D38),\"-\",Dados!D38)","v":16.27},{"$f":"IF(ISERROR(Dados!E38),\"-\",Dados!E38)","v":384.22899999999998},{"$f":"IF(ISERROR(Dados!F38),\"-\",Dados!F38)","v":6251.41},{"$f":"IF(ISERROR(Dados!G38),\"-\",Dados!G38)","v":5148.55},{"$f":"IF(ISERROR(Dados!H38),\"-\",Dados!H38)","v":2673.77},{"$f":"IF(ISERROR(Dados!I38),\"-\",Dados!I38)","v":3146.16},{"$f":"IF(ISERROR(Dados!J38),\"-\",Dados!J38)","v":-95},{"$f":"IF(ISERROR(Dados!K38),\"-\",Dados!K38)","v":-51.28},{"$f":"IF(ISERROR(Dados!L38),\"-\",Dados!L38)","v":-79.72},{"$f":"IF(ISERROR(Dados!M38),\"-\",Dados!M38)","v":-200.47},{"$f":"IF(ISERROR(Dados!N38),\"-\",Dados!N38)","v":-84.36},{"$f":"IF(ISERROR(Dados!O38),\"-\",Dados!O38)","v":-95},{"$f":"IF(ISERROR(Dados!P38),\"-\",Dados!P38)","v":-84.36},{"$f":"IF(ISERROR(Dados!Q38),\"-\",Dados!Q38)","v":-0.21955656652673275},{"$f":"IF(ISERROR(Dados!R38),\"-\",Dados!R38)","v":13.399691329910029},{"$f":"IF(ISERROR(Dados!S38),\"-\",Dados!S38)","v":1.2142070738363226},{"$f":"IF(ISERROR(Dados!T38),\"-\",Dados!T38)","v":"-"},{"$f":"IF(ISERROR(Dados!U38),\"-\",Dados!U38)","v":9.4700000000000003E-4},{"$f":"IF(ISERROR(Dados!V38),\"-\",Dados!V38)","v":0.174563},{"$f":"IF(ISERROR(Dados!W38),\"-\",Dados!W38)","v":83.4},{"$f":"IF(ISERROR(Dados!X38),\"-\",Dados!X38)","v":113.8},{"$f":"IF(ISERROR(Dados!Y38),\"-\",Dados!Y38)","v":113.8},{"$f":"IF(ISERROR(Dados!Z38),\"-\",Dados!Z38)","v":63.428005272407731},{"$f":"IF(ISERROR(Dados!AA38),\"-\",Dados!AA38)","v":430},{"$f":"IF(ISERROR(Dados!AB38),\"-\",Dados!AB38)","v":6.8784482220810989E-2},{"$f":"IF(ISERROR(Dados!AC38),\"-\",Dados!AC38)","v":-4.9000000000000004},{"$f":"IF(ISERROR(Dados!AD38),\"-\",Dados!AD38)","v":33.200000000000003},{"$f":"IF(ISERROR(Dados!AE38),\"-\",Dados!AE38)","v":"-"},{"$f":"IF(ISERROR(Dados!AF38),\"-\",Dados!AF38)","v":"CYRE3"},{"$f":"IF(ISERROR(Dados!AG38),\"-\",Dados!AG38)","v":113.8}]
[{"$f":"IF(ISERROR(Dados!A39),\"-\",Dados!A39)","v":"RDNI3"},{"$f":"IF(ISERROR(Dados!B39),\"-\",Dados!B39)","v":"Construção"},{"$f":"IF(ISERROR(Dados!C39),\"-\",Dados!C39)","v":"Rni"},{"$f":"IF(ISERROR(Dados!D39),\"-\",Dados!D39)","v":5.5},{"$f":"IF(ISERROR(Dados!E39),\"-\",Dados!E39)","v":42.189},{"$f":"IF(ISERROR(Dados!F39),\"-\",Dados!F39)","v":232.04},{"$f":"IF(ISERROR(Dados!G39),\"-\",Dados!G39)","v":615.29999999999995},{"$f":"IF(ISERROR(Dados!H39),\"-\",Dados!H39)","v":289.72000000000003},{"$f":"IF(ISERROR(Dados!I39),\"-\",Dados!I39)","v":182.61},{"$f":"IF(ISERROR(Dados!J39),\"-\",Dados!J39)","v":-93.19},{"$f":"IF(ISERROR(Dados!K39),\"-\",Dados!K39)","v":-11.75},{"$f":"IF(ISERROR(Dados!L39),\"-\",Dados!L39)","v":-20.87},{"$f":"IF(ISERROR(Dados!M39),\"-\",Dados!M39)","v":-18.350000000000001},{"$f":"IF(ISERROR(Dados!N39),\"-\",Dados!N39)","v":-26.1},{"$f":"IF(ISERROR(Dados!O39),\"-\",Dados!O39)","v":-93.19},{"$f":"IF(ISERROR(Dados!P39),\"-\",Dados!P39)","v":-26.1},{"$f":"IF(ISERROR(Dados!Q39),\"-\",Dados!Q39)","v":-0.61864467041171878},{"$f":"IF(ISERROR(Dados!R39),\"-\",Dados!R39)","v":14.584370333499253},{"$f":"IF(ISERROR(Dados!S39),\"-\",Dados!S39)","v":0.37711604095563139},{"$f":"IF(ISERROR(Dados!T39),\"-\",Dados!T39)","v":"-"},{"$f":"IF(ISERROR(Dados!U39),\"-\",Dados!U39)","v":-4.1749999999999995E-2},{"$f":"IF(ISERROR(Dados!V39),\"-\",Dados!V39)","v":0.362373},{"$f":"IF(ISERROR(Dados!W39),\"-\",Dados!W39)","v":-73.900000000000006},{"$f":"IF(ISERROR(Dados!X39),\"-\",Dados!X39)","v":-28},{"$f":"IF(ISERROR(Dados!Y39),\"-\",Dados!Y39)","v":-28},{"$f":"IF(ISERROR(Dados!Z39),\"-\",Dados!Z39)","v":-16.392678571428572},{"$f":"IF(ISERROR(Dados!AA39),\"-\",Dados!AA39)","v":"-"},{"$f":"IF(ISERROR(Dados!AB39),\"-\",Dados!AB39)","v":"-"},{"$f":"IF(ISERROR(Dados!AC39),\"-\",Dados!AC39)","v":-6},{"$f":"IF(ISERROR(Dados!AD39),\"-\",Dados!AD39)","v":-10.6},{"$f":"IF(ISERROR(Dados!AE39),\"-\",Dados!AE39)","v":"-"},{"$f":"IF(ISERROR(Dados!AF39),\"-\",Dados!AF39)","v":"RDNI3"},{"$f":"IF(ISERROR(Dados!AG39),\"-\",Dados!AG39)","v":-28}]
[{"$f":"IF(ISERROR(Dados!A40),\"-\",Dados!A40)","v":"DIRR3"},{"$f":"IF(ISERROR(Dados!B40),\"-\",Dados!B40)","v":"Construção"},{"$f":"IF(ISERROR(Dados!C40),\"-\",Dados!C40)","v":"Direcional"},{"$f":"IF(ISERROR(Dados!D40),\"-\",Dados!D40)","v":8.67},{"$f":"IF(ISERROR(Dados!E40),\"-\",Dados!E40)","v":146.994},{"$f":"IF(ISERROR(Dados!F40),\"-\",Dados!F40)","v":1274.44},{"$f":"IF(ISERROR(Dados!G40),\"-\",Dados!G40)","v":1282.69},{"$f":"IF(ISERROR(Dados!H40),\"-\",Dados!H40)","v":751.86},{"$f":"IF(ISERROR(Dados!I40),\"-\",Dados!I40)","v":1166.05},{"$f":"IF(ISERROR(Dados!J40),\"-\",Dados!J40)","v":-143.78},{"$f":"IF(ISERROR(Dados!K40),\"-\",Dados!K40)","v":-8.09},{"$f":"IF(ISERROR(Dados!L40),\"-\",Dados!L40)","v":-11.87},{"$f":"IF(ISERROR(Dados!M40),\"-\",Dados!M40)","v":-95.69},{"$f":"IF(ISERROR(Dados!N40),\"-\",Dados!N40)","v":-77.5},{"$f":"IF(ISERROR(Dados!O40),\"-\",Dados!O40)","v":-143.78},{"$f":"IF(ISERROR(Dados!P40),\"-\",Dados!P40)","v":-77.5},{"$f":"IF(ISERROR(Dados!Q40),\"-\",Dados!Q40)","v":-0.52723240404370242},{"$f":"IF(ISERROR(Dados!R40),\"-\",Dados!R40)","v":8.7261384818427974},{"$f":"IF(ISERROR(Dados!S40),\"-\",Dados!S40)","v":0.99356662950518038},{"$f":"IF(ISERROR(Dados!T40),\"-\",Dados!T40)","v":"-"},{"$f":"IF(ISERROR(Dados!U40),\"-\",Dados!U40)","v":-4.6086000000000002E-2},{"$f":"IF(ISERROR(Dados!V40),\"-\",Dados!V40)","v":9.9224999999999994E-2},{"$f":"IF(ISERROR(Dados!W40),\"-\",Dados!W40)","v":-108.8},{"$f":"IF(ISERROR(Dados!X40),\"-\",Dados!X40)","v":-10.7},{"$f":"IF(ISERROR(Dados!Y40),\"-\",Dados!Y40)","v":-10.7},{"$f":"IF(ISERROR(Dados!Z40),\"-\",Dados!Z40)","v":-132.02691588785049},{"$f":"IF(ISERROR(Dados!AA40),\"-\",Dados!AA40)","v":90},{"$f":"IF(ISERROR(Dados!AB40),\"-\",Dados!AB40)","v":7.0619252377514832E-2},{"$f":"IF(ISERROR(Dados!AC40),\"-\",Dados!AC40)","v":3.7},{"$f":"IF(ISERROR(Dados!AD40),\"-\",Dados!AD40)","v":75.599999999999994},{"$f":"IF(ISERROR(Dados!AE40),\"-\",Dados!AE40)","v":"-"},{"$f":"IF(ISERROR(Dados!AF40),\"-\",Dados!AF40)","v":"DIRR3"},{"$f":"IF(ISERROR(Dados!AG40),\"-\",Dados!AG40)","v":-10.7}]
[{"$f":"IF(ISERROR(Dados!A41),\"-\",Dados!A41)","v":"EVEN3"},{"$f":"IF(ISERROR(Dados!B41),\"-\",Dados!B41)","v":"Construção"},{"$f":"IF(ISERROR(Dados!C41),\"-\",Dados!C41)","v":"Even"},{"$f":"IF(ISERROR(Dados!D41),\"-\",Dados!D41)","v":6},{"$f":"IF(ISERROR(Dados!E41),\"-\",Dados!E41)","v":213.876},{"$f":"IF(ISERROR(Dados!F41),\"-\",Dados!F41)","v":1283.25},{"$f":"IF(ISERROR(Dados!G41),\"-\",Dados!G41)","v":1577.77},{"$f":"IF(ISERROR(Dados!H41),\"-\",Dados!H41)","v":1583.95},{"$f":"IF(ISERROR(Dados!I41),\"-\",Dados!I41)","v":1474.85},{"$f":"IF(ISERROR(Dados!J41),\"-\",Dados!J41)","v":-378.66},{"$f":"IF(ISERROR(Dados!K41),\"-\",Dados!K41)","v":-25.68},{"$f":"IF(ISERROR(Dados!L41),\"-\",Dados!L41)","v":-56.05},{"$f":"IF(ISERROR(Dados!M41),\"-\",Dados!M41)","v":-68.41},{"$f":"IF(ISERROR(Dados!N41),\"-\",Dados!N41)","v":-160.71},{"$f":"IF(ISERROR(Dados!O41),\"-\",Dados!O41)","v":-378.66},{"$f":"IF(ISERROR(Dados!P41),\"-\",Dados!P41)","v":-160.71},{"$f":"IF(ISERROR(Dados!Q41),\"-\",Dados!Q41)","v":-0.75141670874712452},{"$f":"IF(ISERROR(Dados!R41),\"-\",Dados!R41)","v":7.3770315509921636},{"$f":"IF(ISERROR(Dados!S41),\"-\",Dados!S41)","v":0.81333527700488661},{"$f":"IF(ISERROR(Dados!T41),\"-\",Dados!T41)","v":"-"},{"$f":"IF(ISERROR(Dados!U41),\"-\",Dados!U41)","v":-7.0108000000000004E-2},{"$f":"IF(ISERROR(Dados!V41),\"-\",Dados!V41)","v":0.41889000000000004},{"$f":"IF(ISERROR(Dados!W41),\"-\",Dados!W41)","v":-346.2},{"$f":"IF(ISERROR(Dados!X41),\"-\",Dados!X41)","v":-148.19999999999999},{"$f":"IF(ISERROR(Dados!Y41),\"-\",Dados!Y41)","v":-148.19999999999999},{"$f":"IF(ISERROR(Dados!Z41),\"-\",Dados!Z41)","v":-13.767834008097168},{"$f":"IF(ISERROR(Dados!AA41),\"-\",Dados!AA41)","v":"-"},{"$f":"IF(ISERROR(Dados!AB41),\"-\",Dados!AB41)","v":"-"},{"$f":"IF(ISERROR(Dados!AC41),\"-\",Dados!AC41)","v":0.5},{"$f":"IF(ISERROR(Dados!AD41),\"-\",Dados!AD41)","v":4.5},{"$f":"IF(ISERROR(Dados!AE41),\"-\",Dados!AE41)","v":"-"},{"$f":"IF(ISERROR(Dados!AF41),\"-\",Dados!AF41)","v":"EVEN3"},{"$f":"IF(ISERROR(Dados!AG41),\"-\",Dados!AG41)","v":-148.19999999999999}]
[{"$f":"IF(ISERROR(Dados!A42),\"-\",Dados!A42)","v":"CRDE3"},{"$f":"IF(ISERROR(Dados!B42),\"-\",Dados!B42)","v":"Construção"},{"$f":"IF(ISERROR(Dados!C42),\"-\",Dados!C42)","v":"Cr2"},{"$f":"IF(ISERROR(Dados!D42),\"-\",Dados!D42)","v":19.600000000000001},{"$f":"IF(ISERROR(Dados!E42),\"-\",Dados!E42)","v":2.4220000000000002},{"$f":"IF(ISERROR(Dados!F42),\"-\",Dados!F42)","v":47.47},{"$f":"IF(ISERROR(Dados!G42),\"-\",Dados!G42)","v":167.02},{"$f":"IF(ISERROR(Dados!H42),\"-\",Dados!H42)","v":11.49},{"$f":"IF(ISERROR(Dados!I42),\"-\",Dados!I42)","v":5.28},{"$f":"IF(ISERROR(Dados!J42),\"-\",Dados!J42)","v":-4.49},{"$f":"IF(ISERROR(Dados!K42),\"-\",Dados!K42)","v":-7.07},{"$f":"IF(ISERROR(Dados!L42),\"-\",Dados!L42)","v":-6.98},{"$f":"IF(ISERROR(Dados!M42),\"-\",Dados!M42)","v":-9.98},{"$f":"IF(ISERROR(Dados!N42),\"-\",Dados!N42)","v":-15.71},{"$f":"IF(ISERROR(Dados!O42),\"-\",Dados!O42)","v":-4.49},{"$f":"IF(ISERROR(Dados!P42),\"-\",Dados!P42)","v":-15.71},{"$f":"IF(ISERROR(Dados!Q42),\"-\",Dados!Q42)","v":-6.4863748967795214},{"$f":"IF(ISERROR(Dados!R42),\"-\",Dados!R42)","v":68.959537572254334},{"$f":"IF(ISERROR(Dados!S42),\"-\",Dados!S42)","v":0.28422464375523893},{"$f":"IF(ISERROR(Dados!T42),\"-\",Dados!T42)","v":"-"},{"$f":"IF(ISERROR(Dados!U42),\"-\",Dados!U42)","v":-0.11118399999999999},{"$f":"IF(ISERROR(Dados!V42),\"-\",Dados!V42)","v":-0.167321},{"$f":"IF(ISERROR(Dados!W42),\"-\",Dados!W42)","v":-7.4},{"$f":"IF(ISERROR(Dados!X42),\"-\",Dados!X42)","v":-18.3},{"$f":"IF(ISERROR(Dados!Y42),\"-\",Dados!Y42)","v":-18.3},{"$f":"IF(ISERROR(Dados!Z42),\"-\",Dados!Z42)","v":-1.0620765027322403},{"$f":"IF(ISERROR(Dados!AA42),\"-\",Dados!AA42)","v":"-"},{"$f":"IF(ISERROR(Dados!AB42),\"-\",Dados!AB42)","v":"-"},{"$f":"IF(ISERROR(Dados!AC42),\"-\",Dados!AC42)","v":-2.8},{"$f":"IF(ISERROR(Dados!AD42),\"-\",Dados!AD42)","v":-33.799999999999997},{"$f":"IF(ISERROR(Dados!AE42),\"-\",Dados!AE42)","v":"-"},{"$f":"IF(ISERROR(Dados!AF42),\"-\",Dados!AF42)","v":"CRDE3"},{"$f":"IF(ISERROR(Dados!AG42),\"-\",Dados!AG42)","v":-18.3}]
[{"$f":"IF(ISERROR(Dados!A43),\"-\",Dados!A43)","v":"HBOR3"},{"$f":"IF(ISERROR(Dados!B43),\"-\",Dados!B43)","v":"Construção"},{"$f":"IF(ISERROR(Dados!C43),\"-\",Dados!C43)","v":"Helbor"},{"$f":"IF(ISERROR(Dados!D43),\"-\",Dados!D43)","v":1.33},{"$f":"IF(ISERROR(Dados!E43),\"-\",Dados!E43)","v":452.12599999999998},{"$f":"IF(ISERROR(Dados!F43),\"-\",Dados!F43)","v":601.33000000000004},{"$f":"IF(ISERROR(Dados!G43),\"-\",Dados!G43)","v":823.34},{"$f":"IF(ISERROR(Dados!H43),\"-\",Dados!H43)","v":518.14},{"$f":"IF(ISERROR(Dados!I43),\"-\",Dados!I43)","v":633.6},{"$f":"IF(ISERROR(Dados!J43),\"-\",Dados!J43)","v":-309.12},{"$f":"IF(ISERROR(Dados!K43),\"-\",Dados!K43)","v":-67.849999999999994},{"$f":"IF(ISERROR(Dados!L43),\"-\",Dados!L43)","v":-166.11},{"$f":"IF(ISERROR(Dados!M43),\"-\",Dados!M43)","v":-295.37},{"$f":"IF(ISERROR(Dados!N43),\"-\",Dados!N43)","v":-340.93},{"$f":"IF(ISERROR(Dados!O43),\"-\",Dados!O43)","v":-309.12},{"$f":"IF(ISERROR(Dados!P43),\"-\",Dados!P43)","v":-340.93},{"$f":"IF(ISERROR(Dados!Q43),\"-\",Dados!Q43)","v":-0.7540597090191673},{"$f":"IF(ISERROR(Dados!R43),\"-\",Dados!R43)","v":1.8210410372329839},{"$f":"IF(ISERROR(Dados!S43),\"-\",Dados!S43)","v":0.73035147083829277},{"$f":"IF(ISERROR(Dados!T43),\"-\",Dados!T43)","v":"-"},{"$f":"IF(ISERROR(Dados!U43),\"-\",Dados!U43)","v":-0.18989999999999999},{"$f":"IF(ISERROR(Dados!V43),\"-\",Dados!V43)","v":1.3910689999999999},{"$f":"IF(ISERROR(Dados!W43),\"-\",Dados!W43)","v":-244},{"$f":"IF(ISERROR(Dados!X43),\"-\",Dados!X43)","v":-305.39999999999998},{"$f":"IF(ISERROR(Dados!Y43),\"-\",Dados!Y43)","v":-305.39999999999998},{"$f":"IF(ISERROR(Dados!Z43),\"-\",Dados!Z43)","v":-7.2028323510150623},{"$f":"IF(ISERROR(Dados!AA43),\"-\",Dados!AA43)","v":"-"},{"$f":"IF(ISERROR(Dados!AB43),\"-\",Dados!AB43)","v":"-"},{"$f":"IF(ISERROR(Dados!AC43),\"-\",Dados!AC43)","v":-5.7},{"$f":"IF(ISERROR(Dados!AD43),\"-\",Dados!AD43)","v":-32.1},{"$f":"IF(ISERROR(Dados!AE43),\"-\",Dados!AE43)","v":"-"},{"$f":"IF(ISERROR(Dados!AF43),\"-\",Dados!AF43)","v":"HBOR3"},{"$f":"IF(ISERROR(Dados!AG43),\"-\",Dados!AG43)","v":-305.39999999999998}]
[{"$f":"IF(ISERROR(Dados!A44),\"-\",Dados!A44)","v":"TCSA3"},{"$f":"IF(ISERROR(Dados!B44),\"-\",Dados!B44)","v":"Construção"},{"$f":"IF(ISERROR(Dados!C44),\"-\",Dados!C44)","v":"Tecnisa"},{"$f":"IF(ISERROR(Dados!D44),\"-\",Dados!D44)","v":1.31},{"$f":"IF(ISERROR(Dados!E44),\"-\",Dados!E44)","v":331.19200000000001},{"$f":"IF(ISERROR(Dados!F44),\"-\",Dados!F44)","v":433.86},{"$f":"IF(ISERROR(Dados!G44),\"-\",Dados!G44)","v":772.01},{"$f":"IF(ISERROR(Dados!H44),\"-\",Dados!H44)","v":307.99},{"$f":"IF(ISERROR(Dados!I44),\"-\",Dados!I44)","v":175.93},{"$f":"IF(ISERROR(Dados!J44),\"-\",Dados!J44)","v":-520.65},{"$f":"IF(ISERROR(Dados!K44),\"-\",Dados!K44)","v":-53.67},{"$f":"IF(ISERROR(Dados!L44),\"-\",Dados!L44)","v":-139.5},{"$f":"IF(ISERROR(Dados!M44),\"-\",Dados!M44)","v":-212.87},{"$f":"IF(ISERROR(Dados!N44),\"-\",Dados!N44)","v":-277.05},{"$f":"IF(ISERROR(Dados!O44),\"-\",Dados!O44)","v":-520.65},{"$f":"IF(ISERROR(Dados!P44),\"-\",Dados!P44)","v":-277.05},{"$f":"IF(ISERROR(Dados!Q44),\"-\",Dados!Q44)","v":-0.83652382907799705},{"$f":"IF(ISERROR(Dados!R44),\"-\",Dados!R44)","v":2.3310043720862823},{"$f":"IF(ISERROR(Dados!S44),\"-\",Dados!S44)","v":0.56198950790792868},{"$f":"IF(ISERROR(Dados!T44),\"-\",Dados!T44)","v":"-"},{"$f":"IF(ISERROR(Dados!U44),\"-\",Dados!U44)","v":-0.26585000000000003},{"$f":"IF(ISERROR(Dados!V44),\"-\",Dados!V44)","v":0.73887200000000008},{"$f":"IF(ISERROR(Dados!W44),\"-\",Dados!W44)","v":-464.4},{"$f":"IF(ISERROR(Dados!X44),\"-\",Dados!X44)","v":-209},{"$f":"IF(ISERROR(Dados!Y44),\"-\",Dados!Y44)","v":-209},{"$f":"IF(ISERROR(Dados!Z44),\"-\",Dados!Z44)","v":-4.8422631578947373},{"$f":"IF(ISERROR(Dados!AA44),\"-\",Dados!AA44)","v":"-"},{"$f":"IF(ISERROR(Dados!AB44),\"-\",Dados!AB44)","v":"-"},{"$f":"IF(ISERROR(Dados!AC44),\"-\",Dados!AC44)","v":2.2999999999999998},{"$f":"IF(ISERROR(Dados!AD44),\"-\",Dados!AD44)","v":-36.4},{"$f":"IF(ISERROR(Dados!AE44),\"-\",Dados!AE44)","v":"-"},{"$f":"IF(ISERROR(Dados!AF44),\"-\",Dados!AF44)","v":"TCSA3"},{"$f":"IF(ISERROR(Dados!AG44),\"-\",Dados!AG44)","v":-209}]
[{"$f":"IF(ISERROR(Dados!A45),\"-\",Dados!A45)","v":"GFSA3"},{"$f":"IF(ISERROR(Dados!B45),\"-\",Dados!B45)","v":"Construção"},{"$f":"IF(ISERROR(Dados!C45),\"-\",Dados!C45)","v":"Gafisa"},{"$f":"IF(ISERROR(Dados!D45),\"-\",Dados!D45)","v":8.5399999999999991},{"$f":"IF(ISERROR(Dados!E45),\"-\",Dados!E45)","v":39.784999999999997},{"$f":"IF(ISERROR(Dados!F45),\"-\",Dados!F45)","v":339.76},{"$f":"IF(ISERROR(Dados!G45),\"-\",Dados!G45)","v":491.32},{"$f":"IF(ISERROR(Dados!H45),\"-\",Dados!H45)","v":608.82000000000005},{"$f":"IF(ISERROR(Dados!I45),\"-\",Dados!I45)","v":960.89},{"$f":"IF(ISERROR(Dados!J45),\"-\",Dados!J45)","v":-849.86},{"$f":"IF(ISERROR(Dados!K45),\"-\",Dados!K45)","v":-55.92},{"$f":"IF(ISERROR(Dados!L45),\"-\",Dados!L45)","v":-85.28},{"$f":"IF(ISERROR(Dados!M45),\"-\",Dados!M45)","v":-122.51},{"$f":"IF(ISERROR(Dados!N45),\"-\",Dados!N45)","v":-419.53},{"$f":"IF(ISERROR(Dados!O45),\"-\",Dados!O45)","v":-849.86},{"$f":"IF(ISERROR(Dados!P45),\"-\",Dados!P45)","v":-419.53},{"$f":"IF(ISERROR(Dados!Q45),\"-\",Dados!Q45)","v":-10.544928993339198},{"$f":"IF(ISERROR(Dados!R45),\"-\",Dados!R45)","v":12.349377906246074},{"$f":"IF(ISERROR(Dados!S45),\"-\",Dados!S45)","v":0.69153280957420815},{"$f":"IF(ISERROR(Dados!T45),\"-\",Dados!T45)","v":"-"},{"$f":"IF(ISERROR(Dados!U45),\"-\",Dados!U45)","v":-0.55474600000000007},{"$f":"IF(ISERROR(Dados!V45),\"-\",Dados!V45)","v":1.525277},{"$f":"IF(ISERROR(Dados!W45),\"-\",Dados!W45)","v":-832.1},{"$f":"IF(ISERROR(Dados!X45),\"-\",Dados!X45)","v":-341.2},{"$f":"IF(ISERROR(Dados!Y45),\"-\",Dados!Y45)","v":-341.2},{"$f":"IF(ISERROR(Dados!Z45),\"-\",Dados!Z45)","v":-3.2005070339976553},{"$f":"IF(ISERROR(Dados!AA45),\"-\",Dados!AA45)","v":"-"},{"$f":"IF(ISERROR(Dados!AB45),\"-\",Dados!AB45)","v":"-"},{"$f":"IF(ISERROR(Dados!AC45),\"-\",Dados!AC45)","v":-13},{"$f":"IF(ISERROR(Dados!AD45),\"-\",Dados!AD45)","v":-58.3},{"$f":"IF(ISERROR(Dados!AE45),\"-\",Dados!AE45)","v":"-"},{"$f":"IF(ISERROR(Dados!AF45),\"-\",Dados!AF45)","v":"GFSA3"},{"$f":"IF(ISERROR(Dados!AG45),\"-\",Dados!AG45)","v":-341.2}]
[{"$f":"IF(ISERROR(Dados!A46),\"-\",Dados!A46)","v":"RSID3"},{"$f":"IF(ISERROR(Dados!B46),\"-\",Dados!B46)","v":"Construção"},{"$f":"IF(ISERROR(Dados!C46),\"-\",Dados!C46)","v":"Rossi Resid"},{"$f":"IF(ISERROR(Dados!D46),\"-\",Dados!D46)","v":4.6900000000000004},{"$f":"IF(ISERROR(Dados!E46),\"-\",Dados!E46)","v":16.818999999999999},{"$f":"IF(ISERROR(Dados!F46),\"-\",Dados!F46)","v":78.88},{"$f":"IF(ISERROR(Dados!G46),\"-\",Dados!G46)","v":-237.45},{"$f":"IF(ISERROR(Dados!H46),\"-\",Dados!H46)","v":326.02999999999997},{"$f":"IF(ISERROR(Dados!I46),\"-\",Dados!I46)","v":148.72},{"$f":"IF(ISERROR(Dados!J46),\"-\",Dados!J46)","v":-338.89},{"$f":"IF(ISERROR(Dados!K46),\"-\",Dados!K46)","v":-142.85},{"$f":"IF(ISERROR(Dados!L46),\"-\",Dados!L46)","v":-242.5},{"$f":"IF(ISERROR(Dados!M46),\"-\",Dados!M46)","v":-400.8},{"$f":"IF(ISERROR(Dados!N46),\"-\",Dados!N46)","v":-614.04999999999995},{"$f":"IF(ISERROR(Dados!O46),\"-\",Dados!O46)","v":-338.89},{"$f":"IF(ISERROR(Dados!P46),\"-\",Dados!P46)","v":-614.04999999999995},{"$f":"IF(ISERROR(Dados!Q46),\"-\",Dados!Q46)","v":-36.50930495273203},{"$f":"IF(ISERROR(Dados!R46),\"-\",Dados!R46)","v":"-"},{"$f":"IF(ISERROR(Dados!S46),\"-\",Dados!S46)","v":"-"},{"$f":"IF(ISERROR(Dados!T46),\"-\",Dados!T46)","v":"-"},{"$f":"IF(ISERROR(Dados!U46),\"-\",Dados!U46)","v":-1.6409659999999999},{"$f":"IF(ISERROR(Dados!V46),\"-\",Dados!V46)","v":-6.2562890000000007},{"$f":"IF(ISERROR(Dados!W46),\"-\",Dados!W46)","v":-418},{"$f":"IF(ISERROR(Dados!X46),\"-\",Dados!X46)","v":-427.4},{"$f":"IF(ISERROR(Dados!Y46),\"-\",Dados!Y46)","v":-427.4},{"$f":"IF(ISERROR(Dados!Z46),\"-\",Dados!Z46)","v":-3.7753954141319603},{"$f":"IF(ISERROR(Dados!AA46),\"-\",Dados!AA46)","v":"-"},{"$f":"IF(ISERROR(Dados!AB46),\"-\",Dados!AB46)","v":"-"},{"$f":"IF(ISERROR(Dados!AC46),\"-\",Dados!AC46)","v":-5.8},{"$f":"IF(ISERROR(Dados!AD46),\"-\",Dados!AD46)","v":-34.799999999999997},{"$f":"IF(ISERROR(Dados!AE46),\"-\",Dados!AE46)","v":"-"},{"$f":"IF(ISERROR(Dados!AF46),\"-\",Dados!AF46)","v":"RSID3"},{"$f":"IF(ISERROR(Dados!AG46),\"-\",Dados!AG46)","v":-427.4}]
[{"$f":"IF(ISERROR(Dados!A47),\"-\",Dados!A47)","v":"AZEV4"},{"$f":"IF(ISERROR(Dados!B47),\"-\",Dados!B47)","v":"Construção"},{"$f":"IF(ISERROR(Dados!C47),\"-\",Dados!C47)","v":"Azevedo"},{"$f":"IF(ISERROR(Dados!D47),\"-\",Dados!D47)","v":0.99},{"$f":"IF(ISERROR(Dados!E47),\"-\",Dados!E47)","v":27},{"$f":"IF(ISERROR(Dados!F47),\"-\",Dados!F47)","v":71.819999999999993},{"$f":"IF(ISERROR(Dados!G47),\"-\",Dados!G47)","v":-101.34},{"$f":"IF(ISERROR(Dados!H47),\"-\",Dados!H47)","v":63.77},{"$f":"IF(ISERROR(Dados!I47),\"-\",Dados!I47)","v":"-"},{"$f":"IF(ISERROR(Dados!J47),\"-\",Dados!J47)","v":-84.23},{"$f":"IF(ISERROR(Dados!K47),\"-\",Dados!K47)","v":-12.02},{"$f":"IF(ISERROR(Dados!L47),\"-\",Dados!L47)","v":-23.01},{"$f":"IF(ISERROR(Dados!M47),\"-\",Dados!M47)","v":"-"},{"$f":"IF(ISERROR(Dados!N47),\"-\",Dados!N47)","v":"-"},{"$f":"IF(ISERROR(Dados!O47),\"-\",Dados!O47)","v":-84.23},{"$f":"IF(ISERROR(Dados!P47),\"-\",Dados!P47)","v":"-"},{"$f":"IF(ISERROR(Dados!Q47),\"-\",Dados!Q47)","v":-3.0855555555555556},{"$f":"IF(ISERROR(Dados!R47),\"-\",Dados!R47)","v":"-"},{"$f":"IF(ISERROR(Dados!S47),\"-\",Dados!S47)","v":"-"},{"$f":"IF(ISERROR(Dados!T47),\"-\",Dados!T47)","v":"-"},{"$f":"IF(ISERROR(Dados!U47),\"-\",Dados!U47)","v":"-"},{"$f":"IF(ISERROR(Dados!V47),\"-\",Dados!V47)","v":-0.25961000000000001},{"$f":"IF(ISERROR(Dados!W47),\"-\",Dados!W47)","v":-70.900000000000006},{"$f":"IF(ISERROR(Dados!X47),\"-\",Dados!X47)","v":"-"},{"$f":"IF(ISERROR(Dados!Y47),\"-\",Dados!Y47)","v":-63.1},{"$f":"IF(ISERROR(Dados!Z47),\"-\",Dados!Z47)","v":-1.5552773375594293},{"$f":"IF(ISERROR(Dados!AA47),\"-\",Dados!AA47)","v":"-"},{"$f":"IF(ISERROR(Dados!AB47),\"-\",Dados!AB47)","v":"-"},{"$f":"IF(ISERROR(Dados!AC47),\"-\",Dados!AC47)","v":-10},{"$f":"IF(ISERROR(Dados!AD47),\"-\",Dados!AD47)","v":-6.6},{"$f":"IF(ISERROR(Dados!AE47),\"-\",Dados!AE47)","v":0.33333333333333331},{"$f":"IF(ISERROR(Dados!AF47),\"-\",Dados!AF47)","v":"AZEV4"},{"$f":"IF(ISERROR(Dados!AG47),\"-\",Dados!AG47)","v":-63.1}]
[{"$f":"IF(ISERROR(Dados!A48),\"-\",Dados!A48)","v":"PDGR3"},{"$f":"IF(ISERROR(Dados!B48),\"-\",Dados!B48)","v":"Construção"},{"$f":"IF(ISERROR(Dados!C48),\"-\",Dados!C48)","v":"PDG Realt"},{"$f":"IF(ISERROR(Dados!D48),\"-\",Dados!D48)","v":7.3},{"$f":"IF(ISERROR(Dados!E48),\"-\",Dados!E48)","v":8.0670000000000002},{"$f":"IF(ISERROR(Dados!F48),\"-\",Dados!F48)","v":58.89},{"$f":"IF(ISERROR(Dados!G48),\"-\",Dados!G48)","v":-3963.66},{"$f":"IF(ISERROR(Dados!H48),\"-\",Dados!H48)","v":458.25},{"$f":"IF(ISERROR(Dados!I48),\"-\",Dados!I48)","v":213.46},{"$f":"IF(ISERROR(Dados!J48),\"-\",Dados!J48)","v":173.22},{"$f":"IF(ISERROR(Dados!K48),\"-\",Dados!K48)","v":-260.31},{"$f":"IF(ISERROR(Dados!L48),\"-\",Dados!L48)","v":-600.12},{"$f":"IF(ISERROR(Dados!M48),\"-\",Dados!M48)","v":-708.98},{"$f":"IF(ISERROR(Dados!N48),\"-\",Dados!N48)","v":-838.91},{"$f":"IF(ISERROR(Dados!O48),\"-\",Dados!O48)","v":173.22},{"$f":"IF(ISERROR(Dados!P48),\"-\",Dados!P48)","v":-838.91},{"$f":"IF(ISERROR(Dados!Q48),\"-\",Dados!Q48)","v":-103.99281021445394},{"$f":"IF(ISERROR(Dados!R48),\"-\",Dados!R48)","v":"-"},{"$f":"IF(ISERROR(Dados!S48),\"-\",Dados!S48)","v":"-"},{"$f":"IF(ISERROR(Dados!T48),\"-\",Dados!T48)","v":"-"},{"$f":"IF(ISERROR(Dados!U48),\"-\",Dados!U48)","v":"-"},{"$f":"IF(ISERROR(Dados!V48),\"-\",Dados!V48)","v":-0.36731400000000003},{"$f":"IF(ISERROR(Dados!W48),\"-\",Dados!W48)","v":-1745.7},{"$f":"IF(ISERROR(Dados!X48),\"-\",Dados!X48)","v":-359.1},{"$f":"IF(ISERROR(Dados!Y48),\"-\",Dados!Y48)","v":-359.1},{"$f":"IF(ISERROR(Dados!Z48),\"-\",Dados!Z48)","v":-4.2549568365357837},{"$f":"IF(ISERROR(Dados!AA48),\"-\",Dados!AA48)","v":"-"},{"$f":"IF(ISERROR(Dados!AB48),\"-\",Dados!AB48)","v":"-"},{"$f":"IF(ISERROR(Dados!AC48),\"-\",Dados!AC48)","v":"-"},{"$f":"IF(ISERROR(Dados!AD48),\"-\",Dados!AD48)","v":-67.8},{"$f":"IF(ISERROR(Dados!AE48),\"-\",Dados!AE48)","v":"-"},{"$f":"IF(ISERROR(Dados!AF48),\"-\",Dados!AF48)","v":"PDGR3"},{"$f":"IF(ISERROR(Dados!AG48),\"-\",Dados!AG48)","v":-359.1}]
[{"$f":"IF(ISERROR(Dados!A49),\"-\",Dados!A49)","v":"VIVR3"},{"$f":"IF(ISERROR(Dados!B49),\"-\",Dados!B49)","v":"Construção"},{"$f":"IF(ISERROR(Dados!C49),\"-\",Dados!C49)","v":"Viver"},{"$f":"IF(ISERROR(Dados!D49),\"-\",Dados!D49)","v":0.37},{"$f":"IF(ISERROR(Dados!E49),\"-\",Dados!E49)","v":463.08499999999998},{"$f":"IF(ISERROR(Dados!F49),\"-\",Dados!F49)","v":171.34},{"$f":"IF(ISERROR(Dados!G49),\"-\",Dados!G49)","v":46.11},{"$f":"IF(ISERROR(Dados!H49),\"-\",Dados!H49)","v":5.94},{"$f":"IF(ISERROR(Dados!I49),\"-\",Dados!I49)","v":85.03},{"$f":"IF(ISERROR(Dados!J49),\"-\",Dados!J49)","v":-120.63},{"$f":"IF(ISERROR(Dados!K49),\"-\",Dados!K49)","v":-18.66},{"$f":"IF(ISERROR(Dados!L49),\"-\",Dados!L49)","v":-46.1},{"$f":"IF(ISERROR(Dados!M49),\"-\",Dados!M49)","v":-118.09},{"$f":"IF(ISERROR(Dados!N49),\"-\",Dados!N49)","v":-197.22},{"$f":"IF(ISERROR(Dados!O49),\"-\",Dados!O49)","v":-120.63},{"$f":"IF(ISERROR(Dados!P49),\"-\",Dados!P49)","v":-197.22},{"$f":"IF(ISERROR(Dados!Q49),\"-\",Dados!Q49)","v":-0.4258829372577389},{"$f":"IF(ISERROR(Dados!R49),\"-\",Dados!R49)","v":9.9571352991351489E-2},{"$f":"IF(ISERROR(Dados!S49),\"-\",Dados!S49)","v":3.7159282151377138},{"$f":"IF(ISERROR(Dados!T49),\"-\",Dados!T49)","v":"-"},{"$f":"IF(ISERROR(Dados!U49),\"-\",Dados!U49)","v":"-"},{"$f":"IF(ISERROR(Dados!V49),\"-\",Dados!V49)","v":5.650525},{"$f":"IF(ISERROR(Dados!W49),\"-\",Dados!W49)","v":-94.7},{"$f":"IF(ISERROR(Dados!X49),\"-\",Dados!X49)","v":-81.900000000000006},{"$f":"IF(ISERROR(Dados!Y49),\"-\",Dados!Y49)","v":-81.900000000000006},{"$f":"IF(ISERROR(Dados!Z49),\"-\",Dados!Z49)","v":-5.2734676434676437},{"$f":"IF(ISERROR(Dados!AA49),\"-\",Dados!AA49)","v":"-"},{"$f":"IF(ISERROR(Dados!AB49),\"-\",Dados!AB49)","v":"-"},{"$f":"IF(ISERROR(Dados!AC49),\"-\",Dados!AC49)","v":"-"},{"$f":"IF(ISERROR(Dados!AD49),\"-\",Dados!AD49)","v":-76.7},{"$f":"IF(ISERROR(Dados!AE49),\"-\",Dados!AE49)","v":0.96181046676096182},{"$f":"IF(ISERROR(Dados!AF49),\"-\",Dados!AF49)","v":"VIVR3"},{"$f":"IF(ISERROR(Dados!AG49),\"-\",Dados!AG49)","v":-81.900000000000006}]
[{"$f":"IF(ISERROR(Dados!A50),\"-\",Dados!A50)","v":"WHRL4"},{"$f":"IF(ISERROR(Dados!B50),\"-\",Dados!B50)","v":"Eletroeletrônicos"},{"$f":"IF(ISERROR(Dados!C50),\"-\",Dados!C50)","v":"Whirlpool"},{"$f":"IF(ISERROR(Dados!D50),\"-\",Dados!D50)","v":4.72},{"$f":"IF(ISERROR(Dados!E50),\"-\",Dados!E50)","v":1502.7860000000001},{"$f":"IF(ISERROR(Dados!F50),\"-\",Dados!F50)","v":6763.97},{"$f":"IF(ISERROR(Dados!G50),\"-\",Dados!G50)","v":2189.91},{"$f":"IF(ISERROR(Dados!H50),\"-\",Dados!H50)","v":9482.8700000000008},{"$f":"IF(ISERROR(Dados!I50),\"-\",Dados!I50)","v":6193.96},{"$f":"IF(ISERROR(Dados!J50),\"-\",Dados!J50)","v":435.86},{"$f":"IF(ISERROR(Dados!K50),\"-\",Dados!K50)","v":75.489999999999995},{"$f":"IF(ISERROR(Dados!L50),\"-\",Dados!L50)","v":94.13},{"$f":"IF(ISERROR(Dados!M50),\"-\",Dados!M50)","v":164.61},{"$f":"IF(ISERROR(Dados!N50),\"-\",Dados!N50)","v":180.6},{"$f":"IF(ISERROR(Dados!O50),\"-\",Dados!O50)","v":435.86},{"$f":"IF(ISERROR(Dados!P50),\"-\",Dados!P50)","v":180.6},{"$f":"IF(ISERROR(Dados!Q50),\"-\",Dados!Q50)","v":0.12017679163899583},{"$f":"IF(ISERROR(Dados!R50),\"-\",Dados!R50)","v":1.4572334317727207},{"$f":"IF(ISERROR(Dados!S50),\"-\",Dados!S50)","v":3.2390143521879895},{"$f":"IF(ISERROR(Dados!T50),\"-\",Dados!T50)","v":39.275470210409743},{"$f":"IF(ISERROR(Dados!U50),\"-\",Dados!U50)","v":7.3301000000000005E-2},{"$f":"IF(ISERROR(Dados!V50),\"-\",Dados!V50)","v":-0.23127199999999998},{"$f":"IF(ISERROR(Dados!W50),\"-\",Dados!W50)","v":594.70000000000005},{"$f":"IF(ISERROR(Dados!X50),\"-\",Dados!X50)","v":408.5},{"$f":"IF(ISERROR(Dados!Y50),\"-\",Dados!Y50)","v":408.5},{"$f":"IF(ISERROR(Dados!Z50),\"-\",Dados!Z50)","v":15.317990208078337},{"$f":"IF(ISERROR(Dados!AA50),\"-\",Dados!AA50)","v":210.01},{"$f":"IF(ISERROR(Dados!AB50),\"-\",Dados!AB50)","v":3.1048334040511709E-2},{"$f":"IF(ISERROR(Dados!AC50),\"-\",Dados!AC50)","v":-3.3},{"$f":"IF(ISERROR(Dados!AD50),\"-\",Dados!AD50)","v":-2.4},{"$f":"IF(ISERROR(Dados!AE50),\"-\",Dados!AE50)","v":0.68452860220949618},{"$f":"IF(ISERROR(Dados!AF50),\"-\",Dados!AF50)","v":"WHRL4"},{"$f":"IF(ISERROR(Dados!AG50),\"-\",Dados!AG50)","v":408.5}]
[{"$f":"IF(ISERROR(Dados!A51),\"-\",Dados!A51)","v":"POSI3"},{"$f":"IF(ISERROR(Dados!B51),\"-\",Dados!B51)","v":"Eletroeletrônicos"},{"$f":"IF(ISERROR(Dados!C51),\"-\",Dados!C51)","v":"Positivo Tec"},{"$f":"IF(ISERROR(Dados!D51),\"-\",Dados!D51)","v":2.2799999999999998},{"$f":"IF(ISERROR(Dados!E51),\"-\",Dados!E51)","v":85.965000000000003},{"$f":"IF(ISERROR(Dados!F51),\"-\",Dados!F51)","v":196},{"$f":"IF(ISERROR(Dados!G51),\"-\",Dados!G51)","v":508.99},{"$f":"IF(ISERROR(Dados!H51),\"-\",Dados!H51)","v":1913.61},{"$f":"IF(ISERROR(Dados!I51),\"-\",Dados!I51)","v":1951.34},{"$f":"IF(ISERROR(Dados!J51),\"-\",Dados!J51)","v":-47.55},{"$f":"IF(ISERROR(Dados!K51),\"-\",Dados!K51)","v":1.96},{"$f":"IF(ISERROR(Dados!L51),\"-\",Dados!L51)","v":-9.65},{"$f":"IF(ISERROR(Dados!M51),\"-\",Dados!M51)","v":2.1800000000000002},{"$f":"IF(ISERROR(Dados!N51),\"-\",Dados!N51)","v":-0.46},{"$f":"IF(ISERROR(Dados!O51),\"-\",Dados!O51)","v":-47.55},{"$f":"IF(ISERROR(Dados!P51),\"-\",Dados!P51)","v":-0.46},{"$f":"IF(ISERROR(Dados!Q51),\"-\",Dados!Q51)","v":-5.3510149479439311E-3},{"$f":"IF(ISERROR(Dados!R51),\"-\",Dados!R51)","v":5.9208980398999591},{"$f":"IF(ISERROR(Dados!S51),\"-\",Dados!S51)","v":0.38507672056425468},{"$f":"IF(ISERROR(Dados!T51),\"-\",Dados!T51)","v":"-"},{"$f":"IF(ISERROR(Dados!U51),\"-\",Dados!U51)","v":-9.1E-4},{"$f":"IF(ISERROR(Dados!V51),\"-\",Dados!V51)","v":0.42534500000000003},{"$f":"IF(ISERROR(Dados!W51),\"-\",Dados!W51)","v":71.099999999999994},{"$f":"IF(ISERROR(Dados!X51),\"-\",Dados!X51)","v":107.6},{"$f":"IF(ISERROR(Dados!Y51),\"-\",Dados!Y51)","v":107.6},{"$f":"IF(ISERROR(Dados!Z51),\"-\",Dados!Z51)","v":3.8372397769516731},{"$f":"IF(ISERROR(Dados!AA51),\"-\",Dados!AA51)","v":"-"},{"$f":"IF(ISERROR(Dados!AB51),\"-\",Dados!AB51)","v":"-"},{"$f":"IF(ISERROR(Dados!AC51),\"-\",Dados!AC51)","v":-3},{"$f":"IF(ISERROR(Dados!AD51),\"-\",Dados!AD51)","v":-26.7},{"$f":"IF(ISERROR(Dados!AE51),\"-\",Dados!AE51)","v":"-"},{"$f":"IF(ISERROR(Dados!AF51),\"-\",Dados!AF51)","v":"POSI3"},{"$f":"IF(ISERROR(Dados!AG51),\"-\",Dados!AG51)","v":107.6}]
[{"$f":"IF(ISERROR(Dados!A52),\"-\",Dados!A52)","v":"IGBR3"},{"$f":"IF(ISERROR(Dados!B52),\"-\",Dados!B52)","v":"Eletroeletrônicos"},{"$f":"IF(ISERROR(Dados!C52),\"-\",Dados!C52)","v":"IGB S/A"},{"$f":"IF(ISERROR(Dados!D52),\"-\",Dados!D52)","v":2.2599999999999998},{"$f":"IF(ISERROR(Dados!E52),\"-\",Dados!E52)","v":12.505000000000001},{"$f":"IF(ISERROR(Dados!F52),\"-\",Dados!F52)","v":28.26},{"$f":"IF(ISERROR(Dados!G52),\"-\",Dados!G52)","v":-828.34},{"$f":"IF(ISERROR(Dados!H52),\"-\",Dados!H52)","v":4.5199999999999996},{"$f":"IF(ISERROR(Dados!I52),\"-\",Dados!I52)","v":"-"},{"$f":"IF(ISERROR(Dados!J52),\"-\",Dados!J52)","v":44},{"$f":"IF(ISERROR(Dados!K52),\"-\",Dados!K52)","v":-39.090000000000003},{"$f":"IF(ISERROR(Dados!L52),\"-\",Dados!L52)","v":-47.26},{"$f":"IF(ISERROR(Dados!M52),\"-\",Dados!M52)","v":-61.22},{"$f":"IF(ISERROR(Dados!N52),\"-\",Dados!N52)","v":"-"},{"$f":"IF(ISERROR(Dados!O52),\"-\",Dados!O52)","v":44},{"$f":"IF(ISERROR(Dados!P52),\"-\",Dados!P52)","v":"-"},{"$f":"IF(ISERROR(Dados!Q52),\"-\",Dados!Q52)","v":3.9488204718112754},{"$f":"IF(ISERROR(Dados!R52),\"-\",Dados!R52)","v":"-"},{"$f":"IF(ISERROR(Dados!S52),\"-\",Dados!S52)","v":"-"},{"$f":"IF(ISERROR(Dados!T52),\"-\",Dados!T52)","v":0.57232280275415148},{"$f":"IF(ISERROR(Dados!U52),\"-\",Dados!U52)","v":"-"},{"$f":"IF(ISERROR(Dados!V52),\"-\",Dados!V52)","v":-1.0694840000000001},{"$f":"IF(ISERROR(Dados!W52),\"-\",Dados!W52)","v":"-"},{"$f":"IF(ISERROR(Dados!X52),\"-\",Dados!X52)","v":"-"},{"$f":"IF(ISERROR(Dados!Y52),\"-\",Dados!Y52)","v":"-"},{"$f":"IF(ISERROR(Dados!Z52),\"-\",Dados!Z52)","v":"-"},{"$f":"IF(ISERROR(Dados!AA52),\"-\",Dados!AA52)","v":"-"},{"$f":"IF(ISERROR(Dados!AB52),\"-\",Dados!AB52)","v":"-"},{"$f":"IF(ISERROR(Dados!AC52),\"-\",Dados!AC52)","v":-3},{"$f":"IF(ISERROR(Dados!AD52),\"-\",Dados!AD52)","v":96.5},{"$f":"IF(ISERROR(Dados!AE52),\"-\",Dados!AE52)","v":0.99960015993602558},{"$f":"IF(ISERROR(Dados!AF52),\"-\",Dados!AF52)","v":"IGBR3"},{"$f":"IF(ISERROR(Dados!AG52),\"-\",Dados!AG52)","v":"-"}]
[{"$f":"IF(ISERROR(Dados!A53),\"-\",Dados!A53)","v":"EGIE3"},{"$f":"IF(ISERROR(Dados!B53),\"-\",Dados!B53)","v":"Energia Elétrica"},{"$f":"IF(ISERROR(Dados!C53),\"-\",Dados!C53)","v":"Engie Brasil"},{"$f":"IF(ISERROR(Dados!D53),\"-\",Dados!D53)","v":42.71},{"$f":"IF(ISERROR(Dados!E53),\"-\",Dados!E53)","v":815.928},{"$f":"IF(ISERROR(Dados!F53),\"-\",Dados!F53)","v":34848.269999999997},{"$f":"IF(ISERROR(Dados!G53),\"-\",Dados!G53)","v":6316.19},{"$f":"IF(ISERROR(Dados!H53),\"-\",Dados!H53)","v":7009.96},{"$f":"IF(ISERROR(Dados!I53),\"-\",Dados!I53)","v":8794.7900000000009},{"$f":"IF(ISERROR(Dados!J53),\"-\",Dados!J53)","v":2003.41},{"$f":"IF(ISERROR(Dados!K53),\"-\",Dados!K53)","v":489.04},{"$f":"IF(ISERROR(Dados!L53),\"-\",Dados!L53)","v":1078.01},{"$f":"IF(ISERROR(Dados!M53),\"-\",Dados!M53)","v":1553.08},{"$f":"IF(ISERROR(Dados!N53),\"-\",Dados!N53)","v":2314.36},{"$f":"IF(ISERROR(Dados!O53),\"-\",Dados!O53)","v":2003.41},{"$f":"IF(ISERROR(Dados!P53),\"-\",Dados!P53)","v":2314.36},{"$f":"IF(ISERROR(Dados!Q53),\"-\",Dados!Q53)","v":2.836475767469679},{"$f":"IF(ISERROR(Dados!R53),\"-\",Dados!R53)","v":7.7411119608592909},{"$f":"IF(ISERROR(Dados!S53),\"-\",Dados!S53)","v":5.5172952175282886},{"$f":"IF(ISERROR(Dados!T53),\"-\",Dados!T53)","v":15.057417549560137},{"$f":"IF(ISERROR(Dados!U53),\"-\",Dados!U53)","v":0.33877099999999999},{"$f":"IF(ISERROR(Dados!V53),\"-\",Dados!V53)","v":1.155661},{"$f":"IF(ISERROR(Dados!W53),\"-\",Dados!W53)","v":3499.2},{"$f":"IF(ISERROR(Dados!X53),\"-\",Dados!X53)","v":4327.3},{"$f":"IF(ISERROR(Dados!Y53),\"-\",Dados!Y53)","v":4327.3},{"$f":"IF(ISERROR(Dados!Z53),\"-\",Dados!Z53)","v":9.7411115476162955},{"$f":"IF(ISERROR(Dados!AA53),\"-\",Dados!AA53)","v":1989.97},{"$f":"IF(ISERROR(Dados!AB53),\"-\",Dados!AB53)","v":5.7103839014103146E-2},{"$f":"IF(ISERROR(Dados!AC53),\"-\",Dados!AC53)","v":3.8},{"$f":"IF(ISERROR(Dados!AD53),\"-\",Dados!AD53)","v":68.5},{"$f":"IF(ISERROR(Dados!AE53),\"-\",Dados!AE53)","v":0.99996568324656099},{"$f":"IF(ISERROR(Dados!AF53),\"-\",Dados!AF53)","v":"EGIE3"},{"$f":"IF(ISERROR(Dados!AG53),\"-\",Dados!AG53)","v":4327.3}]
[{"$f":"IF(ISERROR(Dados!A54),\"-\",Dados!A54)","v":"ELET6"},{"$f":"IF(ISERROR(Dados!B54),\"-\",Dados!B54)","v":"Energia Elétrica"},{"$f":"IF(ISERROR(Dados!C54),\"-\",Dados!C54)","v":"Eletrobras"},{"$f":"IF(ISERROR(Dados!D54),\"-\",Dados!D54)","v":37.86},{"$f":"IF(ISERROR(Dados!E54),\"-\",Dados!E54)","v":1352.634},{"$f":"IF(ISERROR(Dados!F54),\"-\",Dados!F54)","v":49940.37},{"$f":"IF(ISERROR(Dados!G54),\"-\",Dados!G54)","v":55542.91},{"$f":"IF(ISERROR(Dados!H54),\"-\",Dados!H54)","v":37876.019999999997},{"$f":"IF(ISERROR(Dados!I54),\"-\",Dados!I54)","v":24975.75},{"$f":"IF(ISERROR(Dados!J54),\"-\",Dados!J54)","v":-1763.81},{"$f":"IF(ISERROR(Dados!K54),\"-\",Dados!K54)","v":31.84},{"$f":"IF(ISERROR(Dados!L54),\"-\",Dados!L54)","v":2851.4},{"$f":"IF(ISERROR(Dados!M54),\"-\",Dados!M54)","v":1230.24},{"$f":"IF(ISERROR(Dados!N54),\"-\",Dados!N54)","v":13262.38},{"$f":"IF(ISERROR(Dados!O54),\"-\",Dados!O54)","v":-1763.81},{"$f":"IF(ISERROR(Dados!P54),\"-\",Dados!P54)","v":13262.38},{"$f":"IF(ISERROR(Dados!Q54),\"-\",Dados!Q54)","v":9.8048548239952567},{"$f":"IF(ISERROR(Dados!R54),\"-\",Dados!R54)","v":41.062778253393013},{"$f":"IF(ISERROR(Dados!S54),\"-\",Dados!S54)","v":0.9220028846165963},{"$f":"IF(ISERROR(Dados!T54),\"-\",Dados!T54)","v":3.8613524299560109},{"$f":"IF(ISERROR(Dados!U54),\"-\",Dados!U54)","v":0.31220599999999998},{"$f":"IF(ISERROR(Dados!V54),\"-\",Dados!V54)","v":0.84389399999999992},{"$f":"IF(ISERROR(Dados!W54),\"-\",Dados!W54)","v":6744.2},{"$f":"IF(ISERROR(Dados!X54),\"-\",Dados!X54)","v":19990.400000000001},{"$f":"IF(ISERROR(Dados!Y54),\"-\",Dados!Y54)","v":19990.400000000001},{"$f":"IF(ISERROR(Dados!Z54),\"-\",Dados!Z54)","v":4.8626324135585079},{"$f":"IF(ISERROR(Dados!AA54),\"-\",Dados!AA54)","v":1.58},{"$f":"IF(ISERROR(Dados!AB54),\"-\",Dados!AB54)","v":3.1637731158179244E-5},{"$f":"IF(ISERROR(Dados!AC54),\"-\",Dados!AC54)","v":-2.8},{"$f":"IF(ISERROR(Dados!AD54),\"-\",Dados!AD54)","v":66.8},{"$f":"IF(ISERROR(Dados!AE54),\"-\",Dados!AE54)","v":0.80369116849051547},{"$f":"IF(ISERROR(Dados!AF54),\"-\",Dados!AF54)","v":"ELET6"},{"$f":"IF(ISERROR(Dados!AG54),\"-\",Dados!AG54)","v":19990.400000000001}]
[{"$f":"IF(ISERROR(Dados!A55),\"-\",Dados!A55)","v":"ENGI11"},{"$f":"IF(ISERROR(Dados!B55),\"-\",Dados!B55)","v":"Energia Elétrica"},{"$f":"IF(ISERROR(Dados!C55),\"-\",Dados!C55)","v":"Energisa"},{"$f":"IF(ISERROR(Dados!D55),\"-\",Dados!D55)","v":40.549999999999997},{"$f":"IF(ISERROR(Dados!E55),\"-\",Dados!E55)","v":1814.5619999999999},{"$f":"IF(ISERROR(Dados!F55),\"-\",Dados!F55)","v":18303.71},{"$f":"IF(ISERROR(Dados!G55),\"-\",Dados!G55)","v":5388.14},{"$f":"IF(ISERROR(Dados!H55),\"-\",Dados!H55)","v":13637.15},{"$f":"IF(ISERROR(Dados!I55),\"-\",Dados!I55)","v":15787.58},{"$f":"IF(ISERROR(Dados!J55),\"-\",Dados!J55)","v":558.61},{"$f":"IF(ISERROR(Dados!K55),\"-\",Dados!K55)","v":131.04},{"$f":"IF(ISERROR(Dados!L55),\"-\",Dados!L55)","v":232.2},{"$f":"IF(ISERROR(Dados!M55),\"-\",Dados!M55)","v":474.68},{"$f":"IF(ISERROR(Dados!N55),\"-\",Dados!N55)","v":1148.43},{"$f":"IF(ISERROR(Dados!O55),\"-\",Dados!O55)","v":558.61},{"$f":"IF(ISERROR(Dados!P55),\"-\",Dados!P55)","v":1148.43},{"$f":"IF(ISERROR(Dados!Q55),\"-\",Dados!Q55)","v":0.63289653370896126},{"$f":"IF(ISERROR(Dados!R55),\"-\",Dados!R55)","v":2.9693887560744692},{"$f":"IF(ISERROR(Dados!S55),\"-\",Dados!S55)","v":13.656009142301421},{"$f":"IF(ISERROR(Dados!T55),\"-\",Dados!T55)","v":64.070504166557811},{"$f":"IF(ISERROR(Dados!U55),\"-\",Dados!U55)","v":0.24656},{"$f":"IF(ISERROR(Dados!V55),\"-\",Dados!V55)","v":1.8938929999999998},{"$f":"IF(ISERROR(Dados!W55),\"-\",Dados!W55)","v":2052.6},{"$f":"IF(ISERROR(Dados!X55),\"-\",Dados!X55)","v":3817.6},{"$f":"IF(ISERROR(Dados!Y55),\"-\",Dados!Y55)","v":3817.6},{"$f":"IF(ISERROR(Dados!Z55),\"-\",Dados!Z55)","v":7.7947095033528919},{"$f":"IF(ISERROR(Dados!AA55),\"-\",Dados!AA55)","v":269.39},{"$f":"IF(ISERROR(Dados!AB55),\"-\",Dados!AB55)","v":1.4717781258553594E-2},{"$f":"IF(ISERROR(Dados!AC55),\"-\",Dados!AC55)","v":1},{"$f":"IF(ISERROR(Dados!AD55),\"-\",Dados!AD55)","v":55.8},{"$f":"IF(ISERROR(Dados!AE55),\"-\",Dados!AE55)","v":0.41662946760705893},{"$f":"IF(ISERROR(Dados!AF55),\"-\",Dados!AF55)","v":"ENGI11"},{"$f":"IF(ISERROR(Dados!AG55),\"-\",Dados!AG55)","v":3817.6}]
[{"$f":"IF(ISERROR(Dados!A56),\"-\",Dados!A56)","v":"TAEE11"},{"$f":"IF(ISERROR(Dados!B56),\"-\",Dados!B56)","v":"Energia Elétrica"},{"$f":"IF(ISERROR(Dados!C56),\"-\",Dados!C56)","v":"Taesa"},{"$f":"IF(ISERROR(Dados!D56),\"-\",Dados!D56)","v":24.8},{"$f":"IF(ISERROR(Dados!E56),\"-\",Dados!E56)","v":1033.4970000000001},{"$f":"IF(ISERROR(Dados!F56),\"-\",Dados!F56)","v":8931.1},{"$f":"IF(ISERROR(Dados!G56),\"-\",Dados!G56)","v":4572.05},{"$f":"IF(ISERROR(Dados!H56),\"-\",Dados!H56)","v":1077.06},{"$f":"IF(ISERROR(Dados!I56),\"-\",Dados!I56)","v":1635.24},{"$f":"IF(ISERROR(Dados!J56),\"-\",Dados!J56)","v":648.29},{"$f":"IF(ISERROR(Dados!K56),\"-\",Dados!K56)","v":217.28},{"$f":"IF(ISERROR(Dados!L56),\"-\",Dados!L56)","v":476.53},{"$f":"IF(ISERROR(Dados!M56),\"-\",Dados!M56)","v":744.25},{"$f":"IF(ISERROR(Dados!N56),\"-\",Dados!N56)","v":1071.31},{"$f":"IF(ISERROR(Dados!O56),\"-\",Dados!O56)","v":648.29},{"$f":"IF(ISERROR(Dados!P56),\"-\",Dados!P56)","v":1071.31},{"$f":"IF(ISERROR(Dados!Q56),\"-\",Dados!Q56)","v":1.036587430829504},{"$f":"IF(ISERROR(Dados!R56),\"-\",Dados!R56)","v":4.4238638331799702},{"$f":"IF(ISERROR(Dados!S56),\"-\",Dados!S56)","v":5.6059591649260181},{"$f":"IF(ISERROR(Dados!T56),\"-\",Dados!T56)","v":23.924658222176589},{"$f":"IF(ISERROR(Dados!U56),\"-\",Dados!U56)","v":0.246416},{"$f":"IF(ISERROR(Dados!V56),\"-\",Dados!V56)","v":0.71720200000000001},{"$f":"IF(ISERROR(Dados!W56),\"-\",Dados!W56)","v":930.2},{"$f":"IF(ISERROR(Dados!X56),\"-\",Dados!X56)","v":1436.3},{"$f":"IF(ISERROR(Dados!Y56),\"-\",Dados!Y56)","v":1436.3},{"$f":"IF(ISERROR(Dados!Z56),\"-\",Dados!Z56)","v":8.5011390378054728},{"$f":"IF(ISERROR(Dados!AA56),\"-\",Dados!AA56)","v":960.2},{"$f":"IF(ISERROR(Dados!AB56),\"-\",Dados!AB56)","v":0.10751195261501943},{"$f":"IF(ISERROR(Dados!AC56),\"-\",Dados!AC56)","v":-0.6},{"$f":"IF(ISERROR(Dados!AD56),\"-\",Dados!AD56)","v":32.5},{"$f":"IF(ISERROR(Dados!AE56),\"-\",Dados!AE56)","v":0.57155463441113041},{"$f":"IF(ISERROR(Dados!AF56),\"-\",Dados!AF56)","v":"TAEE11"},{"$f":"IF(ISERROR(Dados!AG56),\"-\",Dados!AG56)","v":1436.3}]
[{"$f":"IF(ISERROR(Dados!A57),\"-\",Dados!A57)","v":"EKTR4"},{"$f":"IF(ISERROR(Dados!B57),\"-\",Dados!B57)","v":"Energia Elétrica"},{"$f":"IF(ISERROR(Dados!C57),\"-\",Dados!C57)","v":"Elektro"},{"$f":"IF(ISERROR(Dados!D57),\"-\",Dados!D57)","v":19},{"$f":"IF(ISERROR(Dados!E57),\"-\",Dados!E57)","v":193.75899999999999},{"$f":"IF(ISERROR(Dados!F57),\"-\",Dados!F57)","v":3607.92},{"$f":"IF(ISERROR(Dados!G57),\"-\",Dados!G57)","v":2293.83},{"$f":"IF(ISERROR(Dados!H57),\"-\",Dados!H57)","v":5811.5},{"$f":"IF(ISERROR(Dados!I57),\"-\",Dados!I57)","v":6249.36},{"$f":"IF(ISERROR(Dados!J57),\"-\",Dados!J57)","v":374.43},{"$f":"IF(ISERROR(Dados!K57),\"-\",Dados!K57)","v":72.44},{"$f":"IF(ISERROR(Dados!L57),\"-\",Dados!L57)","v":145.72},{"$f":"IF(ISERROR(Dados!M57),\"-\",Dados!M57)","v":233.59},{"$f":"IF(ISERROR(Dados!N57),\"-\",Dados!N57)","v":414.33},{"$f":"IF(ISERROR(Dados!O57),\"-\",Dados!O57)","v":374.43},{"$f":"IF(ISERROR(Dados!P57),\"-\",Dados!P57)","v":414.33},{"$f":"IF(ISERROR(Dados!Q57),\"-\",Dados!Q57)","v":2.1383780882436429},{"$f":"IF(ISERROR(Dados!R57),\"-\",Dados!R57)","v":11.838572659850639},{"$f":"IF(ISERROR(Dados!S57),\"-\",Dados!S57)","v":1.6049232070380106},{"$f":"IF(ISERROR(Dados!T57),\"-\",Dados!T57)","v":8.8852388192986265},{"$f":"IF(ISERROR(Dados!U57),\"-\",Dados!U57)","v":0.20407399999999998},{"$f":"IF(ISERROR(Dados!V57),\"-\",Dados!V57)","v":1.3231970000000002},{"$f":"IF(ISERROR(Dados!W57),\"-\",Dados!W57)","v":873},{"$f":"IF(ISERROR(Dados!X57),\"-\",Dados!X57)","v":928.5},{"$f":"IF(ISERROR(Dados!Y57),\"-\",Dados!Y57)","v":928.5},{"$f":"IF(ISERROR(Dados!Z57),\"-\",Dados!Z57)","v":7.1546623586429732},{"$f":"IF(ISERROR(Dados!AA57),\"-\",Dados!AA57)","v":"-"},{"$f":"IF(ISERROR(Dados!AB57),\"-\",Dados!AB57)","v":"-"},{"$f":"IF(ISERROR(Dados!AC57),\"-\",Dados!AC57)","v":"-"},{"$f":"IF(ISERROR(Dados!AD57),\"-\",Dados!AD57)","v":-13.7},{"$f":"IF(ISERROR(Dados!AE57),\"-\",Dados!AE57)","v":0.47430054861967708},{"$f":"IF(ISERROR(Dados!AF57),\"-\",Dados!AF57)","v":"EKTR4"},{"$f":"IF(ISERROR(Dados!AG57),\"-\",Dados!AG57)","v":928.5}]
[{"$f":"IF(ISERROR(Dados!A58),\"-\",Dados!A58)","v":"EQTL3"},{"$f":"IF(ISERROR(Dados!B58),\"-\",Dados!B58)","v":"Energia Elétrica"},{"$f":"IF(ISERROR(Dados!C58),\"-\",Dados!C58)","v":"Equatorial"},{"$f":"IF(ISERROR(Dados!D58),\"-\",Dados!D58)","v":80},{"$f":"IF(ISERROR(Dados!E58),\"-\",Dados!E58)","v":201.102},{"$f":"IF(ISERROR(Dados!F58),\"-\",Dados!F58)","v":16088.18},{"$f":"IF(ISERROR(Dados!G58),\"-\",Dados!G58)","v":5596.03},{"$f":"IF(ISERROR(Dados!H58),\"-\",Dados!H58)","v":9071.42},{"$f":"IF(ISERROR(Dados!I58),\"-\",Dados!I58)","v":11252.63},{"$f":"IF(ISERROR(Dados!J58),\"-\",Dados!J58)","v":997.26},{"$f":"IF(ISERROR(Dados!K58),\"-\",Dados!K58)","v":64.58},{"$f":"IF(ISERROR(Dados!L58),\"-\",Dados!L58)","v":185.68},{"$f":"IF(ISERROR(Dados!M58),\"-\",Dados!M58)","v":433.71},{"$f":"IF(ISERROR(Dados!N58),\"-\",Dados!N58)","v":917.94},{"$f":"IF(ISERROR(Dados!O58),\"-\",Dados!O58)","v":997.26},{"$f":"IF(ISERROR(Dados!P58),\"-\",Dados!P58)","v":917.94},{"$f":"IF(ISERROR(Dados!Q58),\"-\",Dados!Q58)","v":4.5645493331742104},{"$f":"IF(ISERROR(Dados!R58),\"-\",Dados!R58)","v":27.826824198665353},{"$f":"IF(ISERROR(Dados!S58),\"-\",Dados!S58)","v":2.8749238299294322},{"$f":"IF(ISERROR(Dados!T58),\"-\",Dados!T58)","v":17.526374272828289},{"$f":"IF(ISERROR(Dados!U58),\"-\",Dados!U58)","v":0.20199},{"$f":"IF(ISERROR(Dados!V58),\"-\",Dados!V58)","v":1.036521},{"$f":"IF(ISERROR(Dados!W58),\"-\",Dados!W58)","v":1797},{"$f":"IF(ISERROR(Dados!X58),\"-\",Dados!X58)","v":"-"},{"$f":"IF(ISERROR(Dados!Y58),\"-\",Dados!Y58)","v":"-"},{"$f":"IF(ISERROR(Dados!Z58),\"-\",Dados!Z58)","v":"-"},{"$f":"IF(ISERROR(Dados!AA58),\"-\",Dados!AA58)","v":"-"},{"$f":"IF(ISERROR(Dados!AB58),\"-\",Dados!AB58)","v":"-"},{"$f":"IF(ISERROR(Dados!AC58),\"-\",Dados!AC58)","v":-2.6},{"$f":"IF(ISERROR(Dados!AD58),\"-\",Dados!AD58)","v":24},{"$f":"IF(ISERROR(Dados!AE58),\"-\",Dados!AE58)","v":0.98855307257013858},{"$f":"IF(ISERROR(Dados!AF58),\"-\",Dados!AF58)","v":"EQTL3"},{"$f":"IF(ISERROR(Dados!AG58),\"-\",Dados!AG58)","v":"-"}]
[{"$f":"IF(ISERROR(Dados!A59),\"-\",Dados!A59)","v":"CPFE3"},{"$f":"IF(ISERROR(Dados!B59),\"-\",Dados!B59)","v":"Energia Elétrica"},{"$f":"IF(ISERROR(Dados!C59),\"-\",Dados!C59)","v":"CPFL Energia"},{"$f":"IF(ISERROR(Dados!D59),\"-\",Dados!D59)","v":30.48},{"$f":"IF(ISERROR(Dados!E59),\"-\",Dados!E59)","v":1017.915},{"$f":"IF(ISERROR(Dados!F59),\"-\",Dados!F59)","v":31026.04},{"$f":"IF(ISERROR(Dados!G59),\"-\",Dados!G59)","v":10262.75},{"$f":"IF(ISERROR(Dados!H59),\"-\",Dados!H59)","v":26744.91},{"$f":"IF(ISERROR(Dados!I59),\"-\",Dados!I59)","v":28136.63},{"$f":"IF(ISERROR(Dados!J59),\"-\",Dados!J59)","v":1179.75},{"$f":"IF(ISERROR(Dados!K59),\"-\",Dados!K59)","v":443.78},{"$f":"IF(ISERROR(Dados!L59),\"-\",Dados!L59)","v":899.5},{"$f":"IF(ISERROR(Dados!M59),\"-\",Dados!M59)","v":1453.23},{"$f":"IF(ISERROR(Dados!N59),\"-\",Dados!N59)","v":2058.04},{"$f":"IF(ISERROR(Dados!O59),\"-\",Dados!O59)","v":1179.75},{"$f":"IF(ISERROR(Dados!P59),\"-\",Dados!P59)","v":2058.04},{"$f":"IF(ISERROR(Dados!Q59),\"-\",Dados!Q59)","v":2.0218191106330097},{"$f":"IF(ISERROR(Dados!R59),\"-\",Dados!R59)","v":10.082128664967115},{"$f":"IF(ISERROR(Dados!S59),\"-\",Dados!S59)","v":3.0231710993642054},{"$f":"IF(ISERROR(Dados!T59),\"-\",Dados!T59)","v":15.075532642708596},{"$f":"IF(ISERROR(Dados!U59),\"-\",Dados!U59)","v":0.19362799999999999},{"$f":"IF(ISERROR(Dados!V59),\"-\",Dados!V59)","v":1.475007},{"$f":"IF(ISERROR(Dados!W59),\"-\",Dados!W59)","v":4863.3},{"$f":"IF(ISERROR(Dados!X59),\"-\",Dados!X59)","v":5636.7},{"$f":"IF(ISERROR(Dados!Y59),\"-\",Dados!Y59)","v":5636.7},{"$f":"IF(ISERROR(Dados!Z59),\"-\",Dados!Z59)","v":8.7837541469299421},{"$f":"IF(ISERROR(Dados!AA59),\"-\",Dados!AA59)","v":279.10000000000002},{"$f":"IF(ISERROR(Dados!AB59),\"-\",Dados!AB59)","v":8.995669444118554E-3},{"$f":"IF(ISERROR(Dados!AC59),\"-\",Dados!AC59)","v":-0.7},{"$f":"IF(ISERROR(Dados!AD59),\"-\",Dados!AD59)","v":59.3},{"$f":"IF(ISERROR(Dados!AE59),\"-\",Dados!AE59)","v":0.99998526399552023},{"$f":"IF(ISERROR(Dados!AF59),\"-\",Dados!AF59)","v":"CPFE3"},{"$f":"IF(ISERROR(Dados!AG59),\"-\",Dados!AG59)","v":5636.7}]
[{"$f":"IF(ISERROR(Dados!A60),\"-\",Dados!A60)","v":"TIET3"},{"$f":"IF(ISERROR(Dados!B60),\"-\",Dados!B60)","v":"Energia Elétrica"},{"$f":"IF(ISERROR(Dados!C60),\"-\",Dados!C60)","v":"AES Tiete E"},{"$f":"IF(ISERROR(Dados!D60),\"-\",Dados!D60)","v":2.25},{"$f":"IF(ISERROR(Dados!E60),\"-\",Dados!E60)","v":1967.385},{"$f":"IF(ISERROR(Dados!F60),\"-\",Dados!F60)","v":4378.93},{"$f":"IF(ISERROR(Dados!G60),\"-\",Dados!G60)","v":1523.47},{"$f":"IF(ISERROR(Dados!H60),\"-\",Dados!H60)","v":1728.13},{"$f":"IF(ISERROR(Dados!I60),\"-\",Dados!I60)","v":1923.53},{"$f":"IF(ISERROR(Dados!J60),\"-\",Dados!J60)","v":298.27999999999997},{"$f":"IF(ISERROR(Dados!K60),\"-\",Dados!K60)","v":54.76},{"$f":"IF(ISERROR(Dados!L60),\"-\",Dados!L60)","v":147.72},{"$f":"IF(ISERROR(Dados!M60),\"-\",Dados!M60)","v":183.09},{"$f":"IF(ISERROR(Dados!N60),\"-\",Dados!N60)","v":287.95999999999998},{"$f":"IF(ISERROR(Dados!O60),\"-\",Dados!O60)","v":298.27999999999997},{"$f":"IF(ISERROR(Dados!P60),\"-\",Dados!P60)","v":287.95999999999998},{"$f":"IF(ISERROR(Dados!Q60),\"-\",Dados!Q60)","v":0.14636687786071359},{"$f":"IF(ISERROR(Dados!R60),\"-\",Dados!R60)","v":0.77436292337290369},{"$f":"IF(ISERROR(Dados!S60),\"-\",Dados!S60)","v":2.905614321253454},{"$f":"IF(ISERROR(Dados!T60),\"-\",Dados!T60)","v":15.372330358383108},{"$f":"IF(ISERROR(Dados!U60),\"-\",Dados!U60)","v":0.184865},{"$f":"IF(ISERROR(Dados!V60),\"-\",Dados!V60)","v":2.0308609999999998},{"$f":"IF(ISERROR(Dados!W60),\"-\",Dados!W60)","v":842.2},{"$f":"IF(ISERROR(Dados!X60),\"-\",Dados!X60)","v":1011.2},{"$f":"IF(ISERROR(Dados!Y60),\"-\",Dados!Y60)","v":1011.2},{"$f":"IF(ISERROR(Dados!Z60),\"-\",Dados!Z60)","v":7.3901246044303797},{"$f":"IF(ISERROR(Dados!AA60),\"-\",Dados!AA60)","v":270.06},{"$f":"IF(ISERROR(Dados!AB60),\"-\",Dados!AB60)","v":6.1672600384112097E-2},{"$f":"IF(ISERROR(Dados!AC60),\"-\",Dados!AC60)","v":-4.7},{"$f":"IF(ISERROR(Dados!AD60),\"-\",Dados!AD60)","v":-6.1},{"$f":"IF(ISERROR(Dados!AE60),\"-\",Dados!AE60)","v":0.39402557201564514},{"$f":"IF(ISERROR(Dados!AF60),\"-\",Dados!AF60)","v":"TIET3"},{"$f":"IF(ISERROR(Dados!AG60),\"-\",Dados!AG60)","v":1011.2}]
[{"$f":"IF(ISERROR(Dados!A61),\"-\",Dados!A61)","v":"TIET4"},{"$f":"IF(ISERROR(Dados!B61),\"-\",Dados!B61)","v":"Energia Elétrica"},{"$f":"IF(ISERROR(Dados!C61),\"-\",Dados!C61)","v":"AES Tiete E"},{"$f":"IF(ISERROR(Dados!D61),\"-\",Dados!D61)","v":2.21},{"$f":"IF(ISERROR(Dados!E61),\"-\",Dados!E61)","v":1967.385},{"$f":"IF(ISERROR(Dados!F61),\"-\",Dados!F61)","v":4378.93},{"$f":"IF(ISERROR(Dados!G61),\"-\",Dados!G61)","v":1523.47},{"$f":"IF(ISERROR(Dados!H61),\"-\",Dados!H61)","v":1728.13},{"$f":"IF(ISERROR(Dados!I61),\"-\",Dados!I61)","v":1923.53},{"$f":"IF(ISERROR(Dados!J61),\"-\",Dados!J61)","v":298.27999999999997},{"$f":"IF(ISERROR(Dados!K61),\"-\",Dados!K61)","v":54.76},{"$f":"IF(ISERROR(Dados!L61),\"-\",Dados!L61)","v":147.72},{"$f":"IF(ISERROR(Dados!M61),\"-\",Dados!M61)","v":183.09},{"$f":"IF(ISERROR(Dados!N61),\"-\",Dados!N61)","v":287.95999999999998},{"$f":"IF(ISERROR(Dados!O61),\"-\",Dados!O61)","v":298.27999999999997},{"$f":"IF(ISERROR(Dados!P61),\"-\",Dados!P61)","v":287.95999999999998},{"$f":"IF(ISERROR(Dados!Q61),\"-\",Dados!Q61)","v":0.14636687786071359},{"$f":"IF(ISERROR(Dados!R61),\"-\",Dados!R61)","v":0.77436292337290369},{"$f":"IF(ISERROR(Dados!S61),\"-\",Dados!S61)","v":2.8539589555422813},{"$f":"IF(ISERROR(Dados!T61),\"-\",Dados!T61)","v":15.099044485345186},{"$f":"IF(ISERROR(Dados!U61),\"-\",Dados!U61)","v":0.184865},{"$f":"IF(ISERROR(Dados!V61),\"-\",Dados!V61)","v":2.0308609999999998},{"$f":"IF(ISERROR(Dados!W61),\"-\",Dados!W61)","v":842.2},{"$f":"IF(ISERROR(Dados!X61),\"-\",Dados!X61)","v":1011.2},{"$f":"IF(ISERROR(Dados!Y61),\"-\",Dados!Y61)","v":1011.2},{"$f":"IF(ISERROR(Dados!Z61),\"-\",Dados!Z61)","v":7.3901246044303797},{"$f":"IF(ISERROR(Dados!AA61),\"-\",Dados!AA61)","v":270.06},{"$f":"IF(ISERROR(Dados!AB61),\"-\",Dados!AB61)","v":6.1672600384112097E-2},{"$f":"IF(ISERROR(Dados!AC61),\"-\",Dados!AC61)","v":-5.2},{"$f":"IF(ISERROR(Dados!AD61),\"-\",Dados!AD61)","v":-7.8},{"$f":"IF(ISERROR(Dados!AE61),\"-\",Dados!AE61)","v":0.39402557201564514},{"$f":"IF(ISERROR(Dados!AF61),\"-\",Dados!AF61)","v":"TIET4"},{"$f":"IF(ISERROR(Dados!AG61),\"-\",Dados!AG61)","v":1011.2}]
[{"$f":"IF(ISERROR(Dados!A62),\"-\",Dados!A62)","v":"TIET11"},{"$f":"IF(ISERROR(Dados!B62),\"-\",Dados!B62)","v":"Energia Elétrica"},{"$f":"IF(ISERROR(Dados!C62),\"-\",Dados!C62)","v":"AES Tiete E"},{"$f":"IF(ISERROR(Dados!D62),\"-\",Dados!D62)","v":11.08},{"$f":"IF(ISERROR(Dados!E62),\"-\",Dados!E62)","v":1967.385},{"$f":"IF(ISERROR(Dados!F62),\"-\",Dados!F62)","v":4378.93},{"$f":"IF(ISERROR(Dados!G62),\"-\",Dados!G62)","v":1523.47},{"$f":"IF(ISERROR(Dados!H62),\"-\",Dados!H62)","v":1728.13},{"$f":"IF(ISERROR(Dados!I62),\"-\",Dados!I62)","v":1923.53},{"$f":"IF(ISERROR(Dados!J62),\"-\",Dados!J62)","v":298.27999999999997},{"$f":"IF(ISERROR(Dados!K62),\"-\",Dados!K62)","v":54.76},{"$f":"IF(ISERROR(Dados!L62),\"-\",Dados!L62)","v":147.72},{"$f":"IF(ISERROR(Dados!M62),\"-\",Dados!M62)","v":183.09},{"$f":"IF(ISERROR(Dados!N62),\"-\",Dados!N62)","v":287.95999999999998},{"$f":"IF(ISERROR(Dados!O62),\"-\",Dados!O62)","v":298.27999999999997},{"$f":"IF(ISERROR(Dados!P62),\"-\",Dados!P62)","v":287.95999999999998},{"$f":"IF(ISERROR(Dados!Q62),\"-\",Dados!Q62)","v":0.14636687786071359},{"$f":"IF(ISERROR(Dados!R62),\"-\",Dados!R62)","v":0.77436292337290369},{"$f":"IF(ISERROR(Dados!S62),\"-\",Dados!S62)","v":14.308536301994787},{"$f":"IF(ISERROR(Dados!T62),\"-\",Dados!T62)","v":75.700186831504368},{"$f":"IF(ISERROR(Dados!U62),\"-\",Dados!U62)","v":0.184865},{"$f":"IF(ISERROR(Dados!V62),\"-\",Dados!V62)","v":2.0308609999999998},{"$f":"IF(ISERROR(Dados!W62),\"-\",Dados!W62)","v":842.2},{"$f":"IF(ISERROR(Dados!X62),\"-\",Dados!X62)","v":1011.2},{"$f":"IF(ISERROR(Dados!Y62),\"-\",Dados!Y62)","v":1011.2},{"$f":"IF(ISERROR(Dados!Z62),\"-\",Dados!Z62)","v":7.3901246044303797},{"$f":"IF(ISERROR(Dados!AA62),\"-\",Dados!AA62)","v":270.06},{"$f":"IF(ISERROR(Dados!AB62),\"-\",Dados!AB62)","v":6.1672600384112097E-2},{"$f":"IF(ISERROR(Dados!AC62),\"-\",Dados!AC62)","v":-4.8},{"$f":"IF(ISERROR(Dados!AD62),\"-\",Dados!AD62)","v":-6.4},{"$f":"IF(ISERROR(Dados!AE62),\"-\",Dados!AE62)","v":0.39402557201564514},{"$f":"IF(ISERROR(Dados!AF62),\"-\",Dados!AF62)","v":"TIET11"},{"$f":"IF(ISERROR(Dados!AG62),\"-\",Dados!AG62)","v":1011.2}]
[{"$f":"IF(ISERROR(Dados!A63),\"-\",Dados!A63)","v":"CELP5"},{"$f":"IF(ISERROR(Dados!B63),\"-\",Dados!B63)","v":"Energia Elétrica"},{"$f":"IF(ISERROR(Dados!C63),\"-\",Dados!C63)","v":"Celpa"},{"$f":"IF(ISERROR(Dados!D63),\"-\",Dados!D63)","v":6.52},{"$f":"IF(ISERROR(Dados!E63),\"-\",Dados!E63)","v":2209.0740000000001},{"$f":"IF(ISERROR(Dados!F63),\"-\",Dados!F63)","v":5316.86},{"$f":"IF(ISERROR(Dados!G63),\"-\",Dados!G63)","v":3006.08},{"$f":"IF(ISERROR(Dados!H63),\"-\",Dados!H63)","v":5150.97},{"$f":"IF(ISERROR(Dados!I63),\"-\",Dados!I63)","v":5491.54},{"$f":"IF(ISERROR(Dados!J63),\"-\",Dados!J63)","v":613.53},{"$f":"IF(ISERROR(Dados!K63),\"-\",Dados!K63)","v":0.43},{"$f":"IF(ISERROR(Dados!L63),\"-\",Dados!L63)","v":49.63},{"$f":"IF(ISERROR(Dados!M63),\"-\",Dados!M63)","v":183.41},{"$f":"IF(ISERROR(Dados!N63),\"-\",Dados!N63)","v":455.39},{"$f":"IF(ISERROR(Dados!O63),\"-\",Dados!O63)","v":613.53},{"$f":"IF(ISERROR(Dados!P63),\"-\",Dados!P63)","v":455.39},{"$f":"IF(ISERROR(Dados!Q63),\"-\",Dados!Q63)","v":0.20614519930070246},{"$f":"IF(ISERROR(Dados!R63),\"-\",Dados!R63)","v":1.3607873706358411},{"$f":"IF(ISERROR(Dados!S63),\"-\",Dados!S63)","v":4.7913437034277191},{"$f":"IF(ISERROR(Dados!T63),\"-\",Dados!T63)","v":31.628192274753506},{"$f":"IF(ISERROR(Dados!U63),\"-\",Dados!U63)","v":0.17632300000000001},{"$f":"IF(ISERROR(Dados!V63),\"-\",Dados!V63)","v":0.70792299999999997},{"$f":"IF(ISERROR(Dados!W63),\"-\",Dados!W63)","v":940.7},{"$f":"IF(ISERROR(Dados!X63),\"-\",Dados!X63)","v":"-"},{"$f":"IF(ISERROR(Dados!Y63),\"-\",Dados!Y63)","v":"-"},{"$f":"IF(ISERROR(Dados!Z63),\"-\",Dados!Z63)","v":"-"},{"$f":"IF(ISERROR(Dados!AA63),\"-\",Dados!AA63)","v":132.56},{"$f":"IF(ISERROR(Dados!AB63),\"-\",Dados!AB63)","v":2.4932008742001861E-2},{"$f":"IF(ISERROR(Dados!AC63),\"-\",Dados!AC63)","v":-6.3},{"$f":"IF(ISERROR(Dados!AD63),\"-\",Dados!AD63)","v":186.8},{"$f":"IF(ISERROR(Dados!AE63),\"-\",Dados!AE63)","v":0.9979747170081219},{"$f":"IF(ISERROR(Dados!AF63),\"-\",Dados!AF63)","v":"CELP5"},{"$f":"IF(ISERROR(Dados!AG63),\"-\",Dados!AG63)","v":"-"}]
[{"$f":"IF(ISERROR(Dados!A64),\"-\",Dados!A64)","v":"TRPL4"},{"$f":"IF(ISERROR(Dados!B64),\"-\",Dados!B64)","v":"Energia Elétrica"},{"$f":"IF(ISERROR(Dados!C64),\"-\",Dados!C64)","v":"Tran Paulist"},{"$f":"IF(ISERROR(Dados!D64),\"-\",Dados!D64)","v":77.14},{"$f":"IF(ISERROR(Dados!E64),\"-\",Dados!E64)","v":164.721},{"$f":"IF(ISERROR(Dados!F64),\"-\",Dados!F64)","v":13109.59},{"$f":"IF(ISERROR(Dados!G64),\"-\",Dados!G64)","v":11068.65},{"$f":"IF(ISERROR(Dados!H64),\"-\",Dados!H64)","v":2701.19},{"$f":"IF(ISERROR(Dados!I64),\"-\",Dados!I64)","v":3184.65},{"$f":"IF(ISERROR(Dados!J64),\"-\",Dados!J64)","v":1365.51},{"$f":"IF(ISERROR(Dados!K64),\"-\",Dados!K64)","v":236.95},{"$f":"IF(ISERROR(Dados!L64),\"-\",Dados!L64)","v":481.73},{"$f":"IF(ISERROR(Dados!M64),\"-\",Dados!M64)","v":1173.53},{"$f":"IF(ISERROR(Dados!N64),\"-\",Dados!N64)","v":1881.67},{"$f":"IF(ISERROR(Dados!O64),\"-\",Dados!O64)","v":1365.51},{"$f":"IF(ISERROR(Dados!P64),\"-\",Dados!P64)","v":1881.67},{"$f":"IF(ISERROR(Dados!Q64),\"-\",Dados!Q64)","v":11.423376497228647},{"$f":"IF(ISERROR(Dados!R64),\"-\",Dados!R64)","v":67.196350192143072},{"$f":"IF(ISERROR(Dados!S64),\"-\",Dados!S64)","v":1.1479790164112156},{"$f":"IF(ISERROR(Dados!T64),\"-\",Dados!T64)","v":6.7528195379636173},{"$f":"IF(ISERROR(Dados!U64),\"-\",Dados!U64)","v":0.16922399999999999},{"$f":"IF(ISERROR(Dados!V64),\"-\",Dados!V64)","v":0.20508099999999999},{"$f":"IF(ISERROR(Dados!W64),\"-\",Dados!W64)","v":2056.9},{"$f":"IF(ISERROR(Dados!X64),\"-\",Dados!X64)","v":2468.1},{"$f":"IF(ISERROR(Dados!Y64),\"-\",Dados!Y64)","v":2468.1},{"$f":"IF(ISERROR(Dados!Z64),\"-\",Dados!Z64)","v":6.2505198330699727},{"$f":"IF(ISERROR(Dados!AA64),\"-\",Dados!AA64)","v":2064.2600000000002},{"$f":"IF(ISERROR(Dados!AB64),\"-\",Dados!AB64)","v":0.15746182756287574},{"$f":"IF(ISERROR(Dados!AC64),\"-\",Dados!AC64)","v":-0.1},{"$f":"IF(ISERROR(Dados!AD64),\"-\",Dados!AD64)","v":38.1},{"$f":"IF(ISERROR(Dados!AE64),\"-\",Dados!AE64)","v":0.39157120221465386},{"$f":"IF(ISERROR(Dados!AF64),\"-\",Dados!AF64)","v":"TRPL4"},{"$f":"IF(ISERROR(Dados!AG64),\"-\",Dados!AG64)","v":2468.1}]
[{"$f":"IF(ISERROR(Dados!A65),\"-\",Dados!A65)","v":"ENEV3"},{"$f":"IF(ISERROR(Dados!B65),\"-\",Dados!B65)","v":"Energia Elétrica"},{"$f":"IF(ISERROR(Dados!C65),\"-\",Dados!C65)","v":"Eneva"},{"$f":"IF(ISERROR(Dados!D65),\"-\",Dados!D65)","v":18.5},{"$f":"IF(ISERROR(Dados!E65),\"-\",Dados!E65)","v":314.99},{"$f":"IF(ISERROR(Dados!F65),\"-\",Dados!F65)","v":5827.32},{"$f":"IF(ISERROR(Dados!G65),\"-\",Dados!G65)","v":6298.04},{"$f":"IF(ISERROR(Dados!H65),\"-\",Dados!H65)","v":2721.77},{"$f":"IF(ISERROR(Dados!I65),\"-\",Dados!I65)","v":3129.11},{"$f":"IF(ISERROR(Dados!J65),\"-\",Dados!J65)","v":95.5},{"$f":"IF(ISERROR(Dados!K65),\"-\",Dados!K65)","v":36.71},{"$f":"IF(ISERROR(Dados!L65),\"-\",Dados!L65)","v":242.76},{"$f":"IF(ISERROR(Dados!M65),\"-\",Dados!M65)","v":418.44},{"$f":"IF(ISERROR(Dados!N65),\"-\",Dados!N65)","v":887.87},{"$f":"IF(ISERROR(Dados!O65),\"-\",Dados!O65)","v":95.5},{"$f":"IF(ISERROR(Dados!P65),\"-\",Dados!P65)","v":887.87},{"$f":"IF(ISERROR(Dados!Q65),\"-\",Dados!Q65)","v":2.8187244039493318},{"$f":"IF(ISERROR(Dados!R65),\"-\",Dados!R65)","v":19.994412521032412},{"$f":"IF(ISERROR(Dados!S65),\"-\",Dados!S65)","v":0.92525849311849406},{"$f":"IF(ISERROR(Dados!T65),\"-\",Dados!T65)","v":6.5632525031817721},{"$f":"IF(ISERROR(Dados!U65),\"-\",Dados!U65)","v":0.16522200000000001},{"$f":"IF(ISERROR(Dados!V65),\"-\",Dados!V65)","v":0.60543199999999997},{"$f":"IF(ISERROR(Dados!W65),\"-\",Dados!W65)","v":1124.5999999999999},{"$f":"IF(ISERROR(Dados!X65),\"-\",Dados!X65)","v":1563},{"$f":"IF(ISERROR(Dados!Y65),\"-\",Dados!Y65)","v":1563},{"$f":"IF(ISERROR(Dados!Z65),\"-\",Dados!Z65)","v":6.1623678822776702},{"$f":"IF(ISERROR(Dados!AA65),\"-\",Dados!AA65)","v":"-"},{"$f":"IF(ISERROR(Dados!AB65),\"-\",Dados!AB65)","v":"-"},{"$f":"IF(ISERROR(Dados!AC65),\"-\",Dados!AC65)","v":-1},{"$f":"IF(ISERROR(Dados!AD65),\"-\",Dados!AD65)","v":33.1},{"$f":"IF(ISERROR(Dados!AE65),\"-\",Dados!AE65)","v":"-"},{"$f":"IF(ISERROR(Dados!AF65),\"-\",Dados!AF65)","v":"ENEV3"},{"$f":"IF(ISERROR(Dados!AG65),\"-\",Dados!AG65)","v":1563}]
[{"$f":"IF(ISERROR(Dados!A66),\"-\",Dados!A66)","v":"ENBR3"},{"$f":"IF(ISERROR(Dados!B66),\"-\",Dados!B66)","v":"Energia Elétrica"},{"$f":"IF(ISERROR(Dados!C66),\"-\",Dados!C66)","v":"Energias BR"},{"$f":"IF(ISERROR(Dados!D66),\"-\",Dados!D66)","v":16.98},{"$f":"IF(ISERROR(Dados!E66),\"-\",Dados!E66)","v":605.64599999999996},{"$f":"IF(ISERROR(Dados!F66),\"-\",Dados!F66)","v":10283.870000000001},{"$f":"IF(ISERROR(Dados!G66),\"-\",Dados!G66)","v":8523.7099999999991},{"$f":"IF(ISERROR(Dados!H66),\"-\",Dados!H66)","v":12373.38},{"$f":"IF(ISERROR(Dados!I66),\"-\",Dados!I66)","v":13834.22},{"$f":"IF(ISERROR(Dados!J66),\"-\",Dados!J66)","v":611.86},{"$f":"IF(ISERROR(Dados!K66),\"-\",Dados!K66)","v":214.12},{"$f":"IF(ISERROR(Dados!L66),\"-\",Dados!L66)","v":441.79},{"$f":"IF(ISERROR(Dados!M66),\"-\",Dados!M66)","v":748.73},{"$f":"IF(ISERROR(Dados!N66),\"-\",Dados!N66)","v":1272.83},{"$f":"IF(ISERROR(Dados!O66),\"-\",Dados!O66)","v":611.86},{"$f":"IF(ISERROR(Dados!P66),\"-\",Dados!P66)","v":1272.83},{"$f":"IF(ISERROR(Dados!Q66),\"-\",Dados!Q66)","v":2.1016072094920135},{"$f":"IF(ISERROR(Dados!R66),\"-\",Dados!R66)","v":14.073749351931657},{"$f":"IF(ISERROR(Dados!S66),\"-\",Dados!S66)","v":1.2065015210512793},{"$f":"IF(ISERROR(Dados!T66),\"-\",Dados!T66)","v":8.0795307150208586},{"$f":"IF(ISERROR(Dados!U66),\"-\",Dados!U66)","v":0.15654099999999999},{"$f":"IF(ISERROR(Dados!V66),\"-\",Dados!V66)","v":0.52518500000000001},{"$f":"IF(ISERROR(Dados!W66),\"-\",Dados!W66)","v":2170.3000000000002},{"$f":"IF(ISERROR(Dados!X66),\"-\",Dados!X66)","v":2773.2},{"$f":"IF(ISERROR(Dados!Y66),\"-\",Dados!Y66)","v":2773.2},{"$f":"IF(ISERROR(Dados!Z66),\"-\",Dados!Z66)","v":5.540463003028993},{"$f":"IF(ISERROR(Dados!AA66),\"-\",Dados!AA66)","v":356},{"$f":"IF(ISERROR(Dados!AB66),\"-\",Dados!AB66)","v":3.4617318188580756E-2},{"$f":"IF(ISERROR(Dados!AC66),\"-\",Dados!AC66)","v":-1.8},{"$f":"IF(ISERROR(Dados!AD66),\"-\",Dados!AD66)","v":32.299999999999997},{"$f":"IF(ISERROR(Dados!AE66),\"-\",Dados!AE66)","v":"-"},{"$f":"IF(ISERROR(Dados!AF66),\"-\",Dados!AF66)","v":"ENBR3"},{"$f":"IF(ISERROR(Dados!AG66),\"-\",Dados!AG66)","v":2773.2}]
[{"$f":"IF(ISERROR(Dados!A67),\"-\",Dados!A67)","v":"GEPA4"},{"$f":"IF(ISERROR(Dados!B67),\"-\",Dados!B67)","v":"Energia Elétrica"},{"$f":"IF(ISERROR(Dados!C67),\"-\",Dados!C67)","v":"Ger Paranap"},{"$f":"IF(ISERROR(Dados!D67),\"-\",Dados!D67)","v":40.5},{"$f":"IF(ISERROR(Dados!E67),\"-\",Dados!E67)","v":94.433000000000007},{"$f":"IF(ISERROR(Dados!F67),\"-\",Dados!F67)","v":3667.15},{"$f":"IF(ISERROR(Dados!G67),\"-\",Dados!G67)","v":1635.42},{"$f":"IF(ISERROR(Dados!H67),\"-\",Dados!H67)","v":1453.35},{"$f":"IF(ISERROR(Dados!I67),\"-\",Dados!I67)","v":1318.86},{"$f":"IF(ISERROR(Dados!J67),\"-\",Dados!J67)","v":243.88},{"$f":"IF(ISERROR(Dados!K67),\"-\",Dados!K67)","v":85.67},{"$f":"IF(ISERROR(Dados!L67),\"-\",Dados!L67)","v":134.38},{"$f":"IF(ISERROR(Dados!M67),\"-\",Dados!M67)","v":127.26},{"$f":"IF(ISERROR(Dados!N67),\"-\",Dados!N67)","v":255.91},{"$f":"IF(ISERROR(Dados!O67),\"-\",Dados!O67)","v":243.88},{"$f":"IF(ISERROR(Dados!P67),\"-\",Dados!P67)","v":255.91},{"$f":"IF(ISERROR(Dados!Q67),\"-\",Dados!Q67)","v":2.7099636779515635},{"$f":"IF(ISERROR(Dados!R67),\"-\",Dados!R67)","v":17.318310336429001},{"$f":"IF(ISERROR(Dados!S67),\"-\",Dados!S67)","v":2.3385653226694063},{"$f":"IF(ISERROR(Dados!T67),\"-\",Dados!T67)","v":14.94484975186589},{"$f":"IF(ISERROR(Dados!U67),\"-\",Dados!U67)","v":0.15109899999999998},{"$f":"IF(ISERROR(Dados!V67),\"-\",Dados!V67)","v":0.32586700000000002},{"$f":"IF(ISERROR(Dados!W67),\"-\",Dados!W67)","v":644.5},{"$f":"IF(ISERROR(Dados!X67),\"-\",Dados!X67)","v":705.4},{"$f":"IF(ISERROR(Dados!Y67),\"-\",Dados!Y67)","v":705.4},{"$f":"IF(ISERROR(Dados!Z67),\"-\",Dados!Z67)","v":5.9541820243833286},{"$f":"IF(ISERROR(Dados!AA67),\"-\",Dados!AA67)","v":307.43},{"$f":"IF(ISERROR(Dados!AB67),\"-\",Dados!AB67)","v":8.3833494675701836E-2},{"$f":"IF(ISERROR(Dados!AC67),\"-\",Dados!AC67)","v":1.4},{"$f":"IF(ISERROR(Dados!AD67),\"-\",Dados!AD67)","v":10.8},{"$f":"IF(ISERROR(Dados!AE67),\"-\",Dados!AE67)","v":0.33356983257971257},{"$f":"IF(ISERROR(Dados!AF67),\"-\",Dados!AF67)","v":"GEPA4"},{"$f":"IF(ISERROR(Dados!AG67),\"-\",Dados!AG67)","v":705.4}]
[{"$f":"IF(ISERROR(Dados!A68),\"-\",Dados!A68)","v":"COCE5"},{"$f":"IF(ISERROR(Dados!B68),\"-\",Dados!B68)","v":"Energia Elétrica"},{"$f":"IF(ISERROR(Dados!C68),\"-\",Dados!C68)","v":"Coelce"},{"$f":"IF(ISERROR(Dados!D68),\"-\",Dados!D68)","v":52.3},{"$f":"IF(ISERROR(Dados!E68),\"-\",Dados!E68)","v":77.855000000000004},{"$f":"IF(ISERROR(Dados!F68),\"-\",Dados!F68)","v":3720.94},{"$f":"IF(ISERROR(Dados!G68),\"-\",Dados!G68)","v":2862.64},{"$f":"IF(ISERROR(Dados!H68),\"-\",Dados!H68)","v":4594.42},{"$f":"IF(ISERROR(Dados!I68),\"-\",Dados!I68)","v":5102.24},{"$f":"IF(ISERROR(Dados!J68),\"-\",Dados!J68)","v":435.78},{"$f":"IF(ISERROR(Dados!K68),\"-\",Dados!K68)","v":85.39},{"$f":"IF(ISERROR(Dados!L68),\"-\",Dados!L68)","v":166.43},{"$f":"IF(ISERROR(Dados!M68),\"-\",Dados!M68)","v":235.7},{"$f":"IF(ISERROR(Dados!N68),\"-\",Dados!N68)","v":364.52},{"$f":"IF(ISERROR(Dados!O68),\"-\",Dados!O68)","v":435.78},{"$f":"IF(ISERROR(Dados!P68),\"-\",Dados!P68)","v":364.52},{"$f":"IF(ISERROR(Dados!Q68),\"-\",Dados!Q68)","v":4.6820371202877142},{"$f":"IF(ISERROR(Dados!R68),\"-\",Dados!R68)","v":36.768865198124715},{"$f":"IF(ISERROR(Dados!S68),\"-\",Dados!S68)","v":1.4223990791716739},{"$f":"IF(ISERROR(Dados!T68),\"-\",Dados!T68)","v":11.170351421046856},{"$f":"IF(ISERROR(Dados!U68),\"-\",Dados!U68)","v":0.141127},{"$f":"IF(ISERROR(Dados!V68),\"-\",Dados!V68)","v":0.60243099999999994},{"$f":"IF(ISERROR(Dados!W68),\"-\",Dados!W68)","v":808},{"$f":"IF(ISERROR(Dados!X68),\"-\",Dados!X68)","v":741.3},{"$f":"IF(ISERROR(Dados!Y68),\"-\",Dados!Y68)","v":741.3},{"$f":"IF(ISERROR(Dados!Z68),\"-\",Dados!Z68)","v":7.345854579792257},{"$f":"IF(ISERROR(Dados!AA68),\"-\",Dados!AA68)","v":84.96},{"$f":"IF(ISERROR(Dados!AB68),\"-\",Dados!AB68)","v":2.2832940063532332E-2},{"$f":"IF(ISERROR(Dados!AC68),\"-\",Dados!AC68)","v":-4.9000000000000004},{"$f":"IF(ISERROR(Dados!AD68),\"-\",Dados!AD68)","v":-2.6},{"$f":"IF(ISERROR(Dados!AE68),\"-\",Dados!AE68)","v":0.61781516922484103},{"$f":"IF(ISERROR(Dados!AF68),\"-\",Dados!AF68)","v":"COCE5"},{"$f":"IF(ISERROR(Dados!AG68),\"-\",Dados!AG68)","v":741.3}]
[{"$f":"IF(ISERROR(Dados!A69),\"-\",Dados!A69)","v":"REDE4"},{"$f":"IF(ISERROR(Dados!B69),\"-\",Dados!B69)","v":"Energia Elétrica"},{"$f":"IF(ISERROR(Dados!C69),\"-\",Dados!C69)","v":"Rede Energia"},{"$f":"IF(ISERROR(Dados!D69),\"-\",Dados!D69)","v":"-"},{"$f":"IF(ISERROR(Dados!E69),\"-\",Dados!E69)","v":2057.875},{"$f":"IF(ISERROR(Dados!F69),\"-\",Dados!F69)","v":15434.06},{"$f":"IF(ISERROR(Dados!G69),\"-\",Dados!G69)","v":3258.2},{"$f":"IF(ISERROR(Dados!H69),\"-\",Dados!H69)","v":8977.15},{"$f":"IF(ISERROR(Dados!I69),\"-\",Dados!I69)","v":10069.540000000001},{"$f":"IF(ISERROR(Dados!J69),\"-\",Dados!J69)","v":111.23},{"$f":"IF(ISERROR(Dados!K69),\"-\",Dados!K69)","v":117.14},{"$f":"IF(ISERROR(Dados!L69),\"-\",Dados!L69)","v":192.81},{"$f":"IF(ISERROR(Dados!M69),\"-\",Dados!M69)","v":343.01},{"$f":"IF(ISERROR(Dados!N69),\"-\",Dados!N69)","v":399.56},{"$f":"IF(ISERROR(Dados!O69),\"-\",Dados!O69)","v":111.23},{"$f":"IF(ISERROR(Dados!P69),\"-\",Dados!P69)","v":399.56},{"$f":"IF(ISERROR(Dados!Q69),\"-\",Dados!Q69)","v":0.19416145295511147},{"$f":"IF(ISERROR(Dados!R69),\"-\",Dados!R69)","v":1.5832837271457205},{"$f":"IF(ISERROR(Dados!S69),\"-\",Dados!S69)","v":"-"},{"$f":"IF(ISERROR(Dados!T69),\"-\",Dados!T69)","v":"-"},{"$f":"IF(ISERROR(Dados!U69),\"-\",Dados!U69)","v":0.13966799999999999},{"$f":"IF(ISERROR(Dados!V69),\"-\",Dados!V69)","v":1.3014840000000001},{"$f":"IF(ISERROR(Dados!W69),\"-\",Dados!W69)","v":1316.7},{"$f":"IF(ISERROR(Dados!X69),\"-\",Dados!X69)","v":1793},{"$f":"IF(ISERROR(Dados!Y69),\"-\",Dados!Y69)","v":1793},{"$f":"IF(ISERROR(Dados!Z69),\"-\",Dados!Z69)","v":11.766193530395984},{"$f":"IF(ISERROR(Dados!AA69),\"-\",Dados!AA69)","v":26.46},{"$f":"IF(ISERROR(Dados!AB69),\"-\",Dados!AB69)","v":1.7143901215882276E-3},{"$f":"IF(ISERROR(Dados!AC69),\"-\",Dados!AC69)","v":"-"},{"$f":"IF(ISERROR(Dados!AD69),\"-\",Dados!AD69)","v":"-"},{"$f":"IF(ISERROR(Dados!AE69),\"-\",Dados!AE69)","v":"-"},{"$f":"IF(ISERROR(Dados!AF69),\"-\",Dados!AF69)","v":"REDE4"},{"$f":"IF(ISERROR(Dados!AG69),\"-\",Dados!AG69)","v":1793}]
[{"$f":"IF(ISERROR(Dados!A70),\"-\",Dados!A70)","v":"ALUP11"},{"$f":"IF(ISERROR(Dados!B70),\"-\",Dados!B70)","v":"Energia Elétrica"},{"$f":"IF(ISERROR(Dados!C70),\"-\",Dados!C70)","v":"Alupar"},{"$f":"IF(ISERROR(Dados!D70),\"-\",Dados!D70)","v":23.22},{"$f":"IF(ISERROR(Dados!E70),\"-\",Dados!E70)","v":879.11099999999999},{"$f":"IF(ISERROR(Dados!F70),\"-\",Dados!F70)","v":6840.79},{"$f":"IF(ISERROR(Dados!G70),\"-\",Dados!G70)","v":4328.05},{"$f":"IF(ISERROR(Dados!H70),\"-\",Dados!H70)","v":1538.19},{"$f":"IF(ISERROR(Dados!I70),\"-\",Dados!I70)","v":1882.91},{"$f":"IF(ISERROR(Dados!J70),\"-\",Dados!J70)","v":330.89},{"$f":"IF(ISERROR(Dados!K70),\"-\",Dados!K70)","v":60.34},{"$f":"IF(ISERROR(Dados!L70),\"-\",Dados!L70)","v":144.96},{"$f":"IF(ISERROR(Dados!M70),\"-\",Dados!M70)","v":252.69},{"$f":"IF(ISERROR(Dados!N70),\"-\",Dados!N70)","v":386.75},{"$f":"IF(ISERROR(Dados!O70),\"-\",Dados!O70)","v":330.89},{"$f":"IF(ISERROR(Dados!P70),\"-\",Dados!P70)","v":386.75},{"$f":"IF(ISERROR(Dados!Q70),\"-\",Dados!Q70)","v":0.43993306874786003},{"$f":"IF(ISERROR(Dados!R70),\"-\",Dados!R70)","v":4.923212199597093},{"$f":"IF(ISERROR(Dados!S70),\"-\",Dados!S70)","v":4.7164329016531692},{"$f":"IF(ISERROR(Dados!T70),\"-\",Dados!T70)","v":52.780756095669034},{"$f":"IF(ISERROR(Dados!U70),\"-\",Dados!U70)","v":0.133907},{"$f":"IF(ISERROR(Dados!V70),\"-\",Dados!V70)","v":0.44845799999999997},{"$f":"IF(ISERROR(Dados!W70),\"-\",Dados!W70)","v":1170.2},{"$f":"IF(ISERROR(Dados!X70),\"-\",Dados!X70)","v":"-"},{"$f":"IF(ISERROR(Dados!Y70),\"-\",Dados!Y70)","v":"-"},{"$f":"IF(ISERROR(Dados!Z70),\"-\",Dados!Z70)","v":"-"},{"$f":"IF(ISERROR(Dados!AA70),\"-\",Dados!AA70)","v":210.99},{"$f":"IF(ISERROR(Dados!AB70),\"-\",Dados!AB70)","v":3.0842928959959305E-2},{"$f":"IF(ISERROR(Dados!AC70),\"-\",Dados!AC70)","v":1.6},{"$f":"IF(ISERROR(Dados!AD70),\"-\",Dados!AD70)","v":31},{"$f":"IF(ISERROR(Dados!AE70),\"-\",Dados!AE70)","v":0.67909513133153832},{"$f":"IF(ISERROR(Dados!AF70),\"-\",Dados!AF70)","v":"ALUP11"},{"$f":"IF(ISERROR(Dados!AG70),\"-\",Dados!AG70)","v":"-"}]
[{"$f":"IF(ISERROR(Dados!A71),\"-\",Dados!A71)","v":"EMAE4"},{"$f":"IF(ISERROR(Dados!B71),\"-\",Dados!B71)","v":"Energia Elétrica"},{"$f":"IF(ISERROR(Dados!C71),\"-\",Dados!C71)","v":"Emae"},{"$f":"IF(ISERROR(Dados!D71),\"-\",Dados!D71)","v":23.19},{"$f":"IF(ISERROR(Dados!E71),\"-\",Dados!E71)","v":36.947000000000003},{"$f":"IF(ISERROR(Dados!F71),\"-\",Dados!F71)","v":856.8},{"$f":"IF(ISERROR(Dados!G71),\"-\",Dados!G71)","v":868.86},{"$f":"IF(ISERROR(Dados!H71),\"-\",Dados!H71)","v":209.51},{"$f":"IF(ISERROR(Dados!I71),\"-\",Dados!I71)","v":316.42},{"$f":"IF(ISERROR(Dados!J71),\"-\",Dados!J71)","v":119.15},{"$f":"IF(ISERROR(Dados!K71),\"-\",Dados!K71)","v":15.94},{"$f":"IF(ISERROR(Dados!L71),\"-\",Dados!L71)","v":32.31},{"$f":"IF(ISERROR(Dados!M71),\"-\",Dados!M71)","v":38.590000000000003},{"$f":"IF(ISERROR(Dados!N71),\"-\",Dados!N71)","v":101.52},{"$f":"IF(ISERROR(Dados!O71),\"-\",Dados!O71)","v":119.15},{"$f":"IF(ISERROR(Dados!P71),\"-\",Dados!P71)","v":101.52},{"$f":"IF(ISERROR(Dados!Q71),\"-\",Dados!Q71)","v":2.7477197066067607},{"$f":"IF(ISERROR(Dados!R71),\"-\",Dados!R71)","v":23.516388340054672},{"$f":"IF(ISERROR(Dados!S71),\"-\",Dados!S71)","v":0.98612081347973213},{"$f":"IF(ISERROR(Dados!T71),\"-\",Dados!T71)","v":8.4397254728132403},{"$f":"IF(ISERROR(Dados!U71),\"-\",Dados!U71)","v":0.12382},{"$f":"IF(ISERROR(Dados!V71),\"-\",Dados!V71)","v":-0.17573699999999998},{"$f":"IF(ISERROR(Dados!W71),\"-\",Dados!W71)","v":115.4},{"$f":"IF(ISERROR(Dados!X71),\"-\",Dados!X71)","v":6.7},{"$f":"IF(ISERROR(Dados!Y71),\"-\",Dados!Y71)","v":6.7},{"$f":"IF(ISERROR(Dados!Z71),\"-\",Dados!Z71)","v":105.09104477611939},{"$f":"IF(ISERROR(Dados!AA71),\"-\",Dados!AA71)","v":34.29},{"$f":"IF(ISERROR(Dados!AB71),\"-\",Dados!AB71)","v":4.0021008403361348E-2},{"$f":"IF(ISERROR(Dados!AC71),\"-\",Dados!AC71)","v":3.3},{"$f":"IF(ISERROR(Dados!AD71),\"-\",Dados!AD71)","v":186.2},{"$f":"IF(ISERROR(Dados!AE71),\"-\",Dados!AE71)","v":0.3978672152001515},{"$f":"IF(ISERROR(Dados!AF71),\"-\",Dados!AF71)","v":"EMAE4"},{"$f":"IF(ISERROR(Dados!AG71),\"-\",Dados!AG71)","v":6.7}]
[{"$f":"IF(ISERROR(Dados!A72),\"-\",Dados!A72)","v":"CMIG4"},{"$f":"IF(ISERROR(Dados!B72),\"-\",Dados!B72)","v":"Energia Elétrica"},{"$f":"IF(ISERROR(Dados!C72),\"-\",Dados!C72)","v":"Cemig"},{"$f":"IF(ISERROR(Dados!D72),\"-\",Dados!D72)","v":13.9},{"$f":"IF(ISERROR(Dados!E72),\"-\",Dados!E72)","v":1458.191},{"$f":"IF(ISERROR(Dados!F72),\"-\",Dados!F72)","v":21634.17},{"$f":"IF(ISERROR(Dados!G72),\"-\",Dados!G72)","v":14968.53},{"$f":"IF(ISERROR(Dados!H72),\"-\",Dados!H72)","v":21711.69},{"$f":"IF(ISERROR(Dados!I72),\"-\",Dados!I72)","v":"-"},{"$f":"IF(ISERROR(Dados!J72),\"-\",Dados!J72)","v":1000.95},{"$f":"IF(ISERROR(Dados!K72),\"-\",Dados!K72)","v":464.45},{"$f":"IF(ISERROR(Dados!L72),\"-\",Dados!L72)","v":453.41},{"$f":"IF(ISERROR(Dados!M72),\"-\",Dados!M72)","v":697.73},{"$f":"IF(ISERROR(Dados!N72),\"-\",Dados!N72)","v":"-"},{"$f":"IF(ISERROR(Dados!O72),\"-\",Dados!O72)","v":1000.95},{"$f":"IF(ISERROR(Dados!P72),\"-\",Dados!P72)","v":"-"},{"$f":"IF(ISERROR(Dados!Q72),\"-\",Dados!Q72)","v":0.89284599891235106},{"$f":"IF(ISERROR(Dados!R72),\"-\",Dados!R72)","v":10.265136734488143},{"$f":"IF(ISERROR(Dados!S72),\"-\",Dados!S72)","v":1.3540978907080388},{"$f":"IF(ISERROR(Dados!T72),\"-\",Dados!T72)","v":15.568194310029646},{"$f":"IF(ISERROR(Dados!U72),\"-\",Dados!U72)","v":9.8039000000000001E-2},{"$f":"IF(ISERROR(Dados!V72),\"-\",Dados!V72)","v":0.89021499999999998},{"$f":"IF(ISERROR(Dados!W72),\"-\",Dados!W72)","v":3492.2},{"$f":"IF(ISERROR(Dados!X72),\"-\",Dados!X72)","v":"-"},{"$f":"IF(ISERROR(Dados!Y72),\"-\",Dados!Y72)","v":4308.8999999999996},{"$f":"IF(ISERROR(Dados!Z72),\"-\",Dados!Z72)","v":8.1141873796096444},{"$f":"IF(ISERROR(Dados!AA72),\"-\",Dados!AA72)","v":270.64999999999998},{"$f":"IF(ISERROR(Dados!AB72),\"-\",Dados!AB72)","v":1.251030198986141E-2},{"$f":"IF(ISERROR(Dados!AC72),\"-\",Dados!AC72)","v":-3.5},{"$f":"IF(ISERROR(Dados!AD72),\"-\",Dados!AD72)","v":117.4},{"$f":"IF(ISERROR(Dados!AE72),\"-\",Dados!AE72)","v":0.33438692187786101},{"$f":"IF(ISERROR(Dados!AF72),\"-\",Dados!AF72)","v":"CMIG4"},{"$f":"IF(ISERROR(Dados!AG72),\"-\",Dados!AG72)","v":4308.8999999999996}]
[{"$f":"IF(ISERROR(Dados!A73),\"-\",Dados!A73)","v":"CPLE6"},{"$f":"IF(ISERROR(Dados!B73),\"-\",Dados!B73)","v":"Energia Elétrica"},{"$f":"IF(ISERROR(Dados!C73),\"-\",Dados!C73)","v":"Copel"},{"$f":"IF(ISERROR(Dados!D73),\"-\",Dados!D73)","v":36.4},{"$f":"IF(ISERROR(Dados!E73),\"-\",Dados!E73)","v":273.65499999999997},{"$f":"IF(ISERROR(Dados!F73),\"-\",Dados!F73)","v":9337.42},{"$f":"IF(ISERROR(Dados!G73),\"-\",Dados!G73)","v":16032.93},{"$f":"IF(ISERROR(Dados!H73),\"-\",Dados!H73)","v":14024.57},{"$f":"IF(ISERROR(Dados!I73),\"-\",Dados!I73)","v":14934.78},{"$f":"IF(ISERROR(Dados!J73),\"-\",Dados!J73)","v":1033.6300000000001},{"$f":"IF(ISERROR(Dados!K73),\"-\",Dados!K73)","v":332.28},{"$f":"IF(ISERROR(Dados!L73),\"-\",Dados!L73)","v":679.49},{"$f":"IF(ISERROR(Dados!M73),\"-\",Dados!M73)","v":1034.27},{"$f":"IF(ISERROR(Dados!N73),\"-\",Dados!N73)","v":1407.06},{"$f":"IF(ISERROR(Dados!O73),\"-\",Dados!O73)","v":1033.6300000000001},{"$f":"IF(ISERROR(Dados!P73),\"-\",Dados!P73)","v":1407.06},{"$f":"IF(ISERROR(Dados!Q73),\"-\",Dados!Q73)","v":5.1417295499808153},{"$f":"IF(ISERROR(Dados!R73),\"-\",Dados!R73)","v":58.588112769728312},{"$f":"IF(ISERROR(Dados!S73),\"-\",Dados!S73)","v":0.62128643984599186},{"$f":"IF(ISERROR(Dados!T73),\"-\",Dados!T73)","v":7.079329950393018},{"$f":"IF(ISERROR(Dados!U73),\"-\",Dados!U73)","v":9.3097999999999986E-2},{"$f":"IF(ISERROR(Dados!V73),\"-\",Dados!V73)","v":0.58103799999999994},{"$f":"IF(ISERROR(Dados!W73),\"-\",Dados!W73)","v":2873},{"$f":"IF(ISERROR(Dados!X73),\"-\",Dados!X73)","v":3143.2},{"$f":"IF(ISERROR(Dados!Y73),\"-\",Dados!Y73)","v":3143.2},{"$f":"IF(ISERROR(Dados!Z73),\"-\",Dados!Z73)","v":5.990514125731738},{"$f":"IF(ISERROR(Dados!AA73),\"-\",Dados!AA73)","v":264.73},{"$f":"IF(ISERROR(Dados!AB73),\"-\",Dados!AB73)","v":2.835151465822465E-2},{"$f":"IF(ISERROR(Dados!AC73),\"-\",Dados!AC73)","v":1.8},{"$f":"IF(ISERROR(Dados!AD73),\"-\",Dados!AD73)","v":58.4},{"$f":"IF(ISERROR(Dados!AE73),\"-\",Dados!AE73)","v":0.52986424512616259},{"$f":"IF(ISERROR(Dados!AF73),\"-\",Dados!AF73)","v":"CPLE6"},{"$f":"IF(ISERROR(Dados!AG73),\"-\",Dados!AG73)","v":3143.2}]
[{"$f":"IF(ISERROR(Dados!A74),\"-\",Dados!A74)","v":"CLSC4"},{"$f":"IF(ISERROR(Dados!B74),\"-\",Dados!B74)","v":"Energia Elétrica"},{"$f":"IF(ISERROR(Dados!C74),\"-\",Dados!C74)","v":"Celesc"},{"$f":"IF(ISERROR(Dados!D74),\"-\",Dados!D74)","v":53.43},{"$f":"IF(ISERROR(Dados!E74),\"-\",Dados!E74)","v":38.570999999999998},{"$f":"IF(ISERROR(Dados!F74),\"-\",Dados!F74)","v":2060.85},{"$f":"IF(ISERROR(Dados!G74),\"-\",Dados!G74)","v":1800.86},{"$f":"IF(ISERROR(Dados!H74),\"-\",Dados!H74)","v":7091.24},{"$f":"IF(ISERROR(Dados!I74),\"-\",Dados!I74)","v":7664.54},{"$f":"IF(ISERROR(Dados!J74),\"-\",Dados!J74)","v":66.489999999999995},{"$f":"IF(ISERROR(Dados!K74),\"-\",Dados!K74)","v":70.989999999999995},{"$f":"IF(ISERROR(Dados!L74),\"-\",Dados!L74)","v":140.21},{"$f":"IF(ISERROR(Dados!M74),\"-\",Dados!M74)","v":182.29},{"$f":"IF(ISERROR(Dados!N74),\"-\",Dados!N74)","v":165.03},{"$f":"IF(ISERROR(Dados!O74),\"-\",Dados!O74)","v":66.489999999999995},{"$f":"IF(ISERROR(Dados!P74),\"-\",Dados!P74)","v":165.03},{"$f":"IF(ISERROR(Dados!Q74),\"-\",Dados!Q74)","v":4.2786030955899514},{"$f":"IF(ISERROR(Dados!R74),\"-\",Dados!R74)","v":46.689481734982238},{"$f":"IF(ISERROR(Dados!S74),\"-\",Dados!S74)","v":1.1443690958764148},{"$f":"IF(ISERROR(Dados!T74),\"-\",Dados!T74)","v":12.487720596255224},{"$f":"IF(ISERROR(Dados!U74),\"-\",Dados!U74)","v":8.9581999999999995E-2},{"$f":"IF(ISERROR(Dados!V74),\"-\",Dados!V74)","v":0.400922},{"$f":"IF(ISERROR(Dados!W74),\"-\",Dados!W74)","v":523.20000000000005},{"$f":"IF(ISERROR(Dados!X74),\"-\",Dados!X74)","v":"-"},{"$f":"IF(ISERROR(Dados!Y74),\"-\",Dados!Y74)","v":"-"},{"$f":"IF(ISERROR(Dados!Z74),\"-\",Dados!Z74)","v":"-"},{"$f":"IF(ISERROR(Dados!AA74),\"-\",Dados!AA74)","v":15.31},{"$f":"IF(ISERROR(Dados!AB74),\"-\",Dados!AB74)","v":7.4289734818157559E-3},{"$f":"IF(ISERROR(Dados!AC74),\"-\",Dados!AC74)","v":-2.5},{"$f":"IF(ISERROR(Dados!AD74),\"-\",Dados!AD74)","v":100.6},{"$f":"IF(ISERROR(Dados!AE74),\"-\",Dados!AE74)","v":0.40185631692203988},{"$f":"IF(ISERROR(Dados!AF74),\"-\",Dados!AF74)","v":"CLSC4"},{"$f":"IF(ISERROR(Dados!AG74),\"-\",Dados!AG74)","v":"-"}]
[{"$f":"IF(ISERROR(Dados!A75),\"-\",Dados!A75)","v":"EEEL4"},{"$f":"IF(ISERROR(Dados!B75),\"-\",Dados!B75)","v":"Energia Elétrica"},{"$f":"IF(ISERROR(Dados!C75),\"-\",Dados!C75)","v":"Ceee-Gt"},{"$f":"IF(ISERROR(Dados!D75),\"-\",Dados!D75)","v":250},{"$f":"IF(ISERROR(Dados!E75),\"-\",Dados!E75)","v":9.6809999999999992},{"$f":"IF(ISERROR(Dados!F75),\"-\",Dados!F75)","v":2277.44},{"$f":"IF(ISERROR(Dados!G75),\"-\",Dados!G75)","v":2372.58},{"$f":"IF(ISERROR(Dados!H75),\"-\",Dados!H75)","v":1017.23},{"$f":"IF(ISERROR(Dados!I75),\"-\",Dados!I75)","v":1023.43},{"$f":"IF(ISERROR(Dados!J75),\"-\",Dados!J75)","v":395.08},{"$f":"IF(ISERROR(Dados!K75),\"-\",Dados!K75)","v":54.19},{"$f":"IF(ISERROR(Dados!L75),\"-\",Dados!L75)","v":41.63},{"$f":"IF(ISERROR(Dados!M75),\"-\",Dados!M75)","v":104.72},{"$f":"IF(ISERROR(Dados!N75),\"-\",Dados!N75)","v":173.39},{"$f":"IF(ISERROR(Dados!O75),\"-\",Dados!O75)","v":395.08},{"$f":"IF(ISERROR(Dados!P75),\"-\",Dados!P75)","v":173.39},{"$f":"IF(ISERROR(Dados!Q75),\"-\",Dados!Q75)","v":17.910339840925523},{"$f":"IF(ISERROR(Dados!R75),\"-\",Dados!R75)","v":245.07592190889372},{"$f":"IF(ISERROR(Dados!S75),\"-\",Dados!S75)","v":1.0200920516905647},{"$f":"IF(ISERROR(Dados!T75),\"-\",Dados!T75)","v":13.958417440452161},{"$f":"IF(ISERROR(Dados!U75),\"-\",Dados!U75)","v":7.4162999999999993E-2},{"$f":"IF(ISERROR(Dados!V75),\"-\",Dados!V75)","v":0.12475199999999999},{"$f":"IF(ISERROR(Dados!W75),\"-\",Dados!W75)","v":408.7},{"$f":"IF(ISERROR(Dados!X75),\"-\",Dados!X75)","v":329.5},{"$f":"IF(ISERROR(Dados!Y75),\"-\",Dados!Y75)","v":329.5},{"$f":"IF(ISERROR(Dados!Z75),\"-\",Dados!Z75)","v":7.8162336874051599},{"$f":"IF(ISERROR(Dados!AA75),\"-\",Dados!AA75)","v":"-"},{"$f":"IF(ISERROR(Dados!AB75),\"-\",Dados!AB75)","v":"-"},{"$f":"IF(ISERROR(Dados!AC75),\"-\",Dados!AC75)","v":"-"},{"$f":"IF(ISERROR(Dados!AD75),\"-\",Dados!AD75)","v":141.30000000000001},{"$f":"IF(ISERROR(Dados!AE75),\"-\",Dados!AE75)","v":0.98130358434046083},{"$f":"IF(ISERROR(Dados!AF75),\"-\",Dados!AF75)","v":"EEEL4"},{"$f":"IF(ISERROR(Dados!AG75),\"-\",Dados!AG75)","v":329.5}]
[{"$f":"IF(ISERROR(Dados!A76),\"-\",Dados!A76)","v":"LIPR3"},{"$f":"IF(ISERROR(Dados!B76),\"-\",Dados!B76)","v":"Energia Elétrica"},{"$f":"IF(ISERROR(Dados!C76),\"-\",Dados!C76)","v":"Eletropar"},{"$f":"IF(ISERROR(Dados!D76),\"-\",Dados!D76)","v":60},{"$f":"IF(ISERROR(Dados!E76),\"-\",Dados!E76)","v":11.763999999999999},{"$f":"IF(ISERROR(Dados!F76),\"-\",Dados!F76)","v":705.84},{"$f":"IF(ISERROR(Dados!G76),\"-\",Dados!G76)","v":187.43},{"$f":"IF(ISERROR(Dados!H76),\"-\",Dados!H76)","v":"-"},{"$f":"IF(ISERROR(Dados!I76),\"-\",Dados!I76)","v":"-"},{"$f":"IF(ISERROR(Dados!J76),\"-\",Dados!J76)","v":39.22},{"$f":"IF(ISERROR(Dados!K76),\"-\",Dados!K76)","v":-4.5599999999999996},{"$f":"IF(ISERROR(Dados!L76),\"-\",Dados!L76)","v":0.09},{"$f":"IF(ISERROR(Dados!M76),\"-\",Dados!M76)","v":7.32},{"$f":"IF(ISERROR(Dados!N76),\"-\",Dados!N76)","v":13.18},{"$f":"IF(ISERROR(Dados!O76),\"-\",Dados!O76)","v":39.22},{"$f":"IF(ISERROR(Dados!P76),\"-\",Dados!P76)","v":13.18},{"$f":"IF(ISERROR(Dados!Q76),\"-\",Dados!Q76)","v":1.1203672220333221},{"$f":"IF(ISERROR(Dados!R76),\"-\",Dados!R76)","v":15.932505950357022},{"$f":"IF(ISERROR(Dados!S76),\"-\",Dados!S76)","v":3.765885930747479},{"$f":"IF(ISERROR(Dados!T76),\"-\",Dados!T76)","v":53.553869499241273},{"$f":"IF(ISERROR(Dados!U76),\"-\",Dados!U76)","v":6.5540000000000001E-2},{"$f":"IF(ISERROR(Dados!V76),\"-\",Dados!V76)","v":-0.55870399999999998},{"$f":"IF(ISERROR(Dados!W76),\"-\",Dados!W76)","v":44.6},{"$f":"IF(ISERROR(Dados!X76),\"-\",Dados!X76)","v":9.1},{"$f":"IF(ISERROR(Dados!Y76),\"-\",Dados!Y76)","v":9.1},{"$f":"IF(ISERROR(Dados!Z76),\"-\",Dados!Z76)","v":66.057252747252761},{"$f":"IF(ISERROR(Dados!AA76),\"-\",Dados!AA76)","v":87.38},{"$f":"IF(ISERROR(Dados!AB76),\"-\",Dados!AB76)","v":0.12379576107899806},{"$f":"IF(ISERROR(Dados!AC76),\"-\",Dados!AC76)","v":"-"},{"$f":"IF(ISERROR(Dados!AD76),\"-\",Dados!AD76)","v":28.9},{"$f":"IF(ISERROR(Dados!AE76),\"-\",Dados!AE76)","v":"-"},{"$f":"IF(ISERROR(Dados!AF76),\"-\",Dados!AF76)","v":"LIPR3"},{"$f":"IF(ISERROR(Dados!AG76),\"-\",Dados!AG76)","v":9.1}]
[{"$f":"IF(ISERROR(Dados!A77),\"-\",Dados!A77)","v":"LIGT3"},{"$f":"IF(ISERROR(Dados!B77),\"-\",Dados!B77)","v":"Energia Elétrica"},{"$f":"IF(ISERROR(Dados!C77),\"-\",Dados!C77)","v":"Light S/A"},{"$f":"IF(ISERROR(Dados!D77),\"-\",Dados!D77)","v":20.55},{"$f":"IF(ISERROR(Dados!E77),\"-\",Dados!E77)","v":203.934},{"$f":"IF(ISERROR(Dados!F77),\"-\",Dados!F77)","v":4190.84},{"$f":"IF(ISERROR(Dados!G77),\"-\",Dados!G77)","v":3389.49},{"$f":"IF(ISERROR(Dados!H77),\"-\",Dados!H77)","v":11314.56},{"$f":"IF(ISERROR(Dados!I77),\"-\",Dados!I77)","v":11970.55},{"$f":"IF(ISERROR(Dados!J77),\"-\",Dados!J77)","v":124.22},{"$f":"IF(ISERROR(Dados!K77),\"-\",Dados!K77)","v":92.75},{"$f":"IF(ISERROR(Dados!L77),\"-\",Dados!L77)","v":67.3},{"$f":"IF(ISERROR(Dados!M77),\"-\",Dados!M77)","v":73.430000000000007},{"$f":"IF(ISERROR(Dados!N77),\"-\",Dados!N77)","v":165.78},{"$f":"IF(ISERROR(Dados!O77),\"-\",Dados!O77)","v":124.22},{"$f":"IF(ISERROR(Dados!P77),\"-\",Dados!P77)","v":165.78},{"$f":"IF(ISERROR(Dados!Q77),\"-\",Dados!Q77)","v":0.81291005913677961},{"$f":"IF(ISERROR(Dados!R77),\"-\",Dados!R77)","v":16.620524287269411},{"$f":"IF(ISERROR(Dados!S77),\"-\",Dados!S77)","v":1.2364230901994104},{"$f":"IF(ISERROR(Dados!T77),\"-\",Dados!T77)","v":25.279549402823019},{"$f":"IF(ISERROR(Dados!U77),\"-\",Dados!U77)","v":4.8297999999999994E-2},{"$f":"IF(ISERROR(Dados!V77),\"-\",Dados!V77)","v":2.4619089999999999},{"$f":"IF(ISERROR(Dados!W77),\"-\",Dados!W77)","v":1694.1},{"$f":"IF(ISERROR(Dados!X77),\"-\",Dados!X77)","v":1507.1},{"$f":"IF(ISERROR(Dados!Y77),\"-\",Dados!Y77)","v":1507.1},{"$f":"IF(ISERROR(Dados!Z77),\"-\",Dados!Z77)","v":8.317604007696902},{"$f":"IF(ISERROR(Dados!AA77),\"-\",Dados!AA77)","v":29.5},{"$f":"IF(ISERROR(Dados!AB77),\"-\",Dados!AB77)","v":7.0391616000610854E-3},{"$f":"IF(ISERROR(Dados!AC77),\"-\",Dados!AC77)","v":3.5},{"$f":"IF(ISERROR(Dados!AD77),\"-\",Dados!AD77)","v":24.1},{"$f":"IF(ISERROR(Dados!AE77),\"-\",Dados!AE77)","v":0.99983327939431388},{"$f":"IF(ISERROR(Dados!AF77),\"-\",Dados!AF77)","v":"LIGT3"},{"$f":"IF(ISERROR(Dados!AG77),\"-\",Dados!AG77)","v":1507.1}]
[{"$f":"IF(ISERROR(Dados!A78),\"-\",Dados!A78)","v":"CESP6"},{"$f":"IF(ISERROR(Dados!B78),\"-\",Dados!B78)","v":"Energia Elétrica"},{"$f":"IF(ISERROR(Dados!C78),\"-\",Dados!C78)","v":"Cesp"},{"$f":"IF(ISERROR(Dados!D78),\"-\",Dados!D78)","v":24.14},{"$f":"IF(ISERROR(Dados!E78),\"-\",Dados!E78)","v":327.50299999999999},{"$f":"IF(ISERROR(Dados!F78),\"-\",Dados!F78)","v":7715.17},{"$f":"IF(ISERROR(Dados!G78),\"-\",Dados!G78)","v":7102.07},{"$f":"IF(ISERROR(Dados!H78),\"-\",Dados!H78)","v":1476.62},{"$f":"IF(ISERROR(Dados!I78),\"-\",Dados!I78)","v":1634.11},{"$f":"IF(ISERROR(Dados!J78),\"-\",Dados!J78)","v":-168.53},{"$f":"IF(ISERROR(Dados!K78),\"-\",Dados!K78)","v":-3.73},{"$f":"IF(ISERROR(Dados!L78),\"-\",Dados!L78)","v":337.26},{"$f":"IF(ISERROR(Dados!M78),\"-\",Dados!M78)","v":235.18},{"$f":"IF(ISERROR(Dados!N78),\"-\",Dados!N78)","v":294.43},{"$f":"IF(ISERROR(Dados!O78),\"-\",Dados!O78)","v":-168.53},{"$f":"IF(ISERROR(Dados!P78),\"-\",Dados!P78)","v":294.43},{"$f":"IF(ISERROR(Dados!Q78),\"-\",Dados!Q78)","v":0.89901466551451448},{"$f":"IF(ISERROR(Dados!R78),\"-\",Dados!R78)","v":21.685511277759289},{"$f":"IF(ISERROR(Dados!S78),\"-\",Dados!S78)","v":1.1131856515072365},{"$f":"IF(ISERROR(Dados!T78),\"-\",Dados!T78)","v":26.851619807764152},{"$f":"IF(ISERROR(Dados!U78),\"-\",Dados!U78)","v":4.1384999999999998E-2},{"$f":"IF(ISERROR(Dados!V78),\"-\",Dados!V78)","v":-2.7492000000000003E-2},{"$f":"IF(ISERROR(Dados!W78),\"-\",Dados!W78)","v":197.3},{"$f":"IF(ISERROR(Dados!X78),\"-\",Dados!X78)","v":613.70000000000005},{"$f":"IF(ISERROR(Dados!Y78),\"-\",Dados!Y78)","v":613.70000000000005},{"$f":"IF(ISERROR(Dados!Z78),\"-\",Dados!Z78)","v":12.25341372005866},{"$f":"IF(ISERROR(Dados!AA78),\"-\",Dados!AA78)","v":25.57},{"$f":"IF(ISERROR(Dados!AB78),\"-\",Dados!AB78)","v":3.3142497184119081E-3},{"$f":"IF(ISERROR(Dados!AC78),\"-\",Dados!AC78)","v":0.2},{"$f":"IF(ISERROR(Dados!AD78),\"-\",Dados!AD78)","v":83.3},{"$f":"IF(ISERROR(Dados!AE78),\"-\",Dados!AE78)","v":0.33343206016433441},{"$f":"IF(ISERROR(Dados!AF78),\"-\",Dados!AF78)","v":"CESP6"},{"$f":"IF(ISERROR(Dados!AG78),\"-\",Dados!AG78)","v":613.70000000000005}]
[{"$f":"IF(ISERROR(Dados!A79),\"-\",Dados!A79)","v":"CPRE3"},{"$f":"IF(ISERROR(Dados!B79),\"-\",Dados!B79)","v":"Energia Elétrica"},{"$f":"IF(ISERROR(Dados!C79),\"-\",Dados!C79)","v":"CPFL Renovav"},{"$f":"IF(ISERROR(Dados!D79),\"-\",Dados!D79)","v":15.97},{"$f":"IF(ISERROR(Dados!E79),\"-\",Dados!E79)","v":521.32500000000005},{"$f":"IF(ISERROR(Dados!F79),\"-\",Dados!F79)","v":8325.5499999999993},{"$f":"IF(ISERROR(Dados!G79),\"-\",Dados!G79)","v":4147.79},{"$f":"IF(ISERROR(Dados!H79),\"-\",Dados!H79)","v":1959.08},{"$f":"IF(ISERROR(Dados!I79),\"-\",Dados!I79)","v":1936.32},{"$f":"IF(ISERROR(Dados!J79),\"-\",Dados!J79)","v":11.48},{"$f":"IF(ISERROR(Dados!K79),\"-\",Dados!K79)","v":-74.430000000000007},{"$f":"IF(ISERROR(Dados!L79),\"-\",Dados!L79)","v":-113.66},{"$f":"IF(ISERROR(Dados!M79),\"-\",Dados!M79)","v":5.0999999999999996},{"$f":"IF(ISERROR(Dados!N79),\"-\",Dados!N79)","v":109.26},{"$f":"IF(ISERROR(Dados!O79),\"-\",Dados!O79)","v":11.48},{"$f":"IF(ISERROR(Dados!P79),\"-\",Dados!P79)","v":109.26},{"$f":"IF(ISERROR(Dados!Q79),\"-\",Dados!Q79)","v":0.20958135520069054},{"$f":"IF(ISERROR(Dados!R79),\"-\",Dados!R79)","v":7.9562461036781267},{"$f":"IF(ISERROR(Dados!S79),\"-\",Dados!S79)","v":2.0072280057572831},{"$f":"IF(ISERROR(Dados!T79),\"-\",Dados!T79)","v":76.199526359143334},{"$f":"IF(ISERROR(Dados!U79),\"-\",Dados!U79)","v":2.8704E-2},{"$f":"IF(ISERROR(Dados!V79),\"-\",Dados!V79)","v":1.083755},{"$f":"IF(ISERROR(Dados!W79),\"-\",Dados!W79)","v":1221.5999999999999},{"$f":"IF(ISERROR(Dados!X79),\"-\",Dados!X79)","v":1208.8},{"$f":"IF(ISERROR(Dados!Y79),\"-\",Dados!Y79)","v":1208.8},{"$f":"IF(ISERROR(Dados!Z79),\"-\",Dados!Z79)","v":10.698856717405691},{"$f":"IF(ISERROR(Dados!AA79),\"-\",Dados!AA79)","v":3.62},{"$f":"IF(ISERROR(Dados!AB79),\"-\",Dados!AB79)","v":4.3480610890571798E-4},{"$f":"IF(ISERROR(Dados!AC79),\"-\",Dados!AC79)","v":1.7},{"$f":"IF(ISERROR(Dados!AD79),\"-\",Dados!AD79)","v":19.7},{"$f":"IF(ISERROR(Dados!AE79),\"-\",Dados!AE79)","v":0.96638373375533493},{"$f":"IF(ISERROR(Dados!AF79),\"-\",Dados!AF79)","v":"CPRE3"},{"$f":"IF(ISERROR(Dados!AG79),\"-\",Dados!AG79)","v":1208.8}]
[{"$f":"IF(ISERROR(Dados!A80),\"-\",Dados!A80)","v":"RNEW11"},{"$f":"IF(ISERROR(Dados!B80),\"-\",Dados!B80)","v":"Energia Elétrica"},{"$f":"IF(ISERROR(Dados!C80),\"-\",Dados!C80)","v":"Renova"},{"$f":"IF(ISERROR(Dados!D80),\"-\",Dados!D80)","v":33.630000000000003},{"$f":"IF(ISERROR(Dados!E80),\"-\",Dados!E80)","v":41.72},{"$f":"IF(ISERROR(Dados!F80),\"-\",Dados!F80)","v":470.3},{"$f":"IF(ISERROR(Dados!G80),\"-\",Dados!G80)","v":-76.489999999999995},{"$f":"IF(ISERROR(Dados!H80),\"-\",Dados!H80)","v":734.1},{"$f":"IF(ISERROR(Dados!I80),\"-\",Dados!I80)","v":709.8},{"$f":"IF(ISERROR(Dados!J80),\"-\",Dados!J80)","v":-1139.54},{"$f":"IF(ISERROR(Dados!K80),\"-\",Dados!K80)","v":-120.54},{"$f":"IF(ISERROR(Dados!L80),\"-\",Dados!L80)","v":-245.69},{"$f":"IF(ISERROR(Dados!M80),\"-\",Dados!M80)","v":-486.96},{"$f":"IF(ISERROR(Dados!N80),\"-\",Dados!N80)","v":-856.3},{"$f":"IF(ISERROR(Dados!O80),\"-\",Dados!O80)","v":-1139.54},{"$f":"IF(ISERROR(Dados!P80),\"-\",Dados!P80)","v":-856.3},{"$f":"IF(ISERROR(Dados!Q80),\"-\",Dados!Q80)","v":-20.524928092042185},{"$f":"IF(ISERROR(Dados!R80),\"-\",Dados!R80)","v":"-"},{"$f":"IF(ISERROR(Dados!S80),\"-\",Dados!S80)","v":"-"},{"$f":"IF(ISERROR(Dados!T80),\"-\",Dados!T80)","v":"-"},{"$f":"IF(ISERROR(Dados!U80),\"-\",Dados!U80)","v":-1.098087},{"$f":"IF(ISERROR(Dados!V80),\"-\",Dados!V80)","v":-5.0144330000000004},{"$f":"IF(ISERROR(Dados!W80),\"-\",Dados!W80)","v":-776.1},{"$f":"IF(ISERROR(Dados!X80),\"-\",Dados!X80)","v":-522.70000000000005},{"$f":"IF(ISERROR(Dados!Y80),\"-\",Dados!Y80)","v":-522.70000000000005},{"$f":"IF(ISERROR(Dados!Z80),\"-\",Dados!Z80)","v":-1.6335354888081115},{"$f":"IF(ISERROR(Dados!AA80),\"-\",Dados!AA80)","v":"-"},{"$f":"IF(ISERROR(Dados!AB80),\"-\",Dados!AB80)","v":"-"},{"$f":"IF(ISERROR(Dados!AC80),\"-\",Dados!AC80)","v":90.1},{"$f":"IF(ISERROR(Dados!AD80),\"-\",Dados!AD80)","v":-44.5},{"$f":"IF(ISERROR(Dados!AE80),\"-\",Dados!AE80)","v":0.79098753595397897},{"$f":"IF(ISERROR(Dados!AF80),\"-\",Dados!AF80)","v":"RNEW11"},{"$f":"IF(ISERROR(Dados!AG80),\"-\",Dados!AG80)","v":-522.70000000000005}]
[{"$f":"IF(ISERROR(Dados!A81),\"-\",Dados!A81)","v":"WIZS3"},{"$f":"IF(ISERROR(Dados!B81),\"-\",Dados!B81)","v":"Finanças e Seguros"},{"$f":"IF(ISERROR(Dados!C81),\"-\",Dados!C81)","v":"Wiz S.A"},{"$f":"IF(ISERROR(Dados!D81),\"-\",Dados!D81)","v":8.5},{"$f":"IF(ISERROR(Dados!E81),\"-\",Dados!E81)","v":159.90700000000001},{"$f":"IF(ISERROR(Dados!F81),\"-\",Dados!F81)","v":1359.21},{"$f":"IF(ISERROR(Dados!G81),\"-\",Dados!G81)","v":168.97},{"$f":"IF(ISERROR(Dados!H81),\"-\",Dados!H81)","v":529.73},{"$f":"IF(ISERROR(Dados!I81),\"-\",Dados!I81)","v":585.01},{"$f":"IF(ISERROR(Dados!J81),\"-\",Dados!J81)","v":159.41},{"$f":"IF(ISERROR(Dados!K81),\"-\",Dados!K81)","v":30.57},{"$f":"IF(ISERROR(Dados!L81),\"-\",Dados!L81)","v":77.989999999999995},{"$f":"IF(ISERROR(Dados!M81),\"-\",Dados!M81)","v":129.15},{"$f":"IF(ISERROR(Dados!N81),\"-\",Dados!N81)","v":177.73},{"$f":"IF(ISERROR(Dados!O81),\"-\",Dados!O81)","v":159.41},{"$f":"IF(ISERROR(Dados!P81),\"-\",Dados!P81)","v":177.73},{"$f":"IF(ISERROR(Dados!Q81),\"-\",Dados!Q81)","v":1.1114585352736277},{"$f":"IF(ISERROR(Dados!R81),\"-\",Dados!R81)","v":1.0566766933279967},{"$f":"IF(ISERROR(Dados!S81),\"-\",Dados!S81)","v":8.0440877078771393},{"$f":"IF(ISERROR(Dados!T81),\"-\",Dados!T81)","v":7.6476087323468187},{"$f":"IF(ISERROR(Dados!U81),\"-\",Dados!U81)","v":1.1035410000000001},{"$f":"IF(ISERROR(Dados!V81),\"-\",Dados!V81)","v":-0.29978899999999997},{"$f":"IF(ISERROR(Dados!W81),\"-\",Dados!W81)","v":268},{"$f":"IF(ISERROR(Dados!X81),\"-\",Dados!X81)","v":"-"},{"$f":"IF(ISERROR(Dados!Y81),\"-\",Dados!Y81)","v":"-"},{"$f":"IF(ISERROR(Dados!Z81),\"-\",Dados!Z81)","v":"-"},{"$f":"IF(ISERROR(Dados!AA81),\"-\",Dados!AA81)","v":"-"},{"$f":"IF(ISERROR(Dados!AB81),\"-\",Dados!AB81)","v":"-"},{"$f":"IF(ISERROR(Dados!AC81),\"-\",Dados!AC81)","v":-5.5},{"$f":"IF(ISERROR(Dados!AD81),\"-\",Dados!AD81)","v":-23.9},{"$f":"IF(ISERROR(Dados!AE81),\"-\",Dados!AE81)","v":0.99995622455552291},{"$f":"IF(ISERROR(Dados!AF81),\"-\",Dados!AF81)","v":"WIZS3"},{"$f":"IF(ISERROR(Dados!AG81),\"-\",Dados!AG81)","v":"-"}]
[{"$f":"IF(ISERROR(Dados!A82),\"-\",Dados!A82)","v":"TRPN3"},{"$f":"IF(ISERROR(Dados!B82),\"-\",Dados!B82)","v":"Finanças e Seguros"},{"$f":"IF(ISERROR(Dados!C82),\"-\",Dados!C82)","v":"Tarpon Inv"},{"$f":"IF(ISERROR(Dados!D82),\"-\",Dados!D82)","v":1.0900000000000001},{"$f":"IF(ISERROR(Dados!E82),\"-\",Dados!E82)","v":45.143000000000001},{"$f":"IF(ISERROR(Dados!F82),\"-\",Dados!F82)","v":49.21},{"$f":"IF(ISERROR(Dados!G82),\"-\",Dados!G82)","v":58.62},{"$f":"IF(ISERROR(Dados!H82),\"-\",Dados!H82)","v":47.09},{"$f":"IF(ISERROR(Dados!I82),\"-\",Dados!I82)","v":126.51},{"$f":"IF(ISERROR(Dados!J82),\"-\",Dados!J82)","v":9.43},{"$f":"IF(ISERROR(Dados!K82),\"-\",Dados!K82)","v":-3.55},{"$f":"IF(ISERROR(Dados!L82),\"-\",Dados!L82)","v":0.31},{"$f":"IF(ISERROR(Dados!M82),\"-\",Dados!M82)","v":1.75},{"$f":"IF(ISERROR(Dados!N82),\"-\",Dados!N82)","v":56.18},{"$f":"IF(ISERROR(Dados!O82),\"-\",Dados!O82)","v":9.43},{"$f":"IF(ISERROR(Dados!P82),\"-\",Dados!P82)","v":56.18},{"$f":"IF(ISERROR(Dados!Q82),\"-\",Dados!Q82)","v":1.2444897326274285},{"$f":"IF(ISERROR(Dados!R82),\"-\",Dados!R82)","v":1.2985401944930552},{"$f":"IF(ISERROR(Dados!S82),\"-\",Dados!S82)","v":0.83940412828386235},{"$f":"IF(ISERROR(Dados!T82),\"-\",Dados!T82)","v":0.87586098255606981},{"$f":"IF(ISERROR(Dados!U82),\"-\",Dados!U82)","v":1.06446},{"$f":"IF(ISERROR(Dados!V82),\"-\",Dados!V82)","v":-1.72323},{"$f":"IF(ISERROR(Dados!W82),\"-\",Dados!W82)","v":14.4},{"$f":"IF(ISERROR(Dados!X82),\"-\",Dados!X82)","v":81.900000000000006},{"$f":"IF(ISERROR(Dados!Y82),\"-\",Dados!Y82)","v":81.900000000000006},{"$f":"IF(ISERROR(Dados!Z82),\"-\",Dados!Z82)","v":-0.63252747252747243},{"$f":"IF(ISERROR(Dados!AA82),\"-\",Dados!AA82)","v":34.33},{"$f":"IF(ISERROR(Dados!AB82),\"-\",Dados!AB82)","v":0.69762243446453964},{"$f":"IF(ISERROR(Dados!AC82),\"-\",Dados!AC82)","v":-2.7},{"$f":"IF(ISERROR(Dados!AD82),\"-\",Dados!AD82)","v":-24.2},{"$f":"IF(ISERROR(Dados!AE82),\"-\",Dados!AE82)","v":"-"},{"$f":"IF(ISERROR(Dados!AF82),\"-\",Dados!AF82)","v":"TRPN3"},{"$f":"IF(ISERROR(Dados!AG82),\"-\",Dados!AG82)","v":81.900000000000006}]
[{"$f":"IF(ISERROR(Dados!A83),\"-\",Dados!A83)","v":"BBSE3"},{"$f":"IF(ISERROR(Dados!B83),\"-\",Dados!B83)","v":"Finanças e Seguros"},{"$f":"IF(ISERROR(Dados!C83),\"-\",Dados!C83)","v":"BBSeguridade"},{"$f":"IF(ISERROR(Dados!D83),\"-\",Dados!D83)","v":26.52},{"$f":"IF(ISERROR(Dados!E83),\"-\",Dados!E83)","v":1996.597},{"$f":"IF(ISERROR(Dados!F83),\"-\",Dados!F83)","v":52949.75},{"$f":"IF(ISERROR(Dados!G83),\"-\",Dados!G83)","v":6830.39},{"$f":"IF(ISERROR(Dados!H83),\"-\",Dados!H83)","v":"-"},{"$f":"IF(ISERROR(Dados!I83),\"-\",Dados!I83)","v":"-"},{"$f":"IF(ISERROR(Dados!J83),\"-\",Dados!J83)","v":4049.25},{"$f":"IF(ISERROR(Dados!K83),\"-\",Dados!K83)","v":886.5},{"$f":"IF(ISERROR(Dados!L83),\"-\",Dados!L83)","v":1948.89},{"$f":"IF(ISERROR(Dados!M83),\"-\",Dados!M83)","v":2822.67},{"$f":"IF(ISERROR(Dados!N83),\"-\",Dados!N83)","v":3539.55},{"$f":"IF(ISERROR(Dados!O83),\"-\",Dados!O83)","v":4049.25},{"$f":"IF(ISERROR(Dados!P83),\"-\",Dados!P83)","v":3539.55},{"$f":"IF(ISERROR(Dados!Q83),\"-\",Dados!Q83)","v":1.7727914045748843},{"$f":"IF(ISERROR(Dados!R83),\"-\",Dados!R83)","v":3.4210158584832095},{"$f":"IF(ISERROR(Dados!S83),\"-\",Dados!S83)","v":7.7520833275991547},{"$f":"IF(ISERROR(Dados!T83),\"-\",Dados!T83)","v":14.959458812560918},{"$f":"IF(ISERROR(Dados!U83),\"-\",Dados!U83)","v":0.39777099999999999},{"$f":"IF(ISERROR(Dados!V83),\"-\",Dados!V83)","v":"-"},{"$f":"IF(ISERROR(Dados!W83),\"-\",Dados!W83)","v":"-"},{"$f":"IF(ISERROR(Dados!X83),\"-\",Dados!X83)","v":"-"},{"$f":"IF(ISERROR(Dados!Y83),\"-\",Dados!Y83)","v":"-"},{"$f":"IF(ISERROR(Dados!Z83),\"-\",Dados!Z83)","v":"-"},{"$f":"IF(ISERROR(Dados!AA83),\"-\",Dados!AA83)","v":3485.56},{"$f":"IF(ISERROR(Dados!AB83),\"-\",Dados!AB83)","v":6.582769512603931E-2},{"$f":"IF(ISERROR(Dados!AC83),\"-\",Dados!AC83)","v":-2.9},{"$f":"IF(ISERROR(Dados!AD83),\"-\",Dados!AD83)","v":6.8},{"$f":"IF(ISERROR(Dados!AE83),\"-\",Dados!AE83)","v":"-"},{"$f":"IF(ISERROR(Dados!AF83),\"-\",Dados!AF83)","v":"BBSE3"},{"$f":"IF(ISERROR(Dados!AG83),\"-\",Dados!AG83)","v":"-"}]
[{"$f":"IF(ISERROR(Dados!A84),\"-\",Dados!A84)","v":"IRBR3"},{"$f":"IF(ISERROR(Dados!B84),\"-\",Dados!B84)","v":"Finanças e Seguros"},{"$f":"IF(ISERROR(Dados!C84),\"-\",Dados!C84)","v":"Irbbrasil Re"},{"$f":"IF(ISERROR(Dados!D84),\"-\",Dados!D84)","v":91.25},{"$f":"IF(ISERROR(Dados!E84),\"-\",Dados!E84)","v":310.41500000000002},{"$f":"IF(ISERROR(Dados!F84),\"-\",Dados!F84)","v":28325.41},{"$f":"IF(ISERROR(Dados!G84),\"-\",Dados!G84)","v":4000.78},{"$f":"IF(ISERROR(Dados!H84),\"-\",Dados!H84)","v":"-"},{"$f":"IF(ISERROR(Dados!I84),\"-\",Dados!I84)","v":"-"},{"$f":"IF(ISERROR(Dados!J84),\"-\",Dados!J84)","v":925.05},{"$f":"IF(ISERROR(Dados!K84),\"-\",Dados!K84)","v":254.01},{"$f":"IF(ISERROR(Dados!L84),\"-\",Dados!L84)","v":541.34},{"$f":"IF(ISERROR(Dados!M84),\"-\",Dados!M84)","v":845.86},{"$f":"IF(ISERROR(Dados!N84),\"-\",Dados!N84)","v":1218.8},{"$f":"IF(ISERROR(Dados!O84),\"-\",Dados!O84)","v":925.05},{"$f":"IF(ISERROR(Dados!P84),\"-\",Dados!P84)","v":1218.8},{"$f":"IF(ISERROR(Dados!Q84),\"-\",Dados!Q84)","v":3.9263566515793369},{"$f":"IF(ISERROR(Dados!R84),\"-\",Dados!R84)","v":12.888487991881835},{"$f":"IF(ISERROR(Dados!S84),\"-\",Dados!S84)","v":7.0799615949889771},{"$f":"IF(ISERROR(Dados!T84),\"-\",Dados!T84)","v":23.240374753856255},{"$f":"IF(ISERROR(Dados!U84),\"-\",Dados!U84)","v":0.340333},{"$f":"IF(ISERROR(Dados!V84),\"-\",Dados!V84)","v":"-"},{"$f":"IF(ISERROR(Dados!W84),\"-\",Dados!W84)","v":"-"},{"$f":"IF(ISERROR(Dados!X84),\"-\",Dados!X84)","v":"-"},{"$f":"IF(ISERROR(Dados!Y84),\"-\",Dados!Y84)","v":"-"},{"$f":"IF(ISERROR(Dados!Z84),\"-\",Dados!Z84)","v":"-"},{"$f":"IF(ISERROR(Dados!AA84),\"-\",Dados!AA84)","v":684.26},{"$f":"IF(ISERROR(Dados!AB84),\"-\",Dados!AB84)","v":2.4157108405491748E-2},{"$f":"IF(ISERROR(Dados!AC84),\"-\",Dados!AC84)","v":5.2},{"$f":"IF(ISERROR(Dados!AD84),\"-\",Dados!AD84)","v":189},{"$f":"IF(ISERROR(Dados!AE84),\"-\",Dados!AE84)","v":"-"},{"$f":"IF(ISERROR(Dados!AF84),\"-\",Dados!AF84)","v":"IRBR3"},{"$f":"IF(ISERROR(Dados!AG84),\"-\",Dados!AG84)","v":"-"}]
[{"$f":"IF(ISERROR(Dados!A85),\"-\",Dados!A85)","v":"SANB11"},{"$f":"IF(ISERROR(Dados!B85),\"-\",Dados!B85)","v":"Finanças e Seguros"},{"$f":"IF(ISERROR(Dados!C85),\"-\",Dados!C85)","v":"Santander BR"},{"$f":"IF(ISERROR(Dados!D85),\"-\",Dados!D85)","v":43.97},{"$f":"IF(ISERROR(Dados!E85),\"-\",Dados!E85)","v":7471.8969999999999},{"$f":"IF(ISERROR(Dados!F85),\"-\",Dados!F85)","v":163053.46},{"$f":"IF(ISERROR(Dados!G85),\"-\",Dados!G85)","v":65233.74},{"$f":"IF(ISERROR(Dados!H85),\"-\",Dados!H85)","v":76310.78},{"$f":"IF(ISERROR(Dados!I85),\"-\",Dados!I85)","v":77380.98},{"$f":"IF(ISERROR(Dados!J85),\"-\",Dados!J85)","v":7996.58},{"$f":"IF(ISERROR(Dados!K85),\"-\",Dados!K85)","v":2819.73},{"$f":"IF(ISERROR(Dados!L85),\"-\",Dados!L85)","v":5791.95},{"$f":"IF(ISERROR(Dados!M85),\"-\",Dados!M85)","v":8830.6299999999992},{"$f":"IF(ISERROR(Dados!N85),\"-\",Dados!N85)","v":12166.15},{"$f":"IF(ISERROR(Dados!O85),\"-\",Dados!O85)","v":7996.58},{"$f":"IF(ISERROR(Dados!P85),\"-\",Dados!P85)","v":12166.15},{"$f":"IF(ISERROR(Dados!Q85),\"-\",Dados!Q85)","v":1.6282545115383684},{"$f":"IF(ISERROR(Dados!R85),\"-\",Dados!R85)","v":8.7305459376648251},{"$f":"IF(ISERROR(Dados!S85),\"-\",Dados!S85)","v":5.0363402602702223},{"$f":"IF(ISERROR(Dados!T85),\"-\",Dados!T85)","v":27.004377809742603},{"$f":"IF(ISERROR(Dados!U85),\"-\",Dados!U85)","v":0.198157},{"$f":"IF(ISERROR(Dados!V85),\"-\",Dados!V85)","v":"-"},{"$f":"IF(ISERROR(Dados!W85),\"-\",Dados!W85)","v":"-"},{"$f":"IF(ISERROR(Dados!X85),\"-\",Dados!X85)","v":"-"},{"$f":"IF(ISERROR(Dados!Y85),\"-\",Dados!Y85)","v":"-"},{"$f":"IF(ISERROR(Dados!Z85),\"-\",Dados!Z85)","v":"-"},{"$f":"IF(ISERROR(Dados!AA85),\"-\",Dados!AA85)","v":6042.34},{"$f":"IF(ISERROR(Dados!AB85),\"-\",Dados!AB85)","v":3.7057416628877425E-2},{"$f":"IF(ISERROR(Dados!AC85),\"-\",Dados!AC85)","v":-2.2000000000000002},{"$f":"IF(ISERROR(Dados!AD85),\"-\",Dados!AD85)","v":49.4},{"$f":"IF(ISERROR(Dados!AE85),\"-\",Dados!AE85)","v":0.51107503221738737},{"$f":"IF(ISERROR(Dados!AF85),\"-\",Dados!AF85)","v":"SANB11"},{"$f":"IF(ISERROR(Dados!AG85),\"-\",Dados!AG85)","v":"-"}]
[{"$f":"IF(ISERROR(Dados!A86),\"-\",Dados!A86)","v":"ITUB4"},{"$f":"IF(ISERROR(Dados!B86),\"-\",Dados!B86)","v":"Finanças e Seguros"},{"$f":"IF(ISERROR(Dados!C86),\"-\",Dados!C86)","v":"ItauUnibanco"},{"$f":"IF(ISERROR(Dados!D86),\"-\",Dados!D86)","v":34.43},{"$f":"IF(ISERROR(Dados!E86),\"-\",Dados!E86)","v":9720.5210000000006},{"$f":"IF(ISERROR(Dados!F86),\"-\",Dados!F86)","v":311968.57},{"$f":"IF(ISERROR(Dados!G86),\"-\",Dados!G86)","v":131756.57},{"$f":"IF(ISERROR(Dados!H86),\"-\",Dados!H86)","v":147494.99},{"$f":"IF(ISERROR(Dados!I86),\"-\",Dados!I86)","v":141582.10999999999},{"$f":"IF(ISERROR(Dados!J86),\"-\",Dados!J86)","v":23964.55},{"$f":"IF(ISERROR(Dados!K86),\"-\",Dados!K86)","v":6280.32},{"$f":"IF(ISERROR(Dados!L86),\"-\",Dados!L86)","v":12524.41},{"$f":"IF(ISERROR(Dados!M86),\"-\",Dados!M86)","v":18771.57},{"$f":"IF(ISERROR(Dados!N86),\"-\",Dados!N86)","v":24977.42},{"$f":"IF(ISERROR(Dados!O86),\"-\",Dados!O86)","v":23964.55},{"$f":"IF(ISERROR(Dados!P86),\"-\",Dados!P86)","v":24977.42},{"$f":"IF(ISERROR(Dados!Q86),\"-\",Dados!Q86)","v":2.5695556853382651},{"$f":"IF(ISERROR(Dados!R86),\"-\",Dados!R86)","v":13.554476143819864},{"$f":"IF(ISERROR(Dados!S86),\"-\",Dados!S86)","v":2.5401202993520551},{"$f":"IF(ISERROR(Dados!T86),\"-\",Dados!T86)","v":13.399203681965552},{"$f":"IF(ISERROR(Dados!U86),\"-\",Dados!U86)","v":0.18209},{"$f":"IF(ISERROR(Dados!V86),\"-\",Dados!V86)","v":"-"},{"$f":"IF(ISERROR(Dados!W86),\"-\",Dados!W86)","v":"-"},{"$f":"IF(ISERROR(Dados!X86),\"-\",Dados!X86)","v":"-"},{"$f":"IF(ISERROR(Dados!Y86),\"-\",Dados!Y86)","v":"-"},{"$f":"IF(ISERROR(Dados!Z86),\"-\",Dados!Z86)","v":"-"},{"$f":"IF(ISERROR(Dados!AA86),\"-\",Dados!AA86)","v":20092.75},{"$f":"IF(ISERROR(Dados!AB86),\"-\",Dados!AB86)","v":6.4406327855399015E-2},{"$f":"IF(ISERROR(Dados!AC86),\"-\",Dados!AC86)","v":-2.2000000000000002},{"$f":"IF(ISERROR(Dados!AD86),\"-\",Dados!AD86)","v":36.1},{"$f":"IF(ISERROR(Dados!AE86),\"-\",Dados!AE86)","v":0.51008582770409117},{"$f":"IF(ISERROR(Dados!AF86),\"-\",Dados!AF86)","v":"ITUB4"},{"$f":"IF(ISERROR(Dados!AG86),\"-\",Dados!AG86)","v":"-"}]
[{"$f":"IF(ISERROR(Dados!A87),\"-\",Dados!A87)","v":"BBDC4"},{"$f":"IF(ISERROR(Dados!B87),\"-\",Dados!B87)","v":"Finanças e Seguros"},{"$f":"IF(ISERROR(Dados!C87),\"-\",Dados!C87)","v":"Bradesco"},{"$f":"IF(ISERROR(Dados!D87),\"-\",Dados!D87)","v":42.94},{"$f":"IF(ISERROR(Dados!E87),\"-\",Dados!E87)","v":6693.5810000000001},{"$f":"IF(ISERROR(Dados!F87),\"-\",Dados!F87)","v":270348.51},{"$f":"IF(ISERROR(Dados!G87),\"-\",Dados!G87)","v":121120.87},{"$f":"IF(ISERROR(Dados!H87),\"-\",Dados!H87)","v":148262.13},{"$f":"IF(ISERROR(Dados!I87),\"-\",Dados!I87)","v":125611.76},{"$f":"IF(ISERROR(Dados!J87),\"-\",Dados!J87)","v":14657.76},{"$f":"IF(ISERROR(Dados!K87),\"-\",Dados!K87)","v":4466.72},{"$f":"IF(ISERROR(Dados!L87),\"-\",Dados!L87)","v":8994.51},{"$f":"IF(ISERROR(Dados!M87),\"-\",Dados!M87)","v":14004.19},{"$f":"IF(ISERROR(Dados!N87),\"-\",Dados!N87)","v":19084.95},{"$f":"IF(ISERROR(Dados!O87),\"-\",Dados!O87)","v":14657.76},{"$f":"IF(ISERROR(Dados!P87),\"-\",Dados!P87)","v":19084.95},{"$f":"IF(ISERROR(Dados!Q87),\"-\",Dados!Q87)","v":2.8512316501436228},{"$f":"IF(ISERROR(Dados!R87),\"-\",Dados!R87)","v":18.095077956029812},{"$f":"IF(ISERROR(Dados!S87),\"-\",Dados!S87)","v":2.3730210007573427},{"$f":"IF(ISERROR(Dados!T87),\"-\",Dados!T87)","v":15.060158299602564},{"$f":"IF(ISERROR(Dados!U87),\"-\",Dados!U87)","v":0.17338899999999999},{"$f":"IF(ISERROR(Dados!V87),\"-\",Dados!V87)","v":"-"},{"$f":"IF(ISERROR(Dados!W87),\"-\",Dados!W87)","v":"-"},{"$f":"IF(ISERROR(Dados!X87),\"-\",Dados!X87)","v":"-"},{"$f":"IF(ISERROR(Dados!Y87),\"-\",Dados!Y87)","v":"-"},{"$f":"IF(ISERROR(Dados!Z87),\"-\",Dados!Z87)","v":"-"},{"$f":"IF(ISERROR(Dados!AA87),\"-\",Dados!AA87)","v":6483.2},{"$f":"IF(ISERROR(Dados!AB87),\"-\",Dados!AB87)","v":2.398089784182646E-2},{"$f":"IF(ISERROR(Dados!AC87),\"-\",Dados!AC87)","v":-0.7},{"$f":"IF(ISERROR(Dados!AD87),\"-\",Dados!AD87)","v":44.5},{"$f":"IF(ISERROR(Dados!AE87),\"-\",Dados!AE87)","v":0.50195851816837656},{"$f":"IF(ISERROR(Dados!AF87),\"-\",Dados!AF87)","v":"BBDC4"},{"$f":"IF(ISERROR(Dados!AG87),\"-\",Dados!AG87)","v":"-"}]
[{"$f":"IF(ISERROR(Dados!A88),\"-\",Dados!A88)","v":"PSSA3"},{"$f":"IF(ISERROR(Dados!B88),\"-\",Dados!B88)","v":"Finanças e Seguros"},{"$f":"IF(ISERROR(Dados!C88),\"-\",Dados!C88)","v":"Porto Seguro"},{"$f":"IF(ISERROR(Dados!D88),\"-\",Dados!D88)","v":53.83},{"$f":"IF(ISERROR(Dados!E88),\"-\",Dados!E88)","v":323.29300000000001},{"$f":"IF(ISERROR(Dados!F88),\"-\",Dados!F88)","v":17402.86},{"$f":"IF(ISERROR(Dados!G88),\"-\",Dados!G88)","v":7643.24},{"$f":"IF(ISERROR(Dados!H88),\"-\",Dados!H88)","v":16894.099999999999},{"$f":"IF(ISERROR(Dados!I88),\"-\",Dados!I88)","v":17821.96},{"$f":"IF(ISERROR(Dados!J88),\"-\",Dados!J88)","v":1100.8699999999999},{"$f":"IF(ISERROR(Dados!K88),\"-\",Dados!K88)","v":276.12},{"$f":"IF(ISERROR(Dados!L88),\"-\",Dados!L88)","v":609.21},{"$f":"IF(ISERROR(Dados!M88),\"-\",Dados!M88)","v":925.57},{"$f":"IF(ISERROR(Dados!N88),\"-\",Dados!N88)","v":1310.6199999999999},{"$f":"IF(ISERROR(Dados!O88),\"-\",Dados!O88)","v":1100.8699999999999},{"$f":"IF(ISERROR(Dados!P88),\"-\",Dados!P88)","v":1310.6199999999999},{"$f":"IF(ISERROR(Dados!Q88),\"-\",Dados!Q88)","v":4.0539696188906031},{"$f":"IF(ISERROR(Dados!R88),\"-\",Dados!R88)","v":23.64183573414828},{"$f":"IF(ISERROR(Dados!S88),\"-\",Dados!S88)","v":2.2768959485767817},{"$f":"IF(ISERROR(Dados!T88),\"-\",Dados!T88)","v":13.278343219239751},{"$f":"IF(ISERROR(Dados!U88),\"-\",Dados!U88)","v":0.16969400000000001},{"$f":"IF(ISERROR(Dados!V88),\"-\",Dados!V88)","v":-1.414477},{"$f":"IF(ISERROR(Dados!W88),\"-\",Dados!W88)","v":628.29999999999995},{"$f":"IF(ISERROR(Dados!X88),\"-\",Dados!X88)","v":1493.1},{"$f":"IF(ISERROR(Dados!Y88),\"-\",Dados!Y88)","v":1493.1},{"$f":"IF(ISERROR(Dados!Z88),\"-\",Dados!Z88)","v":4.4142984394883138},{"$f":"IF(ISERROR(Dados!AA88),\"-\",Dados!AA88)","v":1240.3499999999999},{"$f":"IF(ISERROR(Dados!AB88),\"-\",Dados!AB88)","v":7.1272767809429011E-2},{"$f":"IF(ISERROR(Dados!AC88),\"-\",Dados!AC88)","v":-3.9},{"$f":"IF(ISERROR(Dados!AD88),\"-\",Dados!AD88)","v":61.5},{"$f":"IF(ISERROR(Dados!AE88),\"-\",Dados!AE88)","v":"-"},{"$f":"IF(ISERROR(Dados!AF88),\"-\",Dados!AF88)","v":"PSSA3"},{"$f":"IF(ISERROR(Dados!AG88),\"-\",Dados!AG88)","v":1493.1}]
[{"$f":"IF(ISERROR(Dados!A89),\"-\",Dados!A89)","v":"SULA11"},{"$f":"IF(ISERROR(Dados!B89),\"-\",Dados!B89)","v":"Finanças e Seguros"},{"$f":"IF(ISERROR(Dados!C89),\"-\",Dados!C89)","v":"Sul America"},{"$f":"IF(ISERROR(Dados!D89),\"-\",Dados!D89)","v":29.8},{"$f":"IF(ISERROR(Dados!E89),\"-\",Dados!E89)","v":1160.731},{"$f":"IF(ISERROR(Dados!F89),\"-\",Dados!F89)","v":12069.68},{"$f":"IF(ISERROR(Dados!G89),\"-\",Dados!G89)","v":6286.11},{"$f":"IF(ISERROR(Dados!H89),\"-\",Dados!H89)","v":17762.2},{"$f":"IF(ISERROR(Dados!I89),\"-\",Dados!I89)","v":19831.21},{"$f":"IF(ISERROR(Dados!J89),\"-\",Dados!J89)","v":773.25},{"$f":"IF(ISERROR(Dados!K89),\"-\",Dados!K89)","v":141.41999999999999},{"$f":"IF(ISERROR(Dados!L89),\"-\",Dados!L89)","v":276.81},{"$f":"IF(ISERROR(Dados!M89),\"-\",Dados!M89)","v":511.38},{"$f":"IF(ISERROR(Dados!N89),\"-\",Dados!N89)","v":904.96},{"$f":"IF(ISERROR(Dados!O89),\"-\",Dados!O89)","v":773.25},{"$f":"IF(ISERROR(Dados!P89),\"-\",Dados!P89)","v":904.96},{"$f":"IF(ISERROR(Dados!Q89),\"-\",Dados!Q89)","v":0.77964661924252909},{"$f":"IF(ISERROR(Dados!R89),\"-\",Dados!R89)","v":5.4156475531367727},{"$f":"IF(ISERROR(Dados!S89),\"-\",Dados!S89)","v":5.5025737379714963},{"$f":"IF(ISERROR(Dados!T89),\"-\",Dados!T89)","v":38.222444969943425},{"$f":"IF(ISERROR(Dados!U89),\"-\",Dados!U89)","v":0.16045999999999999},{"$f":"IF(ISERROR(Dados!V89),\"-\",Dados!V89)","v":-2.247357},{"$f":"IF(ISERROR(Dados!W89),\"-\",Dados!W89)","v":491.4},{"$f":"IF(ISERROR(Dados!X89),\"-\",Dados!X89)","v":814.5},{"$f":"IF(ISERROR(Dados!Y89),\"-\",Dados!Y89)","v":814.5},{"$f":"IF(ISERROR(Dados!Z89),\"-\",Dados!Z89)","v":-2.5299054634745244},{"$f":"IF(ISERROR(Dados!AA89),\"-\",Dados!AA89)","v":184.92},{"$f":"IF(ISERROR(Dados!AB89),\"-\",Dados!AB89)","v":1.5321035851820429E-2},{"$f":"IF(ISERROR(Dados!AC89),\"-\",Dados!AC89)","v":-1.3},{"$f":"IF(ISERROR(Dados!AD89),\"-\",Dados!AD89)","v":67.7},{"$f":"IF(ISERROR(Dados!AE89),\"-\",Dados!AE89)","v":0.51062649313234509},{"$f":"IF(ISERROR(Dados!AF89),\"-\",Dados!AF89)","v":"SULA11"},{"$f":"IF(ISERROR(Dados!AG89),\"-\",Dados!AG89)","v":814.5}]
[{"$f":"IF(ISERROR(Dados!A90),\"-\",Dados!A90)","v":"BRSR6"},{"$f":"IF(ISERROR(Dados!B90),\"-\",Dados!B90)","v":"Finanças e Seguros"},{"$f":"IF(ISERROR(Dados!C90),\"-\",Dados!C90)","v":"Banrisul"},{"$f":"IF(ISERROR(Dados!D90),\"-\",Dados!D90)","v":24.19},{"$f":"IF(ISERROR(Dados!E90),\"-\",Dados!E90)","v":408.97399999999999},{"$f":"IF(ISERROR(Dados!F90),\"-\",Dados!F90)","v":10020.69},{"$f":"IF(ISERROR(Dados!G90),\"-\",Dados!G90)","v":7278.9},{"$f":"IF(ISERROR(Dados!H90),\"-\",Dados!H90)","v":9978.49},{"$f":"IF(ISERROR(Dados!I90),\"-\",Dados!I90)","v":9551.7800000000007},{"$f":"IF(ISERROR(Dados!J90),\"-\",Dados!J90)","v":1053.04},{"$f":"IF(ISERROR(Dados!K90),\"-\",Dados!K90)","v":243.96},{"$f":"IF(ISERROR(Dados!L90),\"-\",Dados!L90)","v":505.92},{"$f":"IF(ISERROR(Dados!M90),\"-\",Dados!M90)","v":796.14},{"$f":"IF(ISERROR(Dados!N90),\"-\",Dados!N90)","v":1048.6300000000001},{"$f":"IF(ISERROR(Dados!O90),\"-\",Dados!O90)","v":1053.04},{"$f":"IF(ISERROR(Dados!P90),\"-\",Dados!P90)","v":1048.6300000000001},{"$f":"IF(ISERROR(Dados!Q90),\"-\",Dados!Q90)","v":2.5640505264393338},{"$f":"IF(ISERROR(Dados!R90),\"-\",Dados!R90)","v":17.79795292610288},{"$f":"IF(ISERROR(Dados!S90),\"-\",Dados!S90)","v":1.3591450713706743},{"$f":"IF(ISERROR(Dados!T90),\"-\",Dados!T90)","v":9.4342914660080286},{"$f":"IF(ISERROR(Dados!U90),\"-\",Dados!U90)","v":0.14916600000000002},{"$f":"IF(ISERROR(Dados!V90),\"-\",Dados!V90)","v":"-"},{"$f":"IF(ISERROR(Dados!W90),\"-\",Dados!W90)","v":"-"},{"$f":"IF(ISERROR(Dados!X90),\"-\",Dados!X90)","v":"-"},{"$f":"IF(ISERROR(Dados!Y90),\"-\",Dados!Y90)","v":"-"},{"$f":"IF(ISERROR(Dados!Z90),\"-\",Dados!Z90)","v":"-"},{"$f":"IF(ISERROR(Dados!AA90),\"-\",Dados!AA90)","v":381.3},{"$f":"IF(ISERROR(Dados!AB90),\"-\",Dados!AB90)","v":3.8051271918400825E-2},{"$f":"IF(ISERROR(Dados!AC90),\"-\",Dados!AC90)","v":-2},{"$f":"IF(ISERROR(Dados!AD90),\"-\",Dados!AD90)","v":85.5},{"$f":"IF(ISERROR(Dados!AE90),\"-\",Dados!AE90)","v":0.5014988727889792},{"$f":"IF(ISERROR(Dados!AF90),\"-\",Dados!AF90)","v":"BRSR6"},{"$f":"IF(ISERROR(Dados!AG90),\"-\",Dados!AG90)","v":"-"}]
[{"$f":"IF(ISERROR(Dados!A91),\"-\",Dados!A91)","v":"BBAS3"},{"$f":"IF(ISERROR(Dados!B91),\"-\",Dados!B91)","v":"Finanças e Seguros"},{"$f":"IF(ISERROR(Dados!C91),\"-\",Dados!C91)","v":"Brasil"},{"$f":"IF(ISERROR(Dados!D91),\"-\",Dados!D91)","v":48.72},{"$f":"IF(ISERROR(Dados!E91),\"-\",Dados!E91)","v":2785.5309999999999},{"$f":"IF(ISERROR(Dados!F91),\"-\",Dados!F91)","v":135711.06},{"$f":"IF(ISERROR(Dados!G91),\"-\",Dados!G91)","v":102252.88},{"$f":"IF(ISERROR(Dados!H91),\"-\",Dados!H91)","v":142438.85999999999},{"$f":"IF(ISERROR(Dados!I91),\"-\",Dados!I91)","v":134487.85999999999},{"$f":"IF(ISERROR(Dados!J91),\"-\",Dados!J91)","v":11010.78},{"$f":"IF(ISERROR(Dados!K91),\"-\",Dados!K91)","v":2748.81},{"$f":"IF(ISERROR(Dados!L91),\"-\",Dados!L91)","v":5883.82},{"$f":"IF(ISERROR(Dados!M91),\"-\",Dados!M91)","v":9059.23},{"$f":"IF(ISERROR(Dados!N91),\"-\",Dados!N91)","v":12862.03},{"$f":"IF(ISERROR(Dados!O91),\"-\",Dados!O91)","v":11010.78},{"$f":"IF(ISERROR(Dados!P91),\"-\",Dados!P91)","v":12862.03},{"$f":"IF(ISERROR(Dados!Q91),\"-\",Dados!Q91)","v":4.6174427784146008},{"$f":"IF(ISERROR(Dados!R91),\"-\",Dados!R91)","v":36.70857728741845},{"$f":"IF(ISERROR(Dados!S91),\"-\",Dados!S91)","v":1.3272102489435993},{"$f":"IF(ISERROR(Dados!T91),\"-\",Dados!T91)","v":10.551294804941366},{"$f":"IF(ISERROR(Dados!U91),\"-\",Dados!U91)","v":0.14442199999999999},{"$f":"IF(ISERROR(Dados!V91),\"-\",Dados!V91)","v":"-"},{"$f":"IF(ISERROR(Dados!W91),\"-\",Dados!W91)","v":"-"},{"$f":"IF(ISERROR(Dados!X91),\"-\",Dados!X91)","v":"-"},{"$f":"IF(ISERROR(Dados!Y91),\"-\",Dados!Y91)","v":"-"},{"$f":"IF(ISERROR(Dados!Z91),\"-\",Dados!Z91)","v":"-"},{"$f":"IF(ISERROR(Dados!AA91),\"-\",Dados!AA91)","v":4206.5200000000004},{"$f":"IF(ISERROR(Dados!AB91),\"-\",Dados!AB91)","v":3.0996147255794779E-2},{"$f":"IF(ISERROR(Dados!AC91),\"-\",Dados!AC91)","v":-3.4},{"$f":"IF(ISERROR(Dados!AD91),\"-\",Dados!AD91)","v":62},{"$f":"IF(ISERROR(Dados!AE91),\"-\",Dados!AE91)","v":"-"},{"$f":"IF(ISERROR(Dados!AF91),\"-\",Dados!AF91)","v":"BBAS3"},{"$f":"IF(ISERROR(Dados!AG91),\"-\",Dados!AG91)","v":"-"}]
[{"$f":"IF(ISERROR(Dados!A92),\"-\",Dados!A92)","v":"BEES3"},{"$f":"IF(ISERROR(Dados!B92),\"-\",Dados!B92)","v":"Finanças e Seguros"},{"$f":"IF(ISERROR(Dados!C92),\"-\",Dados!C92)","v":"Banestes"},{"$f":"IF(ISERROR(Dados!D92),\"-\",Dados!D92)","v":4.92},{"$f":"IF(ISERROR(Dados!E92),\"-\",Dados!E92)","v":315.91199999999998},{"$f":"IF(ISERROR(Dados!F92),\"-\",Dados!F92)","v":1565.28},{"$f":"IF(ISERROR(Dados!G92),\"-\",Dados!G92)","v":1492.01},{"$f":"IF(ISERROR(Dados!H92),\"-\",Dados!H92)","v":2701.41},{"$f":"IF(ISERROR(Dados!I92),\"-\",Dados!I92)","v":2193.7199999999998},{"$f":"IF(ISERROR(Dados!J92),\"-\",Dados!J92)","v":175.22},{"$f":"IF(ISERROR(Dados!K92),\"-\",Dados!K92)","v":23.36},{"$f":"IF(ISERROR(Dados!L92),\"-\",Dados!L92)","v":81.2},{"$f":"IF(ISERROR(Dados!M92),\"-\",Dados!M92)","v":136.31},{"$f":"IF(ISERROR(Dados!N92),\"-\",Dados!N92)","v":181.06},{"$f":"IF(ISERROR(Dados!O92),\"-\",Dados!O92)","v":175.22},{"$f":"IF(ISERROR(Dados!P92),\"-\",Dados!P92)","v":181.06},{"$f":"IF(ISERROR(Dados!Q92),\"-\",Dados!Q92)","v":0.57313429056192866},{"$f":"IF(ISERROR(Dados!R92),\"-\",Dados!R92)","v":4.7228658613791188},{"$f":"IF(ISERROR(Dados!S92),\"-\",Dados!S92)","v":1.0417403636704847},{"$f":"IF(ISERROR(Dados!T92),\"-\",Dados!T92)","v":8.5843755661106815},{"$f":"IF(ISERROR(Dados!U92),\"-\",Dados!U92)","v":0.12993399999999999},{"$f":"IF(ISERROR(Dados!V92),\"-\",Dados!V92)","v":"-"},{"$f":"IF(ISERROR(Dados!W92),\"-\",Dados!W92)","v":"-"},{"$f":"IF(ISERROR(Dados!X92),\"-\",Dados!X92)","v":"-"},{"$f":"IF(ISERROR(Dados!Y92),\"-\",Dados!Y92)","v":"-"},{"$f":"IF(ISERROR(Dados!Z92),\"-\",Dados!Z92)","v":"-"},{"$f":"IF(ISERROR(Dados!AA92),\"-\",Dados!AA92)","v":77.64},{"$f":"IF(ISERROR(Dados!AB92),\"-\",Dados!AB92)","v":4.9601349279362161E-2},{"$f":"IF(ISERROR(Dados!AC92),\"-\",Dados!AC92)","v":1},{"$f":"IF(ISERROR(Dados!AD92),\"-\",Dados!AD92)","v":47.6},{"$f":"IF(ISERROR(Dados!AE92),\"-\",Dados!AE92)","v":0.73248246347084001},{"$f":"IF(ISERROR(Dados!AF92),\"-\",Dados!AF92)","v":"BEES3"},{"$f":"IF(ISERROR(Dados!AG92),\"-\",Dados!AG92)","v":"-"}]
[{"$f":"IF(ISERROR(Dados!A93),\"-\",Dados!A93)","v":"BPAC11"},{"$f":"IF(ISERROR(Dados!B93),\"-\",Dados!B93)","v":"Finanças e Seguros"},{"$f":"IF(ISERROR(Dados!C93),\"-\",Dados!C93)","v":"Btgp Banco"},{"$f":"IF(ISERROR(Dados!D93),\"-\",Dados!D93)","v":36.200000000000003},{"$f":"IF(ISERROR(Dados!E93),\"-\",Dados!E93)","v":2618.16},{"$f":"IF(ISERROR(Dados!F93),\"-\",Dados!F93)","v":42846.6},{"$f":"IF(ISERROR(Dados!G93),\"-\",Dados!G93)","v":18844.93},{"$f":"IF(ISERROR(Dados!H93),\"-\",Dados!H93)","v":9523.75},{"$f":"IF(ISERROR(Dados!I93),\"-\",Dados!I93)","v":9893.3799999999992},{"$f":"IF(ISERROR(Dados!J93),\"-\",Dados!J93)","v":2383.86},{"$f":"IF(ISERROR(Dados!K93),\"-\",Dados!K93)","v":600.36},{"$f":"IF(ISERROR(Dados!L93),\"-\",Dados!L93)","v":1222.83},{"$f":"IF(ISERROR(Dados!M93),\"-\",Dados!M93)","v":1808.33},{"$f":"IF(ISERROR(Dados!N93),\"-\",Dados!N93)","v":2360.7800000000002},{"$f":"IF(ISERROR(Dados!O93),\"-\",Dados!O93)","v":2383.86},{"$f":"IF(ISERROR(Dados!P93),\"-\",Dados!P93)","v":2360.7800000000002},{"$f":"IF(ISERROR(Dados!Q93),\"-\",Dados!Q93)","v":0.90169431967488634},{"$f":"IF(ISERROR(Dados!R93),\"-\",Dados!R93)","v":7.1977763009136195},{"$f":"IF(ISERROR(Dados!S93),\"-\",Dados!S93)","v":5.0293310720708435},{"$f":"IF(ISERROR(Dados!T93),\"-\",Dados!T93)","v":40.146643058650106},{"$f":"IF(ISERROR(Dados!U93),\"-\",Dados!U93)","v":0.126914},{"$f":"IF(ISERROR(Dados!V93),\"-\",Dados!V93)","v":"-"},{"$f":"IF(ISERROR(Dados!W93),\"-\",Dados!W93)","v":"-"},{"$f":"IF(ISERROR(Dados!X93),\"-\",Dados!X93)","v":"-"},{"$f":"IF(ISERROR(Dados!Y93),\"-\",Dados!Y93)","v":"-"},{"$f":"IF(ISERROR(Dados!Z93),\"-\",Dados!Z93)","v":"-"},{"$f":"IF(ISERROR(Dados!AA93),\"-\",Dados!AA93)","v":1201.48},{"$f":"IF(ISERROR(Dados!AB93),\"-\",Dados!AB93)","v":2.8041431525488606E-2},{"$f":"IF(ISERROR(Dados!AC93),\"-\",Dados!AC93)","v":6},{"$f":"IF(ISERROR(Dados!AD93),\"-\",Dados!AD93)","v":109.8},{"$f":"IF(ISERROR(Dados!AE93),\"-\",Dados!AE93)","v":0.66126592721606015},{"$f":"IF(ISERROR(Dados!AF93),\"-\",Dados!AF93)","v":"BPAC11"},{"$f":"IF(ISERROR(Dados!AG93),\"-\",Dados!AG93)","v":"-"}]
[{"$f":"IF(ISERROR(Dados!A94),\"-\",Dados!A94)","v":"B3SA3"},{"$f":"IF(ISERROR(Dados!B94),\"-\",Dados!B94)","v":"Finanças e Seguros"},{"$f":"IF(ISERROR(Dados!C94),\"-\",Dados!C94)","v":"B3"},{"$f":"IF(ISERROR(Dados!D94),\"-\",Dados!D94)","v":32.119999999999997},{"$f":"IF(ISERROR(Dados!E94),\"-\",Dados!E94)","v":2044.2159999999999},{"$f":"IF(ISERROR(Dados!F94),\"-\",Dados!F94)","v":65660.210000000006},{"$f":"IF(ISERROR(Dados!G94),\"-\",Dados!G94)","v":25032.97},{"$f":"IF(ISERROR(Dados!H94),\"-\",Dados!H94)","v":3673.6},{"$f":"IF(ISERROR(Dados!I94),\"-\",Dados!I94)","v":4831.92},{"$f":"IF(ISERROR(Dados!J94),\"-\",Dados!J94)","v":1296.24},{"$f":"IF(ISERROR(Dados!K94),\"-\",Dados!K94)","v":314.72000000000003},{"$f":"IF(ISERROR(Dados!L94),\"-\",Dados!L94)","v":1039.1600000000001},{"$f":"IF(ISERROR(Dados!M94),\"-\",Dados!M94)","v":1504.52},{"$f":"IF(ISERROR(Dados!N94),\"-\",Dados!N94)","v":2087.44},{"$f":"IF(ISERROR(Dados!O94),\"-\",Dados!O94)","v":1296.24},{"$f":"IF(ISERROR(Dados!P94),\"-\",Dados!P94)","v":2087.44},{"$f":"IF(ISERROR(Dados!Q94),\"-\",Dados!Q94)","v":1.021144536585175},{"$f":"IF(ISERROR(Dados!R94),\"-\",Dados!R94)","v":12.245755830107974},{"$f":"IF(ISERROR(Dados!S94),\"-\",Dados!S94)","v":2.622949570905889},{"$f":"IF(ISERROR(Dados!T94),\"-\",Dados!T94)","v":31.454900701337518},{"$f":"IF(ISERROR(Dados!U94),\"-\",Dados!U94)","v":8.5905000000000009E-2},{"$f":"IF(ISERROR(Dados!V94),\"-\",Dados!V94)","v":-9.3153E-2},{"$f":"IF(ISERROR(Dados!W94),\"-\",Dados!W94)","v":2199.8000000000002},{"$f":"IF(ISERROR(Dados!X94),\"-\",Dados!X94)","v":3345.2},{"$f":"IF(ISERROR(Dados!Y94),\"-\",Dados!Y94)","v":3345.2},{"$f":"IF(ISERROR(Dados!Z94),\"-\",Dados!Z94)","v":18.930783211766116},{"$f":"IF(ISERROR(Dados!AA94),\"-\",Dados!AA94)","v":1528.86},{"$f":"IF(ISERROR(Dados!AB94),\"-\",Dados!AB94)","v":2.3284421417476425E-2},{"$f":"IF(ISERROR(Dados!AC94),\"-\",Dados!AC94)","v":-1.5},{"$f":"IF(ISERROR(Dados!AD94),\"-\",Dados!AD94)","v":46.2},{"$f":"IF(ISERROR(Dados!AE94),\"-\",Dados!AE94)","v":"-"},{"$f":"IF(ISERROR(Dados!AF94),\"-\",Dados!AF94)","v":"B3SA3"},{"$f":"IF(ISERROR(Dados!AG94),\"-\",Dados!AG94)","v":3345.2}]
[{"$f":"IF(ISERROR(Dados!A95),\"-\",Dados!A95)","v":"BMIN4"},{"$f":"IF(ISERROR(Dados!B95),\"-\",Dados!B95)","v":"Finanças e Seguros"},{"$f":"IF(ISERROR(Dados!C95),\"-\",Dados!C95)","v":"Merc Invest"},{"$f":"IF(ISERROR(Dados!D95),\"-\",Dados!D95)","v":18.46},{"$f":"IF(ISERROR(Dados!E95),\"-\",Dados!E95)","v":4.8250000000000002},{"$f":"IF(ISERROR(Dados!F95),\"-\",Dados!F95)","v":93.39},{"$f":"IF(ISERROR(Dados!G95),\"-\",Dados!G95)","v":119.04},{"$f":"IF(ISERROR(Dados!H95),\"-\",Dados!H95)","v":19.09},{"$f":"IF(ISERROR(Dados!I95),\"-\",Dados!I95)","v":14.63},{"$f":"IF(ISERROR(Dados!J95),\"-\",Dados!J95)","v":-12.93},{"$f":"IF(ISERROR(Dados!K95),\"-\",Dados!K95)","v":1.1200000000000001},{"$f":"IF(ISERROR(Dados!L95),\"-\",Dados!L95)","v":2.4900000000000002},{"$f":"IF(ISERROR(Dados!M95),\"-\",Dados!M95)","v":3.24},{"$f":"IF(ISERROR(Dados!N95),\"-\",Dados!N95)","v":4.13},{"$f":"IF(ISERROR(Dados!O95),\"-\",Dados!O95)","v":-12.93},{"$f":"IF(ISERROR(Dados!P95),\"-\",Dados!P95)","v":4.13},{"$f":"IF(ISERROR(Dados!Q95),\"-\",Dados!Q95)","v":0.8559585492227979},{"$f":"IF(ISERROR(Dados!R95),\"-\",Dados!R95)","v":24.671502590673576},{"$f":"IF(ISERROR(Dados!S95),\"-\",Dados!S95)","v":0.74823168682795704},{"$f":"IF(ISERROR(Dados!T95),\"-\",Dados!T95)","v":21.566464891041164},{"$f":"IF(ISERROR(Dados!U95),\"-\",Dados!U95)","v":7.3479000000000003E-2},{"$f":"IF(ISERROR(Dados!V95),\"-\",Dados!V95)","v":"-"},{"$f":"IF(ISERROR(Dados!W95),\"-\",Dados!W95)","v":"-"},{"$f":"IF(ISERROR(Dados!X95),\"-\",Dados!X95)","v":"-"},{"$f":"IF(ISERROR(Dados!Y95),\"-\",Dados!Y95)","v":"-"},{"$f":"IF(ISERROR(Dados!Z95),\"-\",Dados!Z95)","v":"-"},{"$f":"IF(ISERROR(Dados!AA95),\"-\",Dados!AA95)","v":0.7},{"$f":"IF(ISERROR(Dados!AB95),\"-\",Dados!AB95)","v":7.4954491915622656E-3},{"$f":"IF(ISERROR(Dados!AC95),\"-\",Dados!AC95)","v":18.7},{"$f":"IF(ISERROR(Dados!AD95),\"-\",Dados!AD95)","v":15.9},{"$f":"IF(ISERROR(Dados!AE95),\"-\",Dados!AE95)","v":0.84974093264248696},{"$f":"IF(ISERROR(Dados!AF95),\"-\",Dados!AF95)","v":"BMIN4"},{"$f":"IF(ISERROR(Dados!AG95),\"-\",Dados!AG95)","v":"-"}]
[{"$f":"IF(ISERROR(Dados!A96),\"-\",Dados!A96)","v":"BMEB4"},{"$f":"IF(ISERROR(Dados!B96),\"-\",Dados!B96)","v":"Finanças e Seguros"},{"$f":"IF(ISERROR(Dados!C96),\"-\",Dados!C96)","v":"Merc Brasil"},{"$f":"IF(ISERROR(Dados!D96),\"-\",Dados!D96)","v":7.4},{"$f":"IF(ISERROR(Dados!E96),\"-\",Dados!E96)","v":52.415999999999997},{"$f":"IF(ISERROR(Dados!F96),\"-\",Dados!F96)","v":392.77},{"$f":"IF(ISERROR(Dados!G96),\"-\",Dados!G96)","v":800.1},{"$f":"IF(ISERROR(Dados!H96),\"-\",Dados!H96)","v":2823.44},{"$f":"IF(ISERROR(Dados!I96),\"-\",Dados!I96)","v":2353.67},{"$f":"IF(ISERROR(Dados!J96),\"-\",Dados!J96)","v":26.24},{"$f":"IF(ISERROR(Dados!K96),\"-\",Dados!K96)","v":19.68},{"$f":"IF(ISERROR(Dados!L96),\"-\",Dados!L96)","v":27.52},{"$f":"IF(ISERROR(Dados!M96),\"-\",Dados!M96)","v":39.39},{"$f":"IF(ISERROR(Dados!N96),\"-\",Dados!N96)","v":53.4},{"$f":"IF(ISERROR(Dados!O96),\"-\",Dados!O96)","v":26.24},{"$f":"IF(ISERROR(Dados!P96),\"-\",Dados!P96)","v":53.4},{"$f":"IF(ISERROR(Dados!Q96),\"-\",Dados!Q96)","v":1.0187728937728937},{"$f":"IF(ISERROR(Dados!R96),\"-\",Dados!R96)","v":15.264423076923078},{"$f":"IF(ISERROR(Dados!S96),\"-\",Dados!S96)","v":0.4847874015748031},{"$f":"IF(ISERROR(Dados!T96),\"-\",Dados!T96)","v":7.2636404494382028},{"$f":"IF(ISERROR(Dados!U96),\"-\",Dados!U96)","v":7.1506E-2},{"$f":"IF(ISERROR(Dados!V96),\"-\",Dados!V96)","v":"-"},{"$f":"IF(ISERROR(Dados!W96),\"-\",Dados!W96)","v":"-"},{"$f":"IF(ISERROR(Dados!X96),\"-\",Dados!X96)","v":"-"},{"$f":"IF(ISERROR(Dados!Y96),\"-\",Dados!Y96)","v":"-"},{"$f":"IF(ISERROR(Dados!Z96),\"-\",Dados!Z96)","v":"-"},{"$f":"IF(ISERROR(Dados!AA96),\"-\",Dados!AA96)","v":"-"},{"$f":"IF(ISERROR(Dados!AB96),\"-\",Dados!AB96)","v":"-"},{"$f":"IF(ISERROR(Dados!AC96),\"-\",Dados!AC96)","v":-0.1},{"$f":"IF(ISERROR(Dados!AD96),\"-\",Dados!AD96)","v":80},{"$f":"IF(ISERROR(Dados!AE96),\"-\",Dados!AE96)","v":0.62194749694749696},{"$f":"IF(ISERROR(Dados!AF96),\"-\",Dados!AF96)","v":"BMEB4"},{"$f":"IF(ISERROR(Dados!AG96),\"-\",Dados!AG96)","v":"-"}]
[{"$f":"IF(ISERROR(Dados!A97),\"-\",Dados!A97)","v":"BPAN4"},{"$f":"IF(ISERROR(Dados!B97),\"-\",Dados!B97)","v":"Finanças e Seguros"},{"$f":"IF(ISERROR(Dados!C97),\"-\",Dados!C97)","v":"Banco Pan"},{"$f":"IF(ISERROR(Dados!D97),\"-\",Dados!D97)","v":3.26},{"$f":"IF(ISERROR(Dados!E97),\"-\",Dados!E97)","v":1141.806},{"$f":"IF(ISERROR(Dados!F97),\"-\",Dados!F97)","v":3722.29},{"$f":"IF(ISERROR(Dados!G97),\"-\",Dados!G97)","v":4095.92},{"$f":"IF(ISERROR(Dados!H97),\"-\",Dados!H97)","v":7780.35},{"$f":"IF(ISERROR(Dados!I97),\"-\",Dados!I97)","v":7099.37},{"$f":"IF(ISERROR(Dados!J97),\"-\",Dados!J97)","v":212.61},{"$f":"IF(ISERROR(Dados!K97),\"-\",Dados!K97)","v":56.55},{"$f":"IF(ISERROR(Dados!L97),\"-\",Dados!L97)","v":98.76},{"$f":"IF(ISERROR(Dados!M97),\"-\",Dados!M97)","v":147.88999999999999},{"$f":"IF(ISERROR(Dados!N97),\"-\",Dados!N97)","v":221.52},{"$f":"IF(ISERROR(Dados!O97),\"-\",Dados!O97)","v":212.61},{"$f":"IF(ISERROR(Dados!P97),\"-\",Dados!P97)","v":221.52},{"$f":"IF(ISERROR(Dados!Q97),\"-\",Dados!Q97)","v":0.19400843926201125},{"$f":"IF(ISERROR(Dados!R97),\"-\",Dados!R97)","v":3.5872293541985241},{"$f":"IF(ISERROR(Dados!S97),\"-\",Dados!S97)","v":0.90877936092501799},{"$f":"IF(ISERROR(Dados!T97),\"-\",Dados!T97)","v":16.803392741061753},{"$f":"IF(ISERROR(Dados!U97),\"-\",Dados!U97)","v":6.2295999999999997E-2},{"$f":"IF(ISERROR(Dados!V97),\"-\",Dados!V97)","v":"-"},{"$f":"IF(ISERROR(Dados!W97),\"-\",Dados!W97)","v":"-"},{"$f":"IF(ISERROR(Dados!X97),\"-\",Dados!X97)","v":"-"},{"$f":"IF(ISERROR(Dados!Y97),\"-\",Dados!Y97)","v":"-"},{"$f":"IF(ISERROR(Dados!Z97),\"-\",Dados!Z97)","v":"-"},{"$f":"IF(ISERROR(Dados!AA97),\"-\",Dados!AA97)","v":"-"},{"$f":"IF(ISERROR(Dados!AB97),\"-\",Dados!AB97)","v":"-"},{"$f":"IF(ISERROR(Dados!AC97),\"-\",Dados!AC97)","v":8.6999999999999993},{"$f":"IF(ISERROR(Dados!AD97),\"-\",Dados!AD97)","v":80.099999999999994},{"$f":"IF(ISERROR(Dados!AE97),\"-\",Dados!AE97)","v":0.57592971135201598},{"$f":"IF(ISERROR(Dados!AF97),\"-\",Dados!AF97)","v":"BPAN4"},{"$f":"IF(ISERROR(Dados!AG97),\"-\",Dados!AG97)","v":"-"}]
[{"$f":"IF(ISERROR(Dados!A98),\"-\",Dados!A98)","v":"BAZA3"},{"$f":"IF(ISERROR(Dados!B98),\"-\",Dados!B98)","v":"Finanças e Seguros"},{"$f":"IF(ISERROR(Dados!C98),\"-\",Dados!C98)","v":"Amazonia"},{"$f":"IF(ISERROR(Dados!D98),\"-\",Dados!D98)","v":27.3},{"$f":"IF(ISERROR(Dados!E98),\"-\",Dados!E98)","v":29.646000000000001},{"$f":"IF(ISERROR(Dados!F98),\"-\",Dados!F98)","v":809.33},{"$f":"IF(ISERROR(Dados!G98),\"-\",Dados!G98)","v":1938.61},{"$f":"IF(ISERROR(Dados!H98),\"-\",Dados!H98)","v":1421.05},{"$f":"IF(ISERROR(Dados!I98),\"-\",Dados!I98)","v":1303.19},{"$f":"IF(ISERROR(Dados!J98),\"-\",Dados!J98)","v":64.510000000000005},{"$f":"IF(ISERROR(Dados!K98),\"-\",Dados!K98)","v":-56.99},{"$f":"IF(ISERROR(Dados!L98),\"-\",Dados!L98)","v":-26.21},{"$f":"IF(ISERROR(Dados!M98),\"-\",Dados!M98)","v":-13.5},{"$f":"IF(ISERROR(Dados!N98),\"-\",Dados!N98)","v":109.08},{"$f":"IF(ISERROR(Dados!O98),\"-\",Dados!O98)","v":64.510000000000005},{"$f":"IF(ISERROR(Dados!P98),\"-\",Dados!P98)","v":109.08},{"$f":"IF(ISERROR(Dados!Q98),\"-\",Dados!Q98)","v":3.6794171220400727},{"$f":"IF(ISERROR(Dados!R98),\"-\",Dados!R98)","v":65.391958442960259},{"$f":"IF(ISERROR(Dados!S98),\"-\",Dados!S98)","v":0.41748252613986314},{"$f":"IF(ISERROR(Dados!T98),\"-\",Dados!T98)","v":7.4196534653465349},{"$f":"IF(ISERROR(Dados!U98),\"-\",Dados!U98)","v":5.7857000000000006E-2},{"$f":"IF(ISERROR(Dados!V98),\"-\",Dados!V98)","v":"-"},{"$f":"IF(ISERROR(Dados!W98),\"-\",Dados!W98)","v":"-"},{"$f":"IF(ISERROR(Dados!X98),\"-\",Dados!X98)","v":"-"},{"$f":"IF(ISERROR(Dados!Y98),\"-\",Dados!Y98)","v":"-"},{"$f":"IF(ISERROR(Dados!Z98),\"-\",Dados!Z98)","v":"-"},{"$f":"IF(ISERROR(Dados!AA98),\"-\",Dados!AA98)","v":19.05},{"$f":"IF(ISERROR(Dados!AB98),\"-\",Dados!AB98)","v":2.3537988212472046E-2},{"$f":"IF(ISERROR(Dados!AC98),\"-\",Dados!AC98)","v":4.2},{"$f":"IF(ISERROR(Dados!AD98),\"-\",Dados!AD98)","v":12},{"$f":"IF(ISERROR(Dados!AE98),\"-\",Dados!AE98)","v":0.9984483572826014},{"$f":"IF(ISERROR(Dados!AF98),\"-\",Dados!AF98)","v":"BAZA3"},{"$f":"IF(ISERROR(Dados!AG98),\"-\",Dados!AG98)","v":"-"}]
[{"$f":"IF(ISERROR(Dados!A99),\"-\",Dados!A99)","v":"PINE4"},{"$f":"IF(ISERROR(Dados!B99),\"-\",Dados!B99)","v":"Finanças e Seguros"},{"$f":"IF(ISERROR(Dados!C99),\"-\",Dados!C99)","v":"Pine"},{"$f":"IF(ISERROR(Dados!D99),\"-\",Dados!D99)","v":2.34},{"$f":"IF(ISERROR(Dados!E99),\"-\",Dados!E99)","v":121.16800000000001},{"$f":"IF(ISERROR(Dados!F99),\"-\",Dados!F99)","v":283.52999999999997},{"$f":"IF(ISERROR(Dados!G99),\"-\",Dados!G99)","v":868.74},{"$f":"IF(ISERROR(Dados!H99),\"-\",Dados!H99)","v":731.4},{"$f":"IF(ISERROR(Dados!I99),\"-\",Dados!I99)","v":605.70000000000005},{"$f":"IF(ISERROR(Dados!J99),\"-\",Dados!J99)","v":-262.83},{"$f":"IF(ISERROR(Dados!K99),\"-\",Dados!K99)","v":5.2},{"$f":"IF(ISERROR(Dados!L99),\"-\",Dados!L99)","v":10.46},{"$f":"IF(ISERROR(Dados!M99),\"-\",Dados!M99)","v":15.3},{"$f":"IF(ISERROR(Dados!N99),\"-\",Dados!N99)","v":-59.71},{"$f":"IF(ISERROR(Dados!O99),\"-\",Dados!O99)","v":-262.83},{"$f":"IF(ISERROR(Dados!P99),\"-\",Dados!P99)","v":-59.71},{"$f":"IF(ISERROR(Dados!Q99),\"-\",Dados!Q99)","v":-0.49278687442228969},{"$f":"IF(ISERROR(Dados!R99),\"-\",Dados!R99)","v":7.1697147761785285},{"$f":"IF(ISERROR(Dados!S99),\"-\",Dados!S99)","v":0.32637281580219629},{"$f":"IF(ISERROR(Dados!T99),\"-\",Dados!T99)","v":"-"},{"$f":"IF(ISERROR(Dados!U99),\"-\",Dados!U99)","v":-6.5723000000000004E-2},{"$f":"IF(ISERROR(Dados!V99),\"-\",Dados!V99)","v":"-"},{"$f":"IF(ISERROR(Dados!W99),\"-\",Dados!W99)","v":"-"},{"$f":"IF(ISERROR(Dados!X99),\"-\",Dados!X99)","v":"-"},{"$f":"IF(ISERROR(Dados!Y99),\"-\",Dados!Y99)","v":"-"},{"$f":"IF(ISERROR(Dados!Z99),\"-\",Dados!Z99)","v":"-"},{"$f":"IF(ISERROR(Dados!AA99),\"-\",Dados!AA99)","v":"-"},{"$f":"IF(ISERROR(Dados!AB99),\"-\",Dados!AB99)","v":"-"},{"$f":"IF(ISERROR(Dados!AC99),\"-\",Dados!AC99)","v":-14.9},{"$f":"IF(ISERROR(Dados!AD99),\"-\",Dados!AD99)","v":-33.1},{"$f":"IF(ISERROR(Dados!AE99),\"-\",Dados!AE99)","v":0.53809586689555},{"$f":"IF(ISERROR(Dados!AF99),\"-\",Dados!AF99)","v":"PINE4"},{"$f":"IF(ISERROR(Dados!AG99),\"-\",Dados!AG99)","v":"-"}]
[{"$f":"IF(ISERROR(Dados!A100),\"-\",Dados!A100)","v":"IDVL4"},{"$f":"IF(ISERROR(Dados!B100),\"-\",Dados!B100)","v":"Finanças e Seguros"},{"$f":"IF(ISERROR(Dados!C100),\"-\",Dados!C100)","v":"Indusval"},{"$f":"IF(ISERROR(Dados!D100),\"-\",Dados!D100)","v":6.85},{"$f":"IF(ISERROR(Dados!E100),\"-\",Dados!E100)","v":108.19799999999999},{"$f":"IF(ISERROR(Dados!F100),\"-\",Dados!F100)","v":1081.8399999999999},{"$f":"IF(ISERROR(Dados!G100),\"-\",Dados!G100)","v":145.52000000000001},{"$f":"IF(ISERROR(Dados!H100),\"-\",Dados!H100)","v":319.49},{"$f":"IF(ISERROR(Dados!I100),\"-\",Dados!I100)","v":186.24},{"$f":"IF(ISERROR(Dados!J100),\"-\",Dados!J100)","v":-223.51},{"$f":"IF(ISERROR(Dados!K100),\"-\",Dados!K100)","v":-69.13},{"$f":"IF(ISERROR(Dados!L100),\"-\",Dados!L100)","v":-120.94},{"$f":"IF(ISERROR(Dados!M100),\"-\",Dados!M100)","v":-179.76},{"$f":"IF(ISERROR(Dados!N100),\"-\",Dados!N100)","v":-125.06},{"$f":"IF(ISERROR(Dados!O100),\"-\",Dados!O100)","v":-223.51},{"$f":"IF(ISERROR(Dados!P100),\"-\",Dados!P100)","v":-125.06},{"$f":"IF(ISERROR(Dados!Q100),\"-\",Dados!Q100)","v":-1.1558439157840257},{"$f":"IF(ISERROR(Dados!R100),\"-\",Dados!R100)","v":1.3449416809922552},{"$f":"IF(ISERROR(Dados!S100),\"-\",Dados!S100)","v":5.0931576415612962},{"$f":"IF(ISERROR(Dados!T100),\"-\",Dados!T100)","v":"-"},{"$f":"IF(ISERROR(Dados!U100),\"-\",Dados!U100)","v":-0.461729},{"$f":"IF(ISERROR(Dados!V100),\"-\",Dados!V100)","v":"-"},{"$f":"IF(ISERROR(Dados!W100),\"-\",Dados!W100)","v":"-"},{"$f":"IF(ISERROR(Dados!X100),\"-\",Dados!X100)","v":"-"},{"$f":"IF(ISERROR(Dados!Y100),\"-\",Dados!Y100)","v":"-"},{"$f":"IF(ISERROR(Dados!Z100),\"-\",Dados!Z100)","v":"-"},{"$f":"IF(ISERROR(Dados!AA100),\"-\",Dados!AA100)","v":"-"},{"$f":"IF(ISERROR(Dados!AB100),\"-\",Dados!AB100)","v":"-"},{"$f":"IF(ISERROR(Dados!AC100),\"-\",Dados!AC100)","v":143},{"$f":"IF(ISERROR(Dados!AD100),\"-\",Dados!AD100)","v":1.6},{"$f":"IF(ISERROR(Dados!AE100),\"-\",Dados!AE100)","v":"-"},{"$f":"IF(ISERROR(Dados!AF100),\"-\",Dados!AF100)","v":"IDVL4"},{"$f":"IF(ISERROR(Dados!AG100),\"-\",Dados!AG100)","v":"-"}]
[{"$f":"IF(ISERROR(Dados!A101),\"-\",Dados!A101)","v":"APER3"},{"$f":"IF(ISERROR(Dados!B101),\"-\",Dados!B101)","v":"Finanças e Seguros"},{"$f":"IF(ISERROR(Dados!C101),\"-\",Dados!C101)","v":"Alper S.A."},{"$f":"IF(ISERROR(Dados!D101),\"-\",Dados!D101)","v":24.9},{"$f":"IF(ISERROR(Dados!E101),\"-\",Dados!E101)","v":7.3680000000000003},{"$f":"IF(ISERROR(Dados!F101),\"-\",Dados!F101)","v":183.47},{"$f":"IF(ISERROR(Dados!G101),\"-\",Dados!G101)","v":93.14},{"$f":"IF(ISERROR(Dados!H101),\"-\",Dados!H101)","v":93.73},{"$f":"IF(ISERROR(Dados!I101),\"-\",Dados!I101)","v":87.58},{"$f":"IF(ISERROR(Dados!J101),\"-\",Dados!J101)","v":-82.59},{"$f":"IF(ISERROR(Dados!K101),\"-\",Dados!K101)","v":-4.0599999999999996},{"$f":"IF(ISERROR(Dados!L101),\"-\",Dados!L101)","v":-21.69},{"$f":"IF(ISERROR(Dados!M101),\"-\",Dados!M101)","v":-22.57},{"$f":"IF(ISERROR(Dados!N101),\"-\",Dados!N101)","v":-163.72},{"$f":"IF(ISERROR(Dados!O101),\"-\",Dados!O101)","v":-82.59},{"$f":"IF(ISERROR(Dados!P101),\"-\",Dados!P101)","v":-163.72},{"$f":"IF(ISERROR(Dados!Q101),\"-\",Dados!Q101)","v":-22.220412595005428},{"$f":"IF(ISERROR(Dados!R101),\"-\",Dados!R101)","v":12.64115092290988},{"$f":"IF(ISERROR(Dados!S101),\"-\",Dados!S101)","v":1.9697573545200773},{"$f":"IF(ISERROR(Dados!T101),\"-\",Dados!T101)","v":"-"},{"$f":"IF(ISERROR(Dados!U101),\"-\",Dados!U101)","v":-0.63826300000000002},{"$f":"IF(ISERROR(Dados!V101),\"-\",Dados!V101)","v":-0.37520500000000001},{"$f":"IF(ISERROR(Dados!W101),\"-\",Dados!W101)","v":-69.5},{"$f":"IF(ISERROR(Dados!X101),\"-\",Dados!X101)","v":-158.30000000000001},{"$f":"IF(ISERROR(Dados!Y101),\"-\",Dados!Y101)","v":-158.30000000000001},{"$f":"IF(ISERROR(Dados!Z101),\"-\",Dados!Z101)","v":-0.93837018319646226},{"$f":"IF(ISERROR(Dados!AA101),\"-\",Dados!AA101)","v":"-"},{"$f":"IF(ISERROR(Dados!AB101),\"-\",Dados!AB101)","v":"-"},{"$f":"IF(ISERROR(Dados!AC101),\"-\",Dados!AC101)","v":1.6},{"$f":"IF(ISERROR(Dados!AD101),\"-\",Dados!AD101)","v":106.2},{"$f":"IF(ISERROR(Dados!AE101),\"-\",Dados!AE101)","v":"-"},{"$f":"IF(ISERROR(Dados!AF101),\"-\",Dados!AF101)","v":"APER3"},{"$f":"IF(ISERROR(Dados!AG101),\"-\",Dados!AG101)","v":-158.30000000000001}]
[{"$f":"IF(ISERROR(Dados!A102),\"-\",Dados!A102)","v":"PPLA11"},{"$f":"IF(ISERROR(Dados!B102),\"-\",Dados!B102)","v":"Finanças e Seguros"},{"$f":"IF(ISERROR(Dados!C102),\"-\",Dados!C102)","v":"Ppla"},{"$f":"IF(ISERROR(Dados!D102),\"-\",Dados!D102)","v":2.6},{"$f":"IF(ISERROR(Dados!E102),\"-\",Dados!E102)","v":82.369},{"$f":"IF(ISERROR(Dados!F102),\"-\",Dados!F102)","v":71.39},{"$f":"IF(ISERROR(Dados!G102),\"-\",Dados!G102)","v":10.43},{"$f":"IF(ISERROR(Dados!H102),\"-\",Dados!H102)","v":"-"},{"$f":"IF(ISERROR(Dados!I102),\"-\",Dados!I102)","v":"-"},{"$f":"IF(ISERROR(Dados!J102),\"-\",Dados!J102)","v":-532.05999999999995},{"$f":"IF(ISERROR(Dados!K102),\"-\",Dados!K102)","v":-104.1},{"$f":"IF(ISERROR(Dados!L102),\"-\",Dados!L102)","v":-135.94},{"$f":"IF(ISERROR(Dados!M102),\"-\",Dados!M102)","v":-156.91999999999999},{"$f":"IF(ISERROR(Dados!N102),\"-\",Dados!N102)","v":"-"},{"$f":"IF(ISERROR(Dados!O102),\"-\",Dados!O102)","v":-532.05999999999995},{"$f":"IF(ISERROR(Dados!P102),\"-\",Dados!P102)","v":"-"},{"$f":"IF(ISERROR(Dados!Q102),\"-\",Dados!Q102)","v":-3.1255690854569074},{"$f":"IF(ISERROR(Dados!R102),\"-\",Dados!R102)","v":0.12662530806492733},{"$f":"IF(ISERROR(Dados!S102),\"-\",Dados!S102)","v":20.533020134228188},{"$f":"IF(ISERROR(Dados!T102),\"-\",Dados!T102)","v":"-"},{"$f":"IF(ISERROR(Dados!U102),\"-\",Dados!U102)","v":-1.0307360000000001},{"$f":"IF(ISERROR(Dados!V102),\"-\",Dados!V102)","v":"-"},{"$f":"IF(ISERROR(Dados!W102),\"-\",Dados!W102)","v":"-"},{"$f":"IF(ISERROR(Dados!X102),\"-\",Dados!X102)","v":"-"},{"$f":"IF(ISERROR(Dados!Y102),\"-\",Dados!Y102)","v":"-"},{"$f":"IF(ISERROR(Dados!Z102),\"-\",Dados!Z102)","v":"-"},{"$f":"IF(ISERROR(Dados!AA102),\"-\",Dados!AA102)","v":"-"},{"$f":"IF(ISERROR(Dados!AB102),\"-\",Dados!AB102)","v":"-"},{"$f":"IF(ISERROR(Dados!AC102),\"-\",Dados!AC102)","v":20.9},{"$f":"IF(ISERROR(Dados!AD102),\"-\",Dados!AD102)","v":94},{"$f":"IF(ISERROR(Dados!AE102),\"-\",Dados!AE102)","v":0.34114776190071511},{"$f":"IF(ISERROR(Dados!AF102),\"-\",Dados!AF102)","v":"PPLA11"},{"$f":"IF(ISERROR(Dados!AG102),\"-\",Dados!AG102)","v":"-"}]
[{"$f":"IF(ISERROR(Dados!A103),\"-\",Dados!A103)","v":"ABCB4"},{"$f":"IF(ISERROR(Dados!B103),\"-\",Dados!B103)","v":"Finanças e Seguros"},{"$f":"IF(ISERROR(Dados!C103),\"-\",Dados!C103)","v":"Abc Brasil"},{"$f":"IF(ISERROR(Dados!D103),\"-\",Dados!D103)","v":19.05},{"$f":"IF(ISERROR(Dados!E103),\"-\",Dados!E103)","v":208.61799999999999},{"$f":"IF(ISERROR(Dados!F103),\"-\",Dados!F103)","v":3974.18},{"$f":"IF(ISERROR(Dados!G103),\"-\",Dados!G103)","v":3665.51},{"$f":"IF(ISERROR(Dados!H103),\"-\",Dados!H103)","v":2520.92},{"$f":"IF(ISERROR(Dados!I103),\"-\",Dados!I103)","v":3254.38},{"$f":"IF(ISERROR(Dados!J103),\"-\",Dados!J103)","v":418.73},{"$f":"IF(ISERROR(Dados!K103),\"-\",Dados!K103)","v":108.55},{"$f":"IF(ISERROR(Dados!L103),\"-\",Dados!L103)","v":220.2},{"$f":"IF(ISERROR(Dados!M103),\"-\",Dados!M103)","v":336.31},{"$f":"IF(ISERROR(Dados!N103),\"-\",Dados!N103)","v":418.09},{"$f":"IF(ISERROR(Dados!O103),\"-\",Dados!O103)","v":418.73},{"$f":"IF(ISERROR(Dados!P103),\"-\",Dados!P103)","v":418.09},{"$f":"IF(ISERROR(Dados!Q103),\"-\",Dados!Q103)","v":2.0040936064960837},{"$f":"IF(ISERROR(Dados!R103),\"-\",Dados!R103)","v":17.570439751124066},{"$f":"IF(ISERROR(Dados!S103),\"-\",Dados!S103)","v":1.0842073545018291},{"$f":"IF(ISERROR(Dados!T103),\"-\",Dados!T103)","v":9.5055440216221392},{"$f":"IF(ISERROR(Dados!U103),\"-\",Dados!U103)","v":"-"},{"$f":"IF(ISERROR(Dados!V103),\"-\",Dados!V103)","v":"-"},{"$f":"IF(ISERROR(Dados!W103),\"-\",Dados!W103)","v":"-"},{"$f":"IF(ISERROR(Dados!X103),\"-\",Dados!X103)","v":"-"},{"$f":"IF(ISERROR(Dados!Y103),\"-\",Dados!Y103)","v":"-"},{"$f":"IF(ISERROR(Dados!Z103),\"-\",Dados!Z103)","v":"-"},{"$f":"IF(ISERROR(Dados!AA103),\"-\",Dados!AA103)","v":220.45},{"$f":"IF(ISERROR(Dados!AB103),\"-\",Dados!AB103)","v":5.5470562480813654E-2},{"$f":"IF(ISERROR(Dados!AC103),\"-\",Dados!AC103)","v":4.2},{"$f":"IF(ISERROR(Dados!AD103),\"-\",Dados!AD103)","v":25.2},{"$f":"IF(ISERROR(Dados!AE103),\"-\",Dados!AE103)","v":0.51098179447602798},{"$f":"IF(ISERROR(Dados!AF103),\"-\",Dados!AF103)","v":"ABCB4"},{"$f":"IF(ISERROR(Dados!AG103),\"-\",Dados!AG103)","v":"-"}]
[{"$f":"IF(ISERROR(Dados!A104),\"-\",Dados!A104)","v":"BIDI4"},{"$f":"IF(ISERROR(Dados!B104),\"-\",Dados!B104)","v":"Finanças e Seguros"},{"$f":"IF(ISERROR(Dados!C104),\"-\",Dados!C104)","v":"Banco Inter"},{"$f":"IF(ISERROR(Dados!D104),\"-\",Dados!D104)","v":52.91},{"$f":"IF(ISERROR(Dados!E104),\"-\",Dados!E104)","v":101.291},{"$f":"IF(ISERROR(Dados!F104),\"-\",Dados!F104)","v":5359.3},{"$f":"IF(ISERROR(Dados!G104),\"-\",Dados!G104)","v":948.78},{"$f":"IF(ISERROR(Dados!H104),\"-\",Dados!H104)","v":545.80999999999995},{"$f":"IF(ISERROR(Dados!I104),\"-\",Dados!I104)","v":646.63},{"$f":"IF(ISERROR(Dados!J104),\"-\",Dados!J104)","v":48.16},{"$f":"IF(ISERROR(Dados!K104),\"-\",Dados!K104)","v":11.17},{"$f":"IF(ISERROR(Dados!L104),\"-\",Dados!L104)","v":28.42},{"$f":"IF(ISERROR(Dados!M104),\"-\",Dados!M104)","v":46.75},{"$f":"IF(ISERROR(Dados!N104),\"-\",Dados!N104)","v":69.84},{"$f":"IF(ISERROR(Dados!O104),\"-\",Dados!O104)","v":48.16},{"$f":"IF(ISERROR(Dados!P104),\"-\",Dados!P104)","v":69.84},{"$f":"IF(ISERROR(Dados!Q104),\"-\",Dados!Q104)","v":0.68949857341718424},{"$f":"IF(ISERROR(Dados!R104),\"-\",Dados!R104)","v":9.3668736610360241},{"$f":"IF(ISERROR(Dados!S104),\"-\",Dados!S104)","v":5.6486296190897782},{"$f":"IF(ISERROR(Dados!T104),\"-\",Dados!T104)","v":76.736924541809842},{"$f":"IF(ISERROR(Dados!U104),\"-\",Dados!U104)","v":"-"},{"$f":"IF(ISERROR(Dados!V104),\"-\",Dados!V104)","v":"-"},{"$f":"IF(ISERROR(Dados!W104),\"-\",Dados!W104)","v":"-"},{"$f":"IF(ISERROR(Dados!X104),\"-\",Dados!X104)","v":"-"},{"$f":"IF(ISERROR(Dados!Y104),\"-\",Dados!Y104)","v":"-"},{"$f":"IF(ISERROR(Dados!Z104),\"-\",Dados!Z104)","v":"-"},{"$f":"IF(ISERROR(Dados!AA104),\"-\",Dados!AA104)","v":21.18},{"$f":"IF(ISERROR(Dados!AB104),\"-\",Dados!AB104)","v":3.9520086578471066E-3},{"$f":"IF(ISERROR(Dados!AC104),\"-\",Dados!AC104)","v":38.9},{"$f":"IF(ISERROR(Dados!AD104),\"-\",Dados!AD104)","v":"-"},{"$f":"IF(ISERROR(Dados!AE104),\"-\",Dados!AE104)","v":0.50152530827023134},{"$f":"IF(ISERROR(Dados!AF104),\"-\",Dados!AF104)","v":"BIDI4"},{"$f":"IF(ISERROR(Dados!AG104),\"-\",Dados!AG104)","v":"-"}]
[{"$f":"IF(ISERROR(Dados!A105),\"-\",Dados!A105)","v":"PTBL3"},{"$f":"IF(ISERROR(Dados!B105),\"-\",Dados!B105)","v":"Mineração"},{"$f":"IF(ISERROR(Dados!C105),\"-\",Dados!C105)","v":"Portobello"},{"$f":"IF(ISERROR(Dados!D105),\"-\",Dados!D105)","v":4.91},{"$f":"IF(ISERROR(Dados!E105),\"-\",Dados!E105)","v":158.489},{"$f":"IF(ISERROR(Dados!F105),\"-\",Dados!F105)","v":778.18},{"$f":"IF(ISERROR(Dados!G105),\"-\",Dados!G105)","v":362.11},{"$f":"IF(ISERROR(Dados!H105),\"-\",Dados!H105)","v":1023.94},{"$f":"IF(ISERROR(Dados!I105),\"-\",Dados!I105)","v":1054.19},{"$f":"IF(ISERROR(Dados!J105),\"-\",Dados!J105)","v":64.14},{"$f":"IF(ISERROR(Dados!K105),\"-\",Dados!K105)","v":6.99},{"$f":"IF(ISERROR(Dados!L105),\"-\",Dados!L105)","v":103.4},{"$f":"IF(ISERROR(Dados!M105),\"-\",Dados!M105)","v":105.97},{"$f":"IF(ISERROR(Dados!N105),\"-\",Dados!N105)","v":134.28},{"$f":"IF(ISERROR(Dados!O105),\"-\",Dados!O105)","v":64.14},{"$f":"IF(ISERROR(Dados!P105),\"-\",Dados!P105)","v":134.28},{"$f":"IF(ISERROR(Dados!Q105),\"-\",Dados!Q105)","v":0.84725122879190351},{"$f":"IF(ISERROR(Dados!R105),\"-\",Dados!R105)","v":2.2847642423133467},{"$f":"IF(ISERROR(Dados!S105),\"-\",Dados!S105)","v":2.149018226505758},{"$f":"IF(ISERROR(Dados!T105),\"-\",Dados!T105)","v":5.7952114238903789},{"$f":"IF(ISERROR(Dados!U105),\"-\",Dados!U105)","v":0.47117100000000001},{"$f":"IF(ISERROR(Dados!V105),\"-\",Dados!V105)","v":1.416693},{"$f":"IF(ISERROR(Dados!W105),\"-\",Dados!W105)","v":189},{"$f":"IF(ISERROR(Dados!X105),\"-\",Dados!X105)","v":288},{"$f":"IF(ISERROR(Dados!Y105),\"-\",Dados!Y105)","v":288},{"$f":"IF(ISERROR(Dados!Z105),\"-\",Dados!Z105)","v":4.4833090277777776},{"$f":"IF(ISERROR(Dados!AA105),\"-\",Dados!AA105)","v":29.7},{"$f":"IF(ISERROR(Dados!AB105),\"-\",Dados!AB105)","v":3.8165977023310801E-2},{"$f":"IF(ISERROR(Dados!AC105),\"-\",Dados!AC105)","v":-5.6},{"$f":"IF(ISERROR(Dados!AD105),\"-\",Dados!AD105)","v":-6.8},{"$f":"IF(ISERROR(Dados!AE105),\"-\",Dados!AE105)","v":"-"},{"$f":"IF(ISERROR(Dados!AF105),\"-\",Dados!AF105)","v":"PTBL3"},{"$f":"IF(ISERROR(Dados!AG105),\"-\",Dados!AG105)","v":288}]
[{"$f":"IF(ISERROR(Dados!A106),\"-\",Dados!A106)","v":"ETER3"},{"$f":"IF(ISERROR(Dados!B106),\"-\",Dados!B106)","v":"Mineração"},{"$f":"IF(ISERROR(Dados!C106),\"-\",Dados!C106)","v":"Eternit"},{"$f":"IF(ISERROR(Dados!D106),\"-\",Dados!D106)","v":2.0699999999999998},{"$f":"IF(ISERROR(Dados!E106),\"-\",Dados!E106)","v":29.823},{"$f":"IF(ISERROR(Dados!F106),\"-\",Dados!F106)","v":61.73},{"$f":"IF(ISERROR(Dados!G106),\"-\",Dados!G106)","v":12.23},{"$f":"IF(ISERROR(Dados!H106),\"-\",Dados!H106)","v":665.74},{"$f":"IF(ISERROR(Dados!I106),\"-\",Dados!I106)","v":536.91},{"$f":"IF(ISERROR(Dados!J106),\"-\",Dados!J106)","v":-276.39},{"$f":"IF(ISERROR(Dados!K106),\"-\",Dados!K106)","v":-11.14},{"$f":"IF(ISERROR(Dados!L106),\"-\",Dados!L106)","v":-45.91},{"$f":"IF(ISERROR(Dados!M106),\"-\",Dados!M106)","v":-89.02},{"$f":"IF(ISERROR(Dados!N106),\"-\",Dados!N106)","v":-149.37},{"$f":"IF(ISERROR(Dados!O106),\"-\",Dados!O106)","v":-276.39},{"$f":"IF(ISERROR(Dados!P106),\"-\",Dados!P106)","v":-149.37},{"$f":"IF(ISERROR(Dados!Q106),\"-\",Dados!Q106)","v":-5.008550447641082},{"$f":"IF(ISERROR(Dados!R106),\"-\",Dados!R106)","v":0.41008617509975526},{"$f":"IF(ISERROR(Dados!S106),\"-\",Dados!S106)","v":5.047719542109566},{"$f":"IF(ISERROR(Dados!T106),\"-\",Dados!T106)","v":"-"},{"$f":"IF(ISERROR(Dados!U106),\"-\",Dados!U106)","v":-0.87600100000000003},{"$f":"IF(ISERROR(Dados!V106),\"-\",Dados!V106)","v":9.9382859999999997},{"$f":"IF(ISERROR(Dados!W106),\"-\",Dados!W106)","v":-192.9},{"$f":"IF(ISERROR(Dados!X106),\"-\",Dados!X106)","v":-92.3},{"$f":"IF(ISERROR(Dados!Y106),\"-\",Dados!Y106)","v":-92.3},{"$f":"IF(ISERROR(Dados!Z106),\"-\",Dados!Z106)","v":-1.9878006500541712},{"$f":"IF(ISERROR(Dados!AA106),\"-\",Dados!AA106)","v":"-"},{"$f":"IF(ISERROR(Dados!AB106),\"-\",Dados!AB106)","v":"-"},{"$f":"IF(ISERROR(Dados!AC106),\"-\",Dados!AC106)","v":-24.5},{"$f":"IF(ISERROR(Dados!AD106),\"-\",Dados!AD106)","v":-62.5},{"$f":"IF(ISERROR(Dados!AE106),\"-\",Dados!AE106)","v":0.99922878315394159},{"$f":"IF(ISERROR(Dados!AF106),\"-\",Dados!AF106)","v":"ETER3"},{"$f":"IF(ISERROR(Dados!AG106),\"-\",Dados!AG106)","v":-92.3}]
[{"$f":"IF(ISERROR(Dados!A107),\"-\",Dados!A107)","v":"VALE3"},{"$f":"IF(ISERROR(Dados!B107),\"-\",Dados!B107)","v":"Mineração"},{"$f":"IF(ISERROR(Dados!C107),\"-\",Dados!C107)","v":"Vale"},{"$f":"IF(ISERROR(Dados!D107),\"-\",Dados!D107)","v":50.93},{"$f":"IF(ISERROR(Dados!E107),\"-\",Dados!E107)","v":5126.259},{"$f":"IF(ISERROR(Dados!F107),\"-\",Dados!F107)","v":261080.37},{"$f":"IF(ISERROR(Dados!G107),\"-\",Dados!G107)","v":170402.63},{"$f":"IF(ISERROR(Dados!H107),\"-\",Dados!H107)","v":108532.02},{"$f":"IF(ISERROR(Dados!I107),\"-\",Dados!I107)","v":134483.13},{"$f":"IF(ISERROR(Dados!J107),\"-\",Dados!J107)","v":17627.2},{"$f":"IF(ISERROR(Dados!K107),\"-\",Dados!K107)","v":5112.1099999999997},{"$f":"IF(ISERROR(Dados!L107),\"-\",Dados!L107)","v":5418.21},{"$f":"IF(ISERROR(Dados!M107),\"-\",Dados!M107)","v":11171.25},{"$f":"IF(ISERROR(Dados!N107),\"-\",Dados!N107)","v":25656.53},{"$f":"IF(ISERROR(Dados!O107),\"-\",Dados!O107)","v":17627.2},{"$f":"IF(ISERROR(Dados!P107),\"-\",Dados!P107)","v":25656.53},{"$f":"IF(ISERROR(Dados!Q107),\"-\",Dados!Q107)","v":5.0049226931374315},{"$f":"IF(ISERROR(Dados!R107),\"-\",Dados!R107)","v":33.241127691753384},{"$f":"IF(ISERROR(Dados!S107),\"-\",Dados!S107)","v":1.5321381534428193},{"$f":"IF(ISERROR(Dados!T107),\"-\",Dados!T107)","v":10.17598135328511},{"$f":"IF(ISERROR(Dados!U107),\"-\",Dados!U107)","v":0.17402300000000001},{"$f":"IF(ISERROR(Dados!V107),\"-\",Dados!V107)","v":0.21600000000000003},{"$f":"IF(ISERROR(Dados!W107),\"-\",Dados!W107)","v":46376},{"$f":"IF(ISERROR(Dados!X107),\"-\",Dados!X107)","v":55414.7},{"$f":"IF(ISERROR(Dados!Y107),\"-\",Dados!Y107)","v":55414.7},{"$f":"IF(ISERROR(Dados!Z107),\"-\",Dados!Z107)","v":5.3883856991015024},{"$f":"IF(ISERROR(Dados!AA107),\"-\",Dados!AA107)","v":12415.27},{"$f":"IF(ISERROR(Dados!AB107),\"-\",Dados!AB107)","v":4.7553441110873257E-2},{"$f":"IF(ISERROR(Dados!AC107),\"-\",Dados!AC107)","v":8.1},{"$f":"IF(ISERROR(Dados!AD107),\"-\",Dados!AD107)","v":31.6},{"$f":"IF(ISERROR(Dados!AE107),\"-\",Dados!AE107)","v":"-"},{"$f":"IF(ISERROR(Dados!AF107),\"-\",Dados!AF107)","v":"VALE3"},{"$f":"IF(ISERROR(Dados!AG107),\"-\",Dados!AG107)","v":55414.7}]
[{"$f":"IF(ISERROR(Dados!A108),\"-\",Dados!A108)","v":"MMXM3"},{"$f":"IF(ISERROR(Dados!B108),\"-\",Dados!B108)","v":"Mineração"},{"$f":"IF(ISERROR(Dados!C108),\"-\",Dados!C108)","v":"MMX Miner"},{"$f":"IF(ISERROR(Dados!D108),\"-\",Dados!D108)","v":2.0699999999999998},{"$f":"IF(ISERROR(Dados!E108),\"-\",Dados!E108)","v":6.4880000000000004},{"$f":"IF(ISERROR(Dados!F108),\"-\",Dados!F108)","v":13.43},{"$f":"IF(ISERROR(Dados!G108),\"-\",Dados!G108)","v":-611.64},{"$f":"IF(ISERROR(Dados!H108),\"-\",Dados!H108)","v":0.45},{"$f":"IF(ISERROR(Dados!I108),\"-\",Dados!I108)","v":2.7},{"$f":"IF(ISERROR(Dados!J108),\"-\",Dados!J108)","v":-28.1},{"$f":"IF(ISERROR(Dados!K108),\"-\",Dados!K108)","v":-7.96},{"$f":"IF(ISERROR(Dados!L108),\"-\",Dados!L108)","v":-45.32},{"$f":"IF(ISERROR(Dados!M108),\"-\",Dados!M108)","v":-60.6},{"$f":"IF(ISERROR(Dados!N108),\"-\",Dados!N108)","v":-110.11},{"$f":"IF(ISERROR(Dados!O108),\"-\",Dados!O108)","v":-28.1},{"$f":"IF(ISERROR(Dados!P108),\"-\",Dados!P108)","v":-110.11},{"$f":"IF(ISERROR(Dados!Q108),\"-\",Dados!Q108)","v":-16.971331689272503},{"$f":"IF(ISERROR(Dados!R108),\"-\",Dados!R108)","v":"-"},{"$f":"IF(ISERROR(Dados!S108),\"-\",Dados!S108)","v":"-"},{"$f":"IF(ISERROR(Dados!T108),\"-\",Dados!T108)","v":"-"},{"$f":"IF(ISERROR(Dados!U108),\"-\",Dados!U108)","v":"-"},{"$f":"IF(ISERROR(Dados!V108),\"-\",Dados!V108)","v":-0.28126499999999999},{"$f":"IF(ISERROR(Dados!W108),\"-\",Dados!W108)","v":-14.5},{"$f":"IF(ISERROR(Dados!X108),\"-\",Dados!X108)","v":-45.2},{"$f":"IF(ISERROR(Dados!Y108),\"-\",Dados!Y108)","v":-45.2},{"$f":"IF(ISERROR(Dados!Z108),\"-\",Dados!Z108)","v":-4.1104424778761057},{"$f":"IF(ISERROR(Dados!AA108),\"-\",Dados!AA108)","v":"-"},{"$f":"IF(ISERROR(Dados!AB108),\"-\",Dados!AB108)","v":"-"},{"$f":"IF(ISERROR(Dados!AC108),\"-\",Dados!AC108)","v":-1.9},{"$f":"IF(ISERROR(Dados!AD108),\"-\",Dados!AD108)","v":-30.1},{"$f":"IF(ISERROR(Dados!AE108),\"-\",Dados!AE108)","v":"-"},{"$f":"IF(ISERROR(Dados!AF108),\"-\",Dados!AF108)","v":"MMXM3"},{"$f":"IF(ISERROR(Dados!AG108),\"-\",Dados!AG108)","v":-45.2}]
[{"$f":"IF(ISERROR(Dados!A109),\"-\",Dados!A109)","v":"WEGE3"},{"$f":"IF(ISERROR(Dados!B109),\"-\",Dados!B109)","v":"Máquinas Industriais"},{"$f":"IF(ISERROR(Dados!C109),\"-\",Dados!C109)","v":"Weg"},{"$f":"IF(ISERROR(Dados!D109),\"-\",Dados!D109)","v":18},{"$f":"IF(ISERROR(Dados!E109),\"-\",Dados!E109)","v":2097.165},{"$f":"IF(ISERROR(Dados!F109),\"-\",Dados!F109)","v":37748.959999999999},{"$f":"IF(ISERROR(Dados!G109),\"-\",Dados!G109)","v":7714.27},{"$f":"IF(ISERROR(Dados!H109),\"-\",Dados!H109)","v":9523.83},{"$f":"IF(ISERROR(Dados!I109),\"-\",Dados!I109)","v":11970.09},{"$f":"IF(ISERROR(Dados!J109),\"-\",Dados!J109)","v":1142.1500000000001},{"$f":"IF(ISERROR(Dados!K109),\"-\",Dados!K109)","v":285},{"$f":"IF(ISERROR(Dados!L109),\"-\",Dados!L109)","v":621.61},{"$f":"IF(ISERROR(Dados!M109),\"-\",Dados!M109)","v":1003.04},{"$f":"IF(ISERROR(Dados!N109),\"-\",Dados!N109)","v":1338.32},{"$f":"IF(ISERROR(Dados!O109),\"-\",Dados!O109)","v":1142.1500000000001},{"$f":"IF(ISERROR(Dados!P109),\"-\",Dados!P109)","v":1338.32},{"$f":"IF(ISERROR(Dados!Q109),\"-\",Dados!Q109)","v":0.63815674970734304},{"$f":"IF(ISERROR(Dados!R109),\"-\",Dados!R109)","v":3.678427782267967},{"$f":"IF(ISERROR(Dados!S109),\"-\",Dados!S109)","v":4.8933949680267865},{"$f":"IF(ISERROR(Dados!T109),\"-\",Dados!T109)","v":28.206236176699143},{"$f":"IF(ISERROR(Dados!U109),\"-\",Dados!U109)","v":0.19641800000000001},{"$f":"IF(ISERROR(Dados!V109),\"-\",Dados!V109)","v":3.0844E-2},{"$f":"IF(ISERROR(Dados!W109),\"-\",Dados!W109)","v":1466.3},{"$f":"IF(ISERROR(Dados!X109),\"-\",Dados!X109)","v":1824.1},{"$f":"IF(ISERROR(Dados!Y109),\"-\",Dados!Y109)","v":1824.1},{"$f":"IF(ISERROR(Dados!Z109),\"-\",Dados!Z109)","v":20.827359245655394},{"$f":"IF(ISERROR(Dados!AA109),\"-\",Dados!AA109)","v":604.15},{"$f":"IF(ISERROR(Dados!AB109),\"-\",Dados!AB109)","v":1.6004414426251744E-2},{"$f":"IF(ISERROR(Dados!AC109),\"-\",Dados!AC109)","v":-2},{"$f":"IF(ISERROR(Dados!AD109),\"-\",Dados!AD109)","v":-0.5},{"$f":"IF(ISERROR(Dados!AE109),\"-\",Dados!AE109)","v":"-"},{"$f":"IF(ISERROR(Dados!AF109),\"-\",Dados!AF109)","v":"WEGE3"},{"$f":"IF(ISERROR(Dados!AG109),\"-\",Dados!AG109)","v":1824.1}]
[{"$f":"IF(ISERROR(Dados!A110),\"-\",Dados!A110)","v":"ROMI3"},{"$f":"IF(ISERROR(Dados!B110),\"-\",Dados!B110)","v":"Máquinas Industriais"},{"$f":"IF(ISERROR(Dados!C110),\"-\",Dados!C110)","v":"Inds Romi"},{"$f":"IF(ISERROR(Dados!D110),\"-\",Dados!D110)","v":10.96},{"$f":"IF(ISERROR(Dados!E110),\"-\",Dados!E110)","v":62.857999999999997},{"$f":"IF(ISERROR(Dados!F110),\"-\",Dados!F110)","v":688.92},{"$f":"IF(ISERROR(Dados!G110),\"-\",Dados!G110)","v":695.98},{"$f":"IF(ISERROR(Dados!H110),\"-\",Dados!H110)","v":672.87},{"$f":"IF(ISERROR(Dados!I110),\"-\",Dados!I110)","v":743.46},{"$f":"IF(ISERROR(Dados!J110),\"-\",Dados!J110)","v":37.659999999999997},{"$f":"IF(ISERROR(Dados!K110),\"-\",Dados!K110)","v":1.8},{"$f":"IF(ISERROR(Dados!L110),\"-\",Dados!L110)","v":47.2},{"$f":"IF(ISERROR(Dados!M110),\"-\",Dados!M110)","v":63.09},{"$f":"IF(ISERROR(Dados!N110),\"-\",Dados!N110)","v":84},{"$f":"IF(ISERROR(Dados!O110),\"-\",Dados!O110)","v":37.659999999999997},{"$f":"IF(ISERROR(Dados!P110),\"-\",Dados!P110)","v":84},{"$f":"IF(ISERROR(Dados!Q110),\"-\",Dados!Q110)","v":1.3363454134716346},{"$f":"IF(ISERROR(Dados!R110),\"-\",Dados!R110)","v":11.072258105571288},{"$f":"IF(ISERROR(Dados!S110),\"-\",Dados!S110)","v":0.98986131785396136},{"$f":"IF(ISERROR(Dados!T110),\"-\",Dados!T110)","v":8.2014723809523815},{"$f":"IF(ISERROR(Dados!U110),\"-\",Dados!U110)","v":0.13092499999999999},{"$f":"IF(ISERROR(Dados!V110),\"-\",Dados!V110)","v":0.30486099999999999},{"$f":"IF(ISERROR(Dados!W110),\"-\",Dados!W110)","v":81.5},{"$f":"IF(ISERROR(Dados!X110),\"-\",Dados!X110)","v":79.3},{"$f":"IF(ISERROR(Dados!Y110),\"-\",Dados!Y110)","v":79.3},{"$f":"IF(ISERROR(Dados!Z110),\"-\",Dados!Z110)","v":11.369382093316521},{"$f":"IF(ISERROR(Dados!AA110),\"-\",Dados!AA110)","v":27.3},{"$f":"IF(ISERROR(Dados!AB110),\"-\",Dados!AB110)","v":3.9627242640654939E-2},{"$f":"IF(ISERROR(Dados!AC110),\"-\",Dados!AC110)","v":0.6},{"$f":"IF(ISERROR(Dados!AD110),\"-\",Dados!AD110)","v":54.9},{"$f":"IF(ISERROR(Dados!AE110),\"-\",Dados!AE110)","v":"-"},{"$f":"IF(ISERROR(Dados!AF110),\"-\",Dados!AF110)","v":"ROMI3"},{"$f":"IF(ISERROR(Dados!AG110),\"-\",Dados!AG110)","v":79.3}]
[{"$f":"IF(ISERROR(Dados!A111),\"-\",Dados!A111)","v":"FRIO3"},{"$f":"IF(ISERROR(Dados!B111),\"-\",Dados!B111)","v":"Máquinas Industriais"},{"$f":"IF(ISERROR(Dados!C111),\"-\",Dados!C111)","v":"Metalfrio"},{"$f":"IF(ISERROR(Dados!D111),\"-\",Dados!D111)","v":47.62},{"$f":"IF(ISERROR(Dados!E111),\"-\",Dados!E111)","v":4.1070000000000002},{"$f":"IF(ISERROR(Dados!F111),\"-\",Dados!F111)","v":195.56},{"$f":"IF(ISERROR(Dados!G111),\"-\",Dados!G111)","v":37.76},{"$f":"IF(ISERROR(Dados!H111),\"-\",Dados!H111)","v":985.75},{"$f":"IF(ISERROR(Dados!I111),\"-\",Dados!I111)","v":1196.9000000000001},{"$f":"IF(ISERROR(Dados!J111),\"-\",Dados!J111)","v":-23.92},{"$f":"IF(ISERROR(Dados!K111),\"-\",Dados!K111)","v":-13.91},{"$f":"IF(ISERROR(Dados!L111),\"-\",Dados!L111)","v":-33.71},{"$f":"IF(ISERROR(Dados!M111),\"-\",Dados!M111)","v":-26.42},{"$f":"IF(ISERROR(Dados!N111),\"-\",Dados!N111)","v":-18.47},{"$f":"IF(ISERROR(Dados!O111),\"-\",Dados!O111)","v":-23.92},{"$f":"IF(ISERROR(Dados!P111),\"-\",Dados!P111)","v":-18.47},{"$f":"IF(ISERROR(Dados!Q111),\"-\",Dados!Q111)","v":-4.4971999026053071},{"$f":"IF(ISERROR(Dados!R111),\"-\",Dados!R111)","v":9.1940589237886527},{"$f":"IF(ISERROR(Dados!S111),\"-\",Dados!S111)","v":5.1794316737288133},{"$f":"IF(ISERROR(Dados!T111),\"-\",Dados!T111)","v":"-"},{"$f":"IF(ISERROR(Dados!U111),\"-\",Dados!U111)","v":-5.5087000000000004E-2},{"$f":"IF(ISERROR(Dados!V111),\"-\",Dados!V111)","v":3.8220290000000001},{"$f":"IF(ISERROR(Dados!W111),\"-\",Dados!W111)","v":101.5},{"$f":"IF(ISERROR(Dados!X111),\"-\",Dados!X111)","v":117.8},{"$f":"IF(ISERROR(Dados!Y111),\"-\",Dados!Y111)","v":117.8},{"$f":"IF(ISERROR(Dados!Z111),\"-\",Dados!Z111)","v":4.4973259762309006},{"$f":"IF(ISERROR(Dados!AA111),\"-\",Dados!AA111)","v":"-"},{"$f":"IF(ISERROR(Dados!AB111),\"-\",Dados!AB111)","v":"-"},{"$f":"IF(ISERROR(Dados!AC111),\"-\",Dados!AC111)","v":-19.3},{"$f":"IF(ISERROR(Dados!AD111),\"-\",Dados!AD111)","v":13.4},{"$f":"IF(ISERROR(Dados!AE111),\"-\",Dados!AE111)","v":0.99829559289018732},{"$f":"IF(ISERROR(Dados!AF111),\"-\",Dados!AF111)","v":"FRIO3"},{"$f":"IF(ISERROR(Dados!AG111),\"-\",Dados!AG111)","v":117.8}]
[{"$f":"IF(ISERROR(Dados!A112),\"-\",Dados!A112)","v":"BDLL4"},{"$f":"IF(ISERROR(Dados!B112),\"-\",Dados!B112)","v":"Máquinas Industriais"},{"$f":"IF(ISERROR(Dados!C112),\"-\",Dados!C112)","v":"Bardella"},{"$f":"IF(ISERROR(Dados!D112),\"-\",Dados!D112)","v":13.9},{"$f":"IF(ISERROR(Dados!E112),\"-\",Dados!E112)","v":1.6},{"$f":"IF(ISERROR(Dados!F112),\"-\",Dados!F112)","v":22.24},{"$f":"IF(ISERROR(Dados!G112),\"-\",Dados!G112)","v":126.62},{"$f":"IF(ISERROR(Dados!H112),\"-\",Dados!H112)","v":136.63999999999999},{"$f":"IF(ISERROR(Dados!I112),\"-\",Dados!I112)","v":"-"},{"$f":"IF(ISERROR(Dados!J112),\"-\",Dados!J112)","v":-97.76},{"$f":"IF(ISERROR(Dados!K112),\"-\",Dados!K112)","v":-31.62},{"$f":"IF(ISERROR(Dados!L112),\"-\",Dados!L112)","v":-61.84},{"$f":"IF(ISERROR(Dados!M112),\"-\",Dados!M112)","v":-85.35},{"$f":"IF(ISERROR(Dados!N112),\"-\",Dados!N112)","v":"-"},{"$f":"IF(ISERROR(Dados!O112),\"-\",Dados!O112)","v":-97.76},{"$f":"IF(ISERROR(Dados!P112),\"-\",Dados!P112)","v":"-"},{"$f":"IF(ISERROR(Dados!Q112),\"-\",Dados!Q112)","v":-72.262500000000003},{"$f":"IF(ISERROR(Dados!R112),\"-\",Dados!R112)","v":79.137500000000003},{"$f":"IF(ISERROR(Dados!S112),\"-\",Dados!S112)","v":0.17564365818985941},{"$f":"IF(ISERROR(Dados!T112),\"-\",Dados!T112)","v":"-"},{"$f":"IF(ISERROR(Dados!U112),\"-\",Dados!U112)","v":-0.47607300000000002},{"$f":"IF(ISERROR(Dados!V112),\"-\",Dados!V112)","v":1.6460900000000001},{"$f":"IF(ISERROR(Dados!W112),\"-\",Dados!W112)","v":-47.7},{"$f":"IF(ISERROR(Dados!X112),\"-\",Dados!X112)","v":"-"},{"$f":"IF(ISERROR(Dados!Y112),\"-\",Dados!Y112)","v":-77.2},{"$f":"IF(ISERROR(Dados!Z112),\"-\",Dados!Z112)","v":-2.9878626943005182},{"$f":"IF(ISERROR(Dados!AA112),\"-\",Dados!AA112)","v":"-"},{"$f":"IF(ISERROR(Dados!AB112),\"-\",Dados!AB112)","v":"-"},{"$f":"IF(ISERROR(Dados!AC112),\"-\",Dados!AC112)","v":-2.7},{"$f":"IF(ISERROR(Dados!AD112),\"-\",Dados!AD112)","v":-53.3},{"$f":"IF(ISERROR(Dados!AE112),\"-\",Dados!AE112)","v":0.37499999999999994},{"$f":"IF(ISERROR(Dados!AF112),\"-\",Dados!AF112)","v":"BDLL4"},{"$f":"IF(ISERROR(Dados!AG112),\"-\",Dados!AG112)","v":-77.2}]
[{"$f":"IF(ISERROR(Dados!A113),\"-\",Dados!A113)","v":"IDNT3"},{"$f":"IF(ISERROR(Dados!B113),\"-\",Dados!B113)","v":"Outros"},{"$f":"IF(ISERROR(Dados!C113),\"-\",Dados!C113)","v":"Ideiasnet"},{"$f":"IF(ISERROR(Dados!D113),\"-\",Dados!D113)","v":2.98},{"$f":"IF(ISERROR(Dados!E113),\"-\",Dados!E113)","v":16.344000000000001},{"$f":"IF(ISERROR(Dados!F113),\"-\",Dados!F113)","v":48.71},{"$f":"IF(ISERROR(Dados!G113),\"-\",Dados!G113)","v":13.3},{"$f":"IF(ISERROR(Dados!H113),\"-\",Dados!H113)","v":0.49},{"$f":"IF(ISERROR(Dados!I113),\"-\",Dados!I113)","v":"-"},{"$f":"IF(ISERROR(Dados!J113),\"-\",Dados!J113)","v":18.84},{"$f":"IF(ISERROR(Dados!K113),\"-\",Dados!K113)","v":-1.7},{"$f":"IF(ISERROR(Dados!L113),\"-\",Dados!L113)","v":2.99},{"$f":"IF(ISERROR(Dados!M113),\"-\",Dados!M113)","v":2.27},{"$f":"IF(ISERROR(Dados!N113),\"-\",Dados!N113)","v":11.3},{"$f":"IF(ISERROR(Dados!O113),\"-\",Dados!O113)","v":18.84},{"$f":"IF(ISERROR(Dados!P113),\"-\",Dados!P113)","v":11.3},{"$f":"IF(ISERROR(Dados!Q113),\"-\",Dados!Q113)","v":0.69138521781693585},{"$f":"IF(ISERROR(Dados!R113),\"-\",Dados!R113)","v":0.81375428291727847},{"$f":"IF(ISERROR(Dados!S113),\"-\",Dados!S113)","v":3.6620390977443611},{"$f":"IF(ISERROR(Dados!T113),\"-\",Dados!T113)","v":4.3101876106194688},{"$f":"IF(ISERROR(Dados!U113),\"-\",Dados!U113)","v":4.7052459999999998},{"$f":"IF(ISERROR(Dados!V113),\"-\",Dados!V113)","v":-0.27032699999999998},{"$f":"IF(ISERROR(Dados!W113),\"-\",Dados!W113)","v":23.2},{"$f":"IF(ISERROR(Dados!X113),\"-\",Dados!X113)","v":9.6},{"$f":"IF(ISERROR(Dados!Y113),\"-\",Dados!Y113)","v":9.6},{"$f":"IF(ISERROR(Dados!Z113),\"-\",Dados!Z113)","v":4.6995833333333339},{"$f":"IF(ISERROR(Dados!AA113),\"-\",Dados!AA113)","v":"-"},{"$f":"IF(ISERROR(Dados!AB113),\"-\",Dados!AB113)","v":"-"},{"$f":"IF(ISERROR(Dados!AC113),\"-\",Dados!AC113)","v":-6.9},{"$f":"IF(ISERROR(Dados!AD113),\"-\",Dados!AD113)","v":-71.3},{"$f":"IF(ISERROR(Dados!AE113),\"-\",Dados!AE113)","v":0.9973078805677924},{"$f":"IF(ISERROR(Dados!AF113),\"-\",Dados!AF113)","v":"IDNT3"},{"$f":"IF(ISERROR(Dados!AG113),\"-\",Dados!AG113)","v":9.6}]
[{"$f":"IF(ISERROR(Dados!A114),\"-\",Dados!A114)","v":"HAPV3"},{"$f":"IF(ISERROR(Dados!B114),\"-\",Dados!B114)","v":"Outros"},{"$f":"IF(ISERROR(Dados!C114),\"-\",Dados!C114)","v":"Hapvida"},{"$f":"IF(ISERROR(Dados!D114),\"-\",Dados!D114)","v":30.76},{"$f":"IF(ISERROR(Dados!E114),\"-\",Dados!E114)","v":671.95899999999995},{"$f":"IF(ISERROR(Dados!F114),\"-\",Dados!F114)","v":20669.45},{"$f":"IF(ISERROR(Dados!G114),\"-\",Dados!G114)","v":3602.54},{"$f":"IF(ISERROR(Dados!H114),\"-\",Dados!H114)","v":3847.98},{"$f":"IF(ISERROR(Dados!I114),\"-\",Dados!I114)","v":4575.8999999999996},{"$f":"IF(ISERROR(Dados!J114),\"-\",Dados!J114)","v":648.77},{"$f":"IF(ISERROR(Dados!K114),\"-\",Dados!K114)","v":213.65},{"$f":"IF(ISERROR(Dados!L114),\"-\",Dados!L114)","v":363.35},{"$f":"IF(ISERROR(Dados!M114),\"-\",Dados!M114)","v":553.27},{"$f":"IF(ISERROR(Dados!N114),\"-\",Dados!N114)","v":787.47},{"$f":"IF(ISERROR(Dados!O114),\"-\",Dados!O114)","v":648.77},{"$f":"IF(ISERROR(Dados!P114),\"-\",Dados!P114)","v":787.47},{"$f":"IF(ISERROR(Dados!Q114),\"-\",Dados!Q114)","v":1.1719018571073534},{"$f":"IF(ISERROR(Dados!R114),\"-\",Dados!R114)","v":5.3612497191048867},{"$f":"IF(ISERROR(Dados!S114),\"-\",Dados!S114)","v":5.7374682418515821},{"$f":"IF(ISERROR(Dados!T114),\"-\",Dados!T114)","v":26.247931781528184},{"$f":"IF(ISERROR(Dados!U114),\"-\",Dados!U114)","v":1.6701889999999999},{"$f":"IF(ISERROR(Dados!V114),\"-\",Dados!V114)","v":-0.246224},{"$f":"IF(ISERROR(Dados!W114),\"-\",Dados!W114)","v":824.4},{"$f":"IF(ISERROR(Dados!X114),\"-\",Dados!X114)","v":913},{"$f":"IF(ISERROR(Dados!Y114),\"-\",Dados!Y114)","v":913},{"$f":"IF(ISERROR(Dados!Z114),\"-\",Dados!Z114)","v":21.666596933187293},{"$f":"IF(ISERROR(Dados!AA114),\"-\",Dados!AA114)","v":822.27},{"$f":"IF(ISERROR(Dados!AB114),\"-\",Dados!AB114)","v":3.9781900340841191E-2},{"$f":"IF(ISERROR(Dados!AC114),\"-\",Dados!AC114)","v":-5.6},{"$f":"IF(ISERROR(Dados!AD114),\"-\",Dados!AD114)","v":"-"},{"$f":"IF(ISERROR(Dados!AE114),\"-\",Dados!AE114)","v":"-"},{"$f":"IF(ISERROR(Dados!AF114),\"-\",Dados!AF114)","v":"HAPV3"},{"$f":"IF(ISERROR(Dados!AG114),\"-\",Dados!AG114)","v":913}]
[{"$f":"IF(ISERROR(Dados!A115),\"-\",Dados!A115)","v":"MPLU3"},{"$f":"IF(ISERROR(Dados!B115),\"-\",Dados!B115)","v":"Outros"},{"$f":"IF(ISERROR(Dados!C115),\"-\",Dados!C115)","v":"Multiplus"},{"$f":"IF(ISERROR(Dados!D115),\"-\",Dados!D115)","v":26.84},{"$f":"IF(ISERROR(Dados!E115),\"-\",Dados!E115)","v":162.02099999999999},{"$f":"IF(ISERROR(Dados!F115),\"-\",Dados!F115)","v":4348.6400000000003},{"$f":"IF(ISERROR(Dados!G115),\"-\",Dados!G115)","v":250.28},{"$f":"IF(ISERROR(Dados!H115),\"-\",Dados!H115)","v":2309.77},{"$f":"IF(ISERROR(Dados!I115),\"-\",Dados!I115)","v":632.26},{"$f":"IF(ISERROR(Dados!J115),\"-\",Dados!J115)","v":517.20000000000005},{"$f":"IF(ISERROR(Dados!K115),\"-\",Dados!K115)","v":98.19},{"$f":"IF(ISERROR(Dados!L115),\"-\",Dados!L115)","v":171.96},{"$f":"IF(ISERROR(Dados!M115),\"-\",Dados!M115)","v":236.86},{"$f":"IF(ISERROR(Dados!N115),\"-\",Dados!N115)","v":356.4},{"$f":"IF(ISERROR(Dados!O115),\"-\",Dados!O115)","v":517.20000000000005},{"$f":"IF(ISERROR(Dados!P115),\"-\",Dados!P115)","v":356.4},{"$f":"IF(ISERROR(Dados!Q115),\"-\",Dados!Q115)","v":2.1997148517784733},{"$f":"IF(ISERROR(Dados!R115),\"-\",Dados!R115)","v":1.5447380277865217},{"$f":"IF(ISERROR(Dados!S115),\"-\",Dados!S115)","v":17.375114431836341},{"$f":"IF(ISERROR(Dados!T115),\"-\",Dados!T115)","v":12.201581481481481},{"$f":"IF(ISERROR(Dados!U115),\"-\",Dados!U115)","v":1.4865010000000001},{"$f":"IF(ISERROR(Dados!V115),\"-\",Dados!V115)","v":-4.4181210000000002},{"$f":"IF(ISERROR(Dados!W115),\"-\",Dados!W115)","v":610.4},{"$f":"IF(ISERROR(Dados!X115),\"-\",Dados!X115)","v":444.5},{"$f":"IF(ISERROR(Dados!Y115),\"-\",Dados!Y115)","v":444.5},{"$f":"IF(ISERROR(Dados!Z115),\"-\",Dados!Z115)","v":7.2955613048368964},{"$f":"IF(ISERROR(Dados!AA115),\"-\",Dados!AA115)","v":340.77},{"$f":"IF(ISERROR(Dados!AB115),\"-\",Dados!AB115)","v":7.8362430553000462E-2},{"$f":"IF(ISERROR(Dados!AC115),\"-\",Dados!AC115)","v":0.6},{"$f":"IF(ISERROR(Dados!AD115),\"-\",Dados!AD115)","v":-17.600000000000001},{"$f":"IF(ISERROR(Dados!AE115),\"-\",Dados!AE115)","v":"-"},{"$f":"IF(ISERROR(Dados!AF115),\"-\",Dados!AF115)","v":"MPLU3"},{"$f":"IF(ISERROR(Dados!AG115),\"-\",Dados!AG115)","v":444.5}]
[{"$f":"IF(ISERROR(Dados!A116),\"-\",Dados!A116)","v":"SMLS3"},{"$f":"IF(ISERROR(Dados!B116),\"-\",Dados!B116)","v":"Outros"},{"$f":"IF(ISERROR(Dados!C116),\"-\",Dados!C116)","v":"Smiles"},{"$f":"IF(ISERROR(Dados!D116),\"-\",Dados!D116)","v":47.7},{"$f":"IF(ISERROR(Dados!E116),\"-\",Dados!E116)","v":124.008},{"$f":"IF(ISERROR(Dados!F116),\"-\",Dados!F116)","v":5915.18},{"$f":"IF(ISERROR(Dados!G116),\"-\",Dados!G116)","v":1014.23},{"$f":"IF(ISERROR(Dados!H116),\"-\",Dados!H116)","v":1804.13},{"$f":"IF(ISERROR(Dados!I116),\"-\",Dados!I116)","v":987.44},{"$f":"IF(ISERROR(Dados!J116),\"-\",Dados!J116)","v":760.62},{"$f":"IF(ISERROR(Dados!K116),\"-\",Dados!K116)","v":155.01},{"$f":"IF(ISERROR(Dados!L116),\"-\",Dados!L116)","v":269.17},{"$f":"IF(ISERROR(Dados!M116),\"-\",Dados!M116)","v":481.28},{"$f":"IF(ISERROR(Dados!N116),\"-\",Dados!N116)","v":645.84},{"$f":"IF(ISERROR(Dados!O116),\"-\",Dados!O116)","v":760.62},{"$f":"IF(ISERROR(Dados!P116),\"-\",Dados!P116)","v":645.84},{"$f":"IF(ISERROR(Dados!Q116),\"-\",Dados!Q116)","v":5.2080510934778408},{"$f":"IF(ISERROR(Dados!R116),\"-\",Dados!R116)","v":8.1787465324817763},{"$f":"IF(ISERROR(Dados!S116),\"-\",Dados!S116)","v":5.8321895428058719},{"$f":"IF(ISERROR(Dados!T116),\"-\",Dados!T116)","v":9.1588963210702339},{"$f":"IF(ISERROR(Dados!U116),\"-\",Dados!U116)","v":0.74088300000000007},{"$f":"IF(ISERROR(Dados!V116),\"-\",Dados!V116)","v":-0.66583499999999995},{"$f":"IF(ISERROR(Dados!W116),\"-\",Dados!W116)","v":663.4},{"$f":"IF(ISERROR(Dados!X116),\"-\",Dados!X116)","v":759.3},{"$f":"IF(ISERROR(Dados!Y116),\"-\",Dados!Y116)","v":759.3},{"$f":"IF(ISERROR(Dados!Z116),\"-\",Dados!Z116)","v":6.900921901751615},{"$f":"IF(ISERROR(Dados!AA116),\"-\",Dados!AA116)","v":462.7},{"$f":"IF(ISERROR(Dados!AB116),\"-\",Dados!AB116)","v":7.8222471674572872E-2},{"$f":"IF(ISERROR(Dados!AC116),\"-\",Dados!AC116)","v":-0.6},{"$f":"IF(ISERROR(Dados!AD116),\"-\",Dados!AD116)","v":-33.6},{"$f":"IF(ISERROR(Dados!AE116),\"-\",Dados!AE116)","v":0.99993548803303012},{"$f":"IF(ISERROR(Dados!AF116),\"-\",Dados!AF116)","v":"SMLS3"},{"$f":"IF(ISERROR(Dados!AG116),\"-\",Dados!AG116)","v":759.3}]
[{"$f":"IF(ISERROR(Dados!A117),\"-\",Dados!A117)","v":"LCAM3"},{"$f":"IF(ISERROR(Dados!B117),\"-\",Dados!B117)","v":"Outros"},{"$f":"IF(ISERROR(Dados!C117),\"-\",Dados!C117)","v":"Locamerica"},{"$f":"IF(ISERROR(Dados!D117),\"-\",Dados!D117)","v":38.99},{"$f":"IF(ISERROR(Dados!E117),\"-\",Dados!E117)","v":146.74700000000001},{"$f":"IF(ISERROR(Dados!F117),\"-\",Dados!F117)","v":5721.68},{"$f":"IF(ISERROR(Dados!G117),\"-\",Dados!G117)","v":2565.5500000000002},{"$f":"IF(ISERROR(Dados!H117),\"-\",Dados!H117)","v":1094.6099999999999},{"$f":"IF(ISERROR(Dados!I117),\"-\",Dados!I117)","v":2917.2},{"$f":"IF(ISERROR(Dados!J117),\"-\",Dados!J117)","v":60.6},{"$f":"IF(ISERROR(Dados!K117),\"-\",Dados!K117)","v":18.25},{"$f":"IF(ISERROR(Dados!L117),\"-\",Dados!L117)","v":66.22},{"$f":"IF(ISERROR(Dados!M117),\"-\",Dados!M117)","v":126.93},{"$f":"IF(ISERROR(Dados!N117),\"-\",Dados!N117)","v":189.2},{"$f":"IF(ISERROR(Dados!O117),\"-\",Dados!O117)","v":60.6},{"$f":"IF(ISERROR(Dados!P117),\"-\",Dados!P117)","v":189.2},{"$f":"IF(ISERROR(Dados!Q117),\"-\",Dados!Q117)","v":1.2892938186129868},{"$f":"IF(ISERROR(Dados!R117),\"-\",Dados!R117)","v":17.482810551493387},{"$f":"IF(ISERROR(Dados!S117),\"-\",Dados!S117)","v":2.2301906140983414},{"$f":"IF(ISERROR(Dados!T117),\"-\",Dados!T117)","v":30.241361152219881},{"$f":"IF(ISERROR(Dados!U117),\"-\",Dados!U117)","v":0.39149500000000004},{"$f":"IF(ISERROR(Dados!V117),\"-\",Dados!V117)","v":0.75214100000000006},{"$f":"IF(ISERROR(Dados!W117),\"-\",Dados!W117)","v":361.3},{"$f":"IF(ISERROR(Dados!X117),\"-\",Dados!X117)","v":840.7},{"$f":"IF(ISERROR(Dados!Y117),\"-\",Dados!Y117)","v":840.7},{"$f":"IF(ISERROR(Dados!Z117),\"-\",Dados!Z117)","v":9.101145474009753},{"$f":"IF(ISERROR(Dados!AA117),\"-\",Dados!AA117)","v":75.8},{"$f":"IF(ISERROR(Dados!AB117),\"-\",Dados!AB117)","v":1.3247857272689139E-2},{"$f":"IF(ISERROR(Dados!AC117),\"-\",Dados!AC117)","v":-0.3},{"$f":"IF(ISERROR(Dados!AD117),\"-\",Dados!AD117)","v":111.8},{"$f":"IF(ISERROR(Dados!AE117),\"-\",Dados!AE117)","v":0.79660912999925038},{"$f":"IF(ISERROR(Dados!AF117),\"-\",Dados!AF117)","v":"LCAM3"},{"$f":"IF(ISERROR(Dados!AG117),\"-\",Dados!AG117)","v":840.7}]
[{"$f":"IF(ISERROR(Dados!A118),\"-\",Dados!A118)","v":"ODPV3"},{"$f":"IF(ISERROR(Dados!B118),\"-\",Dados!B118)","v":"Outros"},{"$f":"IF(ISERROR(Dados!C118),\"-\",Dados!C118)","v":"Odontoprev"},{"$f":"IF(ISERROR(Dados!D118),\"-\",Dados!D118)","v":16.399999999999999},{"$f":"IF(ISERROR(Dados!E118),\"-\",Dados!E118)","v":530.14200000000005},{"$f":"IF(ISERROR(Dados!F118),\"-\",Dados!F118)","v":8694.32},{"$f":"IF(ISERROR(Dados!G118),\"-\",Dados!G118)","v":1027.46},{"$f":"IF(ISERROR(Dados!H118),\"-\",Dados!H118)","v":1437.28},{"$f":"IF(ISERROR(Dados!I118),\"-\",Dados!I118)","v":1591.84},{"$f":"IF(ISERROR(Dados!J118),\"-\",Dados!J118)","v":502.92},{"$f":"IF(ISERROR(Dados!K118),\"-\",Dados!K118)","v":81.97},{"$f":"IF(ISERROR(Dados!L118),\"-\",Dados!L118)","v":142.31},{"$f":"IF(ISERROR(Dados!M118),\"-\",Dados!M118)","v":207.35},{"$f":"IF(ISERROR(Dados!N118),\"-\",Dados!N118)","v":284.79000000000002},{"$f":"IF(ISERROR(Dados!O118),\"-\",Dados!O118)","v":502.92},{"$f":"IF(ISERROR(Dados!P118),\"-\",Dados!P118)","v":284.79000000000002},{"$f":"IF(ISERROR(Dados!Q118),\"-\",Dados!Q118)","v":0.53719569473839079},{"$f":"IF(ISERROR(Dados!R118),\"-\",Dados!R118)","v":1.9380845132058957},{"$f":"IF(ISERROR(Dados!S118),\"-\",Dados!S118)","v":8.4619632881085387},{"$f":"IF(ISERROR(Dados!T118),\"-\",Dados!T118)","v":30.528911829769303},{"$f":"IF(ISERROR(Dados!U118),\"-\",Dados!U118)","v":0.30787199999999998},{"$f":"IF(ISERROR(Dados!V118),\"-\",Dados!V118)","v":-0.46674599999999999},{"$f":"IF(ISERROR(Dados!W118),\"-\",Dados!W118)","v":584.1},{"$f":"IF(ISERROR(Dados!X118),\"-\",Dados!X118)","v":397.5},{"$f":"IF(ISERROR(Dados!Y118),\"-\",Dados!Y118)","v":397.5},{"$f":"IF(ISERROR(Dados!Z118),\"-\",Dados!Z118)","v":20.661091823899369},{"$f":"IF(ISERROR(Dados!AA118),\"-\",Dados!AA118)","v":86.72},{"$f":"IF(ISERROR(Dados!AB118),\"-\",Dados!AB118)","v":9.9743280670598743E-3},{"$f":"IF(ISERROR(Dados!AC118),\"-\",Dados!AC118)","v":-1},{"$f":"IF(ISERROR(Dados!AD118),\"-\",Dados!AD118)","v":5.4},{"$f":"IF(ISERROR(Dados!AE118),\"-\",Dados!AE118)","v":"-"},{"$f":"IF(ISERROR(Dados!AF118),\"-\",Dados!AF118)","v":"ODPV3"},{"$f":"IF(ISERROR(Dados!AG118),\"-\",Dados!AG118)","v":397.5}]
[{"$f":"IF(ISERROR(Dados!A119),\"-\",Dados!A119)","v":"RENT3"},{"$f":"IF(ISERROR(Dados!B119),\"-\",Dados!B119)","v":"Outros"},{"$f":"IF(ISERROR(Dados!C119),\"-\",Dados!C119)","v":"Localiza"},{"$f":"IF(ISERROR(Dados!D119),\"-\",Dados!D119)","v":33.06},{"$f":"IF(ISERROR(Dados!E119),\"-\",Dados!E119)","v":717.18499999999995},{"$f":"IF(ISERROR(Dados!F119),\"-\",Dados!F119)","v":23710.14},{"$f":"IF(ISERROR(Dados!G119),\"-\",Dados!G119)","v":3094.5},{"$f":"IF(ISERROR(Dados!H119),\"-\",Dados!H119)","v":6058.28},{"$f":"IF(ISERROR(Dados!I119),\"-\",Dados!I119)","v":7895.8},{"$f":"IF(ISERROR(Dados!J119),\"-\",Dados!J119)","v":505.68},{"$f":"IF(ISERROR(Dados!K119),\"-\",Dados!K119)","v":176.01},{"$f":"IF(ISERROR(Dados!L119),\"-\",Dados!L119)","v":317.91000000000003},{"$f":"IF(ISERROR(Dados!M119),\"-\",Dados!M119)","v":477.76},{"$f":"IF(ISERROR(Dados!N119),\"-\",Dados!N119)","v":659.21},{"$f":"IF(ISERROR(Dados!O119),\"-\",Dados!O119)","v":505.68},{"$f":"IF(ISERROR(Dados!P119),\"-\",Dados!P119)","v":659.21},{"$f":"IF(ISERROR(Dados!Q119),\"-\",Dados!Q119)","v":0.91916311690846864},{"$f":"IF(ISERROR(Dados!R119),\"-\",Dados!R119)","v":4.3147862824794165},{"$f":"IF(ISERROR(Dados!S119),\"-\",Dados!S119)","v":7.6620249151720792},{"$f":"IF(ISERROR(Dados!T119),\"-\",Dados!T119)","v":35.967500644711095},{"$f":"IF(ISERROR(Dados!U119),\"-\",Dados!U119)","v":0.253471},{"$f":"IF(ISERROR(Dados!V119),\"-\",Dados!V119)","v":1.6814310000000001},{"$f":"IF(ISERROR(Dados!W119),\"-\",Dados!W119)","v":1240.2},{"$f":"IF(ISERROR(Dados!X119),\"-\",Dados!X119)","v":1590.1},{"$f":"IF(ISERROR(Dados!Y119),\"-\",Dados!Y119)","v":1590.1},{"$f":"IF(ISERROR(Dados!Z119),\"-\",Dados!Z119)","v":18.183341928180617},{"$f":"IF(ISERROR(Dados!AA119),\"-\",Dados!AA119)","v":172.31},{"$f":"IF(ISERROR(Dados!AB119),\"-\",Dados!AB119)","v":7.2673548110639584E-3},{"$f":"IF(ISERROR(Dados!AC119),\"-\",Dados!AC119)","v":-4},{"$f":"IF(ISERROR(Dados!AD119),\"-\",Dados!AD119)","v":52.3},{"$f":"IF(ISERROR(Dados!AE119),\"-\",Dados!AE119)","v":0.93016446244692808},{"$f":"IF(ISERROR(Dados!AF119),\"-\",Dados!AF119)","v":"RENT3"},{"$f":"IF(ISERROR(Dados!AG119),\"-\",Dados!AG119)","v":1590.1}]
[{"$f":"IF(ISERROR(Dados!A120),\"-\",Dados!A120)","v":"GNDI3"},{"$f":"IF(ISERROR(Dados!B120),\"-\",Dados!B120)","v":"Outros"},{"$f":"IF(ISERROR(Dados!C120),\"-\",Dados!C120)","v":"Intermedica"},{"$f":"IF(ISERROR(Dados!D120),\"-\",Dados!D120)","v":32.799999999999997},{"$f":"IF(ISERROR(Dados!E120),\"-\",Dados!E120)","v":528.476},{"$f":"IF(ISERROR(Dados!F120),\"-\",Dados!F120)","v":17334},{"$f":"IF(ISERROR(Dados!G120),\"-\",Dados!G120)","v":2340.0700000000002},{"$f":"IF(ISERROR(Dados!H120),\"-\",Dados!H120)","v":5304.92},{"$f":"IF(ISERROR(Dados!I120),\"-\",Dados!I120)","v":6135.22},{"$f":"IF(ISERROR(Dados!J120),\"-\",Dados!J120)","v":238.17},{"$f":"IF(ISERROR(Dados!K120),\"-\",Dados!K120)","v":60.26},{"$f":"IF(ISERROR(Dados!L120),\"-\",Dados!L120)","v":111.54},{"$f":"IF(ISERROR(Dados!M120),\"-\",Dados!M120)","v":205.69},{"$f":"IF(ISERROR(Dados!N120),\"-\",Dados!N120)","v":334.07},{"$f":"IF(ISERROR(Dados!O120),\"-\",Dados!O120)","v":238.17},{"$f":"IF(ISERROR(Dados!P120),\"-\",Dados!P120)","v":334.07},{"$f":"IF(ISERROR(Dados!Q120),\"-\",Dados!Q120)","v":0.63213845094195387},{"$f":"IF(ISERROR(Dados!R120),\"-\",Dados!R120)","v":4.4279588855501482},{"$f":"IF(ISERROR(Dados!S120),\"-\",Dados!S120)","v":7.4074761866098013},{"$f":"IF(ISERROR(Dados!T120),\"-\",Dados!T120)","v":51.887367318226715},{"$f":"IF(ISERROR(Dados!U120),\"-\",Dados!U120)","v":0.24725000000000003},{"$f":"IF(ISERROR(Dados!V120),\"-\",Dados!V120)","v":-0.18528800000000001},{"$f":"IF(ISERROR(Dados!W120),\"-\",Dados!W120)","v":616.1},{"$f":"IF(ISERROR(Dados!X120),\"-\",Dados!X120)","v":744.8},{"$f":"IF(ISERROR(Dados!Y120),\"-\",Dados!Y120)","v":744.8},{"$f":"IF(ISERROR(Dados!Z120),\"-\",Dados!Z120)","v":22.69121240601504},{"$f":"IF(ISERROR(Dados!AA120),\"-\",Dados!AA120)","v":"-"},{"$f":"IF(ISERROR(Dados!AB120),\"-\",Dados!AB120)","v":"-"},{"$f":"IF(ISERROR(Dados!AC120),\"-\",Dados!AC120)","v":-0.8},{"$f":"IF(ISERROR(Dados!AD120),\"-\",Dados!AD120)","v":"-"},{"$f":"IF(ISERROR(Dados!AE120),\"-\",Dados!AE120)","v":"-"},{"$f":"IF(ISERROR(Dados!AF120),\"-\",Dados!AF120)","v":"GNDI3"},{"$f":"IF(ISERROR(Dados!AG120),\"-\",Dados!AG120)","v":744.8}]
[{"$f":"IF(ISERROR(Dados!A121),\"-\",Dados!A121)","v":"ESTC3"},{"$f":"IF(ISERROR(Dados!B121),\"-\",Dados!B121)","v":"Outros"},{"$f":"IF(ISERROR(Dados!C121),\"-\",Dados!C121)","v":"Estacio Part"},{"$f":"IF(ISERROR(Dados!D121),\"-\",Dados!D121)","v":26.6},{"$f":"IF(ISERROR(Dados!E121),\"-\",Dados!E121)","v":300.113},{"$f":"IF(ISERROR(Dados!F121),\"-\",Dados!F121)","v":7983.01},{"$f":"IF(ISERROR(Dados!G121),\"-\",Dados!G121)","v":2591.41},{"$f":"IF(ISERROR(Dados!H121),\"-\",Dados!H121)","v":3378.98},{"$f":"IF(ISERROR(Dados!I121),\"-\",Dados!I121)","v":3619.38},{"$f":"IF(ISERROR(Dados!J121),\"-\",Dados!J121)","v":424.59},{"$f":"IF(ISERROR(Dados!K121),\"-\",Dados!K121)","v":197.36},{"$f":"IF(ISERROR(Dados!L121),\"-\",Dados!L121)","v":434.25},{"$f":"IF(ISERROR(Dados!M121),\"-\",Dados!M121)","v":628.57000000000005},{"$f":"IF(ISERROR(Dados!N121),\"-\",Dados!N121)","v":644.87},{"$f":"IF(ISERROR(Dados!O121),\"-\",Dados!O121)","v":424.59},{"$f":"IF(ISERROR(Dados!P121),\"-\",Dados!P121)","v":644.87},{"$f":"IF(ISERROR(Dados!Q121),\"-\",Dados!Q121)","v":2.1487573014164667},{"$f":"IF(ISERROR(Dados!R121),\"-\",Dados!R121)","v":8.6347808991946362},{"$f":"IF(ISERROR(Dados!S121),\"-\",Dados!S121)","v":3.0805645575188798},{"$f":"IF(ISERROR(Dados!T121),\"-\",Dados!T121)","v":12.379248220571588},{"$f":"IF(ISERROR(Dados!U121),\"-\",Dados!U121)","v":0.23219799999999999},{"$f":"IF(ISERROR(Dados!V121),\"-\",Dados!V121)","v":-3.2099999999999994E-4},{"$f":"IF(ISERROR(Dados!W121),\"-\",Dados!W121)","v":737.8},{"$f":"IF(ISERROR(Dados!X121),\"-\",Dados!X121)","v":967.4},{"$f":"IF(ISERROR(Dados!Y121),\"-\",Dados!Y121)","v":967.4},{"$f":"IF(ISERROR(Dados!Z121),\"-\",Dados!Z121)","v":8.2511670456894777},{"$f":"IF(ISERROR(Dados!AA121),\"-\",Dados!AA121)","v":500.84},{"$f":"IF(ISERROR(Dados!AB121),\"-\",Dados!AB121)","v":6.2738240337917653E-2},{"$f":"IF(ISERROR(Dados!AC121),\"-\",Dados!AC121)","v":-3.4},{"$f":"IF(ISERROR(Dados!AD121),\"-\",Dados!AD121)","v":-13.2},{"$f":"IF(ISERROR(Dados!AE121),\"-\",Dados!AE121)","v":"-"},{"$f":"IF(ISERROR(Dados!AF121),\"-\",Dados!AF121)","v":"ESTC3"},{"$f":"IF(ISERROR(Dados!AG121),\"-\",Dados!AG121)","v":967.4}]
[{"$f":"IF(ISERROR(Dados!A122),\"-\",Dados!A122)","v":"PARD3"},{"$f":"IF(ISERROR(Dados!B122),\"-\",Dados!B122)","v":"Outros"},{"$f":"IF(ISERROR(Dados!C122),\"-\",Dados!C122)","v":"Ihpardini"},{"$f":"IF(ISERROR(Dados!D122),\"-\",Dados!D122)","v":20.3},{"$f":"IF(ISERROR(Dados!E122),\"-\",Dados!E122)","v":130.16900000000001},{"$f":"IF(ISERROR(Dados!F122),\"-\",Dados!F122)","v":2642.43},{"$f":"IF(ISERROR(Dados!G122),\"-\",Dados!G122)","v":605.62},{"$f":"IF(ISERROR(Dados!H122),\"-\",Dados!H122)","v":1117.04},{"$f":"IF(ISERROR(Dados!I122),\"-\",Dados!I122)","v":1204.71},{"$f":"IF(ISERROR(Dados!J122),\"-\",Dados!J122)","v":129.54},{"$f":"IF(ISERROR(Dados!K122),\"-\",Dados!K122)","v":29.53},{"$f":"IF(ISERROR(Dados!L122),\"-\",Dados!L122)","v":62.64},{"$f":"IF(ISERROR(Dados!M122),\"-\",Dados!M122)","v":96.72},{"$f":"IF(ISERROR(Dados!N122),\"-\",Dados!N122)","v":123.12},{"$f":"IF(ISERROR(Dados!O122),\"-\",Dados!O122)","v":129.54},{"$f":"IF(ISERROR(Dados!P122),\"-\",Dados!P122)","v":123.12},{"$f":"IF(ISERROR(Dados!Q122),\"-\",Dados!Q122)","v":0.9458473215588965},{"$f":"IF(ISERROR(Dados!R122),\"-\",Dados!R122)","v":4.6525670474536946},{"$f":"IF(ISERROR(Dados!S122),\"-\",Dados!S122)","v":4.3631826888147689},{"$f":"IF(ISERROR(Dados!T122),\"-\",Dados!T122)","v":21.46223765432099},{"$f":"IF(ISERROR(Dados!U122),\"-\",Dados!U122)","v":0.22945299999999999},{"$f":"IF(ISERROR(Dados!V122),\"-\",Dados!V122)","v":0.16231899999999999},{"$f":"IF(ISERROR(Dados!W122),\"-\",Dados!W122)","v":234.7},{"$f":"IF(ISERROR(Dados!X122),\"-\",Dados!X122)","v":226.1},{"$f":"IF(ISERROR(Dados!Y122),\"-\",Dados!Y122)","v":226.1},{"$f":"IF(ISERROR(Dados!Z122),\"-\",Dados!Z122)","v":12.122636001769129},{"$f":"IF(ISERROR(Dados!AA122),\"-\",Dados!AA122)","v":42.48},{"$f":"IF(ISERROR(Dados!AB122),\"-\",Dados!AB122)","v":1.6076111760765659E-2},{"$f":"IF(ISERROR(Dados!AC122),\"-\",Dados!AC122)","v":6.4},{"$f":"IF(ISERROR(Dados!AD122),\"-\",Dados!AD122)","v":-37.9},{"$f":"IF(ISERROR(Dados!AE122),\"-\",Dados!AE122)","v":"-"},{"$f":"IF(ISERROR(Dados!AF122),\"-\",Dados!AF122)","v":"PARD3"},{"$f":"IF(ISERROR(Dados!AG122),\"-\",Dados!AG122)","v":226.1}]
[{"$f":"IF(ISERROR(Dados!A123),\"-\",Dados!A123)","v":"FLRY3"},{"$f":"IF(ISERROR(Dados!B123),\"-\",Dados!B123)","v":"Outros"},{"$f":"IF(ISERROR(Dados!C123),\"-\",Dados!C123)","v":"Fleury"},{"$f":"IF(ISERROR(Dados!D123),\"-\",Dados!D123)","v":20.399999999999999},{"$f":"IF(ISERROR(Dados!E123),\"-\",Dados!E123)","v":316.113},{"$f":"IF(ISERROR(Dados!F123),\"-\",Dados!F123)","v":6448.71},{"$f":"IF(ISERROR(Dados!G123),\"-\",Dados!G123)","v":1749.96},{"$f":"IF(ISERROR(Dados!H123),\"-\",Dados!H123)","v":2383.0100000000002},{"$f":"IF(ISERROR(Dados!I123),\"-\",Dados!I123)","v":2664.46},{"$f":"IF(ISERROR(Dados!J123),\"-\",Dados!J123)","v":320.62},{"$f":"IF(ISERROR(Dados!K123),\"-\",Dados!K123)","v":96.43},{"$f":"IF(ISERROR(Dados!L123),\"-\",Dados!L123)","v":183.06},{"$f":"IF(ISERROR(Dados!M123),\"-\",Dados!M123)","v":273.39999999999998},{"$f":"IF(ISERROR(Dados!N123),\"-\",Dados!N123)","v":331.59},{"$f":"IF(ISERROR(Dados!O123),\"-\",Dados!O123)","v":320.62},{"$f":"IF(ISERROR(Dados!P123),\"-\",Dados!P123)","v":331.59},{"$f":"IF(ISERROR(Dados!Q123),\"-\",Dados!Q123)","v":1.0489603401315353},{"$f":"IF(ISERROR(Dados!R123),\"-\",Dados!R123)","v":5.5358685027189649},{"$f":"IF(ISERROR(Dados!S123),\"-\",Dados!S123)","v":3.6850586299115404},{"$f":"IF(ISERROR(Dados!T123),\"-\",Dados!T123)","v":19.447827739075361},{"$f":"IF(ISERROR(Dados!U123),\"-\",Dados!U123)","v":0.19430399999999998},{"$f":"IF(ISERROR(Dados!V123),\"-\",Dados!V123)","v":0.25731700000000002},{"$f":"IF(ISERROR(Dados!W123),\"-\",Dados!W123)","v":619.6},{"$f":"IF(ISERROR(Dados!X123),\"-\",Dados!X123)","v":692.5},{"$f":"IF(ISERROR(Dados!Y123),\"-\",Dados!Y123)","v":692.5},{"$f":"IF(ISERROR(Dados!Z123),\"-\",Dados!Z123)","v":9.9624606498194943},{"$f":"IF(ISERROR(Dados!AA123),\"-\",Dados!AA123)","v":303.20999999999998},{"$f":"IF(ISERROR(Dados!AB123),\"-\",Dados!AB123)","v":4.7018706066794751E-2},{"$f":"IF(ISERROR(Dados!AC123),\"-\",Dados!AC123)","v":5.6},{"$f":"IF(ISERROR(Dados!AD123),\"-\",Dados!AD123)","v":-25.7},{"$f":"IF(ISERROR(Dados!AE123),\"-\",Dados!AE123)","v":0.99995887546541906},{"$f":"IF(ISERROR(Dados!AF123),\"-\",Dados!AF123)","v":"FLRY3"},{"$f":"IF(ISERROR(Dados!AG123),\"-\",Dados!AG123)","v":692.5}]
[{"$f":"IF(ISERROR(Dados!A124),\"-\",Dados!A124)","v":"SAPR4"},{"$f":"IF(ISERROR(Dados!B124),\"-\",Dados!B124)","v":"Outros"},{"$f":"IF(ISERROR(Dados!C124),\"-\",Dados!C124)","v":"Sanepar"},{"$f":"IF(ISERROR(Dados!D124),\"-\",Dados!D124)","v":13.9},{"$f":"IF(ISERROR(Dados!E124),\"-\",Dados!E124)","v":503.73500000000001},{"$f":"IF(ISERROR(Dados!F124),\"-\",Dados!F124)","v":7967.41},{"$f":"IF(ISERROR(Dados!G124),\"-\",Dados!G124)","v":5717.19},{"$f":"IF(ISERROR(Dados!H124),\"-\",Dados!H124)","v":3869.4},{"$f":"IF(ISERROR(Dados!I124),\"-\",Dados!I124)","v":4162.21},{"$f":"IF(ISERROR(Dados!J124),\"-\",Dados!J124)","v":686.17},{"$f":"IF(ISERROR(Dados!K124),\"-\",Dados!K124)","v":186.91},{"$f":"IF(ISERROR(Dados!L124),\"-\",Dados!L124)","v":440.48},{"$f":"IF(ISERROR(Dados!M124),\"-\",Dados!M124)","v":572.47},{"$f":"IF(ISERROR(Dados!N124),\"-\",Dados!N124)","v":892.49},{"$f":"IF(ISERROR(Dados!O124),\"-\",Dados!O124)","v":686.17},{"$f":"IF(ISERROR(Dados!P124),\"-\",Dados!P124)","v":892.49},{"$f":"IF(ISERROR(Dados!Q124),\"-\",Dados!Q124)","v":1.7717450643691623},{"$f":"IF(ISERROR(Dados!R124),\"-\",Dados!R124)","v":11.349598499210893},{"$f":"IF(ISERROR(Dados!S124),\"-\",Dados!S124)","v":1.2247129271547736},{"$f":"IF(ISERROR(Dados!T124),\"-\",Dados!T124)","v":7.8453724971708372},{"$f":"IF(ISERROR(Dados!U124),\"-\",Dados!U124)","v":0.17320900000000003},{"$f":"IF(ISERROR(Dados!V124),\"-\",Dados!V124)","v":0.42760399999999998},{"$f":"IF(ISERROR(Dados!W124),\"-\",Dados!W124)","v":1383.5},{"$f":"IF(ISERROR(Dados!X124),\"-\",Dados!X124)","v":1642},{"$f":"IF(ISERROR(Dados!Y124),\"-\",Dados!Y124)","v":1642},{"$f":"IF(ISERROR(Dados!Z124),\"-\",Dados!Z124)","v":6.341110840438489},{"$f":"IF(ISERROR(Dados!AA124),\"-\",Dados!AA124)","v":298.39999999999998},{"$f":"IF(ISERROR(Dados!AB124),\"-\",Dados!AB124)","v":3.7452572416883274E-2},{"$f":"IF(ISERROR(Dados!AC124),\"-\",Dados!AC124)","v":1.6},{"$f":"IF(ISERROR(Dados!AD124),\"-\",Dados!AD124)","v":31.2},{"$f":"IF(ISERROR(Dados!AE124),\"-\",Dados!AE124)","v":0.33331017300763299},{"$f":"IF(ISERROR(Dados!AF124),\"-\",Dados!AF124)","v":"SAPR4"},{"$f":"IF(ISERROR(Dados!AG124),\"-\",Dados!AG124)","v":1642}]
[{"$f":"IF(ISERROR(Dados!A125),\"-\",Dados!A125)","v":"SAPR11"},{"$f":"IF(ISERROR(Dados!B125),\"-\",Dados!B125)","v":"Outros"},{"$f":"IF(ISERROR(Dados!C125),\"-\",Dados!C125)","v":"Sanepar"},{"$f":"IF(ISERROR(Dados!D125),\"-\",Dados!D125)","v":74.95},{"$f":"IF(ISERROR(Dados!E125),\"-\",Dados!E125)","v":503.73500000000001},{"$f":"IF(ISERROR(Dados!F125),\"-\",Dados!F125)","v":7967.41},{"$f":"IF(ISERROR(Dados!G125),\"-\",Dados!G125)","v":5717.19},{"$f":"IF(ISERROR(Dados!H125),\"-\",Dados!H125)","v":3869.4},{"$f":"IF(ISERROR(Dados!I125),\"-\",Dados!I125)","v":4162.21},{"$f":"IF(ISERROR(Dados!J125),\"-\",Dados!J125)","v":686.17},{"$f":"IF(ISERROR(Dados!K125),\"-\",Dados!K125)","v":186.91},{"$f":"IF(ISERROR(Dados!L125),\"-\",Dados!L125)","v":440.48},{"$f":"IF(ISERROR(Dados!M125),\"-\",Dados!M125)","v":572.47},{"$f":"IF(ISERROR(Dados!N125),\"-\",Dados!N125)","v":892.49},{"$f":"IF(ISERROR(Dados!O125),\"-\",Dados!O125)","v":686.17},{"$f":"IF(ISERROR(Dados!P125),\"-\",Dados!P125)","v":892.49},{"$f":"IF(ISERROR(Dados!Q125),\"-\",Dados!Q125)","v":1.7717450643691623},{"$f":"IF(ISERROR(Dados!R125),\"-\",Dados!R125)","v":11.349598499210893},{"$f":"IF(ISERROR(Dados!S125),\"-\",Dados!S125)","v":6.6037578338309562},{"$f":"IF(ISERROR(Dados!T125),\"-\",Dados!T125)","v":42.302925803090233},{"$f":"IF(ISERROR(Dados!U125),\"-\",Dados!U125)","v":0.17320900000000003},{"$f":"IF(ISERROR(Dados!V125),\"-\",Dados!V125)","v":0.42760399999999998},{"$f":"IF(ISERROR(Dados!W125),\"-\",Dados!W125)","v":1383.5},{"$f":"IF(ISERROR(Dados!X125),\"-\",Dados!X125)","v":1642},{"$f":"IF(ISERROR(Dados!Y125),\"-\",Dados!Y125)","v":1642},{"$f":"IF(ISERROR(Dados!Z125),\"-\",Dados!Z125)","v":6.341110840438489},{"$f":"IF(ISERROR(Dados!AA125),\"-\",Dados!AA125)","v":298.39999999999998},{"$f":"IF(ISERROR(Dados!AB125),\"-\",Dados!AB125)","v":3.7452572416883274E-2},{"$f":"IF(ISERROR(Dados!AC125),\"-\",Dados!AC125)","v":-2.8},{"$f":"IF(ISERROR(Dados!AD125),\"-\",Dados!AD125)","v":37},{"$f":"IF(ISERROR(Dados!AE125),\"-\",Dados!AE125)","v":0.33331017300763299},{"$f":"IF(ISERROR(Dados!AF125),\"-\",Dados!AF125)","v":"SAPR11"},{"$f":"IF(ISERROR(Dados!AG125),\"-\",Dados!AG125)","v":1642}]
[{"$f":"IF(ISERROR(Dados!A126),\"-\",Dados!A126)","v":"ITSA4"},{"$f":"IF(ISERROR(Dados!B126),\"-\",Dados!B126)","v":"Outros"},{"$f":"IF(ISERROR(Dados!C126),\"-\",Dados!C126)","v":"Itausa"},{"$f":"IF(ISERROR(Dados!D126),\"-\",Dados!D126)","v":11.98},{"$f":"IF(ISERROR(Dados!E126),\"-\",Dados!E126)","v":8410.6980000000003},{"$f":"IF(ISERROR(Dados!F126),\"-\",Dados!F126)","v":108504.93},{"$f":"IF(ISERROR(Dados!G126),\"-\",Dados!G126)","v":55143},{"$f":"IF(ISERROR(Dados!H126),\"-\",Dados!H126)","v":4969},{"$f":"IF(ISERROR(Dados!I126),\"-\",Dados!I126)","v":5375},{"$f":"IF(ISERROR(Dados!J126),\"-\",Dados!J126)","v":8403},{"$f":"IF(ISERROR(Dados!K126),\"-\",Dados!K126)","v":2400},{"$f":"IF(ISERROR(Dados!L126),\"-\",Dados!L126)","v":4447},{"$f":"IF(ISERROR(Dados!M126),\"-\",Dados!M126)","v":6929},{"$f":"IF(ISERROR(Dados!N126),\"-\",Dados!N126)","v":9436},{"$f":"IF(ISERROR(Dados!O126),\"-\",Dados!O126)","v":8403},{"$f":"IF(ISERROR(Dados!P126),\"-\",Dados!P126)","v":9436},{"$f":"IF(ISERROR(Dados!Q126),\"-\",Dados!Q126)","v":1.1219045078066052},{"$f":"IF(ISERROR(Dados!R126),\"-\",Dados!R126)","v":6.5562929497646927},{"$f":"IF(ISERROR(Dados!S126),\"-\",Dados!S126)","v":1.8272520907458789},{"$f":"IF(ISERROR(Dados!T126),\"-\",Dados!T126)","v":10.67827066977533},{"$f":"IF(ISERROR(Dados!U126),\"-\",Dados!U126)","v":0.172708},{"$f":"IF(ISERROR(Dados!V126),\"-\",Dados!V126)","v":1.0674999999999999E-2},{"$f":"IF(ISERROR(Dados!W126),\"-\",Dados!W126)","v":9182},{"$f":"IF(ISERROR(Dados!X126),\"-\",Dados!X126)","v":10752},{"$f":"IF(ISERROR(Dados!Y126),\"-\",Dados!Y126)","v":10752},{"$f":"IF(ISERROR(Dados!Z126),\"-\",Dados!Z126)","v":10.149268043154761},{"$f":"IF(ISERROR(Dados!AA126),\"-\",Dados!AA126)","v":6602},{"$f":"IF(ISERROR(Dados!AB126),\"-\",Dados!AB126)","v":6.0845161597726488E-2},{"$f":"IF(ISERROR(Dados!AC126),\"-\",Dados!AC126)","v":-3},{"$f":"IF(ISERROR(Dados!AD126),\"-\",Dados!AD126)","v":40.799999999999997},{"$f":"IF(ISERROR(Dados!AE126),\"-\",Dados!AE126)","v":0.34358622792067911},{"$f":"IF(ISERROR(Dados!AF126),\"-\",Dados!AF126)","v":"ITSA4"},{"$f":"IF(ISERROR(Dados!AG126),\"-\",Dados!AG126)","v":10752}]
[{"$f":"IF(ISERROR(Dados!A127),\"-\",Dados!A127)","v":"QUAL3"},{"$f":"IF(ISERROR(Dados!B127),\"-\",Dados!B127)","v":"Outros"},{"$f":"IF(ISERROR(Dados!C127),\"-\",Dados!C127)","v":"Qualicorp"},{"$f":"IF(ISERROR(Dados!D127),\"-\",Dados!D127)","v":15.68},{"$f":"IF(ISERROR(Dados!E127),\"-\",Dados!E127)","v":280.536},{"$f":"IF(ISERROR(Dados!F127),\"-\",Dados!F127)","v":4398.8},{"$f":"IF(ISERROR(Dados!G127),\"-\",Dados!G127)","v":2354.4899999999998},{"$f":"IF(ISERROR(Dados!H127),\"-\",Dados!H127)","v":2075.29},{"$f":"IF(ISERROR(Dados!I127),\"-\",Dados!I127)","v":1932.12},{"$f":"IF(ISERROR(Dados!J127),\"-\",Dados!J127)","v":370.71},{"$f":"IF(ISERROR(Dados!K127),\"-\",Dados!K127)","v":102.7},{"$f":"IF(ISERROR(Dados!L127),\"-\",Dados!L127)","v":191.28},{"$f":"IF(ISERROR(Dados!M127),\"-\",Dados!M127)","v":301},{"$f":"IF(ISERROR(Dados!N127),\"-\",Dados!N127)","v":397.04},{"$f":"IF(ISERROR(Dados!O127),\"-\",Dados!O127)","v":370.71},{"$f":"IF(ISERROR(Dados!P127),\"-\",Dados!P127)","v":397.04},{"$f":"IF(ISERROR(Dados!Q127),\"-\",Dados!Q127)","v":1.4152907291755783},{"$f":"IF(ISERROR(Dados!R127),\"-\",Dados!R127)","v":8.3928265891008635},{"$f":"IF(ISERROR(Dados!S127),\"-\",Dados!S127)","v":1.8682621204592078},{"$f":"IF(ISERROR(Dados!T127),\"-\",Dados!T127)","v":11.078995768688293},{"$f":"IF(ISERROR(Dados!U127),\"-\",Dados!U127)","v":0.16774799999999998},{"$f":"IF(ISERROR(Dados!V127),\"-\",Dados!V127)","v":5.3594999999999997E-2},{"$f":"IF(ISERROR(Dados!W127),\"-\",Dados!W127)","v":836.8},{"$f":"IF(ISERROR(Dados!X127),\"-\",Dados!X127)","v":979.6},{"$f":"IF(ISERROR(Dados!Y127),\"-\",Dados!Y127)","v":979.6},{"$f":"IF(ISERROR(Dados!Z127),\"-\",Dados!Z127)","v":4.6192211106574117},{"$f":"IF(ISERROR(Dados!AA127),\"-\",Dados!AA127)","v":354.87},{"$f":"IF(ISERROR(Dados!AB127),\"-\",Dados!AB127)","v":8.0674274802218782E-2},{"$f":"IF(ISERROR(Dados!AC127),\"-\",Dados!AC127)","v":1.2},{"$f":"IF(ISERROR(Dados!AD127),\"-\",Dados!AD127)","v":-47.6},{"$f":"IF(ISERROR(Dados!AE127),\"-\",Dados!AE127)","v":"-"},{"$f":"IF(ISERROR(Dados!AF127),\"-\",Dados!AF127)","v":"QUAL3"},{"$f":"IF(ISERROR(Dados!AG127),\"-\",Dados!AG127)","v":979.6}]
[{"$f":"IF(ISERROR(Dados!A128),\"-\",Dados!A128)","v":"SBSP3"},{"$f":"IF(ISERROR(Dados!B128),\"-\",Dados!B128)","v":"Outros"},{"$f":"IF(ISERROR(Dados!C128),\"-\",Dados!C128)","v":"Sabesp"},{"$f":"IF(ISERROR(Dados!D128),\"-\",Dados!D128)","v":42},{"$f":"IF(ISERROR(Dados!E128),\"-\",Dados!E128)","v":683.51},{"$f":"IF(ISERROR(Dados!F128),\"-\",Dados!F128)","v":28707.41},{"$f":"IF(ISERROR(Dados!G128),\"-\",Dados!G128)","v":19551.689999999999},{"$f":"IF(ISERROR(Dados!H128),\"-\",Dados!H128)","v":14608.23},{"$f":"IF(ISERROR(Dados!I128),\"-\",Dados!I128)","v":16085.09},{"$f":"IF(ISERROR(Dados!J128),\"-\",Dados!J128)","v":2519.31},{"$f":"IF(ISERROR(Dados!K128),\"-\",Dados!K128)","v":580.42999999999995},{"$f":"IF(ISERROR(Dados!L128),\"-\",Dados!L128)","v":762.32},{"$f":"IF(ISERROR(Dados!M128),\"-\",Dados!M128)","v":1327.48},{"$f":"IF(ISERROR(Dados!N128),\"-\",Dados!N128)","v":2835.07},{"$f":"IF(ISERROR(Dados!O128),\"-\",Dados!O128)","v":2519.31},{"$f":"IF(ISERROR(Dados!P128),\"-\",Dados!P128)","v":2835.07},{"$f":"IF(ISERROR(Dados!Q128),\"-\",Dados!Q128)","v":4.1478105660487783},{"$f":"IF(ISERROR(Dados!R128),\"-\",Dados!R128)","v":28.6048338722184},{"$f":"IF(ISERROR(Dados!S128),\"-\",Dados!S128)","v":1.4682833044100025},{"$f":"IF(ISERROR(Dados!T128),\"-\",Dados!T128)","v":10.125824053727067},{"$f":"IF(ISERROR(Dados!U128),\"-\",Dados!U128)","v":0.16188400000000003},{"$f":"IF(ISERROR(Dados!V128),\"-\",Dados!V128)","v":0.517787},{"$f":"IF(ISERROR(Dados!W128),\"-\",Dados!W128)","v":5263.6},{"$f":"IF(ISERROR(Dados!X128),\"-\",Dados!X128)","v":6569.2},{"$f":"IF(ISERROR(Dados!Y128),\"-\",Dados!Y128)","v":6569.2},{"$f":"IF(ISERROR(Dados!Z128),\"-\",Dados!Z128)","v":5.9110721244595998},{"$f":"IF(ISERROR(Dados!AA128),\"-\",Dados!AA128)","v":653.39},{"$f":"IF(ISERROR(Dados!AB128),\"-\",Dados!AB128)","v":2.2760325644145537E-2},{"$f":"IF(ISERROR(Dados!AC128),\"-\",Dados!AC128)","v":6.7},{"$f":"IF(ISERROR(Dados!AD128),\"-\",Dados!AD128)","v":26},{"$f":"IF(ISERROR(Dados!AE128),\"-\",Dados!AE128)","v":0.99998536963614282},{"$f":"IF(ISERROR(Dados!AF128),\"-\",Dados!AF128)","v":"SBSP3"},{"$f":"IF(ISERROR(Dados!AG128),\"-\",Dados!AG128)","v":6569.2}]
[{"$f":"IF(ISERROR(Dados!A129),\"-\",Dados!A129)","v":"CARD3"},{"$f":"IF(ISERROR(Dados!B129),\"-\",Dados!B129)","v":"Outros"},{"$f":"IF(ISERROR(Dados!C129),\"-\",Dados!C129)","v":"Csu Cardsyst"},{"$f":"IF(ISERROR(Dados!D129),\"-\",Dados!D129)","v":6.75},{"$f":"IF(ISERROR(Dados!E129),\"-\",Dados!E129)","v":41.093000000000004},{"$f":"IF(ISERROR(Dados!F129),\"-\",Dados!F129)","v":277.38},{"$f":"IF(ISERROR(Dados!G129),\"-\",Dados!G129)","v":240.84},{"$f":"IF(ISERROR(Dados!H129),\"-\",Dados!H129)","v":486.85},{"$f":"IF(ISERROR(Dados!I129),\"-\",Dados!I129)","v":419.77},{"$f":"IF(ISERROR(Dados!J129),\"-\",Dados!J129)","v":45.2},{"$f":"IF(ISERROR(Dados!K129),\"-\",Dados!K129)","v":8.1},{"$f":"IF(ISERROR(Dados!L129),\"-\",Dados!L129)","v":16.510000000000002},{"$f":"IF(ISERROR(Dados!M129),\"-\",Dados!M129)","v":23.53},{"$f":"IF(ISERROR(Dados!N129),\"-\",Dados!N129)","v":32.799999999999997},{"$f":"IF(ISERROR(Dados!O129),\"-\",Dados!O129)","v":45.2},{"$f":"IF(ISERROR(Dados!P129),\"-\",Dados!P129)","v":32.799999999999997},{"$f":"IF(ISERROR(Dados!Q129),\"-\",Dados!Q129)","v":0.79818947265957696},{"$f":"IF(ISERROR(Dados!R129),\"-\",Dados!R129)","v":5.8608522132723326},{"$f":"IF(ISERROR(Dados!S129),\"-\",Dados!S129)","v":1.1517096412556056},{"$f":"IF(ISERROR(Dados!T129),\"-\",Dados!T129)","v":8.4566387195121955},{"$f":"IF(ISERROR(Dados!U129),\"-\",Dados!U129)","v":0.146505},{"$f":"IF(ISERROR(Dados!V129),\"-\",Dados!V129)","v":0.10724399999999999},{"$f":"IF(ISERROR(Dados!W129),\"-\",Dados!W129)","v":100.3},{"$f":"IF(ISERROR(Dados!X129),\"-\",Dados!X129)","v":81.5},{"$f":"IF(ISERROR(Dados!Y129),\"-\",Dados!Y129)","v":81.5},{"$f":"IF(ISERROR(Dados!Z129),\"-\",Dados!Z129)","v":3.7203435582822082},{"$f":"IF(ISERROR(Dados!AA129),\"-\",Dados!AA129)","v":16.079999999999998},{"$f":"IF(ISERROR(Dados!AB129),\"-\",Dados!AB129)","v":5.7971014492753617E-2},{"$f":"IF(ISERROR(Dados!AC129),\"-\",Dados!AC129)","v":-7},{"$f":"IF(ISERROR(Dados!AD129),\"-\",Dados!AD129)","v":-28.5},{"$f":"IF(ISERROR(Dados!AE129),\"-\",Dados!AE129)","v":"-"},{"$f":"IF(ISERROR(Dados!AF129),\"-\",Dados!AF129)","v":"CARD3"},{"$f":"IF(ISERROR(Dados!AG129),\"-\",Dados!AG129)","v":81.5}]
[{"$f":"IF(ISERROR(Dados!A130),\"-\",Dados!A130)","v":"HYPE3"},{"$f":"IF(ISERROR(Dados!B130),\"-\",Dados!B130)","v":"Outros"},{"$f":"IF(ISERROR(Dados!C130),\"-\",Dados!C130)","v":"Hypera"},{"$f":"IF(ISERROR(Dados!D130),\"-\",Dados!D130)","v":25.9},{"$f":"IF(ISERROR(Dados!E130),\"-\",Dados!E130)","v":632.04700000000003},{"$f":"IF(ISERROR(Dados!F130),\"-\",Dados!F130)","v":16370.01},{"$f":"IF(ISERROR(Dados!G130),\"-\",Dados!G130)","v":8267.67},{"$f":"IF(ISERROR(Dados!H130),\"-\",Dados!H130)","v":3638.46},{"$f":"IF(ISERROR(Dados!I130),\"-\",Dados!I130)","v":3724.31},{"$f":"IF(ISERROR(Dados!J130),\"-\",Dados!J130)","v":964.94},{"$f":"IF(ISERROR(Dados!K130),\"-\",Dados!K130)","v":299.76},{"$f":"IF(ISERROR(Dados!L130),\"-\",Dados!L130)","v":577.55999999999995},{"$f":"IF(ISERROR(Dados!M130),\"-\",Dados!M130)","v":819.83},{"$f":"IF(ISERROR(Dados!N130),\"-\",Dados!N130)","v":1129.5999999999999},{"$f":"IF(ISERROR(Dados!O130),\"-\",Dados!O130)","v":964.94},{"$f":"IF(ISERROR(Dados!P130),\"-\",Dados!P130)","v":1129.5999999999999},{"$f":"IF(ISERROR(Dados!Q130),\"-\",Dados!Q130)","v":1.7872088626320508},{"$f":"IF(ISERROR(Dados!R130),\"-\",Dados!R130)","v":13.080783549324654},{"$f":"IF(ISERROR(Dados!S130),\"-\",Dados!S130)","v":1.9800037132589956},{"$f":"IF(ISERROR(Dados!T130),\"-\",Dados!T130)","v":14.49187083923513},{"$f":"IF(ISERROR(Dados!U130),\"-\",Dados!U130)","v":0.145986},{"$f":"IF(ISERROR(Dados!V130),\"-\",Dados!V130)","v":-0.130939},{"$f":"IF(ISERROR(Dados!W130),\"-\",Dados!W130)","v":1236.9000000000001},{"$f":"IF(ISERROR(Dados!X130),\"-\",Dados!X130)","v":1318.7},{"$f":"IF(ISERROR(Dados!Y130),\"-\",Dados!Y130)","v":1318.7},{"$f":"IF(ISERROR(Dados!Z130),\"-\",Dados!Z130)","v":11.592818685068629},{"$f":"IF(ISERROR(Dados!AA130),\"-\",Dados!AA130)","v":633},{"$f":"IF(ISERROR(Dados!AB130),\"-\",Dados!AB130)","v":3.8668272041373221E-2},{"$f":"IF(ISERROR(Dados!AC130),\"-\",Dados!AC130)","v":-3.7},{"$f":"IF(ISERROR(Dados!AD130),\"-\",Dados!AD130)","v":-23.8},{"$f":"IF(ISERROR(Dados!AE130),\"-\",Dados!AE130)","v":"-"},{"$f":"IF(ISERROR(Dados!AF130),\"-\",Dados!AF130)","v":"HYPE3"},{"$f":"IF(ISERROR(Dados!AG130),\"-\",Dados!AG130)","v":1318.7}]
[{"$f":"IF(ISERROR(Dados!A131),\"-\",Dados!A131)","v":"BRAP4"},{"$f":"IF(ISERROR(Dados!B131),\"-\",Dados!B131)","v":"Outros"},{"$f":"IF(ISERROR(Dados!C131),\"-\",Dados!C131)","v":"Bradespar"},{"$f":"IF(ISERROR(Dados!D131),\"-\",Dados!D131)","v":31.9},{"$f":"IF(ISERROR(Dados!E131),\"-\",Dados!E131)","v":348.03399999999999},{"$f":"IF(ISERROR(Dados!F131),\"-\",Dados!F131)","v":10520.75},{"$f":"IF(ISERROR(Dados!G131),\"-\",Dados!G131)","v":9959.84},{"$f":"IF(ISERROR(Dados!H131),\"-\",Dados!H131)","v":"-"},{"$f":"IF(ISERROR(Dados!I131),\"-\",Dados!I131)","v":"-"},{"$f":"IF(ISERROR(Dados!J131),\"-\",Dados!J131)","v":2328.38},{"$f":"IF(ISERROR(Dados!K131),\"-\",Dados!K131)","v":-283.51},{"$f":"IF(ISERROR(Dados!L131),\"-\",Dados!L131)","v":-902.45},{"$f":"IF(ISERROR(Dados!M131),\"-\",Dados!M131)","v":-779.21},{"$f":"IF(ISERROR(Dados!N131),\"-\",Dados!N131)","v":1190.5},{"$f":"IF(ISERROR(Dados!O131),\"-\",Dados!O131)","v":2328.38},{"$f":"IF(ISERROR(Dados!P131),\"-\",Dados!P131)","v":1190.5},{"$f":"IF(ISERROR(Dados!Q131),\"-\",Dados!Q131)","v":3.4206428107598685},{"$f":"IF(ISERROR(Dados!R131),\"-\",Dados!R131)","v":28.617433928869019},{"$f":"IF(ISERROR(Dados!S131),\"-\",Dados!S131)","v":1.1147051157448311},{"$f":"IF(ISERROR(Dados!T131),\"-\",Dados!T131)","v":9.3257325493490111},{"$f":"IF(ISERROR(Dados!U131),\"-\",Dados!U131)","v":0.13519100000000001},{"$f":"IF(ISERROR(Dados!V131),\"-\",Dados!V131)","v":-2.5095999999999997E-2},{"$f":"IF(ISERROR(Dados!W131),\"-\",Dados!W131)","v":2609.8000000000002},{"$f":"IF(ISERROR(Dados!X131),\"-\",Dados!X131)","v":1234.3},{"$f":"IF(ISERROR(Dados!Y131),\"-\",Dados!Y131)","v":1234.3},{"$f":"IF(ISERROR(Dados!Z131),\"-\",Dados!Z131)","v":8.3211536903508065},{"$f":"IF(ISERROR(Dados!AA131),\"-\",Dados!AA131)","v":719.42},{"$f":"IF(ISERROR(Dados!AB131),\"-\",Dados!AB131)","v":6.8381056483615713E-2},{"$f":"IF(ISERROR(Dados!AC131),\"-\",Dados!AC131)","v":10.7},{"$f":"IF(ISERROR(Dados!AD131),\"-\",Dados!AD131)","v":17.5},{"$f":"IF(ISERROR(Dados!AE131),\"-\",Dados!AE131)","v":0.35111512093646025},{"$f":"IF(ISERROR(Dados!AF131),\"-\",Dados!AF131)","v":"BRAP4"},{"$f":"IF(ISERROR(Dados!AG131),\"-\",Dados!AG131)","v":1234.3}]
[{"$f":"IF(ISERROR(Dados!A132),\"-\",Dados!A132)","v":"SEER3"},{"$f":"IF(ISERROR(Dados!B132),\"-\",Dados!B132)","v":"Outros"},{"$f":"IF(ISERROR(Dados!C132),\"-\",Dados!C132)","v":"Ser Educa"},{"$f":"IF(ISERROR(Dados!D132),\"-\",Dados!D132)","v":20.36},{"$f":"IF(ISERROR(Dados!E132),\"-\",Dados!E132)","v":128.72200000000001},{"$f":"IF(ISERROR(Dados!F132),\"-\",Dados!F132)","v":2620.77},{"$f":"IF(ISERROR(Dados!G132),\"-\",Dados!G132)","v":1470.54},{"$f":"IF(ISERROR(Dados!H132),\"-\",Dados!H132)","v":1231.79},{"$f":"IF(ISERROR(Dados!I132),\"-\",Dados!I132)","v":1262.49},{"$f":"IF(ISERROR(Dados!J132),\"-\",Dados!J132)","v":197.48},{"$f":"IF(ISERROR(Dados!K132),\"-\",Dados!K132)","v":58.22},{"$f":"IF(ISERROR(Dados!L132),\"-\",Dados!L132)","v":131.24},{"$f":"IF(ISERROR(Dados!M132),\"-\",Dados!M132)","v":168.17},{"$f":"IF(ISERROR(Dados!N132),\"-\",Dados!N132)","v":201.28},{"$f":"IF(ISERROR(Dados!O132),\"-\",Dados!O132)","v":197.48},{"$f":"IF(ISERROR(Dados!P132),\"-\",Dados!P132)","v":201.28},{"$f":"IF(ISERROR(Dados!Q132),\"-\",Dados!Q132)","v":1.5636798682431907},{"$f":"IF(ISERROR(Dados!R132),\"-\",Dados!R132)","v":11.424154379204797},{"$f":"IF(ISERROR(Dados!S132),\"-\",Dados!S132)","v":1.7821888013926859},{"$f":"IF(ISERROR(Dados!T132),\"-\",Dados!T132)","v":13.020567965023847},{"$f":"IF(ISERROR(Dados!U132),\"-\",Dados!U132)","v":0.13344},{"$f":"IF(ISERROR(Dados!V132),\"-\",Dados!V132)","v":-0.41799500000000001},{"$f":"IF(ISERROR(Dados!W132),\"-\",Dados!W132)","v":321.10000000000002},{"$f":"IF(ISERROR(Dados!X132),\"-\",Dados!X132)","v":312},{"$f":"IF(ISERROR(Dados!Y132),\"-\",Dados!Y132)","v":312},{"$f":"IF(ISERROR(Dados!Z132),\"-\",Dados!Z132)","v":6.4297756410256417},{"$f":"IF(ISERROR(Dados!AA132),\"-\",Dados!AA132)","v":58.53},{"$f":"IF(ISERROR(Dados!AB132),\"-\",Dados!AB132)","v":2.2333131102691195E-2},{"$f":"IF(ISERROR(Dados!AC132),\"-\",Dados!AC132)","v":7.3},{"$f":"IF(ISERROR(Dados!AD132),\"-\",Dados!AD132)","v":-33.200000000000003},{"$f":"IF(ISERROR(Dados!AE132),\"-\",Dados!AE132)","v":"-"},{"$f":"IF(ISERROR(Dados!AF132),\"-\",Dados!AF132)","v":"SEER3"},{"$f":"IF(ISERROR(Dados!AG132),\"-\",Dados!AG132)","v":312}]
[{"$f":"IF(ISERROR(Dados!A133),\"-\",Dados!A133)","v":"MOVI3"},{"$f":"IF(ISERROR(Dados!B133),\"-\",Dados!B133)","v":"Outros"},{"$f":"IF(ISERROR(Dados!C133),\"-\",Dados!C133)","v":"Movida"},{"$f":"IF(ISERROR(Dados!D133),\"-\",Dados!D133)","v":10.85},{"$f":"IF(ISERROR(Dados!E133),\"-\",Dados!E133)","v":262.36799999999999},{"$f":"IF(ISERROR(Dados!F133),\"-\",Dados!F133)","v":2846.69},{"$f":"IF(ISERROR(Dados!G133),\"-\",Dados!G133)","v":1658.84},{"$f":"IF(ISERROR(Dados!H133),\"-\",Dados!H133)","v":2467.98},{"$f":"IF(ISERROR(Dados!I133),\"-\",Dados!I133)","v":2538.6},{"$f":"IF(ISERROR(Dados!J133),\"-\",Dados!J133)","v":66.47},{"$f":"IF(ISERROR(Dados!K133),\"-\",Dados!K133)","v":26.85},{"$f":"IF(ISERROR(Dados!L133),\"-\",Dados!L133)","v":66.77},{"$f":"IF(ISERROR(Dados!M133),\"-\",Dados!M133)","v":108.04},{"$f":"IF(ISERROR(Dados!N133),\"-\",Dados!N133)","v":159.75},{"$f":"IF(ISERROR(Dados!O133),\"-\",Dados!O133)","v":66.47},{"$f":"IF(ISERROR(Dados!P133),\"-\",Dados!P133)","v":159.75},{"$f":"IF(ISERROR(Dados!Q133),\"-\",Dados!Q133)","v":0.60887760702524696},{"$f":"IF(ISERROR(Dados!R133),\"-\",Dados!R133)","v":6.3225698255884861},{"$f":"IF(ISERROR(Dados!S133),\"-\",Dados!S133)","v":1.7160743652190689},{"$f":"IF(ISERROR(Dados!T133),\"-\",Dados!T133)","v":17.819673239436622},{"$f":"IF(ISERROR(Dados!U133),\"-\",Dados!U133)","v":0.124338},{"$f":"IF(ISERROR(Dados!V133),\"-\",Dados!V133)","v":0.87638300000000002},{"$f":"IF(ISERROR(Dados!W133),\"-\",Dados!W133)","v":326.8},{"$f":"IF(ISERROR(Dados!X133),\"-\",Dados!X133)","v":481.7},{"$f":"IF(ISERROR(Dados!Y133),\"-\",Dados!Y133)","v":481.7},{"$f":"IF(ISERROR(Dados!Z133),\"-\",Dados!Z133)","v":8.9276956611999161},{"$f":"IF(ISERROR(Dados!AA133),\"-\",Dados!AA133)","v":23.64},{"$f":"IF(ISERROR(Dados!AB133),\"-\",Dados!AB133)","v":8.304381580010468E-3},{"$f":"IF(ISERROR(Dados!AC133),\"-\",Dados!AC133)","v":-6.5},{"$f":"IF(ISERROR(Dados!AD133),\"-\",Dados!AD133)","v":61.8},{"$f":"IF(ISERROR(Dados!AE133),\"-\",Dados!AE133)","v":"-"},{"$f":"IF(ISERROR(Dados!AF133),\"-\",Dados!AF133)","v":"MOVI3"},{"$f":"IF(ISERROR(Dados!AG133),\"-\",Dados!AG133)","v":481.7}]
[{"$f":"IF(ISERROR(Dados!A134),\"-\",Dados!A134)","v":"BRML3"},{"$f":"IF(ISERROR(Dados!B134),\"-\",Dados!B134)","v":"Outros"},{"$f":"IF(ISERROR(Dados!C134),\"-\",Dados!C134)","v":"BR Malls Par"},{"$f":"IF(ISERROR(Dados!D134),\"-\",Dados!D134)","v":12.57},{"$f":"IF(ISERROR(Dados!E134),\"-\",Dados!E134)","v":842.26199999999994},{"$f":"IF(ISERROR(Dados!F134),\"-\",Dados!F134)","v":10587.23},{"$f":"IF(ISERROR(Dados!G134),\"-\",Dados!G134)","v":10485.1},{"$f":"IF(ISERROR(Dados!H134),\"-\",Dados!H134)","v":1265.24},{"$f":"IF(ISERROR(Dados!I134),\"-\",Dados!I134)","v":1196.21},{"$f":"IF(ISERROR(Dados!J134),\"-\",Dados!J134)","v":-796.28},{"$f":"IF(ISERROR(Dados!K134),\"-\",Dados!K134)","v":126.53},{"$f":"IF(ISERROR(Dados!L134),\"-\",Dados!L134)","v":194.12},{"$f":"IF(ISERROR(Dados!M134),\"-\",Dados!M134)","v":286.35000000000002},{"$f":"IF(ISERROR(Dados!N134),\"-\",Dados!N134)","v":1014.09},{"$f":"IF(ISERROR(Dados!O134),\"-\",Dados!O134)","v":-796.28},{"$f":"IF(ISERROR(Dados!P134),\"-\",Dados!P134)","v":1014.09},{"$f":"IF(ISERROR(Dados!Q134),\"-\",Dados!Q134)","v":1.204007779052124},{"$f":"IF(ISERROR(Dados!R134),\"-\",Dados!R134)","v":12.448739228411114},{"$f":"IF(ISERROR(Dados!S134),\"-\",Dados!S134)","v":1.009740807431498},{"$f":"IF(ISERROR(Dados!T134),\"-\",Dados!T134)","v":10.440131881785641},{"$f":"IF(ISERROR(Dados!U134),\"-\",Dados!U134)","v":0.105336},{"$f":"IF(ISERROR(Dados!V134),\"-\",Dados!V134)","v":0.169152},{"$f":"IF(ISERROR(Dados!W134),\"-\",Dados!W134)","v":-899.5},{"$f":"IF(ISERROR(Dados!X134),\"-\",Dados!X134)","v":"-"},{"$f":"IF(ISERROR(Dados!Y134),\"-\",Dados!Y134)","v":"-"},{"$f":"IF(ISERROR(Dados!Z134),\"-\",Dados!Z134)","v":"-"},{"$f":"IF(ISERROR(Dados!AA134),\"-\",Dados!AA134)","v":"-"},{"$f":"IF(ISERROR(Dados!AB134),\"-\",Dados!AB134)","v":"-"},{"$f":"IF(ISERROR(Dados!AC134),\"-\",Dados!AC134)","v":-5.6},{"$f":"IF(ISERROR(Dados!AD134),\"-\",Dados!AD134)","v":"-"},{"$f":"IF(ISERROR(Dados!AE134),\"-\",Dados!AE134)","v":"-"},{"$f":"IF(ISERROR(Dados!AF134),\"-\",Dados!AF134)","v":"BRML3"},{"$f":"IF(ISERROR(Dados!AG134),\"-\",Dados!AG134)","v":"-"}]
[{"$f":"IF(ISERROR(Dados!A135),\"-\",Dados!A135)","v":"VLID3"},{"$f":"IF(ISERROR(Dados!B135),\"-\",Dados!B135)","v":"Outros"},{"$f":"IF(ISERROR(Dados!C135),\"-\",Dados!C135)","v":"Valid"},{"$f":"IF(ISERROR(Dados!D135),\"-\",Dados!D135)","v":19.28},{"$f":"IF(ISERROR(Dados!E135),\"-\",Dados!E135)","v":70.405000000000001},{"$f":"IF(ISERROR(Dados!F135),\"-\",Dados!F135)","v":1357.41},{"$f":"IF(ISERROR(Dados!G135),\"-\",Dados!G135)","v":1071.9100000000001},{"$f":"IF(ISERROR(Dados!H135),\"-\",Dados!H135)","v":1574.47},{"$f":"IF(ISERROR(Dados!I135),\"-\",Dados!I135)","v":1734.31},{"$f":"IF(ISERROR(Dados!J135),\"-\",Dados!J135)","v":27.69},{"$f":"IF(ISERROR(Dados!K135),\"-\",Dados!K135)","v":19.72},{"$f":"IF(ISERROR(Dados!L135),\"-\",Dados!L135)","v":33.200000000000003},{"$f":"IF(ISERROR(Dados!M135),\"-\",Dados!M135)","v":56.98},{"$f":"IF(ISERROR(Dados!N135),\"-\",Dados!N135)","v":100.04},{"$f":"IF(ISERROR(Dados!O135),\"-\",Dados!O135)","v":27.69},{"$f":"IF(ISERROR(Dados!P135),\"-\",Dados!P135)","v":100.04},{"$f":"IF(ISERROR(Dados!Q135),\"-\",Dados!Q135)","v":1.4209218095305731},{"$f":"IF(ISERROR(Dados!R135),\"-\",Dados!R135)","v":15.224913003337832},{"$f":"IF(ISERROR(Dados!S135),\"-\",Dados!S135)","v":1.2663454954240561},{"$f":"IF(ISERROR(Dados!T135),\"-\",Dados!T135)","v":13.568656537385047},{"$f":"IF(ISERROR(Dados!U135),\"-\",Dados!U135)","v":0.10101800000000001},{"$f":"IF(ISERROR(Dados!V135),\"-\",Dados!V135)","v":0.477076},{"$f":"IF(ISERROR(Dados!W135),\"-\",Dados!W135)","v":206.7},{"$f":"IF(ISERROR(Dados!X135),\"-\",Dados!X135)","v":269.8},{"$f":"IF(ISERROR(Dados!Y135),\"-\",Dados!Y135)","v":269.8},{"$f":"IF(ISERROR(Dados!Z135),\"-\",Dados!Z135)","v":6.9558191252779835},{"$f":"IF(ISERROR(Dados!AA135),\"-\",Dados!AA135)","v":31.12},{"$f":"IF(ISERROR(Dados!AB135),\"-\",Dados!AB135)","v":2.2926013511024673E-2},{"$f":"IF(ISERROR(Dados!AC135),\"-\",Dados!AC135)","v":-2.1},{"$f":"IF(ISERROR(Dados!AD135),\"-\",Dados!AD135)","v":10.3},{"$f":"IF(ISERROR(Dados!AE135),\"-\",Dados!AE135)","v":"-"},{"$f":"IF(ISERROR(Dados!AF135),\"-\",Dados!AF135)","v":"VLID3"},{"$f":"IF(ISERROR(Dados!AG135),\"-\",Dados!AG135)","v":269.8}]
[{"$f":"IF(ISERROR(Dados!A136),\"-\",Dados!A136)","v":"SSBR3"},{"$f":"IF(ISERROR(Dados!B136),\"-\",Dados!B136)","v":"Outros"},{"$f":"IF(ISERROR(Dados!C136),\"-\",Dados!C136)","v":"Sierrabrasil"},{"$f":"IF(ISERROR(Dados!D136),\"-\",Dados!D136)","v":28.7},{"$f":"IF(ISERROR(Dados!E136),\"-\",Dados!E136)","v":76.424000000000007},{"$f":"IF(ISERROR(Dados!F136),\"-\",Dados!F136)","v":2193.36},{"$f":"IF(ISERROR(Dados!G136),\"-\",Dados!G136)","v":2766.6},{"$f":"IF(ISERROR(Dados!H136),\"-\",Dados!H136)","v":354.86},{"$f":"IF(ISERROR(Dados!I136),\"-\",Dados!I136)","v":374.11},{"$f":"IF(ISERROR(Dados!J136),\"-\",Dados!J136)","v":138.41999999999999},{"$f":"IF(ISERROR(Dados!K136),\"-\",Dados!K136)","v":24.87},{"$f":"IF(ISERROR(Dados!L136),\"-\",Dados!L136)","v":66.599999999999994},{"$f":"IF(ISERROR(Dados!M136),\"-\",Dados!M136)","v":92.55},{"$f":"IF(ISERROR(Dados!N136),\"-\",Dados!N136)","v":189.26},{"$f":"IF(ISERROR(Dados!O136),\"-\",Dados!O136)","v":138.41999999999999},{"$f":"IF(ISERROR(Dados!P136),\"-\",Dados!P136)","v":189.26},{"$f":"IF(ISERROR(Dados!Q136),\"-\",Dados!Q136)","v":2.4764471893645972},{"$f":"IF(ISERROR(Dados!R136),\"-\",Dados!R136)","v":36.200669946613623},{"$f":"IF(ISERROR(Dados!S136),\"-\",Dados!S136)","v":0.79280300730138087},{"$f":"IF(ISERROR(Dados!T136),\"-\",Dados!T136)","v":11.589183134312588},{"$f":"IF(ISERROR(Dados!U136),\"-\",Dados!U136)","v":0.10036899999999999},{"$f":"IF(ISERROR(Dados!V136),\"-\",Dados!V136)","v":0.124154},{"$f":"IF(ISERROR(Dados!W136),\"-\",Dados!W136)","v":384.7},{"$f":"IF(ISERROR(Dados!X136),\"-\",Dados!X136)","v":562.20000000000005},{"$f":"IF(ISERROR(Dados!Y136),\"-\",Dados!Y136)","v":562.20000000000005},{"$f":"IF(ISERROR(Dados!Z136),\"-\",Dados!Z136)","v":4.7641319815012446},{"$f":"IF(ISERROR(Dados!AA136),\"-\",Dados!AA136)","v":34.770000000000003},{"$f":"IF(ISERROR(Dados!AB136),\"-\",Dados!AB136)","v":1.5852390852390853E-2},{"$f":"IF(ISERROR(Dados!AC136),\"-\",Dados!AC136)","v":-7.1},{"$f":"IF(ISERROR(Dados!AD136),\"-\",Dados!AD136)","v":15.5},{"$f":"IF(ISERROR(Dados!AE136),\"-\",Dados!AE136)","v":0.9996859625248613},{"$f":"IF(ISERROR(Dados!AF136),\"-\",Dados!AF136)","v":"SSBR3"},{"$f":"IF(ISERROR(Dados!AG136),\"-\",Dados!AG136)","v":562.20000000000005}]
[{"$f":"IF(ISERROR(Dados!A137),\"-\",Dados!A137)","v":"IGTA3"},{"$f":"IF(ISERROR(Dados!B137),\"-\",Dados!B137)","v":"Outros"},{"$f":"IF(ISERROR(Dados!C137),\"-\",Dados!C137)","v":"Iguatemi"},{"$f":"IF(ISERROR(Dados!D137),\"-\",Dados!D137)","v":38.92},{"$f":"IF(ISERROR(Dados!E137),\"-\",Dados!E137)","v":176.297},{"$f":"IF(ISERROR(Dados!F137),\"-\",Dados!F137)","v":6861.47},{"$f":"IF(ISERROR(Dados!G137),\"-\",Dados!G137)","v":2835.66},{"$f":"IF(ISERROR(Dados!H137),\"-\",Dados!H137)","v":692.16},{"$f":"IF(ISERROR(Dados!I137),\"-\",Dados!I137)","v":721.53},{"$f":"IF(ISERROR(Dados!J137),\"-\",Dados!J137)","v":215.73},{"$f":"IF(ISERROR(Dados!K137),\"-\",Dados!K137)","v":57.34},{"$f":"IF(ISERROR(Dados!L137),\"-\",Dados!L137)","v":116.94},{"$f":"IF(ISERROR(Dados!M137),\"-\",Dados!M137)","v":181.42},{"$f":"IF(ISERROR(Dados!N137),\"-\",Dados!N137)","v":256.36},{"$f":"IF(ISERROR(Dados!O137),\"-\",Dados!O137)","v":215.73},{"$f":"IF(ISERROR(Dados!P137),\"-\",Dados!P137)","v":256.36},{"$f":"IF(ISERROR(Dados!Q137),\"-\",Dados!Q137)","v":1.4541370528142852},{"$f":"IF(ISERROR(Dados!R137),\"-\",Dados!R137)","v":16.084561847337163},{"$f":"IF(ISERROR(Dados!S137),\"-\",Dados!S137)","v":2.4197115451076647},{"$f":"IF(ISERROR(Dados!T137),\"-\",Dados!T137)","v":26.76501497893587},{"$f":"IF(ISERROR(Dados!U137),\"-\",Dados!U137)","v":9.2753999999999989E-2},{"$f":"IF(ISERROR(Dados!V137),\"-\",Dados!V137)","v":0.55824399999999996},{"$f":"IF(ISERROR(Dados!W137),\"-\",Dados!W137)","v":540.6},{"$f":"IF(ISERROR(Dados!X137),\"-\",Dados!X137)","v":558.5},{"$f":"IF(ISERROR(Dados!Y137),\"-\",Dados!Y137)","v":558.5},{"$f":"IF(ISERROR(Dados!Z137),\"-\",Dados!Z137)","v":15.13056042972247},{"$f":"IF(ISERROR(Dados!AA137),\"-\",Dados!AA137)","v":120},{"$f":"IF(ISERROR(Dados!AB137),\"-\",Dados!AB137)","v":1.7488963735176281E-2},{"$f":"IF(ISERROR(Dados!AC137),\"-\",Dados!AC137)","v":-6.9},{"$f":"IF(ISERROR(Dados!AD137),\"-\",Dados!AD137)","v":1.2},{"$f":"IF(ISERROR(Dados!AE137),\"-\",Dados!AE137)","v":"-"},{"$f":"IF(ISERROR(Dados!AF137),\"-\",Dados!AF137)","v":"IGTA3"},{"$f":"IF(ISERROR(Dados!AG137),\"-\",Dados!AG137)","v":558.5}]
[{"$f":"IF(ISERROR(Dados!A138),\"-\",Dados!A138)","v":"CSMG3"},{"$f":"IF(ISERROR(Dados!B138),\"-\",Dados!B138)","v":"Outros"},{"$f":"IF(ISERROR(Dados!C138),\"-\",Dados!C138)","v":"Copasa"},{"$f":"IF(ISERROR(Dados!D138),\"-\",Dados!D138)","v":61.07},{"$f":"IF(ISERROR(Dados!E138),\"-\",Dados!E138)","v":126.39400000000001},{"$f":"IF(ISERROR(Dados!F138),\"-\",Dados!F138)","v":7718.88},{"$f":"IF(ISERROR(Dados!G138),\"-\",Dados!G138)","v":6226.63},{"$f":"IF(ISERROR(Dados!H138),\"-\",Dados!H138)","v":4326.3999999999996},{"$f":"IF(ISERROR(Dados!I138),\"-\",Dados!I138)","v":4737.29},{"$f":"IF(ISERROR(Dados!J138),\"-\",Dados!J138)","v":560.44000000000005},{"$f":"IF(ISERROR(Dados!K138),\"-\",Dados!K138)","v":164.23},{"$f":"IF(ISERROR(Dados!L138),\"-\",Dados!L138)","v":274.39},{"$f":"IF(ISERROR(Dados!M138),\"-\",Dados!M138)","v":400.7},{"$f":"IF(ISERROR(Dados!N138),\"-\",Dados!N138)","v":578.70000000000005},{"$f":"IF(ISERROR(Dados!O138),\"-\",Dados!O138)","v":560.44000000000005},{"$f":"IF(ISERROR(Dados!P138),\"-\",Dados!P138)","v":578.70000000000005},{"$f":"IF(ISERROR(Dados!Q138),\"-\",Dados!Q138)","v":4.5785401205753438},{"$f":"IF(ISERROR(Dados!R138),\"-\",Dados!R138)","v":49.263651755621311},{"$f":"IF(ISERROR(Dados!S138),\"-\",Dados!S138)","v":1.2396563759208432},{"$f":"IF(ISERROR(Dados!T138),\"-\",Dados!T138)","v":13.338312735441507},{"$f":"IF(ISERROR(Dados!U138),\"-\",Dados!U138)","v":9.2675999999999994E-2},{"$f":"IF(ISERROR(Dados!V138),\"-\",Dados!V138)","v":0.51853000000000005},{"$f":"IF(ISERROR(Dados!W138),\"-\",Dados!W138)","v":1520.7},{"$f":"IF(ISERROR(Dados!X138),\"-\",Dados!X138)","v":1490.9},{"$f":"IF(ISERROR(Dados!Y138),\"-\",Dados!Y138)","v":1490.9},{"$f":"IF(ISERROR(Dados!Z138),\"-\",Dados!Z138)","v":7.3429317861694283},{"$f":"IF(ISERROR(Dados!AA138),\"-\",Dados!AA138)","v":443.54},{"$f":"IF(ISERROR(Dados!AB138),\"-\",Dados!AB138)","v":5.7461704288705097E-2},{"$f":"IF(ISERROR(Dados!AC138),\"-\",Dados!AC138)","v":0.5},{"$f":"IF(ISERROR(Dados!AD138),\"-\",Dados!AD138)","v":56.4},{"$f":"IF(ISERROR(Dados!AE138),\"-\",Dados!AE138)","v":"-"},{"$f":"IF(ISERROR(Dados!AF138),\"-\",Dados!AF138)","v":"CSMG3"},{"$f":"IF(ISERROR(Dados!AG138),\"-\",Dados!AG138)","v":1490.9}]
[{"$f":"IF(ISERROR(Dados!A139),\"-\",Dados!A139)","v":"KROT3"},{"$f":"IF(ISERROR(Dados!B139),\"-\",Dados!B139)","v":"Outros"},{"$f":"IF(ISERROR(Dados!C139),\"-\",Dados!C139)","v":"Kroton"},{"$f":"IF(ISERROR(Dados!D139),\"-\",Dados!D139)","v":10.6},{"$f":"IF(ISERROR(Dados!E139),\"-\",Dados!E139)","v":1629.605},{"$f":"IF(ISERROR(Dados!F139),\"-\",Dados!F139)","v":17273.82},{"$f":"IF(ISERROR(Dados!G139),\"-\",Dados!G139)","v":15902.64},{"$f":"IF(ISERROR(Dados!H139),\"-\",Dados!H139)","v":5557.75},{"$f":"IF(ISERROR(Dados!I139),\"-\",Dados!I139)","v":6060.71},{"$f":"IF(ISERROR(Dados!J139),\"-\",Dados!J139)","v":1882.32},{"$f":"IF(ISERROR(Dados!K139),\"-\",Dados!K139)","v":475.42},{"$f":"IF(ISERROR(Dados!L139),\"-\",Dados!L139)","v":942.76},{"$f":"IF(ISERROR(Dados!M139),\"-\",Dados!M139)","v":1290.58},{"$f":"IF(ISERROR(Dados!N139),\"-\",Dados!N139)","v":1403.75},{"$f":"IF(ISERROR(Dados!O139),\"-\",Dados!O139)","v":1882.32},{"$f":"IF(ISERROR(Dados!P139),\"-\",Dados!P139)","v":1403.75},{"$f":"IF(ISERROR(Dados!Q139),\"-\",Dados!Q139)","v":0.86140506441745079},{"$f":"IF(ISERROR(Dados!R139),\"-\",Dados!R139)","v":9.7585856695334137},{"$f":"IF(ISERROR(Dados!S139),\"-\",Dados!S139)","v":1.0862229793292184},{"$f":"IF(ISERROR(Dados!T139),\"-\",Dados!T139)","v":12.305476758682103},{"$f":"IF(ISERROR(Dados!U139),\"-\",Dados!U139)","v":9.158899999999999E-2},{"$f":"IF(ISERROR(Dados!V139),\"-\",Dados!V139)","v":0.31860299999999997},{"$f":"IF(ISERROR(Dados!W139),\"-\",Dados!W139)","v":2111.1999999999998},{"$f":"IF(ISERROR(Dados!X139),\"-\",Dados!X139)","v":1721.7},{"$f":"IF(ISERROR(Dados!Y139),\"-\",Dados!Y139)","v":1721.7},{"$f":"IF(ISERROR(Dados!Z139),\"-\",Dados!Z139)","v":12.995089736887959},{"$f":"IF(ISERROR(Dados!AA139),\"-\",Dados!AA139)","v":638.87},{"$f":"IF(ISERROR(Dados!AB139),\"-\",Dados!AB139)","v":3.6984870746598029E-2},{"$f":"IF(ISERROR(Dados!AC139),\"-\",Dados!AC139)","v":-3.4},{"$f":"IF(ISERROR(Dados!AD139),\"-\",Dados!AD139)","v":-40.4},{"$f":"IF(ISERROR(Dados!AE139),\"-\",Dados!AE139)","v":"-"},{"$f":"IF(ISERROR(Dados!AF139),\"-\",Dados!AF139)","v":"KROT3"},{"$f":"IF(ISERROR(Dados!AG139),\"-\",Dados!AG139)","v":1721.7}]
[{"$f":"IF(ISERROR(Dados!A140),\"-\",Dados!A140)","v":"DTEX3"},{"$f":"IF(ISERROR(Dados!B140),\"-\",Dados!B140)","v":"Outros"},{"$f":"IF(ISERROR(Dados!C140),\"-\",Dados!C140)","v":"Duratex"},{"$f":"IF(ISERROR(Dados!D140),\"-\",Dados!D140)","v":10.97},{"$f":"IF(ISERROR(Dados!E140),\"-\",Dados!E140)","v":689.46900000000005},{"$f":"IF(ISERROR(Dados!F140),\"-\",Dados!F140)","v":7563.47},{"$f":"IF(ISERROR(Dados!G140),\"-\",Dados!G140)","v":4633.7},{"$f":"IF(ISERROR(Dados!H140),\"-\",Dados!H140)","v":3990.87},{"$f":"IF(ISERROR(Dados!I140),\"-\",Dados!I140)","v":4949.3599999999997},{"$f":"IF(ISERROR(Dados!J140),\"-\",Dados!J140)","v":184.88},{"$f":"IF(ISERROR(Dados!K140),\"-\",Dados!K140)","v":30.79},{"$f":"IF(ISERROR(Dados!L140),\"-\",Dados!L140)","v":197.32},{"$f":"IF(ISERROR(Dados!M140),\"-\",Dados!M140)","v":573.59},{"$f":"IF(ISERROR(Dados!N140),\"-\",Dados!N140)","v":431.57},{"$f":"IF(ISERROR(Dados!O140),\"-\",Dados!O140)","v":184.88},{"$f":"IF(ISERROR(Dados!P140),\"-\",Dados!P140)","v":431.57},{"$f":"IF(ISERROR(Dados!Q140),\"-\",Dados!Q140)","v":0.62594547398070099},{"$f":"IF(ISERROR(Dados!R140),\"-\",Dados!R140)","v":6.720679247362825},{"$f":"IF(ISERROR(Dados!S140),\"-\",Dados!S140)","v":1.6322754882707127},{"$f":"IF(ISERROR(Dados!T140),\"-\",Dados!T140)","v":17.525488171096235},{"$f":"IF(ISERROR(Dados!U140),\"-\",Dados!U140)","v":9.1553999999999996E-2},{"$f":"IF(ISERROR(Dados!V140),\"-\",Dados!V140)","v":0.36686300000000005},{"$f":"IF(ISERROR(Dados!W140),\"-\",Dados!W140)","v":986.8},{"$f":"IF(ISERROR(Dados!X140),\"-\",Dados!X140)","v":1546},{"$f":"IF(ISERROR(Dados!Y140),\"-\",Dados!Y140)","v":1546},{"$f":"IF(ISERROR(Dados!Z140),\"-\",Dados!Z140)","v":5.9921300129366113},{"$f":"IF(ISERROR(Dados!AA140),\"-\",Dados!AA140)","v":60.77},{"$f":"IF(ISERROR(Dados!AB140),\"-\",Dados!AB140)","v":8.0346719164616238E-3},{"$f":"IF(ISERROR(Dados!AC140),\"-\",Dados!AC140)","v":-7},{"$f":"IF(ISERROR(Dados!AD140),\"-\",Dados!AD140)","v":27.7},{"$f":"IF(ISERROR(Dados!AE140),\"-\",Dados!AE140)","v":"-"},{"$f":"IF(ISERROR(Dados!AF140),\"-\",Dados!AF140)","v":"DTEX3"},{"$f":"IF(ISERROR(Dados!AG140),\"-\",Dados!AG140)","v":1546}]
[{"$f":"IF(ISERROR(Dados!A141),\"-\",Dados!A141)","v":"MULT3"},{"$f":"IF(ISERROR(Dados!B141),\"-\",Dados!B141)","v":"Outros"},{"$f":"IF(ISERROR(Dados!C141),\"-\",Dados!C141)","v":"Multiplan"},{"$f":"IF(ISERROR(Dados!D141),\"-\",Dados!D141)","v":23.39},{"$f":"IF(ISERROR(Dados!E141),\"-\",Dados!E141)","v":594.39700000000005},{"$f":"IF(ISERROR(Dados!F141),\"-\",Dados!F141)","v":13902.95},{"$f":"IF(ISERROR(Dados!G141),\"-\",Dados!G141)","v":5335.98},{"$f":"IF(ISERROR(Dados!H141),\"-\",Dados!H141)","v":1156.3800000000001},{"$f":"IF(ISERROR(Dados!I141),\"-\",Dados!I141)","v":1229.1400000000001},{"$f":"IF(ISERROR(Dados!J141),\"-\",Dados!J141)","v":369.4},{"$f":"IF(ISERROR(Dados!K141),\"-\",Dados!K141)","v":98.13},{"$f":"IF(ISERROR(Dados!L141),\"-\",Dados!L141)","v":243.81},{"$f":"IF(ISERROR(Dados!M141),\"-\",Dados!M141)","v":360.26},{"$f":"IF(ISERROR(Dados!N141),\"-\",Dados!N141)","v":472.95},{"$f":"IF(ISERROR(Dados!O141),\"-\",Dados!O141)","v":369.4},{"$f":"IF(ISERROR(Dados!P141),\"-\",Dados!P141)","v":472.95},{"$f":"IF(ISERROR(Dados!Q141),\"-\",Dados!Q141)","v":0.79568032813086198},{"$f":"IF(ISERROR(Dados!R141),\"-\",Dados!R141)","v":8.9771314458181983},{"$f":"IF(ISERROR(Dados!S141),\"-\",Dados!S141)","v":2.605509359105544},{"$f":"IF(ISERROR(Dados!T141),\"-\",Dados!T141)","v":29.396227571624909},{"$f":"IF(ISERROR(Dados!U141),\"-\",Dados!U141)","v":9.0489E-2},{"$f":"IF(ISERROR(Dados!V141),\"-\",Dados!V141)","v":0.36582500000000001},{"$f":"IF(ISERROR(Dados!W141),\"-\",Dados!W141)","v":818.1},{"$f":"IF(ISERROR(Dados!X141),\"-\",Dados!X141)","v":939.2},{"$f":"IF(ISERROR(Dados!Y141),\"-\",Dados!Y141)","v":939.2},{"$f":"IF(ISERROR(Dados!Z141),\"-\",Dados!Z141)","v":16.887684199318567},{"$f":"IF(ISERROR(Dados!AA141),\"-\",Dados!AA141)","v":301.07},{"$f":"IF(ISERROR(Dados!AB141),\"-\",Dados!AB141)","v":2.1655116360196933E-2},{"$f":"IF(ISERROR(Dados!AC141),\"-\",Dados!AC141)","v":-7.1},{"$f":"IF(ISERROR(Dados!AD141),\"-\",Dados!AD141)","v":1.2},{"$f":"IF(ISERROR(Dados!AE141),\"-\",Dados!AE141)","v":0.95087963095372285},{"$f":"IF(ISERROR(Dados!AF141),\"-\",Dados!AF141)","v":"MULT3"},{"$f":"IF(ISERROR(Dados!AG141),\"-\",Dados!AG141)","v":939.2}]
[{"$f":"IF(ISERROR(Dados!A142),\"-\",Dados!A142)","v":"JPSA4"},{"$f":"IF(ISERROR(Dados!B142),\"-\",Dados!B142)","v":"Outros"},{"$f":"IF(ISERROR(Dados!C142),\"-\",Dados!C142)","v":"Jereissati"},{"$f":"IF(ISERROR(Dados!D142),\"-\",Dados!D142)","v":"-"},{"$f":"IF(ISERROR(Dados!E142),\"-\",Dados!E142)","v":87.888999999999996},{"$f":"IF(ISERROR(Dados!F142),\"-\",Dados!F142)","v":2130.4299999999998},{"$f":"IF(ISERROR(Dados!G142),\"-\",Dados!G142)","v":1446.32},{"$f":"IF(ISERROR(Dados!H142),\"-\",Dados!H142)","v":693.24},{"$f":"IF(ISERROR(Dados!I142),\"-\",Dados!I142)","v":722.61},{"$f":"IF(ISERROR(Dados!J142),\"-\",Dados!J142)","v":76.900000000000006},{"$f":"IF(ISERROR(Dados!K142),\"-\",Dados!K142)","v":22.9},{"$f":"IF(ISERROR(Dados!L142),\"-\",Dados!L142)","v":47.07},{"$f":"IF(ISERROR(Dados!M142),\"-\",Dados!M142)","v":80.73},{"$f":"IF(ISERROR(Dados!N142),\"-\",Dados!N142)","v":110.15},{"$f":"IF(ISERROR(Dados!O142),\"-\",Dados!O142)","v":76.900000000000006},{"$f":"IF(ISERROR(Dados!P142),\"-\",Dados!P142)","v":110.15},{"$f":"IF(ISERROR(Dados!Q142),\"-\",Dados!Q142)","v":1.2532853940766195},{"$f":"IF(ISERROR(Dados!R142),\"-\",Dados!R142)","v":16.456211812627291},{"$f":"IF(ISERROR(Dados!S142),\"-\",Dados!S142)","v":"-"},{"$f":"IF(ISERROR(Dados!T142),\"-\",Dados!T142)","v":"-"},{"$f":"IF(ISERROR(Dados!U142),\"-\",Dados!U142)","v":8.5086999999999996E-2},{"$f":"IF(ISERROR(Dados!V142),\"-\",Dados!V142)","v":0.58304},{"$f":"IF(ISERROR(Dados!W142),\"-\",Dados!W142)","v":510.1},{"$f":"IF(ISERROR(Dados!X142),\"-\",Dados!X142)","v":544.70000000000005},{"$f":"IF(ISERROR(Dados!Y142),\"-\",Dados!Y142)","v":544.70000000000005},{"$f":"IF(ISERROR(Dados!Z142),\"-\",Dados!Z142)","v":6.9671966219937573},{"$f":"IF(ISERROR(Dados!AA142),\"-\",Dados!AA142)","v":34.9},{"$f":"IF(ISERROR(Dados!AB142),\"-\",Dados!AB142)","v":1.6381669428237492E-2},{"$f":"IF(ISERROR(Dados!AC142),\"-\",Dados!AC142)","v":"-"},{"$f":"IF(ISERROR(Dados!AD142),\"-\",Dados!AD142)","v":12.7},{"$f":"IF(ISERROR(Dados!AE142),\"-\",Dados!AE142)","v":"-"},{"$f":"IF(ISERROR(Dados!AF142),\"-\",Dados!AF142)","v":"JPSA4"},{"$f":"IF(ISERROR(Dados!AG142),\"-\",Dados!AG142)","v":544.70000000000005}]
[{"$f":"IF(ISERROR(Dados!A143),\"-\",Dados!A143)","v":"BKBR3"},{"$f":"IF(ISERROR(Dados!B143),\"-\",Dados!B143)","v":"Outros"},{"$f":"IF(ISERROR(Dados!C143),\"-\",Dados!C143)","v":"Bk Brasil"},{"$f":"IF(ISERROR(Dados!D143),\"-\",Dados!D143)","v":22.11},{"$f":"IF(ISERROR(Dados!E143),\"-\",Dados!E143)","v":227.07499999999999},{"$f":"IF(ISERROR(Dados!F143),\"-\",Dados!F143)","v":5020.63},{"$f":"IF(ISERROR(Dados!G143),\"-\",Dados!G143)","v":1716.96},{"$f":"IF(ISERROR(Dados!H143),\"-\",Dados!H143)","v":1783.84},{"$f":"IF(ISERROR(Dados!I143),\"-\",Dados!I143)","v":2348.33},{"$f":"IF(ISERROR(Dados!J143),\"-\",Dados!J143)","v":3.82},{"$f":"IF(ISERROR(Dados!K143),\"-\",Dados!K143)","v":8.81},{"$f":"IF(ISERROR(Dados!L143),\"-\",Dados!L143)","v":17.38},{"$f":"IF(ISERROR(Dados!M143),\"-\",Dados!M143)","v":44.41},{"$f":"IF(ISERROR(Dados!N143),\"-\",Dados!N143)","v":128.04},{"$f":"IF(ISERROR(Dados!O143),\"-\",Dados!O143)","v":3.82},{"$f":"IF(ISERROR(Dados!P143),\"-\",Dados!P143)","v":128.04},{"$f":"IF(ISERROR(Dados!Q143),\"-\",Dados!Q143)","v":0.56386656391060219},{"$f":"IF(ISERROR(Dados!R143),\"-\",Dados!R143)","v":7.5612022459539805},{"$f":"IF(ISERROR(Dados!S143),\"-\",Dados!S143)","v":2.9241381569751184},{"$f":"IF(ISERROR(Dados!T143),\"-\",Dados!T143)","v":39.211404639175257},{"$f":"IF(ISERROR(Dados!U143),\"-\",Dados!U143)","v":7.9172000000000006E-2},{"$f":"IF(ISERROR(Dados!V143),\"-\",Dados!V143)","v":-0.18140899999999999},{"$f":"IF(ISERROR(Dados!W143),\"-\",Dados!W143)","v":185},{"$f":"IF(ISERROR(Dados!X143),\"-\",Dados!X143)","v":260},{"$f":"IF(ISERROR(Dados!Y143),\"-\",Dados!Y143)","v":260},{"$f":"IF(ISERROR(Dados!Z143),\"-\",Dados!Z143)","v":18.112146153846155},{"$f":"IF(ISERROR(Dados!AA143),\"-\",Dados!AA143)","v":"-"},{"$f":"IF(ISERROR(Dados!AB143),\"-\",Dados!AB143)","v":"-"},{"$f":"IF(ISERROR(Dados!AC143),\"-\",Dados!AC143)","v":0.1},{"$f":"IF(ISERROR(Dados!AD143),\"-\",Dados!AD143)","v":27.1},{"$f":"IF(ISERROR(Dados!AE143),\"-\",Dados!AE143)","v":0.97985247165033584},{"$f":"IF(ISERROR(Dados!AF143),\"-\",Dados!AF143)","v":"BKBR3"},{"$f":"IF(ISERROR(Dados!AG143),\"-\",Dados!AG143)","v":260}]
[{"$f":"IF(ISERROR(Dados!A144),\"-\",Dados!A144)","v":"LUXM4"},{"$f":"IF(ISERROR(Dados!B144),\"-\",Dados!B144)","v":"Outros"},{"$f":"IF(ISERROR(Dados!C144),\"-\",Dados!C144)","v":"Trevisa"},{"$f":"IF(ISERROR(Dados!D144),\"-\",Dados!D144)","v":15},{"$f":"IF(ISERROR(Dados!E144),\"-\",Dados!E144)","v":5.1959999999999997},{"$f":"IF(ISERROR(Dados!F144),\"-\",Dados!F144)","v":77.94},{"$f":"IF(ISERROR(Dados!G144),\"-\",Dados!G144)","v":105.11},{"$f":"IF(ISERROR(Dados!H144),\"-\",Dados!H144)","v":102.29},{"$f":"IF(ISERROR(Dados!I144),\"-\",Dados!I144)","v":129.77000000000001},{"$f":"IF(ISERROR(Dados!J144),\"-\",Dados!J144)","v":3.89},{"$f":"IF(ISERROR(Dados!K144),\"-\",Dados!K144)","v":-0.6},{"$f":"IF(ISERROR(Dados!L144),\"-\",Dados!L144)","v":5.38},{"$f":"IF(ISERROR(Dados!M144),\"-\",Dados!M144)","v":11.16},{"$f":"IF(ISERROR(Dados!N144),\"-\",Dados!N144)","v":6.23},{"$f":"IF(ISERROR(Dados!O144),\"-\",Dados!O144)","v":3.89},{"$f":"IF(ISERROR(Dados!P144),\"-\",Dados!P144)","v":6.23},{"$f":"IF(ISERROR(Dados!Q144),\"-\",Dados!Q144)","v":1.1989992301770593},{"$f":"IF(ISERROR(Dados!R144),\"-\",Dados!R144)","v":20.229022324865284},{"$f":"IF(ISERROR(Dados!S144),\"-\",Dados!S144)","v":0.74150889544286924},{"$f":"IF(ISERROR(Dados!T144),\"-\",Dados!T144)","v":12.51043338683788},{"$f":"IF(ISERROR(Dados!U144),\"-\",Dados!U144)","v":6.1619E-2},{"$f":"IF(ISERROR(Dados!V144),\"-\",Dados!V144)","v":0.28428500000000001},{"$f":"IF(ISERROR(Dados!W144),\"-\",Dados!W144)","v":28.8},{"$f":"IF(ISERROR(Dados!X144),\"-\",Dados!X144)","v":31.7},{"$f":"IF(ISERROR(Dados!Y144),\"-\",Dados!Y144)","v":31.7},{"$f":"IF(ISERROR(Dados!Z144),\"-\",Dados!Z144)","v":3.4013249211356467},{"$f":"IF(ISERROR(Dados!AA144),\"-\",Dados!AA144)","v":"-"},{"$f":"IF(ISERROR(Dados!AB144),\"-\",Dados!AB144)","v":"-"},{"$f":"IF(ISERROR(Dados!AC144),\"-\",Dados!AC144)","v":-27.2},{"$f":"IF(ISERROR(Dados!AD144),\"-\",Dados!AD144)","v":"-"},{"$f":"IF(ISERROR(Dados!AE144),\"-\",Dados!AE144)","v":0.44264819091608931},{"$f":"IF(ISERROR(Dados!AF144),\"-\",Dados!AF144)","v":"LUXM4"},{"$f":"IF(ISERROR(Dados!AG144),\"-\",Dados!AG144)","v":31.7}]
[{"$f":"IF(ISERROR(Dados!A145),\"-\",Dados!A145)","v":"ALSC3"},{"$f":"IF(ISERROR(Dados!B145),\"-\",Dados!B145)","v":"Outros"},{"$f":"IF(ISERROR(Dados!C145),\"-\",Dados!C145)","v":"Aliansce"},{"$f":"IF(ISERROR(Dados!D145),\"-\",Dados!D145)","v":19.97},{"$f":"IF(ISERROR(Dados!E145),\"-\",Dados!E145)","v":202.66800000000001},{"$f":"IF(ISERROR(Dados!F145),\"-\",Dados!F145)","v":4047.27},{"$f":"IF(ISERROR(Dados!G145),\"-\",Dados!G145)","v":2553.98},{"$f":"IF(ISERROR(Dados!H145),\"-\",Dados!H145)","v":507.69},{"$f":"IF(ISERROR(Dados!I145),\"-\",Dados!I145)","v":508.43},{"$f":"IF(ISERROR(Dados!J145),\"-\",Dados!J145)","v":94.54},{"$f":"IF(ISERROR(Dados!K145),\"-\",Dados!K145)","v":6.4},{"$f":"IF(ISERROR(Dados!L145),\"-\",Dados!L145)","v":31.43},{"$f":"IF(ISERROR(Dados!M145),\"-\",Dados!M145)","v":52.71},{"$f":"IF(ISERROR(Dados!N145),\"-\",Dados!N145)","v":113.96},{"$f":"IF(ISERROR(Dados!O145),\"-\",Dados!O145)","v":94.54},{"$f":"IF(ISERROR(Dados!P145),\"-\",Dados!P145)","v":113.96},{"$f":"IF(ISERROR(Dados!Q145),\"-\",Dados!Q145)","v":0.56229893224386673},{"$f":"IF(ISERROR(Dados!R145),\"-\",Dados!R145)","v":12.601792093473069},{"$f":"IF(ISERROR(Dados!S145),\"-\",Dados!S145)","v":1.5846952442853899},{"$f":"IF(ISERROR(Dados!T145),\"-\",Dados!T145)","v":35.514917163917168},{"$f":"IF(ISERROR(Dados!U145),\"-\",Dados!U145)","v":4.7744000000000002E-2},{"$f":"IF(ISERROR(Dados!V145),\"-\",Dados!V145)","v":-0.21970700000000001},{"$f":"IF(ISERROR(Dados!W145),\"-\",Dados!W145)","v":388.8},{"$f":"IF(ISERROR(Dados!X145),\"-\",Dados!X145)","v":394.4},{"$f":"IF(ISERROR(Dados!Y145),\"-\",Dados!Y145)","v":394.4},{"$f":"IF(ISERROR(Dados!Z145),\"-\",Dados!Z145)","v":8.8101597363083162},{"$f":"IF(ISERROR(Dados!AA145),\"-\",Dados!AA145)","v":23.64},{"$f":"IF(ISERROR(Dados!AB145),\"-\",Dados!AB145)","v":5.840974286370813E-3},{"$f":"IF(ISERROR(Dados!AC145),\"-\",Dados!AC145)","v":-0.6},{"$f":"IF(ISERROR(Dados!AD145),\"-\",Dados!AD145)","v":11.5},{"$f":"IF(ISERROR(Dados!AE145),\"-\",Dados!AE145)","v":"-"},{"$f":"IF(ISERROR(Dados!AF145),\"-\",Dados!AF145)","v":"ALSC3"},{"$f":"IF(ISERROR(Dados!AG145),\"-\",Dados!AG145)","v":394.4}]
[{"$f":"IF(ISERROR(Dados!A146),\"-\",Dados!A146)","v":"TESA3"},{"$f":"IF(ISERROR(Dados!B146),\"-\",Dados!B146)","v":"Outros"},{"$f":"IF(ISERROR(Dados!C146),\"-\",Dados!C146)","v":"Terra Santa"},{"$f":"IF(ISERROR(Dados!D146),\"-\",Dados!D146)","v":13.2},{"$f":"IF(ISERROR(Dados!E146),\"-\",Dados!E146)","v":17.914000000000001},{"$f":"IF(ISERROR(Dados!F146),\"-\",Dados!F146)","v":236.46},{"$f":"IF(ISERROR(Dados!G146),\"-\",Dados!G146)","v":940.01},{"$f":"IF(ISERROR(Dados!H146),\"-\",Dados!H146)","v":796.32},{"$f":"IF(ISERROR(Dados!I146),\"-\",Dados!I146)","v":1119.01},{"$f":"IF(ISERROR(Dados!J146),\"-\",Dados!J146)","v":7.35},{"$f":"IF(ISERROR(Dados!K146),\"-\",Dados!K146)","v":38.01},{"$f":"IF(ISERROR(Dados!L146),\"-\",Dados!L146)","v":18.760000000000002},{"$f":"IF(ISERROR(Dados!M146),\"-\",Dados!M146)","v":31.44},{"$f":"IF(ISERROR(Dados!N146),\"-\",Dados!N146)","v":42.26},{"$f":"IF(ISERROR(Dados!O146),\"-\",Dados!O146)","v":7.35},{"$f":"IF(ISERROR(Dados!P146),\"-\",Dados!P146)","v":42.26},{"$f":"IF(ISERROR(Dados!Q146),\"-\",Dados!Q146)","v":2.3590487886569163},{"$f":"IF(ISERROR(Dados!R146),\"-\",Dados!R146)","v":52.473484425588921},{"$f":"IF(ISERROR(Dados!S146),\"-\",Dados!S146)","v":0.25155562174870483},{"$f":"IF(ISERROR(Dados!T146),\"-\",Dados!T146)","v":5.5954756270705159},{"$f":"IF(ISERROR(Dados!U146),\"-\",Dados!U146)","v":4.2606000000000005E-2},{"$f":"IF(ISERROR(Dados!V146),\"-\",Dados!V146)","v":0.90646100000000007},{"$f":"IF(ISERROR(Dados!W146),\"-\",Dados!W146)","v":85.6},{"$f":"IF(ISERROR(Dados!X146),\"-\",Dados!X146)","v":172.3},{"$f":"IF(ISERROR(Dados!Y146),\"-\",Dados!Y146)","v":172.3},{"$f":"IF(ISERROR(Dados!Z146),\"-\",Dados!Z146)","v":6.3176900754497964},{"$f":"IF(ISERROR(Dados!AA146),\"-\",Dados!AA146)","v":"-"},{"$f":"IF(ISERROR(Dados!AB146),\"-\",Dados!AB146)","v":"-"},{"$f":"IF(ISERROR(Dados!AC146),\"-\",Dados!AC146)","v":0.8},{"$f":"IF(ISERROR(Dados!AD146),\"-\",Dados!AD146)","v":-11.3},{"$f":"IF(ISERROR(Dados!AE146),\"-\",Dados!AE146)","v":0.99921848833314708},{"$f":"IF(ISERROR(Dados!AF146),\"-\",Dados!AF146)","v":"TESA3"},{"$f":"IF(ISERROR(Dados!AG146),\"-\",Dados!AG146)","v":172.3}]
[{"$f":"IF(ISERROR(Dados!A147),\"-\",Dados!A147)","v":"GPCP3"},{"$f":"IF(ISERROR(Dados!B147),\"-\",Dados!B147)","v":"Outros"},{"$f":"IF(ISERROR(Dados!C147),\"-\",Dados!C147)","v":"GPC Part"},{"$f":"IF(ISERROR(Dados!D147),\"-\",Dados!D147)","v":12.84},{"$f":"IF(ISERROR(Dados!E147),\"-\",Dados!E147)","v":6.2679999999999998},{"$f":"IF(ISERROR(Dados!F147),\"-\",Dados!F147)","v":80.48},{"$f":"IF(ISERROR(Dados!G147),\"-\",Dados!G147)","v":161.22},{"$f":"IF(ISERROR(Dados!H147),\"-\",Dados!H147)","v":483.88},{"$f":"IF(ISERROR(Dados!I147),\"-\",Dados!I147)","v":735.14},{"$f":"IF(ISERROR(Dados!J147),\"-\",Dados!J147)","v":81.16},{"$f":"IF(ISERROR(Dados!K147),\"-\",Dados!K147)","v":9.0500000000000007},{"$f":"IF(ISERROR(Dados!L147),\"-\",Dados!L147)","v":-3.33},{"$f":"IF(ISERROR(Dados!M147),\"-\",Dados!M147)","v":1.23},{"$f":"IF(ISERROR(Dados!N147),\"-\",Dados!N147)","v":6.8},{"$f":"IF(ISERROR(Dados!O147),\"-\",Dados!O147)","v":81.16},{"$f":"IF(ISERROR(Dados!P147),\"-\",Dados!P147)","v":6.8},{"$f":"IF(ISERROR(Dados!Q147),\"-\",Dados!Q147)","v":1.0848755583918315},{"$f":"IF(ISERROR(Dados!R147),\"-\",Dados!R147)","v":25.721123165283984},{"$f":"IF(ISERROR(Dados!S147),\"-\",Dados!S147)","v":0.49920059545962037},{"$f":"IF(ISERROR(Dados!T147),\"-\",Dados!T147)","v":11.835458823529413},{"$f":"IF(ISERROR(Dados!U147),\"-\",Dados!U147)","v":4.1346999999999995E-2},{"$f":"IF(ISERROR(Dados!V147),\"-\",Dados!V147)","v":0.88306600000000002},{"$f":"IF(ISERROR(Dados!W147),\"-\",Dados!W147)","v":118.9},{"$f":"IF(ISERROR(Dados!X147),\"-\",Dados!X147)","v":65.2},{"$f":"IF(ISERROR(Dados!Y147),\"-\",Dados!Y147)","v":65.2},{"$f":"IF(ISERROR(Dados!Z147),\"-\",Dados!Z147)","v":3.7758128834355826},{"$f":"IF(ISERROR(Dados!AA147),\"-\",Dados!AA147)","v":"-"},{"$f":"IF(ISERROR(Dados!AB147),\"-\",Dados!AB147)","v":"-"},{"$f":"IF(ISERROR(Dados!AC147),\"-\",Dados!AC147)","v":29.7},{"$f":"IF(ISERROR(Dados!AD147),\"-\",Dados!AD147)","v":-21.4},{"$f":"IF(ISERROR(Dados!AE147),\"-\",Dados!AE147)","v":0.94128908742820683},{"$f":"IF(ISERROR(Dados!AF147),\"-\",Dados!AF147)","v":"GPCP3"},{"$f":"IF(ISERROR(Dados!AG147),\"-\",Dados!AG147)","v":65.2}]
[{"$f":"IF(ISERROR(Dados!A148),\"-\",Dados!A148)","v":"AALR3"},{"$f":"IF(ISERROR(Dados!B148),\"-\",Dados!B148)","v":"Outros"},{"$f":"IF(ISERROR(Dados!C148),\"-\",Dados!C148)","v":"Alliar"},{"$f":"IF(ISERROR(Dados!D148),\"-\",Dados!D148)","v":14.52},{"$f":"IF(ISERROR(Dados!E148),\"-\",Dados!E148)","v":118.062},{"$f":"IF(ISERROR(Dados!F148),\"-\",Dados!F148)","v":1714.25},{"$f":"IF(ISERROR(Dados!G148),\"-\",Dados!G148)","v":1256.95},{"$f":"IF(ISERROR(Dados!H148),\"-\",Dados!H148)","v":1077.8800000000001},{"$f":"IF(ISERROR(Dados!I148),\"-\",Dados!I148)","v":1076.92},{"$f":"IF(ISERROR(Dados!J148),\"-\",Dados!J148)","v":6.65},{"$f":"IF(ISERROR(Dados!K148),\"-\",Dados!K148)","v":7.1},{"$f":"IF(ISERROR(Dados!L148),\"-\",Dados!L148)","v":12.37},{"$f":"IF(ISERROR(Dados!M148),\"-\",Dados!M148)","v":23.59},{"$f":"IF(ISERROR(Dados!N148),\"-\",Dados!N148)","v":40.090000000000003},{"$f":"IF(ISERROR(Dados!O148),\"-\",Dados!O148)","v":6.65},{"$f":"IF(ISERROR(Dados!P148),\"-\",Dados!P148)","v":40.090000000000003},{"$f":"IF(ISERROR(Dados!Q148),\"-\",Dados!Q148)","v":0.33956734597076116},{"$f":"IF(ISERROR(Dados!R148),\"-\",Dados!R148)","v":10.646524707357152},{"$f":"IF(ISERROR(Dados!S148),\"-\",Dados!S148)","v":1.3638253232029913},{"$f":"IF(ISERROR(Dados!T148),\"-\",Dados!T148)","v":42.76029533549513},{"$f":"IF(ISERROR(Dados!U148),\"-\",Dados!U148)","v":4.0594999999999999E-2},{"$f":"IF(ISERROR(Dados!V148),\"-\",Dados!V148)","v":0.40958799999999995},{"$f":"IF(ISERROR(Dados!W148),\"-\",Dados!W148)","v":149.4},{"$f":"IF(ISERROR(Dados!X148),\"-\",Dados!X148)","v":219.9},{"$f":"IF(ISERROR(Dados!Y148),\"-\",Dados!Y148)","v":219.9},{"$f":"IF(ISERROR(Dados!Z148),\"-\",Dados!Z148)","v":10.216443838108232},{"$f":"IF(ISERROR(Dados!AA148),\"-\",Dados!AA148)","v":"-"},{"$f":"IF(ISERROR(Dados!AB148),\"-\",Dados!AB148)","v":"-"},{"$f":"IF(ISERROR(Dados!AC148),\"-\",Dados!AC148)","v":-8.1},{"$f":"IF(ISERROR(Dados!AD148),\"-\",Dados!AD148)","v":-1.9},{"$f":"IF(ISERROR(Dados!AE148),\"-\",Dados!AE148)","v":"-"},{"$f":"IF(ISERROR(Dados!AF148),\"-\",Dados!AF148)","v":"AALR3"},{"$f":"IF(ISERROR(Dados!AG148),\"-\",Dados!AG148)","v":219.9}]
[{"$f":"IF(ISERROR(Dados!A149),\"-\",Dados!A149)","v":"MOAR3"},{"$f":"IF(ISERROR(Dados!B149),\"-\",Dados!B149)","v":"Outros"},{"$f":"IF(ISERROR(Dados!C149),\"-\",Dados!C149)","v":"Mont Aranha"},{"$f":"IF(ISERROR(Dados!D149),\"-\",Dados!D149)","v":170},{"$f":"IF(ISERROR(Dados!E149),\"-\",Dados!E149)","v":12.250999999999999},{"$f":"IF(ISERROR(Dados!F149),\"-\",Dados!F149)","v":2082.71},{"$f":"IF(ISERROR(Dados!G149),\"-\",Dados!G149)","v":1134.1600000000001},{"$f":"IF(ISERROR(Dados!H149),\"-\",Dados!H149)","v":2.76},{"$f":"IF(ISERROR(Dados!I149),\"-\",Dados!I149)","v":3.67},{"$f":"IF(ISERROR(Dados!J149),\"-\",Dados!J149)","v":141.19},{"$f":"IF(ISERROR(Dados!K149),\"-\",Dados!K149)","v":-9.65},{"$f":"IF(ISERROR(Dados!L149),\"-\",Dados!L149)","v":-19.16},{"$f":"IF(ISERROR(Dados!M149),\"-\",Dados!M149)","v":8.35},{"$f":"IF(ISERROR(Dados!N149),\"-\",Dados!N149)","v":40.81},{"$f":"IF(ISERROR(Dados!O149),\"-\",Dados!O149)","v":141.19},{"$f":"IF(ISERROR(Dados!P149),\"-\",Dados!P149)","v":40.81},{"$f":"IF(ISERROR(Dados!Q149),\"-\",Dados!Q149)","v":3.3311566402742638},{"$f":"IF(ISERROR(Dados!R149),\"-\",Dados!R149)","v":92.576932495306522},{"$f":"IF(ISERROR(Dados!S149),\"-\",Dados!S149)","v":1.8363105734640612},{"$f":"IF(ISERROR(Dados!T149),\"-\",Dados!T149)","v":51.033325165400626},{"$f":"IF(ISERROR(Dados!U149),\"-\",Dados!U149)","v":3.4019000000000001E-2},{"$f":"IF(ISERROR(Dados!V149),\"-\",Dados!V149)","v":-0.30665500000000001},{"$f":"IF(ISERROR(Dados!W149),\"-\",Dados!W149)","v":99.6},{"$f":"IF(ISERROR(Dados!X149),\"-\",Dados!X149)","v":21},{"$f":"IF(ISERROR(Dados!Y149),\"-\",Dados!Y149)","v":21},{"$f":"IF(ISERROR(Dados!Z149),\"-\",Dados!Z149)","v":82.56280952380952},{"$f":"IF(ISERROR(Dados!AA149),\"-\",Dados!AA149)","v":188.14},{"$f":"IF(ISERROR(Dados!AB149),\"-\",Dados!AB149)","v":9.0334228001017897E-2},{"$f":"IF(ISERROR(Dados!AC149),\"-\",Dados!AC149)","v":-2.9},{"$f":"IF(ISERROR(Dados!AD149),\"-\",Dados!AD149)","v":29},{"$f":"IF(ISERROR(Dados!AE149),\"-\",Dados!AE149)","v":"-"},{"$f":"IF(ISERROR(Dados!AF149),\"-\",Dados!AF149)","v":"MOAR3"},{"$f":"IF(ISERROR(Dados!AG149),\"-\",Dados!AG149)","v":21}]
[{"$f":"IF(ISERROR(Dados!A150),\"-\",Dados!A150)","v":"SHOW3"},{"$f":"IF(ISERROR(Dados!B150),\"-\",Dados!B150)","v":"Outros"},{"$f":"IF(ISERROR(Dados!C150),\"-\",Dados!C150)","v":"Time For Fun"},{"$f":"IF(ISERROR(Dados!D150),\"-\",Dados!D150)","v":6.78},{"$f":"IF(ISERROR(Dados!E150),\"-\",Dados!E150)","v":67.286000000000001},{"$f":"IF(ISERROR(Dados!F150),\"-\",Dados!F150)","v":456.2},{"$f":"IF(ISERROR(Dados!G150),\"-\",Dados!G150)","v":329.17},{"$f":"IF(ISERROR(Dados!H150),\"-\",Dados!H150)","v":652.9},{"$f":"IF(ISERROR(Dados!I150),\"-\",Dados!I150)","v":598.38},{"$f":"IF(ISERROR(Dados!J150),\"-\",Dados!J150)","v":44.35},{"$f":"IF(ISERROR(Dados!K150),\"-\",Dados!K150)","v":4.01},{"$f":"IF(ISERROR(Dados!L150),\"-\",Dados!L150)","v":7.62},{"$f":"IF(ISERROR(Dados!M150),\"-\",Dados!M150)","v":20.67},{"$f":"IF(ISERROR(Dados!N150),\"-\",Dados!N150)","v":8.3800000000000008},{"$f":"IF(ISERROR(Dados!O150),\"-\",Dados!O150)","v":44.35},{"$f":"IF(ISERROR(Dados!P150),\"-\",Dados!P150)","v":8.3800000000000008},{"$f":"IF(ISERROR(Dados!Q150),\"-\",Dados!Q150)","v":0.12454299557114408},{"$f":"IF(ISERROR(Dados!R150),\"-\",Dados!R150)","v":4.892102368992064},{"$f":"IF(ISERROR(Dados!S150),\"-\",Dados!S150)","v":1.3859072211926968},{"$f":"IF(ISERROR(Dados!T150),\"-\",Dados!T150)","v":54.439031026252984},{"$f":"IF(ISERROR(Dados!U150),\"-\",Dados!U150)","v":3.2508000000000002E-2},{"$f":"IF(ISERROR(Dados!V150),\"-\",Dados!V150)","v":-0.25469999999999998},{"$f":"IF(ISERROR(Dados!W150),\"-\",Dados!W150)","v":75},{"$f":"IF(ISERROR(Dados!X150),\"-\",Dados!X150)","v":37.4},{"$f":"IF(ISERROR(Dados!Y150),\"-\",Dados!Y150)","v":37.4},{"$f":"IF(ISERROR(Dados!Z150),\"-\",Dados!Z150)","v":9.92},{"$f":"IF(ISERROR(Dados!AA150),\"-\",Dados!AA150)","v":21.07},{"$f":"IF(ISERROR(Dados!AB150),\"-\",Dados!AB150)","v":4.6185883384480493E-2},{"$f":"IF(ISERROR(Dados!AC150),\"-\",Dados!AC150)","v":-6.5},{"$f":"IF(ISERROR(Dados!AD150),\"-\",Dados!AD150)","v":-4.8},{"$f":"IF(ISERROR(Dados!AE150),\"-\",Dados!AE150)","v":"-"},{"$f":"IF(ISERROR(Dados!AF150),\"-\",Dados!AF150)","v":"SHOW3"},{"$f":"IF(ISERROR(Dados!AG150),\"-\",Dados!AG150)","v":37.4}]
[{"$f":"IF(ISERROR(Dados!A151),\"-\",Dados!A151)","v":"TECN3"},{"$f":"IF(ISERROR(Dados!B151),\"-\",Dados!B151)","v":"Outros"},{"$f":"IF(ISERROR(Dados!C151),\"-\",Dados!C151)","v":"Technos"},{"$f":"IF(ISERROR(Dados!D151),\"-\",Dados!D151)","v":2.44},{"$f":"IF(ISERROR(Dados!E151),\"-\",Dados!E151)","v":77.298000000000002},{"$f":"IF(ISERROR(Dados!F151),\"-\",Dados!F151)","v":188.61},{"$f":"IF(ISERROR(Dados!G151),\"-\",Dados!G151)","v":465.69},{"$f":"IF(ISERROR(Dados!H151),\"-\",Dados!H151)","v":340.08},{"$f":"IF(ISERROR(Dados!I151),\"-\",Dados!I151)","v":305.7},{"$f":"IF(ISERROR(Dados!J151),\"-\",Dados!J151)","v":-1.92},{"$f":"IF(ISERROR(Dados!K151),\"-\",Dados!K151)","v":-15.02},{"$f":"IF(ISERROR(Dados!L151),\"-\",Dados!L151)","v":-7.54},{"$f":"IF(ISERROR(Dados!M151),\"-\",Dados!M151)","v":-11.26},{"$f":"IF(ISERROR(Dados!N151),\"-\",Dados!N151)","v":14.37},{"$f":"IF(ISERROR(Dados!O151),\"-\",Dados!O151)","v":-1.92},{"$f":"IF(ISERROR(Dados!P151),\"-\",Dados!P151)","v":14.37},{"$f":"IF(ISERROR(Dados!Q151),\"-\",Dados!Q151)","v":0.18590390437010013},{"$f":"IF(ISERROR(Dados!R151),\"-\",Dados!R151)","v":6.0246060700147481},{"$f":"IF(ISERROR(Dados!S151),\"-\",Dados!S151)","v":0.40500573342781676},{"$f":"IF(ISERROR(Dados!T151),\"-\",Dados!T151)","v":13.125060542797495},{"$f":"IF(ISERROR(Dados!U151),\"-\",Dados!U151)","v":3.0971000000000002E-2},{"$f":"IF(ISERROR(Dados!V151),\"-\",Dados!V151)","v":6.2107999999999997E-2},{"$f":"IF(ISERROR(Dados!W151),\"-\",Dados!W151)","v":9.3000000000000007},{"$f":"IF(ISERROR(Dados!X151),\"-\",Dados!X151)","v":8.4},{"$f":"IF(ISERROR(Dados!Y151),\"-\",Dados!Y151)","v":8.4},{"$f":"IF(ISERROR(Dados!Z151),\"-\",Dados!Z151)","v":25.896785714285716},{"$f":"IF(ISERROR(Dados!AA151),\"-\",Dados!AA151)","v":"-"},{"$f":"IF(ISERROR(Dados!AB151),\"-\",Dados!AB151)","v":"-"},{"$f":"IF(ISERROR(Dados!AC151),\"-\",Dados!AC151)","v":-1.6},{"$f":"IF(ISERROR(Dados!AD151),\"-\",Dados!AD151)","v":-31.3},{"$f":"IF(ISERROR(Dados!AE151),\"-\",Dados!AE151)","v":"-"},{"$f":"IF(ISERROR(Dados!AF151),\"-\",Dados!AF151)","v":"TECN3"},{"$f":"IF(ISERROR(Dados!AG151),\"-\",Dados!AG151)","v":8.4}]
[{"$f":"IF(ISERROR(Dados!A152),\"-\",Dados!A152)","v":"OMGE3"},{"$f":"IF(ISERROR(Dados!B152),\"-\",Dados!B152)","v":"Outros"},{"$f":"IF(ISERROR(Dados!C152),\"-\",Dados!C152)","v":"Omega Ger"},{"$f":"IF(ISERROR(Dados!D152),\"-\",Dados!D152)","v":19.5},{"$f":"IF(ISERROR(Dados!E152),\"-\",Dados!E152)","v":136.83799999999999},{"$f":"IF(ISERROR(Dados!F152),\"-\",Dados!F152)","v":2668.35},{"$f":"IF(ISERROR(Dados!G152),\"-\",Dados!G152)","v":1811.96},{"$f":"IF(ISERROR(Dados!H152),\"-\",Dados!H152)","v":546.11},{"$f":"IF(ISERROR(Dados!I152),\"-\",Dados!I152)","v":742.02},{"$f":"IF(ISERROR(Dados!J152),\"-\",Dados!J152)","v":100.38},{"$f":"IF(ISERROR(Dados!K152),\"-\",Dados!K152)","v":-16.420000000000002},{"$f":"IF(ISERROR(Dados!L152),\"-\",Dados!L152)","v":-36.159999999999997},{"$f":"IF(ISERROR(Dados!M152),\"-\",Dados!M152)","v":-11.85},{"$f":"IF(ISERROR(Dados!N152),\"-\",Dados!N152)","v":41.89},{"$f":"IF(ISERROR(Dados!O152),\"-\",Dados!O152)","v":100.38},{"$f":"IF(ISERROR(Dados!P152),\"-\",Dados!P152)","v":41.89},{"$f":"IF(ISERROR(Dados!Q152),\"-\",Dados!Q152)","v":0.30612841462166945},{"$f":"IF(ISERROR(Dados!R152),\"-\",Dados!R152)","v":13.241643403148249},{"$f":"IF(ISERROR(Dados!S152),\"-\",Dados!S152)","v":1.4726268791805559},{"$f":"IF(ISERROR(Dados!T152),\"-\",Dados!T152)","v":63.698758653616608},{"$f":"IF(ISERROR(Dados!U152),\"-\",Dados!U152)","v":2.7633999999999999E-2},{"$f":"IF(ISERROR(Dados!V152),\"-\",Dados!V152)","v":1.0313030000000001},{"$f":"IF(ISERROR(Dados!W152),\"-\",Dados!W152)","v":291.89999999999998},{"$f":"IF(ISERROR(Dados!X152),\"-\",Dados!X152)","v":393.2},{"$f":"IF(ISERROR(Dados!Y152),\"-\",Dados!Y152)","v":393.2},{"$f":"IF(ISERROR(Dados!Z152),\"-\",Dados!Z152)","v":11.653031536113936},{"$f":"IF(ISERROR(Dados!AA152),\"-\",Dados!AA152)","v":10.68},{"$f":"IF(ISERROR(Dados!AB152),\"-\",Dados!AB152)","v":4.0024734386418575E-3},{"$f":"IF(ISERROR(Dados!AC152),\"-\",Dados!AC152)","v":-2},{"$f":"IF(ISERROR(Dados!AD152),\"-\",Dados!AD152)","v":12},{"$f":"IF(ISERROR(Dados!AE152),\"-\",Dados!AE152)","v":0.86087198000555398},{"$f":"IF(ISERROR(Dados!AF152),\"-\",Dados!AF152)","v":"OMGE3"},{"$f":"IF(ISERROR(Dados!AG152),\"-\",Dados!AG152)","v":393.2}]
[{"$f":"IF(ISERROR(Dados!A153),\"-\",Dados!A153)","v":"CCPR3"},{"$f":"IF(ISERROR(Dados!B153),\"-\",Dados!B153)","v":"Outros"},{"$f":"IF(ISERROR(Dados!C153),\"-\",Dados!C153)","v":"Cyre Com-Ccp"},{"$f":"IF(ISERROR(Dados!D153),\"-\",Dados!D153)","v":12.7},{"$f":"IF(ISERROR(Dados!E153),\"-\",Dados!E153)","v":119.664},{"$f":"IF(ISERROR(Dados!F153),\"-\",Dados!F153)","v":1519.73},{"$f":"IF(ISERROR(Dados!G153),\"-\",Dados!G153)","v":1045.42},{"$f":"IF(ISERROR(Dados!H153),\"-\",Dados!H153)","v":446.27},{"$f":"IF(ISERROR(Dados!I153),\"-\",Dados!I153)","v":489.77},{"$f":"IF(ISERROR(Dados!J153),\"-\",Dados!J153)","v":174.2},{"$f":"IF(ISERROR(Dados!K153),\"-\",Dados!K153)","v":8.99},{"$f":"IF(ISERROR(Dados!L153),\"-\",Dados!L153)","v":31.99},{"$f":"IF(ISERROR(Dados!M153),\"-\",Dados!M153)","v":12.89},{"$f":"IF(ISERROR(Dados!N153),\"-\",Dados!N153)","v":-0.89},{"$f":"IF(ISERROR(Dados!O153),\"-\",Dados!O153)","v":174.2},{"$f":"IF(ISERROR(Dados!P153),\"-\",Dados!P153)","v":-0.89},{"$f":"IF(ISERROR(Dados!Q153),\"-\",Dados!Q153)","v":-7.4374916432678167E-3},{"$f":"IF(ISERROR(Dados!R153),\"-\",Dados!R153)","v":8.7362949592191477},{"$f":"IF(ISERROR(Dados!S153),\"-\",Dados!S153)","v":1.4537054963555316},{"$f":"IF(ISERROR(Dados!T153),\"-\",Dados!T153)","v":"-"},{"$f":"IF(ISERROR(Dados!U153),\"-\",Dados!U153)","v":2.6459E-2},{"$f":"IF(ISERROR(Dados!V153),\"-\",Dados!V153)","v":0.76144499999999993},{"$f":"IF(ISERROR(Dados!W153),\"-\",Dados!W153)","v":523.1},{"$f":"IF(ISERROR(Dados!X153),\"-\",Dados!X153)","v":256.89999999999998},{"$f":"IF(ISERROR(Dados!Y153),\"-\",Dados!Y153)","v":256.89999999999998},{"$f":"IF(ISERROR(Dados!Z153),\"-\",Dados!Z153)","v":11.175274425846634},{"$f":"IF(ISERROR(Dados!AA153),\"-\",Dados!AA153)","v":120},{"$f":"IF(ISERROR(Dados!AB153),\"-\",Dados!AB153)","v":7.8961394458226128E-2},{"$f":"IF(ISERROR(Dados!AC153),\"-\",Dados!AC153)","v":2.8},{"$f":"IF(ISERROR(Dados!AD153),\"-\",Dados!AD153)","v":58.3},{"$f":"IF(ISERROR(Dados!AE153),\"-\",Dados!AE153)","v":"-"},{"$f":"IF(ISERROR(Dados!AF153),\"-\",Dados!AF153)","v":"CCPR3"},{"$f":"IF(ISERROR(Dados!AG153),\"-\",Dados!AG153)","v":256.89999999999998}]
[{"$f":"IF(ISERROR(Dados!A154),\"-\",Dados!A154)","v":"EUCA4"},{"$f":"IF(ISERROR(Dados!B154),\"-\",Dados!B154)","v":"Outros"},{"$f":"IF(ISERROR(Dados!C154),\"-\",Dados!C154)","v":"Eucatex"},{"$f":"IF(ISERROR(Dados!D154),\"-\",Dados!D154)","v":3.96},{"$f":"IF(ISERROR(Dados!E154),\"-\",Dados!E154)","v":92.156000000000006},{"$f":"IF(ISERROR(Dados!F154),\"-\",Dados!F154)","v":364.94},{"$f":"IF(ISERROR(Dados!G154),\"-\",Dados!G154)","v":1262.97},{"$f":"IF(ISERROR(Dados!H154),\"-\",Dados!H154)","v":1205.3599999999999},{"$f":"IF(ISERROR(Dados!I154),\"-\",Dados!I154)","v":1262.33},{"$f":"IF(ISERROR(Dados!J154),\"-\",Dados!J154)","v":41.94},{"$f":"IF(ISERROR(Dados!K154),\"-\",Dados!K154)","v":1.72},{"$f":"IF(ISERROR(Dados!L154),\"-\",Dados!L154)","v":-9.93},{"$f":"IF(ISERROR(Dados!M154),\"-\",Dados!M154)","v":-7.14},{"$f":"IF(ISERROR(Dados!N154),\"-\",Dados!N154)","v":28.97},{"$f":"IF(ISERROR(Dados!O154),\"-\",Dados!O154)","v":41.94},{"$f":"IF(ISERROR(Dados!P154),\"-\",Dados!P154)","v":28.97},{"$f":"IF(ISERROR(Dados!Q154),\"-\",Dados!Q154)","v":0.31435826207734707},{"$f":"IF(ISERROR(Dados!R154),\"-\",Dados!R154)","v":13.704696384391683},{"$f":"IF(ISERROR(Dados!S154),\"-\",Dados!S154)","v":0.28895204161619042},{"$f":"IF(ISERROR(Dados!T154),\"-\",Dados!T154)","v":12.597092164307906},{"$f":"IF(ISERROR(Dados!U154),\"-\",Dados!U154)","v":2.3414000000000001E-2},{"$f":"IF(ISERROR(Dados!V154),\"-\",Dados!V154)","v":0.32943399999999995},{"$f":"IF(ISERROR(Dados!W154),\"-\",Dados!W154)","v":211.8},{"$f":"IF(ISERROR(Dados!X154),\"-\",Dados!X154)","v":234},{"$f":"IF(ISERROR(Dados!Y154),\"-\",Dados!Y154)","v":234},{"$f":"IF(ISERROR(Dados!Z154),\"-\",Dados!Z154)","v":3.3375726495726492},{"$f":"IF(ISERROR(Dados!AA154),\"-\",Dados!AA154)","v":"-"},{"$f":"IF(ISERROR(Dados!AB154),\"-\",Dados!AB154)","v":"-"},{"$f":"IF(ISERROR(Dados!AC154),\"-\",Dados!AC154)","v":-5.9},{"$f":"IF(ISERROR(Dados!AD154),\"-\",Dados!AD154)","v":1.7},{"$f":"IF(ISERROR(Dados!AE154),\"-\",Dados!AE154)","v":0.33964147749468293},{"$f":"IF(ISERROR(Dados!AF154),\"-\",Dados!AF154)","v":"EUCA4"},{"$f":"IF(ISERROR(Dados!AG154),\"-\",Dados!AG154)","v":234}]
[{"$f":"IF(ISERROR(Dados!A155),\"-\",Dados!A155)","v":"UCAS3"},{"$f":"IF(ISERROR(Dados!B155),\"-\",Dados!B155)","v":"Outros"},{"$f":"IF(ISERROR(Dados!C155),\"-\",Dados!C155)","v":"Unicasa"},{"$f":"IF(ISERROR(Dados!D155),\"-\",Dados!D155)","v":2.93},{"$f":"IF(ISERROR(Dados!E155),\"-\",Dados!E155)","v":66.085999999999999},{"$f":"IF(ISERROR(Dados!F155),\"-\",Dados!F155)","v":193.63},{"$f":"IF(ISERROR(Dados!G155),\"-\",Dados!G155)","v":171.27},{"$f":"IF(ISERROR(Dados!H155),\"-\",Dados!H155)","v":157.94},{"$f":"IF(ISERROR(Dados!I155),\"-\",Dados!I155)","v":149.31},{"$f":"IF(ISERROR(Dados!J155),\"-\",Dados!J155)","v":-6.36},{"$f":"IF(ISERROR(Dados!K155),\"-\",Dados!K155)","v":-0.37},{"$f":"IF(ISERROR(Dados!L155),\"-\",Dados!L155)","v":-0.35},{"$f":"IF(ISERROR(Dados!M155),\"-\",Dados!M155)","v":1.59},{"$f":"IF(ISERROR(Dados!N155),\"-\",Dados!N155)","v":3.39},{"$f":"IF(ISERROR(Dados!O155),\"-\",Dados!O155)","v":-6.36},{"$f":"IF(ISERROR(Dados!P155),\"-\",Dados!P155)","v":3.39},{"$f":"IF(ISERROR(Dados!Q155),\"-\",Dados!Q155)","v":5.1296795085192026E-2},{"$f":"IF(ISERROR(Dados!R155),\"-\",Dados!R155)","v":2.591623036649215},{"$f":"IF(ISERROR(Dados!S155),\"-\",Dados!S155)","v":1.1305656565656566},{"$f":"IF(ISERROR(Dados!T155),\"-\",Dados!T155)","v":57.118578171091443},{"$f":"IF(ISERROR(Dados!U155),\"-\",Dados!U155)","v":2.0218E-2},{"$f":"IF(ISERROR(Dados!V155),\"-\",Dados!V155)","v":-0.225159},{"$f":"IF(ISERROR(Dados!W155),\"-\",Dados!W155)","v":-4.0999999999999996},{"$f":"IF(ISERROR(Dados!X155),\"-\",Dados!X155)","v":10.5},{"$f":"IF(ISERROR(Dados!Y155),\"-\",Dados!Y155)","v":10.5},{"$f":"IF(ISERROR(Dados!Z155),\"-\",Dados!Z155)","v":14.768380952380951},{"$f":"IF(ISERROR(Dados!AA155),\"-\",Dados!AA155)","v":"-"},{"$f":"IF(ISERROR(Dados!AB155),\"-\",Dados!AB155)","v":"-"},{"$f":"IF(ISERROR(Dados!AC155),\"-\",Dados!AC155)","v":2.4},{"$f":"IF(ISERROR(Dados!AD155),\"-\",Dados!AD155)","v":15.4},{"$f":"IF(ISERROR(Dados!AE155),\"-\",Dados!AE155)","v":"-"},{"$f":"IF(ISERROR(Dados!AF155),\"-\",Dados!AF155)","v":"UCAS3"},{"$f":"IF(ISERROR(Dados!AG155),\"-\",Dados!AG155)","v":10.5}]
[{"$f":"IF(ISERROR(Dados!A156),\"-\",Dados!A156)","v":"SCAR3"},{"$f":"IF(ISERROR(Dados!B156),\"-\",Dados!B156)","v":"Outros"},{"$f":"IF(ISERROR(Dados!C156),\"-\",Dados!C156)","v":"Sao Carlos"},{"$f":"IF(ISERROR(Dados!D156),\"-\",Dados!D156)","v":33.799999999999997},{"$f":"IF(ISERROR(Dados!E156),\"-\",Dados!E156)","v":56.042000000000002},{"$f":"IF(ISERROR(Dados!F156),\"-\",Dados!F156)","v":1894.22},{"$f":"IF(ISERROR(Dados!G156),\"-\",Dados!G156)","v":1400.28},{"$f":"IF(ISERROR(Dados!H156),\"-\",Dados!H156)","v":552.41999999999996},{"$f":"IF(ISERROR(Dados!I156),\"-\",Dados!I156)","v":369.22},{"$f":"IF(ISERROR(Dados!J156),\"-\",Dados!J156)","v":119.23},{"$f":"IF(ISERROR(Dados!K156),\"-\",Dados!K156)","v":14.69},{"$f":"IF(ISERROR(Dados!L156),\"-\",Dados!L156)","v":14.22},{"$f":"IF(ISERROR(Dados!M156),\"-\",Dados!M156)","v":17.62},{"$f":"IF(ISERROR(Dados!N156),\"-\",Dados!N156)","v":15.65},{"$f":"IF(ISERROR(Dados!O156),\"-\",Dados!O156)","v":119.23},{"$f":"IF(ISERROR(Dados!P156),\"-\",Dados!P156)","v":15.65},{"$f":"IF(ISERROR(Dados!Q156),\"-\",Dados!Q156)","v":0.27925484458085009},{"$f":"IF(ISERROR(Dados!R156),\"-\",Dados!R156)","v":24.98626030477142},{"$f":"IF(ISERROR(Dados!S156),\"-\",Dados!S156)","v":1.3527434513097381},{"$f":"IF(ISERROR(Dados!T156),\"-\",Dados!T156)","v":121.03639616613417},{"$f":"IF(ISERROR(Dados!U156),\"-\",Dados!U156)","v":1.2115000000000001E-2},{"$f":"IF(ISERROR(Dados!V156),\"-\",Dados!V156)","v":0.688639},{"$f":"IF(ISERROR(Dados!W156),\"-\",Dados!W156)","v":341.1},{"$f":"IF(ISERROR(Dados!X156),\"-\",Dados!X156)","v":191.8},{"$f":"IF(ISERROR(Dados!Y156),\"-\",Dados!Y156)","v":191.8},{"$f":"IF(ISERROR(Dados!Z156),\"-\",Dados!Z156)","v":14.915886339937435},{"$f":"IF(ISERROR(Dados!AA156),\"-\",Dados!AA156)","v":24.83},{"$f":"IF(ISERROR(Dados!AB156),\"-\",Dados!AB156)","v":1.3108297874586901E-2},{"$f":"IF(ISERROR(Dados!AC156),\"-\",Dados!AC156)","v":-1.5},{"$f":"IF(ISERROR(Dados!AD156),\"-\",Dados!AD156)","v":-21.4},{"$f":"IF(ISERROR(Dados!AE156),\"-\",Dados!AE156)","v":"-"},{"$f":"IF(ISERROR(Dados!AF156),\"-\",Dados!AF156)","v":"SCAR3"},{"$f":"IF(ISERROR(Dados!AG156),\"-\",Dados!AG156)","v":191.8}]
[{"$f":"IF(ISERROR(Dados!A157),\"-\",Dados!A157)","v":"ANIM3"},{"$f":"IF(ISERROR(Dados!B157),\"-\",Dados!B157)","v":"Outros"},{"$f":"IF(ISERROR(Dados!C157),\"-\",Dados!C157)","v":"Anima"},{"$f":"IF(ISERROR(Dados!D157),\"-\",Dados!D157)","v":18.7},{"$f":"IF(ISERROR(Dados!E157),\"-\",Dados!E157)","v":77.632000000000005},{"$f":"IF(ISERROR(Dados!F157),\"-\",Dados!F157)","v":1451.72},{"$f":"IF(ISERROR(Dados!G157),\"-\",Dados!G157)","v":665.25},{"$f":"IF(ISERROR(Dados!H157),\"-\",Dados!H157)","v":1045.67},{"$f":"IF(ISERROR(Dados!I157),\"-\",Dados!I157)","v":1102.46},{"$f":"IF(ISERROR(Dados!J157),\"-\",Dados!J157)","v":85.15},{"$f":"IF(ISERROR(Dados!K157),\"-\",Dados!K157)","v":39.94},{"$f":"IF(ISERROR(Dados!L157),\"-\",Dados!L157)","v":36.96},{"$f":"IF(ISERROR(Dados!M157),\"-\",Dados!M157)","v":20.309999999999999},{"$f":"IF(ISERROR(Dados!N157),\"-\",Dados!N157)","v":2.25},{"$f":"IF(ISERROR(Dados!O157),\"-\",Dados!O157)","v":85.15},{"$f":"IF(ISERROR(Dados!P157),\"-\",Dados!P157)","v":2.25},{"$f":"IF(ISERROR(Dados!Q157),\"-\",Dados!Q157)","v":2.8982893652102226E-2},{"$f":"IF(ISERROR(Dados!R157),\"-\",Dados!R157)","v":8.5692755564715579},{"$f":"IF(ISERROR(Dados!S157),\"-\",Dados!S157)","v":2.1822148064637354},{"$f":"IF(ISERROR(Dados!T157),\"-\",Dados!T157)","v":645.20817777777779},{"$f":"IF(ISERROR(Dados!U157),\"-\",Dados!U157)","v":3.2320000000000001E-3},{"$f":"IF(ISERROR(Dados!V157),\"-\",Dados!V157)","v":0.31772500000000004},{"$f":"IF(ISERROR(Dados!W157),\"-\",Dados!W157)","v":137.5},{"$f":"IF(ISERROR(Dados!X157),\"-\",Dados!X157)","v":93},{"$f":"IF(ISERROR(Dados!Y157),\"-\",Dados!Y157)","v":93},{"$f":"IF(ISERROR(Dados!Z157),\"-\",Dados!Z157)","v":17.882645161290323},{"$f":"IF(ISERROR(Dados!AA157),\"-\",Dados!AA157)","v":20.21},{"$f":"IF(ISERROR(Dados!AB157),\"-\",Dados!AB157)","v":1.3921417353208608E-2},{"$f":"IF(ISERROR(Dados!AC157),\"-\",Dados!AC157)","v":-0.1},{"$f":"IF(ISERROR(Dados!AD157),\"-\",Dados!AD157)","v":-33.200000000000003},{"$f":"IF(ISERROR(Dados!AE157),\"-\",Dados!AE157)","v":"-"},{"$f":"IF(ISERROR(Dados!AF157),\"-\",Dados!AF157)","v":"ANIM3"},{"$f":"IF(ISERROR(Dados!AG157),\"-\",Dados!AG157)","v":93}]
[{"$f":"IF(ISERROR(Dados!A158),\"-\",Dados!A158)","v":"BRPR3"},{"$f":"IF(ISERROR(Dados!B158),\"-\",Dados!B158)","v":"Outros"},{"$f":"IF(ISERROR(Dados!C158),\"-\",Dados!C158)","v":"BR Propert"},{"$f":"IF(ISERROR(Dados!D158),\"-\",Dados!D158)","v":8.9},{"$f":"IF(ISERROR(Dados!E158),\"-\",Dados!E158)","v":403.42700000000002},{"$f":"IF(ISERROR(Dados!F158),\"-\",Dados!F158)","v":3590.5},{"$f":"IF(ISERROR(Dados!G158),\"-\",Dados!G158)","v":5870.37},{"$f":"IF(ISERROR(Dados!H158),\"-\",Dados!H158)","v":430.45},{"$f":"IF(ISERROR(Dados!I158),\"-\",Dados!I158)","v":421.32},{"$f":"IF(ISERROR(Dados!J158),\"-\",Dados!J158)","v":277.02},{"$f":"IF(ISERROR(Dados!K158),\"-\",Dados!K158)","v":-11.58},{"$f":"IF(ISERROR(Dados!L158),\"-\",Dados!L158)","v":-73.319999999999993},{"$f":"IF(ISERROR(Dados!M158),\"-\",Dados!M158)","v":-110.43},{"$f":"IF(ISERROR(Dados!N158),\"-\",Dados!N158)","v":13.71},{"$f":"IF(ISERROR(Dados!O158),\"-\",Dados!O158)","v":277.02},{"$f":"IF(ISERROR(Dados!P158),\"-\",Dados!P158)","v":13.71},{"$f":"IF(ISERROR(Dados!Q158),\"-\",Dados!Q158)","v":3.3983843421486415E-2},{"$f":"IF(ISERROR(Dados!R158),\"-\",Dados!R158)","v":14.55125710475501},{"$f":"IF(ISERROR(Dados!S158),\"-\",Dados!S158)","v":0.61163100451930641},{"$f":"IF(ISERROR(Dados!T158),\"-\",Dados!T158)","v":261.88915390226111},{"$f":"IF(ISERROR(Dados!U158),\"-\",Dados!U158)","v":2.3319999999999999E-3},{"$f":"IF(ISERROR(Dados!V158),\"-\",Dados!V158)","v":0.34438000000000002},{"$f":"IF(ISERROR(Dados!W158),\"-\",Dados!W158)","v":487.3},{"$f":"IF(ISERROR(Dados!X158),\"-\",Dados!X158)","v":520.5},{"$f":"IF(ISERROR(Dados!Y158),\"-\",Dados!Y158)","v":520.5},{"$f":"IF(ISERROR(Dados!Z158),\"-\",Dados!Z158)","v":10.782197886647454},{"$f":"IF(ISERROR(Dados!AA158),\"-\",Dados!AA158)","v":65.790000000000006},{"$f":"IF(ISERROR(Dados!AB158),\"-\",Dados!AB158)","v":1.8323353293413176E-2},{"$f":"IF(ISERROR(Dados!AC158),\"-\",Dados!AC158)","v":1.6},{"$f":"IF(ISERROR(Dados!AD158),\"-\",Dados!AD158)","v":-14.5},{"$f":"IF(ISERROR(Dados!AE158),\"-\",Dados!AE158)","v":"-"},{"$f":"IF(ISERROR(Dados!AF158),\"-\",Dados!AF158)","v":"BRPR3"},{"$f":"IF(ISERROR(Dados!AG158),\"-\",Dados!AG158)","v":520.5}]
[{"$f":"IF(ISERROR(Dados!A159),\"-\",Dados!A159)","v":"BAHI3"},{"$f":"IF(ISERROR(Dados!B159),\"-\",Dados!B159)","v":"Outros"},{"$f":"IF(ISERROR(Dados!C159),\"-\",Dados!C159)","v":"Bahema"},{"$f":"IF(ISERROR(Dados!D159),\"-\",Dados!D159)","v":132.5},{"$f":"IF(ISERROR(Dados!E159),\"-\",Dados!E159)","v":1.1719999999999999},{"$f":"IF(ISERROR(Dados!F159),\"-\",Dados!F159)","v":155.29},{"$f":"IF(ISERROR(Dados!G159),\"-\",Dados!G159)","v":52.57},{"$f":"IF(ISERROR(Dados!H159),\"-\",Dados!H159)","v":37.64},{"$f":"IF(ISERROR(Dados!I159),\"-\",Dados!I159)","v":44.11},{"$f":"IF(ISERROR(Dados!J159),\"-\",Dados!J159)","v":-4.5599999999999996},{"$f":"IF(ISERROR(Dados!K159),\"-\",Dados!K159)","v":-1.62},{"$f":"IF(ISERROR(Dados!L159),\"-\",Dados!L159)","v":-0.03},{"$f":"IF(ISERROR(Dados!M159),\"-\",Dados!M159)","v":-0.11},{"$f":"IF(ISERROR(Dados!N159),\"-\",Dados!N159)","v":-2.11},{"$f":"IF(ISERROR(Dados!O159),\"-\",Dados!O159)","v":-4.5599999999999996},{"$f":"IF(ISERROR(Dados!P159),\"-\",Dados!P159)","v":-2.11},{"$f":"IF(ISERROR(Dados!Q159),\"-\",Dados!Q159)","v":-1.8003412969283277},{"$f":"IF(ISERROR(Dados!R159),\"-\",Dados!R159)","v":44.854948805460751},{"$f":"IF(ISERROR(Dados!S159),\"-\",Dados!S159)","v":2.9539661403842494},{"$f":"IF(ISERROR(Dados!T159),\"-\",Dados!T159)","v":"-"},{"$f":"IF(ISERROR(Dados!U159),\"-\",Dados!U159)","v":-4.3601000000000001E-2},{"$f":"IF(ISERROR(Dados!V159),\"-\",Dados!V159)","v":-0.28054200000000001},{"$f":"IF(ISERROR(Dados!W159),\"-\",Dados!W159)","v":-1.3},{"$f":"IF(ISERROR(Dados!X159),\"-\",Dados!X159)","v":-1.4},{"$f":"IF(ISERROR(Dados!Y159),\"-\",Dados!Y159)","v":-1.4},{"$f":"IF(ISERROR(Dados!Z159),\"-\",Dados!Z159)","v":-99.687142857142845},{"$f":"IF(ISERROR(Dados!AA159),\"-\",Dados!AA159)","v":"-"},{"$f":"IF(ISERROR(Dados!AB159),\"-\",Dados!AB159)","v":"-"},{"$f":"IF(ISERROR(Dados!AC159),\"-\",Dados!AC159)","v":-1.1000000000000001},{"$f":"IF(ISERROR(Dados!AD159),\"-\",Dados!AD159)","v":110.4},{"$f":"IF(ISERROR(Dados!AE159),\"-\",Dados!AE159)","v":"-"},{"$f":"IF(ISERROR(Dados!AF159),\"-\",Dados!AF159)","v":"BAHI3"},{"$f":"IF(ISERROR(Dados!AG159),\"-\",Dados!AG159)","v":-1.4}]
[{"$f":"IF(ISERROR(Dados!A160),\"-\",Dados!A160)","v":"MILS3"},{"$f":"IF(ISERROR(Dados!B160),\"-\",Dados!B160)","v":"Outros"},{"$f":"IF(ISERROR(Dados!C160),\"-\",Dados!C160)","v":"Mills"},{"$f":"IF(ISERROR(Dados!D160),\"-\",Dados!D160)","v":4.8},{"$f":"IF(ISERROR(Dados!E160),\"-\",Dados!E160)","v":173.30799999999999},{"$f":"IF(ISERROR(Dados!F160),\"-\",Dados!F160)","v":831.88},{"$f":"IF(ISERROR(Dados!G160),\"-\",Dados!G160)","v":750.31},{"$f":"IF(ISERROR(Dados!H160),\"-\",Dados!H160)","v":291.27},{"$f":"IF(ISERROR(Dados!I160),\"-\",Dados!I160)","v":304.19},{"$f":"IF(ISERROR(Dados!J160),\"-\",Dados!J160)","v":-138.38},{"$f":"IF(ISERROR(Dados!K160),\"-\",Dados!K160)","v":-30.43},{"$f":"IF(ISERROR(Dados!L160),\"-\",Dados!L160)","v":-74.09},{"$f":"IF(ISERROR(Dados!M160),\"-\",Dados!M160)","v":-106.67},{"$f":"IF(ISERROR(Dados!N160),\"-\",Dados!N160)","v":-94.97},{"$f":"IF(ISERROR(Dados!O160),\"-\",Dados!O160)","v":-138.38},{"$f":"IF(ISERROR(Dados!P160),\"-\",Dados!P160)","v":-94.97},{"$f":"IF(ISERROR(Dados!Q160),\"-\",Dados!Q160)","v":-0.54798393611373974},{"$f":"IF(ISERROR(Dados!R160),\"-\",Dados!R160)","v":4.3293442887806677},{"$f":"IF(ISERROR(Dados!S160),\"-\",Dados!S160)","v":1.1087129319881117},{"$f":"IF(ISERROR(Dados!T160),\"-\",Dados!T160)","v":"-"},{"$f":"IF(ISERROR(Dados!U160),\"-\",Dados!U160)","v":-0.11218},{"$f":"IF(ISERROR(Dados!V160),\"-\",Dados!V160)","v":7.8034999999999993E-2},{"$f":"IF(ISERROR(Dados!W160),\"-\",Dados!W160)","v":-43.2},{"$f":"IF(ISERROR(Dados!X160),\"-\",Dados!X160)","v":0.3},{"$f":"IF(ISERROR(Dados!Y160),\"-\",Dados!Y160)","v":0.3},{"$f":"IF(ISERROR(Dados!Z160),\"-\",Dados!Z160)","v":2968.1},{"$f":"IF(ISERROR(Dados!AA160),\"-\",Dados!AA160)","v":"-"},{"$f":"IF(ISERROR(Dados!AB160),\"-\",Dados!AB160)","v":"-"},{"$f":"IF(ISERROR(Dados!AC160),\"-\",Dados!AC160)","v":-11.6},{"$f":"IF(ISERROR(Dados!AD160),\"-\",Dados!AD160)","v":16.5},{"$f":"IF(ISERROR(Dados!AE160),\"-\",Dados!AE160)","v":"-"},{"$f":"IF(ISERROR(Dados!AF160),\"-\",Dados!AF160)","v":"MILS3"},{"$f":"IF(ISERROR(Dados!AG160),\"-\",Dados!AG160)","v":0.3}]
[{"$f":"IF(ISERROR(Dados!A161),\"-\",Dados!A161)","v":"BBRK3"},{"$f":"IF(ISERROR(Dados!B161),\"-\",Dados!B161)","v":"Outros"},{"$f":"IF(ISERROR(Dados!C161),\"-\",Dados!C161)","v":"BR Brokers"},{"$f":"IF(ISERROR(Dados!D161),\"-\",Dados!D161)","v":5.25},{"$f":"IF(ISERROR(Dados!E161),\"-\",Dados!E161)","v":35.481000000000002},{"$f":"IF(ISERROR(Dados!F161),\"-\",Dados!F161)","v":186.28},{"$f":"IF(ISERROR(Dados!G161),\"-\",Dados!G161)","v":225},{"$f":"IF(ISERROR(Dados!H161),\"-\",Dados!H161)","v":89.07},{"$f":"IF(ISERROR(Dados!I161),\"-\",Dados!I161)","v":111.31},{"$f":"IF(ISERROR(Dados!J161),\"-\",Dados!J161)","v":-106.16},{"$f":"IF(ISERROR(Dados!K161),\"-\",Dados!K161)","v":-12.84},{"$f":"IF(ISERROR(Dados!L161),\"-\",Dados!L161)","v":-24.24},{"$f":"IF(ISERROR(Dados!M161),\"-\",Dados!M161)","v":-37.200000000000003},{"$f":"IF(ISERROR(Dados!N161),\"-\",Dados!N161)","v":-76.709999999999994},{"$f":"IF(ISERROR(Dados!O161),\"-\",Dados!O161)","v":-106.16},{"$f":"IF(ISERROR(Dados!P161),\"-\",Dados!P161)","v":-76.709999999999994},{"$f":"IF(ISERROR(Dados!Q161),\"-\",Dados!Q161)","v":-2.1620021983596853},{"$f":"IF(ISERROR(Dados!R161),\"-\",Dados!R161)","v":6.3414221696119046},{"$f":"IF(ISERROR(Dados!S161),\"-\",Dados!S161)","v":0.82789000000000001},{"$f":"IF(ISERROR(Dados!T161),\"-\",Dados!T161)","v":"-"},{"$f":"IF(ISERROR(Dados!U161),\"-\",Dados!U161)","v":-0.270484},{"$f":"IF(ISERROR(Dados!V161),\"-\",Dados!V161)","v":-0.22955600000000001},{"$f":"IF(ISERROR(Dados!W161),\"-\",Dados!W161)","v":-103.8},{"$f":"IF(ISERROR(Dados!X161),\"-\",Dados!X161)","v":-61.7},{"$f":"IF(ISERROR(Dados!Y161),\"-\",Dados!Y161)","v":-61.7},{"$f":"IF(ISERROR(Dados!Z161),\"-\",Dados!Z161)","v":-2.180680713128039},{"$f":"IF(ISERROR(Dados!AA161),\"-\",Dados!AA161)","v":"-"},{"$f":"IF(ISERROR(Dados!AB161),\"-\",Dados!AB161)","v":"-"},{"$f":"IF(ISERROR(Dados!AC161),\"-\",Dados!AC161)","v":-24.7},{"$f":"IF(ISERROR(Dados!AD161),\"-\",Dados!AD161)","v":-47},{"$f":"IF(ISERROR(Dados!AE161),\"-\",Dados!AE161)","v":"-"},{"$f":"IF(ISERROR(Dados!AF161),\"-\",Dados!AF161)","v":"BBRK3"},{"$f":"IF(ISERROR(Dados!AG161),\"-\",Dados!AG161)","v":-61.7}]
[{"$f":"IF(ISERROR(Dados!A162),\"-\",Dados!A162)","v":"GSHP3"},{"$f":"IF(ISERROR(Dados!B162),\"-\",Dados!B162)","v":"Outros"},{"$f":"IF(ISERROR(Dados!C162),\"-\",Dados!C162)","v":"Generalshopp"},{"$f":"IF(ISERROR(Dados!D162),\"-\",Dados!D162)","v":1.0900000000000001},{"$f":"IF(ISERROR(Dados!E162),\"-\",Dados!E162)","v":67.512},{"$f":"IF(ISERROR(Dados!F162),\"-\",Dados!F162)","v":73.59},{"$f":"IF(ISERROR(Dados!G162),\"-\",Dados!G162)","v":38.68},{"$f":"IF(ISERROR(Dados!H162),\"-\",Dados!H162)","v":252.29},{"$f":"IF(ISERROR(Dados!I162),\"-\",Dados!I162)","v":215.63},{"$f":"IF(ISERROR(Dados!J162),\"-\",Dados!J162)","v":251.46},{"$f":"IF(ISERROR(Dados!K162),\"-\",Dados!K162)","v":-64.650000000000006},{"$f":"IF(ISERROR(Dados!L162),\"-\",Dados!L162)","v":-287.87},{"$f":"IF(ISERROR(Dados!M162),\"-\",Dados!M162)","v":-349.14},{"$f":"IF(ISERROR(Dados!N162),\"-\",Dados!N162)","v":-357.05},{"$f":"IF(ISERROR(Dados!O162),\"-\",Dados!O162)","v":251.46},{"$f":"IF(ISERROR(Dados!P162),\"-\",Dados!P162)","v":-357.05},{"$f":"IF(ISERROR(Dados!Q162),\"-\",Dados!Q162)","v":-5.2886894181775093},{"$f":"IF(ISERROR(Dados!R162),\"-\",Dados!R162)","v":0.57293518189358927},{"$f":"IF(ISERROR(Dados!S162),\"-\",Dados!S162)","v":1.9024839710444676},{"$f":"IF(ISERROR(Dados!T162),\"-\",Dados!T162)","v":"-"},{"$f":"IF(ISERROR(Dados!U162),\"-\",Dados!U162)","v":-0.29154199999999997},{"$f":"IF(ISERROR(Dados!V162),\"-\",Dados!V162)","v":18.663443999999998},{"$f":"IF(ISERROR(Dados!W162),\"-\",Dados!W162)","v":433.1},{"$f":"IF(ISERROR(Dados!X162),\"-\",Dados!X162)","v":57},{"$f":"IF(ISERROR(Dados!Y162),\"-\",Dados!Y162)","v":57},{"$f":"IF(ISERROR(Dados!Z162),\"-\",Dados!Z162)","v":13.95698245614035},{"$f":"IF(ISERROR(Dados!AA162),\"-\",Dados!AA162)","v":"-"},{"$f":"IF(ISERROR(Dados!AB162),\"-\",Dados!AB162)","v":"-"},{"$f":"IF(ISERROR(Dados!AC162),\"-\",Dados!AC162)","v":12799.7},{"$f":"IF(ISERROR(Dados!AD162),\"-\",Dados!AD162)","v":13567.8},{"$f":"IF(ISERROR(Dados!AE162),\"-\",Dados!AE162)","v":"-"},{"$f":"IF(ISERROR(Dados!AF162),\"-\",Dados!AF162)","v":"GSHP3"},{"$f":"IF(ISERROR(Dados!AG162),\"-\",Dados!AG162)","v":57}]
[{"$f":"IF(ISERROR(Dados!A163),\"-\",Dados!A163)","v":"SEDU3"},{"$f":"IF(ISERROR(Dados!B163),\"-\",Dados!B163)","v":"Outros"},{"$f":"IF(ISERROR(Dados!C163),\"-\",Dados!C163)","v":"Somos Educa"},{"$f":"IF(ISERROR(Dados!D163),\"-\",Dados!D163)","v":22.37},{"$f":"IF(ISERROR(Dados!E163),\"-\",Dados!E163)","v":262.12900000000002},{"$f":"IF(ISERROR(Dados!F163),\"-\",Dados!F163)","v":5863.82},{"$f":"IF(ISERROR(Dados!G163),\"-\",Dados!G163)","v":390.94},{"$f":"IF(ISERROR(Dados!H163),\"-\",Dados!H163)","v":1871.58},{"$f":"IF(ISERROR(Dados!I163),\"-\",Dados!I163)","v":1866.94},{"$f":"IF(ISERROR(Dados!J163),\"-\",Dados!J163)","v":11.39},{"$f":"IF(ISERROR(Dados!K163),\"-\",Dados!K163)","v":113.07},{"$f":"IF(ISERROR(Dados!L163),\"-\",Dados!L163)","v":65.23},{"$f":"IF(ISERROR(Dados!M163),\"-\",Dados!M163)","v":-127.46},{"$f":"IF(ISERROR(Dados!N163),\"-\",Dados!N163)","v":-399.47},{"$f":"IF(ISERROR(Dados!O163),\"-\",Dados!O163)","v":11.39},{"$f":"IF(ISERROR(Dados!P163),\"-\",Dados!P163)","v":-399.47},{"$f":"IF(ISERROR(Dados!Q163),\"-\",Dados!Q163)","v":-1.5239443174925322},{"$f":"IF(ISERROR(Dados!R163),\"-\",Dados!R163)","v":1.4914030877926516},{"$f":"IF(ISERROR(Dados!S163),\"-\",Dados!S163)","v":14.999298434542386},{"$f":"IF(ISERROR(Dados!T163),\"-\",Dados!T163)","v":"-"},{"$f":"IF(ISERROR(Dados!U163),\"-\",Dados!U163)","v":-0.46932899999999994},{"$f":"IF(ISERROR(Dados!V163),\"-\",Dados!V163)","v":4.0748950000000006},{"$f":"IF(ISERROR(Dados!W163),\"-\",Dados!W163)","v":324.60000000000002},{"$f":"IF(ISERROR(Dados!X163),\"-\",Dados!X163)","v":-146},{"$f":"IF(ISERROR(Dados!Y163),\"-\",Dados!Y163)","v":-146},{"$f":"IF(ISERROR(Dados!Z163),\"-\",Dados!Z163)","v":-51.152780821917808},{"$f":"IF(ISERROR(Dados!AA163),\"-\",Dados!AA163)","v":"-"},{"$f":"IF(ISERROR(Dados!AB163),\"-\",Dados!AB163)","v":"-"},{"$f":"IF(ISERROR(Dados!AC163),\"-\",Dados!AC163)","v":1.4},{"$f":"IF(ISERROR(Dados!AD163),\"-\",Dados!AD163)","v":51.6},{"$f":"IF(ISERROR(Dados!AE163),\"-\",Dados!AE163)","v":0.99988936744885148},{"$f":"IF(ISERROR(Dados!AF163),\"-\",Dados!AF163)","v":"SEDU3"},{"$f":"IF(ISERROR(Dados!AG163),\"-\",Dados!AG163)","v":-146}]
[{"$f":"IF(ISERROR(Dados!A164),\"-\",Dados!A164)","v":"LPSB3"},{"$f":"IF(ISERROR(Dados!B164),\"-\",Dados!B164)","v":"Outros"},{"$f":"IF(ISERROR(Dados!C164),\"-\",Dados!C164)","v":"Lopes Brasil"},{"$f":"IF(ISERROR(Dados!D164),\"-\",Dados!D164)","v":4.8499999999999996},{"$f":"IF(ISERROR(Dados!E164),\"-\",Dados!E164)","v":125.663},{"$f":"IF(ISERROR(Dados!F164),\"-\",Dados!F164)","v":609.47},{"$f":"IF(ISERROR(Dados!G164),\"-\",Dados!G164)","v":47.12},{"$f":"IF(ISERROR(Dados!H164),\"-\",Dados!H164)","v":111.02},{"$f":"IF(ISERROR(Dados!I164),\"-\",Dados!I164)","v":109.2},{"$f":"IF(ISERROR(Dados!J164),\"-\",Dados!J164)","v":-63.37},{"$f":"IF(ISERROR(Dados!K164),\"-\",Dados!K164)","v":-5.51},{"$f":"IF(ISERROR(Dados!L164),\"-\",Dados!L164)","v":-19.47},{"$f":"IF(ISERROR(Dados!M164),\"-\",Dados!M164)","v":-30.99},{"$f":"IF(ISERROR(Dados!N164),\"-\",Dados!N164)","v":-46.67},{"$f":"IF(ISERROR(Dados!O164),\"-\",Dados!O164)","v":-63.37},{"$f":"IF(ISERROR(Dados!P164),\"-\",Dados!P164)","v":-46.67},{"$f":"IF(ISERROR(Dados!Q164),\"-\",Dados!Q164)","v":-0.37139014666210424},{"$f":"IF(ISERROR(Dados!R164),\"-\",Dados!R164)","v":0.37497115300446432},{"$f":"IF(ISERROR(Dados!S164),\"-\",Dados!S164)","v":12.934328310696094},{"$f":"IF(ISERROR(Dados!T164),\"-\",Dados!T164)","v":"-"},{"$f":"IF(ISERROR(Dados!U164),\"-\",Dados!U164)","v":-0.60600200000000004},{"$f":"IF(ISERROR(Dados!V164),\"-\",Dados!V164)","v":-0.64600199999999997},{"$f":"IF(ISERROR(Dados!W164),\"-\",Dados!W164)","v":-57.5},{"$f":"IF(ISERROR(Dados!X164),\"-\",Dados!X164)","v":-16.2},{"$f":"IF(ISERROR(Dados!Y164),\"-\",Dados!Y164)","v":-16.2},{"$f":"IF(ISERROR(Dados!Z164),\"-\",Dados!Z164)","v":-36.74679012345679},{"$f":"IF(ISERROR(Dados!AA164),\"-\",Dados!AA164)","v":"-"},{"$f":"IF(ISERROR(Dados!AB164),\"-\",Dados!AB164)","v":"-"},{"$f":"IF(ISERROR(Dados!AC164),\"-\",Dados!AC164)","v":-15.7},{"$f":"IF(ISERROR(Dados!AD164),\"-\",Dados!AD164)","v":-13.2},{"$f":"IF(ISERROR(Dados!AE164),\"-\",Dados!AE164)","v":"-"},{"$f":"IF(ISERROR(Dados!AF164),\"-\",Dados!AF164)","v":"LPSB3"},{"$f":"IF(ISERROR(Dados!AG164),\"-\",Dados!AG164)","v":-16.2}]
[{"$f":"IF(ISERROR(Dados!A165),\"-\",Dados!A165)","v":"SLED4"},{"$f":"IF(ISERROR(Dados!B165),\"-\",Dados!B165)","v":"Outros"},{"$f":"IF(ISERROR(Dados!C165),\"-\",Dados!C165)","v":"Saraiva Livr"},{"$f":"IF(ISERROR(Dados!D165),\"-\",Dados!D165)","v":1.95},{"$f":"IF(ISERROR(Dados!E165),\"-\",Dados!E165)","v":26.542000000000002},{"$f":"IF(ISERROR(Dados!F165),\"-\",Dados!F165)","v":51.28},{"$f":"IF(ISERROR(Dados!G165),\"-\",Dados!G165)","v":120.91},{"$f":"IF(ISERROR(Dados!H165),\"-\",Dados!H165)","v":1724.89},{"$f":"IF(ISERROR(Dados!I165),\"-\",Dados!I165)","v":1445.42},{"$f":"IF(ISERROR(Dados!J165),\"-\",Dados!J165)","v":-52.01},{"$f":"IF(ISERROR(Dados!K165),\"-\",Dados!K165)","v":1.32},{"$f":"IF(ISERROR(Dados!L165),\"-\",Dados!L165)","v":-36.340000000000003},{"$f":"IF(ISERROR(Dados!M165),\"-\",Dados!M165)","v":-102.94},{"$f":"IF(ISERROR(Dados!N165),\"-\",Dados!N165)","v":-301.73},{"$f":"IF(ISERROR(Dados!O165),\"-\",Dados!O165)","v":-52.01},{"$f":"IF(ISERROR(Dados!P165),\"-\",Dados!P165)","v":-301.73},{"$f":"IF(ISERROR(Dados!Q165),\"-\",Dados!Q165)","v":-11.368020495817948},{"$f":"IF(ISERROR(Dados!R165),\"-\",Dados!R165)","v":4.5554215959611177},{"$f":"IF(ISERROR(Dados!S165),\"-\",Dados!S165)","v":0.42806136795963945},{"$f":"IF(ISERROR(Dados!T165),\"-\",Dados!T165)","v":"-"},{"$f":"IF(ISERROR(Dados!U165),\"-\",Dados!U165)","v":-0.71495900000000001},{"$f":"IF(ISERROR(Dados!V165),\"-\",Dados!V165)","v":0.6404510000000001},{"$f":"IF(ISERROR(Dados!W165),\"-\",Dados!W165)","v":15.2},{"$f":"IF(ISERROR(Dados!X165),\"-\",Dados!X165)","v":-167.2},{"$f":"IF(ISERROR(Dados!Y165),\"-\",Dados!Y165)","v":-167.2},{"$f":"IF(ISERROR(Dados!Z165),\"-\",Dados!Z165)","v":-0.76986842105263154},{"$f":"IF(ISERROR(Dados!AA165),\"-\",Dados!AA165)","v":"-"},{"$f":"IF(ISERROR(Dados!AB165),\"-\",Dados!AB165)","v":"-"},{"$f":"IF(ISERROR(Dados!AC165),\"-\",Dados!AC165)","v":-9.3000000000000007},{"$f":"IF(ISERROR(Dados!AD165),\"-\",Dados!AD165)","v":-52.1},{"$f":"IF(ISERROR(Dados!AE165),\"-\",Dados!AE165)","v":0.36169090498078516},{"$f":"IF(ISERROR(Dados!AF165),\"-\",Dados!AF165)","v":"SLED4"},{"$f":"IF(ISERROR(Dados!AG165),\"-\",Dados!AG165)","v":-167.2}]
[{"$f":"IF(ISERROR(Dados!A166),\"-\",Dados!A166)","v":"HOOT4"},{"$f":"IF(ISERROR(Dados!B166),\"-\",Dados!B166)","v":"Outros"},{"$f":"IF(ISERROR(Dados!C166),\"-\",Dados!C166)","v":"Hoteis Othon"},{"$f":"IF(ISERROR(Dados!D166),\"-\",Dados!D166)","v":1.9},{"$f":"IF(ISERROR(Dados!E166),\"-\",Dados!E166)","v":18.372},{"$f":"IF(ISERROR(Dados!F166),\"-\",Dados!F166)","v":34.909999999999997},{"$f":"IF(ISERROR(Dados!G166),\"-\",Dados!G166)","v":-226.26},{"$f":"IF(ISERROR(Dados!H166),\"-\",Dados!H166)","v":117.45},{"$f":"IF(ISERROR(Dados!I166),\"-\",Dados!I166)","v":78.540000000000006},{"$f":"IF(ISERROR(Dados!J166),\"-\",Dados!J166)","v":-40.119999999999997},{"$f":"IF(ISERROR(Dados!K166),\"-\",Dados!K166)","v":-15.75},{"$f":"IF(ISERROR(Dados!L166),\"-\",Dados!L166)","v":-34.270000000000003},{"$f":"IF(ISERROR(Dados!M166),\"-\",Dados!M166)","v":-55.57},{"$f":"IF(ISERROR(Dados!N166),\"-\",Dados!N166)","v":-94.48},{"$f":"IF(ISERROR(Dados!O166),\"-\",Dados!O166)","v":-40.119999999999997},{"$f":"IF(ISERROR(Dados!P166),\"-\",Dados!P166)","v":-94.48},{"$f":"IF(ISERROR(Dados!Q166),\"-\",Dados!Q166)","v":-5.1426083170041368},{"$f":"IF(ISERROR(Dados!R166),\"-\",Dados!R166)","v":"-"},{"$f":"IF(ISERROR(Dados!S166),\"-\",Dados!S166)","v":"-"},{"$f":"IF(ISERROR(Dados!T166),\"-\",Dados!T166)","v":"-"},{"$f":"IF(ISERROR(Dados!U166),\"-\",Dados!U166)","v":"-"},{"$f":"IF(ISERROR(Dados!V166),\"-\",Dados!V166)","v":-1.7260999999999999E-2},{"$f":"IF(ISERROR(Dados!W166),\"-\",Dados!W166)","v":-3.9},{"$f":"IF(ISERROR(Dados!X166),\"-\",Dados!X166)","v":-24},{"$f":"IF(ISERROR(Dados!Y166),\"-\",Dados!Y166)","v":-24},{"$f":"IF(ISERROR(Dados!Z166),\"-\",Dados!Z166)","v":-1.6312916666666666},{"$f":"IF(ISERROR(Dados!AA166),\"-\",Dados!AA166)","v":"-"},{"$f":"IF(ISERROR(Dados!AB166),\"-\",Dados!AB166)","v":"-"},{"$f":"IF(ISERROR(Dados!AC166),\"-\",Dados!AC166)","v":-2.1},{"$f":"IF(ISERROR(Dados!AD166),\"-\",Dados!AD166)","v":-29.4},{"$f":"IF(ISERROR(Dados!AE166),\"-\",Dados!AE166)","v":0.57152188112344871},{"$f":"IF(ISERROR(Dados!AF166),\"-\",Dados!AF166)","v":"HOOT4"},{"$f":"IF(ISERROR(Dados!AG166),\"-\",Dados!AG166)","v":-24}]
[{"$f":"IF(ISERROR(Dados!A167),\"-\",Dados!A167)","v":"INEP4"},{"$f":"IF(ISERROR(Dados!B167),\"-\",Dados!B167)","v":"Outros"},{"$f":"IF(ISERROR(Dados!C167),\"-\",Dados!C167)","v":"Inepar"},{"$f":"IF(ISERROR(Dados!D167),\"-\",Dados!D167)","v":12.6},{"$f":"IF(ISERROR(Dados!E167),\"-\",Dados!E167)","v":7.4630000000000001},{"$f":"IF(ISERROR(Dados!F167),\"-\",Dados!F167)","v":95.63},{"$f":"IF(ISERROR(Dados!G167),\"-\",Dados!G167)","v":-1382.43},{"$f":"IF(ISERROR(Dados!H167),\"-\",Dados!H167)","v":39.799999999999997},{"$f":"IF(ISERROR(Dados!I167),\"-\",Dados!I167)","v":"-"},{"$f":"IF(ISERROR(Dados!J167),\"-\",Dados!J167)","v":-321.06},{"$f":"IF(ISERROR(Dados!K167),\"-\",Dados!K167)","v":-56.35},{"$f":"IF(ISERROR(Dados!L167),\"-\",Dados!L167)","v":-52.21},{"$f":"IF(ISERROR(Dados!M167),\"-\",Dados!M167)","v":-99.18},{"$f":"IF(ISERROR(Dados!N167),\"-\",Dados!N167)","v":"-"},{"$f":"IF(ISERROR(Dados!O167),\"-\",Dados!O167)","v":-321.06},{"$f":"IF(ISERROR(Dados!P167),\"-\",Dados!P167)","v":"-"},{"$f":"IF(ISERROR(Dados!Q167),\"-\",Dados!Q167)","v":-36.170440841484655},{"$f":"IF(ISERROR(Dados!R167),\"-\",Dados!R167)","v":"-"},{"$f":"IF(ISERROR(Dados!S167),\"-\",Dados!S167)","v":"-"},{"$f":"IF(ISERROR(Dados!T167),\"-\",Dados!T167)","v":"-"},{"$f":"IF(ISERROR(Dados!U167),\"-\",Dados!U167)","v":"-"},{"$f":"IF(ISERROR(Dados!V167),\"-\",Dados!V167)","v":-0.44852300000000001},{"$f":"IF(ISERROR(Dados!W167),\"-\",Dados!W167)","v":-127},{"$f":"IF(ISERROR(Dados!X167),\"-\",Dados!X167)","v":"-"},{"$f":"IF(ISERROR(Dados!Y167),\"-\",Dados!Y167)","v":-128.30000000000001},{"$f":"IF(ISERROR(Dados!Z167),\"-\",Dados!Z167)","v":-5.5781917381137953},{"$f":"IF(ISERROR(Dados!AA167),\"-\",Dados!AA167)","v":1.25},{"$f":"IF(ISERROR(Dados!AB167),\"-\",Dados!AB167)","v":1.3071211962773189E-2},{"$f":"IF(ISERROR(Dados!AC167),\"-\",Dados!AC167)","v":-17.8},{"$f":"IF(ISERROR(Dados!AD167),\"-\",Dados!AD167)","v":342.1},{"$f":"IF(ISERROR(Dados!AE167),\"-\",Dados!AE167)","v":0.42878199115637144},{"$f":"IF(ISERROR(Dados!AF167),\"-\",Dados!AF167)","v":"INEP4"},{"$f":"IF(ISERROR(Dados!AG167),\"-\",Dados!AG167)","v":-128.30000000000001}]
[{"$f":"IF(ISERROR(Dados!A168),\"-\",Dados!A168)","v":"SNSY5"},{"$f":"IF(ISERROR(Dados!B168),\"-\",Dados!B168)","v":"Outros"},{"$f":"IF(ISERROR(Dados!C168),\"-\",Dados!C168)","v":"Sansuy"},{"$f":"IF(ISERROR(Dados!D168),\"-\",Dados!D168)","v":74.5},{"$f":"IF(ISERROR(Dados!E168),\"-\",Dados!E168)","v":0.193},{"$f":"IF(ISERROR(Dados!F168),\"-\",Dados!F168)","v":14.37},{"$f":"IF(ISERROR(Dados!G168),\"-\",Dados!G168)","v":-1045.26},{"$f":"IF(ISERROR(Dados!H168),\"-\",Dados!H168)","v":385.41},{"$f":"IF(ISERROR(Dados!I168),\"-\",Dados!I168)","v":423.16},{"$f":"IF(ISERROR(Dados!J168),\"-\",Dados!J168)","v":-153.88999999999999},{"$f":"IF(ISERROR(Dados!K168),\"-\",Dados!K168)","v":-36.35},{"$f":"IF(ISERROR(Dados!L168),\"-\",Dados!L168)","v":-77.19},{"$f":"IF(ISERROR(Dados!M168),\"-\",Dados!M168)","v":-114.22},{"$f":"IF(ISERROR(Dados!N168),\"-\",Dados!N168)","v":-150.79},{"$f":"IF(ISERROR(Dados!O168),\"-\",Dados!O168)","v":-153.88999999999999},{"$f":"IF(ISERROR(Dados!P168),\"-\",Dados!P168)","v":-150.79},{"$f":"IF(ISERROR(Dados!Q168),\"-\",Dados!Q168)","v":-781.29533678756468},{"$f":"IF(ISERROR(Dados!R168),\"-\",Dados!R168)","v":"-"},{"$f":"IF(ISERROR(Dados!S168),\"-\",Dados!S168)","v":"-"},{"$f":"IF(ISERROR(Dados!T168),\"-\",Dados!T168)","v":"-"},{"$f":"IF(ISERROR(Dados!U168),\"-\",Dados!U168)","v":"-"},{"$f":"IF(ISERROR(Dados!V168),\"-\",Dados!V168)","v":-7.4945999999999999E-2},{"$f":"IF(ISERROR(Dados!W168),\"-\",Dados!W168)","v":-69.099999999999994},{"$f":"IF(ISERROR(Dados!X168),\"-\",Dados!X168)","v":-67.599999999999994},{"$f":"IF(ISERROR(Dados!Y168),\"-\",Dados!Y168)","v":-67.599999999999994},{"$f":"IF(ISERROR(Dados!Z168),\"-\",Dados!Z168)","v":-1.3808136094674557},{"$f":"IF(ISERROR(Dados!AA168),\"-\",Dados!AA168)","v":"-"},{"$f":"IF(ISERROR(Dados!AB168),\"-\",Dados!AB168)","v":"-"},{"$f":"IF(ISERROR(Dados!AC168),\"-\",Dados!AC168)","v":0.8},{"$f":"IF(ISERROR(Dados!AD168),\"-\",Dados!AD168)","v":"-"},{"$f":"IF(ISERROR(Dados!AE168),\"-\",Dados!AE168)","v":0.5181347150259068},{"$f":"IF(ISERROR(Dados!AF168),\"-\",Dados!AF168)","v":"SNSY5"},{"$f":"IF(ISERROR(Dados!AG168),\"-\",Dados!AG168)","v":-67.599999999999994}]
[{"$f":"IF(ISERROR(Dados!A169),\"-\",Dados!A169)","v":"SUZB5+SUZB3"},{"$f":"IF(ISERROR(Dados!B169),\"-\",Dados!B169)","v":"Papel e Celulose"},{"$f":"IF(ISERROR(Dados!C169),\"-\",Dados!C169)","v":"Suzano Papel"},{"$f":"IF(ISERROR(Dados!D169),\"-\",Dados!D169)","v":46.55},{"$f":"IF(ISERROR(Dados!E169),\"-\",Dados!E169)","v":1349.221},{"$f":"IF(ISERROR(Dados!F169),\"-\",Dados!F169)","v":62806.26},{"$f":"IF(ISERROR(Dados!G169),\"-\",Dados!G169)","v":12012.01},{"$f":"IF(ISERROR(Dados!H169),\"-\",Dados!H169)","v":10520.79},{"$f":"IF(ISERROR(Dados!I169),\"-\",Dados!I169)","v":13437.33},{"$f":"IF(ISERROR(Dados!J169),\"-\",Dados!J169)","v":1807.43},{"$f":"IF(ISERROR(Dados!K169),\"-\",Dados!K169)","v":813.13},{"$f":"IF(ISERROR(Dados!L169),\"-\",Dados!L169)","v":-1036.43},{"$f":"IF(ISERROR(Dados!M169),\"-\",Dados!M169)","v":-1144.21},{"$f":"IF(ISERROR(Dados!N169),\"-\",Dados!N169)","v":318.33999999999997},{"$f":"IF(ISERROR(Dados!O169),\"-\",Dados!O169)","v":1807.43},{"$f":"IF(ISERROR(Dados!P169),\"-\",Dados!P169)","v":318.33999999999997},{"$f":"IF(ISERROR(Dados!Q169),\"-\",Dados!Q169)","v":0.23594355557762589},{"$f":"IF(ISERROR(Dados!R169),\"-\",Dados!R169)","v":8.9029225012062518},{"$f":"IF(ISERROR(Dados!S169),\"-\",Dados!S169)","v":5.2286201518313753},{"$f":"IF(ISERROR(Dados!T169),\"-\",Dados!T169)","v":197.29294951938178},{"$f":"IF(ISERROR(Dados!U169),\"-\",Dados!U169)","v":2.7403E-2},{"$f":"IF(ISERROR(Dados!V169),\"-\",Dados!V169)","v":0.85244900000000001},{"$f":"IF(ISERROR(Dados!W169),\"-\",Dados!W169)","v":4660.7},{"$f":"IF(ISERROR(Dados!X169),\"-\",Dados!X169)","v":6569},{"$f":"IF(ISERROR(Dados!Y169),\"-\",Dados!Y169)","v":6569},{"$f":"IF(ISERROR(Dados!Z169),\"-\",Dados!Z169)","v":11.121594002131223},{"$f":"IF(ISERROR(Dados!AA169),\"-\",Dados!AA169)","v":210.21},{"$f":"IF(ISERROR(Dados!AB169),\"-\",Dados!AB169)","v":3.3469593636048381E-3},{"$f":"IF(ISERROR(Dados!AC169),\"-\",Dados!AC169)","v":-2.2999999999999998},{"$f":"IF(ISERROR(Dados!AD169),\"-\",Dados!AD169)","v":150.30000000000001},{"$f":"IF(ISERROR(Dados!AE169),\"-\",Dados!AE169)","v":0.81958404145799679},{"$f":"IF(ISERROR(Dados!AF169),\"-\",Dados!AF169)","v":"SUZB5+SUZB3"},{"$f":"IF(ISERROR(Dados!AG169),\"-\",Dados!AG169)","v":6569}]
[{"$f":"IF(ISERROR(Dados!A170),\"-\",Dados!A170)","v":"KLBN11"},{"$f":"IF(ISERROR(Dados!B170),\"-\",Dados!B170)","v":"Papel e Celulose"},{"$f":"IF(ISERROR(Dados!C170),\"-\",Dados!C170)","v":"Klabin S/A"},{"$f":"IF(ISERROR(Dados!D170),\"-\",Dados!D170)","v":17.03},{"$f":"IF(ISERROR(Dados!E170),\"-\",Dados!E170)","v":5263.2079999999996},{"$f":"IF(ISERROR(Dados!F170),\"-\",Dados!F170)","v":19339.12},{"$f":"IF(ISERROR(Dados!G170),\"-\",Dados!G170)","v":6292.24},{"$f":"IF(ISERROR(Dados!H170),\"-\",Dados!H170)","v":8373.3799999999992},{"$f":"IF(ISERROR(Dados!I170),\"-\",Dados!I170)","v":10016.459999999999},{"$f":"IF(ISERROR(Dados!J170),\"-\",Dados!J170)","v":532.16999999999996},{"$f":"IF(ISERROR(Dados!K170),\"-\",Dados!K170)","v":124.66},{"$f":"IF(ISERROR(Dados!L170),\"-\",Dados!L170)","v":-829.98},{"$f":"IF(ISERROR(Dados!M170),\"-\",Dados!M170)","v":-726.16},{"$f":"IF(ISERROR(Dados!N170),\"-\",Dados!N170)","v":137.46},{"$f":"IF(ISERROR(Dados!O170),\"-\",Dados!O170)","v":532.16999999999996},{"$f":"IF(ISERROR(Dados!P170),\"-\",Dados!P170)","v":137.46},{"$f":"IF(ISERROR(Dados!Q170),\"-\",Dados!Q170)","v":2.611715136471901E-2},{"$f":"IF(ISERROR(Dados!R170),\"-\",Dados!R170)","v":1.1955142187046379},{"$f":"IF(ISERROR(Dados!S170),\"-\",Dados!S170)","v":14.244916315970148},{"$f":"IF(ISERROR(Dados!T170),\"-\",Dados!T170)","v":652.06192521460787},{"$f":"IF(ISERROR(Dados!U170),\"-\",Dados!U170)","v":2.5824E-2},{"$f":"IF(ISERROR(Dados!V170),\"-\",Dados!V170)","v":1.8977549999999999},{"$f":"IF(ISERROR(Dados!W170),\"-\",Dados!W170)","v":3492.5},{"$f":"IF(ISERROR(Dados!X170),\"-\",Dados!X170)","v":4657},{"$f":"IF(ISERROR(Dados!Y170),\"-\",Dados!Y170)","v":4657},{"$f":"IF(ISERROR(Dados!Z170),\"-\",Dados!Z170)","v":6.8150285591582564},{"$f":"IF(ISERROR(Dados!AA170),\"-\",Dados!AA170)","v":840},{"$f":"IF(ISERROR(Dados!AB170),\"-\",Dados!AB170)","v":4.3435275234860737E-2},{"$f":"IF(ISERROR(Dados!AC170),\"-\",Dados!AC170)","v":-5.6},{"$f":"IF(ISERROR(Dados!AD170),\"-\",Dados!AD170)","v":2.5},{"$f":"IF(ISERROR(Dados!AE170),\"-\",Dados!AE170)","v":0.37707041028969407},{"$f":"IF(ISERROR(Dados!AF170),\"-\",Dados!AF170)","v":"KLBN11"},{"$f":"IF(ISERROR(Dados!AG170),\"-\",Dados!AG170)","v":4657}]
[{"$f":"IF(ISERROR(Dados!A171),\"-\",Dados!A171)","v":"CGAS5"},{"$f":"IF(ISERROR(Dados!B171),\"-\",Dados!B171)","v":"Petróleo e Gás"},{"$f":"IF(ISERROR(Dados!C171),\"-\",Dados!C171)","v":"Comgas"},{"$f":"IF(ISERROR(Dados!D171),\"-\",Dados!D171)","v":81.900000000000006},{"$f":"IF(ISERROR(Dados!E171),\"-\",Dados!E171)","v":132.023},{"$f":"IF(ISERROR(Dados!F171),\"-\",Dados!F171)","v":10274.64},{"$f":"IF(ISERROR(Dados!G171),\"-\",Dados!G171)","v":2721.32},{"$f":"IF(ISERROR(Dados!H171),\"-\",Dados!H171)","v":5537.86},{"$f":"IF(ISERROR(Dados!I171),\"-\",Dados!I171)","v":6840.01},{"$f":"IF(ISERROR(Dados!J171),\"-\",Dados!J171)","v":640.12},{"$f":"IF(ISERROR(Dados!K171),\"-\",Dados!K171)","v":179.09},{"$f":"IF(ISERROR(Dados!L171),\"-\",Dados!L171)","v":293.10000000000002},{"$f":"IF(ISERROR(Dados!M171),\"-\",Dados!M171)","v":480.59},{"$f":"IF(ISERROR(Dados!N171),\"-\",Dados!N171)","v":1339.43},{"$f":"IF(ISERROR(Dados!O171),\"-\",Dados!O171)","v":640.12},{"$f":"IF(ISERROR(Dados!P171),\"-\",Dados!P171)","v":1339.43},{"$f":"IF(ISERROR(Dados!Q171),\"-\",Dados!Q171)","v":10.145429205517221},{"$f":"IF(ISERROR(Dados!R171),\"-\",Dados!R171)","v":20.612469039485546},{"$f":"IF(ISERROR(Dados!S171),\"-\",Dados!S171)","v":3.9733231299516412},{"$f":"IF(ISERROR(Dados!T171),\"-\",Dados!T171)","v":8.072600807806305},{"$f":"IF(ISERROR(Dados!U171),\"-\",Dados!U171)","v":0.664045},{"$f":"IF(ISERROR(Dados!V171),\"-\",Dados!V171)","v":1.120384},{"$f":"IF(ISERROR(Dados!W171),\"-\",Dados!W171)","v":1518.5},{"$f":"IF(ISERROR(Dados!X171),\"-\",Dados!X171)","v":2186.3000000000002},{"$f":"IF(ISERROR(Dados!Y171),\"-\",Dados!Y171)","v":2186.3000000000002},{"$f":"IF(ISERROR(Dados!Z171),\"-\",Dados!Z171)","v":6.094116543932671},{"$f":"IF(ISERROR(Dados!AA171),\"-\",Dados!AA171)","v":756.77},{"$f":"IF(ISERROR(Dados!AB171),\"-\",Dados!AB171)","v":7.3654162092297151E-2},{"$f":"IF(ISERROR(Dados!AC171),\"-\",Dados!AC171)","v":1},{"$f":"IF(ISERROR(Dados!AD171),\"-\",Dados!AD171)","v":48},{"$f":"IF(ISERROR(Dados!AE171),\"-\",Dados!AE171)","v":0.78395431099126667},{"$f":"IF(ISERROR(Dados!AF171),\"-\",Dados!AF171)","v":"CGAS5"},{"$f":"IF(ISERROR(Dados!AG171),\"-\",Dados!AG171)","v":2186.3000000000002}]
[{"$f":"IF(ISERROR(Dados!A172),\"-\",Dados!A172)","v":"BRDT3"},{"$f":"IF(ISERROR(Dados!B172),\"-\",Dados!B172)","v":"Petróleo e Gás"},{"$f":"IF(ISERROR(Dados!C172),\"-\",Dados!C172)","v":"Petrobras BR"},{"$f":"IF(ISERROR(Dados!D172),\"-\",Dados!D172)","v":23.15},{"$f":"IF(ISERROR(Dados!E172),\"-\",Dados!E172)","v":1165},{"$f":"IF(ISERROR(Dados!F172),\"-\",Dados!F172)","v":26969.75},{"$f":"IF(ISERROR(Dados!G172),\"-\",Dados!G172)","v":9686},{"$f":"IF(ISERROR(Dados!H172),\"-\",Dados!H172)","v":84567},{"$f":"IF(ISERROR(Dados!I172),\"-\",Dados!I172)","v":97770},{"$f":"IF(ISERROR(Dados!J172),\"-\",Dados!J172)","v":1151},{"$f":"IF(ISERROR(Dados!K172),\"-\",Dados!K172)","v":247},{"$f":"IF(ISERROR(Dados!L172),\"-\",Dados!L172)","v":510},{"$f":"IF(ISERROR(Dados!M172),\"-\",Dados!M172)","v":1588},{"$f":"IF(ISERROR(Dados!N172),\"-\",Dados!N172)","v":3193},{"$f":"IF(ISERROR(Dados!O172),\"-\",Dados!O172)","v":1151},{"$f":"IF(ISERROR(Dados!P172),\"-\",Dados!P172)","v":3193},{"$f":"IF(ISERROR(Dados!Q172),\"-\",Dados!Q172)","v":2.7407725321888412},{"$f":"IF(ISERROR(Dados!R172),\"-\",Dados!R172)","v":8.3141630901287549},{"$f":"IF(ISERROR(Dados!S172),\"-\",Dados!S172)","v":2.7844053272764815},{"$f":"IF(ISERROR(Dados!T172),\"-\",Dados!T172)","v":8.4465236454744748},{"$f":"IF(ISERROR(Dados!U172),\"-\",Dados!U172)","v":0.36177199999999998},{"$f":"IF(ISERROR(Dados!V172),\"-\",Dados!V172)","v":0.25965299999999997},{"$f":"IF(ISERROR(Dados!W172),\"-\",Dados!W172)","v":2574},{"$f":"IF(ISERROR(Dados!X172),\"-\",Dados!X172)","v":2803},{"$f":"IF(ISERROR(Dados!Y172),\"-\",Dados!Y172)","v":2803},{"$f":"IF(ISERROR(Dados!Z172),\"-\",Dados!Z172)","v":10.518997502675704},{"$f":"IF(ISERROR(Dados!AA172),\"-\",Dados!AA172)","v":1034},{"$f":"IF(ISERROR(Dados!AB172),\"-\",Dados!AB172)","v":3.833925045653E-2},{"$f":"IF(ISERROR(Dados!AC172),\"-\",Dados!AC172)","v":-5.3},{"$f":"IF(ISERROR(Dados!AD172),\"-\",Dados!AD172)","v":44.4},{"$f":"IF(ISERROR(Dados!AE172),\"-\",Dados!AE172)","v":1},{"$f":"IF(ISERROR(Dados!AF172),\"-\",Dados!AF172)","v":"BRDT3"},{"$f":"IF(ISERROR(Dados!AG172),\"-\",Dados!AG172)","v":2803}]
[{"$f":"IF(ISERROR(Dados!A173),\"-\",Dados!A173)","v":"PRIO3"},{"$f":"IF(ISERROR(Dados!B173),\"-\",Dados!B173)","v":"Petróleo e Gás"},{"$f":"IF(ISERROR(Dados!C173),\"-\",Dados!C173)","v":"Petrorio"},{"$f":"IF(ISERROR(Dados!D173),\"-\",Dados!D173)","v":18.899999999999999},{"$f":"IF(ISERROR(Dados!E173),\"-\",Dados!E173)","v":123.80800000000001},{"$f":"IF(ISERROR(Dados!F173),\"-\",Dados!F173)","v":2339.98},{"$f":"IF(ISERROR(Dados!G173),\"-\",Dados!G173)","v":1006.6},{"$f":"IF(ISERROR(Dados!H173),\"-\",Dados!H173)","v":533.91999999999996},{"$f":"IF(ISERROR(Dados!I173),\"-\",Dados!I173)","v":848.92},{"$f":"IF(ISERROR(Dados!J173),\"-\",Dados!J173)","v":50.85},{"$f":"IF(ISERROR(Dados!K173),\"-\",Dados!K173)","v":2.69},{"$f":"IF(ISERROR(Dados!L173),\"-\",Dados!L173)","v":73.25},{"$f":"IF(ISERROR(Dados!M173),\"-\",Dados!M173)","v":144.71},{"$f":"IF(ISERROR(Dados!N173),\"-\",Dados!N173)","v":204.88},{"$f":"IF(ISERROR(Dados!O173),\"-\",Dados!O173)","v":50.85},{"$f":"IF(ISERROR(Dados!P173),\"-\",Dados!P173)","v":204.88},{"$f":"IF(ISERROR(Dados!Q173),\"-\",Dados!Q173)","v":1.6548203670199018},{"$f":"IF(ISERROR(Dados!R173),\"-\",Dados!R173)","v":8.1303308348410432},{"$f":"IF(ISERROR(Dados!S173),\"-\",Dados!S173)","v":2.3246286509040335},{"$f":"IF(ISERROR(Dados!T173),\"-\",Dados!T173)","v":11.421179226864504},{"$f":"IF(ISERROR(Dados!U173),\"-\",Dados!U173)","v":0.231987},{"$f":"IF(ISERROR(Dados!V173),\"-\",Dados!V173)","v":-0.51479399999999997},{"$f":"IF(ISERROR(Dados!W173),\"-\",Dados!W173)","v":166},{"$f":"IF(ISERROR(Dados!X173),\"-\",Dados!X173)","v":247.2},{"$f":"IF(ISERROR(Dados!Y173),\"-\",Dados!Y173)","v":247.2},{"$f":"IF(ISERROR(Dados!Z173),\"-\",Dados!Z173)","v":7.3697006472491911},{"$f":"IF(ISERROR(Dados!AA173),\"-\",Dados!AA173)","v":"-"},{"$f":"IF(ISERROR(Dados!AB173),\"-\",Dados!AB173)","v":"-"},{"$f":"IF(ISERROR(Dados!AC173),\"-\",Dados!AC173)","v":25.2},{"$f":"IF(ISERROR(Dados!AD173),\"-\",Dados!AD173)","v":131.1},{"$f":"IF(ISERROR(Dados!AE173),\"-\",Dados!AE173)","v":"-"},{"$f":"IF(ISERROR(Dados!AF173),\"-\",Dados!AF173)","v":"PRIO3"},{"$f":"IF(ISERROR(Dados!AG173),\"-\",Dados!AG173)","v":247.2}]
[{"$f":"IF(ISERROR(Dados!A174),\"-\",Dados!A174)","v":"CSAN3"},{"$f":"IF(ISERROR(Dados!B174),\"-\",Dados!B174)","v":"Petróleo e Gás"},{"$f":"IF(ISERROR(Dados!C174),\"-\",Dados!C174)","v":"Cosan"},{"$f":"IF(ISERROR(Dados!D174),\"-\",Dados!D174)","v":42.65},{"$f":"IF(ISERROR(Dados!E174),\"-\",Dados!E174)","v":392.51600000000002},{"$f":"IF(ISERROR(Dados!F174),\"-\",Dados!F174)","v":16740.810000000001},{"$f":"IF(ISERROR(Dados!G174),\"-\",Dados!G174)","v":9928.7199999999993},{"$f":"IF(ISERROR(Dados!H174),\"-\",Dados!H174)","v":7670.78},{"$f":"IF(ISERROR(Dados!I174),\"-\",Dados!I174)","v":10299.1},{"$f":"IF(ISERROR(Dados!J174),\"-\",Dados!J174)","v":1315.32},{"$f":"IF(ISERROR(Dados!K174),\"-\",Dados!K174)","v":345.72},{"$f":"IF(ISERROR(Dados!L174),\"-\",Dados!L174)","v":281.37},{"$f":"IF(ISERROR(Dados!M174),\"-\",Dados!M174)","v":325.32},{"$f":"IF(ISERROR(Dados!N174),\"-\",Dados!N174)","v":1652.32},{"$f":"IF(ISERROR(Dados!O174),\"-\",Dados!O174)","v":1315.32},{"$f":"IF(ISERROR(Dados!P174),\"-\",Dados!P174)","v":1652.32},{"$f":"IF(ISERROR(Dados!Q174),\"-\",Dados!Q174)","v":4.2095608841423022},{"$f":"IF(ISERROR(Dados!R174),\"-\",Dados!R174)","v":25.295070774185},{"$f":"IF(ISERROR(Dados!S174),\"-\",Dados!S174)","v":1.6860992554931553},{"$f":"IF(ISERROR(Dados!T174),\"-\",Dados!T174)","v":10.131698097220877},{"$f":"IF(ISERROR(Dados!U174),\"-\",Dados!U174)","v":0.18487899999999999},{"$f":"IF(ISERROR(Dados!V174),\"-\",Dados!V174)","v":0.66466199999999998},{"$f":"IF(ISERROR(Dados!W174),\"-\",Dados!W174)","v":3463.3},{"$f":"IF(ISERROR(Dados!X174),\"-\",Dados!X174)","v":3322.8},{"$f":"IF(ISERROR(Dados!Y174),\"-\",Dados!Y174)","v":3322.8},{"$f":"IF(ISERROR(Dados!Z174),\"-\",Dados!Z174)","v":7.2231253761887562},{"$f":"IF(ISERROR(Dados!AA174),\"-\",Dados!AA174)","v":446.3},{"$f":"IF(ISERROR(Dados!AB174),\"-\",Dados!AB174)","v":2.6659402979903598E-2},{"$f":"IF(ISERROR(Dados!AC174),\"-\",Dados!AC174)","v":-2.4},{"$f":"IF(ISERROR(Dados!AD174),\"-\",Dados!AD174)","v":5.7},{"$f":"IF(ISERROR(Dados!AE174),\"-\",Dados!AE174)","v":"-"},{"$f":"IF(ISERROR(Dados!AF174),\"-\",Dados!AF174)","v":"CSAN3"},{"$f":"IF(ISERROR(Dados!AG174),\"-\",Dados!AG174)","v":3322.8}]
[{"$f":"IF(ISERROR(Dados!A175),\"-\",Dados!A175)","v":"QGEP3"},{"$f":"IF(ISERROR(Dados!B175),\"-\",Dados!B175)","v":"Petróleo e Gás"},{"$f":"IF(ISERROR(Dados!C175),\"-\",Dados!C175)","v":"Qgep Part"},{"$f":"IF(ISERROR(Dados!D175),\"-\",Dados!D175)","v":15.3},{"$f":"IF(ISERROR(Dados!E175),\"-\",Dados!E175)","v":261.47300000000001},{"$f":"IF(ISERROR(Dados!F175),\"-\",Dados!F175)","v":4000.53},{"$f":"IF(ISERROR(Dados!G175),\"-\",Dados!G175)","v":3199.59},{"$f":"IF(ISERROR(Dados!H175),\"-\",Dados!H175)","v":501.73},{"$f":"IF(ISERROR(Dados!I175),\"-\",Dados!I175)","v":797.2},{"$f":"IF(ISERROR(Dados!J175),\"-\",Dados!J175)","v":357.38},{"$f":"IF(ISERROR(Dados!K175),\"-\",Dados!K175)","v":159.08000000000001},{"$f":"IF(ISERROR(Dados!L175),\"-\",Dados!L175)","v":244.25},{"$f":"IF(ISERROR(Dados!M175),\"-\",Dados!M175)","v":299.89999999999998},{"$f":"IF(ISERROR(Dados!N175),\"-\",Dados!N175)","v":425.22},{"$f":"IF(ISERROR(Dados!O175),\"-\",Dados!O175)","v":357.38},{"$f":"IF(ISERROR(Dados!P175),\"-\",Dados!P175)","v":425.22},{"$f":"IF(ISERROR(Dados!Q175),\"-\",Dados!Q175)","v":1.6262482168330956},{"$f":"IF(ISERROR(Dados!R175),\"-\",Dados!R175)","v":12.236789266960642},{"$f":"IF(ISERROR(Dados!S175),\"-\",Dados!S175)","v":1.2503279795223763},{"$f":"IF(ISERROR(Dados!T175),\"-\",Dados!T175)","v":9.4081578947368421},{"$f":"IF(ISERROR(Dados!U175),\"-\",Dados!U175)","v":0.13672200000000001},{"$f":"IF(ISERROR(Dados!V175),\"-\",Dados!V175)","v":-0.51269599999999993},{"$f":"IF(ISERROR(Dados!W175),\"-\",Dados!W175)","v":407.9},{"$f":"IF(ISERROR(Dados!X175),\"-\",Dados!X175)","v":573.70000000000005},{"$f":"IF(ISERROR(Dados!Y175),\"-\",Dados!Y175)","v":573.70000000000005},{"$f":"IF(ISERROR(Dados!Z175),\"-\",Dados!Z175)","v":4.1138487014118876},{"$f":"IF(ISERROR(Dados!AA175),\"-\",Dados!AA175)","v":400},{"$f":"IF(ISERROR(Dados!AB175),\"-\",Dados!AB175)","v":9.99867517553924E-2},{"$f":"IF(ISERROR(Dados!AC175),\"-\",Dados!AC175)","v":15.7},{"$f":"IF(ISERROR(Dados!AD175),\"-\",Dados!AD175)","v":63.4},{"$f":"IF(ISERROR(Dados!AE175),\"-\",Dados!AE175)","v":"-"},{"$f":"IF(ISERROR(Dados!AF175),\"-\",Dados!AF175)","v":"QGEP3"},{"$f":"IF(ISERROR(Dados!AG175),\"-\",Dados!AG175)","v":573.70000000000005}]
[{"$f":"IF(ISERROR(Dados!A176),\"-\",Dados!A176)","v":"UGPA3"},{"$f":"IF(ISERROR(Dados!B176),\"-\",Dados!B176)","v":"Petróleo e Gás"},{"$f":"IF(ISERROR(Dados!C176),\"-\",Dados!C176)","v":"Ultrapar"},{"$f":"IF(ISERROR(Dados!D176),\"-\",Dados!D176)","v":47},{"$f":"IF(ISERROR(Dados!E176),\"-\",Dados!E176)","v":543.01499999999999},{"$f":"IF(ISERROR(Dados!F176),\"-\",Dados!F176)","v":25521.7},{"$f":"IF(ISERROR(Dados!G176),\"-\",Dados!G176)","v":9448.11},{"$f":"IF(ISERROR(Dados!H176),\"-\",Dados!H176)","v":80007.42},{"$f":"IF(ISERROR(Dados!I176),\"-\",Dados!I176)","v":90697.98},{"$f":"IF(ISERROR(Dados!J176),\"-\",Dados!J176)","v":1574.31},{"$f":"IF(ISERROR(Dados!K176),\"-\",Dados!K176)","v":73.86},{"$f":"IF(ISERROR(Dados!L176),\"-\",Dados!L176)","v":315.44},{"$f":"IF(ISERROR(Dados!M176),\"-\",Dados!M176)","v":642.78},{"$f":"IF(ISERROR(Dados!N176),\"-\",Dados!N176)","v":1150.42},{"$f":"IF(ISERROR(Dados!O176),\"-\",Dados!O176)","v":1574.31},{"$f":"IF(ISERROR(Dados!P176),\"-\",Dados!P176)","v":1150.42},{"$f":"IF(ISERROR(Dados!Q176),\"-\",Dados!Q176)","v":2.1185786764638181},{"$f":"IF(ISERROR(Dados!R176),\"-\",Dados!R176)","v":17.399353609016327},{"$f":"IF(ISERROR(Dados!S176),\"-\",Dados!S176)","v":2.7012497737642764},{"$f":"IF(ISERROR(Dados!T176),\"-\",Dados!T176)","v":22.184684723839986},{"$f":"IF(ISERROR(Dados!U176),\"-\",Dados!U176)","v":0.116484},{"$f":"IF(ISERROR(Dados!V176),\"-\",Dados!V176)","v":0.85857799999999995},{"$f":"IF(ISERROR(Dados!W176),\"-\",Dados!W176)","v":4063.5},{"$f":"IF(ISERROR(Dados!X176),\"-\",Dados!X176)","v":2697.1},{"$f":"IF(ISERROR(Dados!Y176),\"-\",Dados!Y176)","v":2697.1},{"$f":"IF(ISERROR(Dados!Z176),\"-\",Dados!Z176)","v":12.582326202217198},{"$f":"IF(ISERROR(Dados!AA176),\"-\",Dados!AA176)","v":789.38},{"$f":"IF(ISERROR(Dados!AB176),\"-\",Dados!AB176)","v":3.0929757813938724E-2},{"$f":"IF(ISERROR(Dados!AC176),\"-\",Dados!AC176)","v":-10.8},{"$f":"IF(ISERROR(Dados!AD176),\"-\",Dados!AD176)","v":-34.9},{"$f":"IF(ISERROR(Dados!AE176),\"-\",Dados!AE176)","v":"-"},{"$f":"IF(ISERROR(Dados!AF176),\"-\",Dados!AF176)","v":"UGPA3"},{"$f":"IF(ISERROR(Dados!AG176),\"-\",Dados!AG176)","v":2697.1}]
[{"$f":"IF(ISERROR(Dados!A177),\"-\",Dados!A177)","v":"PETR4"},{"$f":"IF(ISERROR(Dados!B177),\"-\",Dados!B177)","v":"Petróleo e Gás"},{"$f":"IF(ISERROR(Dados!C177),\"-\",Dados!C177)","v":"Petrobras"},{"$f":"IF(ISERROR(Dados!D177),\"-\",Dados!D177)","v":28.06},{"$f":"IF(ISERROR(Dados!E177),\"-\",Dados!E177)","v":13044.200999999999},{"$f":"IF(ISERROR(Dados!F177),\"-\",Dados!F177)","v":389016.77},{"$f":"IF(ISERROR(Dados!G177),\"-\",Dados!G177)","v":277225},{"$f":"IF(ISERROR(Dados!H177),\"-\",Dados!H177)","v":283695},{"$f":"IF(ISERROR(Dados!I177),\"-\",Dados!I177)","v":349836},{"$f":"IF(ISERROR(Dados!J177),\"-\",Dados!J177)","v":-446},{"$f":"IF(ISERROR(Dados!K177),\"-\",Dados!K177)","v":6961},{"$f":"IF(ISERROR(Dados!L177),\"-\",Dados!L177)","v":17033},{"$f":"IF(ISERROR(Dados!M177),\"-\",Dados!M177)","v":23677},{"$f":"IF(ISERROR(Dados!N177),\"-\",Dados!N177)","v":25779},{"$f":"IF(ISERROR(Dados!O177),\"-\",Dados!O177)","v":-446},{"$f":"IF(ISERROR(Dados!P177),\"-\",Dados!P177)","v":25779},{"$f":"IF(ISERROR(Dados!Q177),\"-\",Dados!Q177)","v":1.9762804942978112},{"$f":"IF(ISERROR(Dados!R177),\"-\",Dados!R177)","v":21.252739052395775},{"$f":"IF(ISERROR(Dados!S177),\"-\",Dados!S177)","v":1.3203004060239876},{"$f":"IF(ISERROR(Dados!T177),\"-\",Dados!T177)","v":14.198389389037587},{"$f":"IF(ISERROR(Dados!U177),\"-\",Dados!U177)","v":9.9025000000000002E-2},{"$f":"IF(ISERROR(Dados!V177),\"-\",Dados!V177)","v":0.94808899999999996},{"$f":"IF(ISERROR(Dados!W177),\"-\",Dados!W177)","v":80251},{"$f":"IF(ISERROR(Dados!X177),\"-\",Dados!X177)","v":108522},{"$f":"IF(ISERROR(Dados!Y177),\"-\",Dados!Y177)","v":108522},{"$f":"IF(ISERROR(Dados!Z177),\"-\",Dados!Z177)","v":6.0618194467481246},{"$f":"IF(ISERROR(Dados!AA177),\"-\",Dados!AA177)","v":2368},{"$f":"IF(ISERROR(Dados!AB177),\"-\",Dados!AB177)","v":6.0871411790293772E-3},{"$f":"IF(ISERROR(Dados!AC177),\"-\",Dados!AC177)","v":3.7},{"$f":"IF(ISERROR(Dados!AD177),\"-\",Dados!AD177)","v":81.7},{"$f":"IF(ISERROR(Dados!AE177),\"-\",Dados!AE177)","v":0.57056005193418902},{"$f":"IF(ISERROR(Dados!AF177),\"-\",Dados!AF177)","v":"PETR4"},{"$f":"IF(ISERROR(Dados!AG177),\"-\",Dados!AG177)","v":108522}]
[{"$f":"IF(ISERROR(Dados!A178),\"-\",Dados!A178)","v":"DMMO3"},{"$f":"IF(ISERROR(Dados!B178),\"-\",Dados!B178)","v":"Petróleo e Gás"},{"$f":"IF(ISERROR(Dados!C178),\"-\",Dados!C178)","v":"Dommo"},{"$f":"IF(ISERROR(Dados!D178),\"-\",Dados!D178)","v":0.79},{"$f":"IF(ISERROR(Dados!E178),\"-\",Dados!E178)","v":2700.3989999999999},{"$f":"IF(ISERROR(Dados!F178),\"-\",Dados!F178)","v":2133.3200000000002},{"$f":"IF(ISERROR(Dados!G178),\"-\",Dados!G178)","v":-376.35},{"$f":"IF(ISERROR(Dados!H178),\"-\",Dados!H178)","v":426.48},{"$f":"IF(ISERROR(Dados!I178),\"-\",Dados!I178)","v":538.27},{"$f":"IF(ISERROR(Dados!J178),\"-\",Dados!J178)","v":-1952.74},{"$f":"IF(ISERROR(Dados!K178),\"-\",Dados!K178)","v":70.23},{"$f":"IF(ISERROR(Dados!L178),\"-\",Dados!L178)","v":269},{"$f":"IF(ISERROR(Dados!M178),\"-\",Dados!M178)","v":-341.71},{"$f":"IF(ISERROR(Dados!N178),\"-\",Dados!N178)","v":-670.98},{"$f":"IF(ISERROR(Dados!O178),\"-\",Dados!O178)","v":-1952.74},{"$f":"IF(ISERROR(Dados!P178),\"-\",Dados!P178)","v":-670.98},{"$f":"IF(ISERROR(Dados!Q178),\"-\",Dados!Q178)","v":-0.2484743921176093},{"$f":"IF(ISERROR(Dados!R178),\"-\",Dados!R178)","v":"-"},{"$f":"IF(ISERROR(Dados!S178),\"-\",Dados!S178)","v":"-"},{"$f":"IF(ISERROR(Dados!T178),\"-\",Dados!T178)","v":"-"},{"$f":"IF(ISERROR(Dados!U178),\"-\",Dados!U178)","v":-1.7098789999999999},{"$f":"IF(ISERROR(Dados!V178),\"-\",Dados!V178)","v":0.417991},{"$f":"IF(ISERROR(Dados!W178),\"-\",Dados!W178)","v":-798.3},{"$f":"IF(ISERROR(Dados!X178),\"-\",Dados!X178)","v":-478.6},{"$f":"IF(ISERROR(Dados!Y178),\"-\",Dados!Y178)","v":-478.6},{"$f":"IF(ISERROR(Dados!Z178),\"-\",Dados!Z178)","v":-4.1287275386544087},{"$f":"IF(ISERROR(Dados!AA178),\"-\",Dados!AA178)","v":"-"},{"$f":"IF(ISERROR(Dados!AB178),\"-\",Dados!AB178)","v":"-"},{"$f":"IF(ISERROR(Dados!AC178),\"-\",Dados!AC178)","v":-11.2},{"$f":"IF(ISERROR(Dados!AD178),\"-\",Dados!AD178)","v":-24},{"$f":"IF(ISERROR(Dados!AE178),\"-\",Dados!AE178)","v":"-"},{"$f":"IF(ISERROR(Dados!AF178),\"-\",Dados!AF178)","v":"DMMO3"},{"$f":"IF(ISERROR(Dados!AG178),\"-\",Dados!AG178)","v":-478.6}]
[{"$f":"IF(ISERROR(Dados!A179),\"-\",Dados!A179)","v":"RPMG3"},{"$f":"IF(ISERROR(Dados!B179),\"-\",Dados!B179)","v":"Petróleo e Gás"},{"$f":"IF(ISERROR(Dados!C179),\"-\",Dados!C179)","v":"Pet Manguinh"},{"$f":"IF(ISERROR(Dados!D179),\"-\",Dados!D179)","v":2.56},{"$f":"IF(ISERROR(Dados!E179),\"-\",Dados!E179)","v":67.685000000000002},{"$f":"IF(ISERROR(Dados!F179),\"-\",Dados!F179)","v":173.27},{"$f":"IF(ISERROR(Dados!G179),\"-\",Dados!G179)","v":-2465.0100000000002},{"$f":"IF(ISERROR(Dados!H179),\"-\",Dados!H179)","v":694.51},{"$f":"IF(ISERROR(Dados!I179),\"-\",Dados!I179)","v":"-"},{"$f":"IF(ISERROR(Dados!J179),\"-\",Dados!J179)","v":-236.03},{"$f":"IF(ISERROR(Dados!K179),\"-\",Dados!K179)","v":-78.069999999999993},{"$f":"IF(ISERROR(Dados!L179),\"-\",Dados!L179)","v":-67.91},{"$f":"IF(ISERROR(Dados!M179),\"-\",Dados!M179)","v":-91.01},{"$f":"IF(ISERROR(Dados!N179),\"-\",Dados!N179)","v":"-"},{"$f":"IF(ISERROR(Dados!O179),\"-\",Dados!O179)","v":-236.03},{"$f":"IF(ISERROR(Dados!P179),\"-\",Dados!P179)","v":"-"},{"$f":"IF(ISERROR(Dados!Q179),\"-\",Dados!Q179)","v":-1.9964541626652876},{"$f":"IF(ISERROR(Dados!R179),\"-\",Dados!R179)","v":"-"},{"$f":"IF(ISERROR(Dados!S179),\"-\",Dados!S179)","v":"-"},{"$f":"IF(ISERROR(Dados!T179),\"-\",Dados!T179)","v":"-"},{"$f":"IF(ISERROR(Dados!U179),\"-\",Dados!U179)","v":"-"},{"$f":"IF(ISERROR(Dados!V179),\"-\",Dados!V179)","v":-1.6505000000000002E-2},{"$f":"IF(ISERROR(Dados!W179),\"-\",Dados!W179)","v":-270.39999999999998},{"$f":"IF(ISERROR(Dados!X179),\"-\",Dados!X179)","v":"-"},{"$f":"IF(ISERROR(Dados!Y179),\"-\",Dados!Y179)","v":-174},{"$f":"IF(ISERROR(Dados!Z179),\"-\",Dados!Z179)","v":-1.2297528735632184},{"$f":"IF(ISERROR(Dados!AA179),\"-\",Dados!AA179)","v":"-"},{"$f":"IF(ISERROR(Dados!AB179),\"-\",Dados!AB179)","v":"-"},{"$f":"IF(ISERROR(Dados!AC179),\"-\",Dados!AC179)","v":-12.9},{"$f":"IF(ISERROR(Dados!AD179),\"-\",Dados!AD179)","v":-67.599999999999994},{"$f":"IF(ISERROR(Dados!AE179),\"-\",Dados!AE179)","v":"-"},{"$f":"IF(ISERROR(Dados!AF179),\"-\",Dados!AF179)","v":"RPMG3"},{"$f":"IF(ISERROR(Dados!AG179),\"-\",Dados!AG179)","v":-174}]
[{"$f":"IF(ISERROR(Dados!A180),\"-\",Dados!A180)","v":"BRKM5"},{"$f":"IF(ISERROR(Dados!B180),\"-\",Dados!B180)","v":"Química"},{"$f":"IF(ISERROR(Dados!C180),\"-\",Dados!C180)","v":"Braskem"},{"$f":"IF(ISERROR(Dados!D180),\"-\",Dados!D180)","v":50.9},{"$f":"IF(ISERROR(Dados!E180),\"-\",Dados!E180)","v":795.98400000000004},{"$f":"IF(ISERROR(Dados!F180),\"-\",Dados!F180)","v":41482.15},{"$f":"IF(ISERROR(Dados!G180),\"-\",Dados!G180)","v":6787.65},{"$f":"IF(ISERROR(Dados!H180),\"-\",Dados!H180)","v":49260.59},{"$f":"IF(ISERROR(Dados!I180),\"-\",Dados!I180)","v":57999.87},{"$f":"IF(ISERROR(Dados!J180),\"-\",Dados!J180)","v":4082.99},{"$f":"IF(ISERROR(Dados!K180),\"-\",Dados!K180)","v":1053.5899999999999},{"$f":"IF(ISERROR(Dados!L180),\"-\",Dados!L180)","v":1600.84},{"$f":"IF(ISERROR(Dados!M180),\"-\",Dados!M180)","v":2945.11},{"$f":"IF(ISERROR(Dados!N180),\"-\",Dados!N180)","v":2866.68},{"$f":"IF(ISERROR(Dados!O180),\"-\",Dados!O180)","v":4082.99},{"$f":"IF(ISERROR(Dados!P180),\"-\",Dados!P180)","v":2866.68},{"$f":"IF(ISERROR(Dados!Q180),\"-\",Dados!Q180)","v":3.6014291744557676},{"$f":"IF(ISERROR(Dados!R180),\"-\",Dados!R180)","v":8.5273698968823481},{"$f":"IF(ISERROR(Dados!S180),\"-\",Dados!S180)","v":5.9690151377870109},{"$f":"IF(ISERROR(Dados!T180),\"-\",Dados!T180)","v":14.133278077776383},{"$f":"IF(ISERROR(Dados!U180),\"-\",Dados!U180)","v":0.51090200000000008},{"$f":"IF(ISERROR(Dados!V180),\"-\",Dados!V180)","v":2.9198050000000002},{"$f":"IF(ISERROR(Dados!W180),\"-\",Dados!W180)","v":12287.9},{"$f":"IF(ISERROR(Dados!X180),\"-\",Dados!X180)","v":11294.5},{"$f":"IF(ISERROR(Dados!Y180),\"-\",Dados!Y180)","v":11294.5},{"$f":"IF(ISERROR(Dados!Z180),\"-\",Dados!Z180)","v":5.2009237239364294},{"$f":"IF(ISERROR(Dados!AA180),\"-\",Dados!AA180)","v":1498.45},{"$f":"IF(ISERROR(Dados!AB180),\"-\",Dados!AB180)","v":3.6122766057207739E-2},{"$f":"IF(ISERROR(Dados!AC180),\"-\",Dados!AC180)","v":-6.4},{"$f":"IF(ISERROR(Dados!AD180),\"-\",Dados!AD180)","v":23.8},{"$f":"IF(ISERROR(Dados!AE180),\"-\",Dados!AE180)","v":0.56747371806468472},{"$f":"IF(ISERROR(Dados!AF180),\"-\",Dados!AF180)","v":"BRKM5"},{"$f":"IF(ISERROR(Dados!AG180),\"-\",Dados!AG180)","v":11294.5}]
[{"$f":"IF(ISERROR(Dados!A181),\"-\",Dados!A181)","v":"UNIP6"},{"$f":"IF(ISERROR(Dados!B181),\"-\",Dados!B181)","v":"Química"},{"$f":"IF(ISERROR(Dados!C181),\"-\",Dados!C181)","v":"Unipar"},{"$f":"IF(ISERROR(Dados!D181),\"-\",Dados!D181)","v":38.15},{"$f":"IF(ISERROR(Dados!E181),\"-\",Dados!E181)","v":87.155000000000001},{"$f":"IF(ISERROR(Dados!F181),\"-\",Dados!F181)","v":3348.19},{"$f":"IF(ISERROR(Dados!G181),\"-\",Dados!G181)","v":1347.52},{"$f":"IF(ISERROR(Dados!H181),\"-\",Dados!H181)","v":3019.59},{"$f":"IF(ISERROR(Dados!I181),\"-\",Dados!I181)","v":3469.13},{"$f":"IF(ISERROR(Dados!J181),\"-\",Dados!J181)","v":302.66000000000003},{"$f":"IF(ISERROR(Dados!K181),\"-\",Dados!K181)","v":158.51},{"$f":"IF(ISERROR(Dados!L181),\"-\",Dados!L181)","v":229.63},{"$f":"IF(ISERROR(Dados!M181),\"-\",Dados!M181)","v":374.23},{"$f":"IF(ISERROR(Dados!N181),\"-\",Dados!N181)","v":528.04},{"$f":"IF(ISERROR(Dados!O181),\"-\",Dados!O181)","v":302.66000000000003},{"$f":"IF(ISERROR(Dados!P181),\"-\",Dados!P181)","v":528.04},{"$f":"IF(ISERROR(Dados!Q181),\"-\",Dados!Q181)","v":6.0586311743445584},{"$f":"IF(ISERROR(Dados!R181),\"-\",Dados!R181)","v":15.461189834203431},{"$f":"IF(ISERROR(Dados!S181),\"-\",Dados!S181)","v":2.4674685718950369},{"$f":"IF(ISERROR(Dados!T181),\"-\",Dados!T181)","v":6.2968018521324138},{"$f":"IF(ISERROR(Dados!U181),\"-\",Dados!U181)","v":0.51027599999999995},{"$f":"IF(ISERROR(Dados!V181),\"-\",Dados!V181)","v":0.11505599999999999},{"$f":"IF(ISERROR(Dados!W181),\"-\",Dados!W181)","v":575.79999999999995},{"$f":"IF(ISERROR(Dados!X181),\"-\",Dados!X181)","v":1007},{"$f":"IF(ISERROR(Dados!Y181),\"-\",Dados!Y181)","v":1007},{"$f":"IF(ISERROR(Dados!Z181),\"-\",Dados!Z181)","v":3.4901241310824234},{"$f":"IF(ISERROR(Dados!AA181),\"-\",Dados!AA181)","v":206.96},{"$f":"IF(ISERROR(Dados!AB181),\"-\",Dados!AB181)","v":6.1812501680012184E-2},{"$f":"IF(ISERROR(Dados!AC181),\"-\",Dados!AC181)","v":-4.2},{"$f":"IF(ISERROR(Dados!AD181),\"-\",Dados!AD181)","v":182.9},{"$f":"IF(ISERROR(Dados!AE181),\"-\",Dados!AE181)","v":0.34880385520050483},{"$f":"IF(ISERROR(Dados!AF181),\"-\",Dados!AF181)","v":"UNIP6"},{"$f":"IF(ISERROR(Dados!AG181),\"-\",Dados!AG181)","v":1007}]
[{"$f":"IF(ISERROR(Dados!A182),\"-\",Dados!A182)","v":"CRPG5"},{"$f":"IF(ISERROR(Dados!B182),\"-\",Dados!B182)","v":"Química"},{"$f":"IF(ISERROR(Dados!C182),\"-\",Dados!C182)","v":"Cristal"},{"$f":"IF(ISERROR(Dados!D182),\"-\",Dados!D182)","v":39.799999999999997},{"$f":"IF(ISERROR(Dados!E182),\"-\",Dados!E182)","v":23.215},{"$f":"IF(ISERROR(Dados!F182),\"-\",Dados!F182)","v":921.78},{"$f":"IF(ISERROR(Dados!G182),\"-\",Dados!G182)","v":509.05},{"$f":"IF(ISERROR(Dados!H182),\"-\",Dados!H182)","v":568.23},{"$f":"IF(ISERROR(Dados!I182),\"-\",Dados!I182)","v":636.04999999999995},{"$f":"IF(ISERROR(Dados!J182),\"-\",Dados!J182)","v":79},{"$f":"IF(ISERROR(Dados!K182),\"-\",Dados!K182)","v":23.98},{"$f":"IF(ISERROR(Dados!L182),\"-\",Dados!L182)","v":60.34},{"$f":"IF(ISERROR(Dados!M182),\"-\",Dados!M182)","v":109.99},{"$f":"IF(ISERROR(Dados!N182),\"-\",Dados!N182)","v":155.66999999999999},{"$f":"IF(ISERROR(Dados!O182),\"-\",Dados!O182)","v":79},{"$f":"IF(ISERROR(Dados!P182),\"-\",Dados!P182)","v":155.66999999999999},{"$f":"IF(ISERROR(Dados!Q182),\"-\",Dados!Q182)","v":6.7055782898987717},{"$f":"IF(ISERROR(Dados!R182),\"-\",Dados!R182)","v":21.927632995907818},{"$f":"IF(ISERROR(Dados!S182),\"-\",Dados!S182)","v":1.815061388861605},{"$f":"IF(ISERROR(Dados!T182),\"-\",Dados!T182)","v":5.935356844607182},{"$f":"IF(ISERROR(Dados!U182),\"-\",Dados!U182)","v":0.34552500000000003},{"$f":"IF(ISERROR(Dados!V182),\"-\",Dados!V182)","v":-0.115047},{"$f":"IF(ISERROR(Dados!W182),\"-\",Dados!W182)","v":112.9},{"$f":"IF(ISERROR(Dados!X182),\"-\",Dados!X182)","v":172.1},{"$f":"IF(ISERROR(Dados!Y182),\"-\",Dados!Y182)","v":172.1},{"$f":"IF(ISERROR(Dados!Z182),\"-\",Dados!Z182)","v":5.0157757117954676},{"$f":"IF(ISERROR(Dados!AA182),\"-\",Dados!AA182)","v":108.19},{"$f":"IF(ISERROR(Dados!AB182),\"-\",Dados!AB182)","v":0.11737073922194016},{"$f":"IF(ISERROR(Dados!AC182),\"-\",Dados!AC182)","v":8.1999999999999993},{"$f":"IF(ISERROR(Dados!AD182),\"-\",Dados!AD182)","v":209.7},{"$f":"IF(ISERROR(Dados!AE182),\"-\",Dados!AE182)","v":0.34891234115873354},{"$f":"IF(ISERROR(Dados!AF182),\"-\",Dados!AF182)","v":"CRPG5"},{"$f":"IF(ISERROR(Dados!AG182),\"-\",Dados!AG182)","v":172.1}]
[{"$f":"IF(ISERROR(Dados!A183),\"-\",Dados!A183)","v":"OFSA3"},{"$f":"IF(ISERROR(Dados!B183),\"-\",Dados!B183)","v":"Química"},{"$f":"IF(ISERROR(Dados!C183),\"-\",Dados!C183)","v":"Ourofino S/A"},{"$f":"IF(ISERROR(Dados!D183),\"-\",Dados!D183)","v":31.25},{"$f":"IF(ISERROR(Dados!E183),\"-\",Dados!E183)","v":53.948999999999998},{"$f":"IF(ISERROR(Dados!F183),\"-\",Dados!F183)","v":1685.91},{"$f":"IF(ISERROR(Dados!G183),\"-\",Dados!G183)","v":455.94},{"$f":"IF(ISERROR(Dados!H183),\"-\",Dados!H183)","v":505.28},{"$f":"IF(ISERROR(Dados!I183),\"-\",Dados!I183)","v":589.22},{"$f":"IF(ISERROR(Dados!J183),\"-\",Dados!J183)","v":38.11},{"$f":"IF(ISERROR(Dados!K183),\"-\",Dados!K183)","v":3.62},{"$f":"IF(ISERROR(Dados!L183),\"-\",Dados!L183)","v":27.87},{"$f":"IF(ISERROR(Dados!M183),\"-\",Dados!M183)","v":49.75},{"$f":"IF(ISERROR(Dados!N183),\"-\",Dados!N183)","v":68.849999999999994},{"$f":"IF(ISERROR(Dados!O183),\"-\",Dados!O183)","v":38.11},{"$f":"IF(ISERROR(Dados!P183),\"-\",Dados!P183)","v":68.849999999999994},{"$f":"IF(ISERROR(Dados!Q183),\"-\",Dados!Q183)","v":1.2762053050102875},{"$f":"IF(ISERROR(Dados!R183),\"-\",Dados!R183)","v":8.4513151309570151},{"$f":"IF(ISERROR(Dados!S183),\"-\",Dados!S183)","v":3.6976493617581259},{"$f":"IF(ISERROR(Dados!T183),\"-\",Dados!T183)","v":24.48665577342048},{"$f":"IF(ISERROR(Dados!U183),\"-\",Dados!U183)","v":0.16977499999999998},{"$f":"IF(ISERROR(Dados!V183),\"-\",Dados!V183)","v":0.48763599999999996},{"$f":"IF(ISERROR(Dados!W183),\"-\",Dados!W183)","v":91.2},{"$f":"IF(ISERROR(Dados!X183),\"-\",Dados!X183)","v":123.5},{"$f":"IF(ISERROR(Dados!Y183),\"-\",Dados!Y183)","v":123.5},{"$f":"IF(ISERROR(Dados!Z183),\"-\",Dados!Z183)","v":15.451465587044535},{"$f":"IF(ISERROR(Dados!AA183),\"-\",Dados!AA183)","v":"-"},{"$f":"IF(ISERROR(Dados!AB183),\"-\",Dados!AB183)","v":"-"},{"$f":"IF(ISERROR(Dados!AC183),\"-\",Dados!AC183)","v":-3.5},{"$f":"IF(ISERROR(Dados!AD183),\"-\",Dados!AD183)","v":31.3},{"$f":"IF(ISERROR(Dados!AE183),\"-\",Dados!AE183)","v":0.99909173478655766},{"$f":"IF(ISERROR(Dados!AF183),\"-\",Dados!AF183)","v":"OFSA3"},{"$f":"IF(ISERROR(Dados!AG183),\"-\",Dados!AG183)","v":123.5}]
[{"$f":"IF(ISERROR(Dados!A184),\"-\",Dados!A184)","v":"GBIO33"},{"$f":"IF(ISERROR(Dados!B184),\"-\",Dados!B184)","v":"Química"},{"$f":"IF(ISERROR(Dados!C184),\"-\",Dados!C184)","v":"Biotoscana"},{"$f":"IF(ISERROR(Dados!D184),\"-\",Dados!D184)","v":8.44},{"$f":"IF(ISERROR(Dados!E184),\"-\",Dados!E184)","v":105.958},{"$f":"IF(ISERROR(Dados!F184),\"-\",Dados!F184)","v":894.28},{"$f":"IF(ISERROR(Dados!G184),\"-\",Dados!G184)","v":729.24},{"$f":"IF(ISERROR(Dados!H184),\"-\",Dados!H184)","v":817.55},{"$f":"IF(ISERROR(Dados!I184),\"-\",Dados!I184)","v":820.96},{"$f":"IF(ISERROR(Dados!J184),\"-\",Dados!J184)","v":16.93},{"$f":"IF(ISERROR(Dados!K184),\"-\",Dados!K184)","v":15.96},{"$f":"IF(ISERROR(Dados!L184),\"-\",Dados!L184)","v":35.909999999999997},{"$f":"IF(ISERROR(Dados!M184),\"-\",Dados!M184)","v":45},{"$f":"IF(ISERROR(Dados!N184),\"-\",Dados!N184)","v":63.46},{"$f":"IF(ISERROR(Dados!O184),\"-\",Dados!O184)","v":16.93},{"$f":"IF(ISERROR(Dados!P184),\"-\",Dados!P184)","v":63.46},{"$f":"IF(ISERROR(Dados!Q184),\"-\",Dados!Q184)","v":0.59891655184129566},{"$f":"IF(ISERROR(Dados!R184),\"-\",Dados!R184)","v":6.8823496102229189},{"$f":"IF(ISERROR(Dados!S184),\"-\",Dados!S184)","v":1.2263253798475124},{"$f":"IF(ISERROR(Dados!T184),\"-\",Dados!T184)","v":14.092113457295932},{"$f":"IF(ISERROR(Dados!U184),\"-\",Dados!U184)","v":0.10696},{"$f":"IF(ISERROR(Dados!V184),\"-\",Dados!V184)","v":0.15771399999999999},{"$f":"IF(ISERROR(Dados!W184),\"-\",Dados!W184)","v":"-"},{"$f":"IF(ISERROR(Dados!X184),\"-\",Dados!X184)","v":"-"},{"$f":"IF(ISERROR(Dados!Y184),\"-\",Dados!Y184)","v":"-"},{"$f":"IF(ISERROR(Dados!Z184),\"-\",Dados!Z184)","v":"-"},{"$f":"IF(ISERROR(Dados!AA184),\"-\",Dados!AA184)","v":"-"},{"$f":"IF(ISERROR(Dados!AB184),\"-\",Dados!AB184)","v":"-"},{"$f":"IF(ISERROR(Dados!AC184),\"-\",Dados!AC184)","v":-3.3},{"$f":"IF(ISERROR(Dados!AD184),\"-\",Dados!AD184)","v":-59},{"$f":"IF(ISERROR(Dados!AE184),\"-\",Dados!AE184)","v":"-"},{"$f":"IF(ISERROR(Dados!AF184),\"-\",Dados!AF184)","v":"GBIO33"},{"$f":"IF(ISERROR(Dados!AG184),\"-\",Dados!AG184)","v":"-"}]
[{"$f":"IF(ISERROR(Dados!A185),\"-\",Dados!A185)","v":"FHER3"},{"$f":"IF(ISERROR(Dados!B185),\"-\",Dados!B185)","v":"Química"},{"$f":"IF(ISERROR(Dados!C185),\"-\",Dados!C185)","v":"Fer Heringer"},{"$f":"IF(ISERROR(Dados!D185),\"-\",Dados!D185)","v":2.21},{"$f":"IF(ISERROR(Dados!E185),\"-\",Dados!E185)","v":53.856999999999999},{"$f":"IF(ISERROR(Dados!F185),\"-\",Dados!F185)","v":119.02},{"$f":"IF(ISERROR(Dados!G185),\"-\",Dados!G185)","v":-621.84},{"$f":"IF(ISERROR(Dados!H185),\"-\",Dados!H185)","v":4789.72},{"$f":"IF(ISERROR(Dados!I185),\"-\",Dados!I185)","v":3688.72},{"$f":"IF(ISERROR(Dados!J185),\"-\",Dados!J185)","v":-125.6},{"$f":"IF(ISERROR(Dados!K185),\"-\",Dados!K185)","v":-46.75},{"$f":"IF(ISERROR(Dados!L185),\"-\",Dados!L185)","v":-324.07},{"$f":"IF(ISERROR(Dados!M185),\"-\",Dados!M185)","v":-441.45},{"$f":"IF(ISERROR(Dados!N185),\"-\",Dados!N185)","v":-779.61},{"$f":"IF(ISERROR(Dados!O185),\"-\",Dados!O185)","v":-125.6},{"$f":"IF(ISERROR(Dados!P185),\"-\",Dados!P185)","v":-779.61},{"$f":"IF(ISERROR(Dados!Q185),\"-\",Dados!Q185)","v":-14.475555638078616},{"$f":"IF(ISERROR(Dados!R185),\"-\",Dados!R185)","v":"-"},{"$f":"IF(ISERROR(Dados!S185),\"-\",Dados!S185)","v":"-"},{"$f":"IF(ISERROR(Dados!T185),\"-\",Dados!T185)","v":"-"},{"$f":"IF(ISERROR(Dados!U185),\"-\",Dados!U185)","v":-4.7652549999999998},{"$f":"IF(ISERROR(Dados!V185),\"-\",Dados!V185)","v":-1.579545},{"$f":"IF(ISERROR(Dados!W185),\"-\",Dados!W185)","v":91.9},{"$f":"IF(ISERROR(Dados!X185),\"-\",Dados!X185)","v":-150.4},{"$f":"IF(ISERROR(Dados!Y185),\"-\",Dados!Y185)","v":-150.4},{"$f":"IF(ISERROR(Dados!Z185),\"-\",Dados!Z185)","v":-7.3220611702127663},{"$f":"IF(ISERROR(Dados!AA185),\"-\",Dados!AA185)","v":"-"},{"$f":"IF(ISERROR(Dados!AB185),\"-\",Dados!AB185)","v":"-"},{"$f":"IF(ISERROR(Dados!AC185),\"-\",Dados!AC185)","v":-2.6},{"$f":"IF(ISERROR(Dados!AD185),\"-\",Dados!AD185)","v":-13.3},{"$f":"IF(ISERROR(Dados!AE185),\"-\",Dados!AE185)","v":"-"},{"$f":"IF(ISERROR(Dados!AF185),\"-\",Dados!AF185)","v":"FHER3"},{"$f":"IF(ISERROR(Dados!AG185),\"-\",Dados!AG185)","v":-150.4}]
[{"$f":"IF(ISERROR(Dados!A186),\"-\",Dados!A186)","v":"BOBR4"},{"$f":"IF(ISERROR(Dados!B186),\"-\",Dados!B186)","v":"Química"},{"$f":"IF(ISERROR(Dados!C186),\"-\",Dados!C186)","v":"Bombril"},{"$f":"IF(ISERROR(Dados!D186),\"-\",Dados!D186)","v":2.27},{"$f":"IF(ISERROR(Dados!E186),\"-\",Dados!E186)","v":54.064999999999998},{"$f":"IF(ISERROR(Dados!F186),\"-\",Dados!F186)","v":122.73},{"$f":"IF(ISERROR(Dados!G186),\"-\",Dados!G186)","v":-241.39},{"$f":"IF(ISERROR(Dados!H186),\"-\",Dados!H186)","v":1096.72},{"$f":"IF(ISERROR(Dados!I186),\"-\",Dados!I186)","v":1046.69},{"$f":"IF(ISERROR(Dados!J186),\"-\",Dados!J186)","v":126.82},{"$f":"IF(ISERROR(Dados!K186),\"-\",Dados!K186)","v":-15.75},{"$f":"IF(ISERROR(Dados!L186),\"-\",Dados!L186)","v":-21.99},{"$f":"IF(ISERROR(Dados!M186),\"-\",Dados!M186)","v":107.36},{"$f":"IF(ISERROR(Dados!N186),\"-\",Dados!N186)","v":70.17},{"$f":"IF(ISERROR(Dados!O186),\"-\",Dados!O186)","v":126.82},{"$f":"IF(ISERROR(Dados!P186),\"-\",Dados!P186)","v":70.17},{"$f":"IF(ISERROR(Dados!Q186),\"-\",Dados!Q186)","v":1.2978821788587811},{"$f":"IF(ISERROR(Dados!R186),\"-\",Dados!R186)","v":"-"},{"$f":"IF(ISERROR(Dados!S186),\"-\",Dados!S186)","v":"-"},{"$f":"IF(ISERROR(Dados!T186),\"-\",Dados!T186)","v":1.7490031352429813},{"$f":"IF(ISERROR(Dados!U186),\"-\",Dados!U186)","v":"-"},{"$f":"IF(ISERROR(Dados!V186),\"-\",Dados!V186)","v":-1.1236550000000001},{"$f":"IF(ISERROR(Dados!W186),\"-\",Dados!W186)","v":203},{"$f":"IF(ISERROR(Dados!X186),\"-\",Dados!X186)","v":19.2},{"$f":"IF(ISERROR(Dados!Y186),\"-\",Dados!Y186)","v":19.2},{"$f":"IF(ISERROR(Dados!Z186),\"-\",Dados!Z186)","v":20.519166666666667},{"$f":"IF(ISERROR(Dados!AA186),\"-\",Dados!AA186)","v":"-"},{"$f":"IF(ISERROR(Dados!AB186),\"-\",Dados!AB186)","v":"-"},{"$f":"IF(ISERROR(Dados!AC186),\"-\",Dados!AC186)","v":-15},{"$f":"IF(ISERROR(Dados!AD186),\"-\",Dados!AD186)","v":-54},{"$f":"IF(ISERROR(Dados!AE186),\"-\",Dados!AE186)","v":0.36992509016924074},{"$f":"IF(ISERROR(Dados!AF186),\"-\",Dados!AF186)","v":"BOBR4"},{"$f":"IF(ISERROR(Dados!AG186),\"-\",Dados!AG186)","v":19.2}]
[{"$f":"IF(ISERROR(Dados!A187),\"-\",Dados!A187)","v":"CSNA3"},{"$f":"IF(ISERROR(Dados!B187),\"-\",Dados!B187)","v":"Siderurgia e Metalurgia"},{"$f":"IF(ISERROR(Dados!C187),\"-\",Dados!C187)","v":"Sid Nacional"},{"$f":"IF(ISERROR(Dados!D187),\"-\",Dados!D187)","v":16.25},{"$f":"IF(ISERROR(Dados!E187),\"-\",Dados!E187)","v":1380.115},{"$f":"IF(ISERROR(Dados!F187),\"-\",Dados!F187)","v":22426.86},{"$f":"IF(ISERROR(Dados!G187),\"-\",Dados!G187)","v":8702.74},{"$f":"IF(ISERROR(Dados!H187),\"-\",Dados!H187)","v":18524.599999999999},{"$f":"IF(ISERROR(Dados!I187),\"-\",Dados!I187)","v":22968.89},{"$f":"IF(ISERROR(Dados!J187),\"-\",Dados!J187)","v":10.27},{"$f":"IF(ISERROR(Dados!K187),\"-\",Dados!K187)","v":1471.86},{"$f":"IF(ISERROR(Dados!L187),\"-\",Dados!L187)","v":2632.31},{"$f":"IF(ISERROR(Dados!M187),\"-\",Dados!M187)","v":3353.85},{"$f":"IF(ISERROR(Dados!N187),\"-\",Dados!N187)","v":5074.1400000000003},{"$f":"IF(ISERROR(Dados!O187),\"-\",Dados!O187)","v":10.27},{"$f":"IF(ISERROR(Dados!P187),\"-\",Dados!P187)","v":5074.1400000000003},{"$f":"IF(ISERROR(Dados!Q187),\"-\",Dados!Q187)","v":3.6766066595899618},{"$f":"IF(ISERROR(Dados!R187),\"-\",Dados!R187)","v":6.3058078493458876},{"$f":"IF(ISERROR(Dados!S187),\"-\",Dados!S187)","v":2.5769894021882767},{"$f":"IF(ISERROR(Dados!T187),\"-\",Dados!T187)","v":4.4198364156290522},{"$f":"IF(ISERROR(Dados!U187),\"-\",Dados!U187)","v":0.62746599999999997},{"$f":"IF(ISERROR(Dados!V187),\"-\",Dados!V187)","v":2.5648880000000003},{"$f":"IF(ISERROR(Dados!W187),\"-\",Dados!W187)","v":4437.3},{"$f":"IF(ISERROR(Dados!X187),\"-\",Dados!X187)","v":8219.6},{"$f":"IF(ISERROR(Dados!Y187),\"-\",Dados!Y187)","v":8219.6},{"$f":"IF(ISERROR(Dados!Z187),\"-\",Dados!Z187)","v":5.8531092753905298},{"$f":"IF(ISERROR(Dados!AA187),\"-\",Dados!AA187)","v":"-"},{"$f":"IF(ISERROR(Dados!AB187),\"-\",Dados!AB187)","v":"-"},{"$f":"IF(ISERROR(Dados!AC187),\"-\",Dados!AC187)","v":24.2},{"$f":"IF(ISERROR(Dados!AD187),\"-\",Dados!AD187)","v":93.9},{"$f":"IF(ISERROR(Dados!AE187),\"-\",Dados!AE187)","v":"-"},{"$f":"IF(ISERROR(Dados!AF187),\"-\",Dados!AF187)","v":"CSNA3"},{"$f":"IF(ISERROR(Dados!AG187),\"-\",Dados!AG187)","v":8219.6}]
[{"$f":"IF(ISERROR(Dados!A188),\"-\",Dados!A188)","v":"FESA4"},{"$f":"IF(ISERROR(Dados!B188),\"-\",Dados!B188)","v":"Siderurgia e Metalurgia"},{"$f":"IF(ISERROR(Dados!C188),\"-\",Dados!C188)","v":"Ferbasa"},{"$f":"IF(ISERROR(Dados!D188),\"-\",Dados!D188)","v":21.71},{"$f":"IF(ISERROR(Dados!E188),\"-\",Dados!E188)","v":85.096999999999994},{"$f":"IF(ISERROR(Dados!F188),\"-\",Dados!F188)","v":2090.88},{"$f":"IF(ISERROR(Dados!G188),\"-\",Dados!G188)","v":1743.32},{"$f":"IF(ISERROR(Dados!H188),\"-\",Dados!H188)","v":1108.72},{"$f":"IF(ISERROR(Dados!I188),\"-\",Dados!I188)","v":1381.06},{"$f":"IF(ISERROR(Dados!J188),\"-\",Dados!J188)","v":269.85000000000002},{"$f":"IF(ISERROR(Dados!K188),\"-\",Dados!K188)","v":63.4},{"$f":"IF(ISERROR(Dados!L188),\"-\",Dados!L188)","v":139.74},{"$f":"IF(ISERROR(Dados!M188),\"-\",Dados!M188)","v":288.89},{"$f":"IF(ISERROR(Dados!N188),\"-\",Dados!N188)","v":308.8},{"$f":"IF(ISERROR(Dados!O188),\"-\",Dados!O188)","v":269.85000000000002},{"$f":"IF(ISERROR(Dados!P188),\"-\",Dados!P188)","v":308.8},{"$f":"IF(ISERROR(Dados!Q188),\"-\",Dados!Q188)","v":3.6288000752082921},{"$f":"IF(ISERROR(Dados!R188),\"-\",Dados!R188)","v":20.486268611114376},{"$f":"IF(ISERROR(Dados!S188),\"-\",Dados!S188)","v":1.0597342255007687},{"$f":"IF(ISERROR(Dados!T188),\"-\",Dados!T188)","v":5.9826938795336781},{"$f":"IF(ISERROR(Dados!U188),\"-\",Dados!U188)","v":0.20307099999999997},{"$f":"IF(ISERROR(Dados!V188),\"-\",Dados!V188)","v":5.9785000000000005E-2},{"$f":"IF(ISERROR(Dados!W188),\"-\",Dados!W188)","v":356.1},{"$f":"IF(ISERROR(Dados!X188),\"-\",Dados!X188)","v":522.70000000000005},{"$f":"IF(ISERROR(Dados!Y188),\"-\",Dados!Y188)","v":522.70000000000005},{"$f":"IF(ISERROR(Dados!Z188),\"-\",Dados!Z188)","v":4.2002104457623881},{"$f":"IF(ISERROR(Dados!AA188),\"-\",Dados!AA188)","v":108.5},{"$f":"IF(ISERROR(Dados!AB188),\"-\",Dados!AB188)","v":5.1892026323844501E-2},{"$f":"IF(ISERROR(Dados!AC188),\"-\",Dados!AC188)","v":-20.8},{"$f":"IF(ISERROR(Dados!AD188),\"-\",Dados!AD188)","v":13.7},{"$f":"IF(ISERROR(Dados!AE188),\"-\",Dados!AE188)","v":0.34548809006192932},{"$f":"IF(ISERROR(Dados!AF188),\"-\",Dados!AF188)","v":"FESA4"},{"$f":"IF(ISERROR(Dados!AG188),\"-\",Dados!AG188)","v":522.70000000000005}]
[{"$f":"IF(ISERROR(Dados!A189),\"-\",Dados!A189)","v":"GGBR4"},{"$f":"IF(ISERROR(Dados!B189),\"-\",Dados!B189)","v":"Siderurgia e Metalurgia"},{"$f":"IF(ISERROR(Dados!C189),\"-\",Dados!C189)","v":"Gerdau"},{"$f":"IF(ISERROR(Dados!D189),\"-\",Dados!D189)","v":15.14},{"$f":"IF(ISERROR(Dados!E189),\"-\",Dados!E189)","v":1696.164},{"$f":"IF(ISERROR(Dados!F189),\"-\",Dados!F189)","v":23998.44},{"$f":"IF(ISERROR(Dados!G189),\"-\",Dados!G189)","v":25730.6},{"$f":"IF(ISERROR(Dados!H189),\"-\",Dados!H189)","v":36917.620000000003},{"$f":"IF(ISERROR(Dados!I189),\"-\",Dados!I189)","v":46159.48},{"$f":"IF(ISERROR(Dados!J189),\"-\",Dados!J189)","v":-359.36},{"$f":"IF(ISERROR(Dados!K189),\"-\",Dados!K189)","v":441.03},{"$f":"IF(ISERROR(Dados!L189),\"-\",Dados!L189)","v":1135.6199999999999},{"$f":"IF(ISERROR(Dados!M189),\"-\",Dados!M189)","v":1920.53},{"$f":"IF(ISERROR(Dados!N189),\"-\",Dados!N189)","v":2303.87},{"$f":"IF(ISERROR(Dados!O189),\"-\",Dados!O189)","v":-359.36},{"$f":"IF(ISERROR(Dados!P189),\"-\",Dados!P189)","v":2303.87},{"$f":"IF(ISERROR(Dados!Q189),\"-\",Dados!Q189)","v":1.3582825717324503},{"$f":"IF(ISERROR(Dados!R189),\"-\",Dados!R189)","v":15.169877441096498},{"$f":"IF(ISERROR(Dados!S189),\"-\",Dados!S189)","v":0.99803047577592441},{"$f":"IF(ISERROR(Dados!T189),\"-\",Dados!T189)","v":11.146428817598217},{"$f":"IF(ISERROR(Dados!U189),\"-\",Dados!U189)","v":9.7363000000000005E-2},{"$f":"IF(ISERROR(Dados!V189),\"-\",Dados!V189)","v":0.44555700000000004},{"$f":"IF(ISERROR(Dados!W189),\"-\",Dados!W189)","v":3192.6},{"$f":"IF(ISERROR(Dados!X189),\"-\",Dados!X189)","v":5939},{"$f":"IF(ISERROR(Dados!Y189),\"-\",Dados!Y189)","v":5939},{"$f":"IF(ISERROR(Dados!Z189),\"-\",Dados!Z189)","v":5.9867890217208286},{"$f":"IF(ISERROR(Dados!AA189),\"-\",Dados!AA189)","v":592.61},{"$f":"IF(ISERROR(Dados!AB189),\"-\",Dados!AB189)","v":2.4693688423080836E-2},{"$f":"IF(ISERROR(Dados!AC189),\"-\",Dados!AC189)","v":0.7},{"$f":"IF(ISERROR(Dados!AD189),\"-\",Dados!AD189)","v":26.1},{"$f":"IF(ISERROR(Dados!AE189),\"-\",Dados!AE189)","v":0.33817484630023986},{"$f":"IF(ISERROR(Dados!AF189),\"-\",Dados!AF189)","v":"GGBR4"},{"$f":"IF(ISERROR(Dados!AG189),\"-\",Dados!AG189)","v":5939}]
[{"$f":"IF(ISERROR(Dados!A190),\"-\",Dados!A190)","v":"GOAU4"},{"$f":"IF(ISERROR(Dados!B190),\"-\",Dados!B190)","v":"Siderurgia e Metalurgia"},{"$f":"IF(ISERROR(Dados!C190),\"-\",Dados!C190)","v":"Gerdau Met"},{"$f":"IF(ISERROR(Dados!D190),\"-\",Dados!D190)","v":7.11},{"$f":"IF(ISERROR(Dados!E190),\"-\",Dados!E190)","v":979.42100000000005},{"$f":"IF(ISERROR(Dados!F190),\"-\",Dados!F190)","v":6983.56},{"$f":"IF(ISERROR(Dados!G190),\"-\",Dados!G190)","v":9345.17},{"$f":"IF(ISERROR(Dados!H190),\"-\",Dados!H190)","v":36917.620000000003},{"$f":"IF(ISERROR(Dados!I190),\"-\",Dados!I190)","v":46159.48},{"$f":"IF(ISERROR(Dados!J190),\"-\",Dados!J190)","v":-203.29},{"$f":"IF(ISERROR(Dados!K190),\"-\",Dados!K190)","v":146.97},{"$f":"IF(ISERROR(Dados!L190),\"-\",Dados!L190)","v":397.57},{"$f":"IF(ISERROR(Dados!M190),\"-\",Dados!M190)","v":680.05},{"$f":"IF(ISERROR(Dados!N190),\"-\",Dados!N190)","v":799.01},{"$f":"IF(ISERROR(Dados!O190),\"-\",Dados!O190)","v":-203.29},{"$f":"IF(ISERROR(Dados!P190),\"-\",Dados!P190)","v":799.01},{"$f":"IF(ISERROR(Dados!Q190),\"-\",Dados!Q190)","v":0.81579831349338017},{"$f":"IF(ISERROR(Dados!R190),\"-\",Dados!R190)","v":9.5415250438779644},{"$f":"IF(ISERROR(Dados!S190),\"-\",Dados!S190)","v":0.74516389857006349},{"$f":"IF(ISERROR(Dados!T190),\"-\",Dados!T190)","v":8.7153894319220058},{"$f":"IF(ISERROR(Dados!U190),\"-\",Dados!U190)","v":9.5991999999999994E-2},{"$f":"IF(ISERROR(Dados!V190),\"-\",Dados!V190)","v":0.48102800000000001},{"$f":"IF(ISERROR(Dados!W190),\"-\",Dados!W190)","v":3184.3},{"$f":"IF(ISERROR(Dados!X190),\"-\",Dados!X190)","v":5914.5},{"$f":"IF(ISERROR(Dados!Y190),\"-\",Dados!Y190)","v":5914.5},{"$f":"IF(ISERROR(Dados!Z190),\"-\",Dados!Z190)","v":3.2443043367993916},{"$f":"IF(ISERROR(Dados!AA190),\"-\",Dados!AA190)","v":195.4},{"$f":"IF(ISERROR(Dados!AB190),\"-\",Dados!AB190)","v":2.7979998739897701E-2},{"$f":"IF(ISERROR(Dados!AC190),\"-\",Dados!AC190)","v":-0.3},{"$f":"IF(ISERROR(Dados!AD190),\"-\",Dados!AD190)","v":27},{"$f":"IF(ISERROR(Dados!AE190),\"-\",Dados!AE190)","v":0.33826107465533206},{"$f":"IF(ISERROR(Dados!AF190),\"-\",Dados!AF190)","v":"GOAU4"},{"$f":"IF(ISERROR(Dados!AG190),\"-\",Dados!AG190)","v":5914.5}]
[{"$f":"IF(ISERROR(Dados!A191),\"-\",Dados!A191)","v":"MTSA4"},{"$f":"IF(ISERROR(Dados!B191),\"-\",Dados!B191)","v":"Siderurgia e Metalurgia"},{"$f":"IF(ISERROR(Dados!C191),\"-\",Dados!C191)","v":"Metisa"},{"$f":"IF(ISERROR(Dados!D191),\"-\",Dados!D191)","v":16.96},{"$f":"IF(ISERROR(Dados!E191),\"-\",Dados!E191)","v":9.0050000000000008},{"$f":"IF(ISERROR(Dados!F191),\"-\",Dados!F191)","v":152.72},{"$f":"IF(ISERROR(Dados!G191),\"-\",Dados!G191)","v":230.64},{"$f":"IF(ISERROR(Dados!H191),\"-\",Dados!H191)","v":240.18},{"$f":"IF(ISERROR(Dados!I191),\"-\",Dados!I191)","v":270.73},{"$f":"IF(ISERROR(Dados!J191),\"-\",Dados!J191)","v":13.14},{"$f":"IF(ISERROR(Dados!K191),\"-\",Dados!K191)","v":2.95},{"$f":"IF(ISERROR(Dados!L191),\"-\",Dados!L191)","v":7.54},{"$f":"IF(ISERROR(Dados!M191),\"-\",Dados!M191)","v":13.58},{"$f":"IF(ISERROR(Dados!N191),\"-\",Dados!N191)","v":16.34},{"$f":"IF(ISERROR(Dados!O191),\"-\",Dados!O191)","v":13.14},{"$f":"IF(ISERROR(Dados!P191),\"-\",Dados!P191)","v":16.34},{"$f":"IF(ISERROR(Dados!Q191),\"-\",Dados!Q191)","v":1.8145474736257632},{"$f":"IF(ISERROR(Dados!R191),\"-\",Dados!R191)","v":25.612437534702938},{"$f":"IF(ISERROR(Dados!S191),\"-\",Dados!S191)","v":0.66217828650711086},{"$f":"IF(ISERROR(Dados!T191),\"-\",Dados!T191)","v":9.3466829865361092},{"$f":"IF(ISERROR(Dados!U191),\"-\",Dados!U191)","v":7.4279999999999999E-2},{"$f":"IF(ISERROR(Dados!V191),\"-\",Dados!V191)","v":-0.16652400000000001},{"$f":"IF(ISERROR(Dados!W191),\"-\",Dados!W191)","v":15.8},{"$f":"IF(ISERROR(Dados!X191),\"-\",Dados!X191)","v":24.7},{"$f":"IF(ISERROR(Dados!Y191),\"-\",Dados!Y191)","v":24.7},{"$f":"IF(ISERROR(Dados!Z191),\"-\",Dados!Z191)","v":4.6280566801619436},{"$f":"IF(ISERROR(Dados!AA191),\"-\",Dados!AA191)","v":5.6},{"$f":"IF(ISERROR(Dados!AB191),\"-\",Dados!AB191)","v":3.6668412781561022E-2},{"$f":"IF(ISERROR(Dados!AC191),\"-\",Dados!AC191)","v":-5.8},{"$f":"IF(ISERROR(Dados!AD191),\"-\",Dados!AD191)","v":9.4},{"$f":"IF(ISERROR(Dados!AE191),\"-\",Dados!AE191)","v":0.46640755136035533},{"$f":"IF(ISERROR(Dados!AF191),\"-\",Dados!AF191)","v":"MTSA4"},{"$f":"IF(ISERROR(Dados!AG191),\"-\",Dados!AG191)","v":24.7}]
[{"$f":"IF(ISERROR(Dados!A192),\"-\",Dados!A192)","v":"USIM5"},{"$f":"IF(ISERROR(Dados!B192),\"-\",Dados!B192)","v":"Siderurgia e Metalurgia"},{"$f":"IF(ISERROR(Dados!C192),\"-\",Dados!C192)","v":"Usiminas"},{"$f":"IF(ISERROR(Dados!D192),\"-\",Dados!D192)","v":10.039999999999999},{"$f":"IF(ISERROR(Dados!E192),\"-\",Dados!E192)","v":1229.3019999999999},{"$f":"IF(ISERROR(Dados!F192),\"-\",Dados!F192)","v":13473.59},{"$f":"IF(ISERROR(Dados!G192),\"-\",Dados!G192)","v":14266.3},{"$f":"IF(ISERROR(Dados!H192),\"-\",Dados!H192)","v":10734.12},{"$f":"IF(ISERROR(Dados!I192),\"-\",Dados!I192)","v":13736.78},{"$f":"IF(ISERROR(Dados!J192),\"-\",Dados!J192)","v":233.02},{"$f":"IF(ISERROR(Dados!K192),\"-\",Dados!K192)","v":140.11000000000001},{"$f":"IF(ISERROR(Dados!L192),\"-\",Dados!L192)","v":107.94},{"$f":"IF(ISERROR(Dados!M192),\"-\",Dados!M192)","v":371.86},{"$f":"IF(ISERROR(Dados!N192),\"-\",Dados!N192)","v":726.66},{"$f":"IF(ISERROR(Dados!O192),\"-\",Dados!O192)","v":233.02},{"$f":"IF(ISERROR(Dados!P192),\"-\",Dados!P192)","v":726.66},{"$f":"IF(ISERROR(Dados!Q192),\"-\",Dados!Q192)","v":0.59111593408291863},{"$f":"IF(ISERROR(Dados!R192),\"-\",Dados!R192)","v":11.605203603345638},{"$f":"IF(ISERROR(Dados!S192),\"-\",Dados!S192)","v":0.86512915612317132},{"$f":"IF(ISERROR(Dados!T192),\"-\",Dados!T192)","v":16.984823824071778},{"$f":"IF(ISERROR(Dados!U192),\"-\",Dados!U192)","v":5.4577000000000001E-2},{"$f":"IF(ISERROR(Dados!V192),\"-\",Dados!V192)","v":0.26478499999999999},{"$f":"IF(ISERROR(Dados!W192),\"-\",Dados!W192)","v":2055.6999999999998},{"$f":"IF(ISERROR(Dados!X192),\"-\",Dados!X192)","v":2171.8000000000002},{"$f":"IF(ISERROR(Dados!Y192),\"-\",Dados!Y192)","v":2171.8000000000002},{"$f":"IF(ISERROR(Dados!Z192),\"-\",Dados!Z192)","v":8.117704668938206},{"$f":"IF(ISERROR(Dados!AA192),\"-\",Dados!AA192)","v":55.26},{"$f":"IF(ISERROR(Dados!AB192),\"-\",Dados!AB192)","v":4.1013568024557672E-3},{"$f":"IF(ISERROR(Dados!AC192),\"-\",Dados!AC192)","v":3.9},{"$f":"IF(ISERROR(Dados!AD192),\"-\",Dados!AD192)","v":11.7},{"$f":"IF(ISERROR(Dados!AE192),\"-\",Dados!AE192)","v":0.57374022005983882},{"$f":"IF(ISERROR(Dados!AF192),\"-\",Dados!AF192)","v":"USIM5"},{"$f":"IF(ISERROR(Dados!AG192),\"-\",Dados!AG192)","v":2171.8000000000002}]
[{"$f":"IF(ISERROR(Dados!A193),\"-\",Dados!A193)","v":"KEPL3"},{"$f":"IF(ISERROR(Dados!B193),\"-\",Dados!B193)","v":"Siderurgia e Metalurgia"},{"$f":"IF(ISERROR(Dados!C193),\"-\",Dados!C193)","v":"Kepler Weber"},{"$f":"IF(ISERROR(Dados!D193),\"-\",Dados!D193)","v":17.3},{"$f":"IF(ISERROR(Dados!E193),\"-\",Dados!E193)","v":26.312000000000001},{"$f":"IF(ISERROR(Dados!F193),\"-\",Dados!F193)","v":455.2},{"$f":"IF(ISERROR(Dados!G193),\"-\",Dados!G193)","v":441.03},{"$f":"IF(ISERROR(Dados!H193),\"-\",Dados!H193)","v":578.38},{"$f":"IF(ISERROR(Dados!I193),\"-\",Dados!I193)","v":576.29999999999995},{"$f":"IF(ISERROR(Dados!J193),\"-\",Dados!J193)","v":-34.26},{"$f":"IF(ISERROR(Dados!K193),\"-\",Dados!K193)","v":-10.6},{"$f":"IF(ISERROR(Dados!L193),\"-\",Dados!L193)","v":-24.59},{"$f":"IF(ISERROR(Dados!M193),\"-\",Dados!M193)","v":-20.48},{"$f":"IF(ISERROR(Dados!N193),\"-\",Dados!N193)","v":8.27},{"$f":"IF(ISERROR(Dados!O193),\"-\",Dados!O193)","v":-34.26},{"$f":"IF(ISERROR(Dados!P193),\"-\",Dados!P193)","v":8.27},{"$f":"IF(ISERROR(Dados!Q193),\"-\",Dados!Q193)","v":0.31430525995743386},{"$f":"IF(ISERROR(Dados!R193),\"-\",Dados!R193)","v":16.761553663727575},{"$f":"IF(ISERROR(Dados!S193),\"-\",Dados!S193)","v":1.0321238917987441},{"$f":"IF(ISERROR(Dados!T193),\"-\",Dados!T193)","v":55.042031438935915},{"$f":"IF(ISERROR(Dados!U193),\"-\",Dados!U193)","v":1.8987E-2},{"$f":"IF(ISERROR(Dados!V193),\"-\",Dados!V193)","v":3.7587000000000002E-2},{"$f":"IF(ISERROR(Dados!W193),\"-\",Dados!W193)","v":-12.7},{"$f":"IF(ISERROR(Dados!X193),\"-\",Dados!X193)","v":48.4},{"$f":"IF(ISERROR(Dados!Y193),\"-\",Dados!Y193)","v":48.4},{"$f":"IF(ISERROR(Dados!Z193),\"-\",Dados!Z193)","v":9.74745867768595},{"$f":"IF(ISERROR(Dados!AA193),\"-\",Dados!AA193)","v":"-"},{"$f":"IF(ISERROR(Dados!AB193),\"-\",Dados!AB193)","v":"-"},{"$f":"IF(ISERROR(Dados!AC193),\"-\",Dados!AC193)","v":0.3},{"$f":"IF(ISERROR(Dados!AD193),\"-\",Dados!AD193)","v":-11.4},{"$f":"IF(ISERROR(Dados!AE193),\"-\",Dados!AE193)","v":0.99954393432654298},{"$f":"IF(ISERROR(Dados!AF193),\"-\",Dados!AF193)","v":"KEPL3"},{"$f":"IF(ISERROR(Dados!AG193),\"-\",Dados!AG193)","v":48.4}]
[{"$f":"IF(ISERROR(Dados!A194),\"-\",Dados!A194)","v":"APTI4"},{"$f":"IF(ISERROR(Dados!B194),\"-\",Dados!B194)","v":"Siderurgia e Metalurgia"},{"$f":"IF(ISERROR(Dados!C194),\"-\",Dados!C194)","v":"Aliperti"},{"$f":"IF(ISERROR(Dados!D194),\"-\",Dados!D194)","v":"-"},{"$f":"IF(ISERROR(Dados!E194),\"-\",Dados!E194)","v":1.7999999999999999E-2},{"$f":"IF(ISERROR(Dados!F194),\"-\",Dados!F194)","v":"-"},{"$f":"IF(ISERROR(Dados!G194),\"-\",Dados!G194)","v":232.15},{"$f":"IF(ISERROR(Dados!H194),\"-\",Dados!H194)","v":33.950000000000003},{"$f":"IF(ISERROR(Dados!I194),\"-\",Dados!I194)","v":32.01},{"$f":"IF(ISERROR(Dados!J194),\"-\",Dados!J194)","v":-27.1},{"$f":"IF(ISERROR(Dados!K194),\"-\",Dados!K194)","v":-3.63},{"$f":"IF(ISERROR(Dados!L194),\"-\",Dados!L194)","v":-7.5},{"$f":"IF(ISERROR(Dados!M194),\"-\",Dados!M194)","v":-12.42},{"$f":"IF(ISERROR(Dados!N194),\"-\",Dados!N194)","v":-11.57},{"$f":"IF(ISERROR(Dados!O194),\"-\",Dados!O194)","v":-27.1},{"$f":"IF(ISERROR(Dados!P194),\"-\",Dados!P194)","v":-11.57},{"$f":"IF(ISERROR(Dados!Q194),\"-\",Dados!Q194)","v":-642.77777777777783},{"$f":"IF(ISERROR(Dados!R194),\"-\",Dados!R194)","v":12897.222222222223},{"$f":"IF(ISERROR(Dados!S194),\"-\",Dados!S194)","v":"-"},{"$f":"IF(ISERROR(Dados!T194),\"-\",Dados!T194)","v":"-"},{"$f":"IF(ISERROR(Dados!U194),\"-\",Dados!U194)","v":-4.6954000000000003E-2},{"$f":"IF(ISERROR(Dados!V194),\"-\",Dados!V194)","v":0.23343900000000001},{"$f":"IF(ISERROR(Dados!W194),\"-\",Dados!W194)","v":-15.6},{"$f":"IF(ISERROR(Dados!X194),\"-\",Dados!X194)","v":0.8},{"$f":"IF(ISERROR(Dados!Y194),\"-\",Dados!Y194)","v":0.8},{"$f":"IF(ISERROR(Dados!Z194),\"-\",Dados!Z194)","v":"-"},{"$f":"IF(ISERROR(Dados!AA194),\"-\",Dados!AA194)","v":"-"},{"$f":"IF(ISERROR(Dados!AB194),\"-\",Dados!AB194)","v":"-"},{"$f":"IF(ISERROR(Dados!AC194),\"-\",Dados!AC194)","v":"-"},{"$f":"IF(ISERROR(Dados!AD194),\"-\",Dados!AD194)","v":"-"},{"$f":"IF(ISERROR(Dados!AE194),\"-\",Dados!AE194)","v":"-"},{"$f":"IF(ISERROR(Dados!AF194),\"-\",Dados!AF194)","v":"APTI4"},{"$f":"IF(ISERROR(Dados!AG194),\"-\",Dados!AG194)","v":0.8}]
[{"$f":"IF(ISERROR(Dados!A195),\"-\",Dados!A195)","v":"PMAM3"},{"$f":"IF(ISERROR(Dados!B195),\"-\",Dados!B195)","v":"Siderurgia e Metalurgia"},{"$f":"IF(ISERROR(Dados!C195),\"-\",Dados!C195)","v":"Paranapanema"},{"$f":"IF(ISERROR(Dados!D195),\"-\",Dados!D195)","v":1.46},{"$f":"IF(ISERROR(Dados!E195),\"-\",Dados!E195)","v":692.346},{"$f":"IF(ISERROR(Dados!F195),\"-\",Dados!F195)","v":1010.82},{"$f":"IF(ISERROR(Dados!G195),\"-\",Dados!G195)","v":602.5},{"$f":"IF(ISERROR(Dados!H195),\"-\",Dados!H195)","v":3508.46},{"$f":"IF(ISERROR(Dados!I195),\"-\",Dados!I195)","v":4765.78},{"$f":"IF(ISERROR(Dados!J195),\"-\",Dados!J195)","v":-135.77000000000001},{"$f":"IF(ISERROR(Dados!K195),\"-\",Dados!K195)","v":-49.16},{"$f":"IF(ISERROR(Dados!L195),\"-\",Dados!L195)","v":-337.2},{"$f":"IF(ISERROR(Dados!M195),\"-\",Dados!M195)","v":-356.04},{"$f":"IF(ISERROR(Dados!N195),\"-\",Dados!N195)","v":-323.37},{"$f":"IF(ISERROR(Dados!O195),\"-\",Dados!O195)","v":-135.77000000000001},{"$f":"IF(ISERROR(Dados!P195),\"-\",Dados!P195)","v":-323.37},{"$f":"IF(ISERROR(Dados!Q195),\"-\",Dados!Q195)","v":-0.46706415578338001},{"$f":"IF(ISERROR(Dados!R195),\"-\",Dados!R195)","v":0.87022962507185708},{"$f":"IF(ISERROR(Dados!S195),\"-\",Dados!S195)","v":1.6777181078838175},{"$f":"IF(ISERROR(Dados!T195),\"-\",Dados!T195)","v":"-"},{"$f":"IF(ISERROR(Dados!U195),\"-\",Dados!U195)","v":-0.36394500000000002},{"$f":"IF(ISERROR(Dados!V195),\"-\",Dados!V195)","v":3.1592750000000001},{"$f":"IF(ISERROR(Dados!W195),\"-\",Dados!W195)","v":-214.7},{"$f":"IF(ISERROR(Dados!X195),\"-\",Dados!X195)","v":82.7},{"$f":"IF(ISERROR(Dados!Y195),\"-\",Dados!Y195)","v":82.7},{"$f":"IF(ISERROR(Dados!Z195),\"-\",Dados!Z195)","v":35.239105199516324},{"$f":"IF(ISERROR(Dados!AA195),\"-\",Dados!AA195)","v":"-"},{"$f":"IF(ISERROR(Dados!AB195),\"-\",Dados!AB195)","v":"-"},{"$f":"IF(ISERROR(Dados!AC195),\"-\",Dados!AC195)","v":"-"},{"$f":"IF(ISERROR(Dados!AD195),\"-\",Dados!AD195)","v":-8.1999999999999993},{"$f":"IF(ISERROR(Dados!AE195),\"-\",Dados!AE195)","v":"-"},{"$f":"IF(ISERROR(Dados!AF195),\"-\",Dados!AF195)","v":"PMAM3"},{"$f":"IF(ISERROR(Dados!AG195),\"-\",Dados!AG195)","v":82.7}]
[{"$f":"IF(ISERROR(Dados!A196),\"-\",Dados!A196)","v":"LUPA3"},{"$f":"IF(ISERROR(Dados!B196),\"-\",Dados!B196)","v":"Siderurgia e Metalurgia"},{"$f":"IF(ISERROR(Dados!C196),\"-\",Dados!C196)","v":"Lupatech"},{"$f":"IF(ISERROR(Dados!D196),\"-\",Dados!D196)","v":1.82},{"$f":"IF(ISERROR(Dados!E196),\"-\",Dados!E196)","v":16.597999999999999},{"$f":"IF(ISERROR(Dados!F196),\"-\",Dados!F196)","v":30.21},{"$f":"IF(ISERROR(Dados!G196),\"-\",Dados!G196)","v":84.61},{"$f":"IF(ISERROR(Dados!H196),\"-\",Dados!H196)","v":112.37},{"$f":"IF(ISERROR(Dados!I196),\"-\",Dados!I196)","v":126.55},{"$f":"IF(ISERROR(Dados!J196),\"-\",Dados!J196)","v":-5.49},{"$f":"IF(ISERROR(Dados!K196),\"-\",Dados!K196)","v":-20.85},{"$f":"IF(ISERROR(Dados!L196),\"-\",Dados!L196)","v":-66.25},{"$f":"IF(ISERROR(Dados!M196),\"-\",Dados!M196)","v":-89.67},{"$f":"IF(ISERROR(Dados!N196),\"-\",Dados!N196)","v":-96.71},{"$f":"IF(ISERROR(Dados!O196),\"-\",Dados!O196)","v":-5.49},{"$f":"IF(ISERROR(Dados!P196),\"-\",Dados!P196)","v":-96.71},{"$f":"IF(ISERROR(Dados!Q196),\"-\",Dados!Q196)","v":-5.8266056151343539},{"$f":"IF(ISERROR(Dados!R196),\"-\",Dados!R196)","v":5.0976021207374389},{"$f":"IF(ISERROR(Dados!S196),\"-\",Dados!S196)","v":0.35703061103888428},{"$f":"IF(ISERROR(Dados!T196),\"-\",Dados!T196)","v":"-"},{"$f":"IF(ISERROR(Dados!U196),\"-\",Dados!U196)","v":-0.90340900000000002},{"$f":"IF(ISERROR(Dados!V196),\"-\",Dados!V196)","v":1.3100040000000002},{"$f":"IF(ISERROR(Dados!W196),\"-\",Dados!W196)","v":-40.700000000000003},{"$f":"IF(ISERROR(Dados!X196),\"-\",Dados!X196)","v":-43.5},{"$f":"IF(ISERROR(Dados!Y196),\"-\",Dados!Y196)","v":-43.5},{"$f":"IF(ISERROR(Dados!Z196),\"-\",Dados!Z196)","v":-4.7056551724137927},{"$f":"IF(ISERROR(Dados!AA196),\"-\",Dados!AA196)","v":"-"},{"$f":"IF(ISERROR(Dados!AB196),\"-\",Dados!AB196)","v":"-"},{"$f":"IF(ISERROR(Dados!AC196),\"-\",Dados!AC196)","v":-7.1},{"$f":"IF(ISERROR(Dados!AD196),\"-\",Dados!AD196)","v":-37.200000000000003},{"$f":"IF(ISERROR(Dados!AE196),\"-\",Dados!AE196)","v":0.97602120737438247},{"$f":"IF(ISERROR(Dados!AF196),\"-\",Dados!AF196)","v":"LUPA3"},{"$f":"IF(ISERROR(Dados!AG196),\"-\",Dados!AG196)","v":-43.5}]
[{"$f":"IF(ISERROR(Dados!A197),\"-\",Dados!A197)","v":"EALT4"},{"$f":"IF(ISERROR(Dados!B197),\"-\",Dados!B197)","v":"Siderurgia e Metalurgia"},{"$f":"IF(ISERROR(Dados!C197),\"-\",Dados!C197)","v":"Aco Altona"},{"$f":"IF(ISERROR(Dados!D197),\"-\",Dados!D197)","v":5.21},{"$f":"IF(ISERROR(Dados!E197),\"-\",Dados!E197)","v":22.5},{"$f":"IF(ISERROR(Dados!F197),\"-\",Dados!F197)","v":122.88},{"$f":"IF(ISERROR(Dados!G197),\"-\",Dados!G197)","v":154.62},{"$f":"IF(ISERROR(Dados!H197),\"-\",Dados!H197)","v":168.41},{"$f":"IF(ISERROR(Dados!I197),\"-\",Dados!I197)","v":246.96},{"$f":"IF(ISERROR(Dados!J197),\"-\",Dados!J197)","v":30.65},{"$f":"IF(ISERROR(Dados!K197),\"-\",Dados!K197)","v":3.66},{"$f":"IF(ISERROR(Dados!L197),\"-\",Dados!L197)","v":6.19},{"$f":"IF(ISERROR(Dados!M197),\"-\",Dados!M197)","v":9.74},{"$f":"IF(ISERROR(Dados!N197),\"-\",Dados!N197)","v":12.25},{"$f":"IF(ISERROR(Dados!O197),\"-\",Dados!O197)","v":30.65},{"$f":"IF(ISERROR(Dados!P197),\"-\",Dados!P197)","v":12.25},{"$f":"IF(ISERROR(Dados!Q197),\"-\",Dados!Q197)","v":0.5444444444444444},{"$f":"IF(ISERROR(Dados!R197),\"-\",Dados!R197)","v":6.8719999999999999},{"$f":"IF(ISERROR(Dados!S197),\"-\",Dados!S197)","v":0.75814901047729921},{"$f":"IF(ISERROR(Dados!T197),\"-\",Dados!T197)","v":9.5693877551020421},{"$f":"IF(ISERROR(Dados!U197),\"-\",Dados!U197)","v":"-"},{"$f":"IF(ISERROR(Dados!V197),\"-\",Dados!V197)","v":0.49553800000000003},{"$f":"IF(ISERROR(Dados!W197),\"-\",Dados!W197)","v":57.7},{"$f":"IF(ISERROR(Dados!X197),\"-\",Dados!X197)","v":30.1},{"$f":"IF(ISERROR(Dados!Y197),\"-\",Dados!Y197)","v":30.1},{"$f":"IF(ISERROR(Dados!Z197),\"-\",Dados!Z197)","v":6.6279734219269102},{"$f":"IF(ISERROR(Dados!AA197),\"-\",Dados!AA197)","v":5.81},{"$f":"IF(ISERROR(Dados!AB197),\"-\",Dados!AB197)","v":4.7281901041666664E-2},{"$f":"IF(ISERROR(Dados!AC197),\"-\",Dados!AC197)","v":1.2},{"$f":"IF(ISERROR(Dados!AD197),\"-\",Dados!AD197)","v":66.2},{"$f":"IF(ISERROR(Dados!AE197),\"-\",Dados!AE197)","v":0.43555555555555558},{"$f":"IF(ISERROR(Dados!AF197),\"-\",Dados!AF197)","v":"EALT4"},{"$f":"IF(ISERROR(Dados!AG197),\"-\",Dados!AG197)","v":30.1}]
[{"$f":"IF(ISERROR(Dados!A198),\"-\",Dados!A198)","v":"FJTA4"},{"$f":"IF(ISERROR(Dados!B198),\"-\",Dados!B198)","v":"Siderurgia e Metalurgia"},{"$f":"IF(ISERROR(Dados!C198),\"-\",Dados!C198)","v":"Forja Taurus"},{"$f":"IF(ISERROR(Dados!D198),\"-\",Dados!D198)","v":3.87},{"$f":"IF(ISERROR(Dados!E198),\"-\",Dados!E198)","v":74.863},{"$f":"IF(ISERROR(Dados!F198),\"-\",Dados!F198)","v":298.08},{"$f":"IF(ISERROR(Dados!G198),\"-\",Dados!G198)","v":-406.96},{"$f":"IF(ISERROR(Dados!H198),\"-\",Dados!H198)","v":784.88},{"$f":"IF(ISERROR(Dados!I198),\"-\",Dados!I198)","v":845.29},{"$f":"IF(ISERROR(Dados!J198),\"-\",Dados!J198)","v":-286.02999999999997},{"$f":"IF(ISERROR(Dados!K198),\"-\",Dados!K198)","v":1.19},{"$f":"IF(ISERROR(Dados!L198),\"-\",Dados!L198)","v":-92.58},{"$f":"IF(ISERROR(Dados!M198),\"-\",Dados!M198)","v":-44.61},{"$f":"IF(ISERROR(Dados!N198),\"-\",Dados!N198)","v":-59.86},{"$f":"IF(ISERROR(Dados!O198),\"-\",Dados!O198)","v":-286.02999999999997},{"$f":"IF(ISERROR(Dados!P198),\"-\",Dados!P198)","v":-59.86},{"$f":"IF(ISERROR(Dados!Q198),\"-\",Dados!Q198)","v":-0.79959392490282244},{"$f":"IF(ISERROR(Dados!R198),\"-\",Dados!R198)","v":"-"},{"$f":"IF(ISERROR(Dados!S198),\"-\",Dados!S198)","v":"-"},{"$f":"IF(ISERROR(Dados!T198),\"-\",Dados!T198)","v":"-"},{"$f":"IF(ISERROR(Dados!U198),\"-\",Dados!U198)","v":"-"},{"$f":"IF(ISERROR(Dados!V198),\"-\",Dados!V198)","v":-1.936599},{"$f":"IF(ISERROR(Dados!W198),\"-\",Dados!W198)","v":-125.8},{"$f":"IF(ISERROR(Dados!X198),\"-\",Dados!X198)","v":80.5},{"$f":"IF(ISERROR(Dados!Y198),\"-\",Dados!Y198)","v":80.5},{"$f":"IF(ISERROR(Dados!Z198),\"-\",Dados!Z198)","v":13.493217391304347},{"$f":"IF(ISERROR(Dados!AA198),\"-\",Dados!AA198)","v":"-"},{"$f":"IF(ISERROR(Dados!AB198),\"-\",Dados!AB198)","v":"-"},{"$f":"IF(ISERROR(Dados!AC198),\"-\",Dados!AC198)","v":-7.9},{"$f":"IF(ISERROR(Dados!AD198),\"-\",Dados!AD198)","v":120.7},{"$f":"IF(ISERROR(Dados!AE198),\"-\",Dados!AE198)","v":0.61979883253409562},{"$f":"IF(ISERROR(Dados!AF198),\"-\",Dados!AF198)","v":"FJTA4"},{"$f":"IF(ISERROR(Dados!AG198),\"-\",Dados!AG198)","v":80.5}]
[{"$f":"IF(ISERROR(Dados!A199),\"-\",Dados!A199)","v":"HAGA4"},{"$f":"IF(ISERROR(Dados!B199),\"-\",Dados!B199)","v":"Siderurgia e Metalurgia"},{"$f":"IF(ISERROR(Dados!C199),\"-\",Dados!C199)","v":"Haga S/A"},{"$f":"IF(ISERROR(Dados!D199),\"-\",Dados!D199)","v":1.5},{"$f":"IF(ISERROR(Dados!E199),\"-\",Dados!E199)","v":11.9},{"$f":"IF(ISERROR(Dados!F199),\"-\",Dados!F199)","v":23.8},{"$f":"IF(ISERROR(Dados!G199),\"-\",Dados!G199)","v":-76.84},{"$f":"IF(ISERROR(Dados!H199),\"-\",Dados!H199)","v":24.41},{"$f":"IF(ISERROR(Dados!I199),\"-\",Dados!I199)","v":22.91},{"$f":"IF(ISERROR(Dados!J199),\"-\",Dados!J199)","v":-1.41},{"$f":"IF(ISERROR(Dados!K199),\"-\",Dados!K199)","v":-0.98},{"$f":"IF(ISERROR(Dados!L199),\"-\",Dados!L199)","v":1.41},{"$f":"IF(ISERROR(Dados!M199),\"-\",Dados!M199)","v":0.96},{"$f":"IF(ISERROR(Dados!N199),\"-\",Dados!N199)","v":5.97},{"$f":"IF(ISERROR(Dados!O199),\"-\",Dados!O199)","v":-1.41},{"$f":"IF(ISERROR(Dados!P199),\"-\",Dados!P199)","v":5.97},{"$f":"IF(ISERROR(Dados!Q199),\"-\",Dados!Q199)","v":0.50168067226890756},{"$f":"IF(ISERROR(Dados!R199),\"-\",Dados!R199)","v":"-"},{"$f":"IF(ISERROR(Dados!S199),\"-\",Dados!S199)","v":"-"},{"$f":"IF(ISERROR(Dados!T199),\"-\",Dados!T199)","v":2.9899497487437188},{"$f":"IF(ISERROR(Dados!U199),\"-\",Dados!U199)","v":"-"},{"$f":"IF(ISERROR(Dados!V199),\"-\",Dados!V199)","v":-0.12134399999999999},{"$f":"IF(ISERROR(Dados!W199),\"-\",Dados!W199)","v":"-"},{"$f":"IF(ISERROR(Dados!X199),\"-\",Dados!X199)","v":"-"},{"$f":"IF(ISERROR(Dados!Y199),\"-\",Dados!Y199)","v":"-"},{"$f":"IF(ISERROR(Dados!Z199),\"-\",Dados!Z199)","v":"-"},{"$f":"IF(ISERROR(Dados!AA199),\"-\",Dados!AA199)","v":"-"},{"$f":"IF(ISERROR(Dados!AB199),\"-\",Dados!AB199)","v":"-"},{"$f":"IF(ISERROR(Dados!AC199),\"-\",Dados!AC199)","v":-2.6},{"$f":"IF(ISERROR(Dados!AD199),\"-\",Dados!AD199)","v":-31.8},{"$f":"IF(ISERROR(Dados!AE199),\"-\",Dados!AE199)","v":0.33613445378151258},{"$f":"IF(ISERROR(Dados!AF199),\"-\",Dados!AF199)","v":"HAGA4"},{"$f":"IF(ISERROR(Dados!AG199),\"-\",Dados!AG199)","v":"-"}]
[{"$f":"IF(ISERROR(Dados!A200),\"-\",Dados!A200)","v":"MGEL4"},{"$f":"IF(ISERROR(Dados!B200),\"-\",Dados!B200)","v":"Siderurgia e Metalurgia"},{"$f":"IF(ISERROR(Dados!C200),\"-\",Dados!C200)","v":"Mangels Indl"},{"$f":"IF(ISERROR(Dados!D200),\"-\",Dados!D200)","v":7},{"$f":"IF(ISERROR(Dados!E200),\"-\",Dados!E200)","v":5.7830000000000004},{"$f":"IF(ISERROR(Dados!F200),\"-\",Dados!F200)","v":40.479999999999997},{"$f":"IF(ISERROR(Dados!G200),\"-\",Dados!G200)","v":-364.13},{"$f":"IF(ISERROR(Dados!H200),\"-\",Dados!H200)","v":445.98},{"$f":"IF(ISERROR(Dados!I200),\"-\",Dados!I200)","v":476.74},{"$f":"IF(ISERROR(Dados!J200),\"-\",Dados!J200)","v":-8.69},{"$f":"IF(ISERROR(Dados!K200),\"-\",Dados!K200)","v":-0.44},{"$f":"IF(ISERROR(Dados!L200),\"-\",Dados!L200)","v":-15.31},{"$f":"IF(ISERROR(Dados!M200),\"-\",Dados!M200)","v":-18.829999999999998},{"$f":"IF(ISERROR(Dados!N200),\"-\",Dados!N200)","v":-16.7},{"$f":"IF(ISERROR(Dados!O200),\"-\",Dados!O200)","v":-8.69},{"$f":"IF(ISERROR(Dados!P200),\"-\",Dados!P200)","v":-16.7},{"$f":"IF(ISERROR(Dados!Q200),\"-\",Dados!Q200)","v":-2.8877745114992215},{"$f":"IF(ISERROR(Dados!R200),\"-\",Dados!R200)","v":"-"},{"$f":"IF(ISERROR(Dados!S200),\"-\",Dados!S200)","v":"-"},{"$f":"IF(ISERROR(Dados!T200),\"-\",Dados!T200)","v":"-"},{"$f":"IF(ISERROR(Dados!U200),\"-\",Dados!U200)","v":"-"},{"$f":"IF(ISERROR(Dados!V200),\"-\",Dados!V200)","v":-1.6296219999999999},{"$f":"IF(ISERROR(Dados!W200),\"-\",Dados!W200)","v":26.8},{"$f":"IF(ISERROR(Dados!X200),\"-\",Dados!X200)","v":54.3},{"$f":"IF(ISERROR(Dados!Y200),\"-\",Dados!Y200)","v":54.3},{"$f":"IF(ISERROR(Dados!Z200),\"-\",Dados!Z200)","v":11.673406998158379},{"$f":"IF(ISERROR(Dados!AA200),\"-\",Dados!AA200)","v":"-"},{"$f":"IF(ISERROR(Dados!AB200),\"-\",Dados!AB200)","v":"-"},{"$f":"IF(ISERROR(Dados!AC200),\"-\",Dados!AC200)","v":-3.2},{"$f":"IF(ISERROR(Dados!AD200),\"-\",Dados!AD200)","v":69.900000000000006},{"$f":"IF(ISERROR(Dados!AE200),\"-\",Dados!AE200)","v":0.36313332180529134},{"$f":"IF(ISERROR(Dados!AF200),\"-\",Dados!AF200)","v":"MGEL4"},{"$f":"IF(ISERROR(Dados!AG200),\"-\",Dados!AG200)","v":54.3}]
[{"$f":"IF(ISERROR(Dados!A201),\"-\",Dados!A201)","v":"MNDL3"},{"$f":"IF(ISERROR(Dados!B201),\"-\",Dados!B201)","v":"Siderurgia e Metalurgia"},{"$f":"IF(ISERROR(Dados!C201),\"-\",Dados!C201)","v":"Mundial"},{"$f":"IF(ISERROR(Dados!D201),\"-\",Dados!D201)","v":29.36},{"$f":"IF(ISERROR(Dados!E201),\"-\",Dados!E201)","v":2.4790000000000001},{"$f":"IF(ISERROR(Dados!F201),\"-\",Dados!F201)","v":72.8},{"$f":"IF(ISERROR(Dados!G201),\"-\",Dados!G201)","v":-134.68},{"$f":"IF(ISERROR(Dados!H201),\"-\",Dados!H201)","v":437.12},{"$f":"IF(ISERROR(Dados!I201),\"-\",Dados!I201)","v":469.95},{"$f":"IF(ISERROR(Dados!J201),\"-\",Dados!J201)","v":-79.16},{"$f":"IF(ISERROR(Dados!K201),\"-\",Dados!K201)","v":0.87},{"$f":"IF(ISERROR(Dados!L201),\"-\",Dados!L201)","v":2.25},{"$f":"IF(ISERROR(Dados!M201),\"-\",Dados!M201)","v":0.53},{"$f":"IF(ISERROR(Dados!N201),\"-\",Dados!N201)","v":3.06},{"$f":"IF(ISERROR(Dados!O201),\"-\",Dados!O201)","v":-79.16},{"$f":"IF(ISERROR(Dados!P201),\"-\",Dados!P201)","v":3.06},{"$f":"IF(ISERROR(Dados!Q201),\"-\",Dados!Q201)","v":1.2343686970552641},{"$f":"IF(ISERROR(Dados!R201),\"-\",Dados!R201)","v":"-"},{"$f":"IF(ISERROR(Dados!S201),\"-\",Dados!S201)","v":"-"},{"$f":"IF(ISERROR(Dados!T201),\"-\",Dados!T201)","v":23.785437908496736},{"$f":"IF(ISERROR(Dados!U201),\"-\",Dados!U201)","v":"-"},{"$f":"IF(ISERROR(Dados!V201),\"-\",Dados!V201)","v":-1.3982480000000002},{"$f":"IF(ISERROR(Dados!W201),\"-\",Dados!W201)","v":42},{"$f":"IF(ISERROR(Dados!X201),\"-\",Dados!X201)","v":69.400000000000006},{"$f":"IF(ISERROR(Dados!Y201),\"-\",Dados!Y201)","v":69.400000000000006},{"$f":"IF(ISERROR(Dados!Z201),\"-\",Dados!Z201)","v":3.7623775216138324},{"$f":"IF(ISERROR(Dados!AA201),\"-\",Dados!AA201)","v":"-"},{"$f":"IF(ISERROR(Dados!AB201),\"-\",Dados!AB201)","v":"-"},{"$f":"IF(ISERROR(Dados!AC201),\"-\",Dados!AC201)","v":-0.3},{"$f":"IF(ISERROR(Dados!AD201),\"-\",Dados!AD201)","v":28.8},{"$f":"IF(ISERROR(Dados!AE201),\"-\",Dados!AE201)","v":"-"},{"$f":"IF(ISERROR(Dados!AF201),\"-\",Dados!AF201)","v":"MNDL3"},{"$f":"IF(ISERROR(Dados!AG201),\"-\",Dados!AG201)","v":69.400000000000006}]
[{"$f":"IF(ISERROR(Dados!A202),\"-\",Dados!A202)","v":"CIEL3"},{"$f":"IF(ISERROR(Dados!B202),\"-\",Dados!B202)","v":"Software e Dados"},{"$f":"IF(ISERROR(Dados!C202),\"-\",Dados!C202)","v":"Cielo"},{"$f":"IF(ISERROR(Dados!D202),\"-\",Dados!D202)","v":9.49},{"$f":"IF(ISERROR(Dados!E202),\"-\",Dados!E202)","v":2714.2339999999999},{"$f":"IF(ISERROR(Dados!F202),\"-\",Dados!F202)","v":25758.080000000002},{"$f":"IF(ISERROR(Dados!G202),\"-\",Dados!G202)","v":11204.09},{"$f":"IF(ISERROR(Dados!H202),\"-\",Dados!H202)","v":11600.34},{"$f":"IF(ISERROR(Dados!I202),\"-\",Dados!I202)","v":11685.84},{"$f":"IF(ISERROR(Dados!J202),\"-\",Dados!J202)","v":4056.08},{"$f":"IF(ISERROR(Dados!K202),\"-\",Dados!K202)","v":1007.05},{"$f":"IF(ISERROR(Dados!L202),\"-\",Dados!L202)","v":1824.56},{"$f":"IF(ISERROR(Dados!M202),\"-\",Dados!M202)","v":2617.7800000000002},{"$f":"IF(ISERROR(Dados!N202),\"-\",Dados!N202)","v":3341.91},{"$f":"IF(ISERROR(Dados!O202),\"-\",Dados!O202)","v":4056.08},{"$f":"IF(ISERROR(Dados!P202),\"-\",Dados!P202)","v":3341.91},{"$f":"IF(ISERROR(Dados!Q202),\"-\",Dados!Q202)","v":1.2312534586185273},{"$f":"IF(ISERROR(Dados!R202),\"-\",Dados!R202)","v":4.1279012789612102},{"$f":"IF(ISERROR(Dados!S202),\"-\",Dados!S202)","v":2.2989890888059628},{"$f":"IF(ISERROR(Dados!T202),\"-\",Dados!T202)","v":7.7075925623371075},{"$f":"IF(ISERROR(Dados!U202),\"-\",Dados!U202)","v":0.23172000000000001},{"$f":"IF(ISERROR(Dados!V202),\"-\",Dados!V202)","v":0.33547600000000005},{"$f":"IF(ISERROR(Dados!W202),\"-\",Dados!W202)","v":5277.9},{"$f":"IF(ISERROR(Dados!X202),\"-\",Dados!X202)","v":4634.8},{"$f":"IF(ISERROR(Dados!Y202),\"-\",Dados!Y202)","v":4634.8},{"$f":"IF(ISERROR(Dados!Z202),\"-\",Dados!Z202)","v":6.633864028652801},{"$f":"IF(ISERROR(Dados!AA202),\"-\",Dados!AA202)","v":7041.57},{"$f":"IF(ISERROR(Dados!AB202),\"-\",Dados!AB202)","v":0.27337324831664467},{"$f":"IF(ISERROR(Dados!AC202),\"-\",Dados!AC202)","v":-12.2},{"$f":"IF(ISERROR(Dados!AD202),\"-\",Dados!AD202)","v":-54},{"$f":"IF(ISERROR(Dados!AE202),\"-\",Dados!AE202)","v":"-"},{"$f":"IF(ISERROR(Dados!AF202),\"-\",Dados!AF202)","v":"CIEL3"},{"$f":"IF(ISERROR(Dados!AG202),\"-\",Dados!AG202)","v":4634.8}]
[{"$f":"IF(ISERROR(Dados!A203),\"-\",Dados!A203)","v":"LINX3"},{"$f":"IF(ISERROR(Dados!B203),\"-\",Dados!B203)","v":"Software e Dados"},{"$f":"IF(ISERROR(Dados!C203),\"-\",Dados!C203)","v":"Linx"},{"$f":"IF(ISERROR(Dados!D203),\"-\",Dados!D203)","v":37},{"$f":"IF(ISERROR(Dados!E203),\"-\",Dados!E203)","v":158.78100000000001},{"$f":"IF(ISERROR(Dados!F203),\"-\",Dados!F203)","v":5874.91},{"$f":"IF(ISERROR(Dados!G203),\"-\",Dados!G203)","v":1057.21},{"$f":"IF(ISERROR(Dados!H203),\"-\",Dados!H203)","v":571.59},{"$f":"IF(ISERROR(Dados!I203),\"-\",Dados!I203)","v":685.56},{"$f":"IF(ISERROR(Dados!J203),\"-\",Dados!J203)","v":84.85},{"$f":"IF(ISERROR(Dados!K203),\"-\",Dados!K203)","v":26.45},{"$f":"IF(ISERROR(Dados!L203),\"-\",Dados!L203)","v":44.8},{"$f":"IF(ISERROR(Dados!M203),\"-\",Dados!M203)","v":53.84},{"$f":"IF(ISERROR(Dados!N203),\"-\",Dados!N203)","v":71.06},{"$f":"IF(ISERROR(Dados!O203),\"-\",Dados!O203)","v":84.85},{"$f":"IF(ISERROR(Dados!P203),\"-\",Dados!P203)","v":71.06},{"$f":"IF(ISERROR(Dados!Q203),\"-\",Dados!Q203)","v":0.44753465465011555},{"$f":"IF(ISERROR(Dados!R203),\"-\",Dados!R203)","v":6.6582903496010228},{"$f":"IF(ISERROR(Dados!S203),\"-\",Dados!S203)","v":5.5569820565450572},{"$f":"IF(ISERROR(Dados!T203),\"-\",Dados!T203)","v":82.675161835068963},{"$f":"IF(ISERROR(Dados!U203),\"-\",Dados!U203)","v":6.0704000000000001E-2},{"$f":"IF(ISERROR(Dados!V203),\"-\",Dados!V203)","v":-0.20170399999999999},{"$f":"IF(ISERROR(Dados!W203),\"-\",Dados!W203)","v":144.4},{"$f":"IF(ISERROR(Dados!X203),\"-\",Dados!X203)","v":168.8},{"$f":"IF(ISERROR(Dados!Y203),\"-\",Dados!Y203)","v":168.8},{"$f":"IF(ISERROR(Dados!Z203),\"-\",Dados!Z203)","v":33.540681279620848},{"$f":"IF(ISERROR(Dados!AA203),\"-\",Dados!AA203)","v":38},{"$f":"IF(ISERROR(Dados!AB203),\"-\",Dados!AB203)","v":6.4681841934599851E-3},{"$f":"IF(ISERROR(Dados!AC203),\"-\",Dados!AC203)","v":29.7},{"$f":"IF(ISERROR(Dados!AD203),\"-\",Dados!AD203)","v":74.8},{"$f":"IF(ISERROR(Dados!AE203),\"-\",Dados!AE203)","v":"-"},{"$f":"IF(ISERROR(Dados!AF203),\"-\",Dados!AF203)","v":"LINX3"},{"$f":"IF(ISERROR(Dados!AG203),\"-\",Dados!AG203)","v":168.8}]
[{"$f":"IF(ISERROR(Dados!A204),\"-\",Dados!A204)","v":"TOTS3"},{"$f":"IF(ISERROR(Dados!B204),\"-\",Dados!B204)","v":"Software e Dados"},{"$f":"IF(ISERROR(Dados!C204),\"-\",Dados!C204)","v":"Totvs"},{"$f":"IF(ISERROR(Dados!D204),\"-\",Dados!D204)","v":39.4},{"$f":"IF(ISERROR(Dados!E204),\"-\",Dados!E204)","v":163.452},{"$f":"IF(ISERROR(Dados!F204),\"-\",Dados!F204)","v":6439.99},{"$f":"IF(ISERROR(Dados!G204),\"-\",Dados!G204)","v":1287.04},{"$f":"IF(ISERROR(Dados!H204),\"-\",Dados!H204)","v":2227.33},{"$f":"IF(ISERROR(Dados!I204),\"-\",Dados!I204)","v":2320.27},{"$f":"IF(ISERROR(Dados!J204),\"-\",Dados!J204)","v":92.98},{"$f":"IF(ISERROR(Dados!K204),\"-\",Dados!K204)","v":33.979999999999997},{"$f":"IF(ISERROR(Dados!L204),\"-\",Dados!L204)","v":65.28},{"$f":"IF(ISERROR(Dados!M204),\"-\",Dados!M204)","v":101.27},{"$f":"IF(ISERROR(Dados!N204),\"-\",Dados!N204)","v":59.55},{"$f":"IF(ISERROR(Dados!O204),\"-\",Dados!O204)","v":92.98},{"$f":"IF(ISERROR(Dados!P204),\"-\",Dados!P204)","v":59.55},{"$f":"IF(ISERROR(Dados!Q204),\"-\",Dados!Q204)","v":0.36432714191322224},{"$f":"IF(ISERROR(Dados!R204),\"-\",Dados!R204)","v":7.8741159484129897},{"$f":"IF(ISERROR(Dados!S204),\"-\",Dados!S204)","v":5.0037363252113378},{"$f":"IF(ISERROR(Dados!T204),\"-\",Dados!T204)","v":108.14456423173803},{"$f":"IF(ISERROR(Dados!U204),\"-\",Dados!U204)","v":4.8069000000000001E-2},{"$f":"IF(ISERROR(Dados!V204),\"-\",Dados!V204)","v":2.0074000000000002E-2},{"$f":"IF(ISERROR(Dados!W204),\"-\",Dados!W204)","v":294.5},{"$f":"IF(ISERROR(Dados!X204),\"-\",Dados!X204)","v":259.39999999999998},{"$f":"IF(ISERROR(Dados!Y204),\"-\",Dados!Y204)","v":259.39999999999998},{"$f":"IF(ISERROR(Dados!Z204),\"-\",Dados!Z204)","v":24.926175790285274},{"$f":"IF(ISERROR(Dados!AA204),\"-\",Dados!AA204)","v":51.09},{"$f":"IF(ISERROR(Dados!AB204),\"-\",Dados!AB204)","v":7.9332421323635612E-3},{"$f":"IF(ISERROR(Dados!AC204),\"-\",Dados!AC204)","v":8.1},{"$f":"IF(ISERROR(Dados!AD204),\"-\",Dados!AD204)","v":33.200000000000003},{"$f":"IF(ISERROR(Dados!AE204),\"-\",Dados!AE204)","v":"-"},{"$f":"IF(ISERROR(Dados!AF204),\"-\",Dados!AF204)","v":"TOTS3"},{"$f":"IF(ISERROR(Dados!AG204),\"-\",Dados!AG204)","v":259.39999999999998}]
[{"$f":"IF(ISERROR(Dados!A205),\"-\",Dados!A205)","v":"SQIA3"},{"$f":"IF(ISERROR(Dados!B205),\"-\",Dados!B205)","v":"Software e Dados"},{"$f":"IF(ISERROR(Dados!C205),\"-\",Dados!C205)","v":"Sinqia"},{"$f":"IF(ISERROR(Dados!D205),\"-\",Dados!D205)","v":34},{"$f":"IF(ISERROR(Dados!E205),\"-\",Dados!E205)","v":11.518000000000001},{"$f":"IF(ISERROR(Dados!F205),\"-\",Dados!F205)","v":391.6},{"$f":"IF(ISERROR(Dados!G205),\"-\",Dados!G205)","v":85.35},{"$f":"IF(ISERROR(Dados!H205),\"-\",Dados!H205)","v":134.91},{"$f":"IF(ISERROR(Dados!I205),\"-\",Dados!I205)","v":142.11000000000001},{"$f":"IF(ISERROR(Dados!J205),\"-\",Dados!J205)","v":7.46},{"$f":"IF(ISERROR(Dados!K205),\"-\",Dados!K205)","v":-1.8},{"$f":"IF(ISERROR(Dados!L205),\"-\",Dados!L205)","v":0.21},{"$f":"IF(ISERROR(Dados!M205),\"-\",Dados!M205)","v":1.64},{"$f":"IF(ISERROR(Dados!N205),\"-\",Dados!N205)","v":2.73},{"$f":"IF(ISERROR(Dados!O205),\"-\",Dados!O205)","v":7.46},{"$f":"IF(ISERROR(Dados!P205),\"-\",Dados!P205)","v":2.73},{"$f":"IF(ISERROR(Dados!Q205),\"-\",Dados!Q205)","v":0.23702031602708801},{"$f":"IF(ISERROR(Dados!R205),\"-\",Dados!R205)","v":7.4101406494183006},{"$f":"IF(ISERROR(Dados!S205),\"-\",Dados!S205)","v":4.5883069712946698},{"$f":"IF(ISERROR(Dados!T205),\"-\",Dados!T205)","v":143.44761904761907},{"$f":"IF(ISERROR(Dados!U205),\"-\",Dados!U205)","v":3.6055000000000004E-2},{"$f":"IF(ISERROR(Dados!V205),\"-\",Dados!V205)","v":-0.13389599999999999},{"$f":"IF(ISERROR(Dados!W205),\"-\",Dados!W205)","v":18.2},{"$f":"IF(ISERROR(Dados!X205),\"-\",Dados!X205)","v":15.3},{"$f":"IF(ISERROR(Dados!Y205),\"-\",Dados!Y205)","v":15.3},{"$f":"IF(ISERROR(Dados!Z205),\"-\",Dados!Z205)","v":24.847843137254902},{"$f":"IF(ISERROR(Dados!AA205),\"-\",Dados!AA205)","v":2.09},{"$f":"IF(ISERROR(Dados!AB205),\"-\",Dados!AB205)","v":5.3370786516853926E-3},{"$f":"IF(ISERROR(Dados!AC205),\"-\",Dados!AC205)","v":14},{"$f":"IF(ISERROR(Dados!AD205),\"-\",Dados!AD205)","v":28.2},{"$f":"IF(ISERROR(Dados!AE205),\"-\",Dados!AE205)","v":"-"},{"$f":"IF(ISERROR(Dados!AF205),\"-\",Dados!AF205)","v":"SQIA3"},{"$f":"IF(ISERROR(Dados!AG205),\"-\",Dados!AG205)","v":15.3}]
[{"$f":"IF(ISERROR(Dados!A206),\"-\",Dados!A206)","v":"OIBR4"},{"$f":"IF(ISERROR(Dados!B206),\"-\",Dados!B206)","v":"Telecom"},{"$f":"IF(ISERROR(Dados!C206),\"-\",Dados!C206)","v":"Oi"},{"$f":"IF(ISERROR(Dados!D206),\"-\",Dados!D206)","v":1.51},{"$f":"IF(ISERROR(Dados!E206),\"-\",Dados!E206)","v":5954.2049999999999},{"$f":"IF(ISERROR(Dados!F206),\"-\",Dados!F206)","v":9048.81},{"$f":"IF(ISERROR(Dados!G206),\"-\",Dados!G206)","v":25986.86},{"$f":"IF(ISERROR(Dados!H206),\"-\",Dados!H206)","v":23789.65},{"$f":"IF(ISERROR(Dados!I206),\"-\",Dados!I206)","v":"-"},{"$f":"IF(ISERROR(Dados!J206),\"-\",Dados!J206)","v":-6365.02},{"$f":"IF(ISERROR(Dados!K206),\"-\",Dados!K206)","v":30543.360000000001},{"$f":"IF(ISERROR(Dados!L206),\"-\",Dados!L206)","v":29285.68},{"$f":"IF(ISERROR(Dados!M206),\"-\",Dados!M206)","v":27949.29},{"$f":"IF(ISERROR(Dados!N206),\"-\",Dados!N206)","v":"-"},{"$f":"IF(ISERROR(Dados!O206),\"-\",Dados!O206)","v":-6365.02},{"$f":"IF(ISERROR(Dados!P206),\"-\",Dados!P206)","v":"-"},{"$f":"IF(ISERROR(Dados!Q206),\"-\",Dados!Q206)","v":4.2069092347341082},{"$f":"IF(ISERROR(Dados!R206),\"-\",Dados!R206)","v":4.3644550363986463},{"$f":"IF(ISERROR(Dados!S206),\"-\",Dados!S206)","v":0.3459767570995495},{"$f":"IF(ISERROR(Dados!T206),\"-\",Dados!T206)","v":0.35893334411229277},{"$f":"IF(ISERROR(Dados!U206),\"-\",Dados!U206)","v":2.8750970000000002},{"$f":"IF(ISERROR(Dados!V206),\"-\",Dados!V206)","v":0.42028100000000002},{"$f":"IF(ISERROR(Dados!W206),\"-\",Dados!W206)","v":2748.3},{"$f":"IF(ISERROR(Dados!X206),\"-\",Dados!X206)","v":"-"},{"$f":"IF(ISERROR(Dados!Y206),\"-\",Dados!Y206)","v":2553.1},{"$f":"IF(ISERROR(Dados!Z206),\"-\",Dados!Z206)","v":7.8675065606517567},{"$f":"IF(ISERROR(Dados!AA206),\"-\",Dados!AA206)","v":0.06},{"$f":"IF(ISERROR(Dados!AB206),\"-\",Dados!AB206)","v":6.6307061370500652E-6},{"$f":"IF(ISERROR(Dados!AC206),\"-\",Dados!AC206)","v":-16.100000000000001},{"$f":"IF(ISERROR(Dados!AD206),\"-\",Dados!AD206)","v":-40.4},{"$f":"IF(ISERROR(Dados!AE206),\"-\",Dados!AE206)","v":0.36651408542366282},{"$f":"IF(ISERROR(Dados!AF206),\"-\",Dados!AF206)","v":"OIBR4"},{"$f":"IF(ISERROR(Dados!AG206),\"-\",Dados!AG206)","v":2553.1}]
[{"$f":"IF(ISERROR(Dados!A207),\"-\",Dados!A207)","v":"TIMP3"},{"$f":"IF(ISERROR(Dados!B207),\"-\",Dados!B207)","v":"Telecom"},{"$f":"IF(ISERROR(Dados!C207),\"-\",Dados!C207)","v":"Tim Part S/A"},{"$f":"IF(ISERROR(Dados!D207),\"-\",Dados!D207)","v":11.79},{"$f":"IF(ISERROR(Dados!E207),\"-\",Dados!E207)","v":2420.248},{"$f":"IF(ISERROR(Dados!F207),\"-\",Dados!F207)","v":28534.73},{"$f":"IF(ISERROR(Dados!G207),\"-\",Dados!G207)","v":19794.84},{"$f":"IF(ISERROR(Dados!H207),\"-\",Dados!H207)","v":16233.96},{"$f":"IF(ISERROR(Dados!I207),\"-\",Dados!I207)","v":16981.330000000002},{"$f":"IF(ISERROR(Dados!J207),\"-\",Dados!J207)","v":1234.51},{"$f":"IF(ISERROR(Dados!K207),\"-\",Dados!K207)","v":245.13},{"$f":"IF(ISERROR(Dados!L207),\"-\",Dados!L207)","v":579.66999999999996},{"$f":"IF(ISERROR(Dados!M207),\"-\",Dados!M207)","v":1912.92},{"$f":"IF(ISERROR(Dados!N207),\"-\",Dados!N207)","v":2545.1},{"$f":"IF(ISERROR(Dados!O207),\"-\",Dados!O207)","v":1234.51},{"$f":"IF(ISERROR(Dados!P207),\"-\",Dados!P207)","v":2545.1},{"$f":"IF(ISERROR(Dados!Q207),\"-\",Dados!Q207)","v":1.0515864489920042},{"$f":"IF(ISERROR(Dados!R207),\"-\",Dados!R207)","v":8.1788477874994623},{"$f":"IF(ISERROR(Dados!S207),\"-\",Dados!S207)","v":1.4415233424468195},{"$f":"IF(ISERROR(Dados!T207),\"-\",Dados!T207)","v":11.21163173156261},{"$f":"IF(ISERROR(Dados!U207),\"-\",Dados!U207)","v":0.14021699999999998},{"$f":"IF(ISERROR(Dados!V207),\"-\",Dados!V207)","v":-9.9699999999999997E-3},{"$f":"IF(ISERROR(Dados!W207),\"-\",Dados!W207)","v":5947},{"$f":"IF(ISERROR(Dados!X207),\"-\",Dados!X207)","v":6371.8},{"$f":"IF(ISERROR(Dados!Y207),\"-\",Dados!Y207)","v":6371.8},{"$f":"IF(ISERROR(Dados!Z207),\"-\",Dados!Z207)","v":4.4473109639348376},{"$f":"IF(ISERROR(Dados!AA207),\"-\",Dados!AA207)","v":588.25},{"$f":"IF(ISERROR(Dados!AB207),\"-\",Dados!AB207)","v":2.0615229231185996E-2},{"$f":"IF(ISERROR(Dados!AC207),\"-\",Dados!AC207)","v":-0.3},{"$f":"IF(ISERROR(Dados!AD207),\"-\",Dados!AD207)","v":-7.3},{"$f":"IF(ISERROR(Dados!AE207),\"-\",Dados!AE207)","v":"-"},{"$f":"IF(ISERROR(Dados!AF207),\"-\",Dados!AF207)","v":"TIMP3"},{"$f":"IF(ISERROR(Dados!AG207),\"-\",Dados!AG207)","v":6371.8}]
[{"$f":"IF(ISERROR(Dados!A208),\"-\",Dados!A208)","v":"VIVT4"},{"$f":"IF(ISERROR(Dados!B208),\"-\",Dados!B208)","v":"Telecom"},{"$f":"IF(ISERROR(Dados!C208),\"-\",Dados!C208)","v":"Telef Brasil"},{"$f":"IF(ISERROR(Dados!D208),\"-\",Dados!D208)","v":47.5},{"$f":"IF(ISERROR(Dados!E208),\"-\",Dados!E208)","v":1688.694},{"$f":"IF(ISERROR(Dados!F208),\"-\",Dados!F208)","v":78220.23},{"$f":"IF(ISERROR(Dados!G208),\"-\",Dados!G208)","v":71607.03},{"$f":"IF(ISERROR(Dados!H208),\"-\",Dados!H208)","v":43206.83},{"$f":"IF(ISERROR(Dados!I208),\"-\",Dados!I208)","v":43462.74},{"$f":"IF(ISERROR(Dados!J208),\"-\",Dados!J208)","v":4608.79},{"$f":"IF(ISERROR(Dados!K208),\"-\",Dados!K208)","v":1098.02},{"$f":"IF(ISERROR(Dados!L208),\"-\",Dados!L208)","v":4264.32},{"$f":"IF(ISERROR(Dados!M208),\"-\",Dados!M208)","v":7441.58},{"$f":"IF(ISERROR(Dados!N208),\"-\",Dados!N208)","v":8928.26},{"$f":"IF(ISERROR(Dados!O208),\"-\",Dados!O208)","v":4608.79},{"$f":"IF(ISERROR(Dados!P208),\"-\",Dados!P208)","v":8928.26},{"$f":"IF(ISERROR(Dados!Q208),\"-\",Dados!Q208)","v":5.2870798380286779},{"$f":"IF(ISERROR(Dados!R208),\"-\",Dados!R208)","v":42.40379251658382},{"$f":"IF(ISERROR(Dados!S208),\"-\",Dados!S208)","v":1.1201828228317807},{"$f":"IF(ISERROR(Dados!T208),\"-\",Dados!T208)","v":8.984165447690815},{"$f":"IF(ISERROR(Dados!U208),\"-\",Dados!U208)","v":0.12853600000000001},{"$f":"IF(ISERROR(Dados!V208),\"-\",Dados!V208)","v":3.8517000000000003E-2},{"$f":"IF(ISERROR(Dados!W208),\"-\",Dados!W208)","v":14487.6},{"$f":"IF(ISERROR(Dados!X208),\"-\",Dados!X208)","v":17819},{"$f":"IF(ISERROR(Dados!Y208),\"-\",Dados!Y208)","v":17819},{"$f":"IF(ISERROR(Dados!Z208),\"-\",Dados!Z208)","v":4.5444940232336268},{"$f":"IF(ISERROR(Dados!AA208),\"-\",Dados!AA208)","v":4136.88},{"$f":"IF(ISERROR(Dados!AB208),\"-\",Dados!AB208)","v":5.2887596980985614E-2},{"$f":"IF(ISERROR(Dados!AC208),\"-\",Dados!AC208)","v":2.5},{"$f":"IF(ISERROR(Dados!AD208),\"-\",Dados!AD208)","v":8.3000000000000007},{"$f":"IF(ISERROR(Dados!AE208),\"-\",Dados!AE208)","v":0.33848642797333328},{"$f":"IF(ISERROR(Dados!AF208),\"-\",Dados!AF208)","v":"VIVT4"},{"$f":"IF(ISERROR(Dados!AG208),\"-\",Dados!AG208)","v":17819}]
[{"$f":"IF(ISERROR(Dados!A209),\"-\",Dados!A209)","v":"TELB4"},{"$f":"IF(ISERROR(Dados!B209),\"-\",Dados!B209)","v":"Telecom"},{"$f":"IF(ISERROR(Dados!C209),\"-\",Dados!C209)","v":"Telebras"},{"$f":"IF(ISERROR(Dados!D209),\"-\",Dados!D209)","v":28.6},{"$f":"IF(ISERROR(Dados!E209),\"-\",Dados!E209)","v":49.604999999999997},{"$f":"IF(ISERROR(Dados!F209),\"-\",Dados!F209)","v":1866.42},{"$f":"IF(ISERROR(Dados!G209),\"-\",Dados!G209)","v":370.43},{"$f":"IF(ISERROR(Dados!H209),\"-\",Dados!H209)","v":73.290000000000006},{"$f":"IF(ISERROR(Dados!I209),\"-\",Dados!I209)","v":199.65},{"$f":"IF(ISERROR(Dados!J209),\"-\",Dados!J209)","v":-243.82},{"$f":"IF(ISERROR(Dados!K209),\"-\",Dados!K209)","v":-62.67},{"$f":"IF(ISERROR(Dados!L209),\"-\",Dados!L209)","v":-124.01},{"$f":"IF(ISERROR(Dados!M209),\"-\",Dados!M209)","v":-228.1},{"$f":"IF(ISERROR(Dados!N209),\"-\",Dados!N209)","v":-224.85},{"$f":"IF(ISERROR(Dados!O209),\"-\",Dados!O209)","v":-243.82},{"$f":"IF(ISERROR(Dados!P209),\"-\",Dados!P209)","v":-224.85},{"$f":"IF(ISERROR(Dados!Q209),\"-\",Dados!Q209)","v":-4.5328091926217118},{"$f":"IF(ISERROR(Dados!R209),\"-\",Dados!R209)","v":7.467593992541075},{"$f":"IF(ISERROR(Dados!S209),\"-\",Dados!S209)","v":3.8298814890802579},{"$f":"IF(ISERROR(Dados!T209),\"-\",Dados!T209)","v":"-"},{"$f":"IF(ISERROR(Dados!U209),\"-\",Dados!U209)","v":-0.38121899999999997},{"$f":"IF(ISERROR(Dados!V209),\"-\",Dados!V209)","v":0.26410400000000001},{"$f":"IF(ISERROR(Dados!W209),\"-\",Dados!W209)","v":-150.80000000000001},{"$f":"IF(ISERROR(Dados!X209),\"-\",Dados!X209)","v":-62.8},{"$f":"IF(ISERROR(Dados!Y209),\"-\",Dados!Y209)","v":-62.8},{"$f":"IF(ISERROR(Dados!Z209),\"-\",Dados!Z209)","v":-31.277914012738858},{"$f":"IF(ISERROR(Dados!AA209),\"-\",Dados!AA209)","v":0.01},{"$f":"IF(ISERROR(Dados!AB209),\"-\",Dados!AB209)","v":5.3578508588634927E-6},{"$f":"IF(ISERROR(Dados!AC209),\"-\",Dados!AC209)","v":5.0999999999999996},{"$f":"IF(ISERROR(Dados!AD209),\"-\",Dados!AD209)","v":30.1},{"$f":"IF(ISERROR(Dados!AE209),\"-\",Dados!AE209)","v":0.79225884487450859},{"$f":"IF(ISERROR(Dados!AF209),\"-\",Dados!AF209)","v":"TELB4"},{"$f":"IF(ISERROR(Dados!AG209),\"-\",Dados!AG209)","v":-62.8}]
[{"$f":"IF(ISERROR(Dados!A210),\"-\",Dados!A210)","v":"CAMB4"},{"$f":"IF(ISERROR(Dados!B210),\"-\",Dados!B210)","v":"Têxtil"},{"$f":"IF(ISERROR(Dados!C210),\"-\",Dados!C210)","v":"Cambuci"},{"$f":"IF(ISERROR(Dados!D210),\"-\",Dados!D210)","v":34},{"$f":"IF(ISERROR(Dados!E210),\"-\",Dados!E210)","v":3.855},{"$f":"IF(ISERROR(Dados!F210),\"-\",Dados!F210)","v":131.07},{"$f":"IF(ISERROR(Dados!G210),\"-\",Dados!G210)","v":24.35},{"$f":"IF(ISERROR(Dados!H210),\"-\",Dados!H210)","v":259.45999999999998},{"$f":"IF(ISERROR(Dados!I210),\"-\",Dados!I210)","v":247.49},{"$f":"IF(ISERROR(Dados!J210),\"-\",Dados!J210)","v":44.73},{"$f":"IF(ISERROR(Dados!K210),\"-\",Dados!K210)","v":4.41},{"$f":"IF(ISERROR(Dados!L210),\"-\",Dados!L210)","v":6.94},{"$f":"IF(ISERROR(Dados!M210),\"-\",Dados!M210)","v":12.22},{"$f":"IF(ISERROR(Dados!N210),\"-\",Dados!N210)","v":16.64},{"$f":"IF(ISERROR(Dados!O210),\"-\",Dados!O210)","v":44.73},{"$f":"IF(ISERROR(Dados!P210),\"-\",Dados!P210)","v":16.64},{"$f":"IF(ISERROR(Dados!Q210),\"-\",Dados!Q210)","v":4.3164721141374836},{"$f":"IF(ISERROR(Dados!R210),\"-\",Dados!R210)","v":6.3164721141374844},{"$f":"IF(ISERROR(Dados!S210),\"-\",Dados!S210)","v":5.3827515400410668},{"$f":"IF(ISERROR(Dados!T210),\"-\",Dados!T210)","v":7.876802884615385},{"$f":"IF(ISERROR(Dados!U210),\"-\",Dados!U210)","v":2.4780470000000001},{"$f":"IF(ISERROR(Dados!V210),\"-\",Dados!V210)","v":2.2073269999999998},{"$f":"IF(ISERROR(Dados!W210),\"-\",Dados!W210)","v":26.3},{"$f":"IF(ISERROR(Dados!X210),\"-\",Dados!X210)","v":36},{"$f":"IF(ISERROR(Dados!Y210),\"-\",Dados!Y210)","v":36},{"$f":"IF(ISERROR(Dados!Z210),\"-\",Dados!Z210)","v":5.1186388888888885},{"$f":"IF(ISERROR(Dados!AA210),\"-\",Dados!AA210)","v":"-"},{"$f":"IF(ISERROR(Dados!AB210),\"-\",Dados!AB210)","v":"-"},{"$f":"IF(ISERROR(Dados!AC210),\"-\",Dados!AC210)","v":"-"},{"$f":"IF(ISERROR(Dados!AD210),\"-\",Dados!AD210)","v":297.60000000000002},{"$f":"IF(ISERROR(Dados!AE210),\"-\",Dados!AE210)","v":0.33722438391699094},{"$f":"IF(ISERROR(Dados!AF210),\"-\",Dados!AF210)","v":"CAMB4"},{"$f":"IF(ISERROR(Dados!AG210),\"-\",Dados!AG210)","v":36}]
[{"$f":"IF(ISERROR(Dados!A211),\"-\",Dados!A211)","v":"GUAR3"},{"$f":"IF(ISERROR(Dados!B211),\"-\",Dados!B211)","v":"Têxtil"},{"$f":"IF(ISERROR(Dados!C211),\"-\",Dados!C211)","v":"Guararapes"},{"$f":"IF(ISERROR(Dados!D211),\"-\",Dados!D211)","v":144},{"$f":"IF(ISERROR(Dados!E211),\"-\",Dados!E211)","v":62.4},{"$f":"IF(ISERROR(Dados!F211),\"-\",Dados!F211)","v":8985.6},{"$f":"IF(ISERROR(Dados!G211),\"-\",Dados!G211)","v":4929.1499999999996},{"$f":"IF(ISERROR(Dados!H211),\"-\",Dados!H211)","v":6444.66},{"$f":"IF(ISERROR(Dados!I211),\"-\",Dados!I211)","v":7192.6},{"$f":"IF(ISERROR(Dados!J211),\"-\",Dados!J211)","v":570.33000000000004},{"$f":"IF(ISERROR(Dados!K211),\"-\",Dados!K211)","v":51.13},{"$f":"IF(ISERROR(Dados!L211),\"-\",Dados!L211)","v":140.19999999999999},{"$f":"IF(ISERROR(Dados!M211),\"-\",Dados!M211)","v":223.53},{"$f":"IF(ISERROR(Dados!N211),\"-\",Dados!N211)","v":1235.67},{"$f":"IF(ISERROR(Dados!O211),\"-\",Dados!O211)","v":570.33000000000004},{"$f":"IF(ISERROR(Dados!P211),\"-\",Dados!P211)","v":1235.67},{"$f":"IF(ISERROR(Dados!Q211),\"-\",Dados!Q211)","v":19.802403846153847},{"$f":"IF(ISERROR(Dados!R211),\"-\",Dados!R211)","v":78.992788461538453},{"$f":"IF(ISERROR(Dados!S211),\"-\",Dados!S211)","v":1.8229512187699708},{"$f":"IF(ISERROR(Dados!T211),\"-\",Dados!T211)","v":7.2718444244822642},{"$f":"IF(ISERROR(Dados!U211),\"-\",Dados!U211)","v":0.30699700000000002},{"$f":"IF(ISERROR(Dados!V211),\"-\",Dados!V211)","v":0.198903},{"$f":"IF(ISERROR(Dados!W211),\"-\",Dados!W211)","v":1188.7},{"$f":"IF(ISERROR(Dados!X211),\"-\",Dados!X211)","v":1701.3},{"$f":"IF(ISERROR(Dados!Y211),\"-\",Dados!Y211)","v":1701.3},{"$f":"IF(ISERROR(Dados!Z211),\"-\",Dados!Z211)","v":5.857885734438371},{"$f":"IF(ISERROR(Dados!AA211),\"-\",Dados!AA211)","v":139.97},{"$f":"IF(ISERROR(Dados!AB211),\"-\",Dados!AB211)","v":1.5577145655270654E-2},{"$f":"IF(ISERROR(Dados!AC211),\"-\",Dados!AC211)","v":-1.1000000000000001},{"$f":"IF(ISERROR(Dados!AD211),\"-\",Dados!AD211)","v":-0.5},{"$f":"IF(ISERROR(Dados!AE211),\"-\",Dados!AE211)","v":0.5},{"$f":"IF(ISERROR(Dados!AF211),\"-\",Dados!AF211)","v":"GUAR3"},{"$f":"IF(ISERROR(Dados!AG211),\"-\",Dados!AG211)","v":1701.3}]
[{"$f":"IF(ISERROR(Dados!A212),\"-\",Dados!A212)","v":"CEDO4"},{"$f":"IF(ISERROR(Dados!B212),\"-\",Dados!B212)","v":"Têxtil"},{"$f":"IF(ISERROR(Dados!C212),\"-\",Dados!C212)","v":"Cedro"},{"$f":"IF(ISERROR(Dados!D212),\"-\",Dados!D212)","v":6.22},{"$f":"IF(ISERROR(Dados!E212),\"-\",Dados!E212)","v":10},{"$f":"IF(ISERROR(Dados!F212),\"-\",Dados!F212)","v":60.94},{"$f":"IF(ISERROR(Dados!G212),\"-\",Dados!G212)","v":190.19},{"$f":"IF(ISERROR(Dados!H212),\"-\",Dados!H212)","v":635.04},{"$f":"IF(ISERROR(Dados!I212),\"-\",Dados!I212)","v":649.69000000000005},{"$f":"IF(ISERROR(Dados!J212),\"-\",Dados!J212)","v":82.7},{"$f":"IF(ISERROR(Dados!K212),\"-\",Dados!K212)","v":0.01},{"$f":"IF(ISERROR(Dados!L212),\"-\",Dados!L212)","v":0.93},{"$f":"IF(ISERROR(Dados!M212),\"-\",Dados!M212)","v":-7.8},{"$f":"IF(ISERROR(Dados!N212),\"-\",Dados!N212)","v":48.61},{"$f":"IF(ISERROR(Dados!O212),\"-\",Dados!O212)","v":82.7},{"$f":"IF(ISERROR(Dados!P212),\"-\",Dados!P212)","v":48.61},{"$f":"IF(ISERROR(Dados!Q212),\"-\",Dados!Q212)","v":4.8609999999999998},{"$f":"IF(ISERROR(Dados!R212),\"-\",Dados!R212)","v":19.018999999999998},{"$f":"IF(ISERROR(Dados!S212),\"-\",Dados!S212)","v":0.32704137967295865},{"$f":"IF(ISERROR(Dados!T212),\"-\",Dados!T212)","v":1.2795721045052459},{"$f":"IF(ISERROR(Dados!U212),\"-\",Dados!U212)","v":0.280696},{"$f":"IF(ISERROR(Dados!V212),\"-\",Dados!V212)","v":1.1925870000000001},{"$f":"IF(ISERROR(Dados!W212),\"-\",Dados!W212)","v":101.5},{"$f":"IF(ISERROR(Dados!X212),\"-\",Dados!X212)","v":80.5},{"$f":"IF(ISERROR(Dados!Y212),\"-\",Dados!Y212)","v":80.5},{"$f":"IF(ISERROR(Dados!Z212),\"-\",Dados!Z212)","v":3.8488695652173912},{"$f":"IF(ISERROR(Dados!AA212),\"-\",Dados!AA212)","v":"-"},{"$f":"IF(ISERROR(Dados!AB212),\"-\",Dados!AB212)","v":"-"},{"$f":"IF(ISERROR(Dados!AC212),\"-\",Dados!AC212)","v":-2.5},{"$f":"IF(ISERROR(Dados!AD212),\"-\",Dados!AD212)","v":-8.8000000000000007},{"$f":"IF(ISERROR(Dados!AE212),\"-\",Dados!AE212)","v":0.57000000000000006},{"$f":"IF(ISERROR(Dados!AF212),\"-\",Dados!AF212)","v":"CEDO4"},{"$f":"IF(ISERROR(Dados!AG212),\"-\",Dados!AG212)","v":80.5}]
[{"$f":"IF(ISERROR(Dados!A213),\"-\",Dados!A213)","v":"ARZZ3"},{"$f":"IF(ISERROR(Dados!B213),\"-\",Dados!B213)","v":"Têxtil"},{"$f":"IF(ISERROR(Dados!C213),\"-\",Dados!C213)","v":"Arezzo Co"},{"$f":"IF(ISERROR(Dados!D213),\"-\",Dados!D213)","v":49.98},{"$f":"IF(ISERROR(Dados!E213),\"-\",Dados!E213)","v":90.251000000000005},{"$f":"IF(ISERROR(Dados!F213),\"-\",Dados!F213)","v":4510.74},{"$f":"IF(ISERROR(Dados!G213),\"-\",Dados!G213)","v":711.34},{"$f":"IF(ISERROR(Dados!H213),\"-\",Dados!H213)","v":1360.47},{"$f":"IF(ISERROR(Dados!I213),\"-\",Dados!I213)","v":1526.66},{"$f":"IF(ISERROR(Dados!J213),\"-\",Dados!J213)","v":154.47},{"$f":"IF(ISERROR(Dados!K213),\"-\",Dados!K213)","v":27.11},{"$f":"IF(ISERROR(Dados!L213),\"-\",Dados!L213)","v":60.24},{"$f":"IF(ISERROR(Dados!M213),\"-\",Dados!M213)","v":100.4},{"$f":"IF(ISERROR(Dados!N213),\"-\",Dados!N213)","v":142.63999999999999},{"$f":"IF(ISERROR(Dados!O213),\"-\",Dados!O213)","v":154.47},{"$f":"IF(ISERROR(Dados!P213),\"-\",Dados!P213)","v":142.63999999999999},{"$f":"IF(ISERROR(Dados!Q213),\"-\",Dados!Q213)","v":1.580481102702463},{"$f":"IF(ISERROR(Dados!R213),\"-\",Dados!R213)","v":7.8817963235864426},{"$f":"IF(ISERROR(Dados!S213),\"-\",Dados!S213)","v":6.3411940562881313},{"$f":"IF(ISERROR(Dados!T213),\"-\",Dados!T213)","v":31.623282249018509},{"$f":"IF(ISERROR(Dados!U213),\"-\",Dados!U213)","v":0.21451499999999998},{"$f":"IF(ISERROR(Dados!V213),\"-\",Dados!V213)","v":-0.17485700000000001},{"$f":"IF(ISERROR(Dados!W213),\"-\",Dados!W213)","v":206.3},{"$f":"IF(ISERROR(Dados!X213),\"-\",Dados!X213)","v":232.2},{"$f":"IF(ISERROR(Dados!Y213),\"-\",Dados!Y213)","v":232.2},{"$f":"IF(ISERROR(Dados!Z213),\"-\",Dados!Z213)","v":18.890426356589149},{"$f":"IF(ISERROR(Dados!AA213),\"-\",Dados!AA213)","v":41.92},{"$f":"IF(ISERROR(Dados!AB213),\"-\",Dados!AB213)","v":9.2933753663478735E-3},{"$f":"IF(ISERROR(Dados!AC213),\"-\",Dados!AC213)","v":-7.4},{"$f":"IF(ISERROR(Dados!AD213),\"-\",Dados!AD213)","v":-4.5999999999999996},{"$f":"IF(ISERROR(Dados!AE213),\"-\",Dados!AE213)","v":"-"},{"$f":"IF(ISERROR(Dados!AF213),\"-\",Dados!AF213)","v":"ARZZ3"},{"$f":"IF(ISERROR(Dados!AG213),\"-\",Dados!AG213)","v":232.2}]
[{"$f":"IF(ISERROR(Dados!A214),\"-\",Dados!A214)","v":"HGTX3"},{"$f":"IF(ISERROR(Dados!B214),\"-\",Dados!B214)","v":"Têxtil"},{"$f":"IF(ISERROR(Dados!C214),\"-\",Dados!C214)","v":"Cia Hering"},{"$f":"IF(ISERROR(Dados!D214),\"-\",Dados!D214)","v":29.89},{"$f":"IF(ISERROR(Dados!E214),\"-\",Dados!E214)","v":161.40299999999999},{"$f":"IF(ISERROR(Dados!F214),\"-\",Dados!F214)","v":4824.34},{"$f":"IF(ISERROR(Dados!G214),\"-\",Dados!G214)","v":1320.08},{"$f":"IF(ISERROR(Dados!H214),\"-\",Dados!H214)","v":1562.32},{"$f":"IF(ISERROR(Dados!I214),\"-\",Dados!I214)","v":1539.57},{"$f":"IF(ISERROR(Dados!J214),\"-\",Dados!J214)","v":263.77999999999997},{"$f":"IF(ISERROR(Dados!K214),\"-\",Dados!K214)","v":34.31},{"$f":"IF(ISERROR(Dados!L214),\"-\",Dados!L214)","v":91.6},{"$f":"IF(ISERROR(Dados!M214),\"-\",Dados!M214)","v":144.02000000000001},{"$f":"IF(ISERROR(Dados!N214),\"-\",Dados!N214)","v":239.51},{"$f":"IF(ISERROR(Dados!O214),\"-\",Dados!O214)","v":263.77999999999997},{"$f":"IF(ISERROR(Dados!P214),\"-\",Dados!P214)","v":239.51},{"$f":"IF(ISERROR(Dados!Q214),\"-\",Dados!Q214)","v":1.4839253297646264},{"$f":"IF(ISERROR(Dados!R214),\"-\",Dados!R214)","v":8.1787823026833451},{"$f":"IF(ISERROR(Dados!S214),\"-\",Dados!S214)","v":3.6545782604084605},{"$f":"IF(ISERROR(Dados!T214),\"-\",Dados!T214)","v":20.142522942674628},{"$f":"IF(ISERROR(Dados!U214),\"-\",Dados!U214)","v":0.194267},{"$f":"IF(ISERROR(Dados!V214),\"-\",Dados!V214)","v":-0.24281900000000001},{"$f":"IF(ISERROR(Dados!W214),\"-\",Dados!W214)","v":260.89999999999998},{"$f":"IF(ISERROR(Dados!X214),\"-\",Dados!X214)","v":259.60000000000002},{"$f":"IF(ISERROR(Dados!Y214),\"-\",Dados!Y214)","v":259.60000000000002},{"$f":"IF(ISERROR(Dados!Z214),\"-\",Dados!Z214)","v":17.348998459167952},{"$f":"IF(ISERROR(Dados!AA214),\"-\",Dados!AA214)","v":109.99},{"$f":"IF(ISERROR(Dados!AB214),\"-\",Dados!AB214)","v":2.2798973538349285E-2},{"$f":"IF(ISERROR(Dados!AC214),\"-\",Dados!AC214)","v":-1},{"$f":"IF(ISERROR(Dados!AD214),\"-\",Dados!AD214)","v":21.8},{"$f":"IF(ISERROR(Dados!AE214),\"-\",Dados!AE214)","v":"-"},{"$f":"IF(ISERROR(Dados!AF214),\"-\",Dados!AF214)","v":"HGTX3"},{"$f":"IF(ISERROR(Dados!AG214),\"-\",Dados!AG214)","v":259.60000000000002}]
[{"$f":"IF(ISERROR(Dados!A215),\"-\",Dados!A215)","v":"VULC3"},{"$f":"IF(ISERROR(Dados!B215),\"-\",Dados!B215)","v":"Têxtil"},{"$f":"IF(ISERROR(Dados!C215),\"-\",Dados!C215)","v":"Vulcabras"},{"$f":"IF(ISERROR(Dados!D215),\"-\",Dados!D215)","v":6.75},{"$f":"IF(ISERROR(Dados!E215),\"-\",Dados!E215)","v":245.756},{"$f":"IF(ISERROR(Dados!F215),\"-\",Dados!F215)","v":1658.85},{"$f":"IF(ISERROR(Dados!G215),\"-\",Dados!G215)","v":941.16},{"$f":"IF(ISERROR(Dados!H215),\"-\",Dados!H215)","v":1263.08},{"$f":"IF(ISERROR(Dados!I215),\"-\",Dados!I215)","v":1248.96},{"$f":"IF(ISERROR(Dados!J215),\"-\",Dados!J215)","v":188.91},{"$f":"IF(ISERROR(Dados!K215),\"-\",Dados!K215)","v":33.42},{"$f":"IF(ISERROR(Dados!L215),\"-\",Dados!L215)","v":66.459999999999994},{"$f":"IF(ISERROR(Dados!M215),\"-\",Dados!M215)","v":105.97},{"$f":"IF(ISERROR(Dados!N215),\"-\",Dados!N215)","v":152.11000000000001},{"$f":"IF(ISERROR(Dados!O215),\"-\",Dados!O215)","v":188.91},{"$f":"IF(ISERROR(Dados!P215),\"-\",Dados!P215)","v":152.11000000000001},{"$f":"IF(ISERROR(Dados!Q215),\"-\",Dados!Q215)","v":0.61894724849037264},{"$f":"IF(ISERROR(Dados!R215),\"-\",Dados!R215)","v":3.8296521753283743},{"$f":"IF(ISERROR(Dados!S215),\"-\",Dados!S215)","v":1.7625621573377535},{"$f":"IF(ISERROR(Dados!T215),\"-\",Dados!T215)","v":10.905614358030371},{"$f":"IF(ISERROR(Dados!U215),\"-\",Dados!U215)","v":0.19388100000000003},{"$f":"IF(ISERROR(Dados!V215),\"-\",Dados!V215)","v":-9.1559999999999992E-3},{"$f":"IF(ISERROR(Dados!W215),\"-\",Dados!W215)","v":296.5},{"$f":"IF(ISERROR(Dados!X215),\"-\",Dados!X215)","v":218},{"$f":"IF(ISERROR(Dados!Y215),\"-\",Dados!Y215)","v":218},{"$f":"IF(ISERROR(Dados!Z215),\"-\",Dados!Z215)","v":7.5698623853211009},{"$f":"IF(ISERROR(Dados!AA215),\"-\",Dados!AA215)","v":"-"},{"$f":"IF(ISERROR(Dados!AB215),\"-\",Dados!AB215)","v":"-"},{"$f":"IF(ISERROR(Dados!AC215),\"-\",Dados!AC215)","v":-15.2},{"$f":"IF(ISERROR(Dados!AD215),\"-\",Dados!AD215)","v":-25.8},{"$f":"IF(ISERROR(Dados!AE215),\"-\",Dados!AE215)","v":"-"},{"$f":"IF(ISERROR(Dados!AF215),\"-\",Dados!AF215)","v":"VULC3"},{"$f":"IF(ISERROR(Dados!AG215),\"-\",Dados!AG215)","v":218}]
[{"$f":"IF(ISERROR(Dados!A216),\"-\",Dados!A216)","v":"GRND3"},{"$f":"IF(ISERROR(Dados!B216),\"-\",Dados!B216)","v":"Têxtil"},{"$f":"IF(ISERROR(Dados!C216),\"-\",Dados!C216)","v":"Grendene"},{"$f":"IF(ISERROR(Dados!D216),\"-\",Dados!D216)","v":8.3800000000000008},{"$f":"IF(ISERROR(Dados!E216),\"-\",Dados!E216)","v":900.255},{"$f":"IF(ISERROR(Dados!F216),\"-\",Dados!F216)","v":7544.14},{"$f":"IF(ISERROR(Dados!G216),\"-\",Dados!G216)","v":3465.04},{"$f":"IF(ISERROR(Dados!H216),\"-\",Dados!H216)","v":2251.9699999999998},{"$f":"IF(ISERROR(Dados!I216),\"-\",Dados!I216)","v":2333.4499999999998},{"$f":"IF(ISERROR(Dados!J216),\"-\",Dados!J216)","v":660.93},{"$f":"IF(ISERROR(Dados!K216),\"-\",Dados!K216)","v":156.06},{"$f":"IF(ISERROR(Dados!L216),\"-\",Dados!L216)","v":221.86},{"$f":"IF(ISERROR(Dados!M216),\"-\",Dados!M216)","v":334.22},{"$f":"IF(ISERROR(Dados!N216),\"-\",Dados!N216)","v":585.53},{"$f":"IF(ISERROR(Dados!O216),\"-\",Dados!O216)","v":660.93},{"$f":"IF(ISERROR(Dados!P216),\"-\",Dados!P216)","v":585.53},{"$f":"IF(ISERROR(Dados!Q216),\"-\",Dados!Q216)","v":0.6504046075834069},{"$f":"IF(ISERROR(Dados!R216),\"-\",Dados!R216)","v":3.8489539075039851},{"$f":"IF(ISERROR(Dados!S216),\"-\",Dados!S216)","v":2.1772149527855378},{"$f":"IF(ISERROR(Dados!T216),\"-\",Dados!T216)","v":12.884287568527661},{"$f":"IF(ISERROR(Dados!U216),\"-\",Dados!U216)","v":0.181977},{"$f":"IF(ISERROR(Dados!V216),\"-\",Dados!V216)","v":-0.40765700000000005},{"$f":"IF(ISERROR(Dados!W216),\"-\",Dados!W216)","v":526.20000000000005},{"$f":"IF(ISERROR(Dados!X216),\"-\",Dados!X216)","v":522.70000000000005},{"$f":"IF(ISERROR(Dados!Y216),\"-\",Dados!Y216)","v":522.70000000000005},{"$f":"IF(ISERROR(Dados!Z216),\"-\",Dados!Z216)","v":11.730612205854218},{"$f":"IF(ISERROR(Dados!AA216),\"-\",Dados!AA216)","v":321.27},{"$f":"IF(ISERROR(Dados!AB216),\"-\",Dados!AB216)","v":4.2585370897146653E-2},{"$f":"IF(ISERROR(Dados!AC216),\"-\",Dados!AC216)","v":-3.3},{"$f":"IF(ISERROR(Dados!AD216),\"-\",Dados!AD216)","v":-7.8},{"$f":"IF(ISERROR(Dados!AE216),\"-\",Dados!AE216)","v":"-"},{"$f":"IF(ISERROR(Dados!AF216),\"-\",Dados!AF216)","v":"GRND3"},{"$f":"IF(ISERROR(Dados!AG216),\"-\",Dados!AG216)","v":522.70000000000005}]
[{"$f":"IF(ISERROR(Dados!A217),\"-\",Dados!A217)","v":"ALPA4"},{"$f":"IF(ISERROR(Dados!B217),\"-\",Dados!B217)","v":"Têxtil"},{"$f":"IF(ISERROR(Dados!C217),\"-\",Dados!C217)","v":"Alpargatas"},{"$f":"IF(ISERROR(Dados!D217),\"-\",Dados!D217)","v":15.38},{"$f":"IF(ISERROR(Dados!E217),\"-\",Dados!E217)","v":578.81700000000001},{"$f":"IF(ISERROR(Dados!F217),\"-\",Dados!F217)","v":8962.6},{"$f":"IF(ISERROR(Dados!G217),\"-\",Dados!G217)","v":2380.81},{"$f":"IF(ISERROR(Dados!H217),\"-\",Dados!H217)","v":3721.86},{"$f":"IF(ISERROR(Dados!I217),\"-\",Dados!I217)","v":3904.51},{"$f":"IF(ISERROR(Dados!J217),\"-\",Dados!J217)","v":362.29},{"$f":"IF(ISERROR(Dados!K217),\"-\",Dados!K217)","v":114.07},{"$f":"IF(ISERROR(Dados!L217),\"-\",Dados!L217)","v":136.61000000000001},{"$f":"IF(ISERROR(Dados!M217),\"-\",Dados!M217)","v":257.77999999999997},{"$f":"IF(ISERROR(Dados!N217),\"-\",Dados!N217)","v":331.5},{"$f":"IF(ISERROR(Dados!O217),\"-\",Dados!O217)","v":362.29},{"$f":"IF(ISERROR(Dados!P217),\"-\",Dados!P217)","v":331.5},{"$f":"IF(ISERROR(Dados!Q217),\"-\",Dados!Q217)","v":0.57271987519371403},{"$f":"IF(ISERROR(Dados!R217),\"-\",Dados!R217)","v":4.113234407420653},{"$f":"IF(ISERROR(Dados!S217),\"-\",Dados!S217)","v":3.7391498943636829},{"$f":"IF(ISERROR(Dados!T217),\"-\",Dados!T217)","v":26.854315113122176},{"$f":"IF(ISERROR(Dados!U217),\"-\",Dados!U217)","v":0.14310300000000001},{"$f":"IF(ISERROR(Dados!V217),\"-\",Dados!V217)","v":2.9149999999999999E-2},{"$f":"IF(ISERROR(Dados!W217),\"-\",Dados!W217)","v":486.2},{"$f":"IF(ISERROR(Dados!X217),\"-\",Dados!X217)","v":564.70000000000005},{"$f":"IF(ISERROR(Dados!Y217),\"-\",Dados!Y217)","v":564.70000000000005},{"$f":"IF(ISERROR(Dados!Z217),\"-\",Dados!Z217)","v":15.998930405525055},{"$f":"IF(ISERROR(Dados!AA217),\"-\",Dados!AA217)","v":206.41},{"$f":"IF(ISERROR(Dados!AB217),\"-\",Dados!AB217)","v":2.3030147501840983E-2},{"$f":"IF(ISERROR(Dados!AC217),\"-\",Dados!AC217)","v":0.2},{"$f":"IF(ISERROR(Dados!AD217),\"-\",Dados!AD217)","v":13.7},{"$f":"IF(ISERROR(Dados!AE217),\"-\",Dados!AE217)","v":0.41740308249412161},{"$f":"IF(ISERROR(Dados!AF217),\"-\",Dados!AF217)","v":"ALPA4"},{"$f":"IF(ISERROR(Dados!AG217),\"-\",Dados!AG217)","v":564.70000000000005}]
[{"$f":"IF(ISERROR(Dados!A218),\"-\",Dados!A218)","v":"PTNT4"},{"$f":"IF(ISERROR(Dados!B218),\"-\",Dados!B218)","v":"Têxtil"},{"$f":"IF(ISERROR(Dados!C218),\"-\",Dados!C218)","v":"Pettenati"},{"$f":"IF(ISERROR(Dados!D218),\"-\",Dados!D218)","v":3.25},{"$f":"IF(ISERROR(Dados!E218),\"-\",Dados!E218)","v":48.045999999999999},{"$f":"IF(ISERROR(Dados!F218),\"-\",Dados!F218)","v":156.15},{"$f":"IF(ISERROR(Dados!G218),\"-\",Dados!G218)","v":191.75},{"$f":"IF(ISERROR(Dados!H218),\"-\",Dados!H218)","v":203.73},{"$f":"IF(ISERROR(Dados!I218),\"-\",Dados!I218)","v":246.65},{"$f":"IF(ISERROR(Dados!J218),\"-\",Dados!J218)","v":6.17},{"$f":"IF(ISERROR(Dados!K218),\"-\",Dados!K218)","v":11.33},{"$f":"IF(ISERROR(Dados!L218),\"-\",Dados!L218)","v":18},{"$f":"IF(ISERROR(Dados!M218),\"-\",Dados!M218)","v":7.48},{"$f":"IF(ISERROR(Dados!N218),\"-\",Dados!N218)","v":3.93},{"$f":"IF(ISERROR(Dados!O218),\"-\",Dados!O218)","v":6.17},{"$f":"IF(ISERROR(Dados!P218),\"-\",Dados!P218)","v":3.93},{"$f":"IF(ISERROR(Dados!Q218),\"-\",Dados!Q218)","v":0.32801898180909961},{"$f":"IF(ISERROR(Dados!R218),\"-\",Dados!R218)","v":3.9909669899679474},{"$f":"IF(ISERROR(Dados!S218),\"-\",Dados!S218)","v":0.8143389830508474},{"$f":"IF(ISERROR(Dados!T218),\"-\",Dados!T218)","v":9.9079631979695435},{"$f":"IF(ISERROR(Dados!U218),\"-\",Dados!U218)","v":0.138292},{"$f":"IF(ISERROR(Dados!V218),\"-\",Dados!V218)","v":0.26080999999999999},{"$f":"IF(ISERROR(Dados!W218),\"-\",Dados!W218)","v":25.6},{"$f":"IF(ISERROR(Dados!X218),\"-\",Dados!X218)","v":24.1},{"$f":"IF(ISERROR(Dados!Y218),\"-\",Dados!Y218)","v":60},{"$f":"IF(ISERROR(Dados!Z218),\"-\",Dados!Z218)","v":3.6275166666666667},{"$f":"IF(ISERROR(Dados!AA218),\"-\",Dados!AA218)","v":"-"},{"$f":"IF(ISERROR(Dados!AB218),\"-\",Dados!AB218)","v":"-"},{"$f":"IF(ISERROR(Dados!AC218),\"-\",Dados!AC218)","v":7.6},{"$f":"IF(ISERROR(Dados!AD218),\"-\",Dados!AD218)","v":-2},{"$f":"IF(ISERROR(Dados!AE218),\"-\",Dados!AE218)","v":"-"},{"$f":"IF(ISERROR(Dados!AF218),\"-\",Dados!AF218)","v":"PTNT4"},{"$f":"IF(ISERROR(Dados!AG218),\"-\",Dados!AG218)","v":60}]
[{"$f":"IF(ISERROR(Dados!A219),\"-\",Dados!A219)","v":"CTSA3"},{"$f":"IF(ISERROR(Dados!B219),\"-\",Dados!B219)","v":"Têxtil"},{"$f":"IF(ISERROR(Dados!C219),\"-\",Dados!C219)","v":"Santanense"},{"$f":"IF(ISERROR(Dados!D219),\"-\",Dados!D219)","v":5.0199999999999996},{"$f":"IF(ISERROR(Dados!E219),\"-\",Dados!E219)","v":39.298999999999999},{"$f":"IF(ISERROR(Dados!F219),\"-\",Dados!F219)","v":198.27},{"$f":"IF(ISERROR(Dados!G219),\"-\",Dados!G219)","v":205.43},{"$f":"IF(ISERROR(Dados!H219),\"-\",Dados!H219)","v":418.54},{"$f":"IF(ISERROR(Dados!I219),\"-\",Dados!I219)","v":"-"},{"$f":"IF(ISERROR(Dados!J219),\"-\",Dados!J219)","v":19.940000000000001},{"$f":"IF(ISERROR(Dados!K219),\"-\",Dados!K219)","v":7.83},{"$f":"IF(ISERROR(Dados!L219),\"-\",Dados!L219)","v":13.96},{"$f":"IF(ISERROR(Dados!M219),\"-\",Dados!M219)","v":19.45},{"$f":"IF(ISERROR(Dados!N219),\"-\",Dados!N219)","v":"-"},{"$f":"IF(ISERROR(Dados!O219),\"-\",Dados!O219)","v":19.940000000000001},{"$f":"IF(ISERROR(Dados!P219),\"-\",Dados!P219)","v":"-"},{"$f":"IF(ISERROR(Dados!Q219),\"-\",Dados!Q219)","v":0.67126389984477974},{"$f":"IF(ISERROR(Dados!R219),\"-\",Dados!R219)","v":5.2273594747957963},{"$f":"IF(ISERROR(Dados!S219),\"-\",Dados!S219)","v":0.96033188920800261},{"$f":"IF(ISERROR(Dados!T219),\"-\",Dados!T219)","v":7.4784298711144803},{"$f":"IF(ISERROR(Dados!U219),\"-\",Dados!U219)","v":0.101274},{"$f":"IF(ISERROR(Dados!V219),\"-\",Dados!V219)","v":1.2192940000000001},{"$f":"IF(ISERROR(Dados!W219),\"-\",Dados!W219)","v":47.8},{"$f":"IF(ISERROR(Dados!X219),\"-\",Dados!X219)","v":"-"},{"$f":"IF(ISERROR(Dados!Y219),\"-\",Dados!Y219)","v":55.4},{"$f":"IF(ISERROR(Dados!Z219),\"-\",Dados!Z219)","v":8.1002166064981953},{"$f":"IF(ISERROR(Dados!AA219),\"-\",Dados!AA219)","v":11.95},{"$f":"IF(ISERROR(Dados!AB219),\"-\",Dados!AB219)","v":6.0271347152872336E-2},{"$f":"IF(ISERROR(Dados!AC219),\"-\",Dados!AC219)","v":-2.5},{"$f":"IF(ISERROR(Dados!AD219),\"-\",Dados!AD219)","v":97.3},{"$f":"IF(ISERROR(Dados!AE219),\"-\",Dados!AE219)","v":0.96694572380976618},{"$f":"IF(ISERROR(Dados!AF219),\"-\",Dados!AF219)","v":"CTSA3"},{"$f":"IF(ISERROR(Dados!AG219),\"-\",Dados!AG219)","v":55.4}]
[{"$f":"IF(ISERROR(Dados!A220),\"-\",Dados!A220)","v":"DOHL4"},{"$f":"IF(ISERROR(Dados!B220),\"-\",Dados!B220)","v":"Têxtil"},{"$f":"IF(ISERROR(Dados!C220),\"-\",Dados!C220)","v":"Dohler"},{"$f":"IF(ISERROR(Dados!D220),\"-\",Dados!D220)","v":7.6},{"$f":"IF(ISERROR(Dados!E220),\"-\",Dados!E220)","v":60.515999999999998},{"$f":"IF(ISERROR(Dados!F220),\"-\",Dados!F220)","v":459.92},{"$f":"IF(ISERROR(Dados!G220),\"-\",Dados!G220)","v":570.80999999999995},{"$f":"IF(ISERROR(Dados!H220),\"-\",Dados!H220)","v":460.01},{"$f":"IF(ISERROR(Dados!I220),\"-\",Dados!I220)","v":480.71},{"$f":"IF(ISERROR(Dados!J220),\"-\",Dados!J220)","v":34.14},{"$f":"IF(ISERROR(Dados!K220),\"-\",Dados!K220)","v":9.58},{"$f":"IF(ISERROR(Dados!L220),\"-\",Dados!L220)","v":16.940000000000001},{"$f":"IF(ISERROR(Dados!M220),\"-\",Dados!M220)","v":43.13},{"$f":"IF(ISERROR(Dados!N220),\"-\",Dados!N220)","v":49.57},{"$f":"IF(ISERROR(Dados!O220),\"-\",Dados!O220)","v":34.14},{"$f":"IF(ISERROR(Dados!P220),\"-\",Dados!P220)","v":49.57},{"$f":"IF(ISERROR(Dados!Q220),\"-\",Dados!Q220)","v":0.81912221561240006},{"$f":"IF(ISERROR(Dados!R220),\"-\",Dados!R220)","v":9.4323815189371398},{"$f":"IF(ISERROR(Dados!S220),\"-\",Dados!S220)","v":0.80573500814631838},{"$f":"IF(ISERROR(Dados!T220),\"-\",Dados!T220)","v":9.2782247327012293},{"$f":"IF(ISERROR(Dados!U220),\"-\",Dados!U220)","v":9.2905999999999989E-2},{"$f":"IF(ISERROR(Dados!V220),\"-\",Dados!V220)","v":-2.8262999999999996E-2},{"$f":"IF(ISERROR(Dados!W220),\"-\",Dados!W220)","v":44.4},{"$f":"IF(ISERROR(Dados!X220),\"-\",Dados!X220)","v":45.8},{"$f":"IF(ISERROR(Dados!Y220),\"-\",Dados!Y220)","v":45.8},{"$f":"IF(ISERROR(Dados!Z220),\"-\",Dados!Z220)","v":9.689563318777294},{"$f":"IF(ISERROR(Dados!AA220),\"-\",Dados!AA220)","v":9.59},{"$f":"IF(ISERROR(Dados!AB220),\"-\",Dados!AB220)","v":2.0851452426508956E-2},{"$f":"IF(ISERROR(Dados!AC220),\"-\",Dados!AC220)","v":10.1},{"$f":"IF(ISERROR(Dados!AD220),\"-\",Dados!AD220)","v":35.700000000000003},{"$f":"IF(ISERROR(Dados!AE220),\"-\",Dados!AE220)","v":0.72047061934033974},{"$f":"IF(ISERROR(Dados!AF220),\"-\",Dados!AF220)","v":"DOHL4"},{"$f":"IF(ISERROR(Dados!AG220),\"-\",Dados!AG220)","v":45.8}]
[{"$f":"IF(ISERROR(Dados!A221),\"-\",Dados!A221)","v":"CTNM4"},{"$f":"IF(ISERROR(Dados!B221),\"-\",Dados!B221)","v":"Têxtil"},{"$f":"IF(ISERROR(Dados!C221),\"-\",Dados!C221)","v":"Coteminas"},{"$f":"IF(ISERROR(Dados!D221),\"-\",Dados!D221)","v":10.4},{"$f":"IF(ISERROR(Dados!E221),\"-\",Dados!E221)","v":30.635999999999999},{"$f":"IF(ISERROR(Dados!F221),\"-\",Dados!F221)","v":333.22},{"$f":"IF(ISERROR(Dados!G221),\"-\",Dados!G221)","v":852.11},{"$f":"IF(ISERROR(Dados!H221),\"-\",Dados!H221)","v":2577.73},{"$f":"IF(ISERROR(Dados!I221),\"-\",Dados!I221)","v":"-"},{"$f":"IF(ISERROR(Dados!J221),\"-\",Dados!J221)","v":49.81},{"$f":"IF(ISERROR(Dados!K221),\"-\",Dados!K221)","v":-5.43},{"$f":"IF(ISERROR(Dados!L221),\"-\",Dados!L221)","v":-5.13},{"$f":"IF(ISERROR(Dados!M221),\"-\",Dados!M221)","v":13.83},{"$f":"IF(ISERROR(Dados!N221),\"-\",Dados!N221)","v":"-"},{"$f":"IF(ISERROR(Dados!O221),\"-\",Dados!O221)","v":49.81},{"$f":"IF(ISERROR(Dados!P221),\"-\",Dados!P221)","v":"-"},{"$f":"IF(ISERROR(Dados!Q221),\"-\",Dados!Q221)","v":2.1393132262697483},{"$f":"IF(ISERROR(Dados!R221),\"-\",Dados!R221)","v":27.814009661835751},{"$f":"IF(ISERROR(Dados!S221),\"-\",Dados!S221)","v":0.37391228831958312},{"$f":"IF(ISERROR(Dados!T221),\"-\",Dados!T221)","v":4.8613732072017086},{"$f":"IF(ISERROR(Dados!U221),\"-\",Dados!U221)","v":6.2826000000000007E-2},{"$f":"IF(ISERROR(Dados!V221),\"-\",Dados!V221)","v":0.90794799999999998},{"$f":"IF(ISERROR(Dados!W221),\"-\",Dados!W221)","v":356.7},{"$f":"IF(ISERROR(Dados!X221),\"-\",Dados!X221)","v":"-"},{"$f":"IF(ISERROR(Dados!Y221),\"-\",Dados!Y221)","v":370.2},{"$f":"IF(ISERROR(Dados!Z221),\"-\",Dados!Z221)","v":4.6102566180443008},{"$f":"IF(ISERROR(Dados!AA221),\"-\",Dados!AA221)","v":"-"},{"$f":"IF(ISERROR(Dados!AB221),\"-\",Dados!AB221)","v":"-"},{"$f":"IF(ISERROR(Dados!AC221),\"-\",Dados!AC221)","v":3.9},{"$f":"IF(ISERROR(Dados!AD221),\"-\",Dados!AD221)","v":66.7},{"$f":"IF(ISERROR(Dados!AE221),\"-\",Dados!AE221)","v":0.45371458414936677},{"$f":"IF(ISERROR(Dados!AF221),\"-\",Dados!AF221)","v":"CTNM4"},{"$f":"IF(ISERROR(Dados!AG221),\"-\",Dados!AG221)","v":370.2}]
[{"$f":"IF(ISERROR(Dados!A222),\"-\",Dados!A222)","v":"LLIS3"},{"$f":"IF(ISERROR(Dados!B222),\"-\",Dados!B222)","v":"Têxtil"},{"$f":"IF(ISERROR(Dados!C222),\"-\",Dados!C222)","v":"Le Lis Blanc"},{"$f":"IF(ISERROR(Dados!D222),\"-\",Dados!D222)","v":32},{"$f":"IF(ISERROR(Dados!E222),\"-\",Dados!E222)","v":51.600999999999999},{"$f":"IF(ISERROR(Dados!F222),\"-\",Dados!F222)","v":1651.23},{"$f":"IF(ISERROR(Dados!G222),\"-\",Dados!G222)","v":2225.87},{"$f":"IF(ISERROR(Dados!H222),\"-\",Dados!H222)","v":1249.82},{"$f":"IF(ISERROR(Dados!I222),\"-\",Dados!I222)","v":1244.1500000000001},{"$f":"IF(ISERROR(Dados!J222),\"-\",Dados!J222)","v":420.57},{"$f":"IF(ISERROR(Dados!K222),\"-\",Dados!K222)","v":20.37},{"$f":"IF(ISERROR(Dados!L222),\"-\",Dados!L222)","v":50.62},{"$f":"IF(ISERROR(Dados!M222),\"-\",Dados!M222)","v":58.46},{"$f":"IF(ISERROR(Dados!N222),\"-\",Dados!N222)","v":103.46},{"$f":"IF(ISERROR(Dados!O222),\"-\",Dados!O222)","v":420.57},{"$f":"IF(ISERROR(Dados!P222),\"-\",Dados!P222)","v":103.46},{"$f":"IF(ISERROR(Dados!Q222),\"-\",Dados!Q222)","v":2.0049999031026529},{"$f":"IF(ISERROR(Dados!R222),\"-\",Dados!R222)","v":43.13617953140443},{"$f":"IF(ISERROR(Dados!S222),\"-\",Dados!S222)","v":0.74183667509782691},{"$f":"IF(ISERROR(Dados!T222),\"-\",Dados!T222)","v":15.960100521940848},{"$f":"IF(ISERROR(Dados!U222),\"-\",Dados!U222)","v":4.8201000000000001E-2},{"$f":"IF(ISERROR(Dados!V222),\"-\",Dados!V222)","v":0.388152},{"$f":"IF(ISERROR(Dados!W222),\"-\",Dados!W222)","v":262.60000000000002},{"$f":"IF(ISERROR(Dados!X222),\"-\",Dados!X222)","v":350.6},{"$f":"IF(ISERROR(Dados!Y222),\"-\",Dados!Y222)","v":350.6},{"$f":"IF(ISERROR(Dados!Z222),\"-\",Dados!Z222)","v":7.1740074158585276},{"$f":"IF(ISERROR(Dados!AA222),\"-\",Dados!AA222)","v":96.52},{"$f":"IF(ISERROR(Dados!AB222),\"-\",Dados!AB222)","v":5.8453395347710491E-2},{"$f":"IF(ISERROR(Dados!AC222),\"-\",Dados!AC222)","v":-3.1},{"$f":"IF(ISERROR(Dados!AD222),\"-\",Dados!AD222)","v":4.9000000000000004},{"$f":"IF(ISERROR(Dados!AE222),\"-\",Dados!AE222)","v":0.99998062053060988},{"$f":"IF(ISERROR(Dados!AF222),\"-\",Dados!AF222)","v":"LLIS3"},{"$f":"IF(ISERROR(Dados!AG222),\"-\",Dados!AG222)","v":350.6}]
[{"$f":"IF(ISERROR(Dados!A223),\"-\",Dados!A223)","v":"SGPS3"},{"$f":"IF(ISERROR(Dados!B223),\"-\",Dados!B223)","v":"Têxtil"},{"$f":"IF(ISERROR(Dados!C223),\"-\",Dados!C223)","v":"Springs"},{"$f":"IF(ISERROR(Dados!D223),\"-\",Dados!D223)","v":8.89},{"$f":"IF(ISERROR(Dados!E223),\"-\",Dados!E223)","v":50},{"$f":"IF(ISERROR(Dados!F223),\"-\",Dados!F223)","v":444.5},{"$f":"IF(ISERROR(Dados!G223),\"-\",Dados!G223)","v":1160.5899999999999},{"$f":"IF(ISERROR(Dados!H223),\"-\",Dados!H223)","v":2198.6999999999998},{"$f":"IF(ISERROR(Dados!I223),\"-\",Dados!I223)","v":"-"},{"$f":"IF(ISERROR(Dados!J223),\"-\",Dados!J223)","v":21.04},{"$f":"IF(ISERROR(Dados!K223),\"-\",Dados!K223)","v":-6.95},{"$f":"IF(ISERROR(Dados!L223),\"-\",Dados!L223)","v":2},{"$f":"IF(ISERROR(Dados!M223),\"-\",Dados!M223)","v":-7.36},{"$f":"IF(ISERROR(Dados!N223),\"-\",Dados!N223)","v":"-"},{"$f":"IF(ISERROR(Dados!O223),\"-\",Dados!O223)","v":21.04},{"$f":"IF(ISERROR(Dados!P223),\"-\",Dados!P223)","v":"-"},{"$f":"IF(ISERROR(Dados!Q223),\"-\",Dados!Q223)","v":0.1484},{"$f":"IF(ISERROR(Dados!R223),\"-\",Dados!R223)","v":23.211799999999997},{"$f":"IF(ISERROR(Dados!S223),\"-\",Dados!S223)","v":0.38299485606458794},{"$f":"IF(ISERROR(Dados!T223),\"-\",Dados!T223)","v":59.905660377358494},{"$f":"IF(ISERROR(Dados!U223),\"-\",Dados!U223)","v":7.4110000000000001E-3},{"$f":"IF(ISERROR(Dados!V223),\"-\",Dados!V223)","v":0.85102999999999995},{"$f":"IF(ISERROR(Dados!W223),\"-\",Dados!W223)","v":254.6},{"$f":"IF(ISERROR(Dados!X223),\"-\",Dados!X223)","v":"-"},{"$f":"IF(ISERROR(Dados!Y223),\"-\",Dados!Y223)","v":244.6},{"$f":"IF(ISERROR(Dados!Z223),\"-\",Dados!Z223)","v":5.855269828291088},{"$f":"IF(ISERROR(Dados!AA223),\"-\",Dados!AA223)","v":"-"},{"$f":"IF(ISERROR(Dados!AB223),\"-\",Dados!AB223)","v":"-"},{"$f":"IF(ISERROR(Dados!AC223),\"-\",Dados!AC223)","v":5.7},{"$f":"IF(ISERROR(Dados!AD223),\"-\",Dados!AD223)","v":-17.8},{"$f":"IF(ISERROR(Dados!AE223),\"-\",Dados!AE223)","v":1},{"$f":"IF(ISERROR(Dados!AF223),\"-\",Dados!AF223)","v":"SGPS3"},{"$f":"IF(ISERROR(Dados!AG223),\"-\",Dados!AG223)","v":244.6}]
[{"$f":"IF(ISERROR(Dados!A224),\"-\",Dados!A224)","v":"CTKA4"},{"$f":"IF(ISERROR(Dados!B224),\"-\",Dados!B224)","v":"Têxtil"},{"$f":"IF(ISERROR(Dados!C224),\"-\",Dados!C224)","v":"Karsten"},{"$f":"IF(ISERROR(Dados!D224),\"-\",Dados!D224)","v":3.3},{"$f":"IF(ISERROR(Dados!E224),\"-\",Dados!E224)","v":6.2050000000000001},{"$f":"IF(ISERROR(Dados!F224),\"-\",Dados!F224)","v":20.48},{"$f":"IF(ISERROR(Dados!G224),\"-\",Dados!G224)","v":-260.17},{"$f":"IF(ISERROR(Dados!H224),\"-\",Dados!H224)","v":309.77999999999997},{"$f":"IF(ISERROR(Dados!I224),\"-\",Dados!I224)","v":316.64},{"$f":"IF(ISERROR(Dados!J224),\"-\",Dados!J224)","v":-0.53},{"$f":"IF(ISERROR(Dados!K224),\"-\",Dados!K224)","v":-20},{"$f":"IF(ISERROR(Dados!L224),\"-\",Dados!L224)","v":-28.93},{"$f":"IF(ISERROR(Dados!M224),\"-\",Dados!M224)","v":-47.92},{"$f":"IF(ISERROR(Dados!N224),\"-\",Dados!N224)","v":-52.68},{"$f":"IF(ISERROR(Dados!O224),\"-\",Dados!O224)","v":-0.53},{"$f":"IF(ISERROR(Dados!P224),\"-\",Dados!P224)","v":-52.68},{"$f":"IF(ISERROR(Dados!Q224),\"-\",Dados!Q224)","v":-8.4899274778404514},{"$f":"IF(ISERROR(Dados!R224),\"-\",Dados!R224)","v":"-"},{"$f":"IF(ISERROR(Dados!S224),\"-\",Dados!S224)","v":"-"},{"$f":"IF(ISERROR(Dados!T224),\"-\",Dados!T224)","v":"-"},{"$f":"IF(ISERROR(Dados!U224),\"-\",Dados!U224)","v":"-"},{"$f":"IF(ISERROR(Dados!V224),\"-\",Dados!V224)","v":-1.851534},{"$f":"IF(ISERROR(Dados!W224),\"-\",Dados!W224)","v":53.1},{"$f":"IF(ISERROR(Dados!X224),\"-\",Dados!X224)","v":54.8},{"$f":"IF(ISERROR(Dados!Y224),\"-\",Dados!Y224)","v":54.8},{"$f":"IF(ISERROR(Dados!Z224),\"-\",Dados!Z224)","v":9.1640145985401471},{"$f":"IF(ISERROR(Dados!AA224),\"-\",Dados!AA224)","v":"-"},{"$f":"IF(ISERROR(Dados!AB224),\"-\",Dados!AB224)","v":"-"},{"$f":"IF(ISERROR(Dados!AC224),\"-\",Dados!AC224)","v":-17.5},{"$f":"IF(ISERROR(Dados!AD224),\"-\",Dados!AD224)","v":18.3},{"$f":"IF(ISERROR(Dados!AE224),\"-\",Dados!AE224)","v":0.46736502820306203},{"$f":"IF(ISERROR(Dados!AF224),\"-\",Dados!AF224)","v":"CTKA4"},{"$f":"IF(ISERROR(Dados!AG224),\"-\",Dados!AG224)","v":54.8}]
[{"$f":"IF(ISERROR(Dados!A225),\"-\",Dados!A225)","v":"TEKA4"},{"$f":"IF(ISERROR(Dados!B225),\"-\",Dados!B225)","v":"Têxtil"},{"$f":"IF(ISERROR(Dados!C225),\"-\",Dados!C225)","v":"Teka"},{"$f":"IF(ISERROR(Dados!D225),\"-\",Dados!D225)","v":8.82},{"$f":"IF(ISERROR(Dados!E225),\"-\",Dados!E225)","v":0.503},{"$f":"IF(ISERROR(Dados!F225),\"-\",Dados!F225)","v":4.6100000000000003},{"$f":"IF(ISERROR(Dados!G225),\"-\",Dados!G225)","v":-1435.22},{"$f":"IF(ISERROR(Dados!H225),\"-\",Dados!H225)","v":132.02000000000001},{"$f":"IF(ISERROR(Dados!I225),\"-\",Dados!I225)","v":149.16},{"$f":"IF(ISERROR(Dados!J225),\"-\",Dados!J225)","v":-168.36},{"$f":"IF(ISERROR(Dados!K225),\"-\",Dados!K225)","v":-41.27},{"$f":"IF(ISERROR(Dados!L225),\"-\",Dados!L225)","v":-87.96},{"$f":"IF(ISERROR(Dados!M225),\"-\",Dados!M225)","v":-134.25},{"$f":"IF(ISERROR(Dados!N225),\"-\",Dados!N225)","v":-125.61},{"$f":"IF(ISERROR(Dados!O225),\"-\",Dados!O225)","v":-168.36},{"$f":"IF(ISERROR(Dados!P225),\"-\",Dados!P225)","v":-125.61},{"$f":"IF(ISERROR(Dados!Q225),\"-\",Dados!Q225)","v":-249.72166998011929},{"$f":"IF(ISERROR(Dados!R225),\"-\",Dados!R225)","v":"-"},{"$f":"IF(ISERROR(Dados!S225),\"-\",Dados!S225)","v":"-"},{"$f":"IF(ISERROR(Dados!T225),\"-\",Dados!T225)","v":"-"},{"$f":"IF(ISERROR(Dados!U225),\"-\",Dados!U225)","v":"-"},{"$f":"IF(ISERROR(Dados!V225),\"-\",Dados!V225)","v":-0.29666399999999998},{"$f":"IF(ISERROR(Dados!W225),\"-\",Dados!W225)","v":-13.9},{"$f":"IF(ISERROR(Dados!X225),\"-\",Dados!X225)","v":-12.5},{"$f":"IF(ISERROR(Dados!Y225),\"-\",Dados!Y225)","v":-12.5},{"$f":"IF(ISERROR(Dados!Z225),\"-\",Dados!Z225)","v":-34.429600000000001},{"$f":"IF(ISERROR(Dados!AA225),\"-\",Dados!AA225)","v":"-"},{"$f":"IF(ISERROR(Dados!AB225),\"-\",Dados!AB225)","v":"-"},{"$f":"IF(ISERROR(Dados!AC225),\"-\",Dados!AC225)","v":0.7},{"$f":"IF(ISERROR(Dados!AD225),\"-\",Dados!AD225)","v":25.1},{"$f":"IF(ISERROR(Dados!AE225),\"-\",Dados!AE225)","v":0.39761431411530818},{"$f":"IF(ISERROR(Dados!AF225),\"-\",Dados!AF225)","v":"TEKA4"},{"$f":"IF(ISERROR(Dados!AG225),\"-\",Dados!AG225)","v":-12.5}]
[{"$f":"IF(ISERROR(Dados!A226),\"-\",Dados!A226)","v":"TXRX4"},{"$f":"IF(ISERROR(Dados!B226),\"-\",Dados!B226)","v":"Têxtil"},{"$f":"IF(ISERROR(Dados!C226),\"-\",Dados!C226)","v":"Tex Renaux"},{"$f":"IF(ISERROR(Dados!D226),\"-\",Dados!D226)","v":2.2999999999999998},{"$f":"IF(ISERROR(Dados!E226),\"-\",Dados!E226)","v":4.2590000000000003},{"$f":"IF(ISERROR(Dados!F226),\"-\",Dados!F226)","v":9.8000000000000007},{"$f":"IF(ISERROR(Dados!G226),\"-\",Dados!G226)","v":-312.81},{"$f":"IF(ISERROR(Dados!H226),\"-\",Dados!H226)","v":84.95},{"$f":"IF(ISERROR(Dados!I226),\"-\",Dados!I226)","v":87.33},{"$f":"IF(ISERROR(Dados!J226),\"-\",Dados!J226)","v":96.72},{"$f":"IF(ISERROR(Dados!K226),\"-\",Dados!K226)","v":-4.5999999999999996},{"$f":"IF(ISERROR(Dados!L226),\"-\",Dados!L226)","v":-5.0599999999999996},{"$f":"IF(ISERROR(Dados!M226),\"-\",Dados!M226)","v":-9.42},{"$f":"IF(ISERROR(Dados!N226),\"-\",Dados!N226)","v":-11.44},{"$f":"IF(ISERROR(Dados!O226),\"-\",Dados!O226)","v":96.72},{"$f":"IF(ISERROR(Dados!P226),\"-\",Dados!P226)","v":-11.44},{"$f":"IF(ISERROR(Dados!Q226),\"-\",Dados!Q226)","v":-2.6860765437896217},{"$f":"IF(ISERROR(Dados!R226),\"-\",Dados!R226)","v":"-"},{"$f":"IF(ISERROR(Dados!S226),\"-\",Dados!S226)","v":"-"},{"$f":"IF(ISERROR(Dados!T226),\"-\",Dados!T226)","v":"-"},{"$f":"IF(ISERROR(Dados!U226),\"-\",Dados!U226)","v":"-"},{"$f":"IF(ISERROR(Dados!V226),\"-\",Dados!V226)","v":-0.601692},{"$f":"IF(ISERROR(Dados!W226),\"-\",Dados!W226)","v":"-"},{"$f":"IF(ISERROR(Dados!X226),\"-\",Dados!X226)","v":"-"},{"$f":"IF(ISERROR(Dados!Y226),\"-\",Dados!Y226)","v":"-"},{"$f":"IF(ISERROR(Dados!Z226),\"-\",Dados!Z226)","v":"-"},{"$f":"IF(ISERROR(Dados!AA226),\"-\",Dados!AA226)","v":"-"},{"$f":"IF(ISERROR(Dados!AB226),\"-\",Dados!AB226)","v":"-"},{"$f":"IF(ISERROR(Dados!AC226),\"-\",Dados!AC226)","v":-18.399999999999999},{"$f":"IF(ISERROR(Dados!AD226),\"-\",Dados!AD226)","v":-0.4},{"$f":"IF(ISERROR(Dados!AE226),\"-\",Dados!AE226)","v":0.35219535102136651},{"$f":"IF(ISERROR(Dados!AF226),\"-\",Dados!AF226)","v":"TXRX4"},{"$f":"IF(ISERROR(Dados!AG226),\"-\",Dados!AG226)","v":"-"}]
[{"$f":"IF(ISERROR(Dados!A227),\"-\",Dados!A227)","v":"TPIS3"},{"$f":"IF(ISERROR(Dados!B227),\"-\",Dados!B227)","v":"Transportes"},{"$f":"IF(ISERROR(Dados!C227),\"-\",Dados!C227)","v":"Triunfo Part"},{"$f":"IF(ISERROR(Dados!D227),\"-\",Dados!D227)","v":1.74},{"$f":"IF(ISERROR(Dados!E227),\"-\",Dados!E227)","v":173.50700000000001},{"$f":"IF(ISERROR(Dados!F227),\"-\",Dados!F227)","v":301.89999999999998},{"$f":"IF(ISERROR(Dados!G227),\"-\",Dados!G227)","v":1170.1199999999999},{"$f":"IF(ISERROR(Dados!H227),\"-\",Dados!H227)","v":1492.74},{"$f":"IF(ISERROR(Dados!I227),\"-\",Dados!I227)","v":"-"},{"$f":"IF(ISERROR(Dados!J227),\"-\",Dados!J227)","v":-6.64},{"$f":"IF(ISERROR(Dados!K227),\"-\",Dados!K227)","v":25.8},{"$f":"IF(ISERROR(Dados!L227),\"-\",Dados!L227)","v":-14.8},{"$f":"IF(ISERROR(Dados!M227),\"-\",Dados!M227)","v":-71.33},{"$f":"IF(ISERROR(Dados!N227),\"-\",Dados!N227)","v":"-"},{"$f":"IF(ISERROR(Dados!O227),\"-\",Dados!O227)","v":-6.64},{"$f":"IF(ISERROR(Dados!P227),\"-\",Dados!P227)","v":"-"},{"$f":"IF(ISERROR(Dados!Q227),\"-\",Dados!Q227)","v":4.2785017319185972},{"$f":"IF(ISERROR(Dados!R227),\"-\",Dados!R227)","v":6.7439354031825793},{"$f":"IF(ISERROR(Dados!S227),\"-\",Dados!S227)","v":0.2580095887601272},{"$f":"IF(ISERROR(Dados!T227),\"-\",Dados!T227)","v":0.40668442109517072},{"$f":"IF(ISERROR(Dados!U227),\"-\",Dados!U227)","v":1.2558830000000001},{"$f":"IF(ISERROR(Dados!V227),\"-\",Dados!V227)","v":1.349253},{"$f":"IF(ISERROR(Dados!W227),\"-\",Dados!W227)","v":784.1},{"$f":"IF(ISERROR(Dados!X227),\"-\",Dados!X227)","v":"-"},{"$f":"IF(ISERROR(Dados!Y227),\"-\",Dados!Y227)","v":1284.5},{"$f":"IF(ISERROR(Dados!Z227),\"-\",Dados!Z227)","v":1.5786547294667186},{"$f":"IF(ISERROR(Dados!AA227),\"-\",Dados!AA227)","v":80.209999999999994},{"$f":"IF(ISERROR(Dados!AB227),\"-\",Dados!AB227)","v":0.26568400132494202},{"$f":"IF(ISERROR(Dados!AC227),\"-\",Dados!AC227)","v":-3.9},{"$f":"IF(ISERROR(Dados!AD227),\"-\",Dados!AD227)","v":-43.9},{"$f":"IF(ISERROR(Dados!AE227),\"-\",Dados!AE227)","v":"-"},{"$f":"IF(ISERROR(Dados!AF227),\"-\",Dados!AF227)","v":"TPIS3"},{"$f":"IF(ISERROR(Dados!AG227),\"-\",Dados!AG227)","v":1284.5}]
[{"$f":"IF(ISERROR(Dados!A228),\"-\",Dados!A228)","v":"ECOR3"},{"$f":"IF(ISERROR(Dados!B228),\"-\",Dados!B228)","v":"Transportes"},{"$f":"IF(ISERROR(Dados!C228),\"-\",Dados!C228)","v":"Ecorodovias"},{"$f":"IF(ISERROR(Dados!D228),\"-\",Dados!D228)","v":9.59},{"$f":"IF(ISERROR(Dados!E228),\"-\",Dados!E228)","v":556.46299999999997},{"$f":"IF(ISERROR(Dados!F228),\"-\",Dados!F228)","v":5336.48},{"$f":"IF(ISERROR(Dados!G228),\"-\",Dados!G228)","v":640.32000000000005},{"$f":"IF(ISERROR(Dados!H228),\"-\",Dados!H228)","v":3200.7},{"$f":"IF(ISERROR(Dados!I228),\"-\",Dados!I228)","v":3169.27},{"$f":"IF(ISERROR(Dados!J228),\"-\",Dados!J228)","v":392.49},{"$f":"IF(ISERROR(Dados!K228),\"-\",Dados!K228)","v":145.58000000000001},{"$f":"IF(ISERROR(Dados!L228),\"-\",Dados!L228)","v":224.4},{"$f":"IF(ISERROR(Dados!M228),\"-\",Dados!M228)","v":317.93},{"$f":"IF(ISERROR(Dados!N228),\"-\",Dados!N228)","v":374.51},{"$f":"IF(ISERROR(Dados!O228),\"-\",Dados!O228)","v":392.49},{"$f":"IF(ISERROR(Dados!P228),\"-\",Dados!P228)","v":374.51},{"$f":"IF(ISERROR(Dados!Q228),\"-\",Dados!Q228)","v":0.67301869126968017},{"$f":"IF(ISERROR(Dados!R228),\"-\",Dados!R228)","v":1.1506964524146261},{"$f":"IF(ISERROR(Dados!S228),\"-\",Dados!S228)","v":8.3340832240129927},{"$f":"IF(ISERROR(Dados!T228),\"-\",Dados!T228)","v":14.249232784171316},{"$f":"IF(ISERROR(Dados!U228),\"-\",Dados!U228)","v":0.50508900000000001},{"$f":"IF(ISERROR(Dados!V228),\"-\",Dados!V228)","v":7.4907960000000005},{"$f":"IF(ISERROR(Dados!W228),\"-\",Dados!W228)","v":1630.2},{"$f":"IF(ISERROR(Dados!X228),\"-\",Dados!X228)","v":1617.9},{"$f":"IF(ISERROR(Dados!Y228),\"-\",Dados!Y228)","v":1617.9},{"$f":"IF(ISERROR(Dados!Z228),\"-\",Dados!Z228)","v":6.2630440694727723},{"$f":"IF(ISERROR(Dados!AA228),\"-\",Dados!AA228)","v":401.83},{"$f":"IF(ISERROR(Dados!AB228),\"-\",Dados!AB228)","v":7.5298698767727046E-2},{"$f":"IF(ISERROR(Dados!AC228),\"-\",Dados!AC228)","v":-15.3},{"$f":"IF(ISERROR(Dados!AD228),\"-\",Dados!AD228)","v":-15.9},{"$f":"IF(ISERROR(Dados!AE228),\"-\",Dados!AE228)","v":"-"},{"$f":"IF(ISERROR(Dados!AF228),\"-\",Dados!AF228)","v":"ECOR3"},{"$f":"IF(ISERROR(Dados!AG228),\"-\",Dados!AG228)","v":1617.9}]
[{"$f":"IF(ISERROR(Dados!A229),\"-\",Dados!A229)","v":"CVCB3"},{"$f":"IF(ISERROR(Dados!B229),\"-\",Dados!B229)","v":"Transportes"},{"$f":"IF(ISERROR(Dados!C229),\"-\",Dados!C229)","v":"Cvc Brasil"},{"$f":"IF(ISERROR(Dados!D229),\"-\",Dados!D229)","v":54.75},{"$f":"IF(ISERROR(Dados!E229),\"-\",Dados!E229)","v":144.95699999999999},{"$f":"IF(ISERROR(Dados!F229),\"-\",Dados!F229)","v":7936.38},{"$f":"IF(ISERROR(Dados!G229),\"-\",Dados!G229)","v":1087.94},{"$f":"IF(ISERROR(Dados!H229),\"-\",Dados!H229)","v":1185.1500000000001},{"$f":"IF(ISERROR(Dados!I229),\"-\",Dados!I229)","v":1692.57},{"$f":"IF(ISERROR(Dados!J229),\"-\",Dados!J229)","v":223.89},{"$f":"IF(ISERROR(Dados!K229),\"-\",Dados!K229)","v":81.52},{"$f":"IF(ISERROR(Dados!L229),\"-\",Dados!L229)","v":106.25},{"$f":"IF(ISERROR(Dados!M229),\"-\",Dados!M229)","v":188.81},{"$f":"IF(ISERROR(Dados!N229),\"-\",Dados!N229)","v":270.27999999999997},{"$f":"IF(ISERROR(Dados!O229),\"-\",Dados!O229)","v":223.89},{"$f":"IF(ISERROR(Dados!P229),\"-\",Dados!P229)","v":270.27999999999997},{"$f":"IF(ISERROR(Dados!Q229),\"-\",Dados!Q229)","v":1.8645529363880322},{"$f":"IF(ISERROR(Dados!R229),\"-\",Dados!R229)","v":7.5052601806052834},{"$f":"IF(ISERROR(Dados!S229),\"-\",Dados!S229)","v":7.2948836792470164},{"$f":"IF(ISERROR(Dados!T229),\"-\",Dados!T229)","v":29.363607185141337},{"$f":"IF(ISERROR(Dados!U229),\"-\",Dados!U229)","v":0.33288899999999999},{"$f":"IF(ISERROR(Dados!V229),\"-\",Dados!V229)","v":0.95715500000000009},{"$f":"IF(ISERROR(Dados!W229),\"-\",Dados!W229)","v":561.20000000000005},{"$f":"IF(ISERROR(Dados!X229),\"-\",Dados!X229)","v":659.1},{"$f":"IF(ISERROR(Dados!Y229),\"-\",Dados!Y229)","v":659.1},{"$f":"IF(ISERROR(Dados!Z229),\"-\",Dados!Z229)","v":13.660606888180853},{"$f":"IF(ISERROR(Dados!AA229),\"-\",Dados!AA229)","v":72.59},{"$f":"IF(ISERROR(Dados!AB229),\"-\",Dados!AB229)","v":9.1464874413775561E-3},{"$f":"IF(ISERROR(Dados!AC229),\"-\",Dados!AC229)","v":-6.3},{"$f":"IF(ISERROR(Dados!AD229),\"-\",Dados!AD229)","v":13.9},{"$f":"IF(ISERROR(Dados!AE229),\"-\",Dados!AE229)","v":"-"},{"$f":"IF(ISERROR(Dados!AF229),\"-\",Dados!AF229)","v":"CVCB3"},{"$f":"IF(ISERROR(Dados!AG229),\"-\",Dados!AG229)","v":659.1}]
[{"$f":"IF(ISERROR(Dados!A230),\"-\",Dados!A230)","v":"TGMA3"},{"$f":"IF(ISERROR(Dados!B230),\"-\",Dados!B230)","v":"Transportes"},{"$f":"IF(ISERROR(Dados!C230),\"-\",Dados!C230)","v":"Tegma"},{"$f":"IF(ISERROR(Dados!D230),\"-\",Dados!D230)","v":26.38},{"$f":"IF(ISERROR(Dados!E230),\"-\",Dados!E230)","v":65.938000000000002},{"$f":"IF(ISERROR(Dados!F230),\"-\",Dados!F230)","v":1739.44},{"$f":"IF(ISERROR(Dados!G230),\"-\",Dados!G230)","v":484.37},{"$f":"IF(ISERROR(Dados!H230),\"-\",Dados!H230)","v":1083.98},{"$f":"IF(ISERROR(Dados!I230),\"-\",Dados!I230)","v":1253.78},{"$f":"IF(ISERROR(Dados!J230),\"-\",Dados!J230)","v":103.76},{"$f":"IF(ISERROR(Dados!K230),\"-\",Dados!K230)","v":14},{"$f":"IF(ISERROR(Dados!L230),\"-\",Dados!L230)","v":42.18},{"$f":"IF(ISERROR(Dados!M230),\"-\",Dados!M230)","v":73.290000000000006},{"$f":"IF(ISERROR(Dados!N230),\"-\",Dados!N230)","v":108.25},{"$f":"IF(ISERROR(Dados!O230),\"-\",Dados!O230)","v":103.76},{"$f":"IF(ISERROR(Dados!P230),\"-\",Dados!P230)","v":108.25},{"$f":"IF(ISERROR(Dados!Q230),\"-\",Dados!Q230)","v":1.6416937122751676},{"$f":"IF(ISERROR(Dados!R230),\"-\",Dados!R230)","v":7.3458400315447845},{"$f":"IF(ISERROR(Dados!S230),\"-\",Dados!S230)","v":3.5911481718520966},{"$f":"IF(ISERROR(Dados!T230),\"-\",Dados!T230)","v":16.068770808314088},{"$f":"IF(ISERROR(Dados!U230),\"-\",Dados!U230)","v":0.24119299999999999},{"$f":"IF(ISERROR(Dados!V230),\"-\",Dados!V230)","v":0.15826299999999999},{"$f":"IF(ISERROR(Dados!W230),\"-\",Dados!W230)","v":136.9},{"$f":"IF(ISERROR(Dados!X230),\"-\",Dados!X230)","v":182.7},{"$f":"IF(ISERROR(Dados!Y230),\"-\",Dados!Y230)","v":182.7},{"$f":"IF(ISERROR(Dados!Z230),\"-\",Dados!Z230)","v":9.9403284072249587},{"$f":"IF(ISERROR(Dados!AA230),\"-\",Dados!AA230)","v":75.5},{"$f":"IF(ISERROR(Dados!AB230),\"-\",Dados!AB230)","v":4.3404773950236855E-2},{"$f":"IF(ISERROR(Dados!AC230),\"-\",Dados!AC230)","v":-4.2},{"$f":"IF(ISERROR(Dados!AD230),\"-\",Dados!AD230)","v":40.299999999999997},{"$f":"IF(ISERROR(Dados!AE230),\"-\",Dados!AE230)","v":"-"},{"$f":"IF(ISERROR(Dados!AF230),\"-\",Dados!AF230)","v":"TGMA3"},{"$f":"IF(ISERROR(Dados!AG230),\"-\",Dados!AG230)","v":182.7}]
[{"$f":"IF(ISERROR(Dados!A231),\"-\",Dados!A231)","v":"JSLG3"},{"$f":"IF(ISERROR(Dados!B231),\"-\",Dados!B231)","v":"Transportes"},{"$f":"IF(ISERROR(Dados!C231),\"-\",Dados!C231)","v":"JSL"},{"$f":"IF(ISERROR(Dados!D231),\"-\",Dados!D231)","v":9.92},{"$f":"IF(ISERROR(Dados!E231),\"-\",Dados!E231)","v":205.11500000000001},{"$f":"IF(ISERROR(Dados!F231),\"-\",Dados!F231)","v":2034.74},{"$f":"IF(ISERROR(Dados!G231),\"-\",Dados!G231)","v":753.15},{"$f":"IF(ISERROR(Dados!H231),\"-\",Dados!H231)","v":7255.8},{"$f":"IF(ISERROR(Dados!I231),\"-\",Dados!I231)","v":8075.39},{"$f":"IF(ISERROR(Dados!J231),\"-\",Dados!J231)","v":-2.74},{"$f":"IF(ISERROR(Dados!K231),\"-\",Dados!K231)","v":13.58},{"$f":"IF(ISERROR(Dados!L231),\"-\",Dados!L231)","v":46.89},{"$f":"IF(ISERROR(Dados!M231),\"-\",Dados!M231)","v":86.09},{"$f":"IF(ISERROR(Dados!N231),\"-\",Dados!N231)","v":131.27000000000001},{"$f":"IF(ISERROR(Dados!O231),\"-\",Dados!O231)","v":-2.74},{"$f":"IF(ISERROR(Dados!P231),\"-\",Dados!P231)","v":131.27000000000001},{"$f":"IF(ISERROR(Dados!Q231),\"-\",Dados!Q231)","v":0.63998244887014599},{"$f":"IF(ISERROR(Dados!R231),\"-\",Dados!R231)","v":3.6718426248689755},{"$f":"IF(ISERROR(Dados!S231),\"-\",Dados!S231)","v":2.7016408417977829},{"$f":"IF(ISERROR(Dados!T231),\"-\",Dados!T231)","v":15.500425078083341},{"$f":"IF(ISERROR(Dados!U231),\"-\",Dados!U231)","v":0.159057},{"$f":"IF(ISERROR(Dados!V231),\"-\",Dados!V231)","v":5.7285680000000001},{"$f":"IF(ISERROR(Dados!W231),\"-\",Dados!W231)","v":1230.2},{"$f":"IF(ISERROR(Dados!X231),\"-\",Dados!X231)","v":1597.5},{"$f":"IF(ISERROR(Dados!Y231),\"-\",Dados!Y231)","v":1597.5},{"$f":"IF(ISERROR(Dados!Z231),\"-\",Dados!Z231)","v":5.7507680751173718},{"$f":"IF(ISERROR(Dados!AA231),\"-\",Dados!AA231)","v":"-"},{"$f":"IF(ISERROR(Dados!AB231),\"-\",Dados!AB231)","v":"-"},{"$f":"IF(ISERROR(Dados!AC231),\"-\",Dados!AC231)","v":2.6},{"$f":"IF(ISERROR(Dados!AD231),\"-\",Dados!AD231)","v":23},{"$f":"IF(ISERROR(Dados!AE231),\"-\",Dados!AE231)","v":"-"},{"$f":"IF(ISERROR(Dados!AF231),\"-\",Dados!AF231)","v":"JSLG3"},{"$f":"IF(ISERROR(Dados!AG231),\"-\",Dados!AG231)","v":1597.5}]
[{"$f":"IF(ISERROR(Dados!A232),\"-\",Dados!A232)","v":"AZUL4"},{"$f":"IF(ISERROR(Dados!B232),\"-\",Dados!B232)","v":"Transportes"},{"$f":"IF(ISERROR(Dados!C232),\"-\",Dados!C232)","v":"Azul S.A."},{"$f":"IF(ISERROR(Dados!D232),\"-\",Dados!D232)","v":38.270000000000003},{"$f":"IF(ISERROR(Dados!E232),\"-\",Dados!E232)","v":338.37900000000002},{"$f":"IF(ISERROR(Dados!F232),\"-\",Dados!F232)","v":12949.76},{"$f":"IF(ISERROR(Dados!G232),\"-\",Dados!G232)","v":3163.7},{"$f":"IF(ISERROR(Dados!H232),\"-\",Dados!H232)","v":7789.5},{"$f":"IF(ISERROR(Dados!I232),\"-\",Dados!I232)","v":9153.36},{"$f":"IF(ISERROR(Dados!J232),\"-\",Dados!J232)","v":529.04},{"$f":"IF(ISERROR(Dados!K232),\"-\",Dados!K232)","v":210.55},{"$f":"IF(ISERROR(Dados!L232),\"-\",Dados!L232)","v":165.54},{"$f":"IF(ISERROR(Dados!M232),\"-\",Dados!M232)","v":282.11},{"$f":"IF(ISERROR(Dados!N232),\"-\",Dados!N232)","v":420.28},{"$f":"IF(ISERROR(Dados!O232),\"-\",Dados!O232)","v":529.04},{"$f":"IF(ISERROR(Dados!P232),\"-\",Dados!P232)","v":420.28},{"$f":"IF(ISERROR(Dados!Q232),\"-\",Dados!Q232)","v":1.2420392518448247},{"$f":"IF(ISERROR(Dados!R232),\"-\",Dados!R232)","v":9.349575476019492},{"$f":"IF(ISERROR(Dados!S232),\"-\",Dados!S232)","v":4.0932339760407128},{"$f":"IF(ISERROR(Dados!T232),\"-\",Dados!T232)","v":30.812230727134299},{"$f":"IF(ISERROR(Dados!U232),\"-\",Dados!U232)","v":0.14831899999999998},{"$f":"IF(ISERROR(Dados!V232),\"-\",Dados!V232)","v":0.63832299999999997},{"$f":"IF(ISERROR(Dados!W232),\"-\",Dados!W232)","v":1164.8},{"$f":"IF(ISERROR(Dados!X232),\"-\",Dados!X232)","v":850.4},{"$f":"IF(ISERROR(Dados!Y232),\"-\",Dados!Y232)","v":850.4},{"$f":"IF(ISERROR(Dados!Z232),\"-\",Dados!Z232)","v":17.602567027281278},{"$f":"IF(ISERROR(Dados!AA232),\"-\",Dados!AA232)","v":"-"},{"$f":"IF(ISERROR(Dados!AB232),\"-\",Dados!AB232)","v":"-"},{"$f":"IF(ISERROR(Dados!AC232),\"-\",Dados!AC232)","v":1.6},{"$f":"IF(ISERROR(Dados!AD232),\"-\",Dados!AD232)","v":42.3},{"$f":"IF(ISERROR(Dados!AE232),\"-\",Dados!AE232)","v":"-"},{"$f":"IF(ISERROR(Dados!AF232),\"-\",Dados!AF232)","v":"AZUL4"},{"$f":"IF(ISERROR(Dados!AG232),\"-\",Dados!AG232)","v":850.4}]
[{"$f":"IF(ISERROR(Dados!A233),\"-\",Dados!A233)","v":"CCRO3"},{"$f":"IF(ISERROR(Dados!B233),\"-\",Dados!B233)","v":"Transportes"},{"$f":"IF(ISERROR(Dados!C233),\"-\",Dados!C233)","v":"CCR SA"},{"$f":"IF(ISERROR(Dados!D233),\"-\",Dados!D233)","v":11.74},{"$f":"IF(ISERROR(Dados!E233),\"-\",Dados!E233)","v":2020},{"$f":"IF(ISERROR(Dados!F233),\"-\",Dados!F233)","v":23714.799999999999},{"$f":"IF(ISERROR(Dados!G233),\"-\",Dados!G233)","v":8231.49},{"$f":"IF(ISERROR(Dados!H233),\"-\",Dados!H233)","v":10561},{"$f":"IF(ISERROR(Dados!I233),\"-\",Dados!I233)","v":9715.86},{"$f":"IF(ISERROR(Dados!J233),\"-\",Dados!J233)","v":1797.47},{"$f":"IF(ISERROR(Dados!K233),\"-\",Dados!K233)","v":446.75},{"$f":"IF(ISERROR(Dados!L233),\"-\",Dados!L233)","v":724.45},{"$f":"IF(ISERROR(Dados!M233),\"-\",Dados!M233)","v":1089.8},{"$f":"IF(ISERROR(Dados!N233),\"-\",Dados!N233)","v":782.74},{"$f":"IF(ISERROR(Dados!O233),\"-\",Dados!O233)","v":1797.47},{"$f":"IF(ISERROR(Dados!P233),\"-\",Dados!P233)","v":782.74},{"$f":"IF(ISERROR(Dados!Q233),\"-\",Dados!Q233)","v":0.38749504950495051},{"$f":"IF(ISERROR(Dados!R233),\"-\",Dados!R233)","v":4.0749950495049507},{"$f":"IF(ISERROR(Dados!S233),\"-\",Dados!S233)","v":2.8809850950435463},{"$f":"IF(ISERROR(Dados!T233),\"-\",Dados!T233)","v":30.297161254056263},{"$f":"IF(ISERROR(Dados!U233),\"-\",Dados!U233)","v":7.4912000000000006E-2},{"$f":"IF(ISERROR(Dados!V233),\"-\",Dados!V233)","v":1.6606899999999998},{"$f":"IF(ISERROR(Dados!W233),\"-\",Dados!W233)","v":5052.3},{"$f":"IF(ISERROR(Dados!X233),\"-\",Dados!X233)","v":3817.8},{"$f":"IF(ISERROR(Dados!Y233),\"-\",Dados!Y233)","v":3817.8},{"$f":"IF(ISERROR(Dados!Z233),\"-\",Dados!Z233)","v":9.8797626905547684},{"$f":"IF(ISERROR(Dados!AA233),\"-\",Dados!AA233)","v":1199.98},{"$f":"IF(ISERROR(Dados!AB233),\"-\",Dados!AB233)","v":5.060046890549362E-2},{"$f":"IF(ISERROR(Dados!AC233),\"-\",Dados!AC233)","v":-17.5},{"$f":"IF(ISERROR(Dados!AD233),\"-\",Dados!AD233)","v":-23.3},{"$f":"IF(ISERROR(Dados!AE233),\"-\",Dados!AE233)","v":1},{"$f":"IF(ISERROR(Dados!AF233),\"-\",Dados!AF233)","v":"CCRO3"},{"$f":"IF(ISERROR(Dados!AG233),\"-\",Dados!AG233)","v":3817.8}]
[{"$f":"IF(ISERROR(Dados!A234),\"-\",Dados!A234)","v":"RAIL3"},{"$f":"IF(ISERROR(Dados!B234),\"-\",Dados!B234)","v":"Transportes"},{"$f":"IF(ISERROR(Dados!C234),\"-\",Dados!C234)","v":"Rumo S.A."},{"$f":"IF(ISERROR(Dados!D234),\"-\",Dados!D234)","v":19.149999999999999},{"$f":"IF(ISERROR(Dados!E234),\"-\",Dados!E234)","v":1559.0160000000001},{"$f":"IF(ISERROR(Dados!F234),\"-\",Dados!F234)","v":29855.15},{"$f":"IF(ISERROR(Dados!G234),\"-\",Dados!G234)","v":8028.2},{"$f":"IF(ISERROR(Dados!H234),\"-\",Dados!H234)","v":5946.35},{"$f":"IF(ISERROR(Dados!I234),\"-\",Dados!I234)","v":6584.94},{"$f":"IF(ISERROR(Dados!J234),\"-\",Dados!J234)","v":-260.81},{"$f":"IF(ISERROR(Dados!K234),\"-\",Dados!K234)","v":-58.96},{"$f":"IF(ISERROR(Dados!L234),\"-\",Dados!L234)","v":-94.7},{"$f":"IF(ISERROR(Dados!M234),\"-\",Dados!M234)","v":131.09},{"$f":"IF(ISERROR(Dados!N234),\"-\",Dados!N234)","v":264.36},{"$f":"IF(ISERROR(Dados!O234),\"-\",Dados!O234)","v":-260.81},{"$f":"IF(ISERROR(Dados!P234),\"-\",Dados!P234)","v":264.36},{"$f":"IF(ISERROR(Dados!Q234),\"-\",Dados!Q234)","v":0.16956849705198665},{"$f":"IF(ISERROR(Dados!R234),\"-\",Dados!R234)","v":5.149530216495533},{"$f":"IF(ISERROR(Dados!S234),\"-\",Dados!S234)","v":3.7187858299494279},{"$f":"IF(ISERROR(Dados!T234),\"-\",Dados!T234)","v":112.93371311847478},{"$f":"IF(ISERROR(Dados!U234),\"-\",Dados!U234)","v":3.4037999999999999E-2},{"$f":"IF(ISERROR(Dados!V234),\"-\",Dados!V234)","v":1.2601959999999999},{"$f":"IF(ISERROR(Dados!W234),\"-\",Dados!W234)","v":2757},{"$f":"IF(ISERROR(Dados!X234),\"-\",Dados!X234)","v":3242},{"$f":"IF(ISERROR(Dados!Y234),\"-\",Dados!Y234)","v":3242},{"$f":"IF(ISERROR(Dados!Z234),\"-\",Dados!Z234)","v":12.433067242442936},{"$f":"IF(ISERROR(Dados!AA234),\"-\",Dados!AA234)","v":"-"},{"$f":"IF(ISERROR(Dados!AB234),\"-\",Dados!AB234)","v":"-"},{"$f":"IF(ISERROR(Dados!AC234),\"-\",Dados!AC234)","v":-1.6},{"$f":"IF(ISERROR(Dados!AD234),\"-\",Dados!AD234)","v":47.6},{"$f":"IF(ISERROR(Dados!AE234),\"-\",Dados!AE234)","v":0.99998973711623229},{"$f":"IF(ISERROR(Dados!AF234),\"-\",Dados!AF234)","v":"RAIL3"},{"$f":"IF(ISERROR(Dados!AG234),\"-\",Dados!AG234)","v":3242}]
[{"$f":"IF(ISERROR(Dados!A235),\"-\",Dados!A235)","v":"GOLL4"},{"$f":"IF(ISERROR(Dados!B235),\"-\",Dados!B235)","v":"Transportes"},{"$f":"IF(ISERROR(Dados!C235),\"-\",Dados!C235)","v":"Gol"},{"$f":"IF(ISERROR(Dados!D235),\"-\",Dados!D235)","v":25.9},{"$f":"IF(ISERROR(Dados!E235),\"-\",Dados!E235)","v":347.71899999999999},{"$f":"IF(ISERROR(Dados!F235),\"-\",Dados!F235)","v":9005.92},{"$f":"IF(ISERROR(Dados!G235),\"-\",Dados!G235)","v":-4985.41},{"$f":"IF(ISERROR(Dados!H235),\"-\",Dados!H235)","v":10576.02},{"$f":"IF(ISERROR(Dados!I235),\"-\",Dados!I235)","v":11411.35},{"$f":"IF(ISERROR(Dados!J235),\"-\",Dados!J235)","v":19.18},{"$f":"IF(ISERROR(Dados!K235),\"-\",Dados!K235)","v":147.47},{"$f":"IF(ISERROR(Dados!L235),\"-\",Dados!L235)","v":-1178.51},{"$f":"IF(ISERROR(Dados!M235),\"-\",Dados!M235)","v":-1587.75},{"$f":"IF(ISERROR(Dados!N235),\"-\",Dados!N235)","v":-1085.3900000000001},{"$f":"IF(ISERROR(Dados!O235),\"-\",Dados!O235)","v":19.18},{"$f":"IF(ISERROR(Dados!P235),\"-\",Dados!P235)","v":-1085.3900000000001},{"$f":"IF(ISERROR(Dados!Q235),\"-\",Dados!Q235)","v":-3.121457268656588},{"$f":"IF(ISERROR(Dados!R235),\"-\",Dados!R235)","v":"-"},{"$f":"IF(ISERROR(Dados!S235),\"-\",Dados!S235)","v":"-"},{"$f":"IF(ISERROR(Dados!T235),\"-\",Dados!T235)","v":"-"},{"$f":"IF(ISERROR(Dados!U235),\"-\",Dados!U235)","v":"-"},{"$f":"IF(ISERROR(Dados!V235),\"-\",Dados!V235)","v":-1.2828999999999999},{"$f":"IF(ISERROR(Dados!W235),\"-\",Dados!W235)","v":1495.2},{"$f":"IF(ISERROR(Dados!X235),\"-\",Dados!X235)","v":2068.5},{"$f":"IF(ISERROR(Dados!Y235),\"-\",Dados!Y235)","v":2068.5},{"$f":"IF(ISERROR(Dados!Z235),\"-\",Dados!Z235)","v":7.148095721537346},{"$f":"IF(ISERROR(Dados!AA235),\"-\",Dados!AA235)","v":"-"},{"$f":"IF(ISERROR(Dados!AB235),\"-\",Dados!AB235)","v":"-"},{"$f":"IF(ISERROR(Dados!AC235),\"-\",Dados!AC235)","v":-2.9},{"$f":"IF(ISERROR(Dados!AD235),\"-\",Dados!AD235)","v":77.400000000000006},{"$f":"IF(ISERROR(Dados!AE235),\"-\",Dados!AE235)","v":"-"},{"$f":"IF(ISERROR(Dados!AF235),\"-\",Dados!AF235)","v":"GOLL4"},{"$f":"IF(ISERROR(Dados!AG235),\"-\",Dados!AG235)","v":2068.5}]
[{"$f":"IF(ISERROR(Dados!A236),\"-\",Dados!A236)","v":"LOGN3"},{"$f":"IF(ISERROR(Dados!B236),\"-\",Dados!B236)","v":"Transportes"},{"$f":"IF(ISERROR(Dados!C236),\"-\",Dados!C236)","v":"Log-In"},{"$f":"IF(ISERROR(Dados!D236),\"-\",Dados!D236)","v":8.36},{"$f":"IF(ISERROR(Dados!E236),\"-\",Dados!E236)","v":36.856000000000002},{"$f":"IF(ISERROR(Dados!F236),\"-\",Dados!F236)","v":308.12},{"$f":"IF(ISERROR(Dados!G236),\"-\",Dados!G236)","v":-354.75},{"$f":"IF(ISERROR(Dados!H236),\"-\",Dados!H236)","v":872.17},{"$f":"IF(ISERROR(Dados!I236),\"-\",Dados!I236)","v":977.43},{"$f":"IF(ISERROR(Dados!J236),\"-\",Dados!J236)","v":-606.87},{"$f":"IF(ISERROR(Dados!K236),\"-\",Dados!K236)","v":41.72},{"$f":"IF(ISERROR(Dados!L236),\"-\",Dados!L236)","v":-11.21},{"$f":"IF(ISERROR(Dados!M236),\"-\",Dados!M236)","v":-9.19},{"$f":"IF(ISERROR(Dados!N236),\"-\",Dados!N236)","v":6},{"$f":"IF(ISERROR(Dados!O236),\"-\",Dados!O236)","v":-606.87},{"$f":"IF(ISERROR(Dados!P236),\"-\",Dados!P236)","v":6},{"$f":"IF(ISERROR(Dados!Q236),\"-\",Dados!Q236)","v":0.16279574560451487},{"$f":"IF(ISERROR(Dados!R236),\"-\",Dados!R236)","v":"-"},{"$f":"IF(ISERROR(Dados!S236),\"-\",Dados!S236)","v":"-"},{"$f":"IF(ISERROR(Dados!T236),\"-\",Dados!T236)","v":51.352693333333328},{"$f":"IF(ISERROR(Dados!U236),\"-\",Dados!U236)","v":"-"},{"$f":"IF(ISERROR(Dados!V236),\"-\",Dados!V236)","v":-3.4718110000000002},{"$f":"IF(ISERROR(Dados!W236),\"-\",Dados!W236)","v":-442.7},{"$f":"IF(ISERROR(Dados!X236),\"-\",Dados!X236)","v":198},{"$f":"IF(ISERROR(Dados!Y236),\"-\",Dados!Y236)","v":198},{"$f":"IF(ISERROR(Dados!Z236),\"-\",Dados!Z236)","v":7.7743333333333347},{"$f":"IF(ISERROR(Dados!AA236),\"-\",Dados!AA236)","v":"-"},{"$f":"IF(ISERROR(Dados!AB236),\"-\",Dados!AB236)","v":"-"},{"$f":"IF(ISERROR(Dados!AC236),\"-\",Dados!AC236)","v":-6.4},{"$f":"IF(ISERROR(Dados!AD236),\"-\",Dados!AD236)","v":173.9},{"$f":"IF(ISERROR(Dados!AE236),\"-\",Dados!AE236)","v":"-"},{"$f":"IF(ISERROR(Dados!AF236),\"-\",Dados!AF236)","v":"LOGN3"},{"$f":"IF(ISERROR(Dados!AG236),\"-\",Dados!AG236)","v":198}]
[{"$f":"IF(ISERROR(Dados!A237),\"-\",Dados!A237)","v":"LEVE3"},{"$f":"IF(ISERROR(Dados!B237),\"-\",Dados!B237)","v":"Veículos e peças"},{"$f":"IF(ISERROR(Dados!C237),\"-\",Dados!C237)","v":"Metal Leve"},{"$f":"IF(ISERROR(Dados!D237),\"-\",Dados!D237)","v":24.3},{"$f":"IF(ISERROR(Dados!E237),\"-\",Dados!E237)","v":128.309},{"$f":"IF(ISERROR(Dados!F237),\"-\",Dados!F237)","v":3117.9},{"$f":"IF(ISERROR(Dados!G237),\"-\",Dados!G237)","v":1356.36},{"$f":"IF(ISERROR(Dados!H237),\"-\",Dados!H237)","v":2264.44},{"$f":"IF(ISERROR(Dados!I237),\"-\",Dados!I237)","v":2591.65},{"$f":"IF(ISERROR(Dados!J237),\"-\",Dados!J237)","v":237.31},{"$f":"IF(ISERROR(Dados!K237),\"-\",Dados!K237)","v":71.38},{"$f":"IF(ISERROR(Dados!L237),\"-\",Dados!L237)","v":131.59},{"$f":"IF(ISERROR(Dados!M237),\"-\",Dados!M237)","v":223.81},{"$f":"IF(ISERROR(Dados!N237),\"-\",Dados!N237)","v":291.68},{"$f":"IF(ISERROR(Dados!O237),\"-\",Dados!O237)","v":237.31},{"$f":"IF(ISERROR(Dados!P237),\"-\",Dados!P237)","v":291.68},{"$f":"IF(ISERROR(Dados!Q237),\"-\",Dados!Q237)","v":2.2732622029631595},{"$f":"IF(ISERROR(Dados!R237),\"-\",Dados!R237)","v":10.571043340685376},{"$f":"IF(ISERROR(Dados!S237),\"-\",Dados!S237)","v":2.2987324161726979},{"$f":"IF(ISERROR(Dados!T237),\"-\",Dados!T237)","v":10.689484023587493},{"$f":"IF(ISERROR(Dados!U237),\"-\",Dados!U237)","v":0.21704100000000001},{"$f":"IF(ISERROR(Dados!V237),\"-\",Dados!V237)","v":0.14341300000000001},{"$f":"IF(ISERROR(Dados!W237),\"-\",Dados!W237)","v":405.4},{"$f":"IF(ISERROR(Dados!X237),\"-\",Dados!X237)","v":466.8},{"$f":"IF(ISERROR(Dados!Y237),\"-\",Dados!Y237)","v":466.8},{"$f":"IF(ISERROR(Dados!Z237),\"-\",Dados!Z237)","v":7.0949657240788353},{"$f":"IF(ISERROR(Dados!AA237),\"-\",Dados!AA237)","v":229.89},{"$f":"IF(ISERROR(Dados!AB237),\"-\",Dados!AB237)","v":7.3732319830655244E-2},{"$f":"IF(ISERROR(Dados!AC237),\"-\",Dados!AC237)","v":-7.7},{"$f":"IF(ISERROR(Dados!AD237),\"-\",Dados!AD237)","v":9.9},{"$f":"IF(ISERROR(Dados!AE237),\"-\",Dados!AE237)","v":0.99992985682999647},{"$f":"IF(ISERROR(Dados!AF237),\"-\",Dados!AF237)","v":"LEVE3"},{"$f":"IF(ISERROR(Dados!AG237),\"-\",Dados!AG237)","v":466.8}]
[{"$f":"IF(ISERROR(Dados!A238),\"-\",Dados!A238)","v":"SHUL4"},{"$f":"IF(ISERROR(Dados!B238),\"-\",Dados!B238)","v":"Veículos e peças"},{"$f":"IF(ISERROR(Dados!C238),\"-\",Dados!C238)","v":"Schulz"},{"$f":"IF(ISERROR(Dados!D238),\"-\",Dados!D238)","v":7.47},{"$f":"IF(ISERROR(Dados!E238),\"-\",Dados!E238)","v":88.950999999999993},{"$f":"IF(ISERROR(Dados!F238),\"-\",Dados!F238)","v":664.46},{"$f":"IF(ISERROR(Dados!G238),\"-\",Dados!G238)","v":540.71},{"$f":"IF(ISERROR(Dados!H238),\"-\",Dados!H238)","v":686.77},{"$f":"IF(ISERROR(Dados!I238),\"-\",Dados!I238)","v":946.59},{"$f":"IF(ISERROR(Dados!J238),\"-\",Dados!J238)","v":40.119999999999997},{"$f":"IF(ISERROR(Dados!K238),\"-\",Dados!K238)","v":12.29},{"$f":"IF(ISERROR(Dados!L238),\"-\",Dados!L238)","v":27.91},{"$f":"IF(ISERROR(Dados!M238),\"-\",Dados!M238)","v":50.08},{"$f":"IF(ISERROR(Dados!N238),\"-\",Dados!N238)","v":70.22},{"$f":"IF(ISERROR(Dados!O238),\"-\",Dados!O238)","v":40.119999999999997},{"$f":"IF(ISERROR(Dados!P238),\"-\",Dados!P238)","v":70.22},{"$f":"IF(ISERROR(Dados!Q238),\"-\",Dados!Q238)","v":0.78942339040595388},{"$f":"IF(ISERROR(Dados!R238),\"-\",Dados!R238)","v":6.0787399804386695},{"$f":"IF(ISERROR(Dados!S238),\"-\",Dados!S238)","v":1.2288730927854115},{"$f":"IF(ISERROR(Dados!T238),\"-\",Dados!T238)","v":9.4626028197094829},{"$f":"IF(ISERROR(Dados!U238),\"-\",Dados!U238)","v":0.144121},{"$f":"IF(ISERROR(Dados!V238),\"-\",Dados!V238)","v":0.39951300000000001},{"$f":"IF(ISERROR(Dados!W238),\"-\",Dados!W238)","v":91.3},{"$f":"IF(ISERROR(Dados!X238),\"-\",Dados!X238)","v":122},{"$f":"IF(ISERROR(Dados!Y238),\"-\",Dados!Y238)","v":122},{"$f":"IF(ISERROR(Dados!Z238),\"-\",Dados!Z238)","v":7.2170409836065579},{"$f":"IF(ISERROR(Dados!AA238),\"-\",Dados!AA238)","v":17.57},{"$f":"IF(ISERROR(Dados!AB238),\"-\",Dados!AB238)","v":2.6442524756945487E-2},{"$f":"IF(ISERROR(Dados!AC238),\"-\",Dados!AC238)","v":4.2},{"$f":"IF(ISERROR(Dados!AD238),\"-\",Dados!AD238)","v":58.4},{"$f":"IF(ISERROR(Dados!AE238),\"-\",Dados!AE238)","v":0.42944992186709541},{"$f":"IF(ISERROR(Dados!AF238),\"-\",Dados!AF238)","v":"SHUL4"},{"$f":"IF(ISERROR(Dados!AG238),\"-\",Dados!AG238)","v":122}]
[{"$f":"IF(ISERROR(Dados!A239),\"-\",Dados!A239)","v":"TUPY3"},{"$f":"IF(ISERROR(Dados!B239),\"-\",Dados!B239)","v":"Veículos e peças"},{"$f":"IF(ISERROR(Dados!C239),\"-\",Dados!C239)","v":"Tupy"},{"$f":"IF(ISERROR(Dados!D239),\"-\",Dados!D239)","v":18.12},{"$f":"IF(ISERROR(Dados!E239),\"-\",Dados!E239)","v":144.16399999999999},{"$f":"IF(ISERROR(Dados!F239),\"-\",Dados!F239)","v":2612.25},{"$f":"IF(ISERROR(Dados!G239),\"-\",Dados!G239)","v":2199.96},{"$f":"IF(ISERROR(Dados!H239),\"-\",Dados!H239)","v":3706.15},{"$f":"IF(ISERROR(Dados!I239),\"-\",Dados!I239)","v":4828.22},{"$f":"IF(ISERROR(Dados!J239),\"-\",Dados!J239)","v":153.4},{"$f":"IF(ISERROR(Dados!K239),\"-\",Dados!K239)","v":56.89},{"$f":"IF(ISERROR(Dados!L239),\"-\",Dados!L239)","v":105.17},{"$f":"IF(ISERROR(Dados!M239),\"-\",Dados!M239)","v":193.81},{"$f":"IF(ISERROR(Dados!N239),\"-\",Dados!N239)","v":271.72000000000003},{"$f":"IF(ISERROR(Dados!O239),\"-\",Dados!O239)","v":153.4},{"$f":"IF(ISERROR(Dados!P239),\"-\",Dados!P239)","v":271.72000000000003},{"$f":"IF(ISERROR(Dados!Q239),\"-\",Dados!Q239)","v":1.8847978690935328},{"$f":"IF(ISERROR(Dados!R239),\"-\",Dados!R239)","v":15.260120418412365},{"$f":"IF(ISERROR(Dados!S239),\"-\",Dados!S239)","v":1.1874087165221185},{"$f":"IF(ISERROR(Dados!T239),\"-\",Dados!T239)","v":9.6137629913145872},{"$f":"IF(ISERROR(Dados!U239),\"-\",Dados!U239)","v":0.13700300000000001},{"$f":"IF(ISERROR(Dados!V239),\"-\",Dados!V239)","v":0.31509199999999998},{"$f":"IF(ISERROR(Dados!W239),\"-\",Dados!W239)","v":447.4},{"$f":"IF(ISERROR(Dados!X239),\"-\",Dados!X239)","v":649.29999999999995},{"$f":"IF(ISERROR(Dados!Y239),\"-\",Dados!Y239)","v":649.29999999999995},{"$f":"IF(ISERROR(Dados!Z239),\"-\",Dados!Z239)","v":5.0907746804250733},{"$f":"IF(ISERROR(Dados!AA239),\"-\",Dados!AA239)","v":174.95},{"$f":"IF(ISERROR(Dados!AB239),\"-\",Dados!AB239)","v":6.6972916068523305E-2},{"$f":"IF(ISERROR(Dados!AC239),\"-\",Dados!AC239)","v":3.4},{"$f":"IF(ISERROR(Dados!AD239),\"-\",Dados!AD239)","v":11.1},{"$f":"IF(ISERROR(Dados!AE239),\"-\",Dados!AE239)","v":"-"},{"$f":"IF(ISERROR(Dados!AF239),\"-\",Dados!AF239)","v":"TUPY3"},{"$f":"IF(ISERROR(Dados!AG239),\"-\",Dados!AG239)","v":649.29999999999995}]
[{"$f":"IF(ISERROR(Dados!A240),\"-\",Dados!A240)","v":"RAPT4"},{"$f":"IF(ISERROR(Dados!B240),\"-\",Dados!B240)","v":"Veículos e peças"},{"$f":"IF(ISERROR(Dados!C240),\"-\",Dados!C240)","v":"Randon Part"},{"$f":"IF(ISERROR(Dados!D240),\"-\",Dados!D240)","v":9.6999999999999993},{"$f":"IF(ISERROR(Dados!E240),\"-\",Dados!E240)","v":342.43099999999998},{"$f":"IF(ISERROR(Dados!F240),\"-\",Dados!F240)","v":3053.59},{"$f":"IF(ISERROR(Dados!G240),\"-\",Dados!G240)","v":1527.31},{"$f":"IF(ISERROR(Dados!H240),\"-\",Dados!H240)","v":2936.76},{"$f":"IF(ISERROR(Dados!I240),\"-\",Dados!I240)","v":4262.6000000000004},{"$f":"IF(ISERROR(Dados!J240),\"-\",Dados!J240)","v":46.71},{"$f":"IF(ISERROR(Dados!K240),\"-\",Dados!K240)","v":43.2},{"$f":"IF(ISERROR(Dados!L240),\"-\",Dados!L240)","v":74.63},{"$f":"IF(ISERROR(Dados!M240),\"-\",Dados!M240)","v":116.28},{"$f":"IF(ISERROR(Dados!N240),\"-\",Dados!N240)","v":151.72},{"$f":"IF(ISERROR(Dados!O240),\"-\",Dados!O240)","v":46.71},{"$f":"IF(ISERROR(Dados!P240),\"-\",Dados!P240)","v":151.72},{"$f":"IF(ISERROR(Dados!Q240),\"-\",Dados!Q240)","v":0.44306736247594408},{"$f":"IF(ISERROR(Dados!R240),\"-\",Dados!R240)","v":4.4601978208748623},{"$f":"IF(ISERROR(Dados!S240),\"-\",Dados!S240)","v":2.1747914306853224},{"$f":"IF(ISERROR(Dados!T240),\"-\",Dados!T240)","v":21.892833509095698},{"$f":"IF(ISERROR(Dados!U240),\"-\",Dados!U240)","v":0.118918},{"$f":"IF(ISERROR(Dados!V240),\"-\",Dados!V240)","v":0.54322000000000004},{"$f":"IF(ISERROR(Dados!W240),\"-\",Dados!W240)","v":308.2},{"$f":"IF(ISERROR(Dados!X240),\"-\",Dados!X240)","v":559.70000000000005},{"$f":"IF(ISERROR(Dados!Y240),\"-\",Dados!Y240)","v":559.70000000000005},{"$f":"IF(ISERROR(Dados!Z240),\"-\",Dados!Z240)","v":7.4405109880292999},{"$f":"IF(ISERROR(Dados!AA240),\"-\",Dados!AA240)","v":34.92},{"$f":"IF(ISERROR(Dados!AB240),\"-\",Dados!AB240)","v":1.14357199231069E-2},{"$f":"IF(ISERROR(Dados!AC240),\"-\",Dados!AC240)","v":0.5},{"$f":"IF(ISERROR(Dados!AD240),\"-\",Dados!AD240)","v":37.1},{"$f":"IF(ISERROR(Dados!AE240),\"-\",Dados!AE240)","v":0.34021452496999399},{"$f":"IF(ISERROR(Dados!AF240),\"-\",Dados!AF240)","v":"RAPT4"},{"$f":"IF(ISERROR(Dados!AG240),\"-\",Dados!AG240)","v":559.70000000000005}]
[{"$f":"IF(ISERROR(Dados!A241),\"-\",Dados!A241)","v":"MYPK3"},{"$f":"IF(ISERROR(Dados!B241),\"-\",Dados!B241)","v":"Veículos e peças"},{"$f":"IF(ISERROR(Dados!C241),\"-\",Dados!C241)","v":"Iochp-Maxion"},{"$f":"IF(ISERROR(Dados!D241),\"-\",Dados!D241)","v":21.45},{"$f":"IF(ISERROR(Dados!E241),\"-\",Dados!E241)","v":149.351},{"$f":"IF(ISERROR(Dados!F241),\"-\",Dados!F241)","v":3203.58},{"$f":"IF(ISERROR(Dados!G241),\"-\",Dados!G241)","v":2921.95},{"$f":"IF(ISERROR(Dados!H241),\"-\",Dados!H241)","v":7487.94},{"$f":"IF(ISERROR(Dados!I241),\"-\",Dados!I241)","v":9616.2999999999993},{"$f":"IF(ISERROR(Dados!J241),\"-\",Dados!J241)","v":6.4},{"$f":"IF(ISERROR(Dados!K241),\"-\",Dados!K241)","v":-12.97},{"$f":"IF(ISERROR(Dados!L241),\"-\",Dados!L241)","v":31.17},{"$f":"IF(ISERROR(Dados!M241),\"-\",Dados!M241)","v":124.65},{"$f":"IF(ISERROR(Dados!N241),\"-\",Dados!N241)","v":201.33},{"$f":"IF(ISERROR(Dados!O241),\"-\",Dados!O241)","v":6.4},{"$f":"IF(ISERROR(Dados!P241),\"-\",Dados!P241)","v":201.33},{"$f":"IF(ISERROR(Dados!Q241),\"-\",Dados!Q241)","v":1.3480324872280736},{"$f":"IF(ISERROR(Dados!R241),\"-\",Dados!R241)","v":19.564314935956236},{"$f":"IF(ISERROR(Dados!S241),\"-\",Dados!S241)","v":1.0963839045842674},{"$f":"IF(ISERROR(Dados!T241),\"-\",Dados!T241)","v":15.91207942184473},{"$f":"IF(ISERROR(Dados!U241),\"-\",Dados!U241)","v":0.116381},{"$f":"IF(ISERROR(Dados!V241),\"-\",Dados!V241)","v":0.72746},{"$f":"IF(ISERROR(Dados!W241),\"-\",Dados!W241)","v":798.6},{"$f":"IF(ISERROR(Dados!X241),\"-\",Dados!X241)","v":1057.0999999999999},{"$f":"IF(ISERROR(Dados!Y241),\"-\",Dados!Y241)","v":1057.0999999999999},{"$f":"IF(ISERROR(Dados!Z241),\"-\",Dados!Z241)","v":5.23165452653486},{"$f":"IF(ISERROR(Dados!AA241),\"-\",Dados!AA241)","v":36.25},{"$f":"IF(ISERROR(Dados!AB241),\"-\",Dados!AB241)","v":1.1315465822610954E-2},{"$f":"IF(ISERROR(Dados!AC241),\"-\",Dados!AC241)","v":-1.2},{"$f":"IF(ISERROR(Dados!AD241),\"-\",Dados!AD241)","v":-2.5},{"$f":"IF(ISERROR(Dados!AE241),\"-\",Dados!AE241)","v":"-"},{"$f":"IF(ISERROR(Dados!AF241),\"-\",Dados!AF241)","v":"MYPK3"},{"$f":"IF(ISERROR(Dados!AG241),\"-\",Dados!AG241)","v":1057.0999999999999}]
[{"$f":"IF(ISERROR(Dados!A242),\"-\",Dados!A242)","v":"FRAS3"},{"$f":"IF(ISERROR(Dados!B242),\"-\",Dados!B242)","v":"Veículos e peças"},{"$f":"IF(ISERROR(Dados!C242),\"-\",Dados!C242)","v":"Fras-Le"},{"$f":"IF(ISERROR(Dados!D242),\"-\",Dados!D242)","v":5.0999999999999996},{"$f":"IF(ISERROR(Dados!E242),\"-\",Dados!E242)","v":214.566},{"$f":"IF(ISERROR(Dados!F242),\"-\",Dados!F242)","v":1094.29},{"$f":"IF(ISERROR(Dados!G242),\"-\",Dados!G242)","v":807.13},{"$f":"IF(ISERROR(Dados!H242),\"-\",Dados!H242)","v":832.83},{"$f":"IF(ISERROR(Dados!I242),\"-\",Dados!I242)","v":1141.1500000000001},{"$f":"IF(ISERROR(Dados!J242),\"-\",Dados!J242)","v":64.069999999999993},{"$f":"IF(ISERROR(Dados!K242),\"-\",Dados!K242)","v":45.19},{"$f":"IF(ISERROR(Dados!L242),\"-\",Dados!L242)","v":63.95},{"$f":"IF(ISERROR(Dados!M242),\"-\",Dados!M242)","v":74.45},{"$f":"IF(ISERROR(Dados!N242),\"-\",Dados!N242)","v":93.33},{"$f":"IF(ISERROR(Dados!O242),\"-\",Dados!O242)","v":64.069999999999993},{"$f":"IF(ISERROR(Dados!P242),\"-\",Dados!P242)","v":93.33},{"$f":"IF(ISERROR(Dados!Q242),\"-\",Dados!Q242)","v":0.43497105785632389},{"$f":"IF(ISERROR(Dados!R242),\"-\",Dados!R242)","v":3.7616863808804748},{"$f":"IF(ISERROR(Dados!S242),\"-\",Dados!S242)","v":1.3557749061489475},{"$f":"IF(ISERROR(Dados!T242),\"-\",Dados!T242)","v":11.724918032786885},{"$f":"IF(ISERROR(Dados!U242),\"-\",Dados!U242)","v":0.11310199999999999},{"$f":"IF(ISERROR(Dados!V242),\"-\",Dados!V242)","v":0.170791},{"$f":"IF(ISERROR(Dados!W242),\"-\",Dados!W242)","v":106.4},{"$f":"IF(ISERROR(Dados!X242),\"-\",Dados!X242)","v":183.8},{"$f":"IF(ISERROR(Dados!Y242),\"-\",Dados!Y242)","v":183.8},{"$f":"IF(ISERROR(Dados!Z242),\"-\",Dados!Z242)","v":6.7217573449401522},{"$f":"IF(ISERROR(Dados!AA242),\"-\",Dados!AA242)","v":45.99},{"$f":"IF(ISERROR(Dados!AB242),\"-\",Dados!AB242)","v":4.2027250546016144E-2},{"$f":"IF(ISERROR(Dados!AC242),\"-\",Dados!AC242)","v":1.8},{"$f":"IF(ISERROR(Dados!AD242),\"-\",Dados!AD242)","v":"-"},{"$f":"IF(ISERROR(Dados!AE242),\"-\",Dados!AE242)","v":"-"},{"$f":"IF(ISERROR(Dados!AF242),\"-\",Dados!AF242)","v":"FRAS3"},{"$f":"IF(ISERROR(Dados!AG242),\"-\",Dados!AG242)","v":183.8}]
[{"$f":"IF(ISERROR(Dados!A243),\"-\",Dados!A243)","v":"POMO4"},{"$f":"IF(ISERROR(Dados!B243),\"-\",Dados!B243)","v":"Veículos e peças"},{"$f":"IF(ISERROR(Dados!C243),\"-\",Dados!C243)","v":"Marcopolo"},{"$f":"IF(ISERROR(Dados!D243),\"-\",Dados!D243)","v":3.9},{"$f":"IF(ISERROR(Dados!E243),\"-\",Dados!E243)","v":942.91600000000005},{"$f":"IF(ISERROR(Dados!F243),\"-\",Dados!F243)","v":3564.63},{"$f":"IF(ISERROR(Dados!G243),\"-\",Dados!G243)","v":2105.62},{"$f":"IF(ISERROR(Dados!H243),\"-\",Dados!H243)","v":2875.99},{"$f":"IF(ISERROR(Dados!I243),\"-\",Dados!I243)","v":4197.47},{"$f":"IF(ISERROR(Dados!J243),\"-\",Dados!J243)","v":72.17},{"$f":"IF(ISERROR(Dados!K243),\"-\",Dados!K243)","v":30.2},{"$f":"IF(ISERROR(Dados!L243),\"-\",Dados!L243)","v":53.41},{"$f":"IF(ISERROR(Dados!M243),\"-\",Dados!M243)","v":117.1},{"$f":"IF(ISERROR(Dados!N243),\"-\",Dados!N243)","v":186.73},{"$f":"IF(ISERROR(Dados!O243),\"-\",Dados!O243)","v":72.17},{"$f":"IF(ISERROR(Dados!P243),\"-\",Dados!P243)","v":186.73},{"$f":"IF(ISERROR(Dados!Q243),\"-\",Dados!Q243)","v":0.19803460753662042},{"$f":"IF(ISERROR(Dados!R243),\"-\",Dados!R243)","v":2.2330939341362326},{"$f":"IF(ISERROR(Dados!S243),\"-\",Dados!S243)","v":1.7464558657307587},{"$f":"IF(ISERROR(Dados!T243),\"-\",Dados!T243)","v":19.693527553151611},{"$f":"IF(ISERROR(Dados!U243),\"-\",Dados!U243)","v":9.9007000000000012E-2},{"$f":"IF(ISERROR(Dados!V243),\"-\",Dados!V243)","v":0.45879600000000004},{"$f":"IF(ISERROR(Dados!W243),\"-\",Dados!W243)","v":119.7},{"$f":"IF(ISERROR(Dados!X243),\"-\",Dados!X243)","v":362.1},{"$f":"IF(ISERROR(Dados!Y243),\"-\",Dados!Y243)","v":362.1},{"$f":"IF(ISERROR(Dados!Z243),\"-\",Dados!Z243)","v":12.54899199116266},{"$f":"IF(ISERROR(Dados!AA243),\"-\",Dados!AA243)","v":33.89},{"$f":"IF(ISERROR(Dados!AB243),\"-\",Dados!AB243)","v":9.5072980926491669E-3},{"$f":"IF(ISERROR(Dados!AC243),\"-\",Dados!AC243)","v":-3.7},{"$f":"IF(ISERROR(Dados!AD243),\"-\",Dados!AD243)","v":0.9},{"$f":"IF(ISERROR(Dados!AE243),\"-\",Dados!AE243)","v":0.36228041522256488},{"$f":"IF(ISERROR(Dados!AF243),\"-\",Dados!AF243)","v":"POMO4"},{"$f":"IF(ISERROR(Dados!AG243),\"-\",Dados!AG243)","v":362.1}]
[{"$f":"IF(ISERROR(Dados!A244),\"-\",Dados!A244)","v":"EMBR3"},{"$f":"IF(ISERROR(Dados!B244),\"-\",Dados!B244)","v":"Veículos e peças"},{"$f":"IF(ISERROR(Dados!C244),\"-\",Dados!C244)","v":"Embraer"},{"$f":"IF(ISERROR(Dados!D244),\"-\",Dados!D244)","v":18.45},{"$f":"IF(ISERROR(Dados!E244),\"-\",Dados!E244)","v":735.78700000000003},{"$f":"IF(ISERROR(Dados!F244),\"-\",Dados!F244)","v":13575.27},{"$f":"IF(ISERROR(Dados!G244),\"-\",Dados!G244)","v":14901.26},{"$f":"IF(ISERROR(Dados!H244),\"-\",Dados!H244)","v":18713.05},{"$f":"IF(ISERROR(Dados!I244),\"-\",Dados!I244)","v":18721.62},{"$f":"IF(ISERROR(Dados!J244),\"-\",Dados!J244)","v":795.79},{"$f":"IF(ISERROR(Dados!K244),\"-\",Dados!K244)","v":-40.11},{"$f":"IF(ISERROR(Dados!L244),\"-\",Dados!L244)","v":-507.08},{"$f":"IF(ISERROR(Dados!M244),\"-\",Dados!M244)","v":-590.89},{"$f":"IF(ISERROR(Dados!N244),\"-\",Dados!N244)","v":-669.03},{"$f":"IF(ISERROR(Dados!O244),\"-\",Dados!O244)","v":795.79},{"$f":"IF(ISERROR(Dados!P244),\"-\",Dados!P244)","v":-669.03},{"$f":"IF(ISERROR(Dados!Q244),\"-\",Dados!Q244)","v":-0.9092712972640179},{"$f":"IF(ISERROR(Dados!R244),\"-\",Dados!R244)","v":20.252138186730669},{"$f":"IF(ISERROR(Dados!S244),\"-\",Dados!S244)","v":0.91101491753046393},{"$f":"IF(ISERROR(Dados!T244),\"-\",Dados!T244)","v":"-"},{"$f":"IF(ISERROR(Dados!U244),\"-\",Dados!U244)","v":-4.6519000000000005E-2},{"$f":"IF(ISERROR(Dados!V244),\"-\",Dados!V244)","v":0.15823200000000001},{"$f":"IF(ISERROR(Dados!W244),\"-\",Dados!W244)","v":2057.5},{"$f":"IF(ISERROR(Dados!X244),\"-\",Dados!X244)","v":1097.9000000000001},{"$f":"IF(ISERROR(Dados!Y244),\"-\",Dados!Y244)","v":1097.9000000000001},{"$f":"IF(ISERROR(Dados!Z244),\"-\",Dados!Z244)","v":14.565075143455688},{"$f":"IF(ISERROR(Dados!AA244),\"-\",Dados!AA244)","v":139.65},{"$f":"IF(ISERROR(Dados!AB244),\"-\",Dados!AB244)","v":1.0287088212610136E-2},{"$f":"IF(ISERROR(Dados!AC244),\"-\",Dados!AC244)","v":-3.3},{"$f":"IF(ISERROR(Dados!AD244),\"-\",Dados!AD244)","v":-7.2},{"$f":"IF(ISERROR(Dados!AE244),\"-\",Dados!AE244)","v":"-"},{"$f":"IF(ISERROR(Dados!AF244),\"-\",Dados!AF244)","v":"EMBR3"},{"$f":"IF(ISERROR(Dados!AG244),\"-\",Dados!AG244)","v":1097.9000000000001}]
[{"$f":"IF(ISERROR(Dados!A245),\"-\",Dados!A245)","v":"-"},{"$f":"IF(ISERROR(Dados!B245),\"-\",Dados!B245)","v":"-"},{"$f":"IF(ISERROR(Dados!C245),\"-\",Dados!C245)","v":"-"},{"$f":"IF(ISERROR(Dados!D245),\"-\",Dados!D245)","v":"-"},{"$f":"IF(ISERROR(Dados!E245),\"-\",Dados!E245)","v":"-"},{"$f":"IF(ISERROR(Dados!F245),\"-\",Dados!F245)","v":"-"},{"$f":"IF(ISERROR(Dados!G245),\"-\",Dados!G245)","v":"-"},{"$f":"IF(ISERROR(Dados!H245),\"-\",Dados!H245)","v":"-"},{"$f":"IF(ISERROR(Dados!I245),\"-\",Dados!I245)","v":"-"},{"$f":"IF(ISERROR(Dados!J245),\"-\",Dados!J245)","v":"-"},{"$f":"IF(ISERROR(Dados!K245),\"-\",Dados!K245)","v":"-"},{"$f":"IF(ISERROR(Dados!L245),\"-\",Dados!L245)","v":"-"},{"$f":"IF(ISERROR(Dados!M245),\"-\",Dados!M245)","v":"-"},{"$f":"IF(ISERROR(Dados!N245),\"-\",Dados!N245)","v":"-"},{"$f":"IF(ISERROR(Dados!O245),\"-\",Dados!O245)","v":"-"},{"$f":"IF(ISERROR(Dados!P245),\"-\",Dados!P245)","v":"-"},{"$f":"IF(ISERROR(Dados!Q245),\"-\",Dados!Q245)","v":"-"},{"$f":"IF(ISERROR(Dados!R245),\"-\",Dados!R245)","v":"-"},{"$f":"IF(ISERROR(Dados!S245),\"-\",Dados!S245)","v":"-"},{"$f":"IF(ISERROR(Dados!T245),\"-\",Dados!T245)","v":"-"},{"$f":"IF(ISERROR(Dados!U245),\"-\",Dados!U245)","v":"-"},{"$f":"IF(ISERROR(Dados!V245),\"-\",Dados!V245)","v":"-"},{"$f":"IF(ISERROR(Dados!W245),\"-\",Dados!W245)","v":"-"},{"$f":"IF(ISERROR(Dados!X245),\"-\",Dados!X245)","v":"-"},{"$f":"IF(ISERROR(Dados!Y245),\"-\",Dados!Y245)","v":"-"},{"$f":"IF(ISERROR(Dados!Z245),\"-\",Dados!Z245)","v":"-"},{"$f":"IF(ISERROR(Dados!AA245),\"-\",Dados!AA245)","v":"-"},{"$f":"IF(ISERROR(Dados!AB245),\"-\",Dados!AB245)","v":"-"},{"$f":"IF(ISERROR(Dados!AC245),\"-\",Dados!AC245)","v":"-"},{"$f":"IF(ISERROR(Dados!AD245),\"-\",Dados!AD245)","v":"-"},{"$f":"IF(ISERROR(Dados!AE245),\"-\",Dados!AE245)","v":"-"},{"$f":"IF(ISERROR(Dados!AF245),\"-\",Dados!AF245)","v":"-"},{"$f":"IF(ISERROR(Dados!AG245),\"-\",Dados!AG245)","v":"-"}]
[{"$f":"IF(ISERROR(Dados!A246),\"-\",Dados!A246)","v":"-"},{"$f":"IF(ISERROR(Dados!B246),\"-\",Dados!B246)","v":"-"},{"$f":"IF(ISERROR(Dados!C246),\"-\",Dados!C246)","v":"-"},{"$f":"IF(ISERROR(Dados!D246),\"-\",Dados!D246)","v":"-"},{"$f":"IF(ISERROR(Dados!E246),\"-\",Dados!E246)","v":"-"},{"$f":"IF(ISERROR(Dados!F246),\"-\",Dados!F246)","v":"-"},{"$f":"IF(ISERROR(Dados!G246),\"-\",Dados!G246)","v":"-"},{"$f":"IF(ISERROR(Dados!H246),\"-\",Dados!H246)","v":"-"},{"$f":"IF(ISERROR(Dados!I246),\"-\",Dados!I246)","v":"-"},{"$f":"IF(ISERROR(Dados!J246),\"-\",Dados!J246)","v":"-"},{"$f":"IF(ISERROR(Dados!K246),\"-\",Dados!K246)","v":"-"},{"$f":"IF(ISERROR(Dados!L246),\"-\",Dados!L246)","v":"-"},{"$f":"IF(ISERROR(Dados!M246),\"-\",Dados!M246)","v":"-"},{"$f":"IF(ISERROR(Dados!N246),\"-\",Dados!N246)","v":"-"},{"$f":"IF(ISERROR(Dados!O246),\"-\",Dados!O246)","v":"-"},{"$f":"IF(ISERROR(Dados!P246),\"-\",Dados!P246)","v":"-"},{"$f":"IF(ISERROR(Dados!Q246),\"-\",Dados!Q246)","v":"-"},{"$f":"IF(ISERROR(Dados!R246),\"-\",Dados!R246)","v":"-"},{"$f":"IF(ISERROR(Dados!S246),\"-\",Dados!S246)","v":"-"},{"$f":"IF(ISERROR(Dados!T246),\"-\",Dados!T246)","v":"-"},{"$f":"IF(ISERROR(Dados!U246),\"-\",Dados!U246)","v":"-"},{"$f":"IF(ISERROR(Dados!V246),\"-\",Dados!V246)","v":"-"},{"$f":"IF(ISERROR(Dados!W246),\"-\",Dados!W246)","v":"-"},{"$f":"IF(ISERROR(Dados!X246),\"-\",Dados!X246)","v":"-"},{"$f":"IF(ISERROR(Dados!Y246),\"-\",Dados!Y246)","v":"-"},{"$f":"IF(ISERROR(Dados!Z246),\"-\",Dados!Z246)","v":"-"},{"$f":"IF(ISERROR(Dados!AA246),\"-\",Dados!AA246)","v":"-"},{"$f":"IF(ISERROR(Dados!AB246),\"-\",Dados!AB246)","v":"-"},{"$f":"IF(ISERROR(Dados!AC246),\"-\",Dados!AC246)","v":"-"},{"$f":"IF(ISERROR(Dados!AD246),\"-\",Dados!AD246)","v":"-"},{"$f":"IF(ISERROR(Dados!AE246),\"-\",Dados!AE246)","v":"-"},{"$f":"IF(ISERROR(Dados!AF246),\"-\",Dados!AF246)","v":"-"},{"$f":"IF(ISERROR(Dados!AG246),\"-\",Dados!AG246)","v":"-"}]
[{"$f":"IF(ISERROR(Dados!A247),\"-\",Dados!A247)","v":"-"},{"$f":"IF(ISERROR(Dados!B247),\"-\",Dados!B247)","v":"-"},{"$f":"IF(ISERROR(Dados!C247),\"-\",Dados!C247)","v":"-"},{"$f":"IF(ISERROR(Dados!D247),\"-\",Dados!D247)","v":"-"},{"$f":"IF(ISERROR(Dados!E247),\"-\",Dados!E247)","v":"-"},{"$f":"IF(ISERROR(Dados!F247),\"-\",Dados!F247)","v":"-"},{"$f":"IF(ISERROR(Dados!G247),\"-\",Dados!G247)","v":"-"},{"$f":"IF(ISERROR(Dados!H247),\"-\",Dados!H247)","v":"-"},{"$f":"IF(ISERROR(Dados!I247),\"-\",Dados!I247)","v":"-"},{"$f":"IF(ISERROR(Dados!J247),\"-\",Dados!J247)","v":"-"},{"$f":"IF(ISERROR(Dados!K247),\"-\",Dados!K247)","v":"-"},{"$f":"IF(ISERROR(Dados!L247),\"-\",Dados!L247)","v":"-"},{"$f":"IF(ISERROR(Dados!M247),\"-\",Dados!M247)","v":"-"},{"$f":"IF(ISERROR(Dados!N247),\"-\",Dados!N247)","v":"-"},{"$f":"IF(ISERROR(Dados!O247),\"-\",Dados!O247)","v":"-"},{"$f":"IF(ISERROR(Dados!P247),\"-\",Dados!P247)","v":"-"},{"$f":"IF(ISERROR(Dados!Q247),\"-\",Dados!Q247)","v":"-"},{"$f":"IF(ISERROR(Dados!R247),\"-\",Dados!R247)","v":"-"},{"$f":"IF(ISERROR(Dados!S247),\"-\",Dados!S247)","v":"-"},{"$f":"IF(ISERROR(Dados!T247),\"-\",Dados!T247)","v":"-"},{"$f":"IF(ISERROR(Dados!U247),\"-\",Dados!U247)","v":"-"},{"$f":"IF(ISERROR(Dados!V247),\"-\",Dados!V247)","v":"-"},{"$f":"IF(ISERROR(Dados!W247),\"-\",Dados!W247)","v":"-"},{"$f":"IF(ISERROR(Dados!X247),\"-\",Dados!X247)","v":"-"},{"$f":"IF(ISERROR(Dados!Y247),\"-\",Dados!Y247)","v":"-"},{"$f":"IF(ISERROR(Dados!Z247),\"-\",Dados!Z247)","v":"-"},{"$f":"IF(ISERROR(Dados!AA247),\"-\",Dados!AA247)","v":"-"},{"$f":"IF(ISERROR(Dados!AB247),\"-\",Dados!AB247)","v":"-"},{"$f":"IF(ISERROR(Dados!AC247),\"-\",Dados!AC247)","v":"-"},{"$f":"IF(ISERROR(Dados!AD247),\"-\",Dados!AD247)","v":"-"},{"$f":"IF(ISERROR(Dados!AE247),\"-\",Dados!AE247)","v":"-"},{"$f":"IF(ISERROR(Dados!AF247),\"-\",Dados!AF247)","v":"-"},{"$f":"IF(ISERROR(Dados!AG247),\"-\",Dados!AG247)","v":"-"}]
[{"$f":"IF(ISERROR(Dados!A248),\"-\",Dados!A248)","v":"-"},{"$f":"IF(ISERROR(Dados!B248),\"-\",Dados!B248)","v":"-"},{"$f":"IF(ISERROR(Dados!C248),\"-\",Dados!C248)","v":"-"},{"$f":"IF(ISERROR(Dados!D248),\"-\",Dados!D248)","v":"-"},{"$f":"IF(ISERROR(Dados!E248),\"-\",Dados!E248)","v":"-"},{"$f":"IF(ISERROR(Dados!F248),\"-\",Dados!F248)","v":"-"},{"$f":"IF(ISERROR(Dados!G248),\"-\",Dados!G248)","v":"-"},{"$f":"IF(ISERROR(Dados!H248),\"-\",Dados!H248)","v":"-"},{"$f":"IF(ISERROR(Dados!I248),\"-\",Dados!I248)","v":"-"},{"$f":"IF(ISERROR(Dados!J248),\"-\",Dados!J248)","v":"-"},{"$f":"IF(ISERROR(Dados!K248),\"-\",Dados!K248)","v":"-"},{"$f":"IF(ISERROR(Dados!L248),\"-\",Dados!L248)","v":"-"},{"$f":"IF(ISERROR(Dados!M248),\"-\",Dados!M248)","v":"-"},{"$f":"IF(ISERROR(Dados!N248),\"-\",Dados!N248)","v":"-"},{"$f":"IF(ISERROR(Dados!O248),\"-\",Dados!O248)","v":"-"},{"$f":"IF(ISERROR(Dados!P248),\"-\",Dados!P248)","v":"-"},{"$f":"IF(ISERROR(Dados!Q248),\"-\",Dados!Q248)","v":"-"},{"$f":"IF(ISERROR(Dados!R248),\"-\",Dados!R248)","v":"-"},{"$f":"IF(ISERROR(Dados!S248),\"-\",Dados!S248)","v":"-"},{"$f":"IF(ISERROR(Dados!T248),\"-\",Dados!T248)","v":"-"},{"$f":"IF(ISERROR(Dados!U248),\"-\",Dados!U248)","v":"-"},{"$f":"IF(ISERROR(Dados!V248),\"-\",Dados!V248)","v":"-"},{"$f":"IF(ISERROR(Dados!W248),\"-\",Dados!W248)","v":"-"},{"$f":"IF(ISERROR(Dados!X248),\"-\",Dados!X248)","v":"-"},{"$f":"IF(ISERROR(Dados!Y248),\"-\",Dados!Y248)","v":"-"},{"$f":"IF(ISERROR(Dados!Z248),\"-\",Dados!Z248)","v":"-"},{"$f":"IF(ISERROR(Dados!AA248),\"-\",Dados!AA248)","v":"-"},{"$f":"IF(ISERROR(Dados!AB248),\"-\",Dados!AB248)","v":"-"},{"$f":"IF(ISERROR(Dados!AC248),\"-\",Dados!AC248)","v":"-"},{"$f":"IF(ISERROR(Dados!AD248),\"-\",Dados!AD248)","v":"-"},{"$f":"IF(ISERROR(Dados!AE248),\"-\",Dados!AE248)","v":"-"},{"$f":"IF(ISERROR(Dados!AF248),\"-\",Dados!AF248)","v":"-"},{"$f":"IF(ISERROR(Dados!AG248),\"-\",Dados!AG248)","v":"-"}]
[{"$f":"IF(ISERROR(Dados!A249),\"-\",Dados!A249)","v":"-"},{"$f":"IF(ISERROR(Dados!B249),\"-\",Dados!B249)","v":"-"},{"$f":"IF(ISERROR(Dados!C249),\"-\",Dados!C249)","v":"-"},{"$f":"IF(ISERROR(Dados!D249),\"-\",Dados!D249)","v":"-"},{"$f":"IF(ISERROR(Dados!E249),\"-\",Dados!E249)","v":"-"},{"$f":"IF(ISERROR(Dados!F249),\"-\",Dados!F249)","v":"-"},{"$f":"IF(ISERROR(Dados!G249),\"-\",Dados!G249)","v":"-"},{"$f":"IF(ISERROR(Dados!H249),\"-\",Dados!H249)","v":"-"},{"$f":"IF(ISERROR(Dados!I249),\"-\",Dados!I249)","v":"-"},{"$f":"IF(ISERROR(Dados!J249),\"-\",Dados!J249)","v":"-"},{"$f":"IF(ISERROR(Dados!K249),\"-\",Dados!K249)","v":"-"},{"$f":"IF(ISERROR(Dados!L249),\"-\",Dados!L249)","v":"-"},{"$f":"IF(ISERROR(Dados!M249),\"-\",Dados!M249)","v":"-"},{"$f":"IF(ISERROR(Dados!N249),\"-\",Dados!N249)","v":"-"},{"$f":"IF(ISERROR(Dados!O249),\"-\",Dados!O249)","v":"-"},{"$f":"IF(ISERROR(Dados!P249),\"-\",Dados!P249)","v":"-"},{"$f":"IF(ISERROR(Dados!Q249),\"-\",Dados!Q249)","v":"-"},{"$f":"IF(ISERROR(Dados!R249),\"-\",Dados!R249)","v":"-"},{"$f":"IF(ISERROR(Dados!S249),\"-\",Dados!S249)","v":"-"},{"$f":"IF(ISERROR(Dados!T249),\"-\",Dados!T249)","v":"-"},{"$f":"IF(ISERROR(Dados!U249),\"-\",Dados!U249)","v":"-"},{"$f":"IF(ISERROR(Dados!V249),\"-\",Dados!V249)","v":"-"},{"$f":"IF(ISERROR(Dados!W249),\"-\",Dados!W249)","v":"-"},{"$f":"IF(ISERROR(Dados!X249),\"-\",Dados!X249)","v":"-"},{"$f":"IF(ISERROR(Dados!Y249),\"-\",Dados!Y249)","v":"-"},{"$f":"IF(ISERROR(Dados!Z249),\"-\",Dados!Z249)","v":"-"},{"$f":"IF(ISERROR(Dados!AA249),\"-\",Dados!AA249)","v":"-"},{"$f":"IF(ISERROR(Dados!AB249),\"-\",Dados!AB249)","v":"-"},{"$f":"IF(ISERROR(Dados!AC249),\"-\",Dados!AC249)","v":"-"},{"$f":"IF(ISERROR(Dados!AD249),\"-\",Dados!AD249)","v":"-"},{"$f":"IF(ISERROR(Dados!AE249),\"-\",Dados!AE249)","v":"-"},{"$f":"IF(ISERROR(Dados!AF249),\"-\",Dados!AF249)","v":"-"},{"$f":"IF(ISERROR(Dados!AG249),\"-\",Dados!AG249)","v":"-"}]
[{"$f":"IF(ISERROR(Dados!A250),\"-\",Dados!A250)","v":"-"},{"$f":"IF(ISERROR(Dados!B250),\"-\",Dados!B250)","v":"-"},{"$f":"IF(ISERROR(Dados!C250),\"-\",Dados!C250)","v":"-"},{"$f":"IF(ISERROR(Dados!D250),\"-\",Dados!D250)","v":"-"},{"$f":"IF(ISERROR(Dados!E250),\"-\",Dados!E250)","v":"-"},{"$f":"IF(ISERROR(Dados!F250),\"-\",Dados!F250)","v":"-"},{"$f":"IF(ISERROR(Dados!G250),\"-\",Dados!G250)","v":"-"},{"$f":"IF(ISERROR(Dados!H250),\"-\",Dados!H250)","v":"-"},{"$f":"IF(ISERROR(Dados!I250),\"-\",Dados!I250)","v":"-"},{"$f":"IF(ISERROR(Dados!J250),\"-\",Dados!J250)","v":"-"},{"$f":"IF(ISERROR(Dados!K250),\"-\",Dados!K250)","v":"-"},{"$f":"IF(ISERROR(Dados!L250),\"-\",Dados!L250)","v":"-"},{"$f":"IF(ISERROR(Dados!M250),\"-\",Dados!M250)","v":"-"},{"$f":"IF(ISERROR(Dados!N250),\"-\",Dados!N250)","v":"-"},{"$f":"IF(ISERROR(Dados!O250),\"-\",Dados!O250)","v":"-"},{"$f":"IF(ISERROR(Dados!P250),\"-\",Dados!P250)","v":"-"},{"$f":"IF(ISERROR(Dados!Q250),\"-\",Dados!Q250)","v":"-"},{"$f":"IF(ISERROR(Dados!R250),\"-\",Dados!R250)","v":"-"},{"$f":"IF(ISERROR(Dados!S250),\"-\",Dados!S250)","v":"-"},{"$f":"IF(ISERROR(Dados!T250),\"-\",Dados!T250)","v":"-"},{"$f":"IF(ISERROR(Dados!U250),\"-\",Dados!U250)","v":"-"},{"$f":"IF(ISERROR(Dados!V250),\"-\",Dados!V250)","v":"-"},{"$f":"IF(ISERROR(Dados!W250),\"-\",Dados!W250)","v":"-"},{"$f":"IF(ISERROR(Dados!X250),\"-\",Dados!X250)","v":"-"},{"$f":"IF(ISERROR(Dados!Y250),\"-\",Dados!Y250)","v":"-"},{"$f":"IF(ISERROR(Dados!Z250),\"-\",Dados!Z250)","v":"-"},{"$f":"IF(ISERROR(Dados!AA250),\"-\",Dados!AA250)","v":"-"},{"$f":"IF(ISERROR(Dados!AB250),\"-\",Dados!AB250)","v":"-"},{"$f":"IF(ISERROR(Dados!AC250),\"-\",Dados!AC250)","v":"-"},{"$f":"IF(ISERROR(Dados!AD250),\"-\",Dados!AD250)","v":"-"},{"$f":"IF(ISERROR(Dados!AE250),\"-\",Dados!AE250)","v":"-"},{"$f":"IF(ISERROR(Dados!AF250),\"-\",Dados!AF250)","v":"-"},{"$f":"IF(ISERROR(Dados!AG250),\"-\",Dados!AG250)","v":"-"}]
[{"$f":"IF(ISERROR(Dados!A251),\"-\",Dados!A251)","v":"-"},{"$f":"IF(ISERROR(Dados!B251),\"-\",Dados!B251)","v":"-"},{"$f":"IF(ISERROR(Dados!C251),\"-\",Dados!C251)","v":"-"},{"$f":"IF(ISERROR(Dados!D251),\"-\",Dados!D251)","v":"-"},{"$f":"IF(ISERROR(Dados!E251),\"-\",Dados!E251)","v":"-"},{"$f":"IF(ISERROR(Dados!F251),\"-\",Dados!F251)","v":"-"},{"$f":"IF(ISERROR(Dados!G251),\"-\",Dados!G251)","v":"-"},{"$f":"IF(ISERROR(Dados!H251),\"-\",Dados!H251)","v":"-"},{"$f":"IF(ISERROR(Dados!I251),\"-\",Dados!I251)","v":"-"},{"$f":"IF(ISERROR(Dados!J251),\"-\",Dados!J251)","v":"-"},{"$f":"IF(ISERROR(Dados!K251),\"-\",Dados!K251)","v":"-"},{"$f":"IF(ISERROR(Dados!L251),\"-\",Dados!L251)","v":"-"},{"$f":"IF(ISERROR(Dados!M251),\"-\",Dados!M251)","v":"-"},{"$f":"IF(ISERROR(Dados!N251),\"-\",Dados!N251)","v":"-"},{"$f":"IF(ISERROR(Dados!O251),\"-\",Dados!O251)","v":"-"},{"$f":"IF(ISERROR(Dados!P251),\"-\",Dados!P251)","v":"-"},{"$f":"IF(ISERROR(Dados!Q251),\"-\",Dados!Q251)","v":"-"},{"$f":"IF(ISERROR(Dados!R251),\"-\",Dados!R251)","v":"-"},{"$f":"IF(ISERROR(Dados!S251),\"-\",Dados!S251)","v":"-"},{"$f":"IF(ISERROR(Dados!T251),\"-\",Dados!T251)","v":"-"},{"$f":"IF(ISERROR(Dados!U251),\"-\",Dados!U251)","v":"-"},{"$f":"IF(ISERROR(Dados!V251),\"-\",Dados!V251)","v":"-"},{"$f":"IF(ISERROR(Dados!W251),\"-\",Dados!W251)","v":"-"},{"$f":"IF(ISERROR(Dados!X251),\"-\",Dados!X251)","v":"-"},{"$f":"IF(ISERROR(Dados!Y251),\"-\",Dados!Y251)","v":"-"},{"$f":"IF(ISERROR(Dados!Z251),\"-\",Dados!Z251)","v":"-"},{"$f":"IF(ISERROR(Dados!AA251),\"-\",Dados!AA251)","v":"-"},{"$f":"IF(ISERROR(Dados!AB251),\"-\",Dados!AB251)","v":"-"},{"$f":"IF(ISERROR(Dados!AC251),\"-\",Dados!AC251)","v":"-"},{"$f":"IF(ISERROR(Dados!AD251),\"-\",Dados!AD251)","v":"-"},{"$f":"IF(ISERROR(Dados!AE251),\"-\",Dados!AE251)","v":"-"},{"$f":"IF(ISERROR(Dados!AF251),\"-\",Dados!AF251)","v":"-"},{"$f":"IF(ISERROR(Dados!AG251),\"-\",Dados!AG251)","v":"-"}]
[{"$f":"IF(ISERROR(Dados!A252),\"-\",Dados!A252)","v":"-"},{"$f":"IF(ISERROR(Dados!B252),\"-\",Dados!B252)","v":"-"},{"$f":"IF(ISERROR(Dados!C252),\"-\",Dados!C252)","v":"-"},{"$f":"IF(ISERROR(Dados!D252),\"-\",Dados!D252)","v":"-"},{"$f":"IF(ISERROR(Dados!E252),\"-\",Dados!E252)","v":"-"},{"$f":"IF(ISERROR(Dados!F252),\"-\",Dados!F252)","v":"-"},{"$f":"IF(ISERROR(Dados!G252),\"-\",Dados!G252)","v":"-"},{"$f":"IF(ISERROR(Dados!H252),\"-\",Dados!H252)","v":"-"},{"$f":"IF(ISERROR(Dados!I252),\"-\",Dados!I252)","v":"-"},{"$f":"IF(ISERROR(Dados!J252),\"-\",Dados!J252)","v":"-"},{"$f":"IF(ISERROR(Dados!K252),\"-\",Dados!K252)","v":"-"},{"$f":"IF(ISERROR(Dados!L252),\"-\",Dados!L252)","v":"-"},{"$f":"IF(ISERROR(Dados!M252),\"-\",Dados!M252)","v":"-"},{"$f":"IF(ISERROR(Dados!N252),\"-\",Dados!N252)","v":"-"},{"$f":"IF(ISERROR(Dados!O252),\"-\",Dados!O252)","v":"-"},{"$f":"IF(ISERROR(Dados!P252),\"-\",Dados!P252)","v":"-"},{"$f":"IF(ISERROR(Dados!Q252),\"-\",Dados!Q252)","v":"-"},{"$f":"IF(ISERROR(Dados!R252),\"-\",Dados!R252)","v":"-"},{"$f":"IF(ISERROR(Dados!S252),\"-\",Dados!S252)","v":"-"},{"$f":"IF(ISERROR(Dados!T252),\"-\",Dados!T252)","v":"-"},{"$f":"IF(ISERROR(Dados!U252),\"-\",Dados!U252)","v":"-"},{"$f":"IF(ISERROR(Dados!V252),\"-\",Dados!V252)","v":"-"},{"$f":"IF(ISERROR(Dados!W252),\"-\",Dados!W252)","v":"-"},{"$f":"IF(ISERROR(Dados!X252),\"-\",Dados!X252)","v":"-"},{"$f":"IF(ISERROR(Dados!Y252),\"-\",Dados!Y252)","v":"-"},{"$f":"IF(ISERROR(Dados!Z252),\"-\",Dados!Z252)","v":"-"},{"$f":"IF(ISERROR(Dados!AA252),\"-\",Dados!AA252)","v":"-"},{"$f":"IF(ISERROR(Dados!AB252),\"-\",Dados!AB252)","v":"-"},{"$f":"IF(ISERROR(Dados!AC252),\"-\",Dados!AC252)","v":"-"},{"$f":"IF(ISERROR(Dados!AD252),\"-\",Dados!AD252)","v":"-"},{"$f":"IF(ISERROR(Dados!AE252),\"-\",Dados!AE252)","v":"-"},{"$f":"IF(ISERROR(Dados!AF252),\"-\",Dados!AF252)","v":"-"},{"$f":"IF(ISERROR(Dados!AG252),\"-\",Dados!AG252)","v":"-"}]
[{"$f":"IF(ISERROR(Dados!A253),\"-\",Dados!A253)","v":"-"},{"$f":"IF(ISERROR(Dados!B253),\"-\",Dados!B253)","v":"-"},{"$f":"IF(ISERROR(Dados!C253),\"-\",Dados!C253)","v":"-"},{"$f":"IF(ISERROR(Dados!D253),\"-\",Dados!D253)","v":"-"},{"$f":"IF(ISERROR(Dados!E253),\"-\",Dados!E253)","v":"-"},{"$f":"IF(ISERROR(Dados!F253),\"-\",Dados!F253)","v":"-"},{"$f":"IF(ISERROR(Dados!G253),\"-\",Dados!G253)","v":"-"},{"$f":"IF(ISERROR(Dados!H253),\"-\",Dados!H253)","v":"-"},{"$f":"IF(ISERROR(Dados!I253),\"-\",Dados!I253)","v":"-"},{"$f":"IF(ISERROR(Dados!J253),\"-\",Dados!J253)","v":"-"},{"$f":"IF(ISERROR(Dados!K253),\"-\",Dados!K253)","v":"-"},{"$f":"IF(ISERROR(Dados!L253),\"-\",Dados!L253)","v":"-"},{"$f":"IF(ISERROR(Dados!M253),\"-\",Dados!M253)","v":"-"},{"$f":"IF(ISERROR(Dados!N253),\"-\",Dados!N253)","v":"-"},{"$f":"IF(ISERROR(Dados!O253),\"-\",Dados!O253)","v":"-"},{"$f":"IF(ISERROR(Dados!P253),\"-\",Dados!P253)","v":"-"},{"$f":"IF(ISERROR(Dados!Q253),\"-\",Dados!Q253)","v":"-"},{"$f":"IF(ISERROR(Dados!R253),\"-\",Dados!R253)","v":"-"},{"$f":"IF(ISERROR(Dados!S253),\"-\",Dados!S253)","v":"-"},{"$f":"IF(ISERROR(Dados!T253),\"-\",Dados!T253)","v":"-"},{"$f":"IF(ISERROR(Dados!U253),\"-\",Dados!U253)","v":"-"},{"$f":"IF(ISERROR(Dados!V253),\"-\",Dados!V253)","v":"-"},{"$f":"IF(ISERROR(Dados!W253),\"-\",Dados!W253)","v":"-"},{"$f":"IF(ISERROR(Dados!X253),\"-\",Dados!X253)","v":"-"},{"$f":"IF(ISERROR(Dados!Y253),\"-\",Dados!Y253)","v":"-"},{"$f":"IF(ISERROR(Dados!Z253),\"-\",Dados!Z253)","v":"-"},{"$f":"IF(ISERROR(Dados!AA253),\"-\",Dados!AA253)","v":"-"},{"$f":"IF(ISERROR(Dados!AB253),\"-\",Dados!AB253)","v":"-"},{"$f":"IF(ISERROR(Dados!AC253),\"-\",Dados!AC253)","v":"-"},{"$f":"IF(ISERROR(Dados!AD253),\"-\",Dados!AD253)","v":"-"},{"$f":"IF(ISERROR(Dados!AE253),\"-\",Dados!AE253)","v":"-"},{"$f":"IF(ISERROR(Dados!AF253),\"-\",Dados!AF253)","v":"-"},{"$f":"IF(ISERROR(Dados!AG253),\"-\",Dados!AG253)","v":"-"}]
[{"$f":"IF(ISERROR(Dados!A254),\"-\",Dados!A254)","v":"-"},{"$f":"IF(ISERROR(Dados!B254),\"-\",Dados!B254)","v":"-"},{"$f":"IF(ISERROR(Dados!C254),\"-\",Dados!C254)","v":"-"},{"$f":"IF(ISERROR(Dados!D254),\"-\",Dados!D254)","v":"-"},{"$f":"IF(ISERROR(Dados!E254),\"-\",Dados!E254)","v":"-"},{"$f":"IF(ISERROR(Dados!F254),\"-\",Dados!F254)","v":"-"},{"$f":"IF(ISERROR(Dados!G254),\"-\",Dados!G254)","v":"-"},{"$f":"IF(ISERROR(Dados!H254),\"-\",Dados!H254)","v":"-"},{"$f":"IF(ISERROR(Dados!I254),\"-\",Dados!I254)","v":"-"},{"$f":"IF(ISERROR(Dados!J254),\"-\",Dados!J254)","v":"-"},{"$f":"IF(ISERROR(Dados!K254),\"-\",Dados!K254)","v":"-"},{"$f":"IF(ISERROR(Dados!L254),\"-\",Dados!L254)","v":"-"},{"$f":"IF(ISERROR(Dados!M254),\"-\",Dados!M254)","v":"-"},{"$f":"IF(ISERROR(Dados!N254),\"-\",Dados!N254)","v":"-"},{"$f":"IF(ISERROR(Dados!O254),\"-\",Dados!O254)","v":"-"},{"$f":"IF(ISERROR(Dados!P254),\"-\",Dados!P254)","v":"-"},{"$f":"IF(ISERROR(Dados!Q254),\"-\",Dados!Q254)","v":"-"},{"$f":"IF(ISERROR(Dados!R254),\"-\",Dados!R254)","v":"-"},{"$f":"IF(ISERROR(Dados!S254),\"-\",Dados!S254)","v":"-"},{"$f":"IF(ISERROR(Dados!T254),\"-\",Dados!T254)","v":"-"},{"$f":"IF(ISERROR(Dados!U254),\"-\",Dados!U254)","v":"-"},{"$f":"IF(ISERROR(Dados!V254),\"-\",Dados!V254)","v":"-"},{"$f":"IF(ISERROR(Dados!W254),\"-\",Dados!W254)","v":"-"},{"$f":"IF(ISERROR(Dados!X254),\"-\",Dados!X254)","v":"-"},{"$f":"IF(ISERROR(Dados!Y254),\"-\",Dados!Y254)","v":"-"},{"$f":"IF(ISERROR(Dados!Z254),\"-\",Dados!Z254)","v":"-"},{"$f":"IF(ISERROR(Dados!AA254),\"-\",Dados!AA254)","v":"-"},{"$f":"IF(ISERROR(Dados!AB254),\"-\",Dados!AB254)","v":"-"},{"$f":"IF(ISERROR(Dados!AC254),\"-\",Dados!AC254)","v":"-"},{"$f":"IF(ISERROR(Dados!AD254),\"-\",Dados!AD254)","v":"-"},{"$f":"IF(ISERROR(Dados!AE254),\"-\",Dados!AE254)","v":"-"},{"$f":"IF(ISERROR(Dados!AF254),\"-\",Dados!AF254)","v":"-"},{"$f":"IF(ISERROR(Dados!AG254),\"-\",Dados!AG254)","v":"-"}]
[{"$f":"IF(ISERROR(Dados!#REF!),\"-\",Dados!#REF!)","v":"-"},{"$f":"IF(ISERROR(Dados!#REF!),\"-\",Dados!#REF!)","v":"-"},{"$f":"IF(ISERROR(Dados!#REF!),\"-\",Dados!#REF!)","v":"-"},{"$f":"IF(ISERROR(Dados!#REF!),\"-\",Dados!#REF!)","v":"-"},{"$f":"IF(ISERROR(Dados!#REF!),\"-\",Dados!#REF!)","v":"-"},{"$f":"IF(ISERROR(Dados!#REF!),\"-\",Dados!#REF!)","v":"-"},{"$f":"IF(ISERROR(Dados!#REF!),\"-\",Dados!#REF!)","v":"-"},{"$f":"IF(ISERROR(Dados!#REF!),\"-\",Dados!#REF!)","v":"-"},{"$f":"IF(ISERROR(Dados!#REF!),\"-\",Dados!#REF!)","v":"-"},{"$f":"IF(ISERROR(Dados!#REF!),\"-\",Dados!#REF!)","v":"-"},{"$f":"IF(ISERROR(Dados!#REF!),\"-\",Dados!#REF!)","v":"-"},{"$f":"IF(ISERROR(Dados!#REF!),\"-\",Dados!#REF!)","v":"-"},{"$f":"IF(ISERROR(Dados!#REF!),\"-\",Dados!#REF!)","v":"-"},{"$f":"IF(ISERROR(Dados!#REF!),\"-\",Dados!#REF!)","v":"-"},{"$f":"IF(ISERROR(Dados!#REF!),\"-\",Dados!#REF!)","v":"-"},{"$f":"IF(ISERROR(Dados!#REF!),\"-\",Dados!#REF!)","v":"-"},{"$f":"IF(ISERROR(Dados!#REF!),\"-\",Dados!#REF!)","v":"-"},{"$f":"IF(ISERROR(Dados!#REF!),\"-\",Dados!#REF!)","v":"-"},{"$f":"IF(ISERROR(Dados!#REF!),\"-\",Dados!#REF!)","v":"-"},{"$f":"IF(ISERROR(Dados!#REF!),\"-\",Dados!#REF!)","v":"-"},{"$f":"IF(ISERROR(Dados!#REF!),\"-\",Dados!#REF!)","v":"-"},{"$f":"IF(ISERROR(Dados!#REF!),\"-\",Dados!#REF!)","v":"-"},{"$f":"IF(ISERROR(Dados!#REF!),\"-\",Dados!#REF!)","v":"-"},{"$f":"IF(ISERROR(Dados!#REF!),\"-\",Dados!#REF!)","v":"-"},{"$f":"IF(ISERROR(Dados!#REF!),\"-\",Dados!#REF!)","v":"-"},{"$f":"IF(ISERROR(Dados!#REF!),\"-\",Dados!#REF!)","v":"-"},{"$f":"IF(ISERROR(Dados!#REF!),\"-\",Dados!#REF!)","v":"-"},{"$f":"IF(ISERROR(Dados!#REF!),\"-\",Dados!#REF!)","v":"-"},{"$f":"IF(ISERROR(Dados!#REF!),\"-\",Dados!#REF!)","v":"-"},{"$f":"IF(ISERROR(Dados!#REF!),\"-\",Dados!#REF!)","v":"-"},{"$f":"IF(ISERROR(Dados!#REF!),\"-\",Dados!#REF!)","v":"-"},{"$f":"IF(ISERROR(Dados!#REF!),\"-\",Dados!#REF!)","v":"-"},{"$f":"IF(ISERROR(Dados!#REF!),\"-\",Dados!#REF!)","v":"-"}]
[{"$f":"IF(ISERROR(Dados!A255),\"-\",Dados!A255)","v":"-"},{"$f":"IF(ISERROR(Dados!B255),\"-\",Dados!B255)","v":"-"},{"$f":"IF(ISERROR(Dados!C255),\"-\",Dados!C255)","v":"-"},{"$f":"IF(ISERROR(Dados!D255),\"-\",Dados!D255)","v":"-"},{"$f":"IF(ISERROR(Dados!E255),\"-\",Dados!E255)","v":"-"},{"$f":"IF(ISERROR(Dados!F255),\"-\",Dados!F255)","v":"-"},{"$f":"IF(ISERROR(Dados!G255),\"-\",Dados!G255)","v":"-"},{"$f":"IF(ISERROR(Dados!H255),\"-\",Dados!H255)","v":"-"},{"$f":"IF(ISERROR(Dados!I255),\"-\",Dados!I255)","v":"-"},{"$f":"IF(ISERROR(Dados!J255),\"-\",Dados!J255)","v":"-"},{"$f":"IF(ISERROR(Dados!K255),\"-\",Dados!K255)","v":"-"},{"$f":"IF(ISERROR(Dados!L255),\"-\",Dados!L255)","v":"-"},{"$f":"IF(ISERROR(Dados!M255),\"-\",Dados!M255)","v":"-"},{"$f":"IF(ISERROR(Dados!N255),\"-\",Dados!N255)","v":"-"},{"$f":"IF(ISERROR(Dados!O255),\"-\",Dados!O255)","v":"-"},{"$f":"IF(ISERROR(Dados!P255),\"-\",Dados!P255)","v":"-"},{"$f":"IF(ISERROR(Dados!Q255),\"-\",Dados!Q255)","v":"-"},{"$f":"IF(ISERROR(Dados!R255),\"-\",Dados!R255)","v":"-"},{"$f":"IF(ISERROR(Dados!S255),\"-\",Dados!S255)","v":"-"},{"$f":"IF(ISERROR(Dados!T255),\"-\",Dados!T255)","v":"-"},{"$f":"IF(ISERROR(Dados!U255),\"-\",Dados!U255)","v":"-"},{"$f":"IF(ISERROR(Dados!V255),\"-\",Dados!V255)","v":"-"},{"$f":"IF(ISERROR(Dados!W255),\"-\",Dados!W255)","v":"-"},{"$f":"IF(ISERROR(Dados!X255),\"-\",Dados!X255)","v":"-"},{"$f":"IF(ISERROR(Dados!Y255),\"-\",Dados!Y255)","v":"-"},{"$f":"IF(ISERROR(Dados!Z255),\"-\",Dados!Z255)","v":"-"},{"$f":"IF(ISERROR(Dados!AA255),\"-\",Dados!AA255)","v":"-"},{"$f":"IF(ISERROR(Dados!AB255),\"-\",Dados!AB255)","v":"-"},{"$f":"IF(ISERROR(Dados!AC255),\"-\",Dados!AC255)","v":"-"},{"$f":"IF(ISERROR(Dados!AD255),\"-\",Dados!AD255)","v":"-"},{"$f":"IF(ISERROR(Dados!AE255),\"-\",Dados!AE255)","v":"-"},{"$f":"IF(ISERROR(Dados!AF255),\"-\",Dados!AF255)","v":"-"},{"$f":"IF(ISERROR(Dados!AG255),\"-\",Dados!AG255)","v":"-"}]
[{"$f":"IF(ISERROR(Dados!A256),\"-\",Dados!A256)","v":"-"},{"$f":"IF(ISERROR(Dados!B256),\"-\",Dados!B256)","v":"-"},{"$f":"IF(ISERROR(Dados!C256),\"-\",Dados!C256)","v":"-"},{"$f":"IF(ISERROR(Dados!D256),\"-\",Dados!D256)","v":"-"},{"$f":"IF(ISERROR(Dados!E256),\"-\",Dados!E256)","v":"-"},{"$f":"IF(ISERROR(Dados!F256),\"-\",Dados!F256)","v":"-"},{"$f":"IF(ISERROR(Dados!G256),\"-\",Dados!G256)","v":"-"},{"$f":"IF(ISERROR(Dados!H256),\"-\",Dados!H256)","v":"-"},{"$f":"IF(ISERROR(Dados!I256),\"-\",Dados!I256)","v":"-"},{"$f":"IF(ISERROR(Dados!J256),\"-\",Dados!J256)","v":"-"},{"$f":"IF(ISERROR(Dados!K256),\"-\",Dados!K256)","v":"-"},{"$f":"IF(ISERROR(Dados!L256),\"-\",Dados!L256)","v":"-"},{"$f":"IF(ISERROR(Dados!M256),\"-\",Dados!M256)","v":"-"},{"$f":"IF(ISERROR(Dados!N256),\"-\",Dados!N256)","v":"-"},{"$f":"IF(ISERROR(Dados!O256),\"-\",Dados!O256)","v":"-"},{"$f":"IF(ISERROR(Dados!P256),\"-\",Dados!P256)","v":"-"},{"$f":"IF(ISERROR(Dados!Q256),\"-\",Dados!Q256)","v":"-"},{"$f":"IF(ISERROR(Dados!R256),\"-\",Dados!R256)","v":"-"},{"$f":"IF(ISERROR(Dados!S256),\"-\",Dados!S256)","v":"-"},{"$f":"IF(ISERROR(Dados!T256),\"-\",Dados!T256)","v":"-"},{"$f":"IF(ISERROR(Dados!U256),\"-\",Dados!U256)","v":"-"},{"$f":"IF(ISERROR(Dados!V256),\"-\",Dados!V256)","v":"-"},{"$f":"IF(ISERROR(Dados!W256),\"-\",Dados!W256)","v":"-"},{"$f":"IF(ISERROR(Dados!X256),\"-\",Dados!X256)","v":"-"},{"$f":"IF(ISERROR(Dados!Y256),\"-\",Dados!Y256)","v":"-"},{"$f":"IF(ISERROR(Dados!Z256),\"-\",Dados!Z256)","v":"-"},{"$f":"IF(ISERROR(Dados!AA256),\"-\",Dados!AA256)","v":"-"},{"$f":"IF(ISERROR(Dados!AB256),\"-\",Dados!AB256)","v":"-"},{"$f":"IF(ISERROR(Dados!AC256),\"-\",Dados!AC256)","v":"-"},{"$f":"IF(ISERROR(Dados!AD256),\"-\",Dados!AD256)","v":"-"},{"$f":"IF(ISERROR(Dados!AE256),\"-\",Dados!AE256)","v":"-"},{"$f":"IF(ISERROR(Dados!AF256),\"-\",Dados!AF256)","v":"-"},{"$f":"IF(ISERROR(Dados!AG256),\"-\",Dados!AG256)","v":"-"}]
[{"$f":"IF(ISERROR(Dados!A257),\"-\",Dados!A257)","v":"-"},{"$f":"IF(ISERROR(Dados!B257),\"-\",Dados!B257)","v":"-"},{"$f":"IF(ISERROR(Dados!C257),\"-\",Dados!C257)","v":"-"},{"$f":"IF(ISERROR(Dados!D257),\"-\",Dados!D257)","v":"-"},{"$f":"IF(ISERROR(Dados!E257),\"-\",Dados!E257)","v":"-"},{"$f":"IF(ISERROR(Dados!F257),\"-\",Dados!F257)","v":"-"},{"$f":"IF(ISERROR(Dados!G257),\"-\",Dados!G257)","v":"-"},{"$f":"IF(ISERROR(Dados!H257),\"-\",Dados!H257)","v":"-"},{"$f":"IF(ISERROR(Dados!I257),\"-\",Dados!I257)","v":"-"},{"$f":"IF(ISERROR(Dados!J257),\"-\",Dados!J257)","v":"-"},{"$f":"IF(ISERROR(Dados!K257),\"-\",Dados!K257)","v":"-"},{"$f":"IF(ISERROR(Dados!L257),\"-\",Dados!L257)","v":"-"},{"$f":"IF(ISERROR(Dados!M257),\"-\",Dados!M257)","v":"-"},{"$f":"IF(ISERROR(Dados!N257),\"-\",Dados!N257)","v":"-"},{"$f":"IF(ISERROR(Dados!O257),\"-\",Dados!O257)","v":"-"},{"$f":"IF(ISERROR(Dados!P257),\"-\",Dados!P257)","v":"-"},{"$f":"IF(ISERROR(Dados!Q257),\"-\",Dados!Q257)","v":"-"},{"$f":"IF(ISERROR(Dados!R257),\"-\",Dados!R257)","v":"-"},{"$f":"IF(ISERROR(Dados!S257),\"-\",Dados!S257)","v":"-"},{"$f":"IF(ISERROR(Dados!T257),\"-\",Dados!T257)","v":"-"},{"$f":"IF(ISERROR(Dados!U257),\"-\",Dados!U257)","v":"-"},{"$f":"IF(ISERROR(Dados!V257),\"-\",Dados!V257)","v":"-"},{"$f":"IF(ISERROR(Dados!W257),\"-\",Dados!W257)","v":"-"},{"$f":"IF(ISERROR(Dados!X257),\"-\",Dados!X257)","v":"-"},{"$f":"IF(ISERROR(Dados!Y257),\"-\",Dados!Y257)","v":"-"},{"$f":"IF(ISERROR(Dados!Z257),\"-\",Dados!Z257)","v":"-"},{"$f":"IF(ISERROR(Dados!AA257),\"-\",Dados!AA257)","v":"-"},{"$f":"IF(ISERROR(Dados!AB257),\"-\",Dados!AB257)","v":"-"},{"$f":"IF(ISERROR(Dados!AC257),\"-\",Dados!AC257)","v":"-"},{"$f":"IF(ISERROR(Dados!AD257),\"-\",Dados!AD257)","v":"-"},{"$f":"IF(ISERROR(Dados!AE257),\"-\",Dados!AE257)","v":"-"},{"$f":"IF(ISERROR(Dados!AF257),\"-\",Dados!AF257)","v":"-"},{"$f":"IF(ISERROR(Dados!AG257),\"-\",Dados!AG257)","v":"-"}]
[{"$f":"IF(ISERROR(Dados!A258),\"-\",Dados!A258)","v":"-"},{"$f":"IF(ISERROR(Dados!B258),\"-\",Dados!B258)","v":"-"},{"$f":"IF(ISERROR(Dados!C258),\"-\",Dados!C258)","v":"-"},{"$f":"IF(ISERROR(Dados!D258),\"-\",Dados!D258)","v":"-"},{"$f":"IF(ISERROR(Dados!E258),\"-\",Dados!E258)","v":"-"},{"$f":"IF(ISERROR(Dados!F258),\"-\",Dados!F258)","v":"-"},{"$f":"IF(ISERROR(Dados!G258),\"-\",Dados!G258)","v":"-"},{"$f":"IF(ISERROR(Dados!H258),\"-\",Dados!H258)","v":"-"},{"$f":"IF(ISERROR(Dados!I258),\"-\",Dados!I258)","v":"-"},{"$f":"IF(ISERROR(Dados!J258),\"-\",Dados!J258)","v":"-"},{"$f":"IF(ISERROR(Dados!K258),\"-\",Dados!K258)","v":"-"},{"$f":"IF(ISERROR(Dados!L258),\"-\",Dados!L258)","v":"-"},{"$f":"IF(ISERROR(Dados!M258),\"-\",Dados!M258)","v":"-"},{"$f":"IF(ISERROR(Dados!N258),\"-\",Dados!N258)","v":"-"},{"$f":"IF(ISERROR(Dados!O258),\"-\",Dados!O258)","v":"-"},{"$f":"IF(ISERROR(Dados!P258),\"-\",Dados!P258)","v":"-"},{"$f":"IF(ISERROR(Dados!Q258),\"-\",Dados!Q258)","v":"-"},{"$f":"IF(ISERROR(Dados!R258),\"-\",Dados!R258)","v":"-"},{"$f":"IF(ISERROR(Dados!S258),\"-\",Dados!S258)","v":"-"},{"$f":"IF(ISERROR(Dados!T258),\"-\",Dados!T258)","v":"-"},{"$f":"IF(ISERROR(Dados!U258),\"-\",Dados!U258)","v":"-"},{"$f":"IF(ISERROR(Dados!V258),\"-\",Dados!V258)","v":"-"},{"$f":"IF(ISERROR(Dados!W258),\"-\",Dados!W258)","v":"-"},{"$f":"IF(ISERROR(Dados!X258),\"-\",Dados!X258)","v":"-"},{"$f":"IF(ISERROR(Dados!Y258),\"-\",Dados!Y258)","v":"-"},{"$f":"IF(ISERROR(Dados!Z258),\"-\",Dados!Z258)","v":"-"},{"$f":"IF(ISERROR(Dados!AA258),\"-\",Dados!AA258)","v":"-"},{"$f":"IF(ISERROR(Dados!AB258),\"-\",Dados!AB258)","v":"-"},{"$f":"IF(ISERROR(Dados!AC258),\"-\",Dados!AC258)","v":"-"},{"$f":"IF(ISERROR(Dados!AD258),\"-\",Dados!AD258)","v":"-"},{"$f":"IF(ISERROR(Dados!AE258),\"-\",Dados!AE258)","v":"-"},{"$f":"IF(ISERROR(Dados!AF258),\"-\",Dados!AF258)","v":"-"},{"$f":"IF(ISERROR(Dados!AG258),\"-\",Dados!AG258)","v":"-"}]
[{"$f":"IF(ISERROR(Dados!A259),\"-\",Dados!A259)","v":"-"},{"$f":"IF(ISERROR(Dados!B259),\"-\",Dados!B259)","v":"-"},{"$f":"IF(ISERROR(Dados!C259),\"-\",Dados!C259)","v":"-"},{"$f":"IF(ISERROR(Dados!D259),\"-\",Dados!D259)","v":"-"},{"$f":"IF(ISERROR(Dados!E259),\"-\",Dados!E259)","v":"-"},{"$f":"IF(ISERROR(Dados!F259),\"-\",Dados!F259)","v":"-"},{"$f":"IF(ISERROR(Dados!G259),\"-\",Dados!G259)","v":"-"},{"$f":"IF(ISERROR(Dados!H259),\"-\",Dados!H259)","v":"-"},{"$f":"IF(ISERROR(Dados!I259),\"-\",Dados!I259)","v":"-"},{"$f":"IF(ISERROR(Dados!J259),\"-\",Dados!J259)","v":"-"},{"$f":"IF(ISERROR(Dados!K259),\"-\",Dados!K259)","v":"-"},{"$f":"IF(ISERROR(Dados!L259),\"-\",Dados!L259)","v":"-"},{"$f":"IF(ISERROR(Dados!M259),\"-\",Dados!M259)","v":"-"},{"$f":"IF(ISERROR(Dados!N259),\"-\",Dados!N259)","v":"-"},{"$f":"IF(ISERROR(Dados!O259),\"-\",Dados!O259)","v":"-"},{"$f":"IF(ISERROR(Dados!P259),\"-\",Dados!P259)","v":"-"},{"$f":"IF(ISERROR(Dados!Q259),\"-\",Dados!Q259)","v":"-"},{"$f":"IF(ISERROR(Dados!R259),\"-\",Dados!R259)","v":"-"},{"$f":"IF(ISERROR(Dados!S259),\"-\",Dados!S259)","v":"-"},{"$f":"IF(ISERROR(Dados!T259),\"-\",Dados!T259)","v":"-"},{"$f":"IF(ISERROR(Dados!U259),\"-\",Dados!U259)","v":"-"},{"$f":"IF(ISERROR(Dados!V259),\"-\",Dados!V259)","v":"-"},{"$f":"IF(ISERROR(Dados!W259),\"-\",Dados!W259)","v":"-"},{"$f":"IF(ISERROR(Dados!X259),\"-\",Dados!X259)","v":"-"},{"$f":"IF(ISERROR(Dados!Y259),\"-\",Dados!Y259)","v":"-"},{"$f":"IF(ISERROR(Dados!Z259),\"-\",Dados!Z259)","v":"-"},{"$f":"IF(ISERROR(Dados!AA259),\"-\",Dados!AA259)","v":"-"},{"$f":"IF(ISERROR(Dados!AB259),\"-\",Dados!AB259)","v":"-"},{"$f":"IF(ISERROR(Dados!AC259),\"-\",Dados!AC259)","v":"-"},{"$f":"IF(ISERROR(Dados!AD259),\"-\",Dados!AD259)","v":"-"},{"$f":"IF(ISERROR(Dados!AE259),\"-\",Dados!AE259)","v":"-"},{"$f":"IF(ISERROR(Dados!AF259),\"-\",Dados!AF259)","v":"-"},{"$f":"IF(ISERROR(Dados!AG259),\"-\",Dados!AG259)","v":"-"}]
[{"$f":"IF(ISERROR(Dados!A260),\"-\",Dados!A260)","v":"-"},{"$f":"IF(ISERROR(Dados!B260),\"-\",Dados!B260)","v":"-"},{"$f":"IF(ISERROR(Dados!C260),\"-\",Dados!C260)","v":"-"},{"$f":"IF(ISERROR(Dados!D260),\"-\",Dados!D260)","v":"-"},{"$f":"IF(ISERROR(Dados!E260),\"-\",Dados!E260)","v":"-"},{"$f":"IF(ISERROR(Dados!F260),\"-\",Dados!F260)","v":"-"},{"$f":"IF(ISERROR(Dados!G260),\"-\",Dados!G260)","v":"-"},{"$f":"IF(ISERROR(Dados!H260),\"-\",Dados!H260)","v":"-"},{"$f":"IF(ISERROR(Dados!I260),\"-\",Dados!I260)","v":"-"},{"$f":"IF(ISERROR(Dados!J260),\"-\",Dados!J260)","v":"-"},{"$f":"IF(ISERROR(Dados!K260),\"-\",Dados!K260)","v":"-"},{"$f":"IF(ISERROR(Dados!L260),\"-\",Dados!L260)","v":"-"},{"$f":"IF(ISERROR(Dados!M260),\"-\",Dados!M260)","v":"-"},{"$f":"IF(ISERROR(Dados!N260),\"-\",Dados!N260)","v":"-"},{"$f":"IF(ISERROR(Dados!O260),\"-\",Dados!O260)","v":"-"},{"$f":"IF(ISERROR(Dados!P260),\"-\",Dados!P260)","v":"-"},{"$f":"IF(ISERROR(Dados!Q260),\"-\",Dados!Q260)","v":"-"},{"$f":"IF(ISERROR(Dados!R260),\"-\",Dados!R260)","v":"-"},{"$f":"IF(ISERROR(Dados!S260),\"-\",Dados!S260)","v":"-"},{"$f":"IF(ISERROR(Dados!T260),\"-\",Dados!T260)","v":"-"},{"$f":"IF(ISERROR(Dados!U260),\"-\",Dados!U260)","v":"-"},{"$f":"IF(ISERROR(Dados!V260),\"-\",Dados!V260)","v":"-"},{"$f":"IF(ISERROR(Dados!W260),\"-\",Dados!W260)","v":"-"},{"$f":"IF(ISERROR(Dados!X260),\"-\",Dados!X260)","v":"-"},{"$f":"IF(ISERROR(Dados!Y260),\"-\",Dados!Y260)","v":"-"},{"$f":"IF(ISERROR(Dados!Z260),\"-\",Dados!Z260)","v":"-"},{"$f":"IF(ISERROR(Dados!AA260),\"-\",Dados!AA260)","v":"-"},{"$f":"IF(ISERROR(Dados!AB260),\"-\",Dados!AB260)","v":"-"},{"$f":"IF(ISERROR(Dados!AC260),\"-\",Dados!AC260)","v":"-"},{"$f":"IF(ISERROR(Dados!AD260),\"-\",Dados!AD260)","v":"-"},{"$f":"IF(ISERROR(Dados!AE260),\"-\",Dados!AE260)","v":"-"},{"$f":"IF(ISERROR(Dados!AF260),\"-\",Dados!AF260)","v":"-"},{"$f":"IF(ISERROR(Dados!AG260),\"-\",Dados!AG260)","v":"-"}]
[{"$f":"IF(ISERROR(Dados!#REF!),\"-\",Dados!#REF!)","v":"-"},{"$f":"IF(ISERROR(Dados!#REF!),\"-\",Dados!#REF!)","v":"-"},{"$f":"IF(ISERROR(Dados!#REF!),\"-\",Dados!#REF!)","v":"-"},{"$f":"IF(ISERROR(Dados!#REF!),\"-\",Dados!#REF!)","v":"-"},{"$f":"IF(ISERROR(Dados!#REF!),\"-\",Dados!#REF!)","v":"-"},{"$f":"IF(ISERROR(Dados!#REF!),\"-\",Dados!#REF!)","v":"-"},{"$f":"IF(ISERROR(Dados!#REF!),\"-\",Dados!#REF!)","v":"-"},{"$f":"IF(ISERROR(Dados!#REF!),\"-\",Dados!#REF!)","v":"-"},{"$f":"IF(ISERROR(Dados!#REF!),\"-\",Dados!#REF!)","v":"-"},{"$f":"IF(ISERROR(Dados!#REF!),\"-\",Dados!#REF!)","v":"-"},{"$f":"IF(ISERROR(Dados!#REF!),\"-\",Dados!#REF!)","v":"-"},{"$f":"IF(ISERROR(Dados!#REF!),\"-\",Dados!#REF!)","v":"-"},{"$f":"IF(ISERROR(Dados!#REF!),\"-\",Dados!#REF!)","v":"-"},{"$f":"IF(ISERROR(Dados!#REF!),\"-\",Dados!#REF!)","v":"-"},{"$f":"IF(ISERROR(Dados!#REF!),\"-\",Dados!#REF!)","v":"-"},{"$f":"IF(ISERROR(Dados!#REF!),\"-\",Dados!#REF!)","v":"-"},{"$f":"IF(ISERROR(Dados!#REF!),\"-\",Dados!#REF!)","v":"-"},{"$f":"IF(ISERROR(Dados!#REF!),\"-\",Dados!#REF!)","v":"-"},{"$f":"IF(ISERROR(Dados!#REF!),\"-\",Dados!#REF!)","v":"-"},{"$f":"IF(ISERROR(Dados!#REF!),\"-\",Dados!#REF!)","v":"-"},{"$f":"IF(ISERROR(Dados!#REF!),\"-\",Dados!#REF!)","v":"-"},{"$f":"IF(ISERROR(Dados!#REF!),\"-\",Dados!#REF!)","v":"-"},{"$f":"IF(ISERROR(Dados!#REF!),\"-\",Dados!#REF!)","v":"-"},{"$f":"IF(ISERROR(Dados!#REF!),\"-\",Dados!#REF!)","v":"-"},{"$f":"IF(ISERROR(Dados!#REF!),\"-\",Dados!#REF!)","v":"-"},{"$f":"IF(ISERROR(Dados!#REF!),\"-\",Dados!#REF!)","v":"-"},{"$f":"IF(ISERROR(Dados!#REF!),\"-\",Dados!#REF!)","v":"-"},{"$f":"IF(ISERROR(Dados!#REF!),\"-\",Dados!#REF!)","v":"-"},{"$f":"IF(ISERROR(Dados!#REF!),\"-\",Dados!#REF!)","v":"-"},{"$f":"IF(ISERROR(Dados!#REF!),\"-\",Dados!#REF!)","v":"-"},{"$f":"IF(ISERROR(Dados!#REF!),\"-\",Dados!#REF!)","v":"-"},{"$f":"IF(ISERROR(Dados!#REF!),\"-\",Dados!#REF!)","v":"-"},{"$f":"IF(ISERROR(Dados!#REF!),\"-\",Dados!#REF!)","v":"-"}]
[{"$f":"IF(ISERROR(Dados!#REF!),\"-\",Dados!#REF!)","v":"-"},{"$f":"IF(ISERROR(Dados!#REF!),\"-\",Dados!#REF!)","v":"-"},{"$f":"IF(ISERROR(Dados!#REF!),\"-\",Dados!#REF!)","v":"-"},{"$f":"IF(ISERROR(Dados!#REF!),\"-\",Dados!#REF!)","v":"-"},{"$f":"IF(ISERROR(Dados!#REF!),\"-\",Dados!#REF!)","v":"-"},{"$f":"IF(ISERROR(Dados!#REF!),\"-\",Dados!#REF!)","v":"-"},{"$f":"IF(ISERROR(Dados!#REF!),\"-\",Dados!#REF!)","v":"-"},{"$f":"IF(ISERROR(Dados!#REF!),\"-\",Dados!#REF!)","v":"-"},{"$f":"IF(ISERROR(Dados!#REF!),\"-\",Dados!#REF!)","v":"-"},{"$f":"IF(ISERROR(Dados!#REF!),\"-\",Dados!#REF!)","v":"-"},{"$f":"IF(ISERROR(Dados!#REF!),\"-\",Dados!#REF!)","v":"-"},{"$f":"IF(ISERROR(Dados!#REF!),\"-\",Dados!#REF!)","v":"-"},{"$f":"IF(ISERROR(Dados!#REF!),\"-\",Dados!#REF!)","v":"-"},{"$f":"IF(ISERROR(Dados!#REF!),\"-\",Dados!#REF!)","v":"-"},{"$f":"IF(ISERROR(Dados!#REF!),\"-\",Dados!#REF!)","v":"-"},{"$f":"IF(ISERROR(Dados!#REF!),\"-\",Dados!#REF!)","v":"-"},{"$f":"IF(ISERROR(Dados!#REF!),\"-\",Dados!#REF!)","v":"-"},{"$f":"IF(ISERROR(Dados!#REF!),\"-\",Dados!#REF!)","v":"-"},{"$f":"IF(ISERROR(Dados!#REF!),\"-\",Dados!#REF!)","v":"-"},{"$f":"IF(ISERROR(Dados!#REF!),\"-\",Dados!#REF!)","v":"-"},{"$f":"IF(ISERROR(Dados!#REF!),\"-\",Dados!#REF!)","v":"-"},{"$f":"IF(ISERROR(Dados!#REF!),\"-\",Dados!#REF!)","v":"-"},{"$f":"IF(ISERROR(Dados!#REF!),\"-\",Dados!#REF!)","v":"-"},{"$f":"IF(ISERROR(Dados!#REF!),\"-\",Dados!#REF!)","v":"-"},{"$f":"IF(ISERROR(Dados!#REF!),\"-\",Dados!#REF!)","v":"-"},{"$f":"IF(ISERROR(Dados!#REF!),\"-\",Dados!#REF!)","v":"-"},{"$f":"IF(ISERROR(Dados!#REF!),\"-\",Dados!#REF!)","v":"-"},{"$f":"IF(ISERROR(Dados!#REF!),\"-\",Dados!#REF!)","v":"-"},{"$f":"IF(ISERROR(Dados!#REF!),\"-\",Dados!#REF!)","v":"-"},{"$f":"IF(ISERROR(Dados!#REF!),\"-\",Dados!#REF!)","v":"-"},{"$f":"IF(ISERROR(Dados!#REF!),\"-\",Dados!#REF!)","v":"-"},{"$f":"IF(ISERROR(Dados!#REF!),\"-\",Dados!#REF!)","v":"-"},{"$f":"IF(ISERROR(Dados!#REF!),\"-\",Dados!#REF!)","v":"-"}]
[{"$f":"IF(ISERROR(Dados!#REF!),\"-\",Dados!#REF!)","v":"-"},{"$f":"IF(ISERROR(Dados!#REF!),\"-\",Dados!#REF!)","v":"-"},{"$f":"IF(ISERROR(Dados!#REF!),\"-\",Dados!#REF!)","v":"-"},{"$f":"IF(ISERROR(Dados!#REF!),\"-\",Dados!#REF!)","v":"-"},{"$f":"IF(ISERROR(Dados!#REF!),\"-\",Dados!#REF!)","v":"-"},{"$f":"IF(ISERROR(Dados!#REF!),\"-\",Dados!#REF!)","v":"-"},{"$f":"IF(ISERROR(Dados!#REF!),\"-\",Dados!#REF!)","v":"-"},{"$f":"IF(ISERROR(Dados!#REF!),\"-\",Dados!#REF!)","v":"-"},{"$f":"IF(ISERROR(Dados!#REF!),\"-\",Dados!#REF!)","v":"-"},{"$f":"IF(ISERROR(Dados!#REF!),\"-\",Dados!#REF!)","v":"-"},{"$f":"IF(ISERROR(Dados!#REF!),\"-\",Dados!#REF!)","v":"-"},{"$f":"IF(ISERROR(Dados!#REF!),\"-\",Dados!#REF!)","v":"-"},{"$f":"IF(ISERROR(Dados!#REF!),\"-\",Dados!#REF!)","v":"-"},{"$f":"IF(ISERROR(Dados!#REF!),\"-\",Dados!#REF!)","v":"-"},{"$f":"IF(ISERROR(Dados!#REF!),\"-\",Dados!#REF!)","v":"-"},{"$f":"IF(ISERROR(Dados!#REF!),\"-\",Dados!#REF!)","v":"-"},{"$f":"IF(ISERROR(Dados!#REF!),\"-\",Dados!#REF!)","v":"-"},{"$f":"IF(ISERROR(Dados!#REF!),\"-\",Dados!#REF!)","v":"-"},{"$f":"IF(ISERROR(Dados!#REF!),\"-\",Dados!#REF!)","v":"-"},{"$f":"IF(ISERROR(Dados!#REF!),\"-\",Dados!#REF!)","v":"-"},{"$f":"IF(ISERROR(Dados!#REF!),\"-\",Dados!#REF!)","v":"-"},{"$f":"IF(ISERROR(Dados!#REF!),\"-\",Dados!#REF!)","v":"-"},{"$f":"IF(ISERROR(Dados!#REF!),\"-\",Dados!#REF!)","v":"-"},{"$f":"IF(ISERROR(Dados!#REF!),\"-\",Dados!#REF!)","v":"-"},{"$f":"IF(ISERROR(Dados!#REF!),\"-\",Dados!#REF!)","v":"-"},{"$f":"IF(ISERROR(Dados!#REF!),\"-\",Dados!#REF!)","v":"-"},{"$f":"IF(ISERROR(Dados!#REF!),\"-\",Dados!#REF!)","v":"-"},{"$f":"IF(ISERROR(Dados!#REF!),\"-\",Dados!#REF!)","v":"-"},{"$f":"IF(ISERROR(Dados!#REF!),\"-\",Dados!#REF!)","v":"-"},{"$f":"IF(ISERROR(Dados!#REF!),\"-\",Dados!#REF!)","v":"-"},{"$f":"IF(ISERROR(Dados!#REF!),\"-\",Dados!#REF!)","v":"-"},{"$f":"IF(ISERROR(Dados!#REF!),\"-\",Dados!#REF!)","v":"-"},{"$f":"IF(ISERROR(Dados!#REF!),\"-\",Dados!#REF!)","v":"-"}]
[{"$f":"IF(ISERROR(Dados!#REF!),\"-\",Dados!#REF!)","v":"-"},{"$f":"IF(ISERROR(Dados!#REF!),\"-\",Dados!#REF!)","v":"-"},{"$f":"IF(ISERROR(Dados!#REF!),\"-\",Dados!#REF!)","v":"-"},{"$f":"IF(ISERROR(Dados!#REF!),\"-\",Dados!#REF!)","v":"-"},{"$f":"IF(ISERROR(Dados!#REF!),\"-\",Dados!#REF!)","v":"-"},{"$f":"IF(ISERROR(Dados!#REF!),\"-\",Dados!#REF!)","v":"-"},{"$f":"IF(ISERROR(Dados!#REF!),\"-\",Dados!#REF!)","v":"-"},{"$f":"IF(ISERROR(Dados!#REF!),\"-\",Dados!#REF!)","v":"-"},{"$f":"IF(ISERROR(Dados!#REF!),\"-\",Dados!#REF!)","v":"-"},{"$f":"IF(ISERROR(Dados!#REF!),\"-\",Dados!#REF!)","v":"-"},{"$f":"IF(ISERROR(Dados!#REF!),\"-\",Dados!#REF!)","v":"-"},{"$f":"IF(ISERROR(Dados!#REF!),\"-\",Dados!#REF!)","v":"-"},{"$f":"IF(ISERROR(Dados!#REF!),\"-\",Dados!#REF!)","v":"-"},{"$f":"IF(ISERROR(Dados!#REF!),\"-\",Dados!#REF!)","v":"-"},{"$f":"IF(ISERROR(Dados!#REF!),\"-\",Dados!#REF!)","v":"-"},{"$f":"IF(ISERROR(Dados!#REF!),\"-\",Dados!#REF!)","v":"-"},{"$f":"IF(ISERROR(Dados!#REF!),\"-\",Dados!#REF!)","v":"-"},{"$f":"IF(ISERROR(Dados!#REF!),\"-\",Dados!#REF!)","v":"-"},{"$f":"IF(ISERROR(Dados!#REF!),\"-\",Dados!#REF!)","v":"-"},{"$f":"IF(ISERROR(Dados!#REF!),\"-\",Dados!#REF!)","v":"-"},{"$f":"IF(ISERROR(Dados!#REF!),\"-\",Dados!#REF!)","v":"-"},{"$f":"IF(ISERROR(Dados!#REF!),\"-\",Dados!#REF!)","v":"-"},{"$f":"IF(ISERROR(Dados!#REF!),\"-\",Dados!#REF!)","v":"-"},{"$f":"IF(ISERROR(Dados!#REF!),\"-\",Dados!#REF!)","v":"-"},{"$f":"IF(ISERROR(Dados!#REF!),\"-\",Dados!#REF!)","v":"-"},{"$f":"IF(ISERROR(Dados!#REF!),\"-\",Dados!#REF!)","v":"-"},{"$f":"IF(ISERROR(Dados!#REF!),\"-\",Dados!#REF!)","v":"-"},{"$f":"IF(ISERROR(Dados!#REF!),\"-\",Dados!#REF!)","v":"-"},{"$f":"IF(ISERROR(Dados!#REF!),\"-\",Dados!#REF!)","v":"-"},{"$f":"IF(ISERROR(Dados!#REF!),\"-\",Dados!#REF!)","v":"-"},{"$f":"IF(ISERROR(Dados!#REF!),\"-\",Dados!#REF!)","v":"-"},{"$f":"IF(ISERROR(Dados!#REF!),\"-\",Dados!#REF!)","v":"-"},{"$f":"IF(ISERROR(Dados!#REF!),\"-\",Dados!#REF!)","v":"-"}]
[{"$f":"IF(ISERROR(Dados!#REF!),\"-\",Dados!#REF!)","v":"-"},{"$f":"IF(ISERROR(Dados!#REF!),\"-\",Dados!#REF!)","v":"-"},{"$f":"IF(ISERROR(Dados!#REF!),\"-\",Dados!#REF!)","v":"-"},{"$f":"IF(ISERROR(Dados!#REF!),\"-\",Dados!#REF!)","v":"-"},{"$f":"IF(ISERROR(Dados!#REF!),\"-\",Dados!#REF!)","v":"-"},{"$f":"IF(ISERROR(Dados!#REF!),\"-\",Dados!#REF!)","v":"-"},{"$f":"IF(ISERROR(Dados!#REF!),\"-\",Dados!#REF!)","v":"-"},{"$f":"IF(ISERROR(Dados!#REF!),\"-\",Dados!#REF!)","v":"-"},{"$f":"IF(ISERROR(Dados!#REF!),\"-\",Dados!#REF!)","v":"-"},{"$f":"IF(ISERROR(Dados!#REF!),\"-\",Dados!#REF!)","v":"-"},{"$f":"IF(ISERROR(Dados!#REF!),\"-\",Dados!#REF!)","v":"-"},{"$f":"IF(ISERROR(Dados!#REF!),\"-\",Dados!#REF!)","v":"-"},{"$f":"IF(ISERROR(Dados!#REF!),\"-\",Dados!#REF!)","v":"-"},{"$f":"IF(ISERROR(Dados!#REF!),\"-\",Dados!#REF!)","v":"-"},{"$f":"IF(ISERROR(Dados!#REF!),\"-\",Dados!#REF!)","v":"-"},{"$f":"IF(ISERROR(Dados!#REF!),\"-\",Dados!#REF!)","v":"-"},{"$f":"IF(ISERROR(Dados!#REF!),\"-\",Dados!#REF!)","v":"-"},{"$f":"IF(ISERROR(Dados!#REF!),\"-\",Dados!#REF!)","v":"-"},{"$f":"IF(ISERROR(Dados!#REF!),\"-\",Dados!#REF!)","v":"-"},{"$f":"IF(ISERROR(Dados!#REF!),\"-\",Dados!#REF!)","v":"-"},{"$f":"IF(ISERROR(Dados!#REF!),\"-\",Dados!#REF!)","v":"-"},{"$f":"IF(ISERROR(Dados!#REF!),\"-\",Dados!#REF!)","v":"-"},{"$f":"IF(ISERROR(Dados!#REF!),\"-\",Dados!#REF!)","v":"-"},{"$f":"IF(ISERROR(Dados!#REF!),\"-\",Dados!#REF!)","v":"-"},{"$f":"IF(ISERROR(Dados!#REF!),\"-\",Dados!#REF!)","v":"-"},{"$f":"IF(ISERROR(Dados!#REF!),\"-\",Dados!#REF!)","v":"-"},{"$f":"IF(ISERROR(Dados!#REF!),\"-\",Dados!#REF!)","v":"-"},{"$f":"IF(ISERROR(Dados!#REF!),\"-\",Dados!#REF!)","v":"-"},{"$f":"IF(ISERROR(Dados!#REF!),\"-\",Dados!#REF!)","v":"-"},{"$f":"IF(ISERROR(Dados!#REF!),\"-\",Dados!#REF!)","v":"-"},{"$f":"IF(ISERROR(Dados!#REF!),\"-\",Dados!#REF!)","v":"-"},{"$f":"IF(ISERROR(Dados!#REF!),\"-\",Dados!#REF!)","v":"-"},{"$f":"IF(ISERROR(Dados!#REF!),\"-\",Dados!#REF!)","v":"-"}]
[{"$f":"IF(ISERROR(Dados!A262),\"-\",Dados!A262)","v":"-"},{"$f":"IF(ISERROR(Dados!B262),\"-\",Dados!B262)","v":"-"},{"$f":"IF(ISERROR(Dados!C262),\"-\",Dados!C262)","v":"-"},{"$f":"IF(ISERROR(Dados!D262),\"-\",Dados!D262)","v":"-"},{"$f":"IF(ISERROR(Dados!E262),\"-\",Dados!E262)","v":"-"},{"$f":"IF(ISERROR(Dados!F262),\"-\",Dados!F262)","v":"-"},{"$f":"IF(ISERROR(Dados!G262),\"-\",Dados!G262)","v":"-"},{"$f":"IF(ISERROR(Dados!H262),\"-\",Dados!H262)","v":"-"},{"$f":"IF(ISERROR(Dados!I262),\"-\",Dados!I262)","v":"-"},{"$f":"IF(ISERROR(Dados!J262),\"-\",Dados!J262)","v":"-"},{"$f":"IF(ISERROR(Dados!K262),\"-\",Dados!K262)","v":"-"},{"$f":"IF(ISERROR(Dados!L262),\"-\",Dados!L262)","v":"-"},{"$f":"IF(ISERROR(Dados!M262),\"-\",Dados!M262)","v":"-"},{"$f":"IF(ISERROR(Dados!N262),\"-\",Dados!N262)","v":"-"},{"$f":"IF(ISERROR(Dados!O262),\"-\",Dados!O262)","v":"-"},{"$f":"IF(ISERROR(Dados!P262),\"-\",Dados!P262)","v":"-"},{"$f":"IF(ISERROR(Dados!Q262),\"-\",Dados!Q262)","v":"-"},{"$f":"IF(ISERROR(Dados!R262),\"-\",Dados!R262)","v":"-"},{"$f":"IF(ISERROR(Dados!S262),\"-\",Dados!S262)","v":"-"},{"$f":"IF(ISERROR(Dados!T262),\"-\",Dados!T262)","v":"-"},{"$f":"IF(ISERROR(Dados!U262),\"-\",Dados!U262)","v":"-"},{"$f":"IF(ISERROR(Dados!V262),\"-\",Dados!V262)","v":"-"},{"$f":"IF(ISERROR(Dados!W262),\"-\",Dados!W262)","v":"-"},{"$f":"IF(ISERROR(Dados!X262),\"-\",Dados!X262)","v":"-"},{"$f":"IF(ISERROR(Dados!Y262),\"-\",Dados!Y262)","v":"-"},{"$f":"IF(ISERROR(Dados!Z262),\"-\",Dados!Z262)","v":"-"},{"$f":"IF(ISERROR(Dados!AA262),\"-\",Dados!AA262)","v":"-"},{"$f":"IF(ISERROR(Dados!AB262),\"-\",Dados!AB262)","v":"-"},{"$f":"IF(ISERROR(Dados!AC262),\"-\",Dados!AC262)","v":"-"},{"$f":"IF(ISERROR(Dados!AD262),\"-\",Dados!AD262)","v":"-"},{"$f":"IF(ISERROR(Dados!AE262),\"-\",Dados!AE262)","v":"-"},{"$f":"IF(ISERROR(Dados!AF262),\"-\",Dados!AF262)","v":"-"},{"$f":"IF(ISERROR(Dados!AG262),\"-\",Dados!AG262)","v":"-"}]
[{"$f":"IF(ISERROR(Dados!A263),\"-\",Dados!A263)","v":"-"},{"$f":"IF(ISERROR(Dados!B263),\"-\",Dados!B263)","v":"-"},{"$f":"IF(ISERROR(Dados!C263),\"-\",Dados!C263)","v":"-"},{"$f":"IF(ISERROR(Dados!D263),\"-\",Dados!D263)","v":"-"},{"$f":"IF(ISERROR(Dados!E263),\"-\",Dados!E263)","v":"-"},{"$f":"IF(ISERROR(Dados!F263),\"-\",Dados!F263)","v":"-"},{"$f":"IF(ISERROR(Dados!G263),\"-\",Dados!G263)","v":"-"},{"$f":"IF(ISERROR(Dados!H263),\"-\",Dados!H263)","v":"-"},{"$f":"IF(ISERROR(Dados!I263),\"-\",Dados!I263)","v":"-"},{"$f":"IF(ISERROR(Dados!J263),\"-\",Dados!J263)","v":"-"},{"$f":"IF(ISERROR(Dados!K263),\"-\",Dados!K263)","v":"-"},{"$f":"IF(ISERROR(Dados!L263),\"-\",Dados!L263)","v":"-"},{"$f":"IF(ISERROR(Dados!M263),\"-\",Dados!M263)","v":"-"},{"$f":"IF(ISERROR(Dados!N263),\"-\",Dados!N263)","v":"-"},{"$f":"IF(ISERROR(Dados!O263),\"-\",Dados!O263)","v":"-"},{"$f":"IF(ISERROR(Dados!P263),\"-\",Dados!P263)","v":"-"},{"$f":"IF(ISERROR(Dados!Q263),\"-\",Dados!Q263)","v":"-"},{"$f":"IF(ISERROR(Dados!R263),\"-\",Dados!R263)","v":"-"},{"$f":"IF(ISERROR(Dados!S263),\"-\",Dados!S263)","v":"-"},{"$f":"IF(ISERROR(Dados!T263),\"-\",Dados!T263)","v":"-"},{"$f":"IF(ISERROR(Dados!U263),\"-\",Dados!U263)","v":"-"},{"$f":"IF(ISERROR(Dados!V263),\"-\",Dados!V263)","v":"-"},{"$f":"IF(ISERROR(Dados!W263),\"-\",Dados!W263)","v":"-"},{"$f":"IF(ISERROR(Dados!X263),\"-\",Dados!X263)","v":"-"},{"$f":"IF(ISERROR(Dados!Y263),\"-\",Dados!Y263)","v":"-"},{"$f":"IF(ISERROR(Dados!Z263),\"-\",Dados!Z263)","v":"-"},{"$f":"IF(ISERROR(Dados!AA263),\"-\",Dados!AA263)","v":"-"},{"$f":"IF(ISERROR(Dados!AB263),\"-\",Dados!AB263)","v":"-"},{"$f":"IF(ISERROR(Dados!AC263),\"-\",Dados!AC263)","v":"-"},{"$f":"IF(ISERROR(Dados!AD263),\"-\",Dados!AD263)","v":"-"},{"$f":"IF(ISERROR(Dados!AE263),\"-\",Dados!AE263)","v":"-"},{"$f":"IF(ISERROR(Dados!AF263),\"-\",Dados!AF263)","v":"-"},{"$f":"IF(ISERROR(Dados!AG263),\"-\",Dados!AG263)","v":"-"}]
[{"$f":"IF(ISERROR(Dados!A264),\"-\",Dados!A264)","v":"-"},{"$f":"IF(ISERROR(Dados!B264),\"-\",Dados!B264)","v":"-"},{"$f":"IF(ISERROR(Dados!C264),\"-\",Dados!C264)","v":"-"},{"$f":"IF(ISERROR(Dados!D264),\"-\",Dados!D264)","v":"-"},{"$f":"IF(ISERROR(Dados!E264),\"-\",Dados!E264)","v":"-"},{"$f":"IF(ISERROR(Dados!F264),\"-\",Dados!F264)","v":"-"},{"$f":"IF(ISERROR(Dados!G264),\"-\",Dados!G264)","v":"-"},{"$f":"IF(ISERROR(Dados!H264),\"-\",Dados!H264)","v":"-"},{"$f":"IF(ISERROR(Dados!I264),\"-\",Dados!I264)","v":"-"},{"$f":"IF(ISERROR(Dados!J264),\"-\",Dados!J264)","v":"-"},{"$f":"IF(ISERROR(Dados!K264),\"-\",Dados!K264)","v":"-"},{"$f":"IF(ISERROR(Dados!L264),\"-\",Dados!L264)","v":"-"},{"$f":"IF(ISERROR(Dados!M264),\"-\",Dados!M264)","v":"-"},{"$f":"IF(ISERROR(Dados!N264),\"-\",Dados!N264)","v":"-"},{"$f":"IF(ISERROR(Dados!O264),\"-\",Dados!O264)","v":"-"},{"$f":"IF(ISERROR(Dados!P264),\"-\",Dados!P264)","v":"-"},{"$f":"IF(ISERROR(Dados!Q264),\"-\",Dados!Q264)","v":"-"},{"$f":"IF(ISERROR(Dados!R264),\"-\",Dados!R264)","v":"-"},{"$f":"IF(ISERROR(Dados!S264),\"-\",Dados!S264)","v":"-"},{"$f":"IF(ISERROR(Dados!T264),\"-\",Dados!T264)","v":"-"},{"$f":"IF(ISERROR(Dados!U264),\"-\",Dados!U264)","v":"-"},{"$f":"IF(ISERROR(Dados!V264),\"-\",Dados!V264)","v":"-"},{"$f":"IF(ISERROR(Dados!W264),\"-\",Dados!W264)","v":"-"},{"$f":"IF(ISERROR(Dados!X264),\"-\",Dados!X264)","v":"-"},{"$f":"IF(ISERROR(Dados!Y264),\"-\",Dados!Y264)","v":"-"},{"$f":"IF(ISERROR(Dados!Z264),\"-\",Dados!Z264)","v":"-"},{"$f":"IF(ISERROR(Dados!AA264),\"-\",Dados!AA264)","v":"-"},{"$f":"IF(ISERROR(Dados!AB264),\"-\",Dados!AB264)","v":"-"},{"$f":"IF(ISERROR(Dados!AC264),\"-\",Dados!AC264)","v":"-"},{"$f":"IF(ISERROR(Dados!AD264),\"-\",Dados!AD264)","v":"-"},{"$f":"IF(ISERROR(Dados!AE264),\"-\",Dados!AE264)","v":"-"},{"$f":"IF(ISERROR(Dados!AF264),\"-\",Dados!AF264)","v":"-"},{"$f":"IF(ISERROR(Dados!AG264),\"-\",Dados!AG264)","v":"-"}]
[{"$f":"IF(ISERROR(Dados!#REF!),\"-\",Dados!#REF!)","v":"-"},{"$f":"IF(ISERROR(Dados!#REF!),\"-\",Dados!#REF!)","v":"-"},{"$f":"IF(ISERROR(Dados!#REF!),\"-\",Dados!#REF!)","v":"-"},{"$f":"IF(ISERROR(Dados!#REF!),\"-\",Dados!#REF!)","v":"-"},{"$f":"IF(ISERROR(Dados!#REF!),\"-\",Dados!#REF!)","v":"-"},{"$f":"IF(ISERROR(Dados!#REF!),\"-\",Dados!#REF!)","v":"-"},{"$f":"IF(ISERROR(Dados!#REF!),\"-\",Dados!#REF!)","v":"-"},{"$f":"IF(ISERROR(Dados!#REF!),\"-\",Dados!#REF!)","v":"-"},{"$f":"IF(ISERROR(Dados!#REF!),\"-\",Dados!#REF!)","v":"-"},{"$f":"IF(ISERROR(Dados!#REF!),\"-\",Dados!#REF!)","v":"-"},{"$f":"IF(ISERROR(Dados!#REF!),\"-\",Dados!#REF!)","v":"-"},{"$f":"IF(ISERROR(Dados!#REF!),\"-\",Dados!#REF!)","v":"-"},{"$f":"IF(ISERROR(Dados!#REF!),\"-\",Dados!#REF!)","v":"-"},{"$f":"IF(ISERROR(Dados!#REF!),\"-\",Dados!#REF!)","v":"-"},{"$f":"IF(ISERROR(Dados!#REF!),\"-\",Dados!#REF!)","v":"-"},{"$f":"IF(ISERROR(Dados!#REF!),\"-\",Dados!#REF!)","v":"-"},{"$f":"IF(ISERROR(Dados!#REF!),\"-\",Dados!#REF!)","v":"-"},{"$f":"IF(ISERROR(Dados!#REF!),\"-\",Dados!#REF!)","v":"-"},{"$f":"IF(ISERROR(Dados!#REF!),\"-\",Dados!#REF!)","v":"-"},{"$f":"IF(ISERROR(Dados!#REF!),\"-\",Dados!#REF!)","v":"-"},{"$f":"IF(ISERROR(Dados!#REF!),\"-\",Dados!#REF!)","v":"-"},{"$f":"IF(ISERROR(Dados!#REF!),\"-\",Dados!#REF!)","v":"-"},{"$f":"IF(ISERROR(Dados!#REF!),\"-\",Dados!#REF!)","v":"-"},{"$f":"IF(ISERROR(Dados!#REF!),\"-\",Dados!#REF!)","v":"-"},{"$f":"IF(ISERROR(Dados!#REF!),\"-\",Dados!#REF!)","v":"-"},{"$f":"IF(ISERROR(Dados!#REF!),\"-\",Dados!#REF!)","v":"-"},{"$f":"IF(ISERROR(Dados!#REF!),\"-\",Dados!#REF!)","v":"-"},{"$f":"IF(ISERROR(Dados!#REF!),\"-\",Dados!#REF!)","v":"-"},{"$f":"IF(ISERROR(Dados!#REF!),\"-\",Dados!#REF!)","v":"-"},{"$f":"IF(ISERROR(Dados!#REF!),\"-\",Dados!#REF!)","v":"-"},{"$f":"IF(ISERROR(Dados!#REF!),\"-\",Dados!#REF!)","v":"-"},{"$f":"IF(ISERROR(Dados!#REF!),\"-\",Dados!#REF!)","v":"-"},{"$f":"IF(ISERROR(Dados!#REF!),\"-\",Dados!#REF!)","v":"-"}]
[{"$f":"IF(ISERROR(Dados!#REF!),\"-\",Dados!#REF!)","v":"-"},{"$f":"IF(ISERROR(Dados!#REF!),\"-\",Dados!#REF!)","v":"-"},{"$f":"IF(ISERROR(Dados!#REF!),\"-\",Dados!#REF!)","v":"-"},{"$f":"IF(ISERROR(Dados!#REF!),\"-\",Dados!#REF!)","v":"-"},{"$f":"IF(ISERROR(Dados!#REF!),\"-\",Dados!#REF!)","v":"-"},{"$f":"IF(ISERROR(Dados!#REF!),\"-\",Dados!#REF!)","v":"-"},{"$f":"IF(ISERROR(Dados!#REF!),\"-\",Dados!#REF!)","v":"-"},{"$f":"IF(ISERROR(Dados!#REF!),\"-\",Dados!#REF!)","v":"-"},{"$f":"IF(ISERROR(Dados!#REF!),\"-\",Dados!#REF!)","v":"-"},{"$f":"IF(ISERROR(Dados!#REF!),\"-\",Dados!#REF!)","v":"-"},{"$f":"IF(ISERROR(Dados!#REF!),\"-\",Dados!#REF!)","v":"-"},{"$f":"IF(ISERROR(Dados!#REF!),\"-\",Dados!#REF!)","v":"-"},{"$f":"IF(ISERROR(Dados!#REF!),\"-\",Dados!#REF!)","v":"-"},{"$f":"IF(ISERROR(Dados!#REF!),\"-\",Dados!#REF!)","v":"-"},{"$f":"IF(ISERROR(Dados!#REF!),\"-\",Dados!#REF!)","v":"-"},{"$f":"IF(ISERROR(Dados!#REF!),\"-\",Dados!#REF!)","v":"-"},{"$f":"IF(ISERROR(Dados!#REF!),\"-\",Dados!#REF!)","v":"-"},{"$f":"IF(ISERROR(Dados!#REF!),\"-\",Dados!#REF!)","v":"-"},{"$f":"IF(ISERROR(Dados!#REF!),\"-\",Dados!#REF!)","v":"-"},{"$f":"IF(ISERROR(Dados!#REF!),\"-\",Dados!#REF!)","v":"-"},{"$f":"IF(ISERROR(Dados!#REF!),\"-\",Dados!#REF!)","v":"-"},{"$f":"IF(ISERROR(Dados!#REF!),\"-\",Dados!#REF!)","v":"-"},{"$f":"IF(ISERROR(Dados!#REF!),\"-\",Dados!#REF!)","v":"-"},{"$f":"IF(ISERROR(Dados!#REF!),\"-\",Dados!#REF!)","v":"-"},{"$f":"IF(ISERROR(Dados!#REF!),\"-\",Dados!#REF!)","v":"-"},{"$f":"IF(ISERROR(Dados!#REF!),\"-\",Dados!#REF!)","v":"-"},{"$f":"IF(ISERROR(Dados!#REF!),\"-\",Dados!#REF!)","v":"-"},{"$f":"IF(ISERROR(Dados!#REF!),\"-\",Dados!#REF!)","v":"-"},{"$f":"IF(ISERROR(Dados!#REF!),\"-\",Dados!#REF!)","v":"-"},{"$f":"IF(ISERROR(Dados!#REF!),\"-\",Dados!#REF!)","v":"-"},{"$f":"IF(ISERROR(Dados!#REF!),\"-\",Dados!#REF!)","v":"-"},{"$f":"IF(ISERROR(Dados!#REF!),\"-\",Dados!#REF!)","v":"-"},{"$f":"IF(ISERROR(Dados!#REF!),\"-\",Dados!#REF!)","v":"-"}]
[{"$f":"IF(ISERROR(Dados!#REF!),\"-\",Dados!#REF!)","v":"-"},{"$f":"IF(ISERROR(Dados!#REF!),\"-\",Dados!#REF!)","v":"-"},{"$f":"IF(ISERROR(Dados!#REF!),\"-\",Dados!#REF!)","v":"-"},{"$f":"IF(ISERROR(Dados!#REF!),\"-\",Dados!#REF!)","v":"-"},{"$f":"IF(ISERROR(Dados!#REF!),\"-\",Dados!#REF!)","v":"-"},{"$f":"IF(ISERROR(Dados!#REF!),\"-\",Dados!#REF!)","v":"-"},{"$f":"IF(ISERROR(Dados!#REF!),\"-\",Dados!#REF!)","v":"-"},{"$f":"IF(ISERROR(Dados!#REF!),\"-\",Dados!#REF!)","v":"-"},{"$f":"IF(ISERROR(Dados!#REF!),\"-\",Dados!#REF!)","v":"-"},{"$f":"IF(ISERROR(Dados!#REF!),\"-\",Dados!#REF!)","v":"-"},{"$f":"IF(ISERROR(Dados!#REF!),\"-\",Dados!#REF!)","v":"-"},{"$f":"IF(ISERROR(Dados!#REF!),\"-\",Dados!#REF!)","v":"-"},{"$f":"IF(ISERROR(Dados!#REF!),\"-\",Dados!#REF!)","v":"-"},{"$f":"IF(ISERROR(Dados!#REF!),\"-\",Dados!#REF!)","v":"-"},{"$f":"IF(ISERROR(Dados!#REF!),\"-\",Dados!#REF!)","v":"-"},{"$f":"IF(ISERROR(Dados!#REF!),\"-\",Dados!#REF!)","v":"-"},{"$f":"IF(ISERROR(Dados!#REF!),\"-\",Dados!#REF!)","v":"-"},{"$f":"IF(ISERROR(Dados!#REF!),\"-\",Dados!#REF!)","v":"-"},{"$f":"IF(ISERROR(Dados!#REF!),\"-\",Dados!#REF!)","v":"-"},{"$f":"IF(ISERROR(Dados!#REF!),\"-\",Dados!#REF!)","v":"-"},{"$f":"IF(ISERROR(Dados!#REF!),\"-\",Dados!#REF!)","v":"-"},{"$f":"IF(ISERROR(Dados!#REF!),\"-\",Dados!#REF!)","v":"-"},{"$f":"IF(ISERROR(Dados!#REF!),\"-\",Dados!#REF!)","v":"-"},{"$f":"IF(ISERROR(Dados!#REF!),\"-\",Dados!#REF!)","v":"-"},{"$f":"IF(ISERROR(Dados!#REF!),\"-\",Dados!#REF!)","v":"-"},{"$f":"IF(ISERROR(Dados!#REF!),\"-\",Dados!#REF!)","v":"-"},{"$f":"IF(ISERROR(Dados!#REF!),\"-\",Dados!#REF!)","v":"-"},{"$f":"IF(ISERROR(Dados!#REF!),\"-\",Dados!#REF!)","v":"-"},{"$f":"IF(ISERROR(Dados!#REF!),\"-\",Dados!#REF!)","v":"-"},{"$f":"IF(ISERROR(Dados!#REF!),\"-\",Dados!#REF!)","v":"-"},{"$f":"IF(ISERROR(Dados!#REF!),\"-\",Dados!#REF!)","v":"-"},{"$f":"IF(ISERROR(Dados!#REF!),\"-\",Dados!#REF!)","v":"-"},{"$f":"IF(ISERROR(Dados!#REF!),\"-\",Dados!#REF!)","v":"-"}]
[{"$f":"IF(ISERROR(Dados!#REF!),\"-\",Dados!#REF!)","v":"-"},{"$f":"IF(ISERROR(Dados!#REF!),\"-\",Dados!#REF!)","v":"-"},{"$f":"IF(ISERROR(Dados!#REF!),\"-\",Dados!#REF!)","v":"-"},{"$f":"IF(ISERROR(Dados!#REF!),\"-\",Dados!#REF!)","v":"-"},{"$f":"IF(ISERROR(Dados!#REF!),\"-\",Dados!#REF!)","v":"-"},{"$f":"IF(ISERROR(Dados!#REF!),\"-\",Dados!#REF!)","v":"-"},{"$f":"IF(ISERROR(Dados!#REF!),\"-\",Dados!#REF!)","v":"-"},{"$f":"IF(ISERROR(Dados!#REF!),\"-\",Dados!#REF!)","v":"-"},{"$f":"IF(ISERROR(Dados!#REF!),\"-\",Dados!#REF!)","v":"-"},{"$f":"IF(ISERROR(Dados!#REF!),\"-\",Dados!#REF!)","v":"-"},{"$f":"IF(ISERROR(Dados!#REF!),\"-\",Dados!#REF!)","v":"-"},{"$f":"IF(ISERROR(Dados!#REF!),\"-\",Dados!#REF!)","v":"-"},{"$f":"IF(ISERROR(Dados!#REF!),\"-\",Dados!#REF!)","v":"-"},{"$f":"IF(ISERROR(Dados!#REF!),\"-\",Dados!#REF!)","v":"-"},{"$f":"IF(ISERROR(Dados!#REF!),\"-\",Dados!#REF!)","v":"-"},{"$f":"IF(ISERROR(Dados!#REF!),\"-\",Dados!#REF!)","v":"-"},{"$f":"IF(ISERROR(Dados!#REF!),\"-\",Dados!#REF!)","v":"-"},{"$f":"IF(ISERROR(Dados!#REF!),\"-\",Dados!#REF!)","v":"-"},{"$f":"IF(ISERROR(Dados!#REF!),\"-\",Dados!#REF!)","v":"-"},{"$f":"IF(ISERROR(Dados!#REF!),\"-\",Dados!#REF!)","v":"-"},{"$f":"IF(ISERROR(Dados!#REF!),\"-\",Dados!#REF!)","v":"-"},{"$f":"IF(ISERROR(Dados!#REF!),\"-\",Dados!#REF!)","v":"-"},{"$f":"IF(ISERROR(Dados!#REF!),\"-\",Dados!#REF!)","v":"-"},{"$f":"IF(ISERROR(Dados!#REF!),\"-\",Dados!#REF!)","v":"-"},{"$f":"IF(ISERROR(Dados!#REF!),\"-\",Dados!#REF!)","v":"-"},{"$f":"IF(ISERROR(Dados!#REF!),\"-\",Dados!#REF!)","v":"-"},{"$f":"IF(ISERROR(Dados!#REF!),\"-\",Dados!#REF!)","v":"-"},{"$f":"IF(ISERROR(Dados!#REF!),\"-\",Dados!#REF!)","v":"-"},{"$f":"IF(ISERROR(Dados!#REF!),\"-\",Dados!#REF!)","v":"-"},{"$f":"IF(ISERROR(Dados!#REF!),\"-\",Dados!#REF!)","v":"-"},{"$f":"IF(ISERROR(Dados!#REF!),\"-\",Dados!#REF!)","v":"-"},{"$f":"IF(ISERROR(Dados!#REF!),\"-\",Dados!#REF!)","v":"-"},{"$f":"IF(ISERROR(Dados!#REF!),\"-\",Dados!#REF!)","v":"-"}]
[{"$f":"IF(ISERROR(Dados!#REF!),\"-\",Dados!#REF!)","v":"-"},{"$f":"IF(ISERROR(Dados!#REF!),\"-\",Dados!#REF!)","v":"-"},{"$f":"IF(ISERROR(Dados!#REF!),\"-\",Dados!#REF!)","v":"-"},{"$f":"IF(ISERROR(Dados!#REF!),\"-\",Dados!#REF!)","v":"-"},{"$f":"IF(ISERROR(Dados!#REF!),\"-\",Dados!#REF!)","v":"-"},{"$f":"IF(ISERROR(Dados!#REF!),\"-\",Dados!#REF!)","v":"-"},{"$f":"IF(ISERROR(Dados!#REF!),\"-\",Dados!#REF!)","v":"-"},{"$f":"IF(ISERROR(Dados!#REF!),\"-\",Dados!#REF!)","v":"-"},{"$f":"IF(ISERROR(Dados!#REF!),\"-\",Dados!#REF!)","v":"-"},{"$f":"IF(ISERROR(Dados!#REF!),\"-\",Dados!#REF!)","v":"-"},{"$f":"IF(ISERROR(Dados!#REF!),\"-\",Dados!#REF!)","v":"-"},{"$f":"IF(ISERROR(Dados!#REF!),\"-\",Dados!#REF!)","v":"-"},{"$f":"IF(ISERROR(Dados!#REF!),\"-\",Dados!#REF!)","v":"-"},{"$f":"IF(ISERROR(Dados!#REF!),\"-\",Dados!#REF!)","v":"-"},{"$f":"IF(ISERROR(Dados!#REF!),\"-\",Dados!#REF!)","v":"-"},{"$f":"IF(ISERROR(Dados!#REF!),\"-\",Dados!#REF!)","v":"-"},{"$f":"IF(ISERROR(Dados!#REF!),\"-\",Dados!#REF!)","v":"-"},{"$f":"IF(ISERROR(Dados!#REF!),\"-\",Dados!#REF!)","v":"-"},{"$f":"IF(ISERROR(Dados!#REF!),\"-\",Dados!#REF!)","v":"-"},{"$f":"IF(ISERROR(Dados!#REF!),\"-\",Dados!#REF!)","v":"-"},{"$f":"IF(ISERROR(Dados!#REF!),\"-\",Dados!#REF!)","v":"-"},{"$f":"IF(ISERROR(Dados!#REF!),\"-\",Dados!#REF!)","v":"-"},{"$f":"IF(ISERROR(Dados!#REF!),\"-\",Dados!#REF!)","v":"-"},{"$f":"IF(ISERROR(Dados!#REF!),\"-\",Dados!#REF!)","v":"-"},{"$f":"IF(ISERROR(Dados!#REF!),\"-\",Dados!#REF!)","v":"-"},{"$f":"IF(ISERROR(Dados!#REF!),\"-\",Dados!#REF!)","v":"-"},{"$f":"IF(ISERROR(Dados!#REF!),\"-\",Dados!#REF!)","v":"-"},{"$f":"IF(ISERROR(Dados!#REF!),\"-\",Dados!#REF!)","v":"-"},{"$f":"IF(ISERROR(Dados!#REF!),\"-\",Dados!#REF!)","v":"-"},{"$f":"IF(ISERROR(Dados!#REF!),\"-\",Dados!#REF!)","v":"-"},{"$f":"IF(ISERROR(Dados!#REF!),\"-\",Dados!#REF!)","v":"-"},{"$f":"IF(ISERROR(Dados!#REF!),\"-\",Dados!#REF!)","v":"-"},{"$f":"IF(ISERROR(Dados!#REF!),\"-\",Dados!#REF!)","v":"-"}]
[{"$f":"IF(ISERROR(Dados!#REF!),\"-\",Dados!#REF!)","v":"-"},{"$f":"IF(ISERROR(Dados!#REF!),\"-\",Dados!#REF!)","v":"-"},{"$f":"IF(ISERROR(Dados!#REF!),\"-\",Dados!#REF!)","v":"-"},{"$f":"IF(ISERROR(Dados!#REF!),\"-\",Dados!#REF!)","v":"-"},{"$f":"IF(ISERROR(Dados!#REF!),\"-\",Dados!#REF!)","v":"-"},{"$f":"IF(ISERROR(Dados!#REF!),\"-\",Dados!#REF!)","v":"-"},{"$f":"IF(ISERROR(Dados!#REF!),\"-\",Dados!#REF!)","v":"-"},{"$f":"IF(ISERROR(Dados!#REF!),\"-\",Dados!#REF!)","v":"-"},{"$f":"IF(ISERROR(Dados!#REF!),\"-\",Dados!#REF!)","v":"-"},{"$f":"IF(ISERROR(Dados!#REF!),\"-\",Dados!#REF!)","v":"-"},{"$f":"IF(ISERROR(Dados!#REF!),\"-\",Dados!#REF!)","v":"-"},{"$f":"IF(ISERROR(Dados!#REF!),\"-\",Dados!#REF!)","v":"-"},{"$f":"IF(ISERROR(Dados!#REF!),\"-\",Dados!#REF!)","v":"-"},{"$f":"IF(ISERROR(Dados!#REF!),\"-\",Dados!#REF!)","v":"-"},{"$f":"IF(ISERROR(Dados!#REF!),\"-\",Dados!#REF!)","v":"-"},{"$f":"IF(ISERROR(Dados!#REF!),\"-\",Dados!#REF!)","v":"-"},{"$f":"IF(ISERROR(Dados!#REF!),\"-\",Dados!#REF!)","v":"-"},{"$f":"IF(ISERROR(Dados!#REF!),\"-\",Dados!#REF!)","v":"-"},{"$f":"IF(ISERROR(Dados!#REF!),\"-\",Dados!#REF!)","v":"-"},{"$f":"IF(ISERROR(Dados!#REF!),\"-\",Dados!#REF!)","v":"-"},{"$f":"IF(ISERROR(Dados!#REF!),\"-\",Dados!#REF!)","v":"-"},{"$f":"IF(ISERROR(Dados!#REF!),\"-\",Dados!#REF!)","v":"-"},{"$f":"IF(ISERROR(Dados!#REF!),\"-\",Dados!#REF!)","v":"-"},{"$f":"IF(ISERROR(Dados!#REF!),\"-\",Dados!#REF!)","v":"-"},{"$f":"IF(ISERROR(Dados!#REF!),\"-\",Dados!#REF!)","v":"-"},{"$f":"IF(ISERROR(Dados!#REF!),\"-\",Dados!#REF!)","v":"-"},{"$f":"IF(ISERROR(Dados!#REF!),\"-\",Dados!#REF!)","v":"-"},{"$f":"IF(ISERROR(Dados!#REF!),\"-\",Dados!#REF!)","v":"-"},{"$f":"IF(ISERROR(Dados!#REF!),\"-\",Dados!#REF!)","v":"-"},{"$f":"IF(ISERROR(Dados!#REF!),\"-\",Dados!#REF!)","v":"-"},{"$f":"IF(ISERROR(Dados!#REF!),\"-\",Dados!#REF!)","v":"-"},{"$f":"IF(ISERROR(Dados!#REF!),\"-\",Dados!#REF!)","v":"-"},{"$f":"IF(ISERROR(Dados!#REF!),\"-\",Dados!#REF!)","v":"-"}]
[{"$f":"IF(ISERROR(Dados!A265),\"-\",Dados!A265)","v":"-"},{"$f":"IF(ISERROR(Dados!B265),\"-\",Dados!B265)","v":"-"},{"$f":"IF(ISERROR(Dados!C265),\"-\",Dados!C265)","v":"-"},{"$f":"IF(ISERROR(Dados!D265),\"-\",Dados!D265)","v":"-"},{"$f":"IF(ISERROR(Dados!E265),\"-\",Dados!E265)","v":"-"},{"$f":"IF(ISERROR(Dados!F265),\"-\",Dados!F265)","v":"-"},{"$f":"IF(ISERROR(Dados!G265),\"-\",Dados!G265)","v":"-"},{"$f":"IF(ISERROR(Dados!H265),\"-\",Dados!H265)","v":"-"},{"$f":"IF(ISERROR(Dados!I265),\"-\",Dados!I265)","v":"-"},{"$f":"IF(ISERROR(Dados!J265),\"-\",Dados!J265)","v":"-"},{"$f":"IF(ISERROR(Dados!K265),\"-\",Dados!K265)","v":"-"},{"$f":"IF(ISERROR(Dados!L265),\"-\",Dados!L265)","v":"-"},{"$f":"IF(ISERROR(Dados!M265),\"-\",Dados!M265)","v":"-"},{"$f":"IF(ISERROR(Dados!N265),\"-\",Dados!N265)","v":"-"},{"$f":"IF(ISERROR(Dados!O265),\"-\",Dados!O265)","v":"-"},{"$f":"IF(ISERROR(Dados!P265),\"-\",Dados!P265)","v":"-"},{"$f":"IF(ISERROR(Dados!Q265),\"-\",Dados!Q265)","v":"-"},{"$f":"IF(ISERROR(Dados!R265),\"-\",Dados!R265)","v":"-"},{"$f":"IF(ISERROR(Dados!S265),\"-\",Dados!S265)","v":"-"},{"$f":"IF(ISERROR(Dados!T265),\"-\",Dados!T265)","v":"-"},{"$f":"IF(ISERROR(Dados!U265),\"-\",Dados!U265)","v":"-"},{"$f":"IF(ISERROR(Dados!V265),\"-\",Dados!V265)","v":"-"},{"$f":"IF(ISERROR(Dados!W265),\"-\",Dados!W265)","v":"-"},{"$f":"IF(ISERROR(Dados!X265),\"-\",Dados!X265)","v":"-"},{"$f":"IF(ISERROR(Dados!Y265),\"-\",Dados!Y265)","v":"-"},{"$f":"IF(ISERROR(Dados!Z265),\"-\",Dados!Z265)","v":"-"},{"$f":"IF(ISERROR(Dados!AA265),\"-\",Dados!AA265)","v":"-"},{"$f":"IF(ISERROR(Dados!AB265),\"-\",Dados!AB265)","v":"-"},{"$f":"IF(ISERROR(Dados!AC265),\"-\",Dados!AC265)","v":"-"},{"$f":"IF(ISERROR(Dados!AD265),\"-\",Dados!AD265)","v":"-"},{"$f":"IF(ISERROR(Dados!AE265),\"-\",Dados!AE265)","v":"-"},{"$f":"IF(ISERROR(Dados!AF265),\"-\",Dados!AF265)","v":"-"},{"$f":"IF(ISERROR(Dados!AG265),\"-\",Dados!AG265)","v":"-"}]
[{"$f":"IF(ISERROR(Dados!A266),\"-\",Dados!A266)","v":"-"},{"$f":"IF(ISERROR(Dados!B266),\"-\",Dados!B266)","v":"-"},{"$f":"IF(ISERROR(Dados!C266),\"-\",Dados!C266)","v":"-"},{"$f":"IF(ISERROR(Dados!D266),\"-\",Dados!D266)","v":"-"},{"$f":"IF(ISERROR(Dados!E266),\"-\",Dados!E266)","v":"-"},{"$f":"IF(ISERROR(Dados!F266),\"-\",Dados!F266)","v":"-"},{"$f":"IF(ISERROR(Dados!G266),\"-\",Dados!G266)","v":"-"},{"$f":"IF(ISERROR(Dados!H266),\"-\",Dados!H266)","v":"-"},{"$f":"IF(ISERROR(Dados!I266),\"-\",Dados!I266)","v":"-"},{"$f":"IF(ISERROR(Dados!J266),\"-\",Dados!J266)","v":"-"},{"$f":"IF(ISERROR(Dados!K266),\"-\",Dados!K266)","v":"-"},{"$f":"IF(ISERROR(Dados!L266),\"-\",Dados!L266)","v":"-"},{"$f":"IF(ISERROR(Dados!M266),\"-\",Dados!M266)","v":"-"},{"$f":"IF(ISERROR(Dados!N266),\"-\",Dados!N266)","v":"-"},{"$f":"IF(ISERROR(Dados!O266),\"-\",Dados!O266)","v":"-"},{"$f":"IF(ISERROR(Dados!P266),\"-\",Dados!P266)","v":"-"},{"$f":"IF(ISERROR(Dados!Q266),\"-\",Dados!Q266)","v":"-"},{"$f":"IF(ISERROR(Dados!R266),\"-\",Dados!R266)","v":"-"},{"$f":"IF(ISERROR(Dados!S266),\"-\",Dados!S266)","v":"-"},{"$f":"IF(ISERROR(Dados!T266),\"-\",Dados!T266)","v":"-"},{"$f":"IF(ISERROR(Dados!U266),\"-\",Dados!U266)","v":"-"},{"$f":"IF(ISERROR(Dados!V266),\"-\",Dados!V266)","v":"-"},{"$f":"IF(ISERROR(Dados!W266),\"-\",Dados!W266)","v":"-"},{"$f":"IF(ISERROR(Dados!X266),\"-\",Dados!X266)","v":"-"},{"$f":"IF(ISERROR(Dados!Y266),\"-\",Dados!Y266)","v":"-"},{"$f":"IF(ISERROR(Dados!Z266),\"-\",Dados!Z266)","v":"-"},{"$f":"IF(ISERROR(Dados!AA266),\"-\",Dados!AA266)","v":"-"},{"$f":"IF(ISERROR(Dados!AB266),\"-\",Dados!AB266)","v":"-"},{"$f":"IF(ISERROR(Dados!AC266),\"-\",Dados!AC266)","v":"-"},{"$f":"IF(ISERROR(Dados!AD266),\"-\",Dados!AD266)","v":"-"},{"$f":"IF(ISERROR(Dados!AE266),\"-\",Dados!AE266)","v":"-"},{"$f":"IF(ISERROR(Dados!AF266),\"-\",Dados!AF266)","v":"-"},{"$f":"IF(ISERROR(Dados!AG266),\"-\",Dados!AG266)","v":"-"}]
[{"$f":"IF(ISERROR(Dados!A267),\"-\",Dados!A267)","v":"-"},{"$f":"IF(ISERROR(Dados!B267),\"-\",Dados!B267)","v":"-"},{"$f":"IF(ISERROR(Dados!C267),\"-\",Dados!C267)","v":"-"},{"$f":"IF(ISERROR(Dados!D267),\"-\",Dados!D267)","v":"-"},{"$f":"IF(ISERROR(Dados!E267),\"-\",Dados!E267)","v":"-"},{"$f":"IF(ISERROR(Dados!F267),\"-\",Dados!F267)","v":"-"},{"$f":"IF(ISERROR(Dados!G267),\"-\",Dados!G267)","v":"-"},{"$f":"IF(ISERROR(Dados!H267),\"-\",Dados!H267)","v":"-"},{"$f":"IF(ISERROR(Dados!I267),\"-\",Dados!I267)","v":"-"},{"$f":"IF(ISERROR(Dados!J267),\"-\",Dados!J267)","v":"-"},{"$f":"IF(ISERROR(Dados!K267),\"-\",Dados!K267)","v":"-"},{"$f":"IF(ISERROR(Dados!L267),\"-\",Dados!L267)","v":"-"},{"$f":"IF(ISERROR(Dados!M267),\"-\",Dados!M267)","v":"-"},{"$f":"IF(ISERROR(Dados!N267),\"-\",Dados!N267)","v":"-"},{"$f":"IF(ISERROR(Dados!O267),\"-\",Dados!O267)","v":"-"},{"$f":"IF(ISERROR(Dados!P267),\"-\",Dados!P267)","v":"-"},{"$f":"IF(ISERROR(Dados!Q267),\"-\",Dados!Q267)","v":"-"},{"$f":"IF(ISERROR(Dados!R267),\"-\",Dados!R267)","v":"-"},{"$f":"IF(ISERROR(Dados!S267),\"-\",Dados!S267)","v":"-"},{"$f":"IF(ISERROR(Dados!T267),\"-\",Dados!T267)","v":"-"},{"$f":"IF(ISERROR(Dados!U267),\"-\",Dados!U267)","v":"-"},{"$f":"IF(ISERROR(Dados!V267),\"-\",Dados!V267)","v":"-"},{"$f":"IF(ISERROR(Dados!W267),\"-\",Dados!W267)","v":"-"},{"$f":"IF(ISERROR(Dados!X267),\"-\",Dados!X267)","v":"-"},{"$f":"IF(ISERROR(Dados!Y267),\"-\",Dados!Y267)","v":"-"},{"$f":"IF(ISERROR(Dados!Z267),\"-\",Dados!Z267)","v":"-"},{"$f":"IF(ISERROR(Dados!AA267),\"-\",Dados!AA267)","v":"-"},{"$f":"IF(ISERROR(Dados!AB267),\"-\",Dados!AB267)","v":"-"},{"$f":"IF(ISERROR(Dados!AC267),\"-\",Dados!AC267)","v":"-"},{"$f":"IF(ISERROR(Dados!AD267),\"-\",Dados!AD267)","v":"-"},{"$f":"IF(ISERROR(Dados!AE267),\"-\",Dados!AE267)","v":"-"},{"$f":"IF(ISERROR(Dados!AF267),\"-\",Dados!AF267)","v":"-"},{"$f":"IF(ISERROR(Dados!AG267),\"-\",Dados!AG267)","v":"-"}]
[{"$f":"IF(ISERROR(Dados!A268),\"-\",Dados!A268)","v":"-"},{"$f":"IF(ISERROR(Dados!B268),\"-\",Dados!B268)","v":"-"},{"$f":"IF(ISERROR(Dados!C268),\"-\",Dados!C268)","v":"-"},{"$f":"IF(ISERROR(Dados!D268),\"-\",Dados!D268)","v":"-"},{"$f":"IF(ISERROR(Dados!E268),\"-\",Dados!E268)","v":"-"},{"$f":"IF(ISERROR(Dados!F268),\"-\",Dados!F268)","v":"-"},{"$f":"IF(ISERROR(Dados!G268),\"-\",Dados!G268)","v":"-"},{"$f":"IF(ISERROR(Dados!H268),\"-\",Dados!H268)","v":"-"},{"$f":"IF(ISERROR(Dados!I268),\"-\",Dados!I268)","v":"-"},{"$f":"IF(ISERROR(Dados!J268),\"-\",Dados!J268)","v":"-"},{"$f":"IF(ISERROR(Dados!K268),\"-\",Dados!K268)","v":"-"},{"$f":"IF(ISERROR(Dados!L268),\"-\",Dados!L268)","v":"-"},{"$f":"IF(ISERROR(Dados!M268),\"-\",Dados!M268)","v":"-"},{"$f":"IF(ISERROR(Dados!N268),\"-\",Dados!N268)","v":"-"},{"$f":"IF(ISERROR(Dados!O268),\"-\",Dados!O268)","v":"-"},{"$f":"IF(ISERROR(Dados!P268),\"-\",Dados!P268)","v":"-"},{"$f":"IF(ISERROR(Dados!Q268),\"-\",Dados!Q268)","v":"-"},{"$f":"IF(ISERROR(Dados!R268),\"-\",Dados!R268)","v":"-"},{"$f":"IF(ISERROR(Dados!S268),\"-\",Dados!S268)","v":"-"},{"$f":"IF(ISERROR(Dados!T268),\"-\",Dados!T268)","v":"-"},{"$f":"IF(ISERROR(Dados!U268),\"-\",Dados!U268)","v":"-"},{"$f":"IF(ISERROR(Dados!V268),\"-\",Dados!V268)","v":"-"},{"$f":"IF(ISERROR(Dados!W268),\"-\",Dados!W268)","v":"-"},{"$f":"IF(ISERROR(Dados!X268),\"-\",Dados!X268)","v":"-"},{"$f":"IF(ISERROR(Dados!Y268),\"-\",Dados!Y268)","v":"-"},{"$f":"IF(ISERROR(Dados!Z268),\"-\",Dados!Z268)","v":"-"},{"$f":"IF(ISERROR(Dados!AA268),\"-\",Dados!AA268)","v":"-"},{"$f":"IF(ISERROR(Dados!AB268),\"-\",Dados!AB268)","v":"-"},{"$f":"IF(ISERROR(Dados!AC268),\"-\",Dados!AC268)","v":"-"},{"$f":"IF(ISERROR(Dados!AD268),\"-\",Dados!AD268)","v":"-"},{"$f":"IF(ISERROR(Dados!AE268),\"-\",Dados!AE268)","v":"-"},{"$f":"IF(ISERROR(Dados!AF268),\"-\",Dados!AF268)","v":"-"},{"$f":"IF(ISERROR(Dados!AG268),\"-\",Dados!AG268)","v":"-"}]
[{"$f":"IF(ISERROR(Dados!A269),\"-\",Dados!A269)","v":"PLAS3"},{"$f":"IF(ISERROR(Dados!B269),\"-\",Dados!B269)","v":"Veículos e peças"},{"$f":"IF(ISERROR(Dados!C269),\"-\",Dados!C269)","v":"Plascar Part"},{"$f":"IF(ISERROR(Dados!D269),\"-\",Dados!D269)","v":7.6},{"$f":"IF(ISERROR(Dados!E269),\"-\",Dados!E269)","v":12.425000000000001},{"$f":"IF(ISERROR(Dados!F269),\"-\",Dados!F269)","v":94.43},{"$f":"IF(ISERROR(Dados!G269),\"-\",Dados!G269)","v":-514.30999999999995},{"$f":"IF(ISERROR(Dados!H269),\"-\",Dados!H269)","v":389.18},{"$f":"IF(ISERROR(Dados!I269),\"-\",Dados!I269)","v":346.82},{"$f":"IF(ISERROR(Dados!J269),\"-\",Dados!J269)","v":-71.95},{"$f":"IF(ISERROR(Dados!K269),\"-\",Dados!K269)","v":-39.43},{"$f":"IF(ISERROR(Dados!L269),\"-\",Dados!L269)","v":-75.680000000000007},{"$f":"IF(ISERROR(Dados!M269),\"-\",Dados!M269)","v":-141.46},{"$f":"IF(ISERROR(Dados!N269),\"-\",Dados!N269)","v":-257.25},{"$f":"IF(ISERROR(Dados!O269),\"-\",Dados!O269)","v":-71.95},{"$f":"IF(ISERROR(Dados!P269),\"-\",Dados!P269)","v":-257.25},{"$f":"IF(ISERROR(Dados!Q269),\"-\",Dados!Q269)","v":-20.704225352112676},{"$f":"IF(ISERROR(Dados!R269),\"-\",Dados!R269)","v":"-"},{"$f":"IF(ISERROR(Dados!S269),\"-\",Dados!S269)","v":"-"},{"$f":"IF(ISERROR(Dados!T269),\"-\",Dados!T269)","v":"-"},{"$f":"IF(ISERROR(Dados!U269),\"-\",Dados!U269)","v":"-"},{"$f":"IF(ISERROR(Dados!V269),\"-\",Dados!V269)","v":-0.86272199999999999},{"$f":"IF(ISERROR(Dados!W269),\"-\",Dados!W269)","v":0.7},{"$f":"IF(ISERROR(Dados!X269),\"-\",Dados!X269)","v":-85.3},{"$f":"IF(ISERROR(Dados!Y269),\"-\",Dados!Y269)","v":-85.3},{"$f":"IF(ISERROR(Dados!Z269),\"-\",Dados!Z269)","v":-6.3143259085580317},{"$f":"IF(ISERROR(Dados!AA269),\"-\",Dados!AA269)","v":"-"},{"$f":"IF(ISERROR(Dados!AB269),\"-\",Dados!AB269)","v":"-"},{"$f":"IF(ISERROR(Dados!AC269),\"-\",Dados!AC269)","v":-17.5},{"$f":"IF(ISERROR(Dados!AD269),\"-\",Dados!AD269)","v":31},{"$f":"IF(ISERROR(Dados!AE269),\"-\",Dados!AE269)","v":0.40241448692152915},{"$f":"IF(ISERROR(Dados!AF269),\"-\",Dados!AF269)","v":"PLAS3"},{"$f":"IF(ISERROR(Dados!AG269),\"-\",Dados!AG269)","v":-85.3}]
[{"$f":"IF(ISERROR(Dados!A270),\"-\",Dados!A270)","v":"RCSL4"},{"$f":"IF(ISERROR(Dados!B270),\"-\",Dados!B270)","v":"Veículos e peças"},{"$f":"IF(ISERROR(Dados!C270),\"-\",Dados!C270)","v":"Recrusul"},{"$f":"IF(ISERROR(Dados!D270),\"-\",Dados!D270)","v":1.51},{"$f":"IF(ISERROR(Dados!E270),\"-\",Dados!E270)","v":5.0810000000000004},{"$f":"IF(ISERROR(Dados!F270),\"-\",Dados!F270)","v":9.02},{"$f":"IF(ISERROR(Dados!G270),\"-\",Dados!G270)","v":-63.73},{"$f":"IF(ISERROR(Dados!H270),\"-\",Dados!H270)","v":0.04},{"$f":"IF(ISERROR(Dados!I270),\"-\",Dados!I270)","v":4.46},{"$f":"IF(ISERROR(Dados!J270),\"-\",Dados!J270)","v":-36.9},{"$f":"IF(ISERROR(Dados!K270),\"-\",Dados!K270)","v":-4.16},{"$f":"IF(ISERROR(Dados!L270),\"-\",Dados!L270)","v":-7.62},{"$f":"IF(ISERROR(Dados!M270),\"-\",Dados!M270)","v":-10.69},{"$f":"IF(ISERROR(Dados!N270),\"-\",Dados!N270)","v":-13.05},{"$f":"IF(ISERROR(Dados!O270),\"-\",Dados!O270)","v":-36.9},{"$f":"IF(ISERROR(Dados!P270),\"-\",Dados!P270)","v":-13.05},{"$f":"IF(ISERROR(Dados!Q270),\"-\",Dados!Q270)","v":-2.5683920488092893},{"$f":"IF(ISERROR(Dados!R270),\"-\",Dados!R270)","v":"-"},{"$f":"IF(ISERROR(Dados!S270),\"-\",Dados!S270)","v":"-"},{"$f":"IF(ISERROR(Dados!T270),\"-\",Dados!T270)","v":"-"},{"$f":"IF(ISERROR(Dados!U270),\"-\",Dados!U270)","v":"-"},{"$f":"IF(ISERROR(Dados!V270),\"-\",Dados!V270)","v":4.4393000000000002E-2},{"$f":"IF(ISERROR(Dados!W270),\"-\",Dados!W270)","v":-26},{"$f":"IF(ISERROR(Dados!X270),\"-\",Dados!X270)","v":-4.7},{"$f":"IF(ISERROR(Dados!Y270),\"-\",Dados!Y270)","v":-4.7},{"$f":"IF(ISERROR(Dados!Z270),\"-\",Dados!Z270)","v":-1.31531914893617},{"$f":"IF(ISERROR(Dados!AA270),\"-\",Dados!AA270)","v":"-"},{"$f":"IF(ISERROR(Dados!AB270),\"-\",Dados!AB270)","v":"-"},{"$f":"IF(ISERROR(Dados!AC270),\"-\",Dados!AC270)","v":-4.4000000000000004},{"$f":"IF(ISERROR(Dados!AD270),\"-\",Dados!AD270)","v":-3.8},{"$f":"IF(ISERROR(Dados!AE270),\"-\",Dados!AE270)","v":0.33457980712458174},{"$f":"IF(ISERROR(Dados!AF270),\"-\",Dados!AF270)","v":"RCSL4"},{"$f":"IF(ISERROR(Dados!AG270),\"-\",Dados!AG270)","v":-4.7}]
[{"$f":"IF(ISERROR(Dados!#REF!),\"-\",Dados!#REF!)","v":"-"},{"$f":"IF(ISERROR(Dados!#REF!),\"-\",Dados!#REF!)","v":"-"},{"$f":"IF(ISERROR(Dados!#REF!),\"-\",Dados!#REF!)","v":"-"},{"$f":"IF(ISERROR(Dados!#REF!),\"-\",Dados!#REF!)","v":"-"},{"$f":"IF(ISERROR(Dados!#REF!),\"-\",Dados!#REF!)","v":"-"},{"$f":"IF(ISERROR(Dados!#REF!),\"-\",Dados!#REF!)","v":"-"},{"$f":"IF(ISERROR(Dados!#REF!),\"-\",Dados!#REF!)","v":"-"},{"$f":"IF(ISERROR(Dados!#REF!),\"-\",Dados!#REF!)","v":"-"},{"$f":"IF(ISERROR(Dados!#REF!),\"-\",Dados!#REF!)","v":"-"},{"$f":"IF(ISERROR(Dados!#REF!),\"-\",Dados!#REF!)","v":"-"},{"$f":"IF(ISERROR(Dados!#REF!),\"-\",Dados!#REF!)","v":"-"},{"$f":"IF(ISERROR(Dados!#REF!),\"-\",Dados!#REF!)","v":"-"},{"$f":"IF(ISERROR(Dados!#REF!),\"-\",Dados!#REF!)","v":"-"},{"$f":"IF(ISERROR(Dados!#REF!),\"-\",Dados!#REF!)","v":"-"},{"$f":"IF(ISERROR(Dados!#REF!),\"-\",Dados!#REF!)","v":"-"},{"$f":"IF(ISERROR(Dados!#REF!),\"-\",Dados!#REF!)","v":"-"},{"$f":"IF(ISERROR(Dados!#REF!),\"-\",Dados!#REF!)","v":"-"},{"$f":"IF(ISERROR(Dados!#REF!),\"-\",Dados!#REF!)","v":"-"},{"$f":"IF(ISERROR(Dados!#REF!),\"-\",Dados!#REF!)","v":"-"},{"$f":"IF(ISERROR(Dados!#REF!),\"-\",Dados!#REF!)","v":"-"},{"$f":"IF(ISERROR(Dados!#REF!),\"-\",Dados!#REF!)","v":"-"},{"$f":"IF(ISERROR(Dados!#REF!),\"-\",Dados!#REF!)","v":"-"},{"$f":"IF(ISERROR(Dados!#REF!),\"-\",Dados!#REF!)","v":"-"},{"$f":"IF(ISERROR(Dados!#REF!),\"-\",Dados!#REF!)","v":"-"},{"$f":"IF(ISERROR(Dados!#REF!),\"-\",Dados!#REF!)","v":"-"},{"$f":"IF(ISERROR(Dados!#REF!),\"-\",Dados!#REF!)","v":"-"},{"$f":"IF(ISERROR(Dados!#REF!),\"-\",Dados!#REF!)","v":"-"},{"$f":"IF(ISERROR(Dados!#REF!),\"-\",Dados!#REF!)","v":"-"},{"$f":"IF(ISERROR(Dados!#REF!),\"-\",Dados!#REF!)","v":"-"},{"$f":"IF(ISERROR(Dados!#REF!),\"-\",Dados!#REF!)","v":"-"},{"$f":"IF(ISERROR(Dados!#REF!),\"-\",Dados!#REF!)","v":"-"},{"$f":"IF(ISERROR(Dados!#REF!),\"-\",Dados!#REF!)","v":"-"},{"$f":"IF(ISERROR(Dados!#REF!),\"-\",Dados!#REF!)","v":"-"}]
[{"$f":"IF(ISERROR(Dados!A271),\"-\",Dados!A271)","v":""},{"$f":"IF(ISERROR(Dados!B271),\"-\",Dados!B271)","v":""},{"$f":"IF(ISERROR(Dados!C271),\"-\",Dados!C271)","v":""},{"$f":"IF(ISERROR(Dados!D271),\"-\",Dados!D271)","v":""},{"$f":"IF(ISERROR(Dados!E271),\"-\",Dados!E271)","v":""},{"$f":"IF(ISERROR(Dados!F271),\"-\",Dados!F271)","v":""},{"$f":"IF(ISERROR(Dados!G271),\"-\",Dados!G271)","v":""},{"$f":"IF(ISERROR(Dados!H271),\"-\",Dados!H271)","v":""},{"$f":"IF(ISERROR(Dados!I271),\"-\",Dados!I271)","v":""},{"$f":"IF(ISERROR(Dados!J271),\"-\",Dados!J271)","v":""},{"$f":"IF(ISERROR(Dados!K271),\"-\",Dados!K271)","v":""},{"$f":"IF(ISERROR(Dados!L271),\"-\",Dados!L271)","v":""},{"$f":"IF(ISERROR(Dados!M271),\"-\",Dados!M271)","v":""},{"$f":"IF(ISERROR(Dados!N271),\"-\",Dados!N271)","v":""},{"$f":"IF(ISERROR(Dados!O271),\"-\",Dados!O271)","v":""},{"$f":"IF(ISERROR(Dados!P271),\"-\",Dados!P271)","v":""},{"$f":"IF(ISERROR(Dados!Q271),\"-\",Dados!Q271)","v":""},{"$f":"IF(ISERROR(Dados!R271),\"-\",Dados!R271)","v":""},{"$f":"IF(ISERROR(Dados!S271),\"-\",Dados!S271)","v":""},{"$f":"IF(ISERROR(Dados!T271),\"-\",Dados!T271)","v":""},{"$f":"IF(ISERROR(Dados!U271),\"-\",Dados!U271)","v":""},{"$f":"IF(ISERROR(Dados!V271),\"-\",Dados!V271)","v":""},{"$f":"IF(ISERROR(Dados!W271),\"-\",Dados!W271)","v":""},{"$f":"IF(ISERROR(Dados!X271),\"-\",Dados!X271)","v":""},{"$f":"IF(ISERROR(Dados!Y271),\"-\",Dados!Y271)","v":""},{"$f":"IF(ISERROR(Dados!Z271),\"-\",Dados!Z271)","v":""},{"$f":"IF(ISERROR(Dados!AA271),\"-\",Dados!AA271)","v":""},{"$f":"IF(ISERROR(Dados!AB271),\"-\",Dados!AB271)","v":""},{"$f":"IF(ISERROR(Dados!AC271),\"-\",Dados!AC271)","v":""},{"$f":"IF(ISERROR(Dados!AD271),\"-\",Dados!AD271)","v":""},{"$f":"IF(ISERROR(Dados!AE271),\"-\",Dados!AE271)","v":""},{"$f":"IF(ISERROR(Dados!AF271),\"-\",Dados!AF271)","v":""},{"$f":"IF(ISERROR(Dados!AG271),\"-\",Dados!AG271)","v":""}]
[{"$f":"IF(ISERROR(Dados!A272),\"-\",Dados!A272)","v":""},{"$f":"IF(ISERROR(Dados!B272),\"-\",Dados!B272)","v":""},{"$f":"IF(ISERROR(Dados!C272),\"-\",Dados!C272)","v":""},{"$f":"IF(ISERROR(Dados!D272),\"-\",Dados!D272)","v":""},{"$f":"IF(ISERROR(Dados!E272),\"-\",Dados!E272)","v":""},{"$f":"IF(ISERROR(Dados!F272),\"-\",Dados!F272)","v":""},{"$f":"IF(ISERROR(Dados!G272),\"-\",Dados!G272)","v":""},{"$f":"IF(ISERROR(Dados!H272),\"-\",Dados!H272)","v":""},{"$f":"IF(ISERROR(Dados!I272),\"-\",Dados!I272)","v":""},{"$f":"IF(ISERROR(Dados!J272),\"-\",Dados!J272)","v":""},{"$f":"IF(ISERROR(Dados!K272),\"-\",Dados!K272)","v":""},{"$f":"IF(ISERROR(Dados!L272),\"-\",Dados!L272)","v":""},{"$f":"IF(ISERROR(Dados!M272),\"-\",Dados!M272)","v":""},{"$f":"IF(ISERROR(Dados!N272),\"-\",Dados!N272)","v":""},{"$f":"IF(ISERROR(Dados!O272),\"-\",Dados!O272)","v":""},{"$f":"IF(ISERROR(Dados!P272),\"-\",Dados!P272)","v":""},{"$f":"IF(ISERROR(Dados!Q272),\"-\",Dados!Q272)","v":""},{"$f":"IF(ISERROR(Dados!R272),\"-\",Dados!R272)","v":""},{"$f":"IF(ISERROR(Dados!S272),\"-\",Dados!S272)","v":""},{"$f":"IF(ISERROR(Dados!T272),\"-\",Dados!T272)","v":""},{"$f":"IF(ISERROR(Dados!U272),\"-\",Dados!U272)","v":""},{"$f":"IF(ISERROR(Dados!V272),\"-\",Dados!V272)","v":""},{"$f":"IF(ISERROR(Dados!W272),\"-\",Dados!W272)","v":""},{"$f":"IF(ISERROR(Dados!X272),\"-\",Dados!X272)","v":""},{"$f":"IF(ISERROR(Dados!Y272),\"-\",Dados!Y272)","v":""},{"$f":"IF(ISERROR(Dados!Z272),\"-\",Dados!Z272)","v":""},{"$f":"IF(ISERROR(Dados!AA272),\"-\",Dados!AA272)","v":""},{"$f":"IF(ISERROR(Dados!AB272),\"-\",Dados!AB272)","v":""},{"$f":"IF(ISERROR(Dados!AC272),\"-\",Dados!AC272)","v":""},{"$f":"IF(ISERROR(Dados!AD272),\"-\",Dados!AD272)","v":""},{"$f":"IF(ISERROR(Dados!AE272),\"-\",Dados!AE272)","v":""},{"$f":"IF(ISERROR(Dados!AF272),\"-\",Dados!AF272)","v":""},{"$f":"IF(ISERROR(Dados!AG272),\"-\",Dados!AG272)","v":""}]
[{"$f":"IF(ISERROR(Dados!A273),\"-\",Dados!A273)","v":""},{"$f":"IF(ISERROR(Dados!B273),\"-\",Dados!B273)","v":""},{"$f":"IF(ISERROR(Dados!C273),\"-\",Dados!C273)","v":""},{"$f":"IF(ISERROR(Dados!D273),\"-\",Dados!D273)","v":""},{"$f":"IF(ISERROR(Dados!E273),\"-\",Dados!E273)","v":""},{"$f":"IF(ISERROR(Dados!F273),\"-\",Dados!F273)","v":""},{"$f":"IF(ISERROR(Dados!G273),\"-\",Dados!G273)","v":""},{"$f":"IF(ISERROR(Dados!H273),\"-\",Dados!H273)","v":""},{"$f":"IF(ISERROR(Dados!I273),\"-\",Dados!I273)","v":""},{"$f":"IF(ISERROR(Dados!J273),\"-\",Dados!J273)","v":""},{"$f":"IF(ISERROR(Dados!K273),\"-\",Dados!K273)","v":""},{"$f":"IF(ISERROR(Dados!L273),\"-\",Dados!L273)","v":""},{"$f":"IF(ISERROR(Dados!M273),\"-\",Dados!M273)","v":""},{"$f":"IF(ISERROR(Dados!N273),\"-\",Dados!N273)","v":""},{"$f":"IF(ISERROR(Dados!O273),\"-\",Dados!O273)","v":""},{"$f":"IF(ISERROR(Dados!P273),\"-\",Dados!P273)","v":""},{"$f":"IF(ISERROR(Dados!Q273),\"-\",Dados!Q273)","v":""},{"$f":"IF(ISERROR(Dados!R273),\"-\",Dados!R273)","v":""},{"$f":"IF(ISERROR(Dados!S273),\"-\",Dados!S273)","v":""},{"$f":"IF(ISERROR(Dados!T273),\"-\",Dados!T273)","v":""},{"$f":"IF(ISERROR(Dados!U273),\"-\",Dados!U273)","v":""},{"$f":"IF(ISERROR(Dados!V273),\"-\",Dados!V273)","v":""},{"$f":"IF(ISERROR(Dados!W273),\"-\",Dados!W273)","v":""},{"$f":"IF(ISERROR(Dados!X273),\"-\",Dados!X273)","v":""},{"$f":"IF(ISERROR(Dados!Y273),\"-\",Dados!Y273)","v":""},{"$f":"IF(ISERROR(Dados!Z273),\"-\",Dados!Z273)","v":""},{"$f":"IF(ISERROR(Dados!AA273),\"-\",Dados!AA273)","v":""},{"$f":"IF(ISERROR(Dados!AB273),\"-\",Dados!AB273)","v":""},{"$f":"IF(ISERROR(Dados!AC273),\"-\",Dados!AC273)","v":""},{"$f":"IF(ISERROR(Dados!AD273),\"-\",Dados!AD273)","v":""},{"$f":"IF(ISERROR(Dados!AE273),\"-\",Dados!AE273)","v":""},{"$f":"IF(ISERROR(Dados!AF273),\"-\",Dados!AF273)","v":""},{"$f":"IF(ISERROR(Dados!AG273),\"-\",Dados!AG273)","v":""}]
[{"$f":"IF(ISERROR(Dados!A274),\"-\",Dados!A274)","v":""},{"$f":"IF(ISERROR(Dados!B274),\"-\",Dados!B274)","v":""},{"$f":"IF(ISERROR(Dados!C274),\"-\",Dados!C274)","v":""},{"$f":"IF(ISERROR(Dados!D274),\"-\",Dados!D274)","v":""},{"$f":"IF(ISERROR(Dados!E274),\"-\",Dados!E274)","v":""},{"$f":"IF(ISERROR(Dados!F274),\"-\",Dados!F274)","v":""},{"$f":"IF(ISERROR(Dados!G274),\"-\",Dados!G274)","v":""},{"$f":"IF(ISERROR(Dados!H274),\"-\",Dados!H274)","v":""},{"$f":"IF(ISERROR(Dados!I274),\"-\",Dados!I274)","v":""},{"$f":"IF(ISERROR(Dados!J274),\"-\",Dados!J274)","v":""},{"$f":"IF(ISERROR(Dados!K274),\"-\",Dados!K274)","v":""},{"$f":"IF(ISERROR(Dados!L274),\"-\",Dados!L274)","v":""},{"$f":"IF(ISERROR(Dados!M274),\"-\",Dados!M274)","v":""},{"$f":"IF(ISERROR(Dados!N274),\"-\",Dados!N274)","v":""},{"$f":"IF(ISERROR(Dados!O274),\"-\",Dados!O274)","v":""},{"$f":"IF(ISERROR(Dados!P274),\"-\",Dados!P274)","v":""},{"$f":"IF(ISERROR(Dados!Q274),\"-\",Dados!Q274)","v":""},{"$f":"IF(ISERROR(Dados!R274),\"-\",Dados!R274)","v":""},{"$f":"IF(ISERROR(Dados!S274),\"-\",Dados!S274)","v":""},{"$f":"IF(ISERROR(Dados!T274),\"-\",Dados!T274)","v":""},{"$f":"IF(ISERROR(Dados!U274),\"-\",Dados!U274)","v":""},{"$f":"IF(ISERROR(Dados!V274),\"-\",Dados!V274)","v":""},{"$f":"IF(ISERROR(Dados!W274),\"-\",Dados!W274)","v":""},{"$f":"IF(ISERROR(Dados!X274),\"-\",Dados!X274)","v":""},{"$f":"IF(ISERROR(Dados!Y274),\"-\",Dados!Y274)","v":""},{"$f":"IF(ISERROR(Dados!Z274),\"-\",Dados!Z274)","v":""},{"$f":"IF(ISERROR(Dados!AA274),\"-\",Dados!AA274)","v":""},{"$f":"IF(ISERROR(Dados!AB274),\"-\",Dados!AB274)","v":""},{"$f":"IF(ISERROR(Dados!AC274),\"-\",Dados!AC274)","v":""},{"$f":"IF(ISERROR(Dados!AD274),\"-\",Dados!AD274)","v":""},{"$f":"IF(ISERROR(Dados!AE274),\"-\",Dados!AE274)","v":""},{"$f":"IF(ISERROR(Dados!AF274),\"-\",Dados!AF274)","v":""},{"$f":"IF(ISERROR(Dados!AG274),\"-\",Dados!AG274)","v":""}]
[{"$f":"IF(ISERROR(Dados!A275),\"-\",Dados!A275)","v":""},{"$f":"IF(ISERROR(Dados!B275),\"-\",Dados!B275)","v":""},{"$f":"IF(ISERROR(Dados!C275),\"-\",Dados!C275)","v":""},{"$f":"IF(ISERROR(Dados!D275),\"-\",Dados!D275)","v":""},{"$f":"IF(ISERROR(Dados!E275),\"-\",Dados!E275)","v":""},{"$f":"IF(ISERROR(Dados!F275),\"-\",Dados!F275)","v":""},{"$f":"IF(ISERROR(Dados!G275),\"-\",Dados!G275)","v":""},{"$f":"IF(ISERROR(Dados!H275),\"-\",Dados!H275)","v":""},{"$f":"IF(ISERROR(Dados!I275),\"-\",Dados!I275)","v":""},{"$f":"IF(ISERROR(Dados!J275),\"-\",Dados!J275)","v":""},{"$f":"IF(ISERROR(Dados!K275),\"-\",Dados!K275)","v":""},{"$f":"IF(ISERROR(Dados!L275),\"-\",Dados!L275)","v":""},{"$f":"IF(ISERROR(Dados!M275),\"-\",Dados!M275)","v":""},{"$f":"IF(ISERROR(Dados!N275),\"-\",Dados!N275)","v":""},{"$f":"IF(ISERROR(Dados!O275),\"-\",Dados!O275)","v":""},{"$f":"IF(ISERROR(Dados!P275),\"-\",Dados!P275)","v":""},{"$f":"IF(ISERROR(Dados!Q275),\"-\",Dados!Q275)","v":""},{"$f":"IF(ISERROR(Dados!R275),\"-\",Dados!R275)","v":""},{"$f":"IF(ISERROR(Dados!S275),\"-\",Dados!S275)","v":""},{"$f":"IF(ISERROR(Dados!T275),\"-\",Dados!T275)","v":""},{"$f":"IF(ISERROR(Dados!U275),\"-\",Dados!U275)","v":""},{"$f":"IF(ISERROR(Dados!V275),\"-\",Dados!V275)","v":""},{"$f":"IF(ISERROR(Dados!W275),\"-\",Dados!W275)","v":""},{"$f":"IF(ISERROR(Dados!X275),\"-\",Dados!X275)","v":""},{"$f":"IF(ISERROR(Dados!Y275),\"-\",Dados!Y275)","v":""},{"$f":"IF(ISERROR(Dados!Z275),\"-\",Dados!Z275)","v":""},{"$f":"IF(ISERROR(Dados!AA275),\"-\",Dados!AA275)","v":""},{"$f":"IF(ISERROR(Dados!AB275),\"-\",Dados!AB275)","v":""},{"$f":"IF(ISERROR(Dados!AC275),\"-\",Dados!AC275)","v":""},{"$f":"IF(ISERROR(Dados!AD275),\"-\",Dados!AD275)","v":""},{"$f":"IF(ISERROR(Dados!AE275),\"-\",Dados!AE275)","v":""},{"$f":"IF(ISERROR(Dados!AF275),\"-\",Dados!AF275)","v":""},{"$f":"IF(ISERROR(Dados!AG275),\"-\",Dados!AG275)","v":""}]
[{"$f":"IF(ISERROR(Dados!A276),\"-\",Dados!A276)","v":""},{"$f":"IF(ISERROR(Dados!B276),\"-\",Dados!B276)","v":""},{"$f":"IF(ISERROR(Dados!C276),\"-\",Dados!C276)","v":""},{"$f":"IF(ISERROR(Dados!D276),\"-\",Dados!D276)","v":""},{"$f":"IF(ISERROR(Dados!E276),\"-\",Dados!E276)","v":""},{"$f":"IF(ISERROR(Dados!F276),\"-\",Dados!F276)","v":""},{"$f":"IF(ISERROR(Dados!G276),\"-\",Dados!G276)","v":""},{"$f":"IF(ISERROR(Dados!H276),\"-\",Dados!H276)","v":""},{"$f":"IF(ISERROR(Dados!I276),\"-\",Dados!I276)","v":""},{"$f":"IF(ISERROR(Dados!J276),\"-\",Dados!J276)","v":""},{"$f":"IF(ISERROR(Dados!K276),\"-\",Dados!K276)","v":""},{"$f":"IF(ISERROR(Dados!L276),\"-\",Dados!L276)","v":""},{"$f":"IF(ISERROR(Dados!M276),\"-\",Dados!M276)","v":""},{"$f":"IF(ISERROR(Dados!N276),\"-\",Dados!N276)","v":""},{"$f":"IF(ISERROR(Dados!O276),\"-\",Dados!O276)","v":""},{"$f":"IF(ISERROR(Dados!P276),\"-\",Dados!P276)","v":""},{"$f":"IF(ISERROR(Dados!Q276),\"-\",Dados!Q276)","v":""},{"$f":"IF(ISERROR(Dados!R276),\"-\",Dados!R276)","v":""},{"$f":"IF(ISERROR(Dados!S276),\"-\",Dados!S276)","v":""},{"$f":"IF(ISERROR(Dados!T276),\"-\",Dados!T276)","v":""},{"$f":"IF(ISERROR(Dados!U276),\"-\",Dados!U276)","v":""},{"$f":"IF(ISERROR(Dados!V276),\"-\",Dados!V276)","v":""},{"$f":"IF(ISERROR(Dados!W276),\"-\",Dados!W276)","v":""},{"$f":"IF(ISERROR(Dados!X276),\"-\",Dados!X276)","v":""},{"$f":"IF(ISERROR(Dados!Y276),\"-\",Dados!Y276)","v":""},{"$f":"IF(ISERROR(Dados!Z276),\"-\",Dados!Z276)","v":""},{"$f":"IF(ISERROR(Dados!AA276),\"-\",Dados!AA276)","v":""},{"$f":"IF(ISERROR(Dados!AB276),\"-\",Dados!AB276)","v":""},{"$f":"IF(ISERROR(Dados!AC276),\"-\",Dados!AC276)","v":""},{"$f":"IF(ISERROR(Dados!AD276),\"-\",Dados!AD276)","v":""},{"$f":"IF(ISERROR(Dados!AE276),\"-\",Dados!AE276)","v":""},{"$f":"IF(ISERROR(Dados!AF276),\"-\",Dados!AF276)","v":""},{"$f":"IF(ISERROR(Dados!AG276),\"-\",Dados!AG276)","v":""}]
[{"$f":"IF(ISERROR(Dados!A277),\"-\",Dados!A277)","v":""},{"$f":"IF(ISERROR(Dados!B277),\"-\",Dados!B277)","v":""},{"$f":"IF(ISERROR(Dados!C277),\"-\",Dados!C277)","v":""},{"$f":"IF(ISERROR(Dados!D277),\"-\",Dados!D277)","v":""},{"$f":"IF(ISERROR(Dados!E277),\"-\",Dados!E277)","v":""},{"$f":"IF(ISERROR(Dados!F277),\"-\",Dados!F277)","v":""},{"$f":"IF(ISERROR(Dados!G277),\"-\",Dados!G277)","v":""},{"$f":"IF(ISERROR(Dados!H277),\"-\",Dados!H277)","v":""},{"$f":"IF(ISERROR(Dados!I277),\"-\",Dados!I277)","v":""},{"$f":"IF(ISERROR(Dados!J277),\"-\",Dados!J277)","v":""},{"$f":"IF(ISERROR(Dados!K277),\"-\",Dados!K277)","v":""},{"$f":"IF(ISERROR(Dados!L277),\"-\",Dados!L277)","v":""},{"$f":"IF(ISERROR(Dados!M277),\"-\",Dados!M277)","v":""},{"$f":"IF(ISERROR(Dados!N277),\"-\",Dados!N277)","v":""},{"$f":"IF(ISERROR(Dados!O277),\"-\",Dados!O277)","v":""},{"$f":"IF(ISERROR(Dados!P277),\"-\",Dados!P277)","v":""},{"$f":"IF(ISERROR(Dados!Q277),\"-\",Dados!Q277)","v":""},{"$f":"IF(ISERROR(Dados!R277),\"-\",Dados!R277)","v":""},{"$f":"IF(ISERROR(Dados!S277),\"-\",Dados!S277)","v":""},{"$f":"IF(ISERROR(Dados!T277),\"-\",Dados!T277)","v":""},{"$f":"IF(ISERROR(Dados!U277),\"-\",Dados!U277)","v":""},{"$f":"IF(ISERROR(Dados!V277),\"-\",Dados!V277)","v":""},{"$f":"IF(ISERROR(Dados!W277),\"-\",Dados!W277)","v":""},{"$f":"IF(ISERROR(Dados!X277),\"-\",Dados!X277)","v":""},{"$f":"IF(ISERROR(Dados!Y277),\"-\",Dados!Y277)","v":""},{"$f":"IF(ISERROR(Dados!Z277),\"-\",Dados!Z277)","v":""},{"$f":"IF(ISERROR(Dados!AA277),\"-\",Dados!AA277)","v":""},{"$f":"IF(ISERROR(Dados!AB277),\"-\",Dados!AB277)","v":""},{"$f":"IF(ISERROR(Dados!AC277),\"-\",Dados!AC277)","v":""},{"$f":"IF(ISERROR(Dados!AD277),\"-\",Dados!AD277)","v":""},{"$f":"IF(ISERROR(Dados!AE277),\"-\",Dados!AE277)","v":""},{"$f":"IF(ISERROR(Dados!AF277),\"-\",Dados!AF277)","v":""},{"$f":"IF(ISERROR(Dados!AG277),\"-\",Dados!AG277)","v":""}]
[{"$f":"IF(ISERROR(Dados!A278),\"-\",Dados!A278)","v":""},{"$f":"IF(ISERROR(Dados!B278),\"-\",Dados!B278)","v":""},{"$f":"IF(ISERROR(Dados!C278),\"-\",Dados!C278)","v":""},{"$f":"IF(ISERROR(Dados!D278),\"-\",Dados!D278)","v":""},{"$f":"IF(ISERROR(Dados!E278),\"-\",Dados!E278)","v":""},{"$f":"IF(ISERROR(Dados!F278),\"-\",Dados!F278)","v":""},{"$f":"IF(ISERROR(Dados!G278),\"-\",Dados!G278)","v":""},{"$f":"IF(ISERROR(Dados!H278),\"-\",Dados!H278)","v":""},{"$f":"IF(ISERROR(Dados!I278),\"-\",Dados!I278)","v":""},{"$f":"IF(ISERROR(Dados!J278),\"-\",Dados!J278)","v":""},{"$f":"IF(ISERROR(Dados!K278),\"-\",Dados!K278)","v":""},{"$f":"IF(ISERROR(Dados!L278),\"-\",Dados!L278)","v":""},{"$f":"IF(ISERROR(Dados!M278),\"-\",Dados!M278)","v":""},{"$f":"IF(ISERROR(Dados!N278),\"-\",Dados!N278)","v":""},{"$f":"IF(ISERROR(Dados!O278),\"-\",Dados!O278)","v":""},{"$f":"IF(ISERROR(Dados!P278),\"-\",Dados!P278)","v":""},{"$f":"IF(ISERROR(Dados!Q278),\"-\",Dados!Q278)","v":""},{"$f":"IF(ISERROR(Dados!R278),\"-\",Dados!R278)","v":""},{"$f":"IF(ISERROR(Dados!S278),\"-\",Dados!S278)","v":""},{"$f":"IF(ISERROR(Dados!T278),\"-\",Dados!T278)","v":""},{"$f":"IF(ISERROR(Dados!U278),\"-\",Dados!U278)","v":""},{"$f":"IF(ISERROR(Dados!V278),\"-\",Dados!V278)","v":""},{"$f":"IF(ISERROR(Dados!W278),\"-\",Dados!W278)","v":""},{"$f":"IF(ISERROR(Dados!X278),\"-\",Dados!X278)","v":""},{"$f":"IF(ISERROR(Dados!Y278),\"-\",Dados!Y278)","v":""},{"$f":"IF(ISERROR(Dados!Z278),\"-\",Dados!Z278)","v":""},{"$f":"IF(ISERROR(Dados!AA278),\"-\",Dados!AA278)","v":""},{"$f":"IF(ISERROR(Dados!AB278),\"-\",Dados!AB278)","v":""},{"$f":"IF(ISERROR(Dados!AC278),\"-\",Dados!AC278)","v":""},{"$f":"IF(ISERROR(Dados!AD278),\"-\",Dados!AD278)","v":""},{"$f":"IF(ISERROR(Dados!AE278),\"-\",Dados!AE278)","v":""},{"$f":"IF(ISERROR(Dados!AF278),\"-\",Dados!AF278)","v":""},{"$f":"IF(ISERROR(Dados!AG278),\"-\",Dados!AG278)","v":""}]
[{"$f":"IF(ISERROR(Dados!A279),\"-\",Dados!A279)","v":""},{"$f":"IF(ISERROR(Dados!B279),\"-\",Dados!B279)","v":""},{"$f":"IF(ISERROR(Dados!C279),\"-\",Dados!C279)","v":""},{"$f":"IF(ISERROR(Dados!D279),\"-\",Dados!D279)","v":""},{"$f":"IF(ISERROR(Dados!E279),\"-\",Dados!E279)","v":""},{"$f":"IF(ISERROR(Dados!F279),\"-\",Dados!F279)","v":""},{"$f":"IF(ISERROR(Dados!G279),\"-\",Dados!G279)","v":""},{"$f":"IF(ISERROR(Dados!H279),\"-\",Dados!H279)","v":""},{"$f":"IF(ISERROR(Dados!I279),\"-\",Dados!I279)","v":""},{"$f":"IF(ISERROR(Dados!J279),\"-\",Dados!J279)","v":""},{"$f":"IF(ISERROR(Dados!K279),\"-\",Dados!K279)","v":""},{"$f":"IF(ISERROR(Dados!L279),\"-\",Dados!L279)","v":""},{"$f":"IF(ISERROR(Dados!M279),\"-\",Dados!M279)","v":""},{"$f":"IF(ISERROR(Dados!N279),\"-\",Dados!N279)","v":""},{"$f":"IF(ISERROR(Dados!O279),\"-\",Dados!O279)","v":""},{"$f":"IF(ISERROR(Dados!P279),\"-\",Dados!P279)","v":""},{"$f":"IF(ISERROR(Dados!Q279),\"-\",Dados!Q279)","v":""},{"$f":"IF(ISERROR(Dados!R279),\"-\",Dados!R279)","v":""},{"$f":"IF(ISERROR(Dados!S279),\"-\",Dados!S279)","v":""},{"$f":"IF(ISERROR(Dados!T279),\"-\",Dados!T279)","v":""},{"$f":"IF(ISERROR(Dados!U279),\"-\",Dados!U279)","v":""},{"$f":"IF(ISERROR(Dados!V279),\"-\",Dados!V279)","v":""},{"$f":"IF(ISERROR(Dados!W279),\"-\",Dados!W279)","v":""},{"$f":"IF(ISERROR(Dados!X279),\"-\",Dados!X279)","v":""},{"$f":"IF(ISERROR(Dados!Y279),\"-\",Dados!Y279)","v":""},{"$f":"IF(ISERROR(Dados!Z279),\"-\",Dados!Z279)","v":""},{"$f":"IF(ISERROR(Dados!AA279),\"-\",Dados!AA279)","v":""},{"$f":"IF(ISERROR(Dados!AB279),\"-\",Dados!AB279)","v":""},{"$f":"IF(ISERROR(Dados!AC279),\"-\",Dados!AC279)","v":""},{"$f":"IF(ISERROR(Dados!AD279),\"-\",Dados!AD279)","v":""},{"$f":"IF(ISERROR(Dados!AE279),\"-\",Dados!AE279)","v":""},{"$f":"IF(ISERROR(Dados!AF279),\"-\",Dados!AF279)","v":""},{"$f":"IF(ISERROR(Dados!AG279),\"-\",Dados!AG279)","v":""}]
[{"$f":"IF(ISERROR(Dados!A280),\"-\",Dados!A280)","v":""},{"$f":"IF(ISERROR(Dados!B280),\"-\",Dados!B280)","v":""},{"$f":"IF(ISERROR(Dados!C280),\"-\",Dados!C280)","v":""},{"$f":"IF(ISERROR(Dados!D280),\"-\",Dados!D280)","v":""},{"$f":"IF(ISERROR(Dados!E280),\"-\",Dados!E280)","v":""},{"$f":"IF(ISERROR(Dados!F280),\"-\",Dados!F280)","v":""},{"$f":"IF(ISERROR(Dados!G280),\"-\",Dados!G280)","v":""},{"$f":"IF(ISERROR(Dados!H280),\"-\",Dados!H280)","v":""},{"$f":"IF(ISERROR(Dados!I280),\"-\",Dados!I280)","v":""},{"$f":"IF(ISERROR(Dados!J280),\"-\",Dados!J280)","v":""},{"$f":"IF(ISERROR(Dados!K280),\"-\",Dados!K280)","v":""},{"$f":"IF(ISERROR(Dados!L280),\"-\",Dados!L280)","v":""},{"$f":"IF(ISERROR(Dados!M280),\"-\",Dados!M280)","v":""},{"$f":"IF(ISERROR(Dados!N280),\"-\",Dados!N280)","v":""},{"$f":"IF(ISERROR(Dados!O280),\"-\",Dados!O280)","v":""},{"$f":"IF(ISERROR(Dados!P280),\"-\",Dados!P280)","v":""},{"$f":"IF(ISERROR(Dados!Q280),\"-\",Dados!Q280)","v":""},{"$f":"IF(ISERROR(Dados!R280),\"-\",Dados!R280)","v":""},{"$f":"IF(ISERROR(Dados!S280),\"-\",Dados!S280)","v":""},{"$f":"IF(ISERROR(Dados!T280),\"-\",Dados!T280)","v":""},{"$f":"IF(ISERROR(Dados!U280),\"-\",Dados!U280)","v":""},{"$f":"IF(ISERROR(Dados!V280),\"-\",Dados!V280)","v":""},{"$f":"IF(ISERROR(Dados!W280),\"-\",Dados!W280)","v":""},{"$f":"IF(ISERROR(Dados!X280),\"-\",Dados!X280)","v":""},{"$f":"IF(ISERROR(Dados!Y280),\"-\",Dados!Y280)","v":""},{"$f":"IF(ISERROR(Dados!Z280),\"-\",Dados!Z280)","v":""},{"$f":"IF(ISERROR(Dados!AA280),\"-\",Dados!AA280)","v":""},{"$f":"IF(ISERROR(Dados!AB280),\"-\",Dados!AB280)","v":""},{"$f":"IF(ISERROR(Dados!AC280),\"-\",Dados!AC280)","v":""},{"$f":"IF(ISERROR(Dados!AD280),\"-\",Dados!AD280)","v":""},{"$f":"IF(ISERROR(Dados!AE280),\"-\",Dados!AE280)","v":""},{"$f":"IF(ISERROR(Dados!AF280),\"-\",Dados!AF280)","v":""},{"$f":"IF(ISERROR(Dados!AG280),\"-\",Dados!AG280)","v":""}]
[{"$f":"IF(ISERROR(Dados!A281),\"-\",Dados!A281)","v":""},{"$f":"IF(ISERROR(Dados!B281),\"-\",Dados!B281)","v":""},{"$f":"IF(ISERROR(Dados!C281),\"-\",Dados!C281)","v":""},{"$f":"IF(ISERROR(Dados!D281),\"-\",Dados!D281)","v":""},{"$f":"IF(ISERROR(Dados!E281),\"-\",Dados!E281)","v":""},{"$f":"IF(ISERROR(Dados!F281),\"-\",Dados!F281)","v":""},{"$f":"IF(ISERROR(Dados!G281),\"-\",Dados!G281)","v":""},{"$f":"IF(ISERROR(Dados!H281),\"-\",Dados!H281)","v":""},{"$f":"IF(ISERROR(Dados!I281),\"-\",Dados!I281)","v":""},{"$f":"IF(ISERROR(Dados!J281),\"-\",Dados!J281)","v":""},{"$f":"IF(ISERROR(Dados!K281),\"-\",Dados!K281)","v":""},{"$f":"IF(ISERROR(Dados!L281),\"-\",Dados!L281)","v":""},{"$f":"IF(ISERROR(Dados!M281),\"-\",Dados!M281)","v":""},{"$f":"IF(ISERROR(Dados!N281),\"-\",Dados!N281)","v":""},{"$f":"IF(ISERROR(Dados!O281),\"-\",Dados!O281)","v":""},{"$f":"IF(ISERROR(Dados!P281),\"-\",Dados!P281)","v":""},{"$f":"IF(ISERROR(Dados!Q281),\"-\",Dados!Q281)","v":""},{"$f":"IF(ISERROR(Dados!R281),\"-\",Dados!R281)","v":""},{"$f":"IF(ISERROR(Dados!S281),\"-\",Dados!S281)","v":""},{"$f":"IF(ISERROR(Dados!T281),\"-\",Dados!T281)","v":""},{"$f":"IF(ISERROR(Dados!U281),\"-\",Dados!U281)","v":""},{"$f":"IF(ISERROR(Dados!V281),\"-\",Dados!V281)","v":""},{"$f":"IF(ISERROR(Dados!W281),\"-\",Dados!W281)","v":""},{"$f":"IF(ISERROR(Dados!X281),\"-\",Dados!X281)","v":""},{"$f":"IF(ISERROR(Dados!Y281),\"-\",Dados!Y281)","v":""},{"$f":"IF(ISERROR(Dados!Z281),\"-\",Dados!Z281)","v":""},{"$f":"IF(ISERROR(Dados!AA281),\"-\",Dados!AA281)","v":""},{"$f":"IF(ISERROR(Dados!AB281),\"-\",Dados!AB281)","v":""},{"$f":"IF(ISERROR(Dados!AC281),\"-\",Dados!AC281)","v":""},{"$f":"IF(ISERROR(Dados!AD281),\"-\",Dados!AD281)","v":""},{"$f":"IF(ISERROR(Dados!AE281),\"-\",Dados!AE281)","v":""},{"$f":"IF(ISERROR(Dados!AF281),\"-\",Dados!AF281)","v":""},{"$f":"IF(ISERROR(Dados!AG281),\"-\",Dados!AG281)","v":""}]
[{"$f":"IF(ISERROR(Dados!A282),\"-\",Dados!A282)","v":""},{"$f":"IF(ISERROR(Dados!B282),\"-\",Dados!B282)","v":""},{"$f":"IF(ISERROR(Dados!C282),\"-\",Dados!C282)","v":""},{"$f":"IF(ISERROR(Dados!D282),\"-\",Dados!D282)","v":""},{"$f":"IF(ISERROR(Dados!E282),\"-\",Dados!E282)","v":""},{"$f":"IF(ISERROR(Dados!F282),\"-\",Dados!F282)","v":""},{"$f":"IF(ISERROR(Dados!G282),\"-\",Dados!G282)","v":""},{"$f":"IF(ISERROR(Dados!H282),\"-\",Dados!H282)","v":""},{"$f":"IF(ISERROR(Dados!I282),\"-\",Dados!I282)","v":""},{"$f":"IF(ISERROR(Dados!J282),\"-\",Dados!J282)","v":""},{"$f":"IF(ISERROR(Dados!K282),\"-\",Dados!K282)","v":""},{"$f":"IF(ISERROR(Dados!L282),\"-\",Dados!L282)","v":""},{"$f":"IF(ISERROR(Dados!M282),\"-\",Dados!M282)","v":""},{"$f":"IF(ISERROR(Dados!N282),\"-\",Dados!N282)","v":""},{"$f":"IF(ISERROR(Dados!O282),\"-\",Dados!O282)","v":""},{"$f":"IF(ISERROR(Dados!P282),\"-\",Dados!P282)","v":""},{"$f":"IF(ISERROR(Dados!Q282),\"-\",Dados!Q282)","v":""},{"$f":"IF(ISERROR(Dados!R282),\"-\",Dados!R282)","v":""},{"$f":"IF(ISERROR(Dados!S282),\"-\",Dados!S282)","v":""},{"$f":"IF(ISERROR(Dados!T282),\"-\",Dados!T282)","v":""},{"$f":"IF(ISERROR(Dados!U282),\"-\",Dados!U282)","v":""},{"$f":"IF(ISERROR(Dados!V282),\"-\",Dados!V282)","v":""},{"$f":"IF(ISERROR(Dados!W282),\"-\",Dados!W282)","v":""},{"$f":"IF(ISERROR(Dados!X282),\"-\",Dados!X282)","v":""},{"$f":"IF(ISERROR(Dados!Y282),\"-\",Dados!Y282)","v":""},{"$f":"IF(ISERROR(Dados!Z282),\"-\",Dados!Z282)","v":""},{"$f":"IF(ISERROR(Dados!AA282),\"-\",Dados!AA282)","v":""},{"$f":"IF(ISERROR(Dados!AB282),\"-\",Dados!AB282)","v":""},{"$f":"IF(ISERROR(Dados!AC282),\"-\",Dados!AC282)","v":""},{"$f":"IF(ISERROR(Dados!AD282),\"-\",Dados!AD282)","v":""},{"$f":"IF(ISERROR(Dados!AE282),\"-\",Dados!AE282)","v":""},{"$f":"IF(ISERROR(Dados!AF282),\"-\",Dados!AF282)","v":""},{"$f":"IF(ISERROR(Dados!AG282),\"-\",Dados!AG282)","v":""}]
[{"$f":"IF(ISERROR(Dados!A283),\"-\",Dados!A283)","v":""},{"$f":"IF(ISERROR(Dados!B283),\"-\",Dados!B283)","v":""},{"$f":"IF(ISERROR(Dados!C283),\"-\",Dados!C283)","v":""},{"$f":"IF(ISERROR(Dados!D283),\"-\",Dados!D283)","v":""},{"$f":"IF(ISERROR(Dados!E283),\"-\",Dados!E283)","v":""},{"$f":"IF(ISERROR(Dados!F283),\"-\",Dados!F283)","v":""},{"$f":"IF(ISERROR(Dados!G283),\"-\",Dados!G283)","v":""},{"$f":"IF(ISERROR(Dados!H283),\"-\",Dados!H283)","v":""},{"$f":"IF(ISERROR(Dados!I283),\"-\",Dados!I283)","v":""},{"$f":"IF(ISERROR(Dados!J283),\"-\",Dados!J283)","v":""},{"$f":"IF(ISERROR(Dados!K283),\"-\",Dados!K283)","v":""},{"$f":"IF(ISERROR(Dados!L283),\"-\",Dados!L283)","v":""},{"$f":"IF(ISERROR(Dados!M283),\"-\",Dados!M283)","v":""},{"$f":"IF(ISERROR(Dados!N283),\"-\",Dados!N283)","v":""},{"$f":"IF(ISERROR(Dados!O283),\"-\",Dados!O283)","v":""},{"$f":"IF(ISERROR(Dados!P283),\"-\",Dados!P283)","v":""},{"$f":"IF(ISERROR(Dados!Q283),\"-\",Dados!Q283)","v":""},{"$f":"IF(ISERROR(Dados!R283),\"-\",Dados!R283)","v":""},{"$f":"IF(ISERROR(Dados!S283),\"-\",Dados!S283)","v":""},{"$f":"IF(ISERROR(Dados!T283),\"-\",Dados!T283)","v":""},{"$f":"IF(ISERROR(Dados!U283),\"-\",Dados!U283)","v":""},{"$f":"IF(ISERROR(Dados!V283),\"-\",Dados!V283)","v":""},{"$f":"IF(ISERROR(Dados!W283),\"-\",Dados!W283)","v":""},{"$f":"IF(ISERROR(Dados!X283),\"-\",Dados!X283)","v":""},{"$f":"IF(ISERROR(Dados!Y283),\"-\",Dados!Y283)","v":""},{"$f":"IF(ISERROR(Dados!Z283),\"-\",Dados!Z283)","v":""},{"$f":"IF(ISERROR(Dados!AA283),\"-\",Dados!AA283)","v":""},{"$f":"IF(ISERROR(Dados!AB283),\"-\",Dados!AB283)","v":""},{"$f":"IF(ISERROR(Dados!AC283),\"-\",Dados!AC283)","v":""},{"$f":"IF(ISERROR(Dados!AD283),\"-\",Dados!AD283)","v":""},{"$f":"IF(ISERROR(Dados!AE283),\"-\",Dados!AE283)","v":""},{"$f":"IF(ISERROR(Dados!AF283),\"-\",Dados!AF283)","v":""},{"$f":"IF(ISERROR(Dados!AG283),\"-\",Dados!AG283)","v":""}]
[{"$f":"IF(ISERROR(Dados!A284),\"-\",Dados!A284)","v":""},{"$f":"IF(ISERROR(Dados!B284),\"-\",Dados!B284)","v":""},{"$f":"IF(ISERROR(Dados!C284),\"-\",Dados!C284)","v":""},{"$f":"IF(ISERROR(Dados!D284),\"-\",Dados!D284)","v":""},{"$f":"IF(ISERROR(Dados!E284),\"-\",Dados!E284)","v":""},{"$f":"IF(ISERROR(Dados!F284),\"-\",Dados!F284)","v":""},{"$f":"IF(ISERROR(Dados!G284),\"-\",Dados!G284)","v":""},{"$f":"IF(ISERROR(Dados!H284),\"-\",Dados!H284)","v":""},{"$f":"IF(ISERROR(Dados!I284),\"-\",Dados!I284)","v":""},{"$f":"IF(ISERROR(Dados!J284),\"-\",Dados!J284)","v":""},{"$f":"IF(ISERROR(Dados!K284),\"-\",Dados!K284)","v":""},{"$f":"IF(ISERROR(Dados!L284),\"-\",Dados!L284)","v":""},{"$f":"IF(ISERROR(Dados!M284),\"-\",Dados!M284)","v":""},{"$f":"IF(ISERROR(Dados!N284),\"-\",Dados!N284)","v":""},{"$f":"IF(ISERROR(Dados!O284),\"-\",Dados!O284)","v":""},{"$f":"IF(ISERROR(Dados!P284),\"-\",Dados!P284)","v":""},{"$f":"IF(ISERROR(Dados!Q284),\"-\",Dados!Q284)","v":""},{"$f":"IF(ISERROR(Dados!R284),\"-\",Dados!R284)","v":""},{"$f":"IF(ISERROR(Dados!S284),\"-\",Dados!S284)","v":""},{"$f":"IF(ISERROR(Dados!T284),\"-\",Dados!T284)","v":""},{"$f":"IF(ISERROR(Dados!U284),\"-\",Dados!U284)","v":""},{"$f":"IF(ISERROR(Dados!V284),\"-\",Dados!V284)","v":""},{"$f":"IF(ISERROR(Dados!W284),\"-\",Dados!W284)","v":""},{"$f":"IF(ISERROR(Dados!X284),\"-\",Dados!X284)","v":""},{"$f":"IF(ISERROR(Dados!Y284),\"-\",Dados!Y284)","v":""},{"$f":"IF(ISERROR(Dados!Z284),\"-\",Dados!Z284)","v":""},{"$f":"IF(ISERROR(Dados!AA284),\"-\",Dados!AA284)","v":""},{"$f":"IF(ISERROR(Dados!AB284),\"-\",Dados!AB284)","v":""},{"$f":"IF(ISERROR(Dados!AC284),\"-\",Dados!AC284)","v":""},{"$f":"IF(ISERROR(Dados!AD284),\"-\",Dados!AD284)","v":""},{"$f":"IF(ISERROR(Dados!AE284),\"-\",Dados!AE284)","v":""},{"$f":"IF(ISERROR(Dados!AF284),\"-\",Dados!AF284)","v":""},{"$f":"IF(ISERROR(Dados!AG284),\"-\",Dados!AG284)","v":""}]
[{"$f":"IF(ISERROR(Dados!A285),\"-\",Dados!A285)","v":""},{"$f":"IF(ISERROR(Dados!B285),\"-\",Dados!B285)","v":""},{"$f":"IF(ISERROR(Dados!C285),\"-\",Dados!C285)","v":""},{"$f":"IF(ISERROR(Dados!D285),\"-\",Dados!D285)","v":""},{"$f":"IF(ISERROR(Dados!E285),\"-\",Dados!E285)","v":""},{"$f":"IF(ISERROR(Dados!F285),\"-\",Dados!F285)","v":""},{"$f":"IF(ISERROR(Dados!G285),\"-\",Dados!G285)","v":""},{"$f":"IF(ISERROR(Dados!H285),\"-\",Dados!H285)","v":""},{"$f":"IF(ISERROR(Dados!I285),\"-\",Dados!I285)","v":""},{"$f":"IF(ISERROR(Dados!J285),\"-\",Dados!J285)","v":""},{"$f":"IF(ISERROR(Dados!K285),\"-\",Dados!K285)","v":""},{"$f":"IF(ISERROR(Dados!L285),\"-\",Dados!L285)","v":""},{"$f":"IF(ISERROR(Dados!M285),\"-\",Dados!M285)","v":""},{"$f":"IF(ISERROR(Dados!N285),\"-\",Dados!N285)","v":""},{"$f":"IF(ISERROR(Dados!O285),\"-\",Dados!O285)","v":""},{"$f":"IF(ISERROR(Dados!P285),\"-\",Dados!P285)","v":""},{"$f":"IF(ISERROR(Dados!Q285),\"-\",Dados!Q285)","v":""},{"$f":"IF(ISERROR(Dados!R285),\"-\",Dados!R285)","v":""},{"$f":"IF(ISERROR(Dados!S285),\"-\",Dados!S285)","v":""},{"$f":"IF(ISERROR(Dados!T285),\"-\",Dados!T285)","v":""},{"$f":"IF(ISERROR(Dados!U285),\"-\",Dados!U285)","v":""},{"$f":"IF(ISERROR(Dados!V285),\"-\",Dados!V285)","v":""},{"$f":"IF(ISERROR(Dados!W285),\"-\",Dados!W285)","v":""},{"$f":"IF(ISERROR(Dados!X285),\"-\",Dados!X285)","v":""},{"$f":"IF(ISERROR(Dados!Y285),\"-\",Dados!Y285)","v":""},{"$f":"IF(ISERROR(Dados!Z285),\"-\",Dados!Z285)","v":""},{"$f":"IF(ISERROR(Dados!AA285),\"-\",Dados!AA285)","v":""},{"$f":"IF(ISERROR(Dados!AB285),\"-\",Dados!AB285)","v":""},{"$f":"IF(ISERROR(Dados!AC285),\"-\",Dados!AC285)","v":""},{"$f":"IF(ISERROR(Dados!AD285),\"-\",Dados!AD285)","v":""},{"$f":"IF(ISERROR(Dados!AE285),\"-\",Dados!AE285)","v":""},{"$f":"IF(ISERROR(Dados!AF285),\"-\",Dados!AF285)","v":""},{"$f":"IF(ISERROR(Dados!AG285),\"-\",Dados!AG285)","v":""}]
[{"$f":"IF(ISERROR(Dados!A286),\"-\",Dados!A286)","v":""},{"$f":"IF(ISERROR(Dados!B286),\"-\",Dados!B286)","v":""},{"$f":"IF(ISERROR(Dados!C286),\"-\",Dados!C286)","v":""},{"$f":"IF(ISERROR(Dados!D286),\"-\",Dados!D286)","v":""},{"$f":"IF(ISERROR(Dados!E286),\"-\",Dados!E286)","v":""},{"$f":"IF(ISERROR(Dados!F286),\"-\",Dados!F286)","v":""},{"$f":"IF(ISERROR(Dados!G286),\"-\",Dados!G286)","v":""},{"$f":"IF(ISERROR(Dados!H286),\"-\",Dados!H286)","v":""},{"$f":"IF(ISERROR(Dados!I286),\"-\",Dados!I286)","v":""},{"$f":"IF(ISERROR(Dados!J286),\"-\",Dados!J286)","v":""},{"$f":"IF(ISERROR(Dados!K286),\"-\",Dados!K286)","v":""},{"$f":"IF(ISERROR(Dados!L286),\"-\",Dados!L286)","v":""},{"$f":"IF(ISERROR(Dados!M286),\"-\",Dados!M286)","v":""},{"$f":"IF(ISERROR(Dados!N286),\"-\",Dados!N286)","v":""},{"$f":"IF(ISERROR(Dados!O286),\"-\",Dados!O286)","v":""},{"$f":"IF(ISERROR(Dados!P286),\"-\",Dados!P286)","v":""},{"$f":"IF(ISERROR(Dados!Q286),\"-\",Dados!Q286)","v":""},{"$f":"IF(ISERROR(Dados!R286),\"-\",Dados!R286)","v":""},{"$f":"IF(ISERROR(Dados!S286),\"-\",Dados!S286)","v":""},{"$f":"IF(ISERROR(Dados!T286),\"-\",Dados!T286)","v":""},{"$f":"IF(ISERROR(Dados!U286),\"-\",Dados!U286)","v":""},{"$f":"IF(ISERROR(Dados!V286),\"-\",Dados!V286)","v":""},{"$f":"IF(ISERROR(Dados!W286),\"-\",Dados!W286)","v":""},{"$f":"IF(ISERROR(Dados!X286),\"-\",Dados!X286)","v":""},{"$f":"IF(ISERROR(Dados!Y286),\"-\",Dados!Y286)","v":""},{"$f":"IF(ISERROR(Dados!Z286),\"-\",Dados!Z286)","v":""},{"$f":"IF(ISERROR(Dados!AA286),\"-\",Dados!AA286)","v":""},{"$f":"IF(ISERROR(Dados!AB286),\"-\",Dados!AB286)","v":""},{"$f":"IF(ISERROR(Dados!AC286),\"-\",Dados!AC286)","v":""},{"$f":"IF(ISERROR(Dados!AD286),\"-\",Dados!AD286)","v":""},{"$f":"IF(ISERROR(Dados!AE286),\"-\",Dados!AE286)","v":""},{"$f":"IF(ISERROR(Dados!AF286),\"-\",Dados!AF286)","v":""},{"$f":"IF(ISERROR(Dados!AG286),\"-\",Dados!AG286)","v":""}]
[{"$f":"IF(ISERROR(Dados!A287),\"-\",Dados!A287)","v":""},{"$f":"IF(ISERROR(Dados!B287),\"-\",Dados!B287)","v":""},{"$f":"IF(ISERROR(Dados!C287),\"-\",Dados!C287)","v":""},{"$f":"IF(ISERROR(Dados!D287),\"-\",Dados!D287)","v":""},{"$f":"IF(ISERROR(Dados!E287),\"-\",Dados!E287)","v":""},{"$f":"IF(ISERROR(Dados!F287),\"-\",Dados!F287)","v":""},{"$f":"IF(ISERROR(Dados!G287),\"-\",Dados!G287)","v":""},{"$f":"IF(ISERROR(Dados!H287),\"-\",Dados!H287)","v":""},{"$f":"IF(ISERROR(Dados!I287),\"-\",Dados!I287)","v":""},{"$f":"IF(ISERROR(Dados!J287),\"-\",Dados!J287)","v":""},{"$f":"IF(ISERROR(Dados!K287),\"-\",Dados!K287)","v":""},{"$f":"IF(ISERROR(Dados!L287),\"-\",Dados!L287)","v":""},{"$f":"IF(ISERROR(Dados!M287),\"-\",Dados!M287)","v":""},{"$f":"IF(ISERROR(Dados!N287),\"-\",Dados!N287)","v":""},{"$f":"IF(ISERROR(Dados!O287),\"-\",Dados!O287)","v":""},{"$f":"IF(ISERROR(Dados!P287),\"-\",Dados!P287)","v":""},{"$f":"IF(ISERROR(Dados!Q287),\"-\",Dados!Q287)","v":""},{"$f":"IF(ISERROR(Dados!R287),\"-\",Dados!R287)","v":""},{"$f":"IF(ISERROR(Dados!S287),\"-\",Dados!S287)","v":""},{"$f":"IF(ISERROR(Dados!T287),\"-\",Dados!T287)","v":""},{"$f":"IF(ISERROR(Dados!U287),\"-\",Dados!U287)","v":""},{"$f":"IF(ISERROR(Dados!V287),\"-\",Dados!V287)","v":""},{"$f":"IF(ISERROR(Dados!W287),\"-\",Dados!W287)","v":""},{"$f":"IF(ISERROR(Dados!X287),\"-\",Dados!X287)","v":""},{"$f":"IF(ISERROR(Dados!Y287),\"-\",Dados!Y287)","v":""},{"$f":"IF(ISERROR(Dados!Z287),\"-\",Dados!Z287)","v":""},{"$f":"IF(ISERROR(Dados!AA287),\"-\",Dados!AA287)","v":""},{"$f":"IF(ISERROR(Dados!AB287),\"-\",Dados!AB287)","v":""},{"$f":"IF(ISERROR(Dados!AC287),\"-\",Dados!AC287)","v":""},{"$f":"IF(ISERROR(Dados!AD287),\"-\",Dados!AD287)","v":""},{"$f":"IF(ISERROR(Dados!AE287),\"-\",Dados!AE287)","v":""},{"$f":"IF(ISERROR(Dados!AF287),\"-\",Dados!AF287)","v":""},{"$f":"IF(ISERROR(Dados!AG287),\"-\",Dados!AG287)","v":""}]
[{"$f":"IF(ISERROR(Dados!A288),\"-\",Dados!A288)","v":""},{"$f":"IF(ISERROR(Dados!B288),\"-\",Dados!B288)","v":""},{"$f":"IF(ISERROR(Dados!C288),\"-\",Dados!C288)","v":""},{"$f":"IF(ISERROR(Dados!D288),\"-\",Dados!D288)","v":""},{"$f":"IF(ISERROR(Dados!E288),\"-\",Dados!E288)","v":""},{"$f":"IF(ISERROR(Dados!F288),\"-\",Dados!F288)","v":""},{"$f":"IF(ISERROR(Dados!G288),\"-\",Dados!G288)","v":""},{"$f":"IF(ISERROR(Dados!H288),\"-\",Dados!H288)","v":""},{"$f":"IF(ISERROR(Dados!I288),\"-\",Dados!I288)","v":""},{"$f":"IF(ISERROR(Dados!J288),\"-\",Dados!J288)","v":""},{"$f":"IF(ISERROR(Dados!K288),\"-\",Dados!K288)","v":""},{"$f":"IF(ISERROR(Dados!L288),\"-\",Dados!L288)","v":""},{"$f":"IF(ISERROR(Dados!M288),\"-\",Dados!M288)","v":""},{"$f":"IF(ISERROR(Dados!N288),\"-\",Dados!N288)","v":""},{"$f":"IF(ISERROR(Dados!O288),\"-\",Dados!O288)","v":""},{"$f":"IF(ISERROR(Dados!P288),\"-\",Dados!P288)","v":""},{"$f":"IF(ISERROR(Dados!Q288),\"-\",Dados!Q288)","v":""},{"$f":"IF(ISERROR(Dados!R288),\"-\",Dados!R288)","v":""},{"$f":"IF(ISERROR(Dados!S288),\"-\",Dados!S288)","v":""},{"$f":"IF(ISERROR(Dados!T288),\"-\",Dados!T288)","v":""},{"$f":"IF(ISERROR(Dados!U288),\"-\",Dados!U288)","v":""},{"$f":"IF(ISERROR(Dados!V288),\"-\",Dados!V288)","v":""},{"$f":"IF(ISERROR(Dados!W288),\"-\",Dados!W288)","v":""},{"$f":"IF(ISERROR(Dados!X288),\"-\",Dados!X288)","v":""},{"$f":"IF(ISERROR(Dados!Y288),\"-\",Dados!Y288)","v":""},{"$f":"IF(ISERROR(Dados!Z288),\"-\",Dados!Z288)","v":""},{"$f":"IF(ISERROR(Dados!AA288),\"-\",Dados!AA288)","v":""},{"$f":"IF(ISERROR(Dados!AB288),\"-\",Dados!AB288)","v":""},{"$f":"IF(ISERROR(Dados!AC288),\"-\",Dados!AC288)","v":""},{"$f":"IF(ISERROR(Dados!AD288),\"-\",Dados!AD288)","v":""},{"$f":"IF(ISERROR(Dados!AE288),\"-\",Dados!AE288)","v":""},{"$f":"IF(ISERROR(Dados!AF288),\"-\",Dados!AF288)","v":""},{"$f":"IF(ISERROR(Dados!AG288),\"-\",Dados!AG288)","v":""}]
[{"$f":"IF(ISERROR(Dados!A289),\"-\",Dados!A289)","v":""},{"$f":"IF(ISERROR(Dados!B289),\"-\",Dados!B289)","v":""},{"$f":"IF(ISERROR(Dados!C289),\"-\",Dados!C289)","v":""},{"$f":"IF(ISERROR(Dados!D289),\"-\",Dados!D289)","v":""},{"$f":"IF(ISERROR(Dados!E289),\"-\",Dados!E289)","v":""},{"$f":"IF(ISERROR(Dados!F289),\"-\",Dados!F289)","v":""},{"$f":"IF(ISERROR(Dados!G289),\"-\",Dados!G289)","v":""},{"$f":"IF(ISERROR(Dados!H289),\"-\",Dados!H289)","v":""},{"$f":"IF(ISERROR(Dados!I289),\"-\",Dados!I289)","v":""},{"$f":"IF(ISERROR(Dados!J289),\"-\",Dados!J289)","v":""},{"$f":"IF(ISERROR(Dados!K289),\"-\",Dados!K289)","v":""},{"$f":"IF(ISERROR(Dados!L289),\"-\",Dados!L289)","v":""},{"$f":"IF(ISERROR(Dados!M289),\"-\",Dados!M289)","v":""},{"$f":"IF(ISERROR(Dados!N289),\"-\",Dados!N289)","v":""},{"$f":"IF(ISERROR(Dados!O289),\"-\",Dados!O289)","v":""},{"$f":"IF(ISERROR(Dados!P289),\"-\",Dados!P289)","v":""},{"$f":"IF(ISERROR(Dados!Q289),\"-\",Dados!Q289)","v":""},{"$f":"IF(ISERROR(Dados!R289),\"-\",Dados!R289)","v":""},{"$f":"IF(ISERROR(Dados!S289),\"-\",Dados!S289)","v":""},{"$f":"IF(ISERROR(Dados!T289),\"-\",Dados!T289)","v":""},{"$f":"IF(ISERROR(Dados!U289),\"-\",Dados!U289)","v":""},{"$f":"IF(ISERROR(Dados!V289),\"-\",Dados!V289)","v":""},{"$f":"IF(ISERROR(Dados!W289),\"-\",Dados!W289)","v":""},{"$f":"IF(ISERROR(Dados!X289),\"-\",Dados!X289)","v":""},{"$f":"IF(ISERROR(Dados!Y289),\"-\",Dados!Y289)","v":""},{"$f":"IF(ISERROR(Dados!Z289),\"-\",Dados!Z289)","v":""},{"$f":"IF(ISERROR(Dados!AA289),\"-\",Dados!AA289)","v":""},{"$f":"IF(ISERROR(Dados!AB289),\"-\",Dados!AB289)","v":""},{"$f":"IF(ISERROR(Dados!AC289),\"-\",Dados!AC289)","v":""},{"$f":"IF(ISERROR(Dados!AD289),\"-\",Dados!AD289)","v":""},{"$f":"IF(ISERROR(Dados!AE289),\"-\",Dados!AE289)","v":""},{"$f":"IF(ISERROR(Dados!AF289),\"-\",Dados!AF289)","v":""},{"$f":"IF(ISERROR(Dados!AG289),\"-\",Dados!AG289)","v":""}]
[{"$f":"IF(ISERROR(Dados!A290),\"-\",Dados!A290)","v":""},{"$f":"IF(ISERROR(Dados!B290),\"-\",Dados!B290)","v":""},{"$f":"IF(ISERROR(Dados!C290),\"-\",Dados!C290)","v":""},{"$f":"IF(ISERROR(Dados!D290),\"-\",Dados!D290)","v":""},{"$f":"IF(ISERROR(Dados!E290),\"-\",Dados!E290)","v":""},{"$f":"IF(ISERROR(Dados!F290),\"-\",Dados!F290)","v":""},{"$f":"IF(ISERROR(Dados!G290),\"-\",Dados!G290)","v":""},{"$f":"IF(ISERROR(Dados!H290),\"-\",Dados!H290)","v":""},{"$f":"IF(ISERROR(Dados!I290),\"-\",Dados!I290)","v":""},{"$f":"IF(ISERROR(Dados!J290),\"-\",Dados!J290)","v":""},{"$f":"IF(ISERROR(Dados!K290),\"-\",Dados!K290)","v":""},{"$f":"IF(ISERROR(Dados!L290),\"-\",Dados!L290)","v":""},{"$f":"IF(ISERROR(Dados!M290),\"-\",Dados!M290)","v":""},{"$f":"IF(ISERROR(Dados!N290),\"-\",Dados!N290)","v":""},{"$f":"IF(ISERROR(Dados!O290),\"-\",Dados!O290)","v":""},{"$f":"IF(ISERROR(Dados!P290),\"-\",Dados!P290)","v":""},{"$f":"IF(ISERROR(Dados!Q290),\"-\",Dados!Q290)","v":""},{"$f":"IF(ISERROR(Dados!R290),\"-\",Dados!R290)","v":""},{"$f":"IF(ISERROR(Dados!S290),\"-\",Dados!S290)","v":""},{"$f":"IF(ISERROR(Dados!T290),\"-\",Dados!T290)","v":""},{"$f":"IF(ISERROR(Dados!U290),\"-\",Dados!U290)","v":""},{"$f":"IF(ISERROR(Dados!V290),\"-\",Dados!V290)","v":""},{"$f":"IF(ISERROR(Dados!W290),\"-\",Dados!W290)","v":""},{"$f":"IF(ISERROR(Dados!X290),\"-\",Dados!X290)","v":""},{"$f":"IF(ISERROR(Dados!Y290),\"-\",Dados!Y290)","v":""},{"$f":"IF(ISERROR(Dados!Z290),\"-\",Dados!Z290)","v":""},{"$f":"IF(ISERROR(Dados!AA290),\"-\",Dados!AA290)","v":""},{"$f":"IF(ISERROR(Dados!AB290),\"-\",Dados!AB290)","v":""},{"$f":"IF(ISERROR(Dados!AC290),\"-\",Dados!AC290)","v":""},{"$f":"IF(ISERROR(Dados!AD290),\"-\",Dados!AD290)","v":""},{"$f":"IF(ISERROR(Dados!AE290),\"-\",Dados!AE290)","v":""},{"$f":"IF(ISERROR(Dados!AF290),\"-\",Dados!AF290)","v":""},{"$f":"IF(ISERROR(Dados!AG290),\"-\",Dados!AG290)","v":""}]
[{"$f":"IF(ISERROR(Dados!A291),\"-\",Dados!A291)","v":""},{"$f":"IF(ISERROR(Dados!B291),\"-\",Dados!B291)","v":""},{"$f":"IF(ISERROR(Dados!C291),\"-\",Dados!C291)","v":""},{"$f":"IF(ISERROR(Dados!D291),\"-\",Dados!D291)","v":""},{"$f":"IF(ISERROR(Dados!E291),\"-\",Dados!E291)","v":""},{"$f":"IF(ISERROR(Dados!F291),\"-\",Dados!F291)","v":""},{"$f":"IF(ISERROR(Dados!G291),\"-\",Dados!G291)","v":""},{"$f":"IF(ISERROR(Dados!H291),\"-\",Dados!H291)","v":""},{"$f":"IF(ISERROR(Dados!I291),\"-\",Dados!I291)","v":""},{"$f":"IF(ISERROR(Dados!J291),\"-\",Dados!J291)","v":""},{"$f":"IF(ISERROR(Dados!K291),\"-\",Dados!K291)","v":""},{"$f":"IF(ISERROR(Dados!L291),\"-\",Dados!L291)","v":""},{"$f":"IF(ISERROR(Dados!M291),\"-\",Dados!M291)","v":""},{"$f":"IF(ISERROR(Dados!N291),\"-\",Dados!N291)","v":""},{"$f":"IF(ISERROR(Dados!O291),\"-\",Dados!O291)","v":""},{"$f":"IF(ISERROR(Dados!P291),\"-\",Dados!P291)","v":""},{"$f":"IF(ISERROR(Dados!Q291),\"-\",Dados!Q291)","v":""},{"$f":"IF(ISERROR(Dados!R291),\"-\",Dados!R291)","v":""},{"$f":"IF(ISERROR(Dados!S291),\"-\",Dados!S291)","v":""},{"$f":"IF(ISERROR(Dados!T291),\"-\",Dados!T291)","v":""},{"$f":"IF(ISERROR(Dados!U291),\"-\",Dados!U291)","v":""},{"$f":"IF(ISERROR(Dados!V291),\"-\",Dados!V291)","v":""},{"$f":"IF(ISERROR(Dados!W291),\"-\",Dados!W291)","v":""},{"$f":"IF(ISERROR(Dados!X291),\"-\",Dados!X291)","v":""},{"$f":"IF(ISERROR(Dados!Y291),\"-\",Dados!Y291)","v":""},{"$f":"IF(ISERROR(Dados!Z291),\"-\",Dados!Z291)","v":""},{"$f":"IF(ISERROR(Dados!AA291),\"-\",Dados!AA291)","v":""},{"$f":"IF(ISERROR(Dados!AB291),\"-\",Dados!AB291)","v":""},{"$f":"IF(ISERROR(Dados!AC291),\"-\",Dados!AC291)","v":""},{"$f":"IF(ISERROR(Dados!AD291),\"-\",Dados!AD291)","v":""},{"$f":"IF(ISERROR(Dados!AE291),\"-\",Dados!AE291)","v":""},{"$f":"IF(ISERROR(Dados!AF291),\"-\",Dados!AF291)","v":""},{"$f":"IF(ISERROR(Dados!AG291),\"-\",Dados!AG291)","v":""}]
[{"$f":"IF(ISERROR(Dados!A292),\"-\",Dados!A292)","v":""},{"$f":"IF(ISERROR(Dados!B292),\"-\",Dados!B292)","v":""},{"$f":"IF(ISERROR(Dados!C292),\"-\",Dados!C292)","v":""},{"$f":"IF(ISERROR(Dados!D292),\"-\",Dados!D292)","v":""},{"$f":"IF(ISERROR(Dados!E292),\"-\",Dados!E292)","v":""},{"$f":"IF(ISERROR(Dados!F292),\"-\",Dados!F292)","v":""},{"$f":"IF(ISERROR(Dados!G292),\"-\",Dados!G292)","v":""},{"$f":"IF(ISERROR(Dados!H292),\"-\",Dados!H292)","v":""},{"$f":"IF(ISERROR(Dados!I292),\"-\",Dados!I292)","v":""},{"$f":"IF(ISERROR(Dados!J292),\"-\",Dados!J292)","v":""},{"$f":"IF(ISERROR(Dados!K292),\"-\",Dados!K292)","v":""},{"$f":"IF(ISERROR(Dados!L292),\"-\",Dados!L292)","v":""},{"$f":"IF(ISERROR(Dados!M292),\"-\",Dados!M292)","v":""},{"$f":"IF(ISERROR(Dados!N292),\"-\",Dados!N292)","v":""},{"$f":"IF(ISERROR(Dados!O292),\"-\",Dados!O292)","v":""},{"$f":"IF(ISERROR(Dados!P292),\"-\",Dados!P292)","v":""},{"$f":"IF(ISERROR(Dados!Q292),\"-\",Dados!Q292)","v":""},{"$f":"IF(ISERROR(Dados!R292),\"-\",Dados!R292)","v":""},{"$f":"IF(ISERROR(Dados!S292),\"-\",Dados!S292)","v":""},{"$f":"IF(ISERROR(Dados!T292),\"-\",Dados!T292)","v":""},{"$f":"IF(ISERROR(Dados!U292),\"-\",Dados!U292)","v":""},{"$f":"IF(ISERROR(Dados!V292),\"-\",Dados!V292)","v":""},{"$f":"IF(ISERROR(Dados!W292),\"-\",Dados!W292)","v":""},{"$f":"IF(ISERROR(Dados!X292),\"-\",Dados!X292)","v":""},{"$f":"IF(ISERROR(Dados!Y292),\"-\",Dados!Y292)","v":""},{"$f":"IF(ISERROR(Dados!Z292),\"-\",Dados!Z292)","v":""},{"$f":"IF(ISERROR(Dados!AA292),\"-\",Dados!AA292)","v":""},{"$f":"IF(ISERROR(Dados!AB292),\"-\",Dados!AB292)","v":""},{"$f":"IF(ISERROR(Dados!AC292),\"-\",Dados!AC292)","v":""},{"$f":"IF(ISERROR(Dados!AD292),\"-\",Dados!AD292)","v":""},{"$f":"IF(ISERROR(Dados!AE292),\"-\",Dados!AE292)","v":""},{"$f":"IF(ISERROR(Dados!AF292),\"-\",Dados!AF292)","v":""},{"$f":"IF(ISERROR(Dados!AG292),\"-\",Dados!AG292)","v":""}]
[{"$f":"IF(ISERROR(Dados!A293),\"-\",Dados!A293)","v":""},{"$f":"IF(ISERROR(Dados!B293),\"-\",Dados!B293)","v":""},{"$f":"IF(ISERROR(Dados!C293),\"-\",Dados!C293)","v":""},{"$f":"IF(ISERROR(Dados!D293),\"-\",Dados!D293)","v":""},{"$f":"IF(ISERROR(Dados!E293),\"-\",Dados!E293)","v":""},{"$f":"IF(ISERROR(Dados!F293),\"-\",Dados!F293)","v":""},{"$f":"IF(ISERROR(Dados!G293),\"-\",Dados!G293)","v":""},{"$f":"IF(ISERROR(Dados!H293),\"-\",Dados!H293)","v":""},{"$f":"IF(ISERROR(Dados!I293),\"-\",Dados!I293)","v":""},{"$f":"IF(ISERROR(Dados!J293),\"-\",Dados!J293)","v":""},{"$f":"IF(ISERROR(Dados!K293),\"-\",Dados!K293)","v":""},{"$f":"IF(ISERROR(Dados!L293),\"-\",Dados!L293)","v":""},{"$f":"IF(ISERROR(Dados!M293),\"-\",Dados!M293)","v":""},{"$f":"IF(ISERROR(Dados!N293),\"-\",Dados!N293)","v":""},{"$f":"IF(ISERROR(Dados!O293),\"-\",Dados!O293)","v":""},{"$f":"IF(ISERROR(Dados!P293),\"-\",Dados!P293)","v":""},{"$f":"IF(ISERROR(Dados!Q293),\"-\",Dados!Q293)","v":""},{"$f":"IF(ISERROR(Dados!R293),\"-\",Dados!R293)","v":""},{"$f":"IF(ISERROR(Dados!S293),\"-\",Dados!S293)","v":""},{"$f":"IF(ISERROR(Dados!T293),\"-\",Dados!T293)","v":""},{"$f":"IF(ISERROR(Dados!U293),\"-\",Dados!U293)","v":""},{"$f":"IF(ISERROR(Dados!V293),\"-\",Dados!V293)","v":""},{"$f":"IF(ISERROR(Dados!W293),\"-\",Dados!W293)","v":""},{"$f":"IF(ISERROR(Dados!X293),\"-\",Dados!X293)","v":""},{"$f":"IF(ISERROR(Dados!Y293),\"-\",Dados!Y293)","v":""},{"$f":"IF(ISERROR(Dados!Z293),\"-\",Dados!Z293)","v":""},{"$f":"IF(ISERROR(Dados!AA293),\"-\",Dados!AA293)","v":""},{"$f":"IF(ISERROR(Dados!AB293),\"-\",Dados!AB293)","v":""},{"$f":"IF(ISERROR(Dados!AC293),\"-\",Dados!AC293)","v":""},{"$f":"IF(ISERROR(Dados!AD293),\"-\",Dados!AD293)","v":""},{"$f":"IF(ISERROR(Dados!AE293),\"-\",Dados!AE293)","v":""},{"$f":"IF(ISERROR(Dados!AF293),\"-\",Dados!AF293)","v":""},{"$f":"IF(ISERROR(Dados!AG293),\"-\",Dados!AG293)","v":""}]
[{"$f":"IF(ISERROR(Dados!A294),\"-\",Dados!A294)","v":""},{"$f":"IF(ISERROR(Dados!B294),\"-\",Dados!B294)","v":""},{"$f":"IF(ISERROR(Dados!C294),\"-\",Dados!C294)","v":""},{"$f":"IF(ISERROR(Dados!D294),\"-\",Dados!D294)","v":""},{"$f":"IF(ISERROR(Dados!E294),\"-\",Dados!E294)","v":""},{"$f":"IF(ISERROR(Dados!F294),\"-\",Dados!F294)","v":""},{"$f":"IF(ISERROR(Dados!G294),\"-\",Dados!G294)","v":""},{"$f":"IF(ISERROR(Dados!H294),\"-\",Dados!H294)","v":""},{"$f":"IF(ISERROR(Dados!I294),\"-\",Dados!I294)","v":""},{"$f":"IF(ISERROR(Dados!J294),\"-\",Dados!J294)","v":""},{"$f":"IF(ISERROR(Dados!K294),\"-\",Dados!K294)","v":""},{"$f":"IF(ISERROR(Dados!L294),\"-\",Dados!L294)","v":""},{"$f":"IF(ISERROR(Dados!M294),\"-\",Dados!M294)","v":""},{"$f":"IF(ISERROR(Dados!N294),\"-\",Dados!N294)","v":""},{"$f":"IF(ISERROR(Dados!O294),\"-\",Dados!O294)","v":""},{"$f":"IF(ISERROR(Dados!P294),\"-\",Dados!P294)","v":""},{"$f":"IF(ISERROR(Dados!Q294),\"-\",Dados!Q294)","v":""},{"$f":"IF(ISERROR(Dados!R294),\"-\",Dados!R294)","v":""},{"$f":"IF(ISERROR(Dados!S294),\"-\",Dados!S294)","v":""},{"$f":"IF(ISERROR(Dados!T294),\"-\",Dados!T294)","v":""},{"$f":"IF(ISERROR(Dados!U294),\"-\",Dados!U294)","v":""},{"$f":"IF(ISERROR(Dados!V294),\"-\",Dados!V294)","v":""},{"$f":"IF(ISERROR(Dados!W294),\"-\",Dados!W294)","v":""},{"$f":"IF(ISERROR(Dados!X294),\"-\",Dados!X294)","v":""},{"$f":"IF(ISERROR(Dados!Y294),\"-\",Dados!Y294)","v":""},{"$f":"IF(ISERROR(Dados!Z294),\"-\",Dados!Z294)","v":""},{"$f":"IF(ISERROR(Dados!AA294),\"-\",Dados!AA294)","v":""},{"$f":"IF(ISERROR(Dados!AB294),\"-\",Dados!AB294)","v":""},{"$f":"IF(ISERROR(Dados!AC294),\"-\",Dados!AC294)","v":""},{"$f":"IF(ISERROR(Dados!AD294),\"-\",Dados!AD294)","v":""},{"$f":"IF(ISERROR(Dados!AE294),\"-\",Dados!AE294)","v":""},{"$f":"IF(ISERROR(Dados!AF294),\"-\",Dados!AF294)","v":""},{"$f":"IF(ISERROR(Dados!AG294),\"-\",Dados!AG294)","v":""}]
[{"$f":"IF(ISERROR(Dados!A295),\"-\",Dados!A295)","v":""},{"$f":"IF(ISERROR(Dados!B295),\"-\",Dados!B295)","v":""},{"$f":"IF(ISERROR(Dados!C295),\"-\",Dados!C295)","v":""},{"$f":"IF(ISERROR(Dados!D295),\"-\",Dados!D295)","v":""},{"$f":"IF(ISERROR(Dados!E295),\"-\",Dados!E295)","v":""},{"$f":"IF(ISERROR(Dados!F295),\"-\",Dados!F295)","v":""},{"$f":"IF(ISERROR(Dados!G295),\"-\",Dados!G295)","v":""},{"$f":"IF(ISERROR(Dados!H295),\"-\",Dados!H295)","v":""},{"$f":"IF(ISERROR(Dados!I295),\"-\",Dados!I295)","v":""},{"$f":"IF(ISERROR(Dados!J295),\"-\",Dados!J295)","v":""},{"$f":"IF(ISERROR(Dados!K295),\"-\",Dados!K295)","v":""},{"$f":"IF(ISERROR(Dados!L295),\"-\",Dados!L295)","v":""},{"$f":"IF(ISERROR(Dados!M295),\"-\",Dados!M295)","v":""},{"$f":"IF(ISERROR(Dados!N295),\"-\",Dados!N295)","v":""},{"$f":"IF(ISERROR(Dados!O295),\"-\",Dados!O295)","v":""},{"$f":"IF(ISERROR(Dados!P295),\"-\",Dados!P295)","v":""},{"$f":"IF(ISERROR(Dados!Q295),\"-\",Dados!Q295)","v":""},{"$f":"IF(ISERROR(Dados!R295),\"-\",Dados!R295)","v":""},{"$f":"IF(ISERROR(Dados!S295),\"-\",Dados!S295)","v":""},{"$f":"IF(ISERROR(Dados!T295),\"-\",Dados!T295)","v":""},{"$f":"IF(ISERROR(Dados!U295),\"-\",Dados!U295)","v":""},{"$f":"IF(ISERROR(Dados!V295),\"-\",Dados!V295)","v":""},{"$f":"IF(ISERROR(Dados!W295),\"-\",Dados!W295)","v":""},{"$f":"IF(ISERROR(Dados!X295),\"-\",Dados!X295)","v":""},{"$f":"IF(ISERROR(Dados!Y295),\"-\",Dados!Y295)","v":""},{"$f":"IF(ISERROR(Dados!Z295),\"-\",Dados!Z295)","v":""},{"$f":"IF(ISERROR(Dados!AA295),\"-\",Dados!AA295)","v":""},{"$f":"IF(ISERROR(Dados!AB295),\"-\",Dados!AB295)","v":""},{"$f":"IF(ISERROR(Dados!AC295),\"-\",Dados!AC295)","v":""},{"$f":"IF(ISERROR(Dados!AD295),\"-\",Dados!AD295)","v":""},{"$f":"IF(ISERROR(Dados!AE295),\"-\",Dados!AE295)","v":""},{"$f":"IF(ISERROR(Dados!AF295),\"-\",Dados!AF295)","v":""},{"$f":"IF(ISERROR(Dados!AG295),\"-\",Dados!AG295)","v":""}]
[{"$f":"IF(ISERROR(Dados!A296),\"-\",Dados!A296)","v":""},{"$f":"IF(ISERROR(Dados!B296),\"-\",Dados!B296)","v":""},{"$f":"IF(ISERROR(Dados!C296),\"-\",Dados!C296)","v":""},{"$f":"IF(ISERROR(Dados!D296),\"-\",Dados!D296)","v":""},{"$f":"IF(ISERROR(Dados!E296),\"-\",Dados!E296)","v":""},{"$f":"IF(ISERROR(Dados!F296),\"-\",Dados!F296)","v":""},{"$f":"IF(ISERROR(Dados!G296),\"-\",Dados!G296)","v":""},{"$f":"IF(ISERROR(Dados!H296),\"-\",Dados!H296)","v":""},{"$f":"IF(ISERROR(Dados!I296),\"-\",Dados!I296)","v":""},{"$f":"IF(ISERROR(Dados!J296),\"-\",Dados!J296)","v":""},{"$f":"IF(ISERROR(Dados!K296),\"-\",Dados!K296)","v":""},{"$f":"IF(ISERROR(Dados!L296),\"-\",Dados!L296)","v":""},{"$f":"IF(ISERROR(Dados!M296),\"-\",Dados!M296)","v":""},{"$f":"IF(ISERROR(Dados!N296),\"-\",Dados!N296)","v":""},{"$f":"IF(ISERROR(Dados!O296),\"-\",Dados!O296)","v":""},{"$f":"IF(ISERROR(Dados!P296),\"-\",Dados!P296)","v":""},{"$f":"IF(ISERROR(Dados!Q296),\"-\",Dados!Q296)","v":""},{"$f":"IF(ISERROR(Dados!R296),\"-\",Dados!R296)","v":""},{"$f":"IF(ISERROR(Dados!S296),\"-\",Dados!S296)","v":""},{"$f":"IF(ISERROR(Dados!T296),\"-\",Dados!T296)","v":""},{"$f":"IF(ISERROR(Dados!U296),\"-\",Dados!U296)","v":""},{"$f":"IF(ISERROR(Dados!V296),\"-\",Dados!V296)","v":""},{"$f":"IF(ISERROR(Dados!W296),\"-\",Dados!W296)","v":""},{"$f":"IF(ISERROR(Dados!X296),\"-\",Dados!X296)","v":""},{"$f":"IF(ISERROR(Dados!Y296),\"-\",Dados!Y296)","v":""},{"$f":"IF(ISERROR(Dados!Z296),\"-\",Dados!Z296)","v":""},{"$f":"IF(ISERROR(Dados!AA296),\"-\",Dados!AA296)","v":""},{"$f":"IF(ISERROR(Dados!AB296),\"-\",Dados!AB296)","v":""},{"$f":"IF(ISERROR(Dados!AC296),\"-\",Dados!AC296)","v":""},{"$f":"IF(ISERROR(Dados!AD296),\"-\",Dados!AD296)","v":""},{"$f":"IF(ISERROR(Dados!AE296),\"-\",Dados!AE296)","v":""},{"$f":"IF(ISERROR(Dados!AF296),\"-\",Dados!AF296)","v":""},{"$f":"IF(ISERROR(Dados!AG296),\"-\",Dados!AG296)","v":""}]
[{"$f":"IF(ISERROR(Dados!A297),\"-\",Dados!A297)","v":""},{"$f":"IF(ISERROR(Dados!B297),\"-\",Dados!B297)","v":""},{"$f":"IF(ISERROR(Dados!C297),\"-\",Dados!C297)","v":""},{"$f":"IF(ISERROR(Dados!D297),\"-\",Dados!D297)","v":""},{"$f":"IF(ISERROR(Dados!E297),\"-\",Dados!E297)","v":""},{"$f":"IF(ISERROR(Dados!F297),\"-\",Dados!F297)","v":""},{"$f":"IF(ISERROR(Dados!G297),\"-\",Dados!G297)","v":""},{"$f":"IF(ISERROR(Dados!H297),\"-\",Dados!H297)","v":""},{"$f":"IF(ISERROR(Dados!I297),\"-\",Dados!I297)","v":""},{"$f":"IF(ISERROR(Dados!J297),\"-\",Dados!J297)","v":""},{"$f":"IF(ISERROR(Dados!K297),\"-\",Dados!K297)","v":""},{"$f":"IF(ISERROR(Dados!L297),\"-\",Dados!L297)","v":""},{"$f":"IF(ISERROR(Dados!M297),\"-\",Dados!M297)","v":""},{"$f":"IF(ISERROR(Dados!N297),\"-\",Dados!N297)","v":""},{"$f":"IF(ISERROR(Dados!O297),\"-\",Dados!O297)","v":""},{"$f":"IF(ISERROR(Dados!P297),\"-\",Dados!P297)","v":""},{"$f":"IF(ISERROR(Dados!Q297),\"-\",Dados!Q297)","v":""},{"$f":"IF(ISERROR(Dados!R297),\"-\",Dados!R297)","v":""},{"$f":"IF(ISERROR(Dados!S297),\"-\",Dados!S297)","v":""},{"$f":"IF(ISERROR(Dados!T297),\"-\",Dados!T297)","v":""},{"$f":"IF(ISERROR(Dados!U297),\"-\",Dados!U297)","v":""},{"$f":"IF(ISERROR(Dados!V297),\"-\",Dados!V297)","v":""},{"$f":"IF(ISERROR(Dados!W297),\"-\",Dados!W297)","v":""},{"$f":"IF(ISERROR(Dados!X297),\"-\",Dados!X297)","v":""},{"$f":"IF(ISERROR(Dados!Y297),\"-\",Dados!Y297)","v":""},{"$f":"IF(ISERROR(Dados!Z297),\"-\",Dados!Z297)","v":""},{"$f":"IF(ISERROR(Dados!AA297),\"-\",Dados!AA297)","v":""},{"$f":"IF(ISERROR(Dados!AB297),\"-\",Dados!AB297)","v":""},{"$f":"IF(ISERROR(Dados!AC297),\"-\",Dados!AC297)","v":""},{"$f":"IF(ISERROR(Dados!AD297),\"-\",Dados!AD297)","v":""},{"$f":"IF(ISERROR(Dados!AE297),\"-\",Dados!AE297)","v":""},{"$f":"IF(ISERROR(Dados!AF297),\"-\",Dados!AF297)","v":""},{"$f":"IF(ISERROR(Dados!AG297),\"-\",Dados!AG297)","v":""}]
[{"$f":"IF(ISERROR(Dados!A298),\"-\",Dados!A298)","v":""},{"$f":"IF(ISERROR(Dados!B298),\"-\",Dados!B298)","v":""},{"$f":"IF(ISERROR(Dados!C298),\"-\",Dados!C298)","v":""},{"$f":"IF(ISERROR(Dados!D298),\"-\",Dados!D298)","v":""},{"$f":"IF(ISERROR(Dados!E298),\"-\",Dados!E298)","v":""},{"$f":"IF(ISERROR(Dados!F298),\"-\",Dados!F298)","v":""},{"$f":"IF(ISERROR(Dados!G298),\"-\",Dados!G298)","v":""},{"$f":"IF(ISERROR(Dados!H298),\"-\",Dados!H298)","v":""},{"$f":"IF(ISERROR(Dados!I298),\"-\",Dados!I298)","v":""},{"$f":"IF(ISERROR(Dados!J298),\"-\",Dados!J298)","v":""},{"$f":"IF(ISERROR(Dados!K298),\"-\",Dados!K298)","v":""},{"$f":"IF(ISERROR(Dados!L298),\"-\",Dados!L298)","v":""},{"$f":"IF(ISERROR(Dados!M298),\"-\",Dados!M298)","v":""},{"$f":"IF(ISERROR(Dados!N298),\"-\",Dados!N298)","v":""},{"$f":"IF(ISERROR(Dados!O298),\"-\",Dados!O298)","v":""},{"$f":"IF(ISERROR(Dados!P298),\"-\",Dados!P298)","v":""},{"$f":"IF(ISERROR(Dados!Q298),\"-\",Dados!Q298)","v":""},{"$f":"IF(ISERROR(Dados!R298),\"-\",Dados!R298)","v":""},{"$f":"IF(ISERROR(Dados!S298),\"-\",Dados!S298)","v":""},{"$f":"IF(ISERROR(Dados!T298),\"-\",Dados!T298)","v":""},{"$f":"IF(ISERROR(Dados!U298),\"-\",Dados!U298)","v":""},{"$f":"IF(ISERROR(Dados!V298),\"-\",Dados!V298)","v":""},{"$f":"IF(ISERROR(Dados!W298),\"-\",Dados!W298)","v":""},{"$f":"IF(ISERROR(Dados!X298),\"-\",Dados!X298)","v":""},{"$f":"IF(ISERROR(Dados!Y298),\"-\",Dados!Y298)","v":""},{"$f":"IF(ISERROR(Dados!Z298),\"-\",Dados!Z298)","v":""},{"$f":"IF(ISERROR(Dados!AA298),\"-\",Dados!AA298)","v":""},{"$f":"IF(ISERROR(Dados!AB298),\"-\",Dados!AB298)","v":""},{"$f":"IF(ISERROR(Dados!AC298),\"-\",Dados!AC298)","v":""},{"$f":"IF(ISERROR(Dados!AD298),\"-\",Dados!AD298)","v":""},{"$f":"IF(ISERROR(Dados!AE298),\"-\",Dados!AE298)","v":""},{"$f":"IF(ISERROR(Dados!AF298),\"-\",Dados!AF298)","v":""},{"$f":"IF(ISERROR(Dados!AG298),\"-\",Dados!AG298)","v":""}]
[{"$f":"IF(ISERROR(Dados!A299),\"-\",Dados!A299)","v":""},{"$f":"IF(ISERROR(Dados!B299),\"-\",Dados!B299)","v":""},{"$f":"IF(ISERROR(Dados!C299),\"-\",Dados!C299)","v":""},{"$f":"IF(ISERROR(Dados!D299),\"-\",Dados!D299)","v":""},{"$f":"IF(ISERROR(Dados!E299),\"-\",Dados!E299)","v":""},{"$f":"IF(ISERROR(Dados!F299),\"-\",Dados!F299)","v":""},{"$f":"IF(ISERROR(Dados!G299),\"-\",Dados!G299)","v":""},{"$f":"IF(ISERROR(Dados!H299),\"-\",Dados!H299)","v":""},{"$f":"IF(ISERROR(Dados!I299),\"-\",Dados!I299)","v":""},{"$f":"IF(ISERROR(Dados!J299),\"-\",Dados!J299)","v":""},{"$f":"IF(ISERROR(Dados!K299),\"-\",Dados!K299)","v":""},{"$f":"IF(ISERROR(Dados!L299),\"-\",Dados!L299)","v":""},{"$f":"IF(ISERROR(Dados!M299),\"-\",Dados!M299)","v":""},{"$f":"IF(ISERROR(Dados!N299),\"-\",Dados!N299)","v":""},{"$f":"IF(ISERROR(Dados!O299),\"-\",Dados!O299)","v":""},{"$f":"IF(ISERROR(Dados!P299),\"-\",Dados!P299)","v":""},{"$f":"IF(ISERROR(Dados!Q299),\"-\",Dados!Q299)","v":""},{"$f":"IF(ISERROR(Dados!R299),\"-\",Dados!R299)","v":""},{"$f":"IF(ISERROR(Dados!S299),\"-\",Dados!S299)","v":""},{"$f":"IF(ISERROR(Dados!T299),\"-\",Dados!T299)","v":""},{"$f":"IF(ISERROR(Dados!U299),\"-\",Dados!U299)","v":""},{"$f":"IF(ISERROR(Dados!V299),\"-\",Dados!V299)","v":""},{"$f":"IF(ISERROR(Dados!W299),\"-\",Dados!W299)","v":""},{"$f":"IF(ISERROR(Dados!X299),\"-\",Dados!X299)","v":""},{"$f":"IF(ISERROR(Dados!Y299),\"-\",Dados!Y299)","v":""},{"$f":"IF(ISERROR(Dados!Z299),\"-\",Dados!Z299)","v":""},{"$f":"IF(ISERROR(Dados!AA299),\"-\",Dados!AA299)","v":""},{"$f":"IF(ISERROR(Dados!AB299),\"-\",Dados!AB299)","v":""},{"$f":"IF(ISERROR(Dados!AC299),\"-\",Dados!AC299)","v":""},{"$f":"IF(ISERROR(Dados!AD299),\"-\",Dados!AD299)","v":""},{"$f":"IF(ISERROR(Dados!AE299),\"-\",Dados!AE299)","v":""},{"$f":"IF(ISERROR(Dados!AF299),\"-\",Dados!AF299)","v":""},{"$f":"IF(ISERROR(Dados!AG299),\"-\",Dados!AG299)","v":""}]
[{"$f":"IF(ISERROR(Dados!A300),\"-\",Dados!A300)","v":""},{"$f":"IF(ISERROR(Dados!B300),\"-\",Dados!B300)","v":""},{"$f":"IF(ISERROR(Dados!C300),\"-\",Dados!C300)","v":""},{"$f":"IF(ISERROR(Dados!D300),\"-\",Dados!D300)","v":""},{"$f":"IF(ISERROR(Dados!E300),\"-\",Dados!E300)","v":""},{"$f":"IF(ISERROR(Dados!F300),\"-\",Dados!F300)","v":""},{"$f":"IF(ISERROR(Dados!G300),\"-\",Dados!G300)","v":""},{"$f":"IF(ISERROR(Dados!H300),\"-\",Dados!H300)","v":""},{"$f":"IF(ISERROR(Dados!I300),\"-\",Dados!I300)","v":""},{"$f":"IF(ISERROR(Dados!J300),\"-\",Dados!J300)","v":""},{"$f":"IF(ISERROR(Dados!K300),\"-\",Dados!K300)","v":""},{"$f":"IF(ISERROR(Dados!L300),\"-\",Dados!L300)","v":""},{"$f":"IF(ISERROR(Dados!M300),\"-\",Dados!M300)","v":""},{"$f":"IF(ISERROR(Dados!N300),\"-\",Dados!N300)","v":""},{"$f":"IF(ISERROR(Dados!O300),\"-\",Dados!O300)","v":""},{"$f":"IF(ISERROR(Dados!P300),\"-\",Dados!P300)","v":""},{"$f":"IF(ISERROR(Dados!Q300),\"-\",Dados!Q300)","v":""},{"$f":"IF(ISERROR(Dados!R300),\"-\",Dados!R300)","v":""},{"$f":"IF(ISERROR(Dados!S300),\"-\",Dados!S300)","v":""},{"$f":"IF(ISERROR(Dados!T300),\"-\",Dados!T300)","v":""},{"$f":"IF(ISERROR(Dados!U300),\"-\",Dados!U300)","v":""},{"$f":"IF(ISERROR(Dados!V300),\"-\",Dados!V300)","v":""},{"$f":"IF(ISERROR(Dados!W300),\"-\",Dados!W300)","v":""},{"$f":"IF(ISERROR(Dados!X300),\"-\",Dados!X300)","v":""},{"$f":"IF(ISERROR(Dados!Y300),\"-\",Dados!Y300)","v":""},{"$f":"IF(ISERROR(Dados!Z300),\"-\",Dados!Z300)","v":""},{"$f":"IF(ISERROR(Dados!AA300),\"-\",Dados!AA300)","v":""},{"$f":"IF(ISERROR(Dados!AB300),\"-\",Dados!AB300)","v":""},{"$f":"IF(ISERROR(Dados!AC300),\"-\",Dados!AC300)","v":""},{"$f":"IF(ISERROR(Dados!AD300),\"-\",Dados!AD300)","v":""},{"$f":"IF(ISERROR(Dados!AE300),\"-\",Dados!AE300)","v":""},{"$f":"IF(ISERROR(Dados!AF300),\"-\",Dados!AF300)","v":""},{"$f":"IF(ISERROR(Dados!AG300),\"-\",Dados!AG300)","v":""}]
[{"$f":"IF(ISERROR(Dados!A301),\"-\",Dados!A301)","v":""},{"$f":"IF(ISERROR(Dados!B301),\"-\",Dados!B301)","v":""},{"$f":"IF(ISERROR(Dados!C301),\"-\",Dados!C301)","v":""},{"$f":"IF(ISERROR(Dados!D301),\"-\",Dados!D301)","v":""},{"$f":"IF(ISERROR(Dados!E301),\"-\",Dados!E301)","v":""},{"$f":"IF(ISERROR(Dados!F301),\"-\",Dados!F301)","v":""},{"$f":"IF(ISERROR(Dados!G301),\"-\",Dados!G301)","v":""},{"$f":"IF(ISERROR(Dados!H301),\"-\",Dados!H301)","v":""},{"$f":"IF(ISERROR(Dados!I301),\"-\",Dados!I301)","v":""},{"$f":"IF(ISERROR(Dados!J301),\"-\",Dados!J301)","v":""},{"$f":"IF(ISERROR(Dados!K301),\"-\",Dados!K301)","v":""},{"$f":"IF(ISERROR(Dados!L301),\"-\",Dados!L301)","v":""},{"$f":"IF(ISERROR(Dados!M301),\"-\",Dados!M301)","v":""},{"$f":"IF(ISERROR(Dados!N301),\"-\",Dados!N301)","v":""},{"$f":"IF(ISERROR(Dados!O301),\"-\",Dados!O301)","v":""},{"$f":"IF(ISERROR(Dados!P301),\"-\",Dados!P301)","v":""},{"$f":"IF(ISERROR(Dados!Q301),\"-\",Dados!Q301)","v":""},{"$f":"IF(ISERROR(Dados!R301),\"-\",Dados!R301)","v":""},{"$f":"IF(ISERROR(Dados!S301),\"-\",Dados!S301)","v":""},{"$f":"IF(ISERROR(Dados!T301),\"-\",Dados!T301)","v":""},{"$f":"IF(ISERROR(Dados!U301),\"-\",Dados!U301)","v":""},{"$f":"IF(ISERROR(Dados!V301),\"-\",Dados!V301)","v":""},{"$f":"IF(ISERROR(Dados!W301),\"-\",Dados!W301)","v":""},{"$f":"IF(ISERROR(Dados!X301),\"-\",Dados!X301)","v":""},{"$f":"IF(ISERROR(Dados!Y301),\"-\",Dados!Y301)","v":""},{"$f":"IF(ISERROR(Dados!Z301),\"-\",Dados!Z301)","v":""},{"$f":"IF(ISERROR(Dados!AA301),\"-\",Dados!AA301)","v":""},{"$f":"IF(ISERROR(Dados!AB301),\"-\",Dados!AB301)","v":""},{"$f":"IF(ISERROR(Dados!AC301),\"-\",Dados!AC301)","v":""},{"$f":"IF(ISERROR(Dados!AD301),\"-\",Dados!AD301)","v":""},{"$f":"IF(ISERROR(Dados!AE301),\"-\",Dados!AE301)","v":""},{"$f":"IF(ISERROR(Dados!AF301),\"-\",Dados!AF301)","v":""},{"$f":"IF(ISERROR(Dados!AG301),\"-\",Dados!AG301)","v":""}]
[{"$f":"IF(ISERROR(Dados!A302),\"-\",Dados!A302)","v":""},{"$f":"IF(ISERROR(Dados!B302),\"-\",Dados!B302)","v":""},{"$f":"IF(ISERROR(Dados!C302),\"-\",Dados!C302)","v":""},{"$f":"IF(ISERROR(Dados!D302),\"-\",Dados!D302)","v":""},{"$f":"IF(ISERROR(Dados!E302),\"-\",Dados!E302)","v":""},{"$f":"IF(ISERROR(Dados!F302),\"-\",Dados!F302)","v":""},{"$f":"IF(ISERROR(Dados!G302),\"-\",Dados!G302)","v":""},{"$f":"IF(ISERROR(Dados!H302),\"-\",Dados!H302)","v":""},{"$f":"IF(ISERROR(Dados!I302),\"-\",Dados!I302)","v":""},{"$f":"IF(ISERROR(Dados!J302),\"-\",Dados!J302)","v":""},{"$f":"IF(ISERROR(Dados!K302),\"-\",Dados!K302)","v":""},{"$f":"IF(ISERROR(Dados!L302),\"-\",Dados!L302)","v":""},{"$f":"IF(ISERROR(Dados!M302),\"-\",Dados!M302)","v":""},{"$f":"IF(ISERROR(Dados!N302),\"-\",Dados!N302)","v":""},{"$f":"IF(ISERROR(Dados!O302),\"-\",Dados!O302)","v":""},{"$f":"IF(ISERROR(Dados!P302),\"-\",Dados!P302)","v":""},{"$f":"IF(ISERROR(Dados!Q302),\"-\",Dados!Q302)","v":""},{"$f":"IF(ISERROR(Dados!R302),\"-\",Dados!R302)","v":""},{"$f":"IF(ISERROR(Dados!S302),\"-\",Dados!S302)","v":""},{"$f":"IF(ISERROR(Dados!T302),\"-\",Dados!T302)","v":""},{"$f":"IF(ISERROR(Dados!U302),\"-\",Dados!U302)","v":""},{"$f":"IF(ISERROR(Dados!V302),\"-\",Dados!V302)","v":""},{"$f":"IF(ISERROR(Dados!W302),\"-\",Dados!W302)","v":""},{"$f":"IF(ISERROR(Dados!X302),\"-\",Dados!X302)","v":""},{"$f":"IF(ISERROR(Dados!Y302),\"-\",Dados!Y302)","v":""},{"$f":"IF(ISERROR(Dados!Z302),\"-\",Dados!Z302)","v":""},{"$f":"IF(ISERROR(Dados!AA302),\"-\",Dados!AA302)","v":""},{"$f":"IF(ISERROR(Dados!AB302),\"-\",Dados!AB302)","v":""},{"$f":"IF(ISERROR(Dados!AC302),\"-\",Dados!AC302)","v":""},{"$f":"IF(ISERROR(Dados!AD302),\"-\",Dados!AD302)","v":""},{"$f":"IF(ISERROR(Dados!AE302),\"-\",Dados!AE302)","v":""},{"$f":"IF(ISERROR(Dados!AF302),\"-\",Dados!AF302)","v":""},{"$f":"IF(ISERROR(Dados!AG302),\"-\",Dados!AG302)","v":""}]
[{"$f":"IF(ISERROR(Dados!A303),\"-\",Dados!A303)","v":""},{"$f":"IF(ISERROR(Dados!B303),\"-\",Dados!B303)","v":""},{"$f":"IF(ISERROR(Dados!C303),\"-\",Dados!C303)","v":""},{"$f":"IF(ISERROR(Dados!D303),\"-\",Dados!D303)","v":""},{"$f":"IF(ISERROR(Dados!E303),\"-\",Dados!E303)","v":""},{"$f":"IF(ISERROR(Dados!F303),\"-\",Dados!F303)","v":""},{"$f":"IF(ISERROR(Dados!G303),\"-\",Dados!G303)","v":""},{"$f":"IF(ISERROR(Dados!H303),\"-\",Dados!H303)","v":""},{"$f":"IF(ISERROR(Dados!I303),\"-\",Dados!I303)","v":""},{"$f":"IF(ISERROR(Dados!J303),\"-\",Dados!J303)","v":""},{"$f":"IF(ISERROR(Dados!K303),\"-\",Dados!K303)","v":""},{"$f":"IF(ISERROR(Dados!L303),\"-\",Dados!L303)","v":""},{"$f":"IF(ISERROR(Dados!M303),\"-\",Dados!M303)","v":""},{"$f":"IF(ISERROR(Dados!N303),\"-\",Dados!N303)","v":""},{"$f":"IF(ISERROR(Dados!O303),\"-\",Dados!O303)","v":""},{"$f":"IF(ISERROR(Dados!P303),\"-\",Dados!P303)","v":""},{"$f":"IF(ISERROR(Dados!Q303),\"-\",Dados!Q303)","v":""},{"$f":"IF(ISERROR(Dados!R303),\"-\",Dados!R303)","v":""},{"$f":"IF(ISERROR(Dados!S303),\"-\",Dados!S303)","v":""},{"$f":"IF(ISERROR(Dados!T303),\"-\",Dados!T303)","v":""},{"$f":"IF(ISERROR(Dados!U303),\"-\",Dados!U303)","v":""},{"$f":"IF(ISERROR(Dados!V303),\"-\",Dados!V303)","v":""},{"$f":"IF(ISERROR(Dados!W303),\"-\",Dados!W303)","v":""},{"$f":"IF(ISERROR(Dados!X303),\"-\",Dados!X303)","v":""},{"$f":"IF(ISERROR(Dados!Y303),\"-\",Dados!Y303)","v":""},{"$f":"IF(ISERROR(Dados!Z303),\"-\",Dados!Z303)","v":""},{"$f":"IF(ISERROR(Dados!AA303),\"-\",Dados!AA303)","v":""},{"$f":"IF(ISERROR(Dados!AB303),\"-\",Dados!AB303)","v":""},{"$f":"IF(ISERROR(Dados!AC303),\"-\",Dados!AC303)","v":""},{"$f":"IF(ISERROR(Dados!AD303),\"-\",Dados!AD303)","v":""},{"$f":"IF(ISERROR(Dados!AE303),\"-\",Dados!AE303)","v":""},{"$f":"IF(ISERROR(Dados!AF303),\"-\",Dados!AF303)","v":""},{"$f":"IF(ISERROR(Dados!AG303),\"-\",Dados!AG303)","v":""}]
[{"$f":"IF(ISERROR(Dados!A304),\"-\",Dados!A304)","v":""},{"$f":"IF(ISERROR(Dados!B304),\"-\",Dados!B304)","v":""},{"$f":"IF(ISERROR(Dados!C304),\"-\",Dados!C304)","v":""},{"$f":"IF(ISERROR(Dados!D304),\"-\",Dados!D304)","v":""},{"$f":"IF(ISERROR(Dados!E304),\"-\",Dados!E304)","v":""},{"$f":"IF(ISERROR(Dados!F304),\"-\",Dados!F304)","v":""},{"$f":"IF(ISERROR(Dados!G304),\"-\",Dados!G304)","v":""},{"$f":"IF(ISERROR(Dados!H304),\"-\",Dados!H304)","v":""},{"$f":"IF(ISERROR(Dados!I304),\"-\",Dados!I304)","v":""},{"$f":"IF(ISERROR(Dados!J304),\"-\",Dados!J304)","v":""},{"$f":"IF(ISERROR(Dados!K304),\"-\",Dados!K304)","v":""},{"$f":"IF(ISERROR(Dados!L304),\"-\",Dados!L304)","v":""},{"$f":"IF(ISERROR(Dados!M304),\"-\",Dados!M304)","v":""},{"$f":"IF(ISERROR(Dados!N304),\"-\",Dados!N304)","v":""},{"$f":"IF(ISERROR(Dados!O304),\"-\",Dados!O304)","v":""},{"$f":"IF(ISERROR(Dados!P304),\"-\",Dados!P304)","v":""},{"$f":"IF(ISERROR(Dados!Q304),\"-\",Dados!Q304)","v":""},{"$f":"IF(ISERROR(Dados!R304),\"-\",Dados!R304)","v":""},{"$f":"IF(ISERROR(Dados!S304),\"-\",Dados!S304)","v":""},{"$f":"IF(ISERROR(Dados!T304),\"-\",Dados!T304)","v":""},{"$f":"IF(ISERROR(Dados!U304),\"-\",Dados!U304)","v":""},{"$f":"IF(ISERROR(Dados!V304),\"-\",Dados!V304)","v":""},{"$f":"IF(ISERROR(Dados!W304),\"-\",Dados!W304)","v":""},{"$f":"IF(ISERROR(Dados!X304),\"-\",Dados!X304)","v":""},{"$f":"IF(ISERROR(Dados!Y304),\"-\",Dados!Y304)","v":""},{"$f":"IF(ISERROR(Dados!Z304),\"-\",Dados!Z304)","v":""},{"$f":"IF(ISERROR(Dados!AA304),\"-\",Dados!AA304)","v":""},{"$f":"IF(ISERROR(Dados!AB304),\"-\",Dados!AB304)","v":""},{"$f":"IF(ISERROR(Dados!AC304),\"-\",Dados!AC304)","v":""},{"$f":"IF(ISERROR(Dados!AD304),\"-\",Dados!AD304)","v":""},{"$f":"IF(ISERROR(Dados!AE304),\"-\",Dados!AE304)","v":""},{"$f":"IF(ISERROR(Dados!AF304),\"-\",Dados!AF304)","v":""},{"$f":"IF(ISERROR(Dados!AG304),\"-\",Dados!AG304)","v":""}]
[{"$f":"IF(ISERROR(Dados!A305),\"-\",Dados!A305)","v":""},{"$f":"IF(ISERROR(Dados!B305),\"-\",Dados!B305)","v":""},{"$f":"IF(ISERROR(Dados!C305),\"-\",Dados!C305)","v":""},{"$f":"IF(ISERROR(Dados!D305),\"-\",Dados!D305)","v":""},{"$f":"IF(ISERROR(Dados!E305),\"-\",Dados!E305)","v":""},{"$f":"IF(ISERROR(Dados!F305),\"-\",Dados!F305)","v":""},{"$f":"IF(ISERROR(Dados!G305),\"-\",Dados!G305)","v":""},{"$f":"IF(ISERROR(Dados!H305),\"-\",Dados!H305)","v":""},{"$f":"IF(ISERROR(Dados!I305),\"-\",Dados!I305)","v":""},{"$f":"IF(ISERROR(Dados!J305),\"-\",Dados!J305)","v":""},{"$f":"IF(ISERROR(Dados!K305),\"-\",Dados!K305)","v":""},{"$f":"IF(ISERROR(Dados!L305),\"-\",Dados!L305)","v":""},{"$f":"IF(ISERROR(Dados!M305),\"-\",Dados!M305)","v":""},{"$f":"IF(ISERROR(Dados!N305),\"-\",Dados!N305)","v":""},{"$f":"IF(ISERROR(Dados!O305),\"-\",Dados!O305)","v":""},{"$f":"IF(ISERROR(Dados!P305),\"-\",Dados!P305)","v":""},{"$f":"IF(ISERROR(Dados!Q305),\"-\",Dados!Q305)","v":""},{"$f":"IF(ISERROR(Dados!R305),\"-\",Dados!R305)","v":""},{"$f":"IF(ISERROR(Dados!S305),\"-\",Dados!S305)","v":""},{"$f":"IF(ISERROR(Dados!T305),\"-\",Dados!T305)","v":""},{"$f":"IF(ISERROR(Dados!U305),\"-\",Dados!U305)","v":""},{"$f":"IF(ISERROR(Dados!V305),\"-\",Dados!V305)","v":""},{"$f":"IF(ISERROR(Dados!W305),\"-\",Dados!W305)","v":""},{"$f":"IF(ISERROR(Dados!X305),\"-\",Dados!X305)","v":""},{"$f":"IF(ISERROR(Dados!Y305),\"-\",Dados!Y305)","v":""},{"$f":"IF(ISERROR(Dados!Z305),\"-\",Dados!Z305)","v":""},{"$f":"IF(ISERROR(Dados!AA305),\"-\",Dados!AA305)","v":""},{"$f":"IF(ISERROR(Dados!AB305),\"-\",Dados!AB305)","v":""},{"$f":"IF(ISERROR(Dados!AC305),\"-\",Dados!AC305)","v":""},{"$f":"IF(ISERROR(Dados!AD305),\"-\",Dados!AD305)","v":""},{"$f":"IF(ISERROR(Dados!AE305),\"-\",Dados!AE305)","v":""},{"$f":"IF(ISERROR(Dados!AF305),\"-\",Dados!AF305)","v":""},{"$f":"IF(ISERROR(Dados!AG305),\"-\",Dados!AG305)","v":""}]
[{"$f":"IF(ISERROR(Dados!A306),\"-\",Dados!A306)","v":""},{"$f":"IF(ISERROR(Dados!B306),\"-\",Dados!B306)","v":""},{"$f":"IF(ISERROR(Dados!C306),\"-\",Dados!C306)","v":""},{"$f":"IF(ISERROR(Dados!D306),\"-\",Dados!D306)","v":""},{"$f":"IF(ISERROR(Dados!E306),\"-\",Dados!E306)","v":""},{"$f":"IF(ISERROR(Dados!F306),\"-\",Dados!F306)","v":""},{"$f":"IF(ISERROR(Dados!G306),\"-\",Dados!G306)","v":""},{"$f":"IF(ISERROR(Dados!H306),\"-\",Dados!H306)","v":""},{"$f":"IF(ISERROR(Dados!I306),\"-\",Dados!I306)","v":""},{"$f":"IF(ISERROR(Dados!J306),\"-\",Dados!J306)","v":""},{"$f":"IF(ISERROR(Dados!K306),\"-\",Dados!K306)","v":""},{"$f":"IF(ISERROR(Dados!L306),\"-\",Dados!L306)","v":""},{"$f":"IF(ISERROR(Dados!M306),\"-\",Dados!M306)","v":""},{"$f":"IF(ISERROR(Dados!N306),\"-\",Dados!N306)","v":""},{"$f":"IF(ISERROR(Dados!O306),\"-\",Dados!O306)","v":""},{"$f":"IF(ISERROR(Dados!P306),\"-\",Dados!P306)","v":""},{"$f":"IF(ISERROR(Dados!Q306),\"-\",Dados!Q306)","v":""},{"$f":"IF(ISERROR(Dados!R306),\"-\",Dados!R306)","v":""},{"$f":"IF(ISERROR(Dados!S306),\"-\",Dados!S306)","v":""},{"$f":"IF(ISERROR(Dados!T306),\"-\",Dados!T306)","v":""},{"$f":"IF(ISERROR(Dados!U306),\"-\",Dados!U306)","v":""},{"$f":"IF(ISERROR(Dados!V306),\"-\",Dados!V306)","v":""},{"$f":"IF(ISERROR(Dados!W306),\"-\",Dados!W306)","v":""},{"$f":"IF(ISERROR(Dados!X306),\"-\",Dados!X306)","v":""},{"$f":"IF(ISERROR(Dados!Y306),\"-\",Dados!Y306)","v":""},{"$f":"IF(ISERROR(Dados!Z306),\"-\",Dados!Z306)","v":""},{"$f":"IF(ISERROR(Dados!AA306),\"-\",Dados!AA306)","v":""},{"$f":"IF(ISERROR(Dados!AB306),\"-\",Dados!AB306)","v":""},{"$f":"IF(ISERROR(Dados!AC306),\"-\",Dados!AC306)","v":""},{"$f":"IF(ISERROR(Dados!AD306),\"-\",Dados!AD306)","v":""},{"$f":"IF(ISERROR(Dados!AE306),\"-\",Dados!AE306)","v":""},{"$f":"IF(ISERROR(Dados!AF306),\"-\",Dados!AF306)","v":""},{"$f":"IF(ISERROR(Dados!AG306),\"-\",Dados!AG306)","v":""}]
[{"$f":"IF(ISERROR(Dados!A307),\"-\",Dados!A307)","v":""},{"$f":"IF(ISERROR(Dados!B307),\"-\",Dados!B307)","v":""},{"$f":"IF(ISERROR(Dados!C307),\"-\",Dados!C307)","v":""},{"$f":"IF(ISERROR(Dados!D307),\"-\",Dados!D307)","v":""},{"$f":"IF(ISERROR(Dados!E307),\"-\",Dados!E307)","v":""},{"$f":"IF(ISERROR(Dados!F307),\"-\",Dados!F307)","v":""},{"$f":"IF(ISERROR(Dados!G307),\"-\",Dados!G307)","v":""},{"$f":"IF(ISERROR(Dados!H307),\"-\",Dados!H307)","v":""},{"$f":"IF(ISERROR(Dados!I307),\"-\",Dados!I307)","v":""},{"$f":"IF(ISERROR(Dados!J307),\"-\",Dados!J307)","v":""},{"$f":"IF(ISERROR(Dados!K307),\"-\",Dados!K307)","v":""},{"$f":"IF(ISERROR(Dados!L307),\"-\",Dados!L307)","v":""},{"$f":"IF(ISERROR(Dados!M307),\"-\",Dados!M307)","v":""},{"$f":"IF(ISERROR(Dados!N307),\"-\",Dados!N307)","v":""},{"$f":"IF(ISERROR(Dados!O307),\"-\",Dados!O307)","v":""},{"$f":"IF(ISERROR(Dados!P307),\"-\",Dados!P307)","v":""},{"$f":"IF(ISERROR(Dados!Q307),\"-\",Dados!Q307)","v":""},{"$f":"IF(ISERROR(Dados!R307),\"-\",Dados!R307)","v":""},{"$f":"IF(ISERROR(Dados!S307),\"-\",Dados!S307)","v":""},{"$f":"IF(ISERROR(Dados!T307),\"-\",Dados!T307)","v":""},{"$f":"IF(ISERROR(Dados!U307),\"-\",Dados!U307)","v":""},{"$f":"IF(ISERROR(Dados!V307),\"-\",Dados!V307)","v":""},{"$f":"IF(ISERROR(Dados!W307),\"-\",Dados!W307)","v":""},{"$f":"IF(ISERROR(Dados!X307),\"-\",Dados!X307)","v":""},{"$f":"IF(ISERROR(Dados!Y307),\"-\",Dados!Y307)","v":""},{"$f":"IF(ISERROR(Dados!Z307),\"-\",Dados!Z307)","v":""},{"$f":"IF(ISERROR(Dados!AA307),\"-\",Dados!AA307)","v":""},{"$f":"IF(ISERROR(Dados!AB307),\"-\",Dados!AB307)","v":""},{"$f":"IF(ISERROR(Dados!AC307),\"-\",Dados!AC307)","v":""},{"$f":"IF(ISERROR(Dados!AD307),\"-\",Dados!AD307)","v":""},{"$f":"IF(ISERROR(Dados!AE307),\"-\",Dados!AE307)","v":""},{"$f":"IF(ISERROR(Dados!AF307),\"-\",Dados!AF307)","v":""},{"$f":"IF(ISERROR(Dados!AG307),\"-\",Dados!AG307)","v":""}]
[{"$f":"IF(ISERROR(Dados!A308),\"-\",Dados!A308)","v":""},{"$f":"IF(ISERROR(Dados!B308),\"-\",Dados!B308)","v":""},{"$f":"IF(ISERROR(Dados!C308),\"-\",Dados!C308)","v":""},{"$f":"IF(ISERROR(Dados!D308),\"-\",Dados!D308)","v":""},{"$f":"IF(ISERROR(Dados!E308),\"-\",Dados!E308)","v":""},{"$f":"IF(ISERROR(Dados!F308),\"-\",Dados!F308)","v":""},{"$f":"IF(ISERROR(Dados!G308),\"-\",Dados!G308)","v":""},{"$f":"IF(ISERROR(Dados!H308),\"-\",Dados!H308)","v":""},{"$f":"IF(ISERROR(Dados!I308),\"-\",Dados!I308)","v":""},{"$f":"IF(ISERROR(Dados!J308),\"-\",Dados!J308)","v":""},{"$f":"IF(ISERROR(Dados!K308),\"-\",Dados!K308)","v":""},{"$f":"IF(ISERROR(Dados!L308),\"-\",Dados!L308)","v":""},{"$f":"IF(ISERROR(Dados!M308),\"-\",Dados!M308)","v":""},{"$f":"IF(ISERROR(Dados!N308),\"-\",Dados!N308)","v":""},{"$f":"IF(ISERROR(Dados!O308),\"-\",Dados!O308)","v":""},{"$f":"IF(ISERROR(Dados!P308),\"-\",Dados!P308)","v":""},{"$f":"IF(ISERROR(Dados!Q308),\"-\",Dados!Q308)","v":""},{"$f":"IF(ISERROR(Dados!R308),\"-\",Dados!R308)","v":""},{"$f":"IF(ISERROR(Dados!S308),\"-\",Dados!S308)","v":""},{"$f":"IF(ISERROR(Dados!T308),\"-\",Dados!T308)","v":""},{"$f":"IF(ISERROR(Dados!U308),\"-\",Dados!U308)","v":""},{"$f":"IF(ISERROR(Dados!V308),\"-\",Dados!V308)","v":""},{"$f":"IF(ISERROR(Dados!W308),\"-\",Dados!W308)","v":""},{"$f":"IF(ISERROR(Dados!X308),\"-\",Dados!X308)","v":""},{"$f":"IF(ISERROR(Dados!Y308),\"-\",Dados!Y308)","v":""},{"$f":"IF(ISERROR(Dados!Z308),\"-\",Dados!Z308)","v":""},{"$f":"IF(ISERROR(Dados!AA308),\"-\",Dados!AA308)","v":""},{"$f":"IF(ISERROR(Dados!AB308),\"-\",Dados!AB308)","v":""},{"$f":"IF(ISERROR(Dados!AC308),\"-\",Dados!AC308)","v":""},{"$f":"IF(ISERROR(Dados!AD308),\"-\",Dados!AD308)","v":""},{"$f":"IF(ISERROR(Dados!AE308),\"-\",Dados!AE308)","v":""},{"$f":"IF(ISERROR(Dados!AF308),\"-\",Dados!AF308)","v":""},{"$f":"IF(ISERROR(Dados!AG308),\"-\",Dados!AG308)","v":""}]
[{"$f":"IF(ISERROR(Dados!A309),\"-\",Dados!A309)","v":""},{"$f":"IF(ISERROR(Dados!B309),\"-\",Dados!B309)","v":""},{"$f":"IF(ISERROR(Dados!C309),\"-\",Dados!C309)","v":""},{"$f":"IF(ISERROR(Dados!D309),\"-\",Dados!D309)","v":""},{"$f":"IF(ISERROR(Dados!E309),\"-\",Dados!E309)","v":""},{"$f":"IF(ISERROR(Dados!F309),\"-\",Dados!F309)","v":""},{"$f":"IF(ISERROR(Dados!G309),\"-\",Dados!G309)","v":""},{"$f":"IF(ISERROR(Dados!H309),\"-\",Dados!H309)","v":""},{"$f":"IF(ISERROR(Dados!I309),\"-\",Dados!I309)","v":""},{"$f":"IF(ISERROR(Dados!J309),\"-\",Dados!J309)","v":""},{"$f":"IF(ISERROR(Dados!K309),\"-\",Dados!K309)","v":""},{"$f":"IF(ISERROR(Dados!L309),\"-\",Dados!L309)","v":""},{"$f":"IF(ISERROR(Dados!M309),\"-\",Dados!M309)","v":""},{"$f":"IF(ISERROR(Dados!N309),\"-\",Dados!N309)","v":""},{"$f":"IF(ISERROR(Dados!O309),\"-\",Dados!O309)","v":""},{"$f":"IF(ISERROR(Dados!P309),\"-\",Dados!P309)","v":""},{"$f":"IF(ISERROR(Dados!Q309),\"-\",Dados!Q309)","v":""},{"$f":"IF(ISERROR(Dados!R309),\"-\",Dados!R309)","v":""},{"$f":"IF(ISERROR(Dados!S309),\"-\",Dados!S309)","v":""},{"$f":"IF(ISERROR(Dados!T309),\"-\",Dados!T309)","v":""},{"$f":"IF(ISERROR(Dados!U309),\"-\",Dados!U309)","v":""},{"$f":"IF(ISERROR(Dados!V309),\"-\",Dados!V309)","v":""},{"$f":"IF(ISERROR(Dados!W309),\"-\",Dados!W309)","v":""},{"$f":"IF(ISERROR(Dados!X309),\"-\",Dados!X309)","v":""},{"$f":"IF(ISERROR(Dados!Y309),\"-\",Dados!Y309)","v":""},{"$f":"IF(ISERROR(Dados!Z309),\"-\",Dados!Z309)","v":""},{"$f":"IF(ISERROR(Dados!AA309),\"-\",Dados!AA309)","v":""},{"$f":"IF(ISERROR(Dados!AB309),\"-\",Dados!AB309)","v":""},{"$f":"IF(ISERROR(Dados!AC309),\"-\",Dados!AC309)","v":""},{"$f":"IF(ISERROR(Dados!AD309),\"-\",Dados!AD309)","v":""},{"$f":"IF(ISERROR(Dados!AE309),\"-\",Dados!AE309)","v":""},{"$f":"IF(ISERROR(Dados!AF309),\"-\",Dados!AF309)","v":""},{"$f":"IF(ISERROR(Dados!AG309),\"-\",Dados!AG309)","v":""}]
[{"$f":"IF(ISERROR(Dados!A310),\"-\",Dados!A310)","v":""},{"$f":"IF(ISERROR(Dados!B310),\"-\",Dados!B310)","v":""},{"$f":"IF(ISERROR(Dados!C310),\"-\",Dados!C310)","v":""},{"$f":"IF(ISERROR(Dados!D310),\"-\",Dados!D310)","v":""},{"$f":"IF(ISERROR(Dados!E310),\"-\",Dados!E310)","v":""},{"$f":"IF(ISERROR(Dados!F310),\"-\",Dados!F310)","v":""},{"$f":"IF(ISERROR(Dados!G310),\"-\",Dados!G310)","v":""},{"$f":"IF(ISERROR(Dados!H310),\"-\",Dados!H310)","v":""},{"$f":"IF(ISERROR(Dados!I310),\"-\",Dados!I310)","v":""},{"$f":"IF(ISERROR(Dados!J310),\"-\",Dados!J310)","v":""},{"$f":"IF(ISERROR(Dados!K310),\"-\",Dados!K310)","v":""},{"$f":"IF(ISERROR(Dados!L310),\"-\",Dados!L310)","v":""},{"$f":"IF(ISERROR(Dados!M310),\"-\",Dados!M310)","v":""},{"$f":"IF(ISERROR(Dados!N310),\"-\",Dados!N310)","v":""},{"$f":"IF(ISERROR(Dados!O310),\"-\",Dados!O310)","v":""},{"$f":"IF(ISERROR(Dados!P310),\"-\",Dados!P310)","v":""},{"$f":"IF(ISERROR(Dados!Q310),\"-\",Dados!Q310)","v":""},{"$f":"IF(ISERROR(Dados!R310),\"-\",Dados!R310)","v":""},{"$f":"IF(ISERROR(Dados!S310),\"-\",Dados!S310)","v":""},{"$f":"IF(ISERROR(Dados!T310),\"-\",Dados!T310)","v":""},{"$f":"IF(ISERROR(Dados!U310),\"-\",Dados!U310)","v":""},{"$f":"IF(ISERROR(Dados!V310),\"-\",Dados!V310)","v":""},{"$f":"IF(ISERROR(Dados!W310),\"-\",Dados!W310)","v":""},{"$f":"IF(ISERROR(Dados!X310),\"-\",Dados!X310)","v":""},{"$f":"IF(ISERROR(Dados!Y310),\"-\",Dados!Y310)","v":""},{"$f":"IF(ISERROR(Dados!Z310),\"-\",Dados!Z310)","v":""},{"$f":"IF(ISERROR(Dados!AA310),\"-\",Dados!AA310)","v":""},{"$f":"IF(ISERROR(Dados!AB310),\"-\",Dados!AB310)","v":""},{"$f":"IF(ISERROR(Dados!AC310),\"-\",Dados!AC310)","v":""},{"$f":"IF(ISERROR(Dados!AD310),\"-\",Dados!AD310)","v":""},{"$f":"IF(ISERROR(Dados!AE310),\"-\",Dados!AE310)","v":""},{"$f":"IF(ISERROR(Dados!AF310),\"-\",Dados!AF310)","v":""},{"$f":"IF(ISERROR(Dados!AG310),\"-\",Dados!AG310)","v":""}]
[{"$f":"IF(ISERROR(Dados!A311),\"-\",Dados!A311)","v":""},{"$f":"IF(ISERROR(Dados!B311),\"-\",Dados!B311)","v":""},{"$f":"IF(ISERROR(Dados!C311),\"-\",Dados!C311)","v":""},{"$f":"IF(ISERROR(Dados!D311),\"-\",Dados!D311)","v":""},{"$f":"IF(ISERROR(Dados!E311),\"-\",Dados!E311)","v":""},{"$f":"IF(ISERROR(Dados!F311),\"-\",Dados!F311)","v":""},{"$f":"IF(ISERROR(Dados!G311),\"-\",Dados!G311)","v":""},{"$f":"IF(ISERROR(Dados!H311),\"-\",Dados!H311)","v":""},{"$f":"IF(ISERROR(Dados!I311),\"-\",Dados!I311)","v":""},{"$f":"IF(ISERROR(Dados!J311),\"-\",Dados!J311)","v":""},{"$f":"IF(ISERROR(Dados!K311),\"-\",Dados!K311)","v":""},{"$f":"IF(ISERROR(Dados!L311),\"-\",Dados!L311)","v":""},{"$f":"IF(ISERROR(Dados!M311),\"-\",Dados!M311)","v":""},{"$f":"IF(ISERROR(Dados!N311),\"-\",Dados!N311)","v":""},{"$f":"IF(ISERROR(Dados!O311),\"-\",Dados!O311)","v":""},{"$f":"IF(ISERROR(Dados!P311),\"-\",Dados!P311)","v":""},{"$f":"IF(ISERROR(Dados!Q311),\"-\",Dados!Q311)","v":""},{"$f":"IF(ISERROR(Dados!R311),\"-\",Dados!R311)","v":""},{"$f":"IF(ISERROR(Dados!S311),\"-\",Dados!S311)","v":""},{"$f":"IF(ISERROR(Dados!T311),\"-\",Dados!T311)","v":""},{"$f":"IF(ISERROR(Dados!U311),\"-\",Dados!U311)","v":""},{"$f":"IF(ISERROR(Dados!V311),\"-\",Dados!V311)","v":""},{"$f":"IF(ISERROR(Dados!W311),\"-\",Dados!W311)","v":""},{"$f":"IF(ISERROR(Dados!X311),\"-\",Dados!X311)","v":""},{"$f":"IF(ISERROR(Dados!Y311),\"-\",Dados!Y311)","v":""},{"$f":"IF(ISERROR(Dados!Z311),\"-\",Dados!Z311)","v":""},{"$f":"IF(ISERROR(Dados!AA311),\"-\",Dados!AA311)","v":""},{"$f":"IF(ISERROR(Dados!AB311),\"-\",Dados!AB311)","v":""},{"$f":"IF(ISERROR(Dados!AC311),\"-\",Dados!AC311)","v":""},{"$f":"IF(ISERROR(Dados!AD311),\"-\",Dados!AD311)","v":""},{"$f":"IF(ISERROR(Dados!AE311),\"-\",Dados!AE311)","v":""},{"$f":"IF(ISERROR(Dados!AF311),\"-\",Dados!AF311)","v":""},{"$f":"IF(ISERROR(Dados!AG311),\"-\",Dados!AG311)","v":""}]
[{"$f":"IF(ISERROR(Dados!A312),\"-\",Dados!A312)","v":""},{"$f":"IF(ISERROR(Dados!B312),\"-\",Dados!B312)","v":""},{"$f":"IF(ISERROR(Dados!C312),\"-\",Dados!C312)","v":""},{"$f":"IF(ISERROR(Dados!D312),\"-\",Dados!D312)","v":""},{"$f":"IF(ISERROR(Dados!E312),\"-\",Dados!E312)","v":""},{"$f":"IF(ISERROR(Dados!F312),\"-\",Dados!F312)","v":""},{"$f":"IF(ISERROR(Dados!G312),\"-\",Dados!G312)","v":""},{"$f":"IF(ISERROR(Dados!H312),\"-\",Dados!H312)","v":""},{"$f":"IF(ISERROR(Dados!I312),\"-\",Dados!I312)","v":""},{"$f":"IF(ISERROR(Dados!J312),\"-\",Dados!J312)","v":""},{"$f":"IF(ISERROR(Dados!K312),\"-\",Dados!K312)","v":""},{"$f":"IF(ISERROR(Dados!L312),\"-\",Dados!L312)","v":""},{"$f":"IF(ISERROR(Dados!M312),\"-\",Dados!M312)","v":""},{"$f":"IF(ISERROR(Dados!N312),\"-\",Dados!N312)","v":""},{"$f":"IF(ISERROR(Dados!O312),\"-\",Dados!O312)","v":""},{"$f":"IF(ISERROR(Dados!P312),\"-\",Dados!P312)","v":""},{"$f":"IF(ISERROR(Dados!Q312),\"-\",Dados!Q312)","v":""},{"$f":"IF(ISERROR(Dados!R312),\"-\",Dados!R312)","v":""},{"$f":"IF(ISERROR(Dados!S312),\"-\",Dados!S312)","v":""},{"$f":"IF(ISERROR(Dados!T312),\"-\",Dados!T312)","v":""},{"$f":"IF(ISERROR(Dados!U312),\"-\",Dados!U312)","v":""},{"$f":"IF(ISERROR(Dados!V312),\"-\",Dados!V312)","v":""},{"$f":"IF(ISERROR(Dados!W312),\"-\",Dados!W312)","v":""},{"$f":"IF(ISERROR(Dados!X312),\"-\",Dados!X312)","v":""},{"$f":"IF(ISERROR(Dados!Y312),\"-\",Dados!Y312)","v":""},{"$f":"IF(ISERROR(Dados!Z312),\"-\",Dados!Z312)","v":""},{"$f":"IF(ISERROR(Dados!AA312),\"-\",Dados!AA312)","v":""},{"$f":"IF(ISERROR(Dados!AB312),\"-\",Dados!AB312)","v":""},{"$f":"IF(ISERROR(Dados!AC312),\"-\",Dados!AC312)","v":""},{"$f":"IF(ISERROR(Dados!AD312),\"-\",Dados!AD312)","v":""},{"$f":"IF(ISERROR(Dados!AE312),\"-\",Dados!AE312)","v":""},{"$f":"IF(ISERROR(Dados!AF312),\"-\",Dados!AF312)","v":""},{"$f":"IF(ISERROR(Dados!AG312),\"-\",Dados!AG312)","v":""}]
[{"$f":"IF(ISERROR(Dados!A313),\"-\",Dados!A313)","v":""},{"$f":"IF(ISERROR(Dados!B313),\"-\",Dados!B313)","v":""},{"$f":"IF(ISERROR(Dados!C313),\"-\",Dados!C313)","v":""},{"$f":"IF(ISERROR(Dados!D313),\"-\",Dados!D313)","v":""},{"$f":"IF(ISERROR(Dados!E313),\"-\",Dados!E313)","v":""},{"$f":"IF(ISERROR(Dados!F313),\"-\",Dados!F313)","v":""},{"$f":"IF(ISERROR(Dados!G313),\"-\",Dados!G313)","v":""},{"$f":"IF(ISERROR(Dados!H313),\"-\",Dados!H313)","v":""},{"$f":"IF(ISERROR(Dados!I313),\"-\",Dados!I313)","v":""},{"$f":"IF(ISERROR(Dados!J313),\"-\",Dados!J313)","v":""},{"$f":"IF(ISERROR(Dados!K313),\"-\",Dados!K313)","v":""},{"$f":"IF(ISERROR(Dados!L313),\"-\",Dados!L313)","v":""},{"$f":"IF(ISERROR(Dados!M313),\"-\",Dados!M313)","v":""},{"$f":"IF(ISERROR(Dados!N313),\"-\",Dados!N313)","v":""},{"$f":"IF(ISERROR(Dados!O313),\"-\",Dados!O313)","v":""},{"$f":"IF(ISERROR(Dados!P313),\"-\",Dados!P313)","v":""},{"$f":"IF(ISERROR(Dados!Q313),\"-\",Dados!Q313)","v":""},{"$f":"IF(ISERROR(Dados!R313),\"-\",Dados!R313)","v":""},{"$f":"IF(ISERROR(Dados!S313),\"-\",Dados!S313)","v":""},{"$f":"IF(ISERROR(Dados!T313),\"-\",Dados!T313)","v":""},{"$f":"IF(ISERROR(Dados!U313),\"-\",Dados!U313)","v":""},{"$f":"IF(ISERROR(Dados!V313),\"-\",Dados!V313)","v":""},{"$f":"IF(ISERROR(Dados!W313),\"-\",Dados!W313)","v":""},{"$f":"IF(ISERROR(Dados!X313),\"-\",Dados!X313)","v":""},{"$f":"IF(ISERROR(Dados!Y313),\"-\",Dados!Y313)","v":""},{"$f":"IF(ISERROR(Dados!Z313),\"-\",Dados!Z313)","v":""},{"$f":"IF(ISERROR(Dados!AA313),\"-\",Dados!AA313)","v":""},{"$f":"IF(ISERROR(Dados!AB313),\"-\",Dados!AB313)","v":""},{"$f":"IF(ISERROR(Dados!AC313),\"-\",Dados!AC313)","v":""},{"$f":"IF(ISERROR(Dados!AD313),\"-\",Dados!AD313)","v":""},{"$f":"IF(ISERROR(Dados!AE313),\"-\",Dados!AE313)","v":""},{"$f":"IF(ISERROR(Dados!AF313),\"-\",Dados!AF313)","v":""},{"$f":"IF(ISERROR(Dados!AG313),\"-\",Dados!AG313)","v":""}]
[{"$f":"IF(ISERROR(Dados!A314),\"-\",Dados!A314)","v":""},{"$f":"IF(ISERROR(Dados!B314),\"-\",Dados!B314)","v":""},{"$f":"IF(ISERROR(Dados!C314),\"-\",Dados!C314)","v":""},{"$f":"IF(ISERROR(Dados!D314),\"-\",Dados!D314)","v":""},{"$f":"IF(ISERROR(Dados!E314),\"-\",Dados!E314)","v":""},{"$f":"IF(ISERROR(Dados!F314),\"-\",Dados!F314)","v":""},{"$f":"IF(ISERROR(Dados!G314),\"-\",Dados!G314)","v":""},{"$f":"IF(ISERROR(Dados!H314),\"-\",Dados!H314)","v":""},{"$f":"IF(ISERROR(Dados!I314),\"-\",Dados!I314)","v":""},{"$f":"IF(ISERROR(Dados!J314),\"-\",Dados!J314)","v":""},{"$f":"IF(ISERROR(Dados!K314),\"-\",Dados!K314)","v":""},{"$f":"IF(ISERROR(Dados!L314),\"-\",Dados!L314)","v":""},{"$f":"IF(ISERROR(Dados!M314),\"-\",Dados!M314)","v":""},{"$f":"IF(ISERROR(Dados!N314),\"-\",Dados!N314)","v":""},{"$f":"IF(ISERROR(Dados!O314),\"-\",Dados!O314)","v":""},{"$f":"IF(ISERROR(Dados!P314),\"-\",Dados!P314)","v":""},{"$f":"IF(ISERROR(Dados!Q314),\"-\",Dados!Q314)","v":""},{"$f":"IF(ISERROR(Dados!R314),\"-\",Dados!R314)","v":""},{"$f":"IF(ISERROR(Dados!S314),\"-\",Dados!S314)","v":""},{"$f":"IF(ISERROR(Dados!T314),\"-\",Dados!T314)","v":""},{"$f":"IF(ISERROR(Dados!U314),\"-\",Dados!U314)","v":""},{"$f":"IF(ISERROR(Dados!V314),\"-\",Dados!V314)","v":""},{"$f":"IF(ISERROR(Dados!W314),\"-\",Dados!W314)","v":""},{"$f":"IF(ISERROR(Dados!X314),\"-\",Dados!X314)","v":""},{"$f":"IF(ISERROR(Dados!Y314),\"-\",Dados!Y314)","v":""},{"$f":"IF(ISERROR(Dados!Z314),\"-\",Dados!Z314)","v":""},{"$f":"IF(ISERROR(Dados!AA314),\"-\",Dados!AA314)","v":""},{"$f":"IF(ISERROR(Dados!AB314),\"-\",Dados!AB314)","v":""},{"$f":"IF(ISERROR(Dados!AC314),\"-\",Dados!AC314)","v":""},{"$f":"IF(ISERROR(Dados!AD314),\"-\",Dados!AD314)","v":""},{"$f":"IF(ISERROR(Dados!AE314),\"-\",Dados!AE314)","v":""},{"$f":"IF(ISERROR(Dados!AF314),\"-\",Dados!AF314)","v":""},{"$f":"IF(ISERROR(Dados!AG314),\"-\",Dados!AG314)","v":""}]
[{"$f":"IF(ISERROR(Dados!A315),\"-\",Dados!A315)","v":""},{"$f":"IF(ISERROR(Dados!B315),\"-\",Dados!B315)","v":""},{"$f":"IF(ISERROR(Dados!C315),\"-\",Dados!C315)","v":""},{"$f":"IF(ISERROR(Dados!D315),\"-\",Dados!D315)","v":""},{"$f":"IF(ISERROR(Dados!E315),\"-\",Dados!E315)","v":""},{"$f":"IF(ISERROR(Dados!F315),\"-\",Dados!F315)","v":""},{"$f":"IF(ISERROR(Dados!G315),\"-\",Dados!G315)","v":""},{"$f":"IF(ISERROR(Dados!H315),\"-\",Dados!H315)","v":""},{"$f":"IF(ISERROR(Dados!I315),\"-\",Dados!I315)","v":""},{"$f":"IF(ISERROR(Dados!J315),\"-\",Dados!J315)","v":""},{"$f":"IF(ISERROR(Dados!K315),\"-\",Dados!K315)","v":""},{"$f":"IF(ISERROR(Dados!L315),\"-\",Dados!L315)","v":""},{"$f":"IF(ISERROR(Dados!M315),\"-\",Dados!M315)","v":""},{"$f":"IF(ISERROR(Dados!N315),\"-\",Dados!N315)","v":""},{"$f":"IF(ISERROR(Dados!O315),\"-\",Dados!O315)","v":""},{"$f":"IF(ISERROR(Dados!P315),\"-\",Dados!P315)","v":""},{"$f":"IF(ISERROR(Dados!Q315),\"-\",Dados!Q315)","v":""},{"$f":"IF(ISERROR(Dados!R315),\"-\",Dados!R315)","v":""},{"$f":"IF(ISERROR(Dados!S315),\"-\",Dados!S315)","v":""},{"$f":"IF(ISERROR(Dados!T315),\"-\",Dados!T315)","v":""},{"$f":"IF(ISERROR(Dados!U315),\"-\",Dados!U315)","v":""},{"$f":"IF(ISERROR(Dados!V315),\"-\",Dados!V315)","v":""},{"$f":"IF(ISERROR(Dados!W315),\"-\",Dados!W315)","v":""},{"$f":"IF(ISERROR(Dados!X315),\"-\",Dados!X315)","v":""},{"$f":"IF(ISERROR(Dados!Y315),\"-\",Dados!Y315)","v":""},{"$f":"IF(ISERROR(Dados!Z315),\"-\",Dados!Z315)","v":""},{"$f":"IF(ISERROR(Dados!AA315),\"-\",Dados!AA315)","v":""},{"$f":"IF(ISERROR(Dados!AB315),\"-\",Dados!AB315)","v":""},{"$f":"IF(ISERROR(Dados!AC315),\"-\",Dados!AC315)","v":""},{"$f":"IF(ISERROR(Dados!AD315),\"-\",Dados!AD315)","v":""},{"$f":"IF(ISERROR(Dados!AE315),\"-\",Dados!AE315)","v":""},{"$f":"IF(ISERROR(Dados!AF315),\"-\",Dados!AF315)","v":""},{"$f":"IF(ISERROR(Dados!AG315),\"-\",Dados!AG315)","v":""}]
[{"$f":"IF(ISERROR(Dados!A316),\"-\",Dados!A316)","v":""},{"$f":"IF(ISERROR(Dados!B316),\"-\",Dados!B316)","v":""},{"$f":"IF(ISERROR(Dados!C316),\"-\",Dados!C316)","v":""},{"$f":"IF(ISERROR(Dados!D316),\"-\",Dados!D316)","v":""},{"$f":"IF(ISERROR(Dados!E316),\"-\",Dados!E316)","v":""},{"$f":"IF(ISERROR(Dados!F316),\"-\",Dados!F316)","v":""},{"$f":"IF(ISERROR(Dados!G316),\"-\",Dados!G316)","v":""},{"$f":"IF(ISERROR(Dados!H316),\"-\",Dados!H316)","v":""},{"$f":"IF(ISERROR(Dados!I316),\"-\",Dados!I316)","v":""},{"$f":"IF(ISERROR(Dados!J316),\"-\",Dados!J316)","v":""},{"$f":"IF(ISERROR(Dados!K316),\"-\",Dados!K316)","v":""},{"$f":"IF(ISERROR(Dados!L316),\"-\",Dados!L316)","v":""},{"$f":"IF(ISERROR(Dados!M316),\"-\",Dados!M316)","v":""},{"$f":"IF(ISERROR(Dados!N316),\"-\",Dados!N316)","v":""},{"$f":"IF(ISERROR(Dados!O316),\"-\",Dados!O316)","v":""},{"$f":"IF(ISERROR(Dados!P316),\"-\",Dados!P316)","v":""},{"$f":"IF(ISERROR(Dados!Q316),\"-\",Dados!Q316)","v":""},{"$f":"IF(ISERROR(Dados!R316),\"-\",Dados!R316)","v":""},{"$f":"IF(ISERROR(Dados!S316),\"-\",Dados!S316)","v":""},{"$f":"IF(ISERROR(Dados!T316),\"-\",Dados!T316)","v":""},{"$f":"IF(ISERROR(Dados!U316),\"-\",Dados!U316)","v":""},{"$f":"IF(ISERROR(Dados!V316),\"-\",Dados!V316)","v":""},{"$f":"IF(ISERROR(Dados!W316),\"-\",Dados!W316)","v":""},{"$f":"IF(ISERROR(Dados!X316),\"-\",Dados!X316)","v":""},{"$f":"IF(ISERROR(Dados!Y316),\"-\",Dados!Y316)","v":""},{"$f":"IF(ISERROR(Dados!Z316),\"-\",Dados!Z316)","v":""},{"$f":"IF(ISERROR(Dados!AA316),\"-\",Dados!AA316)","v":""},{"$f":"IF(ISERROR(Dados!AB316),\"-\",Dados!AB316)","v":""},{"$f":"IF(ISERROR(Dados!AC316),\"-\",Dados!AC316)","v":""},{"$f":"IF(ISERROR(Dados!AD316),\"-\",Dados!AD316)","v":""},{"$f":"IF(ISERROR(Dados!AE316),\"-\",Dados!AE316)","v":""},{"$f":"IF(ISERROR(Dados!AF316),\"-\",Dados!AF316)","v":""},{"$f":"IF(ISERROR(Dados!AG316),\"-\",Dados!AG316)","v":""}]
[{"$f":"IF(ISERROR(Dados!A317),\"-\",Dados!A317)","v":""},{"$f":"IF(ISERROR(Dados!B317),\"-\",Dados!B317)","v":""},{"$f":"IF(ISERROR(Dados!C317),\"-\",Dados!C317)","v":""},{"$f":"IF(ISERROR(Dados!D317),\"-\",Dados!D317)","v":""},{"$f":"IF(ISERROR(Dados!E317),\"-\",Dados!E317)","v":""},{"$f":"IF(ISERROR(Dados!F317),\"-\",Dados!F317)","v":""},{"$f":"IF(ISERROR(Dados!G317),\"-\",Dados!G317)","v":""},{"$f":"IF(ISERROR(Dados!H317),\"-\",Dados!H317)","v":""},{"$f":"IF(ISERROR(Dados!I317),\"-\",Dados!I317)","v":""},{"$f":"IF(ISERROR(Dados!J317),\"-\",Dados!J317)","v":""},{"$f":"IF(ISERROR(Dados!K317),\"-\",Dados!K317)","v":""},{"$f":"IF(ISERROR(Dados!L317),\"-\",Dados!L317)","v":""},{"$f":"IF(ISERROR(Dados!M317),\"-\",Dados!M317)","v":""},{"$f":"IF(ISERROR(Dados!N317),\"-\",Dados!N317)","v":""},{"$f":"IF(ISERROR(Dados!O317),\"-\",Dados!O317)","v":""},{"$f":"IF(ISERROR(Dados!P317),\"-\",Dados!P317)","v":""},{"$f":"IF(ISERROR(Dados!Q317),\"-\",Dados!Q317)","v":""},{"$f":"IF(ISERROR(Dados!R317),\"-\",Dados!R317)","v":""},{"$f":"IF(ISERROR(Dados!S317),\"-\",Dados!S317)","v":""},{"$f":"IF(ISERROR(Dados!T317),\"-\",Dados!T317)","v":""},{"$f":"IF(ISERROR(Dados!U317),\"-\",Dados!U317)","v":""},{"$f":"IF(ISERROR(Dados!V317),\"-\",Dados!V317)","v":""},{"$f":"IF(ISERROR(Dados!W317),\"-\",Dados!W317)","v":""},{"$f":"IF(ISERROR(Dados!X317),\"-\",Dados!X317)","v":""},{"$f":"IF(ISERROR(Dados!Y317),\"-\",Dados!Y317)","v":""},{"$f":"IF(ISERROR(Dados!Z317),\"-\",Dados!Z317)","v":""},{"$f":"IF(ISERROR(Dados!AA317),\"-\",Dados!AA317)","v":""},{"$f":"IF(ISERROR(Dados!AB317),\"-\",Dados!AB317)","v":""},{"$f":"IF(ISERROR(Dados!AC317),\"-\",Dados!AC317)","v":""},{"$f":"IF(ISERROR(Dados!AD317),\"-\",Dados!AD317)","v":""},{"$f":"IF(ISERROR(Dados!AE317),\"-\",Dados!AE317)","v":""},{"$f":"IF(ISERROR(Dados!AF317),\"-\",Dados!AF317)","v":""},{"$f":"IF(ISERROR(Dados!AG317),\"-\",Dados!AG317)","v":""}]
[{"$f":"IF(ISERROR(Dados!A318),\"-\",Dados!A318)","v":""},{"$f":"IF(ISERROR(Dados!B318),\"-\",Dados!B318)","v":""},{"$f":"IF(ISERROR(Dados!C318),\"-\",Dados!C318)","v":""},{"$f":"IF(ISERROR(Dados!D318),\"-\",Dados!D318)","v":""},{"$f":"IF(ISERROR(Dados!E318),\"-\",Dados!E318)","v":""},{"$f":"IF(ISERROR(Dados!F318),\"-\",Dados!F318)","v":""},{"$f":"IF(ISERROR(Dados!G318),\"-\",Dados!G318)","v":""},{"$f":"IF(ISERROR(Dados!H318),\"-\",Dados!H318)","v":""},{"$f":"IF(ISERROR(Dados!I318),\"-\",Dados!I318)","v":""},{"$f":"IF(ISERROR(Dados!J318),\"-\",Dados!J318)","v":""},{"$f":"IF(ISERROR(Dados!K318),\"-\",Dados!K318)","v":""},{"$f":"IF(ISERROR(Dados!L318),\"-\",Dados!L318)","v":""},{"$f":"IF(ISERROR(Dados!M318),\"-\",Dados!M318)","v":""},{"$f":"IF(ISERROR(Dados!N318),\"-\",Dados!N318)","v":""},{"$f":"IF(ISERROR(Dados!O318),\"-\",Dados!O318)","v":""},{"$f":"IF(ISERROR(Dados!P318),\"-\",Dados!P318)","v":""},{"$f":"IF(ISERROR(Dados!Q318),\"-\",Dados!Q318)","v":""},{"$f":"IF(ISERROR(Dados!R318),\"-\",Dados!R318)","v":""},{"$f":"IF(ISERROR(Dados!S318),\"-\",Dados!S318)","v":""},{"$f":"IF(ISERROR(Dados!T318),\"-\",Dados!T318)","v":""},{"$f":"IF(ISERROR(Dados!U318),\"-\",Dados!U318)","v":""},{"$f":"IF(ISERROR(Dados!V318),\"-\",Dados!V318)","v":""},{"$f":"IF(ISERROR(Dados!W318),\"-\",Dados!W318)","v":""},{"$f":"IF(ISERROR(Dados!X318),\"-\",Dados!X318)","v":""},{"$f":"IF(ISERROR(Dados!Y318),\"-\",Dados!Y318)","v":""},{"$f":"IF(ISERROR(Dados!Z318),\"-\",Dados!Z318)","v":""},{"$f":"IF(ISERROR(Dados!AA318),\"-\",Dados!AA318)","v":""},{"$f":"IF(ISERROR(Dados!AB318),\"-\",Dados!AB318)","v":""},{"$f":"IF(ISERROR(Dados!AC318),\"-\",Dados!AC318)","v":""},{"$f":"IF(ISERROR(Dados!AD318),\"-\",Dados!AD318)","v":""},{"$f":"IF(ISERROR(Dados!AE318),\"-\",Dados!AE318)","v":""},{"$f":"IF(ISERROR(Dados!AF318),\"-\",Dados!AF318)","v":""},{"$f":"IF(ISERROR(Dados!AG318),\"-\",Dados!AG318)","v":""}]
[{"$f":"IF(ISERROR(Dados!A319),\"-\",Dados!A319)","v":""},{"$f":"IF(ISERROR(Dados!B319),\"-\",Dados!B319)","v":""},{"$f":"IF(ISERROR(Dados!C319),\"-\",Dados!C319)","v":""},{"$f":"IF(ISERROR(Dados!D319),\"-\",Dados!D319)","v":""},{"$f":"IF(ISERROR(Dados!E319),\"-\",Dados!E319)","v":""},{"$f":"IF(ISERROR(Dados!F319),\"-\",Dados!F319)","v":""},{"$f":"IF(ISERROR(Dados!G319),\"-\",Dados!G319)","v":""},{"$f":"IF(ISERROR(Dados!H319),\"-\",Dados!H319)","v":""},{"$f":"IF(ISERROR(Dados!I319),\"-\",Dados!I319)","v":""},{"$f":"IF(ISERROR(Dados!J319),\"-\",Dados!J319)","v":""},{"$f":"IF(ISERROR(Dados!K319),\"-\",Dados!K319)","v":""},{"$f":"IF(ISERROR(Dados!L319),\"-\",Dados!L319)","v":""},{"$f":"IF(ISERROR(Dados!M319),\"-\",Dados!M319)","v":""},{"$f":"IF(ISERROR(Dados!N319),\"-\",Dados!N319)","v":""},{"$f":"IF(ISERROR(Dados!O319),\"-\",Dados!O319)","v":""},{"$f":"IF(ISERROR(Dados!P319),\"-\",Dados!P319)","v":""},{"$f":"IF(ISERROR(Dados!Q319),\"-\",Dados!Q319)","v":""},{"$f":"IF(ISERROR(Dados!R319),\"-\",Dados!R319)","v":""},{"$f":"IF(ISERROR(Dados!S319),\"-\",Dados!S319)","v":""},{"$f":"IF(ISERROR(Dados!T319),\"-\",Dados!T319)","v":""},{"$f":"IF(ISERROR(Dados!U319),\"-\",Dados!U319)","v":""},{"$f":"IF(ISERROR(Dados!V319),\"-\",Dados!V319)","v":""},{"$f":"IF(ISERROR(Dados!W319),\"-\",Dados!W319)","v":""},{"$f":"IF(ISERROR(Dados!X319),\"-\",Dados!X319)","v":""},{"$f":"IF(ISERROR(Dados!Y319),\"-\",Dados!Y319)","v":""},{"$f":"IF(ISERROR(Dados!Z319),\"-\",Dados!Z319)","v":""},{"$f":"IF(ISERROR(Dados!AA319),\"-\",Dados!AA319)","v":""},{"$f":"IF(ISERROR(Dados!AB319),\"-\",Dados!AB319)","v":""},{"$f":"IF(ISERROR(Dados!AC319),\"-\",Dados!AC319)","v":""},{"$f":"IF(ISERROR(Dados!AD319),\"-\",Dados!AD319)","v":""},{"$f":"IF(ISERROR(Dados!AE319),\"-\",Dados!AE319)","v":""},{"$f":"IF(ISERROR(Dados!AF319),\"-\",Dados!AF319)","v":""},{"$f":"IF(ISERROR(Dados!AG319),\"-\",Dados!AG319)","v":""}]
[{"$f":"IF(ISERROR(Dados!A320),\"-\",Dados!A320)","v":""},{"$f":"IF(ISERROR(Dados!B320),\"-\",Dados!B320)","v":""},{"$f":"IF(ISERROR(Dados!C320),\"-\",Dados!C320)","v":""},{"$f":"IF(ISERROR(Dados!D320),\"-\",Dados!D320)","v":""},{"$f":"IF(ISERROR(Dados!E320),\"-\",Dados!E320)","v":""},{"$f":"IF(ISERROR(Dados!F320),\"-\",Dados!F320)","v":""},{"$f":"IF(ISERROR(Dados!G320),\"-\",Dados!G320)","v":""},{"$f":"IF(ISERROR(Dados!H320),\"-\",Dados!H320)","v":""},{"$f":"IF(ISERROR(Dados!I320),\"-\",Dados!I320)","v":""},{"$f":"IF(ISERROR(Dados!J320),\"-\",Dados!J320)","v":""},{"$f":"IF(ISERROR(Dados!K320),\"-\",Dados!K320)","v":""},{"$f":"IF(ISERROR(Dados!L320),\"-\",Dados!L320)","v":""},{"$f":"IF(ISERROR(Dados!M320),\"-\",Dados!M320)","v":""},{"$f":"IF(ISERROR(Dados!N320),\"-\",Dados!N320)","v":""},{"$f":"IF(ISERROR(Dados!O320),\"-\",Dados!O320)","v":""},{"$f":"IF(ISERROR(Dados!P320),\"-\",Dados!P320)","v":""},{"$f":"IF(ISERROR(Dados!Q320),\"-\",Dados!Q320)","v":""},{"$f":"IF(ISERROR(Dados!R320),\"-\",Dados!R320)","v":""},{"$f":"IF(ISERROR(Dados!S320),\"-\",Dados!S320)","v":""},{"$f":"IF(ISERROR(Dados!T320),\"-\",Dados!T320)","v":""},{"$f":"IF(ISERROR(Dados!U320),\"-\",Dados!U320)","v":""},{"$f":"IF(ISERROR(Dados!V320),\"-\",Dados!V320)","v":""},{"$f":"IF(ISERROR(Dados!W320),\"-\",Dados!W320)","v":""},{"$f":"IF(ISERROR(Dados!X320),\"-\",Dados!X320)","v":""},{"$f":"IF(ISERROR(Dados!Y320),\"-\",Dados!Y320)","v":""},{"$f":"IF(ISERROR(Dados!Z320),\"-\",Dados!Z320)","v":""},{"$f":"IF(ISERROR(Dados!AA320),\"-\",Dados!AA320)","v":""},{"$f":"IF(ISERROR(Dados!AB320),\"-\",Dados!AB320)","v":""},{"$f":"IF(ISERROR(Dados!AC320),\"-\",Dados!AC320)","v":""},{"$f":"IF(ISERROR(Dados!AD320),\"-\",Dados!AD320)","v":""},{"$f":"IF(ISERROR(Dados!AE320),\"-\",Dados!AE320)","v":""},{"$f":"IF(ISERROR(Dados!AF320),\"-\",Dados!AF320)","v":""},{"$f":"IF(ISERROR(Dados!AG320),\"-\",Dados!AG320)","v":""}]
[{"$f":"IF(ISERROR(Dados!A321),\"-\",Dados!A321)","v":""},{"$f":"IF(ISERROR(Dados!B321),\"-\",Dados!B321)","v":""},{"$f":"IF(ISERROR(Dados!C321),\"-\",Dados!C321)","v":""},{"$f":"IF(ISERROR(Dados!D321),\"-\",Dados!D321)","v":""},{"$f":"IF(ISERROR(Dados!E321),\"-\",Dados!E321)","v":""},{"$f":"IF(ISERROR(Dados!F321),\"-\",Dados!F321)","v":""},{"$f":"IF(ISERROR(Dados!G321),\"-\",Dados!G321)","v":""},{"$f":"IF(ISERROR(Dados!H321),\"-\",Dados!H321)","v":""},{"$f":"IF(ISERROR(Dados!I321),\"-\",Dados!I321)","v":""},{"$f":"IF(ISERROR(Dados!J321),\"-\",Dados!J321)","v":""},{"$f":"IF(ISERROR(Dados!K321),\"-\",Dados!K321)","v":""},{"$f":"IF(ISERROR(Dados!L321),\"-\",Dados!L321)","v":""},{"$f":"IF(ISERROR(Dados!M321),\"-\",Dados!M321)","v":""},{"$f":"IF(ISERROR(Dados!N321),\"-\",Dados!N321)","v":""},{"$f":"IF(ISERROR(Dados!O321),\"-\",Dados!O321)","v":""},{"$f":"IF(ISERROR(Dados!P321),\"-\",Dados!P321)","v":""},{"$f":"IF(ISERROR(Dados!Q321),\"-\",Dados!Q321)","v":""},{"$f":"IF(ISERROR(Dados!R321),\"-\",Dados!R321)","v":""},{"$f":"IF(ISERROR(Dados!S321),\"-\",Dados!S321)","v":""},{"$f":"IF(ISERROR(Dados!T321),\"-\",Dados!T321)","v":""},{"$f":"IF(ISERROR(Dados!U321),\"-\",Dados!U321)","v":""},{"$f":"IF(ISERROR(Dados!V321),\"-\",Dados!V321)","v":""},{"$f":"IF(ISERROR(Dados!W321),\"-\",Dados!W321)","v":""},{"$f":"IF(ISERROR(Dados!X321),\"-\",Dados!X321)","v":""},{"$f":"IF(ISERROR(Dados!Y321),\"-\",Dados!Y321)","v":""},{"$f":"IF(ISERROR(Dados!Z321),\"-\",Dados!Z321)","v":""},{"$f":"IF(ISERROR(Dados!AA321),\"-\",Dados!AA321)","v":""},{"$f":"IF(ISERROR(Dados!AB321),\"-\",Dados!AB321)","v":""},{"$f":"IF(ISERROR(Dados!AC321),\"-\",Dados!AC321)","v":""},{"$f":"IF(ISERROR(Dados!AD321),\"-\",Dados!AD321)","v":""},{"$f":"IF(ISERROR(Dados!AE321),\"-\",Dados!AE321)","v":""},{"$f":"IF(ISERROR(Dados!AF321),\"-\",Dados!AF321)","v":""},{"$f":"IF(ISERROR(Dados!AG321),\"-\",Dados!AG321)","v":""}]
[{"$f":"IF(ISERROR(Dados!A322),\"-\",Dados!A322)","v":""},{"$f":"IF(ISERROR(Dados!B322),\"-\",Dados!B322)","v":""},{"$f":"IF(ISERROR(Dados!C322),\"-\",Dados!C322)","v":""},{"$f":"IF(ISERROR(Dados!D322),\"-\",Dados!D322)","v":""},{"$f":"IF(ISERROR(Dados!E322),\"-\",Dados!E322)","v":""},{"$f":"IF(ISERROR(Dados!F322),\"-\",Dados!F322)","v":""},{"$f":"IF(ISERROR(Dados!G322),\"-\",Dados!G322)","v":""},{"$f":"IF(ISERROR(Dados!H322),\"-\",Dados!H322)","v":""},{"$f":"IF(ISERROR(Dados!I322),\"-\",Dados!I322)","v":""},{"$f":"IF(ISERROR(Dados!J322),\"-\",Dados!J322)","v":""},{"$f":"IF(ISERROR(Dados!K322),\"-\",Dados!K322)","v":""},{"$f":"IF(ISERROR(Dados!L322),\"-\",Dados!L322)","v":""},{"$f":"IF(ISERROR(Dados!M322),\"-\",Dados!M322)","v":""},{"$f":"IF(ISERROR(Dados!N322),\"-\",Dados!N322)","v":""},{"$f":"IF(ISERROR(Dados!O322),\"-\",Dados!O322)","v":""},{"$f":"IF(ISERROR(Dados!P322),\"-\",Dados!P322)","v":""},{"$f":"IF(ISERROR(Dados!Q322),\"-\",Dados!Q322)","v":""},{"$f":"IF(ISERROR(Dados!R322),\"-\",Dados!R322)","v":""},{"$f":"IF(ISERROR(Dados!S322),\"-\",Dados!S322)","v":""},{"$f":"IF(ISERROR(Dados!T322),\"-\",Dados!T322)","v":""},{"$f":"IF(ISERROR(Dados!U322),\"-\",Dados!U322)","v":""},{"$f":"IF(ISERROR(Dados!V322),\"-\",Dados!V322)","v":""},{"$f":"IF(ISERROR(Dados!W322),\"-\",Dados!W322)","v":""},{"$f":"IF(ISERROR(Dados!X322),\"-\",Dados!X322)","v":""},{"$f":"IF(ISERROR(Dados!Y322),\"-\",Dados!Y322)","v":""},{"$f":"IF(ISERROR(Dados!Z322),\"-\",Dados!Z322)","v":""},{"$f":"IF(ISERROR(Dados!AA322),\"-\",Dados!AA322)","v":""},{"$f":"IF(ISERROR(Dados!AB322),\"-\",Dados!AB322)","v":""},{"$f":"IF(ISERROR(Dados!AC322),\"-\",Dados!AC322)","v":""},{"$f":"IF(ISERROR(Dados!AD322),\"-\",Dados!AD322)","v":""},{"$f":"IF(ISERROR(Dados!AE322),\"-\",Dados!AE322)","v":""},{"$f":"IF(ISERROR(Dados!AF322),\"-\",Dados!AF322)","v":""},{"$f":"IF(ISERROR(Dados!AG322),\"-\",Dados!AG322)","v":""}]
[{"$f":"IF(ISERROR(Dados!A323),\"-\",Dados!A323)","v":""},{"$f":"IF(ISERROR(Dados!B323),\"-\",Dados!B323)","v":""},{"$f":"IF(ISERROR(Dados!C323),\"-\",Dados!C323)","v":""},{"$f":"IF(ISERROR(Dados!D323),\"-\",Dados!D323)","v":""},{"$f":"IF(ISERROR(Dados!E323),\"-\",Dados!E323)","v":""},{"$f":"IF(ISERROR(Dados!F323),\"-\",Dados!F323)","v":""},{"$f":"IF(ISERROR(Dados!G323),\"-\",Dados!G323)","v":""},{"$f":"IF(ISERROR(Dados!H323),\"-\",Dados!H323)","v":""},{"$f":"IF(ISERROR(Dados!I323),\"-\",Dados!I323)","v":""},{"$f":"IF(ISERROR(Dados!J323),\"-\",Dados!J323)","v":""},{"$f":"IF(ISERROR(Dados!K323),\"-\",Dados!K323)","v":""},{"$f":"IF(ISERROR(Dados!L323),\"-\",Dados!L323)","v":""},{"$f":"IF(ISERROR(Dados!M323),\"-\",Dados!M323)","v":""},{"$f":"IF(ISERROR(Dados!N323),\"-\",Dados!N323)","v":""},{"$f":"IF(ISERROR(Dados!O323),\"-\",Dados!O323)","v":""},{"$f":"IF(ISERROR(Dados!P323),\"-\",Dados!P323)","v":""},{"$f":"IF(ISERROR(Dados!Q323),\"-\",Dados!Q323)","v":""},{"$f":"IF(ISERROR(Dados!R323),\"-\",Dados!R323)","v":""},{"$f":"IF(ISERROR(Dados!S323),\"-\",Dados!S323)","v":""},{"$f":"IF(ISERROR(Dados!T323),\"-\",Dados!T323)","v":""},{"$f":"IF(ISERROR(Dados!U323),\"-\",Dados!U323)","v":""},{"$f":"IF(ISERROR(Dados!V323),\"-\",Dados!V323)","v":""},{"$f":"IF(ISERROR(Dados!W323),\"-\",Dados!W323)","v":""},{"$f":"IF(ISERROR(Dados!X323),\"-\",Dados!X323)","v":""},{"$f":"IF(ISERROR(Dados!Y323),\"-\",Dados!Y323)","v":""},{"$f":"IF(ISERROR(Dados!Z323),\"-\",Dados!Z323)","v":""},{"$f":"IF(ISERROR(Dados!AA323),\"-\",Dados!AA323)","v":""},{"$f":"IF(ISERROR(Dados!AB323),\"-\",Dados!AB323)","v":""},{"$f":"IF(ISERROR(Dados!AC323),\"-\",Dados!AC323)","v":""},{"$f":"IF(ISERROR(Dados!AD323),\"-\",Dados!AD323)","v":""},{"$f":"IF(ISERROR(Dados!AE323),\"-\",Dados!AE323)","v":""},{"$f":"IF(ISERROR(Dados!AF323),\"-\",Dados!AF323)","v":""},{"$f":"IF(ISERROR(Dados!AG323),\"-\",Dados!AG323)","v":""}]
[{"$f":"IF(ISERROR(Dados!A324),\"-\",Dados!A324)","v":""},{"$f":"IF(ISERROR(Dados!B324),\"-\",Dados!B324)","v":""},{"$f":"IF(ISERROR(Dados!C324),\"-\",Dados!C324)","v":""},{"$f":"IF(ISERROR(Dados!D324),\"-\",Dados!D324)","v":""},{"$f":"IF(ISERROR(Dados!E324),\"-\",Dados!E324)","v":""},{"$f":"IF(ISERROR(Dados!F324),\"-\",Dados!F324)","v":""},{"$f":"IF(ISERROR(Dados!G324),\"-\",Dados!G324)","v":""},{"$f":"IF(ISERROR(Dados!H324),\"-\",Dados!H324)","v":""},{"$f":"IF(ISERROR(Dados!I324),\"-\",Dados!I324)","v":""},{"$f":"IF(ISERROR(Dados!J324),\"-\",Dados!J324)","v":""},{"$f":"IF(ISERROR(Dados!K324),\"-\",Dados!K324)","v":""},{"$f":"IF(ISERROR(Dados!L324),\"-\",Dados!L324)","v":""},{"$f":"IF(ISERROR(Dados!M324),\"-\",Dados!M324)","v":""},{"$f":"IF(ISERROR(Dados!N324),\"-\",Dados!N324)","v":""},{"$f":"IF(ISERROR(Dados!O324),\"-\",Dados!O324)","v":""},{"$f":"IF(ISERROR(Dados!P324),\"-\",Dados!P324)","v":""},{"$f":"IF(ISERROR(Dados!Q324),\"-\",Dados!Q324)","v":""},{"$f":"IF(ISERROR(Dados!R324),\"-\",Dados!R324)","v":""},{"$f":"IF(ISERROR(Dados!S324),\"-\",Dados!S324)","v":""},{"$f":"IF(ISERROR(Dados!T324),\"-\",Dados!T324)","v":""},{"$f":"IF(ISERROR(Dados!U324),\"-\",Dados!U324)","v":""},{"$f":"IF(ISERROR(Dados!V324),\"-\",Dados!V324)","v":""},{"$f":"IF(ISERROR(Dados!W324),\"-\",Dados!W324)","v":""},{"$f":"IF(ISERROR(Dados!X324),\"-\",Dados!X324)","v":""},{"$f":"IF(ISERROR(Dados!Y324),\"-\",Dados!Y324)","v":""},{"$f":"IF(ISERROR(Dados!Z324),\"-\",Dados!Z324)","v":""},{"$f":"IF(ISERROR(Dados!AA324),\"-\",Dados!AA324)","v":""},{"$f":"IF(ISERROR(Dados!AB324),\"-\",Dados!AB324)","v":""},{"$f":"IF(ISERROR(Dados!AC324),\"-\",Dados!AC324)","v":""},{"$f":"IF(ISERROR(Dados!AD324),\"-\",Dados!AD324)","v":""},{"$f":"IF(ISERROR(Dados!AE324),\"-\",Dados!AE324)","v":""},{"$f":"IF(ISERROR(Dados!AF324),\"-\",Dados!AF324)","v":""},{"$f":"IF(ISERROR(Dados!AG324),\"-\",Dados!AG324)","v":""}]
[{"$f":"IF(ISERROR(Dados!A325),\"-\",Dados!A325)","v":""},{"$f":"IF(ISERROR(Dados!B325),\"-\",Dados!B325)","v":""},{"$f":"IF(ISERROR(Dados!C325),\"-\",Dados!C325)","v":""},{"$f":"IF(ISERROR(Dados!D325),\"-\",Dados!D325)","v":""},{"$f":"IF(ISERROR(Dados!E325),\"-\",Dados!E325)","v":""},{"$f":"IF(ISERROR(Dados!F325),\"-\",Dados!F325)","v":""},{"$f":"IF(ISERROR(Dados!G325),\"-\",Dados!G325)","v":""},{"$f":"IF(ISERROR(Dados!H325),\"-\",Dados!H325)","v":""},{"$f":"IF(ISERROR(Dados!I325),\"-\",Dados!I325)","v":""},{"$f":"IF(ISERROR(Dados!J325),\"-\",Dados!J325)","v":""},{"$f":"IF(ISERROR(Dados!K325),\"-\",Dados!K325)","v":""},{"$f":"IF(ISERROR(Dados!L325),\"-\",Dados!L325)","v":""},{"$f":"IF(ISERROR(Dados!M325),\"-\",Dados!M325)","v":""},{"$f":"IF(ISERROR(Dados!N325),\"-\",Dados!N325)","v":""},{"$f":"IF(ISERROR(Dados!O325),\"-\",Dados!O325)","v":""},{"$f":"IF(ISERROR(Dados!P325),\"-\",Dados!P325)","v":""},{"$f":"IF(ISERROR(Dados!Q325),\"-\",Dados!Q325)","v":""},{"$f":"IF(ISERROR(Dados!R325),\"-\",Dados!R325)","v":""},{"$f":"IF(ISERROR(Dados!S325),\"-\",Dados!S325)","v":""},{"$f":"IF(ISERROR(Dados!T325),\"-\",Dados!T325)","v":""},{"$f":"IF(ISERROR(Dados!U325),\"-\",Dados!U325)","v":""},{"$f":"IF(ISERROR(Dados!V325),\"-\",Dados!V325)","v":""},{"$f":"IF(ISERROR(Dados!W325),\"-\",Dados!W325)","v":""},{"$f":"IF(ISERROR(Dados!X325),\"-\",Dados!X325)","v":""},{"$f":"IF(ISERROR(Dados!Y325),\"-\",Dados!Y325)","v":""},{"$f":"IF(ISERROR(Dados!Z325),\"-\",Dados!Z325)","v":""},{"$f":"IF(ISERROR(Dados!AA325),\"-\",Dados!AA325)","v":""},{"$f":"IF(ISERROR(Dados!AB325),\"-\",Dados!AB325)","v":""},{"$f":"IF(ISERROR(Dados!AC325),\"-\",Dados!AC325)","v":""},{"$f":"IF(ISERROR(Dados!AD325),\"-\",Dados!AD325)","v":""},{"$f":"IF(ISERROR(Dados!AE325),\"-\",Dados!AE325)","v":""},{"$f":"IF(ISERROR(Dados!AF325),\"-\",Dados!AF325)","v":""},{"$f":"IF(ISERROR(Dados!AG325),\"-\",Dados!AG325)","v":""}]
[{"$f":"IF(ISERROR(Dados!A326),\"-\",Dados!A326)","v":""},{"$f":"IF(ISERROR(Dados!B326),\"-\",Dados!B326)","v":""},{"$f":"IF(ISERROR(Dados!C326),\"-\",Dados!C326)","v":""},{"$f":"IF(ISERROR(Dados!D326),\"-\",Dados!D326)","v":""},{"$f":"IF(ISERROR(Dados!E326),\"-\",Dados!E326)","v":""},{"$f":"IF(ISERROR(Dados!F326),\"-\",Dados!F326)","v":""},{"$f":"IF(ISERROR(Dados!G326),\"-\",Dados!G326)","v":""},{"$f":"IF(ISERROR(Dados!H326),\"-\",Dados!H326)","v":""},{"$f":"IF(ISERROR(Dados!I326),\"-\",Dados!I326)","v":""},{"$f":"IF(ISERROR(Dados!J326),\"-\",Dados!J326)","v":""},{"$f":"IF(ISERROR(Dados!K326),\"-\",Dados!K326)","v":""},{"$f":"IF(ISERROR(Dados!L326),\"-\",Dados!L326)","v":""},{"$f":"IF(ISERROR(Dados!M326),\"-\",Dados!M326)","v":""},{"$f":"IF(ISERROR(Dados!N326),\"-\",Dados!N326)","v":""},{"$f":"IF(ISERROR(Dados!O326),\"-\",Dados!O326)","v":""},{"$f":"IF(ISERROR(Dados!P326),\"-\",Dados!P326)","v":""},{"$f":"IF(ISERROR(Dados!Q326),\"-\",Dados!Q326)","v":""},{"$f":"IF(ISERROR(Dados!R326),\"-\",Dados!R326)","v":""},{"$f":"IF(ISERROR(Dados!S326),\"-\",Dados!S326)","v":""},{"$f":"IF(ISERROR(Dados!T326),\"-\",Dados!T326)","v":""},{"$f":"IF(ISERROR(Dados!U326),\"-\",Dados!U326)","v":""},{"$f":"IF(ISERROR(Dados!V326),\"-\",Dados!V326)","v":""},{"$f":"IF(ISERROR(Dados!W326),\"-\",Dados!W326)","v":""},{"$f":"IF(ISERROR(Dados!X326),\"-\",Dados!X326)","v":""},{"$f":"IF(ISERROR(Dados!Y326),\"-\",Dados!Y326)","v":""},{"$f":"IF(ISERROR(Dados!Z326),\"-\",Dados!Z326)","v":""},{"$f":"IF(ISERROR(Dados!AA326),\"-\",Dados!AA326)","v":""},{"$f":"IF(ISERROR(Dados!AB326),\"-\",Dados!AB326)","v":""},{"$f":"IF(ISERROR(Dados!AC326),\"-\",Dados!AC326)","v":""},{"$f":"IF(ISERROR(Dados!AD326),\"-\",Dados!AD326)","v":""},{"$f":"IF(ISERROR(Dados!AE326),\"-\",Dados!AE326)","v":""},{"$f":"IF(ISERROR(Dados!AF326),\"-\",Dados!AF326)","v":""},{"$f":"IF(ISERROR(Dados!AG326),\"-\",Dados!AG326)","v":""}]
[{"$f":"IF(ISERROR(Dados!A327),\"-\",Dados!A327)","v":""},{"$f":"IF(ISERROR(Dados!B327),\"-\",Dados!B327)","v":""},{"$f":"IF(ISERROR(Dados!C327),\"-\",Dados!C327)","v":""},{"$f":"IF(ISERROR(Dados!D327),\"-\",Dados!D327)","v":""},{"$f":"IF(ISERROR(Dados!E327),\"-\",Dados!E327)","v":""},{"$f":"IF(ISERROR(Dados!F327),\"-\",Dados!F327)","v":""},{"$f":"IF(ISERROR(Dados!G327),\"-\",Dados!G327)","v":""},{"$f":"IF(ISERROR(Dados!H327),\"-\",Dados!H327)","v":""},{"$f":"IF(ISERROR(Dados!I327),\"-\",Dados!I327)","v":""},{"$f":"IF(ISERROR(Dados!J327),\"-\",Dados!J327)","v":""},{"$f":"IF(ISERROR(Dados!K327),\"-\",Dados!K327)","v":""},{"$f":"IF(ISERROR(Dados!L327),\"-\",Dados!L327)","v":""},{"$f":"IF(ISERROR(Dados!M327),\"-\",Dados!M327)","v":""},{"$f":"IF(ISERROR(Dados!N327),\"-\",Dados!N327)","v":""},{"$f":"IF(ISERROR(Dados!O327),\"-\",Dados!O327)","v":""},{"$f":"IF(ISERROR(Dados!P327),\"-\",Dados!P327)","v":""},{"$f":"IF(ISERROR(Dados!Q327),\"-\",Dados!Q327)","v":""},{"$f":"IF(ISERROR(Dados!R327),\"-\",Dados!R327)","v":""},{"$f":"IF(ISERROR(Dados!S327),\"-\",Dados!S327)","v":""},{"$f":"IF(ISERROR(Dados!T327),\"-\",Dados!T327)","v":""},{"$f":"IF(ISERROR(Dados!U327),\"-\",Dados!U327)","v":""},{"$f":"IF(ISERROR(Dados!V327),\"-\",Dados!V327)","v":""},{"$f":"IF(ISERROR(Dados!W327),\"-\",Dados!W327)","v":""},{"$f":"IF(ISERROR(Dados!X327),\"-\",Dados!X327)","v":""},{"$f":"IF(ISERROR(Dados!Y327),\"-\",Dados!Y327)","v":""},{"$f":"IF(ISERROR(Dados!Z327),\"-\",Dados!Z327)","v":""},{"$f":"IF(ISERROR(Dados!AA327),\"-\",Dados!AA327)","v":""},{"$f":"IF(ISERROR(Dados!AB327),\"-\",Dados!AB327)","v":""},{"$f":"IF(ISERROR(Dados!AC327),\"-\",Dados!AC327)","v":""},{"$f":"IF(ISERROR(Dados!AD327),\"-\",Dados!AD327)","v":""},{"$f":"IF(ISERROR(Dados!AE327),\"-\",Dados!AE327)","v":""},{"$f":"IF(ISERROR(Dados!AF327),\"-\",Dados!AF327)","v":""},{"$f":"IF(ISERROR(Dados!AG327),\"-\",Dados!AG327)","v":""}]
[{"$f":"IF(ISERROR(Dados!A328),\"-\",Dados!A328)","v":""},{"$f":"IF(ISERROR(Dados!B328),\"-\",Dados!B328)","v":""},{"$f":"IF(ISERROR(Dados!C328),\"-\",Dados!C328)","v":""},{"$f":"IF(ISERROR(Dados!D328),\"-\",Dados!D328)","v":""},{"$f":"IF(ISERROR(Dados!E328),\"-\",Dados!E328)","v":""},{"$f":"IF(ISERROR(Dados!F328),\"-\",Dados!F328)","v":""},{"$f":"IF(ISERROR(Dados!G328),\"-\",Dados!G328)","v":""},{"$f":"IF(ISERROR(Dados!H328),\"-\",Dados!H328)","v":""},{"$f":"IF(ISERROR(Dados!I328),\"-\",Dados!I328)","v":""},{"$f":"IF(ISERROR(Dados!J328),\"-\",Dados!J328)","v":""},{"$f":"IF(ISERROR(Dados!K328),\"-\",Dados!K328)","v":""},{"$f":"IF(ISERROR(Dados!L328),\"-\",Dados!L328)","v":""},{"$f":"IF(ISERROR(Dados!M328),\"-\",Dados!M328)","v":""},{"$f":"IF(ISERROR(Dados!N328),\"-\",Dados!N328)","v":""},{"$f":"IF(ISERROR(Dados!O328),\"-\",Dados!O328)","v":""},{"$f":"IF(ISERROR(Dados!P328),\"-\",Dados!P328)","v":""},{"$f":"IF(ISERROR(Dados!Q328),\"-\",Dados!Q328)","v":""},{"$f":"IF(ISERROR(Dados!R328),\"-\",Dados!R328)","v":""},{"$f":"IF(ISERROR(Dados!S328),\"-\",Dados!S328)","v":""},{"$f":"IF(ISERROR(Dados!T328),\"-\",Dados!T328)","v":""},{"$f":"IF(ISERROR(Dados!U328),\"-\",Dados!U328)","v":""},{"$f":"IF(ISERROR(Dados!V328),\"-\",Dados!V328)","v":""},{"$f":"IF(ISERROR(Dados!W328),\"-\",Dados!W328)","v":""},{"$f":"IF(ISERROR(Dados!X328),\"-\",Dados!X328)","v":""},{"$f":"IF(ISERROR(Dados!Y328),\"-\",Dados!Y328)","v":""},{"$f":"IF(ISERROR(Dados!Z328),\"-\",Dados!Z328)","v":""},{"$f":"IF(ISERROR(Dados!AA328),\"-\",Dados!AA328)","v":""},{"$f":"IF(ISERROR(Dados!AB328),\"-\",Dados!AB328)","v":""},{"$f":"IF(ISERROR(Dados!AC328),\"-\",Dados!AC328)","v":""},{"$f":"IF(ISERROR(Dados!AD328),\"-\",Dados!AD328)","v":""},{"$f":"IF(ISERROR(Dados!AE328),\"-\",Dados!AE328)","v":""},{"$f":"IF(ISERROR(Dados!AF328),\"-\",Dados!AF328)","v":""},{"$f":"IF(ISERROR(Dados!AG328),\"-\",Dados!AG328)","v":""}]
[{"$f":"IF(ISERROR(Dados!A329),\"-\",Dados!A329)","v":""},{"$f":"IF(ISERROR(Dados!B329),\"-\",Dados!B329)","v":""},{"$f":"IF(ISERROR(Dados!C329),\"-\",Dados!C329)","v":""},{"$f":"IF(ISERROR(Dados!D329),\"-\",Dados!D329)","v":""},{"$f":"IF(ISERROR(Dados!E329),\"-\",Dados!E329)","v":""},{"$f":"IF(ISERROR(Dados!F329),\"-\",Dados!F329)","v":""},{"$f":"IF(ISERROR(Dados!G329),\"-\",Dados!G329)","v":""},{"$f":"IF(ISERROR(Dados!H329),\"-\",Dados!H329)","v":""},{"$f":"IF(ISERROR(Dados!I329),\"-\",Dados!I329)","v":""},{"$f":"IF(ISERROR(Dados!J329),\"-\",Dados!J329)","v":""},{"$f":"IF(ISERROR(Dados!K329),\"-\",Dados!K329)","v":""},{"$f":"IF(ISERROR(Dados!L329),\"-\",Dados!L329)","v":""},{"$f":"IF(ISERROR(Dados!M329),\"-\",Dados!M329)","v":""},{"$f":"IF(ISERROR(Dados!N329),\"-\",Dados!N329)","v":""},{"$f":"IF(ISERROR(Dados!O329),\"-\",Dados!O329)","v":""},{"$f":"IF(ISERROR(Dados!P329),\"-\",Dados!P329)","v":""},{"$f":"IF(ISERROR(Dados!Q329),\"-\",Dados!Q329)","v":""},{"$f":"IF(ISERROR(Dados!R329),\"-\",Dados!R329)","v":""},{"$f":"IF(ISERROR(Dados!S329),\"-\",Dados!S329)","v":""},{"$f":"IF(ISERROR(Dados!T329),\"-\",Dados!T329)","v":""},{"$f":"IF(ISERROR(Dados!U329),\"-\",Dados!U329)","v":""},{"$f":"IF(ISERROR(Dados!V329),\"-\",Dados!V329)","v":""},{"$f":"IF(ISERROR(Dados!W329),\"-\",Dados!W329)","v":""},{"$f":"IF(ISERROR(Dados!X329),\"-\",Dados!X329)","v":""},{"$f":"IF(ISERROR(Dados!Y329),\"-\",Dados!Y329)","v":""},{"$f":"IF(ISERROR(Dados!Z329),\"-\",Dados!Z329)","v":""},{"$f":"IF(ISERROR(Dados!AA329),\"-\",Dados!AA329)","v":""},{"$f":"IF(ISERROR(Dados!AB329),\"-\",Dados!AB329)","v":""},{"$f":"IF(ISERROR(Dados!AC329),\"-\",Dados!AC329)","v":""},{"$f":"IF(ISERROR(Dados!AD329),\"-\",Dados!AD329)","v":""},{"$f":"IF(ISERROR(Dados!AE329),\"-\",Dados!AE329)","v":""},{"$f":"IF(ISERROR(Dados!AF329),\"-\",Dados!AF329)","v":""},{"$f":"IF(ISERROR(Dados!AG329),\"-\",Dados!AG329)","v":""}]
[{"$f":"IF(ISERROR(Dados!A330),\"-\",Dados!A330)","v":""},{"$f":"IF(ISERROR(Dados!B330),\"-\",Dados!B330)","v":""},{"$f":"IF(ISERROR(Dados!C330),\"-\",Dados!C330)","v":""},{"$f":"IF(ISERROR(Dados!D330),\"-\",Dados!D330)","v":""},{"$f":"IF(ISERROR(Dados!E330),\"-\",Dados!E330)","v":""},{"$f":"IF(ISERROR(Dados!F330),\"-\",Dados!F330)","v":""},{"$f":"IF(ISERROR(Dados!G330),\"-\",Dados!G330)","v":""},{"$f":"IF(ISERROR(Dados!H330),\"-\",Dados!H330)","v":""},{"$f":"IF(ISERROR(Dados!I330),\"-\",Dados!I330)","v":""},{"$f":"IF(ISERROR(Dados!J330),\"-\",Dados!J330)","v":""},{"$f":"IF(ISERROR(Dados!K330),\"-\",Dados!K330)","v":""},{"$f":"IF(ISERROR(Dados!L330),\"-\",Dados!L330)","v":""},{"$f":"IF(ISERROR(Dados!M330),\"-\",Dados!M330)","v":""},{"$f":"IF(ISERROR(Dados!N330),\"-\",Dados!N330)","v":""},{"$f":"IF(ISERROR(Dados!O330),\"-\",Dados!O330)","v":""},{"$f":"IF(ISERROR(Dados!P330),\"-\",Dados!P330)","v":""},{"$f":"IF(ISERROR(Dados!Q330),\"-\",Dados!Q330)","v":""},{"$f":"IF(ISERROR(Dados!R330),\"-\",Dados!R330)","v":""},{"$f":"IF(ISERROR(Dados!S330),\"-\",Dados!S330)","v":""},{"$f":"IF(ISERROR(Dados!T330),\"-\",Dados!T330)","v":""},{"$f":"IF(ISERROR(Dados!U330),\"-\",Dados!U330)","v":""},{"$f":"IF(ISERROR(Dados!V330),\"-\",Dados!V330)","v":""},{"$f":"IF(ISERROR(Dados!W330),\"-\",Dados!W330)","v":""},{"$f":"IF(ISERROR(Dados!X330),\"-\",Dados!X330)","v":""},{"$f":"IF(ISERROR(Dados!Y330),\"-\",Dados!Y330)","v":""},{"$f":"IF(ISERROR(Dados!Z330),\"-\",Dados!Z330)","v":""},{"$f":"IF(ISERROR(Dados!AA330),\"-\",Dados!AA330)","v":""},{"$f":"IF(ISERROR(Dados!AB330),\"-\",Dados!AB330)","v":""},{"$f":"IF(ISERROR(Dados!AC330),\"-\",Dados!AC330)","v":""},{"$f":"IF(ISERROR(Dados!AD330),\"-\",Dados!AD330)","v":""},{"$f":"IF(ISERROR(Dados!AE330),\"-\",Dados!AE330)","v":""},{"$f":"IF(ISERROR(Dados!AF330),\"-\",Dados!AF330)","v":""},{"$f":"IF(ISERROR(Dados!AG330),\"-\",Dados!AG330)","v":""}]
[{"$f":"IF(ISERROR(Dados!A331),\"-\",Dados!A331)","v":""},{"$f":"IF(ISERROR(Dados!B331),\"-\",Dados!B331)","v":""},{"$f":"IF(ISERROR(Dados!C331),\"-\",Dados!C331)","v":""},{"$f":"IF(ISERROR(Dados!D331),\"-\",Dados!D331)","v":""},{"$f":"IF(ISERROR(Dados!E331),\"-\",Dados!E331)","v":""},{"$f":"IF(ISERROR(Dados!F331),\"-\",Dados!F331)","v":""},{"$f":"IF(ISERROR(Dados!G331),\"-\",Dados!G331)","v":""},{"$f":"IF(ISERROR(Dados!H331),\"-\",Dados!H331)","v":""},{"$f":"IF(ISERROR(Dados!I331),\"-\",Dados!I331)","v":""},{"$f":"IF(ISERROR(Dados!J331),\"-\",Dados!J331)","v":""},{"$f":"IF(ISERROR(Dados!K331),\"-\",Dados!K331)","v":""},{"$f":"IF(ISERROR(Dados!L331),\"-\",Dados!L331)","v":""},{"$f":"IF(ISERROR(Dados!M331),\"-\",Dados!M331)","v":""},{"$f":"IF(ISERROR(Dados!N331),\"-\",Dados!N331)","v":""},{"$f":"IF(ISERROR(Dados!O331),\"-\",Dados!O331)","v":""},{"$f":"IF(ISERROR(Dados!P331),\"-\",Dados!P331)","v":""},{"$f":"IF(ISERROR(Dados!Q331),\"-\",Dados!Q331)","v":""},{"$f":"IF(ISERROR(Dados!R331),\"-\",Dados!R331)","v":""},{"$f":"IF(ISERROR(Dados!S331),\"-\",Dados!S331)","v":""},{"$f":"IF(ISERROR(Dados!T331),\"-\",Dados!T331)","v":""},{"$f":"IF(ISERROR(Dados!U331),\"-\",Dados!U331)","v":""},{"$f":"IF(ISERROR(Dados!V331),\"-\",Dados!V331)","v":""},{"$f":"IF(ISERROR(Dados!W331),\"-\",Dados!W331)","v":""},{"$f":"IF(ISERROR(Dados!X331),\"-\",Dados!X331)","v":""},{"$f":"IF(ISERROR(Dados!Y331),\"-\",Dados!Y331)","v":""},{"$f":"IF(ISERROR(Dados!Z331),\"-\",Dados!Z331)","v":""},{"$f":"IF(ISERROR(Dados!AA331),\"-\",Dados!AA331)","v":""},{"$f":"IF(ISERROR(Dados!AB331),\"-\",Dados!AB331)","v":""},{"$f":"IF(ISERROR(Dados!AC331),\"-\",Dados!AC331)","v":""},{"$f":"IF(ISERROR(Dados!AD331),\"-\",Dados!AD331)","v":""},{"$f":"IF(ISERROR(Dados!AE331),\"-\",Dados!AE331)","v":""},{"$f":"IF(ISERROR(Dados!AF331),\"-\",Dados!AF331)","v":""},{"$f":"IF(ISERROR(Dados!AG331),\"-\",Dados!AG331)","v":""}]
[{"$f":"IF(ISERROR(Dados!A332),\"-\",Dados!A332)","v":""},{"$f":"IF(ISERROR(Dados!B332),\"-\",Dados!B332)","v":""},{"$f":"IF(ISERROR(Dados!C332),\"-\",Dados!C332)","v":""},{"$f":"IF(ISERROR(Dados!D332),\"-\",Dados!D332)","v":""},{"$f":"IF(ISERROR(Dados!E332),\"-\",Dados!E332)","v":""},{"$f":"IF(ISERROR(Dados!F332),\"-\",Dados!F332)","v":""},{"$f":"IF(ISERROR(Dados!G332),\"-\",Dados!G332)","v":""},{"$f":"IF(ISERROR(Dados!H332),\"-\",Dados!H332)","v":""},{"$f":"IF(ISERROR(Dados!I332),\"-\",Dados!I332)","v":""},{"$f":"IF(ISERROR(Dados!J332),\"-\",Dados!J332)","v":""},{"$f":"IF(ISERROR(Dados!K332),\"-\",Dados!K332)","v":""},{"$f":"IF(ISERROR(Dados!L332),\"-\",Dados!L332)","v":""},{"$f":"IF(ISERROR(Dados!M332),\"-\",Dados!M332)","v":""},{"$f":"IF(ISERROR(Dados!N332),\"-\",Dados!N332)","v":""},{"$f":"IF(ISERROR(Dados!O332),\"-\",Dados!O332)","v":""},{"$f":"IF(ISERROR(Dados!P332),\"-\",Dados!P332)","v":""},{"$f":"IF(ISERROR(Dados!Q332),\"-\",Dados!Q332)","v":""},{"$f":"IF(ISERROR(Dados!R332),\"-\",Dados!R332)","v":""},{"$f":"IF(ISERROR(Dados!S332),\"-\",Dados!S332)","v":""},{"$f":"IF(ISERROR(Dados!T332),\"-\",Dados!T332)","v":""},{"$f":"IF(ISERROR(Dados!U332),\"-\",Dados!U332)","v":""},{"$f":"IF(ISERROR(Dados!V332),\"-\",Dados!V332)","v":""},{"$f":"IF(ISERROR(Dados!W332),\"-\",Dados!W332)","v":""},{"$f":"IF(ISERROR(Dados!X332),\"-\",Dados!X332)","v":""},{"$f":"IF(ISERROR(Dados!Y332),\"-\",Dados!Y332)","v":""},{"$f":"IF(ISERROR(Dados!Z332),\"-\",Dados!Z332)","v":""},{"$f":"IF(ISERROR(Dados!AA332),\"-\",Dados!AA332)","v":""},{"$f":"IF(ISERROR(Dados!AB332),\"-\",Dados!AB332)","v":""},{"$f":"IF(ISERROR(Dados!AC332),\"-\",Dados!AC332)","v":""},{"$f":"IF(ISERROR(Dados!AD332),\"-\",Dados!AD332)","v":""},{"$f":"IF(ISERROR(Dados!AE332),\"-\",Dados!AE332)","v":""},{"$f":"IF(ISERROR(Dados!AF332),\"-\",Dados!AF332)","v":""},{"$f":"IF(ISERROR(Dados!AG332),\"-\",Dados!AG332)","v":""}]
[{"$f":"IF(ISERROR(Dados!A333),\"-\",Dados!A333)","v":""},{"$f":"IF(ISERROR(Dados!B333),\"-\",Dados!B333)","v":""},{"$f":"IF(ISERROR(Dados!C333),\"-\",Dados!C333)","v":""},{"$f":"IF(ISERROR(Dados!D333),\"-\",Dados!D333)","v":""},{"$f":"IF(ISERROR(Dados!E333),\"-\",Dados!E333)","v":""},{"$f":"IF(ISERROR(Dados!F333),\"-\",Dados!F333)","v":""},{"$f":"IF(ISERROR(Dados!G333),\"-\",Dados!G333)","v":""},{"$f":"IF(ISERROR(Dados!H333),\"-\",Dados!H333)","v":""},{"$f":"IF(ISERROR(Dados!I333),\"-\",Dados!I333)","v":""},{"$f":"IF(ISERROR(Dados!J333),\"-\",Dados!J333)","v":""},{"$f":"IF(ISERROR(Dados!K333),\"-\",Dados!K333)","v":""},{"$f":"IF(ISERROR(Dados!L333),\"-\",Dados!L333)","v":""},{"$f":"IF(ISERROR(Dados!M333),\"-\",Dados!M333)","v":""},{"$f":"IF(ISERROR(Dados!N333),\"-\",Dados!N333)","v":""},{"$f":"IF(ISERROR(Dados!O333),\"-\",Dados!O333)","v":""},{"$f":"IF(ISERROR(Dados!P333),\"-\",Dados!P333)","v":""},{"$f":"IF(ISERROR(Dados!Q333),\"-\",Dados!Q333)","v":""},{"$f":"IF(ISERROR(Dados!R333),\"-\",Dados!R333)","v":""},{"$f":"IF(ISERROR(Dados!S333),\"-\",Dados!S333)","v":""},{"$f":"IF(ISERROR(Dados!T333),\"-\",Dados!T333)","v":""},{"$f":"IF(ISERROR(Dados!U333),\"-\",Dados!U333)","v":""},{"$f":"IF(ISERROR(Dados!V333),\"-\",Dados!V333)","v":""},{"$f":"IF(ISERROR(Dados!W333),\"-\",Dados!W333)","v":""},{"$f":"IF(ISERROR(Dados!X333),\"-\",Dados!X333)","v":""},{"$f":"IF(ISERROR(Dados!Y333),\"-\",Dados!Y333)","v":""},{"$f":"IF(ISERROR(Dados!Z333),\"-\",Dados!Z333)","v":""},{"$f":"IF(ISERROR(Dados!AA333),\"-\",Dados!AA333)","v":""},{"$f":"IF(ISERROR(Dados!AB333),\"-\",Dados!AB333)","v":""},{"$f":"IF(ISERROR(Dados!AC333),\"-\",Dados!AC333)","v":""},{"$f":"IF(ISERROR(Dados!AD333),\"-\",Dados!AD333)","v":""},{"$f":"IF(ISERROR(Dados!AE333),\"-\",Dados!AE333)","v":""},{"$f":"IF(ISERROR(Dados!AF333),\"-\",Dados!AF333)","v":""},{"$f":"IF(ISERROR(Dados!AG333),\"-\",Dados!AG333)","v":""}]
[{"$f":"IF(ISERROR(Dados!A334),\"-\",Dados!A334)","v":""},{"$f":"IF(ISERROR(Dados!B334),\"-\",Dados!B334)","v":""},{"$f":"IF(ISERROR(Dados!C334),\"-\",Dados!C334)","v":""},{"$f":"IF(ISERROR(Dados!D334),\"-\",Dados!D334)","v":""},{"$f":"IF(ISERROR(Dados!E334),\"-\",Dados!E334)","v":""},{"$f":"IF(ISERROR(Dados!F334),\"-\",Dados!F334)","v":""},{"$f":"IF(ISERROR(Dados!G334),\"-\",Dados!G334)","v":""},{"$f":"IF(ISERROR(Dados!H334),\"-\",Dados!H334)","v":""},{"$f":"IF(ISERROR(Dados!I334),\"-\",Dados!I334)","v":""},{"$f":"IF(ISERROR(Dados!J334),\"-\",Dados!J334)","v":""},{"$f":"IF(ISERROR(Dados!K334),\"-\",Dados!K334)","v":""},{"$f":"IF(ISERROR(Dados!L334),\"-\",Dados!L334)","v":""},{"$f":"IF(ISERROR(Dados!M334),\"-\",Dados!M334)","v":""},{"$f":"IF(ISERROR(Dados!N334),\"-\",Dados!N334)","v":""},{"$f":"IF(ISERROR(Dados!O334),\"-\",Dados!O334)","v":""},{"$f":"IF(ISERROR(Dados!P334),\"-\",Dados!P334)","v":""},{"$f":"IF(ISERROR(Dados!Q334),\"-\",Dados!Q334)","v":""},{"$f":"IF(ISERROR(Dados!R334),\"-\",Dados!R334)","v":""},{"$f":"IF(ISERROR(Dados!S334),\"-\",Dados!S334)","v":""},{"$f":"IF(ISERROR(Dados!T334),\"-\",Dados!T334)","v":""},{"$f":"IF(ISERROR(Dados!U334),\"-\",Dados!U334)","v":""},{"$f":"IF(ISERROR(Dados!V334),\"-\",Dados!V334)","v":""},{"$f":"IF(ISERROR(Dados!W334),\"-\",Dados!W334)","v":""},{"$f":"IF(ISERROR(Dados!X334),\"-\",Dados!X334)","v":""},{"$f":"IF(ISERROR(Dados!Y334),\"-\",Dados!Y334)","v":""},{"$f":"IF(ISERROR(Dados!Z334),\"-\",Dados!Z334)","v":""},{"$f":"IF(ISERROR(Dados!AA334),\"-\",Dados!AA334)","v":""},{"$f":"IF(ISERROR(Dados!AB334),\"-\",Dados!AB334)","v":""},{"$f":"IF(ISERROR(Dados!AC334),\"-\",Dados!AC334)","v":""},{"$f":"IF(ISERROR(Dados!AD334),\"-\",Dados!AD334)","v":""},{"$f":"IF(ISERROR(Dados!AE334),\"-\",Dados!AE334)","v":""},{"$f":"IF(ISERROR(Dados!AF334),\"-\",Dados!AF334)","v":""},{"$f":"IF(ISERROR(Dados!AG334),\"-\",Dados!AG334)","v":""}]
[{"$f":"IF(ISERROR(Dados!A335),\"-\",Dados!A335)","v":""},{"$f":"IF(ISERROR(Dados!B335),\"-\",Dados!B335)","v":""},{"$f":"IF(ISERROR(Dados!C335),\"-\",Dados!C335)","v":""},{"$f":"IF(ISERROR(Dados!D335),\"-\",Dados!D335)","v":""},{"$f":"IF(ISERROR(Dados!E335),\"-\",Dados!E335)","v":""},{"$f":"IF(ISERROR(Dados!F335),\"-\",Dados!F335)","v":""},{"$f":"IF(ISERROR(Dados!G335),\"-\",Dados!G335)","v":""},{"$f":"IF(ISERROR(Dados!H335),\"-\",Dados!H335)","v":""},{"$f":"IF(ISERROR(Dados!I335),\"-\",Dados!I335)","v":""},{"$f":"IF(ISERROR(Dados!J335),\"-\",Dados!J335)","v":""},{"$f":"IF(ISERROR(Dados!K335),\"-\",Dados!K335)","v":""},{"$f":"IF(ISERROR(Dados!L335),\"-\",Dados!L335)","v":""},{"$f":"IF(ISERROR(Dados!M335),\"-\",Dados!M335)","v":""},{"$f":"IF(ISERROR(Dados!N335),\"-\",Dados!N335)","v":""},{"$f":"IF(ISERROR(Dados!O335),\"-\",Dados!O335)","v":""},{"$f":"IF(ISERROR(Dados!P335),\"-\",Dados!P335)","v":""},{"$f":"IF(ISERROR(Dados!Q335),\"-\",Dados!Q335)","v":""},{"$f":"IF(ISERROR(Dados!R335),\"-\",Dados!R335)","v":""},{"$f":"IF(ISERROR(Dados!S335),\"-\",Dados!S335)","v":""},{"$f":"IF(ISERROR(Dados!T335),\"-\",Dados!T335)","v":""},{"$f":"IF(ISERROR(Dados!U335),\"-\",Dados!U335)","v":""},{"$f":"IF(ISERROR(Dados!V335),\"-\",Dados!V335)","v":""},{"$f":"IF(ISERROR(Dados!W335),\"-\",Dados!W335)","v":""},{"$f":"IF(ISERROR(Dados!X335),\"-\",Dados!X335)","v":""},{"$f":"IF(ISERROR(Dados!Y335),\"-\",Dados!Y335)","v":""},{"$f":"IF(ISERROR(Dados!Z335),\"-\",Dados!Z335)","v":""},{"$f":"IF(ISERROR(Dados!AA335),\"-\",Dados!AA335)","v":""},{"$f":"IF(ISERROR(Dados!AB335),\"-\",Dados!AB335)","v":""},{"$f":"IF(ISERROR(Dados!AC335),\"-\",Dados!AC335)","v":""},{"$f":"IF(ISERROR(Dados!AD335),\"-\",Dados!AD335)","v":""},{"$f":"IF(ISERROR(Dados!AE335),\"-\",Dados!AE335)","v":""},{"$f":"IF(ISERROR(Dados!AF335),\"-\",Dados!AF335)","v":""},{"$f":"IF(ISERROR(Dados!AG335),\"-\",Dados!AG335)","v":""}]
[{"$f":"IF(ISERROR(Dados!A336),\"-\",Dados!A336)","v":""},{"$f":"IF(ISERROR(Dados!B336),\"-\",Dados!B336)","v":""},{"$f":"IF(ISERROR(Dados!C336),\"-\",Dados!C336)","v":""},{"$f":"IF(ISERROR(Dados!D336),\"-\",Dados!D336)","v":""},{"$f":"IF(ISERROR(Dados!E336),\"-\",Dados!E336)","v":""},{"$f":"IF(ISERROR(Dados!F336),\"-\",Dados!F336)","v":""},{"$f":"IF(ISERROR(Dados!G336),\"-\",Dados!G336)","v":""},{"$f":"IF(ISERROR(Dados!H336),\"-\",Dados!H336)","v":""},{"$f":"IF(ISERROR(Dados!I336),\"-\",Dados!I336)","v":""},{"$f":"IF(ISERROR(Dados!J336),\"-\",Dados!J336)","v":""},{"$f":"IF(ISERROR(Dados!K336),\"-\",Dados!K336)","v":""},{"$f":"IF(ISERROR(Dados!L336),\"-\",Dados!L336)","v":""},{"$f":"IF(ISERROR(Dados!M336),\"-\",Dados!M336)","v":""},{"$f":"IF(ISERROR(Dados!N336),\"-\",Dados!N336)","v":""},{"$f":"IF(ISERROR(Dados!O336),\"-\",Dados!O336)","v":""},{"$f":"IF(ISERROR(Dados!P336),\"-\",Dados!P336)","v":""},{"$f":"IF(ISERROR(Dados!Q336),\"-\",Dados!Q336)","v":""},{"$f":"IF(ISERROR(Dados!R336),\"-\",Dados!R336)","v":""},{"$f":"IF(ISERROR(Dados!S336),\"-\",Dados!S336)","v":""},{"$f":"IF(ISERROR(Dados!T336),\"-\",Dados!T336)","v":""},{"$f":"IF(ISERROR(Dados!U336),\"-\",Dados!U336)","v":""},{"$f":"IF(ISERROR(Dados!V336),\"-\",Dados!V336)","v":""},{"$f":"IF(ISERROR(Dados!W336),\"-\",Dados!W336)","v":""},{"$f":"IF(ISERROR(Dados!X336),\"-\",Dados!X336)","v":""},{"$f":"IF(ISERROR(Dados!Y336),\"-\",Dados!Y336)","v":""},{"$f":"IF(ISERROR(Dados!Z336),\"-\",Dados!Z336)","v":""},{"$f":"IF(ISERROR(Dados!AA336),\"-\",Dados!AA336)","v":""},{"$f":"IF(ISERROR(Dados!AB336),\"-\",Dados!AB336)","v":""},{"$f":"IF(ISERROR(Dados!AC336),\"-\",Dados!AC336)","v":""},{"$f":"IF(ISERROR(Dados!AD336),\"-\",Dados!AD336)","v":""},{"$f":"IF(ISERROR(Dados!AE336),\"-\",Dados!AE336)","v":""},{"$f":"IF(ISERROR(Dados!AF336),\"-\",Dados!AF336)","v":""},{"$f":"IF(ISERROR(Dados!AG336),\"-\",Dados!AG336)","v":""}]
[{"$f":"IF(ISERROR(Dados!A337),\"-\",Dados!A337)","v":""},{"$f":"IF(ISERROR(Dados!B337),\"-\",Dados!B337)","v":""},{"$f":"IF(ISERROR(Dados!C337),\"-\",Dados!C337)","v":""},{"$f":"IF(ISERROR(Dados!D337),\"-\",Dados!D337)","v":""},{"$f":"IF(ISERROR(Dados!E337),\"-\",Dados!E337)","v":""},{"$f":"IF(ISERROR(Dados!F337),\"-\",Dados!F337)","v":""},{"$f":"IF(ISERROR(Dados!G337),\"-\",Dados!G337)","v":""},{"$f":"IF(ISERROR(Dados!H337),\"-\",Dados!H337)","v":""},{"$f":"IF(ISERROR(Dados!I337),\"-\",Dados!I337)","v":""},{"$f":"IF(ISERROR(Dados!J337),\"-\",Dados!J337)","v":""},{"$f":"IF(ISERROR(Dados!K337),\"-\",Dados!K337)","v":""},{"$f":"IF(ISERROR(Dados!L337),\"-\",Dados!L337)","v":""},{"$f":"IF(ISERROR(Dados!M337),\"-\",Dados!M337)","v":""},{"$f":"IF(ISERROR(Dados!N337),\"-\",Dados!N337)","v":""},{"$f":"IF(ISERROR(Dados!O337),\"-\",Dados!O337)","v":""},{"$f":"IF(ISERROR(Dados!P337),\"-\",Dados!P337)","v":""},{"$f":"IF(ISERROR(Dados!Q337),\"-\",Dados!Q337)","v":""},{"$f":"IF(ISERROR(Dados!R337),\"-\",Dados!R337)","v":""},{"$f":"IF(ISERROR(Dados!S337),\"-\",Dados!S337)","v":""},{"$f":"IF(ISERROR(Dados!T337),\"-\",Dados!T337)","v":""},{"$f":"IF(ISERROR(Dados!U337),\"-\",Dados!U337)","v":""},{"$f":"IF(ISERROR(Dados!V337),\"-\",Dados!V337)","v":""},{"$f":"IF(ISERROR(Dados!W337),\"-\",Dados!W337)","v":""},{"$f":"IF(ISERROR(Dados!X337),\"-\",Dados!X337)","v":""},{"$f":"IF(ISERROR(Dados!Y337),\"-\",Dados!Y337)","v":""},{"$f":"IF(ISERROR(Dados!Z337),\"-\",Dados!Z337)","v":""},{"$f":"IF(ISERROR(Dados!AA337),\"-\",Dados!AA337)","v":""},{"$f":"IF(ISERROR(Dados!AB337),\"-\",Dados!AB337)","v":""},{"$f":"IF(ISERROR(Dados!AC337),\"-\",Dados!AC337)","v":""},{"$f":"IF(ISERROR(Dados!AD337),\"-\",Dados!AD337)","v":""},{"$f":"IF(ISERROR(Dados!AE337),\"-\",Dados!AE337)","v":""},{"$f":"IF(ISERROR(Dados!AF337),\"-\",Dados!AF337)","v":""},{"$f":"IF(ISERROR(Dados!AG337),\"-\",Dados!AG337)","v":""}]
[{"$f":"IF(ISERROR(Dados!A338),\"-\",Dados!A338)","v":""},{"$f":"IF(ISERROR(Dados!B338),\"-\",Dados!B338)","v":""},{"$f":"IF(ISERROR(Dados!C338),\"-\",Dados!C338)","v":""},{"$f":"IF(ISERROR(Dados!D338),\"-\",Dados!D338)","v":""},{"$f":"IF(ISERROR(Dados!E338),\"-\",Dados!E338)","v":""},{"$f":"IF(ISERROR(Dados!F338),\"-\",Dados!F338)","v":""},{"$f":"IF(ISERROR(Dados!G338),\"-\",Dados!G338)","v":""},{"$f":"IF(ISERROR(Dados!H338),\"-\",Dados!H338)","v":""},{"$f":"IF(ISERROR(Dados!I338),\"-\",Dados!I338)","v":""},{"$f":"IF(ISERROR(Dados!J338),\"-\",Dados!J338)","v":""},{"$f":"IF(ISERROR(Dados!K338),\"-\",Dados!K338)","v":""},{"$f":"IF(ISERROR(Dados!L338),\"-\",Dados!L338)","v":""},{"$f":"IF(ISERROR(Dados!M338),\"-\",Dados!M338)","v":""},{"$f":"IF(ISERROR(Dados!N338),\"-\",Dados!N338)","v":""},{"$f":"IF(ISERROR(Dados!O338),\"-\",Dados!O338)","v":""},{"$f":"IF(ISERROR(Dados!P338),\"-\",Dados!P338)","v":""},{"$f":"IF(ISERROR(Dados!Q338),\"-\",Dados!Q338)","v":""},{"$f":"IF(ISERROR(Dados!R338),\"-\",Dados!R338)","v":""},{"$f":"IF(ISERROR(Dados!S338),\"-\",Dados!S338)","v":""},{"$f":"IF(ISERROR(Dados!T338),\"-\",Dados!T338)","v":""},{"$f":"IF(ISERROR(Dados!U338),\"-\",Dados!U338)","v":""},{"$f":"IF(ISERROR(Dados!V338),\"-\",Dados!V338)","v":""},{"$f":"IF(ISERROR(Dados!W338),\"-\",Dados!W338)","v":""},{"$f":"IF(ISERROR(Dados!X338),\"-\",Dados!X338)","v":""},{"$f":"IF(ISERROR(Dados!Y338),\"-\",Dados!Y338)","v":""},{"$f":"IF(ISERROR(Dados!Z338),\"-\",Dados!Z338)","v":""},{"$f":"IF(ISERROR(Dados!AA338),\"-\",Dados!AA338)","v":""},{"$f":"IF(ISERROR(Dados!AB338),\"-\",Dados!AB338)","v":""},{"$f":"IF(ISERROR(Dados!AC338),\"-\",Dados!AC338)","v":""},{"$f":"IF(ISERROR(Dados!AD338),\"-\",Dados!AD338)","v":""},{"$f":"IF(ISERROR(Dados!AE338),\"-\",Dados!AE338)","v":""},{"$f":"IF(ISERROR(Dados!AF338),\"-\",Dados!AF338)","v":""},{"$f":"IF(ISERROR(Dados!AG338),\"-\",Dados!AG338)","v":""}]
[{"$f":"IF(ISERROR(Dados!A339),\"-\",Dados!A339)","v":""},{"$f":"IF(ISERROR(Dados!B339),\"-\",Dados!B339)","v":""},{"$f":"IF(ISERROR(Dados!C339),\"-\",Dados!C339)","v":""},{"$f":"IF(ISERROR(Dados!D339),\"-\",Dados!D339)","v":""},{"$f":"IF(ISERROR(Dados!E339),\"-\",Dados!E339)","v":""},{"$f":"IF(ISERROR(Dados!F339),\"-\",Dados!F339)","v":""},{"$f":"IF(ISERROR(Dados!G339),\"-\",Dados!G339)","v":""},{"$f":"IF(ISERROR(Dados!H339),\"-\",Dados!H339)","v":""},{"$f":"IF(ISERROR(Dados!I339),\"-\",Dados!I339)","v":""},{"$f":"IF(ISERROR(Dados!J339),\"-\",Dados!J339)","v":""},{"$f":"IF(ISERROR(Dados!K339),\"-\",Dados!K339)","v":""},{"$f":"IF(ISERROR(Dados!L339),\"-\",Dados!L339)","v":""},{"$f":"IF(ISERROR(Dados!M339),\"-\",Dados!M339)","v":""},{"$f":"IF(ISERROR(Dados!N339),\"-\",Dados!N339)","v":""},{"$f":"IF(ISERROR(Dados!O339),\"-\",Dados!O339)","v":""},{"$f":"IF(ISERROR(Dados!P339),\"-\",Dados!P339)","v":""},{"$f":"IF(ISERROR(Dados!Q339),\"-\",Dados!Q339)","v":""},{"$f":"IF(ISERROR(Dados!R339),\"-\",Dados!R339)","v":""},{"$f":"IF(ISERROR(Dados!S339),\"-\",Dados!S339)","v":""},{"$f":"IF(ISERROR(Dados!T339),\"-\",Dados!T339)","v":""},{"$f":"IF(ISERROR(Dados!U339),\"-\",Dados!U339)","v":""},{"$f":"IF(ISERROR(Dados!V339),\"-\",Dados!V339)","v":""},{"$f":"IF(ISERROR(Dados!W339),\"-\",Dados!W339)","v":""},{"$f":"IF(ISERROR(Dados!X339),\"-\",Dados!X339)","v":""},{"$f":"IF(ISERROR(Dados!Y339),\"-\",Dados!Y339)","v":""},{"$f":"IF(ISERROR(Dados!Z339),\"-\",Dados!Z339)","v":""},{"$f":"IF(ISERROR(Dados!AA339),\"-\",Dados!AA339)","v":""},{"$f":"IF(ISERROR(Dados!AB339),\"-\",Dados!AB339)","v":""},{"$f":"IF(ISERROR(Dados!AC339),\"-\",Dados!AC339)","v":""},{"$f":"IF(ISERROR(Dados!AD339),\"-\",Dados!AD339)","v":""},{"$f":"IF(ISERROR(Dados!AE339),\"-\",Dados!AE339)","v":""},{"$f":"IF(ISERROR(Dados!AF339),\"-\",Dados!AF339)","v":""},{"$f":"IF(ISERROR(Dados!AG339),\"-\",Dados!AG339)","v":""}]
[{"$f":"IF(ISERROR(Dados!A340),\"-\",Dados!A340)","v":""},{"$f":"IF(ISERROR(Dados!B340),\"-\",Dados!B340)","v":""},{"$f":"IF(ISERROR(Dados!C340),\"-\",Dados!C340)","v":""},{"$f":"IF(ISERROR(Dados!D340),\"-\",Dados!D340)","v":""},{"$f":"IF(ISERROR(Dados!E340),\"-\",Dados!E340)","v":""},{"$f":"IF(ISERROR(Dados!F340),\"-\",Dados!F340)","v":""},{"$f":"IF(ISERROR(Dados!G340),\"-\",Dados!G340)","v":""},{"$f":"IF(ISERROR(Dados!H340),\"-\",Dados!H340)","v":""},{"$f":"IF(ISERROR(Dados!I340),\"-\",Dados!I340)","v":""},{"$f":"IF(ISERROR(Dados!J340),\"-\",Dados!J340)","v":""},{"$f":"IF(ISERROR(Dados!K340),\"-\",Dados!K340)","v":""},{"$f":"IF(ISERROR(Dados!L340),\"-\",Dados!L340)","v":""},{"$f":"IF(ISERROR(Dados!M340),\"-\",Dados!M340)","v":""},{"$f":"IF(ISERROR(Dados!N340),\"-\",Dados!N340)","v":""},{"$f":"IF(ISERROR(Dados!O340),\"-\",Dados!O340)","v":""},{"$f":"IF(ISERROR(Dados!P340),\"-\",Dados!P340)","v":""},{"$f":"IF(ISERROR(Dados!Q340),\"-\",Dados!Q340)","v":""},{"$f":"IF(ISERROR(Dados!R340),\"-\",Dados!R340)","v":""},{"$f":"IF(ISERROR(Dados!S340),\"-\",Dados!S340)","v":""},{"$f":"IF(ISERROR(Dados!T340),\"-\",Dados!T340)","v":""},{"$f":"IF(ISERROR(Dados!U340),\"-\",Dados!U340)","v":""},{"$f":"IF(ISERROR(Dados!V340),\"-\",Dados!V340)","v":""},{"$f":"IF(ISERROR(Dados!W340),\"-\",Dados!W340)","v":""},{"$f":"IF(ISERROR(Dados!X340),\"-\",Dados!X340)","v":""},{"$f":"IF(ISERROR(Dados!Y340),\"-\",Dados!Y340)","v":""},{"$f":"IF(ISERROR(Dados!Z340),\"-\",Dados!Z340)","v":""},{"$f":"IF(ISERROR(Dados!AA340),\"-\",Dados!AA340)","v":""},{"$f":"IF(ISERROR(Dados!AB340),\"-\",Dados!AB340)","v":""},{"$f":"IF(ISERROR(Dados!AC340),\"-\",Dados!AC340)","v":""},{"$f":"IF(ISERROR(Dados!AD340),\"-\",Dados!AD340)","v":""},{"$f":"IF(ISERROR(Dados!AE340),\"-\",Dados!AE340)","v":""},{"$f":"IF(ISERROR(Dados!AF340),\"-\",Dados!AF340)","v":""},{"$f":"IF(ISERROR(Dados!AG340),\"-\",Dados!AG340)","v":""}]
[{"$f":"IF(ISERROR(Dados!A341),\"-\",Dados!A341)","v":""},{"$f":"IF(ISERROR(Dados!B341),\"-\",Dados!B341)","v":""},{"$f":"IF(ISERROR(Dados!C341),\"-\",Dados!C341)","v":""},{"$f":"IF(ISERROR(Dados!D341),\"-\",Dados!D341)","v":""},{"$f":"IF(ISERROR(Dados!E341),\"-\",Dados!E341)","v":""},{"$f":"IF(ISERROR(Dados!F341),\"-\",Dados!F341)","v":""},{"$f":"IF(ISERROR(Dados!G341),\"-\",Dados!G341)","v":""},{"$f":"IF(ISERROR(Dados!H341),\"-\",Dados!H341)","v":""},{"$f":"IF(ISERROR(Dados!I341),\"-\",Dados!I341)","v":""},{"$f":"IF(ISERROR(Dados!J341),\"-\",Dados!J341)","v":""},{"$f":"IF(ISERROR(Dados!K341),\"-\",Dados!K341)","v":""},{"$f":"IF(ISERROR(Dados!L341),\"-\",Dados!L341)","v":""},{"$f":"IF(ISERROR(Dados!M341),\"-\",Dados!M341)","v":""},{"$f":"IF(ISERROR(Dados!N341),\"-\",Dados!N341)","v":""},{"$f":"IF(ISERROR(Dados!O341),\"-\",Dados!O341)","v":""},{"$f":"IF(ISERROR(Dados!P341),\"-\",Dados!P341)","v":""},{"$f":"IF(ISERROR(Dados!Q341),\"-\",Dados!Q341)","v":""},{"$f":"IF(ISERROR(Dados!R341),\"-\",Dados!R341)","v":""},{"$f":"IF(ISERROR(Dados!S341),\"-\",Dados!S341)","v":""},{"$f":"IF(ISERROR(Dados!T341),\"-\",Dados!T341)","v":""},{"$f":"IF(ISERROR(Dados!U341),\"-\",Dados!U341)","v":""},{"$f":"IF(ISERROR(Dados!V341),\"-\",Dados!V341)","v":""},{"$f":"IF(ISERROR(Dados!W341),\"-\",Dados!W341)","v":""},{"$f":"IF(ISERROR(Dados!X341),\"-\",Dados!X341)","v":""},{"$f":"IF(ISERROR(Dados!Y341),\"-\",Dados!Y341)","v":""},{"$f":"IF(ISERROR(Dados!Z341),\"-\",Dados!Z341)","v":""},{"$f":"IF(ISERROR(Dados!AA341),\"-\",Dados!AA341)","v":""},{"$f":"IF(ISERROR(Dados!AB341),\"-\",Dados!AB341)","v":""},{"$f":"IF(ISERROR(Dados!AC341),\"-\",Dados!AC341)","v":""},{"$f":"IF(ISERROR(Dados!AD341),\"-\",Dados!AD341)","v":""},{"$f":"IF(ISERROR(Dados!AE341),\"-\",Dados!AE341)","v":""},{"$f":"IF(ISERROR(Dados!AF341),\"-\",Dados!AF341)","v":""},{"$f":"IF(ISERROR(Dados!AG341),\"-\",Dados!AG341)","v":""}]
[{"$f":"IF(ISERROR(Dados!A342),\"-\",Dados!A342)","v":""},{"$f":"IF(ISERROR(Dados!B342),\"-\",Dados!B342)","v":""},{"$f":"IF(ISERROR(Dados!C342),\"-\",Dados!C342)","v":""},{"$f":"IF(ISERROR(Dados!D342),\"-\",Dados!D342)","v":""},{"$f":"IF(ISERROR(Dados!E342),\"-\",Dados!E342)","v":""},{"$f":"IF(ISERROR(Dados!F342),\"-\",Dados!F342)","v":""},{"$f":"IF(ISERROR(Dados!G342),\"-\",Dados!G342)","v":""},{"$f":"IF(ISERROR(Dados!H342),\"-\",Dados!H342)","v":""},{"$f":"IF(ISERROR(Dados!I342),\"-\",Dados!I342)","v":""},{"$f":"IF(ISERROR(Dados!J342),\"-\",Dados!J342)","v":""},{"$f":"IF(ISERROR(Dados!K342),\"-\",Dados!K342)","v":""},{"$f":"IF(ISERROR(Dados!L342),\"-\",Dados!L342)","v":""},{"$f":"IF(ISERROR(Dados!M342),\"-\",Dados!M342)","v":""},{"$f":"IF(ISERROR(Dados!N342),\"-\",Dados!N342)","v":""},{"$f":"IF(ISERROR(Dados!O342),\"-\",Dados!O342)","v":""},{"$f":"IF(ISERROR(Dados!P342),\"-\",Dados!P342)","v":""},{"$f":"IF(ISERROR(Dados!Q342),\"-\",Dados!Q342)","v":""},{"$f":"IF(ISERROR(Dados!R342),\"-\",Dados!R342)","v":""},{"$f":"IF(ISERROR(Dados!S342),\"-\",Dados!S342)","v":""},{"$f":"IF(ISERROR(Dados!T342),\"-\",Dados!T342)","v":""},{"$f":"IF(ISERROR(Dados!U342),\"-\",Dados!U342)","v":""},{"$f":"IF(ISERROR(Dados!V342),\"-\",Dados!V342)","v":""},{"$f":"IF(ISERROR(Dados!W342),\"-\",Dados!W342)","v":""},{"$f":"IF(ISERROR(Dados!X342),\"-\",Dados!X342)","v":""},{"$f":"IF(ISERROR(Dados!Y342),\"-\",Dados!Y342)","v":""},{"$f":"IF(ISERROR(Dados!Z342),\"-\",Dados!Z342)","v":""},{"$f":"IF(ISERROR(Dados!AA342),\"-\",Dados!AA342)","v":""},{"$f":"IF(ISERROR(Dados!AB342),\"-\",Dados!AB342)","v":""},{"$f":"IF(ISERROR(Dados!AC342),\"-\",Dados!AC342)","v":""},{"$f":"IF(ISERROR(Dados!AD342),\"-\",Dados!AD342)","v":""},{"$f":"IF(ISERROR(Dados!AE342),\"-\",Dados!AE342)","v":""},{"$f":"IF(ISERROR(Dados!AF342),\"-\",Dados!AF342)","v":""},{"$f":"IF(ISERROR(Dados!AG342),\"-\",Dados!AG342)","v":""}]
[{"$f":"IF(ISERROR(Dados!A343),\"-\",Dados!A343)","v":""},{"$f":"IF(ISERROR(Dados!B343),\"-\",Dados!B343)","v":""},{"$f":"IF(ISERROR(Dados!C343),\"-\",Dados!C343)","v":""},{"$f":"IF(ISERROR(Dados!D343),\"-\",Dados!D343)","v":""},{"$f":"IF(ISERROR(Dados!E343),\"-\",Dados!E343)","v":""},{"$f":"IF(ISERROR(Dados!F343),\"-\",Dados!F343)","v":""},{"$f":"IF(ISERROR(Dados!G343),\"-\",Dados!G343)","v":""},{"$f":"IF(ISERROR(Dados!H343),\"-\",Dados!H343)","v":""},{"$f":"IF(ISERROR(Dados!I343),\"-\",Dados!I343)","v":""},{"$f":"IF(ISERROR(Dados!J343),\"-\",Dados!J343)","v":""},{"$f":"IF(ISERROR(Dados!K343),\"-\",Dados!K343)","v":""},{"$f":"IF(ISERROR(Dados!L343),\"-\",Dados!L343)","v":""},{"$f":"IF(ISERROR(Dados!M343),\"-\",Dados!M343)","v":""},{"$f":"IF(ISERROR(Dados!N343),\"-\",Dados!N343)","v":""},{"$f":"IF(ISERROR(Dados!O343),\"-\",Dados!O343)","v":""},{"$f":"IF(ISERROR(Dados!P343),\"-\",Dados!P343)","v":""},{"$f":"IF(ISERROR(Dados!Q343),\"-\",Dados!Q343)","v":""},{"$f":"IF(ISERROR(Dados!R343),\"-\",Dados!R343)","v":""},{"$f":"IF(ISERROR(Dados!S343),\"-\",Dados!S343)","v":""},{"$f":"IF(ISERROR(Dados!T343),\"-\",Dados!T343)","v":""},{"$f":"IF(ISERROR(Dados!U343),\"-\",Dados!U343)","v":""},{"$f":"IF(ISERROR(Dados!V343),\"-\",Dados!V343)","v":""},{"$f":"IF(ISERROR(Dados!W343),\"-\",Dados!W343)","v":""},{"$f":"IF(ISERROR(Dados!X343),\"-\",Dados!X343)","v":""},{"$f":"IF(ISERROR(Dados!Y343),\"-\",Dados!Y343)","v":""},{"$f":"IF(ISERROR(Dados!Z343),\"-\",Dados!Z343)","v":""},{"$f":"IF(ISERROR(Dados!AA343),\"-\",Dados!AA343)","v":""},{"$f":"IF(ISERROR(Dados!AB343),\"-\",Dados!AB343)","v":""},{"$f":"IF(ISERROR(Dados!AC343),\"-\",Dados!AC343)","v":""},{"$f":"IF(ISERROR(Dados!AD343),\"-\",Dados!AD343)","v":""},{"$f":"IF(ISERROR(Dados!AE343),\"-\",Dados!AE343)","v":""},{"$f":"IF(ISERROR(Dados!AF343),\"-\",Dados!AF343)","v":""},{"$f":"IF(ISERROR(Dados!AG343),\"-\",Dados!AG343)","v":""}]
[{"$f":"IF(ISERROR(Dados!A344),\"-\",Dados!A344)","v":""},{"$f":"IF(ISERROR(Dados!B344),\"-\",Dados!B344)","v":""},{"$f":"IF(ISERROR(Dados!C344),\"-\",Dados!C344)","v":""},{"$f":"IF(ISERROR(Dados!D344),\"-\",Dados!D344)","v":""},{"$f":"IF(ISERROR(Dados!E344),\"-\",Dados!E344)","v":""},{"$f":"IF(ISERROR(Dados!F344),\"-\",Dados!F344)","v":""},{"$f":"IF(ISERROR(Dados!G344),\"-\",Dados!G344)","v":""},{"$f":"IF(ISERROR(Dados!H344),\"-\",Dados!H344)","v":""},{"$f":"IF(ISERROR(Dados!I344),\"-\",Dados!I344)","v":""},{"$f":"IF(ISERROR(Dados!J344),\"-\",Dados!J344)","v":""},{"$f":"IF(ISERROR(Dados!K344),\"-\",Dados!K344)","v":""},{"$f":"IF(ISERROR(Dados!L344),\"-\",Dados!L344)","v":""},{"$f":"IF(ISERROR(Dados!M344),\"-\",Dados!M344)","v":""},{"$f":"IF(ISERROR(Dados!N344),\"-\",Dados!N344)","v":""},{"$f":"IF(ISERROR(Dados!O344),\"-\",Dados!O344)","v":""},{"$f":"IF(ISERROR(Dados!P344),\"-\",Dados!P344)","v":""},{"$f":"IF(ISERROR(Dados!Q344),\"-\",Dados!Q344)","v":""},{"$f":"IF(ISERROR(Dados!R344),\"-\",Dados!R344)","v":""},{"$f":"IF(ISERROR(Dados!S344),\"-\",Dados!S344)","v":""},{"$f":"IF(ISERROR(Dados!T344),\"-\",Dados!T344)","v":""},{"$f":"IF(ISERROR(Dados!U344),\"-\",Dados!U344)","v":""},{"$f":"IF(ISERROR(Dados!V344),\"-\",Dados!V344)","v":""},{"$f":"IF(ISERROR(Dados!W344),\"-\",Dados!W344)","v":""},{"$f":"IF(ISERROR(Dados!X344),\"-\",Dados!X344)","v":""},{"$f":"IF(ISERROR(Dados!Y344),\"-\",Dados!Y344)","v":""},{"$f":"IF(ISERROR(Dados!Z344),\"-\",Dados!Z344)","v":""},{"$f":"IF(ISERROR(Dados!AA344),\"-\",Dados!AA344)","v":""},{"$f":"IF(ISERROR(Dados!AB344),\"-\",Dados!AB344)","v":""},{"$f":"IF(ISERROR(Dados!AC344),\"-\",Dados!AC344)","v":""},{"$f":"IF(ISERROR(Dados!AD344),\"-\",Dados!AD344)","v":""},{"$f":"IF(ISERROR(Dados!AE344),\"-\",Dados!AE344)","v":""},{"$f":"IF(ISERROR(Dados!AF344),\"-\",Dados!AF344)","v":""},{"$f":"IF(ISERROR(Dados!AG344),\"-\",Dados!AG344)","v":""}]
[{"$f":"IF(ISERROR(Dados!A345),\"-\",Dados!A345)","v":""},{"$f":"IF(ISERROR(Dados!B345),\"-\",Dados!B345)","v":""},{"$f":"IF(ISERROR(Dados!C345),\"-\",Dados!C345)","v":""},{"$f":"IF(ISERROR(Dados!D345),\"-\",Dados!D345)","v":""},{"$f":"IF(ISERROR(Dados!E345),\"-\",Dados!E345)","v":""},{"$f":"IF(ISERROR(Dados!F345),\"-\",Dados!F345)","v":""},{"$f":"IF(ISERROR(Dados!G345),\"-\",Dados!G345)","v":""},{"$f":"IF(ISERROR(Dados!H345),\"-\",Dados!H345)","v":""},{"$f":"IF(ISERROR(Dados!I345),\"-\",Dados!I345)","v":""},{"$f":"IF(ISERROR(Dados!J345),\"-\",Dados!J345)","v":""},{"$f":"IF(ISERROR(Dados!K345),\"-\",Dados!K345)","v":""},{"$f":"IF(ISERROR(Dados!L345),\"-\",Dados!L345)","v":""},{"$f":"IF(ISERROR(Dados!M345),\"-\",Dados!M345)","v":""},{"$f":"IF(ISERROR(Dados!N345),\"-\",Dados!N345)","v":""},{"$f":"IF(ISERROR(Dados!O345),\"-\",Dados!O345)","v":""},{"$f":"IF(ISERROR(Dados!P345),\"-\",Dados!P345)","v":""},{"$f":"IF(ISERROR(Dados!Q345),\"-\",Dados!Q345)","v":""},{"$f":"IF(ISERROR(Dados!R345),\"-\",Dados!R345)","v":""},{"$f":"IF(ISERROR(Dados!S345),\"-\",Dados!S345)","v":""},{"$f":"IF(ISERROR(Dados!T345),\"-\",Dados!T345)","v":""},{"$f":"IF(ISERROR(Dados!U345),\"-\",Dados!U345)","v":""},{"$f":"IF(ISERROR(Dados!V345),\"-\",Dados!V345)","v":""},{"$f":"IF(ISERROR(Dados!W345),\"-\",Dados!W345)","v":""},{"$f":"IF(ISERROR(Dados!X345),\"-\",Dados!X345)","v":""},{"$f":"IF(ISERROR(Dados!Y345),\"-\",Dados!Y345)","v":""},{"$f":"IF(ISERROR(Dados!Z345),\"-\",Dados!Z345)","v":""},{"$f":"IF(ISERROR(Dados!AA345),\"-\",Dados!AA345)","v":""},{"$f":"IF(ISERROR(Dados!AB345),\"-\",Dados!AB345)","v":""},{"$f":"IF(ISERROR(Dados!AC345),\"-\",Dados!AC345)","v":""},{"$f":"IF(ISERROR(Dados!AD345),\"-\",Dados!AD345)","v":""},{"$f":"IF(ISERROR(Dados!AE345),\"-\",Dados!AE345)","v":""},{"$f":"IF(ISERROR(Dados!AF345),\"-\",Dados!AF345)","v":""},{"$f":"IF(ISERROR(Dados!AG345),\"-\",Dados!AG345)","v":""}]
[{"$f":"IF(ISERROR(Dados!A346),\"-\",Dados!A346)","v":""},{"$f":"IF(ISERROR(Dados!B346),\"-\",Dados!B346)","v":""},{"$f":"IF(ISERROR(Dados!C346),\"-\",Dados!C346)","v":""},{"$f":"IF(ISERROR(Dados!D346),\"-\",Dados!D346)","v":""},{"$f":"IF(ISERROR(Dados!E346),\"-\",Dados!E346)","v":""},{"$f":"IF(ISERROR(Dados!F346),\"-\",Dados!F346)","v":""},{"$f":"IF(ISERROR(Dados!G346),\"-\",Dados!G346)","v":""},{"$f":"IF(ISERROR(Dados!H346),\"-\",Dados!H346)","v":""},{"$f":"IF(ISERROR(Dados!I346),\"-\",Dados!I346)","v":""},{"$f":"IF(ISERROR(Dados!J346),\"-\",Dados!J346)","v":""},{"$f":"IF(ISERROR(Dados!K346),\"-\",Dados!K346)","v":""},{"$f":"IF(ISERROR(Dados!L346),\"-\",Dados!L346)","v":""},{"$f":"IF(ISERROR(Dados!M346),\"-\",Dados!M346)","v":""},{"$f":"IF(ISERROR(Dados!N346),\"-\",Dados!N346)","v":""},{"$f":"IF(ISERROR(Dados!O346),\"-\",Dados!O346)","v":""},{"$f":"IF(ISERROR(Dados!P346),\"-\",Dados!P346)","v":""},{"$f":"IF(ISERROR(Dados!Q346),\"-\",Dados!Q346)","v":""},{"$f":"IF(ISERROR(Dados!R346),\"-\",Dados!R346)","v":""},{"$f":"IF(ISERROR(Dados!S346),\"-\",Dados!S346)","v":""},{"$f":"IF(ISERROR(Dados!T346),\"-\",Dados!T346)","v":""},{"$f":"IF(ISERROR(Dados!U346),\"-\",Dados!U346)","v":""},{"$f":"IF(ISERROR(Dados!V346),\"-\",Dados!V346)","v":""},{"$f":"IF(ISERROR(Dados!W346),\"-\",Dados!W346)","v":""},{"$f":"IF(ISERROR(Dados!X346),\"-\",Dados!X346)","v":""},{"$f":"IF(ISERROR(Dados!Y346),\"-\",Dados!Y346)","v":""},{"$f":"IF(ISERROR(Dados!Z346),\"-\",Dados!Z346)","v":""},{"$f":"IF(ISERROR(Dados!AA346),\"-\",Dados!AA346)","v":""},{"$f":"IF(ISERROR(Dados!AB346),\"-\",Dados!AB346)","v":""},{"$f":"IF(ISERROR(Dados!AC346),\"-\",Dados!AC346)","v":""},{"$f":"IF(ISERROR(Dados!AD346),\"-\",Dados!AD346)","v":""},{"$f":"IF(ISERROR(Dados!AE346),\"-\",Dados!AE346)","v":""},{"$f":"IF(ISERROR(Dados!AF346),\"-\",Dados!AF346)","v":""},{"$f":"IF(ISERROR(Dados!AG346),\"-\",Dados!AG346)","v":""}]
[{"$f":"IF(ISERROR(Dados!A347),\"-\",Dados!A347)","v":""},{"$f":"IF(ISERROR(Dados!B347),\"-\",Dados!B347)","v":""},{"$f":"IF(ISERROR(Dados!C347),\"-\",Dados!C347)","v":""},{"$f":"IF(ISERROR(Dados!D347),\"-\",Dados!D347)","v":""},{"$f":"IF(ISERROR(Dados!E347),\"-\",Dados!E347)","v":""},{"$f":"IF(ISERROR(Dados!F347),\"-\",Dados!F347)","v":""},{"$f":"IF(ISERROR(Dados!G347),\"-\",Dados!G347)","v":""},{"$f":"IF(ISERROR(Dados!H347),\"-\",Dados!H347)","v":""},{"$f":"IF(ISERROR(Dados!I347),\"-\",Dados!I347)","v":""},{"$f":"IF(ISERROR(Dados!J347),\"-\",Dados!J347)","v":""},{"$f":"IF(ISERROR(Dados!K347),\"-\",Dados!K347)","v":""},{"$f":"IF(ISERROR(Dados!L347),\"-\",Dados!L347)","v":""},{"$f":"IF(ISERROR(Dados!M347),\"-\",Dados!M347)","v":""},{"$f":"IF(ISERROR(Dados!N347),\"-\",Dados!N347)","v":""},{"$f":"IF(ISERROR(Dados!O347),\"-\",Dados!O347)","v":""},{"$f":"IF(ISERROR(Dados!P347),\"-\",Dados!P347)","v":""},{"$f":"IF(ISERROR(Dados!Q347),\"-\",Dados!Q347)","v":""},{"$f":"IF(ISERROR(Dados!R347),\"-\",Dados!R347)","v":""},{"$f":"IF(ISERROR(Dados!S347),\"-\",Dados!S347)","v":""},{"$f":"IF(ISERROR(Dados!T347),\"-\",Dados!T347)","v":""},{"$f":"IF(ISERROR(Dados!U347),\"-\",Dados!U347)","v":""},{"$f":"IF(ISERROR(Dados!V347),\"-\",Dados!V347)","v":""},{"$f":"IF(ISERROR(Dados!W347),\"-\",Dados!W347)","v":""},{"$f":"IF(ISERROR(Dados!X347),\"-\",Dados!X347)","v":""},{"$f":"IF(ISERROR(Dados!Y347),\"-\",Dados!Y347)","v":""},{"$f":"IF(ISERROR(Dados!Z347),\"-\",Dados!Z347)","v":""},{"$f":"IF(ISERROR(Dados!AA347),\"-\",Dados!AA347)","v":""},{"$f":"IF(ISERROR(Dados!AB347),\"-\",Dados!AB347)","v":""},{"$f":"IF(ISERROR(Dados!AC347),\"-\",Dados!AC347)","v":""},{"$f":"IF(ISERROR(Dados!AD347),\"-\",Dados!AD347)","v":""},{"$f":"IF(ISERROR(Dados!AE347),\"-\",Dados!AE347)","v":""},{"$f":"IF(ISERROR(Dados!AF347),\"-\",Dados!AF347)","v":""},{"$f":"IF(ISERROR(Dados!AG347),\"-\",Dados!AG347)","v":""}]
[{"$f":"IF(ISERROR(Dados!A348),\"-\",Dados!A348)","v":""},{"$f":"IF(ISERROR(Dados!B348),\"-\",Dados!B348)","v":""},{"$f":"IF(ISERROR(Dados!C348),\"-\",Dados!C348)","v":""},{"$f":"IF(ISERROR(Dados!D348),\"-\",Dados!D348)","v":""},{"$f":"IF(ISERROR(Dados!E348),\"-\",Dados!E348)","v":""},{"$f":"IF(ISERROR(Dados!F348),\"-\",Dados!F348)","v":""},{"$f":"IF(ISERROR(Dados!G348),\"-\",Dados!G348)","v":""},{"$f":"IF(ISERROR(Dados!H348),\"-\",Dados!H348)","v":""},{"$f":"IF(ISERROR(Dados!I348),\"-\",Dados!I348)","v":""},{"$f":"IF(ISERROR(Dados!J348),\"-\",Dados!J348)","v":""},{"$f":"IF(ISERROR(Dados!K348),\"-\",Dados!K348)","v":""},{"$f":"IF(ISERROR(Dados!L348),\"-\",Dados!L348)","v":""},{"$f":"IF(ISERROR(Dados!M348),\"-\",Dados!M348)","v":""},{"$f":"IF(ISERROR(Dados!N348),\"-\",Dados!N348)","v":""},{"$f":"IF(ISERROR(Dados!O348),\"-\",Dados!O348)","v":""},{"$f":"IF(ISERROR(Dados!P348),\"-\",Dados!P348)","v":""},{"$f":"IF(ISERROR(Dados!Q348),\"-\",Dados!Q348)","v":""},{"$f":"IF(ISERROR(Dados!R348),\"-\",Dados!R348)","v":""},{"$f":"IF(ISERROR(Dados!S348),\"-\",Dados!S348)","v":""},{"$f":"IF(ISERROR(Dados!T348),\"-\",Dados!T348)","v":""},{"$f":"IF(ISERROR(Dados!U348),\"-\",Dados!U348)","v":""},{"$f":"IF(ISERROR(Dados!V348),\"-\",Dados!V348)","v":""},{"$f":"IF(ISERROR(Dados!W348),\"-\",Dados!W348)","v":""},{"$f":"IF(ISERROR(Dados!X348),\"-\",Dados!X348)","v":""},{"$f":"IF(ISERROR(Dados!Y348),\"-\",Dados!Y348)","v":""},{"$f":"IF(ISERROR(Dados!Z348),\"-\",Dados!Z348)","v":""},{"$f":"IF(ISERROR(Dados!AA348),\"-\",Dados!AA348)","v":""},{"$f":"IF(ISERROR(Dados!AB348),\"-\",Dados!AB348)","v":""},{"$f":"IF(ISERROR(Dados!AC348),\"-\",Dados!AC348)","v":""},{"$f":"IF(ISERROR(Dados!AD348),\"-\",Dados!AD348)","v":""},{"$f":"IF(ISERROR(Dados!AE348),\"-\",Dados!AE348)","v":""},{"$f":"IF(ISERROR(Dados!AF348),\"-\",Dados!AF348)","v":""},{"$f":"IF(ISERROR(Dados!AG348),\"-\",Dados!AG348)","v":""}]
[{"$f":"IF(ISERROR(Dados!A349),\"-\",Dados!A349)","v":""},{"$f":"IF(ISERROR(Dados!B349),\"-\",Dados!B349)","v":""},{"$f":"IF(ISERROR(Dados!C349),\"-\",Dados!C349)","v":""},{"$f":"IF(ISERROR(Dados!D349),\"-\",Dados!D349)","v":""},{"$f":"IF(ISERROR(Dados!E349),\"-\",Dados!E349)","v":""},{"$f":"IF(ISERROR(Dados!F349),\"-\",Dados!F349)","v":""},{"$f":"IF(ISERROR(Dados!G349),\"-\",Dados!G349)","v":""},{"$f":"IF(ISERROR(Dados!H349),\"-\",Dados!H349)","v":""},{"$f":"IF(ISERROR(Dados!I349),\"-\",Dados!I349)","v":""},{"$f":"IF(ISERROR(Dados!J349),\"-\",Dados!J349)","v":""},{"$f":"IF(ISERROR(Dados!K349),\"-\",Dados!K349)","v":""},{"$f":"IF(ISERROR(Dados!L349),\"-\",Dados!L349)","v":""},{"$f":"IF(ISERROR(Dados!M349),\"-\",Dados!M349)","v":""},{"$f":"IF(ISERROR(Dados!N349),\"-\",Dados!N349)","v":""},{"$f":"IF(ISERROR(Dados!O349),\"-\",Dados!O349)","v":""},{"$f":"IF(ISERROR(Dados!P349),\"-\",Dados!P349)","v":""},{"$f":"IF(ISERROR(Dados!Q349),\"-\",Dados!Q349)","v":""},{"$f":"IF(ISERROR(Dados!R349),\"-\",Dados!R349)","v":""},{"$f":"IF(ISERROR(Dados!S349),\"-\",Dados!S349)","v":""},{"$f":"IF(ISERROR(Dados!T349),\"-\",Dados!T349)","v":""},{"$f":"IF(ISERROR(Dados!U349),\"-\",Dados!U349)","v":""},{"$f":"IF(ISERROR(Dados!V349),\"-\",Dados!V349)","v":""},{"$f":"IF(ISERROR(Dados!W349),\"-\",Dados!W349)","v":""},{"$f":"IF(ISERROR(Dados!X349),\"-\",Dados!X349)","v":""},{"$f":"IF(ISERROR(Dados!Y349),\"-\",Dados!Y349)","v":""},{"$f":"IF(ISERROR(Dados!Z349),\"-\",Dados!Z349)","v":""},{"$f":"IF(ISERROR(Dados!AA349),\"-\",Dados!AA349)","v":""},{"$f":"IF(ISERROR(Dados!AB349),\"-\",Dados!AB349)","v":""},{"$f":"IF(ISERROR(Dados!AC349),\"-\",Dados!AC349)","v":""},{"$f":"IF(ISERROR(Dados!AD349),\"-\",Dados!AD349)","v":""},{"$f":"IF(ISERROR(Dados!AE349),\"-\",Dados!AE349)","v":""},{"$f":"IF(ISERROR(Dados!AF349),\"-\",Dados!AF349)","v":""},{"$f":"IF(ISERROR(Dados!AG349),\"-\",Dados!AG349)","v":""}]
[{"$f":"IF(ISERROR(Dados!A350),\"-\",Dados!A350)","v":""},{"$f":"IF(ISERROR(Dados!B350),\"-\",Dados!B350)","v":""},{"$f":"IF(ISERROR(Dados!C350),\"-\",Dados!C350)","v":""},{"$f":"IF(ISERROR(Dados!D350),\"-\",Dados!D350)","v":""},{"$f":"IF(ISERROR(Dados!E350),\"-\",Dados!E350)","v":""},{"$f":"IF(ISERROR(Dados!F350),\"-\",Dados!F350)","v":""},{"$f":"IF(ISERROR(Dados!G350),\"-\",Dados!G350)","v":""},{"$f":"IF(ISERROR(Dados!H350),\"-\",Dados!H350)","v":""},{"$f":"IF(ISERROR(Dados!I350),\"-\",Dados!I350)","v":""},{"$f":"IF(ISERROR(Dados!J350),\"-\",Dados!J350)","v":""},{"$f":"IF(ISERROR(Dados!K350),\"-\",Dados!K350)","v":""},{"$f":"IF(ISERROR(Dados!L350),\"-\",Dados!L350)","v":""},{"$f":"IF(ISERROR(Dados!M350),\"-\",Dados!M350)","v":""},{"$f":"IF(ISERROR(Dados!N350),\"-\",Dados!N350)","v":""},{"$f":"IF(ISERROR(Dados!O350),\"-\",Dados!O350)","v":""},{"$f":"IF(ISERROR(Dados!P350),\"-\",Dados!P350)","v":""},{"$f":"IF(ISERROR(Dados!Q350),\"-\",Dados!Q350)","v":""},{"$f":"IF(ISERROR(Dados!R350),\"-\",Dados!R350)","v":""},{"$f":"IF(ISERROR(Dados!S350),\"-\",Dados!S350)","v":""},{"$f":"IF(ISERROR(Dados!T350),\"-\",Dados!T350)","v":""},{"$f":"IF(ISERROR(Dados!U350),\"-\",Dados!U350)","v":""},{"$f":"IF(ISERROR(Dados!V350),\"-\",Dados!V350)","v":""},{"$f":"IF(ISERROR(Dados!W350),\"-\",Dados!W350)","v":""},{"$f":"IF(ISERROR(Dados!X350),\"-\",Dados!X350)","v":""},{"$f":"IF(ISERROR(Dados!Y350),\"-\",Dados!Y350)","v":""},{"$f":"IF(ISERROR(Dados!Z350),\"-\",Dados!Z350)","v":""},{"$f":"IF(ISERROR(Dados!AA350),\"-\",Dados!AA350)","v":""},{"$f":"IF(ISERROR(Dados!AB350),\"-\",Dados!AB350)","v":""},{"$f":"IF(ISERROR(Dados!AC350),\"-\",Dados!AC350)","v":""},{"$f":"IF(ISERROR(Dados!AD350),\"-\",Dados!AD350)","v":""},{"$f":"IF(ISERROR(Dados!AE350),\"-\",Dados!AE350)","v":""},{"$f":"IF(ISERROR(Dados!AF350),\"-\",Dados!AF350)","v":""},{"$f":"IF(ISERROR(Dados!AG350),\"-\",Dados!AG350)","v":""}]
[{"$f":"IF(ISERROR(Dados!A351),\"-\",Dados!A351)","v":""},{"$f":"IF(ISERROR(Dados!B351),\"-\",Dados!B351)","v":""},{"$f":"IF(ISERROR(Dados!C351),\"-\",Dados!C351)","v":""},{"$f":"IF(ISERROR(Dados!D351),\"-\",Dados!D351)","v":""},{"$f":"IF(ISERROR(Dados!E351),\"-\",Dados!E351)","v":""},{"$f":"IF(ISERROR(Dados!F351),\"-\",Dados!F351)","v":""},{"$f":"IF(ISERROR(Dados!G351),\"-\",Dados!G351)","v":""},{"$f":"IF(ISERROR(Dados!H351),\"-\",Dados!H351)","v":""},{"$f":"IF(ISERROR(Dados!I351),\"-\",Dados!I351)","v":""},{"$f":"IF(ISERROR(Dados!J351),\"-\",Dados!J351)","v":""},{"$f":"IF(ISERROR(Dados!K351),\"-\",Dados!K351)","v":""},{"$f":"IF(ISERROR(Dados!L351),\"-\",Dados!L351)","v":""},{"$f":"IF(ISERROR(Dados!M351),\"-\",Dados!M351)","v":""},{"$f":"IF(ISERROR(Dados!N351),\"-\",Dados!N351)","v":""},{"$f":"IF(ISERROR(Dados!O351),\"-\",Dados!O351)","v":""},{"$f":"IF(ISERROR(Dados!P351),\"-\",Dados!P351)","v":""},{"$f":"IF(ISERROR(Dados!Q351),\"-\",Dados!Q351)","v":""},{"$f":"IF(ISERROR(Dados!R351),\"-\",Dados!R351)","v":""},{"$f":"IF(ISERROR(Dados!S351),\"-\",Dados!S351)","v":""},{"$f":"IF(ISERROR(Dados!T351),\"-\",Dados!T351)","v":""},{"$f":"IF(ISERROR(Dados!U351),\"-\",Dados!U351)","v":""},{"$f":"IF(ISERROR(Dados!V351),\"-\",Dados!V351)","v":""},{"$f":"IF(ISERROR(Dados!W351),\"-\",Dados!W351)","v":""},{"$f":"IF(ISERROR(Dados!X351),\"-\",Dados!X351)","v":""},{"$f":"IF(ISERROR(Dados!Y351),\"-\",Dados!Y351)","v":""},{"$f":"IF(ISERROR(Dados!Z351),\"-\",Dados!Z351)","v":""},{"$f":"IF(ISERROR(Dados!AA351),\"-\",Dados!AA351)","v":""},{"$f":"IF(ISERROR(Dados!AB351),\"-\",Dados!AB351)","v":""},{"$f":"IF(ISERROR(Dados!AC351),\"-\",Dados!AC351)","v":""},{"$f":"IF(ISERROR(Dados!AD351),\"-\",Dados!AD351)","v":""},{"$f":"IF(ISERROR(Dados!AE351),\"-\",Dados!AE351)","v":""},{"$f":"IF(ISERROR(Dados!AF351),\"-\",Dados!AF351)","v":""},{"$f":"IF(ISERROR(Dados!AG351),\"-\",Dados!AG351)","v":""}]
[{"$f":"IF(ISERROR(Dados!A352),\"-\",Dados!A352)","v":""},{"$f":"IF(ISERROR(Dados!B352),\"-\",Dados!B352)","v":""},{"$f":"IF(ISERROR(Dados!C352),\"-\",Dados!C352)","v":""},{"$f":"IF(ISERROR(Dados!D352),\"-\",Dados!D352)","v":""},{"$f":"IF(ISERROR(Dados!E352),\"-\",Dados!E352)","v":""},{"$f":"IF(ISERROR(Dados!F352),\"-\",Dados!F352)","v":""},{"$f":"IF(ISERROR(Dados!G352),\"-\",Dados!G352)","v":""},{"$f":"IF(ISERROR(Dados!H352),\"-\",Dados!H352)","v":""},{"$f":"IF(ISERROR(Dados!I352),\"-\",Dados!I352)","v":""},{"$f":"IF(ISERROR(Dados!J352),\"-\",Dados!J352)","v":""},{"$f":"IF(ISERROR(Dados!K352),\"-\",Dados!K352)","v":""},{"$f":"IF(ISERROR(Dados!L352),\"-\",Dados!L352)","v":""},{"$f":"IF(ISERROR(Dados!M352),\"-\",Dados!M352)","v":""},{"$f":"IF(ISERROR(Dados!N352),\"-\",Dados!N352)","v":""},{"$f":"IF(ISERROR(Dados!O352),\"-\",Dados!O352)","v":""},{"$f":"IF(ISERROR(Dados!P352),\"-\",Dados!P352)","v":""},{"$f":"IF(ISERROR(Dados!Q352),\"-\",Dados!Q352)","v":""},{"$f":"IF(ISERROR(Dados!R352),\"-\",Dados!R352)","v":""},{"$f":"IF(ISERROR(Dados!S352),\"-\",Dados!S352)","v":""},{"$f":"IF(ISERROR(Dados!T352),\"-\",Dados!T352)","v":""},{"$f":"IF(ISERROR(Dados!U352),\"-\",Dados!U352)","v":""},{"$f":"IF(ISERROR(Dados!V352),\"-\",Dados!V352)","v":""},{"$f":"IF(ISERROR(Dados!W352),\"-\",Dados!W352)","v":""},{"$f":"IF(ISERROR(Dados!X352),\"-\",Dados!X352)","v":""},{"$f":"IF(ISERROR(Dados!Y352),\"-\",Dados!Y352)","v":""},{"$f":"IF(ISERROR(Dados!Z352),\"-\",Dados!Z352)","v":""},{"$f":"IF(ISERROR(Dados!AA352),\"-\",Dados!AA352)","v":""},{"$f":"IF(ISERROR(Dados!AB352),\"-\",Dados!AB352)","v":""},{"$f":"IF(ISERROR(Dados!AC352),\"-\",Dados!AC352)","v":""},{"$f":"IF(ISERROR(Dados!AD352),\"-\",Dados!AD352)","v":""},{"$f":"IF(ISERROR(Dados!AE352),\"-\",Dados!AE352)","v":""},{"$f":"IF(ISERROR(Dados!AF352),\"-\",Dados!AF352)","v":""},{"$f":"IF(ISERROR(Dados!AG352),\"-\",Dados!AG352)","v":""}]
[{"$f":"IF(ISERROR(Dados!A353),\"-\",Dados!A353)","v":""},{"$f":"IF(ISERROR(Dados!B353),\"-\",Dados!B353)","v":""},{"$f":"IF(ISERROR(Dados!C353),\"-\",Dados!C353)","v":""},{"$f":"IF(ISERROR(Dados!D353),\"-\",Dados!D353)","v":""},{"$f":"IF(ISERROR(Dados!E353),\"-\",Dados!E353)","v":""},{"$f":"IF(ISERROR(Dados!F353),\"-\",Dados!F353)","v":""},{"$f":"IF(ISERROR(Dados!G353),\"-\",Dados!G353)","v":""},{"$f":"IF(ISERROR(Dados!H353),\"-\",Dados!H353)","v":""},{"$f":"IF(ISERROR(Dados!I353),\"-\",Dados!I353)","v":""},{"$f":"IF(ISERROR(Dados!J353),\"-\",Dados!J353)","v":""},{"$f":"IF(ISERROR(Dados!K353),\"-\",Dados!K353)","v":""},{"$f":"IF(ISERROR(Dados!L353),\"-\",Dados!L353)","v":""},{"$f":"IF(ISERROR(Dados!M353),\"-\",Dados!M353)","v":""},{"$f":"IF(ISERROR(Dados!N353),\"-\",Dados!N353)","v":""},{"$f":"IF(ISERROR(Dados!O353),\"-\",Dados!O353)","v":""},{"$f":"IF(ISERROR(Dados!P353),\"-\",Dados!P353)","v":""},{"$f":"IF(ISERROR(Dados!Q353),\"-\",Dados!Q353)","v":""},{"$f":"IF(ISERROR(Dados!R353),\"-\",Dados!R353)","v":""},{"$f":"IF(ISERROR(Dados!S353),\"-\",Dados!S353)","v":""},{"$f":"IF(ISERROR(Dados!T353),\"-\",Dados!T353)","v":""},{"$f":"IF(ISERROR(Dados!U353),\"-\",Dados!U353)","v":""},{"$f":"IF(ISERROR(Dados!V353),\"-\",Dados!V353)","v":""},{"$f":"IF(ISERROR(Dados!W353),\"-\",Dados!W353)","v":""},{"$f":"IF(ISERROR(Dados!X353),\"-\",Dados!X353)","v":""},{"$f":"IF(ISERROR(Dados!Y353),\"-\",Dados!Y353)","v":""},{"$f":"IF(ISERROR(Dados!Z353),\"-\",Dados!Z353)","v":""},{"$f":"IF(ISERROR(Dados!AA353),\"-\",Dados!AA353)","v":""},{"$f":"IF(ISERROR(Dados!AB353),\"-\",Dados!AB353)","v":""},{"$f":"IF(ISERROR(Dados!AC353),\"-\",Dados!AC353)","v":""},{"$f":"IF(ISERROR(Dados!AD353),\"-\",Dados!AD353)","v":""},{"$f":"IF(ISERROR(Dados!AE353),\"-\",Dados!AE353)","v":""},{"$f":"IF(ISERROR(Dados!AF353),\"-\",Dados!AF353)","v":""},{"$f":"IF(ISERROR(Dados!AG353),\"-\",Dados!AG353)","v":""}]
[{"$f":"IF(ISERROR(Dados!A354),\"-\",Dados!A354)","v":""},{"$f":"IF(ISERROR(Dados!B354),\"-\",Dados!B354)","v":""},{"$f":"IF(ISERROR(Dados!C354),\"-\",Dados!C354)","v":""},{"$f":"IF(ISERROR(Dados!D354),\"-\",Dados!D354)","v":""},{"$f":"IF(ISERROR(Dados!E354),\"-\",Dados!E354)","v":""},{"$f":"IF(ISERROR(Dados!F354),\"-\",Dados!F354)","v":""},{"$f":"IF(ISERROR(Dados!G354),\"-\",Dados!G354)","v":""},{"$f":"IF(ISERROR(Dados!H354),\"-\",Dados!H354)","v":""},{"$f":"IF(ISERROR(Dados!I354),\"-\",Dados!I354)","v":""},{"$f":"IF(ISERROR(Dados!J354),\"-\",Dados!J354)","v":""},{"$f":"IF(ISERROR(Dados!K354),\"-\",Dados!K354)","v":""},{"$f":"IF(ISERROR(Dados!L354),\"-\",Dados!L354)","v":""},{"$f":"IF(ISERROR(Dados!M354),\"-\",Dados!M354)","v":""},{"$f":"IF(ISERROR(Dados!N354),\"-\",Dados!N354)","v":""},{"$f":"IF(ISERROR(Dados!O354),\"-\",Dados!O354)","v":""},{"$f":"IF(ISERROR(Dados!P354),\"-\",Dados!P354)","v":""},{"$f":"IF(ISERROR(Dados!Q354),\"-\",Dados!Q354)","v":""},{"$f":"IF(ISERROR(Dados!R354),\"-\",Dados!R354)","v":""},{"$f":"IF(ISERROR(Dados!S354),\"-\",Dados!S354)","v":""},{"$f":"IF(ISERROR(Dados!T354),\"-\",Dados!T354)","v":""},{"$f":"IF(ISERROR(Dados!U354),\"-\",Dados!U354)","v":""},{"$f":"IF(ISERROR(Dados!V354),\"-\",Dados!V354)","v":""},{"$f":"IF(ISERROR(Dados!W354),\"-\",Dados!W354)","v":""},{"$f":"IF(ISERROR(Dados!X354),\"-\",Dados!X354)","v":""},{"$f":"IF(ISERROR(Dados!Y354),\"-\",Dados!Y354)","v":""},{"$f":"IF(ISERROR(Dados!Z354),\"-\",Dados!Z354)","v":""},{"$f":"IF(ISERROR(Dados!AA354),\"-\",Dados!AA354)","v":""},{"$f":"IF(ISERROR(Dados!AB354),\"-\",Dados!AB354)","v":""},{"$f":"IF(ISERROR(Dados!AC354),\"-\",Dados!AC354)","v":""},{"$f":"IF(ISERROR(Dados!AD354),\"-\",Dados!AD354)","v":""},{"$f":"IF(ISERROR(Dados!AE354),\"-\",Dados!AE354)","v":""},{"$f":"IF(ISERROR(Dados!AF354),\"-\",Dados!AF354)","v":""},{"$f":"IF(ISERROR(Dados!AG354),\"-\",Dados!AG354)","v":""}]
[{"$f":"IF(ISERROR(Dados!A355),\"-\",Dados!A355)","v":""},{"$f":"IF(ISERROR(Dados!B355),\"-\",Dados!B355)","v":""},{"$f":"IF(ISERROR(Dados!C355),\"-\",Dados!C355)","v":""},{"$f":"IF(ISERROR(Dados!D355),\"-\",Dados!D355)","v":""},{"$f":"IF(ISERROR(Dados!E355),\"-\",Dados!E355)","v":""},{"$f":"IF(ISERROR(Dados!F355),\"-\",Dados!F355)","v":""},{"$f":"IF(ISERROR(Dados!G355),\"-\",Dados!G355)","v":""},{"$f":"IF(ISERROR(Dados!H355),\"-\",Dados!H355)","v":""},{"$f":"IF(ISERROR(Dados!I355),\"-\",Dados!I355)","v":""},{"$f":"IF(ISERROR(Dados!J355),\"-\",Dados!J355)","v":""},{"$f":"IF(ISERROR(Dados!K355),\"-\",Dados!K355)","v":""},{"$f":"IF(ISERROR(Dados!L355),\"-\",Dados!L355)","v":""},{"$f":"IF(ISERROR(Dados!M355),\"-\",Dados!M355)","v":""},{"$f":"IF(ISERROR(Dados!N355),\"-\",Dados!N355)","v":""},{"$f":"IF(ISERROR(Dados!O355),\"-\",Dados!O355)","v":""},{"$f":"IF(ISERROR(Dados!P355),\"-\",Dados!P355)","v":""},{"$f":"IF(ISERROR(Dados!Q355),\"-\",Dados!Q355)","v":""},{"$f":"IF(ISERROR(Dados!R355),\"-\",Dados!R355)","v":""},{"$f":"IF(ISERROR(Dados!S355),\"-\",Dados!S355)","v":""},{"$f":"IF(ISERROR(Dados!T355),\"-\",Dados!T355)","v":""},{"$f":"IF(ISERROR(Dados!U355),\"-\",Dados!U355)","v":""},{"$f":"IF(ISERROR(Dados!V355),\"-\",Dados!V355)","v":""},{"$f":"IF(ISERROR(Dados!W355),\"-\",Dados!W355)","v":""},{"$f":"IF(ISERROR(Dados!X355),\"-\",Dados!X355)","v":""},{"$f":"IF(ISERROR(Dados!Y355),\"-\",Dados!Y355)","v":""},{"$f":"IF(ISERROR(Dados!Z355),\"-\",Dados!Z355)","v":""},{"$f":"IF(ISERROR(Dados!AA355),\"-\",Dados!AA355)","v":""},{"$f":"IF(ISERROR(Dados!AB355),\"-\",Dados!AB355)","v":""},{"$f":"IF(ISERROR(Dados!AC355),\"-\",Dados!AC355)","v":""},{"$f":"IF(ISERROR(Dados!AD355),\"-\",Dados!AD355)","v":""},{"$f":"IF(ISERROR(Dados!AE355),\"-\",Dados!AE355)","v":""},{"$f":"IF(ISERROR(Dados!AF355),\"-\",Dados!AF355)","v":""},{"$f":"IF(ISERROR(Dados!AG355),\"-\",Dados!AG355)","v":""}]
[{"$f":"IF(ISERROR(Dados!A356),\"-\",Dados!A356)","v":""},{"$f":"IF(ISERROR(Dados!B356),\"-\",Dados!B356)","v":""},{"$f":"IF(ISERROR(Dados!C356),\"-\",Dados!C356)","v":""},{"$f":"IF(ISERROR(Dados!D356),\"-\",Dados!D356)","v":""},{"$f":"IF(ISERROR(Dados!E356),\"-\",Dados!E356)","v":""},{"$f":"IF(ISERROR(Dados!F356),\"-\",Dados!F356)","v":""},{"$f":"IF(ISERROR(Dados!G356),\"-\",Dados!G356)","v":""},{"$f":"IF(ISERROR(Dados!H356),\"-\",Dados!H356)","v":""},{"$f":"IF(ISERROR(Dados!I356),\"-\",Dados!I356)","v":""},{"$f":"IF(ISERROR(Dados!J356),\"-\",Dados!J356)","v":""},{"$f":"IF(ISERROR(Dados!K356),\"-\",Dados!K356)","v":""},{"$f":"IF(ISERROR(Dados!L356),\"-\",Dados!L356)","v":""},{"$f":"IF(ISERROR(Dados!M356),\"-\",Dados!M356)","v":""},{"$f":"IF(ISERROR(Dados!N356),\"-\",Dados!N356)","v":""},{"$f":"IF(ISERROR(Dados!O356),\"-\",Dados!O356)","v":""},{"$f":"IF(ISERROR(Dados!P356),\"-\",Dados!P356)","v":""},{"$f":"IF(ISERROR(Dados!Q356),\"-\",Dados!Q356)","v":""},{"$f":"IF(ISERROR(Dados!R356),\"-\",Dados!R356)","v":""},{"$f":"IF(ISERROR(Dados!S356),\"-\",Dados!S356)","v":""},{"$f":"IF(ISERROR(Dados!T356),\"-\",Dados!T356)","v":""},{"$f":"IF(ISERROR(Dados!U356),\"-\",Dados!U356)","v":""},{"$f":"IF(ISERROR(Dados!V356),\"-\",Dados!V356)","v":""},{"$f":"IF(ISERROR(Dados!W356),\"-\",Dados!W356)","v":""},{"$f":"IF(ISERROR(Dados!X356),\"-\",Dados!X356)","v":""},{"$f":"IF(ISERROR(Dados!Y356),\"-\",Dados!Y356)","v":""},{"$f":"IF(ISERROR(Dados!Z356),\"-\",Dados!Z356)","v":""},{"$f":"IF(ISERROR(Dados!AA356),\"-\",Dados!AA356)","v":""},{"$f":"IF(ISERROR(Dados!AB356),\"-\",Dados!AB356)","v":""},{"$f":"IF(ISERROR(Dados!AC356),\"-\",Dados!AC356)","v":""},{"$f":"IF(ISERROR(Dados!AD356),\"-\",Dados!AD356)","v":""},{"$f":"IF(ISERROR(Dados!AE356),\"-\",Dados!AE356)","v":""},{"$f":"IF(ISERROR(Dados!AF356),\"-\",Dados!AF356)","v":""},{"$f":"IF(ISERROR(Dados!AG356),\"-\",Dados!AG356)","v":""}]
[{"$f":"IF(ISERROR(Dados!A357),\"-\",Dados!A357)","v":""},{"$f":"IF(ISERROR(Dados!B357),\"-\",Dados!B357)","v":""},{"$f":"IF(ISERROR(Dados!C357),\"-\",Dados!C357)","v":""},{"$f":"IF(ISERROR(Dados!D357),\"-\",Dados!D357)","v":""},{"$f":"IF(ISERROR(Dados!E357),\"-\",Dados!E357)","v":""},{"$f":"IF(ISERROR(Dados!F357),\"-\",Dados!F357)","v":""},{"$f":"IF(ISERROR(Dados!G357),\"-\",Dados!G357)","v":""},{"$f":"IF(ISERROR(Dados!H357),\"-\",Dados!H357)","v":""},{"$f":"IF(ISERROR(Dados!I357),\"-\",Dados!I357)","v":""},{"$f":"IF(ISERROR(Dados!J357),\"-\",Dados!J357)","v":""},{"$f":"IF(ISERROR(Dados!K357),\"-\",Dados!K357)","v":""},{"$f":"IF(ISERROR(Dados!L357),\"-\",Dados!L357)","v":""},{"$f":"IF(ISERROR(Dados!M357),\"-\",Dados!M357)","v":""},{"$f":"IF(ISERROR(Dados!N357),\"-\",Dados!N357)","v":""},{"$f":"IF(ISERROR(Dados!O357),\"-\",Dados!O357)","v":""},{"$f":"IF(ISERROR(Dados!P357),\"-\",Dados!P357)","v":""},{"$f":"IF(ISERROR(Dados!Q357),\"-\",Dados!Q357)","v":""},{"$f":"IF(ISERROR(Dados!R357),\"-\",Dados!R357)","v":""},{"$f":"IF(ISERROR(Dados!S357),\"-\",Dados!S357)","v":""},{"$f":"IF(ISERROR(Dados!T357),\"-\",Dados!T357)","v":""},{"$f":"IF(ISERROR(Dados!U357),\"-\",Dados!U357)","v":""},{"$f":"IF(ISERROR(Dados!V357),\"-\",Dados!V357)","v":""},{"$f":"IF(ISERROR(Dados!W357),\"-\",Dados!W357)","v":""},{"$f":"IF(ISERROR(Dados!X357),\"-\",Dados!X357)","v":""},{"$f":"IF(ISERROR(Dados!Y357),\"-\",Dados!Y357)","v":""},{"$f":"IF(ISERROR(Dados!Z357),\"-\",Dados!Z357)","v":""},{"$f":"IF(ISERROR(Dados!AA357),\"-\",Dados!AA357)","v":""},{"$f":"IF(ISERROR(Dados!AB357),\"-\",Dados!AB357)","v":""},{"$f":"IF(ISERROR(Dados!AC357),\"-\",Dados!AC357)","v":""},{"$f":"IF(ISERROR(Dados!AD357),\"-\",Dados!AD357)","v":""},{"$f":"IF(ISERROR(Dados!AE357),\"-\",Dados!AE357)","v":""},{"$f":"IF(ISERROR(Dados!AF357),\"-\",Dados!AF357)","v":""},{"$f":"IF(ISERROR(Dados!AG357),\"-\",Dados!AG357)","v":""}]
[{"$f":"IF(ISERROR(Dados!A358),\"-\",Dados!A358)","v":""},{"$f":"IF(ISERROR(Dados!B358),\"-\",Dados!B358)","v":""},{"$f":"IF(ISERROR(Dados!C358),\"-\",Dados!C358)","v":""},{"$f":"IF(ISERROR(Dados!D358),\"-\",Dados!D358)","v":""},{"$f":"IF(ISERROR(Dados!E358),\"-\",Dados!E358)","v":""},{"$f":"IF(ISERROR(Dados!F358),\"-\",Dados!F358)","v":""},{"$f":"IF(ISERROR(Dados!G358),\"-\",Dados!G358)","v":""},{"$f":"IF(ISERROR(Dados!H358),\"-\",Dados!H358)","v":""},{"$f":"IF(ISERROR(Dados!I358),\"-\",Dados!I358)","v":""},{"$f":"IF(ISERROR(Dados!J358),\"-\",Dados!J358)","v":""},{"$f":"IF(ISERROR(Dados!K358),\"-\",Dados!K358)","v":""},{"$f":"IF(ISERROR(Dados!L358),\"-\",Dados!L358)","v":""},{"$f":"IF(ISERROR(Dados!M358),\"-\",Dados!M358)","v":""},{"$f":"IF(ISERROR(Dados!N358),\"-\",Dados!N358)","v":""},{"$f":"IF(ISERROR(Dados!O358),\"-\",Dados!O358)","v":""},{"$f":"IF(ISERROR(Dados!P358),\"-\",Dados!P358)","v":""},{"$f":"IF(ISERROR(Dados!Q358),\"-\",Dados!Q358)","v":""},{"$f":"IF(ISERROR(Dados!R358),\"-\",Dados!R358)","v":""},{"$f":"IF(ISERROR(Dados!S358),\"-\",Dados!S358)","v":""},{"$f":"IF(ISERROR(Dados!T358),\"-\",Dados!T358)","v":""},{"$f":"IF(ISERROR(Dados!U358),\"-\",Dados!U358)","v":""},{"$f":"IF(ISERROR(Dados!V358),\"-\",Dados!V358)","v":""},{"$f":"IF(ISERROR(Dados!W358),\"-\",Dados!W358)","v":""},{"$f":"IF(ISERROR(Dados!X358),\"-\",Dados!X358)","v":""},{"$f":"IF(ISERROR(Dados!Y358),\"-\",Dados!Y358)","v":""},{"$f":"IF(ISERROR(Dados!Z358),\"-\",Dados!Z358)","v":""},{"$f":"IF(ISERROR(Dados!AA358),\"-\",Dados!AA358)","v":""},{"$f":"IF(ISERROR(Dados!AB358),\"-\",Dados!AB358)","v":""},{"$f":"IF(ISERROR(Dados!AC358),\"-\",Dados!AC358)","v":""},{"$f":"IF(ISERROR(Dados!AD358),\"-\",Dados!AD358)","v":""},{"$f":"IF(ISERROR(Dados!AE358),\"-\",Dados!AE358)","v":""},{"$f":"IF(ISERROR(Dados!AF358),\"-\",Dados!AF358)","v":""},{"$f":"IF(ISERROR(Dados!AG358),\"-\",Dados!AG358)","v":""}]
[{"$f":"IF(ISERROR(Dados!A359),\"-\",Dados!A359)","v":""},{"$f":"IF(ISERROR(Dados!B359),\"-\",Dados!B359)","v":""},{"$f":"IF(ISERROR(Dados!C359),\"-\",Dados!C359)","v":""},{"$f":"IF(ISERROR(Dados!D359),\"-\",Dados!D359)","v":""},{"$f":"IF(ISERROR(Dados!E359),\"-\",Dados!E359)","v":""},{"$f":"IF(ISERROR(Dados!F359),\"-\",Dados!F359)","v":""},{"$f":"IF(ISERROR(Dados!G359),\"-\",Dados!G359)","v":""},{"$f":"IF(ISERROR(Dados!H359),\"-\",Dados!H359)","v":""},{"$f":"IF(ISERROR(Dados!I359),\"-\",Dados!I359)","v":""},{"$f":"IF(ISERROR(Dados!J359),\"-\",Dados!J359)","v":""},{"$f":"IF(ISERROR(Dados!K359),\"-\",Dados!K359)","v":""},{"$f":"IF(ISERROR(Dados!L359),\"-\",Dados!L359)","v":""},{"$f":"IF(ISERROR(Dados!M359),\"-\",Dados!M359)","v":""},{"$f":"IF(ISERROR(Dados!N359),\"-\",Dados!N359)","v":""},{"$f":"IF(ISERROR(Dados!O359),\"-\",Dados!O359)","v":""},{"$f":"IF(ISERROR(Dados!P359),\"-\",Dados!P359)","v":""},{"$f":"IF(ISERROR(Dados!Q359),\"-\",Dados!Q359)","v":""},{"$f":"IF(ISERROR(Dados!R359),\"-\",Dados!R359)","v":""},{"$f":"IF(ISERROR(Dados!S359),\"-\",Dados!S359)","v":""},{"$f":"IF(ISERROR(Dados!T359),\"-\",Dados!T359)","v":""},{"$f":"IF(ISERROR(Dados!U359),\"-\",Dados!U359)","v":""},{"$f":"IF(ISERROR(Dados!V359),\"-\",Dados!V359)","v":""},{"$f":"IF(ISERROR(Dados!W359),\"-\",Dados!W359)","v":""},{"$f":"IF(ISERROR(Dados!X359),\"-\",Dados!X359)","v":""},{"$f":"IF(ISERROR(Dados!Y359),\"-\",Dados!Y359)","v":""},{"$f":"IF(ISERROR(Dados!Z359),\"-\",Dados!Z359)","v":""},{"$f":"IF(ISERROR(Dados!AA359),\"-\",Dados!AA359)","v":""},{"$f":"IF(ISERROR(Dados!AB359),\"-\",Dados!AB359)","v":""},{"$f":"IF(ISERROR(Dados!AC359),\"-\",Dados!AC359)","v":""},{"$f":"IF(ISERROR(Dados!AD359),\"-\",Dados!AD359)","v":""},{"$f":"IF(ISERROR(Dados!AE359),\"-\",Dados!AE359)","v":""},{"$f":"IF(ISERROR(Dados!AF359),\"-\",Dados!AF359)","v":""},{"$f":"IF(ISERROR(Dados!AG359),\"-\",Dados!AG359)","v":""}]
[{"$f":"IF(ISERROR(Dados!A360),\"-\",Dados!A360)","v":""},{"$f":"IF(ISERROR(Dados!B360),\"-\",Dados!B360)","v":""},{"$f":"IF(ISERROR(Dados!C360),\"-\",Dados!C360)","v":""},{"$f":"IF(ISERROR(Dados!D360),\"-\",Dados!D360)","v":""},{"$f":"IF(ISERROR(Dados!E360),\"-\",Dados!E360)","v":""},{"$f":"IF(ISERROR(Dados!F360),\"-\",Dados!F360)","v":""},{"$f":"IF(ISERROR(Dados!G360),\"-\",Dados!G360)","v":""},{"$f":"IF(ISERROR(Dados!H360),\"-\",Dados!H360)","v":""},{"$f":"IF(ISERROR(Dados!I360),\"-\",Dados!I360)","v":""},{"$f":"IF(ISERROR(Dados!J360),\"-\",Dados!J360)","v":""},{"$f":"IF(ISERROR(Dados!K360),\"-\",Dados!K360)","v":""},{"$f":"IF(ISERROR(Dados!L360),\"-\",Dados!L360)","v":""},{"$f":"IF(ISERROR(Dados!M360),\"-\",Dados!M360)","v":""},{"$f":"IF(ISERROR(Dados!N360),\"-\",Dados!N360)","v":""},{"$f":"IF(ISERROR(Dados!O360),\"-\",Dados!O360)","v":""},{"$f":"IF(ISERROR(Dados!P360),\"-\",Dados!P360)","v":""},{"$f":"IF(ISERROR(Dados!Q360),\"-\",Dados!Q360)","v":""},{"$f":"IF(ISERROR(Dados!R360),\"-\",Dados!R360)","v":""},{"$f":"IF(ISERROR(Dados!S360),\"-\",Dados!S360)","v":""},{"$f":"IF(ISERROR(Dados!T360),\"-\",Dados!T360)","v":""},{"$f":"IF(ISERROR(Dados!U360),\"-\",Dados!U360)","v":""},{"$f":"IF(ISERROR(Dados!V360),\"-\",Dados!V360)","v":""},{"$f":"IF(ISERROR(Dados!W360),\"-\",Dados!W360)","v":""},{"$f":"IF(ISERROR(Dados!X360),\"-\",Dados!X360)","v":""},{"$f":"IF(ISERROR(Dados!Y360),\"-\",Dados!Y360)","v":""},{"$f":"IF(ISERROR(Dados!Z360),\"-\",Dados!Z360)","v":""},{"$f":"IF(ISERROR(Dados!AA360),\"-\",Dados!AA360)","v":""},{"$f":"IF(ISERROR(Dados!AB360),\"-\",Dados!AB360)","v":""},{"$f":"IF(ISERROR(Dados!AC360),\"-\",Dados!AC360)","v":""},{"$f":"IF(ISERROR(Dados!AD360),\"-\",Dados!AD360)","v":""},{"$f":"IF(ISERROR(Dados!AE360),\"-\",Dados!AE360)","v":""},{"$f":"IF(ISERROR(Dados!AF360),\"-\",Dados!AF360)","v":""},{"$f":"IF(ISERROR(Dados!AG360),\"-\",Dados!AG360)","v":""}]
[{"$f":"IF(ISERROR(Dados!A361),\"-\",Dados!A361)","v":""},{"$f":"IF(ISERROR(Dados!B361),\"-\",Dados!B361)","v":""},{"$f":"IF(ISERROR(Dados!C361),\"-\",Dados!C361)","v":""},{"$f":"IF(ISERROR(Dados!D361),\"-\",Dados!D361)","v":""},{"$f":"IF(ISERROR(Dados!E361),\"-\",Dados!E361)","v":""},{"$f":"IF(ISERROR(Dados!F361),\"-\",Dados!F361)","v":""},{"$f":"IF(ISERROR(Dados!G361),\"-\",Dados!G361)","v":""},{"$f":"IF(ISERROR(Dados!H361),\"-\",Dados!H361)","v":""},{"$f":"IF(ISERROR(Dados!I361),\"-\",Dados!I361)","v":""},{"$f":"IF(ISERROR(Dados!J361),\"-\",Dados!J361)","v":""},{"$f":"IF(ISERROR(Dados!K361),\"-\",Dados!K361)","v":""},{"$f":"IF(ISERROR(Dados!L361),\"-\",Dados!L361)","v":""},{"$f":"IF(ISERROR(Dados!M361),\"-\",Dados!M361)","v":""},{"$f":"IF(ISERROR(Dados!N361),\"-\",Dados!N361)","v":""},{"$f":"IF(ISERROR(Dados!O361),\"-\",Dados!O361)","v":""},{"$f":"IF(ISERROR(Dados!P361),\"-\",Dados!P361)","v":""},{"$f":"IF(ISERROR(Dados!Q361),\"-\",Dados!Q361)","v":""},{"$f":"IF(ISERROR(Dados!R361),\"-\",Dados!R361)","v":""},{"$f":"IF(ISERROR(Dados!S361),\"-\",Dados!S361)","v":""},{"$f":"IF(ISERROR(Dados!T361),\"-\",Dados!T361)","v":""},{"$f":"IF(ISERROR(Dados!U361),\"-\",Dados!U361)","v":""},{"$f":"IF(ISERROR(Dados!V361),\"-\",Dados!V361)","v":""},{"$f":"IF(ISERROR(Dados!W361),\"-\",Dados!W361)","v":""},{"$f":"IF(ISERROR(Dados!X361),\"-\",Dados!X361)","v":""},{"$f":"IF(ISERROR(Dados!Y361),\"-\",Dados!Y361)","v":""},{"$f":"IF(ISERROR(Dados!Z361),\"-\",Dados!Z361)","v":""},{"$f":"IF(ISERROR(Dados!AA361),\"-\",Dados!AA361)","v":""},{"$f":"IF(ISERROR(Dados!AB361),\"-\",Dados!AB361)","v":""},{"$f":"IF(ISERROR(Dados!AC361),\"-\",Dados!AC361)","v":""},{"$f":"IF(ISERROR(Dados!AD361),\"-\",Dados!AD361)","v":""},{"$f":"IF(ISERROR(Dados!AE361),\"-\",Dados!AE361)","v":""},{"$f":"IF(ISERROR(Dados!AF361),\"-\",Dados!AF361)","v":""},{"$f":"IF(ISERROR(Dados!AG361),\"-\",Dados!AG361)","v":""}]
[{"$f":"IF(ISERROR(Dados!A362),\"-\",Dados!A362)","v":""},{"$f":"IF(ISERROR(Dados!B362),\"-\",Dados!B362)","v":""},{"$f":"IF(ISERROR(Dados!C362),\"-\",Dados!C362)","v":""},{"$f":"IF(ISERROR(Dados!D362),\"-\",Dados!D362)","v":""},{"$f":"IF(ISERROR(Dados!E362),\"-\",Dados!E362)","v":""},{"$f":"IF(ISERROR(Dados!F362),\"-\",Dados!F362)","v":""},{"$f":"IF(ISERROR(Dados!G362),\"-\",Dados!G362)","v":""},{"$f":"IF(ISERROR(Dados!H362),\"-\",Dados!H362)","v":""},{"$f":"IF(ISERROR(Dados!I362),\"-\",Dados!I362)","v":""},{"$f":"IF(ISERROR(Dados!J362),\"-\",Dados!J362)","v":""},{"$f":"IF(ISERROR(Dados!K362),\"-\",Dados!K362)","v":""},{"$f":"IF(ISERROR(Dados!L362),\"-\",Dados!L362)","v":""},{"$f":"IF(ISERROR(Dados!M362),\"-\",Dados!M362)","v":""},{"$f":"IF(ISERROR(Dados!N362),\"-\",Dados!N362)","v":""},{"$f":"IF(ISERROR(Dados!O362),\"-\",Dados!O362)","v":""},{"$f":"IF(ISERROR(Dados!P362),\"-\",Dados!P362)","v":""},{"$f":"IF(ISERROR(Dados!Q362),\"-\",Dados!Q362)","v":""},{"$f":"IF(ISERROR(Dados!R362),\"-\",Dados!R362)","v":""},{"$f":"IF(ISERROR(Dados!S362),\"-\",Dados!S362)","v":""},{"$f":"IF(ISERROR(Dados!T362),\"-\",Dados!T362)","v":""},{"$f":"IF(ISERROR(Dados!U362),\"-\",Dados!U362)","v":""},{"$f":"IF(ISERROR(Dados!V362),\"-\",Dados!V362)","v":""},{"$f":"IF(ISERROR(Dados!W362),\"-\",Dados!W362)","v":""},{"$f":"IF(ISERROR(Dados!X362),\"-\",Dados!X362)","v":""},{"$f":"IF(ISERROR(Dados!Y362),\"-\",Dados!Y362)","v":""},{"$f":"IF(ISERROR(Dados!Z362),\"-\",Dados!Z362)","v":""},{"$f":"IF(ISERROR(Dados!AA362),\"-\",Dados!AA362)","v":""},{"$f":"IF(ISERROR(Dados!AB362),\"-\",Dados!AB362)","v":""},{"$f":"IF(ISERROR(Dados!AC362),\"-\",Dados!AC362)","v":""},{"$f":"IF(ISERROR(Dados!AD362),\"-\",Dados!AD362)","v":""},{"$f":"IF(ISERROR(Dados!AE362),\"-\",Dados!AE362)","v":""},{"$f":"IF(ISERROR(Dados!AF362),\"-\",Dados!AF362)","v":""},{"$f":"IF(ISERROR(Dados!AG362),\"-\",Dados!AG362)","v":""}]
[{"$f":"IF(ISERROR(Dados!A363),\"-\",Dados!A363)","v":""},{"$f":"IF(ISERROR(Dados!B363),\"-\",Dados!B363)","v":""},{"$f":"IF(ISERROR(Dados!C363),\"-\",Dados!C363)","v":""},{"$f":"IF(ISERROR(Dados!D363),\"-\",Dados!D363)","v":""},{"$f":"IF(ISERROR(Dados!E363),\"-\",Dados!E363)","v":""},{"$f":"IF(ISERROR(Dados!F363),\"-\",Dados!F363)","v":""},{"$f":"IF(ISERROR(Dados!G363),\"-\",Dados!G363)","v":""},{"$f":"IF(ISERROR(Dados!H363),\"-\",Dados!H363)","v":""},{"$f":"IF(ISERROR(Dados!I363),\"-\",Dados!I363)","v":""},{"$f":"IF(ISERROR(Dados!J363),\"-\",Dados!J363)","v":""},{"$f":"IF(ISERROR(Dados!K363),\"-\",Dados!K363)","v":""},{"$f":"IF(ISERROR(Dados!L363),\"-\",Dados!L363)","v":""},{"$f":"IF(ISERROR(Dados!M363),\"-\",Dados!M363)","v":""},{"$f":"IF(ISERROR(Dados!N363),\"-\",Dados!N363)","v":""},{"$f":"IF(ISERROR(Dados!O363),\"-\",Dados!O363)","v":""},{"$f":"IF(ISERROR(Dados!P363),\"-\",Dados!P363)","v":""},{"$f":"IF(ISERROR(Dados!Q363),\"-\",Dados!Q363)","v":""},{"$f":"IF(ISERROR(Dados!R363),\"-\",Dados!R363)","v":""},{"$f":"IF(ISERROR(Dados!S363),\"-\",Dados!S363)","v":""},{"$f":"IF(ISERROR(Dados!T363),\"-\",Dados!T363)","v":""},{"$f":"IF(ISERROR(Dados!U363),\"-\",Dados!U363)","v":""},{"$f":"IF(ISERROR(Dados!V363),\"-\",Dados!V363)","v":""},{"$f":"IF(ISERROR(Dados!W363),\"-\",Dados!W363)","v":""},{"$f":"IF(ISERROR(Dados!X363),\"-\",Dados!X363)","v":""},{"$f":"IF(ISERROR(Dados!Y363),\"-\",Dados!Y363)","v":""},{"$f":"IF(ISERROR(Dados!Z363),\"-\",Dados!Z363)","v":""},{"$f":"IF(ISERROR(Dados!AA363),\"-\",Dados!AA363)","v":""},{"$f":"IF(ISERROR(Dados!AB363),\"-\",Dados!AB363)","v":""},{"$f":"IF(ISERROR(Dados!AC363),\"-\",Dados!AC363)","v":""},{"$f":"IF(ISERROR(Dados!AD363),\"-\",Dados!AD363)","v":""},{"$f":"IF(ISERROR(Dados!AE363),\"-\",Dados!AE363)","v":""},{"$f":"IF(ISERROR(Dados!AF363),\"-\",Dados!AF363)","v":""},{"$f":"IF(ISERROR(Dados!AG363),\"-\",Dados!AG363)","v":""}]
[{"$f":"IF(ISERROR(Dados!A364),\"-\",Dados!A364)","v":""},{"$f":"IF(ISERROR(Dados!B364),\"-\",Dados!B364)","v":""},{"$f":"IF(ISERROR(Dados!C364),\"-\",Dados!C364)","v":""},{"$f":"IF(ISERROR(Dados!D364),\"-\",Dados!D364)","v":""},{"$f":"IF(ISERROR(Dados!E364),\"-\",Dados!E364)","v":""},{"$f":"IF(ISERROR(Dados!F364),\"-\",Dados!F364)","v":""},{"$f":"IF(ISERROR(Dados!G364),\"-\",Dados!G364)","v":""},{"$f":"IF(ISERROR(Dados!H364),\"-\",Dados!H364)","v":""},{"$f":"IF(ISERROR(Dados!I364),\"-\",Dados!I364)","v":""},{"$f":"IF(ISERROR(Dados!J364),\"-\",Dados!J364)","v":""},{"$f":"IF(ISERROR(Dados!K364),\"-\",Dados!K364)","v":""},{"$f":"IF(ISERROR(Dados!L364),\"-\",Dados!L364)","v":""},{"$f":"IF(ISERROR(Dados!M364),\"-\",Dados!M364)","v":""},{"$f":"IF(ISERROR(Dados!N364),\"-\",Dados!N364)","v":""},{"$f":"IF(ISERROR(Dados!O364),\"-\",Dados!O364)","v":""},{"$f":"IF(ISERROR(Dados!P364),\"-\",Dados!P364)","v":""},{"$f":"IF(ISERROR(Dados!Q364),\"-\",Dados!Q364)","v":""},{"$f":"IF(ISERROR(Dados!R364),\"-\",Dados!R364)","v":""},{"$f":"IF(ISERROR(Dados!S364),\"-\",Dados!S364)","v":""},{"$f":"IF(ISERROR(Dados!T364),\"-\",Dados!T364)","v":""},{"$f":"IF(ISERROR(Dados!U364),\"-\",Dados!U364)","v":""},{"$f":"IF(ISERROR(Dados!V364),\"-\",Dados!V364)","v":""},{"$f":"IF(ISERROR(Dados!W364),\"-\",Dados!W364)","v":""},{"$f":"IF(ISERROR(Dados!X364),\"-\",Dados!X364)","v":""},{"$f":"IF(ISERROR(Dados!Y364),\"-\",Dados!Y364)","v":""},{"$f":"IF(ISERROR(Dados!Z364),\"-\",Dados!Z364)","v":""},{"$f":"IF(ISERROR(Dados!AA364),\"-\",Dados!AA364)","v":""},{"$f":"IF(ISERROR(Dados!AB364),\"-\",Dados!AB364)","v":""},{"$f":"IF(ISERROR(Dados!AC364),\"-\",Dados!AC364)","v":""},{"$f":"IF(ISERROR(Dados!AD364),\"-\",Dados!AD364)","v":""},{"$f":"IF(ISERROR(Dados!AE364),\"-\",Dados!AE364)","v":""},{"$f":"IF(ISERROR(Dados!AF364),\"-\",Dados!AF364)","v":""},{"$f":"IF(ISERROR(Dados!AG364),\"-\",Dados!AG364)","v":""}]
[{"$f":"IF(ISERROR(Dados!A365),\"-\",Dados!A365)","v":""},{"$f":"IF(ISERROR(Dados!B365),\"-\",Dados!B365)","v":""},{"$f":"IF(ISERROR(Dados!C365),\"-\",Dados!C365)","v":""},{"$f":"IF(ISERROR(Dados!D365),\"-\",Dados!D365)","v":""},{"$f":"IF(ISERROR(Dados!E365),\"-\",Dados!E365)","v":""},{"$f":"IF(ISERROR(Dados!F365),\"-\",Dados!F365)","v":""},{"$f":"IF(ISERROR(Dados!G365),\"-\",Dados!G365)","v":""},{"$f":"IF(ISERROR(Dados!H365),\"-\",Dados!H365)","v":""},{"$f":"IF(ISERROR(Dados!I365),\"-\",Dados!I365)","v":""},{"$f":"IF(ISERROR(Dados!J365),\"-\",Dados!J365)","v":""},{"$f":"IF(ISERROR(Dados!K365),\"-\",Dados!K365)","v":""},{"$f":"IF(ISERROR(Dados!L365),\"-\",Dados!L365)","v":""},{"$f":"IF(ISERROR(Dados!M365),\"-\",Dados!M365)","v":""},{"$f":"IF(ISERROR(Dados!N365),\"-\",Dados!N365)","v":""},{"$f":"IF(ISERROR(Dados!O365),\"-\",Dados!O365)","v":""},{"$f":"IF(ISERROR(Dados!P365),\"-\",Dados!P365)","v":""},{"$f":"IF(ISERROR(Dados!Q365),\"-\",Dados!Q365)","v":""},{"$f":"IF(ISERROR(Dados!R365),\"-\",Dados!R365)","v":""},{"$f":"IF(ISERROR(Dados!S365),\"-\",Dados!S365)","v":""},{"$f":"IF(ISERROR(Dados!T365),\"-\",Dados!T365)","v":""},{"$f":"IF(ISERROR(Dados!U365),\"-\",Dados!U365)","v":""},{"$f":"IF(ISERROR(Dados!V365),\"-\",Dados!V365)","v":""},{"$f":"IF(ISERROR(Dados!W365),\"-\",Dados!W365)","v":""},{"$f":"IF(ISERROR(Dados!X365),\"-\",Dados!X365)","v":""},{"$f":"IF(ISERROR(Dados!Y365),\"-\",Dados!Y365)","v":""},{"$f":"IF(ISERROR(Dados!Z365),\"-\",Dados!Z365)","v":""},{"$f":"IF(ISERROR(Dados!AA365),\"-\",Dados!AA365)","v":""},{"$f":"IF(ISERROR(Dados!AB365),\"-\",Dados!AB365)","v":""},{"$f":"IF(ISERROR(Dados!AC365),\"-\",Dados!AC365)","v":""},{"$f":"IF(ISERROR(Dados!AD365),\"-\",Dados!AD365)","v":""},{"$f":"IF(ISERROR(Dados!AE365),\"-\",Dados!AE365)","v":""},{"$f":"IF(ISERROR(Dados!AF365),\"-\",Dados!AF365)","v":""},{"$f":"IF(ISERROR(Dados!AG365),\"-\",Dados!AG365)","v":""}]
[{"$f":"IF(ISERROR(Dados!A366),\"-\",Dados!A366)","v":""},{"$f":"IF(ISERROR(Dados!B366),\"-\",Dados!B366)","v":""},{"$f":"IF(ISERROR(Dados!C366),\"-\",Dados!C366)","v":""},{"$f":"IF(ISERROR(Dados!D366),\"-\",Dados!D366)","v":""},{"$f":"IF(ISERROR(Dados!E366),\"-\",Dados!E366)","v":""},{"$f":"IF(ISERROR(Dados!F366),\"-\",Dados!F366)","v":""},{"$f":"IF(ISERROR(Dados!G366),\"-\",Dados!G366)","v":""},{"$f":"IF(ISERROR(Dados!H366),\"-\",Dados!H366)","v":""},{"$f":"IF(ISERROR(Dados!I366),\"-\",Dados!I366)","v":""},{"$f":"IF(ISERROR(Dados!J366),\"-\",Dados!J366)","v":""},{"$f":"IF(ISERROR(Dados!K366),\"-\",Dados!K366)","v":""},{"$f":"IF(ISERROR(Dados!L366),\"-\",Dados!L366)","v":""},{"$f":"IF(ISERROR(Dados!M366),\"-\",Dados!M366)","v":""},{"$f":"IF(ISERROR(Dados!N366),\"-\",Dados!N366)","v":""},{"$f":"IF(ISERROR(Dados!O366),\"-\",Dados!O366)","v":""},{"$f":"IF(ISERROR(Dados!P366),\"-\",Dados!P366)","v":""},{"$f":"IF(ISERROR(Dados!Q366),\"-\",Dados!Q366)","v":""},{"$f":"IF(ISERROR(Dados!R366),\"-\",Dados!R366)","v":""},{"$f":"IF(ISERROR(Dados!S366),\"-\",Dados!S366)","v":""},{"$f":"IF(ISERROR(Dados!T366),\"-\",Dados!T366)","v":""},{"$f":"IF(ISERROR(Dados!U366),\"-\",Dados!U366)","v":""},{"$f":"IF(ISERROR(Dados!V366),\"-\",Dados!V366)","v":""},{"$f":"IF(ISERROR(Dados!W366),\"-\",Dados!W366)","v":""},{"$f":"IF(ISERROR(Dados!X366),\"-\",Dados!X366)","v":""},{"$f":"IF(ISERROR(Dados!Y366),\"-\",Dados!Y366)","v":""},{"$f":"IF(ISERROR(Dados!Z366),\"-\",Dados!Z366)","v":""},{"$f":"IF(ISERROR(Dados!AA366),\"-\",Dados!AA366)","v":""},{"$f":"IF(ISERROR(Dados!AB366),\"-\",Dados!AB366)","v":""},{"$f":"IF(ISERROR(Dados!AC366),\"-\",Dados!AC366)","v":""},{"$f":"IF(ISERROR(Dados!AD366),\"-\",Dados!AD366)","v":""},{"$f":"IF(ISERROR(Dados!AE366),\"-\",Dados!AE366)","v":""},{"$f":"IF(ISERROR(Dados!AF366),\"-\",Dados!AF366)","v":""},{"$f":"IF(ISERROR(Dados!AG366),\"-\",Dados!AG366)","v":""}]
[{"$f":"IF(ISERROR(Dados!A367),\"-\",Dados!A367)","v":""},{"$f":"IF(ISERROR(Dados!B367),\"-\",Dados!B367)","v":""},{"$f":"IF(ISERROR(Dados!C367),\"-\",Dados!C367)","v":""},{"$f":"IF(ISERROR(Dados!D367),\"-\",Dados!D367)","v":""},{"$f":"IF(ISERROR(Dados!E367),\"-\",Dados!E367)","v":""},{"$f":"IF(ISERROR(Dados!F367),\"-\",Dados!F367)","v":""},{"$f":"IF(ISERROR(Dados!G367),\"-\",Dados!G367)","v":""},{"$f":"IF(ISERROR(Dados!H367),\"-\",Dados!H367)","v":""},{"$f":"IF(ISERROR(Dados!I367),\"-\",Dados!I367)","v":""},{"$f":"IF(ISERROR(Dados!J367),\"-\",Dados!J367)","v":""},{"$f":"IF(ISERROR(Dados!K367),\"-\",Dados!K367)","v":""},{"$f":"IF(ISERROR(Dados!L367),\"-\",Dados!L367)","v":""},{"$f":"IF(ISERROR(Dados!M367),\"-\",Dados!M367)","v":""},{"$f":"IF(ISERROR(Dados!N367),\"-\",Dados!N367)","v":""},{"$f":"IF(ISERROR(Dados!O367),\"-\",Dados!O367)","v":""},{"$f":"IF(ISERROR(Dados!P367),\"-\",Dados!P367)","v":""},{"$f":"IF(ISERROR(Dados!Q367),\"-\",Dados!Q367)","v":""},{"$f":"IF(ISERROR(Dados!R367),\"-\",Dados!R367)","v":""},{"$f":"IF(ISERROR(Dados!S367),\"-\",Dados!S367)","v":""},{"$f":"IF(ISERROR(Dados!T367),\"-\",Dados!T367)","v":""},{"$f":"IF(ISERROR(Dados!U367),\"-\",Dados!U367)","v":""},{"$f":"IF(ISERROR(Dados!V367),\"-\",Dados!V367)","v":""},{"$f":"IF(ISERROR(Dados!W367),\"-\",Dados!W367)","v":""},{"$f":"IF(ISERROR(Dados!X367),\"-\",Dados!X367)","v":""},{"$f":"IF(ISERROR(Dados!Y367),\"-\",Dados!Y367)","v":""},{"$f":"IF(ISERROR(Dados!Z367),\"-\",Dados!Z367)","v":""},{"$f":"IF(ISERROR(Dados!AA367),\"-\",Dados!AA367)","v":""},{"$f":"IF(ISERROR(Dados!AB367),\"-\",Dados!AB367)","v":""},{"$f":"IF(ISERROR(Dados!AC367),\"-\",Dados!AC367)","v":""},{"$f":"IF(ISERROR(Dados!AD367),\"-\",Dados!AD367)","v":""},{"$f":"IF(ISERROR(Dados!AE367),\"-\",Dados!AE367)","v":""},{"$f":"IF(ISERROR(Dados!AF367),\"-\",Dados!AF367)","v":""},{"$f":"IF(ISERROR(Dados!AG367),\"-\",Dados!AG367)","v":""}]
[{"$f":"IF(ISERROR(Dados!A368),\"-\",Dados!A368)","v":""},{"$f":"IF(ISERROR(Dados!B368),\"-\",Dados!B368)","v":""},{"$f":"IF(ISERROR(Dados!C368),\"-\",Dados!C368)","v":""},{"$f":"IF(ISERROR(Dados!D368),\"-\",Dados!D368)","v":""},{"$f":"IF(ISERROR(Dados!E368),\"-\",Dados!E368)","v":""},{"$f":"IF(ISERROR(Dados!F368),\"-\",Dados!F368)","v":""},{"$f":"IF(ISERROR(Dados!G368),\"-\",Dados!G368)","v":""},{"$f":"IF(ISERROR(Dados!H368),\"-\",Dados!H368)","v":""},{"$f":"IF(ISERROR(Dados!I368),\"-\",Dados!I368)","v":""},{"$f":"IF(ISERROR(Dados!J368),\"-\",Dados!J368)","v":""},{"$f":"IF(ISERROR(Dados!K368),\"-\",Dados!K368)","v":""},{"$f":"IF(ISERROR(Dados!L368),\"-\",Dados!L368)","v":""},{"$f":"IF(ISERROR(Dados!M368),\"-\",Dados!M368)","v":""},{"$f":"IF(ISERROR(Dados!N368),\"-\",Dados!N368)","v":""},{"$f":"IF(ISERROR(Dados!O368),\"-\",Dados!O368)","v":""},{"$f":"IF(ISERROR(Dados!P368),\"-\",Dados!P368)","v":""},{"$f":"IF(ISERROR(Dados!Q368),\"-\",Dados!Q368)","v":""},{"$f":"IF(ISERROR(Dados!R368),\"-\",Dados!R368)","v":""},{"$f":"IF(ISERROR(Dados!S368),\"-\",Dados!S368)","v":""},{"$f":"IF(ISERROR(Dados!T368),\"-\",Dados!T368)","v":""},{"$f":"IF(ISERROR(Dados!U368),\"-\",Dados!U368)","v":""},{"$f":"IF(ISERROR(Dados!V368),\"-\",Dados!V368)","v":""},{"$f":"IF(ISERROR(Dados!W368),\"-\",Dados!W368)","v":""},{"$f":"IF(ISERROR(Dados!X368),\"-\",Dados!X368)","v":""},{"$f":"IF(ISERROR(Dados!Y368),\"-\",Dados!Y368)","v":""},{"$f":"IF(ISERROR(Dados!Z368),\"-\",Dados!Z368)","v":""},{"$f":"IF(ISERROR(Dados!AA368),\"-\",Dados!AA368)","v":""},{"$f":"IF(ISERROR(Dados!AB368),\"-\",Dados!AB368)","v":""},{"$f":"IF(ISERROR(Dados!AC368),\"-\",Dados!AC368)","v":""},{"$f":"IF(ISERROR(Dados!AD368),\"-\",Dados!AD368)","v":""},{"$f":"IF(ISERROR(Dados!AE368),\"-\",Dados!AE368)","v":""},{"$f":"IF(ISERROR(Dados!AF368),\"-\",Dados!AF368)","v":""},{"$f":"IF(ISERROR(Dados!AG368),\"-\",Dados!AG368)","v":""}]
[{"$f":"IF(ISERROR(Dados!A369),\"-\",Dados!A369)","v":""},{"$f":"IF(ISERROR(Dados!B369),\"-\",Dados!B369)","v":""},{"$f":"IF(ISERROR(Dados!C369),\"-\",Dados!C369)","v":""},{"$f":"IF(ISERROR(Dados!D369),\"-\",Dados!D369)","v":""},{"$f":"IF(ISERROR(Dados!E369),\"-\",Dados!E369)","v":""},{"$f":"IF(ISERROR(Dados!F369),\"-\",Dados!F369)","v":""},{"$f":"IF(ISERROR(Dados!G369),\"-\",Dados!G369)","v":""},{"$f":"IF(ISERROR(Dados!H369),\"-\",Dados!H369)","v":""},{"$f":"IF(ISERROR(Dados!I369),\"-\",Dados!I369)","v":""},{"$f":"IF(ISERROR(Dados!J369),\"-\",Dados!J369)","v":""},{"$f":"IF(ISERROR(Dados!K369),\"-\",Dados!K369)","v":""},{"$f":"IF(ISERROR(Dados!L369),\"-\",Dados!L369)","v":""},{"$f":"IF(ISERROR(Dados!M369),\"-\",Dados!M369)","v":""},{"$f":"IF(ISERROR(Dados!N369),\"-\",Dados!N369)","v":""},{"$f":"IF(ISERROR(Dados!O369),\"-\",Dados!O369)","v":""},{"$f":"IF(ISERROR(Dados!P369),\"-\",Dados!P369)","v":""},{"$f":"IF(ISERROR(Dados!Q369),\"-\",Dados!Q369)","v":""},{"$f":"IF(ISERROR(Dados!R369),\"-\",Dados!R369)","v":""},{"$f":"IF(ISERROR(Dados!S369),\"-\",Dados!S369)","v":""},{"$f":"IF(ISERROR(Dados!T369),\"-\",Dados!T369)","v":""},{"$f":"IF(ISERROR(Dados!U369),\"-\",Dados!U369)","v":""},{"$f":"IF(ISERROR(Dados!V369),\"-\",Dados!V369)","v":""},{"$f":"IF(ISERROR(Dados!W369),\"-\",Dados!W369)","v":""},{"$f":"IF(ISERROR(Dados!X369),\"-\",Dados!X369)","v":""},{"$f":"IF(ISERROR(Dados!Y369),\"-\",Dados!Y369)","v":""},{"$f":"IF(ISERROR(Dados!Z369),\"-\",Dados!Z369)","v":""},{"$f":"IF(ISERROR(Dados!AA369),\"-\",Dados!AA369)","v":""},{"$f":"IF(ISERROR(Dados!AB369),\"-\",Dados!AB369)","v":""},{"$f":"IF(ISERROR(Dados!AC369),\"-\",Dados!AC369)","v":""},{"$f":"IF(ISERROR(Dados!AD369),\"-\",Dados!AD369)","v":""},{"$f":"IF(ISERROR(Dados!AE369),\"-\",Dados!AE369)","v":""},{"$f":"IF(ISERROR(Dados!AF369),\"-\",Dados!AF369)","v":""},{"$f":"IF(ISERROR(Dados!AG369),\"-\",Dados!AG369)","v":""}]
[{"$f":"IF(ISERROR(Dados!A370),\"-\",Dados!A370)","v":""},{"$f":"IF(ISERROR(Dados!B370),\"-\",Dados!B370)","v":""},{"$f":"IF(ISERROR(Dados!C370),\"-\",Dados!C370)","v":""},{"$f":"IF(ISERROR(Dados!D370),\"-\",Dados!D370)","v":""},{"$f":"IF(ISERROR(Dados!E370),\"-\",Dados!E370)","v":""},{"$f":"IF(ISERROR(Dados!F370),\"-\",Dados!F370)","v":""},{"$f":"IF(ISERROR(Dados!G370),\"-\",Dados!G370)","v":""},{"$f":"IF(ISERROR(Dados!H370),\"-\",Dados!H370)","v":""},{"$f":"IF(ISERROR(Dados!I370),\"-\",Dados!I370)","v":""},{"$f":"IF(ISERROR(Dados!J370),\"-\",Dados!J370)","v":""},{"$f":"IF(ISERROR(Dados!K370),\"-\",Dados!K370)","v":""},{"$f":"IF(ISERROR(Dados!L370),\"-\",Dados!L370)","v":""},{"$f":"IF(ISERROR(Dados!M370),\"-\",Dados!M370)","v":""},{"$f":"IF(ISERROR(Dados!N370),\"-\",Dados!N370)","v":""},{"$f":"IF(ISERROR(Dados!O370),\"-\",Dados!O370)","v":""},{"$f":"IF(ISERROR(Dados!P370),\"-\",Dados!P370)","v":""},{"$f":"IF(ISERROR(Dados!Q370),\"-\",Dados!Q370)","v":""},{"$f":"IF(ISERROR(Dados!R370),\"-\",Dados!R370)","v":""},{"$f":"IF(ISERROR(Dados!S370),\"-\",Dados!S370)","v":""},{"$f":"IF(ISERROR(Dados!T370),\"-\",Dados!T370)","v":""},{"$f":"IF(ISERROR(Dados!U370),\"-\",Dados!U370)","v":""},{"$f":"IF(ISERROR(Dados!V370),\"-\",Dados!V370)","v":""},{"$f":"IF(ISERROR(Dados!W370),\"-\",Dados!W370)","v":""},{"$f":"IF(ISERROR(Dados!X370),\"-\",Dados!X370)","v":""},{"$f":"IF(ISERROR(Dados!Y370),\"-\",Dados!Y370)","v":""},{"$f":"IF(ISERROR(Dados!Z370),\"-\",Dados!Z370)","v":""},{"$f":"IF(ISERROR(Dados!AA370),\"-\",Dados!AA370)","v":""},{"$f":"IF(ISERROR(Dados!AB370),\"-\",Dados!AB370)","v":""},{"$f":"IF(ISERROR(Dados!AC370),\"-\",Dados!AC370)","v":""},{"$f":"IF(ISERROR(Dados!AD370),\"-\",Dados!AD370)","v":""},{"$f":"IF(ISERROR(Dados!AE370),\"-\",Dados!AE370)","v":""},{"$f":"IF(ISERROR(Dados!AF370),\"-\",Dados!AF370)","v":""},{"$f":"IF(ISERROR(Dados!AG370),\"-\",Dados!AG370)","v":""}]
[{"$f":"IF(ISERROR(Dados!A371),\"-\",Dados!A371)","v":""},{"$f":"IF(ISERROR(Dados!B371),\"-\",Dados!B371)","v":""},{"$f":"IF(ISERROR(Dados!C371),\"-\",Dados!C371)","v":""},{"$f":"IF(ISERROR(Dados!D371),\"-\",Dados!D371)","v":""},{"$f":"IF(ISERROR(Dados!E371),\"-\",Dados!E371)","v":""},{"$f":"IF(ISERROR(Dados!F371),\"-\",Dados!F371)","v":""},{"$f":"IF(ISERROR(Dados!G371),\"-\",Dados!G371)","v":""},{"$f":"IF(ISERROR(Dados!H371),\"-\",Dados!H371)","v":""},{"$f":"IF(ISERROR(Dados!I371),\"-\",Dados!I371)","v":""},{"$f":"IF(ISERROR(Dados!J371),\"-\",Dados!J371)","v":""},{"$f":"IF(ISERROR(Dados!K371),\"-\",Dados!K371)","v":""},{"$f":"IF(ISERROR(Dados!L371),\"-\",Dados!L371)","v":""},{"$f":"IF(ISERROR(Dados!M371),\"-\",Dados!M371)","v":""},{"$f":"IF(ISERROR(Dados!N371),\"-\",Dados!N371)","v":""},{"$f":"IF(ISERROR(Dados!O371),\"-\",Dados!O371)","v":""},{"$f":"IF(ISERROR(Dados!P371),\"-\",Dados!P371)","v":""},{"$f":"IF(ISERROR(Dados!Q371),\"-\",Dados!Q371)","v":""},{"$f":"IF(ISERROR(Dados!R371),\"-\",Dados!R371)","v":""},{"$f":"IF(ISERROR(Dados!S371),\"-\",Dados!S371)","v":""},{"$f":"IF(ISERROR(Dados!T371),\"-\",Dados!T371)","v":""},{"$f":"IF(ISERROR(Dados!U371),\"-\",Dados!U371)","v":""},{"$f":"IF(ISERROR(Dados!V371),\"-\",Dados!V371)","v":""},{"$f":"IF(ISERROR(Dados!W371),\"-\",Dados!W371)","v":""},{"$f":"IF(ISERROR(Dados!X371),\"-\",Dados!X371)","v":""},{"$f":"IF(ISERROR(Dados!Y371),\"-\",Dados!Y371)","v":""},{"$f":"IF(ISERROR(Dados!Z371),\"-\",Dados!Z371)","v":""},{"$f":"IF(ISERROR(Dados!AA371),\"-\",Dados!AA371)","v":""},{"$f":"IF(ISERROR(Dados!AB371),\"-\",Dados!AB371)","v":""},{"$f":"IF(ISERROR(Dados!AC371),\"-\",Dados!AC371)","v":""},{"$f":"IF(ISERROR(Dados!AD371),\"-\",Dados!AD371)","v":""},{"$f":"IF(ISERROR(Dados!AE371),\"-\",Dados!AE371)","v":""},{"$f":"IF(ISERROR(Dados!AF371),\"-\",Dados!AF371)","v":""},{"$f":"IF(ISERROR(Dados!AG371),\"-\",Dados!AG371)","v":""}]
[{"$f":"IF(ISERROR(Dados!A372),\"-\",Dados!A372)","v":""},{"$f":"IF(ISERROR(Dados!B372),\"-\",Dados!B372)","v":""},{"$f":"IF(ISERROR(Dados!C372),\"-\",Dados!C372)","v":""},{"$f":"IF(ISERROR(Dados!D372),\"-\",Dados!D372)","v":""},{"$f":"IF(ISERROR(Dados!E372),\"-\",Dados!E372)","v":""},{"$f":"IF(ISERROR(Dados!F372),\"-\",Dados!F372)","v":""},{"$f":"IF(ISERROR(Dados!G372),\"-\",Dados!G372)","v":""},{"$f":"IF(ISERROR(Dados!H372),\"-\",Dados!H372)","v":""},{"$f":"IF(ISERROR(Dados!I372),\"-\",Dados!I372)","v":""},{"$f":"IF(ISERROR(Dados!J372),\"-\",Dados!J372)","v":""},{"$f":"IF(ISERROR(Dados!K372),\"-\",Dados!K372)","v":""},{"$f":"IF(ISERROR(Dados!L372),\"-\",Dados!L372)","v":""},{"$f":"IF(ISERROR(Dados!M372),\"-\",Dados!M372)","v":""},{"$f":"IF(ISERROR(Dados!N372),\"-\",Dados!N372)","v":""},{"$f":"IF(ISERROR(Dados!O372),\"-\",Dados!O372)","v":""},{"$f":"IF(ISERROR(Dados!P372),\"-\",Dados!P372)","v":""},{"$f":"IF(ISERROR(Dados!Q372),\"-\",Dados!Q372)","v":""},{"$f":"IF(ISERROR(Dados!R372),\"-\",Dados!R372)","v":""},{"$f":"IF(ISERROR(Dados!S372),\"-\",Dados!S372)","v":""},{"$f":"IF(ISERROR(Dados!T372),\"-\",Dados!T372)","v":""},{"$f":"IF(ISERROR(Dados!U372),\"-\",Dados!U372)","v":""},{"$f":"IF(ISERROR(Dados!V372),\"-\",Dados!V372)","v":""},{"$f":"IF(ISERROR(Dados!W372),\"-\",Dados!W372)","v":""},{"$f":"IF(ISERROR(Dados!X372),\"-\",Dados!X372)","v":""},{"$f":"IF(ISERROR(Dados!Y372),\"-\",Dados!Y372)","v":""},{"$f":"IF(ISERROR(Dados!Z372),\"-\",Dados!Z372)","v":""},{"$f":"IF(ISERROR(Dados!AA372),\"-\",Dados!AA372)","v":""},{"$f":"IF(ISERROR(Dados!AB372),\"-\",Dados!AB372)","v":""},{"$f":"IF(ISERROR(Dados!AC372),\"-\",Dados!AC372)","v":""},{"$f":"IF(ISERROR(Dados!AD372),\"-\",Dados!AD372)","v":""},{"$f":"IF(ISERROR(Dados!AE372),\"-\",Dados!AE372)","v":""},{"$f":"IF(ISERROR(Dados!AF372),\"-\",Dados!AF372)","v":""},{"$f":"IF(ISERROR(Dados!AG372),\"-\",Dados!AG372)","v":""}]
[{"$f":"IF(ISERROR(Dados!A373),\"-\",Dados!A373)","v":""},{"$f":"IF(ISERROR(Dados!B373),\"-\",Dados!B373)","v":""},{"$f":"IF(ISERROR(Dados!C373),\"-\",Dados!C373)","v":""},{"$f":"IF(ISERROR(Dados!D373),\"-\",Dados!D373)","v":""},{"$f":"IF(ISERROR(Dados!E373),\"-\",Dados!E373)","v":""},{"$f":"IF(ISERROR(Dados!F373),\"-\",Dados!F373)","v":""},{"$f":"IF(ISERROR(Dados!G373),\"-\",Dados!G373)","v":""},{"$f":"IF(ISERROR(Dados!H373),\"-\",Dados!H373)","v":""},{"$f":"IF(ISERROR(Dados!I373),\"-\",Dados!I373)","v":""},{"$f":"IF(ISERROR(Dados!J373),\"-\",Dados!J373)","v":""},{"$f":"IF(ISERROR(Dados!K373),\"-\",Dados!K373)","v":""},{"$f":"IF(ISERROR(Dados!L373),\"-\",Dados!L373)","v":""},{"$f":"IF(ISERROR(Dados!M373),\"-\",Dados!M373)","v":""},{"$f":"IF(ISERROR(Dados!N373),\"-\",Dados!N373)","v":""},{"$f":"IF(ISERROR(Dados!O373),\"-\",Dados!O373)","v":""},{"$f":"IF(ISERROR(Dados!P373),\"-\",Dados!P373)","v":""},{"$f":"IF(ISERROR(Dados!Q373),\"-\",Dados!Q373)","v":""},{"$f":"IF(ISERROR(Dados!R373),\"-\",Dados!R373)","v":""},{"$f":"IF(ISERROR(Dados!S373),\"-\",Dados!S373)","v":""},{"$f":"IF(ISERROR(Dados!T373),\"-\",Dados!T373)","v":""},{"$f":"IF(ISERROR(Dados!U373),\"-\",Dados!U373)","v":""},{"$f":"IF(ISERROR(Dados!V373),\"-\",Dados!V373)","v":""},{"$f":"IF(ISERROR(Dados!W373),\"-\",Dados!W373)","v":""},{"$f":"IF(ISERROR(Dados!X373),\"-\",Dados!X373)","v":""},{"$f":"IF(ISERROR(Dados!Y373),\"-\",Dados!Y373)","v":""},{"$f":"IF(ISERROR(Dados!Z373),\"-\",Dados!Z373)","v":""},{"$f":"IF(ISERROR(Dados!AA373),\"-\",Dados!AA373)","v":""},{"$f":"IF(ISERROR(Dados!AB373),\"-\",Dados!AB373)","v":""},{"$f":"IF(ISERROR(Dados!AC373),\"-\",Dados!AC373)","v":""},{"$f":"IF(ISERROR(Dados!AD373),\"-\",Dados!AD373)","v":""},{"$f":"IF(ISERROR(Dados!AE373),\"-\",Dados!AE373)","v":""},{"$f":"IF(ISERROR(Dados!AF373),\"-\",Dados!AF373)","v":""},{"$f":"IF(ISERROR(Dados!AG373),\"-\",Dados!AG373)","v":""}]
[{"$f":"IF(ISERROR(Dados!A374),\"-\",Dados!A374)","v":""},{"$f":"IF(ISERROR(Dados!B374),\"-\",Dados!B374)","v":""},{"$f":"IF(ISERROR(Dados!C374),\"-\",Dados!C374)","v":""},{"$f":"IF(ISERROR(Dados!D374),\"-\",Dados!D374)","v":""},{"$f":"IF(ISERROR(Dados!E374),\"-\",Dados!E374)","v":""},{"$f":"IF(ISERROR(Dados!F374),\"-\",Dados!F374)","v":""},{"$f":"IF(ISERROR(Dados!G374),\"-\",Dados!G374)","v":""},{"$f":"IF(ISERROR(Dados!H374),\"-\",Dados!H374)","v":""},{"$f":"IF(ISERROR(Dados!I374),\"-\",Dados!I374)","v":""},{"$f":"IF(ISERROR(Dados!J374),\"-\",Dados!J374)","v":""},{"$f":"IF(ISERROR(Dados!K374),\"-\",Dados!K374)","v":""},{"$f":"IF(ISERROR(Dados!L374),\"-\",Dados!L374)","v":""},{"$f":"IF(ISERROR(Dados!M374),\"-\",Dados!M374)","v":""},{"$f":"IF(ISERROR(Dados!N374),\"-\",Dados!N374)","v":""},{"$f":"IF(ISERROR(Dados!O374),\"-\",Dados!O374)","v":""},{"$f":"IF(ISERROR(Dados!P374),\"-\",Dados!P374)","v":""},{"$f":"IF(ISERROR(Dados!Q374),\"-\",Dados!Q374)","v":""},{"$f":"IF(ISERROR(Dados!R374),\"-\",Dados!R374)","v":""},{"$f":"IF(ISERROR(Dados!S374),\"-\",Dados!S374)","v":""},{"$f":"IF(ISERROR(Dados!T374),\"-\",Dados!T374)","v":""},{"$f":"IF(ISERROR(Dados!U374),\"-\",Dados!U374)","v":""},{"$f":"IF(ISERROR(Dados!V374),\"-\",Dados!V374)","v":""},{"$f":"IF(ISERROR(Dados!W374),\"-\",Dados!W374)","v":""},{"$f":"IF(ISERROR(Dados!X374),\"-\",Dados!X374)","v":""},{"$f":"IF(ISERROR(Dados!Y374),\"-\",Dados!Y374)","v":""},{"$f":"IF(ISERROR(Dados!Z374),\"-\",Dados!Z374)","v":""},{"$f":"IF(ISERROR(Dados!AA374),\"-\",Dados!AA374)","v":""},{"$f":"IF(ISERROR(Dados!AB374),\"-\",Dados!AB374)","v":""},{"$f":"IF(ISERROR(Dados!AC374),\"-\",Dados!AC374)","v":""},{"$f":"IF(ISERROR(Dados!AD374),\"-\",Dados!AD374)","v":""},{"$f":"IF(ISERROR(Dados!AE374),\"-\",Dados!AE374)","v":""},{"$f":"IF(ISERROR(Dados!AF374),\"-\",Dados!AF374)","v":""},{"$f":"IF(ISERROR(Dados!AG374),\"-\",Dados!AG374)","v":""}]
[{"$f":"IF(ISERROR(Dados!A375),\"-\",Dados!A375)","v":""},{"$f":"IF(ISERROR(Dados!B375),\"-\",Dados!B375)","v":""},{"$f":"IF(ISERROR(Dados!C375),\"-\",Dados!C375)","v":""},{"$f":"IF(ISERROR(Dados!D375),\"-\",Dados!D375)","v":""},{"$f":"IF(ISERROR(Dados!E375),\"-\",Dados!E375)","v":""},{"$f":"IF(ISERROR(Dados!F375),\"-\",Dados!F375)","v":""},{"$f":"IF(ISERROR(Dados!G375),\"-\",Dados!G375)","v":""},{"$f":"IF(ISERROR(Dados!H375),\"-\",Dados!H375)","v":""},{"$f":"IF(ISERROR(Dados!I375),\"-\",Dados!I375)","v":""},{"$f":"IF(ISERROR(Dados!J375),\"-\",Dados!J375)","v":""},{"$f":"IF(ISERROR(Dados!K375),\"-\",Dados!K375)","v":""},{"$f":"IF(ISERROR(Dados!L375),\"-\",Dados!L375)","v":""},{"$f":"IF(ISERROR(Dados!M375),\"-\",Dados!M375)","v":""},{"$f":"IF(ISERROR(Dados!N375),\"-\",Dados!N375)","v":""},{"$f":"IF(ISERROR(Dados!O375),\"-\",Dados!O375)","v":""},{"$f":"IF(ISERROR(Dados!P375),\"-\",Dados!P375)","v":""},{"$f":"IF(ISERROR(Dados!Q375),\"-\",Dados!Q375)","v":""},{"$f":"IF(ISERROR(Dados!R375),\"-\",Dados!R375)","v":""},{"$f":"IF(ISERROR(Dados!S375),\"-\",Dados!S375)","v":""},{"$f":"IF(ISERROR(Dados!T375),\"-\",Dados!T375)","v":""},{"$f":"IF(ISERROR(Dados!U375),\"-\",Dados!U375)","v":""},{"$f":"IF(ISERROR(Dados!V375),\"-\",Dados!V375)","v":""},{"$f":"IF(ISERROR(Dados!W375),\"-\",Dados!W375)","v":""},{"$f":"IF(ISERROR(Dados!X375),\"-\",Dados!X375)","v":""},{"$f":"IF(ISERROR(Dados!Y375),\"-\",Dados!Y375)","v":""},{"$f":"IF(ISERROR(Dados!Z375),\"-\",Dados!Z375)","v":""},{"$f":"IF(ISERROR(Dados!AA375),\"-\",Dados!AA375)","v":""},{"$f":"IF(ISERROR(Dados!AB375),\"-\",Dados!AB375)","v":""},{"$f":"IF(ISERROR(Dados!AC375),\"-\",Dados!AC375)","v":""},{"$f":"IF(ISERROR(Dados!AD375),\"-\",Dados!AD375)","v":""},{"$f":"IF(ISERROR(Dados!AE375),\"-\",Dados!AE375)","v":""},{"$f":"IF(ISERROR(Dados!AF375),\"-\",Dados!AF375)","v":""},{"$f":"IF(ISERROR(Dados!AG375),\"-\",Dados!AG375)","v":""}]
[{"$f":"IF(ISERROR(Dados!A376),\"-\",Dados!A376)","v":""},{"$f":"IF(ISERROR(Dados!B376),\"-\",Dados!B376)","v":""},{"$f":"IF(ISERROR(Dados!C376),\"-\",Dados!C376)","v":""},{"$f":"IF(ISERROR(Dados!D376),\"-\",Dados!D376)","v":""},{"$f":"IF(ISERROR(Dados!E376),\"-\",Dados!E376)","v":""},{"$f":"IF(ISERROR(Dados!F376),\"-\",Dados!F376)","v":""},{"$f":"IF(ISERROR(Dados!G376),\"-\",Dados!G376)","v":""},{"$f":"IF(ISERROR(Dados!H376),\"-\",Dados!H376)","v":""},{"$f":"IF(ISERROR(Dados!I376),\"-\",Dados!I376)","v":""},{"$f":"IF(ISERROR(Dados!J376),\"-\",Dados!J376)","v":""},{"$f":"IF(ISERROR(Dados!K376),\"-\",Dados!K376)","v":""},{"$f":"IF(ISERROR(Dados!L376),\"-\",Dados!L376)","v":""},{"$f":"IF(ISERROR(Dados!M376),\"-\",Dados!M376)","v":""},{"$f":"IF(ISERROR(Dados!N376),\"-\",Dados!N376)","v":""},{"$f":"IF(ISERROR(Dados!O376),\"-\",Dados!O376)","v":""},{"$f":"IF(ISERROR(Dados!P376),\"-\",Dados!P376)","v":""},{"$f":"IF(ISERROR(Dados!Q376),\"-\",Dados!Q376)","v":""},{"$f":"IF(ISERROR(Dados!R376),\"-\",Dados!R376)","v":""},{"$f":"IF(ISERROR(Dados!S376),\"-\",Dados!S376)","v":""},{"$f":"IF(ISERROR(Dados!T376),\"-\",Dados!T376)","v":""},{"$f":"IF(ISERROR(Dados!U376),\"-\",Dados!U376)","v":""},{"$f":"IF(ISERROR(Dados!V376),\"-\",Dados!V376)","v":""},{"$f":"IF(ISERROR(Dados!W376),\"-\",Dados!W376)","v":""},{"$f":"IF(ISERROR(Dados!X376),\"-\",Dados!X376)","v":""},{"$f":"IF(ISERROR(Dados!Y376),\"-\",Dados!Y376)","v":""},{"$f":"IF(ISERROR(Dados!Z376),\"-\",Dados!Z376)","v":""},{"$f":"IF(ISERROR(Dados!AA376),\"-\",Dados!AA376)","v":""},{"$f":"IF(ISERROR(Dados!AB376),\"-\",Dados!AB376)","v":""},{"$f":"IF(ISERROR(Dados!AC376),\"-\",Dados!AC376)","v":""},{"$f":"IF(ISERROR(Dados!AD376),\"-\",Dados!AD376)","v":""},{"$f":"IF(ISERROR(Dados!AE376),\"-\",Dados!AE376)","v":""},{"$f":"IF(ISERROR(Dados!AF376),\"-\",Dados!AF376)","v":""},{"$f":"IF(ISERROR(Dados!AG376),\"-\",Dados!AG376)","v":""}]
[{"$f":"IF(ISERROR(Dados!A377),\"-\",Dados!A377)","v":""},{"$f":"IF(ISERROR(Dados!B377),\"-\",Dados!B377)","v":""},{"$f":"IF(ISERROR(Dados!C377),\"-\",Dados!C377)","v":""},{"$f":"IF(ISERROR(Dados!D377),\"-\",Dados!D377)","v":""},{"$f":"IF(ISERROR(Dados!E377),\"-\",Dados!E377)","v":""},{"$f":"IF(ISERROR(Dados!F377),\"-\",Dados!F377)","v":""},{"$f":"IF(ISERROR(Dados!G377),\"-\",Dados!G377)","v":""},{"$f":"IF(ISERROR(Dados!H377),\"-\",Dados!H377)","v":""},{"$f":"IF(ISERROR(Dados!I377),\"-\",Dados!I377)","v":""},{"$f":"IF(ISERROR(Dados!J377),\"-\",Dados!J377)","v":""},{"$f":"IF(ISERROR(Dados!K377),\"-\",Dados!K377)","v":""},{"$f":"IF(ISERROR(Dados!L377),\"-\",Dados!L377)","v":""},{"$f":"IF(ISERROR(Dados!M377),\"-\",Dados!M377)","v":""},{"$f":"IF(ISERROR(Dados!N377),\"-\",Dados!N377)","v":""},{"$f":"IF(ISERROR(Dados!O377),\"-\",Dados!O377)","v":""},{"$f":"IF(ISERROR(Dados!P377),\"-\",Dados!P377)","v":""},{"$f":"IF(ISERROR(Dados!Q377),\"-\",Dados!Q377)","v":""},{"$f":"IF(ISERROR(Dados!R377),\"-\",Dados!R377)","v":""},{"$f":"IF(ISERROR(Dados!S377),\"-\",Dados!S377)","v":""},{"$f":"IF(ISERROR(Dados!T377),\"-\",Dados!T377)","v":""},{"$f":"IF(ISERROR(Dados!U377),\"-\",Dados!U377)","v":""},{"$f":"IF(ISERROR(Dados!V377),\"-\",Dados!V377)","v":""},{"$f":"IF(ISERROR(Dados!W377),\"-\",Dados!W377)","v":""},{"$f":"IF(ISERROR(Dados!X377),\"-\",Dados!X377)","v":""},{"$f":"IF(ISERROR(Dados!Y377),\"-\",Dados!Y377)","v":""},{"$f":"IF(ISERROR(Dados!Z377),\"-\",Dados!Z377)","v":""},{"$f":"IF(ISERROR(Dados!AA377),\"-\",Dados!AA377)","v":""},{"$f":"IF(ISERROR(Dados!AB377),\"-\",Dados!AB377)","v":""},{"$f":"IF(ISERROR(Dados!AC377),\"-\",Dados!AC377)","v":""},{"$f":"IF(ISERROR(Dados!AD377),\"-\",Dados!AD377)","v":""},{"$f":"IF(ISERROR(Dados!AE377),\"-\",Dados!AE377)","v":""},{"$f":"IF(ISERROR(Dados!AF377),\"-\",Dados!AF377)","v":""},{"$f":"IF(ISERROR(Dados!AG377),\"-\",Dados!AG377)","v":""}]
[{"$f":"IF(ISERROR(Dados!A378),\"-\",Dados!A378)","v":""},{"$f":"IF(ISERROR(Dados!B378),\"-\",Dados!B378)","v":""},{"$f":"IF(ISERROR(Dados!C378),\"-\",Dados!C378)","v":""},{"$f":"IF(ISERROR(Dados!D378),\"-\",Dados!D378)","v":""},{"$f":"IF(ISERROR(Dados!E378),\"-\",Dados!E378)","v":""},{"$f":"IF(ISERROR(Dados!F378),\"-\",Dados!F378)","v":""},{"$f":"IF(ISERROR(Dados!G378),\"-\",Dados!G378)","v":""},{"$f":"IF(ISERROR(Dados!H378),\"-\",Dados!H378)","v":""},{"$f":"IF(ISERROR(Dados!I378),\"-\",Dados!I378)","v":""},{"$f":"IF(ISERROR(Dados!J378),\"-\",Dados!J378)","v":""},{"$f":"IF(ISERROR(Dados!K378),\"-\",Dados!K378)","v":""},{"$f":"IF(ISERROR(Dados!L378),\"-\",Dados!L378)","v":""},{"$f":"IF(ISERROR(Dados!M378),\"-\",Dados!M378)","v":""},{"$f":"IF(ISERROR(Dados!N378),\"-\",Dados!N378)","v":""},{"$f":"IF(ISERROR(Dados!O378),\"-\",Dados!O378)","v":""},{"$f":"IF(ISERROR(Dados!P378),\"-\",Dados!P378)","v":""},{"$f":"IF(ISERROR(Dados!Q378),\"-\",Dados!Q378)","v":""},{"$f":"IF(ISERROR(Dados!R378),\"-\",Dados!R378)","v":""},{"$f":"IF(ISERROR(Dados!S378),\"-\",Dados!S378)","v":""},{"$f":"IF(ISERROR(Dados!T378),\"-\",Dados!T378)","v":""},{"$f":"IF(ISERROR(Dados!U378),\"-\",Dados!U378)","v":""},{"$f":"IF(ISERROR(Dados!V378),\"-\",Dados!V378)","v":""},{"$f":"IF(ISERROR(Dados!W378),\"-\",Dados!W378)","v":""},{"$f":"IF(ISERROR(Dados!X378),\"-\",Dados!X378)","v":""},{"$f":"IF(ISERROR(Dados!Y378),\"-\",Dados!Y378)","v":""},{"$f":"IF(ISERROR(Dados!Z378),\"-\",Dados!Z378)","v":""},{"$f":"IF(ISERROR(Dados!AA378),\"-\",Dados!AA378)","v":""},{"$f":"IF(ISERROR(Dados!AB378),\"-\",Dados!AB378)","v":""},{"$f":"IF(ISERROR(Dados!AC378),\"-\",Dados!AC378)","v":""},{"$f":"IF(ISERROR(Dados!AD378),\"-\",Dados!AD378)","v":""},{"$f":"IF(ISERROR(Dados!AE378),\"-\",Dados!AE378)","v":""},{"$f":"IF(ISERROR(Dados!AF378),\"-\",Dados!AF378)","v":""},{"$f":"IF(ISERROR(Dados!AG378),\"-\",Dados!AG378)","v":""}]
[{"$f":"IF(ISERROR(Dados!A379),\"-\",Dados!A379)","v":""},{"$f":"IF(ISERROR(Dados!B379),\"-\",Dados!B379)","v":""},{"$f":"IF(ISERROR(Dados!C379),\"-\",Dados!C379)","v":""},{"$f":"IF(ISERROR(Dados!D379),\"-\",Dados!D379)","v":""},{"$f":"IF(ISERROR(Dados!E379),\"-\",Dados!E379)","v":""},{"$f":"IF(ISERROR(Dados!F379),\"-\",Dados!F379)","v":""},{"$f":"IF(ISERROR(Dados!G379),\"-\",Dados!G379)","v":""},{"$f":"IF(ISERROR(Dados!H379),\"-\",Dados!H379)","v":""},{"$f":"IF(ISERROR(Dados!I379),\"-\",Dados!I379)","v":""},{"$f":"IF(ISERROR(Dados!J379),\"-\",Dados!J379)","v":""},{"$f":"IF(ISERROR(Dados!K379),\"-\",Dados!K379)","v":""},{"$f":"IF(ISERROR(Dados!L379),\"-\",Dados!L379)","v":""},{"$f":"IF(ISERROR(Dados!M379),\"-\",Dados!M379)","v":""},{"$f":"IF(ISERROR(Dados!N379),\"-\",Dados!N379)","v":""},{"$f":"IF(ISERROR(Dados!O379),\"-\",Dados!O379)","v":""},{"$f":"IF(ISERROR(Dados!P379),\"-\",Dados!P379)","v":""},{"$f":"IF(ISERROR(Dados!Q379),\"-\",Dados!Q379)","v":""},{"$f":"IF(ISERROR(Dados!R379),\"-\",Dados!R379)","v":""},{"$f":"IF(ISERROR(Dados!S379),\"-\",Dados!S379)","v":""},{"$f":"IF(ISERROR(Dados!T379),\"-\",Dados!T379)","v":""},{"$f":"IF(ISERROR(Dados!U379),\"-\",Dados!U379)","v":""},{"$f":"IF(ISERROR(Dados!V379),\"-\",Dados!V379)","v":""},{"$f":"IF(ISERROR(Dados!W379),\"-\",Dados!W379)","v":""},{"$f":"IF(ISERROR(Dados!X379),\"-\",Dados!X379)","v":""},{"$f":"IF(ISERROR(Dados!Y379),\"-\",Dados!Y379)","v":""},{"$f":"IF(ISERROR(Dados!Z379),\"-\",Dados!Z379)","v":""},{"$f":"IF(ISERROR(Dados!AA379),\"-\",Dados!AA379)","v":""},{"$f":"IF(ISERROR(Dados!AB379),\"-\",Dados!AB379)","v":""},{"$f":"IF(ISERROR(Dados!AC379),\"-\",Dados!AC379)","v":""},{"$f":"IF(ISERROR(Dados!AD379),\"-\",Dados!AD379)","v":""},{"$f":"IF(ISERROR(Dados!AE379),\"-\",Dados!AE379)","v":""},{"$f":"IF(ISERROR(Dados!AF379),\"-\",Dados!AF379)","v":""},{"$f":"IF(ISERROR(Dados!AG379),\"-\",Dados!AG379)","v":""}]
[{"$f":"IF(ISERROR(Dados!A380),\"-\",Dados!A380)","v":""},{"$f":"IF(ISERROR(Dados!B380),\"-\",Dados!B380)","v":""},{"$f":"IF(ISERROR(Dados!C380),\"-\",Dados!C380)","v":""},{"$f":"IF(ISERROR(Dados!D380),\"-\",Dados!D380)","v":""},{"$f":"IF(ISERROR(Dados!E380),\"-\",Dados!E380)","v":""},{"$f":"IF(ISERROR(Dados!F380),\"-\",Dados!F380)","v":""},{"$f":"IF(ISERROR(Dados!G380),\"-\",Dados!G380)","v":""},{"$f":"IF(ISERROR(Dados!H380),\"-\",Dados!H380)","v":""},{"$f":"IF(ISERROR(Dados!I380),\"-\",Dados!I380)","v":""},{"$f":"IF(ISERROR(Dados!J380),\"-\",Dados!J380)","v":""},{"$f":"IF(ISERROR(Dados!K380),\"-\",Dados!K380)","v":""},{"$f":"IF(ISERROR(Dados!L380),\"-\",Dados!L380)","v":""},{"$f":"IF(ISERROR(Dados!M380),\"-\",Dados!M380)","v":""},{"$f":"IF(ISERROR(Dados!N380),\"-\",Dados!N380)","v":""},{"$f":"IF(ISERROR(Dados!O380),\"-\",Dados!O380)","v":""},{"$f":"IF(ISERROR(Dados!P380),\"-\",Dados!P380)","v":""},{"$f":"IF(ISERROR(Dados!Q380),\"-\",Dados!Q380)","v":""},{"$f":"IF(ISERROR(Dados!R380),\"-\",Dados!R380)","v":""},{"$f":"IF(ISERROR(Dados!S380),\"-\",Dados!S380)","v":""},{"$f":"IF(ISERROR(Dados!T380),\"-\",Dados!T380)","v":""},{"$f":"IF(ISERROR(Dados!U380),\"-\",Dados!U380)","v":""},{"$f":"IF(ISERROR(Dados!V380),\"-\",Dados!V380)","v":""},{"$f":"IF(ISERROR(Dados!W380),\"-\",Dados!W380)","v":""},{"$f":"IF(ISERROR(Dados!X380),\"-\",Dados!X380)","v":""},{"$f":"IF(ISERROR(Dados!Y380),\"-\",Dados!Y380)","v":""},{"$f":"IF(ISERROR(Dados!Z380),\"-\",Dados!Z380)","v":""},{"$f":"IF(ISERROR(Dados!AA380),\"-\",Dados!AA380)","v":""},{"$f":"IF(ISERROR(Dados!AB380),\"-\",Dados!AB380)","v":""},{"$f":"IF(ISERROR(Dados!AC380),\"-\",Dados!AC380)","v":""},{"$f":"IF(ISERROR(Dados!AD380),\"-\",Dados!AD380)","v":""},{"$f":"IF(ISERROR(Dados!AE380),\"-\",Dados!AE380)","v":""},{"$f":"IF(ISERROR(Dados!AF380),\"-\",Dados!AF380)","v":""},{"$f":"IF(ISERROR(Dados!AG380),\"-\",Dados!AG380)","v":""}]
[{"$f":"IF(ISERROR(Dados!A381),\"-\",Dados!A381)","v":""},{"$f":"IF(ISERROR(Dados!B381),\"-\",Dados!B381)","v":""},{"$f":"IF(ISERROR(Dados!C381),\"-\",Dados!C381)","v":""},{"$f":"IF(ISERROR(Dados!D381),\"-\",Dados!D381)","v":""},{"$f":"IF(ISERROR(Dados!E381),\"-\",Dados!E381)","v":""},{"$f":"IF(ISERROR(Dados!F381),\"-\",Dados!F381)","v":""},{"$f":"IF(ISERROR(Dados!G381),\"-\",Dados!G381)","v":""},{"$f":"IF(ISERROR(Dados!H381),\"-\",Dados!H381)","v":""},{"$f":"IF(ISERROR(Dados!I381),\"-\",Dados!I381)","v":""},{"$f":"IF(ISERROR(Dados!J381),\"-\",Dados!J381)","v":""},{"$f":"IF(ISERROR(Dados!K381),\"-\",Dados!K381)","v":""},{"$f":"IF(ISERROR(Dados!L381),\"-\",Dados!L381)","v":""},{"$f":"IF(ISERROR(Dados!M381),\"-\",Dados!M381)","v":""},{"$f":"IF(ISERROR(Dados!N381),\"-\",Dados!N381)","v":""},{"$f":"IF(ISERROR(Dados!O381),\"-\",Dados!O381)","v":""},{"$f":"IF(ISERROR(Dados!P381),\"-\",Dados!P381)","v":""},{"$f":"IF(ISERROR(Dados!Q381),\"-\",Dados!Q381)","v":""},{"$f":"IF(ISERROR(Dados!R381),\"-\",Dados!R381)","v":""},{"$f":"IF(ISERROR(Dados!S381),\"-\",Dados!S381)","v":""},{"$f":"IF(ISERROR(Dados!T381),\"-\",Dados!T381)","v":""},{"$f":"IF(ISERROR(Dados!U381),\"-\",Dados!U381)","v":""},{"$f":"IF(ISERROR(Dados!V381),\"-\",Dados!V381)","v":""},{"$f":"IF(ISERROR(Dados!W381),\"-\",Dados!W381)","v":""},{"$f":"IF(ISERROR(Dados!X381),\"-\",Dados!X381)","v":""},{"$f":"IF(ISERROR(Dados!Y381),\"-\",Dados!Y381)","v":""},{"$f":"IF(ISERROR(Dados!Z381),\"-\",Dados!Z381)","v":""},{"$f":"IF(ISERROR(Dados!AA381),\"-\",Dados!AA381)","v":""},{"$f":"IF(ISERROR(Dados!AB381),\"-\",Dados!AB381)","v":""},{"$f":"IF(ISERROR(Dados!AC381),\"-\",Dados!AC381)","v":""},{"$f":"IF(ISERROR(Dados!AD381),\"-\",Dados!AD381)","v":""},{"$f":"IF(ISERROR(Dados!AE381),\"-\",Dados!AE381)","v":""},{"$f":"IF(ISERROR(Dados!AF381),\"-\",Dados!AF381)","v":""},{"$f":"IF(ISERROR(Dados!AG381),\"-\",Dados!AG381)","v":""}]
[{"$f":"IF(ISERROR(Dados!A382),\"-\",Dados!A382)","v":""},{"$f":"IF(ISERROR(Dados!B382),\"-\",Dados!B382)","v":""},{"$f":"IF(ISERROR(Dados!C382),\"-\",Dados!C382)","v":""},{"$f":"IF(ISERROR(Dados!D382),\"-\",Dados!D382)","v":""},{"$f":"IF(ISERROR(Dados!E382),\"-\",Dados!E382)","v":""},{"$f":"IF(ISERROR(Dados!F382),\"-\",Dados!F382)","v":""},{"$f":"IF(ISERROR(Dados!G382),\"-\",Dados!G382)","v":""},{"$f":"IF(ISERROR(Dados!H382),\"-\",Dados!H382)","v":""},{"$f":"IF(ISERROR(Dados!I382),\"-\",Dados!I382)","v":""},{"$f":"IF(ISERROR(Dados!J382),\"-\",Dados!J382)","v":""},{"$f":"IF(ISERROR(Dados!K382),\"-\",Dados!K382)","v":""},{"$f":"IF(ISERROR(Dados!L382),\"-\",Dados!L382)","v":""},{"$f":"IF(ISERROR(Dados!M382),\"-\",Dados!M382)","v":""},{"$f":"IF(ISERROR(Dados!N382),\"-\",Dados!N382)","v":""},{"$f":"IF(ISERROR(Dados!O382),\"-\",Dados!O382)","v":""},{"$f":"IF(ISERROR(Dados!P382),\"-\",Dados!P382)","v":""},{"$f":"IF(ISERROR(Dados!Q382),\"-\",Dados!Q382)","v":""},{"$f":"IF(ISERROR(Dados!R382),\"-\",Dados!R382)","v":""},{"$f":"IF(ISERROR(Dados!S382),\"-\",Dados!S382)","v":""},{"$f":"IF(ISERROR(Dados!T382),\"-\",Dados!T382)","v":""},{"$f":"IF(ISERROR(Dados!U382),\"-\",Dados!U382)","v":""},{"$f":"IF(ISERROR(Dados!V382),\"-\",Dados!V382)","v":""},{"$f":"IF(ISERROR(Dados!W382),\"-\",Dados!W382)","v":""},{"$f":"IF(ISERROR(Dados!X382),\"-\",Dados!X382)","v":""},{"$f":"IF(ISERROR(Dados!Y382),\"-\",Dados!Y382)","v":""},{"$f":"IF(ISERROR(Dados!Z382),\"-\",Dados!Z382)","v":""},{"$f":"IF(ISERROR(Dados!AA382),\"-\",Dados!AA382)","v":""},{"$f":"IF(ISERROR(Dados!AB382),\"-\",Dados!AB382)","v":""},{"$f":"IF(ISERROR(Dados!AC382),\"-\",Dados!AC382)","v":""},{"$f":"IF(ISERROR(Dados!AD382),\"-\",Dados!AD382)","v":""},{"$f":"IF(ISERROR(Dados!AE382),\"-\",Dados!AE382)","v":""},{"$f":"IF(ISERROR(Dados!AF382),\"-\",Dados!AF382)","v":""},{"$f":"IF(ISERROR(Dados!AG382),\"-\",Dados!AG382)","v":""}]
[{"$f":"IF(ISERROR(Dados!A383),\"-\",Dados!A383)","v":""},{"$f":"IF(ISERROR(Dados!B383),\"-\",Dados!B383)","v":""},{"$f":"IF(ISERROR(Dados!C383),\"-\",Dados!C383)","v":""},{"$f":"IF(ISERROR(Dados!D383),\"-\",Dados!D383)","v":""},{"$f":"IF(ISERROR(Dados!E383),\"-\",Dados!E383)","v":""},{"$f":"IF(ISERROR(Dados!F383),\"-\",Dados!F383)","v":""},{"$f":"IF(ISERROR(Dados!G383),\"-\",Dados!G383)","v":""},{"$f":"IF(ISERROR(Dados!H383),\"-\",Dados!H383)","v":""},{"$f":"IF(ISERROR(Dados!I383),\"-\",Dados!I383)","v":""},{"$f":"IF(ISERROR(Dados!J383),\"-\",Dados!J383)","v":""},{"$f":"IF(ISERROR(Dados!K383),\"-\",Dados!K383)","v":""},{"$f":"IF(ISERROR(Dados!L383),\"-\",Dados!L383)","v":""},{"$f":"IF(ISERROR(Dados!M383),\"-\",Dados!M383)","v":""},{"$f":"IF(ISERROR(Dados!N383),\"-\",Dados!N383)","v":""},{"$f":"IF(ISERROR(Dados!O383),\"-\",Dados!O383)","v":""},{"$f":"IF(ISERROR(Dados!P383),\"-\",Dados!P383)","v":""},{"$f":"IF(ISERROR(Dados!Q383),\"-\",Dados!Q383)","v":""},{"$f":"IF(ISERROR(Dados!R383),\"-\",Dados!R383)","v":""},{"$f":"IF(ISERROR(Dados!S383),\"-\",Dados!S383)","v":""},{"$f":"IF(ISERROR(Dados!T383),\"-\",Dados!T383)","v":""},{"$f":"IF(ISERROR(Dados!U383),\"-\",Dados!U383)","v":""},{"$f":"IF(ISERROR(Dados!V383),\"-\",Dados!V383)","v":""},{"$f":"IF(ISERROR(Dados!W383),\"-\",Dados!W383)","v":""},{"$f":"IF(ISERROR(Dados!X383),\"-\",Dados!X383)","v":""},{"$f":"IF(ISERROR(Dados!Y383),\"-\",Dados!Y383)","v":""},{"$f":"IF(ISERROR(Dados!Z383),\"-\",Dados!Z383)","v":""},{"$f":"IF(ISERROR(Dados!AA383),\"-\",Dados!AA383)","v":""},{"$f":"IF(ISERROR(Dados!AB383),\"-\",Dados!AB383)","v":""},{"$f":"IF(ISERROR(Dados!AC383),\"-\",Dados!AC383)","v":""},{"$f":"IF(ISERROR(Dados!AD383),\"-\",Dados!AD383)","v":""},{"$f":"IF(ISERROR(Dados!AE383),\"-\",Dados!AE383)","v":""},{"$f":"IF(ISERROR(Dados!AF383),\"-\",Dados!AF383)","v":""},{"$f":"IF(ISERROR(Dados!AG383),\"-\",Dados!AG383)","v":""}]
[{"$f":"IF(ISERROR(Dados!A384),\"-\",Dados!A384)","v":""},{"$f":"IF(ISERROR(Dados!B384),\"-\",Dados!B384)","v":""},{"$f":"IF(ISERROR(Dados!C384),\"-\",Dados!C384)","v":""},{"$f":"IF(ISERROR(Dados!D384),\"-\",Dados!D384)","v":""},{"$f":"IF(ISERROR(Dados!E384),\"-\",Dados!E384)","v":""},{"$f":"IF(ISERROR(Dados!F384),\"-\",Dados!F384)","v":""},{"$f":"IF(ISERROR(Dados!G384),\"-\",Dados!G384)","v":""},{"$f":"IF(ISERROR(Dados!H384),\"-\",Dados!H384)","v":""},{"$f":"IF(ISERROR(Dados!I384),\"-\",Dados!I384)","v":""},{"$f":"IF(ISERROR(Dados!J384),\"-\",Dados!J384)","v":""},{"$f":"IF(ISERROR(Dados!K384),\"-\",Dados!K384)","v":""},{"$f":"IF(ISERROR(Dados!L384),\"-\",Dados!L384)","v":""},{"$f":"IF(ISERROR(Dados!M384),\"-\",Dados!M384)","v":""},{"$f":"IF(ISERROR(Dados!N384),\"-\",Dados!N384)","v":""},{"$f":"IF(ISERROR(Dados!O384),\"-\",Dados!O384)","v":""},{"$f":"IF(ISERROR(Dados!P384),\"-\",Dados!P384)","v":""},{"$f":"IF(ISERROR(Dados!Q384),\"-\",Dados!Q384)","v":""},{"$f":"IF(ISERROR(Dados!R384),\"-\",Dados!R384)","v":""},{"$f":"IF(ISERROR(Dados!S384),\"-\",Dados!S384)","v":""},{"$f":"IF(ISERROR(Dados!T384),\"-\",Dados!T384)","v":""},{"$f":"IF(ISERROR(Dados!U384),\"-\",Dados!U384)","v":""},{"$f":"IF(ISERROR(Dados!V384),\"-\",Dados!V384)","v":""},{"$f":"IF(ISERROR(Dados!W384),\"-\",Dados!W384)","v":""},{"$f":"IF(ISERROR(Dados!X384),\"-\",Dados!X384)","v":""},{"$f":"IF(ISERROR(Dados!Y384),\"-\",Dados!Y384)","v":""},{"$f":"IF(ISERROR(Dados!Z384),\"-\",Dados!Z384)","v":""},{"$f":"IF(ISERROR(Dados!AA384),\"-\",Dados!AA384)","v":""},{"$f":"IF(ISERROR(Dados!AB384),\"-\",Dados!AB384)","v":""},{"$f":"IF(ISERROR(Dados!AC384),\"-\",Dados!AC384)","v":""},{"$f":"IF(ISERROR(Dados!AD384),\"-\",Dados!AD384)","v":""},{"$f":"IF(ISERROR(Dados!AE384),\"-\",Dados!AE384)","v":""},{"$f":"IF(ISERROR(Dados!AF384),\"-\",Dados!AF384)","v":""},{"$f":"IF(ISERROR(Dados!AG384),\"-\",Dados!AG384)","v":""}]
[{"$f":"IF(ISERROR(Dados!A385),\"-\",Dados!A385)","v":""},{"$f":"IF(ISERROR(Dados!B385),\"-\",Dados!B385)","v":""},{"$f":"IF(ISERROR(Dados!C385),\"-\",Dados!C385)","v":""},{"$f":"IF(ISERROR(Dados!D385),\"-\",Dados!D385)","v":""},{"$f":"IF(ISERROR(Dados!E385),\"-\",Dados!E385)","v":""},{"$f":"IF(ISERROR(Dados!F385),\"-\",Dados!F385)","v":""},{"$f":"IF(ISERROR(Dados!G385),\"-\",Dados!G385)","v":""},{"$f":"IF(ISERROR(Dados!H385),\"-\",Dados!H385)","v":""},{"$f":"IF(ISERROR(Dados!I385),\"-\",Dados!I385)","v":""},{"$f":"IF(ISERROR(Dados!J385),\"-\",Dados!J385)","v":""},{"$f":"IF(ISERROR(Dados!K385),\"-\",Dados!K385)","v":""},{"$f":"IF(ISERROR(Dados!L385),\"-\",Dados!L385)","v":""},{"$f":"IF(ISERROR(Dados!M385),\"-\",Dados!M385)","v":""},{"$f":"IF(ISERROR(Dados!N385),\"-\",Dados!N385)","v":""},{"$f":"IF(ISERROR(Dados!O385),\"-\",Dados!O385)","v":""},{"$f":"IF(ISERROR(Dados!P385),\"-\",Dados!P385)","v":""},{"$f":"IF(ISERROR(Dados!Q385),\"-\",Dados!Q385)","v":""},{"$f":"IF(ISERROR(Dados!R385),\"-\",Dados!R385)","v":""},{"$f":"IF(ISERROR(Dados!S385),\"-\",Dados!S385)","v":""},{"$f":"IF(ISERROR(Dados!T385),\"-\",Dados!T385)","v":""},{"$f":"IF(ISERROR(Dados!U385),\"-\",Dados!U385)","v":""},{"$f":"IF(ISERROR(Dados!V385),\"-\",Dados!V385)","v":""},{"$f":"IF(ISERROR(Dados!W385),\"-\",Dados!W385)","v":""},{"$f":"IF(ISERROR(Dados!X385),\"-\",Dados!X385)","v":""},{"$f":"IF(ISERROR(Dados!Y385),\"-\",Dados!Y385)","v":""},{"$f":"IF(ISERROR(Dados!Z385),\"-\",Dados!Z385)","v":""},{"$f":"IF(ISERROR(Dados!AA385),\"-\",Dados!AA385)","v":""},{"$f":"IF(ISERROR(Dados!AB385),\"-\",Dados!AB385)","v":""},{"$f":"IF(ISERROR(Dados!AC385),\"-\",Dados!AC385)","v":""},{"$f":"IF(ISERROR(Dados!AD385),\"-\",Dados!AD385)","v":""},{"$f":"IF(ISERROR(Dados!AE385),\"-\",Dados!AE385)","v":""},{"$f":"IF(ISERROR(Dados!AF385),\"-\",Dados!AF385)","v":""},{"$f":"IF(ISERROR(Dados!AG385),\"-\",Dados!AG385)","v":""}]
[{"$f":"IF(ISERROR(Dados!A386),\"-\",Dados!A386)","v":""},{"$f":"IF(ISERROR(Dados!B386),\"-\",Dados!B386)","v":""},{"$f":"IF(ISERROR(Dados!C386),\"-\",Dados!C386)","v":""},{"$f":"IF(ISERROR(Dados!D386),\"-\",Dados!D386)","v":""},{"$f":"IF(ISERROR(Dados!E386),\"-\",Dados!E386)","v":""},{"$f":"IF(ISERROR(Dados!F386),\"-\",Dados!F386)","v":""},{"$f":"IF(ISERROR(Dados!G386),\"-\",Dados!G386)","v":""},{"$f":"IF(ISERROR(Dados!H386),\"-\",Dados!H386)","v":""},{"$f":"IF(ISERROR(Dados!I386),\"-\",Dados!I386)","v":""},{"$f":"IF(ISERROR(Dados!J386),\"-\",Dados!J386)","v":""},{"$f":"IF(ISERROR(Dados!K386),\"-\",Dados!K386)","v":""},{"$f":"IF(ISERROR(Dados!L386),\"-\",Dados!L386)","v":""},{"$f":"IF(ISERROR(Dados!M386),\"-\",Dados!M386)","v":""},{"$f":"IF(ISERROR(Dados!N386),\"-\",Dados!N386)","v":""},{"$f":"IF(ISERROR(Dados!O386),\"-\",Dados!O386)","v":""},{"$f":"IF(ISERROR(Dados!P386),\"-\",Dados!P386)","v":""},{"$f":"IF(ISERROR(Dados!Q386),\"-\",Dados!Q386)","v":""},{"$f":"IF(ISERROR(Dados!R386),\"-\",Dados!R386)","v":""},{"$f":"IF(ISERROR(Dados!S386),\"-\",Dados!S386)","v":""},{"$f":"IF(ISERROR(Dados!T386),\"-\",Dados!T386)","v":""},{"$f":"IF(ISERROR(Dados!U386),\"-\",Dados!U386)","v":""},{"$f":"IF(ISERROR(Dados!V386),\"-\",Dados!V386)","v":""},{"$f":"IF(ISERROR(Dados!W386),\"-\",Dados!W386)","v":""},{"$f":"IF(ISERROR(Dados!X386),\"-\",Dados!X386)","v":""},{"$f":"IF(ISERROR(Dados!Y386),\"-\",Dados!Y386)","v":""},{"$f":"IF(ISERROR(Dados!Z386),\"-\",Dados!Z386)","v":""},{"$f":"IF(ISERROR(Dados!AA386),\"-\",Dados!AA386)","v":""},{"$f":"IF(ISERROR(Dados!AB386),\"-\",Dados!AB386)","v":""},{"$f":"IF(ISERROR(Dados!AC386),\"-\",Dados!AC386)","v":""},{"$f":"IF(ISERROR(Dados!AD386),\"-\",Dados!AD386)","v":""},{"$f":"IF(ISERROR(Dados!AE386),\"-\",Dados!AE386)","v":""},{"$f":"IF(ISERROR(Dados!AF386),\"-\",Dados!AF386)","v":""},{"$f":"IF(ISERROR(Dados!AG386),\"-\",Dados!AG386)","v":""}]
[{"$f":"IF(ISERROR(Dados!A387),\"-\",Dados!A387)","v":""},{"$f":"IF(ISERROR(Dados!B387),\"-\",Dados!B387)","v":""},{"$f":"IF(ISERROR(Dados!C387),\"-\",Dados!C387)","v":""},{"$f":"IF(ISERROR(Dados!D387),\"-\",Dados!D387)","v":""},{"$f":"IF(ISERROR(Dados!E387),\"-\",Dados!E387)","v":""},{"$f":"IF(ISERROR(Dados!F387),\"-\",Dados!F387)","v":""},{"$f":"IF(ISERROR(Dados!G387),\"-\",Dados!G387)","v":""},{"$f":"IF(ISERROR(Dados!H387),\"-\",Dados!H387)","v":""},{"$f":"IF(ISERROR(Dados!I387),\"-\",Dados!I387)","v":""},{"$f":"IF(ISERROR(Dados!J387),\"-\",Dados!J387)","v":""},{"$f":"IF(ISERROR(Dados!K387),\"-\",Dados!K387)","v":""},{"$f":"IF(ISERROR(Dados!L387),\"-\",Dados!L387)","v":""},{"$f":"IF(ISERROR(Dados!M387),\"-\",Dados!M387)","v":""},{"$f":"IF(ISERROR(Dados!N387),\"-\",Dados!N387)","v":""},{"$f":"IF(ISERROR(Dados!O387),\"-\",Dados!O387)","v":""},{"$f":"IF(ISERROR(Dados!P387),\"-\",Dados!P387)","v":""},{"$f":"IF(ISERROR(Dados!Q387),\"-\",Dados!Q387)","v":""},{"$f":"IF(ISERROR(Dados!R387),\"-\",Dados!R387)","v":""},{"$f":"IF(ISERROR(Dados!S387),\"-\",Dados!S387)","v":""},{"$f":"IF(ISERROR(Dados!T387),\"-\",Dados!T387)","v":""},{"$f":"IF(ISERROR(Dados!U387),\"-\",Dados!U387)","v":""},{"$f":"IF(ISERROR(Dados!V387),\"-\",Dados!V387)","v":""},{"$f":"IF(ISERROR(Dados!W387),\"-\",Dados!W387)","v":""},{"$f":"IF(ISERROR(Dados!X387),\"-\",Dados!X387)","v":""},{"$f":"IF(ISERROR(Dados!Y387),\"-\",Dados!Y387)","v":""},{"$f":"IF(ISERROR(Dados!Z387),\"-\",Dados!Z387)","v":""},{"$f":"IF(ISERROR(Dados!AA387),\"-\",Dados!AA387)","v":""},{"$f":"IF(ISERROR(Dados!AB387),\"-\",Dados!AB387)","v":""},{"$f":"IF(ISERROR(Dados!AC387),\"-\",Dados!AC387)","v":""},{"$f":"IF(ISERROR(Dados!AD387),\"-\",Dados!AD387)","v":""},{"$f":"IF(ISERROR(Dados!AE387),\"-\",Dados!AE387)","v":""},{"$f":"IF(ISERROR(Dados!AF387),\"-\",Dados!AF387)","v":""},{"$f":"IF(ISERROR(Dados!AG387),\"-\",Dados!AG387)","v":""}]
[{"$f":"IF(ISERROR(Dados!A388),\"-\",Dados!A388)","v":""},{"$f":"IF(ISERROR(Dados!B388),\"-\",Dados!B388)","v":""},{"$f":"IF(ISERROR(Dados!C388),\"-\",Dados!C388)","v":""},{"$f":"IF(ISERROR(Dados!D388),\"-\",Dados!D388)","v":""},{"$f":"IF(ISERROR(Dados!E388),\"-\",Dados!E388)","v":""},{"$f":"IF(ISERROR(Dados!F388),\"-\",Dados!F388)","v":""},{"$f":"IF(ISERROR(Dados!G388),\"-\",Dados!G388)","v":""},{"$f":"IF(ISERROR(Dados!H388),\"-\",Dados!H388)","v":""},{"$f":"IF(ISERROR(Dados!I388),\"-\",Dados!I388)","v":""},{"$f":"IF(ISERROR(Dados!J388),\"-\",Dados!J388)","v":""},{"$f":"IF(ISERROR(Dados!K388),\"-\",Dados!K388)","v":""},{"$f":"IF(ISERROR(Dados!L388),\"-\",Dados!L388)","v":""},{"$f":"IF(ISERROR(Dados!M388),\"-\",Dados!M388)","v":""},{"$f":"IF(ISERROR(Dados!N388),\"-\",Dados!N388)","v":""},{"$f":"IF(ISERROR(Dados!O388),\"-\",Dados!O388)","v":""},{"$f":"IF(ISERROR(Dados!P388),\"-\",Dados!P388)","v":""},{"$f":"IF(ISERROR(Dados!Q388),\"-\",Dados!Q388)","v":""},{"$f":"IF(ISERROR(Dados!R388),\"-\",Dados!R388)","v":""},{"$f":"IF(ISERROR(Dados!S388),\"-\",Dados!S388)","v":""},{"$f":"IF(ISERROR(Dados!T388),\"-\",Dados!T388)","v":""},{"$f":"IF(ISERROR(Dados!U388),\"-\",Dados!U388)","v":""},{"$f":"IF(ISERROR(Dados!V388),\"-\",Dados!V388)","v":""},{"$f":"IF(ISERROR(Dados!W388),\"-\",Dados!W388)","v":""},{"$f":"IF(ISERROR(Dados!X388),\"-\",Dados!X388)","v":""},{"$f":"IF(ISERROR(Dados!Y388),\"-\",Dados!Y388)","v":""},{"$f":"IF(ISERROR(Dados!Z388),\"-\",Dados!Z388)","v":""},{"$f":"IF(ISERROR(Dados!AA388),\"-\",Dados!AA388)","v":""},{"$f":"IF(ISERROR(Dados!AB388),\"-\",Dados!AB388)","v":""},{"$f":"IF(ISERROR(Dados!AC388),\"-\",Dados!AC388)","v":""},{"$f":"IF(ISERROR(Dados!AD388),\"-\",Dados!AD388)","v":""},{"$f":"IF(ISERROR(Dados!AE388),\"-\",Dados!AE388)","v":""},{"$f":"IF(ISERROR(Dados!AF388),\"-\",Dados!AF388)","v":""},{"$f":"IF(ISERROR(Dados!AG388),\"-\",Dados!AG388)","v":""}]
[{"$f":"IF(ISERROR(Dados!A389),\"-\",Dados!A389)","v":""},{"$f":"IF(ISERROR(Dados!B389),\"-\",Dados!B389)","v":""},{"$f":"IF(ISERROR(Dados!C389),\"-\",Dados!C389)","v":""},{"$f":"IF(ISERROR(Dados!D389),\"-\",Dados!D389)","v":""},{"$f":"IF(ISERROR(Dados!E389),\"-\",Dados!E389)","v":""},{"$f":"IF(ISERROR(Dados!F389),\"-\",Dados!F389)","v":""},{"$f":"IF(ISERROR(Dados!G389),\"-\",Dados!G389)","v":""},{"$f":"IF(ISERROR(Dados!H389),\"-\",Dados!H389)","v":""},{"$f":"IF(ISERROR(Dados!I389),\"-\",Dados!I389)","v":""},{"$f":"IF(ISERROR(Dados!J389),\"-\",Dados!J389)","v":""},{"$f":"IF(ISERROR(Dados!K389),\"-\",Dados!K389)","v":""},{"$f":"IF(ISERROR(Dados!L389),\"-\",Dados!L389)","v":""},{"$f":"IF(ISERROR(Dados!M389),\"-\",Dados!M389)","v":""},{"$f":"IF(ISERROR(Dados!N389),\"-\",Dados!N389)","v":""},{"$f":"IF(ISERROR(Dados!O389),\"-\",Dados!O389)","v":""},{"$f":"IF(ISERROR(Dados!P389),\"-\",Dados!P389)","v":""},{"$f":"IF(ISERROR(Dados!Q389),\"-\",Dados!Q389)","v":""},{"$f":"IF(ISERROR(Dados!R389),\"-\",Dados!R389)","v":""},{"$f":"IF(ISERROR(Dados!S389),\"-\",Dados!S389)","v":""},{"$f":"IF(ISERROR(Dados!T389),\"-\",Dados!T389)","v":""},{"$f":"IF(ISERROR(Dados!U389),\"-\",Dados!U389)","v":""},{"$f":"IF(ISERROR(Dados!V389),\"-\",Dados!V389)","v":""},{"$f":"IF(ISERROR(Dados!W389),\"-\",Dados!W389)","v":""},{"$f":"IF(ISERROR(Dados!X389),\"-\",Dados!X389)","v":""},{"$f":"IF(ISERROR(Dados!Y389),\"-\",Dados!Y389)","v":""},{"$f":"IF(ISERROR(Dados!Z389),\"-\",Dados!Z389)","v":""},{"$f":"IF(ISERROR(Dados!AA389),\"-\",Dados!AA389)","v":""},{"$f":"IF(ISERROR(Dados!AB389),\"-\",Dados!AB389)","v":""},{"$f":"IF(ISERROR(Dados!AC389),\"-\",Dados!AC389)","v":""},{"$f":"IF(ISERROR(Dados!AD389),\"-\",Dados!AD389)","v":""},{"$f":"IF(ISERROR(Dados!AE389),\"-\",Dados!AE389)","v":""},{"$f":"IF(ISERROR(Dados!AF389),\"-\",Dados!AF389)","v":""},{"$f":"IF(ISERROR(Dados!AG389),\"-\",Dados!AG389)","v":""}]
[{"$f":"IF(ISERROR(Dados!A390),\"-\",Dados!A390)","v":""},{"$f":"IF(ISERROR(Dados!B390),\"-\",Dados!B390)","v":""},{"$f":"IF(ISERROR(Dados!C390),\"-\",Dados!C390)","v":""},{"$f":"IF(ISERROR(Dados!D390),\"-\",Dados!D390)","v":""},{"$f":"IF(ISERROR(Dados!E390),\"-\",Dados!E390)","v":""},{"$f":"IF(ISERROR(Dados!F390),\"-\",Dados!F390)","v":""},{"$f":"IF(ISERROR(Dados!G390),\"-\",Dados!G390)","v":""},{"$f":"IF(ISERROR(Dados!H390),\"-\",Dados!H390)","v":""},{"$f":"IF(ISERROR(Dados!I390),\"-\",Dados!I390)","v":""},{"$f":"IF(ISERROR(Dados!J390),\"-\",Dados!J390)","v":""},{"$f":"IF(ISERROR(Dados!K390),\"-\",Dados!K390)","v":""},{"$f":"IF(ISERROR(Dados!L390),\"-\",Dados!L390)","v":""},{"$f":"IF(ISERROR(Dados!M390),\"-\",Dados!M390)","v":""},{"$f":"IF(ISERROR(Dados!N390),\"-\",Dados!N390)","v":""},{"$f":"IF(ISERROR(Dados!O390),\"-\",Dados!O390)","v":""},{"$f":"IF(ISERROR(Dados!P390),\"-\",Dados!P390)","v":""},{"$f":"IF(ISERROR(Dados!Q390),\"-\",Dados!Q390)","v":""},{"$f":"IF(ISERROR(Dados!R390),\"-\",Dados!R390)","v":""},{"$f":"IF(ISERROR(Dados!S390),\"-\",Dados!S390)","v":""},{"$f":"IF(ISERROR(Dados!T390),\"-\",Dados!T390)","v":""},{"$f":"IF(ISERROR(Dados!U390),\"-\",Dados!U390)","v":""},{"$f":"IF(ISERROR(Dados!V390),\"-\",Dados!V390)","v":""},{"$f":"IF(ISERROR(Dados!W390),\"-\",Dados!W390)","v":""},{"$f":"IF(ISERROR(Dados!X390),\"-\",Dados!X390)","v":""},{"$f":"IF(ISERROR(Dados!Y390),\"-\",Dados!Y390)","v":""},{"$f":"IF(ISERROR(Dados!Z390),\"-\",Dados!Z390)","v":""},{"$f":"IF(ISERROR(Dados!AA390),\"-\",Dados!AA390)","v":""},{"$f":"IF(ISERROR(Dados!AB390),\"-\",Dados!AB390)","v":""},{"$f":"IF(ISERROR(Dados!AC390),\"-\",Dados!AC390)","v":""},{"$f":"IF(ISERROR(Dados!AD390),\"-\",Dados!AD390)","v":""},{"$f":"IF(ISERROR(Dados!AE390),\"-\",Dados!AE390)","v":""},{"$f":"IF(ISERROR(Dados!AF390),\"-\",Dados!AF390)","v":""},{"$f":"IF(ISERROR(Dados!AG390),\"-\",Dados!AG390)","v":""}]
[{"$f":"IF(ISERROR(Dados!A391),\"-\",Dados!A391)","v":""},{"$f":"IF(ISERROR(Dados!B391),\"-\",Dados!B391)","v":""},{"$f":"IF(ISERROR(Dados!C391),\"-\",Dados!C391)","v":""},{"$f":"IF(ISERROR(Dados!D391),\"-\",Dados!D391)","v":""},{"$f":"IF(ISERROR(Dados!E391),\"-\",Dados!E391)","v":""},{"$f":"IF(ISERROR(Dados!F391),\"-\",Dados!F391)","v":""},{"$f":"IF(ISERROR(Dados!G391),\"-\",Dados!G391)","v":""},{"$f":"IF(ISERROR(Dados!H391),\"-\",Dados!H391)","v":""},{"$f":"IF(ISERROR(Dados!I391),\"-\",Dados!I391)","v":""},{"$f":"IF(ISERROR(Dados!J391),\"-\",Dados!J391)","v":""},{"$f":"IF(ISERROR(Dados!K391),\"-\",Dados!K391)","v":""},{"$f":"IF(ISERROR(Dados!L391),\"-\",Dados!L391)","v":""},{"$f":"IF(ISERROR(Dados!M391),\"-\",Dados!M391)","v":""},{"$f":"IF(ISERROR(Dados!N391),\"-\",Dados!N391)","v":""},{"$f":"IF(ISERROR(Dados!O391),\"-\",Dados!O391)","v":""},{"$f":"IF(ISERROR(Dados!P391),\"-\",Dados!P391)","v":""},{"$f":"IF(ISERROR(Dados!Q391),\"-\",Dados!Q391)","v":""},{"$f":"IF(ISERROR(Dados!R391),\"-\",Dados!R391)","v":""},{"$f":"IF(ISERROR(Dados!S391),\"-\",Dados!S391)","v":""},{"$f":"IF(ISERROR(Dados!T391),\"-\",Dados!T391)","v":""},{"$f":"IF(ISERROR(Dados!U391),\"-\",Dados!U391)","v":""},{"$f":"IF(ISERROR(Dados!V391),\"-\",Dados!V391)","v":""},{"$f":"IF(ISERROR(Dados!W391),\"-\",Dados!W391)","v":""},{"$f":"IF(ISERROR(Dados!X391),\"-\",Dados!X391)","v":""},{"$f":"IF(ISERROR(Dados!Y391),\"-\",Dados!Y391)","v":""},{"$f":"IF(ISERROR(Dados!Z391),\"-\",Dados!Z391)","v":""},{"$f":"IF(ISERROR(Dados!AA391),\"-\",Dados!AA391)","v":""},{"$f":"IF(ISERROR(Dados!AB391),\"-\",Dados!AB391)","v":""},{"$f":"IF(ISERROR(Dados!AC391),\"-\",Dados!AC391)","v":""},{"$f":"IF(ISERROR(Dados!AD391),\"-\",Dados!AD391)","v":""},{"$f":"IF(ISERROR(Dados!AE391),\"-\",Dados!AE391)","v":""},{"$f":"IF(ISERROR(Dados!AF391),\"-\",Dados!AF391)","v":""},{"$f":"IF(ISERROR(Dados!AG391),\"-\",Dados!AG391)","v":""}]
[{"$f":"IF(ISERROR(Dados!A392),\"-\",Dados!A392)","v":""},{"$f":"IF(ISERROR(Dados!B392),\"-\",Dados!B392)","v":""},{"$f":"IF(ISERROR(Dados!C392),\"-\",Dados!C392)","v":""},{"$f":"IF(ISERROR(Dados!D392),\"-\",Dados!D392)","v":""},{"$f":"IF(ISERROR(Dados!E392),\"-\",Dados!E392)","v":""},{"$f":"IF(ISERROR(Dados!F392),\"-\",Dados!F392)","v":""},{"$f":"IF(ISERROR(Dados!G392),\"-\",Dados!G392)","v":""},{"$f":"IF(ISERROR(Dados!H392),\"-\",Dados!H392)","v":""},{"$f":"IF(ISERROR(Dados!I392),\"-\",Dados!I392)","v":""},{"$f":"IF(ISERROR(Dados!J392),\"-\",Dados!J392)","v":""},{"$f":"IF(ISERROR(Dados!K392),\"-\",Dados!K392)","v":""},{"$f":"IF(ISERROR(Dados!L392),\"-\",Dados!L392)","v":""},{"$f":"IF(ISERROR(Dados!M392),\"-\",Dados!M392)","v":""},{"$f":"IF(ISERROR(Dados!N392),\"-\",Dados!N392)","v":""},{"$f":"IF(ISERROR(Dados!O392),\"-\",Dados!O392)","v":""},{"$f":"IF(ISERROR(Dados!P392),\"-\",Dados!P392)","v":""},{"$f":"IF(ISERROR(Dados!Q392),\"-\",Dados!Q392)","v":""},{"$f":"IF(ISERROR(Dados!R392),\"-\",Dados!R392)","v":""},{"$f":"IF(ISERROR(Dados!S392),\"-\",Dados!S392)","v":""},{"$f":"IF(ISERROR(Dados!T392),\"-\",Dados!T392)","v":""},{"$f":"IF(ISERROR(Dados!U392),\"-\",Dados!U392)","v":""},{"$f":"IF(ISERROR(Dados!V392),\"-\",Dados!V392)","v":""},{"$f":"IF(ISERROR(Dados!W392),\"-\",Dados!W392)","v":""},{"$f":"IF(ISERROR(Dados!X392),\"-\",Dados!X392)","v":""},{"$f":"IF(ISERROR(Dados!Y392),\"-\",Dados!Y392)","v":""},{"$f":"IF(ISERROR(Dados!Z392),\"-\",Dados!Z392)","v":""},{"$f":"IF(ISERROR(Dados!AA392),\"-\",Dados!AA392)","v":""},{"$f":"IF(ISERROR(Dados!AB392),\"-\",Dados!AB392)","v":""},{"$f":"IF(ISERROR(Dados!AC392),\"-\",Dados!AC392)","v":""},{"$f":"IF(ISERROR(Dados!AD392),\"-\",Dados!AD392)","v":""},{"$f":"IF(ISERROR(Dados!AE392),\"-\",Dados!AE392)","v":""},{"$f":"IF(ISERROR(Dados!AF392),\"-\",Dados!AF392)","v":""},{"$f":"IF(ISERROR(Dados!AG392),\"-\",Dados!AG392)","v":""}]
[{"$f":"IF(ISERROR(Dados!A393),\"-\",Dados!A393)","v":""},{"$f":"IF(ISERROR(Dados!B393),\"-\",Dados!B393)","v":""},{"$f":"IF(ISERROR(Dados!C393),\"-\",Dados!C393)","v":""},{"$f":"IF(ISERROR(Dados!D393),\"-\",Dados!D393)","v":""},{"$f":"IF(ISERROR(Dados!E393),\"-\",Dados!E393)","v":""},{"$f":"IF(ISERROR(Dados!F393),\"-\",Dados!F393)","v":""},{"$f":"IF(ISERROR(Dados!G393),\"-\",Dados!G393)","v":""},{"$f":"IF(ISERROR(Dados!H393),\"-\",Dados!H393)","v":""},{"$f":"IF(ISERROR(Dados!I393),\"-\",Dados!I393)","v":""},{"$f":"IF(ISERROR(Dados!J393),\"-\",Dados!J393)","v":""},{"$f":"IF(ISERROR(Dados!K393),\"-\",Dados!K393)","v":""},{"$f":"IF(ISERROR(Dados!L393),\"-\",Dados!L393)","v":""},{"$f":"IF(ISERROR(Dados!M393),\"-\",Dados!M393)","v":""},{"$f":"IF(ISERROR(Dados!N393),\"-\",Dados!N393)","v":""},{"$f":"IF(ISERROR(Dados!O393),\"-\",Dados!O393)","v":""},{"$f":"IF(ISERROR(Dados!P393),\"-\",Dados!P393)","v":""},{"$f":"IF(ISERROR(Dados!Q393),\"-\",Dados!Q393)","v":""},{"$f":"IF(ISERROR(Dados!R393),\"-\",Dados!R393)","v":""},{"$f":"IF(ISERROR(Dados!S393),\"-\",Dados!S393)","v":""},{"$f":"IF(ISERROR(Dados!T393),\"-\",Dados!T393)","v":""},{"$f":"IF(ISERROR(Dados!U393),\"-\",Dados!U393)","v":""},{"$f":"IF(ISERROR(Dados!V393),\"-\",Dados!V393)","v":""},{"$f":"IF(ISERROR(Dados!W393),\"-\",Dados!W393)","v":""},{"$f":"IF(ISERROR(Dados!X393),\"-\",Dados!X393)","v":""},{"$f":"IF(ISERROR(Dados!Y393),\"-\",Dados!Y393)","v":""},{"$f":"IF(ISERROR(Dados!Z393),\"-\",Dados!Z393)","v":""},{"$f":"IF(ISERROR(Dados!AA393),\"-\",Dados!AA393)","v":""},{"$f":"IF(ISERROR(Dados!AB393),\"-\",Dados!AB393)","v":""},{"$f":"IF(ISERROR(Dados!AC393),\"-\",Dados!AC393)","v":""},{"$f":"IF(ISERROR(Dados!AD393),\"-\",Dados!AD393)","v":""},{"$f":"IF(ISERROR(Dados!AE393),\"-\",Dados!AE393)","v":""},{"$f":"IF(ISERROR(Dados!AF393),\"-\",Dados!AF393)","v":""},{"$f":"IF(ISERROR(Dados!AG393),\"-\",Dados!AG393)","v":""}]
[{"$f":"IF(ISERROR(Dados!A394),\"-\",Dados!A394)","v":""},{"$f":"IF(ISERROR(Dados!B394),\"-\",Dados!B394)","v":""},{"$f":"IF(ISERROR(Dados!C394),\"-\",Dados!C394)","v":""},{"$f":"IF(ISERROR(Dados!D394),\"-\",Dados!D394)","v":""},{"$f":"IF(ISERROR(Dados!E394),\"-\",Dados!E394)","v":""},{"$f":"IF(ISERROR(Dados!F394),\"-\",Dados!F394)","v":""},{"$f":"IF(ISERROR(Dados!G394),\"-\",Dados!G394)","v":""},{"$f":"IF(ISERROR(Dados!H394),\"-\",Dados!H394)","v":""},{"$f":"IF(ISERROR(Dados!I394),\"-\",Dados!I394)","v":""},{"$f":"IF(ISERROR(Dados!J394),\"-\",Dados!J394)","v":""},{"$f":"IF(ISERROR(Dados!K394),\"-\",Dados!K394)","v":""},{"$f":"IF(ISERROR(Dados!L394),\"-\",Dados!L394)","v":""},{"$f":"IF(ISERROR(Dados!M394),\"-\",Dados!M394)","v":""},{"$f":"IF(ISERROR(Dados!N394),\"-\",Dados!N394)","v":""},{"$f":"IF(ISERROR(Dados!O394),\"-\",Dados!O394)","v":""},{"$f":"IF(ISERROR(Dados!P394),\"-\",Dados!P394)","v":""},{"$f":"IF(ISERROR(Dados!Q394),\"-\",Dados!Q394)","v":""},{"$f":"IF(ISERROR(Dados!R394),\"-\",Dados!R394)","v":""},{"$f":"IF(ISERROR(Dados!S394),\"-\",Dados!S394)","v":""},{"$f":"IF(ISERROR(Dados!T394),\"-\",Dados!T394)","v":""},{"$f":"IF(ISERROR(Dados!U394),\"-\",Dados!U394)","v":""},{"$f":"IF(ISERROR(Dados!V394),\"-\",Dados!V394)","v":""},{"$f":"IF(ISERROR(Dados!W394),\"-\",Dados!W394)","v":""},{"$f":"IF(ISERROR(Dados!X394),\"-\",Dados!X394)","v":""},{"$f":"IF(ISERROR(Dados!Y394),\"-\",Dados!Y394)","v":""},{"$f":"IF(ISERROR(Dados!Z394),\"-\",Dados!Z394)","v":""},{"$f":"IF(ISERROR(Dados!AA394),\"-\",Dados!AA394)","v":""},{"$f":"IF(ISERROR(Dados!AB394),\"-\",Dados!AB394)","v":""},{"$f":"IF(ISERROR(Dados!AC394),\"-\",Dados!AC394)","v":""},{"$f":"IF(ISERROR(Dados!AD394),\"-\",Dados!AD394)","v":""},{"$f":"IF(ISERROR(Dados!AE394),\"-\",Dados!AE394)","v":""},{"$f":"IF(ISERROR(Dados!AF394),\"-\",Dados!AF394)","v":""},{"$f":"IF(ISERROR(Dados!AG394),\"-\",Dados!AG394)","v":""}]
[{"$f":"IF(ISERROR(Dados!A395),\"-\",Dados!A395)","v":""},{"$f":"IF(ISERROR(Dados!B395),\"-\",Dados!B395)","v":""},{"$f":"IF(ISERROR(Dados!C395),\"-\",Dados!C395)","v":""},{"$f":"IF(ISERROR(Dados!D395),\"-\",Dados!D395)","v":""},{"$f":"IF(ISERROR(Dados!E395),\"-\",Dados!E395)","v":""},{"$f":"IF(ISERROR(Dados!F395),\"-\",Dados!F395)","v":""},{"$f":"IF(ISERROR(Dados!G395),\"-\",Dados!G395)","v":""},{"$f":"IF(ISERROR(Dados!H395),\"-\",Dados!H395)","v":""},{"$f":"IF(ISERROR(Dados!I395),\"-\",Dados!I395)","v":""},{"$f":"IF(ISERROR(Dados!J395),\"-\",Dados!J395)","v":""},{"$f":"IF(ISERROR(Dados!K395),\"-\",Dados!K395)","v":""},{"$f":"IF(ISERROR(Dados!L395),\"-\",Dados!L395)","v":""},{"$f":"IF(ISERROR(Dados!M395),\"-\",Dados!M395)","v":""},{"$f":"IF(ISERROR(Dados!N395),\"-\",Dados!N395)","v":""},{"$f":"IF(ISERROR(Dados!O395),\"-\",Dados!O395)","v":""},{"$f":"IF(ISERROR(Dados!P395),\"-\",Dados!P395)","v":""},{"$f":"IF(ISERROR(Dados!Q395),\"-\",Dados!Q395)","v":""},{"$f":"IF(ISERROR(Dados!R395),\"-\",Dados!R395)","v":""},{"$f":"IF(ISERROR(Dados!S395),\"-\",Dados!S395)","v":""},{"$f":"IF(ISERROR(Dados!T395),\"-\",Dados!T395)","v":""},{"$f":"IF(ISERROR(Dados!U395),\"-\",Dados!U395)","v":""},{"$f":"IF(ISERROR(Dados!V395),\"-\",Dados!V395)","v":""},{"$f":"IF(ISERROR(Dados!W395),\"-\",Dados!W395)","v":""},{"$f":"IF(ISERROR(Dados!X395),\"-\",Dados!X395)","v":""},{"$f":"IF(ISERROR(Dados!Y395),\"-\",Dados!Y395)","v":""},{"$f":"IF(ISERROR(Dados!Z395),\"-\",Dados!Z395)","v":""},{"$f":"IF(ISERROR(Dados!AA395),\"-\",Dados!AA395)","v":""},{"$f":"IF(ISERROR(Dados!AB395),\"-\",Dados!AB395)","v":""},{"$f":"IF(ISERROR(Dados!AC395),\"-\",Dados!AC395)","v":""},{"$f":"IF(ISERROR(Dados!AD395),\"-\",Dados!AD395)","v":""},{"$f":"IF(ISERROR(Dados!AE395),\"-\",Dados!AE395)","v":""},{"$f":"IF(ISERROR(Dados!AF395),\"-\",Dados!AF395)","v":""},{"$f":"IF(ISERROR(Dados!AG395),\"-\",Dados!AG395)","v":""}]
[{"$f":"IF(ISERROR(Dados!A396),\"-\",Dados!A396)","v":""},{"$f":"IF(ISERROR(Dados!B396),\"-\",Dados!B396)","v":""},{"$f":"IF(ISERROR(Dados!C396),\"-\",Dados!C396)","v":""},{"$f":"IF(ISERROR(Dados!D396),\"-\",Dados!D396)","v":""},{"$f":"IF(ISERROR(Dados!E396),\"-\",Dados!E396)","v":""},{"$f":"IF(ISERROR(Dados!F396),\"-\",Dados!F396)","v":""},{"$f":"IF(ISERROR(Dados!G396),\"-\",Dados!G396)","v":""},{"$f":"IF(ISERROR(Dados!H396),\"-\",Dados!H396)","v":""},{"$f":"IF(ISERROR(Dados!I396),\"-\",Dados!I396)","v":""},{"$f":"IF(ISERROR(Dados!J396),\"-\",Dados!J396)","v":""},{"$f":"IF(ISERROR(Dados!K396),\"-\",Dados!K396)","v":""},{"$f":"IF(ISERROR(Dados!L396),\"-\",Dados!L396)","v":""},{"$f":"IF(ISERROR(Dados!M396),\"-\",Dados!M396)","v":""},{"$f":"IF(ISERROR(Dados!N396),\"-\",Dados!N396)","v":""},{"$f":"IF(ISERROR(Dados!O396),\"-\",Dados!O396)","v":""},{"$f":"IF(ISERROR(Dados!P396),\"-\",Dados!P396)","v":""},{"$f":"IF(ISERROR(Dados!Q396),\"-\",Dados!Q396)","v":""},{"$f":"IF(ISERROR(Dados!R396),\"-\",Dados!R396)","v":""},{"$f":"IF(ISERROR(Dados!S396),\"-\",Dados!S396)","v":""},{"$f":"IF(ISERROR(Dados!T396),\"-\",Dados!T396)","v":""},{"$f":"IF(ISERROR(Dados!U396),\"-\",Dados!U396)","v":""},{"$f":"IF(ISERROR(Dados!V396),\"-\",Dados!V396)","v":""},{"$f":"IF(ISERROR(Dados!W396),\"-\",Dados!W396)","v":""},{"$f":"IF(ISERROR(Dados!X396),\"-\",Dados!X396)","v":""},{"$f":"IF(ISERROR(Dados!Y396),\"-\",Dados!Y396)","v":""},{"$f":"IF(ISERROR(Dados!Z396),\"-\",Dados!Z396)","v":""},{"$f":"IF(ISERROR(Dados!AA396),\"-\",Dados!AA396)","v":""},{"$f":"IF(ISERROR(Dados!AB396),\"-\",Dados!AB396)","v":""},{"$f":"IF(ISERROR(Dados!AC396),\"-\",Dados!AC396)","v":""},{"$f":"IF(ISERROR(Dados!AD396),\"-\",Dados!AD396)","v":""},{"$f":"IF(ISERROR(Dados!AE396),\"-\",Dados!AE396)","v":""},{"$f":"IF(ISERROR(Dados!AF396),\"-\",Dados!AF396)","v":""},{"$f":"IF(ISERROR(Dados!AG396),\"-\",Dados!AG396)","v":""}]
[{"$f":"IF(ISERROR(Dados!A397),\"-\",Dados!A397)","v":""},{"$f":"IF(ISERROR(Dados!B397),\"-\",Dados!B397)","v":""},{"$f":"IF(ISERROR(Dados!C397),\"-\",Dados!C397)","v":""},{"$f":"IF(ISERROR(Dados!D397),\"-\",Dados!D397)","v":""},{"$f":"IF(ISERROR(Dados!E397),\"-\",Dados!E397)","v":""},{"$f":"IF(ISERROR(Dados!F397),\"-\",Dados!F397)","v":""},{"$f":"IF(ISERROR(Dados!G397),\"-\",Dados!G397)","v":""},{"$f":"IF(ISERROR(Dados!H397),\"-\",Dados!H397)","v":""},{"$f":"IF(ISERROR(Dados!I397),\"-\",Dados!I397)","v":""},{"$f":"IF(ISERROR(Dados!J397),\"-\",Dados!J397)","v":""},{"$f":"IF(ISERROR(Dados!K397),\"-\",Dados!K397)","v":""},{"$f":"IF(ISERROR(Dados!L397),\"-\",Dados!L397)","v":""},{"$f":"IF(ISERROR(Dados!M397),\"-\",Dados!M397)","v":""},{"$f":"IF(ISERROR(Dados!N397),\"-\",Dados!N397)","v":""},{"$f":"IF(ISERROR(Dados!O397),\"-\",Dados!O397)","v":""},{"$f":"IF(ISERROR(Dados!P397),\"-\",Dados!P397)","v":""},{"$f":"IF(ISERROR(Dados!Q397),\"-\",Dados!Q397)","v":""},{"$f":"IF(ISERROR(Dados!R397),\"-\",Dados!R397)","v":""},{"$f":"IF(ISERROR(Dados!S397),\"-\",Dados!S397)","v":""},{"$f":"IF(ISERROR(Dados!T397),\"-\",Dados!T397)","v":""},{"$f":"IF(ISERROR(Dados!U397),\"-\",Dados!U397)","v":""},{"$f":"IF(ISERROR(Dados!V397),\"-\",Dados!V397)","v":""},{"$f":"IF(ISERROR(Dados!W397),\"-\",Dados!W397)","v":""},{"$f":"IF(ISERROR(Dados!X397),\"-\",Dados!X397)","v":""},{"$f":"IF(ISERROR(Dados!Y397),\"-\",Dados!Y397)","v":""},{"$f":"IF(ISERROR(Dados!Z397),\"-\",Dados!Z397)","v":""},{"$f":"IF(ISERROR(Dados!AA397),\"-\",Dados!AA397)","v":""},{"$f":"IF(ISERROR(Dados!AB397),\"-\",Dados!AB397)","v":""},{"$f":"IF(ISERROR(Dados!AC397),\"-\",Dados!AC397)","v":""},{"$f":"IF(ISERROR(Dados!AD397),\"-\",Dados!AD397)","v":""},{"$f":"IF(ISERROR(Dados!AE397),\"-\",Dados!AE397)","v":""},{"$f":"IF(ISERROR(Dados!AF397),\"-\",Dados!AF397)","v":""},{"$f":"IF(ISERROR(Dados!AG397),\"-\",Dados!AG397)","v":""}]
[{"$f":"IF(ISERROR(Dados!A398),\"-\",Dados!A398)","v":""},{"$f":"IF(ISERROR(Dados!B398),\"-\",Dados!B398)","v":""},{"$f":"IF(ISERROR(Dados!C398),\"-\",Dados!C398)","v":""},{"$f":"IF(ISERROR(Dados!D398),\"-\",Dados!D398)","v":""},{"$f":"IF(ISERROR(Dados!E398),\"-\",Dados!E398)","v":""},{"$f":"IF(ISERROR(Dados!F398),\"-\",Dados!F398)","v":""},{"$f":"IF(ISERROR(Dados!G398),\"-\",Dados!G398)","v":""},{"$f":"IF(ISERROR(Dados!H398),\"-\",Dados!H398)","v":""},{"$f":"IF(ISERROR(Dados!I398),\"-\",Dados!I398)","v":""},{"$f":"IF(ISERROR(Dados!J398),\"-\",Dados!J398)","v":""},{"$f":"IF(ISERROR(Dados!K398),\"-\",Dados!K398)","v":""},{"$f":"IF(ISERROR(Dados!L398),\"-\",Dados!L398)","v":""},{"$f":"IF(ISERROR(Dados!M398),\"-\",Dados!M398)","v":""},{"$f":"IF(ISERROR(Dados!N398),\"-\",Dados!N398)","v":""},{"$f":"IF(ISERROR(Dados!O398),\"-\",Dados!O398)","v":""},{"$f":"IF(ISERROR(Dados!P398),\"-\",Dados!P398)","v":""},{"$f":"IF(ISERROR(Dados!Q398),\"-\",Dados!Q398)","v":""},{"$f":"IF(ISERROR(Dados!R398),\"-\",Dados!R398)","v":""},{"$f":"IF(ISERROR(Dados!S398),\"-\",Dados!S398)","v":""},{"$f":"IF(ISERROR(Dados!T398),\"-\",Dados!T398)","v":""},{"$f":"IF(ISERROR(Dados!U398),\"-\",Dados!U398)","v":""},{"$f":"IF(ISERROR(Dados!V398),\"-\",Dados!V398)","v":""},{"$f":"IF(ISERROR(Dados!W398),\"-\",Dados!W398)","v":""},{"$f":"IF(ISERROR(Dados!X398),\"-\",Dados!X398)","v":""},{"$f":"IF(ISERROR(Dados!Y398),\"-\",Dados!Y398)","v":""},{"$f":"IF(ISERROR(Dados!Z398),\"-\",Dados!Z398)","v":""},{"$f":"IF(ISERROR(Dados!AA398),\"-\",Dados!AA398)","v":""},{"$f":"IF(ISERROR(Dados!AB398),\"-\",Dados!AB398)","v":""},{"$f":"IF(ISERROR(Dados!AC398),\"-\",Dados!AC398)","v":""},{"$f":"IF(ISERROR(Dados!AD398),\"-\",Dados!AD398)","v":""},{"$f":"IF(ISERROR(Dados!AE398),\"-\",Dados!AE398)","v":""},{"$f":"IF(ISERROR(Dados!AF398),\"-\",Dados!AF398)","v":""},{"$f":"IF(ISERROR(Dados!AG398),\"-\",Dados!AG398)","v":""}]
[{"$f":"IF(ISERROR(Dados!A399),\"-\",Dados!A399)","v":""},{"$f":"IF(ISERROR(Dados!B399),\"-\",Dados!B399)","v":""},{"$f":"IF(ISERROR(Dados!C399),\"-\",Dados!C399)","v":""},{"$f":"IF(ISERROR(Dados!D399),\"-\",Dados!D399)","v":""},{"$f":"IF(ISERROR(Dados!E399),\"-\",Dados!E399)","v":""},{"$f":"IF(ISERROR(Dados!F399),\"-\",Dados!F399)","v":""},{"$f":"IF(ISERROR(Dados!G399),\"-\",Dados!G399)","v":""},{"$f":"IF(ISERROR(Dados!H399),\"-\",Dados!H399)","v":""},{"$f":"IF(ISERROR(Dados!I399),\"-\",Dados!I399)","v":""},{"$f":"IF(ISERROR(Dados!J399),\"-\",Dados!J399)","v":""},{"$f":"IF(ISERROR(Dados!K399),\"-\",Dados!K399)","v":""},{"$f":"IF(ISERROR(Dados!L399),\"-\",Dados!L399)","v":""},{"$f":"IF(ISERROR(Dados!M399),\"-\",Dados!M399)","v":""},{"$f":"IF(ISERROR(Dados!N399),\"-\",Dados!N399)","v":""},{"$f":"IF(ISERROR(Dados!O399),\"-\",Dados!O399)","v":""},{"$f":"IF(ISERROR(Dados!P399),\"-\",Dados!P399)","v":""},{"$f":"IF(ISERROR(Dados!Q399),\"-\",Dados!Q399)","v":""},{"$f":"IF(ISERROR(Dados!R399),\"-\",Dados!R399)","v":""},{"$f":"IF(ISERROR(Dados!S399),\"-\",Dados!S399)","v":""},{"$f":"IF(ISERROR(Dados!T399),\"-\",Dados!T399)","v":""},{"$f":"IF(ISERROR(Dados!U399),\"-\",Dados!U399)","v":""},{"$f":"IF(ISERROR(Dados!V399),\"-\",Dados!V399)","v":""},{"$f":"IF(ISERROR(Dados!W399),\"-\",Dados!W399)","v":""},{"$f":"IF(ISERROR(Dados!X399),\"-\",Dados!X399)","v":""},{"$f":"IF(ISERROR(Dados!Y399),\"-\",Dados!Y399)","v":""},{"$f":"IF(ISERROR(Dados!Z399),\"-\",Dados!Z399)","v":""},{"$f":"IF(ISERROR(Dados!AA399),\"-\",Dados!AA399)","v":""},{"$f":"IF(ISERROR(Dados!AB399),\"-\",Dados!AB399)","v":""},{"$f":"IF(ISERROR(Dados!AC399),\"-\",Dados!AC399)","v":""},{"$f":"IF(ISERROR(Dados!AD399),\"-\",Dados!AD399)","v":""},{"$f":"IF(ISERROR(Dados!AE399),\"-\",Dados!AE399)","v":""},{"$f":"IF(ISERROR(Dados!AF399),\"-\",Dados!AF399)","v":""},{"$f":"IF(ISERROR(Dados!AG399),\"-\",Dados!AG399)","v":""}]
[{"$f":"IF(ISERROR(Dados!A400),\"-\",Dados!A400)","v":""},{"$f":"IF(ISERROR(Dados!B400),\"-\",Dados!B400)","v":""},{"$f":"IF(ISERROR(Dados!C400),\"-\",Dados!C400)","v":""},{"$f":"IF(ISERROR(Dados!D400),\"-\",Dados!D400)","v":""},{"$f":"IF(ISERROR(Dados!E400),\"-\",Dados!E400)","v":""},{"$f":"IF(ISERROR(Dados!F400),\"-\",Dados!F400)","v":""},{"$f":"IF(ISERROR(Dados!G400),\"-\",Dados!G400)","v":""},{"$f":"IF(ISERROR(Dados!H400),\"-\",Dados!H400)","v":""},{"$f":"IF(ISERROR(Dados!I400),\"-\",Dados!I400)","v":""},{"$f":"IF(ISERROR(Dados!J400),\"-\",Dados!J400)","v":""},{"$f":"IF(ISERROR(Dados!K400),\"-\",Dados!K400)","v":""},{"$f":"IF(ISERROR(Dados!L400),\"-\",Dados!L400)","v":""},{"$f":"IF(ISERROR(Dados!M400),\"-\",Dados!M400)","v":""},{"$f":"IF(ISERROR(Dados!N400),\"-\",Dados!N400)","v":""},{"$f":"IF(ISERROR(Dados!O400),\"-\",Dados!O400)","v":""},{"$f":"IF(ISERROR(Dados!P400),\"-\",Dados!P400)","v":""},{"$f":"IF(ISERROR(Dados!Q400),\"-\",Dados!Q400)","v":""},{"$f":"IF(ISERROR(Dados!R400),\"-\",Dados!R400)","v":""},{"$f":"IF(ISERROR(Dados!S400),\"-\",Dados!S400)","v":""},{"$f":"IF(ISERROR(Dados!T400),\"-\",Dados!T400)","v":""},{"$f":"IF(ISERROR(Dados!U400),\"-\",Dados!U400)","v":""},{"$f":"IF(ISERROR(Dados!V400),\"-\",Dados!V400)","v":""},{"$f":"IF(ISERROR(Dados!W400),\"-\",Dados!W400)","v":""},{"$f":"IF(ISERROR(Dados!X400),\"-\",Dados!X400)","v":""},{"$f":"IF(ISERROR(Dados!Y400),\"-\",Dados!Y400)","v":""},{"$f":"IF(ISERROR(Dados!Z400),\"-\",Dados!Z400)","v":""},{"$f":"IF(ISERROR(Dados!AA400),\"-\",Dados!AA400)","v":""},{"$f":"IF(ISERROR(Dados!AB400),\"-\",Dados!AB400)","v":""},{"$f":"IF(ISERROR(Dados!AC400),\"-\",Dados!AC400)","v":""},{"$f":"IF(ISERROR(Dados!AD400),\"-\",Dados!AD400)","v":""},{"$f":"IF(ISERROR(Dados!AE400),\"-\",Dados!AE400)","v":""},{"$f":"IF(ISERROR(Dados!AF400),\"-\",Dados!AF400)","v":""},{"$f":"IF(ISERROR(Dados!AG400),\"-\",Dados!AG400)","v":""}]
[{"$f":"IF(ISERROR(Dados!A401),\"-\",Dados!A401)","v":""},{"$f":"IF(ISERROR(Dados!B401),\"-\",Dados!B401)","v":""},{"$f":"IF(ISERROR(Dados!C401),\"-\",Dados!C401)","v":""},{"$f":"IF(ISERROR(Dados!D401),\"-\",Dados!D401)","v":""},{"$f":"IF(ISERROR(Dados!E401),\"-\",Dados!E401)","v":""},{"$f":"IF(ISERROR(Dados!F401),\"-\",Dados!F401)","v":""},{"$f":"IF(ISERROR(Dados!G401),\"-\",Dados!G401)","v":""},{"$f":"IF(ISERROR(Dados!H401),\"-\",Dados!H401)","v":""},{"$f":"IF(ISERROR(Dados!I401),\"-\",Dados!I401)","v":""},{"$f":"IF(ISERROR(Dados!J401),\"-\",Dados!J401)","v":""},{"$f":"IF(ISERROR(Dados!K401),\"-\",Dados!K401)","v":""},{"$f":"IF(ISERROR(Dados!L401),\"-\",Dados!L401)","v":""},{"$f":"IF(ISERROR(Dados!M401),\"-\",Dados!M401)","v":""},{"$f":"IF(ISERROR(Dados!N401),\"-\",Dados!N401)","v":""},{"$f":"IF(ISERROR(Dados!O401),\"-\",Dados!O401)","v":""},{"$f":"IF(ISERROR(Dados!P401),\"-\",Dados!P401)","v":""},{"$f":"IF(ISERROR(Dados!Q401),\"-\",Dados!Q401)","v":""},{"$f":"IF(ISERROR(Dados!R401),\"-\",Dados!R401)","v":""},{"$f":"IF(ISERROR(Dados!S401),\"-\",Dados!S401)","v":""},{"$f":"IF(ISERROR(Dados!T401),\"-\",Dados!T401)","v":""},{"$f":"IF(ISERROR(Dados!U401),\"-\",Dados!U401)","v":""},{"$f":"IF(ISERROR(Dados!V401),\"-\",Dados!V401)","v":""},{"$f":"IF(ISERROR(Dados!W401),\"-\",Dados!W401)","v":""},{"$f":"IF(ISERROR(Dados!X401),\"-\",Dados!X401)","v":""},{"$f":"IF(ISERROR(Dados!Y401),\"-\",Dados!Y401)","v":""},{"$f":"IF(ISERROR(Dados!Z401),\"-\",Dados!Z401)","v":""},{"$f":"IF(ISERROR(Dados!AA401),\"-\",Dados!AA401)","v":""},{"$f":"IF(ISERROR(Dados!AB401),\"-\",Dados!AB401)","v":""},{"$f":"IF(ISERROR(Dados!AC401),\"-\",Dados!AC401)","v":""},{"$f":"IF(ISERROR(Dados!AD401),\"-\",Dados!AD401)","v":""},{"$f":"IF(ISERROR(Dados!AE401),\"-\",Dados!AE401)","v":""},{"$f":"IF(ISERROR(Dados!AF401),\"-\",Dados!AF401)","v":""},{"$f":"IF(ISERROR(Dados!AG401),\"-\",Dados!AG401)","v":""}]
[{"$f":"IF(ISERROR(Dados!A402),\"-\",Dados!A402)","v":""},{"$f":"IF(ISERROR(Dados!B402),\"-\",Dados!B402)","v":""},{"$f":"IF(ISERROR(Dados!C402),\"-\",Dados!C402)","v":""},{"$f":"IF(ISERROR(Dados!D402),\"-\",Dados!D402)","v":""},{"$f":"IF(ISERROR(Dados!E402),\"-\",Dados!E402)","v":""},{"$f":"IF(ISERROR(Dados!F402),\"-\",Dados!F402)","v":""},{"$f":"IF(ISERROR(Dados!G402),\"-\",Dados!G402)","v":""},{"$f":"IF(ISERROR(Dados!H402),\"-\",Dados!H402)","v":""},{"$f":"IF(ISERROR(Dados!I402),\"-\",Dados!I402)","v":""},{"$f":"IF(ISERROR(Dados!J402),\"-\",Dados!J402)","v":""},{"$f":"IF(ISERROR(Dados!K402),\"-\",Dados!K402)","v":""},{"$f":"IF(ISERROR(Dados!L402),\"-\",Dados!L402)","v":""},{"$f":"IF(ISERROR(Dados!M402),\"-\",Dados!M402)","v":""},{"$f":"IF(ISERROR(Dados!N402),\"-\",Dados!N402)","v":""},{"$f":"IF(ISERROR(Dados!O402),\"-\",Dados!O402)","v":""},{"$f":"IF(ISERROR(Dados!P402),\"-\",Dados!P402)","v":""},{"$f":"IF(ISERROR(Dados!Q402),\"-\",Dados!Q402)","v":""},{"$f":"IF(ISERROR(Dados!R402),\"-\",Dados!R402)","v":""},{"$f":"IF(ISERROR(Dados!S402),\"-\",Dados!S402)","v":""},{"$f":"IF(ISERROR(Dados!T402),\"-\",Dados!T402)","v":""},{"$f":"IF(ISERROR(Dados!U402),\"-\",Dados!U402)","v":""},{"$f":"IF(ISERROR(Dados!V402),\"-\",Dados!V402)","v":""},{"$f":"IF(ISERROR(Dados!W402),\"-\",Dados!W402)","v":""},{"$f":"IF(ISERROR(Dados!X402),\"-\",Dados!X402)","v":""},{"$f":"IF(ISERROR(Dados!Y402),\"-\",Dados!Y402)","v":""},{"$f":"IF(ISERROR(Dados!Z402),\"-\",Dados!Z402)","v":""},{"$f":"IF(ISERROR(Dados!AA402),\"-\",Dados!AA402)","v":""},{"$f":"IF(ISERROR(Dados!AB402),\"-\",Dados!AB402)","v":""},{"$f":"IF(ISERROR(Dados!AC402),\"-\",Dados!AC402)","v":""},{"$f":"IF(ISERROR(Dados!AD402),\"-\",Dados!AD402)","v":""},{"$f":"IF(ISERROR(Dados!AE402),\"-\",Dados!AE402)","v":""},{"$f":"IF(ISERROR(Dados!AF402),\"-\",Dados!AF402)","v":""},{"$f":"IF(ISERROR(Dados!AG402),\"-\",Dados!AG402)","v":""}]
[{"$f":"IF(ISERROR(Dados!A403),\"-\",Dados!A403)","v":""},{"$f":"IF(ISERROR(Dados!B403),\"-\",Dados!B403)","v":""},{"$f":"IF(ISERROR(Dados!C403),\"-\",Dados!C403)","v":""},{"$f":"IF(ISERROR(Dados!D403),\"-\",Dados!D403)","v":""},{"$f":"IF(ISERROR(Dados!E403),\"-\",Dados!E403)","v":""},{"$f":"IF(ISERROR(Dados!F403),\"-\",Dados!F403)","v":""},{"$f":"IF(ISERROR(Dados!G403),\"-\",Dados!G403)","v":""},{"$f":"IF(ISERROR(Dados!H403),\"-\",Dados!H403)","v":""},{"$f":"IF(ISERROR(Dados!I403),\"-\",Dados!I403)","v":""},{"$f":"IF(ISERROR(Dados!J403),\"-\",Dados!J403)","v":""},{"$f":"IF(ISERROR(Dados!K403),\"-\",Dados!K403)","v":""},{"$f":"IF(ISERROR(Dados!L403),\"-\",Dados!L403)","v":""},{"$f":"IF(ISERROR(Dados!M403),\"-\",Dados!M403)","v":""},{"$f":"IF(ISERROR(Dados!N403),\"-\",Dados!N403)","v":""},{"$f":"IF(ISERROR(Dados!O403),\"-\",Dados!O403)","v":""},{"$f":"IF(ISERROR(Dados!P403),\"-\",Dados!P403)","v":""},{"$f":"IF(ISERROR(Dados!Q403),\"-\",Dados!Q403)","v":""},{"$f":"IF(ISERROR(Dados!R403),\"-\",Dados!R403)","v":""},{"$f":"IF(ISERROR(Dados!S403),\"-\",Dados!S403)","v":""},{"$f":"IF(ISERROR(Dados!T403),\"-\",Dados!T403)","v":""},{"$f":"IF(ISERROR(Dados!U403),\"-\",Dados!U403)","v":""},{"$f":"IF(ISERROR(Dados!V403),\"-\",Dados!V403)","v":""},{"$f":"IF(ISERROR(Dados!W403),\"-\",Dados!W403)","v":""},{"$f":"IF(ISERROR(Dados!X403),\"-\",Dados!X403)","v":""},{"$f":"IF(ISERROR(Dados!Y403),\"-\",Dados!Y403)","v":""},{"$f":"IF(ISERROR(Dados!Z403),\"-\",Dados!Z403)","v":""},{"$f":"IF(ISERROR(Dados!AA403),\"-\",Dados!AA403)","v":""},{"$f":"IF(ISERROR(Dados!AB403),\"-\",Dados!AB403)","v":""},{"$f":"IF(ISERROR(Dados!AC403),\"-\",Dados!AC403)","v":""},{"$f":"IF(ISERROR(Dados!AD403),\"-\",Dados!AD403)","v":""},{"$f":"IF(ISERROR(Dados!AE403),\"-\",Dados!AE403)","v":""},{"$f":"IF(ISERROR(Dados!AF403),\"-\",Dados!AF403)","v":""},{"$f":"IF(ISERROR(Dados!AG403),\"-\",Dados!AG403)","v":""}]
[{"$f":"IF(ISERROR(Dados!A404),\"-\",Dados!A404)","v":""},{"$f":"IF(ISERROR(Dados!B404),\"-\",Dados!B404)","v":""},{"$f":"IF(ISERROR(Dados!C404),\"-\",Dados!C404)","v":""},{"$f":"IF(ISERROR(Dados!D404),\"-\",Dados!D404)","v":""},{"$f":"IF(ISERROR(Dados!E404),\"-\",Dados!E404)","v":""},{"$f":"IF(ISERROR(Dados!F404),\"-\",Dados!F404)","v":""},{"$f":"IF(ISERROR(Dados!G404),\"-\",Dados!G404)","v":""},{"$f":"IF(ISERROR(Dados!H404),\"-\",Dados!H404)","v":""},{"$f":"IF(ISERROR(Dados!I404),\"-\",Dados!I404)","v":""},{"$f":"IF(ISERROR(Dados!J404),\"-\",Dados!J404)","v":""},{"$f":"IF(ISERROR(Dados!K404),\"-\",Dados!K404)","v":""},{"$f":"IF(ISERROR(Dados!L404),\"-\",Dados!L404)","v":""},{"$f":"IF(ISERROR(Dados!M404),\"-\",Dados!M404)","v":""},{"$f":"IF(ISERROR(Dados!N404),\"-\",Dados!N404)","v":""},{"$f":"IF(ISERROR(Dados!O404),\"-\",Dados!O404)","v":""},{"$f":"IF(ISERROR(Dados!P404),\"-\",Dados!P404)","v":""},{"$f":"IF(ISERROR(Dados!Q404),\"-\",Dados!Q404)","v":""},{"$f":"IF(ISERROR(Dados!R404),\"-\",Dados!R404)","v":""},{"$f":"IF(ISERROR(Dados!S404),\"-\",Dados!S404)","v":""},{"$f":"IF(ISERROR(Dados!T404),\"-\",Dados!T404)","v":""},{"$f":"IF(ISERROR(Dados!U404),\"-\",Dados!U404)","v":""},{"$f":"IF(ISERROR(Dados!V404),\"-\",Dados!V404)","v":""},{"$f":"IF(ISERROR(Dados!W404),\"-\",Dados!W404)","v":""},{"$f":"IF(ISERROR(Dados!X404),\"-\",Dados!X404)","v":""},{"$f":"IF(ISERROR(Dados!Y404),\"-\",Dados!Y404)","v":""},{"$f":"IF(ISERROR(Dados!Z404),\"-\",Dados!Z404)","v":""},{"$f":"IF(ISERROR(Dados!AA404),\"-\",Dados!AA404)","v":""},{"$f":"IF(ISERROR(Dados!AB404),\"-\",Dados!AB404)","v":""},{"$f":"IF(ISERROR(Dados!AC404),\"-\",Dados!AC404)","v":""},{"$f":"IF(ISERROR(Dados!AD404),\"-\",Dados!AD404)","v":""},{"$f":"IF(ISERROR(Dados!AE404),\"-\",Dados!AE404)","v":""},{"$f":"IF(ISERROR(Dados!AF404),\"-\",Dados!AF404)","v":""},{"$f":"IF(ISERROR(Dados!AG404),\"-\",Dados!AG404)","v":""}]
[{"$f":"IF(ISERROR(Dados!A405),\"-\",Dados!A405)","v":""},{"$f":"IF(ISERROR(Dados!B405),\"-\",Dados!B405)","v":""},{"$f":"IF(ISERROR(Dados!C405),\"-\",Dados!C405)","v":""},{"$f":"IF(ISERROR(Dados!D405),\"-\",Dados!D405)","v":""},{"$f":"IF(ISERROR(Dados!E405),\"-\",Dados!E405)","v":""},{"$f":"IF(ISERROR(Dados!F405),\"-\",Dados!F405)","v":""},{"$f":"IF(ISERROR(Dados!G405),\"-\",Dados!G405)","v":""},{"$f":"IF(ISERROR(Dados!H405),\"-\",Dados!H405)","v":""},{"$f":"IF(ISERROR(Dados!I405),\"-\",Dados!I405)","v":""},{"$f":"IF(ISERROR(Dados!J405),\"-\",Dados!J405)","v":""},{"$f":"IF(ISERROR(Dados!K405),\"-\",Dados!K405)","v":""},{"$f":"IF(ISERROR(Dados!L405),\"-\",Dados!L405)","v":""},{"$f":"IF(ISERROR(Dados!M405),\"-\",Dados!M405)","v":""},{"$f":"IF(ISERROR(Dados!N405),\"-\",Dados!N405)","v":""},{"$f":"IF(ISERROR(Dados!O405),\"-\",Dados!O405)","v":""},{"$f":"IF(ISERROR(Dados!P405),\"-\",Dados!P405)","v":""},{"$f":"IF(ISERROR(Dados!Q405),\"-\",Dados!Q405)","v":""},{"$f":"IF(ISERROR(Dados!R405),\"-\",Dados!R405)","v":""},{"$f":"IF(ISERROR(Dados!S405),\"-\",Dados!S405)","v":""},{"$f":"IF(ISERROR(Dados!T405),\"-\",Dados!T405)","v":""},{"$f":"IF(ISERROR(Dados!U405),\"-\",Dados!U405)","v":""},{"$f":"IF(ISERROR(Dados!V405),\"-\",Dados!V405)","v":""},{"$f":"IF(ISERROR(Dados!W405),\"-\",Dados!W405)","v":""},{"$f":"IF(ISERROR(Dados!X405),\"-\",Dados!X405)","v":""},{"$f":"IF(ISERROR(Dados!Y405),\"-\",Dados!Y405)","v":""},{"$f":"IF(ISERROR(Dados!Z405),\"-\",Dados!Z405)","v":""},{"$f":"IF(ISERROR(Dados!AA405),\"-\",Dados!AA405)","v":""},{"$f":"IF(ISERROR(Dados!AB405),\"-\",Dados!AB405)","v":""},{"$f":"IF(ISERROR(Dados!AC405),\"-\",Dados!AC405)","v":""},{"$f":"IF(ISERROR(Dados!AD405),\"-\",Dados!AD405)","v":""},{"$f":"IF(ISERROR(Dados!AE405),\"-\",Dados!AE405)","v":""},{"$f":"IF(ISERROR(Dados!AF405),\"-\",Dados!AF405)","v":""},{"$f":"IF(ISERROR(Dados!AG405),\"-\",Dados!AG405)","v":""}]
[{"$f":"IF(ISERROR(Dados!A406),\"-\",Dados!A406)","v":""},{"$f":"IF(ISERROR(Dados!B406),\"-\",Dados!B406)","v":""},{"$f":"IF(ISERROR(Dados!C406),\"-\",Dados!C406)","v":""},{"$f":"IF(ISERROR(Dados!D406),\"-\",Dados!D406)","v":""},{"$f":"IF(ISERROR(Dados!E406),\"-\",Dados!E406)","v":""},{"$f":"IF(ISERROR(Dados!F406),\"-\",Dados!F406)","v":""},{"$f":"IF(ISERROR(Dados!G406),\"-\",Dados!G406)","v":""},{"$f":"IF(ISERROR(Dados!H406),\"-\",Dados!H406)","v":""},{"$f":"IF(ISERROR(Dados!I406),\"-\",Dados!I406)","v":""},{"$f":"IF(ISERROR(Dados!J406),\"-\",Dados!J406)","v":""},{"$f":"IF(ISERROR(Dados!K406),\"-\",Dados!K406)","v":""},{"$f":"IF(ISERROR(Dados!L406),\"-\",Dados!L406)","v":""},{"$f":"IF(ISERROR(Dados!M406),\"-\",Dados!M406)","v":""},{"$f":"IF(ISERROR(Dados!N406),\"-\",Dados!N406)","v":""},{"$f":"IF(ISERROR(Dados!O406),\"-\",Dados!O406)","v":""},{"$f":"IF(ISERROR(Dados!P406),\"-\",Dados!P406)","v":""},{"$f":"IF(ISERROR(Dados!Q406),\"-\",Dados!Q406)","v":""},{"$f":"IF(ISERROR(Dados!R406),\"-\",Dados!R406)","v":""},{"$f":"IF(ISERROR(Dados!S406),\"-\",Dados!S406)","v":""},{"$f":"IF(ISERROR(Dados!T406),\"-\",Dados!T406)","v":""},{"$f":"IF(ISERROR(Dados!U406),\"-\",Dados!U406)","v":""},{"$f":"IF(ISERROR(Dados!V406),\"-\",Dados!V406)","v":""},{"$f":"IF(ISERROR(Dados!W406),\"-\",Dados!W406)","v":""},{"$f":"IF(ISERROR(Dados!X406),\"-\",Dados!X406)","v":""},{"$f":"IF(ISERROR(Dados!Y406),\"-\",Dados!Y406)","v":""},{"$f":"IF(ISERROR(Dados!Z406),\"-\",Dados!Z406)","v":""},{"$f":"IF(ISERROR(Dados!AA406),\"-\",Dados!AA406)","v":""},{"$f":"IF(ISERROR(Dados!AB406),\"-\",Dados!AB406)","v":""},{"$f":"IF(ISERROR(Dados!AC406),\"-\",Dados!AC406)","v":""},{"$f":"IF(ISERROR(Dados!AD406),\"-\",Dados!AD406)","v":""},{"$f":"IF(ISERROR(Dados!AE406),\"-\",Dados!AE406)","v":""},{"$f":"IF(ISERROR(Dados!AF406),\"-\",Dados!AF406)","v":""},{"$f":"IF(ISERROR(Dados!AG406),\"-\",Dados!AG406)","v":""}]
[{"$f":"IF(ISERROR(Dados!A407),\"-\",Dados!A407)","v":""},{"$f":"IF(ISERROR(Dados!B407),\"-\",Dados!B407)","v":""},{"$f":"IF(ISERROR(Dados!C407),\"-\",Dados!C407)","v":""},{"$f":"IF(ISERROR(Dados!D407),\"-\",Dados!D407)","v":""},{"$f":"IF(ISERROR(Dados!E407),\"-\",Dados!E407)","v":""},{"$f":"IF(ISERROR(Dados!F407),\"-\",Dados!F407)","v":""},{"$f":"IF(ISERROR(Dados!G407),\"-\",Dados!G407)","v":""},{"$f":"IF(ISERROR(Dados!H407),\"-\",Dados!H407)","v":""},{"$f":"IF(ISERROR(Dados!I407),\"-\",Dados!I407)","v":""},{"$f":"IF(ISERROR(Dados!J407),\"-\",Dados!J407)","v":""},{"$f":"IF(ISERROR(Dados!K407),\"-\",Dados!K407)","v":""},{"$f":"IF(ISERROR(Dados!L407),\"-\",Dados!L407)","v":""},{"$f":"IF(ISERROR(Dados!M407),\"-\",Dados!M407)","v":""},{"$f":"IF(ISERROR(Dados!N407),\"-\",Dados!N407)","v":""},{"$f":"IF(ISERROR(Dados!O407),\"-\",Dados!O407)","v":""},{"$f":"IF(ISERROR(Dados!P407),\"-\",Dados!P407)","v":""},{"$f":"IF(ISERROR(Dados!Q407),\"-\",Dados!Q407)","v":""},{"$f":"IF(ISERROR(Dados!R407),\"-\",Dados!R407)","v":""},{"$f":"IF(ISERROR(Dados!S407),\"-\",Dados!S407)","v":""},{"$f":"IF(ISERROR(Dados!T407),\"-\",Dados!T407)","v":""},{"$f":"IF(ISERROR(Dados!U407),\"-\",Dados!U407)","v":""},{"$f":"IF(ISERROR(Dados!V407),\"-\",Dados!V407)","v":""},{"$f":"IF(ISERROR(Dados!W407),\"-\",Dados!W407)","v":""},{"$f":"IF(ISERROR(Dados!X407),\"-\",Dados!X407)","v":""},{"$f":"IF(ISERROR(Dados!Y407),\"-\",Dados!Y407)","v":""},{"$f":"IF(ISERROR(Dados!Z407),\"-\",Dados!Z407)","v":""},{"$f":"IF(ISERROR(Dados!AA407),\"-\",Dados!AA407)","v":""},{"$f":"IF(ISERROR(Dados!AB407),\"-\",Dados!AB407)","v":""},{"$f":"IF(ISERROR(Dados!AC407),\"-\",Dados!AC407)","v":""},{"$f":"IF(ISERROR(Dados!AD407),\"-\",Dados!AD407)","v":""},{"$f":"IF(ISERROR(Dados!AE407),\"-\",Dados!AE407)","v":""},{"$f":"IF(ISERROR(Dados!AF407),\"-\",Dados!AF407)","v":""},{"$f":"IF(ISERROR(Dados!AG407),\"-\",Dados!AG407)","v":""}]
[{"$f":"IF(ISERROR(Dados!A408),\"-\",Dados!A408)","v":""},{"$f":"IF(ISERROR(Dados!B408),\"-\",Dados!B408)","v":""},{"$f":"IF(ISERROR(Dados!C408),\"-\",Dados!C408)","v":""},{"$f":"IF(ISERROR(Dados!D408),\"-\",Dados!D408)","v":""},{"$f":"IF(ISERROR(Dados!E408),\"-\",Dados!E408)","v":""},{"$f":"IF(ISERROR(Dados!F408),\"-\",Dados!F408)","v":""},{"$f":"IF(ISERROR(Dados!G408),\"-\",Dados!G408)","v":""},{"$f":"IF(ISERROR(Dados!H408),\"-\",Dados!H408)","v":""},{"$f":"IF(ISERROR(Dados!I408),\"-\",Dados!I408)","v":""},{"$f":"IF(ISERROR(Dados!J408),\"-\",Dados!J408)","v":""},{"$f":"IF(ISERROR(Dados!K408),\"-\",Dados!K408)","v":""},{"$f":"IF(ISERROR(Dados!L408),\"-\",Dados!L408)","v":""},{"$f":"IF(ISERROR(Dados!M408),\"-\",Dados!M408)","v":""},{"$f":"IF(ISERROR(Dados!N408),\"-\",Dados!N408)","v":""},{"$f":"IF(ISERROR(Dados!O408),\"-\",Dados!O408)","v":""},{"$f":"IF(ISERROR(Dados!P408),\"-\",Dados!P408)","v":""},{"$f":"IF(ISERROR(Dados!Q408),\"-\",Dados!Q408)","v":""},{"$f":"IF(ISERROR(Dados!R408),\"-\",Dados!R408)","v":""},{"$f":"IF(ISERROR(Dados!S408),\"-\",Dados!S408)","v":""},{"$f":"IF(ISERROR(Dados!T408),\"-\",Dados!T408)","v":""},{"$f":"IF(ISERROR(Dados!U408),\"-\",Dados!U408)","v":""},{"$f":"IF(ISERROR(Dados!V408),\"-\",Dados!V408)","v":""},{"$f":"IF(ISERROR(Dados!W408),\"-\",Dados!W408)","v":""},{"$f":"IF(ISERROR(Dados!X408),\"-\",Dados!X408)","v":""},{"$f":"IF(ISERROR(Dados!Y408),\"-\",Dados!Y408)","v":""},{"$f":"IF(ISERROR(Dados!Z408),\"-\",Dados!Z408)","v":""},{"$f":"IF(ISERROR(Dados!AA408),\"-\",Dados!AA408)","v":""},{"$f":"IF(ISERROR(Dados!AB408),\"-\",Dados!AB408)","v":""},{"$f":"IF(ISERROR(Dados!AC408),\"-\",Dados!AC408)","v":""},{"$f":"IF(ISERROR(Dados!AD408),\"-\",Dados!AD408)","v":""},{"$f":"IF(ISERROR(Dados!AE408),\"-\",Dados!AE408)","v":""},{"$f":"IF(ISERROR(Dados!AF408),\"-\",Dados!AF408)","v":""},{"$f":"IF(ISERROR(Dados!AG408),\"-\",Dados!AG408)","v":""}]
[{"$f":"IF(ISERROR(Dados!A409),\"-\",Dados!A409)","v":""},{"$f":"IF(ISERROR(Dados!B409),\"-\",Dados!B409)","v":""},{"$f":"IF(ISERROR(Dados!C409),\"-\",Dados!C409)","v":""},{"$f":"IF(ISERROR(Dados!D409),\"-\",Dados!D409)","v":""},{"$f":"IF(ISERROR(Dados!E409),\"-\",Dados!E409)","v":""},{"$f":"IF(ISERROR(Dados!F409),\"-\",Dados!F409)","v":""},{"$f":"IF(ISERROR(Dados!G409),\"-\",Dados!G409)","v":""},{"$f":"IF(ISERROR(Dados!H409),\"-\",Dados!H409)","v":""},{"$f":"IF(ISERROR(Dados!I409),\"-\",Dados!I409)","v":""},{"$f":"IF(ISERROR(Dados!J409),\"-\",Dados!J409)","v":""},{"$f":"IF(ISERROR(Dados!K409),\"-\",Dados!K409)","v":""},{"$f":"IF(ISERROR(Dados!L409),\"-\",Dados!L409)","v":""},{"$f":"IF(ISERROR(Dados!M409),\"-\",Dados!M409)","v":""},{"$f":"IF(ISERROR(Dados!N409),\"-\",Dados!N409)","v":""},{"$f":"IF(ISERROR(Dados!O409),\"-\",Dados!O409)","v":""},{"$f":"IF(ISERROR(Dados!P409),\"-\",Dados!P409)","v":""},{"$f":"IF(ISERROR(Dados!Q409),\"-\",Dados!Q409)","v":""},{"$f":"IF(ISERROR(Dados!R409),\"-\",Dados!R409)","v":""},{"$f":"IF(ISERROR(Dados!S409),\"-\",Dados!S409)","v":""},{"$f":"IF(ISERROR(Dados!T409),\"-\",Dados!T409)","v":""},{"$f":"IF(ISERROR(Dados!U409),\"-\",Dados!U409)","v":""},{"$f":"IF(ISERROR(Dados!V409),\"-\",Dados!V409)","v":""},{"$f":"IF(ISERROR(Dados!W409),\"-\",Dados!W409)","v":""},{"$f":"IF(ISERROR(Dados!X409),\"-\",Dados!X409)","v":""},{"$f":"IF(ISERROR(Dados!Y409),\"-\",Dados!Y409)","v":""},{"$f":"IF(ISERROR(Dados!Z409),\"-\",Dados!Z409)","v":""},{"$f":"IF(ISERROR(Dados!AA409),\"-\",Dados!AA409)","v":""},{"$f":"IF(ISERROR(Dados!AB409),\"-\",Dados!AB409)","v":""},{"$f":"IF(ISERROR(Dados!AC409),\"-\",Dados!AC409)","v":""},{"$f":"IF(ISERROR(Dados!AD409),\"-\",Dados!AD409)","v":""},{"$f":"IF(ISERROR(Dados!AE409),\"-\",Dados!AE409)","v":""},{"$f":"IF(ISERROR(Dados!AF409),\"-\",Dados!AF409)","v":""},{"$f":"IF(ISERROR(Dados!AG409),\"-\",Dados!AG409)","v":""}]
[{"$f":"IF(ISERROR(Dados!A410),\"-\",Dados!A410)","v":""},{"$f":"IF(ISERROR(Dados!B410),\"-\",Dados!B410)","v":""},{"$f":"IF(ISERROR(Dados!C410),\"-\",Dados!C410)","v":""},{"$f":"IF(ISERROR(Dados!D410),\"-\",Dados!D410)","v":""},{"$f":"IF(ISERROR(Dados!E410),\"-\",Dados!E410)","v":""},{"$f":"IF(ISERROR(Dados!F410),\"-\",Dados!F410)","v":""},{"$f":"IF(ISERROR(Dados!G410),\"-\",Dados!G410)","v":""},{"$f":"IF(ISERROR(Dados!H410),\"-\",Dados!H410)","v":""},{"$f":"IF(ISERROR(Dados!I410),\"-\",Dados!I410)","v":""},{"$f":"IF(ISERROR(Dados!J410),\"-\",Dados!J410)","v":""},{"$f":"IF(ISERROR(Dados!K410),\"-\",Dados!K410)","v":""},{"$f":"IF(ISERROR(Dados!L410),\"-\",Dados!L410)","v":""},{"$f":"IF(ISERROR(Dados!M410),\"-\",Dados!M410)","v":""},{"$f":"IF(ISERROR(Dados!N410),\"-\",Dados!N410)","v":""},{"$f":"IF(ISERROR(Dados!O410),\"-\",Dados!O410)","v":""},{"$f":"IF(ISERROR(Dados!P410),\"-\",Dados!P410)","v":""},{"$f":"IF(ISERROR(Dados!Q410),\"-\",Dados!Q410)","v":""},{"$f":"IF(ISERROR(Dados!R410),\"-\",Dados!R410)","v":""},{"$f":"IF(ISERROR(Dados!S410),\"-\",Dados!S410)","v":""},{"$f":"IF(ISERROR(Dados!T410),\"-\",Dados!T410)","v":""},{"$f":"IF(ISERROR(Dados!U410),\"-\",Dados!U410)","v":""},{"$f":"IF(ISERROR(Dados!V410),\"-\",Dados!V410)","v":""},{"$f":"IF(ISERROR(Dados!W410),\"-\",Dados!W410)","v":""},{"$f":"IF(ISERROR(Dados!X410),\"-\",Dados!X410)","v":""},{"$f":"IF(ISERROR(Dados!Y410),\"-\",Dados!Y410)","v":""},{"$f":"IF(ISERROR(Dados!Z410),\"-\",Dados!Z410)","v":""},{"$f":"IF(ISERROR(Dados!AA410),\"-\",Dados!AA410)","v":""},{"$f":"IF(ISERROR(Dados!AB410),\"-\",Dados!AB410)","v":""},{"$f":"IF(ISERROR(Dados!AC410),\"-\",Dados!AC410)","v":""},{"$f":"IF(ISERROR(Dados!AD410),\"-\",Dados!AD410)","v":""},{"$f":"IF(ISERROR(Dados!AE410),\"-\",Dados!AE410)","v":""},{"$f":"IF(ISERROR(Dados!AF410),\"-\",Dados!AF410)","v":""},{"$f":"IF(ISERROR(Dados!AG410),\"-\",Dados!AG410)","v":""}]
[{"$f":"IF(ISERROR(Dados!A411),\"-\",Dados!A411)","v":""},{"$f":"IF(ISERROR(Dados!B411),\"-\",Dados!B411)","v":""},{"$f":"IF(ISERROR(Dados!C411),\"-\",Dados!C411)","v":""},{"$f":"IF(ISERROR(Dados!D411),\"-\",Dados!D411)","v":""},{"$f":"IF(ISERROR(Dados!E411),\"-\",Dados!E411)","v":""},{"$f":"IF(ISERROR(Dados!F411),\"-\",Dados!F411)","v":""},{"$f":"IF(ISERROR(Dados!G411),\"-\",Dados!G411)","v":""},{"$f":"IF(ISERROR(Dados!H411),\"-\",Dados!H411)","v":""},{"$f":"IF(ISERROR(Dados!I411),\"-\",Dados!I411)","v":""},{"$f":"IF(ISERROR(Dados!J411),\"-\",Dados!J411)","v":""},{"$f":"IF(ISERROR(Dados!K411),\"-\",Dados!K411)","v":""},{"$f":"IF(ISERROR(Dados!L411),\"-\",Dados!L411)","v":""},{"$f":"IF(ISERROR(Dados!M411),\"-\",Dados!M411)","v":""},{"$f":"IF(ISERROR(Dados!N411),\"-\",Dados!N411)","v":""},{"$f":"IF(ISERROR(Dados!O411),\"-\",Dados!O411)","v":""},{"$f":"IF(ISERROR(Dados!P411),\"-\",Dados!P411)","v":""},{"$f":"IF(ISERROR(Dados!Q411),\"-\",Dados!Q411)","v":""},{"$f":"IF(ISERROR(Dados!R411),\"-\",Dados!R411)","v":""},{"$f":"IF(ISERROR(Dados!S411),\"-\",Dados!S411)","v":""},{"$f":"IF(ISERROR(Dados!T411),\"-\",Dados!T411)","v":""},{"$f":"IF(ISERROR(Dados!U411),\"-\",Dados!U411)","v":""},{"$f":"IF(ISERROR(Dados!V411),\"-\",Dados!V411)","v":""},{"$f":"IF(ISERROR(Dados!W411),\"-\",Dados!W411)","v":""},{"$f":"IF(ISERROR(Dados!X411),\"-\",Dados!X411)","v":""},{"$f":"IF(ISERROR(Dados!Y411),\"-\",Dados!Y411)","v":""},{"$f":"IF(ISERROR(Dados!Z411),\"-\",Dados!Z411)","v":""},{"$f":"IF(ISERROR(Dados!AA411),\"-\",Dados!AA411)","v":""},{"$f":"IF(ISERROR(Dados!AB411),\"-\",Dados!AB411)","v":""},{"$f":"IF(ISERROR(Dados!AC411),\"-\",Dados!AC411)","v":""},{"$f":"IF(ISERROR(Dados!AD411),\"-\",Dados!AD411)","v":""},{"$f":"IF(ISERROR(Dados!AE411),\"-\",Dados!AE411)","v":""},{"$f":"IF(ISERROR(Dados!AF411),\"-\",Dados!AF411)","v":""},{"$f":"IF(ISERROR(Dados!AG411),\"-\",Dados!AG411)","v":""}]
[{"$f":"IF(ISERROR(Dados!A412),\"-\",Dados!A412)","v":""},{"$f":"IF(ISERROR(Dados!B412),\"-\",Dados!B412)","v":""},{"$f":"IF(ISERROR(Dados!C412),\"-\",Dados!C412)","v":""},{"$f":"IF(ISERROR(Dados!D412),\"-\",Dados!D412)","v":""},{"$f":"IF(ISERROR(Dados!E412),\"-\",Dados!E412)","v":""},{"$f":"IF(ISERROR(Dados!F412),\"-\",Dados!F412)","v":""},{"$f":"IF(ISERROR(Dados!G412),\"-\",Dados!G412)","v":""},{"$f":"IF(ISERROR(Dados!H412),\"-\",Dados!H412)","v":""},{"$f":"IF(ISERROR(Dados!I412),\"-\",Dados!I412)","v":""},{"$f":"IF(ISERROR(Dados!J412),\"-\",Dados!J412)","v":""},{"$f":"IF(ISERROR(Dados!K412),\"-\",Dados!K412)","v":""},{"$f":"IF(ISERROR(Dados!L412),\"-\",Dados!L412)","v":""},{"$f":"IF(ISERROR(Dados!M412),\"-\",Dados!M412)","v":""},{"$f":"IF(ISERROR(Dados!N412),\"-\",Dados!N412)","v":""},{"$f":"IF(ISERROR(Dados!O412),\"-\",Dados!O412)","v":""},{"$f":"IF(ISERROR(Dados!P412),\"-\",Dados!P412)","v":""},{"$f":"IF(ISERROR(Dados!Q412),\"-\",Dados!Q412)","v":""},{"$f":"IF(ISERROR(Dados!R412),\"-\",Dados!R412)","v":""},{"$f":"IF(ISERROR(Dados!S412),\"-\",Dados!S412)","v":""},{"$f":"IF(ISERROR(Dados!T412),\"-\",Dados!T412)","v":""},{"$f":"IF(ISERROR(Dados!U412),\"-\",Dados!U412)","v":""},{"$f":"IF(ISERROR(Dados!V412),\"-\",Dados!V412)","v":""},{"$f":"IF(ISERROR(Dados!W412),\"-\",Dados!W412)","v":""},{"$f":"IF(ISERROR(Dados!X412),\"-\",Dados!X412)","v":""},{"$f":"IF(ISERROR(Dados!Y412),\"-\",Dados!Y412)","v":""},{"$f":"IF(ISERROR(Dados!Z412),\"-\",Dados!Z412)","v":""},{"$f":"IF(ISERROR(Dados!AA412),\"-\",Dados!AA412)","v":""},{"$f":"IF(ISERROR(Dados!AB412),\"-\",Dados!AB412)","v":""},{"$f":"IF(ISERROR(Dados!AC412),\"-\",Dados!AC412)","v":""},{"$f":"IF(ISERROR(Dados!AD412),\"-\",Dados!AD412)","v":""},{"$f":"IF(ISERROR(Dados!AE412),\"-\",Dados!AE412)","v":""},{"$f":"IF(ISERROR(Dados!AF412),\"-\",Dados!AF412)","v":""},{"$f":"IF(ISERROR(Dados!AG412),\"-\",Dados!AG412)","v":""}]
[{"$f":"IF(ISERROR(Dados!A413),\"-\",Dados!A413)","v":""},{"$f":"IF(ISERROR(Dados!B413),\"-\",Dados!B413)","v":""},{"$f":"IF(ISERROR(Dados!C413),\"-\",Dados!C413)","v":""},{"$f":"IF(ISERROR(Dados!D413),\"-\",Dados!D413)","v":""},{"$f":"IF(ISERROR(Dados!E413),\"-\",Dados!E413)","v":""},{"$f":"IF(ISERROR(Dados!F413),\"-\",Dados!F413)","v":""},{"$f":"IF(ISERROR(Dados!G413),\"-\",Dados!G413)","v":""},{"$f":"IF(ISERROR(Dados!H413),\"-\",Dados!H413)","v":""},{"$f":"IF(ISERROR(Dados!I413),\"-\",Dados!I413)","v":""},{"$f":"IF(ISERROR(Dados!J413),\"-\",Dados!J413)","v":""},{"$f":"IF(ISERROR(Dados!K413),\"-\",Dados!K413)","v":""},{"$f":"IF(ISERROR(Dados!L413),\"-\",Dados!L413)","v":""},{"$f":"IF(ISERROR(Dados!M413),\"-\",Dados!M413)","v":""},{"$f":"IF(ISERROR(Dados!N413),\"-\",Dados!N413)","v":""},{"$f":"IF(ISERROR(Dados!O413),\"-\",Dados!O413)","v":""},{"$f":"IF(ISERROR(Dados!P413),\"-\",Dados!P413)","v":""},{"$f":"IF(ISERROR(Dados!Q413),\"-\",Dados!Q413)","v":""},{"$f":"IF(ISERROR(Dados!R413),\"-\",Dados!R413)","v":""},{"$f":"IF(ISERROR(Dados!S413),\"-\",Dados!S413)","v":""},{"$f":"IF(ISERROR(Dados!T413),\"-\",Dados!T413)","v":""},{"$f":"IF(ISERROR(Dados!U413),\"-\",Dados!U413)","v":""},{"$f":"IF(ISERROR(Dados!V413),\"-\",Dados!V413)","v":""},{"$f":"IF(ISERROR(Dados!W413),\"-\",Dados!W413)","v":""},{"$f":"IF(ISERROR(Dados!X413),\"-\",Dados!X413)","v":""},{"$f":"IF(ISERROR(Dados!Y413),\"-\",Dados!Y413)","v":""},{"$f":"IF(ISERROR(Dados!Z413),\"-\",Dados!Z413)","v":""},{"$f":"IF(ISERROR(Dados!AA413),\"-\",Dados!AA413)","v":""},{"$f":"IF(ISERROR(Dados!AB413),\"-\",Dados!AB413)","v":""},{"$f":"IF(ISERROR(Dados!AC413),\"-\",Dados!AC413)","v":""},{"$f":"IF(ISERROR(Dados!AD413),\"-\",Dados!AD413)","v":""},{"$f":"IF(ISERROR(Dados!AE413),\"-\",Dados!AE413)","v":""},{"$f":"IF(ISERROR(Dados!AF413),\"-\",Dados!AF413)","v":""},{"$f":"IF(ISERROR(Dados!AG413),\"-\",Dados!AG413)","v":""}]
[{"$f":"IF(ISERROR(Dados!A414),\"-\",Dados!A414)","v":""},{"$f":"IF(ISERROR(Dados!B414),\"-\",Dados!B414)","v":""},{"$f":"IF(ISERROR(Dados!C414),\"-\",Dados!C414)","v":""},{"$f":"IF(ISERROR(Dados!D414),\"-\",Dados!D414)","v":""},{"$f":"IF(ISERROR(Dados!E414),\"-\",Dados!E414)","v":""},{"$f":"IF(ISERROR(Dados!F414),\"-\",Dados!F414)","v":""},{"$f":"IF(ISERROR(Dados!G414),\"-\",Dados!G414)","v":""},{"$f":"IF(ISERROR(Dados!H414),\"-\",Dados!H414)","v":""},{"$f":"IF(ISERROR(Dados!I414),\"-\",Dados!I414)","v":""},{"$f":"IF(ISERROR(Dados!J414),\"-\",Dados!J414)","v":""},{"$f":"IF(ISERROR(Dados!K414),\"-\",Dados!K414)","v":""},{"$f":"IF(ISERROR(Dados!L414),\"-\",Dados!L414)","v":""},{"$f":"IF(ISERROR(Dados!M414),\"-\",Dados!M414)","v":""},{"$f":"IF(ISERROR(Dados!N414),\"-\",Dados!N414)","v":""},{"$f":"IF(ISERROR(Dados!O414),\"-\",Dados!O414)","v":""},{"$f":"IF(ISERROR(Dados!P414),\"-\",Dados!P414)","v":""},{"$f":"IF(ISERROR(Dados!Q414),\"-\",Dados!Q414)","v":""},{"$f":"IF(ISERROR(Dados!R414),\"-\",Dados!R414)","v":""},{"$f":"IF(ISERROR(Dados!S414),\"-\",Dados!S414)","v":""},{"$f":"IF(ISERROR(Dados!T414),\"-\",Dados!T414)","v":""},{"$f":"IF(ISERROR(Dados!U414),\"-\",Dados!U414)","v":""},{"$f":"IF(ISERROR(Dados!V414),\"-\",Dados!V414)","v":""},{"$f":"IF(ISERROR(Dados!W414),\"-\",Dados!W414)","v":""},{"$f":"IF(ISERROR(Dados!X414),\"-\",Dados!X414)","v":""},{"$f":"IF(ISERROR(Dados!Y414),\"-\",Dados!Y414)","v":""},{"$f":"IF(ISERROR(Dados!Z414),\"-\",Dados!Z414)","v":""},{"$f":"IF(ISERROR(Dados!AA414),\"-\",Dados!AA414)","v":""},{"$f":"IF(ISERROR(Dados!AB414),\"-\",Dados!AB414)","v":""},{"$f":"IF(ISERROR(Dados!AC414),\"-\",Dados!AC414)","v":""},{"$f":"IF(ISERROR(Dados!AD414),\"-\",Dados!AD414)","v":""},{"$f":"IF(ISERROR(Dados!AE414),\"-\",Dados!AE414)","v":""},{"$f":"IF(ISERROR(Dados!AF414),\"-\",Dados!AF414)","v":""},{"$f":"IF(ISERROR(Dados!AG414),\"-\",Dados!AG414)","v":""}]
[{"$f":"IF(ISERROR(Dados!A415),\"-\",Dados!A415)","v":""},{"$f":"IF(ISERROR(Dados!B415),\"-\",Dados!B415)","v":""},{"$f":"IF(ISERROR(Dados!C415),\"-\",Dados!C415)","v":""},{"$f":"IF(ISERROR(Dados!D415),\"-\",Dados!D415)","v":""},{"$f":"IF(ISERROR(Dados!E415),\"-\",Dados!E415)","v":""},{"$f":"IF(ISERROR(Dados!F415),\"-\",Dados!F415)","v":""},{"$f":"IF(ISERROR(Dados!G415),\"-\",Dados!G415)","v":""},{"$f":"IF(ISERROR(Dados!H415),\"-\",Dados!H415)","v":""},{"$f":"IF(ISERROR(Dados!I415),\"-\",Dados!I415)","v":""},{"$f":"IF(ISERROR(Dados!J415),\"-\",Dados!J415)","v":""},{"$f":"IF(ISERROR(Dados!K415),\"-\",Dados!K415)","v":""},{"$f":"IF(ISERROR(Dados!L415),\"-\",Dados!L415)","v":""},{"$f":"IF(ISERROR(Dados!M415),\"-\",Dados!M415)","v":""},{"$f":"IF(ISERROR(Dados!N415),\"-\",Dados!N415)","v":""},{"$f":"IF(ISERROR(Dados!O415),\"-\",Dados!O415)","v":""},{"$f":"IF(ISERROR(Dados!P415),\"-\",Dados!P415)","v":""},{"$f":"IF(ISERROR(Dados!Q415),\"-\",Dados!Q415)","v":""},{"$f":"IF(ISERROR(Dados!R415),\"-\",Dados!R415)","v":""},{"$f":"IF(ISERROR(Dados!S415),\"-\",Dados!S415)","v":""},{"$f":"IF(ISERROR(Dados!T415),\"-\",Dados!T415)","v":""},{"$f":"IF(ISERROR(Dados!U415),\"-\",Dados!U415)","v":""},{"$f":"IF(ISERROR(Dados!V415),\"-\",Dados!V415)","v":""},{"$f":"IF(ISERROR(Dados!W415),\"-\",Dados!W415)","v":""},{"$f":"IF(ISERROR(Dados!X415),\"-\",Dados!X415)","v":""},{"$f":"IF(ISERROR(Dados!Y415),\"-\",Dados!Y415)","v":""},{"$f":"IF(ISERROR(Dados!Z415),\"-\",Dados!Z415)","v":""},{"$f":"IF(ISERROR(Dados!AA415),\"-\",Dados!AA415)","v":""},{"$f":"IF(ISERROR(Dados!AB415),\"-\",Dados!AB415)","v":""},{"$f":"IF(ISERROR(Dados!AC415),\"-\",Dados!AC415)","v":""},{"$f":"IF(ISERROR(Dados!AD415),\"-\",Dados!AD415)","v":""},{"$f":"IF(ISERROR(Dados!AE415),\"-\",Dados!AE415)","v":""},{"$f":"IF(ISERROR(Dados!AF415),\"-\",Dados!AF415)","v":""},{"$f":"IF(ISERROR(Dados!AG415),\"-\",Dados!AG415)","v":""}]
[{"$f":"IF(ISERROR(Dados!A416),\"-\",Dados!A416)","v":""},{"$f":"IF(ISERROR(Dados!B416),\"-\",Dados!B416)","v":""},{"$f":"IF(ISERROR(Dados!C416),\"-\",Dados!C416)","v":""},{"$f":"IF(ISERROR(Dados!D416),\"-\",Dados!D416)","v":""},{"$f":"IF(ISERROR(Dados!E416),\"-\",Dados!E416)","v":""},{"$f":"IF(ISERROR(Dados!F416),\"-\",Dados!F416)","v":""},{"$f":"IF(ISERROR(Dados!G416),\"-\",Dados!G416)","v":""},{"$f":"IF(ISERROR(Dados!H416),\"-\",Dados!H416)","v":""},{"$f":"IF(ISERROR(Dados!I416),\"-\",Dados!I416)","v":""},{"$f":"IF(ISERROR(Dados!J416),\"-\",Dados!J416)","v":""},{"$f":"IF(ISERROR(Dados!K416),\"-\",Dados!K416)","v":""},{"$f":"IF(ISERROR(Dados!L416),\"-\",Dados!L416)","v":""},{"$f":"IF(ISERROR(Dados!M416),\"-\",Dados!M416)","v":""},{"$f":"IF(ISERROR(Dados!N416),\"-\",Dados!N416)","v":""},{"$f":"IF(ISERROR(Dados!O416),\"-\",Dados!O416)","v":""},{"$f":"IF(ISERROR(Dados!P416),\"-\",Dados!P416)","v":""},{"$f":"IF(ISERROR(Dados!Q416),\"-\",Dados!Q416)","v":""},{"$f":"IF(ISERROR(Dados!R416),\"-\",Dados!R416)","v":""},{"$f":"IF(ISERROR(Dados!S416),\"-\",Dados!S416)","v":""},{"$f":"IF(ISERROR(Dados!T416),\"-\",Dados!T416)","v":""},{"$f":"IF(ISERROR(Dados!U416),\"-\",Dados!U416)","v":""},{"$f":"IF(ISERROR(Dados!V416),\"-\",Dados!V416)","v":""},{"$f":"IF(ISERROR(Dados!W416),\"-\",Dados!W416)","v":""},{"$f":"IF(ISERROR(Dados!X416),\"-\",Dados!X416)","v":""},{"$f":"IF(ISERROR(Dados!Y416),\"-\",Dados!Y416)","v":""},{"$f":"IF(ISERROR(Dados!Z416),\"-\",Dados!Z416)","v":""},{"$f":"IF(ISERROR(Dados!AA416),\"-\",Dados!AA416)","v":""},{"$f":"IF(ISERROR(Dados!AB416),\"-\",Dados!AB416)","v":""},{"$f":"IF(ISERROR(Dados!AC416),\"-\",Dados!AC416)","v":""},{"$f":"IF(ISERROR(Dados!AD416),\"-\",Dados!AD416)","v":""},{"$f":"IF(ISERROR(Dados!AE416),\"-\",Dados!AE416)","v":""},{"$f":"IF(ISERROR(Dados!AF416),\"-\",Dados!AF416)","v":""},{"$f":"IF(ISERROR(Dados!AG416),\"-\",Dados!AG416)","v":""}]
[{"$f":"IF(ISERROR(Dados!A417),\"-\",Dados!A417)","v":""},{"$f":"IF(ISERROR(Dados!B417),\"-\",Dados!B417)","v":""},{"$f":"IF(ISERROR(Dados!C417),\"-\",Dados!C417)","v":""},{"$f":"IF(ISERROR(Dados!D417),\"-\",Dados!D417)","v":""},{"$f":"IF(ISERROR(Dados!E417),\"-\",Dados!E417)","v":""},{"$f":"IF(ISERROR(Dados!F417),\"-\",Dados!F417)","v":""},{"$f":"IF(ISERROR(Dados!G417),\"-\",Dados!G417)","v":""},{"$f":"IF(ISERROR(Dados!H417),\"-\",Dados!H417)","v":""},{"$f":"IF(ISERROR(Dados!I417),\"-\",Dados!I417)","v":""},{"$f":"IF(ISERROR(Dados!J417),\"-\",Dados!J417)","v":""},{"$f":"IF(ISERROR(Dados!K417),\"-\",Dados!K417)","v":""},{"$f":"IF(ISERROR(Dados!L417),\"-\",Dados!L417)","v":""},{"$f":"IF(ISERROR(Dados!M417),\"-\",Dados!M417)","v":""},{"$f":"IF(ISERROR(Dados!N417),\"-\",Dados!N417)","v":""},{"$f":"IF(ISERROR(Dados!O417),\"-\",Dados!O417)","v":""},{"$f":"IF(ISERROR(Dados!P417),\"-\",Dados!P417)","v":""},{"$f":"IF(ISERROR(Dados!Q417),\"-\",Dados!Q417)","v":""},{"$f":"IF(ISERROR(Dados!R417),\"-\",Dados!R417)","v":""},{"$f":"IF(ISERROR(Dados!S417),\"-\",Dados!S417)","v":""},{"$f":"IF(ISERROR(Dados!T417),\"-\",Dados!T417)","v":""},{"$f":"IF(ISERROR(Dados!U417),\"-\",Dados!U417)","v":""},{"$f":"IF(ISERROR(Dados!V417),\"-\",Dados!V417)","v":""},{"$f":"IF(ISERROR(Dados!W417),\"-\",Dados!W417)","v":""},{"$f":"IF(ISERROR(Dados!X417),\"-\",Dados!X417)","v":""},{"$f":"IF(ISERROR(Dados!Y417),\"-\",Dados!Y417)","v":""},{"$f":"IF(ISERROR(Dados!Z417),\"-\",Dados!Z417)","v":""},{"$f":"IF(ISERROR(Dados!AA417),\"-\",Dados!AA417)","v":""},{"$f":"IF(ISERROR(Dados!AB417),\"-\",Dados!AB417)","v":""},{"$f":"IF(ISERROR(Dados!AC417),\"-\",Dados!AC417)","v":""},{"$f":"IF(ISERROR(Dados!AD417),\"-\",Dados!AD417)","v":""},{"$f":"IF(ISERROR(Dados!AE417),\"-\",Dados!AE417)","v":""},{"$f":"IF(ISERROR(Dados!AF417),\"-\",Dados!AF417)","v":""},{"$f":"IF(ISERROR(Dados!AG417),\"-\",Dados!AG417)","v":""}]
[{"$f":"IF(ISERROR(Dados!A418),\"-\",Dados!A418)","v":""},{"$f":"IF(ISERROR(Dados!B418),\"-\",Dados!B418)","v":""},{"$f":"IF(ISERROR(Dados!C418),\"-\",Dados!C418)","v":""},{"$f":"IF(ISERROR(Dados!D418),\"-\",Dados!D418)","v":""},{"$f":"IF(ISERROR(Dados!E418),\"-\",Dados!E418)","v":""},{"$f":"IF(ISERROR(Dados!F418),\"-\",Dados!F418)","v":""},{"$f":"IF(ISERROR(Dados!G418),\"-\",Dados!G418)","v":""},{"$f":"IF(ISERROR(Dados!H418),\"-\",Dados!H418)","v":""},{"$f":"IF(ISERROR(Dados!I418),\"-\",Dados!I418)","v":""},{"$f":"IF(ISERROR(Dados!J418),\"-\",Dados!J418)","v":""},{"$f":"IF(ISERROR(Dados!K418),\"-\",Dados!K418)","v":""},{"$f":"IF(ISERROR(Dados!L418),\"-\",Dados!L418)","v":""},{"$f":"IF(ISERROR(Dados!M418),\"-\",Dados!M418)","v":""},{"$f":"IF(ISERROR(Dados!N418),\"-\",Dados!N418)","v":""},{"$f":"IF(ISERROR(Dados!O418),\"-\",Dados!O418)","v":""},{"$f":"IF(ISERROR(Dados!P418),\"-\",Dados!P418)","v":""},{"$f":"IF(ISERROR(Dados!Q418),\"-\",Dados!Q418)","v":""},{"$f":"IF(ISERROR(Dados!R418),\"-\",Dados!R418)","v":""},{"$f":"IF(ISERROR(Dados!S418),\"-\",Dados!S418)","v":""},{"$f":"IF(ISERROR(Dados!T418),\"-\",Dados!T418)","v":""},{"$f":"IF(ISERROR(Dados!U418),\"-\",Dados!U418)","v":""},{"$f":"IF(ISERROR(Dados!V418),\"-\",Dados!V418)","v":""},{"$f":"IF(ISERROR(Dados!W418),\"-\",Dados!W418)","v":""},{"$f":"IF(ISERROR(Dados!X418),\"-\",Dados!X418)","v":""},{"$f":"IF(ISERROR(Dados!Y418),\"-\",Dados!Y418)","v":""},{"$f":"IF(ISERROR(Dados!Z418),\"-\",Dados!Z418)","v":""},{"$f":"IF(ISERROR(Dados!AA418),\"-\",Dados!AA418)","v":""},{"$f":"IF(ISERROR(Dados!AB418),\"-\",Dados!AB418)","v":""},{"$f":"IF(ISERROR(Dados!AC418),\"-\",Dados!AC418)","v":""},{"$f":"IF(ISERROR(Dados!AD418),\"-\",Dados!AD418)","v":""},{"$f":"IF(ISERROR(Dados!AE418),\"-\",Dados!AE418)","v":""},{"$f":"IF(ISERROR(Dados!AF418),\"-\",Dados!AF418)","v":""},{"$f":"IF(ISERROR(Dados!AG418),\"-\",Dados!AG418)","v":""}]
[{"$f":"IF(ISERROR(Dados!A419),\"-\",Dados!A419)","v":""},{"$f":"IF(ISERROR(Dados!B419),\"-\",Dados!B419)","v":""},{"$f":"IF(ISERROR(Dados!C419),\"-\",Dados!C419)","v":""},{"$f":"IF(ISERROR(Dados!D419),\"-\",Dados!D419)","v":""},{"$f":"IF(ISERROR(Dados!E419),\"-\",Dados!E419)","v":""},{"$f":"IF(ISERROR(Dados!F419),\"-\",Dados!F419)","v":""},{"$f":"IF(ISERROR(Dados!G419),\"-\",Dados!G419)","v":""},{"$f":"IF(ISERROR(Dados!H419),\"-\",Dados!H419)","v":""},{"$f":"IF(ISERROR(Dados!I419),\"-\",Dados!I419)","v":""},{"$f":"IF(ISERROR(Dados!J419),\"-\",Dados!J419)","v":""},{"$f":"IF(ISERROR(Dados!K419),\"-\",Dados!K419)","v":""},{"$f":"IF(ISERROR(Dados!L419),\"-\",Dados!L419)","v":""},{"$f":"IF(ISERROR(Dados!M419),\"-\",Dados!M419)","v":""},{"$f":"IF(ISERROR(Dados!N419),\"-\",Dados!N419)","v":""},{"$f":"IF(ISERROR(Dados!O419),\"-\",Dados!O419)","v":""},{"$f":"IF(ISERROR(Dados!P419),\"-\",Dados!P419)","v":""},{"$f":"IF(ISERROR(Dados!Q419),\"-\",Dados!Q419)","v":""},{"$f":"IF(ISERROR(Dados!R419),\"-\",Dados!R419)","v":""},{"$f":"IF(ISERROR(Dados!S419),\"-\",Dados!S419)","v":""},{"$f":"IF(ISERROR(Dados!T419),\"-\",Dados!T419)","v":""},{"$f":"IF(ISERROR(Dados!U419),\"-\",Dados!U419)","v":""},{"$f":"IF(ISERROR(Dados!V419),\"-\",Dados!V419)","v":""},{"$f":"IF(ISERROR(Dados!W419),\"-\",Dados!W419)","v":""},{"$f":"IF(ISERROR(Dados!X419),\"-\",Dados!X419)","v":""},{"$f":"IF(ISERROR(Dados!Y419),\"-\",Dados!Y419)","v":""},{"$f":"IF(ISERROR(Dados!Z419),\"-\",Dados!Z419)","v":""},{"$f":"IF(ISERROR(Dados!AA419),\"-\",Dados!AA419)","v":""},{"$f":"IF(ISERROR(Dados!AB419),\"-\",Dados!AB419)","v":""},{"$f":"IF(ISERROR(Dados!AC419),\"-\",Dados!AC419)","v":""},{"$f":"IF(ISERROR(Dados!AD419),\"-\",Dados!AD419)","v":""},{"$f":"IF(ISERROR(Dados!AE419),\"-\",Dados!AE419)","v":""},{"$f":"IF(ISERROR(Dados!AF419),\"-\",Dados!AF419)","v":""},{"$f":"IF(ISERROR(Dados!AG419),\"-\",Dados!AG419)","v":""}]
[{"$f":"IF(ISERROR(Dados!A420),\"-\",Dados!A420)","v":""},{"$f":"IF(ISERROR(Dados!B420),\"-\",Dados!B420)","v":""},{"$f":"IF(ISERROR(Dados!C420),\"-\",Dados!C420)","v":""},{"$f":"IF(ISERROR(Dados!D420),\"-\",Dados!D420)","v":""},{"$f":"IF(ISERROR(Dados!E420),\"-\",Dados!E420)","v":""},{"$f":"IF(ISERROR(Dados!F420),\"-\",Dados!F420)","v":""},{"$f":"IF(ISERROR(Dados!G420),\"-\",Dados!G420)","v":""},{"$f":"IF(ISERROR(Dados!H420),\"-\",Dados!H420)","v":""},{"$f":"IF(ISERROR(Dados!I420),\"-\",Dados!I420)","v":""},{"$f":"IF(ISERROR(Dados!J420),\"-\",Dados!J420)","v":""},{"$f":"IF(ISERROR(Dados!K420),\"-\",Dados!K420)","v":""},{"$f":"IF(ISERROR(Dados!L420),\"-\",Dados!L420)","v":""},{"$f":"IF(ISERROR(Dados!M420),\"-\",Dados!M420)","v":""},{"$f":"IF(ISERROR(Dados!N420),\"-\",Dados!N420)","v":""},{"$f":"IF(ISERROR(Dados!O420),\"-\",Dados!O420)","v":""},{"$f":"IF(ISERROR(Dados!P420),\"-\",Dados!P420)","v":""},{"$f":"IF(ISERROR(Dados!Q420),\"-\",Dados!Q420)","v":""},{"$f":"IF(ISERROR(Dados!R420),\"-\",Dados!R420)","v":""},{"$f":"IF(ISERROR(Dados!S420),\"-\",Dados!S420)","v":""},{"$f":"IF(ISERROR(Dados!T420),\"-\",Dados!T420)","v":""},{"$f":"IF(ISERROR(Dados!U420),\"-\",Dados!U420)","v":""},{"$f":"IF(ISERROR(Dados!V420),\"-\",Dados!V420)","v":""},{"$f":"IF(ISERROR(Dados!W420),\"-\",Dados!W420)","v":""},{"$f":"IF(ISERROR(Dados!X420),\"-\",Dados!X420)","v":""},{"$f":"IF(ISERROR(Dados!Y420),\"-\",Dados!Y420)","v":""},{"$f":"IF(ISERROR(Dados!Z420),\"-\",Dados!Z420)","v":""},{"$f":"IF(ISERROR(Dados!AA420),\"-\",Dados!AA420)","v":""},{"$f":"IF(ISERROR(Dados!AB420),\"-\",Dados!AB420)","v":""},{"$f":"IF(ISERROR(Dados!AC420),\"-\",Dados!AC420)","v":""},{"$f":"IF(ISERROR(Dados!AD420),\"-\",Dados!AD420)","v":""},{"$f":"IF(ISERROR(Dados!AE420),\"-\",Dados!AE420)","v":""},{"$f":"IF(ISERROR(Dados!AF420),\"-\",Dados!AF420)","v":""},{"$f":"IF(ISERROR(Dados!AG420),\"-\",Dados!AG420)","v":""}]
[{"$f":"IF(ISERROR(Dados!A421),\"-\",Dados!A421)","v":""},{"$f":"IF(ISERROR(Dados!B421),\"-\",Dados!B421)","v":""},{"$f":"IF(ISERROR(Dados!C421),\"-\",Dados!C421)","v":""},{"$f":"IF(ISERROR(Dados!D421),\"-\",Dados!D421)","v":""},{"$f":"IF(ISERROR(Dados!E421),\"-\",Dados!E421)","v":""},{"$f":"IF(ISERROR(Dados!F421),\"-\",Dados!F421)","v":""},{"$f":"IF(ISERROR(Dados!G421),\"-\",Dados!G421)","v":""},{"$f":"IF(ISERROR(Dados!H421),\"-\",Dados!H421)","v":""},{"$f":"IF(ISERROR(Dados!I421),\"-\",Dados!I421)","v":""},{"$f":"IF(ISERROR(Dados!J421),\"-\",Dados!J421)","v":""},{"$f":"IF(ISERROR(Dados!K421),\"-\",Dados!K421)","v":""},{"$f":"IF(ISERROR(Dados!L421),\"-\",Dados!L421)","v":""},{"$f":"IF(ISERROR(Dados!M421),\"-\",Dados!M421)","v":""},{"$f":"IF(ISERROR(Dados!N421),\"-\",Dados!N421)","v":""},{"$f":"IF(ISERROR(Dados!O421),\"-\",Dados!O421)","v":""},{"$f":"IF(ISERROR(Dados!P421),\"-\",Dados!P421)","v":""},{"$f":"IF(ISERROR(Dados!Q421),\"-\",Dados!Q421)","v":""},{"$f":"IF(ISERROR(Dados!R421),\"-\",Dados!R421)","v":""},{"$f":"IF(ISERROR(Dados!S421),\"-\",Dados!S421)","v":""},{"$f":"IF(ISERROR(Dados!T421),\"-\",Dados!T421)","v":""},{"$f":"IF(ISERROR(Dados!U421),\"-\",Dados!U421)","v":""},{"$f":"IF(ISERROR(Dados!V421),\"-\",Dados!V421)","v":""},{"$f":"IF(ISERROR(Dados!W421),\"-\",Dados!W421)","v":""},{"$f":"IF(ISERROR(Dados!X421),\"-\",Dados!X421)","v":""},{"$f":"IF(ISERROR(Dados!Y421),\"-\",Dados!Y421)","v":""},{"$f":"IF(ISERROR(Dados!Z421),\"-\",Dados!Z421)","v":""},{"$f":"IF(ISERROR(Dados!AA421),\"-\",Dados!AA421)","v":""},{"$f":"IF(ISERROR(Dados!AB421),\"-\",Dados!AB421)","v":""},{"$f":"IF(ISERROR(Dados!AC421),\"-\",Dados!AC421)","v":""},{"$f":"IF(ISERROR(Dados!AD421),\"-\",Dados!AD421)","v":""},{"$f":"IF(ISERROR(Dados!AE421),\"-\",Dados!AE421)","v":""},{"$f":"IF(ISERROR(Dados!AF421),\"-\",Dados!AF421)","v":""},{"$f":"IF(ISERROR(Dados!AG421),\"-\",Dados!AG421)","v":""}]
[{"$f":"IF(ISERROR(Dados!A422),\"-\",Dados!A422)","v":""},{"$f":"IF(ISERROR(Dados!B422),\"-\",Dados!B422)","v":""},{"$f":"IF(ISERROR(Dados!C422),\"-\",Dados!C422)","v":""},{"$f":"IF(ISERROR(Dados!D422),\"-\",Dados!D422)","v":""},{"$f":"IF(ISERROR(Dados!E422),\"-\",Dados!E422)","v":""},{"$f":"IF(ISERROR(Dados!F422),\"-\",Dados!F422)","v":""},{"$f":"IF(ISERROR(Dados!G422),\"-\",Dados!G422)","v":""},{"$f":"IF(ISERROR(Dados!H422),\"-\",Dados!H422)","v":""},{"$f":"IF(ISERROR(Dados!I422),\"-\",Dados!I422)","v":""},{"$f":"IF(ISERROR(Dados!J422),\"-\",Dados!J422)","v":""},{"$f":"IF(ISERROR(Dados!K422),\"-\",Dados!K422)","v":""},{"$f":"IF(ISERROR(Dados!L422),\"-\",Dados!L422)","v":""},{"$f":"IF(ISERROR(Dados!M422),\"-\",Dados!M422)","v":""},{"$f":"IF(ISERROR(Dados!N422),\"-\",Dados!N422)","v":""},{"$f":"IF(ISERROR(Dados!O422),\"-\",Dados!O422)","v":""},{"$f":"IF(ISERROR(Dados!P422),\"-\",Dados!P422)","v":""},{"$f":"IF(ISERROR(Dados!Q422),\"-\",Dados!Q422)","v":""},{"$f":"IF(ISERROR(Dados!R422),\"-\",Dados!R422)","v":""},{"$f":"IF(ISERROR(Dados!S422),\"-\",Dados!S422)","v":""},{"$f":"IF(ISERROR(Dados!T422),\"-\",Dados!T422)","v":""},{"$f":"IF(ISERROR(Dados!U422),\"-\",Dados!U422)","v":""},{"$f":"IF(ISERROR(Dados!V422),\"-\",Dados!V422)","v":""},{"$f":"IF(ISERROR(Dados!W422),\"-\",Dados!W422)","v":""},{"$f":"IF(ISERROR(Dados!X422),\"-\",Dados!X422)","v":""},{"$f":"IF(ISERROR(Dados!Y422),\"-\",Dados!Y422)","v":""},{"$f":"IF(ISERROR(Dados!Z422),\"-\",Dados!Z422)","v":""},{"$f":"IF(ISERROR(Dados!AA422),\"-\",Dados!AA422)","v":""},{"$f":"IF(ISERROR(Dados!AB422),\"-\",Dados!AB422)","v":""},{"$f":"IF(ISERROR(Dados!AC422),\"-\",Dados!AC422)","v":""},{"$f":"IF(ISERROR(Dados!AD422),\"-\",Dados!AD422)","v":""},{"$f":"IF(ISERROR(Dados!AE422),\"-\",Dados!AE422)","v":""},{"$f":"IF(ISERROR(Dados!AF422),\"-\",Dados!AF422)","v":""},{"$f":"IF(ISERROR(Dados!AG422),\"-\",Dados!AG422)","v":""}]
[{"$f":"IF(ISERROR(Dados!A423),\"-\",Dados!A423)","v":""},{"$f":"IF(ISERROR(Dados!B423),\"-\",Dados!B423)","v":""},{"$f":"IF(ISERROR(Dados!C423),\"-\",Dados!C423)","v":""},{"$f":"IF(ISERROR(Dados!D423),\"-\",Dados!D423)","v":""},{"$f":"IF(ISERROR(Dados!E423),\"-\",Dados!E423)","v":""},{"$f":"IF(ISERROR(Dados!F423),\"-\",Dados!F423)","v":""},{"$f":"IF(ISERROR(Dados!G423),\"-\",Dados!G423)","v":""},{"$f":"IF(ISERROR(Dados!H423),\"-\",Dados!H423)","v":""},{"$f":"IF(ISERROR(Dados!I423),\"-\",Dados!I423)","v":""},{"$f":"IF(ISERROR(Dados!J423),\"-\",Dados!J423)","v":""},{"$f":"IF(ISERROR(Dados!K423),\"-\",Dados!K423)","v":""},{"$f":"IF(ISERROR(Dados!L423),\"-\",Dados!L423)","v":""},{"$f":"IF(ISERROR(Dados!M423),\"-\",Dados!M423)","v":""},{"$f":"IF(ISERROR(Dados!N423),\"-\",Dados!N423)","v":""},{"$f":"IF(ISERROR(Dados!O423),\"-\",Dados!O423)","v":""},{"$f":"IF(ISERROR(Dados!P423),\"-\",Dados!P423)","v":""},{"$f":"IF(ISERROR(Dados!Q423),\"-\",Dados!Q423)","v":""},{"$f":"IF(ISERROR(Dados!R423),\"-\",Dados!R423)","v":""},{"$f":"IF(ISERROR(Dados!S423),\"-\",Dados!S423)","v":""},{"$f":"IF(ISERROR(Dados!T423),\"-\",Dados!T423)","v":""},{"$f":"IF(ISERROR(Dados!U423),\"-\",Dados!U423)","v":""},{"$f":"IF(ISERROR(Dados!V423),\"-\",Dados!V423)","v":""},{"$f":"IF(ISERROR(Dados!W423),\"-\",Dados!W423)","v":""},{"$f":"IF(ISERROR(Dados!X423),\"-\",Dados!X423)","v":""},{"$f":"IF(ISERROR(Dados!Y423),\"-\",Dados!Y423)","v":""},{"$f":"IF(ISERROR(Dados!Z423),\"-\",Dados!Z423)","v":""},{"$f":"IF(ISERROR(Dados!AA423),\"-\",Dados!AA423)","v":""},{"$f":"IF(ISERROR(Dados!AB423),\"-\",Dados!AB423)","v":""},{"$f":"IF(ISERROR(Dados!AC423),\"-\",Dados!AC423)","v":""},{"$f":"IF(ISERROR(Dados!AD423),\"-\",Dados!AD423)","v":""},{"$f":"IF(ISERROR(Dados!AE423),\"-\",Dados!AE423)","v":""},{"$f":"IF(ISERROR(Dados!AF423),\"-\",Dados!AF423)","v":""},{"$f":"IF(ISERROR(Dados!AG423),\"-\",Dados!AG423)","v":""}]
[{"$f":"IF(ISERROR(Dados!A424),\"-\",Dados!A424)","v":""},{"$f":"IF(ISERROR(Dados!B424),\"-\",Dados!B424)","v":""},{"$f":"IF(ISERROR(Dados!C424),\"-\",Dados!C424)","v":""},{"$f":"IF(ISERROR(Dados!D424),\"-\",Dados!D424)","v":""},{"$f":"IF(ISERROR(Dados!E424),\"-\",Dados!E424)","v":""},{"$f":"IF(ISERROR(Dados!F424),\"-\",Dados!F424)","v":""},{"$f":"IF(ISERROR(Dados!G424),\"-\",Dados!G424)","v":""},{"$f":"IF(ISERROR(Dados!H424),\"-\",Dados!H424)","v":""},{"$f":"IF(ISERROR(Dados!I424),\"-\",Dados!I424)","v":""},{"$f":"IF(ISERROR(Dados!J424),\"-\",Dados!J424)","v":""},{"$f":"IF(ISERROR(Dados!K424),\"-\",Dados!K424)","v":""},{"$f":"IF(ISERROR(Dados!L424),\"-\",Dados!L424)","v":""},{"$f":"IF(ISERROR(Dados!M424),\"-\",Dados!M424)","v":""},{"$f":"IF(ISERROR(Dados!N424),\"-\",Dados!N424)","v":""},{"$f":"IF(ISERROR(Dados!O424),\"-\",Dados!O424)","v":""},{"$f":"IF(ISERROR(Dados!P424),\"-\",Dados!P424)","v":""},{"$f":"IF(ISERROR(Dados!Q424),\"-\",Dados!Q424)","v":""},{"$f":"IF(ISERROR(Dados!R424),\"-\",Dados!R424)","v":""},{"$f":"IF(ISERROR(Dados!S424),\"-\",Dados!S424)","v":""},{"$f":"IF(ISERROR(Dados!T424),\"-\",Dados!T424)","v":""},{"$f":"IF(ISERROR(Dados!U424),\"-\",Dados!U424)","v":""},{"$f":"IF(ISERROR(Dados!V424),\"-\",Dados!V424)","v":""},{"$f":"IF(ISERROR(Dados!W424),\"-\",Dados!W424)","v":""},{"$f":"IF(ISERROR(Dados!X424),\"-\",Dados!X424)","v":""},{"$f":"IF(ISERROR(Dados!Y424),\"-\",Dados!Y424)","v":""},{"$f":"IF(ISERROR(Dados!Z424),\"-\",Dados!Z424)","v":""},{"$f":"IF(ISERROR(Dados!AA424),\"-\",Dados!AA424)","v":""},{"$f":"IF(ISERROR(Dados!AB424),\"-\",Dados!AB424)","v":""},{"$f":"IF(ISERROR(Dados!AC424),\"-\",Dados!AC424)","v":""},{"$f":"IF(ISERROR(Dados!AD424),\"-\",Dados!AD424)","v":""},{"$f":"IF(ISERROR(Dados!AE424),\"-\",Dados!AE424)","v":""},{"$f":"IF(ISERROR(Dados!AF424),\"-\",Dados!AF424)","v":""},{"$f":"IF(ISERROR(Dados!AG424),\"-\",Dados!AG424)","v":""}]
[{"$f":"IF(ISERROR(Dados!A425),\"-\",Dados!A425)","v":""},{"$f":"IF(ISERROR(Dados!B425),\"-\",Dados!B425)","v":""},{"$f":"IF(ISERROR(Dados!C425),\"-\",Dados!C425)","v":""},{"$f":"IF(ISERROR(Dados!D425),\"-\",Dados!D425)","v":""},{"$f":"IF(ISERROR(Dados!E425),\"-\",Dados!E425)","v":""},{"$f":"IF(ISERROR(Dados!F425),\"-\",Dados!F425)","v":""},{"$f":"IF(ISERROR(Dados!G425),\"-\",Dados!G425)","v":""},{"$f":"IF(ISERROR(Dados!H425),\"-\",Dados!H425)","v":""},{"$f":"IF(ISERROR(Dados!I425),\"-\",Dados!I425)","v":""},{"$f":"IF(ISERROR(Dados!J425),\"-\",Dados!J425)","v":""},{"$f":"IF(ISERROR(Dados!K425),\"-\",Dados!K425)","v":""},{"$f":"IF(ISERROR(Dados!L425),\"-\",Dados!L425)","v":""},{"$f":"IF(ISERROR(Dados!M425),\"-\",Dados!M425)","v":""},{"$f":"IF(ISERROR(Dados!N425),\"-\",Dados!N425)","v":""},{"$f":"IF(ISERROR(Dados!O425),\"-\",Dados!O425)","v":""},{"$f":"IF(ISERROR(Dados!P425),\"-\",Dados!P425)","v":""},{"$f":"IF(ISERROR(Dados!Q425),\"-\",Dados!Q425)","v":""},{"$f":"IF(ISERROR(Dados!R425),\"-\",Dados!R425)","v":""},{"$f":"IF(ISERROR(Dados!S425),\"-\",Dados!S425)","v":""},{"$f":"IF(ISERROR(Dados!T425),\"-\",Dados!T425)","v":""},{"$f":"IF(ISERROR(Dados!U425),\"-\",Dados!U425)","v":""},{"$f":"IF(ISERROR(Dados!V425),\"-\",Dados!V425)","v":""},{"$f":"IF(ISERROR(Dados!W425),\"-\",Dados!W425)","v":""},{"$f":"IF(ISERROR(Dados!X425),\"-\",Dados!X425)","v":""},{"$f":"IF(ISERROR(Dados!Y425),\"-\",Dados!Y425)","v":""},{"$f":"IF(ISERROR(Dados!Z425),\"-\",Dados!Z425)","v":""},{"$f":"IF(ISERROR(Dados!AA425),\"-\",Dados!AA425)","v":""},{"$f":"IF(ISERROR(Dados!AB425),\"-\",Dados!AB425)","v":""},{"$f":"IF(ISERROR(Dados!AC425),\"-\",Dados!AC425)","v":""},{"$f":"IF(ISERROR(Dados!AD425),\"-\",Dados!AD425)","v":""},{"$f":"IF(ISERROR(Dados!AE425),\"-\",Dados!AE425)","v":""},{"$f":"IF(ISERROR(Dados!AF425),\"-\",Dados!AF425)","v":""},{"$f":"IF(ISERROR(Dados!AG425),\"-\",Dados!AG425)","v":""}]
[{"$f":"IF(ISERROR(Dados!A426),\"-\",Dados!A426)","v":""},{"$f":"IF(ISERROR(Dados!B426),\"-\",Dados!B426)","v":""},{"$f":"IF(ISERROR(Dados!C426),\"-\",Dados!C426)","v":""},{"$f":"IF(ISERROR(Dados!D426),\"-\",Dados!D426)","v":""},{"$f":"IF(ISERROR(Dados!E426),\"-\",Dados!E426)","v":""},{"$f":"IF(ISERROR(Dados!F426),\"-\",Dados!F426)","v":""},{"$f":"IF(ISERROR(Dados!G426),\"-\",Dados!G426)","v":""},{"$f":"IF(ISERROR(Dados!H426),\"-\",Dados!H426)","v":""},{"$f":"IF(ISERROR(Dados!I426),\"-\",Dados!I426)","v":""},{"$f":"IF(ISERROR(Dados!J426),\"-\",Dados!J426)","v":""},{"$f":"IF(ISERROR(Dados!K426),\"-\",Dados!K426)","v":""},{"$f":"IF(ISERROR(Dados!L426),\"-\",Dados!L426)","v":""},{"$f":"IF(ISERROR(Dados!M426),\"-\",Dados!M426)","v":""},{"$f":"IF(ISERROR(Dados!N426),\"-\",Dados!N426)","v":""},{"$f":"IF(ISERROR(Dados!O426),\"-\",Dados!O426)","v":""},{"$f":"IF(ISERROR(Dados!P426),\"-\",Dados!P426)","v":""},{"$f":"IF(ISERROR(Dados!Q426),\"-\",Dados!Q426)","v":""},{"$f":"IF(ISERROR(Dados!R426),\"-\",Dados!R426)","v":""},{"$f":"IF(ISERROR(Dados!S426),\"-\",Dados!S426)","v":""},{"$f":"IF(ISERROR(Dados!T426),\"-\",Dados!T426)","v":""},{"$f":"IF(ISERROR(Dados!U426),\"-\",Dados!U426)","v":""},{"$f":"IF(ISERROR(Dados!V426),\"-\",Dados!V426)","v":""},{"$f":"IF(ISERROR(Dados!W426),\"-\",Dados!W426)","v":""},{"$f":"IF(ISERROR(Dados!X426),\"-\",Dados!X426)","v":""},{"$f":"IF(ISERROR(Dados!Y426),\"-\",Dados!Y426)","v":""},{"$f":"IF(ISERROR(Dados!Z426),\"-\",Dados!Z426)","v":""},{"$f":"IF(ISERROR(Dados!AA426),\"-\",Dados!AA426)","v":""},{"$f":"IF(ISERROR(Dados!AB426),\"-\",Dados!AB426)","v":""},{"$f":"IF(ISERROR(Dados!AC426),\"-\",Dados!AC426)","v":""},{"$f":"IF(ISERROR(Dados!AD426),\"-\",Dados!AD426)","v":""},{"$f":"IF(ISERROR(Dados!AE426),\"-\",Dados!AE426)","v":""},{"$f":"IF(ISERROR(Dados!AF426),\"-\",Dados!AF426)","v":""},{"$f":"IF(ISERROR(Dados!AG426),\"-\",Dados!AG426)","v":""}]
[{"$f":"IF(ISERROR(Dados!A427),\"-\",Dados!A427)","v":""},{"$f":"IF(ISERROR(Dados!B427),\"-\",Dados!B427)","v":""},{"$f":"IF(ISERROR(Dados!C427),\"-\",Dados!C427)","v":""},{"$f":"IF(ISERROR(Dados!D427),\"-\",Dados!D427)","v":""},{"$f":"IF(ISERROR(Dados!E427),\"-\",Dados!E427)","v":""},{"$f":"IF(ISERROR(Dados!F427),\"-\",Dados!F427)","v":""},{"$f":"IF(ISERROR(Dados!G427),\"-\",Dados!G427)","v":""},{"$f":"IF(ISERROR(Dados!H427),\"-\",Dados!H427)","v":""},{"$f":"IF(ISERROR(Dados!I427),\"-\",Dados!I427)","v":""},{"$f":"IF(ISERROR(Dados!J427),\"-\",Dados!J427)","v":""},{"$f":"IF(ISERROR(Dados!K427),\"-\",Dados!K427)","v":""},{"$f":"IF(ISERROR(Dados!L427),\"-\",Dados!L427)","v":""},{"$f":"IF(ISERROR(Dados!M427),\"-\",Dados!M427)","v":""},{"$f":"IF(ISERROR(Dados!N427),\"-\",Dados!N427)","v":""},{"$f":"IF(ISERROR(Dados!O427),\"-\",Dados!O427)","v":""},{"$f":"IF(ISERROR(Dados!P427),\"-\",Dados!P427)","v":""},{"$f":"IF(ISERROR(Dados!Q427),\"-\",Dados!Q427)","v":""},{"$f":"IF(ISERROR(Dados!R427),\"-\",Dados!R427)","v":""},{"$f":"IF(ISERROR(Dados!S427),\"-\",Dados!S427)","v":""},{"$f":"IF(ISERROR(Dados!T427),\"-\",Dados!T427)","v":""},{"$f":"IF(ISERROR(Dados!U427),\"-\",Dados!U427)","v":""},{"$f":"IF(ISERROR(Dados!V427),\"-\",Dados!V427)","v":""},{"$f":"IF(ISERROR(Dados!W427),\"-\",Dados!W427)","v":""},{"$f":"IF(ISERROR(Dados!X427),\"-\",Dados!X427)","v":""},{"$f":"IF(ISERROR(Dados!Y427),\"-\",Dados!Y427)","v":""},{"$f":"IF(ISERROR(Dados!Z427),\"-\",Dados!Z427)","v":""},{"$f":"IF(ISERROR(Dados!AA427),\"-\",Dados!AA427)","v":""},{"$f":"IF(ISERROR(Dados!AB427),\"-\",Dados!AB427)","v":""},{"$f":"IF(ISERROR(Dados!AC427),\"-\",Dados!AC427)","v":""},{"$f":"IF(ISERROR(Dados!AD427),\"-\",Dados!AD427)","v":""},{"$f":"IF(ISERROR(Dados!AE427),\"-\",Dados!AE427)","v":""},{"$f":"IF(ISERROR(Dados!AF427),\"-\",Dados!AF427)","v":""},{"$f":"IF(ISERROR(Dados!AG427),\"-\",Dados!AG427)","v":""}]
[{"$f":"IF(ISERROR(Dados!A428),\"-\",Dados!A428)","v":""},{"$f":"IF(ISERROR(Dados!B428),\"-\",Dados!B428)","v":""},{"$f":"IF(ISERROR(Dados!C428),\"-\",Dados!C428)","v":""},{"$f":"IF(ISERROR(Dados!D428),\"-\",Dados!D428)","v":""},{"$f":"IF(ISERROR(Dados!E428),\"-\",Dados!E428)","v":""},{"$f":"IF(ISERROR(Dados!F428),\"-\",Dados!F428)","v":""},{"$f":"IF(ISERROR(Dados!G428),\"-\",Dados!G428)","v":""},{"$f":"IF(ISERROR(Dados!H428),\"-\",Dados!H428)","v":""},{"$f":"IF(ISERROR(Dados!I428),\"-\",Dados!I428)","v":""},{"$f":"IF(ISERROR(Dados!J428),\"-\",Dados!J428)","v":""},{"$f":"IF(ISERROR(Dados!K428),\"-\",Dados!K428)","v":""},{"$f":"IF(ISERROR(Dados!L428),\"-\",Dados!L428)","v":""},{"$f":"IF(ISERROR(Dados!M428),\"-\",Dados!M428)","v":""},{"$f":"IF(ISERROR(Dados!N428),\"-\",Dados!N428)","v":""},{"$f":"IF(ISERROR(Dados!O428),\"-\",Dados!O428)","v":""},{"$f":"IF(ISERROR(Dados!P428),\"-\",Dados!P428)","v":""},{"$f":"IF(ISERROR(Dados!Q428),\"-\",Dados!Q428)","v":""},{"$f":"IF(ISERROR(Dados!R428),\"-\",Dados!R428)","v":""},{"$f":"IF(ISERROR(Dados!S428),\"-\",Dados!S428)","v":""},{"$f":"IF(ISERROR(Dados!T428),\"-\",Dados!T428)","v":""},{"$f":"IF(ISERROR(Dados!U428),\"-\",Dados!U428)","v":""},{"$f":"IF(ISERROR(Dados!V428),\"-\",Dados!V428)","v":""},{"$f":"IF(ISERROR(Dados!W428),\"-\",Dados!W428)","v":""},{"$f":"IF(ISERROR(Dados!X428),\"-\",Dados!X428)","v":""},{"$f":"IF(ISERROR(Dados!Y428),\"-\",Dados!Y428)","v":""},{"$f":"IF(ISERROR(Dados!Z428),\"-\",Dados!Z428)","v":""},{"$f":"IF(ISERROR(Dados!AA428),\"-\",Dados!AA428)","v":""},{"$f":"IF(ISERROR(Dados!AB428),\"-\",Dados!AB428)","v":""},{"$f":"IF(ISERROR(Dados!AC428),\"-\",Dados!AC428)","v":""},{"$f":"IF(ISERROR(Dados!AD428),\"-\",Dados!AD428)","v":""},{"$f":"IF(ISERROR(Dados!AE428),\"-\",Dados!AE428)","v":""},{"$f":"IF(ISERROR(Dados!AF428),\"-\",Dados!AF428)","v":""},{"$f":"IF(ISERROR(Dados!AG428),\"-\",Dados!AG428)","v":""}]
[{"$f":"IF(ISERROR(Dados!A429),\"-\",Dados!A429)","v":""},{"$f":"IF(ISERROR(Dados!B429),\"-\",Dados!B429)","v":""},{"$f":"IF(ISERROR(Dados!C429),\"-\",Dados!C429)","v":""},{"$f":"IF(ISERROR(Dados!D429),\"-\",Dados!D429)","v":""},{"$f":"IF(ISERROR(Dados!E429),\"-\",Dados!E429)","v":""},{"$f":"IF(ISERROR(Dados!F429),\"-\",Dados!F429)","v":""},{"$f":"IF(ISERROR(Dados!G429),\"-\",Dados!G429)","v":""},{"$f":"IF(ISERROR(Dados!H429),\"-\",Dados!H429)","v":""},{"$f":"IF(ISERROR(Dados!I429),\"-\",Dados!I429)","v":""},{"$f":"IF(ISERROR(Dados!J429),\"-\",Dados!J429)","v":""},{"$f":"IF(ISERROR(Dados!K429),\"-\",Dados!K429)","v":""},{"$f":"IF(ISERROR(Dados!L429),\"-\",Dados!L429)","v":""},{"$f":"IF(ISERROR(Dados!M429),\"-\",Dados!M429)","v":""},{"$f":"IF(ISERROR(Dados!N429),\"-\",Dados!N429)","v":""},{"$f":"IF(ISERROR(Dados!O429),\"-\",Dados!O429)","v":""},{"$f":"IF(ISERROR(Dados!P429),\"-\",Dados!P429)","v":""},{"$f":"IF(ISERROR(Dados!Q429),\"-\",Dados!Q429)","v":""},{"$f":"IF(ISERROR(Dados!R429),\"-\",Dados!R429)","v":""},{"$f":"IF(ISERROR(Dados!S429),\"-\",Dados!S429)","v":""},{"$f":"IF(ISERROR(Dados!T429),\"-\",Dados!T429)","v":""},{"$f":"IF(ISERROR(Dados!U429),\"-\",Dados!U429)","v":""},{"$f":"IF(ISERROR(Dados!V429),\"-\",Dados!V429)","v":""},{"$f":"IF(ISERROR(Dados!W429),\"-\",Dados!W429)","v":""},{"$f":"IF(ISERROR(Dados!X429),\"-\",Dados!X429)","v":""},{"$f":"IF(ISERROR(Dados!Y429),\"-\",Dados!Y429)","v":""},{"$f":"IF(ISERROR(Dados!Z429),\"-\",Dados!Z429)","v":""},{"$f":"IF(ISERROR(Dados!AA429),\"-\",Dados!AA429)","v":""},{"$f":"IF(ISERROR(Dados!AB429),\"-\",Dados!AB429)","v":""},{"$f":"IF(ISERROR(Dados!AC429),\"-\",Dados!AC429)","v":""},{"$f":"IF(ISERROR(Dados!AD429),\"-\",Dados!AD429)","v":""},{"$f":"IF(ISERROR(Dados!AE429),\"-\",Dados!AE429)","v":""},{"$f":"IF(ISERROR(Dados!AF429),\"-\",Dados!AF429)","v":""},{"$f":"IF(ISERROR(Dados!AG429),\"-\",Dados!AG429)","v":""}]
[{"$f":"IF(ISERROR(Dados!A430),\"-\",Dados!A430)","v":""},{"$f":"IF(ISERROR(Dados!B430),\"-\",Dados!B430)","v":""},{"$f":"IF(ISERROR(Dados!C430),\"-\",Dados!C430)","v":""},{"$f":"IF(ISERROR(Dados!D430),\"-\",Dados!D430)","v":""},{"$f":"IF(ISERROR(Dados!E430),\"-\",Dados!E430)","v":""},{"$f":"IF(ISERROR(Dados!F430),\"-\",Dados!F430)","v":""},{"$f":"IF(ISERROR(Dados!G430),\"-\",Dados!G430)","v":""},{"$f":"IF(ISERROR(Dados!H430),\"-\",Dados!H430)","v":""},{"$f":"IF(ISERROR(Dados!I430),\"-\",Dados!I430)","v":""},{"$f":"IF(ISERROR(Dados!J430),\"-\",Dados!J430)","v":""},{"$f":"IF(ISERROR(Dados!K430),\"-\",Dados!K430)","v":""},{"$f":"IF(ISERROR(Dados!L430),\"-\",Dados!L430)","v":""},{"$f":"IF(ISERROR(Dados!M430),\"-\",Dados!M430)","v":""},{"$f":"IF(ISERROR(Dados!N430),\"-\",Dados!N430)","v":""},{"$f":"IF(ISERROR(Dados!O430),\"-\",Dados!O430)","v":""},{"$f":"IF(ISERROR(Dados!P430),\"-\",Dados!P430)","v":""},{"$f":"IF(ISERROR(Dados!Q430),\"-\",Dados!Q430)","v":""},{"$f":"IF(ISERROR(Dados!R430),\"-\",Dados!R430)","v":""},{"$f":"IF(ISERROR(Dados!S430),\"-\",Dados!S430)","v":""},{"$f":"IF(ISERROR(Dados!T430),\"-\",Dados!T430)","v":""},{"$f":"IF(ISERROR(Dados!U430),\"-\",Dados!U430)","v":""},{"$f":"IF(ISERROR(Dados!V430),\"-\",Dados!V430)","v":""},{"$f":"IF(ISERROR(Dados!W430),\"-\",Dados!W430)","v":""},{"$f":"IF(ISERROR(Dados!X430),\"-\",Dados!X430)","v":""},{"$f":"IF(ISERROR(Dados!Y430),\"-\",Dados!Y430)","v":""},{"$f":"IF(ISERROR(Dados!Z430),\"-\",Dados!Z430)","v":""},{"$f":"IF(ISERROR(Dados!AA430),\"-\",Dados!AA430)","v":""},{"$f":"IF(ISERROR(Dados!AB430),\"-\",Dados!AB430)","v":""},{"$f":"IF(ISERROR(Dados!AC430),\"-\",Dados!AC430)","v":""},{"$f":"IF(ISERROR(Dados!AD430),\"-\",Dados!AD430)","v":""},{"$f":"IF(ISERROR(Dados!AE430),\"-\",Dados!AE430)","v":""},{"$f":"IF(ISERROR(Dados!AF430),\"-\",Dados!AF430)","v":""},{"$f":"IF(ISERROR(Dados!AG430),\"-\",Dados!AG430)","v":""}]
[{"$f":"IF(ISERROR(Dados!A431),\"-\",Dados!A431)","v":""},{"$f":"IF(ISERROR(Dados!B431),\"-\",Dados!B431)","v":""},{"$f":"IF(ISERROR(Dados!C431),\"-\",Dados!C431)","v":""},{"$f":"IF(ISERROR(Dados!D431),\"-\",Dados!D431)","v":""},{"$f":"IF(ISERROR(Dados!E431),\"-\",Dados!E431)","v":""},{"$f":"IF(ISERROR(Dados!F431),\"-\",Dados!F431)","v":""},{"$f":"IF(ISERROR(Dados!G431),\"-\",Dados!G431)","v":""},{"$f":"IF(ISERROR(Dados!H431),\"-\",Dados!H431)","v":""},{"$f":"IF(ISERROR(Dados!I431),\"-\",Dados!I431)","v":""},{"$f":"IF(ISERROR(Dados!J431),\"-\",Dados!J431)","v":""},{"$f":"IF(ISERROR(Dados!K431),\"-\",Dados!K431)","v":""},{"$f":"IF(ISERROR(Dados!L431),\"-\",Dados!L431)","v":""},{"$f":"IF(ISERROR(Dados!M431),\"-\",Dados!M431)","v":""},{"$f":"IF(ISERROR(Dados!N431),\"-\",Dados!N431)","v":""},{"$f":"IF(ISERROR(Dados!O431),\"-\",Dados!O431)","v":""},{"$f":"IF(ISERROR(Dados!P431),\"-\",Dados!P431)","v":""},{"$f":"IF(ISERROR(Dados!Q431),\"-\",Dados!Q431)","v":""},{"$f":"IF(ISERROR(Dados!R431),\"-\",Dados!R431)","v":""},{"$f":"IF(ISERROR(Dados!S431),\"-\",Dados!S431)","v":""},{"$f":"IF(ISERROR(Dados!T431),\"-\",Dados!T431)","v":""},{"$f":"IF(ISERROR(Dados!U431),\"-\",Dados!U431)","v":""},{"$f":"IF(ISERROR(Dados!V431),\"-\",Dados!V431)","v":""},{"$f":"IF(ISERROR(Dados!W431),\"-\",Dados!W431)","v":""},{"$f":"IF(ISERROR(Dados!X431),\"-\",Dados!X431)","v":""},{"$f":"IF(ISERROR(Dados!Y431),\"-\",Dados!Y431)","v":""},{"$f":"IF(ISERROR(Dados!Z431),\"-\",Dados!Z431)","v":""},{"$f":"IF(ISERROR(Dados!AA431),\"-\",Dados!AA431)","v":""},{"$f":"IF(ISERROR(Dados!AB431),\"-\",Dados!AB431)","v":""},{"$f":"IF(ISERROR(Dados!AC431),\"-\",Dados!AC431)","v":""},{"$f":"IF(ISERROR(Dados!AD431),\"-\",Dados!AD431)","v":""},{"$f":"IF(ISERROR(Dados!AE431),\"-\",Dados!AE431)","v":""},{"$f":"IF(ISERROR(Dados!AF431),\"-\",Dados!AF431)","v":""},{"$f":"IF(ISERROR(Dados!AG431),\"-\",Dados!AG431)","v":""}]
[{"$f":"IF(ISERROR(Dados!A432),\"-\",Dados!A432)","v":""},{"$f":"IF(ISERROR(Dados!B432),\"-\",Dados!B432)","v":""},{"$f":"IF(ISERROR(Dados!C432),\"-\",Dados!C432)","v":""},{"$f":"IF(ISERROR(Dados!D432),\"-\",Dados!D432)","v":""},{"$f":"IF(ISERROR(Dados!E432),\"-\",Dados!E432)","v":""},{"$f":"IF(ISERROR(Dados!F432),\"-\",Dados!F432)","v":""},{"$f":"IF(ISERROR(Dados!G432),\"-\",Dados!G432)","v":""},{"$f":"IF(ISERROR(Dados!H432),\"-\",Dados!H432)","v":""},{"$f":"IF(ISERROR(Dados!I432),\"-\",Dados!I432)","v":""},{"$f":"IF(ISERROR(Dados!J432),\"-\",Dados!J432)","v":""},{"$f":"IF(ISERROR(Dados!K432),\"-\",Dados!K432)","v":""},{"$f":"IF(ISERROR(Dados!L432),\"-\",Dados!L432)","v":""},{"$f":"IF(ISERROR(Dados!M432),\"-\",Dados!M432)","v":""},{"$f":"IF(ISERROR(Dados!N432),\"-\",Dados!N432)","v":""},{"$f":"IF(ISERROR(Dados!O432),\"-\",Dados!O432)","v":""},{"$f":"IF(ISERROR(Dados!P432),\"-\",Dados!P432)","v":""},{"$f":"IF(ISERROR(Dados!Q432),\"-\",Dados!Q432)","v":""},{"$f":"IF(ISERROR(Dados!R432),\"-\",Dados!R432)","v":""},{"$f":"IF(ISERROR(Dados!S432),\"-\",Dados!S432)","v":""},{"$f":"IF(ISERROR(Dados!T432),\"-\",Dados!T432)","v":""},{"$f":"IF(ISERROR(Dados!U432),\"-\",Dados!U432)","v":""},{"$f":"IF(ISERROR(Dados!V432),\"-\",Dados!V432)","v":""},{"$f":"IF(ISERROR(Dados!W432),\"-\",Dados!W432)","v":""},{"$f":"IF(ISERROR(Dados!X432),\"-\",Dados!X432)","v":""},{"$f":"IF(ISERROR(Dados!Y432),\"-\",Dados!Y432)","v":""},{"$f":"IF(ISERROR(Dados!Z432),\"-\",Dados!Z432)","v":""},{"$f":"IF(ISERROR(Dados!AA432),\"-\",Dados!AA432)","v":""},{"$f":"IF(ISERROR(Dados!AB432),\"-\",Dados!AB432)","v":""},{"$f":"IF(ISERROR(Dados!AC432),\"-\",Dados!AC432)","v":""},{"$f":"IF(ISERROR(Dados!AD432),\"-\",Dados!AD432)","v":""},{"$f":"IF(ISERROR(Dados!AE432),\"-\",Dados!AE432)","v":""},{"$f":"IF(ISERROR(Dados!AF432),\"-\",Dados!AF432)","v":""},{"$f":"IF(ISERROR(Dados!AG432),\"-\",Dados!AG432)","v":""}]
[{"$f":"IF(ISERROR(Dados!A433),\"-\",Dados!A433)","v":""},{"$f":"IF(ISERROR(Dados!B433),\"-\",Dados!B433)","v":""},{"$f":"IF(ISERROR(Dados!C433),\"-\",Dados!C433)","v":""},{"$f":"IF(ISERROR(Dados!D433),\"-\",Dados!D433)","v":""},{"$f":"IF(ISERROR(Dados!E433),\"-\",Dados!E433)","v":""},{"$f":"IF(ISERROR(Dados!F433),\"-\",Dados!F433)","v":""},{"$f":"IF(ISERROR(Dados!G433),\"-\",Dados!G433)","v":""},{"$f":"IF(ISERROR(Dados!H433),\"-\",Dados!H433)","v":""},{"$f":"IF(ISERROR(Dados!I433),\"-\",Dados!I433)","v":""},{"$f":"IF(ISERROR(Dados!J433),\"-\",Dados!J433)","v":""},{"$f":"IF(ISERROR(Dados!K433),\"-\",Dados!K433)","v":""},{"$f":"IF(ISERROR(Dados!L433),\"-\",Dados!L433)","v":""},{"$f":"IF(ISERROR(Dados!M433),\"-\",Dados!M433)","v":""},{"$f":"IF(ISERROR(Dados!N433),\"-\",Dados!N433)","v":""},{"$f":"IF(ISERROR(Dados!O433),\"-\",Dados!O433)","v":""},{"$f":"IF(ISERROR(Dados!P433),\"-\",Dados!P433)","v":""},{"$f":"IF(ISERROR(Dados!Q433),\"-\",Dados!Q433)","v":""},{"$f":"IF(ISERROR(Dados!R433),\"-\",Dados!R433)","v":""},{"$f":"IF(ISERROR(Dados!S433),\"-\",Dados!S433)","v":""},{"$f":"IF(ISERROR(Dados!T433),\"-\",Dados!T433)","v":""},{"$f":"IF(ISERROR(Dados!U433),\"-\",Dados!U433)","v":""},{"$f":"IF(ISERROR(Dados!V433),\"-\",Dados!V433)","v":""},{"$f":"IF(ISERROR(Dados!W433),\"-\",Dados!W433)","v":""},{"$f":"IF(ISERROR(Dados!X433),\"-\",Dados!X433)","v":""},{"$f":"IF(ISERROR(Dados!Y433),\"-\",Dados!Y433)","v":""},{"$f":"IF(ISERROR(Dados!Z433),\"-\",Dados!Z433)","v":""},{"$f":"IF(ISERROR(Dados!AA433),\"-\",Dados!AA433)","v":""},{"$f":"IF(ISERROR(Dados!AB433),\"-\",Dados!AB433)","v":""},{"$f":"IF(ISERROR(Dados!AC433),\"-\",Dados!AC433)","v":""},{"$f":"IF(ISERROR(Dados!AD433),\"-\",Dados!AD433)","v":""},{"$f":"IF(ISERROR(Dados!AE433),\"-\",Dados!AE433)","v":""},{"$f":"IF(ISERROR(Dados!AF433),\"-\",Dados!AF433)","v":""},{"$f":"IF(ISERROR(Dados!AG433),\"-\",Dados!AG433)","v":""}]
[{"$f":"IF(ISERROR(Dados!A434),\"-\",Dados!A434)","v":""},{"$f":"IF(ISERROR(Dados!B434),\"-\",Dados!B434)","v":""},{"$f":"IF(ISERROR(Dados!C434),\"-\",Dados!C434)","v":""},{"$f":"IF(ISERROR(Dados!D434),\"-\",Dados!D434)","v":""},{"$f":"IF(ISERROR(Dados!E434),\"-\",Dados!E434)","v":""},{"$f":"IF(ISERROR(Dados!F434),\"-\",Dados!F434)","v":""},{"$f":"IF(ISERROR(Dados!G434),\"-\",Dados!G434)","v":""},{"$f":"IF(ISERROR(Dados!H434),\"-\",Dados!H434)","v":""},{"$f":"IF(ISERROR(Dados!I434),\"-\",Dados!I434)","v":""},{"$f":"IF(ISERROR(Dados!J434),\"-\",Dados!J434)","v":""},{"$f":"IF(ISERROR(Dados!K434),\"-\",Dados!K434)","v":""},{"$f":"IF(ISERROR(Dados!L434),\"-\",Dados!L434)","v":""},{"$f":"IF(ISERROR(Dados!M434),\"-\",Dados!M434)","v":""},{"$f":"IF(ISERROR(Dados!N434),\"-\",Dados!N434)","v":""},{"$f":"IF(ISERROR(Dados!O434),\"-\",Dados!O434)","v":""},{"$f":"IF(ISERROR(Dados!P434),\"-\",Dados!P434)","v":""},{"$f":"IF(ISERROR(Dados!Q434),\"-\",Dados!Q434)","v":""},{"$f":"IF(ISERROR(Dados!R434),\"-\",Dados!R434)","v":""},{"$f":"IF(ISERROR(Dados!S434),\"-\",Dados!S434)","v":""},{"$f":"IF(ISERROR(Dados!T434),\"-\",Dados!T434)","v":""},{"$f":"IF(ISERROR(Dados!U434),\"-\",Dados!U434)","v":""},{"$f":"IF(ISERROR(Dados!V434),\"-\",Dados!V434)","v":""},{"$f":"IF(ISERROR(Dados!W434),\"-\",Dados!W434)","v":""},{"$f":"IF(ISERROR(Dados!X434),\"-\",Dados!X434)","v":""},{"$f":"IF(ISERROR(Dados!Y434),\"-\",Dados!Y434)","v":""},{"$f":"IF(ISERROR(Dados!Z434),\"-\",Dados!Z434)","v":""},{"$f":"IF(ISERROR(Dados!AA434),\"-\",Dados!AA434)","v":""},{"$f":"IF(ISERROR(Dados!AB434),\"-\",Dados!AB434)","v":""},{"$f":"IF(ISERROR(Dados!AC434),\"-\",Dados!AC434)","v":""},{"$f":"IF(ISERROR(Dados!AD434),\"-\",Dados!AD434)","v":""},{"$f":"IF(ISERROR(Dados!AE434),\"-\",Dados!AE434)","v":""},{"$f":"IF(ISERROR(Dados!AF434),\"-\",Dados!AF434)","v":""},{"$f":"IF(ISERROR(Dados!AG434),\"-\",Dados!AG434)","v":""}]
[{"$f":"IF(ISERROR(Dados!A435),\"-\",Dados!A435)","v":""},{"$f":"IF(ISERROR(Dados!B435),\"-\",Dados!B435)","v":""},{"$f":"IF(ISERROR(Dados!C435),\"-\",Dados!C435)","v":""},{"$f":"IF(ISERROR(Dados!D435),\"-\",Dados!D435)","v":""},{"$f":"IF(ISERROR(Dados!E435),\"-\",Dados!E435)","v":""},{"$f":"IF(ISERROR(Dados!F435),\"-\",Dados!F435)","v":""},{"$f":"IF(ISERROR(Dados!G435),\"-\",Dados!G435)","v":""},{"$f":"IF(ISERROR(Dados!H435),\"-\",Dados!H435)","v":""},{"$f":"IF(ISERROR(Dados!I435),\"-\",Dados!I435)","v":""},{"$f":"IF(ISERROR(Dados!J435),\"-\",Dados!J435)","v":""},{"$f":"IF(ISERROR(Dados!K435),\"-\",Dados!K435)","v":""},{"$f":"IF(ISERROR(Dados!L435),\"-\",Dados!L435)","v":""},{"$f":"IF(ISERROR(Dados!M435),\"-\",Dados!M435)","v":""},{"$f":"IF(ISERROR(Dados!N435),\"-\",Dados!N435)","v":""},{"$f":"IF(ISERROR(Dados!O435),\"-\",Dados!O435)","v":""},{"$f":"IF(ISERROR(Dados!P435),\"-\",Dados!P435)","v":""},{"$f":"IF(ISERROR(Dados!Q435),\"-\",Dados!Q435)","v":""},{"$f":"IF(ISERROR(Dados!R435),\"-\",Dados!R435)","v":""},{"$f":"IF(ISERROR(Dados!S435),\"-\",Dados!S435)","v":""},{"$f":"IF(ISERROR(Dados!T435),\"-\",Dados!T435)","v":""},{"$f":"IF(ISERROR(Dados!U435),\"-\",Dados!U435)","v":""},{"$f":"IF(ISERROR(Dados!V435),\"-\",Dados!V435)","v":""},{"$f":"IF(ISERROR(Dados!W435),\"-\",Dados!W435)","v":""},{"$f":"IF(ISERROR(Dados!X435),\"-\",Dados!X435)","v":""},{"$f":"IF(ISERROR(Dados!Y435),\"-\",Dados!Y435)","v":""},{"$f":"IF(ISERROR(Dados!Z435),\"-\",Dados!Z435)","v":""},{"$f":"IF(ISERROR(Dados!AA435),\"-\",Dados!AA435)","v":""},{"$f":"IF(ISERROR(Dados!AB435),\"-\",Dados!AB435)","v":""},{"$f":"IF(ISERROR(Dados!AC435),\"-\",Dados!AC435)","v":""},{"$f":"IF(ISERROR(Dados!AD435),\"-\",Dados!AD435)","v":""},{"$f":"IF(ISERROR(Dados!AE435),\"-\",Dados!AE435)","v":""},{"$f":"IF(ISERROR(Dados!AF435),\"-\",Dados!AF435)","v":""},{"$f":"IF(ISERROR(Dados!AG435),\"-\",Dados!AG435)","v":""}]
[{"$f":"IF(ISERROR(Dados!A436),\"-\",Dados!A436)","v":""},{"$f":"IF(ISERROR(Dados!B436),\"-\",Dados!B436)","v":""},{"$f":"IF(ISERROR(Dados!C436),\"-\",Dados!C436)","v":""},{"$f":"IF(ISERROR(Dados!D436),\"-\",Dados!D436)","v":""},{"$f":"IF(ISERROR(Dados!E436),\"-\",Dados!E436)","v":""},{"$f":"IF(ISERROR(Dados!F436),\"-\",Dados!F436)","v":""},{"$f":"IF(ISERROR(Dados!G436),\"-\",Dados!G436)","v":""},{"$f":"IF(ISERROR(Dados!H436),\"-\",Dados!H436)","v":""},{"$f":"IF(ISERROR(Dados!I436),\"-\",Dados!I436)","v":""},{"$f":"IF(ISERROR(Dados!J436),\"-\",Dados!J436)","v":""},{"$f":"IF(ISERROR(Dados!K436),\"-\",Dados!K436)","v":""},{"$f":"IF(ISERROR(Dados!L436),\"-\",Dados!L436)","v":""},{"$f":"IF(ISERROR(Dados!M436),\"-\",Dados!M436)","v":""},{"$f":"IF(ISERROR(Dados!N436),\"-\",Dados!N436)","v":""},{"$f":"IF(ISERROR(Dados!O436),\"-\",Dados!O436)","v":""},{"$f":"IF(ISERROR(Dados!P436),\"-\",Dados!P436)","v":""},{"$f":"IF(ISERROR(Dados!Q436),\"-\",Dados!Q436)","v":""},{"$f":"IF(ISERROR(Dados!R436),\"-\",Dados!R436)","v":""},{"$f":"IF(ISERROR(Dados!S436),\"-\",Dados!S436)","v":""},{"$f":"IF(ISERROR(Dados!T436),\"-\",Dados!T436)","v":""},{"$f":"IF(ISERROR(Dados!U436),\"-\",Dados!U436)","v":""},{"$f":"IF(ISERROR(Dados!V436),\"-\",Dados!V436)","v":""},{"$f":"IF(ISERROR(Dados!W436),\"-\",Dados!W436)","v":""},{"$f":"IF(ISERROR(Dados!X436),\"-\",Dados!X436)","v":""},{"$f":"IF(ISERROR(Dados!Y436),\"-\",Dados!Y436)","v":""},{"$f":"IF(ISERROR(Dados!Z436),\"-\",Dados!Z436)","v":""},{"$f":"IF(ISERROR(Dados!AA436),\"-\",Dados!AA436)","v":""},{"$f":"IF(ISERROR(Dados!AB436),\"-\",Dados!AB436)","v":""},{"$f":"IF(ISERROR(Dados!AC436),\"-\",Dados!AC436)","v":""},{"$f":"IF(ISERROR(Dados!AD436),\"-\",Dados!AD436)","v":""},{"$f":"IF(ISERROR(Dados!AE436),\"-\",Dados!AE436)","v":""},{"$f":"IF(ISERROR(Dados!AF436),\"-\",Dados!AF436)","v":""},{"$f":"IF(ISERROR(Dados!AG436),\"-\",Dados!AG436)","v":""}]
[{"$f":"IF(ISERROR(Dados!A437),\"-\",Dados!A437)","v":""},{"$f":"IF(ISERROR(Dados!B437),\"-\",Dados!B437)","v":""},{"$f":"IF(ISERROR(Dados!C437),\"-\",Dados!C437)","v":""},{"$f":"IF(ISERROR(Dados!D437),\"-\",Dados!D437)","v":""},{"$f":"IF(ISERROR(Dados!E437),\"-\",Dados!E437)","v":""},{"$f":"IF(ISERROR(Dados!F437),\"-\",Dados!F437)","v":""},{"$f":"IF(ISERROR(Dados!G437),\"-\",Dados!G437)","v":""},{"$f":"IF(ISERROR(Dados!H437),\"-\",Dados!H437)","v":""},{"$f":"IF(ISERROR(Dados!I437),\"-\",Dados!I437)","v":""},{"$f":"IF(ISERROR(Dados!J437),\"-\",Dados!J437)","v":""},{"$f":"IF(ISERROR(Dados!K437),\"-\",Dados!K437)","v":""},{"$f":"IF(ISERROR(Dados!L437),\"-\",Dados!L437)","v":""},{"$f":"IF(ISERROR(Dados!M437),\"-\",Dados!M437)","v":""},{"$f":"IF(ISERROR(Dados!N437),\"-\",Dados!N437)","v":""},{"$f":"IF(ISERROR(Dados!O437),\"-\",Dados!O437)","v":""},{"$f":"IF(ISERROR(Dados!P437),\"-\",Dados!P437)","v":""},{"$f":"IF(ISERROR(Dados!Q437),\"-\",Dados!Q437)","v":""},{"$f":"IF(ISERROR(Dados!R437),\"-\",Dados!R437)","v":""},{"$f":"IF(ISERROR(Dados!S437),\"-\",Dados!S437)","v":""},{"$f":"IF(ISERROR(Dados!T437),\"-\",Dados!T437)","v":""},{"$f":"IF(ISERROR(Dados!U437),\"-\",Dados!U437)","v":""},{"$f":"IF(ISERROR(Dados!V437),\"-\",Dados!V437)","v":""},{"$f":"IF(ISERROR(Dados!W437),\"-\",Dados!W437)","v":""},{"$f":"IF(ISERROR(Dados!X437),\"-\",Dados!X437)","v":""},{"$f":"IF(ISERROR(Dados!Y437),\"-\",Dados!Y437)","v":""},{"$f":"IF(ISERROR(Dados!Z437),\"-\",Dados!Z437)","v":""},{"$f":"IF(ISERROR(Dados!AA437),\"-\",Dados!AA437)","v":""},{"$f":"IF(ISERROR(Dados!AB437),\"-\",Dados!AB437)","v":""},{"$f":"IF(ISERROR(Dados!AC437),\"-\",Dados!AC437)","v":""},{"$f":"IF(ISERROR(Dados!AD437),\"-\",Dados!AD437)","v":""},{"$f":"IF(ISERROR(Dados!AE437),\"-\",Dados!AE437)","v":""},{"$f":"IF(ISERROR(Dados!AF437),\"-\",Dados!AF437)","v":""},{"$f":"IF(ISERROR(Dados!AG437),\"-\",Dados!AG437)","v":""}]
[{"$f":"IF(ISERROR(Dados!A438),\"-\",Dados!A438)","v":""},{"$f":"IF(ISERROR(Dados!B438),\"-\",Dados!B438)","v":""},{"$f":"IF(ISERROR(Dados!C438),\"-\",Dados!C438)","v":""},{"$f":"IF(ISERROR(Dados!D438),\"-\",Dados!D438)","v":""},{"$f":"IF(ISERROR(Dados!E438),\"-\",Dados!E438)","v":""},{"$f":"IF(ISERROR(Dados!F438),\"-\",Dados!F438)","v":""},{"$f":"IF(ISERROR(Dados!G438),\"-\",Dados!G438)","v":""},{"$f":"IF(ISERROR(Dados!H438),\"-\",Dados!H438)","v":""},{"$f":"IF(ISERROR(Dados!I438),\"-\",Dados!I438)","v":""},{"$f":"IF(ISERROR(Dados!J438),\"-\",Dados!J438)","v":""},{"$f":"IF(ISERROR(Dados!K438),\"-\",Dados!K438)","v":""},{"$f":"IF(ISERROR(Dados!L438),\"-\",Dados!L438)","v":""},{"$f":"IF(ISERROR(Dados!M438),\"-\",Dados!M438)","v":""},{"$f":"IF(ISERROR(Dados!N438),\"-\",Dados!N438)","v":""},{"$f":"IF(ISERROR(Dados!O438),\"-\",Dados!O438)","v":""},{"$f":"IF(ISERROR(Dados!P438),\"-\",Dados!P438)","v":""},{"$f":"IF(ISERROR(Dados!Q438),\"-\",Dados!Q438)","v":""},{"$f":"IF(ISERROR(Dados!R438),\"-\",Dados!R438)","v":""},{"$f":"IF(ISERROR(Dados!S438),\"-\",Dados!S438)","v":""},{"$f":"IF(ISERROR(Dados!T438),\"-\",Dados!T438)","v":""},{"$f":"IF(ISERROR(Dados!U438),\"-\",Dados!U438)","v":""},{"$f":"IF(ISERROR(Dados!V438),\"-\",Dados!V438)","v":""},{"$f":"IF(ISERROR(Dados!W438),\"-\",Dados!W438)","v":""},{"$f":"IF(ISERROR(Dados!X438),\"-\",Dados!X438)","v":""},{"$f":"IF(ISERROR(Dados!Y438),\"-\",Dados!Y438)","v":""},{"$f":"IF(ISERROR(Dados!Z438),\"-\",Dados!Z438)","v":""},{"$f":"IF(ISERROR(Dados!AA438),\"-\",Dados!AA438)","v":""},{"$f":"IF(ISERROR(Dados!AB438),\"-\",Dados!AB438)","v":""},{"$f":"IF(ISERROR(Dados!AC438),\"-\",Dados!AC438)","v":""},{"$f":"IF(ISERROR(Dados!AD438),\"-\",Dados!AD438)","v":""},{"$f":"IF(ISERROR(Dados!AE438),\"-\",Dados!AE438)","v":""},{"$f":"IF(ISERROR(Dados!AF438),\"-\",Dados!AF438)","v":""},{"$f":"IF(ISERROR(Dados!AG438),\"-\",Dados!AG438)","v":""}]
[{"$f":"IF(ISERROR(Dados!A439),\"-\",Dados!A439)","v":""},{"$f":"IF(ISERROR(Dados!B439),\"-\",Dados!B439)","v":""},{"$f":"IF(ISERROR(Dados!C439),\"-\",Dados!C439)","v":""},{"$f":"IF(ISERROR(Dados!D439),\"-\",Dados!D439)","v":""},{"$f":"IF(ISERROR(Dados!E439),\"-\",Dados!E439)","v":""},{"$f":"IF(ISERROR(Dados!F439),\"-\",Dados!F439)","v":""},{"$f":"IF(ISERROR(Dados!G439),\"-\",Dados!G439)","v":""},{"$f":"IF(ISERROR(Dados!H439),\"-\",Dados!H439)","v":""},{"$f":"IF(ISERROR(Dados!I439),\"-\",Dados!I439)","v":""},{"$f":"IF(ISERROR(Dados!J439),\"-\",Dados!J439)","v":""},{"$f":"IF(ISERROR(Dados!K439),\"-\",Dados!K439)","v":""},{"$f":"IF(ISERROR(Dados!L439),\"-\",Dados!L439)","v":""},{"$f":"IF(ISERROR(Dados!M439),\"-\",Dados!M439)","v":""},{"$f":"IF(ISERROR(Dados!N439),\"-\",Dados!N439)","v":""},{"$f":"IF(ISERROR(Dados!O439),\"-\",Dados!O439)","v":""},{"$f":"IF(ISERROR(Dados!P439),\"-\",Dados!P439)","v":""},{"$f":"IF(ISERROR(Dados!Q439),\"-\",Dados!Q439)","v":""},{"$f":"IF(ISERROR(Dados!R439),\"-\",Dados!R439)","v":""},{"$f":"IF(ISERROR(Dados!S439),\"-\",Dados!S439)","v":""},{"$f":"IF(ISERROR(Dados!T439),\"-\",Dados!T439)","v":""},{"$f":"IF(ISERROR(Dados!U439),\"-\",Dados!U439)","v":""},{"$f":"IF(ISERROR(Dados!V439),\"-\",Dados!V439)","v":""},{"$f":"IF(ISERROR(Dados!W439),\"-\",Dados!W439)","v":""},{"$f":"IF(ISERROR(Dados!X439),\"-\",Dados!X439)","v":""},{"$f":"IF(ISERROR(Dados!Y439),\"-\",Dados!Y439)","v":""},{"$f":"IF(ISERROR(Dados!Z439),\"-\",Dados!Z439)","v":""},{"$f":"IF(ISERROR(Dados!AA439),\"-\",Dados!AA439)","v":""},{"$f":"IF(ISERROR(Dados!AB439),\"-\",Dados!AB439)","v":""},{"$f":"IF(ISERROR(Dados!AC439),\"-\",Dados!AC439)","v":""},{"$f":"IF(ISERROR(Dados!AD439),\"-\",Dados!AD439)","v":""},{"$f":"IF(ISERROR(Dados!AE439),\"-\",Dados!AE439)","v":""},{"$f":"IF(ISERROR(Dados!AF439),\"-\",Dados!AF439)","v":""},{"$f":"IF(ISERROR(Dados!AG439),\"-\",Dados!AG439)","v":""}]
[{"$f":"IF(ISERROR(Dados!A440),\"-\",Dados!A440)","v":""},{"$f":"IF(ISERROR(Dados!B440),\"-\",Dados!B440)","v":""},{"$f":"IF(ISERROR(Dados!C440),\"-\",Dados!C440)","v":""},{"$f":"IF(ISERROR(Dados!D440),\"-\",Dados!D440)","v":""},{"$f":"IF(ISERROR(Dados!E440),\"-\",Dados!E440)","v":""},{"$f":"IF(ISERROR(Dados!F440),\"-\",Dados!F440)","v":""},{"$f":"IF(ISERROR(Dados!G440),\"-\",Dados!G440)","v":""},{"$f":"IF(ISERROR(Dados!H440),\"-\",Dados!H440)","v":""},{"$f":"IF(ISERROR(Dados!I440),\"-\",Dados!I440)","v":""},{"$f":"IF(ISERROR(Dados!J440),\"-\",Dados!J440)","v":""},{"$f":"IF(ISERROR(Dados!K440),\"-\",Dados!K440)","v":""},{"$f":"IF(ISERROR(Dados!L440),\"-\",Dados!L440)","v":""},{"$f":"IF(ISERROR(Dados!M440),\"-\",Dados!M440)","v":""},{"$f":"IF(ISERROR(Dados!N440),\"-\",Dados!N440)","v":""},{"$f":"IF(ISERROR(Dados!O440),\"-\",Dados!O440)","v":""},{"$f":"IF(ISERROR(Dados!P440),\"-\",Dados!P440)","v":""},{"$f":"IF(ISERROR(Dados!Q440),\"-\",Dados!Q440)","v":""},{"$f":"IF(ISERROR(Dados!R440),\"-\",Dados!R440)","v":""},{"$f":"IF(ISERROR(Dados!S440),\"-\",Dados!S440)","v":""},{"$f":"IF(ISERROR(Dados!T440),\"-\",Dados!T440)","v":""},{"$f":"IF(ISERROR(Dados!U440),\"-\",Dados!U440)","v":""},{"$f":"IF(ISERROR(Dados!V440),\"-\",Dados!V440)","v":""},{"$f":"IF(ISERROR(Dados!W440),\"-\",Dados!W440)","v":""},{"$f":"IF(ISERROR(Dados!X440),\"-\",Dados!X440)","v":""},{"$f":"IF(ISERROR(Dados!Y440),\"-\",Dados!Y440)","v":""},{"$f":"IF(ISERROR(Dados!Z440),\"-\",Dados!Z440)","v":""},{"$f":"IF(ISERROR(Dados!AA440),\"-\",Dados!AA440)","v":""},{"$f":"IF(ISERROR(Dados!AB440),\"-\",Dados!AB440)","v":""},{"$f":"IF(ISERROR(Dados!AC440),\"-\",Dados!AC440)","v":""},{"$f":"IF(ISERROR(Dados!AD440),\"-\",Dados!AD440)","v":""},{"$f":"IF(ISERROR(Dados!AE440),\"-\",Dados!AE440)","v":""},{"$f":"IF(ISERROR(Dados!AF440),\"-\",Dados!AF440)","v":""},{"$f":"IF(ISERROR(Dados!AG440),\"-\",Dados!AG440)","v":""}]
[{"$f":"IF(ISERROR(Dados!A441),\"-\",Dados!A441)","v":""},{"$f":"IF(ISERROR(Dados!B441),\"-\",Dados!B441)","v":""},{"$f":"IF(ISERROR(Dados!C441),\"-\",Dados!C441)","v":""},{"$f":"IF(ISERROR(Dados!D441),\"-\",Dados!D441)","v":""},{"$f":"IF(ISERROR(Dados!E441),\"-\",Dados!E441)","v":""},{"$f":"IF(ISERROR(Dados!F441),\"-\",Dados!F441)","v":""},{"$f":"IF(ISERROR(Dados!G441),\"-\",Dados!G441)","v":""},{"$f":"IF(ISERROR(Dados!H441),\"-\",Dados!H441)","v":""},{"$f":"IF(ISERROR(Dados!I441),\"-\",Dados!I441)","v":""},{"$f":"IF(ISERROR(Dados!J441),\"-\",Dados!J441)","v":""},{"$f":"IF(ISERROR(Dados!K441),\"-\",Dados!K441)","v":""},{"$f":"IF(ISERROR(Dados!L441),\"-\",Dados!L441)","v":""},{"$f":"IF(ISERROR(Dados!M441),\"-\",Dados!M441)","v":""},{"$f":"IF(ISERROR(Dados!N441),\"-\",Dados!N441)","v":""},{"$f":"IF(ISERROR(Dados!O441),\"-\",Dados!O441)","v":""},{"$f":"IF(ISERROR(Dados!P441),\"-\",Dados!P441)","v":""},{"$f":"IF(ISERROR(Dados!Q441),\"-\",Dados!Q441)","v":""},{"$f":"IF(ISERROR(Dados!R441),\"-\",Dados!R441)","v":""},{"$f":"IF(ISERROR(Dados!S441),\"-\",Dados!S441)","v":""},{"$f":"IF(ISERROR(Dados!T441),\"-\",Dados!T441)","v":""},{"$f":"IF(ISERROR(Dados!U441),\"-\",Dados!U441)","v":""},{"$f":"IF(ISERROR(Dados!V441),\"-\",Dados!V441)","v":""},{"$f":"IF(ISERROR(Dados!W441),\"-\",Dados!W441)","v":""},{"$f":"IF(ISERROR(Dados!X441),\"-\",Dados!X441)","v":""},{"$f":"IF(ISERROR(Dados!Y441),\"-\",Dados!Y441)","v":""},{"$f":"IF(ISERROR(Dados!Z441),\"-\",Dados!Z441)","v":""},{"$f":"IF(ISERROR(Dados!AA441),\"-\",Dados!AA441)","v":""},{"$f":"IF(ISERROR(Dados!AB441),\"-\",Dados!AB441)","v":""},{"$f":"IF(ISERROR(Dados!AC441),\"-\",Dados!AC441)","v":""},{"$f":"IF(ISERROR(Dados!AD441),\"-\",Dados!AD441)","v":""},{"$f":"IF(ISERROR(Dados!AE441),\"-\",Dados!AE441)","v":""},{"$f":"IF(ISERROR(Dados!AF441),\"-\",Dados!AF441)","v":""},{"$f":"IF(ISERROR(Dados!AG441),\"-\",Dados!AG441)","v":""}]
[{"$f":"IF(ISERROR(Dados!A442),\"-\",Dados!A442)","v":""},{"$f":"IF(ISERROR(Dados!B442),\"-\",Dados!B442)","v":""},{"$f":"IF(ISERROR(Dados!C442),\"-\",Dados!C442)","v":""},{"$f":"IF(ISERROR(Dados!D442),\"-\",Dados!D442)","v":""},{"$f":"IF(ISERROR(Dados!E442),\"-\",Dados!E442)","v":""},{"$f":"IF(ISERROR(Dados!F442),\"-\",Dados!F442)","v":""},{"$f":"IF(ISERROR(Dados!G442),\"-\",Dados!G442)","v":""},{"$f":"IF(ISERROR(Dados!H442),\"-\",Dados!H442)","v":""},{"$f":"IF(ISERROR(Dados!I442),\"-\",Dados!I442)","v":""},{"$f":"IF(ISERROR(Dados!J442),\"-\",Dados!J442)","v":""},{"$f":"IF(ISERROR(Dados!K442),\"-\",Dados!K442)","v":""},{"$f":"IF(ISERROR(Dados!L442),\"-\",Dados!L442)","v":""},{"$f":"IF(ISERROR(Dados!M442),\"-\",Dados!M442)","v":""},{"$f":"IF(ISERROR(Dados!N442),\"-\",Dados!N442)","v":""},{"$f":"IF(ISERROR(Dados!O442),\"-\",Dados!O442)","v":""},{"$f":"IF(ISERROR(Dados!P442),\"-\",Dados!P442)","v":""},{"$f":"IF(ISERROR(Dados!Q442),\"-\",Dados!Q442)","v":""},{"$f":"IF(ISERROR(Dados!R442),\"-\",Dados!R442)","v":""},{"$f":"IF(ISERROR(Dados!S442),\"-\",Dados!S442)","v":""},{"$f":"IF(ISERROR(Dados!T442),\"-\",Dados!T442)","v":""},{"$f":"IF(ISERROR(Dados!U442),\"-\",Dados!U442)","v":""},{"$f":"IF(ISERROR(Dados!V442),\"-\",Dados!V442)","v":""},{"$f":"IF(ISERROR(Dados!W442),\"-\",Dados!W442)","v":""},{"$f":"IF(ISERROR(Dados!X442),\"-\",Dados!X442)","v":""},{"$f":"IF(ISERROR(Dados!Y442),\"-\",Dados!Y442)","v":""},{"$f":"IF(ISERROR(Dados!Z442),\"-\",Dados!Z442)","v":""},{"$f":"IF(ISERROR(Dados!AA442),\"-\",Dados!AA442)","v":""},{"$f":"IF(ISERROR(Dados!AB442),\"-\",Dados!AB442)","v":""},{"$f":"IF(ISERROR(Dados!AC442),\"-\",Dados!AC442)","v":""},{"$f":"IF(ISERROR(Dados!AD442),\"-\",Dados!AD442)","v":""},{"$f":"IF(ISERROR(Dados!AE442),\"-\",Dados!AE442)","v":""},{"$f":"IF(ISERROR(Dados!AF442),\"-\",Dados!AF442)","v":""},{"$f":"IF(ISERROR(Dados!AG442),\"-\",Dados!AG442)","v":""}]
[{"$f":"IF(ISERROR(Dados!A443),\"-\",Dados!A443)","v":""},{"$f":"IF(ISERROR(Dados!B443),\"-\",Dados!B443)","v":""},{"$f":"IF(ISERROR(Dados!C443),\"-\",Dados!C443)","v":""},{"$f":"IF(ISERROR(Dados!D443),\"-\",Dados!D443)","v":""},{"$f":"IF(ISERROR(Dados!E443),\"-\",Dados!E443)","v":""},{"$f":"IF(ISERROR(Dados!F443),\"-\",Dados!F443)","v":""},{"$f":"IF(ISERROR(Dados!G443),\"-\",Dados!G443)","v":""},{"$f":"IF(ISERROR(Dados!H443),\"-\",Dados!H443)","v":""},{"$f":"IF(ISERROR(Dados!I443),\"-\",Dados!I443)","v":""},{"$f":"IF(ISERROR(Dados!J443),\"-\",Dados!J443)","v":""},{"$f":"IF(ISERROR(Dados!K443),\"-\",Dados!K443)","v":""},{"$f":"IF(ISERROR(Dados!L443),\"-\",Dados!L443)","v":""},{"$f":"IF(ISERROR(Dados!M443),\"-\",Dados!M443)","v":""},{"$f":"IF(ISERROR(Dados!N443),\"-\",Dados!N443)","v":""},{"$f":"IF(ISERROR(Dados!O443),\"-\",Dados!O443)","v":""},{"$f":"IF(ISERROR(Dados!P443),\"-\",Dados!P443)","v":""},{"$f":"IF(ISERROR(Dados!Q443),\"-\",Dados!Q443)","v":""},{"$f":"IF(ISERROR(Dados!R443),\"-\",Dados!R443)","v":""},{"$f":"IF(ISERROR(Dados!S443),\"-\",Dados!S443)","v":""},{"$f":"IF(ISERROR(Dados!T443),\"-\",Dados!T443)","v":""},{"$f":"IF(ISERROR(Dados!U443),\"-\",Dados!U443)","v":""},{"$f":"IF(ISERROR(Dados!V443),\"-\",Dados!V443)","v":""},{"$f":"IF(ISERROR(Dados!W443),\"-\",Dados!W443)","v":""},{"$f":"IF(ISERROR(Dados!X443),\"-\",Dados!X443)","v":""},{"$f":"IF(ISERROR(Dados!Y443),\"-\",Dados!Y443)","v":""},{"$f":"IF(ISERROR(Dados!Z443),\"-\",Dados!Z443)","v":""},{"$f":"IF(ISERROR(Dados!AA443),\"-\",Dados!AA443)","v":""},{"$f":"IF(ISERROR(Dados!AB443),\"-\",Dados!AB443)","v":""},{"$f":"IF(ISERROR(Dados!AC443),\"-\",Dados!AC443)","v":""},{"$f":"IF(ISERROR(Dados!AD443),\"-\",Dados!AD443)","v":""},{"$f":"IF(ISERROR(Dados!AE443),\"-\",Dados!AE443)","v":""},{"$f":"IF(ISERROR(Dados!AF443),\"-\",Dados!AF443)","v":""},{"$f":"IF(ISERROR(Dados!AG443),\"-\",Dados!AG443)","v":""}]
[{"$f":"IF(ISERROR(Dados!A444),\"-\",Dados!A444)","v":""},{"$f":"IF(ISERROR(Dados!B444),\"-\",Dados!B444)","v":""},{"$f":"IF(ISERROR(Dados!C444),\"-\",Dados!C444)","v":""},{"$f":"IF(ISERROR(Dados!D444),\"-\",Dados!D444)","v":""},{"$f":"IF(ISERROR(Dados!E444),\"-\",Dados!E444)","v":""},{"$f":"IF(ISERROR(Dados!F444),\"-\",Dados!F444)","v":""},{"$f":"IF(ISERROR(Dados!G444),\"-\",Dados!G444)","v":""},{"$f":"IF(ISERROR(Dados!H444),\"-\",Dados!H444)","v":""},{"$f":"IF(ISERROR(Dados!I444),\"-\",Dados!I444)","v":""},{"$f":"IF(ISERROR(Dados!J444),\"-\",Dados!J444)","v":""},{"$f":"IF(ISERROR(Dados!K444),\"-\",Dados!K444)","v":""},{"$f":"IF(ISERROR(Dados!L444),\"-\",Dados!L444)","v":""},{"$f":"IF(ISERROR(Dados!M444),\"-\",Dados!M444)","v":""},{"$f":"IF(ISERROR(Dados!N444),\"-\",Dados!N444)","v":""},{"$f":"IF(ISERROR(Dados!O444),\"-\",Dados!O444)","v":""},{"$f":"IF(ISERROR(Dados!P444),\"-\",Dados!P444)","v":""},{"$f":"IF(ISERROR(Dados!Q444),\"-\",Dados!Q444)","v":""},{"$f":"IF(ISERROR(Dados!R444),\"-\",Dados!R444)","v":""},{"$f":"IF(ISERROR(Dados!S444),\"-\",Dados!S444)","v":""},{"$f":"IF(ISERROR(Dados!T444),\"-\",Dados!T444)","v":""},{"$f":"IF(ISERROR(Dados!U444),\"-\",Dados!U444)","v":""},{"$f":"IF(ISERROR(Dados!V444),\"-\",Dados!V444)","v":""},{"$f":"IF(ISERROR(Dados!W444),\"-\",Dados!W444)","v":""},{"$f":"IF(ISERROR(Dados!X444),\"-\",Dados!X444)","v":""},{"$f":"IF(ISERROR(Dados!Y444),\"-\",Dados!Y444)","v":""},{"$f":"IF(ISERROR(Dados!Z444),\"-\",Dados!Z444)","v":""},{"$f":"IF(ISERROR(Dados!AA444),\"-\",Dados!AA444)","v":""},{"$f":"IF(ISERROR(Dados!AB444),\"-\",Dados!AB444)","v":""},{"$f":"IF(ISERROR(Dados!AC444),\"-\",Dados!AC444)","v":""},{"$f":"IF(ISERROR(Dados!AD444),\"-\",Dados!AD444)","v":""},{"$f":"IF(ISERROR(Dados!AE444),\"-\",Dados!AE444)","v":""},{"$f":"IF(ISERROR(Dados!AF444),\"-\",Dados!AF444)","v":""},{"$f":"IF(ISERROR(Dados!AG444),\"-\",Dados!AG444)","v":""}]
[{"$f":"IF(ISERROR(Dados!A445),\"-\",Dados!A445)","v":""},{"$f":"IF(ISERROR(Dados!B445),\"-\",Dados!B445)","v":""},{"$f":"IF(ISERROR(Dados!C445),\"-\",Dados!C445)","v":""},{"$f":"IF(ISERROR(Dados!D445),\"-\",Dados!D445)","v":""},{"$f":"IF(ISERROR(Dados!E445),\"-\",Dados!E445)","v":""},{"$f":"IF(ISERROR(Dados!F445),\"-\",Dados!F445)","v":""},{"$f":"IF(ISERROR(Dados!G445),\"-\",Dados!G445)","v":""},{"$f":"IF(ISERROR(Dados!H445),\"-\",Dados!H445)","v":""},{"$f":"IF(ISERROR(Dados!I445),\"-\",Dados!I445)","v":""},{"$f":"IF(ISERROR(Dados!J445),\"-\",Dados!J445)","v":""},{"$f":"IF(ISERROR(Dados!K445),\"-\",Dados!K445)","v":""},{"$f":"IF(ISERROR(Dados!L445),\"-\",Dados!L445)","v":""},{"$f":"IF(ISERROR(Dados!M445),\"-\",Dados!M445)","v":""},{"$f":"IF(ISERROR(Dados!N445),\"-\",Dados!N445)","v":""},{"$f":"IF(ISERROR(Dados!O445),\"-\",Dados!O445)","v":""},{"$f":"IF(ISERROR(Dados!P445),\"-\",Dados!P445)","v":""},{"$f":"IF(ISERROR(Dados!Q445),\"-\",Dados!Q445)","v":""},{"$f":"IF(ISERROR(Dados!R445),\"-\",Dados!R445)","v":""},{"$f":"IF(ISERROR(Dados!S445),\"-\",Dados!S445)","v":""},{"$f":"IF(ISERROR(Dados!T445),\"-\",Dados!T445)","v":""},{"$f":"IF(ISERROR(Dados!U445),\"-\",Dados!U445)","v":""},{"$f":"IF(ISERROR(Dados!V445),\"-\",Dados!V445)","v":""},{"$f":"IF(ISERROR(Dados!W445),\"-\",Dados!W445)","v":""},{"$f":"IF(ISERROR(Dados!X445),\"-\",Dados!X445)","v":""},{"$f":"IF(ISERROR(Dados!Y445),\"-\",Dados!Y445)","v":""},{"$f":"IF(ISERROR(Dados!Z445),\"-\",Dados!Z445)","v":""},{"$f":"IF(ISERROR(Dados!AA445),\"-\",Dados!AA445)","v":""},{"$f":"IF(ISERROR(Dados!AB445),\"-\",Dados!AB445)","v":""},{"$f":"IF(ISERROR(Dados!AC445),\"-\",Dados!AC445)","v":""},{"$f":"IF(ISERROR(Dados!AD445),\"-\",Dados!AD445)","v":""},{"$f":"IF(ISERROR(Dados!AE445),\"-\",Dados!AE445)","v":""},{"$f":"IF(ISERROR(Dados!AF445),\"-\",Dados!AF445)","v":""},{"$f":"IF(ISERROR(Dados!AG445),\"-\",Dados!AG445)","v":""}]
[{"$f":"IF(ISERROR(Dados!A446),\"-\",Dados!A446)","v":""},{"$f":"IF(ISERROR(Dados!B446),\"-\",Dados!B446)","v":""},{"$f":"IF(ISERROR(Dados!C446),\"-\",Dados!C446)","v":""},{"$f":"IF(ISERROR(Dados!D446),\"-\",Dados!D446)","v":""},{"$f":"IF(ISERROR(Dados!E446),\"-\",Dados!E446)","v":""},{"$f":"IF(ISERROR(Dados!F446),\"-\",Dados!F446)","v":""},{"$f":"IF(ISERROR(Dados!G446),\"-\",Dados!G446)","v":""},{"$f":"IF(ISERROR(Dados!H446),\"-\",Dados!H446)","v":""},{"$f":"IF(ISERROR(Dados!I446),\"-\",Dados!I446)","v":""},{"$f":"IF(ISERROR(Dados!J446),\"-\",Dados!J446)","v":""},{"$f":"IF(ISERROR(Dados!K446),\"-\",Dados!K446)","v":""},{"$f":"IF(ISERROR(Dados!L446),\"-\",Dados!L446)","v":""},{"$f":"IF(ISERROR(Dados!M446),\"-\",Dados!M446)","v":""},{"$f":"IF(ISERROR(Dados!N446),\"-\",Dados!N446)","v":""},{"$f":"IF(ISERROR(Dados!O446),\"-\",Dados!O446)","v":""},{"$f":"IF(ISERROR(Dados!P446),\"-\",Dados!P446)","v":""},{"$f":"IF(ISERROR(Dados!Q446),\"-\",Dados!Q446)","v":""},{"$f":"IF(ISERROR(Dados!R446),\"-\",Dados!R446)","v":""},{"$f":"IF(ISERROR(Dados!S446),\"-\",Dados!S446)","v":""},{"$f":"IF(ISERROR(Dados!T446),\"-\",Dados!T446)","v":""},{"$f":"IF(ISERROR(Dados!U446),\"-\",Dados!U446)","v":""},{"$f":"IF(ISERROR(Dados!V446),\"-\",Dados!V446)","v":""},{"$f":"IF(ISERROR(Dados!W446),\"-\",Dados!W446)","v":""},{"$f":"IF(ISERROR(Dados!X446),\"-\",Dados!X446)","v":""},{"$f":"IF(ISERROR(Dados!Y446),\"-\",Dados!Y446)","v":""},{"$f":"IF(ISERROR(Dados!Z446),\"-\",Dados!Z446)","v":""},{"$f":"IF(ISERROR(Dados!AA446),\"-\",Dados!AA446)","v":""},{"$f":"IF(ISERROR(Dados!AB446),\"-\",Dados!AB446)","v":""},{"$f":"IF(ISERROR(Dados!AC446),\"-\",Dados!AC446)","v":""},{"$f":"IF(ISERROR(Dados!AD446),\"-\",Dados!AD446)","v":""},{"$f":"IF(ISERROR(Dados!AE446),\"-\",Dados!AE446)","v":""},{"$f":"IF(ISERROR(Dados!AF446),\"-\",Dados!AF446)","v":""},{"$f":"IF(ISERROR(Dados!AG446),\"-\",Dados!AG446)","v":""}]
[{"$f":"IF(ISERROR(Dados!A447),\"-\",Dados!A447)","v":""},{"$f":"IF(ISERROR(Dados!B447),\"-\",Dados!B447)","v":""},{"$f":"IF(ISERROR(Dados!C447),\"-\",Dados!C447)","v":""},{"$f":"IF(ISERROR(Dados!D447),\"-\",Dados!D447)","v":""},{"$f":"IF(ISERROR(Dados!E447),\"-\",Dados!E447)","v":""},{"$f":"IF(ISERROR(Dados!F447),\"-\",Dados!F447)","v":""},{"$f":"IF(ISERROR(Dados!G447),\"-\",Dados!G447)","v":""},{"$f":"IF(ISERROR(Dados!H447),\"-\",Dados!H447)","v":""},{"$f":"IF(ISERROR(Dados!I447),\"-\",Dados!I447)","v":""},{"$f":"IF(ISERROR(Dados!J447),\"-\",Dados!J447)","v":""},{"$f":"IF(ISERROR(Dados!K447),\"-\",Dados!K447)","v":""},{"$f":"IF(ISERROR(Dados!L447),\"-\",Dados!L447)","v":""},{"$f":"IF(ISERROR(Dados!M447),\"-\",Dados!M447)","v":""},{"$f":"IF(ISERROR(Dados!N447),\"-\",Dados!N447)","v":""},{"$f":"IF(ISERROR(Dados!O447),\"-\",Dados!O447)","v":""},{"$f":"IF(ISERROR(Dados!P447),\"-\",Dados!P447)","v":""},{"$f":"IF(ISERROR(Dados!Q447),\"-\",Dados!Q447)","v":""},{"$f":"IF(ISERROR(Dados!R447),\"-\",Dados!R447)","v":""},{"$f":"IF(ISERROR(Dados!S447),\"-\",Dados!S447)","v":""},{"$f":"IF(ISERROR(Dados!T447),\"-\",Dados!T447)","v":""},{"$f":"IF(ISERROR(Dados!U447),\"-\",Dados!U447)","v":""},{"$f":"IF(ISERROR(Dados!V447),\"-\",Dados!V447)","v":""},{"$f":"IF(ISERROR(Dados!W447),\"-\",Dados!W447)","v":""},{"$f":"IF(ISERROR(Dados!X447),\"-\",Dados!X447)","v":""},{"$f":"IF(ISERROR(Dados!Y447),\"-\",Dados!Y447)","v":""},{"$f":"IF(ISERROR(Dados!Z447),\"-\",Dados!Z447)","v":""},{"$f":"IF(ISERROR(Dados!AA447),\"-\",Dados!AA447)","v":""},{"$f":"IF(ISERROR(Dados!AB447),\"-\",Dados!AB447)","v":""},{"$f":"IF(ISERROR(Dados!AC447),\"-\",Dados!AC447)","v":""},{"$f":"IF(ISERROR(Dados!AD447),\"-\",Dados!AD447)","v":""},{"$f":"IF(ISERROR(Dados!AE447),\"-\",Dados!AE447)","v":""},{"$f":"IF(ISERROR(Dados!AF447),\"-\",Dados!AF447)","v":""},{"$f":"IF(ISERROR(Dados!AG447),\"-\",Dados!AG447)","v":""}]
[{"$f":"IF(ISERROR(Dados!A448),\"-\",Dados!A448)","v":""},{"$f":"IF(ISERROR(Dados!B448),\"-\",Dados!B448)","v":""},{"$f":"IF(ISERROR(Dados!C448),\"-\",Dados!C448)","v":""},{"$f":"IF(ISERROR(Dados!D448),\"-\",Dados!D448)","v":""},{"$f":"IF(ISERROR(Dados!E448),\"-\",Dados!E448)","v":""},{"$f":"IF(ISERROR(Dados!F448),\"-\",Dados!F448)","v":""},{"$f":"IF(ISERROR(Dados!G448),\"-\",Dados!G448)","v":""},{"$f":"IF(ISERROR(Dados!H448),\"-\",Dados!H448)","v":""},{"$f":"IF(ISERROR(Dados!I448),\"-\",Dados!I448)","v":""},{"$f":"IF(ISERROR(Dados!J448),\"-\",Dados!J448)","v":""},{"$f":"IF(ISERROR(Dados!K448),\"-\",Dados!K448)","v":""},{"$f":"IF(ISERROR(Dados!L448),\"-\",Dados!L448)","v":""},{"$f":"IF(ISERROR(Dados!M448),\"-\",Dados!M448)","v":""},{"$f":"IF(ISERROR(Dados!N448),\"-\",Dados!N448)","v":""},{"$f":"IF(ISERROR(Dados!O448),\"-\",Dados!O448)","v":""},{"$f":"IF(ISERROR(Dados!P448),\"-\",Dados!P448)","v":""},{"$f":"IF(ISERROR(Dados!Q448),\"-\",Dados!Q448)","v":""},{"$f":"IF(ISERROR(Dados!R448),\"-\",Dados!R448)","v":""},{"$f":"IF(ISERROR(Dados!S448),\"-\",Dados!S448)","v":""},{"$f":"IF(ISERROR(Dados!T448),\"-\",Dados!T448)","v":""},{"$f":"IF(ISERROR(Dados!U448),\"-\",Dados!U448)","v":""},{"$f":"IF(ISERROR(Dados!V448),\"-\",Dados!V448)","v":""},{"$f":"IF(ISERROR(Dados!W448),\"-\",Dados!W448)","v":""},{"$f":"IF(ISERROR(Dados!X448),\"-\",Dados!X448)","v":""},{"$f":"IF(ISERROR(Dados!Y448),\"-\",Dados!Y448)","v":""},{"$f":"IF(ISERROR(Dados!Z448),\"-\",Dados!Z448)","v":""},{"$f":"IF(ISERROR(Dados!AA448),\"-\",Dados!AA448)","v":""},{"$f":"IF(ISERROR(Dados!AB448),\"-\",Dados!AB448)","v":""},{"$f":"IF(ISERROR(Dados!AC448),\"-\",Dados!AC448)","v":""},{"$f":"IF(ISERROR(Dados!AD448),\"-\",Dados!AD448)","v":""},{"$f":"IF(ISERROR(Dados!AE448),\"-\",Dados!AE448)","v":""},{"$f":"IF(ISERROR(Dados!AF448),\"-\",Dados!AF448)","v":""},{"$f":"IF(ISERROR(Dados!AG448),\"-\",Dados!AG448)","v":""}]
[{"$f":"IF(ISERROR(Dados!A449),\"-\",Dados!A449)","v":""},{"$f":"IF(ISERROR(Dados!B449),\"-\",Dados!B449)","v":""},{"$f":"IF(ISERROR(Dados!C449),\"-\",Dados!C449)","v":""},{"$f":"IF(ISERROR(Dados!D449),\"-\",Dados!D449)","v":""},{"$f":"IF(ISERROR(Dados!E449),\"-\",Dados!E449)","v":""},{"$f":"IF(ISERROR(Dados!F449),\"-\",Dados!F449)","v":""},{"$f":"IF(ISERROR(Dados!G449),\"-\",Dados!G449)","v":""},{"$f":"IF(ISERROR(Dados!H449),\"-\",Dados!H449)","v":""},{"$f":"IF(ISERROR(Dados!I449),\"-\",Dados!I449)","v":""},{"$f":"IF(ISERROR(Dados!J449),\"-\",Dados!J449)","v":""},{"$f":"IF(ISERROR(Dados!K449),\"-\",Dados!K449)","v":""},{"$f":"IF(ISERROR(Dados!L449),\"-\",Dados!L449)","v":""},{"$f":"IF(ISERROR(Dados!M449),\"-\",Dados!M449)","v":""},{"$f":"IF(ISERROR(Dados!N449),\"-\",Dados!N449)","v":""},{"$f":"IF(ISERROR(Dados!O449),\"-\",Dados!O449)","v":""},{"$f":"IF(ISERROR(Dados!P449),\"-\",Dados!P449)","v":""},{"$f":"IF(ISERROR(Dados!Q449),\"-\",Dados!Q449)","v":""},{"$f":"IF(ISERROR(Dados!R449),\"-\",Dados!R449)","v":""},{"$f":"IF(ISERROR(Dados!S449),\"-\",Dados!S449)","v":""},{"$f":"IF(ISERROR(Dados!T449),\"-\",Dados!T449)","v":""},{"$f":"IF(ISERROR(Dados!U449),\"-\",Dados!U449)","v":""},{"$f":"IF(ISERROR(Dados!V449),\"-\",Dados!V449)","v":""},{"$f":"IF(ISERROR(Dados!W449),\"-\",Dados!W449)","v":""},{"$f":"IF(ISERROR(Dados!X449),\"-\",Dados!X449)","v":""},{"$f":"IF(ISERROR(Dados!Y449),\"-\",Dados!Y449)","v":""},{"$f":"IF(ISERROR(Dados!Z449),\"-\",Dados!Z449)","v":""},{"$f":"IF(ISERROR(Dados!AA449),\"-\",Dados!AA449)","v":""},{"$f":"IF(ISERROR(Dados!AB449),\"-\",Dados!AB449)","v":""},{"$f":"IF(ISERROR(Dados!AC449),\"-\",Dados!AC449)","v":""},{"$f":"IF(ISERROR(Dados!AD449),\"-\",Dados!AD449)","v":""},{"$f":"IF(ISERROR(Dados!AE449),\"-\",Dados!AE449)","v":""},{"$f":"IF(ISERROR(Dados!AF449),\"-\",Dados!AF449)","v":""},{"$f":"IF(ISERROR(Dados!AG449),\"-\",Dados!AG449)","v":""}]
[{"$f":"IF(ISERROR(Dados!A450),\"-\",Dados!A450)","v":""},{"$f":"IF(ISERROR(Dados!B450),\"-\",Dados!B450)","v":""},{"$f":"IF(ISERROR(Dados!C450),\"-\",Dados!C450)","v":""},{"$f":"IF(ISERROR(Dados!D450),\"-\",Dados!D450)","v":""},{"$f":"IF(ISERROR(Dados!E450),\"-\",Dados!E450)","v":""},{"$f":"IF(ISERROR(Dados!F450),\"-\",Dados!F450)","v":""},{"$f":"IF(ISERROR(Dados!G450),\"-\",Dados!G450)","v":""},{"$f":"IF(ISERROR(Dados!H450),\"-\",Dados!H450)","v":""},{"$f":"IF(ISERROR(Dados!I450),\"-\",Dados!I450)","v":""},{"$f":"IF(ISERROR(Dados!J450),\"-\",Dados!J450)","v":""},{"$f":"IF(ISERROR(Dados!K450),\"-\",Dados!K450)","v":""},{"$f":"IF(ISERROR(Dados!L450),\"-\",Dados!L450)","v":""},{"$f":"IF(ISERROR(Dados!M450),\"-\",Dados!M450)","v":""},{"$f":"IF(ISERROR(Dados!N450),\"-\",Dados!N450)","v":""},{"$f":"IF(ISERROR(Dados!O450),\"-\",Dados!O450)","v":""},{"$f":"IF(ISERROR(Dados!P450),\"-\",Dados!P450)","v":""},{"$f":"IF(ISERROR(Dados!Q450),\"-\",Dados!Q450)","v":""},{"$f":"IF(ISERROR(Dados!R450),\"-\",Dados!R450)","v":""},{"$f":"IF(ISERROR(Dados!S450),\"-\",Dados!S450)","v":""},{"$f":"IF(ISERROR(Dados!T450),\"-\",Dados!T450)","v":""},{"$f":"IF(ISERROR(Dados!U450),\"-\",Dados!U450)","v":""},{"$f":"IF(ISERROR(Dados!V450),\"-\",Dados!V450)","v":""},{"$f":"IF(ISERROR(Dados!W450),\"-\",Dados!W450)","v":""},{"$f":"IF(ISERROR(Dados!X450),\"-\",Dados!X450)","v":""},{"$f":"IF(ISERROR(Dados!Y450),\"-\",Dados!Y450)","v":""},{"$f":"IF(ISERROR(Dados!Z450),\"-\",Dados!Z450)","v":""},{"$f":"IF(ISERROR(Dados!AA450),\"-\",Dados!AA450)","v":""},{"$f":"IF(ISERROR(Dados!AB450),\"-\",Dados!AB450)","v":""},{"$f":"IF(ISERROR(Dados!AC450),\"-\",Dados!AC450)","v":""},{"$f":"IF(ISERROR(Dados!AD450),\"-\",Dados!AD450)","v":""},{"$f":"IF(ISERROR(Dados!AE450),\"-\",Dados!AE450)","v":""},{"$f":"IF(ISERROR(Dados!AF450),\"-\",Dados!AF450)","v":""},{"$f":"IF(ISERROR(Dados!AG450),\"-\",Dados!AG450)","v":""}]
[{"$f":"IF(ISERROR(Dados!A451),\"-\",Dados!A451)","v":""},{"$f":"IF(ISERROR(Dados!B451),\"-\",Dados!B451)","v":""},{"$f":"IF(ISERROR(Dados!C451),\"-\",Dados!C451)","v":""},{"$f":"IF(ISERROR(Dados!D451),\"-\",Dados!D451)","v":""},{"$f":"IF(ISERROR(Dados!E451),\"-\",Dados!E451)","v":""},{"$f":"IF(ISERROR(Dados!F451),\"-\",Dados!F451)","v":""},{"$f":"IF(ISERROR(Dados!G451),\"-\",Dados!G451)","v":""},{"$f":"IF(ISERROR(Dados!H451),\"-\",Dados!H451)","v":""},{"$f":"IF(ISERROR(Dados!I451),\"-\",Dados!I451)","v":""},{"$f":"IF(ISERROR(Dados!J451),\"-\",Dados!J451)","v":""},{"$f":"IF(ISERROR(Dados!K451),\"-\",Dados!K451)","v":""},{"$f":"IF(ISERROR(Dados!L451),\"-\",Dados!L451)","v":""},{"$f":"IF(ISERROR(Dados!M451),\"-\",Dados!M451)","v":""},{"$f":"IF(ISERROR(Dados!N451),\"-\",Dados!N451)","v":""},{"$f":"IF(ISERROR(Dados!O451),\"-\",Dados!O451)","v":""},{"$f":"IF(ISERROR(Dados!P451),\"-\",Dados!P451)","v":""},{"$f":"IF(ISERROR(Dados!Q451),\"-\",Dados!Q451)","v":""},{"$f":"IF(ISERROR(Dados!R451),\"-\",Dados!R451)","v":""},{"$f":"IF(ISERROR(Dados!S451),\"-\",Dados!S451)","v":""},{"$f":"IF(ISERROR(Dados!T451),\"-\",Dados!T451)","v":""},{"$f":"IF(ISERROR(Dados!U451),\"-\",Dados!U451)","v":""},{"$f":"IF(ISERROR(Dados!V451),\"-\",Dados!V451)","v":""},{"$f":"IF(ISERROR(Dados!W451),\"-\",Dados!W451)","v":""},{"$f":"IF(ISERROR(Dados!X451),\"-\",Dados!X451)","v":""},{"$f":"IF(ISERROR(Dados!Y451),\"-\",Dados!Y451)","v":""},{"$f":"IF(ISERROR(Dados!Z451),\"-\",Dados!Z451)","v":""},{"$f":"IF(ISERROR(Dados!AA451),\"-\",Dados!AA451)","v":""},{"$f":"IF(ISERROR(Dados!AB451),\"-\",Dados!AB451)","v":""},{"$f":"IF(ISERROR(Dados!AC451),\"-\",Dados!AC451)","v":""},{"$f":"IF(ISERROR(Dados!AD451),\"-\",Dados!AD451)","v":""},{"$f":"IF(ISERROR(Dados!AE451),\"-\",Dados!AE451)","v":""},{"$f":"IF(ISERROR(Dados!AF451),\"-\",Dados!AF451)","v":""},{"$f":"IF(ISERROR(Dados!AG451),\"-\",Dados!AG451)","v":""}]
[{"$f":"IF(ISERROR(Dados!A452),\"-\",Dados!A452)","v":""},{"$f":"IF(ISERROR(Dados!B452),\"-\",Dados!B452)","v":""},{"$f":"IF(ISERROR(Dados!C452),\"-\",Dados!C452)","v":""},{"$f":"IF(ISERROR(Dados!D452),\"-\",Dados!D452)","v":""},{"$f":"IF(ISERROR(Dados!E452),\"-\",Dados!E452)","v":""},{"$f":"IF(ISERROR(Dados!F452),\"-\",Dados!F452)","v":""},{"$f":"IF(ISERROR(Dados!G452),\"-\",Dados!G452)","v":""},{"$f":"IF(ISERROR(Dados!H452),\"-\",Dados!H452)","v":""},{"$f":"IF(ISERROR(Dados!I452),\"-\",Dados!I452)","v":""},{"$f":"IF(ISERROR(Dados!J452),\"-\",Dados!J452)","v":""},{"$f":"IF(ISERROR(Dados!K452),\"-\",Dados!K452)","v":""},{"$f":"IF(ISERROR(Dados!L452),\"-\",Dados!L452)","v":""},{"$f":"IF(ISERROR(Dados!M452),\"-\",Dados!M452)","v":""},{"$f":"IF(ISERROR(Dados!N452),\"-\",Dados!N452)","v":""},{"$f":"IF(ISERROR(Dados!O452),\"-\",Dados!O452)","v":""},{"$f":"IF(ISERROR(Dados!P452),\"-\",Dados!P452)","v":""},{"$f":"IF(ISERROR(Dados!Q452),\"-\",Dados!Q452)","v":""},{"$f":"IF(ISERROR(Dados!R452),\"-\",Dados!R452)","v":""},{"$f":"IF(ISERROR(Dados!S452),\"-\",Dados!S452)","v":""},{"$f":"IF(ISERROR(Dados!T452),\"-\",Dados!T452)","v":""},{"$f":"IF(ISERROR(Dados!U452),\"-\",Dados!U452)","v":""},{"$f":"IF(ISERROR(Dados!V452),\"-\",Dados!V452)","v":""},{"$f":"IF(ISERROR(Dados!W452),\"-\",Dados!W452)","v":""},{"$f":"IF(ISERROR(Dados!X452),\"-\",Dados!X452)","v":""},{"$f":"IF(ISERROR(Dados!Y452),\"-\",Dados!Y452)","v":""},{"$f":"IF(ISERROR(Dados!Z452),\"-\",Dados!Z452)","v":""},{"$f":"IF(ISERROR(Dados!AA452),\"-\",Dados!AA452)","v":""},{"$f":"IF(ISERROR(Dados!AB452),\"-\",Dados!AB452)","v":""},{"$f":"IF(ISERROR(Dados!AC452),\"-\",Dados!AC452)","v":""},{"$f":"IF(ISERROR(Dados!AD452),\"-\",Dados!AD452)","v":""},{"$f":"IF(ISERROR(Dados!AE452),\"-\",Dados!AE452)","v":""},{"$f":"IF(ISERROR(Dados!AF452),\"-\",Dados!AF452)","v":""},{"$f":"IF(ISERROR(Dados!AG452),\"-\",Dados!AG452)","v":""}]
[{"$f":"IF(ISERROR(Dados!A453),\"-\",Dados!A453)","v":""},{"$f":"IF(ISERROR(Dados!B453),\"-\",Dados!B453)","v":""},{"$f":"IF(ISERROR(Dados!C453),\"-\",Dados!C453)","v":""},{"$f":"IF(ISERROR(Dados!D453),\"-\",Dados!D453)","v":""},{"$f":"IF(ISERROR(Dados!E453),\"-\",Dados!E453)","v":""},{"$f":"IF(ISERROR(Dados!F453),\"-\",Dados!F453)","v":""},{"$f":"IF(ISERROR(Dados!G453),\"-\",Dados!G453)","v":""},{"$f":"IF(ISERROR(Dados!H453),\"-\",Dados!H453)","v":""},{"$f":"IF(ISERROR(Dados!I453),\"-\",Dados!I453)","v":""},{"$f":"IF(ISERROR(Dados!J453),\"-\",Dados!J453)","v":""},{"$f":"IF(ISERROR(Dados!K453),\"-\",Dados!K453)","v":""},{"$f":"IF(ISERROR(Dados!L453),\"-\",Dados!L453)","v":""},{"$f":"IF(ISERROR(Dados!M453),\"-\",Dados!M453)","v":""},{"$f":"IF(ISERROR(Dados!N453),\"-\",Dados!N453)","v":""},{"$f":"IF(ISERROR(Dados!O453),\"-\",Dados!O453)","v":""},{"$f":"IF(ISERROR(Dados!P453),\"-\",Dados!P453)","v":""},{"$f":"IF(ISERROR(Dados!Q453),\"-\",Dados!Q453)","v":""},{"$f":"IF(ISERROR(Dados!R453),\"-\",Dados!R453)","v":""},{"$f":"IF(ISERROR(Dados!S453),\"-\",Dados!S453)","v":""},{"$f":"IF(ISERROR(Dados!T453),\"-\",Dados!T453)","v":""},{"$f":"IF(ISERROR(Dados!U453),\"-\",Dados!U453)","v":""},{"$f":"IF(ISERROR(Dados!V453),\"-\",Dados!V453)","v":""},{"$f":"IF(ISERROR(Dados!W453),\"-\",Dados!W453)","v":""},{"$f":"IF(ISERROR(Dados!X453),\"-\",Dados!X453)","v":""},{"$f":"IF(ISERROR(Dados!Y453),\"-\",Dados!Y453)","v":""},{"$f":"IF(ISERROR(Dados!Z453),\"-\",Dados!Z453)","v":""},{"$f":"IF(ISERROR(Dados!AA453),\"-\",Dados!AA453)","v":""},{"$f":"IF(ISERROR(Dados!AB453),\"-\",Dados!AB453)","v":""},{"$f":"IF(ISERROR(Dados!AC453),\"-\",Dados!AC453)","v":""},{"$f":"IF(ISERROR(Dados!AD453),\"-\",Dados!AD453)","v":""},{"$f":"IF(ISERROR(Dados!AE453),\"-\",Dados!AE453)","v":""},{"$f":"IF(ISERROR(Dados!AF453),\"-\",Dados!AF453)","v":""},{"$f":"IF(ISERROR(Dados!AG453),\"-\",Dados!AG453)","v":""}]
[{"$f":"IF(ISERROR(Dados!A454),\"-\",Dados!A454)","v":""},{"$f":"IF(ISERROR(Dados!B454),\"-\",Dados!B454)","v":""},{"$f":"IF(ISERROR(Dados!C454),\"-\",Dados!C454)","v":""},{"$f":"IF(ISERROR(Dados!D454),\"-\",Dados!D454)","v":""},{"$f":"IF(ISERROR(Dados!E454),\"-\",Dados!E454)","v":""},{"$f":"IF(ISERROR(Dados!F454),\"-\",Dados!F454)","v":""},{"$f":"IF(ISERROR(Dados!G454),\"-\",Dados!G454)","v":""},{"$f":"IF(ISERROR(Dados!H454),\"-\",Dados!H454)","v":""},{"$f":"IF(ISERROR(Dados!I454),\"-\",Dados!I454)","v":""},{"$f":"IF(ISERROR(Dados!J454),\"-\",Dados!J454)","v":""},{"$f":"IF(ISERROR(Dados!K454),\"-\",Dados!K454)","v":""},{"$f":"IF(ISERROR(Dados!L454),\"-\",Dados!L454)","v":""},{"$f":"IF(ISERROR(Dados!M454),\"-\",Dados!M454)","v":""},{"$f":"IF(ISERROR(Dados!N454),\"-\",Dados!N454)","v":""},{"$f":"IF(ISERROR(Dados!O454),\"-\",Dados!O454)","v":""},{"$f":"IF(ISERROR(Dados!P454),\"-\",Dados!P454)","v":""},{"$f":"IF(ISERROR(Dados!Q454),\"-\",Dados!Q454)","v":""},{"$f":"IF(ISERROR(Dados!R454),\"-\",Dados!R454)","v":""},{"$f":"IF(ISERROR(Dados!S454),\"-\",Dados!S454)","v":""},{"$f":"IF(ISERROR(Dados!T454),\"-\",Dados!T454)","v":""},{"$f":"IF(ISERROR(Dados!U454),\"-\",Dados!U454)","v":""},{"$f":"IF(ISERROR(Dados!V454),\"-\",Dados!V454)","v":""},{"$f":"IF(ISERROR(Dados!W454),\"-\",Dados!W454)","v":""},{"$f":"IF(ISERROR(Dados!X454),\"-\",Dados!X454)","v":""},{"$f":"IF(ISERROR(Dados!Y454),\"-\",Dados!Y454)","v":""},{"$f":"IF(ISERROR(Dados!Z454),\"-\",Dados!Z454)","v":""},{"$f":"IF(ISERROR(Dados!AA454),\"-\",Dados!AA454)","v":""},{"$f":"IF(ISERROR(Dados!AB454),\"-\",Dados!AB454)","v":""},{"$f":"IF(ISERROR(Dados!AC454),\"-\",Dados!AC454)","v":""},{"$f":"IF(ISERROR(Dados!AD454),\"-\",Dados!AD454)","v":""},{"$f":"IF(ISERROR(Dados!AE454),\"-\",Dados!AE454)","v":""},{"$f":"IF(ISERROR(Dados!AF454),\"-\",Dados!AF454)","v":""},{"$f":"IF(ISERROR(Dados!AG454),\"-\",Dados!AG454)","v":""}]
[{"$f":"IF(ISERROR(Dados!A455),\"-\",Dados!A455)","v":""},{"$f":"IF(ISERROR(Dados!B455),\"-\",Dados!B455)","v":""},{"$f":"IF(ISERROR(Dados!C455),\"-\",Dados!C455)","v":""},{"$f":"IF(ISERROR(Dados!D455),\"-\",Dados!D455)","v":""},{"$f":"IF(ISERROR(Dados!E455),\"-\",Dados!E455)","v":""},{"$f":"IF(ISERROR(Dados!F455),\"-\",Dados!F455)","v":""},{"$f":"IF(ISERROR(Dados!G455),\"-\",Dados!G455)","v":""},{"$f":"IF(ISERROR(Dados!H455),\"-\",Dados!H455)","v":""},{"$f":"IF(ISERROR(Dados!I455),\"-\",Dados!I455)","v":""},{"$f":"IF(ISERROR(Dados!J455),\"-\",Dados!J455)","v":""},{"$f":"IF(ISERROR(Dados!K455),\"-\",Dados!K455)","v":""},{"$f":"IF(ISERROR(Dados!L455),\"-\",Dados!L455)","v":""},{"$f":"IF(ISERROR(Dados!M455),\"-\",Dados!M455)","v":""},{"$f":"IF(ISERROR(Dados!N455),\"-\",Dados!N455)","v":""},{"$f":"IF(ISERROR(Dados!O455),\"-\",Dados!O455)","v":""},{"$f":"IF(ISERROR(Dados!P455),\"-\",Dados!P455)","v":""},{"$f":"IF(ISERROR(Dados!Q455),\"-\",Dados!Q455)","v":""},{"$f":"IF(ISERROR(Dados!R455),\"-\",Dados!R455)","v":""},{"$f":"IF(ISERROR(Dados!S455),\"-\",Dados!S455)","v":""},{"$f":"IF(ISERROR(Dados!T455),\"-\",Dados!T455)","v":""},{"$f":"IF(ISERROR(Dados!U455),\"-\",Dados!U455)","v":""},{"$f":"IF(ISERROR(Dados!V455),\"-\",Dados!V455)","v":""},{"$f":"IF(ISERROR(Dados!W455),\"-\",Dados!W455)","v":""},{"$f":"IF(ISERROR(Dados!X455),\"-\",Dados!X455)","v":""},{"$f":"IF(ISERROR(Dados!Y455),\"-\",Dados!Y455)","v":""},{"$f":"IF(ISERROR(Dados!Z455),\"-\",Dados!Z455)","v":""},{"$f":"IF(ISERROR(Dados!AA455),\"-\",Dados!AA455)","v":""},{"$f":"IF(ISERROR(Dados!AB455),\"-\",Dados!AB455)","v":""},{"$f":"IF(ISERROR(Dados!AC455),\"-\",Dados!AC455)","v":""},{"$f":"IF(ISERROR(Dados!AD455),\"-\",Dados!AD455)","v":""},{"$f":"IF(ISERROR(Dados!AE455),\"-\",Dados!AE455)","v":""},{"$f":"IF(ISERROR(Dados!AF455),\"-\",Dados!AF455)","v":""},{"$f":"IF(ISERROR(Dados!AG455),\"-\",Dados!AG455)","v":""}]
[{"$f":"IF(ISERROR(Dados!A456),\"-\",Dados!A456)","v":""},{"$f":"IF(ISERROR(Dados!B456),\"-\",Dados!B456)","v":""},{"$f":"IF(ISERROR(Dados!C456),\"-\",Dados!C456)","v":""},{"$f":"IF(ISERROR(Dados!D456),\"-\",Dados!D456)","v":""},{"$f":"IF(ISERROR(Dados!E456),\"-\",Dados!E456)","v":""},{"$f":"IF(ISERROR(Dados!F456),\"-\",Dados!F456)","v":""},{"$f":"IF(ISERROR(Dados!G456),\"-\",Dados!G456)","v":""},{"$f":"IF(ISERROR(Dados!H456),\"-\",Dados!H456)","v":""},{"$f":"IF(ISERROR(Dados!I456),\"-\",Dados!I456)","v":""},{"$f":"IF(ISERROR(Dados!J456),\"-\",Dados!J456)","v":""},{"$f":"IF(ISERROR(Dados!K456),\"-\",Dados!K456)","v":""},{"$f":"IF(ISERROR(Dados!L456),\"-\",Dados!L456)","v":""},{"$f":"IF(ISERROR(Dados!M456),\"-\",Dados!M456)","v":""},{"$f":"IF(ISERROR(Dados!N456),\"-\",Dados!N456)","v":""},{"$f":"IF(ISERROR(Dados!O456),\"-\",Dados!O456)","v":""},{"$f":"IF(ISERROR(Dados!P456),\"-\",Dados!P456)","v":""},{"$f":"IF(ISERROR(Dados!Q456),\"-\",Dados!Q456)","v":""},{"$f":"IF(ISERROR(Dados!R456),\"-\",Dados!R456)","v":""},{"$f":"IF(ISERROR(Dados!S456),\"-\",Dados!S456)","v":""},{"$f":"IF(ISERROR(Dados!T456),\"-\",Dados!T456)","v":""},{"$f":"IF(ISERROR(Dados!U456),\"-\",Dados!U456)","v":""},{"$f":"IF(ISERROR(Dados!V456),\"-\",Dados!V456)","v":""},{"$f":"IF(ISERROR(Dados!W456),\"-\",Dados!W456)","v":""},{"$f":"IF(ISERROR(Dados!X456),\"-\",Dados!X456)","v":""},{"$f":"IF(ISERROR(Dados!Y456),\"-\",Dados!Y456)","v":""},{"$f":"IF(ISERROR(Dados!Z456),\"-\",Dados!Z456)","v":""},{"$f":"IF(ISERROR(Dados!AA456),\"-\",Dados!AA456)","v":""},{"$f":"IF(ISERROR(Dados!AB456),\"-\",Dados!AB456)","v":""},{"$f":"IF(ISERROR(Dados!AC456),\"-\",Dados!AC456)","v":""},{"$f":"IF(ISERROR(Dados!AD456),\"-\",Dados!AD456)","v":""},{"$f":"IF(ISERROR(Dados!AE456),\"-\",Dados!AE456)","v":""},{"$f":"IF(ISERROR(Dados!AF456),\"-\",Dados!AF456)","v":""},{"$f":"IF(ISERROR(Dados!AG456),\"-\",Dados!AG456)","v":""}]
[{"$f":"IF(ISERROR(Dados!A457),\"-\",Dados!A457)","v":""},{"$f":"IF(ISERROR(Dados!B457),\"-\",Dados!B457)","v":""},{"$f":"IF(ISERROR(Dados!C457),\"-\",Dados!C457)","v":""},{"$f":"IF(ISERROR(Dados!D457),\"-\",Dados!D457)","v":""},{"$f":"IF(ISERROR(Dados!E457),\"-\",Dados!E457)","v":""},{"$f":"IF(ISERROR(Dados!F457),\"-\",Dados!F457)","v":""},{"$f":"IF(ISERROR(Dados!G457),\"-\",Dados!G457)","v":""},{"$f":"IF(ISERROR(Dados!H457),\"-\",Dados!H457)","v":""},{"$f":"IF(ISERROR(Dados!I457),\"-\",Dados!I457)","v":""},{"$f":"IF(ISERROR(Dados!J457),\"-\",Dados!J457)","v":""},{"$f":"IF(ISERROR(Dados!K457),\"-\",Dados!K457)","v":""},{"$f":"IF(ISERROR(Dados!L457),\"-\",Dados!L457)","v":""},{"$f":"IF(ISERROR(Dados!M457),\"-\",Dados!M457)","v":""},{"$f":"IF(ISERROR(Dados!N457),\"-\",Dados!N457)","v":""},{"$f":"IF(ISERROR(Dados!O457),\"-\",Dados!O457)","v":""},{"$f":"IF(ISERROR(Dados!P457),\"-\",Dados!P457)","v":""},{"$f":"IF(ISERROR(Dados!Q457),\"-\",Dados!Q457)","v":""},{"$f":"IF(ISERROR(Dados!R457),\"-\",Dados!R457)","v":""},{"$f":"IF(ISERROR(Dados!S457),\"-\",Dados!S457)","v":""},{"$f":"IF(ISERROR(Dados!T457),\"-\",Dados!T457)","v":""},{"$f":"IF(ISERROR(Dados!U457),\"-\",Dados!U457)","v":""},{"$f":"IF(ISERROR(Dados!V457),\"-\",Dados!V457)","v":""},{"$f":"IF(ISERROR(Dados!W457),\"-\",Dados!W457)","v":""},{"$f":"IF(ISERROR(Dados!X457),\"-\",Dados!X457)","v":""},{"$f":"IF(ISERROR(Dados!Y457),\"-\",Dados!Y457)","v":""},{"$f":"IF(ISERROR(Dados!Z457),\"-\",Dados!Z457)","v":""},{"$f":"IF(ISERROR(Dados!AA457),\"-\",Dados!AA457)","v":""},{"$f":"IF(ISERROR(Dados!AB457),\"-\",Dados!AB457)","v":""},{"$f":"IF(ISERROR(Dados!AC457),\"-\",Dados!AC457)","v":""},{"$f":"IF(ISERROR(Dados!AD457),\"-\",Dados!AD457)","v":""},{"$f":"IF(ISERROR(Dados!AE457),\"-\",Dados!AE457)","v":""},{"$f":"IF(ISERROR(Dados!AF457),\"-\",Dados!AF457)","v":""},{"$f":"IF(ISERROR(Dados!AG457),\"-\",Dados!AG457)","v":""}]
[{"$f":"IF(ISERROR(Dados!A458),\"-\",Dados!A458)","v":""},{"$f":"IF(ISERROR(Dados!B458),\"-\",Dados!B458)","v":""},{"$f":"IF(ISERROR(Dados!C458),\"-\",Dados!C458)","v":""},{"$f":"IF(ISERROR(Dados!D458),\"-\",Dados!D458)","v":""},{"$f":"IF(ISERROR(Dados!E458),\"-\",Dados!E458)","v":""},{"$f":"IF(ISERROR(Dados!F458),\"-\",Dados!F458)","v":""},{"$f":"IF(ISERROR(Dados!G458),\"-\",Dados!G458)","v":""},{"$f":"IF(ISERROR(Dados!H458),\"-\",Dados!H458)","v":""},{"$f":"IF(ISERROR(Dados!I458),\"-\",Dados!I458)","v":""},{"$f":"IF(ISERROR(Dados!J458),\"-\",Dados!J458)","v":""},{"$f":"IF(ISERROR(Dados!K458),\"-\",Dados!K458)","v":""},{"$f":"IF(ISERROR(Dados!L458),\"-\",Dados!L458)","v":""},{"$f":"IF(ISERROR(Dados!M458),\"-\",Dados!M458)","v":""},{"$f":"IF(ISERROR(Dados!N458),\"-\",Dados!N458)","v":""},{"$f":"IF(ISERROR(Dados!O458),\"-\",Dados!O458)","v":""},{"$f":"IF(ISERROR(Dados!P458),\"-\",Dados!P458)","v":""},{"$f":"IF(ISERROR(Dados!Q458),\"-\",Dados!Q458)","v":""},{"$f":"IF(ISERROR(Dados!R458),\"-\",Dados!R458)","v":""},{"$f":"IF(ISERROR(Dados!S458),\"-\",Dados!S458)","v":""},{"$f":"IF(ISERROR(Dados!T458),\"-\",Dados!T458)","v":""},{"$f":"IF(ISERROR(Dados!U458),\"-\",Dados!U458)","v":""},{"$f":"IF(ISERROR(Dados!V458),\"-\",Dados!V458)","v":""},{"$f":"IF(ISERROR(Dados!W458),\"-\",Dados!W458)","v":""},{"$f":"IF(ISERROR(Dados!X458),\"-\",Dados!X458)","v":""},{"$f":"IF(ISERROR(Dados!Y458),\"-\",Dados!Y458)","v":""},{"$f":"IF(ISERROR(Dados!Z458),\"-\",Dados!Z458)","v":""},{"$f":"IF(ISERROR(Dados!AA458),\"-\",Dados!AA458)","v":""},{"$f":"IF(ISERROR(Dados!AB458),\"-\",Dados!AB458)","v":""},{"$f":"IF(ISERROR(Dados!AC458),\"-\",Dados!AC458)","v":""},{"$f":"IF(ISERROR(Dados!AD458),\"-\",Dados!AD458)","v":""},{"$f":"IF(ISERROR(Dados!AE458),\"-\",Dados!AE458)","v":""},{"$f":"IF(ISERROR(Dados!AF458),\"-\",Dados!AF458)","v":""},{"$f":"IF(ISERROR(Dados!AG458),\"-\",Dados!AG458)","v":""}]
[{"$f":"IF(ISERROR(Dados!A459),\"-\",Dados!A459)","v":""},{"$f":"IF(ISERROR(Dados!B459),\"-\",Dados!B459)","v":""},{"$f":"IF(ISERROR(Dados!C459),\"-\",Dados!C459)","v":""},{"$f":"IF(ISERROR(Dados!D459),\"-\",Dados!D459)","v":""},{"$f":"IF(ISERROR(Dados!E459),\"-\",Dados!E459)","v":""},{"$f":"IF(ISERROR(Dados!F459),\"-\",Dados!F459)","v":""},{"$f":"IF(ISERROR(Dados!G459),\"-\",Dados!G459)","v":""},{"$f":"IF(ISERROR(Dados!H459),\"-\",Dados!H459)","v":""},{"$f":"IF(ISERROR(Dados!I459),\"-\",Dados!I459)","v":""},{"$f":"IF(ISERROR(Dados!J459),\"-\",Dados!J459)","v":""},{"$f":"IF(ISERROR(Dados!K459),\"-\",Dados!K459)","v":""},{"$f":"IF(ISERROR(Dados!L459),\"-\",Dados!L459)","v":""},{"$f":"IF(ISERROR(Dados!M459),\"-\",Dados!M459)","v":""},{"$f":"IF(ISERROR(Dados!N459),\"-\",Dados!N459)","v":""},{"$f":"IF(ISERROR(Dados!O459),\"-\",Dados!O459)","v":""},{"$f":"IF(ISERROR(Dados!P459),\"-\",Dados!P459)","v":""},{"$f":"IF(ISERROR(Dados!Q459),\"-\",Dados!Q459)","v":""},{"$f":"IF(ISERROR(Dados!R459),\"-\",Dados!R459)","v":""},{"$f":"IF(ISERROR(Dados!S459),\"-\",Dados!S459)","v":""},{"$f":"IF(ISERROR(Dados!T459),\"-\",Dados!T459)","v":""},{"$f":"IF(ISERROR(Dados!U459),\"-\",Dados!U459)","v":""},{"$f":"IF(ISERROR(Dados!V459),\"-\",Dados!V459)","v":""},{"$f":"IF(ISERROR(Dados!W459),\"-\",Dados!W459)","v":""},{"$f":"IF(ISERROR(Dados!X459),\"-\",Dados!X459)","v":""},{"$f":"IF(ISERROR(Dados!Y459),\"-\",Dados!Y459)","v":""},{"$f":"IF(ISERROR(Dados!Z459),\"-\",Dados!Z459)","v":""},{"$f":"IF(ISERROR(Dados!AA459),\"-\",Dados!AA459)","v":""},{"$f":"IF(ISERROR(Dados!AB459),\"-\",Dados!AB459)","v":""},{"$f":"IF(ISERROR(Dados!AC459),\"-\",Dados!AC459)","v":""},{"$f":"IF(ISERROR(Dados!AD459),\"-\",Dados!AD459)","v":""},{"$f":"IF(ISERROR(Dados!AE459),\"-\",Dados!AE459)","v":""},{"$f":"IF(ISERROR(Dados!AF459),\"-\",Dados!AF459)","v":""},{"$f":"IF(ISERROR(Dados!AG459),\"-\",Dados!AG459)","v":""}]
[{"$f":"IF(ISERROR(Dados!A460),\"-\",Dados!A460)","v":""},{"$f":"IF(ISERROR(Dados!B460),\"-\",Dados!B460)","v":""},{"$f":"IF(ISERROR(Dados!C460),\"-\",Dados!C460)","v":""},{"$f":"IF(ISERROR(Dados!D460),\"-\",Dados!D460)","v":""},{"$f":"IF(ISERROR(Dados!E460),\"-\",Dados!E460)","v":""},{"$f":"IF(ISERROR(Dados!F460),\"-\",Dados!F460)","v":""},{"$f":"IF(ISERROR(Dados!G460),\"-\",Dados!G460)","v":""},{"$f":"IF(ISERROR(Dados!H460),\"-\",Dados!H460)","v":""},{"$f":"IF(ISERROR(Dados!I460),\"-\",Dados!I460)","v":""},{"$f":"IF(ISERROR(Dados!J460),\"-\",Dados!J460)","v":""},{"$f":"IF(ISERROR(Dados!K460),\"-\",Dados!K460)","v":""},{"$f":"IF(ISERROR(Dados!L460),\"-\",Dados!L460)","v":""},{"$f":"IF(ISERROR(Dados!M460),\"-\",Dados!M460)","v":""},{"$f":"IF(ISERROR(Dados!N460),\"-\",Dados!N460)","v":""},{"$f":"IF(ISERROR(Dados!O460),\"-\",Dados!O460)","v":""},{"$f":"IF(ISERROR(Dados!P460),\"-\",Dados!P460)","v":""},{"$f":"IF(ISERROR(Dados!Q460),\"-\",Dados!Q460)","v":""},{"$f":"IF(ISERROR(Dados!R460),\"-\",Dados!R460)","v":""},{"$f":"IF(ISERROR(Dados!S460),\"-\",Dados!S460)","v":""},{"$f":"IF(ISERROR(Dados!T460),\"-\",Dados!T460)","v":""},{"$f":"IF(ISERROR(Dados!U460),\"-\",Dados!U460)","v":""},{"$f":"IF(ISERROR(Dados!V460),\"-\",Dados!V460)","v":""},{"$f":"IF(ISERROR(Dados!W460),\"-\",Dados!W460)","v":""},{"$f":"IF(ISERROR(Dados!X460),\"-\",Dados!X460)","v":""},{"$f":"IF(ISERROR(Dados!Y460),\"-\",Dados!Y460)","v":""},{"$f":"IF(ISERROR(Dados!Z460),\"-\",Dados!Z460)","v":""},{"$f":"IF(ISERROR(Dados!AA460),\"-\",Dados!AA460)","v":""},{"$f":"IF(ISERROR(Dados!AB460),\"-\",Dados!AB460)","v":""},{"$f":"IF(ISERROR(Dados!AC460),\"-\",Dados!AC460)","v":""},{"$f":"IF(ISERROR(Dados!AD460),\"-\",Dados!AD460)","v":""},{"$f":"IF(ISERROR(Dados!AE460),\"-\",Dados!AE460)","v":""},{"$f":"IF(ISERROR(Dados!AF460),\"-\",Dados!AF460)","v":""},{"$f":"IF(ISERROR(Dados!AG460),\"-\",Dados!AG460)","v":""}]
[{"$f":"IF(ISERROR(Dados!A461),\"-\",Dados!A461)","v":""},{"$f":"IF(ISERROR(Dados!B461),\"-\",Dados!B461)","v":""},{"$f":"IF(ISERROR(Dados!C461),\"-\",Dados!C461)","v":""},{"$f":"IF(ISERROR(Dados!D461),\"-\",Dados!D461)","v":""},{"$f":"IF(ISERROR(Dados!E461),\"-\",Dados!E461)","v":""},{"$f":"IF(ISERROR(Dados!F461),\"-\",Dados!F461)","v":""},{"$f":"IF(ISERROR(Dados!G461),\"-\",Dados!G461)","v":""},{"$f":"IF(ISERROR(Dados!H461),\"-\",Dados!H461)","v":""},{"$f":"IF(ISERROR(Dados!I461),\"-\",Dados!I461)","v":""},{"$f":"IF(ISERROR(Dados!J461),\"-\",Dados!J461)","v":""},{"$f":"IF(ISERROR(Dados!K461),\"-\",Dados!K461)","v":""},{"$f":"IF(ISERROR(Dados!L461),\"-\",Dados!L461)","v":""},{"$f":"IF(ISERROR(Dados!M461),\"-\",Dados!M461)","v":""},{"$f":"IF(ISERROR(Dados!N461),\"-\",Dados!N461)","v":""},{"$f":"IF(ISERROR(Dados!O461),\"-\",Dados!O461)","v":""},{"$f":"IF(ISERROR(Dados!P461),\"-\",Dados!P461)","v":""},{"$f":"IF(ISERROR(Dados!Q461),\"-\",Dados!Q461)","v":""},{"$f":"IF(ISERROR(Dados!R461),\"-\",Dados!R461)","v":""},{"$f":"IF(ISERROR(Dados!S461),\"-\",Dados!S461)","v":""},{"$f":"IF(ISERROR(Dados!T461),\"-\",Dados!T461)","v":""},{"$f":"IF(ISERROR(Dados!U461),\"-\",Dados!U461)","v":""},{"$f":"IF(ISERROR(Dados!V461),\"-\",Dados!V461)","v":""},{"$f":"IF(ISERROR(Dados!W461),\"-\",Dados!W461)","v":""},{"$f":"IF(ISERROR(Dados!X461),\"-\",Dados!X461)","v":""},{"$f":"IF(ISERROR(Dados!Y461),\"-\",Dados!Y461)","v":""},{"$f":"IF(ISERROR(Dados!Z461),\"-\",Dados!Z461)","v":""},{"$f":"IF(ISERROR(Dados!AA461),\"-\",Dados!AA461)","v":""},{"$f":"IF(ISERROR(Dados!AB461),\"-\",Dados!AB461)","v":""},{"$f":"IF(ISERROR(Dados!AC461),\"-\",Dados!AC461)","v":""},{"$f":"IF(ISERROR(Dados!AD461),\"-\",Dados!AD461)","v":""},{"$f":"IF(ISERROR(Dados!AE461),\"-\",Dados!AE461)","v":""},{"$f":"IF(ISERROR(Dados!AF461),\"-\",Dados!AF461)","v":""},{"$f":"IF(ISERROR(Dados!AG461),\"-\",Dados!AG461)","v":""}]
[{"$f":"IF(ISERROR(Dados!A462),\"-\",Dados!A462)","v":""},{"$f":"IF(ISERROR(Dados!B462),\"-\",Dados!B462)","v":""},{"$f":"IF(ISERROR(Dados!C462),\"-\",Dados!C462)","v":""},{"$f":"IF(ISERROR(Dados!D462),\"-\",Dados!D462)","v":""},{"$f":"IF(ISERROR(Dados!E462),\"-\",Dados!E462)","v":""},{"$f":"IF(ISERROR(Dados!F462),\"-\",Dados!F462)","v":""},{"$f":"IF(ISERROR(Dados!G462),\"-\",Dados!G462)","v":""},{"$f":"IF(ISERROR(Dados!H462),\"-\",Dados!H462)","v":""},{"$f":"IF(ISERROR(Dados!I462),\"-\",Dados!I462)","v":""},{"$f":"IF(ISERROR(Dados!J462),\"-\",Dados!J462)","v":""},{"$f":"IF(ISERROR(Dados!K462),\"-\",Dados!K462)","v":""},{"$f":"IF(ISERROR(Dados!L462),\"-\",Dados!L462)","v":""},{"$f":"IF(ISERROR(Dados!M462),\"-\",Dados!M462)","v":""},{"$f":"IF(ISERROR(Dados!N462),\"-\",Dados!N462)","v":""},{"$f":"IF(ISERROR(Dados!O462),\"-\",Dados!O462)","v":""},{"$f":"IF(ISERROR(Dados!P462),\"-\",Dados!P462)","v":""},{"$f":"IF(ISERROR(Dados!Q462),\"-\",Dados!Q462)","v":""},{"$f":"IF(ISERROR(Dados!R462),\"-\",Dados!R462)","v":""},{"$f":"IF(ISERROR(Dados!S462),\"-\",Dados!S462)","v":""},{"$f":"IF(ISERROR(Dados!T462),\"-\",Dados!T462)","v":""},{"$f":"IF(ISERROR(Dados!U462),\"-\",Dados!U462)","v":""},{"$f":"IF(ISERROR(Dados!V462),\"-\",Dados!V462)","v":""},{"$f":"IF(ISERROR(Dados!W462),\"-\",Dados!W462)","v":""},{"$f":"IF(ISERROR(Dados!X462),\"-\",Dados!X462)","v":""},{"$f":"IF(ISERROR(Dados!Y462),\"-\",Dados!Y462)","v":""},{"$f":"IF(ISERROR(Dados!Z462),\"-\",Dados!Z462)","v":""},{"$f":"IF(ISERROR(Dados!AA462),\"-\",Dados!AA462)","v":""},{"$f":"IF(ISERROR(Dados!AB462),\"-\",Dados!AB462)","v":""},{"$f":"IF(ISERROR(Dados!AC462),\"-\",Dados!AC462)","v":""},{"$f":"IF(ISERROR(Dados!AD462),\"-\",Dados!AD462)","v":""},{"$f":"IF(ISERROR(Dados!AE462),\"-\",Dados!AE462)","v":""},{"$f":"IF(ISERROR(Dados!AF462),\"-\",Dados!AF462)","v":""},{"$f":"IF(ISERROR(Dados!AG462),\"-\",Dados!AG462)","v":""}]
[{"$f":"IF(ISERROR(Dados!A463),\"-\",Dados!A463)","v":""},{"$f":"IF(ISERROR(Dados!B463),\"-\",Dados!B463)","v":""},{"$f":"IF(ISERROR(Dados!C463),\"-\",Dados!C463)","v":""},{"$f":"IF(ISERROR(Dados!D463),\"-\",Dados!D463)","v":""},{"$f":"IF(ISERROR(Dados!E463),\"-\",Dados!E463)","v":""},{"$f":"IF(ISERROR(Dados!F463),\"-\",Dados!F463)","v":""},{"$f":"IF(ISERROR(Dados!G463),\"-\",Dados!G463)","v":""},{"$f":"IF(ISERROR(Dados!H463),\"-\",Dados!H463)","v":""},{"$f":"IF(ISERROR(Dados!I463),\"-\",Dados!I463)","v":""},{"$f":"IF(ISERROR(Dados!J463),\"-\",Dados!J463)","v":""},{"$f":"IF(ISERROR(Dados!K463),\"-\",Dados!K463)","v":""},{"$f":"IF(ISERROR(Dados!L463),\"-\",Dados!L463)","v":""},{"$f":"IF(ISERROR(Dados!M463),\"-\",Dados!M463)","v":""},{"$f":"IF(ISERROR(Dados!N463),\"-\",Dados!N463)","v":""},{"$f":"IF(ISERROR(Dados!O463),\"-\",Dados!O463)","v":""},{"$f":"IF(ISERROR(Dados!P463),\"-\",Dados!P463)","v":""},{"$f":"IF(ISERROR(Dados!Q463),\"-\",Dados!Q463)","v":""},{"$f":"IF(ISERROR(Dados!R463),\"-\",Dados!R463)","v":""},{"$f":"IF(ISERROR(Dados!S463),\"-\",Dados!S463)","v":""},{"$f":"IF(ISERROR(Dados!T463),\"-\",Dados!T463)","v":""},{"$f":"IF(ISERROR(Dados!U463),\"-\",Dados!U463)","v":""},{"$f":"IF(ISERROR(Dados!V463),\"-\",Dados!V463)","v":""},{"$f":"IF(ISERROR(Dados!W463),\"-\",Dados!W463)","v":""},{"$f":"IF(ISERROR(Dados!X463),\"-\",Dados!X463)","v":""},{"$f":"IF(ISERROR(Dados!Y463),\"-\",Dados!Y463)","v":""},{"$f":"IF(ISERROR(Dados!Z463),\"-\",Dados!Z463)","v":""},{"$f":"IF(ISERROR(Dados!AA463),\"-\",Dados!AA463)","v":""},{"$f":"IF(ISERROR(Dados!AB463),\"-\",Dados!AB463)","v":""},{"$f":"IF(ISERROR(Dados!AC463),\"-\",Dados!AC463)","v":""},{"$f":"IF(ISERROR(Dados!AD463),\"-\",Dados!AD463)","v":""},{"$f":"IF(ISERROR(Dados!AE463),\"-\",Dados!AE463)","v":""},{"$f":"IF(ISERROR(Dados!AF463),\"-\",Dados!AF463)","v":""},{"$f":"IF(ISERROR(Dados!AG463),\"-\",Dados!AG463)","v":""}]
[{"$f":"IF(ISERROR(Dados!A464),\"-\",Dados!A464)","v":""},{"$f":"IF(ISERROR(Dados!B464),\"-\",Dados!B464)","v":""},{"$f":"IF(ISERROR(Dados!C464),\"-\",Dados!C464)","v":""},{"$f":"IF(ISERROR(Dados!D464),\"-\",Dados!D464)","v":""},{"$f":"IF(ISERROR(Dados!E464),\"-\",Dados!E464)","v":""},{"$f":"IF(ISERROR(Dados!F464),\"-\",Dados!F464)","v":""},{"$f":"IF(ISERROR(Dados!G464),\"-\",Dados!G464)","v":""},{"$f":"IF(ISERROR(Dados!H464),\"-\",Dados!H464)","v":""},{"$f":"IF(ISERROR(Dados!I464),\"-\",Dados!I464)","v":""},{"$f":"IF(ISERROR(Dados!J464),\"-\",Dados!J464)","v":""},{"$f":"IF(ISERROR(Dados!K464),\"-\",Dados!K464)","v":""},{"$f":"IF(ISERROR(Dados!L464),\"-\",Dados!L464)","v":""},{"$f":"IF(ISERROR(Dados!M464),\"-\",Dados!M464)","v":""},{"$f":"IF(ISERROR(Dados!N464),\"-\",Dados!N464)","v":""},{"$f":"IF(ISERROR(Dados!O464),\"-\",Dados!O464)","v":""},{"$f":"IF(ISERROR(Dados!P464),\"-\",Dados!P464)","v":""},{"$f":"IF(ISERROR(Dados!Q464),\"-\",Dados!Q464)","v":""},{"$f":"IF(ISERROR(Dados!R464),\"-\",Dados!R464)","v":""},{"$f":"IF(ISERROR(Dados!S464),\"-\",Dados!S464)","v":""},{"$f":"IF(ISERROR(Dados!T464),\"-\",Dados!T464)","v":""},{"$f":"IF(ISERROR(Dados!U464),\"-\",Dados!U464)","v":""},{"$f":"IF(ISERROR(Dados!V464),\"-\",Dados!V464)","v":""},{"$f":"IF(ISERROR(Dados!W464),\"-\",Dados!W464)","v":""},{"$f":"IF(ISERROR(Dados!X464),\"-\",Dados!X464)","v":""},{"$f":"IF(ISERROR(Dados!Y464),\"-\",Dados!Y464)","v":""},{"$f":"IF(ISERROR(Dados!Z464),\"-\",Dados!Z464)","v":""},{"$f":"IF(ISERROR(Dados!AA464),\"-\",Dados!AA464)","v":""},{"$f":"IF(ISERROR(Dados!AB464),\"-\",Dados!AB464)","v":""},{"$f":"IF(ISERROR(Dados!AC464),\"-\",Dados!AC464)","v":""},{"$f":"IF(ISERROR(Dados!AD464),\"-\",Dados!AD464)","v":""},{"$f":"IF(ISERROR(Dados!AE464),\"-\",Dados!AE464)","v":""},{"$f":"IF(ISERROR(Dados!AF464),\"-\",Dados!AF464)","v":""},{"$f":"IF(ISERROR(Dados!AG464),\"-\",Dados!AG464)","v":""}]
[{"$f":"IF(ISERROR(Dados!A465),\"-\",Dados!A465)","v":""},{"$f":"IF(ISERROR(Dados!B465),\"-\",Dados!B465)","v":""},{"$f":"IF(ISERROR(Dados!C465),\"-\",Dados!C465)","v":""},{"$f":"IF(ISERROR(Dados!D465),\"-\",Dados!D465)","v":""},{"$f":"IF(ISERROR(Dados!E465),\"-\",Dados!E465)","v":""},{"$f":"IF(ISERROR(Dados!F465),\"-\",Dados!F465)","v":""},{"$f":"IF(ISERROR(Dados!G465),\"-\",Dados!G465)","v":""},{"$f":"IF(ISERROR(Dados!H465),\"-\",Dados!H465)","v":""},{"$f":"IF(ISERROR(Dados!I465),\"-\",Dados!I465)","v":""},{"$f":"IF(ISERROR(Dados!J465),\"-\",Dados!J465)","v":""},{"$f":"IF(ISERROR(Dados!K465),\"-\",Dados!K465)","v":""},{"$f":"IF(ISERROR(Dados!L465),\"-\",Dados!L465)","v":""},{"$f":"IF(ISERROR(Dados!M465),\"-\",Dados!M465)","v":""},{"$f":"IF(ISERROR(Dados!N465),\"-\",Dados!N465)","v":""},{"$f":"IF(ISERROR(Dados!O465),\"-\",Dados!O465)","v":""},{"$f":"IF(ISERROR(Dados!P465),\"-\",Dados!P465)","v":""},{"$f":"IF(ISERROR(Dados!Q465),\"-\",Dados!Q465)","v":""},{"$f":"IF(ISERROR(Dados!R465),\"-\",Dados!R465)","v":""},{"$f":"IF(ISERROR(Dados!S465),\"-\",Dados!S465)","v":""},{"$f":"IF(ISERROR(Dados!T465),\"-\",Dados!T465)","v":""},{"$f":"IF(ISERROR(Dados!U465),\"-\",Dados!U465)","v":""},{"$f":"IF(ISERROR(Dados!V465),\"-\",Dados!V465)","v":""},{"$f":"IF(ISERROR(Dados!W465),\"-\",Dados!W465)","v":""},{"$f":"IF(ISERROR(Dados!X465),\"-\",Dados!X465)","v":""},{"$f":"IF(ISERROR(Dados!Y465),\"-\",Dados!Y465)","v":""},{"$f":"IF(ISERROR(Dados!Z465),\"-\",Dados!Z465)","v":""},{"$f":"IF(ISERROR(Dados!AA465),\"-\",Dados!AA465)","v":""},{"$f":"IF(ISERROR(Dados!AB465),\"-\",Dados!AB465)","v":""},{"$f":"IF(ISERROR(Dados!AC465),\"-\",Dados!AC465)","v":""},{"$f":"IF(ISERROR(Dados!AD465),\"-\",Dados!AD465)","v":""},{"$f":"IF(ISERROR(Dados!AE465),\"-\",Dados!AE465)","v":""},{"$f":"IF(ISERROR(Dados!AF465),\"-\",Dados!AF465)","v":""},{"$f":"IF(ISERROR(Dados!AG465),\"-\",Dados!AG465)","v":""}]
[{"$f":"IF(ISERROR(Dados!A466),\"-\",Dados!A466)","v":""},{"$f":"IF(ISERROR(Dados!B466),\"-\",Dados!B466)","v":""},{"$f":"IF(ISERROR(Dados!C466),\"-\",Dados!C466)","v":""},{"$f":"IF(ISERROR(Dados!D466),\"-\",Dados!D466)","v":""},{"$f":"IF(ISERROR(Dados!E466),\"-\",Dados!E466)","v":""},{"$f":"IF(ISERROR(Dados!F466),\"-\",Dados!F466)","v":""},{"$f":"IF(ISERROR(Dados!G466),\"-\",Dados!G466)","v":""},{"$f":"IF(ISERROR(Dados!H466),\"-\",Dados!H466)","v":""},{"$f":"IF(ISERROR(Dados!I466),\"-\",Dados!I466)","v":""},{"$f":"IF(ISERROR(Dados!J466),\"-\",Dados!J466)","v":""},{"$f":"IF(ISERROR(Dados!K466),\"-\",Dados!K466)","v":""},{"$f":"IF(ISERROR(Dados!L466),\"-\",Dados!L466)","v":""},{"$f":"IF(ISERROR(Dados!M466),\"-\",Dados!M466)","v":""},{"$f":"IF(ISERROR(Dados!N466),\"-\",Dados!N466)","v":""},{"$f":"IF(ISERROR(Dados!O466),\"-\",Dados!O466)","v":""},{"$f":"IF(ISERROR(Dados!P466),\"-\",Dados!P466)","v":""},{"$f":"IF(ISERROR(Dados!Q466),\"-\",Dados!Q466)","v":""},{"$f":"IF(ISERROR(Dados!R466),\"-\",Dados!R466)","v":""},{"$f":"IF(ISERROR(Dados!S466),\"-\",Dados!S466)","v":""},{"$f":"IF(ISERROR(Dados!T466),\"-\",Dados!T466)","v":""},{"$f":"IF(ISERROR(Dados!U466),\"-\",Dados!U466)","v":""},{"$f":"IF(ISERROR(Dados!V466),\"-\",Dados!V466)","v":""},{"$f":"IF(ISERROR(Dados!W466),\"-\",Dados!W466)","v":""},{"$f":"IF(ISERROR(Dados!X466),\"-\",Dados!X466)","v":""},{"$f":"IF(ISERROR(Dados!Y466),\"-\",Dados!Y466)","v":""},{"$f":"IF(ISERROR(Dados!Z466),\"-\",Dados!Z466)","v":""},{"$f":"IF(ISERROR(Dados!AA466),\"-\",Dados!AA466)","v":""},{"$f":"IF(ISERROR(Dados!AB466),\"-\",Dados!AB466)","v":""},{"$f":"IF(ISERROR(Dados!AC466),\"-\",Dados!AC466)","v":""},{"$f":"IF(ISERROR(Dados!AD466),\"-\",Dados!AD466)","v":""},{"$f":"IF(ISERROR(Dados!AE466),\"-\",Dados!AE466)","v":""},{"$f":"IF(ISERROR(Dados!AF466),\"-\",Dados!AF466)","v":""},{"$f":"IF(ISERROR(Dados!AG466),\"-\",Dados!AG466)","v":""}]
[{"$f":"IF(ISERROR(Dados!A467),\"-\",Dados!A467)","v":""},{"$f":"IF(ISERROR(Dados!B467),\"-\",Dados!B467)","v":""},{"$f":"IF(ISERROR(Dados!C467),\"-\",Dados!C467)","v":""},{"$f":"IF(ISERROR(Dados!D467),\"-\",Dados!D467)","v":""},{"$f":"IF(ISERROR(Dados!E467),\"-\",Dados!E467)","v":""},{"$f":"IF(ISERROR(Dados!F467),\"-\",Dados!F467)","v":""},{"$f":"IF(ISERROR(Dados!G467),\"-\",Dados!G467)","v":""},{"$f":"IF(ISERROR(Dados!H467),\"-\",Dados!H467)","v":""},{"$f":"IF(ISERROR(Dados!I467),\"-\",Dados!I467)","v":""},{"$f":"IF(ISERROR(Dados!J467),\"-\",Dados!J467)","v":""},{"$f":"IF(ISERROR(Dados!K467),\"-\",Dados!K467)","v":""},{"$f":"IF(ISERROR(Dados!L467),\"-\",Dados!L467)","v":""},{"$f":"IF(ISERROR(Dados!M467),\"-\",Dados!M467)","v":""},{"$f":"IF(ISERROR(Dados!N467),\"-\",Dados!N467)","v":""},{"$f":"IF(ISERROR(Dados!O467),\"-\",Dados!O467)","v":""},{"$f":"IF(ISERROR(Dados!P467),\"-\",Dados!P467)","v":""},{"$f":"IF(ISERROR(Dados!Q467),\"-\",Dados!Q467)","v":""},{"$f":"IF(ISERROR(Dados!R467),\"-\",Dados!R467)","v":""},{"$f":"IF(ISERROR(Dados!S467),\"-\",Dados!S467)","v":""},{"$f":"IF(ISERROR(Dados!T467),\"-\",Dados!T467)","v":""},{"$f":"IF(ISERROR(Dados!U467),\"-\",Dados!U467)","v":""},{"$f":"IF(ISERROR(Dados!V467),\"-\",Dados!V467)","v":""},{"$f":"IF(ISERROR(Dados!W467),\"-\",Dados!W467)","v":""},{"$f":"IF(ISERROR(Dados!X467),\"-\",Dados!X467)","v":""},{"$f":"IF(ISERROR(Dados!Y467),\"-\",Dados!Y467)","v":""},{"$f":"IF(ISERROR(Dados!Z467),\"-\",Dados!Z467)","v":""},{"$f":"IF(ISERROR(Dados!AA467),\"-\",Dados!AA467)","v":""},{"$f":"IF(ISERROR(Dados!AB467),\"-\",Dados!AB467)","v":""},{"$f":"IF(ISERROR(Dados!AC467),\"-\",Dados!AC467)","v":""},{"$f":"IF(ISERROR(Dados!AD467),\"-\",Dados!AD467)","v":""},{"$f":"IF(ISERROR(Dados!AE467),\"-\",Dados!AE467)","v":""},{"$f":"IF(ISERROR(Dados!AF467),\"-\",Dados!AF467)","v":""},{"$f":"IF(ISERROR(Dados!AG467),\"-\",Dados!AG467)","v":""}]
[{"$f":"IF(ISERROR(Dados!A468),\"-\",Dados!A468)","v":""},{"$f":"IF(ISERROR(Dados!B468),\"-\",Dados!B468)","v":""},{"$f":"IF(ISERROR(Dados!C468),\"-\",Dados!C468)","v":""},{"$f":"IF(ISERROR(Dados!D468),\"-\",Dados!D468)","v":""},{"$f":"IF(ISERROR(Dados!E468),\"-\",Dados!E468)","v":""},{"$f":"IF(ISERROR(Dados!F468),\"-\",Dados!F468)","v":""},{"$f":"IF(ISERROR(Dados!G468),\"-\",Dados!G468)","v":""},{"$f":"IF(ISERROR(Dados!H468),\"-\",Dados!H468)","v":""},{"$f":"IF(ISERROR(Dados!I468),\"-\",Dados!I468)","v":""},{"$f":"IF(ISERROR(Dados!J468),\"-\",Dados!J468)","v":""},{"$f":"IF(ISERROR(Dados!K468),\"-\",Dados!K468)","v":""},{"$f":"IF(ISERROR(Dados!L468),\"-\",Dados!L468)","v":""},{"$f":"IF(ISERROR(Dados!M468),\"-\",Dados!M468)","v":""},{"$f":"IF(ISERROR(Dados!N468),\"-\",Dados!N468)","v":""},{"$f":"IF(ISERROR(Dados!O468),\"-\",Dados!O468)","v":""},{"$f":"IF(ISERROR(Dados!P468),\"-\",Dados!P468)","v":""},{"$f":"IF(ISERROR(Dados!Q468),\"-\",Dados!Q468)","v":""},{"$f":"IF(ISERROR(Dados!R468),\"-\",Dados!R468)","v":""},{"$f":"IF(ISERROR(Dados!S468),\"-\",Dados!S468)","v":""},{"$f":"IF(ISERROR(Dados!T468),\"-\",Dados!T468)","v":""},{"$f":"IF(ISERROR(Dados!U468),\"-\",Dados!U468)","v":""},{"$f":"IF(ISERROR(Dados!V468),\"-\",Dados!V468)","v":""},{"$f":"IF(ISERROR(Dados!W468),\"-\",Dados!W468)","v":""},{"$f":"IF(ISERROR(Dados!X468),\"-\",Dados!X468)","v":""},{"$f":"IF(ISERROR(Dados!Y468),\"-\",Dados!Y468)","v":""},{"$f":"IF(ISERROR(Dados!Z468),\"-\",Dados!Z468)","v":""},{"$f":"IF(ISERROR(Dados!AA468),\"-\",Dados!AA468)","v":""},{"$f":"IF(ISERROR(Dados!AB468),\"-\",Dados!AB468)","v":""},{"$f":"IF(ISERROR(Dados!AC468),\"-\",Dados!AC468)","v":""},{"$f":"IF(ISERROR(Dados!AD468),\"-\",Dados!AD468)","v":""},{"$f":"IF(ISERROR(Dados!AE468),\"-\",Dados!AE468)","v":""},{"$f":"IF(ISERROR(Dados!AF468),\"-\",Dados!AF468)","v":""},{"$f":"IF(ISERROR(Dados!AG468),\"-\",Dados!AG468)","v":""}]
[{"$f":"IF(ISERROR(Dados!A469),\"-\",Dados!A469)","v":""},{"$f":"IF(ISERROR(Dados!B469),\"-\",Dados!B469)","v":""},{"$f":"IF(ISERROR(Dados!C469),\"-\",Dados!C469)","v":""},{"$f":"IF(ISERROR(Dados!D469),\"-\",Dados!D469)","v":""},{"$f":"IF(ISERROR(Dados!E469),\"-\",Dados!E469)","v":""},{"$f":"IF(ISERROR(Dados!F469),\"-\",Dados!F469)","v":""},{"$f":"IF(ISERROR(Dados!G469),\"-\",Dados!G469)","v":""},{"$f":"IF(ISERROR(Dados!H469),\"-\",Dados!H469)","v":""},{"$f":"IF(ISERROR(Dados!I469),\"-\",Dados!I469)","v":""},{"$f":"IF(ISERROR(Dados!J469),\"-\",Dados!J469)","v":""},{"$f":"IF(ISERROR(Dados!K469),\"-\",Dados!K469)","v":""},{"$f":"IF(ISERROR(Dados!L469),\"-\",Dados!L469)","v":""},{"$f":"IF(ISERROR(Dados!M469),\"-\",Dados!M469)","v":""},{"$f":"IF(ISERROR(Dados!N469),\"-\",Dados!N469)","v":""},{"$f":"IF(ISERROR(Dados!O469),\"-\",Dados!O469)","v":""},{"$f":"IF(ISERROR(Dados!P469),\"-\",Dados!P469)","v":""},{"$f":"IF(ISERROR(Dados!Q469),\"-\",Dados!Q469)","v":""},{"$f":"IF(ISERROR(Dados!R469),\"-\",Dados!R469)","v":""},{"$f":"IF(ISERROR(Dados!S469),\"-\",Dados!S469)","v":""},{"$f":"IF(ISERROR(Dados!T469),\"-\",Dados!T469)","v":""},{"$f":"IF(ISERROR(Dados!U469),\"-\",Dados!U469)","v":""},{"$f":"IF(ISERROR(Dados!V469),\"-\",Dados!V469)","v":""},{"$f":"IF(ISERROR(Dados!W469),\"-\",Dados!W469)","v":""},{"$f":"IF(ISERROR(Dados!X469),\"-\",Dados!X469)","v":""},{"$f":"IF(ISERROR(Dados!Y469),\"-\",Dados!Y469)","v":""},{"$f":"IF(ISERROR(Dados!Z469),\"-\",Dados!Z469)","v":""},{"$f":"IF(ISERROR(Dados!AA469),\"-\",Dados!AA469)","v":""},{"$f":"IF(ISERROR(Dados!AB469),\"-\",Dados!AB469)","v":""},{"$f":"IF(ISERROR(Dados!AC469),\"-\",Dados!AC469)","v":""},{"$f":"IF(ISERROR(Dados!AD469),\"-\",Dados!AD469)","v":""},{"$f":"IF(ISERROR(Dados!AE469),\"-\",Dados!AE469)","v":""},{"$f":"IF(ISERROR(Dados!AF469),\"-\",Dados!AF469)","v":""},{"$f":"IF(ISERROR(Dados!AG469),\"-\",Dados!AG469)","v":""}]
[{"$f":"IF(ISERROR(Dados!A470),\"-\",Dados!A470)","v":""},{"$f":"IF(ISERROR(Dados!B470),\"-\",Dados!B470)","v":""},{"$f":"IF(ISERROR(Dados!C470),\"-\",Dados!C470)","v":""},{"$f":"IF(ISERROR(Dados!D470),\"-\",Dados!D470)","v":""},{"$f":"IF(ISERROR(Dados!E470),\"-\",Dados!E470)","v":""},{"$f":"IF(ISERROR(Dados!F470),\"-\",Dados!F470)","v":""},{"$f":"IF(ISERROR(Dados!G470),\"-\",Dados!G470)","v":""},{"$f":"IF(ISERROR(Dados!H470),\"-\",Dados!H470)","v":""},{"$f":"IF(ISERROR(Dados!I470),\"-\",Dados!I470)","v":""},{"$f":"IF(ISERROR(Dados!J470),\"-\",Dados!J470)","v":""},{"$f":"IF(ISERROR(Dados!K470),\"-\",Dados!K470)","v":""},{"$f":"IF(ISERROR(Dados!L470),\"-\",Dados!L470)","v":""},{"$f":"IF(ISERROR(Dados!M470),\"-\",Dados!M470)","v":""},{"$f":"IF(ISERROR(Dados!N470),\"-\",Dados!N470)","v":""},{"$f":"IF(ISERROR(Dados!O470),\"-\",Dados!O470)","v":""},{"$f":"IF(ISERROR(Dados!P470),\"-\",Dados!P470)","v":""},{"$f":"IF(ISERROR(Dados!Q470),\"-\",Dados!Q470)","v":""},{"$f":"IF(ISERROR(Dados!R470),\"-\",Dados!R470)","v":""},{"$f":"IF(ISERROR(Dados!S470),\"-\",Dados!S470)","v":""},{"$f":"IF(ISERROR(Dados!T470),\"-\",Dados!T470)","v":""},{"$f":"IF(ISERROR(Dados!U470),\"-\",Dados!U470)","v":""},{"$f":"IF(ISERROR(Dados!V470),\"-\",Dados!V470)","v":""},{"$f":"IF(ISERROR(Dados!W470),\"-\",Dados!W470)","v":""},{"$f":"IF(ISERROR(Dados!X470),\"-\",Dados!X470)","v":""},{"$f":"IF(ISERROR(Dados!Y470),\"-\",Dados!Y470)","v":""},{"$f":"IF(ISERROR(Dados!Z470),\"-\",Dados!Z470)","v":""},{"$f":"IF(ISERROR(Dados!AA470),\"-\",Dados!AA470)","v":""},{"$f":"IF(ISERROR(Dados!AB470),\"-\",Dados!AB470)","v":""},{"$f":"IF(ISERROR(Dados!AC470),\"-\",Dados!AC470)","v":""},{"$f":"IF(ISERROR(Dados!AD470),\"-\",Dados!AD470)","v":""},{"$f":"IF(ISERROR(Dados!AE470),\"-\",Dados!AE470)","v":""},{"$f":"IF(ISERROR(Dados!AF470),\"-\",Dados!AF470)","v":""},{"$f":"IF(ISERROR(Dados!AG470),\"-\",Dados!AG470)","v":""}]
[{"$f":"IF(ISERROR(Dados!A471),\"-\",Dados!A471)","v":""},{"$f":"IF(ISERROR(Dados!B471),\"-\",Dados!B471)","v":""},{"$f":"IF(ISERROR(Dados!C471),\"-\",Dados!C471)","v":""},{"$f":"IF(ISERROR(Dados!D471),\"-\",Dados!D471)","v":""},{"$f":"IF(ISERROR(Dados!E471),\"-\",Dados!E471)","v":""},{"$f":"IF(ISERROR(Dados!F471),\"-\",Dados!F471)","v":""},{"$f":"IF(ISERROR(Dados!G471),\"-\",Dados!G471)","v":""},{"$f":"IF(ISERROR(Dados!H471),\"-\",Dados!H471)","v":""},{"$f":"IF(ISERROR(Dados!I471),\"-\",Dados!I471)","v":""},{"$f":"IF(ISERROR(Dados!J471),\"-\",Dados!J471)","v":""},{"$f":"IF(ISERROR(Dados!K471),\"-\",Dados!K471)","v":""},{"$f":"IF(ISERROR(Dados!L471),\"-\",Dados!L471)","v":""},{"$f":"IF(ISERROR(Dados!M471),\"-\",Dados!M471)","v":""},{"$f":"IF(ISERROR(Dados!N471),\"-\",Dados!N471)","v":""},{"$f":"IF(ISERROR(Dados!O471),\"-\",Dados!O471)","v":""},{"$f":"IF(ISERROR(Dados!P471),\"-\",Dados!P471)","v":""},{"$f":"IF(ISERROR(Dados!Q471),\"-\",Dados!Q471)","v":""},{"$f":"IF(ISERROR(Dados!R471),\"-\",Dados!R471)","v":""},{"$f":"IF(ISERROR(Dados!S471),\"-\",Dados!S471)","v":""},{"$f":"IF(ISERROR(Dados!T471),\"-\",Dados!T471)","v":""},{"$f":"IF(ISERROR(Dados!U471),\"-\",Dados!U471)","v":""},{"$f":"IF(ISERROR(Dados!V471),\"-\",Dados!V471)","v":""},{"$f":"IF(ISERROR(Dados!W471),\"-\",Dados!W471)","v":""},{"$f":"IF(ISERROR(Dados!X471),\"-\",Dados!X471)","v":""},{"$f":"IF(ISERROR(Dados!Y471),\"-\",Dados!Y471)","v":""},{"$f":"IF(ISERROR(Dados!Z471),\"-\",Dados!Z471)","v":""},{"$f":"IF(ISERROR(Dados!AA471),\"-\",Dados!AA471)","v":""},{"$f":"IF(ISERROR(Dados!AB471),\"-\",Dados!AB471)","v":""},{"$f":"IF(ISERROR(Dados!AC471),\"-\",Dados!AC471)","v":""},{"$f":"IF(ISERROR(Dados!AD471),\"-\",Dados!AD471)","v":""},{"$f":"IF(ISERROR(Dados!AE471),\"-\",Dados!AE471)","v":""},{"$f":"IF(ISERROR(Dados!AF471),\"-\",Dados!AF471)","v":""},{"$f":"IF(ISERROR(Dados!AG471),\"-\",Dados!AG471)","v":""}]
[{"$f":"IF(ISERROR(Dados!A472),\"-\",Dados!A472)","v":""},{"$f":"IF(ISERROR(Dados!B472),\"-\",Dados!B472)","v":""},{"$f":"IF(ISERROR(Dados!C472),\"-\",Dados!C472)","v":""},{"$f":"IF(ISERROR(Dados!D472),\"-\",Dados!D472)","v":""},{"$f":"IF(ISERROR(Dados!E472),\"-\",Dados!E472)","v":""},{"$f":"IF(ISERROR(Dados!F472),\"-\",Dados!F472)","v":""},{"$f":"IF(ISERROR(Dados!G472),\"-\",Dados!G472)","v":""},{"$f":"IF(ISERROR(Dados!H472),\"-\",Dados!H472)","v":""},{"$f":"IF(ISERROR(Dados!I472),\"-\",Dados!I472)","v":""},{"$f":"IF(ISERROR(Dados!J472),\"-\",Dados!J472)","v":""},{"$f":"IF(ISERROR(Dados!K472),\"-\",Dados!K472)","v":""},{"$f":"IF(ISERROR(Dados!L472),\"-\",Dados!L472)","v":""},{"$f":"IF(ISERROR(Dados!M472),\"-\",Dados!M472)","v":""},{"$f":"IF(ISERROR(Dados!N472),\"-\",Dados!N472)","v":""},{"$f":"IF(ISERROR(Dados!O472),\"-\",Dados!O472)","v":""},{"$f":"IF(ISERROR(Dados!P472),\"-\",Dados!P472)","v":""},{"$f":"IF(ISERROR(Dados!Q472),\"-\",Dados!Q472)","v":""},{"$f":"IF(ISERROR(Dados!R472),\"-\",Dados!R472)","v":""},{"$f":"IF(ISERROR(Dados!S472),\"-\",Dados!S472)","v":""},{"$f":"IF(ISERROR(Dados!T472),\"-\",Dados!T472)","v":""},{"$f":"IF(ISERROR(Dados!U472),\"-\",Dados!U472)","v":""},{"$f":"IF(ISERROR(Dados!V472),\"-\",Dados!V472)","v":""},{"$f":"IF(ISERROR(Dados!W472),\"-\",Dados!W472)","v":""},{"$f":"IF(ISERROR(Dados!X472),\"-\",Dados!X472)","v":""},{"$f":"IF(ISERROR(Dados!Y472),\"-\",Dados!Y472)","v":""},{"$f":"IF(ISERROR(Dados!Z472),\"-\",Dados!Z472)","v":""},{"$f":"IF(ISERROR(Dados!AA472),\"-\",Dados!AA472)","v":""},{"$f":"IF(ISERROR(Dados!AB472),\"-\",Dados!AB472)","v":""},{"$f":"IF(ISERROR(Dados!AC472),\"-\",Dados!AC472)","v":""},{"$f":"IF(ISERROR(Dados!AD472),\"-\",Dados!AD472)","v":""},{"$f":"IF(ISERROR(Dados!AE472),\"-\",Dados!AE472)","v":""},{"$f":"IF(ISERROR(Dados!AF472),\"-\",Dados!AF472)","v":""},{"$f":"IF(ISERROR(Dados!AG472),\"-\",Dados!AG472)","v":""}]
[{"$f":"IF(ISERROR(Dados!A473),\"-\",Dados!A473)","v":""},{"$f":"IF(ISERROR(Dados!B473),\"-\",Dados!B473)","v":""},{"$f":"IF(ISERROR(Dados!C473),\"-\",Dados!C473)","v":""},{"$f":"IF(ISERROR(Dados!D473),\"-\",Dados!D473)","v":""},{"$f":"IF(ISERROR(Dados!E473),\"-\",Dados!E473)","v":""},{"$f":"IF(ISERROR(Dados!F473),\"-\",Dados!F473)","v":""},{"$f":"IF(ISERROR(Dados!G473),\"-\",Dados!G473)","v":""},{"$f":"IF(ISERROR(Dados!H473),\"-\",Dados!H473)","v":""},{"$f":"IF(ISERROR(Dados!I473),\"-\",Dados!I473)","v":""},{"$f":"IF(ISERROR(Dados!J473),\"-\",Dados!J473)","v":""},{"$f":"IF(ISERROR(Dados!K473),\"-\",Dados!K473)","v":""},{"$f":"IF(ISERROR(Dados!L473),\"-\",Dados!L473)","v":""},{"$f":"IF(ISERROR(Dados!M473),\"-\",Dados!M473)","v":""},{"$f":"IF(ISERROR(Dados!N473),\"-\",Dados!N473)","v":""},{"$f":"IF(ISERROR(Dados!O473),\"-\",Dados!O473)","v":""},{"$f":"IF(ISERROR(Dados!P473),\"-\",Dados!P473)","v":""},{"$f":"IF(ISERROR(Dados!Q473),\"-\",Dados!Q473)","v":""},{"$f":"IF(ISERROR(Dados!R473),\"-\",Dados!R473)","v":""},{"$f":"IF(ISERROR(Dados!S473),\"-\",Dados!S473)","v":""},{"$f":"IF(ISERROR(Dados!T473),\"-\",Dados!T473)","v":""},{"$f":"IF(ISERROR(Dados!U473),\"-\",Dados!U473)","v":""},{"$f":"IF(ISERROR(Dados!V473),\"-\",Dados!V473)","v":""},{"$f":"IF(ISERROR(Dados!W473),\"-\",Dados!W473)","v":""},{"$f":"IF(ISERROR(Dados!X473),\"-\",Dados!X473)","v":""},{"$f":"IF(ISERROR(Dados!Y473),\"-\",Dados!Y473)","v":""},{"$f":"IF(ISERROR(Dados!Z473),\"-\",Dados!Z473)","v":""},{"$f":"IF(ISERROR(Dados!AA473),\"-\",Dados!AA473)","v":""},{"$f":"IF(ISERROR(Dados!AB473),\"-\",Dados!AB473)","v":""},{"$f":"IF(ISERROR(Dados!AC473),\"-\",Dados!AC473)","v":""},{"$f":"IF(ISERROR(Dados!AD473),\"-\",Dados!AD473)","v":""},{"$f":"IF(ISERROR(Dados!AE473),\"-\",Dados!AE473)","v":""},{"$f":"IF(ISERROR(Dados!AF473),\"-\",Dados!AF473)","v":""},{"$f":"IF(ISERROR(Dados!AG473),\"-\",Dados!AG473)","v":""}]
[{"$f":"IF(ISERROR(Dados!A474),\"-\",Dados!A474)","v":""},{"$f":"IF(ISERROR(Dados!B474),\"-\",Dados!B474)","v":""},{"$f":"IF(ISERROR(Dados!C474),\"-\",Dados!C474)","v":""},{"$f":"IF(ISERROR(Dados!D474),\"-\",Dados!D474)","v":""},{"$f":"IF(ISERROR(Dados!E474),\"-\",Dados!E474)","v":""},{"$f":"IF(ISERROR(Dados!F474),\"-\",Dados!F474)","v":""},{"$f":"IF(ISERROR(Dados!G474),\"-\",Dados!G474)","v":""},{"$f":"IF(ISERROR(Dados!H474),\"-\",Dados!H474)","v":""},{"$f":"IF(ISERROR(Dados!I474),\"-\",Dados!I474)","v":""},{"$f":"IF(ISERROR(Dados!J474),\"-\",Dados!J474)","v":""},{"$f":"IF(ISERROR(Dados!K474),\"-\",Dados!K474)","v":""},{"$f":"IF(ISERROR(Dados!L474),\"-\",Dados!L474)","v":""},{"$f":"IF(ISERROR(Dados!M474),\"-\",Dados!M474)","v":""},{"$f":"IF(ISERROR(Dados!N474),\"-\",Dados!N474)","v":""},{"$f":"IF(ISERROR(Dados!O474),\"-\",Dados!O474)","v":""},{"$f":"IF(ISERROR(Dados!P474),\"-\",Dados!P474)","v":""},{"$f":"IF(ISERROR(Dados!Q474),\"-\",Dados!Q474)","v":""},{"$f":"IF(ISERROR(Dados!R474),\"-\",Dados!R474)","v":""},{"$f":"IF(ISERROR(Dados!S474),\"-\",Dados!S474)","v":""},{"$f":"IF(ISERROR(Dados!T474),\"-\",Dados!T474)","v":""},{"$f":"IF(ISERROR(Dados!U474),\"-\",Dados!U474)","v":""},{"$f":"IF(ISERROR(Dados!V474),\"-\",Dados!V474)","v":""},{"$f":"IF(ISERROR(Dados!W474),\"-\",Dados!W474)","v":""},{"$f":"IF(ISERROR(Dados!X474),\"-\",Dados!X474)","v":""},{"$f":"IF(ISERROR(Dados!Y474),\"-\",Dados!Y474)","v":""},{"$f":"IF(ISERROR(Dados!Z474),\"-\",Dados!Z474)","v":""},{"$f":"IF(ISERROR(Dados!AA474),\"-\",Dados!AA474)","v":""},{"$f":"IF(ISERROR(Dados!AB474),\"-\",Dados!AB474)","v":""},{"$f":"IF(ISERROR(Dados!AC474),\"-\",Dados!AC474)","v":""},{"$f":"IF(ISERROR(Dados!AD474),\"-\",Dados!AD474)","v":""},{"$f":"IF(ISERROR(Dados!AE474),\"-\",Dados!AE474)","v":""},{"$f":"IF(ISERROR(Dados!AF474),\"-\",Dados!AF474)","v":""},{"$f":"IF(ISERROR(Dados!AG474),\"-\",Dados!AG474)","v":""}]
[{"$f":"IF(ISERROR(Dados!A475),\"-\",Dados!A475)","v":""},{"$f":"IF(ISERROR(Dados!B475),\"-\",Dados!B475)","v":""},{"$f":"IF(ISERROR(Dados!C475),\"-\",Dados!C475)","v":""},{"$f":"IF(ISERROR(Dados!D475),\"-\",Dados!D475)","v":""},{"$f":"IF(ISERROR(Dados!E475),\"-\",Dados!E475)","v":""},{"$f":"IF(ISERROR(Dados!F475),\"-\",Dados!F475)","v":""},{"$f":"IF(ISERROR(Dados!G475),\"-\",Dados!G475)","v":""},{"$f":"IF(ISERROR(Dados!H475),\"-\",Dados!H475)","v":""},{"$f":"IF(ISERROR(Dados!I475),\"-\",Dados!I475)","v":""},{"$f":"IF(ISERROR(Dados!J475),\"-\",Dados!J475)","v":""},{"$f":"IF(ISERROR(Dados!K475),\"-\",Dados!K475)","v":""},{"$f":"IF(ISERROR(Dados!L475),\"-\",Dados!L475)","v":""},{"$f":"IF(ISERROR(Dados!M475),\"-\",Dados!M475)","v":""},{"$f":"IF(ISERROR(Dados!N475),\"-\",Dados!N475)","v":""},{"$f":"IF(ISERROR(Dados!O475),\"-\",Dados!O475)","v":""},{"$f":"IF(ISERROR(Dados!P475),\"-\",Dados!P475)","v":""},{"$f":"IF(ISERROR(Dados!Q475),\"-\",Dados!Q475)","v":""},{"$f":"IF(ISERROR(Dados!R475),\"-\",Dados!R475)","v":""},{"$f":"IF(ISERROR(Dados!S475),\"-\",Dados!S475)","v":""},{"$f":"IF(ISERROR(Dados!T475),\"-\",Dados!T475)","v":""},{"$f":"IF(ISERROR(Dados!U475),\"-\",Dados!U475)","v":""},{"$f":"IF(ISERROR(Dados!V475),\"-\",Dados!V475)","v":""},{"$f":"IF(ISERROR(Dados!W475),\"-\",Dados!W475)","v":""},{"$f":"IF(ISERROR(Dados!X475),\"-\",Dados!X475)","v":""},{"$f":"IF(ISERROR(Dados!Y475),\"-\",Dados!Y475)","v":""},{"$f":"IF(ISERROR(Dados!Z475),\"-\",Dados!Z475)","v":""},{"$f":"IF(ISERROR(Dados!AA475),\"-\",Dados!AA475)","v":""},{"$f":"IF(ISERROR(Dados!AB475),\"-\",Dados!AB475)","v":""},{"$f":"IF(ISERROR(Dados!AC475),\"-\",Dados!AC475)","v":""},{"$f":"IF(ISERROR(Dados!AD475),\"-\",Dados!AD475)","v":""},{"$f":"IF(ISERROR(Dados!AE475),\"-\",Dados!AE475)","v":""},{"$f":"IF(ISERROR(Dados!AF475),\"-\",Dados!AF475)","v":""},{"$f":"IF(ISERROR(Dados!AG475),\"-\",Dados!AG475)","v":""}]
[{"$f":"IF(ISERROR(Dados!A476),\"-\",Dados!A476)","v":""},{"$f":"IF(ISERROR(Dados!B476),\"-\",Dados!B476)","v":""},{"$f":"IF(ISERROR(Dados!C476),\"-\",Dados!C476)","v":""},{"$f":"IF(ISERROR(Dados!D476),\"-\",Dados!D476)","v":""},{"$f":"IF(ISERROR(Dados!E476),\"-\",Dados!E476)","v":""},{"$f":"IF(ISERROR(Dados!F476),\"-\",Dados!F476)","v":""},{"$f":"IF(ISERROR(Dados!G476),\"-\",Dados!G476)","v":""},{"$f":"IF(ISERROR(Dados!H476),\"-\",Dados!H476)","v":""},{"$f":"IF(ISERROR(Dados!I476),\"-\",Dados!I476)","v":""},{"$f":"IF(ISERROR(Dados!J476),\"-\",Dados!J476)","v":""},{"$f":"IF(ISERROR(Dados!K476),\"-\",Dados!K476)","v":""},{"$f":"IF(ISERROR(Dados!L476),\"-\",Dados!L476)","v":""},{"$f":"IF(ISERROR(Dados!M476),\"-\",Dados!M476)","v":""},{"$f":"IF(ISERROR(Dados!N476),\"-\",Dados!N476)","v":""},{"$f":"IF(ISERROR(Dados!O476),\"-\",Dados!O476)","v":""},{"$f":"IF(ISERROR(Dados!P476),\"-\",Dados!P476)","v":""},{"$f":"IF(ISERROR(Dados!Q476),\"-\",Dados!Q476)","v":""},{"$f":"IF(ISERROR(Dados!R476),\"-\",Dados!R476)","v":""},{"$f":"IF(ISERROR(Dados!S476),\"-\",Dados!S476)","v":""},{"$f":"IF(ISERROR(Dados!T476),\"-\",Dados!T476)","v":""},{"$f":"IF(ISERROR(Dados!U476),\"-\",Dados!U476)","v":""},{"$f":"IF(ISERROR(Dados!V476),\"-\",Dados!V476)","v":""},{"$f":"IF(ISERROR(Dados!W476),\"-\",Dados!W476)","v":""},{"$f":"IF(ISERROR(Dados!X476),\"-\",Dados!X476)","v":""},{"$f":"IF(ISERROR(Dados!Y476),\"-\",Dados!Y476)","v":""},{"$f":"IF(ISERROR(Dados!Z476),\"-\",Dados!Z476)","v":""},{"$f":"IF(ISERROR(Dados!AA476),\"-\",Dados!AA476)","v":""},{"$f":"IF(ISERROR(Dados!AB476),\"-\",Dados!AB476)","v":""},{"$f":"IF(ISERROR(Dados!AC476),\"-\",Dados!AC476)","v":""},{"$f":"IF(ISERROR(Dados!AD476),\"-\",Dados!AD476)","v":""},{"$f":"IF(ISERROR(Dados!AE476),\"-\",Dados!AE476)","v":""},{"$f":"IF(ISERROR(Dados!AF476),\"-\",Dados!AF476)","v":""},{"$f":"IF(ISERROR(Dados!AG476),\"-\",Dados!AG476)","v":""}]
[{"$f":"IF(ISERROR(Dados!A477),\"-\",Dados!A477)","v":""},{"$f":"IF(ISERROR(Dados!B477),\"-\",Dados!B477)","v":""},{"$f":"IF(ISERROR(Dados!C477),\"-\",Dados!C477)","v":""},{"$f":"IF(ISERROR(Dados!D477),\"-\",Dados!D477)","v":""},{"$f":"IF(ISERROR(Dados!E477),\"-\",Dados!E477)","v":""},{"$f":"IF(ISERROR(Dados!F477),\"-\",Dados!F477)","v":""},{"$f":"IF(ISERROR(Dados!G477),\"-\",Dados!G477)","v":""},{"$f":"IF(ISERROR(Dados!H477),\"-\",Dados!H477)","v":""},{"$f":"IF(ISERROR(Dados!I477),\"-\",Dados!I477)","v":""},{"$f":"IF(ISERROR(Dados!J477),\"-\",Dados!J477)","v":""},{"$f":"IF(ISERROR(Dados!K477),\"-\",Dados!K477)","v":""},{"$f":"IF(ISERROR(Dados!L477),\"-\",Dados!L477)","v":""},{"$f":"IF(ISERROR(Dados!M477),\"-\",Dados!M477)","v":""},{"$f":"IF(ISERROR(Dados!N477),\"-\",Dados!N477)","v":""},{"$f":"IF(ISERROR(Dados!O477),\"-\",Dados!O477)","v":""},{"$f":"IF(ISERROR(Dados!P477),\"-\",Dados!P477)","v":""},{"$f":"IF(ISERROR(Dados!Q477),\"-\",Dados!Q477)","v":""},{"$f":"IF(ISERROR(Dados!R477),\"-\",Dados!R477)","v":""},{"$f":"IF(ISERROR(Dados!S477),\"-\",Dados!S477)","v":""},{"$f":"IF(ISERROR(Dados!T477),\"-\",Dados!T477)","v":""},{"$f":"IF(ISERROR(Dados!U477),\"-\",Dados!U477)","v":""},{"$f":"IF(ISERROR(Dados!V477),\"-\",Dados!V477)","v":""},{"$f":"IF(ISERROR(Dados!W477),\"-\",Dados!W477)","v":""},{"$f":"IF(ISERROR(Dados!X477),\"-\",Dados!X477)","v":""},{"$f":"IF(ISERROR(Dados!Y477),\"-\",Dados!Y477)","v":""},{"$f":"IF(ISERROR(Dados!Z477),\"-\",Dados!Z477)","v":""},{"$f":"IF(ISERROR(Dados!AA477),\"-\",Dados!AA477)","v":""},{"$f":"IF(ISERROR(Dados!AB477),\"-\",Dados!AB477)","v":""},{"$f":"IF(ISERROR(Dados!AC477),\"-\",Dados!AC477)","v":""},{"$f":"IF(ISERROR(Dados!AD477),\"-\",Dados!AD477)","v":""},{"$f":"IF(ISERROR(Dados!AE477),\"-\",Dados!AE477)","v":""},{"$f":"IF(ISERROR(Dados!AF477),\"-\",Dados!AF477)","v":""},{"$f":"IF(ISERROR(Dados!AG477),\"-\",Dados!AG477)","v":""}]
[{"$f":"IF(ISERROR(Dados!A478),\"-\",Dados!A478)","v":""},{"$f":"IF(ISERROR(Dados!B478),\"-\",Dados!B478)","v":""},{"$f":"IF(ISERROR(Dados!C478),\"-\",Dados!C478)","v":""},{"$f":"IF(ISERROR(Dados!D478),\"-\",Dados!D478)","v":""},{"$f":"IF(ISERROR(Dados!E478),\"-\",Dados!E478)","v":""},{"$f":"IF(ISERROR(Dados!F478),\"-\",Dados!F478)","v":""},{"$f":"IF(ISERROR(Dados!G478),\"-\",Dados!G478)","v":""},{"$f":"IF(ISERROR(Dados!H478),\"-\",Dados!H478)","v":""},{"$f":"IF(ISERROR(Dados!I478),\"-\",Dados!I478)","v":""},{"$f":"IF(ISERROR(Dados!J478),\"-\",Dados!J478)","v":""},{"$f":"IF(ISERROR(Dados!K478),\"-\",Dados!K478)","v":""},{"$f":"IF(ISERROR(Dados!L478),\"-\",Dados!L478)","v":""},{"$f":"IF(ISERROR(Dados!M478),\"-\",Dados!M478)","v":""},{"$f":"IF(ISERROR(Dados!N478),\"-\",Dados!N478)","v":""},{"$f":"IF(ISERROR(Dados!O478),\"-\",Dados!O478)","v":""},{"$f":"IF(ISERROR(Dados!P478),\"-\",Dados!P478)","v":""},{"$f":"IF(ISERROR(Dados!Q478),\"-\",Dados!Q478)","v":""},{"$f":"IF(ISERROR(Dados!R478),\"-\",Dados!R478)","v":""},{"$f":"IF(ISERROR(Dados!S478),\"-\",Dados!S478)","v":""},{"$f":"IF(ISERROR(Dados!T478),\"-\",Dados!T478)","v":""},{"$f":"IF(ISERROR(Dados!U478),\"-\",Dados!U478)","v":""},{"$f":"IF(ISERROR(Dados!V478),\"-\",Dados!V478)","v":""},{"$f":"IF(ISERROR(Dados!W478),\"-\",Dados!W478)","v":""},{"$f":"IF(ISERROR(Dados!X478),\"-\",Dados!X478)","v":""},{"$f":"IF(ISERROR(Dados!Y478),\"-\",Dados!Y478)","v":""},{"$f":"IF(ISERROR(Dados!Z478),\"-\",Dados!Z478)","v":""},{"$f":"IF(ISERROR(Dados!AA478),\"-\",Dados!AA478)","v":""},{"$f":"IF(ISERROR(Dados!AB478),\"-\",Dados!AB478)","v":""},{"$f":"IF(ISERROR(Dados!AC478),\"-\",Dados!AC478)","v":""},{"$f":"IF(ISERROR(Dados!AD478),\"-\",Dados!AD478)","v":""},{"$f":"IF(ISERROR(Dados!AE478),\"-\",Dados!AE478)","v":""},{"$f":"IF(ISERROR(Dados!AF478),\"-\",Dados!AF478)","v":""},{"$f":"IF(ISERROR(Dados!AG478),\"-\",Dados!AG478)","v":""}]
[{"$f":"IF(ISERROR(Dados!A479),\"-\",Dados!A479)","v":""},{"$f":"IF(ISERROR(Dados!B479),\"-\",Dados!B479)","v":""},{"$f":"IF(ISERROR(Dados!C479),\"-\",Dados!C479)","v":""},{"$f":"IF(ISERROR(Dados!D479),\"-\",Dados!D479)","v":""},{"$f":"IF(ISERROR(Dados!E479),\"-\",Dados!E479)","v":""},{"$f":"IF(ISERROR(Dados!F479),\"-\",Dados!F479)","v":""},{"$f":"IF(ISERROR(Dados!G479),\"-\",Dados!G479)","v":""},{"$f":"IF(ISERROR(Dados!H479),\"-\",Dados!H479)","v":""},{"$f":"IF(ISERROR(Dados!I479),\"-\",Dados!I479)","v":""},{"$f":"IF(ISERROR(Dados!J479),\"-\",Dados!J479)","v":""},{"$f":"IF(ISERROR(Dados!K479),\"-\",Dados!K479)","v":""},{"$f":"IF(ISERROR(Dados!L479),\"-\",Dados!L479)","v":""},{"$f":"IF(ISERROR(Dados!M479),\"-\",Dados!M479)","v":""},{"$f":"IF(ISERROR(Dados!N479),\"-\",Dados!N479)","v":""},{"$f":"IF(ISERROR(Dados!O479),\"-\",Dados!O479)","v":""},{"$f":"IF(ISERROR(Dados!P479),\"-\",Dados!P479)","v":""},{"$f":"IF(ISERROR(Dados!Q479),\"-\",Dados!Q479)","v":""},{"$f":"IF(ISERROR(Dados!R479),\"-\",Dados!R479)","v":""},{"$f":"IF(ISERROR(Dados!S479),\"-\",Dados!S479)","v":""},{"$f":"IF(ISERROR(Dados!T479),\"-\",Dados!T479)","v":""},{"$f":"IF(ISERROR(Dados!U479),\"-\",Dados!U479)","v":""},{"$f":"IF(ISERROR(Dados!V479),\"-\",Dados!V479)","v":""},{"$f":"IF(ISERROR(Dados!W479),\"-\",Dados!W479)","v":""},{"$f":"IF(ISERROR(Dados!X479),\"-\",Dados!X479)","v":""},{"$f":"IF(ISERROR(Dados!Y479),\"-\",Dados!Y479)","v":""},{"$f":"IF(ISERROR(Dados!Z479),\"-\",Dados!Z479)","v":""},{"$f":"IF(ISERROR(Dados!AA479),\"-\",Dados!AA479)","v":""},{"$f":"IF(ISERROR(Dados!AB479),\"-\",Dados!AB479)","v":""},{"$f":"IF(ISERROR(Dados!AC479),\"-\",Dados!AC479)","v":""},{"$f":"IF(ISERROR(Dados!AD479),\"-\",Dados!AD479)","v":""},{"$f":"IF(ISERROR(Dados!AE479),\"-\",Dados!AE479)","v":""},{"$f":"IF(ISERROR(Dados!AF479),\"-\",Dados!AF479)","v":""},{"$f":"IF(ISERROR(Dados!AG479),\"-\",Dados!AG479)","v":""}]
[{"$f":"IF(ISERROR(Dados!A480),\"-\",Dados!A480)","v":""},{"$f":"IF(ISERROR(Dados!B480),\"-\",Dados!B480)","v":""},{"$f":"IF(ISERROR(Dados!C480),\"-\",Dados!C480)","v":""},{"$f":"IF(ISERROR(Dados!D480),\"-\",Dados!D480)","v":""},{"$f":"IF(ISERROR(Dados!E480),\"-\",Dados!E480)","v":""},{"$f":"IF(ISERROR(Dados!F480),\"-\",Dados!F480)","v":""},{"$f":"IF(ISERROR(Dados!G480),\"-\",Dados!G480)","v":""},{"$f":"IF(ISERROR(Dados!H480),\"-\",Dados!H480)","v":""},{"$f":"IF(ISERROR(Dados!I480),\"-\",Dados!I480)","v":""},{"$f":"IF(ISERROR(Dados!J480),\"-\",Dados!J480)","v":""},{"$f":"IF(ISERROR(Dados!K480),\"-\",Dados!K480)","v":""},{"$f":"IF(ISERROR(Dados!L480),\"-\",Dados!L480)","v":""},{"$f":"IF(ISERROR(Dados!M480),\"-\",Dados!M480)","v":""},{"$f":"IF(ISERROR(Dados!N480),\"-\",Dados!N480)","v":""},{"$f":"IF(ISERROR(Dados!O480),\"-\",Dados!O480)","v":""},{"$f":"IF(ISERROR(Dados!P480),\"-\",Dados!P480)","v":""},{"$f":"IF(ISERROR(Dados!Q480),\"-\",Dados!Q480)","v":""},{"$f":"IF(ISERROR(Dados!R480),\"-\",Dados!R480)","v":""},{"$f":"IF(ISERROR(Dados!S480),\"-\",Dados!S480)","v":""},{"$f":"IF(ISERROR(Dados!T480),\"-\",Dados!T480)","v":""},{"$f":"IF(ISERROR(Dados!U480),\"-\",Dados!U480)","v":""},{"$f":"IF(ISERROR(Dados!V480),\"-\",Dados!V480)","v":""},{"$f":"IF(ISERROR(Dados!W480),\"-\",Dados!W480)","v":""},{"$f":"IF(ISERROR(Dados!X480),\"-\",Dados!X480)","v":""},{"$f":"IF(ISERROR(Dados!Y480),\"-\",Dados!Y480)","v":""},{"$f":"IF(ISERROR(Dados!Z480),\"-\",Dados!Z480)","v":""},{"$f":"IF(ISERROR(Dados!AA480),\"-\",Dados!AA480)","v":""},{"$f":"IF(ISERROR(Dados!AB480),\"-\",Dados!AB480)","v":""},{"$f":"IF(ISERROR(Dados!AC480),\"-\",Dados!AC480)","v":""},{"$f":"IF(ISERROR(Dados!AD480),\"-\",Dados!AD480)","v":""},{"$f":"IF(ISERROR(Dados!AE480),\"-\",Dados!AE480)","v":""},{"$f":"IF(ISERROR(Dados!AF480),\"-\",Dados!AF480)","v":""},{"$f":"IF(ISERROR(Dados!AG480),\"-\",Dados!AG480)","v":""}]
[{"$f":"IF(ISERROR(Dados!A481),\"-\",Dados!A481)","v":""},{"$f":"IF(ISERROR(Dados!B481),\"-\",Dados!B481)","v":""},{"$f":"IF(ISERROR(Dados!C481),\"-\",Dados!C481)","v":""},{"$f":"IF(ISERROR(Dados!D481),\"-\",Dados!D481)","v":""},{"$f":"IF(ISERROR(Dados!E481),\"-\",Dados!E481)","v":""},{"$f":"IF(ISERROR(Dados!F481),\"-\",Dados!F481)","v":""},{"$f":"IF(ISERROR(Dados!G481),\"-\",Dados!G481)","v":""},{"$f":"IF(ISERROR(Dados!H481),\"-\",Dados!H481)","v":""},{"$f":"IF(ISERROR(Dados!I481),\"-\",Dados!I481)","v":""},{"$f":"IF(ISERROR(Dados!J481),\"-\",Dados!J481)","v":""},{"$f":"IF(ISERROR(Dados!K481),\"-\",Dados!K481)","v":""},{"$f":"IF(ISERROR(Dados!L481),\"-\",Dados!L481)","v":""},{"$f":"IF(ISERROR(Dados!M481),\"-\",Dados!M481)","v":""},{"$f":"IF(ISERROR(Dados!N481),\"-\",Dados!N481)","v":""},{"$f":"IF(ISERROR(Dados!O481),\"-\",Dados!O481)","v":""},{"$f":"IF(ISERROR(Dados!P481),\"-\",Dados!P481)","v":""},{"$f":"IF(ISERROR(Dados!Q481),\"-\",Dados!Q481)","v":""},{"$f":"IF(ISERROR(Dados!R481),\"-\",Dados!R481)","v":""},{"$f":"IF(ISERROR(Dados!S481),\"-\",Dados!S481)","v":""},{"$f":"IF(ISERROR(Dados!T481),\"-\",Dados!T481)","v":""},{"$f":"IF(ISERROR(Dados!U481),\"-\",Dados!U481)","v":""},{"$f":"IF(ISERROR(Dados!V481),\"-\",Dados!V481)","v":""},{"$f":"IF(ISERROR(Dados!W481),\"-\",Dados!W481)","v":""},{"$f":"IF(ISERROR(Dados!X481),\"-\",Dados!X481)","v":""},{"$f":"IF(ISERROR(Dados!Y481),\"-\",Dados!Y481)","v":""},{"$f":"IF(ISERROR(Dados!Z481),\"-\",Dados!Z481)","v":""},{"$f":"IF(ISERROR(Dados!AA481),\"-\",Dados!AA481)","v":""},{"$f":"IF(ISERROR(Dados!AB481),\"-\",Dados!AB481)","v":""},{"$f":"IF(ISERROR(Dados!AC481),\"-\",Dados!AC481)","v":""},{"$f":"IF(ISERROR(Dados!AD481),\"-\",Dados!AD481)","v":""},{"$f":"IF(ISERROR(Dados!AE481),\"-\",Dados!AE481)","v":""},{"$f":"IF(ISERROR(Dados!AF481),\"-\",Dados!AF481)","v":""},{"$f":"IF(ISERROR(Dados!AG481),\"-\",Dados!AG481)","v":""}]
[{"$f":"IF(ISERROR(Dados!A482),\"-\",Dados!A482)","v":""},{"$f":"IF(ISERROR(Dados!B482),\"-\",Dados!B482)","v":""},{"$f":"IF(ISERROR(Dados!C482),\"-\",Dados!C482)","v":""},{"$f":"IF(ISERROR(Dados!D482),\"-\",Dados!D482)","v":""},{"$f":"IF(ISERROR(Dados!E482),\"-\",Dados!E482)","v":""},{"$f":"IF(ISERROR(Dados!F482),\"-\",Dados!F482)","v":""},{"$f":"IF(ISERROR(Dados!G482),\"-\",Dados!G482)","v":""},{"$f":"IF(ISERROR(Dados!H482),\"-\",Dados!H482)","v":""},{"$f":"IF(ISERROR(Dados!I482),\"-\",Dados!I482)","v":""},{"$f":"IF(ISERROR(Dados!J482),\"-\",Dados!J482)","v":""},{"$f":"IF(ISERROR(Dados!K482),\"-\",Dados!K482)","v":""},{"$f":"IF(ISERROR(Dados!L482),\"-\",Dados!L482)","v":""},{"$f":"IF(ISERROR(Dados!M482),\"-\",Dados!M482)","v":""},{"$f":"IF(ISERROR(Dados!N482),\"-\",Dados!N482)","v":""},{"$f":"IF(ISERROR(Dados!O482),\"-\",Dados!O482)","v":""},{"$f":"IF(ISERROR(Dados!P482),\"-\",Dados!P482)","v":""},{"$f":"IF(ISERROR(Dados!Q482),\"-\",Dados!Q482)","v":""},{"$f":"IF(ISERROR(Dados!R482),\"-\",Dados!R482)","v":""},{"$f":"IF(ISERROR(Dados!S482),\"-\",Dados!S482)","v":""},{"$f":"IF(ISERROR(Dados!T482),\"-\",Dados!T482)","v":""},{"$f":"IF(ISERROR(Dados!U482),\"-\",Dados!U482)","v":""},{"$f":"IF(ISERROR(Dados!V482),\"-\",Dados!V482)","v":""},{"$f":"IF(ISERROR(Dados!W482),\"-\",Dados!W482)","v":""},{"$f":"IF(ISERROR(Dados!X482),\"-\",Dados!X482)","v":""},{"$f":"IF(ISERROR(Dados!Y482),\"-\",Dados!Y482)","v":""},{"$f":"IF(ISERROR(Dados!Z482),\"-\",Dados!Z482)","v":""},{"$f":"IF(ISERROR(Dados!AA482),\"-\",Dados!AA482)","v":""},{"$f":"IF(ISERROR(Dados!AB482),\"-\",Dados!AB482)","v":""},{"$f":"IF(ISERROR(Dados!AC482),\"-\",Dados!AC482)","v":""},{"$f":"IF(ISERROR(Dados!AD482),\"-\",Dados!AD482)","v":""},{"$f":"IF(ISERROR(Dados!AE482),\"-\",Dados!AE482)","v":""},{"$f":"IF(ISERROR(Dados!AF482),\"-\",Dados!AF482)","v":""},{"$f":"IF(ISERROR(Dados!AG482),\"-\",Dados!AG482)","v":""}]
[{"$f":"IF(ISERROR(Dados!A483),\"-\",Dados!A483)","v":""},{"$f":"IF(ISERROR(Dados!B483),\"-\",Dados!B483)","v":""},{"$f":"IF(ISERROR(Dados!C483),\"-\",Dados!C483)","v":""},{"$f":"IF(ISERROR(Dados!D483),\"-\",Dados!D483)","v":""},{"$f":"IF(ISERROR(Dados!E483),\"-\",Dados!E483)","v":""},{"$f":"IF(ISERROR(Dados!F483),\"-\",Dados!F483)","v":""},{"$f":"IF(ISERROR(Dados!G483),\"-\",Dados!G483)","v":""},{"$f":"IF(ISERROR(Dados!H483),\"-\",Dados!H483)","v":""},{"$f":"IF(ISERROR(Dados!I483),\"-\",Dados!I483)","v":""},{"$f":"IF(ISERROR(Dados!J483),\"-\",Dados!J483)","v":""},{"$f":"IF(ISERROR(Dados!K483),\"-\",Dados!K483)","v":""},{"$f":"IF(ISERROR(Dados!L483),\"-\",Dados!L483)","v":""},{"$f":"IF(ISERROR(Dados!M483),\"-\",Dados!M483)","v":""},{"$f":"IF(ISERROR(Dados!N483),\"-\",Dados!N483)","v":""},{"$f":"IF(ISERROR(Dados!O483),\"-\",Dados!O483)","v":""},{"$f":"IF(ISERROR(Dados!P483),\"-\",Dados!P483)","v":""},{"$f":"IF(ISERROR(Dados!Q483),\"-\",Dados!Q483)","v":""},{"$f":"IF(ISERROR(Dados!R483),\"-\",Dados!R483)","v":""},{"$f":"IF(ISERROR(Dados!S483),\"-\",Dados!S483)","v":""},{"$f":"IF(ISERROR(Dados!T483),\"-\",Dados!T483)","v":""},{"$f":"IF(ISERROR(Dados!U483),\"-\",Dados!U483)","v":""},{"$f":"IF(ISERROR(Dados!V483),\"-\",Dados!V483)","v":""},{"$f":"IF(ISERROR(Dados!W483),\"-\",Dados!W483)","v":""},{"$f":"IF(ISERROR(Dados!X483),\"-\",Dados!X483)","v":""},{"$f":"IF(ISERROR(Dados!Y483),\"-\",Dados!Y483)","v":""},{"$f":"IF(ISERROR(Dados!Z483),\"-\",Dados!Z483)","v":""},{"$f":"IF(ISERROR(Dados!AA483),\"-\",Dados!AA483)","v":""},{"$f":"IF(ISERROR(Dados!AB483),\"-\",Dados!AB483)","v":""},{"$f":"IF(ISERROR(Dados!AC483),\"-\",Dados!AC483)","v":""},{"$f":"IF(ISERROR(Dados!AD483),\"-\",Dados!AD483)","v":""},{"$f":"IF(ISERROR(Dados!AE483),\"-\",Dados!AE483)","v":""},{"$f":"IF(ISERROR(Dados!AF483),\"-\",Dados!AF483)","v":""},{"$f":"IF(ISERROR(Dados!AG483),\"-\",Dados!AG483)","v":""}]
[{"$f":"IF(ISERROR(Dados!A484),\"-\",Dados!A484)","v":""},{"$f":"IF(ISERROR(Dados!B484),\"-\",Dados!B484)","v":""},{"$f":"IF(ISERROR(Dados!C484),\"-\",Dados!C484)","v":""},{"$f":"IF(ISERROR(Dados!D484),\"-\",Dados!D484)","v":""},{"$f":"IF(ISERROR(Dados!E484),\"-\",Dados!E484)","v":""},{"$f":"IF(ISERROR(Dados!F484),\"-\",Dados!F484)","v":""},{"$f":"IF(ISERROR(Dados!G484),\"-\",Dados!G484)","v":""},{"$f":"IF(ISERROR(Dados!H484),\"-\",Dados!H484)","v":""},{"$f":"IF(ISERROR(Dados!I484),\"-\",Dados!I484)","v":""},{"$f":"IF(ISERROR(Dados!J484),\"-\",Dados!J484)","v":""},{"$f":"IF(ISERROR(Dados!K484),\"-\",Dados!K484)","v":""},{"$f":"IF(ISERROR(Dados!L484),\"-\",Dados!L484)","v":""},{"$f":"IF(ISERROR(Dados!M484),\"-\",Dados!M484)","v":""},{"$f":"IF(ISERROR(Dados!N484),\"-\",Dados!N484)","v":""},{"$f":"IF(ISERROR(Dados!O484),\"-\",Dados!O484)","v":""},{"$f":"IF(ISERROR(Dados!P484),\"-\",Dados!P484)","v":""},{"$f":"IF(ISERROR(Dados!Q484),\"-\",Dados!Q484)","v":""},{"$f":"IF(ISERROR(Dados!R484),\"-\",Dados!R484)","v":""},{"$f":"IF(ISERROR(Dados!S484),\"-\",Dados!S484)","v":""},{"$f":"IF(ISERROR(Dados!T484),\"-\",Dados!T484)","v":""},{"$f":"IF(ISERROR(Dados!U484),\"-\",Dados!U484)","v":""},{"$f":"IF(ISERROR(Dados!V484),\"-\",Dados!V484)","v":""},{"$f":"IF(ISERROR(Dados!W484),\"-\",Dados!W484)","v":""},{"$f":"IF(ISERROR(Dados!X484),\"-\",Dados!X484)","v":""},{"$f":"IF(ISERROR(Dados!Y484),\"-\",Dados!Y484)","v":""},{"$f":"IF(ISERROR(Dados!Z484),\"-\",Dados!Z484)","v":""},{"$f":"IF(ISERROR(Dados!AA484),\"-\",Dados!AA484)","v":""},{"$f":"IF(ISERROR(Dados!AB484),\"-\",Dados!AB484)","v":""},{"$f":"IF(ISERROR(Dados!AC484),\"-\",Dados!AC484)","v":""},{"$f":"IF(ISERROR(Dados!AD484),\"-\",Dados!AD484)","v":""},{"$f":"IF(ISERROR(Dados!AE484),\"-\",Dados!AE484)","v":""},{"$f":"IF(ISERROR(Dados!AF484),\"-\",Dados!AF484)","v":""},{"$f":"IF(ISERROR(Dados!AG484),\"-\",Dados!AG484)","v":""}]
[{"$f":"IF(ISERROR(Dados!A485),\"-\",Dados!A485)","v":""},{"$f":"IF(ISERROR(Dados!B485),\"-\",Dados!B485)","v":""},{"$f":"IF(ISERROR(Dados!C485),\"-\",Dados!C485)","v":""},{"$f":"IF(ISERROR(Dados!D485),\"-\",Dados!D485)","v":""},{"$f":"IF(ISERROR(Dados!E485),\"-\",Dados!E485)","v":""},{"$f":"IF(ISERROR(Dados!F485),\"-\",Dados!F485)","v":""},{"$f":"IF(ISERROR(Dados!G485),\"-\",Dados!G485)","v":""},{"$f":"IF(ISERROR(Dados!H485),\"-\",Dados!H485)","v":""},{"$f":"IF(ISERROR(Dados!I485),\"-\",Dados!I485)","v":""},{"$f":"IF(ISERROR(Dados!J485),\"-\",Dados!J485)","v":""},{"$f":"IF(ISERROR(Dados!K485),\"-\",Dados!K485)","v":""},{"$f":"IF(ISERROR(Dados!L485),\"-\",Dados!L485)","v":""},{"$f":"IF(ISERROR(Dados!M485),\"-\",Dados!M485)","v":""},{"$f":"IF(ISERROR(Dados!N485),\"-\",Dados!N485)","v":""},{"$f":"IF(ISERROR(Dados!O485),\"-\",Dados!O485)","v":""},{"$f":"IF(ISERROR(Dados!P485),\"-\",Dados!P485)","v":""},{"$f":"IF(ISERROR(Dados!Q485),\"-\",Dados!Q485)","v":""},{"$f":"IF(ISERROR(Dados!R485),\"-\",Dados!R485)","v":""},{"$f":"IF(ISERROR(Dados!S485),\"-\",Dados!S485)","v":""},{"$f":"IF(ISERROR(Dados!T485),\"-\",Dados!T485)","v":""},{"$f":"IF(ISERROR(Dados!U485),\"-\",Dados!U485)","v":""},{"$f":"IF(ISERROR(Dados!V485),\"-\",Dados!V485)","v":""},{"$f":"IF(ISERROR(Dados!W485),\"-\",Dados!W485)","v":""},{"$f":"IF(ISERROR(Dados!X485),\"-\",Dados!X485)","v":""},{"$f":"IF(ISERROR(Dados!Y485),\"-\",Dados!Y485)","v":""},{"$f":"IF(ISERROR(Dados!Z485),\"-\",Dados!Z485)","v":""},{"$f":"IF(ISERROR(Dados!AA485),\"-\",Dados!AA485)","v":""},{"$f":"IF(ISERROR(Dados!AB485),\"-\",Dados!AB485)","v":""},{"$f":"IF(ISERROR(Dados!AC485),\"-\",Dados!AC485)","v":""},{"$f":"IF(ISERROR(Dados!AD485),\"-\",Dados!AD485)","v":""},{"$f":"IF(ISERROR(Dados!AE485),\"-\",Dados!AE485)","v":""},{"$f":"IF(ISERROR(Dados!AF485),\"-\",Dados!AF485)","v":""},{"$f":"IF(ISERROR(Dados!AG485),\"-\",Dados!AG485)","v":""}]
[{"$f":"IF(ISERROR(Dados!A486),\"-\",Dados!A486)","v":""},{"$f":"IF(ISERROR(Dados!B486),\"-\",Dados!B486)","v":""},{"$f":"IF(ISERROR(Dados!C486),\"-\",Dados!C486)","v":""},{"$f":"IF(ISERROR(Dados!D486),\"-\",Dados!D486)","v":""},{"$f":"IF(ISERROR(Dados!E486),\"-\",Dados!E486)","v":""},{"$f":"IF(ISERROR(Dados!F486),\"-\",Dados!F486)","v":""},{"$f":"IF(ISERROR(Dados!G486),\"-\",Dados!G486)","v":""},{"$f":"IF(ISERROR(Dados!H486),\"-\",Dados!H486)","v":""},{"$f":"IF(ISERROR(Dados!I486),\"-\",Dados!I486)","v":""},{"$f":"IF(ISERROR(Dados!J486),\"-\",Dados!J486)","v":""},{"$f":"IF(ISERROR(Dados!K486),\"-\",Dados!K486)","v":""},{"$f":"IF(ISERROR(Dados!L486),\"-\",Dados!L486)","v":""},{"$f":"IF(ISERROR(Dados!M486),\"-\",Dados!M486)","v":""},{"$f":"IF(ISERROR(Dados!N486),\"-\",Dados!N486)","v":""},{"$f":"IF(ISERROR(Dados!O486),\"-\",Dados!O486)","v":""},{"$f":"IF(ISERROR(Dados!P486),\"-\",Dados!P486)","v":""},{"$f":"IF(ISERROR(Dados!Q486),\"-\",Dados!Q486)","v":""},{"$f":"IF(ISERROR(Dados!R486),\"-\",Dados!R486)","v":""},{"$f":"IF(ISERROR(Dados!S486),\"-\",Dados!S486)","v":""},{"$f":"IF(ISERROR(Dados!T486),\"-\",Dados!T486)","v":""},{"$f":"IF(ISERROR(Dados!U486),\"-\",Dados!U486)","v":""},{"$f":"IF(ISERROR(Dados!V486),\"-\",Dados!V486)","v":""},{"$f":"IF(ISERROR(Dados!W486),\"-\",Dados!W486)","v":""},{"$f":"IF(ISERROR(Dados!X486),\"-\",Dados!X486)","v":""},{"$f":"IF(ISERROR(Dados!Y486),\"-\",Dados!Y486)","v":""},{"$f":"IF(ISERROR(Dados!Z486),\"-\",Dados!Z486)","v":""},{"$f":"IF(ISERROR(Dados!AA486),\"-\",Dados!AA486)","v":""},{"$f":"IF(ISERROR(Dados!AB486),\"-\",Dados!AB486)","v":""},{"$f":"IF(ISERROR(Dados!AC486),\"-\",Dados!AC486)","v":""},{"$f":"IF(ISERROR(Dados!AD486),\"-\",Dados!AD486)","v":""},{"$f":"IF(ISERROR(Dados!AE486),\"-\",Dados!AE486)","v":""},{"$f":"IF(ISERROR(Dados!AF486),\"-\",Dados!AF486)","v":""},{"$f":"IF(ISERROR(Dados!AG486),\"-\",Dados!AG486)","v":""}]
[{"$f":"IF(ISERROR(Dados!A487),\"-\",Dados!A487)","v":""},{"$f":"IF(ISERROR(Dados!B487),\"-\",Dados!B487)","v":""},{"$f":"IF(ISERROR(Dados!C487),\"-\",Dados!C487)","v":""},{"$f":"IF(ISERROR(Dados!D487),\"-\",Dados!D487)","v":""},{"$f":"IF(ISERROR(Dados!E487),\"-\",Dados!E487)","v":""},{"$f":"IF(ISERROR(Dados!F487),\"-\",Dados!F487)","v":""},{"$f":"IF(ISERROR(Dados!G487),\"-\",Dados!G487)","v":""},{"$f":"IF(ISERROR(Dados!H487),\"-\",Dados!H487)","v":""},{"$f":"IF(ISERROR(Dados!I487),\"-\",Dados!I487)","v":""},{"$f":"IF(ISERROR(Dados!J487),\"-\",Dados!J487)","v":""},{"$f":"IF(ISERROR(Dados!K487),\"-\",Dados!K487)","v":""},{"$f":"IF(ISERROR(Dados!L487),\"-\",Dados!L487)","v":""},{"$f":"IF(ISERROR(Dados!M487),\"-\",Dados!M487)","v":""},{"$f":"IF(ISERROR(Dados!N487),\"-\",Dados!N487)","v":""},{"$f":"IF(ISERROR(Dados!O487),\"-\",Dados!O487)","v":""},{"$f":"IF(ISERROR(Dados!P487),\"-\",Dados!P487)","v":""},{"$f":"IF(ISERROR(Dados!Q487),\"-\",Dados!Q487)","v":""},{"$f":"IF(ISERROR(Dados!R487),\"-\",Dados!R487)","v":""},{"$f":"IF(ISERROR(Dados!S487),\"-\",Dados!S487)","v":""},{"$f":"IF(ISERROR(Dados!T487),\"-\",Dados!T487)","v":""},{"$f":"IF(ISERROR(Dados!U487),\"-\",Dados!U487)","v":""},{"$f":"IF(ISERROR(Dados!V487),\"-\",Dados!V487)","v":""},{"$f":"IF(ISERROR(Dados!W487),\"-\",Dados!W487)","v":""},{"$f":"IF(ISERROR(Dados!X487),\"-\",Dados!X487)","v":""},{"$f":"IF(ISERROR(Dados!Y487),\"-\",Dados!Y487)","v":""},{"$f":"IF(ISERROR(Dados!Z487),\"-\",Dados!Z487)","v":""},{"$f":"IF(ISERROR(Dados!AA487),\"-\",Dados!AA487)","v":""},{"$f":"IF(ISERROR(Dados!AB487),\"-\",Dados!AB487)","v":""},{"$f":"IF(ISERROR(Dados!AC487),\"-\",Dados!AC487)","v":""},{"$f":"IF(ISERROR(Dados!AD487),\"-\",Dados!AD487)","v":""},{"$f":"IF(ISERROR(Dados!AE487),\"-\",Dados!AE487)","v":""},{"$f":"IF(ISERROR(Dados!AF487),\"-\",Dados!AF487)","v":""},{"$f":"IF(ISERROR(Dados!AG487),\"-\",Dados!AG487)","v":""}]
[{"$f":"IF(ISERROR(Dados!A488),\"-\",Dados!A488)","v":""},{"$f":"IF(ISERROR(Dados!B488),\"-\",Dados!B488)","v":""},{"$f":"IF(ISERROR(Dados!C488),\"-\",Dados!C488)","v":""},{"$f":"IF(ISERROR(Dados!D488),\"-\",Dados!D488)","v":""},{"$f":"IF(ISERROR(Dados!E488),\"-\",Dados!E488)","v":""},{"$f":"IF(ISERROR(Dados!F488),\"-\",Dados!F488)","v":""},{"$f":"IF(ISERROR(Dados!G488),\"-\",Dados!G488)","v":""},{"$f":"IF(ISERROR(Dados!H488),\"-\",Dados!H488)","v":""},{"$f":"IF(ISERROR(Dados!I488),\"-\",Dados!I488)","v":""},{"$f":"IF(ISERROR(Dados!J488),\"-\",Dados!J488)","v":""},{"$f":"IF(ISERROR(Dados!K488),\"-\",Dados!K488)","v":""},{"$f":"IF(ISERROR(Dados!L488),\"-\",Dados!L488)","v":""},{"$f":"IF(ISERROR(Dados!M488),\"-\",Dados!M488)","v":""},{"$f":"IF(ISERROR(Dados!N488),\"-\",Dados!N488)","v":""},{"$f":"IF(ISERROR(Dados!O488),\"-\",Dados!O488)","v":""},{"$f":"IF(ISERROR(Dados!P488),\"-\",Dados!P488)","v":""},{"$f":"IF(ISERROR(Dados!Q488),\"-\",Dados!Q488)","v":""},{"$f":"IF(ISERROR(Dados!R488),\"-\",Dados!R488)","v":""},{"$f":"IF(ISERROR(Dados!S488),\"-\",Dados!S488)","v":""},{"$f":"IF(ISERROR(Dados!T488),\"-\",Dados!T488)","v":""},{"$f":"IF(ISERROR(Dados!U488),\"-\",Dados!U488)","v":""},{"$f":"IF(ISERROR(Dados!V488),\"-\",Dados!V488)","v":""},{"$f":"IF(ISERROR(Dados!W488),\"-\",Dados!W488)","v":""},{"$f":"IF(ISERROR(Dados!X488),\"-\",Dados!X488)","v":""},{"$f":"IF(ISERROR(Dados!Y488),\"-\",Dados!Y488)","v":""},{"$f":"IF(ISERROR(Dados!Z488),\"-\",Dados!Z488)","v":""},{"$f":"IF(ISERROR(Dados!AA488),\"-\",Dados!AA488)","v":""},{"$f":"IF(ISERROR(Dados!AB488),\"-\",Dados!AB488)","v":""},{"$f":"IF(ISERROR(Dados!AC488),\"-\",Dados!AC488)","v":""},{"$f":"IF(ISERROR(Dados!AD488),\"-\",Dados!AD488)","v":""},{"$f":"IF(ISERROR(Dados!AE488),\"-\",Dados!AE488)","v":""},{"$f":"IF(ISERROR(Dados!AF488),\"-\",Dados!AF488)","v":""},{"$f":"IF(ISERROR(Dados!AG488),\"-\",Dados!AG488)","v":""}]
[{"$f":"IF(ISERROR(Dados!A489),\"-\",Dados!A489)","v":""},{"$f":"IF(ISERROR(Dados!B489),\"-\",Dados!B489)","v":""},{"$f":"IF(ISERROR(Dados!C489),\"-\",Dados!C489)","v":""},{"$f":"IF(ISERROR(Dados!D489),\"-\",Dados!D489)","v":""},{"$f":"IF(ISERROR(Dados!E489),\"-\",Dados!E489)","v":""},{"$f":"IF(ISERROR(Dados!F489),\"-\",Dados!F489)","v":""},{"$f":"IF(ISERROR(Dados!G489),\"-\",Dados!G489)","v":""},{"$f":"IF(ISERROR(Dados!H489),\"-\",Dados!H489)","v":""},{"$f":"IF(ISERROR(Dados!I489),\"-\",Dados!I489)","v":""},{"$f":"IF(ISERROR(Dados!J489),\"-\",Dados!J489)","v":""},{"$f":"IF(ISERROR(Dados!K489),\"-\",Dados!K489)","v":""},{"$f":"IF(ISERROR(Dados!L489),\"-\",Dados!L489)","v":""},{"$f":"IF(ISERROR(Dados!M489),\"-\",Dados!M489)","v":""},{"$f":"IF(ISERROR(Dados!N489),\"-\",Dados!N489)","v":""},{"$f":"IF(ISERROR(Dados!O489),\"-\",Dados!O489)","v":""},{"$f":"IF(ISERROR(Dados!P489),\"-\",Dados!P489)","v":""},{"$f":"IF(ISERROR(Dados!Q489),\"-\",Dados!Q489)","v":""},{"$f":"IF(ISERROR(Dados!R489),\"-\",Dados!R489)","v":""},{"$f":"IF(ISERROR(Dados!S489),\"-\",Dados!S489)","v":""},{"$f":"IF(ISERROR(Dados!T489),\"-\",Dados!T489)","v":""},{"$f":"IF(ISERROR(Dados!U489),\"-\",Dados!U489)","v":""},{"$f":"IF(ISERROR(Dados!V489),\"-\",Dados!V489)","v":""},{"$f":"IF(ISERROR(Dados!W489),\"-\",Dados!W489)","v":""},{"$f":"IF(ISERROR(Dados!X489),\"-\",Dados!X489)","v":""},{"$f":"IF(ISERROR(Dados!Y489),\"-\",Dados!Y489)","v":""},{"$f":"IF(ISERROR(Dados!Z489),\"-\",Dados!Z489)","v":""},{"$f":"IF(ISERROR(Dados!AA489),\"-\",Dados!AA489)","v":""},{"$f":"IF(ISERROR(Dados!AB489),\"-\",Dados!AB489)","v":""},{"$f":"IF(ISERROR(Dados!AC489),\"-\",Dados!AC489)","v":""},{"$f":"IF(ISERROR(Dados!AD489),\"-\",Dados!AD489)","v":""},{"$f":"IF(ISERROR(Dados!AE489),\"-\",Dados!AE489)","v":""},{"$f":"IF(ISERROR(Dados!AF489),\"-\",Dados!AF489)","v":""},{"$f":"IF(ISERROR(Dados!AG489),\"-\",Dados!AG489)","v":""}]
[{"$f":"IF(ISERROR(Dados!A490),\"-\",Dados!A490)","v":""},{"$f":"IF(ISERROR(Dados!B490),\"-\",Dados!B490)","v":""},{"$f":"IF(ISERROR(Dados!C490),\"-\",Dados!C490)","v":""},{"$f":"IF(ISERROR(Dados!D490),\"-\",Dados!D490)","v":""},{"$f":"IF(ISERROR(Dados!E490),\"-\",Dados!E490)","v":""},{"$f":"IF(ISERROR(Dados!F490),\"-\",Dados!F490)","v":""},{"$f":"IF(ISERROR(Dados!G490),\"-\",Dados!G490)","v":""},{"$f":"IF(ISERROR(Dados!H490),\"-\",Dados!H490)","v":""},{"$f":"IF(ISERROR(Dados!I490),\"-\",Dados!I490)","v":""},{"$f":"IF(ISERROR(Dados!J490),\"-\",Dados!J490)","v":""},{"$f":"IF(ISERROR(Dados!K490),\"-\",Dados!K490)","v":""},{"$f":"IF(ISERROR(Dados!L490),\"-\",Dados!L490)","v":""},{"$f":"IF(ISERROR(Dados!M490),\"-\",Dados!M490)","v":""},{"$f":"IF(ISERROR(Dados!N490),\"-\",Dados!N490)","v":""},{"$f":"IF(ISERROR(Dados!O490),\"-\",Dados!O490)","v":""},{"$f":"IF(ISERROR(Dados!P490),\"-\",Dados!P490)","v":""},{"$f":"IF(ISERROR(Dados!Q490),\"-\",Dados!Q490)","v":""},{"$f":"IF(ISERROR(Dados!R490),\"-\",Dados!R490)","v":""},{"$f":"IF(ISERROR(Dados!S490),\"-\",Dados!S490)","v":""},{"$f":"IF(ISERROR(Dados!T490),\"-\",Dados!T490)","v":""},{"$f":"IF(ISERROR(Dados!U490),\"-\",Dados!U490)","v":""},{"$f":"IF(ISERROR(Dados!V490),\"-\",Dados!V490)","v":""},{"$f":"IF(ISERROR(Dados!W490),\"-\",Dados!W490)","v":""},{"$f":"IF(ISERROR(Dados!X490),\"-\",Dados!X490)","v":""},{"$f":"IF(ISERROR(Dados!Y490),\"-\",Dados!Y490)","v":""},{"$f":"IF(ISERROR(Dados!Z490),\"-\",Dados!Z490)","v":""},{"$f":"IF(ISERROR(Dados!AA490),\"-\",Dados!AA490)","v":""},{"$f":"IF(ISERROR(Dados!AB490),\"-\",Dados!AB490)","v":""},{"$f":"IF(ISERROR(Dados!AC490),\"-\",Dados!AC490)","v":""},{"$f":"IF(ISERROR(Dados!AD490),\"-\",Dados!AD490)","v":""},{"$f":"IF(ISERROR(Dados!AE490),\"-\",Dados!AE490)","v":""},{"$f":"IF(ISERROR(Dados!AF490),\"-\",Dados!AF490)","v":""},{"$f":"IF(ISERROR(Dados!AG490),\"-\",Dados!AG490)","v":""}]
[{"$f":"IF(ISERROR(Dados!A491),\"-\",Dados!A491)","v":""},{"$f":"IF(ISERROR(Dados!B491),\"-\",Dados!B491)","v":""},{"$f":"IF(ISERROR(Dados!C491),\"-\",Dados!C491)","v":""},{"$f":"IF(ISERROR(Dados!D491),\"-\",Dados!D491)","v":""},{"$f":"IF(ISERROR(Dados!E491),\"-\",Dados!E491)","v":""},{"$f":"IF(ISERROR(Dados!F491),\"-\",Dados!F491)","v":""},{"$f":"IF(ISERROR(Dados!G491),\"-\",Dados!G491)","v":""},{"$f":"IF(ISERROR(Dados!H491),\"-\",Dados!H491)","v":""},{"$f":"IF(ISERROR(Dados!I491),\"-\",Dados!I491)","v":""},{"$f":"IF(ISERROR(Dados!J491),\"-\",Dados!J491)","v":""},{"$f":"IF(ISERROR(Dados!K491),\"-\",Dados!K491)","v":""},{"$f":"IF(ISERROR(Dados!L491),\"-\",Dados!L491)","v":""},{"$f":"IF(ISERROR(Dados!M491),\"-\",Dados!M491)","v":""},{"$f":"IF(ISERROR(Dados!N491),\"-\",Dados!N491)","v":""},{"$f":"IF(ISERROR(Dados!O491),\"-\",Dados!O491)","v":""},{"$f":"IF(ISERROR(Dados!P491),\"-\",Dados!P491)","v":""},{"$f":"IF(ISERROR(Dados!Q491),\"-\",Dados!Q491)","v":""},{"$f":"IF(ISERROR(Dados!R491),\"-\",Dados!R491)","v":""},{"$f":"IF(ISERROR(Dados!S491),\"-\",Dados!S491)","v":""},{"$f":"IF(ISERROR(Dados!T491),\"-\",Dados!T491)","v":""},{"$f":"IF(ISERROR(Dados!U491),\"-\",Dados!U491)","v":""},{"$f":"IF(ISERROR(Dados!V491),\"-\",Dados!V491)","v":""},{"$f":"IF(ISERROR(Dados!W491),\"-\",Dados!W491)","v":""},{"$f":"IF(ISERROR(Dados!X491),\"-\",Dados!X491)","v":""},{"$f":"IF(ISERROR(Dados!Y491),\"-\",Dados!Y491)","v":""},{"$f":"IF(ISERROR(Dados!Z491),\"-\",Dados!Z491)","v":""},{"$f":"IF(ISERROR(Dados!AA491),\"-\",Dados!AA491)","v":""},{"$f":"IF(ISERROR(Dados!AB491),\"-\",Dados!AB491)","v":""},{"$f":"IF(ISERROR(Dados!AC491),\"-\",Dados!AC491)","v":""},{"$f":"IF(ISERROR(Dados!AD491),\"-\",Dados!AD491)","v":""},{"$f":"IF(ISERROR(Dados!AE491),\"-\",Dados!AE491)","v":""},{"$f":"IF(ISERROR(Dados!AF491),\"-\",Dados!AF491)","v":""},{"$f":"IF(ISERROR(Dados!AG491),\"-\",Dados!AG491)","v":""}]
[{"$f":"IF(ISERROR(Dados!A492),\"-\",Dados!A492)","v":""},{"$f":"IF(ISERROR(Dados!B492),\"-\",Dados!B492)","v":""},{"$f":"IF(ISERROR(Dados!C492),\"-\",Dados!C492)","v":""},{"$f":"IF(ISERROR(Dados!D492),\"-\",Dados!D492)","v":""},{"$f":"IF(ISERROR(Dados!E492),\"-\",Dados!E492)","v":""},{"$f":"IF(ISERROR(Dados!F492),\"-\",Dados!F492)","v":""},{"$f":"IF(ISERROR(Dados!G492),\"-\",Dados!G492)","v":""},{"$f":"IF(ISERROR(Dados!H492),\"-\",Dados!H492)","v":""},{"$f":"IF(ISERROR(Dados!I492),\"-\",Dados!I492)","v":""},{"$f":"IF(ISERROR(Dados!J492),\"-\",Dados!J492)","v":""},{"$f":"IF(ISERROR(Dados!K492),\"-\",Dados!K492)","v":""},{"$f":"IF(ISERROR(Dados!L492),\"-\",Dados!L492)","v":""},{"$f":"IF(ISERROR(Dados!M492),\"-\",Dados!M492)","v":""},{"$f":"IF(ISERROR(Dados!N492),\"-\",Dados!N492)","v":""},{"$f":"IF(ISERROR(Dados!O492),\"-\",Dados!O492)","v":""},{"$f":"IF(ISERROR(Dados!P492),\"-\",Dados!P492)","v":""},{"$f":"IF(ISERROR(Dados!Q492),\"-\",Dados!Q492)","v":""},{"$f":"IF(ISERROR(Dados!R492),\"-\",Dados!R492)","v":""},{"$f":"IF(ISERROR(Dados!S492),\"-\",Dados!S492)","v":""},{"$f":"IF(ISERROR(Dados!T492),\"-\",Dados!T492)","v":""},{"$f":"IF(ISERROR(Dados!U492),\"-\",Dados!U492)","v":""},{"$f":"IF(ISERROR(Dados!V492),\"-\",Dados!V492)","v":""},{"$f":"IF(ISERROR(Dados!W492),\"-\",Dados!W492)","v":""},{"$f":"IF(ISERROR(Dados!X492),\"-\",Dados!X492)","v":""},{"$f":"IF(ISERROR(Dados!Y492),\"-\",Dados!Y492)","v":""},{"$f":"IF(ISERROR(Dados!Z492),\"-\",Dados!Z492)","v":""},{"$f":"IF(ISERROR(Dados!AA492),\"-\",Dados!AA492)","v":""},{"$f":"IF(ISERROR(Dados!AB492),\"-\",Dados!AB492)","v":""},{"$f":"IF(ISERROR(Dados!AC492),\"-\",Dados!AC492)","v":""},{"$f":"IF(ISERROR(Dados!AD492),\"-\",Dados!AD492)","v":""},{"$f":"IF(ISERROR(Dados!AE492),\"-\",Dados!AE492)","v":""},{"$f":"IF(ISERROR(Dados!AF492),\"-\",Dados!AF492)","v":""},{"$f":"IF(ISERROR(Dados!AG492),\"-\",Dados!AG492)","v":""}]
[{"$f":"IF(ISERROR(Dados!A493),\"-\",Dados!A493)","v":""},{"$f":"IF(ISERROR(Dados!B493),\"-\",Dados!B493)","v":""},{"$f":"IF(ISERROR(Dados!C493),\"-\",Dados!C493)","v":""},{"$f":"IF(ISERROR(Dados!D493),\"-\",Dados!D493)","v":""},{"$f":"IF(ISERROR(Dados!E493),\"-\",Dados!E493)","v":""},{"$f":"IF(ISERROR(Dados!F493),\"-\",Dados!F493)","v":""},{"$f":"IF(ISERROR(Dados!G493),\"-\",Dados!G493)","v":""},{"$f":"IF(ISERROR(Dados!H493),\"-\",Dados!H493)","v":""},{"$f":"IF(ISERROR(Dados!I493),\"-\",Dados!I493)","v":""},{"$f":"IF(ISERROR(Dados!J493),\"-\",Dados!J493)","v":""},{"$f":"IF(ISERROR(Dados!K493),\"-\",Dados!K493)","v":""},{"$f":"IF(ISERROR(Dados!L493),\"-\",Dados!L493)","v":""},{"$f":"IF(ISERROR(Dados!M493),\"-\",Dados!M493)","v":""},{"$f":"IF(ISERROR(Dados!N493),\"-\",Dados!N493)","v":""},{"$f":"IF(ISERROR(Dados!O493),\"-\",Dados!O493)","v":""},{"$f":"IF(ISERROR(Dados!P493),\"-\",Dados!P493)","v":""},{"$f":"IF(ISERROR(Dados!Q493),\"-\",Dados!Q493)","v":""},{"$f":"IF(ISERROR(Dados!R493),\"-\",Dados!R493)","v":""},{"$f":"IF(ISERROR(Dados!S493),\"-\",Dados!S493)","v":""},{"$f":"IF(ISERROR(Dados!T493),\"-\",Dados!T493)","v":""},{"$f":"IF(ISERROR(Dados!U493),\"-\",Dados!U493)","v":""},{"$f":"IF(ISERROR(Dados!V493),\"-\",Dados!V493)","v":""},{"$f":"IF(ISERROR(Dados!W493),\"-\",Dados!W493)","v":""},{"$f":"IF(ISERROR(Dados!X493),\"-\",Dados!X493)","v":""},{"$f":"IF(ISERROR(Dados!Y493),\"-\",Dados!Y493)","v":""},{"$f":"IF(ISERROR(Dados!Z493),\"-\",Dados!Z493)","v":""},{"$f":"IF(ISERROR(Dados!AA493),\"-\",Dados!AA493)","v":""},{"$f":"IF(ISERROR(Dados!AB493),\"-\",Dados!AB493)","v":""},{"$f":"IF(ISERROR(Dados!AC493),\"-\",Dados!AC493)","v":""},{"$f":"IF(ISERROR(Dados!AD493),\"-\",Dados!AD493)","v":""},{"$f":"IF(ISERROR(Dados!AE493),\"-\",Dados!AE493)","v":""},{"$f":"IF(ISERROR(Dados!AF493),\"-\",Dados!AF493)","v":""},{"$f":"IF(ISERROR(Dados!AG493),\"-\",Dados!AG493)","v":""}]
[{"$f":"IF(ISERROR(Dados!A494),\"-\",Dados!A494)","v":""},{"$f":"IF(ISERROR(Dados!B494),\"-\",Dados!B494)","v":""},{"$f":"IF(ISERROR(Dados!C494),\"-\",Dados!C494)","v":""},{"$f":"IF(ISERROR(Dados!D494),\"-\",Dados!D494)","v":""},{"$f":"IF(ISERROR(Dados!E494),\"-\",Dados!E494)","v":""},{"$f":"IF(ISERROR(Dados!F494),\"-\",Dados!F494)","v":""},{"$f":"IF(ISERROR(Dados!G494),\"-\",Dados!G494)","v":""},{"$f":"IF(ISERROR(Dados!H494),\"-\",Dados!H494)","v":""},{"$f":"IF(ISERROR(Dados!I494),\"-\",Dados!I494)","v":""},{"$f":"IF(ISERROR(Dados!J494),\"-\",Dados!J494)","v":""},{"$f":"IF(ISERROR(Dados!K494),\"-\",Dados!K494)","v":""},{"$f":"IF(ISERROR(Dados!L494),\"-\",Dados!L494)","v":""},{"$f":"IF(ISERROR(Dados!M494),\"-\",Dados!M494)","v":""},{"$f":"IF(ISERROR(Dados!N494),\"-\",Dados!N494)","v":""},{"$f":"IF(ISERROR(Dados!O494),\"-\",Dados!O494)","v":""},{"$f":"IF(ISERROR(Dados!P494),\"-\",Dados!P494)","v":""},{"$f":"IF(ISERROR(Dados!Q494),\"-\",Dados!Q494)","v":""},{"$f":"IF(ISERROR(Dados!R494),\"-\",Dados!R494)","v":""},{"$f":"IF(ISERROR(Dados!S494),\"-\",Dados!S494)","v":""},{"$f":"IF(ISERROR(Dados!T494),\"-\",Dados!T494)","v":""},{"$f":"IF(ISERROR(Dados!U494),\"-\",Dados!U494)","v":""},{"$f":"IF(ISERROR(Dados!V494),\"-\",Dados!V494)","v":""},{"$f":"IF(ISERROR(Dados!W494),\"-\",Dados!W494)","v":""},{"$f":"IF(ISERROR(Dados!X494),\"-\",Dados!X494)","v":""},{"$f":"IF(ISERROR(Dados!Y494),\"-\",Dados!Y494)","v":""},{"$f":"IF(ISERROR(Dados!Z494),\"-\",Dados!Z494)","v":""},{"$f":"IF(ISERROR(Dados!AA494),\"-\",Dados!AA494)","v":""},{"$f":"IF(ISERROR(Dados!AB494),\"-\",Dados!AB494)","v":""},{"$f":"IF(ISERROR(Dados!AC494),\"-\",Dados!AC494)","v":""},{"$f":"IF(ISERROR(Dados!AD494),\"-\",Dados!AD494)","v":""},{"$f":"IF(ISERROR(Dados!AE494),\"-\",Dados!AE494)","v":""},{"$f":"IF(ISERROR(Dados!AF494),\"-\",Dados!AF494)","v":""},{"$f":"IF(ISERROR(Dados!AG494),\"-\",Dados!AG494)","v":""}]
[{"$f":"IF(ISERROR(Dados!A495),\"-\",Dados!A495)","v":""},{"$f":"IF(ISERROR(Dados!B495),\"-\",Dados!B495)","v":""},{"$f":"IF(ISERROR(Dados!C495),\"-\",Dados!C495)","v":""},{"$f":"IF(ISERROR(Dados!D495),\"-\",Dados!D495)","v":""},{"$f":"IF(ISERROR(Dados!E495),\"-\",Dados!E495)","v":""},{"$f":"IF(ISERROR(Dados!F495),\"-\",Dados!F495)","v":""},{"$f":"IF(ISERROR(Dados!G495),\"-\",Dados!G495)","v":""},{"$f":"IF(ISERROR(Dados!H495),\"-\",Dados!H495)","v":""},{"$f":"IF(ISERROR(Dados!I495),\"-\",Dados!I495)","v":""},{"$f":"IF(ISERROR(Dados!J495),\"-\",Dados!J495)","v":""},{"$f":"IF(ISERROR(Dados!K495),\"-\",Dados!K495)","v":""},{"$f":"IF(ISERROR(Dados!L495),\"-\",Dados!L495)","v":""},{"$f":"IF(ISERROR(Dados!M495),\"-\",Dados!M495)","v":""},{"$f":"IF(ISERROR(Dados!N495),\"-\",Dados!N495)","v":""},{"$f":"IF(ISERROR(Dados!O495),\"-\",Dados!O495)","v":""},{"$f":"IF(ISERROR(Dados!P495),\"-\",Dados!P495)","v":""},{"$f":"IF(ISERROR(Dados!Q495),\"-\",Dados!Q495)","v":""},{"$f":"IF(ISERROR(Dados!R495),\"-\",Dados!R495)","v":""},{"$f":"IF(ISERROR(Dados!S495),\"-\",Dados!S495)","v":""},{"$f":"IF(ISERROR(Dados!T495),\"-\",Dados!T495)","v":""},{"$f":"IF(ISERROR(Dados!U495),\"-\",Dados!U495)","v":""},{"$f":"IF(ISERROR(Dados!V495),\"-\",Dados!V495)","v":""},{"$f":"IF(ISERROR(Dados!W495),\"-\",Dados!W495)","v":""},{"$f":"IF(ISERROR(Dados!X495),\"-\",Dados!X495)","v":""},{"$f":"IF(ISERROR(Dados!Y495),\"-\",Dados!Y495)","v":""},{"$f":"IF(ISERROR(Dados!Z495),\"-\",Dados!Z495)","v":""},{"$f":"IF(ISERROR(Dados!AA495),\"-\",Dados!AA495)","v":""},{"$f":"IF(ISERROR(Dados!AB495),\"-\",Dados!AB495)","v":""},{"$f":"IF(ISERROR(Dados!AC495),\"-\",Dados!AC495)","v":""},{"$f":"IF(ISERROR(Dados!AD495),\"-\",Dados!AD495)","v":""},{"$f":"IF(ISERROR(Dados!AE495),\"-\",Dados!AE495)","v":""},{"$f":"IF(ISERROR(Dados!AF495),\"-\",Dados!AF495)","v":""},{"$f":"IF(ISERROR(Dados!AG495),\"-\",Dados!AG495)","v":""}]
[{"$f":"IF(ISERROR(Dados!A496),\"-\",Dados!A496)","v":""},{"$f":"IF(ISERROR(Dados!B496),\"-\",Dados!B496)","v":""},{"$f":"IF(ISERROR(Dados!C496),\"-\",Dados!C496)","v":""},{"$f":"IF(ISERROR(Dados!D496),\"-\",Dados!D496)","v":""},{"$f":"IF(ISERROR(Dados!E496),\"-\",Dados!E496)","v":""},{"$f":"IF(ISERROR(Dados!F496),\"-\",Dados!F496)","v":""},{"$f":"IF(ISERROR(Dados!G496),\"-\",Dados!G496)","v":""},{"$f":"IF(ISERROR(Dados!H496),\"-\",Dados!H496)","v":""},{"$f":"IF(ISERROR(Dados!I496),\"-\",Dados!I496)","v":""},{"$f":"IF(ISERROR(Dados!J496),\"-\",Dados!J496)","v":""},{"$f":"IF(ISERROR(Dados!K496),\"-\",Dados!K496)","v":""},{"$f":"IF(ISERROR(Dados!L496),\"-\",Dados!L496)","v":""},{"$f":"IF(ISERROR(Dados!M496),\"-\",Dados!M496)","v":""},{"$f":"IF(ISERROR(Dados!N496),\"-\",Dados!N496)","v":""},{"$f":"IF(ISERROR(Dados!O496),\"-\",Dados!O496)","v":""},{"$f":"IF(ISERROR(Dados!P496),\"-\",Dados!P496)","v":""},{"$f":"IF(ISERROR(Dados!Q496),\"-\",Dados!Q496)","v":""},{"$f":"IF(ISERROR(Dados!R496),\"-\",Dados!R496)","v":""},{"$f":"IF(ISERROR(Dados!S496),\"-\",Dados!S496)","v":""},{"$f":"IF(ISERROR(Dados!T496),\"-\",Dados!T496)","v":""},{"$f":"IF(ISERROR(Dados!U496),\"-\",Dados!U496)","v":""},{"$f":"IF(ISERROR(Dados!V496),\"-\",Dados!V496)","v":""},{"$f":"IF(ISERROR(Dados!W496),\"-\",Dados!W496)","v":""},{"$f":"IF(ISERROR(Dados!X496),\"-\",Dados!X496)","v":""},{"$f":"IF(ISERROR(Dados!Y496),\"-\",Dados!Y496)","v":""},{"$f":"IF(ISERROR(Dados!Z496),\"-\",Dados!Z496)","v":""},{"$f":"IF(ISERROR(Dados!AA496),\"-\",Dados!AA496)","v":""},{"$f":"IF(ISERROR(Dados!AB496),\"-\",Dados!AB496)","v":""},{"$f":"IF(ISERROR(Dados!AC496),\"-\",Dados!AC496)","v":""},{"$f":"IF(ISERROR(Dados!AD496),\"-\",Dados!AD496)","v":""},{"$f":"IF(ISERROR(Dados!AE496),\"-\",Dados!AE496)","v":""},{"$f":"IF(ISERROR(Dados!AF496),\"-\",Dados!AF496)","v":""},{"$f":"IF(ISERROR(Dados!AG496),\"-\",Dados!AG496)","v":""}]
[{"$f":"IF(ISERROR(Dados!A497),\"-\",Dados!A497)","v":""},{"$f":"IF(ISERROR(Dados!B497),\"-\",Dados!B497)","v":""},{"$f":"IF(ISERROR(Dados!C497),\"-\",Dados!C497)","v":""},{"$f":"IF(ISERROR(Dados!D497),\"-\",Dados!D497)","v":""},{"$f":"IF(ISERROR(Dados!E497),\"-\",Dados!E497)","v":""},{"$f":"IF(ISERROR(Dados!F497),\"-\",Dados!F497)","v":""},{"$f":"IF(ISERROR(Dados!G497),\"-\",Dados!G497)","v":""},{"$f":"IF(ISERROR(Dados!H497),\"-\",Dados!H497)","v":""},{"$f":"IF(ISERROR(Dados!I497),\"-\",Dados!I497)","v":""},{"$f":"IF(ISERROR(Dados!J497),\"-\",Dados!J497)","v":""},{"$f":"IF(ISERROR(Dados!K497),\"-\",Dados!K497)","v":""},{"$f":"IF(ISERROR(Dados!L497),\"-\",Dados!L497)","v":""},{"$f":"IF(ISERROR(Dados!M497),\"-\",Dados!M497)","v":""},{"$f":"IF(ISERROR(Dados!N497),\"-\",Dados!N497)","v":""},{"$f":"IF(ISERROR(Dados!O497),\"-\",Dados!O497)","v":""},{"$f":"IF(ISERROR(Dados!P497),\"-\",Dados!P497)","v":""},{"$f":"IF(ISERROR(Dados!Q497),\"-\",Dados!Q497)","v":""},{"$f":"IF(ISERROR(Dados!R497),\"-\",Dados!R497)","v":""},{"$f":"IF(ISERROR(Dados!S497),\"-\",Dados!S497)","v":""},{"$f":"IF(ISERROR(Dados!T497),\"-\",Dados!T497)","v":""},{"$f":"IF(ISERROR(Dados!U497),\"-\",Dados!U497)","v":""},{"$f":"IF(ISERROR(Dados!V497),\"-\",Dados!V497)","v":""},{"$f":"IF(ISERROR(Dados!W497),\"-\",Dados!W497)","v":""},{"$f":"IF(ISERROR(Dados!X497),\"-\",Dados!X497)","v":""},{"$f":"IF(ISERROR(Dados!Y497),\"-\",Dados!Y497)","v":""},{"$f":"IF(ISERROR(Dados!Z497),\"-\",Dados!Z497)","v":""},{"$f":"IF(ISERROR(Dados!AA497),\"-\",Dados!AA497)","v":""},{"$f":"IF(ISERROR(Dados!AB497),\"-\",Dados!AB497)","v":""},{"$f":"IF(ISERROR(Dados!AC497),\"-\",Dados!AC497)","v":""},{"$f":"IF(ISERROR(Dados!AD497),\"-\",Dados!AD497)","v":""},{"$f":"IF(ISERROR(Dados!AE497),\"-\",Dados!AE497)","v":""},{"$f":"IF(ISERROR(Dados!AF497),\"-\",Dados!AF497)","v":""},{"$f":"IF(ISERROR(Dados!AG497),\"-\",Dados!AG497)","v":""}]
[{"$f":"IF(ISERROR(Dados!A498),\"-\",Dados!A498)","v":""},{"$f":"IF(ISERROR(Dados!B498),\"-\",Dados!B498)","v":""},{"$f":"IF(ISERROR(Dados!C498),\"-\",Dados!C498)","v":""},{"$f":"IF(ISERROR(Dados!D498),\"-\",Dados!D498)","v":""},{"$f":"IF(ISERROR(Dados!E498),\"-\",Dados!E498)","v":""},{"$f":"IF(ISERROR(Dados!F498),\"-\",Dados!F498)","v":""},{"$f":"IF(ISERROR(Dados!G498),\"-\",Dados!G498)","v":""},{"$f":"IF(ISERROR(Dados!H498),\"-\",Dados!H498)","v":""},{"$f":"IF(ISERROR(Dados!I498),\"-\",Dados!I498)","v":""},{"$f":"IF(ISERROR(Dados!J498),\"-\",Dados!J498)","v":""},{"$f":"IF(ISERROR(Dados!K498),\"-\",Dados!K498)","v":""},{"$f":"IF(ISERROR(Dados!L498),\"-\",Dados!L498)","v":""},{"$f":"IF(ISERROR(Dados!M498),\"-\",Dados!M498)","v":""},{"$f":"IF(ISERROR(Dados!N498),\"-\",Dados!N498)","v":""},{"$f":"IF(ISERROR(Dados!O498),\"-\",Dados!O498)","v":""},{"$f":"IF(ISERROR(Dados!P498),\"-\",Dados!P498)","v":""},{"$f":"IF(ISERROR(Dados!Q498),\"-\",Dados!Q498)","v":""},{"$f":"IF(ISERROR(Dados!R498),\"-\",Dados!R498)","v":""},{"$f":"IF(ISERROR(Dados!S498),\"-\",Dados!S498)","v":""},{"$f":"IF(ISERROR(Dados!T498),\"-\",Dados!T498)","v":""},{"$f":"IF(ISERROR(Dados!U498),\"-\",Dados!U498)","v":""},{"$f":"IF(ISERROR(Dados!V498),\"-\",Dados!V498)","v":""},{"$f":"IF(ISERROR(Dados!W498),\"-\",Dados!W498)","v":""},{"$f":"IF(ISERROR(Dados!X498),\"-\",Dados!X498)","v":""},{"$f":"IF(ISERROR(Dados!Y498),\"-\",Dados!Y498)","v":""},{"$f":"IF(ISERROR(Dados!Z498),\"-\",Dados!Z498)","v":""},{"$f":"IF(ISERROR(Dados!AA498),\"-\",Dados!AA498)","v":""},{"$f":"IF(ISERROR(Dados!AB498),\"-\",Dados!AB498)","v":""},{"$f":"IF(ISERROR(Dados!AC498),\"-\",Dados!AC498)","v":""},{"$f":"IF(ISERROR(Dados!AD498),\"-\",Dados!AD498)","v":""},{"$f":"IF(ISERROR(Dados!AE498),\"-\",Dados!AE498)","v":""},{"$f":"IF(ISERROR(Dados!AF498),\"-\",Dados!AF498)","v":""},{"$f":"IF(ISERROR(Dados!AG498),\"-\",Dados!AG498)","v":""}]
[{"$f":"IF(ISERROR(Dados!A499),\"-\",Dados!A499)","v":""},{"$f":"IF(ISERROR(Dados!B499),\"-\",Dados!B499)","v":""},{"$f":"IF(ISERROR(Dados!C499),\"-\",Dados!C499)","v":""},{"$f":"IF(ISERROR(Dados!D499),\"-\",Dados!D499)","v":""},{"$f":"IF(ISERROR(Dados!E499),\"-\",Dados!E499)","v":""},{"$f":"IF(ISERROR(Dados!F499),\"-\",Dados!F499)","v":""},{"$f":"IF(ISERROR(Dados!G499),\"-\",Dados!G499)","v":""},{"$f":"IF(ISERROR(Dados!H499),\"-\",Dados!H499)","v":""},{"$f":"IF(ISERROR(Dados!I499),\"-\",Dados!I499)","v":""},{"$f":"IF(ISERROR(Dados!J499),\"-\",Dados!J499)","v":""},{"$f":"IF(ISERROR(Dados!K499),\"-\",Dados!K499)","v":""},{"$f":"IF(ISERROR(Dados!L499),\"-\",Dados!L499)","v":""},{"$f":"IF(ISERROR(Dados!M499),\"-\",Dados!M499)","v":""},{"$f":"IF(ISERROR(Dados!N499),\"-\",Dados!N499)","v":""},{"$f":"IF(ISERROR(Dados!O499),\"-\",Dados!O499)","v":""},{"$f":"IF(ISERROR(Dados!P499),\"-\",Dados!P499)","v":""},{"$f":"IF(ISERROR(Dados!Q499),\"-\",Dados!Q499)","v":""},{"$f":"IF(ISERROR(Dados!R499),\"-\",Dados!R499)","v":""},{"$f":"IF(ISERROR(Dados!S499),\"-\",Dados!S499)","v":""},{"$f":"IF(ISERROR(Dados!T499),\"-\",Dados!T499)","v":""},{"$f":"IF(ISERROR(Dados!U499),\"-\",Dados!U499)","v":""},{"$f":"IF(ISERROR(Dados!V499),\"-\",Dados!V499)","v":""},{"$f":"IF(ISERROR(Dados!W499),\"-\",Dados!W499)","v":""},{"$f":"IF(ISERROR(Dados!X499),\"-\",Dados!X499)","v":""},{"$f":"IF(ISERROR(Dados!Y499),\"-\",Dados!Y499)","v":""},{"$f":"IF(ISERROR(Dados!Z499),\"-\",Dados!Z499)","v":""},{"$f":"IF(ISERROR(Dados!AA499),\"-\",Dados!AA499)","v":""},{"$f":"IF(ISERROR(Dados!AB499),\"-\",Dados!AB499)","v":""},{"$f":"IF(ISERROR(Dados!AC499),\"-\",Dados!AC499)","v":""},{"$f":"IF(ISERROR(Dados!AD499),\"-\",Dados!AD499)","v":""},{"$f":"IF(ISERROR(Dados!AE499),\"-\",Dados!AE499)","v":""},{"$f":"IF(ISERROR(Dados!AF499),\"-\",Dados!AF499)","v":""},{"$f":"IF(ISERROR(Dados!AG499),\"-\",Dados!AG499)","v":""}]
[{"$f":"IF(ISERROR(Dados!A500),\"-\",Dados!A500)","v":""},{"$f":"IF(ISERROR(Dados!B500),\"-\",Dados!B500)","v":""},{"$f":"IF(ISERROR(Dados!C500),\"-\",Dados!C500)","v":""},{"$f":"IF(ISERROR(Dados!D500),\"-\",Dados!D500)","v":""},{"$f":"IF(ISERROR(Dados!E500),\"-\",Dados!E500)","v":""},{"$f":"IF(ISERROR(Dados!F500),\"-\",Dados!F500)","v":""},{"$f":"IF(ISERROR(Dados!G500),\"-\",Dados!G500)","v":""},{"$f":"IF(ISERROR(Dados!H500),\"-\",Dados!H500)","v":""},{"$f":"IF(ISERROR(Dados!I500),\"-\",Dados!I500)","v":""},{"$f":"IF(ISERROR(Dados!J500),\"-\",Dados!J500)","v":""},{"$f":"IF(ISERROR(Dados!K500),\"-\",Dados!K500)","v":""},{"$f":"IF(ISERROR(Dados!L500),\"-\",Dados!L500)","v":""},{"$f":"IF(ISERROR(Dados!M500),\"-\",Dados!M500)","v":""},{"$f":"IF(ISERROR(Dados!N500),\"-\",Dados!N500)","v":""},{"$f":"IF(ISERROR(Dados!O500),\"-\",Dados!O500)","v":""},{"$f":"IF(ISERROR(Dados!P500),\"-\",Dados!P500)","v":""},{"$f":"IF(ISERROR(Dados!Q500),\"-\",Dados!Q500)","v":""},{"$f":"IF(ISERROR(Dados!R500),\"-\",Dados!R500)","v":""},{"$f":"IF(ISERROR(Dados!S500),\"-\",Dados!S500)","v":""},{"$f":"IF(ISERROR(Dados!T500),\"-\",Dados!T500)","v":""},{"$f":"IF(ISERROR(Dados!U500),\"-\",Dados!U500)","v":""},{"$f":"IF(ISERROR(Dados!V500),\"-\",Dados!V500)","v":""},{"$f":"IF(ISERROR(Dados!W500),\"-\",Dados!W500)","v":""},{"$f":"IF(ISERROR(Dados!X500),\"-\",Dados!X500)","v":""},{"$f":"IF(ISERROR(Dados!Y500),\"-\",Dados!Y500)","v":""},{"$f":"IF(ISERROR(Dados!Z500),\"-\",Dados!Z500)","v":""},{"$f":"IF(ISERROR(Dados!AA500),\"-\",Dados!AA500)","v":""},{"$f":"IF(ISERROR(Dados!AB500),\"-\",Dados!AB500)","v":""},{"$f":"IF(ISERROR(Dados!AC500),\"-\",Dados!AC500)","v":""},{"$f":"IF(ISERROR(Dados!AD500),\"-\",Dados!AD500)","v":""},{"$f":"IF(ISERROR(Dados!AE500),\"-\",Dados!AE500)","v":""},{"$f":"IF(ISERROR(Dados!AF500),\"-\",Dados!AF500)","v":""},{"$f":"IF(ISERROR(Dados!AG500),\"-\",Dados!AG500)","v":""}]
[{"$f":"IF(ISERROR(Dados!A501),\"-\",Dados!A501)","v":""},{"$f":"IF(ISERROR(Dados!B501),\"-\",Dados!B501)","v":""},{"$f":"IF(ISERROR(Dados!C501),\"-\",Dados!C501)","v":""},{"$f":"IF(ISERROR(Dados!D501),\"-\",Dados!D501)","v":""},{"$f":"IF(ISERROR(Dados!E501),\"-\",Dados!E501)","v":""},{"$f":"IF(ISERROR(Dados!F501),\"-\",Dados!F501)","v":""},{"$f":"IF(ISERROR(Dados!G501),\"-\",Dados!G501)","v":""},{"$f":"IF(ISERROR(Dados!H501),\"-\",Dados!H501)","v":""},{"$f":"IF(ISERROR(Dados!I501),\"-\",Dados!I501)","v":""},{"$f":"IF(ISERROR(Dados!J501),\"-\",Dados!J501)","v":""},{"$f":"IF(ISERROR(Dados!K501),\"-\",Dados!K501)","v":""},{"$f":"IF(ISERROR(Dados!L501),\"-\",Dados!L501)","v":""},{"$f":"IF(ISERROR(Dados!M501),\"-\",Dados!M501)","v":""},{"$f":"IF(ISERROR(Dados!N501),\"-\",Dados!N501)","v":""},{"$f":"IF(ISERROR(Dados!O501),\"-\",Dados!O501)","v":""},{"$f":"IF(ISERROR(Dados!P501),\"-\",Dados!P501)","v":""},{"$f":"IF(ISERROR(Dados!Q501),\"-\",Dados!Q501)","v":""},{"$f":"IF(ISERROR(Dados!R501),\"-\",Dados!R501)","v":""},{"$f":"IF(ISERROR(Dados!S501),\"-\",Dados!S501)","v":""},{"$f":"IF(ISERROR(Dados!T501),\"-\",Dados!T501)","v":""},{"$f":"IF(ISERROR(Dados!U501),\"-\",Dados!U501)","v":""},{"$f":"IF(ISERROR(Dados!V501),\"-\",Dados!V501)","v":""},{"$f":"IF(ISERROR(Dados!W501),\"-\",Dados!W501)","v":""},{"$f":"IF(ISERROR(Dados!X501),\"-\",Dados!X501)","v":""},{"$f":"IF(ISERROR(Dados!Y501),\"-\",Dados!Y501)","v":""},{"$f":"IF(ISERROR(Dados!Z501),\"-\",Dados!Z501)","v":""},{"$f":"IF(ISERROR(Dados!AA501),\"-\",Dados!AA501)","v":""},{"$f":"IF(ISERROR(Dados!AB501),\"-\",Dados!AB501)","v":""},{"$f":"IF(ISERROR(Dados!AC501),\"-\",Dados!AC501)","v":""},{"$f":"IF(ISERROR(Dados!AD501),\"-\",Dados!AD501)","v":""},{"$f":"IF(ISERROR(Dados!AE501),\"-\",Dados!AE501)","v":""},{"$f":"IF(ISERROR(Dados!AF501),\"-\",Dados!AF501)","v":""},{"$f":"IF(ISERROR(Dados!AG501),\"-\",Dados!AG501)","v":""}]
[{"$f":"IF(ISERROR(Dados!A502),\"-\",Dados!A502)","v":""},{"$f":"IF(ISERROR(Dados!B502),\"-\",Dados!B502)","v":""},{"$f":"IF(ISERROR(Dados!C502),\"-\",Dados!C502)","v":""},{"$f":"IF(ISERROR(Dados!D502),\"-\",Dados!D502)","v":""},{"$f":"IF(ISERROR(Dados!E502),\"-\",Dados!E502)","v":""},{"$f":"IF(ISERROR(Dados!F502),\"-\",Dados!F502)","v":""},{"$f":"IF(ISERROR(Dados!G502),\"-\",Dados!G502)","v":""},{"$f":"IF(ISERROR(Dados!H502),\"-\",Dados!H502)","v":""},{"$f":"IF(ISERROR(Dados!I502),\"-\",Dados!I502)","v":""},{"$f":"IF(ISERROR(Dados!J502),\"-\",Dados!J502)","v":""},{"$f":"IF(ISERROR(Dados!K502),\"-\",Dados!K502)","v":""},{"$f":"IF(ISERROR(Dados!L502),\"-\",Dados!L502)","v":""},{"$f":"IF(ISERROR(Dados!M502),\"-\",Dados!M502)","v":""},{"$f":"IF(ISERROR(Dados!N502),\"-\",Dados!N502)","v":""},{"$f":"IF(ISERROR(Dados!O502),\"-\",Dados!O502)","v":""},{"$f":"IF(ISERROR(Dados!P502),\"-\",Dados!P502)","v":""},{"$f":"IF(ISERROR(Dados!Q502),\"-\",Dados!Q502)","v":""},{"$f":"IF(ISERROR(Dados!R502),\"-\",Dados!R502)","v":""},{"$f":"IF(ISERROR(Dados!S502),\"-\",Dados!S502)","v":""},{"$f":"IF(ISERROR(Dados!T502),\"-\",Dados!T502)","v":""},{"$f":"IF(ISERROR(Dados!U502),\"-\",Dados!U502)","v":""},{"$f":"IF(ISERROR(Dados!V502),\"-\",Dados!V502)","v":""},{"$f":"IF(ISERROR(Dados!W502),\"-\",Dados!W502)","v":""},{"$f":"IF(ISERROR(Dados!X502),\"-\",Dados!X502)","v":""},{"$f":"IF(ISERROR(Dados!Y502),\"-\",Dados!Y502)","v":""},{"$f":"IF(ISERROR(Dados!Z502),\"-\",Dados!Z502)","v":""},{"$f":"IF(ISERROR(Dados!AA502),\"-\",Dados!AA502)","v":""},{"$f":"IF(ISERROR(Dados!AB502),\"-\",Dados!AB502)","v":""},{"$f":"IF(ISERROR(Dados!AC502),\"-\",Dados!AC502)","v":""},{"$f":"IF(ISERROR(Dados!AD502),\"-\",Dados!AD502)","v":""},{"$f":"IF(ISERROR(Dados!AE502),\"-\",Dados!AE502)","v":""},{"$f":"IF(ISERROR(Dados!AF502),\"-\",Dados!AF502)","v":""},{"$f":"IF(ISERROR(Dados!AG502),\"-\",Dados!AG502)","v":""}]
[{"$f":"IF(ISERROR(Dados!A503),\"-\",Dados!A503)","v":""},{"$f":"IF(ISERROR(Dados!B503),\"-\",Dados!B503)","v":""},{"$f":"IF(ISERROR(Dados!C503),\"-\",Dados!C503)","v":""},{"$f":"IF(ISERROR(Dados!D503),\"-\",Dados!D503)","v":""},{"$f":"IF(ISERROR(Dados!E503),\"-\",Dados!E503)","v":""},{"$f":"IF(ISERROR(Dados!F503),\"-\",Dados!F503)","v":""},{"$f":"IF(ISERROR(Dados!G503),\"-\",Dados!G503)","v":""},{"$f":"IF(ISERROR(Dados!H503),\"-\",Dados!H503)","v":""},{"$f":"IF(ISERROR(Dados!I503),\"-\",Dados!I503)","v":""},{"$f":"IF(ISERROR(Dados!J503),\"-\",Dados!J503)","v":""},{"$f":"IF(ISERROR(Dados!K503),\"-\",Dados!K503)","v":""},{"$f":"IF(ISERROR(Dados!L503),\"-\",Dados!L503)","v":""},{"$f":"IF(ISERROR(Dados!M503),\"-\",Dados!M503)","v":""},{"$f":"IF(ISERROR(Dados!N503),\"-\",Dados!N503)","v":""},{"$f":"IF(ISERROR(Dados!O503),\"-\",Dados!O503)","v":""},{"$f":"IF(ISERROR(Dados!P503),\"-\",Dados!P503)","v":""},{"$f":"IF(ISERROR(Dados!Q503),\"-\",Dados!Q503)","v":""},{"$f":"IF(ISERROR(Dados!R503),\"-\",Dados!R503)","v":""},{"$f":"IF(ISERROR(Dados!S503),\"-\",Dados!S503)","v":""},{"$f":"IF(ISERROR(Dados!T503),\"-\",Dados!T503)","v":""},{"$f":"IF(ISERROR(Dados!U503),\"-\",Dados!U503)","v":""},{"$f":"IF(ISERROR(Dados!V503),\"-\",Dados!V503)","v":""},{"$f":"IF(ISERROR(Dados!W503),\"-\",Dados!W503)","v":""},{"$f":"IF(ISERROR(Dados!X503),\"-\",Dados!X503)","v":""},{"$f":"IF(ISERROR(Dados!Y503),\"-\",Dados!Y503)","v":""},{"$f":"IF(ISERROR(Dados!Z503),\"-\",Dados!Z503)","v":""},{"$f":"IF(ISERROR(Dados!AA503),\"-\",Dados!AA503)","v":""},{"$f":"IF(ISERROR(Dados!AB503),\"-\",Dados!AB503)","v":""},{"$f":"IF(ISERROR(Dados!AC503),\"-\",Dados!AC503)","v":""},{"$f":"IF(ISERROR(Dados!AD503),\"-\",Dados!AD503)","v":""},{"$f":"IF(ISERROR(Dados!AE503),\"-\",Dados!AE503)","v":""},{"$f":"IF(ISERROR(Dados!AF503),\"-\",Dados!AF503)","v":""},{"$f":"IF(ISERROR(Dados!AG503),\"-\",Dados!AG503)","v":""}]
[{"$f":"IF(ISERROR(Dados!A504),\"-\",Dados!A504)","v":""},{"$f":"IF(ISERROR(Dados!B504),\"-\",Dados!B504)","v":""},{"$f":"IF(ISERROR(Dados!C504),\"-\",Dados!C504)","v":""},{"$f":"IF(ISERROR(Dados!D504),\"-\",Dados!D504)","v":""},{"$f":"IF(ISERROR(Dados!E504),\"-\",Dados!E504)","v":""},{"$f":"IF(ISERROR(Dados!F504),\"-\",Dados!F504)","v":""},{"$f":"IF(ISERROR(Dados!G504),\"-\",Dados!G504)","v":""},{"$f":"IF(ISERROR(Dados!H504),\"-\",Dados!H504)","v":""},{"$f":"IF(ISERROR(Dados!I504),\"-\",Dados!I504)","v":""},{"$f":"IF(ISERROR(Dados!J504),\"-\",Dados!J504)","v":""},{"$f":"IF(ISERROR(Dados!K504),\"-\",Dados!K504)","v":""},{"$f":"IF(ISERROR(Dados!L504),\"-\",Dados!L504)","v":""},{"$f":"IF(ISERROR(Dados!M504),\"-\",Dados!M504)","v":""},{"$f":"IF(ISERROR(Dados!N504),\"-\",Dados!N504)","v":""},{"$f":"IF(ISERROR(Dados!O504),\"-\",Dados!O504)","v":""},{"$f":"IF(ISERROR(Dados!P504),\"-\",Dados!P504)","v":""},{"$f":"IF(ISERROR(Dados!Q504),\"-\",Dados!Q504)","v":""},{"$f":"IF(ISERROR(Dados!R504),\"-\",Dados!R504)","v":""},{"$f":"IF(ISERROR(Dados!S504),\"-\",Dados!S504)","v":""},{"$f":"IF(ISERROR(Dados!T504),\"-\",Dados!T504)","v":""},{"$f":"IF(ISERROR(Dados!U504),\"-\",Dados!U504)","v":""},{"$f":"IF(ISERROR(Dados!V504),\"-\",Dados!V504)","v":""},{"$f":"IF(ISERROR(Dados!W504),\"-\",Dados!W504)","v":""},{"$f":"IF(ISERROR(Dados!X504),\"-\",Dados!X504)","v":""},{"$f":"IF(ISERROR(Dados!Y504),\"-\",Dados!Y504)","v":""},{"$f":"IF(ISERROR(Dados!Z504),\"-\",Dados!Z504)","v":""},{"$f":"IF(ISERROR(Dados!AA504),\"-\",Dados!AA504)","v":""},{"$f":"IF(ISERROR(Dados!AB504),\"-\",Dados!AB504)","v":""},{"$f":"IF(ISERROR(Dados!AC504),\"-\",Dados!AC504)","v":""},{"$f":"IF(ISERROR(Dados!AD504),\"-\",Dados!AD504)","v":""},{"$f":"IF(ISERROR(Dados!AE504),\"-\",Dados!AE504)","v":""},{"$f":"IF(ISERROR(Dados!AF504),\"-\",Dados!AF504)","v":""},{"$f":"IF(ISERROR(Dados!AG504),\"-\",Dados!AG504)","v":""}]
[{"$f":"IF(ISERROR(Dados!A505),\"-\",Dados!A505)","v":""},{"$f":"IF(ISERROR(Dados!B505),\"-\",Dados!B505)","v":""},{"$f":"IF(ISERROR(Dados!C505),\"-\",Dados!C505)","v":""},{"$f":"IF(ISERROR(Dados!D505),\"-\",Dados!D505)","v":""},{"$f":"IF(ISERROR(Dados!E505),\"-\",Dados!E505)","v":""},{"$f":"IF(ISERROR(Dados!F505),\"-\",Dados!F505)","v":""},{"$f":"IF(ISERROR(Dados!G505),\"-\",Dados!G505)","v":""},{"$f":"IF(ISERROR(Dados!H505),\"-\",Dados!H505)","v":""},{"$f":"IF(ISERROR(Dados!I505),\"-\",Dados!I505)","v":""},{"$f":"IF(ISERROR(Dados!J505),\"-\",Dados!J505)","v":""},{"$f":"IF(ISERROR(Dados!K505),\"-\",Dados!K505)","v":""},{"$f":"IF(ISERROR(Dados!L505),\"-\",Dados!L505)","v":""},{"$f":"IF(ISERROR(Dados!M505),\"-\",Dados!M505)","v":""},{"$f":"IF(ISERROR(Dados!N505),\"-\",Dados!N505)","v":""},{"$f":"IF(ISERROR(Dados!O505),\"-\",Dados!O505)","v":""},{"$f":"IF(ISERROR(Dados!P505),\"-\",Dados!P505)","v":""},{"$f":"IF(ISERROR(Dados!Q505),\"-\",Dados!Q505)","v":""},{"$f":"IF(ISERROR(Dados!R505),\"-\",Dados!R505)","v":""},{"$f":"IF(ISERROR(Dados!S505),\"-\",Dados!S505)","v":""},{"$f":"IF(ISERROR(Dados!T505),\"-\",Dados!T505)","v":""},{"$f":"IF(ISERROR(Dados!U505),\"-\",Dados!U505)","v":""},{"$f":"IF(ISERROR(Dados!V505),\"-\",Dados!V505)","v":""},{"$f":"IF(ISERROR(Dados!W505),\"-\",Dados!W505)","v":""},{"$f":"IF(ISERROR(Dados!X505),\"-\",Dados!X505)","v":""},{"$f":"IF(ISERROR(Dados!Y505),\"-\",Dados!Y505)","v":""},{"$f":"IF(ISERROR(Dados!Z505),\"-\",Dados!Z505)","v":""},{"$f":"IF(ISERROR(Dados!AA505),\"-\",Dados!AA505)","v":""},{"$f":"IF(ISERROR(Dados!AB505),\"-\",Dados!AB505)","v":""},{"$f":"IF(ISERROR(Dados!AC505),\"-\",Dados!AC505)","v":""},{"$f":"IF(ISERROR(Dados!AD505),\"-\",Dados!AD505)","v":""},{"$f":"IF(ISERROR(Dados!AE505),\"-\",Dados!AE505)","v":""},{"$f":"IF(ISERROR(Dados!AF505),\"-\",Dados!AF505)","v":""},{"$f":"IF(ISERROR(Dados!AG505),\"-\",Dados!AG505)","v":""}]
[{"$f":"IF(ISERROR(Dados!A506),\"-\",Dados!A506)","v":""},{"$f":"IF(ISERROR(Dados!B506),\"-\",Dados!B506)","v":""},{"$f":"IF(ISERROR(Dados!C506),\"-\",Dados!C506)","v":""},{"$f":"IF(ISERROR(Dados!D506),\"-\",Dados!D506)","v":""},{"$f":"IF(ISERROR(Dados!E506),\"-\",Dados!E506)","v":""},{"$f":"IF(ISERROR(Dados!F506),\"-\",Dados!F506)","v":""},{"$f":"IF(ISERROR(Dados!G506),\"-\",Dados!G506)","v":""},{"$f":"IF(ISERROR(Dados!H506),\"-\",Dados!H506)","v":""},{"$f":"IF(ISERROR(Dados!I506),\"-\",Dados!I506)","v":""},{"$f":"IF(ISERROR(Dados!J506),\"-\",Dados!J506)","v":""},{"$f":"IF(ISERROR(Dados!K506),\"-\",Dados!K506)","v":""},{"$f":"IF(ISERROR(Dados!L506),\"-\",Dados!L506)","v":""},{"$f":"IF(ISERROR(Dados!M506),\"-\",Dados!M506)","v":""},{"$f":"IF(ISERROR(Dados!N506),\"-\",Dados!N506)","v":""},{"$f":"IF(ISERROR(Dados!O506),\"-\",Dados!O506)","v":""},{"$f":"IF(ISERROR(Dados!P506),\"-\",Dados!P506)","v":""},{"$f":"IF(ISERROR(Dados!Q506),\"-\",Dados!Q506)","v":""},{"$f":"IF(ISERROR(Dados!R506),\"-\",Dados!R506)","v":""},{"$f":"IF(ISERROR(Dados!S506),\"-\",Dados!S506)","v":""},{"$f":"IF(ISERROR(Dados!T506),\"-\",Dados!T506)","v":""},{"$f":"IF(ISERROR(Dados!U506),\"-\",Dados!U506)","v":""},{"$f":"IF(ISERROR(Dados!V506),\"-\",Dados!V506)","v":""},{"$f":"IF(ISERROR(Dados!W506),\"-\",Dados!W506)","v":""},{"$f":"IF(ISERROR(Dados!X506),\"-\",Dados!X506)","v":""},{"$f":"IF(ISERROR(Dados!Y506),\"-\",Dados!Y506)","v":""},{"$f":"IF(ISERROR(Dados!Z506),\"-\",Dados!Z506)","v":""},{"$f":"IF(ISERROR(Dados!AA506),\"-\",Dados!AA506)","v":""},{"$f":"IF(ISERROR(Dados!AB506),\"-\",Dados!AB506)","v":""},{"$f":"IF(ISERROR(Dados!AC506),\"-\",Dados!AC506)","v":""},{"$f":"IF(ISERROR(Dados!AD506),\"-\",Dados!AD506)","v":""},{"$f":"IF(ISERROR(Dados!AE506),\"-\",Dados!AE506)","v":""},{"$f":"IF(ISERROR(Dados!AF506),\"-\",Dados!AF506)","v":""},{"$f":"IF(ISERROR(Dados!AG506),\"-\",Dados!AG506)","v":""}]
[{"$f":"IF(ISERROR(Dados!A507),\"-\",Dados!A507)","v":""},{"$f":"IF(ISERROR(Dados!B507),\"-\",Dados!B507)","v":""},{"$f":"IF(ISERROR(Dados!C507),\"-\",Dados!C507)","v":""},{"$f":"IF(ISERROR(Dados!D507),\"-\",Dados!D507)","v":""},{"$f":"IF(ISERROR(Dados!E507),\"-\",Dados!E507)","v":""},{"$f":"IF(ISERROR(Dados!F507),\"-\",Dados!F507)","v":""},{"$f":"IF(ISERROR(Dados!G507),\"-\",Dados!G507)","v":""},{"$f":"IF(ISERROR(Dados!H507),\"-\",Dados!H507)","v":""},{"$f":"IF(ISERROR(Dados!I507),\"-\",Dados!I507)","v":""},{"$f":"IF(ISERROR(Dados!J507),\"-\",Dados!J507)","v":""},{"$f":"IF(ISERROR(Dados!K507),\"-\",Dados!K507)","v":""},{"$f":"IF(ISERROR(Dados!L507),\"-\",Dados!L507)","v":""},{"$f":"IF(ISERROR(Dados!M507),\"-\",Dados!M507)","v":""},{"$f":"IF(ISERROR(Dados!N507),\"-\",Dados!N507)","v":""},{"$f":"IF(ISERROR(Dados!O507),\"-\",Dados!O507)","v":""},{"$f":"IF(ISERROR(Dados!P507),\"-\",Dados!P507)","v":""},{"$f":"IF(ISERROR(Dados!Q507),\"-\",Dados!Q507)","v":""},{"$f":"IF(ISERROR(Dados!R507),\"-\",Dados!R507)","v":""},{"$f":"IF(ISERROR(Dados!S507),\"-\",Dados!S507)","v":""},{"$f":"IF(ISERROR(Dados!T507),\"-\",Dados!T507)","v":""},{"$f":"IF(ISERROR(Dados!U507),\"-\",Dados!U507)","v":""},{"$f":"IF(ISERROR(Dados!V507),\"-\",Dados!V507)","v":""},{"$f":"IF(ISERROR(Dados!W507),\"-\",Dados!W507)","v":""},{"$f":"IF(ISERROR(Dados!X507),\"-\",Dados!X507)","v":""},{"$f":"IF(ISERROR(Dados!Y507),\"-\",Dados!Y507)","v":""},{"$f":"IF(ISERROR(Dados!Z507),\"-\",Dados!Z507)","v":""},{"$f":"IF(ISERROR(Dados!AA507),\"-\",Dados!AA507)","v":""},{"$f":"IF(ISERROR(Dados!AB507),\"-\",Dados!AB507)","v":""},{"$f":"IF(ISERROR(Dados!AC507),\"-\",Dados!AC507)","v":""},{"$f":"IF(ISERROR(Dados!AD507),\"-\",Dados!AD507)","v":""},{"$f":"IF(ISERROR(Dados!AE507),\"-\",Dados!AE507)","v":""},{"$f":"IF(ISERROR(Dados!AF507),\"-\",Dados!AF507)","v":""},{"$f":"IF(ISERROR(Dados!AG507),\"-\",Dados!AG507)","v":""}]
[{"$f":"IF(ISERROR(Dados!A508),\"-\",Dados!A508)","v":""},{"$f":"IF(ISERROR(Dados!B508),\"-\",Dados!B508)","v":""},{"$f":"IF(ISERROR(Dados!C508),\"-\",Dados!C508)","v":""},{"$f":"IF(ISERROR(Dados!D508),\"-\",Dados!D508)","v":""},{"$f":"IF(ISERROR(Dados!E508),\"-\",Dados!E508)","v":""},{"$f":"IF(ISERROR(Dados!F508),\"-\",Dados!F508)","v":""},{"$f":"IF(ISERROR(Dados!G508),\"-\",Dados!G508)","v":""},{"$f":"IF(ISERROR(Dados!H508),\"-\",Dados!H508)","v":""},{"$f":"IF(ISERROR(Dados!I508),\"-\",Dados!I508)","v":""},{"$f":"IF(ISERROR(Dados!J508),\"-\",Dados!J508)","v":""},{"$f":"IF(ISERROR(Dados!K508),\"-\",Dados!K508)","v":""},{"$f":"IF(ISERROR(Dados!L508),\"-\",Dados!L508)","v":""},{"$f":"IF(ISERROR(Dados!M508),\"-\",Dados!M508)","v":""},{"$f":"IF(ISERROR(Dados!N508),\"-\",Dados!N508)","v":""},{"$f":"IF(ISERROR(Dados!O508),\"-\",Dados!O508)","v":""},{"$f":"IF(ISERROR(Dados!P508),\"-\",Dados!P508)","v":""},{"$f":"IF(ISERROR(Dados!Q508),\"-\",Dados!Q508)","v":""},{"$f":"IF(ISERROR(Dados!R508),\"-\",Dados!R508)","v":""},{"$f":"IF(ISERROR(Dados!S508),\"-\",Dados!S508)","v":""},{"$f":"IF(ISERROR(Dados!T508),\"-\",Dados!T508)","v":""},{"$f":"IF(ISERROR(Dados!U508),\"-\",Dados!U508)","v":""},{"$f":"IF(ISERROR(Dados!V508),\"-\",Dados!V508)","v":""},{"$f":"IF(ISERROR(Dados!W508),\"-\",Dados!W508)","v":""},{"$f":"IF(ISERROR(Dados!X508),\"-\",Dados!X508)","v":""},{"$f":"IF(ISERROR(Dados!Y508),\"-\",Dados!Y508)","v":""},{"$f":"IF(ISERROR(Dados!Z508),\"-\",Dados!Z508)","v":""},{"$f":"IF(ISERROR(Dados!AA508),\"-\",Dados!AA508)","v":""},{"$f":"IF(ISERROR(Dados!AB508),\"-\",Dados!AB508)","v":""},{"$f":"IF(ISERROR(Dados!AC508),\"-\",Dados!AC508)","v":""},{"$f":"IF(ISERROR(Dados!AD508),\"-\",Dados!AD508)","v":""},{"$f":"IF(ISERROR(Dados!AE508),\"-\",Dados!AE508)","v":""},{"$f":"IF(ISERROR(Dados!AF508),\"-\",Dados!AF508)","v":""},{"$f":"IF(ISERROR(Dados!AG508),\"-\",Dados!AG508)","v":""}]
[{"$f":"IF(ISERROR(Dados!A509),\"-\",Dados!A509)","v":""},{"$f":"IF(ISERROR(Dados!B509),\"-\",Dados!B509)","v":""},{"$f":"IF(ISERROR(Dados!C509),\"-\",Dados!C509)","v":""},{"$f":"IF(ISERROR(Dados!D509),\"-\",Dados!D509)","v":""},{"$f":"IF(ISERROR(Dados!E509),\"-\",Dados!E509)","v":""},{"$f":"IF(ISERROR(Dados!F509),\"-\",Dados!F509)","v":""},{"$f":"IF(ISERROR(Dados!G509),\"-\",Dados!G509)","v":""},{"$f":"IF(ISERROR(Dados!H509),\"-\",Dados!H509)","v":""},{"$f":"IF(ISERROR(Dados!I509),\"-\",Dados!I509)","v":""},{"$f":"IF(ISERROR(Dados!J509),\"-\",Dados!J509)","v":""},{"$f":"IF(ISERROR(Dados!K509),\"-\",Dados!K509)","v":""},{"$f":"IF(ISERROR(Dados!L509),\"-\",Dados!L509)","v":""},{"$f":"IF(ISERROR(Dados!M509),\"-\",Dados!M509)","v":""},{"$f":"IF(ISERROR(Dados!N509),\"-\",Dados!N509)","v":""},{"$f":"IF(ISERROR(Dados!O509),\"-\",Dados!O509)","v":""},{"$f":"IF(ISERROR(Dados!P509),\"-\",Dados!P509)","v":""},{"$f":"IF(ISERROR(Dados!Q509),\"-\",Dados!Q509)","v":""},{"$f":"IF(ISERROR(Dados!R509),\"-\",Dados!R509)","v":""},{"$f":"IF(ISERROR(Dados!S509),\"-\",Dados!S509)","v":""},{"$f":"IF(ISERROR(Dados!T509),\"-\",Dados!T509)","v":""},{"$f":"IF(ISERROR(Dados!U509),\"-\",Dados!U509)","v":""},{"$f":"IF(ISERROR(Dados!V509),\"-\",Dados!V509)","v":""},{"$f":"IF(ISERROR(Dados!W509),\"-\",Dados!W509)","v":""},{"$f":"IF(ISERROR(Dados!X509),\"-\",Dados!X509)","v":""},{"$f":"IF(ISERROR(Dados!Y509),\"-\",Dados!Y509)","v":""},{"$f":"IF(ISERROR(Dados!Z509),\"-\",Dados!Z509)","v":""},{"$f":"IF(ISERROR(Dados!AA509),\"-\",Dados!AA509)","v":""},{"$f":"IF(ISERROR(Dados!AB509),\"-\",Dados!AB509)","v":""},{"$f":"IF(ISERROR(Dados!AC509),\"-\",Dados!AC509)","v":""},{"$f":"IF(ISERROR(Dados!AD509),\"-\",Dados!AD509)","v":""},{"$f":"IF(ISERROR(Dados!AE509),\"-\",Dados!AE509)","v":""},{"$f":"IF(ISERROR(Dados!AF509),\"-\",Dados!AF509)","v":""},{"$f":"IF(ISERROR(Dados!AG509),\"-\",Dados!AG509)","v":""}]
[{"$f":"IF(ISERROR(Dados!A510),\"-\",Dados!A510)","v":""},{"$f":"IF(ISERROR(Dados!B510),\"-\",Dados!B510)","v":""},{"$f":"IF(ISERROR(Dados!C510),\"-\",Dados!C510)","v":""},{"$f":"IF(ISERROR(Dados!D510),\"-\",Dados!D510)","v":""},{"$f":"IF(ISERROR(Dados!E510),\"-\",Dados!E510)","v":""},{"$f":"IF(ISERROR(Dados!F510),\"-\",Dados!F510)","v":""},{"$f":"IF(ISERROR(Dados!G510),\"-\",Dados!G510)","v":""},{"$f":"IF(ISERROR(Dados!H510),\"-\",Dados!H510)","v":""},{"$f":"IF(ISERROR(Dados!I510),\"-\",Dados!I510)","v":""},{"$f":"IF(ISERROR(Dados!J510),\"-\",Dados!J510)","v":""},{"$f":"IF(ISERROR(Dados!K510),\"-\",Dados!K510)","v":""},{"$f":"IF(ISERROR(Dados!L510),\"-\",Dados!L510)","v":""},{"$f":"IF(ISERROR(Dados!M510),\"-\",Dados!M510)","v":""},{"$f":"IF(ISERROR(Dados!N510),\"-\",Dados!N510)","v":""},{"$f":"IF(ISERROR(Dados!O510),\"-\",Dados!O510)","v":""},{"$f":"IF(ISERROR(Dados!P510),\"-\",Dados!P510)","v":""},{"$f":"IF(ISERROR(Dados!Q510),\"-\",Dados!Q510)","v":""},{"$f":"IF(ISERROR(Dados!R510),\"-\",Dados!R510)","v":""},{"$f":"IF(ISERROR(Dados!S510),\"-\",Dados!S510)","v":""},{"$f":"IF(ISERROR(Dados!T510),\"-\",Dados!T510)","v":""},{"$f":"IF(ISERROR(Dados!U510),\"-\",Dados!U510)","v":""},{"$f":"IF(ISERROR(Dados!V510),\"-\",Dados!V510)","v":""},{"$f":"IF(ISERROR(Dados!W510),\"-\",Dados!W510)","v":""},{"$f":"IF(ISERROR(Dados!X510),\"-\",Dados!X510)","v":""},{"$f":"IF(ISERROR(Dados!Y510),\"-\",Dados!Y510)","v":""},{"$f":"IF(ISERROR(Dados!Z510),\"-\",Dados!Z510)","v":""},{"$f":"IF(ISERROR(Dados!AA510),\"-\",Dados!AA510)","v":""},{"$f":"IF(ISERROR(Dados!AB510),\"-\",Dados!AB510)","v":""},{"$f":"IF(ISERROR(Dados!AC510),\"-\",Dados!AC510)","v":""},{"$f":"IF(ISERROR(Dados!AD510),\"-\",Dados!AD510)","v":""},{"$f":"IF(ISERROR(Dados!AE510),\"-\",Dados!AE510)","v":""},{"$f":"IF(ISERROR(Dados!AF510),\"-\",Dados!AF510)","v":""},{"$f":"IF(ISERROR(Dados!AG510),\"-\",Dados!AG510)","v":""}]
[{"$f":"IF(ISERROR(Dados!A511),\"-\",Dados!A511)","v":""},{"$f":"IF(ISERROR(Dados!B511),\"-\",Dados!B511)","v":""},{"$f":"IF(ISERROR(Dados!C511),\"-\",Dados!C511)","v":""},{"$f":"IF(ISERROR(Dados!D511),\"-\",Dados!D511)","v":""},{"$f":"IF(ISERROR(Dados!E511),\"-\",Dados!E511)","v":""},{"$f":"IF(ISERROR(Dados!F511),\"-\",Dados!F511)","v":""},{"$f":"IF(ISERROR(Dados!G511),\"-\",Dados!G511)","v":""},{"$f":"IF(ISERROR(Dados!H511),\"-\",Dados!H511)","v":""},{"$f":"IF(ISERROR(Dados!I511),\"-\",Dados!I511)","v":""},{"$f":"IF(ISERROR(Dados!J511),\"-\",Dados!J511)","v":""},{"$f":"IF(ISERROR(Dados!K511),\"-\",Dados!K511)","v":""},{"$f":"IF(ISERROR(Dados!L511),\"-\",Dados!L511)","v":""},{"$f":"IF(ISERROR(Dados!M511),\"-\",Dados!M511)","v":""},{"$f":"IF(ISERROR(Dados!N511),\"-\",Dados!N511)","v":""},{"$f":"IF(ISERROR(Dados!O511),\"-\",Dados!O511)","v":""},{"$f":"IF(ISERROR(Dados!P511),\"-\",Dados!P511)","v":""},{"$f":"IF(ISERROR(Dados!Q511),\"-\",Dados!Q511)","v":""},{"$f":"IF(ISERROR(Dados!R511),\"-\",Dados!R511)","v":""},{"$f":"IF(ISERROR(Dados!S511),\"-\",Dados!S511)","v":""},{"$f":"IF(ISERROR(Dados!T511),\"-\",Dados!T511)","v":""},{"$f":"IF(ISERROR(Dados!U511),\"-\",Dados!U511)","v":""},{"$f":"IF(ISERROR(Dados!V511),\"-\",Dados!V511)","v":""},{"$f":"IF(ISERROR(Dados!W511),\"-\",Dados!W511)","v":""},{"$f":"IF(ISERROR(Dados!X511),\"-\",Dados!X511)","v":""},{"$f":"IF(ISERROR(Dados!Y511),\"-\",Dados!Y511)","v":""},{"$f":"IF(ISERROR(Dados!Z511),\"-\",Dados!Z511)","v":""},{"$f":"IF(ISERROR(Dados!AA511),\"-\",Dados!AA511)","v":""},{"$f":"IF(ISERROR(Dados!AB511),\"-\",Dados!AB511)","v":""},{"$f":"IF(ISERROR(Dados!AC511),\"-\",Dados!AC511)","v":""},{"$f":"IF(ISERROR(Dados!AD511),\"-\",Dados!AD511)","v":""},{"$f":"IF(ISERROR(Dados!AE511),\"-\",Dados!AE511)","v":""},{"$f":"IF(ISERROR(Dados!AF511),\"-\",Dados!AF511)","v":""},{"$f":"IF(ISERROR(Dados!AG511),\"-\",Dados!AG511)","v":""}]
[{"$f":"IF(ISERROR(Dados!A512),\"-\",Dados!A512)","v":""},{"$f":"IF(ISERROR(Dados!B512),\"-\",Dados!B512)","v":""},{"$f":"IF(ISERROR(Dados!C512),\"-\",Dados!C512)","v":""},{"$f":"IF(ISERROR(Dados!D512),\"-\",Dados!D512)","v":""},{"$f":"IF(ISERROR(Dados!E512),\"-\",Dados!E512)","v":""},{"$f":"IF(ISERROR(Dados!F512),\"-\",Dados!F512)","v":""},{"$f":"IF(ISERROR(Dados!G512),\"-\",Dados!G512)","v":""},{"$f":"IF(ISERROR(Dados!H512),\"-\",Dados!H512)","v":""},{"$f":"IF(ISERROR(Dados!I512),\"-\",Dados!I512)","v":""},{"$f":"IF(ISERROR(Dados!J512),\"-\",Dados!J512)","v":""},{"$f":"IF(ISERROR(Dados!K512),\"-\",Dados!K512)","v":""},{"$f":"IF(ISERROR(Dados!L512),\"-\",Dados!L512)","v":""},{"$f":"IF(ISERROR(Dados!M512),\"-\",Dados!M512)","v":""},{"$f":"IF(ISERROR(Dados!N512),\"-\",Dados!N512)","v":""},{"$f":"IF(ISERROR(Dados!O512),\"-\",Dados!O512)","v":""},{"$f":"IF(ISERROR(Dados!P512),\"-\",Dados!P512)","v":""},{"$f":"IF(ISERROR(Dados!Q512),\"-\",Dados!Q512)","v":""},{"$f":"IF(ISERROR(Dados!R512),\"-\",Dados!R512)","v":""},{"$f":"IF(ISERROR(Dados!S512),\"-\",Dados!S512)","v":""},{"$f":"IF(ISERROR(Dados!T512),\"-\",Dados!T512)","v":""},{"$f":"IF(ISERROR(Dados!U512),\"-\",Dados!U512)","v":""},{"$f":"IF(ISERROR(Dados!V512),\"-\",Dados!V512)","v":""},{"$f":"IF(ISERROR(Dados!W512),\"-\",Dados!W512)","v":""},{"$f":"IF(ISERROR(Dados!X512),\"-\",Dados!X512)","v":""},{"$f":"IF(ISERROR(Dados!Y512),\"-\",Dados!Y512)","v":""},{"$f":"IF(ISERROR(Dados!Z512),\"-\",Dados!Z512)","v":""},{"$f":"IF(ISERROR(Dados!AA512),\"-\",Dados!AA512)","v":""},{"$f":"IF(ISERROR(Dados!AB512),\"-\",Dados!AB512)","v":""},{"$f":"IF(ISERROR(Dados!AC512),\"-\",Dados!AC512)","v":""},{"$f":"IF(ISERROR(Dados!AD512),\"-\",Dados!AD512)","v":""},{"$f":"IF(ISERROR(Dados!AE512),\"-\",Dados!AE512)","v":""},{"$f":"IF(ISERROR(Dados!AF512),\"-\",Dados!AF512)","v":""},{"$f":"IF(ISERROR(Dados!AG512),\"-\",Dados!AG512)","v":""}]
[{"$f":"IF(ISERROR(Dados!A513),\"-\",Dados!A513)","v":""},{"$f":"IF(ISERROR(Dados!B513),\"-\",Dados!B513)","v":""},{"$f":"IF(ISERROR(Dados!C513),\"-\",Dados!C513)","v":""},{"$f":"IF(ISERROR(Dados!D513),\"-\",Dados!D513)","v":""},{"$f":"IF(ISERROR(Dados!E513),\"-\",Dados!E513)","v":""},{"$f":"IF(ISERROR(Dados!F513),\"-\",Dados!F513)","v":""},{"$f":"IF(ISERROR(Dados!G513),\"-\",Dados!G513)","v":""},{"$f":"IF(ISERROR(Dados!H513),\"-\",Dados!H513)","v":""},{"$f":"IF(ISERROR(Dados!I513),\"-\",Dados!I513)","v":""},{"$f":"IF(ISERROR(Dados!J513),\"-\",Dados!J513)","v":""},{"$f":"IF(ISERROR(Dados!K513),\"-\",Dados!K513)","v":""},{"$f":"IF(ISERROR(Dados!L513),\"-\",Dados!L513)","v":""},{"$f":"IF(ISERROR(Dados!M513),\"-\",Dados!M513)","v":""},{"$f":"IF(ISERROR(Dados!N513),\"-\",Dados!N513)","v":""},{"$f":"IF(ISERROR(Dados!O513),\"-\",Dados!O513)","v":""},{"$f":"IF(ISERROR(Dados!P513),\"-\",Dados!P513)","v":""},{"$f":"IF(ISERROR(Dados!Q513),\"-\",Dados!Q513)","v":""},{"$f":"IF(ISERROR(Dados!R513),\"-\",Dados!R513)","v":""},{"$f":"IF(ISERROR(Dados!S513),\"-\",Dados!S513)","v":""},{"$f":"IF(ISERROR(Dados!T513),\"-\",Dados!T513)","v":""},{"$f":"IF(ISERROR(Dados!U513),\"-\",Dados!U513)","v":""},{"$f":"IF(ISERROR(Dados!V513),\"-\",Dados!V513)","v":""},{"$f":"IF(ISERROR(Dados!W513),\"-\",Dados!W513)","v":""},{"$f":"IF(ISERROR(Dados!X513),\"-\",Dados!X513)","v":""},{"$f":"IF(ISERROR(Dados!Y513),\"-\",Dados!Y513)","v":""},{"$f":"IF(ISERROR(Dados!Z513),\"-\",Dados!Z513)","v":""},{"$f":"IF(ISERROR(Dados!AA513),\"-\",Dados!AA513)","v":""},{"$f":"IF(ISERROR(Dados!AB513),\"-\",Dados!AB513)","v":""},{"$f":"IF(ISERROR(Dados!AC513),\"-\",Dados!AC513)","v":""},{"$f":"IF(ISERROR(Dados!AD513),\"-\",Dados!AD513)","v":""},{"$f":"IF(ISERROR(Dados!AE513),\"-\",Dados!AE513)","v":""},{"$f":"IF(ISERROR(Dados!AF513),\"-\",Dados!AF513)","v":""},{"$f":"IF(ISERROR(Dados!AG513),\"-\",Dados!AG513)","v":""}]
[{"$f":"IF(ISERROR(Dados!A514),\"-\",Dados!A514)","v":""},{"$f":"IF(ISERROR(Dados!B514),\"-\",Dados!B514)","v":""},{"$f":"IF(ISERROR(Dados!C514),\"-\",Dados!C514)","v":""},{"$f":"IF(ISERROR(Dados!D514),\"-\",Dados!D514)","v":""},{"$f":"IF(ISERROR(Dados!E514),\"-\",Dados!E514)","v":""},{"$f":"IF(ISERROR(Dados!F514),\"-\",Dados!F514)","v":""},{"$f":"IF(ISERROR(Dados!G514),\"-\",Dados!G514)","v":""},{"$f":"IF(ISERROR(Dados!H514),\"-\",Dados!H514)","v":""},{"$f":"IF(ISERROR(Dados!I514),\"-\",Dados!I514)","v":""},{"$f":"IF(ISERROR(Dados!J514),\"-\",Dados!J514)","v":""},{"$f":"IF(ISERROR(Dados!K514),\"-\",Dados!K514)","v":""},{"$f":"IF(ISERROR(Dados!L514),\"-\",Dados!L514)","v":""},{"$f":"IF(ISERROR(Dados!M514),\"-\",Dados!M514)","v":""},{"$f":"IF(ISERROR(Dados!N514),\"-\",Dados!N514)","v":""},{"$f":"IF(ISERROR(Dados!O514),\"-\",Dados!O514)","v":""},{"$f":"IF(ISERROR(Dados!P514),\"-\",Dados!P514)","v":""},{"$f":"IF(ISERROR(Dados!Q514),\"-\",Dados!Q514)","v":""},{"$f":"IF(ISERROR(Dados!R514),\"-\",Dados!R514)","v":""},{"$f":"IF(ISERROR(Dados!S514),\"-\",Dados!S514)","v":""},{"$f":"IF(ISERROR(Dados!T514),\"-\",Dados!T514)","v":""},{"$f":"IF(ISERROR(Dados!U514),\"-\",Dados!U514)","v":""},{"$f":"IF(ISERROR(Dados!V514),\"-\",Dados!V514)","v":""},{"$f":"IF(ISERROR(Dados!W514),\"-\",Dados!W514)","v":""},{"$f":"IF(ISERROR(Dados!X514),\"-\",Dados!X514)","v":""},{"$f":"IF(ISERROR(Dados!Y514),\"-\",Dados!Y514)","v":""},{"$f":"IF(ISERROR(Dados!Z514),\"-\",Dados!Z514)","v":""},{"$f":"IF(ISERROR(Dados!AA514),\"-\",Dados!AA514)","v":""},{"$f":"IF(ISERROR(Dados!AB514),\"-\",Dados!AB514)","v":""},{"$f":"IF(ISERROR(Dados!AC514),\"-\",Dados!AC514)","v":""},{"$f":"IF(ISERROR(Dados!AD514),\"-\",Dados!AD514)","v":""},{"$f":"IF(ISERROR(Dados!AE514),\"-\",Dados!AE514)","v":""},{"$f":"IF(ISERROR(Dados!AF514),\"-\",Dados!AF514)","v":""},{"$f":"IF(ISERROR(Dados!AG514),\"-\",Dados!AG514)","v":""}]
[{"$f":"IF(ISERROR(Dados!A515),\"-\",Dados!A515)","v":""},{"$f":"IF(ISERROR(Dados!B515),\"-\",Dados!B515)","v":""},{"$f":"IF(ISERROR(Dados!C515),\"-\",Dados!C515)","v":""},{"$f":"IF(ISERROR(Dados!D515),\"-\",Dados!D515)","v":""},{"$f":"IF(ISERROR(Dados!E515),\"-\",Dados!E515)","v":""},{"$f":"IF(ISERROR(Dados!F515),\"-\",Dados!F515)","v":""},{"$f":"IF(ISERROR(Dados!G515),\"-\",Dados!G515)","v":""},{"$f":"IF(ISERROR(Dados!H515),\"-\",Dados!H515)","v":""},{"$f":"IF(ISERROR(Dados!I515),\"-\",Dados!I515)","v":""},{"$f":"IF(ISERROR(Dados!J515),\"-\",Dados!J515)","v":""},{"$f":"IF(ISERROR(Dados!K515),\"-\",Dados!K515)","v":""},{"$f":"IF(ISERROR(Dados!L515),\"-\",Dados!L515)","v":""},{"$f":"IF(ISERROR(Dados!M515),\"-\",Dados!M515)","v":""},{"$f":"IF(ISERROR(Dados!N515),\"-\",Dados!N515)","v":""},{"$f":"IF(ISERROR(Dados!O515),\"-\",Dados!O515)","v":""},{"$f":"IF(ISERROR(Dados!P515),\"-\",Dados!P515)","v":""},{"$f":"IF(ISERROR(Dados!Q515),\"-\",Dados!Q515)","v":""},{"$f":"IF(ISERROR(Dados!R515),\"-\",Dados!R515)","v":""},{"$f":"IF(ISERROR(Dados!S515),\"-\",Dados!S515)","v":""},{"$f":"IF(ISERROR(Dados!T515),\"-\",Dados!T515)","v":""},{"$f":"IF(ISERROR(Dados!U515),\"-\",Dados!U515)","v":""},{"$f":"IF(ISERROR(Dados!V515),\"-\",Dados!V515)","v":""},{"$f":"IF(ISERROR(Dados!W515),\"-\",Dados!W515)","v":""},{"$f":"IF(ISERROR(Dados!X515),\"-\",Dados!X515)","v":""},{"$f":"IF(ISERROR(Dados!Y515),\"-\",Dados!Y515)","v":""},{"$f":"IF(ISERROR(Dados!Z515),\"-\",Dados!Z515)","v":""},{"$f":"IF(ISERROR(Dados!AA515),\"-\",Dados!AA515)","v":""},{"$f":"IF(ISERROR(Dados!AB515),\"-\",Dados!AB515)","v":""},{"$f":"IF(ISERROR(Dados!AC515),\"-\",Dados!AC515)","v":""},{"$f":"IF(ISERROR(Dados!AD515),\"-\",Dados!AD515)","v":""},{"$f":"IF(ISERROR(Dados!AE515),\"-\",Dados!AE515)","v":""},{"$f":"IF(ISERROR(Dados!AF515),\"-\",Dados!AF515)","v":""},{"$f":"IF(ISERROR(Dados!AG515),\"-\",Dados!AG515)","v":""}]
[{"$f":"IF(ISERROR(Dados!A516),\"-\",Dados!A516)","v":""},{"$f":"IF(ISERROR(Dados!B516),\"-\",Dados!B516)","v":""},{"$f":"IF(ISERROR(Dados!C516),\"-\",Dados!C516)","v":""},{"$f":"IF(ISERROR(Dados!D516),\"-\",Dados!D516)","v":""},{"$f":"IF(ISERROR(Dados!E516),\"-\",Dados!E516)","v":""},{"$f":"IF(ISERROR(Dados!F516),\"-\",Dados!F516)","v":""},{"$f":"IF(ISERROR(Dados!G516),\"-\",Dados!G516)","v":""},{"$f":"IF(ISERROR(Dados!H516),\"-\",Dados!H516)","v":""},{"$f":"IF(ISERROR(Dados!I516),\"-\",Dados!I516)","v":""},{"$f":"IF(ISERROR(Dados!J516),\"-\",Dados!J516)","v":""},{"$f":"IF(ISERROR(Dados!K516),\"-\",Dados!K516)","v":""},{"$f":"IF(ISERROR(Dados!L516),\"-\",Dados!L516)","v":""},{"$f":"IF(ISERROR(Dados!M516),\"-\",Dados!M516)","v":""},{"$f":"IF(ISERROR(Dados!N516),\"-\",Dados!N516)","v":""},{"$f":"IF(ISERROR(Dados!O516),\"-\",Dados!O516)","v":""},{"$f":"IF(ISERROR(Dados!P516),\"-\",Dados!P516)","v":""},{"$f":"IF(ISERROR(Dados!Q516),\"-\",Dados!Q516)","v":""},{"$f":"IF(ISERROR(Dados!R516),\"-\",Dados!R516)","v":""},{"$f":"IF(ISERROR(Dados!S516),\"-\",Dados!S516)","v":""},{"$f":"IF(ISERROR(Dados!T516),\"-\",Dados!T516)","v":""},{"$f":"IF(ISERROR(Dados!U516),\"-\",Dados!U516)","v":""},{"$f":"IF(ISERROR(Dados!V516),\"-\",Dados!V516)","v":""},{"$f":"IF(ISERROR(Dados!W516),\"-\",Dados!W516)","v":""},{"$f":"IF(ISERROR(Dados!X516),\"-\",Dados!X516)","v":""},{"$f":"IF(ISERROR(Dados!Y516),\"-\",Dados!Y516)","v":""},{"$f":"IF(ISERROR(Dados!Z516),\"-\",Dados!Z516)","v":""},{"$f":"IF(ISERROR(Dados!AA516),\"-\",Dados!AA516)","v":""},{"$f":"IF(ISERROR(Dados!AB516),\"-\",Dados!AB516)","v":""},{"$f":"IF(ISERROR(Dados!AC516),\"-\",Dados!AC516)","v":""},{"$f":"IF(ISERROR(Dados!AD516),\"-\",Dados!AD516)","v":""},{"$f":"IF(ISERROR(Dados!AE516),\"-\",Dados!AE516)","v":""},{"$f":"IF(ISERROR(Dados!AF516),\"-\",Dados!AF516)","v":""},{"$f":"IF(ISERROR(Dados!AG516),\"-\",Dados!AG516)","v":""}]
[{"$f":"IF(ISERROR(Dados!A517),\"-\",Dados!A517)","v":""},{"$f":"IF(ISERROR(Dados!B517),\"-\",Dados!B517)","v":""},{"$f":"IF(ISERROR(Dados!C517),\"-\",Dados!C517)","v":""},{"$f":"IF(ISERROR(Dados!D517),\"-\",Dados!D517)","v":""},{"$f":"IF(ISERROR(Dados!E517),\"-\",Dados!E517)","v":""},{"$f":"IF(ISERROR(Dados!F517),\"-\",Dados!F517)","v":""},{"$f":"IF(ISERROR(Dados!G517),\"-\",Dados!G517)","v":""},{"$f":"IF(ISERROR(Dados!H517),\"-\",Dados!H517)","v":""},{"$f":"IF(ISERROR(Dados!I517),\"-\",Dados!I517)","v":""},{"$f":"IF(ISERROR(Dados!J517),\"-\",Dados!J517)","v":""},{"$f":"IF(ISERROR(Dados!K517),\"-\",Dados!K517)","v":""},{"$f":"IF(ISERROR(Dados!L517),\"-\",Dados!L517)","v":""},{"$f":"IF(ISERROR(Dados!M517),\"-\",Dados!M517)","v":""},{"$f":"IF(ISERROR(Dados!N517),\"-\",Dados!N517)","v":""},{"$f":"IF(ISERROR(Dados!O517),\"-\",Dados!O517)","v":""},{"$f":"IF(ISERROR(Dados!P517),\"-\",Dados!P517)","v":""},{"$f":"IF(ISERROR(Dados!Q517),\"-\",Dados!Q517)","v":""},{"$f":"IF(ISERROR(Dados!R517),\"-\",Dados!R517)","v":""},{"$f":"IF(ISERROR(Dados!S517),\"-\",Dados!S517)","v":""},{"$f":"IF(ISERROR(Dados!T517),\"-\",Dados!T517)","v":""},{"$f":"IF(ISERROR(Dados!U517),\"-\",Dados!U517)","v":""},{"$f":"IF(ISERROR(Dados!V517),\"-\",Dados!V517)","v":""},{"$f":"IF(ISERROR(Dados!W517),\"-\",Dados!W517)","v":""},{"$f":"IF(ISERROR(Dados!X517),\"-\",Dados!X517)","v":""},{"$f":"IF(ISERROR(Dados!Y517),\"-\",Dados!Y517)","v":""},{"$f":"IF(ISERROR(Dados!Z517),\"-\",Dados!Z517)","v":""},{"$f":"IF(ISERROR(Dados!AA517),\"-\",Dados!AA517)","v":""},{"$f":"IF(ISERROR(Dados!AB517),\"-\",Dados!AB517)","v":""},{"$f":"IF(ISERROR(Dados!AC517),\"-\",Dados!AC517)","v":""},{"$f":"IF(ISERROR(Dados!AD517),\"-\",Dados!AD517)","v":""},{"$f":"IF(ISERROR(Dados!AE517),\"-\",Dados!AE517)","v":""},{"$f":"IF(ISERROR(Dados!AF517),\"-\",Dados!AF517)","v":""},{"$f":"IF(ISERROR(Dados!AG517),\"-\",Dados!AG517)","v":""}]
[{"$f":"IF(ISERROR(Dados!A518),\"-\",Dados!A518)","v":""},{"$f":"IF(ISERROR(Dados!B518),\"-\",Dados!B518)","v":""},{"$f":"IF(ISERROR(Dados!C518),\"-\",Dados!C518)","v":""},{"$f":"IF(ISERROR(Dados!D518),\"-\",Dados!D518)","v":""},{"$f":"IF(ISERROR(Dados!E518),\"-\",Dados!E518)","v":""},{"$f":"IF(ISERROR(Dados!F518),\"-\",Dados!F518)","v":""},{"$f":"IF(ISERROR(Dados!G518),\"-\",Dados!G518)","v":""},{"$f":"IF(ISERROR(Dados!H518),\"-\",Dados!H518)","v":""},{"$f":"IF(ISERROR(Dados!I518),\"-\",Dados!I518)","v":""},{"$f":"IF(ISERROR(Dados!J518),\"-\",Dados!J518)","v":""},{"$f":"IF(ISERROR(Dados!K518),\"-\",Dados!K518)","v":""},{"$f":"IF(ISERROR(Dados!L518),\"-\",Dados!L518)","v":""},{"$f":"IF(ISERROR(Dados!M518),\"-\",Dados!M518)","v":""},{"$f":"IF(ISERROR(Dados!N518),\"-\",Dados!N518)","v":""},{"$f":"IF(ISERROR(Dados!O518),\"-\",Dados!O518)","v":""},{"$f":"IF(ISERROR(Dados!P518),\"-\",Dados!P518)","v":""},{"$f":"IF(ISERROR(Dados!Q518),\"-\",Dados!Q518)","v":""},{"$f":"IF(ISERROR(Dados!R518),\"-\",Dados!R518)","v":""},{"$f":"IF(ISERROR(Dados!S518),\"-\",Dados!S518)","v":""},{"$f":"IF(ISERROR(Dados!T518),\"-\",Dados!T518)","v":""},{"$f":"IF(ISERROR(Dados!U518),\"-\",Dados!U518)","v":""},{"$f":"IF(ISERROR(Dados!V518),\"-\",Dados!V518)","v":""},{"$f":"IF(ISERROR(Dados!W518),\"-\",Dados!W518)","v":""},{"$f":"IF(ISERROR(Dados!X518),\"-\",Dados!X518)","v":""},{"$f":"IF(ISERROR(Dados!Y518),\"-\",Dados!Y518)","v":""},{"$f":"IF(ISERROR(Dados!Z518),\"-\",Dados!Z518)","v":""},{"$f":"IF(ISERROR(Dados!AA518),\"-\",Dados!AA518)","v":""},{"$f":"IF(ISERROR(Dados!AB518),\"-\",Dados!AB518)","v":""},{"$f":"IF(ISERROR(Dados!AC518),\"-\",Dados!AC518)","v":""},{"$f":"IF(ISERROR(Dados!AD518),\"-\",Dados!AD518)","v":""},{"$f":"IF(ISERROR(Dados!AE518),\"-\",Dados!AE518)","v":""},{"$f":"IF(ISERROR(Dados!AF518),\"-\",Dados!AF518)","v":""},{"$f":"IF(ISERROR(Dados!AG518),\"-\",Dados!AG518)","v":""}]
[{"$f":"IF(ISERROR(Dados!A519),\"-\",Dados!A519)","v":""},{"$f":"IF(ISERROR(Dados!B519),\"-\",Dados!B519)","v":""},{"$f":"IF(ISERROR(Dados!C519),\"-\",Dados!C519)","v":""},{"$f":"IF(ISERROR(Dados!D519),\"-\",Dados!D519)","v":""},{"$f":"IF(ISERROR(Dados!E519),\"-\",Dados!E519)","v":""},{"$f":"IF(ISERROR(Dados!F519),\"-\",Dados!F519)","v":""},{"$f":"IF(ISERROR(Dados!G519),\"-\",Dados!G519)","v":""},{"$f":"IF(ISERROR(Dados!H519),\"-\",Dados!H519)","v":""},{"$f":"IF(ISERROR(Dados!I519),\"-\",Dados!I519)","v":""},{"$f":"IF(ISERROR(Dados!J519),\"-\",Dados!J519)","v":""},{"$f":"IF(ISERROR(Dados!K519),\"-\",Dados!K519)","v":""},{"$f":"IF(ISERROR(Dados!L519),\"-\",Dados!L519)","v":""},{"$f":"IF(ISERROR(Dados!M519),\"-\",Dados!M519)","v":""},{"$f":"IF(ISERROR(Dados!N519),\"-\",Dados!N519)","v":""},{"$f":"IF(ISERROR(Dados!O519),\"-\",Dados!O519)","v":""},{"$f":"IF(ISERROR(Dados!P519),\"-\",Dados!P519)","v":""},{"$f":"IF(ISERROR(Dados!Q519),\"-\",Dados!Q519)","v":""},{"$f":"IF(ISERROR(Dados!R519),\"-\",Dados!R519)","v":""},{"$f":"IF(ISERROR(Dados!S519),\"-\",Dados!S519)","v":""},{"$f":"IF(ISERROR(Dados!T519),\"-\",Dados!T519)","v":""},{"$f":"IF(ISERROR(Dados!U519),\"-\",Dados!U519)","v":""},{"$f":"IF(ISERROR(Dados!V519),\"-\",Dados!V519)","v":""},{"$f":"IF(ISERROR(Dados!W519),\"-\",Dados!W519)","v":""},{"$f":"IF(ISERROR(Dados!X519),\"-\",Dados!X519)","v":""},{"$f":"IF(ISERROR(Dados!Y519),\"-\",Dados!Y519)","v":""},{"$f":"IF(ISERROR(Dados!Z519),\"-\",Dados!Z519)","v":""},{"$f":"IF(ISERROR(Dados!AA519),\"-\",Dados!AA519)","v":""},{"$f":"IF(ISERROR(Dados!AB519),\"-\",Dados!AB519)","v":""},{"$f":"IF(ISERROR(Dados!AC519),\"-\",Dados!AC519)","v":""},{"$f":"IF(ISERROR(Dados!AD519),\"-\",Dados!AD519)","v":""},{"$f":"IF(ISERROR(Dados!AE519),\"-\",Dados!AE519)","v":""},{"$f":"IF(ISERROR(Dados!AF519),\"-\",Dados!AF519)","v":""},{"$f":"IF(ISERROR(Dados!AG519),\"-\",Dados!AG519)","v":""}]
[{"$f":"IF(ISERROR(Dados!A520),\"-\",Dados!A520)","v":""},{"$f":"IF(ISERROR(Dados!B520),\"-\",Dados!B520)","v":""},{"$f":"IF(ISERROR(Dados!C520),\"-\",Dados!C520)","v":""},{"$f":"IF(ISERROR(Dados!D520),\"-\",Dados!D520)","v":""},{"$f":"IF(ISERROR(Dados!E520),\"-\",Dados!E520)","v":""},{"$f":"IF(ISERROR(Dados!F520),\"-\",Dados!F520)","v":""},{"$f":"IF(ISERROR(Dados!G520),\"-\",Dados!G520)","v":""},{"$f":"IF(ISERROR(Dados!H520),\"-\",Dados!H520)","v":""},{"$f":"IF(ISERROR(Dados!I520),\"-\",Dados!I520)","v":""},{"$f":"IF(ISERROR(Dados!J520),\"-\",Dados!J520)","v":""},{"$f":"IF(ISERROR(Dados!K520),\"-\",Dados!K520)","v":""},{"$f":"IF(ISERROR(Dados!L520),\"-\",Dados!L520)","v":""},{"$f":"IF(ISERROR(Dados!M520),\"-\",Dados!M520)","v":""},{"$f":"IF(ISERROR(Dados!N520),\"-\",Dados!N520)","v":""},{"$f":"IF(ISERROR(Dados!O520),\"-\",Dados!O520)","v":""},{"$f":"IF(ISERROR(Dados!P520),\"-\",Dados!P520)","v":""},{"$f":"IF(ISERROR(Dados!Q520),\"-\",Dados!Q520)","v":""},{"$f":"IF(ISERROR(Dados!R520),\"-\",Dados!R520)","v":""},{"$f":"IF(ISERROR(Dados!S520),\"-\",Dados!S520)","v":""},{"$f":"IF(ISERROR(Dados!T520),\"-\",Dados!T520)","v":""},{"$f":"IF(ISERROR(Dados!U520),\"-\",Dados!U520)","v":""},{"$f":"IF(ISERROR(Dados!V520),\"-\",Dados!V520)","v":""},{"$f":"IF(ISERROR(Dados!W520),\"-\",Dados!W520)","v":""},{"$f":"IF(ISERROR(Dados!X520),\"-\",Dados!X520)","v":""},{"$f":"IF(ISERROR(Dados!Y520),\"-\",Dados!Y520)","v":""},{"$f":"IF(ISERROR(Dados!Z520),\"-\",Dados!Z520)","v":""},{"$f":"IF(ISERROR(Dados!AA520),\"-\",Dados!AA520)","v":""},{"$f":"IF(ISERROR(Dados!AB520),\"-\",Dados!AB520)","v":""},{"$f":"IF(ISERROR(Dados!AC520),\"-\",Dados!AC520)","v":""},{"$f":"IF(ISERROR(Dados!AD520),\"-\",Dados!AD520)","v":""},{"$f":"IF(ISERROR(Dados!AE520),\"-\",Dados!AE520)","v":""},{"$f":"IF(ISERROR(Dados!AF520),\"-\",Dados!AF520)","v":""},{"$f":"IF(ISERROR(Dados!AG520),\"-\",Dados!AG520)","v":""}]
[{"$f":"IF(ISERROR(Dados!A521),\"-\",Dados!A521)","v":""},{"$f":"IF(ISERROR(Dados!B521),\"-\",Dados!B521)","v":""},{"$f":"IF(ISERROR(Dados!C521),\"-\",Dados!C521)","v":""},{"$f":"IF(ISERROR(Dados!D521),\"-\",Dados!D521)","v":""},{"$f":"IF(ISERROR(Dados!E521),\"-\",Dados!E521)","v":""},{"$f":"IF(ISERROR(Dados!F521),\"-\",Dados!F521)","v":""},{"$f":"IF(ISERROR(Dados!G521),\"-\",Dados!G521)","v":""},{"$f":"IF(ISERROR(Dados!H521),\"-\",Dados!H521)","v":""},{"$f":"IF(ISERROR(Dados!I521),\"-\",Dados!I521)","v":""},{"$f":"IF(ISERROR(Dados!J521),\"-\",Dados!J521)","v":""},{"$f":"IF(ISERROR(Dados!K521),\"-\",Dados!K521)","v":""},{"$f":"IF(ISERROR(Dados!L521),\"-\",Dados!L521)","v":""},{"$f":"IF(ISERROR(Dados!M521),\"-\",Dados!M521)","v":""},{"$f":"IF(ISERROR(Dados!N521),\"-\",Dados!N521)","v":""},{"$f":"IF(ISERROR(Dados!O521),\"-\",Dados!O521)","v":""},{"$f":"IF(ISERROR(Dados!P521),\"-\",Dados!P521)","v":""},{"$f":"IF(ISERROR(Dados!Q521),\"-\",Dados!Q521)","v":""},{"$f":"IF(ISERROR(Dados!R521),\"-\",Dados!R521)","v":""},{"$f":"IF(ISERROR(Dados!S521),\"-\",Dados!S521)","v":""},{"$f":"IF(ISERROR(Dados!T521),\"-\",Dados!T521)","v":""},{"$f":"IF(ISERROR(Dados!U521),\"-\",Dados!U521)","v":""},{"$f":"IF(ISERROR(Dados!V521),\"-\",Dados!V521)","v":""},{"$f":"IF(ISERROR(Dados!W521),\"-\",Dados!W521)","v":""},{"$f":"IF(ISERROR(Dados!X521),\"-\",Dados!X521)","v":""},{"$f":"IF(ISERROR(Dados!Y521),\"-\",Dados!Y521)","v":""},{"$f":"IF(ISERROR(Dados!Z521),\"-\",Dados!Z521)","v":""},{"$f":"IF(ISERROR(Dados!AA521),\"-\",Dados!AA521)","v":""},{"$f":"IF(ISERROR(Dados!AB521),\"-\",Dados!AB521)","v":""},{"$f":"IF(ISERROR(Dados!AC521),\"-\",Dados!AC521)","v":""},{"$f":"IF(ISERROR(Dados!AD521),\"-\",Dados!AD521)","v":""},{"$f":"IF(ISERROR(Dados!AE521),\"-\",Dados!AE521)","v":""},{"$f":"IF(ISERROR(Dados!AF521),\"-\",Dados!AF521)","v":""},{"$f":"IF(ISERROR(Dados!AG521),\"-\",Dados!AG521)","v":""}]
[{"$f":"IF(ISERROR(Dados!A522),\"-\",Dados!A522)","v":""},{"$f":"IF(ISERROR(Dados!B522),\"-\",Dados!B522)","v":""},{"$f":"IF(ISERROR(Dados!C522),\"-\",Dados!C522)","v":""},{"$f":"IF(ISERROR(Dados!D522),\"-\",Dados!D522)","v":""},{"$f":"IF(ISERROR(Dados!E522),\"-\",Dados!E522)","v":""},{"$f":"IF(ISERROR(Dados!F522),\"-\",Dados!F522)","v":""},{"$f":"IF(ISERROR(Dados!G522),\"-\",Dados!G522)","v":""},{"$f":"IF(ISERROR(Dados!H522),\"-\",Dados!H522)","v":""},{"$f":"IF(ISERROR(Dados!I522),\"-\",Dados!I522)","v":""},{"$f":"IF(ISERROR(Dados!J522),\"-\",Dados!J522)","v":""},{"$f":"IF(ISERROR(Dados!K522),\"-\",Dados!K522)","v":""},{"$f":"IF(ISERROR(Dados!L522),\"-\",Dados!L522)","v":""},{"$f":"IF(ISERROR(Dados!M522),\"-\",Dados!M522)","v":""},{"$f":"IF(ISERROR(Dados!N522),\"-\",Dados!N522)","v":""},{"$f":"IF(ISERROR(Dados!O522),\"-\",Dados!O522)","v":""},{"$f":"IF(ISERROR(Dados!P522),\"-\",Dados!P522)","v":""},{"$f":"IF(ISERROR(Dados!Q522),\"-\",Dados!Q522)","v":""},{"$f":"IF(ISERROR(Dados!R522),\"-\",Dados!R522)","v":""},{"$f":"IF(ISERROR(Dados!S522),\"-\",Dados!S522)","v":""},{"$f":"IF(ISERROR(Dados!T522),\"-\",Dados!T522)","v":""},{"$f":"IF(ISERROR(Dados!U522),\"-\",Dados!U522)","v":""},{"$f":"IF(ISERROR(Dados!V522),\"-\",Dados!V522)","v":""},{"$f":"IF(ISERROR(Dados!W522),\"-\",Dados!W522)","v":""},{"$f":"IF(ISERROR(Dados!X522),\"-\",Dados!X522)","v":""},{"$f":"IF(ISERROR(Dados!Y522),\"-\",Dados!Y522)","v":""},{"$f":"IF(ISERROR(Dados!Z522),\"-\",Dados!Z522)","v":""},{"$f":"IF(ISERROR(Dados!AA522),\"-\",Dados!AA522)","v":""},{"$f":"IF(ISERROR(Dados!AB522),\"-\",Dados!AB522)","v":""},{"$f":"IF(ISERROR(Dados!AC522),\"-\",Dados!AC522)","v":""},{"$f":"IF(ISERROR(Dados!AD522),\"-\",Dados!AD522)","v":""},{"$f":"IF(ISERROR(Dados!AE522),\"-\",Dados!AE522)","v":""},{"$f":"IF(ISERROR(Dados!AF522),\"-\",Dados!AF522)","v":""},{"$f":"IF(ISERROR(Dados!AG522),\"-\",Dados!AG522)","v":""}]
[{"$f":"IF(ISERROR(Dados!A523),\"-\",Dados!A523)","v":""},{"$f":"IF(ISERROR(Dados!B523),\"-\",Dados!B523)","v":""},{"$f":"IF(ISERROR(Dados!C523),\"-\",Dados!C523)","v":""},{"$f":"IF(ISERROR(Dados!D523),\"-\",Dados!D523)","v":""},{"$f":"IF(ISERROR(Dados!E523),\"-\",Dados!E523)","v":""},{"$f":"IF(ISERROR(Dados!F523),\"-\",Dados!F523)","v":""},{"$f":"IF(ISERROR(Dados!G523),\"-\",Dados!G523)","v":""},{"$f":"IF(ISERROR(Dados!H523),\"-\",Dados!H523)","v":""},{"$f":"IF(ISERROR(Dados!I523),\"-\",Dados!I523)","v":""},{"$f":"IF(ISERROR(Dados!J523),\"-\",Dados!J523)","v":""},{"$f":"IF(ISERROR(Dados!K523),\"-\",Dados!K523)","v":""},{"$f":"IF(ISERROR(Dados!L523),\"-\",Dados!L523)","v":""},{"$f":"IF(ISERROR(Dados!M523),\"-\",Dados!M523)","v":""},{"$f":"IF(ISERROR(Dados!N523),\"-\",Dados!N523)","v":""},{"$f":"IF(ISERROR(Dados!O523),\"-\",Dados!O523)","v":""},{"$f":"IF(ISERROR(Dados!P523),\"-\",Dados!P523)","v":""},{"$f":"IF(ISERROR(Dados!Q523),\"-\",Dados!Q523)","v":""},{"$f":"IF(ISERROR(Dados!R523),\"-\",Dados!R523)","v":""},{"$f":"IF(ISERROR(Dados!S523),\"-\",Dados!S523)","v":""},{"$f":"IF(ISERROR(Dados!T523),\"-\",Dados!T523)","v":""},{"$f":"IF(ISERROR(Dados!U523),\"-\",Dados!U523)","v":""},{"$f":"IF(ISERROR(Dados!V523),\"-\",Dados!V523)","v":""},{"$f":"IF(ISERROR(Dados!W523),\"-\",Dados!W523)","v":""},{"$f":"IF(ISERROR(Dados!X523),\"-\",Dados!X523)","v":""},{"$f":"IF(ISERROR(Dados!Y523),\"-\",Dados!Y523)","v":""},{"$f":"IF(ISERROR(Dados!Z523),\"-\",Dados!Z523)","v":""},{"$f":"IF(ISERROR(Dados!AA523),\"-\",Dados!AA523)","v":""},{"$f":"IF(ISERROR(Dados!AB523),\"-\",Dados!AB523)","v":""},{"$f":"IF(ISERROR(Dados!AC523),\"-\",Dados!AC523)","v":""},{"$f":"IF(ISERROR(Dados!AD523),\"-\",Dados!AD523)","v":""},{"$f":"IF(ISERROR(Dados!AE523),\"-\",Dados!AE523)","v":""},{"$f":"IF(ISERROR(Dados!AF523),\"-\",Dados!AF523)","v":""},{"$f":"IF(ISERROR(Dados!AG523),\"-\",Dados!AG523)","v":""}]
[{"$f":"IF(ISERROR(Dados!A524),\"-\",Dados!A524)","v":""},{"$f":"IF(ISERROR(Dados!B524),\"-\",Dados!B524)","v":""},{"$f":"IF(ISERROR(Dados!C524),\"-\",Dados!C524)","v":""},{"$f":"IF(ISERROR(Dados!D524),\"-\",Dados!D524)","v":""},{"$f":"IF(ISERROR(Dados!E524),\"-\",Dados!E524)","v":""},{"$f":"IF(ISERROR(Dados!F524),\"-\",Dados!F524)","v":""},{"$f":"IF(ISERROR(Dados!G524),\"-\",Dados!G524)","v":""},{"$f":"IF(ISERROR(Dados!H524),\"-\",Dados!H524)","v":""},{"$f":"IF(ISERROR(Dados!I524),\"-\",Dados!I524)","v":""},{"$f":"IF(ISERROR(Dados!J524),\"-\",Dados!J524)","v":""},{"$f":"IF(ISERROR(Dados!K524),\"-\",Dados!K524)","v":""},{"$f":"IF(ISERROR(Dados!L524),\"-\",Dados!L524)","v":""},{"$f":"IF(ISERROR(Dados!M524),\"-\",Dados!M524)","v":""},{"$f":"IF(ISERROR(Dados!N524),\"-\",Dados!N524)","v":""},{"$f":"IF(ISERROR(Dados!O524),\"-\",Dados!O524)","v":""},{"$f":"IF(ISERROR(Dados!P524),\"-\",Dados!P524)","v":""},{"$f":"IF(ISERROR(Dados!Q524),\"-\",Dados!Q524)","v":""},{"$f":"IF(ISERROR(Dados!R524),\"-\",Dados!R524)","v":""},{"$f":"IF(ISERROR(Dados!S524),\"-\",Dados!S524)","v":""},{"$f":"IF(ISERROR(Dados!T524),\"-\",Dados!T524)","v":""},{"$f":"IF(ISERROR(Dados!U524),\"-\",Dados!U524)","v":""},{"$f":"IF(ISERROR(Dados!V524),\"-\",Dados!V524)","v":""},{"$f":"IF(ISERROR(Dados!W524),\"-\",Dados!W524)","v":""},{"$f":"IF(ISERROR(Dados!X524),\"-\",Dados!X524)","v":""},{"$f":"IF(ISERROR(Dados!Y524),\"-\",Dados!Y524)","v":""},{"$f":"IF(ISERROR(Dados!Z524),\"-\",Dados!Z524)","v":""},{"$f":"IF(ISERROR(Dados!AA524),\"-\",Dados!AA524)","v":""},{"$f":"IF(ISERROR(Dados!AB524),\"-\",Dados!AB524)","v":""},{"$f":"IF(ISERROR(Dados!AC524),\"-\",Dados!AC524)","v":""},{"$f":"IF(ISERROR(Dados!AD524),\"-\",Dados!AD524)","v":""},{"$f":"IF(ISERROR(Dados!AE524),\"-\",Dados!AE524)","v":""},{"$f":"IF(ISERROR(Dados!AF524),\"-\",Dados!AF524)","v":""},{"$f":"IF(ISERROR(Dados!AG524),\"-\",Dados!AG524)","v":""}]
[{"$f":"IF(ISERROR(Dados!A525),\"-\",Dados!A525)","v":""},{"$f":"IF(ISERROR(Dados!B525),\"-\",Dados!B525)","v":""},{"$f":"IF(ISERROR(Dados!C525),\"-\",Dados!C525)","v":""},{"$f":"IF(ISERROR(Dados!D525),\"-\",Dados!D525)","v":""},{"$f":"IF(ISERROR(Dados!E525),\"-\",Dados!E525)","v":""},{"$f":"IF(ISERROR(Dados!F525),\"-\",Dados!F525)","v":""},{"$f":"IF(ISERROR(Dados!G525),\"-\",Dados!G525)","v":""},{"$f":"IF(ISERROR(Dados!H525),\"-\",Dados!H525)","v":""},{"$f":"IF(ISERROR(Dados!I525),\"-\",Dados!I525)","v":""},{"$f":"IF(ISERROR(Dados!J525),\"-\",Dados!J525)","v":""},{"$f":"IF(ISERROR(Dados!K525),\"-\",Dados!K525)","v":""},{"$f":"IF(ISERROR(Dados!L525),\"-\",Dados!L525)","v":""},{"$f":"IF(ISERROR(Dados!M525),\"-\",Dados!M525)","v":""},{"$f":"IF(ISERROR(Dados!N525),\"-\",Dados!N525)","v":""},{"$f":"IF(ISERROR(Dados!O525),\"-\",Dados!O525)","v":""},{"$f":"IF(ISERROR(Dados!P525),\"-\",Dados!P525)","v":""},{"$f":"IF(ISERROR(Dados!Q525),\"-\",Dados!Q525)","v":""},{"$f":"IF(ISERROR(Dados!R525),\"-\",Dados!R525)","v":""},{"$f":"IF(ISERROR(Dados!S525),\"-\",Dados!S525)","v":""},{"$f":"IF(ISERROR(Dados!T525),\"-\",Dados!T525)","v":""},{"$f":"IF(ISERROR(Dados!U525),\"-\",Dados!U525)","v":""},{"$f":"IF(ISERROR(Dados!V525),\"-\",Dados!V525)","v":""},{"$f":"IF(ISERROR(Dados!W525),\"-\",Dados!W525)","v":""},{"$f":"IF(ISERROR(Dados!X525),\"-\",Dados!X525)","v":""},{"$f":"IF(ISERROR(Dados!Y525),\"-\",Dados!Y525)","v":""},{"$f":"IF(ISERROR(Dados!Z525),\"-\",Dados!Z525)","v":""},{"$f":"IF(ISERROR(Dados!AA525),\"-\",Dados!AA525)","v":""},{"$f":"IF(ISERROR(Dados!AB525),\"-\",Dados!AB525)","v":""},{"$f":"IF(ISERROR(Dados!AC525),\"-\",Dados!AC525)","v":""},{"$f":"IF(ISERROR(Dados!AD525),\"-\",Dados!AD525)","v":""},{"$f":"IF(ISERROR(Dados!AE525),\"-\",Dados!AE525)","v":""},{"$f":"IF(ISERROR(Dados!AF525),\"-\",Dados!AF525)","v":""},{"$f":"IF(ISERROR(Dados!AG525),\"-\",Dados!AG525)","v":""}]
[{"$f":"IF(ISERROR(Dados!A526),\"-\",Dados!A526)","v":""},{"$f":"IF(ISERROR(Dados!B526),\"-\",Dados!B526)","v":""},{"$f":"IF(ISERROR(Dados!C526),\"-\",Dados!C526)","v":""},{"$f":"IF(ISERROR(Dados!D526),\"-\",Dados!D526)","v":""},{"$f":"IF(ISERROR(Dados!E526),\"-\",Dados!E526)","v":""},{"$f":"IF(ISERROR(Dados!F526),\"-\",Dados!F526)","v":""},{"$f":"IF(ISERROR(Dados!G526),\"-\",Dados!G526)","v":""},{"$f":"IF(ISERROR(Dados!H526),\"-\",Dados!H526)","v":""},{"$f":"IF(ISERROR(Dados!I526),\"-\",Dados!I526)","v":""},{"$f":"IF(ISERROR(Dados!J526),\"-\",Dados!J526)","v":""},{"$f":"IF(ISERROR(Dados!K526),\"-\",Dados!K526)","v":""},{"$f":"IF(ISERROR(Dados!L526),\"-\",Dados!L526)","v":""},{"$f":"IF(ISERROR(Dados!M526),\"-\",Dados!M526)","v":""},{"$f":"IF(ISERROR(Dados!N526),\"-\",Dados!N526)","v":""},{"$f":"IF(ISERROR(Dados!O526),\"-\",Dados!O526)","v":""},{"$f":"IF(ISERROR(Dados!P526),\"-\",Dados!P526)","v":""},{"$f":"IF(ISERROR(Dados!Q526),\"-\",Dados!Q526)","v":""},{"$f":"IF(ISERROR(Dados!R526),\"-\",Dados!R526)","v":""},{"$f":"IF(ISERROR(Dados!S526),\"-\",Dados!S526)","v":""},{"$f":"IF(ISERROR(Dados!T526),\"-\",Dados!T526)","v":""},{"$f":"IF(ISERROR(Dados!U526),\"-\",Dados!U526)","v":""},{"$f":"IF(ISERROR(Dados!V526),\"-\",Dados!V526)","v":""},{"$f":"IF(ISERROR(Dados!W526),\"-\",Dados!W526)","v":""},{"$f":"IF(ISERROR(Dados!X526),\"-\",Dados!X526)","v":""},{"$f":"IF(ISERROR(Dados!Y526),\"-\",Dados!Y526)","v":""},{"$f":"IF(ISERROR(Dados!Z526),\"-\",Dados!Z526)","v":""},{"$f":"IF(ISERROR(Dados!AA526),\"-\",Dados!AA526)","v":""},{"$f":"IF(ISERROR(Dados!AB526),\"-\",Dados!AB526)","v":""},{"$f":"IF(ISERROR(Dados!AC526),\"-\",Dados!AC526)","v":""},{"$f":"IF(ISERROR(Dados!AD526),\"-\",Dados!AD526)","v":""},{"$f":"IF(ISERROR(Dados!AE526),\"-\",Dados!AE526)","v":""},{"$f":"IF(ISERROR(Dados!AF526),\"-\",Dados!AF526)","v":""},{"$f":"IF(ISERROR(Dados!AG526),\"-\",Dados!AG526)","v":""}]
[{"$f":"IF(ISERROR(Dados!A527),\"-\",Dados!A527)","v":""},{"$f":"IF(ISERROR(Dados!B527),\"-\",Dados!B527)","v":""},{"$f":"IF(ISERROR(Dados!C527),\"-\",Dados!C527)","v":""},{"$f":"IF(ISERROR(Dados!D527),\"-\",Dados!D527)","v":""},{"$f":"IF(ISERROR(Dados!E527),\"-\",Dados!E527)","v":""},{"$f":"IF(ISERROR(Dados!F527),\"-\",Dados!F527)","v":""},{"$f":"IF(ISERROR(Dados!G527),\"-\",Dados!G527)","v":""},{"$f":"IF(ISERROR(Dados!H527),\"-\",Dados!H527)","v":""},{"$f":"IF(ISERROR(Dados!I527),\"-\",Dados!I527)","v":""},{"$f":"IF(ISERROR(Dados!J527),\"-\",Dados!J527)","v":""},{"$f":"IF(ISERROR(Dados!K527),\"-\",Dados!K527)","v":""},{"$f":"IF(ISERROR(Dados!L527),\"-\",Dados!L527)","v":""},{"$f":"IF(ISERROR(Dados!M527),\"-\",Dados!M527)","v":""},{"$f":"IF(ISERROR(Dados!N527),\"-\",Dados!N527)","v":""},{"$f":"IF(ISERROR(Dados!O527),\"-\",Dados!O527)","v":""},{"$f":"IF(ISERROR(Dados!P527),\"-\",Dados!P527)","v":""},{"$f":"IF(ISERROR(Dados!Q527),\"-\",Dados!Q527)","v":""},{"$f":"IF(ISERROR(Dados!R527),\"-\",Dados!R527)","v":""},{"$f":"IF(ISERROR(Dados!S527),\"-\",Dados!S527)","v":""},{"$f":"IF(ISERROR(Dados!T527),\"-\",Dados!T527)","v":""},{"$f":"IF(ISERROR(Dados!U527),\"-\",Dados!U527)","v":""},{"$f":"IF(ISERROR(Dados!V527),\"-\",Dados!V527)","v":""},{"$f":"IF(ISERROR(Dados!W527),\"-\",Dados!W527)","v":""},{"$f":"IF(ISERROR(Dados!X527),\"-\",Dados!X527)","v":""},{"$f":"IF(ISERROR(Dados!Y527),\"-\",Dados!Y527)","v":""},{"$f":"IF(ISERROR(Dados!Z527),\"-\",Dados!Z527)","v":""},{"$f":"IF(ISERROR(Dados!AA527),\"-\",Dados!AA527)","v":""},{"$f":"IF(ISERROR(Dados!AB527),\"-\",Dados!AB527)","v":""},{"$f":"IF(ISERROR(Dados!AC527),\"-\",Dados!AC527)","v":""},{"$f":"IF(ISERROR(Dados!AD527),\"-\",Dados!AD527)","v":""},{"$f":"IF(ISERROR(Dados!AE527),\"-\",Dados!AE527)","v":""},{"$f":"IF(ISERROR(Dados!AF527),\"-\",Dados!AF527)","v":""},{"$f":"IF(ISERROR(Dados!AG527),\"-\",Dados!AG527)","v":""}]
[{"$f":"IF(ISERROR(Dados!A528),\"-\",Dados!A528)","v":""},{"$f":"IF(ISERROR(Dados!B528),\"-\",Dados!B528)","v":""},{"$f":"IF(ISERROR(Dados!C528),\"-\",Dados!C528)","v":""},{"$f":"IF(ISERROR(Dados!D528),\"-\",Dados!D528)","v":""},{"$f":"IF(ISERROR(Dados!E528),\"-\",Dados!E528)","v":""},{"$f":"IF(ISERROR(Dados!F528),\"-\",Dados!F528)","v":""},{"$f":"IF(ISERROR(Dados!G528),\"-\",Dados!G528)","v":""},{"$f":"IF(ISERROR(Dados!H528),\"-\",Dados!H528)","v":""},{"$f":"IF(ISERROR(Dados!I528),\"-\",Dados!I528)","v":""},{"$f":"IF(ISERROR(Dados!J528),\"-\",Dados!J528)","v":""},{"$f":"IF(ISERROR(Dados!K528),\"-\",Dados!K528)","v":""},{"$f":"IF(ISERROR(Dados!L528),\"-\",Dados!L528)","v":""},{"$f":"IF(ISERROR(Dados!M528),\"-\",Dados!M528)","v":""},{"$f":"IF(ISERROR(Dados!N528),\"-\",Dados!N528)","v":""},{"$f":"IF(ISERROR(Dados!O528),\"-\",Dados!O528)","v":""},{"$f":"IF(ISERROR(Dados!P528),\"-\",Dados!P528)","v":""},{"$f":"IF(ISERROR(Dados!Q528),\"-\",Dados!Q528)","v":""},{"$f":"IF(ISERROR(Dados!R528),\"-\",Dados!R528)","v":""},{"$f":"IF(ISERROR(Dados!S528),\"-\",Dados!S528)","v":""},{"$f":"IF(ISERROR(Dados!T528),\"-\",Dados!T528)","v":""},{"$f":"IF(ISERROR(Dados!U528),\"-\",Dados!U528)","v":""},{"$f":"IF(ISERROR(Dados!V528),\"-\",Dados!V528)","v":""},{"$f":"IF(ISERROR(Dados!W528),\"-\",Dados!W528)","v":""},{"$f":"IF(ISERROR(Dados!X528),\"-\",Dados!X528)","v":""},{"$f":"IF(ISERROR(Dados!Y528),\"-\",Dados!Y528)","v":""},{"$f":"IF(ISERROR(Dados!Z528),\"-\",Dados!Z528)","v":""},{"$f":"IF(ISERROR(Dados!AA528),\"-\",Dados!AA528)","v":""},{"$f":"IF(ISERROR(Dados!AB528),\"-\",Dados!AB528)","v":""},{"$f":"IF(ISERROR(Dados!AC528),\"-\",Dados!AC528)","v":""},{"$f":"IF(ISERROR(Dados!AD528),\"-\",Dados!AD528)","v":""},{"$f":"IF(ISERROR(Dados!AE528),\"-\",Dados!AE528)","v":""},{"$f":"IF(ISERROR(Dados!AF528),\"-\",Dados!AF528)","v":""},{"$f":"IF(ISERROR(Dados!AG528),\"-\",Dados!AG528)","v":""}]
[{"$f":"IF(ISERROR(Dados!A529),\"-\",Dados!A529)","v":""},{"$f":"IF(ISERROR(Dados!B529),\"-\",Dados!B529)","v":""},{"$f":"IF(ISERROR(Dados!C529),\"-\",Dados!C529)","v":""},{"$f":"IF(ISERROR(Dados!D529),\"-\",Dados!D529)","v":""},{"$f":"IF(ISERROR(Dados!E529),\"-\",Dados!E529)","v":""},{"$f":"IF(ISERROR(Dados!F529),\"-\",Dados!F529)","v":""},{"$f":"IF(ISERROR(Dados!G529),\"-\",Dados!G529)","v":""},{"$f":"IF(ISERROR(Dados!H529),\"-\",Dados!H529)","v":""},{"$f":"IF(ISERROR(Dados!I529),\"-\",Dados!I529)","v":""},{"$f":"IF(ISERROR(Dados!J529),\"-\",Dados!J529)","v":""},{"$f":"IF(ISERROR(Dados!K529),\"-\",Dados!K529)","v":""},{"$f":"IF(ISERROR(Dados!L529),\"-\",Dados!L529)","v":""},{"$f":"IF(ISERROR(Dados!M529),\"-\",Dados!M529)","v":""},{"$f":"IF(ISERROR(Dados!N529),\"-\",Dados!N529)","v":""},{"$f":"IF(ISERROR(Dados!O529),\"-\",Dados!O529)","v":""},{"$f":"IF(ISERROR(Dados!P529),\"-\",Dados!P529)","v":""},{"$f":"IF(ISERROR(Dados!Q529),\"-\",Dados!Q529)","v":""},{"$f":"IF(ISERROR(Dados!R529),\"-\",Dados!R529)","v":""},{"$f":"IF(ISERROR(Dados!S529),\"-\",Dados!S529)","v":""},{"$f":"IF(ISERROR(Dados!T529),\"-\",Dados!T529)","v":""},{"$f":"IF(ISERROR(Dados!U529),\"-\",Dados!U529)","v":""},{"$f":"IF(ISERROR(Dados!V529),\"-\",Dados!V529)","v":""},{"$f":"IF(ISERROR(Dados!W529),\"-\",Dados!W529)","v":""},{"$f":"IF(ISERROR(Dados!X529),\"-\",Dados!X529)","v":""},{"$f":"IF(ISERROR(Dados!Y529),\"-\",Dados!Y529)","v":""},{"$f":"IF(ISERROR(Dados!Z529),\"-\",Dados!Z529)","v":""},{"$f":"IF(ISERROR(Dados!AA529),\"-\",Dados!AA529)","v":""},{"$f":"IF(ISERROR(Dados!AB529),\"-\",Dados!AB529)","v":""},{"$f":"IF(ISERROR(Dados!AC529),\"-\",Dados!AC529)","v":""},{"$f":"IF(ISERROR(Dados!AD529),\"-\",Dados!AD529)","v":""},{"$f":"IF(ISERROR(Dados!AE529),\"-\",Dados!AE529)","v":""},{"$f":"IF(ISERROR(Dados!AF529),\"-\",Dados!AF529)","v":""},{"$f":"IF(ISERROR(Dados!AG529),\"-\",Dados!AG529)","v":""}]
[{"$f":"IF(ISERROR(Dados!A530),\"-\",Dados!A530)","v":""},{"$f":"IF(ISERROR(Dados!B530),\"-\",Dados!B530)","v":""},{"$f":"IF(ISERROR(Dados!C530),\"-\",Dados!C530)","v":""},{"$f":"IF(ISERROR(Dados!D530),\"-\",Dados!D530)","v":""},{"$f":"IF(ISERROR(Dados!E530),\"-\",Dados!E530)","v":""},{"$f":"IF(ISERROR(Dados!F530),\"-\",Dados!F530)","v":""},{"$f":"IF(ISERROR(Dados!G530),\"-\",Dados!G530)","v":""},{"$f":"IF(ISERROR(Dados!H530),\"-\",Dados!H530)","v":""},{"$f":"IF(ISERROR(Dados!I530),\"-\",Dados!I530)","v":""},{"$f":"IF(ISERROR(Dados!J530),\"-\",Dados!J530)","v":""},{"$f":"IF(ISERROR(Dados!K530),\"-\",Dados!K530)","v":""},{"$f":"IF(ISERROR(Dados!L530),\"-\",Dados!L530)","v":""},{"$f":"IF(ISERROR(Dados!M530),\"-\",Dados!M530)","v":""},{"$f":"IF(ISERROR(Dados!N530),\"-\",Dados!N530)","v":""},{"$f":"IF(ISERROR(Dados!O530),\"-\",Dados!O530)","v":""},{"$f":"IF(ISERROR(Dados!P530),\"-\",Dados!P530)","v":""},{"$f":"IF(ISERROR(Dados!Q530),\"-\",Dados!Q530)","v":""},{"$f":"IF(ISERROR(Dados!R530),\"-\",Dados!R530)","v":""},{"$f":"IF(ISERROR(Dados!S530),\"-\",Dados!S530)","v":""},{"$f":"IF(ISERROR(Dados!T530),\"-\",Dados!T530)","v":""},{"$f":"IF(ISERROR(Dados!U530),\"-\",Dados!U530)","v":""},{"$f":"IF(ISERROR(Dados!V530),\"-\",Dados!V530)","v":""},{"$f":"IF(ISERROR(Dados!W530),\"-\",Dados!W530)","v":""},{"$f":"IF(ISERROR(Dados!X530),\"-\",Dados!X530)","v":""},{"$f":"IF(ISERROR(Dados!Y530),\"-\",Dados!Y530)","v":""},{"$f":"IF(ISERROR(Dados!Z530),\"-\",Dados!Z530)","v":""},{"$f":"IF(ISERROR(Dados!AA530),\"-\",Dados!AA530)","v":""},{"$f":"IF(ISERROR(Dados!AB530),\"-\",Dados!AB530)","v":""},{"$f":"IF(ISERROR(Dados!AC530),\"-\",Dados!AC530)","v":""},{"$f":"IF(ISERROR(Dados!AD530),\"-\",Dados!AD530)","v":""},{"$f":"IF(ISERROR(Dados!AE530),\"-\",Dados!AE530)","v":""},{"$f":"IF(ISERROR(Dados!AF530),\"-\",Dados!AF530)","v":""},{"$f":"IF(ISERROR(Dados!AG530),\"-\",Dados!AG530)","v":""}]
[{"$f":"IF(ISERROR(Dados!A531),\"-\",Dados!A531)","v":""},{"$f":"IF(ISERROR(Dados!B531),\"-\",Dados!B531)","v":""},{"$f":"IF(ISERROR(Dados!C531),\"-\",Dados!C531)","v":""},{"$f":"IF(ISERROR(Dados!D531),\"-\",Dados!D531)","v":""},{"$f":"IF(ISERROR(Dados!E531),\"-\",Dados!E531)","v":""},{"$f":"IF(ISERROR(Dados!F531),\"-\",Dados!F531)","v":""},{"$f":"IF(ISERROR(Dados!G531),\"-\",Dados!G531)","v":""},{"$f":"IF(ISERROR(Dados!H531),\"-\",Dados!H531)","v":""},{"$f":"IF(ISERROR(Dados!I531),\"-\",Dados!I531)","v":""},{"$f":"IF(ISERROR(Dados!J531),\"-\",Dados!J531)","v":""},{"$f":"IF(ISERROR(Dados!K531),\"-\",Dados!K531)","v":""},{"$f":"IF(ISERROR(Dados!L531),\"-\",Dados!L531)","v":""},{"$f":"IF(ISERROR(Dados!M531),\"-\",Dados!M531)","v":""},{"$f":"IF(ISERROR(Dados!N531),\"-\",Dados!N531)","v":""},{"$f":"IF(ISERROR(Dados!O531),\"-\",Dados!O531)","v":""},{"$f":"IF(ISERROR(Dados!P531),\"-\",Dados!P531)","v":""},{"$f":"IF(ISERROR(Dados!Q531),\"-\",Dados!Q531)","v":""},{"$f":"IF(ISERROR(Dados!R531),\"-\",Dados!R531)","v":""},{"$f":"IF(ISERROR(Dados!S531),\"-\",Dados!S531)","v":""},{"$f":"IF(ISERROR(Dados!T531),\"-\",Dados!T531)","v":""},{"$f":"IF(ISERROR(Dados!U531),\"-\",Dados!U531)","v":""},{"$f":"IF(ISERROR(Dados!V531),\"-\",Dados!V531)","v":""},{"$f":"IF(ISERROR(Dados!W531),\"-\",Dados!W531)","v":""},{"$f":"IF(ISERROR(Dados!X531),\"-\",Dados!X531)","v":""},{"$f":"IF(ISERROR(Dados!Y531),\"-\",Dados!Y531)","v":""},{"$f":"IF(ISERROR(Dados!Z531),\"-\",Dados!Z531)","v":""},{"$f":"IF(ISERROR(Dados!AA531),\"-\",Dados!AA531)","v":""},{"$f":"IF(ISERROR(Dados!AB531),\"-\",Dados!AB531)","v":""},{"$f":"IF(ISERROR(Dados!AC531),\"-\",Dados!AC531)","v":""},{"$f":"IF(ISERROR(Dados!AD531),\"-\",Dados!AD531)","v":""},{"$f":"IF(ISERROR(Dados!AE531),\"-\",Dados!AE531)","v":""},{"$f":"IF(ISERROR(Dados!AF531),\"-\",Dados!AF531)","v":""},{"$f":"IF(ISERROR(Dados!AG531),\"-\",Dados!AG531)","v":""}]
[{"$f":"IF(ISERROR(Dados!A532),\"-\",Dados!A532)","v":""},{"$f":"IF(ISERROR(Dados!B532),\"-\",Dados!B532)","v":""},{"$f":"IF(ISERROR(Dados!C532),\"-\",Dados!C532)","v":""},{"$f":"IF(ISERROR(Dados!D532),\"-\",Dados!D532)","v":""},{"$f":"IF(ISERROR(Dados!E532),\"-\",Dados!E532)","v":""},{"$f":"IF(ISERROR(Dados!F532),\"-\",Dados!F532)","v":""},{"$f":"IF(ISERROR(Dados!G532),\"-\",Dados!G532)","v":""},{"$f":"IF(ISERROR(Dados!H532),\"-\",Dados!H532)","v":""},{"$f":"IF(ISERROR(Dados!I532),\"-\",Dados!I532)","v":""},{"$f":"IF(ISERROR(Dados!J532),\"-\",Dados!J532)","v":""},{"$f":"IF(ISERROR(Dados!K532),\"-\",Dados!K532)","v":""},{"$f":"IF(ISERROR(Dados!L532),\"-\",Dados!L532)","v":""},{"$f":"IF(ISERROR(Dados!M532),\"-\",Dados!M532)","v":""},{"$f":"IF(ISERROR(Dados!N532),\"-\",Dados!N532)","v":""},{"$f":"IF(ISERROR(Dados!O532),\"-\",Dados!O532)","v":""},{"$f":"IF(ISERROR(Dados!P532),\"-\",Dados!P532)","v":""},{"$f":"IF(ISERROR(Dados!Q532),\"-\",Dados!Q532)","v":""},{"$f":"IF(ISERROR(Dados!R532),\"-\",Dados!R532)","v":""},{"$f":"IF(ISERROR(Dados!S532),\"-\",Dados!S532)","v":""},{"$f":"IF(ISERROR(Dados!T532),\"-\",Dados!T532)","v":""},{"$f":"IF(ISERROR(Dados!U532),\"-\",Dados!U532)","v":""},{"$f":"IF(ISERROR(Dados!V532),\"-\",Dados!V532)","v":""},{"$f":"IF(ISERROR(Dados!W532),\"-\",Dados!W532)","v":""},{"$f":"IF(ISERROR(Dados!X532),\"-\",Dados!X532)","v":""},{"$f":"IF(ISERROR(Dados!Y532),\"-\",Dados!Y532)","v":""},{"$f":"IF(ISERROR(Dados!Z532),\"-\",Dados!Z532)","v":""},{"$f":"IF(ISERROR(Dados!AA532),\"-\",Dados!AA532)","v":""},{"$f":"IF(ISERROR(Dados!AB532),\"-\",Dados!AB532)","v":""},{"$f":"IF(ISERROR(Dados!AC532),\"-\",Dados!AC532)","v":""},{"$f":"IF(ISERROR(Dados!AD532),\"-\",Dados!AD532)","v":""},{"$f":"IF(ISERROR(Dados!AE532),\"-\",Dados!AE532)","v":""},{"$f":"IF(ISERROR(Dados!AF532),\"-\",Dados!AF532)","v":""},{"$f":"IF(ISERROR(Dados!AG532),\"-\",Dados!AG532)","v":""}]
[{"$f":"IF(ISERROR(Dados!A533),\"-\",Dados!A533)","v":""},{"$f":"IF(ISERROR(Dados!B533),\"-\",Dados!B533)","v":""},{"$f":"IF(ISERROR(Dados!C533),\"-\",Dados!C533)","v":""},{"$f":"IF(ISERROR(Dados!D533),\"-\",Dados!D533)","v":""},{"$f":"IF(ISERROR(Dados!E533),\"-\",Dados!E533)","v":""},{"$f":"IF(ISERROR(Dados!F533),\"-\",Dados!F533)","v":""},{"$f":"IF(ISERROR(Dados!G533),\"-\",Dados!G533)","v":""},{"$f":"IF(ISERROR(Dados!H533),\"-\",Dados!H533)","v":""},{"$f":"IF(ISERROR(Dados!I533),\"-\",Dados!I533)","v":""},{"$f":"IF(ISERROR(Dados!J533),\"-\",Dados!J533)","v":""},{"$f":"IF(ISERROR(Dados!K533),\"-\",Dados!K533)","v":""},{"$f":"IF(ISERROR(Dados!L533),\"-\",Dados!L533)","v":""},{"$f":"IF(ISERROR(Dados!M533),\"-\",Dados!M533)","v":""},{"$f":"IF(ISERROR(Dados!N533),\"-\",Dados!N533)","v":""},{"$f":"IF(ISERROR(Dados!O533),\"-\",Dados!O533)","v":""},{"$f":"IF(ISERROR(Dados!P533),\"-\",Dados!P533)","v":""},{"$f":"IF(ISERROR(Dados!Q533),\"-\",Dados!Q533)","v":""},{"$f":"IF(ISERROR(Dados!R533),\"-\",Dados!R533)","v":""},{"$f":"IF(ISERROR(Dados!S533),\"-\",Dados!S533)","v":""},{"$f":"IF(ISERROR(Dados!T533),\"-\",Dados!T533)","v":""},{"$f":"IF(ISERROR(Dados!U533),\"-\",Dados!U533)","v":""},{"$f":"IF(ISERROR(Dados!V533),\"-\",Dados!V533)","v":""},{"$f":"IF(ISERROR(Dados!W533),\"-\",Dados!W533)","v":""},{"$f":"IF(ISERROR(Dados!X533),\"-\",Dados!X533)","v":""},{"$f":"IF(ISERROR(Dados!Y533),\"-\",Dados!Y533)","v":""},{"$f":"IF(ISERROR(Dados!Z533),\"-\",Dados!Z533)","v":""},{"$f":"IF(ISERROR(Dados!AA533),\"-\",Dados!AA533)","v":""},{"$f":"IF(ISERROR(Dados!AB533),\"-\",Dados!AB533)","v":""},{"$f":"IF(ISERROR(Dados!AC533),\"-\",Dados!AC533)","v":""},{"$f":"IF(ISERROR(Dados!AD533),\"-\",Dados!AD533)","v":""},{"$f":"IF(ISERROR(Dados!AE533),\"-\",Dados!AE533)","v":""},{"$f":"IF(ISERROR(Dados!AF533),\"-\",Dados!AF533)","v":""},{"$f":"IF(ISERROR(Dados!AG533),\"-\",Dados!AG533)","v":""}]
[{"$f":"IF(ISERROR(Dados!A534),\"-\",Dados!A534)","v":""},{"$f":"IF(ISERROR(Dados!B534),\"-\",Dados!B534)","v":""},{"$f":"IF(ISERROR(Dados!C534),\"-\",Dados!C534)","v":""},{"$f":"IF(ISERROR(Dados!D534),\"-\",Dados!D534)","v":""},{"$f":"IF(ISERROR(Dados!E534),\"-\",Dados!E534)","v":""},{"$f":"IF(ISERROR(Dados!F534),\"-\",Dados!F534)","v":""},{"$f":"IF(ISERROR(Dados!G534),\"-\",Dados!G534)","v":""},{"$f":"IF(ISERROR(Dados!H534),\"-\",Dados!H534)","v":""},{"$f":"IF(ISERROR(Dados!I534),\"-\",Dados!I534)","v":""},{"$f":"IF(ISERROR(Dados!J534),\"-\",Dados!J534)","v":""},{"$f":"IF(ISERROR(Dados!K534),\"-\",Dados!K534)","v":""},{"$f":"IF(ISERROR(Dados!L534),\"-\",Dados!L534)","v":""},{"$f":"IF(ISERROR(Dados!M534),\"-\",Dados!M534)","v":""},{"$f":"IF(ISERROR(Dados!N534),\"-\",Dados!N534)","v":""},{"$f":"IF(ISERROR(Dados!O534),\"-\",Dados!O534)","v":""},{"$f":"IF(ISERROR(Dados!P534),\"-\",Dados!P534)","v":""},{"$f":"IF(ISERROR(Dados!Q534),\"-\",Dados!Q534)","v":""},{"$f":"IF(ISERROR(Dados!R534),\"-\",Dados!R534)","v":""},{"$f":"IF(ISERROR(Dados!S534),\"-\",Dados!S534)","v":""},{"$f":"IF(ISERROR(Dados!T534),\"-\",Dados!T534)","v":""},{"$f":"IF(ISERROR(Dados!U534),\"-\",Dados!U534)","v":""},{"$f":"IF(ISERROR(Dados!V534),\"-\",Dados!V534)","v":""},{"$f":"IF(ISERROR(Dados!W534),\"-\",Dados!W534)","v":""},{"$f":"IF(ISERROR(Dados!X534),\"-\",Dados!X534)","v":""},{"$f":"IF(ISERROR(Dados!Y534),\"-\",Dados!Y534)","v":""},{"$f":"IF(ISERROR(Dados!Z534),\"-\",Dados!Z534)","v":""},{"$f":"IF(ISERROR(Dados!AA534),\"-\",Dados!AA534)","v":""},{"$f":"IF(ISERROR(Dados!AB534),\"-\",Dados!AB534)","v":""},{"$f":"IF(ISERROR(Dados!AC534),\"-\",Dados!AC534)","v":""},{"$f":"IF(ISERROR(Dados!AD534),\"-\",Dados!AD534)","v":""},{"$f":"IF(ISERROR(Dados!AE534),\"-\",Dados!AE534)","v":""},{"$f":"IF(ISERROR(Dados!AF534),\"-\",Dados!AF534)","v":""},{"$f":"IF(ISERROR(Dados!AG534),\"-\",Dados!AG534)","v":""}]
[{"$f":"IF(ISERROR(Dados!A535),\"-\",Dados!A535)","v":""},{"$f":"IF(ISERROR(Dados!B535),\"-\",Dados!B535)","v":""},{"$f":"IF(ISERROR(Dados!C535),\"-\",Dados!C535)","v":""},{"$f":"IF(ISERROR(Dados!D535),\"-\",Dados!D535)","v":""},{"$f":"IF(ISERROR(Dados!E535),\"-\",Dados!E535)","v":""},{"$f":"IF(ISERROR(Dados!F535),\"-\",Dados!F535)","v":""},{"$f":"IF(ISERROR(Dados!G535),\"-\",Dados!G535)","v":""},{"$f":"IF(ISERROR(Dados!H535),\"-\",Dados!H535)","v":""},{"$f":"IF(ISERROR(Dados!I535),\"-\",Dados!I535)","v":""},{"$f":"IF(ISERROR(Dados!J535),\"-\",Dados!J535)","v":""},{"$f":"IF(ISERROR(Dados!K535),\"-\",Dados!K535)","v":""},{"$f":"IF(ISERROR(Dados!L535),\"-\",Dados!L535)","v":""},{"$f":"IF(ISERROR(Dados!M535),\"-\",Dados!M535)","v":""},{"$f":"IF(ISERROR(Dados!N535),\"-\",Dados!N535)","v":""},{"$f":"IF(ISERROR(Dados!O535),\"-\",Dados!O535)","v":""},{"$f":"IF(ISERROR(Dados!P535),\"-\",Dados!P535)","v":""},{"$f":"IF(ISERROR(Dados!Q535),\"-\",Dados!Q535)","v":""},{"$f":"IF(ISERROR(Dados!R535),\"-\",Dados!R535)","v":""},{"$f":"IF(ISERROR(Dados!S535),\"-\",Dados!S535)","v":""},{"$f":"IF(ISERROR(Dados!T535),\"-\",Dados!T535)","v":""},{"$f":"IF(ISERROR(Dados!U535),\"-\",Dados!U535)","v":""},{"$f":"IF(ISERROR(Dados!V535),\"-\",Dados!V535)","v":""},{"$f":"IF(ISERROR(Dados!W535),\"-\",Dados!W535)","v":""},{"$f":"IF(ISERROR(Dados!X535),\"-\",Dados!X535)","v":""},{"$f":"IF(ISERROR(Dados!Y535),\"-\",Dados!Y535)","v":""},{"$f":"IF(ISERROR(Dados!Z535),\"-\",Dados!Z535)","v":""},{"$f":"IF(ISERROR(Dados!AA535),\"-\",Dados!AA535)","v":""},{"$f":"IF(ISERROR(Dados!AB535),\"-\",Dados!AB535)","v":""},{"$f":"IF(ISERROR(Dados!AC535),\"-\",Dados!AC535)","v":""},{"$f":"IF(ISERROR(Dados!AD535),\"-\",Dados!AD535)","v":""},{"$f":"IF(ISERROR(Dados!AE535),\"-\",Dados!AE535)","v":""},{"$f":"IF(ISERROR(Dados!AF535),\"-\",Dados!AF535)","v":""},{"$f":"IF(ISERROR(Dados!AG535),\"-\",Dados!AG535)","v":""}]
[{"$f":"IF(ISERROR(Dados!A536),\"-\",Dados!A536)","v":""},{"$f":"IF(ISERROR(Dados!B536),\"-\",Dados!B536)","v":""},{"$f":"IF(ISERROR(Dados!C536),\"-\",Dados!C536)","v":""},{"$f":"IF(ISERROR(Dados!D536),\"-\",Dados!D536)","v":""},{"$f":"IF(ISERROR(Dados!E536),\"-\",Dados!E536)","v":""},{"$f":"IF(ISERROR(Dados!F536),\"-\",Dados!F536)","v":""},{"$f":"IF(ISERROR(Dados!G536),\"-\",Dados!G536)","v":""},{"$f":"IF(ISERROR(Dados!H536),\"-\",Dados!H536)","v":""},{"$f":"IF(ISERROR(Dados!I536),\"-\",Dados!I536)","v":""},{"$f":"IF(ISERROR(Dados!J536),\"-\",Dados!J536)","v":""},{"$f":"IF(ISERROR(Dados!K536),\"-\",Dados!K536)","v":""},{"$f":"IF(ISERROR(Dados!L536),\"-\",Dados!L536)","v":""},{"$f":"IF(ISERROR(Dados!M536),\"-\",Dados!M536)","v":""},{"$f":"IF(ISERROR(Dados!N536),\"-\",Dados!N536)","v":""},{"$f":"IF(ISERROR(Dados!O536),\"-\",Dados!O536)","v":""},{"$f":"IF(ISERROR(Dados!P536),\"-\",Dados!P536)","v":""},{"$f":"IF(ISERROR(Dados!Q536),\"-\",Dados!Q536)","v":""},{"$f":"IF(ISERROR(Dados!R536),\"-\",Dados!R536)","v":""},{"$f":"IF(ISERROR(Dados!S536),\"-\",Dados!S536)","v":""},{"$f":"IF(ISERROR(Dados!T536),\"-\",Dados!T536)","v":""},{"$f":"IF(ISERROR(Dados!U536),\"-\",Dados!U536)","v":""},{"$f":"IF(ISERROR(Dados!V536),\"-\",Dados!V536)","v":""},{"$f":"IF(ISERROR(Dados!W536),\"-\",Dados!W536)","v":""},{"$f":"IF(ISERROR(Dados!X536),\"-\",Dados!X536)","v":""},{"$f":"IF(ISERROR(Dados!Y536),\"-\",Dados!Y536)","v":""},{"$f":"IF(ISERROR(Dados!Z536),\"-\",Dados!Z536)","v":""},{"$f":"IF(ISERROR(Dados!AA536),\"-\",Dados!AA536)","v":""},{"$f":"IF(ISERROR(Dados!AB536),\"-\",Dados!AB536)","v":""},{"$f":"IF(ISERROR(Dados!AC536),\"-\",Dados!AC536)","v":""},{"$f":"IF(ISERROR(Dados!AD536),\"-\",Dados!AD536)","v":""},{"$f":"IF(ISERROR(Dados!AE536),\"-\",Dados!AE536)","v":""},{"$f":"IF(ISERROR(Dados!AF536),\"-\",Dados!AF536)","v":""},{"$f":"IF(ISERROR(Dados!AG536),\"-\",Dados!AG536)","v":""}]
[{"$f":"IF(ISERROR(Dados!A537),\"-\",Dados!A537)","v":""},{"$f":"IF(ISERROR(Dados!B537),\"-\",Dados!B537)","v":""},{"$f":"IF(ISERROR(Dados!C537),\"-\",Dados!C537)","v":""},{"$f":"IF(ISERROR(Dados!D537),\"-\",Dados!D537)","v":""},{"$f":"IF(ISERROR(Dados!E537),\"-\",Dados!E537)","v":""},{"$f":"IF(ISERROR(Dados!F537),\"-\",Dados!F537)","v":""},{"$f":"IF(ISERROR(Dados!G537),\"-\",Dados!G537)","v":""},{"$f":"IF(ISERROR(Dados!H537),\"-\",Dados!H537)","v":""},{"$f":"IF(ISERROR(Dados!I537),\"-\",Dados!I537)","v":""},{"$f":"IF(ISERROR(Dados!J537),\"-\",Dados!J537)","v":""},{"$f":"IF(ISERROR(Dados!K537),\"-\",Dados!K537)","v":""},{"$f":"IF(ISERROR(Dados!L537),\"-\",Dados!L537)","v":""},{"$f":"IF(ISERROR(Dados!M537),\"-\",Dados!M537)","v":""},{"$f":"IF(ISERROR(Dados!N537),\"-\",Dados!N537)","v":""},{"$f":"IF(ISERROR(Dados!O537),\"-\",Dados!O537)","v":""},{"$f":"IF(ISERROR(Dados!P537),\"-\",Dados!P537)","v":""},{"$f":"IF(ISERROR(Dados!Q537),\"-\",Dados!Q537)","v":""},{"$f":"IF(ISERROR(Dados!R537),\"-\",Dados!R537)","v":""},{"$f":"IF(ISERROR(Dados!S537),\"-\",Dados!S537)","v":""},{"$f":"IF(ISERROR(Dados!T537),\"-\",Dados!T537)","v":""},{"$f":"IF(ISERROR(Dados!U537),\"-\",Dados!U537)","v":""},{"$f":"IF(ISERROR(Dados!V537),\"-\",Dados!V537)","v":""},{"$f":"IF(ISERROR(Dados!W537),\"-\",Dados!W537)","v":""},{"$f":"IF(ISERROR(Dados!X537),\"-\",Dados!X537)","v":""},{"$f":"IF(ISERROR(Dados!Y537),\"-\",Dados!Y537)","v":""},{"$f":"IF(ISERROR(Dados!Z537),\"-\",Dados!Z537)","v":""},{"$f":"IF(ISERROR(Dados!AA537),\"-\",Dados!AA537)","v":""},{"$f":"IF(ISERROR(Dados!AB537),\"-\",Dados!AB537)","v":""},{"$f":"IF(ISERROR(Dados!AC537),\"-\",Dados!AC537)","v":""},{"$f":"IF(ISERROR(Dados!AD537),\"-\",Dados!AD537)","v":""},{"$f":"IF(ISERROR(Dados!AE537),\"-\",Dados!AE537)","v":""},{"$f":"IF(ISERROR(Dados!AF537),\"-\",Dados!AF537)","v":""},{"$f":"IF(ISERROR(Dados!AG537),\"-\",Dados!AG537)","v":""}]
[{"$f":"IF(ISERROR(Dados!A538),\"-\",Dados!A538)","v":""},{"$f":"IF(ISERROR(Dados!B538),\"-\",Dados!B538)","v":""},{"$f":"IF(ISERROR(Dados!C538),\"-\",Dados!C538)","v":""},{"$f":"IF(ISERROR(Dados!D538),\"-\",Dados!D538)","v":""},{"$f":"IF(ISERROR(Dados!E538),\"-\",Dados!E538)","v":""},{"$f":"IF(ISERROR(Dados!F538),\"-\",Dados!F538)","v":""},{"$f":"IF(ISERROR(Dados!G538),\"-\",Dados!G538)","v":""},{"$f":"IF(ISERROR(Dados!H538),\"-\",Dados!H538)","v":""},{"$f":"IF(ISERROR(Dados!I538),\"-\",Dados!I538)","v":""},{"$f":"IF(ISERROR(Dados!J538),\"-\",Dados!J538)","v":""},{"$f":"IF(ISERROR(Dados!K538),\"-\",Dados!K538)","v":""},{"$f":"IF(ISERROR(Dados!L538),\"-\",Dados!L538)","v":""},{"$f":"IF(ISERROR(Dados!M538),\"-\",Dados!M538)","v":""},{"$f":"IF(ISERROR(Dados!N538),\"-\",Dados!N538)","v":""},{"$f":"IF(ISERROR(Dados!O538),\"-\",Dados!O538)","v":""},{"$f":"IF(ISERROR(Dados!P538),\"-\",Dados!P538)","v":""},{"$f":"IF(ISERROR(Dados!Q538),\"-\",Dados!Q538)","v":""},{"$f":"IF(ISERROR(Dados!R538),\"-\",Dados!R538)","v":""},{"$f":"IF(ISERROR(Dados!S538),\"-\",Dados!S538)","v":""},{"$f":"IF(ISERROR(Dados!T538),\"-\",Dados!T538)","v":""},{"$f":"IF(ISERROR(Dados!U538),\"-\",Dados!U538)","v":""},{"$f":"IF(ISERROR(Dados!V538),\"-\",Dados!V538)","v":""},{"$f":"IF(ISERROR(Dados!W538),\"-\",Dados!W538)","v":""},{"$f":"IF(ISERROR(Dados!X538),\"-\",Dados!X538)","v":""},{"$f":"IF(ISERROR(Dados!Y538),\"-\",Dados!Y538)","v":""},{"$f":"IF(ISERROR(Dados!Z538),\"-\",Dados!Z538)","v":""},{"$f":"IF(ISERROR(Dados!AA538),\"-\",Dados!AA538)","v":""},{"$f":"IF(ISERROR(Dados!AB538),\"-\",Dados!AB538)","v":""},{"$f":"IF(ISERROR(Dados!AC538),\"-\",Dados!AC538)","v":""},{"$f":"IF(ISERROR(Dados!AD538),\"-\",Dados!AD538)","v":""},{"$f":"IF(ISERROR(Dados!AE538),\"-\",Dados!AE538)","v":""},{"$f":"IF(ISERROR(Dados!AF538),\"-\",Dados!AF538)","v":""},{"$f":"IF(ISERROR(Dados!AG538),\"-\",Dados!AG538)","v":""}]
[{"$f":"IF(ISERROR(Dados!A539),\"-\",Dados!A539)","v":""},{"$f":"IF(ISERROR(Dados!B539),\"-\",Dados!B539)","v":""},{"$f":"IF(ISERROR(Dados!C539),\"-\",Dados!C539)","v":""},{"$f":"IF(ISERROR(Dados!D539),\"-\",Dados!D539)","v":""},{"$f":"IF(ISERROR(Dados!E539),\"-\",Dados!E539)","v":""},{"$f":"IF(ISERROR(Dados!F539),\"-\",Dados!F539)","v":""},{"$f":"IF(ISERROR(Dados!G539),\"-\",Dados!G539)","v":""},{"$f":"IF(ISERROR(Dados!H539),\"-\",Dados!H539)","v":""},{"$f":"IF(ISERROR(Dados!I539),\"-\",Dados!I539)","v":""},{"$f":"IF(ISERROR(Dados!J539),\"-\",Dados!J539)","v":""},{"$f":"IF(ISERROR(Dados!K539),\"-\",Dados!K539)","v":""},{"$f":"IF(ISERROR(Dados!L539),\"-\",Dados!L539)","v":""},{"$f":"IF(ISERROR(Dados!M539),\"-\",Dados!M539)","v":""},{"$f":"IF(ISERROR(Dados!N539),\"-\",Dados!N539)","v":""},{"$f":"IF(ISERROR(Dados!O539),\"-\",Dados!O539)","v":""},{"$f":"IF(ISERROR(Dados!P539),\"-\",Dados!P539)","v":""},{"$f":"IF(ISERROR(Dados!Q539),\"-\",Dados!Q539)","v":""},{"$f":"IF(ISERROR(Dados!R539),\"-\",Dados!R539)","v":""},{"$f":"IF(ISERROR(Dados!S539),\"-\",Dados!S539)","v":""},{"$f":"IF(ISERROR(Dados!T539),\"-\",Dados!T539)","v":""},{"$f":"IF(ISERROR(Dados!U539),\"-\",Dados!U539)","v":""},{"$f":"IF(ISERROR(Dados!V539),\"-\",Dados!V539)","v":""},{"$f":"IF(ISERROR(Dados!W539),\"-\",Dados!W539)","v":""},{"$f":"IF(ISERROR(Dados!X539),\"-\",Dados!X539)","v":""},{"$f":"IF(ISERROR(Dados!Y539),\"-\",Dados!Y539)","v":""},{"$f":"IF(ISERROR(Dados!Z539),\"-\",Dados!Z539)","v":""},{"$f":"IF(ISERROR(Dados!AA539),\"-\",Dados!AA539)","v":""},{"$f":"IF(ISERROR(Dados!AB539),\"-\",Dados!AB539)","v":""},{"$f":"IF(ISERROR(Dados!AC539),\"-\",Dados!AC539)","v":""},{"$f":"IF(ISERROR(Dados!AD539),\"-\",Dados!AD539)","v":""},{"$f":"IF(ISERROR(Dados!AE539),\"-\",Dados!AE539)","v":""},{"$f":"IF(ISERROR(Dados!AF539),\"-\",Dados!AF539)","v":""},{"$f":"IF(ISERROR(Dados!AG539),\"-\",Dados!AG539)","v":""}]
[{"$f":"IF(ISERROR(Dados!A540),\"-\",Dados!A540)","v":""},{"$f":"IF(ISERROR(Dados!B540),\"-\",Dados!B540)","v":""},{"$f":"IF(ISERROR(Dados!C540),\"-\",Dados!C540)","v":""},{"$f":"IF(ISERROR(Dados!D540),\"-\",Dados!D540)","v":""},{"$f":"IF(ISERROR(Dados!E540),\"-\",Dados!E540)","v":""},{"$f":"IF(ISERROR(Dados!F540),\"-\",Dados!F540)","v":""},{"$f":"IF(ISERROR(Dados!G540),\"-\",Dados!G540)","v":""},{"$f":"IF(ISERROR(Dados!H540),\"-\",Dados!H540)","v":""},{"$f":"IF(ISERROR(Dados!I540),\"-\",Dados!I540)","v":""},{"$f":"IF(ISERROR(Dados!J540),\"-\",Dados!J540)","v":""},{"$f":"IF(ISERROR(Dados!K540),\"-\",Dados!K540)","v":""},{"$f":"IF(ISERROR(Dados!L540),\"-\",Dados!L540)","v":""},{"$f":"IF(ISERROR(Dados!M540),\"-\",Dados!M540)","v":""},{"$f":"IF(ISERROR(Dados!N540),\"-\",Dados!N540)","v":""},{"$f":"IF(ISERROR(Dados!O540),\"-\",Dados!O540)","v":""},{"$f":"IF(ISERROR(Dados!P540),\"-\",Dados!P540)","v":""},{"$f":"IF(ISERROR(Dados!Q540),\"-\",Dados!Q540)","v":""},{"$f":"IF(ISERROR(Dados!R540),\"-\",Dados!R540)","v":""},{"$f":"IF(ISERROR(Dados!S540),\"-\",Dados!S540)","v":""},{"$f":"IF(ISERROR(Dados!T540),\"-\",Dados!T540)","v":""},{"$f":"IF(ISERROR(Dados!U540),\"-\",Dados!U540)","v":""},{"$f":"IF(ISERROR(Dados!V540),\"-\",Dados!V540)","v":""},{"$f":"IF(ISERROR(Dados!W540),\"-\",Dados!W540)","v":""},{"$f":"IF(ISERROR(Dados!X540),\"-\",Dados!X540)","v":""},{"$f":"IF(ISERROR(Dados!Y540),\"-\",Dados!Y540)","v":""},{"$f":"IF(ISERROR(Dados!Z540),\"-\",Dados!Z540)","v":""},{"$f":"IF(ISERROR(Dados!AA540),\"-\",Dados!AA540)","v":""},{"$f":"IF(ISERROR(Dados!AB540),\"-\",Dados!AB540)","v":""},{"$f":"IF(ISERROR(Dados!AC540),\"-\",Dados!AC540)","v":""},{"$f":"IF(ISERROR(Dados!AD540),\"-\",Dados!AD540)","v":""},{"$f":"IF(ISERROR(Dados!AE540),\"-\",Dados!AE540)","v":""},{"$f":"IF(ISERROR(Dados!AF540),\"-\",Dados!AF540)","v":""},{"$f":"IF(ISERROR(Dados!AG540),\"-\",Dados!AG540)","v":""}]
[{"$f":"IF(ISERROR(Dados!A541),\"-\",Dados!A541)","v":""},{"$f":"IF(ISERROR(Dados!B541),\"-\",Dados!B541)","v":""},{"$f":"IF(ISERROR(Dados!C541),\"-\",Dados!C541)","v":""},{"$f":"IF(ISERROR(Dados!D541),\"-\",Dados!D541)","v":""},{"$f":"IF(ISERROR(Dados!E541),\"-\",Dados!E541)","v":""},{"$f":"IF(ISERROR(Dados!F541),\"-\",Dados!F541)","v":""},{"$f":"IF(ISERROR(Dados!G541),\"-\",Dados!G541)","v":""},{"$f":"IF(ISERROR(Dados!H541),\"-\",Dados!H541)","v":""},{"$f":"IF(ISERROR(Dados!I541),\"-\",Dados!I541)","v":""},{"$f":"IF(ISERROR(Dados!J541),\"-\",Dados!J541)","v":""},{"$f":"IF(ISERROR(Dados!K541),\"-\",Dados!K541)","v":""},{"$f":"IF(ISERROR(Dados!L541),\"-\",Dados!L541)","v":""},{"$f":"IF(ISERROR(Dados!M541),\"-\",Dados!M541)","v":""},{"$f":"IF(ISERROR(Dados!N541),\"-\",Dados!N541)","v":""},{"$f":"IF(ISERROR(Dados!O541),\"-\",Dados!O541)","v":""},{"$f":"IF(ISERROR(Dados!P541),\"-\",Dados!P541)","v":""},{"$f":"IF(ISERROR(Dados!Q541),\"-\",Dados!Q541)","v":""},{"$f":"IF(ISERROR(Dados!R541),\"-\",Dados!R541)","v":""},{"$f":"IF(ISERROR(Dados!S541),\"-\",Dados!S541)","v":""},{"$f":"IF(ISERROR(Dados!T541),\"-\",Dados!T541)","v":""},{"$f":"IF(ISERROR(Dados!U541),\"-\",Dados!U541)","v":""},{"$f":"IF(ISERROR(Dados!V541),\"-\",Dados!V541)","v":""},{"$f":"IF(ISERROR(Dados!W541),\"-\",Dados!W541)","v":""},{"$f":"IF(ISERROR(Dados!X541),\"-\",Dados!X541)","v":""},{"$f":"IF(ISERROR(Dados!Y541),\"-\",Dados!Y541)","v":""},{"$f":"IF(ISERROR(Dados!Z541),\"-\",Dados!Z541)","v":""},{"$f":"IF(ISERROR(Dados!AA541),\"-\",Dados!AA541)","v":""},{"$f":"IF(ISERROR(Dados!AB541),\"-\",Dados!AB541)","v":""},{"$f":"IF(ISERROR(Dados!AC541),\"-\",Dados!AC541)","v":""},{"$f":"IF(ISERROR(Dados!AD541),\"-\",Dados!AD541)","v":""},{"$f":"IF(ISERROR(Dados!AE541),\"-\",Dados!AE541)","v":""},{"$f":"IF(ISERROR(Dados!AF541),\"-\",Dados!AF541)","v":""},{"$f":"IF(ISERROR(Dados!AG541),\"-\",Dados!AG541)","v":""}]
[{"$f":"IF(ISERROR(Dados!A542),\"-\",Dados!A542)","v":""},{"$f":"IF(ISERROR(Dados!B542),\"-\",Dados!B542)","v":""},{"$f":"IF(ISERROR(Dados!C542),\"-\",Dados!C542)","v":""},{"$f":"IF(ISERROR(Dados!D542),\"-\",Dados!D542)","v":""},{"$f":"IF(ISERROR(Dados!E542),\"-\",Dados!E542)","v":""},{"$f":"IF(ISERROR(Dados!F542),\"-\",Dados!F542)","v":""},{"$f":"IF(ISERROR(Dados!G542),\"-\",Dados!G542)","v":""},{"$f":"IF(ISERROR(Dados!H542),\"-\",Dados!H542)","v":""},{"$f":"IF(ISERROR(Dados!I542),\"-\",Dados!I542)","v":""},{"$f":"IF(ISERROR(Dados!J542),\"-\",Dados!J542)","v":""},{"$f":"IF(ISERROR(Dados!K542),\"-\",Dados!K542)","v":""},{"$f":"IF(ISERROR(Dados!L542),\"-\",Dados!L542)","v":""},{"$f":"IF(ISERROR(Dados!M542),\"-\",Dados!M542)","v":""},{"$f":"IF(ISERROR(Dados!N542),\"-\",Dados!N542)","v":""},{"$f":"IF(ISERROR(Dados!O542),\"-\",Dados!O542)","v":""},{"$f":"IF(ISERROR(Dados!P542),\"-\",Dados!P542)","v":""},{"$f":"IF(ISERROR(Dados!Q542),\"-\",Dados!Q542)","v":""},{"$f":"IF(ISERROR(Dados!R542),\"-\",Dados!R542)","v":""},{"$f":"IF(ISERROR(Dados!S542),\"-\",Dados!S542)","v":""},{"$f":"IF(ISERROR(Dados!T542),\"-\",Dados!T542)","v":""},{"$f":"IF(ISERROR(Dados!U542),\"-\",Dados!U542)","v":""},{"$f":"IF(ISERROR(Dados!V542),\"-\",Dados!V542)","v":""},{"$f":"IF(ISERROR(Dados!W542),\"-\",Dados!W542)","v":""},{"$f":"IF(ISERROR(Dados!X542),\"-\",Dados!X542)","v":""},{"$f":"IF(ISERROR(Dados!Y542),\"-\",Dados!Y542)","v":""},{"$f":"IF(ISERROR(Dados!Z542),\"-\",Dados!Z542)","v":""},{"$f":"IF(ISERROR(Dados!AA542),\"-\",Dados!AA542)","v":""},{"$f":"IF(ISERROR(Dados!AB542),\"-\",Dados!AB542)","v":""},{"$f":"IF(ISERROR(Dados!AC542),\"-\",Dados!AC542)","v":""},{"$f":"IF(ISERROR(Dados!AD542),\"-\",Dados!AD542)","v":""},{"$f":"IF(ISERROR(Dados!AE542),\"-\",Dados!AE542)","v":""},{"$f":"IF(ISERROR(Dados!AF542),\"-\",Dados!AF542)","v":""},{"$f":"IF(ISERROR(Dados!AG542),\"-\",Dados!AG542)","v":""}]
[{"$f":"IF(ISERROR(Dados!A543),\"-\",Dados!A543)","v":""},{"$f":"IF(ISERROR(Dados!B543),\"-\",Dados!B543)","v":""},{"$f":"IF(ISERROR(Dados!C543),\"-\",Dados!C543)","v":""},{"$f":"IF(ISERROR(Dados!D543),\"-\",Dados!D543)","v":""},{"$f":"IF(ISERROR(Dados!E543),\"-\",Dados!E543)","v":""},{"$f":"IF(ISERROR(Dados!F543),\"-\",Dados!F543)","v":""},{"$f":"IF(ISERROR(Dados!G543),\"-\",Dados!G543)","v":""},{"$f":"IF(ISERROR(Dados!H543),\"-\",Dados!H543)","v":""},{"$f":"IF(ISERROR(Dados!I543),\"-\",Dados!I543)","v":""},{"$f":"IF(ISERROR(Dados!J543),\"-\",Dados!J543)","v":""},{"$f":"IF(ISERROR(Dados!K543),\"-\",Dados!K543)","v":""},{"$f":"IF(ISERROR(Dados!L543),\"-\",Dados!L543)","v":""},{"$f":"IF(ISERROR(Dados!M543),\"-\",Dados!M543)","v":""},{"$f":"IF(ISERROR(Dados!N543),\"-\",Dados!N543)","v":""},{"$f":"IF(ISERROR(Dados!O543),\"-\",Dados!O543)","v":""},{"$f":"IF(ISERROR(Dados!P543),\"-\",Dados!P543)","v":""},{"$f":"IF(ISERROR(Dados!Q543),\"-\",Dados!Q543)","v":""},{"$f":"IF(ISERROR(Dados!R543),\"-\",Dados!R543)","v":""},{"$f":"IF(ISERROR(Dados!S543),\"-\",Dados!S543)","v":""},{"$f":"IF(ISERROR(Dados!T543),\"-\",Dados!T543)","v":""},{"$f":"IF(ISERROR(Dados!U543),\"-\",Dados!U543)","v":""},{"$f":"IF(ISERROR(Dados!V543),\"-\",Dados!V543)","v":""},{"$f":"IF(ISERROR(Dados!W543),\"-\",Dados!W543)","v":""},{"$f":"IF(ISERROR(Dados!X543),\"-\",Dados!X543)","v":""},{"$f":"IF(ISERROR(Dados!Y543),\"-\",Dados!Y543)","v":""},{"$f":"IF(ISERROR(Dados!Z543),\"-\",Dados!Z543)","v":""},{"$f":"IF(ISERROR(Dados!AA543),\"-\",Dados!AA543)","v":""},{"$f":"IF(ISERROR(Dados!AB543),\"-\",Dados!AB543)","v":""},{"$f":"IF(ISERROR(Dados!AC543),\"-\",Dados!AC543)","v":""},{"$f":"IF(ISERROR(Dados!AD543),\"-\",Dados!AD543)","v":""},{"$f":"IF(ISERROR(Dados!AE543),\"-\",Dados!AE543)","v":""},{"$f":"IF(ISERROR(Dados!AF543),\"-\",Dados!AF543)","v":""},{"$f":"IF(ISERROR(Dados!AG543),\"-\",Dados!AG543)","v":""}]
[{"$f":"IF(ISERROR(Dados!A544),\"-\",Dados!A544)","v":""},{"$f":"IF(ISERROR(Dados!B544),\"-\",Dados!B544)","v":""},{"$f":"IF(ISERROR(Dados!C544),\"-\",Dados!C544)","v":""},{"$f":"IF(ISERROR(Dados!D544),\"-\",Dados!D544)","v":""},{"$f":"IF(ISERROR(Dados!E544),\"-\",Dados!E544)","v":""},{"$f":"IF(ISERROR(Dados!F544),\"-\",Dados!F544)","v":""},{"$f":"IF(ISERROR(Dados!G544),\"-\",Dados!G544)","v":""},{"$f":"IF(ISERROR(Dados!H544),\"-\",Dados!H544)","v":""},{"$f":"IF(ISERROR(Dados!I544),\"-\",Dados!I544)","v":""},{"$f":"IF(ISERROR(Dados!J544),\"-\",Dados!J544)","v":""},{"$f":"IF(ISERROR(Dados!K544),\"-\",Dados!K544)","v":""},{"$f":"IF(ISERROR(Dados!L544),\"-\",Dados!L544)","v":""},{"$f":"IF(ISERROR(Dados!M544),\"-\",Dados!M544)","v":""},{"$f":"IF(ISERROR(Dados!N544),\"-\",Dados!N544)","v":""},{"$f":"IF(ISERROR(Dados!O544),\"-\",Dados!O544)","v":""},{"$f":"IF(ISERROR(Dados!P544),\"-\",Dados!P544)","v":""},{"$f":"IF(ISERROR(Dados!Q544),\"-\",Dados!Q544)","v":""},{"$f":"IF(ISERROR(Dados!R544),\"-\",Dados!R544)","v":""},{"$f":"IF(ISERROR(Dados!S544),\"-\",Dados!S544)","v":""},{"$f":"IF(ISERROR(Dados!T544),\"-\",Dados!T544)","v":""},{"$f":"IF(ISERROR(Dados!U544),\"-\",Dados!U544)","v":""},{"$f":"IF(ISERROR(Dados!V544),\"-\",Dados!V544)","v":""},{"$f":"IF(ISERROR(Dados!W544),\"-\",Dados!W544)","v":""},{"$f":"IF(ISERROR(Dados!X544),\"-\",Dados!X544)","v":""},{"$f":"IF(ISERROR(Dados!Y544),\"-\",Dados!Y544)","v":""},{"$f":"IF(ISERROR(Dados!Z544),\"-\",Dados!Z544)","v":""},{"$f":"IF(ISERROR(Dados!AA544),\"-\",Dados!AA544)","v":""},{"$f":"IF(ISERROR(Dados!AB544),\"-\",Dados!AB544)","v":""},{"$f":"IF(ISERROR(Dados!AC544),\"-\",Dados!AC544)","v":""},{"$f":"IF(ISERROR(Dados!AD544),\"-\",Dados!AD544)","v":""},{"$f":"IF(ISERROR(Dados!AE544),\"-\",Dados!AE544)","v":""},{"$f":"IF(ISERROR(Dados!AF544),\"-\",Dados!AF544)","v":""},{"$f":"IF(ISERROR(Dados!AG544),\"-\",Dados!AG544)","v":""}]
[{"$f":"IF(ISERROR(Dados!A545),\"-\",Dados!A545)","v":""},{"$f":"IF(ISERROR(Dados!B545),\"-\",Dados!B545)","v":""},{"$f":"IF(ISERROR(Dados!C545),\"-\",Dados!C545)","v":""},{"$f":"IF(ISERROR(Dados!D545),\"-\",Dados!D545)","v":""},{"$f":"IF(ISERROR(Dados!E545),\"-\",Dados!E545)","v":""},{"$f":"IF(ISERROR(Dados!F545),\"-\",Dados!F545)","v":""},{"$f":"IF(ISERROR(Dados!G545),\"-\",Dados!G545)","v":""},{"$f":"IF(ISERROR(Dados!H545),\"-\",Dados!H545)","v":""},{"$f":"IF(ISERROR(Dados!I545),\"-\",Dados!I545)","v":""},{"$f":"IF(ISERROR(Dados!J545),\"-\",Dados!J545)","v":""},{"$f":"IF(ISERROR(Dados!K545),\"-\",Dados!K545)","v":""},{"$f":"IF(ISERROR(Dados!L545),\"-\",Dados!L545)","v":""},{"$f":"IF(ISERROR(Dados!M545),\"-\",Dados!M545)","v":""},{"$f":"IF(ISERROR(Dados!N545),\"-\",Dados!N545)","v":""},{"$f":"IF(ISERROR(Dados!O545),\"-\",Dados!O545)","v":""},{"$f":"IF(ISERROR(Dados!P545),\"-\",Dados!P545)","v":""},{"$f":"IF(ISERROR(Dados!Q545),\"-\",Dados!Q545)","v":""},{"$f":"IF(ISERROR(Dados!R545),\"-\",Dados!R545)","v":""},{"$f":"IF(ISERROR(Dados!S545),\"-\",Dados!S545)","v":""},{"$f":"IF(ISERROR(Dados!T545),\"-\",Dados!T545)","v":""},{"$f":"IF(ISERROR(Dados!U545),\"-\",Dados!U545)","v":""},{"$f":"IF(ISERROR(Dados!V545),\"-\",Dados!V545)","v":""},{"$f":"IF(ISERROR(Dados!W545),\"-\",Dados!W545)","v":""},{"$f":"IF(ISERROR(Dados!X545),\"-\",Dados!X545)","v":""},{"$f":"IF(ISERROR(Dados!Y545),\"-\",Dados!Y545)","v":""},{"$f":"IF(ISERROR(Dados!Z545),\"-\",Dados!Z545)","v":""},{"$f":"IF(ISERROR(Dados!AA545),\"-\",Dados!AA545)","v":""},{"$f":"IF(ISERROR(Dados!AB545),\"-\",Dados!AB545)","v":""},{"$f":"IF(ISERROR(Dados!AC545),\"-\",Dados!AC545)","v":""},{"$f":"IF(ISERROR(Dados!AD545),\"-\",Dados!AD545)","v":""},{"$f":"IF(ISERROR(Dados!AE545),\"-\",Dados!AE545)","v":""},{"$f":"IF(ISERROR(Dados!AF545),\"-\",Dados!AF545)","v":""},{"$f":"IF(ISERROR(Dados!AG545),\"-\",Dados!AG545)","v":""}]
[{"$f":"IF(ISERROR(Dados!A546),\"-\",Dados!A546)","v":""},{"$f":"IF(ISERROR(Dados!B546),\"-\",Dados!B546)","v":""},{"$f":"IF(ISERROR(Dados!C546),\"-\",Dados!C546)","v":""},{"$f":"IF(ISERROR(Dados!D546),\"-\",Dados!D546)","v":""},{"$f":"IF(ISERROR(Dados!E546),\"-\",Dados!E546)","v":""},{"$f":"IF(ISERROR(Dados!F546),\"-\",Dados!F546)","v":""},{"$f":"IF(ISERROR(Dados!G546),\"-\",Dados!G546)","v":""},{"$f":"IF(ISERROR(Dados!H546),\"-\",Dados!H546)","v":""},{"$f":"IF(ISERROR(Dados!I546),\"-\",Dados!I546)","v":""},{"$f":"IF(ISERROR(Dados!J546),\"-\",Dados!J546)","v":""},{"$f":"IF(ISERROR(Dados!K546),\"-\",Dados!K546)","v":""},{"$f":"IF(ISERROR(Dados!L546),\"-\",Dados!L546)","v":""},{"$f":"IF(ISERROR(Dados!M546),\"-\",Dados!M546)","v":""},{"$f":"IF(ISERROR(Dados!N546),\"-\",Dados!N546)","v":""},{"$f":"IF(ISERROR(Dados!O546),\"-\",Dados!O546)","v":""},{"$f":"IF(ISERROR(Dados!P546),\"-\",Dados!P546)","v":""},{"$f":"IF(ISERROR(Dados!Q546),\"-\",Dados!Q546)","v":""},{"$f":"IF(ISERROR(Dados!R546),\"-\",Dados!R546)","v":""},{"$f":"IF(ISERROR(Dados!S546),\"-\",Dados!S546)","v":""},{"$f":"IF(ISERROR(Dados!T546),\"-\",Dados!T546)","v":""},{"$f":"IF(ISERROR(Dados!U546),\"-\",Dados!U546)","v":""},{"$f":"IF(ISERROR(Dados!V546),\"-\",Dados!V546)","v":""},{"$f":"IF(ISERROR(Dados!W546),\"-\",Dados!W546)","v":""},{"$f":"IF(ISERROR(Dados!X546),\"-\",Dados!X546)","v":""},{"$f":"IF(ISERROR(Dados!Y546),\"-\",Dados!Y546)","v":""},{"$f":"IF(ISERROR(Dados!Z546),\"-\",Dados!Z546)","v":""},{"$f":"IF(ISERROR(Dados!AA546),\"-\",Dados!AA546)","v":""},{"$f":"IF(ISERROR(Dados!AB546),\"-\",Dados!AB546)","v":""},{"$f":"IF(ISERROR(Dados!AC546),\"-\",Dados!AC546)","v":""},{"$f":"IF(ISERROR(Dados!AD546),\"-\",Dados!AD546)","v":""},{"$f":"IF(ISERROR(Dados!AE546),\"-\",Dados!AE546)","v":""},{"$f":"IF(ISERROR(Dados!AF546),\"-\",Dados!AF546)","v":""},{"$f":"IF(ISERROR(Dados!AG546),\"-\",Dados!AG546)","v":""}]
[{"$f":"IF(ISERROR(Dados!A547),\"-\",Dados!A547)","v":""},{"$f":"IF(ISERROR(Dados!B547),\"-\",Dados!B547)","v":""},{"$f":"IF(ISERROR(Dados!C547),\"-\",Dados!C547)","v":""},{"$f":"IF(ISERROR(Dados!D547),\"-\",Dados!D547)","v":""},{"$f":"IF(ISERROR(Dados!E547),\"-\",Dados!E547)","v":""},{"$f":"IF(ISERROR(Dados!F547),\"-\",Dados!F547)","v":""},{"$f":"IF(ISERROR(Dados!G547),\"-\",Dados!G547)","v":""},{"$f":"IF(ISERROR(Dados!H547),\"-\",Dados!H547)","v":""},{"$f":"IF(ISERROR(Dados!I547),\"-\",Dados!I547)","v":""},{"$f":"IF(ISERROR(Dados!J547),\"-\",Dados!J547)","v":""},{"$f":"IF(ISERROR(Dados!K547),\"-\",Dados!K547)","v":""},{"$f":"IF(ISERROR(Dados!L547),\"-\",Dados!L547)","v":""},{"$f":"IF(ISERROR(Dados!M547),\"-\",Dados!M547)","v":""},{"$f":"IF(ISERROR(Dados!N547),\"-\",Dados!N547)","v":""},{"$f":"IF(ISERROR(Dados!O547),\"-\",Dados!O547)","v":""},{"$f":"IF(ISERROR(Dados!P547),\"-\",Dados!P547)","v":""},{"$f":"IF(ISERROR(Dados!Q547),\"-\",Dados!Q547)","v":""},{"$f":"IF(ISERROR(Dados!R547),\"-\",Dados!R547)","v":""},{"$f":"IF(ISERROR(Dados!S547),\"-\",Dados!S547)","v":""},{"$f":"IF(ISERROR(Dados!T547),\"-\",Dados!T547)","v":""},{"$f":"IF(ISERROR(Dados!U547),\"-\",Dados!U547)","v":""},{"$f":"IF(ISERROR(Dados!V547),\"-\",Dados!V547)","v":""},{"$f":"IF(ISERROR(Dados!W547),\"-\",Dados!W547)","v":""},{"$f":"IF(ISERROR(Dados!X547),\"-\",Dados!X547)","v":""},{"$f":"IF(ISERROR(Dados!Y547),\"-\",Dados!Y547)","v":""},{"$f":"IF(ISERROR(Dados!Z547),\"-\",Dados!Z547)","v":""},{"$f":"IF(ISERROR(Dados!AA547),\"-\",Dados!AA547)","v":""},{"$f":"IF(ISERROR(Dados!AB547),\"-\",Dados!AB547)","v":""},{"$f":"IF(ISERROR(Dados!AC547),\"-\",Dados!AC547)","v":""},{"$f":"IF(ISERROR(Dados!AD547),\"-\",Dados!AD547)","v":""},{"$f":"IF(ISERROR(Dados!AE547),\"-\",Dados!AE547)","v":""},{"$f":"IF(ISERROR(Dados!AF547),\"-\",Dados!AF547)","v":""},{"$f":"IF(ISERROR(Dados!AG547),\"-\",Dados!AG547)","v":""}]
[{"$f":"IF(ISERROR(Dados!A548),\"-\",Dados!A548)","v":""},{"$f":"IF(ISERROR(Dados!B548),\"-\",Dados!B548)","v":""},{"$f":"IF(ISERROR(Dados!C548),\"-\",Dados!C548)","v":""},{"$f":"IF(ISERROR(Dados!D548),\"-\",Dados!D548)","v":""},{"$f":"IF(ISERROR(Dados!E548),\"-\",Dados!E548)","v":""},{"$f":"IF(ISERROR(Dados!F548),\"-\",Dados!F548)","v":""},{"$f":"IF(ISERROR(Dados!G548),\"-\",Dados!G548)","v":""},{"$f":"IF(ISERROR(Dados!H548),\"-\",Dados!H548)","v":""},{"$f":"IF(ISERROR(Dados!I548),\"-\",Dados!I548)","v":""},{"$f":"IF(ISERROR(Dados!J548),\"-\",Dados!J548)","v":""},{"$f":"IF(ISERROR(Dados!K548),\"-\",Dados!K548)","v":""},{"$f":"IF(ISERROR(Dados!L548),\"-\",Dados!L548)","v":""},{"$f":"IF(ISERROR(Dados!M548),\"-\",Dados!M548)","v":""},{"$f":"IF(ISERROR(Dados!N548),\"-\",Dados!N548)","v":""},{"$f":"IF(ISERROR(Dados!O548),\"-\",Dados!O548)","v":""},{"$f":"IF(ISERROR(Dados!P548),\"-\",Dados!P548)","v":""},{"$f":"IF(ISERROR(Dados!Q548),\"-\",Dados!Q548)","v":""},{"$f":"IF(ISERROR(Dados!R548),\"-\",Dados!R548)","v":""},{"$f":"IF(ISERROR(Dados!S548),\"-\",Dados!S548)","v":""},{"$f":"IF(ISERROR(Dados!T548),\"-\",Dados!T548)","v":""},{"$f":"IF(ISERROR(Dados!U548),\"-\",Dados!U548)","v":""},{"$f":"IF(ISERROR(Dados!V548),\"-\",Dados!V548)","v":""},{"$f":"IF(ISERROR(Dados!W548),\"-\",Dados!W548)","v":""},{"$f":"IF(ISERROR(Dados!X548),\"-\",Dados!X548)","v":""},{"$f":"IF(ISERROR(Dados!Y548),\"-\",Dados!Y548)","v":""},{"$f":"IF(ISERROR(Dados!Z548),\"-\",Dados!Z548)","v":""},{"$f":"IF(ISERROR(Dados!AA548),\"-\",Dados!AA548)","v":""},{"$f":"IF(ISERROR(Dados!AB548),\"-\",Dados!AB548)","v":""},{"$f":"IF(ISERROR(Dados!AC548),\"-\",Dados!AC548)","v":""},{"$f":"IF(ISERROR(Dados!AD548),\"-\",Dados!AD548)","v":""},{"$f":"IF(ISERROR(Dados!AE548),\"-\",Dados!AE548)","v":""},{"$f":"IF(ISERROR(Dados!AF548),\"-\",Dados!AF548)","v":""},{"$f":"IF(ISERROR(Dados!AG548),\"-\",Dados!AG548)","v":""}]
[{"$f":"IF(ISERROR(Dados!A549),\"-\",Dados!A549)","v":""},{"$f":"IF(ISERROR(Dados!B549),\"-\",Dados!B549)","v":""},{"$f":"IF(ISERROR(Dados!C549),\"-\",Dados!C549)","v":""},{"$f":"IF(ISERROR(Dados!D549),\"-\",Dados!D549)","v":""},{"$f":"IF(ISERROR(Dados!E549),\"-\",Dados!E549)","v":""},{"$f":"IF(ISERROR(Dados!F549),\"-\",Dados!F549)","v":""},{"$f":"IF(ISERROR(Dados!G549),\"-\",Dados!G549)","v":""},{"$f":"IF(ISERROR(Dados!H549),\"-\",Dados!H549)","v":""},{"$f":"IF(ISERROR(Dados!I549),\"-\",Dados!I549)","v":""},{"$f":"IF(ISERROR(Dados!J549),\"-\",Dados!J549)","v":""},{"$f":"IF(ISERROR(Dados!K549),\"-\",Dados!K549)","v":""},{"$f":"IF(ISERROR(Dados!L549),\"-\",Dados!L549)","v":""},{"$f":"IF(ISERROR(Dados!M549),\"-\",Dados!M549)","v":""},{"$f":"IF(ISERROR(Dados!N549),\"-\",Dados!N549)","v":""},{"$f":"IF(ISERROR(Dados!O549),\"-\",Dados!O549)","v":""},{"$f":"IF(ISERROR(Dados!P549),\"-\",Dados!P549)","v":""},{"$f":"IF(ISERROR(Dados!Q549),\"-\",Dados!Q549)","v":""},{"$f":"IF(ISERROR(Dados!R549),\"-\",Dados!R549)","v":""},{"$f":"IF(ISERROR(Dados!S549),\"-\",Dados!S549)","v":""},{"$f":"IF(ISERROR(Dados!T549),\"-\",Dados!T549)","v":""},{"$f":"IF(ISERROR(Dados!U549),\"-\",Dados!U549)","v":""},{"$f":"IF(ISERROR(Dados!V549),\"-\",Dados!V549)","v":""},{"$f":"IF(ISERROR(Dados!W549),\"-\",Dados!W549)","v":""},{"$f":"IF(ISERROR(Dados!X549),\"-\",Dados!X549)","v":""},{"$f":"IF(ISERROR(Dados!Y549),\"-\",Dados!Y549)","v":""},{"$f":"IF(ISERROR(Dados!Z549),\"-\",Dados!Z549)","v":""},{"$f":"IF(ISERROR(Dados!AA549),\"-\",Dados!AA549)","v":""},{"$f":"IF(ISERROR(Dados!AB549),\"-\",Dados!AB549)","v":""},{"$f":"IF(ISERROR(Dados!AC549),\"-\",Dados!AC549)","v":""},{"$f":"IF(ISERROR(Dados!AD549),\"-\",Dados!AD549)","v":""},{"$f":"IF(ISERROR(Dados!AE549),\"-\",Dados!AE549)","v":""},{"$f":"IF(ISERROR(Dados!AF549),\"-\",Dados!AF549)","v":""},{"$f":"IF(ISERROR(Dados!AG549),\"-\",Dados!AG549)","v":""}]
[{"$f":"IF(ISERROR(Dados!A550),\"-\",Dados!A550)","v":""},{"$f":"IF(ISERROR(Dados!B550),\"-\",Dados!B550)","v":""},{"$f":"IF(ISERROR(Dados!C550),\"-\",Dados!C550)","v":""},{"$f":"IF(ISERROR(Dados!D550),\"-\",Dados!D550)","v":""},{"$f":"IF(ISERROR(Dados!E550),\"-\",Dados!E550)","v":""},{"$f":"IF(ISERROR(Dados!F550),\"-\",Dados!F550)","v":""},{"$f":"IF(ISERROR(Dados!G550),\"-\",Dados!G550)","v":""},{"$f":"IF(ISERROR(Dados!H550),\"-\",Dados!H550)","v":""},{"$f":"IF(ISERROR(Dados!I550),\"-\",Dados!I550)","v":""},{"$f":"IF(ISERROR(Dados!J550),\"-\",Dados!J550)","v":""},{"$f":"IF(ISERROR(Dados!K550),\"-\",Dados!K550)","v":""},{"$f":"IF(ISERROR(Dados!L550),\"-\",Dados!L550)","v":""},{"$f":"IF(ISERROR(Dados!M550),\"-\",Dados!M550)","v":""},{"$f":"IF(ISERROR(Dados!N550),\"-\",Dados!N550)","v":""},{"$f":"IF(ISERROR(Dados!O550),\"-\",Dados!O550)","v":""},{"$f":"IF(ISERROR(Dados!P550),\"-\",Dados!P550)","v":""},{"$f":"IF(ISERROR(Dados!Q550),\"-\",Dados!Q550)","v":""},{"$f":"IF(ISERROR(Dados!R550),\"-\",Dados!R550)","v":""},{"$f":"IF(ISERROR(Dados!S550),\"-\",Dados!S550)","v":""},{"$f":"IF(ISERROR(Dados!T550),\"-\",Dados!T550)","v":""},{"$f":"IF(ISERROR(Dados!U550),\"-\",Dados!U550)","v":""},{"$f":"IF(ISERROR(Dados!V550),\"-\",Dados!V550)","v":""},{"$f":"IF(ISERROR(Dados!W550),\"-\",Dados!W550)","v":""},{"$f":"IF(ISERROR(Dados!X550),\"-\",Dados!X550)","v":""},{"$f":"IF(ISERROR(Dados!Y550),\"-\",Dados!Y550)","v":""},{"$f":"IF(ISERROR(Dados!Z550),\"-\",Dados!Z550)","v":""},{"$f":"IF(ISERROR(Dados!AA550),\"-\",Dados!AA550)","v":""},{"$f":"IF(ISERROR(Dados!AB550),\"-\",Dados!AB550)","v":""},{"$f":"IF(ISERROR(Dados!AC550),\"-\",Dados!AC550)","v":""},{"$f":"IF(ISERROR(Dados!AD550),\"-\",Dados!AD550)","v":""},{"$f":"IF(ISERROR(Dados!AE550),\"-\",Dados!AE550)","v":""},{"$f":"IF(ISERROR(Dados!AF550),\"-\",Dados!AF550)","v":""},{"$f":"IF(ISERROR(Dados!AG550),\"-\",Dados!AG550)","v":""}]
[{"$f":"IF(ISERROR(Dados!A551),\"-\",Dados!A551)","v":""},{"$f":"IF(ISERROR(Dados!B551),\"-\",Dados!B551)","v":""},{"$f":"IF(ISERROR(Dados!C551),\"-\",Dados!C551)","v":""},{"$f":"IF(ISERROR(Dados!D551),\"-\",Dados!D551)","v":""},{"$f":"IF(ISERROR(Dados!E551),\"-\",Dados!E551)","v":""},{"$f":"IF(ISERROR(Dados!F551),\"-\",Dados!F551)","v":""},{"$f":"IF(ISERROR(Dados!G551),\"-\",Dados!G551)","v":""},{"$f":"IF(ISERROR(Dados!H551),\"-\",Dados!H551)","v":""},{"$f":"IF(ISERROR(Dados!I551),\"-\",Dados!I551)","v":""},{"$f":"IF(ISERROR(Dados!J551),\"-\",Dados!J551)","v":""},{"$f":"IF(ISERROR(Dados!K551),\"-\",Dados!K551)","v":""},{"$f":"IF(ISERROR(Dados!L551),\"-\",Dados!L551)","v":""},{"$f":"IF(ISERROR(Dados!M551),\"-\",Dados!M551)","v":""},{"$f":"IF(ISERROR(Dados!N551),\"-\",Dados!N551)","v":""},{"$f":"IF(ISERROR(Dados!O551),\"-\",Dados!O551)","v":""},{"$f":"IF(ISERROR(Dados!P551),\"-\",Dados!P551)","v":""},{"$f":"IF(ISERROR(Dados!Q551),\"-\",Dados!Q551)","v":""},{"$f":"IF(ISERROR(Dados!R551),\"-\",Dados!R551)","v":""},{"$f":"IF(ISERROR(Dados!S551),\"-\",Dados!S551)","v":""},{"$f":"IF(ISERROR(Dados!T551),\"-\",Dados!T551)","v":""},{"$f":"IF(ISERROR(Dados!U551),\"-\",Dados!U551)","v":""},{"$f":"IF(ISERROR(Dados!V551),\"-\",Dados!V551)","v":""},{"$f":"IF(ISERROR(Dados!W551),\"-\",Dados!W551)","v":""},{"$f":"IF(ISERROR(Dados!X551),\"-\",Dados!X551)","v":""},{"$f":"IF(ISERROR(Dados!Y551),\"-\",Dados!Y551)","v":""},{"$f":"IF(ISERROR(Dados!Z551),\"-\",Dados!Z551)","v":""},{"$f":"IF(ISERROR(Dados!AA551),\"-\",Dados!AA551)","v":""},{"$f":"IF(ISERROR(Dados!AB551),\"-\",Dados!AB551)","v":""},{"$f":"IF(ISERROR(Dados!AC551),\"-\",Dados!AC551)","v":""},{"$f":"IF(ISERROR(Dados!AD551),\"-\",Dados!AD551)","v":""},{"$f":"IF(ISERROR(Dados!AE551),\"-\",Dados!AE551)","v":""},{"$f":"IF(ISERROR(Dados!AF551),\"-\",Dados!AF551)","v":""},{"$f":"IF(ISERROR(Dados!AG551),\"-\",Dados!AG551)","v":""}]
[{"$f":"IF(ISERROR(Dados!A552),\"-\",Dados!A552)","v":""},{"$f":"IF(ISERROR(Dados!B552),\"-\",Dados!B552)","v":""},{"$f":"IF(ISERROR(Dados!C552),\"-\",Dados!C552)","v":""},{"$f":"IF(ISERROR(Dados!D552),\"-\",Dados!D552)","v":""},{"$f":"IF(ISERROR(Dados!E552),\"-\",Dados!E552)","v":""},{"$f":"IF(ISERROR(Dados!F552),\"-\",Dados!F552)","v":""},{"$f":"IF(ISERROR(Dados!G552),\"-\",Dados!G552)","v":""},{"$f":"IF(ISERROR(Dados!H552),\"-\",Dados!H552)","v":""},{"$f":"IF(ISERROR(Dados!I552),\"-\",Dados!I552)","v":""},{"$f":"IF(ISERROR(Dados!J552),\"-\",Dados!J552)","v":""},{"$f":"IF(ISERROR(Dados!K552),\"-\",Dados!K552)","v":""},{"$f":"IF(ISERROR(Dados!L552),\"-\",Dados!L552)","v":""},{"$f":"IF(ISERROR(Dados!M552),\"-\",Dados!M552)","v":""},{"$f":"IF(ISERROR(Dados!N552),\"-\",Dados!N552)","v":""},{"$f":"IF(ISERROR(Dados!O552),\"-\",Dados!O552)","v":""},{"$f":"IF(ISERROR(Dados!P552),\"-\",Dados!P552)","v":""},{"$f":"IF(ISERROR(Dados!Q552),\"-\",Dados!Q552)","v":""},{"$f":"IF(ISERROR(Dados!R552),\"-\",Dados!R552)","v":""},{"$f":"IF(ISERROR(Dados!S552),\"-\",Dados!S552)","v":""},{"$f":"IF(ISERROR(Dados!T552),\"-\",Dados!T552)","v":""},{"$f":"IF(ISERROR(Dados!U552),\"-\",Dados!U552)","v":""},{"$f":"IF(ISERROR(Dados!V552),\"-\",Dados!V552)","v":""},{"$f":"IF(ISERROR(Dados!W552),\"-\",Dados!W552)","v":""},{"$f":"IF(ISERROR(Dados!X552),\"-\",Dados!X552)","v":""},{"$f":"IF(ISERROR(Dados!Y552),\"-\",Dados!Y552)","v":""},{"$f":"IF(ISERROR(Dados!Z552),\"-\",Dados!Z552)","v":""},{"$f":"IF(ISERROR(Dados!AA552),\"-\",Dados!AA552)","v":""},{"$f":"IF(ISERROR(Dados!AB552),\"-\",Dados!AB552)","v":""},{"$f":"IF(ISERROR(Dados!AC552),\"-\",Dados!AC552)","v":""},{"$f":"IF(ISERROR(Dados!AD552),\"-\",Dados!AD552)","v":""},{"$f":"IF(ISERROR(Dados!AE552),\"-\",Dados!AE552)","v":""},{"$f":"IF(ISERROR(Dados!AF552),\"-\",Dados!AF552)","v":""},{"$f":"IF(ISERROR(Dados!AG552),\"-\",Dados!AG552)","v":""}]
[{"$f":"IF(ISERROR(Dados!A553),\"-\",Dados!A553)","v":""},{"$f":"IF(ISERROR(Dados!B553),\"-\",Dados!B553)","v":""},{"$f":"IF(ISERROR(Dados!C553),\"-\",Dados!C553)","v":""},{"$f":"IF(ISERROR(Dados!D553),\"-\",Dados!D553)","v":""},{"$f":"IF(ISERROR(Dados!E553),\"-\",Dados!E553)","v":""},{"$f":"IF(ISERROR(Dados!F553),\"-\",Dados!F553)","v":""},{"$f":"IF(ISERROR(Dados!G553),\"-\",Dados!G553)","v":""},{"$f":"IF(ISERROR(Dados!H553),\"-\",Dados!H553)","v":""},{"$f":"IF(ISERROR(Dados!I553),\"-\",Dados!I553)","v":""},{"$f":"IF(ISERROR(Dados!J553),\"-\",Dados!J553)","v":""},{"$f":"IF(ISERROR(Dados!K553),\"-\",Dados!K553)","v":""},{"$f":"IF(ISERROR(Dados!L553),\"-\",Dados!L553)","v":""},{"$f":"IF(ISERROR(Dados!M553),\"-\",Dados!M553)","v":""},{"$f":"IF(ISERROR(Dados!N553),\"-\",Dados!N553)","v":""},{"$f":"IF(ISERROR(Dados!O553),\"-\",Dados!O553)","v":""},{"$f":"IF(ISERROR(Dados!P553),\"-\",Dados!P553)","v":""},{"$f":"IF(ISERROR(Dados!Q553),\"-\",Dados!Q553)","v":""},{"$f":"IF(ISERROR(Dados!R553),\"-\",Dados!R553)","v":""},{"$f":"IF(ISERROR(Dados!S553),\"-\",Dados!S553)","v":""},{"$f":"IF(ISERROR(Dados!T553),\"-\",Dados!T553)","v":""},{"$f":"IF(ISERROR(Dados!U553),\"-\",Dados!U553)","v":""},{"$f":"IF(ISERROR(Dados!V553),\"-\",Dados!V553)","v":""},{"$f":"IF(ISERROR(Dados!W553),\"-\",Dados!W553)","v":""},{"$f":"IF(ISERROR(Dados!X553),\"-\",Dados!X553)","v":""},{"$f":"IF(ISERROR(Dados!Y553),\"-\",Dados!Y553)","v":""},{"$f":"IF(ISERROR(Dados!Z553),\"-\",Dados!Z553)","v":""},{"$f":"IF(ISERROR(Dados!AA553),\"-\",Dados!AA553)","v":""},{"$f":"IF(ISERROR(Dados!AB553),\"-\",Dados!AB553)","v":""},{"$f":"IF(ISERROR(Dados!AC553),\"-\",Dados!AC553)","v":""},{"$f":"IF(ISERROR(Dados!AD553),\"-\",Dados!AD553)","v":""},{"$f":"IF(ISERROR(Dados!AE553),\"-\",Dados!AE553)","v":""},{"$f":"IF(ISERROR(Dados!AF553),\"-\",Dados!AF553)","v":""},{"$f":"IF(ISERROR(Dados!AG553),\"-\",Dados!AG553)","v":""}]
[{"$f":"IF(ISERROR(Dados!A554),\"-\",Dados!A554)","v":""},{"$f":"IF(ISERROR(Dados!B554),\"-\",Dados!B554)","v":""},{"$f":"IF(ISERROR(Dados!C554),\"-\",Dados!C554)","v":""},{"$f":"IF(ISERROR(Dados!D554),\"-\",Dados!D554)","v":""},{"$f":"IF(ISERROR(Dados!E554),\"-\",Dados!E554)","v":""},{"$f":"IF(ISERROR(Dados!F554),\"-\",Dados!F554)","v":""},{"$f":"IF(ISERROR(Dados!G554),\"-\",Dados!G554)","v":""},{"$f":"IF(ISERROR(Dados!H554),\"-\",Dados!H554)","v":""},{"$f":"IF(ISERROR(Dados!I554),\"-\",Dados!I554)","v":""},{"$f":"IF(ISERROR(Dados!J554),\"-\",Dados!J554)","v":""},{"$f":"IF(ISERROR(Dados!K554),\"-\",Dados!K554)","v":""},{"$f":"IF(ISERROR(Dados!L554),\"-\",Dados!L554)","v":""},{"$f":"IF(ISERROR(Dados!M554),\"-\",Dados!M554)","v":""},{"$f":"IF(ISERROR(Dados!N554),\"-\",Dados!N554)","v":""},{"$f":"IF(ISERROR(Dados!O554),\"-\",Dados!O554)","v":""},{"$f":"IF(ISERROR(Dados!P554),\"-\",Dados!P554)","v":""},{"$f":"IF(ISERROR(Dados!Q554),\"-\",Dados!Q554)","v":""},{"$f":"IF(ISERROR(Dados!R554),\"-\",Dados!R554)","v":""},{"$f":"IF(ISERROR(Dados!S554),\"-\",Dados!S554)","v":""},{"$f":"IF(ISERROR(Dados!T554),\"-\",Dados!T554)","v":""},{"$f":"IF(ISERROR(Dados!U554),\"-\",Dados!U554)","v":""},{"$f":"IF(ISERROR(Dados!V554),\"-\",Dados!V554)","v":""},{"$f":"IF(ISERROR(Dados!W554),\"-\",Dados!W554)","v":""},{"$f":"IF(ISERROR(Dados!X554),\"-\",Dados!X554)","v":""},{"$f":"IF(ISERROR(Dados!Y554),\"-\",Dados!Y554)","v":""},{"$f":"IF(ISERROR(Dados!Z554),\"-\",Dados!Z554)","v":""},{"$f":"IF(ISERROR(Dados!AA554),\"-\",Dados!AA554)","v":""},{"$f":"IF(ISERROR(Dados!AB554),\"-\",Dados!AB554)","v":""},{"$f":"IF(ISERROR(Dados!AC554),\"-\",Dados!AC554)","v":""},{"$f":"IF(ISERROR(Dados!AD554),\"-\",Dados!AD554)","v":""},{"$f":"IF(ISERROR(Dados!AE554),\"-\",Dados!AE554)","v":""},{"$f":"IF(ISERROR(Dados!AF554),\"-\",Dados!AF554)","v":""},{"$f":"IF(ISERROR(Dados!AG554),\"-\",Dados!AG554)","v":""}]
[{"$f":"IF(ISERROR(Dados!A555),\"-\",Dados!A555)","v":""},{"$f":"IF(ISERROR(Dados!B555),\"-\",Dados!B555)","v":""},{"$f":"IF(ISERROR(Dados!C555),\"-\",Dados!C555)","v":""},{"$f":"IF(ISERROR(Dados!D555),\"-\",Dados!D555)","v":""},{"$f":"IF(ISERROR(Dados!E555),\"-\",Dados!E555)","v":""},{"$f":"IF(ISERROR(Dados!F555),\"-\",Dados!F555)","v":""},{"$f":"IF(ISERROR(Dados!G555),\"-\",Dados!G555)","v":""},{"$f":"IF(ISERROR(Dados!H555),\"-\",Dados!H555)","v":""},{"$f":"IF(ISERROR(Dados!I555),\"-\",Dados!I555)","v":""},{"$f":"IF(ISERROR(Dados!J555),\"-\",Dados!J555)","v":""},{"$f":"IF(ISERROR(Dados!K555),\"-\",Dados!K555)","v":""},{"$f":"IF(ISERROR(Dados!L555),\"-\",Dados!L555)","v":""},{"$f":"IF(ISERROR(Dados!M555),\"-\",Dados!M555)","v":""},{"$f":"IF(ISERROR(Dados!N555),\"-\",Dados!N555)","v":""},{"$f":"IF(ISERROR(Dados!O555),\"-\",Dados!O555)","v":""},{"$f":"IF(ISERROR(Dados!P555),\"-\",Dados!P555)","v":""},{"$f":"IF(ISERROR(Dados!Q555),\"-\",Dados!Q555)","v":""},{"$f":"IF(ISERROR(Dados!R555),\"-\",Dados!R555)","v":""},{"$f":"IF(ISERROR(Dados!S555),\"-\",Dados!S555)","v":""},{"$f":"IF(ISERROR(Dados!T555),\"-\",Dados!T555)","v":""},{"$f":"IF(ISERROR(Dados!U555),\"-\",Dados!U555)","v":""},{"$f":"IF(ISERROR(Dados!V555),\"-\",Dados!V555)","v":""},{"$f":"IF(ISERROR(Dados!W555),\"-\",Dados!W555)","v":""},{"$f":"IF(ISERROR(Dados!X555),\"-\",Dados!X555)","v":""},{"$f":"IF(ISERROR(Dados!Y555),\"-\",Dados!Y555)","v":""},{"$f":"IF(ISERROR(Dados!Z555),\"-\",Dados!Z555)","v":""},{"$f":"IF(ISERROR(Dados!AA555),\"-\",Dados!AA555)","v":""},{"$f":"IF(ISERROR(Dados!AB555),\"-\",Dados!AB555)","v":""},{"$f":"IF(ISERROR(Dados!AC555),\"-\",Dados!AC555)","v":""},{"$f":"IF(ISERROR(Dados!AD555),\"-\",Dados!AD555)","v":""},{"$f":"IF(ISERROR(Dados!AE555),\"-\",Dados!AE555)","v":""},{"$f":"IF(ISERROR(Dados!AF555),\"-\",Dados!AF555)","v":""},{"$f":"IF(ISERROR(Dados!AG555),\"-\",Dados!AG555)","v":""}]
[{"$f":"IF(ISERROR(Dados!A556),\"-\",Dados!A556)","v":""},{"$f":"IF(ISERROR(Dados!B556),\"-\",Dados!B556)","v":""},{"$f":"IF(ISERROR(Dados!C556),\"-\",Dados!C556)","v":""},{"$f":"IF(ISERROR(Dados!D556),\"-\",Dados!D556)","v":""},{"$f":"IF(ISERROR(Dados!E556),\"-\",Dados!E556)","v":""},{"$f":"IF(ISERROR(Dados!F556),\"-\",Dados!F556)","v":""},{"$f":"IF(ISERROR(Dados!G556),\"-\",Dados!G556)","v":""},{"$f":"IF(ISERROR(Dados!H556),\"-\",Dados!H556)","v":""},{"$f":"IF(ISERROR(Dados!I556),\"-\",Dados!I556)","v":""},{"$f":"IF(ISERROR(Dados!J556),\"-\",Dados!J556)","v":""},{"$f":"IF(ISERROR(Dados!K556),\"-\",Dados!K556)","v":""},{"$f":"IF(ISERROR(Dados!L556),\"-\",Dados!L556)","v":""},{"$f":"IF(ISERROR(Dados!M556),\"-\",Dados!M556)","v":""},{"$f":"IF(ISERROR(Dados!N556),\"-\",Dados!N556)","v":""},{"$f":"IF(ISERROR(Dados!O556),\"-\",Dados!O556)","v":""},{"$f":"IF(ISERROR(Dados!P556),\"-\",Dados!P556)","v":""},{"$f":"IF(ISERROR(Dados!Q556),\"-\",Dados!Q556)","v":""},{"$f":"IF(ISERROR(Dados!R556),\"-\",Dados!R556)","v":""},{"$f":"IF(ISERROR(Dados!S556),\"-\",Dados!S556)","v":""},{"$f":"IF(ISERROR(Dados!T556),\"-\",Dados!T556)","v":""},{"$f":"IF(ISERROR(Dados!U556),\"-\",Dados!U556)","v":""},{"$f":"IF(ISERROR(Dados!V556),\"-\",Dados!V556)","v":""},{"$f":"IF(ISERROR(Dados!W556),\"-\",Dados!W556)","v":""},{"$f":"IF(ISERROR(Dados!X556),\"-\",Dados!X556)","v":""},{"$f":"IF(ISERROR(Dados!Y556),\"-\",Dados!Y556)","v":""},{"$f":"IF(ISERROR(Dados!Z556),\"-\",Dados!Z556)","v":""},{"$f":"IF(ISERROR(Dados!AA556),\"-\",Dados!AA556)","v":""},{"$f":"IF(ISERROR(Dados!AB556),\"-\",Dados!AB556)","v":""},{"$f":"IF(ISERROR(Dados!AC556),\"-\",Dados!AC556)","v":""},{"$f":"IF(ISERROR(Dados!AD556),\"-\",Dados!AD556)","v":""},{"$f":"IF(ISERROR(Dados!AE556),\"-\",Dados!AE556)","v":""},{"$f":"IF(ISERROR(Dados!AF556),\"-\",Dados!AF556)","v":""},{"$f":"IF(ISERROR(Dados!AG556),\"-\",Dados!AG556)","v":""}]
[{"$f":"IF(ISERROR(Dados!A557),\"-\",Dados!A557)","v":""},{"$f":"IF(ISERROR(Dados!B557),\"-\",Dados!B557)","v":""},{"$f":"IF(ISERROR(Dados!C557),\"-\",Dados!C557)","v":""},{"$f":"IF(ISERROR(Dados!D557),\"-\",Dados!D557)","v":""},{"$f":"IF(ISERROR(Dados!E557),\"-\",Dados!E557)","v":""},{"$f":"IF(ISERROR(Dados!F557),\"-\",Dados!F557)","v":""},{"$f":"IF(ISERROR(Dados!G557),\"-\",Dados!G557)","v":""},{"$f":"IF(ISERROR(Dados!H557),\"-\",Dados!H557)","v":""},{"$f":"IF(ISERROR(Dados!I557),\"-\",Dados!I557)","v":""},{"$f":"IF(ISERROR(Dados!J557),\"-\",Dados!J557)","v":""},{"$f":"IF(ISERROR(Dados!K557),\"-\",Dados!K557)","v":""},{"$f":"IF(ISERROR(Dados!L557),\"-\",Dados!L557)","v":""},{"$f":"IF(ISERROR(Dados!M557),\"-\",Dados!M557)","v":""},{"$f":"IF(ISERROR(Dados!N557),\"-\",Dados!N557)","v":""},{"$f":"IF(ISERROR(Dados!O557),\"-\",Dados!O557)","v":""},{"$f":"IF(ISERROR(Dados!P557),\"-\",Dados!P557)","v":""},{"$f":"IF(ISERROR(Dados!Q557),\"-\",Dados!Q557)","v":""},{"$f":"IF(ISERROR(Dados!R557),\"-\",Dados!R557)","v":""},{"$f":"IF(ISERROR(Dados!S557),\"-\",Dados!S557)","v":""},{"$f":"IF(ISERROR(Dados!T557),\"-\",Dados!T557)","v":""},{"$f":"IF(ISERROR(Dados!U557),\"-\",Dados!U557)","v":""},{"$f":"IF(ISERROR(Dados!V557),\"-\",Dados!V557)","v":""},{"$f":"IF(ISERROR(Dados!W557),\"-\",Dados!W557)","v":""},{"$f":"IF(ISERROR(Dados!X557),\"-\",Dados!X557)","v":""},{"$f":"IF(ISERROR(Dados!Y557),\"-\",Dados!Y557)","v":""},{"$f":"IF(ISERROR(Dados!Z557),\"-\",Dados!Z557)","v":""},{"$f":"IF(ISERROR(Dados!AA557),\"-\",Dados!AA557)","v":""},{"$f":"IF(ISERROR(Dados!AB557),\"-\",Dados!AB557)","v":""},{"$f":"IF(ISERROR(Dados!AC557),\"-\",Dados!AC557)","v":""},{"$f":"IF(ISERROR(Dados!AD557),\"-\",Dados!AD557)","v":""},{"$f":"IF(ISERROR(Dados!AE557),\"-\",Dados!AE557)","v":""},{"$f":"IF(ISERROR(Dados!AF557),\"-\",Dados!AF557)","v":""},{"$f":"IF(ISERROR(Dados!AG557),\"-\",Dados!AG557)","v":""}]
[{"$f":"IF(ISERROR(Dados!A558),\"-\",Dados!A558)","v":""},{"$f":"IF(ISERROR(Dados!B558),\"-\",Dados!B558)","v":""},{"$f":"IF(ISERROR(Dados!C558),\"-\",Dados!C558)","v":""},{"$f":"IF(ISERROR(Dados!D558),\"-\",Dados!D558)","v":""},{"$f":"IF(ISERROR(Dados!E558),\"-\",Dados!E558)","v":""},{"$f":"IF(ISERROR(Dados!F558),\"-\",Dados!F558)","v":""},{"$f":"IF(ISERROR(Dados!G558),\"-\",Dados!G558)","v":""},{"$f":"IF(ISERROR(Dados!H558),\"-\",Dados!H558)","v":""},{"$f":"IF(ISERROR(Dados!I558),\"-\",Dados!I558)","v":""},{"$f":"IF(ISERROR(Dados!J558),\"-\",Dados!J558)","v":""},{"$f":"IF(ISERROR(Dados!K558),\"-\",Dados!K558)","v":""},{"$f":"IF(ISERROR(Dados!L558),\"-\",Dados!L558)","v":""},{"$f":"IF(ISERROR(Dados!M558),\"-\",Dados!M558)","v":""},{"$f":"IF(ISERROR(Dados!N558),\"-\",Dados!N558)","v":""},{"$f":"IF(ISERROR(Dados!O558),\"-\",Dados!O558)","v":""},{"$f":"IF(ISERROR(Dados!P558),\"-\",Dados!P558)","v":""},{"$f":"IF(ISERROR(Dados!Q558),\"-\",Dados!Q558)","v":""},{"$f":"IF(ISERROR(Dados!R558),\"-\",Dados!R558)","v":""},{"$f":"IF(ISERROR(Dados!S558),\"-\",Dados!S558)","v":""},{"$f":"IF(ISERROR(Dados!T558),\"-\",Dados!T558)","v":""},{"$f":"IF(ISERROR(Dados!U558),\"-\",Dados!U558)","v":""},{"$f":"IF(ISERROR(Dados!V558),\"-\",Dados!V558)","v":""},{"$f":"IF(ISERROR(Dados!W558),\"-\",Dados!W558)","v":""},{"$f":"IF(ISERROR(Dados!X558),\"-\",Dados!X558)","v":""},{"$f":"IF(ISERROR(Dados!Y558),\"-\",Dados!Y558)","v":""},{"$f":"IF(ISERROR(Dados!Z558),\"-\",Dados!Z558)","v":""},{"$f":"IF(ISERROR(Dados!AA558),\"-\",Dados!AA558)","v":""},{"$f":"IF(ISERROR(Dados!AB558),\"-\",Dados!AB558)","v":""},{"$f":"IF(ISERROR(Dados!AC558),\"-\",Dados!AC558)","v":""},{"$f":"IF(ISERROR(Dados!AD558),\"-\",Dados!AD558)","v":""},{"$f":"IF(ISERROR(Dados!AE558),\"-\",Dados!AE558)","v":""},{"$f":"IF(ISERROR(Dados!AF558),\"-\",Dados!AF558)","v":""},{"$f":"IF(ISERROR(Dados!AG558),\"-\",Dados!AG558)","v":""}]
[{"$f":"IF(ISERROR(Dados!A559),\"-\",Dados!A559)","v":""},{"$f":"IF(ISERROR(Dados!B559),\"-\",Dados!B559)","v":""},{"$f":"IF(ISERROR(Dados!C559),\"-\",Dados!C559)","v":""},{"$f":"IF(ISERROR(Dados!D559),\"-\",Dados!D559)","v":""},{"$f":"IF(ISERROR(Dados!E559),\"-\",Dados!E559)","v":""},{"$f":"IF(ISERROR(Dados!F559),\"-\",Dados!F559)","v":""},{"$f":"IF(ISERROR(Dados!G559),\"-\",Dados!G559)","v":""},{"$f":"IF(ISERROR(Dados!H559),\"-\",Dados!H559)","v":""},{"$f":"IF(ISERROR(Dados!I559),\"-\",Dados!I559)","v":""},{"$f":"IF(ISERROR(Dados!J559),\"-\",Dados!J559)","v":""},{"$f":"IF(ISERROR(Dados!K559),\"-\",Dados!K559)","v":""},{"$f":"IF(ISERROR(Dados!L559),\"-\",Dados!L559)","v":""},{"$f":"IF(ISERROR(Dados!M559),\"-\",Dados!M559)","v":""},{"$f":"IF(ISERROR(Dados!N559),\"-\",Dados!N559)","v":""},{"$f":"IF(ISERROR(Dados!O559),\"-\",Dados!O559)","v":""},{"$f":"IF(ISERROR(Dados!P559),\"-\",Dados!P559)","v":""},{"$f":"IF(ISERROR(Dados!Q559),\"-\",Dados!Q559)","v":""},{"$f":"IF(ISERROR(Dados!R559),\"-\",Dados!R559)","v":""},{"$f":"IF(ISERROR(Dados!S559),\"-\",Dados!S559)","v":""},{"$f":"IF(ISERROR(Dados!T559),\"-\",Dados!T559)","v":""},{"$f":"IF(ISERROR(Dados!U559),\"-\",Dados!U559)","v":""},{"$f":"IF(ISERROR(Dados!V559),\"-\",Dados!V559)","v":""},{"$f":"IF(ISERROR(Dados!W559),\"-\",Dados!W559)","v":""},{"$f":"IF(ISERROR(Dados!X559),\"-\",Dados!X559)","v":""},{"$f":"IF(ISERROR(Dados!Y559),\"-\",Dados!Y559)","v":""},{"$f":"IF(ISERROR(Dados!Z559),\"-\",Dados!Z559)","v":""},{"$f":"IF(ISERROR(Dados!AA559),\"-\",Dados!AA559)","v":""},{"$f":"IF(ISERROR(Dados!AB559),\"-\",Dados!AB559)","v":""},{"$f":"IF(ISERROR(Dados!AC559),\"-\",Dados!AC559)","v":""},{"$f":"IF(ISERROR(Dados!AD559),\"-\",Dados!AD559)","v":""},{"$f":"IF(ISERROR(Dados!AE559),\"-\",Dados!AE559)","v":""},{"$f":"IF(ISERROR(Dados!AF559),\"-\",Dados!AF559)","v":""},{"$f":"IF(ISERROR(Dados!AG559),\"-\",Dados!AG559)","v":""}]
[{"$f":"IF(ISERROR(Dados!A560),\"-\",Dados!A560)","v":""},{"$f":"IF(ISERROR(Dados!B560),\"-\",Dados!B560)","v":""},{"$f":"IF(ISERROR(Dados!C560),\"-\",Dados!C560)","v":""},{"$f":"IF(ISERROR(Dados!D560),\"-\",Dados!D560)","v":""},{"$f":"IF(ISERROR(Dados!E560),\"-\",Dados!E560)","v":""},{"$f":"IF(ISERROR(Dados!F560),\"-\",Dados!F560)","v":""},{"$f":"IF(ISERROR(Dados!G560),\"-\",Dados!G560)","v":""},{"$f":"IF(ISERROR(Dados!H560),\"-\",Dados!H560)","v":""},{"$f":"IF(ISERROR(Dados!I560),\"-\",Dados!I560)","v":""},{"$f":"IF(ISERROR(Dados!J560),\"-\",Dados!J560)","v":""},{"$f":"IF(ISERROR(Dados!K560),\"-\",Dados!K560)","v":""},{"$f":"IF(ISERROR(Dados!L560),\"-\",Dados!L560)","v":""},{"$f":"IF(ISERROR(Dados!M560),\"-\",Dados!M560)","v":""},{"$f":"IF(ISERROR(Dados!N560),\"-\",Dados!N560)","v":""},{"$f":"IF(ISERROR(Dados!O560),\"-\",Dados!O560)","v":""},{"$f":"IF(ISERROR(Dados!P560),\"-\",Dados!P560)","v":""},{"$f":"IF(ISERROR(Dados!Q560),\"-\",Dados!Q560)","v":""},{"$f":"IF(ISERROR(Dados!R560),\"-\",Dados!R560)","v":""},{"$f":"IF(ISERROR(Dados!S560),\"-\",Dados!S560)","v":""},{"$f":"IF(ISERROR(Dados!T560),\"-\",Dados!T560)","v":""},{"$f":"IF(ISERROR(Dados!U560),\"-\",Dados!U560)","v":""},{"$f":"IF(ISERROR(Dados!V560),\"-\",Dados!V560)","v":""},{"$f":"IF(ISERROR(Dados!W560),\"-\",Dados!W560)","v":""},{"$f":"IF(ISERROR(Dados!X560),\"-\",Dados!X560)","v":""},{"$f":"IF(ISERROR(Dados!Y560),\"-\",Dados!Y560)","v":""},{"$f":"IF(ISERROR(Dados!Z560),\"-\",Dados!Z560)","v":""},{"$f":"IF(ISERROR(Dados!AA560),\"-\",Dados!AA560)","v":""},{"$f":"IF(ISERROR(Dados!AB560),\"-\",Dados!AB560)","v":""},{"$f":"IF(ISERROR(Dados!AC560),\"-\",Dados!AC560)","v":""},{"$f":"IF(ISERROR(Dados!AD560),\"-\",Dados!AD560)","v":""},{"$f":"IF(ISERROR(Dados!AE560),\"-\",Dados!AE560)","v":""},{"$f":"IF(ISERROR(Dados!AF560),\"-\",Dados!AF560)","v":""},{"$f":"IF(ISERROR(Dados!AG560),\"-\",Dados!AG560)","v":""}]
[{"$f":"IF(ISERROR(Dados!A561),\"-\",Dados!A561)","v":""},{"$f":"IF(ISERROR(Dados!B561),\"-\",Dados!B561)","v":""},{"$f":"IF(ISERROR(Dados!C561),\"-\",Dados!C561)","v":""},{"$f":"IF(ISERROR(Dados!D561),\"-\",Dados!D561)","v":""},{"$f":"IF(ISERROR(Dados!E561),\"-\",Dados!E561)","v":""},{"$f":"IF(ISERROR(Dados!F561),\"-\",Dados!F561)","v":""},{"$f":"IF(ISERROR(Dados!G561),\"-\",Dados!G561)","v":""},{"$f":"IF(ISERROR(Dados!H561),\"-\",Dados!H561)","v":""},{"$f":"IF(ISERROR(Dados!I561),\"-\",Dados!I561)","v":""},{"$f":"IF(ISERROR(Dados!J561),\"-\",Dados!J561)","v":""},{"$f":"IF(ISERROR(Dados!K561),\"-\",Dados!K561)","v":""},{"$f":"IF(ISERROR(Dados!L561),\"-\",Dados!L561)","v":""},{"$f":"IF(ISERROR(Dados!M561),\"-\",Dados!M561)","v":""},{"$f":"IF(ISERROR(Dados!N561),\"-\",Dados!N561)","v":""},{"$f":"IF(ISERROR(Dados!O561),\"-\",Dados!O561)","v":""},{"$f":"IF(ISERROR(Dados!P561),\"-\",Dados!P561)","v":""},{"$f":"IF(ISERROR(Dados!Q561),\"-\",Dados!Q561)","v":""},{"$f":"IF(ISERROR(Dados!R561),\"-\",Dados!R561)","v":""},{"$f":"IF(ISERROR(Dados!S561),\"-\",Dados!S561)","v":""},{"$f":"IF(ISERROR(Dados!T561),\"-\",Dados!T561)","v":""},{"$f":"IF(ISERROR(Dados!U561),\"-\",Dados!U561)","v":""},{"$f":"IF(ISERROR(Dados!V561),\"-\",Dados!V561)","v":""},{"$f":"IF(ISERROR(Dados!W561),\"-\",Dados!W561)","v":""},{"$f":"IF(ISERROR(Dados!X561),\"-\",Dados!X561)","v":""},{"$f":"IF(ISERROR(Dados!Y561),\"-\",Dados!Y561)","v":""},{"$f":"IF(ISERROR(Dados!Z561),\"-\",Dados!Z561)","v":""},{"$f":"IF(ISERROR(Dados!AA561),\"-\",Dados!AA561)","v":""},{"$f":"IF(ISERROR(Dados!AB561),\"-\",Dados!AB561)","v":""},{"$f":"IF(ISERROR(Dados!AC561),\"-\",Dados!AC561)","v":""},{"$f":"IF(ISERROR(Dados!AD561),\"-\",Dados!AD561)","v":""},{"$f":"IF(ISERROR(Dados!AE561),\"-\",Dados!AE561)","v":""},{"$f":"IF(ISERROR(Dados!AF561),\"-\",Dados!AF561)","v":""},{"$f":"IF(ISERROR(Dados!AG561),\"-\",Dados!AG561)","v":""}]
[{"$f":"IF(ISERROR(Dados!A562),\"-\",Dados!A562)","v":""},{"$f":"IF(ISERROR(Dados!B562),\"-\",Dados!B562)","v":""},{"$f":"IF(ISERROR(Dados!C562),\"-\",Dados!C562)","v":""},{"$f":"IF(ISERROR(Dados!D562),\"-\",Dados!D562)","v":""},{"$f":"IF(ISERROR(Dados!E562),\"-\",Dados!E562)","v":""},{"$f":"IF(ISERROR(Dados!F562),\"-\",Dados!F562)","v":""},{"$f":"IF(ISERROR(Dados!G562),\"-\",Dados!G562)","v":""},{"$f":"IF(ISERROR(Dados!H562),\"-\",Dados!H562)","v":""},{"$f":"IF(ISERROR(Dados!I562),\"-\",Dados!I562)","v":""},{"$f":"IF(ISERROR(Dados!J562),\"-\",Dados!J562)","v":""},{"$f":"IF(ISERROR(Dados!K562),\"-\",Dados!K562)","v":""},{"$f":"IF(ISERROR(Dados!L562),\"-\",Dados!L562)","v":""},{"$f":"IF(ISERROR(Dados!M562),\"-\",Dados!M562)","v":""},{"$f":"IF(ISERROR(Dados!N562),\"-\",Dados!N562)","v":""},{"$f":"IF(ISERROR(Dados!O562),\"-\",Dados!O562)","v":""},{"$f":"IF(ISERROR(Dados!P562),\"-\",Dados!P562)","v":""},{"$f":"IF(ISERROR(Dados!Q562),\"-\",Dados!Q562)","v":""},{"$f":"IF(ISERROR(Dados!R562),\"-\",Dados!R562)","v":""},{"$f":"IF(ISERROR(Dados!S562),\"-\",Dados!S562)","v":""},{"$f":"IF(ISERROR(Dados!T562),\"-\",Dados!T562)","v":""},{"$f":"IF(ISERROR(Dados!U562),\"-\",Dados!U562)","v":""},{"$f":"IF(ISERROR(Dados!V562),\"-\",Dados!V562)","v":""},{"$f":"IF(ISERROR(Dados!W562),\"-\",Dados!W562)","v":""},{"$f":"IF(ISERROR(Dados!X562),\"-\",Dados!X562)","v":""},{"$f":"IF(ISERROR(Dados!Y562),\"-\",Dados!Y562)","v":""},{"$f":"IF(ISERROR(Dados!Z562),\"-\",Dados!Z562)","v":""},{"$f":"IF(ISERROR(Dados!AA562),\"-\",Dados!AA562)","v":""},{"$f":"IF(ISERROR(Dados!AB562),\"-\",Dados!AB562)","v":""},{"$f":"IF(ISERROR(Dados!AC562),\"-\",Dados!AC562)","v":""},{"$f":"IF(ISERROR(Dados!AD562),\"-\",Dados!AD562)","v":""},{"$f":"IF(ISERROR(Dados!AE562),\"-\",Dados!AE562)","v":""},{"$f":"IF(ISERROR(Dados!AF562),\"-\",Dados!AF562)","v":""},{"$f":"IF(ISERROR(Dados!AG562),\"-\",Dados!AG562)","v":""}]
[{"$f":"IF(ISERROR(Dados!A563),\"-\",Dados!A563)","v":""},{"$f":"IF(ISERROR(Dados!B563),\"-\",Dados!B563)","v":""},{"$f":"IF(ISERROR(Dados!C563),\"-\",Dados!C563)","v":""},{"$f":"IF(ISERROR(Dados!D563),\"-\",Dados!D563)","v":""},{"$f":"IF(ISERROR(Dados!E563),\"-\",Dados!E563)","v":""},{"$f":"IF(ISERROR(Dados!F563),\"-\",Dados!F563)","v":""},{"$f":"IF(ISERROR(Dados!G563),\"-\",Dados!G563)","v":""},{"$f":"IF(ISERROR(Dados!H563),\"-\",Dados!H563)","v":""},{"$f":"IF(ISERROR(Dados!I563),\"-\",Dados!I563)","v":""},{"$f":"IF(ISERROR(Dados!J563),\"-\",Dados!J563)","v":""},{"$f":"IF(ISERROR(Dados!K563),\"-\",Dados!K563)","v":""},{"$f":"IF(ISERROR(Dados!L563),\"-\",Dados!L563)","v":""},{"$f":"IF(ISERROR(Dados!M563),\"-\",Dados!M563)","v":""},{"$f":"IF(ISERROR(Dados!N563),\"-\",Dados!N563)","v":""},{"$f":"IF(ISERROR(Dados!O563),\"-\",Dados!O563)","v":""},{"$f":"IF(ISERROR(Dados!P563),\"-\",Dados!P563)","v":""},{"$f":"IF(ISERROR(Dados!Q563),\"-\",Dados!Q563)","v":""},{"$f":"IF(ISERROR(Dados!R563),\"-\",Dados!R563)","v":""},{"$f":"IF(ISERROR(Dados!S563),\"-\",Dados!S563)","v":""},{"$f":"IF(ISERROR(Dados!T563),\"-\",Dados!T563)","v":""},{"$f":"IF(ISERROR(Dados!U563),\"-\",Dados!U563)","v":""},{"$f":"IF(ISERROR(Dados!V563),\"-\",Dados!V563)","v":""},{"$f":"IF(ISERROR(Dados!W563),\"-\",Dados!W563)","v":""},{"$f":"IF(ISERROR(Dados!X563),\"-\",Dados!X563)","v":""},{"$f":"IF(ISERROR(Dados!Y563),\"-\",Dados!Y563)","v":""},{"$f":"IF(ISERROR(Dados!Z563),\"-\",Dados!Z563)","v":""},{"$f":"IF(ISERROR(Dados!AA563),\"-\",Dados!AA563)","v":""},{"$f":"IF(ISERROR(Dados!AB563),\"-\",Dados!AB563)","v":""},{"$f":"IF(ISERROR(Dados!AC563),\"-\",Dados!AC563)","v":""},{"$f":"IF(ISERROR(Dados!AD563),\"-\",Dados!AD563)","v":""},{"$f":"IF(ISERROR(Dados!AE563),\"-\",Dados!AE563)","v":""},{"$f":"IF(ISERROR(Dados!AF563),\"-\",Dados!AF563)","v":""},{"$f":"IF(ISERROR(Dados!AG563),\"-\",Dados!AG563)","v":""}]
[{"$f":"IF(ISERROR(Dados!A564),\"-\",Dados!A564)","v":""},{"$f":"IF(ISERROR(Dados!B564),\"-\",Dados!B564)","v":""},{"$f":"IF(ISERROR(Dados!C564),\"-\",Dados!C564)","v":""},{"$f":"IF(ISERROR(Dados!D564),\"-\",Dados!D564)","v":""},{"$f":"IF(ISERROR(Dados!E564),\"-\",Dados!E564)","v":""},{"$f":"IF(ISERROR(Dados!F564),\"-\",Dados!F564)","v":""},{"$f":"IF(ISERROR(Dados!G564),\"-\",Dados!G564)","v":""},{"$f":"IF(ISERROR(Dados!H564),\"-\",Dados!H564)","v":""},{"$f":"IF(ISERROR(Dados!I564),\"-\",Dados!I564)","v":""},{"$f":"IF(ISERROR(Dados!J564),\"-\",Dados!J564)","v":""},{"$f":"IF(ISERROR(Dados!K564),\"-\",Dados!K564)","v":""},{"$f":"IF(ISERROR(Dados!L564),\"-\",Dados!L564)","v":""},{"$f":"IF(ISERROR(Dados!M564),\"-\",Dados!M564)","v":""},{"$f":"IF(ISERROR(Dados!N564),\"-\",Dados!N564)","v":""},{"$f":"IF(ISERROR(Dados!O564),\"-\",Dados!O564)","v":""},{"$f":"IF(ISERROR(Dados!P564),\"-\",Dados!P564)","v":""},{"$f":"IF(ISERROR(Dados!Q564),\"-\",Dados!Q564)","v":""},{"$f":"IF(ISERROR(Dados!R564),\"-\",Dados!R564)","v":""},{"$f":"IF(ISERROR(Dados!S564),\"-\",Dados!S564)","v":""},{"$f":"IF(ISERROR(Dados!T564),\"-\",Dados!T564)","v":""},{"$f":"IF(ISERROR(Dados!U564),\"-\",Dados!U564)","v":""},{"$f":"IF(ISERROR(Dados!V564),\"-\",Dados!V564)","v":""},{"$f":"IF(ISERROR(Dados!W564),\"-\",Dados!W564)","v":""},{"$f":"IF(ISERROR(Dados!X564),\"-\",Dados!X564)","v":""},{"$f":"IF(ISERROR(Dados!Y564),\"-\",Dados!Y564)","v":""},{"$f":"IF(ISERROR(Dados!Z564),\"-\",Dados!Z564)","v":""},{"$f":"IF(ISERROR(Dados!AA564),\"-\",Dados!AA564)","v":""},{"$f":"IF(ISERROR(Dados!AB564),\"-\",Dados!AB564)","v":""},{"$f":"IF(ISERROR(Dados!AC564),\"-\",Dados!AC564)","v":""},{"$f":"IF(ISERROR(Dados!AD564),\"-\",Dados!AD564)","v":""},{"$f":"IF(ISERROR(Dados!AE564),\"-\",Dados!AE564)","v":""},{"$f":"IF(ISERROR(Dados!AF564),\"-\",Dados!AF564)","v":""},{"$f":"IF(ISERROR(Dados!AG564),\"-\",Dados!AG564)","v":""}]
[{"$f":"IF(ISERROR(Dados!A565),\"-\",Dados!A565)","v":""},{"$f":"IF(ISERROR(Dados!B565),\"-\",Dados!B565)","v":""},{"$f":"IF(ISERROR(Dados!C565),\"-\",Dados!C565)","v":""},{"$f":"IF(ISERROR(Dados!D565),\"-\",Dados!D565)","v":""},{"$f":"IF(ISERROR(Dados!E565),\"-\",Dados!E565)","v":""},{"$f":"IF(ISERROR(Dados!F565),\"-\",Dados!F565)","v":""},{"$f":"IF(ISERROR(Dados!G565),\"-\",Dados!G565)","v":""},{"$f":"IF(ISERROR(Dados!H565),\"-\",Dados!H565)","v":""},{"$f":"IF(ISERROR(Dados!I565),\"-\",Dados!I565)","v":""},{"$f":"IF(ISERROR(Dados!J565),\"-\",Dados!J565)","v":""},{"$f":"IF(ISERROR(Dados!K565),\"-\",Dados!K565)","v":""},{"$f":"IF(ISERROR(Dados!L565),\"-\",Dados!L565)","v":""},{"$f":"IF(ISERROR(Dados!M565),\"-\",Dados!M565)","v":""},{"$f":"IF(ISERROR(Dados!N565),\"-\",Dados!N565)","v":""},{"$f":"IF(ISERROR(Dados!O565),\"-\",Dados!O565)","v":""},{"$f":"IF(ISERROR(Dados!P565),\"-\",Dados!P565)","v":""},{"$f":"IF(ISERROR(Dados!Q565),\"-\",Dados!Q565)","v":""},{"$f":"IF(ISERROR(Dados!R565),\"-\",Dados!R565)","v":""},{"$f":"IF(ISERROR(Dados!S565),\"-\",Dados!S565)","v":""},{"$f":"IF(ISERROR(Dados!T565),\"-\",Dados!T565)","v":""},{"$f":"IF(ISERROR(Dados!U565),\"-\",Dados!U565)","v":""},{"$f":"IF(ISERROR(Dados!V565),\"-\",Dados!V565)","v":""},{"$f":"IF(ISERROR(Dados!W565),\"-\",Dados!W565)","v":""},{"$f":"IF(ISERROR(Dados!X565),\"-\",Dados!X565)","v":""},{"$f":"IF(ISERROR(Dados!Y565),\"-\",Dados!Y565)","v":""},{"$f":"IF(ISERROR(Dados!Z565),\"-\",Dados!Z565)","v":""},{"$f":"IF(ISERROR(Dados!AA565),\"-\",Dados!AA565)","v":""},{"$f":"IF(ISERROR(Dados!AB565),\"-\",Dados!AB565)","v":""},{"$f":"IF(ISERROR(Dados!AC565),\"-\",Dados!AC565)","v":""},{"$f":"IF(ISERROR(Dados!AD565),\"-\",Dados!AD565)","v":""},{"$f":"IF(ISERROR(Dados!AE565),\"-\",Dados!AE565)","v":""},{"$f":"IF(ISERROR(Dados!AF565),\"-\",Dados!AF565)","v":""},{"$f":"IF(ISERROR(Dados!AG565),\"-\",Dados!AG565)","v":""}]
[{"$f":"IF(ISERROR(Dados!A566),\"-\",Dados!A566)","v":""},{"$f":"IF(ISERROR(Dados!B566),\"-\",Dados!B566)","v":""},{"$f":"IF(ISERROR(Dados!C566),\"-\",Dados!C566)","v":""},{"$f":"IF(ISERROR(Dados!D566),\"-\",Dados!D566)","v":""},{"$f":"IF(ISERROR(Dados!E566),\"-\",Dados!E566)","v":""},{"$f":"IF(ISERROR(Dados!F566),\"-\",Dados!F566)","v":""},{"$f":"IF(ISERROR(Dados!G566),\"-\",Dados!G566)","v":""},{"$f":"IF(ISERROR(Dados!H566),\"-\",Dados!H566)","v":""},{"$f":"IF(ISERROR(Dados!I566),\"-\",Dados!I566)","v":""},{"$f":"IF(ISERROR(Dados!J566),\"-\",Dados!J566)","v":""},{"$f":"IF(ISERROR(Dados!K566),\"-\",Dados!K566)","v":""},{"$f":"IF(ISERROR(Dados!L566),\"-\",Dados!L566)","v":""},{"$f":"IF(ISERROR(Dados!M566),\"-\",Dados!M566)","v":""},{"$f":"IF(ISERROR(Dados!N566),\"-\",Dados!N566)","v":""},{"$f":"IF(ISERROR(Dados!O566),\"-\",Dados!O566)","v":""},{"$f":"IF(ISERROR(Dados!P566),\"-\",Dados!P566)","v":""},{"$f":"IF(ISERROR(Dados!Q566),\"-\",Dados!Q566)","v":""},{"$f":"IF(ISERROR(Dados!R566),\"-\",Dados!R566)","v":""},{"$f":"IF(ISERROR(Dados!S566),\"-\",Dados!S566)","v":""},{"$f":"IF(ISERROR(Dados!T566),\"-\",Dados!T566)","v":""},{"$f":"IF(ISERROR(Dados!U566),\"-\",Dados!U566)","v":""},{"$f":"IF(ISERROR(Dados!V566),\"-\",Dados!V566)","v":""},{"$f":"IF(ISERROR(Dados!W566),\"-\",Dados!W566)","v":""},{"$f":"IF(ISERROR(Dados!X566),\"-\",Dados!X566)","v":""},{"$f":"IF(ISERROR(Dados!Y566),\"-\",Dados!Y566)","v":""},{"$f":"IF(ISERROR(Dados!Z566),\"-\",Dados!Z566)","v":""},{"$f":"IF(ISERROR(Dados!AA566),\"-\",Dados!AA566)","v":""},{"$f":"IF(ISERROR(Dados!AB566),\"-\",Dados!AB566)","v":""},{"$f":"IF(ISERROR(Dados!AC566),\"-\",Dados!AC566)","v":""},{"$f":"IF(ISERROR(Dados!AD566),\"-\",Dados!AD566)","v":""},{"$f":"IF(ISERROR(Dados!AE566),\"-\",Dados!AE566)","v":""},{"$f":"IF(ISERROR(Dados!AF566),\"-\",Dados!AF566)","v":""},{"$f":"IF(ISERROR(Dados!AG566),\"-\",Dados!AG566)","v":""}]
[{"$f":"IF(ISERROR(Dados!A567),\"-\",Dados!A567)","v":""},{"$f":"IF(ISERROR(Dados!B567),\"-\",Dados!B567)","v":""},{"$f":"IF(ISERROR(Dados!C567),\"-\",Dados!C567)","v":""},{"$f":"IF(ISERROR(Dados!D567),\"-\",Dados!D567)","v":""},{"$f":"IF(ISERROR(Dados!E567),\"-\",Dados!E567)","v":""},{"$f":"IF(ISERROR(Dados!F567),\"-\",Dados!F567)","v":""},{"$f":"IF(ISERROR(Dados!G567),\"-\",Dados!G567)","v":""},{"$f":"IF(ISERROR(Dados!H567),\"-\",Dados!H567)","v":""},{"$f":"IF(ISERROR(Dados!I567),\"-\",Dados!I567)","v":""},{"$f":"IF(ISERROR(Dados!J567),\"-\",Dados!J567)","v":""},{"$f":"IF(ISERROR(Dados!K567),\"-\",Dados!K567)","v":""},{"$f":"IF(ISERROR(Dados!L567),\"-\",Dados!L567)","v":""},{"$f":"IF(ISERROR(Dados!M567),\"-\",Dados!M567)","v":""},{"$f":"IF(ISERROR(Dados!N567),\"-\",Dados!N567)","v":""},{"$f":"IF(ISERROR(Dados!O567),\"-\",Dados!O567)","v":""},{"$f":"IF(ISERROR(Dados!P567),\"-\",Dados!P567)","v":""},{"$f":"IF(ISERROR(Dados!Q567),\"-\",Dados!Q567)","v":""},{"$f":"IF(ISERROR(Dados!R567),\"-\",Dados!R567)","v":""},{"$f":"IF(ISERROR(Dados!S567),\"-\",Dados!S567)","v":""},{"$f":"IF(ISERROR(Dados!T567),\"-\",Dados!T567)","v":""},{"$f":"IF(ISERROR(Dados!U567),\"-\",Dados!U567)","v":""},{"$f":"IF(ISERROR(Dados!V567),\"-\",Dados!V567)","v":""},{"$f":"IF(ISERROR(Dados!W567),\"-\",Dados!W567)","v":""},{"$f":"IF(ISERROR(Dados!X567),\"-\",Dados!X567)","v":""},{"$f":"IF(ISERROR(Dados!Y567),\"-\",Dados!Y567)","v":""},{"$f":"IF(ISERROR(Dados!Z567),\"-\",Dados!Z567)","v":""},{"$f":"IF(ISERROR(Dados!AA567),\"-\",Dados!AA567)","v":""},{"$f":"IF(ISERROR(Dados!AB567),\"-\",Dados!AB567)","v":""},{"$f":"IF(ISERROR(Dados!AC567),\"-\",Dados!AC567)","v":""},{"$f":"IF(ISERROR(Dados!AD567),\"-\",Dados!AD567)","v":""},{"$f":"IF(ISERROR(Dados!AE567),\"-\",Dados!AE567)","v":""},{"$f":"IF(ISERROR(Dados!AF567),\"-\",Dados!AF567)","v":""},{"$f":"IF(ISERROR(Dados!AG567),\"-\",Dados!AG567)","v":""}]
[{"$f":"IF(ISERROR(Dados!A568),\"-\",Dados!A568)","v":""},{"$f":"IF(ISERROR(Dados!B568),\"-\",Dados!B568)","v":""},{"$f":"IF(ISERROR(Dados!C568),\"-\",Dados!C568)","v":""},{"$f":"IF(ISERROR(Dados!D568),\"-\",Dados!D568)","v":""},{"$f":"IF(ISERROR(Dados!E568),\"-\",Dados!E568)","v":""},{"$f":"IF(ISERROR(Dados!F568),\"-\",Dados!F568)","v":""},{"$f":"IF(ISERROR(Dados!G568),\"-\",Dados!G568)","v":""},{"$f":"IF(ISERROR(Dados!H568),\"-\",Dados!H568)","v":""},{"$f":"IF(ISERROR(Dados!I568),\"-\",Dados!I568)","v":""},{"$f":"IF(ISERROR(Dados!J568),\"-\",Dados!J568)","v":""},{"$f":"IF(ISERROR(Dados!K568),\"-\",Dados!K568)","v":""},{"$f":"IF(ISERROR(Dados!L568),\"-\",Dados!L568)","v":""},{"$f":"IF(ISERROR(Dados!M568),\"-\",Dados!M568)","v":""},{"$f":"IF(ISERROR(Dados!N568),\"-\",Dados!N568)","v":""},{"$f":"IF(ISERROR(Dados!O568),\"-\",Dados!O568)","v":""},{"$f":"IF(ISERROR(Dados!P568),\"-\",Dados!P568)","v":""},{"$f":"IF(ISERROR(Dados!Q568),\"-\",Dados!Q568)","v":""},{"$f":"IF(ISERROR(Dados!R568),\"-\",Dados!R568)","v":""},{"$f":"IF(ISERROR(Dados!S568),\"-\",Dados!S568)","v":""},{"$f":"IF(ISERROR(Dados!T568),\"-\",Dados!T568)","v":""},{"$f":"IF(ISERROR(Dados!U568),\"-\",Dados!U568)","v":""},{"$f":"IF(ISERROR(Dados!V568),\"-\",Dados!V568)","v":""},{"$f":"IF(ISERROR(Dados!W568),\"-\",Dados!W568)","v":""},{"$f":"IF(ISERROR(Dados!X568),\"-\",Dados!X568)","v":""},{"$f":"IF(ISERROR(Dados!Y568),\"-\",Dados!Y568)","v":""},{"$f":"IF(ISERROR(Dados!Z568),\"-\",Dados!Z568)","v":""},{"$f":"IF(ISERROR(Dados!AA568),\"-\",Dados!AA568)","v":""},{"$f":"IF(ISERROR(Dados!AB568),\"-\",Dados!AB568)","v":""},{"$f":"IF(ISERROR(Dados!AC568),\"-\",Dados!AC568)","v":""},{"$f":"IF(ISERROR(Dados!AD568),\"-\",Dados!AD568)","v":""},{"$f":"IF(ISERROR(Dados!AE568),\"-\",Dados!AE568)","v":""},{"$f":"IF(ISERROR(Dados!AF568),\"-\",Dados!AF568)","v":""},{"$f":"IF(ISERROR(Dados!AG568),\"-\",Dados!AG568)","v":""}]
[{"$f":"IF(ISERROR(Dados!A569),\"-\",Dados!A569)","v":""},{"$f":"IF(ISERROR(Dados!B569),\"-\",Dados!B569)","v":""},{"$f":"IF(ISERROR(Dados!C569),\"-\",Dados!C569)","v":""},{"$f":"IF(ISERROR(Dados!D569),\"-\",Dados!D569)","v":""},{"$f":"IF(ISERROR(Dados!E569),\"-\",Dados!E569)","v":""},{"$f":"IF(ISERROR(Dados!F569),\"-\",Dados!F569)","v":""},{"$f":"IF(ISERROR(Dados!G569),\"-\",Dados!G569)","v":""},{"$f":"IF(ISERROR(Dados!H569),\"-\",Dados!H569)","v":""},{"$f":"IF(ISERROR(Dados!I569),\"-\",Dados!I569)","v":""},{"$f":"IF(ISERROR(Dados!J569),\"-\",Dados!J569)","v":""},{"$f":"IF(ISERROR(Dados!K569),\"-\",Dados!K569)","v":""},{"$f":"IF(ISERROR(Dados!L569),\"-\",Dados!L569)","v":""},{"$f":"IF(ISERROR(Dados!M569),\"-\",Dados!M569)","v":""},{"$f":"IF(ISERROR(Dados!N569),\"-\",Dados!N569)","v":""},{"$f":"IF(ISERROR(Dados!O569),\"-\",Dados!O569)","v":""},{"$f":"IF(ISERROR(Dados!P569),\"-\",Dados!P569)","v":""},{"$f":"IF(ISERROR(Dados!Q569),\"-\",Dados!Q569)","v":""},{"$f":"IF(ISERROR(Dados!R569),\"-\",Dados!R569)","v":""},{"$f":"IF(ISERROR(Dados!S569),\"-\",Dados!S569)","v":""},{"$f":"IF(ISERROR(Dados!T569),\"-\",Dados!T569)","v":""},{"$f":"IF(ISERROR(Dados!U569),\"-\",Dados!U569)","v":""},{"$f":"IF(ISERROR(Dados!V569),\"-\",Dados!V569)","v":""},{"$f":"IF(ISERROR(Dados!W569),\"-\",Dados!W569)","v":""},{"$f":"IF(ISERROR(Dados!X569),\"-\",Dados!X569)","v":""},{"$f":"IF(ISERROR(Dados!Y569),\"-\",Dados!Y569)","v":""},{"$f":"IF(ISERROR(Dados!Z569),\"-\",Dados!Z569)","v":""},{"$f":"IF(ISERROR(Dados!AA569),\"-\",Dados!AA569)","v":""},{"$f":"IF(ISERROR(Dados!AB569),\"-\",Dados!AB569)","v":""},{"$f":"IF(ISERROR(Dados!AC569),\"-\",Dados!AC569)","v":""},{"$f":"IF(ISERROR(Dados!AD569),\"-\",Dados!AD569)","v":""},{"$f":"IF(ISERROR(Dados!AE569),\"-\",Dados!AE569)","v":""},{"$f":"IF(ISERROR(Dados!AF569),\"-\",Dados!AF569)","v":""},{"$f":"IF(ISERROR(Dados!AG569),\"-\",Dados!AG569)","v":""}]
[{"$f":"IF(ISERROR(Dados!A570),\"-\",Dados!A570)","v":""},{"$f":"IF(ISERROR(Dados!B570),\"-\",Dados!B570)","v":""},{"$f":"IF(ISERROR(Dados!C570),\"-\",Dados!C570)","v":""},{"$f":"IF(ISERROR(Dados!D570),\"-\",Dados!D570)","v":""},{"$f":"IF(ISERROR(Dados!E570),\"-\",Dados!E570)","v":""},{"$f":"IF(ISERROR(Dados!F570),\"-\",Dados!F570)","v":""},{"$f":"IF(ISERROR(Dados!G570),\"-\",Dados!G570)","v":""},{"$f":"IF(ISERROR(Dados!H570),\"-\",Dados!H570)","v":""},{"$f":"IF(ISERROR(Dados!I570),\"-\",Dados!I570)","v":""},{"$f":"IF(ISERROR(Dados!J570),\"-\",Dados!J570)","v":""},{"$f":"IF(ISERROR(Dados!K570),\"-\",Dados!K570)","v":""},{"$f":"IF(ISERROR(Dados!L570),\"-\",Dados!L570)","v":""},{"$f":"IF(ISERROR(Dados!M570),\"-\",Dados!M570)","v":""},{"$f":"IF(ISERROR(Dados!N570),\"-\",Dados!N570)","v":""},{"$f":"IF(ISERROR(Dados!O570),\"-\",Dados!O570)","v":""},{"$f":"IF(ISERROR(Dados!P570),\"-\",Dados!P570)","v":""},{"$f":"IF(ISERROR(Dados!Q570),\"-\",Dados!Q570)","v":""},{"$f":"IF(ISERROR(Dados!R570),\"-\",Dados!R570)","v":""},{"$f":"IF(ISERROR(Dados!S570),\"-\",Dados!S570)","v":""},{"$f":"IF(ISERROR(Dados!T570),\"-\",Dados!T570)","v":""},{"$f":"IF(ISERROR(Dados!U570),\"-\",Dados!U570)","v":""},{"$f":"IF(ISERROR(Dados!V570),\"-\",Dados!V570)","v":""},{"$f":"IF(ISERROR(Dados!W570),\"-\",Dados!W570)","v":""},{"$f":"IF(ISERROR(Dados!X570),\"-\",Dados!X570)","v":""},{"$f":"IF(ISERROR(Dados!Y570),\"-\",Dados!Y570)","v":""},{"$f":"IF(ISERROR(Dados!Z570),\"-\",Dados!Z570)","v":""},{"$f":"IF(ISERROR(Dados!AA570),\"-\",Dados!AA570)","v":""},{"$f":"IF(ISERROR(Dados!AB570),\"-\",Dados!AB570)","v":""},{"$f":"IF(ISERROR(Dados!AC570),\"-\",Dados!AC570)","v":""},{"$f":"IF(ISERROR(Dados!AD570),\"-\",Dados!AD570)","v":""},{"$f":"IF(ISERROR(Dados!AE570),\"-\",Dados!AE570)","v":""},{"$f":"IF(ISERROR(Dados!AF570),\"-\",Dados!AF570)","v":""},{"$f":"IF(ISERROR(Dados!AG570),\"-\",Dados!AG570)","v":""}]
[{"$f":"IF(ISERROR(Dados!A571),\"-\",Dados!A571)","v":""},{"$f":"IF(ISERROR(Dados!B571),\"-\",Dados!B571)","v":""},{"$f":"IF(ISERROR(Dados!C571),\"-\",Dados!C571)","v":""},{"$f":"IF(ISERROR(Dados!D571),\"-\",Dados!D571)","v":""},{"$f":"IF(ISERROR(Dados!E571),\"-\",Dados!E571)","v":""},{"$f":"IF(ISERROR(Dados!F571),\"-\",Dados!F571)","v":""},{"$f":"IF(ISERROR(Dados!G571),\"-\",Dados!G571)","v":""},{"$f":"IF(ISERROR(Dados!H571),\"-\",Dados!H571)","v":""},{"$f":"IF(ISERROR(Dados!I571),\"-\",Dados!I571)","v":""},{"$f":"IF(ISERROR(Dados!J571),\"-\",Dados!J571)","v":""},{"$f":"IF(ISERROR(Dados!K571),\"-\",Dados!K571)","v":""},{"$f":"IF(ISERROR(Dados!L571),\"-\",Dados!L571)","v":""},{"$f":"IF(ISERROR(Dados!M571),\"-\",Dados!M571)","v":""},{"$f":"IF(ISERROR(Dados!N571),\"-\",Dados!N571)","v":""},{"$f":"IF(ISERROR(Dados!O571),\"-\",Dados!O571)","v":""},{"$f":"IF(ISERROR(Dados!P571),\"-\",Dados!P571)","v":""},{"$f":"IF(ISERROR(Dados!Q571),\"-\",Dados!Q571)","v":""},{"$f":"IF(ISERROR(Dados!R571),\"-\",Dados!R571)","v":""},{"$f":"IF(ISERROR(Dados!S571),\"-\",Dados!S571)","v":""},{"$f":"IF(ISERROR(Dados!T571),\"-\",Dados!T571)","v":""},{"$f":"IF(ISERROR(Dados!U571),\"-\",Dados!U571)","v":""},{"$f":"IF(ISERROR(Dados!V571),\"-\",Dados!V571)","v":""},{"$f":"IF(ISERROR(Dados!W571),\"-\",Dados!W571)","v":""},{"$f":"IF(ISERROR(Dados!X571),\"-\",Dados!X571)","v":""},{"$f":"IF(ISERROR(Dados!Y571),\"-\",Dados!Y571)","v":""},{"$f":"IF(ISERROR(Dados!Z571),\"-\",Dados!Z571)","v":""},{"$f":"IF(ISERROR(Dados!AA571),\"-\",Dados!AA571)","v":""},{"$f":"IF(ISERROR(Dados!AB571),\"-\",Dados!AB571)","v":""},{"$f":"IF(ISERROR(Dados!AC571),\"-\",Dados!AC571)","v":""},{"$f":"IF(ISERROR(Dados!AD571),\"-\",Dados!AD571)","v":""},{"$f":"IF(ISERROR(Dados!AE571),\"-\",Dados!AE571)","v":""},{"$f":"IF(ISERROR(Dados!AF571),\"-\",Dados!AF571)","v":""},{"$f":"IF(ISERROR(Dados!AG571),\"-\",Dados!AG571)","v":""}]
[{"$f":"IF(ISERROR(Dados!A572),\"-\",Dados!A572)","v":""},{"$f":"IF(ISERROR(Dados!B572),\"-\",Dados!B572)","v":""},{"$f":"IF(ISERROR(Dados!C572),\"-\",Dados!C572)","v":""},{"$f":"IF(ISERROR(Dados!D572),\"-\",Dados!D572)","v":""},{"$f":"IF(ISERROR(Dados!E572),\"-\",Dados!E572)","v":""},{"$f":"IF(ISERROR(Dados!F572),\"-\",Dados!F572)","v":""},{"$f":"IF(ISERROR(Dados!G572),\"-\",Dados!G572)","v":""},{"$f":"IF(ISERROR(Dados!H572),\"-\",Dados!H572)","v":""},{"$f":"IF(ISERROR(Dados!I572),\"-\",Dados!I572)","v":""},{"$f":"IF(ISERROR(Dados!J572),\"-\",Dados!J572)","v":""},{"$f":"IF(ISERROR(Dados!K572),\"-\",Dados!K572)","v":""},{"$f":"IF(ISERROR(Dados!L572),\"-\",Dados!L572)","v":""},{"$f":"IF(ISERROR(Dados!M572),\"-\",Dados!M572)","v":""},{"$f":"IF(ISERROR(Dados!N572),\"-\",Dados!N572)","v":""},{"$f":"IF(ISERROR(Dados!O572),\"-\",Dados!O572)","v":""},{"$f":"IF(ISERROR(Dados!P572),\"-\",Dados!P572)","v":""},{"$f":"IF(ISERROR(Dados!Q572),\"-\",Dados!Q572)","v":""},{"$f":"IF(ISERROR(Dados!R572),\"-\",Dados!R572)","v":""},{"$f":"IF(ISERROR(Dados!S572),\"-\",Dados!S572)","v":""},{"$f":"IF(ISERROR(Dados!T572),\"-\",Dados!T572)","v":""},{"$f":"IF(ISERROR(Dados!U572),\"-\",Dados!U572)","v":""},{"$f":"IF(ISERROR(Dados!V572),\"-\",Dados!V572)","v":""},{"$f":"IF(ISERROR(Dados!W572),\"-\",Dados!W572)","v":""},{"$f":"IF(ISERROR(Dados!X572),\"-\",Dados!X572)","v":""},{"$f":"IF(ISERROR(Dados!Y572),\"-\",Dados!Y572)","v":""},{"$f":"IF(ISERROR(Dados!Z572),\"-\",Dados!Z572)","v":""},{"$f":"IF(ISERROR(Dados!AA572),\"-\",Dados!AA572)","v":""},{"$f":"IF(ISERROR(Dados!AB572),\"-\",Dados!AB572)","v":""},{"$f":"IF(ISERROR(Dados!AC572),\"-\",Dados!AC572)","v":""},{"$f":"IF(ISERROR(Dados!AD572),\"-\",Dados!AD572)","v":""},{"$f":"IF(ISERROR(Dados!AE572),\"-\",Dados!AE572)","v":""},{"$f":"IF(ISERROR(Dados!AF572),\"-\",Dados!AF572)","v":""},{"$f":"IF(ISERROR(Dados!AG572),\"-\",Dados!AG572)","v":""}]
[{"$f":"IF(ISERROR(Dados!A573),\"-\",Dados!A573)","v":""},{"$f":"IF(ISERROR(Dados!B573),\"-\",Dados!B573)","v":""},{"$f":"IF(ISERROR(Dados!C573),\"-\",Dados!C573)","v":""},{"$f":"IF(ISERROR(Dados!D573),\"-\",Dados!D573)","v":""},{"$f":"IF(ISERROR(Dados!E573),\"-\",Dados!E573)","v":""},{"$f":"IF(ISERROR(Dados!F573),\"-\",Dados!F573)","v":""},{"$f":"IF(ISERROR(Dados!G573),\"-\",Dados!G573)","v":""},{"$f":"IF(ISERROR(Dados!H573),\"-\",Dados!H573)","v":""},{"$f":"IF(ISERROR(Dados!I573),\"-\",Dados!I573)","v":""},{"$f":"IF(ISERROR(Dados!J573),\"-\",Dados!J573)","v":""},{"$f":"IF(ISERROR(Dados!K573),\"-\",Dados!K573)","v":""},{"$f":"IF(ISERROR(Dados!L573),\"-\",Dados!L573)","v":""},{"$f":"IF(ISERROR(Dados!M573),\"-\",Dados!M573)","v":""},{"$f":"IF(ISERROR(Dados!N573),\"-\",Dados!N573)","v":""},{"$f":"IF(ISERROR(Dados!O573),\"-\",Dados!O573)","v":""},{"$f":"IF(ISERROR(Dados!P573),\"-\",Dados!P573)","v":""},{"$f":"IF(ISERROR(Dados!Q573),\"-\",Dados!Q573)","v":""},{"$f":"IF(ISERROR(Dados!R573),\"-\",Dados!R573)","v":""},{"$f":"IF(ISERROR(Dados!S573),\"-\",Dados!S573)","v":""},{"$f":"IF(ISERROR(Dados!T573),\"-\",Dados!T573)","v":""},{"$f":"IF(ISERROR(Dados!U573),\"-\",Dados!U573)","v":""},{"$f":"IF(ISERROR(Dados!V573),\"-\",Dados!V573)","v":""},{"$f":"IF(ISERROR(Dados!W573),\"-\",Dados!W573)","v":""},{"$f":"IF(ISERROR(Dados!X573),\"-\",Dados!X573)","v":""},{"$f":"IF(ISERROR(Dados!Y573),\"-\",Dados!Y573)","v":""},{"$f":"IF(ISERROR(Dados!Z573),\"-\",Dados!Z573)","v":""},{"$f":"IF(ISERROR(Dados!AA573),\"-\",Dados!AA573)","v":""},{"$f":"IF(ISERROR(Dados!AB573),\"-\",Dados!AB573)","v":""},{"$f":"IF(ISERROR(Dados!AC573),\"-\",Dados!AC573)","v":""},{"$f":"IF(ISERROR(Dados!AD573),\"-\",Dados!AD573)","v":""},{"$f":"IF(ISERROR(Dados!AE573),\"-\",Dados!AE573)","v":""},{"$f":"IF(ISERROR(Dados!AF573),\"-\",Dados!AF573)","v":""},{"$f":"IF(ISERROR(Dados!AG573),\"-\",Dados!AG573)","v":""}]
[{"$f":"IF(ISERROR(Dados!A574),\"-\",Dados!A574)","v":""},{"$f":"IF(ISERROR(Dados!B574),\"-\",Dados!B574)","v":""},{"$f":"IF(ISERROR(Dados!C574),\"-\",Dados!C574)","v":""},{"$f":"IF(ISERROR(Dados!D574),\"-\",Dados!D574)","v":""},{"$f":"IF(ISERROR(Dados!E574),\"-\",Dados!E574)","v":""},{"$f":"IF(ISERROR(Dados!F574),\"-\",Dados!F574)","v":""},{"$f":"IF(ISERROR(Dados!G574),\"-\",Dados!G574)","v":""},{"$f":"IF(ISERROR(Dados!H574),\"-\",Dados!H574)","v":""},{"$f":"IF(ISERROR(Dados!I574),\"-\",Dados!I574)","v":""},{"$f":"IF(ISERROR(Dados!J574),\"-\",Dados!J574)","v":""},{"$f":"IF(ISERROR(Dados!K574),\"-\",Dados!K574)","v":""},{"$f":"IF(ISERROR(Dados!L574),\"-\",Dados!L574)","v":""},{"$f":"IF(ISERROR(Dados!M574),\"-\",Dados!M574)","v":""},{"$f":"IF(ISERROR(Dados!N574),\"-\",Dados!N574)","v":""},{"$f":"IF(ISERROR(Dados!O574),\"-\",Dados!O574)","v":""},{"$f":"IF(ISERROR(Dados!P574),\"-\",Dados!P574)","v":""},{"$f":"IF(ISERROR(Dados!Q574),\"-\",Dados!Q574)","v":""},{"$f":"IF(ISERROR(Dados!R574),\"-\",Dados!R574)","v":""},{"$f":"IF(ISERROR(Dados!S574),\"-\",Dados!S574)","v":""},{"$f":"IF(ISERROR(Dados!T574),\"-\",Dados!T574)","v":""},{"$f":"IF(ISERROR(Dados!U574),\"-\",Dados!U574)","v":""},{"$f":"IF(ISERROR(Dados!V574),\"-\",Dados!V574)","v":""},{"$f":"IF(ISERROR(Dados!W574),\"-\",Dados!W574)","v":""},{"$f":"IF(ISERROR(Dados!X574),\"-\",Dados!X574)","v":""},{"$f":"IF(ISERROR(Dados!Y574),\"-\",Dados!Y574)","v":""},{"$f":"IF(ISERROR(Dados!Z574),\"-\",Dados!Z574)","v":""},{"$f":"IF(ISERROR(Dados!AA574),\"-\",Dados!AA574)","v":""},{"$f":"IF(ISERROR(Dados!AB574),\"-\",Dados!AB574)","v":""},{"$f":"IF(ISERROR(Dados!AC574),\"-\",Dados!AC574)","v":""},{"$f":"IF(ISERROR(Dados!AD574),\"-\",Dados!AD574)","v":""},{"$f":"IF(ISERROR(Dados!AE574),\"-\",Dados!AE574)","v":""},{"$f":"IF(ISERROR(Dados!AF574),\"-\",Dados!AF574)","v":""},{"$f":"IF(ISERROR(Dados!AG574),\"-\",Dados!AG574)","v":""}]
[{"$f":"IF(ISERROR(Dados!A575),\"-\",Dados!A575)","v":""},{"$f":"IF(ISERROR(Dados!B575),\"-\",Dados!B575)","v":""},{"$f":"IF(ISERROR(Dados!C575),\"-\",Dados!C575)","v":""},{"$f":"IF(ISERROR(Dados!D575),\"-\",Dados!D575)","v":""},{"$f":"IF(ISERROR(Dados!E575),\"-\",Dados!E575)","v":""},{"$f":"IF(ISERROR(Dados!F575),\"-\",Dados!F575)","v":""},{"$f":"IF(ISERROR(Dados!G575),\"-\",Dados!G575)","v":""},{"$f":"IF(ISERROR(Dados!H575),\"-\",Dados!H575)","v":""},{"$f":"IF(ISERROR(Dados!I575),\"-\",Dados!I575)","v":""},{"$f":"IF(ISERROR(Dados!J575),\"-\",Dados!J575)","v":""},{"$f":"IF(ISERROR(Dados!K575),\"-\",Dados!K575)","v":""},{"$f":"IF(ISERROR(Dados!L575),\"-\",Dados!L575)","v":""},{"$f":"IF(ISERROR(Dados!M575),\"-\",Dados!M575)","v":""},{"$f":"IF(ISERROR(Dados!N575),\"-\",Dados!N575)","v":""},{"$f":"IF(ISERROR(Dados!O575),\"-\",Dados!O575)","v":""},{"$f":"IF(ISERROR(Dados!P575),\"-\",Dados!P575)","v":""},{"$f":"IF(ISERROR(Dados!Q575),\"-\",Dados!Q575)","v":""},{"$f":"IF(ISERROR(Dados!R575),\"-\",Dados!R575)","v":""},{"$f":"IF(ISERROR(Dados!S575),\"-\",Dados!S575)","v":""},{"$f":"IF(ISERROR(Dados!T575),\"-\",Dados!T575)","v":""},{"$f":"IF(ISERROR(Dados!U575),\"-\",Dados!U575)","v":""},{"$f":"IF(ISERROR(Dados!V575),\"-\",Dados!V575)","v":""},{"$f":"IF(ISERROR(Dados!W575),\"-\",Dados!W575)","v":""},{"$f":"IF(ISERROR(Dados!X575),\"-\",Dados!X575)","v":""},{"$f":"IF(ISERROR(Dados!Y575),\"-\",Dados!Y575)","v":""},{"$f":"IF(ISERROR(Dados!Z575),\"-\",Dados!Z575)","v":""},{"$f":"IF(ISERROR(Dados!AA575),\"-\",Dados!AA575)","v":""},{"$f":"IF(ISERROR(Dados!AB575),\"-\",Dados!AB575)","v":""},{"$f":"IF(ISERROR(Dados!AC575),\"-\",Dados!AC575)","v":""},{"$f":"IF(ISERROR(Dados!AD575),\"-\",Dados!AD575)","v":""},{"$f":"IF(ISERROR(Dados!AE575),\"-\",Dados!AE575)","v":""},{"$f":"IF(ISERROR(Dados!AF575),\"-\",Dados!AF575)","v":""},{"$f":"IF(ISERROR(Dados!AG575),\"-\",Dados!AG575)","v":""}]
[{"$f":"IF(ISERROR(Dados!A576),\"-\",Dados!A576)","v":""},{"$f":"IF(ISERROR(Dados!B576),\"-\",Dados!B576)","v":""},{"$f":"IF(ISERROR(Dados!C576),\"-\",Dados!C576)","v":""},{"$f":"IF(ISERROR(Dados!D576),\"-\",Dados!D576)","v":""},{"$f":"IF(ISERROR(Dados!E576),\"-\",Dados!E576)","v":""},{"$f":"IF(ISERROR(Dados!F576),\"-\",Dados!F576)","v":""},{"$f":"IF(ISERROR(Dados!G576),\"-\",Dados!G576)","v":""},{"$f":"IF(ISERROR(Dados!H576),\"-\",Dados!H576)","v":""},{"$f":"IF(ISERROR(Dados!I576),\"-\",Dados!I576)","v":""},{"$f":"IF(ISERROR(Dados!J576),\"-\",Dados!J576)","v":""},{"$f":"IF(ISERROR(Dados!K576),\"-\",Dados!K576)","v":""},{"$f":"IF(ISERROR(Dados!L576),\"-\",Dados!L576)","v":""},{"$f":"IF(ISERROR(Dados!M576),\"-\",Dados!M576)","v":""},{"$f":"IF(ISERROR(Dados!N576),\"-\",Dados!N576)","v":""},{"$f":"IF(ISERROR(Dados!O576),\"-\",Dados!O576)","v":""},{"$f":"IF(ISERROR(Dados!P576),\"-\",Dados!P576)","v":""},{"$f":"IF(ISERROR(Dados!Q576),\"-\",Dados!Q576)","v":""},{"$f":"IF(ISERROR(Dados!R576),\"-\",Dados!R576)","v":""},{"$f":"IF(ISERROR(Dados!S576),\"-\",Dados!S576)","v":""},{"$f":"IF(ISERROR(Dados!T576),\"-\",Dados!T576)","v":""},{"$f":"IF(ISERROR(Dados!U576),\"-\",Dados!U576)","v":""},{"$f":"IF(ISERROR(Dados!V576),\"-\",Dados!V576)","v":""},{"$f":"IF(ISERROR(Dados!W576),\"-\",Dados!W576)","v":""},{"$f":"IF(ISERROR(Dados!X576),\"-\",Dados!X576)","v":""},{"$f":"IF(ISERROR(Dados!Y576),\"-\",Dados!Y576)","v":""},{"$f":"IF(ISERROR(Dados!Z576),\"-\",Dados!Z576)","v":""},{"$f":"IF(ISERROR(Dados!AA576),\"-\",Dados!AA576)","v":""},{"$f":"IF(ISERROR(Dados!AB576),\"-\",Dados!AB576)","v":""},{"$f":"IF(ISERROR(Dados!AC576),\"-\",Dados!AC576)","v":""},{"$f":"IF(ISERROR(Dados!AD576),\"-\",Dados!AD576)","v":""},{"$f":"IF(ISERROR(Dados!AE576),\"-\",Dados!AE576)","v":""},{"$f":"IF(ISERROR(Dados!AF576),\"-\",Dados!AF576)","v":""},{"$f":"IF(ISERROR(Dados!AG576),\"-\",Dados!AG576)","v":""}]
[{"$f":"IF(ISERROR(Dados!A577),\"-\",Dados!A577)","v":""},{"$f":"IF(ISERROR(Dados!B577),\"-\",Dados!B577)","v":""},{"$f":"IF(ISERROR(Dados!C577),\"-\",Dados!C577)","v":""},{"$f":"IF(ISERROR(Dados!D577),\"-\",Dados!D577)","v":""},{"$f":"IF(ISERROR(Dados!E577),\"-\",Dados!E577)","v":""},{"$f":"IF(ISERROR(Dados!F577),\"-\",Dados!F577)","v":""},{"$f":"IF(ISERROR(Dados!G577),\"-\",Dados!G577)","v":""},{"$f":"IF(ISERROR(Dados!H577),\"-\",Dados!H577)","v":""},{"$f":"IF(ISERROR(Dados!I577),\"-\",Dados!I577)","v":""},{"$f":"IF(ISERROR(Dados!J577),\"-\",Dados!J577)","v":""},{"$f":"IF(ISERROR(Dados!K577),\"-\",Dados!K577)","v":""},{"$f":"IF(ISERROR(Dados!L577),\"-\",Dados!L577)","v":""},{"$f":"IF(ISERROR(Dados!M577),\"-\",Dados!M577)","v":""},{"$f":"IF(ISERROR(Dados!N577),\"-\",Dados!N577)","v":""},{"$f":"IF(ISERROR(Dados!O577),\"-\",Dados!O577)","v":""},{"$f":"IF(ISERROR(Dados!P577),\"-\",Dados!P577)","v":""},{"$f":"IF(ISERROR(Dados!Q577),\"-\",Dados!Q577)","v":""},{"$f":"IF(ISERROR(Dados!R577),\"-\",Dados!R577)","v":""},{"$f":"IF(ISERROR(Dados!S577),\"-\",Dados!S577)","v":""},{"$f":"IF(ISERROR(Dados!T577),\"-\",Dados!T577)","v":""},{"$f":"IF(ISERROR(Dados!U577),\"-\",Dados!U577)","v":""},{"$f":"IF(ISERROR(Dados!V577),\"-\",Dados!V577)","v":""},{"$f":"IF(ISERROR(Dados!W577),\"-\",Dados!W577)","v":""},{"$f":"IF(ISERROR(Dados!X577),\"-\",Dados!X577)","v":""},{"$f":"IF(ISERROR(Dados!Y577),\"-\",Dados!Y577)","v":""},{"$f":"IF(ISERROR(Dados!Z577),\"-\",Dados!Z577)","v":""},{"$f":"IF(ISERROR(Dados!AA577),\"-\",Dados!AA577)","v":""},{"$f":"IF(ISERROR(Dados!AB577),\"-\",Dados!AB577)","v":""},{"$f":"IF(ISERROR(Dados!AC577),\"-\",Dados!AC577)","v":""},{"$f":"IF(ISERROR(Dados!AD577),\"-\",Dados!AD577)","v":""},{"$f":"IF(ISERROR(Dados!AE577),\"-\",Dados!AE577)","v":""},{"$f":"IF(ISERROR(Dados!AF577),\"-\",Dados!AF577)","v":""},{"$f":"IF(ISERROR(Dados!AG577),\"-\",Dados!AG577)","v":""}]
[{"$f":"IF(ISERROR(Dados!A578),\"-\",Dados!A578)","v":""},{"$f":"IF(ISERROR(Dados!B578),\"-\",Dados!B578)","v":""},{"$f":"IF(ISERROR(Dados!C578),\"-\",Dados!C578)","v":""},{"$f":"IF(ISERROR(Dados!D578),\"-\",Dados!D578)","v":""},{"$f":"IF(ISERROR(Dados!E578),\"-\",Dados!E578)","v":""},{"$f":"IF(ISERROR(Dados!F578),\"-\",Dados!F578)","v":""},{"$f":"IF(ISERROR(Dados!G578),\"-\",Dados!G578)","v":""},{"$f":"IF(ISERROR(Dados!H578),\"-\",Dados!H578)","v":""},{"$f":"IF(ISERROR(Dados!I578),\"-\",Dados!I578)","v":""},{"$f":"IF(ISERROR(Dados!J578),\"-\",Dados!J578)","v":""},{"$f":"IF(ISERROR(Dados!K578),\"-\",Dados!K578)","v":""},{"$f":"IF(ISERROR(Dados!L578),\"-\",Dados!L578)","v":""},{"$f":"IF(ISERROR(Dados!M578),\"-\",Dados!M578)","v":""},{"$f":"IF(ISERROR(Dados!N578),\"-\",Dados!N578)","v":""},{"$f":"IF(ISERROR(Dados!O578),\"-\",Dados!O578)","v":""},{"$f":"IF(ISERROR(Dados!P578),\"-\",Dados!P578)","v":""},{"$f":"IF(ISERROR(Dados!Q578),\"-\",Dados!Q578)","v":""},{"$f":"IF(ISERROR(Dados!R578),\"-\",Dados!R578)","v":""},{"$f":"IF(ISERROR(Dados!S578),\"-\",Dados!S578)","v":""},{"$f":"IF(ISERROR(Dados!T578),\"-\",Dados!T578)","v":""},{"$f":"IF(ISERROR(Dados!U578),\"-\",Dados!U578)","v":""},{"$f":"IF(ISERROR(Dados!V578),\"-\",Dados!V578)","v":""},{"$f":"IF(ISERROR(Dados!W578),\"-\",Dados!W578)","v":""},{"$f":"IF(ISERROR(Dados!X578),\"-\",Dados!X578)","v":""},{"$f":"IF(ISERROR(Dados!Y578),\"-\",Dados!Y578)","v":""},{"$f":"IF(ISERROR(Dados!Z578),\"-\",Dados!Z578)","v":""},{"$f":"IF(ISERROR(Dados!AA578),\"-\",Dados!AA578)","v":""},{"$f":"IF(ISERROR(Dados!AB578),\"-\",Dados!AB578)","v":""},{"$f":"IF(ISERROR(Dados!AC578),\"-\",Dados!AC578)","v":""},{"$f":"IF(ISERROR(Dados!AD578),\"-\",Dados!AD578)","v":""},{"$f":"IF(ISERROR(Dados!AE578),\"-\",Dados!AE578)","v":""},{"$f":"IF(ISERROR(Dados!AF578),\"-\",Dados!AF578)","v":""},{"$f":"IF(ISERROR(Dados!AG578),\"-\",Dados!AG578)","v":""}]
[{"$f":"IF(ISERROR(Dados!A579),\"-\",Dados!A579)","v":""},{"$f":"IF(ISERROR(Dados!B579),\"-\",Dados!B579)","v":""},{"$f":"IF(ISERROR(Dados!C579),\"-\",Dados!C579)","v":""},{"$f":"IF(ISERROR(Dados!D579),\"-\",Dados!D579)","v":""},{"$f":"IF(ISERROR(Dados!E579),\"-\",Dados!E579)","v":""},{"$f":"IF(ISERROR(Dados!F579),\"-\",Dados!F579)","v":""},{"$f":"IF(ISERROR(Dados!G579),\"-\",Dados!G579)","v":""},{"$f":"IF(ISERROR(Dados!H579),\"-\",Dados!H579)","v":""},{"$f":"IF(ISERROR(Dados!I579),\"-\",Dados!I579)","v":""},{"$f":"IF(ISERROR(Dados!J579),\"-\",Dados!J579)","v":""},{"$f":"IF(ISERROR(Dados!K579),\"-\",Dados!K579)","v":""},{"$f":"IF(ISERROR(Dados!L579),\"-\",Dados!L579)","v":""},{"$f":"IF(ISERROR(Dados!M579),\"-\",Dados!M579)","v":""},{"$f":"IF(ISERROR(Dados!N579),\"-\",Dados!N579)","v":""},{"$f":"IF(ISERROR(Dados!O579),\"-\",Dados!O579)","v":""},{"$f":"IF(ISERROR(Dados!P579),\"-\",Dados!P579)","v":""},{"$f":"IF(ISERROR(Dados!Q579),\"-\",Dados!Q579)","v":""},{"$f":"IF(ISERROR(Dados!R579),\"-\",Dados!R579)","v":""},{"$f":"IF(ISERROR(Dados!S579),\"-\",Dados!S579)","v":""},{"$f":"IF(ISERROR(Dados!T579),\"-\",Dados!T579)","v":""},{"$f":"IF(ISERROR(Dados!U579),\"-\",Dados!U579)","v":""},{"$f":"IF(ISERROR(Dados!V579),\"-\",Dados!V579)","v":""},{"$f":"IF(ISERROR(Dados!W579),\"-\",Dados!W579)","v":""},{"$f":"IF(ISERROR(Dados!X579),\"-\",Dados!X579)","v":""},{"$f":"IF(ISERROR(Dados!Y579),\"-\",Dados!Y579)","v":""},{"$f":"IF(ISERROR(Dados!Z579),\"-\",Dados!Z579)","v":""},{"$f":"IF(ISERROR(Dados!AA579),\"-\",Dados!AA579)","v":""},{"$f":"IF(ISERROR(Dados!AB579),\"-\",Dados!AB579)","v":""},{"$f":"IF(ISERROR(Dados!AC579),\"-\",Dados!AC579)","v":""},{"$f":"IF(ISERROR(Dados!AD579),\"-\",Dados!AD579)","v":""},{"$f":"IF(ISERROR(Dados!AE579),\"-\",Dados!AE579)","v":""},{"$f":"IF(ISERROR(Dados!AF579),\"-\",Dados!AF579)","v":""},{"$f":"IF(ISERROR(Dados!AG579),\"-\",Dados!AG579)","v":""}]
[{"$f":"IF(ISERROR(Dados!A580),\"-\",Dados!A580)","v":""},{"$f":"IF(ISERROR(Dados!B580),\"-\",Dados!B580)","v":""},{"$f":"IF(ISERROR(Dados!C580),\"-\",Dados!C580)","v":""},{"$f":"IF(ISERROR(Dados!D580),\"-\",Dados!D580)","v":""},{"$f":"IF(ISERROR(Dados!E580),\"-\",Dados!E580)","v":""},{"$f":"IF(ISERROR(Dados!F580),\"-\",Dados!F580)","v":""},{"$f":"IF(ISERROR(Dados!G580),\"-\",Dados!G580)","v":""},{"$f":"IF(ISERROR(Dados!H580),\"-\",Dados!H580)","v":""},{"$f":"IF(ISERROR(Dados!I580),\"-\",Dados!I580)","v":""},{"$f":"IF(ISERROR(Dados!J580),\"-\",Dados!J580)","v":""},{"$f":"IF(ISERROR(Dados!K580),\"-\",Dados!K580)","v":""},{"$f":"IF(ISERROR(Dados!L580),\"-\",Dados!L580)","v":""},{"$f":"IF(ISERROR(Dados!M580),\"-\",Dados!M580)","v":""},{"$f":"IF(ISERROR(Dados!N580),\"-\",Dados!N580)","v":""},{"$f":"IF(ISERROR(Dados!O580),\"-\",Dados!O580)","v":""},{"$f":"IF(ISERROR(Dados!P580),\"-\",Dados!P580)","v":""},{"$f":"IF(ISERROR(Dados!Q580),\"-\",Dados!Q580)","v":""},{"$f":"IF(ISERROR(Dados!R580),\"-\",Dados!R580)","v":""},{"$f":"IF(ISERROR(Dados!S580),\"-\",Dados!S580)","v":""},{"$f":"IF(ISERROR(Dados!T580),\"-\",Dados!T580)","v":""},{"$f":"IF(ISERROR(Dados!U580),\"-\",Dados!U580)","v":""},{"$f":"IF(ISERROR(Dados!V580),\"-\",Dados!V580)","v":""},{"$f":"IF(ISERROR(Dados!W580),\"-\",Dados!W580)","v":""},{"$f":"IF(ISERROR(Dados!X580),\"-\",Dados!X580)","v":""},{"$f":"IF(ISERROR(Dados!Y580),\"-\",Dados!Y580)","v":""},{"$f":"IF(ISERROR(Dados!Z580),\"-\",Dados!Z580)","v":""},{"$f":"IF(ISERROR(Dados!AA580),\"-\",Dados!AA580)","v":""},{"$f":"IF(ISERROR(Dados!AB580),\"-\",Dados!AB580)","v":""},{"$f":"IF(ISERROR(Dados!AC580),\"-\",Dados!AC580)","v":""},{"$f":"IF(ISERROR(Dados!AD580),\"-\",Dados!AD580)","v":""},{"$f":"IF(ISERROR(Dados!AE580),\"-\",Dados!AE580)","v":""},{"$f":"IF(ISERROR(Dados!AF580),\"-\",Dados!AF580)","v":""},{"$f":"IF(ISERROR(Dados!AG580),\"-\",Dados!AG580)","v":""}]
[{"$f":"IF(ISERROR(Dados!A581),\"-\",Dados!A581)","v":""},{"$f":"IF(ISERROR(Dados!B581),\"-\",Dados!B581)","v":""},{"$f":"IF(ISERROR(Dados!C581),\"-\",Dados!C581)","v":""},{"$f":"IF(ISERROR(Dados!D581),\"-\",Dados!D581)","v":""},{"$f":"IF(ISERROR(Dados!E581),\"-\",Dados!E581)","v":""},{"$f":"IF(ISERROR(Dados!F581),\"-\",Dados!F581)","v":""},{"$f":"IF(ISERROR(Dados!G581),\"-\",Dados!G581)","v":""},{"$f":"IF(ISERROR(Dados!H581),\"-\",Dados!H581)","v":""},{"$f":"IF(ISERROR(Dados!I581),\"-\",Dados!I581)","v":""},{"$f":"IF(ISERROR(Dados!J581),\"-\",Dados!J581)","v":""},{"$f":"IF(ISERROR(Dados!K581),\"-\",Dados!K581)","v":""},{"$f":"IF(ISERROR(Dados!L581),\"-\",Dados!L581)","v":""},{"$f":"IF(ISERROR(Dados!M581),\"-\",Dados!M581)","v":""},{"$f":"IF(ISERROR(Dados!N581),\"-\",Dados!N581)","v":""},{"$f":"IF(ISERROR(Dados!O581),\"-\",Dados!O581)","v":""},{"$f":"IF(ISERROR(Dados!P581),\"-\",Dados!P581)","v":""},{"$f":"IF(ISERROR(Dados!Q581),\"-\",Dados!Q581)","v":""},{"$f":"IF(ISERROR(Dados!R581),\"-\",Dados!R581)","v":""},{"$f":"IF(ISERROR(Dados!S581),\"-\",Dados!S581)","v":""},{"$f":"IF(ISERROR(Dados!T581),\"-\",Dados!T581)","v":""},{"$f":"IF(ISERROR(Dados!U581),\"-\",Dados!U581)","v":""},{"$f":"IF(ISERROR(Dados!V581),\"-\",Dados!V581)","v":""},{"$f":"IF(ISERROR(Dados!W581),\"-\",Dados!W581)","v":""},{"$f":"IF(ISERROR(Dados!X581),\"-\",Dados!X581)","v":""},{"$f":"IF(ISERROR(Dados!Y581),\"-\",Dados!Y581)","v":""},{"$f":"IF(ISERROR(Dados!Z581),\"-\",Dados!Z581)","v":""},{"$f":"IF(ISERROR(Dados!AA581),\"-\",Dados!AA581)","v":""},{"$f":"IF(ISERROR(Dados!AB581),\"-\",Dados!AB581)","v":""},{"$f":"IF(ISERROR(Dados!AC581),\"-\",Dados!AC581)","v":""},{"$f":"IF(ISERROR(Dados!AD581),\"-\",Dados!AD581)","v":""},{"$f":"IF(ISERROR(Dados!AE581),\"-\",Dados!AE581)","v":""},{"$f":"IF(ISERROR(Dados!AF581),\"-\",Dados!AF581)","v":""},{"$f":"IF(ISERROR(Dados!AG581),\"-\",Dados!AG581)","v":""}]
[{"$f":"IF(ISERROR(Dados!A582),\"-\",Dados!A582)","v":""},{"$f":"IF(ISERROR(Dados!B582),\"-\",Dados!B582)","v":""},{"$f":"IF(ISERROR(Dados!C582),\"-\",Dados!C582)","v":""},{"$f":"IF(ISERROR(Dados!D582),\"-\",Dados!D582)","v":""},{"$f":"IF(ISERROR(Dados!E582),\"-\",Dados!E582)","v":""},{"$f":"IF(ISERROR(Dados!F582),\"-\",Dados!F582)","v":""},{"$f":"IF(ISERROR(Dados!G582),\"-\",Dados!G582)","v":""},{"$f":"IF(ISERROR(Dados!H582),\"-\",Dados!H582)","v":""},{"$f":"IF(ISERROR(Dados!I582),\"-\",Dados!I582)","v":""},{"$f":"IF(ISERROR(Dados!J582),\"-\",Dados!J582)","v":""},{"$f":"IF(ISERROR(Dados!K582),\"-\",Dados!K582)","v":""},{"$f":"IF(ISERROR(Dados!L582),\"-\",Dados!L582)","v":""},{"$f":"IF(ISERROR(Dados!M582),\"-\",Dados!M582)","v":""},{"$f":"IF(ISERROR(Dados!N582),\"-\",Dados!N582)","v":""},{"$f":"IF(ISERROR(Dados!O582),\"-\",Dados!O582)","v":""},{"$f":"IF(ISERROR(Dados!P582),\"-\",Dados!P582)","v":""},{"$f":"IF(ISERROR(Dados!Q582),\"-\",Dados!Q582)","v":""},{"$f":"IF(ISERROR(Dados!R582),\"-\",Dados!R582)","v":""},{"$f":"IF(ISERROR(Dados!S582),\"-\",Dados!S582)","v":""},{"$f":"IF(ISERROR(Dados!T582),\"-\",Dados!T582)","v":""},{"$f":"IF(ISERROR(Dados!U582),\"-\",Dados!U582)","v":""},{"$f":"IF(ISERROR(Dados!V582),\"-\",Dados!V582)","v":""},{"$f":"IF(ISERROR(Dados!W582),\"-\",Dados!W582)","v":""},{"$f":"IF(ISERROR(Dados!X582),\"-\",Dados!X582)","v":""},{"$f":"IF(ISERROR(Dados!Y582),\"-\",Dados!Y582)","v":""},{"$f":"IF(ISERROR(Dados!Z582),\"-\",Dados!Z582)","v":""},{"$f":"IF(ISERROR(Dados!AA582),\"-\",Dados!AA582)","v":""},{"$f":"IF(ISERROR(Dados!AB582),\"-\",Dados!AB582)","v":""},{"$f":"IF(ISERROR(Dados!AC582),\"-\",Dados!AC582)","v":""},{"$f":"IF(ISERROR(Dados!AD582),\"-\",Dados!AD582)","v":""},{"$f":"IF(ISERROR(Dados!AE582),\"-\",Dados!AE582)","v":""},{"$f":"IF(ISERROR(Dados!AF582),\"-\",Dados!AF582)","v":""},{"$f":"IF(ISERROR(Dados!AG582),\"-\",Dados!AG582)","v":""}]
[{"$f":"IF(ISERROR(Dados!A583),\"-\",Dados!A583)","v":""},{"$f":"IF(ISERROR(Dados!B583),\"-\",Dados!B583)","v":""},{"$f":"IF(ISERROR(Dados!C583),\"-\",Dados!C583)","v":""},{"$f":"IF(ISERROR(Dados!D583),\"-\",Dados!D583)","v":""},{"$f":"IF(ISERROR(Dados!E583),\"-\",Dados!E583)","v":""},{"$f":"IF(ISERROR(Dados!F583),\"-\",Dados!F583)","v":""},{"$f":"IF(ISERROR(Dados!G583),\"-\",Dados!G583)","v":""},{"$f":"IF(ISERROR(Dados!H583),\"-\",Dados!H583)","v":""},{"$f":"IF(ISERROR(Dados!I583),\"-\",Dados!I583)","v":""},{"$f":"IF(ISERROR(Dados!J583),\"-\",Dados!J583)","v":""},{"$f":"IF(ISERROR(Dados!K583),\"-\",Dados!K583)","v":""},{"$f":"IF(ISERROR(Dados!L583),\"-\",Dados!L583)","v":""},{"$f":"IF(ISERROR(Dados!M583),\"-\",Dados!M583)","v":""},{"$f":"IF(ISERROR(Dados!N583),\"-\",Dados!N583)","v":""},{"$f":"IF(ISERROR(Dados!O583),\"-\",Dados!O583)","v":""},{"$f":"IF(ISERROR(Dados!P583),\"-\",Dados!P583)","v":""},{"$f":"IF(ISERROR(Dados!Q583),\"-\",Dados!Q583)","v":""},{"$f":"IF(ISERROR(Dados!R583),\"-\",Dados!R583)","v":""},{"$f":"IF(ISERROR(Dados!S583),\"-\",Dados!S583)","v":""},{"$f":"IF(ISERROR(Dados!T583),\"-\",Dados!T583)","v":""},{"$f":"IF(ISERROR(Dados!U583),\"-\",Dados!U583)","v":""},{"$f":"IF(ISERROR(Dados!V583),\"-\",Dados!V583)","v":""},{"$f":"IF(ISERROR(Dados!W583),\"-\",Dados!W583)","v":""},{"$f":"IF(ISERROR(Dados!X583),\"-\",Dados!X583)","v":""},{"$f":"IF(ISERROR(Dados!Y583),\"-\",Dados!Y583)","v":""},{"$f":"IF(ISERROR(Dados!Z583),\"-\",Dados!Z583)","v":""},{"$f":"IF(ISERROR(Dados!AA583),\"-\",Dados!AA583)","v":""},{"$f":"IF(ISERROR(Dados!AB583),\"-\",Dados!AB583)","v":""},{"$f":"IF(ISERROR(Dados!AC583),\"-\",Dados!AC583)","v":""},{"$f":"IF(ISERROR(Dados!AD583),\"-\",Dados!AD583)","v":""},{"$f":"IF(ISERROR(Dados!AE583),\"-\",Dados!AE583)","v":""},{"$f":"IF(ISERROR(Dados!AF583),\"-\",Dados!AF583)","v":""},{"$f":"IF(ISERROR(Dados!AG583),\"-\",Dados!AG583)","v":""}]
[{"$f":"IF(ISERROR(Dados!A584),\"-\",Dados!A584)","v":""},{"$f":"IF(ISERROR(Dados!B584),\"-\",Dados!B584)","v":""},{"$f":"IF(ISERROR(Dados!C584),\"-\",Dados!C584)","v":""},{"$f":"IF(ISERROR(Dados!D584),\"-\",Dados!D584)","v":""},{"$f":"IF(ISERROR(Dados!E584),\"-\",Dados!E584)","v":""},{"$f":"IF(ISERROR(Dados!F584),\"-\",Dados!F584)","v":""},{"$f":"IF(ISERROR(Dados!G584),\"-\",Dados!G584)","v":""},{"$f":"IF(ISERROR(Dados!H584),\"-\",Dados!H584)","v":""},{"$f":"IF(ISERROR(Dados!I584),\"-\",Dados!I584)","v":""},{"$f":"IF(ISERROR(Dados!J584),\"-\",Dados!J584)","v":""},{"$f":"IF(ISERROR(Dados!K584),\"-\",Dados!K584)","v":""},{"$f":"IF(ISERROR(Dados!L584),\"-\",Dados!L584)","v":""},{"$f":"IF(ISERROR(Dados!M584),\"-\",Dados!M584)","v":""},{"$f":"IF(ISERROR(Dados!N584),\"-\",Dados!N584)","v":""},{"$f":"IF(ISERROR(Dados!O584),\"-\",Dados!O584)","v":""},{"$f":"IF(ISERROR(Dados!P584),\"-\",Dados!P584)","v":""},{"$f":"IF(ISERROR(Dados!Q584),\"-\",Dados!Q584)","v":""},{"$f":"IF(ISERROR(Dados!R584),\"-\",Dados!R584)","v":""},{"$f":"IF(ISERROR(Dados!S584),\"-\",Dados!S584)","v":""},{"$f":"IF(ISERROR(Dados!T584),\"-\",Dados!T584)","v":""},{"$f":"IF(ISERROR(Dados!U584),\"-\",Dados!U584)","v":""},{"$f":"IF(ISERROR(Dados!V584),\"-\",Dados!V584)","v":""},{"$f":"IF(ISERROR(Dados!W584),\"-\",Dados!W584)","v":""},{"$f":"IF(ISERROR(Dados!X584),\"-\",Dados!X584)","v":""},{"$f":"IF(ISERROR(Dados!Y584),\"-\",Dados!Y584)","v":""},{"$f":"IF(ISERROR(Dados!Z584),\"-\",Dados!Z584)","v":""},{"$f":"IF(ISERROR(Dados!AA584),\"-\",Dados!AA584)","v":""},{"$f":"IF(ISERROR(Dados!AB584),\"-\",Dados!AB584)","v":""},{"$f":"IF(ISERROR(Dados!AC584),\"-\",Dados!AC584)","v":""},{"$f":"IF(ISERROR(Dados!AD584),\"-\",Dados!AD584)","v":""},{"$f":"IF(ISERROR(Dados!AE584),\"-\",Dados!AE584)","v":""},{"$f":"IF(ISERROR(Dados!AF584),\"-\",Dados!AF584)","v":""},{"$f":"IF(ISERROR(Dados!AG584),\"-\",Dados!AG584)","v":""}]
[{"$f":"IF(ISERROR(Dados!A585),\"-\",Dados!A585)","v":""},{"$f":"IF(ISERROR(Dados!B585),\"-\",Dados!B585)","v":""},{"$f":"IF(ISERROR(Dados!C585),\"-\",Dados!C585)","v":""},{"$f":"IF(ISERROR(Dados!D585),\"-\",Dados!D585)","v":""},{"$f":"IF(ISERROR(Dados!E585),\"-\",Dados!E585)","v":""},{"$f":"IF(ISERROR(Dados!F585),\"-\",Dados!F585)","v":""},{"$f":"IF(ISERROR(Dados!G585),\"-\",Dados!G585)","v":""},{"$f":"IF(ISERROR(Dados!H585),\"-\",Dados!H585)","v":""},{"$f":"IF(ISERROR(Dados!I585),\"-\",Dados!I585)","v":""},{"$f":"IF(ISERROR(Dados!J585),\"-\",Dados!J585)","v":""},{"$f":"IF(ISERROR(Dados!K585),\"-\",Dados!K585)","v":""},{"$f":"IF(ISERROR(Dados!L585),\"-\",Dados!L585)","v":""},{"$f":"IF(ISERROR(Dados!M585),\"-\",Dados!M585)","v":""},{"$f":"IF(ISERROR(Dados!N585),\"-\",Dados!N585)","v":""},{"$f":"IF(ISERROR(Dados!O585),\"-\",Dados!O585)","v":""},{"$f":"IF(ISERROR(Dados!P585),\"-\",Dados!P585)","v":""},{"$f":"IF(ISERROR(Dados!Q585),\"-\",Dados!Q585)","v":""},{"$f":"IF(ISERROR(Dados!R585),\"-\",Dados!R585)","v":""},{"$f":"IF(ISERROR(Dados!S585),\"-\",Dados!S585)","v":""},{"$f":"IF(ISERROR(Dados!T585),\"-\",Dados!T585)","v":""},{"$f":"IF(ISERROR(Dados!U585),\"-\",Dados!U585)","v":""},{"$f":"IF(ISERROR(Dados!V585),\"-\",Dados!V585)","v":""},{"$f":"IF(ISERROR(Dados!W585),\"-\",Dados!W585)","v":""},{"$f":"IF(ISERROR(Dados!X585),\"-\",Dados!X585)","v":""},{"$f":"IF(ISERROR(Dados!Y585),\"-\",Dados!Y585)","v":""},{"$f":"IF(ISERROR(Dados!Z585),\"-\",Dados!Z585)","v":""},{"$f":"IF(ISERROR(Dados!AA585),\"-\",Dados!AA585)","v":""},{"$f":"IF(ISERROR(Dados!AB585),\"-\",Dados!AB585)","v":""},{"$f":"IF(ISERROR(Dados!AC585),\"-\",Dados!AC585)","v":""},{"$f":"IF(ISERROR(Dados!AD585),\"-\",Dados!AD585)","v":""},{"$f":"IF(ISERROR(Dados!AE585),\"-\",Dados!AE585)","v":""},{"$f":"IF(ISERROR(Dados!AF585),\"-\",Dados!AF585)","v":""},{"$f":"IF(ISERROR(Dados!AG585),\"-\",Dados!AG585)","v":""}]
[{"$f":"IF(ISERROR(Dados!A586),\"-\",Dados!A586)","v":""},{"$f":"IF(ISERROR(Dados!B586),\"-\",Dados!B586)","v":""},{"$f":"IF(ISERROR(Dados!C586),\"-\",Dados!C586)","v":""},{"$f":"IF(ISERROR(Dados!D586),\"-\",Dados!D586)","v":""},{"$f":"IF(ISERROR(Dados!E586),\"-\",Dados!E586)","v":""},{"$f":"IF(ISERROR(Dados!F586),\"-\",Dados!F586)","v":""},{"$f":"IF(ISERROR(Dados!G586),\"-\",Dados!G586)","v":""},{"$f":"IF(ISERROR(Dados!H586),\"-\",Dados!H586)","v":""},{"$f":"IF(ISERROR(Dados!I586),\"-\",Dados!I586)","v":""},{"$f":"IF(ISERROR(Dados!J586),\"-\",Dados!J586)","v":""},{"$f":"IF(ISERROR(Dados!K586),\"-\",Dados!K586)","v":""},{"$f":"IF(ISERROR(Dados!L586),\"-\",Dados!L586)","v":""},{"$f":"IF(ISERROR(Dados!M586),\"-\",Dados!M586)","v":""},{"$f":"IF(ISERROR(Dados!N586),\"-\",Dados!N586)","v":""},{"$f":"IF(ISERROR(Dados!O586),\"-\",Dados!O586)","v":""},{"$f":"IF(ISERROR(Dados!P586),\"-\",Dados!P586)","v":""},{"$f":"IF(ISERROR(Dados!Q586),\"-\",Dados!Q586)","v":""},{"$f":"IF(ISERROR(Dados!R586),\"-\",Dados!R586)","v":""},{"$f":"IF(ISERROR(Dados!S586),\"-\",Dados!S586)","v":""},{"$f":"IF(ISERROR(Dados!T586),\"-\",Dados!T586)","v":""},{"$f":"IF(ISERROR(Dados!U586),\"-\",Dados!U586)","v":""},{"$f":"IF(ISERROR(Dados!V586),\"-\",Dados!V586)","v":""},{"$f":"IF(ISERROR(Dados!W586),\"-\",Dados!W586)","v":""},{"$f":"IF(ISERROR(Dados!X586),\"-\",Dados!X586)","v":""},{"$f":"IF(ISERROR(Dados!Y586),\"-\",Dados!Y586)","v":""},{"$f":"IF(ISERROR(Dados!Z586),\"-\",Dados!Z586)","v":""},{"$f":"IF(ISERROR(Dados!AA586),\"-\",Dados!AA586)","v":""},{"$f":"IF(ISERROR(Dados!AB586),\"-\",Dados!AB586)","v":""},{"$f":"IF(ISERROR(Dados!AC586),\"-\",Dados!AC586)","v":""},{"$f":"IF(ISERROR(Dados!AD586),\"-\",Dados!AD586)","v":""},{"$f":"IF(ISERROR(Dados!AE586),\"-\",Dados!AE586)","v":""},{"$f":"IF(ISERROR(Dados!AF586),\"-\",Dados!AF586)","v":""},{"$f":"IF(ISERROR(Dados!AG586),\"-\",Dados!AG586)","v":""}]
[{"$f":"IF(ISERROR(Dados!A587),\"-\",Dados!A587)","v":""},{"$f":"IF(ISERROR(Dados!B587),\"-\",Dados!B587)","v":""},{"$f":"IF(ISERROR(Dados!C587),\"-\",Dados!C587)","v":""},{"$f":"IF(ISERROR(Dados!D587),\"-\",Dados!D587)","v":""},{"$f":"IF(ISERROR(Dados!E587),\"-\",Dados!E587)","v":""},{"$f":"IF(ISERROR(Dados!F587),\"-\",Dados!F587)","v":""},{"$f":"IF(ISERROR(Dados!G587),\"-\",Dados!G587)","v":""},{"$f":"IF(ISERROR(Dados!H587),\"-\",Dados!H587)","v":""},{"$f":"IF(ISERROR(Dados!I587),\"-\",Dados!I587)","v":""},{"$f":"IF(ISERROR(Dados!J587),\"-\",Dados!J587)","v":""},{"$f":"IF(ISERROR(Dados!K587),\"-\",Dados!K587)","v":""},{"$f":"IF(ISERROR(Dados!L587),\"-\",Dados!L587)","v":""},{"$f":"IF(ISERROR(Dados!M587),\"-\",Dados!M587)","v":""},{"$f":"IF(ISERROR(Dados!N587),\"-\",Dados!N587)","v":""},{"$f":"IF(ISERROR(Dados!O587),\"-\",Dados!O587)","v":""},{"$f":"IF(ISERROR(Dados!P587),\"-\",Dados!P587)","v":""},{"$f":"IF(ISERROR(Dados!Q587),\"-\",Dados!Q587)","v":""},{"$f":"IF(ISERROR(Dados!R587),\"-\",Dados!R587)","v":""},{"$f":"IF(ISERROR(Dados!S587),\"-\",Dados!S587)","v":""},{"$f":"IF(ISERROR(Dados!T587),\"-\",Dados!T587)","v":""},{"$f":"IF(ISERROR(Dados!U587),\"-\",Dados!U587)","v":""},{"$f":"IF(ISERROR(Dados!V587),\"-\",Dados!V587)","v":""},{"$f":"IF(ISERROR(Dados!W587),\"-\",Dados!W587)","v":""},{"$f":"IF(ISERROR(Dados!X587),\"-\",Dados!X587)","v":""},{"$f":"IF(ISERROR(Dados!Y587),\"-\",Dados!Y587)","v":""},{"$f":"IF(ISERROR(Dados!Z587),\"-\",Dados!Z587)","v":""},{"$f":"IF(ISERROR(Dados!AA587),\"-\",Dados!AA587)","v":""},{"$f":"IF(ISERROR(Dados!AB587),\"-\",Dados!AB587)","v":""},{"$f":"IF(ISERROR(Dados!AC587),\"-\",Dados!AC587)","v":""},{"$f":"IF(ISERROR(Dados!AD587),\"-\",Dados!AD587)","v":""},{"$f":"IF(ISERROR(Dados!AE587),\"-\",Dados!AE587)","v":""},{"$f":"IF(ISERROR(Dados!AF587),\"-\",Dados!AF587)","v":""},{"$f":"IF(ISERROR(Dados!AG587),\"-\",Dados!AG587)","v":""}]
[{"$f":"IF(ISERROR(Dados!A588),\"-\",Dados!A588)","v":""},{"$f":"IF(ISERROR(Dados!B588),\"-\",Dados!B588)","v":""},{"$f":"IF(ISERROR(Dados!C588),\"-\",Dados!C588)","v":""},{"$f":"IF(ISERROR(Dados!D588),\"-\",Dados!D588)","v":""},{"$f":"IF(ISERROR(Dados!E588),\"-\",Dados!E588)","v":""},{"$f":"IF(ISERROR(Dados!F588),\"-\",Dados!F588)","v":""},{"$f":"IF(ISERROR(Dados!G588),\"-\",Dados!G588)","v":""},{"$f":"IF(ISERROR(Dados!H588),\"-\",Dados!H588)","v":""},{"$f":"IF(ISERROR(Dados!I588),\"-\",Dados!I588)","v":""},{"$f":"IF(ISERROR(Dados!J588),\"-\",Dados!J588)","v":""},{"$f":"IF(ISERROR(Dados!K588),\"-\",Dados!K588)","v":""},{"$f":"IF(ISERROR(Dados!L588),\"-\",Dados!L588)","v":""},{"$f":"IF(ISERROR(Dados!M588),\"-\",Dados!M588)","v":""},{"$f":"IF(ISERROR(Dados!N588),\"-\",Dados!N588)","v":""},{"$f":"IF(ISERROR(Dados!O588),\"-\",Dados!O588)","v":""},{"$f":"IF(ISERROR(Dados!P588),\"-\",Dados!P588)","v":""},{"$f":"IF(ISERROR(Dados!Q588),\"-\",Dados!Q588)","v":""},{"$f":"IF(ISERROR(Dados!R588),\"-\",Dados!R588)","v":""},{"$f":"IF(ISERROR(Dados!S588),\"-\",Dados!S588)","v":""},{"$f":"IF(ISERROR(Dados!T588),\"-\",Dados!T588)","v":""},{"$f":"IF(ISERROR(Dados!U588),\"-\",Dados!U588)","v":""},{"$f":"IF(ISERROR(Dados!V588),\"-\",Dados!V588)","v":""},{"$f":"IF(ISERROR(Dados!W588),\"-\",Dados!W588)","v":""},{"$f":"IF(ISERROR(Dados!X588),\"-\",Dados!X588)","v":""},{"$f":"IF(ISERROR(Dados!Y588),\"-\",Dados!Y588)","v":""},{"$f":"IF(ISERROR(Dados!Z588),\"-\",Dados!Z588)","v":""},{"$f":"IF(ISERROR(Dados!AA588),\"-\",Dados!AA588)","v":""},{"$f":"IF(ISERROR(Dados!AB588),\"-\",Dados!AB588)","v":""},{"$f":"IF(ISERROR(Dados!AC588),\"-\",Dados!AC588)","v":""},{"$f":"IF(ISERROR(Dados!AD588),\"-\",Dados!AD588)","v":""},{"$f":"IF(ISERROR(Dados!AE588),\"-\",Dados!AE588)","v":""},{"$f":"IF(ISERROR(Dados!AF588),\"-\",Dados!AF588)","v":""},{"$f":"IF(ISERROR(Dados!AG588),\"-\",Dados!AG588)","v":""}]
[{"$f":"IF(ISERROR(Dados!A589),\"-\",Dados!A589)","v":""},{"$f":"IF(ISERROR(Dados!B589),\"-\",Dados!B589)","v":""},{"$f":"IF(ISERROR(Dados!C589),\"-\",Dados!C589)","v":""},{"$f":"IF(ISERROR(Dados!D589),\"-\",Dados!D589)","v":""},{"$f":"IF(ISERROR(Dados!E589),\"-\",Dados!E589)","v":""},{"$f":"IF(ISERROR(Dados!F589),\"-\",Dados!F589)","v":""},{"$f":"IF(ISERROR(Dados!G589),\"-\",Dados!G589)","v":""},{"$f":"IF(ISERROR(Dados!H589),\"-\",Dados!H589)","v":""},{"$f":"IF(ISERROR(Dados!I589),\"-\",Dados!I589)","v":""},{"$f":"IF(ISERROR(Dados!J589),\"-\",Dados!J589)","v":""},{"$f":"IF(ISERROR(Dados!K589),\"-\",Dados!K589)","v":""},{"$f":"IF(ISERROR(Dados!L589),\"-\",Dados!L589)","v":""},{"$f":"IF(ISERROR(Dados!M589),\"-\",Dados!M589)","v":""},{"$f":"IF(ISERROR(Dados!N589),\"-\",Dados!N589)","v":""},{"$f":"IF(ISERROR(Dados!O589),\"-\",Dados!O589)","v":""},{"$f":"IF(ISERROR(Dados!P589),\"-\",Dados!P589)","v":""},{"$f":"IF(ISERROR(Dados!Q589),\"-\",Dados!Q589)","v":""},{"$f":"IF(ISERROR(Dados!R589),\"-\",Dados!R589)","v":""},{"$f":"IF(ISERROR(Dados!S589),\"-\",Dados!S589)","v":""},{"$f":"IF(ISERROR(Dados!T589),\"-\",Dados!T589)","v":""},{"$f":"IF(ISERROR(Dados!U589),\"-\",Dados!U589)","v":""},{"$f":"IF(ISERROR(Dados!V589),\"-\",Dados!V589)","v":""},{"$f":"IF(ISERROR(Dados!W589),\"-\",Dados!W589)","v":""},{"$f":"IF(ISERROR(Dados!X589),\"-\",Dados!X589)","v":""},{"$f":"IF(ISERROR(Dados!Y589),\"-\",Dados!Y589)","v":""},{"$f":"IF(ISERROR(Dados!Z589),\"-\",Dados!Z589)","v":""},{"$f":"IF(ISERROR(Dados!AA589),\"-\",Dados!AA589)","v":""},{"$f":"IF(ISERROR(Dados!AB589),\"-\",Dados!AB589)","v":""},{"$f":"IF(ISERROR(Dados!AC589),\"-\",Dados!AC589)","v":""},{"$f":"IF(ISERROR(Dados!AD589),\"-\",Dados!AD589)","v":""},{"$f":"IF(ISERROR(Dados!AE589),\"-\",Dados!AE589)","v":""},{"$f":"IF(ISERROR(Dados!AF589),\"-\",Dados!AF589)","v":""},{"$f":"IF(ISERROR(Dados!AG589),\"-\",Dados!AG589)","v":""}]
[{"$f":"IF(ISERROR(Dados!A590),\"-\",Dados!A590)","v":""},{"$f":"IF(ISERROR(Dados!B590),\"-\",Dados!B590)","v":""},{"$f":"IF(ISERROR(Dados!C590),\"-\",Dados!C590)","v":""},{"$f":"IF(ISERROR(Dados!D590),\"-\",Dados!D590)","v":""},{"$f":"IF(ISERROR(Dados!E590),\"-\",Dados!E590)","v":""},{"$f":"IF(ISERROR(Dados!F590),\"-\",Dados!F590)","v":""},{"$f":"IF(ISERROR(Dados!G590),\"-\",Dados!G590)","v":""},{"$f":"IF(ISERROR(Dados!H590),\"-\",Dados!H590)","v":""},{"$f":"IF(ISERROR(Dados!I590),\"-\",Dados!I590)","v":""},{"$f":"IF(ISERROR(Dados!J590),\"-\",Dados!J590)","v":""},{"$f":"IF(ISERROR(Dados!K590),\"-\",Dados!K590)","v":""},{"$f":"IF(ISERROR(Dados!L590),\"-\",Dados!L590)","v":""},{"$f":"IF(ISERROR(Dados!M590),\"-\",Dados!M590)","v":""},{"$f":"IF(ISERROR(Dados!N590),\"-\",Dados!N590)","v":""},{"$f":"IF(ISERROR(Dados!O590),\"-\",Dados!O590)","v":""},{"$f":"IF(ISERROR(Dados!P590),\"-\",Dados!P590)","v":""},{"$f":"IF(ISERROR(Dados!Q590),\"-\",Dados!Q590)","v":""},{"$f":"IF(ISERROR(Dados!R590),\"-\",Dados!R590)","v":""},{"$f":"IF(ISERROR(Dados!S590),\"-\",Dados!S590)","v":""},{"$f":"IF(ISERROR(Dados!T590),\"-\",Dados!T590)","v":""},{"$f":"IF(ISERROR(Dados!U590),\"-\",Dados!U590)","v":""},{"$f":"IF(ISERROR(Dados!V590),\"-\",Dados!V590)","v":""},{"$f":"IF(ISERROR(Dados!W590),\"-\",Dados!W590)","v":""},{"$f":"IF(ISERROR(Dados!X590),\"-\",Dados!X590)","v":""},{"$f":"IF(ISERROR(Dados!Y590),\"-\",Dados!Y590)","v":""},{"$f":"IF(ISERROR(Dados!Z590),\"-\",Dados!Z590)","v":""},{"$f":"IF(ISERROR(Dados!AA590),\"-\",Dados!AA590)","v":""},{"$f":"IF(ISERROR(Dados!AB590),\"-\",Dados!AB590)","v":""},{"$f":"IF(ISERROR(Dados!AC590),\"-\",Dados!AC590)","v":""},{"$f":"IF(ISERROR(Dados!AD590),\"-\",Dados!AD590)","v":""},{"$f":"IF(ISERROR(Dados!AE590),\"-\",Dados!AE590)","v":""},{"$f":"IF(ISERROR(Dados!AF590),\"-\",Dados!AF590)","v":""},{"$f":"IF(ISERROR(Dados!AG590),\"-\",Dados!AG590)","v":""}]
[{"$f":"IF(ISERROR(Dados!A591),\"-\",Dados!A591)","v":""},{"$f":"IF(ISERROR(Dados!B591),\"-\",Dados!B591)","v":""},{"$f":"IF(ISERROR(Dados!C591),\"-\",Dados!C591)","v":""},{"$f":"IF(ISERROR(Dados!D591),\"-\",Dados!D591)","v":""},{"$f":"IF(ISERROR(Dados!E591),\"-\",Dados!E591)","v":""},{"$f":"IF(ISERROR(Dados!F591),\"-\",Dados!F591)","v":""},{"$f":"IF(ISERROR(Dados!G591),\"-\",Dados!G591)","v":""},{"$f":"IF(ISERROR(Dados!H591),\"-\",Dados!H591)","v":""},{"$f":"IF(ISERROR(Dados!I591),\"-\",Dados!I591)","v":""},{"$f":"IF(ISERROR(Dados!J591),\"-\",Dados!J591)","v":""},{"$f":"IF(ISERROR(Dados!K591),\"-\",Dados!K591)","v":""},{"$f":"IF(ISERROR(Dados!L591),\"-\",Dados!L591)","v":""},{"$f":"IF(ISERROR(Dados!M591),\"-\",Dados!M591)","v":""},{"$f":"IF(ISERROR(Dados!N591),\"-\",Dados!N591)","v":""},{"$f":"IF(ISERROR(Dados!O591),\"-\",Dados!O591)","v":""},{"$f":"IF(ISERROR(Dados!P591),\"-\",Dados!P591)","v":""},{"$f":"IF(ISERROR(Dados!Q591),\"-\",Dados!Q591)","v":""},{"$f":"IF(ISERROR(Dados!R591),\"-\",Dados!R591)","v":""},{"$f":"IF(ISERROR(Dados!S591),\"-\",Dados!S591)","v":""},{"$f":"IF(ISERROR(Dados!T591),\"-\",Dados!T591)","v":""},{"$f":"IF(ISERROR(Dados!U591),\"-\",Dados!U591)","v":""},{"$f":"IF(ISERROR(Dados!V591),\"-\",Dados!V591)","v":""},{"$f":"IF(ISERROR(Dados!W591),\"-\",Dados!W591)","v":""},{"$f":"IF(ISERROR(Dados!X591),\"-\",Dados!X591)","v":""},{"$f":"IF(ISERROR(Dados!Y591),\"-\",Dados!Y591)","v":""},{"$f":"IF(ISERROR(Dados!Z591),\"-\",Dados!Z591)","v":""},{"$f":"IF(ISERROR(Dados!AA591),\"-\",Dados!AA591)","v":""},{"$f":"IF(ISERROR(Dados!AB591),\"-\",Dados!AB591)","v":""},{"$f":"IF(ISERROR(Dados!AC591),\"-\",Dados!AC591)","v":""},{"$f":"IF(ISERROR(Dados!AD591),\"-\",Dados!AD591)","v":""},{"$f":"IF(ISERROR(Dados!AE591),\"-\",Dados!AE591)","v":""},{"$f":"IF(ISERROR(Dados!AF591),\"-\",Dados!AF591)","v":""},{"$f":"IF(ISERROR(Dados!AG591),\"-\",Dados!AG591)","v":""}]
[{"$f":"IF(ISERROR(Dados!A592),\"-\",Dados!A592)","v":""},{"$f":"IF(ISERROR(Dados!B592),\"-\",Dados!B592)","v":""},{"$f":"IF(ISERROR(Dados!C592),\"-\",Dados!C592)","v":""},{"$f":"IF(ISERROR(Dados!D592),\"-\",Dados!D592)","v":""},{"$f":"IF(ISERROR(Dados!E592),\"-\",Dados!E592)","v":""},{"$f":"IF(ISERROR(Dados!F592),\"-\",Dados!F592)","v":""},{"$f":"IF(ISERROR(Dados!G592),\"-\",Dados!G592)","v":""},{"$f":"IF(ISERROR(Dados!H592),\"-\",Dados!H592)","v":""},{"$f":"IF(ISERROR(Dados!I592),\"-\",Dados!I592)","v":""},{"$f":"IF(ISERROR(Dados!J592),\"-\",Dados!J592)","v":""},{"$f":"IF(ISERROR(Dados!K592),\"-\",Dados!K592)","v":""},{"$f":"IF(ISERROR(Dados!L592),\"-\",Dados!L592)","v":""},{"$f":"IF(ISERROR(Dados!M592),\"-\",Dados!M592)","v":""},{"$f":"IF(ISERROR(Dados!N592),\"-\",Dados!N592)","v":""},{"$f":"IF(ISERROR(Dados!O592),\"-\",Dados!O592)","v":""},{"$f":"IF(ISERROR(Dados!P592),\"-\",Dados!P592)","v":""},{"$f":"IF(ISERROR(Dados!Q592),\"-\",Dados!Q592)","v":""},{"$f":"IF(ISERROR(Dados!R592),\"-\",Dados!R592)","v":""},{"$f":"IF(ISERROR(Dados!S592),\"-\",Dados!S592)","v":""},{"$f":"IF(ISERROR(Dados!T592),\"-\",Dados!T592)","v":""},{"$f":"IF(ISERROR(Dados!U592),\"-\",Dados!U592)","v":""},{"$f":"IF(ISERROR(Dados!V592),\"-\",Dados!V592)","v":""},{"$f":"IF(ISERROR(Dados!W592),\"-\",Dados!W592)","v":""},{"$f":"IF(ISERROR(Dados!X592),\"-\",Dados!X592)","v":""},{"$f":"IF(ISERROR(Dados!Y592),\"-\",Dados!Y592)","v":""},{"$f":"IF(ISERROR(Dados!Z592),\"-\",Dados!Z592)","v":""},{"$f":"IF(ISERROR(Dados!AA592),\"-\",Dados!AA592)","v":""},{"$f":"IF(ISERROR(Dados!AB592),\"-\",Dados!AB592)","v":""},{"$f":"IF(ISERROR(Dados!AC592),\"-\",Dados!AC592)","v":""},{"$f":"IF(ISERROR(Dados!AD592),\"-\",Dados!AD592)","v":""},{"$f":"IF(ISERROR(Dados!AE592),\"-\",Dados!AE592)","v":""},{"$f":"IF(ISERROR(Dados!AF592),\"-\",Dados!AF592)","v":""},{"$f":"IF(ISERROR(Dados!AG592),\"-\",Dados!AG592)","v":""}]
[{"$f":"IF(ISERROR(Dados!A593),\"-\",Dados!A593)","v":""},{"$f":"IF(ISERROR(Dados!B593),\"-\",Dados!B593)","v":""},{"$f":"IF(ISERROR(Dados!C593),\"-\",Dados!C593)","v":""},{"$f":"IF(ISERROR(Dados!D593),\"-\",Dados!D593)","v":""},{"$f":"IF(ISERROR(Dados!E593),\"-\",Dados!E593)","v":""},{"$f":"IF(ISERROR(Dados!F593),\"-\",Dados!F593)","v":""},{"$f":"IF(ISERROR(Dados!G593),\"-\",Dados!G593)","v":""},{"$f":"IF(ISERROR(Dados!H593),\"-\",Dados!H593)","v":""},{"$f":"IF(ISERROR(Dados!I593),\"-\",Dados!I593)","v":""},{"$f":"IF(ISERROR(Dados!J593),\"-\",Dados!J593)","v":""},{"$f":"IF(ISERROR(Dados!K593),\"-\",Dados!K593)","v":""},{"$f":"IF(ISERROR(Dados!L593),\"-\",Dados!L593)","v":""},{"$f":"IF(ISERROR(Dados!M593),\"-\",Dados!M593)","v":""},{"$f":"IF(ISERROR(Dados!N593),\"-\",Dados!N593)","v":""},{"$f":"IF(ISERROR(Dados!O593),\"-\",Dados!O593)","v":""},{"$f":"IF(ISERROR(Dados!P593),\"-\",Dados!P593)","v":""},{"$f":"IF(ISERROR(Dados!Q593),\"-\",Dados!Q593)","v":""},{"$f":"IF(ISERROR(Dados!R593),\"-\",Dados!R593)","v":""},{"$f":"IF(ISERROR(Dados!S593),\"-\",Dados!S593)","v":""},{"$f":"IF(ISERROR(Dados!T593),\"-\",Dados!T593)","v":""},{"$f":"IF(ISERROR(Dados!U593),\"-\",Dados!U593)","v":""},{"$f":"IF(ISERROR(Dados!V593),\"-\",Dados!V593)","v":""},{"$f":"IF(ISERROR(Dados!W593),\"-\",Dados!W593)","v":""},{"$f":"IF(ISERROR(Dados!X593),\"-\",Dados!X593)","v":""},{"$f":"IF(ISERROR(Dados!Y593),\"-\",Dados!Y593)","v":""},{"$f":"IF(ISERROR(Dados!Z593),\"-\",Dados!Z593)","v":""},{"$f":"IF(ISERROR(Dados!AA593),\"-\",Dados!AA593)","v":""},{"$f":"IF(ISERROR(Dados!AB593),\"-\",Dados!AB593)","v":""},{"$f":"IF(ISERROR(Dados!AC593),\"-\",Dados!AC593)","v":""},{"$f":"IF(ISERROR(Dados!AD593),\"-\",Dados!AD593)","v":""},{"$f":"IF(ISERROR(Dados!AE593),\"-\",Dados!AE593)","v":""},{"$f":"IF(ISERROR(Dados!AF593),\"-\",Dados!AF593)","v":""},{"$f":"IF(ISERROR(Dados!AG593),\"-\",Dados!AG593)","v":""}]
[{"$f":"IF(ISERROR(Dados!A594),\"-\",Dados!A594)","v":""},{"$f":"IF(ISERROR(Dados!B594),\"-\",Dados!B594)","v":""},{"$f":"IF(ISERROR(Dados!C594),\"-\",Dados!C594)","v":""},{"$f":"IF(ISERROR(Dados!D594),\"-\",Dados!D594)","v":""},{"$f":"IF(ISERROR(Dados!E594),\"-\",Dados!E594)","v":""},{"$f":"IF(ISERROR(Dados!F594),\"-\",Dados!F594)","v":""},{"$f":"IF(ISERROR(Dados!G594),\"-\",Dados!G594)","v":""},{"$f":"IF(ISERROR(Dados!H594),\"-\",Dados!H594)","v":""},{"$f":"IF(ISERROR(Dados!I594),\"-\",Dados!I594)","v":""},{"$f":"IF(ISERROR(Dados!J594),\"-\",Dados!J594)","v":""},{"$f":"IF(ISERROR(Dados!K594),\"-\",Dados!K594)","v":""},{"$f":"IF(ISERROR(Dados!L594),\"-\",Dados!L594)","v":""},{"$f":"IF(ISERROR(Dados!M594),\"-\",Dados!M594)","v":""},{"$f":"IF(ISERROR(Dados!N594),\"-\",Dados!N594)","v":""},{"$f":"IF(ISERROR(Dados!O594),\"-\",Dados!O594)","v":""},{"$f":"IF(ISERROR(Dados!P594),\"-\",Dados!P594)","v":""},{"$f":"IF(ISERROR(Dados!Q594),\"-\",Dados!Q594)","v":""},{"$f":"IF(ISERROR(Dados!R594),\"-\",Dados!R594)","v":""},{"$f":"IF(ISERROR(Dados!S594),\"-\",Dados!S594)","v":""},{"$f":"IF(ISERROR(Dados!T594),\"-\",Dados!T594)","v":""},{"$f":"IF(ISERROR(Dados!U594),\"-\",Dados!U594)","v":""},{"$f":"IF(ISERROR(Dados!V594),\"-\",Dados!V594)","v":""},{"$f":"IF(ISERROR(Dados!W594),\"-\",Dados!W594)","v":""},{"$f":"IF(ISERROR(Dados!X594),\"-\",Dados!X594)","v":""},{"$f":"IF(ISERROR(Dados!Y594),\"-\",Dados!Y594)","v":""},{"$f":"IF(ISERROR(Dados!Z594),\"-\",Dados!Z594)","v":""},{"$f":"IF(ISERROR(Dados!AA594),\"-\",Dados!AA594)","v":""},{"$f":"IF(ISERROR(Dados!AB594),\"-\",Dados!AB594)","v":""},{"$f":"IF(ISERROR(Dados!AC594),\"-\",Dados!AC594)","v":""},{"$f":"IF(ISERROR(Dados!AD594),\"-\",Dados!AD594)","v":""},{"$f":"IF(ISERROR(Dados!AE594),\"-\",Dados!AE594)","v":""},{"$f":"IF(ISERROR(Dados!AF594),\"-\",Dados!AF594)","v":""},{"$f":"IF(ISERROR(Dados!AG594),\"-\",Dados!AG594)","v":""}]
[{"$f":"IF(ISERROR(Dados!A595),\"-\",Dados!A595)","v":""},{"$f":"IF(ISERROR(Dados!B595),\"-\",Dados!B595)","v":""},{"$f":"IF(ISERROR(Dados!C595),\"-\",Dados!C595)","v":""},{"$f":"IF(ISERROR(Dados!D595),\"-\",Dados!D595)","v":""},{"$f":"IF(ISERROR(Dados!E595),\"-\",Dados!E595)","v":""},{"$f":"IF(ISERROR(Dados!F595),\"-\",Dados!F595)","v":""},{"$f":"IF(ISERROR(Dados!G595),\"-\",Dados!G595)","v":""},{"$f":"IF(ISERROR(Dados!H595),\"-\",Dados!H595)","v":""},{"$f":"IF(ISERROR(Dados!I595),\"-\",Dados!I595)","v":""},{"$f":"IF(ISERROR(Dados!J595),\"-\",Dados!J595)","v":""},{"$f":"IF(ISERROR(Dados!K595),\"-\",Dados!K595)","v":""},{"$f":"IF(ISERROR(Dados!L595),\"-\",Dados!L595)","v":""},{"$f":"IF(ISERROR(Dados!M595),\"-\",Dados!M595)","v":""},{"$f":"IF(ISERROR(Dados!N595),\"-\",Dados!N595)","v":""},{"$f":"IF(ISERROR(Dados!O595),\"-\",Dados!O595)","v":""},{"$f":"IF(ISERROR(Dados!P595),\"-\",Dados!P595)","v":""},{"$f":"IF(ISERROR(Dados!Q595),\"-\",Dados!Q595)","v":""},{"$f":"IF(ISERROR(Dados!R595),\"-\",Dados!R595)","v":""},{"$f":"IF(ISERROR(Dados!S595),\"-\",Dados!S595)","v":""},{"$f":"IF(ISERROR(Dados!T595),\"-\",Dados!T595)","v":""},{"$f":"IF(ISERROR(Dados!U595),\"-\",Dados!U595)","v":""},{"$f":"IF(ISERROR(Dados!V595),\"-\",Dados!V595)","v":""},{"$f":"IF(ISERROR(Dados!W595),\"-\",Dados!W595)","v":""},{"$f":"IF(ISERROR(Dados!X595),\"-\",Dados!X595)","v":""},{"$f":"IF(ISERROR(Dados!Y595),\"-\",Dados!Y595)","v":""},{"$f":"IF(ISERROR(Dados!Z595),\"-\",Dados!Z595)","v":""},{"$f":"IF(ISERROR(Dados!AA595),\"-\",Dados!AA595)","v":""},{"$f":"IF(ISERROR(Dados!AB595),\"-\",Dados!AB595)","v":""},{"$f":"IF(ISERROR(Dados!AC595),\"-\",Dados!AC595)","v":""},{"$f":"IF(ISERROR(Dados!AD595),\"-\",Dados!AD595)","v":""},{"$f":"IF(ISERROR(Dados!AE595),\"-\",Dados!AE595)","v":""},{"$f":"IF(ISERROR(Dados!AF595),\"-\",Dados!AF595)","v":""},{"$f":"IF(ISERROR(Dados!AG595),\"-\",Dados!AG595)","v":""}]
[{"$f":"IF(ISERROR(Dados!A596),\"-\",Dados!A596)","v":""},{"$f":"IF(ISERROR(Dados!B596),\"-\",Dados!B596)","v":""},{"$f":"IF(ISERROR(Dados!C596),\"-\",Dados!C596)","v":""},{"$f":"IF(ISERROR(Dados!D596),\"-\",Dados!D596)","v":""},{"$f":"IF(ISERROR(Dados!E596),\"-\",Dados!E596)","v":""},{"$f":"IF(ISERROR(Dados!F596),\"-\",Dados!F596)","v":""},{"$f":"IF(ISERROR(Dados!G596),\"-\",Dados!G596)","v":""},{"$f":"IF(ISERROR(Dados!H596),\"-\",Dados!H596)","v":""},{"$f":"IF(ISERROR(Dados!I596),\"-\",Dados!I596)","v":""},{"$f":"IF(ISERROR(Dados!J596),\"-\",Dados!J596)","v":""},{"$f":"IF(ISERROR(Dados!K596),\"-\",Dados!K596)","v":""},{"$f":"IF(ISERROR(Dados!L596),\"-\",Dados!L596)","v":""},{"$f":"IF(ISERROR(Dados!M596),\"-\",Dados!M596)","v":""},{"$f":"IF(ISERROR(Dados!N596),\"-\",Dados!N596)","v":""},{"$f":"IF(ISERROR(Dados!O596),\"-\",Dados!O596)","v":""},{"$f":"IF(ISERROR(Dados!P596),\"-\",Dados!P596)","v":""},{"$f":"IF(ISERROR(Dados!Q596),\"-\",Dados!Q596)","v":""},{"$f":"IF(ISERROR(Dados!R596),\"-\",Dados!R596)","v":""},{"$f":"IF(ISERROR(Dados!S596),\"-\",Dados!S596)","v":""},{"$f":"IF(ISERROR(Dados!T596),\"-\",Dados!T596)","v":""},{"$f":"IF(ISERROR(Dados!U596),\"-\",Dados!U596)","v":""},{"$f":"IF(ISERROR(Dados!V596),\"-\",Dados!V596)","v":""},{"$f":"IF(ISERROR(Dados!W596),\"-\",Dados!W596)","v":""},{"$f":"IF(ISERROR(Dados!X596),\"-\",Dados!X596)","v":""},{"$f":"IF(ISERROR(Dados!Y596),\"-\",Dados!Y596)","v":""},{"$f":"IF(ISERROR(Dados!Z596),\"-\",Dados!Z596)","v":""},{"$f":"IF(ISERROR(Dados!AA596),\"-\",Dados!AA596)","v":""},{"$f":"IF(ISERROR(Dados!AB596),\"-\",Dados!AB596)","v":""},{"$f":"IF(ISERROR(Dados!AC596),\"-\",Dados!AC596)","v":""},{"$f":"IF(ISERROR(Dados!AD596),\"-\",Dados!AD596)","v":""},{"$f":"IF(ISERROR(Dados!AE596),\"-\",Dados!AE596)","v":""},{"$f":"IF(ISERROR(Dados!AF596),\"-\",Dados!AF596)","v":""},{"$f":"IF(ISERROR(Dados!AG596),\"-\",Dados!AG596)","v":""}]
[{"$f":"IF(ISERROR(Dados!A597),\"-\",Dados!A597)","v":""},{"$f":"IF(ISERROR(Dados!B597),\"-\",Dados!B597)","v":""},{"$f":"IF(ISERROR(Dados!C597),\"-\",Dados!C597)","v":""},{"$f":"IF(ISERROR(Dados!D597),\"-\",Dados!D597)","v":""},{"$f":"IF(ISERROR(Dados!E597),\"-\",Dados!E597)","v":""},{"$f":"IF(ISERROR(Dados!F597),\"-\",Dados!F597)","v":""},{"$f":"IF(ISERROR(Dados!G597),\"-\",Dados!G597)","v":""},{"$f":"IF(ISERROR(Dados!H597),\"-\",Dados!H597)","v":""},{"$f":"IF(ISERROR(Dados!I597),\"-\",Dados!I597)","v":""},{"$f":"IF(ISERROR(Dados!J597),\"-\",Dados!J597)","v":""},{"$f":"IF(ISERROR(Dados!K597),\"-\",Dados!K597)","v":""},{"$f":"IF(ISERROR(Dados!L597),\"-\",Dados!L597)","v":""},{"$f":"IF(ISERROR(Dados!M597),\"-\",Dados!M597)","v":""},{"$f":"IF(ISERROR(Dados!N597),\"-\",Dados!N597)","v":""},{"$f":"IF(ISERROR(Dados!O597),\"-\",Dados!O597)","v":""},{"$f":"IF(ISERROR(Dados!P597),\"-\",Dados!P597)","v":""},{"$f":"IF(ISERROR(Dados!Q597),\"-\",Dados!Q597)","v":""},{"$f":"IF(ISERROR(Dados!R597),\"-\",Dados!R597)","v":""},{"$f":"IF(ISERROR(Dados!S597),\"-\",Dados!S597)","v":""},{"$f":"IF(ISERROR(Dados!T597),\"-\",Dados!T597)","v":""},{"$f":"IF(ISERROR(Dados!U597),\"-\",Dados!U597)","v":""},{"$f":"IF(ISERROR(Dados!V597),\"-\",Dados!V597)","v":""},{"$f":"IF(ISERROR(Dados!W597),\"-\",Dados!W597)","v":""},{"$f":"IF(ISERROR(Dados!X597),\"-\",Dados!X597)","v":""},{"$f":"IF(ISERROR(Dados!Y597),\"-\",Dados!Y597)","v":""},{"$f":"IF(ISERROR(Dados!Z597),\"-\",Dados!Z597)","v":""},{"$f":"IF(ISERROR(Dados!AA597),\"-\",Dados!AA597)","v":""},{"$f":"IF(ISERROR(Dados!AB597),\"-\",Dados!AB597)","v":""},{"$f":"IF(ISERROR(Dados!AC597),\"-\",Dados!AC597)","v":""},{"$f":"IF(ISERROR(Dados!AD597),\"-\",Dados!AD597)","v":""},{"$f":"IF(ISERROR(Dados!AE597),\"-\",Dados!AE597)","v":""},{"$f":"IF(ISERROR(Dados!AF597),\"-\",Dados!AF597)","v":""},{"$f":"IF(ISERROR(Dados!AG597),\"-\",Dados!AG597)","v":""}]
[{"$f":"IF(ISERROR(Dados!A598),\"-\",Dados!A598)","v":""},{"$f":"IF(ISERROR(Dados!B598),\"-\",Dados!B598)","v":""},{"$f":"IF(ISERROR(Dados!C598),\"-\",Dados!C598)","v":""},{"$f":"IF(ISERROR(Dados!D598),\"-\",Dados!D598)","v":""},{"$f":"IF(ISERROR(Dados!E598),\"-\",Dados!E598)","v":""},{"$f":"IF(ISERROR(Dados!F598),\"-\",Dados!F598)","v":""},{"$f":"IF(ISERROR(Dados!G598),\"-\",Dados!G598)","v":""},{"$f":"IF(ISERROR(Dados!H598),\"-\",Dados!H598)","v":""},{"$f":"IF(ISERROR(Dados!I598),\"-\",Dados!I598)","v":""},{"$f":"IF(ISERROR(Dados!J598),\"-\",Dados!J598)","v":""},{"$f":"IF(ISERROR(Dados!K598),\"-\",Dados!K598)","v":""},{"$f":"IF(ISERROR(Dados!L598),\"-\",Dados!L598)","v":""},{"$f":"IF(ISERROR(Dados!M598),\"-\",Dados!M598)","v":""},{"$f":"IF(ISERROR(Dados!N598),\"-\",Dados!N598)","v":""},{"$f":"IF(ISERROR(Dados!O598),\"-\",Dados!O598)","v":""},{"$f":"IF(ISERROR(Dados!P598),\"-\",Dados!P598)","v":""},{"$f":"IF(ISERROR(Dados!Q598),\"-\",Dados!Q598)","v":""},{"$f":"IF(ISERROR(Dados!R598),\"-\",Dados!R598)","v":""},{"$f":"IF(ISERROR(Dados!S598),\"-\",Dados!S598)","v":""},{"$f":"IF(ISERROR(Dados!T598),\"-\",Dados!T598)","v":""},{"$f":"IF(ISERROR(Dados!U598),\"-\",Dados!U598)","v":""},{"$f":"IF(ISERROR(Dados!V598),\"-\",Dados!V598)","v":""},{"$f":"IF(ISERROR(Dados!W598),\"-\",Dados!W598)","v":""},{"$f":"IF(ISERROR(Dados!X598),\"-\",Dados!X598)","v":""},{"$f":"IF(ISERROR(Dados!Y598),\"-\",Dados!Y598)","v":""},{"$f":"IF(ISERROR(Dados!Z598),\"-\",Dados!Z598)","v":""},{"$f":"IF(ISERROR(Dados!AA598),\"-\",Dados!AA598)","v":""},{"$f":"IF(ISERROR(Dados!AB598),\"-\",Dados!AB598)","v":""},{"$f":"IF(ISERROR(Dados!AC598),\"-\",Dados!AC598)","v":""},{"$f":"IF(ISERROR(Dados!AD598),\"-\",Dados!AD598)","v":""},{"$f":"IF(ISERROR(Dados!AE598),\"-\",Dados!AE598)","v":""},{"$f":"IF(ISERROR(Dados!AF598),\"-\",Dados!AF598)","v":""},{"$f":"IF(ISERROR(Dados!AG598),\"-\",Dados!AG598)","v":""}]
[{"$f":"IF(ISERROR(Dados!A599),\"-\",Dados!A599)","v":""},{"$f":"IF(ISERROR(Dados!B599),\"-\",Dados!B599)","v":""},{"$f":"IF(ISERROR(Dados!C599),\"-\",Dados!C599)","v":""},{"$f":"IF(ISERROR(Dados!D599),\"-\",Dados!D599)","v":""},{"$f":"IF(ISERROR(Dados!E599),\"-\",Dados!E599)","v":""},{"$f":"IF(ISERROR(Dados!F599),\"-\",Dados!F599)","v":""},{"$f":"IF(ISERROR(Dados!G599),\"-\",Dados!G599)","v":""},{"$f":"IF(ISERROR(Dados!H599),\"-\",Dados!H599)","v":""},{"$f":"IF(ISERROR(Dados!I599),\"-\",Dados!I599)","v":""},{"$f":"IF(ISERROR(Dados!J599),\"-\",Dados!J599)","v":""},{"$f":"IF(ISERROR(Dados!K599),\"-\",Dados!K599)","v":""},{"$f":"IF(ISERROR(Dados!L599),\"-\",Dados!L599)","v":""},{"$f":"IF(ISERROR(Dados!M599),\"-\",Dados!M599)","v":""},{"$f":"IF(ISERROR(Dados!N599),\"-\",Dados!N599)","v":""},{"$f":"IF(ISERROR(Dados!O599),\"-\",Dados!O599)","v":""},{"$f":"IF(ISERROR(Dados!P599),\"-\",Dados!P599)","v":""},{"$f":"IF(ISERROR(Dados!Q599),\"-\",Dados!Q599)","v":""},{"$f":"IF(ISERROR(Dados!R599),\"-\",Dados!R599)","v":""},{"$f":"IF(ISERROR(Dados!S599),\"-\",Dados!S599)","v":""},{"$f":"IF(ISERROR(Dados!T599),\"-\",Dados!T599)","v":""},{"$f":"IF(ISERROR(Dados!U599),\"-\",Dados!U599)","v":""},{"$f":"IF(ISERROR(Dados!V599),\"-\",Dados!V599)","v":""},{"$f":"IF(ISERROR(Dados!W599),\"-\",Dados!W599)","v":""},{"$f":"IF(ISERROR(Dados!X599),\"-\",Dados!X599)","v":""},{"$f":"IF(ISERROR(Dados!Y599),\"-\",Dados!Y599)","v":""},{"$f":"IF(ISERROR(Dados!Z599),\"-\",Dados!Z599)","v":""},{"$f":"IF(ISERROR(Dados!AA599),\"-\",Dados!AA599)","v":""},{"$f":"IF(ISERROR(Dados!AB599),\"-\",Dados!AB599)","v":""},{"$f":"IF(ISERROR(Dados!AC599),\"-\",Dados!AC599)","v":""},{"$f":"IF(ISERROR(Dados!AD599),\"-\",Dados!AD599)","v":""},{"$f":"IF(ISERROR(Dados!AE599),\"-\",Dados!AE599)","v":""},{"$f":"IF(ISERROR(Dados!AF599),\"-\",Dados!AF599)","v":""},{"$f":"IF(ISERROR(Dados!AG599),\"-\",Dados!AG599)","v":""}]
[{"$f":"IF(ISERROR(Dados!A600),\"-\",Dados!A600)","v":""},{"$f":"IF(ISERROR(Dados!B600),\"-\",Dados!B600)","v":""},{"$f":"IF(ISERROR(Dados!C600),\"-\",Dados!C600)","v":""},{"$f":"IF(ISERROR(Dados!D600),\"-\",Dados!D600)","v":""},{"$f":"IF(ISERROR(Dados!E600),\"-\",Dados!E600)","v":""},{"$f":"IF(ISERROR(Dados!F600),\"-\",Dados!F600)","v":""},{"$f":"IF(ISERROR(Dados!G600),\"-\",Dados!G600)","v":""},{"$f":"IF(ISERROR(Dados!H600),\"-\",Dados!H600)","v":""},{"$f":"IF(ISERROR(Dados!I600),\"-\",Dados!I600)","v":""},{"$f":"IF(ISERROR(Dados!J600),\"-\",Dados!J600)","v":""},{"$f":"IF(ISERROR(Dados!K600),\"-\",Dados!K600)","v":""},{"$f":"IF(ISERROR(Dados!L600),\"-\",Dados!L600)","v":""},{"$f":"IF(ISERROR(Dados!M600),\"-\",Dados!M600)","v":""},{"$f":"IF(ISERROR(Dados!N600),\"-\",Dados!N600)","v":""},{"$f":"IF(ISERROR(Dados!O600),\"-\",Dados!O600)","v":""},{"$f":"IF(ISERROR(Dados!P600),\"-\",Dados!P600)","v":""},{"$f":"IF(ISERROR(Dados!Q600),\"-\",Dados!Q600)","v":""},{"$f":"IF(ISERROR(Dados!R600),\"-\",Dados!R600)","v":""},{"$f":"IF(ISERROR(Dados!S600),\"-\",Dados!S600)","v":""},{"$f":"IF(ISERROR(Dados!T600),\"-\",Dados!T600)","v":""},{"$f":"IF(ISERROR(Dados!U600),\"-\",Dados!U600)","v":""},{"$f":"IF(ISERROR(Dados!V600),\"-\",Dados!V600)","v":""},{"$f":"IF(ISERROR(Dados!W600),\"-\",Dados!W600)","v":""},{"$f":"IF(ISERROR(Dados!X600),\"-\",Dados!X600)","v":""},{"$f":"IF(ISERROR(Dados!Y600),\"-\",Dados!Y600)","v":""},{"$f":"IF(ISERROR(Dados!Z600),\"-\",Dados!Z600)","v":""},{"$f":"IF(ISERROR(Dados!AA600),\"-\",Dados!AA600)","v":""},{"$f":"IF(ISERROR(Dados!AB600),\"-\",Dados!AB600)","v":""},{"$f":"IF(ISERROR(Dados!AC600),\"-\",Dados!AC600)","v":""},{"$f":"IF(ISERROR(Dados!AD600),\"-\",Dados!AD600)","v":""},{"$f":"IF(ISERROR(Dados!AE600),\"-\",Dados!AE600)","v":""},{"$f":"IF(ISERROR(Dados!AF600),\"-\",Dados!AF600)","v":""},{"$f":"IF(ISERROR(Dados!AG600),\"-\",Dados!AG600)","v":""}]
[{"$f":"IF(ISERROR(Dados!A601),\"-\",Dados!A601)","v":""},{"$f":"IF(ISERROR(Dados!B601),\"-\",Dados!B601)","v":""},{"$f":"IF(ISERROR(Dados!C601),\"-\",Dados!C601)","v":""},{"$f":"IF(ISERROR(Dados!D601),\"-\",Dados!D601)","v":""},{"$f":"IF(ISERROR(Dados!E601),\"-\",Dados!E601)","v":""},{"$f":"IF(ISERROR(Dados!F601),\"-\",Dados!F601)","v":""},{"$f":"IF(ISERROR(Dados!G601),\"-\",Dados!G601)","v":""},{"$f":"IF(ISERROR(Dados!H601),\"-\",Dados!H601)","v":""},{"$f":"IF(ISERROR(Dados!I601),\"-\",Dados!I601)","v":""},{"$f":"IF(ISERROR(Dados!J601),\"-\",Dados!J601)","v":""},{"$f":"IF(ISERROR(Dados!K601),\"-\",Dados!K601)","v":""},{"$f":"IF(ISERROR(Dados!L601),\"-\",Dados!L601)","v":""},{"$f":"IF(ISERROR(Dados!M601),\"-\",Dados!M601)","v":""},{"$f":"IF(ISERROR(Dados!N601),\"-\",Dados!N601)","v":""},{"$f":"IF(ISERROR(Dados!O601),\"-\",Dados!O601)","v":""},{"$f":"IF(ISERROR(Dados!P601),\"-\",Dados!P601)","v":""},{"$f":"IF(ISERROR(Dados!Q601),\"-\",Dados!Q601)","v":""},{"$f":"IF(ISERROR(Dados!R601),\"-\",Dados!R601)","v":""},{"$f":"IF(ISERROR(Dados!S601),\"-\",Dados!S601)","v":""},{"$f":"IF(ISERROR(Dados!T601),\"-\",Dados!T601)","v":""},{"$f":"IF(ISERROR(Dados!U601),\"-\",Dados!U601)","v":""},{"$f":"IF(ISERROR(Dados!V601),\"-\",Dados!V601)","v":""},{"$f":"IF(ISERROR(Dados!W601),\"-\",Dados!W601)","v":""},{"$f":"IF(ISERROR(Dados!X601),\"-\",Dados!X601)","v":""},{"$f":"IF(ISERROR(Dados!Y601),\"-\",Dados!Y601)","v":""},{"$f":"IF(ISERROR(Dados!Z601),\"-\",Dados!Z601)","v":""},{"$f":"IF(ISERROR(Dados!AA601),\"-\",Dados!AA601)","v":""},{"$f":"IF(ISERROR(Dados!AB601),\"-\",Dados!AB601)","v":""},{"$f":"IF(ISERROR(Dados!AC601),\"-\",Dados!AC601)","v":""},{"$f":"IF(ISERROR(Dados!AD601),\"-\",Dados!AD601)","v":""},{"$f":"IF(ISERROR(Dados!AE601),\"-\",Dados!AE601)","v":""},{"$f":"IF(ISERROR(Dados!AF601),\"-\",Dados!AF601)","v":""},{"$f":"IF(ISERROR(Dados!AG601),\"-\",Dados!AG601)","v":""}]
[{"$f":"IF(ISERROR(Dados!A602),\"-\",Dados!A602)","v":""},{"$f":"IF(ISERROR(Dados!B602),\"-\",Dados!B602)","v":""},{"$f":"IF(ISERROR(Dados!C602),\"-\",Dados!C602)","v":""},{"$f":"IF(ISERROR(Dados!D602),\"-\",Dados!D602)","v":""},{"$f":"IF(ISERROR(Dados!E602),\"-\",Dados!E602)","v":""},{"$f":"IF(ISERROR(Dados!F602),\"-\",Dados!F602)","v":""},{"$f":"IF(ISERROR(Dados!G602),\"-\",Dados!G602)","v":""},{"$f":"IF(ISERROR(Dados!H602),\"-\",Dados!H602)","v":""},{"$f":"IF(ISERROR(Dados!I602),\"-\",Dados!I602)","v":""},{"$f":"IF(ISERROR(Dados!J602),\"-\",Dados!J602)","v":""},{"$f":"IF(ISERROR(Dados!K602),\"-\",Dados!K602)","v":""},{"$f":"IF(ISERROR(Dados!L602),\"-\",Dados!L602)","v":""},{"$f":"IF(ISERROR(Dados!M602),\"-\",Dados!M602)","v":""},{"$f":"IF(ISERROR(Dados!N602),\"-\",Dados!N602)","v":""},{"$f":"IF(ISERROR(Dados!O602),\"-\",Dados!O602)","v":""},{"$f":"IF(ISERROR(Dados!P602),\"-\",Dados!P602)","v":""},{"$f":"IF(ISERROR(Dados!Q602),\"-\",Dados!Q602)","v":""},{"$f":"IF(ISERROR(Dados!R602),\"-\",Dados!R602)","v":""},{"$f":"IF(ISERROR(Dados!S602),\"-\",Dados!S602)","v":""},{"$f":"IF(ISERROR(Dados!T602),\"-\",Dados!T602)","v":""},{"$f":"IF(ISERROR(Dados!U602),\"-\",Dados!U602)","v":""},{"$f":"IF(ISERROR(Dados!V602),\"-\",Dados!V602)","v":""},{"$f":"IF(ISERROR(Dados!W602),\"-\",Dados!W602)","v":""},{"$f":"IF(ISERROR(Dados!X602),\"-\",Dados!X602)","v":""},{"$f":"IF(ISERROR(Dados!Y602),\"-\",Dados!Y602)","v":""},{"$f":"IF(ISERROR(Dados!Z602),\"-\",Dados!Z602)","v":""},{"$f":"IF(ISERROR(Dados!AA602),\"-\",Dados!AA602)","v":""},{"$f":"IF(ISERROR(Dados!AB602),\"-\",Dados!AB602)","v":""},{"$f":"IF(ISERROR(Dados!AC602),\"-\",Dados!AC602)","v":""},{"$f":"IF(ISERROR(Dados!AD602),\"-\",Dados!AD602)","v":""},{"$f":"IF(ISERROR(Dados!AE602),\"-\",Dados!AE602)","v":""},{"$f":"IF(ISERROR(Dados!AF602),\"-\",Dados!AF602)","v":""},{"$f":"IF(ISERROR(Dados!AG602),\"-\",Dados!AG602)","v":""}]
[{"$f":"IF(ISERROR(Dados!A603),\"-\",Dados!A603)","v":""},{"$f":"IF(ISERROR(Dados!B603),\"-\",Dados!B603)","v":""},{"$f":"IF(ISERROR(Dados!C603),\"-\",Dados!C603)","v":""},{"$f":"IF(ISERROR(Dados!D603),\"-\",Dados!D603)","v":""},{"$f":"IF(ISERROR(Dados!E603),\"-\",Dados!E603)","v":""},{"$f":"IF(ISERROR(Dados!F603),\"-\",Dados!F603)","v":""},{"$f":"IF(ISERROR(Dados!G603),\"-\",Dados!G603)","v":""},{"$f":"IF(ISERROR(Dados!H603),\"-\",Dados!H603)","v":""},{"$f":"IF(ISERROR(Dados!I603),\"-\",Dados!I603)","v":""},{"$f":"IF(ISERROR(Dados!J603),\"-\",Dados!J603)","v":""},{"$f":"IF(ISERROR(Dados!K603),\"-\",Dados!K603)","v":""},{"$f":"IF(ISERROR(Dados!L603),\"-\",Dados!L603)","v":""},{"$f":"IF(ISERROR(Dados!M603),\"-\",Dados!M603)","v":""},{"$f":"IF(ISERROR(Dados!N603),\"-\",Dados!N603)","v":""},{"$f":"IF(ISERROR(Dados!O603),\"-\",Dados!O603)","v":""},{"$f":"IF(ISERROR(Dados!P603),\"-\",Dados!P603)","v":""},{"$f":"IF(ISERROR(Dados!Q603),\"-\",Dados!Q603)","v":""},{"$f":"IF(ISERROR(Dados!R603),\"-\",Dados!R603)","v":""},{"$f":"IF(ISERROR(Dados!S603),\"-\",Dados!S603)","v":""},{"$f":"IF(ISERROR(Dados!T603),\"-\",Dados!T603)","v":""},{"$f":"IF(ISERROR(Dados!U603),\"-\",Dados!U603)","v":""},{"$f":"IF(ISERROR(Dados!V603),\"-\",Dados!V603)","v":""},{"$f":"IF(ISERROR(Dados!W603),\"-\",Dados!W603)","v":""},{"$f":"IF(ISERROR(Dados!X603),\"-\",Dados!X603)","v":""},{"$f":"IF(ISERROR(Dados!Y603),\"-\",Dados!Y603)","v":""},{"$f":"IF(ISERROR(Dados!Z603),\"-\",Dados!Z603)","v":""},{"$f":"IF(ISERROR(Dados!AA603),\"-\",Dados!AA603)","v":""},{"$f":"IF(ISERROR(Dados!AB603),\"-\",Dados!AB603)","v":""},{"$f":"IF(ISERROR(Dados!AC603),\"-\",Dados!AC603)","v":""},{"$f":"IF(ISERROR(Dados!AD603),\"-\",Dados!AD603)","v":""},{"$f":"IF(ISERROR(Dados!AE603),\"-\",Dados!AE603)","v":""},{"$f":"IF(ISERROR(Dados!AF603),\"-\",Dados!AF603)","v":""},{"$f":"IF(ISERROR(Dados!AG603),\"-\",Dados!AG603)","v":""}]
[{"$f":"IF(ISERROR(Dados!A604),\"-\",Dados!A604)","v":""},{"$f":"IF(ISERROR(Dados!B604),\"-\",Dados!B604)","v":""},{"$f":"IF(ISERROR(Dados!C604),\"-\",Dados!C604)","v":""},{"$f":"IF(ISERROR(Dados!D604),\"-\",Dados!D604)","v":""},{"$f":"IF(ISERROR(Dados!E604),\"-\",Dados!E604)","v":""},{"$f":"IF(ISERROR(Dados!F604),\"-\",Dados!F604)","v":""},{"$f":"IF(ISERROR(Dados!G604),\"-\",Dados!G604)","v":""},{"$f":"IF(ISERROR(Dados!H604),\"-\",Dados!H604)","v":""},{"$f":"IF(ISERROR(Dados!I604),\"-\",Dados!I604)","v":""},{"$f":"IF(ISERROR(Dados!J604),\"-\",Dados!J604)","v":""},{"$f":"IF(ISERROR(Dados!K604),\"-\",Dados!K604)","v":""},{"$f":"IF(ISERROR(Dados!L604),\"-\",Dados!L604)","v":""},{"$f":"IF(ISERROR(Dados!M604),\"-\",Dados!M604)","v":""},{"$f":"IF(ISERROR(Dados!N604),\"-\",Dados!N604)","v":""},{"$f":"IF(ISERROR(Dados!O604),\"-\",Dados!O604)","v":""},{"$f":"IF(ISERROR(Dados!P604),\"-\",Dados!P604)","v":""},{"$f":"IF(ISERROR(Dados!Q604),\"-\",Dados!Q604)","v":""},{"$f":"IF(ISERROR(Dados!R604),\"-\",Dados!R604)","v":""},{"$f":"IF(ISERROR(Dados!S604),\"-\",Dados!S604)","v":""},{"$f":"IF(ISERROR(Dados!T604),\"-\",Dados!T604)","v":""},{"$f":"IF(ISERROR(Dados!U604),\"-\",Dados!U604)","v":""},{"$f":"IF(ISERROR(Dados!V604),\"-\",Dados!V604)","v":""},{"$f":"IF(ISERROR(Dados!W604),\"-\",Dados!W604)","v":""},{"$f":"IF(ISERROR(Dados!X604),\"-\",Dados!X604)","v":""},{"$f":"IF(ISERROR(Dados!Y604),\"-\",Dados!Y604)","v":""},{"$f":"IF(ISERROR(Dados!Z604),\"-\",Dados!Z604)","v":""},{"$f":"IF(ISERROR(Dados!AA604),\"-\",Dados!AA604)","v":""},{"$f":"IF(ISERROR(Dados!AB604),\"-\",Dados!AB604)","v":""},{"$f":"IF(ISERROR(Dados!AC604),\"-\",Dados!AC604)","v":""},{"$f":"IF(ISERROR(Dados!AD604),\"-\",Dados!AD604)","v":""},{"$f":"IF(ISERROR(Dados!AE604),\"-\",Dados!AE604)","v":""},{"$f":"IF(ISERROR(Dados!AF604),\"-\",Dados!AF604)","v":""},{"$f":"IF(ISERROR(Dados!AG604),\"-\",Dados!AG604)","v":""}]
[{"$f":"IF(ISERROR(Dados!A605),\"-\",Dados!A605)","v":""},{"$f":"IF(ISERROR(Dados!B605),\"-\",Dados!B605)","v":""},{"$f":"IF(ISERROR(Dados!C605),\"-\",Dados!C605)","v":""},{"$f":"IF(ISERROR(Dados!D605),\"-\",Dados!D605)","v":""},{"$f":"IF(ISERROR(Dados!E605),\"-\",Dados!E605)","v":""},{"$f":"IF(ISERROR(Dados!F605),\"-\",Dados!F605)","v":""},{"$f":"IF(ISERROR(Dados!G605),\"-\",Dados!G605)","v":""},{"$f":"IF(ISERROR(Dados!H605),\"-\",Dados!H605)","v":""},{"$f":"IF(ISERROR(Dados!I605),\"-\",Dados!I605)","v":""},{"$f":"IF(ISERROR(Dados!J605),\"-\",Dados!J605)","v":""},{"$f":"IF(ISERROR(Dados!K605),\"-\",Dados!K605)","v":""},{"$f":"IF(ISERROR(Dados!L605),\"-\",Dados!L605)","v":""},{"$f":"IF(ISERROR(Dados!M605),\"-\",Dados!M605)","v":""},{"$f":"IF(ISERROR(Dados!N605),\"-\",Dados!N605)","v":""},{"$f":"IF(ISERROR(Dados!O605),\"-\",Dados!O605)","v":""},{"$f":"IF(ISERROR(Dados!P605),\"-\",Dados!P605)","v":""},{"$f":"IF(ISERROR(Dados!Q605),\"-\",Dados!Q605)","v":""},{"$f":"IF(ISERROR(Dados!R605),\"-\",Dados!R605)","v":""},{"$f":"IF(ISERROR(Dados!S605),\"-\",Dados!S605)","v":""},{"$f":"IF(ISERROR(Dados!T605),\"-\",Dados!T605)","v":""},{"$f":"IF(ISERROR(Dados!U605),\"-\",Dados!U605)","v":""},{"$f":"IF(ISERROR(Dados!V605),\"-\",Dados!V605)","v":""},{"$f":"IF(ISERROR(Dados!W605),\"-\",Dados!W605)","v":""},{"$f":"IF(ISERROR(Dados!X605),\"-\",Dados!X605)","v":""},{"$f":"IF(ISERROR(Dados!Y605),\"-\",Dados!Y605)","v":""},{"$f":"IF(ISERROR(Dados!Z605),\"-\",Dados!Z605)","v":""},{"$f":"IF(ISERROR(Dados!AA605),\"-\",Dados!AA605)","v":""},{"$f":"IF(ISERROR(Dados!AB605),\"-\",Dados!AB605)","v":""},{"$f":"IF(ISERROR(Dados!AC605),\"-\",Dados!AC605)","v":""},{"$f":"IF(ISERROR(Dados!AD605),\"-\",Dados!AD605)","v":""},{"$f":"IF(ISERROR(Dados!AE605),\"-\",Dados!AE605)","v":""},{"$f":"IF(ISERROR(Dados!AF605),\"-\",Dados!AF605)","v":""},{"$f":"IF(ISERROR(Dados!AG605),\"-\",Dados!AG605)","v":""}]
[{"$f":"IF(ISERROR(Dados!A606),\"-\",Dados!A606)","v":""},{"$f":"IF(ISERROR(Dados!B606),\"-\",Dados!B606)","v":""},{"$f":"IF(ISERROR(Dados!C606),\"-\",Dados!C606)","v":""},{"$f":"IF(ISERROR(Dados!D606),\"-\",Dados!D606)","v":""},{"$f":"IF(ISERROR(Dados!E606),\"-\",Dados!E606)","v":""},{"$f":"IF(ISERROR(Dados!F606),\"-\",Dados!F606)","v":""},{"$f":"IF(ISERROR(Dados!G606),\"-\",Dados!G606)","v":""},{"$f":"IF(ISERROR(Dados!H606),\"-\",Dados!H606)","v":""},{"$f":"IF(ISERROR(Dados!I606),\"-\",Dados!I606)","v":""},{"$f":"IF(ISERROR(Dados!J606),\"-\",Dados!J606)","v":""},{"$f":"IF(ISERROR(Dados!K606),\"-\",Dados!K606)","v":""},{"$f":"IF(ISERROR(Dados!L606),\"-\",Dados!L606)","v":""},{"$f":"IF(ISERROR(Dados!M606),\"-\",Dados!M606)","v":""},{"$f":"IF(ISERROR(Dados!N606),\"-\",Dados!N606)","v":""},{"$f":"IF(ISERROR(Dados!O606),\"-\",Dados!O606)","v":""},{"$f":"IF(ISERROR(Dados!P606),\"-\",Dados!P606)","v":""},{"$f":"IF(ISERROR(Dados!Q606),\"-\",Dados!Q606)","v":""},{"$f":"IF(ISERROR(Dados!R606),\"-\",Dados!R606)","v":""},{"$f":"IF(ISERROR(Dados!S606),\"-\",Dados!S606)","v":""},{"$f":"IF(ISERROR(Dados!T606),\"-\",Dados!T606)","v":""},{"$f":"IF(ISERROR(Dados!U606),\"-\",Dados!U606)","v":""},{"$f":"IF(ISERROR(Dados!V606),\"-\",Dados!V606)","v":""},{"$f":"IF(ISERROR(Dados!W606),\"-\",Dados!W606)","v":""},{"$f":"IF(ISERROR(Dados!X606),\"-\",Dados!X606)","v":""},{"$f":"IF(ISERROR(Dados!Y606),\"-\",Dados!Y606)","v":""},{"$f":"IF(ISERROR(Dados!Z606),\"-\",Dados!Z606)","v":""},{"$f":"IF(ISERROR(Dados!AA606),\"-\",Dados!AA606)","v":""},{"$f":"IF(ISERROR(Dados!AB606),\"-\",Dados!AB606)","v":""},{"$f":"IF(ISERROR(Dados!AC606),\"-\",Dados!AC606)","v":""},{"$f":"IF(ISERROR(Dados!AD606),\"-\",Dados!AD606)","v":""},{"$f":"IF(ISERROR(Dados!AE606),\"-\",Dados!AE606)","v":""},{"$f":"IF(ISERROR(Dados!AF606),\"-\",Dados!AF606)","v":""},{"$f":"IF(ISERROR(Dados!AG606),\"-\",Dados!AG606)","v":""}]
[{"$f":"IF(ISERROR(Dados!A607),\"-\",Dados!A607)","v":""},{"$f":"IF(ISERROR(Dados!B607),\"-\",Dados!B607)","v":""},{"$f":"IF(ISERROR(Dados!C607),\"-\",Dados!C607)","v":""},{"$f":"IF(ISERROR(Dados!D607),\"-\",Dados!D607)","v":""},{"$f":"IF(ISERROR(Dados!E607),\"-\",Dados!E607)","v":""},{"$f":"IF(ISERROR(Dados!F607),\"-\",Dados!F607)","v":""},{"$f":"IF(ISERROR(Dados!G607),\"-\",Dados!G607)","v":""},{"$f":"IF(ISERROR(Dados!H607),\"-\",Dados!H607)","v":""},{"$f":"IF(ISERROR(Dados!I607),\"-\",Dados!I607)","v":""},{"$f":"IF(ISERROR(Dados!J607),\"-\",Dados!J607)","v":""},{"$f":"IF(ISERROR(Dados!K607),\"-\",Dados!K607)","v":""},{"$f":"IF(ISERROR(Dados!L607),\"-\",Dados!L607)","v":""},{"$f":"IF(ISERROR(Dados!M607),\"-\",Dados!M607)","v":""},{"$f":"IF(ISERROR(Dados!N607),\"-\",Dados!N607)","v":""},{"$f":"IF(ISERROR(Dados!O607),\"-\",Dados!O607)","v":""},{"$f":"IF(ISERROR(Dados!P607),\"-\",Dados!P607)","v":""},{"$f":"IF(ISERROR(Dados!Q607),\"-\",Dados!Q607)","v":""},{"$f":"IF(ISERROR(Dados!R607),\"-\",Dados!R607)","v":""},{"$f":"IF(ISERROR(Dados!S607),\"-\",Dados!S607)","v":""},{"$f":"IF(ISERROR(Dados!T607),\"-\",Dados!T607)","v":""},{"$f":"IF(ISERROR(Dados!U607),\"-\",Dados!U607)","v":""},{"$f":"IF(ISERROR(Dados!V607),\"-\",Dados!V607)","v":""},{"$f":"IF(ISERROR(Dados!W607),\"-\",Dados!W607)","v":""},{"$f":"IF(ISERROR(Dados!X607),\"-\",Dados!X607)","v":""},{"$f":"IF(ISERROR(Dados!Y607),\"-\",Dados!Y607)","v":""},{"$f":"IF(ISERROR(Dados!Z607),\"-\",Dados!Z607)","v":""},{"$f":"IF(ISERROR(Dados!AA607),\"-\",Dados!AA607)","v":""},{"$f":"IF(ISERROR(Dados!AB607),\"-\",Dados!AB607)","v":""},{"$f":"IF(ISERROR(Dados!AC607),\"-\",Dados!AC607)","v":""},{"$f":"IF(ISERROR(Dados!AD607),\"-\",Dados!AD607)","v":""},{"$f":"IF(ISERROR(Dados!AE607),\"-\",Dados!AE607)","v":""},{"$f":"IF(ISERROR(Dados!AF607),\"-\",Dados!AF607)","v":""},{"$f":"IF(ISERROR(Dados!AG607),\"-\",Dados!AG607)","v":""}]
[{"$f":"IF(ISERROR(Dados!A608),\"-\",Dados!A608)","v":""},{"$f":"IF(ISERROR(Dados!B608),\"-\",Dados!B608)","v":""},{"$f":"IF(ISERROR(Dados!C608),\"-\",Dados!C608)","v":""},{"$f":"IF(ISERROR(Dados!D608),\"-\",Dados!D608)","v":""},{"$f":"IF(ISERROR(Dados!E608),\"-\",Dados!E608)","v":""},{"$f":"IF(ISERROR(Dados!F608),\"-\",Dados!F608)","v":""},{"$f":"IF(ISERROR(Dados!G608),\"-\",Dados!G608)","v":""},{"$f":"IF(ISERROR(Dados!H608),\"-\",Dados!H608)","v":""},{"$f":"IF(ISERROR(Dados!I608),\"-\",Dados!I608)","v":""},{"$f":"IF(ISERROR(Dados!J608),\"-\",Dados!J608)","v":""},{"$f":"IF(ISERROR(Dados!K608),\"-\",Dados!K608)","v":""},{"$f":"IF(ISERROR(Dados!L608),\"-\",Dados!L608)","v":""},{"$f":"IF(ISERROR(Dados!M608),\"-\",Dados!M608)","v":""},{"$f":"IF(ISERROR(Dados!N608),\"-\",Dados!N608)","v":""},{"$f":"IF(ISERROR(Dados!O608),\"-\",Dados!O608)","v":""},{"$f":"IF(ISERROR(Dados!P608),\"-\",Dados!P608)","v":""},{"$f":"IF(ISERROR(Dados!Q608),\"-\",Dados!Q608)","v":""},{"$f":"IF(ISERROR(Dados!R608),\"-\",Dados!R608)","v":""},{"$f":"IF(ISERROR(Dados!S608),\"-\",Dados!S608)","v":""},{"$f":"IF(ISERROR(Dados!T608),\"-\",Dados!T608)","v":""},{"$f":"IF(ISERROR(Dados!U608),\"-\",Dados!U608)","v":""},{"$f":"IF(ISERROR(Dados!V608),\"-\",Dados!V608)","v":""},{"$f":"IF(ISERROR(Dados!W608),\"-\",Dados!W608)","v":""},{"$f":"IF(ISERROR(Dados!X608),\"-\",Dados!X608)","v":""},{"$f":"IF(ISERROR(Dados!Y608),\"-\",Dados!Y608)","v":""},{"$f":"IF(ISERROR(Dados!Z608),\"-\",Dados!Z608)","v":""},{"$f":"IF(ISERROR(Dados!AA608),\"-\",Dados!AA608)","v":""},{"$f":"IF(ISERROR(Dados!AB608),\"-\",Dados!AB608)","v":""},{"$f":"IF(ISERROR(Dados!AC608),\"-\",Dados!AC608)","v":""},{"$f":"IF(ISERROR(Dados!AD608),\"-\",Dados!AD608)","v":""},{"$f":"IF(ISERROR(Dados!AE608),\"-\",Dados!AE608)","v":""},{"$f":"IF(ISERROR(Dados!AF608),\"-\",Dados!AF608)","v":""},{"$f":"IF(ISERROR(Dados!AG608),\"-\",Dados!AG608)","v":""}]
[{"$f":"IF(ISERROR(Dados!A609),\"-\",Dados!A609)","v":""},{"$f":"IF(ISERROR(Dados!B609),\"-\",Dados!B609)","v":""},{"$f":"IF(ISERROR(Dados!C609),\"-\",Dados!C609)","v":""},{"$f":"IF(ISERROR(Dados!D609),\"-\",Dados!D609)","v":""},{"$f":"IF(ISERROR(Dados!E609),\"-\",Dados!E609)","v":""},{"$f":"IF(ISERROR(Dados!F609),\"-\",Dados!F609)","v":""},{"$f":"IF(ISERROR(Dados!G609),\"-\",Dados!G609)","v":""},{"$f":"IF(ISERROR(Dados!H609),\"-\",Dados!H609)","v":""},{"$f":"IF(ISERROR(Dados!I609),\"-\",Dados!I609)","v":""},{"$f":"IF(ISERROR(Dados!J609),\"-\",Dados!J609)","v":""},{"$f":"IF(ISERROR(Dados!K609),\"-\",Dados!K609)","v":""},{"$f":"IF(ISERROR(Dados!L609),\"-\",Dados!L609)","v":""},{"$f":"IF(ISERROR(Dados!M609),\"-\",Dados!M609)","v":""},{"$f":"IF(ISERROR(Dados!N609),\"-\",Dados!N609)","v":""},{"$f":"IF(ISERROR(Dados!O609),\"-\",Dados!O609)","v":""},{"$f":"IF(ISERROR(Dados!P609),\"-\",Dados!P609)","v":""},{"$f":"IF(ISERROR(Dados!Q609),\"-\",Dados!Q609)","v":""},{"$f":"IF(ISERROR(Dados!R609),\"-\",Dados!R609)","v":""},{"$f":"IF(ISERROR(Dados!S609),\"-\",Dados!S609)","v":""},{"$f":"IF(ISERROR(Dados!T609),\"-\",Dados!T609)","v":""},{"$f":"IF(ISERROR(Dados!U609),\"-\",Dados!U609)","v":""},{"$f":"IF(ISERROR(Dados!V609),\"-\",Dados!V609)","v":""},{"$f":"IF(ISERROR(Dados!W609),\"-\",Dados!W609)","v":""},{"$f":"IF(ISERROR(Dados!X609),\"-\",Dados!X609)","v":""},{"$f":"IF(ISERROR(Dados!Y609),\"-\",Dados!Y609)","v":""},{"$f":"IF(ISERROR(Dados!Z609),\"-\",Dados!Z609)","v":""},{"$f":"IF(ISERROR(Dados!AA609),\"-\",Dados!AA609)","v":""},{"$f":"IF(ISERROR(Dados!AB609),\"-\",Dados!AB609)","v":""},{"$f":"IF(ISERROR(Dados!AC609),\"-\",Dados!AC609)","v":""},{"$f":"IF(ISERROR(Dados!AD609),\"-\",Dados!AD609)","v":""},{"$f":"IF(ISERROR(Dados!AE609),\"-\",Dados!AE609)","v":""},{"$f":"IF(ISERROR(Dados!AF609),\"-\",Dados!AF609)","v":""},{"$f":"IF(ISERROR(Dados!AG609),\"-\",Dados!AG609)","v":""}]
[{"$f":"IF(ISERROR(Dados!A610),\"-\",Dados!A610)","v":""},{"$f":"IF(ISERROR(Dados!B610),\"-\",Dados!B610)","v":""},{"$f":"IF(ISERROR(Dados!C610),\"-\",Dados!C610)","v":""},{"$f":"IF(ISERROR(Dados!D610),\"-\",Dados!D610)","v":""},{"$f":"IF(ISERROR(Dados!E610),\"-\",Dados!E610)","v":""},{"$f":"IF(ISERROR(Dados!F610),\"-\",Dados!F610)","v":""},{"$f":"IF(ISERROR(Dados!G610),\"-\",Dados!G610)","v":""},{"$f":"IF(ISERROR(Dados!H610),\"-\",Dados!H610)","v":""},{"$f":"IF(ISERROR(Dados!I610),\"-\",Dados!I610)","v":""},{"$f":"IF(ISERROR(Dados!J610),\"-\",Dados!J610)","v":""},{"$f":"IF(ISERROR(Dados!K610),\"-\",Dados!K610)","v":""},{"$f":"IF(ISERROR(Dados!L610),\"-\",Dados!L610)","v":""},{"$f":"IF(ISERROR(Dados!M610),\"-\",Dados!M610)","v":""},{"$f":"IF(ISERROR(Dados!N610),\"-\",Dados!N610)","v":""},{"$f":"IF(ISERROR(Dados!O610),\"-\",Dados!O610)","v":""},{"$f":"IF(ISERROR(Dados!P610),\"-\",Dados!P610)","v":""},{"$f":"IF(ISERROR(Dados!Q610),\"-\",Dados!Q610)","v":""},{"$f":"IF(ISERROR(Dados!R610),\"-\",Dados!R610)","v":""},{"$f":"IF(ISERROR(Dados!S610),\"-\",Dados!S610)","v":""},{"$f":"IF(ISERROR(Dados!T610),\"-\",Dados!T610)","v":""},{"$f":"IF(ISERROR(Dados!U610),\"-\",Dados!U610)","v":""},{"$f":"IF(ISERROR(Dados!V610),\"-\",Dados!V610)","v":""},{"$f":"IF(ISERROR(Dados!W610),\"-\",Dados!W610)","v":""},{"$f":"IF(ISERROR(Dados!X610),\"-\",Dados!X610)","v":""},{"$f":"IF(ISERROR(Dados!Y610),\"-\",Dados!Y610)","v":""},{"$f":"IF(ISERROR(Dados!Z610),\"-\",Dados!Z610)","v":""},{"$f":"IF(ISERROR(Dados!AA610),\"-\",Dados!AA610)","v":""},{"$f":"IF(ISERROR(Dados!AB610),\"-\",Dados!AB610)","v":""},{"$f":"IF(ISERROR(Dados!AC610),\"-\",Dados!AC610)","v":""},{"$f":"IF(ISERROR(Dados!AD610),\"-\",Dados!AD610)","v":""},{"$f":"IF(ISERROR(Dados!AE610),\"-\",Dados!AE610)","v":""},{"$f":"IF(ISERROR(Dados!AF610),\"-\",Dados!AF610)","v":""},{"$f":"IF(ISERROR(Dados!AG610),\"-\",Dados!AG610)","v":""}]
[{"$f":"IF(ISERROR(Dados!A611),\"-\",Dados!A611)","v":""},{"$f":"IF(ISERROR(Dados!B611),\"-\",Dados!B611)","v":""},{"$f":"IF(ISERROR(Dados!C611),\"-\",Dados!C611)","v":""},{"$f":"IF(ISERROR(Dados!D611),\"-\",Dados!D611)","v":""},{"$f":"IF(ISERROR(Dados!E611),\"-\",Dados!E611)","v":""},{"$f":"IF(ISERROR(Dados!F611),\"-\",Dados!F611)","v":""},{"$f":"IF(ISERROR(Dados!G611),\"-\",Dados!G611)","v":""},{"$f":"IF(ISERROR(Dados!H611),\"-\",Dados!H611)","v":""},{"$f":"IF(ISERROR(Dados!I611),\"-\",Dados!I611)","v":""},{"$f":"IF(ISERROR(Dados!J611),\"-\",Dados!J611)","v":""},{"$f":"IF(ISERROR(Dados!K611),\"-\",Dados!K611)","v":""},{"$f":"IF(ISERROR(Dados!L611),\"-\",Dados!L611)","v":""},{"$f":"IF(ISERROR(Dados!M611),\"-\",Dados!M611)","v":""},{"$f":"IF(ISERROR(Dados!N611),\"-\",Dados!N611)","v":""},{"$f":"IF(ISERROR(Dados!O611),\"-\",Dados!O611)","v":""},{"$f":"IF(ISERROR(Dados!P611),\"-\",Dados!P611)","v":""},{"$f":"IF(ISERROR(Dados!Q611),\"-\",Dados!Q611)","v":""},{"$f":"IF(ISERROR(Dados!R611),\"-\",Dados!R611)","v":""},{"$f":"IF(ISERROR(Dados!S611),\"-\",Dados!S611)","v":""},{"$f":"IF(ISERROR(Dados!T611),\"-\",Dados!T611)","v":""},{"$f":"IF(ISERROR(Dados!U611),\"-\",Dados!U611)","v":""},{"$f":"IF(ISERROR(Dados!V611),\"-\",Dados!V611)","v":""},{"$f":"IF(ISERROR(Dados!W611),\"-\",Dados!W611)","v":""},{"$f":"IF(ISERROR(Dados!X611),\"-\",Dados!X611)","v":""},{"$f":"IF(ISERROR(Dados!Y611),\"-\",Dados!Y611)","v":""},{"$f":"IF(ISERROR(Dados!Z611),\"-\",Dados!Z611)","v":""},{"$f":"IF(ISERROR(Dados!AA611),\"-\",Dados!AA611)","v":""},{"$f":"IF(ISERROR(Dados!AB611),\"-\",Dados!AB611)","v":""},{"$f":"IF(ISERROR(Dados!AC611),\"-\",Dados!AC611)","v":""},{"$f":"IF(ISERROR(Dados!AD611),\"-\",Dados!AD611)","v":""},{"$f":"IF(ISERROR(Dados!AE611),\"-\",Dados!AE611)","v":""},{"$f":"IF(ISERROR(Dados!AF611),\"-\",Dados!AF611)","v":""},{"$f":"IF(ISERROR(Dados!AG611),\"-\",Dados!AG611)","v":""}]
[{"$f":"IF(ISERROR(Dados!A612),\"-\",Dados!A612)","v":""},{"$f":"IF(ISERROR(Dados!B612),\"-\",Dados!B612)","v":""},{"$f":"IF(ISERROR(Dados!C612),\"-\",Dados!C612)","v":""},{"$f":"IF(ISERROR(Dados!D612),\"-\",Dados!D612)","v":""},{"$f":"IF(ISERROR(Dados!E612),\"-\",Dados!E612)","v":""},{"$f":"IF(ISERROR(Dados!F612),\"-\",Dados!F612)","v":""},{"$f":"IF(ISERROR(Dados!G612),\"-\",Dados!G612)","v":""},{"$f":"IF(ISERROR(Dados!H612),\"-\",Dados!H612)","v":""},{"$f":"IF(ISERROR(Dados!I612),\"-\",Dados!I612)","v":""},{"$f":"IF(ISERROR(Dados!J612),\"-\",Dados!J612)","v":""},{"$f":"IF(ISERROR(Dados!K612),\"-\",Dados!K612)","v":""},{"$f":"IF(ISERROR(Dados!L612),\"-\",Dados!L612)","v":""},{"$f":"IF(ISERROR(Dados!M612),\"-\",Dados!M612)","v":""},{"$f":"IF(ISERROR(Dados!N612),\"-\",Dados!N612)","v":""},{"$f":"IF(ISERROR(Dados!O612),\"-\",Dados!O612)","v":""},{"$f":"IF(ISERROR(Dados!P612),\"-\",Dados!P612)","v":""},{"$f":"IF(ISERROR(Dados!Q612),\"-\",Dados!Q612)","v":""},{"$f":"IF(ISERROR(Dados!R612),\"-\",Dados!R612)","v":""},{"$f":"IF(ISERROR(Dados!S612),\"-\",Dados!S612)","v":""},{"$f":"IF(ISERROR(Dados!T612),\"-\",Dados!T612)","v":""},{"$f":"IF(ISERROR(Dados!U612),\"-\",Dados!U612)","v":""},{"$f":"IF(ISERROR(Dados!V612),\"-\",Dados!V612)","v":""},{"$f":"IF(ISERROR(Dados!W612),\"-\",Dados!W612)","v":""},{"$f":"IF(ISERROR(Dados!X612),\"-\",Dados!X612)","v":""},{"$f":"IF(ISERROR(Dados!Y612),\"-\",Dados!Y612)","v":""},{"$f":"IF(ISERROR(Dados!Z612),\"-\",Dados!Z612)","v":""},{"$f":"IF(ISERROR(Dados!AA612),\"-\",Dados!AA612)","v":""},{"$f":"IF(ISERROR(Dados!AB612),\"-\",Dados!AB612)","v":""},{"$f":"IF(ISERROR(Dados!AC612),\"-\",Dados!AC612)","v":""},{"$f":"IF(ISERROR(Dados!AD612),\"-\",Dados!AD612)","v":""},{"$f":"IF(ISERROR(Dados!AE612),\"-\",Dados!AE612)","v":""},{"$f":"IF(ISERROR(Dados!AF612),\"-\",Dados!AF612)","v":""},{"$f":"IF(ISERROR(Dados!AG612),\"-\",Dados!AG612)","v":""}]
[{"$f":"IF(ISERROR(Dados!A613),\"-\",Dados!A613)","v":""},{"$f":"IF(ISERROR(Dados!B613),\"-\",Dados!B613)","v":""},{"$f":"IF(ISERROR(Dados!C613),\"-\",Dados!C613)","v":""},{"$f":"IF(ISERROR(Dados!D613),\"-\",Dados!D613)","v":""},{"$f":"IF(ISERROR(Dados!E613),\"-\",Dados!E613)","v":""},{"$f":"IF(ISERROR(Dados!F613),\"-\",Dados!F613)","v":""},{"$f":"IF(ISERROR(Dados!G613),\"-\",Dados!G613)","v":""},{"$f":"IF(ISERROR(Dados!H613),\"-\",Dados!H613)","v":""},{"$f":"IF(ISERROR(Dados!I613),\"-\",Dados!I613)","v":""},{"$f":"IF(ISERROR(Dados!J613),\"-\",Dados!J613)","v":""},{"$f":"IF(ISERROR(Dados!K613),\"-\",Dados!K613)","v":""},{"$f":"IF(ISERROR(Dados!L613),\"-\",Dados!L613)","v":""},{"$f":"IF(ISERROR(Dados!M613),\"-\",Dados!M613)","v":""},{"$f":"IF(ISERROR(Dados!N613),\"-\",Dados!N613)","v":""},{"$f":"IF(ISERROR(Dados!O613),\"-\",Dados!O613)","v":""},{"$f":"IF(ISERROR(Dados!P613),\"-\",Dados!P613)","v":""},{"$f":"IF(ISERROR(Dados!Q613),\"-\",Dados!Q613)","v":""},{"$f":"IF(ISERROR(Dados!R613),\"-\",Dados!R613)","v":""},{"$f":"IF(ISERROR(Dados!S613),\"-\",Dados!S613)","v":""},{"$f":"IF(ISERROR(Dados!T613),\"-\",Dados!T613)","v":""},{"$f":"IF(ISERROR(Dados!U613),\"-\",Dados!U613)","v":""},{"$f":"IF(ISERROR(Dados!V613),\"-\",Dados!V613)","v":""},{"$f":"IF(ISERROR(Dados!W613),\"-\",Dados!W613)","v":""},{"$f":"IF(ISERROR(Dados!X613),\"-\",Dados!X613)","v":""},{"$f":"IF(ISERROR(Dados!Y613),\"-\",Dados!Y613)","v":""},{"$f":"IF(ISERROR(Dados!Z613),\"-\",Dados!Z613)","v":""},{"$f":"IF(ISERROR(Dados!AA613),\"-\",Dados!AA613)","v":""},{"$f":"IF(ISERROR(Dados!AB613),\"-\",Dados!AB613)","v":""},{"$f":"IF(ISERROR(Dados!AC613),\"-\",Dados!AC613)","v":""},{"$f":"IF(ISERROR(Dados!AD613),\"-\",Dados!AD613)","v":""},{"$f":"IF(ISERROR(Dados!AE613),\"-\",Dados!AE613)","v":""},{"$f":"IF(ISERROR(Dados!AF613),\"-\",Dados!AF613)","v":""},{"$f":"IF(ISERROR(Dados!AG613),\"-\",Dados!AG613)","v":""}]
[{"$f":"IF(ISERROR(Dados!A614),\"-\",Dados!A614)","v":""},{"$f":"IF(ISERROR(Dados!B614),\"-\",Dados!B614)","v":""},{"$f":"IF(ISERROR(Dados!C614),\"-\",Dados!C614)","v":""},{"$f":"IF(ISERROR(Dados!D614),\"-\",Dados!D614)","v":""},{"$f":"IF(ISERROR(Dados!E614),\"-\",Dados!E614)","v":""},{"$f":"IF(ISERROR(Dados!F614),\"-\",Dados!F614)","v":""},{"$f":"IF(ISERROR(Dados!G614),\"-\",Dados!G614)","v":""},{"$f":"IF(ISERROR(Dados!H614),\"-\",Dados!H614)","v":""},{"$f":"IF(ISERROR(Dados!I614),\"-\",Dados!I614)","v":""},{"$f":"IF(ISERROR(Dados!J614),\"-\",Dados!J614)","v":""},{"$f":"IF(ISERROR(Dados!K614),\"-\",Dados!K614)","v":""},{"$f":"IF(ISERROR(Dados!L614),\"-\",Dados!L614)","v":""},{"$f":"IF(ISERROR(Dados!M614),\"-\",Dados!M614)","v":""},{"$f":"IF(ISERROR(Dados!N614),\"-\",Dados!N614)","v":""},{"$f":"IF(ISERROR(Dados!O614),\"-\",Dados!O614)","v":""},{"$f":"IF(ISERROR(Dados!P614),\"-\",Dados!P614)","v":""},{"$f":"IF(ISERROR(Dados!Q614),\"-\",Dados!Q614)","v":""},{"$f":"IF(ISERROR(Dados!R614),\"-\",Dados!R614)","v":""},{"$f":"IF(ISERROR(Dados!S614),\"-\",Dados!S614)","v":""},{"$f":"IF(ISERROR(Dados!T614),\"-\",Dados!T614)","v":""},{"$f":"IF(ISERROR(Dados!U614),\"-\",Dados!U614)","v":""},{"$f":"IF(ISERROR(Dados!V614),\"-\",Dados!V614)","v":""},{"$f":"IF(ISERROR(Dados!W614),\"-\",Dados!W614)","v":""},{"$f":"IF(ISERROR(Dados!X614),\"-\",Dados!X614)","v":""},{"$f":"IF(ISERROR(Dados!Y614),\"-\",Dados!Y614)","v":""},{"$f":"IF(ISERROR(Dados!Z614),\"-\",Dados!Z614)","v":""},{"$f":"IF(ISERROR(Dados!AA614),\"-\",Dados!AA614)","v":""},{"$f":"IF(ISERROR(Dados!AB614),\"-\",Dados!AB614)","v":""},{"$f":"IF(ISERROR(Dados!AC614),\"-\",Dados!AC614)","v":""},{"$f":"IF(ISERROR(Dados!AD614),\"-\",Dados!AD614)","v":""},{"$f":"IF(ISERROR(Dados!AE614),\"-\",Dados!AE614)","v":""},{"$f":"IF(ISERROR(Dados!AF614),\"-\",Dados!AF614)","v":""},{"$f":"IF(ISERROR(Dados!AG614),\"-\",Dados!AG614)","v":""}]
[{"$f":"IF(ISERROR(Dados!A615),\"-\",Dados!A615)","v":""},{"$f":"IF(ISERROR(Dados!B615),\"-\",Dados!B615)","v":""},{"$f":"IF(ISERROR(Dados!C615),\"-\",Dados!C615)","v":""},{"$f":"IF(ISERROR(Dados!D615),\"-\",Dados!D615)","v":""},{"$f":"IF(ISERROR(Dados!E615),\"-\",Dados!E615)","v":""},{"$f":"IF(ISERROR(Dados!F615),\"-\",Dados!F615)","v":""},{"$f":"IF(ISERROR(Dados!G615),\"-\",Dados!G615)","v":""},{"$f":"IF(ISERROR(Dados!H615),\"-\",Dados!H615)","v":""},{"$f":"IF(ISERROR(Dados!I615),\"-\",Dados!I615)","v":""},{"$f":"IF(ISERROR(Dados!J615),\"-\",Dados!J615)","v":""},{"$f":"IF(ISERROR(Dados!K615),\"-\",Dados!K615)","v":""},{"$f":"IF(ISERROR(Dados!L615),\"-\",Dados!L615)","v":""},{"$f":"IF(ISERROR(Dados!M615),\"-\",Dados!M615)","v":""},{"$f":"IF(ISERROR(Dados!N615),\"-\",Dados!N615)","v":""},{"$f":"IF(ISERROR(Dados!O615),\"-\",Dados!O615)","v":""},{"$f":"IF(ISERROR(Dados!P615),\"-\",Dados!P615)","v":""},{"$f":"IF(ISERROR(Dados!Q615),\"-\",Dados!Q615)","v":""},{"$f":"IF(ISERROR(Dados!R615),\"-\",Dados!R615)","v":""},{"$f":"IF(ISERROR(Dados!S615),\"-\",Dados!S615)","v":""},{"$f":"IF(ISERROR(Dados!T615),\"-\",Dados!T615)","v":""},{"$f":"IF(ISERROR(Dados!U615),\"-\",Dados!U615)","v":""},{"$f":"IF(ISERROR(Dados!V615),\"-\",Dados!V615)","v":""},{"$f":"IF(ISERROR(Dados!W615),\"-\",Dados!W615)","v":""},{"$f":"IF(ISERROR(Dados!X615),\"-\",Dados!X615)","v":""},{"$f":"IF(ISERROR(Dados!Y615),\"-\",Dados!Y615)","v":""},{"$f":"IF(ISERROR(Dados!Z615),\"-\",Dados!Z615)","v":""},{"$f":"IF(ISERROR(Dados!AA615),\"-\",Dados!AA615)","v":""},{"$f":"IF(ISERROR(Dados!AB615),\"-\",Dados!AB615)","v":""},{"$f":"IF(ISERROR(Dados!AC615),\"-\",Dados!AC615)","v":""},{"$f":"IF(ISERROR(Dados!AD615),\"-\",Dados!AD615)","v":""},{"$f":"IF(ISERROR(Dados!AE615),\"-\",Dados!AE615)","v":""},{"$f":"IF(ISERROR(Dados!AF615),\"-\",Dados!AF615)","v":""},{"$f":"IF(ISERROR(Dados!AG615),\"-\",Dados!AG615)","v":""}]
[{"$f":"IF(ISERROR(Dados!A616),\"-\",Dados!A616)","v":""},{"$f":"IF(ISERROR(Dados!B616),\"-\",Dados!B616)","v":""},{"$f":"IF(ISERROR(Dados!C616),\"-\",Dados!C616)","v":""},{"$f":"IF(ISERROR(Dados!D616),\"-\",Dados!D616)","v":""},{"$f":"IF(ISERROR(Dados!E616),\"-\",Dados!E616)","v":""},{"$f":"IF(ISERROR(Dados!F616),\"-\",Dados!F616)","v":""},{"$f":"IF(ISERROR(Dados!G616),\"-\",Dados!G616)","v":""},{"$f":"IF(ISERROR(Dados!H616),\"-\",Dados!H616)","v":""},{"$f":"IF(ISERROR(Dados!I616),\"-\",Dados!I616)","v":""},{"$f":"IF(ISERROR(Dados!J616),\"-\",Dados!J616)","v":""},{"$f":"IF(ISERROR(Dados!K616),\"-\",Dados!K616)","v":""},{"$f":"IF(ISERROR(Dados!L616),\"-\",Dados!L616)","v":""},{"$f":"IF(ISERROR(Dados!M616),\"-\",Dados!M616)","v":""},{"$f":"IF(ISERROR(Dados!N616),\"-\",Dados!N616)","v":""},{"$f":"IF(ISERROR(Dados!O616),\"-\",Dados!O616)","v":""},{"$f":"IF(ISERROR(Dados!P616),\"-\",Dados!P616)","v":""},{"$f":"IF(ISERROR(Dados!Q616),\"-\",Dados!Q616)","v":""},{"$f":"IF(ISERROR(Dados!R616),\"-\",Dados!R616)","v":""},{"$f":"IF(ISERROR(Dados!S616),\"-\",Dados!S616)","v":""},{"$f":"IF(ISERROR(Dados!T616),\"-\",Dados!T616)","v":""},{"$f":"IF(ISERROR(Dados!U616),\"-\",Dados!U616)","v":""},{"$f":"IF(ISERROR(Dados!V616),\"-\",Dados!V616)","v":""},{"$f":"IF(ISERROR(Dados!W616),\"-\",Dados!W616)","v":""},{"$f":"IF(ISERROR(Dados!X616),\"-\",Dados!X616)","v":""},{"$f":"IF(ISERROR(Dados!Y616),\"-\",Dados!Y616)","v":""},{"$f":"IF(ISERROR(Dados!Z616),\"-\",Dados!Z616)","v":""},{"$f":"IF(ISERROR(Dados!AA616),\"-\",Dados!AA616)","v":""},{"$f":"IF(ISERROR(Dados!AB616),\"-\",Dados!AB616)","v":""},{"$f":"IF(ISERROR(Dados!AC616),\"-\",Dados!AC616)","v":""},{"$f":"IF(ISERROR(Dados!AD616),\"-\",Dados!AD616)","v":""},{"$f":"IF(ISERROR(Dados!AE616),\"-\",Dados!AE616)","v":""},{"$f":"IF(ISERROR(Dados!AF616),\"-\",Dados!AF616)","v":""},{"$f":"IF(ISERROR(Dados!AG616),\"-\",Dados!AG616)","v":""}]
[{"$f":"IF(ISERROR(Dados!A617),\"-\",Dados!A617)","v":""},{"$f":"IF(ISERROR(Dados!B617),\"-\",Dados!B617)","v":""},{"$f":"IF(ISERROR(Dados!C617),\"-\",Dados!C617)","v":""},{"$f":"IF(ISERROR(Dados!D617),\"-\",Dados!D617)","v":""},{"$f":"IF(ISERROR(Dados!E617),\"-\",Dados!E617)","v":""},{"$f":"IF(ISERROR(Dados!F617),\"-\",Dados!F617)","v":""},{"$f":"IF(ISERROR(Dados!G617),\"-\",Dados!G617)","v":""},{"$f":"IF(ISERROR(Dados!H617),\"-\",Dados!H617)","v":""},{"$f":"IF(ISERROR(Dados!I617),\"-\",Dados!I617)","v":""},{"$f":"IF(ISERROR(Dados!J617),\"-\",Dados!J617)","v":""},{"$f":"IF(ISERROR(Dados!K617),\"-\",Dados!K617)","v":""},{"$f":"IF(ISERROR(Dados!L617),\"-\",Dados!L617)","v":""},{"$f":"IF(ISERROR(Dados!M617),\"-\",Dados!M617)","v":""},{"$f":"IF(ISERROR(Dados!N617),\"-\",Dados!N617)","v":""},{"$f":"IF(ISERROR(Dados!O617),\"-\",Dados!O617)","v":""},{"$f":"IF(ISERROR(Dados!P617),\"-\",Dados!P617)","v":""},{"$f":"IF(ISERROR(Dados!Q617),\"-\",Dados!Q617)","v":""},{"$f":"IF(ISERROR(Dados!R617),\"-\",Dados!R617)","v":""},{"$f":"IF(ISERROR(Dados!S617),\"-\",Dados!S617)","v":""},{"$f":"IF(ISERROR(Dados!T617),\"-\",Dados!T617)","v":""},{"$f":"IF(ISERROR(Dados!U617),\"-\",Dados!U617)","v":""},{"$f":"IF(ISERROR(Dados!V617),\"-\",Dados!V617)","v":""},{"$f":"IF(ISERROR(Dados!W617),\"-\",Dados!W617)","v":""},{"$f":"IF(ISERROR(Dados!X617),\"-\",Dados!X617)","v":""},{"$f":"IF(ISERROR(Dados!Y617),\"-\",Dados!Y617)","v":""},{"$f":"IF(ISERROR(Dados!Z617),\"-\",Dados!Z617)","v":""},{"$f":"IF(ISERROR(Dados!AA617),\"-\",Dados!AA617)","v":""},{"$f":"IF(ISERROR(Dados!AB617),\"-\",Dados!AB617)","v":""},{"$f":"IF(ISERROR(Dados!AC617),\"-\",Dados!AC617)","v":""},{"$f":"IF(ISERROR(Dados!AD617),\"-\",Dados!AD617)","v":""},{"$f":"IF(ISERROR(Dados!AE617),\"-\",Dados!AE617)","v":""},{"$f":"IF(ISERROR(Dados!AF617),\"-\",Dados!AF617)","v":""},{"$f":"IF(ISERROR(Dados!AG617),\"-\",Dados!AG617)","v":""}]
[{"$f":"IF(ISERROR(Dados!A618),\"-\",Dados!A618)","v":""},{"$f":"IF(ISERROR(Dados!B618),\"-\",Dados!B618)","v":""},{"$f":"IF(ISERROR(Dados!C618),\"-\",Dados!C618)","v":""},{"$f":"IF(ISERROR(Dados!D618),\"-\",Dados!D618)","v":""},{"$f":"IF(ISERROR(Dados!E618),\"-\",Dados!E618)","v":""},{"$f":"IF(ISERROR(Dados!F618),\"-\",Dados!F618)","v":""},{"$f":"IF(ISERROR(Dados!G618),\"-\",Dados!G618)","v":""},{"$f":"IF(ISERROR(Dados!H618),\"-\",Dados!H618)","v":""},{"$f":"IF(ISERROR(Dados!I618),\"-\",Dados!I618)","v":""},{"$f":"IF(ISERROR(Dados!J618),\"-\",Dados!J618)","v":""},{"$f":"IF(ISERROR(Dados!K618),\"-\",Dados!K618)","v":""},{"$f":"IF(ISERROR(Dados!L618),\"-\",Dados!L618)","v":""},{"$f":"IF(ISERROR(Dados!M618),\"-\",Dados!M618)","v":""},{"$f":"IF(ISERROR(Dados!N618),\"-\",Dados!N618)","v":""},{"$f":"IF(ISERROR(Dados!O618),\"-\",Dados!O618)","v":""},{"$f":"IF(ISERROR(Dados!P618),\"-\",Dados!P618)","v":""},{"$f":"IF(ISERROR(Dados!Q618),\"-\",Dados!Q618)","v":""},{"$f":"IF(ISERROR(Dados!R618),\"-\",Dados!R618)","v":""},{"$f":"IF(ISERROR(Dados!S618),\"-\",Dados!S618)","v":""},{"$f":"IF(ISERROR(Dados!T618),\"-\",Dados!T618)","v":""},{"$f":"IF(ISERROR(Dados!U618),\"-\",Dados!U618)","v":""},{"$f":"IF(ISERROR(Dados!V618),\"-\",Dados!V618)","v":""},{"$f":"IF(ISERROR(Dados!W618),\"-\",Dados!W618)","v":""},{"$f":"IF(ISERROR(Dados!X618),\"-\",Dados!X618)","v":""},{"$f":"IF(ISERROR(Dados!Y618),\"-\",Dados!Y618)","v":""},{"$f":"IF(ISERROR(Dados!Z618),\"-\",Dados!Z618)","v":""},{"$f":"IF(ISERROR(Dados!AA618),\"-\",Dados!AA618)","v":""},{"$f":"IF(ISERROR(Dados!AB618),\"-\",Dados!AB618)","v":""},{"$f":"IF(ISERROR(Dados!AC618),\"-\",Dados!AC618)","v":""},{"$f":"IF(ISERROR(Dados!AD618),\"-\",Dados!AD618)","v":""},{"$f":"IF(ISERROR(Dados!AE618),\"-\",Dados!AE618)","v":""},{"$f":"IF(ISERROR(Dados!AF618),\"-\",Dados!AF618)","v":""},{"$f":"IF(ISERROR(Dados!AG618),\"-\",Dados!AG618)","v":""}]
[{"$f":"IF(ISERROR(Dados!A619),\"-\",Dados!A619)","v":""},{"$f":"IF(ISERROR(Dados!B619),\"-\",Dados!B619)","v":""},{"$f":"IF(ISERROR(Dados!C619),\"-\",Dados!C619)","v":""},{"$f":"IF(ISERROR(Dados!D619),\"-\",Dados!D619)","v":""},{"$f":"IF(ISERROR(Dados!E619),\"-\",Dados!E619)","v":""},{"$f":"IF(ISERROR(Dados!F619),\"-\",Dados!F619)","v":""},{"$f":"IF(ISERROR(Dados!G619),\"-\",Dados!G619)","v":""},{"$f":"IF(ISERROR(Dados!H619),\"-\",Dados!H619)","v":""},{"$f":"IF(ISERROR(Dados!I619),\"-\",Dados!I619)","v":""},{"$f":"IF(ISERROR(Dados!J619),\"-\",Dados!J619)","v":""},{"$f":"IF(ISERROR(Dados!K619),\"-\",Dados!K619)","v":""},{"$f":"IF(ISERROR(Dados!L619),\"-\",Dados!L619)","v":""},{"$f":"IF(ISERROR(Dados!M619),\"-\",Dados!M619)","v":""},{"$f":"IF(ISERROR(Dados!N619),\"-\",Dados!N619)","v":""},{"$f":"IF(ISERROR(Dados!O619),\"-\",Dados!O619)","v":""},{"$f":"IF(ISERROR(Dados!P619),\"-\",Dados!P619)","v":""},{"$f":"IF(ISERROR(Dados!Q619),\"-\",Dados!Q619)","v":""},{"$f":"IF(ISERROR(Dados!R619),\"-\",Dados!R619)","v":""},{"$f":"IF(ISERROR(Dados!S619),\"-\",Dados!S619)","v":""},{"$f":"IF(ISERROR(Dados!T619),\"-\",Dados!T619)","v":""},{"$f":"IF(ISERROR(Dados!U619),\"-\",Dados!U619)","v":""},{"$f":"IF(ISERROR(Dados!V619),\"-\",Dados!V619)","v":""},{"$f":"IF(ISERROR(Dados!W619),\"-\",Dados!W619)","v":""},{"$f":"IF(ISERROR(Dados!X619),\"-\",Dados!X619)","v":""},{"$f":"IF(ISERROR(Dados!Y619),\"-\",Dados!Y619)","v":""},{"$f":"IF(ISERROR(Dados!Z619),\"-\",Dados!Z619)","v":""},{"$f":"IF(ISERROR(Dados!AA619),\"-\",Dados!AA619)","v":""},{"$f":"IF(ISERROR(Dados!AB619),\"-\",Dados!AB619)","v":""},{"$f":"IF(ISERROR(Dados!AC619),\"-\",Dados!AC619)","v":""},{"$f":"IF(ISERROR(Dados!AD619),\"-\",Dados!AD619)","v":""},{"$f":"IF(ISERROR(Dados!AE619),\"-\",Dados!AE619)","v":""},{"$f":"IF(ISERROR(Dados!AF619),\"-\",Dados!AF619)","v":""},{"$f":"IF(ISERROR(Dados!AG619),\"-\",Dados!AG619)","v":""}]
[{"$f":"IF(ISERROR(Dados!A620),\"-\",Dados!A620)","v":""},{"$f":"IF(ISERROR(Dados!B620),\"-\",Dados!B620)","v":""},{"$f":"IF(ISERROR(Dados!C620),\"-\",Dados!C620)","v":""},{"$f":"IF(ISERROR(Dados!D620),\"-\",Dados!D620)","v":""},{"$f":"IF(ISERROR(Dados!E620),\"-\",Dados!E620)","v":""},{"$f":"IF(ISERROR(Dados!F620),\"-\",Dados!F620)","v":""},{"$f":"IF(ISERROR(Dados!G620),\"-\",Dados!G620)","v":""},{"$f":"IF(ISERROR(Dados!H620),\"-\",Dados!H620)","v":""},{"$f":"IF(ISERROR(Dados!I620),\"-\",Dados!I620)","v":""},{"$f":"IF(ISERROR(Dados!J620),\"-\",Dados!J620)","v":""},{"$f":"IF(ISERROR(Dados!K620),\"-\",Dados!K620)","v":""},{"$f":"IF(ISERROR(Dados!L620),\"-\",Dados!L620)","v":""},{"$f":"IF(ISERROR(Dados!M620),\"-\",Dados!M620)","v":""},{"$f":"IF(ISERROR(Dados!N620),\"-\",Dados!N620)","v":""},{"$f":"IF(ISERROR(Dados!O620),\"-\",Dados!O620)","v":""},{"$f":"IF(ISERROR(Dados!P620),\"-\",Dados!P620)","v":""},{"$f":"IF(ISERROR(Dados!Q620),\"-\",Dados!Q620)","v":""},{"$f":"IF(ISERROR(Dados!R620),\"-\",Dados!R620)","v":""},{"$f":"IF(ISERROR(Dados!S620),\"-\",Dados!S620)","v":""},{"$f":"IF(ISERROR(Dados!T620),\"-\",Dados!T620)","v":""},{"$f":"IF(ISERROR(Dados!U620),\"-\",Dados!U620)","v":""},{"$f":"IF(ISERROR(Dados!V620),\"-\",Dados!V620)","v":""},{"$f":"IF(ISERROR(Dados!W620),\"-\",Dados!W620)","v":""},{"$f":"IF(ISERROR(Dados!X620),\"-\",Dados!X620)","v":""},{"$f":"IF(ISERROR(Dados!Y620),\"-\",Dados!Y620)","v":""},{"$f":"IF(ISERROR(Dados!Z620),\"-\",Dados!Z620)","v":""},{"$f":"IF(ISERROR(Dados!AA620),\"-\",Dados!AA620)","v":""},{"$f":"IF(ISERROR(Dados!AB620),\"-\",Dados!AB620)","v":""},{"$f":"IF(ISERROR(Dados!AC620),\"-\",Dados!AC620)","v":""},{"$f":"IF(ISERROR(Dados!AD620),\"-\",Dados!AD620)","v":""},{"$f":"IF(ISERROR(Dados!AE620),\"-\",Dados!AE620)","v":""},{"$f":"IF(ISERROR(Dados!AF620),\"-\",Dados!AF620)","v":""},{"$f":"IF(ISERROR(Dados!AG620),\"-\",Dados!AG620)","v":""}]
[{"$f":"IF(ISERROR(Dados!A621),\"-\",Dados!A621)","v":""},{"$f":"IF(ISERROR(Dados!B621),\"-\",Dados!B621)","v":""},{"$f":"IF(ISERROR(Dados!C621),\"-\",Dados!C621)","v":""},{"$f":"IF(ISERROR(Dados!D621),\"-\",Dados!D621)","v":""},{"$f":"IF(ISERROR(Dados!E621),\"-\",Dados!E621)","v":""},{"$f":"IF(ISERROR(Dados!F621),\"-\",Dados!F621)","v":""},{"$f":"IF(ISERROR(Dados!G621),\"-\",Dados!G621)","v":""},{"$f":"IF(ISERROR(Dados!H621),\"-\",Dados!H621)","v":""},{"$f":"IF(ISERROR(Dados!I621),\"-\",Dados!I621)","v":""},{"$f":"IF(ISERROR(Dados!J621),\"-\",Dados!J621)","v":""},{"$f":"IF(ISERROR(Dados!K621),\"-\",Dados!K621)","v":""},{"$f":"IF(ISERROR(Dados!L621),\"-\",Dados!L621)","v":""},{"$f":"IF(ISERROR(Dados!M621),\"-\",Dados!M621)","v":""},{"$f":"IF(ISERROR(Dados!N621),\"-\",Dados!N621)","v":""},{"$f":"IF(ISERROR(Dados!O621),\"-\",Dados!O621)","v":""},{"$f":"IF(ISERROR(Dados!P621),\"-\",Dados!P621)","v":""},{"$f":"IF(ISERROR(Dados!Q621),\"-\",Dados!Q621)","v":""},{"$f":"IF(ISERROR(Dados!R621),\"-\",Dados!R621)","v":""},{"$f":"IF(ISERROR(Dados!S621),\"-\",Dados!S621)","v":""},{"$f":"IF(ISERROR(Dados!T621),\"-\",Dados!T621)","v":""},{"$f":"IF(ISERROR(Dados!U621),\"-\",Dados!U621)","v":""},{"$f":"IF(ISERROR(Dados!V621),\"-\",Dados!V621)","v":""},{"$f":"IF(ISERROR(Dados!W621),\"-\",Dados!W621)","v":""},{"$f":"IF(ISERROR(Dados!X621),\"-\",Dados!X621)","v":""},{"$f":"IF(ISERROR(Dados!Y621),\"-\",Dados!Y621)","v":""},{"$f":"IF(ISERROR(Dados!Z621),\"-\",Dados!Z621)","v":""},{"$f":"IF(ISERROR(Dados!AA621),\"-\",Dados!AA621)","v":""},{"$f":"IF(ISERROR(Dados!AB621),\"-\",Dados!AB621)","v":""},{"$f":"IF(ISERROR(Dados!AC621),\"-\",Dados!AC621)","v":""},{"$f":"IF(ISERROR(Dados!AD621),\"-\",Dados!AD621)","v":""},{"$f":"IF(ISERROR(Dados!AE621),\"-\",Dados!AE621)","v":""},{"$f":"IF(ISERROR(Dados!AF621),\"-\",Dados!AF621)","v":""},{"$f":"IF(ISERROR(Dados!AG621),\"-\",Dados!AG621)","v":""}]
[{"$f":"IF(ISERROR(Dados!A622),\"-\",Dados!A622)","v":""},{"$f":"IF(ISERROR(Dados!B622),\"-\",Dados!B622)","v":""},{"$f":"IF(ISERROR(Dados!C622),\"-\",Dados!C622)","v":""},{"$f":"IF(ISERROR(Dados!D622),\"-\",Dados!D622)","v":""},{"$f":"IF(ISERROR(Dados!E622),\"-\",Dados!E622)","v":""},{"$f":"IF(ISERROR(Dados!F622),\"-\",Dados!F622)","v":""},{"$f":"IF(ISERROR(Dados!G622),\"-\",Dados!G622)","v":""},{"$f":"IF(ISERROR(Dados!H622),\"-\",Dados!H622)","v":""},{"$f":"IF(ISERROR(Dados!I622),\"-\",Dados!I622)","v":""},{"$f":"IF(ISERROR(Dados!J622),\"-\",Dados!J622)","v":""},{"$f":"IF(ISERROR(Dados!K622),\"-\",Dados!K622)","v":""},{"$f":"IF(ISERROR(Dados!L622),\"-\",Dados!L622)","v":""},{"$f":"IF(ISERROR(Dados!M622),\"-\",Dados!M622)","v":""},{"$f":"IF(ISERROR(Dados!N622),\"-\",Dados!N622)","v":""},{"$f":"IF(ISERROR(Dados!O622),\"-\",Dados!O622)","v":""},{"$f":"IF(ISERROR(Dados!P622),\"-\",Dados!P622)","v":""},{"$f":"IF(ISERROR(Dados!Q622),\"-\",Dados!Q622)","v":""},{"$f":"IF(ISERROR(Dados!R622),\"-\",Dados!R622)","v":""},{"$f":"IF(ISERROR(Dados!S622),\"-\",Dados!S622)","v":""},{"$f":"IF(ISERROR(Dados!T622),\"-\",Dados!T622)","v":""},{"$f":"IF(ISERROR(Dados!U622),\"-\",Dados!U622)","v":""},{"$f":"IF(ISERROR(Dados!V622),\"-\",Dados!V622)","v":""},{"$f":"IF(ISERROR(Dados!W622),\"-\",Dados!W622)","v":""},{"$f":"IF(ISERROR(Dados!X622),\"-\",Dados!X622)","v":""},{"$f":"IF(ISERROR(Dados!Y622),\"-\",Dados!Y622)","v":""},{"$f":"IF(ISERROR(Dados!Z622),\"-\",Dados!Z622)","v":""},{"$f":"IF(ISERROR(Dados!AA622),\"-\",Dados!AA622)","v":""},{"$f":"IF(ISERROR(Dados!AB622),\"-\",Dados!AB622)","v":""},{"$f":"IF(ISERROR(Dados!AC622),\"-\",Dados!AC622)","v":""},{"$f":"IF(ISERROR(Dados!AD622),\"-\",Dados!AD622)","v":""},{"$f":"IF(ISERROR(Dados!AE622),\"-\",Dados!AE622)","v":""},{"$f":"IF(ISERROR(Dados!AF622),\"-\",Dados!AF622)","v":""},{"$f":"IF(ISERROR(Dados!AG622),\"-\",Dados!AG622)","v":""}]
[{"$f":"IF(ISERROR(Dados!A623),\"-\",Dados!A623)","v":""},{"$f":"IF(ISERROR(Dados!B623),\"-\",Dados!B623)","v":""},{"$f":"IF(ISERROR(Dados!C623),\"-\",Dados!C623)","v":""},{"$f":"IF(ISERROR(Dados!D623),\"-\",Dados!D623)","v":""},{"$f":"IF(ISERROR(Dados!E623),\"-\",Dados!E623)","v":""},{"$f":"IF(ISERROR(Dados!F623),\"-\",Dados!F623)","v":""},{"$f":"IF(ISERROR(Dados!G623),\"-\",Dados!G623)","v":""},{"$f":"IF(ISERROR(Dados!H623),\"-\",Dados!H623)","v":""},{"$f":"IF(ISERROR(Dados!I623),\"-\",Dados!I623)","v":""},{"$f":"IF(ISERROR(Dados!J623),\"-\",Dados!J623)","v":""},{"$f":"IF(ISERROR(Dados!K623),\"-\",Dados!K623)","v":""},{"$f":"IF(ISERROR(Dados!L623),\"-\",Dados!L623)","v":""},{"$f":"IF(ISERROR(Dados!M623),\"-\",Dados!M623)","v":""},{"$f":"IF(ISERROR(Dados!N623),\"-\",Dados!N623)","v":""},{"$f":"IF(ISERROR(Dados!O623),\"-\",Dados!O623)","v":""},{"$f":"IF(ISERROR(Dados!P623),\"-\",Dados!P623)","v":""},{"$f":"IF(ISERROR(Dados!Q623),\"-\",Dados!Q623)","v":""},{"$f":"IF(ISERROR(Dados!R623),\"-\",Dados!R623)","v":""},{"$f":"IF(ISERROR(Dados!S623),\"-\",Dados!S623)","v":""},{"$f":"IF(ISERROR(Dados!T623),\"-\",Dados!T623)","v":""},{"$f":"IF(ISERROR(Dados!U623),\"-\",Dados!U623)","v":""},{"$f":"IF(ISERROR(Dados!V623),\"-\",Dados!V623)","v":""},{"$f":"IF(ISERROR(Dados!W623),\"-\",Dados!W623)","v":""},{"$f":"IF(ISERROR(Dados!X623),\"-\",Dados!X623)","v":""},{"$f":"IF(ISERROR(Dados!Y623),\"-\",Dados!Y623)","v":""},{"$f":"IF(ISERROR(Dados!Z623),\"-\",Dados!Z623)","v":""},{"$f":"IF(ISERROR(Dados!AA623),\"-\",Dados!AA623)","v":""},{"$f":"IF(ISERROR(Dados!AB623),\"-\",Dados!AB623)","v":""},{"$f":"IF(ISERROR(Dados!AC623),\"-\",Dados!AC623)","v":""},{"$f":"IF(ISERROR(Dados!AD623),\"-\",Dados!AD623)","v":""},{"$f":"IF(ISERROR(Dados!AE623),\"-\",Dados!AE623)","v":""},{"$f":"IF(ISERROR(Dados!AF623),\"-\",Dados!AF623)","v":""},{"$f":"IF(ISERROR(Dados!AG623),\"-\",Dados!AG623)","v":""}]
[{"$f":"IF(ISERROR(Dados!A624),\"-\",Dados!A624)","v":""},{"$f":"IF(ISERROR(Dados!B624),\"-\",Dados!B624)","v":""},{"$f":"IF(ISERROR(Dados!C624),\"-\",Dados!C624)","v":""},{"$f":"IF(ISERROR(Dados!D624),\"-\",Dados!D624)","v":""},{"$f":"IF(ISERROR(Dados!E624),\"-\",Dados!E624)","v":""},{"$f":"IF(ISERROR(Dados!F624),\"-\",Dados!F624)","v":""},{"$f":"IF(ISERROR(Dados!G624),\"-\",Dados!G624)","v":""},{"$f":"IF(ISERROR(Dados!H624),\"-\",Dados!H624)","v":""},{"$f":"IF(ISERROR(Dados!I624),\"-\",Dados!I624)","v":""},{"$f":"IF(ISERROR(Dados!J624),\"-\",Dados!J624)","v":""},{"$f":"IF(ISERROR(Dados!K624),\"-\",Dados!K624)","v":""},{"$f":"IF(ISERROR(Dados!L624),\"-\",Dados!L624)","v":""},{"$f":"IF(ISERROR(Dados!M624),\"-\",Dados!M624)","v":""},{"$f":"IF(ISERROR(Dados!N624),\"-\",Dados!N624)","v":""},{"$f":"IF(ISERROR(Dados!O624),\"-\",Dados!O624)","v":""},{"$f":"IF(ISERROR(Dados!P624),\"-\",Dados!P624)","v":""},{"$f":"IF(ISERROR(Dados!Q624),\"-\",Dados!Q624)","v":""},{"$f":"IF(ISERROR(Dados!R624),\"-\",Dados!R624)","v":""},{"$f":"IF(ISERROR(Dados!S624),\"-\",Dados!S624)","v":""},{"$f":"IF(ISERROR(Dados!T624),\"-\",Dados!T624)","v":""},{"$f":"IF(ISERROR(Dados!U624),\"-\",Dados!U624)","v":""},{"$f":"IF(ISERROR(Dados!V624),\"-\",Dados!V624)","v":""},{"$f":"IF(ISERROR(Dados!W624),\"-\",Dados!W624)","v":""},{"$f":"IF(ISERROR(Dados!X624),\"-\",Dados!X624)","v":""},{"$f":"IF(ISERROR(Dados!Y624),\"-\",Dados!Y624)","v":""},{"$f":"IF(ISERROR(Dados!Z624),\"-\",Dados!Z624)","v":""},{"$f":"IF(ISERROR(Dados!AA624),\"-\",Dados!AA624)","v":""},{"$f":"IF(ISERROR(Dados!AB624),\"-\",Dados!AB624)","v":""},{"$f":"IF(ISERROR(Dados!AC624),\"-\",Dados!AC624)","v":""},{"$f":"IF(ISERROR(Dados!AD624),\"-\",Dados!AD624)","v":""},{"$f":"IF(ISERROR(Dados!AE624),\"-\",Dados!AE624)","v":""},{"$f":"IF(ISERROR(Dados!AF624),\"-\",Dados!AF624)","v":""},{"$f":"IF(ISERROR(Dados!AG624),\"-\",Dados!AG624)","v":""}]
[{"$f":"IF(ISERROR(Dados!A625),\"-\",Dados!A625)","v":""},{"$f":"IF(ISERROR(Dados!B625),\"-\",Dados!B625)","v":""},{"$f":"IF(ISERROR(Dados!C625),\"-\",Dados!C625)","v":""},{"$f":"IF(ISERROR(Dados!D625),\"-\",Dados!D625)","v":""},{"$f":"IF(ISERROR(Dados!E625),\"-\",Dados!E625)","v":""},{"$f":"IF(ISERROR(Dados!F625),\"-\",Dados!F625)","v":""},{"$f":"IF(ISERROR(Dados!G625),\"-\",Dados!G625)","v":""},{"$f":"IF(ISERROR(Dados!H625),\"-\",Dados!H625)","v":""},{"$f":"IF(ISERROR(Dados!I625),\"-\",Dados!I625)","v":""},{"$f":"IF(ISERROR(Dados!J625),\"-\",Dados!J625)","v":""},{"$f":"IF(ISERROR(Dados!K625),\"-\",Dados!K625)","v":""},{"$f":"IF(ISERROR(Dados!L625),\"-\",Dados!L625)","v":""},{"$f":"IF(ISERROR(Dados!M625),\"-\",Dados!M625)","v":""},{"$f":"IF(ISERROR(Dados!N625),\"-\",Dados!N625)","v":""},{"$f":"IF(ISERROR(Dados!O625),\"-\",Dados!O625)","v":""},{"$f":"IF(ISERROR(Dados!P625),\"-\",Dados!P625)","v":""},{"$f":"IF(ISERROR(Dados!Q625),\"-\",Dados!Q625)","v":""},{"$f":"IF(ISERROR(Dados!R625),\"-\",Dados!R625)","v":""},{"$f":"IF(ISERROR(Dados!S625),\"-\",Dados!S625)","v":""},{"$f":"IF(ISERROR(Dados!T625),\"-\",Dados!T625)","v":""},{"$f":"IF(ISERROR(Dados!U625),\"-\",Dados!U625)","v":""},{"$f":"IF(ISERROR(Dados!V625),\"-\",Dados!V625)","v":""},{"$f":"IF(ISERROR(Dados!W625),\"-\",Dados!W625)","v":""},{"$f":"IF(ISERROR(Dados!X625),\"-\",Dados!X625)","v":""},{"$f":"IF(ISERROR(Dados!Y625),\"-\",Dados!Y625)","v":""},{"$f":"IF(ISERROR(Dados!Z625),\"-\",Dados!Z625)","v":""},{"$f":"IF(ISERROR(Dados!AA625),\"-\",Dados!AA625)","v":""},{"$f":"IF(ISERROR(Dados!AB625),\"-\",Dados!AB625)","v":""},{"$f":"IF(ISERROR(Dados!AC625),\"-\",Dados!AC625)","v":""},{"$f":"IF(ISERROR(Dados!AD625),\"-\",Dados!AD625)","v":""},{"$f":"IF(ISERROR(Dados!AE625),\"-\",Dados!AE625)","v":""},{"$f":"IF(ISERROR(Dados!AF625),\"-\",Dados!AF625)","v":""},{"$f":"IF(ISERROR(Dados!AG625),\"-\",Dados!AG625)","v":""}]
[{"$f":"IF(ISERROR(Dados!A626),\"-\",Dados!A626)","v":""},{"$f":"IF(ISERROR(Dados!B626),\"-\",Dados!B626)","v":""},{"$f":"IF(ISERROR(Dados!C626),\"-\",Dados!C626)","v":""},{"$f":"IF(ISERROR(Dados!D626),\"-\",Dados!D626)","v":""},{"$f":"IF(ISERROR(Dados!E626),\"-\",Dados!E626)","v":""},{"$f":"IF(ISERROR(Dados!F626),\"-\",Dados!F626)","v":""},{"$f":"IF(ISERROR(Dados!G626),\"-\",Dados!G626)","v":""},{"$f":"IF(ISERROR(Dados!H626),\"-\",Dados!H626)","v":""},{"$f":"IF(ISERROR(Dados!I626),\"-\",Dados!I626)","v":""},{"$f":"IF(ISERROR(Dados!J626),\"-\",Dados!J626)","v":""},{"$f":"IF(ISERROR(Dados!K626),\"-\",Dados!K626)","v":""},{"$f":"IF(ISERROR(Dados!L626),\"-\",Dados!L626)","v":""},{"$f":"IF(ISERROR(Dados!M626),\"-\",Dados!M626)","v":""},{"$f":"IF(ISERROR(Dados!N626),\"-\",Dados!N626)","v":""},{"$f":"IF(ISERROR(Dados!O626),\"-\",Dados!O626)","v":""},{"$f":"IF(ISERROR(Dados!P626),\"-\",Dados!P626)","v":""},{"$f":"IF(ISERROR(Dados!Q626),\"-\",Dados!Q626)","v":""},{"$f":"IF(ISERROR(Dados!R626),\"-\",Dados!R626)","v":""},{"$f":"IF(ISERROR(Dados!S626),\"-\",Dados!S626)","v":""},{"$f":"IF(ISERROR(Dados!T626),\"-\",Dados!T626)","v":""},{"$f":"IF(ISERROR(Dados!U626),\"-\",Dados!U626)","v":""},{"$f":"IF(ISERROR(Dados!V626),\"-\",Dados!V626)","v":""},{"$f":"IF(ISERROR(Dados!W626),\"-\",Dados!W626)","v":""},{"$f":"IF(ISERROR(Dados!X626),\"-\",Dados!X626)","v":""},{"$f":"IF(ISERROR(Dados!Y626),\"-\",Dados!Y626)","v":""},{"$f":"IF(ISERROR(Dados!Z626),\"-\",Dados!Z626)","v":""},{"$f":"IF(ISERROR(Dados!AA626),\"-\",Dados!AA626)","v":""},{"$f":"IF(ISERROR(Dados!AB626),\"-\",Dados!AB626)","v":""},{"$f":"IF(ISERROR(Dados!AC626),\"-\",Dados!AC626)","v":""},{"$f":"IF(ISERROR(Dados!AD626),\"-\",Dados!AD626)","v":""},{"$f":"IF(ISERROR(Dados!AE626),\"-\",Dados!AE626)","v":""},{"$f":"IF(ISERROR(Dados!AF626),\"-\",Dados!AF626)","v":""},{"$f":"IF(ISERROR(Dados!AG626),\"-\",Dados!AG626)","v":""}]
[{"$f":"IF(ISERROR(Dados!A627),\"-\",Dados!A627)","v":""},{"$f":"IF(ISERROR(Dados!B627),\"-\",Dados!B627)","v":""},{"$f":"IF(ISERROR(Dados!C627),\"-\",Dados!C627)","v":""},{"$f":"IF(ISERROR(Dados!D627),\"-\",Dados!D627)","v":""},{"$f":"IF(ISERROR(Dados!E627),\"-\",Dados!E627)","v":""},{"$f":"IF(ISERROR(Dados!F627),\"-\",Dados!F627)","v":""},{"$f":"IF(ISERROR(Dados!G627),\"-\",Dados!G627)","v":""},{"$f":"IF(ISERROR(Dados!H627),\"-\",Dados!H627)","v":""},{"$f":"IF(ISERROR(Dados!I627),\"-\",Dados!I627)","v":""},{"$f":"IF(ISERROR(Dados!J627),\"-\",Dados!J627)","v":""},{"$f":"IF(ISERROR(Dados!K627),\"-\",Dados!K627)","v":""},{"$f":"IF(ISERROR(Dados!L627),\"-\",Dados!L627)","v":""},{"$f":"IF(ISERROR(Dados!M627),\"-\",Dados!M627)","v":""},{"$f":"IF(ISERROR(Dados!N627),\"-\",Dados!N627)","v":""},{"$f":"IF(ISERROR(Dados!O627),\"-\",Dados!O627)","v":""},{"$f":"IF(ISERROR(Dados!P627),\"-\",Dados!P627)","v":""},{"$f":"IF(ISERROR(Dados!Q627),\"-\",Dados!Q627)","v":""},{"$f":"IF(ISERROR(Dados!R627),\"-\",Dados!R627)","v":""},{"$f":"IF(ISERROR(Dados!S627),\"-\",Dados!S627)","v":""},{"$f":"IF(ISERROR(Dados!T627),\"-\",Dados!T627)","v":""},{"$f":"IF(ISERROR(Dados!U627),\"-\",Dados!U627)","v":""},{"$f":"IF(ISERROR(Dados!V627),\"-\",Dados!V627)","v":""},{"$f":"IF(ISERROR(Dados!W627),\"-\",Dados!W627)","v":""},{"$f":"IF(ISERROR(Dados!X627),\"-\",Dados!X627)","v":""},{"$f":"IF(ISERROR(Dados!Y627),\"-\",Dados!Y627)","v":""},{"$f":"IF(ISERROR(Dados!Z627),\"-\",Dados!Z627)","v":""},{"$f":"IF(ISERROR(Dados!AA627),\"-\",Dados!AA627)","v":""},{"$f":"IF(ISERROR(Dados!AB627),\"-\",Dados!AB627)","v":""},{"$f":"IF(ISERROR(Dados!AC627),\"-\",Dados!AC627)","v":""},{"$f":"IF(ISERROR(Dados!AD627),\"-\",Dados!AD627)","v":""},{"$f":"IF(ISERROR(Dados!AE627),\"-\",Dados!AE627)","v":""},{"$f":"IF(ISERROR(Dados!AF627),\"-\",Dados!AF627)","v":""},{"$f":"IF(ISERROR(Dados!AG627),\"-\",Dados!AG627)","v":""}]
[{"$f":"IF(ISERROR(Dados!A628),\"-\",Dados!A628)","v":""},{"$f":"IF(ISERROR(Dados!B628),\"-\",Dados!B628)","v":""},{"$f":"IF(ISERROR(Dados!C628),\"-\",Dados!C628)","v":""},{"$f":"IF(ISERROR(Dados!D628),\"-\",Dados!D628)","v":""},{"$f":"IF(ISERROR(Dados!E628),\"-\",Dados!E628)","v":""},{"$f":"IF(ISERROR(Dados!F628),\"-\",Dados!F628)","v":""},{"$f":"IF(ISERROR(Dados!G628),\"-\",Dados!G628)","v":""},{"$f":"IF(ISERROR(Dados!H628),\"-\",Dados!H628)","v":""},{"$f":"IF(ISERROR(Dados!I628),\"-\",Dados!I628)","v":""},{"$f":"IF(ISERROR(Dados!J628),\"-\",Dados!J628)","v":""},{"$f":"IF(ISERROR(Dados!K628),\"-\",Dados!K628)","v":""},{"$f":"IF(ISERROR(Dados!L628),\"-\",Dados!L628)","v":""},{"$f":"IF(ISERROR(Dados!M628),\"-\",Dados!M628)","v":""},{"$f":"IF(ISERROR(Dados!N628),\"-\",Dados!N628)","v":""},{"$f":"IF(ISERROR(Dados!O628),\"-\",Dados!O628)","v":""},{"$f":"IF(ISERROR(Dados!P628),\"-\",Dados!P628)","v":""},{"$f":"IF(ISERROR(Dados!Q628),\"-\",Dados!Q628)","v":""},{"$f":"IF(ISERROR(Dados!R628),\"-\",Dados!R628)","v":""},{"$f":"IF(ISERROR(Dados!S628),\"-\",Dados!S628)","v":""},{"$f":"IF(ISERROR(Dados!T628),\"-\",Dados!T628)","v":""},{"$f":"IF(ISERROR(Dados!U628),\"-\",Dados!U628)","v":""},{"$f":"IF(ISERROR(Dados!V628),\"-\",Dados!V628)","v":""},{"$f":"IF(ISERROR(Dados!W628),\"-\",Dados!W628)","v":""},{"$f":"IF(ISERROR(Dados!X628),\"-\",Dados!X628)","v":""},{"$f":"IF(ISERROR(Dados!Y628),\"-\",Dados!Y628)","v":""},{"$f":"IF(ISERROR(Dados!Z628),\"-\",Dados!Z628)","v":""},{"$f":"IF(ISERROR(Dados!AA628),\"-\",Dados!AA628)","v":""},{"$f":"IF(ISERROR(Dados!AB628),\"-\",Dados!AB628)","v":""},{"$f":"IF(ISERROR(Dados!AC628),\"-\",Dados!AC628)","v":""},{"$f":"IF(ISERROR(Dados!AD628),\"-\",Dados!AD628)","v":""},{"$f":"IF(ISERROR(Dados!AE628),\"-\",Dados!AE628)","v":""},{"$f":"IF(ISERROR(Dados!AF628),\"-\",Dados!AF628)","v":""},{"$f":"IF(ISERROR(Dados!AG628),\"-\",Dados!AG628)","v":""}]
[{"$f":"IF(ISERROR(Dados!A629),\"-\",Dados!A629)","v":""},{"$f":"IF(ISERROR(Dados!B629),\"-\",Dados!B629)","v":""},{"$f":"IF(ISERROR(Dados!C629),\"-\",Dados!C629)","v":""},{"$f":"IF(ISERROR(Dados!D629),\"-\",Dados!D629)","v":""},{"$f":"IF(ISERROR(Dados!E629),\"-\",Dados!E629)","v":""},{"$f":"IF(ISERROR(Dados!F629),\"-\",Dados!F629)","v":""},{"$f":"IF(ISERROR(Dados!G629),\"-\",Dados!G629)","v":""},{"$f":"IF(ISERROR(Dados!H629),\"-\",Dados!H629)","v":""},{"$f":"IF(ISERROR(Dados!I629),\"-\",Dados!I629)","v":""},{"$f":"IF(ISERROR(Dados!J629),\"-\",Dados!J629)","v":""},{"$f":"IF(ISERROR(Dados!K629),\"-\",Dados!K629)","v":""},{"$f":"IF(ISERROR(Dados!L629),\"-\",Dados!L629)","v":""},{"$f":"IF(ISERROR(Dados!M629),\"-\",Dados!M629)","v":""},{"$f":"IF(ISERROR(Dados!N629),\"-\",Dados!N629)","v":""},{"$f":"IF(ISERROR(Dados!O629),\"-\",Dados!O629)","v":""},{"$f":"IF(ISERROR(Dados!P629),\"-\",Dados!P629)","v":""},{"$f":"IF(ISERROR(Dados!Q629),\"-\",Dados!Q629)","v":""},{"$f":"IF(ISERROR(Dados!R629),\"-\",Dados!R629)","v":""},{"$f":"IF(ISERROR(Dados!S629),\"-\",Dados!S629)","v":""},{"$f":"IF(ISERROR(Dados!T629),\"-\",Dados!T629)","v":""},{"$f":"IF(ISERROR(Dados!U629),\"-\",Dados!U629)","v":""},{"$f":"IF(ISERROR(Dados!V629),\"-\",Dados!V629)","v":""},{"$f":"IF(ISERROR(Dados!W629),\"-\",Dados!W629)","v":""},{"$f":"IF(ISERROR(Dados!X629),\"-\",Dados!X629)","v":""},{"$f":"IF(ISERROR(Dados!Y629),\"-\",Dados!Y629)","v":""},{"$f":"IF(ISERROR(Dados!Z629),\"-\",Dados!Z629)","v":""},{"$f":"IF(ISERROR(Dados!AA629),\"-\",Dados!AA629)","v":""},{"$f":"IF(ISERROR(Dados!AB629),\"-\",Dados!AB629)","v":""},{"$f":"IF(ISERROR(Dados!AC629),\"-\",Dados!AC629)","v":""},{"$f":"IF(ISERROR(Dados!AD629),\"-\",Dados!AD629)","v":""},{"$f":"IF(ISERROR(Dados!AE629),\"-\",Dados!AE629)","v":""},{"$f":"IF(ISERROR(Dados!AF629),\"-\",Dados!AF629)","v":""},{"$f":"IF(ISERROR(Dados!AG629),\"-\",Dados!AG629)","v":""}]
[{"$f":"IF(ISERROR(Dados!A630),\"-\",Dados!A630)","v":""},{"$f":"IF(ISERROR(Dados!B630),\"-\",Dados!B630)","v":""},{"$f":"IF(ISERROR(Dados!C630),\"-\",Dados!C630)","v":""},{"$f":"IF(ISERROR(Dados!D630),\"-\",Dados!D630)","v":""},{"$f":"IF(ISERROR(Dados!E630),\"-\",Dados!E630)","v":""},{"$f":"IF(ISERROR(Dados!F630),\"-\",Dados!F630)","v":""},{"$f":"IF(ISERROR(Dados!G630),\"-\",Dados!G630)","v":""},{"$f":"IF(ISERROR(Dados!H630),\"-\",Dados!H630)","v":""},{"$f":"IF(ISERROR(Dados!I630),\"-\",Dados!I630)","v":""},{"$f":"IF(ISERROR(Dados!J630),\"-\",Dados!J630)","v":""},{"$f":"IF(ISERROR(Dados!K630),\"-\",Dados!K630)","v":""},{"$f":"IF(ISERROR(Dados!L630),\"-\",Dados!L630)","v":""},{"$f":"IF(ISERROR(Dados!M630),\"-\",Dados!M630)","v":""},{"$f":"IF(ISERROR(Dados!N630),\"-\",Dados!N630)","v":""},{"$f":"IF(ISERROR(Dados!O630),\"-\",Dados!O630)","v":""},{"$f":"IF(ISERROR(Dados!P630),\"-\",Dados!P630)","v":""},{"$f":"IF(ISERROR(Dados!Q630),\"-\",Dados!Q630)","v":""},{"$f":"IF(ISERROR(Dados!R630),\"-\",Dados!R630)","v":""},{"$f":"IF(ISERROR(Dados!S630),\"-\",Dados!S630)","v":""},{"$f":"IF(ISERROR(Dados!T630),\"-\",Dados!T630)","v":""},{"$f":"IF(ISERROR(Dados!U630),\"-\",Dados!U630)","v":""},{"$f":"IF(ISERROR(Dados!V630),\"-\",Dados!V630)","v":""},{"$f":"IF(ISERROR(Dados!W630),\"-\",Dados!W630)","v":""},{"$f":"IF(ISERROR(Dados!X630),\"-\",Dados!X630)","v":""},{"$f":"IF(ISERROR(Dados!Y630),\"-\",Dados!Y630)","v":""},{"$f":"IF(ISERROR(Dados!Z630),\"-\",Dados!Z630)","v":""},{"$f":"IF(ISERROR(Dados!AA630),\"-\",Dados!AA630)","v":""},{"$f":"IF(ISERROR(Dados!AB630),\"-\",Dados!AB630)","v":""},{"$f":"IF(ISERROR(Dados!AC630),\"-\",Dados!AC630)","v":""},{"$f":"IF(ISERROR(Dados!AD630),\"-\",Dados!AD630)","v":""},{"$f":"IF(ISERROR(Dados!AE630),\"-\",Dados!AE630)","v":""},{"$f":"IF(ISERROR(Dados!AF630),\"-\",Dados!AF630)","v":""},{"$f":"IF(ISERROR(Dados!AG630),\"-\",Dados!AG630)","v":""}]
[{"$f":"IF(ISERROR(Dados!A631),\"-\",Dados!A631)","v":""},{"$f":"IF(ISERROR(Dados!B631),\"-\",Dados!B631)","v":""},{"$f":"IF(ISERROR(Dados!C631),\"-\",Dados!C631)","v":""},{"$f":"IF(ISERROR(Dados!D631),\"-\",Dados!D631)","v":""},{"$f":"IF(ISERROR(Dados!E631),\"-\",Dados!E631)","v":""},{"$f":"IF(ISERROR(Dados!F631),\"-\",Dados!F631)","v":""},{"$f":"IF(ISERROR(Dados!G631),\"-\",Dados!G631)","v":""},{"$f":"IF(ISERROR(Dados!H631),\"-\",Dados!H631)","v":""},{"$f":"IF(ISERROR(Dados!I631),\"-\",Dados!I631)","v":""},{"$f":"IF(ISERROR(Dados!J631),\"-\",Dados!J631)","v":""},{"$f":"IF(ISERROR(Dados!K631),\"-\",Dados!K631)","v":""},{"$f":"IF(ISERROR(Dados!L631),\"-\",Dados!L631)","v":""},{"$f":"IF(ISERROR(Dados!M631),\"-\",Dados!M631)","v":""},{"$f":"IF(ISERROR(Dados!N631),\"-\",Dados!N631)","v":""},{"$f":"IF(ISERROR(Dados!O631),\"-\",Dados!O631)","v":""},{"$f":"IF(ISERROR(Dados!P631),\"-\",Dados!P631)","v":""},{"$f":"IF(ISERROR(Dados!Q631),\"-\",Dados!Q631)","v":""},{"$f":"IF(ISERROR(Dados!R631),\"-\",Dados!R631)","v":0},{"$f":"IF(ISERROR(Dados!S631),\"-\",Dados!S631)","v":0},{"$f":"IF(ISERROR(Dados!T631),\"-\",Dados!T631)","v":0},{"$f":"IF(ISERROR(Dados!U631),\"-\",Dados!U631)","v":""},{"$f":"IF(ISERROR(Dados!V631),\"-\",Dados!V631)","v":""},{"$f":"IF(ISERROR(Dados!W631),\"-\",Dados!W631)","v":""},{"$f":"IF(ISERROR(Dados!X631),\"-\",Dados!X631)","v":""},{"$f":"IF(ISERROR(Dados!Y631),\"-\",Dados!Y631)","v":""},{"$f":"IF(ISERROR(Dados!Z631),\"-\",Dados!Z631)","v":""},{"$f":"IF(ISERROR(Dados!AA631),\"-\",Dados!AA631)","v":""},{"$f":"IF(ISERROR(Dados!AB631),\"-\",Dados!AB631)","v":0},{"$f":"IF(ISERROR(Dados!AC631),\"-\",Dados!AC631)","v":""},{"$f":"IF(ISERROR(Dados!AD631),\"-\",Dados!AD631)","v":""},{"$f":"IF(ISERROR(Dados!AE631),\"-\",Dados!AE631)","v":""},{"$f":"IF(ISERROR(Dados!AF631),\"-\",Dados!AF631)","v":0},{"$f":"IF(ISERROR(Dados!AG631),\"-\",Dados!AG631)","v":""}]
[{"$f":"IF(ISERROR(Dados!A632),\"-\",Dados!A632)","v":""},{"$f":"IF(ISERROR(Dados!B632),\"-\",Dados!B632)","v":""},{"$f":"IF(ISERROR(Dados!C632),\"-\",Dados!C632)","v":""},{"$f":"IF(ISERROR(Dados!D632),\"-\",Dados!D632)","v":""},{"$f":"IF(ISERROR(Dados!E632),\"-\",Dados!E632)","v":""},{"$f":"IF(ISERROR(Dados!F632),\"-\",Dados!F632)","v":""},{"$f":"IF(ISERROR(Dados!G632),\"-\",Dados!G632)","v":""},{"$f":"IF(ISERROR(Dados!H632),\"-\",Dados!H632)","v":""},{"$f":"IF(ISERROR(Dados!I632),\"-\",Dados!I632)","v":""},{"$f":"IF(ISERROR(Dados!J632),\"-\",Dados!J632)","v":""},{"$f":"IF(ISERROR(Dados!K632),\"-\",Dados!K632)","v":""},{"$f":"IF(ISERROR(Dados!L632),\"-\",Dados!L632)","v":""},{"$f":"IF(ISERROR(Dados!M632),\"-\",Dados!M632)","v":""},{"$f":"IF(ISERROR(Dados!N632),\"-\",Dados!N632)","v":""},{"$f":"IF(ISERROR(Dados!O632),\"-\",Dados!O632)","v":""},{"$f":"IF(ISERROR(Dados!P632),\"-\",Dados!P632)","v":""},{"$f":"IF(ISERROR(Dados!Q632),\"-\",Dados!Q632)","v":""},{"$f":"IF(ISERROR(Dados!R632),\"-\",Dados!R632)","v":0},{"$f":"IF(ISERROR(Dados!S632),\"-\",Dados!S632)","v":0},{"$f":"IF(ISERROR(Dados!T632),\"-\",Dados!T632)","v":0},{"$f":"IF(ISERROR(Dados!U632),\"-\",Dados!U632)","v":""},{"$f":"IF(ISERROR(Dados!V632),\"-\",Dados!V632)","v":""},{"$f":"IF(ISERROR(Dados!W632),\"-\",Dados!W632)","v":""},{"$f":"IF(ISERROR(Dados!X632),\"-\",Dados!X632)","v":""},{"$f":"IF(ISERROR(Dados!Y632),\"-\",Dados!Y632)","v":""},{"$f":"IF(ISERROR(Dados!Z632),\"-\",Dados!Z632)","v":""},{"$f":"IF(ISERROR(Dados!AA632),\"-\",Dados!AA632)","v":""},{"$f":"IF(ISERROR(Dados!AB632),\"-\",Dados!AB632)","v":0},{"$f":"IF(ISERROR(Dados!AC632),\"-\",Dados!AC632)","v":""},{"$f":"IF(ISERROR(Dados!AD632),\"-\",Dados!AD632)","v":""},{"$f":"IF(ISERROR(Dados!AE632),\"-\",Dados!AE632)","v":""},{"$f":"IF(ISERROR(Dados!AF632),\"-\",Dados!AF632)","v":0},{"$f":"IF(ISERROR(Dados!AG632),\"-\",Dados!AG632)","v":""}]
[{"$f":"IF(ISERROR(Dados!A633),\"-\",Dados!A633)","v":""},{"$f":"IF(ISERROR(Dados!B633),\"-\",Dados!B633)","v":""},{"$f":"IF(ISERROR(Dados!C633),\"-\",Dados!C633)","v":""},{"$f":"IF(ISERROR(Dados!D633),\"-\",Dados!D633)","v":""},{"$f":"IF(ISERROR(Dados!E633),\"-\",Dados!E633)","v":""},{"$f":"IF(ISERROR(Dados!F633),\"-\",Dados!F633)","v":""},{"$f":"IF(ISERROR(Dados!G633),\"-\",Dados!G633)","v":""},{"$f":"IF(ISERROR(Dados!H633),\"-\",Dados!H633)","v":""},{"$f":"IF(ISERROR(Dados!I633),\"-\",Dados!I633)","v":""},{"$f":"IF(ISERROR(Dados!J633),\"-\",Dados!J633)","v":""},{"$f":"IF(ISERROR(Dados!K633),\"-\",Dados!K633)","v":""},{"$f":"IF(ISERROR(Dados!L633),\"-\",Dados!L633)","v":""},{"$f":"IF(ISERROR(Dados!M633),\"-\",Dados!M633)","v":""},{"$f":"IF(ISERROR(Dados!N633),\"-\",Dados!N633)","v":""},{"$f":"IF(ISERROR(Dados!O633),\"-\",Dados!O633)","v":""},{"$f":"IF(ISERROR(Dados!P633),\"-\",Dados!P633)","v":""},{"$f":"IF(ISERROR(Dados!Q633),\"-\",Dados!Q633)","v":""},{"$f":"IF(ISERROR(Dados!R633),\"-\",Dados!R633)","v":0},{"$f":"IF(ISERROR(Dados!S633),\"-\",Dados!S633)","v":0},{"$f":"IF(ISERROR(Dados!T633),\"-\",Dados!T633)","v":0},{"$f":"IF(ISERROR(Dados!U633),\"-\",Dados!U633)","v":""},{"$f":"IF(ISERROR(Dados!V633),\"-\",Dados!V633)","v":""},{"$f":"IF(ISERROR(Dados!W633),\"-\",Dados!W633)","v":""},{"$f":"IF(ISERROR(Dados!X633),\"-\",Dados!X633)","v":""},{"$f":"IF(ISERROR(Dados!Y633),\"-\",Dados!Y633)","v":""},{"$f":"IF(ISERROR(Dados!Z633),\"-\",Dados!Z633)","v":""},{"$f":"IF(ISERROR(Dados!AA633),\"-\",Dados!AA633)","v":""},{"$f":"IF(ISERROR(Dados!AB633),\"-\",Dados!AB633)","v":0},{"$f":"IF(ISERROR(Dados!AC633),\"-\",Dados!AC633)","v":""},{"$f":"IF(ISERROR(Dados!AD633),\"-\",Dados!AD633)","v":""},{"$f":"IF(ISERROR(Dados!AE633),\"-\",Dados!AE633)","v":""},{"$f":"IF(ISERROR(Dados!AF633),\"-\",Dados!AF633)","v":0},{"$f":"IF(ISERROR(Dados!AG633),\"-\",Dados!AG633)","v":""}]
[{"$f":"IF(ISERROR(Dados!A634),\"-\",Dados!A634)","v":""},{"$f":"IF(ISERROR(Dados!B634),\"-\",Dados!B634)","v":""},{"$f":"IF(ISERROR(Dados!C634),\"-\",Dados!C634)","v":""},{"$f":"IF(ISERROR(Dados!D634),\"-\",Dados!D634)","v":""},{"$f":"IF(ISERROR(Dados!E634),\"-\",Dados!E634)","v":""},{"$f":"IF(ISERROR(Dados!F634),\"-\",Dados!F634)","v":""},{"$f":"IF(ISERROR(Dados!G634),\"-\",Dados!G634)","v":""},{"$f":"IF(ISERROR(Dados!H634),\"-\",Dados!H634)","v":""},{"$f":"IF(ISERROR(Dados!I634),\"-\",Dados!I634)","v":""},{"$f":"IF(ISERROR(Dados!J634),\"-\",Dados!J634)","v":""},{"$f":"IF(ISERROR(Dados!K634),\"-\",Dados!K634)","v":""},{"$f":"IF(ISERROR(Dados!L634),\"-\",Dados!L634)","v":""},{"$f":"IF(ISERROR(Dados!M634),\"-\",Dados!M634)","v":""},{"$f":"IF(ISERROR(Dados!N634),\"-\",Dados!N634)","v":""},{"$f":"IF(ISERROR(Dados!O634),\"-\",Dados!O634)","v":""},{"$f":"IF(ISERROR(Dados!P634),\"-\",Dados!P634)","v":""},{"$f":"IF(ISERROR(Dados!Q634),\"-\",Dados!Q634)","v":""},{"$f":"IF(ISERROR(Dados!R634),\"-\",Dados!R634)","v":0},{"$f":"IF(ISERROR(Dados!S634),\"-\",Dados!S634)","v":0},{"$f":"IF(ISERROR(Dados!T634),\"-\",Dados!T634)","v":0},{"$f":"IF(ISERROR(Dados!U634),\"-\",Dados!U634)","v":""},{"$f":"IF(ISERROR(Dados!V634),\"-\",Dados!V634)","v":""},{"$f":"IF(ISERROR(Dados!W634),\"-\",Dados!W634)","v":""},{"$f":"IF(ISERROR(Dados!X634),\"-\",Dados!X634)","v":""},{"$f":"IF(ISERROR(Dados!Y634),\"-\",Dados!Y634)","v":""},{"$f":"IF(ISERROR(Dados!Z634),\"-\",Dados!Z634)","v":""},{"$f":"IF(ISERROR(Dados!AA634),\"-\",Dados!AA634)","v":""},{"$f":"IF(ISERROR(Dados!AB634),\"-\",Dados!AB634)","v":0},{"$f":"IF(ISERROR(Dados!AC634),\"-\",Dados!AC634)","v":""},{"$f":"IF(ISERROR(Dados!AD634),\"-\",Dados!AD634)","v":""},{"$f":"IF(ISERROR(Dados!AE634),\"-\",Dados!AE634)","v":""},{"$f":"IF(ISERROR(Dados!AF634),\"-\",Dados!AF634)","v":0},{"$f":"IF(ISERROR(Dados!AG634),\"-\",Dados!AG634)","v":""}]
[{"$f":"IF(ISERROR(Dados!A635),\"-\",Dados!A635)","v":""},{"$f":"IF(ISERROR(Dados!B635),\"-\",Dados!B635)","v":""},{"$f":"IF(ISERROR(Dados!C635),\"-\",Dados!C635)","v":""},{"$f":"IF(ISERROR(Dados!D635),\"-\",Dados!D635)","v":""},{"$f":"IF(ISERROR(Dados!E635),\"-\",Dados!E635)","v":""},{"$f":"IF(ISERROR(Dados!F635),\"-\",Dados!F635)","v":""},{"$f":"IF(ISERROR(Dados!G635),\"-\",Dados!G635)","v":""},{"$f":"IF(ISERROR(Dados!H635),\"-\",Dados!H635)","v":""},{"$f":"IF(ISERROR(Dados!I635),\"-\",Dados!I635)","v":""},{"$f":"IF(ISERROR(Dados!J635),\"-\",Dados!J635)","v":""},{"$f":"IF(ISERROR(Dados!K635),\"-\",Dados!K635)","v":""},{"$f":"IF(ISERROR(Dados!L635),\"-\",Dados!L635)","v":""},{"$f":"IF(ISERROR(Dados!M635),\"-\",Dados!M635)","v":""},{"$f":"IF(ISERROR(Dados!N635),\"-\",Dados!N635)","v":""},{"$f":"IF(ISERROR(Dados!O635),\"-\",Dados!O635)","v":""},{"$f":"IF(ISERROR(Dados!P635),\"-\",Dados!P635)","v":""},{"$f":"IF(ISERROR(Dados!Q635),\"-\",Dados!Q635)","v":""},{"$f":"IF(ISERROR(Dados!R635),\"-\",Dados!R635)","v":0},{"$f":"IF(ISERROR(Dados!S635),\"-\",Dados!S635)","v":0},{"$f":"IF(ISERROR(Dados!T635),\"-\",Dados!T635)","v":0},{"$f":"IF(ISERROR(Dados!U635),\"-\",Dados!U635)","v":""},{"$f":"IF(ISERROR(Dados!V635),\"-\",Dados!V635)","v":""},{"$f":"IF(ISERROR(Dados!W635),\"-\",Dados!W635)","v":""},{"$f":"IF(ISERROR(Dados!X635),\"-\",Dados!X635)","v":""},{"$f":"IF(ISERROR(Dados!Y635),\"-\",Dados!Y635)","v":""},{"$f":"IF(ISERROR(Dados!Z635),\"-\",Dados!Z635)","v":""},{"$f":"IF(ISERROR(Dados!AA635),\"-\",Dados!AA635)","v":""},{"$f":"IF(ISERROR(Dados!AB635),\"-\",Dados!AB635)","v":0},{"$f":"IF(ISERROR(Dados!AC635),\"-\",Dados!AC635)","v":""},{"$f":"IF(ISERROR(Dados!AD635),\"-\",Dados!AD635)","v":""},{"$f":"IF(ISERROR(Dados!AE635),\"-\",Dados!AE635)","v":""},{"$f":"IF(ISERROR(Dados!AF635),\"-\",Dados!AF635)","v":0},{"$f":"IF(ISERROR(Dados!AG635),\"-\",Dados!AG635)","v":""}]
[{"$f":"IF(ISERROR(Dados!A636),\"-\",Dados!A636)","v":""},{"$f":"IF(ISERROR(Dados!B636),\"-\",Dados!B636)","v":""},{"$f":"IF(ISERROR(Dados!C636),\"-\",Dados!C636)","v":""},{"$f":"IF(ISERROR(Dados!D636),\"-\",Dados!D636)","v":""},{"$f":"IF(ISERROR(Dados!E636),\"-\",Dados!E636)","v":""},{"$f":"IF(ISERROR(Dados!F636),\"-\",Dados!F636)","v":""},{"$f":"IF(ISERROR(Dados!G636),\"-\",Dados!G636)","v":""},{"$f":"IF(ISERROR(Dados!H636),\"-\",Dados!H636)","v":""},{"$f":"IF(ISERROR(Dados!I636),\"-\",Dados!I636)","v":""},{"$f":"IF(ISERROR(Dados!J636),\"-\",Dados!J636)","v":""},{"$f":"IF(ISERROR(Dados!K636),\"-\",Dados!K636)","v":""},{"$f":"IF(ISERROR(Dados!L636),\"-\",Dados!L636)","v":""},{"$f":"IF(ISERROR(Dados!M636),\"-\",Dados!M636)","v":""},{"$f":"IF(ISERROR(Dados!N636),\"-\",Dados!N636)","v":""},{"$f":"IF(ISERROR(Dados!O636),\"-\",Dados!O636)","v":""},{"$f":"IF(ISERROR(Dados!P636),\"-\",Dados!P636)","v":""},{"$f":"IF(ISERROR(Dados!Q636),\"-\",Dados!Q636)","v":""},{"$f":"IF(ISERROR(Dados!R636),\"-\",Dados!R636)","v":0},{"$f":"IF(ISERROR(Dados!S636),\"-\",Dados!S636)","v":0},{"$f":"IF(ISERROR(Dados!T636),\"-\",Dados!T636)","v":0},{"$f":"IF(ISERROR(Dados!U636),\"-\",Dados!U636)","v":""},{"$f":"IF(ISERROR(Dados!V636),\"-\",Dados!V636)","v":""},{"$f":"IF(ISERROR(Dados!W636),\"-\",Dados!W636)","v":""},{"$f":"IF(ISERROR(Dados!X636),\"-\",Dados!X636)","v":""},{"$f":"IF(ISERROR(Dados!Y636),\"-\",Dados!Y636)","v":""},{"$f":"IF(ISERROR(Dados!Z636),\"-\",Dados!Z636)","v":""},{"$f":"IF(ISERROR(Dados!AA636),\"-\",Dados!AA636)","v":""},{"$f":"IF(ISERROR(Dados!AB636),\"-\",Dados!AB636)","v":0},{"$f":"IF(ISERROR(Dados!AC636),\"-\",Dados!AC636)","v":""},{"$f":"IF(ISERROR(Dados!AD636),\"-\",Dados!AD636)","v":""},{"$f":"IF(ISERROR(Dados!AE636),\"-\",Dados!AE636)","v":""},{"$f":"IF(ISERROR(Dados!AF636),\"-\",Dados!AF636)","v":0},{"$f":"IF(ISERROR(Dados!AG636),\"-\",Dados!AG636)","v":""}]
[{"$f":"IF(ISERROR(Dados!A637),\"-\",Dados!A637)","v":""},{"$f":"IF(ISERROR(Dados!B637),\"-\",Dados!B637)","v":""},{"$f":"IF(ISERROR(Dados!C637),\"-\",Dados!C637)","v":""},{"$f":"IF(ISERROR(Dados!D637),\"-\",Dados!D637)","v":""},{"$f":"IF(ISERROR(Dados!E637),\"-\",Dados!E637)","v":""},{"$f":"IF(ISERROR(Dados!F637),\"-\",Dados!F637)","v":""},{"$f":"IF(ISERROR(Dados!G637),\"-\",Dados!G637)","v":""},{"$f":"IF(ISERROR(Dados!H637),\"-\",Dados!H637)","v":""},{"$f":"IF(ISERROR(Dados!I637),\"-\",Dados!I637)","v":""},{"$f":"IF(ISERROR(Dados!J637),\"-\",Dados!J637)","v":""},{"$f":"IF(ISERROR(Dados!K637),\"-\",Dados!K637)","v":""},{"$f":"IF(ISERROR(Dados!L637),\"-\",Dados!L637)","v":""},{"$f":"IF(ISERROR(Dados!M637),\"-\",Dados!M637)","v":""},{"$f":"IF(ISERROR(Dados!N637),\"-\",Dados!N637)","v":""},{"$f":"IF(ISERROR(Dados!O637),\"-\",Dados!O637)","v":""},{"$f":"IF(ISERROR(Dados!P637),\"-\",Dados!P637)","v":""},{"$f":"IF(ISERROR(Dados!Q637),\"-\",Dados!Q637)","v":""},{"$f":"IF(ISERROR(Dados!R637),\"-\",Dados!R637)","v":0},{"$f":"IF(ISERROR(Dados!S637),\"-\",Dados!S637)","v":0},{"$f":"IF(ISERROR(Dados!T637),\"-\",Dados!T637)","v":0},{"$f":"IF(ISERROR(Dados!U637),\"-\",Dados!U637)","v":""},{"$f":"IF(ISERROR(Dados!V637),\"-\",Dados!V637)","v":""},{"$f":"IF(ISERROR(Dados!W637),\"-\",Dados!W637)","v":""},{"$f":"IF(ISERROR(Dados!X637),\"-\",Dados!X637)","v":""},{"$f":"IF(ISERROR(Dados!Y637),\"-\",Dados!Y637)","v":""},{"$f":"IF(ISERROR(Dados!Z637),\"-\",Dados!Z637)","v":""},{"$f":"IF(ISERROR(Dados!AA637),\"-\",Dados!AA637)","v":""},{"$f":"IF(ISERROR(Dados!AB637),\"-\",Dados!AB637)","v":0},{"$f":"IF(ISERROR(Dados!AC637),\"-\",Dados!AC637)","v":""},{"$f":"IF(ISERROR(Dados!AD637),\"-\",Dados!AD637)","v":""},{"$f":"IF(ISERROR(Dados!AE637),\"-\",Dados!AE637)","v":""},{"$f":"IF(ISERROR(Dados!AF637),\"-\",Dados!AF637)","v":0},{"$f":"IF(ISERROR(Dados!AG637),\"-\",Dados!AG637)","v":""}]
[{"$f":"IF(ISERROR(Dados!A638),\"-\",Dados!A638)","v":""},{"$f":"IF(ISERROR(Dados!B638),\"-\",Dados!B638)","v":""},{"$f":"IF(ISERROR(Dados!C638),\"-\",Dados!C638)","v":""},{"$f":"IF(ISERROR(Dados!D638),\"-\",Dados!D638)","v":""},{"$f":"IF(ISERROR(Dados!E638),\"-\",Dados!E638)","v":""},{"$f":"IF(ISERROR(Dados!F638),\"-\",Dados!F638)","v":""},{"$f":"IF(ISERROR(Dados!G638),\"-\",Dados!G638)","v":""},{"$f":"IF(ISERROR(Dados!H638),\"-\",Dados!H638)","v":""},{"$f":"IF(ISERROR(Dados!I638),\"-\",Dados!I638)","v":""},{"$f":"IF(ISERROR(Dados!J638),\"-\",Dados!J638)","v":""},{"$f":"IF(ISERROR(Dados!K638),\"-\",Dados!K638)","v":""},{"$f":"IF(ISERROR(Dados!L638),\"-\",Dados!L638)","v":""},{"$f":"IF(ISERROR(Dados!M638),\"-\",Dados!M638)","v":""},{"$f":"IF(ISERROR(Dados!N638),\"-\",Dados!N638)","v":""},{"$f":"IF(ISERROR(Dados!O638),\"-\",Dados!O638)","v":""},{"$f":"IF(ISERROR(Dados!P638),\"-\",Dados!P638)","v":""},{"$f":"IF(ISERROR(Dados!Q638),\"-\",Dados!Q638)","v":""},{"$f":"IF(ISERROR(Dados!R638),\"-\",Dados!R638)","v":0},{"$f":"IF(ISERROR(Dados!S638),\"-\",Dados!S638)","v":0},{"$f":"IF(ISERROR(Dados!T638),\"-\",Dados!T638)","v":0},{"$f":"IF(ISERROR(Dados!U638),\"-\",Dados!U638)","v":""},{"$f":"IF(ISERROR(Dados!V638),\"-\",Dados!V638)","v":""},{"$f":"IF(ISERROR(Dados!W638),\"-\",Dados!W638)","v":""},{"$f":"IF(ISERROR(Dados!X638),\"-\",Dados!X638)","v":""},{"$f":"IF(ISERROR(Dados!Y638),\"-\",Dados!Y638)","v":""},{"$f":"IF(ISERROR(Dados!Z638),\"-\",Dados!Z638)","v":""},{"$f":"IF(ISERROR(Dados!AA638),\"-\",Dados!AA638)","v":""},{"$f":"IF(ISERROR(Dados!AB638),\"-\",Dados!AB638)","v":0},{"$f":"IF(ISERROR(Dados!AC638),\"-\",Dados!AC638)","v":""},{"$f":"IF(ISERROR(Dados!AD638),\"-\",Dados!AD638)","v":""},{"$f":"IF(ISERROR(Dados!AE638),\"-\",Dados!AE638)","v":""},{"$f":"IF(ISERROR(Dados!AF638),\"-\",Dados!AF638)","v":0},{"$f":"IF(ISERROR(Dados!AG638),\"-\",Dados!AG638)","v":""}]
[{"$f":"IF(ISERROR(Dados!A639),\"-\",Dados!A639)","v":""},{"$f":"IF(ISERROR(Dados!B639),\"-\",Dados!B639)","v":""},{"$f":"IF(ISERROR(Dados!C639),\"-\",Dados!C639)","v":""},{"$f":"IF(ISERROR(Dados!D639),\"-\",Dados!D639)","v":""},{"$f":"IF(ISERROR(Dados!E639),\"-\",Dados!E639)","v":""},{"$f":"IF(ISERROR(Dados!F639),\"-\",Dados!F639)","v":""},{"$f":"IF(ISERROR(Dados!G639),\"-\",Dados!G639)","v":""},{"$f":"IF(ISERROR(Dados!H639),\"-\",Dados!H639)","v":""},{"$f":"IF(ISERROR(Dados!I639),\"-\",Dados!I639)","v":""},{"$f":"IF(ISERROR(Dados!J639),\"-\",Dados!J639)","v":""},{"$f":"IF(ISERROR(Dados!K639),\"-\",Dados!K639)","v":""},{"$f":"IF(ISERROR(Dados!L639),\"-\",Dados!L639)","v":""},{"$f":"IF(ISERROR(Dados!M639),\"-\",Dados!M639)","v":""},{"$f":"IF(ISERROR(Dados!N639),\"-\",Dados!N639)","v":""},{"$f":"IF(ISERROR(Dados!O639),\"-\",Dados!O639)","v":""},{"$f":"IF(ISERROR(Dados!P639),\"-\",Dados!P639)","v":""},{"$f":"IF(ISERROR(Dados!Q639),\"-\",Dados!Q639)","v":""},{"$f":"IF(ISERROR(Dados!R639),\"-\",Dados!R639)","v":0},{"$f":"IF(ISERROR(Dados!S639),\"-\",Dados!S639)","v":0},{"$f":"IF(ISERROR(Dados!T639),\"-\",Dados!T639)","v":0},{"$f":"IF(ISERROR(Dados!U639),\"-\",Dados!U639)","v":""},{"$f":"IF(ISERROR(Dados!V639),\"-\",Dados!V639)","v":""},{"$f":"IF(ISERROR(Dados!W639),\"-\",Dados!W639)","v":""},{"$f":"IF(ISERROR(Dados!X639),\"-\",Dados!X639)","v":""},{"$f":"IF(ISERROR(Dados!Y639),\"-\",Dados!Y639)","v":""},{"$f":"IF(ISERROR(Dados!Z639),\"-\",Dados!Z639)","v":""},{"$f":"IF(ISERROR(Dados!AA639),\"-\",Dados!AA639)","v":""},{"$f":"IF(ISERROR(Dados!AB639),\"-\",Dados!AB639)","v":0},{"$f":"IF(ISERROR(Dados!AC639),\"-\",Dados!AC639)","v":""},{"$f":"IF(ISERROR(Dados!AD639),\"-\",Dados!AD639)","v":""},{"$f":"IF(ISERROR(Dados!AE639),\"-\",Dados!AE639)","v":""},{"$f":"IF(ISERROR(Dados!AF639),\"-\",Dados!AF639)","v":0},{"$f":"IF(ISERROR(Dados!AG639),\"-\",Dados!AG639)","v":""}]
[{"$f":"IF(ISERROR(Dados!A640),\"-\",Dados!A640)","v":""},{"$f":"IF(ISERROR(Dados!B640),\"-\",Dados!B640)","v":""},{"$f":"IF(ISERROR(Dados!C640),\"-\",Dados!C640)","v":""},{"$f":"IF(ISERROR(Dados!D640),\"-\",Dados!D640)","v":""},{"$f":"IF(ISERROR(Dados!E640),\"-\",Dados!E640)","v":""},{"$f":"IF(ISERROR(Dados!F640),\"-\",Dados!F640)","v":""},{"$f":"IF(ISERROR(Dados!G640),\"-\",Dados!G640)","v":""},{"$f":"IF(ISERROR(Dados!H640),\"-\",Dados!H640)","v":""},{"$f":"IF(ISERROR(Dados!I640),\"-\",Dados!I640)","v":""},{"$f":"IF(ISERROR(Dados!J640),\"-\",Dados!J640)","v":""},{"$f":"IF(ISERROR(Dados!K640),\"-\",Dados!K640)","v":""},{"$f":"IF(ISERROR(Dados!L640),\"-\",Dados!L640)","v":""},{"$f":"IF(ISERROR(Dados!M640),\"-\",Dados!M640)","v":""},{"$f":"IF(ISERROR(Dados!N640),\"-\",Dados!N640)","v":""},{"$f":"IF(ISERROR(Dados!O640),\"-\",Dados!O640)","v":""},{"$f":"IF(ISERROR(Dados!P640),\"-\",Dados!P640)","v":""},{"$f":"IF(ISERROR(Dados!Q640),\"-\",Dados!Q640)","v":""},{"$f":"IF(ISERROR(Dados!R640),\"-\",Dados!R640)","v":0},{"$f":"IF(ISERROR(Dados!S640),\"-\",Dados!S640)","v":0},{"$f":"IF(ISERROR(Dados!T640),\"-\",Dados!T640)","v":0},{"$f":"IF(ISERROR(Dados!U640),\"-\",Dados!U640)","v":""},{"$f":"IF(ISERROR(Dados!V640),\"-\",Dados!V640)","v":""},{"$f":"IF(ISERROR(Dados!W640),\"-\",Dados!W640)","v":""},{"$f":"IF(ISERROR(Dados!X640),\"-\",Dados!X640)","v":""},{"$f":"IF(ISERROR(Dados!Y640),\"-\",Dados!Y640)","v":""},{"$f":"IF(ISERROR(Dados!Z640),\"-\",Dados!Z640)","v":""},{"$f":"IF(ISERROR(Dados!AA640),\"-\",Dados!AA640)","v":""},{"$f":"IF(ISERROR(Dados!AB640),\"-\",Dados!AB640)","v":0},{"$f":"IF(ISERROR(Dados!AC640),\"-\",Dados!AC640)","v":""},{"$f":"IF(ISERROR(Dados!AD640),\"-\",Dados!AD640)","v":""},{"$f":"IF(ISERROR(Dados!AE640),\"-\",Dados!AE640)","v":""},{"$f":"IF(ISERROR(Dados!AF640),\"-\",Dados!AF640)","v":0},{"$f":"IF(ISERROR(Dados!AG640),\"-\",Dados!AG640)","v":""}]
[{"$f":"IF(ISERROR(Dados!A641),\"-\",Dados!A641)","v":""},{"$f":"IF(ISERROR(Dados!B641),\"-\",Dados!B641)","v":""},{"$f":"IF(ISERROR(Dados!C641),\"-\",Dados!C641)","v":""},{"$f":"IF(ISERROR(Dados!D641),\"-\",Dados!D641)","v":""},{"$f":"IF(ISERROR(Dados!E641),\"-\",Dados!E641)","v":""},{"$f":"IF(ISERROR(Dados!F641),\"-\",Dados!F641)","v":""},{"$f":"IF(ISERROR(Dados!G641),\"-\",Dados!G641)","v":""},{"$f":"IF(ISERROR(Dados!H641),\"-\",Dados!H641)","v":""},{"$f":"IF(ISERROR(Dados!I641),\"-\",Dados!I641)","v":""},{"$f":"IF(ISERROR(Dados!J641),\"-\",Dados!J641)","v":""},{"$f":"IF(ISERROR(Dados!K641),\"-\",Dados!K641)","v":""},{"$f":"IF(ISERROR(Dados!L641),\"-\",Dados!L641)","v":""},{"$f":"IF(ISERROR(Dados!M641),\"-\",Dados!M641)","v":""},{"$f":"IF(ISERROR(Dados!N641),\"-\",Dados!N641)","v":""},{"$f":"IF(ISERROR(Dados!O641),\"-\",Dados!O641)","v":""},{"$f":"IF(ISERROR(Dados!P641),\"-\",Dados!P641)","v":""},{"$f":"IF(ISERROR(Dados!Q641),\"-\",Dados!Q641)","v":""},{"$f":"IF(ISERROR(Dados!R641),\"-\",Dados!R641)","v":0},{"$f":"IF(ISERROR(Dados!S641),\"-\",Dados!S641)","v":0},{"$f":"IF(ISERROR(Dados!T641),\"-\",Dados!T641)","v":0},{"$f":"IF(ISERROR(Dados!U641),\"-\",Dados!U641)","v":""},{"$f":"IF(ISERROR(Dados!V641),\"-\",Dados!V641)","v":""},{"$f":"IF(ISERROR(Dados!W641),\"-\",Dados!W641)","v":""},{"$f":"IF(ISERROR(Dados!X641),\"-\",Dados!X641)","v":""},{"$f":"IF(ISERROR(Dados!Y641),\"-\",Dados!Y641)","v":""},{"$f":"IF(ISERROR(Dados!Z641),\"-\",Dados!Z641)","v":""},{"$f":"IF(ISERROR(Dados!AA641),\"-\",Dados!AA641)","v":""},{"$f":"IF(ISERROR(Dados!AB641),\"-\",Dados!AB641)","v":0},{"$f":"IF(ISERROR(Dados!AC641),\"-\",Dados!AC641)","v":""},{"$f":"IF(ISERROR(Dados!AD641),\"-\",Dados!AD641)","v":""},{"$f":"IF(ISERROR(Dados!AE641),\"-\",Dados!AE641)","v":""},{"$f":"IF(ISERROR(Dados!AF641),\"-\",Dados!AF641)","v":0},{"$f":"IF(ISERROR(Dados!AG641),\"-\",Dados!AG641)","v":""}]
[{"$f":"IF(ISERROR(Dados!A642),\"-\",Dados!A642)","v":""},{"$f":"IF(ISERROR(Dados!B642),\"-\",Dados!B642)","v":""},{"$f":"IF(ISERROR(Dados!C642),\"-\",Dados!C642)","v":""},{"$f":"IF(ISERROR(Dados!D642),\"-\",Dados!D642)","v":""},{"$f":"IF(ISERROR(Dados!E642),\"-\",Dados!E642)","v":""},{"$f":"IF(ISERROR(Dados!F642),\"-\",Dados!F642)","v":""},{"$f":"IF(ISERROR(Dados!G642),\"-\",Dados!G642)","v":""},{"$f":"IF(ISERROR(Dados!H642),\"-\",Dados!H642)","v":""},{"$f":"IF(ISERROR(Dados!I642),\"-\",Dados!I642)","v":""},{"$f":"IF(ISERROR(Dados!J642),\"-\",Dados!J642)","v":""},{"$f":"IF(ISERROR(Dados!K642),\"-\",Dados!K642)","v":""},{"$f":"IF(ISERROR(Dados!L642),\"-\",Dados!L642)","v":""},{"$f":"IF(ISERROR(Dados!M642),\"-\",Dados!M642)","v":""},{"$f":"IF(ISERROR(Dados!N642),\"-\",Dados!N642)","v":""},{"$f":"IF(ISERROR(Dados!O642),\"-\",Dados!O642)","v":""},{"$f":"IF(ISERROR(Dados!P642),\"-\",Dados!P642)","v":""},{"$f":"IF(ISERROR(Dados!Q642),\"-\",Dados!Q642)","v":""},{"$f":"IF(ISERROR(Dados!R642),\"-\",Dados!R642)","v":""},{"$f":"IF(ISERROR(Dados!S642),\"-\",Dados!S642)","v":""},{"$f":"IF(ISERROR(Dados!T642),\"-\",Dados!T642)","v":""},{"$f":"IF(ISERROR(Dados!U642),\"-\",Dados!U642)","v":""},{"$f":"IF(ISERROR(Dados!V642),\"-\",Dados!V642)","v":""},{"$f":"IF(ISERROR(Dados!W642),\"-\",Dados!W642)","v":""},{"$f":"IF(ISERROR(Dados!X642),\"-\",Dados!X642)","v":""},{"$f":"IF(ISERROR(Dados!Y642),\"-\",Dados!Y642)","v":""},{"$f":"IF(ISERROR(Dados!Z642),\"-\",Dados!Z642)","v":""},{"$f":"IF(ISERROR(Dados!AA642),\"-\",Dados!AA642)","v":""},{"$f":"IF(ISERROR(Dados!AB642),\"-\",Dados!AB642)","v":""},{"$f":"IF(ISERROR(Dados!AC642),\"-\",Dados!AC642)","v":""},{"$f":"IF(ISERROR(Dados!AD642),\"-\",Dados!AD642)","v":""},{"$f":"IF(ISERROR(Dados!AE642),\"-\",Dados!AE642)","v":""},{"$f":"IF(ISERROR(Dados!AF642),\"-\",Dados!AF642)","v":""},{"$f":"IF(ISERROR(Dados!AG642),\"-\",Dados!AG642)","v":""}]
[{"$f":"IF(ISERROR(Dados!A643),\"-\",Dados!A643)","v":""},{"$f":"IF(ISERROR(Dados!B643),\"-\",Dados!B643)","v":""},{"$f":"IF(ISERROR(Dados!C643),\"-\",Dados!C643)","v":""},{"$f":"IF(ISERROR(Dados!D643),\"-\",Dados!D643)","v":""},{"$f":"IF(ISERROR(Dados!E643),\"-\",Dados!E643)","v":""},{"$f":"IF(ISERROR(Dados!F643),\"-\",Dados!F643)","v":""},{"$f":"IF(ISERROR(Dados!G643),\"-\",Dados!G643)","v":""},{"$f":"IF(ISERROR(Dados!H643),\"-\",Dados!H643)","v":""},{"$f":"IF(ISERROR(Dados!I643),\"-\",Dados!I643)","v":""},{"$f":"IF(ISERROR(Dados!J643),\"-\",Dados!J643)","v":""},{"$f":"IF(ISERROR(Dados!K643),\"-\",Dados!K643)","v":""},{"$f":"IF(ISERROR(Dados!L643),\"-\",Dados!L643)","v":""},{"$f":"IF(ISERROR(Dados!M643),\"-\",Dados!M643)","v":""},{"$f":"IF(ISERROR(Dados!N643),\"-\",Dados!N643)","v":""},{"$f":"IF(ISERROR(Dados!O643),\"-\",Dados!O643)","v":""},{"$f":"IF(ISERROR(Dados!P643),\"-\",Dados!P643)","v":""},{"$f":"IF(ISERROR(Dados!Q643),\"-\",Dados!Q643)","v":""},{"$f":"IF(ISERROR(Dados!R643),\"-\",Dados!R643)","v":""},{"$f":"IF(ISERROR(Dados!S643),\"-\",Dados!S643)","v":""},{"$f":"IF(ISERROR(Dados!T643),\"-\",Dados!T643)","v":""},{"$f":"IF(ISERROR(Dados!U643),\"-\",Dados!U643)","v":""},{"$f":"IF(ISERROR(Dados!V643),\"-\",Dados!V643)","v":""},{"$f":"IF(ISERROR(Dados!W643),\"-\",Dados!W643)","v":""},{"$f":"IF(ISERROR(Dados!X643),\"-\",Dados!X643)","v":""},{"$f":"IF(ISERROR(Dados!Y643),\"-\",Dados!Y643)","v":""},{"$f":"IF(ISERROR(Dados!Z643),\"-\",Dados!Z643)","v":""},{"$f":"IF(ISERROR(Dados!AA643),\"-\",Dados!AA643)","v":""},{"$f":"IF(ISERROR(Dados!AB643),\"-\",Dados!AB643)","v":""},{"$f":"IF(ISERROR(Dados!AC643),\"-\",Dados!AC643)","v":""},{"$f":"IF(ISERROR(Dados!AD643),\"-\",Dados!AD643)","v":""},{"$f":"IF(ISERROR(Dados!AE643),\"-\",Dados!AE643)","v":""},{"$f":"IF(ISERROR(Dados!AF643),\"-\",Dados!AF643)","v":""},{"$f":"IF(ISERROR(Dados!AG643),\"-\",Dados!AG643)","v":""}]
[{"$f":"IF(ISERROR(Dados!A644),\"-\",Dados!A644)","v":""},{"$f":"IF(ISERROR(Dados!B644),\"-\",Dados!B644)","v":""},{"$f":"IF(ISERROR(Dados!C644),\"-\",Dados!C644)","v":""},{"$f":"IF(ISERROR(Dados!D644),\"-\",Dados!D644)","v":""},{"$f":"IF(ISERROR(Dados!E644),\"-\",Dados!E644)","v":""},{"$f":"IF(ISERROR(Dados!F644),\"-\",Dados!F644)","v":""},{"$f":"IF(ISERROR(Dados!G644),\"-\",Dados!G644)","v":""},{"$f":"IF(ISERROR(Dados!H644),\"-\",Dados!H644)","v":""},{"$f":"IF(ISERROR(Dados!I644),\"-\",Dados!I644)","v":""},{"$f":"IF(ISERROR(Dados!J644),\"-\",Dados!J644)","v":""},{"$f":"IF(ISERROR(Dados!K644),\"-\",Dados!K644)","v":""},{"$f":"IF(ISERROR(Dados!L644),\"-\",Dados!L644)","v":""},{"$f":"IF(ISERROR(Dados!M644),\"-\",Dados!M644)","v":""},{"$f":"IF(ISERROR(Dados!N644),\"-\",Dados!N644)","v":""},{"$f":"IF(ISERROR(Dados!O644),\"-\",Dados!O644)","v":""},{"$f":"IF(ISERROR(Dados!P644),\"-\",Dados!P644)","v":""},{"$f":"IF(ISERROR(Dados!Q644),\"-\",Dados!Q644)","v":""},{"$f":"IF(ISERROR(Dados!R644),\"-\",Dados!R644)","v":""},{"$f":"IF(ISERROR(Dados!S644),\"-\",Dados!S644)","v":""},{"$f":"IF(ISERROR(Dados!T644),\"-\",Dados!T644)","v":""},{"$f":"IF(ISERROR(Dados!U644),\"-\",Dados!U644)","v":""},{"$f":"IF(ISERROR(Dados!V644),\"-\",Dados!V644)","v":""},{"$f":"IF(ISERROR(Dados!W644),\"-\",Dados!W644)","v":""},{"$f":"IF(ISERROR(Dados!X644),\"-\",Dados!X644)","v":""},{"$f":"IF(ISERROR(Dados!Y644),\"-\",Dados!Y644)","v":""},{"$f":"IF(ISERROR(Dados!Z644),\"-\",Dados!Z644)","v":""},{"$f":"IF(ISERROR(Dados!AA644),\"-\",Dados!AA644)","v":""},{"$f":"IF(ISERROR(Dados!AB644),\"-\",Dados!AB644)","v":""},{"$f":"IF(ISERROR(Dados!AC644),\"-\",Dados!AC644)","v":""},{"$f":"IF(ISERROR(Dados!AD644),\"-\",Dados!AD644)","v":""},{"$f":"IF(ISERROR(Dados!AE644),\"-\",Dados!AE644)","v":""},{"$f":"IF(ISERROR(Dados!AF644),\"-\",Dados!AF644)","v":""},{"$f":"IF(ISERROR(Dados!AG644),\"-\",Dados!AG644)","v":""}]
[{"$f":"IF(ISERROR(Dados!A645),\"-\",Dados!A645)","v":""},{"$f":"IF(ISERROR(Dados!B645),\"-\",Dados!B645)","v":""},{"$f":"IF(ISERROR(Dados!C645),\"-\",Dados!C645)","v":""},{"$f":"IF(ISERROR(Dados!D645),\"-\",Dados!D645)","v":""},{"$f":"IF(ISERROR(Dados!E645),\"-\",Dados!E645)","v":""},{"$f":"IF(ISERROR(Dados!F645),\"-\",Dados!F645)","v":""},{"$f":"IF(ISERROR(Dados!G645),\"-\",Dados!G645)","v":""},{"$f":"IF(ISERROR(Dados!H645),\"-\",Dados!H645)","v":""},{"$f":"IF(ISERROR(Dados!I645),\"-\",Dados!I645)","v":""},{"$f":"IF(ISERROR(Dados!J645),\"-\",Dados!J645)","v":""},{"$f":"IF(ISERROR(Dados!K645),\"-\",Dados!K645)","v":""},{"$f":"IF(ISERROR(Dados!L645),\"-\",Dados!L645)","v":""},{"$f":"IF(ISERROR(Dados!M645),\"-\",Dados!M645)","v":""},{"$f":"IF(ISERROR(Dados!N645),\"-\",Dados!N645)","v":""},{"$f":"IF(ISERROR(Dados!O645),\"-\",Dados!O645)","v":""},{"$f":"IF(ISERROR(Dados!P645),\"-\",Dados!P645)","v":""},{"$f":"IF(ISERROR(Dados!Q645),\"-\",Dados!Q645)","v":""},{"$f":"IF(ISERROR(Dados!R645),\"-\",Dados!R645)","v":""},{"$f":"IF(ISERROR(Dados!S645),\"-\",Dados!S645)","v":""},{"$f":"IF(ISERROR(Dados!T645),\"-\",Dados!T645)","v":""},{"$f":"IF(ISERROR(Dados!U645),\"-\",Dados!U645)","v":""},{"$f":"IF(ISERROR(Dados!V645),\"-\",Dados!V645)","v":""},{"$f":"IF(ISERROR(Dados!W645),\"-\",Dados!W645)","v":""},{"$f":"IF(ISERROR(Dados!X645),\"-\",Dados!X645)","v":""},{"$f":"IF(ISERROR(Dados!Y645),\"-\",Dados!Y645)","v":""},{"$f":"IF(ISERROR(Dados!Z645),\"-\",Dados!Z645)","v":""},{"$f":"IF(ISERROR(Dados!AA645),\"-\",Dados!AA645)","v":""},{"$f":"IF(ISERROR(Dados!AB645),\"-\",Dados!AB645)","v":""},{"$f":"IF(ISERROR(Dados!AC645),\"-\",Dados!AC645)","v":""},{"$f":"IF(ISERROR(Dados!AD645),\"-\",Dados!AD645)","v":""},{"$f":"IF(ISERROR(Dados!AE645),\"-\",Dados!AE645)","v":""},{"$f":"IF(ISERROR(Dados!AF645),\"-\",Dados!AF645)","v":""},{"$f":"IF(ISERROR(Dados!AG645),\"-\",Dados!AG645)","v":""}]
[{"$f":"IF(ISERROR(Dados!A646),\"-\",Dados!A646)","v":""},{"$f":"IF(ISERROR(Dados!B646),\"-\",Dados!B646)","v":""},{"$f":"IF(ISERROR(Dados!C646),\"-\",Dados!C646)","v":""},{"$f":"IF(ISERROR(Dados!D646),\"-\",Dados!D646)","v":""},{"$f":"IF(ISERROR(Dados!E646),\"-\",Dados!E646)","v":""},{"$f":"IF(ISERROR(Dados!F646),\"-\",Dados!F646)","v":""},{"$f":"IF(ISERROR(Dados!G646),\"-\",Dados!G646)","v":""},{"$f":"IF(ISERROR(Dados!H646),\"-\",Dados!H646)","v":""},{"$f":"IF(ISERROR(Dados!I646),\"-\",Dados!I646)","v":""},{"$f":"IF(ISERROR(Dados!J646),\"-\",Dados!J646)","v":""},{"$f":"IF(ISERROR(Dados!K646),\"-\",Dados!K646)","v":""},{"$f":"IF(ISERROR(Dados!L646),\"-\",Dados!L646)","v":""},{"$f":"IF(ISERROR(Dados!M646),\"-\",Dados!M646)","v":""},{"$f":"IF(ISERROR(Dados!N646),\"-\",Dados!N646)","v":""},{"$f":"IF(ISERROR(Dados!O646),\"-\",Dados!O646)","v":""},{"$f":"IF(ISERROR(Dados!P646),\"-\",Dados!P646)","v":""},{"$f":"IF(ISERROR(Dados!Q646),\"-\",Dados!Q646)","v":""},{"$f":"IF(ISERROR(Dados!R646),\"-\",Dados!R646)","v":""},{"$f":"IF(ISERROR(Dados!S646),\"-\",Dados!S646)","v":""},{"$f":"IF(ISERROR(Dados!T646),\"-\",Dados!T646)","v":""},{"$f":"IF(ISERROR(Dados!U646),\"-\",Dados!U646)","v":""},{"$f":"IF(ISERROR(Dados!V646),\"-\",Dados!V646)","v":""},{"$f":"IF(ISERROR(Dados!W646),\"-\",Dados!W646)","v":""},{"$f":"IF(ISERROR(Dados!X646),\"-\",Dados!X646)","v":""},{"$f":"IF(ISERROR(Dados!Y646),\"-\",Dados!Y646)","v":""},{"$f":"IF(ISERROR(Dados!Z646),\"-\",Dados!Z646)","v":""},{"$f":"IF(ISERROR(Dados!AA646),\"-\",Dados!AA646)","v":""},{"$f":"IF(ISERROR(Dados!AB646),\"-\",Dados!AB646)","v":""},{"$f":"IF(ISERROR(Dados!AC646),\"-\",Dados!AC646)","v":""},{"$f":"IF(ISERROR(Dados!AD646),\"-\",Dados!AD646)","v":""},{"$f":"IF(ISERROR(Dados!AE646),\"-\",Dados!AE646)","v":""},{"$f":"IF(ISERROR(Dados!AF646),\"-\",Dados!AF646)","v":""},{"$f":"IF(ISERROR(Dados!AG646),\"-\",Dados!AG646)","v":""}]
[{"$f":"IF(ISERROR(Dados!A647),\"-\",Dados!A647)","v":""},{"$f":"IF(ISERROR(Dados!B647),\"-\",Dados!B647)","v":""},{"$f":"IF(ISERROR(Dados!C647),\"-\",Dados!C647)","v":""},{"$f":"IF(ISERROR(Dados!D647),\"-\",Dados!D647)","v":""},{"$f":"IF(ISERROR(Dados!E647),\"-\",Dados!E647)","v":""},{"$f":"IF(ISERROR(Dados!F647),\"-\",Dados!F647)","v":""},{"$f":"IF(ISERROR(Dados!G647),\"-\",Dados!G647)","v":""},{"$f":"IF(ISERROR(Dados!H647),\"-\",Dados!H647)","v":""},{"$f":"IF(ISERROR(Dados!I647),\"-\",Dados!I647)","v":""},{"$f":"IF(ISERROR(Dados!J647),\"-\",Dados!J647)","v":""},{"$f":"IF(ISERROR(Dados!K647),\"-\",Dados!K647)","v":""},{"$f":"IF(ISERROR(Dados!L647),\"-\",Dados!L647)","v":""},{"$f":"IF(ISERROR(Dados!M647),\"-\",Dados!M647)","v":""},{"$f":"IF(ISERROR(Dados!N647),\"-\",Dados!N647)","v":""},{"$f":"IF(ISERROR(Dados!O647),\"-\",Dados!O647)","v":""},{"$f":"IF(ISERROR(Dados!P647),\"-\",Dados!P647)","v":""},{"$f":"IF(ISERROR(Dados!Q647),\"-\",Dados!Q647)","v":""},{"$f":"IF(ISERROR(Dados!R647),\"-\",Dados!R647)","v":""},{"$f":"IF(ISERROR(Dados!S647),\"-\",Dados!S647)","v":""},{"$f":"IF(ISERROR(Dados!T647),\"-\",Dados!T647)","v":""},{"$f":"IF(ISERROR(Dados!U647),\"-\",Dados!U647)","v":""},{"$f":"IF(ISERROR(Dados!V647),\"-\",Dados!V647)","v":""},{"$f":"IF(ISERROR(Dados!W647),\"-\",Dados!W647)","v":""},{"$f":"IF(ISERROR(Dados!X647),\"-\",Dados!X647)","v":""},{"$f":"IF(ISERROR(Dados!Y647),\"-\",Dados!Y647)","v":""},{"$f":"IF(ISERROR(Dados!Z647),\"-\",Dados!Z647)","v":""},{"$f":"IF(ISERROR(Dados!AA647),\"-\",Dados!AA647)","v":""},{"$f":"IF(ISERROR(Dados!AB647),\"-\",Dados!AB647)","v":""},{"$f":"IF(ISERROR(Dados!AC647),\"-\",Dados!AC647)","v":""},{"$f":"IF(ISERROR(Dados!AD647),\"-\",Dados!AD647)","v":""},{"$f":"IF(ISERROR(Dados!AE647),\"-\",Dados!AE647)","v":""},{"$f":"IF(ISERROR(Dados!AF647),\"-\",Dados!AF647)","v":""},{"$f":"IF(ISERROR(Dados!AG647),\"-\",Dados!AG647)","v":""}]
[{"$f":"IF(ISERROR(Dados!A648),\"-\",Dados!A648)","v":""},{"$f":"IF(ISERROR(Dados!B648),\"-\",Dados!B648)","v":""},{"$f":"IF(ISERROR(Dados!C648),\"-\",Dados!C648)","v":""},{"$f":"IF(ISERROR(Dados!D648),\"-\",Dados!D648)","v":""},{"$f":"IF(ISERROR(Dados!E648),\"-\",Dados!E648)","v":""},{"$f":"IF(ISERROR(Dados!F648),\"-\",Dados!F648)","v":""},{"$f":"IF(ISERROR(Dados!G648),\"-\",Dados!G648)","v":""},{"$f":"IF(ISERROR(Dados!H648),\"-\",Dados!H648)","v":""},{"$f":"IF(ISERROR(Dados!I648),\"-\",Dados!I648)","v":""},{"$f":"IF(ISERROR(Dados!J648),\"-\",Dados!J648)","v":""},{"$f":"IF(ISERROR(Dados!K648),\"-\",Dados!K648)","v":""},{"$f":"IF(ISERROR(Dados!L648),\"-\",Dados!L648)","v":""},{"$f":"IF(ISERROR(Dados!M648),\"-\",Dados!M648)","v":""},{"$f":"IF(ISERROR(Dados!N648),\"-\",Dados!N648)","v":""},{"$f":"IF(ISERROR(Dados!O648),\"-\",Dados!O648)","v":""},{"$f":"IF(ISERROR(Dados!P648),\"-\",Dados!P648)","v":""},{"$f":"IF(ISERROR(Dados!Q648),\"-\",Dados!Q648)","v":""},{"$f":"IF(ISERROR(Dados!R648),\"-\",Dados!R648)","v":""},{"$f":"IF(ISERROR(Dados!S648),\"-\",Dados!S648)","v":""},{"$f":"IF(ISERROR(Dados!T648),\"-\",Dados!T648)","v":""},{"$f":"IF(ISERROR(Dados!U648),\"-\",Dados!U648)","v":""},{"$f":"IF(ISERROR(Dados!V648),\"-\",Dados!V648)","v":""},{"$f":"IF(ISERROR(Dados!W648),\"-\",Dados!W648)","v":""},{"$f":"IF(ISERROR(Dados!X648),\"-\",Dados!X648)","v":""},{"$f":"IF(ISERROR(Dados!Y648),\"-\",Dados!Y648)","v":""},{"$f":"IF(ISERROR(Dados!Z648),\"-\",Dados!Z648)","v":""},{"$f":"IF(ISERROR(Dados!AA648),\"-\",Dados!AA648)","v":""},{"$f":"IF(ISERROR(Dados!AB648),\"-\",Dados!AB648)","v":""},{"$f":"IF(ISERROR(Dados!AC648),\"-\",Dados!AC648)","v":""},{"$f":"IF(ISERROR(Dados!AD648),\"-\",Dados!AD648)","v":""},{"$f":"IF(ISERROR(Dados!AE648),\"-\",Dados!AE648)","v":""},{"$f":"IF(ISERROR(Dados!AF648),\"-\",Dados!AF648)","v":""},{"$f":"IF(ISERROR(Dados!AG648),\"-\",Dados!AG648)","v":""}]
[{"$f":"IF(ISERROR(Dados!A649),\"-\",Dados!A649)","v":""},{"$f":"IF(ISERROR(Dados!B649),\"-\",Dados!B649)","v":""},{"$f":"IF(ISERROR(Dados!C649),\"-\",Dados!C649)","v":""},{"$f":"IF(ISERROR(Dados!D649),\"-\",Dados!D649)","v":""},{"$f":"IF(ISERROR(Dados!E649),\"-\",Dados!E649)","v":""},{"$f":"IF(ISERROR(Dados!F649),\"-\",Dados!F649)","v":""},{"$f":"IF(ISERROR(Dados!G649),\"-\",Dados!G649)","v":""},{"$f":"IF(ISERROR(Dados!H649),\"-\",Dados!H649)","v":""},{"$f":"IF(ISERROR(Dados!I649),\"-\",Dados!I649)","v":""},{"$f":"IF(ISERROR(Dados!J649),\"-\",Dados!J649)","v":""},{"$f":"IF(ISERROR(Dados!K649),\"-\",Dados!K649)","v":""},{"$f":"IF(ISERROR(Dados!L649),\"-\",Dados!L649)","v":""},{"$f":"IF(ISERROR(Dados!M649),\"-\",Dados!M649)","v":""},{"$f":"IF(ISERROR(Dados!N649),\"-\",Dados!N649)","v":""},{"$f":"IF(ISERROR(Dados!O649),\"-\",Dados!O649)","v":""},{"$f":"IF(ISERROR(Dados!P649),\"-\",Dados!P649)","v":""},{"$f":"IF(ISERROR(Dados!Q649),\"-\",Dados!Q649)","v":""},{"$f":"IF(ISERROR(Dados!R649),\"-\",Dados!R649)","v":""},{"$f":"IF(ISERROR(Dados!S649),\"-\",Dados!S649)","v":""},{"$f":"IF(ISERROR(Dados!T649),\"-\",Dados!T649)","v":""},{"$f":"IF(ISERROR(Dados!U649),\"-\",Dados!U649)","v":""},{"$f":"IF(ISERROR(Dados!V649),\"-\",Dados!V649)","v":""},{"$f":"IF(ISERROR(Dados!W649),\"-\",Dados!W649)","v":""},{"$f":"IF(ISERROR(Dados!X649),\"-\",Dados!X649)","v":""},{"$f":"IF(ISERROR(Dados!Y649),\"-\",Dados!Y649)","v":""},{"$f":"IF(ISERROR(Dados!Z649),\"-\",Dados!Z649)","v":""},{"$f":"IF(ISERROR(Dados!AA649),\"-\",Dados!AA649)","v":""},{"$f":"IF(ISERROR(Dados!AB649),\"-\",Dados!AB649)","v":""},{"$f":"IF(ISERROR(Dados!AC649),\"-\",Dados!AC649)","v":""},{"$f":"IF(ISERROR(Dados!AD649),\"-\",Dados!AD649)","v":""},{"$f":"IF(ISERROR(Dados!AE649),\"-\",Dados!AE649)","v":""},{"$f":"IF(ISERROR(Dados!AF649),\"-\",Dados!AF649)","v":""},{"$f":"IF(ISERROR(Dados!AG649),\"-\",Dados!AG649)","v":""}]
[{"$f":"IF(ISERROR(Dados!A650),\"-\",Dados!A650)","v":""},{"$f":"IF(ISERROR(Dados!B650),\"-\",Dados!B650)","v":""},{"$f":"IF(ISERROR(Dados!C650),\"-\",Dados!C650)","v":""},{"$f":"IF(ISERROR(Dados!D650),\"-\",Dados!D650)","v":""},{"$f":"IF(ISERROR(Dados!E650),\"-\",Dados!E650)","v":""},{"$f":"IF(ISERROR(Dados!F650),\"-\",Dados!F650)","v":""},{"$f":"IF(ISERROR(Dados!G650),\"-\",Dados!G650)","v":""},{"$f":"IF(ISERROR(Dados!H650),\"-\",Dados!H650)","v":""},{"$f":"IF(ISERROR(Dados!I650),\"-\",Dados!I650)","v":""},{"$f":"IF(ISERROR(Dados!J650),\"-\",Dados!J650)","v":""},{"$f":"IF(ISERROR(Dados!K650),\"-\",Dados!K650)","v":""},{"$f":"IF(ISERROR(Dados!L650),\"-\",Dados!L650)","v":""},{"$f":"IF(ISERROR(Dados!M650),\"-\",Dados!M650)","v":""},{"$f":"IF(ISERROR(Dados!N650),\"-\",Dados!N650)","v":""},{"$f":"IF(ISERROR(Dados!O650),\"-\",Dados!O650)","v":""},{"$f":"IF(ISERROR(Dados!P650),\"-\",Dados!P650)","v":""},{"$f":"IF(ISERROR(Dados!Q650),\"-\",Dados!Q650)","v":""},{"$f":"IF(ISERROR(Dados!R650),\"-\",Dados!R650)","v":""},{"$f":"IF(ISERROR(Dados!S650),\"-\",Dados!S650)","v":""},{"$f":"IF(ISERROR(Dados!T650),\"-\",Dados!T650)","v":""},{"$f":"IF(ISERROR(Dados!U650),\"-\",Dados!U650)","v":""},{"$f":"IF(ISERROR(Dados!V650),\"-\",Dados!V650)","v":""},{"$f":"IF(ISERROR(Dados!W650),\"-\",Dados!W650)","v":""},{"$f":"IF(ISERROR(Dados!X650),\"-\",Dados!X650)","v":""},{"$f":"IF(ISERROR(Dados!Y650),\"-\",Dados!Y650)","v":""},{"$f":"IF(ISERROR(Dados!Z650),\"-\",Dados!Z650)","v":""},{"$f":"IF(ISERROR(Dados!AA650),\"-\",Dados!AA650)","v":""},{"$f":"IF(ISERROR(Dados!AB650),\"-\",Dados!AB650)","v":""},{"$f":"IF(ISERROR(Dados!AC650),\"-\",Dados!AC650)","v":""},{"$f":"IF(ISERROR(Dados!AD650),\"-\",Dados!AD650)","v":""},{"$f":"IF(ISERROR(Dados!AE650),\"-\",Dados!AE650)","v":""},{"$f":"IF(ISERROR(Dados!AF650),\"-\",Dados!AF650)","v":""},{"$f":"IF(ISERROR(Dados!AG650),\"-\",Dados!AG650)","v":""}]
[{"$f":"IF(ISERROR(Dados!A651),\"-\",Dados!A651)","v":""},{"$f":"IF(ISERROR(Dados!B651),\"-\",Dados!B651)","v":""},{"$f":"IF(ISERROR(Dados!C651),\"-\",Dados!C651)","v":""},{"$f":"IF(ISERROR(Dados!D651),\"-\",Dados!D651)","v":""},{"$f":"IF(ISERROR(Dados!E651),\"-\",Dados!E651)","v":""},{"$f":"IF(ISERROR(Dados!F651),\"-\",Dados!F651)","v":""},{"$f":"IF(ISERROR(Dados!G651),\"-\",Dados!G651)","v":""},{"$f":"IF(ISERROR(Dados!H651),\"-\",Dados!H651)","v":""},{"$f":"IF(ISERROR(Dados!I651),\"-\",Dados!I651)","v":""},{"$f":"IF(ISERROR(Dados!J651),\"-\",Dados!J651)","v":""},{"$f":"IF(ISERROR(Dados!K651),\"-\",Dados!K651)","v":""},{"$f":"IF(ISERROR(Dados!L651),\"-\",Dados!L651)","v":""},{"$f":"IF(ISERROR(Dados!M651),\"-\",Dados!M651)","v":""},{"$f":"IF(ISERROR(Dados!N651),\"-\",Dados!N651)","v":""},{"$f":"IF(ISERROR(Dados!O651),\"-\",Dados!O651)","v":""},{"$f":"IF(ISERROR(Dados!P651),\"-\",Dados!P651)","v":""},{"$f":"IF(ISERROR(Dados!Q651),\"-\",Dados!Q651)","v":""},{"$f":"IF(ISERROR(Dados!R651),\"-\",Dados!R651)","v":""},{"$f":"IF(ISERROR(Dados!S651),\"-\",Dados!S651)","v":""},{"$f":"IF(ISERROR(Dados!T651),\"-\",Dados!T651)","v":""},{"$f":"IF(ISERROR(Dados!U651),\"-\",Dados!U651)","v":""},{"$f":"IF(ISERROR(Dados!V651),\"-\",Dados!V651)","v":""},{"$f":"IF(ISERROR(Dados!W651),\"-\",Dados!W651)","v":""},{"$f":"IF(ISERROR(Dados!X651),\"-\",Dados!X651)","v":""},{"$f":"IF(ISERROR(Dados!Y651),\"-\",Dados!Y651)","v":""},{"$f":"IF(ISERROR(Dados!Z651),\"-\",Dados!Z651)","v":""},{"$f":"IF(ISERROR(Dados!AA651),\"-\",Dados!AA651)","v":""},{"$f":"IF(ISERROR(Dados!AB651),\"-\",Dados!AB651)","v":""},{"$f":"IF(ISERROR(Dados!AC651),\"-\",Dados!AC651)","v":""},{"$f":"IF(ISERROR(Dados!AD651),\"-\",Dados!AD651)","v":""},{"$f":"IF(ISERROR(Dados!AE651),\"-\",Dados!AE651)","v":""},{"$f":"IF(ISERROR(Dados!AF651),\"-\",Dados!AF651)","v":""},{"$f":"IF(ISERROR(Dados!AG651),\"-\",Dados!AG651)","v":""}]
[{"$f":"IF(ISERROR(Dados!A652),\"-\",Dados!A652)","v":""},{"$f":"IF(ISERROR(Dados!B652),\"-\",Dados!B652)","v":""},{"$f":"IF(ISERROR(Dados!C652),\"-\",Dados!C652)","v":""},{"$f":"IF(ISERROR(Dados!D652),\"-\",Dados!D652)","v":""},{"$f":"IF(ISERROR(Dados!E652),\"-\",Dados!E652)","v":""},{"$f":"IF(ISERROR(Dados!F652),\"-\",Dados!F652)","v":""},{"$f":"IF(ISERROR(Dados!G652),\"-\",Dados!G652)","v":""},{"$f":"IF(ISERROR(Dados!H652),\"-\",Dados!H652)","v":""},{"$f":"IF(ISERROR(Dados!I652),\"-\",Dados!I652)","v":""},{"$f":"IF(ISERROR(Dados!J652),\"-\",Dados!J652)","v":""},{"$f":"IF(ISERROR(Dados!K652),\"-\",Dados!K652)","v":""},{"$f":"IF(ISERROR(Dados!L652),\"-\",Dados!L652)","v":""},{"$f":"IF(ISERROR(Dados!M652),\"-\",Dados!M652)","v":""},{"$f":"IF(ISERROR(Dados!N652),\"-\",Dados!N652)","v":""},{"$f":"IF(ISERROR(Dados!O652),\"-\",Dados!O652)","v":""},{"$f":"IF(ISERROR(Dados!P652),\"-\",Dados!P652)","v":""},{"$f":"IF(ISERROR(Dados!Q652),\"-\",Dados!Q652)","v":""},{"$f":"IF(ISERROR(Dados!R652),\"-\",Dados!R652)","v":""},{"$f":"IF(ISERROR(Dados!S652),\"-\",Dados!S652)","v":""},{"$f":"IF(ISERROR(Dados!T652),\"-\",Dados!T652)","v":""},{"$f":"IF(ISERROR(Dados!U652),\"-\",Dados!U652)","v":""},{"$f":"IF(ISERROR(Dados!V652),\"-\",Dados!V652)","v":""},{"$f":"IF(ISERROR(Dados!W652),\"-\",Dados!W652)","v":""},{"$f":"IF(ISERROR(Dados!X652),\"-\",Dados!X652)","v":""},{"$f":"IF(ISERROR(Dados!Y652),\"-\",Dados!Y652)","v":""},{"$f":"IF(ISERROR(Dados!Z652),\"-\",Dados!Z652)","v":""},{"$f":"IF(ISERROR(Dados!AA652),\"-\",Dados!AA652)","v":""},{"$f":"IF(ISERROR(Dados!AB652),\"-\",Dados!AB652)","v":""},{"$f":"IF(ISERROR(Dados!AC652),\"-\",Dados!AC652)","v":""},{"$f":"IF(ISERROR(Dados!AD652),\"-\",Dados!AD652)","v":""},{"$f":"IF(ISERROR(Dados!AE652),\"-\",Dados!AE652)","v":""},{"$f":"IF(ISERROR(Dados!AF652),\"-\",Dados!AF652)","v":""},{"$f":"IF(ISERROR(Dados!AG652),\"-\",Dados!AG652)","v":""}]
[{"$f":"IF(ISERROR(Dados!A653),\"-\",Dados!A653)","v":""},{"$f":"IF(ISERROR(Dados!B653),\"-\",Dados!B653)","v":""},{"$f":"IF(ISERROR(Dados!C653),\"-\",Dados!C653)","v":""},{"$f":"IF(ISERROR(Dados!D653),\"-\",Dados!D653)","v":""},{"$f":"IF(ISERROR(Dados!E653),\"-\",Dados!E653)","v":""},{"$f":"IF(ISERROR(Dados!F653),\"-\",Dados!F653)","v":""},{"$f":"IF(ISERROR(Dados!G653),\"-\",Dados!G653)","v":""},{"$f":"IF(ISERROR(Dados!H653),\"-\",Dados!H653)","v":""},{"$f":"IF(ISERROR(Dados!I653),\"-\",Dados!I653)","v":""},{"$f":"IF(ISERROR(Dados!J653),\"-\",Dados!J653)","v":""},{"$f":"IF(ISERROR(Dados!K653),\"-\",Dados!K653)","v":""},{"$f":"IF(ISERROR(Dados!L653),\"-\",Dados!L653)","v":""},{"$f":"IF(ISERROR(Dados!M653),\"-\",Dados!M653)","v":""},{"$f":"IF(ISERROR(Dados!N653),\"-\",Dados!N653)","v":""},{"$f":"IF(ISERROR(Dados!O653),\"-\",Dados!O653)","v":""},{"$f":"IF(ISERROR(Dados!P653),\"-\",Dados!P653)","v":""},{"$f":"IF(ISERROR(Dados!Q653),\"-\",Dados!Q653)","v":""},{"$f":"IF(ISERROR(Dados!R653),\"-\",Dados!R653)","v":""},{"$f":"IF(ISERROR(Dados!S653),\"-\",Dados!S653)","v":""},{"$f":"IF(ISERROR(Dados!T653),\"-\",Dados!T653)","v":""},{"$f":"IF(ISERROR(Dados!U653),\"-\",Dados!U653)","v":""},{"$f":"IF(ISERROR(Dados!V653),\"-\",Dados!V653)","v":""},{"$f":"IF(ISERROR(Dados!W653),\"-\",Dados!W653)","v":""},{"$f":"IF(ISERROR(Dados!X653),\"-\",Dados!X653)","v":""},{"$f":"IF(ISERROR(Dados!Y653),\"-\",Dados!Y653)","v":""},{"$f":"IF(ISERROR(Dados!Z653),\"-\",Dados!Z653)","v":""},{"$f":"IF(ISERROR(Dados!AA653),\"-\",Dados!AA653)","v":""},{"$f":"IF(ISERROR(Dados!AB653),\"-\",Dados!AB653)","v":""},{"$f":"IF(ISERROR(Dados!AC653),\"-\",Dados!AC653)","v":""},{"$f":"IF(ISERROR(Dados!AD653),\"-\",Dados!AD653)","v":""},{"$f":"IF(ISERROR(Dados!AE653),\"-\",Dados!AE653)","v":""},{"$f":"IF(ISERROR(Dados!AF653),\"-\",Dados!AF653)","v":""},{"$f":"IF(ISERROR(Dados!AG653),\"-\",Dados!AG653)","v":""}]
[{"$f":"IF(ISERROR(Dados!A654),\"-\",Dados!A654)","v":""},{"$f":"IF(ISERROR(Dados!B654),\"-\",Dados!B654)","v":""},{"$f":"IF(ISERROR(Dados!C654),\"-\",Dados!C654)","v":""},{"$f":"IF(ISERROR(Dados!D654),\"-\",Dados!D654)","v":""},{"$f":"IF(ISERROR(Dados!E654),\"-\",Dados!E654)","v":""},{"$f":"IF(ISERROR(Dados!F654),\"-\",Dados!F654)","v":""},{"$f":"IF(ISERROR(Dados!G654),\"-\",Dados!G654)","v":""},{"$f":"IF(ISERROR(Dados!H654),\"-\",Dados!H654)","v":""},{"$f":"IF(ISERROR(Dados!I654),\"-\",Dados!I654)","v":""},{"$f":"IF(ISERROR(Dados!J654),\"-\",Dados!J654)","v":""},{"$f":"IF(ISERROR(Dados!K654),\"-\",Dados!K654)","v":""},{"$f":"IF(ISERROR(Dados!L654),\"-\",Dados!L654)","v":""},{"$f":"IF(ISERROR(Dados!M654),\"-\",Dados!M654)","v":""},{"$f":"IF(ISERROR(Dados!N654),\"-\",Dados!N654)","v":""},{"$f":"IF(ISERROR(Dados!O654),\"-\",Dados!O654)","v":""},{"$f":"IF(ISERROR(Dados!P654),\"-\",Dados!P654)","v":""},{"$f":"IF(ISERROR(Dados!Q654),\"-\",Dados!Q654)","v":""},{"$f":"IF(ISERROR(Dados!R654),\"-\",Dados!R654)","v":""},{"$f":"IF(ISERROR(Dados!S654),\"-\",Dados!S654)","v":""},{"$f":"IF(ISERROR(Dados!T654),\"-\",Dados!T654)","v":""},{"$f":"IF(ISERROR(Dados!U654),\"-\",Dados!U654)","v":""},{"$f":"IF(ISERROR(Dados!V654),\"-\",Dados!V654)","v":""},{"$f":"IF(ISERROR(Dados!W654),\"-\",Dados!W654)","v":""},{"$f":"IF(ISERROR(Dados!X654),\"-\",Dados!X654)","v":""},{"$f":"IF(ISERROR(Dados!Y654),\"-\",Dados!Y654)","v":""},{"$f":"IF(ISERROR(Dados!Z654),\"-\",Dados!Z654)","v":""},{"$f":"IF(ISERROR(Dados!AA654),\"-\",Dados!AA654)","v":""},{"$f":"IF(ISERROR(Dados!AB654),\"-\",Dados!AB654)","v":""},{"$f":"IF(ISERROR(Dados!AC654),\"-\",Dados!AC654)","v":""},{"$f":"IF(ISERROR(Dados!AD654),\"-\",Dados!AD654)","v":""},{"$f":"IF(ISERROR(Dados!AE654),\"-\",Dados!AE654)","v":""},{"$f":"IF(ISERROR(Dados!AF654),\"-\",Dados!AF654)","v":""},{"$f":"IF(ISERROR(Dados!AG654),\"-\",Dados!AG654)","v":""}]
[{"$f":"IF(ISERROR(Dados!A655),\"-\",Dados!A655)","v":""},{"$f":"IF(ISERROR(Dados!B655),\"-\",Dados!B655)","v":""},{"$f":"IF(ISERROR(Dados!C655),\"-\",Dados!C655)","v":""},{"$f":"IF(ISERROR(Dados!D655),\"-\",Dados!D655)","v":""},{"$f":"IF(ISERROR(Dados!E655),\"-\",Dados!E655)","v":""},{"$f":"IF(ISERROR(Dados!F655),\"-\",Dados!F655)","v":""},{"$f":"IF(ISERROR(Dados!G655),\"-\",Dados!G655)","v":""},{"$f":"IF(ISERROR(Dados!H655),\"-\",Dados!H655)","v":""},{"$f":"IF(ISERROR(Dados!I655),\"-\",Dados!I655)","v":""},{"$f":"IF(ISERROR(Dados!J655),\"-\",Dados!J655)","v":""},{"$f":"IF(ISERROR(Dados!K655),\"-\",Dados!K655)","v":""},{"$f":"IF(ISERROR(Dados!L655),\"-\",Dados!L655)","v":""},{"$f":"IF(ISERROR(Dados!M655),\"-\",Dados!M655)","v":""},{"$f":"IF(ISERROR(Dados!N655),\"-\",Dados!N655)","v":""},{"$f":"IF(ISERROR(Dados!O655),\"-\",Dados!O655)","v":""},{"$f":"IF(ISERROR(Dados!P655),\"-\",Dados!P655)","v":""},{"$f":"IF(ISERROR(Dados!Q655),\"-\",Dados!Q655)","v":""},{"$f":"IF(ISERROR(Dados!R655),\"-\",Dados!R655)","v":""},{"$f":"IF(ISERROR(Dados!S655),\"-\",Dados!S655)","v":""},{"$f":"IF(ISERROR(Dados!T655),\"-\",Dados!T655)","v":""},{"$f":"IF(ISERROR(Dados!U655),\"-\",Dados!U655)","v":""},{"$f":"IF(ISERROR(Dados!V655),\"-\",Dados!V655)","v":""},{"$f":"IF(ISERROR(Dados!W655),\"-\",Dados!W655)","v":""},{"$f":"IF(ISERROR(Dados!X655),\"-\",Dados!X655)","v":""},{"$f":"IF(ISERROR(Dados!Y655),\"-\",Dados!Y655)","v":""},{"$f":"IF(ISERROR(Dados!Z655),\"-\",Dados!Z655)","v":""},{"$f":"IF(ISERROR(Dados!AA655),\"-\",Dados!AA655)","v":""},{"$f":"IF(ISERROR(Dados!AB655),\"-\",Dados!AB655)","v":""},{"$f":"IF(ISERROR(Dados!AC655),\"-\",Dados!AC655)","v":""},{"$f":"IF(ISERROR(Dados!AD655),\"-\",Dados!AD655)","v":""},{"$f":"IF(ISERROR(Dados!AE655),\"-\",Dados!AE655)","v":""},{"$f":"IF(ISERROR(Dados!AF655),\"-\",Dados!AF655)","v":""},{"$f":"IF(ISERROR(Dados!AG655),\"-\",Dados!AG655)","v":""}]
[{"$f":"IF(ISERROR(Dados!A656),\"-\",Dados!A656)","v":""},{"$f":"IF(ISERROR(Dados!B656),\"-\",Dados!B656)","v":""},{"$f":"IF(ISERROR(Dados!C656),\"-\",Dados!C656)","v":""},{"$f":"IF(ISERROR(Dados!D656),\"-\",Dados!D656)","v":""},{"$f":"IF(ISERROR(Dados!E656),\"-\",Dados!E656)","v":""},{"$f":"IF(ISERROR(Dados!F656),\"-\",Dados!F656)","v":""},{"$f":"IF(ISERROR(Dados!G656),\"-\",Dados!G656)","v":""},{"$f":"IF(ISERROR(Dados!H656),\"-\",Dados!H656)","v":""},{"$f":"IF(ISERROR(Dados!I656),\"-\",Dados!I656)","v":""},{"$f":"IF(ISERROR(Dados!J656),\"-\",Dados!J656)","v":""},{"$f":"IF(ISERROR(Dados!K656),\"-\",Dados!K656)","v":""},{"$f":"IF(ISERROR(Dados!L656),\"-\",Dados!L656)","v":""},{"$f":"IF(ISERROR(Dados!M656),\"-\",Dados!M656)","v":""},{"$f":"IF(ISERROR(Dados!N656),\"-\",Dados!N656)","v":""},{"$f":"IF(ISERROR(Dados!O656),\"-\",Dados!O656)","v":""},{"$f":"IF(ISERROR(Dados!P656),\"-\",Dados!P656)","v":""},{"$f":"IF(ISERROR(Dados!Q656),\"-\",Dados!Q656)","v":""},{"$f":"IF(ISERROR(Dados!R656),\"-\",Dados!R656)","v":""},{"$f":"IF(ISERROR(Dados!S656),\"-\",Dados!S656)","v":""},{"$f":"IF(ISERROR(Dados!T656),\"-\",Dados!T656)","v":""},{"$f":"IF(ISERROR(Dados!U656),\"-\",Dados!U656)","v":""},{"$f":"IF(ISERROR(Dados!V656),\"-\",Dados!V656)","v":""},{"$f":"IF(ISERROR(Dados!W656),\"-\",Dados!W656)","v":""},{"$f":"IF(ISERROR(Dados!X656),\"-\",Dados!X656)","v":""},{"$f":"IF(ISERROR(Dados!Y656),\"-\",Dados!Y656)","v":""},{"$f":"IF(ISERROR(Dados!Z656),\"-\",Dados!Z656)","v":""},{"$f":"IF(ISERROR(Dados!AA656),\"-\",Dados!AA656)","v":""},{"$f":"IF(ISERROR(Dados!AB656),\"-\",Dados!AB656)","v":""},{"$f":"IF(ISERROR(Dados!AC656),\"-\",Dados!AC656)","v":""},{"$f":"IF(ISERROR(Dados!AD656),\"-\",Dados!AD656)","v":""},{"$f":"IF(ISERROR(Dados!AE656),\"-\",Dados!AE656)","v":""},{"$f":"IF(ISERROR(Dados!AF656),\"-\",Dados!AF656)","v":""},{"$f":"IF(ISERROR(Dados!AG656),\"-\",Dados!AG656)","v":""}]
[{"$f":"IF(ISERROR(Dados!A657),\"-\",Dados!A657)","v":""},{"$f":"IF(ISERROR(Dados!B657),\"-\",Dados!B657)","v":""},{"$f":"IF(ISERROR(Dados!C657),\"-\",Dados!C657)","v":""},{"$f":"IF(ISERROR(Dados!D657),\"-\",Dados!D657)","v":""},{"$f":"IF(ISERROR(Dados!E657),\"-\",Dados!E657)","v":""},{"$f":"IF(ISERROR(Dados!F657),\"-\",Dados!F657)","v":""},{"$f":"IF(ISERROR(Dados!G657),\"-\",Dados!G657)","v":""},{"$f":"IF(ISERROR(Dados!H657),\"-\",Dados!H657)","v":""},{"$f":"IF(ISERROR(Dados!I657),\"-\",Dados!I657)","v":""},{"$f":"IF(ISERROR(Dados!J657),\"-\",Dados!J657)","v":""},{"$f":"IF(ISERROR(Dados!K657),\"-\",Dados!K657)","v":""},{"$f":"IF(ISERROR(Dados!L657),\"-\",Dados!L657)","v":""},{"$f":"IF(ISERROR(Dados!M657),\"-\",Dados!M657)","v":""},{"$f":"IF(ISERROR(Dados!N657),\"-\",Dados!N657)","v":""},{"$f":"IF(ISERROR(Dados!O657),\"-\",Dados!O657)","v":""},{"$f":"IF(ISERROR(Dados!P657),\"-\",Dados!P657)","v":""},{"$f":"IF(ISERROR(Dados!Q657),\"-\",Dados!Q657)","v":""},{"$f":"IF(ISERROR(Dados!R657),\"-\",Dados!R657)","v":""},{"$f":"IF(ISERROR(Dados!S657),\"-\",Dados!S657)","v":""},{"$f":"IF(ISERROR(Dados!T657),\"-\",Dados!T657)","v":""},{"$f":"IF(ISERROR(Dados!U657),\"-\",Dados!U657)","v":""},{"$f":"IF(ISERROR(Dados!V657),\"-\",Dados!V657)","v":""},{"$f":"IF(ISERROR(Dados!W657),\"-\",Dados!W657)","v":""},{"$f":"IF(ISERROR(Dados!X657),\"-\",Dados!X657)","v":""},{"$f":"IF(ISERROR(Dados!Y657),\"-\",Dados!Y657)","v":""},{"$f":"IF(ISERROR(Dados!Z657),\"-\",Dados!Z657)","v":""},{"$f":"IF(ISERROR(Dados!AA657),\"-\",Dados!AA657)","v":""},{"$f":"IF(ISERROR(Dados!AB657),\"-\",Dados!AB657)","v":""},{"$f":"IF(ISERROR(Dados!AC657),\"-\",Dados!AC657)","v":""},{"$f":"IF(ISERROR(Dados!AD657),\"-\",Dados!AD657)","v":""},{"$f":"IF(ISERROR(Dados!AE657),\"-\",Dados!AE657)","v":""},{"$f":"IF(ISERROR(Dados!AF657),\"-\",Dados!AF657)","v":""},{"$f":"IF(ISERROR(Dados!AG657),\"-\",Dados!AG657)","v":""}]
[{"$f":"IF(ISERROR(Dados!A658),\"-\",Dados!A658)","v":""},{"$f":"IF(ISERROR(Dados!B658),\"-\",Dados!B658)","v":""},{"$f":"IF(ISERROR(Dados!C658),\"-\",Dados!C658)","v":""},{"$f":"IF(ISERROR(Dados!D658),\"-\",Dados!D658)","v":""},{"$f":"IF(ISERROR(Dados!E658),\"-\",Dados!E658)","v":""},{"$f":"IF(ISERROR(Dados!F658),\"-\",Dados!F658)","v":""},{"$f":"IF(ISERROR(Dados!G658),\"-\",Dados!G658)","v":""},{"$f":"IF(ISERROR(Dados!H658),\"-\",Dados!H658)","v":""},{"$f":"IF(ISERROR(Dados!I658),\"-\",Dados!I658)","v":""},{"$f":"IF(ISERROR(Dados!J658),\"-\",Dados!J658)","v":""},{"$f":"IF(ISERROR(Dados!K658),\"-\",Dados!K658)","v":""},{"$f":"IF(ISERROR(Dados!L658),\"-\",Dados!L658)","v":""},{"$f":"IF(ISERROR(Dados!M658),\"-\",Dados!M658)","v":""},{"$f":"IF(ISERROR(Dados!N658),\"-\",Dados!N658)","v":""},{"$f":"IF(ISERROR(Dados!O658),\"-\",Dados!O658)","v":""},{"$f":"IF(ISERROR(Dados!P658),\"-\",Dados!P658)","v":""},{"$f":"IF(ISERROR(Dados!Q658),\"-\",Dados!Q658)","v":""},{"$f":"IF(ISERROR(Dados!R658),\"-\",Dados!R658)","v":""},{"$f":"IF(ISERROR(Dados!S658),\"-\",Dados!S658)","v":""},{"$f":"IF(ISERROR(Dados!T658),\"-\",Dados!T658)","v":""},{"$f":"IF(ISERROR(Dados!U658),\"-\",Dados!U658)","v":""},{"$f":"IF(ISERROR(Dados!V658),\"-\",Dados!V658)","v":""},{"$f":"IF(ISERROR(Dados!W658),\"-\",Dados!W658)","v":""},{"$f":"IF(ISERROR(Dados!X658),\"-\",Dados!X658)","v":""},{"$f":"IF(ISERROR(Dados!Y658),\"-\",Dados!Y658)","v":""},{"$f":"IF(ISERROR(Dados!Z658),\"-\",Dados!Z658)","v":""},{"$f":"IF(ISERROR(Dados!AA658),\"-\",Dados!AA658)","v":""},{"$f":"IF(ISERROR(Dados!AB658),\"-\",Dados!AB658)","v":""},{"$f":"IF(ISERROR(Dados!AC658),\"-\",Dados!AC658)","v":""},{"$f":"IF(ISERROR(Dados!AD658),\"-\",Dados!AD658)","v":""},{"$f":"IF(ISERROR(Dados!AE658),\"-\",Dados!AE658)","v":""},{"$f":"IF(ISERROR(Dados!AF658),\"-\",Dados!AF658)","v":""},{"$f":"IF(ISERROR(Dados!AG658),\"-\",Dados!AG658)","v":""}]
[{"$f":"IF(ISERROR(Dados!A659),\"-\",Dados!A659)","v":""},{"$f":"IF(ISERROR(Dados!B659),\"-\",Dados!B659)","v":""},{"$f":"IF(ISERROR(Dados!C659),\"-\",Dados!C659)","v":""},{"$f":"IF(ISERROR(Dados!D659),\"-\",Dados!D659)","v":""},{"$f":"IF(ISERROR(Dados!E659),\"-\",Dados!E659)","v":""},{"$f":"IF(ISERROR(Dados!F659),\"-\",Dados!F659)","v":""},{"$f":"IF(ISERROR(Dados!G659),\"-\",Dados!G659)","v":""},{"$f":"IF(ISERROR(Dados!H659),\"-\",Dados!H659)","v":""},{"$f":"IF(ISERROR(Dados!I659),\"-\",Dados!I659)","v":""},{"$f":"IF(ISERROR(Dados!J659),\"-\",Dados!J659)","v":""},{"$f":"IF(ISERROR(Dados!K659),\"-\",Dados!K659)","v":""},{"$f":"IF(ISERROR(Dados!L659),\"-\",Dados!L659)","v":""},{"$f":"IF(ISERROR(Dados!M659),\"-\",Dados!M659)","v":""},{"$f":"IF(ISERROR(Dados!N659),\"-\",Dados!N659)","v":""},{"$f":"IF(ISERROR(Dados!O659),\"-\",Dados!O659)","v":""},{"$f":"IF(ISERROR(Dados!P659),\"-\",Dados!P659)","v":""},{"$f":"IF(ISERROR(Dados!Q659),\"-\",Dados!Q659)","v":""},{"$f":"IF(ISERROR(Dados!R659),\"-\",Dados!R659)","v":""},{"$f":"IF(ISERROR(Dados!S659),\"-\",Dados!S659)","v":""},{"$f":"IF(ISERROR(Dados!T659),\"-\",Dados!T659)","v":""},{"$f":"IF(ISERROR(Dados!U659),\"-\",Dados!U659)","v":""},{"$f":"IF(ISERROR(Dados!V659),\"-\",Dados!V659)","v":""},{"$f":"IF(ISERROR(Dados!W659),\"-\",Dados!W659)","v":""},{"$f":"IF(ISERROR(Dados!X659),\"-\",Dados!X659)","v":""},{"$f":"IF(ISERROR(Dados!Y659),\"-\",Dados!Y659)","v":""},{"$f":"IF(ISERROR(Dados!Z659),\"-\",Dados!Z659)","v":""},{"$f":"IF(ISERROR(Dados!AA659),\"-\",Dados!AA659)","v":""},{"$f":"IF(ISERROR(Dados!AB659),\"-\",Dados!AB659)","v":""},{"$f":"IF(ISERROR(Dados!AC659),\"-\",Dados!AC659)","v":""},{"$f":"IF(ISERROR(Dados!AD659),\"-\",Dados!AD659)","v":""},{"$f":"IF(ISERROR(Dados!AE659),\"-\",Dados!AE659)","v":""},{"$f":"IF(ISERROR(Dados!AF659),\"-\",Dados!AF659)","v":""},{"$f":"IF(ISERROR(Dados!AG659),\"-\",Dados!AG659)","v":""}]
[{"$f":"IF(ISERROR(Dados!A660),\"-\",Dados!A660)","v":""},{"$f":"IF(ISERROR(Dados!B660),\"-\",Dados!B660)","v":""},{"$f":"IF(ISERROR(Dados!C660),\"-\",Dados!C660)","v":""},{"$f":"IF(ISERROR(Dados!D660),\"-\",Dados!D660)","v":""},{"$f":"IF(ISERROR(Dados!E660),\"-\",Dados!E660)","v":""},{"$f":"IF(ISERROR(Dados!F660),\"-\",Dados!F660)","v":""},{"$f":"IF(ISERROR(Dados!G660),\"-\",Dados!G660)","v":""},{"$f":"IF(ISERROR(Dados!H660),\"-\",Dados!H660)","v":""},{"$f":"IF(ISERROR(Dados!I660),\"-\",Dados!I660)","v":""},{"$f":"IF(ISERROR(Dados!J660),\"-\",Dados!J660)","v":""},{"$f":"IF(ISERROR(Dados!K660),\"-\",Dados!K660)","v":""},{"$f":"IF(ISERROR(Dados!L660),\"-\",Dados!L660)","v":""},{"$f":"IF(ISERROR(Dados!M660),\"-\",Dados!M660)","v":""},{"$f":"IF(ISERROR(Dados!N660),\"-\",Dados!N660)","v":""},{"$f":"IF(ISERROR(Dados!O660),\"-\",Dados!O660)","v":""},{"$f":"IF(ISERROR(Dados!P660),\"-\",Dados!P660)","v":""},{"$f":"IF(ISERROR(Dados!Q660),\"-\",Dados!Q660)","v":""},{"$f":"IF(ISERROR(Dados!R660),\"-\",Dados!R660)","v":""},{"$f":"IF(ISERROR(Dados!S660),\"-\",Dados!S660)","v":""},{"$f":"IF(ISERROR(Dados!T660),\"-\",Dados!T660)","v":""},{"$f":"IF(ISERROR(Dados!U660),\"-\",Dados!U660)","v":""},{"$f":"IF(ISERROR(Dados!V660),\"-\",Dados!V660)","v":""},{"$f":"IF(ISERROR(Dados!W660),\"-\",Dados!W660)","v":""},{"$f":"IF(ISERROR(Dados!X660),\"-\",Dados!X660)","v":""},{"$f":"IF(ISERROR(Dados!Y660),\"-\",Dados!Y660)","v":""},{"$f":"IF(ISERROR(Dados!Z660),\"-\",Dados!Z660)","v":""},{"$f":"IF(ISERROR(Dados!AA660),\"-\",Dados!AA660)","v":""},{"$f":"IF(ISERROR(Dados!AB660),\"-\",Dados!AB660)","v":""},{"$f":"IF(ISERROR(Dados!AC660),\"-\",Dados!AC660)","v":""},{"$f":"IF(ISERROR(Dados!AD660),\"-\",Dados!AD660)","v":""},{"$f":"IF(ISERROR(Dados!AE660),\"-\",Dados!AE660)","v":""},{"$f":"IF(ISERROR(Dados!AF660),\"-\",Dados!AF660)","v":""},{"$f":"IF(ISERROR(Dados!AG660),\"-\",Dados!AG660)","v":""}]
[{"$f":"IF(ISERROR(Dados!A661),\"-\",Dados!A661)","v":""},{"$f":"IF(ISERROR(Dados!B661),\"-\",Dados!B661)","v":""},{"$f":"IF(ISERROR(Dados!C661),\"-\",Dados!C661)","v":""},{"$f":"IF(ISERROR(Dados!D661),\"-\",Dados!D661)","v":""},{"$f":"IF(ISERROR(Dados!E661),\"-\",Dados!E661)","v":""},{"$f":"IF(ISERROR(Dados!F661),\"-\",Dados!F661)","v":""},{"$f":"IF(ISERROR(Dados!G661),\"-\",Dados!G661)","v":""},{"$f":"IF(ISERROR(Dados!H661),\"-\",Dados!H661)","v":""},{"$f":"IF(ISERROR(Dados!I661),\"-\",Dados!I661)","v":""},{"$f":"IF(ISERROR(Dados!J661),\"-\",Dados!J661)","v":""},{"$f":"IF(ISERROR(Dados!K661),\"-\",Dados!K661)","v":""},{"$f":"IF(ISERROR(Dados!L661),\"-\",Dados!L661)","v":""},{"$f":"IF(ISERROR(Dados!M661),\"-\",Dados!M661)","v":""},{"$f":"IF(ISERROR(Dados!N661),\"-\",Dados!N661)","v":""},{"$f":"IF(ISERROR(Dados!O661),\"-\",Dados!O661)","v":""},{"$f":"IF(ISERROR(Dados!P661),\"-\",Dados!P661)","v":""},{"$f":"IF(ISERROR(Dados!Q661),\"-\",Dados!Q661)","v":""},{"$f":"IF(ISERROR(Dados!R661),\"-\",Dados!R661)","v":""},{"$f":"IF(ISERROR(Dados!S661),\"-\",Dados!S661)","v":""},{"$f":"IF(ISERROR(Dados!T661),\"-\",Dados!T661)","v":""},{"$f":"IF(ISERROR(Dados!U661),\"-\",Dados!U661)","v":""},{"$f":"IF(ISERROR(Dados!V661),\"-\",Dados!V661)","v":""},{"$f":"IF(ISERROR(Dados!W661),\"-\",Dados!W661)","v":""},{"$f":"IF(ISERROR(Dados!X661),\"-\",Dados!X661)","v":""},{"$f":"IF(ISERROR(Dados!Y661),\"-\",Dados!Y661)","v":""},{"$f":"IF(ISERROR(Dados!Z661),\"-\",Dados!Z661)","v":""},{"$f":"IF(ISERROR(Dados!AA661),\"-\",Dados!AA661)","v":""},{"$f":"IF(ISERROR(Dados!AB661),\"-\",Dados!AB661)","v":""},{"$f":"IF(ISERROR(Dados!AC661),\"-\",Dados!AC661)","v":""},{"$f":"IF(ISERROR(Dados!AD661),\"-\",Dados!AD661)","v":""},{"$f":"IF(ISERROR(Dados!AE661),\"-\",Dados!AE661)","v":""},{"$f":"IF(ISERROR(Dados!AF661),\"-\",Dados!AF661)","v":""},{"$f":"IF(ISERROR(Dados!AG661),\"-\",Dados!AG661)","v":""}]
[{"$f":"IF(ISERROR(Dados!A662),\"-\",Dados!A662)","v":""},{"$f":"IF(ISERROR(Dados!B662),\"-\",Dados!B662)","v":""},{"$f":"IF(ISERROR(Dados!C662),\"-\",Dados!C662)","v":""},{"$f":"IF(ISERROR(Dados!D662),\"-\",Dados!D662)","v":""},{"$f":"IF(ISERROR(Dados!E662),\"-\",Dados!E662)","v":""},{"$f":"IF(ISERROR(Dados!F662),\"-\",Dados!F662)","v":""},{"$f":"IF(ISERROR(Dados!G662),\"-\",Dados!G662)","v":""},{"$f":"IF(ISERROR(Dados!H662),\"-\",Dados!H662)","v":""},{"$f":"IF(ISERROR(Dados!I662),\"-\",Dados!I662)","v":""},{"$f":"IF(ISERROR(Dados!J662),\"-\",Dados!J662)","v":""},{"$f":"IF(ISERROR(Dados!K662),\"-\",Dados!K662)","v":""},{"$f":"IF(ISERROR(Dados!L662),\"-\",Dados!L662)","v":""},{"$f":"IF(ISERROR(Dados!M662),\"-\",Dados!M662)","v":""},{"$f":"IF(ISERROR(Dados!N662),\"-\",Dados!N662)","v":""},{"$f":"IF(ISERROR(Dados!O662),\"-\",Dados!O662)","v":""},{"$f":"IF(ISERROR(Dados!P662),\"-\",Dados!P662)","v":""},{"$f":"IF(ISERROR(Dados!Q662),\"-\",Dados!Q662)","v":""},{"$f":"IF(ISERROR(Dados!R662),\"-\",Dados!R662)","v":""},{"$f":"IF(ISERROR(Dados!S662),\"-\",Dados!S662)","v":""},{"$f":"IF(ISERROR(Dados!T662),\"-\",Dados!T662)","v":""},{"$f":"IF(ISERROR(Dados!U662),\"-\",Dados!U662)","v":""},{"$f":"IF(ISERROR(Dados!V662),\"-\",Dados!V662)","v":""},{"$f":"IF(ISERROR(Dados!W662),\"-\",Dados!W662)","v":""},{"$f":"IF(ISERROR(Dados!X662),\"-\",Dados!X662)","v":""},{"$f":"IF(ISERROR(Dados!Y662),\"-\",Dados!Y662)","v":""},{"$f":"IF(ISERROR(Dados!Z662),\"-\",Dados!Z662)","v":""},{"$f":"IF(ISERROR(Dados!AA662),\"-\",Dados!AA662)","v":""},{"$f":"IF(ISERROR(Dados!AB662),\"-\",Dados!AB662)","v":""},{"$f":"IF(ISERROR(Dados!AC662),\"-\",Dados!AC662)","v":""},{"$f":"IF(ISERROR(Dados!AD662),\"-\",Dados!AD662)","v":""},{"$f":"IF(ISERROR(Dados!AE662),\"-\",Dados!AE662)","v":""},{"$f":"IF(ISERROR(Dados!AF662),\"-\",Dados!AF662)","v":""},{"$f":"IF(ISERROR(Dados!AG662),\"-\",Dados!AG662)","v":""}]
[{"$f":"IF(ISERROR(Dados!A663),\"-\",Dados!A663)","v":""},{"$f":"IF(ISERROR(Dados!B663),\"-\",Dados!B663)","v":""},{"$f":"IF(ISERROR(Dados!C663),\"-\",Dados!C663)","v":""},{"$f":"IF(ISERROR(Dados!D663),\"-\",Dados!D663)","v":""},{"$f":"IF(ISERROR(Dados!E663),\"-\",Dados!E663)","v":""},{"$f":"IF(ISERROR(Dados!F663),\"-\",Dados!F663)","v":""},{"$f":"IF(ISERROR(Dados!G663),\"-\",Dados!G663)","v":""},{"$f":"IF(ISERROR(Dados!H663),\"-\",Dados!H663)","v":""},{"$f":"IF(ISERROR(Dados!I663),\"-\",Dados!I663)","v":""},{"$f":"IF(ISERROR(Dados!J663),\"-\",Dados!J663)","v":""},{"$f":"IF(ISERROR(Dados!K663),\"-\",Dados!K663)","v":""},{"$f":"IF(ISERROR(Dados!L663),\"-\",Dados!L663)","v":""},{"$f":"IF(ISERROR(Dados!M663),\"-\",Dados!M663)","v":""},{"$f":"IF(ISERROR(Dados!N663),\"-\",Dados!N663)","v":""},{"$f":"IF(ISERROR(Dados!O663),\"-\",Dados!O663)","v":""},{"$f":"IF(ISERROR(Dados!P663),\"-\",Dados!P663)","v":""},{"$f":"IF(ISERROR(Dados!Q663),\"-\",Dados!Q663)","v":""},{"$f":"IF(ISERROR(Dados!R663),\"-\",Dados!R663)","v":""},{"$f":"IF(ISERROR(Dados!S663),\"-\",Dados!S663)","v":""},{"$f":"IF(ISERROR(Dados!T663),\"-\",Dados!T663)","v":""},{"$f":"IF(ISERROR(Dados!U663),\"-\",Dados!U663)","v":""},{"$f":"IF(ISERROR(Dados!V663),\"-\",Dados!V663)","v":""},{"$f":"IF(ISERROR(Dados!W663),\"-\",Dados!W663)","v":""},{"$f":"IF(ISERROR(Dados!X663),\"-\",Dados!X663)","v":""},{"$f":"IF(ISERROR(Dados!Y663),\"-\",Dados!Y663)","v":""},{"$f":"IF(ISERROR(Dados!Z663),\"-\",Dados!Z663)","v":""},{"$f":"IF(ISERROR(Dados!AA663),\"-\",Dados!AA663)","v":""},{"$f":"IF(ISERROR(Dados!AB663),\"-\",Dados!AB663)","v":""},{"$f":"IF(ISERROR(Dados!AC663),\"-\",Dados!AC663)","v":""},{"$f":"IF(ISERROR(Dados!AD663),\"-\",Dados!AD663)","v":""},{"$f":"IF(ISERROR(Dados!AE663),\"-\",Dados!AE663)","v":""},{"$f":"IF(ISERROR(Dados!AF663),\"-\",Dados!AF663)","v":""},{"$f":"IF(ISERROR(Dados!AG663),\"-\",Dados!AG663)","v":""}]
[{"$f":"IF(ISERROR(Dados!A664),\"-\",Dados!A664)","v":""},{"$f":"IF(ISERROR(Dados!B664),\"-\",Dados!B664)","v":""},{"$f":"IF(ISERROR(Dados!C664),\"-\",Dados!C664)","v":""},{"$f":"IF(ISERROR(Dados!D664),\"-\",Dados!D664)","v":""},{"$f":"IF(ISERROR(Dados!E664),\"-\",Dados!E664)","v":""},{"$f":"IF(ISERROR(Dados!F664),\"-\",Dados!F664)","v":""},{"$f":"IF(ISERROR(Dados!G664),\"-\",Dados!G664)","v":""},{"$f":"IF(ISERROR(Dados!H664),\"-\",Dados!H664)","v":""},{"$f":"IF(ISERROR(Dados!I664),\"-\",Dados!I664)","v":""},{"$f":"IF(ISERROR(Dados!J664),\"-\",Dados!J664)","v":""},{"$f":"IF(ISERROR(Dados!K664),\"-\",Dados!K664)","v":""},{"$f":"IF(ISERROR(Dados!L664),\"-\",Dados!L664)","v":""},{"$f":"IF(ISERROR(Dados!M664),\"-\",Dados!M664)","v":""},{"$f":"IF(ISERROR(Dados!N664),\"-\",Dados!N664)","v":""},{"$f":"IF(ISERROR(Dados!O664),\"-\",Dados!O664)","v":""},{"$f":"IF(ISERROR(Dados!P664),\"-\",Dados!P664)","v":""},{"$f":"IF(ISERROR(Dados!Q664),\"-\",Dados!Q664)","v":""},{"$f":"IF(ISERROR(Dados!R664),\"-\",Dados!R664)","v":""},{"$f":"IF(ISERROR(Dados!S664),\"-\",Dados!S664)","v":""},{"$f":"IF(ISERROR(Dados!T664),\"-\",Dados!T664)","v":""},{"$f":"IF(ISERROR(Dados!U664),\"-\",Dados!U664)","v":""},{"$f":"IF(ISERROR(Dados!V664),\"-\",Dados!V664)","v":""},{"$f":"IF(ISERROR(Dados!W664),\"-\",Dados!W664)","v":""},{"$f":"IF(ISERROR(Dados!X664),\"-\",Dados!X664)","v":""},{"$f":"IF(ISERROR(Dados!Y664),\"-\",Dados!Y664)","v":""},{"$f":"IF(ISERROR(Dados!Z664),\"-\",Dados!Z664)","v":""},{"$f":"IF(ISERROR(Dados!AA664),\"-\",Dados!AA664)","v":""},{"$f":"IF(ISERROR(Dados!AB664),\"-\",Dados!AB664)","v":""},{"$f":"IF(ISERROR(Dados!AC664),\"-\",Dados!AC664)","v":""},{"$f":"IF(ISERROR(Dados!AD664),\"-\",Dados!AD664)","v":""},{"$f":"IF(ISERROR(Dados!AE664),\"-\",Dados!AE664)","v":""},{"$f":"IF(ISERROR(Dados!AF664),\"-\",Dados!AF664)","v":""},{"$f":"IF(ISERROR(Dados!AG664),\"-\",Dados!AG664)","v":""}]
[{"$f":"IF(ISERROR(Dados!A665),\"-\",Dados!A665)","v":""},{"$f":"IF(ISERROR(Dados!B665),\"-\",Dados!B665)","v":""},{"$f":"IF(ISERROR(Dados!C665),\"-\",Dados!C665)","v":""},{"$f":"IF(ISERROR(Dados!D665),\"-\",Dados!D665)","v":""},{"$f":"IF(ISERROR(Dados!E665),\"-\",Dados!E665)","v":""},{"$f":"IF(ISERROR(Dados!F665),\"-\",Dados!F665)","v":""},{"$f":"IF(ISERROR(Dados!G665),\"-\",Dados!G665)","v":""},{"$f":"IF(ISERROR(Dados!H665),\"-\",Dados!H665)","v":""},{"$f":"IF(ISERROR(Dados!I665),\"-\",Dados!I665)","v":""},{"$f":"IF(ISERROR(Dados!J665),\"-\",Dados!J665)","v":""},{"$f":"IF(ISERROR(Dados!K665),\"-\",Dados!K665)","v":""},{"$f":"IF(ISERROR(Dados!L665),\"-\",Dados!L665)","v":""},{"$f":"IF(ISERROR(Dados!M665),\"-\",Dados!M665)","v":""},{"$f":"IF(ISERROR(Dados!N665),\"-\",Dados!N665)","v":""},{"$f":"IF(ISERROR(Dados!O665),\"-\",Dados!O665)","v":""},{"$f":"IF(ISERROR(Dados!P665),\"-\",Dados!P665)","v":""},{"$f":"IF(ISERROR(Dados!Q665),\"-\",Dados!Q665)","v":""},{"$f":"IF(ISERROR(Dados!R665),\"-\",Dados!R665)","v":""},{"$f":"IF(ISERROR(Dados!S665),\"-\",Dados!S665)","v":""},{"$f":"IF(ISERROR(Dados!T665),\"-\",Dados!T665)","v":""},{"$f":"IF(ISERROR(Dados!U665),\"-\",Dados!U665)","v":""},{"$f":"IF(ISERROR(Dados!V665),\"-\",Dados!V665)","v":""},{"$f":"IF(ISERROR(Dados!W665),\"-\",Dados!W665)","v":""},{"$f":"IF(ISERROR(Dados!X665),\"-\",Dados!X665)","v":""},{"$f":"IF(ISERROR(Dados!Y665),\"-\",Dados!Y665)","v":""},{"$f":"IF(ISERROR(Dados!Z665),\"-\",Dados!Z665)","v":""},{"$f":"IF(ISERROR(Dados!AA665),\"-\",Dados!AA665)","v":""},{"$f":"IF(ISERROR(Dados!AB665),\"-\",Dados!AB665)","v":""},{"$f":"IF(ISERROR(Dados!AC665),\"-\",Dados!AC665)","v":""},{"$f":"IF(ISERROR(Dados!AD665),\"-\",Dados!AD665)","v":""},{"$f":"IF(ISERROR(Dados!AE665),\"-\",Dados!AE665)","v":""},{"$f":"IF(ISERROR(Dados!AF665),\"-\",Dados!AF665)","v":""},{"$f":"IF(ISERROR(Dados!AG665),\"-\",Dados!AG665)","v":""}]
[{"$f":"IF(ISERROR(Dados!A666),\"-\",Dados!A666)","v":""},{"$f":"IF(ISERROR(Dados!B666),\"-\",Dados!B666)","v":""},{"$f":"IF(ISERROR(Dados!C666),\"-\",Dados!C666)","v":""},{"$f":"IF(ISERROR(Dados!D666),\"-\",Dados!D666)","v":""},{"$f":"IF(ISERROR(Dados!E666),\"-\",Dados!E666)","v":""},{"$f":"IF(ISERROR(Dados!F666),\"-\",Dados!F666)","v":""},{"$f":"IF(ISERROR(Dados!G666),\"-\",Dados!G666)","v":""},{"$f":"IF(ISERROR(Dados!H666),\"-\",Dados!H666)","v":""},{"$f":"IF(ISERROR(Dados!I666),\"-\",Dados!I666)","v":""},{"$f":"IF(ISERROR(Dados!J666),\"-\",Dados!J666)","v":""},{"$f":"IF(ISERROR(Dados!K666),\"-\",Dados!K666)","v":""},{"$f":"IF(ISERROR(Dados!L666),\"-\",Dados!L666)","v":""},{"$f":"IF(ISERROR(Dados!M666),\"-\",Dados!M666)","v":""},{"$f":"IF(ISERROR(Dados!N666),\"-\",Dados!N666)","v":""},{"$f":"IF(ISERROR(Dados!O666),\"-\",Dados!O666)","v":""},{"$f":"IF(ISERROR(Dados!P666),\"-\",Dados!P666)","v":""},{"$f":"IF(ISERROR(Dados!Q666),\"-\",Dados!Q666)","v":""},{"$f":"IF(ISERROR(Dados!R666),\"-\",Dados!R666)","v":""},{"$f":"IF(ISERROR(Dados!S666),\"-\",Dados!S666)","v":""},{"$f":"IF(ISERROR(Dados!T666),\"-\",Dados!T666)","v":""},{"$f":"IF(ISERROR(Dados!U666),\"-\",Dados!U666)","v":""},{"$f":"IF(ISERROR(Dados!V666),\"-\",Dados!V666)","v":""},{"$f":"IF(ISERROR(Dados!W666),\"-\",Dados!W666)","v":""},{"$f":"IF(ISERROR(Dados!X666),\"-\",Dados!X666)","v":""},{"$f":"IF(ISERROR(Dados!Y666),\"-\",Dados!Y666)","v":""},{"$f":"IF(ISERROR(Dados!Z666),\"-\",Dados!Z666)","v":""},{"$f":"IF(ISERROR(Dados!AA666),\"-\",Dados!AA666)","v":""},{"$f":"IF(ISERROR(Dados!AB666),\"-\",Dados!AB666)","v":""},{"$f":"IF(ISERROR(Dados!AC666),\"-\",Dados!AC666)","v":""},{"$f":"IF(ISERROR(Dados!AD666),\"-\",Dados!AD666)","v":""},{"$f":"IF(ISERROR(Dados!AE666),\"-\",Dados!AE666)","v":""},{"$f":"IF(ISERROR(Dados!AF666),\"-\",Dados!AF666)","v":""},{"$f":"IF(ISERROR(Dados!AG666),\"-\",Dados!AG666)","v":""}]
[{"$f":"IF(ISERROR(Dados!A667),\"-\",Dados!A667)","v":""},{"$f":"IF(ISERROR(Dados!B667),\"-\",Dados!B667)","v":""},{"$f":"IF(ISERROR(Dados!C667),\"-\",Dados!C667)","v":""},{"$f":"IF(ISERROR(Dados!D667),\"-\",Dados!D667)","v":""},{"$f":"IF(ISERROR(Dados!E667),\"-\",Dados!E667)","v":""},{"$f":"IF(ISERROR(Dados!F667),\"-\",Dados!F667)","v":""},{"$f":"IF(ISERROR(Dados!G667),\"-\",Dados!G667)","v":""},{"$f":"IF(ISERROR(Dados!H667),\"-\",Dados!H667)","v":""},{"$f":"IF(ISERROR(Dados!I667),\"-\",Dados!I667)","v":""},{"$f":"IF(ISERROR(Dados!J667),\"-\",Dados!J667)","v":""},{"$f":"IF(ISERROR(Dados!K667),\"-\",Dados!K667)","v":""},{"$f":"IF(ISERROR(Dados!L667),\"-\",Dados!L667)","v":""},{"$f":"IF(ISERROR(Dados!M667),\"-\",Dados!M667)","v":""},{"$f":"IF(ISERROR(Dados!N667),\"-\",Dados!N667)","v":""},{"$f":"IF(ISERROR(Dados!O667),\"-\",Dados!O667)","v":""},{"$f":"IF(ISERROR(Dados!P667),\"-\",Dados!P667)","v":""},{"$f":"IF(ISERROR(Dados!Q667),\"-\",Dados!Q667)","v":""},{"$f":"IF(ISERROR(Dados!R667),\"-\",Dados!R667)","v":""},{"$f":"IF(ISERROR(Dados!S667),\"-\",Dados!S667)","v":""},{"$f":"IF(ISERROR(Dados!T667),\"-\",Dados!T667)","v":""},{"$f":"IF(ISERROR(Dados!U667),\"-\",Dados!U667)","v":""},{"$f":"IF(ISERROR(Dados!V667),\"-\",Dados!V667)","v":""},{"$f":"IF(ISERROR(Dados!W667),\"-\",Dados!W667)","v":""},{"$f":"IF(ISERROR(Dados!X667),\"-\",Dados!X667)","v":""},{"$f":"IF(ISERROR(Dados!Y667),\"-\",Dados!Y667)","v":""},{"$f":"IF(ISERROR(Dados!Z667),\"-\",Dados!Z667)","v":""},{"$f":"IF(ISERROR(Dados!AA667),\"-\",Dados!AA667)","v":""},{"$f":"IF(ISERROR(Dados!AB667),\"-\",Dados!AB667)","v":""},{"$f":"IF(ISERROR(Dados!AC667),\"-\",Dados!AC667)","v":""},{"$f":"IF(ISERROR(Dados!AD667),\"-\",Dados!AD667)","v":""},{"$f":"IF(ISERROR(Dados!AE667),\"-\",Dados!AE667)","v":""},{"$f":"IF(ISERROR(Dados!AF667),\"-\",Dados!AF667)","v":""},{"$f":"IF(ISERROR(Dados!AG667),\"-\",Dados!AG667)","v":""}]
[{"$f":"IF(ISERROR(Dados!A668),\"-\",Dados!A668)","v":""},{"$f":"IF(ISERROR(Dados!B668),\"-\",Dados!B668)","v":""},{"$f":"IF(ISERROR(Dados!C668),\"-\",Dados!C668)","v":""},{"$f":"IF(ISERROR(Dados!D668),\"-\",Dados!D668)","v":""},{"$f":"IF(ISERROR(Dados!E668),\"-\",Dados!E668)","v":""},{"$f":"IF(ISERROR(Dados!F668),\"-\",Dados!F668)","v":""},{"$f":"IF(ISERROR(Dados!G668),\"-\",Dados!G668)","v":""},{"$f":"IF(ISERROR(Dados!H668),\"-\",Dados!H668)","v":""},{"$f":"IF(ISERROR(Dados!I668),\"-\",Dados!I668)","v":""},{"$f":"IF(ISERROR(Dados!J668),\"-\",Dados!J668)","v":""},{"$f":"IF(ISERROR(Dados!K668),\"-\",Dados!K668)","v":""},{"$f":"IF(ISERROR(Dados!L668),\"-\",Dados!L668)","v":""},{"$f":"IF(ISERROR(Dados!M668),\"-\",Dados!M668)","v":""},{"$f":"IF(ISERROR(Dados!N668),\"-\",Dados!N668)","v":""},{"$f":"IF(ISERROR(Dados!O668),\"-\",Dados!O668)","v":""},{"$f":"IF(ISERROR(Dados!P668),\"-\",Dados!P668)","v":""},{"$f":"IF(ISERROR(Dados!Q668),\"-\",Dados!Q668)","v":""},{"$f":"IF(ISERROR(Dados!R668),\"-\",Dados!R668)","v":""},{"$f":"IF(ISERROR(Dados!S668),\"-\",Dados!S668)","v":""},{"$f":"IF(ISERROR(Dados!T668),\"-\",Dados!T668)","v":""},{"$f":"IF(ISERROR(Dados!U668),\"-\",Dados!U668)","v":""},{"$f":"IF(ISERROR(Dados!V668),\"-\",Dados!V668)","v":""},{"$f":"IF(ISERROR(Dados!W668),\"-\",Dados!W668)","v":""},{"$f":"IF(ISERROR(Dados!X668),\"-\",Dados!X668)","v":""},{"$f":"IF(ISERROR(Dados!Y668),\"-\",Dados!Y668)","v":""},{"$f":"IF(ISERROR(Dados!Z668),\"-\",Dados!Z668)","v":""},{"$f":"IF(ISERROR(Dados!AA668),\"-\",Dados!AA668)","v":""},{"$f":"IF(ISERROR(Dados!AB668),\"-\",Dados!AB668)","v":""},{"$f":"IF(ISERROR(Dados!AC668),\"-\",Dados!AC668)","v":""},{"$f":"IF(ISERROR(Dados!AD668),\"-\",Dados!AD668)","v":""},{"$f":"IF(ISERROR(Dados!AE668),\"-\",Dados!AE668)","v":""},{"$f":"IF(ISERROR(Dados!AF668),\"-\",Dados!AF668)","v":""},{"$f":"IF(ISERROR(Dados!AG668),\"-\",Dados!AG668)","v":""}]
[{"$f":"IF(ISERROR(Dados!A669),\"-\",Dados!A669)","v":""},{"$f":"IF(ISERROR(Dados!B669),\"-\",Dados!B669)","v":""},{"$f":"IF(ISERROR(Dados!C669),\"-\",Dados!C669)","v":""},{"$f":"IF(ISERROR(Dados!D669),\"-\",Dados!D669)","v":""},{"$f":"IF(ISERROR(Dados!E669),\"-\",Dados!E669)","v":""},{"$f":"IF(ISERROR(Dados!F669),\"-\",Dados!F669)","v":""},{"$f":"IF(ISERROR(Dados!G669),\"-\",Dados!G669)","v":""},{"$f":"IF(ISERROR(Dados!H669),\"-\",Dados!H669)","v":""},{"$f":"IF(ISERROR(Dados!I669),\"-\",Dados!I669)","v":""},{"$f":"IF(ISERROR(Dados!J669),\"-\",Dados!J669)","v":""},{"$f":"IF(ISERROR(Dados!K669),\"-\",Dados!K669)","v":""},{"$f":"IF(ISERROR(Dados!L669),\"-\",Dados!L669)","v":""},{"$f":"IF(ISERROR(Dados!M669),\"-\",Dados!M669)","v":""},{"$f":"IF(ISERROR(Dados!N669),\"-\",Dados!N669)","v":""},{"$f":"IF(ISERROR(Dados!O669),\"-\",Dados!O669)","v":""},{"$f":"IF(ISERROR(Dados!P669),\"-\",Dados!P669)","v":""},{"$f":"IF(ISERROR(Dados!Q669),\"-\",Dados!Q669)","v":""},{"$f":"IF(ISERROR(Dados!R669),\"-\",Dados!R669)","v":""},{"$f":"IF(ISERROR(Dados!S669),\"-\",Dados!S669)","v":""},{"$f":"IF(ISERROR(Dados!T669),\"-\",Dados!T669)","v":""},{"$f":"IF(ISERROR(Dados!U669),\"-\",Dados!U669)","v":""},{"$f":"IF(ISERROR(Dados!V669),\"-\",Dados!V669)","v":""},{"$f":"IF(ISERROR(Dados!W669),\"-\",Dados!W669)","v":""},{"$f":"IF(ISERROR(Dados!X669),\"-\",Dados!X669)","v":""},{"$f":"IF(ISERROR(Dados!Y669),\"-\",Dados!Y669)","v":""},{"$f":"IF(ISERROR(Dados!Z669),\"-\",Dados!Z669)","v":""},{"$f":"IF(ISERROR(Dados!AA669),\"-\",Dados!AA669)","v":""},{"$f":"IF(ISERROR(Dados!AB669),\"-\",Dados!AB669)","v":""},{"$f":"IF(ISERROR(Dados!AC669),\"-\",Dados!AC669)","v":""},{"$f":"IF(ISERROR(Dados!AD669),\"-\",Dados!AD669)","v":""},{"$f":"IF(ISERROR(Dados!AE669),\"-\",Dados!AE669)","v":""},{"$f":"IF(ISERROR(Dados!AF669),\"-\",Dados!AF669)","v":""},{"$f":"IF(ISERROR(Dados!AG669),\"-\",Dados!AG669)","v":""}]
[{"$f":"IF(ISERROR(Dados!A670),\"-\",Dados!A670)","v":""},{"$f":"IF(ISERROR(Dados!B670),\"-\",Dados!B670)","v":""},{"$f":"IF(ISERROR(Dados!C670),\"-\",Dados!C670)","v":""},{"$f":"IF(ISERROR(Dados!D670),\"-\",Dados!D670)","v":""},{"$f":"IF(ISERROR(Dados!E670),\"-\",Dados!E670)","v":""},{"$f":"IF(ISERROR(Dados!F670),\"-\",Dados!F670)","v":""},{"$f":"IF(ISERROR(Dados!G670),\"-\",Dados!G670)","v":""},{"$f":"IF(ISERROR(Dados!H670),\"-\",Dados!H670)","v":""},{"$f":"IF(ISERROR(Dados!I670),\"-\",Dados!I670)","v":""},{"$f":"IF(ISERROR(Dados!J670),\"-\",Dados!J670)","v":""},{"$f":"IF(ISERROR(Dados!K670),\"-\",Dados!K670)","v":""},{"$f":"IF(ISERROR(Dados!L670),\"-\",Dados!L670)","v":""},{"$f":"IF(ISERROR(Dados!M670),\"-\",Dados!M670)","v":""},{"$f":"IF(ISERROR(Dados!N670),\"-\",Dados!N670)","v":""},{"$f":"IF(ISERROR(Dados!O670),\"-\",Dados!O670)","v":""},{"$f":"IF(ISERROR(Dados!P670),\"-\",Dados!P670)","v":""},{"$f":"IF(ISERROR(Dados!Q670),\"-\",Dados!Q670)","v":""},{"$f":"IF(ISERROR(Dados!R670),\"-\",Dados!R670)","v":""},{"$f":"IF(ISERROR(Dados!S670),\"-\",Dados!S670)","v":""},{"$f":"IF(ISERROR(Dados!T670),\"-\",Dados!T670)","v":""},{"$f":"IF(ISERROR(Dados!U670),\"-\",Dados!U670)","v":""},{"$f":"IF(ISERROR(Dados!V670),\"-\",Dados!V670)","v":""},{"$f":"IF(ISERROR(Dados!W670),\"-\",Dados!W670)","v":""},{"$f":"IF(ISERROR(Dados!X670),\"-\",Dados!X670)","v":""},{"$f":"IF(ISERROR(Dados!Y670),\"-\",Dados!Y670)","v":""},{"$f":"IF(ISERROR(Dados!Z670),\"-\",Dados!Z670)","v":""},{"$f":"IF(ISERROR(Dados!AA670),\"-\",Dados!AA670)","v":""},{"$f":"IF(ISERROR(Dados!AB670),\"-\",Dados!AB670)","v":""},{"$f":"IF(ISERROR(Dados!AC670),\"-\",Dados!AC670)","v":""},{"$f":"IF(ISERROR(Dados!AD670),\"-\",Dados!AD670)","v":""},{"$f":"IF(ISERROR(Dados!AE670),\"-\",Dados!AE670)","v":""},{"$f":"IF(ISERROR(Dados!AF670),\"-\",Dados!AF670)","v":""},{"$f":"IF(ISERROR(Dados!AG670),\"-\",Dados!AG670)","v":""}]
[{"$f":"IF(ISERROR(Dados!A671),\"-\",Dados!A671)","v":""},{"$f":"IF(ISERROR(Dados!B671),\"-\",Dados!B671)","v":""},{"$f":"IF(ISERROR(Dados!C671),\"-\",Dados!C671)","v":""},{"$f":"IF(ISERROR(Dados!D671),\"-\",Dados!D671)","v":""},{"$f":"IF(ISERROR(Dados!E671),\"-\",Dados!E671)","v":""},{"$f":"IF(ISERROR(Dados!F671),\"-\",Dados!F671)","v":""},{"$f":"IF(ISERROR(Dados!G671),\"-\",Dados!G671)","v":""},{"$f":"IF(ISERROR(Dados!H671),\"-\",Dados!H671)","v":""},{"$f":"IF(ISERROR(Dados!I671),\"-\",Dados!I671)","v":""},{"$f":"IF(ISERROR(Dados!J671),\"-\",Dados!J671)","v":""},{"$f":"IF(ISERROR(Dados!K671),\"-\",Dados!K671)","v":""},{"$f":"IF(ISERROR(Dados!L671),\"-\",Dados!L671)","v":""},{"$f":"IF(ISERROR(Dados!M671),\"-\",Dados!M671)","v":""},{"$f":"IF(ISERROR(Dados!N671),\"-\",Dados!N671)","v":""},{"$f":"IF(ISERROR(Dados!O671),\"-\",Dados!O671)","v":""},{"$f":"IF(ISERROR(Dados!P671),\"-\",Dados!P671)","v":""},{"$f":"IF(ISERROR(Dados!Q671),\"-\",Dados!Q671)","v":""},{"$f":"IF(ISERROR(Dados!R671),\"-\",Dados!R671)","v":""},{"$f":"IF(ISERROR(Dados!S671),\"-\",Dados!S671)","v":""},{"$f":"IF(ISERROR(Dados!T671),\"-\",Dados!T671)","v":""},{"$f":"IF(ISERROR(Dados!U671),\"-\",Dados!U671)","v":""},{"$f":"IF(ISERROR(Dados!V671),\"-\",Dados!V671)","v":""},{"$f":"IF(ISERROR(Dados!W671),\"-\",Dados!W671)","v":""},{"$f":"IF(ISERROR(Dados!X671),\"-\",Dados!X671)","v":""},{"$f":"IF(ISERROR(Dados!Y671),\"-\",Dados!Y671)","v":""},{"$f":"IF(ISERROR(Dados!Z671),\"-\",Dados!Z671)","v":""},{"$f":"IF(ISERROR(Dados!AA671),\"-\",Dados!AA671)","v":""},{"$f":"IF(ISERROR(Dados!AB671),\"-\",Dados!AB671)","v":""},{"$f":"IF(ISERROR(Dados!AC671),\"-\",Dados!AC671)","v":""},{"$f":"IF(ISERROR(Dados!AD671),\"-\",Dados!AD671)","v":""},{"$f":"IF(ISERROR(Dados!AE671),\"-\",Dados!AE671)","v":""},{"$f":"IF(ISERROR(Dados!AF671),\"-\",Dados!AF671)","v":""},{"$f":"IF(ISERROR(Dados!AG671),\"-\",Dados!AG671)","v":""}]
[{"$f":"IF(ISERROR(Dados!A672),\"-\",Dados!A672)","v":""},{"$f":"IF(ISERROR(Dados!B672),\"-\",Dados!B672)","v":""},{"$f":"IF(ISERROR(Dados!C672),\"-\",Dados!C672)","v":""},{"$f":"IF(ISERROR(Dados!D672),\"-\",Dados!D672)","v":""},{"$f":"IF(ISERROR(Dados!E672),\"-\",Dados!E672)","v":""},{"$f":"IF(ISERROR(Dados!F672),\"-\",Dados!F672)","v":""},{"$f":"IF(ISERROR(Dados!G672),\"-\",Dados!G672)","v":""},{"$f":"IF(ISERROR(Dados!H672),\"-\",Dados!H672)","v":""},{"$f":"IF(ISERROR(Dados!I672),\"-\",Dados!I672)","v":""},{"$f":"IF(ISERROR(Dados!J672),\"-\",Dados!J672)","v":""},{"$f":"IF(ISERROR(Dados!K672),\"-\",Dados!K672)","v":""},{"$f":"IF(ISERROR(Dados!L672),\"-\",Dados!L672)","v":""},{"$f":"IF(ISERROR(Dados!M672),\"-\",Dados!M672)","v":""},{"$f":"IF(ISERROR(Dados!N672),\"-\",Dados!N672)","v":""},{"$f":"IF(ISERROR(Dados!O672),\"-\",Dados!O672)","v":""},{"$f":"IF(ISERROR(Dados!P672),\"-\",Dados!P672)","v":""},{"$f":"IF(ISERROR(Dados!Q672),\"-\",Dados!Q672)","v":""},{"$f":"IF(ISERROR(Dados!R672),\"-\",Dados!R672)","v":""},{"$f":"IF(ISERROR(Dados!S672),\"-\",Dados!S672)","v":""},{"$f":"IF(ISERROR(Dados!T672),\"-\",Dados!T672)","v":""},{"$f":"IF(ISERROR(Dados!U672),\"-\",Dados!U672)","v":""},{"$f":"IF(ISERROR(Dados!V672),\"-\",Dados!V672)","v":""},{"$f":"IF(ISERROR(Dados!W672),\"-\",Dados!W672)","v":""},{"$f":"IF(ISERROR(Dados!X672),\"-\",Dados!X672)","v":""},{"$f":"IF(ISERROR(Dados!Y672),\"-\",Dados!Y672)","v":""},{"$f":"IF(ISERROR(Dados!Z672),\"-\",Dados!Z672)","v":""},{"$f":"IF(ISERROR(Dados!AA672),\"-\",Dados!AA672)","v":""},{"$f":"IF(ISERROR(Dados!AB672),\"-\",Dados!AB672)","v":""},{"$f":"IF(ISERROR(Dados!AC672),\"-\",Dados!AC672)","v":""},{"$f":"IF(ISERROR(Dados!AD672),\"-\",Dados!AD672)","v":""},{"$f":"IF(ISERROR(Dados!AE672),\"-\",Dados!AE672)","v":""},{"$f":"IF(ISERROR(Dados!AF672),\"-\",Dados!AF672)","v":""},{"$f":"IF(ISERROR(Dados!AG672),\"-\",Dados!AG672)","v":""}]
[{"$f":"IF(ISERROR(Dados!A673),\"-\",Dados!A673)","v":""},{"$f":"IF(ISERROR(Dados!B673),\"-\",Dados!B673)","v":""},{"$f":"IF(ISERROR(Dados!C673),\"-\",Dados!C673)","v":""},{"$f":"IF(ISERROR(Dados!D673),\"-\",Dados!D673)","v":""},{"$f":"IF(ISERROR(Dados!E673),\"-\",Dados!E673)","v":""},{"$f":"IF(ISERROR(Dados!F673),\"-\",Dados!F673)","v":""},{"$f":"IF(ISERROR(Dados!G673),\"-\",Dados!G673)","v":""},{"$f":"IF(ISERROR(Dados!H673),\"-\",Dados!H673)","v":""},{"$f":"IF(ISERROR(Dados!I673),\"-\",Dados!I673)","v":""},{"$f":"IF(ISERROR(Dados!J673),\"-\",Dados!J673)","v":""},{"$f":"IF(ISERROR(Dados!K673),\"-\",Dados!K673)","v":""},{"$f":"IF(ISERROR(Dados!L673),\"-\",Dados!L673)","v":""},{"$f":"IF(ISERROR(Dados!M673),\"-\",Dados!M673)","v":""},{"$f":"IF(ISERROR(Dados!N673),\"-\",Dados!N673)","v":""},{"$f":"IF(ISERROR(Dados!O673),\"-\",Dados!O673)","v":""},{"$f":"IF(ISERROR(Dados!P673),\"-\",Dados!P673)","v":""},{"$f":"IF(ISERROR(Dados!Q673),\"-\",Dados!Q673)","v":""},{"$f":"IF(ISERROR(Dados!R673),\"-\",Dados!R673)","v":""},{"$f":"IF(ISERROR(Dados!S673),\"-\",Dados!S673)","v":""},{"$f":"IF(ISERROR(Dados!T673),\"-\",Dados!T673)","v":""},{"$f":"IF(ISERROR(Dados!U673),\"-\",Dados!U673)","v":""},{"$f":"IF(ISERROR(Dados!V673),\"-\",Dados!V673)","v":""},{"$f":"IF(ISERROR(Dados!W673),\"-\",Dados!W673)","v":""},{"$f":"IF(ISERROR(Dados!X673),\"-\",Dados!X673)","v":""},{"$f":"IF(ISERROR(Dados!Y673),\"-\",Dados!Y673)","v":""},{"$f":"IF(ISERROR(Dados!Z673),\"-\",Dados!Z673)","v":""},{"$f":"IF(ISERROR(Dados!AA673),\"-\",Dados!AA673)","v":""},{"$f":"IF(ISERROR(Dados!AB673),\"-\",Dados!AB673)","v":""},{"$f":"IF(ISERROR(Dados!AC673),\"-\",Dados!AC673)","v":""},{"$f":"IF(ISERROR(Dados!AD673),\"-\",Dados!AD673)","v":""},{"$f":"IF(ISERROR(Dados!AE673),\"-\",Dados!AE673)","v":""},{"$f":"IF(ISERROR(Dados!AF673),\"-\",Dados!AF673)","v":""},{"$f":"IF(ISERROR(Dados!AG673),\"-\",Dados!AG673)","v":""}]
[{"$f":"IF(ISERROR(Dados!A674),\"-\",Dados!A674)","v":""},{"$f":"IF(ISERROR(Dados!B674),\"-\",Dados!B674)","v":""},{"$f":"IF(ISERROR(Dados!C674),\"-\",Dados!C674)","v":""},{"$f":"IF(ISERROR(Dados!D674),\"-\",Dados!D674)","v":""},{"$f":"IF(ISERROR(Dados!E674),\"-\",Dados!E674)","v":""},{"$f":"IF(ISERROR(Dados!F674),\"-\",Dados!F674)","v":""},{"$f":"IF(ISERROR(Dados!G674),\"-\",Dados!G674)","v":""},{"$f":"IF(ISERROR(Dados!H674),\"-\",Dados!H674)","v":""},{"$f":"IF(ISERROR(Dados!I674),\"-\",Dados!I674)","v":""},{"$f":"IF(ISERROR(Dados!J674),\"-\",Dados!J674)","v":""},{"$f":"IF(ISERROR(Dados!K674),\"-\",Dados!K674)","v":""},{"$f":"IF(ISERROR(Dados!L674),\"-\",Dados!L674)","v":""},{"$f":"IF(ISERROR(Dados!M674),\"-\",Dados!M674)","v":""},{"$f":"IF(ISERROR(Dados!N674),\"-\",Dados!N674)","v":""},{"$f":"IF(ISERROR(Dados!O674),\"-\",Dados!O674)","v":""},{"$f":"IF(ISERROR(Dados!P674),\"-\",Dados!P674)","v":""},{"$f":"IF(ISERROR(Dados!Q674),\"-\",Dados!Q674)","v":""},{"$f":"IF(ISERROR(Dados!R674),\"-\",Dados!R674)","v":""},{"$f":"IF(ISERROR(Dados!S674),\"-\",Dados!S674)","v":""},{"$f":"IF(ISERROR(Dados!T674),\"-\",Dados!T674)","v":""},{"$f":"IF(ISERROR(Dados!U674),\"-\",Dados!U674)","v":""},{"$f":"IF(ISERROR(Dados!V674),\"-\",Dados!V674)","v":""},{"$f":"IF(ISERROR(Dados!W674),\"-\",Dados!W674)","v":""},{"$f":"IF(ISERROR(Dados!X674),\"-\",Dados!X674)","v":""},{"$f":"IF(ISERROR(Dados!Y674),\"-\",Dados!Y674)","v":""},{"$f":"IF(ISERROR(Dados!Z674),\"-\",Dados!Z674)","v":""},{"$f":"IF(ISERROR(Dados!AA674),\"-\",Dados!AA674)","v":""},{"$f":"IF(ISERROR(Dados!AB674),\"-\",Dados!AB674)","v":""},{"$f":"IF(ISERROR(Dados!AC674),\"-\",Dados!AC674)","v":""},{"$f":"IF(ISERROR(Dados!AD674),\"-\",Dados!AD674)","v":""},{"$f":"IF(ISERROR(Dados!AE674),\"-\",Dados!AE674)","v":""},{"$f":"IF(ISERROR(Dados!AF674),\"-\",Dados!AF674)","v":""},{"$f":"IF(ISERROR(Dados!AG674),\"-\",Dados!AG674)","v":""}]
[{"$f":"IF(ISERROR(Dados!A675),\"-\",Dados!A675)","v":""},{"$f":"IF(ISERROR(Dados!B675),\"-\",Dados!B675)","v":""},{"$f":"IF(ISERROR(Dados!C675),\"-\",Dados!C675)","v":""},{"$f":"IF(ISERROR(Dados!D675),\"-\",Dados!D675)","v":""},{"$f":"IF(ISERROR(Dados!E675),\"-\",Dados!E675)","v":""},{"$f":"IF(ISERROR(Dados!F675),\"-\",Dados!F675)","v":""},{"$f":"IF(ISERROR(Dados!G675),\"-\",Dados!G675)","v":""},{"$f":"IF(ISERROR(Dados!H675),\"-\",Dados!H675)","v":""},{"$f":"IF(ISERROR(Dados!I675),\"-\",Dados!I675)","v":""},{"$f":"IF(ISERROR(Dados!J675),\"-\",Dados!J675)","v":""},{"$f":"IF(ISERROR(Dados!K675),\"-\",Dados!K675)","v":""},{"$f":"IF(ISERROR(Dados!L675),\"-\",Dados!L675)","v":""},{"$f":"IF(ISERROR(Dados!M675),\"-\",Dados!M675)","v":""},{"$f":"IF(ISERROR(Dados!N675),\"-\",Dados!N675)","v":""},{"$f":"IF(ISERROR(Dados!O675),\"-\",Dados!O675)","v":""},{"$f":"IF(ISERROR(Dados!P675),\"-\",Dados!P675)","v":""},{"$f":"IF(ISERROR(Dados!Q675),\"-\",Dados!Q675)","v":""},{"$f":"IF(ISERROR(Dados!R675),\"-\",Dados!R675)","v":""},{"$f":"IF(ISERROR(Dados!S675),\"-\",Dados!S675)","v":""},{"$f":"IF(ISERROR(Dados!T675),\"-\",Dados!T675)","v":""},{"$f":"IF(ISERROR(Dados!U675),\"-\",Dados!U675)","v":""},{"$f":"IF(ISERROR(Dados!V675),\"-\",Dados!V675)","v":""},{"$f":"IF(ISERROR(Dados!W675),\"-\",Dados!W675)","v":""},{"$f":"IF(ISERROR(Dados!X675),\"-\",Dados!X675)","v":""},{"$f":"IF(ISERROR(Dados!Y675),\"-\",Dados!Y675)","v":""},{"$f":"IF(ISERROR(Dados!Z675),\"-\",Dados!Z675)","v":""},{"$f":"IF(ISERROR(Dados!AA675),\"-\",Dados!AA675)","v":""},{"$f":"IF(ISERROR(Dados!AB675),\"-\",Dados!AB675)","v":""},{"$f":"IF(ISERROR(Dados!AC675),\"-\",Dados!AC675)","v":""},{"$f":"IF(ISERROR(Dados!AD675),\"-\",Dados!AD675)","v":""},{"$f":"IF(ISERROR(Dados!AE675),\"-\",Dados!AE675)","v":""},{"$f":"IF(ISERROR(Dados!AF675),\"-\",Dados!AF675)","v":""},{"$f":"IF(ISERROR(Dados!AG675),\"-\",Dados!AG675)","v":""}]
[{"$f":"IF(ISERROR(Dados!A676),\"-\",Dados!A676)","v":""},{"$f":"IF(ISERROR(Dados!B676),\"-\",Dados!B676)","v":""},{"$f":"IF(ISERROR(Dados!C676),\"-\",Dados!C676)","v":""},{"$f":"IF(ISERROR(Dados!D676),\"-\",Dados!D676)","v":""},{"$f":"IF(ISERROR(Dados!E676),\"-\",Dados!E676)","v":""},{"$f":"IF(ISERROR(Dados!F676),\"-\",Dados!F676)","v":""},{"$f":"IF(ISERROR(Dados!G676),\"-\",Dados!G676)","v":""},{"$f":"IF(ISERROR(Dados!H676),\"-\",Dados!H676)","v":""},{"$f":"IF(ISERROR(Dados!I676),\"-\",Dados!I676)","v":""},{"$f":"IF(ISERROR(Dados!J676),\"-\",Dados!J676)","v":""},{"$f":"IF(ISERROR(Dados!K676),\"-\",Dados!K676)","v":""},{"$f":"IF(ISERROR(Dados!L676),\"-\",Dados!L676)","v":""},{"$f":"IF(ISERROR(Dados!M676),\"-\",Dados!M676)","v":""},{"$f":"IF(ISERROR(Dados!N676),\"-\",Dados!N676)","v":""},{"$f":"IF(ISERROR(Dados!O676),\"-\",Dados!O676)","v":""},{"$f":"IF(ISERROR(Dados!P676),\"-\",Dados!P676)","v":""},{"$f":"IF(ISERROR(Dados!Q676),\"-\",Dados!Q676)","v":""},{"$f":"IF(ISERROR(Dados!R676),\"-\",Dados!R676)","v":""},{"$f":"IF(ISERROR(Dados!S676),\"-\",Dados!S676)","v":""},{"$f":"IF(ISERROR(Dados!T676),\"-\",Dados!T676)","v":""},{"$f":"IF(ISERROR(Dados!U676),\"-\",Dados!U676)","v":""},{"$f":"IF(ISERROR(Dados!V676),\"-\",Dados!V676)","v":""},{"$f":"IF(ISERROR(Dados!W676),\"-\",Dados!W676)","v":""},{"$f":"IF(ISERROR(Dados!X676),\"-\",Dados!X676)","v":""},{"$f":"IF(ISERROR(Dados!Y676),\"-\",Dados!Y676)","v":""},{"$f":"IF(ISERROR(Dados!Z676),\"-\",Dados!Z676)","v":""},{"$f":"IF(ISERROR(Dados!AA676),\"-\",Dados!AA676)","v":""},{"$f":"IF(ISERROR(Dados!AB676),\"-\",Dados!AB676)","v":""},{"$f":"IF(ISERROR(Dados!AC676),\"-\",Dados!AC676)","v":""},{"$f":"IF(ISERROR(Dados!AD676),\"-\",Dados!AD676)","v":""},{"$f":"IF(ISERROR(Dados!AE676),\"-\",Dados!AE676)","v":""},{"$f":"IF(ISERROR(Dados!AF676),\"-\",Dados!AF676)","v":""},{"$f":"IF(ISERROR(Dados!AG676),\"-\",Dados!AG676)","v":""}]
[{"$f":"IF(ISERROR(Dados!A677),\"-\",Dados!A677)","v":""},{"$f":"IF(ISERROR(Dados!B677),\"-\",Dados!B677)","v":""},{"$f":"IF(ISERROR(Dados!C677),\"-\",Dados!C677)","v":""},{"$f":"IF(ISERROR(Dados!D677),\"-\",Dados!D677)","v":""},{"$f":"IF(ISERROR(Dados!E677),\"-\",Dados!E677)","v":""},{"$f":"IF(ISERROR(Dados!F677),\"-\",Dados!F677)","v":""},{"$f":"IF(ISERROR(Dados!G677),\"-\",Dados!G677)","v":""},{"$f":"IF(ISERROR(Dados!H677),\"-\",Dados!H677)","v":""},{"$f":"IF(ISERROR(Dados!I677),\"-\",Dados!I677)","v":""},{"$f":"IF(ISERROR(Dados!J677),\"-\",Dados!J677)","v":""},{"$f":"IF(ISERROR(Dados!K677),\"-\",Dados!K677)","v":""},{"$f":"IF(ISERROR(Dados!L677),\"-\",Dados!L677)","v":""},{"$f":"IF(ISERROR(Dados!M677),\"-\",Dados!M677)","v":""},{"$f":"IF(ISERROR(Dados!N677),\"-\",Dados!N677)","v":""},{"$f":"IF(ISERROR(Dados!O677),\"-\",Dados!O677)","v":""},{"$f":"IF(ISERROR(Dados!P677),\"-\",Dados!P677)","v":""},{"$f":"IF(ISERROR(Dados!Q677),\"-\",Dados!Q677)","v":""},{"$f":"IF(ISERROR(Dados!R677),\"-\",Dados!R677)","v":""},{"$f":"IF(ISERROR(Dados!S677),\"-\",Dados!S677)","v":""},{"$f":"IF(ISERROR(Dados!T677),\"-\",Dados!T677)","v":""},{"$f":"IF(ISERROR(Dados!U677),\"-\",Dados!U677)","v":""},{"$f":"IF(ISERROR(Dados!V677),\"-\",Dados!V677)","v":""},{"$f":"IF(ISERROR(Dados!W677),\"-\",Dados!W677)","v":""},{"$f":"IF(ISERROR(Dados!X677),\"-\",Dados!X677)","v":""},{"$f":"IF(ISERROR(Dados!Y677),\"-\",Dados!Y677)","v":""},{"$f":"IF(ISERROR(Dados!Z677),\"-\",Dados!Z677)","v":""},{"$f":"IF(ISERROR(Dados!AA677),\"-\",Dados!AA677)","v":""},{"$f":"IF(ISERROR(Dados!AB677),\"-\",Dados!AB677)","v":""},{"$f":"IF(ISERROR(Dados!AC677),\"-\",Dados!AC677)","v":""},{"$f":"IF(ISERROR(Dados!AD677),\"-\",Dados!AD677)","v":""},{"$f":"IF(ISERROR(Dados!AE677),\"-\",Dados!AE677)","v":""},{"$f":"IF(ISERROR(Dados!AF677),\"-\",Dados!AF677)","v":""},{"$f":"IF(ISERROR(Dados!AG677),\"-\",Dados!AG677)","v":""}]
[{"$f":"IF(ISERROR(Dados!A678),\"-\",Dados!A678)","v":""},{"$f":"IF(ISERROR(Dados!B678),\"-\",Dados!B678)","v":""},{"$f":"IF(ISERROR(Dados!C678),\"-\",Dados!C678)","v":""},{"$f":"IF(ISERROR(Dados!D678),\"-\",Dados!D678)","v":""},{"$f":"IF(ISERROR(Dados!E678),\"-\",Dados!E678)","v":""},{"$f":"IF(ISERROR(Dados!F678),\"-\",Dados!F678)","v":""},{"$f":"IF(ISERROR(Dados!G678),\"-\",Dados!G678)","v":""},{"$f":"IF(ISERROR(Dados!H678),\"-\",Dados!H678)","v":""},{"$f":"IF(ISERROR(Dados!I678),\"-\",Dados!I678)","v":""},{"$f":"IF(ISERROR(Dados!J678),\"-\",Dados!J678)","v":""},{"$f":"IF(ISERROR(Dados!K678),\"-\",Dados!K678)","v":""},{"$f":"IF(ISERROR(Dados!L678),\"-\",Dados!L678)","v":""},{"$f":"IF(ISERROR(Dados!M678),\"-\",Dados!M678)","v":""},{"$f":"IF(ISERROR(Dados!N678),\"-\",Dados!N678)","v":""},{"$f":"IF(ISERROR(Dados!O678),\"-\",Dados!O678)","v":""},{"$f":"IF(ISERROR(Dados!P678),\"-\",Dados!P678)","v":""},{"$f":"IF(ISERROR(Dados!Q678),\"-\",Dados!Q678)","v":""},{"$f":"IF(ISERROR(Dados!R678),\"-\",Dados!R678)","v":""},{"$f":"IF(ISERROR(Dados!S678),\"-\",Dados!S678)","v":""},{"$f":"IF(ISERROR(Dados!T678),\"-\",Dados!T678)","v":""},{"$f":"IF(ISERROR(Dados!U678),\"-\",Dados!U678)","v":""},{"$f":"IF(ISERROR(Dados!V678),\"-\",Dados!V678)","v":""},{"$f":"IF(ISERROR(Dados!W678),\"-\",Dados!W678)","v":""},{"$f":"IF(ISERROR(Dados!X678),\"-\",Dados!X678)","v":""},{"$f":"IF(ISERROR(Dados!Y678),\"-\",Dados!Y678)","v":""},{"$f":"IF(ISERROR(Dados!Z678),\"-\",Dados!Z678)","v":""},{"$f":"IF(ISERROR(Dados!AA678),\"-\",Dados!AA678)","v":""},{"$f":"IF(ISERROR(Dados!AB678),\"-\",Dados!AB678)","v":""},{"$f":"IF(ISERROR(Dados!AC678),\"-\",Dados!AC678)","v":""},{"$f":"IF(ISERROR(Dados!AD678),\"-\",Dados!AD678)","v":""},{"$f":"IF(ISERROR(Dados!AE678),\"-\",Dados!AE678)","v":""},{"$f":"IF(ISERROR(Dados!AF678),\"-\",Dados!AF678)","v":""},{"$f":"IF(ISERROR(Dados!AG678),\"-\",Dados!AG678)","v":""}]
[{"$f":"IF(ISERROR(Dados!A679),\"-\",Dados!A679)","v":""},{"$f":"IF(ISERROR(Dados!B679),\"-\",Dados!B679)","v":""},{"$f":"IF(ISERROR(Dados!C679),\"-\",Dados!C679)","v":""},{"$f":"IF(ISERROR(Dados!D679),\"-\",Dados!D679)","v":""},{"$f":"IF(ISERROR(Dados!E679),\"-\",Dados!E679)","v":""},{"$f":"IF(ISERROR(Dados!F679),\"-\",Dados!F679)","v":""},{"$f":"IF(ISERROR(Dados!G679),\"-\",Dados!G679)","v":""},{"$f":"IF(ISERROR(Dados!H679),\"-\",Dados!H679)","v":""},{"$f":"IF(ISERROR(Dados!I679),\"-\",Dados!I679)","v":""},{"$f":"IF(ISERROR(Dados!J679),\"-\",Dados!J679)","v":""},{"$f":"IF(ISERROR(Dados!K679),\"-\",Dados!K679)","v":""},{"$f":"IF(ISERROR(Dados!L679),\"-\",Dados!L679)","v":""},{"$f":"IF(ISERROR(Dados!M679),\"-\",Dados!M679)","v":""},{"$f":"IF(ISERROR(Dados!N679),\"-\",Dados!N679)","v":""},{"$f":"IF(ISERROR(Dados!O679),\"-\",Dados!O679)","v":""},{"$f":"IF(ISERROR(Dados!P679),\"-\",Dados!P679)","v":""},{"$f":"IF(ISERROR(Dados!Q679),\"-\",Dados!Q679)","v":""},{"$f":"IF(ISERROR(Dados!R679),\"-\",Dados!R679)","v":""},{"$f":"IF(ISERROR(Dados!S679),\"-\",Dados!S679)","v":""},{"$f":"IF(ISERROR(Dados!T679),\"-\",Dados!T679)","v":""},{"$f":"IF(ISERROR(Dados!U679),\"-\",Dados!U679)","v":""},{"$f":"IF(ISERROR(Dados!V679),\"-\",Dados!V679)","v":""},{"$f":"IF(ISERROR(Dados!W679),\"-\",Dados!W679)","v":""},{"$f":"IF(ISERROR(Dados!X679),\"-\",Dados!X679)","v":""},{"$f":"IF(ISERROR(Dados!Y679),\"-\",Dados!Y679)","v":""},{"$f":"IF(ISERROR(Dados!Z679),\"-\",Dados!Z679)","v":""},{"$f":"IF(ISERROR(Dados!AA679),\"-\",Dados!AA679)","v":""},{"$f":"IF(ISERROR(Dados!AB679),\"-\",Dados!AB679)","v":""},{"$f":"IF(ISERROR(Dados!AC679),\"-\",Dados!AC679)","v":""},{"$f":"IF(ISERROR(Dados!AD679),\"-\",Dados!AD679)","v":""},{"$f":"IF(ISERROR(Dados!AE679),\"-\",Dados!AE679)","v":""},{"$f":"IF(ISERROR(Dados!AF679),\"-\",Dados!AF679)","v":""},{"$f":"IF(ISERROR(Dados!AG679),\"-\",Dados!AG679)","v":""}]
[{"$f":"IF(ISERROR(Dados!A680),\"-\",Dados!A680)","v":""},{"$f":"IF(ISERROR(Dados!B680),\"-\",Dados!B680)","v":""},{"$f":"IF(ISERROR(Dados!C680),\"-\",Dados!C680)","v":""},{"$f":"IF(ISERROR(Dados!D680),\"-\",Dados!D680)","v":""},{"$f":"IF(ISERROR(Dados!E680),\"-\",Dados!E680)","v":""},{"$f":"IF(ISERROR(Dados!F680),\"-\",Dados!F680)","v":""},{"$f":"IF(ISERROR(Dados!G680),\"-\",Dados!G680)","v":""},{"$f":"IF(ISERROR(Dados!H680),\"-\",Dados!H680)","v":""},{"$f":"IF(ISERROR(Dados!I680),\"-\",Dados!I680)","v":""},{"$f":"IF(ISERROR(Dados!J680),\"-\",Dados!J680)","v":""},{"$f":"IF(ISERROR(Dados!K680),\"-\",Dados!K680)","v":""},{"$f":"IF(ISERROR(Dados!L680),\"-\",Dados!L680)","v":""},{"$f":"IF(ISERROR(Dados!M680),\"-\",Dados!M680)","v":""},{"$f":"IF(ISERROR(Dados!N680),\"-\",Dados!N680)","v":""},{"$f":"IF(ISERROR(Dados!O680),\"-\",Dados!O680)","v":""},{"$f":"IF(ISERROR(Dados!P680),\"-\",Dados!P680)","v":""},{"$f":"IF(ISERROR(Dados!Q680),\"-\",Dados!Q680)","v":""},{"$f":"IF(ISERROR(Dados!R680),\"-\",Dados!R680)","v":""},{"$f":"IF(ISERROR(Dados!S680),\"-\",Dados!S680)","v":""},{"$f":"IF(ISERROR(Dados!T680),\"-\",Dados!T680)","v":""},{"$f":"IF(ISERROR(Dados!U680),\"-\",Dados!U680)","v":""},{"$f":"IF(ISERROR(Dados!V680),\"-\",Dados!V680)","v":""},{"$f":"IF(ISERROR(Dados!W680),\"-\",Dados!W680)","v":""},{"$f":"IF(ISERROR(Dados!X680),\"-\",Dados!X680)","v":""},{"$f":"IF(ISERROR(Dados!Y680),\"-\",Dados!Y680)","v":""},{"$f":"IF(ISERROR(Dados!Z680),\"-\",Dados!Z680)","v":""},{"$f":"IF(ISERROR(Dados!AA680),\"-\",Dados!AA680)","v":""},{"$f":"IF(ISERROR(Dados!AB680),\"-\",Dados!AB680)","v":""},{"$f":"IF(ISERROR(Dados!AC680),\"-\",Dados!AC680)","v":""},{"$f":"IF(ISERROR(Dados!AD680),\"-\",Dados!AD680)","v":""},{"$f":"IF(ISERROR(Dados!AE680),\"-\",Dados!AE680)","v":""},{"$f":"IF(ISERROR(Dados!AF680),\"-\",Dados!AF680)","v":""},{"$f":"IF(ISERROR(Dados!AG680),\"-\",Dados!AG680)","v":""}]
[{"$f":"IF(ISERROR(Dados!A681),\"-\",Dados!A681)","v":""},{"$f":"IF(ISERROR(Dados!B681),\"-\",Dados!B681)","v":""},{"$f":"IF(ISERROR(Dados!C681),\"-\",Dados!C681)","v":""},{"$f":"IF(ISERROR(Dados!D681),\"-\",Dados!D681)","v":""},{"$f":"IF(ISERROR(Dados!E681),\"-\",Dados!E681)","v":""},{"$f":"IF(ISERROR(Dados!F681),\"-\",Dados!F681)","v":""},{"$f":"IF(ISERROR(Dados!G681),\"-\",Dados!G681)","v":""},{"$f":"IF(ISERROR(Dados!H681),\"-\",Dados!H681)","v":""},{"$f":"IF(ISERROR(Dados!I681),\"-\",Dados!I681)","v":""},{"$f":"IF(ISERROR(Dados!J681),\"-\",Dados!J681)","v":""},{"$f":"IF(ISERROR(Dados!K681),\"-\",Dados!K681)","v":""},{"$f":"IF(ISERROR(Dados!L681),\"-\",Dados!L681)","v":""},{"$f":"IF(ISERROR(Dados!M681),\"-\",Dados!M681)","v":""},{"$f":"IF(ISERROR(Dados!N681),\"-\",Dados!N681)","v":""},{"$f":"IF(ISERROR(Dados!O681),\"-\",Dados!O681)","v":""},{"$f":"IF(ISERROR(Dados!P681),\"-\",Dados!P681)","v":""},{"$f":"IF(ISERROR(Dados!Q681),\"-\",Dados!Q681)","v":""},{"$f":"IF(ISERROR(Dados!R681),\"-\",Dados!R681)","v":""},{"$f":"IF(ISERROR(Dados!S681),\"-\",Dados!S681)","v":""},{"$f":"IF(ISERROR(Dados!T681),\"-\",Dados!T681)","v":""},{"$f":"IF(ISERROR(Dados!U681),\"-\",Dados!U681)","v":""},{"$f":"IF(ISERROR(Dados!V681),\"-\",Dados!V681)","v":""},{"$f":"IF(ISERROR(Dados!W681),\"-\",Dados!W681)","v":""},{"$f":"IF(ISERROR(Dados!X681),\"-\",Dados!X681)","v":""},{"$f":"IF(ISERROR(Dados!Y681),\"-\",Dados!Y681)","v":""},{"$f":"IF(ISERROR(Dados!Z681),\"-\",Dados!Z681)","v":""},{"$f":"IF(ISERROR(Dados!AA681),\"-\",Dados!AA681)","v":""},{"$f":"IF(ISERROR(Dados!AB681),\"-\",Dados!AB681)","v":""},{"$f":"IF(ISERROR(Dados!AC681),\"-\",Dados!AC681)","v":""},{"$f":"IF(ISERROR(Dados!AD681),\"-\",Dados!AD681)","v":""},{"$f":"IF(ISERROR(Dados!AE681),\"-\",Dados!AE681)","v":""},{"$f":"IF(ISERROR(Dados!AF681),\"-\",Dados!AF681)","v":""},{"$f":"IF(ISERROR(Dados!AG681),\"-\",Dados!AG681)","v":""}]
[{"$f":"IF(ISERROR(Dados!A682),\"-\",Dados!A682)","v":""},{"$f":"IF(ISERROR(Dados!B682),\"-\",Dados!B682)","v":""},{"$f":"IF(ISERROR(Dados!C682),\"-\",Dados!C682)","v":""},{"$f":"IF(ISERROR(Dados!D682),\"-\",Dados!D682)","v":""},{"$f":"IF(ISERROR(Dados!E682),\"-\",Dados!E682)","v":""},{"$f":"IF(ISERROR(Dados!F682),\"-\",Dados!F682)","v":""},{"$f":"IF(ISERROR(Dados!G682),\"-\",Dados!G682)","v":""},{"$f":"IF(ISERROR(Dados!H682),\"-\",Dados!H682)","v":""},{"$f":"IF(ISERROR(Dados!I682),\"-\",Dados!I682)","v":""},{"$f":"IF(ISERROR(Dados!J682),\"-\",Dados!J682)","v":""},{"$f":"IF(ISERROR(Dados!K682),\"-\",Dados!K682)","v":""},{"$f":"IF(ISERROR(Dados!L682),\"-\",Dados!L682)","v":""},{"$f":"IF(ISERROR(Dados!M682),\"-\",Dados!M682)","v":""},{"$f":"IF(ISERROR(Dados!N682),\"-\",Dados!N682)","v":""},{"$f":"IF(ISERROR(Dados!O682),\"-\",Dados!O682)","v":""},{"$f":"IF(ISERROR(Dados!P682),\"-\",Dados!P682)","v":""},{"$f":"IF(ISERROR(Dados!Q682),\"-\",Dados!Q682)","v":""},{"$f":"IF(ISERROR(Dados!R682),\"-\",Dados!R682)","v":""},{"$f":"IF(ISERROR(Dados!S682),\"-\",Dados!S682)","v":""},{"$f":"IF(ISERROR(Dados!T682),\"-\",Dados!T682)","v":""},{"$f":"IF(ISERROR(Dados!U682),\"-\",Dados!U682)","v":""},{"$f":"IF(ISERROR(Dados!V682),\"-\",Dados!V682)","v":""},{"$f":"IF(ISERROR(Dados!W682),\"-\",Dados!W682)","v":""},{"$f":"IF(ISERROR(Dados!X682),\"-\",Dados!X682)","v":""},{"$f":"IF(ISERROR(Dados!Y682),\"-\",Dados!Y682)","v":""},{"$f":"IF(ISERROR(Dados!Z682),\"-\",Dados!Z682)","v":""},{"$f":"IF(ISERROR(Dados!AA682),\"-\",Dados!AA682)","v":""},{"$f":"IF(ISERROR(Dados!AB682),\"-\",Dados!AB682)","v":""},{"$f":"IF(ISERROR(Dados!AC682),\"-\",Dados!AC682)","v":""},{"$f":"IF(ISERROR(Dados!AD682),\"-\",Dados!AD682)","v":""},{"$f":"IF(ISERROR(Dados!AE682),\"-\",Dados!AE682)","v":""},{"$f":"IF(ISERROR(Dados!AF682),\"-\",Dados!AF682)","v":""},{"$f":"IF(ISERROR(Dados!AG682),\"-\",Dados!AG682)","v":""}]
[{"$f":"IF(ISERROR(Dados!A683),\"-\",Dados!A683)","v":""},{"$f":"IF(ISERROR(Dados!B683),\"-\",Dados!B683)","v":""},{"$f":"IF(ISERROR(Dados!C683),\"-\",Dados!C683)","v":""},{"$f":"IF(ISERROR(Dados!D683),\"-\",Dados!D683)","v":""},{"$f":"IF(ISERROR(Dados!E683),\"-\",Dados!E683)","v":""},{"$f":"IF(ISERROR(Dados!F683),\"-\",Dados!F683)","v":""},{"$f":"IF(ISERROR(Dados!G683),\"-\",Dados!G683)","v":""},{"$f":"IF(ISERROR(Dados!H683),\"-\",Dados!H683)","v":""},{"$f":"IF(ISERROR(Dados!I683),\"-\",Dados!I683)","v":""},{"$f":"IF(ISERROR(Dados!J683),\"-\",Dados!J683)","v":""},{"$f":"IF(ISERROR(Dados!K683),\"-\",Dados!K683)","v":""},{"$f":"IF(ISERROR(Dados!L683),\"-\",Dados!L683)","v":""},{"$f":"IF(ISERROR(Dados!M683),\"-\",Dados!M683)","v":""},{"$f":"IF(ISERROR(Dados!N683),\"-\",Dados!N683)","v":""},{"$f":"IF(ISERROR(Dados!O683),\"-\",Dados!O683)","v":""},{"$f":"IF(ISERROR(Dados!P683),\"-\",Dados!P683)","v":""},{"$f":"IF(ISERROR(Dados!Q683),\"-\",Dados!Q683)","v":""},{"$f":"IF(ISERROR(Dados!R683),\"-\",Dados!R683)","v":""},{"$f":"IF(ISERROR(Dados!S683),\"-\",Dados!S683)","v":""},{"$f":"IF(ISERROR(Dados!T683),\"-\",Dados!T683)","v":""},{"$f":"IF(ISERROR(Dados!U683),\"-\",Dados!U683)","v":""},{"$f":"IF(ISERROR(Dados!V683),\"-\",Dados!V683)","v":""},{"$f":"IF(ISERROR(Dados!W683),\"-\",Dados!W683)","v":""},{"$f":"IF(ISERROR(Dados!X683),\"-\",Dados!X683)","v":""},{"$f":"IF(ISERROR(Dados!Y683),\"-\",Dados!Y683)","v":""},{"$f":"IF(ISERROR(Dados!Z683),\"-\",Dados!Z683)","v":""},{"$f":"IF(ISERROR(Dados!AA683),\"-\",Dados!AA683)","v":""},{"$f":"IF(ISERROR(Dados!AB683),\"-\",Dados!AB683)","v":""},{"$f":"IF(ISERROR(Dados!AC683),\"-\",Dados!AC683)","v":""},{"$f":"IF(ISERROR(Dados!AD683),\"-\",Dados!AD683)","v":""},{"$f":"IF(ISERROR(Dados!AE683),\"-\",Dados!AE683)","v":""},{"$f":"IF(ISERROR(Dados!AF683),\"-\",Dados!AF683)","v":""},{"$f":"IF(ISERROR(Dados!AG683),\"-\",Dados!AG683)","v":""}]
[{"$f":"IF(ISERROR(Dados!A684),\"-\",Dados!A684)","v":""},{"$f":"IF(ISERROR(Dados!B684),\"-\",Dados!B684)","v":""},{"$f":"IF(ISERROR(Dados!C684),\"-\",Dados!C684)","v":""},{"$f":"IF(ISERROR(Dados!D684),\"-\",Dados!D684)","v":""},{"$f":"IF(ISERROR(Dados!E684),\"-\",Dados!E684)","v":""},{"$f":"IF(ISERROR(Dados!F684),\"-\",Dados!F684)","v":""},{"$f":"IF(ISERROR(Dados!G684),\"-\",Dados!G684)","v":""},{"$f":"IF(ISERROR(Dados!H684),\"-\",Dados!H684)","v":""},{"$f":"IF(ISERROR(Dados!I684),\"-\",Dados!I684)","v":""},{"$f":"IF(ISERROR(Dados!J684),\"-\",Dados!J684)","v":""},{"$f":"IF(ISERROR(Dados!K684),\"-\",Dados!K684)","v":""},{"$f":"IF(ISERROR(Dados!L684),\"-\",Dados!L684)","v":""},{"$f":"IF(ISERROR(Dados!M684),\"-\",Dados!M684)","v":""},{"$f":"IF(ISERROR(Dados!N684),\"-\",Dados!N684)","v":""},{"$f":"IF(ISERROR(Dados!O684),\"-\",Dados!O684)","v":""},{"$f":"IF(ISERROR(Dados!P684),\"-\",Dados!P684)","v":""},{"$f":"IF(ISERROR(Dados!Q684),\"-\",Dados!Q684)","v":""},{"$f":"IF(ISERROR(Dados!R684),\"-\",Dados!R684)","v":""},{"$f":"IF(ISERROR(Dados!S684),\"-\",Dados!S684)","v":""},{"$f":"IF(ISERROR(Dados!T684),\"-\",Dados!T684)","v":""},{"$f":"IF(ISERROR(Dados!U684),\"-\",Dados!U684)","v":""},{"$f":"IF(ISERROR(Dados!V684),\"-\",Dados!V684)","v":""},{"$f":"IF(ISERROR(Dados!W684),\"-\",Dados!W684)","v":""},{"$f":"IF(ISERROR(Dados!X684),\"-\",Dados!X684)","v":""},{"$f":"IF(ISERROR(Dados!Y684),\"-\",Dados!Y684)","v":""},{"$f":"IF(ISERROR(Dados!Z684),\"-\",Dados!Z684)","v":""},{"$f":"IF(ISERROR(Dados!AA684),\"-\",Dados!AA684)","v":""},{"$f":"IF(ISERROR(Dados!AB684),\"-\",Dados!AB684)","v":""},{"$f":"IF(ISERROR(Dados!AC684),\"-\",Dados!AC684)","v":""},{"$f":"IF(ISERROR(Dados!AD684),\"-\",Dados!AD684)","v":""},{"$f":"IF(ISERROR(Dados!AE684),\"-\",Dados!AE684)","v":""},{"$f":"IF(ISERROR(Dados!AF684),\"-\",Dados!AF684)","v":""},{"$f":"IF(ISERROR(Dados!AG684),\"-\",Dados!AG684)","v":""}]
[{"$f":"IF(ISERROR(Dados!A685),\"-\",Dados!A685)","v":""},{"$f":"IF(ISERROR(Dados!B685),\"-\",Dados!B685)","v":""},{"$f":"IF(ISERROR(Dados!C685),\"-\",Dados!C685)","v":""},{"$f":"IF(ISERROR(Dados!D685),\"-\",Dados!D685)","v":""},{"$f":"IF(ISERROR(Dados!E685),\"-\",Dados!E685)","v":""},{"$f":"IF(ISERROR(Dados!F685),\"-\",Dados!F685)","v":""},{"$f":"IF(ISERROR(Dados!G685),\"-\",Dados!G685)","v":""},{"$f":"IF(ISERROR(Dados!H685),\"-\",Dados!H685)","v":""},{"$f":"IF(ISERROR(Dados!I685),\"-\",Dados!I685)","v":""},{"$f":"IF(ISERROR(Dados!J685),\"-\",Dados!J685)","v":""},{"$f":"IF(ISERROR(Dados!K685),\"-\",Dados!K685)","v":""},{"$f":"IF(ISERROR(Dados!L685),\"-\",Dados!L685)","v":""},{"$f":"IF(ISERROR(Dados!M685),\"-\",Dados!M685)","v":""},{"$f":"IF(ISERROR(Dados!N685),\"-\",Dados!N685)","v":""},{"$f":"IF(ISERROR(Dados!O685),\"-\",Dados!O685)","v":""},{"$f":"IF(ISERROR(Dados!P685),\"-\",Dados!P685)","v":""},{"$f":"IF(ISERROR(Dados!Q685),\"-\",Dados!Q685)","v":""},{"$f":"IF(ISERROR(Dados!R685),\"-\",Dados!R685)","v":""},{"$f":"IF(ISERROR(Dados!S685),\"-\",Dados!S685)","v":""},{"$f":"IF(ISERROR(Dados!T685),\"-\",Dados!T685)","v":""},{"$f":"IF(ISERROR(Dados!U685),\"-\",Dados!U685)","v":""},{"$f":"IF(ISERROR(Dados!V685),\"-\",Dados!V685)","v":""},{"$f":"IF(ISERROR(Dados!W685),\"-\",Dados!W685)","v":""},{"$f":"IF(ISERROR(Dados!X685),\"-\",Dados!X685)","v":""},{"$f":"IF(ISERROR(Dados!Y685),\"-\",Dados!Y685)","v":""},{"$f":"IF(ISERROR(Dados!Z685),\"-\",Dados!Z685)","v":""},{"$f":"IF(ISERROR(Dados!AA685),\"-\",Dados!AA685)","v":""},{"$f":"IF(ISERROR(Dados!AB685),\"-\",Dados!AB685)","v":""},{"$f":"IF(ISERROR(Dados!AC685),\"-\",Dados!AC685)","v":""},{"$f":"IF(ISERROR(Dados!AD685),\"-\",Dados!AD685)","v":""},{"$f":"IF(ISERROR(Dados!AE685),\"-\",Dados!AE685)","v":""},{"$f":"IF(ISERROR(Dados!AF685),\"-\",Dados!AF685)","v":""},{"$f":"IF(ISERROR(Dados!AG685),\"-\",Dados!AG685)","v":""}]
[{"$f":"IF(ISERROR(Dados!A686),\"-\",Dados!A686)","v":""},{"$f":"IF(ISERROR(Dados!B686),\"-\",Dados!B686)","v":""},{"$f":"IF(ISERROR(Dados!C686),\"-\",Dados!C686)","v":""},{"$f":"IF(ISERROR(Dados!D686),\"-\",Dados!D686)","v":""},{"$f":"IF(ISERROR(Dados!E686),\"-\",Dados!E686)","v":""},{"$f":"IF(ISERROR(Dados!F686),\"-\",Dados!F686)","v":""},{"$f":"IF(ISERROR(Dados!G686),\"-\",Dados!G686)","v":""},{"$f":"IF(ISERROR(Dados!H686),\"-\",Dados!H686)","v":""},{"$f":"IF(ISERROR(Dados!I686),\"-\",Dados!I686)","v":""},{"$f":"IF(ISERROR(Dados!J686),\"-\",Dados!J686)","v":""},{"$f":"IF(ISERROR(Dados!K686),\"-\",Dados!K686)","v":""},{"$f":"IF(ISERROR(Dados!L686),\"-\",Dados!L686)","v":""},{"$f":"IF(ISERROR(Dados!M686),\"-\",Dados!M686)","v":""},{"$f":"IF(ISERROR(Dados!N686),\"-\",Dados!N686)","v":""},{"$f":"IF(ISERROR(Dados!O686),\"-\",Dados!O686)","v":""},{"$f":"IF(ISERROR(Dados!P686),\"-\",Dados!P686)","v":""},{"$f":"IF(ISERROR(Dados!Q686),\"-\",Dados!Q686)","v":""},{"$f":"IF(ISERROR(Dados!R686),\"-\",Dados!R686)","v":""},{"$f":"IF(ISERROR(Dados!S686),\"-\",Dados!S686)","v":""},{"$f":"IF(ISERROR(Dados!T686),\"-\",Dados!T686)","v":""},{"$f":"IF(ISERROR(Dados!U686),\"-\",Dados!U686)","v":""},{"$f":"IF(ISERROR(Dados!V686),\"-\",Dados!V686)","v":""},{"$f":"IF(ISERROR(Dados!W686),\"-\",Dados!W686)","v":""},{"$f":"IF(ISERROR(Dados!X686),\"-\",Dados!X686)","v":""},{"$f":"IF(ISERROR(Dados!Y686),\"-\",Dados!Y686)","v":""},{"$f":"IF(ISERROR(Dados!Z686),\"-\",Dados!Z686)","v":""},{"$f":"IF(ISERROR(Dados!AA686),\"-\",Dados!AA686)","v":""},{"$f":"IF(ISERROR(Dados!AB686),\"-\",Dados!AB686)","v":""},{"$f":"IF(ISERROR(Dados!AC686),\"-\",Dados!AC686)","v":""},{"$f":"IF(ISERROR(Dados!AD686),\"-\",Dados!AD686)","v":""},{"$f":"IF(ISERROR(Dados!AE686),\"-\",Dados!AE686)","v":""},{"$f":"IF(ISERROR(Dados!AF686),\"-\",Dados!AF686)","v":""},{"$f":"IF(ISERROR(Dados!AG686),\"-\",Dados!AG686)","v":""}]
[{"$f":"IF(ISERROR(Dados!A687),\"-\",Dados!A687)","v":""},{"$f":"IF(ISERROR(Dados!B687),\"-\",Dados!B687)","v":""},{"$f":"IF(ISERROR(Dados!C687),\"-\",Dados!C687)","v":""},{"$f":"IF(ISERROR(Dados!D687),\"-\",Dados!D687)","v":""},{"$f":"IF(ISERROR(Dados!E687),\"-\",Dados!E687)","v":""},{"$f":"IF(ISERROR(Dados!F687),\"-\",Dados!F687)","v":""},{"$f":"IF(ISERROR(Dados!G687),\"-\",Dados!G687)","v":""},{"$f":"IF(ISERROR(Dados!H687),\"-\",Dados!H687)","v":""},{"$f":"IF(ISERROR(Dados!I687),\"-\",Dados!I687)","v":""},{"$f":"IF(ISERROR(Dados!J687),\"-\",Dados!J687)","v":""},{"$f":"IF(ISERROR(Dados!K687),\"-\",Dados!K687)","v":""},{"$f":"IF(ISERROR(Dados!L687),\"-\",Dados!L687)","v":""},{"$f":"IF(ISERROR(Dados!M687),\"-\",Dados!M687)","v":""},{"$f":"IF(ISERROR(Dados!N687),\"-\",Dados!N687)","v":""},{"$f":"IF(ISERROR(Dados!O687),\"-\",Dados!O687)","v":""},{"$f":"IF(ISERROR(Dados!P687),\"-\",Dados!P687)","v":""},{"$f":"IF(ISERROR(Dados!Q687),\"-\",Dados!Q687)","v":""},{"$f":"IF(ISERROR(Dados!R687),\"-\",Dados!R687)","v":""},{"$f":"IF(ISERROR(Dados!S687),\"-\",Dados!S687)","v":""},{"$f":"IF(ISERROR(Dados!T687),\"-\",Dados!T687)","v":""},{"$f":"IF(ISERROR(Dados!U687),\"-\",Dados!U687)","v":""},{"$f":"IF(ISERROR(Dados!V687),\"-\",Dados!V687)","v":""},{"$f":"IF(ISERROR(Dados!W687),\"-\",Dados!W687)","v":""},{"$f":"IF(ISERROR(Dados!X687),\"-\",Dados!X687)","v":""},{"$f":"IF(ISERROR(Dados!Y687),\"-\",Dados!Y687)","v":""},{"$f":"IF(ISERROR(Dados!Z687),\"-\",Dados!Z687)","v":""},{"$f":"IF(ISERROR(Dados!AA687),\"-\",Dados!AA687)","v":""},{"$f":"IF(ISERROR(Dados!AB687),\"-\",Dados!AB687)","v":""},{"$f":"IF(ISERROR(Dados!AC687),\"-\",Dados!AC687)","v":""},{"$f":"IF(ISERROR(Dados!AD687),\"-\",Dados!AD687)","v":""},{"$f":"IF(ISERROR(Dados!AE687),\"-\",Dados!AE687)","v":""},{"$f":"IF(ISERROR(Dados!AF687),\"-\",Dados!AF687)","v":""},{"$f":"IF(ISERROR(Dados!AG687),\"-\",Dados!AG687)","v":""}]
[{"$f":"IF(ISERROR(Dados!A688),\"-\",Dados!A688)","v":""},{"$f":"IF(ISERROR(Dados!B688),\"-\",Dados!B688)","v":""},{"$f":"IF(ISERROR(Dados!C688),\"-\",Dados!C688)","v":""},{"$f":"IF(ISERROR(Dados!D688),\"-\",Dados!D688)","v":""},{"$f":"IF(ISERROR(Dados!E688),\"-\",Dados!E688)","v":""},{"$f":"IF(ISERROR(Dados!F688),\"-\",Dados!F688)","v":""},{"$f":"IF(ISERROR(Dados!G688),\"-\",Dados!G688)","v":""},{"$f":"IF(ISERROR(Dados!H688),\"-\",Dados!H688)","v":""},{"$f":"IF(ISERROR(Dados!I688),\"-\",Dados!I688)","v":""},{"$f":"IF(ISERROR(Dados!J688),\"-\",Dados!J688)","v":""},{"$f":"IF(ISERROR(Dados!K688),\"-\",Dados!K688)","v":""},{"$f":"IF(ISERROR(Dados!L688),\"-\",Dados!L688)","v":""},{"$f":"IF(ISERROR(Dados!M688),\"-\",Dados!M688)","v":""},{"$f":"IF(ISERROR(Dados!N688),\"-\",Dados!N688)","v":""},{"$f":"IF(ISERROR(Dados!O688),\"-\",Dados!O688)","v":""},{"$f":"IF(ISERROR(Dados!P688),\"-\",Dados!P688)","v":""},{"$f":"IF(ISERROR(Dados!Q688),\"-\",Dados!Q688)","v":""},{"$f":"IF(ISERROR(Dados!R688),\"-\",Dados!R688)","v":""},{"$f":"IF(ISERROR(Dados!S688),\"-\",Dados!S688)","v":""},{"$f":"IF(ISERROR(Dados!T688),\"-\",Dados!T688)","v":""},{"$f":"IF(ISERROR(Dados!U688),\"-\",Dados!U688)","v":""},{"$f":"IF(ISERROR(Dados!V688),\"-\",Dados!V688)","v":""},{"$f":"IF(ISERROR(Dados!W688),\"-\",Dados!W688)","v":""},{"$f":"IF(ISERROR(Dados!X688),\"-\",Dados!X688)","v":""},{"$f":"IF(ISERROR(Dados!Y688),\"-\",Dados!Y688)","v":""},{"$f":"IF(ISERROR(Dados!Z688),\"-\",Dados!Z688)","v":""},{"$f":"IF(ISERROR(Dados!AA688),\"-\",Dados!AA688)","v":""},{"$f":"IF(ISERROR(Dados!AB688),\"-\",Dados!AB688)","v":""},{"$f":"IF(ISERROR(Dados!AC688),\"-\",Dados!AC688)","v":""},{"$f":"IF(ISERROR(Dados!AD688),\"-\",Dados!AD688)","v":""},{"$f":"IF(ISERROR(Dados!AE688),\"-\",Dados!AE688)","v":""},{"$f":"IF(ISERROR(Dados!AF688),\"-\",Dados!AF688)","v":""},{"$f":"IF(ISERROR(Dados!AG688),\"-\",Dados!AG688)","v":""}]
[{"$f":"IF(ISERROR(Dados!A689),\"-\",Dados!A689)","v":""},{"$f":"IF(ISERROR(Dados!B689),\"-\",Dados!B689)","v":""},{"$f":"IF(ISERROR(Dados!C689),\"-\",Dados!C689)","v":""},{"$f":"IF(ISERROR(Dados!D689),\"-\",Dados!D689)","v":""},{"$f":"IF(ISERROR(Dados!E689),\"-\",Dados!E689)","v":""},{"$f":"IF(ISERROR(Dados!F689),\"-\",Dados!F689)","v":""},{"$f":"IF(ISERROR(Dados!G689),\"-\",Dados!G689)","v":""},{"$f":"IF(ISERROR(Dados!H689),\"-\",Dados!H689)","v":""},{"$f":"IF(ISERROR(Dados!I689),\"-\",Dados!I689)","v":""},{"$f":"IF(ISERROR(Dados!J689),\"-\",Dados!J689)","v":""},{"$f":"IF(ISERROR(Dados!K689),\"-\",Dados!K689)","v":""},{"$f":"IF(ISERROR(Dados!L689),\"-\",Dados!L689)","v":""},{"$f":"IF(ISERROR(Dados!M689),\"-\",Dados!M689)","v":""},{"$f":"IF(ISERROR(Dados!N689),\"-\",Dados!N689)","v":""},{"$f":"IF(ISERROR(Dados!O689),\"-\",Dados!O689)","v":""},{"$f":"IF(ISERROR(Dados!P689),\"-\",Dados!P689)","v":""},{"$f":"IF(ISERROR(Dados!Q689),\"-\",Dados!Q689)","v":""},{"$f":"IF(ISERROR(Dados!R689),\"-\",Dados!R689)","v":""},{"$f":"IF(ISERROR(Dados!S689),\"-\",Dados!S689)","v":""},{"$f":"IF(ISERROR(Dados!T689),\"-\",Dados!T689)","v":""},{"$f":"IF(ISERROR(Dados!U689),\"-\",Dados!U689)","v":""},{"$f":"IF(ISERROR(Dados!V689),\"-\",Dados!V689)","v":""},{"$f":"IF(ISERROR(Dados!W689),\"-\",Dados!W689)","v":""},{"$f":"IF(ISERROR(Dados!X689),\"-\",Dados!X689)","v":""},{"$f":"IF(ISERROR(Dados!Y689),\"-\",Dados!Y689)","v":""},{"$f":"IF(ISERROR(Dados!Z689),\"-\",Dados!Z689)","v":""},{"$f":"IF(ISERROR(Dados!AA689),\"-\",Dados!AA689)","v":""},{"$f":"IF(ISERROR(Dados!AB689),\"-\",Dados!AB689)","v":""},{"$f":"IF(ISERROR(Dados!AC689),\"-\",Dados!AC689)","v":""},{"$f":"IF(ISERROR(Dados!AD689),\"-\",Dados!AD689)","v":""},{"$f":"IF(ISERROR(Dados!AE689),\"-\",Dados!AE689)","v":""},{"$f":"IF(ISERROR(Dados!AF689),\"-\",Dados!AF689)","v":""},{"$f":"IF(ISERROR(Dados!AG689),\"-\",Dados!AG689)","v":""}]
[{"$f":"IF(ISERROR(Dados!A690),\"-\",Dados!A690)","v":""},{"$f":"IF(ISERROR(Dados!B690),\"-\",Dados!B690)","v":""},{"$f":"IF(ISERROR(Dados!C690),\"-\",Dados!C690)","v":""},{"$f":"IF(ISERROR(Dados!D690),\"-\",Dados!D690)","v":""},{"$f":"IF(ISERROR(Dados!E690),\"-\",Dados!E690)","v":""},{"$f":"IF(ISERROR(Dados!F690),\"-\",Dados!F690)","v":""},{"$f":"IF(ISERROR(Dados!G690),\"-\",Dados!G690)","v":""},{"$f":"IF(ISERROR(Dados!H690),\"-\",Dados!H690)","v":""},{"$f":"IF(ISERROR(Dados!I690),\"-\",Dados!I690)","v":""},{"$f":"IF(ISERROR(Dados!J690),\"-\",Dados!J690)","v":""},{"$f":"IF(ISERROR(Dados!K690),\"-\",Dados!K690)","v":""},{"$f":"IF(ISERROR(Dados!L690),\"-\",Dados!L690)","v":""},{"$f":"IF(ISERROR(Dados!M690),\"-\",Dados!M690)","v":""},{"$f":"IF(ISERROR(Dados!N690),\"-\",Dados!N690)","v":""},{"$f":"IF(ISERROR(Dados!O690),\"-\",Dados!O690)","v":""},{"$f":"IF(ISERROR(Dados!P690),\"-\",Dados!P690)","v":""},{"$f":"IF(ISERROR(Dados!Q690),\"-\",Dados!Q690)","v":""},{"$f":"IF(ISERROR(Dados!R690),\"-\",Dados!R690)","v":""},{"$f":"IF(ISERROR(Dados!S690),\"-\",Dados!S690)","v":""},{"$f":"IF(ISERROR(Dados!T690),\"-\",Dados!T690)","v":""},{"$f":"IF(ISERROR(Dados!U690),\"-\",Dados!U690)","v":""},{"$f":"IF(ISERROR(Dados!V690),\"-\",Dados!V690)","v":""},{"$f":"IF(ISERROR(Dados!W690),\"-\",Dados!W690)","v":""},{"$f":"IF(ISERROR(Dados!X690),\"-\",Dados!X690)","v":""},{"$f":"IF(ISERROR(Dados!Y690),\"-\",Dados!Y690)","v":""},{"$f":"IF(ISERROR(Dados!Z690),\"-\",Dados!Z690)","v":""},{"$f":"IF(ISERROR(Dados!AA690),\"-\",Dados!AA690)","v":""},{"$f":"IF(ISERROR(Dados!AB690),\"-\",Dados!AB690)","v":""},{"$f":"IF(ISERROR(Dados!AC690),\"-\",Dados!AC690)","v":""},{"$f":"IF(ISERROR(Dados!AD690),\"-\",Dados!AD690)","v":""},{"$f":"IF(ISERROR(Dados!AE690),\"-\",Dados!AE690)","v":""},{"$f":"IF(ISERROR(Dados!AF690),\"-\",Dados!AF690)","v":""},{"$f":"IF(ISERROR(Dados!AG690),\"-\",Dados!AG690)","v":""}]
[{"$f":"IF(ISERROR(Dados!A691),\"-\",Dados!A691)","v":""},{"$f":"IF(ISERROR(Dados!B691),\"-\",Dados!B691)","v":""},{"$f":"IF(ISERROR(Dados!C691),\"-\",Dados!C691)","v":""},{"$f":"IF(ISERROR(Dados!D691),\"-\",Dados!D691)","v":""},{"$f":"IF(ISERROR(Dados!E691),\"-\",Dados!E691)","v":""},{"$f":"IF(ISERROR(Dados!F691),\"-\",Dados!F691)","v":""},{"$f":"IF(ISERROR(Dados!G691),\"-\",Dados!G691)","v":""},{"$f":"IF(ISERROR(Dados!H691),\"-\",Dados!H691)","v":""},{"$f":"IF(ISERROR(Dados!I691),\"-\",Dados!I691)","v":""},{"$f":"IF(ISERROR(Dados!J691),\"-\",Dados!J691)","v":""},{"$f":"IF(ISERROR(Dados!K691),\"-\",Dados!K691)","v":""},{"$f":"IF(ISERROR(Dados!L691),\"-\",Dados!L691)","v":""},{"$f":"IF(ISERROR(Dados!M691),\"-\",Dados!M691)","v":""},{"$f":"IF(ISERROR(Dados!N691),\"-\",Dados!N691)","v":""},{"$f":"IF(ISERROR(Dados!O691),\"-\",Dados!O691)","v":""},{"$f":"IF(ISERROR(Dados!P691),\"-\",Dados!P691)","v":""},{"$f":"IF(ISERROR(Dados!Q691),\"-\",Dados!Q691)","v":""},{"$f":"IF(ISERROR(Dados!R691),\"-\",Dados!R691)","v":""},{"$f":"IF(ISERROR(Dados!S691),\"-\",Dados!S691)","v":""},{"$f":"IF(ISERROR(Dados!T691),\"-\",Dados!T691)","v":""},{"$f":"IF(ISERROR(Dados!U691),\"-\",Dados!U691)","v":""},{"$f":"IF(ISERROR(Dados!V691),\"-\",Dados!V691)","v":""},{"$f":"IF(ISERROR(Dados!W691),\"-\",Dados!W691)","v":""},{"$f":"IF(ISERROR(Dados!X691),\"-\",Dados!X691)","v":""},{"$f":"IF(ISERROR(Dados!Y691),\"-\",Dados!Y691)","v":""},{"$f":"IF(ISERROR(Dados!Z691),\"-\",Dados!Z691)","v":""},{"$f":"IF(ISERROR(Dados!AA691),\"-\",Dados!AA691)","v":""},{"$f":"IF(ISERROR(Dados!AB691),\"-\",Dados!AB691)","v":""},{"$f":"IF(ISERROR(Dados!AC691),\"-\",Dados!AC691)","v":""},{"$f":"IF(ISERROR(Dados!AD691),\"-\",Dados!AD691)","v":""},{"$f":"IF(ISERROR(Dados!AE691),\"-\",Dados!AE691)","v":""},{"$f":"IF(ISERROR(Dados!AF691),\"-\",Dados!AF691)","v":""},{"$f":"IF(ISERROR(Dados!AG691),\"-\",Dados!AG691)","v":""}]
[{"$f":"IF(ISERROR(Dados!A692),\"-\",Dados!A692)","v":""},{"$f":"IF(ISERROR(Dados!B692),\"-\",Dados!B692)","v":""},{"$f":"IF(ISERROR(Dados!C692),\"-\",Dados!C692)","v":""},{"$f":"IF(ISERROR(Dados!D692),\"-\",Dados!D692)","v":""},{"$f":"IF(ISERROR(Dados!E692),\"-\",Dados!E692)","v":""},{"$f":"IF(ISERROR(Dados!F692),\"-\",Dados!F692)","v":""},{"$f":"IF(ISERROR(Dados!G692),\"-\",Dados!G692)","v":""},{"$f":"IF(ISERROR(Dados!H692),\"-\",Dados!H692)","v":""},{"$f":"IF(ISERROR(Dados!I692),\"-\",Dados!I692)","v":""},{"$f":"IF(ISERROR(Dados!J692),\"-\",Dados!J692)","v":""},{"$f":"IF(ISERROR(Dados!K692),\"-\",Dados!K692)","v":""},{"$f":"IF(ISERROR(Dados!L692),\"-\",Dados!L692)","v":""},{"$f":"IF(ISERROR(Dados!M692),\"-\",Dados!M692)","v":""},{"$f":"IF(ISERROR(Dados!N692),\"-\",Dados!N692)","v":""},{"$f":"IF(ISERROR(Dados!O692),\"-\",Dados!O692)","v":""},{"$f":"IF(ISERROR(Dados!P692),\"-\",Dados!P692)","v":""},{"$f":"IF(ISERROR(Dados!Q692),\"-\",Dados!Q692)","v":""},{"$f":"IF(ISERROR(Dados!R692),\"-\",Dados!R692)","v":""},{"$f":"IF(ISERROR(Dados!S692),\"-\",Dados!S692)","v":""},{"$f":"IF(ISERROR(Dados!T692),\"-\",Dados!T692)","v":""},{"$f":"IF(ISERROR(Dados!U692),\"-\",Dados!U692)","v":""},{"$f":"IF(ISERROR(Dados!V692),\"-\",Dados!V692)","v":""},{"$f":"IF(ISERROR(Dados!W692),\"-\",Dados!W692)","v":""},{"$f":"IF(ISERROR(Dados!X692),\"-\",Dados!X692)","v":""},{"$f":"IF(ISERROR(Dados!Y692),\"-\",Dados!Y692)","v":""},{"$f":"IF(ISERROR(Dados!Z692),\"-\",Dados!Z692)","v":""},{"$f":"IF(ISERROR(Dados!AA692),\"-\",Dados!AA692)","v":""},{"$f":"IF(ISERROR(Dados!AB692),\"-\",Dados!AB692)","v":""},{"$f":"IF(ISERROR(Dados!AC692),\"-\",Dados!AC692)","v":""},{"$f":"IF(ISERROR(Dados!AD692),\"-\",Dados!AD692)","v":""},{"$f":"IF(ISERROR(Dados!AE692),\"-\",Dados!AE692)","v":""},{"$f":"IF(ISERROR(Dados!AF692),\"-\",Dados!AF692)","v":""},{"$f":"IF(ISERROR(Dados!AG692),\"-\",Dados!AG692)","v":""}]
[{"$f":"IF(ISERROR(Dados!A693),\"-\",Dados!A693)","v":""},{"$f":"IF(ISERROR(Dados!B693),\"-\",Dados!B693)","v":""},{"$f":"IF(ISERROR(Dados!C693),\"-\",Dados!C693)","v":""},{"$f":"IF(ISERROR(Dados!D693),\"-\",Dados!D693)","v":""},{"$f":"IF(ISERROR(Dados!E693),\"-\",Dados!E693)","v":""},{"$f":"IF(ISERROR(Dados!F693),\"-\",Dados!F693)","v":""},{"$f":"IF(ISERROR(Dados!G693),\"-\",Dados!G693)","v":""},{"$f":"IF(ISERROR(Dados!H693),\"-\",Dados!H693)","v":""},{"$f":"IF(ISERROR(Dados!I693),\"-\",Dados!I693)","v":""},{"$f":"IF(ISERROR(Dados!J693),\"-\",Dados!J693)","v":""},{"$f":"IF(ISERROR(Dados!K693),\"-\",Dados!K693)","v":""},{"$f":"IF(ISERROR(Dados!L693),\"-\",Dados!L693)","v":""},{"$f":"IF(ISERROR(Dados!M693),\"-\",Dados!M693)","v":""},{"$f":"IF(ISERROR(Dados!N693),\"-\",Dados!N693)","v":""},{"$f":"IF(ISERROR(Dados!O693),\"-\",Dados!O693)","v":""},{"$f":"IF(ISERROR(Dados!P693),\"-\",Dados!P693)","v":""},{"$f":"IF(ISERROR(Dados!Q693),\"-\",Dados!Q693)","v":""},{"$f":"IF(ISERROR(Dados!R693),\"-\",Dados!R693)","v":""},{"$f":"IF(ISERROR(Dados!S693),\"-\",Dados!S693)","v":""},{"$f":"IF(ISERROR(Dados!T693),\"-\",Dados!T693)","v":""},{"$f":"IF(ISERROR(Dados!U693),\"-\",Dados!U693)","v":""},{"$f":"IF(ISERROR(Dados!V693),\"-\",Dados!V693)","v":""},{"$f":"IF(ISERROR(Dados!W693),\"-\",Dados!W693)","v":""},{"$f":"IF(ISERROR(Dados!X693),\"-\",Dados!X693)","v":""},{"$f":"IF(ISERROR(Dados!Y693),\"-\",Dados!Y693)","v":""},{"$f":"IF(ISERROR(Dados!Z693),\"-\",Dados!Z693)","v":""},{"$f":"IF(ISERROR(Dados!AA693),\"-\",Dados!AA693)","v":""},{"$f":"IF(ISERROR(Dados!AB693),\"-\",Dados!AB693)","v":""},{"$f":"IF(ISERROR(Dados!AC693),\"-\",Dados!AC693)","v":""},{"$f":"IF(ISERROR(Dados!AD693),\"-\",Dados!AD693)","v":""},{"$f":"IF(ISERROR(Dados!AE693),\"-\",Dados!AE693)","v":""},{"$f":"IF(ISERROR(Dados!AF693),\"-\",Dados!AF693)","v":""},{"$f":"IF(ISERROR(Dados!AG693),\"-\",Dados!AG693)","v":""}]
[{"$f":"IF(ISERROR(Dados!A694),\"-\",Dados!A694)","v":""},{"$f":"IF(ISERROR(Dados!B694),\"-\",Dados!B694)","v":""},{"$f":"IF(ISERROR(Dados!C694),\"-\",Dados!C694)","v":""},{"$f":"IF(ISERROR(Dados!D694),\"-\",Dados!D694)","v":""},{"$f":"IF(ISERROR(Dados!E694),\"-\",Dados!E694)","v":""},{"$f":"IF(ISERROR(Dados!F694),\"-\",Dados!F694)","v":""},{"$f":"IF(ISERROR(Dados!G694),\"-\",Dados!G694)","v":""},{"$f":"IF(ISERROR(Dados!H694),\"-\",Dados!H694)","v":""},{"$f":"IF(ISERROR(Dados!I694),\"-\",Dados!I694)","v":""},{"$f":"IF(ISERROR(Dados!J694),\"-\",Dados!J694)","v":""},{"$f":"IF(ISERROR(Dados!K694),\"-\",Dados!K694)","v":""},{"$f":"IF(ISERROR(Dados!L694),\"-\",Dados!L694)","v":""},{"$f":"IF(ISERROR(Dados!M694),\"-\",Dados!M694)","v":""},{"$f":"IF(ISERROR(Dados!N694),\"-\",Dados!N694)","v":""},{"$f":"IF(ISERROR(Dados!O694),\"-\",Dados!O694)","v":""},{"$f":"IF(ISERROR(Dados!P694),\"-\",Dados!P694)","v":""},{"$f":"IF(ISERROR(Dados!Q694),\"-\",Dados!Q694)","v":""},{"$f":"IF(ISERROR(Dados!R694),\"-\",Dados!R694)","v":""},{"$f":"IF(ISERROR(Dados!S694),\"-\",Dados!S694)","v":""},{"$f":"IF(ISERROR(Dados!T694),\"-\",Dados!T694)","v":""},{"$f":"IF(ISERROR(Dados!U694),\"-\",Dados!U694)","v":""},{"$f":"IF(ISERROR(Dados!V694),\"-\",Dados!V694)","v":""},{"$f":"IF(ISERROR(Dados!W694),\"-\",Dados!W694)","v":""},{"$f":"IF(ISERROR(Dados!X694),\"-\",Dados!X694)","v":""},{"$f":"IF(ISERROR(Dados!Y694),\"-\",Dados!Y694)","v":""},{"$f":"IF(ISERROR(Dados!Z694),\"-\",Dados!Z694)","v":""},{"$f":"IF(ISERROR(Dados!AA694),\"-\",Dados!AA694)","v":""},{"$f":"IF(ISERROR(Dados!AB694),\"-\",Dados!AB694)","v":""},{"$f":"IF(ISERROR(Dados!AC694),\"-\",Dados!AC694)","v":""},{"$f":"IF(ISERROR(Dados!AD694),\"-\",Dados!AD694)","v":""},{"$f":"IF(ISERROR(Dados!AE694),\"-\",Dados!AE694)","v":""},{"$f":"IF(ISERROR(Dados!AF694),\"-\",Dados!AF694)","v":""},{"$f":"IF(ISERROR(Dados!AG694),\"-\",Dados!AG694)","v":""}]
[{"$f":"IF(ISERROR(Dados!A695),\"-\",Dados!A695)","v":""},{"$f":"IF(ISERROR(Dados!B695),\"-\",Dados!B695)","v":""},{"$f":"IF(ISERROR(Dados!C695),\"-\",Dados!C695)","v":""},{"$f":"IF(ISERROR(Dados!D695),\"-\",Dados!D695)","v":""},{"$f":"IF(ISERROR(Dados!E695),\"-\",Dados!E695)","v":""},{"$f":"IF(ISERROR(Dados!F695),\"-\",Dados!F695)","v":""},{"$f":"IF(ISERROR(Dados!G695),\"-\",Dados!G695)","v":""},{"$f":"IF(ISERROR(Dados!H695),\"-\",Dados!H695)","v":""},{"$f":"IF(ISERROR(Dados!I695),\"-\",Dados!I695)","v":""},{"$f":"IF(ISERROR(Dados!J695),\"-\",Dados!J695)","v":""},{"$f":"IF(ISERROR(Dados!K695),\"-\",Dados!K695)","v":""},{"$f":"IF(ISERROR(Dados!L695),\"-\",Dados!L695)","v":""},{"$f":"IF(ISERROR(Dados!M695),\"-\",Dados!M695)","v":""},{"$f":"IF(ISERROR(Dados!N695),\"-\",Dados!N695)","v":""},{"$f":"IF(ISERROR(Dados!O695),\"-\",Dados!O695)","v":""},{"$f":"IF(ISERROR(Dados!P695),\"-\",Dados!P695)","v":""},{"$f":"IF(ISERROR(Dados!Q695),\"-\",Dados!Q695)","v":""},{"$f":"IF(ISERROR(Dados!R695),\"-\",Dados!R695)","v":""},{"$f":"IF(ISERROR(Dados!S695),\"-\",Dados!S695)","v":""},{"$f":"IF(ISERROR(Dados!T695),\"-\",Dados!T695)","v":""},{"$f":"IF(ISERROR(Dados!U695),\"-\",Dados!U695)","v":""},{"$f":"IF(ISERROR(Dados!V695),\"-\",Dados!V695)","v":""},{"$f":"IF(ISERROR(Dados!W695),\"-\",Dados!W695)","v":""},{"$f":"IF(ISERROR(Dados!X695),\"-\",Dados!X695)","v":""},{"$f":"IF(ISERROR(Dados!Y695),\"-\",Dados!Y695)","v":""},{"$f":"IF(ISERROR(Dados!Z695),\"-\",Dados!Z695)","v":""},{"$f":"IF(ISERROR(Dados!AA695),\"-\",Dados!AA695)","v":""},{"$f":"IF(ISERROR(Dados!AB695),\"-\",Dados!AB695)","v":""},{"$f":"IF(ISERROR(Dados!AC695),\"-\",Dados!AC695)","v":""},{"$f":"IF(ISERROR(Dados!AD695),\"-\",Dados!AD695)","v":""},{"$f":"IF(ISERROR(Dados!AE695),\"-\",Dados!AE695)","v":""},{"$f":"IF(ISERROR(Dados!AF695),\"-\",Dados!AF695)","v":""},{"$f":"IF(ISERROR(Dados!AG695),\"-\",Dados!AG695)","v":""}]
[{"$f":"IF(ISERROR(Dados!A696),\"-\",Dados!A696)","v":""},{"$f":"IF(ISERROR(Dados!B696),\"-\",Dados!B696)","v":""},{"$f":"IF(ISERROR(Dados!C696),\"-\",Dados!C696)","v":""},{"$f":"IF(ISERROR(Dados!D696),\"-\",Dados!D696)","v":""},{"$f":"IF(ISERROR(Dados!E696),\"-\",Dados!E696)","v":""},{"$f":"IF(ISERROR(Dados!F696),\"-\",Dados!F696)","v":""},{"$f":"IF(ISERROR(Dados!G696),\"-\",Dados!G696)","v":""},{"$f":"IF(ISERROR(Dados!H696),\"-\",Dados!H696)","v":""},{"$f":"IF(ISERROR(Dados!I696),\"-\",Dados!I696)","v":""},{"$f":"IF(ISERROR(Dados!J696),\"-\",Dados!J696)","v":""},{"$f":"IF(ISERROR(Dados!K696),\"-\",Dados!K696)","v":""},{"$f":"IF(ISERROR(Dados!L696),\"-\",Dados!L696)","v":""},{"$f":"IF(ISERROR(Dados!M696),\"-\",Dados!M696)","v":""},{"$f":"IF(ISERROR(Dados!N696),\"-\",Dados!N696)","v":""},{"$f":"IF(ISERROR(Dados!O696),\"-\",Dados!O696)","v":""},{"$f":"IF(ISERROR(Dados!P696),\"-\",Dados!P696)","v":""},{"$f":"IF(ISERROR(Dados!Q696),\"-\",Dados!Q696)","v":""},{"$f":"IF(ISERROR(Dados!R696),\"-\",Dados!R696)","v":""},{"$f":"IF(ISERROR(Dados!S696),\"-\",Dados!S696)","v":""},{"$f":"IF(ISERROR(Dados!T696),\"-\",Dados!T696)","v":""},{"$f":"IF(ISERROR(Dados!U696),\"-\",Dados!U696)","v":""},{"$f":"IF(ISERROR(Dados!V696),\"-\",Dados!V696)","v":""},{"$f":"IF(ISERROR(Dados!W696),\"-\",Dados!W696)","v":""},{"$f":"IF(ISERROR(Dados!X696),\"-\",Dados!X696)","v":""},{"$f":"IF(ISERROR(Dados!Y696),\"-\",Dados!Y696)","v":""},{"$f":"IF(ISERROR(Dados!Z696),\"-\",Dados!Z696)","v":""},{"$f":"IF(ISERROR(Dados!AA696),\"-\",Dados!AA696)","v":""},{"$f":"IF(ISERROR(Dados!AB696),\"-\",Dados!AB696)","v":""},{"$f":"IF(ISERROR(Dados!AC696),\"-\",Dados!AC696)","v":""},{"$f":"IF(ISERROR(Dados!AD696),\"-\",Dados!AD696)","v":""},{"$f":"IF(ISERROR(Dados!AE696),\"-\",Dados!AE696)","v":""},{"$f":"IF(ISERROR(Dados!AF696),\"-\",Dados!AF696)","v":""},{"$f":"IF(ISERROR(Dados!AG696),\"-\",Dados!AG696)","v":""}]
[{"$f":"IF(ISERROR(Dados!A697),\"-\",Dados!A697)","v":""},{"$f":"IF(ISERROR(Dados!B697),\"-\",Dados!B697)","v":""},{"$f":"IF(ISERROR(Dados!C697),\"-\",Dados!C697)","v":""},{"$f":"IF(ISERROR(Dados!D697),\"-\",Dados!D697)","v":""},{"$f":"IF(ISERROR(Dados!E697),\"-\",Dados!E697)","v":""},{"$f":"IF(ISERROR(Dados!F697),\"-\",Dados!F697)","v":""},{"$f":"IF(ISERROR(Dados!G697),\"-\",Dados!G697)","v":""},{"$f":"IF(ISERROR(Dados!H697),\"-\",Dados!H697)","v":""},{"$f":"IF(ISERROR(Dados!I697),\"-\",Dados!I697)","v":""},{"$f":"IF(ISERROR(Dados!J697),\"-\",Dados!J697)","v":""},{"$f":"IF(ISERROR(Dados!K697),\"-\",Dados!K697)","v":""},{"$f":"IF(ISERROR(Dados!L697),\"-\",Dados!L697)","v":""},{"$f":"IF(ISERROR(Dados!M697),\"-\",Dados!M697)","v":""},{"$f":"IF(ISERROR(Dados!N697),\"-\",Dados!N697)","v":""},{"$f":"IF(ISERROR(Dados!O697),\"-\",Dados!O697)","v":""},{"$f":"IF(ISERROR(Dados!P697),\"-\",Dados!P697)","v":""},{"$f":"IF(ISERROR(Dados!Q697),\"-\",Dados!Q697)","v":""},{"$f":"IF(ISERROR(Dados!R697),\"-\",Dados!R697)","v":""},{"$f":"IF(ISERROR(Dados!S697),\"-\",Dados!S697)","v":""},{"$f":"IF(ISERROR(Dados!T697),\"-\",Dados!T697)","v":""},{"$f":"IF(ISERROR(Dados!U697),\"-\",Dados!U697)","v":""},{"$f":"IF(ISERROR(Dados!V697),\"-\",Dados!V697)","v":""},{"$f":"IF(ISERROR(Dados!W697),\"-\",Dados!W697)","v":""},{"$f":"IF(ISERROR(Dados!X697),\"-\",Dados!X697)","v":""},{"$f":"IF(ISERROR(Dados!Y697),\"-\",Dados!Y697)","v":""},{"$f":"IF(ISERROR(Dados!Z697),\"-\",Dados!Z697)","v":""},{"$f":"IF(ISERROR(Dados!AA697),\"-\",Dados!AA697)","v":""},{"$f":"IF(ISERROR(Dados!AB697),\"-\",Dados!AB697)","v":""},{"$f":"IF(ISERROR(Dados!AC697),\"-\",Dados!AC697)","v":""},{"$f":"IF(ISERROR(Dados!AD697),\"-\",Dados!AD697)","v":""},{"$f":"IF(ISERROR(Dados!AE697),\"-\",Dados!AE697)","v":""},{"$f":"IF(ISERROR(Dados!AF697),\"-\",Dados!AF697)","v":""},{"$f":"IF(ISERROR(Dados!AG697),\"-\",Dados!AG697)","v":""}]
[{"$f":"IF(ISERROR(Dados!A698),\"-\",Dados!A698)","v":""},{"$f":"IF(ISERROR(Dados!B698),\"-\",Dados!B698)","v":""},{"$f":"IF(ISERROR(Dados!C698),\"-\",Dados!C698)","v":""},{"$f":"IF(ISERROR(Dados!D698),\"-\",Dados!D698)","v":""},{"$f":"IF(ISERROR(Dados!E698),\"-\",Dados!E698)","v":""},{"$f":"IF(ISERROR(Dados!F698),\"-\",Dados!F698)","v":""},{"$f":"IF(ISERROR(Dados!G698),\"-\",Dados!G698)","v":""},{"$f":"IF(ISERROR(Dados!H698),\"-\",Dados!H698)","v":""},{"$f":"IF(ISERROR(Dados!I698),\"-\",Dados!I698)","v":""},{"$f":"IF(ISERROR(Dados!J698),\"-\",Dados!J698)","v":""},{"$f":"IF(ISERROR(Dados!K698),\"-\",Dados!K698)","v":""},{"$f":"IF(ISERROR(Dados!L698),\"-\",Dados!L698)","v":""},{"$f":"IF(ISERROR(Dados!M698),\"-\",Dados!M698)","v":""},{"$f":"IF(ISERROR(Dados!N698),\"-\",Dados!N698)","v":""},{"$f":"IF(ISERROR(Dados!O698),\"-\",Dados!O698)","v":""},{"$f":"IF(ISERROR(Dados!P698),\"-\",Dados!P698)","v":""},{"$f":"IF(ISERROR(Dados!Q698),\"-\",Dados!Q698)","v":""},{"$f":"IF(ISERROR(Dados!R698),\"-\",Dados!R698)","v":""},{"$f":"IF(ISERROR(Dados!S698),\"-\",Dados!S698)","v":""},{"$f":"IF(ISERROR(Dados!T698),\"-\",Dados!T698)","v":""},{"$f":"IF(ISERROR(Dados!U698),\"-\",Dados!U698)","v":""},{"$f":"IF(ISERROR(Dados!V698),\"-\",Dados!V698)","v":""},{"$f":"IF(ISERROR(Dados!W698),\"-\",Dados!W698)","v":""},{"$f":"IF(ISERROR(Dados!X698),\"-\",Dados!X698)","v":""},{"$f":"IF(ISERROR(Dados!Y698),\"-\",Dados!Y698)","v":""},{"$f":"IF(ISERROR(Dados!Z698),\"-\",Dados!Z698)","v":""},{"$f":"IF(ISERROR(Dados!AA698),\"-\",Dados!AA698)","v":""},{"$f":"IF(ISERROR(Dados!AB698),\"-\",Dados!AB698)","v":""},{"$f":"IF(ISERROR(Dados!AC698),\"-\",Dados!AC698)","v":""},{"$f":"IF(ISERROR(Dados!AD698),\"-\",Dados!AD698)","v":""},{"$f":"IF(ISERROR(Dados!AE698),\"-\",Dados!AE698)","v":""},{"$f":"IF(ISERROR(Dados!AF698),\"-\",Dados!AF698)","v":""},{"$f":"IF(ISERROR(Dados!AG698),\"-\",Dados!AG698)","v":""}]
[{"$f":"IF(ISERROR(Dados!A699),\"-\",Dados!A699)","v":""},{"$f":"IF(ISERROR(Dados!B699),\"-\",Dados!B699)","v":""},{"$f":"IF(ISERROR(Dados!C699),\"-\",Dados!C699)","v":""},{"$f":"IF(ISERROR(Dados!D699),\"-\",Dados!D699)","v":""},{"$f":"IF(ISERROR(Dados!E699),\"-\",Dados!E699)","v":""},{"$f":"IF(ISERROR(Dados!F699),\"-\",Dados!F699)","v":""},{"$f":"IF(ISERROR(Dados!G699),\"-\",Dados!G699)","v":""},{"$f":"IF(ISERROR(Dados!H699),\"-\",Dados!H699)","v":""},{"$f":"IF(ISERROR(Dados!I699),\"-\",Dados!I699)","v":""},{"$f":"IF(ISERROR(Dados!J699),\"-\",Dados!J699)","v":""},{"$f":"IF(ISERROR(Dados!K699),\"-\",Dados!K699)","v":""},{"$f":"IF(ISERROR(Dados!L699),\"-\",Dados!L699)","v":""},{"$f":"IF(ISERROR(Dados!M699),\"-\",Dados!M699)","v":""},{"$f":"IF(ISERROR(Dados!N699),\"-\",Dados!N699)","v":""},{"$f":"IF(ISERROR(Dados!O699),\"-\",Dados!O699)","v":""},{"$f":"IF(ISERROR(Dados!P699),\"-\",Dados!P699)","v":""},{"$f":"IF(ISERROR(Dados!Q699),\"-\",Dados!Q699)","v":""},{"$f":"IF(ISERROR(Dados!R699),\"-\",Dados!R699)","v":""},{"$f":"IF(ISERROR(Dados!S699),\"-\",Dados!S699)","v":""},{"$f":"IF(ISERROR(Dados!T699),\"-\",Dados!T699)","v":""},{"$f":"IF(ISERROR(Dados!U699),\"-\",Dados!U699)","v":""},{"$f":"IF(ISERROR(Dados!V699),\"-\",Dados!V699)","v":""},{"$f":"IF(ISERROR(Dados!W699),\"-\",Dados!W699)","v":""},{"$f":"IF(ISERROR(Dados!X699),\"-\",Dados!X699)","v":""},{"$f":"IF(ISERROR(Dados!Y699),\"-\",Dados!Y699)","v":""},{"$f":"IF(ISERROR(Dados!Z699),\"-\",Dados!Z699)","v":""},{"$f":"IF(ISERROR(Dados!AA699),\"-\",Dados!AA699)","v":""},{"$f":"IF(ISERROR(Dados!AB699),\"-\",Dados!AB699)","v":""},{"$f":"IF(ISERROR(Dados!AC699),\"-\",Dados!AC699)","v":""},{"$f":"IF(ISERROR(Dados!AD699),\"-\",Dados!AD699)","v":""},{"$f":"IF(ISERROR(Dados!AE699),\"-\",Dados!AE699)","v":""},{"$f":"IF(ISERROR(Dados!AF699),\"-\",Dados!AF699)","v":""},{"$f":"IF(ISERROR(Dados!AG699),\"-\",Dados!AG699)","v":""}]
[{"$f":"IF(ISERROR(Dados!A700),\"-\",Dados!A700)","v":""},{"$f":"IF(ISERROR(Dados!B700),\"-\",Dados!B700)","v":""},{"$f":"IF(ISERROR(Dados!C700),\"-\",Dados!C700)","v":""},{"$f":"IF(ISERROR(Dados!D700),\"-\",Dados!D700)","v":""},{"$f":"IF(ISERROR(Dados!E700),\"-\",Dados!E700)","v":""},{"$f":"IF(ISERROR(Dados!F700),\"-\",Dados!F700)","v":""},{"$f":"IF(ISERROR(Dados!G700),\"-\",Dados!G700)","v":""},{"$f":"IF(ISERROR(Dados!H700),\"-\",Dados!H700)","v":""},{"$f":"IF(ISERROR(Dados!I700),\"-\",Dados!I700)","v":""},{"$f":"IF(ISERROR(Dados!J700),\"-\",Dados!J700)","v":""},{"$f":"IF(ISERROR(Dados!K700),\"-\",Dados!K700)","v":""},{"$f":"IF(ISERROR(Dados!L700),\"-\",Dados!L700)","v":""},{"$f":"IF(ISERROR(Dados!M700),\"-\",Dados!M700)","v":""},{"$f":"IF(ISERROR(Dados!N700),\"-\",Dados!N700)","v":""},{"$f":"IF(ISERROR(Dados!O700),\"-\",Dados!O700)","v":""},{"$f":"IF(ISERROR(Dados!P700),\"-\",Dados!P700)","v":""},{"$f":"IF(ISERROR(Dados!Q700),\"-\",Dados!Q700)","v":""},{"$f":"IF(ISERROR(Dados!R700),\"-\",Dados!R700)","v":""},{"$f":"IF(ISERROR(Dados!S700),\"-\",Dados!S700)","v":""},{"$f":"IF(ISERROR(Dados!T700),\"-\",Dados!T700)","v":""},{"$f":"IF(ISERROR(Dados!U700),\"-\",Dados!U700)","v":""},{"$f":"IF(ISERROR(Dados!V700),\"-\",Dados!V700)","v":""},{"$f":"IF(ISERROR(Dados!W700),\"-\",Dados!W700)","v":""},{"$f":"IF(ISERROR(Dados!X700),\"-\",Dados!X700)","v":""},{"$f":"IF(ISERROR(Dados!Y700),\"-\",Dados!Y700)","v":""},{"$f":"IF(ISERROR(Dados!Z700),\"-\",Dados!Z700)","v":""},{"$f":"IF(ISERROR(Dados!AA700),\"-\",Dados!AA700)","v":""},{"$f":"IF(ISERROR(Dados!AB700),\"-\",Dados!AB700)","v":""},{"$f":"IF(ISERROR(Dados!AC700),\"-\",Dados!AC700)","v":""},{"$f":"IF(ISERROR(Dados!AD700),\"-\",Dados!AD700)","v":""},{"$f":"IF(ISERROR(Dados!AE700),\"-\",Dados!AE700)","v":""},{"$f":"IF(ISERROR(Dados!AF700),\"-\",Dados!AF700)","v":""},{"$f":"IF(ISERROR(Dados!AG700),\"-\",Dados!AG700)","v":""}]
[{"$f":"IF(ISERROR(Dados!A701),\"-\",Dados!A701)","v":""},{"$f":"IF(ISERROR(Dados!B701),\"-\",Dados!B701)","v":""},{"$f":"IF(ISERROR(Dados!C701),\"-\",Dados!C701)","v":""},{"$f":"IF(ISERROR(Dados!D701),\"-\",Dados!D701)","v":""},{"$f":"IF(ISERROR(Dados!E701),\"-\",Dados!E701)","v":""},{"$f":"IF(ISERROR(Dados!F701),\"-\",Dados!F701)","v":""},{"$f":"IF(ISERROR(Dados!G701),\"-\",Dados!G701)","v":""},{"$f":"IF(ISERROR(Dados!H701),\"-\",Dados!H701)","v":""},{"$f":"IF(ISERROR(Dados!I701),\"-\",Dados!I701)","v":""},{"$f":"IF(ISERROR(Dados!J701),\"-\",Dados!J701)","v":""},{"$f":"IF(ISERROR(Dados!K701),\"-\",Dados!K701)","v":""},{"$f":"IF(ISERROR(Dados!L701),\"-\",Dados!L701)","v":""},{"$f":"IF(ISERROR(Dados!M701),\"-\",Dados!M701)","v":""},{"$f":"IF(ISERROR(Dados!N701),\"-\",Dados!N701)","v":""},{"$f":"IF(ISERROR(Dados!O701),\"-\",Dados!O701)","v":""},{"$f":"IF(ISERROR(Dados!P701),\"-\",Dados!P701)","v":""},{"$f":"IF(ISERROR(Dados!Q701),\"-\",Dados!Q701)","v":""},{"$f":"IF(ISERROR(Dados!R701),\"-\",Dados!R701)","v":""},{"$f":"IF(ISERROR(Dados!S701),\"-\",Dados!S701)","v":""},{"$f":"IF(ISERROR(Dados!T701),\"-\",Dados!T701)","v":""},{"$f":"IF(ISERROR(Dados!U701),\"-\",Dados!U701)","v":""},{"$f":"IF(ISERROR(Dados!V701),\"-\",Dados!V701)","v":""},{"$f":"IF(ISERROR(Dados!W701),\"-\",Dados!W701)","v":""},{"$f":"IF(ISERROR(Dados!X701),\"-\",Dados!X701)","v":""},{"$f":"IF(ISERROR(Dados!Y701),\"-\",Dados!Y701)","v":""},{"$f":"IF(ISERROR(Dados!Z701),\"-\",Dados!Z701)","v":""},{"$f":"IF(ISERROR(Dados!AA701),\"-\",Dados!AA701)","v":""},{"$f":"IF(ISERROR(Dados!AB701),\"-\",Dados!AB701)","v":""},{"$f":"IF(ISERROR(Dados!AC701),\"-\",Dados!AC701)","v":""},{"$f":"IF(ISERROR(Dados!AD701),\"-\",Dados!AD701)","v":""},{"$f":"IF(ISERROR(Dados!AE701),\"-\",Dados!AE701)","v":""},{"$f":"IF(ISERROR(Dados!AF701),\"-\",Dados!AF701)","v":""},{"$f":"IF(ISERROR(Dados!AG701),\"-\",Dados!AG701)","v":""}]
[{"$f":"IF(ISERROR(Dados!A702),\"-\",Dados!A702)","v":""},{"$f":"IF(ISERROR(Dados!B702),\"-\",Dados!B702)","v":""},{"$f":"IF(ISERROR(Dados!C702),\"-\",Dados!C702)","v":""},{"$f":"IF(ISERROR(Dados!D702),\"-\",Dados!D702)","v":""},{"$f":"IF(ISERROR(Dados!E702),\"-\",Dados!E702)","v":""},{"$f":"IF(ISERROR(Dados!F702),\"-\",Dados!F702)","v":""},{"$f":"IF(ISERROR(Dados!G702),\"-\",Dados!G702)","v":""},{"$f":"IF(ISERROR(Dados!H702),\"-\",Dados!H702)","v":""},{"$f":"IF(ISERROR(Dados!I702),\"-\",Dados!I702)","v":""},{"$f":"IF(ISERROR(Dados!J702),\"-\",Dados!J702)","v":""},{"$f":"IF(ISERROR(Dados!K702),\"-\",Dados!K702)","v":""},{"$f":"IF(ISERROR(Dados!L702),\"-\",Dados!L702)","v":""},{"$f":"IF(ISERROR(Dados!M702),\"-\",Dados!M702)","v":""},{"$f":"IF(ISERROR(Dados!N702),\"-\",Dados!N702)","v":""},{"$f":"IF(ISERROR(Dados!O702),\"-\",Dados!O702)","v":""},{"$f":"IF(ISERROR(Dados!P702),\"-\",Dados!P702)","v":""},{"$f":"IF(ISERROR(Dados!Q702),\"-\",Dados!Q702)","v":""},{"$f":"IF(ISERROR(Dados!R702),\"-\",Dados!R702)","v":""},{"$f":"IF(ISERROR(Dados!S702),\"-\",Dados!S702)","v":""},{"$f":"IF(ISERROR(Dados!T702),\"-\",Dados!T702)","v":""},{"$f":"IF(ISERROR(Dados!U702),\"-\",Dados!U702)","v":""},{"$f":"IF(ISERROR(Dados!V702),\"-\",Dados!V702)","v":""},{"$f":"IF(ISERROR(Dados!W702),\"-\",Dados!W702)","v":""},{"$f":"IF(ISERROR(Dados!X702),\"-\",Dados!X702)","v":""},{"$f":"IF(ISERROR(Dados!Y702),\"-\",Dados!Y702)","v":""},{"$f":"IF(ISERROR(Dados!Z702),\"-\",Dados!Z702)","v":""},{"$f":"IF(ISERROR(Dados!AA702),\"-\",Dados!AA702)","v":""},{"$f":"IF(ISERROR(Dados!AB702),\"-\",Dados!AB702)","v":""},{"$f":"IF(ISERROR(Dados!AC702),\"-\",Dados!AC702)","v":""},{"$f":"IF(ISERROR(Dados!AD702),\"-\",Dados!AD702)","v":""},{"$f":"IF(ISERROR(Dados!AE702),\"-\",Dados!AE702)","v":""},{"$f":"IF(ISERROR(Dados!AF702),\"-\",Dados!AF702)","v":""},{"$f":"IF(ISERROR(Dados!AG702),\"-\",Dados!AG702)","v":""}]
[{"$f":"IF(ISERROR(Dados!A703),\"-\",Dados!A703)","v":""},{"$f":"IF(ISERROR(Dados!B703),\"-\",Dados!B703)","v":""},{"$f":"IF(ISERROR(Dados!C703),\"-\",Dados!C703)","v":""},{"$f":"IF(ISERROR(Dados!D703),\"-\",Dados!D703)","v":""},{"$f":"IF(ISERROR(Dados!E703),\"-\",Dados!E703)","v":""},{"$f":"IF(ISERROR(Dados!F703),\"-\",Dados!F703)","v":""},{"$f":"IF(ISERROR(Dados!G703),\"-\",Dados!G703)","v":""},{"$f":"IF(ISERROR(Dados!H703),\"-\",Dados!H703)","v":""},{"$f":"IF(ISERROR(Dados!I703),\"-\",Dados!I703)","v":""},{"$f":"IF(ISERROR(Dados!J703),\"-\",Dados!J703)","v":""},{"$f":"IF(ISERROR(Dados!K703),\"-\",Dados!K703)","v":""},{"$f":"IF(ISERROR(Dados!L703),\"-\",Dados!L703)","v":""},{"$f":"IF(ISERROR(Dados!M703),\"-\",Dados!M703)","v":""},{"$f":"IF(ISERROR(Dados!N703),\"-\",Dados!N703)","v":""},{"$f":"IF(ISERROR(Dados!O703),\"-\",Dados!O703)","v":""},{"$f":"IF(ISERROR(Dados!P703),\"-\",Dados!P703)","v":""},{"$f":"IF(ISERROR(Dados!Q703),\"-\",Dados!Q703)","v":""},{"$f":"IF(ISERROR(Dados!R703),\"-\",Dados!R703)","v":""},{"$f":"IF(ISERROR(Dados!S703),\"-\",Dados!S703)","v":""},{"$f":"IF(ISERROR(Dados!T703),\"-\",Dados!T703)","v":""},{"$f":"IF(ISERROR(Dados!U703),\"-\",Dados!U703)","v":""},{"$f":"IF(ISERROR(Dados!V703),\"-\",Dados!V703)","v":""},{"$f":"IF(ISERROR(Dados!W703),\"-\",Dados!W703)","v":""},{"$f":"IF(ISERROR(Dados!X703),\"-\",Dados!X703)","v":""},{"$f":"IF(ISERROR(Dados!Y703),\"-\",Dados!Y703)","v":""},{"$f":"IF(ISERROR(Dados!Z703),\"-\",Dados!Z703)","v":""},{"$f":"IF(ISERROR(Dados!AA703),\"-\",Dados!AA703)","v":""},{"$f":"IF(ISERROR(Dados!AB703),\"-\",Dados!AB703)","v":""},{"$f":"IF(ISERROR(Dados!AC703),\"-\",Dados!AC703)","v":""},{"$f":"IF(ISERROR(Dados!AD703),\"-\",Dados!AD703)","v":""},{"$f":"IF(ISERROR(Dados!AE703),\"-\",Dados!AE703)","v":""},{"$f":"IF(ISERROR(Dados!AF703),\"-\",Dados!AF703)","v":""},{"$f":"IF(ISERROR(Dados!AG703),\"-\",Dados!AG703)","v":""}]
[{"$f":"IF(ISERROR(Dados!A704),\"-\",Dados!A704)","v":""},{"$f":"IF(ISERROR(Dados!B704),\"-\",Dados!B704)","v":""},{"$f":"IF(ISERROR(Dados!C704),\"-\",Dados!C704)","v":""},{"$f":"IF(ISERROR(Dados!D704),\"-\",Dados!D704)","v":""},{"$f":"IF(ISERROR(Dados!E704),\"-\",Dados!E704)","v":""},{"$f":"IF(ISERROR(Dados!F704),\"-\",Dados!F704)","v":""},{"$f":"IF(ISERROR(Dados!G704),\"-\",Dados!G704)","v":""},{"$f":"IF(ISERROR(Dados!H704),\"-\",Dados!H704)","v":""},{"$f":"IF(ISERROR(Dados!I704),\"-\",Dados!I704)","v":""},{"$f":"IF(ISERROR(Dados!J704),\"-\",Dados!J704)","v":""},{"$f":"IF(ISERROR(Dados!K704),\"-\",Dados!K704)","v":""},{"$f":"IF(ISERROR(Dados!L704),\"-\",Dados!L704)","v":""},{"$f":"IF(ISERROR(Dados!M704),\"-\",Dados!M704)","v":""},{"$f":"IF(ISERROR(Dados!N704),\"-\",Dados!N704)","v":""},{"$f":"IF(ISERROR(Dados!O704),\"-\",Dados!O704)","v":""},{"$f":"IF(ISERROR(Dados!P704),\"-\",Dados!P704)","v":""},{"$f":"IF(ISERROR(Dados!Q704),\"-\",Dados!Q704)","v":""},{"$f":"IF(ISERROR(Dados!R704),\"-\",Dados!R704)","v":""},{"$f":"IF(ISERROR(Dados!S704),\"-\",Dados!S704)","v":""},{"$f":"IF(ISERROR(Dados!T704),\"-\",Dados!T704)","v":""},{"$f":"IF(ISERROR(Dados!U704),\"-\",Dados!U704)","v":""},{"$f":"IF(ISERROR(Dados!V704),\"-\",Dados!V704)","v":""},{"$f":"IF(ISERROR(Dados!W704),\"-\",Dados!W704)","v":""},{"$f":"IF(ISERROR(Dados!X704),\"-\",Dados!X704)","v":""},{"$f":"IF(ISERROR(Dados!Y704),\"-\",Dados!Y704)","v":""},{"$f":"IF(ISERROR(Dados!Z704),\"-\",Dados!Z704)","v":""},{"$f":"IF(ISERROR(Dados!AA704),\"-\",Dados!AA704)","v":""},{"$f":"IF(ISERROR(Dados!AB704),\"-\",Dados!AB704)","v":""},{"$f":"IF(ISERROR(Dados!AC704),\"-\",Dados!AC704)","v":""},{"$f":"IF(ISERROR(Dados!AD704),\"-\",Dados!AD704)","v":""},{"$f":"IF(ISERROR(Dados!AE704),\"-\",Dados!AE704)","v":""},{"$f":"IF(ISERROR(Dados!AF704),\"-\",Dados!AF704)","v":""},{"$f":"IF(ISERROR(Dados!AG704),\"-\",Dados!AG704)","v":""}]
[{"$f":"IF(ISERROR(Dados!A705),\"-\",Dados!A705)","v":""},{"$f":"IF(ISERROR(Dados!B705),\"-\",Dados!B705)","v":""},{"$f":"IF(ISERROR(Dados!C705),\"-\",Dados!C705)","v":""},{"$f":"IF(ISERROR(Dados!D705),\"-\",Dados!D705)","v":""},{"$f":"IF(ISERROR(Dados!E705),\"-\",Dados!E705)","v":""},{"$f":"IF(ISERROR(Dados!F705),\"-\",Dados!F705)","v":""},{"$f":"IF(ISERROR(Dados!G705),\"-\",Dados!G705)","v":""},{"$f":"IF(ISERROR(Dados!H705),\"-\",Dados!H705)","v":""},{"$f":"IF(ISERROR(Dados!I705),\"-\",Dados!I705)","v":""},{"$f":"IF(ISERROR(Dados!J705),\"-\",Dados!J705)","v":""},{"$f":"IF(ISERROR(Dados!K705),\"-\",Dados!K705)","v":""},{"$f":"IF(ISERROR(Dados!L705),\"-\",Dados!L705)","v":""},{"$f":"IF(ISERROR(Dados!M705),\"-\",Dados!M705)","v":""},{"$f":"IF(ISERROR(Dados!N705),\"-\",Dados!N705)","v":""},{"$f":"IF(ISERROR(Dados!O705),\"-\",Dados!O705)","v":""},{"$f":"IF(ISERROR(Dados!P705),\"-\",Dados!P705)","v":""},{"$f":"IF(ISERROR(Dados!Q705),\"-\",Dados!Q705)","v":""},{"$f":"IF(ISERROR(Dados!R705),\"-\",Dados!R705)","v":""},{"$f":"IF(ISERROR(Dados!S705),\"-\",Dados!S705)","v":""},{"$f":"IF(ISERROR(Dados!T705),\"-\",Dados!T705)","v":""},{"$f":"IF(ISERROR(Dados!U705),\"-\",Dados!U705)","v":""},{"$f":"IF(ISERROR(Dados!V705),\"-\",Dados!V705)","v":""},{"$f":"IF(ISERROR(Dados!W705),\"-\",Dados!W705)","v":""},{"$f":"IF(ISERROR(Dados!X705),\"-\",Dados!X705)","v":""},{"$f":"IF(ISERROR(Dados!Y705),\"-\",Dados!Y705)","v":""},{"$f":"IF(ISERROR(Dados!Z705),\"-\",Dados!Z705)","v":""},{"$f":"IF(ISERROR(Dados!AA705),\"-\",Dados!AA705)","v":""},{"$f":"IF(ISERROR(Dados!AB705),\"-\",Dados!AB705)","v":""},{"$f":"IF(ISERROR(Dados!AC705),\"-\",Dados!AC705)","v":""},{"$f":"IF(ISERROR(Dados!AD705),\"-\",Dados!AD705)","v":""},{"$f":"IF(ISERROR(Dados!AE705),\"-\",Dados!AE705)","v":""},{"$f":"IF(ISERROR(Dados!AF705),\"-\",Dados!AF705)","v":""},{"$f":"IF(ISERROR(Dados!AG705),\"-\",Dados!AG705)","v":""}]
[{"$f":"IF(ISERROR(Dados!A706),\"-\",Dados!A706)","v":""},{"$f":"IF(ISERROR(Dados!B706),\"-\",Dados!B706)","v":""},{"$f":"IF(ISERROR(Dados!C706),\"-\",Dados!C706)","v":""},{"$f":"IF(ISERROR(Dados!D706),\"-\",Dados!D706)","v":""},{"$f":"IF(ISERROR(Dados!E706),\"-\",Dados!E706)","v":""},{"$f":"IF(ISERROR(Dados!F706),\"-\",Dados!F706)","v":""},{"$f":"IF(ISERROR(Dados!G706),\"-\",Dados!G706)","v":""},{"$f":"IF(ISERROR(Dados!H706),\"-\",Dados!H706)","v":""},{"$f":"IF(ISERROR(Dados!I706),\"-\",Dados!I706)","v":""},{"$f":"IF(ISERROR(Dados!J706),\"-\",Dados!J706)","v":""},{"$f":"IF(ISERROR(Dados!K706),\"-\",Dados!K706)","v":""},{"$f":"IF(ISERROR(Dados!L706),\"-\",Dados!L706)","v":""},{"$f":"IF(ISERROR(Dados!M706),\"-\",Dados!M706)","v":""},{"$f":"IF(ISERROR(Dados!N706),\"-\",Dados!N706)","v":""},{"$f":"IF(ISERROR(Dados!O706),\"-\",Dados!O706)","v":""},{"$f":"IF(ISERROR(Dados!P706),\"-\",Dados!P706)","v":""},{"$f":"IF(ISERROR(Dados!Q706),\"-\",Dados!Q706)","v":""},{"$f":"IF(ISERROR(Dados!R706),\"-\",Dados!R706)","v":""},{"$f":"IF(ISERROR(Dados!S706),\"-\",Dados!S706)","v":""},{"$f":"IF(ISERROR(Dados!T706),\"-\",Dados!T706)","v":""},{"$f":"IF(ISERROR(Dados!U706),\"-\",Dados!U706)","v":""},{"$f":"IF(ISERROR(Dados!V706),\"-\",Dados!V706)","v":""},{"$f":"IF(ISERROR(Dados!W706),\"-\",Dados!W706)","v":""},{"$f":"IF(ISERROR(Dados!X706),\"-\",Dados!X706)","v":""},{"$f":"IF(ISERROR(Dados!Y706),\"-\",Dados!Y706)","v":""},{"$f":"IF(ISERROR(Dados!Z706),\"-\",Dados!Z706)","v":""},{"$f":"IF(ISERROR(Dados!AA706),\"-\",Dados!AA706)","v":""},{"$f":"IF(ISERROR(Dados!AB706),\"-\",Dados!AB706)","v":""},{"$f":"IF(ISERROR(Dados!AC706),\"-\",Dados!AC706)","v":""},{"$f":"IF(ISERROR(Dados!AD706),\"-\",Dados!AD706)","v":""},{"$f":"IF(ISERROR(Dados!AE706),\"-\",Dados!AE706)","v":""},{"$f":"IF(ISERROR(Dados!AF706),\"-\",Dados!AF706)","v":""},{"$f":"IF(ISERROR(Dados!AG706),\"-\",Dados!AG706)","v":""}]
[{"$f":"IF(ISERROR(Dados!A707),\"-\",Dados!A707)","v":""},{"$f":"IF(ISERROR(Dados!B707),\"-\",Dados!B707)","v":""},{"$f":"IF(ISERROR(Dados!C707),\"-\",Dados!C707)","v":""},{"$f":"IF(ISERROR(Dados!D707),\"-\",Dados!D707)","v":""},{"$f":"IF(ISERROR(Dados!E707),\"-\",Dados!E707)","v":""},{"$f":"IF(ISERROR(Dados!F707),\"-\",Dados!F707)","v":""},{"$f":"IF(ISERROR(Dados!G707),\"-\",Dados!G707)","v":""},{"$f":"IF(ISERROR(Dados!H707),\"-\",Dados!H707)","v":""},{"$f":"IF(ISERROR(Dados!I707),\"-\",Dados!I707)","v":""},{"$f":"IF(ISERROR(Dados!J707),\"-\",Dados!J707)","v":""},{"$f":"IF(ISERROR(Dados!K707),\"-\",Dados!K707)","v":""},{"$f":"IF(ISERROR(Dados!L707),\"-\",Dados!L707)","v":""},{"$f":"IF(ISERROR(Dados!M707),\"-\",Dados!M707)","v":""},{"$f":"IF(ISERROR(Dados!N707),\"-\",Dados!N707)","v":""},{"$f":"IF(ISERROR(Dados!O707),\"-\",Dados!O707)","v":""},{"$f":"IF(ISERROR(Dados!P707),\"-\",Dados!P707)","v":""},{"$f":"IF(ISERROR(Dados!Q707),\"-\",Dados!Q707)","v":""},{"$f":"IF(ISERROR(Dados!R707),\"-\",Dados!R707)","v":""},{"$f":"IF(ISERROR(Dados!S707),\"-\",Dados!S707)","v":""},{"$f":"IF(ISERROR(Dados!T707),\"-\",Dados!T707)","v":""},{"$f":"IF(ISERROR(Dados!U707),\"-\",Dados!U707)","v":""},{"$f":"IF(ISERROR(Dados!V707),\"-\",Dados!V707)","v":""},{"$f":"IF(ISERROR(Dados!W707),\"-\",Dados!W707)","v":""},{"$f":"IF(ISERROR(Dados!X707),\"-\",Dados!X707)","v":""},{"$f":"IF(ISERROR(Dados!Y707),\"-\",Dados!Y707)","v":""},{"$f":"IF(ISERROR(Dados!Z707),\"-\",Dados!Z707)","v":""},{"$f":"IF(ISERROR(Dados!AA707),\"-\",Dados!AA707)","v":""},{"$f":"IF(ISERROR(Dados!AB707),\"-\",Dados!AB707)","v":""},{"$f":"IF(ISERROR(Dados!AC707),\"-\",Dados!AC707)","v":""},{"$f":"IF(ISERROR(Dados!AD707),\"-\",Dados!AD707)","v":""},{"$f":"IF(ISERROR(Dados!AE707),\"-\",Dados!AE707)","v":""},{"$f":"IF(ISERROR(Dados!AF707),\"-\",Dados!AF707)","v":""},{"$f":"IF(ISERROR(Dados!AG707),\"-\",Dados!AG707)","v":""}]
[{"$f":"IF(ISERROR(Dados!A708),\"-\",Dados!A708)","v":""},{"$f":"IF(ISERROR(Dados!B708),\"-\",Dados!B708)","v":""},{"$f":"IF(ISERROR(Dados!C708),\"-\",Dados!C708)","v":""},{"$f":"IF(ISERROR(Dados!D708),\"-\",Dados!D708)","v":""},{"$f":"IF(ISERROR(Dados!E708),\"-\",Dados!E708)","v":""},{"$f":"IF(ISERROR(Dados!F708),\"-\",Dados!F708)","v":""},{"$f":"IF(ISERROR(Dados!G708),\"-\",Dados!G708)","v":""},{"$f":"IF(ISERROR(Dados!H708),\"-\",Dados!H708)","v":""},{"$f":"IF(ISERROR(Dados!I708),\"-\",Dados!I708)","v":""},{"$f":"IF(ISERROR(Dados!J708),\"-\",Dados!J708)","v":""},{"$f":"IF(ISERROR(Dados!K708),\"-\",Dados!K708)","v":""},{"$f":"IF(ISERROR(Dados!L708),\"-\",Dados!L708)","v":""},{"$f":"IF(ISERROR(Dados!M708),\"-\",Dados!M708)","v":""},{"$f":"IF(ISERROR(Dados!N708),\"-\",Dados!N708)","v":""},{"$f":"IF(ISERROR(Dados!O708),\"-\",Dados!O708)","v":""},{"$f":"IF(ISERROR(Dados!P708),\"-\",Dados!P708)","v":""},{"$f":"IF(ISERROR(Dados!Q708),\"-\",Dados!Q708)","v":""},{"$f":"IF(ISERROR(Dados!R708),\"-\",Dados!R708)","v":""},{"$f":"IF(ISERROR(Dados!S708),\"-\",Dados!S708)","v":""},{"$f":"IF(ISERROR(Dados!T708),\"-\",Dados!T708)","v":""},{"$f":"IF(ISERROR(Dados!U708),\"-\",Dados!U708)","v":""},{"$f":"IF(ISERROR(Dados!V708),\"-\",Dados!V708)","v":""},{"$f":"IF(ISERROR(Dados!W708),\"-\",Dados!W708)","v":""},{"$f":"IF(ISERROR(Dados!X708),\"-\",Dados!X708)","v":""},{"$f":"IF(ISERROR(Dados!Y708),\"-\",Dados!Y708)","v":""},{"$f":"IF(ISERROR(Dados!Z708),\"-\",Dados!Z708)","v":""},{"$f":"IF(ISERROR(Dados!AA708),\"-\",Dados!AA708)","v":""},{"$f":"IF(ISERROR(Dados!AB708),\"-\",Dados!AB708)","v":""},{"$f":"IF(ISERROR(Dados!AC708),\"-\",Dados!AC708)","v":""},{"$f":"IF(ISERROR(Dados!AD708),\"-\",Dados!AD708)","v":""},{"$f":"IF(ISERROR(Dados!AE708),\"-\",Dados!AE708)","v":""},{"$f":"IF(ISERROR(Dados!AF708),\"-\",Dados!AF708)","v":""},{"$f":"IF(ISERROR(Dados!AG708),\"-\",Dados!AG708)","v":""}]
[{"$f":"IF(ISERROR(Dados!A709),\"-\",Dados!A709)","v":""},{"$f":"IF(ISERROR(Dados!B709),\"-\",Dados!B709)","v":""},{"$f":"IF(ISERROR(Dados!C709),\"-\",Dados!C709)","v":""},{"$f":"IF(ISERROR(Dados!D709),\"-\",Dados!D709)","v":""},{"$f":"IF(ISERROR(Dados!E709),\"-\",Dados!E709)","v":""},{"$f":"IF(ISERROR(Dados!F709),\"-\",Dados!F709)","v":""},{"$f":"IF(ISERROR(Dados!G709),\"-\",Dados!G709)","v":""},{"$f":"IF(ISERROR(Dados!H709),\"-\",Dados!H709)","v":""},{"$f":"IF(ISERROR(Dados!I709),\"-\",Dados!I709)","v":""},{"$f":"IF(ISERROR(Dados!J709),\"-\",Dados!J709)","v":""},{"$f":"IF(ISERROR(Dados!K709),\"-\",Dados!K709)","v":""},{"$f":"IF(ISERROR(Dados!L709),\"-\",Dados!L709)","v":""},{"$f":"IF(ISERROR(Dados!M709),\"-\",Dados!M709)","v":""},{"$f":"IF(ISERROR(Dados!N709),\"-\",Dados!N709)","v":""},{"$f":"IF(ISERROR(Dados!O709),\"-\",Dados!O709)","v":""},{"$f":"IF(ISERROR(Dados!P709),\"-\",Dados!P709)","v":""},{"$f":"IF(ISERROR(Dados!Q709),\"-\",Dados!Q709)","v":""},{"$f":"IF(ISERROR(Dados!R709),\"-\",Dados!R709)","v":""},{"$f":"IF(ISERROR(Dados!S709),\"-\",Dados!S709)","v":""},{"$f":"IF(ISERROR(Dados!T709),\"-\",Dados!T709)","v":""},{"$f":"IF(ISERROR(Dados!U709),\"-\",Dados!U709)","v":""},{"$f":"IF(ISERROR(Dados!V709),\"-\",Dados!V709)","v":""},{"$f":"IF(ISERROR(Dados!W709),\"-\",Dados!W709)","v":""},{"$f":"IF(ISERROR(Dados!X709),\"-\",Dados!X709)","v":""},{"$f":"IF(ISERROR(Dados!Y709),\"-\",Dados!Y709)","v":""},{"$f":"IF(ISERROR(Dados!Z709),\"-\",Dados!Z709)","v":""},{"$f":"IF(ISERROR(Dados!AA709),\"-\",Dados!AA709)","v":""},{"$f":"IF(ISERROR(Dados!AB709),\"-\",Dados!AB709)","v":""},{"$f":"IF(ISERROR(Dados!AC709),\"-\",Dados!AC709)","v":""},{"$f":"IF(ISERROR(Dados!AD709),\"-\",Dados!AD709)","v":""},{"$f":"IF(ISERROR(Dados!AE709),\"-\",Dados!AE709)","v":""},{"$f":"IF(ISERROR(Dados!AF709),\"-\",Dados!AF709)","v":""},{"$f":"IF(ISERROR(Dados!AG709),\"-\",Dados!AG709)","v":""}]
[{"$f":"IF(ISERROR(Dados!A710),\"-\",Dados!A710)","v":""},{"$f":"IF(ISERROR(Dados!B710),\"-\",Dados!B710)","v":""},{"$f":"IF(ISERROR(Dados!C710),\"-\",Dados!C710)","v":""},{"$f":"IF(ISERROR(Dados!D710),\"-\",Dados!D710)","v":""},{"$f":"IF(ISERROR(Dados!E710),\"-\",Dados!E710)","v":""},{"$f":"IF(ISERROR(Dados!F710),\"-\",Dados!F710)","v":""},{"$f":"IF(ISERROR(Dados!G710),\"-\",Dados!G710)","v":""},{"$f":"IF(ISERROR(Dados!H710),\"-\",Dados!H710)","v":""},{"$f":"IF(ISERROR(Dados!I710),\"-\",Dados!I710)","v":""},{"$f":"IF(ISERROR(Dados!J710),\"-\",Dados!J710)","v":""},{"$f":"IF(ISERROR(Dados!K710),\"-\",Dados!K710)","v":""},{"$f":"IF(ISERROR(Dados!L710),\"-\",Dados!L710)","v":""},{"$f":"IF(ISERROR(Dados!M710),\"-\",Dados!M710)","v":""},{"$f":"IF(ISERROR(Dados!N710),\"-\",Dados!N710)","v":""},{"$f":"IF(ISERROR(Dados!O710),\"-\",Dados!O710)","v":""},{"$f":"IF(ISERROR(Dados!P710),\"-\",Dados!P710)","v":""},{"$f":"IF(ISERROR(Dados!Q710),\"-\",Dados!Q710)","v":""},{"$f":"IF(ISERROR(Dados!R710),\"-\",Dados!R710)","v":""},{"$f":"IF(ISERROR(Dados!S710),\"-\",Dados!S710)","v":""},{"$f":"IF(ISERROR(Dados!T710),\"-\",Dados!T710)","v":""},{"$f":"IF(ISERROR(Dados!U710),\"-\",Dados!U710)","v":""},{"$f":"IF(ISERROR(Dados!V710),\"-\",Dados!V710)","v":""},{"$f":"IF(ISERROR(Dados!W710),\"-\",Dados!W710)","v":""},{"$f":"IF(ISERROR(Dados!X710),\"-\",Dados!X710)","v":""},{"$f":"IF(ISERROR(Dados!Y710),\"-\",Dados!Y710)","v":""},{"$f":"IF(ISERROR(Dados!Z710),\"-\",Dados!Z710)","v":""},{"$f":"IF(ISERROR(Dados!AA710),\"-\",Dados!AA710)","v":""},{"$f":"IF(ISERROR(Dados!AB710),\"-\",Dados!AB710)","v":""},{"$f":"IF(ISERROR(Dados!AC710),\"-\",Dados!AC710)","v":""},{"$f":"IF(ISERROR(Dados!AD710),\"-\",Dados!AD710)","v":""},{"$f":"IF(ISERROR(Dados!AE710),\"-\",Dados!AE710)","v":""},{"$f":"IF(ISERROR(Dados!AF710),\"-\",Dados!AF710)","v":""},{"$f":"IF(ISERROR(Dados!AG710),\"-\",Dados!AG710)","v":""}]
[{"$f":"IF(ISERROR(Dados!A711),\"-\",Dados!A711)","v":""},{"$f":"IF(ISERROR(Dados!B711),\"-\",Dados!B711)","v":""},{"$f":"IF(ISERROR(Dados!C711),\"-\",Dados!C711)","v":""},{"$f":"IF(ISERROR(Dados!D711),\"-\",Dados!D711)","v":""},{"$f":"IF(ISERROR(Dados!E711),\"-\",Dados!E711)","v":""},{"$f":"IF(ISERROR(Dados!F711),\"-\",Dados!F711)","v":""},{"$f":"IF(ISERROR(Dados!G711),\"-\",Dados!G711)","v":""},{"$f":"IF(ISERROR(Dados!H711),\"-\",Dados!H711)","v":""},{"$f":"IF(ISERROR(Dados!I711),\"-\",Dados!I711)","v":""},{"$f":"IF(ISERROR(Dados!J711),\"-\",Dados!J711)","v":""},{"$f":"IF(ISERROR(Dados!K711),\"-\",Dados!K711)","v":""},{"$f":"IF(ISERROR(Dados!L711),\"-\",Dados!L711)","v":""},{"$f":"IF(ISERROR(Dados!M711),\"-\",Dados!M711)","v":""},{"$f":"IF(ISERROR(Dados!N711),\"-\",Dados!N711)","v":""},{"$f":"IF(ISERROR(Dados!O711),\"-\",Dados!O711)","v":""},{"$f":"IF(ISERROR(Dados!P711),\"-\",Dados!P711)","v":""},{"$f":"IF(ISERROR(Dados!Q711),\"-\",Dados!Q711)","v":""},{"$f":"IF(ISERROR(Dados!R711),\"-\",Dados!R711)","v":""},{"$f":"IF(ISERROR(Dados!S711),\"-\",Dados!S711)","v":""},{"$f":"IF(ISERROR(Dados!T711),\"-\",Dados!T711)","v":""},{"$f":"IF(ISERROR(Dados!U711),\"-\",Dados!U711)","v":""},{"$f":"IF(ISERROR(Dados!V711),\"-\",Dados!V711)","v":""},{"$f":"IF(ISERROR(Dados!W711),\"-\",Dados!W711)","v":""},{"$f":"IF(ISERROR(Dados!X711),\"-\",Dados!X711)","v":""},{"$f":"IF(ISERROR(Dados!Y711),\"-\",Dados!Y711)","v":""},{"$f":"IF(ISERROR(Dados!Z711),\"-\",Dados!Z711)","v":""},{"$f":"IF(ISERROR(Dados!AA711),\"-\",Dados!AA711)","v":""},{"$f":"IF(ISERROR(Dados!AB711),\"-\",Dados!AB711)","v":""},{"$f":"IF(ISERROR(Dados!AC711),\"-\",Dados!AC711)","v":""},{"$f":"IF(ISERROR(Dados!AD711),\"-\",Dados!AD711)","v":""},{"$f":"IF(ISERROR(Dados!AE711),\"-\",Dados!AE711)","v":""},{"$f":"IF(ISERROR(Dados!AF711),\"-\",Dados!AF711)","v":""},{"$f":"IF(ISERROR(Dados!AG711),\"-\",Dados!AG711)","v":""}]
[{"$f":"IF(ISERROR(Dados!A712),\"-\",Dados!A712)","v":""},{"$f":"IF(ISERROR(Dados!B712),\"-\",Dados!B712)","v":""},{"$f":"IF(ISERROR(Dados!C712),\"-\",Dados!C712)","v":""},{"$f":"IF(ISERROR(Dados!D712),\"-\",Dados!D712)","v":""},{"$f":"IF(ISERROR(Dados!E712),\"-\",Dados!E712)","v":""},{"$f":"IF(ISERROR(Dados!F712),\"-\",Dados!F712)","v":""},{"$f":"IF(ISERROR(Dados!G712),\"-\",Dados!G712)","v":""},{"$f":"IF(ISERROR(Dados!H712),\"-\",Dados!H712)","v":""},{"$f":"IF(ISERROR(Dados!I712),\"-\",Dados!I712)","v":""},{"$f":"IF(ISERROR(Dados!J712),\"-\",Dados!J712)","v":""},{"$f":"IF(ISERROR(Dados!K712),\"-\",Dados!K712)","v":""},{"$f":"IF(ISERROR(Dados!L712),\"-\",Dados!L712)","v":""},{"$f":"IF(ISERROR(Dados!M712),\"-\",Dados!M712)","v":""},{"$f":"IF(ISERROR(Dados!N712),\"-\",Dados!N712)","v":""},{"$f":"IF(ISERROR(Dados!O712),\"-\",Dados!O712)","v":""},{"$f":"IF(ISERROR(Dados!P712),\"-\",Dados!P712)","v":""},{"$f":"IF(ISERROR(Dados!Q712),\"-\",Dados!Q712)","v":""},{"$f":"IF(ISERROR(Dados!R712),\"-\",Dados!R712)","v":""},{"$f":"IF(ISERROR(Dados!S712),\"-\",Dados!S712)","v":""},{"$f":"IF(ISERROR(Dados!T712),\"-\",Dados!T712)","v":""},{"$f":"IF(ISERROR(Dados!U712),\"-\",Dados!U712)","v":""},{"$f":"IF(ISERROR(Dados!V712),\"-\",Dados!V712)","v":""},{"$f":"IF(ISERROR(Dados!W712),\"-\",Dados!W712)","v":""},{"$f":"IF(ISERROR(Dados!X712),\"-\",Dados!X712)","v":""},{"$f":"IF(ISERROR(Dados!Y712),\"-\",Dados!Y712)","v":""},{"$f":"IF(ISERROR(Dados!Z712),\"-\",Dados!Z712)","v":""},{"$f":"IF(ISERROR(Dados!AA712),\"-\",Dados!AA712)","v":""},{"$f":"IF(ISERROR(Dados!AB712),\"-\",Dados!AB712)","v":""},{"$f":"IF(ISERROR(Dados!AC712),\"-\",Dados!AC712)","v":""},{"$f":"IF(ISERROR(Dados!AD712),\"-\",Dados!AD712)","v":""},{"$f":"IF(ISERROR(Dados!AE712),\"-\",Dados!AE712)","v":""},{"$f":"IF(ISERROR(Dados!AF712),\"-\",Dados!AF712)","v":""},{"$f":"IF(ISERROR(Dados!AG712),\"-\",Dados!AG712)","v":""}]
[{"$f":"IF(ISERROR(Dados!A713),\"-\",Dados!A713)","v":""},{"$f":"IF(ISERROR(Dados!B713),\"-\",Dados!B713)","v":""},{"$f":"IF(ISERROR(Dados!C713),\"-\",Dados!C713)","v":""},{"$f":"IF(ISERROR(Dados!D713),\"-\",Dados!D713)","v":""},{"$f":"IF(ISERROR(Dados!E713),\"-\",Dados!E713)","v":""},{"$f":"IF(ISERROR(Dados!F713),\"-\",Dados!F713)","v":""},{"$f":"IF(ISERROR(Dados!G713),\"-\",Dados!G713)","v":""},{"$f":"IF(ISERROR(Dados!H713),\"-\",Dados!H713)","v":""},{"$f":"IF(ISERROR(Dados!I713),\"-\",Dados!I713)","v":""},{"$f":"IF(ISERROR(Dados!J713),\"-\",Dados!J713)","v":""},{"$f":"IF(ISERROR(Dados!K713),\"-\",Dados!K713)","v":""},{"$f":"IF(ISERROR(Dados!L713),\"-\",Dados!L713)","v":""},{"$f":"IF(ISERROR(Dados!M713),\"-\",Dados!M713)","v":""},{"$f":"IF(ISERROR(Dados!N713),\"-\",Dados!N713)","v":""},{"$f":"IF(ISERROR(Dados!O713),\"-\",Dados!O713)","v":""},{"$f":"IF(ISERROR(Dados!P713),\"-\",Dados!P713)","v":""},{"$f":"IF(ISERROR(Dados!Q713),\"-\",Dados!Q713)","v":""},{"$f":"IF(ISERROR(Dados!R713),\"-\",Dados!R713)","v":""},{"$f":"IF(ISERROR(Dados!S713),\"-\",Dados!S713)","v":""},{"$f":"IF(ISERROR(Dados!T713),\"-\",Dados!T713)","v":""},{"$f":"IF(ISERROR(Dados!U713),\"-\",Dados!U713)","v":""},{"$f":"IF(ISERROR(Dados!V713),\"-\",Dados!V713)","v":""},{"$f":"IF(ISERROR(Dados!W713),\"-\",Dados!W713)","v":""},{"$f":"IF(ISERROR(Dados!X713),\"-\",Dados!X713)","v":""},{"$f":"IF(ISERROR(Dados!Y713),\"-\",Dados!Y713)","v":""},{"$f":"IF(ISERROR(Dados!Z713),\"-\",Dados!Z713)","v":""},{"$f":"IF(ISERROR(Dados!AA713),\"-\",Dados!AA713)","v":""},{"$f":"IF(ISERROR(Dados!AB713),\"-\",Dados!AB713)","v":""},{"$f":"IF(ISERROR(Dados!AC713),\"-\",Dados!AC713)","v":""},{"$f":"IF(ISERROR(Dados!AD713),\"-\",Dados!AD713)","v":""},{"$f":"IF(ISERROR(Dados!AE713),\"-\",Dados!AE713)","v":""},{"$f":"IF(ISERROR(Dados!AF713),\"-\",Dados!AF713)","v":""},{"$f":"IF(ISERROR(Dados!AG713),\"-\",Dados!AG713)","v":""}]
[{"$f":"IF(ISERROR(Dados!A714),\"-\",Dados!A714)","v":""},{"$f":"IF(ISERROR(Dados!B714),\"-\",Dados!B714)","v":""},{"$f":"IF(ISERROR(Dados!C714),\"-\",Dados!C714)","v":""},{"$f":"IF(ISERROR(Dados!D714),\"-\",Dados!D714)","v":""},{"$f":"IF(ISERROR(Dados!E714),\"-\",Dados!E714)","v":""},{"$f":"IF(ISERROR(Dados!F714),\"-\",Dados!F714)","v":""},{"$f":"IF(ISERROR(Dados!G714),\"-\",Dados!G714)","v":""},{"$f":"IF(ISERROR(Dados!H714),\"-\",Dados!H714)","v":""},{"$f":"IF(ISERROR(Dados!I714),\"-\",Dados!I714)","v":""},{"$f":"IF(ISERROR(Dados!J714),\"-\",Dados!J714)","v":""},{"$f":"IF(ISERROR(Dados!K714),\"-\",Dados!K714)","v":""},{"$f":"IF(ISERROR(Dados!L714),\"-\",Dados!L714)","v":""},{"$f":"IF(ISERROR(Dados!M714),\"-\",Dados!M714)","v":""},{"$f":"IF(ISERROR(Dados!N714),\"-\",Dados!N714)","v":""},{"$f":"IF(ISERROR(Dados!O714),\"-\",Dados!O714)","v":""},{"$f":"IF(ISERROR(Dados!P714),\"-\",Dados!P714)","v":""},{"$f":"IF(ISERROR(Dados!Q714),\"-\",Dados!Q714)","v":""},{"$f":"IF(ISERROR(Dados!R714),\"-\",Dados!R714)","v":""},{"$f":"IF(ISERROR(Dados!S714),\"-\",Dados!S714)","v":""},{"$f":"IF(ISERROR(Dados!T714),\"-\",Dados!T714)","v":""},{"$f":"IF(ISERROR(Dados!U714),\"-\",Dados!U714)","v":""},{"$f":"IF(ISERROR(Dados!V714),\"-\",Dados!V714)","v":""},{"$f":"IF(ISERROR(Dados!W714),\"-\",Dados!W714)","v":""},{"$f":"IF(ISERROR(Dados!X714),\"-\",Dados!X714)","v":""},{"$f":"IF(ISERROR(Dados!Y714),\"-\",Dados!Y714)","v":""},{"$f":"IF(ISERROR(Dados!Z714),\"-\",Dados!Z714)","v":""},{"$f":"IF(ISERROR(Dados!AA714),\"-\",Dados!AA714)","v":""},{"$f":"IF(ISERROR(Dados!AB714),\"-\",Dados!AB714)","v":""},{"$f":"IF(ISERROR(Dados!AC714),\"-\",Dados!AC714)","v":""},{"$f":"IF(ISERROR(Dados!AD714),\"-\",Dados!AD714)","v":""},{"$f":"IF(ISERROR(Dados!AE714),\"-\",Dados!AE714)","v":""},{"$f":"IF(ISERROR(Dados!AF714),\"-\",Dados!AF714)","v":""},{"$f":"IF(ISERROR(Dados!AG714),\"-\",Dados!AG714)","v":""}]
[{"$f":"IF(ISERROR(Dados!A715),\"-\",Dados!A715)","v":""},{"$f":"IF(ISERROR(Dados!B715),\"-\",Dados!B715)","v":""},{"$f":"IF(ISERROR(Dados!C715),\"-\",Dados!C715)","v":""},{"$f":"IF(ISERROR(Dados!D715),\"-\",Dados!D715)","v":""},{"$f":"IF(ISERROR(Dados!E715),\"-\",Dados!E715)","v":""},{"$f":"IF(ISERROR(Dados!F715),\"-\",Dados!F715)","v":""},{"$f":"IF(ISERROR(Dados!G715),\"-\",Dados!G715)","v":""},{"$f":"IF(ISERROR(Dados!H715),\"-\",Dados!H715)","v":""},{"$f":"IF(ISERROR(Dados!I715),\"-\",Dados!I715)","v":""},{"$f":"IF(ISERROR(Dados!J715),\"-\",Dados!J715)","v":""},{"$f":"IF(ISERROR(Dados!K715),\"-\",Dados!K715)","v":""},{"$f":"IF(ISERROR(Dados!L715),\"-\",Dados!L715)","v":""},{"$f":"IF(ISERROR(Dados!M715),\"-\",Dados!M715)","v":""},{"$f":"IF(ISERROR(Dados!N715),\"-\",Dados!N715)","v":""},{"$f":"IF(ISERROR(Dados!O715),\"-\",Dados!O715)","v":""},{"$f":"IF(ISERROR(Dados!P715),\"-\",Dados!P715)","v":""},{"$f":"IF(ISERROR(Dados!Q715),\"-\",Dados!Q715)","v":""},{"$f":"IF(ISERROR(Dados!R715),\"-\",Dados!R715)","v":""},{"$f":"IF(ISERROR(Dados!S715),\"-\",Dados!S715)","v":""},{"$f":"IF(ISERROR(Dados!T715),\"-\",Dados!T715)","v":""},{"$f":"IF(ISERROR(Dados!U715),\"-\",Dados!U715)","v":""},{"$f":"IF(ISERROR(Dados!V715),\"-\",Dados!V715)","v":""},{"$f":"IF(ISERROR(Dados!W715),\"-\",Dados!W715)","v":""},{"$f":"IF(ISERROR(Dados!X715),\"-\",Dados!X715)","v":""},{"$f":"IF(ISERROR(Dados!Y715),\"-\",Dados!Y715)","v":""},{"$f":"IF(ISERROR(Dados!Z715),\"-\",Dados!Z715)","v":""},{"$f":"IF(ISERROR(Dados!AA715),\"-\",Dados!AA715)","v":""},{"$f":"IF(ISERROR(Dados!AB715),\"-\",Dados!AB715)","v":""},{"$f":"IF(ISERROR(Dados!AC715),\"-\",Dados!AC715)","v":""},{"$f":"IF(ISERROR(Dados!AD715),\"-\",Dados!AD715)","v":""},{"$f":"IF(ISERROR(Dados!AE715),\"-\",Dados!AE715)","v":""},{"$f":"IF(ISERROR(Dados!AF715),\"-\",Dados!AF715)","v":""},{"$f":"IF(ISERROR(Dados!AG715),\"-\",Dados!AG715)","v":""}]
[{"$f":"IF(ISERROR(Dados!A716),\"-\",Dados!A716)","v":""},{"$f":"IF(ISERROR(Dados!B716),\"-\",Dados!B716)","v":""},{"$f":"IF(ISERROR(Dados!C716),\"-\",Dados!C716)","v":""},{"$f":"IF(ISERROR(Dados!D716),\"-\",Dados!D716)","v":""},{"$f":"IF(ISERROR(Dados!E716),\"-\",Dados!E716)","v":""},{"$f":"IF(ISERROR(Dados!F716),\"-\",Dados!F716)","v":""},{"$f":"IF(ISERROR(Dados!G716),\"-\",Dados!G716)","v":""},{"$f":"IF(ISERROR(Dados!H716),\"-\",Dados!H716)","v":""},{"$f":"IF(ISERROR(Dados!I716),\"-\",Dados!I716)","v":""},{"$f":"IF(ISERROR(Dados!J716),\"-\",Dados!J716)","v":""},{"$f":"IF(ISERROR(Dados!K716),\"-\",Dados!K716)","v":""},{"$f":"IF(ISERROR(Dados!L716),\"-\",Dados!L716)","v":""},{"$f":"IF(ISERROR(Dados!M716),\"-\",Dados!M716)","v":""},{"$f":"IF(ISERROR(Dados!N716),\"-\",Dados!N716)","v":""},{"$f":"IF(ISERROR(Dados!O716),\"-\",Dados!O716)","v":""},{"$f":"IF(ISERROR(Dados!P716),\"-\",Dados!P716)","v":""},{"$f":"IF(ISERROR(Dados!Q716),\"-\",Dados!Q716)","v":""},{"$f":"IF(ISERROR(Dados!R716),\"-\",Dados!R716)","v":""},{"$f":"IF(ISERROR(Dados!S716),\"-\",Dados!S716)","v":""},{"$f":"IF(ISERROR(Dados!T716),\"-\",Dados!T716)","v":""},{"$f":"IF(ISERROR(Dados!U716),\"-\",Dados!U716)","v":""},{"$f":"IF(ISERROR(Dados!V716),\"-\",Dados!V716)","v":""},{"$f":"IF(ISERROR(Dados!W716),\"-\",Dados!W716)","v":""},{"$f":"IF(ISERROR(Dados!X716),\"-\",Dados!X716)","v":""},{"$f":"IF(ISERROR(Dados!Y716),\"-\",Dados!Y716)","v":""},{"$f":"IF(ISERROR(Dados!Z716),\"-\",Dados!Z716)","v":""},{"$f":"IF(ISERROR(Dados!AA716),\"-\",Dados!AA716)","v":""},{"$f":"IF(ISERROR(Dados!AB716),\"-\",Dados!AB716)","v":""},{"$f":"IF(ISERROR(Dados!AC716),\"-\",Dados!AC716)","v":""},{"$f":"IF(ISERROR(Dados!AD716),\"-\",Dados!AD716)","v":""},{"$f":"IF(ISERROR(Dados!AE716),\"-\",Dados!AE716)","v":""},{"$f":"IF(ISERROR(Dados!AF716),\"-\",Dados!AF716)","v":""},{"$f":"IF(ISERROR(Dados!AG716),\"-\",Dados!AG716)","v":""}]
[{"$f":"IF(ISERROR(Dados!A717),\"-\",Dados!A717)","v":""},{"$f":"IF(ISERROR(Dados!B717),\"-\",Dados!B717)","v":""},{"$f":"IF(ISERROR(Dados!C717),\"-\",Dados!C717)","v":""},{"$f":"IF(ISERROR(Dados!D717),\"-\",Dados!D717)","v":""},{"$f":"IF(ISERROR(Dados!E717),\"-\",Dados!E717)","v":""},{"$f":"IF(ISERROR(Dados!F717),\"-\",Dados!F717)","v":""},{"$f":"IF(ISERROR(Dados!G717),\"-\",Dados!G717)","v":""},{"$f":"IF(ISERROR(Dados!H717),\"-\",Dados!H717)","v":""},{"$f":"IF(ISERROR(Dados!I717),\"-\",Dados!I717)","v":""},{"$f":"IF(ISERROR(Dados!J717),\"-\",Dados!J717)","v":""},{"$f":"IF(ISERROR(Dados!K717),\"-\",Dados!K717)","v":""},{"$f":"IF(ISERROR(Dados!L717),\"-\",Dados!L717)","v":""},{"$f":"IF(ISERROR(Dados!M717),\"-\",Dados!M717)","v":""},{"$f":"IF(ISERROR(Dados!N717),\"-\",Dados!N717)","v":""},{"$f":"IF(ISERROR(Dados!O717),\"-\",Dados!O717)","v":""},{"$f":"IF(ISERROR(Dados!P717),\"-\",Dados!P717)","v":""},{"$f":"IF(ISERROR(Dados!Q717),\"-\",Dados!Q717)","v":""},{"$f":"IF(ISERROR(Dados!R717),\"-\",Dados!R717)","v":""},{"$f":"IF(ISERROR(Dados!S717),\"-\",Dados!S717)","v":""},{"$f":"IF(ISERROR(Dados!T717),\"-\",Dados!T717)","v":""},{"$f":"IF(ISERROR(Dados!U717),\"-\",Dados!U717)","v":""},{"$f":"IF(ISERROR(Dados!V717),\"-\",Dados!V717)","v":""},{"$f":"IF(ISERROR(Dados!W717),\"-\",Dados!W717)","v":""},{"$f":"IF(ISERROR(Dados!X717),\"-\",Dados!X717)","v":""},{"$f":"IF(ISERROR(Dados!Y717),\"-\",Dados!Y717)","v":""},{"$f":"IF(ISERROR(Dados!Z717),\"-\",Dados!Z717)","v":""},{"$f":"IF(ISERROR(Dados!AA717),\"-\",Dados!AA717)","v":""},{"$f":"IF(ISERROR(Dados!AB717),\"-\",Dados!AB717)","v":""},{"$f":"IF(ISERROR(Dados!AC717),\"-\",Dados!AC717)","v":""},{"$f":"IF(ISERROR(Dados!AD717),\"-\",Dados!AD717)","v":""},{"$f":"IF(ISERROR(Dados!AE717),\"-\",Dados!AE717)","v":""},{"$f":"IF(ISERROR(Dados!AF717),\"-\",Dados!AF717)","v":""},{"$f":"IF(ISERROR(Dados!AG717),\"-\",Dados!AG717)","v":""}]
[{"$f":"IF(ISERROR(Dados!A718),\"-\",Dados!A718)","v":""},{"$f":"IF(ISERROR(Dados!B718),\"-\",Dados!B718)","v":""},{"$f":"IF(ISERROR(Dados!C718),\"-\",Dados!C718)","v":""},{"$f":"IF(ISERROR(Dados!D718),\"-\",Dados!D718)","v":""},{"$f":"IF(ISERROR(Dados!E718),\"-\",Dados!E718)","v":""},{"$f":"IF(ISERROR(Dados!F718),\"-\",Dados!F718)","v":""},{"$f":"IF(ISERROR(Dados!G718),\"-\",Dados!G718)","v":""},{"$f":"IF(ISERROR(Dados!H718),\"-\",Dados!H718)","v":""},{"$f":"IF(ISERROR(Dados!I718),\"-\",Dados!I718)","v":""},{"$f":"IF(ISERROR(Dados!J718),\"-\",Dados!J718)","v":""},{"$f":"IF(ISERROR(Dados!K718),\"-\",Dados!K718)","v":""},{"$f":"IF(ISERROR(Dados!L718),\"-\",Dados!L718)","v":""},{"$f":"IF(ISERROR(Dados!M718),\"-\",Dados!M718)","v":""},{"$f":"IF(ISERROR(Dados!N718),\"-\",Dados!N718)","v":""},{"$f":"IF(ISERROR(Dados!O718),\"-\",Dados!O718)","v":""},{"$f":"IF(ISERROR(Dados!P718),\"-\",Dados!P718)","v":""},{"$f":"IF(ISERROR(Dados!Q718),\"-\",Dados!Q718)","v":""},{"$f":"IF(ISERROR(Dados!R718),\"-\",Dados!R718)","v":""},{"$f":"IF(ISERROR(Dados!S718),\"-\",Dados!S718)","v":""},{"$f":"IF(ISERROR(Dados!T718),\"-\",Dados!T718)","v":""},{"$f":"IF(ISERROR(Dados!U718),\"-\",Dados!U718)","v":""},{"$f":"IF(ISERROR(Dados!V718),\"-\",Dados!V718)","v":""},{"$f":"IF(ISERROR(Dados!W718),\"-\",Dados!W718)","v":""},{"$f":"IF(ISERROR(Dados!X718),\"-\",Dados!X718)","v":""},{"$f":"IF(ISERROR(Dados!Y718),\"-\",Dados!Y718)","v":""},{"$f":"IF(ISERROR(Dados!Z718),\"-\",Dados!Z718)","v":""},{"$f":"IF(ISERROR(Dados!AA718),\"-\",Dados!AA718)","v":""},{"$f":"IF(ISERROR(Dados!AB718),\"-\",Dados!AB718)","v":""},{"$f":"IF(ISERROR(Dados!AC718),\"-\",Dados!AC718)","v":""},{"$f":"IF(ISERROR(Dados!AD718),\"-\",Dados!AD718)","v":""},{"$f":"IF(ISERROR(Dados!AE718),\"-\",Dados!AE718)","v":""},{"$f":"IF(ISERROR(Dados!AF718),\"-\",Dados!AF718)","v":""},{"$f":"IF(ISERROR(Dados!AG718),\"-\",Dados!AG718)","v":""}]
[{"$f":"IF(ISERROR(Dados!A719),\"-\",Dados!A719)","v":""},{"$f":"IF(ISERROR(Dados!B719),\"-\",Dados!B719)","v":""},{"$f":"IF(ISERROR(Dados!C719),\"-\",Dados!C719)","v":""},{"$f":"IF(ISERROR(Dados!D719),\"-\",Dados!D719)","v":""},{"$f":"IF(ISERROR(Dados!E719),\"-\",Dados!E719)","v":""},{"$f":"IF(ISERROR(Dados!F719),\"-\",Dados!F719)","v":""},{"$f":"IF(ISERROR(Dados!G719),\"-\",Dados!G719)","v":""},{"$f":"IF(ISERROR(Dados!H719),\"-\",Dados!H719)","v":""},{"$f":"IF(ISERROR(Dados!I719),\"-\",Dados!I719)","v":""},{"$f":"IF(ISERROR(Dados!J719),\"-\",Dados!J719)","v":""},{"$f":"IF(ISERROR(Dados!K719),\"-\",Dados!K719)","v":""},{"$f":"IF(ISERROR(Dados!L719),\"-\",Dados!L719)","v":""},{"$f":"IF(ISERROR(Dados!M719),\"-\",Dados!M719)","v":""},{"$f":"IF(ISERROR(Dados!N719),\"-\",Dados!N719)","v":""},{"$f":"IF(ISERROR(Dados!O719),\"-\",Dados!O719)","v":""},{"$f":"IF(ISERROR(Dados!P719),\"-\",Dados!P719)","v":""},{"$f":"IF(ISERROR(Dados!Q719),\"-\",Dados!Q719)","v":""},{"$f":"IF(ISERROR(Dados!R719),\"-\",Dados!R719)","v":""},{"$f":"IF(ISERROR(Dados!S719),\"-\",Dados!S719)","v":""},{"$f":"IF(ISERROR(Dados!T719),\"-\",Dados!T719)","v":""},{"$f":"IF(ISERROR(Dados!U719),\"-\",Dados!U719)","v":""},{"$f":"IF(ISERROR(Dados!V719),\"-\",Dados!V719)","v":""},{"$f":"IF(ISERROR(Dados!W719),\"-\",Dados!W719)","v":""},{"$f":"IF(ISERROR(Dados!X719),\"-\",Dados!X719)","v":""},{"$f":"IF(ISERROR(Dados!Y719),\"-\",Dados!Y719)","v":""},{"$f":"IF(ISERROR(Dados!Z719),\"-\",Dados!Z719)","v":""},{"$f":"IF(ISERROR(Dados!AA719),\"-\",Dados!AA719)","v":""},{"$f":"IF(ISERROR(Dados!AB719),\"-\",Dados!AB719)","v":""},{"$f":"IF(ISERROR(Dados!AC719),\"-\",Dados!AC719)","v":""},{"$f":"IF(ISERROR(Dados!AD719),\"-\",Dados!AD719)","v":""},{"$f":"IF(ISERROR(Dados!AE719),\"-\",Dados!AE719)","v":""},{"$f":"IF(ISERROR(Dados!AF719),\"-\",Dados!AF719)","v":""},{"$f":"IF(ISERROR(Dados!AG719),\"-\",Dados!AG719)","v":""}]
[{"$f":"IF(ISERROR(Dados!A720),\"-\",Dados!A720)","v":""},{"$f":"IF(ISERROR(Dados!B720),\"-\",Dados!B720)","v":""},{"$f":"IF(ISERROR(Dados!C720),\"-\",Dados!C720)","v":""},{"$f":"IF(ISERROR(Dados!D720),\"-\",Dados!D720)","v":""},{"$f":"IF(ISERROR(Dados!E720),\"-\",Dados!E720)","v":""},{"$f":"IF(ISERROR(Dados!F720),\"-\",Dados!F720)","v":""},{"$f":"IF(ISERROR(Dados!G720),\"-\",Dados!G720)","v":""},{"$f":"IF(ISERROR(Dados!H720),\"-\",Dados!H720)","v":""},{"$f":"IF(ISERROR(Dados!I720),\"-\",Dados!I720)","v":""},{"$f":"IF(ISERROR(Dados!J720),\"-\",Dados!J720)","v":""},{"$f":"IF(ISERROR(Dados!K720),\"-\",Dados!K720)","v":""},{"$f":"IF(ISERROR(Dados!L720),\"-\",Dados!L720)","v":""},{"$f":"IF(ISERROR(Dados!M720),\"-\",Dados!M720)","v":""},{"$f":"IF(ISERROR(Dados!N720),\"-\",Dados!N720)","v":""},{"$f":"IF(ISERROR(Dados!O720),\"-\",Dados!O720)","v":""},{"$f":"IF(ISERROR(Dados!P720),\"-\",Dados!P720)","v":""},{"$f":"IF(ISERROR(Dados!Q720),\"-\",Dados!Q720)","v":""},{"$f":"IF(ISERROR(Dados!R720),\"-\",Dados!R720)","v":""},{"$f":"IF(ISERROR(Dados!S720),\"-\",Dados!S720)","v":""},{"$f":"IF(ISERROR(Dados!T720),\"-\",Dados!T720)","v":""},{"$f":"IF(ISERROR(Dados!U720),\"-\",Dados!U720)","v":""},{"$f":"IF(ISERROR(Dados!V720),\"-\",Dados!V720)","v":""},{"$f":"IF(ISERROR(Dados!W720),\"-\",Dados!W720)","v":""},{"$f":"IF(ISERROR(Dados!X720),\"-\",Dados!X720)","v":""},{"$f":"IF(ISERROR(Dados!Y720),\"-\",Dados!Y720)","v":""},{"$f":"IF(ISERROR(Dados!Z720),\"-\",Dados!Z720)","v":""},{"$f":"IF(ISERROR(Dados!AA720),\"-\",Dados!AA720)","v":""},{"$f":"IF(ISERROR(Dados!AB720),\"-\",Dados!AB720)","v":""},{"$f":"IF(ISERROR(Dados!AC720),\"-\",Dados!AC720)","v":""},{"$f":"IF(ISERROR(Dados!AD720),\"-\",Dados!AD720)","v":""},{"$f":"IF(ISERROR(Dados!AE720),\"-\",Dados!AE720)","v":""},{"$f":"IF(ISERROR(Dados!AF720),\"-\",Dados!AF720)","v":""},{"$f":"IF(ISERROR(Dados!AG720),\"-\",Dados!AG720)","v":""}]
[{"$f":"IF(ISERROR(Dados!A721),\"-\",Dados!A721)","v":""},{"$f":"IF(ISERROR(Dados!B721),\"-\",Dados!B721)","v":""},{"$f":"IF(ISERROR(Dados!C721),\"-\",Dados!C721)","v":""},{"$f":"IF(ISERROR(Dados!D721),\"-\",Dados!D721)","v":""},{"$f":"IF(ISERROR(Dados!E721),\"-\",Dados!E721)","v":""},{"$f":"IF(ISERROR(Dados!F721),\"-\",Dados!F721)","v":""},{"$f":"IF(ISERROR(Dados!G721),\"-\",Dados!G721)","v":""},{"$f":"IF(ISERROR(Dados!H721),\"-\",Dados!H721)","v":""},{"$f":"IF(ISERROR(Dados!I721),\"-\",Dados!I721)","v":""},{"$f":"IF(ISERROR(Dados!J721),\"-\",Dados!J721)","v":""},{"$f":"IF(ISERROR(Dados!K721),\"-\",Dados!K721)","v":""},{"$f":"IF(ISERROR(Dados!L721),\"-\",Dados!L721)","v":""},{"$f":"IF(ISERROR(Dados!M721),\"-\",Dados!M721)","v":""},{"$f":"IF(ISERROR(Dados!N721),\"-\",Dados!N721)","v":""},{"$f":"IF(ISERROR(Dados!O721),\"-\",Dados!O721)","v":""},{"$f":"IF(ISERROR(Dados!P721),\"-\",Dados!P721)","v":""},{"$f":"IF(ISERROR(Dados!Q721),\"-\",Dados!Q721)","v":""},{"$f":"IF(ISERROR(Dados!R721),\"-\",Dados!R721)","v":""},{"$f":"IF(ISERROR(Dados!S721),\"-\",Dados!S721)","v":""},{"$f":"IF(ISERROR(Dados!T721),\"-\",Dados!T721)","v":""},{"$f":"IF(ISERROR(Dados!U721),\"-\",Dados!U721)","v":""},{"$f":"IF(ISERROR(Dados!V721),\"-\",Dados!V721)","v":""},{"$f":"IF(ISERROR(Dados!W721),\"-\",Dados!W721)","v":""},{"$f":"IF(ISERROR(Dados!X721),\"-\",Dados!X721)","v":""},{"$f":"IF(ISERROR(Dados!Y721),\"-\",Dados!Y721)","v":""},{"$f":"IF(ISERROR(Dados!Z721),\"-\",Dados!Z721)","v":""},{"$f":"IF(ISERROR(Dados!AA721),\"-\",Dados!AA721)","v":""},{"$f":"IF(ISERROR(Dados!AB721),\"-\",Dados!AB721)","v":""},{"$f":"IF(ISERROR(Dados!AC721),\"-\",Dados!AC721)","v":""},{"$f":"IF(ISERROR(Dados!AD721),\"-\",Dados!AD721)","v":""},{"$f":"IF(ISERROR(Dados!AE721),\"-\",Dados!AE721)","v":""},{"$f":"IF(ISERROR(Dados!AF721),\"-\",Dados!AF721)","v":""},{"$f":"IF(ISERROR(Dados!AG721),\"-\",Dados!AG721)","v":""}]
[{"$f":"IF(ISERROR(Dados!A722),\"-\",Dados!A722)","v":""},{"$f":"IF(ISERROR(Dados!B722),\"-\",Dados!B722)","v":""},{"$f":"IF(ISERROR(Dados!C722),\"-\",Dados!C722)","v":""},{"$f":"IF(ISERROR(Dados!D722),\"-\",Dados!D722)","v":""},{"$f":"IF(ISERROR(Dados!E722),\"-\",Dados!E722)","v":""},{"$f":"IF(ISERROR(Dados!F722),\"-\",Dados!F722)","v":""},{"$f":"IF(ISERROR(Dados!G722),\"-\",Dados!G722)","v":""},{"$f":"IF(ISERROR(Dados!H722),\"-\",Dados!H722)","v":""},{"$f":"IF(ISERROR(Dados!I722),\"-\",Dados!I722)","v":""},{"$f":"IF(ISERROR(Dados!J722),\"-\",Dados!J722)","v":""},{"$f":"IF(ISERROR(Dados!K722),\"-\",Dados!K722)","v":""},{"$f":"IF(ISERROR(Dados!L722),\"-\",Dados!L722)","v":""},{"$f":"IF(ISERROR(Dados!M722),\"-\",Dados!M722)","v":""},{"$f":"IF(ISERROR(Dados!N722),\"-\",Dados!N722)","v":""},{"$f":"IF(ISERROR(Dados!O722),\"-\",Dados!O722)","v":""},{"$f":"IF(ISERROR(Dados!P722),\"-\",Dados!P722)","v":""},{"$f":"IF(ISERROR(Dados!Q722),\"-\",Dados!Q722)","v":""},{"$f":"IF(ISERROR(Dados!R722),\"-\",Dados!R722)","v":""},{"$f":"IF(ISERROR(Dados!S722),\"-\",Dados!S722)","v":""},{"$f":"IF(ISERROR(Dados!T722),\"-\",Dados!T722)","v":""},{"$f":"IF(ISERROR(Dados!U722),\"-\",Dados!U722)","v":""},{"$f":"IF(ISERROR(Dados!V722),\"-\",Dados!V722)","v":""},{"$f":"IF(ISERROR(Dados!W722),\"-\",Dados!W722)","v":""},{"$f":"IF(ISERROR(Dados!X722),\"-\",Dados!X722)","v":""},{"$f":"IF(ISERROR(Dados!Y722),\"-\",Dados!Y722)","v":""},{"$f":"IF(ISERROR(Dados!Z722),\"-\",Dados!Z722)","v":""},{"$f":"IF(ISERROR(Dados!AA722),\"-\",Dados!AA722)","v":""},{"$f":"IF(ISERROR(Dados!AB722),\"-\",Dados!AB722)","v":""},{"$f":"IF(ISERROR(Dados!AC722),\"-\",Dados!AC722)","v":""},{"$f":"IF(ISERROR(Dados!AD722),\"-\",Dados!AD722)","v":""},{"$f":"IF(ISERROR(Dados!AE722),\"-\",Dados!AE722)","v":""},{"$f":"IF(ISERROR(Dados!AF722),\"-\",Dados!AF722)","v":""},{"$f":"IF(ISERROR(Dados!AG722),\"-\",Dados!AG722)","v":""}]
[{"$f":"IF(ISERROR(Dados!A723),\"-\",Dados!A723)","v":""},{"$f":"IF(ISERROR(Dados!B723),\"-\",Dados!B723)","v":""},{"$f":"IF(ISERROR(Dados!C723),\"-\",Dados!C723)","v":""},{"$f":"IF(ISERROR(Dados!D723),\"-\",Dados!D723)","v":""},{"$f":"IF(ISERROR(Dados!E723),\"-\",Dados!E723)","v":""},{"$f":"IF(ISERROR(Dados!F723),\"-\",Dados!F723)","v":""},{"$f":"IF(ISERROR(Dados!G723),\"-\",Dados!G723)","v":""},{"$f":"IF(ISERROR(Dados!H723),\"-\",Dados!H723)","v":""},{"$f":"IF(ISERROR(Dados!I723),\"-\",Dados!I723)","v":""},{"$f":"IF(ISERROR(Dados!J723),\"-\",Dados!J723)","v":""},{"$f":"IF(ISERROR(Dados!K723),\"-\",Dados!K723)","v":""},{"$f":"IF(ISERROR(Dados!L723),\"-\",Dados!L723)","v":""},{"$f":"IF(ISERROR(Dados!M723),\"-\",Dados!M723)","v":""},{"$f":"IF(ISERROR(Dados!N723),\"-\",Dados!N723)","v":""},{"$f":"IF(ISERROR(Dados!O723),\"-\",Dados!O723)","v":""},{"$f":"IF(ISERROR(Dados!P723),\"-\",Dados!P723)","v":""},{"$f":"IF(ISERROR(Dados!Q723),\"-\",Dados!Q723)","v":""},{"$f":"IF(ISERROR(Dados!R723),\"-\",Dados!R723)","v":""},{"$f":"IF(ISERROR(Dados!S723),\"-\",Dados!S723)","v":""},{"$f":"IF(ISERROR(Dados!T723),\"-\",Dados!T723)","v":""},{"$f":"IF(ISERROR(Dados!U723),\"-\",Dados!U723)","v":""},{"$f":"IF(ISERROR(Dados!V723),\"-\",Dados!V723)","v":""},{"$f":"IF(ISERROR(Dados!W723),\"-\",Dados!W723)","v":""},{"$f":"IF(ISERROR(Dados!X723),\"-\",Dados!X723)","v":""},{"$f":"IF(ISERROR(Dados!Y723),\"-\",Dados!Y723)","v":""},{"$f":"IF(ISERROR(Dados!Z723),\"-\",Dados!Z723)","v":""},{"$f":"IF(ISERROR(Dados!AA723),\"-\",Dados!AA723)","v":""},{"$f":"IF(ISERROR(Dados!AB723),\"-\",Dados!AB723)","v":""},{"$f":"IF(ISERROR(Dados!AC723),\"-\",Dados!AC723)","v":""},{"$f":"IF(ISERROR(Dados!AD723),\"-\",Dados!AD723)","v":""},{"$f":"IF(ISERROR(Dados!AE723),\"-\",Dados!AE723)","v":""},{"$f":"IF(ISERROR(Dados!AF723),\"-\",Dados!AF723)","v":""},{"$f":"IF(ISERROR(Dados!AG723),\"-\",Dados!AG723)","v":""}]
[{"$f":"IF(ISERROR(Dados!A724),\"-\",Dados!A724)","v":""},{"$f":"IF(ISERROR(Dados!B724),\"-\",Dados!B724)","v":""},{"$f":"IF(ISERROR(Dados!C724),\"-\",Dados!C724)","v":""},{"$f":"IF(ISERROR(Dados!D724),\"-\",Dados!D724)","v":""},{"$f":"IF(ISERROR(Dados!E724),\"-\",Dados!E724)","v":""},{"$f":"IF(ISERROR(Dados!F724),\"-\",Dados!F724)","v":""},{"$f":"IF(ISERROR(Dados!G724),\"-\",Dados!G724)","v":""},{"$f":"IF(ISERROR(Dados!H724),\"-\",Dados!H724)","v":""},{"$f":"IF(ISERROR(Dados!I724),\"-\",Dados!I724)","v":""},{"$f":"IF(ISERROR(Dados!J724),\"-\",Dados!J724)","v":""},{"$f":"IF(ISERROR(Dados!K724),\"-\",Dados!K724)","v":""},{"$f":"IF(ISERROR(Dados!L724),\"-\",Dados!L724)","v":""},{"$f":"IF(ISERROR(Dados!M724),\"-\",Dados!M724)","v":""},{"$f":"IF(ISERROR(Dados!N724),\"-\",Dados!N724)","v":""},{"$f":"IF(ISERROR(Dados!O724),\"-\",Dados!O724)","v":""},{"$f":"IF(ISERROR(Dados!P724),\"-\",Dados!P724)","v":""},{"$f":"IF(ISERROR(Dados!Q724),\"-\",Dados!Q724)","v":""},{"$f":"IF(ISERROR(Dados!R724),\"-\",Dados!R724)","v":""},{"$f":"IF(ISERROR(Dados!S724),\"-\",Dados!S724)","v":""},{"$f":"IF(ISERROR(Dados!T724),\"-\",Dados!T724)","v":""},{"$f":"IF(ISERROR(Dados!U724),\"-\",Dados!U724)","v":""},{"$f":"IF(ISERROR(Dados!V724),\"-\",Dados!V724)","v":""},{"$f":"IF(ISERROR(Dados!W724),\"-\",Dados!W724)","v":""},{"$f":"IF(ISERROR(Dados!X724),\"-\",Dados!X724)","v":""},{"$f":"IF(ISERROR(Dados!Y724),\"-\",Dados!Y724)","v":""},{"$f":"IF(ISERROR(Dados!Z724),\"-\",Dados!Z724)","v":""},{"$f":"IF(ISERROR(Dados!AA724),\"-\",Dados!AA724)","v":""},{"$f":"IF(ISERROR(Dados!AB724),\"-\",Dados!AB724)","v":""},{"$f":"IF(ISERROR(Dados!AC724),\"-\",Dados!AC724)","v":""},{"$f":"IF(ISERROR(Dados!AD724),\"-\",Dados!AD724)","v":""},{"$f":"IF(ISERROR(Dados!AE724),\"-\",Dados!AE724)","v":""},{"$f":"IF(ISERROR(Dados!AF724),\"-\",Dados!AF724)","v":""},{"$f":"IF(ISERROR(Dados!AG724),\"-\",Dados!AG724)","v":""}]
[{"$f":"IF(ISERROR(Dados!A725),\"-\",Dados!A725)","v":""},{"$f":"IF(ISERROR(Dados!B725),\"-\",Dados!B725)","v":""},{"$f":"IF(ISERROR(Dados!C725),\"-\",Dados!C725)","v":""},{"$f":"IF(ISERROR(Dados!D725),\"-\",Dados!D725)","v":""},{"$f":"IF(ISERROR(Dados!E725),\"-\",Dados!E725)","v":""},{"$f":"IF(ISERROR(Dados!F725),\"-\",Dados!F725)","v":""},{"$f":"IF(ISERROR(Dados!G725),\"-\",Dados!G725)","v":""},{"$f":"IF(ISERROR(Dados!H725),\"-\",Dados!H725)","v":""},{"$f":"IF(ISERROR(Dados!I725),\"-\",Dados!I725)","v":""},{"$f":"IF(ISERROR(Dados!J725),\"-\",Dados!J725)","v":""},{"$f":"IF(ISERROR(Dados!K725),\"-\",Dados!K725)","v":""},{"$f":"IF(ISERROR(Dados!L725),\"-\",Dados!L725)","v":""},{"$f":"IF(ISERROR(Dados!M725),\"-\",Dados!M725)","v":""},{"$f":"IF(ISERROR(Dados!N725),\"-\",Dados!N725)","v":""},{"$f":"IF(ISERROR(Dados!O725),\"-\",Dados!O725)","v":""},{"$f":"IF(ISERROR(Dados!P725),\"-\",Dados!P725)","v":""},{"$f":"IF(ISERROR(Dados!Q725),\"-\",Dados!Q725)","v":""},{"$f":"IF(ISERROR(Dados!R725),\"-\",Dados!R725)","v":""},{"$f":"IF(ISERROR(Dados!S725),\"-\",Dados!S725)","v":""},{"$f":"IF(ISERROR(Dados!T725),\"-\",Dados!T725)","v":""},{"$f":"IF(ISERROR(Dados!U725),\"-\",Dados!U725)","v":""},{"$f":"IF(ISERROR(Dados!V725),\"-\",Dados!V725)","v":""},{"$f":"IF(ISERROR(Dados!W725),\"-\",Dados!W725)","v":""},{"$f":"IF(ISERROR(Dados!X725),\"-\",Dados!X725)","v":""},{"$f":"IF(ISERROR(Dados!Y725),\"-\",Dados!Y725)","v":""},{"$f":"IF(ISERROR(Dados!Z725),\"-\",Dados!Z725)","v":""},{"$f":"IF(ISERROR(Dados!AA725),\"-\",Dados!AA725)","v":""},{"$f":"IF(ISERROR(Dados!AB725),\"-\",Dados!AB725)","v":""},{"$f":"IF(ISERROR(Dados!AC725),\"-\",Dados!AC725)","v":""},{"$f":"IF(ISERROR(Dados!AD725),\"-\",Dados!AD725)","v":""},{"$f":"IF(ISERROR(Dados!AE725),\"-\",Dados!AE725)","v":""},{"$f":"IF(ISERROR(Dados!AF725),\"-\",Dados!AF725)","v":""},{"$f":"IF(ISERROR(Dados!AG725),\"-\",Dados!AG725)","v":""}]
[{"$f":"IF(ISERROR(Dados!A726),\"-\",Dados!A726)","v":""},{"$f":"IF(ISERROR(Dados!B726),\"-\",Dados!B726)","v":""},{"$f":"IF(ISERROR(Dados!C726),\"-\",Dados!C726)","v":""},{"$f":"IF(ISERROR(Dados!D726),\"-\",Dados!D726)","v":""},{"$f":"IF(ISERROR(Dados!E726),\"-\",Dados!E726)","v":""},{"$f":"IF(ISERROR(Dados!F726),\"-\",Dados!F726)","v":""},{"$f":"IF(ISERROR(Dados!G726),\"-\",Dados!G726)","v":""},{"$f":"IF(ISERROR(Dados!H726),\"-\",Dados!H726)","v":""},{"$f":"IF(ISERROR(Dados!I726),\"-\",Dados!I726)","v":""},{"$f":"IF(ISERROR(Dados!J726),\"-\",Dados!J726)","v":""},{"$f":"IF(ISERROR(Dados!K726),\"-\",Dados!K726)","v":""},{"$f":"IF(ISERROR(Dados!L726),\"-\",Dados!L726)","v":""},{"$f":"IF(ISERROR(Dados!M726),\"-\",Dados!M726)","v":""},{"$f":"IF(ISERROR(Dados!N726),\"-\",Dados!N726)","v":""},{"$f":"IF(ISERROR(Dados!O726),\"-\",Dados!O726)","v":""},{"$f":"IF(ISERROR(Dados!P726),\"-\",Dados!P726)","v":""},{"$f":"IF(ISERROR(Dados!Q726),\"-\",Dados!Q726)","v":""},{"$f":"IF(ISERROR(Dados!R726),\"-\",Dados!R726)","v":""},{"$f":"IF(ISERROR(Dados!S726),\"-\",Dados!S726)","v":""},{"$f":"IF(ISERROR(Dados!T726),\"-\",Dados!T726)","v":""},{"$f":"IF(ISERROR(Dados!U726),\"-\",Dados!U726)","v":""},{"$f":"IF(ISERROR(Dados!V726),\"-\",Dados!V726)","v":""},{"$f":"IF(ISERROR(Dados!W726),\"-\",Dados!W726)","v":""},{"$f":"IF(ISERROR(Dados!X726),\"-\",Dados!X726)","v":""},{"$f":"IF(ISERROR(Dados!Y726),\"-\",Dados!Y726)","v":""},{"$f":"IF(ISERROR(Dados!Z726),\"-\",Dados!Z726)","v":""},{"$f":"IF(ISERROR(Dados!AA726),\"-\",Dados!AA726)","v":""},{"$f":"IF(ISERROR(Dados!AB726),\"-\",Dados!AB726)","v":""},{"$f":"IF(ISERROR(Dados!AC726),\"-\",Dados!AC726)","v":""},{"$f":"IF(ISERROR(Dados!AD726),\"-\",Dados!AD726)","v":""},{"$f":"IF(ISERROR(Dados!AE726),\"-\",Dados!AE726)","v":""},{"$f":"IF(ISERROR(Dados!AF726),\"-\",Dados!AF726)","v":""},{"$f":"IF(ISERROR(Dados!AG726),\"-\",Dados!AG726)","v":""}]
[{"$f":"IF(ISERROR(Dados!A727),\"-\",Dados!A727)","v":""},{"$f":"IF(ISERROR(Dados!B727),\"-\",Dados!B727)","v":""},{"$f":"IF(ISERROR(Dados!C727),\"-\",Dados!C727)","v":""},{"$f":"IF(ISERROR(Dados!D727),\"-\",Dados!D727)","v":""},{"$f":"IF(ISERROR(Dados!E727),\"-\",Dados!E727)","v":""},{"$f":"IF(ISERROR(Dados!F727),\"-\",Dados!F727)","v":""},{"$f":"IF(ISERROR(Dados!G727),\"-\",Dados!G727)","v":""},{"$f":"IF(ISERROR(Dados!H727),\"-\",Dados!H727)","v":""},{"$f":"IF(ISERROR(Dados!I727),\"-\",Dados!I727)","v":""},{"$f":"IF(ISERROR(Dados!J727),\"-\",Dados!J727)","v":""},{"$f":"IF(ISERROR(Dados!K727),\"-\",Dados!K727)","v":""},{"$f":"IF(ISERROR(Dados!L727),\"-\",Dados!L727)","v":""},{"$f":"IF(ISERROR(Dados!M727),\"-\",Dados!M727)","v":""},{"$f":"IF(ISERROR(Dados!N727),\"-\",Dados!N727)","v":""},{"$f":"IF(ISERROR(Dados!O727),\"-\",Dados!O727)","v":""},{"$f":"IF(ISERROR(Dados!P727),\"-\",Dados!P727)","v":""},{"$f":"IF(ISERROR(Dados!Q727),\"-\",Dados!Q727)","v":""},{"$f":"IF(ISERROR(Dados!R727),\"-\",Dados!R727)","v":""},{"$f":"IF(ISERROR(Dados!S727),\"-\",Dados!S727)","v":""},{"$f":"IF(ISERROR(Dados!T727),\"-\",Dados!T727)","v":""},{"$f":"IF(ISERROR(Dados!U727),\"-\",Dados!U727)","v":""},{"$f":"IF(ISERROR(Dados!V727),\"-\",Dados!V727)","v":""},{"$f":"IF(ISERROR(Dados!W727),\"-\",Dados!W727)","v":""},{"$f":"IF(ISERROR(Dados!X727),\"-\",Dados!X727)","v":""},{"$f":"IF(ISERROR(Dados!Y727),\"-\",Dados!Y727)","v":""},{"$f":"IF(ISERROR(Dados!Z727),\"-\",Dados!Z727)","v":""},{"$f":"IF(ISERROR(Dados!AA727),\"-\",Dados!AA727)","v":""},{"$f":"IF(ISERROR(Dados!AB727),\"-\",Dados!AB727)","v":""},{"$f":"IF(ISERROR(Dados!AC727),\"-\",Dados!AC727)","v":""},{"$f":"IF(ISERROR(Dados!AD727),\"-\",Dados!AD727)","v":""},{"$f":"IF(ISERROR(Dados!AE727),\"-\",Dados!AE727)","v":""},{"$f":"IF(ISERROR(Dados!AF727),\"-\",Dados!AF727)","v":""},{"$f":"IF(ISERROR(Dados!AG727),\"-\",Dados!AG727)","v":""}]
[{"$f":"IF(ISERROR(Dados!A728),\"-\",Dados!A728)","v":""},{"$f":"IF(ISERROR(Dados!B728),\"-\",Dados!B728)","v":""},{"$f":"IF(ISERROR(Dados!C728),\"-\",Dados!C728)","v":""},{"$f":"IF(ISERROR(Dados!D728),\"-\",Dados!D728)","v":""},{"$f":"IF(ISERROR(Dados!E728),\"-\",Dados!E728)","v":""},{"$f":"IF(ISERROR(Dados!F728),\"-\",Dados!F728)","v":""},{"$f":"IF(ISERROR(Dados!G728),\"-\",Dados!G728)","v":""},{"$f":"IF(ISERROR(Dados!H728),\"-\",Dados!H728)","v":""},{"$f":"IF(ISERROR(Dados!I728),\"-\",Dados!I728)","v":""},{"$f":"IF(ISERROR(Dados!J728),\"-\",Dados!J728)","v":""},{"$f":"IF(ISERROR(Dados!K728),\"-\",Dados!K728)","v":""},{"$f":"IF(ISERROR(Dados!L728),\"-\",Dados!L728)","v":""},{"$f":"IF(ISERROR(Dados!M728),\"-\",Dados!M728)","v":""},{"$f":"IF(ISERROR(Dados!N728),\"-\",Dados!N728)","v":""},{"$f":"IF(ISERROR(Dados!O728),\"-\",Dados!O728)","v":""},{"$f":"IF(ISERROR(Dados!P728),\"-\",Dados!P728)","v":""},{"$f":"IF(ISERROR(Dados!Q728),\"-\",Dados!Q728)","v":""},{"$f":"IF(ISERROR(Dados!R728),\"-\",Dados!R728)","v":""},{"$f":"IF(ISERROR(Dados!S728),\"-\",Dados!S728)","v":""},{"$f":"IF(ISERROR(Dados!T728),\"-\",Dados!T728)","v":""},{"$f":"IF(ISERROR(Dados!U728),\"-\",Dados!U728)","v":""},{"$f":"IF(ISERROR(Dados!V728),\"-\",Dados!V728)","v":""},{"$f":"IF(ISERROR(Dados!W728),\"-\",Dados!W728)","v":""},{"$f":"IF(ISERROR(Dados!X728),\"-\",Dados!X728)","v":""},{"$f":"IF(ISERROR(Dados!Y728),\"-\",Dados!Y728)","v":""},{"$f":"IF(ISERROR(Dados!Z728),\"-\",Dados!Z728)","v":""},{"$f":"IF(ISERROR(Dados!AA728),\"-\",Dados!AA728)","v":""},{"$f":"IF(ISERROR(Dados!AB728),\"-\",Dados!AB728)","v":""},{"$f":"IF(ISERROR(Dados!AC728),\"-\",Dados!AC728)","v":""},{"$f":"IF(ISERROR(Dados!AD728),\"-\",Dados!AD728)","v":""},{"$f":"IF(ISERROR(Dados!AE728),\"-\",Dados!AE728)","v":""},{"$f":"IF(ISERROR(Dados!AF728),\"-\",Dados!AF728)","v":""},{"$f":"IF(ISERROR(Dados!AG728),\"-\",Dados!AG728)","v":""}]
[{"$f":"IF(ISERROR(Dados!A729),\"-\",Dados!A729)","v":""},{"$f":"IF(ISERROR(Dados!B729),\"-\",Dados!B729)","v":""},{"$f":"IF(ISERROR(Dados!C729),\"-\",Dados!C729)","v":""},{"$f":"IF(ISERROR(Dados!D729),\"-\",Dados!D729)","v":""},{"$f":"IF(ISERROR(Dados!E729),\"-\",Dados!E729)","v":""},{"$f":"IF(ISERROR(Dados!F729),\"-\",Dados!F729)","v":""},{"$f":"IF(ISERROR(Dados!G729),\"-\",Dados!G729)","v":""},{"$f":"IF(ISERROR(Dados!H729),\"-\",Dados!H729)","v":""},{"$f":"IF(ISERROR(Dados!I729),\"-\",Dados!I729)","v":""},{"$f":"IF(ISERROR(Dados!J729),\"-\",Dados!J729)","v":""},{"$f":"IF(ISERROR(Dados!K729),\"-\",Dados!K729)","v":""},{"$f":"IF(ISERROR(Dados!L729),\"-\",Dados!L729)","v":""},{"$f":"IF(ISERROR(Dados!M729),\"-\",Dados!M729)","v":""},{"$f":"IF(ISERROR(Dados!N729),\"-\",Dados!N729)","v":""},{"$f":"IF(ISERROR(Dados!O729),\"-\",Dados!O729)","v":""},{"$f":"IF(ISERROR(Dados!P729),\"-\",Dados!P729)","v":""},{"$f":"IF(ISERROR(Dados!Q729),\"-\",Dados!Q729)","v":""},{"$f":"IF(ISERROR(Dados!R729),\"-\",Dados!R729)","v":""},{"$f":"IF(ISERROR(Dados!S729),\"-\",Dados!S729)","v":""},{"$f":"IF(ISERROR(Dados!T729),\"-\",Dados!T729)","v":""},{"$f":"IF(ISERROR(Dados!U729),\"-\",Dados!U729)","v":""},{"$f":"IF(ISERROR(Dados!V729),\"-\",Dados!V729)","v":""},{"$f":"IF(ISERROR(Dados!W729),\"-\",Dados!W729)","v":""},{"$f":"IF(ISERROR(Dados!X729),\"-\",Dados!X729)","v":""},{"$f":"IF(ISERROR(Dados!Y729),\"-\",Dados!Y729)","v":""},{"$f":"IF(ISERROR(Dados!Z729),\"-\",Dados!Z729)","v":""},{"$f":"IF(ISERROR(Dados!AA729),\"-\",Dados!AA729)","v":""},{"$f":"IF(ISERROR(Dados!AB729),\"-\",Dados!AB729)","v":""},{"$f":"IF(ISERROR(Dados!AC729),\"-\",Dados!AC729)","v":""},{"$f":"IF(ISERROR(Dados!AD729),\"-\",Dados!AD729)","v":""},{"$f":"IF(ISERROR(Dados!AE729),\"-\",Dados!AE729)","v":""},{"$f":"IF(ISERROR(Dados!AF729),\"-\",Dados!AF729)","v":""},{"$f":"IF(ISERROR(Dados!AG729),\"-\",Dados!AG729)","v":""}]
[{"$f":"IF(ISERROR(Dados!A730),\"-\",Dados!A730)","v":""},{"$f":"IF(ISERROR(Dados!B730),\"-\",Dados!B730)","v":""},{"$f":"IF(ISERROR(Dados!C730),\"-\",Dados!C730)","v":""},{"$f":"IF(ISERROR(Dados!D730),\"-\",Dados!D730)","v":""},{"$f":"IF(ISERROR(Dados!E730),\"-\",Dados!E730)","v":""},{"$f":"IF(ISERROR(Dados!F730),\"-\",Dados!F730)","v":""},{"$f":"IF(ISERROR(Dados!G730),\"-\",Dados!G730)","v":""},{"$f":"IF(ISERROR(Dados!H730),\"-\",Dados!H730)","v":""},{"$f":"IF(ISERROR(Dados!I730),\"-\",Dados!I730)","v":""},{"$f":"IF(ISERROR(Dados!J730),\"-\",Dados!J730)","v":""},{"$f":"IF(ISERROR(Dados!K730),\"-\",Dados!K730)","v":""},{"$f":"IF(ISERROR(Dados!L730),\"-\",Dados!L730)","v":""},{"$f":"IF(ISERROR(Dados!M730),\"-\",Dados!M730)","v":""},{"$f":"IF(ISERROR(Dados!N730),\"-\",Dados!N730)","v":""},{"$f":"IF(ISERROR(Dados!O730),\"-\",Dados!O730)","v":""},{"$f":"IF(ISERROR(Dados!P730),\"-\",Dados!P730)","v":""},{"$f":"IF(ISERROR(Dados!Q730),\"-\",Dados!Q730)","v":""},{"$f":"IF(ISERROR(Dados!R730),\"-\",Dados!R730)","v":""},{"$f":"IF(ISERROR(Dados!S730),\"-\",Dados!S730)","v":""},{"$f":"IF(ISERROR(Dados!T730),\"-\",Dados!T730)","v":""},{"$f":"IF(ISERROR(Dados!U730),\"-\",Dados!U730)","v":""},{"$f":"IF(ISERROR(Dados!V730),\"-\",Dados!V730)","v":""},{"$f":"IF(ISERROR(Dados!W730),\"-\",Dados!W730)","v":""},{"$f":"IF(ISERROR(Dados!X730),\"-\",Dados!X730)","v":""},{"$f":"IF(ISERROR(Dados!Y730),\"-\",Dados!Y730)","v":""},{"$f":"IF(ISERROR(Dados!Z730),\"-\",Dados!Z730)","v":""},{"$f":"IF(ISERROR(Dados!AA730),\"-\",Dados!AA730)","v":""},{"$f":"IF(ISERROR(Dados!AB730),\"-\",Dados!AB730)","v":""},{"$f":"IF(ISERROR(Dados!AC730),\"-\",Dados!AC730)","v":""},{"$f":"IF(ISERROR(Dados!AD730),\"-\",Dados!AD730)","v":""},{"$f":"IF(ISERROR(Dados!AE730),\"-\",Dados!AE730)","v":""},{"$f":"IF(ISERROR(Dados!AF730),\"-\",Dados!AF730)","v":""},{"$f":"IF(ISERROR(Dados!AG730),\"-\",Dados!AG730)","v":""}]
[{"$f":"IF(ISERROR(Dados!A731),\"-\",Dados!A731)","v":""},{"$f":"IF(ISERROR(Dados!B731),\"-\",Dados!B731)","v":""},{"$f":"IF(ISERROR(Dados!C731),\"-\",Dados!C731)","v":""},{"$f":"IF(ISERROR(Dados!D731),\"-\",Dados!D731)","v":""},{"$f":"IF(ISERROR(Dados!E731),\"-\",Dados!E731)","v":""},{"$f":"IF(ISERROR(Dados!F731),\"-\",Dados!F731)","v":""},{"$f":"IF(ISERROR(Dados!G731),\"-\",Dados!G731)","v":""},{"$f":"IF(ISERROR(Dados!H731),\"-\",Dados!H731)","v":""},{"$f":"IF(ISERROR(Dados!I731),\"-\",Dados!I731)","v":""},{"$f":"IF(ISERROR(Dados!J731),\"-\",Dados!J731)","v":""},{"$f":"IF(ISERROR(Dados!K731),\"-\",Dados!K731)","v":""},{"$f":"IF(ISERROR(Dados!L731),\"-\",Dados!L731)","v":""},{"$f":"IF(ISERROR(Dados!M731),\"-\",Dados!M731)","v":""},{"$f":"IF(ISERROR(Dados!N731),\"-\",Dados!N731)","v":""},{"$f":"IF(ISERROR(Dados!O731),\"-\",Dados!O731)","v":""},{"$f":"IF(ISERROR(Dados!P731),\"-\",Dados!P731)","v":""},{"$f":"IF(ISERROR(Dados!Q731),\"-\",Dados!Q731)","v":""},{"$f":"IF(ISERROR(Dados!R731),\"-\",Dados!R731)","v":""},{"$f":"IF(ISERROR(Dados!S731),\"-\",Dados!S731)","v":""},{"$f":"IF(ISERROR(Dados!T731),\"-\",Dados!T731)","v":""},{"$f":"IF(ISERROR(Dados!U731),\"-\",Dados!U731)","v":""},{"$f":"IF(ISERROR(Dados!V731),\"-\",Dados!V731)","v":""},{"$f":"IF(ISERROR(Dados!W731),\"-\",Dados!W731)","v":""},{"$f":"IF(ISERROR(Dados!X731),\"-\",Dados!X731)","v":""},{"$f":"IF(ISERROR(Dados!Y731),\"-\",Dados!Y731)","v":""},{"$f":"IF(ISERROR(Dados!Z731),\"-\",Dados!Z731)","v":""},{"$f":"IF(ISERROR(Dados!AA731),\"-\",Dados!AA731)","v":""},{"$f":"IF(ISERROR(Dados!AB731),\"-\",Dados!AB731)","v":""},{"$f":"IF(ISERROR(Dados!AC731),\"-\",Dados!AC731)","v":""},{"$f":"IF(ISERROR(Dados!AD731),\"-\",Dados!AD731)","v":""},{"$f":"IF(ISERROR(Dados!AE731),\"-\",Dados!AE731)","v":""},{"$f":"IF(ISERROR(Dados!AF731),\"-\",Dados!AF731)","v":""},{"$f":"IF(ISERROR(Dados!AG731),\"-\",Dados!AG731)","v":""}]
[{"$f":"IF(ISERROR(Dados!A732),\"-\",Dados!A732)","v":""},{"$f":"IF(ISERROR(Dados!B732),\"-\",Dados!B732)","v":""},{"$f":"IF(ISERROR(Dados!C732),\"-\",Dados!C732)","v":""},{"$f":"IF(ISERROR(Dados!D732),\"-\",Dados!D732)","v":""},{"$f":"IF(ISERROR(Dados!E732),\"-\",Dados!E732)","v":""},{"$f":"IF(ISERROR(Dados!F732),\"-\",Dados!F732)","v":""},{"$f":"IF(ISERROR(Dados!G732),\"-\",Dados!G732)","v":""},{"$f":"IF(ISERROR(Dados!H732),\"-\",Dados!H732)","v":""},{"$f":"IF(ISERROR(Dados!I732),\"-\",Dados!I732)","v":""},{"$f":"IF(ISERROR(Dados!J732),\"-\",Dados!J732)","v":""},{"$f":"IF(ISERROR(Dados!K732),\"-\",Dados!K732)","v":""},{"$f":"IF(ISERROR(Dados!L732),\"-\",Dados!L732)","v":""},{"$f":"IF(ISERROR(Dados!M732),\"-\",Dados!M732)","v":""},{"$f":"IF(ISERROR(Dados!N732),\"-\",Dados!N732)","v":""},{"$f":"IF(ISERROR(Dados!O732),\"-\",Dados!O732)","v":""},{"$f":"IF(ISERROR(Dados!P732),\"-\",Dados!P732)","v":""},{"$f":"IF(ISERROR(Dados!Q732),\"-\",Dados!Q732)","v":""},{"$f":"IF(ISERROR(Dados!R732),\"-\",Dados!R732)","v":""},{"$f":"IF(ISERROR(Dados!S732),\"-\",Dados!S732)","v":""},{"$f":"IF(ISERROR(Dados!T732),\"-\",Dados!T732)","v":""},{"$f":"IF(ISERROR(Dados!U732),\"-\",Dados!U732)","v":""},{"$f":"IF(ISERROR(Dados!V732),\"-\",Dados!V732)","v":""},{"$f":"IF(ISERROR(Dados!W732),\"-\",Dados!W732)","v":""},{"$f":"IF(ISERROR(Dados!X732),\"-\",Dados!X732)","v":""},{"$f":"IF(ISERROR(Dados!Y732),\"-\",Dados!Y732)","v":""},{"$f":"IF(ISERROR(Dados!Z732),\"-\",Dados!Z732)","v":""},{"$f":"IF(ISERROR(Dados!AA732),\"-\",Dados!AA732)","v":""},{"$f":"IF(ISERROR(Dados!AB732),\"-\",Dados!AB732)","v":""},{"$f":"IF(ISERROR(Dados!AC732),\"-\",Dados!AC732)","v":""},{"$f":"IF(ISERROR(Dados!AD732),\"-\",Dados!AD732)","v":""},{"$f":"IF(ISERROR(Dados!AE732),\"-\",Dados!AE732)","v":""},{"$f":"IF(ISERROR(Dados!AF732),\"-\",Dados!AF732)","v":""},{"$f":"IF(ISERROR(Dados!AG732),\"-\",Dados!AG732)","v":""}]
[{"$f":"IF(ISERROR(Dados!A733),\"-\",Dados!A733)","v":""},{"$f":"IF(ISERROR(Dados!B733),\"-\",Dados!B733)","v":""},{"$f":"IF(ISERROR(Dados!C733),\"-\",Dados!C733)","v":""},{"$f":"IF(ISERROR(Dados!D733),\"-\",Dados!D733)","v":""},{"$f":"IF(ISERROR(Dados!E733),\"-\",Dados!E733)","v":""},{"$f":"IF(ISERROR(Dados!F733),\"-\",Dados!F733)","v":""},{"$f":"IF(ISERROR(Dados!G733),\"-\",Dados!G733)","v":""},{"$f":"IF(ISERROR(Dados!H733),\"-\",Dados!H733)","v":""},{"$f":"IF(ISERROR(Dados!I733),\"-\",Dados!I733)","v":""},{"$f":"IF(ISERROR(Dados!J733),\"-\",Dados!J733)","v":""},{"$f":"IF(ISERROR(Dados!K733),\"-\",Dados!K733)","v":""},{"$f":"IF(ISERROR(Dados!L733),\"-\",Dados!L733)","v":""},{"$f":"IF(ISERROR(Dados!M733),\"-\",Dados!M733)","v":""},{"$f":"IF(ISERROR(Dados!N733),\"-\",Dados!N733)","v":""},{"$f":"IF(ISERROR(Dados!O733),\"-\",Dados!O733)","v":""},{"$f":"IF(ISERROR(Dados!P733),\"-\",Dados!P733)","v":""},{"$f":"IF(ISERROR(Dados!Q733),\"-\",Dados!Q733)","v":""},{"$f":"IF(ISERROR(Dados!R733),\"-\",Dados!R733)","v":""},{"$f":"IF(ISERROR(Dados!S733),\"-\",Dados!S733)","v":""},{"$f":"IF(ISERROR(Dados!T733),\"-\",Dados!T733)","v":""},{"$f":"IF(ISERROR(Dados!U733),\"-\",Dados!U733)","v":""},{"$f":"IF(ISERROR(Dados!V733),\"-\",Dados!V733)","v":""},{"$f":"IF(ISERROR(Dados!W733),\"-\",Dados!W733)","v":""},{"$f":"IF(ISERROR(Dados!X733),\"-\",Dados!X733)","v":""},{"$f":"IF(ISERROR(Dados!Y733),\"-\",Dados!Y733)","v":""},{"$f":"IF(ISERROR(Dados!Z733),\"-\",Dados!Z733)","v":""},{"$f":"IF(ISERROR(Dados!AA733),\"-\",Dados!AA733)","v":""},{"$f":"IF(ISERROR(Dados!AB733),\"-\",Dados!AB733)","v":""},{"$f":"IF(ISERROR(Dados!AC733),\"-\",Dados!AC733)","v":""},{"$f":"IF(ISERROR(Dados!AD733),\"-\",Dados!AD733)","v":""},{"$f":"IF(ISERROR(Dados!AE733),\"-\",Dados!AE733)","v":""},{"$f":"IF(ISERROR(Dados!AF733),\"-\",Dados!AF733)","v":""},{"$f":"IF(ISERROR(Dados!AG733),\"-\",Dados!AG733)","v":""}]
[{"$f":"IF(ISERROR(Dados!A734),\"-\",Dados!A734)","v":""},{"$f":"IF(ISERROR(Dados!B734),\"-\",Dados!B734)","v":""},{"$f":"IF(ISERROR(Dados!C734),\"-\",Dados!C734)","v":""},{"$f":"IF(ISERROR(Dados!D734),\"-\",Dados!D734)","v":""},{"$f":"IF(ISERROR(Dados!E734),\"-\",Dados!E734)","v":""},{"$f":"IF(ISERROR(Dados!F734),\"-\",Dados!F734)","v":""},{"$f":"IF(ISERROR(Dados!G734),\"-\",Dados!G734)","v":""},{"$f":"IF(ISERROR(Dados!H734),\"-\",Dados!H734)","v":""},{"$f":"IF(ISERROR(Dados!I734),\"-\",Dados!I734)","v":""},{"$f":"IF(ISERROR(Dados!J734),\"-\",Dados!J734)","v":""},{"$f":"IF(ISERROR(Dados!K734),\"-\",Dados!K734)","v":""},{"$f":"IF(ISERROR(Dados!L734),\"-\",Dados!L734)","v":""},{"$f":"IF(ISERROR(Dados!M734),\"-\",Dados!M734)","v":""},{"$f":"IF(ISERROR(Dados!N734),\"-\",Dados!N734)","v":""},{"$f":"IF(ISERROR(Dados!O734),\"-\",Dados!O734)","v":""},{"$f":"IF(ISERROR(Dados!P734),\"-\",Dados!P734)","v":""},{"$f":"IF(ISERROR(Dados!Q734),\"-\",Dados!Q734)","v":""},{"$f":"IF(ISERROR(Dados!R734),\"-\",Dados!R734)","v":""},{"$f":"IF(ISERROR(Dados!S734),\"-\",Dados!S734)","v":""},{"$f":"IF(ISERROR(Dados!T734),\"-\",Dados!T734)","v":""},{"$f":"IF(ISERROR(Dados!U734),\"-\",Dados!U734)","v":""},{"$f":"IF(ISERROR(Dados!V734),\"-\",Dados!V734)","v":""},{"$f":"IF(ISERROR(Dados!W734),\"-\",Dados!W734)","v":""},{"$f":"IF(ISERROR(Dados!X734),\"-\",Dados!X734)","v":""},{"$f":"IF(ISERROR(Dados!Y734),\"-\",Dados!Y734)","v":""},{"$f":"IF(ISERROR(Dados!Z734),\"-\",Dados!Z734)","v":""},{"$f":"IF(ISERROR(Dados!AA734),\"-\",Dados!AA734)","v":""},{"$f":"IF(ISERROR(Dados!AB734),\"-\",Dados!AB734)","v":""},{"$f":"IF(ISERROR(Dados!AC734),\"-\",Dados!AC734)","v":""},{"$f":"IF(ISERROR(Dados!AD734),\"-\",Dados!AD734)","v":""},{"$f":"IF(ISERROR(Dados!AE734),\"-\",Dados!AE734)","v":""},{"$f":"IF(ISERROR(Dados!AF734),\"-\",Dados!AF734)","v":""},{"$f":"IF(ISERROR(Dados!AG734),\"-\",Dados!AG734)","v":""}]
[{"$f":"IF(ISERROR(Dados!A735),\"-\",Dados!A735)","v":""},{"$f":"IF(ISERROR(Dados!B735),\"-\",Dados!B735)","v":""},{"$f":"IF(ISERROR(Dados!C735),\"-\",Dados!C735)","v":""},{"$f":"IF(ISERROR(Dados!D735),\"-\",Dados!D735)","v":""},{"$f":"IF(ISERROR(Dados!E735),\"-\",Dados!E735)","v":""},{"$f":"IF(ISERROR(Dados!F735),\"-\",Dados!F735)","v":""},{"$f":"IF(ISERROR(Dados!G735),\"-\",Dados!G735)","v":""},{"$f":"IF(ISERROR(Dados!H735),\"-\",Dados!H735)","v":""},{"$f":"IF(ISERROR(Dados!I735),\"-\",Dados!I735)","v":""},{"$f":"IF(ISERROR(Dados!J735),\"-\",Dados!J735)","v":""},{"$f":"IF(ISERROR(Dados!K735),\"-\",Dados!K735)","v":""},{"$f":"IF(ISERROR(Dados!L735),\"-\",Dados!L735)","v":""},{"$f":"IF(ISERROR(Dados!M735),\"-\",Dados!M735)","v":""},{"$f":"IF(ISERROR(Dados!N735),\"-\",Dados!N735)","v":""},{"$f":"IF(ISERROR(Dados!O735),\"-\",Dados!O735)","v":""},{"$f":"IF(ISERROR(Dados!P735),\"-\",Dados!P735)","v":""},{"$f":"IF(ISERROR(Dados!Q735),\"-\",Dados!Q735)","v":""},{"$f":"IF(ISERROR(Dados!R735),\"-\",Dados!R735)","v":""},{"$f":"IF(ISERROR(Dados!S735),\"-\",Dados!S735)","v":""},{"$f":"IF(ISERROR(Dados!T735),\"-\",Dados!T735)","v":""},{"$f":"IF(ISERROR(Dados!U735),\"-\",Dados!U735)","v":""},{"$f":"IF(ISERROR(Dados!V735),\"-\",Dados!V735)","v":""},{"$f":"IF(ISERROR(Dados!W735),\"-\",Dados!W735)","v":""},{"$f":"IF(ISERROR(Dados!X735),\"-\",Dados!X735)","v":""},{"$f":"IF(ISERROR(Dados!Y735),\"-\",Dados!Y735)","v":""},{"$f":"IF(ISERROR(Dados!Z735),\"-\",Dados!Z735)","v":""},{"$f":"IF(ISERROR(Dados!AA735),\"-\",Dados!AA735)","v":""},{"$f":"IF(ISERROR(Dados!AB735),\"-\",Dados!AB735)","v":""},{"$f":"IF(ISERROR(Dados!AC735),\"-\",Dados!AC735)","v":""},{"$f":"IF(ISERROR(Dados!AD735),\"-\",Dados!AD735)","v":""},{"$f":"IF(ISERROR(Dados!AE735),\"-\",Dados!AE735)","v":""},{"$f":"IF(ISERROR(Dados!AF735),\"-\",Dados!AF735)","v":""},{"$f":"IF(ISERROR(Dados!AG735),\"-\",Dados!AG735)","v":""}]
[{"$f":"IF(ISERROR(Dados!A736),\"-\",Dados!A736)","v":""},{"$f":"IF(ISERROR(Dados!B736),\"-\",Dados!B736)","v":""},{"$f":"IF(ISERROR(Dados!C736),\"-\",Dados!C736)","v":""},{"$f":"IF(ISERROR(Dados!D736),\"-\",Dados!D736)","v":""},{"$f":"IF(ISERROR(Dados!E736),\"-\",Dados!E736)","v":""},{"$f":"IF(ISERROR(Dados!F736),\"-\",Dados!F736)","v":""},{"$f":"IF(ISERROR(Dados!G736),\"-\",Dados!G736)","v":""},{"$f":"IF(ISERROR(Dados!H736),\"-\",Dados!H736)","v":""},{"$f":"IF(ISERROR(Dados!I736),\"-\",Dados!I736)","v":""},{"$f":"IF(ISERROR(Dados!J736),\"-\",Dados!J736)","v":""},{"$f":"IF(ISERROR(Dados!K736),\"-\",Dados!K736)","v":""},{"$f":"IF(ISERROR(Dados!L736),\"-\",Dados!L736)","v":""},{"$f":"IF(ISERROR(Dados!M736),\"-\",Dados!M736)","v":""},{"$f":"IF(ISERROR(Dados!N736),\"-\",Dados!N736)","v":""},{"$f":"IF(ISERROR(Dados!O736),\"-\",Dados!O736)","v":""},{"$f":"IF(ISERROR(Dados!P736),\"-\",Dados!P736)","v":""},{"$f":"IF(ISERROR(Dados!Q736),\"-\",Dados!Q736)","v":""},{"$f":"IF(ISERROR(Dados!R736),\"-\",Dados!R736)","v":""},{"$f":"IF(ISERROR(Dados!S736),\"-\",Dados!S736)","v":""},{"$f":"IF(ISERROR(Dados!T736),\"-\",Dados!T736)","v":""},{"$f":"IF(ISERROR(Dados!U736),\"-\",Dados!U736)","v":""},{"$f":"IF(ISERROR(Dados!V736),\"-\",Dados!V736)","v":""},{"$f":"IF(ISERROR(Dados!W736),\"-\",Dados!W736)","v":""},{"$f":"IF(ISERROR(Dados!X736),\"-\",Dados!X736)","v":""},{"$f":"IF(ISERROR(Dados!Y736),\"-\",Dados!Y736)","v":""},{"$f":"IF(ISERROR(Dados!Z736),\"-\",Dados!Z736)","v":""},{"$f":"IF(ISERROR(Dados!AA736),\"-\",Dados!AA736)","v":""},{"$f":"IF(ISERROR(Dados!AB736),\"-\",Dados!AB736)","v":""},{"$f":"IF(ISERROR(Dados!AC736),\"-\",Dados!AC736)","v":""},{"$f":"IF(ISERROR(Dados!AD736),\"-\",Dados!AD736)","v":""},{"$f":"IF(ISERROR(Dados!AE736),\"-\",Dados!AE736)","v":""},{"$f":"IF(ISERROR(Dados!AF736),\"-\",Dados!AF736)","v":""},{"$f":"IF(ISERROR(Dados!AG736),\"-\",Dados!AG736)","v":""}]
[{"$f":"IF(ISERROR(Dados!A737),\"-\",Dados!A737)","v":""},{"$f":"IF(ISERROR(Dados!B737),\"-\",Dados!B737)","v":""},{"$f":"IF(ISERROR(Dados!C737),\"-\",Dados!C737)","v":""},{"$f":"IF(ISERROR(Dados!D737),\"-\",Dados!D737)","v":""},{"$f":"IF(ISERROR(Dados!E737),\"-\",Dados!E737)","v":""},{"$f":"IF(ISERROR(Dados!F737),\"-\",Dados!F737)","v":""},{"$f":"IF(ISERROR(Dados!G737),\"-\",Dados!G737)","v":""},{"$f":"IF(ISERROR(Dados!H737),\"-\",Dados!H737)","v":""},{"$f":"IF(ISERROR(Dados!I737),\"-\",Dados!I737)","v":""},{"$f":"IF(ISERROR(Dados!J737),\"-\",Dados!J737)","v":""},{"$f":"IF(ISERROR(Dados!K737),\"-\",Dados!K737)","v":""},{"$f":"IF(ISERROR(Dados!L737),\"-\",Dados!L737)","v":""},{"$f":"IF(ISERROR(Dados!M737),\"-\",Dados!M737)","v":""},{"$f":"IF(ISERROR(Dados!N737),\"-\",Dados!N737)","v":""},{"$f":"IF(ISERROR(Dados!O737),\"-\",Dados!O737)","v":""},{"$f":"IF(ISERROR(Dados!P737),\"-\",Dados!P737)","v":""},{"$f":"IF(ISERROR(Dados!Q737),\"-\",Dados!Q737)","v":""},{"$f":"IF(ISERROR(Dados!R737),\"-\",Dados!R737)","v":""},{"$f":"IF(ISERROR(Dados!S737),\"-\",Dados!S737)","v":""},{"$f":"IF(ISERROR(Dados!T737),\"-\",Dados!T737)","v":""},{"$f":"IF(ISERROR(Dados!U737),\"-\",Dados!U737)","v":""},{"$f":"IF(ISERROR(Dados!V737),\"-\",Dados!V737)","v":""},{"$f":"IF(ISERROR(Dados!W737),\"-\",Dados!W737)","v":""},{"$f":"IF(ISERROR(Dados!X737),\"-\",Dados!X737)","v":""},{"$f":"IF(ISERROR(Dados!Y737),\"-\",Dados!Y737)","v":""},{"$f":"IF(ISERROR(Dados!Z737),\"-\",Dados!Z737)","v":""},{"$f":"IF(ISERROR(Dados!AA737),\"-\",Dados!AA737)","v":""},{"$f":"IF(ISERROR(Dados!AB737),\"-\",Dados!AB737)","v":""},{"$f":"IF(ISERROR(Dados!AC737),\"-\",Dados!AC737)","v":""},{"$f":"IF(ISERROR(Dados!AD737),\"-\",Dados!AD737)","v":""},{"$f":"IF(ISERROR(Dados!AE737),\"-\",Dados!AE737)","v":""},{"$f":"IF(ISERROR(Dados!AF737),\"-\",Dados!AF737)","v":""},{"$f":"IF(ISERROR(Dados!AG737),\"-\",Dados!AG737)","v":""}]
[{"$f":"IF(ISERROR(Dados!A738),\"-\",Dados!A738)","v":""},{"$f":"IF(ISERROR(Dados!B738),\"-\",Dados!B738)","v":""},{"$f":"IF(ISERROR(Dados!C738),\"-\",Dados!C738)","v":""},{"$f":"IF(ISERROR(Dados!D738),\"-\",Dados!D738)","v":""},{"$f":"IF(ISERROR(Dados!E738),\"-\",Dados!E738)","v":""},{"$f":"IF(ISERROR(Dados!F738),\"-\",Dados!F738)","v":""},{"$f":"IF(ISERROR(Dados!G738),\"-\",Dados!G738)","v":""},{"$f":"IF(ISERROR(Dados!H738),\"-\",Dados!H738)","v":""},{"$f":"IF(ISERROR(Dados!I738),\"-\",Dados!I738)","v":""},{"$f":"IF(ISERROR(Dados!J738),\"-\",Dados!J738)","v":""},{"$f":"IF(ISERROR(Dados!K738),\"-\",Dados!K738)","v":""},{"$f":"IF(ISERROR(Dados!L738),\"-\",Dados!L738)","v":""},{"$f":"IF(ISERROR(Dados!M738),\"-\",Dados!M738)","v":""},{"$f":"IF(ISERROR(Dados!N738),\"-\",Dados!N738)","v":""},{"$f":"IF(ISERROR(Dados!O738),\"-\",Dados!O738)","v":""},{"$f":"IF(ISERROR(Dados!P738),\"-\",Dados!P738)","v":""},{"$f":"IF(ISERROR(Dados!Q738),\"-\",Dados!Q738)","v":""},{"$f":"IF(ISERROR(Dados!R738),\"-\",Dados!R738)","v":""},{"$f":"IF(ISERROR(Dados!S738),\"-\",Dados!S738)","v":""},{"$f":"IF(ISERROR(Dados!T738),\"-\",Dados!T738)","v":""},{"$f":"IF(ISERROR(Dados!U738),\"-\",Dados!U738)","v":""},{"$f":"IF(ISERROR(Dados!V738),\"-\",Dados!V738)","v":""},{"$f":"IF(ISERROR(Dados!W738),\"-\",Dados!W738)","v":""},{"$f":"IF(ISERROR(Dados!X738),\"-\",Dados!X738)","v":""},{"$f":"IF(ISERROR(Dados!Y738),\"-\",Dados!Y738)","v":""},{"$f":"IF(ISERROR(Dados!Z738),\"-\",Dados!Z738)","v":""},{"$f":"IF(ISERROR(Dados!AA738),\"-\",Dados!AA738)","v":""},{"$f":"IF(ISERROR(Dados!AB738),\"-\",Dados!AB738)","v":""},{"$f":"IF(ISERROR(Dados!AC738),\"-\",Dados!AC738)","v":""},{"$f":"IF(ISERROR(Dados!AD738),\"-\",Dados!AD738)","v":""},{"$f":"IF(ISERROR(Dados!AE738),\"-\",Dados!AE738)","v":""},{"$f":"IF(ISERROR(Dados!AF738),\"-\",Dados!AF738)","v":""},{"$f":"IF(ISERROR(Dados!AG738),\"-\",Dados!AG738)","v":""}]
[{"$f":"IF(ISERROR(Dados!A739),\"-\",Dados!A739)","v":""},{"$f":"IF(ISERROR(Dados!B739),\"-\",Dados!B739)","v":""},{"$f":"IF(ISERROR(Dados!C739),\"-\",Dados!C739)","v":""},{"$f":"IF(ISERROR(Dados!D739),\"-\",Dados!D739)","v":""},{"$f":"IF(ISERROR(Dados!E739),\"-\",Dados!E739)","v":""},{"$f":"IF(ISERROR(Dados!F739),\"-\",Dados!F739)","v":""},{"$f":"IF(ISERROR(Dados!G739),\"-\",Dados!G739)","v":""},{"$f":"IF(ISERROR(Dados!H739),\"-\",Dados!H739)","v":""},{"$f":"IF(ISERROR(Dados!I739),\"-\",Dados!I739)","v":""},{"$f":"IF(ISERROR(Dados!J739),\"-\",Dados!J739)","v":""},{"$f":"IF(ISERROR(Dados!K739),\"-\",Dados!K739)","v":""},{"$f":"IF(ISERROR(Dados!L739),\"-\",Dados!L739)","v":""},{"$f":"IF(ISERROR(Dados!M739),\"-\",Dados!M739)","v":""},{"$f":"IF(ISERROR(Dados!N739),\"-\",Dados!N739)","v":""},{"$f":"IF(ISERROR(Dados!O739),\"-\",Dados!O739)","v":""},{"$f":"IF(ISERROR(Dados!P739),\"-\",Dados!P739)","v":""},{"$f":"IF(ISERROR(Dados!Q739),\"-\",Dados!Q739)","v":""},{"$f":"IF(ISERROR(Dados!R739),\"-\",Dados!R739)","v":""},{"$f":"IF(ISERROR(Dados!S739),\"-\",Dados!S739)","v":""},{"$f":"IF(ISERROR(Dados!T739),\"-\",Dados!T739)","v":""},{"$f":"IF(ISERROR(Dados!U739),\"-\",Dados!U739)","v":""},{"$f":"IF(ISERROR(Dados!V739),\"-\",Dados!V739)","v":""},{"$f":"IF(ISERROR(Dados!W739),\"-\",Dados!W739)","v":""},{"$f":"IF(ISERROR(Dados!X739),\"-\",Dados!X739)","v":""},{"$f":"IF(ISERROR(Dados!Y739),\"-\",Dados!Y739)","v":""},{"$f":"IF(ISERROR(Dados!Z739),\"-\",Dados!Z739)","v":""},{"$f":"IF(ISERROR(Dados!AA739),\"-\",Dados!AA739)","v":""},{"$f":"IF(ISERROR(Dados!AB739),\"-\",Dados!AB739)","v":""},{"$f":"IF(ISERROR(Dados!AC739),\"-\",Dados!AC739)","v":""},{"$f":"IF(ISERROR(Dados!AD739),\"-\",Dados!AD739)","v":""},{"$f":"IF(ISERROR(Dados!AE739),\"-\",Dados!AE739)","v":""},{"$f":"IF(ISERROR(Dados!AF739),\"-\",Dados!AF739)","v":""},{"$f":"IF(ISERROR(Dados!AG739),\"-\",Dados!AG739)","v":""}]
[{"$f":"IF(ISERROR(Dados!A740),\"-\",Dados!A740)","v":""},{"$f":"IF(ISERROR(Dados!B740),\"-\",Dados!B740)","v":""},{"$f":"IF(ISERROR(Dados!C740),\"-\",Dados!C740)","v":""},{"$f":"IF(ISERROR(Dados!D740),\"-\",Dados!D740)","v":""},{"$f":"IF(ISERROR(Dados!E740),\"-\",Dados!E740)","v":""},{"$f":"IF(ISERROR(Dados!F740),\"-\",Dados!F740)","v":""},{"$f":"IF(ISERROR(Dados!G740),\"-\",Dados!G740)","v":""},{"$f":"IF(ISERROR(Dados!H740),\"-\",Dados!H740)","v":""},{"$f":"IF(ISERROR(Dados!I740),\"-\",Dados!I740)","v":""},{"$f":"IF(ISERROR(Dados!J740),\"-\",Dados!J740)","v":""},{"$f":"IF(ISERROR(Dados!K740),\"-\",Dados!K740)","v":""},{"$f":"IF(ISERROR(Dados!L740),\"-\",Dados!L740)","v":""},{"$f":"IF(ISERROR(Dados!M740),\"-\",Dados!M740)","v":""},{"$f":"IF(ISERROR(Dados!N740),\"-\",Dados!N740)","v":""},{"$f":"IF(ISERROR(Dados!O740),\"-\",Dados!O740)","v":""},{"$f":"IF(ISERROR(Dados!P740),\"-\",Dados!P740)","v":""},{"$f":"IF(ISERROR(Dados!Q740),\"-\",Dados!Q740)","v":""},{"$f":"IF(ISERROR(Dados!R740),\"-\",Dados!R740)","v":""},{"$f":"IF(ISERROR(Dados!S740),\"-\",Dados!S740)","v":""},{"$f":"IF(ISERROR(Dados!T740),\"-\",Dados!T740)","v":""},{"$f":"IF(ISERROR(Dados!U740),\"-\",Dados!U740)","v":""},{"$f":"IF(ISERROR(Dados!V740),\"-\",Dados!V740)","v":""},{"$f":"IF(ISERROR(Dados!W740),\"-\",Dados!W740)","v":""},{"$f":"IF(ISERROR(Dados!X740),\"-\",Dados!X740)","v":""},{"$f":"IF(ISERROR(Dados!Y740),\"-\",Dados!Y740)","v":""},{"$f":"IF(ISERROR(Dados!Z740),\"-\",Dados!Z740)","v":""},{"$f":"IF(ISERROR(Dados!AA740),\"-\",Dados!AA740)","v":""},{"$f":"IF(ISERROR(Dados!AB740),\"-\",Dados!AB740)","v":""},{"$f":"IF(ISERROR(Dados!AC740),\"-\",Dados!AC740)","v":""},{"$f":"IF(ISERROR(Dados!AD740),\"-\",Dados!AD740)","v":""},{"$f":"IF(ISERROR(Dados!AE740),\"-\",Dados!AE740)","v":""},{"$f":"IF(ISERROR(Dados!AF740),\"-\",Dados!AF740)","v":""},{"$f":"IF(ISERROR(Dados!AG740),\"-\",Dados!AG740)","v":""}]
[{"$f":"IF(ISERROR(Dados!A741),\"-\",Dados!A741)","v":""},{"$f":"IF(ISERROR(Dados!B741),\"-\",Dados!B741)","v":""},{"$f":"IF(ISERROR(Dados!C741),\"-\",Dados!C741)","v":""},{"$f":"IF(ISERROR(Dados!D741),\"-\",Dados!D741)","v":""},{"$f":"IF(ISERROR(Dados!E741),\"-\",Dados!E741)","v":""},{"$f":"IF(ISERROR(Dados!F741),\"-\",Dados!F741)","v":""},{"$f":"IF(ISERROR(Dados!G741),\"-\",Dados!G741)","v":""},{"$f":"IF(ISERROR(Dados!H741),\"-\",Dados!H741)","v":""},{"$f":"IF(ISERROR(Dados!I741),\"-\",Dados!I741)","v":""},{"$f":"IF(ISERROR(Dados!J741),\"-\",Dados!J741)","v":""},{"$f":"IF(ISERROR(Dados!K741),\"-\",Dados!K741)","v":""},{"$f":"IF(ISERROR(Dados!L741),\"-\",Dados!L741)","v":""},{"$f":"IF(ISERROR(Dados!M741),\"-\",Dados!M741)","v":""},{"$f":"IF(ISERROR(Dados!N741),\"-\",Dados!N741)","v":""},{"$f":"IF(ISERROR(Dados!O741),\"-\",Dados!O741)","v":""},{"$f":"IF(ISERROR(Dados!P741),\"-\",Dados!P741)","v":""},{"$f":"IF(ISERROR(Dados!Q741),\"-\",Dados!Q741)","v":""},{"$f":"IF(ISERROR(Dados!R741),\"-\",Dados!R741)","v":""},{"$f":"IF(ISERROR(Dados!S741),\"-\",Dados!S741)","v":""},{"$f":"IF(ISERROR(Dados!T741),\"-\",Dados!T741)","v":""},{"$f":"IF(ISERROR(Dados!U741),\"-\",Dados!U741)","v":""},{"$f":"IF(ISERROR(Dados!V741),\"-\",Dados!V741)","v":""},{"$f":"IF(ISERROR(Dados!W741),\"-\",Dados!W741)","v":""},{"$f":"IF(ISERROR(Dados!X741),\"-\",Dados!X741)","v":""},{"$f":"IF(ISERROR(Dados!Y741),\"-\",Dados!Y741)","v":""},{"$f":"IF(ISERROR(Dados!Z741),\"-\",Dados!Z741)","v":""},{"$f":"IF(ISERROR(Dados!AA741),\"-\",Dados!AA741)","v":""},{"$f":"IF(ISERROR(Dados!AB741),\"-\",Dados!AB741)","v":""},{"$f":"IF(ISERROR(Dados!AC741),\"-\",Dados!AC741)","v":""},{"$f":"IF(ISERROR(Dados!AD741),\"-\",Dados!AD741)","v":""},{"$f":"IF(ISERROR(Dados!AE741),\"-\",Dados!AE741)","v":""},{"$f":"IF(ISERROR(Dados!AF741),\"-\",Dados!AF741)","v":""},{"$f":"IF(ISERROR(Dados!AG741),\"-\",Dados!AG741)","v":""}]
[{"$f":"IF(ISERROR(Dados!A742),\"-\",Dados!A742)","v":""},{"$f":"IF(ISERROR(Dados!B742),\"-\",Dados!B742)","v":""},{"$f":"IF(ISERROR(Dados!C742),\"-\",Dados!C742)","v":""},{"$f":"IF(ISERROR(Dados!D742),\"-\",Dados!D742)","v":""},{"$f":"IF(ISERROR(Dados!E742),\"-\",Dados!E742)","v":""},{"$f":"IF(ISERROR(Dados!F742),\"-\",Dados!F742)","v":""},{"$f":"IF(ISERROR(Dados!G742),\"-\",Dados!G742)","v":""},{"$f":"IF(ISERROR(Dados!H742),\"-\",Dados!H742)","v":""},{"$f":"IF(ISERROR(Dados!I742),\"-\",Dados!I742)","v":""},{"$f":"IF(ISERROR(Dados!J742),\"-\",Dados!J742)","v":""},{"$f":"IF(ISERROR(Dados!K742),\"-\",Dados!K742)","v":""},{"$f":"IF(ISERROR(Dados!L742),\"-\",Dados!L742)","v":""},{"$f":"IF(ISERROR(Dados!M742),\"-\",Dados!M742)","v":""},{"$f":"IF(ISERROR(Dados!N742),\"-\",Dados!N742)","v":""},{"$f":"IF(ISERROR(Dados!O742),\"-\",Dados!O742)","v":""},{"$f":"IF(ISERROR(Dados!P742),\"-\",Dados!P742)","v":""},{"$f":"IF(ISERROR(Dados!Q742),\"-\",Dados!Q742)","v":""},{"$f":"IF(ISERROR(Dados!R742),\"-\",Dados!R742)","v":""},{"$f":"IF(ISERROR(Dados!S742),\"-\",Dados!S742)","v":""},{"$f":"IF(ISERROR(Dados!T742),\"-\",Dados!T742)","v":""},{"$f":"IF(ISERROR(Dados!U742),\"-\",Dados!U742)","v":""},{"$f":"IF(ISERROR(Dados!V742),\"-\",Dados!V742)","v":""},{"$f":"IF(ISERROR(Dados!W742),\"-\",Dados!W742)","v":""},{"$f":"IF(ISERROR(Dados!X742),\"-\",Dados!X742)","v":""},{"$f":"IF(ISERROR(Dados!Y742),\"-\",Dados!Y742)","v":""},{"$f":"IF(ISERROR(Dados!Z742),\"-\",Dados!Z742)","v":""},{"$f":"IF(ISERROR(Dados!AA742),\"-\",Dados!AA742)","v":""},{"$f":"IF(ISERROR(Dados!AB742),\"-\",Dados!AB742)","v":""},{"$f":"IF(ISERROR(Dados!AC742),\"-\",Dados!AC742)","v":""},{"$f":"IF(ISERROR(Dados!AD742),\"-\",Dados!AD742)","v":""},{"$f":"IF(ISERROR(Dados!AE742),\"-\",Dados!AE742)","v":""},{"$f":"IF(ISERROR(Dados!AF742),\"-\",Dados!AF742)","v":""},{"$f":"IF(ISERROR(Dados!AG742),\"-\",Dados!AG742)","v":""}]
[{"$f":"IF(ISERROR(Dados!A743),\"-\",Dados!A743)","v":""},{"$f":"IF(ISERROR(Dados!B743),\"-\",Dados!B743)","v":""},{"$f":"IF(ISERROR(Dados!C743),\"-\",Dados!C743)","v":""},{"$f":"IF(ISERROR(Dados!D743),\"-\",Dados!D743)","v":""},{"$f":"IF(ISERROR(Dados!E743),\"-\",Dados!E743)","v":""},{"$f":"IF(ISERROR(Dados!F743),\"-\",Dados!F743)","v":""},{"$f":"IF(ISERROR(Dados!G743),\"-\",Dados!G743)","v":""},{"$f":"IF(ISERROR(Dados!H743),\"-\",Dados!H743)","v":""},{"$f":"IF(ISERROR(Dados!I743),\"-\",Dados!I743)","v":""},{"$f":"IF(ISERROR(Dados!J743),\"-\",Dados!J743)","v":""},{"$f":"IF(ISERROR(Dados!K743),\"-\",Dados!K743)","v":""},{"$f":"IF(ISERROR(Dados!L743),\"-\",Dados!L743)","v":""},{"$f":"IF(ISERROR(Dados!M743),\"-\",Dados!M743)","v":""},{"$f":"IF(ISERROR(Dados!N743),\"-\",Dados!N743)","v":""},{"$f":"IF(ISERROR(Dados!O743),\"-\",Dados!O743)","v":""},{"$f":"IF(ISERROR(Dados!P743),\"-\",Dados!P743)","v":""},{"$f":"IF(ISERROR(Dados!Q743),\"-\",Dados!Q743)","v":""},{"$f":"IF(ISERROR(Dados!R743),\"-\",Dados!R743)","v":""},{"$f":"IF(ISERROR(Dados!S743),\"-\",Dados!S743)","v":""},{"$f":"IF(ISERROR(Dados!T743),\"-\",Dados!T743)","v":""},{"$f":"IF(ISERROR(Dados!U743),\"-\",Dados!U743)","v":""},{"$f":"IF(ISERROR(Dados!V743),\"-\",Dados!V743)","v":""},{"$f":"IF(ISERROR(Dados!W743),\"-\",Dados!W743)","v":""},{"$f":"IF(ISERROR(Dados!X743),\"-\",Dados!X743)","v":""},{"$f":"IF(ISERROR(Dados!Y743),\"-\",Dados!Y743)","v":""},{"$f":"IF(ISERROR(Dados!Z743),\"-\",Dados!Z743)","v":""},{"$f":"IF(ISERROR(Dados!AA743),\"-\",Dados!AA743)","v":""},{"$f":"IF(ISERROR(Dados!AB743),\"-\",Dados!AB743)","v":""},{"$f":"IF(ISERROR(Dados!AC743),\"-\",Dados!AC743)","v":""},{"$f":"IF(ISERROR(Dados!AD743),\"-\",Dados!AD743)","v":""},{"$f":"IF(ISERROR(Dados!AE743),\"-\",Dados!AE743)","v":""},{"$f":"IF(ISERROR(Dados!AF743),\"-\",Dados!AF743)","v":""},{"$f":"IF(ISERROR(Dados!AG743),\"-\",Dados!AG743)","v":""}]
[{"$f":"IF(ISERROR(Dados!A744),\"-\",Dados!A744)","v":""},{"$f":"IF(ISERROR(Dados!B744),\"-\",Dados!B744)","v":""},{"$f":"IF(ISERROR(Dados!C744),\"-\",Dados!C744)","v":""},{"$f":"IF(ISERROR(Dados!D744),\"-\",Dados!D744)","v":""},{"$f":"IF(ISERROR(Dados!E744),\"-\",Dados!E744)","v":""},{"$f":"IF(ISERROR(Dados!F744),\"-\",Dados!F744)","v":""},{"$f":"IF(ISERROR(Dados!G744),\"-\",Dados!G744)","v":""},{"$f":"IF(ISERROR(Dados!H744),\"-\",Dados!H744)","v":""},{"$f":"IF(ISERROR(Dados!I744),\"-\",Dados!I744)","v":""},{"$f":"IF(ISERROR(Dados!J744),\"-\",Dados!J744)","v":""},{"$f":"IF(ISERROR(Dados!K744),\"-\",Dados!K744)","v":""},{"$f":"IF(ISERROR(Dados!L744),\"-\",Dados!L744)","v":""},{"$f":"IF(ISERROR(Dados!M744),\"-\",Dados!M744)","v":""},{"$f":"IF(ISERROR(Dados!N744),\"-\",Dados!N744)","v":""},{"$f":"IF(ISERROR(Dados!O744),\"-\",Dados!O744)","v":""},{"$f":"IF(ISERROR(Dados!P744),\"-\",Dados!P744)","v":""},{"$f":"IF(ISERROR(Dados!Q744),\"-\",Dados!Q744)","v":""},{"$f":"IF(ISERROR(Dados!R744),\"-\",Dados!R744)","v":""},{"$f":"IF(ISERROR(Dados!S744),\"-\",Dados!S744)","v":""},{"$f":"IF(ISERROR(Dados!T744),\"-\",Dados!T744)","v":""},{"$f":"IF(ISERROR(Dados!U744),\"-\",Dados!U744)","v":""},{"$f":"IF(ISERROR(Dados!V744),\"-\",Dados!V744)","v":""},{"$f":"IF(ISERROR(Dados!W744),\"-\",Dados!W744)","v":""},{"$f":"IF(ISERROR(Dados!X744),\"-\",Dados!X744)","v":""},{"$f":"IF(ISERROR(Dados!Y744),\"-\",Dados!Y744)","v":""},{"$f":"IF(ISERROR(Dados!Z744),\"-\",Dados!Z744)","v":""},{"$f":"IF(ISERROR(Dados!AA744),\"-\",Dados!AA744)","v":""},{"$f":"IF(ISERROR(Dados!AB744),\"-\",Dados!AB744)","v":""},{"$f":"IF(ISERROR(Dados!AC744),\"-\",Dados!AC744)","v":""},{"$f":"IF(ISERROR(Dados!AD744),\"-\",Dados!AD744)","v":""},{"$f":"IF(ISERROR(Dados!AE744),\"-\",Dados!AE744)","v":""},{"$f":"IF(ISERROR(Dados!AF744),\"-\",Dados!AF744)","v":""},{"$f":"IF(ISERROR(Dados!AG744),\"-\",Dados!AG744)","v":""}]
[{"$f":"IF(ISERROR(Dados!A745),\"-\",Dados!A745)","v":""},{"$f":"IF(ISERROR(Dados!B745),\"-\",Dados!B745)","v":""},{"$f":"IF(ISERROR(Dados!C745),\"-\",Dados!C745)","v":""},{"$f":"IF(ISERROR(Dados!D745),\"-\",Dados!D745)","v":""},{"$f":"IF(ISERROR(Dados!E745),\"-\",Dados!E745)","v":""},{"$f":"IF(ISERROR(Dados!F745),\"-\",Dados!F745)","v":""},{"$f":"IF(ISERROR(Dados!G745),\"-\",Dados!G745)","v":""},{"$f":"IF(ISERROR(Dados!H745),\"-\",Dados!H745)","v":""},{"$f":"IF(ISERROR(Dados!I745),\"-\",Dados!I745)","v":""},{"$f":"IF(ISERROR(Dados!J745),\"-\",Dados!J745)","v":""},{"$f":"IF(ISERROR(Dados!K745),\"-\",Dados!K745)","v":""},{"$f":"IF(ISERROR(Dados!L745),\"-\",Dados!L745)","v":""},{"$f":"IF(ISERROR(Dados!M745),\"-\",Dados!M745)","v":""},{"$f":"IF(ISERROR(Dados!N745),\"-\",Dados!N745)","v":""},{"$f":"IF(ISERROR(Dados!O745),\"-\",Dados!O745)","v":""},{"$f":"IF(ISERROR(Dados!P745),\"-\",Dados!P745)","v":""},{"$f":"IF(ISERROR(Dados!Q745),\"-\",Dados!Q745)","v":""},{"$f":"IF(ISERROR(Dados!R745),\"-\",Dados!R745)","v":""},{"$f":"IF(ISERROR(Dados!S745),\"-\",Dados!S745)","v":""},{"$f":"IF(ISERROR(Dados!T745),\"-\",Dados!T745)","v":""},{"$f":"IF(ISERROR(Dados!U745),\"-\",Dados!U745)","v":""},{"$f":"IF(ISERROR(Dados!V745),\"-\",Dados!V745)","v":""},{"$f":"IF(ISERROR(Dados!W745),\"-\",Dados!W745)","v":""},{"$f":"IF(ISERROR(Dados!X745),\"-\",Dados!X745)","v":""},{"$f":"IF(ISERROR(Dados!Y745),\"-\",Dados!Y745)","v":""},{"$f":"IF(ISERROR(Dados!Z745),\"-\",Dados!Z745)","v":""},{"$f":"IF(ISERROR(Dados!AA745),\"-\",Dados!AA745)","v":""},{"$f":"IF(ISERROR(Dados!AB745),\"-\",Dados!AB745)","v":""},{"$f":"IF(ISERROR(Dados!AC745),\"-\",Dados!AC745)","v":""},{"$f":"IF(ISERROR(Dados!AD745),\"-\",Dados!AD745)","v":""},{"$f":"IF(ISERROR(Dados!AE745),\"-\",Dados!AE745)","v":""},{"$f":"IF(ISERROR(Dados!AF745),\"-\",Dados!AF745)","v":""},{"$f":"IF(ISERROR(Dados!AG745),\"-\",Dados!AG745)","v":""}]
[{"$f":"IF(ISERROR(Dados!A746),\"-\",Dados!A746)","v":""},{"$f":"IF(ISERROR(Dados!B746),\"-\",Dados!B746)","v":""},{"$f":"IF(ISERROR(Dados!C746),\"-\",Dados!C746)","v":""},{"$f":"IF(ISERROR(Dados!D746),\"-\",Dados!D746)","v":""},{"$f":"IF(ISERROR(Dados!E746),\"-\",Dados!E746)","v":""},{"$f":"IF(ISERROR(Dados!F746),\"-\",Dados!F746)","v":""},{"$f":"IF(ISERROR(Dados!G746),\"-\",Dados!G746)","v":""},{"$f":"IF(ISERROR(Dados!H746),\"-\",Dados!H746)","v":""},{"$f":"IF(ISERROR(Dados!I746),\"-\",Dados!I746)","v":""},{"$f":"IF(ISERROR(Dados!J746),\"-\",Dados!J746)","v":""},{"$f":"IF(ISERROR(Dados!K746),\"-\",Dados!K746)","v":""},{"$f":"IF(ISERROR(Dados!L746),\"-\",Dados!L746)","v":""},{"$f":"IF(ISERROR(Dados!M746),\"-\",Dados!M746)","v":""},{"$f":"IF(ISERROR(Dados!N746),\"-\",Dados!N746)","v":""},{"$f":"IF(ISERROR(Dados!O746),\"-\",Dados!O746)","v":""},{"$f":"IF(ISERROR(Dados!P746),\"-\",Dados!P746)","v":""},{"$f":"IF(ISERROR(Dados!Q746),\"-\",Dados!Q746)","v":""},{"$f":"IF(ISERROR(Dados!R746),\"-\",Dados!R746)","v":""},{"$f":"IF(ISERROR(Dados!S746),\"-\",Dados!S746)","v":""},{"$f":"IF(ISERROR(Dados!T746),\"-\",Dados!T746)","v":""},{"$f":"IF(ISERROR(Dados!U746),\"-\",Dados!U746)","v":""},{"$f":"IF(ISERROR(Dados!V746),\"-\",Dados!V746)","v":""},{"$f":"IF(ISERROR(Dados!W746),\"-\",Dados!W746)","v":""},{"$f":"IF(ISERROR(Dados!X746),\"-\",Dados!X746)","v":""},{"$f":"IF(ISERROR(Dados!Y746),\"-\",Dados!Y746)","v":""},{"$f":"IF(ISERROR(Dados!Z746),\"-\",Dados!Z746)","v":""},{"$f":"IF(ISERROR(Dados!AA746),\"-\",Dados!AA746)","v":""},{"$f":"IF(ISERROR(Dados!AB746),\"-\",Dados!AB746)","v":""},{"$f":"IF(ISERROR(Dados!AC746),\"-\",Dados!AC746)","v":""},{"$f":"IF(ISERROR(Dados!AD746),\"-\",Dados!AD746)","v":""},{"$f":"IF(ISERROR(Dados!AE746),\"-\",Dados!AE746)","v":""},{"$f":"IF(ISERROR(Dados!AF746),\"-\",Dados!AF746)","v":""},{"$f":"IF(ISERROR(Dados!AG746),\"-\",Dados!AG746)","v":""}]
[{"$f":"IF(ISERROR(Dados!A747),\"-\",Dados!A747)","v":""},{"$f":"IF(ISERROR(Dados!B747),\"-\",Dados!B747)","v":""},{"$f":"IF(ISERROR(Dados!C747),\"-\",Dados!C747)","v":""},{"$f":"IF(ISERROR(Dados!D747),\"-\",Dados!D747)","v":""},{"$f":"IF(ISERROR(Dados!E747),\"-\",Dados!E747)","v":""},{"$f":"IF(ISERROR(Dados!F747),\"-\",Dados!F747)","v":""},{"$f":"IF(ISERROR(Dados!G747),\"-\",Dados!G747)","v":""},{"$f":"IF(ISERROR(Dados!H747),\"-\",Dados!H747)","v":""},{"$f":"IF(ISERROR(Dados!I747),\"-\",Dados!I747)","v":""},{"$f":"IF(ISERROR(Dados!J747),\"-\",Dados!J747)","v":""},{"$f":"IF(ISERROR(Dados!K747),\"-\",Dados!K747)","v":""},{"$f":"IF(ISERROR(Dados!L747),\"-\",Dados!L747)","v":""},{"$f":"IF(ISERROR(Dados!M747),\"-\",Dados!M747)","v":""},{"$f":"IF(ISERROR(Dados!N747),\"-\",Dados!N747)","v":""},{"$f":"IF(ISERROR(Dados!O747),\"-\",Dados!O747)","v":""},{"$f":"IF(ISERROR(Dados!P747),\"-\",Dados!P747)","v":""},{"$f":"IF(ISERROR(Dados!Q747),\"-\",Dados!Q747)","v":""},{"$f":"IF(ISERROR(Dados!R747),\"-\",Dados!R747)","v":""},{"$f":"IF(ISERROR(Dados!S747),\"-\",Dados!S747)","v":""},{"$f":"IF(ISERROR(Dados!T747),\"-\",Dados!T747)","v":""},{"$f":"IF(ISERROR(Dados!U747),\"-\",Dados!U747)","v":""},{"$f":"IF(ISERROR(Dados!V747),\"-\",Dados!V747)","v":""},{"$f":"IF(ISERROR(Dados!W747),\"-\",Dados!W747)","v":""},{"$f":"IF(ISERROR(Dados!X747),\"-\",Dados!X747)","v":""},{"$f":"IF(ISERROR(Dados!Y747),\"-\",Dados!Y747)","v":""},{"$f":"IF(ISERROR(Dados!Z747),\"-\",Dados!Z747)","v":""},{"$f":"IF(ISERROR(Dados!AA747),\"-\",Dados!AA747)","v":""},{"$f":"IF(ISERROR(Dados!AB747),\"-\",Dados!AB747)","v":""},{"$f":"IF(ISERROR(Dados!AC747),\"-\",Dados!AC747)","v":""},{"$f":"IF(ISERROR(Dados!AD747),\"-\",Dados!AD747)","v":""},{"$f":"IF(ISERROR(Dados!AE747),\"-\",Dados!AE747)","v":""},{"$f":"IF(ISERROR(Dados!AF747),\"-\",Dados!AF747)","v":""},{"$f":"IF(ISERROR(Dados!AG747),\"-\",Dados!AG747)","v":""}]
[{"$f":"IF(ISERROR(Dados!A748),\"-\",Dados!A748)","v":""},{"$f":"IF(ISERROR(Dados!B748),\"-\",Dados!B748)","v":""},{"$f":"IF(ISERROR(Dados!C748),\"-\",Dados!C748)","v":""},{"$f":"IF(ISERROR(Dados!D748),\"-\",Dados!D748)","v":""},{"$f":"IF(ISERROR(Dados!E748),\"-\",Dados!E748)","v":""},{"$f":"IF(ISERROR(Dados!F748),\"-\",Dados!F748)","v":""},{"$f":"IF(ISERROR(Dados!G748),\"-\",Dados!G748)","v":""},{"$f":"IF(ISERROR(Dados!H748),\"-\",Dados!H748)","v":""},{"$f":"IF(ISERROR(Dados!I748),\"-\",Dados!I748)","v":""},{"$f":"IF(ISERROR(Dados!J748),\"-\",Dados!J748)","v":""},{"$f":"IF(ISERROR(Dados!K748),\"-\",Dados!K748)","v":""},{"$f":"IF(ISERROR(Dados!L748),\"-\",Dados!L748)","v":""},{"$f":"IF(ISERROR(Dados!M748),\"-\",Dados!M748)","v":""},{"$f":"IF(ISERROR(Dados!N748),\"-\",Dados!N748)","v":""},{"$f":"IF(ISERROR(Dados!O748),\"-\",Dados!O748)","v":""},{"$f":"IF(ISERROR(Dados!P748),\"-\",Dados!P748)","v":""},{"$f":"IF(ISERROR(Dados!Q748),\"-\",Dados!Q748)","v":""},{"$f":"IF(ISERROR(Dados!R748),\"-\",Dados!R748)","v":""},{"$f":"IF(ISERROR(Dados!S748),\"-\",Dados!S748)","v":""},{"$f":"IF(ISERROR(Dados!T748),\"-\",Dados!T748)","v":""},{"$f":"IF(ISERROR(Dados!U748),\"-\",Dados!U748)","v":""},{"$f":"IF(ISERROR(Dados!V748),\"-\",Dados!V748)","v":""},{"$f":"IF(ISERROR(Dados!W748),\"-\",Dados!W748)","v":""},{"$f":"IF(ISERROR(Dados!X748),\"-\",Dados!X748)","v":""},{"$f":"IF(ISERROR(Dados!Y748),\"-\",Dados!Y748)","v":""},{"$f":"IF(ISERROR(Dados!Z748),\"-\",Dados!Z748)","v":""},{"$f":"IF(ISERROR(Dados!AA748),\"-\",Dados!AA748)","v":""},{"$f":"IF(ISERROR(Dados!AB748),\"-\",Dados!AB748)","v":""},{"$f":"IF(ISERROR(Dados!AC748),\"-\",Dados!AC748)","v":""},{"$f":"IF(ISERROR(Dados!AD748),\"-\",Dados!AD748)","v":""},{"$f":"IF(ISERROR(Dados!AE748),\"-\",Dados!AE748)","v":""},{"$f":"IF(ISERROR(Dados!AF748),\"-\",Dados!AF748)","v":""},{"$f":"IF(ISERROR(Dados!AG748),\"-\",Dados!AG748)","v":""}]
[{"$f":"IF(ISERROR(Dados!A749),\"-\",Dados!A749)","v":""},{"$f":"IF(ISERROR(Dados!B749),\"-\",Dados!B749)","v":""},{"$f":"IF(ISERROR(Dados!C749),\"-\",Dados!C749)","v":""},{"$f":"IF(ISERROR(Dados!D749),\"-\",Dados!D749)","v":""},{"$f":"IF(ISERROR(Dados!E749),\"-\",Dados!E749)","v":""},{"$f":"IF(ISERROR(Dados!F749),\"-\",Dados!F749)","v":""},{"$f":"IF(ISERROR(Dados!G749),\"-\",Dados!G749)","v":""},{"$f":"IF(ISERROR(Dados!H749),\"-\",Dados!H749)","v":""},{"$f":"IF(ISERROR(Dados!I749),\"-\",Dados!I749)","v":""},{"$f":"IF(ISERROR(Dados!J749),\"-\",Dados!J749)","v":""},{"$f":"IF(ISERROR(Dados!K749),\"-\",Dados!K749)","v":""},{"$f":"IF(ISERROR(Dados!L749),\"-\",Dados!L749)","v":""},{"$f":"IF(ISERROR(Dados!M749),\"-\",Dados!M749)","v":""},{"$f":"IF(ISERROR(Dados!N749),\"-\",Dados!N749)","v":""},{"$f":"IF(ISERROR(Dados!O749),\"-\",Dados!O749)","v":""},{"$f":"IF(ISERROR(Dados!P749),\"-\",Dados!P749)","v":""},{"$f":"IF(ISERROR(Dados!Q749),\"-\",Dados!Q749)","v":""},{"$f":"IF(ISERROR(Dados!R749),\"-\",Dados!R749)","v":""},{"$f":"IF(ISERROR(Dados!S749),\"-\",Dados!S749)","v":""},{"$f":"IF(ISERROR(Dados!T749),\"-\",Dados!T749)","v":""},{"$f":"IF(ISERROR(Dados!U749),\"-\",Dados!U749)","v":""},{"$f":"IF(ISERROR(Dados!V749),\"-\",Dados!V749)","v":""},{"$f":"IF(ISERROR(Dados!W749),\"-\",Dados!W749)","v":""},{"$f":"IF(ISERROR(Dados!X749),\"-\",Dados!X749)","v":""},{"$f":"IF(ISERROR(Dados!Y749),\"-\",Dados!Y749)","v":""},{"$f":"IF(ISERROR(Dados!Z749),\"-\",Dados!Z749)","v":""},{"$f":"IF(ISERROR(Dados!AA749),\"-\",Dados!AA749)","v":""},{"$f":"IF(ISERROR(Dados!AB749),\"-\",Dados!AB749)","v":""},{"$f":"IF(ISERROR(Dados!AC749),\"-\",Dados!AC749)","v":""},{"$f":"IF(ISERROR(Dados!AD749),\"-\",Dados!AD749)","v":""},{"$f":"IF(ISERROR(Dados!AE749),\"-\",Dados!AE749)","v":""},{"$f":"IF(ISERROR(Dados!AF749),\"-\",Dados!AF749)","v":""},{"$f":"IF(ISERROR(Dados!AG749),\"-\",Dados!AG749)","v":""}]
[{"$f":"IF(ISERROR(Dados!A750),\"-\",Dados!A750)","v":""},{"$f":"IF(ISERROR(Dados!B750),\"-\",Dados!B750)","v":""},{"$f":"IF(ISERROR(Dados!C750),\"-\",Dados!C750)","v":""},{"$f":"IF(ISERROR(Dados!D750),\"-\",Dados!D750)","v":""},{"$f":"IF(ISERROR(Dados!E750),\"-\",Dados!E750)","v":""},{"$f":"IF(ISERROR(Dados!F750),\"-\",Dados!F750)","v":""},{"$f":"IF(ISERROR(Dados!G750),\"-\",Dados!G750)","v":""},{"$f":"IF(ISERROR(Dados!H750),\"-\",Dados!H750)","v":""},{"$f":"IF(ISERROR(Dados!I750),\"-\",Dados!I750)","v":""},{"$f":"IF(ISERROR(Dados!J750),\"-\",Dados!J750)","v":""},{"$f":"IF(ISERROR(Dados!K750),\"-\",Dados!K750)","v":""},{"$f":"IF(ISERROR(Dados!L750),\"-\",Dados!L750)","v":""},{"$f":"IF(ISERROR(Dados!M750),\"-\",Dados!M750)","v":""},{"$f":"IF(ISERROR(Dados!N750),\"-\",Dados!N750)","v":""},{"$f":"IF(ISERROR(Dados!O750),\"-\",Dados!O750)","v":""},{"$f":"IF(ISERROR(Dados!P750),\"-\",Dados!P750)","v":""},{"$f":"IF(ISERROR(Dados!Q750),\"-\",Dados!Q750)","v":""},{"$f":"IF(ISERROR(Dados!R750),\"-\",Dados!R750)","v":""},{"$f":"IF(ISERROR(Dados!S750),\"-\",Dados!S750)","v":""},{"$f":"IF(ISERROR(Dados!T750),\"-\",Dados!T750)","v":""},{"$f":"IF(ISERROR(Dados!U750),\"-\",Dados!U750)","v":""},{"$f":"IF(ISERROR(Dados!V750),\"-\",Dados!V750)","v":""},{"$f":"IF(ISERROR(Dados!W750),\"-\",Dados!W750)","v":""},{"$f":"IF(ISERROR(Dados!X750),\"-\",Dados!X750)","v":""},{"$f":"IF(ISERROR(Dados!Y750),\"-\",Dados!Y750)","v":""},{"$f":"IF(ISERROR(Dados!Z750),\"-\",Dados!Z750)","v":""},{"$f":"IF(ISERROR(Dados!AA750),\"-\",Dados!AA750)","v":""},{"$f":"IF(ISERROR(Dados!AB750),\"-\",Dados!AB750)","v":""},{"$f":"IF(ISERROR(Dados!AC750),\"-\",Dados!AC750)","v":""},{"$f":"IF(ISERROR(Dados!AD750),\"-\",Dados!AD750)","v":""},{"$f":"IF(ISERROR(Dados!AE750),\"-\",Dados!AE750)","v":""},{"$f":"IF(ISERROR(Dados!AF750),\"-\",Dados!AF750)","v":""},{"$f":"IF(ISERROR(Dados!AG750),\"-\",Dados!AG750)","v":""}]
[{"$f":"IF(ISERROR(Dados!A751),\"-\",Dados!A751)","v":""},{"$f":"IF(ISERROR(Dados!B751),\"-\",Dados!B751)","v":""},{"$f":"IF(ISERROR(Dados!C751),\"-\",Dados!C751)","v":""},{"$f":"IF(ISERROR(Dados!D751),\"-\",Dados!D751)","v":""},{"$f":"IF(ISERROR(Dados!E751),\"-\",Dados!E751)","v":""},{"$f":"IF(ISERROR(Dados!F751),\"-\",Dados!F751)","v":""},{"$f":"IF(ISERROR(Dados!G751),\"-\",Dados!G751)","v":""},{"$f":"IF(ISERROR(Dados!H751),\"-\",Dados!H751)","v":""},{"$f":"IF(ISERROR(Dados!I751),\"-\",Dados!I751)","v":""},{"$f":"IF(ISERROR(Dados!J751),\"-\",Dados!J751)","v":""},{"$f":"IF(ISERROR(Dados!K751),\"-\",Dados!K751)","v":""},{"$f":"IF(ISERROR(Dados!L751),\"-\",Dados!L751)","v":""},{"$f":"IF(ISERROR(Dados!M751),\"-\",Dados!M751)","v":""},{"$f":"IF(ISERROR(Dados!N751),\"-\",Dados!N751)","v":""},{"$f":"IF(ISERROR(Dados!O751),\"-\",Dados!O751)","v":""},{"$f":"IF(ISERROR(Dados!P751),\"-\",Dados!P751)","v":""},{"$f":"IF(ISERROR(Dados!Q751),\"-\",Dados!Q751)","v":""},{"$f":"IF(ISERROR(Dados!R751),\"-\",Dados!R751)","v":""},{"$f":"IF(ISERROR(Dados!S751),\"-\",Dados!S751)","v":""},{"$f":"IF(ISERROR(Dados!T751),\"-\",Dados!T751)","v":""},{"$f":"IF(ISERROR(Dados!U751),\"-\",Dados!U751)","v":""},{"$f":"IF(ISERROR(Dados!V751),\"-\",Dados!V751)","v":""},{"$f":"IF(ISERROR(Dados!W751),\"-\",Dados!W751)","v":""},{"$f":"IF(ISERROR(Dados!X751),\"-\",Dados!X751)","v":""},{"$f":"IF(ISERROR(Dados!Y751),\"-\",Dados!Y751)","v":""},{"$f":"IF(ISERROR(Dados!Z751),\"-\",Dados!Z751)","v":""},{"$f":"IF(ISERROR(Dados!AA751),\"-\",Dados!AA751)","v":""},{"$f":"IF(ISERROR(Dados!AB751),\"-\",Dados!AB751)","v":""},{"$f":"IF(ISERROR(Dados!AC751),\"-\",Dados!AC751)","v":""},{"$f":"IF(ISERROR(Dados!AD751),\"-\",Dados!AD751)","v":""},{"$f":"IF(ISERROR(Dados!AE751),\"-\",Dados!AE751)","v":""},{"$f":"IF(ISERROR(Dados!AF751),\"-\",Dados!AF751)","v":""},{"$f":"IF(ISERROR(Dados!AG751),\"-\",Dados!AG751)","v":""}]
[{"$f":"IF(ISERROR(Dados!A752),\"-\",Dados!A752)","v":""},{"$f":"IF(ISERROR(Dados!B752),\"-\",Dados!B752)","v":""},{"$f":"IF(ISERROR(Dados!C752),\"-\",Dados!C752)","v":""},{"$f":"IF(ISERROR(Dados!D752),\"-\",Dados!D752)","v":""},{"$f":"IF(ISERROR(Dados!E752),\"-\",Dados!E752)","v":""},{"$f":"IF(ISERROR(Dados!F752),\"-\",Dados!F752)","v":""},{"$f":"IF(ISERROR(Dados!G752),\"-\",Dados!G752)","v":""},{"$f":"IF(ISERROR(Dados!H752),\"-\",Dados!H752)","v":""},{"$f":"IF(ISERROR(Dados!I752),\"-\",Dados!I752)","v":""},{"$f":"IF(ISERROR(Dados!J752),\"-\",Dados!J752)","v":""},{"$f":"IF(ISERROR(Dados!K752),\"-\",Dados!K752)","v":""},{"$f":"IF(ISERROR(Dados!L752),\"-\",Dados!L752)","v":""},{"$f":"IF(ISERROR(Dados!M752),\"-\",Dados!M752)","v":""},{"$f":"IF(ISERROR(Dados!N752),\"-\",Dados!N752)","v":""},{"$f":"IF(ISERROR(Dados!O752),\"-\",Dados!O752)","v":""},{"$f":"IF(ISERROR(Dados!P752),\"-\",Dados!P752)","v":""},{"$f":"IF(ISERROR(Dados!Q752),\"-\",Dados!Q752)","v":""},{"$f":"IF(ISERROR(Dados!R752),\"-\",Dados!R752)","v":""},{"$f":"IF(ISERROR(Dados!S752),\"-\",Dados!S752)","v":""},{"$f":"IF(ISERROR(Dados!T752),\"-\",Dados!T752)","v":""},{"$f":"IF(ISERROR(Dados!U752),\"-\",Dados!U752)","v":""},{"$f":"IF(ISERROR(Dados!V752),\"-\",Dados!V752)","v":""},{"$f":"IF(ISERROR(Dados!W752),\"-\",Dados!W752)","v":""},{"$f":"IF(ISERROR(Dados!X752),\"-\",Dados!X752)","v":""},{"$f":"IF(ISERROR(Dados!Y752),\"-\",Dados!Y752)","v":""},{"$f":"IF(ISERROR(Dados!Z752),\"-\",Dados!Z752)","v":""},{"$f":"IF(ISERROR(Dados!AA752),\"-\",Dados!AA752)","v":""},{"$f":"IF(ISERROR(Dados!AB752),\"-\",Dados!AB752)","v":""},{"$f":"IF(ISERROR(Dados!AC752),\"-\",Dados!AC752)","v":""},{"$f":"IF(ISERROR(Dados!AD752),\"-\",Dados!AD752)","v":""},{"$f":"IF(ISERROR(Dados!AE752),\"-\",Dados!AE752)","v":""},{"$f":"IF(ISERROR(Dados!AF752),\"-\",Dados!AF752)","v":""},{"$f":"IF(ISERROR(Dados!AG752),\"-\",Dados!AG752)","v":""}]
[{"$f":"IF(ISERROR(Dados!A753),\"-\",Dados!A753)","v":""},{"$f":"IF(ISERROR(Dados!B753),\"-\",Dados!B753)","v":""},{"$f":"IF(ISERROR(Dados!C753),\"-\",Dados!C753)","v":""},{"$f":"IF(ISERROR(Dados!D753),\"-\",Dados!D753)","v":""},{"$f":"IF(ISERROR(Dados!E753),\"-\",Dados!E753)","v":""},{"$f":"IF(ISERROR(Dados!F753),\"-\",Dados!F753)","v":""},{"$f":"IF(ISERROR(Dados!G753),\"-\",Dados!G753)","v":""},{"$f":"IF(ISERROR(Dados!H753),\"-\",Dados!H753)","v":""},{"$f":"IF(ISERROR(Dados!I753),\"-\",Dados!I753)","v":""},{"$f":"IF(ISERROR(Dados!J753),\"-\",Dados!J753)","v":""},{"$f":"IF(ISERROR(Dados!K753),\"-\",Dados!K753)","v":""},{"$f":"IF(ISERROR(Dados!L753),\"-\",Dados!L753)","v":""},{"$f":"IF(ISERROR(Dados!M753),\"-\",Dados!M753)","v":""},{"$f":"IF(ISERROR(Dados!N753),\"-\",Dados!N753)","v":""},{"$f":"IF(ISERROR(Dados!O753),\"-\",Dados!O753)","v":""},{"$f":"IF(ISERROR(Dados!P753),\"-\",Dados!P753)","v":""},{"$f":"IF(ISERROR(Dados!Q753),\"-\",Dados!Q753)","v":""},{"$f":"IF(ISERROR(Dados!R753),\"-\",Dados!R753)","v":""},{"$f":"IF(ISERROR(Dados!S753),\"-\",Dados!S753)","v":""},{"$f":"IF(ISERROR(Dados!T753),\"-\",Dados!T753)","v":""},{"$f":"IF(ISERROR(Dados!U753),\"-\",Dados!U753)","v":""},{"$f":"IF(ISERROR(Dados!V753),\"-\",Dados!V753)","v":""},{"$f":"IF(ISERROR(Dados!W753),\"-\",Dados!W753)","v":""},{"$f":"IF(ISERROR(Dados!X753),\"-\",Dados!X753)","v":""},{"$f":"IF(ISERROR(Dados!Y753),\"-\",Dados!Y753)","v":""},{"$f":"IF(ISERROR(Dados!Z753),\"-\",Dados!Z753)","v":""},{"$f":"IF(ISERROR(Dados!AA753),\"-\",Dados!AA753)","v":""},{"$f":"IF(ISERROR(Dados!AB753),\"-\",Dados!AB753)","v":""},{"$f":"IF(ISERROR(Dados!AC753),\"-\",Dados!AC753)","v":""},{"$f":"IF(ISERROR(Dados!AD753),\"-\",Dados!AD753)","v":""},{"$f":"IF(ISERROR(Dados!AE753),\"-\",Dados!AE753)","v":""},{"$f":"IF(ISERROR(Dados!AF753),\"-\",Dados!AF753)","v":""},{"$f":"IF(ISERROR(Dados!AG753),\"-\",Dados!AG753)","v":""}]
[{"$f":"IF(ISERROR(Dados!A754),\"-\",Dados!A754)","v":""},{"$f":"IF(ISERROR(Dados!B754),\"-\",Dados!B754)","v":""},{"$f":"IF(ISERROR(Dados!C754),\"-\",Dados!C754)","v":""},{"$f":"IF(ISERROR(Dados!D754),\"-\",Dados!D754)","v":""},{"$f":"IF(ISERROR(Dados!E754),\"-\",Dados!E754)","v":""},{"$f":"IF(ISERROR(Dados!F754),\"-\",Dados!F754)","v":""},{"$f":"IF(ISERROR(Dados!G754),\"-\",Dados!G754)","v":""},{"$f":"IF(ISERROR(Dados!H754),\"-\",Dados!H754)","v":""},{"$f":"IF(ISERROR(Dados!I754),\"-\",Dados!I754)","v":""},{"$f":"IF(ISERROR(Dados!J754),\"-\",Dados!J754)","v":""},{"$f":"IF(ISERROR(Dados!K754),\"-\",Dados!K754)","v":""},{"$f":"IF(ISERROR(Dados!L754),\"-\",Dados!L754)","v":""},{"$f":"IF(ISERROR(Dados!M754),\"-\",Dados!M754)","v":""},{"$f":"IF(ISERROR(Dados!N754),\"-\",Dados!N754)","v":""},{"$f":"IF(ISERROR(Dados!O754),\"-\",Dados!O754)","v":""},{"$f":"IF(ISERROR(Dados!P754),\"-\",Dados!P754)","v":""},{"$f":"IF(ISERROR(Dados!Q754),\"-\",Dados!Q754)","v":""},{"$f":"IF(ISERROR(Dados!R754),\"-\",Dados!R754)","v":""},{"$f":"IF(ISERROR(Dados!S754),\"-\",Dados!S754)","v":""},{"$f":"IF(ISERROR(Dados!T754),\"-\",Dados!T754)","v":""},{"$f":"IF(ISERROR(Dados!U754),\"-\",Dados!U754)","v":""},{"$f":"IF(ISERROR(Dados!V754),\"-\",Dados!V754)","v":""},{"$f":"IF(ISERROR(Dados!W754),\"-\",Dados!W754)","v":""},{"$f":"IF(ISERROR(Dados!X754),\"-\",Dados!X754)","v":""},{"$f":"IF(ISERROR(Dados!Y754),\"-\",Dados!Y754)","v":""},{"$f":"IF(ISERROR(Dados!Z754),\"-\",Dados!Z754)","v":""},{"$f":"IF(ISERROR(Dados!AA754),\"-\",Dados!AA754)","v":""},{"$f":"IF(ISERROR(Dados!AB754),\"-\",Dados!AB754)","v":""},{"$f":"IF(ISERROR(Dados!AC754),\"-\",Dados!AC754)","v":""},{"$f":"IF(ISERROR(Dados!AD754),\"-\",Dados!AD754)","v":""},{"$f":"IF(ISERROR(Dados!AE754),\"-\",Dados!AE754)","v":""},{"$f":"IF(ISERROR(Dados!AF754),\"-\",Dados!AF754)","v":""},{"$f":"IF(ISERROR(Dados!AG754),\"-\",Dados!AG754)","v":""}]
[{"$f":"IF(ISERROR(Dados!A755),\"-\",Dados!A755)","v":""},{"$f":"IF(ISERROR(Dados!B755),\"-\",Dados!B755)","v":""},{"$f":"IF(ISERROR(Dados!C755),\"-\",Dados!C755)","v":""},{"$f":"IF(ISERROR(Dados!D755),\"-\",Dados!D755)","v":""},{"$f":"IF(ISERROR(Dados!E755),\"-\",Dados!E755)","v":""},{"$f":"IF(ISERROR(Dados!F755),\"-\",Dados!F755)","v":""},{"$f":"IF(ISERROR(Dados!G755),\"-\",Dados!G755)","v":""},{"$f":"IF(ISERROR(Dados!H755),\"-\",Dados!H755)","v":""},{"$f":"IF(ISERROR(Dados!I755),\"-\",Dados!I755)","v":""},{"$f":"IF(ISERROR(Dados!J755),\"-\",Dados!J755)","v":""},{"$f":"IF(ISERROR(Dados!K755),\"-\",Dados!K755)","v":""},{"$f":"IF(ISERROR(Dados!L755),\"-\",Dados!L755)","v":""},{"$f":"IF(ISERROR(Dados!M755),\"-\",Dados!M755)","v":""},{"$f":"IF(ISERROR(Dados!N755),\"-\",Dados!N755)","v":""},{"$f":"IF(ISERROR(Dados!O755),\"-\",Dados!O755)","v":""},{"$f":"IF(ISERROR(Dados!P755),\"-\",Dados!P755)","v":""},{"$f":"IF(ISERROR(Dados!Q755),\"-\",Dados!Q755)","v":""},{"$f":"IF(ISERROR(Dados!R755),\"-\",Dados!R755)","v":""},{"$f":"IF(ISERROR(Dados!S755),\"-\",Dados!S755)","v":""},{"$f":"IF(ISERROR(Dados!T755),\"-\",Dados!T755)","v":""},{"$f":"IF(ISERROR(Dados!U755),\"-\",Dados!U755)","v":""},{"$f":"IF(ISERROR(Dados!V755),\"-\",Dados!V755)","v":""},{"$f":"IF(ISERROR(Dados!W755),\"-\",Dados!W755)","v":""},{"$f":"IF(ISERROR(Dados!X755),\"-\",Dados!X755)","v":""},{"$f":"IF(ISERROR(Dados!Y755),\"-\",Dados!Y755)","v":""},{"$f":"IF(ISERROR(Dados!Z755),\"-\",Dados!Z755)","v":""},{"$f":"IF(ISERROR(Dados!AA755),\"-\",Dados!AA755)","v":""},{"$f":"IF(ISERROR(Dados!AB755),\"-\",Dados!AB755)","v":""},{"$f":"IF(ISERROR(Dados!AC755),\"-\",Dados!AC755)","v":""},{"$f":"IF(ISERROR(Dados!AD755),\"-\",Dados!AD755)","v":""},{"$f":"IF(ISERROR(Dados!AE755),\"-\",Dados!AE755)","v":""},{"$f":"IF(ISERROR(Dados!AF755),\"-\",Dados!AF755)","v":""},{"$f":"IF(ISERROR(Dados!AG755),\"-\",Dados!AG755)","v":""}]
[{"$f":"IF(ISERROR(Dados!A756),\"-\",Dados!A756)","v":""},{"$f":"IF(ISERROR(Dados!B756),\"-\",Dados!B756)","v":""},{"$f":"IF(ISERROR(Dados!C756),\"-\",Dados!C756)","v":""},{"$f":"IF(ISERROR(Dados!D756),\"-\",Dados!D756)","v":""},{"$f":"IF(ISERROR(Dados!E756),\"-\",Dados!E756)","v":""},{"$f":"IF(ISERROR(Dados!F756),\"-\",Dados!F756)","v":""},{"$f":"IF(ISERROR(Dados!G756),\"-\",Dados!G756)","v":""},{"$f":"IF(ISERROR(Dados!H756),\"-\",Dados!H756)","v":""},{"$f":"IF(ISERROR(Dados!I756),\"-\",Dados!I756)","v":""},{"$f":"IF(ISERROR(Dados!J756),\"-\",Dados!J756)","v":""},{"$f":"IF(ISERROR(Dados!K756),\"-\",Dados!K756)","v":""},{"$f":"IF(ISERROR(Dados!L756),\"-\",Dados!L756)","v":""},{"$f":"IF(ISERROR(Dados!M756),\"-\",Dados!M756)","v":""},{"$f":"IF(ISERROR(Dados!N756),\"-\",Dados!N756)","v":""},{"$f":"IF(ISERROR(Dados!O756),\"-\",Dados!O756)","v":""},{"$f":"IF(ISERROR(Dados!P756),\"-\",Dados!P756)","v":""},{"$f":"IF(ISERROR(Dados!Q756),\"-\",Dados!Q756)","v":""},{"$f":"IF(ISERROR(Dados!R756),\"-\",Dados!R756)","v":""},{"$f":"IF(ISERROR(Dados!S756),\"-\",Dados!S756)","v":""},{"$f":"IF(ISERROR(Dados!T756),\"-\",Dados!T756)","v":""},{"$f":"IF(ISERROR(Dados!U756),\"-\",Dados!U756)","v":""},{"$f":"IF(ISERROR(Dados!V756),\"-\",Dados!V756)","v":""},{"$f":"IF(ISERROR(Dados!W756),\"-\",Dados!W756)","v":""},{"$f":"IF(ISERROR(Dados!X756),\"-\",Dados!X756)","v":""},{"$f":"IF(ISERROR(Dados!Y756),\"-\",Dados!Y756)","v":""},{"$f":"IF(ISERROR(Dados!Z756),\"-\",Dados!Z756)","v":""},{"$f":"IF(ISERROR(Dados!AA756),\"-\",Dados!AA756)","v":""},{"$f":"IF(ISERROR(Dados!AB756),\"-\",Dados!AB756)","v":""},{"$f":"IF(ISERROR(Dados!AC756),\"-\",Dados!AC756)","v":""},{"$f":"IF(ISERROR(Dados!AD756),\"-\",Dados!AD756)","v":""},{"$f":"IF(ISERROR(Dados!AE756),\"-\",Dados!AE756)","v":""},{"$f":"IF(ISERROR(Dados!AF756),\"-\",Dados!AF756)","v":""},{"$f":"IF(ISERROR(Dados!AG756),\"-\",Dados!AG756)","v":""}]
[{"$f":"IF(ISERROR(Dados!A757),\"-\",Dados!A757)","v":""},{"$f":"IF(ISERROR(Dados!B757),\"-\",Dados!B757)","v":""},{"$f":"IF(ISERROR(Dados!C757),\"-\",Dados!C757)","v":""},{"$f":"IF(ISERROR(Dados!D757),\"-\",Dados!D757)","v":""},{"$f":"IF(ISERROR(Dados!E757),\"-\",Dados!E757)","v":""},{"$f":"IF(ISERROR(Dados!F757),\"-\",Dados!F757)","v":""},{"$f":"IF(ISERROR(Dados!G757),\"-\",Dados!G757)","v":""},{"$f":"IF(ISERROR(Dados!H757),\"-\",Dados!H757)","v":""},{"$f":"IF(ISERROR(Dados!I757),\"-\",Dados!I757)","v":""},{"$f":"IF(ISERROR(Dados!J757),\"-\",Dados!J757)","v":""},{"$f":"IF(ISERROR(Dados!K757),\"-\",Dados!K757)","v":""},{"$f":"IF(ISERROR(Dados!L757),\"-\",Dados!L757)","v":""},{"$f":"IF(ISERROR(Dados!M757),\"-\",Dados!M757)","v":""},{"$f":"IF(ISERROR(Dados!N757),\"-\",Dados!N757)","v":""},{"$f":"IF(ISERROR(Dados!O757),\"-\",Dados!O757)","v":""},{"$f":"IF(ISERROR(Dados!P757),\"-\",Dados!P757)","v":""},{"$f":"IF(ISERROR(Dados!Q757),\"-\",Dados!Q757)","v":""},{"$f":"IF(ISERROR(Dados!R757),\"-\",Dados!R757)","v":""},{"$f":"IF(ISERROR(Dados!S757),\"-\",Dados!S757)","v":""},{"$f":"IF(ISERROR(Dados!T757),\"-\",Dados!T757)","v":""},{"$f":"IF(ISERROR(Dados!U757),\"-\",Dados!U757)","v":""},{"$f":"IF(ISERROR(Dados!V757),\"-\",Dados!V757)","v":""},{"$f":"IF(ISERROR(Dados!W757),\"-\",Dados!W757)","v":""},{"$f":"IF(ISERROR(Dados!X757),\"-\",Dados!X757)","v":""},{"$f":"IF(ISERROR(Dados!Y757),\"-\",Dados!Y757)","v":""},{"$f":"IF(ISERROR(Dados!Z757),\"-\",Dados!Z757)","v":""},{"$f":"IF(ISERROR(Dados!AA757),\"-\",Dados!AA757)","v":""},{"$f":"IF(ISERROR(Dados!AB757),\"-\",Dados!AB757)","v":""},{"$f":"IF(ISERROR(Dados!AC757),\"-\",Dados!AC757)","v":""},{"$f":"IF(ISERROR(Dados!AD757),\"-\",Dados!AD757)","v":""},{"$f":"IF(ISERROR(Dados!AE757),\"-\",Dados!AE757)","v":""},{"$f":"IF(ISERROR(Dados!AF757),\"-\",Dados!AF757)","v":""},{"$f":"IF(ISERROR(Dados!AG757),\"-\",Dados!AG757)","v":""}]
[{"$f":"IF(ISERROR(Dados!A758),\"-\",Dados!A758)","v":""},{"$f":"IF(ISERROR(Dados!B758),\"-\",Dados!B758)","v":""},{"$f":"IF(ISERROR(Dados!C758),\"-\",Dados!C758)","v":""},{"$f":"IF(ISERROR(Dados!D758),\"-\",Dados!D758)","v":""},{"$f":"IF(ISERROR(Dados!E758),\"-\",Dados!E758)","v":""},{"$f":"IF(ISERROR(Dados!F758),\"-\",Dados!F758)","v":""},{"$f":"IF(ISERROR(Dados!G758),\"-\",Dados!G758)","v":""},{"$f":"IF(ISERROR(Dados!H758),\"-\",Dados!H758)","v":""},{"$f":"IF(ISERROR(Dados!I758),\"-\",Dados!I758)","v":""},{"$f":"IF(ISERROR(Dados!J758),\"-\",Dados!J758)","v":""},{"$f":"IF(ISERROR(Dados!K758),\"-\",Dados!K758)","v":""},{"$f":"IF(ISERROR(Dados!L758),\"-\",Dados!L758)","v":""},{"$f":"IF(ISERROR(Dados!M758),\"-\",Dados!M758)","v":""},{"$f":"IF(ISERROR(Dados!N758),\"-\",Dados!N758)","v":""},{"$f":"IF(ISERROR(Dados!O758),\"-\",Dados!O758)","v":""},{"$f":"IF(ISERROR(Dados!P758),\"-\",Dados!P758)","v":""},{"$f":"IF(ISERROR(Dados!Q758),\"-\",Dados!Q758)","v":""},{"$f":"IF(ISERROR(Dados!R758),\"-\",Dados!R758)","v":""},{"$f":"IF(ISERROR(Dados!S758),\"-\",Dados!S758)","v":""},{"$f":"IF(ISERROR(Dados!T758),\"-\",Dados!T758)","v":""},{"$f":"IF(ISERROR(Dados!U758),\"-\",Dados!U758)","v":""},{"$f":"IF(ISERROR(Dados!V758),\"-\",Dados!V758)","v":""},{"$f":"IF(ISERROR(Dados!W758),\"-\",Dados!W758)","v":""},{"$f":"IF(ISERROR(Dados!X758),\"-\",Dados!X758)","v":""},{"$f":"IF(ISERROR(Dados!Y758),\"-\",Dados!Y758)","v":""},{"$f":"IF(ISERROR(Dados!Z758),\"-\",Dados!Z758)","v":""},{"$f":"IF(ISERROR(Dados!AA758),\"-\",Dados!AA758)","v":""},{"$f":"IF(ISERROR(Dados!AB758),\"-\",Dados!AB758)","v":""},{"$f":"IF(ISERROR(Dados!AC758),\"-\",Dados!AC758)","v":""},{"$f":"IF(ISERROR(Dados!AD758),\"-\",Dados!AD758)","v":""},{"$f":"IF(ISERROR(Dados!AE758),\"-\",Dados!AE758)","v":""},{"$f":"IF(ISERROR(Dados!AF758),\"-\",Dados!AF758)","v":""},{"$f":"IF(ISERROR(Dados!AG758),\"-\",Dados!AG758)","v":""}]
[{"$f":"IF(ISERROR(Dados!A759),\"-\",Dados!A759)","v":""},{"$f":"IF(ISERROR(Dados!B759),\"-\",Dados!B759)","v":""},{"$f":"IF(ISERROR(Dados!C759),\"-\",Dados!C759)","v":""},{"$f":"IF(ISERROR(Dados!D759),\"-\",Dados!D759)","v":""},{"$f":"IF(ISERROR(Dados!E759),\"-\",Dados!E759)","v":""},{"$f":"IF(ISERROR(Dados!F759),\"-\",Dados!F759)","v":""},{"$f":"IF(ISERROR(Dados!G759),\"-\",Dados!G759)","v":""},{"$f":"IF(ISERROR(Dados!H759),\"-\",Dados!H759)","v":""},{"$f":"IF(ISERROR(Dados!I759),\"-\",Dados!I759)","v":""},{"$f":"IF(ISERROR(Dados!J759),\"-\",Dados!J759)","v":""},{"$f":"IF(ISERROR(Dados!K759),\"-\",Dados!K759)","v":""},{"$f":"IF(ISERROR(Dados!L759),\"-\",Dados!L759)","v":""},{"$f":"IF(ISERROR(Dados!M759),\"-\",Dados!M759)","v":""},{"$f":"IF(ISERROR(Dados!N759),\"-\",Dados!N759)","v":""},{"$f":"IF(ISERROR(Dados!O759),\"-\",Dados!O759)","v":""},{"$f":"IF(ISERROR(Dados!P759),\"-\",Dados!P759)","v":""},{"$f":"IF(ISERROR(Dados!Q759),\"-\",Dados!Q759)","v":""},{"$f":"IF(ISERROR(Dados!R759),\"-\",Dados!R759)","v":""},{"$f":"IF(ISERROR(Dados!S759),\"-\",Dados!S759)","v":""},{"$f":"IF(ISERROR(Dados!T759),\"-\",Dados!T759)","v":""},{"$f":"IF(ISERROR(Dados!U759),\"-\",Dados!U759)","v":""},{"$f":"IF(ISERROR(Dados!V759),\"-\",Dados!V759)","v":""},{"$f":"IF(ISERROR(Dados!W759),\"-\",Dados!W759)","v":""},{"$f":"IF(ISERROR(Dados!X759),\"-\",Dados!X759)","v":""},{"$f":"IF(ISERROR(Dados!Y759),\"-\",Dados!Y759)","v":""},{"$f":"IF(ISERROR(Dados!Z759),\"-\",Dados!Z759)","v":""},{"$f":"IF(ISERROR(Dados!AA759),\"-\",Dados!AA759)","v":""},{"$f":"IF(ISERROR(Dados!AB759),\"-\",Dados!AB759)","v":""},{"$f":"IF(ISERROR(Dados!AC759),\"-\",Dados!AC759)","v":""},{"$f":"IF(ISERROR(Dados!AD759),\"-\",Dados!AD759)","v":""},{"$f":"IF(ISERROR(Dados!AE759),\"-\",Dados!AE759)","v":""},{"$f":"IF(ISERROR(Dados!AF759),\"-\",Dados!AF759)","v":""},{"$f":"IF(ISERROR(Dados!AG759),\"-\",Dados!AG759)","v":""}]
[{"$f":"IF(ISERROR(Dados!A760),\"-\",Dados!A760)","v":""},{"$f":"IF(ISERROR(Dados!B760),\"-\",Dados!B760)","v":""},{"$f":"IF(ISERROR(Dados!C760),\"-\",Dados!C760)","v":""},{"$f":"IF(ISERROR(Dados!D760),\"-\",Dados!D760)","v":""},{"$f":"IF(ISERROR(Dados!E760),\"-\",Dados!E760)","v":""},{"$f":"IF(ISERROR(Dados!F760),\"-\",Dados!F760)","v":""},{"$f":"IF(ISERROR(Dados!G760),\"-\",Dados!G760)","v":""},{"$f":"IF(ISERROR(Dados!H760),\"-\",Dados!H760)","v":""},{"$f":"IF(ISERROR(Dados!I760),\"-\",Dados!I760)","v":""},{"$f":"IF(ISERROR(Dados!J760),\"-\",Dados!J760)","v":""},{"$f":"IF(ISERROR(Dados!K760),\"-\",Dados!K760)","v":""},{"$f":"IF(ISERROR(Dados!L760),\"-\",Dados!L760)","v":""},{"$f":"IF(ISERROR(Dados!M760),\"-\",Dados!M760)","v":""},{"$f":"IF(ISERROR(Dados!N760),\"-\",Dados!N760)","v":""},{"$f":"IF(ISERROR(Dados!O760),\"-\",Dados!O760)","v":""},{"$f":"IF(ISERROR(Dados!P760),\"-\",Dados!P760)","v":""},{"$f":"IF(ISERROR(Dados!Q760),\"-\",Dados!Q760)","v":""},{"$f":"IF(ISERROR(Dados!R760),\"-\",Dados!R760)","v":""},{"$f":"IF(ISERROR(Dados!S760),\"-\",Dados!S760)","v":""},{"$f":"IF(ISERROR(Dados!T760),\"-\",Dados!T760)","v":""},{"$f":"IF(ISERROR(Dados!U760),\"-\",Dados!U760)","v":""},{"$f":"IF(ISERROR(Dados!V760),\"-\",Dados!V760)","v":""},{"$f":"IF(ISERROR(Dados!W760),\"-\",Dados!W760)","v":""},{"$f":"IF(ISERROR(Dados!X760),\"-\",Dados!X760)","v":""},{"$f":"IF(ISERROR(Dados!Y760),\"-\",Dados!Y760)","v":""},{"$f":"IF(ISERROR(Dados!Z760),\"-\",Dados!Z760)","v":""},{"$f":"IF(ISERROR(Dados!AA760),\"-\",Dados!AA760)","v":""},{"$f":"IF(ISERROR(Dados!AB760),\"-\",Dados!AB760)","v":""},{"$f":"IF(ISERROR(Dados!AC760),\"-\",Dados!AC760)","v":""},{"$f":"IF(ISERROR(Dados!AD760),\"-\",Dados!AD760)","v":""},{"$f":"IF(ISERROR(Dados!AE760),\"-\",Dados!AE760)","v":""},{"$f":"IF(ISERROR(Dados!AF760),\"-\",Dados!AF760)","v":""},{"$f":"IF(ISERROR(Dados!AG760),\"-\",Dados!AG760)","v":""}]
[{"$f":"IF(ISERROR(Dados!A761),\"-\",Dados!A761)","v":""},{"$f":"IF(ISERROR(Dados!B761),\"-\",Dados!B761)","v":""},{"$f":"IF(ISERROR(Dados!C761),\"-\",Dados!C761)","v":""},{"$f":"IF(ISERROR(Dados!D761),\"-\",Dados!D761)","v":""},{"$f":"IF(ISERROR(Dados!E761),\"-\",Dados!E761)","v":""},{"$f":"IF(ISERROR(Dados!F761),\"-\",Dados!F761)","v":""},{"$f":"IF(ISERROR(Dados!G761),\"-\",Dados!G761)","v":""},{"$f":"IF(ISERROR(Dados!H761),\"-\",Dados!H761)","v":""},{"$f":"IF(ISERROR(Dados!I761),\"-\",Dados!I761)","v":""},{"$f":"IF(ISERROR(Dados!J761),\"-\",Dados!J761)","v":""},{"$f":"IF(ISERROR(Dados!K761),\"-\",Dados!K761)","v":""},{"$f":"IF(ISERROR(Dados!L761),\"-\",Dados!L761)","v":""},{"$f":"IF(ISERROR(Dados!M761),\"-\",Dados!M761)","v":""},{"$f":"IF(ISERROR(Dados!N761),\"-\",Dados!N761)","v":""},{"$f":"IF(ISERROR(Dados!O761),\"-\",Dados!O761)","v":""},{"$f":"IF(ISERROR(Dados!P761),\"-\",Dados!P761)","v":""},{"$f":"IF(ISERROR(Dados!Q761),\"-\",Dados!Q761)","v":""},{"$f":"IF(ISERROR(Dados!R761),\"-\",Dados!R761)","v":""},{"$f":"IF(ISERROR(Dados!S761),\"-\",Dados!S761)","v":""},{"$f":"IF(ISERROR(Dados!T761),\"-\",Dados!T761)","v":""},{"$f":"IF(ISERROR(Dados!U761),\"-\",Dados!U761)","v":""},{"$f":"IF(ISERROR(Dados!V761),\"-\",Dados!V761)","v":""},{"$f":"IF(ISERROR(Dados!W761),\"-\",Dados!W761)","v":""},{"$f":"IF(ISERROR(Dados!X761),\"-\",Dados!X761)","v":""},{"$f":"IF(ISERROR(Dados!Y761),\"-\",Dados!Y761)","v":""},{"$f":"IF(ISERROR(Dados!Z761),\"-\",Dados!Z761)","v":""},{"$f":"IF(ISERROR(Dados!AA761),\"-\",Dados!AA761)","v":""},{"$f":"IF(ISERROR(Dados!AB761),\"-\",Dados!AB761)","v":""},{"$f":"IF(ISERROR(Dados!AC761),\"-\",Dados!AC761)","v":""},{"$f":"IF(ISERROR(Dados!AD761),\"-\",Dados!AD761)","v":""},{"$f":"IF(ISERROR(Dados!AE761),\"-\",Dados!AE761)","v":""},{"$f":"IF(ISERROR(Dados!AF761),\"-\",Dados!AF761)","v":""},{"$f":"IF(ISERROR(Dados!AG761),\"-\",Dados!AG761)","v":""}]
[{"$f":"IF(ISERROR(Dados!A762),\"-\",Dados!A762)","v":""},{"$f":"IF(ISERROR(Dados!B762),\"-\",Dados!B762)","v":""},{"$f":"IF(ISERROR(Dados!C762),\"-\",Dados!C762)","v":""},{"$f":"IF(ISERROR(Dados!D762),\"-\",Dados!D762)","v":""},{"$f":"IF(ISERROR(Dados!E762),\"-\",Dados!E762)","v":""},{"$f":"IF(ISERROR(Dados!F762),\"-\",Dados!F762)","v":""},{"$f":"IF(ISERROR(Dados!G762),\"-\",Dados!G762)","v":""},{"$f":"IF(ISERROR(Dados!H762),\"-\",Dados!H762)","v":""},{"$f":"IF(ISERROR(Dados!I762),\"-\",Dados!I762)","v":""},{"$f":"IF(ISERROR(Dados!J762),\"-\",Dados!J762)","v":""},{"$f":"IF(ISERROR(Dados!K762),\"-\",Dados!K762)","v":""},{"$f":"IF(ISERROR(Dados!L762),\"-\",Dados!L762)","v":""},{"$f":"IF(ISERROR(Dados!M762),\"-\",Dados!M762)","v":""},{"$f":"IF(ISERROR(Dados!N762),\"-\",Dados!N762)","v":""},{"$f":"IF(ISERROR(Dados!O762),\"-\",Dados!O762)","v":""},{"$f":"IF(ISERROR(Dados!P762),\"-\",Dados!P762)","v":""},{"$f":"IF(ISERROR(Dados!Q762),\"-\",Dados!Q762)","v":""},{"$f":"IF(ISERROR(Dados!R762),\"-\",Dados!R762)","v":""},{"$f":"IF(ISERROR(Dados!S762),\"-\",Dados!S762)","v":""},{"$f":"IF(ISERROR(Dados!T762),\"-\",Dados!T762)","v":""},{"$f":"IF(ISERROR(Dados!U762),\"-\",Dados!U762)","v":""},{"$f":"IF(ISERROR(Dados!V762),\"-\",Dados!V762)","v":""},{"$f":"IF(ISERROR(Dados!W762),\"-\",Dados!W762)","v":""},{"$f":"IF(ISERROR(Dados!X762),\"-\",Dados!X762)","v":""},{"$f":"IF(ISERROR(Dados!Y762),\"-\",Dados!Y762)","v":""},{"$f":"IF(ISERROR(Dados!Z762),\"-\",Dados!Z762)","v":""},{"$f":"IF(ISERROR(Dados!AA762),\"-\",Dados!AA762)","v":""},{"$f":"IF(ISERROR(Dados!AB762),\"-\",Dados!AB762)","v":""},{"$f":"IF(ISERROR(Dados!AC762),\"-\",Dados!AC762)","v":""},{"$f":"IF(ISERROR(Dados!AD762),\"-\",Dados!AD762)","v":""},{"$f":"IF(ISERROR(Dados!AE762),\"-\",Dados!AE762)","v":""},{"$f":"IF(ISERROR(Dados!AF762),\"-\",Dados!AF762)","v":""},{"$f":"IF(ISERROR(Dados!AG762),\"-\",Dados!AG762)","v":""}]
[{"$f":"IF(ISERROR(Dados!A763),\"-\",Dados!A763)","v":""},{"$f":"IF(ISERROR(Dados!B763),\"-\",Dados!B763)","v":""},{"$f":"IF(ISERROR(Dados!C763),\"-\",Dados!C763)","v":""},{"$f":"IF(ISERROR(Dados!D763),\"-\",Dados!D763)","v":""},{"$f":"IF(ISERROR(Dados!E763),\"-\",Dados!E763)","v":""},{"$f":"IF(ISERROR(Dados!F763),\"-\",Dados!F763)","v":""},{"$f":"IF(ISERROR(Dados!G763),\"-\",Dados!G763)","v":""},{"$f":"IF(ISERROR(Dados!H763),\"-\",Dados!H763)","v":""},{"$f":"IF(ISERROR(Dados!I763),\"-\",Dados!I763)","v":""},{"$f":"IF(ISERROR(Dados!J763),\"-\",Dados!J763)","v":""},{"$f":"IF(ISERROR(Dados!K763),\"-\",Dados!K763)","v":""},{"$f":"IF(ISERROR(Dados!L763),\"-\",Dados!L763)","v":""},{"$f":"IF(ISERROR(Dados!M763),\"-\",Dados!M763)","v":""},{"$f":"IF(ISERROR(Dados!N763),\"-\",Dados!N763)","v":""},{"$f":"IF(ISERROR(Dados!O763),\"-\",Dados!O763)","v":""},{"$f":"IF(ISERROR(Dados!P763),\"-\",Dados!P763)","v":""},{"$f":"IF(ISERROR(Dados!Q763),\"-\",Dados!Q763)","v":""},{"$f":"IF(ISERROR(Dados!R763),\"-\",Dados!R763)","v":""},{"$f":"IF(ISERROR(Dados!S763),\"-\",Dados!S763)","v":""},{"$f":"IF(ISERROR(Dados!T763),\"-\",Dados!T763)","v":""},{"$f":"IF(ISERROR(Dados!U763),\"-\",Dados!U763)","v":""},{"$f":"IF(ISERROR(Dados!V763),\"-\",Dados!V763)","v":""},{"$f":"IF(ISERROR(Dados!W763),\"-\",Dados!W763)","v":""},{"$f":"IF(ISERROR(Dados!X763),\"-\",Dados!X763)","v":""},{"$f":"IF(ISERROR(Dados!Y763),\"-\",Dados!Y763)","v":""},{"$f":"IF(ISERROR(Dados!Z763),\"-\",Dados!Z763)","v":""},{"$f":"IF(ISERROR(Dados!AA763),\"-\",Dados!AA763)","v":""},{"$f":"IF(ISERROR(Dados!AB763),\"-\",Dados!AB763)","v":""},{"$f":"IF(ISERROR(Dados!AC763),\"-\",Dados!AC763)","v":""},{"$f":"IF(ISERROR(Dados!AD763),\"-\",Dados!AD763)","v":""},{"$f":"IF(ISERROR(Dados!AE763),\"-\",Dados!AE763)","v":""},{"$f":"IF(ISERROR(Dados!AF763),\"-\",Dados!AF763)","v":""},{"$f":"IF(ISERROR(Dados!AG763),\"-\",Dados!AG763)","v":""}]
[{"$f":"IF(ISERROR(Dados!A764),\"-\",Dados!A764)","v":""},{"$f":"IF(ISERROR(Dados!B764),\"-\",Dados!B764)","v":""},{"$f":"IF(ISERROR(Dados!C764),\"-\",Dados!C764)","v":""},{"$f":"IF(ISERROR(Dados!D764),\"-\",Dados!D764)","v":""},{"$f":"IF(ISERROR(Dados!E764),\"-\",Dados!E764)","v":""},{"$f":"IF(ISERROR(Dados!F764),\"-\",Dados!F764)","v":""},{"$f":"IF(ISERROR(Dados!G764),\"-\",Dados!G764)","v":""},{"$f":"IF(ISERROR(Dados!H764),\"-\",Dados!H764)","v":""},{"$f":"IF(ISERROR(Dados!I764),\"-\",Dados!I764)","v":""},{"$f":"IF(ISERROR(Dados!J764),\"-\",Dados!J764)","v":""},{"$f":"IF(ISERROR(Dados!K764),\"-\",Dados!K764)","v":""},{"$f":"IF(ISERROR(Dados!L764),\"-\",Dados!L764)","v":""},{"$f":"IF(ISERROR(Dados!M764),\"-\",Dados!M764)","v":""},{"$f":"IF(ISERROR(Dados!N764),\"-\",Dados!N764)","v":""},{"$f":"IF(ISERROR(Dados!O764),\"-\",Dados!O764)","v":""},{"$f":"IF(ISERROR(Dados!P764),\"-\",Dados!P764)","v":""},{"$f":"IF(ISERROR(Dados!Q764),\"-\",Dados!Q764)","v":""},{"$f":"IF(ISERROR(Dados!R764),\"-\",Dados!R764)","v":""},{"$f":"IF(ISERROR(Dados!S764),\"-\",Dados!S764)","v":""},{"$f":"IF(ISERROR(Dados!T764),\"-\",Dados!T764)","v":""},{"$f":"IF(ISERROR(Dados!U764),\"-\",Dados!U764)","v":""},{"$f":"IF(ISERROR(Dados!V764),\"-\",Dados!V764)","v":""},{"$f":"IF(ISERROR(Dados!W764),\"-\",Dados!W764)","v":""},{"$f":"IF(ISERROR(Dados!X764),\"-\",Dados!X764)","v":""},{"$f":"IF(ISERROR(Dados!Y764),\"-\",Dados!Y764)","v":""},{"$f":"IF(ISERROR(Dados!Z764),\"-\",Dados!Z764)","v":""},{"$f":"IF(ISERROR(Dados!AA764),\"-\",Dados!AA764)","v":""},{"$f":"IF(ISERROR(Dados!AB764),\"-\",Dados!AB764)","v":""},{"$f":"IF(ISERROR(Dados!AC764),\"-\",Dados!AC764)","v":""},{"$f":"IF(ISERROR(Dados!AD764),\"-\",Dados!AD764)","v":""},{"$f":"IF(ISERROR(Dados!AE764),\"-\",Dados!AE764)","v":""},{"$f":"IF(ISERROR(Dados!AF764),\"-\",Dados!AF764)","v":""},{"$f":"IF(ISERROR(Dados!AG764),\"-\",Dados!AG764)","v":""}]
[{"$f":"IF(ISERROR(Dados!A765),\"-\",Dados!A765)","v":""},{"$f":"IF(ISERROR(Dados!B765),\"-\",Dados!B765)","v":""},{"$f":"IF(ISERROR(Dados!C765),\"-\",Dados!C765)","v":""},{"$f":"IF(ISERROR(Dados!D765),\"-\",Dados!D765)","v":""},{"$f":"IF(ISERROR(Dados!E765),\"-\",Dados!E765)","v":""},{"$f":"IF(ISERROR(Dados!F765),\"-\",Dados!F765)","v":""},{"$f":"IF(ISERROR(Dados!G765),\"-\",Dados!G765)","v":""},{"$f":"IF(ISERROR(Dados!H765),\"-\",Dados!H765)","v":""},{"$f":"IF(ISERROR(Dados!I765),\"-\",Dados!I765)","v":""},{"$f":"IF(ISERROR(Dados!J765),\"-\",Dados!J765)","v":""},{"$f":"IF(ISERROR(Dados!K765),\"-\",Dados!K765)","v":""},{"$f":"IF(ISERROR(Dados!L765),\"-\",Dados!L765)","v":""},{"$f":"IF(ISERROR(Dados!M765),\"-\",Dados!M765)","v":""},{"$f":"IF(ISERROR(Dados!N765),\"-\",Dados!N765)","v":""},{"$f":"IF(ISERROR(Dados!O765),\"-\",Dados!O765)","v":""},{"$f":"IF(ISERROR(Dados!P765),\"-\",Dados!P765)","v":""},{"$f":"IF(ISERROR(Dados!Q765),\"-\",Dados!Q765)","v":""},{"$f":"IF(ISERROR(Dados!R765),\"-\",Dados!R765)","v":""},{"$f":"IF(ISERROR(Dados!S765),\"-\",Dados!S765)","v":""},{"$f":"IF(ISERROR(Dados!T765),\"-\",Dados!T765)","v":""},{"$f":"IF(ISERROR(Dados!U765),\"-\",Dados!U765)","v":""},{"$f":"IF(ISERROR(Dados!V765),\"-\",Dados!V765)","v":""},{"$f":"IF(ISERROR(Dados!W765),\"-\",Dados!W765)","v":""},{"$f":"IF(ISERROR(Dados!X765),\"-\",Dados!X765)","v":""},{"$f":"IF(ISERROR(Dados!Y765),\"-\",Dados!Y765)","v":""},{"$f":"IF(ISERROR(Dados!Z765),\"-\",Dados!Z765)","v":""},{"$f":"IF(ISERROR(Dados!AA765),\"-\",Dados!AA765)","v":""},{"$f":"IF(ISERROR(Dados!AB765),\"-\",Dados!AB765)","v":""},{"$f":"IF(ISERROR(Dados!AC765),\"-\",Dados!AC765)","v":""},{"$f":"IF(ISERROR(Dados!AD765),\"-\",Dados!AD765)","v":""},{"$f":"IF(ISERROR(Dados!AE765),\"-\",Dados!AE765)","v":""},{"$f":"IF(ISERROR(Dados!AF765),\"-\",Dados!AF765)","v":""},{"$f":"IF(ISERROR(Dados!AG765),\"-\",Dados!AG765)","v":""}]
[{"$f":"IF(ISERROR(Dados!A766),\"-\",Dados!A766)","v":""},{"$f":"IF(ISERROR(Dados!B766),\"-\",Dados!B766)","v":""},{"$f":"IF(ISERROR(Dados!C766),\"-\",Dados!C766)","v":""},{"$f":"IF(ISERROR(Dados!D766),\"-\",Dados!D766)","v":""},{"$f":"IF(ISERROR(Dados!E766),\"-\",Dados!E766)","v":""},{"$f":"IF(ISERROR(Dados!F766),\"-\",Dados!F766)","v":""},{"$f":"IF(ISERROR(Dados!G766),\"-\",Dados!G766)","v":""},{"$f":"IF(ISERROR(Dados!H766),\"-\",Dados!H766)","v":""},{"$f":"IF(ISERROR(Dados!I766),\"-\",Dados!I766)","v":""},{"$f":"IF(ISERROR(Dados!J766),\"-\",Dados!J766)","v":""},{"$f":"IF(ISERROR(Dados!K766),\"-\",Dados!K766)","v":""},{"$f":"IF(ISERROR(Dados!L766),\"-\",Dados!L766)","v":""},{"$f":"IF(ISERROR(Dados!M766),\"-\",Dados!M766)","v":""},{"$f":"IF(ISERROR(Dados!N766),\"-\",Dados!N766)","v":""},{"$f":"IF(ISERROR(Dados!O766),\"-\",Dados!O766)","v":""},{"$f":"IF(ISERROR(Dados!P766),\"-\",Dados!P766)","v":""},{"$f":"IF(ISERROR(Dados!Q766),\"-\",Dados!Q766)","v":""},{"$f":"IF(ISERROR(Dados!R766),\"-\",Dados!R766)","v":""},{"$f":"IF(ISERROR(Dados!S766),\"-\",Dados!S766)","v":""},{"$f":"IF(ISERROR(Dados!T766),\"-\",Dados!T766)","v":""},{"$f":"IF(ISERROR(Dados!U766),\"-\",Dados!U766)","v":""},{"$f":"IF(ISERROR(Dados!V766),\"-\",Dados!V766)","v":""},{"$f":"IF(ISERROR(Dados!W766),\"-\",Dados!W766)","v":""},{"$f":"IF(ISERROR(Dados!X766),\"-\",Dados!X766)","v":""},{"$f":"IF(ISERROR(Dados!Y766),\"-\",Dados!Y766)","v":""},{"$f":"IF(ISERROR(Dados!Z766),\"-\",Dados!Z766)","v":""},{"$f":"IF(ISERROR(Dados!AA766),\"-\",Dados!AA766)","v":""},{"$f":"IF(ISERROR(Dados!AB766),\"-\",Dados!AB766)","v":""},{"$f":"IF(ISERROR(Dados!AC766),\"-\",Dados!AC766)","v":""},{"$f":"IF(ISERROR(Dados!AD766),\"-\",Dados!AD766)","v":""},{"$f":"IF(ISERROR(Dados!AE766),\"-\",Dados!AE766)","v":""},{"$f":"IF(ISERROR(Dados!AF766),\"-\",Dados!AF766)","v":""},{"$f":"IF(ISERROR(Dados!AG766),\"-\",Dados!AG766)","v":""}]
[{"$f":"IF(ISERROR(Dados!A767),\"-\",Dados!A767)","v":""},{"$f":"IF(ISERROR(Dados!B767),\"-\",Dados!B767)","v":""},{"$f":"IF(ISERROR(Dados!C767),\"-\",Dados!C767)","v":""},{"$f":"IF(ISERROR(Dados!D767),\"-\",Dados!D767)","v":""},{"$f":"IF(ISERROR(Dados!E767),\"-\",Dados!E767)","v":""},{"$f":"IF(ISERROR(Dados!F767),\"-\",Dados!F767)","v":""},{"$f":"IF(ISERROR(Dados!G767),\"-\",Dados!G767)","v":""},{"$f":"IF(ISERROR(Dados!H767),\"-\",Dados!H767)","v":""},{"$f":"IF(ISERROR(Dados!I767),\"-\",Dados!I767)","v":""},{"$f":"IF(ISERROR(Dados!J767),\"-\",Dados!J767)","v":""},{"$f":"IF(ISERROR(Dados!K767),\"-\",Dados!K767)","v":""},{"$f":"IF(ISERROR(Dados!L767),\"-\",Dados!L767)","v":""},{"$f":"IF(ISERROR(Dados!M767),\"-\",Dados!M767)","v":""},{"$f":"IF(ISERROR(Dados!N767),\"-\",Dados!N767)","v":""},{"$f":"IF(ISERROR(Dados!O767),\"-\",Dados!O767)","v":""},{"$f":"IF(ISERROR(Dados!P767),\"-\",Dados!P767)","v":""},{"$f":"IF(ISERROR(Dados!Q767),\"-\",Dados!Q767)","v":""},{"$f":"IF(ISERROR(Dados!R767),\"-\",Dados!R767)","v":""},{"$f":"IF(ISERROR(Dados!S767),\"-\",Dados!S767)","v":""},{"$f":"IF(ISERROR(Dados!T767),\"-\",Dados!T767)","v":""},{"$f":"IF(ISERROR(Dados!U767),\"-\",Dados!U767)","v":""},{"$f":"IF(ISERROR(Dados!V767),\"-\",Dados!V767)","v":""},{"$f":"IF(ISERROR(Dados!W767),\"-\",Dados!W767)","v":""},{"$f":"IF(ISERROR(Dados!X767),\"-\",Dados!X767)","v":""},{"$f":"IF(ISERROR(Dados!Y767),\"-\",Dados!Y767)","v":""},{"$f":"IF(ISERROR(Dados!Z767),\"-\",Dados!Z767)","v":""},{"$f":"IF(ISERROR(Dados!AA767),\"-\",Dados!AA767)","v":""},{"$f":"IF(ISERROR(Dados!AB767),\"-\",Dados!AB767)","v":""},{"$f":"IF(ISERROR(Dados!AC767),\"-\",Dados!AC767)","v":""},{"$f":"IF(ISERROR(Dados!AD767),\"-\",Dados!AD767)","v":""},{"$f":"IF(ISERROR(Dados!AE767),\"-\",Dados!AE767)","v":""},{"$f":"IF(ISERROR(Dados!AF767),\"-\",Dados!AF767)","v":""},{"$f":"IF(ISERROR(Dados!AG767),\"-\",Dados!AG767)","v":""}]
[{"$f":"IF(ISERROR(Dados!A768),\"-\",Dados!A768)","v":""},{"$f":"IF(ISERROR(Dados!B768),\"-\",Dados!B768)","v":""},{"$f":"IF(ISERROR(Dados!C768),\"-\",Dados!C768)","v":""},{"$f":"IF(ISERROR(Dados!D768),\"-\",Dados!D768)","v":""},{"$f":"IF(ISERROR(Dados!E768),\"-\",Dados!E768)","v":""},{"$f":"IF(ISERROR(Dados!F768),\"-\",Dados!F768)","v":""},{"$f":"IF(ISERROR(Dados!G768),\"-\",Dados!G768)","v":""},{"$f":"IF(ISERROR(Dados!H768),\"-\",Dados!H768)","v":""},{"$f":"IF(ISERROR(Dados!I768),\"-\",Dados!I768)","v":""},{"$f":"IF(ISERROR(Dados!J768),\"-\",Dados!J768)","v":""},{"$f":"IF(ISERROR(Dados!K768),\"-\",Dados!K768)","v":""},{"$f":"IF(ISERROR(Dados!L768),\"-\",Dados!L768)","v":""},{"$f":"IF(ISERROR(Dados!M768),\"-\",Dados!M768)","v":""},{"$f":"IF(ISERROR(Dados!N768),\"-\",Dados!N768)","v":""},{"$f":"IF(ISERROR(Dados!O768),\"-\",Dados!O768)","v":""},{"$f":"IF(ISERROR(Dados!P768),\"-\",Dados!P768)","v":""},{"$f":"IF(ISERROR(Dados!Q768),\"-\",Dados!Q768)","v":""},{"$f":"IF(ISERROR(Dados!R768),\"-\",Dados!R768)","v":""},{"$f":"IF(ISERROR(Dados!S768),\"-\",Dados!S768)","v":""},{"$f":"IF(ISERROR(Dados!T768),\"-\",Dados!T768)","v":""},{"$f":"IF(ISERROR(Dados!U768),\"-\",Dados!U768)","v":""},{"$f":"IF(ISERROR(Dados!V768),\"-\",Dados!V768)","v":""},{"$f":"IF(ISERROR(Dados!W768),\"-\",Dados!W768)","v":""},{"$f":"IF(ISERROR(Dados!X768),\"-\",Dados!X768)","v":""},{"$f":"IF(ISERROR(Dados!Y768),\"-\",Dados!Y768)","v":""},{"$f":"IF(ISERROR(Dados!Z768),\"-\",Dados!Z768)","v":""},{"$f":"IF(ISERROR(Dados!AA768),\"-\",Dados!AA768)","v":""},{"$f":"IF(ISERROR(Dados!AB768),\"-\",Dados!AB768)","v":""},{"$f":"IF(ISERROR(Dados!AC768),\"-\",Dados!AC768)","v":""},{"$f":"IF(ISERROR(Dados!AD768),\"-\",Dados!AD768)","v":""},{"$f":"IF(ISERROR(Dados!AE768),\"-\",Dados!AE768)","v":""},{"$f":"IF(ISERROR(Dados!AF768),\"-\",Dados!AF768)","v":""},{"$f":"IF(ISERROR(Dados!AG768),\"-\",Dados!AG768)","v":""}]
[{"$f":"IF(ISERROR(Dados!A769),\"-\",Dados!A769)","v":""},{"$f":"IF(ISERROR(Dados!B769),\"-\",Dados!B769)","v":""},{"$f":"IF(ISERROR(Dados!C769),\"-\",Dados!C769)","v":""},{"$f":"IF(ISERROR(Dados!D769),\"-\",Dados!D769)","v":""},{"$f":"IF(ISERROR(Dados!E769),\"-\",Dados!E769)","v":""},{"$f":"IF(ISERROR(Dados!F769),\"-\",Dados!F769)","v":""},{"$f":"IF(ISERROR(Dados!G769),\"-\",Dados!G769)","v":""},{"$f":"IF(ISERROR(Dados!H769),\"-\",Dados!H769)","v":""},{"$f":"IF(ISERROR(Dados!I769),\"-\",Dados!I769)","v":""},{"$f":"IF(ISERROR(Dados!J769),\"-\",Dados!J769)","v":""},{"$f":"IF(ISERROR(Dados!K769),\"-\",Dados!K769)","v":""},{"$f":"IF(ISERROR(Dados!L769),\"-\",Dados!L769)","v":""},{"$f":"IF(ISERROR(Dados!M769),\"-\",Dados!M769)","v":""},{"$f":"IF(ISERROR(Dados!N769),\"-\",Dados!N769)","v":""},{"$f":"IF(ISERROR(Dados!O769),\"-\",Dados!O769)","v":""},{"$f":"IF(ISERROR(Dados!P769),\"-\",Dados!P769)","v":""},{"$f":"IF(ISERROR(Dados!Q769),\"-\",Dados!Q769)","v":""},{"$f":"IF(ISERROR(Dados!R769),\"-\",Dados!R769)","v":""},{"$f":"IF(ISERROR(Dados!S769),\"-\",Dados!S769)","v":""},{"$f":"IF(ISERROR(Dados!T769),\"-\",Dados!T769)","v":""},{"$f":"IF(ISERROR(Dados!U769),\"-\",Dados!U769)","v":""},{"$f":"IF(ISERROR(Dados!V769),\"-\",Dados!V769)","v":""},{"$f":"IF(ISERROR(Dados!W769),\"-\",Dados!W769)","v":""},{"$f":"IF(ISERROR(Dados!X769),\"-\",Dados!X769)","v":""},{"$f":"IF(ISERROR(Dados!Y769),\"-\",Dados!Y769)","v":""},{"$f":"IF(ISERROR(Dados!Z769),\"-\",Dados!Z769)","v":""},{"$f":"IF(ISERROR(Dados!AA769),\"-\",Dados!AA769)","v":""},{"$f":"IF(ISERROR(Dados!AB769),\"-\",Dados!AB769)","v":""},{"$f":"IF(ISERROR(Dados!AC769),\"-\",Dados!AC769)","v":""},{"$f":"IF(ISERROR(Dados!AD769),\"-\",Dados!AD769)","v":""},{"$f":"IF(ISERROR(Dados!AE769),\"-\",Dados!AE769)","v":""},{"$f":"IF(ISERROR(Dados!AF769),\"-\",Dados!AF769)","v":""},{"$f":"IF(ISERROR(Dados!AG769),\"-\",Dados!AG769)","v":""}]
[{"$f":"IF(ISERROR(Dados!A770),\"-\",Dados!A770)","v":""},{"$f":"IF(ISERROR(Dados!B770),\"-\",Dados!B770)","v":""},{"$f":"IF(ISERROR(Dados!C770),\"-\",Dados!C770)","v":""},{"$f":"IF(ISERROR(Dados!D770),\"-\",Dados!D770)","v":""},{"$f":"IF(ISERROR(Dados!E770),\"-\",Dados!E770)","v":""},{"$f":"IF(ISERROR(Dados!F770),\"-\",Dados!F770)","v":""},{"$f":"IF(ISERROR(Dados!G770),\"-\",Dados!G770)","v":""},{"$f":"IF(ISERROR(Dados!H770),\"-\",Dados!H770)","v":""},{"$f":"IF(ISERROR(Dados!I770),\"-\",Dados!I770)","v":""},{"$f":"IF(ISERROR(Dados!J770),\"-\",Dados!J770)","v":""},{"$f":"IF(ISERROR(Dados!K770),\"-\",Dados!K770)","v":""},{"$f":"IF(ISERROR(Dados!L770),\"-\",Dados!L770)","v":""},{"$f":"IF(ISERROR(Dados!M770),\"-\",Dados!M770)","v":""},{"$f":"IF(ISERROR(Dados!N770),\"-\",Dados!N770)","v":""},{"$f":"IF(ISERROR(Dados!O770),\"-\",Dados!O770)","v":""},{"$f":"IF(ISERROR(Dados!P770),\"-\",Dados!P770)","v":""},{"$f":"IF(ISERROR(Dados!Q770),\"-\",Dados!Q770)","v":""},{"$f":"IF(ISERROR(Dados!R770),\"-\",Dados!R770)","v":""},{"$f":"IF(ISERROR(Dados!S770),\"-\",Dados!S770)","v":""},{"$f":"IF(ISERROR(Dados!T770),\"-\",Dados!T770)","v":""},{"$f":"IF(ISERROR(Dados!U770),\"-\",Dados!U770)","v":""},{"$f":"IF(ISERROR(Dados!V770),\"-\",Dados!V770)","v":""},{"$f":"IF(ISERROR(Dados!W770),\"-\",Dados!W770)","v":""},{"$f":"IF(ISERROR(Dados!X770),\"-\",Dados!X770)","v":""},{"$f":"IF(ISERROR(Dados!Y770),\"-\",Dados!Y770)","v":""},{"$f":"IF(ISERROR(Dados!Z770),\"-\",Dados!Z770)","v":""},{"$f":"IF(ISERROR(Dados!AA770),\"-\",Dados!AA770)","v":""},{"$f":"IF(ISERROR(Dados!AB770),\"-\",Dados!AB770)","v":""},{"$f":"IF(ISERROR(Dados!AC770),\"-\",Dados!AC770)","v":""},{"$f":"IF(ISERROR(Dados!AD770),\"-\",Dados!AD770)","v":""},{"$f":"IF(ISERROR(Dados!AE770),\"-\",Dados!AE770)","v":""},{"$f":"IF(ISERROR(Dados!AF770),\"-\",Dados!AF770)","v":""},{"$f":"IF(ISERROR(Dados!AG770),\"-\",Dados!AG770)","v":""}]
[{"$f":"IF(ISERROR(Dados!A771),\"-\",Dados!A771)","v":""},{"$f":"IF(ISERROR(Dados!B771),\"-\",Dados!B771)","v":""},{"$f":"IF(ISERROR(Dados!C771),\"-\",Dados!C771)","v":""},{"$f":"IF(ISERROR(Dados!D771),\"-\",Dados!D771)","v":""},{"$f":"IF(ISERROR(Dados!E771),\"-\",Dados!E771)","v":""},{"$f":"IF(ISERROR(Dados!F771),\"-\",Dados!F771)","v":""},{"$f":"IF(ISERROR(Dados!G771),\"-\",Dados!G771)","v":""},{"$f":"IF(ISERROR(Dados!H771),\"-\",Dados!H771)","v":""},{"$f":"IF(ISERROR(Dados!I771),\"-\",Dados!I771)","v":""},{"$f":"IF(ISERROR(Dados!J771),\"-\",Dados!J771)","v":""},{"$f":"IF(ISERROR(Dados!K771),\"-\",Dados!K771)","v":""},{"$f":"IF(ISERROR(Dados!L771),\"-\",Dados!L771)","v":""},{"$f":"IF(ISERROR(Dados!M771),\"-\",Dados!M771)","v":""},{"$f":"IF(ISERROR(Dados!N771),\"-\",Dados!N771)","v":""},{"$f":"IF(ISERROR(Dados!O771),\"-\",Dados!O771)","v":""},{"$f":"IF(ISERROR(Dados!P771),\"-\",Dados!P771)","v":""},{"$f":"IF(ISERROR(Dados!Q771),\"-\",Dados!Q771)","v":""},{"$f":"IF(ISERROR(Dados!R771),\"-\",Dados!R771)","v":""},{"$f":"IF(ISERROR(Dados!S771),\"-\",Dados!S771)","v":""},{"$f":"IF(ISERROR(Dados!T771),\"-\",Dados!T771)","v":""},{"$f":"IF(ISERROR(Dados!U771),\"-\",Dados!U771)","v":""},{"$f":"IF(ISERROR(Dados!V771),\"-\",Dados!V771)","v":""},{"$f":"IF(ISERROR(Dados!W771),\"-\",Dados!W771)","v":""},{"$f":"IF(ISERROR(Dados!X771),\"-\",Dados!X771)","v":""},{"$f":"IF(ISERROR(Dados!Y771),\"-\",Dados!Y771)","v":""},{"$f":"IF(ISERROR(Dados!Z771),\"-\",Dados!Z771)","v":""},{"$f":"IF(ISERROR(Dados!AA771),\"-\",Dados!AA771)","v":""},{"$f":"IF(ISERROR(Dados!AB771),\"-\",Dados!AB771)","v":""},{"$f":"IF(ISERROR(Dados!AC771),\"-\",Dados!AC771)","v":""},{"$f":"IF(ISERROR(Dados!AD771),\"-\",Dados!AD771)","v":""},{"$f":"IF(ISERROR(Dados!AE771),\"-\",Dados!AE771)","v":""},{"$f":"IF(ISERROR(Dados!AF771),\"-\",Dados!AF771)","v":""},{"$f":"IF(ISERROR(Dados!AG771),\"-\",Dados!AG771)","v":""}]
[{"$f":"IF(ISERROR(Dados!A772),\"-\",Dados!A772)","v":""},{"$f":"IF(ISERROR(Dados!B772),\"-\",Dados!B772)","v":""},{"$f":"IF(ISERROR(Dados!C772),\"-\",Dados!C772)","v":""},{"$f":"IF(ISERROR(Dados!D772),\"-\",Dados!D772)","v":""},{"$f":"IF(ISERROR(Dados!E772),\"-\",Dados!E772)","v":""},{"$f":"IF(ISERROR(Dados!F772),\"-\",Dados!F772)","v":""},{"$f":"IF(ISERROR(Dados!G772),\"-\",Dados!G772)","v":""},{"$f":"IF(ISERROR(Dados!H772),\"-\",Dados!H772)","v":""},{"$f":"IF(ISERROR(Dados!I772),\"-\",Dados!I772)","v":""},{"$f":"IF(ISERROR(Dados!J772),\"-\",Dados!J772)","v":""},{"$f":"IF(ISERROR(Dados!K772),\"-\",Dados!K772)","v":""},{"$f":"IF(ISERROR(Dados!L772),\"-\",Dados!L772)","v":""},{"$f":"IF(ISERROR(Dados!M772),\"-\",Dados!M772)","v":""},{"$f":"IF(ISERROR(Dados!N772),\"-\",Dados!N772)","v":""},{"$f":"IF(ISERROR(Dados!O772),\"-\",Dados!O772)","v":""},{"$f":"IF(ISERROR(Dados!P772),\"-\",Dados!P772)","v":""},{"$f":"IF(ISERROR(Dados!Q772),\"-\",Dados!Q772)","v":""},{"$f":"IF(ISERROR(Dados!R772),\"-\",Dados!R772)","v":""},{"$f":"IF(ISERROR(Dados!S772),\"-\",Dados!S772)","v":""},{"$f":"IF(ISERROR(Dados!T772),\"-\",Dados!T772)","v":""},{"$f":"IF(ISERROR(Dados!U772),\"-\",Dados!U772)","v":""},{"$f":"IF(ISERROR(Dados!V772),\"-\",Dados!V772)","v":""},{"$f":"IF(ISERROR(Dados!W772),\"-\",Dados!W772)","v":""},{"$f":"IF(ISERROR(Dados!X772),\"-\",Dados!X772)","v":""},{"$f":"IF(ISERROR(Dados!Y772),\"-\",Dados!Y772)","v":""},{"$f":"IF(ISERROR(Dados!Z772),\"-\",Dados!Z772)","v":""},{"$f":"IF(ISERROR(Dados!AA772),\"-\",Dados!AA772)","v":""},{"$f":"IF(ISERROR(Dados!AB772),\"-\",Dados!AB772)","v":""},{"$f":"IF(ISERROR(Dados!AC772),\"-\",Dados!AC772)","v":""},{"$f":"IF(ISERROR(Dados!AD772),\"-\",Dados!AD772)","v":""},{"$f":"IF(ISERROR(Dados!AE772),\"-\",Dados!AE772)","v":""},{"$f":"IF(ISERROR(Dados!AF772),\"-\",Dados!AF772)","v":""},{"$f":"IF(ISERROR(Dados!AG772),\"-\",Dados!AG772)","v":""}]
[{"$f":"IF(ISERROR(Dados!A773),\"-\",Dados!A773)","v":""},{"$f":"IF(ISERROR(Dados!B773),\"-\",Dados!B773)","v":""},{"$f":"IF(ISERROR(Dados!C773),\"-\",Dados!C773)","v":""},{"$f":"IF(ISERROR(Dados!D773),\"-\",Dados!D773)","v":""},{"$f":"IF(ISERROR(Dados!E773),\"-\",Dados!E773)","v":""},{"$f":"IF(ISERROR(Dados!F773),\"-\",Dados!F773)","v":""},{"$f":"IF(ISERROR(Dados!G773),\"-\",Dados!G773)","v":""},{"$f":"IF(ISERROR(Dados!H773),\"-\",Dados!H773)","v":""},{"$f":"IF(ISERROR(Dados!I773),\"-\",Dados!I773)","v":""},{"$f":"IF(ISERROR(Dados!J773),\"-\",Dados!J773)","v":""},{"$f":"IF(ISERROR(Dados!K773),\"-\",Dados!K773)","v":""},{"$f":"IF(ISERROR(Dados!L773),\"-\",Dados!L773)","v":""},{"$f":"IF(ISERROR(Dados!M773),\"-\",Dados!M773)","v":""},{"$f":"IF(ISERROR(Dados!N773),\"-\",Dados!N773)","v":""},{"$f":"IF(ISERROR(Dados!O773),\"-\",Dados!O773)","v":""},{"$f":"IF(ISERROR(Dados!P773),\"-\",Dados!P773)","v":""},{"$f":"IF(ISERROR(Dados!Q773),\"-\",Dados!Q773)","v":""},{"$f":"IF(ISERROR(Dados!R773),\"-\",Dados!R773)","v":""},{"$f":"IF(ISERROR(Dados!S773),\"-\",Dados!S773)","v":""},{"$f":"IF(ISERROR(Dados!T773),\"-\",Dados!T773)","v":""},{"$f":"IF(ISERROR(Dados!U773),\"-\",Dados!U773)","v":""},{"$f":"IF(ISERROR(Dados!V773),\"-\",Dados!V773)","v":""},{"$f":"IF(ISERROR(Dados!W773),\"-\",Dados!W773)","v":""},{"$f":"IF(ISERROR(Dados!X773),\"-\",Dados!X773)","v":""},{"$f":"IF(ISERROR(Dados!Y773),\"-\",Dados!Y773)","v":""},{"$f":"IF(ISERROR(Dados!Z773),\"-\",Dados!Z773)","v":""},{"$f":"IF(ISERROR(Dados!AA773),\"-\",Dados!AA773)","v":""},{"$f":"IF(ISERROR(Dados!AB773),\"-\",Dados!AB773)","v":""},{"$f":"IF(ISERROR(Dados!AC773),\"-\",Dados!AC773)","v":""},{"$f":"IF(ISERROR(Dados!AD773),\"-\",Dados!AD773)","v":""},{"$f":"IF(ISERROR(Dados!AE773),\"-\",Dados!AE773)","v":""},{"$f":"IF(ISERROR(Dados!AF773),\"-\",Dados!AF773)","v":""},{"$f":"IF(ISERROR(Dados!AG773),\"-\",Dados!AG773)","v":""}]
[{"$f":"IF(ISERROR(Dados!A774),\"-\",Dados!A774)","v":""},{"$f":"IF(ISERROR(Dados!B774),\"-\",Dados!B774)","v":""},{"$f":"IF(ISERROR(Dados!C774),\"-\",Dados!C774)","v":""},{"$f":"IF(ISERROR(Dados!D774),\"-\",Dados!D774)","v":""},{"$f":"IF(ISERROR(Dados!E774),\"-\",Dados!E774)","v":""},{"$f":"IF(ISERROR(Dados!F774),\"-\",Dados!F774)","v":""},{"$f":"IF(ISERROR(Dados!G774),\"-\",Dados!G774)","v":""},{"$f":"IF(ISERROR(Dados!H774),\"-\",Dados!H774)","v":""},{"$f":"IF(ISERROR(Dados!I774),\"-\",Dados!I774)","v":""},{"$f":"IF(ISERROR(Dados!J774),\"-\",Dados!J774)","v":""},{"$f":"IF(ISERROR(Dados!K774),\"-\",Dados!K774)","v":""},{"$f":"IF(ISERROR(Dados!L774),\"-\",Dados!L774)","v":""},{"$f":"IF(ISERROR(Dados!M774),\"-\",Dados!M774)","v":""},{"$f":"IF(ISERROR(Dados!N774),\"-\",Dados!N774)","v":""},{"$f":"IF(ISERROR(Dados!O774),\"-\",Dados!O774)","v":""},{"$f":"IF(ISERROR(Dados!P774),\"-\",Dados!P774)","v":""},{"$f":"IF(ISERROR(Dados!Q774),\"-\",Dados!Q774)","v":""},{"$f":"IF(ISERROR(Dados!R774),\"-\",Dados!R774)","v":""},{"$f":"IF(ISERROR(Dados!S774),\"-\",Dados!S774)","v":""},{"$f":"IF(ISERROR(Dados!T774),\"-\",Dados!T774)","v":""},{"$f":"IF(ISERROR(Dados!U774),\"-\",Dados!U774)","v":""},{"$f":"IF(ISERROR(Dados!V774),\"-\",Dados!V774)","v":""},{"$f":"IF(ISERROR(Dados!W774),\"-\",Dados!W774)","v":""},{"$f":"IF(ISERROR(Dados!X774),\"-\",Dados!X774)","v":""},{"$f":"IF(ISERROR(Dados!Y774),\"-\",Dados!Y774)","v":""},{"$f":"IF(ISERROR(Dados!Z774),\"-\",Dados!Z774)","v":""},{"$f":"IF(ISERROR(Dados!AA774),\"-\",Dados!AA774)","v":""},{"$f":"IF(ISERROR(Dados!AB774),\"-\",Dados!AB774)","v":""},{"$f":"IF(ISERROR(Dados!AC774),\"-\",Dados!AC774)","v":""},{"$f":"IF(ISERROR(Dados!AD774),\"-\",Dados!AD774)","v":""},{"$f":"IF(ISERROR(Dados!AE774),\"-\",Dados!AE774)","v":""},{"$f":"IF(ISERROR(Dados!AF774),\"-\",Dados!AF774)","v":""},{"$f":"IF(ISERROR(Dados!AG774),\"-\",Dados!AG774)","v":""}]
[{"$f":"IF(ISERROR(Dados!A775),\"-\",Dados!A775)","v":""},{"$f":"IF(ISERROR(Dados!B775),\"-\",Dados!B775)","v":""},{"$f":"IF(ISERROR(Dados!C775),\"-\",Dados!C775)","v":""},{"$f":"IF(ISERROR(Dados!D775),\"-\",Dados!D775)","v":""},{"$f":"IF(ISERROR(Dados!E775),\"-\",Dados!E775)","v":""},{"$f":"IF(ISERROR(Dados!F775),\"-\",Dados!F775)","v":""},{"$f":"IF(ISERROR(Dados!G775),\"-\",Dados!G775)","v":""},{"$f":"IF(ISERROR(Dados!H775),\"-\",Dados!H775)","v":""},{"$f":"IF(ISERROR(Dados!I775),\"-\",Dados!I775)","v":""},{"$f":"IF(ISERROR(Dados!J775),\"-\",Dados!J775)","v":""},{"$f":"IF(ISERROR(Dados!K775),\"-\",Dados!K775)","v":""},{"$f":"IF(ISERROR(Dados!L775),\"-\",Dados!L775)","v":""},{"$f":"IF(ISERROR(Dados!M775),\"-\",Dados!M775)","v":""},{"$f":"IF(ISERROR(Dados!N775),\"-\",Dados!N775)","v":""},{"$f":"IF(ISERROR(Dados!O775),\"-\",Dados!O775)","v":""},{"$f":"IF(ISERROR(Dados!P775),\"-\",Dados!P775)","v":""},{"$f":"IF(ISERROR(Dados!Q775),\"-\",Dados!Q775)","v":""},{"$f":"IF(ISERROR(Dados!R775),\"-\",Dados!R775)","v":""},{"$f":"IF(ISERROR(Dados!S775),\"-\",Dados!S775)","v":""},{"$f":"IF(ISERROR(Dados!T775),\"-\",Dados!T775)","v":""},{"$f":"IF(ISERROR(Dados!U775),\"-\",Dados!U775)","v":""},{"$f":"IF(ISERROR(Dados!V775),\"-\",Dados!V775)","v":""},{"$f":"IF(ISERROR(Dados!W775),\"-\",Dados!W775)","v":""},{"$f":"IF(ISERROR(Dados!X775),\"-\",Dados!X775)","v":""},{"$f":"IF(ISERROR(Dados!Y775),\"-\",Dados!Y775)","v":""},{"$f":"IF(ISERROR(Dados!Z775),\"-\",Dados!Z775)","v":""},{"$f":"IF(ISERROR(Dados!AA775),\"-\",Dados!AA775)","v":""},{"$f":"IF(ISERROR(Dados!AB775),\"-\",Dados!AB775)","v":""},{"$f":"IF(ISERROR(Dados!AC775),\"-\",Dados!AC775)","v":""},{"$f":"IF(ISERROR(Dados!AD775),\"-\",Dados!AD775)","v":""},{"$f":"IF(ISERROR(Dados!AE775),\"-\",Dados!AE775)","v":""},{"$f":"IF(ISERROR(Dados!AF775),\"-\",Dados!AF775)","v":""},{"$f":"IF(ISERROR(Dados!AG775),\"-\",Dados!AG775)","v":""}]
[{"$f":"IF(ISERROR(Dados!A776),\"-\",Dados!A776)","v":""},{"$f":"IF(ISERROR(Dados!B776),\"-\",Dados!B776)","v":""},{"$f":"IF(ISERROR(Dados!C776),\"-\",Dados!C776)","v":""},{"$f":"IF(ISERROR(Dados!D776),\"-\",Dados!D776)","v":""},{"$f":"IF(ISERROR(Dados!E776),\"-\",Dados!E776)","v":""},{"$f":"IF(ISERROR(Dados!F776),\"-\",Dados!F776)","v":""},{"$f":"IF(ISERROR(Dados!G776),\"-\",Dados!G776)","v":""},{"$f":"IF(ISERROR(Dados!H776),\"-\",Dados!H776)","v":""},{"$f":"IF(ISERROR(Dados!I776),\"-\",Dados!I776)","v":""},{"$f":"IF(ISERROR(Dados!J776),\"-\",Dados!J776)","v":""},{"$f":"IF(ISERROR(Dados!K776),\"-\",Dados!K776)","v":""},{"$f":"IF(ISERROR(Dados!L776),\"-\",Dados!L776)","v":""},{"$f":"IF(ISERROR(Dados!M776),\"-\",Dados!M776)","v":""},{"$f":"IF(ISERROR(Dados!N776),\"-\",Dados!N776)","v":""},{"$f":"IF(ISERROR(Dados!O776),\"-\",Dados!O776)","v":""},{"$f":"IF(ISERROR(Dados!P776),\"-\",Dados!P776)","v":""},{"$f":"IF(ISERROR(Dados!Q776),\"-\",Dados!Q776)","v":""},{"$f":"IF(ISERROR(Dados!R776),\"-\",Dados!R776)","v":""},{"$f":"IF(ISERROR(Dados!S776),\"-\",Dados!S776)","v":""},{"$f":"IF(ISERROR(Dados!T776),\"-\",Dados!T776)","v":""},{"$f":"IF(ISERROR(Dados!U776),\"-\",Dados!U776)","v":""},{"$f":"IF(ISERROR(Dados!V776),\"-\",Dados!V776)","v":""},{"$f":"IF(ISERROR(Dados!W776),\"-\",Dados!W776)","v":""},{"$f":"IF(ISERROR(Dados!X776),\"-\",Dados!X776)","v":""},{"$f":"IF(ISERROR(Dados!Y776),\"-\",Dados!Y776)","v":""},{"$f":"IF(ISERROR(Dados!Z776),\"-\",Dados!Z776)","v":""},{"$f":"IF(ISERROR(Dados!AA776),\"-\",Dados!AA776)","v":""},{"$f":"IF(ISERROR(Dados!AB776),\"-\",Dados!AB776)","v":""},{"$f":"IF(ISERROR(Dados!AC776),\"-\",Dados!AC776)","v":""},{"$f":"IF(ISERROR(Dados!AD776),\"-\",Dados!AD776)","v":""},{"$f":"IF(ISERROR(Dados!AE776),\"-\",Dados!AE776)","v":""},{"$f":"IF(ISERROR(Dados!AF776),\"-\",Dados!AF776)","v":""},{"$f":"IF(ISERROR(Dados!AG776),\"-\",Dados!AG776)","v":""}]
[{"$f":"IF(ISERROR(Dados!A777),\"-\",Dados!A777)","v":""},{"$f":"IF(ISERROR(Dados!B777),\"-\",Dados!B777)","v":""},{"$f":"IF(ISERROR(Dados!C777),\"-\",Dados!C777)","v":""},{"$f":"IF(ISERROR(Dados!D777),\"-\",Dados!D777)","v":""},{"$f":"IF(ISERROR(Dados!E777),\"-\",Dados!E777)","v":""},{"$f":"IF(ISERROR(Dados!F777),\"-\",Dados!F777)","v":""},{"$f":"IF(ISERROR(Dados!G777),\"-\",Dados!G777)","v":""},{"$f":"IF(ISERROR(Dados!H777),\"-\",Dados!H777)","v":""},{"$f":"IF(ISERROR(Dados!I777),\"-\",Dados!I777)","v":""},{"$f":"IF(ISERROR(Dados!J777),\"-\",Dados!J777)","v":""},{"$f":"IF(ISERROR(Dados!K777),\"-\",Dados!K777)","v":""},{"$f":"IF(ISERROR(Dados!L777),\"-\",Dados!L777)","v":""},{"$f":"IF(ISERROR(Dados!M777),\"-\",Dados!M777)","v":""},{"$f":"IF(ISERROR(Dados!N777),\"-\",Dados!N777)","v":""},{"$f":"IF(ISERROR(Dados!O777),\"-\",Dados!O777)","v":""},{"$f":"IF(ISERROR(Dados!P777),\"-\",Dados!P777)","v":""},{"$f":"IF(ISERROR(Dados!Q777),\"-\",Dados!Q777)","v":""},{"$f":"IF(ISERROR(Dados!R777),\"-\",Dados!R777)","v":""},{"$f":"IF(ISERROR(Dados!S777),\"-\",Dados!S777)","v":""},{"$f":"IF(ISERROR(Dados!T777),\"-\",Dados!T777)","v":""},{"$f":"IF(ISERROR(Dados!U777),\"-\",Dados!U777)","v":""},{"$f":"IF(ISERROR(Dados!V777),\"-\",Dados!V777)","v":""},{"$f":"IF(ISERROR(Dados!W777),\"-\",Dados!W777)","v":""},{"$f":"IF(ISERROR(Dados!X777),\"-\",Dados!X777)","v":""},{"$f":"IF(ISERROR(Dados!Y777),\"-\",Dados!Y777)","v":""},{"$f":"IF(ISERROR(Dados!Z777),\"-\",Dados!Z777)","v":""},{"$f":"IF(ISERROR(Dados!AA777),\"-\",Dados!AA777)","v":""},{"$f":"IF(ISERROR(Dados!AB777),\"-\",Dados!AB777)","v":""},{"$f":"IF(ISERROR(Dados!AC777),\"-\",Dados!AC777)","v":""},{"$f":"IF(ISERROR(Dados!AD777),\"-\",Dados!AD777)","v":""},{"$f":"IF(ISERROR(Dados!AE777),\"-\",Dados!AE777)","v":""},{"$f":"IF(ISERROR(Dados!AF777),\"-\",Dados!AF777)","v":""},{"$f":"IF(ISERROR(Dados!AG777),\"-\",Dados!AG777)","v":""}]
[{"$f":"IF(ISERROR(Dados!A778),\"-\",Dados!A778)","v":""},{"$f":"IF(ISERROR(Dados!B778),\"-\",Dados!B778)","v":""},{"$f":"IF(ISERROR(Dados!C778),\"-\",Dados!C778)","v":""},{"$f":"IF(ISERROR(Dados!D778),\"-\",Dados!D778)","v":""},{"$f":"IF(ISERROR(Dados!E778),\"-\",Dados!E778)","v":""},{"$f":"IF(ISERROR(Dados!F778),\"-\",Dados!F778)","v":""},{"$f":"IF(ISERROR(Dados!G778),\"-\",Dados!G778)","v":""},{"$f":"IF(ISERROR(Dados!H778),\"-\",Dados!H778)","v":""},{"$f":"IF(ISERROR(Dados!I778),\"-\",Dados!I778)","v":""},{"$f":"IF(ISERROR(Dados!J778),\"-\",Dados!J778)","v":""},{"$f":"IF(ISERROR(Dados!K778),\"-\",Dados!K778)","v":""},{"$f":"IF(ISERROR(Dados!L778),\"-\",Dados!L778)","v":""},{"$f":"IF(ISERROR(Dados!M778),\"-\",Dados!M778)","v":""},{"$f":"IF(ISERROR(Dados!N778),\"-\",Dados!N778)","v":""},{"$f":"IF(ISERROR(Dados!O778),\"-\",Dados!O778)","v":""},{"$f":"IF(ISERROR(Dados!P778),\"-\",Dados!P778)","v":""},{"$f":"IF(ISERROR(Dados!Q778),\"-\",Dados!Q778)","v":""},{"$f":"IF(ISERROR(Dados!R778),\"-\",Dados!R778)","v":""},{"$f":"IF(ISERROR(Dados!S778),\"-\",Dados!S778)","v":""},{"$f":"IF(ISERROR(Dados!T778),\"-\",Dados!T778)","v":""},{"$f":"IF(ISERROR(Dados!U778),\"-\",Dados!U778)","v":""},{"$f":"IF(ISERROR(Dados!V778),\"-\",Dados!V778)","v":""},{"$f":"IF(ISERROR(Dados!W778),\"-\",Dados!W778)","v":""},{"$f":"IF(ISERROR(Dados!X778),\"-\",Dados!X778)","v":""},{"$f":"IF(ISERROR(Dados!Y778),\"-\",Dados!Y778)","v":""},{"$f":"IF(ISERROR(Dados!Z778),\"-\",Dados!Z778)","v":""},{"$f":"IF(ISERROR(Dados!AA778),\"-\",Dados!AA778)","v":""},{"$f":"IF(ISERROR(Dados!AB778),\"-\",Dados!AB778)","v":""},{"$f":"IF(ISERROR(Dados!AC778),\"-\",Dados!AC778)","v":""},{"$f":"IF(ISERROR(Dados!AD778),\"-\",Dados!AD778)","v":""},{"$f":"IF(ISERROR(Dados!AE778),\"-\",Dados!AE778)","v":""},{"$f":"IF(ISERROR(Dados!AF778),\"-\",Dados!AF778)","v":""},{"$f":"IF(ISERROR(Dados!AG778),\"-\",Dados!AG778)","v":""}]
[{"$f":"IF(ISERROR(Dados!A779),\"-\",Dados!A779)","v":""},{"$f":"IF(ISERROR(Dados!B779),\"-\",Dados!B779)","v":""},{"$f":"IF(ISERROR(Dados!C779),\"-\",Dados!C779)","v":""},{"$f":"IF(ISERROR(Dados!D779),\"-\",Dados!D779)","v":""},{"$f":"IF(ISERROR(Dados!E779),\"-\",Dados!E779)","v":""},{"$f":"IF(ISERROR(Dados!F779),\"-\",Dados!F779)","v":""},{"$f":"IF(ISERROR(Dados!G779),\"-\",Dados!G779)","v":""},{"$f":"IF(ISERROR(Dados!H779),\"-\",Dados!H779)","v":""},{"$f":"IF(ISERROR(Dados!I779),\"-\",Dados!I779)","v":""},{"$f":"IF(ISERROR(Dados!J779),\"-\",Dados!J779)","v":""},{"$f":"IF(ISERROR(Dados!K779),\"-\",Dados!K779)","v":""},{"$f":"IF(ISERROR(Dados!L779),\"-\",Dados!L779)","v":""},{"$f":"IF(ISERROR(Dados!M779),\"-\",Dados!M779)","v":""},{"$f":"IF(ISERROR(Dados!N779),\"-\",Dados!N779)","v":""},{"$f":"IF(ISERROR(Dados!O779),\"-\",Dados!O779)","v":""},{"$f":"IF(ISERROR(Dados!P779),\"-\",Dados!P779)","v":""},{"$f":"IF(ISERROR(Dados!Q779),\"-\",Dados!Q779)","v":""},{"$f":"IF(ISERROR(Dados!R779),\"-\",Dados!R779)","v":""},{"$f":"IF(ISERROR(Dados!S779),\"-\",Dados!S779)","v":""},{"$f":"IF(ISERROR(Dados!T779),\"-\",Dados!T779)","v":""},{"$f":"IF(ISERROR(Dados!U779),\"-\",Dados!U779)","v":""},{"$f":"IF(ISERROR(Dados!V779),\"-\",Dados!V779)","v":""},{"$f":"IF(ISERROR(Dados!W779),\"-\",Dados!W779)","v":""},{"$f":"IF(ISERROR(Dados!X779),\"-\",Dados!X779)","v":""},{"$f":"IF(ISERROR(Dados!Y779),\"-\",Dados!Y779)","v":""},{"$f":"IF(ISERROR(Dados!Z779),\"-\",Dados!Z779)","v":""},{"$f":"IF(ISERROR(Dados!AA779),\"-\",Dados!AA779)","v":""},{"$f":"IF(ISERROR(Dados!AB779),\"-\",Dados!AB779)","v":""},{"$f":"IF(ISERROR(Dados!AC779),\"-\",Dados!AC779)","v":""},{"$f":"IF(ISERROR(Dados!AD779),\"-\",Dados!AD779)","v":""},{"$f":"IF(ISERROR(Dados!AE779),\"-\",Dados!AE779)","v":""},{"$f":"IF(ISERROR(Dados!AF779),\"-\",Dados!AF779)","v":""},{"$f":"IF(ISERROR(Dados!AG779),\"-\",Dados!AG779)","v":""}]
[{"$f":"IF(ISERROR(Dados!A780),\"-\",Dados!A780)","v":""},{"$f":"IF(ISERROR(Dados!B780),\"-\",Dados!B780)","v":""},{"$f":"IF(ISERROR(Dados!C780),\"-\",Dados!C780)","v":""},{"$f":"IF(ISERROR(Dados!D780),\"-\",Dados!D780)","v":""},{"$f":"IF(ISERROR(Dados!E780),\"-\",Dados!E780)","v":""},{"$f":"IF(ISERROR(Dados!F780),\"-\",Dados!F780)","v":""},{"$f":"IF(ISERROR(Dados!G780),\"-\",Dados!G780)","v":""},{"$f":"IF(ISERROR(Dados!H780),\"-\",Dados!H780)","v":""},{"$f":"IF(ISERROR(Dados!I780),\"-\",Dados!I780)","v":""},{"$f":"IF(ISERROR(Dados!J780),\"-\",Dados!J780)","v":""},{"$f":"IF(ISERROR(Dados!K780),\"-\",Dados!K780)","v":""},{"$f":"IF(ISERROR(Dados!L780),\"-\",Dados!L780)","v":""},{"$f":"IF(ISERROR(Dados!M780),\"-\",Dados!M780)","v":""},{"$f":"IF(ISERROR(Dados!N780),\"-\",Dados!N780)","v":""},{"$f":"IF(ISERROR(Dados!O780),\"-\",Dados!O780)","v":""},{"$f":"IF(ISERROR(Dados!P780),\"-\",Dados!P780)","v":""},{"$f":"IF(ISERROR(Dados!Q780),\"-\",Dados!Q780)","v":""},{"$f":"IF(ISERROR(Dados!R780),\"-\",Dados!R780)","v":""},{"$f":"IF(ISERROR(Dados!S780),\"-\",Dados!S780)","v":""},{"$f":"IF(ISERROR(Dados!T780),\"-\",Dados!T780)","v":""},{"$f":"IF(ISERROR(Dados!U780),\"-\",Dados!U780)","v":""},{"$f":"IF(ISERROR(Dados!V780),\"-\",Dados!V780)","v":""},{"$f":"IF(ISERROR(Dados!W780),\"-\",Dados!W780)","v":""},{"$f":"IF(ISERROR(Dados!X780),\"-\",Dados!X780)","v":""},{"$f":"IF(ISERROR(Dados!Y780),\"-\",Dados!Y780)","v":""},{"$f":"IF(ISERROR(Dados!Z780),\"-\",Dados!Z780)","v":""},{"$f":"IF(ISERROR(Dados!AA780),\"-\",Dados!AA780)","v":""},{"$f":"IF(ISERROR(Dados!AB780),\"-\",Dados!AB780)","v":""},{"$f":"IF(ISERROR(Dados!AC780),\"-\",Dados!AC780)","v":""},{"$f":"IF(ISERROR(Dados!AD780),\"-\",Dados!AD780)","v":""},{"$f":"IF(ISERROR(Dados!AE780),\"-\",Dados!AE780)","v":""},{"$f":"IF(ISERROR(Dados!AF780),\"-\",Dados!AF780)","v":""},{"$f":"IF(ISERROR(Dados!AG780),\"-\",Dados!AG780)","v":""}]
[{"$f":"IF(ISERROR(Dados!A781),\"-\",Dados!A781)","v":""},{"$f":"IF(ISERROR(Dados!B781),\"-\",Dados!B781)","v":""},{"$f":"IF(ISERROR(Dados!C781),\"-\",Dados!C781)","v":""},{"$f":"IF(ISERROR(Dados!D781),\"-\",Dados!D781)","v":""},{"$f":"IF(ISERROR(Dados!E781),\"-\",Dados!E781)","v":""},{"$f":"IF(ISERROR(Dados!F781),\"-\",Dados!F781)","v":""},{"$f":"IF(ISERROR(Dados!G781),\"-\",Dados!G781)","v":""},{"$f":"IF(ISERROR(Dados!H781),\"-\",Dados!H781)","v":""},{"$f":"IF(ISERROR(Dados!I781),\"-\",Dados!I781)","v":""},{"$f":"IF(ISERROR(Dados!J781),\"-\",Dados!J781)","v":""},{"$f":"IF(ISERROR(Dados!K781),\"-\",Dados!K781)","v":""},{"$f":"IF(ISERROR(Dados!L781),\"-\",Dados!L781)","v":""},{"$f":"IF(ISERROR(Dados!M781),\"-\",Dados!M781)","v":""},{"$f":"IF(ISERROR(Dados!N781),\"-\",Dados!N781)","v":""},{"$f":"IF(ISERROR(Dados!O781),\"-\",Dados!O781)","v":""},{"$f":"IF(ISERROR(Dados!P781),\"-\",Dados!P781)","v":""},{"$f":"IF(ISERROR(Dados!Q781),\"-\",Dados!Q781)","v":""},{"$f":"IF(ISERROR(Dados!R781),\"-\",Dados!R781)","v":""},{"$f":"IF(ISERROR(Dados!S781),\"-\",Dados!S781)","v":""},{"$f":"IF(ISERROR(Dados!T781),\"-\",Dados!T781)","v":""},{"$f":"IF(ISERROR(Dados!U781),\"-\",Dados!U781)","v":""},{"$f":"IF(ISERROR(Dados!V781),\"-\",Dados!V781)","v":""},{"$f":"IF(ISERROR(Dados!W781),\"-\",Dados!W781)","v":""},{"$f":"IF(ISERROR(Dados!X781),\"-\",Dados!X781)","v":""},{"$f":"IF(ISERROR(Dados!Y781),\"-\",Dados!Y781)","v":""},{"$f":"IF(ISERROR(Dados!Z781),\"-\",Dados!Z781)","v":""},{"$f":"IF(ISERROR(Dados!AA781),\"-\",Dados!AA781)","v":""},{"$f":"IF(ISERROR(Dados!AB781),\"-\",Dados!AB781)","v":""},{"$f":"IF(ISERROR(Dados!AC781),\"-\",Dados!AC781)","v":""},{"$f":"IF(ISERROR(Dados!AD781),\"-\",Dados!AD781)","v":""},{"$f":"IF(ISERROR(Dados!AE781),\"-\",Dados!AE781)","v":""},{"$f":"IF(ISERROR(Dados!AF781),\"-\",Dados!AF781)","v":""},{"$f":"IF(ISERROR(Dados!AG781),\"-\",Dados!AG781)","v":""}]
[{"$f":"IF(ISERROR(Dados!A782),\"-\",Dados!A782)","v":""},{"$f":"IF(ISERROR(Dados!B782),\"-\",Dados!B782)","v":""},{"$f":"IF(ISERROR(Dados!C782),\"-\",Dados!C782)","v":""},{"$f":"IF(ISERROR(Dados!D782),\"-\",Dados!D782)","v":""},{"$f":"IF(ISERROR(Dados!E782),\"-\",Dados!E782)","v":""},{"$f":"IF(ISERROR(Dados!F782),\"-\",Dados!F782)","v":""},{"$f":"IF(ISERROR(Dados!G782),\"-\",Dados!G782)","v":""},{"$f":"IF(ISERROR(Dados!H782),\"-\",Dados!H782)","v":""},{"$f":"IF(ISERROR(Dados!I782),\"-\",Dados!I782)","v":""},{"$f":"IF(ISERROR(Dados!J782),\"-\",Dados!J782)","v":""},{"$f":"IF(ISERROR(Dados!K782),\"-\",Dados!K782)","v":""},{"$f":"IF(ISERROR(Dados!L782),\"-\",Dados!L782)","v":""},{"$f":"IF(ISERROR(Dados!M782),\"-\",Dados!M782)","v":""},{"$f":"IF(ISERROR(Dados!N782),\"-\",Dados!N782)","v":""},{"$f":"IF(ISERROR(Dados!O782),\"-\",Dados!O782)","v":""},{"$f":"IF(ISERROR(Dados!P782),\"-\",Dados!P782)","v":""},{"$f":"IF(ISERROR(Dados!Q782),\"-\",Dados!Q782)","v":""},{"$f":"IF(ISERROR(Dados!R782),\"-\",Dados!R782)","v":""},{"$f":"IF(ISERROR(Dados!S782),\"-\",Dados!S782)","v":""},{"$f":"IF(ISERROR(Dados!T782),\"-\",Dados!T782)","v":""},{"$f":"IF(ISERROR(Dados!U782),\"-\",Dados!U782)","v":""},{"$f":"IF(ISERROR(Dados!V782),\"-\",Dados!V782)","v":""},{"$f":"IF(ISERROR(Dados!W782),\"-\",Dados!W782)","v":""},{"$f":"IF(ISERROR(Dados!X782),\"-\",Dados!X782)","v":""},{"$f":"IF(ISERROR(Dados!Y782),\"-\",Dados!Y782)","v":""},{"$f":"IF(ISERROR(Dados!Z782),\"-\",Dados!Z782)","v":""},{"$f":"IF(ISERROR(Dados!AA782),\"-\",Dados!AA782)","v":""},{"$f":"IF(ISERROR(Dados!AB782),\"-\",Dados!AB782)","v":""},{"$f":"IF(ISERROR(Dados!AC782),\"-\",Dados!AC782)","v":""},{"$f":"IF(ISERROR(Dados!AD782),\"-\",Dados!AD782)","v":""},{"$f":"IF(ISERROR(Dados!AE782),\"-\",Dados!AE782)","v":""},{"$f":"IF(ISERROR(Dados!AF782),\"-\",Dados!AF782)","v":""},{"$f":"IF(ISERROR(Dados!AG782),\"-\",Dados!AG782)","v":""}]
[{"$f":"IF(ISERROR(Dados!A783),\"-\",Dados!A783)","v":""},{"$f":"IF(ISERROR(Dados!B783),\"-\",Dados!B783)","v":""},{"$f":"IF(ISERROR(Dados!C783),\"-\",Dados!C783)","v":""},{"$f":"IF(ISERROR(Dados!D783),\"-\",Dados!D783)","v":""},{"$f":"IF(ISERROR(Dados!E783),\"-\",Dados!E783)","v":""},{"$f":"IF(ISERROR(Dados!F783),\"-\",Dados!F783)","v":""},{"$f":"IF(ISERROR(Dados!G783),\"-\",Dados!G783)","v":""},{"$f":"IF(ISERROR(Dados!H783),\"-\",Dados!H783)","v":""},{"$f":"IF(ISERROR(Dados!I783),\"-\",Dados!I783)","v":""},{"$f":"IF(ISERROR(Dados!J783),\"-\",Dados!J783)","v":""},{"$f":"IF(ISERROR(Dados!K783),\"-\",Dados!K783)","v":""},{"$f":"IF(ISERROR(Dados!L783),\"-\",Dados!L783)","v":""},{"$f":"IF(ISERROR(Dados!M783),\"-\",Dados!M783)","v":""},{"$f":"IF(ISERROR(Dados!N783),\"-\",Dados!N783)","v":""},{"$f":"IF(ISERROR(Dados!O783),\"-\",Dados!O783)","v":""},{"$f":"IF(ISERROR(Dados!P783),\"-\",Dados!P783)","v":""},{"$f":"IF(ISERROR(Dados!Q783),\"-\",Dados!Q783)","v":""},{"$f":"IF(ISERROR(Dados!R783),\"-\",Dados!R783)","v":""},{"$f":"IF(ISERROR(Dados!S783),\"-\",Dados!S783)","v":""},{"$f":"IF(ISERROR(Dados!T783),\"-\",Dados!T783)","v":""},{"$f":"IF(ISERROR(Dados!U783),\"-\",Dados!U783)","v":""},{"$f":"IF(ISERROR(Dados!V783),\"-\",Dados!V783)","v":""},{"$f":"IF(ISERROR(Dados!W783),\"-\",Dados!W783)","v":""},{"$f":"IF(ISERROR(Dados!X783),\"-\",Dados!X783)","v":""},{"$f":"IF(ISERROR(Dados!Y783),\"-\",Dados!Y783)","v":""},{"$f":"IF(ISERROR(Dados!Z783),\"-\",Dados!Z783)","v":""},{"$f":"IF(ISERROR(Dados!AA783),\"-\",Dados!AA783)","v":""},{"$f":"IF(ISERROR(Dados!AB783),\"-\",Dados!AB783)","v":""},{"$f":"IF(ISERROR(Dados!AC783),\"-\",Dados!AC783)","v":""},{"$f":"IF(ISERROR(Dados!AD783),\"-\",Dados!AD783)","v":""},{"$f":"IF(ISERROR(Dados!AE783),\"-\",Dados!AE783)","v":""},{"$f":"IF(ISERROR(Dados!AF783),\"-\",Dados!AF783)","v":""},{"$f":"IF(ISERROR(Dados!AG783),\"-\",Dados!AG783)","v":""}]
[{"$f":"IF(ISERROR(Dados!A784),\"-\",Dados!A784)","v":""},{"$f":"IF(ISERROR(Dados!B784),\"-\",Dados!B784)","v":""},{"$f":"IF(ISERROR(Dados!C784),\"-\",Dados!C784)","v":""},{"$f":"IF(ISERROR(Dados!D784),\"-\",Dados!D784)","v":""},{"$f":"IF(ISERROR(Dados!E784),\"-\",Dados!E784)","v":""},{"$f":"IF(ISERROR(Dados!F784),\"-\",Dados!F784)","v":""},{"$f":"IF(ISERROR(Dados!G784),\"-\",Dados!G784)","v":""},{"$f":"IF(ISERROR(Dados!H784),\"-\",Dados!H784)","v":""},{"$f":"IF(ISERROR(Dados!I784),\"-\",Dados!I784)","v":""},{"$f":"IF(ISERROR(Dados!J784),\"-\",Dados!J784)","v":""},{"$f":"IF(ISERROR(Dados!K784),\"-\",Dados!K784)","v":""},{"$f":"IF(ISERROR(Dados!L784),\"-\",Dados!L784)","v":""},{"$f":"IF(ISERROR(Dados!M784),\"-\",Dados!M784)","v":""},{"$f":"IF(ISERROR(Dados!N784),\"-\",Dados!N784)","v":""},{"$f":"IF(ISERROR(Dados!O784),\"-\",Dados!O784)","v":""},{"$f":"IF(ISERROR(Dados!P784),\"-\",Dados!P784)","v":""},{"$f":"IF(ISERROR(Dados!Q784),\"-\",Dados!Q784)","v":""},{"$f":"IF(ISERROR(Dados!R784),\"-\",Dados!R784)","v":""},{"$f":"IF(ISERROR(Dados!S784),\"-\",Dados!S784)","v":""},{"$f":"IF(ISERROR(Dados!T784),\"-\",Dados!T784)","v":""},{"$f":"IF(ISERROR(Dados!U784),\"-\",Dados!U784)","v":""},{"$f":"IF(ISERROR(Dados!V784),\"-\",Dados!V784)","v":""},{"$f":"IF(ISERROR(Dados!W784),\"-\",Dados!W784)","v":""},{"$f":"IF(ISERROR(Dados!X784),\"-\",Dados!X784)","v":""},{"$f":"IF(ISERROR(Dados!Y784),\"-\",Dados!Y784)","v":""},{"$f":"IF(ISERROR(Dados!Z784),\"-\",Dados!Z784)","v":""},{"$f":"IF(ISERROR(Dados!AA784),\"-\",Dados!AA784)","v":""},{"$f":"IF(ISERROR(Dados!AB784),\"-\",Dados!AB784)","v":""},{"$f":"IF(ISERROR(Dados!AC784),\"-\",Dados!AC784)","v":""},{"$f":"IF(ISERROR(Dados!AD784),\"-\",Dados!AD784)","v":""},{"$f":"IF(ISERROR(Dados!AE784),\"-\",Dados!AE784)","v":""},{"$f":"IF(ISERROR(Dados!AF784),\"-\",Dados!AF784)","v":""},{"$f":"IF(ISERROR(Dados!AG784),\"-\",Dados!AG784)","v":""}]
[{"$f":"IF(ISERROR(Dados!A785),\"-\",Dados!A785)","v":""},{"$f":"IF(ISERROR(Dados!B785),\"-\",Dados!B785)","v":""},{"$f":"IF(ISERROR(Dados!C785),\"-\",Dados!C785)","v":""},{"$f":"IF(ISERROR(Dados!D785),\"-\",Dados!D785)","v":""},{"$f":"IF(ISERROR(Dados!E785),\"-\",Dados!E785)","v":""},{"$f":"IF(ISERROR(Dados!F785),\"-\",Dados!F785)","v":""},{"$f":"IF(ISERROR(Dados!G785),\"-\",Dados!G785)","v":""},{"$f":"IF(ISERROR(Dados!H785),\"-\",Dados!H785)","v":""},{"$f":"IF(ISERROR(Dados!I785),\"-\",Dados!I785)","v":""},{"$f":"IF(ISERROR(Dados!J785),\"-\",Dados!J785)","v":""},{"$f":"IF(ISERROR(Dados!K785),\"-\",Dados!K785)","v":""},{"$f":"IF(ISERROR(Dados!L785),\"-\",Dados!L785)","v":""},{"$f":"IF(ISERROR(Dados!M785),\"-\",Dados!M785)","v":""},{"$f":"IF(ISERROR(Dados!N785),\"-\",Dados!N785)","v":""},{"$f":"IF(ISERROR(Dados!O785),\"-\",Dados!O785)","v":""},{"$f":"IF(ISERROR(Dados!P785),\"-\",Dados!P785)","v":""},{"$f":"IF(ISERROR(Dados!Q785),\"-\",Dados!Q785)","v":""},{"$f":"IF(ISERROR(Dados!R785),\"-\",Dados!R785)","v":""},{"$f":"IF(ISERROR(Dados!S785),\"-\",Dados!S785)","v":""},{"$f":"IF(ISERROR(Dados!T785),\"-\",Dados!T785)","v":""},{"$f":"IF(ISERROR(Dados!U785),\"-\",Dados!U785)","v":""},{"$f":"IF(ISERROR(Dados!V785),\"-\",Dados!V785)","v":""},{"$f":"IF(ISERROR(Dados!W785),\"-\",Dados!W785)","v":""},{"$f":"IF(ISERROR(Dados!X785),\"-\",Dados!X785)","v":""},{"$f":"IF(ISERROR(Dados!Y785),\"-\",Dados!Y785)","v":""},{"$f":"IF(ISERROR(Dados!Z785),\"-\",Dados!Z785)","v":""},{"$f":"IF(ISERROR(Dados!AA785),\"-\",Dados!AA785)","v":""},{"$f":"IF(ISERROR(Dados!AB785),\"-\",Dados!AB785)","v":""},{"$f":"IF(ISERROR(Dados!AC785),\"-\",Dados!AC785)","v":""},{"$f":"IF(ISERROR(Dados!AD785),\"-\",Dados!AD785)","v":""},{"$f":"IF(ISERROR(Dados!AE785),\"-\",Dados!AE785)","v":""},{"$f":"IF(ISERROR(Dados!AF785),\"-\",Dados!AF785)","v":""},{"$f":"IF(ISERROR(Dados!AG785),\"-\",Dados!AG785)","v":""}]
[{"$f":"IF(ISERROR(Dados!A786),\"-\",Dados!A786)","v":""},{"$f":"IF(ISERROR(Dados!B786),\"-\",Dados!B786)","v":""},{"$f":"IF(ISERROR(Dados!C786),\"-\",Dados!C786)","v":""},{"$f":"IF(ISERROR(Dados!D786),\"-\",Dados!D786)","v":""},{"$f":"IF(ISERROR(Dados!E786),\"-\",Dados!E786)","v":""},{"$f":"IF(ISERROR(Dados!F786),\"-\",Dados!F786)","v":""},{"$f":"IF(ISERROR(Dados!G786),\"-\",Dados!G786)","v":""},{"$f":"IF(ISERROR(Dados!H786),\"-\",Dados!H786)","v":""},{"$f":"IF(ISERROR(Dados!I786),\"-\",Dados!I786)","v":""},{"$f":"IF(ISERROR(Dados!J786),\"-\",Dados!J786)","v":""},{"$f":"IF(ISERROR(Dados!K786),\"-\",Dados!K786)","v":""},{"$f":"IF(ISERROR(Dados!L786),\"-\",Dados!L786)","v":""},{"$f":"IF(ISERROR(Dados!M786),\"-\",Dados!M786)","v":""},{"$f":"IF(ISERROR(Dados!N786),\"-\",Dados!N786)","v":""},{"$f":"IF(ISERROR(Dados!O786),\"-\",Dados!O786)","v":""},{"$f":"IF(ISERROR(Dados!P786),\"-\",Dados!P786)","v":""},{"$f":"IF(ISERROR(Dados!Q786),\"-\",Dados!Q786)","v":""},{"$f":"IF(ISERROR(Dados!R786),\"-\",Dados!R786)","v":""},{"$f":"IF(ISERROR(Dados!S786),\"-\",Dados!S786)","v":""},{"$f":"IF(ISERROR(Dados!T786),\"-\",Dados!T786)","v":""},{"$f":"IF(ISERROR(Dados!U786),\"-\",Dados!U786)","v":""},{"$f":"IF(ISERROR(Dados!V786),\"-\",Dados!V786)","v":""},{"$f":"IF(ISERROR(Dados!W786),\"-\",Dados!W786)","v":""},{"$f":"IF(ISERROR(Dados!X786),\"-\",Dados!X786)","v":""},{"$f":"IF(ISERROR(Dados!Y786),\"-\",Dados!Y786)","v":""},{"$f":"IF(ISERROR(Dados!Z786),\"-\",Dados!Z786)","v":""},{"$f":"IF(ISERROR(Dados!AA786),\"-\",Dados!AA786)","v":""},{"$f":"IF(ISERROR(Dados!AB786),\"-\",Dados!AB786)","v":""},{"$f":"IF(ISERROR(Dados!AC786),\"-\",Dados!AC786)","v":""},{"$f":"IF(ISERROR(Dados!AD786),\"-\",Dados!AD786)","v":""},{"$f":"IF(ISERROR(Dados!AE786),\"-\",Dados!AE786)","v":""},{"$f":"IF(ISERROR(Dados!AF786),\"-\",Dados!AF786)","v":""},{"$f":"IF(ISERROR(Dados!AG786),\"-\",Dados!AG786)","v":""}]
[{"$f":"IF(ISERROR(Dados!A787),\"-\",Dados!A787)","v":""},{"$f":"IF(ISERROR(Dados!B787),\"-\",Dados!B787)","v":""},{"$f":"IF(ISERROR(Dados!C787),\"-\",Dados!C787)","v":""},{"$f":"IF(ISERROR(Dados!D787),\"-\",Dados!D787)","v":""},{"$f":"IF(ISERROR(Dados!E787),\"-\",Dados!E787)","v":""},{"$f":"IF(ISERROR(Dados!F787),\"-\",Dados!F787)","v":""},{"$f":"IF(ISERROR(Dados!G787),\"-\",Dados!G787)","v":""},{"$f":"IF(ISERROR(Dados!H787),\"-\",Dados!H787)","v":""},{"$f":"IF(ISERROR(Dados!I787),\"-\",Dados!I787)","v":""},{"$f":"IF(ISERROR(Dados!J787),\"-\",Dados!J787)","v":""},{"$f":"IF(ISERROR(Dados!K787),\"-\",Dados!K787)","v":""},{"$f":"IF(ISERROR(Dados!L787),\"-\",Dados!L787)","v":""},{"$f":"IF(ISERROR(Dados!M787),\"-\",Dados!M787)","v":""},{"$f":"IF(ISERROR(Dados!N787),\"-\",Dados!N787)","v":""},{"$f":"IF(ISERROR(Dados!O787),\"-\",Dados!O787)","v":""},{"$f":"IF(ISERROR(Dados!P787),\"-\",Dados!P787)","v":""},{"$f":"IF(ISERROR(Dados!Q787),\"-\",Dados!Q787)","v":""},{"$f":"IF(ISERROR(Dados!R787),\"-\",Dados!R787)","v":""},{"$f":"IF(ISERROR(Dados!S787),\"-\",Dados!S787)","v":""},{"$f":"IF(ISERROR(Dados!T787),\"-\",Dados!T787)","v":""},{"$f":"IF(ISERROR(Dados!U787),\"-\",Dados!U787)","v":""},{"$f":"IF(ISERROR(Dados!V787),\"-\",Dados!V787)","v":""},{"$f":"IF(ISERROR(Dados!W787),\"-\",Dados!W787)","v":""},{"$f":"IF(ISERROR(Dados!X787),\"-\",Dados!X787)","v":""},{"$f":"IF(ISERROR(Dados!Y787),\"-\",Dados!Y787)","v":""},{"$f":"IF(ISERROR(Dados!Z787),\"-\",Dados!Z787)","v":""},{"$f":"IF(ISERROR(Dados!AA787),\"-\",Dados!AA787)","v":""},{"$f":"IF(ISERROR(Dados!AB787),\"-\",Dados!AB787)","v":""},{"$f":"IF(ISERROR(Dados!AC787),\"-\",Dados!AC787)","v":""},{"$f":"IF(ISERROR(Dados!AD787),\"-\",Dados!AD787)","v":""},{"$f":"IF(ISERROR(Dados!AE787),\"-\",Dados!AE787)","v":""},{"$f":"IF(ISERROR(Dados!AF787),\"-\",Dados!AF787)","v":""},{"$f":"IF(ISERROR(Dados!AG787),\"-\",Dados!AG787)","v":""}]
[{"$f":"IF(ISERROR(Dados!A788),\"-\",Dados!A788)","v":""},{"$f":"IF(ISERROR(Dados!B788),\"-\",Dados!B788)","v":""},{"$f":"IF(ISERROR(Dados!C788),\"-\",Dados!C788)","v":""},{"$f":"IF(ISERROR(Dados!D788),\"-\",Dados!D788)","v":""},{"$f":"IF(ISERROR(Dados!E788),\"-\",Dados!E788)","v":""},{"$f":"IF(ISERROR(Dados!F788),\"-\",Dados!F788)","v":""},{"$f":"IF(ISERROR(Dados!G788),\"-\",Dados!G788)","v":""},{"$f":"IF(ISERROR(Dados!H788),\"-\",Dados!H788)","v":""},{"$f":"IF(ISERROR(Dados!I788),\"-\",Dados!I788)","v":""},{"$f":"IF(ISERROR(Dados!J788),\"-\",Dados!J788)","v":""},{"$f":"IF(ISERROR(Dados!K788),\"-\",Dados!K788)","v":""},{"$f":"IF(ISERROR(Dados!L788),\"-\",Dados!L788)","v":""},{"$f":"IF(ISERROR(Dados!M788),\"-\",Dados!M788)","v":""},{"$f":"IF(ISERROR(Dados!N788),\"-\",Dados!N788)","v":""},{"$f":"IF(ISERROR(Dados!O788),\"-\",Dados!O788)","v":""},{"$f":"IF(ISERROR(Dados!P788),\"-\",Dados!P788)","v":""},{"$f":"IF(ISERROR(Dados!Q788),\"-\",Dados!Q788)","v":""},{"$f":"IF(ISERROR(Dados!R788),\"-\",Dados!R788)","v":""},{"$f":"IF(ISERROR(Dados!S788),\"-\",Dados!S788)","v":""},{"$f":"IF(ISERROR(Dados!T788),\"-\",Dados!T788)","v":""},{"$f":"IF(ISERROR(Dados!U788),\"-\",Dados!U788)","v":""},{"$f":"IF(ISERROR(Dados!V788),\"-\",Dados!V788)","v":""},{"$f":"IF(ISERROR(Dados!W788),\"-\",Dados!W788)","v":""},{"$f":"IF(ISERROR(Dados!X788),\"-\",Dados!X788)","v":""},{"$f":"IF(ISERROR(Dados!Y788),\"-\",Dados!Y788)","v":""},{"$f":"IF(ISERROR(Dados!Z788),\"-\",Dados!Z788)","v":""},{"$f":"IF(ISERROR(Dados!AA788),\"-\",Dados!AA788)","v":""},{"$f":"IF(ISERROR(Dados!AB788),\"-\",Dados!AB788)","v":""},{"$f":"IF(ISERROR(Dados!AC788),\"-\",Dados!AC788)","v":""},{"$f":"IF(ISERROR(Dados!AD788),\"-\",Dados!AD788)","v":""},{"$f":"IF(ISERROR(Dados!AE788),\"-\",Dados!AE788)","v":""},{"$f":"IF(ISERROR(Dados!AF788),\"-\",Dados!AF788)","v":""},{"$f":"IF(ISERROR(Dados!AG788),\"-\",Dados!AG788)","v":""}]
[{"$f":"IF(ISERROR(Dados!A789),\"-\",Dados!A789)","v":""},{"$f":"IF(ISERROR(Dados!B789),\"-\",Dados!B789)","v":""},{"$f":"IF(ISERROR(Dados!C789),\"-\",Dados!C789)","v":""},{"$f":"IF(ISERROR(Dados!D789),\"-\",Dados!D789)","v":""},{"$f":"IF(ISERROR(Dados!E789),\"-\",Dados!E789)","v":""},{"$f":"IF(ISERROR(Dados!F789),\"-\",Dados!F789)","v":""},{"$f":"IF(ISERROR(Dados!G789),\"-\",Dados!G789)","v":""},{"$f":"IF(ISERROR(Dados!H789),\"-\",Dados!H789)","v":""},{"$f":"IF(ISERROR(Dados!I789),\"-\",Dados!I789)","v":""},{"$f":"IF(ISERROR(Dados!J789),\"-\",Dados!J789)","v":""},{"$f":"IF(ISERROR(Dados!K789),\"-\",Dados!K789)","v":""},{"$f":"IF(ISERROR(Dados!L789),\"-\",Dados!L789)","v":""},{"$f":"IF(ISERROR(Dados!M789),\"-\",Dados!M789)","v":""},{"$f":"IF(ISERROR(Dados!N789),\"-\",Dados!N789)","v":""},{"$f":"IF(ISERROR(Dados!O789),\"-\",Dados!O789)","v":""},{"$f":"IF(ISERROR(Dados!P789),\"-\",Dados!P789)","v":""},{"$f":"IF(ISERROR(Dados!Q789),\"-\",Dados!Q789)","v":""},{"$f":"IF(ISERROR(Dados!R789),\"-\",Dados!R789)","v":""},{"$f":"IF(ISERROR(Dados!S789),\"-\",Dados!S789)","v":""},{"$f":"IF(ISERROR(Dados!T789),\"-\",Dados!T789)","v":""},{"$f":"IF(ISERROR(Dados!U789),\"-\",Dados!U789)","v":""},{"$f":"IF(ISERROR(Dados!V789),\"-\",Dados!V789)","v":""},{"$f":"IF(ISERROR(Dados!W789),\"-\",Dados!W789)","v":""},{"$f":"IF(ISERROR(Dados!X789),\"-\",Dados!X789)","v":""},{"$f":"IF(ISERROR(Dados!Y789),\"-\",Dados!Y789)","v":""},{"$f":"IF(ISERROR(Dados!Z789),\"-\",Dados!Z789)","v":""},{"$f":"IF(ISERROR(Dados!AA789),\"-\",Dados!AA789)","v":""},{"$f":"IF(ISERROR(Dados!AB789),\"-\",Dados!AB789)","v":""},{"$f":"IF(ISERROR(Dados!AC789),\"-\",Dados!AC789)","v":""},{"$f":"IF(ISERROR(Dados!AD789),\"-\",Dados!AD789)","v":""},{"$f":"IF(ISERROR(Dados!AE789),\"-\",Dados!AE789)","v":""},{"$f":"IF(ISERROR(Dados!AF789),\"-\",Dados!AF789)","v":""},{"$f":"IF(ISERROR(Dados!AG789),\"-\",Dados!AG789)","v":""}]
[{"$f":"IF(ISERROR(Dados!A790),\"-\",Dados!A790)","v":""},{"$f":"IF(ISERROR(Dados!B790),\"-\",Dados!B790)","v":""},{"$f":"IF(ISERROR(Dados!C790),\"-\",Dados!C790)","v":""},{"$f":"IF(ISERROR(Dados!D790),\"-\",Dados!D790)","v":""},{"$f":"IF(ISERROR(Dados!E790),\"-\",Dados!E790)","v":""},{"$f":"IF(ISERROR(Dados!F790),\"-\",Dados!F790)","v":""},{"$f":"IF(ISERROR(Dados!G790),\"-\",Dados!G790)","v":""},{"$f":"IF(ISERROR(Dados!H790),\"-\",Dados!H790)","v":""},{"$f":"IF(ISERROR(Dados!I790),\"-\",Dados!I790)","v":""},{"$f":"IF(ISERROR(Dados!J790),\"-\",Dados!J790)","v":""},{"$f":"IF(ISERROR(Dados!K790),\"-\",Dados!K790)","v":""},{"$f":"IF(ISERROR(Dados!L790),\"-\",Dados!L790)","v":""},{"$f":"IF(ISERROR(Dados!M790),\"-\",Dados!M790)","v":""},{"$f":"IF(ISERROR(Dados!N790),\"-\",Dados!N790)","v":""},{"$f":"IF(ISERROR(Dados!O790),\"-\",Dados!O790)","v":""},{"$f":"IF(ISERROR(Dados!P790),\"-\",Dados!P790)","v":""},{"$f":"IF(ISERROR(Dados!Q790),\"-\",Dados!Q790)","v":""},{"$f":"IF(ISERROR(Dados!R790),\"-\",Dados!R790)","v":""},{"$f":"IF(ISERROR(Dados!S790),\"-\",Dados!S790)","v":""},{"$f":"IF(ISERROR(Dados!T790),\"-\",Dados!T790)","v":""},{"$f":"IF(ISERROR(Dados!U790),\"-\",Dados!U790)","v":""},{"$f":"IF(ISERROR(Dados!V790),\"-\",Dados!V790)","v":""},{"$f":"IF(ISERROR(Dados!W790),\"-\",Dados!W790)","v":""},{"$f":"IF(ISERROR(Dados!X790),\"-\",Dados!X790)","v":""},{"$f":"IF(ISERROR(Dados!Y790),\"-\",Dados!Y790)","v":""},{"$f":"IF(ISERROR(Dados!Z790),\"-\",Dados!Z790)","v":""},{"$f":"IF(ISERROR(Dados!AA790),\"-\",Dados!AA790)","v":""},{"$f":"IF(ISERROR(Dados!AB790),\"-\",Dados!AB790)","v":""},{"$f":"IF(ISERROR(Dados!AC790),\"-\",Dados!AC790)","v":""},{"$f":"IF(ISERROR(Dados!AD790),\"-\",Dados!AD790)","v":""},{"$f":"IF(ISERROR(Dados!AE790),\"-\",Dados!AE790)","v":""},{"$f":"IF(ISERROR(Dados!AF790),\"-\",Dados!AF790)","v":""},{"$f":"IF(ISERROR(Dados!AG790),\"-\",Dados!AG790)","v":""}]
[{"$f":"IF(ISERROR(Dados!A791),\"-\",Dados!A791)","v":""},{"$f":"IF(ISERROR(Dados!B791),\"-\",Dados!B791)","v":""},{"$f":"IF(ISERROR(Dados!C791),\"-\",Dados!C791)","v":""},{"$f":"IF(ISERROR(Dados!D791),\"-\",Dados!D791)","v":""},{"$f":"IF(ISERROR(Dados!E791),\"-\",Dados!E791)","v":""},{"$f":"IF(ISERROR(Dados!F791),\"-\",Dados!F791)","v":""},{"$f":"IF(ISERROR(Dados!G791),\"-\",Dados!G791)","v":""},{"$f":"IF(ISERROR(Dados!H791),\"-\",Dados!H791)","v":""},{"$f":"IF(ISERROR(Dados!I791),\"-\",Dados!I791)","v":""},{"$f":"IF(ISERROR(Dados!J791),\"-\",Dados!J791)","v":""},{"$f":"IF(ISERROR(Dados!K791),\"-\",Dados!K791)","v":""},{"$f":"IF(ISERROR(Dados!L791),\"-\",Dados!L791)","v":""},{"$f":"IF(ISERROR(Dados!M791),\"-\",Dados!M791)","v":""},{"$f":"IF(ISERROR(Dados!N791),\"-\",Dados!N791)","v":""},{"$f":"IF(ISERROR(Dados!O791),\"-\",Dados!O791)","v":""},{"$f":"IF(ISERROR(Dados!P791),\"-\",Dados!P791)","v":""},{"$f":"IF(ISERROR(Dados!Q791),\"-\",Dados!Q791)","v":""},{"$f":"IF(ISERROR(Dados!R791),\"-\",Dados!R791)","v":""},{"$f":"IF(ISERROR(Dados!S791),\"-\",Dados!S791)","v":""},{"$f":"IF(ISERROR(Dados!T791),\"-\",Dados!T791)","v":""},{"$f":"IF(ISERROR(Dados!U791),\"-\",Dados!U791)","v":""},{"$f":"IF(ISERROR(Dados!V791),\"-\",Dados!V791)","v":""},{"$f":"IF(ISERROR(Dados!W791),\"-\",Dados!W791)","v":""},{"$f":"IF(ISERROR(Dados!X791),\"-\",Dados!X791)","v":""},{"$f":"IF(ISERROR(Dados!Y791),\"-\",Dados!Y791)","v":""},{"$f":"IF(ISERROR(Dados!Z791),\"-\",Dados!Z791)","v":""},{"$f":"IF(ISERROR(Dados!AA791),\"-\",Dados!AA791)","v":""},{"$f":"IF(ISERROR(Dados!AB791),\"-\",Dados!AB791)","v":""},{"$f":"IF(ISERROR(Dados!AC791),\"-\",Dados!AC791)","v":""},{"$f":"IF(ISERROR(Dados!AD791),\"-\",Dados!AD791)","v":""},{"$f":"IF(ISERROR(Dados!AE791),\"-\",Dados!AE791)","v":""},{"$f":"IF(ISERROR(Dados!AF791),\"-\",Dados!AF791)","v":""},{"$f":"IF(ISERROR(Dados!AG791),\"-\",Dados!AG791)","v":""}]
[{"$f":"IF(ISERROR(Dados!A792),\"-\",Dados!A792)","v":""},{"$f":"IF(ISERROR(Dados!B792),\"-\",Dados!B792)","v":""},{"$f":"IF(ISERROR(Dados!C792),\"-\",Dados!C792)","v":""},{"$f":"IF(ISERROR(Dados!D792),\"-\",Dados!D792)","v":""},{"$f":"IF(ISERROR(Dados!E792),\"-\",Dados!E792)","v":""},{"$f":"IF(ISERROR(Dados!F792),\"-\",Dados!F792)","v":""},{"$f":"IF(ISERROR(Dados!G792),\"-\",Dados!G792)","v":""},{"$f":"IF(ISERROR(Dados!H792),\"-\",Dados!H792)","v":""},{"$f":"IF(ISERROR(Dados!I792),\"-\",Dados!I792)","v":""},{"$f":"IF(ISERROR(Dados!J792),\"-\",Dados!J792)","v":""},{"$f":"IF(ISERROR(Dados!K792),\"-\",Dados!K792)","v":""},{"$f":"IF(ISERROR(Dados!L792),\"-\",Dados!L792)","v":""},{"$f":"IF(ISERROR(Dados!M792),\"-\",Dados!M792)","v":""},{"$f":"IF(ISERROR(Dados!N792),\"-\",Dados!N792)","v":""},{"$f":"IF(ISERROR(Dados!O792),\"-\",Dados!O792)","v":""},{"$f":"IF(ISERROR(Dados!P792),\"-\",Dados!P792)","v":""},{"$f":"IF(ISERROR(Dados!Q792),\"-\",Dados!Q792)","v":""},{"$f":"IF(ISERROR(Dados!R792),\"-\",Dados!R792)","v":""},{"$f":"IF(ISERROR(Dados!S792),\"-\",Dados!S792)","v":""},{"$f":"IF(ISERROR(Dados!T792),\"-\",Dados!T792)","v":""},{"$f":"IF(ISERROR(Dados!U792),\"-\",Dados!U792)","v":""},{"$f":"IF(ISERROR(Dados!V792),\"-\",Dados!V792)","v":""},{"$f":"IF(ISERROR(Dados!W792),\"-\",Dados!W792)","v":""},{"$f":"IF(ISERROR(Dados!X792),\"-\",Dados!X792)","v":""},{"$f":"IF(ISERROR(Dados!Y792),\"-\",Dados!Y792)","v":""},{"$f":"IF(ISERROR(Dados!Z792),\"-\",Dados!Z792)","v":""},{"$f":"IF(ISERROR(Dados!AA792),\"-\",Dados!AA792)","v":""},{"$f":"IF(ISERROR(Dados!AB792),\"-\",Dados!AB792)","v":""},{"$f":"IF(ISERROR(Dados!AC792),\"-\",Dados!AC792)","v":""},{"$f":"IF(ISERROR(Dados!AD792),\"-\",Dados!AD792)","v":""},{"$f":"IF(ISERROR(Dados!AE792),\"-\",Dados!AE792)","v":""},{"$f":"IF(ISERROR(Dados!AF792),\"-\",Dados!AF792)","v":""},{"$f":"IF(ISERROR(Dados!AG792),\"-\",Dados!AG792)","v":""}]
[{"$f":"IF(ISERROR(Dados!A793),\"-\",Dados!A793)","v":""},{"$f":"IF(ISERROR(Dados!B793),\"-\",Dados!B793)","v":""},{"$f":"IF(ISERROR(Dados!C793),\"-\",Dados!C793)","v":""},{"$f":"IF(ISERROR(Dados!D793),\"-\",Dados!D793)","v":""},{"$f":"IF(ISERROR(Dados!E793),\"-\",Dados!E793)","v":""},{"$f":"IF(ISERROR(Dados!F793),\"-\",Dados!F793)","v":""},{"$f":"IF(ISERROR(Dados!G793),\"-\",Dados!G793)","v":""},{"$f":"IF(ISERROR(Dados!H793),\"-\",Dados!H793)","v":""},{"$f":"IF(ISERROR(Dados!I793),\"-\",Dados!I793)","v":""},{"$f":"IF(ISERROR(Dados!J793),\"-\",Dados!J793)","v":""},{"$f":"IF(ISERROR(Dados!K793),\"-\",Dados!K793)","v":""},{"$f":"IF(ISERROR(Dados!L793),\"-\",Dados!L793)","v":""},{"$f":"IF(ISERROR(Dados!M793),\"-\",Dados!M793)","v":""},{"$f":"IF(ISERROR(Dados!N793),\"-\",Dados!N793)","v":""},{"$f":"IF(ISERROR(Dados!O793),\"-\",Dados!O793)","v":""},{"$f":"IF(ISERROR(Dados!P793),\"-\",Dados!P793)","v":""},{"$f":"IF(ISERROR(Dados!Q793),\"-\",Dados!Q793)","v":""},{"$f":"IF(ISERROR(Dados!R793),\"-\",Dados!R793)","v":""},{"$f":"IF(ISERROR(Dados!S793),\"-\",Dados!S793)","v":""},{"$f":"IF(ISERROR(Dados!T793),\"-\",Dados!T793)","v":""},{"$f":"IF(ISERROR(Dados!U793),\"-\",Dados!U793)","v":""},{"$f":"IF(ISERROR(Dados!V793),\"-\",Dados!V793)","v":""},{"$f":"IF(ISERROR(Dados!W793),\"-\",Dados!W793)","v":""},{"$f":"IF(ISERROR(Dados!X793),\"-\",Dados!X793)","v":""},{"$f":"IF(ISERROR(Dados!Y793),\"-\",Dados!Y793)","v":""},{"$f":"IF(ISERROR(Dados!Z793),\"-\",Dados!Z793)","v":""},{"$f":"IF(ISERROR(Dados!AA793),\"-\",Dados!AA793)","v":""},{"$f":"IF(ISERROR(Dados!AB793),\"-\",Dados!AB793)","v":""},{"$f":"IF(ISERROR(Dados!AC793),\"-\",Dados!AC793)","v":""},{"$f":"IF(ISERROR(Dados!AD793),\"-\",Dados!AD793)","v":""},{"$f":"IF(ISERROR(Dados!AE793),\"-\",Dados!AE793)","v":""},{"$f":"IF(ISERROR(Dados!AF793),\"-\",Dados!AF793)","v":""},{"$f":"IF(ISERROR(Dados!AG793),\"-\",Dados!AG793)","v":""}]
[{"$f":"IF(ISERROR(Dados!A794),\"-\",Dados!A794)","v":""},{"$f":"IF(ISERROR(Dados!B794),\"-\",Dados!B794)","v":""},{"$f":"IF(ISERROR(Dados!C794),\"-\",Dados!C794)","v":""},{"$f":"IF(ISERROR(Dados!D794),\"-\",Dados!D794)","v":""},{"$f":"IF(ISERROR(Dados!E794),\"-\",Dados!E794)","v":""},{"$f":"IF(ISERROR(Dados!F794),\"-\",Dados!F794)","v":""},{"$f":"IF(ISERROR(Dados!G794),\"-\",Dados!G794)","v":""},{"$f":"IF(ISERROR(Dados!H794),\"-\",Dados!H794)","v":""},{"$f":"IF(ISERROR(Dados!I794),\"-\",Dados!I794)","v":""},{"$f":"IF(ISERROR(Dados!J794),\"-\",Dados!J794)","v":""},{"$f":"IF(ISERROR(Dados!K794),\"-\",Dados!K794)","v":""},{"$f":"IF(ISERROR(Dados!L794),\"-\",Dados!L794)","v":""},{"$f":"IF(ISERROR(Dados!M794),\"-\",Dados!M794)","v":""},{"$f":"IF(ISERROR(Dados!N794),\"-\",Dados!N794)","v":""},{"$f":"IF(ISERROR(Dados!O794),\"-\",Dados!O794)","v":""},{"$f":"IF(ISERROR(Dados!P794),\"-\",Dados!P794)","v":""},{"$f":"IF(ISERROR(Dados!Q794),\"-\",Dados!Q794)","v":""},{"$f":"IF(ISERROR(Dados!R794),\"-\",Dados!R794)","v":""},{"$f":"IF(ISERROR(Dados!S794),\"-\",Dados!S794)","v":""},{"$f":"IF(ISERROR(Dados!T794),\"-\",Dados!T794)","v":""},{"$f":"IF(ISERROR(Dados!U794),\"-\",Dados!U794)","v":""},{"$f":"IF(ISERROR(Dados!V794),\"-\",Dados!V794)","v":""},{"$f":"IF(ISERROR(Dados!W794),\"-\",Dados!W794)","v":""},{"$f":"IF(ISERROR(Dados!X794),\"-\",Dados!X794)","v":""},{"$f":"IF(ISERROR(Dados!Y794),\"-\",Dados!Y794)","v":""},{"$f":"IF(ISERROR(Dados!Z794),\"-\",Dados!Z794)","v":""},{"$f":"IF(ISERROR(Dados!AA794),\"-\",Dados!AA794)","v":""},{"$f":"IF(ISERROR(Dados!AB794),\"-\",Dados!AB794)","v":""},{"$f":"IF(ISERROR(Dados!AC794),\"-\",Dados!AC794)","v":""},{"$f":"IF(ISERROR(Dados!AD794),\"-\",Dados!AD794)","v":""},{"$f":"IF(ISERROR(Dados!AE794),\"-\",Dados!AE794)","v":""},{"$f":"IF(ISERROR(Dados!AF794),\"-\",Dados!AF794)","v":""},{"$f":"IF(ISERROR(Dados!AG794),\"-\",Dados!AG794)","v":""}]
[{"$f":"IF(ISERROR(Dados!A795),\"-\",Dados!A795)","v":""},{"$f":"IF(ISERROR(Dados!B795),\"-\",Dados!B795)","v":""},{"$f":"IF(ISERROR(Dados!C795),\"-\",Dados!C795)","v":""},{"$f":"IF(ISERROR(Dados!D795),\"-\",Dados!D795)","v":""},{"$f":"IF(ISERROR(Dados!E795),\"-\",Dados!E795)","v":""},{"$f":"IF(ISERROR(Dados!F795),\"-\",Dados!F795)","v":""},{"$f":"IF(ISERROR(Dados!G795),\"-\",Dados!G795)","v":""},{"$f":"IF(ISERROR(Dados!H795),\"-\",Dados!H795)","v":""},{"$f":"IF(ISERROR(Dados!I795),\"-\",Dados!I795)","v":""},{"$f":"IF(ISERROR(Dados!J795),\"-\",Dados!J795)","v":""},{"$f":"IF(ISERROR(Dados!K795),\"-\",Dados!K795)","v":""},{"$f":"IF(ISERROR(Dados!L795),\"-\",Dados!L795)","v":""},{"$f":"IF(ISERROR(Dados!M795),\"-\",Dados!M795)","v":""},{"$f":"IF(ISERROR(Dados!N795),\"-\",Dados!N795)","v":""},{"$f":"IF(ISERROR(Dados!O795),\"-\",Dados!O795)","v":""},{"$f":"IF(ISERROR(Dados!P795),\"-\",Dados!P795)","v":""},{"$f":"IF(ISERROR(Dados!Q795),\"-\",Dados!Q795)","v":""},{"$f":"IF(ISERROR(Dados!R795),\"-\",Dados!R795)","v":""},{"$f":"IF(ISERROR(Dados!S795),\"-\",Dados!S795)","v":""},{"$f":"IF(ISERROR(Dados!T795),\"-\",Dados!T795)","v":""},{"$f":"IF(ISERROR(Dados!U795),\"-\",Dados!U795)","v":""},{"$f":"IF(ISERROR(Dados!V795),\"-\",Dados!V795)","v":""},{"$f":"IF(ISERROR(Dados!W795),\"-\",Dados!W795)","v":""},{"$f":"IF(ISERROR(Dados!X795),\"-\",Dados!X795)","v":""},{"$f":"IF(ISERROR(Dados!Y795),\"-\",Dados!Y795)","v":""},{"$f":"IF(ISERROR(Dados!Z795),\"-\",Dados!Z795)","v":""},{"$f":"IF(ISERROR(Dados!AA795),\"-\",Dados!AA795)","v":""},{"$f":"IF(ISERROR(Dados!AB795),\"-\",Dados!AB795)","v":""},{"$f":"IF(ISERROR(Dados!AC795),\"-\",Dados!AC795)","v":""},{"$f":"IF(ISERROR(Dados!AD795),\"-\",Dados!AD795)","v":""},{"$f":"IF(ISERROR(Dados!AE795),\"-\",Dados!AE795)","v":""},{"$f":"IF(ISERROR(Dados!AF795),\"-\",Dados!AF795)","v":""},{"$f":"IF(ISERROR(Dados!AG795),\"-\",Dados!AG795)","v":""}]
[{"$f":"IF(ISERROR(Dados!A796),\"-\",Dados!A796)","v":""},{"$f":"IF(ISERROR(Dados!B796),\"-\",Dados!B796)","v":""},{"$f":"IF(ISERROR(Dados!C796),\"-\",Dados!C796)","v":""},{"$f":"IF(ISERROR(Dados!D796),\"-\",Dados!D796)","v":""},{"$f":"IF(ISERROR(Dados!E796),\"-\",Dados!E796)","v":""},{"$f":"IF(ISERROR(Dados!F796),\"-\",Dados!F796)","v":""},{"$f":"IF(ISERROR(Dados!G796),\"-\",Dados!G796)","v":""},{"$f":"IF(ISERROR(Dados!H796),\"-\",Dados!H796)","v":""},{"$f":"IF(ISERROR(Dados!I796),\"-\",Dados!I796)","v":""},{"$f":"IF(ISERROR(Dados!J796),\"-\",Dados!J796)","v":""},{"$f":"IF(ISERROR(Dados!K796),\"-\",Dados!K796)","v":""},{"$f":"IF(ISERROR(Dados!L796),\"-\",Dados!L796)","v":""},{"$f":"IF(ISERROR(Dados!M796),\"-\",Dados!M796)","v":""},{"$f":"IF(ISERROR(Dados!N796),\"-\",Dados!N796)","v":""},{"$f":"IF(ISERROR(Dados!O796),\"-\",Dados!O796)","v":""},{"$f":"IF(ISERROR(Dados!P796),\"-\",Dados!P796)","v":""},{"$f":"IF(ISERROR(Dados!Q796),\"-\",Dados!Q796)","v":""},{"$f":"IF(ISERROR(Dados!R796),\"-\",Dados!R796)","v":""},{"$f":"IF(ISERROR(Dados!S796),\"-\",Dados!S796)","v":""},{"$f":"IF(ISERROR(Dados!T796),\"-\",Dados!T796)","v":""},{"$f":"IF(ISERROR(Dados!U796),\"-\",Dados!U796)","v":""},{"$f":"IF(ISERROR(Dados!V796),\"-\",Dados!V796)","v":""},{"$f":"IF(ISERROR(Dados!W796),\"-\",Dados!W796)","v":""},{"$f":"IF(ISERROR(Dados!X796),\"-\",Dados!X796)","v":""},{"$f":"IF(ISERROR(Dados!Y796),\"-\",Dados!Y796)","v":""},{"$f":"IF(ISERROR(Dados!Z796),\"-\",Dados!Z796)","v":""},{"$f":"IF(ISERROR(Dados!AA796),\"-\",Dados!AA796)","v":""},{"$f":"IF(ISERROR(Dados!AB796),\"-\",Dados!AB796)","v":""},{"$f":"IF(ISERROR(Dados!AC796),\"-\",Dados!AC796)","v":""},{"$f":"IF(ISERROR(Dados!AD796),\"-\",Dados!AD796)","v":""},{"$f":"IF(ISERROR(Dados!AE796),\"-\",Dados!AE796)","v":""},{"$f":"IF(ISERROR(Dados!AF796),\"-\",Dados!AF796)","v":""},{"$f":"IF(ISERROR(Dados!AG796),\"-\",Dados!AG796)","v":""}]
[{"$f":"IF(ISERROR(Dados!A797),\"-\",Dados!A797)","v":""},{"$f":"IF(ISERROR(Dados!B797),\"-\",Dados!B797)","v":""},{"$f":"IF(ISERROR(Dados!C797),\"-\",Dados!C797)","v":""},{"$f":"IF(ISERROR(Dados!D797),\"-\",Dados!D797)","v":""},{"$f":"IF(ISERROR(Dados!E797),\"-\",Dados!E797)","v":""},{"$f":"IF(ISERROR(Dados!F797),\"-\",Dados!F797)","v":""},{"$f":"IF(ISERROR(Dados!G797),\"-\",Dados!G797)","v":""},{"$f":"IF(ISERROR(Dados!H797),\"-\",Dados!H797)","v":""},{"$f":"IF(ISERROR(Dados!I797),\"-\",Dados!I797)","v":""},{"$f":"IF(ISERROR(Dados!J797),\"-\",Dados!J797)","v":""},{"$f":"IF(ISERROR(Dados!K797),\"-\",Dados!K797)","v":""},{"$f":"IF(ISERROR(Dados!L797),\"-\",Dados!L797)","v":""},{"$f":"IF(ISERROR(Dados!M797),\"-\",Dados!M797)","v":""},{"$f":"IF(ISERROR(Dados!N797),\"-\",Dados!N797)","v":""},{"$f":"IF(ISERROR(Dados!O797),\"-\",Dados!O797)","v":""},{"$f":"IF(ISERROR(Dados!P797),\"-\",Dados!P797)","v":""},{"$f":"IF(ISERROR(Dados!Q797),\"-\",Dados!Q797)","v":""},{"$f":"IF(ISERROR(Dados!R797),\"-\",Dados!R797)","v":""},{"$f":"IF(ISERROR(Dados!S797),\"-\",Dados!S797)","v":""},{"$f":"IF(ISERROR(Dados!T797),\"-\",Dados!T797)","v":""},{"$f":"IF(ISERROR(Dados!U797),\"-\",Dados!U797)","v":""},{"$f":"IF(ISERROR(Dados!V797),\"-\",Dados!V797)","v":""},{"$f":"IF(ISERROR(Dados!W797),\"-\",Dados!W797)","v":""},{"$f":"IF(ISERROR(Dados!X797),\"-\",Dados!X797)","v":""},{"$f":"IF(ISERROR(Dados!Y797),\"-\",Dados!Y797)","v":""},{"$f":"IF(ISERROR(Dados!Z797),\"-\",Dados!Z797)","v":""},{"$f":"IF(ISERROR(Dados!AA797),\"-\",Dados!AA797)","v":""},{"$f":"IF(ISERROR(Dados!AB797),\"-\",Dados!AB797)","v":""},{"$f":"IF(ISERROR(Dados!AC797),\"-\",Dados!AC797)","v":""},{"$f":"IF(ISERROR(Dados!AD797),\"-\",Dados!AD797)","v":""},{"$f":"IF(ISERROR(Dados!AE797),\"-\",Dados!AE797)","v":""},{"$f":"IF(ISERROR(Dados!AF797),\"-\",Dados!AF797)","v":""},{"$f":"IF(ISERROR(Dados!AG797),\"-\",Dados!AG797)","v":""}]
[{"$f":"IF(ISERROR(Dados!A798),\"-\",Dados!A798)","v":""},{"$f":"IF(ISERROR(Dados!B798),\"-\",Dados!B798)","v":""},{"$f":"IF(ISERROR(Dados!C798),\"-\",Dados!C798)","v":""},{"$f":"IF(ISERROR(Dados!D798),\"-\",Dados!D798)","v":""},{"$f":"IF(ISERROR(Dados!E798),\"-\",Dados!E798)","v":""},{"$f":"IF(ISERROR(Dados!F798),\"-\",Dados!F798)","v":""},{"$f":"IF(ISERROR(Dados!G798),\"-\",Dados!G798)","v":""},{"$f":"IF(ISERROR(Dados!H798),\"-\",Dados!H798)","v":""},{"$f":"IF(ISERROR(Dados!I798),\"-\",Dados!I798)","v":""},{"$f":"IF(ISERROR(Dados!J798),\"-\",Dados!J798)","v":""},{"$f":"IF(ISERROR(Dados!K798),\"-\",Dados!K798)","v":""},{"$f":"IF(ISERROR(Dados!L798),\"-\",Dados!L798)","v":""},{"$f":"IF(ISERROR(Dados!M798),\"-\",Dados!M798)","v":""},{"$f":"IF(ISERROR(Dados!N798),\"-\",Dados!N798)","v":""},{"$f":"IF(ISERROR(Dados!O798),\"-\",Dados!O798)","v":""},{"$f":"IF(ISERROR(Dados!P798),\"-\",Dados!P798)","v":""},{"$f":"IF(ISERROR(Dados!Q798),\"-\",Dados!Q798)","v":""},{"$f":"IF(ISERROR(Dados!R798),\"-\",Dados!R798)","v":""},{"$f":"IF(ISERROR(Dados!S798),\"-\",Dados!S798)","v":""},{"$f":"IF(ISERROR(Dados!T798),\"-\",Dados!T798)","v":""},{"$f":"IF(ISERROR(Dados!U798),\"-\",Dados!U798)","v":""},{"$f":"IF(ISERROR(Dados!V798),\"-\",Dados!V798)","v":""},{"$f":"IF(ISERROR(Dados!W798),\"-\",Dados!W798)","v":""},{"$f":"IF(ISERROR(Dados!X798),\"-\",Dados!X798)","v":""},{"$f":"IF(ISERROR(Dados!Y798),\"-\",Dados!Y798)","v":""},{"$f":"IF(ISERROR(Dados!Z798),\"-\",Dados!Z798)","v":""},{"$f":"IF(ISERROR(Dados!AA798),\"-\",Dados!AA798)","v":""},{"$f":"IF(ISERROR(Dados!AB798),\"-\",Dados!AB798)","v":""},{"$f":"IF(ISERROR(Dados!AC798),\"-\",Dados!AC798)","v":""},{"$f":"IF(ISERROR(Dados!AD798),\"-\",Dados!AD798)","v":""},{"$f":"IF(ISERROR(Dados!AE798),\"-\",Dados!AE798)","v":""},{"$f":"IF(ISERROR(Dados!AF798),\"-\",Dados!AF798)","v":""},{"$f":"IF(ISERROR(Dados!AG798),\"-\",Dados!AG798)","v":""}]
[{"$f":"IF(ISERROR(Dados!A799),\"-\",Dados!A799)","v":""},{"$f":"IF(ISERROR(Dados!B799),\"-\",Dados!B799)","v":""},{"$f":"IF(ISERROR(Dados!C799),\"-\",Dados!C799)","v":""},{"$f":"IF(ISERROR(Dados!D799),\"-\",Dados!D799)","v":""},{"$f":"IF(ISERROR(Dados!E799),\"-\",Dados!E799)","v":""},{"$f":"IF(ISERROR(Dados!F799),\"-\",Dados!F799)","v":""},{"$f":"IF(ISERROR(Dados!G799),\"-\",Dados!G799)","v":""},{"$f":"IF(ISERROR(Dados!H799),\"-\",Dados!H799)","v":""},{"$f":"IF(ISERROR(Dados!I799),\"-\",Dados!I799)","v":""},{"$f":"IF(ISERROR(Dados!J799),\"-\",Dados!J799)","v":""},{"$f":"IF(ISERROR(Dados!K799),\"-\",Dados!K799)","v":""},{"$f":"IF(ISERROR(Dados!L799),\"-\",Dados!L799)","v":""},{"$f":"IF(ISERROR(Dados!M799),\"-\",Dados!M799)","v":""},{"$f":"IF(ISERROR(Dados!N799),\"-\",Dados!N799)","v":""},{"$f":"IF(ISERROR(Dados!O799),\"-\",Dados!O799)","v":""},{"$f":"IF(ISERROR(Dados!P799),\"-\",Dados!P799)","v":""},{"$f":"IF(ISERROR(Dados!Q799),\"-\",Dados!Q799)","v":""},{"$f":"IF(ISERROR(Dados!R799),\"-\",Dados!R799)","v":""},{"$f":"IF(ISERROR(Dados!S799),\"-\",Dados!S799)","v":""},{"$f":"IF(ISERROR(Dados!T799),\"-\",Dados!T799)","v":""},{"$f":"IF(ISERROR(Dados!U799),\"-\",Dados!U799)","v":""},{"$f":"IF(ISERROR(Dados!V799),\"-\",Dados!V799)","v":""},{"$f":"IF(ISERROR(Dados!W799),\"-\",Dados!W799)","v":""},{"$f":"IF(ISERROR(Dados!X799),\"-\",Dados!X799)","v":""},{"$f":"IF(ISERROR(Dados!Y799),\"-\",Dados!Y799)","v":""},{"$f":"IF(ISERROR(Dados!Z799),\"-\",Dados!Z799)","v":""},{"$f":"IF(ISERROR(Dados!AA799),\"-\",Dados!AA799)","v":""},{"$f":"IF(ISERROR(Dados!AB799),\"-\",Dados!AB799)","v":""},{"$f":"IF(ISERROR(Dados!AC799),\"-\",Dados!AC799)","v":""},{"$f":"IF(ISERROR(Dados!AD799),\"-\",Dados!AD799)","v":""},{"$f":"IF(ISERROR(Dados!AE799),\"-\",Dados!AE799)","v":""},{"$f":"IF(ISERROR(Dados!AF799),\"-\",Dados!AF799)","v":""},{"$f":"IF(ISERROR(Dados!AG799),\"-\",Dados!AG799)","v":""}]
[{"$f":"IF(ISERROR(Dados!A800),\"-\",Dados!A800)","v":""},{"$f":"IF(ISERROR(Dados!B800),\"-\",Dados!B800)","v":""},{"$f":"IF(ISERROR(Dados!C800),\"-\",Dados!C800)","v":""},{"$f":"IF(ISERROR(Dados!D800),\"-\",Dados!D800)","v":""},{"$f":"IF(ISERROR(Dados!E800),\"-\",Dados!E800)","v":""},{"$f":"IF(ISERROR(Dados!F800),\"-\",Dados!F800)","v":""},{"$f":"IF(ISERROR(Dados!G800),\"-\",Dados!G800)","v":""},{"$f":"IF(ISERROR(Dados!H800),\"-\",Dados!H800)","v":""},{"$f":"IF(ISERROR(Dados!I800),\"-\",Dados!I800)","v":""},{"$f":"IF(ISERROR(Dados!J800),\"-\",Dados!J800)","v":""},{"$f":"IF(ISERROR(Dados!K800),\"-\",Dados!K800)","v":""},{"$f":"IF(ISERROR(Dados!L800),\"-\",Dados!L800)","v":""},{"$f":"IF(ISERROR(Dados!M800),\"-\",Dados!M800)","v":""},{"$f":"IF(ISERROR(Dados!N800),\"-\",Dados!N800)","v":""},{"$f":"IF(ISERROR(Dados!O800),\"-\",Dados!O800)","v":""},{"$f":"IF(ISERROR(Dados!P800),\"-\",Dados!P800)","v":""},{"$f":"IF(ISERROR(Dados!Q800),\"-\",Dados!Q800)","v":""},{"$f":"IF(ISERROR(Dados!R800),\"-\",Dados!R800)","v":""},{"$f":"IF(ISERROR(Dados!S800),\"-\",Dados!S800)","v":""},{"$f":"IF(ISERROR(Dados!T800),\"-\",Dados!T800)","v":""},{"$f":"IF(ISERROR(Dados!U800),\"-\",Dados!U800)","v":""},{"$f":"IF(ISERROR(Dados!V800),\"-\",Dados!V800)","v":""},{"$f":"IF(ISERROR(Dados!W800),\"-\",Dados!W800)","v":""},{"$f":"IF(ISERROR(Dados!X800),\"-\",Dados!X800)","v":""},{"$f":"IF(ISERROR(Dados!Y800),\"-\",Dados!Y800)","v":""},{"$f":"IF(ISERROR(Dados!Z800),\"-\",Dados!Z800)","v":""},{"$f":"IF(ISERROR(Dados!AA800),\"-\",Dados!AA800)","v":""},{"$f":"IF(ISERROR(Dados!AB800),\"-\",Dados!AB800)","v":""},{"$f":"IF(ISERROR(Dados!AC800),\"-\",Dados!AC800)","v":""},{"$f":"IF(ISERROR(Dados!AD800),\"-\",Dados!AD800)","v":""},{"$f":"IF(ISERROR(Dados!AE800),\"-\",Dados!AE800)","v":""},{"$f":"IF(ISERROR(Dados!AF800),\"-\",Dados!AF800)","v":""},{"$f":"IF(ISERROR(Dados!AG800),\"-\",Dados!AG800)","v":""}]
[{"$f":"IF(ISERROR(Dados!A801),\"-\",Dados!A801)","v":""},{"$f":"IF(ISERROR(Dados!B801),\"-\",Dados!B801)","v":""},{"$f":"IF(ISERROR(Dados!C801),\"-\",Dados!C801)","v":""},{"$f":"IF(ISERROR(Dados!D801),\"-\",Dados!D801)","v":""},{"$f":"IF(ISERROR(Dados!E801),\"-\",Dados!E801)","v":""},{"$f":"IF(ISERROR(Dados!F801),\"-\",Dados!F801)","v":""},{"$f":"IF(ISERROR(Dados!G801),\"-\",Dados!G801)","v":""},{"$f":"IF(ISERROR(Dados!H801),\"-\",Dados!H801)","v":""},{"$f":"IF(ISERROR(Dados!I801),\"-\",Dados!I801)","v":""},{"$f":"IF(ISERROR(Dados!J801),\"-\",Dados!J801)","v":""},{"$f":"IF(ISERROR(Dados!K801),\"-\",Dados!K801)","v":""},{"$f":"IF(ISERROR(Dados!L801),\"-\",Dados!L801)","v":""},{"$f":"IF(ISERROR(Dados!M801),\"-\",Dados!M801)","v":""},{"$f":"IF(ISERROR(Dados!N801),\"-\",Dados!N801)","v":""},{"$f":"IF(ISERROR(Dados!O801),\"-\",Dados!O801)","v":""},{"$f":"IF(ISERROR(Dados!P801),\"-\",Dados!P801)","v":""},{"$f":"IF(ISERROR(Dados!Q801),\"-\",Dados!Q801)","v":""},{"$f":"IF(ISERROR(Dados!R801),\"-\",Dados!R801)","v":""},{"$f":"IF(ISERROR(Dados!S801),\"-\",Dados!S801)","v":""},{"$f":"IF(ISERROR(Dados!T801),\"-\",Dados!T801)","v":""},{"$f":"IF(ISERROR(Dados!U801),\"-\",Dados!U801)","v":""},{"$f":"IF(ISERROR(Dados!V801),\"-\",Dados!V801)","v":""},{"$f":"IF(ISERROR(Dados!W801),\"-\",Dados!W801)","v":""},{"$f":"IF(ISERROR(Dados!X801),\"-\",Dados!X801)","v":""},{"$f":"IF(ISERROR(Dados!Y801),\"-\",Dados!Y801)","v":""},{"$f":"IF(ISERROR(Dados!Z801),\"-\",Dados!Z801)","v":""},{"$f":"IF(ISERROR(Dados!AA801),\"-\",Dados!AA801)","v":""},{"$f":"IF(ISERROR(Dados!AB801),\"-\",Dados!AB801)","v":""},{"$f":"IF(ISERROR(Dados!AC801),\"-\",Dados!AC801)","v":""},{"$f":"IF(ISERROR(Dados!AD801),\"-\",Dados!AD801)","v":""},{"$f":"IF(ISERROR(Dados!AE801),\"-\",Dados!AE801)","v":""},{"$f":"IF(ISERROR(Dados!AF801),\"-\",Dados!AF801)","v":""},{"$f":"IF(ISERROR(Dados!AG801),\"-\",Dados!AG801)","v":""}]
[{"$f":"IF(ISERROR(Dados!A802),\"-\",Dados!A802)","v":""},{"$f":"IF(ISERROR(Dados!B802),\"-\",Dados!B802)","v":""},{"$f":"IF(ISERROR(Dados!C802),\"-\",Dados!C802)","v":""},{"$f":"IF(ISERROR(Dados!D802),\"-\",Dados!D802)","v":""},{"$f":"IF(ISERROR(Dados!E802),\"-\",Dados!E802)","v":""},{"$f":"IF(ISERROR(Dados!F802),\"-\",Dados!F802)","v":""},{"$f":"IF(ISERROR(Dados!G802),\"-\",Dados!G802)","v":""},{"$f":"IF(ISERROR(Dados!H802),\"-\",Dados!H802)","v":""},{"$f":"IF(ISERROR(Dados!I802),\"-\",Dados!I802)","v":""},{"$f":"IF(ISERROR(Dados!J802),\"-\",Dados!J802)","v":""},{"$f":"IF(ISERROR(Dados!K802),\"-\",Dados!K802)","v":""},{"$f":"IF(ISERROR(Dados!L802),\"-\",Dados!L802)","v":""},{"$f":"IF(ISERROR(Dados!M802),\"-\",Dados!M802)","v":""},{"$f":"IF(ISERROR(Dados!N802),\"-\",Dados!N802)","v":""},{"$f":"IF(ISERROR(Dados!O802),\"-\",Dados!O802)","v":""},{"$f":"IF(ISERROR(Dados!P802),\"-\",Dados!P802)","v":""},{"$f":"IF(ISERROR(Dados!Q802),\"-\",Dados!Q802)","v":""},{"$f":"IF(ISERROR(Dados!R802),\"-\",Dados!R802)","v":""},{"$f":"IF(ISERROR(Dados!S802),\"-\",Dados!S802)","v":""},{"$f":"IF(ISERROR(Dados!T802),\"-\",Dados!T802)","v":""},{"$f":"IF(ISERROR(Dados!U802),\"-\",Dados!U802)","v":""},{"$f":"IF(ISERROR(Dados!V802),\"-\",Dados!V802)","v":""},{"$f":"IF(ISERROR(Dados!W802),\"-\",Dados!W802)","v":""},{"$f":"IF(ISERROR(Dados!X802),\"-\",Dados!X802)","v":""},{"$f":"IF(ISERROR(Dados!Y802),\"-\",Dados!Y802)","v":""},{"$f":"IF(ISERROR(Dados!Z802),\"-\",Dados!Z802)","v":""},{"$f":"IF(ISERROR(Dados!AA802),\"-\",Dados!AA802)","v":""},{"$f":"IF(ISERROR(Dados!AB802),\"-\",Dados!AB802)","v":""},{"$f":"IF(ISERROR(Dados!AC802),\"-\",Dados!AC802)","v":""},{"$f":"IF(ISERROR(Dados!AD802),\"-\",Dados!AD802)","v":""},{"$f":"IF(ISERROR(Dados!AE802),\"-\",Dados!AE802)","v":""},{"$f":"IF(ISERROR(Dados!AF802),\"-\",Dados!AF802)","v":""},{"$f":"IF(ISERROR(Dados!AG802),\"-\",Dados!AG802)","v":""}]
[{"$f":"IF(ISERROR(Dados!A803),\"-\",Dados!A803)","v":""},{"$f":"IF(ISERROR(Dados!B803),\"-\",Dados!B803)","v":""},{"$f":"IF(ISERROR(Dados!C803),\"-\",Dados!C803)","v":""},{"$f":"IF(ISERROR(Dados!D803),\"-\",Dados!D803)","v":""},{"$f":"IF(ISERROR(Dados!E803),\"-\",Dados!E803)","v":""},{"$f":"IF(ISERROR(Dados!F803),\"-\",Dados!F803)","v":""},{"$f":"IF(ISERROR(Dados!G803),\"-\",Dados!G803)","v":""},{"$f":"IF(ISERROR(Dados!H803),\"-\",Dados!H803)","v":""},{"$f":"IF(ISERROR(Dados!I803),\"-\",Dados!I803)","v":""},{"$f":"IF(ISERROR(Dados!J803),\"-\",Dados!J803)","v":""},{"$f":"IF(ISERROR(Dados!K803),\"-\",Dados!K803)","v":""},{"$f":"IF(ISERROR(Dados!L803),\"-\",Dados!L803)","v":""},{"$f":"IF(ISERROR(Dados!M803),\"-\",Dados!M803)","v":""},{"$f":"IF(ISERROR(Dados!N803),\"-\",Dados!N803)","v":""},{"$f":"IF(ISERROR(Dados!O803),\"-\",Dados!O803)","v":""},{"$f":"IF(ISERROR(Dados!P803),\"-\",Dados!P803)","v":""},{"$f":"IF(ISERROR(Dados!Q803),\"-\",Dados!Q803)","v":""},{"$f":"IF(ISERROR(Dados!R803),\"-\",Dados!R803)","v":""},{"$f":"IF(ISERROR(Dados!S803),\"-\",Dados!S803)","v":""},{"$f":"IF(ISERROR(Dados!T803),\"-\",Dados!T803)","v":""},{"$f":"IF(ISERROR(Dados!U803),\"-\",Dados!U803)","v":""},{"$f":"IF(ISERROR(Dados!V803),\"-\",Dados!V803)","v":""},{"$f":"IF(ISERROR(Dados!W803),\"-\",Dados!W803)","v":""},{"$f":"IF(ISERROR(Dados!X803),\"-\",Dados!X803)","v":""},{"$f":"IF(ISERROR(Dados!Y803),\"-\",Dados!Y803)","v":""},{"$f":"IF(ISERROR(Dados!Z803),\"-\",Dados!Z803)","v":""},{"$f":"IF(ISERROR(Dados!AA803),\"-\",Dados!AA803)","v":""},{"$f":"IF(ISERROR(Dados!AB803),\"-\",Dados!AB803)","v":""},{"$f":"IF(ISERROR(Dados!AC803),\"-\",Dados!AC803)","v":""},{"$f":"IF(ISERROR(Dados!AD803),\"-\",Dados!AD803)","v":""},{"$f":"IF(ISERROR(Dados!AE803),\"-\",Dados!AE803)","v":""},{"$f":"IF(ISERROR(Dados!AF803),\"-\",Dados!AF803)","v":""},{"$f":"IF(ISERROR(Dados!AG803),\"-\",Dados!AG803)","v":""}]
[{"$f":"IF(ISERROR(Dados!A804),\"-\",Dados!A804)","v":""},{"$f":"IF(ISERROR(Dados!B804),\"-\",Dados!B804)","v":""},{"$f":"IF(ISERROR(Dados!C804),\"-\",Dados!C804)","v":""},{"$f":"IF(ISERROR(Dados!D804),\"-\",Dados!D804)","v":""},{"$f":"IF(ISERROR(Dados!E804),\"-\",Dados!E804)","v":""},{"$f":"IF(ISERROR(Dados!F804),\"-\",Dados!F804)","v":""},{"$f":"IF(ISERROR(Dados!G804),\"-\",Dados!G804)","v":""},{"$f":"IF(ISERROR(Dados!H804),\"-\",Dados!H804)","v":""},{"$f":"IF(ISERROR(Dados!I804),\"-\",Dados!I804)","v":""},{"$f":"IF(ISERROR(Dados!J804),\"-\",Dados!J804)","v":""},{"$f":"IF(ISERROR(Dados!K804),\"-\",Dados!K804)","v":""},{"$f":"IF(ISERROR(Dados!L804),\"-\",Dados!L804)","v":""},{"$f":"IF(ISERROR(Dados!M804),\"-\",Dados!M804)","v":""},{"$f":"IF(ISERROR(Dados!N804),\"-\",Dados!N804)","v":""},{"$f":"IF(ISERROR(Dados!O804),\"-\",Dados!O804)","v":""},{"$f":"IF(ISERROR(Dados!P804),\"-\",Dados!P804)","v":""},{"$f":"IF(ISERROR(Dados!Q804),\"-\",Dados!Q804)","v":""},{"$f":"IF(ISERROR(Dados!R804),\"-\",Dados!R804)","v":""},{"$f":"IF(ISERROR(Dados!S804),\"-\",Dados!S804)","v":""},{"$f":"IF(ISERROR(Dados!T804),\"-\",Dados!T804)","v":""},{"$f":"IF(ISERROR(Dados!U804),\"-\",Dados!U804)","v":""},{"$f":"IF(ISERROR(Dados!V804),\"-\",Dados!V804)","v":""},{"$f":"IF(ISERROR(Dados!W804),\"-\",Dados!W804)","v":""},{"$f":"IF(ISERROR(Dados!X804),\"-\",Dados!X804)","v":""},{"$f":"IF(ISERROR(Dados!Y804),\"-\",Dados!Y804)","v":""},{"$f":"IF(ISERROR(Dados!Z804),\"-\",Dados!Z804)","v":""},{"$f":"IF(ISERROR(Dados!AA804),\"-\",Dados!AA804)","v":""},{"$f":"IF(ISERROR(Dados!AB804),\"-\",Dados!AB804)","v":""},{"$f":"IF(ISERROR(Dados!AC804),\"-\",Dados!AC804)","v":""},{"$f":"IF(ISERROR(Dados!AD804),\"-\",Dados!AD804)","v":""},{"$f":"IF(ISERROR(Dados!AE804),\"-\",Dados!AE804)","v":""},{"$f":"IF(ISERROR(Dados!AF804),\"-\",Dados!AF804)","v":""},{"$f":"IF(ISERROR(Dados!AG804),\"-\",Dados!AG804)","v":""}]
[{"$f":"IF(ISERROR(Dados!A805),\"-\",Dados!A805)","v":""},{"$f":"IF(ISERROR(Dados!B805),\"-\",Dados!B805)","v":""},{"$f":"IF(ISERROR(Dados!C805),\"-\",Dados!C805)","v":""},{"$f":"IF(ISERROR(Dados!D805),\"-\",Dados!D805)","v":""},{"$f":"IF(ISERROR(Dados!E805),\"-\",Dados!E805)","v":""},{"$f":"IF(ISERROR(Dados!F805),\"-\",Dados!F805)","v":""},{"$f":"IF(ISERROR(Dados!G805),\"-\",Dados!G805)","v":""},{"$f":"IF(ISERROR(Dados!H805),\"-\",Dados!H805)","v":""},{"$f":"IF(ISERROR(Dados!I805),\"-\",Dados!I805)","v":""},{"$f":"IF(ISERROR(Dados!J805),\"-\",Dados!J805)","v":""},{"$f":"IF(ISERROR(Dados!K805),\"-\",Dados!K805)","v":""},{"$f":"IF(ISERROR(Dados!L805),\"-\",Dados!L805)","v":""},{"$f":"IF(ISERROR(Dados!M805),\"-\",Dados!M805)","v":""},{"$f":"IF(ISERROR(Dados!N805),\"-\",Dados!N805)","v":""},{"$f":"IF(ISERROR(Dados!O805),\"-\",Dados!O805)","v":""},{"$f":"IF(ISERROR(Dados!P805),\"-\",Dados!P805)","v":""},{"$f":"IF(ISERROR(Dados!Q805),\"-\",Dados!Q805)","v":""},{"$f":"IF(ISERROR(Dados!R805),\"-\",Dados!R805)","v":""},{"$f":"IF(ISERROR(Dados!S805),\"-\",Dados!S805)","v":""},{"$f":"IF(ISERROR(Dados!T805),\"-\",Dados!T805)","v":""},{"$f":"IF(ISERROR(Dados!U805),\"-\",Dados!U805)","v":""},{"$f":"IF(ISERROR(Dados!V805),\"-\",Dados!V805)","v":""},{"$f":"IF(ISERROR(Dados!W805),\"-\",Dados!W805)","v":""},{"$f":"IF(ISERROR(Dados!X805),\"-\",Dados!X805)","v":""},{"$f":"IF(ISERROR(Dados!Y805),\"-\",Dados!Y805)","v":""},{"$f":"IF(ISERROR(Dados!Z805),\"-\",Dados!Z805)","v":""},{"$f":"IF(ISERROR(Dados!AA805),\"-\",Dados!AA805)","v":""},{"$f":"IF(ISERROR(Dados!AB805),\"-\",Dados!AB805)","v":""},{"$f":"IF(ISERROR(Dados!AC805),\"-\",Dados!AC805)","v":""},{"$f":"IF(ISERROR(Dados!AD805),\"-\",Dados!AD805)","v":""},{"$f":"IF(ISERROR(Dados!AE805),\"-\",Dados!AE805)","v":""},{"$f":"IF(ISERROR(Dados!AF805),\"-\",Dados!AF805)","v":""},{"$f":"IF(ISERROR(Dados!AG805),\"-\",Dados!AG805)","v":""}]
[{"$f":"IF(ISERROR(Dados!A806),\"-\",Dados!A806)","v":""},{"$f":"IF(ISERROR(Dados!B806),\"-\",Dados!B806)","v":""},{"$f":"IF(ISERROR(Dados!C806),\"-\",Dados!C806)","v":""},{"$f":"IF(ISERROR(Dados!D806),\"-\",Dados!D806)","v":""},{"$f":"IF(ISERROR(Dados!E806),\"-\",Dados!E806)","v":""},{"$f":"IF(ISERROR(Dados!F806),\"-\",Dados!F806)","v":""},{"$f":"IF(ISERROR(Dados!G806),\"-\",Dados!G806)","v":""},{"$f":"IF(ISERROR(Dados!H806),\"-\",Dados!H806)","v":""},{"$f":"IF(ISERROR(Dados!I806),\"-\",Dados!I806)","v":""},{"$f":"IF(ISERROR(Dados!J806),\"-\",Dados!J806)","v":""},{"$f":"IF(ISERROR(Dados!K806),\"-\",Dados!K806)","v":""},{"$f":"IF(ISERROR(Dados!L806),\"-\",Dados!L806)","v":""},{"$f":"IF(ISERROR(Dados!M806),\"-\",Dados!M806)","v":""},{"$f":"IF(ISERROR(Dados!N806),\"-\",Dados!N806)","v":""},{"$f":"IF(ISERROR(Dados!O806),\"-\",Dados!O806)","v":""},{"$f":"IF(ISERROR(Dados!P806),\"-\",Dados!P806)","v":""},{"$f":"IF(ISERROR(Dados!Q806),\"-\",Dados!Q806)","v":""},{"$f":"IF(ISERROR(Dados!R806),\"-\",Dados!R806)","v":""},{"$f":"IF(ISERROR(Dados!S806),\"-\",Dados!S806)","v":""},{"$f":"IF(ISERROR(Dados!T806),\"-\",Dados!T806)","v":""},{"$f":"IF(ISERROR(Dados!U806),\"-\",Dados!U806)","v":""},{"$f":"IF(ISERROR(Dados!V806),\"-\",Dados!V806)","v":""},{"$f":"IF(ISERROR(Dados!W806),\"-\",Dados!W806)","v":""},{"$f":"IF(ISERROR(Dados!X806),\"-\",Dados!X806)","v":""},{"$f":"IF(ISERROR(Dados!Y806),\"-\",Dados!Y806)","v":""},{"$f":"IF(ISERROR(Dados!Z806),\"-\",Dados!Z806)","v":""},{"$f":"IF(ISERROR(Dados!AA806),\"-\",Dados!AA806)","v":""},{"$f":"IF(ISERROR(Dados!AB806),\"-\",Dados!AB806)","v":""},{"$f":"IF(ISERROR(Dados!AC806),\"-\",Dados!AC806)","v":""},{"$f":"IF(ISERROR(Dados!AD806),\"-\",Dados!AD806)","v":""},{"$f":"IF(ISERROR(Dados!AE806),\"-\",Dados!AE806)","v":""},{"$f":"IF(ISERROR(Dados!AF806),\"-\",Dados!AF806)","v":""},{"$f":"IF(ISERROR(Dados!AG806),\"-\",Dados!AG806)","v":""}]
[{"$f":"IF(ISERROR(Dados!A807),\"-\",Dados!A807)","v":""},{"$f":"IF(ISERROR(Dados!B807),\"-\",Dados!B807)","v":""},{"$f":"IF(ISERROR(Dados!C807),\"-\",Dados!C807)","v":""},{"$f":"IF(ISERROR(Dados!D807),\"-\",Dados!D807)","v":""},{"$f":"IF(ISERROR(Dados!E807),\"-\",Dados!E807)","v":""},{"$f":"IF(ISERROR(Dados!F807),\"-\",Dados!F807)","v":""},{"$f":"IF(ISERROR(Dados!G807),\"-\",Dados!G807)","v":""},{"$f":"IF(ISERROR(Dados!H807),\"-\",Dados!H807)","v":""},{"$f":"IF(ISERROR(Dados!I807),\"-\",Dados!I807)","v":""},{"$f":"IF(ISERROR(Dados!J807),\"-\",Dados!J807)","v":""},{"$f":"IF(ISERROR(Dados!K807),\"-\",Dados!K807)","v":""},{"$f":"IF(ISERROR(Dados!L807),\"-\",Dados!L807)","v":""},{"$f":"IF(ISERROR(Dados!M807),\"-\",Dados!M807)","v":""},{"$f":"IF(ISERROR(Dados!N807),\"-\",Dados!N807)","v":""},{"$f":"IF(ISERROR(Dados!O807),\"-\",Dados!O807)","v":""},{"$f":"IF(ISERROR(Dados!P807),\"-\",Dados!P807)","v":""},{"$f":"IF(ISERROR(Dados!Q807),\"-\",Dados!Q807)","v":""},{"$f":"IF(ISERROR(Dados!R807),\"-\",Dados!R807)","v":""},{"$f":"IF(ISERROR(Dados!S807),\"-\",Dados!S807)","v":""},{"$f":"IF(ISERROR(Dados!T807),\"-\",Dados!T807)","v":""},{"$f":"IF(ISERROR(Dados!U807),\"-\",Dados!U807)","v":""},{"$f":"IF(ISERROR(Dados!V807),\"-\",Dados!V807)","v":""},{"$f":"IF(ISERROR(Dados!W807),\"-\",Dados!W807)","v":""},{"$f":"IF(ISERROR(Dados!X807),\"-\",Dados!X807)","v":""},{"$f":"IF(ISERROR(Dados!Y807),\"-\",Dados!Y807)","v":""},{"$f":"IF(ISERROR(Dados!Z807),\"-\",Dados!Z807)","v":""},{"$f":"IF(ISERROR(Dados!AA807),\"-\",Dados!AA807)","v":""},{"$f":"IF(ISERROR(Dados!AB807),\"-\",Dados!AB807)","v":""},{"$f":"IF(ISERROR(Dados!AC807),\"-\",Dados!AC807)","v":""},{"$f":"IF(ISERROR(Dados!AD807),\"-\",Dados!AD807)","v":""},{"$f":"IF(ISERROR(Dados!AE807),\"-\",Dados!AE807)","v":""},{"$f":"IF(ISERROR(Dados!AF807),\"-\",Dados!AF807)","v":""},{"$f":"IF(ISERROR(Dados!AG807),\"-\",Dados!AG807)","v":""}]
[{"$f":"IF(ISERROR(Dados!A808),\"-\",Dados!A808)","v":""},{"$f":"IF(ISERROR(Dados!B808),\"-\",Dados!B808)","v":""},{"$f":"IF(ISERROR(Dados!C808),\"-\",Dados!C808)","v":""},{"$f":"IF(ISERROR(Dados!D808),\"-\",Dados!D808)","v":""},{"$f":"IF(ISERROR(Dados!E808),\"-\",Dados!E808)","v":""},{"$f":"IF(ISERROR(Dados!F808),\"-\",Dados!F808)","v":""},{"$f":"IF(ISERROR(Dados!G808),\"-\",Dados!G808)","v":""},{"$f":"IF(ISERROR(Dados!H808),\"-\",Dados!H808)","v":""},{"$f":"IF(ISERROR(Dados!I808),\"-\",Dados!I808)","v":""},{"$f":"IF(ISERROR(Dados!J808),\"-\",Dados!J808)","v":""},{"$f":"IF(ISERROR(Dados!K808),\"-\",Dados!K808)","v":""},{"$f":"IF(ISERROR(Dados!L808),\"-\",Dados!L808)","v":""},{"$f":"IF(ISERROR(Dados!M808),\"-\",Dados!M808)","v":""},{"$f":"IF(ISERROR(Dados!N808),\"-\",Dados!N808)","v":""},{"$f":"IF(ISERROR(Dados!O808),\"-\",Dados!O808)","v":""},{"$f":"IF(ISERROR(Dados!P808),\"-\",Dados!P808)","v":""},{"$f":"IF(ISERROR(Dados!Q808),\"-\",Dados!Q808)","v":""},{"$f":"IF(ISERROR(Dados!R808),\"-\",Dados!R808)","v":""},{"$f":"IF(ISERROR(Dados!S808),\"-\",Dados!S808)","v":""},{"$f":"IF(ISERROR(Dados!T808),\"-\",Dados!T808)","v":""},{"$f":"IF(ISERROR(Dados!U808),\"-\",Dados!U808)","v":""},{"$f":"IF(ISERROR(Dados!V808),\"-\",Dados!V808)","v":""},{"$f":"IF(ISERROR(Dados!W808),\"-\",Dados!W808)","v":""},{"$f":"IF(ISERROR(Dados!X808),\"-\",Dados!X808)","v":""},{"$f":"IF(ISERROR(Dados!Y808),\"-\",Dados!Y808)","v":""},{"$f":"IF(ISERROR(Dados!Z808),\"-\",Dados!Z808)","v":""},{"$f":"IF(ISERROR(Dados!AA808),\"-\",Dados!AA808)","v":""},{"$f":"IF(ISERROR(Dados!AB808),\"-\",Dados!AB808)","v":""},{"$f":"IF(ISERROR(Dados!AC808),\"-\",Dados!AC808)","v":""},{"$f":"IF(ISERROR(Dados!AD808),\"-\",Dados!AD808)","v":""},{"$f":"IF(ISERROR(Dados!AE808),\"-\",Dados!AE808)","v":""},{"$f":"IF(ISERROR(Dados!AF808),\"-\",Dados!AF808)","v":""},{"$f":"IF(ISERROR(Dados!AG808),\"-\",Dados!AG808)","v":""}]
[{"$f":"IF(ISERROR(Dados!A809),\"-\",Dados!A809)","v":""},{"$f":"IF(ISERROR(Dados!B809),\"-\",Dados!B809)","v":""},{"$f":"IF(ISERROR(Dados!C809),\"-\",Dados!C809)","v":""},{"$f":"IF(ISERROR(Dados!D809),\"-\",Dados!D809)","v":""},{"$f":"IF(ISERROR(Dados!E809),\"-\",Dados!E809)","v":""},{"$f":"IF(ISERROR(Dados!F809),\"-\",Dados!F809)","v":""},{"$f":"IF(ISERROR(Dados!G809),\"-\",Dados!G809)","v":""},{"$f":"IF(ISERROR(Dados!H809),\"-\",Dados!H809)","v":""},{"$f":"IF(ISERROR(Dados!I809),\"-\",Dados!I809)","v":""},{"$f":"IF(ISERROR(Dados!J809),\"-\",Dados!J809)","v":""},{"$f":"IF(ISERROR(Dados!K809),\"-\",Dados!K809)","v":""},{"$f":"IF(ISERROR(Dados!L809),\"-\",Dados!L809)","v":""},{"$f":"IF(ISERROR(Dados!M809),\"-\",Dados!M809)","v":""},{"$f":"IF(ISERROR(Dados!N809),\"-\",Dados!N809)","v":""},{"$f":"IF(ISERROR(Dados!O809),\"-\",Dados!O809)","v":""},{"$f":"IF(ISERROR(Dados!P809),\"-\",Dados!P809)","v":""},{"$f":"IF(ISERROR(Dados!Q809),\"-\",Dados!Q809)","v":""},{"$f":"IF(ISERROR(Dados!R809),\"-\",Dados!R809)","v":""},{"$f":"IF(ISERROR(Dados!S809),\"-\",Dados!S809)","v":""},{"$f":"IF(ISERROR(Dados!T809),\"-\",Dados!T809)","v":""},{"$f":"IF(ISERROR(Dados!U809),\"-\",Dados!U809)","v":""},{"$f":"IF(ISERROR(Dados!V809),\"-\",Dados!V809)","v":""},{"$f":"IF(ISERROR(Dados!W809),\"-\",Dados!W809)","v":""},{"$f":"IF(ISERROR(Dados!X809),\"-\",Dados!X809)","v":""},{"$f":"IF(ISERROR(Dados!Y809),\"-\",Dados!Y809)","v":""},{"$f":"IF(ISERROR(Dados!Z809),\"-\",Dados!Z809)","v":""},{"$f":"IF(ISERROR(Dados!AA809),\"-\",Dados!AA809)","v":""},{"$f":"IF(ISERROR(Dados!AB809),\"-\",Dados!AB809)","v":""},{"$f":"IF(ISERROR(Dados!AC809),\"-\",Dados!AC809)","v":""},{"$f":"IF(ISERROR(Dados!AD809),\"-\",Dados!AD809)","v":""},{"$f":"IF(ISERROR(Dados!AE809),\"-\",Dados!AE809)","v":""},{"$f":"IF(ISERROR(Dados!AF809),\"-\",Dados!AF809)","v":""},{"$f":"IF(ISERROR(Dados!AG809),\"-\",Dados!AG809)","v":""}]
[{"$f":"IF(ISERROR(Dados!A810),\"-\",Dados!A810)","v":""},{"$f":"IF(ISERROR(Dados!B810),\"-\",Dados!B810)","v":""},{"$f":"IF(ISERROR(Dados!C810),\"-\",Dados!C810)","v":""},{"$f":"IF(ISERROR(Dados!D810),\"-\",Dados!D810)","v":""},{"$f":"IF(ISERROR(Dados!E810),\"-\",Dados!E810)","v":""},{"$f":"IF(ISERROR(Dados!F810),\"-\",Dados!F810)","v":""},{"$f":"IF(ISERROR(Dados!G810),\"-\",Dados!G810)","v":""},{"$f":"IF(ISERROR(Dados!H810),\"-\",Dados!H810)","v":""},{"$f":"IF(ISERROR(Dados!I810),\"-\",Dados!I810)","v":""},{"$f":"IF(ISERROR(Dados!J810),\"-\",Dados!J810)","v":""},{"$f":"IF(ISERROR(Dados!K810),\"-\",Dados!K810)","v":""},{"$f":"IF(ISERROR(Dados!L810),\"-\",Dados!L810)","v":""},{"$f":"IF(ISERROR(Dados!M810),\"-\",Dados!M810)","v":""},{"$f":"IF(ISERROR(Dados!N810),\"-\",Dados!N810)","v":""},{"$f":"IF(ISERROR(Dados!O810),\"-\",Dados!O810)","v":""},{"$f":"IF(ISERROR(Dados!P810),\"-\",Dados!P810)","v":""},{"$f":"IF(ISERROR(Dados!Q810),\"-\",Dados!Q810)","v":""},{"$f":"IF(ISERROR(Dados!R810),\"-\",Dados!R810)","v":""},{"$f":"IF(ISERROR(Dados!S810),\"-\",Dados!S810)","v":""},{"$f":"IF(ISERROR(Dados!T810),\"-\",Dados!T810)","v":""},{"$f":"IF(ISERROR(Dados!U810),\"-\",Dados!U810)","v":""},{"$f":"IF(ISERROR(Dados!V810),\"-\",Dados!V810)","v":""},{"$f":"IF(ISERROR(Dados!W810),\"-\",Dados!W810)","v":""},{"$f":"IF(ISERROR(Dados!X810),\"-\",Dados!X810)","v":""},{"$f":"IF(ISERROR(Dados!Y810),\"-\",Dados!Y810)","v":""},{"$f":"IF(ISERROR(Dados!Z810),\"-\",Dados!Z810)","v":""},{"$f":"IF(ISERROR(Dados!AA810),\"-\",Dados!AA810)","v":""},{"$f":"IF(ISERROR(Dados!AB810),\"-\",Dados!AB810)","v":""},{"$f":"IF(ISERROR(Dados!AC810),\"-\",Dados!AC810)","v":""},{"$f":"IF(ISERROR(Dados!AD810),\"-\",Dados!AD810)","v":""},{"$f":"IF(ISERROR(Dados!AE810),\"-\",Dados!AE810)","v":""},{"$f":"IF(ISERROR(Dados!AF810),\"-\",Dados!AF810)","v":""},{"$f":"IF(ISERROR(Dados!AG810),\"-\",Dados!AG810)","v":""}]
[{"$f":"IF(ISERROR(Dados!A811),\"-\",Dados!A811)","v":""},{"$f":"IF(ISERROR(Dados!B811),\"-\",Dados!B811)","v":""},{"$f":"IF(ISERROR(Dados!C811),\"-\",Dados!C811)","v":""},{"$f":"IF(ISERROR(Dados!D811),\"-\",Dados!D811)","v":""},{"$f":"IF(ISERROR(Dados!E811),\"-\",Dados!E811)","v":""},{"$f":"IF(ISERROR(Dados!F811),\"-\",Dados!F811)","v":""},{"$f":"IF(ISERROR(Dados!G811),\"-\",Dados!G811)","v":""},{"$f":"IF(ISERROR(Dados!H811),\"-\",Dados!H811)","v":""},{"$f":"IF(ISERROR(Dados!I811),\"-\",Dados!I811)","v":""},{"$f":"IF(ISERROR(Dados!J811),\"-\",Dados!J811)","v":""},{"$f":"IF(ISERROR(Dados!K811),\"-\",Dados!K811)","v":""},{"$f":"IF(ISERROR(Dados!L811),\"-\",Dados!L811)","v":""},{"$f":"IF(ISERROR(Dados!M811),\"-\",Dados!M811)","v":""},{"$f":"IF(ISERROR(Dados!N811),\"-\",Dados!N811)","v":""},{"$f":"IF(ISERROR(Dados!O811),\"-\",Dados!O811)","v":""},{"$f":"IF(ISERROR(Dados!P811),\"-\",Dados!P811)","v":""},{"$f":"IF(ISERROR(Dados!Q811),\"-\",Dados!Q811)","v":""},{"$f":"IF(ISERROR(Dados!R811),\"-\",Dados!R811)","v":""},{"$f":"IF(ISERROR(Dados!S811),\"-\",Dados!S811)","v":""},{"$f":"IF(ISERROR(Dados!T811),\"-\",Dados!T811)","v":""},{"$f":"IF(ISERROR(Dados!U811),\"-\",Dados!U811)","v":""},{"$f":"IF(ISERROR(Dados!V811),\"-\",Dados!V811)","v":""},{"$f":"IF(ISERROR(Dados!W811),\"-\",Dados!W811)","v":""},{"$f":"IF(ISERROR(Dados!X811),\"-\",Dados!X811)","v":""},{"$f":"IF(ISERROR(Dados!Y811),\"-\",Dados!Y811)","v":""},{"$f":"IF(ISERROR(Dados!Z811),\"-\",Dados!Z811)","v":""},{"$f":"IF(ISERROR(Dados!AA811),\"-\",Dados!AA811)","v":""},{"$f":"IF(ISERROR(Dados!AB811),\"-\",Dados!AB811)","v":""},{"$f":"IF(ISERROR(Dados!AC811),\"-\",Dados!AC811)","v":""},{"$f":"IF(ISERROR(Dados!AD811),\"-\",Dados!AD811)","v":""},{"$f":"IF(ISERROR(Dados!AE811),\"-\",Dados!AE811)","v":""},{"$f":"IF(ISERROR(Dados!AF811),\"-\",Dados!AF811)","v":""},{"$f":"IF(ISERROR(Dados!AG811),\"-\",Dados!AG811)","v":""}]
[{"$f":"IF(ISERROR(Dados!A812),\"-\",Dados!A812)","v":""},{"$f":"IF(ISERROR(Dados!B812),\"-\",Dados!B812)","v":""},{"$f":"IF(ISERROR(Dados!C812),\"-\",Dados!C812)","v":""},{"$f":"IF(ISERROR(Dados!D812),\"-\",Dados!D812)","v":""},{"$f":"IF(ISERROR(Dados!E812),\"-\",Dados!E812)","v":""},{"$f":"IF(ISERROR(Dados!F812),\"-\",Dados!F812)","v":""},{"$f":"IF(ISERROR(Dados!G812),\"-\",Dados!G812)","v":""},{"$f":"IF(ISERROR(Dados!H812),\"-\",Dados!H812)","v":""},{"$f":"IF(ISERROR(Dados!I812),\"-\",Dados!I812)","v":""},{"$f":"IF(ISERROR(Dados!J812),\"-\",Dados!J812)","v":""},{"$f":"IF(ISERROR(Dados!K812),\"-\",Dados!K812)","v":""},{"$f":"IF(ISERROR(Dados!L812),\"-\",Dados!L812)","v":""},{"$f":"IF(ISERROR(Dados!M812),\"-\",Dados!M812)","v":""},{"$f":"IF(ISERROR(Dados!N812),\"-\",Dados!N812)","v":""},{"$f":"IF(ISERROR(Dados!O812),\"-\",Dados!O812)","v":""},{"$f":"IF(ISERROR(Dados!P812),\"-\",Dados!P812)","v":""},{"$f":"IF(ISERROR(Dados!Q812),\"-\",Dados!Q812)","v":""},{"$f":"IF(ISERROR(Dados!R812),\"-\",Dados!R812)","v":""},{"$f":"IF(ISERROR(Dados!S812),\"-\",Dados!S812)","v":""},{"$f":"IF(ISERROR(Dados!T812),\"-\",Dados!T812)","v":""},{"$f":"IF(ISERROR(Dados!U812),\"-\",Dados!U812)","v":""},{"$f":"IF(ISERROR(Dados!V812),\"-\",Dados!V812)","v":""},{"$f":"IF(ISERROR(Dados!W812),\"-\",Dados!W812)","v":""},{"$f":"IF(ISERROR(Dados!X812),\"-\",Dados!X812)","v":""},{"$f":"IF(ISERROR(Dados!Y812),\"-\",Dados!Y812)","v":""},{"$f":"IF(ISERROR(Dados!Z812),\"-\",Dados!Z812)","v":""},{"$f":"IF(ISERROR(Dados!AA812),\"-\",Dados!AA812)","v":""},{"$f":"IF(ISERROR(Dados!AB812),\"-\",Dados!AB812)","v":""},{"$f":"IF(ISERROR(Dados!AC812),\"-\",Dados!AC812)","v":""},{"$f":"IF(ISERROR(Dados!AD812),\"-\",Dados!AD812)","v":""},{"$f":"IF(ISERROR(Dados!AE812),\"-\",Dados!AE812)","v":""},{"$f":"IF(ISERROR(Dados!AF812),\"-\",Dados!AF812)","v":""},{"$f":"IF(ISERROR(Dados!AG812),\"-\",Dados!AG812)","v":""}]
[{"$f":"IF(ISERROR(Dados!A813),\"-\",Dados!A813)","v":""},{"$f":"IF(ISERROR(Dados!B813),\"-\",Dados!B813)","v":""},{"$f":"IF(ISERROR(Dados!C813),\"-\",Dados!C813)","v":""},{"$f":"IF(ISERROR(Dados!D813),\"-\",Dados!D813)","v":""},{"$f":"IF(ISERROR(Dados!E813),\"-\",Dados!E813)","v":""},{"$f":"IF(ISERROR(Dados!F813),\"-\",Dados!F813)","v":""},{"$f":"IF(ISERROR(Dados!G813),\"-\",Dados!G813)","v":""},{"$f":"IF(ISERROR(Dados!H813),\"-\",Dados!H813)","v":""},{"$f":"IF(ISERROR(Dados!I813),\"-\",Dados!I813)","v":""},{"$f":"IF(ISERROR(Dados!J813),\"-\",Dados!J813)","v":""},{"$f":"IF(ISERROR(Dados!K813),\"-\",Dados!K813)","v":""},{"$f":"IF(ISERROR(Dados!L813),\"-\",Dados!L813)","v":""},{"$f":"IF(ISERROR(Dados!M813),\"-\",Dados!M813)","v":""},{"$f":"IF(ISERROR(Dados!N813),\"-\",Dados!N813)","v":""},{"$f":"IF(ISERROR(Dados!O813),\"-\",Dados!O813)","v":""},{"$f":"IF(ISERROR(Dados!P813),\"-\",Dados!P813)","v":""},{"$f":"IF(ISERROR(Dados!Q813),\"-\",Dados!Q813)","v":""},{"$f":"IF(ISERROR(Dados!R813),\"-\",Dados!R813)","v":""},{"$f":"IF(ISERROR(Dados!S813),\"-\",Dados!S813)","v":""},{"$f":"IF(ISERROR(Dados!T813),\"-\",Dados!T813)","v":""},{"$f":"IF(ISERROR(Dados!U813),\"-\",Dados!U813)","v":""},{"$f":"IF(ISERROR(Dados!V813),\"-\",Dados!V813)","v":""},{"$f":"IF(ISERROR(Dados!W813),\"-\",Dados!W813)","v":""},{"$f":"IF(ISERROR(Dados!X813),\"-\",Dados!X813)","v":""},{"$f":"IF(ISERROR(Dados!Y813),\"-\",Dados!Y813)","v":""},{"$f":"IF(ISERROR(Dados!Z813),\"-\",Dados!Z813)","v":""},{"$f":"IF(ISERROR(Dados!AA813),\"-\",Dados!AA813)","v":""},{"$f":"IF(ISERROR(Dados!AB813),\"-\",Dados!AB813)","v":""},{"$f":"IF(ISERROR(Dados!AC813),\"-\",Dados!AC813)","v":""},{"$f":"IF(ISERROR(Dados!AD813),\"-\",Dados!AD813)","v":""},{"$f":"IF(ISERROR(Dados!AE813),\"-\",Dados!AE813)","v":""},{"$f":"IF(ISERROR(Dados!AF813),\"-\",Dados!AF813)","v":""},{"$f":"IF(ISERROR(Dados!AG813),\"-\",Dados!AG813)","v":""}]
[{"$f":"IF(ISERROR(Dados!A814),\"-\",Dados!A814)","v":""},{"$f":"IF(ISERROR(Dados!B814),\"-\",Dados!B814)","v":""},{"$f":"IF(ISERROR(Dados!C814),\"-\",Dados!C814)","v":""},{"$f":"IF(ISERROR(Dados!D814),\"-\",Dados!D814)","v":""},{"$f":"IF(ISERROR(Dados!E814),\"-\",Dados!E814)","v":""},{"$f":"IF(ISERROR(Dados!F814),\"-\",Dados!F814)","v":""},{"$f":"IF(ISERROR(Dados!G814),\"-\",Dados!G814)","v":""},{"$f":"IF(ISERROR(Dados!H814),\"-\",Dados!H814)","v":""},{"$f":"IF(ISERROR(Dados!I814),\"-\",Dados!I814)","v":""},{"$f":"IF(ISERROR(Dados!J814),\"-\",Dados!J814)","v":""},{"$f":"IF(ISERROR(Dados!K814),\"-\",Dados!K814)","v":""},{"$f":"IF(ISERROR(Dados!L814),\"-\",Dados!L814)","v":""},{"$f":"IF(ISERROR(Dados!M814),\"-\",Dados!M814)","v":""},{"$f":"IF(ISERROR(Dados!N814),\"-\",Dados!N814)","v":""},{"$f":"IF(ISERROR(Dados!O814),\"-\",Dados!O814)","v":""},{"$f":"IF(ISERROR(Dados!P814),\"-\",Dados!P814)","v":""},{"$f":"IF(ISERROR(Dados!Q814),\"-\",Dados!Q814)","v":""},{"$f":"IF(ISERROR(Dados!R814),\"-\",Dados!R814)","v":""},{"$f":"IF(ISERROR(Dados!S814),\"-\",Dados!S814)","v":""},{"$f":"IF(ISERROR(Dados!T814),\"-\",Dados!T814)","v":""},{"$f":"IF(ISERROR(Dados!U814),\"-\",Dados!U814)","v":""},{"$f":"IF(ISERROR(Dados!V814),\"-\",Dados!V814)","v":""},{"$f":"IF(ISERROR(Dados!W814),\"-\",Dados!W814)","v":""},{"$f":"IF(ISERROR(Dados!X814),\"-\",Dados!X814)","v":""},{"$f":"IF(ISERROR(Dados!Y814),\"-\",Dados!Y814)","v":""},{"$f":"IF(ISERROR(Dados!Z814),\"-\",Dados!Z814)","v":""},{"$f":"IF(ISERROR(Dados!AA814),\"-\",Dados!AA814)","v":""},{"$f":"IF(ISERROR(Dados!AB814),\"-\",Dados!AB814)","v":""},{"$f":"IF(ISERROR(Dados!AC814),\"-\",Dados!AC814)","v":""},{"$f":"IF(ISERROR(Dados!AD814),\"-\",Dados!AD814)","v":""},{"$f":"IF(ISERROR(Dados!AE814),\"-\",Dados!AE814)","v":""},{"$f":"IF(ISERROR(Dados!AF814),\"-\",Dados!AF814)","v":""},{"$f":"IF(ISERROR(Dados!AG814),\"-\",Dados!AG814)","v":""}]
[{"$f":"IF(ISERROR(Dados!A815),\"-\",Dados!A815)","v":""},{"$f":"IF(ISERROR(Dados!B815),\"-\",Dados!B815)","v":""},{"$f":"IF(ISERROR(Dados!C815),\"-\",Dados!C815)","v":""},{"$f":"IF(ISERROR(Dados!D815),\"-\",Dados!D815)","v":""},{"$f":"IF(ISERROR(Dados!E815),\"-\",Dados!E815)","v":""},{"$f":"IF(ISERROR(Dados!F815),\"-\",Dados!F815)","v":""},{"$f":"IF(ISERROR(Dados!G815),\"-\",Dados!G815)","v":""},{"$f":"IF(ISERROR(Dados!H815),\"-\",Dados!H815)","v":""},{"$f":"IF(ISERROR(Dados!I815),\"-\",Dados!I815)","v":""},{"$f":"IF(ISERROR(Dados!J815),\"-\",Dados!J815)","v":""},{"$f":"IF(ISERROR(Dados!K815),\"-\",Dados!K815)","v":""},{"$f":"IF(ISERROR(Dados!L815),\"-\",Dados!L815)","v":""},{"$f":"IF(ISERROR(Dados!M815),\"-\",Dados!M815)","v":""},{"$f":"IF(ISERROR(Dados!N815),\"-\",Dados!N815)","v":""},{"$f":"IF(ISERROR(Dados!O815),\"-\",Dados!O815)","v":""},{"$f":"IF(ISERROR(Dados!P815),\"-\",Dados!P815)","v":""},{"$f":"IF(ISERROR(Dados!Q815),\"-\",Dados!Q815)","v":""},{"$f":"IF(ISERROR(Dados!R815),\"-\",Dados!R815)","v":""},{"$f":"IF(ISERROR(Dados!S815),\"-\",Dados!S815)","v":""},{"$f":"IF(ISERROR(Dados!T815),\"-\",Dados!T815)","v":""},{"$f":"IF(ISERROR(Dados!U815),\"-\",Dados!U815)","v":""},{"$f":"IF(ISERROR(Dados!V815),\"-\",Dados!V815)","v":""},{"$f":"IF(ISERROR(Dados!W815),\"-\",Dados!W815)","v":""},{"$f":"IF(ISERROR(Dados!X815),\"-\",Dados!X815)","v":""},{"$f":"IF(ISERROR(Dados!Y815),\"-\",Dados!Y815)","v":""},{"$f":"IF(ISERROR(Dados!Z815),\"-\",Dados!Z815)","v":""},{"$f":"IF(ISERROR(Dados!AA815),\"-\",Dados!AA815)","v":""},{"$f":"IF(ISERROR(Dados!AB815),\"-\",Dados!AB815)","v":""},{"$f":"IF(ISERROR(Dados!AC815),\"-\",Dados!AC815)","v":""},{"$f":"IF(ISERROR(Dados!AD815),\"-\",Dados!AD815)","v":""},{"$f":"IF(ISERROR(Dados!AE815),\"-\",Dados!AE815)","v":""},{"$f":"IF(ISERROR(Dados!AF815),\"-\",Dados!AF815)","v":""},{"$f":"IF(ISERROR(Dados!AG815),\"-\",Dados!AG815)","v":""}]
[{"$f":"IF(ISERROR(Dados!A816),\"-\",Dados!A816)","v":""},{"$f":"IF(ISERROR(Dados!B816),\"-\",Dados!B816)","v":""},{"$f":"IF(ISERROR(Dados!C816),\"-\",Dados!C816)","v":""},{"$f":"IF(ISERROR(Dados!D816),\"-\",Dados!D816)","v":""},{"$f":"IF(ISERROR(Dados!E816),\"-\",Dados!E816)","v":""},{"$f":"IF(ISERROR(Dados!F816),\"-\",Dados!F816)","v":""},{"$f":"IF(ISERROR(Dados!G816),\"-\",Dados!G816)","v":""},{"$f":"IF(ISERROR(Dados!H816),\"-\",Dados!H816)","v":""},{"$f":"IF(ISERROR(Dados!I816),\"-\",Dados!I816)","v":""},{"$f":"IF(ISERROR(Dados!J816),\"-\",Dados!J816)","v":""},{"$f":"IF(ISERROR(Dados!K816),\"-\",Dados!K816)","v":""},{"$f":"IF(ISERROR(Dados!L816),\"-\",Dados!L816)","v":""},{"$f":"IF(ISERROR(Dados!M816),\"-\",Dados!M816)","v":""},{"$f":"IF(ISERROR(Dados!N816),\"-\",Dados!N816)","v":""},{"$f":"IF(ISERROR(Dados!O816),\"-\",Dados!O816)","v":""},{"$f":"IF(ISERROR(Dados!P816),\"-\",Dados!P816)","v":""},{"$f":"IF(ISERROR(Dados!Q816),\"-\",Dados!Q816)","v":""},{"$f":"IF(ISERROR(Dados!R816),\"-\",Dados!R816)","v":""},{"$f":"IF(ISERROR(Dados!S816),\"-\",Dados!S816)","v":""},{"$f":"IF(ISERROR(Dados!T816),\"-\",Dados!T816)","v":""},{"$f":"IF(ISERROR(Dados!U816),\"-\",Dados!U816)","v":""},{"$f":"IF(ISERROR(Dados!V816),\"-\",Dados!V816)","v":""},{"$f":"IF(ISERROR(Dados!W816),\"-\",Dados!W816)","v":""},{"$f":"IF(ISERROR(Dados!X816),\"-\",Dados!X816)","v":""},{"$f":"IF(ISERROR(Dados!Y816),\"-\",Dados!Y816)","v":""},{"$f":"IF(ISERROR(Dados!Z816),\"-\",Dados!Z816)","v":""},{"$f":"IF(ISERROR(Dados!AA816),\"-\",Dados!AA816)","v":""},{"$f":"IF(ISERROR(Dados!AB816),\"-\",Dados!AB816)","v":""},{"$f":"IF(ISERROR(Dados!AC816),\"-\",Dados!AC816)","v":""},{"$f":"IF(ISERROR(Dados!AD816),\"-\",Dados!AD816)","v":""},{"$f":"IF(ISERROR(Dados!AE816),\"-\",Dados!AE816)","v":""},{"$f":"IF(ISERROR(Dados!AF816),\"-\",Dados!AF816)","v":""},{"$f":"IF(ISERROR(Dados!AG816),\"-\",Dados!AG816)","v":""}]
[{"$f":"IF(ISERROR(Dados!A817),\"-\",Dados!A817)","v":""},{"$f":"IF(ISERROR(Dados!B817),\"-\",Dados!B817)","v":""},{"$f":"IF(ISERROR(Dados!C817),\"-\",Dados!C817)","v":""},{"$f":"IF(ISERROR(Dados!D817),\"-\",Dados!D817)","v":""},{"$f":"IF(ISERROR(Dados!E817),\"-\",Dados!E817)","v":""},{"$f":"IF(ISERROR(Dados!F817),\"-\",Dados!F817)","v":""},{"$f":"IF(ISERROR(Dados!G817),\"-\",Dados!G817)","v":""},{"$f":"IF(ISERROR(Dados!H817),\"-\",Dados!H817)","v":""},{"$f":"IF(ISERROR(Dados!I817),\"-\",Dados!I817)","v":""},{"$f":"IF(ISERROR(Dados!J817),\"-\",Dados!J817)","v":""},{"$f":"IF(ISERROR(Dados!K817),\"-\",Dados!K817)","v":""},{"$f":"IF(ISERROR(Dados!L817),\"-\",Dados!L817)","v":""},{"$f":"IF(ISERROR(Dados!M817),\"-\",Dados!M817)","v":""},{"$f":"IF(ISERROR(Dados!N817),\"-\",Dados!N817)","v":""},{"$f":"IF(ISERROR(Dados!O817),\"-\",Dados!O817)","v":""},{"$f":"IF(ISERROR(Dados!P817),\"-\",Dados!P817)","v":""},{"$f":"IF(ISERROR(Dados!Q817),\"-\",Dados!Q817)","v":""},{"$f":"IF(ISERROR(Dados!R817),\"-\",Dados!R817)","v":""},{"$f":"IF(ISERROR(Dados!S817),\"-\",Dados!S817)","v":""},{"$f":"IF(ISERROR(Dados!T817),\"-\",Dados!T817)","v":""},{"$f":"IF(ISERROR(Dados!U817),\"-\",Dados!U817)","v":""},{"$f":"IF(ISERROR(Dados!V817),\"-\",Dados!V817)","v":""},{"$f":"IF(ISERROR(Dados!W817),\"-\",Dados!W817)","v":""},{"$f":"IF(ISERROR(Dados!X817),\"-\",Dados!X817)","v":""},{"$f":"IF(ISERROR(Dados!Y817),\"-\",Dados!Y817)","v":""},{"$f":"IF(ISERROR(Dados!Z817),\"-\",Dados!Z817)","v":""},{"$f":"IF(ISERROR(Dados!AA817),\"-\",Dados!AA817)","v":""},{"$f":"IF(ISERROR(Dados!AB817),\"-\",Dados!AB817)","v":""},{"$f":"IF(ISERROR(Dados!AC817),\"-\",Dados!AC817)","v":""},{"$f":"IF(ISERROR(Dados!AD817),\"-\",Dados!AD817)","v":""},{"$f":"IF(ISERROR(Dados!AE817),\"-\",Dados!AE817)","v":""},{"$f":"IF(ISERROR(Dados!AF817),\"-\",Dados!AF817)","v":""},{"$f":"IF(ISERROR(Dados!AG817),\"-\",Dados!AG817)","v":""}]
[{"$f":"IF(ISERROR(Dados!A818),\"-\",Dados!A818)","v":""},{"$f":"IF(ISERROR(Dados!B818),\"-\",Dados!B818)","v":""},{"$f":"IF(ISERROR(Dados!C818),\"-\",Dados!C818)","v":""},{"$f":"IF(ISERROR(Dados!D818),\"-\",Dados!D818)","v":""},{"$f":"IF(ISERROR(Dados!E818),\"-\",Dados!E818)","v":""},{"$f":"IF(ISERROR(Dados!F818),\"-\",Dados!F818)","v":""},{"$f":"IF(ISERROR(Dados!G818),\"-\",Dados!G818)","v":""},{"$f":"IF(ISERROR(Dados!H818),\"-\",Dados!H818)","v":""},{"$f":"IF(ISERROR(Dados!I818),\"-\",Dados!I818)","v":""},{"$f":"IF(ISERROR(Dados!J818),\"-\",Dados!J818)","v":""},{"$f":"IF(ISERROR(Dados!K818),\"-\",Dados!K818)","v":""},{"$f":"IF(ISERROR(Dados!L818),\"-\",Dados!L818)","v":""},{"$f":"IF(ISERROR(Dados!M818),\"-\",Dados!M818)","v":""},{"$f":"IF(ISERROR(Dados!N818),\"-\",Dados!N818)","v":""},{"$f":"IF(ISERROR(Dados!O818),\"-\",Dados!O818)","v":""},{"$f":"IF(ISERROR(Dados!P818),\"-\",Dados!P818)","v":""},{"$f":"IF(ISERROR(Dados!Q818),\"-\",Dados!Q818)","v":""},{"$f":"IF(ISERROR(Dados!R818),\"-\",Dados!R818)","v":""},{"$f":"IF(ISERROR(Dados!S818),\"-\",Dados!S818)","v":""},{"$f":"IF(ISERROR(Dados!T818),\"-\",Dados!T818)","v":""},{"$f":"IF(ISERROR(Dados!U818),\"-\",Dados!U818)","v":""},{"$f":"IF(ISERROR(Dados!V818),\"-\",Dados!V818)","v":""},{"$f":"IF(ISERROR(Dados!W818),\"-\",Dados!W818)","v":""},{"$f":"IF(ISERROR(Dados!X818),\"-\",Dados!X818)","v":""},{"$f":"IF(ISERROR(Dados!Y818),\"-\",Dados!Y818)","v":""},{"$f":"IF(ISERROR(Dados!Z818),\"-\",Dados!Z818)","v":""},{"$f":"IF(ISERROR(Dados!AA818),\"-\",Dados!AA818)","v":""},{"$f":"IF(ISERROR(Dados!AB818),\"-\",Dados!AB818)","v":""},{"$f":"IF(ISERROR(Dados!AC818),\"-\",Dados!AC818)","v":""},{"$f":"IF(ISERROR(Dados!AD818),\"-\",Dados!AD818)","v":""},{"$f":"IF(ISERROR(Dados!AE818),\"-\",Dados!AE818)","v":""},{"$f":"IF(ISERROR(Dados!AF818),\"-\",Dados!AF818)","v":""},{"$f":"IF(ISERROR(Dados!AG818),\"-\",Dados!AG818)","v":""}]
[{"$f":"IF(ISERROR(Dados!A819),\"-\",Dados!A819)","v":""},{"$f":"IF(ISERROR(Dados!B819),\"-\",Dados!B819)","v":""},{"$f":"IF(ISERROR(Dados!C819),\"-\",Dados!C819)","v":""},{"$f":"IF(ISERROR(Dados!D819),\"-\",Dados!D819)","v":""},{"$f":"IF(ISERROR(Dados!E819),\"-\",Dados!E819)","v":""},{"$f":"IF(ISERROR(Dados!F819),\"-\",Dados!F819)","v":""},{"$f":"IF(ISERROR(Dados!G819),\"-\",Dados!G819)","v":""},{"$f":"IF(ISERROR(Dados!H819),\"-\",Dados!H819)","v":""},{"$f":"IF(ISERROR(Dados!I819),\"-\",Dados!I819)","v":""},{"$f":"IF(ISERROR(Dados!J819),\"-\",Dados!J819)","v":""},{"$f":"IF(ISERROR(Dados!K819),\"-\",Dados!K819)","v":""},{"$f":"IF(ISERROR(Dados!L819),\"-\",Dados!L819)","v":""},{"$f":"IF(ISERROR(Dados!M819),\"-\",Dados!M819)","v":""},{"$f":"IF(ISERROR(Dados!N819),\"-\",Dados!N819)","v":""},{"$f":"IF(ISERROR(Dados!O819),\"-\",Dados!O819)","v":""},{"$f":"IF(ISERROR(Dados!P819),\"-\",Dados!P819)","v":""},{"$f":"IF(ISERROR(Dados!Q819),\"-\",Dados!Q819)","v":""},{"$f":"IF(ISERROR(Dados!R819),\"-\",Dados!R819)","v":""},{"$f":"IF(ISERROR(Dados!S819),\"-\",Dados!S819)","v":""},{"$f":"IF(ISERROR(Dados!T819),\"-\",Dados!T819)","v":""},{"$f":"IF(ISERROR(Dados!U819),\"-\",Dados!U819)","v":""},{"$f":"IF(ISERROR(Dados!V819),\"-\",Dados!V819)","v":""},{"$f":"IF(ISERROR(Dados!W819),\"-\",Dados!W819)","v":""},{"$f":"IF(ISERROR(Dados!X819),\"-\",Dados!X819)","v":""},{"$f":"IF(ISERROR(Dados!Y819),\"-\",Dados!Y819)","v":""},{"$f":"IF(ISERROR(Dados!Z819),\"-\",Dados!Z819)","v":""},{"$f":"IF(ISERROR(Dados!AA819),\"-\",Dados!AA819)","v":""},{"$f":"IF(ISERROR(Dados!AB819),\"-\",Dados!AB819)","v":""},{"$f":"IF(ISERROR(Dados!AC819),\"-\",Dados!AC819)","v":""},{"$f":"IF(ISERROR(Dados!AD819),\"-\",Dados!AD819)","v":""},{"$f":"IF(ISERROR(Dados!AE819),\"-\",Dados!AE819)","v":""},{"$f":"IF(ISERROR(Dados!AF819),\"-\",Dados!AF819)","v":""},{"$f":"IF(ISERROR(Dados!AG819),\"-\",Dados!AG819)","v":""}]
[{"$f":"IF(ISERROR(Dados!A820),\"-\",Dados!A820)","v":""},{"$f":"IF(ISERROR(Dados!B820),\"-\",Dados!B820)","v":""},{"$f":"IF(ISERROR(Dados!C820),\"-\",Dados!C820)","v":""},{"$f":"IF(ISERROR(Dados!D820),\"-\",Dados!D820)","v":""},{"$f":"IF(ISERROR(Dados!E820),\"-\",Dados!E820)","v":""},{"$f":"IF(ISERROR(Dados!F820),\"-\",Dados!F820)","v":""},{"$f":"IF(ISERROR(Dados!G820),\"-\",Dados!G820)","v":""},{"$f":"IF(ISERROR(Dados!H820),\"-\",Dados!H820)","v":""},{"$f":"IF(ISERROR(Dados!I820),\"-\",Dados!I820)","v":""},{"$f":"IF(ISERROR(Dados!J820),\"-\",Dados!J820)","v":""},{"$f":"IF(ISERROR(Dados!K820),\"-\",Dados!K820)","v":""},{"$f":"IF(ISERROR(Dados!L820),\"-\",Dados!L820)","v":""},{"$f":"IF(ISERROR(Dados!M820),\"-\",Dados!M820)","v":""},{"$f":"IF(ISERROR(Dados!N820),\"-\",Dados!N820)","v":""},{"$f":"IF(ISERROR(Dados!O820),\"-\",Dados!O820)","v":""},{"$f":"IF(ISERROR(Dados!P820),\"-\",Dados!P820)","v":""},{"$f":"IF(ISERROR(Dados!Q820),\"-\",Dados!Q820)","v":""},{"$f":"IF(ISERROR(Dados!R820),\"-\",Dados!R820)","v":""},{"$f":"IF(ISERROR(Dados!S820),\"-\",Dados!S820)","v":""},{"$f":"IF(ISERROR(Dados!T820),\"-\",Dados!T820)","v":""},{"$f":"IF(ISERROR(Dados!U820),\"-\",Dados!U820)","v":""},{"$f":"IF(ISERROR(Dados!V820),\"-\",Dados!V820)","v":""},{"$f":"IF(ISERROR(Dados!W820),\"-\",Dados!W820)","v":""},{"$f":"IF(ISERROR(Dados!X820),\"-\",Dados!X820)","v":""},{"$f":"IF(ISERROR(Dados!Y820),\"-\",Dados!Y820)","v":""},{"$f":"IF(ISERROR(Dados!Z820),\"-\",Dados!Z820)","v":""},{"$f":"IF(ISERROR(Dados!AA820),\"-\",Dados!AA820)","v":""},{"$f":"IF(ISERROR(Dados!AB820),\"-\",Dados!AB820)","v":""},{"$f":"IF(ISERROR(Dados!AC820),\"-\",Dados!AC820)","v":""},{"$f":"IF(ISERROR(Dados!AD820),\"-\",Dados!AD820)","v":""},{"$f":"IF(ISERROR(Dados!AE820),\"-\",Dados!AE820)","v":""},{"$f":"IF(ISERROR(Dados!AF820),\"-\",Dados!AF820)","v":""},{"$f":"IF(ISERROR(Dados!AG820),\"-\",Dados!AG820)","v":""}]
[{"$f":"IF(ISERROR(Dados!A821),\"-\",Dados!A821)","v":""},{"$f":"IF(ISERROR(Dados!B821),\"-\",Dados!B821)","v":""},{"$f":"IF(ISERROR(Dados!C821),\"-\",Dados!C821)","v":""},{"$f":"IF(ISERROR(Dados!D821),\"-\",Dados!D821)","v":""},{"$f":"IF(ISERROR(Dados!E821),\"-\",Dados!E821)","v":""},{"$f":"IF(ISERROR(Dados!F821),\"-\",Dados!F821)","v":""},{"$f":"IF(ISERROR(Dados!G821),\"-\",Dados!G821)","v":""},{"$f":"IF(ISERROR(Dados!H821),\"-\",Dados!H821)","v":""},{"$f":"IF(ISERROR(Dados!I821),\"-\",Dados!I821)","v":""},{"$f":"IF(ISERROR(Dados!J821),\"-\",Dados!J821)","v":""},{"$f":"IF(ISERROR(Dados!K821),\"-\",Dados!K821)","v":""},{"$f":"IF(ISERROR(Dados!L821),\"-\",Dados!L821)","v":""},{"$f":"IF(ISERROR(Dados!M821),\"-\",Dados!M821)","v":""},{"$f":"IF(ISERROR(Dados!N821),\"-\",Dados!N821)","v":""},{"$f":"IF(ISERROR(Dados!O821),\"-\",Dados!O821)","v":""},{"$f":"IF(ISERROR(Dados!P821),\"-\",Dados!P821)","v":""},{"$f":"IF(ISERROR(Dados!Q821),\"-\",Dados!Q821)","v":""},{"$f":"IF(ISERROR(Dados!R821),\"-\",Dados!R821)","v":""},{"$f":"IF(ISERROR(Dados!S821),\"-\",Dados!S821)","v":""},{"$f":"IF(ISERROR(Dados!T821),\"-\",Dados!T821)","v":""},{"$f":"IF(ISERROR(Dados!U821),\"-\",Dados!U821)","v":""},{"$f":"IF(ISERROR(Dados!V821),\"-\",Dados!V821)","v":""},{"$f":"IF(ISERROR(Dados!W821),\"-\",Dados!W821)","v":""},{"$f":"IF(ISERROR(Dados!X821),\"-\",Dados!X821)","v":""},{"$f":"IF(ISERROR(Dados!Y821),\"-\",Dados!Y821)","v":""},{"$f":"IF(ISERROR(Dados!Z821),\"-\",Dados!Z821)","v":""},{"$f":"IF(ISERROR(Dados!AA821),\"-\",Dados!AA821)","v":""},{"$f":"IF(ISERROR(Dados!AB821),\"-\",Dados!AB821)","v":""},{"$f":"IF(ISERROR(Dados!AC821),\"-\",Dados!AC821)","v":""},{"$f":"IF(ISERROR(Dados!AD821),\"-\",Dados!AD821)","v":""},{"$f":"IF(ISERROR(Dados!AE821),\"-\",Dados!AE821)","v":""},{"$f":"IF(ISERROR(Dados!AF821),\"-\",Dados!AF821)","v":""},{"$f":"IF(ISERROR(Dados!AG821),\"-\",Dados!AG821)","v":""}]
[{"$f":"IF(ISERROR(Dados!A822),\"-\",Dados!A822)","v":""},{"$f":"IF(ISERROR(Dados!B822),\"-\",Dados!B822)","v":""},{"$f":"IF(ISERROR(Dados!C822),\"-\",Dados!C822)","v":""},{"$f":"IF(ISERROR(Dados!D822),\"-\",Dados!D822)","v":""},{"$f":"IF(ISERROR(Dados!E822),\"-\",Dados!E822)","v":""},{"$f":"IF(ISERROR(Dados!F822),\"-\",Dados!F822)","v":""},{"$f":"IF(ISERROR(Dados!G822),\"-\",Dados!G822)","v":""},{"$f":"IF(ISERROR(Dados!H822),\"-\",Dados!H822)","v":""},{"$f":"IF(ISERROR(Dados!I822),\"-\",Dados!I822)","v":""},{"$f":"IF(ISERROR(Dados!J822),\"-\",Dados!J822)","v":""},{"$f":"IF(ISERROR(Dados!K822),\"-\",Dados!K822)","v":""},{"$f":"IF(ISERROR(Dados!L822),\"-\",Dados!L822)","v":""},{"$f":"IF(ISERROR(Dados!M822),\"-\",Dados!M822)","v":""},{"$f":"IF(ISERROR(Dados!N822),\"-\",Dados!N822)","v":""},{"$f":"IF(ISERROR(Dados!O822),\"-\",Dados!O822)","v":""},{"$f":"IF(ISERROR(Dados!P822),\"-\",Dados!P822)","v":""},{"$f":"IF(ISERROR(Dados!Q822),\"-\",Dados!Q822)","v":""},{"$f":"IF(ISERROR(Dados!R822),\"-\",Dados!R822)","v":""},{"$f":"IF(ISERROR(Dados!S822),\"-\",Dados!S822)","v":""},{"$f":"IF(ISERROR(Dados!T822),\"-\",Dados!T822)","v":""},{"$f":"IF(ISERROR(Dados!U822),\"-\",Dados!U822)","v":""},{"$f":"IF(ISERROR(Dados!V822),\"-\",Dados!V822)","v":""},{"$f":"IF(ISERROR(Dados!W822),\"-\",Dados!W822)","v":""},{"$f":"IF(ISERROR(Dados!X822),\"-\",Dados!X822)","v":""},{"$f":"IF(ISERROR(Dados!Y822),\"-\",Dados!Y822)","v":""},{"$f":"IF(ISERROR(Dados!Z822),\"-\",Dados!Z822)","v":""},{"$f":"IF(ISERROR(Dados!AA822),\"-\",Dados!AA822)","v":""},{"$f":"IF(ISERROR(Dados!AB822),\"-\",Dados!AB822)","v":""},{"$f":"IF(ISERROR(Dados!AC822),\"-\",Dados!AC822)","v":""},{"$f":"IF(ISERROR(Dados!AD822),\"-\",Dados!AD822)","v":""},{"$f":"IF(ISERROR(Dados!AE822),\"-\",Dados!AE822)","v":""},{"$f":"IF(ISERROR(Dados!AF822),\"-\",Dados!AF822)","v":""},{"$f":"IF(ISERROR(Dados!AG822),\"-\",Dados!AG822)","v":""}]
[{"$f":"IF(ISERROR(Dados!A823),\"-\",Dados!A823)","v":""},{"$f":"IF(ISERROR(Dados!B823),\"-\",Dados!B823)","v":""},{"$f":"IF(ISERROR(Dados!C823),\"-\",Dados!C823)","v":""},{"$f":"IF(ISERROR(Dados!D823),\"-\",Dados!D823)","v":""},{"$f":"IF(ISERROR(Dados!E823),\"-\",Dados!E823)","v":""},{"$f":"IF(ISERROR(Dados!F823),\"-\",Dados!F823)","v":""},{"$f":"IF(ISERROR(Dados!G823),\"-\",Dados!G823)","v":""},{"$f":"IF(ISERROR(Dados!H823),\"-\",Dados!H823)","v":""},{"$f":"IF(ISERROR(Dados!I823),\"-\",Dados!I823)","v":""},{"$f":"IF(ISERROR(Dados!J823),\"-\",Dados!J823)","v":""},{"$f":"IF(ISERROR(Dados!K823),\"-\",Dados!K823)","v":""},{"$f":"IF(ISERROR(Dados!L823),\"-\",Dados!L823)","v":""},{"$f":"IF(ISERROR(Dados!M823),\"-\",Dados!M823)","v":""},{"$f":"IF(ISERROR(Dados!N823),\"-\",Dados!N823)","v":""},{"$f":"IF(ISERROR(Dados!O823),\"-\",Dados!O823)","v":""},{"$f":"IF(ISERROR(Dados!P823),\"-\",Dados!P823)","v":""},{"$f":"IF(ISERROR(Dados!Q823),\"-\",Dados!Q823)","v":""},{"$f":"IF(ISERROR(Dados!R823),\"-\",Dados!R823)","v":""},{"$f":"IF(ISERROR(Dados!S823),\"-\",Dados!S823)","v":""},{"$f":"IF(ISERROR(Dados!T823),\"-\",Dados!T823)","v":""},{"$f":"IF(ISERROR(Dados!U823),\"-\",Dados!U823)","v":""},{"$f":"IF(ISERROR(Dados!V823),\"-\",Dados!V823)","v":""},{"$f":"IF(ISERROR(Dados!W823),\"-\",Dados!W823)","v":""},{"$f":"IF(ISERROR(Dados!X823),\"-\",Dados!X823)","v":""},{"$f":"IF(ISERROR(Dados!Y823),\"-\",Dados!Y823)","v":""},{"$f":"IF(ISERROR(Dados!Z823),\"-\",Dados!Z823)","v":""},{"$f":"IF(ISERROR(Dados!AA823),\"-\",Dados!AA823)","v":""},{"$f":"IF(ISERROR(Dados!AB823),\"-\",Dados!AB823)","v":""},{"$f":"IF(ISERROR(Dados!AC823),\"-\",Dados!AC823)","v":""},{"$f":"IF(ISERROR(Dados!AD823),\"-\",Dados!AD823)","v":""},{"$f":"IF(ISERROR(Dados!AE823),\"-\",Dados!AE823)","v":""},{"$f":"IF(ISERROR(Dados!AF823),\"-\",Dados!AF823)","v":""},{"$f":"IF(ISERROR(Dados!AG823),\"-\",Dados!AG823)","v":""}]
[{"$f":"IF(ISERROR(Dados!A824),\"-\",Dados!A824)","v":""},{"$f":"IF(ISERROR(Dados!B824),\"-\",Dados!B824)","v":""},{"$f":"IF(ISERROR(Dados!C824),\"-\",Dados!C824)","v":""},{"$f":"IF(ISERROR(Dados!D824),\"-\",Dados!D824)","v":""},{"$f":"IF(ISERROR(Dados!E824),\"-\",Dados!E824)","v":""},{"$f":"IF(ISERROR(Dados!F824),\"-\",Dados!F824)","v":""},{"$f":"IF(ISERROR(Dados!G824),\"-\",Dados!G824)","v":""},{"$f":"IF(ISERROR(Dados!H824),\"-\",Dados!H824)","v":""},{"$f":"IF(ISERROR(Dados!I824),\"-\",Dados!I824)","v":""},{"$f":"IF(ISERROR(Dados!J824),\"-\",Dados!J824)","v":""},{"$f":"IF(ISERROR(Dados!K824),\"-\",Dados!K824)","v":""},{"$f":"IF(ISERROR(Dados!L824),\"-\",Dados!L824)","v":""},{"$f":"IF(ISERROR(Dados!M824),\"-\",Dados!M824)","v":""},{"$f":"IF(ISERROR(Dados!N824),\"-\",Dados!N824)","v":""},{"$f":"IF(ISERROR(Dados!O824),\"-\",Dados!O824)","v":""},{"$f":"IF(ISERROR(Dados!P824),\"-\",Dados!P824)","v":""},{"$f":"IF(ISERROR(Dados!Q824),\"-\",Dados!Q824)","v":""},{"$f":"IF(ISERROR(Dados!R824),\"-\",Dados!R824)","v":""},{"$f":"IF(ISERROR(Dados!S824),\"-\",Dados!S824)","v":""},{"$f":"IF(ISERROR(Dados!T824),\"-\",Dados!T824)","v":""},{"$f":"IF(ISERROR(Dados!U824),\"-\",Dados!U824)","v":""},{"$f":"IF(ISERROR(Dados!V824),\"-\",Dados!V824)","v":""},{"$f":"IF(ISERROR(Dados!W824),\"-\",Dados!W824)","v":""},{"$f":"IF(ISERROR(Dados!X824),\"-\",Dados!X824)","v":""},{"$f":"IF(ISERROR(Dados!Y824),\"-\",Dados!Y824)","v":""},{"$f":"IF(ISERROR(Dados!Z824),\"-\",Dados!Z824)","v":""},{"$f":"IF(ISERROR(Dados!AA824),\"-\",Dados!AA824)","v":""},{"$f":"IF(ISERROR(Dados!AB824),\"-\",Dados!AB824)","v":""},{"$f":"IF(ISERROR(Dados!AC824),\"-\",Dados!AC824)","v":""},{"$f":"IF(ISERROR(Dados!AD824),\"-\",Dados!AD824)","v":""},{"$f":"IF(ISERROR(Dados!AE824),\"-\",Dados!AE824)","v":""},{"$f":"IF(ISERROR(Dados!AF824),\"-\",Dados!AF824)","v":""},{"$f":"IF(ISERROR(Dados!AG824),\"-\",Dados!AG824)","v":""}]
[{"$f":"IF(ISERROR(Dados!A825),\"-\",Dados!A825)","v":""},{"$f":"IF(ISERROR(Dados!B825),\"-\",Dados!B825)","v":""},{"$f":"IF(ISERROR(Dados!C825),\"-\",Dados!C825)","v":""},{"$f":"IF(ISERROR(Dados!D825),\"-\",Dados!D825)","v":""},{"$f":"IF(ISERROR(Dados!E825),\"-\",Dados!E825)","v":""},{"$f":"IF(ISERROR(Dados!F825),\"-\",Dados!F825)","v":""},{"$f":"IF(ISERROR(Dados!G825),\"-\",Dados!G825)","v":""},{"$f":"IF(ISERROR(Dados!H825),\"-\",Dados!H825)","v":""},{"$f":"IF(ISERROR(Dados!I825),\"-\",Dados!I825)","v":""},{"$f":"IF(ISERROR(Dados!J825),\"-\",Dados!J825)","v":""},{"$f":"IF(ISERROR(Dados!K825),\"-\",Dados!K825)","v":""},{"$f":"IF(ISERROR(Dados!L825),\"-\",Dados!L825)","v":""},{"$f":"IF(ISERROR(Dados!M825),\"-\",Dados!M825)","v":""},{"$f":"IF(ISERROR(Dados!N825),\"-\",Dados!N825)","v":""},{"$f":"IF(ISERROR(Dados!O825),\"-\",Dados!O825)","v":""},{"$f":"IF(ISERROR(Dados!P825),\"-\",Dados!P825)","v":""},{"$f":"IF(ISERROR(Dados!Q825),\"-\",Dados!Q825)","v":""},{"$f":"IF(ISERROR(Dados!R825),\"-\",Dados!R825)","v":""},{"$f":"IF(ISERROR(Dados!S825),\"-\",Dados!S825)","v":""},{"$f":"IF(ISERROR(Dados!T825),\"-\",Dados!T825)","v":""},{"$f":"IF(ISERROR(Dados!U825),\"-\",Dados!U825)","v":""},{"$f":"IF(ISERROR(Dados!V825),\"-\",Dados!V825)","v":""},{"$f":"IF(ISERROR(Dados!W825),\"-\",Dados!W825)","v":""},{"$f":"IF(ISERROR(Dados!X825),\"-\",Dados!X825)","v":""},{"$f":"IF(ISERROR(Dados!Y825),\"-\",Dados!Y825)","v":""},{"$f":"IF(ISERROR(Dados!Z825),\"-\",Dados!Z825)","v":""},{"$f":"IF(ISERROR(Dados!AA825),\"-\",Dados!AA825)","v":""},{"$f":"IF(ISERROR(Dados!AB825),\"-\",Dados!AB825)","v":""},{"$f":"IF(ISERROR(Dados!AC825),\"-\",Dados!AC825)","v":""},{"$f":"IF(ISERROR(Dados!AD825),\"-\",Dados!AD825)","v":""},{"$f":"IF(ISERROR(Dados!AE825),\"-\",Dados!AE825)","v":""},{"$f":"IF(ISERROR(Dados!AF825),\"-\",Dados!AF825)","v":""},{"$f":"IF(ISERROR(Dados!AG825),\"-\",Dados!AG825)","v":""}]
[{"$f":"IF(ISERROR(Dados!A826),\"-\",Dados!A826)","v":""},{"$f":"IF(ISERROR(Dados!B826),\"-\",Dados!B826)","v":""},{"$f":"IF(ISERROR(Dados!C826),\"-\",Dados!C826)","v":""},{"$f":"IF(ISERROR(Dados!D826),\"-\",Dados!D826)","v":""},{"$f":"IF(ISERROR(Dados!E826),\"-\",Dados!E826)","v":""},{"$f":"IF(ISERROR(Dados!F826),\"-\",Dados!F826)","v":""},{"$f":"IF(ISERROR(Dados!G826),\"-\",Dados!G826)","v":""},{"$f":"IF(ISERROR(Dados!H826),\"-\",Dados!H826)","v":""},{"$f":"IF(ISERROR(Dados!I826),\"-\",Dados!I826)","v":""},{"$f":"IF(ISERROR(Dados!J826),\"-\",Dados!J826)","v":""},{"$f":"IF(ISERROR(Dados!K826),\"-\",Dados!K826)","v":""},{"$f":"IF(ISERROR(Dados!L826),\"-\",Dados!L826)","v":""},{"$f":"IF(ISERROR(Dados!M826),\"-\",Dados!M826)","v":""},{"$f":"IF(ISERROR(Dados!N826),\"-\",Dados!N826)","v":""},{"$f":"IF(ISERROR(Dados!O826),\"-\",Dados!O826)","v":""},{"$f":"IF(ISERROR(Dados!P826),\"-\",Dados!P826)","v":""},{"$f":"IF(ISERROR(Dados!Q826),\"-\",Dados!Q826)","v":""},{"$f":"IF(ISERROR(Dados!R826),\"-\",Dados!R826)","v":""},{"$f":"IF(ISERROR(Dados!S826),\"-\",Dados!S826)","v":""},{"$f":"IF(ISERROR(Dados!T826),\"-\",Dados!T826)","v":""},{"$f":"IF(ISERROR(Dados!U826),\"-\",Dados!U826)","v":""},{"$f":"IF(ISERROR(Dados!V826),\"-\",Dados!V826)","v":""},{"$f":"IF(ISERROR(Dados!W826),\"-\",Dados!W826)","v":""},{"$f":"IF(ISERROR(Dados!X826),\"-\",Dados!X826)","v":""},{"$f":"IF(ISERROR(Dados!Y826),\"-\",Dados!Y826)","v":""},{"$f":"IF(ISERROR(Dados!Z826),\"-\",Dados!Z826)","v":""},{"$f":"IF(ISERROR(Dados!AA826),\"-\",Dados!AA826)","v":""},{"$f":"IF(ISERROR(Dados!AB826),\"-\",Dados!AB826)","v":""},{"$f":"IF(ISERROR(Dados!AC826),\"-\",Dados!AC826)","v":""},{"$f":"IF(ISERROR(Dados!AD826),\"-\",Dados!AD826)","v":""},{"$f":"IF(ISERROR(Dados!AE826),\"-\",Dados!AE826)","v":""},{"$f":"IF(ISERROR(Dados!AF826),\"-\",Dados!AF826)","v":""},{"$f":"IF(ISERROR(Dados!AG826),\"-\",Dados!AG826)","v":""}]
[{"$f":"IF(ISERROR(Dados!A827),\"-\",Dados!A827)","v":""},{"$f":"IF(ISERROR(Dados!B827),\"-\",Dados!B827)","v":""},{"$f":"IF(ISERROR(Dados!C827),\"-\",Dados!C827)","v":""},{"$f":"IF(ISERROR(Dados!D827),\"-\",Dados!D827)","v":""},{"$f":"IF(ISERROR(Dados!E827),\"-\",Dados!E827)","v":""},{"$f":"IF(ISERROR(Dados!F827),\"-\",Dados!F827)","v":""},{"$f":"IF(ISERROR(Dados!G827),\"-\",Dados!G827)","v":""},{"$f":"IF(ISERROR(Dados!H827),\"-\",Dados!H827)","v":""},{"$f":"IF(ISERROR(Dados!I827),\"-\",Dados!I827)","v":""},{"$f":"IF(ISERROR(Dados!J827),\"-\",Dados!J827)","v":""},{"$f":"IF(ISERROR(Dados!K827),\"-\",Dados!K827)","v":""},{"$f":"IF(ISERROR(Dados!L827),\"-\",Dados!L827)","v":""},{"$f":"IF(ISERROR(Dados!M827),\"-\",Dados!M827)","v":""},{"$f":"IF(ISERROR(Dados!N827),\"-\",Dados!N827)","v":""},{"$f":"IF(ISERROR(Dados!O827),\"-\",Dados!O827)","v":""},{"$f":"IF(ISERROR(Dados!P827),\"-\",Dados!P827)","v":""},{"$f":"IF(ISERROR(Dados!Q827),\"-\",Dados!Q827)","v":""},{"$f":"IF(ISERROR(Dados!R827),\"-\",Dados!R827)","v":""},{"$f":"IF(ISERROR(Dados!S827),\"-\",Dados!S827)","v":""},{"$f":"IF(ISERROR(Dados!T827),\"-\",Dados!T827)","v":""},{"$f":"IF(ISERROR(Dados!U827),\"-\",Dados!U827)","v":""},{"$f":"IF(ISERROR(Dados!V827),\"-\",Dados!V827)","v":""},{"$f":"IF(ISERROR(Dados!W827),\"-\",Dados!W827)","v":""},{"$f":"IF(ISERROR(Dados!X827),\"-\",Dados!X827)","v":""},{"$f":"IF(ISERROR(Dados!Y827),\"-\",Dados!Y827)","v":""},{"$f":"IF(ISERROR(Dados!Z827),\"-\",Dados!Z827)","v":""},{"$f":"IF(ISERROR(Dados!AA827),\"-\",Dados!AA827)","v":""},{"$f":"IF(ISERROR(Dados!AB827),\"-\",Dados!AB827)","v":""},{"$f":"IF(ISERROR(Dados!AC827),\"-\",Dados!AC827)","v":""},{"$f":"IF(ISERROR(Dados!AD827),\"-\",Dados!AD827)","v":""},{"$f":"IF(ISERROR(Dados!AE827),\"-\",Dados!AE827)","v":""},{"$f":"IF(ISERROR(Dados!AF827),\"-\",Dados!AF827)","v":""},{"$f":"IF(ISERROR(Dados!AG827),\"-\",Dados!AG827)","v":""}]
[{"$f":"IF(ISERROR(Dados!A828),\"-\",Dados!A828)","v":""},{"$f":"IF(ISERROR(Dados!B828),\"-\",Dados!B828)","v":""},{"$f":"IF(ISERROR(Dados!C828),\"-\",Dados!C828)","v":""},{"$f":"IF(ISERROR(Dados!D828),\"-\",Dados!D828)","v":""},{"$f":"IF(ISERROR(Dados!E828),\"-\",Dados!E828)","v":""},{"$f":"IF(ISERROR(Dados!F828),\"-\",Dados!F828)","v":""},{"$f":"IF(ISERROR(Dados!G828),\"-\",Dados!G828)","v":""},{"$f":"IF(ISERROR(Dados!H828),\"-\",Dados!H828)","v":""},{"$f":"IF(ISERROR(Dados!I828),\"-\",Dados!I828)","v":""},{"$f":"IF(ISERROR(Dados!J828),\"-\",Dados!J828)","v":""},{"$f":"IF(ISERROR(Dados!K828),\"-\",Dados!K828)","v":""},{"$f":"IF(ISERROR(Dados!L828),\"-\",Dados!L828)","v":""},{"$f":"IF(ISERROR(Dados!M828),\"-\",Dados!M828)","v":""},{"$f":"IF(ISERROR(Dados!N828),\"-\",Dados!N828)","v":""},{"$f":"IF(ISERROR(Dados!O828),\"-\",Dados!O828)","v":""},{"$f":"IF(ISERROR(Dados!P828),\"-\",Dados!P828)","v":""},{"$f":"IF(ISERROR(Dados!Q828),\"-\",Dados!Q828)","v":""},{"$f":"IF(ISERROR(Dados!R828),\"-\",Dados!R828)","v":""},{"$f":"IF(ISERROR(Dados!S828),\"-\",Dados!S828)","v":""},{"$f":"IF(ISERROR(Dados!T828),\"-\",Dados!T828)","v":""},{"$f":"IF(ISERROR(Dados!U828),\"-\",Dados!U828)","v":""},{"$f":"IF(ISERROR(Dados!V828),\"-\",Dados!V828)","v":""},{"$f":"IF(ISERROR(Dados!W828),\"-\",Dados!W828)","v":""},{"$f":"IF(ISERROR(Dados!X828),\"-\",Dados!X828)","v":""},{"$f":"IF(ISERROR(Dados!Y828),\"-\",Dados!Y828)","v":""},{"$f":"IF(ISERROR(Dados!Z828),\"-\",Dados!Z828)","v":""},{"$f":"IF(ISERROR(Dados!AA828),\"-\",Dados!AA828)","v":""},{"$f":"IF(ISERROR(Dados!AB828),\"-\",Dados!AB828)","v":""},{"$f":"IF(ISERROR(Dados!AC828),\"-\",Dados!AC828)","v":""},{"$f":"IF(ISERROR(Dados!AD828),\"-\",Dados!AD828)","v":""},{"$f":"IF(ISERROR(Dados!AE828),\"-\",Dados!AE828)","v":""},{"$f":"IF(ISERROR(Dados!AF828),\"-\",Dados!AF828)","v":""},{"$f":"IF(ISERROR(Dados!AG828),\"-\",Dados!AG828)","v":""}]
[{"$f":"IF(ISERROR(Dados!A829),\"-\",Dados!A829)","v":""},{"$f":"IF(ISERROR(Dados!B829),\"-\",Dados!B829)","v":""},{"$f":"IF(ISERROR(Dados!C829),\"-\",Dados!C829)","v":""},{"$f":"IF(ISERROR(Dados!D829),\"-\",Dados!D829)","v":""},{"$f":"IF(ISERROR(Dados!E829),\"-\",Dados!E829)","v":""},{"$f":"IF(ISERROR(Dados!F829),\"-\",Dados!F829)","v":""},{"$f":"IF(ISERROR(Dados!G829),\"-\",Dados!G829)","v":""},{"$f":"IF(ISERROR(Dados!H829),\"-\",Dados!H829)","v":""},{"$f":"IF(ISERROR(Dados!I829),\"-\",Dados!I829)","v":""},{"$f":"IF(ISERROR(Dados!J829),\"-\",Dados!J829)","v":""},{"$f":"IF(ISERROR(Dados!K829),\"-\",Dados!K829)","v":""},{"$f":"IF(ISERROR(Dados!L829),\"-\",Dados!L829)","v":""},{"$f":"IF(ISERROR(Dados!M829),\"-\",Dados!M829)","v":""},{"$f":"IF(ISERROR(Dados!N829),\"-\",Dados!N829)","v":""},{"$f":"IF(ISERROR(Dados!O829),\"-\",Dados!O829)","v":""},{"$f":"IF(ISERROR(Dados!P829),\"-\",Dados!P829)","v":""},{"$f":"IF(ISERROR(Dados!Q829),\"-\",Dados!Q829)","v":""},{"$f":"IF(ISERROR(Dados!R829),\"-\",Dados!R829)","v":""},{"$f":"IF(ISERROR(Dados!S829),\"-\",Dados!S829)","v":""},{"$f":"IF(ISERROR(Dados!T829),\"-\",Dados!T829)","v":""},{"$f":"IF(ISERROR(Dados!U829),\"-\",Dados!U829)","v":""},{"$f":"IF(ISERROR(Dados!V829),\"-\",Dados!V829)","v":""},{"$f":"IF(ISERROR(Dados!W829),\"-\",Dados!W829)","v":""},{"$f":"IF(ISERROR(Dados!X829),\"-\",Dados!X829)","v":""},{"$f":"IF(ISERROR(Dados!Y829),\"-\",Dados!Y829)","v":""},{"$f":"IF(ISERROR(Dados!Z829),\"-\",Dados!Z829)","v":""},{"$f":"IF(ISERROR(Dados!AA829),\"-\",Dados!AA829)","v":""},{"$f":"IF(ISERROR(Dados!AB829),\"-\",Dados!AB829)","v":""},{"$f":"IF(ISERROR(Dados!AC829),\"-\",Dados!AC829)","v":""},{"$f":"IF(ISERROR(Dados!AD829),\"-\",Dados!AD829)","v":""},{"$f":"IF(ISERROR(Dados!AE829),\"-\",Dados!AE829)","v":""},{"$f":"IF(ISERROR(Dados!AF829),\"-\",Dados!AF829)","v":""},{"$f":"IF(ISERROR(Dados!AG829),\"-\",Dados!AG829)","v":""}]
[{"$f":"IF(ISERROR(Dados!A830),\"-\",Dados!A830)","v":""},{"$f":"IF(ISERROR(Dados!B830),\"-\",Dados!B830)","v":""},{"$f":"IF(ISERROR(Dados!C830),\"-\",Dados!C830)","v":""},{"$f":"IF(ISERROR(Dados!D830),\"-\",Dados!D830)","v":""},{"$f":"IF(ISERROR(Dados!E830),\"-\",Dados!E830)","v":""},{"$f":"IF(ISERROR(Dados!F830),\"-\",Dados!F830)","v":""},{"$f":"IF(ISERROR(Dados!G830),\"-\",Dados!G830)","v":""},{"$f":"IF(ISERROR(Dados!H830),\"-\",Dados!H830)","v":""},{"$f":"IF(ISERROR(Dados!I830),\"-\",Dados!I830)","v":""},{"$f":"IF(ISERROR(Dados!J830),\"-\",Dados!J830)","v":""},{"$f":"IF(ISERROR(Dados!K830),\"-\",Dados!K830)","v":""},{"$f":"IF(ISERROR(Dados!L830),\"-\",Dados!L830)","v":""},{"$f":"IF(ISERROR(Dados!M830),\"-\",Dados!M830)","v":""},{"$f":"IF(ISERROR(Dados!N830),\"-\",Dados!N830)","v":""},{"$f":"IF(ISERROR(Dados!O830),\"-\",Dados!O830)","v":""},{"$f":"IF(ISERROR(Dados!P830),\"-\",Dados!P830)","v":""},{"$f":"IF(ISERROR(Dados!Q830),\"-\",Dados!Q830)","v":""},{"$f":"IF(ISERROR(Dados!R830),\"-\",Dados!R830)","v":""},{"$f":"IF(ISERROR(Dados!S830),\"-\",Dados!S830)","v":""},{"$f":"IF(ISERROR(Dados!T830),\"-\",Dados!T830)","v":""},{"$f":"IF(ISERROR(Dados!U830),\"-\",Dados!U830)","v":""},{"$f":"IF(ISERROR(Dados!V830),\"-\",Dados!V830)","v":""},{"$f":"IF(ISERROR(Dados!W830),\"-\",Dados!W830)","v":""},{"$f":"IF(ISERROR(Dados!X830),\"-\",Dados!X830)","v":""},{"$f":"IF(ISERROR(Dados!Y830),\"-\",Dados!Y830)","v":""},{"$f":"IF(ISERROR(Dados!Z830),\"-\",Dados!Z830)","v":""},{"$f":"IF(ISERROR(Dados!AA830),\"-\",Dados!AA830)","v":""},{"$f":"IF(ISERROR(Dados!AB830),\"-\",Dados!AB830)","v":""},{"$f":"IF(ISERROR(Dados!AC830),\"-\",Dados!AC830)","v":""},{"$f":"IF(ISERROR(Dados!AD830),\"-\",Dados!AD830)","v":""},{"$f":"IF(ISERROR(Dados!AE830),\"-\",Dados!AE830)","v":""},{"$f":"IF(ISERROR(Dados!AF830),\"-\",Dados!AF830)","v":""},{"$f":"IF(ISERROR(Dados!AG830),\"-\",Dados!AG830)","v":""}]
[{"$f":"IF(ISERROR(Dados!A831),\"-\",Dados!A831)","v":""},{"$f":"IF(ISERROR(Dados!B831),\"-\",Dados!B831)","v":""},{"$f":"IF(ISERROR(Dados!C831),\"-\",Dados!C831)","v":""},{"$f":"IF(ISERROR(Dados!D831),\"-\",Dados!D831)","v":""},{"$f":"IF(ISERROR(Dados!E831),\"-\",Dados!E831)","v":""},{"$f":"IF(ISERROR(Dados!F831),\"-\",Dados!F831)","v":""},{"$f":"IF(ISERROR(Dados!G831),\"-\",Dados!G831)","v":""},{"$f":"IF(ISERROR(Dados!H831),\"-\",Dados!H831)","v":""},{"$f":"IF(ISERROR(Dados!I831),\"-\",Dados!I831)","v":""},{"$f":"IF(ISERROR(Dados!J831),\"-\",Dados!J831)","v":""},{"$f":"IF(ISERROR(Dados!K831),\"-\",Dados!K831)","v":""},{"$f":"IF(ISERROR(Dados!L831),\"-\",Dados!L831)","v":""},{"$f":"IF(ISERROR(Dados!M831),\"-\",Dados!M831)","v":""},{"$f":"IF(ISERROR(Dados!N831),\"-\",Dados!N831)","v":""},{"$f":"IF(ISERROR(Dados!O831),\"-\",Dados!O831)","v":""},{"$f":"IF(ISERROR(Dados!P831),\"-\",Dados!P831)","v":""},{"$f":"IF(ISERROR(Dados!Q831),\"-\",Dados!Q831)","v":""},{"$f":"IF(ISERROR(Dados!R831),\"-\",Dados!R831)","v":""},{"$f":"IF(ISERROR(Dados!S831),\"-\",Dados!S831)","v":""},{"$f":"IF(ISERROR(Dados!T831),\"-\",Dados!T831)","v":""},{"$f":"IF(ISERROR(Dados!U831),\"-\",Dados!U831)","v":""},{"$f":"IF(ISERROR(Dados!V831),\"-\",Dados!V831)","v":""},{"$f":"IF(ISERROR(Dados!W831),\"-\",Dados!W831)","v":""},{"$f":"IF(ISERROR(Dados!X831),\"-\",Dados!X831)","v":""},{"$f":"IF(ISERROR(Dados!Y831),\"-\",Dados!Y831)","v":""},{"$f":"IF(ISERROR(Dados!Z831),\"-\",Dados!Z831)","v":""},{"$f":"IF(ISERROR(Dados!AA831),\"-\",Dados!AA831)","v":""},{"$f":"IF(ISERROR(Dados!AB831),\"-\",Dados!AB831)","v":""},{"$f":"IF(ISERROR(Dados!AC831),\"-\",Dados!AC831)","v":""},{"$f":"IF(ISERROR(Dados!AD831),\"-\",Dados!AD831)","v":""},{"$f":"IF(ISERROR(Dados!AE831),\"-\",Dados!AE831)","v":""},{"$f":"IF(ISERROR(Dados!AF831),\"-\",Dados!AF831)","v":""},{"$f":"IF(ISERROR(Dados!AG831),\"-\",Dados!AG831)","v":""}]
[{"$f":"IF(ISERROR(Dados!A832),\"-\",Dados!A832)","v":""},{"$f":"IF(ISERROR(Dados!B832),\"-\",Dados!B832)","v":""},{"$f":"IF(ISERROR(Dados!C832),\"-\",Dados!C832)","v":""},{"$f":"IF(ISERROR(Dados!D832),\"-\",Dados!D832)","v":""},{"$f":"IF(ISERROR(Dados!E832),\"-\",Dados!E832)","v":""},{"$f":"IF(ISERROR(Dados!F832),\"-\",Dados!F832)","v":""},{"$f":"IF(ISERROR(Dados!G832),\"-\",Dados!G832)","v":""},{"$f":"IF(ISERROR(Dados!H832),\"-\",Dados!H832)","v":""},{"$f":"IF(ISERROR(Dados!I832),\"-\",Dados!I832)","v":""},{"$f":"IF(ISERROR(Dados!J832),\"-\",Dados!J832)","v":""},{"$f":"IF(ISERROR(Dados!K832),\"-\",Dados!K832)","v":""},{"$f":"IF(ISERROR(Dados!L832),\"-\",Dados!L832)","v":""},{"$f":"IF(ISERROR(Dados!M832),\"-\",Dados!M832)","v":""},{"$f":"IF(ISERROR(Dados!N832),\"-\",Dados!N832)","v":""},{"$f":"IF(ISERROR(Dados!O832),\"-\",Dados!O832)","v":""},{"$f":"IF(ISERROR(Dados!P832),\"-\",Dados!P832)","v":""},{"$f":"IF(ISERROR(Dados!Q832),\"-\",Dados!Q832)","v":""},{"$f":"IF(ISERROR(Dados!R832),\"-\",Dados!R832)","v":""},{"$f":"IF(ISERROR(Dados!S832),\"-\",Dados!S832)","v":""},{"$f":"IF(ISERROR(Dados!T832),\"-\",Dados!T832)","v":""},{"$f":"IF(ISERROR(Dados!U832),\"-\",Dados!U832)","v":""},{"$f":"IF(ISERROR(Dados!V832),\"-\",Dados!V832)","v":""},{"$f":"IF(ISERROR(Dados!W832),\"-\",Dados!W832)","v":""},{"$f":"IF(ISERROR(Dados!X832),\"-\",Dados!X832)","v":""},{"$f":"IF(ISERROR(Dados!Y832),\"-\",Dados!Y832)","v":""},{"$f":"IF(ISERROR(Dados!Z832),\"-\",Dados!Z832)","v":""},{"$f":"IF(ISERROR(Dados!AA832),\"-\",Dados!AA832)","v":""},{"$f":"IF(ISERROR(Dados!AB832),\"-\",Dados!AB832)","v":""},{"$f":"IF(ISERROR(Dados!AC832),\"-\",Dados!AC832)","v":""},{"$f":"IF(ISERROR(Dados!AD832),\"-\",Dados!AD832)","v":""},{"$f":"IF(ISERROR(Dados!AE832),\"-\",Dados!AE832)","v":""},{"$f":"IF(ISERROR(Dados!AF832),\"-\",Dados!AF832)","v":""},{"$f":"IF(ISERROR(Dados!AG832),\"-\",Dados!AG832)","v":""}]
[{"$f":"IF(ISERROR(Dados!A833),\"-\",Dados!A833)","v":""},{"$f":"IF(ISERROR(Dados!B833),\"-\",Dados!B833)","v":""},{"$f":"IF(ISERROR(Dados!C833),\"-\",Dados!C833)","v":""},{"$f":"IF(ISERROR(Dados!D833),\"-\",Dados!D833)","v":""},{"$f":"IF(ISERROR(Dados!E833),\"-\",Dados!E833)","v":""},{"$f":"IF(ISERROR(Dados!F833),\"-\",Dados!F833)","v":""},{"$f":"IF(ISERROR(Dados!G833),\"-\",Dados!G833)","v":""},{"$f":"IF(ISERROR(Dados!H833),\"-\",Dados!H833)","v":""},{"$f":"IF(ISERROR(Dados!I833),\"-\",Dados!I833)","v":""},{"$f":"IF(ISERROR(Dados!J833),\"-\",Dados!J833)","v":""},{"$f":"IF(ISERROR(Dados!K833),\"-\",Dados!K833)","v":""},{"$f":"IF(ISERROR(Dados!L833),\"-\",Dados!L833)","v":""},{"$f":"IF(ISERROR(Dados!M833),\"-\",Dados!M833)","v":""},{"$f":"IF(ISERROR(Dados!N833),\"-\",Dados!N833)","v":""},{"$f":"IF(ISERROR(Dados!O833),\"-\",Dados!O833)","v":""},{"$f":"IF(ISERROR(Dados!P833),\"-\",Dados!P833)","v":""},{"$f":"IF(ISERROR(Dados!Q833),\"-\",Dados!Q833)","v":""},{"$f":"IF(ISERROR(Dados!R833),\"-\",Dados!R833)","v":""},{"$f":"IF(ISERROR(Dados!S833),\"-\",Dados!S833)","v":""},{"$f":"IF(ISERROR(Dados!T833),\"-\",Dados!T833)","v":""},{"$f":"IF(ISERROR(Dados!U833),\"-\",Dados!U833)","v":""},{"$f":"IF(ISERROR(Dados!V833),\"-\",Dados!V833)","v":""},{"$f":"IF(ISERROR(Dados!W833),\"-\",Dados!W833)","v":""},{"$f":"IF(ISERROR(Dados!X833),\"-\",Dados!X833)","v":""},{"$f":"IF(ISERROR(Dados!Y833),\"-\",Dados!Y833)","v":""},{"$f":"IF(ISERROR(Dados!Z833),\"-\",Dados!Z833)","v":""},{"$f":"IF(ISERROR(Dados!AA833),\"-\",Dados!AA833)","v":""},{"$f":"IF(ISERROR(Dados!AB833),\"-\",Dados!AB833)","v":""},{"$f":"IF(ISERROR(Dados!AC833),\"-\",Dados!AC833)","v":""},{"$f":"IF(ISERROR(Dados!AD833),\"-\",Dados!AD833)","v":""},{"$f":"IF(ISERROR(Dados!AE833),\"-\",Dados!AE833)","v":""},{"$f":"IF(ISERROR(Dados!AF833),\"-\",Dados!AF833)","v":""},{"$f":"IF(ISERROR(Dados!AG833),\"-\",Dados!AG833)","v":""}]
[{"$f":"IF(ISERROR(Dados!A834),\"-\",Dados!A834)","v":""},{"$f":"IF(ISERROR(Dados!B834),\"-\",Dados!B834)","v":""},{"$f":"IF(ISERROR(Dados!C834),\"-\",Dados!C834)","v":""},{"$f":"IF(ISERROR(Dados!D834),\"-\",Dados!D834)","v":""},{"$f":"IF(ISERROR(Dados!E834),\"-\",Dados!E834)","v":""},{"$f":"IF(ISERROR(Dados!F834),\"-\",Dados!F834)","v":""},{"$f":"IF(ISERROR(Dados!G834),\"-\",Dados!G834)","v":""},{"$f":"IF(ISERROR(Dados!H834),\"-\",Dados!H834)","v":""},{"$f":"IF(ISERROR(Dados!I834),\"-\",Dados!I834)","v":""},{"$f":"IF(ISERROR(Dados!J834),\"-\",Dados!J834)","v":""},{"$f":"IF(ISERROR(Dados!K834),\"-\",Dados!K834)","v":""},{"$f":"IF(ISERROR(Dados!L834),\"-\",Dados!L834)","v":""},{"$f":"IF(ISERROR(Dados!M834),\"-\",Dados!M834)","v":""},{"$f":"IF(ISERROR(Dados!N834),\"-\",Dados!N834)","v":""},{"$f":"IF(ISERROR(Dados!O834),\"-\",Dados!O834)","v":""},{"$f":"IF(ISERROR(Dados!P834),\"-\",Dados!P834)","v":""},{"$f":"IF(ISERROR(Dados!Q834),\"-\",Dados!Q834)","v":""},{"$f":"IF(ISERROR(Dados!R834),\"-\",Dados!R834)","v":""},{"$f":"IF(ISERROR(Dados!S834),\"-\",Dados!S834)","v":""},{"$f":"IF(ISERROR(Dados!T834),\"-\",Dados!T834)","v":""},{"$f":"IF(ISERROR(Dados!U834),\"-\",Dados!U834)","v":""},{"$f":"IF(ISERROR(Dados!V834),\"-\",Dados!V834)","v":""},{"$f":"IF(ISERROR(Dados!W834),\"-\",Dados!W834)","v":""},{"$f":"IF(ISERROR(Dados!X834),\"-\",Dados!X834)","v":""},{"$f":"IF(ISERROR(Dados!Y834),\"-\",Dados!Y834)","v":""},{"$f":"IF(ISERROR(Dados!Z834),\"-\",Dados!Z834)","v":""},{"$f":"IF(ISERROR(Dados!AA834),\"-\",Dados!AA834)","v":""},{"$f":"IF(ISERROR(Dados!AB834),\"-\",Dados!AB834)","v":""},{"$f":"IF(ISERROR(Dados!AC834),\"-\",Dados!AC834)","v":""},{"$f":"IF(ISERROR(Dados!AD834),\"-\",Dados!AD834)","v":""},{"$f":"IF(ISERROR(Dados!AE834),\"-\",Dados!AE834)","v":""},{"$f":"IF(ISERROR(Dados!AF834),\"-\",Dados!AF834)","v":""},{"$f":"IF(ISERROR(Dados!AG834),\"-\",Dados!AG834)","v":""}]
[{"$f":"IF(ISERROR(Dados!A835),\"-\",Dados!A835)","v":""},{"$f":"IF(ISERROR(Dados!B835),\"-\",Dados!B835)","v":""},{"$f":"IF(ISERROR(Dados!C835),\"-\",Dados!C835)","v":""},{"$f":"IF(ISERROR(Dados!D835),\"-\",Dados!D835)","v":""},{"$f":"IF(ISERROR(Dados!E835),\"-\",Dados!E835)","v":""},{"$f":"IF(ISERROR(Dados!F835),\"-\",Dados!F835)","v":""},{"$f":"IF(ISERROR(Dados!G835),\"-\",Dados!G835)","v":""},{"$f":"IF(ISERROR(Dados!H835),\"-\",Dados!H835)","v":""},{"$f":"IF(ISERROR(Dados!I835),\"-\",Dados!I835)","v":""},{"$f":"IF(ISERROR(Dados!J835),\"-\",Dados!J835)","v":""},{"$f":"IF(ISERROR(Dados!K835),\"-\",Dados!K835)","v":""},{"$f":"IF(ISERROR(Dados!L835),\"-\",Dados!L835)","v":""},{"$f":"IF(ISERROR(Dados!M835),\"-\",Dados!M835)","v":""},{"$f":"IF(ISERROR(Dados!N835),\"-\",Dados!N835)","v":""},{"$f":"IF(ISERROR(Dados!O835),\"-\",Dados!O835)","v":""},{"$f":"IF(ISERROR(Dados!P835),\"-\",Dados!P835)","v":""},{"$f":"IF(ISERROR(Dados!Q835),\"-\",Dados!Q835)","v":""},{"$f":"IF(ISERROR(Dados!R835),\"-\",Dados!R835)","v":""},{"$f":"IF(ISERROR(Dados!S835),\"-\",Dados!S835)","v":""},{"$f":"IF(ISERROR(Dados!T835),\"-\",Dados!T835)","v":""},{"$f":"IF(ISERROR(Dados!U835),\"-\",Dados!U835)","v":""},{"$f":"IF(ISERROR(Dados!V835),\"-\",Dados!V835)","v":""},{"$f":"IF(ISERROR(Dados!W835),\"-\",Dados!W835)","v":""},{"$f":"IF(ISERROR(Dados!X835),\"-\",Dados!X835)","v":""},{"$f":"IF(ISERROR(Dados!Y835),\"-\",Dados!Y835)","v":""},{"$f":"IF(ISERROR(Dados!Z835),\"-\",Dados!Z835)","v":""},{"$f":"IF(ISERROR(Dados!AA835),\"-\",Dados!AA835)","v":""},{"$f":"IF(ISERROR(Dados!AB835),\"-\",Dados!AB835)","v":""},{"$f":"IF(ISERROR(Dados!AC835),\"-\",Dados!AC835)","v":""},{"$f":"IF(ISERROR(Dados!AD835),\"-\",Dados!AD835)","v":""},{"$f":"IF(ISERROR(Dados!AE835),\"-\",Dados!AE835)","v":""},{"$f":"IF(ISERROR(Dados!AF835),\"-\",Dados!AF835)","v":""},{"$f":"IF(ISERROR(Dados!AG835),\"-\",Dados!AG835)","v":""}]
[{"$f":"IF(ISERROR(Dados!A836),\"-\",Dados!A836)","v":""},{"$f":"IF(ISERROR(Dados!B836),\"-\",Dados!B836)","v":""},{"$f":"IF(ISERROR(Dados!C836),\"-\",Dados!C836)","v":""},{"$f":"IF(ISERROR(Dados!D836),\"-\",Dados!D836)","v":""},{"$f":"IF(ISERROR(Dados!E836),\"-\",Dados!E836)","v":""},{"$f":"IF(ISERROR(Dados!F836),\"-\",Dados!F836)","v":""},{"$f":"IF(ISERROR(Dados!G836),\"-\",Dados!G836)","v":""},{"$f":"IF(ISERROR(Dados!H836),\"-\",Dados!H836)","v":""},{"$f":"IF(ISERROR(Dados!I836),\"-\",Dados!I836)","v":""},{"$f":"IF(ISERROR(Dados!J836),\"-\",Dados!J836)","v":""},{"$f":"IF(ISERROR(Dados!K836),\"-\",Dados!K836)","v":""},{"$f":"IF(ISERROR(Dados!L836),\"-\",Dados!L836)","v":""},{"$f":"IF(ISERROR(Dados!M836),\"-\",Dados!M836)","v":""},{"$f":"IF(ISERROR(Dados!N836),\"-\",Dados!N836)","v":""},{"$f":"IF(ISERROR(Dados!O836),\"-\",Dados!O836)","v":""},{"$f":"IF(ISERROR(Dados!P836),\"-\",Dados!P836)","v":""},{"$f":"IF(ISERROR(Dados!Q836),\"-\",Dados!Q836)","v":""},{"$f":"IF(ISERROR(Dados!R836),\"-\",Dados!R836)","v":""},{"$f":"IF(ISERROR(Dados!S836),\"-\",Dados!S836)","v":""},{"$f":"IF(ISERROR(Dados!T836),\"-\",Dados!T836)","v":""},{"$f":"IF(ISERROR(Dados!U836),\"-\",Dados!U836)","v":""},{"$f":"IF(ISERROR(Dados!V836),\"-\",Dados!V836)","v":""},{"$f":"IF(ISERROR(Dados!W836),\"-\",Dados!W836)","v":""},{"$f":"IF(ISERROR(Dados!X836),\"-\",Dados!X836)","v":""},{"$f":"IF(ISERROR(Dados!Y836),\"-\",Dados!Y836)","v":""},{"$f":"IF(ISERROR(Dados!Z836),\"-\",Dados!Z836)","v":""},{"$f":"IF(ISERROR(Dados!AA836),\"-\",Dados!AA836)","v":""},{"$f":"IF(ISERROR(Dados!AB836),\"-\",Dados!AB836)","v":""},{"$f":"IF(ISERROR(Dados!AC836),\"-\",Dados!AC836)","v":""},{"$f":"IF(ISERROR(Dados!AD836),\"-\",Dados!AD836)","v":""},{"$f":"IF(ISERROR(Dados!AE836),\"-\",Dados!AE836)","v":""},{"$f":"IF(ISERROR(Dados!AF836),\"-\",Dados!AF836)","v":""},{"$f":"IF(ISERROR(Dados!AG836),\"-\",Dados!AG836)","v":""}]
[{"$f":"IF(ISERROR(Dados!A837),\"-\",Dados!A837)","v":""},{"$f":"IF(ISERROR(Dados!B837),\"-\",Dados!B837)","v":""},{"$f":"IF(ISERROR(Dados!C837),\"-\",Dados!C837)","v":""},{"$f":"IF(ISERROR(Dados!D837),\"-\",Dados!D837)","v":""},{"$f":"IF(ISERROR(Dados!E837),\"-\",Dados!E837)","v":""},{"$f":"IF(ISERROR(Dados!F837),\"-\",Dados!F837)","v":""},{"$f":"IF(ISERROR(Dados!G837),\"-\",Dados!G837)","v":""},{"$f":"IF(ISERROR(Dados!H837),\"-\",Dados!H837)","v":""},{"$f":"IF(ISERROR(Dados!I837),\"-\",Dados!I837)","v":""},{"$f":"IF(ISERROR(Dados!J837),\"-\",Dados!J837)","v":""},{"$f":"IF(ISERROR(Dados!K837),\"-\",Dados!K837)","v":""},{"$f":"IF(ISERROR(Dados!L837),\"-\",Dados!L837)","v":""},{"$f":"IF(ISERROR(Dados!M837),\"-\",Dados!M837)","v":""},{"$f":"IF(ISERROR(Dados!N837),\"-\",Dados!N837)","v":""},{"$f":"IF(ISERROR(Dados!O837),\"-\",Dados!O837)","v":""},{"$f":"IF(ISERROR(Dados!P837),\"-\",Dados!P837)","v":""},{"$f":"IF(ISERROR(Dados!Q837),\"-\",Dados!Q837)","v":""},{"$f":"IF(ISERROR(Dados!R837),\"-\",Dados!R837)","v":""},{"$f":"IF(ISERROR(Dados!S837),\"-\",Dados!S837)","v":""},{"$f":"IF(ISERROR(Dados!T837),\"-\",Dados!T837)","v":""},{"$f":"IF(ISERROR(Dados!U837),\"-\",Dados!U837)","v":""},{"$f":"IF(ISERROR(Dados!V837),\"-\",Dados!V837)","v":""},{"$f":"IF(ISERROR(Dados!W837),\"-\",Dados!W837)","v":""},{"$f":"IF(ISERROR(Dados!X837),\"-\",Dados!X837)","v":""},{"$f":"IF(ISERROR(Dados!Y837),\"-\",Dados!Y837)","v":""},{"$f":"IF(ISERROR(Dados!Z837),\"-\",Dados!Z837)","v":""},{"$f":"IF(ISERROR(Dados!AA837),\"-\",Dados!AA837)","v":""},{"$f":"IF(ISERROR(Dados!AB837),\"-\",Dados!AB837)","v":""},{"$f":"IF(ISERROR(Dados!AC837),\"-\",Dados!AC837)","v":""},{"$f":"IF(ISERROR(Dados!AD837),\"-\",Dados!AD837)","v":""},{"$f":"IF(ISERROR(Dados!AE837),\"-\",Dados!AE837)","v":""},{"$f":"IF(ISERROR(Dados!AF837),\"-\",Dados!AF837)","v":""},{"$f":"IF(ISERROR(Dados!AG837),\"-\",Dados!AG837)","v":""}]
[{"$f":"IF(ISERROR(Dados!A838),\"-\",Dados!A838)","v":""},{"$f":"IF(ISERROR(Dados!B838),\"-\",Dados!B838)","v":""},{"$f":"IF(ISERROR(Dados!C838),\"-\",Dados!C838)","v":""},{"$f":"IF(ISERROR(Dados!D838),\"-\",Dados!D838)","v":""},{"$f":"IF(ISERROR(Dados!E838),\"-\",Dados!E838)","v":""},{"$f":"IF(ISERROR(Dados!F838),\"-\",Dados!F838)","v":""},{"$f":"IF(ISERROR(Dados!G838),\"-\",Dados!G838)","v":""},{"$f":"IF(ISERROR(Dados!H838),\"-\",Dados!H838)","v":""},{"$f":"IF(ISERROR(Dados!I838),\"-\",Dados!I838)","v":""},{"$f":"IF(ISERROR(Dados!J838),\"-\",Dados!J838)","v":""},{"$f":"IF(ISERROR(Dados!K838),\"-\",Dados!K838)","v":""},{"$f":"IF(ISERROR(Dados!L838),\"-\",Dados!L838)","v":""},{"$f":"IF(ISERROR(Dados!M838),\"-\",Dados!M838)","v":""},{"$f":"IF(ISERROR(Dados!N838),\"-\",Dados!N838)","v":""},{"$f":"IF(ISERROR(Dados!O838),\"-\",Dados!O838)","v":""},{"$f":"IF(ISERROR(Dados!P838),\"-\",Dados!P838)","v":""},{"$f":"IF(ISERROR(Dados!Q838),\"-\",Dados!Q838)","v":""},{"$f":"IF(ISERROR(Dados!R838),\"-\",Dados!R838)","v":""},{"$f":"IF(ISERROR(Dados!S838),\"-\",Dados!S838)","v":""},{"$f":"IF(ISERROR(Dados!T838),\"-\",Dados!T838)","v":""},{"$f":"IF(ISERROR(Dados!U838),\"-\",Dados!U838)","v":""},{"$f":"IF(ISERROR(Dados!V838),\"-\",Dados!V838)","v":""},{"$f":"IF(ISERROR(Dados!W838),\"-\",Dados!W838)","v":""},{"$f":"IF(ISERROR(Dados!X838),\"-\",Dados!X838)","v":""},{"$f":"IF(ISERROR(Dados!Y838),\"-\",Dados!Y838)","v":""},{"$f":"IF(ISERROR(Dados!Z838),\"-\",Dados!Z838)","v":""},{"$f":"IF(ISERROR(Dados!AA838),\"-\",Dados!AA838)","v":""},{"$f":"IF(ISERROR(Dados!AB838),\"-\",Dados!AB838)","v":""},{"$f":"IF(ISERROR(Dados!AC838),\"-\",Dados!AC838)","v":""},{"$f":"IF(ISERROR(Dados!AD838),\"-\",Dados!AD838)","v":""},{"$f":"IF(ISERROR(Dados!AE838),\"-\",Dados!AE838)","v":""},{"$f":"IF(ISERROR(Dados!AF838),\"-\",Dados!AF838)","v":""},{"$f":"IF(ISERROR(Dados!AG838),\"-\",Dados!AG838)","v":""}]
[{"$f":"IF(ISERROR(Dados!A839),\"-\",Dados!A839)","v":""},{"$f":"IF(ISERROR(Dados!B839),\"-\",Dados!B839)","v":""},{"$f":"IF(ISERROR(Dados!C839),\"-\",Dados!C839)","v":""},{"$f":"IF(ISERROR(Dados!D839),\"-\",Dados!D839)","v":""},{"$f":"IF(ISERROR(Dados!E839),\"-\",Dados!E839)","v":""},{"$f":"IF(ISERROR(Dados!F839),\"-\",Dados!F839)","v":""},{"$f":"IF(ISERROR(Dados!G839),\"-\",Dados!G839)","v":""},{"$f":"IF(ISERROR(Dados!H839),\"-\",Dados!H839)","v":""},{"$f":"IF(ISERROR(Dados!I839),\"-\",Dados!I839)","v":""},{"$f":"IF(ISERROR(Dados!J839),\"-\",Dados!J839)","v":""},{"$f":"IF(ISERROR(Dados!K839),\"-\",Dados!K839)","v":""},{"$f":"IF(ISERROR(Dados!L839),\"-\",Dados!L839)","v":""},{"$f":"IF(ISERROR(Dados!M839),\"-\",Dados!M839)","v":""},{"$f":"IF(ISERROR(Dados!N839),\"-\",Dados!N839)","v":""},{"$f":"IF(ISERROR(Dados!O839),\"-\",Dados!O839)","v":""},{"$f":"IF(ISERROR(Dados!P839),\"-\",Dados!P839)","v":""},{"$f":"IF(ISERROR(Dados!Q839),\"-\",Dados!Q839)","v":""},{"$f":"IF(ISERROR(Dados!R839),\"-\",Dados!R839)","v":""},{"$f":"IF(ISERROR(Dados!S839),\"-\",Dados!S839)","v":""},{"$f":"IF(ISERROR(Dados!T839),\"-\",Dados!T839)","v":""},{"$f":"IF(ISERROR(Dados!U839),\"-\",Dados!U839)","v":""},{"$f":"IF(ISERROR(Dados!V839),\"-\",Dados!V839)","v":""},{"$f":"IF(ISERROR(Dados!W839),\"-\",Dados!W839)","v":""},{"$f":"IF(ISERROR(Dados!X839),\"-\",Dados!X839)","v":""},{"$f":"IF(ISERROR(Dados!Y839),\"-\",Dados!Y839)","v":""},{"$f":"IF(ISERROR(Dados!Z839),\"-\",Dados!Z839)","v":""},{"$f":"IF(ISERROR(Dados!AA839),\"-\",Dados!AA839)","v":""},{"$f":"IF(ISERROR(Dados!AB839),\"-\",Dados!AB839)","v":""},{"$f":"IF(ISERROR(Dados!AC839),\"-\",Dados!AC839)","v":""},{"$f":"IF(ISERROR(Dados!AD839),\"-\",Dados!AD839)","v":""},{"$f":"IF(ISERROR(Dados!AE839),\"-\",Dados!AE839)","v":""},{"$f":"IF(ISERROR(Dados!AF839),\"-\",Dados!AF839)","v":""},{"$f":"IF(ISERROR(Dados!AG839),\"-\",Dados!AG839)","v":""}]
[{"$f":"IF(ISERROR(Dados!A840),\"-\",Dados!A840)","v":""},{"$f":"IF(ISERROR(Dados!B840),\"-\",Dados!B840)","v":""},{"$f":"IF(ISERROR(Dados!C840),\"-\",Dados!C840)","v":""},{"$f":"IF(ISERROR(Dados!D840),\"-\",Dados!D840)","v":""},{"$f":"IF(ISERROR(Dados!E840),\"-\",Dados!E840)","v":""},{"$f":"IF(ISERROR(Dados!F840),\"-\",Dados!F840)","v":""},{"$f":"IF(ISERROR(Dados!G840),\"-\",Dados!G840)","v":""},{"$f":"IF(ISERROR(Dados!H840),\"-\",Dados!H840)","v":""},{"$f":"IF(ISERROR(Dados!I840),\"-\",Dados!I840)","v":""},{"$f":"IF(ISERROR(Dados!J840),\"-\",Dados!J840)","v":""},{"$f":"IF(ISERROR(Dados!K840),\"-\",Dados!K840)","v":""},{"$f":"IF(ISERROR(Dados!L840),\"-\",Dados!L840)","v":""},{"$f":"IF(ISERROR(Dados!M840),\"-\",Dados!M840)","v":""},{"$f":"IF(ISERROR(Dados!N840),\"-\",Dados!N840)","v":""},{"$f":"IF(ISERROR(Dados!O840),\"-\",Dados!O840)","v":""},{"$f":"IF(ISERROR(Dados!P840),\"-\",Dados!P840)","v":""},{"$f":"IF(ISERROR(Dados!Q840),\"-\",Dados!Q840)","v":""},{"$f":"IF(ISERROR(Dados!R840),\"-\",Dados!R840)","v":""},{"$f":"IF(ISERROR(Dados!S840),\"-\",Dados!S840)","v":""},{"$f":"IF(ISERROR(Dados!T840),\"-\",Dados!T840)","v":""},{"$f":"IF(ISERROR(Dados!U840),\"-\",Dados!U840)","v":""},{"$f":"IF(ISERROR(Dados!V840),\"-\",Dados!V840)","v":""},{"$f":"IF(ISERROR(Dados!W840),\"-\",Dados!W840)","v":""},{"$f":"IF(ISERROR(Dados!X840),\"-\",Dados!X840)","v":""},{"$f":"IF(ISERROR(Dados!Y840),\"-\",Dados!Y840)","v":""},{"$f":"IF(ISERROR(Dados!Z840),\"-\",Dados!Z840)","v":""},{"$f":"IF(ISERROR(Dados!AA840),\"-\",Dados!AA840)","v":""},{"$f":"IF(ISERROR(Dados!AB840),\"-\",Dados!AB840)","v":""},{"$f":"IF(ISERROR(Dados!AC840),\"-\",Dados!AC840)","v":""},{"$f":"IF(ISERROR(Dados!AD840),\"-\",Dados!AD840)","v":""},{"$f":"IF(ISERROR(Dados!AE840),\"-\",Dados!AE840)","v":""},{"$f":"IF(ISERROR(Dados!AF840),\"-\",Dados!AF840)","v":""},{"$f":"IF(ISERROR(Dados!AG840),\"-\",Dados!AG840)","v":""}]
[{"$f":"IF(ISERROR(Dados!A841),\"-\",Dados!A841)","v":""},{"$f":"IF(ISERROR(Dados!B841),\"-\",Dados!B841)","v":""},{"$f":"IF(ISERROR(Dados!C841),\"-\",Dados!C841)","v":""},{"$f":"IF(ISERROR(Dados!D841),\"-\",Dados!D841)","v":""},{"$f":"IF(ISERROR(Dados!E841),\"-\",Dados!E841)","v":""},{"$f":"IF(ISERROR(Dados!F841),\"-\",Dados!F841)","v":""},{"$f":"IF(ISERROR(Dados!G841),\"-\",Dados!G841)","v":""},{"$f":"IF(ISERROR(Dados!H841),\"-\",Dados!H841)","v":""},{"$f":"IF(ISERROR(Dados!I841),\"-\",Dados!I841)","v":""},{"$f":"IF(ISERROR(Dados!J841),\"-\",Dados!J841)","v":""},{"$f":"IF(ISERROR(Dados!K841),\"-\",Dados!K841)","v":""},{"$f":"IF(ISERROR(Dados!L841),\"-\",Dados!L841)","v":""},{"$f":"IF(ISERROR(Dados!M841),\"-\",Dados!M841)","v":""},{"$f":"IF(ISERROR(Dados!N841),\"-\",Dados!N841)","v":""},{"$f":"IF(ISERROR(Dados!O841),\"-\",Dados!O841)","v":""},{"$f":"IF(ISERROR(Dados!P841),\"-\",Dados!P841)","v":""},{"$f":"IF(ISERROR(Dados!Q841),\"-\",Dados!Q841)","v":""},{"$f":"IF(ISERROR(Dados!R841),\"-\",Dados!R841)","v":""},{"$f":"IF(ISERROR(Dados!S841),\"-\",Dados!S841)","v":""},{"$f":"IF(ISERROR(Dados!T841),\"-\",Dados!T841)","v":""},{"$f":"IF(ISERROR(Dados!U841),\"-\",Dados!U841)","v":""},{"$f":"IF(ISERROR(Dados!V841),\"-\",Dados!V841)","v":""},{"$f":"IF(ISERROR(Dados!W841),\"-\",Dados!W841)","v":""},{"$f":"IF(ISERROR(Dados!X841),\"-\",Dados!X841)","v":""},{"$f":"IF(ISERROR(Dados!Y841),\"-\",Dados!Y841)","v":""},{"$f":"IF(ISERROR(Dados!Z841),\"-\",Dados!Z841)","v":""},{"$f":"IF(ISERROR(Dados!AA841),\"-\",Dados!AA841)","v":""},{"$f":"IF(ISERROR(Dados!AB841),\"-\",Dados!AB841)","v":""},{"$f":"IF(ISERROR(Dados!AC841),\"-\",Dados!AC841)","v":""},{"$f":"IF(ISERROR(Dados!AD841),\"-\",Dados!AD841)","v":""},{"$f":"IF(ISERROR(Dados!AE841),\"-\",Dados!AE841)","v":""},{"$f":"IF(ISERROR(Dados!AF841),\"-\",Dados!AF841)","v":""},{"$f":"IF(ISERROR(Dados!AG841),\"-\",Dados!AG841)","v":""}]
[{"$f":"IF(ISERROR(Dados!A842),\"-\",Dados!A842)","v":""},{"$f":"IF(ISERROR(Dados!B842),\"-\",Dados!B842)","v":""},{"$f":"IF(ISERROR(Dados!C842),\"-\",Dados!C842)","v":""},{"$f":"IF(ISERROR(Dados!D842),\"-\",Dados!D842)","v":""},{"$f":"IF(ISERROR(Dados!E842),\"-\",Dados!E842)","v":""},{"$f":"IF(ISERROR(Dados!F842),\"-\",Dados!F842)","v":""},{"$f":"IF(ISERROR(Dados!G842),\"-\",Dados!G842)","v":""},{"$f":"IF(ISERROR(Dados!H842),\"-\",Dados!H842)","v":""},{"$f":"IF(ISERROR(Dados!I842),\"-\",Dados!I842)","v":""},{"$f":"IF(ISERROR(Dados!J842),\"-\",Dados!J842)","v":""},{"$f":"IF(ISERROR(Dados!K842),\"-\",Dados!K842)","v":""},{"$f":"IF(ISERROR(Dados!L842),\"-\",Dados!L842)","v":""},{"$f":"IF(ISERROR(Dados!M842),\"-\",Dados!M842)","v":""},{"$f":"IF(ISERROR(Dados!N842),\"-\",Dados!N842)","v":""},{"$f":"IF(ISERROR(Dados!O842),\"-\",Dados!O842)","v":""},{"$f":"IF(ISERROR(Dados!P842),\"-\",Dados!P842)","v":""},{"$f":"IF(ISERROR(Dados!Q842),\"-\",Dados!Q842)","v":""},{"$f":"IF(ISERROR(Dados!R842),\"-\",Dados!R842)","v":""},{"$f":"IF(ISERROR(Dados!S842),\"-\",Dados!S842)","v":""},{"$f":"IF(ISERROR(Dados!T842),\"-\",Dados!T842)","v":""},{"$f":"IF(ISERROR(Dados!U842),\"-\",Dados!U842)","v":""},{"$f":"IF(ISERROR(Dados!V842),\"-\",Dados!V842)","v":""},{"$f":"IF(ISERROR(Dados!W842),\"-\",Dados!W842)","v":""},{"$f":"IF(ISERROR(Dados!X842),\"-\",Dados!X842)","v":""},{"$f":"IF(ISERROR(Dados!Y842),\"-\",Dados!Y842)","v":""},{"$f":"IF(ISERROR(Dados!Z842),\"-\",Dados!Z842)","v":""},{"$f":"IF(ISERROR(Dados!AA842),\"-\",Dados!AA842)","v":""},{"$f":"IF(ISERROR(Dados!AB842),\"-\",Dados!AB842)","v":""},{"$f":"IF(ISERROR(Dados!AC842),\"-\",Dados!AC842)","v":""},{"$f":"IF(ISERROR(Dados!AD842),\"-\",Dados!AD842)","v":""},{"$f":"IF(ISERROR(Dados!AE842),\"-\",Dados!AE842)","v":""},{"$f":"IF(ISERROR(Dados!AF842),\"-\",Dados!AF842)","v":""},{"$f":"IF(ISERROR(Dados!AG842),\"-\",Dados!AG842)","v":""}]
[{"$f":"IF(ISERROR(Dados!A843),\"-\",Dados!A843)","v":""},{"$f":"IF(ISERROR(Dados!B843),\"-\",Dados!B843)","v":""},{"$f":"IF(ISERROR(Dados!C843),\"-\",Dados!C843)","v":""},{"$f":"IF(ISERROR(Dados!D843),\"-\",Dados!D843)","v":""},{"$f":"IF(ISERROR(Dados!E843),\"-\",Dados!E843)","v":""},{"$f":"IF(ISERROR(Dados!F843),\"-\",Dados!F843)","v":""},{"$f":"IF(ISERROR(Dados!G843),\"-\",Dados!G843)","v":""},{"$f":"IF(ISERROR(Dados!H843),\"-\",Dados!H843)","v":""},{"$f":"IF(ISERROR(Dados!I843),\"-\",Dados!I843)","v":""},{"$f":"IF(ISERROR(Dados!J843),\"-\",Dados!J843)","v":""},{"$f":"IF(ISERROR(Dados!K843),\"-\",Dados!K843)","v":""},{"$f":"IF(ISERROR(Dados!L843),\"-\",Dados!L843)","v":""},{"$f":"IF(ISERROR(Dados!M843),\"-\",Dados!M843)","v":""},{"$f":"IF(ISERROR(Dados!N843),\"-\",Dados!N843)","v":""},{"$f":"IF(ISERROR(Dados!O843),\"-\",Dados!O843)","v":""},{"$f":"IF(ISERROR(Dados!P843),\"-\",Dados!P843)","v":""},{"$f":"IF(ISERROR(Dados!Q843),\"-\",Dados!Q843)","v":""},{"$f":"IF(ISERROR(Dados!R843),\"-\",Dados!R843)","v":""},{"$f":"IF(ISERROR(Dados!S843),\"-\",Dados!S843)","v":""},{"$f":"IF(ISERROR(Dados!T843),\"-\",Dados!T843)","v":""},{"$f":"IF(ISERROR(Dados!U843),\"-\",Dados!U843)","v":""},{"$f":"IF(ISERROR(Dados!V843),\"-\",Dados!V843)","v":""},{"$f":"IF(ISERROR(Dados!W843),\"-\",Dados!W843)","v":""},{"$f":"IF(ISERROR(Dados!X843),\"-\",Dados!X843)","v":""},{"$f":"IF(ISERROR(Dados!Y843),\"-\",Dados!Y843)","v":""},{"$f":"IF(ISERROR(Dados!Z843),\"-\",Dados!Z843)","v":""},{"$f":"IF(ISERROR(Dados!AA843),\"-\",Dados!AA843)","v":""},{"$f":"IF(ISERROR(Dados!AB843),\"-\",Dados!AB843)","v":""},{"$f":"IF(ISERROR(Dados!AC843),\"-\",Dados!AC843)","v":""},{"$f":"IF(ISERROR(Dados!AD843),\"-\",Dados!AD843)","v":""},{"$f":"IF(ISERROR(Dados!AE843),\"-\",Dados!AE843)","v":""},{"$f":"IF(ISERROR(Dados!AF843),\"-\",Dados!AF843)","v":""},{"$f":"IF(ISERROR(Dados!AG843),\"-\",Dados!AG843)","v":""}]
[{"$f":"IF(ISERROR(Dados!A844),\"-\",Dados!A844)","v":""},{"$f":"IF(ISERROR(Dados!B844),\"-\",Dados!B844)","v":""},{"$f":"IF(ISERROR(Dados!C844),\"-\",Dados!C844)","v":""},{"$f":"IF(ISERROR(Dados!D844),\"-\",Dados!D844)","v":""},{"$f":"IF(ISERROR(Dados!E844),\"-\",Dados!E844)","v":""},{"$f":"IF(ISERROR(Dados!F844),\"-\",Dados!F844)","v":""},{"$f":"IF(ISERROR(Dados!G844),\"-\",Dados!G844)","v":""},{"$f":"IF(ISERROR(Dados!H844),\"-\",Dados!H844)","v":""},{"$f":"IF(ISERROR(Dados!I844),\"-\",Dados!I844)","v":""},{"$f":"IF(ISERROR(Dados!J844),\"-\",Dados!J844)","v":""},{"$f":"IF(ISERROR(Dados!K844),\"-\",Dados!K844)","v":""},{"$f":"IF(ISERROR(Dados!L844),\"-\",Dados!L844)","v":""},{"$f":"IF(ISERROR(Dados!M844),\"-\",Dados!M844)","v":""},{"$f":"IF(ISERROR(Dados!N844),\"-\",Dados!N844)","v":""},{"$f":"IF(ISERROR(Dados!O844),\"-\",Dados!O844)","v":""},{"$f":"IF(ISERROR(Dados!P844),\"-\",Dados!P844)","v":""},{"$f":"IF(ISERROR(Dados!Q844),\"-\",Dados!Q844)","v":""},{"$f":"IF(ISERROR(Dados!R844),\"-\",Dados!R844)","v":""},{"$f":"IF(ISERROR(Dados!S844),\"-\",Dados!S844)","v":""},{"$f":"IF(ISERROR(Dados!T844),\"-\",Dados!T844)","v":""},{"$f":"IF(ISERROR(Dados!U844),\"-\",Dados!U844)","v":""},{"$f":"IF(ISERROR(Dados!V844),\"-\",Dados!V844)","v":""},{"$f":"IF(ISERROR(Dados!W844),\"-\",Dados!W844)","v":""},{"$f":"IF(ISERROR(Dados!X844),\"-\",Dados!X844)","v":""},{"$f":"IF(ISERROR(Dados!Y844),\"-\",Dados!Y844)","v":""},{"$f":"IF(ISERROR(Dados!Z844),\"-\",Dados!Z844)","v":""},{"$f":"IF(ISERROR(Dados!AA844),\"-\",Dados!AA844)","v":""},{"$f":"IF(ISERROR(Dados!AB844),\"-\",Dados!AB844)","v":""},{"$f":"IF(ISERROR(Dados!AC844),\"-\",Dados!AC844)","v":""},{"$f":"IF(ISERROR(Dados!AD844),\"-\",Dados!AD844)","v":""},{"$f":"IF(ISERROR(Dados!AE844),\"-\",Dados!AE844)","v":""},{"$f":"IF(ISERROR(Dados!AF844),\"-\",Dados!AF844)","v":""},{"$f":"IF(ISERROR(Dados!AG844),\"-\",Dados!AG844)","v":""}]
[{"$f":"IF(ISERROR(Dados!A845),\"-\",Dados!A845)","v":""},{"$f":"IF(ISERROR(Dados!B845),\"-\",Dados!B845)","v":""},{"$f":"IF(ISERROR(Dados!C845),\"-\",Dados!C845)","v":""},{"$f":"IF(ISERROR(Dados!D845),\"-\",Dados!D845)","v":""},{"$f":"IF(ISERROR(Dados!E845),\"-\",Dados!E845)","v":""},{"$f":"IF(ISERROR(Dados!F845),\"-\",Dados!F845)","v":""},{"$f":"IF(ISERROR(Dados!G845),\"-\",Dados!G845)","v":""},{"$f":"IF(ISERROR(Dados!H845),\"-\",Dados!H845)","v":""},{"$f":"IF(ISERROR(Dados!I845),\"-\",Dados!I845)","v":""},{"$f":"IF(ISERROR(Dados!J845),\"-\",Dados!J845)","v":""},{"$f":"IF(ISERROR(Dados!K845),\"-\",Dados!K845)","v":""},{"$f":"IF(ISERROR(Dados!L845),\"-\",Dados!L845)","v":""},{"$f":"IF(ISERROR(Dados!M845),\"-\",Dados!M845)","v":""},{"$f":"IF(ISERROR(Dados!N845),\"-\",Dados!N845)","v":""},{"$f":"IF(ISERROR(Dados!O845),\"-\",Dados!O845)","v":""},{"$f":"IF(ISERROR(Dados!P845),\"-\",Dados!P845)","v":""},{"$f":"IF(ISERROR(Dados!Q845),\"-\",Dados!Q845)","v":""},{"$f":"IF(ISERROR(Dados!R845),\"-\",Dados!R845)","v":""},{"$f":"IF(ISERROR(Dados!S845),\"-\",Dados!S845)","v":""},{"$f":"IF(ISERROR(Dados!T845),\"-\",Dados!T845)","v":""},{"$f":"IF(ISERROR(Dados!U845),\"-\",Dados!U845)","v":""},{"$f":"IF(ISERROR(Dados!V845),\"-\",Dados!V845)","v":""},{"$f":"IF(ISERROR(Dados!W845),\"-\",Dados!W845)","v":""},{"$f":"IF(ISERROR(Dados!X845),\"-\",Dados!X845)","v":""},{"$f":"IF(ISERROR(Dados!Y845),\"-\",Dados!Y845)","v":""},{"$f":"IF(ISERROR(Dados!Z845),\"-\",Dados!Z845)","v":""},{"$f":"IF(ISERROR(Dados!AA845),\"-\",Dados!AA845)","v":""},{"$f":"IF(ISERROR(Dados!AB845),\"-\",Dados!AB845)","v":""},{"$f":"IF(ISERROR(Dados!AC845),\"-\",Dados!AC845)","v":""},{"$f":"IF(ISERROR(Dados!AD845),\"-\",Dados!AD845)","v":""},{"$f":"IF(ISERROR(Dados!AE845),\"-\",Dados!AE845)","v":""},{"$f":"IF(ISERROR(Dados!AF845),\"-\",Dados!AF845)","v":""},{"$f":"IF(ISERROR(Dados!AG845),\"-\",Dados!AG845)","v":""}]
[{"$f":"IF(ISERROR(Dados!A846),\"-\",Dados!A846)","v":""},{"$f":"IF(ISERROR(Dados!B846),\"-\",Dados!B846)","v":""},{"$f":"IF(ISERROR(Dados!C846),\"-\",Dados!C846)","v":""},{"$f":"IF(ISERROR(Dados!D846),\"-\",Dados!D846)","v":""},{"$f":"IF(ISERROR(Dados!E846),\"-\",Dados!E846)","v":""},{"$f":"IF(ISERROR(Dados!F846),\"-\",Dados!F846)","v":""},{"$f":"IF(ISERROR(Dados!G846),\"-\",Dados!G846)","v":""},{"$f":"IF(ISERROR(Dados!H846),\"-\",Dados!H846)","v":""},{"$f":"IF(ISERROR(Dados!I846),\"-\",Dados!I846)","v":""},{"$f":"IF(ISERROR(Dados!J846),\"-\",Dados!J846)","v":""},{"$f":"IF(ISERROR(Dados!K846),\"-\",Dados!K846)","v":""},{"$f":"IF(ISERROR(Dados!L846),\"-\",Dados!L846)","v":""},{"$f":"IF(ISERROR(Dados!M846),\"-\",Dados!M846)","v":""},{"$f":"IF(ISERROR(Dados!N846),\"-\",Dados!N846)","v":""},{"$f":"IF(ISERROR(Dados!O846),\"-\",Dados!O846)","v":""},{"$f":"IF(ISERROR(Dados!P846),\"-\",Dados!P846)","v":""},{"$f":"IF(ISERROR(Dados!Q846),\"-\",Dados!Q846)","v":""},{"$f":"IF(ISERROR(Dados!R846),\"-\",Dados!R846)","v":""},{"$f":"IF(ISERROR(Dados!S846),\"-\",Dados!S846)","v":""},{"$f":"IF(ISERROR(Dados!T846),\"-\",Dados!T846)","v":""},{"$f":"IF(ISERROR(Dados!U846),\"-\",Dados!U846)","v":""},{"$f":"IF(ISERROR(Dados!V846),\"-\",Dados!V846)","v":""},{"$f":"IF(ISERROR(Dados!W846),\"-\",Dados!W846)","v":""},{"$f":"IF(ISERROR(Dados!X846),\"-\",Dados!X846)","v":""},{"$f":"IF(ISERROR(Dados!Y846),\"-\",Dados!Y846)","v":""},{"$f":"IF(ISERROR(Dados!Z846),\"-\",Dados!Z846)","v":""},{"$f":"IF(ISERROR(Dados!AA846),\"-\",Dados!AA846)","v":""},{"$f":"IF(ISERROR(Dados!AB846),\"-\",Dados!AB846)","v":""},{"$f":"IF(ISERROR(Dados!AC846),\"-\",Dados!AC846)","v":""},{"$f":"IF(ISERROR(Dados!AD846),\"-\",Dados!AD846)","v":""},{"$f":"IF(ISERROR(Dados!AE846),\"-\",Dados!AE846)","v":""},{"$f":"IF(ISERROR(Dados!AF846),\"-\",Dados!AF846)","v":""},{"$f":"IF(ISERROR(Dados!AG846),\"-\",Dados!AG846)","v":""}]
[{"$f":"IF(ISERROR(Dados!A847),\"-\",Dados!A847)","v":""},{"$f":"IF(ISERROR(Dados!B847),\"-\",Dados!B847)","v":""},{"$f":"IF(ISERROR(Dados!C847),\"-\",Dados!C847)","v":""},{"$f":"IF(ISERROR(Dados!D847),\"-\",Dados!D847)","v":""},{"$f":"IF(ISERROR(Dados!E847),\"-\",Dados!E847)","v":""},{"$f":"IF(ISERROR(Dados!F847),\"-\",Dados!F847)","v":""},{"$f":"IF(ISERROR(Dados!G847),\"-\",Dados!G847)","v":""},{"$f":"IF(ISERROR(Dados!H847),\"-\",Dados!H847)","v":""},{"$f":"IF(ISERROR(Dados!I847),\"-\",Dados!I847)","v":""},{"$f":"IF(ISERROR(Dados!J847),\"-\",Dados!J847)","v":""},{"$f":"IF(ISERROR(Dados!K847),\"-\",Dados!K847)","v":""},{"$f":"IF(ISERROR(Dados!L847),\"-\",Dados!L847)","v":""},{"$f":"IF(ISERROR(Dados!M847),\"-\",Dados!M847)","v":""},{"$f":"IF(ISERROR(Dados!N847),\"-\",Dados!N847)","v":""},{"$f":"IF(ISERROR(Dados!O847),\"-\",Dados!O847)","v":""},{"$f":"IF(ISERROR(Dados!P847),\"-\",Dados!P847)","v":""},{"$f":"IF(ISERROR(Dados!Q847),\"-\",Dados!Q847)","v":""},{"$f":"IF(ISERROR(Dados!R847),\"-\",Dados!R847)","v":""},{"$f":"IF(ISERROR(Dados!S847),\"-\",Dados!S847)","v":""},{"$f":"IF(ISERROR(Dados!T847),\"-\",Dados!T847)","v":""},{"$f":"IF(ISERROR(Dados!U847),\"-\",Dados!U847)","v":""},{"$f":"IF(ISERROR(Dados!V847),\"-\",Dados!V847)","v":""},{"$f":"IF(ISERROR(Dados!W847),\"-\",Dados!W847)","v":""},{"$f":"IF(ISERROR(Dados!X847),\"-\",Dados!X847)","v":""},{"$f":"IF(ISERROR(Dados!Y847),\"-\",Dados!Y847)","v":""},{"$f":"IF(ISERROR(Dados!Z847),\"-\",Dados!Z847)","v":""},{"$f":"IF(ISERROR(Dados!AA847),\"-\",Dados!AA847)","v":""},{"$f":"IF(ISERROR(Dados!AB847),\"-\",Dados!AB847)","v":""},{"$f":"IF(ISERROR(Dados!AC847),\"-\",Dados!AC847)","v":""},{"$f":"IF(ISERROR(Dados!AD847),\"-\",Dados!AD847)","v":""},{"$f":"IF(ISERROR(Dados!AE847),\"-\",Dados!AE847)","v":""},{"$f":"IF(ISERROR(Dados!AF847),\"-\",Dados!AF847)","v":""},{"$f":"IF(ISERROR(Dados!AG847),\"-\",Dados!AG847)","v":""}]
[{"$f":"IF(ISERROR(Dados!A848),\"-\",Dados!A848)","v":""},{"$f":"IF(ISERROR(Dados!B848),\"-\",Dados!B848)","v":""},{"$f":"IF(ISERROR(Dados!C848),\"-\",Dados!C848)","v":""},{"$f":"IF(ISERROR(Dados!D848),\"-\",Dados!D848)","v":""},{"$f":"IF(ISERROR(Dados!E848),\"-\",Dados!E848)","v":""},{"$f":"IF(ISERROR(Dados!F848),\"-\",Dados!F848)","v":""},{"$f":"IF(ISERROR(Dados!G848),\"-\",Dados!G848)","v":""},{"$f":"IF(ISERROR(Dados!H848),\"-\",Dados!H848)","v":""},{"$f":"IF(ISERROR(Dados!I848),\"-\",Dados!I848)","v":""},{"$f":"IF(ISERROR(Dados!J848),\"-\",Dados!J848)","v":""},{"$f":"IF(ISERROR(Dados!K848),\"-\",Dados!K848)","v":""},{"$f":"IF(ISERROR(Dados!L848),\"-\",Dados!L848)","v":""},{"$f":"IF(ISERROR(Dados!M848),\"-\",Dados!M848)","v":""},{"$f":"IF(ISERROR(Dados!N848),\"-\",Dados!N848)","v":""},{"$f":"IF(ISERROR(Dados!O848),\"-\",Dados!O848)","v":""},{"$f":"IF(ISERROR(Dados!P848),\"-\",Dados!P848)","v":""},{"$f":"IF(ISERROR(Dados!Q848),\"-\",Dados!Q848)","v":""},{"$f":"IF(ISERROR(Dados!R848),\"-\",Dados!R848)","v":""},{"$f":"IF(ISERROR(Dados!S848),\"-\",Dados!S848)","v":""},{"$f":"IF(ISERROR(Dados!T848),\"-\",Dados!T848)","v":""},{"$f":"IF(ISERROR(Dados!U848),\"-\",Dados!U848)","v":""},{"$f":"IF(ISERROR(Dados!V848),\"-\",Dados!V848)","v":""},{"$f":"IF(ISERROR(Dados!W848),\"-\",Dados!W848)","v":""},{"$f":"IF(ISERROR(Dados!X848),\"-\",Dados!X848)","v":""},{"$f":"IF(ISERROR(Dados!Y848),\"-\",Dados!Y848)","v":""},{"$f":"IF(ISERROR(Dados!Z848),\"-\",Dados!Z848)","v":""},{"$f":"IF(ISERROR(Dados!AA848),\"-\",Dados!AA848)","v":""},{"$f":"IF(ISERROR(Dados!AB848),\"-\",Dados!AB848)","v":""},{"$f":"IF(ISERROR(Dados!AC848),\"-\",Dados!AC848)","v":""},{"$f":"IF(ISERROR(Dados!AD848),\"-\",Dados!AD848)","v":""},{"$f":"IF(ISERROR(Dados!AE848),\"-\",Dados!AE848)","v":""},{"$f":"IF(ISERROR(Dados!AF848),\"-\",Dados!AF848)","v":""},{"$f":"IF(ISERROR(Dados!AG848),\"-\",Dados!AG848)","v":""}]
[{"$f":"IF(ISERROR(Dados!A849),\"-\",Dados!A849)","v":""},{"$f":"IF(ISERROR(Dados!B849),\"-\",Dados!B849)","v":""},{"$f":"IF(ISERROR(Dados!C849),\"-\",Dados!C849)","v":""},{"$f":"IF(ISERROR(Dados!D849),\"-\",Dados!D849)","v":""},{"$f":"IF(ISERROR(Dados!E849),\"-\",Dados!E849)","v":""},{"$f":"IF(ISERROR(Dados!F849),\"-\",Dados!F849)","v":""},{"$f":"IF(ISERROR(Dados!G849),\"-\",Dados!G849)","v":""},{"$f":"IF(ISERROR(Dados!H849),\"-\",Dados!H849)","v":""},{"$f":"IF(ISERROR(Dados!I849),\"-\",Dados!I849)","v":""},{"$f":"IF(ISERROR(Dados!J849),\"-\",Dados!J849)","v":""},{"$f":"IF(ISERROR(Dados!K849),\"-\",Dados!K849)","v":""},{"$f":"IF(ISERROR(Dados!L849),\"-\",Dados!L849)","v":""},{"$f":"IF(ISERROR(Dados!M849),\"-\",Dados!M849)","v":""},{"$f":"IF(ISERROR(Dados!N849),\"-\",Dados!N849)","v":""},{"$f":"IF(ISERROR(Dados!O849),\"-\",Dados!O849)","v":""},{"$f":"IF(ISERROR(Dados!P849),\"-\",Dados!P849)","v":""},{"$f":"IF(ISERROR(Dados!Q849),\"-\",Dados!Q849)","v":""},{"$f":"IF(ISERROR(Dados!R849),\"-\",Dados!R849)","v":""},{"$f":"IF(ISERROR(Dados!S849),\"-\",Dados!S849)","v":""},{"$f":"IF(ISERROR(Dados!T849),\"-\",Dados!T849)","v":""},{"$f":"IF(ISERROR(Dados!U849),\"-\",Dados!U849)","v":""},{"$f":"IF(ISERROR(Dados!V849),\"-\",Dados!V849)","v":""},{"$f":"IF(ISERROR(Dados!W849),\"-\",Dados!W849)","v":""},{"$f":"IF(ISERROR(Dados!X849),\"-\",Dados!X849)","v":""},{"$f":"IF(ISERROR(Dados!Y849),\"-\",Dados!Y849)","v":""},{"$f":"IF(ISERROR(Dados!Z849),\"-\",Dados!Z849)","v":""},{"$f":"IF(ISERROR(Dados!AA849),\"-\",Dados!AA849)","v":""},{"$f":"IF(ISERROR(Dados!AB849),\"-\",Dados!AB849)","v":""},{"$f":"IF(ISERROR(Dados!AC849),\"-\",Dados!AC849)","v":""},{"$f":"IF(ISERROR(Dados!AD849),\"-\",Dados!AD849)","v":""},{"$f":"IF(ISERROR(Dados!AE849),\"-\",Dados!AE849)","v":""},{"$f":"IF(ISERROR(Dados!AF849),\"-\",Dados!AF849)","v":""},{"$f":"IF(ISERROR(Dados!AG849),\"-\",Dados!AG849)","v":""}]
[{"$f":"IF(ISERROR(Dados!A850),\"-\",Dados!A850)","v":""},{"$f":"IF(ISERROR(Dados!B850),\"-\",Dados!B850)","v":""},{"$f":"IF(ISERROR(Dados!C850),\"-\",Dados!C850)","v":""},{"$f":"IF(ISERROR(Dados!D850),\"-\",Dados!D850)","v":""},{"$f":"IF(ISERROR(Dados!E850),\"-\",Dados!E850)","v":""},{"$f":"IF(ISERROR(Dados!F850),\"-\",Dados!F850)","v":""},{"$f":"IF(ISERROR(Dados!G850),\"-\",Dados!G850)","v":""},{"$f":"IF(ISERROR(Dados!H850),\"-\",Dados!H850)","v":""},{"$f":"IF(ISERROR(Dados!I850),\"-\",Dados!I850)","v":""},{"$f":"IF(ISERROR(Dados!J850),\"-\",Dados!J850)","v":""},{"$f":"IF(ISERROR(Dados!K850),\"-\",Dados!K850)","v":""},{"$f":"IF(ISERROR(Dados!L850),\"-\",Dados!L850)","v":""},{"$f":"IF(ISERROR(Dados!M850),\"-\",Dados!M850)","v":""},{"$f":"IF(ISERROR(Dados!N850),\"-\",Dados!N850)","v":""},{"$f":"IF(ISERROR(Dados!O850),\"-\",Dados!O850)","v":""},{"$f":"IF(ISERROR(Dados!P850),\"-\",Dados!P850)","v":""},{"$f":"IF(ISERROR(Dados!Q850),\"-\",Dados!Q850)","v":""},{"$f":"IF(ISERROR(Dados!R850),\"-\",Dados!R850)","v":""},{"$f":"IF(ISERROR(Dados!S850),\"-\",Dados!S850)","v":""},{"$f":"IF(ISERROR(Dados!T850),\"-\",Dados!T850)","v":""},{"$f":"IF(ISERROR(Dados!U850),\"-\",Dados!U850)","v":""},{"$f":"IF(ISERROR(Dados!V850),\"-\",Dados!V850)","v":""},{"$f":"IF(ISERROR(Dados!W850),\"-\",Dados!W850)","v":""},{"$f":"IF(ISERROR(Dados!X850),\"-\",Dados!X850)","v":""},{"$f":"IF(ISERROR(Dados!Y850),\"-\",Dados!Y850)","v":""},{"$f":"IF(ISERROR(Dados!Z850),\"-\",Dados!Z850)","v":""},{"$f":"IF(ISERROR(Dados!AA850),\"-\",Dados!AA850)","v":""},{"$f":"IF(ISERROR(Dados!AB850),\"-\",Dados!AB850)","v":""},{"$f":"IF(ISERROR(Dados!AC850),\"-\",Dados!AC850)","v":""},{"$f":"IF(ISERROR(Dados!AD850),\"-\",Dados!AD850)","v":""},{"$f":"IF(ISERROR(Dados!AE850),\"-\",Dados!AE850)","v":""},{"$f":"IF(ISERROR(Dados!AF850),\"-\",Dados!AF850)","v":""},{"$f":"IF(ISERROR(Dados!AG850),\"-\",Dados!AG850)","v":""}]
[{"$f":"IF(ISERROR(Dados!A851),\"-\",Dados!A851)","v":""},{"$f":"IF(ISERROR(Dados!B851),\"-\",Dados!B851)","v":""},{"$f":"IF(ISERROR(Dados!C851),\"-\",Dados!C851)","v":""},{"$f":"IF(ISERROR(Dados!D851),\"-\",Dados!D851)","v":""},{"$f":"IF(ISERROR(Dados!E851),\"-\",Dados!E851)","v":""},{"$f":"IF(ISERROR(Dados!F851),\"-\",Dados!F851)","v":""},{"$f":"IF(ISERROR(Dados!G851),\"-\",Dados!G851)","v":""},{"$f":"IF(ISERROR(Dados!H851),\"-\",Dados!H851)","v":""},{"$f":"IF(ISERROR(Dados!I851),\"-\",Dados!I851)","v":""},{"$f":"IF(ISERROR(Dados!J851),\"-\",Dados!J851)","v":""},{"$f":"IF(ISERROR(Dados!K851),\"-\",Dados!K851)","v":""},{"$f":"IF(ISERROR(Dados!L851),\"-\",Dados!L851)","v":""},{"$f":"IF(ISERROR(Dados!M851),\"-\",Dados!M851)","v":""},{"$f":"IF(ISERROR(Dados!N851),\"-\",Dados!N851)","v":""},{"$f":"IF(ISERROR(Dados!O851),\"-\",Dados!O851)","v":""},{"$f":"IF(ISERROR(Dados!P851),\"-\",Dados!P851)","v":""},{"$f":"IF(ISERROR(Dados!Q851),\"-\",Dados!Q851)","v":""},{"$f":"IF(ISERROR(Dados!R851),\"-\",Dados!R851)","v":""},{"$f":"IF(ISERROR(Dados!S851),\"-\",Dados!S851)","v":""},{"$f":"IF(ISERROR(Dados!T851),\"-\",Dados!T851)","v":""},{"$f":"IF(ISERROR(Dados!U851),\"-\",Dados!U851)","v":""},{"$f":"IF(ISERROR(Dados!V851),\"-\",Dados!V851)","v":""},{"$f":"IF(ISERROR(Dados!W851),\"-\",Dados!W851)","v":""},{"$f":"IF(ISERROR(Dados!X851),\"-\",Dados!X851)","v":""},{"$f":"IF(ISERROR(Dados!Y851),\"-\",Dados!Y851)","v":""},{"$f":"IF(ISERROR(Dados!Z851),\"-\",Dados!Z851)","v":""},{"$f":"IF(ISERROR(Dados!AA851),\"-\",Dados!AA851)","v":""},{"$f":"IF(ISERROR(Dados!AB851),\"-\",Dados!AB851)","v":""},{"$f":"IF(ISERROR(Dados!AC851),\"-\",Dados!AC851)","v":""},{"$f":"IF(ISERROR(Dados!AD851),\"-\",Dados!AD851)","v":""},{"$f":"IF(ISERROR(Dados!AE851),\"-\",Dados!AE851)","v":""},{"$f":"IF(ISERROR(Dados!AF851),\"-\",Dados!AF851)","v":""},{"$f":"IF(ISERROR(Dados!AG851),\"-\",Dados!AG851)","v":""}]
[{"$f":"IF(ISERROR(Dados!A852),\"-\",Dados!A852)","v":""},{"$f":"IF(ISERROR(Dados!B852),\"-\",Dados!B852)","v":""},{"$f":"IF(ISERROR(Dados!C852),\"-\",Dados!C852)","v":""},{"$f":"IF(ISERROR(Dados!D852),\"-\",Dados!D852)","v":""},{"$f":"IF(ISERROR(Dados!E852),\"-\",Dados!E852)","v":""},{"$f":"IF(ISERROR(Dados!F852),\"-\",Dados!F852)","v":""},{"$f":"IF(ISERROR(Dados!G852),\"-\",Dados!G852)","v":""},{"$f":"IF(ISERROR(Dados!H852),\"-\",Dados!H852)","v":""},{"$f":"IF(ISERROR(Dados!I852),\"-\",Dados!I852)","v":""},{"$f":"IF(ISERROR(Dados!J852),\"-\",Dados!J852)","v":""},{"$f":"IF(ISERROR(Dados!K852),\"-\",Dados!K852)","v":""},{"$f":"IF(ISERROR(Dados!L852),\"-\",Dados!L852)","v":""},{"$f":"IF(ISERROR(Dados!M852),\"-\",Dados!M852)","v":""},{"$f":"IF(ISERROR(Dados!N852),\"-\",Dados!N852)","v":""},{"$f":"IF(ISERROR(Dados!O852),\"-\",Dados!O852)","v":""},{"$f":"IF(ISERROR(Dados!P852),\"-\",Dados!P852)","v":""},{"$f":"IF(ISERROR(Dados!Q852),\"-\",Dados!Q852)","v":""},{"$f":"IF(ISERROR(Dados!R852),\"-\",Dados!R852)","v":""},{"$f":"IF(ISERROR(Dados!S852),\"-\",Dados!S852)","v":""},{"$f":"IF(ISERROR(Dados!T852),\"-\",Dados!T852)","v":""},{"$f":"IF(ISERROR(Dados!U852),\"-\",Dados!U852)","v":""},{"$f":"IF(ISERROR(Dados!V852),\"-\",Dados!V852)","v":""},{"$f":"IF(ISERROR(Dados!W852),\"-\",Dados!W852)","v":""},{"$f":"IF(ISERROR(Dados!X852),\"-\",Dados!X852)","v":""},{"$f":"IF(ISERROR(Dados!Y852),\"-\",Dados!Y852)","v":""},{"$f":"IF(ISERROR(Dados!Z852),\"-\",Dados!Z852)","v":""},{"$f":"IF(ISERROR(Dados!AA852),\"-\",Dados!AA852)","v":""},{"$f":"IF(ISERROR(Dados!AB852),\"-\",Dados!AB852)","v":""},{"$f":"IF(ISERROR(Dados!AC852),\"-\",Dados!AC852)","v":""},{"$f":"IF(ISERROR(Dados!AD852),\"-\",Dados!AD852)","v":""},{"$f":"IF(ISERROR(Dados!AE852),\"-\",Dados!AE852)","v":""},{"$f":"IF(ISERROR(Dados!AF852),\"-\",Dados!AF852)","v":""},{"$f":"IF(ISERROR(Dados!AG852),\"-\",Dados!AG852)","v":""}]
[{"$f":"IF(ISERROR(Dados!A853),\"-\",Dados!A853)","v":""},{"$f":"IF(ISERROR(Dados!B853),\"-\",Dados!B853)","v":""},{"$f":"IF(ISERROR(Dados!C853),\"-\",Dados!C853)","v":""},{"$f":"IF(ISERROR(Dados!D853),\"-\",Dados!D853)","v":""},{"$f":"IF(ISERROR(Dados!E853),\"-\",Dados!E853)","v":""},{"$f":"IF(ISERROR(Dados!F853),\"-\",Dados!F853)","v":""},{"$f":"IF(ISERROR(Dados!G853),\"-\",Dados!G853)","v":""},{"$f":"IF(ISERROR(Dados!H853),\"-\",Dados!H853)","v":""},{"$f":"IF(ISERROR(Dados!I853),\"-\",Dados!I853)","v":""},{"$f":"IF(ISERROR(Dados!J853),\"-\",Dados!J853)","v":""},{"$f":"IF(ISERROR(Dados!K853),\"-\",Dados!K853)","v":""},{"$f":"IF(ISERROR(Dados!L853),\"-\",Dados!L853)","v":""},{"$f":"IF(ISERROR(Dados!M853),\"-\",Dados!M853)","v":""},{"$f":"IF(ISERROR(Dados!N853),\"-\",Dados!N853)","v":""},{"$f":"IF(ISERROR(Dados!O853),\"-\",Dados!O853)","v":""},{"$f":"IF(ISERROR(Dados!P853),\"-\",Dados!P853)","v":""},{"$f":"IF(ISERROR(Dados!Q853),\"-\",Dados!Q853)","v":""},{"$f":"IF(ISERROR(Dados!R853),\"-\",Dados!R853)","v":""},{"$f":"IF(ISERROR(Dados!S853),\"-\",Dados!S853)","v":""},{"$f":"IF(ISERROR(Dados!T853),\"-\",Dados!T853)","v":""},{"$f":"IF(ISERROR(Dados!U853),\"-\",Dados!U853)","v":""},{"$f":"IF(ISERROR(Dados!V853),\"-\",Dados!V853)","v":""},{"$f":"IF(ISERROR(Dados!W853),\"-\",Dados!W853)","v":""},{"$f":"IF(ISERROR(Dados!X853),\"-\",Dados!X853)","v":""},{"$f":"IF(ISERROR(Dados!Y853),\"-\",Dados!Y853)","v":""},{"$f":"IF(ISERROR(Dados!Z853),\"-\",Dados!Z853)","v":""},{"$f":"IF(ISERROR(Dados!AA853),\"-\",Dados!AA853)","v":""},{"$f":"IF(ISERROR(Dados!AB853),\"-\",Dados!AB853)","v":""},{"$f":"IF(ISERROR(Dados!AC853),\"-\",Dados!AC853)","v":""},{"$f":"IF(ISERROR(Dados!AD853),\"-\",Dados!AD853)","v":""},{"$f":"IF(ISERROR(Dados!AE853),\"-\",Dados!AE853)","v":""},{"$f":"IF(ISERROR(Dados!AF853),\"-\",Dados!AF853)","v":""},{"$f":"IF(ISERROR(Dados!AG853),\"-\",Dados!AG853)","v":""}]
[{"$f":"IF(ISERROR(Dados!A854),\"-\",Dados!A854)","v":""},{"$f":"IF(ISERROR(Dados!B854),\"-\",Dados!B854)","v":""},{"$f":"IF(ISERROR(Dados!C854),\"-\",Dados!C854)","v":""},{"$f":"IF(ISERROR(Dados!D854),\"-\",Dados!D854)","v":""},{"$f":"IF(ISERROR(Dados!E854),\"-\",Dados!E854)","v":""},{"$f":"IF(ISERROR(Dados!F854),\"-\",Dados!F854)","v":""},{"$f":"IF(ISERROR(Dados!G854),\"-\",Dados!G854)","v":""},{"$f":"IF(ISERROR(Dados!H854),\"-\",Dados!H854)","v":""},{"$f":"IF(ISERROR(Dados!I854),\"-\",Dados!I854)","v":""},{"$f":"IF(ISERROR(Dados!J854),\"-\",Dados!J854)","v":""},{"$f":"IF(ISERROR(Dados!K854),\"-\",Dados!K854)","v":""},{"$f":"IF(ISERROR(Dados!L854),\"-\",Dados!L854)","v":""},{"$f":"IF(ISERROR(Dados!M854),\"-\",Dados!M854)","v":""},{"$f":"IF(ISERROR(Dados!N854),\"-\",Dados!N854)","v":""},{"$f":"IF(ISERROR(Dados!O854),\"-\",Dados!O854)","v":""},{"$f":"IF(ISERROR(Dados!P854),\"-\",Dados!P854)","v":""},{"$f":"IF(ISERROR(Dados!Q854),\"-\",Dados!Q854)","v":""},{"$f":"IF(ISERROR(Dados!R854),\"-\",Dados!R854)","v":""},{"$f":"IF(ISERROR(Dados!S854),\"-\",Dados!S854)","v":""},{"$f":"IF(ISERROR(Dados!T854),\"-\",Dados!T854)","v":""},{"$f":"IF(ISERROR(Dados!U854),\"-\",Dados!U854)","v":""},{"$f":"IF(ISERROR(Dados!V854),\"-\",Dados!V854)","v":""},{"$f":"IF(ISERROR(Dados!W854),\"-\",Dados!W854)","v":""},{"$f":"IF(ISERROR(Dados!X854),\"-\",Dados!X854)","v":""},{"$f":"IF(ISERROR(Dados!Y854),\"-\",Dados!Y854)","v":""},{"$f":"IF(ISERROR(Dados!Z854),\"-\",Dados!Z854)","v":""},{"$f":"IF(ISERROR(Dados!AA854),\"-\",Dados!AA854)","v":""},{"$f":"IF(ISERROR(Dados!AB854),\"-\",Dados!AB854)","v":""},{"$f":"IF(ISERROR(Dados!AC854),\"-\",Dados!AC854)","v":""},{"$f":"IF(ISERROR(Dados!AD854),\"-\",Dados!AD854)","v":""},{"$f":"IF(ISERROR(Dados!AE854),\"-\",Dados!AE854)","v":""},{"$f":"IF(ISERROR(Dados!AF854),\"-\",Dados!AF854)","v":""},{"$f":"IF(ISERROR(Dados!AG854),\"-\",Dados!AG854)","v":""}]
[{"$f":"IF(ISERROR(Dados!A855),\"-\",Dados!A855)","v":""},{"$f":"IF(ISERROR(Dados!B855),\"-\",Dados!B855)","v":""},{"$f":"IF(ISERROR(Dados!C855),\"-\",Dados!C855)","v":""},{"$f":"IF(ISERROR(Dados!D855),\"-\",Dados!D855)","v":""},{"$f":"IF(ISERROR(Dados!E855),\"-\",Dados!E855)","v":""},{"$f":"IF(ISERROR(Dados!F855),\"-\",Dados!F855)","v":""},{"$f":"IF(ISERROR(Dados!G855),\"-\",Dados!G855)","v":""},{"$f":"IF(ISERROR(Dados!H855),\"-\",Dados!H855)","v":""},{"$f":"IF(ISERROR(Dados!I855),\"-\",Dados!I855)","v":""},{"$f":"IF(ISERROR(Dados!J855),\"-\",Dados!J855)","v":""},{"$f":"IF(ISERROR(Dados!K855),\"-\",Dados!K855)","v":""},{"$f":"IF(ISERROR(Dados!L855),\"-\",Dados!L855)","v":""},{"$f":"IF(ISERROR(Dados!M855),\"-\",Dados!M855)","v":""},{"$f":"IF(ISERROR(Dados!N855),\"-\",Dados!N855)","v":""},{"$f":"IF(ISERROR(Dados!O855),\"-\",Dados!O855)","v":""},{"$f":"IF(ISERROR(Dados!P855),\"-\",Dados!P855)","v":""},{"$f":"IF(ISERROR(Dados!Q855),\"-\",Dados!Q855)","v":""},{"$f":"IF(ISERROR(Dados!R855),\"-\",Dados!R855)","v":""},{"$f":"IF(ISERROR(Dados!S855),\"-\",Dados!S855)","v":""},{"$f":"IF(ISERROR(Dados!T855),\"-\",Dados!T855)","v":""},{"$f":"IF(ISERROR(Dados!U855),\"-\",Dados!U855)","v":""},{"$f":"IF(ISERROR(Dados!V855),\"-\",Dados!V855)","v":""},{"$f":"IF(ISERROR(Dados!W855),\"-\",Dados!W855)","v":""},{"$f":"IF(ISERROR(Dados!X855),\"-\",Dados!X855)","v":""},{"$f":"IF(ISERROR(Dados!Y855),\"-\",Dados!Y855)","v":""},{"$f":"IF(ISERROR(Dados!Z855),\"-\",Dados!Z855)","v":""},{"$f":"IF(ISERROR(Dados!AA855),\"-\",Dados!AA855)","v":""},{"$f":"IF(ISERROR(Dados!AB855),\"-\",Dados!AB855)","v":""},{"$f":"IF(ISERROR(Dados!AC855),\"-\",Dados!AC855)","v":""},{"$f":"IF(ISERROR(Dados!AD855),\"-\",Dados!AD855)","v":""},{"$f":"IF(ISERROR(Dados!AE855),\"-\",Dados!AE855)","v":""},{"$f":"IF(ISERROR(Dados!AF855),\"-\",Dados!AF855)","v":""},{"$f":"IF(ISERROR(Dados!AG855),\"-\",Dados!AG855)","v":""}]
[{"$f":"IF(ISERROR(Dados!A856),\"-\",Dados!A856)","v":""},{"$f":"IF(ISERROR(Dados!B856),\"-\",Dados!B856)","v":""},{"$f":"IF(ISERROR(Dados!C856),\"-\",Dados!C856)","v":""},{"$f":"IF(ISERROR(Dados!D856),\"-\",Dados!D856)","v":""},{"$f":"IF(ISERROR(Dados!E856),\"-\",Dados!E856)","v":""},{"$f":"IF(ISERROR(Dados!F856),\"-\",Dados!F856)","v":""},{"$f":"IF(ISERROR(Dados!G856),\"-\",Dados!G856)","v":""},{"$f":"IF(ISERROR(Dados!H856),\"-\",Dados!H856)","v":""},{"$f":"IF(ISERROR(Dados!I856),\"-\",Dados!I856)","v":""},{"$f":"IF(ISERROR(Dados!J856),\"-\",Dados!J856)","v":""},{"$f":"IF(ISERROR(Dados!K856),\"-\",Dados!K856)","v":""},{"$f":"IF(ISERROR(Dados!L856),\"-\",Dados!L856)","v":""},{"$f":"IF(ISERROR(Dados!M856),\"-\",Dados!M856)","v":""},{"$f":"IF(ISERROR(Dados!N856),\"-\",Dados!N856)","v":""},{"$f":"IF(ISERROR(Dados!O856),\"-\",Dados!O856)","v":""},{"$f":"IF(ISERROR(Dados!P856),\"-\",Dados!P856)","v":""},{"$f":"IF(ISERROR(Dados!Q856),\"-\",Dados!Q856)","v":""},{"$f":"IF(ISERROR(Dados!R856),\"-\",Dados!R856)","v":""},{"$f":"IF(ISERROR(Dados!S856),\"-\",Dados!S856)","v":""},{"$f":"IF(ISERROR(Dados!T856),\"-\",Dados!T856)","v":""},{"$f":"IF(ISERROR(Dados!U856),\"-\",Dados!U856)","v":""},{"$f":"IF(ISERROR(Dados!V856),\"-\",Dados!V856)","v":""},{"$f":"IF(ISERROR(Dados!W856),\"-\",Dados!W856)","v":""},{"$f":"IF(ISERROR(Dados!X856),\"-\",Dados!X856)","v":""},{"$f":"IF(ISERROR(Dados!Y856),\"-\",Dados!Y856)","v":""},{"$f":"IF(ISERROR(Dados!Z856),\"-\",Dados!Z856)","v":""},{"$f":"IF(ISERROR(Dados!AA856),\"-\",Dados!AA856)","v":""},{"$f":"IF(ISERROR(Dados!AB856),\"-\",Dados!AB856)","v":""},{"$f":"IF(ISERROR(Dados!AC856),\"-\",Dados!AC856)","v":""},{"$f":"IF(ISERROR(Dados!AD856),\"-\",Dados!AD856)","v":""},{"$f":"IF(ISERROR(Dados!AE856),\"-\",Dados!AE856)","v":""},{"$f":"IF(ISERROR(Dados!AF856),\"-\",Dados!AF856)","v":""},{"$f":"IF(ISERROR(Dados!AG856),\"-\",Dados!AG856)","v":""}]
[{"$f":"IF(ISERROR(Dados!A857),\"-\",Dados!A857)","v":""},{"$f":"IF(ISERROR(Dados!B857),\"-\",Dados!B857)","v":""},{"$f":"IF(ISERROR(Dados!C857),\"-\",Dados!C857)","v":""},{"$f":"IF(ISERROR(Dados!D857),\"-\",Dados!D857)","v":""},{"$f":"IF(ISERROR(Dados!E857),\"-\",Dados!E857)","v":""},{"$f":"IF(ISERROR(Dados!F857),\"-\",Dados!F857)","v":""},{"$f":"IF(ISERROR(Dados!G857),\"-\",Dados!G857)","v":""},{"$f":"IF(ISERROR(Dados!H857),\"-\",Dados!H857)","v":""},{"$f":"IF(ISERROR(Dados!I857),\"-\",Dados!I857)","v":""},{"$f":"IF(ISERROR(Dados!J857),\"-\",Dados!J857)","v":""},{"$f":"IF(ISERROR(Dados!K857),\"-\",Dados!K857)","v":""},{"$f":"IF(ISERROR(Dados!L857),\"-\",Dados!L857)","v":""},{"$f":"IF(ISERROR(Dados!M857),\"-\",Dados!M857)","v":""},{"$f":"IF(ISERROR(Dados!N857),\"-\",Dados!N857)","v":""},{"$f":"IF(ISERROR(Dados!O857),\"-\",Dados!O857)","v":""},{"$f":"IF(ISERROR(Dados!P857),\"-\",Dados!P857)","v":""},{"$f":"IF(ISERROR(Dados!Q857),\"-\",Dados!Q857)","v":""},{"$f":"IF(ISERROR(Dados!R857),\"-\",Dados!R857)","v":""},{"$f":"IF(ISERROR(Dados!S857),\"-\",Dados!S857)","v":""},{"$f":"IF(ISERROR(Dados!T857),\"-\",Dados!T857)","v":""},{"$f":"IF(ISERROR(Dados!U857),\"-\",Dados!U857)","v":""},{"$f":"IF(ISERROR(Dados!V857),\"-\",Dados!V857)","v":""},{"$f":"IF(ISERROR(Dados!W857),\"-\",Dados!W857)","v":""},{"$f":"IF(ISERROR(Dados!X857),\"-\",Dados!X857)","v":""},{"$f":"IF(ISERROR(Dados!Y857),\"-\",Dados!Y857)","v":""},{"$f":"IF(ISERROR(Dados!Z857),\"-\",Dados!Z857)","v":""},{"$f":"IF(ISERROR(Dados!AA857),\"-\",Dados!AA857)","v":""},{"$f":"IF(ISERROR(Dados!AB857),\"-\",Dados!AB857)","v":""},{"$f":"IF(ISERROR(Dados!AC857),\"-\",Dados!AC857)","v":""},{"$f":"IF(ISERROR(Dados!AD857),\"-\",Dados!AD857)","v":""},{"$f":"IF(ISERROR(Dados!AE857),\"-\",Dados!AE857)","v":""},{"$f":"IF(ISERROR(Dados!AF857),\"-\",Dados!AF857)","v":""},{"$f":"IF(ISERROR(Dados!AG857),\"-\",Dados!AG857)","v":""}]
[{"$f":"IF(ISERROR(Dados!A858),\"-\",Dados!A858)","v":""},{"$f":"IF(ISERROR(Dados!B858),\"-\",Dados!B858)","v":""},{"$f":"IF(ISERROR(Dados!C858),\"-\",Dados!C858)","v":""},{"$f":"IF(ISERROR(Dados!D858),\"-\",Dados!D858)","v":""},{"$f":"IF(ISERROR(Dados!E858),\"-\",Dados!E858)","v":""},{"$f":"IF(ISERROR(Dados!F858),\"-\",Dados!F858)","v":""},{"$f":"IF(ISERROR(Dados!G858),\"-\",Dados!G858)","v":""},{"$f":"IF(ISERROR(Dados!H858),\"-\",Dados!H858)","v":""},{"$f":"IF(ISERROR(Dados!I858),\"-\",Dados!I858)","v":""},{"$f":"IF(ISERROR(Dados!J858),\"-\",Dados!J858)","v":""},{"$f":"IF(ISERROR(Dados!K858),\"-\",Dados!K858)","v":""},{"$f":"IF(ISERROR(Dados!L858),\"-\",Dados!L858)","v":""},{"$f":"IF(ISERROR(Dados!M858),\"-\",Dados!M858)","v":""},{"$f":"IF(ISERROR(Dados!N858),\"-\",Dados!N858)","v":""},{"$f":"IF(ISERROR(Dados!O858),\"-\",Dados!O858)","v":""},{"$f":"IF(ISERROR(Dados!P858),\"-\",Dados!P858)","v":""},{"$f":"IF(ISERROR(Dados!Q858),\"-\",Dados!Q858)","v":""},{"$f":"IF(ISERROR(Dados!R858),\"-\",Dados!R858)","v":""},{"$f":"IF(ISERROR(Dados!S858),\"-\",Dados!S858)","v":""},{"$f":"IF(ISERROR(Dados!T858),\"-\",Dados!T858)","v":""},{"$f":"IF(ISERROR(Dados!U858),\"-\",Dados!U858)","v":""},{"$f":"IF(ISERROR(Dados!V858),\"-\",Dados!V858)","v":""},{"$f":"IF(ISERROR(Dados!W858),\"-\",Dados!W858)","v":""},{"$f":"IF(ISERROR(Dados!X858),\"-\",Dados!X858)","v":""},{"$f":"IF(ISERROR(Dados!Y858),\"-\",Dados!Y858)","v":""},{"$f":"IF(ISERROR(Dados!Z858),\"-\",Dados!Z858)","v":""},{"$f":"IF(ISERROR(Dados!AA858),\"-\",Dados!AA858)","v":""},{"$f":"IF(ISERROR(Dados!AB858),\"-\",Dados!AB858)","v":""},{"$f":"IF(ISERROR(Dados!AC858),\"-\",Dados!AC858)","v":""},{"$f":"IF(ISERROR(Dados!AD858),\"-\",Dados!AD858)","v":""},{"$f":"IF(ISERROR(Dados!AE858),\"-\",Dados!AE858)","v":""},{"$f":"IF(ISERROR(Dados!AF858),\"-\",Dados!AF858)","v":""},{"$f":"IF(ISERROR(Dados!AG858),\"-\",Dados!AG858)","v":""}]
[{"$f":"IF(ISERROR(Dados!A859),\"-\",Dados!A859)","v":""},{"$f":"IF(ISERROR(Dados!B859),\"-\",Dados!B859)","v":""},{"$f":"IF(ISERROR(Dados!C859),\"-\",Dados!C859)","v":""},{"$f":"IF(ISERROR(Dados!D859),\"-\",Dados!D859)","v":""},{"$f":"IF(ISERROR(Dados!E859),\"-\",Dados!E859)","v":""},{"$f":"IF(ISERROR(Dados!F859),\"-\",Dados!F859)","v":""},{"$f":"IF(ISERROR(Dados!G859),\"-\",Dados!G859)","v":""},{"$f":"IF(ISERROR(Dados!H859),\"-\",Dados!H859)","v":""},{"$f":"IF(ISERROR(Dados!I859),\"-\",Dados!I859)","v":""},{"$f":"IF(ISERROR(Dados!J859),\"-\",Dados!J859)","v":""},{"$f":"IF(ISERROR(Dados!K859),\"-\",Dados!K859)","v":""},{"$f":"IF(ISERROR(Dados!L859),\"-\",Dados!L859)","v":""},{"$f":"IF(ISERROR(Dados!M859),\"-\",Dados!M859)","v":""},{"$f":"IF(ISERROR(Dados!N859),\"-\",Dados!N859)","v":""},{"$f":"IF(ISERROR(Dados!O859),\"-\",Dados!O859)","v":""},{"$f":"IF(ISERROR(Dados!P859),\"-\",Dados!P859)","v":""},{"$f":"IF(ISERROR(Dados!Q859),\"-\",Dados!Q859)","v":""},{"$f":"IF(ISERROR(Dados!R859),\"-\",Dados!R859)","v":""},{"$f":"IF(ISERROR(Dados!S859),\"-\",Dados!S859)","v":""},{"$f":"IF(ISERROR(Dados!T859),\"-\",Dados!T859)","v":""},{"$f":"IF(ISERROR(Dados!U859),\"-\",Dados!U859)","v":""},{"$f":"IF(ISERROR(Dados!V859),\"-\",Dados!V859)","v":""},{"$f":"IF(ISERROR(Dados!W859),\"-\",Dados!W859)","v":""},{"$f":"IF(ISERROR(Dados!X859),\"-\",Dados!X859)","v":""},{"$f":"IF(ISERROR(Dados!Y859),\"-\",Dados!Y859)","v":""},{"$f":"IF(ISERROR(Dados!Z859),\"-\",Dados!Z859)","v":""},{"$f":"IF(ISERROR(Dados!AA859),\"-\",Dados!AA859)","v":""},{"$f":"IF(ISERROR(Dados!AB859),\"-\",Dados!AB859)","v":""},{"$f":"IF(ISERROR(Dados!AC859),\"-\",Dados!AC859)","v":""},{"$f":"IF(ISERROR(Dados!AD859),\"-\",Dados!AD859)","v":""},{"$f":"IF(ISERROR(Dados!AE859),\"-\",Dados!AE859)","v":""},{"$f":"IF(ISERROR(Dados!AF859),\"-\",Dados!AF859)","v":""},{"$f":"IF(ISERROR(Dados!AG859),\"-\",Dados!AG859)","v":""}]
[{"$f":"IF(ISERROR(Dados!A860),\"-\",Dados!A860)","v":""},{"$f":"IF(ISERROR(Dados!B860),\"-\",Dados!B860)","v":""},{"$f":"IF(ISERROR(Dados!C860),\"-\",Dados!C860)","v":""},{"$f":"IF(ISERROR(Dados!D860),\"-\",Dados!D860)","v":""},{"$f":"IF(ISERROR(Dados!E860),\"-\",Dados!E860)","v":""},{"$f":"IF(ISERROR(Dados!F860),\"-\",Dados!F860)","v":""},{"$f":"IF(ISERROR(Dados!G860),\"-\",Dados!G860)","v":""},{"$f":"IF(ISERROR(Dados!H860),\"-\",Dados!H860)","v":""},{"$f":"IF(ISERROR(Dados!I860),\"-\",Dados!I860)","v":""},{"$f":"IF(ISERROR(Dados!J860),\"-\",Dados!J860)","v":""},{"$f":"IF(ISERROR(Dados!K860),\"-\",Dados!K860)","v":""},{"$f":"IF(ISERROR(Dados!L860),\"-\",Dados!L860)","v":""},{"$f":"IF(ISERROR(Dados!M860),\"-\",Dados!M860)","v":""},{"$f":"IF(ISERROR(Dados!N860),\"-\",Dados!N860)","v":""},{"$f":"IF(ISERROR(Dados!O860),\"-\",Dados!O860)","v":""},{"$f":"IF(ISERROR(Dados!P860),\"-\",Dados!P860)","v":""},{"$f":"IF(ISERROR(Dados!Q860),\"-\",Dados!Q860)","v":""},{"$f":"IF(ISERROR(Dados!R860),\"-\",Dados!R860)","v":""},{"$f":"IF(ISERROR(Dados!S860),\"-\",Dados!S860)","v":""},{"$f":"IF(ISERROR(Dados!T860),\"-\",Dados!T860)","v":""},{"$f":"IF(ISERROR(Dados!U860),\"-\",Dados!U860)","v":""},{"$f":"IF(ISERROR(Dados!V860),\"-\",Dados!V860)","v":""},{"$f":"IF(ISERROR(Dados!W860),\"-\",Dados!W860)","v":""},{"$f":"IF(ISERROR(Dados!X860),\"-\",Dados!X860)","v":""},{"$f":"IF(ISERROR(Dados!Y860),\"-\",Dados!Y860)","v":""},{"$f":"IF(ISERROR(Dados!Z860),\"-\",Dados!Z860)","v":""},{"$f":"IF(ISERROR(Dados!AA860),\"-\",Dados!AA860)","v":""},{"$f":"IF(ISERROR(Dados!AB860),\"-\",Dados!AB860)","v":""},{"$f":"IF(ISERROR(Dados!AC860),\"-\",Dados!AC860)","v":""},{"$f":"IF(ISERROR(Dados!AD860),\"-\",Dados!AD860)","v":""},{"$f":"IF(ISERROR(Dados!AE860),\"-\",Dados!AE860)","v":""},{"$f":"IF(ISERROR(Dados!AF860),\"-\",Dados!AF860)","v":""},{"$f":"IF(ISERROR(Dados!AG860),\"-\",Dados!AG860)","v":""}]
[{"$f":"IF(ISERROR(Dados!A861),\"-\",Dados!A861)","v":""},{"$f":"IF(ISERROR(Dados!B861),\"-\",Dados!B861)","v":""},{"$f":"IF(ISERROR(Dados!C861),\"-\",Dados!C861)","v":""},{"$f":"IF(ISERROR(Dados!D861),\"-\",Dados!D861)","v":""},{"$f":"IF(ISERROR(Dados!E861),\"-\",Dados!E861)","v":""},{"$f":"IF(ISERROR(Dados!F861),\"-\",Dados!F861)","v":""},{"$f":"IF(ISERROR(Dados!G861),\"-\",Dados!G861)","v":""},{"$f":"IF(ISERROR(Dados!H861),\"-\",Dados!H861)","v":""},{"$f":"IF(ISERROR(Dados!I861),\"-\",Dados!I861)","v":""},{"$f":"IF(ISERROR(Dados!J861),\"-\",Dados!J861)","v":""},{"$f":"IF(ISERROR(Dados!K861),\"-\",Dados!K861)","v":""},{"$f":"IF(ISERROR(Dados!L861),\"-\",Dados!L861)","v":""},{"$f":"IF(ISERROR(Dados!M861),\"-\",Dados!M861)","v":""},{"$f":"IF(ISERROR(Dados!N861),\"-\",Dados!N861)","v":""},{"$f":"IF(ISERROR(Dados!O861),\"-\",Dados!O861)","v":""},{"$f":"IF(ISERROR(Dados!P861),\"-\",Dados!P861)","v":""},{"$f":"IF(ISERROR(Dados!Q861),\"-\",Dados!Q861)","v":""},{"$f":"IF(ISERROR(Dados!R861),\"-\",Dados!R861)","v":""},{"$f":"IF(ISERROR(Dados!S861),\"-\",Dados!S861)","v":""},{"$f":"IF(ISERROR(Dados!T861),\"-\",Dados!T861)","v":""},{"$f":"IF(ISERROR(Dados!U861),\"-\",Dados!U861)","v":""},{"$f":"IF(ISERROR(Dados!V861),\"-\",Dados!V861)","v":""},{"$f":"IF(ISERROR(Dados!W861),\"-\",Dados!W861)","v":""},{"$f":"IF(ISERROR(Dados!X861),\"-\",Dados!X861)","v":""},{"$f":"IF(ISERROR(Dados!Y861),\"-\",Dados!Y861)","v":""},{"$f":"IF(ISERROR(Dados!Z861),\"-\",Dados!Z861)","v":""},{"$f":"IF(ISERROR(Dados!AA861),\"-\",Dados!AA861)","v":""},{"$f":"IF(ISERROR(Dados!AB861),\"-\",Dados!AB861)","v":""},{"$f":"IF(ISERROR(Dados!AC861),\"-\",Dados!AC861)","v":""},{"$f":"IF(ISERROR(Dados!AD861),\"-\",Dados!AD861)","v":""},{"$f":"IF(ISERROR(Dados!AE861),\"-\",Dados!AE861)","v":""},{"$f":"IF(ISERROR(Dados!AF861),\"-\",Dados!AF861)","v":""},{"$f":"IF(ISERROR(Dados!AG861),\"-\",Dados!AG861)","v":""}]
[{"$f":"IF(ISERROR(Dados!A862),\"-\",Dados!A862)","v":""},{"$f":"IF(ISERROR(Dados!B862),\"-\",Dados!B862)","v":""},{"$f":"IF(ISERROR(Dados!C862),\"-\",Dados!C862)","v":""},{"$f":"IF(ISERROR(Dados!D862),\"-\",Dados!D862)","v":""},{"$f":"IF(ISERROR(Dados!E862),\"-\",Dados!E862)","v":""},{"$f":"IF(ISERROR(Dados!F862),\"-\",Dados!F862)","v":""},{"$f":"IF(ISERROR(Dados!G862),\"-\",Dados!G862)","v":""},{"$f":"IF(ISERROR(Dados!H862),\"-\",Dados!H862)","v":""},{"$f":"IF(ISERROR(Dados!I862),\"-\",Dados!I862)","v":""},{"$f":"IF(ISERROR(Dados!J862),\"-\",Dados!J862)","v":""},{"$f":"IF(ISERROR(Dados!K862),\"-\",Dados!K862)","v":""},{"$f":"IF(ISERROR(Dados!L862),\"-\",Dados!L862)","v":""},{"$f":"IF(ISERROR(Dados!M862),\"-\",Dados!M862)","v":""},{"$f":"IF(ISERROR(Dados!N862),\"-\",Dados!N862)","v":""},{"$f":"IF(ISERROR(Dados!O862),\"-\",Dados!O862)","v":""},{"$f":"IF(ISERROR(Dados!P862),\"-\",Dados!P862)","v":""},{"$f":"IF(ISERROR(Dados!Q862),\"-\",Dados!Q862)","v":""},{"$f":"IF(ISERROR(Dados!R862),\"-\",Dados!R862)","v":""},{"$f":"IF(ISERROR(Dados!S862),\"-\",Dados!S862)","v":""},{"$f":"IF(ISERROR(Dados!T862),\"-\",Dados!T862)","v":""},{"$f":"IF(ISERROR(Dados!U862),\"-\",Dados!U862)","v":""},{"$f":"IF(ISERROR(Dados!V862),\"-\",Dados!V862)","v":""},{"$f":"IF(ISERROR(Dados!W862),\"-\",Dados!W862)","v":""},{"$f":"IF(ISERROR(Dados!X862),\"-\",Dados!X862)","v":""},{"$f":"IF(ISERROR(Dados!Y862),\"-\",Dados!Y862)","v":""},{"$f":"IF(ISERROR(Dados!Z862),\"-\",Dados!Z862)","v":""},{"$f":"IF(ISERROR(Dados!AA862),\"-\",Dados!AA862)","v":""},{"$f":"IF(ISERROR(Dados!AB862),\"-\",Dados!AB862)","v":""},{"$f":"IF(ISERROR(Dados!AC862),\"-\",Dados!AC862)","v":""},{"$f":"IF(ISERROR(Dados!AD862),\"-\",Dados!AD862)","v":""},{"$f":"IF(ISERROR(Dados!AE862),\"-\",Dados!AE862)","v":""},{"$f":"IF(ISERROR(Dados!AF862),\"-\",Dados!AF862)","v":""},{"$f":"IF(ISERROR(Dados!AG862),\"-\",Dados!AG862)","v":""}]
[{"$f":"IF(ISERROR(Dados!A863),\"-\",Dados!A863)","v":""},{"$f":"IF(ISERROR(Dados!B863),\"-\",Dados!B863)","v":""},{"$f":"IF(ISERROR(Dados!C863),\"-\",Dados!C863)","v":""},{"$f":"IF(ISERROR(Dados!D863),\"-\",Dados!D863)","v":""},{"$f":"IF(ISERROR(Dados!E863),\"-\",Dados!E863)","v":""},{"$f":"IF(ISERROR(Dados!F863),\"-\",Dados!F863)","v":""},{"$f":"IF(ISERROR(Dados!G863),\"-\",Dados!G863)","v":""},{"$f":"IF(ISERROR(Dados!H863),\"-\",Dados!H863)","v":""},{"$f":"IF(ISERROR(Dados!I863),\"-\",Dados!I863)","v":""},{"$f":"IF(ISERROR(Dados!J863),\"-\",Dados!J863)","v":""},{"$f":"IF(ISERROR(Dados!K863),\"-\",Dados!K863)","v":""},{"$f":"IF(ISERROR(Dados!L863),\"-\",Dados!L863)","v":""},{"$f":"IF(ISERROR(Dados!M863),\"-\",Dados!M863)","v":""},{"$f":"IF(ISERROR(Dados!N863),\"-\",Dados!N863)","v":""},{"$f":"IF(ISERROR(Dados!O863),\"-\",Dados!O863)","v":""},{"$f":"IF(ISERROR(Dados!P863),\"-\",Dados!P863)","v":""},{"$f":"IF(ISERROR(Dados!Q863),\"-\",Dados!Q863)","v":""},{"$f":"IF(ISERROR(Dados!R863),\"-\",Dados!R863)","v":""},{"$f":"IF(ISERROR(Dados!S863),\"-\",Dados!S863)","v":""},{"$f":"IF(ISERROR(Dados!T863),\"-\",Dados!T863)","v":""},{"$f":"IF(ISERROR(Dados!U863),\"-\",Dados!U863)","v":""},{"$f":"IF(ISERROR(Dados!V863),\"-\",Dados!V863)","v":""},{"$f":"IF(ISERROR(Dados!W863),\"-\",Dados!W863)","v":""},{"$f":"IF(ISERROR(Dados!X863),\"-\",Dados!X863)","v":""},{"$f":"IF(ISERROR(Dados!Y863),\"-\",Dados!Y863)","v":""},{"$f":"IF(ISERROR(Dados!Z863),\"-\",Dados!Z863)","v":""},{"$f":"IF(ISERROR(Dados!AA863),\"-\",Dados!AA863)","v":""},{"$f":"IF(ISERROR(Dados!AB863),\"-\",Dados!AB863)","v":""},{"$f":"IF(ISERROR(Dados!AC863),\"-\",Dados!AC863)","v":""},{"$f":"IF(ISERROR(Dados!AD863),\"-\",Dados!AD863)","v":""},{"$f":"IF(ISERROR(Dados!AE863),\"-\",Dados!AE863)","v":""},{"$f":"IF(ISERROR(Dados!AF863),\"-\",Dados!AF863)","v":""},{"$f":"IF(ISERROR(Dados!AG863),\"-\",Dados!AG863)","v":""}]
[{"$f":"IF(ISERROR(Dados!A864),\"-\",Dados!A864)","v":""},{"$f":"IF(ISERROR(Dados!B864),\"-\",Dados!B864)","v":""},{"$f":"IF(ISERROR(Dados!C864),\"-\",Dados!C864)","v":""},{"$f":"IF(ISERROR(Dados!D864),\"-\",Dados!D864)","v":""},{"$f":"IF(ISERROR(Dados!E864),\"-\",Dados!E864)","v":""},{"$f":"IF(ISERROR(Dados!F864),\"-\",Dados!F864)","v":""},{"$f":"IF(ISERROR(Dados!G864),\"-\",Dados!G864)","v":""},{"$f":"IF(ISERROR(Dados!H864),\"-\",Dados!H864)","v":""},{"$f":"IF(ISERROR(Dados!I864),\"-\",Dados!I864)","v":""},{"$f":"IF(ISERROR(Dados!J864),\"-\",Dados!J864)","v":""},{"$f":"IF(ISERROR(Dados!K864),\"-\",Dados!K864)","v":""},{"$f":"IF(ISERROR(Dados!L864),\"-\",Dados!L864)","v":""},{"$f":"IF(ISERROR(Dados!M864),\"-\",Dados!M864)","v":""},{"$f":"IF(ISERROR(Dados!N864),\"-\",Dados!N864)","v":""},{"$f":"IF(ISERROR(Dados!O864),\"-\",Dados!O864)","v":""},{"$f":"IF(ISERROR(Dados!P864),\"-\",Dados!P864)","v":""},{"$f":"IF(ISERROR(Dados!Q864),\"-\",Dados!Q864)","v":""},{"$f":"IF(ISERROR(Dados!R864),\"-\",Dados!R864)","v":""},{"$f":"IF(ISERROR(Dados!S864),\"-\",Dados!S864)","v":""},{"$f":"IF(ISERROR(Dados!T864),\"-\",Dados!T864)","v":""},{"$f":"IF(ISERROR(Dados!U864),\"-\",Dados!U864)","v":""},{"$f":"IF(ISERROR(Dados!V864),\"-\",Dados!V864)","v":""},{"$f":"IF(ISERROR(Dados!W864),\"-\",Dados!W864)","v":""},{"$f":"IF(ISERROR(Dados!X864),\"-\",Dados!X864)","v":""},{"$f":"IF(ISERROR(Dados!Y864),\"-\",Dados!Y864)","v":""},{"$f":"IF(ISERROR(Dados!Z864),\"-\",Dados!Z864)","v":""},{"$f":"IF(ISERROR(Dados!AA864),\"-\",Dados!AA864)","v":""},{"$f":"IF(ISERROR(Dados!AB864),\"-\",Dados!AB864)","v":""},{"$f":"IF(ISERROR(Dados!AC864),\"-\",Dados!AC864)","v":""},{"$f":"IF(ISERROR(Dados!AD864),\"-\",Dados!AD864)","v":""},{"$f":"IF(ISERROR(Dados!AE864),\"-\",Dados!AE864)","v":""},{"$f":"IF(ISERROR(Dados!AF864),\"-\",Dados!AF864)","v":""},{"$f":"IF(ISERROR(Dados!AG864),\"-\",Dados!AG864)","v":""}]
[{"$f":"IF(ISERROR(Dados!A865),\"-\",Dados!A865)","v":""},{"$f":"IF(ISERROR(Dados!B865),\"-\",Dados!B865)","v":""},{"$f":"IF(ISERROR(Dados!C865),\"-\",Dados!C865)","v":""},{"$f":"IF(ISERROR(Dados!D865),\"-\",Dados!D865)","v":""},{"$f":"IF(ISERROR(Dados!E865),\"-\",Dados!E865)","v":""},{"$f":"IF(ISERROR(Dados!F865),\"-\",Dados!F865)","v":""},{"$f":"IF(ISERROR(Dados!G865),\"-\",Dados!G865)","v":""},{"$f":"IF(ISERROR(Dados!H865),\"-\",Dados!H865)","v":""},{"$f":"IF(ISERROR(Dados!I865),\"-\",Dados!I865)","v":""},{"$f":"IF(ISERROR(Dados!J865),\"-\",Dados!J865)","v":""},{"$f":"IF(ISERROR(Dados!K865),\"-\",Dados!K865)","v":""},{"$f":"IF(ISERROR(Dados!L865),\"-\",Dados!L865)","v":""},{"$f":"IF(ISERROR(Dados!M865),\"-\",Dados!M865)","v":""},{"$f":"IF(ISERROR(Dados!N865),\"-\",Dados!N865)","v":""},{"$f":"IF(ISERROR(Dados!O865),\"-\",Dados!O865)","v":""},{"$f":"IF(ISERROR(Dados!P865),\"-\",Dados!P865)","v":""},{"$f":"IF(ISERROR(Dados!Q865),\"-\",Dados!Q865)","v":""},{"$f":"IF(ISERROR(Dados!R865),\"-\",Dados!R865)","v":""},{"$f":"IF(ISERROR(Dados!S865),\"-\",Dados!S865)","v":""},{"$f":"IF(ISERROR(Dados!T865),\"-\",Dados!T865)","v":""},{"$f":"IF(ISERROR(Dados!U865),\"-\",Dados!U865)","v":""},{"$f":"IF(ISERROR(Dados!V865),\"-\",Dados!V865)","v":""},{"$f":"IF(ISERROR(Dados!W865),\"-\",Dados!W865)","v":""},{"$f":"IF(ISERROR(Dados!X865),\"-\",Dados!X865)","v":""},{"$f":"IF(ISERROR(Dados!Y865),\"-\",Dados!Y865)","v":""},{"$f":"IF(ISERROR(Dados!Z865),\"-\",Dados!Z865)","v":""},{"$f":"IF(ISERROR(Dados!AA865),\"-\",Dados!AA865)","v":""},{"$f":"IF(ISERROR(Dados!AB865),\"-\",Dados!AB865)","v":""},{"$f":"IF(ISERROR(Dados!AC865),\"-\",Dados!AC865)","v":""},{"$f":"IF(ISERROR(Dados!AD865),\"-\",Dados!AD865)","v":""},{"$f":"IF(ISERROR(Dados!AE865),\"-\",Dados!AE865)","v":""},{"$f":"IF(ISERROR(Dados!AF865),\"-\",Dados!AF865)","v":""},{"$f":"IF(ISERROR(Dados!AG865),\"-\",Dados!AG865)","v":""}]
[{"$f":"IF(ISERROR(Dados!A866),\"-\",Dados!A866)","v":""},{"$f":"IF(ISERROR(Dados!B866),\"-\",Dados!B866)","v":""},{"$f":"IF(ISERROR(Dados!C866),\"-\",Dados!C866)","v":""},{"$f":"IF(ISERROR(Dados!D866),\"-\",Dados!D866)","v":""},{"$f":"IF(ISERROR(Dados!E866),\"-\",Dados!E866)","v":""},{"$f":"IF(ISERROR(Dados!F866),\"-\",Dados!F866)","v":""},{"$f":"IF(ISERROR(Dados!G866),\"-\",Dados!G866)","v":""},{"$f":"IF(ISERROR(Dados!H866),\"-\",Dados!H866)","v":""},{"$f":"IF(ISERROR(Dados!I866),\"-\",Dados!I866)","v":""},{"$f":"IF(ISERROR(Dados!J866),\"-\",Dados!J866)","v":""},{"$f":"IF(ISERROR(Dados!K866),\"-\",Dados!K866)","v":""},{"$f":"IF(ISERROR(Dados!L866),\"-\",Dados!L866)","v":""},{"$f":"IF(ISERROR(Dados!M866),\"-\",Dados!M866)","v":""},{"$f":"IF(ISERROR(Dados!N866),\"-\",Dados!N866)","v":""},{"$f":"IF(ISERROR(Dados!O866),\"-\",Dados!O866)","v":""},{"$f":"IF(ISERROR(Dados!P866),\"-\",Dados!P866)","v":""},{"$f":"IF(ISERROR(Dados!Q866),\"-\",Dados!Q866)","v":""},{"$f":"IF(ISERROR(Dados!R866),\"-\",Dados!R866)","v":""},{"$f":"IF(ISERROR(Dados!S866),\"-\",Dados!S866)","v":""},{"$f":"IF(ISERROR(Dados!T866),\"-\",Dados!T866)","v":""},{"$f":"IF(ISERROR(Dados!U866),\"-\",Dados!U866)","v":""},{"$f":"IF(ISERROR(Dados!V866),\"-\",Dados!V866)","v":""},{"$f":"IF(ISERROR(Dados!W866),\"-\",Dados!W866)","v":""},{"$f":"IF(ISERROR(Dados!X866),\"-\",Dados!X866)","v":""},{"$f":"IF(ISERROR(Dados!Y866),\"-\",Dados!Y866)","v":""},{"$f":"IF(ISERROR(Dados!Z866),\"-\",Dados!Z866)","v":""},{"$f":"IF(ISERROR(Dados!AA866),\"-\",Dados!AA866)","v":""},{"$f":"IF(ISERROR(Dados!AB866),\"-\",Dados!AB866)","v":""},{"$f":"IF(ISERROR(Dados!AC866),\"-\",Dados!AC866)","v":""},{"$f":"IF(ISERROR(Dados!AD866),\"-\",Dados!AD866)","v":""},{"$f":"IF(ISERROR(Dados!AE866),\"-\",Dados!AE866)","v":""},{"$f":"IF(ISERROR(Dados!AF866),\"-\",Dados!AF866)","v":""},{"$f":"IF(ISERROR(Dados!AG866),\"-\",Dados!AG866)","v":""}]
[{"$f":"IF(ISERROR(Dados!A867),\"-\",Dados!A867)","v":""},{"$f":"IF(ISERROR(Dados!B867),\"-\",Dados!B867)","v":""},{"$f":"IF(ISERROR(Dados!C867),\"-\",Dados!C867)","v":""},{"$f":"IF(ISERROR(Dados!D867),\"-\",Dados!D867)","v":""},{"$f":"IF(ISERROR(Dados!E867),\"-\",Dados!E867)","v":""},{"$f":"IF(ISERROR(Dados!F867),\"-\",Dados!F867)","v":""},{"$f":"IF(ISERROR(Dados!G867),\"-\",Dados!G867)","v":""},{"$f":"IF(ISERROR(Dados!H867),\"-\",Dados!H867)","v":""},{"$f":"IF(ISERROR(Dados!I867),\"-\",Dados!I867)","v":""},{"$f":"IF(ISERROR(Dados!J867),\"-\",Dados!J867)","v":""},{"$f":"IF(ISERROR(Dados!K867),\"-\",Dados!K867)","v":""},{"$f":"IF(ISERROR(Dados!L867),\"-\",Dados!L867)","v":""},{"$f":"IF(ISERROR(Dados!M867),\"-\",Dados!M867)","v":""},{"$f":"IF(ISERROR(Dados!N867),\"-\",Dados!N867)","v":""},{"$f":"IF(ISERROR(Dados!O867),\"-\",Dados!O867)","v":""},{"$f":"IF(ISERROR(Dados!P867),\"-\",Dados!P867)","v":""},{"$f":"IF(ISERROR(Dados!Q867),\"-\",Dados!Q867)","v":""},{"$f":"IF(ISERROR(Dados!R867),\"-\",Dados!R867)","v":""},{"$f":"IF(ISERROR(Dados!S867),\"-\",Dados!S867)","v":""},{"$f":"IF(ISERROR(Dados!T867),\"-\",Dados!T867)","v":""},{"$f":"IF(ISERROR(Dados!U867),\"-\",Dados!U867)","v":""},{"$f":"IF(ISERROR(Dados!V867),\"-\",Dados!V867)","v":""},{"$f":"IF(ISERROR(Dados!W867),\"-\",Dados!W867)","v":""},{"$f":"IF(ISERROR(Dados!X867),\"-\",Dados!X867)","v":""},{"$f":"IF(ISERROR(Dados!Y867),\"-\",Dados!Y867)","v":""},{"$f":"IF(ISERROR(Dados!Z867),\"-\",Dados!Z867)","v":""},{"$f":"IF(ISERROR(Dados!AA867),\"-\",Dados!AA867)","v":""},{"$f":"IF(ISERROR(Dados!AB867),\"-\",Dados!AB867)","v":""},{"$f":"IF(ISERROR(Dados!AC867),\"-\",Dados!AC867)","v":""},{"$f":"IF(ISERROR(Dados!AD867),\"-\",Dados!AD867)","v":""},{"$f":"IF(ISERROR(Dados!AE867),\"-\",Dados!AE867)","v":""},{"$f":"IF(ISERROR(Dados!AF867),\"-\",Dados!AF867)","v":""},{"$f":"IF(ISERROR(Dados!AG867),\"-\",Dados!AG867)","v":""}]
[{"$f":"IF(ISERROR(Dados!A868),\"-\",Dados!A868)","v":""},{"$f":"IF(ISERROR(Dados!B868),\"-\",Dados!B868)","v":""},{"$f":"IF(ISERROR(Dados!C868),\"-\",Dados!C868)","v":""},{"$f":"IF(ISERROR(Dados!D868),\"-\",Dados!D868)","v":""},{"$f":"IF(ISERROR(Dados!E868),\"-\",Dados!E868)","v":""},{"$f":"IF(ISERROR(Dados!F868),\"-\",Dados!F868)","v":""},{"$f":"IF(ISERROR(Dados!G868),\"-\",Dados!G868)","v":""},{"$f":"IF(ISERROR(Dados!H868),\"-\",Dados!H868)","v":""},{"$f":"IF(ISERROR(Dados!I868),\"-\",Dados!I868)","v":""},{"$f":"IF(ISERROR(Dados!J868),\"-\",Dados!J868)","v":""},{"$f":"IF(ISERROR(Dados!K868),\"-\",Dados!K868)","v":""},{"$f":"IF(ISERROR(Dados!L868),\"-\",Dados!L868)","v":""},{"$f":"IF(ISERROR(Dados!M868),\"-\",Dados!M868)","v":""},{"$f":"IF(ISERROR(Dados!N868),\"-\",Dados!N868)","v":""},{"$f":"IF(ISERROR(Dados!O868),\"-\",Dados!O868)","v":""},{"$f":"IF(ISERROR(Dados!P868),\"-\",Dados!P868)","v":""},{"$f":"IF(ISERROR(Dados!Q868),\"-\",Dados!Q868)","v":""},{"$f":"IF(ISERROR(Dados!R868),\"-\",Dados!R868)","v":""},{"$f":"IF(ISERROR(Dados!S868),\"-\",Dados!S868)","v":""},{"$f":"IF(ISERROR(Dados!T868),\"-\",Dados!T868)","v":""},{"$f":"IF(ISERROR(Dados!U868),\"-\",Dados!U868)","v":""},{"$f":"IF(ISERROR(Dados!V868),\"-\",Dados!V868)","v":""},{"$f":"IF(ISERROR(Dados!W868),\"-\",Dados!W868)","v":""},{"$f":"IF(ISERROR(Dados!X868),\"-\",Dados!X868)","v":""},{"$f":"IF(ISERROR(Dados!Y868),\"-\",Dados!Y868)","v":""},{"$f":"IF(ISERROR(Dados!Z868),\"-\",Dados!Z868)","v":""},{"$f":"IF(ISERROR(Dados!AA868),\"-\",Dados!AA868)","v":""},{"$f":"IF(ISERROR(Dados!AB868),\"-\",Dados!AB868)","v":""},{"$f":"IF(ISERROR(Dados!AC868),\"-\",Dados!AC868)","v":""},{"$f":"IF(ISERROR(Dados!AD868),\"-\",Dados!AD868)","v":""},{"$f":"IF(ISERROR(Dados!AE868),\"-\",Dados!AE868)","v":""},{"$f":"IF(ISERROR(Dados!AF868),\"-\",Dados!AF868)","v":""},{"$f":"IF(ISERROR(Dados!AG868),\"-\",Dados!AG868)","v":""}]
[{"$f":"IF(ISERROR(Dados!A869),\"-\",Dados!A869)","v":""},{"$f":"IF(ISERROR(Dados!B869),\"-\",Dados!B869)","v":""},{"$f":"IF(ISERROR(Dados!C869),\"-\",Dados!C869)","v":""},{"$f":"IF(ISERROR(Dados!D869),\"-\",Dados!D869)","v":""},{"$f":"IF(ISERROR(Dados!E869),\"-\",Dados!E869)","v":""},{"$f":"IF(ISERROR(Dados!F869),\"-\",Dados!F869)","v":""},{"$f":"IF(ISERROR(Dados!G869),\"-\",Dados!G869)","v":""},{"$f":"IF(ISERROR(Dados!H869),\"-\",Dados!H869)","v":""},{"$f":"IF(ISERROR(Dados!I869),\"-\",Dados!I869)","v":""},{"$f":"IF(ISERROR(Dados!J869),\"-\",Dados!J869)","v":""},{"$f":"IF(ISERROR(Dados!K869),\"-\",Dados!K869)","v":""},{"$f":"IF(ISERROR(Dados!L869),\"-\",Dados!L869)","v":""},{"$f":"IF(ISERROR(Dados!M869),\"-\",Dados!M869)","v":""},{"$f":"IF(ISERROR(Dados!N869),\"-\",Dados!N869)","v":""},{"$f":"IF(ISERROR(Dados!O869),\"-\",Dados!O869)","v":""},{"$f":"IF(ISERROR(Dados!P869),\"-\",Dados!P869)","v":""},{"$f":"IF(ISERROR(Dados!Q869),\"-\",Dados!Q869)","v":""},{"$f":"IF(ISERROR(Dados!R869),\"-\",Dados!R869)","v":""},{"$f":"IF(ISERROR(Dados!S869),\"-\",Dados!S869)","v":""},{"$f":"IF(ISERROR(Dados!T869),\"-\",Dados!T869)","v":""},{"$f":"IF(ISERROR(Dados!U869),\"-\",Dados!U869)","v":""},{"$f":"IF(ISERROR(Dados!V869),\"-\",Dados!V869)","v":""},{"$f":"IF(ISERROR(Dados!W869),\"-\",Dados!W869)","v":""},{"$f":"IF(ISERROR(Dados!X869),\"-\",Dados!X869)","v":""},{"$f":"IF(ISERROR(Dados!Y869),\"-\",Dados!Y869)","v":""},{"$f":"IF(ISERROR(Dados!Z869),\"-\",Dados!Z869)","v":""},{"$f":"IF(ISERROR(Dados!AA869),\"-\",Dados!AA869)","v":""},{"$f":"IF(ISERROR(Dados!AB869),\"-\",Dados!AB869)","v":""},{"$f":"IF(ISERROR(Dados!AC869),\"-\",Dados!AC869)","v":""},{"$f":"IF(ISERROR(Dados!AD869),\"-\",Dados!AD869)","v":""},{"$f":"IF(ISERROR(Dados!AE869),\"-\",Dados!AE869)","v":""},{"$f":"IF(ISERROR(Dados!AF869),\"-\",Dados!AF869)","v":""},{"$f":"IF(ISERROR(Dados!AG869),\"-\",Dados!AG869)","v":""}]
[{"$f":"IF(ISERROR(Dados!A870),\"-\",Dados!A870)","v":""},{"$f":"IF(ISERROR(Dados!B870),\"-\",Dados!B870)","v":""},{"$f":"IF(ISERROR(Dados!C870),\"-\",Dados!C870)","v":""},{"$f":"IF(ISERROR(Dados!D870),\"-\",Dados!D870)","v":""},{"$f":"IF(ISERROR(Dados!E870),\"-\",Dados!E870)","v":""},{"$f":"IF(ISERROR(Dados!F870),\"-\",Dados!F870)","v":""},{"$f":"IF(ISERROR(Dados!G870),\"-\",Dados!G870)","v":""},{"$f":"IF(ISERROR(Dados!H870),\"-\",Dados!H870)","v":""},{"$f":"IF(ISERROR(Dados!I870),\"-\",Dados!I870)","v":""},{"$f":"IF(ISERROR(Dados!J870),\"-\",Dados!J870)","v":""},{"$f":"IF(ISERROR(Dados!K870),\"-\",Dados!K870)","v":""},{"$f":"IF(ISERROR(Dados!L870),\"-\",Dados!L870)","v":""},{"$f":"IF(ISERROR(Dados!M870),\"-\",Dados!M870)","v":""},{"$f":"IF(ISERROR(Dados!N870),\"-\",Dados!N870)","v":""},{"$f":"IF(ISERROR(Dados!O870),\"-\",Dados!O870)","v":""},{"$f":"IF(ISERROR(Dados!P870),\"-\",Dados!P870)","v":""},{"$f":"IF(ISERROR(Dados!Q870),\"-\",Dados!Q870)","v":""},{"$f":"IF(ISERROR(Dados!R870),\"-\",Dados!R870)","v":""},{"$f":"IF(ISERROR(Dados!S870),\"-\",Dados!S870)","v":""},{"$f":"IF(ISERROR(Dados!T870),\"-\",Dados!T870)","v":""},{"$f":"IF(ISERROR(Dados!U870),\"-\",Dados!U870)","v":""},{"$f":"IF(ISERROR(Dados!V870),\"-\",Dados!V870)","v":""},{"$f":"IF(ISERROR(Dados!W870),\"-\",Dados!W870)","v":""},{"$f":"IF(ISERROR(Dados!X870),\"-\",Dados!X870)","v":""},{"$f":"IF(ISERROR(Dados!Y870),\"-\",Dados!Y870)","v":""},{"$f":"IF(ISERROR(Dados!Z870),\"-\",Dados!Z870)","v":""},{"$f":"IF(ISERROR(Dados!AA870),\"-\",Dados!AA870)","v":""},{"$f":"IF(ISERROR(Dados!AB870),\"-\",Dados!AB870)","v":""},{"$f":"IF(ISERROR(Dados!AC870),\"-\",Dados!AC870)","v":""},{"$f":"IF(ISERROR(Dados!AD870),\"-\",Dados!AD870)","v":""},{"$f":"IF(ISERROR(Dados!AE870),\"-\",Dados!AE870)","v":""},{"$f":"IF(ISERROR(Dados!AF870),\"-\",Dados!AF870)","v":""},{"$f":"IF(ISERROR(Dados!AG870),\"-\",Dados!AG870)","v":""}]
[{"$f":"IF(ISERROR(Dados!A871),\"-\",Dados!A871)","v":""},{"$f":"IF(ISERROR(Dados!B871),\"-\",Dados!B871)","v":""},{"$f":"IF(ISERROR(Dados!C871),\"-\",Dados!C871)","v":""},{"$f":"IF(ISERROR(Dados!D871),\"-\",Dados!D871)","v":""},{"$f":"IF(ISERROR(Dados!E871),\"-\",Dados!E871)","v":""},{"$f":"IF(ISERROR(Dados!F871),\"-\",Dados!F871)","v":""},{"$f":"IF(ISERROR(Dados!G871),\"-\",Dados!G871)","v":""},{"$f":"IF(ISERROR(Dados!H871),\"-\",Dados!H871)","v":""},{"$f":"IF(ISERROR(Dados!I871),\"-\",Dados!I871)","v":""},{"$f":"IF(ISERROR(Dados!J871),\"-\",Dados!J871)","v":""},{"$f":"IF(ISERROR(Dados!K871),\"-\",Dados!K871)","v":""},{"$f":"IF(ISERROR(Dados!L871),\"-\",Dados!L871)","v":""},{"$f":"IF(ISERROR(Dados!M871),\"-\",Dados!M871)","v":""},{"$f":"IF(ISERROR(Dados!N871),\"-\",Dados!N871)","v":""},{"$f":"IF(ISERROR(Dados!O871),\"-\",Dados!O871)","v":""},{"$f":"IF(ISERROR(Dados!P871),\"-\",Dados!P871)","v":""},{"$f":"IF(ISERROR(Dados!Q871),\"-\",Dados!Q871)","v":""},{"$f":"IF(ISERROR(Dados!R871),\"-\",Dados!R871)","v":""},{"$f":"IF(ISERROR(Dados!S871),\"-\",Dados!S871)","v":""},{"$f":"IF(ISERROR(Dados!T871),\"-\",Dados!T871)","v":""},{"$f":"IF(ISERROR(Dados!U871),\"-\",Dados!U871)","v":""},{"$f":"IF(ISERROR(Dados!V871),\"-\",Dados!V871)","v":""},{"$f":"IF(ISERROR(Dados!W871),\"-\",Dados!W871)","v":""},{"$f":"IF(ISERROR(Dados!X871),\"-\",Dados!X871)","v":""},{"$f":"IF(ISERROR(Dados!Y871),\"-\",Dados!Y871)","v":""},{"$f":"IF(ISERROR(Dados!Z871),\"-\",Dados!Z871)","v":""},{"$f":"IF(ISERROR(Dados!AA871),\"-\",Dados!AA871)","v":""},{"$f":"IF(ISERROR(Dados!AB871),\"-\",Dados!AB871)","v":""},{"$f":"IF(ISERROR(Dados!AC871),\"-\",Dados!AC871)","v":""},{"$f":"IF(ISERROR(Dados!AD871),\"-\",Dados!AD871)","v":""},{"$f":"IF(ISERROR(Dados!AE871),\"-\",Dados!AE871)","v":""},{"$f":"IF(ISERROR(Dados!AF871),\"-\",Dados!AF871)","v":""},{"$f":"IF(ISERROR(Dados!AG871),\"-\",Dados!AG871)","v":""}]
[{"$f":"IF(ISERROR(Dados!A872),\"-\",Dados!A872)","v":""},{"$f":"IF(ISERROR(Dados!B872),\"-\",Dados!B872)","v":""},{"$f":"IF(ISERROR(Dados!C872),\"-\",Dados!C872)","v":""},{"$f":"IF(ISERROR(Dados!D872),\"-\",Dados!D872)","v":""},{"$f":"IF(ISERROR(Dados!E872),\"-\",Dados!E872)","v":""},{"$f":"IF(ISERROR(Dados!F872),\"-\",Dados!F872)","v":""},{"$f":"IF(ISERROR(Dados!G872),\"-\",Dados!G872)","v":""},{"$f":"IF(ISERROR(Dados!H872),\"-\",Dados!H872)","v":""},{"$f":"IF(ISERROR(Dados!I872),\"-\",Dados!I872)","v":""},{"$f":"IF(ISERROR(Dados!J872),\"-\",Dados!J872)","v":""},{"$f":"IF(ISERROR(Dados!K872),\"-\",Dados!K872)","v":""},{"$f":"IF(ISERROR(Dados!L872),\"-\",Dados!L872)","v":""},{"$f":"IF(ISERROR(Dados!M872),\"-\",Dados!M872)","v":""},{"$f":"IF(ISERROR(Dados!N872),\"-\",Dados!N872)","v":""},{"$f":"IF(ISERROR(Dados!O872),\"-\",Dados!O872)","v":""},{"$f":"IF(ISERROR(Dados!P872),\"-\",Dados!P872)","v":""},{"$f":"IF(ISERROR(Dados!Q872),\"-\",Dados!Q872)","v":""},{"$f":"IF(ISERROR(Dados!R872),\"-\",Dados!R872)","v":""},{"$f":"IF(ISERROR(Dados!S872),\"-\",Dados!S872)","v":""},{"$f":"IF(ISERROR(Dados!T872),\"-\",Dados!T872)","v":""},{"$f":"IF(ISERROR(Dados!U872),\"-\",Dados!U872)","v":""},{"$f":"IF(ISERROR(Dados!V872),\"-\",Dados!V872)","v":""},{"$f":"IF(ISERROR(Dados!W872),\"-\",Dados!W872)","v":""},{"$f":"IF(ISERROR(Dados!X872),\"-\",Dados!X872)","v":""},{"$f":"IF(ISERROR(Dados!Y872),\"-\",Dados!Y872)","v":""},{"$f":"IF(ISERROR(Dados!Z872),\"-\",Dados!Z872)","v":""},{"$f":"IF(ISERROR(Dados!AA872),\"-\",Dados!AA872)","v":""},{"$f":"IF(ISERROR(Dados!AB872),\"-\",Dados!AB872)","v":""},{"$f":"IF(ISERROR(Dados!AC872),\"-\",Dados!AC872)","v":""},{"$f":"IF(ISERROR(Dados!AD872),\"-\",Dados!AD872)","v":""},{"$f":"IF(ISERROR(Dados!AE872),\"-\",Dados!AE872)","v":""},{"$f":"IF(ISERROR(Dados!AF872),\"-\",Dados!AF872)","v":""},{"$f":"IF(ISERROR(Dados!AG872),\"-\",Dados!AG872)","v":""}]
[{"$f":"IF(ISERROR(Dados!A873),\"-\",Dados!A873)","v":""},{"$f":"IF(ISERROR(Dados!B873),\"-\",Dados!B873)","v":""},{"$f":"IF(ISERROR(Dados!C873),\"-\",Dados!C873)","v":""},{"$f":"IF(ISERROR(Dados!D873),\"-\",Dados!D873)","v":""},{"$f":"IF(ISERROR(Dados!E873),\"-\",Dados!E873)","v":""},{"$f":"IF(ISERROR(Dados!F873),\"-\",Dados!F873)","v":""},{"$f":"IF(ISERROR(Dados!G873),\"-\",Dados!G873)","v":""},{"$f":"IF(ISERROR(Dados!H873),\"-\",Dados!H873)","v":""},{"$f":"IF(ISERROR(Dados!I873),\"-\",Dados!I873)","v":""},{"$f":"IF(ISERROR(Dados!J873),\"-\",Dados!J873)","v":""},{"$f":"IF(ISERROR(Dados!K873),\"-\",Dados!K873)","v":""},{"$f":"IF(ISERROR(Dados!L873),\"-\",Dados!L873)","v":""},{"$f":"IF(ISERROR(Dados!M873),\"-\",Dados!M873)","v":""},{"$f":"IF(ISERROR(Dados!N873),\"-\",Dados!N873)","v":""},{"$f":"IF(ISERROR(Dados!O873),\"-\",Dados!O873)","v":""},{"$f":"IF(ISERROR(Dados!P873),\"-\",Dados!P873)","v":""},{"$f":"IF(ISERROR(Dados!Q873),\"-\",Dados!Q873)","v":""},{"$f":"IF(ISERROR(Dados!R873),\"-\",Dados!R873)","v":""},{"$f":"IF(ISERROR(Dados!S873),\"-\",Dados!S873)","v":""},{"$f":"IF(ISERROR(Dados!T873),\"-\",Dados!T873)","v":""},{"$f":"IF(ISERROR(Dados!U873),\"-\",Dados!U873)","v":""},{"$f":"IF(ISERROR(Dados!V873),\"-\",Dados!V873)","v":""},{"$f":"IF(ISERROR(Dados!W873),\"-\",Dados!W873)","v":""},{"$f":"IF(ISERROR(Dados!X873),\"-\",Dados!X873)","v":""},{"$f":"IF(ISERROR(Dados!Y873),\"-\",Dados!Y873)","v":""},{"$f":"IF(ISERROR(Dados!Z873),\"-\",Dados!Z873)","v":""},{"$f":"IF(ISERROR(Dados!AA873),\"-\",Dados!AA873)","v":""},{"$f":"IF(ISERROR(Dados!AB873),\"-\",Dados!AB873)","v":""},{"$f":"IF(ISERROR(Dados!AC873),\"-\",Dados!AC873)","v":""},{"$f":"IF(ISERROR(Dados!AD873),\"-\",Dados!AD873)","v":""},{"$f":"IF(ISERROR(Dados!AE873),\"-\",Dados!AE873)","v":""},{"$f":"IF(ISERROR(Dados!AF873),\"-\",Dados!AF873)","v":""},{"$f":"IF(ISERROR(Dados!AG873),\"-\",Dados!AG873)","v":""}]
[{"$f":"IF(ISERROR(Dados!A874),\"-\",Dados!A874)","v":""},{"$f":"IF(ISERROR(Dados!B874),\"-\",Dados!B874)","v":""},{"$f":"IF(ISERROR(Dados!C874),\"-\",Dados!C874)","v":""},{"$f":"IF(ISERROR(Dados!D874),\"-\",Dados!D874)","v":""},{"$f":"IF(ISERROR(Dados!E874),\"-\",Dados!E874)","v":""},{"$f":"IF(ISERROR(Dados!F874),\"-\",Dados!F874)","v":""},{"$f":"IF(ISERROR(Dados!G874),\"-\",Dados!G874)","v":""},{"$f":"IF(ISERROR(Dados!H874),\"-\",Dados!H874)","v":""},{"$f":"IF(ISERROR(Dados!I874),\"-\",Dados!I874)","v":""},{"$f":"IF(ISERROR(Dados!J874),\"-\",Dados!J874)","v":""},{"$f":"IF(ISERROR(Dados!K874),\"-\",Dados!K874)","v":""},{"$f":"IF(ISERROR(Dados!L874),\"-\",Dados!L874)","v":""},{"$f":"IF(ISERROR(Dados!M874),\"-\",Dados!M874)","v":""},{"$f":"IF(ISERROR(Dados!N874),\"-\",Dados!N874)","v":""},{"$f":"IF(ISERROR(Dados!O874),\"-\",Dados!O874)","v":""},{"$f":"IF(ISERROR(Dados!P874),\"-\",Dados!P874)","v":""},{"$f":"IF(ISERROR(Dados!Q874),\"-\",Dados!Q874)","v":""},{"$f":"IF(ISERROR(Dados!R874),\"-\",Dados!R874)","v":""},{"$f":"IF(ISERROR(Dados!S874),\"-\",Dados!S874)","v":""},{"$f":"IF(ISERROR(Dados!T874),\"-\",Dados!T874)","v":""},{"$f":"IF(ISERROR(Dados!U874),\"-\",Dados!U874)","v":""},{"$f":"IF(ISERROR(Dados!V874),\"-\",Dados!V874)","v":""},{"$f":"IF(ISERROR(Dados!W874),\"-\",Dados!W874)","v":""},{"$f":"IF(ISERROR(Dados!X874),\"-\",Dados!X874)","v":""},{"$f":"IF(ISERROR(Dados!Y874),\"-\",Dados!Y874)","v":""},{"$f":"IF(ISERROR(Dados!Z874),\"-\",Dados!Z874)","v":""},{"$f":"IF(ISERROR(Dados!AA874),\"-\",Dados!AA874)","v":""},{"$f":"IF(ISERROR(Dados!AB874),\"-\",Dados!AB874)","v":""},{"$f":"IF(ISERROR(Dados!AC874),\"-\",Dados!AC874)","v":""},{"$f":"IF(ISERROR(Dados!AD874),\"-\",Dados!AD874)","v":""},{"$f":"IF(ISERROR(Dados!AE874),\"-\",Dados!AE874)","v":""},{"$f":"IF(ISERROR(Dados!AF874),\"-\",Dados!AF874)","v":""},{"$f":"IF(ISERROR(Dados!AG874),\"-\",Dados!AG874)","v":""}]
[{"$f":"IF(ISERROR(Dados!A875),\"-\",Dados!A875)","v":""},{"$f":"IF(ISERROR(Dados!B875),\"-\",Dados!B875)","v":""},{"$f":"IF(ISERROR(Dados!C875),\"-\",Dados!C875)","v":""},{"$f":"IF(ISERROR(Dados!D875),\"-\",Dados!D875)","v":""},{"$f":"IF(ISERROR(Dados!E875),\"-\",Dados!E875)","v":""},{"$f":"IF(ISERROR(Dados!F875),\"-\",Dados!F875)","v":""},{"$f":"IF(ISERROR(Dados!G875),\"-\",Dados!G875)","v":""},{"$f":"IF(ISERROR(Dados!H875),\"-\",Dados!H875)","v":""},{"$f":"IF(ISERROR(Dados!I875),\"-\",Dados!I875)","v":""},{"$f":"IF(ISERROR(Dados!J875),\"-\",Dados!J875)","v":""},{"$f":"IF(ISERROR(Dados!K875),\"-\",Dados!K875)","v":""},{"$f":"IF(ISERROR(Dados!L875),\"-\",Dados!L875)","v":""},{"$f":"IF(ISERROR(Dados!M875),\"-\",Dados!M875)","v":""},{"$f":"IF(ISERROR(Dados!N875),\"-\",Dados!N875)","v":""},{"$f":"IF(ISERROR(Dados!O875),\"-\",Dados!O875)","v":""},{"$f":"IF(ISERROR(Dados!P875),\"-\",Dados!P875)","v":""},{"$f":"IF(ISERROR(Dados!Q875),\"-\",Dados!Q875)","v":""},{"$f":"IF(ISERROR(Dados!R875),\"-\",Dados!R875)","v":""},{"$f":"IF(ISERROR(Dados!S875),\"-\",Dados!S875)","v":""},{"$f":"IF(ISERROR(Dados!T875),\"-\",Dados!T875)","v":""},{"$f":"IF(ISERROR(Dados!U875),\"-\",Dados!U875)","v":""},{"$f":"IF(ISERROR(Dados!V875),\"-\",Dados!V875)","v":""},{"$f":"IF(ISERROR(Dados!W875),\"-\",Dados!W875)","v":""},{"$f":"IF(ISERROR(Dados!X875),\"-\",Dados!X875)","v":""},{"$f":"IF(ISERROR(Dados!Y875),\"-\",Dados!Y875)","v":""},{"$f":"IF(ISERROR(Dados!Z875),\"-\",Dados!Z875)","v":""},{"$f":"IF(ISERROR(Dados!AA875),\"-\",Dados!AA875)","v":""},{"$f":"IF(ISERROR(Dados!AB875),\"-\",Dados!AB875)","v":""},{"$f":"IF(ISERROR(Dados!AC875),\"-\",Dados!AC875)","v":""},{"$f":"IF(ISERROR(Dados!AD875),\"-\",Dados!AD875)","v":""},{"$f":"IF(ISERROR(Dados!AE875),\"-\",Dados!AE875)","v":""},{"$f":"IF(ISERROR(Dados!AF875),\"-\",Dados!AF875)","v":""},{"$f":"IF(ISERROR(Dados!AG875),\"-\",Dados!AG875)","v":""}]
[{"$f":"IF(ISERROR(Dados!A876),\"-\",Dados!A876)","v":""},{"$f":"IF(ISERROR(Dados!B876),\"-\",Dados!B876)","v":""},{"$f":"IF(ISERROR(Dados!C876),\"-\",Dados!C876)","v":""},{"$f":"IF(ISERROR(Dados!D876),\"-\",Dados!D876)","v":""},{"$f":"IF(ISERROR(Dados!E876),\"-\",Dados!E876)","v":""},{"$f":"IF(ISERROR(Dados!F876),\"-\",Dados!F876)","v":""},{"$f":"IF(ISERROR(Dados!G876),\"-\",Dados!G876)","v":""},{"$f":"IF(ISERROR(Dados!H876),\"-\",Dados!H876)","v":""},{"$f":"IF(ISERROR(Dados!I876),\"-\",Dados!I876)","v":""},{"$f":"IF(ISERROR(Dados!J876),\"-\",Dados!J876)","v":""},{"$f":"IF(ISERROR(Dados!K876),\"-\",Dados!K876)","v":""},{"$f":"IF(ISERROR(Dados!L876),\"-\",Dados!L876)","v":""},{"$f":"IF(ISERROR(Dados!M876),\"-\",Dados!M876)","v":""},{"$f":"IF(ISERROR(Dados!N876),\"-\",Dados!N876)","v":""},{"$f":"IF(ISERROR(Dados!O876),\"-\",Dados!O876)","v":""},{"$f":"IF(ISERROR(Dados!P876),\"-\",Dados!P876)","v":""},{"$f":"IF(ISERROR(Dados!Q876),\"-\",Dados!Q876)","v":""},{"$f":"IF(ISERROR(Dados!R876),\"-\",Dados!R876)","v":""},{"$f":"IF(ISERROR(Dados!S876),\"-\",Dados!S876)","v":""},{"$f":"IF(ISERROR(Dados!T876),\"-\",Dados!T876)","v":""},{"$f":"IF(ISERROR(Dados!U876),\"-\",Dados!U876)","v":""},{"$f":"IF(ISERROR(Dados!V876),\"-\",Dados!V876)","v":""},{"$f":"IF(ISERROR(Dados!W876),\"-\",Dados!W876)","v":""},{"$f":"IF(ISERROR(Dados!X876),\"-\",Dados!X876)","v":""},{"$f":"IF(ISERROR(Dados!Y876),\"-\",Dados!Y876)","v":""},{"$f":"IF(ISERROR(Dados!Z876),\"-\",Dados!Z876)","v":""},{"$f":"IF(ISERROR(Dados!AA876),\"-\",Dados!AA876)","v":""},{"$f":"IF(ISERROR(Dados!AB876),\"-\",Dados!AB876)","v":""},{"$f":"IF(ISERROR(Dados!AC876),\"-\",Dados!AC876)","v":""},{"$f":"IF(ISERROR(Dados!AD876),\"-\",Dados!AD876)","v":""},{"$f":"IF(ISERROR(Dados!AE876),\"-\",Dados!AE876)","v":""},{"$f":"IF(ISERROR(Dados!AF876),\"-\",Dados!AF876)","v":""},{"$f":"IF(ISERROR(Dados!AG876),\"-\",Dados!AG876)","v":""}]
[{"$f":"IF(ISERROR(Dados!A877),\"-\",Dados!A877)","v":""},{"$f":"IF(ISERROR(Dados!B877),\"-\",Dados!B877)","v":""},{"$f":"IF(ISERROR(Dados!C877),\"-\",Dados!C877)","v":""},{"$f":"IF(ISERROR(Dados!D877),\"-\",Dados!D877)","v":""},{"$f":"IF(ISERROR(Dados!E877),\"-\",Dados!E877)","v":""},{"$f":"IF(ISERROR(Dados!F877),\"-\",Dados!F877)","v":""},{"$f":"IF(ISERROR(Dados!G877),\"-\",Dados!G877)","v":""},{"$f":"IF(ISERROR(Dados!H877),\"-\",Dados!H877)","v":""},{"$f":"IF(ISERROR(Dados!I877),\"-\",Dados!I877)","v":""},{"$f":"IF(ISERROR(Dados!J877),\"-\",Dados!J877)","v":""},{"$f":"IF(ISERROR(Dados!K877),\"-\",Dados!K877)","v":""},{"$f":"IF(ISERROR(Dados!L877),\"-\",Dados!L877)","v":""},{"$f":"IF(ISERROR(Dados!M877),\"-\",Dados!M877)","v":""},{"$f":"IF(ISERROR(Dados!N877),\"-\",Dados!N877)","v":""},{"$f":"IF(ISERROR(Dados!O877),\"-\",Dados!O877)","v":""},{"$f":"IF(ISERROR(Dados!P877),\"-\",Dados!P877)","v":""},{"$f":"IF(ISERROR(Dados!Q877),\"-\",Dados!Q877)","v":""},{"$f":"IF(ISERROR(Dados!R877),\"-\",Dados!R877)","v":""},{"$f":"IF(ISERROR(Dados!S877),\"-\",Dados!S877)","v":""},{"$f":"IF(ISERROR(Dados!T877),\"-\",Dados!T877)","v":""},{"$f":"IF(ISERROR(Dados!U877),\"-\",Dados!U877)","v":""},{"$f":"IF(ISERROR(Dados!V877),\"-\",Dados!V877)","v":""},{"$f":"IF(ISERROR(Dados!W877),\"-\",Dados!W877)","v":""},{"$f":"IF(ISERROR(Dados!X877),\"-\",Dados!X877)","v":""},{"$f":"IF(ISERROR(Dados!Y877),\"-\",Dados!Y877)","v":""},{"$f":"IF(ISERROR(Dados!Z877),\"-\",Dados!Z877)","v":""},{"$f":"IF(ISERROR(Dados!AA877),\"-\",Dados!AA877)","v":""},{"$f":"IF(ISERROR(Dados!AB877),\"-\",Dados!AB877)","v":""},{"$f":"IF(ISERROR(Dados!AC877),\"-\",Dados!AC877)","v":""},{"$f":"IF(ISERROR(Dados!AD877),\"-\",Dados!AD877)","v":""},{"$f":"IF(ISERROR(Dados!AE877),\"-\",Dados!AE877)","v":""},{"$f":"IF(ISERROR(Dados!AF877),\"-\",Dados!AF877)","v":""},{"$f":"IF(ISERROR(Dados!AG877),\"-\",Dados!AG877)","v":""}]
[{"$f":"IF(ISERROR(Dados!A878),\"-\",Dados!A878)","v":""},{"$f":"IF(ISERROR(Dados!B878),\"-\",Dados!B878)","v":""},{"$f":"IF(ISERROR(Dados!C878),\"-\",Dados!C878)","v":""},{"$f":"IF(ISERROR(Dados!D878),\"-\",Dados!D878)","v":""},{"$f":"IF(ISERROR(Dados!E878),\"-\",Dados!E878)","v":""},{"$f":"IF(ISERROR(Dados!F878),\"-\",Dados!F878)","v":""},{"$f":"IF(ISERROR(Dados!G878),\"-\",Dados!G878)","v":""},{"$f":"IF(ISERROR(Dados!H878),\"-\",Dados!H878)","v":""},{"$f":"IF(ISERROR(Dados!I878),\"-\",Dados!I878)","v":""},{"$f":"IF(ISERROR(Dados!J878),\"-\",Dados!J878)","v":""},{"$f":"IF(ISERROR(Dados!K878),\"-\",Dados!K878)","v":""},{"$f":"IF(ISERROR(Dados!L878),\"-\",Dados!L878)","v":""},{"$f":"IF(ISERROR(Dados!M878),\"-\",Dados!M878)","v":""},{"$f":"IF(ISERROR(Dados!N878),\"-\",Dados!N878)","v":""},{"$f":"IF(ISERROR(Dados!O878),\"-\",Dados!O878)","v":""},{"$f":"IF(ISERROR(Dados!P878),\"-\",Dados!P878)","v":""},{"$f":"IF(ISERROR(Dados!Q878),\"-\",Dados!Q878)","v":""},{"$f":"IF(ISERROR(Dados!R878),\"-\",Dados!R878)","v":""},{"$f":"IF(ISERROR(Dados!S878),\"-\",Dados!S878)","v":""},{"$f":"IF(ISERROR(Dados!T878),\"-\",Dados!T878)","v":""},{"$f":"IF(ISERROR(Dados!U878),\"-\",Dados!U878)","v":""},{"$f":"IF(ISERROR(Dados!V878),\"-\",Dados!V878)","v":""},{"$f":"IF(ISERROR(Dados!W878),\"-\",Dados!W878)","v":""},{"$f":"IF(ISERROR(Dados!X878),\"-\",Dados!X878)","v":""},{"$f":"IF(ISERROR(Dados!Y878),\"-\",Dados!Y878)","v":""},{"$f":"IF(ISERROR(Dados!Z878),\"-\",Dados!Z878)","v":""},{"$f":"IF(ISERROR(Dados!AA878),\"-\",Dados!AA878)","v":""},{"$f":"IF(ISERROR(Dados!AB878),\"-\",Dados!AB878)","v":""},{"$f":"IF(ISERROR(Dados!AC878),\"-\",Dados!AC878)","v":""},{"$f":"IF(ISERROR(Dados!AD878),\"-\",Dados!AD878)","v":""},{"$f":"IF(ISERROR(Dados!AE878),\"-\",Dados!AE878)","v":""},{"$f":"IF(ISERROR(Dados!AF878),\"-\",Dados!AF878)","v":""},{"$f":"IF(ISERROR(Dados!AG878),\"-\",Dados!AG878)","v":""}]
[{"$f":"IF(ISERROR(Dados!A879),\"-\",Dados!A879)","v":""},{"$f":"IF(ISERROR(Dados!B879),\"-\",Dados!B879)","v":""},{"$f":"IF(ISERROR(Dados!C879),\"-\",Dados!C879)","v":""},{"$f":"IF(ISERROR(Dados!D879),\"-\",Dados!D879)","v":""},{"$f":"IF(ISERROR(Dados!E879),\"-\",Dados!E879)","v":""},{"$f":"IF(ISERROR(Dados!F879),\"-\",Dados!F879)","v":""},{"$f":"IF(ISERROR(Dados!G879),\"-\",Dados!G879)","v":""},{"$f":"IF(ISERROR(Dados!H879),\"-\",Dados!H879)","v":""},{"$f":"IF(ISERROR(Dados!I879),\"-\",Dados!I879)","v":""},{"$f":"IF(ISERROR(Dados!J879),\"-\",Dados!J879)","v":""},{"$f":"IF(ISERROR(Dados!K879),\"-\",Dados!K879)","v":""},{"$f":"IF(ISERROR(Dados!L879),\"-\",Dados!L879)","v":""},{"$f":"IF(ISERROR(Dados!M879),\"-\",Dados!M879)","v":""},{"$f":"IF(ISERROR(Dados!N879),\"-\",Dados!N879)","v":""},{"$f":"IF(ISERROR(Dados!O879),\"-\",Dados!O879)","v":""},{"$f":"IF(ISERROR(Dados!P879),\"-\",Dados!P879)","v":""},{"$f":"IF(ISERROR(Dados!Q879),\"-\",Dados!Q879)","v":""},{"$f":"IF(ISERROR(Dados!R879),\"-\",Dados!R879)","v":""},{"$f":"IF(ISERROR(Dados!S879),\"-\",Dados!S879)","v":""},{"$f":"IF(ISERROR(Dados!T879),\"-\",Dados!T879)","v":""},{"$f":"IF(ISERROR(Dados!U879),\"-\",Dados!U879)","v":""},{"$f":"IF(ISERROR(Dados!V879),\"-\",Dados!V879)","v":""},{"$f":"IF(ISERROR(Dados!W879),\"-\",Dados!W879)","v":""},{"$f":"IF(ISERROR(Dados!X879),\"-\",Dados!X879)","v":""},{"$f":"IF(ISERROR(Dados!Y879),\"-\",Dados!Y879)","v":""},{"$f":"IF(ISERROR(Dados!Z879),\"-\",Dados!Z879)","v":""},{"$f":"IF(ISERROR(Dados!AA879),\"-\",Dados!AA879)","v":""},{"$f":"IF(ISERROR(Dados!AB879),\"-\",Dados!AB879)","v":""},{"$f":"IF(ISERROR(Dados!AC879),\"-\",Dados!AC879)","v":""},{"$f":"IF(ISERROR(Dados!AD879),\"-\",Dados!AD879)","v":""},{"$f":"IF(ISERROR(Dados!AE879),\"-\",Dados!AE879)","v":""},{"$f":"IF(ISERROR(Dados!AF879),\"-\",Dados!AF879)","v":""},{"$f":"IF(ISERROR(Dados!AG879),\"-\",Dados!AG879)","v":""}]
[{"$f":"IF(ISERROR(Dados!A880),\"-\",Dados!A880)","v":""},{"$f":"IF(ISERROR(Dados!B880),\"-\",Dados!B880)","v":""},{"$f":"IF(ISERROR(Dados!C880),\"-\",Dados!C880)","v":""},{"$f":"IF(ISERROR(Dados!D880),\"-\",Dados!D880)","v":""},{"$f":"IF(ISERROR(Dados!E880),\"-\",Dados!E880)","v":""},{"$f":"IF(ISERROR(Dados!F880),\"-\",Dados!F880)","v":""},{"$f":"IF(ISERROR(Dados!G880),\"-\",Dados!G880)","v":""},{"$f":"IF(ISERROR(Dados!H880),\"-\",Dados!H880)","v":""},{"$f":"IF(ISERROR(Dados!I880),\"-\",Dados!I880)","v":""},{"$f":"IF(ISERROR(Dados!J880),\"-\",Dados!J880)","v":""},{"$f":"IF(ISERROR(Dados!K880),\"-\",Dados!K880)","v":""},{"$f":"IF(ISERROR(Dados!L880),\"-\",Dados!L880)","v":""},{"$f":"IF(ISERROR(Dados!M880),\"-\",Dados!M880)","v":""},{"$f":"IF(ISERROR(Dados!N880),\"-\",Dados!N880)","v":""},{"$f":"IF(ISERROR(Dados!O880),\"-\",Dados!O880)","v":""},{"$f":"IF(ISERROR(Dados!P880),\"-\",Dados!P880)","v":""},{"$f":"IF(ISERROR(Dados!Q880),\"-\",Dados!Q880)","v":""},{"$f":"IF(ISERROR(Dados!R880),\"-\",Dados!R880)","v":""},{"$f":"IF(ISERROR(Dados!S880),\"-\",Dados!S880)","v":""},{"$f":"IF(ISERROR(Dados!T880),\"-\",Dados!T880)","v":""},{"$f":"IF(ISERROR(Dados!U880),\"-\",Dados!U880)","v":""},{"$f":"IF(ISERROR(Dados!V880),\"-\",Dados!V880)","v":""},{"$f":"IF(ISERROR(Dados!W880),\"-\",Dados!W880)","v":""},{"$f":"IF(ISERROR(Dados!X880),\"-\",Dados!X880)","v":""},{"$f":"IF(ISERROR(Dados!Y880),\"-\",Dados!Y880)","v":""},{"$f":"IF(ISERROR(Dados!Z880),\"-\",Dados!Z880)","v":""},{"$f":"IF(ISERROR(Dados!AA880),\"-\",Dados!AA880)","v":""},{"$f":"IF(ISERROR(Dados!AB880),\"-\",Dados!AB880)","v":""},{"$f":"IF(ISERROR(Dados!AC880),\"-\",Dados!AC880)","v":""},{"$f":"IF(ISERROR(Dados!AD880),\"-\",Dados!AD880)","v":""},{"$f":"IF(ISERROR(Dados!AE880),\"-\",Dados!AE880)","v":""},{"$f":"IF(ISERROR(Dados!AF880),\"-\",Dados!AF880)","v":""},{"$f":"IF(ISERROR(Dados!AG880),\"-\",Dados!AG880)","v":""}]
[{"$f":"IF(ISERROR(Dados!A881),\"-\",Dados!A881)","v":""},{"$f":"IF(ISERROR(Dados!B881),\"-\",Dados!B881)","v":""},{"$f":"IF(ISERROR(Dados!C881),\"-\",Dados!C881)","v":""},{"$f":"IF(ISERROR(Dados!D881),\"-\",Dados!D881)","v":""},{"$f":"IF(ISERROR(Dados!E881),\"-\",Dados!E881)","v":""},{"$f":"IF(ISERROR(Dados!F881),\"-\",Dados!F881)","v":""},{"$f":"IF(ISERROR(Dados!G881),\"-\",Dados!G881)","v":""},{"$f":"IF(ISERROR(Dados!H881),\"-\",Dados!H881)","v":""},{"$f":"IF(ISERROR(Dados!I881),\"-\",Dados!I881)","v":""},{"$f":"IF(ISERROR(Dados!J881),\"-\",Dados!J881)","v":""},{"$f":"IF(ISERROR(Dados!K881),\"-\",Dados!K881)","v":""},{"$f":"IF(ISERROR(Dados!L881),\"-\",Dados!L881)","v":""},{"$f":"IF(ISERROR(Dados!M881),\"-\",Dados!M881)","v":""},{"$f":"IF(ISERROR(Dados!N881),\"-\",Dados!N881)","v":""},{"$f":"IF(ISERROR(Dados!O881),\"-\",Dados!O881)","v":""},{"$f":"IF(ISERROR(Dados!P881),\"-\",Dados!P881)","v":""},{"$f":"IF(ISERROR(Dados!Q881),\"-\",Dados!Q881)","v":""},{"$f":"IF(ISERROR(Dados!R881),\"-\",Dados!R881)","v":""},{"$f":"IF(ISERROR(Dados!S881),\"-\",Dados!S881)","v":""},{"$f":"IF(ISERROR(Dados!T881),\"-\",Dados!T881)","v":""},{"$f":"IF(ISERROR(Dados!U881),\"-\",Dados!U881)","v":""},{"$f":"IF(ISERROR(Dados!V881),\"-\",Dados!V881)","v":""},{"$f":"IF(ISERROR(Dados!W881),\"-\",Dados!W881)","v":""},{"$f":"IF(ISERROR(Dados!X881),\"-\",Dados!X881)","v":""},{"$f":"IF(ISERROR(Dados!Y881),\"-\",Dados!Y881)","v":""},{"$f":"IF(ISERROR(Dados!Z881),\"-\",Dados!Z881)","v":""},{"$f":"IF(ISERROR(Dados!AA881),\"-\",Dados!AA881)","v":""},{"$f":"IF(ISERROR(Dados!AB881),\"-\",Dados!AB881)","v":""},{"$f":"IF(ISERROR(Dados!AC881),\"-\",Dados!AC881)","v":""},{"$f":"IF(ISERROR(Dados!AD881),\"-\",Dados!AD881)","v":""},{"$f":"IF(ISERROR(Dados!AE881),\"-\",Dados!AE881)","v":""},{"$f":"IF(ISERROR(Dados!AF881),\"-\",Dados!AF881)","v":""},{"$f":"IF(ISERROR(Dados!AG881),\"-\",Dados!AG881)","v":""}]
[{"$f":"IF(ISERROR(Dados!A882),\"-\",Dados!A882)","v":""},{"$f":"IF(ISERROR(Dados!B882),\"-\",Dados!B882)","v":""},{"$f":"IF(ISERROR(Dados!C882),\"-\",Dados!C882)","v":""},{"$f":"IF(ISERROR(Dados!D882),\"-\",Dados!D882)","v":""},{"$f":"IF(ISERROR(Dados!E882),\"-\",Dados!E882)","v":""},{"$f":"IF(ISERROR(Dados!F882),\"-\",Dados!F882)","v":""},{"$f":"IF(ISERROR(Dados!G882),\"-\",Dados!G882)","v":""},{"$f":"IF(ISERROR(Dados!H882),\"-\",Dados!H882)","v":""},{"$f":"IF(ISERROR(Dados!I882),\"-\",Dados!I882)","v":""},{"$f":"IF(ISERROR(Dados!J882),\"-\",Dados!J882)","v":""},{"$f":"IF(ISERROR(Dados!K882),\"-\",Dados!K882)","v":""},{"$f":"IF(ISERROR(Dados!L882),\"-\",Dados!L882)","v":""},{"$f":"IF(ISERROR(Dados!M882),\"-\",Dados!M882)","v":""},{"$f":"IF(ISERROR(Dados!N882),\"-\",Dados!N882)","v":""},{"$f":"IF(ISERROR(Dados!O882),\"-\",Dados!O882)","v":""},{"$f":"IF(ISERROR(Dados!P882),\"-\",Dados!P882)","v":""},{"$f":"IF(ISERROR(Dados!Q882),\"-\",Dados!Q882)","v":""},{"$f":"IF(ISERROR(Dados!R882),\"-\",Dados!R882)","v":""},{"$f":"IF(ISERROR(Dados!S882),\"-\",Dados!S882)","v":""},{"$f":"IF(ISERROR(Dados!T882),\"-\",Dados!T882)","v":""},{"$f":"IF(ISERROR(Dados!U882),\"-\",Dados!U882)","v":""},{"$f":"IF(ISERROR(Dados!V882),\"-\",Dados!V882)","v":""},{"$f":"IF(ISERROR(Dados!W882),\"-\",Dados!W882)","v":""},{"$f":"IF(ISERROR(Dados!X882),\"-\",Dados!X882)","v":""},{"$f":"IF(ISERROR(Dados!Y882),\"-\",Dados!Y882)","v":""},{"$f":"IF(ISERROR(Dados!Z882),\"-\",Dados!Z882)","v":""},{"$f":"IF(ISERROR(Dados!AA882),\"-\",Dados!AA882)","v":""},{"$f":"IF(ISERROR(Dados!AB882),\"-\",Dados!AB882)","v":""},{"$f":"IF(ISERROR(Dados!AC882),\"-\",Dados!AC882)","v":""},{"$f":"IF(ISERROR(Dados!AD882),\"-\",Dados!AD882)","v":""},{"$f":"IF(ISERROR(Dados!AE882),\"-\",Dados!AE882)","v":""},{"$f":"IF(ISERROR(Dados!AF882),\"-\",Dados!AF882)","v":""},{"$f":"IF(ISERROR(Dados!AG882),\"-\",Dados!AG882)","v":""}]
[{"$f":"IF(ISERROR(Dados!A883),\"-\",Dados!A883)","v":""},{"$f":"IF(ISERROR(Dados!B883),\"-\",Dados!B883)","v":""},{"$f":"IF(ISERROR(Dados!C883),\"-\",Dados!C883)","v":""},{"$f":"IF(ISERROR(Dados!D883),\"-\",Dados!D883)","v":""},{"$f":"IF(ISERROR(Dados!E883),\"-\",Dados!E883)","v":""},{"$f":"IF(ISERROR(Dados!F883),\"-\",Dados!F883)","v":""},{"$f":"IF(ISERROR(Dados!G883),\"-\",Dados!G883)","v":""},{"$f":"IF(ISERROR(Dados!H883),\"-\",Dados!H883)","v":""},{"$f":"IF(ISERROR(Dados!I883),\"-\",Dados!I883)","v":""},{"$f":"IF(ISERROR(Dados!J883),\"-\",Dados!J883)","v":""},{"$f":"IF(ISERROR(Dados!K883),\"-\",Dados!K883)","v":""},{"$f":"IF(ISERROR(Dados!L883),\"-\",Dados!L883)","v":""},{"$f":"IF(ISERROR(Dados!M883),\"-\",Dados!M883)","v":""},{"$f":"IF(ISERROR(Dados!N883),\"-\",Dados!N883)","v":""},{"$f":"IF(ISERROR(Dados!O883),\"-\",Dados!O883)","v":""},{"$f":"IF(ISERROR(Dados!P883),\"-\",Dados!P883)","v":""},{"$f":"IF(ISERROR(Dados!Q883),\"-\",Dados!Q883)","v":""},{"$f":"IF(ISERROR(Dados!R883),\"-\",Dados!R883)","v":""},{"$f":"IF(ISERROR(Dados!S883),\"-\",Dados!S883)","v":""},{"$f":"IF(ISERROR(Dados!T883),\"-\",Dados!T883)","v":""},{"$f":"IF(ISERROR(Dados!U883),\"-\",Dados!U883)","v":""},{"$f":"IF(ISERROR(Dados!V883),\"-\",Dados!V883)","v":""},{"$f":"IF(ISERROR(Dados!W883),\"-\",Dados!W883)","v":""},{"$f":"IF(ISERROR(Dados!X883),\"-\",Dados!X883)","v":""},{"$f":"IF(ISERROR(Dados!Y883),\"-\",Dados!Y883)","v":""},{"$f":"IF(ISERROR(Dados!Z883),\"-\",Dados!Z883)","v":""},{"$f":"IF(ISERROR(Dados!AA883),\"-\",Dados!AA883)","v":""},{"$f":"IF(ISERROR(Dados!AB883),\"-\",Dados!AB883)","v":""},{"$f":"IF(ISERROR(Dados!AC883),\"-\",Dados!AC883)","v":""},{"$f":"IF(ISERROR(Dados!AD883),\"-\",Dados!AD883)","v":""},{"$f":"IF(ISERROR(Dados!AE883),\"-\",Dados!AE883)","v":""},{"$f":"IF(ISERROR(Dados!AF883),\"-\",Dados!AF883)","v":""},{"$f":"IF(ISERROR(Dados!AG883),\"-\",Dados!AG883)","v":""}]
[{"$f":"IF(ISERROR(Dados!A884),\"-\",Dados!A884)","v":""},{"$f":"IF(ISERROR(Dados!B884),\"-\",Dados!B884)","v":""},{"$f":"IF(ISERROR(Dados!C884),\"-\",Dados!C884)","v":""},{"$f":"IF(ISERROR(Dados!D884),\"-\",Dados!D884)","v":""},{"$f":"IF(ISERROR(Dados!E884),\"-\",Dados!E884)","v":""},{"$f":"IF(ISERROR(Dados!F884),\"-\",Dados!F884)","v":""},{"$f":"IF(ISERROR(Dados!G884),\"-\",Dados!G884)","v":""},{"$f":"IF(ISERROR(Dados!H884),\"-\",Dados!H884)","v":""},{"$f":"IF(ISERROR(Dados!I884),\"-\",Dados!I884)","v":""},{"$f":"IF(ISERROR(Dados!J884),\"-\",Dados!J884)","v":""},{"$f":"IF(ISERROR(Dados!K884),\"-\",Dados!K884)","v":""},{"$f":"IF(ISERROR(Dados!L884),\"-\",Dados!L884)","v":""},{"$f":"IF(ISERROR(Dados!M884),\"-\",Dados!M884)","v":""},{"$f":"IF(ISERROR(Dados!N884),\"-\",Dados!N884)","v":""},{"$f":"IF(ISERROR(Dados!O884),\"-\",Dados!O884)","v":""},{"$f":"IF(ISERROR(Dados!P884),\"-\",Dados!P884)","v":""},{"$f":"IF(ISERROR(Dados!Q884),\"-\",Dados!Q884)","v":""},{"$f":"IF(ISERROR(Dados!R884),\"-\",Dados!R884)","v":""},{"$f":"IF(ISERROR(Dados!S884),\"-\",Dados!S884)","v":""},{"$f":"IF(ISERROR(Dados!T884),\"-\",Dados!T884)","v":""},{"$f":"IF(ISERROR(Dados!U884),\"-\",Dados!U884)","v":""},{"$f":"IF(ISERROR(Dados!V884),\"-\",Dados!V884)","v":""},{"$f":"IF(ISERROR(Dados!W884),\"-\",Dados!W884)","v":""},{"$f":"IF(ISERROR(Dados!X884),\"-\",Dados!X884)","v":""},{"$f":"IF(ISERROR(Dados!Y884),\"-\",Dados!Y884)","v":""},{"$f":"IF(ISERROR(Dados!Z884),\"-\",Dados!Z884)","v":""},{"$f":"IF(ISERROR(Dados!AA884),\"-\",Dados!AA884)","v":""},{"$f":"IF(ISERROR(Dados!AB884),\"-\",Dados!AB884)","v":""},{"$f":"IF(ISERROR(Dados!AC884),\"-\",Dados!AC884)","v":""},{"$f":"IF(ISERROR(Dados!AD884),\"-\",Dados!AD884)","v":""},{"$f":"IF(ISERROR(Dados!AE884),\"-\",Dados!AE884)","v":""},{"$f":"IF(ISERROR(Dados!AF884),\"-\",Dados!AF884)","v":""},{"$f":"IF(ISERROR(Dados!AG884),\"-\",Dados!AG884)","v":""}]
[{"$f":"IF(ISERROR(Dados!A885),\"-\",Dados!A885)","v":""},{"$f":"IF(ISERROR(Dados!B885),\"-\",Dados!B885)","v":""},{"$f":"IF(ISERROR(Dados!C885),\"-\",Dados!C885)","v":""},{"$f":"IF(ISERROR(Dados!D885),\"-\",Dados!D885)","v":""},{"$f":"IF(ISERROR(Dados!E885),\"-\",Dados!E885)","v":""},{"$f":"IF(ISERROR(Dados!F885),\"-\",Dados!F885)","v":""},{"$f":"IF(ISERROR(Dados!G885),\"-\",Dados!G885)","v":""},{"$f":"IF(ISERROR(Dados!H885),\"-\",Dados!H885)","v":""},{"$f":"IF(ISERROR(Dados!I885),\"-\",Dados!I885)","v":""},{"$f":"IF(ISERROR(Dados!J885),\"-\",Dados!J885)","v":""},{"$f":"IF(ISERROR(Dados!K885),\"-\",Dados!K885)","v":""},{"$f":"IF(ISERROR(Dados!L885),\"-\",Dados!L885)","v":""},{"$f":"IF(ISERROR(Dados!M885),\"-\",Dados!M885)","v":""},{"$f":"IF(ISERROR(Dados!N885),\"-\",Dados!N885)","v":""},{"$f":"IF(ISERROR(Dados!O885),\"-\",Dados!O885)","v":""},{"$f":"IF(ISERROR(Dados!P885),\"-\",Dados!P885)","v":""},{"$f":"IF(ISERROR(Dados!Q885),\"-\",Dados!Q885)","v":""},{"$f":"IF(ISERROR(Dados!R885),\"-\",Dados!R885)","v":""},{"$f":"IF(ISERROR(Dados!S885),\"-\",Dados!S885)","v":""},{"$f":"IF(ISERROR(Dados!T885),\"-\",Dados!T885)","v":""},{"$f":"IF(ISERROR(Dados!U885),\"-\",Dados!U885)","v":""},{"$f":"IF(ISERROR(Dados!V885),\"-\",Dados!V885)","v":""},{"$f":"IF(ISERROR(Dados!W885),\"-\",Dados!W885)","v":""},{"$f":"IF(ISERROR(Dados!X885),\"-\",Dados!X885)","v":""},{"$f":"IF(ISERROR(Dados!Y885),\"-\",Dados!Y885)","v":""},{"$f":"IF(ISERROR(Dados!Z885),\"-\",Dados!Z885)","v":""},{"$f":"IF(ISERROR(Dados!AA885),\"-\",Dados!AA885)","v":""},{"$f":"IF(ISERROR(Dados!AB885),\"-\",Dados!AB885)","v":""},{"$f":"IF(ISERROR(Dados!AC885),\"-\",Dados!AC885)","v":""},{"$f":"IF(ISERROR(Dados!AD885),\"-\",Dados!AD885)","v":""},{"$f":"IF(ISERROR(Dados!AE885),\"-\",Dados!AE885)","v":""},{"$f":"IF(ISERROR(Dados!AF885),\"-\",Dados!AF885)","v":""},{"$f":"IF(ISERROR(Dados!AG885),\"-\",Dados!AG885)","v":""}]
[{"$f":"IF(ISERROR(Dados!A886),\"-\",Dados!A886)","v":""},{"$f":"IF(ISERROR(Dados!B886),\"-\",Dados!B886)","v":""},{"$f":"IF(ISERROR(Dados!C886),\"-\",Dados!C886)","v":""},{"$f":"IF(ISERROR(Dados!D886),\"-\",Dados!D886)","v":""},{"$f":"IF(ISERROR(Dados!E886),\"-\",Dados!E886)","v":""},{"$f":"IF(ISERROR(Dados!F886),\"-\",Dados!F886)","v":""},{"$f":"IF(ISERROR(Dados!G886),\"-\",Dados!G886)","v":""},{"$f":"IF(ISERROR(Dados!H886),\"-\",Dados!H886)","v":""},{"$f":"IF(ISERROR(Dados!I886),\"-\",Dados!I886)","v":""},{"$f":"IF(ISERROR(Dados!J886),\"-\",Dados!J886)","v":""},{"$f":"IF(ISERROR(Dados!K886),\"-\",Dados!K886)","v":""},{"$f":"IF(ISERROR(Dados!L886),\"-\",Dados!L886)","v":""},{"$f":"IF(ISERROR(Dados!M886),\"-\",Dados!M886)","v":""},{"$f":"IF(ISERROR(Dados!N886),\"-\",Dados!N886)","v":""},{"$f":"IF(ISERROR(Dados!O886),\"-\",Dados!O886)","v":""},{"$f":"IF(ISERROR(Dados!P886),\"-\",Dados!P886)","v":""},{"$f":"IF(ISERROR(Dados!Q886),\"-\",Dados!Q886)","v":""},{"$f":"IF(ISERROR(Dados!R886),\"-\",Dados!R886)","v":""},{"$f":"IF(ISERROR(Dados!S886),\"-\",Dados!S886)","v":""},{"$f":"IF(ISERROR(Dados!T886),\"-\",Dados!T886)","v":""},{"$f":"IF(ISERROR(Dados!U886),\"-\",Dados!U886)","v":""},{"$f":"IF(ISERROR(Dados!V886),\"-\",Dados!V886)","v":""},{"$f":"IF(ISERROR(Dados!W886),\"-\",Dados!W886)","v":""},{"$f":"IF(ISERROR(Dados!X886),\"-\",Dados!X886)","v":""},{"$f":"IF(ISERROR(Dados!Y886),\"-\",Dados!Y886)","v":""},{"$f":"IF(ISERROR(Dados!Z886),\"-\",Dados!Z886)","v":""},{"$f":"IF(ISERROR(Dados!AA886),\"-\",Dados!AA886)","v":""},{"$f":"IF(ISERROR(Dados!AB886),\"-\",Dados!AB886)","v":""},{"$f":"IF(ISERROR(Dados!AC886),\"-\",Dados!AC886)","v":""},{"$f":"IF(ISERROR(Dados!AD886),\"-\",Dados!AD886)","v":""},{"$f":"IF(ISERROR(Dados!AE886),\"-\",Dados!AE886)","v":""},{"$f":"IF(ISERROR(Dados!AF886),\"-\",Dados!AF886)","v":""},{"$f":"IF(ISERROR(Dados!AG886),\"-\",Dados!AG886)","v":""}]
[{"$f":"IF(ISERROR(Dados!A887),\"-\",Dados!A887)","v":""},{"$f":"IF(ISERROR(Dados!B887),\"-\",Dados!B887)","v":""},{"$f":"IF(ISERROR(Dados!C887),\"-\",Dados!C887)","v":""},{"$f":"IF(ISERROR(Dados!D887),\"-\",Dados!D887)","v":""},{"$f":"IF(ISERROR(Dados!E887),\"-\",Dados!E887)","v":""},{"$f":"IF(ISERROR(Dados!F887),\"-\",Dados!F887)","v":""},{"$f":"IF(ISERROR(Dados!G887),\"-\",Dados!G887)","v":""},{"$f":"IF(ISERROR(Dados!H887),\"-\",Dados!H887)","v":""},{"$f":"IF(ISERROR(Dados!I887),\"-\",Dados!I887)","v":""},{"$f":"IF(ISERROR(Dados!J887),\"-\",Dados!J887)","v":""},{"$f":"IF(ISERROR(Dados!K887),\"-\",Dados!K887)","v":""},{"$f":"IF(ISERROR(Dados!L887),\"-\",Dados!L887)","v":""},{"$f":"IF(ISERROR(Dados!M887),\"-\",Dados!M887)","v":""},{"$f":"IF(ISERROR(Dados!N887),\"-\",Dados!N887)","v":""},{"$f":"IF(ISERROR(Dados!O887),\"-\",Dados!O887)","v":""},{"$f":"IF(ISERROR(Dados!P887),\"-\",Dados!P887)","v":""},{"$f":"IF(ISERROR(Dados!Q887),\"-\",Dados!Q887)","v":""},{"$f":"IF(ISERROR(Dados!R887),\"-\",Dados!R887)","v":""},{"$f":"IF(ISERROR(Dados!S887),\"-\",Dados!S887)","v":""},{"$f":"IF(ISERROR(Dados!T887),\"-\",Dados!T887)","v":""},{"$f":"IF(ISERROR(Dados!U887),\"-\",Dados!U887)","v":""},{"$f":"IF(ISERROR(Dados!V887),\"-\",Dados!V887)","v":""},{"$f":"IF(ISERROR(Dados!W887),\"-\",Dados!W887)","v":""},{"$f":"IF(ISERROR(Dados!X887),\"-\",Dados!X887)","v":""},{"$f":"IF(ISERROR(Dados!Y887),\"-\",Dados!Y887)","v":""},{"$f":"IF(ISERROR(Dados!Z887),\"-\",Dados!Z887)","v":""},{"$f":"IF(ISERROR(Dados!AA887),\"-\",Dados!AA887)","v":""},{"$f":"IF(ISERROR(Dados!AB887),\"-\",Dados!AB887)","v":""},{"$f":"IF(ISERROR(Dados!AC887),\"-\",Dados!AC887)","v":""},{"$f":"IF(ISERROR(Dados!AD887),\"-\",Dados!AD887)","v":""},{"$f":"IF(ISERROR(Dados!AE887),\"-\",Dados!AE887)","v":""},{"$f":"IF(ISERROR(Dados!AF887),\"-\",Dados!AF887)","v":""},{"$f":"IF(ISERROR(Dados!AG887),\"-\",Dados!AG887)","v":""}]
[{"$f":"IF(ISERROR(Dados!A888),\"-\",Dados!A888)","v":""},{"$f":"IF(ISERROR(Dados!B888),\"-\",Dados!B888)","v":""},{"$f":"IF(ISERROR(Dados!C888),\"-\",Dados!C888)","v":""},{"$f":"IF(ISERROR(Dados!D888),\"-\",Dados!D888)","v":""},{"$f":"IF(ISERROR(Dados!E888),\"-\",Dados!E888)","v":""},{"$f":"IF(ISERROR(Dados!F888),\"-\",Dados!F888)","v":""},{"$f":"IF(ISERROR(Dados!G888),\"-\",Dados!G888)","v":""},{"$f":"IF(ISERROR(Dados!H888),\"-\",Dados!H888)","v":""},{"$f":"IF(ISERROR(Dados!I888),\"-\",Dados!I888)","v":""},{"$f":"IF(ISERROR(Dados!J888),\"-\",Dados!J888)","v":""},{"$f":"IF(ISERROR(Dados!K888),\"-\",Dados!K888)","v":""},{"$f":"IF(ISERROR(Dados!L888),\"-\",Dados!L888)","v":""},{"$f":"IF(ISERROR(Dados!M888),\"-\",Dados!M888)","v":""},{"$f":"IF(ISERROR(Dados!N888),\"-\",Dados!N888)","v":""},{"$f":"IF(ISERROR(Dados!O888),\"-\",Dados!O888)","v":""},{"$f":"IF(ISERROR(Dados!P888),\"-\",Dados!P888)","v":""},{"$f":"IF(ISERROR(Dados!Q888),\"-\",Dados!Q888)","v":""},{"$f":"IF(ISERROR(Dados!R888),\"-\",Dados!R888)","v":""},{"$f":"IF(ISERROR(Dados!S888),\"-\",Dados!S888)","v":""},{"$f":"IF(ISERROR(Dados!T888),\"-\",Dados!T888)","v":""},{"$f":"IF(ISERROR(Dados!U888),\"-\",Dados!U888)","v":""},{"$f":"IF(ISERROR(Dados!V888),\"-\",Dados!V888)","v":""},{"$f":"IF(ISERROR(Dados!W888),\"-\",Dados!W888)","v":""},{"$f":"IF(ISERROR(Dados!X888),\"-\",Dados!X888)","v":""},{"$f":"IF(ISERROR(Dados!Y888),\"-\",Dados!Y888)","v":""},{"$f":"IF(ISERROR(Dados!Z888),\"-\",Dados!Z888)","v":""},{"$f":"IF(ISERROR(Dados!AA888),\"-\",Dados!AA888)","v":""},{"$f":"IF(ISERROR(Dados!AB888),\"-\",Dados!AB888)","v":""},{"$f":"IF(ISERROR(Dados!AC888),\"-\",Dados!AC888)","v":""},{"$f":"IF(ISERROR(Dados!AD888),\"-\",Dados!AD888)","v":""},{"$f":"IF(ISERROR(Dados!AE888),\"-\",Dados!AE888)","v":""},{"$f":"IF(ISERROR(Dados!AF888),\"-\",Dados!AF888)","v":""},{"$f":"IF(ISERROR(Dados!AG888),\"-\",Dados!AG888)","v":""}]
[{"$f":"IF(ISERROR(Dados!A889),\"-\",Dados!A889)","v":""},{"$f":"IF(ISERROR(Dados!B889),\"-\",Dados!B889)","v":""},{"$f":"IF(ISERROR(Dados!C889),\"-\",Dados!C889)","v":""},{"$f":"IF(ISERROR(Dados!D889),\"-\",Dados!D889)","v":""},{"$f":"IF(ISERROR(Dados!E889),\"-\",Dados!E889)","v":""},{"$f":"IF(ISERROR(Dados!F889),\"-\",Dados!F889)","v":""},{"$f":"IF(ISERROR(Dados!G889),\"-\",Dados!G889)","v":""},{"$f":"IF(ISERROR(Dados!H889),\"-\",Dados!H889)","v":""},{"$f":"IF(ISERROR(Dados!I889),\"-\",Dados!I889)","v":""},{"$f":"IF(ISERROR(Dados!J889),\"-\",Dados!J889)","v":""},{"$f":"IF(ISERROR(Dados!K889),\"-\",Dados!K889)","v":""},{"$f":"IF(ISERROR(Dados!L889),\"-\",Dados!L889)","v":""},{"$f":"IF(ISERROR(Dados!M889),\"-\",Dados!M889)","v":""},{"$f":"IF(ISERROR(Dados!N889),\"-\",Dados!N889)","v":""},{"$f":"IF(ISERROR(Dados!O889),\"-\",Dados!O889)","v":""},{"$f":"IF(ISERROR(Dados!P889),\"-\",Dados!P889)","v":""},{"$f":"IF(ISERROR(Dados!Q889),\"-\",Dados!Q889)","v":""},{"$f":"IF(ISERROR(Dados!R889),\"-\",Dados!R889)","v":""},{"$f":"IF(ISERROR(Dados!S889),\"-\",Dados!S889)","v":""},{"$f":"IF(ISERROR(Dados!T889),\"-\",Dados!T889)","v":""},{"$f":"IF(ISERROR(Dados!U889),\"-\",Dados!U889)","v":""},{"$f":"IF(ISERROR(Dados!V889),\"-\",Dados!V889)","v":""},{"$f":"IF(ISERROR(Dados!W889),\"-\",Dados!W889)","v":""},{"$f":"IF(ISERROR(Dados!X889),\"-\",Dados!X889)","v":""},{"$f":"IF(ISERROR(Dados!Y889),\"-\",Dados!Y889)","v":""},{"$f":"IF(ISERROR(Dados!Z889),\"-\",Dados!Z889)","v":""},{"$f":"IF(ISERROR(Dados!AA889),\"-\",Dados!AA889)","v":""},{"$f":"IF(ISERROR(Dados!AB889),\"-\",Dados!AB889)","v":""},{"$f":"IF(ISERROR(Dados!AC889),\"-\",Dados!AC889)","v":""},{"$f":"IF(ISERROR(Dados!AD889),\"-\",Dados!AD889)","v":""},{"$f":"IF(ISERROR(Dados!AE889),\"-\",Dados!AE889)","v":""},{"$f":"IF(ISERROR(Dados!AF889),\"-\",Dados!AF889)","v":""},{"$f":"IF(ISERROR(Dados!AG889),\"-\",Dados!AG889)","v":""}]
[{"$f":"IF(ISERROR(Dados!A890),\"-\",Dados!A890)","v":""},{"$f":"IF(ISERROR(Dados!B890),\"-\",Dados!B890)","v":""},{"$f":"IF(ISERROR(Dados!C890),\"-\",Dados!C890)","v":""},{"$f":"IF(ISERROR(Dados!D890),\"-\",Dados!D890)","v":""},{"$f":"IF(ISERROR(Dados!E890),\"-\",Dados!E890)","v":""},{"$f":"IF(ISERROR(Dados!F890),\"-\",Dados!F890)","v":""},{"$f":"IF(ISERROR(Dados!G890),\"-\",Dados!G890)","v":""},{"$f":"IF(ISERROR(Dados!H890),\"-\",Dados!H890)","v":""},{"$f":"IF(ISERROR(Dados!I890),\"-\",Dados!I890)","v":""},{"$f":"IF(ISERROR(Dados!J890),\"-\",Dados!J890)","v":""},{"$f":"IF(ISERROR(Dados!K890),\"-\",Dados!K890)","v":""},{"$f":"IF(ISERROR(Dados!L890),\"-\",Dados!L890)","v":""},{"$f":"IF(ISERROR(Dados!M890),\"-\",Dados!M890)","v":""},{"$f":"IF(ISERROR(Dados!N890),\"-\",Dados!N890)","v":""},{"$f":"IF(ISERROR(Dados!O890),\"-\",Dados!O890)","v":""},{"$f":"IF(ISERROR(Dados!P890),\"-\",Dados!P890)","v":""},{"$f":"IF(ISERROR(Dados!Q890),\"-\",Dados!Q890)","v":""},{"$f":"IF(ISERROR(Dados!R890),\"-\",Dados!R890)","v":""},{"$f":"IF(ISERROR(Dados!S890),\"-\",Dados!S890)","v":""},{"$f":"IF(ISERROR(Dados!T890),\"-\",Dados!T890)","v":""},{"$f":"IF(ISERROR(Dados!U890),\"-\",Dados!U890)","v":""},{"$f":"IF(ISERROR(Dados!V890),\"-\",Dados!V890)","v":""},{"$f":"IF(ISERROR(Dados!W890),\"-\",Dados!W890)","v":""},{"$f":"IF(ISERROR(Dados!X890),\"-\",Dados!X890)","v":""},{"$f":"IF(ISERROR(Dados!Y890),\"-\",Dados!Y890)","v":""},{"$f":"IF(ISERROR(Dados!Z890),\"-\",Dados!Z890)","v":""},{"$f":"IF(ISERROR(Dados!AA890),\"-\",Dados!AA890)","v":""},{"$f":"IF(ISERROR(Dados!AB890),\"-\",Dados!AB890)","v":""},{"$f":"IF(ISERROR(Dados!AC890),\"-\",Dados!AC890)","v":""},{"$f":"IF(ISERROR(Dados!AD890),\"-\",Dados!AD890)","v":""},{"$f":"IF(ISERROR(Dados!AE890),\"-\",Dados!AE890)","v":""},{"$f":"IF(ISERROR(Dados!AF890),\"-\",Dados!AF890)","v":""},{"$f":"IF(ISERROR(Dados!AG890),\"-\",Dados!AG890)","v":""}]
[{"$f":"IF(ISERROR(Dados!A891),\"-\",Dados!A891)","v":""},{"$f":"IF(ISERROR(Dados!B891),\"-\",Dados!B891)","v":""},{"$f":"IF(ISERROR(Dados!C891),\"-\",Dados!C891)","v":""},{"$f":"IF(ISERROR(Dados!D891),\"-\",Dados!D891)","v":""},{"$f":"IF(ISERROR(Dados!E891),\"-\",Dados!E891)","v":""},{"$f":"IF(ISERROR(Dados!F891),\"-\",Dados!F891)","v":""},{"$f":"IF(ISERROR(Dados!G891),\"-\",Dados!G891)","v":""},{"$f":"IF(ISERROR(Dados!H891),\"-\",Dados!H891)","v":""},{"$f":"IF(ISERROR(Dados!I891),\"-\",Dados!I891)","v":""},{"$f":"IF(ISERROR(Dados!J891),\"-\",Dados!J891)","v":""},{"$f":"IF(ISERROR(Dados!K891),\"-\",Dados!K891)","v":""},{"$f":"IF(ISERROR(Dados!L891),\"-\",Dados!L891)","v":""},{"$f":"IF(ISERROR(Dados!M891),\"-\",Dados!M891)","v":""},{"$f":"IF(ISERROR(Dados!N891),\"-\",Dados!N891)","v":""},{"$f":"IF(ISERROR(Dados!O891),\"-\",Dados!O891)","v":""},{"$f":"IF(ISERROR(Dados!P891),\"-\",Dados!P891)","v":""},{"$f":"IF(ISERROR(Dados!Q891),\"-\",Dados!Q891)","v":""},{"$f":"IF(ISERROR(Dados!R891),\"-\",Dados!R891)","v":""},{"$f":"IF(ISERROR(Dados!S891),\"-\",Dados!S891)","v":""},{"$f":"IF(ISERROR(Dados!T891),\"-\",Dados!T891)","v":""},{"$f":"IF(ISERROR(Dados!U891),\"-\",Dados!U891)","v":""},{"$f":"IF(ISERROR(Dados!V891),\"-\",Dados!V891)","v":""},{"$f":"IF(ISERROR(Dados!W891),\"-\",Dados!W891)","v":""},{"$f":"IF(ISERROR(Dados!X891),\"-\",Dados!X891)","v":""},{"$f":"IF(ISERROR(Dados!Y891),\"-\",Dados!Y891)","v":""},{"$f":"IF(ISERROR(Dados!Z891),\"-\",Dados!Z891)","v":""},{"$f":"IF(ISERROR(Dados!AA891),\"-\",Dados!AA891)","v":""},{"$f":"IF(ISERROR(Dados!AB891),\"-\",Dados!AB891)","v":""},{"$f":"IF(ISERROR(Dados!AC891),\"-\",Dados!AC891)","v":""},{"$f":"IF(ISERROR(Dados!AD891),\"-\",Dados!AD891)","v":""},{"$f":"IF(ISERROR(Dados!AE891),\"-\",Dados!AE891)","v":""},{"$f":"IF(ISERROR(Dados!AF891),\"-\",Dados!AF891)","v":""},{"$f":"IF(ISERROR(Dados!AG891),\"-\",Dados!AG891)","v":""}]
[{"$f":"IF(ISERROR(Dados!A892),\"-\",Dados!A892)","v":""},{"$f":"IF(ISERROR(Dados!B892),\"-\",Dados!B892)","v":""},{"$f":"IF(ISERROR(Dados!C892),\"-\",Dados!C892)","v":""},{"$f":"IF(ISERROR(Dados!D892),\"-\",Dados!D892)","v":""},{"$f":"IF(ISERROR(Dados!E892),\"-\",Dados!E892)","v":""},{"$f":"IF(ISERROR(Dados!F892),\"-\",Dados!F892)","v":""},{"$f":"IF(ISERROR(Dados!G892),\"-\",Dados!G892)","v":""},{"$f":"IF(ISERROR(Dados!H892),\"-\",Dados!H892)","v":""},{"$f":"IF(ISERROR(Dados!I892),\"-\",Dados!I892)","v":""},{"$f":"IF(ISERROR(Dados!J892),\"-\",Dados!J892)","v":""},{"$f":"IF(ISERROR(Dados!K892),\"-\",Dados!K892)","v":""},{"$f":"IF(ISERROR(Dados!L892),\"-\",Dados!L892)","v":""},{"$f":"IF(ISERROR(Dados!M892),\"-\",Dados!M892)","v":""},{"$f":"IF(ISERROR(Dados!N892),\"-\",Dados!N892)","v":""},{"$f":"IF(ISERROR(Dados!O892),\"-\",Dados!O892)","v":""},{"$f":"IF(ISERROR(Dados!P892),\"-\",Dados!P892)","v":""},{"$f":"IF(ISERROR(Dados!Q892),\"-\",Dados!Q892)","v":""},{"$f":"IF(ISERROR(Dados!R892),\"-\",Dados!R892)","v":""},{"$f":"IF(ISERROR(Dados!S892),\"-\",Dados!S892)","v":""},{"$f":"IF(ISERROR(Dados!T892),\"-\",Dados!T892)","v":""},{"$f":"IF(ISERROR(Dados!U892),\"-\",Dados!U892)","v":""},{"$f":"IF(ISERROR(Dados!V892),\"-\",Dados!V892)","v":""},{"$f":"IF(ISERROR(Dados!W892),\"-\",Dados!W892)","v":""},{"$f":"IF(ISERROR(Dados!X892),\"-\",Dados!X892)","v":""},{"$f":"IF(ISERROR(Dados!Y892),\"-\",Dados!Y892)","v":""},{"$f":"IF(ISERROR(Dados!Z892),\"-\",Dados!Z892)","v":""},{"$f":"IF(ISERROR(Dados!AA892),\"-\",Dados!AA892)","v":""},{"$f":"IF(ISERROR(Dados!AB892),\"-\",Dados!AB892)","v":""},{"$f":"IF(ISERROR(Dados!AC892),\"-\",Dados!AC892)","v":""},{"$f":"IF(ISERROR(Dados!AD892),\"-\",Dados!AD892)","v":""},{"$f":"IF(ISERROR(Dados!AE892),\"-\",Dados!AE892)","v":""},{"$f":"IF(ISERROR(Dados!AF892),\"-\",Dados!AF892)","v":""},{"$f":"IF(ISERROR(Dados!AG892),\"-\",Dados!AG892)","v":""}]
[{"$f":"IF(ISERROR(Dados!A893),\"-\",Dados!A893)","v":""},{"$f":"IF(ISERROR(Dados!B893),\"-\",Dados!B893)","v":""},{"$f":"IF(ISERROR(Dados!C893),\"-\",Dados!C893)","v":""},{"$f":"IF(ISERROR(Dados!D893),\"-\",Dados!D893)","v":""},{"$f":"IF(ISERROR(Dados!E893),\"-\",Dados!E893)","v":""},{"$f":"IF(ISERROR(Dados!F893),\"-\",Dados!F893)","v":""},{"$f":"IF(ISERROR(Dados!G893),\"-\",Dados!G893)","v":""},{"$f":"IF(ISERROR(Dados!H893),\"-\",Dados!H893)","v":""},{"$f":"IF(ISERROR(Dados!I893),\"-\",Dados!I893)","v":""},{"$f":"IF(ISERROR(Dados!J893),\"-\",Dados!J893)","v":""},{"$f":"IF(ISERROR(Dados!K893),\"-\",Dados!K893)","v":""},{"$f":"IF(ISERROR(Dados!L893),\"-\",Dados!L893)","v":""},{"$f":"IF(ISERROR(Dados!M893),\"-\",Dados!M893)","v":""},{"$f":"IF(ISERROR(Dados!N893),\"-\",Dados!N893)","v":""},{"$f":"IF(ISERROR(Dados!O893),\"-\",Dados!O893)","v":""},{"$f":"IF(ISERROR(Dados!P893),\"-\",Dados!P893)","v":""},{"$f":"IF(ISERROR(Dados!Q893),\"-\",Dados!Q893)","v":""},{"$f":"IF(ISERROR(Dados!R893),\"-\",Dados!R893)","v":""},{"$f":"IF(ISERROR(Dados!S893),\"-\",Dados!S893)","v":""},{"$f":"IF(ISERROR(Dados!T893),\"-\",Dados!T893)","v":""},{"$f":"IF(ISERROR(Dados!U893),\"-\",Dados!U893)","v":""},{"$f":"IF(ISERROR(Dados!V893),\"-\",Dados!V893)","v":""},{"$f":"IF(ISERROR(Dados!W893),\"-\",Dados!W893)","v":""},{"$f":"IF(ISERROR(Dados!X893),\"-\",Dados!X893)","v":""},{"$f":"IF(ISERROR(Dados!Y893),\"-\",Dados!Y893)","v":""},{"$f":"IF(ISERROR(Dados!Z893),\"-\",Dados!Z893)","v":""},{"$f":"IF(ISERROR(Dados!AA893),\"-\",Dados!AA893)","v":""},{"$f":"IF(ISERROR(Dados!AB893),\"-\",Dados!AB893)","v":""},{"$f":"IF(ISERROR(Dados!AC893),\"-\",Dados!AC893)","v":""},{"$f":"IF(ISERROR(Dados!AD893),\"-\",Dados!AD893)","v":""},{"$f":"IF(ISERROR(Dados!AE893),\"-\",Dados!AE893)","v":""},{"$f":"IF(ISERROR(Dados!AF893),\"-\",Dados!AF893)","v":""},{"$f":"IF(ISERROR(Dados!AG893),\"-\",Dados!AG893)","v":""}]
[{"$f":"IF(ISERROR(Dados!A894),\"-\",Dados!A894)","v":""},{"$f":"IF(ISERROR(Dados!B894),\"-\",Dados!B894)","v":""},{"$f":"IF(ISERROR(Dados!C894),\"-\",Dados!C894)","v":""},{"$f":"IF(ISERROR(Dados!D894),\"-\",Dados!D894)","v":""},{"$f":"IF(ISERROR(Dados!E894),\"-\",Dados!E894)","v":""},{"$f":"IF(ISERROR(Dados!F894),\"-\",Dados!F894)","v":""},{"$f":"IF(ISERROR(Dados!G894),\"-\",Dados!G894)","v":""},{"$f":"IF(ISERROR(Dados!H894),\"-\",Dados!H894)","v":""},{"$f":"IF(ISERROR(Dados!I894),\"-\",Dados!I894)","v":""},{"$f":"IF(ISERROR(Dados!J894),\"-\",Dados!J894)","v":""},{"$f":"IF(ISERROR(Dados!K894),\"-\",Dados!K894)","v":""},{"$f":"IF(ISERROR(Dados!L894),\"-\",Dados!L894)","v":""},{"$f":"IF(ISERROR(Dados!M894),\"-\",Dados!M894)","v":""},{"$f":"IF(ISERROR(Dados!N894),\"-\",Dados!N894)","v":""},{"$f":"IF(ISERROR(Dados!O894),\"-\",Dados!O894)","v":""},{"$f":"IF(ISERROR(Dados!P894),\"-\",Dados!P894)","v":""},{"$f":"IF(ISERROR(Dados!Q894),\"-\",Dados!Q894)","v":""},{"$f":"IF(ISERROR(Dados!R894),\"-\",Dados!R894)","v":""},{"$f":"IF(ISERROR(Dados!S894),\"-\",Dados!S894)","v":""},{"$f":"IF(ISERROR(Dados!T894),\"-\",Dados!T894)","v":""},{"$f":"IF(ISERROR(Dados!U894),\"-\",Dados!U894)","v":""},{"$f":"IF(ISERROR(Dados!V894),\"-\",Dados!V894)","v":""},{"$f":"IF(ISERROR(Dados!W894),\"-\",Dados!W894)","v":""},{"$f":"IF(ISERROR(Dados!X894),\"-\",Dados!X894)","v":""},{"$f":"IF(ISERROR(Dados!Y894),\"-\",Dados!Y894)","v":""},{"$f":"IF(ISERROR(Dados!Z894),\"-\",Dados!Z894)","v":""},{"$f":"IF(ISERROR(Dados!AA894),\"-\",Dados!AA894)","v":""},{"$f":"IF(ISERROR(Dados!AB894),\"-\",Dados!AB894)","v":""},{"$f":"IF(ISERROR(Dados!AC894),\"-\",Dados!AC894)","v":""},{"$f":"IF(ISERROR(Dados!AD894),\"-\",Dados!AD894)","v":""},{"$f":"IF(ISERROR(Dados!AE894),\"-\",Dados!AE894)","v":""},{"$f":"IF(ISERROR(Dados!AF894),\"-\",Dados!AF894)","v":""},{"$f":"IF(ISERROR(Dados!AG894),\"-\",Dados!AG894)","v":""}]
[{"$f":"IF(ISERROR(Dados!A895),\"-\",Dados!A895)","v":""},{"$f":"IF(ISERROR(Dados!B895),\"-\",Dados!B895)","v":""},{"$f":"IF(ISERROR(Dados!C895),\"-\",Dados!C895)","v":""},{"$f":"IF(ISERROR(Dados!D895),\"-\",Dados!D895)","v":""},{"$f":"IF(ISERROR(Dados!E895),\"-\",Dados!E895)","v":""},{"$f":"IF(ISERROR(Dados!F895),\"-\",Dados!F895)","v":""},{"$f":"IF(ISERROR(Dados!G895),\"-\",Dados!G895)","v":""},{"$f":"IF(ISERROR(Dados!H895),\"-\",Dados!H895)","v":""},{"$f":"IF(ISERROR(Dados!I895),\"-\",Dados!I895)","v":""},{"$f":"IF(ISERROR(Dados!J895),\"-\",Dados!J895)","v":""},{"$f":"IF(ISERROR(Dados!K895),\"-\",Dados!K895)","v":""},{"$f":"IF(ISERROR(Dados!L895),\"-\",Dados!L895)","v":""},{"$f":"IF(ISERROR(Dados!M895),\"-\",Dados!M895)","v":""},{"$f":"IF(ISERROR(Dados!N895),\"-\",Dados!N895)","v":""},{"$f":"IF(ISERROR(Dados!O895),\"-\",Dados!O895)","v":""},{"$f":"IF(ISERROR(Dados!P895),\"-\",Dados!P895)","v":""},{"$f":"IF(ISERROR(Dados!Q895),\"-\",Dados!Q895)","v":""},{"$f":"IF(ISERROR(Dados!R895),\"-\",Dados!R895)","v":""},{"$f":"IF(ISERROR(Dados!S895),\"-\",Dados!S895)","v":""},{"$f":"IF(ISERROR(Dados!T895),\"-\",Dados!T895)","v":""},{"$f":"IF(ISERROR(Dados!U895),\"-\",Dados!U895)","v":""},{"$f":"IF(ISERROR(Dados!V895),\"-\",Dados!V895)","v":""},{"$f":"IF(ISERROR(Dados!W895),\"-\",Dados!W895)","v":""},{"$f":"IF(ISERROR(Dados!X895),\"-\",Dados!X895)","v":""},{"$f":"IF(ISERROR(Dados!Y895),\"-\",Dados!Y895)","v":""},{"$f":"IF(ISERROR(Dados!Z895),\"-\",Dados!Z895)","v":""},{"$f":"IF(ISERROR(Dados!AA895),\"-\",Dados!AA895)","v":""},{"$f":"IF(ISERROR(Dados!AB895),\"-\",Dados!AB895)","v":""},{"$f":"IF(ISERROR(Dados!AC895),\"-\",Dados!AC895)","v":""},{"$f":"IF(ISERROR(Dados!AD895),\"-\",Dados!AD895)","v":""},{"$f":"IF(ISERROR(Dados!AE895),\"-\",Dados!AE895)","v":""},{"$f":"IF(ISERROR(Dados!AF895),\"-\",Dados!AF895)","v":""},{"$f":"IF(ISERROR(Dados!AG895),\"-\",Dados!AG895)","v":""}]
[{"$f":"IF(ISERROR(Dados!A896),\"-\",Dados!A896)","v":""},{"$f":"IF(ISERROR(Dados!B896),\"-\",Dados!B896)","v":""},{"$f":"IF(ISERROR(Dados!C896),\"-\",Dados!C896)","v":""},{"$f":"IF(ISERROR(Dados!D896),\"-\",Dados!D896)","v":""},{"$f":"IF(ISERROR(Dados!E896),\"-\",Dados!E896)","v":""},{"$f":"IF(ISERROR(Dados!F896),\"-\",Dados!F896)","v":""},{"$f":"IF(ISERROR(Dados!G896),\"-\",Dados!G896)","v":""},{"$f":"IF(ISERROR(Dados!H896),\"-\",Dados!H896)","v":""},{"$f":"IF(ISERROR(Dados!I896),\"-\",Dados!I896)","v":""},{"$f":"IF(ISERROR(Dados!J896),\"-\",Dados!J896)","v":""},{"$f":"IF(ISERROR(Dados!K896),\"-\",Dados!K896)","v":""},{"$f":"IF(ISERROR(Dados!L896),\"-\",Dados!L896)","v":""},{"$f":"IF(ISERROR(Dados!M896),\"-\",Dados!M896)","v":""},{"$f":"IF(ISERROR(Dados!N896),\"-\",Dados!N896)","v":""},{"$f":"IF(ISERROR(Dados!O896),\"-\",Dados!O896)","v":""},{"$f":"IF(ISERROR(Dados!P896),\"-\",Dados!P896)","v":""},{"$f":"IF(ISERROR(Dados!Q896),\"-\",Dados!Q896)","v":""},{"$f":"IF(ISERROR(Dados!R896),\"-\",Dados!R896)","v":""},{"$f":"IF(ISERROR(Dados!S896),\"-\",Dados!S896)","v":""},{"$f":"IF(ISERROR(Dados!T896),\"-\",Dados!T896)","v":""},{"$f":"IF(ISERROR(Dados!U896),\"-\",Dados!U896)","v":""},{"$f":"IF(ISERROR(Dados!V896),\"-\",Dados!V896)","v":""},{"$f":"IF(ISERROR(Dados!W896),\"-\",Dados!W896)","v":""},{"$f":"IF(ISERROR(Dados!X896),\"-\",Dados!X896)","v":""},{"$f":"IF(ISERROR(Dados!Y896),\"-\",Dados!Y896)","v":""},{"$f":"IF(ISERROR(Dados!Z896),\"-\",Dados!Z896)","v":""},{"$f":"IF(ISERROR(Dados!AA896),\"-\",Dados!AA896)","v":""},{"$f":"IF(ISERROR(Dados!AB896),\"-\",Dados!AB896)","v":""},{"$f":"IF(ISERROR(Dados!AC896),\"-\",Dados!AC896)","v":""},{"$f":"IF(ISERROR(Dados!AD896),\"-\",Dados!AD896)","v":""},{"$f":"IF(ISERROR(Dados!AE896),\"-\",Dados!AE896)","v":""},{"$f":"IF(ISERROR(Dados!AF896),\"-\",Dados!AF896)","v":""},{"$f":"IF(ISERROR(Dados!AG896),\"-\",Dados!AG896)","v":""}]
[{"$f":"IF(ISERROR(Dados!A897),\"-\",Dados!A897)","v":""},{"$f":"IF(ISERROR(Dados!B897),\"-\",Dados!B897)","v":""},{"$f":"IF(ISERROR(Dados!C897),\"-\",Dados!C897)","v":""},{"$f":"IF(ISERROR(Dados!D897),\"-\",Dados!D897)","v":""},{"$f":"IF(ISERROR(Dados!E897),\"-\",Dados!E897)","v":""},{"$f":"IF(ISERROR(Dados!F897),\"-\",Dados!F897)","v":""},{"$f":"IF(ISERROR(Dados!G897),\"-\",Dados!G897)","v":""},{"$f":"IF(ISERROR(Dados!H897),\"-\",Dados!H897)","v":""},{"$f":"IF(ISERROR(Dados!I897),\"-\",Dados!I897)","v":""},{"$f":"IF(ISERROR(Dados!J897),\"-\",Dados!J897)","v":""},{"$f":"IF(ISERROR(Dados!K897),\"-\",Dados!K897)","v":""},{"$f":"IF(ISERROR(Dados!L897),\"-\",Dados!L897)","v":""},{"$f":"IF(ISERROR(Dados!M897),\"-\",Dados!M897)","v":""},{"$f":"IF(ISERROR(Dados!N897),\"-\",Dados!N897)","v":""},{"$f":"IF(ISERROR(Dados!O897),\"-\",Dados!O897)","v":""},{"$f":"IF(ISERROR(Dados!P897),\"-\",Dados!P897)","v":""},{"$f":"IF(ISERROR(Dados!Q897),\"-\",Dados!Q897)","v":""},{"$f":"IF(ISERROR(Dados!R897),\"-\",Dados!R897)","v":""},{"$f":"IF(ISERROR(Dados!S897),\"-\",Dados!S897)","v":""},{"$f":"IF(ISERROR(Dados!T897),\"-\",Dados!T897)","v":""},{"$f":"IF(ISERROR(Dados!U897),\"-\",Dados!U897)","v":""},{"$f":"IF(ISERROR(Dados!V897),\"-\",Dados!V897)","v":""},{"$f":"IF(ISERROR(Dados!W897),\"-\",Dados!W897)","v":""},{"$f":"IF(ISERROR(Dados!X897),\"-\",Dados!X897)","v":""},{"$f":"IF(ISERROR(Dados!Y897),\"-\",Dados!Y897)","v":""},{"$f":"IF(ISERROR(Dados!Z897),\"-\",Dados!Z897)","v":""},{"$f":"IF(ISERROR(Dados!AA897),\"-\",Dados!AA897)","v":""},{"$f":"IF(ISERROR(Dados!AB897),\"-\",Dados!AB897)","v":""},{"$f":"IF(ISERROR(Dados!AC897),\"-\",Dados!AC897)","v":""},{"$f":"IF(ISERROR(Dados!AD897),\"-\",Dados!AD897)","v":""},{"$f":"IF(ISERROR(Dados!AE897),\"-\",Dados!AE897)","v":""},{"$f":"IF(ISERROR(Dados!AF897),\"-\",Dados!AF897)","v":""},{"$f":"IF(ISERROR(Dados!AG897),\"-\",Dados!AG897)","v":""}]
[{"$f":"IF(ISERROR(Dados!A898),\"-\",Dados!A898)","v":""},{"$f":"IF(ISERROR(Dados!B898),\"-\",Dados!B898)","v":""},{"$f":"IF(ISERROR(Dados!C898),\"-\",Dados!C898)","v":""},{"$f":"IF(ISERROR(Dados!D898),\"-\",Dados!D898)","v":""},{"$f":"IF(ISERROR(Dados!E898),\"-\",Dados!E898)","v":""},{"$f":"IF(ISERROR(Dados!F898),\"-\",Dados!F898)","v":""},{"$f":"IF(ISERROR(Dados!G898),\"-\",Dados!G898)","v":""},{"$f":"IF(ISERROR(Dados!H898),\"-\",Dados!H898)","v":""},{"$f":"IF(ISERROR(Dados!I898),\"-\",Dados!I898)","v":""},{"$f":"IF(ISERROR(Dados!J898),\"-\",Dados!J898)","v":""},{"$f":"IF(ISERROR(Dados!K898),\"-\",Dados!K898)","v":""},{"$f":"IF(ISERROR(Dados!L898),\"-\",Dados!L898)","v":""},{"$f":"IF(ISERROR(Dados!M898),\"-\",Dados!M898)","v":""},{"$f":"IF(ISERROR(Dados!N898),\"-\",Dados!N898)","v":""},{"$f":"IF(ISERROR(Dados!O898),\"-\",Dados!O898)","v":""},{"$f":"IF(ISERROR(Dados!P898),\"-\",Dados!P898)","v":""},{"$f":"IF(ISERROR(Dados!Q898),\"-\",Dados!Q898)","v":""},{"$f":"IF(ISERROR(Dados!R898),\"-\",Dados!R898)","v":""},{"$f":"IF(ISERROR(Dados!S898),\"-\",Dados!S898)","v":""},{"$f":"IF(ISERROR(Dados!T898),\"-\",Dados!T898)","v":""},{"$f":"IF(ISERROR(Dados!U898),\"-\",Dados!U898)","v":""},{"$f":"IF(ISERROR(Dados!V898),\"-\",Dados!V898)","v":""},{"$f":"IF(ISERROR(Dados!W898),\"-\",Dados!W898)","v":""},{"$f":"IF(ISERROR(Dados!X898),\"-\",Dados!X898)","v":""},{"$f":"IF(ISERROR(Dados!Y898),\"-\",Dados!Y898)","v":""},{"$f":"IF(ISERROR(Dados!Z898),\"-\",Dados!Z898)","v":""},{"$f":"IF(ISERROR(Dados!AA898),\"-\",Dados!AA898)","v":""},{"$f":"IF(ISERROR(Dados!AB898),\"-\",Dados!AB898)","v":""},{"$f":"IF(ISERROR(Dados!AC898),\"-\",Dados!AC898)","v":""},{"$f":"IF(ISERROR(Dados!AD898),\"-\",Dados!AD898)","v":""},{"$f":"IF(ISERROR(Dados!AE898),\"-\",Dados!AE898)","v":""},{"$f":"IF(ISERROR(Dados!AF898),\"-\",Dados!AF898)","v":""},{"$f":"IF(ISERROR(Dados!AG898),\"-\",Dados!AG898)","v":""}]
[{"$f":"IF(ISERROR(Dados!A899),\"-\",Dados!A899)","v":""},{"$f":"IF(ISERROR(Dados!B899),\"-\",Dados!B899)","v":""},{"$f":"IF(ISERROR(Dados!C899),\"-\",Dados!C899)","v":""},{"$f":"IF(ISERROR(Dados!D899),\"-\",Dados!D899)","v":""},{"$f":"IF(ISERROR(Dados!E899),\"-\",Dados!E899)","v":""},{"$f":"IF(ISERROR(Dados!F899),\"-\",Dados!F899)","v":""},{"$f":"IF(ISERROR(Dados!G899),\"-\",Dados!G899)","v":""},{"$f":"IF(ISERROR(Dados!H899),\"-\",Dados!H899)","v":""},{"$f":"IF(ISERROR(Dados!I899),\"-\",Dados!I899)","v":""},{"$f":"IF(ISERROR(Dados!J899),\"-\",Dados!J899)","v":""},{"$f":"IF(ISERROR(Dados!K899),\"-\",Dados!K899)","v":""},{"$f":"IF(ISERROR(Dados!L899),\"-\",Dados!L899)","v":""},{"$f":"IF(ISERROR(Dados!M899),\"-\",Dados!M899)","v":""},{"$f":"IF(ISERROR(Dados!N899),\"-\",Dados!N899)","v":""},{"$f":"IF(ISERROR(Dados!O899),\"-\",Dados!O899)","v":""},{"$f":"IF(ISERROR(Dados!P899),\"-\",Dados!P899)","v":""},{"$f":"IF(ISERROR(Dados!Q899),\"-\",Dados!Q899)","v":""},{"$f":"IF(ISERROR(Dados!R899),\"-\",Dados!R899)","v":""},{"$f":"IF(ISERROR(Dados!S899),\"-\",Dados!S899)","v":""},{"$f":"IF(ISERROR(Dados!T899),\"-\",Dados!T899)","v":""},{"$f":"IF(ISERROR(Dados!U899),\"-\",Dados!U899)","v":""},{"$f":"IF(ISERROR(Dados!V899),\"-\",Dados!V899)","v":""},{"$f":"IF(ISERROR(Dados!W899),\"-\",Dados!W899)","v":""},{"$f":"IF(ISERROR(Dados!X899),\"-\",Dados!X899)","v":""},{"$f":"IF(ISERROR(Dados!Y899),\"-\",Dados!Y899)","v":""},{"$f":"IF(ISERROR(Dados!Z899),\"-\",Dados!Z899)","v":""},{"$f":"IF(ISERROR(Dados!AA899),\"-\",Dados!AA899)","v":""},{"$f":"IF(ISERROR(Dados!AB899),\"-\",Dados!AB899)","v":""},{"$f":"IF(ISERROR(Dados!AC899),\"-\",Dados!AC899)","v":""},{"$f":"IF(ISERROR(Dados!AD899),\"-\",Dados!AD899)","v":""},{"$f":"IF(ISERROR(Dados!AE899),\"-\",Dados!AE899)","v":""},{"$f":"IF(ISERROR(Dados!AF899),\"-\",Dados!AF899)","v":""},{"$f":"IF(ISERROR(Dados!AG899),\"-\",Dados!AG899)","v":""}]
[{"$f":"IF(ISERROR(Dados!A900),\"-\",Dados!A900)","v":""},{"$f":"IF(ISERROR(Dados!B900),\"-\",Dados!B900)","v":""},{"$f":"IF(ISERROR(Dados!C900),\"-\",Dados!C900)","v":""},{"$f":"IF(ISERROR(Dados!D900),\"-\",Dados!D900)","v":""},{"$f":"IF(ISERROR(Dados!E900),\"-\",Dados!E900)","v":""},{"$f":"IF(ISERROR(Dados!F900),\"-\",Dados!F900)","v":""},{"$f":"IF(ISERROR(Dados!G900),\"-\",Dados!G900)","v":""},{"$f":"IF(ISERROR(Dados!H900),\"-\",Dados!H900)","v":""},{"$f":"IF(ISERROR(Dados!I900),\"-\",Dados!I900)","v":""},{"$f":"IF(ISERROR(Dados!J900),\"-\",Dados!J900)","v":""},{"$f":"IF(ISERROR(Dados!K900),\"-\",Dados!K900)","v":""},{"$f":"IF(ISERROR(Dados!L900),\"-\",Dados!L900)","v":""},{"$f":"IF(ISERROR(Dados!M900),\"-\",Dados!M900)","v":""},{"$f":"IF(ISERROR(Dados!N900),\"-\",Dados!N900)","v":""},{"$f":"IF(ISERROR(Dados!O900),\"-\",Dados!O900)","v":""},{"$f":"IF(ISERROR(Dados!P900),\"-\",Dados!P900)","v":""},{"$f":"IF(ISERROR(Dados!Q900),\"-\",Dados!Q900)","v":""},{"$f":"IF(ISERROR(Dados!R900),\"-\",Dados!R900)","v":""},{"$f":"IF(ISERROR(Dados!S900),\"-\",Dados!S900)","v":""},{"$f":"IF(ISERROR(Dados!T900),\"-\",Dados!T900)","v":""},{"$f":"IF(ISERROR(Dados!U900),\"-\",Dados!U900)","v":""},{"$f":"IF(ISERROR(Dados!V900),\"-\",Dados!V900)","v":""},{"$f":"IF(ISERROR(Dados!W900),\"-\",Dados!W900)","v":""},{"$f":"IF(ISERROR(Dados!X900),\"-\",Dados!X900)","v":""},{"$f":"IF(ISERROR(Dados!Y900),\"-\",Dados!Y900)","v":""},{"$f":"IF(ISERROR(Dados!Z900),\"-\",Dados!Z900)","v":""},{"$f":"IF(ISERROR(Dados!AA900),\"-\",Dados!AA900)","v":""},{"$f":"IF(ISERROR(Dados!AB900),\"-\",Dados!AB900)","v":""},{"$f":"IF(ISERROR(Dados!AC900),\"-\",Dados!AC900)","v":""},{"$f":"IF(ISERROR(Dados!AD900),\"-\",Dados!AD900)","v":""},{"$f":"IF(ISERROR(Dados!AE900),\"-\",Dados!AE900)","v":""},{"$f":"IF(ISERROR(Dados!AF900),\"-\",Dados!AF900)","v":""},{"$f":"IF(ISERROR(Dados!AG900),\"-\",Dados!AG900)","v":""}]
[{"$f":"IF(ISERROR(Dados!A901),\"-\",Dados!A901)","v":""},{"$f":"IF(ISERROR(Dados!B901),\"-\",Dados!B901)","v":""},{"$f":"IF(ISERROR(Dados!C901),\"-\",Dados!C901)","v":""},{"$f":"IF(ISERROR(Dados!D901),\"-\",Dados!D901)","v":""},{"$f":"IF(ISERROR(Dados!E901),\"-\",Dados!E901)","v":""},{"$f":"IF(ISERROR(Dados!F901),\"-\",Dados!F901)","v":""},{"$f":"IF(ISERROR(Dados!G901),\"-\",Dados!G901)","v":""},{"$f":"IF(ISERROR(Dados!H901),\"-\",Dados!H901)","v":""},{"$f":"IF(ISERROR(Dados!I901),\"-\",Dados!I901)","v":""},{"$f":"IF(ISERROR(Dados!J901),\"-\",Dados!J901)","v":""},{"$f":"IF(ISERROR(Dados!K901),\"-\",Dados!K901)","v":""},{"$f":"IF(ISERROR(Dados!L901),\"-\",Dados!L901)","v":""},{"$f":"IF(ISERROR(Dados!M901),\"-\",Dados!M901)","v":""},{"$f":"IF(ISERROR(Dados!N901),\"-\",Dados!N901)","v":""},{"$f":"IF(ISERROR(Dados!O901),\"-\",Dados!O901)","v":""},{"$f":"IF(ISERROR(Dados!P901),\"-\",Dados!P901)","v":""},{"$f":"IF(ISERROR(Dados!Q901),\"-\",Dados!Q901)","v":""},{"$f":"IF(ISERROR(Dados!R901),\"-\",Dados!R901)","v":""},{"$f":"IF(ISERROR(Dados!S901),\"-\",Dados!S901)","v":""},{"$f":"IF(ISERROR(Dados!T901),\"-\",Dados!T901)","v":""},{"$f":"IF(ISERROR(Dados!U901),\"-\",Dados!U901)","v":""},{"$f":"IF(ISERROR(Dados!V901),\"-\",Dados!V901)","v":""},{"$f":"IF(ISERROR(Dados!W901),\"-\",Dados!W901)","v":""},{"$f":"IF(ISERROR(Dados!X901),\"-\",Dados!X901)","v":""},{"$f":"IF(ISERROR(Dados!Y901),\"-\",Dados!Y901)","v":""},{"$f":"IF(ISERROR(Dados!Z901),\"-\",Dados!Z901)","v":""},{"$f":"IF(ISERROR(Dados!AA901),\"-\",Dados!AA901)","v":""},{"$f":"IF(ISERROR(Dados!AB901),\"-\",Dados!AB901)","v":""},{"$f":"IF(ISERROR(Dados!AC901),\"-\",Dados!AC901)","v":""},{"$f":"IF(ISERROR(Dados!AD901),\"-\",Dados!AD901)","v":""},{"$f":"IF(ISERROR(Dados!AE901),\"-\",Dados!AE901)","v":""},{"$f":"IF(ISERROR(Dados!AF901),\"-\",Dados!AF901)","v":""},{"$f":"IF(ISERROR(Dados!AG901),\"-\",Dados!AG901)","v":""}]
[{"$f":"IF(ISERROR(Dados!A902),\"-\",Dados!A902)","v":""},{"$f":"IF(ISERROR(Dados!B902),\"-\",Dados!B902)","v":""},{"$f":"IF(ISERROR(Dados!C902),\"-\",Dados!C902)","v":""},{"$f":"IF(ISERROR(Dados!D902),\"-\",Dados!D902)","v":""},{"$f":"IF(ISERROR(Dados!E902),\"-\",Dados!E902)","v":""},{"$f":"IF(ISERROR(Dados!F902),\"-\",Dados!F902)","v":""},{"$f":"IF(ISERROR(Dados!G902),\"-\",Dados!G902)","v":""},{"$f":"IF(ISERROR(Dados!H902),\"-\",Dados!H902)","v":""},{"$f":"IF(ISERROR(Dados!I902),\"-\",Dados!I902)","v":""},{"$f":"IF(ISERROR(Dados!J902),\"-\",Dados!J902)","v":""},{"$f":"IF(ISERROR(Dados!K902),\"-\",Dados!K902)","v":""},{"$f":"IF(ISERROR(Dados!L902),\"-\",Dados!L902)","v":""},{"$f":"IF(ISERROR(Dados!M902),\"-\",Dados!M902)","v":""},{"$f":"IF(ISERROR(Dados!N902),\"-\",Dados!N902)","v":""},{"$f":"IF(ISERROR(Dados!O902),\"-\",Dados!O902)","v":""},{"$f":"IF(ISERROR(Dados!P902),\"-\",Dados!P902)","v":""},{"$f":"IF(ISERROR(Dados!Q902),\"-\",Dados!Q902)","v":""},{"$f":"IF(ISERROR(Dados!R902),\"-\",Dados!R902)","v":""},{"$f":"IF(ISERROR(Dados!S902),\"-\",Dados!S902)","v":""},{"$f":"IF(ISERROR(Dados!T902),\"-\",Dados!T902)","v":""},{"$f":"IF(ISERROR(Dados!U902),\"-\",Dados!U902)","v":""},{"$f":"IF(ISERROR(Dados!V902),\"-\",Dados!V902)","v":""},{"$f":"IF(ISERROR(Dados!W902),\"-\",Dados!W902)","v":""},{"$f":"IF(ISERROR(Dados!X902),\"-\",Dados!X902)","v":""},{"$f":"IF(ISERROR(Dados!Y902),\"-\",Dados!Y902)","v":""},{"$f":"IF(ISERROR(Dados!Z902),\"-\",Dados!Z902)","v":""},{"$f":"IF(ISERROR(Dados!AA902),\"-\",Dados!AA902)","v":""},{"$f":"IF(ISERROR(Dados!AB902),\"-\",Dados!AB902)","v":""},{"$f":"IF(ISERROR(Dados!AC902),\"-\",Dados!AC902)","v":""},{"$f":"IF(ISERROR(Dados!AD902),\"-\",Dados!AD902)","v":""},{"$f":"IF(ISERROR(Dados!AE902),\"-\",Dados!AE902)","v":""},{"$f":"IF(ISERROR(Dados!AF902),\"-\",Dados!AF902)","v":""},{"$f":"IF(ISERROR(Dados!AG902),\"-\",Dados!AG902)","v":""}]
[{"$f":"IF(ISERROR(Dados!A903),\"-\",Dados!A903)","v":""},{"$f":"IF(ISERROR(Dados!B903),\"-\",Dados!B903)","v":""},{"$f":"IF(ISERROR(Dados!C903),\"-\",Dados!C903)","v":""},{"$f":"IF(ISERROR(Dados!D903),\"-\",Dados!D903)","v":""},{"$f":"IF(ISERROR(Dados!E903),\"-\",Dados!E903)","v":""},{"$f":"IF(ISERROR(Dados!F903),\"-\",Dados!F903)","v":""},{"$f":"IF(ISERROR(Dados!G903),\"-\",Dados!G903)","v":""},{"$f":"IF(ISERROR(Dados!H903),\"-\",Dados!H903)","v":""},{"$f":"IF(ISERROR(Dados!I903),\"-\",Dados!I903)","v":""},{"$f":"IF(ISERROR(Dados!J903),\"-\",Dados!J903)","v":""},{"$f":"IF(ISERROR(Dados!K903),\"-\",Dados!K903)","v":""},{"$f":"IF(ISERROR(Dados!L903),\"-\",Dados!L903)","v":""},{"$f":"IF(ISERROR(Dados!M903),\"-\",Dados!M903)","v":""},{"$f":"IF(ISERROR(Dados!N903),\"-\",Dados!N903)","v":""},{"$f":"IF(ISERROR(Dados!O903),\"-\",Dados!O903)","v":""},{"$f":"IF(ISERROR(Dados!P903),\"-\",Dados!P903)","v":""},{"$f":"IF(ISERROR(Dados!Q903),\"-\",Dados!Q903)","v":""},{"$f":"IF(ISERROR(Dados!R903),\"-\",Dados!R903)","v":""},{"$f":"IF(ISERROR(Dados!S903),\"-\",Dados!S903)","v":""},{"$f":"IF(ISERROR(Dados!T903),\"-\",Dados!T903)","v":""},{"$f":"IF(ISERROR(Dados!U903),\"-\",Dados!U903)","v":""},{"$f":"IF(ISERROR(Dados!V903),\"-\",Dados!V903)","v":""},{"$f":"IF(ISERROR(Dados!W903),\"-\",Dados!W903)","v":""},{"$f":"IF(ISERROR(Dados!X903),\"-\",Dados!X903)","v":""},{"$f":"IF(ISERROR(Dados!Y903),\"-\",Dados!Y903)","v":""},{"$f":"IF(ISERROR(Dados!Z903),\"-\",Dados!Z903)","v":""},{"$f":"IF(ISERROR(Dados!AA903),\"-\",Dados!AA903)","v":""},{"$f":"IF(ISERROR(Dados!AB903),\"-\",Dados!AB903)","v":""},{"$f":"IF(ISERROR(Dados!AC903),\"-\",Dados!AC903)","v":""},{"$f":"IF(ISERROR(Dados!AD903),\"-\",Dados!AD903)","v":""},{"$f":"IF(ISERROR(Dados!AE903),\"-\",Dados!AE903)","v":""},{"$f":"IF(ISERROR(Dados!AF903),\"-\",Dados!AF903)","v":""},{"$f":"IF(ISERROR(Dados!AG903),\"-\",Dados!AG903)","v":""}]
[{"$f":"IF(ISERROR(Dados!A904),\"-\",Dados!A904)","v":""},{"$f":"IF(ISERROR(Dados!B904),\"-\",Dados!B904)","v":""},{"$f":"IF(ISERROR(Dados!C904),\"-\",Dados!C904)","v":""},{"$f":"IF(ISERROR(Dados!D904),\"-\",Dados!D904)","v":""},{"$f":"IF(ISERROR(Dados!E904),\"-\",Dados!E904)","v":""},{"$f":"IF(ISERROR(Dados!F904),\"-\",Dados!F904)","v":""},{"$f":"IF(ISERROR(Dados!G904),\"-\",Dados!G904)","v":""},{"$f":"IF(ISERROR(Dados!H904),\"-\",Dados!H904)","v":""},{"$f":"IF(ISERROR(Dados!I904),\"-\",Dados!I904)","v":""},{"$f":"IF(ISERROR(Dados!J904),\"-\",Dados!J904)","v":""},{"$f":"IF(ISERROR(Dados!K904),\"-\",Dados!K904)","v":""},{"$f":"IF(ISERROR(Dados!L904),\"-\",Dados!L904)","v":""},{"$f":"IF(ISERROR(Dados!M904),\"-\",Dados!M904)","v":""},{"$f":"IF(ISERROR(Dados!N904),\"-\",Dados!N904)","v":""},{"$f":"IF(ISERROR(Dados!O904),\"-\",Dados!O904)","v":""},{"$f":"IF(ISERROR(Dados!P904),\"-\",Dados!P904)","v":""},{"$f":"IF(ISERROR(Dados!Q904),\"-\",Dados!Q904)","v":""},{"$f":"IF(ISERROR(Dados!R904),\"-\",Dados!R904)","v":""},{"$f":"IF(ISERROR(Dados!S904),\"-\",Dados!S904)","v":""},{"$f":"IF(ISERROR(Dados!T904),\"-\",Dados!T904)","v":""},{"$f":"IF(ISERROR(Dados!U904),\"-\",Dados!U904)","v":""},{"$f":"IF(ISERROR(Dados!V904),\"-\",Dados!V904)","v":""},{"$f":"IF(ISERROR(Dados!W904),\"-\",Dados!W904)","v":""},{"$f":"IF(ISERROR(Dados!X904),\"-\",Dados!X904)","v":""},{"$f":"IF(ISERROR(Dados!Y904),\"-\",Dados!Y904)","v":""},{"$f":"IF(ISERROR(Dados!Z904),\"-\",Dados!Z904)","v":""},{"$f":"IF(ISERROR(Dados!AA904),\"-\",Dados!AA904)","v":""},{"$f":"IF(ISERROR(Dados!AB904),\"-\",Dados!AB904)","v":""},{"$f":"IF(ISERROR(Dados!AC904),\"-\",Dados!AC904)","v":""},{"$f":"IF(ISERROR(Dados!AD904),\"-\",Dados!AD904)","v":""},{"$f":"IF(ISERROR(Dados!AE904),\"-\",Dados!AE904)","v":""},{"$f":"IF(ISERROR(Dados!AF904),\"-\",Dados!AF904)","v":""},{"$f":"IF(ISERROR(Dados!AG904),\"-\",Dados!AG904)","v":""}]
[{"$f":"IF(ISERROR(Dados!A905),\"-\",Dados!A905)","v":""},{"$f":"IF(ISERROR(Dados!B905),\"-\",Dados!B905)","v":""},{"$f":"IF(ISERROR(Dados!C905),\"-\",Dados!C905)","v":""},{"$f":"IF(ISERROR(Dados!D905),\"-\",Dados!D905)","v":""},{"$f":"IF(ISERROR(Dados!E905),\"-\",Dados!E905)","v":""},{"$f":"IF(ISERROR(Dados!F905),\"-\",Dados!F905)","v":""},{"$f":"IF(ISERROR(Dados!G905),\"-\",Dados!G905)","v":""},{"$f":"IF(ISERROR(Dados!H905),\"-\",Dados!H905)","v":""},{"$f":"IF(ISERROR(Dados!I905),\"-\",Dados!I905)","v":""},{"$f":"IF(ISERROR(Dados!J905),\"-\",Dados!J905)","v":""},{"$f":"IF(ISERROR(Dados!K905),\"-\",Dados!K905)","v":""},{"$f":"IF(ISERROR(Dados!L905),\"-\",Dados!L905)","v":""},{"$f":"IF(ISERROR(Dados!M905),\"-\",Dados!M905)","v":""},{"$f":"IF(ISERROR(Dados!N905),\"-\",Dados!N905)","v":""},{"$f":"IF(ISERROR(Dados!O905),\"-\",Dados!O905)","v":""},{"$f":"IF(ISERROR(Dados!P905),\"-\",Dados!P905)","v":""},{"$f":"IF(ISERROR(Dados!Q905),\"-\",Dados!Q905)","v":""},{"$f":"IF(ISERROR(Dados!R905),\"-\",Dados!R905)","v":""},{"$f":"IF(ISERROR(Dados!S905),\"-\",Dados!S905)","v":""},{"$f":"IF(ISERROR(Dados!T905),\"-\",Dados!T905)","v":""},{"$f":"IF(ISERROR(Dados!U905),\"-\",Dados!U905)","v":""},{"$f":"IF(ISERROR(Dados!V905),\"-\",Dados!V905)","v":""},{"$f":"IF(ISERROR(Dados!W905),\"-\",Dados!W905)","v":""},{"$f":"IF(ISERROR(Dados!X905),\"-\",Dados!X905)","v":""},{"$f":"IF(ISERROR(Dados!Y905),\"-\",Dados!Y905)","v":""},{"$f":"IF(ISERROR(Dados!Z905),\"-\",Dados!Z905)","v":""},{"$f":"IF(ISERROR(Dados!AA905),\"-\",Dados!AA905)","v":""},{"$f":"IF(ISERROR(Dados!AB905),\"-\",Dados!AB905)","v":""},{"$f":"IF(ISERROR(Dados!AC905),\"-\",Dados!AC905)","v":""},{"$f":"IF(ISERROR(Dados!AD905),\"-\",Dados!AD905)","v":""},{"$f":"IF(ISERROR(Dados!AE905),\"-\",Dados!AE905)","v":""},{"$f":"IF(ISERROR(Dados!AF905),\"-\",Dados!AF905)","v":""},{"$f":"IF(ISERROR(Dados!AG905),\"-\",Dados!AG905)","v":""}]
[{"$f":"IF(ISERROR(Dados!A906),\"-\",Dados!A906)","v":""},{"$f":"IF(ISERROR(Dados!B906),\"-\",Dados!B906)","v":""},{"$f":"IF(ISERROR(Dados!C906),\"-\",Dados!C906)","v":""},{"$f":"IF(ISERROR(Dados!D906),\"-\",Dados!D906)","v":""},{"$f":"IF(ISERROR(Dados!E906),\"-\",Dados!E906)","v":""},{"$f":"IF(ISERROR(Dados!F906),\"-\",Dados!F906)","v":""},{"$f":"IF(ISERROR(Dados!G906),\"-\",Dados!G906)","v":""},{"$f":"IF(ISERROR(Dados!H906),\"-\",Dados!H906)","v":""},{"$f":"IF(ISERROR(Dados!I906),\"-\",Dados!I906)","v":""},{"$f":"IF(ISERROR(Dados!J906),\"-\",Dados!J906)","v":""},{"$f":"IF(ISERROR(Dados!K906),\"-\",Dados!K906)","v":""},{"$f":"IF(ISERROR(Dados!L906),\"-\",Dados!L906)","v":""},{"$f":"IF(ISERROR(Dados!M906),\"-\",Dados!M906)","v":""},{"$f":"IF(ISERROR(Dados!N906),\"-\",Dados!N906)","v":""},{"$f":"IF(ISERROR(Dados!O906),\"-\",Dados!O906)","v":""},{"$f":"IF(ISERROR(Dados!P906),\"-\",Dados!P906)","v":""},{"$f":"IF(ISERROR(Dados!Q906),\"-\",Dados!Q906)","v":""},{"$f":"IF(ISERROR(Dados!R906),\"-\",Dados!R906)","v":""},{"$f":"IF(ISERROR(Dados!S906),\"-\",Dados!S906)","v":""},{"$f":"IF(ISERROR(Dados!T906),\"-\",Dados!T906)","v":""},{"$f":"IF(ISERROR(Dados!U906),\"-\",Dados!U906)","v":""},{"$f":"IF(ISERROR(Dados!V906),\"-\",Dados!V906)","v":""},{"$f":"IF(ISERROR(Dados!W906),\"-\",Dados!W906)","v":""},{"$f":"IF(ISERROR(Dados!X906),\"-\",Dados!X906)","v":""},{"$f":"IF(ISERROR(Dados!Y906),\"-\",Dados!Y906)","v":""},{"$f":"IF(ISERROR(Dados!Z906),\"-\",Dados!Z906)","v":""},{"$f":"IF(ISERROR(Dados!AA906),\"-\",Dados!AA906)","v":""},{"$f":"IF(ISERROR(Dados!AB906),\"-\",Dados!AB906)","v":""},{"$f":"IF(ISERROR(Dados!AC906),\"-\",Dados!AC906)","v":""},{"$f":"IF(ISERROR(Dados!AD906),\"-\",Dados!AD906)","v":""},{"$f":"IF(ISERROR(Dados!AE906),\"-\",Dados!AE906)","v":""},{"$f":"IF(ISERROR(Dados!AF906),\"-\",Dados!AF906)","v":""},{"$f":"IF(ISERROR(Dados!AG906),\"-\",Dados!AG906)","v":""}]
[{"$f":"IF(ISERROR(Dados!A907),\"-\",Dados!A907)","v":""},{"$f":"IF(ISERROR(Dados!B907),\"-\",Dados!B907)","v":""},{"$f":"IF(ISERROR(Dados!C907),\"-\",Dados!C907)","v":""},{"$f":"IF(ISERROR(Dados!D907),\"-\",Dados!D907)","v":""},{"$f":"IF(ISERROR(Dados!E907),\"-\",Dados!E907)","v":""},{"$f":"IF(ISERROR(Dados!F907),\"-\",Dados!F907)","v":""},{"$f":"IF(ISERROR(Dados!G907),\"-\",Dados!G907)","v":""},{"$f":"IF(ISERROR(Dados!H907),\"-\",Dados!H907)","v":""},{"$f":"IF(ISERROR(Dados!I907),\"-\",Dados!I907)","v":""},{"$f":"IF(ISERROR(Dados!J907),\"-\",Dados!J907)","v":""},{"$f":"IF(ISERROR(Dados!K907),\"-\",Dados!K907)","v":""},{"$f":"IF(ISERROR(Dados!L907),\"-\",Dados!L907)","v":""},{"$f":"IF(ISERROR(Dados!M907),\"-\",Dados!M907)","v":""},{"$f":"IF(ISERROR(Dados!N907),\"-\",Dados!N907)","v":""},{"$f":"IF(ISERROR(Dados!O907),\"-\",Dados!O907)","v":""},{"$f":"IF(ISERROR(Dados!P907),\"-\",Dados!P907)","v":""},{"$f":"IF(ISERROR(Dados!Q907),\"-\",Dados!Q907)","v":""},{"$f":"IF(ISERROR(Dados!R907),\"-\",Dados!R907)","v":""},{"$f":"IF(ISERROR(Dados!S907),\"-\",Dados!S907)","v":""},{"$f":"IF(ISERROR(Dados!T907),\"-\",Dados!T907)","v":""},{"$f":"IF(ISERROR(Dados!U907),\"-\",Dados!U907)","v":""},{"$f":"IF(ISERROR(Dados!V907),\"-\",Dados!V907)","v":""},{"$f":"IF(ISERROR(Dados!W907),\"-\",Dados!W907)","v":""},{"$f":"IF(ISERROR(Dados!X907),\"-\",Dados!X907)","v":""},{"$f":"IF(ISERROR(Dados!Y907),\"-\",Dados!Y907)","v":""},{"$f":"IF(ISERROR(Dados!Z907),\"-\",Dados!Z907)","v":""},{"$f":"IF(ISERROR(Dados!AA907),\"-\",Dados!AA907)","v":""},{"$f":"IF(ISERROR(Dados!AB907),\"-\",Dados!AB907)","v":""},{"$f":"IF(ISERROR(Dados!AC907),\"-\",Dados!AC907)","v":""},{"$f":"IF(ISERROR(Dados!AD907),\"-\",Dados!AD907)","v":""},{"$f":"IF(ISERROR(Dados!AE907),\"-\",Dados!AE907)","v":""},{"$f":"IF(ISERROR(Dados!AF907),\"-\",Dados!AF907)","v":""},{"$f":"IF(ISERROR(Dados!AG907),\"-\",Dados!AG907)","v":""}]
[{"$f":"IF(ISERROR(Dados!A908),\"-\",Dados!A908)","v":""},{"$f":"IF(ISERROR(Dados!B908),\"-\",Dados!B908)","v":""},{"$f":"IF(ISERROR(Dados!C908),\"-\",Dados!C908)","v":""},{"$f":"IF(ISERROR(Dados!D908),\"-\",Dados!D908)","v":""},{"$f":"IF(ISERROR(Dados!E908),\"-\",Dados!E908)","v":""},{"$f":"IF(ISERROR(Dados!F908),\"-\",Dados!F908)","v":""},{"$f":"IF(ISERROR(Dados!G908),\"-\",Dados!G908)","v":""},{"$f":"IF(ISERROR(Dados!H908),\"-\",Dados!H908)","v":""},{"$f":"IF(ISERROR(Dados!I908),\"-\",Dados!I908)","v":""},{"$f":"IF(ISERROR(Dados!J908),\"-\",Dados!J908)","v":""},{"$f":"IF(ISERROR(Dados!K908),\"-\",Dados!K908)","v":""},{"$f":"IF(ISERROR(Dados!L908),\"-\",Dados!L908)","v":""},{"$f":"IF(ISERROR(Dados!M908),\"-\",Dados!M908)","v":""},{"$f":"IF(ISERROR(Dados!N908),\"-\",Dados!N908)","v":""},{"$f":"IF(ISERROR(Dados!O908),\"-\",Dados!O908)","v":""},{"$f":"IF(ISERROR(Dados!P908),\"-\",Dados!P908)","v":""},{"$f":"IF(ISERROR(Dados!Q908),\"-\",Dados!Q908)","v":""},{"$f":"IF(ISERROR(Dados!R908),\"-\",Dados!R908)","v":""},{"$f":"IF(ISERROR(Dados!S908),\"-\",Dados!S908)","v":""},{"$f":"IF(ISERROR(Dados!T908),\"-\",Dados!T908)","v":""},{"$f":"IF(ISERROR(Dados!U908),\"-\",Dados!U908)","v":""},{"$f":"IF(ISERROR(Dados!V908),\"-\",Dados!V908)","v":""},{"$f":"IF(ISERROR(Dados!W908),\"-\",Dados!W908)","v":""},{"$f":"IF(ISERROR(Dados!X908),\"-\",Dados!X908)","v":""},{"$f":"IF(ISERROR(Dados!Y908),\"-\",Dados!Y908)","v":""},{"$f":"IF(ISERROR(Dados!Z908),\"-\",Dados!Z908)","v":""},{"$f":"IF(ISERROR(Dados!AA908),\"-\",Dados!AA908)","v":""},{"$f":"IF(ISERROR(Dados!AB908),\"-\",Dados!AB908)","v":""},{"$f":"IF(ISERROR(Dados!AC908),\"-\",Dados!AC908)","v":""},{"$f":"IF(ISERROR(Dados!AD908),\"-\",Dados!AD908)","v":""},{"$f":"IF(ISERROR(Dados!AE908),\"-\",Dados!AE908)","v":""},{"$f":"IF(ISERROR(Dados!AF908),\"-\",Dados!AF908)","v":""},{"$f":"IF(ISERROR(Dados!AG908),\"-\",Dados!AG908)","v":""}]
[{"$f":"IF(ISERROR(Dados!A909),\"-\",Dados!A909)","v":""},{"$f":"IF(ISERROR(Dados!B909),\"-\",Dados!B909)","v":""},{"$f":"IF(ISERROR(Dados!C909),\"-\",Dados!C909)","v":""},{"$f":"IF(ISERROR(Dados!D909),\"-\",Dados!D909)","v":""},{"$f":"IF(ISERROR(Dados!E909),\"-\",Dados!E909)","v":""},{"$f":"IF(ISERROR(Dados!F909),\"-\",Dados!F909)","v":""},{"$f":"IF(ISERROR(Dados!G909),\"-\",Dados!G909)","v":""},{"$f":"IF(ISERROR(Dados!H909),\"-\",Dados!H909)","v":""},{"$f":"IF(ISERROR(Dados!I909),\"-\",Dados!I909)","v":""},{"$f":"IF(ISERROR(Dados!J909),\"-\",Dados!J909)","v":""},{"$f":"IF(ISERROR(Dados!K909),\"-\",Dados!K909)","v":""},{"$f":"IF(ISERROR(Dados!L909),\"-\",Dados!L909)","v":""},{"$f":"IF(ISERROR(Dados!M909),\"-\",Dados!M909)","v":""},{"$f":"IF(ISERROR(Dados!N909),\"-\",Dados!N909)","v":""},{"$f":"IF(ISERROR(Dados!O909),\"-\",Dados!O909)","v":""},{"$f":"IF(ISERROR(Dados!P909),\"-\",Dados!P909)","v":""},{"$f":"IF(ISERROR(Dados!Q909),\"-\",Dados!Q909)","v":""},{"$f":"IF(ISERROR(Dados!R909),\"-\",Dados!R909)","v":""},{"$f":"IF(ISERROR(Dados!S909),\"-\",Dados!S909)","v":""},{"$f":"IF(ISERROR(Dados!T909),\"-\",Dados!T909)","v":""},{"$f":"IF(ISERROR(Dados!U909),\"-\",Dados!U909)","v":""},{"$f":"IF(ISERROR(Dados!V909),\"-\",Dados!V909)","v":""},{"$f":"IF(ISERROR(Dados!W909),\"-\",Dados!W909)","v":""},{"$f":"IF(ISERROR(Dados!X909),\"-\",Dados!X909)","v":""},{"$f":"IF(ISERROR(Dados!Y909),\"-\",Dados!Y909)","v":""},{"$f":"IF(ISERROR(Dados!Z909),\"-\",Dados!Z909)","v":""},{"$f":"IF(ISERROR(Dados!AA909),\"-\",Dados!AA909)","v":""},{"$f":"IF(ISERROR(Dados!AB909),\"-\",Dados!AB909)","v":""},{"$f":"IF(ISERROR(Dados!AC909),\"-\",Dados!AC909)","v":""},{"$f":"IF(ISERROR(Dados!AD909),\"-\",Dados!AD909)","v":""},{"$f":"IF(ISERROR(Dados!AE909),\"-\",Dados!AE909)","v":""},{"$f":"IF(ISERROR(Dados!AF909),\"-\",Dados!AF909)","v":""},{"$f":"IF(ISERROR(Dados!AG909),\"-\",Dados!AG909)","v":""}]
[{"$f":"IF(ISERROR(Dados!A910),\"-\",Dados!A910)","v":""},{"$f":"IF(ISERROR(Dados!B910),\"-\",Dados!B910)","v":""},{"$f":"IF(ISERROR(Dados!C910),\"-\",Dados!C910)","v":""},{"$f":"IF(ISERROR(Dados!D910),\"-\",Dados!D910)","v":""},{"$f":"IF(ISERROR(Dados!E910),\"-\",Dados!E910)","v":""},{"$f":"IF(ISERROR(Dados!F910),\"-\",Dados!F910)","v":""},{"$f":"IF(ISERROR(Dados!G910),\"-\",Dados!G910)","v":""},{"$f":"IF(ISERROR(Dados!H910),\"-\",Dados!H910)","v":""},{"$f":"IF(ISERROR(Dados!I910),\"-\",Dados!I910)","v":""},{"$f":"IF(ISERROR(Dados!J910),\"-\",Dados!J910)","v":""},{"$f":"IF(ISERROR(Dados!K910),\"-\",Dados!K910)","v":""},{"$f":"IF(ISERROR(Dados!L910),\"-\",Dados!L910)","v":""},{"$f":"IF(ISERROR(Dados!M910),\"-\",Dados!M910)","v":""},{"$f":"IF(ISERROR(Dados!N910),\"-\",Dados!N910)","v":""},{"$f":"IF(ISERROR(Dados!O910),\"-\",Dados!O910)","v":""},{"$f":"IF(ISERROR(Dados!P910),\"-\",Dados!P910)","v":""},{"$f":"IF(ISERROR(Dados!Q910),\"-\",Dados!Q910)","v":""},{"$f":"IF(ISERROR(Dados!R910),\"-\",Dados!R910)","v":""},{"$f":"IF(ISERROR(Dados!S910),\"-\",Dados!S910)","v":""},{"$f":"IF(ISERROR(Dados!T910),\"-\",Dados!T910)","v":""},{"$f":"IF(ISERROR(Dados!U910),\"-\",Dados!U910)","v":""},{"$f":"IF(ISERROR(Dados!V910),\"-\",Dados!V910)","v":""},{"$f":"IF(ISERROR(Dados!W910),\"-\",Dados!W910)","v":""},{"$f":"IF(ISERROR(Dados!X910),\"-\",Dados!X910)","v":""},{"$f":"IF(ISERROR(Dados!Y910),\"-\",Dados!Y910)","v":""},{"$f":"IF(ISERROR(Dados!Z910),\"-\",Dados!Z910)","v":""},{"$f":"IF(ISERROR(Dados!AA910),\"-\",Dados!AA910)","v":""},{"$f":"IF(ISERROR(Dados!AB910),\"-\",Dados!AB910)","v":""},{"$f":"IF(ISERROR(Dados!AC910),\"-\",Dados!AC910)","v":""},{"$f":"IF(ISERROR(Dados!AD910),\"-\",Dados!AD910)","v":""},{"$f":"IF(ISERROR(Dados!AE910),\"-\",Dados!AE910)","v":""},{"$f":"IF(ISERROR(Dados!AF910),\"-\",Dados!AF910)","v":""},{"$f":"IF(ISERROR(Dados!AG910),\"-\",Dados!AG910)","v":""}]
[{"$f":"IF(ISERROR(Dados!A911),\"-\",Dados!A911)","v":""},{"$f":"IF(ISERROR(Dados!B911),\"-\",Dados!B911)","v":""},{"$f":"IF(ISERROR(Dados!C911),\"-\",Dados!C911)","v":""},{"$f":"IF(ISERROR(Dados!D911),\"-\",Dados!D911)","v":""},{"$f":"IF(ISERROR(Dados!E911),\"-\",Dados!E911)","v":""},{"$f":"IF(ISERROR(Dados!F911),\"-\",Dados!F911)","v":""},{"$f":"IF(ISERROR(Dados!G911),\"-\",Dados!G911)","v":""},{"$f":"IF(ISERROR(Dados!H911),\"-\",Dados!H911)","v":""},{"$f":"IF(ISERROR(Dados!I911),\"-\",Dados!I911)","v":""},{"$f":"IF(ISERROR(Dados!J911),\"-\",Dados!J911)","v":""},{"$f":"IF(ISERROR(Dados!K911),\"-\",Dados!K911)","v":""},{"$f":"IF(ISERROR(Dados!L911),\"-\",Dados!L911)","v":""},{"$f":"IF(ISERROR(Dados!M911),\"-\",Dados!M911)","v":""},{"$f":"IF(ISERROR(Dados!N911),\"-\",Dados!N911)","v":""},{"$f":"IF(ISERROR(Dados!O911),\"-\",Dados!O911)","v":""},{"$f":"IF(ISERROR(Dados!P911),\"-\",Dados!P911)","v":""},{"$f":"IF(ISERROR(Dados!Q911),\"-\",Dados!Q911)","v":""},{"$f":"IF(ISERROR(Dados!R911),\"-\",Dados!R911)","v":""},{"$f":"IF(ISERROR(Dados!S911),\"-\",Dados!S911)","v":""},{"$f":"IF(ISERROR(Dados!T911),\"-\",Dados!T911)","v":""},{"$f":"IF(ISERROR(Dados!U911),\"-\",Dados!U911)","v":""},{"$f":"IF(ISERROR(Dados!V911),\"-\",Dados!V911)","v":""},{"$f":"IF(ISERROR(Dados!W911),\"-\",Dados!W911)","v":""},{"$f":"IF(ISERROR(Dados!X911),\"-\",Dados!X911)","v":""},{"$f":"IF(ISERROR(Dados!Y911),\"-\",Dados!Y911)","v":""},{"$f":"IF(ISERROR(Dados!Z911),\"-\",Dados!Z911)","v":""},{"$f":"IF(ISERROR(Dados!AA911),\"-\",Dados!AA911)","v":""},{"$f":"IF(ISERROR(Dados!AB911),\"-\",Dados!AB911)","v":""},{"$f":"IF(ISERROR(Dados!AC911),\"-\",Dados!AC911)","v":""},{"$f":"IF(ISERROR(Dados!AD911),\"-\",Dados!AD911)","v":""},{"$f":"IF(ISERROR(Dados!AE911),\"-\",Dados!AE911)","v":""},{"$f":"IF(ISERROR(Dados!AF911),\"-\",Dados!AF911)","v":""},{"$f":"IF(ISERROR(Dados!AG911),\"-\",Dados!AG911)","v":""}]
[{"$f":"IF(ISERROR(Dados!A912),\"-\",Dados!A912)","v":""},{"$f":"IF(ISERROR(Dados!B912),\"-\",Dados!B912)","v":""},{"$f":"IF(ISERROR(Dados!C912),\"-\",Dados!C912)","v":""},{"$f":"IF(ISERROR(Dados!D912),\"-\",Dados!D912)","v":""},{"$f":"IF(ISERROR(Dados!E912),\"-\",Dados!E912)","v":""},{"$f":"IF(ISERROR(Dados!F912),\"-\",Dados!F912)","v":""},{"$f":"IF(ISERROR(Dados!G912),\"-\",Dados!G912)","v":""},{"$f":"IF(ISERROR(Dados!H912),\"-\",Dados!H912)","v":""},{"$f":"IF(ISERROR(Dados!I912),\"-\",Dados!I912)","v":""},{"$f":"IF(ISERROR(Dados!J912),\"-\",Dados!J912)","v":""},{"$f":"IF(ISERROR(Dados!K912),\"-\",Dados!K912)","v":""},{"$f":"IF(ISERROR(Dados!L912),\"-\",Dados!L912)","v":""},{"$f":"IF(ISERROR(Dados!M912),\"-\",Dados!M912)","v":""},{"$f":"IF(ISERROR(Dados!N912),\"-\",Dados!N912)","v":""},{"$f":"IF(ISERROR(Dados!O912),\"-\",Dados!O912)","v":""},{"$f":"IF(ISERROR(Dados!P912),\"-\",Dados!P912)","v":""},{"$f":"IF(ISERROR(Dados!Q912),\"-\",Dados!Q912)","v":""},{"$f":"IF(ISERROR(Dados!R912),\"-\",Dados!R912)","v":""},{"$f":"IF(ISERROR(Dados!S912),\"-\",Dados!S912)","v":""},{"$f":"IF(ISERROR(Dados!T912),\"-\",Dados!T912)","v":""},{"$f":"IF(ISERROR(Dados!U912),\"-\",Dados!U912)","v":""},{"$f":"IF(ISERROR(Dados!V912),\"-\",Dados!V912)","v":""},{"$f":"IF(ISERROR(Dados!W912),\"-\",Dados!W912)","v":""},{"$f":"IF(ISERROR(Dados!X912),\"-\",Dados!X912)","v":""},{"$f":"IF(ISERROR(Dados!Y912),\"-\",Dados!Y912)","v":""},{"$f":"IF(ISERROR(Dados!Z912),\"-\",Dados!Z912)","v":""},{"$f":"IF(ISERROR(Dados!AA912),\"-\",Dados!AA912)","v":""},{"$f":"IF(ISERROR(Dados!AB912),\"-\",Dados!AB912)","v":""},{"$f":"IF(ISERROR(Dados!AC912),\"-\",Dados!AC912)","v":""},{"$f":"IF(ISERROR(Dados!AD912),\"-\",Dados!AD912)","v":""},{"$f":"IF(ISERROR(Dados!AE912),\"-\",Dados!AE912)","v":""},{"$f":"IF(ISERROR(Dados!AF912),\"-\",Dados!AF912)","v":""},{"$f":"IF(ISERROR(Dados!AG912),\"-\",Dados!AG912)","v":""}]
[{"$f":"IF(ISERROR(Dados!A913),\"-\",Dados!A913)","v":""},{"$f":"IF(ISERROR(Dados!B913),\"-\",Dados!B913)","v":""},{"$f":"IF(ISERROR(Dados!C913),\"-\",Dados!C913)","v":""},{"$f":"IF(ISERROR(Dados!D913),\"-\",Dados!D913)","v":""},{"$f":"IF(ISERROR(Dados!E913),\"-\",Dados!E913)","v":""},{"$f":"IF(ISERROR(Dados!F913),\"-\",Dados!F913)","v":""},{"$f":"IF(ISERROR(Dados!G913),\"-\",Dados!G913)","v":""},{"$f":"IF(ISERROR(Dados!H913),\"-\",Dados!H913)","v":""},{"$f":"IF(ISERROR(Dados!I913),\"-\",Dados!I913)","v":""},{"$f":"IF(ISERROR(Dados!J913),\"-\",Dados!J913)","v":""},{"$f":"IF(ISERROR(Dados!K913),\"-\",Dados!K913)","v":""},{"$f":"IF(ISERROR(Dados!L913),\"-\",Dados!L913)","v":""},{"$f":"IF(ISERROR(Dados!M913),\"-\",Dados!M913)","v":""},{"$f":"IF(ISERROR(Dados!N913),\"-\",Dados!N913)","v":""},{"$f":"IF(ISERROR(Dados!O913),\"-\",Dados!O913)","v":""},{"$f":"IF(ISERROR(Dados!P913),\"-\",Dados!P913)","v":""},{"$f":"IF(ISERROR(Dados!Q913),\"-\",Dados!Q913)","v":""},{"$f":"IF(ISERROR(Dados!R913),\"-\",Dados!R913)","v":""},{"$f":"IF(ISERROR(Dados!S913),\"-\",Dados!S913)","v":""},{"$f":"IF(ISERROR(Dados!T913),\"-\",Dados!T913)","v":""},{"$f":"IF(ISERROR(Dados!U913),\"-\",Dados!U913)","v":""},{"$f":"IF(ISERROR(Dados!V913),\"-\",Dados!V913)","v":""},{"$f":"IF(ISERROR(Dados!W913),\"-\",Dados!W913)","v":""},{"$f":"IF(ISERROR(Dados!X913),\"-\",Dados!X913)","v":""},{"$f":"IF(ISERROR(Dados!Y913),\"-\",Dados!Y913)","v":""},{"$f":"IF(ISERROR(Dados!Z913),\"-\",Dados!Z913)","v":""},{"$f":"IF(ISERROR(Dados!AA913),\"-\",Dados!AA913)","v":""},{"$f":"IF(ISERROR(Dados!AB913),\"-\",Dados!AB913)","v":""},{"$f":"IF(ISERROR(Dados!AC913),\"-\",Dados!AC913)","v":""},{"$f":"IF(ISERROR(Dados!AD913),\"-\",Dados!AD913)","v":""},{"$f":"IF(ISERROR(Dados!AE913),\"-\",Dados!AE913)","v":""},{"$f":"IF(ISERROR(Dados!AF913),\"-\",Dados!AF913)","v":""},{"$f":"IF(ISERROR(Dados!AG913),\"-\",Dados!AG913)","v":""}]
[{"$f":"IF(ISERROR(Dados!A914),\"-\",Dados!A914)","v":""},{"$f":"IF(ISERROR(Dados!B914),\"-\",Dados!B914)","v":""},{"$f":"IF(ISERROR(Dados!C914),\"-\",Dados!C914)","v":""},{"$f":"IF(ISERROR(Dados!D914),\"-\",Dados!D914)","v":""},{"$f":"IF(ISERROR(Dados!E914),\"-\",Dados!E914)","v":""},{"$f":"IF(ISERROR(Dados!F914),\"-\",Dados!F914)","v":""},{"$f":"IF(ISERROR(Dados!G914),\"-\",Dados!G914)","v":""},{"$f":"IF(ISERROR(Dados!H914),\"-\",Dados!H914)","v":""},{"$f":"IF(ISERROR(Dados!I914),\"-\",Dados!I914)","v":""},{"$f":"IF(ISERROR(Dados!J914),\"-\",Dados!J914)","v":""},{"$f":"IF(ISERROR(Dados!K914),\"-\",Dados!K914)","v":""},{"$f":"IF(ISERROR(Dados!L914),\"-\",Dados!L914)","v":""},{"$f":"IF(ISERROR(Dados!M914),\"-\",Dados!M914)","v":""},{"$f":"IF(ISERROR(Dados!N914),\"-\",Dados!N914)","v":""},{"$f":"IF(ISERROR(Dados!O914),\"-\",Dados!O914)","v":""},{"$f":"IF(ISERROR(Dados!P914),\"-\",Dados!P914)","v":""},{"$f":"IF(ISERROR(Dados!Q914),\"-\",Dados!Q914)","v":""},{"$f":"IF(ISERROR(Dados!R914),\"-\",Dados!R914)","v":""},{"$f":"IF(ISERROR(Dados!S914),\"-\",Dados!S914)","v":""},{"$f":"IF(ISERROR(Dados!T914),\"-\",Dados!T914)","v":""},{"$f":"IF(ISERROR(Dados!U914),\"-\",Dados!U914)","v":""},{"$f":"IF(ISERROR(Dados!V914),\"-\",Dados!V914)","v":""},{"$f":"IF(ISERROR(Dados!W914),\"-\",Dados!W914)","v":""},{"$f":"IF(ISERROR(Dados!X914),\"-\",Dados!X914)","v":""},{"$f":"IF(ISERROR(Dados!Y914),\"-\",Dados!Y914)","v":""},{"$f":"IF(ISERROR(Dados!Z914),\"-\",Dados!Z914)","v":""},{"$f":"IF(ISERROR(Dados!AA914),\"-\",Dados!AA914)","v":""},{"$f":"IF(ISERROR(Dados!AB914),\"-\",Dados!AB914)","v":""},{"$f":"IF(ISERROR(Dados!AC914),\"-\",Dados!AC914)","v":""},{"$f":"IF(ISERROR(Dados!AD914),\"-\",Dados!AD914)","v":""},{"$f":"IF(ISERROR(Dados!AE914),\"-\",Dados!AE914)","v":""},{"$f":"IF(ISERROR(Dados!AF914),\"-\",Dados!AF914)","v":""},{"$f":"IF(ISERROR(Dados!AG914),\"-\",Dados!AG914)","v":""}]
[{"$f":"IF(ISERROR(Dados!A915),\"-\",Dados!A915)","v":""},{"$f":"IF(ISERROR(Dados!B915),\"-\",Dados!B915)","v":""},{"$f":"IF(ISERROR(Dados!C915),\"-\",Dados!C915)","v":""},{"$f":"IF(ISERROR(Dados!D915),\"-\",Dados!D915)","v":""},{"$f":"IF(ISERROR(Dados!E915),\"-\",Dados!E915)","v":""},{"$f":"IF(ISERROR(Dados!F915),\"-\",Dados!F915)","v":""},{"$f":"IF(ISERROR(Dados!G915),\"-\",Dados!G915)","v":""},{"$f":"IF(ISERROR(Dados!H915),\"-\",Dados!H915)","v":""},{"$f":"IF(ISERROR(Dados!I915),\"-\",Dados!I915)","v":""},{"$f":"IF(ISERROR(Dados!J915),\"-\",Dados!J915)","v":""},{"$f":"IF(ISERROR(Dados!K915),\"-\",Dados!K915)","v":""},{"$f":"IF(ISERROR(Dados!L915),\"-\",Dados!L915)","v":""},{"$f":"IF(ISERROR(Dados!M915),\"-\",Dados!M915)","v":""},{"$f":"IF(ISERROR(Dados!N915),\"-\",Dados!N915)","v":""},{"$f":"IF(ISERROR(Dados!O915),\"-\",Dados!O915)","v":""},{"$f":"IF(ISERROR(Dados!P915),\"-\",Dados!P915)","v":""},{"$f":"IF(ISERROR(Dados!Q915),\"-\",Dados!Q915)","v":""},{"$f":"IF(ISERROR(Dados!R915),\"-\",Dados!R915)","v":""},{"$f":"IF(ISERROR(Dados!S915),\"-\",Dados!S915)","v":""},{"$f":"IF(ISERROR(Dados!T915),\"-\",Dados!T915)","v":""},{"$f":"IF(ISERROR(Dados!U915),\"-\",Dados!U915)","v":""},{"$f":"IF(ISERROR(Dados!V915),\"-\",Dados!V915)","v":""},{"$f":"IF(ISERROR(Dados!W915),\"-\",Dados!W915)","v":""},{"$f":"IF(ISERROR(Dados!X915),\"-\",Dados!X915)","v":""},{"$f":"IF(ISERROR(Dados!Y915),\"-\",Dados!Y915)","v":""},{"$f":"IF(ISERROR(Dados!Z915),\"-\",Dados!Z915)","v":""},{"$f":"IF(ISERROR(Dados!AA915),\"-\",Dados!AA915)","v":""},{"$f":"IF(ISERROR(Dados!AB915),\"-\",Dados!AB915)","v":""},{"$f":"IF(ISERROR(Dados!AC915),\"-\",Dados!AC915)","v":""},{"$f":"IF(ISERROR(Dados!AD915),\"-\",Dados!AD915)","v":""},{"$f":"IF(ISERROR(Dados!AE915),\"-\",Dados!AE915)","v":""},{"$f":"IF(ISERROR(Dados!AF915),\"-\",Dados!AF915)","v":""},{"$f":"IF(ISERROR(Dados!AG915),\"-\",Dados!AG915)","v":""}]
[{"$f":"IF(ISERROR(Dados!A916),\"-\",Dados!A916)","v":""},{"$f":"IF(ISERROR(Dados!B916),\"-\",Dados!B916)","v":""},{"$f":"IF(ISERROR(Dados!C916),\"-\",Dados!C916)","v":""},{"$f":"IF(ISERROR(Dados!D916),\"-\",Dados!D916)","v":""},{"$f":"IF(ISERROR(Dados!E916),\"-\",Dados!E916)","v":""},{"$f":"IF(ISERROR(Dados!F916),\"-\",Dados!F916)","v":""},{"$f":"IF(ISERROR(Dados!G916),\"-\",Dados!G916)","v":""},{"$f":"IF(ISERROR(Dados!H916),\"-\",Dados!H916)","v":""},{"$f":"IF(ISERROR(Dados!I916),\"-\",Dados!I916)","v":""},{"$f":"IF(ISERROR(Dados!J916),\"-\",Dados!J916)","v":""},{"$f":"IF(ISERROR(Dados!K916),\"-\",Dados!K916)","v":""},{"$f":"IF(ISERROR(Dados!L916),\"-\",Dados!L916)","v":""},{"$f":"IF(ISERROR(Dados!M916),\"-\",Dados!M916)","v":""},{"$f":"IF(ISERROR(Dados!N916),\"-\",Dados!N916)","v":""},{"$f":"IF(ISERROR(Dados!O916),\"-\",Dados!O916)","v":""},{"$f":"IF(ISERROR(Dados!P916),\"-\",Dados!P916)","v":""},{"$f":"IF(ISERROR(Dados!Q916),\"-\",Dados!Q916)","v":""},{"$f":"IF(ISERROR(Dados!R916),\"-\",Dados!R916)","v":""},{"$f":"IF(ISERROR(Dados!S916),\"-\",Dados!S916)","v":""},{"$f":"IF(ISERROR(Dados!T916),\"-\",Dados!T916)","v":""},{"$f":"IF(ISERROR(Dados!U916),\"-\",Dados!U916)","v":""},{"$f":"IF(ISERROR(Dados!V916),\"-\",Dados!V916)","v":""},{"$f":"IF(ISERROR(Dados!W916),\"-\",Dados!W916)","v":""},{"$f":"IF(ISERROR(Dados!X916),\"-\",Dados!X916)","v":""},{"$f":"IF(ISERROR(Dados!Y916),\"-\",Dados!Y916)","v":""},{"$f":"IF(ISERROR(Dados!Z916),\"-\",Dados!Z916)","v":""},{"$f":"IF(ISERROR(Dados!AA916),\"-\",Dados!AA916)","v":""},{"$f":"IF(ISERROR(Dados!AB916),\"-\",Dados!AB916)","v":""},{"$f":"IF(ISERROR(Dados!AC916),\"-\",Dados!AC916)","v":""},{"$f":"IF(ISERROR(Dados!AD916),\"-\",Dados!AD916)","v":""},{"$f":"IF(ISERROR(Dados!AE916),\"-\",Dados!AE916)","v":""},{"$f":"IF(ISERROR(Dados!AF916),\"-\",Dados!AF916)","v":""},{"$f":"IF(ISERROR(Dados!AG916),\"-\",Dados!AG916)","v":""}]
[{"$f":"IF(ISERROR(Dados!A917),\"-\",Dados!A917)","v":""},{"$f":"IF(ISERROR(Dados!B917),\"-\",Dados!B917)","v":""},{"$f":"IF(ISERROR(Dados!C917),\"-\",Dados!C917)","v":""},{"$f":"IF(ISERROR(Dados!D917),\"-\",Dados!D917)","v":""},{"$f":"IF(ISERROR(Dados!E917),\"-\",Dados!E917)","v":""},{"$f":"IF(ISERROR(Dados!F917),\"-\",Dados!F917)","v":""},{"$f":"IF(ISERROR(Dados!G917),\"-\",Dados!G917)","v":""},{"$f":"IF(ISERROR(Dados!H917),\"-\",Dados!H917)","v":""},{"$f":"IF(ISERROR(Dados!I917),\"-\",Dados!I917)","v":""},{"$f":"IF(ISERROR(Dados!J917),\"-\",Dados!J917)","v":""},{"$f":"IF(ISERROR(Dados!K917),\"-\",Dados!K917)","v":""},{"$f":"IF(ISERROR(Dados!L917),\"-\",Dados!L917)","v":""},{"$f":"IF(ISERROR(Dados!M917),\"-\",Dados!M917)","v":""},{"$f":"IF(ISERROR(Dados!N917),\"-\",Dados!N917)","v":""},{"$f":"IF(ISERROR(Dados!O917),\"-\",Dados!O917)","v":""},{"$f":"IF(ISERROR(Dados!P917),\"-\",Dados!P917)","v":""},{"$f":"IF(ISERROR(Dados!Q917),\"-\",Dados!Q917)","v":""},{"$f":"IF(ISERROR(Dados!R917),\"-\",Dados!R917)","v":""},{"$f":"IF(ISERROR(Dados!S917),\"-\",Dados!S917)","v":""},{"$f":"IF(ISERROR(Dados!T917),\"-\",Dados!T917)","v":""},{"$f":"IF(ISERROR(Dados!U917),\"-\",Dados!U917)","v":""},{"$f":"IF(ISERROR(Dados!V917),\"-\",Dados!V917)","v":""},{"$f":"IF(ISERROR(Dados!W917),\"-\",Dados!W917)","v":""},{"$f":"IF(ISERROR(Dados!X917),\"-\",Dados!X917)","v":""},{"$f":"IF(ISERROR(Dados!Y917),\"-\",Dados!Y917)","v":""},{"$f":"IF(ISERROR(Dados!Z917),\"-\",Dados!Z917)","v":""},{"$f":"IF(ISERROR(Dados!AA917),\"-\",Dados!AA917)","v":""},{"$f":"IF(ISERROR(Dados!AB917),\"-\",Dados!AB917)","v":""},{"$f":"IF(ISERROR(Dados!AC917),\"-\",Dados!AC917)","v":""},{"$f":"IF(ISERROR(Dados!AD917),\"-\",Dados!AD917)","v":""},{"$f":"IF(ISERROR(Dados!AE917),\"-\",Dados!AE917)","v":""},{"$f":"IF(ISERROR(Dados!AF917),\"-\",Dados!AF917)","v":""},{"$f":"IF(ISERROR(Dados!AG917),\"-\",Dados!AG917)","v":""}]
[{"$f":"IF(ISERROR(Dados!A918),\"-\",Dados!A918)","v":""},{"$f":"IF(ISERROR(Dados!B918),\"-\",Dados!B918)","v":""},{"$f":"IF(ISERROR(Dados!C918),\"-\",Dados!C918)","v":""},{"$f":"IF(ISERROR(Dados!D918),\"-\",Dados!D918)","v":""},{"$f":"IF(ISERROR(Dados!E918),\"-\",Dados!E918)","v":""},{"$f":"IF(ISERROR(Dados!F918),\"-\",Dados!F918)","v":""},{"$f":"IF(ISERROR(Dados!G918),\"-\",Dados!G918)","v":""},{"$f":"IF(ISERROR(Dados!H918),\"-\",Dados!H918)","v":""},{"$f":"IF(ISERROR(Dados!I918),\"-\",Dados!I918)","v":""},{"$f":"IF(ISERROR(Dados!J918),\"-\",Dados!J918)","v":""},{"$f":"IF(ISERROR(Dados!K918),\"-\",Dados!K918)","v":""},{"$f":"IF(ISERROR(Dados!L918),\"-\",Dados!L918)","v":""},{"$f":"IF(ISERROR(Dados!M918),\"-\",Dados!M918)","v":""},{"$f":"IF(ISERROR(Dados!N918),\"-\",Dados!N918)","v":""},{"$f":"IF(ISERROR(Dados!O918),\"-\",Dados!O918)","v":""},{"$f":"IF(ISERROR(Dados!P918),\"-\",Dados!P918)","v":""},{"$f":"IF(ISERROR(Dados!Q918),\"-\",Dados!Q918)","v":""},{"$f":"IF(ISERROR(Dados!R918),\"-\",Dados!R918)","v":""},{"$f":"IF(ISERROR(Dados!S918),\"-\",Dados!S918)","v":""},{"$f":"IF(ISERROR(Dados!T918),\"-\",Dados!T918)","v":""},{"$f":"IF(ISERROR(Dados!U918),\"-\",Dados!U918)","v":""},{"$f":"IF(ISERROR(Dados!V918),\"-\",Dados!V918)","v":""},{"$f":"IF(ISERROR(Dados!W918),\"-\",Dados!W918)","v":""},{"$f":"IF(ISERROR(Dados!X918),\"-\",Dados!X918)","v":""},{"$f":"IF(ISERROR(Dados!Y918),\"-\",Dados!Y918)","v":""},{"$f":"IF(ISERROR(Dados!Z918),\"-\",Dados!Z918)","v":""},{"$f":"IF(ISERROR(Dados!AA918),\"-\",Dados!AA918)","v":""},{"$f":"IF(ISERROR(Dados!AB918),\"-\",Dados!AB918)","v":""},{"$f":"IF(ISERROR(Dados!AC918),\"-\",Dados!AC918)","v":""},{"$f":"IF(ISERROR(Dados!AD918),\"-\",Dados!AD918)","v":""},{"$f":"IF(ISERROR(Dados!AE918),\"-\",Dados!AE918)","v":""},{"$f":"IF(ISERROR(Dados!AF918),\"-\",Dados!AF918)","v":""},{"$f":"IF(ISERROR(Dados!AG918),\"-\",Dados!AG918)","v":""}]
[{"$f":"IF(ISERROR(Dados!A919),\"-\",Dados!A919)","v":""},{"$f":"IF(ISERROR(Dados!B919),\"-\",Dados!B919)","v":""},{"$f":"IF(ISERROR(Dados!C919),\"-\",Dados!C919)","v":""},{"$f":"IF(ISERROR(Dados!D919),\"-\",Dados!D919)","v":""},{"$f":"IF(ISERROR(Dados!E919),\"-\",Dados!E919)","v":""},{"$f":"IF(ISERROR(Dados!F919),\"-\",Dados!F919)","v":""},{"$f":"IF(ISERROR(Dados!G919),\"-\",Dados!G919)","v":""},{"$f":"IF(ISERROR(Dados!H919),\"-\",Dados!H919)","v":""},{"$f":"IF(ISERROR(Dados!I919),\"-\",Dados!I919)","v":""},{"$f":"IF(ISERROR(Dados!J919),\"-\",Dados!J919)","v":""},{"$f":"IF(ISERROR(Dados!K919),\"-\",Dados!K919)","v":""},{"$f":"IF(ISERROR(Dados!L919),\"-\",Dados!L919)","v":""},{"$f":"IF(ISERROR(Dados!M919),\"-\",Dados!M919)","v":""},{"$f":"IF(ISERROR(Dados!N919),\"-\",Dados!N919)","v":""},{"$f":"IF(ISERROR(Dados!O919),\"-\",Dados!O919)","v":""},{"$f":"IF(ISERROR(Dados!P919),\"-\",Dados!P919)","v":""},{"$f":"IF(ISERROR(Dados!Q919),\"-\",Dados!Q919)","v":""},{"$f":"IF(ISERROR(Dados!R919),\"-\",Dados!R919)","v":""},{"$f":"IF(ISERROR(Dados!S919),\"-\",Dados!S919)","v":""},{"$f":"IF(ISERROR(Dados!T919),\"-\",Dados!T919)","v":""},{"$f":"IF(ISERROR(Dados!U919),\"-\",Dados!U919)","v":""},{"$f":"IF(ISERROR(Dados!V919),\"-\",Dados!V919)","v":""},{"$f":"IF(ISERROR(Dados!W919),\"-\",Dados!W919)","v":""},{"$f":"IF(ISERROR(Dados!X919),\"-\",Dados!X919)","v":""},{"$f":"IF(ISERROR(Dados!Y919),\"-\",Dados!Y919)","v":""},{"$f":"IF(ISERROR(Dados!Z919),\"-\",Dados!Z919)","v":""},{"$f":"IF(ISERROR(Dados!AA919),\"-\",Dados!AA919)","v":""},{"$f":"IF(ISERROR(Dados!AB919),\"-\",Dados!AB919)","v":""},{"$f":"IF(ISERROR(Dados!AC919),\"-\",Dados!AC919)","v":""},{"$f":"IF(ISERROR(Dados!AD919),\"-\",Dados!AD919)","v":""},{"$f":"IF(ISERROR(Dados!AE919),\"-\",Dados!AE919)","v":""},{"$f":"IF(ISERROR(Dados!AF919),\"-\",Dados!AF919)","v":""},{"$f":"IF(ISERROR(Dados!AG919),\"-\",Dados!AG919)","v":""}]
[{"$f":"IF(ISERROR(Dados!A920),\"-\",Dados!A920)","v":""},{"$f":"IF(ISERROR(Dados!B920),\"-\",Dados!B920)","v":""},{"$f":"IF(ISERROR(Dados!C920),\"-\",Dados!C920)","v":""},{"$f":"IF(ISERROR(Dados!D920),\"-\",Dados!D920)","v":""},{"$f":"IF(ISERROR(Dados!E920),\"-\",Dados!E920)","v":""},{"$f":"IF(ISERROR(Dados!F920),\"-\",Dados!F920)","v":""},{"$f":"IF(ISERROR(Dados!G920),\"-\",Dados!G920)","v":""},{"$f":"IF(ISERROR(Dados!H920),\"-\",Dados!H920)","v":""},{"$f":"IF(ISERROR(Dados!I920),\"-\",Dados!I920)","v":""},{"$f":"IF(ISERROR(Dados!J920),\"-\",Dados!J920)","v":""},{"$f":"IF(ISERROR(Dados!K920),\"-\",Dados!K920)","v":""},{"$f":"IF(ISERROR(Dados!L920),\"-\",Dados!L920)","v":""},{"$f":"IF(ISERROR(Dados!M920),\"-\",Dados!M920)","v":""},{"$f":"IF(ISERROR(Dados!N920),\"-\",Dados!N920)","v":""},{"$f":"IF(ISERROR(Dados!O920),\"-\",Dados!O920)","v":""},{"$f":"IF(ISERROR(Dados!P920),\"-\",Dados!P920)","v":""},{"$f":"IF(ISERROR(Dados!Q920),\"-\",Dados!Q920)","v":""},{"$f":"IF(ISERROR(Dados!R920),\"-\",Dados!R920)","v":""},{"$f":"IF(ISERROR(Dados!S920),\"-\",Dados!S920)","v":""},{"$f":"IF(ISERROR(Dados!T920),\"-\",Dados!T920)","v":""},{"$f":"IF(ISERROR(Dados!U920),\"-\",Dados!U920)","v":""},{"$f":"IF(ISERROR(Dados!V920),\"-\",Dados!V920)","v":""},{"$f":"IF(ISERROR(Dados!W920),\"-\",Dados!W920)","v":""},{"$f":"IF(ISERROR(Dados!X920),\"-\",Dados!X920)","v":""},{"$f":"IF(ISERROR(Dados!Y920),\"-\",Dados!Y920)","v":""},{"$f":"IF(ISERROR(Dados!Z920),\"-\",Dados!Z920)","v":""},{"$f":"IF(ISERROR(Dados!AA920),\"-\",Dados!AA920)","v":""},{"$f":"IF(ISERROR(Dados!AB920),\"-\",Dados!AB920)","v":""},{"$f":"IF(ISERROR(Dados!AC920),\"-\",Dados!AC920)","v":""},{"$f":"IF(ISERROR(Dados!AD920),\"-\",Dados!AD920)","v":""},{"$f":"IF(ISERROR(Dados!AE920),\"-\",Dados!AE920)","v":""},{"$f":"IF(ISERROR(Dados!AF920),\"-\",Dados!AF920)","v":""},{"$f":"IF(ISERROR(Dados!AG920),\"-\",Dados!AG920)","v":""}]
[{"$f":"IF(ISERROR(Dados!A921),\"-\",Dados!A921)","v":""},{"$f":"IF(ISERROR(Dados!B921),\"-\",Dados!B921)","v":""},{"$f":"IF(ISERROR(Dados!C921),\"-\",Dados!C921)","v":""},{"$f":"IF(ISERROR(Dados!D921),\"-\",Dados!D921)","v":""},{"$f":"IF(ISERROR(Dados!E921),\"-\",Dados!E921)","v":""},{"$f":"IF(ISERROR(Dados!F921),\"-\",Dados!F921)","v":""},{"$f":"IF(ISERROR(Dados!G921),\"-\",Dados!G921)","v":""},{"$f":"IF(ISERROR(Dados!H921),\"-\",Dados!H921)","v":""},{"$f":"IF(ISERROR(Dados!I921),\"-\",Dados!I921)","v":""},{"$f":"IF(ISERROR(Dados!J921),\"-\",Dados!J921)","v":""},{"$f":"IF(ISERROR(Dados!K921),\"-\",Dados!K921)","v":""},{"$f":"IF(ISERROR(Dados!L921),\"-\",Dados!L921)","v":""},{"$f":"IF(ISERROR(Dados!M921),\"-\",Dados!M921)","v":""},{"$f":"IF(ISERROR(Dados!N921),\"-\",Dados!N921)","v":""},{"$f":"IF(ISERROR(Dados!O921),\"-\",Dados!O921)","v":""},{"$f":"IF(ISERROR(Dados!P921),\"-\",Dados!P921)","v":""},{"$f":"IF(ISERROR(Dados!Q921),\"-\",Dados!Q921)","v":""},{"$f":"IF(ISERROR(Dados!R921),\"-\",Dados!R921)","v":""},{"$f":"IF(ISERROR(Dados!S921),\"-\",Dados!S921)","v":""},{"$f":"IF(ISERROR(Dados!T921),\"-\",Dados!T921)","v":""},{"$f":"IF(ISERROR(Dados!U921),\"-\",Dados!U921)","v":""},{"$f":"IF(ISERROR(Dados!V921),\"-\",Dados!V921)","v":""},{"$f":"IF(ISERROR(Dados!W921),\"-\",Dados!W921)","v":""},{"$f":"IF(ISERROR(Dados!X921),\"-\",Dados!X921)","v":""},{"$f":"IF(ISERROR(Dados!Y921),\"-\",Dados!Y921)","v":""},{"$f":"IF(ISERROR(Dados!Z921),\"-\",Dados!Z921)","v":""},{"$f":"IF(ISERROR(Dados!AA921),\"-\",Dados!AA921)","v":""},{"$f":"IF(ISERROR(Dados!AB921),\"-\",Dados!AB921)","v":""},{"$f":"IF(ISERROR(Dados!AC921),\"-\",Dados!AC921)","v":""},{"$f":"IF(ISERROR(Dados!AD921),\"-\",Dados!AD921)","v":""},{"$f":"IF(ISERROR(Dados!AE921),\"-\",Dados!AE921)","v":""},{"$f":"IF(ISERROR(Dados!AF921),\"-\",Dados!AF921)","v":""},{"$f":"IF(ISERROR(Dados!AG921),\"-\",Dados!AG921)","v":""}]
[{"$f":"IF(ISERROR(Dados!A922),\"-\",Dados!A922)","v":""},{"$f":"IF(ISERROR(Dados!B922),\"-\",Dados!B922)","v":""},{"$f":"IF(ISERROR(Dados!C922),\"-\",Dados!C922)","v":""},{"$f":"IF(ISERROR(Dados!D922),\"-\",Dados!D922)","v":""},{"$f":"IF(ISERROR(Dados!E922),\"-\",Dados!E922)","v":""},{"$f":"IF(ISERROR(Dados!F922),\"-\",Dados!F922)","v":""},{"$f":"IF(ISERROR(Dados!G922),\"-\",Dados!G922)","v":""},{"$f":"IF(ISERROR(Dados!H922),\"-\",Dados!H922)","v":""},{"$f":"IF(ISERROR(Dados!I922),\"-\",Dados!I922)","v":""},{"$f":"IF(ISERROR(Dados!J922),\"-\",Dados!J922)","v":""},{"$f":"IF(ISERROR(Dados!K922),\"-\",Dados!K922)","v":""},{"$f":"IF(ISERROR(Dados!L922),\"-\",Dados!L922)","v":""},{"$f":"IF(ISERROR(Dados!M922),\"-\",Dados!M922)","v":""},{"$f":"IF(ISERROR(Dados!N922),\"-\",Dados!N922)","v":""},{"$f":"IF(ISERROR(Dados!O922),\"-\",Dados!O922)","v":""},{"$f":"IF(ISERROR(Dados!P922),\"-\",Dados!P922)","v":""},{"$f":"IF(ISERROR(Dados!Q922),\"-\",Dados!Q922)","v":""},{"$f":"IF(ISERROR(Dados!R922),\"-\",Dados!R922)","v":""},{"$f":"IF(ISERROR(Dados!S922),\"-\",Dados!S922)","v":""},{"$f":"IF(ISERROR(Dados!T922),\"-\",Dados!T922)","v":""},{"$f":"IF(ISERROR(Dados!U922),\"-\",Dados!U922)","v":""},{"$f":"IF(ISERROR(Dados!V922),\"-\",Dados!V922)","v":""},{"$f":"IF(ISERROR(Dados!W922),\"-\",Dados!W922)","v":""},{"$f":"IF(ISERROR(Dados!X922),\"-\",Dados!X922)","v":""},{"$f":"IF(ISERROR(Dados!Y922),\"-\",Dados!Y922)","v":""},{"$f":"IF(ISERROR(Dados!Z922),\"-\",Dados!Z922)","v":""},{"$f":"IF(ISERROR(Dados!AA922),\"-\",Dados!AA922)","v":""},{"$f":"IF(ISERROR(Dados!AB922),\"-\",Dados!AB922)","v":""},{"$f":"IF(ISERROR(Dados!AC922),\"-\",Dados!AC922)","v":""},{"$f":"IF(ISERROR(Dados!AD922),\"-\",Dados!AD922)","v":""},{"$f":"IF(ISERROR(Dados!AE922),\"-\",Dados!AE922)","v":""},{"$f":"IF(ISERROR(Dados!AF922),\"-\",Dados!AF922)","v":""},{"$f":"IF(ISERROR(Dados!AG922),\"-\",Dados!AG922)","v":""}]
[{"$f":"IF(ISERROR(Dados!A923),\"-\",Dados!A923)","v":""},{"$f":"IF(ISERROR(Dados!B923),\"-\",Dados!B923)","v":""},{"$f":"IF(ISERROR(Dados!C923),\"-\",Dados!C923)","v":""},{"$f":"IF(ISERROR(Dados!D923),\"-\",Dados!D923)","v":""},{"$f":"IF(ISERROR(Dados!E923),\"-\",Dados!E923)","v":""},{"$f":"IF(ISERROR(Dados!F923),\"-\",Dados!F923)","v":""},{"$f":"IF(ISERROR(Dados!G923),\"-\",Dados!G923)","v":""},{"$f":"IF(ISERROR(Dados!H923),\"-\",Dados!H923)","v":""},{"$f":"IF(ISERROR(Dados!I923),\"-\",Dados!I923)","v":""},{"$f":"IF(ISERROR(Dados!J923),\"-\",Dados!J923)","v":""},{"$f":"IF(ISERROR(Dados!K923),\"-\",Dados!K923)","v":""},{"$f":"IF(ISERROR(Dados!L923),\"-\",Dados!L923)","v":""},{"$f":"IF(ISERROR(Dados!M923),\"-\",Dados!M923)","v":""},{"$f":"IF(ISERROR(Dados!N923),\"-\",Dados!N923)","v":""},{"$f":"IF(ISERROR(Dados!O923),\"-\",Dados!O923)","v":""},{"$f":"IF(ISERROR(Dados!P923),\"-\",Dados!P923)","v":""},{"$f":"IF(ISERROR(Dados!Q923),\"-\",Dados!Q923)","v":""},{"$f":"IF(ISERROR(Dados!R923),\"-\",Dados!R923)","v":""},{"$f":"IF(ISERROR(Dados!S923),\"-\",Dados!S923)","v":""},{"$f":"IF(ISERROR(Dados!T923),\"-\",Dados!T923)","v":""},{"$f":"IF(ISERROR(Dados!U923),\"-\",Dados!U923)","v":""},{"$f":"IF(ISERROR(Dados!V923),\"-\",Dados!V923)","v":""},{"$f":"IF(ISERROR(Dados!W923),\"-\",Dados!W923)","v":""},{"$f":"IF(ISERROR(Dados!X923),\"-\",Dados!X923)","v":""},{"$f":"IF(ISERROR(Dados!Y923),\"-\",Dados!Y923)","v":""},{"$f":"IF(ISERROR(Dados!Z923),\"-\",Dados!Z923)","v":""},{"$f":"IF(ISERROR(Dados!AA923),\"-\",Dados!AA923)","v":""},{"$f":"IF(ISERROR(Dados!AB923),\"-\",Dados!AB923)","v":""},{"$f":"IF(ISERROR(Dados!AC923),\"-\",Dados!AC923)","v":""},{"$f":"IF(ISERROR(Dados!AD923),\"-\",Dados!AD923)","v":""},{"$f":"IF(ISERROR(Dados!AE923),\"-\",Dados!AE923)","v":""},{"$f":"IF(ISERROR(Dados!AF923),\"-\",Dados!AF923)","v":""},{"$f":"IF(ISERROR(Dados!AG923),\"-\",Dados!AG923)","v":""}]
[{"$f":"IF(ISERROR(Dados!A924),\"-\",Dados!A924)","v":""},{"$f":"IF(ISERROR(Dados!B924),\"-\",Dados!B924)","v":""},{"$f":"IF(ISERROR(Dados!C924),\"-\",Dados!C924)","v":""},{"$f":"IF(ISERROR(Dados!D924),\"-\",Dados!D924)","v":""},{"$f":"IF(ISERROR(Dados!E924),\"-\",Dados!E924)","v":""},{"$f":"IF(ISERROR(Dados!F924),\"-\",Dados!F924)","v":""},{"$f":"IF(ISERROR(Dados!G924),\"-\",Dados!G924)","v":""},{"$f":"IF(ISERROR(Dados!H924),\"-\",Dados!H924)","v":""},{"$f":"IF(ISERROR(Dados!I924),\"-\",Dados!I924)","v":""},{"$f":"IF(ISERROR(Dados!J924),\"-\",Dados!J924)","v":""},{"$f":"IF(ISERROR(Dados!K924),\"-\",Dados!K924)","v":""},{"$f":"IF(ISERROR(Dados!L924),\"-\",Dados!L924)","v":""},{"$f":"IF(ISERROR(Dados!M924),\"-\",Dados!M924)","v":""},{"$f":"IF(ISERROR(Dados!N924),\"-\",Dados!N924)","v":""},{"$f":"IF(ISERROR(Dados!O924),\"-\",Dados!O924)","v":""},{"$f":"IF(ISERROR(Dados!P924),\"-\",Dados!P924)","v":""},{"$f":"IF(ISERROR(Dados!Q924),\"-\",Dados!Q924)","v":""},{"$f":"IF(ISERROR(Dados!R924),\"-\",Dados!R924)","v":""},{"$f":"IF(ISERROR(Dados!S924),\"-\",Dados!S924)","v":""},{"$f":"IF(ISERROR(Dados!T924),\"-\",Dados!T924)","v":""},{"$f":"IF(ISERROR(Dados!U924),\"-\",Dados!U924)","v":""},{"$f":"IF(ISERROR(Dados!V924),\"-\",Dados!V924)","v":""},{"$f":"IF(ISERROR(Dados!W924),\"-\",Dados!W924)","v":""},{"$f":"IF(ISERROR(Dados!X924),\"-\",Dados!X924)","v":""},{"$f":"IF(ISERROR(Dados!Y924),\"-\",Dados!Y924)","v":""},{"$f":"IF(ISERROR(Dados!Z924),\"-\",Dados!Z924)","v":""},{"$f":"IF(ISERROR(Dados!AA924),\"-\",Dados!AA924)","v":""},{"$f":"IF(ISERROR(Dados!AB924),\"-\",Dados!AB924)","v":""},{"$f":"IF(ISERROR(Dados!AC924),\"-\",Dados!AC924)","v":""},{"$f":"IF(ISERROR(Dados!AD924),\"-\",Dados!AD924)","v":""},{"$f":"IF(ISERROR(Dados!AE924),\"-\",Dados!AE924)","v":""},{"$f":"IF(ISERROR(Dados!AF924),\"-\",Dados!AF924)","v":""},{"$f":"IF(ISERROR(Dados!AG924),\"-\",Dados!AG924)","v":""}]
[{"$f":"IF(ISERROR(Dados!A925),\"-\",Dados!A925)","v":""},{"$f":"IF(ISERROR(Dados!B925),\"-\",Dados!B925)","v":""},{"$f":"IF(ISERROR(Dados!C925),\"-\",Dados!C925)","v":""},{"$f":"IF(ISERROR(Dados!D925),\"-\",Dados!D925)","v":""},{"$f":"IF(ISERROR(Dados!E925),\"-\",Dados!E925)","v":""},{"$f":"IF(ISERROR(Dados!F925),\"-\",Dados!F925)","v":""},{"$f":"IF(ISERROR(Dados!G925),\"-\",Dados!G925)","v":""},{"$f":"IF(ISERROR(Dados!H925),\"-\",Dados!H925)","v":""},{"$f":"IF(ISERROR(Dados!I925),\"-\",Dados!I925)","v":""},{"$f":"IF(ISERROR(Dados!J925),\"-\",Dados!J925)","v":""},{"$f":"IF(ISERROR(Dados!K925),\"-\",Dados!K925)","v":""},{"$f":"IF(ISERROR(Dados!L925),\"-\",Dados!L925)","v":""},{"$f":"IF(ISERROR(Dados!M925),\"-\",Dados!M925)","v":""},{"$f":"IF(ISERROR(Dados!N925),\"-\",Dados!N925)","v":""},{"$f":"IF(ISERROR(Dados!O925),\"-\",Dados!O925)","v":""},{"$f":"IF(ISERROR(Dados!P925),\"-\",Dados!P925)","v":""},{"$f":"IF(ISERROR(Dados!Q925),\"-\",Dados!Q925)","v":""},{"$f":"IF(ISERROR(Dados!R925),\"-\",Dados!R925)","v":""},{"$f":"IF(ISERROR(Dados!S925),\"-\",Dados!S925)","v":""},{"$f":"IF(ISERROR(Dados!T925),\"-\",Dados!T925)","v":""},{"$f":"IF(ISERROR(Dados!U925),\"-\",Dados!U925)","v":""},{"$f":"IF(ISERROR(Dados!V925),\"-\",Dados!V925)","v":""},{"$f":"IF(ISERROR(Dados!W925),\"-\",Dados!W925)","v":""},{"$f":"IF(ISERROR(Dados!X925),\"-\",Dados!X925)","v":""},{"$f":"IF(ISERROR(Dados!Y925),\"-\",Dados!Y925)","v":""},{"$f":"IF(ISERROR(Dados!Z925),\"-\",Dados!Z925)","v":""},{"$f":"IF(ISERROR(Dados!AA925),\"-\",Dados!AA925)","v":""},{"$f":"IF(ISERROR(Dados!AB925),\"-\",Dados!AB925)","v":""},{"$f":"IF(ISERROR(Dados!AC925),\"-\",Dados!AC925)","v":""},{"$f":"IF(ISERROR(Dados!AD925),\"-\",Dados!AD925)","v":""},{"$f":"IF(ISERROR(Dados!AE925),\"-\",Dados!AE925)","v":""},{"$f":"IF(ISERROR(Dados!AF925),\"-\",Dados!AF925)","v":""},{"$f":"IF(ISERROR(Dados!AG925),\"-\",Dados!AG925)","v":""}]
[{"$f":"IF(ISERROR(Dados!A926),\"-\",Dados!A926)","v":""},{"$f":"IF(ISERROR(Dados!B926),\"-\",Dados!B926)","v":""},{"$f":"IF(ISERROR(Dados!C926),\"-\",Dados!C926)","v":""},{"$f":"IF(ISERROR(Dados!D926),\"-\",Dados!D926)","v":""},{"$f":"IF(ISERROR(Dados!E926),\"-\",Dados!E926)","v":""},{"$f":"IF(ISERROR(Dados!F926),\"-\",Dados!F926)","v":""},{"$f":"IF(ISERROR(Dados!G926),\"-\",Dados!G926)","v":""},{"$f":"IF(ISERROR(Dados!H926),\"-\",Dados!H926)","v":""},{"$f":"IF(ISERROR(Dados!I926),\"-\",Dados!I926)","v":""},{"$f":"IF(ISERROR(Dados!J926),\"-\",Dados!J926)","v":""},{"$f":"IF(ISERROR(Dados!K926),\"-\",Dados!K926)","v":""},{"$f":"IF(ISERROR(Dados!L926),\"-\",Dados!L926)","v":""},{"$f":"IF(ISERROR(Dados!M926),\"-\",Dados!M926)","v":""},{"$f":"IF(ISERROR(Dados!N926),\"-\",Dados!N926)","v":""},{"$f":"IF(ISERROR(Dados!O926),\"-\",Dados!O926)","v":""},{"$f":"IF(ISERROR(Dados!P926),\"-\",Dados!P926)","v":""},{"$f":"IF(ISERROR(Dados!Q926),\"-\",Dados!Q926)","v":""},{"$f":"IF(ISERROR(Dados!R926),\"-\",Dados!R926)","v":""},{"$f":"IF(ISERROR(Dados!S926),\"-\",Dados!S926)","v":""},{"$f":"IF(ISERROR(Dados!T926),\"-\",Dados!T926)","v":""},{"$f":"IF(ISERROR(Dados!U926),\"-\",Dados!U926)","v":""},{"$f":"IF(ISERROR(Dados!V926),\"-\",Dados!V926)","v":""},{"$f":"IF(ISERROR(Dados!W926),\"-\",Dados!W926)","v":""},{"$f":"IF(ISERROR(Dados!X926),\"-\",Dados!X926)","v":""},{"$f":"IF(ISERROR(Dados!Y926),\"-\",Dados!Y926)","v":""},{"$f":"IF(ISERROR(Dados!Z926),\"-\",Dados!Z926)","v":""},{"$f":"IF(ISERROR(Dados!AA926),\"-\",Dados!AA926)","v":""},{"$f":"IF(ISERROR(Dados!AB926),\"-\",Dados!AB926)","v":""},{"$f":"IF(ISERROR(Dados!AC926),\"-\",Dados!AC926)","v":""},{"$f":"IF(ISERROR(Dados!AD926),\"-\",Dados!AD926)","v":""},{"$f":"IF(ISERROR(Dados!AE926),\"-\",Dados!AE926)","v":""},{"$f":"IF(ISERROR(Dados!AF926),\"-\",Dados!AF926)","v":""},{"$f":"IF(ISERROR(Dados!AG926),\"-\",Dados!AG926)","v":""}]
[{"$f":"IF(ISERROR(Dados!A927),\"-\",Dados!A927)","v":""},{"$f":"IF(ISERROR(Dados!B927),\"-\",Dados!B927)","v":""},{"$f":"IF(ISERROR(Dados!C927),\"-\",Dados!C927)","v":""},{"$f":"IF(ISERROR(Dados!D927),\"-\",Dados!D927)","v":""},{"$f":"IF(ISERROR(Dados!E927),\"-\",Dados!E927)","v":""},{"$f":"IF(ISERROR(Dados!F927),\"-\",Dados!F927)","v":""},{"$f":"IF(ISERROR(Dados!G927),\"-\",Dados!G927)","v":""},{"$f":"IF(ISERROR(Dados!H927),\"-\",Dados!H927)","v":""},{"$f":"IF(ISERROR(Dados!I927),\"-\",Dados!I927)","v":""},{"$f":"IF(ISERROR(Dados!J927),\"-\",Dados!J927)","v":""},{"$f":"IF(ISERROR(Dados!K927),\"-\",Dados!K927)","v":""},{"$f":"IF(ISERROR(Dados!L927),\"-\",Dados!L927)","v":""},{"$f":"IF(ISERROR(Dados!M927),\"-\",Dados!M927)","v":""},{"$f":"IF(ISERROR(Dados!N927),\"-\",Dados!N927)","v":""},{"$f":"IF(ISERROR(Dados!O927),\"-\",Dados!O927)","v":""},{"$f":"IF(ISERROR(Dados!P927),\"-\",Dados!P927)","v":""},{"$f":"IF(ISERROR(Dados!Q927),\"-\",Dados!Q927)","v":""},{"$f":"IF(ISERROR(Dados!R927),\"-\",Dados!R927)","v":""},{"$f":"IF(ISERROR(Dados!S927),\"-\",Dados!S927)","v":""},{"$f":"IF(ISERROR(Dados!T927),\"-\",Dados!T927)","v":""},{"$f":"IF(ISERROR(Dados!U927),\"-\",Dados!U927)","v":""},{"$f":"IF(ISERROR(Dados!V927),\"-\",Dados!V927)","v":""},{"$f":"IF(ISERROR(Dados!W927),\"-\",Dados!W927)","v":""},{"$f":"IF(ISERROR(Dados!X927),\"-\",Dados!X927)","v":""},{"$f":"IF(ISERROR(Dados!Y927),\"-\",Dados!Y927)","v":""},{"$f":"IF(ISERROR(Dados!Z927),\"-\",Dados!Z927)","v":""},{"$f":"IF(ISERROR(Dados!AA927),\"-\",Dados!AA927)","v":""},{"$f":"IF(ISERROR(Dados!AB927),\"-\",Dados!AB927)","v":""},{"$f":"IF(ISERROR(Dados!AC927),\"-\",Dados!AC927)","v":""},{"$f":"IF(ISERROR(Dados!AD927),\"-\",Dados!AD927)","v":""},{"$f":"IF(ISERROR(Dados!AE927),\"-\",Dados!AE927)","v":""},{"$f":"IF(ISERROR(Dados!AF927),\"-\",Dados!AF927)","v":""},{"$f":"IF(ISERROR(Dados!AG927),\"-\",Dados!AG927)","v":""}]
[{"$f":"IF(ISERROR(Dados!A928),\"-\",Dados!A928)","v":""},{"$f":"IF(ISERROR(Dados!B928),\"-\",Dados!B928)","v":""},{"$f":"IF(ISERROR(Dados!C928),\"-\",Dados!C928)","v":""},{"$f":"IF(ISERROR(Dados!D928),\"-\",Dados!D928)","v":""},{"$f":"IF(ISERROR(Dados!E928),\"-\",Dados!E928)","v":""},{"$f":"IF(ISERROR(Dados!F928),\"-\",Dados!F928)","v":""},{"$f":"IF(ISERROR(Dados!G928),\"-\",Dados!G928)","v":""},{"$f":"IF(ISERROR(Dados!H928),\"-\",Dados!H928)","v":""},{"$f":"IF(ISERROR(Dados!I928),\"-\",Dados!I928)","v":""},{"$f":"IF(ISERROR(Dados!J928),\"-\",Dados!J928)","v":""},{"$f":"IF(ISERROR(Dados!K928),\"-\",Dados!K928)","v":""},{"$f":"IF(ISERROR(Dados!L928),\"-\",Dados!L928)","v":""},{"$f":"IF(ISERROR(Dados!M928),\"-\",Dados!M928)","v":""},{"$f":"IF(ISERROR(Dados!N928),\"-\",Dados!N928)","v":""},{"$f":"IF(ISERROR(Dados!O928),\"-\",Dados!O928)","v":""},{"$f":"IF(ISERROR(Dados!P928),\"-\",Dados!P928)","v":""},{"$f":"IF(ISERROR(Dados!Q928),\"-\",Dados!Q928)","v":""},{"$f":"IF(ISERROR(Dados!R928),\"-\",Dados!R928)","v":""},{"$f":"IF(ISERROR(Dados!S928),\"-\",Dados!S928)","v":""},{"$f":"IF(ISERROR(Dados!T928),\"-\",Dados!T928)","v":""},{"$f":"IF(ISERROR(Dados!U928),\"-\",Dados!U928)","v":""},{"$f":"IF(ISERROR(Dados!V928),\"-\",Dados!V928)","v":""},{"$f":"IF(ISERROR(Dados!W928),\"-\",Dados!W928)","v":""},{"$f":"IF(ISERROR(Dados!X928),\"-\",Dados!X928)","v":""},{"$f":"IF(ISERROR(Dados!Y928),\"-\",Dados!Y928)","v":""},{"$f":"IF(ISERROR(Dados!Z928),\"-\",Dados!Z928)","v":""},{"$f":"IF(ISERROR(Dados!AA928),\"-\",Dados!AA928)","v":""},{"$f":"IF(ISERROR(Dados!AB928),\"-\",Dados!AB928)","v":""},{"$f":"IF(ISERROR(Dados!AC928),\"-\",Dados!AC928)","v":""},{"$f":"IF(ISERROR(Dados!AD928),\"-\",Dados!AD928)","v":""},{"$f":"IF(ISERROR(Dados!AE928),\"-\",Dados!AE928)","v":""},{"$f":"IF(ISERROR(Dados!AF928),\"-\",Dados!AF928)","v":""},{"$f":"IF(ISERROR(Dados!AG928),\"-\",Dados!AG928)","v":""}]
[{"$f":"IF(ISERROR(Dados!A929),\"-\",Dados!A929)","v":""},{"$f":"IF(ISERROR(Dados!B929),\"-\",Dados!B929)","v":""},{"$f":"IF(ISERROR(Dados!C929),\"-\",Dados!C929)","v":""},{"$f":"IF(ISERROR(Dados!D929),\"-\",Dados!D929)","v":""},{"$f":"IF(ISERROR(Dados!E929),\"-\",Dados!E929)","v":""},{"$f":"IF(ISERROR(Dados!F929),\"-\",Dados!F929)","v":""},{"$f":"IF(ISERROR(Dados!G929),\"-\",Dados!G929)","v":""},{"$f":"IF(ISERROR(Dados!H929),\"-\",Dados!H929)","v":""},{"$f":"IF(ISERROR(Dados!I929),\"-\",Dados!I929)","v":""},{"$f":"IF(ISERROR(Dados!J929),\"-\",Dados!J929)","v":""},{"$f":"IF(ISERROR(Dados!K929),\"-\",Dados!K929)","v":""},{"$f":"IF(ISERROR(Dados!L929),\"-\",Dados!L929)","v":""},{"$f":"IF(ISERROR(Dados!M929),\"-\",Dados!M929)","v":""},{"$f":"IF(ISERROR(Dados!N929),\"-\",Dados!N929)","v":""},{"$f":"IF(ISERROR(Dados!O929),\"-\",Dados!O929)","v":""},{"$f":"IF(ISERROR(Dados!P929),\"-\",Dados!P929)","v":""},{"$f":"IF(ISERROR(Dados!Q929),\"-\",Dados!Q929)","v":""},{"$f":"IF(ISERROR(Dados!R929),\"-\",Dados!R929)","v":""},{"$f":"IF(ISERROR(Dados!S929),\"-\",Dados!S929)","v":""},{"$f":"IF(ISERROR(Dados!T929),\"-\",Dados!T929)","v":""},{"$f":"IF(ISERROR(Dados!U929),\"-\",Dados!U929)","v":""},{"$f":"IF(ISERROR(Dados!V929),\"-\",Dados!V929)","v":""},{"$f":"IF(ISERROR(Dados!W929),\"-\",Dados!W929)","v":""},{"$f":"IF(ISERROR(Dados!X929),\"-\",Dados!X929)","v":""},{"$f":"IF(ISERROR(Dados!Y929),\"-\",Dados!Y929)","v":""},{"$f":"IF(ISERROR(Dados!Z929),\"-\",Dados!Z929)","v":""},{"$f":"IF(ISERROR(Dados!AA929),\"-\",Dados!AA929)","v":""},{"$f":"IF(ISERROR(Dados!AB929),\"-\",Dados!AB929)","v":""},{"$f":"IF(ISERROR(Dados!AC929),\"-\",Dados!AC929)","v":""},{"$f":"IF(ISERROR(Dados!AD929),\"-\",Dados!AD929)","v":""},{"$f":"IF(ISERROR(Dados!AE929),\"-\",Dados!AE929)","v":""},{"$f":"IF(ISERROR(Dados!AF929),\"-\",Dados!AF929)","v":""},{"$f":"IF(ISERROR(Dados!AG929),\"-\",Dados!AG929)","v":""}]
[{"$f":"IF(ISERROR(Dados!A930),\"-\",Dados!A930)","v":""},{"$f":"IF(ISERROR(Dados!B930),\"-\",Dados!B930)","v":""},{"$f":"IF(ISERROR(Dados!C930),\"-\",Dados!C930)","v":""},{"$f":"IF(ISERROR(Dados!D930),\"-\",Dados!D930)","v":""},{"$f":"IF(ISERROR(Dados!E930),\"-\",Dados!E930)","v":""},{"$f":"IF(ISERROR(Dados!F930),\"-\",Dados!F930)","v":""},{"$f":"IF(ISERROR(Dados!G930),\"-\",Dados!G930)","v":""},{"$f":"IF(ISERROR(Dados!H930),\"-\",Dados!H930)","v":""},{"$f":"IF(ISERROR(Dados!I930),\"-\",Dados!I930)","v":""},{"$f":"IF(ISERROR(Dados!J930),\"-\",Dados!J930)","v":""},{"$f":"IF(ISERROR(Dados!K930),\"-\",Dados!K930)","v":""},{"$f":"IF(ISERROR(Dados!L930),\"-\",Dados!L930)","v":""},{"$f":"IF(ISERROR(Dados!M930),\"-\",Dados!M930)","v":""},{"$f":"IF(ISERROR(Dados!N930),\"-\",Dados!N930)","v":""},{"$f":"IF(ISERROR(Dados!O930),\"-\",Dados!O930)","v":""},{"$f":"IF(ISERROR(Dados!P930),\"-\",Dados!P930)","v":""},{"$f":"IF(ISERROR(Dados!Q930),\"-\",Dados!Q930)","v":""},{"$f":"IF(ISERROR(Dados!R930),\"-\",Dados!R930)","v":""},{"$f":"IF(ISERROR(Dados!S930),\"-\",Dados!S930)","v":""},{"$f":"IF(ISERROR(Dados!T930),\"-\",Dados!T930)","v":""},{"$f":"IF(ISERROR(Dados!U930),\"-\",Dados!U930)","v":""},{"$f":"IF(ISERROR(Dados!V930),\"-\",Dados!V930)","v":""},{"$f":"IF(ISERROR(Dados!W930),\"-\",Dados!W930)","v":""},{"$f":"IF(ISERROR(Dados!X930),\"-\",Dados!X930)","v":""},{"$f":"IF(ISERROR(Dados!Y930),\"-\",Dados!Y930)","v":""},{"$f":"IF(ISERROR(Dados!Z930),\"-\",Dados!Z930)","v":""},{"$f":"IF(ISERROR(Dados!AA930),\"-\",Dados!AA930)","v":""},{"$f":"IF(ISERROR(Dados!AB930),\"-\",Dados!AB930)","v":""},{"$f":"IF(ISERROR(Dados!AC930),\"-\",Dados!AC930)","v":""},{"$f":"IF(ISERROR(Dados!AD930),\"-\",Dados!AD930)","v":""},{"$f":"IF(ISERROR(Dados!AE930),\"-\",Dados!AE930)","v":""},{"$f":"IF(ISERROR(Dados!AF930),\"-\",Dados!AF930)","v":""},{"$f":"IF(ISERROR(Dados!AG930),\"-\",Dados!AG930)","v":""}]
[{"$f":"IF(ISERROR(Dados!A931),\"-\",Dados!A931)","v":""},{"$f":"IF(ISERROR(Dados!B931),\"-\",Dados!B931)","v":""},{"$f":"IF(ISERROR(Dados!C931),\"-\",Dados!C931)","v":""},{"$f":"IF(ISERROR(Dados!D931),\"-\",Dados!D931)","v":""},{"$f":"IF(ISERROR(Dados!E931),\"-\",Dados!E931)","v":""},{"$f":"IF(ISERROR(Dados!F931),\"-\",Dados!F931)","v":""},{"$f":"IF(ISERROR(Dados!G931),\"-\",Dados!G931)","v":""},{"$f":"IF(ISERROR(Dados!H931),\"-\",Dados!H931)","v":""},{"$f":"IF(ISERROR(Dados!I931),\"-\",Dados!I931)","v":""},{"$f":"IF(ISERROR(Dados!J931),\"-\",Dados!J931)","v":""},{"$f":"IF(ISERROR(Dados!K931),\"-\",Dados!K931)","v":""},{"$f":"IF(ISERROR(Dados!L931),\"-\",Dados!L931)","v":""},{"$f":"IF(ISERROR(Dados!M931),\"-\",Dados!M931)","v":""},{"$f":"IF(ISERROR(Dados!N931),\"-\",Dados!N931)","v":""},{"$f":"IF(ISERROR(Dados!O931),\"-\",Dados!O931)","v":""},{"$f":"IF(ISERROR(Dados!P931),\"-\",Dados!P931)","v":""},{"$f":"IF(ISERROR(Dados!Q931),\"-\",Dados!Q931)","v":""},{"$f":"IF(ISERROR(Dados!R931),\"-\",Dados!R931)","v":""},{"$f":"IF(ISERROR(Dados!S931),\"-\",Dados!S931)","v":""},{"$f":"IF(ISERROR(Dados!T931),\"-\",Dados!T931)","v":""},{"$f":"IF(ISERROR(Dados!U931),\"-\",Dados!U931)","v":""},{"$f":"IF(ISERROR(Dados!V931),\"-\",Dados!V931)","v":""},{"$f":"IF(ISERROR(Dados!W931),\"-\",Dados!W931)","v":""},{"$f":"IF(ISERROR(Dados!X931),\"-\",Dados!X931)","v":""},{"$f":"IF(ISERROR(Dados!Y931),\"-\",Dados!Y931)","v":""},{"$f":"IF(ISERROR(Dados!Z931),\"-\",Dados!Z931)","v":""},{"$f":"IF(ISERROR(Dados!AA931),\"-\",Dados!AA931)","v":""},{"$f":"IF(ISERROR(Dados!AB931),\"-\",Dados!AB931)","v":""},{"$f":"IF(ISERROR(Dados!AC931),\"-\",Dados!AC931)","v":""},{"$f":"IF(ISERROR(Dados!AD931),\"-\",Dados!AD931)","v":""},{"$f":"IF(ISERROR(Dados!AE931),\"-\",Dados!AE931)","v":""},{"$f":"IF(ISERROR(Dados!AF931),\"-\",Dados!AF931)","v":""},{"$f":"IF(ISERROR(Dados!AG931),\"-\",Dados!AG931)","v":""}]
[{"$f":"IF(ISERROR(Dados!A932),\"-\",Dados!A932)","v":""},{"$f":"IF(ISERROR(Dados!B932),\"-\",Dados!B932)","v":""},{"$f":"IF(ISERROR(Dados!C932),\"-\",Dados!C932)","v":""},{"$f":"IF(ISERROR(Dados!D932),\"-\",Dados!D932)","v":""},{"$f":"IF(ISERROR(Dados!E932),\"-\",Dados!E932)","v":""},{"$f":"IF(ISERROR(Dados!F932),\"-\",Dados!F932)","v":""},{"$f":"IF(ISERROR(Dados!G932),\"-\",Dados!G932)","v":""},{"$f":"IF(ISERROR(Dados!H932),\"-\",Dados!H932)","v":""},{"$f":"IF(ISERROR(Dados!I932),\"-\",Dados!I932)","v":""},{"$f":"IF(ISERROR(Dados!J932),\"-\",Dados!J932)","v":""},{"$f":"IF(ISERROR(Dados!K932),\"-\",Dados!K932)","v":""},{"$f":"IF(ISERROR(Dados!L932),\"-\",Dados!L932)","v":""},{"$f":"IF(ISERROR(Dados!M932),\"-\",Dados!M932)","v":""},{"$f":"IF(ISERROR(Dados!N932),\"-\",Dados!N932)","v":""},{"$f":"IF(ISERROR(Dados!O932),\"-\",Dados!O932)","v":""},{"$f":"IF(ISERROR(Dados!P932),\"-\",Dados!P932)","v":""},{"$f":"IF(ISERROR(Dados!Q932),\"-\",Dados!Q932)","v":""},{"$f":"IF(ISERROR(Dados!R932),\"-\",Dados!R932)","v":""},{"$f":"IF(ISERROR(Dados!S932),\"-\",Dados!S932)","v":""},{"$f":"IF(ISERROR(Dados!T932),\"-\",Dados!T932)","v":""},{"$f":"IF(ISERROR(Dados!U932),\"-\",Dados!U932)","v":""},{"$f":"IF(ISERROR(Dados!V932),\"-\",Dados!V932)","v":""},{"$f":"IF(ISERROR(Dados!W932),\"-\",Dados!W932)","v":""},{"$f":"IF(ISERROR(Dados!X932),\"-\",Dados!X932)","v":""},{"$f":"IF(ISERROR(Dados!Y932),\"-\",Dados!Y932)","v":""},{"$f":"IF(ISERROR(Dados!Z932),\"-\",Dados!Z932)","v":""},{"$f":"IF(ISERROR(Dados!AA932),\"-\",Dados!AA932)","v":""},{"$f":"IF(ISERROR(Dados!AB932),\"-\",Dados!AB932)","v":""},{"$f":"IF(ISERROR(Dados!AC932),\"-\",Dados!AC932)","v":""},{"$f":"IF(ISERROR(Dados!AD932),\"-\",Dados!AD932)","v":""},{"$f":"IF(ISERROR(Dados!AE932),\"-\",Dados!AE932)","v":""},{"$f":"IF(ISERROR(Dados!AF932),\"-\",Dados!AF932)","v":""},{"$f":"IF(ISERROR(Dados!AG932),\"-\",Dados!AG932)","v":""}]
[{"$f":"IF(ISERROR(Dados!A933),\"-\",Dados!A933)","v":""},{"$f":"IF(ISERROR(Dados!B933),\"-\",Dados!B933)","v":""},{"$f":"IF(ISERROR(Dados!C933),\"-\",Dados!C933)","v":""},{"$f":"IF(ISERROR(Dados!D933),\"-\",Dados!D933)","v":""},{"$f":"IF(ISERROR(Dados!E933),\"-\",Dados!E933)","v":""},{"$f":"IF(ISERROR(Dados!F933),\"-\",Dados!F933)","v":""},{"$f":"IF(ISERROR(Dados!G933),\"-\",Dados!G933)","v":""},{"$f":"IF(ISERROR(Dados!H933),\"-\",Dados!H933)","v":""},{"$f":"IF(ISERROR(Dados!I933),\"-\",Dados!I933)","v":""},{"$f":"IF(ISERROR(Dados!J933),\"-\",Dados!J933)","v":""},{"$f":"IF(ISERROR(Dados!K933),\"-\",Dados!K933)","v":""},{"$f":"IF(ISERROR(Dados!L933),\"-\",Dados!L933)","v":""},{"$f":"IF(ISERROR(Dados!M933),\"-\",Dados!M933)","v":""},{"$f":"IF(ISERROR(Dados!N933),\"-\",Dados!N933)","v":""},{"$f":"IF(ISERROR(Dados!O933),\"-\",Dados!O933)","v":""},{"$f":"IF(ISERROR(Dados!P933),\"-\",Dados!P933)","v":""},{"$f":"IF(ISERROR(Dados!Q933),\"-\",Dados!Q933)","v":""},{"$f":"IF(ISERROR(Dados!R933),\"-\",Dados!R933)","v":""},{"$f":"IF(ISERROR(Dados!S933),\"-\",Dados!S933)","v":""},{"$f":"IF(ISERROR(Dados!T933),\"-\",Dados!T933)","v":""},{"$f":"IF(ISERROR(Dados!U933),\"-\",Dados!U933)","v":""},{"$f":"IF(ISERROR(Dados!V933),\"-\",Dados!V933)","v":""},{"$f":"IF(ISERROR(Dados!W933),\"-\",Dados!W933)","v":""},{"$f":"IF(ISERROR(Dados!X933),\"-\",Dados!X933)","v":""},{"$f":"IF(ISERROR(Dados!Y933),\"-\",Dados!Y933)","v":""},{"$f":"IF(ISERROR(Dados!Z933),\"-\",Dados!Z933)","v":""},{"$f":"IF(ISERROR(Dados!AA933),\"-\",Dados!AA933)","v":""},{"$f":"IF(ISERROR(Dados!AB933),\"-\",Dados!AB933)","v":""},{"$f":"IF(ISERROR(Dados!AC933),\"-\",Dados!AC933)","v":""},{"$f":"IF(ISERROR(Dados!AD933),\"-\",Dados!AD933)","v":""},{"$f":"IF(ISERROR(Dados!AE933),\"-\",Dados!AE933)","v":""},{"$f":"IF(ISERROR(Dados!AF933),\"-\",Dados!AF933)","v":""},{"$f":"IF(ISERROR(Dados!AG933),\"-\",Dados!AG933)","v":""}]
[{"$f":"IF(ISERROR(Dados!A934),\"-\",Dados!A934)","v":""},{"$f":"IF(ISERROR(Dados!B934),\"-\",Dados!B934)","v":""},{"$f":"IF(ISERROR(Dados!C934),\"-\",Dados!C934)","v":""},{"$f":"IF(ISERROR(Dados!D934),\"-\",Dados!D934)","v":""},{"$f":"IF(ISERROR(Dados!E934),\"-\",Dados!E934)","v":""},{"$f":"IF(ISERROR(Dados!F934),\"-\",Dados!F934)","v":""},{"$f":"IF(ISERROR(Dados!G934),\"-\",Dados!G934)","v":""},{"$f":"IF(ISERROR(Dados!H934),\"-\",Dados!H934)","v":""},{"$f":"IF(ISERROR(Dados!I934),\"-\",Dados!I934)","v":""},{"$f":"IF(ISERROR(Dados!J934),\"-\",Dados!J934)","v":""},{"$f":"IF(ISERROR(Dados!K934),\"-\",Dados!K934)","v":""},{"$f":"IF(ISERROR(Dados!L934),\"-\",Dados!L934)","v":""},{"$f":"IF(ISERROR(Dados!M934),\"-\",Dados!M934)","v":""},{"$f":"IF(ISERROR(Dados!N934),\"-\",Dados!N934)","v":""},{"$f":"IF(ISERROR(Dados!O934),\"-\",Dados!O934)","v":""},{"$f":"IF(ISERROR(Dados!P934),\"-\",Dados!P934)","v":""},{"$f":"IF(ISERROR(Dados!Q934),\"-\",Dados!Q934)","v":""},{"$f":"IF(ISERROR(Dados!R934),\"-\",Dados!R934)","v":""},{"$f":"IF(ISERROR(Dados!S934),\"-\",Dados!S934)","v":""},{"$f":"IF(ISERROR(Dados!T934),\"-\",Dados!T934)","v":""},{"$f":"IF(ISERROR(Dados!U934),\"-\",Dados!U934)","v":""},{"$f":"IF(ISERROR(Dados!V934),\"-\",Dados!V934)","v":""},{"$f":"IF(ISERROR(Dados!W934),\"-\",Dados!W934)","v":""},{"$f":"IF(ISERROR(Dados!X934),\"-\",Dados!X934)","v":""},{"$f":"IF(ISERROR(Dados!Y934),\"-\",Dados!Y934)","v":""},{"$f":"IF(ISERROR(Dados!Z934),\"-\",Dados!Z934)","v":""},{"$f":"IF(ISERROR(Dados!AA934),\"-\",Dados!AA934)","v":""},{"$f":"IF(ISERROR(Dados!AB934),\"-\",Dados!AB934)","v":""},{"$f":"IF(ISERROR(Dados!AC934),\"-\",Dados!AC934)","v":""},{"$f":"IF(ISERROR(Dados!AD934),\"-\",Dados!AD934)","v":""},{"$f":"IF(ISERROR(Dados!AE934),\"-\",Dados!AE934)","v":""},{"$f":"IF(ISERROR(Dados!AF934),\"-\",Dados!AF934)","v":""},{"$f":"IF(ISERROR(Dados!AG934),\"-\",Dados!AG934)","v":""}]
[{"$f":"IF(ISERROR(Dados!A935),\"-\",Dados!A935)","v":""},{"$f":"IF(ISERROR(Dados!B935),\"-\",Dados!B935)","v":""},{"$f":"IF(ISERROR(Dados!C935),\"-\",Dados!C935)","v":""},{"$f":"IF(ISERROR(Dados!D935),\"-\",Dados!D935)","v":""},{"$f":"IF(ISERROR(Dados!E935),\"-\",Dados!E935)","v":""},{"$f":"IF(ISERROR(Dados!F935),\"-\",Dados!F935)","v":""},{"$f":"IF(ISERROR(Dados!G935),\"-\",Dados!G935)","v":""},{"$f":"IF(ISERROR(Dados!H935),\"-\",Dados!H935)","v":""},{"$f":"IF(ISERROR(Dados!I935),\"-\",Dados!I935)","v":""},{"$f":"IF(ISERROR(Dados!J935),\"-\",Dados!J935)","v":""},{"$f":"IF(ISERROR(Dados!K935),\"-\",Dados!K935)","v":""},{"$f":"IF(ISERROR(Dados!L935),\"-\",Dados!L935)","v":""},{"$f":"IF(ISERROR(Dados!M935),\"-\",Dados!M935)","v":""},{"$f":"IF(ISERROR(Dados!N935),\"-\",Dados!N935)","v":""},{"$f":"IF(ISERROR(Dados!O935),\"-\",Dados!O935)","v":""},{"$f":"IF(ISERROR(Dados!P935),\"-\",Dados!P935)","v":""},{"$f":"IF(ISERROR(Dados!Q935),\"-\",Dados!Q935)","v":""},{"$f":"IF(ISERROR(Dados!R935),\"-\",Dados!R935)","v":""},{"$f":"IF(ISERROR(Dados!S935),\"-\",Dados!S935)","v":""},{"$f":"IF(ISERROR(Dados!T935),\"-\",Dados!T935)","v":""},{"$f":"IF(ISERROR(Dados!U935),\"-\",Dados!U935)","v":""},{"$f":"IF(ISERROR(Dados!V935),\"-\",Dados!V935)","v":""},{"$f":"IF(ISERROR(Dados!W935),\"-\",Dados!W935)","v":""},{"$f":"IF(ISERROR(Dados!X935),\"-\",Dados!X935)","v":""},{"$f":"IF(ISERROR(Dados!Y935),\"-\",Dados!Y935)","v":""},{"$f":"IF(ISERROR(Dados!Z935),\"-\",Dados!Z935)","v":""},{"$f":"IF(ISERROR(Dados!AA935),\"-\",Dados!AA935)","v":""},{"$f":"IF(ISERROR(Dados!AB935),\"-\",Dados!AB935)","v":""},{"$f":"IF(ISERROR(Dados!AC935),\"-\",Dados!AC935)","v":""},{"$f":"IF(ISERROR(Dados!AD935),\"-\",Dados!AD935)","v":""},{"$f":"IF(ISERROR(Dados!AE935),\"-\",Dados!AE935)","v":""},{"$f":"IF(ISERROR(Dados!AF935),\"-\",Dados!AF935)","v":""},{"$f":"IF(ISERROR(Dados!AG935),\"-\",Dados!AG935)","v":""}]
[{"$f":"IF(ISERROR(Dados!A936),\"-\",Dados!A936)","v":""},{"$f":"IF(ISERROR(Dados!B936),\"-\",Dados!B936)","v":""},{"$f":"IF(ISERROR(Dados!C936),\"-\",Dados!C936)","v":""},{"$f":"IF(ISERROR(Dados!D936),\"-\",Dados!D936)","v":""},{"$f":"IF(ISERROR(Dados!E936),\"-\",Dados!E936)","v":""},{"$f":"IF(ISERROR(Dados!F936),\"-\",Dados!F936)","v":""},{"$f":"IF(ISERROR(Dados!G936),\"-\",Dados!G936)","v":""},{"$f":"IF(ISERROR(Dados!H936),\"-\",Dados!H936)","v":""},{"$f":"IF(ISERROR(Dados!I936),\"-\",Dados!I936)","v":""},{"$f":"IF(ISERROR(Dados!J936),\"-\",Dados!J936)","v":""},{"$f":"IF(ISERROR(Dados!K936),\"-\",Dados!K936)","v":""},{"$f":"IF(ISERROR(Dados!L936),\"-\",Dados!L936)","v":""},{"$f":"IF(ISERROR(Dados!M936),\"-\",Dados!M936)","v":""},{"$f":"IF(ISERROR(Dados!N936),\"-\",Dados!N936)","v":""},{"$f":"IF(ISERROR(Dados!O936),\"-\",Dados!O936)","v":""},{"$f":"IF(ISERROR(Dados!P936),\"-\",Dados!P936)","v":""},{"$f":"IF(ISERROR(Dados!Q936),\"-\",Dados!Q936)","v":""},{"$f":"IF(ISERROR(Dados!R936),\"-\",Dados!R936)","v":""},{"$f":"IF(ISERROR(Dados!S936),\"-\",Dados!S936)","v":""},{"$f":"IF(ISERROR(Dados!T936),\"-\",Dados!T936)","v":""},{"$f":"IF(ISERROR(Dados!U936),\"-\",Dados!U936)","v":""},{"$f":"IF(ISERROR(Dados!V936),\"-\",Dados!V936)","v":""},{"$f":"IF(ISERROR(Dados!W936),\"-\",Dados!W936)","v":""},{"$f":"IF(ISERROR(Dados!X936),\"-\",Dados!X936)","v":""},{"$f":"IF(ISERROR(Dados!Y936),\"-\",Dados!Y936)","v":""},{"$f":"IF(ISERROR(Dados!Z936),\"-\",Dados!Z936)","v":""},{"$f":"IF(ISERROR(Dados!AA936),\"-\",Dados!AA936)","v":""},{"$f":"IF(ISERROR(Dados!AB936),\"-\",Dados!AB936)","v":""},{"$f":"IF(ISERROR(Dados!AC936),\"-\",Dados!AC936)","v":""},{"$f":"IF(ISERROR(Dados!AD936),\"-\",Dados!AD936)","v":""},{"$f":"IF(ISERROR(Dados!AE936),\"-\",Dados!AE936)","v":""},{"$f":"IF(ISERROR(Dados!AF936),\"-\",Dados!AF936)","v":""},{"$f":"IF(ISERROR(Dados!AG936),\"-\",Dados!AG936)","v":""}]
[{"$f":"IF(ISERROR(Dados!A937),\"-\",Dados!A937)","v":""},{"$f":"IF(ISERROR(Dados!B937),\"-\",Dados!B937)","v":""},{"$f":"IF(ISERROR(Dados!C937),\"-\",Dados!C937)","v":""},{"$f":"IF(ISERROR(Dados!D937),\"-\",Dados!D937)","v":""},{"$f":"IF(ISERROR(Dados!E937),\"-\",Dados!E937)","v":""},{"$f":"IF(ISERROR(Dados!F937),\"-\",Dados!F937)","v":""},{"$f":"IF(ISERROR(Dados!G937),\"-\",Dados!G937)","v":""},{"$f":"IF(ISERROR(Dados!H937),\"-\",Dados!H937)","v":""},{"$f":"IF(ISERROR(Dados!I937),\"-\",Dados!I937)","v":""},{"$f":"IF(ISERROR(Dados!J937),\"-\",Dados!J937)","v":""},{"$f":"IF(ISERROR(Dados!K937),\"-\",Dados!K937)","v":""},{"$f":"IF(ISERROR(Dados!L937),\"-\",Dados!L937)","v":""},{"$f":"IF(ISERROR(Dados!M937),\"-\",Dados!M937)","v":""},{"$f":"IF(ISERROR(Dados!N937),\"-\",Dados!N937)","v":""},{"$f":"IF(ISERROR(Dados!O937),\"-\",Dados!O937)","v":""},{"$f":"IF(ISERROR(Dados!P937),\"-\",Dados!P937)","v":""},{"$f":"IF(ISERROR(Dados!Q937),\"-\",Dados!Q937)","v":""},{"$f":"IF(ISERROR(Dados!R937),\"-\",Dados!R937)","v":""},{"$f":"IF(ISERROR(Dados!S937),\"-\",Dados!S937)","v":""},{"$f":"IF(ISERROR(Dados!T937),\"-\",Dados!T937)","v":""},{"$f":"IF(ISERROR(Dados!U937),\"-\",Dados!U937)","v":""},{"$f":"IF(ISERROR(Dados!V937),\"-\",Dados!V937)","v":""},{"$f":"IF(ISERROR(Dados!W937),\"-\",Dados!W937)","v":""},{"$f":"IF(ISERROR(Dados!X937),\"-\",Dados!X937)","v":""},{"$f":"IF(ISERROR(Dados!Y937),\"-\",Dados!Y937)","v":""},{"$f":"IF(ISERROR(Dados!Z937),\"-\",Dados!Z937)","v":""},{"$f":"IF(ISERROR(Dados!AA937),\"-\",Dados!AA937)","v":""},{"$f":"IF(ISERROR(Dados!AB937),\"-\",Dados!AB937)","v":""},{"$f":"IF(ISERROR(Dados!AC937),\"-\",Dados!AC937)","v":""},{"$f":"IF(ISERROR(Dados!AD937),\"-\",Dados!AD937)","v":""},{"$f":"IF(ISERROR(Dados!AE937),\"-\",Dados!AE937)","v":""},{"$f":"IF(ISERROR(Dados!AF937),\"-\",Dados!AF937)","v":""},{"$f":"IF(ISERROR(Dados!AG937),\"-\",Dados!AG937)","v":""}]
[{"$f":"IF(ISERROR(Dados!A938),\"-\",Dados!A938)","v":""},{"$f":"IF(ISERROR(Dados!B938),\"-\",Dados!B938)","v":""},{"$f":"IF(ISERROR(Dados!C938),\"-\",Dados!C938)","v":""},{"$f":"IF(ISERROR(Dados!D938),\"-\",Dados!D938)","v":""},{"$f":"IF(ISERROR(Dados!E938),\"-\",Dados!E938)","v":""},{"$f":"IF(ISERROR(Dados!F938),\"-\",Dados!F938)","v":""},{"$f":"IF(ISERROR(Dados!G938),\"-\",Dados!G938)","v":""},{"$f":"IF(ISERROR(Dados!H938),\"-\",Dados!H938)","v":""},{"$f":"IF(ISERROR(Dados!I938),\"-\",Dados!I938)","v":""},{"$f":"IF(ISERROR(Dados!J938),\"-\",Dados!J938)","v":""},{"$f":"IF(ISERROR(Dados!K938),\"-\",Dados!K938)","v":""},{"$f":"IF(ISERROR(Dados!L938),\"-\",Dados!L938)","v":""},{"$f":"IF(ISERROR(Dados!M938),\"-\",Dados!M938)","v":""},{"$f":"IF(ISERROR(Dados!N938),\"-\",Dados!N938)","v":""},{"$f":"IF(ISERROR(Dados!O938),\"-\",Dados!O938)","v":""},{"$f":"IF(ISERROR(Dados!P938),\"-\",Dados!P938)","v":""},{"$f":"IF(ISERROR(Dados!Q938),\"-\",Dados!Q938)","v":""},{"$f":"IF(ISERROR(Dados!R938),\"-\",Dados!R938)","v":""},{"$f":"IF(ISERROR(Dados!S938),\"-\",Dados!S938)","v":""},{"$f":"IF(ISERROR(Dados!T938),\"-\",Dados!T938)","v":""},{"$f":"IF(ISERROR(Dados!U938),\"-\",Dados!U938)","v":""},{"$f":"IF(ISERROR(Dados!V938),\"-\",Dados!V938)","v":""},{"$f":"IF(ISERROR(Dados!W938),\"-\",Dados!W938)","v":""},{"$f":"IF(ISERROR(Dados!X938),\"-\",Dados!X938)","v":""},{"$f":"IF(ISERROR(Dados!Y938),\"-\",Dados!Y938)","v":""},{"$f":"IF(ISERROR(Dados!Z938),\"-\",Dados!Z938)","v":""},{"$f":"IF(ISERROR(Dados!AA938),\"-\",Dados!AA938)","v":""},{"$f":"IF(ISERROR(Dados!AB938),\"-\",Dados!AB938)","v":""},{"$f":"IF(ISERROR(Dados!AC938),\"-\",Dados!AC938)","v":""},{"$f":"IF(ISERROR(Dados!AD938),\"-\",Dados!AD938)","v":""},{"$f":"IF(ISERROR(Dados!AE938),\"-\",Dados!AE938)","v":""},{"$f":"IF(ISERROR(Dados!AF938),\"-\",Dados!AF938)","v":""},{"$f":"IF(ISERROR(Dados!AG938),\"-\",Dados!AG938)","v":""}]
[{"$f":"IF(ISERROR(Dados!A939),\"-\",Dados!A939)","v":""},{"$f":"IF(ISERROR(Dados!B939),\"-\",Dados!B939)","v":""},{"$f":"IF(ISERROR(Dados!C939),\"-\",Dados!C939)","v":""},{"$f":"IF(ISERROR(Dados!D939),\"-\",Dados!D939)","v":""},{"$f":"IF(ISERROR(Dados!E939),\"-\",Dados!E939)","v":""},{"$f":"IF(ISERROR(Dados!F939),\"-\",Dados!F939)","v":""},{"$f":"IF(ISERROR(Dados!G939),\"-\",Dados!G939)","v":""},{"$f":"IF(ISERROR(Dados!H939),\"-\",Dados!H939)","v":""},{"$f":"IF(ISERROR(Dados!I939),\"-\",Dados!I939)","v":""},{"$f":"IF(ISERROR(Dados!J939),\"-\",Dados!J939)","v":""},{"$f":"IF(ISERROR(Dados!K939),\"-\",Dados!K939)","v":""},{"$f":"IF(ISERROR(Dados!L939),\"-\",Dados!L939)","v":""},{"$f":"IF(ISERROR(Dados!M939),\"-\",Dados!M939)","v":""},{"$f":"IF(ISERROR(Dados!N939),\"-\",Dados!N939)","v":""},{"$f":"IF(ISERROR(Dados!O939),\"-\",Dados!O939)","v":""},{"$f":"IF(ISERROR(Dados!P939),\"-\",Dados!P939)","v":""},{"$f":"IF(ISERROR(Dados!Q939),\"-\",Dados!Q939)","v":""},{"$f":"IF(ISERROR(Dados!R939),\"-\",Dados!R939)","v":""},{"$f":"IF(ISERROR(Dados!S939),\"-\",Dados!S939)","v":""},{"$f":"IF(ISERROR(Dados!T939),\"-\",Dados!T939)","v":""},{"$f":"IF(ISERROR(Dados!U939),\"-\",Dados!U939)","v":""},{"$f":"IF(ISERROR(Dados!V939),\"-\",Dados!V939)","v":""},{"$f":"IF(ISERROR(Dados!W939),\"-\",Dados!W939)","v":""},{"$f":"IF(ISERROR(Dados!X939),\"-\",Dados!X939)","v":""},{"$f":"IF(ISERROR(Dados!Y939),\"-\",Dados!Y939)","v":""},{"$f":"IF(ISERROR(Dados!Z939),\"-\",Dados!Z939)","v":""},{"$f":"IF(ISERROR(Dados!AA939),\"-\",Dados!AA939)","v":""},{"$f":"IF(ISERROR(Dados!AB939),\"-\",Dados!AB939)","v":""},{"$f":"IF(ISERROR(Dados!AC939),\"-\",Dados!AC939)","v":""},{"$f":"IF(ISERROR(Dados!AD939),\"-\",Dados!AD939)","v":""},{"$f":"IF(ISERROR(Dados!AE939),\"-\",Dados!AE939)","v":""},{"$f":"IF(ISERROR(Dados!AF939),\"-\",Dados!AF939)","v":""},{"$f":"IF(ISERROR(Dados!AG939),\"-\",Dados!AG939)","v":""}]
[{"$f":"IF(ISERROR(Dados!A940),\"-\",Dados!A940)","v":""},{"$f":"IF(ISERROR(Dados!B940),\"-\",Dados!B940)","v":""},{"$f":"IF(ISERROR(Dados!C940),\"-\",Dados!C940)","v":""},{"$f":"IF(ISERROR(Dados!D940),\"-\",Dados!D940)","v":""},{"$f":"IF(ISERROR(Dados!E940),\"-\",Dados!E940)","v":""},{"$f":"IF(ISERROR(Dados!F940),\"-\",Dados!F940)","v":""},{"$f":"IF(ISERROR(Dados!G940),\"-\",Dados!G940)","v":""},{"$f":"IF(ISERROR(Dados!H940),\"-\",Dados!H940)","v":""},{"$f":"IF(ISERROR(Dados!I940),\"-\",Dados!I940)","v":""},{"$f":"IF(ISERROR(Dados!J940),\"-\",Dados!J940)","v":""},{"$f":"IF(ISERROR(Dados!K940),\"-\",Dados!K940)","v":""},{"$f":"IF(ISERROR(Dados!L940),\"-\",Dados!L940)","v":""},{"$f":"IF(ISERROR(Dados!M940),\"-\",Dados!M940)","v":""},{"$f":"IF(ISERROR(Dados!N940),\"-\",Dados!N940)","v":""},{"$f":"IF(ISERROR(Dados!O940),\"-\",Dados!O940)","v":""},{"$f":"IF(ISERROR(Dados!P940),\"-\",Dados!P940)","v":""},{"$f":"IF(ISERROR(Dados!Q940),\"-\",Dados!Q940)","v":""},{"$f":"IF(ISERROR(Dados!R940),\"-\",Dados!R940)","v":""},{"$f":"IF(ISERROR(Dados!S940),\"-\",Dados!S940)","v":""},{"$f":"IF(ISERROR(Dados!T940),\"-\",Dados!T940)","v":""},{"$f":"IF(ISERROR(Dados!U940),\"-\",Dados!U940)","v":""},{"$f":"IF(ISERROR(Dados!V940),\"-\",Dados!V940)","v":""},{"$f":"IF(ISERROR(Dados!W940),\"-\",Dados!W940)","v":""},{"$f":"IF(ISERROR(Dados!X940),\"-\",Dados!X940)","v":""},{"$f":"IF(ISERROR(Dados!Y940),\"-\",Dados!Y940)","v":""},{"$f":"IF(ISERROR(Dados!Z940),\"-\",Dados!Z940)","v":""},{"$f":"IF(ISERROR(Dados!AA940),\"-\",Dados!AA940)","v":""},{"$f":"IF(ISERROR(Dados!AB940),\"-\",Dados!AB940)","v":""},{"$f":"IF(ISERROR(Dados!AC940),\"-\",Dados!AC940)","v":""},{"$f":"IF(ISERROR(Dados!AD940),\"-\",Dados!AD940)","v":""},{"$f":"IF(ISERROR(Dados!AE940),\"-\",Dados!AE940)","v":""},{"$f":"IF(ISERROR(Dados!AF940),\"-\",Dados!AF940)","v":""},{"$f":"IF(ISERROR(Dados!AG940),\"-\",Dados!AG940)","v":""}]
[{"$f":"IF(ISERROR(Dados!A941),\"-\",Dados!A941)","v":""},{"$f":"IF(ISERROR(Dados!B941),\"-\",Dados!B941)","v":""},{"$f":"IF(ISERROR(Dados!C941),\"-\",Dados!C941)","v":""},{"$f":"IF(ISERROR(Dados!D941),\"-\",Dados!D941)","v":""},{"$f":"IF(ISERROR(Dados!E941),\"-\",Dados!E941)","v":""},{"$f":"IF(ISERROR(Dados!F941),\"-\",Dados!F941)","v":""},{"$f":"IF(ISERROR(Dados!G941),\"-\",Dados!G941)","v":""},{"$f":"IF(ISERROR(Dados!H941),\"-\",Dados!H941)","v":""},{"$f":"IF(ISERROR(Dados!I941),\"-\",Dados!I941)","v":""},{"$f":"IF(ISERROR(Dados!J941),\"-\",Dados!J941)","v":""},{"$f":"IF(ISERROR(Dados!K941),\"-\",Dados!K941)","v":""},{"$f":"IF(ISERROR(Dados!L941),\"-\",Dados!L941)","v":""},{"$f":"IF(ISERROR(Dados!M941),\"-\",Dados!M941)","v":""},{"$f":"IF(ISERROR(Dados!N941),\"-\",Dados!N941)","v":""},{"$f":"IF(ISERROR(Dados!O941),\"-\",Dados!O941)","v":""},{"$f":"IF(ISERROR(Dados!P941),\"-\",Dados!P941)","v":""},{"$f":"IF(ISERROR(Dados!Q941),\"-\",Dados!Q941)","v":""},{"$f":"IF(ISERROR(Dados!R941),\"-\",Dados!R941)","v":""},{"$f":"IF(ISERROR(Dados!S941),\"-\",Dados!S941)","v":""},{"$f":"IF(ISERROR(Dados!T941),\"-\",Dados!T941)","v":""},{"$f":"IF(ISERROR(Dados!U941),\"-\",Dados!U941)","v":""},{"$f":"IF(ISERROR(Dados!V941),\"-\",Dados!V941)","v":""},{"$f":"IF(ISERROR(Dados!W941),\"-\",Dados!W941)","v":""},{"$f":"IF(ISERROR(Dados!X941),\"-\",Dados!X941)","v":""},{"$f":"IF(ISERROR(Dados!Y941),\"-\",Dados!Y941)","v":""},{"$f":"IF(ISERROR(Dados!Z941),\"-\",Dados!Z941)","v":""},{"$f":"IF(ISERROR(Dados!AA941),\"-\",Dados!AA941)","v":""},{"$f":"IF(ISERROR(Dados!AB941),\"-\",Dados!AB941)","v":""},{"$f":"IF(ISERROR(Dados!AC941),\"-\",Dados!AC941)","v":""},{"$f":"IF(ISERROR(Dados!AD941),\"-\",Dados!AD941)","v":""},{"$f":"IF(ISERROR(Dados!AE941),\"-\",Dados!AE941)","v":""},{"$f":"IF(ISERROR(Dados!AF941),\"-\",Dados!AF941)","v":""},{"$f":"IF(ISERROR(Dados!AG941),\"-\",Dados!AG941)","v":""}]
[{"$f":"IF(ISERROR(Dados!A942),\"-\",Dados!A942)","v":""},{"$f":"IF(ISERROR(Dados!B942),\"-\",Dados!B942)","v":""},{"$f":"IF(ISERROR(Dados!C942),\"-\",Dados!C942)","v":""},{"$f":"IF(ISERROR(Dados!D942),\"-\",Dados!D942)","v":""},{"$f":"IF(ISERROR(Dados!E942),\"-\",Dados!E942)","v":""},{"$f":"IF(ISERROR(Dados!F942),\"-\",Dados!F942)","v":""},{"$f":"IF(ISERROR(Dados!G942),\"-\",Dados!G942)","v":""},{"$f":"IF(ISERROR(Dados!H942),\"-\",Dados!H942)","v":""},{"$f":"IF(ISERROR(Dados!I942),\"-\",Dados!I942)","v":""},{"$f":"IF(ISERROR(Dados!J942),\"-\",Dados!J942)","v":""},{"$f":"IF(ISERROR(Dados!K942),\"-\",Dados!K942)","v":""},{"$f":"IF(ISERROR(Dados!L942),\"-\",Dados!L942)","v":""},{"$f":"IF(ISERROR(Dados!M942),\"-\",Dados!M942)","v":""},{"$f":"IF(ISERROR(Dados!N942),\"-\",Dados!N942)","v":""},{"$f":"IF(ISERROR(Dados!O942),\"-\",Dados!O942)","v":""},{"$f":"IF(ISERROR(Dados!P942),\"-\",Dados!P942)","v":""},{"$f":"IF(ISERROR(Dados!Q942),\"-\",Dados!Q942)","v":""},{"$f":"IF(ISERROR(Dados!R942),\"-\",Dados!R942)","v":""},{"$f":"IF(ISERROR(Dados!S942),\"-\",Dados!S942)","v":""},{"$f":"IF(ISERROR(Dados!T942),\"-\",Dados!T942)","v":""},{"$f":"IF(ISERROR(Dados!U942),\"-\",Dados!U942)","v":""},{"$f":"IF(ISERROR(Dados!V942),\"-\",Dados!V942)","v":""},{"$f":"IF(ISERROR(Dados!W942),\"-\",Dados!W942)","v":""},{"$f":"IF(ISERROR(Dados!X942),\"-\",Dados!X942)","v":""},{"$f":"IF(ISERROR(Dados!Y942),\"-\",Dados!Y942)","v":""},{"$f":"IF(ISERROR(Dados!Z942),\"-\",Dados!Z942)","v":""},{"$f":"IF(ISERROR(Dados!AA942),\"-\",Dados!AA942)","v":""},{"$f":"IF(ISERROR(Dados!AB942),\"-\",Dados!AB942)","v":""},{"$f":"IF(ISERROR(Dados!AC942),\"-\",Dados!AC942)","v":""},{"$f":"IF(ISERROR(Dados!AD942),\"-\",Dados!AD942)","v":""},{"$f":"IF(ISERROR(Dados!AE942),\"-\",Dados!AE942)","v":""},{"$f":"IF(ISERROR(Dados!AF942),\"-\",Dados!AF942)","v":""},{"$f":"IF(ISERROR(Dados!AG942),\"-\",Dados!AG942)","v":""}]
[{"$f":"IF(ISERROR(Dados!A943),\"-\",Dados!A943)","v":""},{"$f":"IF(ISERROR(Dados!B943),\"-\",Dados!B943)","v":""},{"$f":"IF(ISERROR(Dados!C943),\"-\",Dados!C943)","v":""},{"$f":"IF(ISERROR(Dados!D943),\"-\",Dados!D943)","v":""},{"$f":"IF(ISERROR(Dados!E943),\"-\",Dados!E943)","v":""},{"$f":"IF(ISERROR(Dados!F943),\"-\",Dados!F943)","v":""},{"$f":"IF(ISERROR(Dados!G943),\"-\",Dados!G943)","v":""},{"$f":"IF(ISERROR(Dados!H943),\"-\",Dados!H943)","v":""},{"$f":"IF(ISERROR(Dados!I943),\"-\",Dados!I943)","v":""},{"$f":"IF(ISERROR(Dados!J943),\"-\",Dados!J943)","v":""},{"$f":"IF(ISERROR(Dados!K943),\"-\",Dados!K943)","v":""},{"$f":"IF(ISERROR(Dados!L943),\"-\",Dados!L943)","v":""},{"$f":"IF(ISERROR(Dados!M943),\"-\",Dados!M943)","v":""},{"$f":"IF(ISERROR(Dados!N943),\"-\",Dados!N943)","v":""},{"$f":"IF(ISERROR(Dados!O943),\"-\",Dados!O943)","v":""},{"$f":"IF(ISERROR(Dados!P943),\"-\",Dados!P943)","v":""},{"$f":"IF(ISERROR(Dados!Q943),\"-\",Dados!Q943)","v":""},{"$f":"IF(ISERROR(Dados!R943),\"-\",Dados!R943)","v":""},{"$f":"IF(ISERROR(Dados!S943),\"-\",Dados!S943)","v":""},{"$f":"IF(ISERROR(Dados!T943),\"-\",Dados!T943)","v":""},{"$f":"IF(ISERROR(Dados!U943),\"-\",Dados!U943)","v":""},{"$f":"IF(ISERROR(Dados!V943),\"-\",Dados!V943)","v":""},{"$f":"IF(ISERROR(Dados!W943),\"-\",Dados!W943)","v":""},{"$f":"IF(ISERROR(Dados!X943),\"-\",Dados!X943)","v":""},{"$f":"IF(ISERROR(Dados!Y943),\"-\",Dados!Y943)","v":""},{"$f":"IF(ISERROR(Dados!Z943),\"-\",Dados!Z943)","v":""},{"$f":"IF(ISERROR(Dados!AA943),\"-\",Dados!AA943)","v":""},{"$f":"IF(ISERROR(Dados!AB943),\"-\",Dados!AB943)","v":""},{"$f":"IF(ISERROR(Dados!AC943),\"-\",Dados!AC943)","v":""},{"$f":"IF(ISERROR(Dados!AD943),\"-\",Dados!AD943)","v":""},{"$f":"IF(ISERROR(Dados!AE943),\"-\",Dados!AE943)","v":""},{"$f":"IF(ISERROR(Dados!AF943),\"-\",Dados!AF943)","v":""},{"$f":"IF(ISERROR(Dados!AG943),\"-\",Dados!AG943)","v":""}]
[{"$f":"IF(ISERROR(Dados!A944),\"-\",Dados!A944)","v":""},{"$f":"IF(ISERROR(Dados!B944),\"-\",Dados!B944)","v":""},{"$f":"IF(ISERROR(Dados!C944),\"-\",Dados!C944)","v":""},{"$f":"IF(ISERROR(Dados!D944),\"-\",Dados!D944)","v":""},{"$f":"IF(ISERROR(Dados!E944),\"-\",Dados!E944)","v":""},{"$f":"IF(ISERROR(Dados!F944),\"-\",Dados!F944)","v":""},{"$f":"IF(ISERROR(Dados!G944),\"-\",Dados!G944)","v":""},{"$f":"IF(ISERROR(Dados!H944),\"-\",Dados!H944)","v":""},{"$f":"IF(ISERROR(Dados!I944),\"-\",Dados!I944)","v":""},{"$f":"IF(ISERROR(Dados!J944),\"-\",Dados!J944)","v":""},{"$f":"IF(ISERROR(Dados!K944),\"-\",Dados!K944)","v":""},{"$f":"IF(ISERROR(Dados!L944),\"-\",Dados!L944)","v":""},{"$f":"IF(ISERROR(Dados!M944),\"-\",Dados!M944)","v":""},{"$f":"IF(ISERROR(Dados!N944),\"-\",Dados!N944)","v":""},{"$f":"IF(ISERROR(Dados!O944),\"-\",Dados!O944)","v":""},{"$f":"IF(ISERROR(Dados!P944),\"-\",Dados!P944)","v":""},{"$f":"IF(ISERROR(Dados!Q944),\"-\",Dados!Q944)","v":""},{"$f":"IF(ISERROR(Dados!R944),\"-\",Dados!R944)","v":""},{"$f":"IF(ISERROR(Dados!S944),\"-\",Dados!S944)","v":""},{"$f":"IF(ISERROR(Dados!T944),\"-\",Dados!T944)","v":""},{"$f":"IF(ISERROR(Dados!U944),\"-\",Dados!U944)","v":""},{"$f":"IF(ISERROR(Dados!V944),\"-\",Dados!V944)","v":""},{"$f":"IF(ISERROR(Dados!W944),\"-\",Dados!W944)","v":""},{"$f":"IF(ISERROR(Dados!X944),\"-\",Dados!X944)","v":""},{"$f":"IF(ISERROR(Dados!Y944),\"-\",Dados!Y944)","v":""},{"$f":"IF(ISERROR(Dados!Z944),\"-\",Dados!Z944)","v":""},{"$f":"IF(ISERROR(Dados!AA944),\"-\",Dados!AA944)","v":""},{"$f":"IF(ISERROR(Dados!AB944),\"-\",Dados!AB944)","v":""},{"$f":"IF(ISERROR(Dados!AC944),\"-\",Dados!AC944)","v":""},{"$f":"IF(ISERROR(Dados!AD944),\"-\",Dados!AD944)","v":""},{"$f":"IF(ISERROR(Dados!AE944),\"-\",Dados!AE944)","v":""},{"$f":"IF(ISERROR(Dados!AF944),\"-\",Dados!AF944)","v":""},{"$f":"IF(ISERROR(Dados!AG944),\"-\",Dados!AG944)","v":""}]
[{"$f":"IF(ISERROR(Dados!A945),\"-\",Dados!A945)","v":""},{"$f":"IF(ISERROR(Dados!B945),\"-\",Dados!B945)","v":""},{"$f":"IF(ISERROR(Dados!C945),\"-\",Dados!C945)","v":""},{"$f":"IF(ISERROR(Dados!D945),\"-\",Dados!D945)","v":""},{"$f":"IF(ISERROR(Dados!E945),\"-\",Dados!E945)","v":""},{"$f":"IF(ISERROR(Dados!F945),\"-\",Dados!F945)","v":""},{"$f":"IF(ISERROR(Dados!G945),\"-\",Dados!G945)","v":""},{"$f":"IF(ISERROR(Dados!H945),\"-\",Dados!H945)","v":""},{"$f":"IF(ISERROR(Dados!I945),\"-\",Dados!I945)","v":""},{"$f":"IF(ISERROR(Dados!J945),\"-\",Dados!J945)","v":""},{"$f":"IF(ISERROR(Dados!K945),\"-\",Dados!K945)","v":""},{"$f":"IF(ISERROR(Dados!L945),\"-\",Dados!L945)","v":""},{"$f":"IF(ISERROR(Dados!M945),\"-\",Dados!M945)","v":""},{"$f":"IF(ISERROR(Dados!N945),\"-\",Dados!N945)","v":""},{"$f":"IF(ISERROR(Dados!O945),\"-\",Dados!O945)","v":""},{"$f":"IF(ISERROR(Dados!P945),\"-\",Dados!P945)","v":""},{"$f":"IF(ISERROR(Dados!Q945),\"-\",Dados!Q945)","v":""},{"$f":"IF(ISERROR(Dados!R945),\"-\",Dados!R945)","v":""},{"$f":"IF(ISERROR(Dados!S945),\"-\",Dados!S945)","v":""},{"$f":"IF(ISERROR(Dados!T945),\"-\",Dados!T945)","v":""},{"$f":"IF(ISERROR(Dados!U945),\"-\",Dados!U945)","v":""},{"$f":"IF(ISERROR(Dados!V945),\"-\",Dados!V945)","v":""},{"$f":"IF(ISERROR(Dados!W945),\"-\",Dados!W945)","v":""},{"$f":"IF(ISERROR(Dados!X945),\"-\",Dados!X945)","v":""},{"$f":"IF(ISERROR(Dados!Y945),\"-\",Dados!Y945)","v":""},{"$f":"IF(ISERROR(Dados!Z945),\"-\",Dados!Z945)","v":""},{"$f":"IF(ISERROR(Dados!AA945),\"-\",Dados!AA945)","v":""},{"$f":"IF(ISERROR(Dados!AB945),\"-\",Dados!AB945)","v":""},{"$f":"IF(ISERROR(Dados!AC945),\"-\",Dados!AC945)","v":""},{"$f":"IF(ISERROR(Dados!AD945),\"-\",Dados!AD945)","v":""},{"$f":"IF(ISERROR(Dados!AE945),\"-\",Dados!AE945)","v":""},{"$f":"IF(ISERROR(Dados!AF945),\"-\",Dados!AF945)","v":""},{"$f":"IF(ISERROR(Dados!AG945),\"-\",Dados!AG945)","v":""}]
[{"$f":"IF(ISERROR(Dados!A946),\"-\",Dados!A946)","v":""},{"$f":"IF(ISERROR(Dados!B946),\"-\",Dados!B946)","v":""},{"$f":"IF(ISERROR(Dados!C946),\"-\",Dados!C946)","v":""},{"$f":"IF(ISERROR(Dados!D946),\"-\",Dados!D946)","v":""},{"$f":"IF(ISERROR(Dados!E946),\"-\",Dados!E946)","v":""},{"$f":"IF(ISERROR(Dados!F946),\"-\",Dados!F946)","v":""},{"$f":"IF(ISERROR(Dados!G946),\"-\",Dados!G946)","v":""},{"$f":"IF(ISERROR(Dados!H946),\"-\",Dados!H946)","v":""},{"$f":"IF(ISERROR(Dados!I946),\"-\",Dados!I946)","v":""},{"$f":"IF(ISERROR(Dados!J946),\"-\",Dados!J946)","v":""},{"$f":"IF(ISERROR(Dados!K946),\"-\",Dados!K946)","v":""},{"$f":"IF(ISERROR(Dados!L946),\"-\",Dados!L946)","v":""},{"$f":"IF(ISERROR(Dados!M946),\"-\",Dados!M946)","v":""},{"$f":"IF(ISERROR(Dados!N946),\"-\",Dados!N946)","v":""},{"$f":"IF(ISERROR(Dados!O946),\"-\",Dados!O946)","v":""},{"$f":"IF(ISERROR(Dados!P946),\"-\",Dados!P946)","v":""},{"$f":"IF(ISERROR(Dados!Q946),\"-\",Dados!Q946)","v":""},{"$f":"IF(ISERROR(Dados!R946),\"-\",Dados!R946)","v":""},{"$f":"IF(ISERROR(Dados!S946),\"-\",Dados!S946)","v":""},{"$f":"IF(ISERROR(Dados!T946),\"-\",Dados!T946)","v":""},{"$f":"IF(ISERROR(Dados!U946),\"-\",Dados!U946)","v":""},{"$f":"IF(ISERROR(Dados!V946),\"-\",Dados!V946)","v":""},{"$f":"IF(ISERROR(Dados!W946),\"-\",Dados!W946)","v":""},{"$f":"IF(ISERROR(Dados!X946),\"-\",Dados!X946)","v":""},{"$f":"IF(ISERROR(Dados!Y946),\"-\",Dados!Y946)","v":""},{"$f":"IF(ISERROR(Dados!Z946),\"-\",Dados!Z946)","v":""},{"$f":"IF(ISERROR(Dados!AA946),\"-\",Dados!AA946)","v":""},{"$f":"IF(ISERROR(Dados!AB946),\"-\",Dados!AB946)","v":""},{"$f":"IF(ISERROR(Dados!AC946),\"-\",Dados!AC946)","v":""},{"$f":"IF(ISERROR(Dados!AD946),\"-\",Dados!AD946)","v":""},{"$f":"IF(ISERROR(Dados!AE946),\"-\",Dados!AE946)","v":""},{"$f":"IF(ISERROR(Dados!AF946),\"-\",Dados!AF946)","v":""},{"$f":"IF(ISERROR(Dados!AG946),\"-\",Dados!AG946)","v":""}]
[{"$f":"IF(ISERROR(Dados!A947),\"-\",Dados!A947)","v":""},{"$f":"IF(ISERROR(Dados!B947),\"-\",Dados!B947)","v":""},{"$f":"IF(ISERROR(Dados!C947),\"-\",Dados!C947)","v":""},{"$f":"IF(ISERROR(Dados!D947),\"-\",Dados!D947)","v":""},{"$f":"IF(ISERROR(Dados!E947),\"-\",Dados!E947)","v":""},{"$f":"IF(ISERROR(Dados!F947),\"-\",Dados!F947)","v":""},{"$f":"IF(ISERROR(Dados!G947),\"-\",Dados!G947)","v":""},{"$f":"IF(ISERROR(Dados!H947),\"-\",Dados!H947)","v":""},{"$f":"IF(ISERROR(Dados!I947),\"-\",Dados!I947)","v":""},{"$f":"IF(ISERROR(Dados!J947),\"-\",Dados!J947)","v":""},{"$f":"IF(ISERROR(Dados!K947),\"-\",Dados!K947)","v":""},{"$f":"IF(ISERROR(Dados!L947),\"-\",Dados!L947)","v":""},{"$f":"IF(ISERROR(Dados!M947),\"-\",Dados!M947)","v":""},{"$f":"IF(ISERROR(Dados!N947),\"-\",Dados!N947)","v":""},{"$f":"IF(ISERROR(Dados!O947),\"-\",Dados!O947)","v":""},{"$f":"IF(ISERROR(Dados!P947),\"-\",Dados!P947)","v":""},{"$f":"IF(ISERROR(Dados!Q947),\"-\",Dados!Q947)","v":""},{"$f":"IF(ISERROR(Dados!R947),\"-\",Dados!R947)","v":""},{"$f":"IF(ISERROR(Dados!S947),\"-\",Dados!S947)","v":""},{"$f":"IF(ISERROR(Dados!T947),\"-\",Dados!T947)","v":""},{"$f":"IF(ISERROR(Dados!U947),\"-\",Dados!U947)","v":""},{"$f":"IF(ISERROR(Dados!V947),\"-\",Dados!V947)","v":""},{"$f":"IF(ISERROR(Dados!W947),\"-\",Dados!W947)","v":""},{"$f":"IF(ISERROR(Dados!X947),\"-\",Dados!X947)","v":""},{"$f":"IF(ISERROR(Dados!Y947),\"-\",Dados!Y947)","v":""},{"$f":"IF(ISERROR(Dados!Z947),\"-\",Dados!Z947)","v":""},{"$f":"IF(ISERROR(Dados!AA947),\"-\",Dados!AA947)","v":""},{"$f":"IF(ISERROR(Dados!AB947),\"-\",Dados!AB947)","v":""},{"$f":"IF(ISERROR(Dados!AC947),\"-\",Dados!AC947)","v":""},{"$f":"IF(ISERROR(Dados!AD947),\"-\",Dados!AD947)","v":""},{"$f":"IF(ISERROR(Dados!AE947),\"-\",Dados!AE947)","v":""},{"$f":"IF(ISERROR(Dados!AF947),\"-\",Dados!AF947)","v":""},{"$f":"IF(ISERROR(Dados!AG947),\"-\",Dados!AG947)","v":""}]
[{"$f":"IF(ISERROR(Dados!A948),\"-\",Dados!A948)","v":""},{"$f":"IF(ISERROR(Dados!B948),\"-\",Dados!B948)","v":""},{"$f":"IF(ISERROR(Dados!C948),\"-\",Dados!C948)","v":""},{"$f":"IF(ISERROR(Dados!D948),\"-\",Dados!D948)","v":""},{"$f":"IF(ISERROR(Dados!E948),\"-\",Dados!E948)","v":""},{"$f":"IF(ISERROR(Dados!F948),\"-\",Dados!F948)","v":""},{"$f":"IF(ISERROR(Dados!G948),\"-\",Dados!G948)","v":""},{"$f":"IF(ISERROR(Dados!H948),\"-\",Dados!H948)","v":""},{"$f":"IF(ISERROR(Dados!I948),\"-\",Dados!I948)","v":""},{"$f":"IF(ISERROR(Dados!J948),\"-\",Dados!J948)","v":""},{"$f":"IF(ISERROR(Dados!K948),\"-\",Dados!K948)","v":""},{"$f":"IF(ISERROR(Dados!L948),\"-\",Dados!L948)","v":""},{"$f":"IF(ISERROR(Dados!M948),\"-\",Dados!M948)","v":""},{"$f":"IF(ISERROR(Dados!N948),\"-\",Dados!N948)","v":""},{"$f":"IF(ISERROR(Dados!O948),\"-\",Dados!O948)","v":""},{"$f":"IF(ISERROR(Dados!P948),\"-\",Dados!P948)","v":""},{"$f":"IF(ISERROR(Dados!Q948),\"-\",Dados!Q948)","v":""},{"$f":"IF(ISERROR(Dados!R948),\"-\",Dados!R948)","v":""},{"$f":"IF(ISERROR(Dados!S948),\"-\",Dados!S948)","v":""},{"$f":"IF(ISERROR(Dados!T948),\"-\",Dados!T948)","v":""},{"$f":"IF(ISERROR(Dados!U948),\"-\",Dados!U948)","v":""},{"$f":"IF(ISERROR(Dados!V948),\"-\",Dados!V948)","v":""},{"$f":"IF(ISERROR(Dados!W948),\"-\",Dados!W948)","v":""},{"$f":"IF(ISERROR(Dados!X948),\"-\",Dados!X948)","v":""},{"$f":"IF(ISERROR(Dados!Y948),\"-\",Dados!Y948)","v":""},{"$f":"IF(ISERROR(Dados!Z948),\"-\",Dados!Z948)","v":""},{"$f":"IF(ISERROR(Dados!AA948),\"-\",Dados!AA948)","v":""},{"$f":"IF(ISERROR(Dados!AB948),\"-\",Dados!AB948)","v":""},{"$f":"IF(ISERROR(Dados!AC948),\"-\",Dados!AC948)","v":""},{"$f":"IF(ISERROR(Dados!AD948),\"-\",Dados!AD948)","v":""},{"$f":"IF(ISERROR(Dados!AE948),\"-\",Dados!AE948)","v":""},{"$f":"IF(ISERROR(Dados!AF948),\"-\",Dados!AF948)","v":""},{"$f":"IF(ISERROR(Dados!AG948),\"-\",Dados!AG948)","v":""}]
[{"$f":"IF(ISERROR(Dados!A949),\"-\",Dados!A949)","v":""},{"$f":"IF(ISERROR(Dados!B949),\"-\",Dados!B949)","v":""},{"$f":"IF(ISERROR(Dados!C949),\"-\",Dados!C949)","v":""},{"$f":"IF(ISERROR(Dados!D949),\"-\",Dados!D949)","v":""},{"$f":"IF(ISERROR(Dados!E949),\"-\",Dados!E949)","v":""},{"$f":"IF(ISERROR(Dados!F949),\"-\",Dados!F949)","v":""},{"$f":"IF(ISERROR(Dados!G949),\"-\",Dados!G949)","v":""},{"$f":"IF(ISERROR(Dados!H949),\"-\",Dados!H949)","v":""},{"$f":"IF(ISERROR(Dados!I949),\"-\",Dados!I949)","v":""},{"$f":"IF(ISERROR(Dados!J949),\"-\",Dados!J949)","v":""},{"$f":"IF(ISERROR(Dados!K949),\"-\",Dados!K949)","v":""},{"$f":"IF(ISERROR(Dados!L949),\"-\",Dados!L949)","v":""},{"$f":"IF(ISERROR(Dados!M949),\"-\",Dados!M949)","v":""},{"$f":"IF(ISERROR(Dados!N949),\"-\",Dados!N949)","v":""},{"$f":"IF(ISERROR(Dados!O949),\"-\",Dados!O949)","v":""},{"$f":"IF(ISERROR(Dados!P949),\"-\",Dados!P949)","v":""},{"$f":"IF(ISERROR(Dados!Q949),\"-\",Dados!Q949)","v":""},{"$f":"IF(ISERROR(Dados!R949),\"-\",Dados!R949)","v":""},{"$f":"IF(ISERROR(Dados!S949),\"-\",Dados!S949)","v":""},{"$f":"IF(ISERROR(Dados!T949),\"-\",Dados!T949)","v":""},{"$f":"IF(ISERROR(Dados!U949),\"-\",Dados!U949)","v":""},{"$f":"IF(ISERROR(Dados!V949),\"-\",Dados!V949)","v":""},{"$f":"IF(ISERROR(Dados!W949),\"-\",Dados!W949)","v":""},{"$f":"IF(ISERROR(Dados!X949),\"-\",Dados!X949)","v":""},{"$f":"IF(ISERROR(Dados!Y949),\"-\",Dados!Y949)","v":""},{"$f":"IF(ISERROR(Dados!Z949),\"-\",Dados!Z949)","v":""},{"$f":"IF(ISERROR(Dados!AA949),\"-\",Dados!AA949)","v":""},{"$f":"IF(ISERROR(Dados!AB949),\"-\",Dados!AB949)","v":""},{"$f":"IF(ISERROR(Dados!AC949),\"-\",Dados!AC949)","v":""},{"$f":"IF(ISERROR(Dados!AD949),\"-\",Dados!AD949)","v":""},{"$f":"IF(ISERROR(Dados!AE949),\"-\",Dados!AE949)","v":""},{"$f":"IF(ISERROR(Dados!AF949),\"-\",Dados!AF949)","v":""},{"$f":"IF(ISERROR(Dados!AG949),\"-\",Dados!AG949)","v":""}]
[{"$f":"IF(ISERROR(Dados!A950),\"-\",Dados!A950)","v":""},{"$f":"IF(ISERROR(Dados!B950),\"-\",Dados!B950)","v":""},{"$f":"IF(ISERROR(Dados!C950),\"-\",Dados!C950)","v":""},{"$f":"IF(ISERROR(Dados!D950),\"-\",Dados!D950)","v":""},{"$f":"IF(ISERROR(Dados!E950),\"-\",Dados!E950)","v":""},{"$f":"IF(ISERROR(Dados!F950),\"-\",Dados!F950)","v":""},{"$f":"IF(ISERROR(Dados!G950),\"-\",Dados!G950)","v":""},{"$f":"IF(ISERROR(Dados!H950),\"-\",Dados!H950)","v":""},{"$f":"IF(ISERROR(Dados!I950),\"-\",Dados!I950)","v":""},{"$f":"IF(ISERROR(Dados!J950),\"-\",Dados!J950)","v":""},{"$f":"IF(ISERROR(Dados!K950),\"-\",Dados!K950)","v":""},{"$f":"IF(ISERROR(Dados!L950),\"-\",Dados!L950)","v":""},{"$f":"IF(ISERROR(Dados!M950),\"-\",Dados!M950)","v":""},{"$f":"IF(ISERROR(Dados!N950),\"-\",Dados!N950)","v":""},{"$f":"IF(ISERROR(Dados!O950),\"-\",Dados!O950)","v":""},{"$f":"IF(ISERROR(Dados!P950),\"-\",Dados!P950)","v":""},{"$f":"IF(ISERROR(Dados!Q950),\"-\",Dados!Q950)","v":""},{"$f":"IF(ISERROR(Dados!R950),\"-\",Dados!R950)","v":""},{"$f":"IF(ISERROR(Dados!S950),\"-\",Dados!S950)","v":""},{"$f":"IF(ISERROR(Dados!T950),\"-\",Dados!T950)","v":""},{"$f":"IF(ISERROR(Dados!U950),\"-\",Dados!U950)","v":""},{"$f":"IF(ISERROR(Dados!V950),\"-\",Dados!V950)","v":""},{"$f":"IF(ISERROR(Dados!W950),\"-\",Dados!W950)","v":""},{"$f":"IF(ISERROR(Dados!X950),\"-\",Dados!X950)","v":""},{"$f":"IF(ISERROR(Dados!Y950),\"-\",Dados!Y950)","v":""},{"$f":"IF(ISERROR(Dados!Z950),\"-\",Dados!Z950)","v":""},{"$f":"IF(ISERROR(Dados!AA950),\"-\",Dados!AA950)","v":""},{"$f":"IF(ISERROR(Dados!AB950),\"-\",Dados!AB950)","v":""},{"$f":"IF(ISERROR(Dados!AC950),\"-\",Dados!AC950)","v":""},{"$f":"IF(ISERROR(Dados!AD950),\"-\",Dados!AD950)","v":""},{"$f":"IF(ISERROR(Dados!AE950),\"-\",Dados!AE950)","v":""},{"$f":"IF(ISERROR(Dados!AF950),\"-\",Dados!AF950)","v":""},{"$f":"IF(ISERROR(Dados!AG950),\"-\",Dados!AG950)","v":""}]

{"sheet":"colar adrs","index":8,"n_rows":34,"n_cols":45,"rows_kept":34,"cut":false,"hidden":true,"merged":[]}
["adr",null,null,null,null,null,null,null,null,null,null,null,null,null,null,null,null,"adr conferencia",null,null,null,null,null,null,null,null,null,null,null,null,null,null,null,null,null,null,null,null,null,null,null,null,null,null," "]
["Nome","Classe","Bolsa / Fonte","Fechamento|29Mar19|ajus p/prov ed|Em US Dollars","Retorno|do fechamento|no mês|(de 28Fev19|até 29Mar19)|Em moeda orig|ajus p/prov ed","Retorno|do fechamento|no ano|(de 31Dez18|até 29Mar19)|Em moeda orig|ajus p/prov ed","Retorno|do fechamento|de 31Dez17|até 31Dez18|Em moeda orig|ajus p/prov ed","Retorno|do fechamento|de 31Dez16|até 31Dez17|Em moeda orig|ajus p/prov ed","Mínimo|29Mar19|ajus p/prov ed|52 sem|Em US Dollars","Máximo|29Mar19|ajus p/prov ed|52 sem|Em US Dollars","Volume$|29Mar19|30 dias|Em moeda orig|em milhões","Q Títs|29Mar19|ajust p/ prov|30 dias|em milhões","Código",null,null,"Conversão Ações/ADR",null,"Nome","Classe","Fechamento|29Mar19|ajust p/ prov|Em moeda orig",null,null,null,null,null,null,null,null,null,null,null,null,null,null,null,null,null,null,null,null,null,null,null,null," "]
["Ambev S/A","ON","NYSE",4.3,-5.0999999999999996,9.6999999999999993,-39.299999999999997,31.6,3.77,7.35,4020,902.5,"ABEV",null,"Ambev S/A",1,{"$f":"IF(T3/$T$22*P3/D3<0.9,\"erro\",IF(T3/$T$22*P3/D3>1.1,\"erro\",\" ok\"))","v":" ok"},"Ambev S/A","ON",16.829999999999998,null,null,null,null,null,null,null,null,null,null,null,null,null,null,null,null,null,null,null,null,null,null,null,null," "]
["Bradesco","PN","NYSE",10.91,-5,10.3,6.2,29.3,6.4950000000000001,12.555,5143,454.9,"BBD",null,"Bradesco",1," ok","Bradesco","PN",42.94,null,null,null,null,null,null,null,null,null,null,null,null,null,null,null,null,null,null,null,null,null,null,null,null," "]
["Braskem","PNA","NYSE",25.82,-10.4,5.6,-6.9,23.8,21.32,30.52,234,8.3000000000000007,"BAK",null,"Braskem",2," ok","Braskem","PNA",50.9,null,null,null,null,null,null,null,null,null,null,null,null,null,null,null,null,null,null,null,null,null,null,null,null," "]
["BRF SA","ON","NYSE",5.82,6.2,2.5,-49.6,-23.7,4.6500000000000004,7.64,670,118.5,"BRFS",null,"BRF SA",1," ok","BRF SA","ON",22.65,null,null,null,null,null,null,null,null,null,null,null,null,null,null,null,null,null,null,null,null,null,null,null,null," "]
["Cemig","PN","NYSE",3.57,-6.5,0.3,72.8,-9.6,1.56,3.98,424,114.6,"CIG",null,"Cemig",1," ok","Cemig","PN",13.9,null,null,null,null,null,null,null,null,null,null,null,null,null,null,null,null,null,null,null,null,null,null,null,null," "]
["Copel","PNB","NYSE",9.2799999999999994,-3.5,18.5,2.6,-10,4.7,10.49,125,13.1,"ELP",null,"Copel",1," ok","Copel","PNB",36.4,null,null,null,null,null,null,null,null,null,null,null,null,null,null,null,null,null,null,null,null,null,null,null,null," "]
["CPFL Energia","ON","NYSE",15.52,-5.5,4.9000000000000004,28.7,-25.3,10.36,18.170000000000002,8,0.5,"CPL",null,"CPFL Energia",2," ok","CPFL Energia","ON",30.48,null,null,null,null,null,null,null,null,null,null,null,null,null,null,null,null,null,null,null,null,null,null,null,null," "]
["Embraer","ON","NYSE",19.010000000000002,-7.4,-14.1,-7.5,24.3,17.989999999999998,28.32,554,27.8,"ERJ",null,"Embraer",4," ok","Embraer","ON",18.45,null,null,null,null,null,null,null,null,null,null,null,null,null,null,null,null,null,null,null,null,null,null,null,null," "]
["Gerdau","PN","NYSE",3.88,-4.2,3.2,1.1000000000000001,18.5,3.3650000000000002,5.13,1345,335.3,"GGB",null,"Gerdau",1," ok","Gerdau","PN",15.14,null,null,null,null,null,null,null,null,null,null,null,null,null,null,null,null,null,null,null,null,null,null,null,null," "]
["Gol","PN","NYSE",13.05,-7.5,-3.7,54.7,221.6,4.43,16.600000000000001,409,29.1,"GOL",null,"Gol",2," ok","Gol","PN",25.9,null,null,null,null,null,null,null,null,null,null,null,null,null,null,null,null,null,null,null,null,null,null,null,null," "]
["ItauUnibanco","PN","NYSE",8.81,-6.3,-3.6,5.5,26.5,6.5666666666999998,10.8,5260,568.29999999999995,"ITUB",null,"ItauUnibanco",1," ok","ItauUnibanco","PN",34.43,null,null,null,null,null,null,null,null,null,null,null,null,null,null,null,null,null,null,null,null,null,null,null,null," "]
["P.Acucar-Cbd","PN","NYSE",23.28,-5.7,12.1,-11.9,42.4,17.91,26.81,444,18.2,"CBD",null,"P.Acucar-Cbd",1," ok","P.Acucar-Cbd","PN",91.46,null,null,null,null,null,null,null,null,null,null,null,null,null,null,null,null,null,null,null,null,null,null,null,null," "]
["Petrobras","ON","NYSE",15.92,1.3,22.4,26.4,1.8,9.02,17.899999999999999,8208,504.8,"PBR",null,"Petrobras",2," ok","Petrobras","ON",31.15,null,null,null,null,null,null,null,null,null,null,null,null,null,null,null,null,null,null,null,null,null,null,null,null," "]
["Petrobras","PN","NYSE",14.3,-0.2,23.4,17.899999999999999,11.6,7.55,15.744999999999999,3531,243.8,"PBR.A",null,"Petrobras",2," ok","Petrobras","PN",28.06,null,null,null,null,null,null,null,null,null,null,null,null,null,null,null,null,null,null,null,null,null,null,null,null," "]
["Sabesp","ON","NYSE",10.58,1.7,31.1,-22.8,20.399999999999999,5.58,12.25,611,57.6,"SBS",null,"Sabesp",1," ok","Sabesp","ON",42,null,null,null,null,null,null,null,null,null,null,null,null,null,null,null,null,null,null,null,null,null,null,null,null," "]
["Sid Nacional","ON","NYSE",4.1100000000000003,18.100000000000001,87.7,-10.6,-24.1,1.91,4.5999999999999996,728,192.9,"SID",null,"Sid Nacional",1," ok","Sid Nacional","ON",16.25,null,null,null,null,null,null,null,null,null,null,null,null,null,null,null,null,null,null,null,null,null,null,null,null," "]
["Telef Brasil","PN","NYSE",12.07,-3.3,1.2,-19.600000000000001,10.8,9.2100000000000009,15.52,665,53.9,"VIV",null,"Telef Brasil",1," ok","Telef Brasil","PN",47.5,null,null,null,null,null,null,null,null,null,null,null,null,null,null,null,null,null,null,null,null,null,null,null,null," "]
["Ultrapar","ON","NYSE",11.95,-15.2,-11.7,-40.4,9.6,8.86,21.39,344,25.5,"UGP",null,"Ultrapar",1," ok","Ultrapar","ON",47,null,null,null,null,null,null,null,null,null,null,null,null,null,null,null,null,null,null,null,null,null,null,null,null," "]
["Vale","ON","NYSE",13.06,4.5999999999999996,-1,7.8,60.5,10.89,16.13,10186,795.5,"VALE",null,"Vale",1," ok","Vale","ON",50.93,null,null,null,null,null,null,null,null,null,null,null,null,null,null,null,null,null,null,null,null,null,null,null,null," "]
[null,null,null,null,null,null,null,null,null,null,null,null,null,null,null,null,null,"Dolar Ptax Venda",null,3.8967000000000001,null,null,null,null,null,null,null,null,null,null,null,null,null,null,null,null,null,null,null,null,null,null,null,null," "]
[null,null,null,null,null,null,null,null,null,null,null,null,null,null,null,null,null,null,null,null,null,null,null,null,null,null,null,null,null,null,null,null,null,null,null,null,null,null,null,null,null,null,null,null," "]
[null,null,null,null,null,null,null,null,null,null,null,null,null,null,null,null,null,null,null,null,null,null,null,null,null,null,null,null,null,null,null,null,null,null,null,null,null,null,null,null,null,null,null,null," "]
[null,null,null,null,null,null,null,null,null,null,null,null,null,null,null,null,null,null,null,null,null,null,null,null,null,null,null,null,null,null,null,null,null,null,null,null,null,null,null,null,null,null,null,null," "]
[null,null,null,null,null,null,null,null,null,null,null,null,null,null,null,null,null,null,null,null,null,null,null,null,null,null,null,null,null,null,null,null,null,null,null,null,null,null,null,null,null,null,null,null," "]
[null,null,null,null,null,null,null,null,null,null,null,null,null,null,null,null,null,null,null,null,null,null,null,null,null,null,null,null,null,null,null,null,null,null,null,null,null,null,null,null,null,null,null,null," "]
[null,null,null,null,null,null,null,null,null,null,null,null,null,null,null,null,null,null,null,null,null,null,null,null,null,null,null,null,null,null,null,null,null,null,null,null,null,null,null,null,null,null,null,null," "]
[null,null,null,null,null,null,null,null,null,null,null,null,null,null,null,null,null,null,null,null,null,null,null,null,null,null,null,null,null,null,null,null,null,null,null,null,null,null,null,null,null,null,null,null," "]
[null,null,null,null,null,null,null,null,null,null,null,null,null,null,null,null,null,null,null,null,null,null,null,null,null,null,null,null,null,null,null,null,null,null,null,null,null,null,null,null,null,null,null,null," "]
[null,null,null,null,null,null,null,null,null,null,null,null,null,null,null,null,null,null,null,null,null,null,null,null,null,null,null,null,null,null,null,null,null,null,null,null,null,null,null,null,null,null,null,null," "]
[null,null,null,null,null,null,null,null,null,null,null,null,null,null,null,null,null,null,null,null,null,null,null,null,null,null,null,null,null,null,null,null,null,null,null,null,null,null,null,null,null,null,null,null," "]
[null,null,null,null,null,null,null,null,null,null,null,null,null,null,null,null,null,null,null,null,null,null,null,null,null,null,null,null,null,null,null,null,null,null,null,null,null,null,null,null,null,null,null,null," "]
[null,null,null,null,null,null,null,null,null,null,null,null,null,null,null,null,null,null,null,null,null,null,null,null,null,null,null,null,null,null,null,null,null,null,null,null,null,null,null,null,null,null,null,null," "]

{"sheet":"Stock guide","index":9,"n_rows":338,"n_cols":30,"rows_kept":338,"cut":false,"hidden":false,"merged":[[229,0,238,0],[100,0,103,0],[104,0,107,0],[108,0,161,0],[162,0,163,0],[164,0,172,0],[21,0,34,0],[35,0,50,0],[51,0,52,0],[53,0,78,0],[79,0,99,0],[6,0,9,0],[10,0,20,0],[173,0,179,0],[180,0,194,0],[195,0,197,0],[198,0,201,0],[202,0,218,0],[219,0,228,0]]}
[]
[]
[]
[]
[null,null,null,"Valores"]
["Setor","Empresa","Código Ação","Cotação 29/03/2019 (R$)","Quant. de Ações (milhões)","Valor de Mercado R$ mi","Patrim. Líq. R$ mi ","Rec. Líq. 2017 R$ mi","Rec. Líq. 2018 R$ mi","Lucro Acum. 4T17 R$ mi","Lucro Acum. 1T18 R$ mi","Lucro Acum. 2T18 R$ mi","Lucro Acum. 3T18 R$ mi","Lucro Acum. 4T18 R$ mi","Lucro Líq. 2017 R$ mi","Lucro Líq. 2018 R$ mi","LPA (12m) ","VPA","P/VPA ","P/L ","ROE","Dívida Líq/ Patrim.","EBITDA 2016 R$ mi","EBITDA 2017 R$ mi","Firm Value/ Ebitda ","Dividendo 12m        R$ mi","Dividend Yield","Oscliação mês (%)","Oscliação ano (%)","% ON/Total"]
["Agro ","Biosev","BSEV3",2.67,1020.429,2724.55,624.41999999999996,5147.72,4959.07,-823.16,-1269.83,-506.21,-661.76,-892.2,-823.16,-892.2,-1.3120658076162084,0.61191910461188381,4.3633218506774289,"─","─",8.001728,968.8,1050.0999999999999,7.7129654624851129,"─","─",-8.6,-40.799999999999997,0.99997158058032454]
[null,"Brasilagro","AGRO3",15.55,53.802,836.62,882.81,174.6,336.38,31.64,85.62,126.34,136.63999999999999,136.12,31.64,136.12,4.2903609531244191,16.40849782535965,0.94767968192476315,3.6244036736992595,0.33271099999999998,0.236371,58.8,175.9,3.4715775489870468,41,4.900671750615572E-2,-1.9,31.2,"─"]
[null,"Pomifrutas","FRTA3",0.89,12.006,10.69,-68.56,44.73,5.22,-20.05,-1.56,-5.72,-7.1,-7.51,-20.05,-7.51,-0.62552057304680986,"─","─","─","─",-0.69867599999999996,-18.100000000000001,-10.8,-5.42537037037037,"─","─",-6.3,-38.200000000000003,0.99950024987506247]
[null,"SLC Agricola","SLCE3",41.06,94.08,3862.93,2598.17,2219.9,2823.47,356.34,154.32,311.37,347.16,381.25,356.34,381.25,4.0524022108843534,27.616602891156464,1.4867867768467806,10.132261770491805,0.150454,0.34433599999999998,685,769,6.2747269180754222,199.99,5.1771582710533198E-2,0.1,61.7,"─"]
["Alimentos e Bebidas","Ambev S/A","ABEV3",16.829999999999998,15721.119000000001,264586.43,56340.62,47899.28,50231.34,7331.97,2515.96,4833.1099999999997,7664.27,11024.68,7331.97,11024.68,0.7012656032945237,3.5837538027668385,4.6961931333024021,23.999465995384899,0.23711400000000002,-0.157333,20035.8,21013.5,12.160387798320128,8598.1200000000008,3.2496451159645647E-2,-2.2999999999999998,-18.3,"─"]
[null,"BRF SA","BRFS3",22.65,811.41600000000005,18378.57,6964.63,33469.35,30188.42,-1125.57,-124.32,-1709.24,-2351.8000000000002,-4448.0600000000004,-1125.57,-4448.0600000000004,-5.4818490145621972,8.5833037554102951,2.6388440448379882,"─",-0.38131399999999999,2.229069,2654.1,1540.9,22.822647154260498,"─","─",10.1,-38.1,"─"]
[null,"Camil","CAML3",6.81,404.23,2752.81,2091.19,"─","─",173.43,250.67,32.56,111.63,261.93,"─","─",0.83905202483734509,5.1732676941345277,1.3163826816310329,8.116302444202022,0.186252,0.44219299999999995,"─","─",7.5451764464505535,85,3.0877539677638486E-2,-5.3,-11,"─"]
[null,"Excelsior","BAUH4",26.49,5.2220000000000004,138.33000000000001,49.15,163.05000000000001,173.87,9.42,2.38,4.05,8.0299999999999994,10.050000000000001,9.42,10.050000000000001,1.9245499808502489,9.4121026426656442,2.8144614445574772,13.764256716417909,0.24229199999999998,-0.49022300000000002,17.100000000000001,17.899999999999999,6.3819553072625705,3.13,2.2627051254247087E-2,7.9,152.9,0.53619302949061654]
[null,"J B Duarte","JBDU4",6.8,0.13600000000000001,0.93,25.77,"─","─",-1.44,33.520000000000003,27.9,"─","─",-1.44,"─",202.86764705882351,189.48529411764704,3.5886689949553748E-2,3.3519391083725987E-2,"─",0.20507500000000001,"─","─","─","─","─",-8.4,-77.599999999999994,"─"]
[null,"JBS","JBSS3",15.92,2663.1080000000002,42396.68,25647,163169.98000000001,181680.24,534.20000000000005,506.52,-404.56,-538.04999999999995,25.2,534.20000000000005,25.2,9.4626278769017243E-3,9.6304768713848627,1.6530853261590051,1682.4079111111114,8.038E-3,1.6895939999999998,11218.8,11988.8,7.4748456058988397,126.88,2.9926871632401405E-3,18.5,63.2,"─"]
[null,"M.Diasbranco","MDIA3",43.45,339,14729.55,5561.84,5415.42,6025.05,844.18,139.78,349.4,583.69000000000005,723.5,844.18,723.5,2.1342182890855459,16.40660766961652,2.6483232167771815,20.35874222529371,0.14493400000000001,0.14344200000000001,966.3,933.1,16.640610867002465,132.37,8.9866968101537398E-3,-7.5,-15.8,1]
[null,"Marfrig","MRFG3",5.98,619.14099999999996,3702.47,673.46,18577.87,29715.18,-483.47,-202.69,-740.35,-820.79,1395.26,-483.47,1395.26,2.2535416003785893,1.0877328427611805,5.4976734772666527,2.6536008915900977,0.81753600000000004,2.0059430000000003,1566.1,1075.2,10.927664620535714,"─","─",8.6999999999999993,-18.3,"─"]
[null,"Minerva","BEEF3",7.03,373.137,2623.15,-301.11,12103.79,16214.91,-281.02,-114.72,-1040.7,-1172.72,-1264.78,-281.02,-1264.78,-3.389586130563305,"─","─","─",-17.794532999999998,-20.160433999999999,1134.5999999999999,896.2,9.7006683775942868,"─","─",10.199999999999999,-34,"─"]
[null,"Minupar","MNPR3",2.1,7.1,14.91,-359.63,190.42,199.56,-25.34,-1.69,-8.0399999999999991,-5.83,-66.97,-25.34,-66.97,-9.4323943661971832,"─","─","─","─",-1.258E-3,11.6,"─","─","─","─",-6.7,-26.3,1]
[null,"Sao Martinho","SMTO3",18.34,350.803,6433.72,3344.62,2321.36,2236.67,338.37,491.71,103.96,162.51,228.44,338.37,228.44,1.0882746156674827,9.5341830029959826,1.9236047802141949,16.852364041176628,0.11311400000000001,0.93053799999999998,817.3,739,5.9038963448574426,180,2.7977593056583126E-2,-2.2999999999999998,-2.5,"─"]
["Comércio","B2W Digital","BTOW3",42.22,457.28100000000001,19306.400000000001,3537.12,7120.78,6488.47,-411.45,-115.14,-223.95,-329.74,-397.43,-411.45,-397.43,-0.86911548916311854,7.7351125456776026,5.4582269812729001,"─",-0.10188000000000001,0.51102599999999998,583.29999999999995,412.3,51.210177055542083,"─","─",-12.7,106,"─"]
[null,"BR Pharma","BPHA3",1.39,113.081,157.18,-268.38,516.79,9.5399999999999991,-1621.68,-151.44999999999999,-220.97,-233.34,1048.96,-1621.68,1048.96,9.2761825594043206,"─","─",0.14984612377974374,"─",-0.234899,-1475.8,"─","─","─","─",-6.1,-61.8,"─"]
[null,"Carrefour BR","CRFB3",20.09,1983.4380000000001,39847.269999999997,13033,50280,54267,1599,280,669,1024,1660,1599,1660,0.83693062248479655,6.5709137366532246,3.0574134443336152,24.004379168674699,0.14178100000000002,-0.21499300000000002,3785,3891,9.4647314315086088,697,1.749178801960586E-2,2.9,34.799999999999997,0.99998084134719611]
[null,"Dimed","PNVL3",391.99,4.516,1704.16,463.91,2258.25,2432.25,59.8,12.65,28.35,49.15,74.98,59.8,74.98,16.603188662533217,102.72586359610276,3.8158842016770493,23.609320352093889,0.175706,0.21923999999999999,117.9,139.69999999999999,12.92675733715104,17.89,1.0497840578349451E-2,4.8,-0.1,0.90788308237378201]
[null,"Grazziotin","CGRA4",24.08,20.056999999999999,483.54,497.95,428.28,463.17,61.4,4.76,22.57,32.29,53.77,61.4,53.77,2.6808595502816974,24.826743780226355,0.96992179937744749,8.9821937883578187,0.11241300000000001,-0.12510199999999999,61.2,59.8,7.0442474916387967,22,4.5497787153079373E-2,-7.6,-7.5,0.40883482076083161]
[null,"Imc S/A","MEAL3",6.49,157.97399999999999,1025.25,1015.22,1494.51,1582.08,3.67,-6.43,-3.84,9.41,7.89,3.67,7.89,4.9944927646321545E-2,6.4265005633838488,1.0098808731112467,129.94312547528517,7.8630000000000002E-3,2.8709999999999999E-2,108.5,102.8,10.256780155642023,0.87,8.4857351865398687E-4,5,-18,"─"]
[null,"Lojas Americ","LAME4",16.77,1598.3530000000001,24887.58,4924.6000000000004,17044.72,17689.86,237.63,20.02,46.29,107.69,380.49,237.63,380.49,0.23805129405081354,3.0810465522947683,5.4429557344758965,70.447002049988171,3.7257999999999999E-2,0.88626000000000005,2682.2,2654.4,11.474804852320675,101.73,4.0875810343954698E-3,-15.8,-0.8,0.33778520764812275]
[null,"Lojas Marisa","AMAR3",6.43,204.28,1313.52,973.65,2875.58,2764.13,-60.44,-41.08,-78.09,-131.16999999999999,28.36,-60.44,28.36,0.13882905815547289,4.766252202858821,1.349068351050172,46.315952045133983,2.9555999999999999E-2,0.63636400000000004,265.60000000000002,417.9,4.6257860732232592,"─","─",4.4000000000000004,-11.3,0.99911885647150966]
[null,"Lojas Renner","LREN3",43.8,717.93899999999996,31445.73,3954.51,7444.31,8426.5400000000009,732.68,111.44,386.15,580.36,1020.14,732.68,1020.14,1.4209285189967393,5.5081420566371246,7.951864630510479,30.824914423510496,0.31647400000000003,0.13635700000000001,1416.3,1738.4,18.399076161988035,287.64999999999998,9.1475058775865592E-3,1.4,25.4,"─"]
[null,"Magaz Luiza","MGLU3",172.85,188.964,32662.46,2302.87,11984.25,15590.44,389.02,147.47999999999999,288.23,407.79,597.42999999999995,389.02,597.42999999999995,3.1616075019580445,12.186818653288457,14.183357028403687,54.671555496041385,0.28805999999999998,-0.23980100000000001,1030.8,1245.2,25.787206071313843,114.27,3.498511747124987E-3,-0.4,116.8,"─"]
[null,"Natura","NATU3",45.39,430.72699999999998,19550.7,2574.1,9852.7099999999991,13397.42,670.25,24.39,56.19,166.75,548.38,670.25,548.38,1.273149814151423,5.9761751643152161,7.5951589021405539,35.651735165396261,0.33545200000000003,2.3347769999999999,1742,1846.6,13.84200963933716,201.65,1.0314208698409776E-2,-6.2,39.799999999999997,"─"]
[null,"P.Acucar-Cbd","PCAR4",91.46,266.61200000000002,24384.33,11083,44634,49388,619,150,628,778,1193,619,1193,4.474667306797893,41.569771803219659,2.2001564125236848,20.439508398994132,8.8774999999999993E-2,8.2933000000000007E-2,2342,3066,8.3301793868232235,342,1.4025400738917164E-2,-1,18.899999999999999,0.37395166009031849]
[null,"Profarma","PFRM3",4.33,122.611,530.91,1021.21,4100.71,4271.13,-112.72,-5.9,-4.3899999999999997,-11.94,-9.73,-112.72,-9.73,-7.9356664573325394E-2,8.3288611951619345,0.51987899648456248,"─",-1.3049E-2,0.39840000000000003,20.2,88.6,10.584198645598194,"─","─",1.2,-39.299999999999997,"─"]
[null,"RaiaDrogasil","RADL3",65.3,329.339,21505.86,3499.86,13212.51,14801.45,511.16,120.95,257.41000000000003,385.36,502.45,511.16,502.45,1.5256316439899313,10.626922411254057,6.1447705622510611,42.801943875012441,0.156694,0.17018999999999998,1130.7,1137.3,19.438531609953397,173.62,8.0731484348916995E-3,0.1,-28,"─"]
["Construção","Azevedo","AZEV4",0.99,27,71.819999999999993,-101.34,63.77,"─",-84.23,-12.02,-23.01,"─","─",-84.23,"─",-3.0855555555555556,"─","─","─","─",-0.25961000000000001,-70.900000000000006,"─",-1.5552773375594293,"─","─",-10,-6.6,0.33333333333333331]
[null,"Cr2","CRDE3",19.600000000000001,2.4220000000000002,47.47,167.02,11.49,5.28,-4.49,-7.07,-6.98,-9.98,-15.71,-4.49,-15.71,-6.4863748967795214,68.959537572254334,0.28422464375523893,"─",-0.11118399999999999,-0.167321,-7.4,-18.3,-1.0620765027322403,"─","─",-2.8,-33.799999999999997,"─"]
[null,"Cyrela Realt","CYRE3",16.27,384.22899999999998,6251.41,5148.55,2673.77,3146.16,-95,-51.28,-79.72,-200.47,-84.36,-95,-84.36,-0.21955656652673275,13.399691329910029,1.2142070738363226,"─",9.4700000000000003E-4,0.174563,83.4,113.8,63.428005272407731,430,6.8784482220810989E-2,-4.9000000000000004,33.200000000000003,"─"]
[null,"Direcional","DIRR3",8.67,146.994,1274.44,1282.69,751.86,1166.05,-143.78,-8.09,-11.87,-95.69,-77.5,-143.78,-77.5,-0.52723240404370242,8.7261384818427974,0.99356662950518038,"─",-4.6086000000000002E-2,9.9224999999999994E-2,-108.8,-10.7,-132.02691588785049,90,7.0619252377514832E-2,3.7,75.599999999999994,"─"]
[null,"Even","EVEN3",6,213.876,1283.25,1577.77,1583.95,1474.85,-378.66,-25.68,-56.05,-68.41,-160.71,-378.66,-160.71,-0.75141670874712452,7.3770315509921636,0.81333527700488661,"─",-7.0108000000000004E-2,0.41889000000000004,-346.2,-148.19999999999999,-13.767834008097168,"─","─",0.5,4.5,"─"]
[null,"Eztec","EZTC3",26.8,165.00200000000001,4422.05,2609.7199999999998,980.32,390.76,358.83,5.43,20.14,54,97.54,358.83,97.54,0.59114434976545738,15.816293135840775,1.6944551905951599,45.335796596268203,3.9837999999999998E-2,-0.15287599999999998,321.2,6,669.81900000000007,85.22,1.9271604798679346E-2,0.5,27,0.99998787893480068]
[null,"Gafisa","GFSA3",8.5399999999999991,39.784999999999997,339.76,491.32,608.82000000000005,960.89,-849.86,-55.92,-85.28,-122.51,-419.53,-849.86,-419.53,-10.544928993339198,12.349377906246074,0.69153280957420815,"─",-0.55474600000000007,1.525277,-832.1,-341.2,-3.2005070339976553,"─","─",-13,-58.3,"─"]
[null,"Helbor","HBOR3",1.33,452.12599999999998,601.33000000000004,823.34,518.14,633.6,-309.12,-67.849999999999994,-166.11,-295.37,-340.93,-309.12,-340.93,-0.7540597090191673,1.8210410372329839,0.73035147083829277,"─",-0.18989999999999999,1.3910689999999999,-244,-305.39999999999998,-7.2028323510150623,"─","─",-5.7,-32.1,"─"]
[null,"JHSF Part","JHSF3",2.4500000000000002,526.26599999999996,1289.3499999999999,2227.84,355.89,485.69,-22.65,-10.94,-3.72,114.86,182.33,-22.65,182.33,0.34645977509472403,4.2332964698460476,0.57874519714162598,7.0715279986837043,9.0996000000000007E-2,0.42214499999999999,203.8,342.1,6.566670564162524,"─","─",7,40,"─"]
[null,"MRV","MRVE3",13.99,441.01100000000002,6169.74,4630.45,4759.8900000000003,5419,653.4,159.66,325.74,499.8,690.31,653.4,690.31,1.5652897546773208,10.499624725913865,1.3324285738967057,8.9376423490895398,0.13077800000000001,0.42427500000000001,715.7,805.6,10.225801886792452,455.63,7.3849141130744575E-2,2.9,20.100000000000001,"─"]
[null,"PDG Realt","PDGR3",7.3,8.0670000000000002,58.89,-3963.66,458.25,213.46,173.22,-260.31,-600.12,-708.98,-838.91,173.22,-838.91,-103.99281021445394,"─","─","─","─",-0.36731400000000003,-1745.7,-359.1,-4.2549568365357837,"─","─","─",-67.8,"─"]
[null,"Rossi Resid","RSID3",4.6900000000000004,16.818999999999999,78.88,-237.45,326.02999999999997,148.72,-338.89,-142.85,-242.5,-400.8,-614.04999999999995,-338.89,-614.04999999999995,-36.50930495273203,"─","─","─",-1.6409659999999999,-6.2562890000000007,-418,-427.4,-3.7753954141319603,"─","─",-5.8,-34.799999999999997,"─"]
[null,"Tecnisa","TCSA3",1.31,331.19200000000001,433.86,772.01,307.99,175.93,-520.65,-53.67,-139.5,-212.87,-277.05,-520.65,-277.05,-0.83652382907799705,2.3310043720862823,0.56198950790792868,"─",-0.26585000000000003,0.73887200000000008,-464.4,-209,-4.8422631578947373,"─","─",2.2999999999999998,-36.4,"─"]
[null,"Tenda","TEND3",16.88,48.393000000000001,816.87,1197.67,1357.9,1681.25,106.69,36.270000000000003,87.86,152.29,200.29,106.69,200.29,4.1388217304155557,24.748827309734882,0.68205251864035987,4.0784554396125614,0.173016,-0.26007200000000003,141.9,243.5,2.0690020533880906,24.99,3.0592383120937233E-2,0.8,71.7,"─"]
[null,"Trisul","TRIS3",4.7,146.11799999999999,686.75,560.76,441.68,545.25,34.99,12.89,30.29,51.39,71.95,34.99,71.95,0.49241024377557868,3.8377201987434812,1.2246854269206078,9.5448867268936759,0.140541,0.29569299999999998,61.1,102.7,8.4158812074001954,"─","─",-0.8,136.9,0.9998768118917587]
[null,"Viver","VIVR3",0.37,463.08499999999998,171.34,46.11,5.94,85.03,-120.63,-18.66,-46.1,-118.09,-197.22,-120.63,-197.22,-0.4258829372577389,9.9571352991351489E-2,3.7159282151377138,"─","─",5.650525,-94.7,-81.900000000000006,-5.2734676434676437,"─","─","─",-76.7,0.96181046676096182]
["Eletroeletrônicos","IGB S/A","IGBR3",2.2599999999999998,12.505000000000001,28.26,-828.34,4.5199999999999996,"─",44,-39.090000000000003,-47.26,-61.22,"─",44,"─",3.9488204718112754,"─","─",0.57232280275415148,"─",-1.0694840000000001,"─","─","─","─","─",-3,96.5,0.99960015993602558]
[null,"Whirlpool","WHRL4",4.72,1502.7860000000001,6763.97,2189.91,9482.8700000000008,6193.96,435.86,75.489999999999995,94.13,164.61,180.6,435.86,180.6,0.12017679163899583,1.4572334317727207,3.2390143521879895,39.275470210409743,7.3301000000000005E-2,-0.23127199999999998,594.70000000000005,408.5,15.317990208078337,210.01,3.1048334040511709E-2,-3.3,-2.4,0.68452860220949618]
["Energia Elétrica","AES Tiete E","TIET11",11.08,1967.385,4378.93,1523.47,1728.13,1923.53,298.27999999999997,54.76,147.72,183.09,287.95999999999998,298.27999999999997,287.95999999999998,0.14636687786071359,0.77436292337290369,14.308536301994787,75.700186831504368,0.184865,2.0308609999999998,842.2,1011.2,7.3901246044303797,270.06,6.1672600384112097E-2,-4.8,-6.4,0.39402557201564514]
[null,"Alupar","ALUP11",23.22,879.11099999999999,6840.79,4328.05,1538.19,1882.91,330.89,60.34,144.96,252.69,386.75,330.89,386.75,0.43993306874786003,4.923212199597093,4.7164329016531692,52.780756095669034,0.133907,0.44845799999999997,1170.2,"─","─",210.99,3.0842928959959305E-2,1.6,31,0.67909513133153832]
[null,"Ceee-Gt","EEEL4",250,9.6809999999999992,2277.44,2372.58,1017.23,1023.43,395.08,54.19,41.63,104.72,173.39,395.08,173.39,17.910339840925523,245.07592190889372,1.0200920516905647,13.958417440452161,7.4162999999999993E-2,0.12475199999999999,408.7,329.5,7.8162336874051599,"─","─","─",141.30000000000001,0.98130358434046083]
[null,"Celesc","CLSC4",53.43,38.570999999999998,2060.85,1800.86,7091.24,7664.54,66.489999999999995,70.989999999999995,140.21,182.29,165.03,66.489999999999995,165.03,4.2786030955899514,46.689481734982238,1.1443690958764148,12.487720596255224,8.9581999999999995E-2,0.400922,523.20000000000005,"─","─",15.31,7.4289734818157559E-3,-2.5,100.6,0.40185631692203988]
[null,"Celpa","CELP5",6.52,2209.0740000000001,5316.86,3006.08,5150.97,5491.54,613.53,0.43,49.63,183.41,455.39,613.53,455.39,0.20614519930070246,1.3607873706358411,4.7913437034277191,31.628192274753506,0.17632300000000001,0.70792299999999997,940.7,"─","─",132.56,2.4932008742001861E-2,-6.3,186.8,0.9979747170081219]
[null,"Cemig","CMIG4",13.9,1458.191,21634.17,14968.53,21711.69,"─",1000.95,464.45,453.41,697.73,"─",1000.95,"─",0.89284599891235106,10.265136734488143,1.3540978907080388,15.568194310029646,9.8039000000000001E-2,0.89021499999999998,3492.2,"─",8.1141873796096444,270.64999999999998,1.251030198986141E-2,-3.5,117.4,0.33438692187786101]
[null,"Cesp","CESP6",24.14,327.50299999999999,7715.17,7102.07,1476.62,1634.11,-168.53,-3.73,337.26,235.18,294.43,-168.53,294.43,0.89901466551451448,21.685511277759289,1.1131856515072365,26.851619807764152,4.1384999999999998E-2,-2.7492000000000003E-2,197.3,613.70000000000005,12.25341372005866,25.57,3.3142497184119081E-3,0.2,83.3,0.33343206016433441]
[null,"Coelce","COCE5",52.3,77.855000000000004,3720.94,2862.64,4594.42,5102.24,435.78,85.39,166.43,235.7,364.52,435.78,364.52,4.6820371202877142,36.768865198124715,1.4223990791716739,11.170351421046856,0.141127,0.60243099999999994,808,741.3,7.345854579792257,84.96,2.2832940063532332E-2,-4.9000000000000004,-2.6,0.61781516922484103]
[null,"Copel","CPLE6",36.4,273.65499999999997,9337.42,16032.93,14024.57,14934.78,1033.6300000000001,332.28,679.49,1034.27,1407.06,1033.6300000000001,1407.06,5.1417295499808153,58.588112769728312,0.62128643984599186,7.079329950393018,9.3097999999999986E-2,0.58103799999999994,2873,3143.2,5.990514125731738,264.73,2.835151465822465E-2,1.8,58.4,0.52986424512616259]
[null,"CPFL Energia","CPFE3",30.48,1017.915,31026.04,10262.75,26744.91,28136.63,1179.75,443.78,899.5,1453.23,2058.04,1179.75,2058.04,2.0218191106330097,10.082128664967115,3.0231710993642054,15.075532642708596,0.19362799999999999,1.475007,4863.3,5636.7,8.7837541469299421,279.10000000000002,8.995669444118554E-3,-0.7,59.3,0.99998526399552023]
[null,"CPFL Renov","CPRE3",15.97,521.32500000000005,8325.5499999999993,4147.79,1959.08,1936.32,11.48,-74.430000000000007,-113.66,5.0999999999999996,109.26,11.48,109.26,0.20958135520069054,7.9562461036781267,2.0072280057572831,76.199526359143334,2.8704E-2,1.083755,1221.5999999999999,1208.8,10.698856717405691,3.62,4.3480610890571798E-4,1.7,19.7,0.96638373375533493]
[null,"Elektro","EKTR4",19,193.75899999999999,3607.92,2293.83,5811.5,6249.36,374.43,72.44,145.72,233.59,414.33,374.43,414.33,2.1383780882436429,11.838572659850639,1.6049232070380106,8.8852388192986265,0.20407399999999998,1.3231970000000002,873,928.5,7.1546623586429732,"─","─","─",-13.7,0.47430054861967708]
[null,"Eletrobras","ELET6",37.86,1352.634,49940.37,55542.91,37876.019999999997,24975.75,-1763.81,31.84,2851.4,1230.24,13262.38,-1763.81,13262.38,9.8048548239952567,41.062778253393013,0.9220028846165963,3.8613524299560109,0.31220599999999998,0.84389399999999992,6744.2,19990.400000000001,4.8626324135585079,1.58,3.1637731158179244E-5,-2.8,66.8,0.80369116849051547]
[null,"Eletropar","LIPR3",60,11.763999999999999,705.84,187.43,"─","─",39.22,-4.5599999999999996,0.09,7.32,13.18,39.22,13.18,1.1203672220333221,15.932505950357022,3.765885930747479,53.553869499241273,6.5540000000000001E-2,-0.55870399999999998,44.6,9.1,66.057252747252761,87.38,0.12379576107899806,"─",28.9,"─"]
[null,"Emae","EMAE4",23.19,36.947000000000003,856.8,868.86,209.51,316.42,119.15,15.94,32.31,38.590000000000003,101.52,119.15,101.52,2.7477197066067607,23.516388340054672,0.98612081347973213,8.4397254728132403,0.12382,-0.17573699999999998,115.4,6.7,105.09104477611939,34.29,4.0021008403361348E-2,3.3,186.2,0.3978672152001515]
[null,"Energias BR","ENBR3",16.98,605.64599999999996,10283.870000000001,8523.7099999999991,12373.38,13834.22,611.86,214.12,441.79,748.73,1272.83,611.86,1272.83,2.1016072094920135,14.073749351931657,1.2065015210512793,8.0795307150208586,0.15654099999999999,0.52518500000000001,2170.3000000000002,2773.2,5.540463003028993,356,3.4617318188580756E-2,-1.8,32.299999999999997,"─"]
[null,"Energisa","ENGI11",40.549999999999997,1814.5619999999999,18303.71,5388.14,13637.15,15787.58,558.61,131.04,232.2,474.68,1148.43,558.61,1148.43,0.63289653370896126,2.9693887560744692,13.656009142301421,64.070504166557811,0.24656,1.8938929999999998,2052.6,3817.6,7.7947095033528919,269.39,1.4717781258553594E-2,1,55.8,0.41662946760705893]
[null,"Eneva","ENEV3",18.5,314.99,5827.32,6298.04,2721.77,3129.11,95.5,36.71,242.76,418.44,887.87,95.5,887.87,2.8187244039493318,19.994412521032412,0.92525849311849406,6.5632525031817721,0.16522200000000001,0.60543199999999997,1124.5999999999999,1563,6.1623678822776702,"─","─",-1,33.1,"─"]
[null,"Engie Brasil","EGIE3",42.71,815.928,34848.269999999997,6316.19,7009.96,8794.7900000000009,2003.41,489.04,1078.01,1553.08,2314.36,2003.41,2314.36,2.836475767469679,7.7411119608592909,5.5172952175282886,15.057417549560137,0.33877099999999999,1.155661,3499.2,4327.3,9.7411115476162955,1989.97,5.7103839014103146E-2,3.8,68.5,0.99996568324656099]
[null,"Equatorial","EQTL3",80,201.102,16088.18,5596.03,9071.42,11252.63,997.26,64.58,185.68,433.71,917.94,997.26,917.94,4.5645493331742104,27.826824198665353,2.8749238299294322,17.526374272828289,0.20199,1.036521,1797,"─","─","─","─",-2.6,24,0.98855307257013858]
[null,"Ger Paranap","GEPA4",40.5,94.433000000000007,3667.15,1635.42,1453.35,1318.86,243.88,85.67,134.38,127.26,255.91,243.88,255.91,2.7099636779515635,17.318310336429001,2.3385653226694063,14.94484975186589,0.15109899999999998,0.32586700000000002,644.5,705.4,5.9541820243833286,307.43,8.3833494675701836E-2,1.4,10.8,0.33356983257971257]
[null,"Light S/A","LIGT3",20.55,203.934,4190.84,3389.49,11314.56,11970.55,124.22,92.75,67.3,73.430000000000007,165.78,124.22,165.78,0.81291005913677961,16.620524287269411,1.2364230901994104,25.279549402823019,4.8297999999999994E-2,2.4619089999999999,1694.1,1507.1,8.317604007696902,29.5,7.0391616000610854E-3,3.5,24.1,0.99983327939431388]
[null,"Rede Energia","REDE4","─",2057.875,15434.06,3258.2,8977.15,10069.540000000001,111.23,117.14,192.81,343.01,399.56,111.23,399.56,0.19416145295511147,1.5832837271457205,"─","─",0.13966799999999999,1.3014840000000001,1316.7,1793,11.766193530395984,26.46,1.7143901215882276E-3,"─","─","─"]
[null,"Renova","RNEW11",33.630000000000003,41.72,470.3,-76.489999999999995,734.1,709.8,-1139.54,-120.54,-245.69,-486.96,-856.3,-1139.54,-856.3,-20.524928092042185,"─","─","─",-1.098087,-5.0144330000000004,-776.1,-522.70000000000005,-1.6335354888081115,"─","─",90.1,-44.5,0.79098753595397897]
[null,"Taesa","TAEE11",24.8,1033.4970000000001,8931.1,4572.05,1077.06,1635.24,648.29,217.28,476.53,744.25,1071.31,648.29,1071.31,1.036587430829504,4.4238638331799702,5.6059591649260181,23.924658222176589,0.246416,0.71720200000000001,930.2,1436.3,8.5011390378054728,960.2,0.10751195261501943,-0.6,32.5,0.57155463441113041]
[null,"Tran Paulist","TRPL4",77.14,164.721,13109.59,11068.65,2701.19,3184.65,1365.51,236.95,481.73,1173.53,1881.67,1365.51,1881.67,11.423376497228647,67.196350192143072,1.1479790164112156,6.7528195379636173,0.16922399999999999,0.20508099999999999,2056.9,2468.1,6.2505198330699727,2064.2600000000002,0.15746182756287574,-0.1,38.1,0.39157120221465386]
["Finanças e Seguros","Abc Brasil","ABCB4",19.05,208.61799999999999,3974.18,3665.51,2520.92,3254.38,418.73,108.55,220.2,336.31,418.09,418.73,418.09,2.0040936064960837,17.570439751124066,1.0842073545018291,9.5055440216221392,"─","─","─","─","─",220.45,5.5470562480813654E-2,4.2,25.2,0.51098179447602798]
[null,"Amazonia","BAZA3",27.3,29.646000000000001,809.33,1938.61,1421.05,1303.19,64.510000000000005,-56.99,-26.21,-13.5,109.08,64.510000000000005,109.08,3.6794171220400727,65.391958442960259,0.41748252613986314,7.4196534653465349,5.7857000000000006E-2,"─","─","─","─",19.05,2.3537988212472046E-2,4.2,12,0.9984483572826014]
[null,"B3","B3SA3",32.119999999999997,2044.2159999999999,65660.210000000006,25032.97,3673.6,4831.92,1296.24,314.72000000000003,1039.1600000000001,1504.52,2087.44,1296.24,2087.44,1.021144536585175,12.245755830107974,2.622949570905889,31.454900701337518,8.5905000000000009E-2,-9.3153E-2,2199.8000000000002,3345.2,18.930783211766116,1528.86,2.3284421417476425E-2,-1.5,46.2,"─"]
[null,"Banco Inter","BIDI4",52.91,101.291,5359.3,948.78,545.80999999999995,646.63,48.16,11.17,28.42,46.75,69.84,48.16,69.84,0.68949857341718424,9.3668736610360241,5.6486296190897782,76.736924541809842,"─","─","─","─","─",21.18,3.9520086578471066E-3,38.9,"─",0.50152530827023134]
[null,"Banco Pan","BPAN4",3.26,1141.806,3722.29,4095.92,7780.35,7099.37,212.61,56.55,98.76,147.88999999999999,221.52,212.61,221.52,0.19400843926201125,3.5872293541985241,0.90877936092501799,16.803392741061753,6.2295999999999997E-2,"─","─","─","─","─","─",8.6999999999999993,80.099999999999994,0.57592971135201598]
[null,"Banestes","BEES3",4.92,315.91199999999998,1565.28,1492.01,2701.41,2193.7199999999998,175.22,23.36,81.2,136.31,181.06,175.22,181.06,0.57313429056192866,4.7228658613791188,1.0417403636704847,8.5843755661106815,0.12993399999999999,"─","─","─","─",77.64,4.9601349279362161E-2,1,47.6,0.73248246347084001]
[null,"Banrisul","BRSR6",24.19,408.97399999999999,10020.69,7278.9,9978.49,9551.7800000000007,1053.04,243.96,505.92,796.14,1048.6300000000001,1053.04,1048.6300000000001,2.5640505264393338,17.79795292610288,1.3591450713706743,9.4342914660080286,0.14916600000000002,"─","─","─","─",381.3,3.8051271918400825E-2,-2,85.5,0.5014988727889792]
[null,"BBSeguridade","BBSE3",26.52,1996.597,52949.75,6830.39,"─","─",4049.25,886.5,1948.89,2822.67,3539.55,4049.25,3539.55,1.7727914045748843,3.4210158584832095,7.7520833275991547,14.959458812560918,0.39777099999999999,"─","─","─","─",3485.56,6.582769512603931E-2,-2.9,6.8,"─"]
[null,"Bradesco","BBDC4",42.94,6693.5810000000001,270348.51,121120.87,148262.13,125611.76,14657.76,4466.72,8994.51,14004.19,19084.95,14657.76,19084.95,2.8512316501436228,18.095077956029812,2.3730210007573427,15.060158299602564,0.17338899999999999,"─","─","─","─",6483.2,2.398089784182646E-2,-0.7,44.5,0.50195851816837656]
[null,"Brasil","BBAS3",48.72,2785.5309999999999,135711.06,102252.88,142438.85999999999,134487.85999999999,11010.78,2748.81,5883.82,9059.23,12862.03,11010.78,12862.03,4.6174427784146008,36.70857728741845,1.3272102489435993,10.551294804941366,0.14442199999999999,"─","─","─","─",4206.5200000000004,3.0996147255794779E-2,-3.4,62,"─"]
[null,"Indusval","IDVL4",6.85,108.19799999999999,1081.8399999999999,145.52000000000001,319.49,186.24,-223.51,-69.13,-120.94,-179.76,-125.06,-223.51,-125.06,-1.1558439157840257,1.3449416809922552,5.0931576415612962,"─",-0.461729,"─","─","─","─","─","─",143,1.6,"─"]
[null,"Irbbrasil Re","IRBR3",91.25,310.41500000000002,28325.41,4000.78,"─","─",925.05,254.01,541.34,845.86,1218.8,925.05,1218.8,3.9263566515793369,12.888487991881835,7.0799615949889771,23.240374753856255,0.340333,"─","─","─","─",684.26,2.4157108405491748E-2,5.2,189,"─"]
[null,"ItauUnibanco","ITUB4",34.43,9720.5210000000006,311968.57,131756.57,147494.99,141582.10999999999,23964.55,6280.32,12524.41,18771.57,24977.42,23964.55,24977.42,2.5695556853382651,13.554476143819864,2.5401202993520551,13.399203681965552,0.18209,"─","─","─","─",20092.75,6.4406327855399015E-2,-2.2000000000000002,36.1,0.51008582770409117]
[null,"Merc Brasil","BMEB4",7.4,52.415999999999997,392.77,800.1,2823.44,2353.67,26.24,19.68,27.52,39.39,53.4,26.24,53.4,1.0187728937728937,15.264423076923078,0.4847874015748031,7.2636404494382028,7.1506E-2,"─","─","─","─","─","─",-0.1,80,0.62194749694749696]
[null,"Merc Invest","BMIN4",18.46,4.8250000000000002,93.39,119.04,19.09,14.63,-12.93,1.1200000000000001,2.4900000000000002,3.24,4.13,-12.93,4.13,0.8559585492227979,24.671502590673576,0.74823168682795704,21.566464891041164,7.3479000000000003E-2,"─","─","─","─",0.7,7.4954491915622656E-3,18.7,15.9,0.84974093264248696]
[null,"Pine","PINE4",2.34,121.16800000000001,283.52999999999997,868.74,731.4,605.70000000000005,-262.83,5.2,10.46,15.3,-59.71,-262.83,-59.71,-0.49278687442228969,7.1697147761785285,0.32637281580219629,"─",-6.5723000000000004E-2,"─","─","─","─","─","─",-14.9,-33.1,0.53809586689555]
[null,"Porto Seguro","PSSA3",53.83,323.29300000000001,17402.86,7643.24,16894.099999999999,17821.96,1100.8699999999999,276.12,609.21,925.57,1310.6199999999999,1100.8699999999999,1310.6199999999999,4.0539696188906031,23.64183573414828,2.2768959485767817,13.278343219239751,0.16969400000000001,-1.414477,628.29999999999995,1493.1,4.4142984394883138,1240.3499999999999,7.1272767809429011E-2,-3.9,61.5,"─"]
[null,"Santander BR","SANB11",43.97,7471.8969999999999,163053.46,65233.74,76310.78,77380.98,7996.58,2819.73,5791.95,8830.6299999999992,12166.15,7996.58,12166.15,1.6282545115383684,8.7305459376648251,5.0363402602702223,27.004377809742603,0.198157,"─","─","─","─",6042.34,3.7057416628877425E-2,-2.2000000000000002,49.4,0.51107503221738737]
[null,"Sul America","SULA11",29.8,1160.731,12069.68,6286.11,17762.2,19831.21,773.25,141.41999999999999,276.81,511.38,904.96,773.25,904.96,0.77964661924252909,5.4156475531367727,5.5025737379714963,38.222444969943425,0.16045999999999999,-2.247357,491.4,814.5,-2.5299054634745244,184.92,1.5321035851820429E-2,-1.3,67.7,0.51062649313234509]
[null,"Tarpon Inv","TRPN3",1.0900000000000001,45.143000000000001,49.21,58.62,47.09,126.51,9.43,-3.55,0.31,1.75,56.18,9.43,56.18,1.2444897326274285,1.2985401944930552,0.83940412828386235,0.87586098255606981,1.06446,-1.72323,14.4,81.900000000000006,-0.63252747252747243,34.33,0.69762243446453964,-2.7,-24.2,"─"]
[null,"Wiz S.A","WIZS3",8.5,159.90700000000001,1359.21,168.97,529.73,585.01,159.41,30.57,77.989999999999995,129.15,177.73,159.41,177.73,1.1114585352736277,1.0566766933279967,8.0440877078771393,7.6476087323468187,1.1035410000000001,-0.29978899999999997,268,"─","─","─","─",-5.5,-23.9,0.99995622455552291]
["Máquinas Industriais","Bardella","BDLL4",13.9,1.6,22.24,126.62,136.63999999999999,"─",-97.76,-31.62,-61.84,-85.35,"─",-97.76,"─",-72.262500000000003,79.137500000000003,0.17564365818985941,"─",-0.47607300000000002,1.6460900000000001,-47.7,"─",-2.9878626943005182,"─","─",-2.7,-53.3,0.37499999999999994]
[null,"Inds Romi","ROMI3",10.96,62.857999999999997,688.92,695.98,672.87,743.46,37.659999999999997,1.8,47.2,63.09,84,37.659999999999997,84,1.3363454134716346,11.072258105571288,0.98986131785396136,8.2014723809523815,0.13092499999999999,0.30486099999999999,81.5,79.3,11.369382093316521,27.3,3.9627242640654939E-2,0.6,54.9,"─"]
[null,"Metalfrio","FRIO3",47.62,4.1070000000000002,195.56,37.76,985.75,1196.9000000000001,-23.92,-13.91,-33.71,-26.42,-18.47,-23.92,-18.47,-4.4971999026053071,9.1940589237886527,5.1794316737288133,"─",-5.5087000000000004E-2,3.8220290000000001,101.5,117.8,4.4973259762309006,"─","─",-19.3,13.4,0.99829559289018732]
[null,"Weg","WEGE3",18,2097.165,37748.959999999999,7714.27,9523.83,11970.09,1142.1500000000001,285,621.61,1003.04,1338.32,1142.1500000000001,1338.32,0.63815674970734304,3.678427782267967,4.8933949680267865,28.206236176699143,0.19641800000000001,3.0844E-2,1466.3,1824.1,20.827359245655394,604.15,1.6004414426251744E-2,-2,-0.5,"─"]
["Mineração","Eternit","ETER3",2.0699999999999998,29.823,61.73,12.23,665.74,536.91,-276.39,-11.14,-45.91,-89.02,-149.37,-276.39,-149.37,-5.008550447641082,0.41008617509975526,5.047719542109566,"─",-0.87600100000000003,9.9382859999999997,-192.9,-92.3,-1.9878006500541712,"─","─",-24.5,-62.5,0.99922878315394159]
[null,"MMX Miner","MMXM3",2.0699999999999998,6.4880000000000004,13.43,-611.64,0.45,2.7,-28.1,-7.96,-45.32,-60.6,-110.11,-28.1,-110.11,-16.971331689272503,"─","─","─","─",-0.28126499999999999,-14.5,-45.2,-4.1104424778761057,"─","─",-1.9,-30.1,"─"]
[null,"Portobello","PTBL3",4.91,158.489,778.18,362.11,1023.94,1054.19,64.14,6.99,103.4,105.97,134.28,64.14,134.28,0.84725122879190351,2.2847642423133467,2.149018226505758,5.7952114238903789,0.47117100000000001,1.416693,189,288,4.4833090277777776,29.7,3.8165977023310801E-2,-5.6,-6.8,"─"]
[null,"Vale","VALE3",50.93,5126.259,261080.37,170402.63,108532.02,134483.13,17627.2,5112.1099999999997,5418.21,11171.25,25656.53,17627.2,25656.53,5.0049226931374315,33.241127691753384,1.5321381534428193,10.17598135328511,0.17402300000000001,0.21600000000000003,46376,55414.7,5.3883856991015024,12415.27,4.7553441110873257E-2,8.1,31.6,"─"]
["Outros","Aliansce","ALSC3",19.97,202.66800000000001,4047.27,2553.98,507.69,508.43,94.54,6.4,31.43,52.71,113.96,94.54,113.96,0.56229893224386673,12.601792093473069,1.5846952442853899,35.514917163917168,4.7744000000000002E-2,-0.21970700000000001,388.8,394.4,8.8101597363083162,23.64,5.840974286370813E-3,-0.6,11.5,"─"]
[null,"Alliar","AALR3",14.52,118.062,1714.25,1256.95,1077.8800000000001,1076.92,6.65,7.1,12.37,23.59,40.090000000000003,6.65,40.090000000000003,0.33956734597076116,10.646524707357152,1.3638253232029913,42.76029533549513,4.0594999999999999E-2,0.40958799999999995,149.4,219.9,10.216443838108232,"─","─",-8.1,-1.9,"─"]
[null,"Anima","ANIM3",18.7,77.632000000000005,1451.72,665.25,1045.67,1102.46,85.15,39.94,36.96,20.309999999999999,2.25,85.15,2.25,2.8982893652102226E-2,8.5692755564715579,2.1822148064637354,645.20817777777779,3.2320000000000001E-3,0.31772500000000004,137.5,93,17.882645161290323,20.21,1.3921417353208608E-2,-0.1,-33.200000000000003,"─"]
[null,"Bahema","BAHI3",132.5,1.1719999999999999,155.29,52.57,37.64,44.11,-4.5599999999999996,-1.62,-0.03,-0.11,-2.11,-4.5599999999999996,-2.11,-1.8003412969283277,44.854948805460751,2.9539661403842494,"─",-4.3601000000000001E-2,-0.28054200000000001,-1.3,-1.4,-99.687142857142845,"─","─",-1.1000000000000001,110.4,"─"]
[null,"Bk Brasil","BKBR3",22.11,227.07499999999999,5020.63,1716.96,1783.84,2348.33,3.82,8.81,17.38,44.41,128.04,3.82,128.04,0.56386656391060219,7.5612022459539805,2.9241381569751184,39.211404639175257,7.9172000000000006E-2,-0.18140899999999999,185,260,18.112146153846155,"─","─",0.1,27.1,0.97985247165033584]
[null,"BR Brokers","BBRK3",5.25,35.481000000000002,186.28,225,89.07,111.31,-106.16,-12.84,-24.24,-37.200000000000003,-76.709999999999994,-106.16,-76.709999999999994,-2.1620021983596853,6.3414221696119046,0.82789000000000001,"─",-0.270484,-0.22955600000000001,-103.8,-61.7,-2.180680713128039,"─","─",-24.7,-47,"─"]
[null,"BR Malls Par","BRML3",12.57,842.26199999999994,10587.23,10485.1,1265.24,1196.21,-796.28,126.53,194.12,286.35000000000002,1014.09,-796.28,1014.09,1.204007779052124,12.448739228411114,1.009740807431498,10.440131881785641,0.105336,0.169152,-899.5,"─","─","─","─",-5.6,"─","─"]
[null,"BR Propert","BRPR3",8.9,403.42700000000002,3590.5,5870.37,430.45,421.32,277.02,-11.58,-73.319999999999993,-110.43,13.71,277.02,13.71,3.3983843421486415E-2,14.55125710475501,0.61163100451930641,261.88915390226111,2.3319999999999999E-3,0.34438000000000002,487.3,520.5,10.782197886647454,65.790000000000006,1.8323353293413176E-2,1.6,-14.5,"─"]
[null,"Bradespar","BRAP4",31.9,348.03399999999999,10520.75,9959.84,"─","─",2328.38,-283.51,-902.45,-779.21,1190.5,2328.38,1190.5,3.4206428107598685,28.617433928869019,1.1147051157448311,9.3257325493490111,0.13519100000000001,-2.5095999999999997E-2,2609.8000000000002,1234.3,8.3211536903508065,719.42,6.8381056483615713E-2,10.7,17.5,0.35111512093646025]
[null,"Copasa","CSMG3",61.07,126.39400000000001,7718.88,6226.63,4326.3999999999996,4737.29,560.44000000000005,164.23,274.39,400.7,578.70000000000005,560.44000000000005,578.70000000000005,4.5785401205753438,49.263651755621311,1.2396563759208432,13.338312735441507,9.2675999999999994E-2,0.51853000000000005,1520.7,1490.9,7.3429317861694283,443.54,5.7461704288705097E-2,0.5,56.4,"─"]
[null,"Csu Cardsyst","CARD3",6.75,41.093000000000004,277.38,240.84,486.85,419.77,45.2,8.1,16.510000000000002,23.53,32.799999999999997,45.2,32.799999999999997,0.79818947265957696,5.8608522132723326,1.1517096412556056,8.4566387195121955,0.146505,0.10724399999999999,100.3,81.5,3.7203435582822082,16.079999999999998,5.7971014492753617E-2,-7,-28.5,"─"]
[null,"Cyre Com-Ccp","CCPR3",12.7,119.664,1519.73,1045.42,446.27,489.77,174.2,8.99,31.99,12.89,-0.89,174.2,-0.89,-7.4374916432678167E-3,8.7362949592191477,1.4537054963555316,"─",2.6459E-2,0.76144499999999993,523.1,256.89999999999998,11.175274425846634,120,7.8961394458226128E-2,2.8,58.3,"─"]
[null,"Duratex","DTEX3",10.97,689.46900000000005,7563.47,4633.7,3990.87,4949.3599999999997,184.88,30.79,197.32,573.59,431.57,184.88,431.57,0.62594547398070099,6.720679247362825,1.6322754882707127,17.525488171096235,9.1553999999999996E-2,0.36686300000000005,986.8,1546,5.9921300129366113,60.77,8.0346719164616238E-3,-7,27.7,"─"]
[null,"Estacio Part","ESTC3",26.6,300.113,7983.01,2591.41,3378.98,3619.38,424.59,197.36,434.25,628.57000000000005,644.87,424.59,644.87,2.1487573014164667,8.6347808991946362,3.0805645575188798,12.379248220571588,0.23219799999999999,-3.2099999999999994E-4,737.8,967.4,8.2511670456894777,500.84,6.2738240337917653E-2,-3.4,-13.2,"─"]
[null,"Eucatex","EUCA4",3.96,92.156000000000006,364.94,1262.97,1205.3599999999999,1262.33,41.94,1.72,-9.93,-7.14,28.97,41.94,28.97,0.31435826207734707,13.704696384391683,0.28895204161619042,12.597092164307906,2.3414000000000001E-2,0.32943399999999995,211.8,234,3.3375726495726492,"─","─",-5.9,1.7,0.33964147749468293]
[null,"Fleury","FLRY3",20.399999999999999,316.113,6448.71,1749.96,2383.0100000000002,2664.46,320.62,96.43,183.06,273.39999999999998,331.59,320.62,331.59,1.0489603401315353,5.5358685027189649,3.6850586299115404,19.447827739075361,0.19430399999999998,0.25731700000000002,619.6,692.5,9.9624606498194943,303.20999999999998,4.7018706066794751E-2,5.6,-25.7,0.99995887546541906]
[null,"Generalshopp","GSHP3",1.0900000000000001,67.512,73.59,38.68,252.29,215.63,251.46,-64.650000000000006,-287.87,-349.14,-357.05,251.46,-357.05,-5.2886894181775093,0.57293518189358927,1.9024839710444676,"─",-0.29154199999999997,18.663443999999998,433.1,57,13.95698245614035,"─","─",12799.7,13567.8,"─"]
[null,"GPC Part","GPCP3",12.84,6.2679999999999998,80.48,161.22,483.88,735.14,81.16,9.0500000000000007,-3.33,1.23,6.8,81.16,6.8,1.0848755583918315,25.721123165283984,0.49920059545962037,11.835458823529413,4.1346999999999995E-2,0.88306600000000002,118.9,65.2,3.7758128834355826,"─","─",29.7,-21.4,0.94128908742820683]
[null,"Hapvida","HAPV3",30.76,671.95899999999995,20669.45,3602.54,3847.98,4575.8999999999996,648.77,213.65,363.35,553.27,787.47,648.77,787.47,1.1719018571073534,5.3612497191048867,5.7374682418515821,26.247931781528184,1.6701889999999999,-0.246224,824.4,913,21.666596933187293,822.27,3.9781900340841191E-2,-5.6,"─","─"]
[null,"Hoteis Othon","HOOT4",1.9,18.372,34.909999999999997,-226.26,117.45,78.540000000000006,-40.119999999999997,-15.75,-34.270000000000003,-55.57,-94.48,-40.119999999999997,-94.48,-5.1426083170041368,"─","─","─","─",-1.7260999999999999E-2,-3.9,-24,-1.6312916666666666,"─","─",-2.1,-29.4,0.57152188112344871]
[null,"Hypera","HYPE3",25.9,632.04700000000003,16370.01,8267.67,3638.46,3724.31,964.94,299.76,577.55999999999995,819.83,1129.5999999999999,964.94,1129.5999999999999,1.7872088626320508,13.080783549324654,1.9800037132589956,14.49187083923513,0.145986,-0.130939,1236.9000000000001,1318.7,11.592818685068629,633,3.8668272041373221E-2,-3.7,-23.8,"─"]
[null,"Ideiasnet","IDNT3",2.98,16.344000000000001,48.71,13.3,0.49,"─",18.84,-1.7,2.99,2.27,11.3,18.84,11.3,0.69138521781693585,0.81375428291727847,3.6620390977443611,4.3101876106194688,4.7052459999999998,-0.27032699999999998,23.2,9.6,4.6995833333333339,"─","─",-6.9,-71.3,0.9973078805677924]
[null,"Iguatemi","IGTA3",38.92,176.297,6861.47,2835.66,692.16,721.53,215.73,57.34,116.94,181.42,256.36,215.73,256.36,1.4541370528142852,16.084561847337163,2.4197115451076647,26.76501497893587,9.2753999999999989E-2,0.55824399999999996,540.6,558.5,15.13056042972247,120,1.7488963735176281E-2,-6.9,1.2,"─"]
[null,"Ihpardini","PARD3",20.3,130.16900000000001,2642.43,605.62,1117.04,1204.71,129.54,29.53,62.64,96.72,123.12,129.54,123.12,0.9458473215588965,4.6525670474536946,4.3631826888147689,21.46223765432099,0.22945299999999999,0.16231899999999999,234.7,226.1,12.122636001769129,42.48,1.6076111760765659E-2,6.4,-37.9,"─"]
[null,"Inepar","INEP4",12.6,7.4630000000000001,95.63,-1382.43,39.799999999999997,"─",-321.06,-56.35,-52.21,-99.18,"─",-321.06,"─",-36.170440841484655,"─","─","─","─",-0.44852300000000001,-127,"─",-5.5781917381137953,1.25,1.3071211962773189E-2,-17.8,342.1,0.42878199115637144]
[null,"Intermedica","GNDI3",32.799999999999997,528.476,17334,2340.0700000000002,5304.92,6135.22,238.17,60.26,111.54,205.69,334.07,238.17,334.07,0.63213845094195387,4.4279588855501482,7.4074761866098013,51.887367318226715,0.24725000000000003,-0.18528800000000001,616.1,744.8,22.69121240601504,"─","─",-0.8,"─","─"]
[null,"Itausa","ITSA4",11.98,8410.6980000000003,108504.93,55143,4969,5375,8403,2400,4447,6929,9436,8403,9436,1.1219045078066052,6.5562929497646927,1.8272520907458789,10.67827066977533,0.172708,1.0674999999999999E-2,9182,10752,10.149268043154761,6602,6.0845161597726488E-2,-3,40.799999999999997,0.34358622792067911]
[null,"Kroton","KROT3",10.6,1629.605,17273.82,15902.64,5557.75,6060.71,1882.32,475.42,942.76,1290.58,1403.75,1882.32,1403.75,0.86140506441745079,9.7585856695334137,1.0862229793292184,12.305476758682103,9.158899999999999E-2,0.31860299999999997,2111.1999999999998,1721.7,12.995089736887959,638.87,3.6984870746598029E-2,-3.4,-40.4,"─"]
[null,"Localiza","RENT3",33.06,717.18499999999995,23710.14,3094.5,6058.28,7895.8,505.68,176.01,317.91000000000003,477.76,659.21,505.68,659.21,0.91916311690846864,4.3147862824794165,7.6620249151720792,35.967500644711095,0.253471,1.6814310000000001,1240.2,1590.1,18.183341928180617,172.31,7.2673548110639584E-3,-4,52.3,0.93016446244692808]
[null,"Locamerica","LCAM3",38.99,146.74700000000001,5721.68,2565.5500000000002,1094.6099999999999,2917.2,60.6,18.25,66.22,126.93,189.2,60.6,189.2,1.2892938186129868,17.482810551493387,2.2301906140983414,30.241361152219881,0.39149500000000004,0.75214100000000006,361.3,840.7,9.101145474009753,75.8,1.3247857272689139E-2,-0.3,111.8,0.79660912999925038]
[null,"Lopes Brasil","LPSB3",4.8499999999999996,125.663,609.47,47.12,111.02,109.2,-63.37,-5.51,-19.47,-30.99,-46.67,-63.37,-46.67,-0.37139014666210424,0.37497115300446432,12.934328310696094,"─",-0.60600200000000004,-0.64600199999999997,-57.5,-16.2,-36.74679012345679,"─","─",-15.7,-13.2,"─"]
[null,"Mills","MILS3",4.8,173.30799999999999,831.88,750.31,291.27,304.19,-138.38,-30.43,-74.09,-106.67,-94.97,-138.38,-94.97,-0.54798393611373974,4.3293442887806677,1.1087129319881117,"─",-0.11218,7.8034999999999993E-2,-43.2,0.3,2968.1,"─","─",-11.6,16.5,"─"]
[null,"Mont Aranha","MOAR3",170,12.250999999999999,2082.71,1134.1600000000001,2.76,3.67,141.19,-9.65,-19.16,8.35,40.81,141.19,40.81,3.3311566402742638,92.576932495306522,1.8363105734640612,51.033325165400626,3.4019000000000001E-2,-0.30665500000000001,99.6,21,82.56280952380952,188.14,9.0334228001017897E-2,-2.9,29,"─"]
[null,"Movida","MOVI3",10.85,262.36799999999999,2846.69,1658.84,2467.98,2538.6,66.47,26.85,66.77,108.04,159.75,66.47,159.75,0.60887760702524696,6.3225698255884861,1.7160743652190689,17.819673239436622,0.124338,0.87638300000000002,326.8,481.7,8.9276956611999161,23.64,8.304381580010468E-3,-6.5,61.8,"─"]
[null,"Multiplan","MULT3",23.39,594.39700000000005,13902.95,5335.98,1156.3800000000001,1229.1400000000001,369.4,98.13,243.81,360.26,472.95,369.4,472.95,0.79568032813086198,8.9771314458181983,2.605509359105544,29.396227571624909,9.0489E-2,0.36582500000000001,818.1,939.2,16.887684199318567,301.07,2.1655116360196933E-2,-7.1,1.2,0.95087963095372285]
[null,"Multiplus","MPLU3",26.84,162.02099999999999,4348.6400000000003,250.28,2309.77,632.26,517.20000000000005,98.19,171.96,236.86,356.4,517.20000000000005,356.4,2.1997148517784733,1.5447380277865217,17.375114431836341,12.201581481481481,1.4865010000000001,-4.4181210000000002,610.4,444.5,7.2955613048368964,340.77,7.8362430553000462E-2,0.6,-17.600000000000001,"─"]
[null,"Odontoprev","ODPV3",16.399999999999999,530.14200000000005,8694.32,1027.46,1437.28,1591.84,502.92,81.97,142.31,207.35,284.79000000000002,502.92,284.79000000000002,0.53719569473839079,1.9380845132058957,8.4619632881085387,30.528911829769303,0.30787199999999998,-0.46674599999999999,584.1,397.5,20.661091823899369,86.72,9.9743280670598743E-3,-1,5.4,"─"]
[null,"Omega Ger","OMGE3",19.5,136.83799999999999,2668.35,1811.96,546.11,742.02,100.38,-16.420000000000002,-36.159999999999997,-11.85,41.89,100.38,41.89,0.30612841462166945,13.241643403148249,1.4726268791805559,63.698758653616608,2.7633999999999999E-2,1.0313030000000001,291.89999999999998,393.2,11.653031536113936,10.68,4.0024734386418575E-3,-2,12,0.86087198000555398]
[null,"Qualicorp","QUAL3",15.68,280.536,4398.8,2354.4899999999998,2075.29,1932.12,370.71,102.7,191.28,301,397.04,370.71,397.04,1.4152907291755783,8.3928265891008635,1.8682621204592078,11.078995768688293,0.16774799999999998,5.3594999999999997E-2,836.8,979.6,4.6192211106574117,354.87,8.0674274802218782E-2,1.2,-47.6,"─"]
[null,"Sabesp","SBSP3",42,683.51,28707.41,19551.689999999999,14608.23,16085.09,2519.31,580.42999999999995,762.32,1327.48,2835.07,2519.31,2835.07,4.1478105660487783,28.6048338722184,1.4682833044100025,10.125824053727067,0.16188400000000003,0.517787,5263.6,6569.2,5.9110721244595998,653.39,2.2760325644145537E-2,6.7,26,0.99998536963614282]
[null,"Sanepar","SAPR11",74.95,503.73500000000001,7967.41,5717.19,3869.4,4162.21,686.17,186.91,440.48,572.47,892.49,686.17,892.49,1.7717450643691623,11.349598499210893,6.6037578338309562,42.302925803090233,0.17320900000000003,0.42760399999999998,1383.5,1642,6.341110840438489,298.39999999999998,3.7452572416883274E-2,-2.8,37,0.33331017300763299]
[null,"Sansuy","SNSY5",74.5,0.193,14.37,-1045.26,385.41,423.16,-153.88999999999999,-36.35,-77.19,-114.22,-150.79,-153.88999999999999,-150.79,-781.29533678756468,"─","─","─","─",-7.4945999999999999E-2,-69.099999999999994,-67.599999999999994,-1.3808136094674557,"─","─",0.8,"─",0.5181347150259068]
[null,"Sao Carlos","SCAR3",33.799999999999997,56.042000000000002,1894.22,1400.28,552.41999999999996,369.22,119.23,14.69,14.22,17.62,15.65,119.23,15.65,0.27925484458085009,24.98626030477142,1.3527434513097381,121.03639616613417,1.2115000000000001E-2,0.688639,341.1,191.8,14.915886339937435,24.83,1.3108297874586901E-2,-1.5,-21.4,"─"]
[null,"Saraiva Livr","SLED4",1.95,26.542000000000002,51.28,120.91,1724.89,1445.42,-52.01,1.32,-36.340000000000003,-102.94,-301.73,-52.01,-301.73,-11.368020495817948,4.5554215959611177,0.42806136795963945,"─",-0.71495900000000001,0.6404510000000001,15.2,-167.2,-0.76986842105263154,"─","─",-9.3000000000000007,-52.1,0.36169090498078516]
[null,"Ser Educa","SEER3",20.36,128.72200000000001,2620.77,1470.54,1231.79,1262.49,197.48,58.22,131.24,168.17,201.28,197.48,201.28,1.5636798682431907,11.424154379204797,1.7821888013926859,13.020567965023847,0.13344,-0.41799500000000001,321.10000000000002,312,6.4297756410256417,58.53,2.2333131102691195E-2,7.3,-33.200000000000003,"─"]
[null,"Sierrabrasil","SSBR3",28.7,76.424000000000007,2193.36,2766.6,354.86,374.11,138.41999999999999,24.87,66.599999999999994,92.55,189.26,138.41999999999999,189.26,2.4764471893645972,36.200669946613623,0.79280300730138087,11.589183134312588,0.10036899999999999,0.124154,384.7,562.20000000000005,4.7641319815012446,34.770000000000003,1.5852390852390853E-2,-7.1,15.5,0.9996859625248613]
[null,"Smiles","SMLS3",47.7,124.008,5915.18,1014.23,1804.13,987.44,760.62,155.01,269.17,481.28,645.84,760.62,645.84,5.2080510934778408,8.1787465324817763,5.8321895428058719,9.1588963210702339,0.74088300000000007,-0.66583499999999995,663.4,759.3,6.900921901751615,462.7,7.8222471674572872E-2,-0.6,-33.6,0.99993548803303012]
[null,"Somos Educa","SEDU3",22.37,262.12900000000002,5863.82,390.94,1871.58,1866.94,11.39,113.07,65.23,-127.46,-399.47,11.39,-399.47,-1.5239443174925322,1.4914030877926516,14.999298434542386,"─",-0.46932899999999994,4.0748950000000006,324.60000000000002,-146,-51.152780821917808,"─","─",1.4,51.6,0.99988936744885148]
[null,"Technos","TECN3",2.44,77.298000000000002,188.61,465.69,340.08,305.7,-1.92,-15.02,-7.54,-11.26,14.37,-1.92,14.37,0.18590390437010013,6.0246060700147481,0.40500573342781676,13.125060542797495,3.0971000000000002E-2,6.2107999999999997E-2,9.3000000000000007,8.4,25.896785714285716,"─","─",-1.6,-31.3,"─"]
[null,"Terra Santa","TESA3",13.2,17.914000000000001,236.46,940.01,796.32,1119.01,7.35,38.01,18.760000000000002,31.44,42.26,7.35,42.26,2.3590487886569163,52.473484425588921,0.25155562174870483,5.5954756270705159,4.2606000000000005E-2,0.90646100000000007,85.6,172.3,6.3176900754497964,"─","─",0.8,-11.3,0.99921848833314708]
[null,"Time For Fun","SHOW3",6.78,67.286000000000001,456.2,329.17,652.9,598.38,44.35,4.01,7.62,20.67,8.3800000000000008,44.35,8.3800000000000008,0.12454299557114408,4.892102368992064,1.3859072211926968,54.439031026252984,3.2508000000000002E-2,-0.25469999999999998,75,37.4,9.92,21.07,4.6185883384480493E-2,-6.5,-4.8,"─"]
[null,"Trevisa","LUXM4",15,5.1959999999999997,77.94,105.11,102.29,129.77000000000001,3.89,-0.6,5.38,11.16,6.23,3.89,6.23,1.1989992301770593,20.229022324865284,0.74150889544286924,12.51043338683788,6.1619E-2,0.28428500000000001,28.8,31.7,3.4013249211356467,"─","─",-27.2,"─",0.44264819091608931]
[null,"Unicasa","UCAS3",2.93,66.085999999999999,193.63,171.27,157.94,149.31,-6.36,-0.37,-0.35,1.59,3.39,-6.36,3.39,5.1296795085192026E-2,2.591623036649215,1.1305656565656566,57.118578171091443,2.0218E-2,-0.225159,-4.0999999999999996,10.5,14.768380952380951,"─","─",2.4,15.4,"─"]
[null,"Valid","VLID3",19.28,70.405000000000001,1357.41,1071.9100000000001,1574.47,1734.31,27.69,19.72,33.200000000000003,56.98,100.04,27.69,100.04,1.4209218095305731,15.224913003337832,1.2663454954240561,13.568656537385047,0.10101800000000001,0.477076,206.7,269.8,6.9558191252779835,31.12,2.2926013511024673E-2,-2.1,10.3,"─"]
["Papel e Celulose","Klabin S/A","KLBN11",17.03,5263.2079999999996,19339.12,6292.24,8373.3799999999992,10016.459999999999,532.16999999999996,124.66,-829.98,-726.16,137.46,532.16999999999996,137.46,2.611715136471901E-2,1.1955142187046379,14.244916315970148,652.06192521460787,2.5824E-2,1.8977549999999999,3492.5,4657,6.8150285591582564,840,4.3435275234860737E-2,-5.6,2.5,0.37707041028969407]
[null,"Suzano Papel","SUZB5/SUZB3",46.55,1349.221,62806.26,12012.01,10520.79,13437.33,1807.43,813.13,-1036.43,-1144.21,318.33999999999997,1807.43,318.33999999999997,0.23594355557762589,8.9029225012062518,5.2286201518313753,197.29294951938178,2.7403E-2,0.85244900000000001,4660.7,6569,11.121594002131223,210.21,3.3469593636048381E-3,-2.2999999999999998,150.30000000000001,0.81958404145799679]
["Petróleo e Gás","Comgas","CGAS5",81.900000000000006,132.023,10274.64,2721.32,5537.86,6840.01,640.12,179.09,293.10000000000002,480.59,1339.43,640.12,1339.43,10.145429205517221,20.612469039485546,3.9733231299516412,8.072600807806305,0.664045,1.120384,1518.5,2186.3000000000002,6.094116543932671,756.77,7.3654162092297151E-2,1,48,0.78395431099126667]
[null,"Cosan","CSAN3",42.65,392.51600000000002,16740.810000000001,9928.7199999999993,7670.78,10299.1,1315.32,345.72,281.37,325.32,1652.32,1315.32,1652.32,4.2095608841423022,25.295070774185,1.6860992554931553,10.131698097220877,0.18487899999999999,0.66466199999999998,3463.3,3322.8,7.2231253761887562,446.3,2.6659402979903598E-2,-2.4,5.7,"─"]
[null,"Dommo","DMMO3",0.79,2700.3989999999999,2133.3200000000002,-376.35,426.48,538.27,-1952.74,70.23,269,-341.71,-670.98,-1952.74,-670.98,-0.2484743921176093,"─","─","─",-1.7098789999999999,0.417991,-798.3,-478.6,-4.1287275386544087,"─","─",-11.2,-24,"─"]
[null,"Pet Manguinh","RPMG3",2.56,67.685000000000002,173.27,-2465.0100000000002,694.51,"─",-236.03,-78.069999999999993,-67.91,-91.01,"─",-236.03,"─",-1.9964541626652876,"─","─","─","─",-1.6505000000000002E-2,-270.39999999999998,"─",-1.2297528735632184,"─","─",-12.9,-67.599999999999994,"─"]
[null,"Petrobras","PETR4",28.06,13044.200999999999,389016.77,277225,283695,349836,-446,6961,17033,23677,25779,-446,25779,1.9762804942978112,21.252739052395775,1.3203004060239876,14.198389389037587,9.9025000000000002E-2,0.94808899999999996,80251,108522,6.0618194467481246,2368,6.0871411790293772E-3,3.7,81.7,0.57056005193418902]
[null,"Petrobras BR","BRDT3",23.15,1165,26969.75,9686,84567,97770,1151,247,510,1588,3193,1151,3193,2.7407725321888412,8.3141630901287549,2.7844053272764815,8.4465236454744748,0.36177199999999998,0.25965299999999997,2574,2803,10.518997502675704,1034,3.833925045653E-2,-5.3,44.4,1]
[null,"Petrorio","PRIO3",18.899999999999999,123.80800000000001,2339.98,1006.6,533.91999999999996,848.92,50.85,2.69,73.25,144.71,204.88,50.85,204.88,1.6548203670199018,8.1303308348410432,2.3246286509040335,11.421179226864504,0.231987,-0.51479399999999997,166,247.2,7.3697006472491911,"─","─",25.2,131.1,"─"]
[null,"Qgep Part","QGEP3",15.3,261.47300000000001,4000.53,3199.59,501.73,797.2,357.38,159.08000000000001,244.25,299.89999999999998,425.22,357.38,425.22,1.6262482168330956,12.236789266960642,1.2503279795223763,9.4081578947368421,0.13672200000000001,-0.51269599999999993,407.9,573.70000000000005,4.1138487014118876,400,9.99867517553924E-2,15.7,63.4,"─"]
[null,"Ultrapar","UGPA3",47,543.01499999999999,25521.7,9448.11,80007.42,90697.98,1574.31,73.86,315.44,642.78,1150.42,1574.31,1150.42,2.1185786764638181,17.399353609016327,2.7012497737642764,22.184684723839986,0.116484,0.85857799999999995,4063.5,2697.1,12.582326202217198,789.38,3.0929757813938724E-2,-10.8,-34.9,"─"]
["Química","Biotoscana","GBIO33",8.44,105.958,894.28,729.24,817.55,820.96,16.93,15.96,35.909999999999997,45,63.46,16.93,63.46,0.59891655184129566,6.8823496102229189,1.2263253798475124,14.092113457295932,0.10696,0.15771399999999999,"─","─","─","─","─",-3.3,-59,"─"]
[null,"Bombril","BOBR4",2.27,54.064999999999998,122.73,-241.39,1096.72,1046.69,126.82,-15.75,-21.99,107.36,70.17,126.82,70.17,1.2978821788587811,"─","─",1.7490031352429813,"─",-1.1236550000000001,203,19.2,20.519166666666667,"─","─",-15,-54,0.36992509016924074]
[null,"Braskem","BRKM5",50.9,795.98400000000004,41482.15,6787.65,49260.59,57999.87,4082.99,1053.5899999999999,1600.84,2945.11,2866.68,4082.99,2866.68,3.6014291744557676,8.5273698968823481,5.9690151377870109,14.133278077776383,0.51090200000000008,2.9198050000000002,12287.9,11294.5,5.2009237239364294,1498.45,3.6122766057207739E-2,-6.4,23.8,0.56747371806468472]
[null,"Cristal","CRPG5",39.799999999999997,23.215,921.78,509.05,568.23,636.04999999999995,79,23.98,60.34,109.99,155.66999999999999,79,155.66999999999999,6.7055782898987717,21.927632995907818,1.815061388861605,5.935356844607182,0.34552500000000003,-0.115047,112.9,172.1,5.0157757117954676,108.19,0.11737073922194016,8.1999999999999993,209.7,0.34891234115873354]
[null,"Fer Heringer","FHER3",2.21,53.856999999999999,119.02,-621.84,4789.72,3688.72,-125.6,-46.75,-324.07,-441.45,-779.61,-125.6,-779.61,-14.475555638078616,"─","─","─",-4.7652549999999998,-1.579545,91.9,-150.4,-7.3220611702127663,"─","─",-2.6,-13.3,"─"]
[null,"Ourofino S/A","OFSA3",31.25,53.948999999999998,1685.91,455.94,505.28,589.22,38.11,3.62,27.87,49.75,68.849999999999994,38.11,68.849999999999994,1.2762053050102875,8.4513151309570151,3.6976493617581259,24.48665577342048,0.16977499999999998,0.48763599999999996,91.2,123.5,15.451465587044535,"─","─",-3.5,31.3,0.99909173478655766]
[null,"Unipar","UNIP6",38.15,87.155000000000001,3348.19,1347.52,3019.59,3469.13,302.66000000000003,158.51,229.63,374.23,528.04,302.66000000000003,528.04,6.0586311743445584,15.461189834203431,2.4674685718950369,6.2968018521324138,0.51027599999999995,0.11505599999999999,575.79999999999995,1007,3.4901241310824234,206.96,6.1812501680012184E-2,-4.2,182.9,0.34880385520050483]
["Siderurgia e Metalurgia","Aco Altona","EALT4",5.21,22.5,122.88,154.62,168.41,246.96,30.65,3.66,6.19,9.74,12.25,30.65,12.25,0.5444444444444444,6.8719999999999999,0.75814901047729921,9.5693877551020421,"─",0.49553800000000003,57.7,30.1,6.6279734219269102,5.81,4.7281901041666664E-2,1.2,66.2,0.43555555555555558]
[null,"Aliperti","APTI4","─",1.7999999999999999E-2,0,232.15,33.950000000000003,32.01,-27.1,-3.63,-7.5,-12.42,-11.57,-27.1,-11.57,-642.77777777777783,12897.222222222223,"─","─",-4.6954000000000003E-2,0.23343900000000001,-15.6,0.8,"─","─","─","─","─","─"]
[null,"Ferbasa","FESA4",21.71,85.096999999999994,2090.88,1743.32,1108.72,1381.06,269.85000000000002,63.4,139.74,288.89,308.8,269.85000000000002,308.8,3.6288000752082921,20.486268611114376,1.0597342255007687,5.9826938795336781,0.20307099999999997,5.9785000000000005E-2,356.1,522.70000000000005,4.2002104457623881,108.5,5.1892026323844501E-2,-20.8,13.7,0.34548809006192932]
[null,"Forja Taurus","FJTA4",3.87,74.863,298.08,-406.96,784.88,845.29,-286.02999999999997,1.19,-92.58,-44.61,-59.86,-286.02999999999997,-59.86,-0.79959392490282244,"─","─","─","─",-1.936599,-125.8,80.5,13.493217391304347,"─","─",-7.9,120.7,0.61979883253409562]
[null,"Gerdau","GGBR4",15.14,1696.164,23998.44,25730.6,36917.620000000003,46159.48,-359.36,441.03,1135.6199999999999,1920.53,2303.87,-359.36,2303.87,1.3582825717324503,15.169877441096498,0.99803047577592441,11.146428817598217,9.7363000000000005E-2,0.44555700000000004,3192.6,5939,5.9867890217208286,592.61,2.4693688423080836E-2,0.7,26.1,0.33817484630023986]
[null,"Gerdau Met","GOAU4",7.11,979.42100000000005,6983.56,9345.17,36917.620000000003,46159.48,-203.29,146.97,397.57,680.05,799.01,-203.29,799.01,0.81579831349338017,9.5415250438779644,0.74516389857006349,8.7153894319220058,9.5991999999999994E-2,0.48102800000000001,3184.3,5914.5,3.2443043367993916,195.4,2.7979998739897701E-2,-0.3,27,0.33826107465533206]
[null,"Haga S/A","HAGA4",1.5,11.9,23.8,-76.84,24.41,22.91,-1.41,-0.98,1.41,0.96,5.97,-1.41,5.97,0.50168067226890756,"─","─",2.9899497487437188,"─",-0.12134399999999999,"─","─","─","─","─",-2.6,-31.8,0.33613445378151258]
[null,"Kepler Weber","KEPL3",17.3,26.312000000000001,455.2,441.03,578.38,576.29999999999995,-34.26,-10.6,-24.59,-20.48,8.27,-34.26,8.27,0.31430525995743386,16.761553663727575,1.0321238917987441,55.042031438935915,1.8987E-2,3.7587000000000002E-2,-12.7,48.4,9.74745867768595,"─","─",0.3,-11.4,0.99954393432654298]
[null,"Lupatech","LUPA3",1.82,16.597999999999999,30.21,84.61,112.37,126.55,-5.49,-20.85,-66.25,-89.67,-96.71,-5.49,-96.71,-5.8266056151343539,5.0976021207374389,0.35703061103888428,"─",-0.90340900000000002,1.3100040000000002,-40.700000000000003,-43.5,-4.7056551724137927,"─","─",-7.1,-37.200000000000003,0.97602120737438247]
[null,"Mangels Indl","MGEL4",7,5.7830000000000004,40.479999999999997,-364.13,445.98,476.74,-8.69,-0.44,-15.31,-18.829999999999998,-16.7,-8.69,-16.7,-2.8877745114992215,"─","─","─","─",-1.6296219999999999,26.8,54.3,11.673406998158379,"─","─",-3.2,69.900000000000006,0.36313332180529134]
[null,"Metisa","MTSA4",16.96,9.0050000000000008,152.72,230.64,240.18,270.73,13.14,2.95,7.54,13.58,16.34,13.14,16.34,1.8145474736257632,25.612437534702938,0.66217828650711086,9.3466829865361092,7.4279999999999999E-2,-0.16652400000000001,15.8,24.7,4.6280566801619436,5.6,3.6668412781561022E-2,-5.8,9.4,0.46640755136035533]
[null,"Mundial","MNDL3",29.36,2.4790000000000001,72.8,-134.68,437.12,469.95,-79.16,0.87,2.25,0.53,3.06,-79.16,3.06,1.2343686970552641,"─","─",23.785437908496736,"─",-1.3982480000000002,42,69.400000000000006,3.7623775216138324,"─","─",-0.3,28.8,"─"]
[null,"Paranapanema","PMAM3",1.46,692.346,1010.82,602.5,3508.46,4765.78,-135.77000000000001,-49.16,-337.2,-356.04,-323.37,-135.77000000000001,-323.37,-0.46706415578338001,0.87022962507185708,1.6777181078838175,"─",-0.36394500000000002,3.1592750000000001,-214.7,82.7,35.239105199516324,"─","─","─",-8.1999999999999993,"─"]
[null,"Sid Nacional","CSNA3",16.25,1380.115,22426.86,8702.74,18524.599999999999,22968.89,10.27,1471.86,2632.31,3353.85,5074.1400000000003,10.27,5074.1400000000003,3.6766066595899618,6.3058078493458876,2.5769894021882767,4.4198364156290522,0.62746599999999997,2.5648880000000003,4437.3,8219.6,5.8531092753905298,"─","─",24.2,93.9,"─"]
[null,"Usiminas","USIM5",10.039999999999999,1229.3019999999999,13473.59,14266.3,10734.12,13736.78,233.02,140.11000000000001,107.94,371.86,726.66,233.02,726.66,0.59111593408291863,11.605203603345638,0.86512915612317132,16.984823824071778,5.4577000000000001E-2,0.26478499999999999,2055.6999999999998,2171.8000000000002,8.117704668938206,55.26,4.1013568024557672E-3,3.9,11.7,0.57374022005983882]
["Software e Dados","Cielo","CIEL3",9.49,2714.2339999999999,25758.080000000002,11204.09,11600.34,11685.84,4056.08,1007.05,1824.56,2617.7800000000002,3341.91,4056.08,3341.91,1.2312534586185273,4.1279012789612102,2.2989890888059628,7.7075925623371075,0.23172000000000001,0.33547600000000005,5277.9,4634.8,6.633864028652801,7041.57,0.27337324831664467,-12.2,-54,"─"]
[null,"Linx","LINX3",37,158.78100000000001,5874.91,1057.21,571.59,685.56,84.85,26.45,44.8,53.84,71.06,84.85,71.06,0.44753465465011555,6.6582903496010228,5.5569820565450572,82.675161835068963,6.0704000000000001E-2,-0.20170399999999999,144.4,168.8,33.540681279620848,38,6.4681841934599851E-3,29.7,74.8,"─"]
[null,"Totvs","TOTS3",39.4,163.452,6439.99,1287.04,2227.33,2320.27,92.98,33.979999999999997,65.28,101.27,59.55,92.98,59.55,0.36432714191322224,7.8741159484129897,5.0037363252113378,108.14456423173803,4.8069000000000001E-2,2.0074000000000002E-2,294.5,259.39999999999998,24.926175790285274,51.09,7.9332421323635612E-3,8.1,33.200000000000003,"─"]
["Telecom","Oi","OIBR4",1.51,5954.2049999999999,9048.81,25986.86,23789.65,"─",-6365.02,30543.360000000001,29285.68,27949.29,"─",-6365.02,"─",4.2069092347341082,4.3644550363986463,0.3459767570995495,0.35893334411229277,2.8750970000000002,0.42028100000000002,2748.3,"─",7.8675065606517567,0.06,6.6307061370500652E-6,-16.100000000000001,-40.4,0.36651408542366282]
[null,"Telebras","TELB4",28.6,49.604999999999997,1866.42,370.43,73.290000000000006,199.65,-243.82,-62.67,-124.01,-228.1,-224.85,-243.82,-224.85,-4.5328091926217118,7.467593992541075,3.8298814890802579,"─",-0.38121899999999997,0.26410400000000001,-150.80000000000001,-62.8,-31.277914012738858,0.01,5.3578508588634927E-6,5.0999999999999996,30.1,0.79225884487450859]
[null,"Telef Brasil","VIVT4",47.5,1688.694,78220.23,71607.03,43206.83,43462.74,4608.79,1098.02,4264.32,7441.58,8928.26,4608.79,8928.26,5.2870798380286779,42.40379251658382,1.1201828228317807,8.984165447690815,0.12853600000000001,3.8517000000000003E-2,14487.6,17819,4.5444940232336268,4136.88,5.2887596980985614E-2,2.5,8.3000000000000007,0.33848642797333328]
[null,"Tim Part S/A","TIMP3",11.79,2420.248,28534.73,19794.84,16233.96,16981.330000000002,1234.51,245.13,579.66999999999996,1912.92,2545.1,1234.51,2545.1,1.0515864489920042,8.1788477874994623,1.4415233424468195,11.21163173156261,0.14021699999999998,-9.9699999999999997E-3,5947,6371.8,4.4473109639348376,588.25,2.0615229231185996E-2,-0.3,-7.3,"─"]
["Têxtil","Alpargatas","ALPA4",15.38,578.81700000000001,8962.6,2380.81,3721.86,3904.51,362.29,114.07,136.61000000000001,257.77999999999997,331.5,362.29,331.5,0.57271987519371403,4.113234407420653,3.7391498943636829,26.854315113122176,0.14310300000000001,2.9149999999999999E-2,486.2,564.70000000000005,15.998930405525055,206.41,2.3030147501840983E-2,0.2,13.7,0.41740308249412161]
[null,"Arezzo Co","ARZZ3",49.98,90.251000000000005,4510.74,711.34,1360.47,1526.66,154.47,27.11,60.24,100.4,142.63999999999999,154.47,142.63999999999999,1.580481102702463,7.8817963235864426,6.3411940562881313,31.623282249018509,0.21451499999999998,-0.17485700000000001,206.3,232.2,18.890426356589149,41.92,9.2933753663478735E-3,-7.4,-4.5999999999999996,"─"]
[null,"Cambuci","CAMB4",34,3.855,131.07,24.35,259.45999999999998,247.49,44.73,4.41,6.94,12.22,16.64,44.73,16.64,4.3164721141374836,6.3164721141374844,5.3827515400410668,7.876802884615385,2.4780470000000001,2.2073269999999998,26.3,36,5.1186388888888885,"─","─","─",297.60000000000002,0.33722438391699094]
[null,"Cedro","CEDO4",6.22,10,60.94,190.19,635.04,649.69000000000005,82.7,0.01,0.93,-7.8,48.61,82.7,48.61,4.8609999999999998,19.018999999999998,0.32704137967295865,1.2795721045052459,0.280696,1.1925870000000001,101.5,80.5,3.8488695652173912,"─","─",-2.5,-8.8000000000000007,0.57000000000000006]
[null,"Cia Hering","HGTX3",29.89,161.40299999999999,4824.34,1320.08,1562.32,1539.57,263.77999999999997,34.31,91.6,144.02000000000001,239.51,263.77999999999997,239.51,1.4839253297646264,8.1787823026833451,3.6545782604084605,20.142522942674628,0.194267,-0.24281900000000001,260.89999999999998,259.60000000000002,17.348998459167952,109.99,2.2798973538349285E-2,-1,21.8,"─"]
[null,"Coteminas","CTNM4",10.4,30.635999999999999,333.22,852.11,2577.73,"─",49.81,-5.43,-5.13,13.83,"─",49.81,"─",2.1393132262697483,27.814009661835751,0.37391228831958312,4.8613732072017086,6.2826000000000007E-2,0.90794799999999998,356.7,"─",4.6102566180443008,"─","─",3.9,66.7,0.45371458414936677]
[null,"Dohler","DOHL4",7.6,60.515999999999998,459.92,570.80999999999995,460.01,480.71,34.14,9.58,16.940000000000001,43.13,49.57,34.14,49.57,0.81912221561240006,9.4323815189371398,0.80573500814631838,9.2782247327012293,9.2905999999999989E-2,-2.8262999999999996E-2,44.4,45.8,9.689563318777294,9.59,2.0851452426508956E-2,10.1,35.700000000000003,0.72047061934033974]
[null,"Grendene","GRND3",8.3800000000000008,900.255,7544.14,3465.04,2251.9699999999998,2333.4499999999998,660.93,156.06,221.86,334.22,585.53,660.93,585.53,0.6504046075834069,3.8489539075039851,2.1772149527855378,12.884287568527661,0.181977,-0.40765700000000005,526.20000000000005,522.70000000000005,11.730612205854218,321.27,4.2585370897146653E-2,-3.3,-7.8,"─"]
[null,"Guararapes","GUAR3",144,62.4,8985.6,4929.1499999999996,6444.66,7192.6,570.33000000000004,51.13,140.19999999999999,223.53,1235.67,570.33000000000004,1235.67,19.802403846153847,78.992788461538453,1.8229512187699708,7.2718444244822642,0.30699700000000002,0.198903,1188.7,1701.3,5.857885734438371,139.97,1.5577145655270654E-2,-1.1000000000000001,-0.5,0.5]
[null,"Karsten","CTKA4",3.3,6.2050000000000001,20.48,-260.17,309.77999999999997,316.64,-0.53,-20,-28.93,-47.92,-52.68,-0.53,-52.68,-8.4899274778404514,"─","─","─","─",-1.851534,53.1,54.8,9.1640145985401471,"─","─",-17.5,18.3,0.46736502820306203]
[null,"Le Lis Blanc","LLIS3",32,51.600999999999999,1651.23,2225.87,1249.82,1244.1500000000001,420.57,20.37,50.62,58.46,103.46,420.57,103.46,2.0049999031026529,43.13617953140443,0.74183667509782691,15.960100521940848,4.8201000000000001E-2,0.388152,262.60000000000002,350.6,7.1740074158585276,96.52,5.8453395347710491E-2,-3.1,4.9000000000000004,0.99998062053060988]
[null,"Pettenati","PTNT4",3.25,48.045999999999999,156.15,191.75,203.73,246.65,6.17,11.33,18,7.48,3.93,6.17,3.93,0.32801898180909961,3.9909669899679474,0.8143389830508474,9.9079631979695435,0.138292,0.26080999999999999,25.6,24.1,3.6275166666666667,"─","─",7.6,-2,"─"]
[null,"Santanense","CTSA3",5.0199999999999996,39.298999999999999,198.27,205.43,418.54,"─",19.940000000000001,7.83,13.96,19.45,"─",19.940000000000001,"─",0.67126389984477974,5.2273594747957963,0.96033188920800261,7.4784298711144803,0.101274,1.2192940000000001,47.8,"─",8.1002166064981953,11.95,6.0271347152872336E-2,-2.5,97.3,0.96694572380976618]
[null,"Springs","SGPS3",8.89,50,444.5,1160.5899999999999,2198.6999999999998,"─",21.04,-6.95,2,-7.36,"─",21.04,"─",0.1484,23.211799999999997,0.38299485606458794,59.905660377358494,7.4110000000000001E-3,0.85102999999999995,254.6,"─",5.855269828291088,"─","─",5.7,-17.8,1]
[null,"Teka","TEKA4",8.82,0.503,4.6100000000000003,-1435.22,132.02000000000001,149.16,-168.36,-41.27,-87.96,-134.25,-125.61,-168.36,-125.61,-249.72166998011929,"─","─","─","─",-0.29666399999999998,-13.9,-12.5,-34.429600000000001,"─","─",0.7,25.1,0.39761431411530818]
[null,"Tex Renaux","TXRX4",2.2999999999999998,4.2590000000000003,9.8000000000000007,-312.81,84.95,87.33,96.72,-4.5999999999999996,-5.0599999999999996,-9.42,-11.44,96.72,-11.44,-2.6860765437896217,"─","─","─","─",-0.601692,"─","─","─","─","─",-18.399999999999999,-0.4,0.35219535102136651]
[null,"Vulcabras","VULC3",6.75,245.756,1658.85,941.16,1263.08,1248.96,188.91,33.42,66.459999999999994,105.97,152.11000000000001,188.91,152.11000000000001,0.61894724849037264,3.8296521753283743,1.7625621573377535,10.905614358030371,0.19388100000000003,-9.1559999999999992E-3,296.5,218,7.5698623853211009,"─","─",-15.2,-25.8,"─"]
["Transportes","Azul S.A.","AZUL4",38.270000000000003,338.37900000000002,12949.76,3163.7,7789.5,9153.36,529.04,210.55,165.54,282.11,420.28,529.04,420.28,1.2420392518448247,9.349575476019492,4.0932339760407128,30.812230727134299,0.14831899999999998,0.63832299999999997,1164.8,850.4,17.602567027281278,"─","─",1.6,42.3,"─"]
[null,"CCR SA","CCRO3",11.74,2020,23714.799999999999,8231.49,10561,9715.86,1797.47,446.75,724.45,1089.8,782.74,1797.47,782.74,0.38749504950495051,4.0749950495049507,2.8809850950435463,30.297161254056263,7.4912000000000006E-2,1.6606899999999998,5052.3,3817.8,9.8797626905547684,1199.98,5.060046890549362E-2,-17.5,-23.3,1]
[null,"Cvc Brasil","CVCB3",54.75,144.95699999999999,7936.38,1087.94,1185.1500000000001,1692.57,223.89,81.52,106.25,188.81,270.27999999999997,223.89,270.27999999999997,1.8645529363880322,7.5052601806052834,7.2948836792470164,29.363607185141337,0.33288899999999999,0.95715500000000009,561.20000000000005,659.1,13.660606888180853,72.59,9.1464874413775561E-3,-6.3,13.9,"─"]
[null,"Ecorodovias","ECOR3",9.59,556.46299999999997,5336.48,640.32000000000005,3200.7,3169.27,392.49,145.58000000000001,224.4,317.93,374.51,392.49,374.51,0.67301869126968017,1.1506964524146261,8.3340832240129927,14.249232784171316,0.50508900000000001,7.4907960000000005,1630.2,1617.9,6.2630440694727723,401.83,7.5298698767727046E-2,-15.3,-15.9,"─"]
[null,"Gol","GOLL4",25.9,347.71899999999999,9005.92,-4985.41,10576.02,11411.35,19.18,147.47,-1178.51,-1587.75,-1085.3900000000001,19.18,-1085.3900000000001,-3.121457268656588,"─","─","─","─",-1.2828999999999999,1495.2,2068.5,7.148095721537346,"─","─",-2.9,77.400000000000006,"─"]
[null,"JSL","JSLG3",9.92,205.11500000000001,2034.74,753.15,7255.8,8075.39,-2.74,13.58,46.89,86.09,131.27000000000001,-2.74,131.27000000000001,0.63998244887014599,3.6718426248689755,2.7016408417977829,15.500425078083341,0.159057,5.7285680000000001,1230.2,1597.5,5.7507680751173718,"─","─",2.6,23,"─"]
[null,"Log-In","LOGN3",8.36,36.856000000000002,308.12,-354.75,872.17,977.43,-606.87,41.72,-11.21,-9.19,6,-606.87,6,0.16279574560451487,"─","─",51.352693333333328,"─",-3.4718110000000002,-442.7,198,7.7743333333333347,"─","─",-6.4,173.9,"─"]
[null,"Rumo S.A.","RAIL3",19.149999999999999,1559.0160000000001,29855.15,8028.2,5946.35,6584.94,-260.81,-58.96,-94.7,131.09,264.36,-260.81,264.36,0.16956849705198665,5.149530216495533,3.7187858299494279,112.93371311847478,3.4037999999999999E-2,1.2601959999999999,2757,3242,12.433067242442936,"─","─",-1.6,47.6,0.99998973711623229]
[null,"Tegma","TGMA3",26.38,65.938000000000002,1739.44,484.37,1083.98,1253.78,103.76,14,42.18,73.290000000000006,108.25,103.76,108.25,1.6416937122751676,7.3458400315447845,3.5911481718520966,16.068770808314088,0.24119299999999999,0.15826299999999999,136.9,182.7,9.9403284072249587,75.5,4.3404773950236855E-2,-4.2,40.299999999999997,"─"]
[null,"Triunfo Part","TPIS3",1.74,173.50700000000001,301.89999999999998,1170.1199999999999,1492.74,"─",-6.64,25.8,-14.8,-71.33,"─",-6.64,"─",4.2785017319185972,6.7439354031825793,0.2580095887601272,0.40668442109517072,1.2558830000000001,1.349253,784.1,"─",1.5786547294667186,80.209999999999994,0.26568400132494202,-3.9,-43.9,"─"]
["Veículos e peças","Embraer","EMBR3",18.45,735.78700000000003,13575.27,14901.26,18713.05,18721.62,795.79,-40.11,-507.08,-590.89,-669.03,795.79,-669.03,-0.9092712972640179,20.252138186730669,0.91101491753046393,"─",-4.6519000000000005E-2,0.15823200000000001,2057.5,1097.9000000000001,14.565075143455688,139.65,1.0287088212610136E-2,-3.3,-7.2,"─"]
[null,"Fras-Le","FRAS3",5.0999999999999996,214.566,1094.29,807.13,832.83,1141.1500000000001,64.069999999999993,45.19,63.95,74.45,93.33,64.069999999999993,93.33,0.43497105785632389,3.7616863808804748,1.3557749061489475,11.724918032786885,0.11310199999999999,0.170791,106.4,183.8,6.7217573449401522,45.99,4.2027250546016144E-2,1.8,"─","─"]
[null,"Iochp-Maxion","MYPK3",21.45,149.351,3203.58,2921.95,7487.94,9616.2999999999993,6.4,-12.97,31.17,124.65,201.33,6.4,201.33,1.3480324872280736,19.564314935956236,1.0963839045842674,15.91207942184473,0.116381,0.72746,798.6,1057.0999999999999,5.23165452653486,36.25,1.1315465822610954E-2,-1.2,-2.5,"─"]
[null,"Marcopolo","POMO4",3.9,942.91600000000005,3564.63,2105.62,2875.99,4197.47,72.17,30.2,53.41,117.1,186.73,72.17,186.73,0.19803460753662042,2.2330939341362326,1.7464558657307587,19.693527553151611,9.9007000000000012E-2,0.45879600000000004,119.7,362.1,12.54899199116266,33.89,9.5072980926491669E-3,-3.7,0.9,0.36228041522256488]
[null,"Metal Leve","LEVE3",24.3,128.309,3117.9,1356.36,2264.44,2591.65,237.31,71.38,131.59,223.81,291.68,237.31,291.68,2.2732622029631595,10.571043340685376,2.2987324161726979,10.689484023587493,0.21704100000000001,0.14341300000000001,405.4,466.8,7.0949657240788353,229.89,7.3732319830655244E-2,-7.7,9.9,0.99992985682999647]
[null,"Plascar Part","PLAS3",7.6,12.425000000000001,94.43,-514.30999999999995,389.18,346.82,-71.95,-39.43,-75.680000000000007,-141.46,-257.25,-71.95,-257.25,-20.704225352112676,"─","─","─","─",-0.86272199999999999,0.7,-85.3,-6.3143259085580317,"─","─",-17.5,31,0.40241448692152915]
[null,"Randon Part","RAPT4",9.6999999999999993,342.43099999999998,3053.59,1527.31,2936.76,4262.6000000000004,46.71,43.2,74.63,116.28,151.72,46.71,151.72,0.44306736247594408,4.4601978208748623,2.1747914306853224,21.892833509095698,0.118918,0.54322000000000004,308.2,559.70000000000005,7.4405109880292999,34.92,1.14357199231069E-2,0.5,37.1,0.34021452496999399]
[null,"Recrusul","RCSL4",1.51,5.0810000000000004,9.02,-63.73,0.04,4.46,-36.9,-4.16,-7.62,-10.69,-13.05,-36.9,-13.05,-2.5683920488092893,"─","─","─","─",4.4393000000000002E-2,-26,-4.7,-1.31531914893617,"─","─",-4.4000000000000004,-3.8,0.33457980712458174]
[null,"Schulz","SHUL4",7.47,88.950999999999993,664.46,540.71,686.77,946.59,40.119999999999997,12.29,27.91,50.08,70.22,40.119999999999997,70.22,0.78942339040595388,6.0787399804386695,1.2288730927854115,9.4626028197094829,0.144121,0.39951300000000001,91.3,122,7.2170409836065579,17.57,2.6442524756945487E-2,4.2,58.4,0.42944992186709541]
[null,"Tupy","TUPY3",18.12,144.16399999999999,2612.25,2199.96,3706.15,4828.22,153.4,56.89,105.17,193.81,271.72000000000003,153.4,271.72000000000003,1.8847978690935328,15.260120418412365,1.1874087165221185,9.6137629913145872,0.13700300000000001,0.31509199999999998,447.4,649.29999999999995,5.0907746804250733,174.95,6.6972916068523305E-2,3.4,11.1,"─"]
[]
[]
[]
[]
[]
[]
[]
[]
[]
[]
[]
[]
[]
[]
[]
[]
[]
[]
[]
[]
[]
[]
[]
[]
[]
[]
[]
[]
[]
[]
[]
[]
[]
[]
[]
[]
[]
[]
[]
[]
["Cotação:","Cotação da ação em bolsa."]
[]
["Quantidade de Ações:","Soma das ações Ordinárias e Preferenciais do último Balanço, ajustado a eventuais desdobramentos, excluindo ações em tesouraria "]
[null," "]
["Valor de Mercado:","Quantidade de ações da Companhia, multiplicada pela cotação da ação"]
[]
["Patrimônio Líquido:","Patrimônio Líquido  na data do último Balanço Patrimonial divulgado"]
[]
["Receita Líquida:","Receita Líquida referente ao período citado."]
[]
["Lucro Líquido:","Lucro Líquido em valores acumulados no período"]
[]
["Lucro Por Ação:","Lucro Líquido acumulado nos últimos 12 meses, dividido pela quantidade total de ações"]
[null,"Fórmula:  L.L. (últ. 12 meses) / Qtd. Ações"]
[]
["Valor Patrim. da Ação:","Patrimônio Líquido do último Balanço Patrimonial divulgado, dividido pelo número total de ações"]
[null,"Fórmula:  P.L. / Qtd. Ações"]
[]
["Preço /Valor Patr. Ação:","Cotação da ação dividido pelo Valor Patrimonial da ação"]
[null,"Fórmula:  Cot. / Vlr. Patr."]
[]
["Relação Preço/Lucro:","Preço da ação dividido pelo Lucro por ação nos últimos 12 meses "]
[null,"Fórmula:  Cot. / LPA (últ. 12 meses)"]
[]
["Rentab. Patrim.:","Lucro líquido acumulado nos últimos 12 meses dividido pelo Patrimônio Líquido há 12 meses "]
[null,"Fórmula:  Rent=(L.L. últ. 12 meses)/(P.L. inicial) "]
[]
["Dív. Líq./Patrim.:","(Endividamento financeiro total - caixa - aplicações financeiras de curto prazo)/Patrim. Líq. (Dados do último Balanço Patrimonial divulgado)"]
[null,"Fórmula: (Dívida Fin - (Caixa + Aplic. Fin.))/P.L."]
[]
["EBITDA:","(Earnings Before Interests, Taxes, Depreciation and Amortization) = Lucro antes dos juros, impostos, depreciação e amortização"]
[null,"Fórmula:  Lucro Bruto - Despesas com Vendas e Gerais/Admin. + Outras Receitas Oper. - Outras Despesas Oper. + Depreciação "]
[null,"e Amortizações (Dados do Balanço Patrimonial do exercício citado)"]
[]
["Firm Value/ Ebitda:","Valor de mercado  somado ao endividamento líquido (último Balanço divulgado) dividido pelo EBITDA (anual) do exercício anterior"]
[null,"Fórmula:  (Vlr. Merc + Dívida Fin -(Caixa + Aplic. Fin.))/ EBITDA "]
[]
["Dividendos:","Montante de dividendos e/ou juros s/ capital pagos no período citado"]
[]
["Yield:","Montante de dividendos e/ ou juros s/ capital pagos no exercício anterior dividido pelo Valor de Mercado atual. "]
[null,"Fórmulas:  (Div + JSC)/ Vlr. Merc"]
[]
["Oscilação no Mês:","Oscilação da ação acumulada no mês"]
[]
["Oscilação no Ano:","Oscilação da ação acumulada no ano"]
[]
["% ON/Total:","Percentual de ações ordinárias dividido pelo número total de ações da empresa"]
[]
["* Observação (composição das Units):"]
[]
[]
["Uma unit de Alupar corresponde a uma ação ON e duas ações PN"]
["Uma unit de Contax corresponde a uma ação ON e quatro ações PN"]
["Uma unit de Renova corresponde a uma ação ON e duas ações PN"]
["Uma unit de Santos Brazil corresponde a uma ação ON e quatro ações PN"]
["Uma unit de Santander corresponde a 55 ações ON e 50 ações PN"]
["Uma unit de Sul América corresponde a uma ação ON e duas ações PN"]
["Uma unit de Taesa corresponde a uma ação ON e duas ações PN"]
["Uma unit de Viavarejo corresponde a uma ação ON e duas ações PN"]

{"sheet":"Maiores e Melhores","index":10,"n_rows":65,"n_cols":13,"rows_kept":65,"cut":false,"hidden":false,"merged":[[37,9,37,12],[37,1,38,1],[37,2,38,2],[37,3,38,3],[37,4,38,4],[37,5,37,8]]}
["","Empresa","Patr. Líq. (R$ milhões)","Empresa","Valor de Mercado (R$ milhões)","Empresa","Ebitda (R$ milhões)","Empresa","Yield","Empresa","P/VPA","Empresa","P/L"]
[1,{"$f":"'Dados MM2'!D2","v":"Petrobras"},{"$f":"'Dados MM2'!E2","v":277225},{"$f":"'Dados MM2'!A2","v":"Petrobras"},{"$f":"'Dados MM2'!B2","v":373814.33},{"$f":"'Dados MM2'!G2","v":"Petrobras"},{"$f":"'Dados MM2'!H2","v":80251},{"$f":"'Dados MM2'!J2","v":"Tarpon Inv"},{"$f":"'Dados MM2'!K2","v":0.67899525316455689},{"$f":"'Dados MM2'!M2","v":"Bardella"},{"$f":"'Dados MM2'!N2","v":0.15229467794578033},{"$f":"'Dados MM2'!P2","v":"PDG Realt"},{"$f":"'Dados MM2'!Q2","v":0.10303763581964202}]
[{"$f":"A2+1","v":2},{"$f":"'Dados MM2'!D3","v":"Vale"},{"$f":"'Dados MM2'!E3","v":163258.04},{"$f":"'Dados MM2'!A3","v":"ItauUnibanco"},{"$f":"'Dados MM2'!B3","v":322025.8},{"$f":"'Dados MM2'!G3","v":"Vale"},{"$f":"'Dados MM2'!H3","v":46376},{"$f":"'Dados MM2'!J3","v":"Triunfo Part"},{"$f":"'Dados MM2'!K3","v":0.25540519025632857},{"$f":"'Dados MM2'!M3","v":"Saraiva Livr"},{"$f":"'Dados MM2'!N3","v":0.17947042447370889},{"$f":"'Dados MM2'!P3","v":"Triunfo Part"},{"$f":"'Dados MM2'!Q3","v":0.42304528861049367}]
[{"$f":"A3+1","v":3},{"$f":"'Dados MM2'!D4","v":"ItauUnibanco"},{"$f":"'Dados MM2'!E4","v":131756.57},{"$f":"'Dados MM2'!A4","v":"Bradesco"},{"$f":"'Dados MM2'!B4","v":273731.43},{"$f":"'Dados MM2'!G4","v":"Ambev S/A"},{"$f":"'Dados MM2'!H4","v":20035.8},{"$f":"'Dados MM2'!J4","v":"Cielo"},{"$f":"'Dados MM2'!K4","v":0.2386671917981868},{"$f":"'Dados MM2'!M4","v":"Terra Santa"},{"$f":"'Dados MM2'!N4","v":0.26288930959929202},{"$f":"'Dados MM2'!P4","v":"Oi"},{"$f":"'Dados MM2'!Q4","v":0.42786756251796493}]
[4,{"$f":"'Dados MM2'!D5","v":"Bradesco"},{"$f":"'Dados MM2'!E5","v":121120.87},{"$f":"'Dados MM2'!A5","v":"Ambev S/A"},{"$f":"'Dados MM2'!B5","v":270874.88},{"$f":"'Dados MM2'!G5","v":"Telef Brasil"},{"$f":"'Dados MM2'!H5","v":14487.6},{"$f":"'Dados MM2'!J5","v":"Tran Paulist"},{"$f":"'Dados MM2'!K5","v":0.15776967458753091},{"$f":"'Dados MM2'!M5","v":"Triunfo Part"},{"$f":"'Dados MM2'!N5","v":0.26838928485967256},{"$f":"'Dados MM2'!P5","v":"IGB S/A"},{"$f":"'Dados MM2'!Q5","v":0.59004961522883759}]
[5,{"$f":"'Dados MM2'!D6","v":"Brasil"},{"$f":"'Dados MM2'!E6","v":102252.88},{"$f":"'Dados MM2'!A6","v":"Vale"},{"$f":"'Dados MM2'!B6","v":243064.03},{"$f":"'Dados MM2'!G6","v":"Braskem"},{"$f":"'Dados MM2'!H6","v":12287.9},{"$f":"'Dados MM2'!J6","v":"Cristal"},{"$f":"'Dados MM2'!K6","v":0.1250014442351908},{"$f":"'Dados MM2'!M6","v":"Cr2"},{"$f":"'Dados MM2'!N6","v":0.28264845151953694},{"$f":"'Dados MM2'!P6","v":"GPC Part"},{"$f":"'Dados MM2'!Q6","v":0.63371323529411761}]
[6,{"$f":"'Dados MM2'!D7","v":"Telef Brasil"},{"$f":"'Dados MM2'!E7","v":71607.03},{"$f":"'Dados MM2'!A7","v":"Santander BR"},{"$f":"'Dados MM2'!B7","v":168655.61},{"$f":"'Dados MM2'!G7","v":"JBS"},{"$f":"'Dados MM2'!H7","v":11218.8},{"$f":"'Dados MM2'!J7","v":"Eletropar"},{"$f":"'Dados MM2'!K7","v":0.12379576107899806},{"$f":"'Dados MM2'!M7","v":"Eucatex"},{"$f":"'Dados MM2'!N7","v":0.31464609544204608},{"$f":"'Dados MM2'!P7","v":"Tarpon Inv"},{"$f":"'Dados MM2'!Q7","v":0.89996724813100748}]
[7,{"$f":"'Dados MM2'!D8","v":"Santander BR"},{"$f":"'Dados MM2'!E8","v":65233.74},{"$f":"'Dados MM2'!A8","v":"Brasil"},{"$f":"'Dados MM2'!B8","v":140947.85},{"$f":"'Dados MM2'!G8","v":"Itausa"},{"$f":"'Dados MM2'!H8","v":9182},{"$f":"'Dados MM2'!J8","v":"Eztec"},{"$f":"'Dados MM2'!K8","v":0.11947916193246375},{"$f":"'Dados MM2'!M8","v":"Lupatech"},{"$f":"'Dados MM2'!N8","v":0.32588992518192067},{"$f":"'Dados MM2'!P8","v":"Bombril"},{"$f":"'Dados MM2'!Q8","v":1.046191839397014}]
[8,{"$f":"'Dados MM2'!D9","v":"Ambev S/A"},{"$f":"'Dados MM2'!E9","v":56340.62},{"$f":"'Dados MM2'!A9","v":"Itausa"},{"$f":"'Dados MM2'!B9","v":111640.61},{"$f":"'Dados MM2'!G9","v":"Eletrobras"},{"$f":"'Dados MM2'!H9","v":6744.2},{"$f":"'Dados MM2'!J9","v":"Qgep Part"},{"$f":"'Dados MM2'!K9","v":0.11571830692545138},{"$f":"'Dados MM2'!M9","v":"Coteminas"},{"$f":"'Dados MM2'!N9","v":0.35989057750759873},{"$f":"'Dados MM2'!P9","v":"J B Duarte"},{"$f":"'Dados MM2'!Q9","v":1.3497999275099675}]
[9,{"$f":"'Dados MM2'!D10","v":"Itausa"},{"$f":"'Dados MM2'!E10","v":55143},{"$f":"'Dados MM2'!A10","v":"Telef Brasil"},{"$f":"'Dados MM2'!B10","v":76930.16},{"$f":"'Dados MM2'!G10","v":"Tim Part S/A"},{"$f":"'Dados MM2'!H10","v":5947},{"$f":"'Dados MM2'!J10","v":"SLC Agricola"},{"$f":"'Dados MM2'!K10","v":0.10376467658335883},{"$f":"'Dados MM2'!M10","v":"Springs"},{"$f":"'Dados MM2'!N10","v":0.36231571872926704},{"$f":"'Dados MM2'!P10","v":"Cambuci"},{"$f":"'Dados MM2'!Q10","v":2.2800812619502873}]
[10,{"$f":"'Dados MM2'!D11","v":"Eletrobras"},{"$f":"'Dados MM2'!E11","v":43313.61},{"$f":"'Dados MM2'!A11","v":"B3"},{"$f":"'Dados MM2'!B11","v":67029.84},{"$f":"'Dados MM2'!G11","v":"Cielo"},{"$f":"'Dados MM2'!H11","v":5277.9},{"$f":"'Dados MM2'!J11","v":"Multiplus"},{"$f":"'Dados MM2'!K11","v":0.10028696396750827},{"$f":"'Dados MM2'!M11","v":"Pine"},{"$f":"'Dados MM2'!N11","v":0.38355779634873499},{"$f":"'Dados MM2'!P11","v":"Marfrig"},{"$f":"'Dados MM2'!Q11","v":2.4406028267133006}]
[11,{"$f":"'Dados MM2'!D12","v":"JBS"},{"$f":"'Dados MM2'!E12","v":26569.16},{"$f":"'Dados MM2'!A12","v":"Suzano Papel"},{"$f":"'Dados MM2'!B12","v":64303.89},{"$f":"'Dados MM2'!G12","v":"Sabesp"},{"$f":"'Dados MM2'!H12","v":5263.6},{"$f":"'Dados MM2'!J12","v":"Ger Paranap"},{"$f":"'Dados MM2'!K12","v":8.4726305705130317E-2},{"$f":"'Dados MM2'!M12","v":"Positivo Tec"},{"$f":"'Dados MM2'!N12","v":0.39045868825350433},{"$f":"'Dados MM2'!P12","v":"Le Lis Blanc"},{"$f":"'Dados MM2'!Q12","v":3.4946944256375532}]
[12,{"$f":"'Dados MM2'!D13","v":"Oi"},{"$f":"'Dados MM2'!E13","v":25986.86},{"$f":"'Dados MM2'!A13","v":"BBSeguridade"},{"$f":"'Dados MM2'!B13","v":54507.1},{"$f":"'Dados MM2'!G13","v":"CCR SA"},{"$f":"'Dados MM2'!H13","v":5052.3},{"$f":"'Dados MM2'!J13","v":"Taesa"},{"$f":"'Dados MM2'!K13","v":8.3859921357970699E-2},{"$f":"'Dados MM2'!M13","v":"GPC Part"},{"$f":"'Dados MM2'!N13","v":0.39451459088308222},{"$f":"'Dados MM2'!P13","v":"Sid Nacional"},{"$f":"'Dados MM2'!Q13","v":3.5576283271648004}]
[13,{"$f":"'Dados MM2'!D14","v":"Gerdau"},{"$f":"'Dados MM2'!E14","v":25730.6},{"$f":"'Dados MM2'!A14","v":"Eletrobras"},{"$f":"'Dados MM2'!B14","v":50550.25},{"$f":"'Dados MM2'!G14","v":"CPFL Energia"},{"$f":"'Dados MM2'!H14","v":4863.3},{"$f":"'Dados MM2'!J14","v":"Cyre Com-Ccp"},{"$f":"'Dados MM2'!K14","v":8.1199039144703458E-2},{"$f":"'Dados MM2'!M14","v":"Rni"},{"$f":"'Dados MM2'!N14","v":0.39612494984351176},{"$f":"'Dados MM2'!P14","v":"Brasilagro"},{"$f":"'Dados MM2'!Q14","v":3.6943278603301128}]
[14,{"$f":"'Dados MM2'!D15","v":"B3"},{"$f":"'Dados MM2'!E15","v":25032.97},{"$f":"'Dados MM2'!A15","v":"Btgp Banco"},{"$f":"'Dados MM2'!B15","v":44062.14},{"$f":"'Dados MM2'!G15","v":"Suzano Papel"},{"$f":"'Dados MM2'!H15","v":4660.7},{"$f":"'Dados MM2'!J15","v":"Qualicorp"},{"$f":"'Dados MM2'!K15","v":8.0979318748673632E-2},{"$f":"'Dados MM2'!M15","v":"Amazonia"},{"$f":"'Dados MM2'!N15","v":0.40750729260666096},{"$f":"'Dados MM2'!P15","v":"Terra Santa"},{"$f":"'Dados MM2'!Q15","v":4.0128830369357056}]
[15,{"$f":"'Dados MM2'!D16","v":"Tim Part S/A"},{"$f":"'Dados MM2'!E16","v":19794.84},{"$f":"'Dados MM2'!A16","v":"Braskem"},{"$f":"'Dados MM2'!B16","v":43078.32},{"$f":"'Dados MM2'!G16","v":"Sid Nacional"},{"$f":"'Dados MM2'!H16","v":4437.3},{"$f":"'Dados MM2'!J16","v":"Smiles"},{"$f":"'Dados MM2'!K16","v":7.7733612437377989E-2},{"$f":"'Dados MM2'!M16","v":"Oi"},{"$f":"'Dados MM2'!N16","v":0.41242262435707888},{"$f":"'Dados MM2'!P16","v":"Coteminas"},{"$f":"'Dados MM2'!Q16","v":4.6790717119316438}]
[16,{"$f":"'Dados MM2'!D17","v":"Btgp Banco"},{"$f":"'Dados MM2'!E17","v":18844.93},{"$f":"'Dados MM2'!A17","v":"Carrefour BR"},{"$f":"'Dados MM2'!B17","v":38716.71},{"$f":"'Dados MM2'!G17","v":"Ultrapar"},{"$f":"'Dados MM2'!H17","v":4063.5},{"$f":"'Dados MM2'!J17","v":"Bradespar"},{"$f":"'Dados MM2'!K17","v":7.5145559267221121E-2},{"$f":"'Dados MM2'!M17","v":"Technos"},{"$f":"'Dados MM2'!N17","v":0.42236552316742682},{"$f":"'Dados MM2'!P17","v":"Cristal"},{"$f":"'Dados MM2'!Q17","v":5.5908675403096302}]
[17,{"$f":"'Dados MM2'!D18","v":"Sabesp"},{"$f":"'Dados MM2'!E18","v":18786.95},{"$f":"'Dados MM2'!A18","v":"Weg"},{"$f":"'Dados MM2'!B18","v":38629.769999999997},{"$f":"'Dados MM2'!G18","v":"Carrefour BR"},{"$f":"'Dados MM2'!H18","v":3785},{"$f":"'Dados MM2'!J18","v":"Aco Altona"},{"$f":"'Dados MM2'!K18","v":7.4907934382323391E-2},{"$f":"'Dados MM2'!M18","v":"Generalshopp"},{"$f":"'Dados MM2'!N18","v":0.4665093542271056},{"$f":"'Dados MM2'!P18","v":"Emae"},{"$f":"'Dados MM2'!Q18","v":5.8616205410750872}]
[18,{"$f":"'Dados MM2'!D19","v":"Copel"},{"$f":"'Dados MM2'!E19","v":16225.94},{"$f":"'Dados MM2'!A19","v":"JBS"},{"$f":"'Dados MM2'!B19","v":36437.53},{"$f":"'Dados MM2'!G19","v":"Engie Brasil"},{"$f":"'Dados MM2'!H19","v":3499.2},{"$f":"'Dados MM2'!J19","v":"Comgas"},{"$f":"'Dados MM2'!K19","v":7.3986627521027096E-2},{"$f":"'Dados MM2'!M19","v":"Merc Brasil"},{"$f":"'Dados MM2'!N19","v":0.48544251968503932},{"$f":"'Dados MM2'!P19","v":"Portobello"},{"$f":"'Dados MM2'!Q19","v":6.1374947870122138}]
[19,{"$f":"'Dados MM2'!D20","v":"Kroton"},{"$f":"'Dados MM2'!E20","v":15893.9},{"$f":"'Dados MM2'!A20","v":"Engie Brasil"},{"$f":"'Dados MM2'!B20","v":33583.589999999997},{"$f":"'Dados MM2'!G20","v":"Klabin S/A"},{"$f":"'Dados MM2'!H20","v":3492.5},{"$f":"'Dados MM2'!J20","v":"Porto Seguro"},{"$f":"'Dados MM2'!K20","v":6.8462036921534838E-2},{"$f":"'Dados MM2'!M20","v":"Gafisa"},{"$f":"'Dados MM2'!N20","v":0.49343172651536921},{"$f":"'Dados MM2'!P20","v":"JHSF Part"},{"$f":"'Dados MM2'!Q20","v":6.6097139253002783}]
[20,{"$f":"'Dados MM2'!D21","v":"Embraer"},{"$f":"'Dados MM2'!E21","v":15519.63},{"$f":"'Dados MM2'!A21","v":"Magaz Luiza"},{"$f":"'Dados MM2'!B21","v":32777.730000000003},{"$f":"'Dados MM2'!G21","v":"Cemig"},{"$f":"'Dados MM2'!H21","v":3492.2},{"$f":"'Dados MM2'!J21","v":"BBSeguridade"},{"$f":"'Dados MM2'!K21","v":6.3946898660908399E-2},{"$f":"'Dados MM2'!M21","v":"Tecnisa"},{"$f":"'Dados MM2'!N21","v":0.5069669457067687},{"$f":"'Dados MM2'!P21","v":"Ferbasa"},{"$f":"'Dados MM2'!Q21","v":6.6464975342778141}]
[21,{"$f":"'Dados MM2'!D22","v":"Cemig"},{"$f":"'Dados MM2'!E22","v":14968.53},{"$f":"'Dados MM2'!A22","v":"CPFL Energia"},{"$f":"'Dados MM2'!B22","v":31239.8},{"$f":"'Dados MM2'!G22","v":"Cosan"},{"$f":"'Dados MM2'!H22","v":3463.3},{"$f":"'Dados MM2'!J22","v":"Tupy"},{"$f":"'Dados MM2'!K22","v":6.3474412713729972E-2},{"$f":"'Dados MM2'!M22","v":"Profarma"},{"$f":"'Dados MM2'!N22","v":0.51499531889419914},{"$f":"'Dados MM2'!P22","v":"Tran Paulist"},{"$f":"'Dados MM2'!Q22","v":6.7580719254704604}]
[22,{"$f":"'Dados MM2'!D23","v":"Usiminas"},{"$f":"'Dados MM2'!E23","v":14266.3},{"$f":"'Dados MM2'!A23","v":"Lojas Renner"},{"$f":"'Dados MM2'!B23","v":31072.400000000001},{"$f":"'Dados MM2'!G23","v":"Gerdau"},{"$f":"'Dados MM2'!H23","v":3192.6},{"$f":"'Dados MM2'!J23","v":"Copel"},{"$f":"'Dados MM2'!K23","v":5.9835034101255812E-2},{"$f":"'Dados MM2'!M23","v":"JHSF Part"},{"$f":"'Dados MM2'!N23","v":0.54094959243033613},{"$f":"'Dados MM2'!P23","v":"Qgep Part"},{"$f":"'Dados MM2'!Q23","v":7.0120761522233055}]
[23,{"$f":"'Dados MM2'!D24","v":"Carrefour BR"},{"$f":"'Dados MM2'!E24","v":13033},{"$f":"'Dados MM2'!A24","v":"Rumo S.A."},{"$f":"'Dados MM2'!B24","v":30338.45},{"$f":"'Dados MM2'!G24","v":"Gerdau Met"},{"$f":"'Dados MM2'!H24","v":3184.3},{"$f":"'Dados MM2'!J24","v":"Engie Brasil"},{"$f":"'Dados MM2'!K24","v":5.9254236965136847E-2},{"$f":"'Dados MM2'!M24","v":"Log Com Prop"},{"$f":"'Dados MM2'!N24","v":0.56324919549008734},{"$f":"'Dados MM2'!P24","v":"Unipar"},{"$f":"'Dados MM2'!Q24","v":7.221098291569402}]
[24,{"$f":"'Dados MM2'!D25","v":"Suzano Papel"},{"$f":"'Dados MM2'!E25","v":12012.01},{"$f":"'Dados MM2'!A25","v":"Cielo"},{"$f":"'Dados MM2'!B25","v":29503.72},{"$f":"'Dados MM2'!G25","v":"Copel"},{"$f":"'Dados MM2'!H25","v":2873},{"$f":"'Dados MM2'!J25","v":"Itausa"},{"$f":"'Dados MM2'!K25","v":5.913618709177601E-2},{"$f":"'Dados MM2'!M25","v":"Wlm Ind Com"},{"$f":"'Dados MM2'!N25","v":0.60100692202391703},{"$f":"'Dados MM2'!P25","v":"Merc Brasil"},{"$f":"'Dados MM2'!Q25","v":7.2734561797752812}]
[25,{"$f":"'Dados MM2'!D26","v":"Cielo"},{"$f":"'Dados MM2'!E26","v":11204.09},{"$f":"'Dados MM2'!A26","v":"Lojas Americ"},{"$f":"'Dados MM2'!B26","v":29172.09},{"$f":"'Dados MM2'!G26","v":"Rumo S.A."},{"$f":"'Dados MM2'!H26","v":2757},{"$f":"'Dados MM2'!J26","v":"Santanense"},{"$f":"'Dados MM2'!K26","v":5.8728130528798897E-2},{"$f":"'Dados MM2'!M26","v":"BR Propert"},{"$f":"'Dados MM2'!N26","v":0.60200984265046331},{"$f":"'Dados MM2'!P26","v":"Santanense"},{"$f":"'Dados MM2'!Q26","v":7.6720943896891596}]
[]
[]
[]
[]
[]
[]
[]
[]
[]
[]
[]
[null,"Empresa","ROE","Empresa","FV / Ebitda","Maiores Altas (%)",null,null,null,"Maiores Baixas (%)"]
[null,null,null,null,null,"Empresa","Mês","Empresa","Ano","Empresa","Mês","Empresa","Ano"]
[1,{"$f":"'Dados MM2'!S2","v":"Oi"},{"$f":"'Dados MM2'!T2","v":2.8750970000000002},{"$f":"'Dados MM2'!V2","v":"GPC Part"},{"$f":"'Dados MM2'!W2","v":1.4306267409470752},{"$f":"'Dados MM2'!Y2","v":"Inepar"},{"$f":"'Dados MM2'!Z2","v":141},{"$f":"'Dados MM2'!AB2","v":"Inepar"},{"$f":"'Dados MM2'!AC2","v":437.9},{"$f":"'Dados MM2'!AE2","v":"Fer Heringer"},{"$f":"'Dados MM2'!AF2","v":-42.7},{"$f":"'Dados MM2'!AH2","v":"Viver"},{"$f":"'Dados MM2'!AI2","v":-76.7}]
[{"$f":"A40+1","v":2},{"$f":"'Dados MM2'!S3","v":"GPC Part"},{"$f":"'Dados MM2'!T3","v":2.3020230000000002},{"$f":"'Dados MM2'!V3","v":"Triunfo Part"},{"$f":"'Dados MM2'!W3","v":1.5881136629038537},{"$f":"'Dados MM2'!Y4","v":"Oi"},{"$f":"'Dados MM2'!Z4","v":34.299999999999997},{"$f":"'Dados MM2'!AB3","v":"Cambuci"},{"$f":"'Dados MM2'!AC3","v":297.5},{"$f":"'Dados MM2'!AE3","v":"Gafisa"},{"$f":"'Dados MM2'!AF3","v":-30.4},{"$f":"'Dados MM2'!AH3","v":"J B Duarte"},{"$f":"'Dados MM2'!AI3","v":-75.5}]
[{"$f":"A41+1","v":3},{"$f":"'Dados MM2'!S4","v":"Triunfo Part"},{"$f":"'Dados MM2'!T4","v":1.2558830000000001},{"$f":"'Dados MM2'!V4","v":"Metal Iguacu"},{"$f":"'Dados MM2'!W4","v":2.570049751243781},{"$f":"'Dados MM2'!Y5","v":"Petrorio"},{"$f":"'Dados MM2'!Z5","v":31.3},{"$f":"'Dados MM2'!AB4","v":"Metal Iguacu"},{"$f":"'Dados MM2'!AC4","v":282.10000000000002},{"$f":"'Dados MM2'!AE4","v":"Bardella"},{"$f":"'Dados MM2'!AF4","v":-22.8},{"$f":"'Dados MM2'!AH4","v":"Renova"},{"$f":"'Dados MM2'!AI4","v":-70.8}]
[4,{"$f":"'Dados MM2'!S5","v":"Multiplus"},{"$f":"'Dados MM2'!T5","v":1.1076439999999999},{"$f":"'Dados MM2'!V5","v":"Generalshopp"},{"$f":"'Dados MM2'!W5","v":2.8278595116068739},{"$f":"'Dados MM2'!Y6","v":"Sid Nacional"},{"$f":"'Dados MM2'!Z6","v":28.2},{"$f":"'Dados MM2'!AB5","v":"Celpa"},{"$f":"'Dados MM2'!AC5","v":206},{"$f":"'Dados MM2'!AE5","v":"J B Duarte"},{"$f":"'Dados MM2'!AF5","v":-20.6},{"$f":"'Dados MM2'!AH5","v":"Ideiasnet"},{"$f":"'Dados MM2'!AI5","v":-69.2}]
[5,{"$f":"'Dados MM2'!S6","v":"Wiz S.A"},{"$f":"'Dados MM2'!T6","v":1.1035410000000001},{"$f":"'Dados MM2'!V6","v":"Qgep Part"},{"$f":"'Dados MM2'!W6","v":3.010651033631595},{"$f":"'Dados MM2'!Y7","v":"Tex Renaux"},{"$f":"'Dados MM2'!Z7","v":22.6},{"$f":"'Dados MM2'!AB6","v":"Unipar"},{"$f":"'Dados MM2'!AC6","v":195.2},{"$f":"'Dados MM2'!AE6","v":"Indusval"},{"$f":"'Dados MM2'!AF6","v":-16.399999999999999},{"$f":"'Dados MM2'!AH6","v":"PDG Realt"},{"$f":"'Dados MM2'!AI6","v":-67.8}]
[6,{"$f":"'Dados MM2'!S7","v":"Tarpon Inv"},{"$f":"'Dados MM2'!T7","v":1.06446},{"$f":"'Dados MM2'!V7","v":"Gerdau Met"},{"$f":"'Dados MM2'!W7","v":3.2670974723138051},{"$f":"'Dados MM2'!Y8","v":"JHSF Part"},{"$f":"'Dados MM2'!Z8","v":22.5},{"$f":"'Dados MM2'!AB7","v":"Log-In"},{"$f":"'Dados MM2'!AC7","v":192.6},{"$f":"'Dados MM2'!AE7","v":"Hypera"},{"$f":"'Dados MM2'!AF7","v":-15.5},{"$f":"'Dados MM2'!AH7","v":"Pet Manguinh"},{"$f":"'Dados MM2'!AI7","v":-62.8}]
[7,{"$f":"'Dados MM2'!S8","v":"Marfrig"},{"$f":"'Dados MM2'!T8","v":0.81753600000000004},{"$f":"'Dados MM2'!V8","v":"Mundial"},{"$f":"'Dados MM2'!W8","v":3.3776793248945149},{"$f":"'Dados MM2'!Y9","v":"Ferbasa"},{"$f":"'Dados MM2'!Z9","v":18.8},{"$f":"'Dados MM2'!AB8","v":"Cristal"},{"$f":"'Dados MM2'!AC8","v":186.2},{"$f":"'Dados MM2'!AE8","v":"Helbor"},{"$f":"'Dados MM2'!AF8","v":-15.1},{"$f":"'Dados MM2'!AH8","v":"BR Pharma"},{"$f":"'Dados MM2'!AI8","v":-59.3}]
[8,{"$f":"'Dados MM2'!S9","v":"Vulcabras"},{"$f":"'Dados MM2'!T9","v":0.77669100000000002},{"$f":"'Dados MM2'!V9","v":"Pettenati"},{"$f":"'Dados MM2'!W9","v":3.4433500000000001},{"$f":"'Dados MM2'!Y10","v":"Movida"},{"$f":"'Dados MM2'!Z10","v":16.899999999999999},{"$f":"'Dados MM2'!AB9","v":"Emae"},{"$f":"'Dados MM2'!AC9","v":177.2},{"$f":"'Dados MM2'!AE9","v":"Forja Taurus"},{"$f":"'Dados MM2'!AF9","v":-14.1},{"$f":"'Dados MM2'!AH9","v":"Indusval"},{"$f":"'Dados MM2'!AI9","v":-58.2}]
[9,{"$f":"'Dados MM2'!S10","v":"Smiles"},{"$f":"'Dados MM2'!T10","v":0.74088300000000007},{"$f":"'Dados MM2'!V10","v":"Brasilagro"},{"$f":"'Dados MM2'!W10","v":3.52518100298904},{"$f":"'Dados MM2'!Y11","v":"Ppla"},{"$f":"'Dados MM2'!Z11","v":16.8},{"$f":"'Dados MM2'!AB10","v":"Irbbrasil Re"},{"$f":"'Dados MM2'!AC10","v":174.6},{"$f":"'Dados MM2'!AE10","v":"Ideiasnet"},{"$f":"'Dados MM2'!AF10","v":-14},{"$f":"'Dados MM2'!AH10","v":"Biotoscana"},{"$f":"'Dados MM2'!AI10","v":-57.6}]
[10,{"$f":"'Dados MM2'!S11","v":"Comgas"},{"$f":"'Dados MM2'!T11","v":0.664045},{"$f":"'Dados MM2'!V11","v":"Unipar"},{"$f":"'Dados MM2'!W11","v":3.7142993855142539},{"$f":"'Dados MM2'!Y12","v":"Excelsior"},{"$f":"'Dados MM2'!Z12","v":16.600000000000001},{"$f":"'Dados MM2'!AB11","v":"Suzano Papel"},{"$f":"'Dados MM2'!AC11","v":156.19999999999999},{"$f":"'Dados MM2'!AE11","v":"PDG Realt"},{"$f":"'Dados MM2'!AF11","v":-13.1},{"$f":"'Dados MM2'!AH11","v":"Gafisa"},{"$f":"'Dados MM2'!AI11","v":-52}]
[11,{"$f":"'Dados MM2'!S12","v":"Sid Nacional"},{"$f":"'Dados MM2'!T12","v":0.62746599999999997},{"$f":"'Dados MM2'!V12","v":"Csu Cardsyst"},{"$f":"'Dados MM2'!W12","v":3.9775214723926373},{"$f":"'Dados MM2'!Y13","v":"Cristal"},{"$f":"'Dados MM2'!Z13","v":15.5},{"$f":"'Dados MM2'!AB12","v":"Ceee-Gt"},{"$f":"'Dados MM2'!AC12","v":141.30000000000001},{"$f":"'Dados MM2'!AE12","v":"Ser Educa"},{"$f":"'Dados MM2'!AF12","v":-12.9},{"$f":"'Dados MM2'!AH12","v":"Bardella"},{"$f":"'Dados MM2'!AI12","v":-52}]
[12,{"$f":"'Dados MM2'!S13","v":"Ecorodovias"},{"$f":"'Dados MM2'!T13","v":0.54089399999999999},{"$f":"'Dados MM2'!V13","v":"Tim Part S/A"},{"$f":"'Dados MM2'!W13","v":4.4587049185473493},{"$f":"'Dados MM2'!Y14","v":"Sansuy"},{"$f":"'Dados MM2'!Z14","v":15.5},{"$f":"'Dados MM2'!AB13","v":"Forja Taurus"},{"$f":"'Dados MM2'!AC13","v":139.5},{"$f":"'Dados MM2'!AE13","v":"BRF SA"},{"$f":"'Dados MM2'!AF13","v":-12.6},{"$f":"'Dados MM2'!AH13","v":"Eternit"},{"$f":"'Dados MM2'!AI13","v":-50.4}]
[13,{"$f":"'Dados MM2'!S14","v":"Braskem"},{"$f":"'Dados MM2'!T14","v":0.48535299999999998},{"$f":"'Dados MM2'!V14","v":"Telef Brasil"},{"$f":"'Dados MM2'!W14","v":4.4720954599023512},{"$f":"'Dados MM2'!Y15","v":"Btgp Banco"},{"$f":"'Dados MM2'!Z15","v":15.4},{"$f":"'Dados MM2'!AB14","v":"Trisul"},{"$f":"'Dados MM2'!AC14","v":138.9},{"$f":"'Dados MM2'!AE14","v":"Renova"},{"$f":"'Dados MM2'!AF14","v":-11.5},{"$f":"'Dados MM2'!AH14","v":"Qualicorp"},{"$f":"'Dados MM2'!AI14","v":-48.2}]
[14,{"$f":"'Dados MM2'!S15","v":"Portobello"},{"$f":"'Dados MM2'!T15","v":0.47117100000000001},{"$f":"'Dados MM2'!V15","v":"Celesc"},{"$f":"'Dados MM2'!W15","v":4.5219044437019713},{"$f":"'Dados MM2'!Y16","v":"Kepler Weber"},{"$f":"'Dados MM2'!Z16","v":15},{"$f":"'Dados MM2'!AB15","v":"B2W Digital"},{"$f":"'Dados MM2'!AC15","v":135.9},{"$f":"'Dados MM2'!AE15","v":"Estacio Part"},{"$f":"'Dados MM2'!AF15","v":-11.4},{"$f":"'Dados MM2'!AH15","v":"Cielo"},{"$f":"'Dados MM2'!AI15","v":-47.6}]
[15,{"$f":"'Dados MM2'!S16","v":"Unipar"},{"$f":"'Dados MM2'!T16","v":0.454065},{"$f":"'Dados MM2'!V16","v":"Ferbasa"},{"$f":"'Dados MM2'!W16","v":4.5312097209720976},{"$f":"'Dados MM2'!Y17","v":"Pine"},{"$f":"'Dados MM2'!Z17","v":14.1},{"$f":"'Dados MM2'!AB16","v":"Excelsior"},{"$f":"'Dados MM2'!AC16","v":134.4},{"$f":"'Dados MM2'!AE16","v":"Even"},{"$f":"'Dados MM2'!AF16","v":-11.3},{"$f":"'Dados MM2'!AH16","v":"Saraiva Livr"},{"$f":"'Dados MM2'!AI16","v":-47.2}]
[16,{"$f":"'Dados MM2'!S17","v":"BBSeguridade"},{"$f":"'Dados MM2'!T17","v":0.39777099999999999},{"$f":"'Dados MM2'!V17","v":"Eucatex"},{"$f":"'Dados MM2'!W17","v":4.5486389316897791},{"$f":"'Dados MM2'!Y18","v":"Generalshopp"},{"$f":"'Dados MM2'!Z18","v":13.7},{"$f":"'Dados MM2'!AB17","v":"Cemig"},{"$f":"'Dados MM2'!AC17","v":125.2},{"$f":"'Dados MM2'!AE17","v":"JBS"},{"$f":"'Dados MM2'!AF17","v":-11},{"$f":"'Dados MM2'!AH17","v":"Bombril"},{"$f":"'Dados MM2'!AI17","v":-46}]
[17,{"$f":"'Dados MM2'!S18","v":"Locamerica"},{"$f":"'Dados MM2'!T18","v":0.39149500000000004},{"$f":"'Dados MM2'!V18","v":"Coteminas"},{"$f":"'Dados MM2'!W18","v":4.5719800108049702},{"$f":"'Dados MM2'!Y19","v":"Sinqia"},{"$f":"'Dados MM2'!Z19","v":13},{"$f":"'Dados MM2'!AB18","v":"Magaz Luiza"},{"$f":"'Dados MM2'!AC18","v":117.6},{"$f":"'Dados MM2'!AE18","v":"Bahema"},{"$f":"'Dados MM2'!AF18","v":-10.4},{"$f":"'Dados MM2'!AH18","v":"BRF SA"},{"$f":"'Dados MM2'!AI18","v":-43.8}]
[18,{"$f":"'Dados MM2'!S19","v":"Petrobras BR"},{"$f":"'Dados MM2'!T19","v":0.36177199999999998},{"$f":"'Dados MM2'!V19","v":"Portobello"},{"$f":"'Dados MM2'!W19","v":4.6428923611111115},{"$f":"'Dados MM2'!Y20","v":"Trisul"},{"$f":"'Dados MM2'!Z20","v":12.6},{"$f":"'Dados MM2'!AB19","v":"Bahema"},{"$f":"'Dados MM2'!AC19","v":112.7},{"$f":"'Dados MM2'!AE19","v":"Fleury"},{"$f":"'Dados MM2'!AF19","v":-10.199999999999999},{"$f":"'Dados MM2'!AH19","v":"Joao Fortes"},{"$f":"'Dados MM2'!AI19","v":-43.3}]
[19,{"$f":"'Dados MM2'!S20","v":"Cristal"},{"$f":"'Dados MM2'!T20","v":0.34552500000000003},{"$f":"'Dados MM2'!V20","v":"Cristal"},{"$f":"'Dados MM2'!W20","v":4.6888146426496222},{"$f":"'Dados MM2'!Y21","v":"Emae"},{"$f":"'Dados MM2'!Z21","v":12.4},{"$f":"'Dados MM2'!AB20","v":"Locamerica"},{"$f":"'Dados MM2'!AC20","v":112.4},{"$f":"'Dados MM2'!AE20","v":"BBSeguridade"},{"$f":"'Dados MM2'!AF20","v":-10},{"$f":"'Dados MM2'!AH20","v":"Triunfo Part"},{"$f":"'Dados MM2'!AI20","v":-41.6}]
[20,{"$f":"'Dados MM2'!S21","v":"Irbbrasil Re"},{"$f":"'Dados MM2'!T21","v":0.340333},{"$f":"'Dados MM2'!V21","v":"Qualicorp"},{"$f":"'Dados MM2'!W21","v":4.7223212738301559},{"$f":"'Dados MM2'!Y22","v":"Pomifrutas"},{"$f":"'Dados MM2'!Z22","v":11.8},{"$f":"'Dados MM2'!AB21","v":"Celesc"},{"$f":"'Dados MM2'!AC21","v":105.7},{"$f":"'Dados MM2'!AE21","v":"Portobello"},{"$f":"'Dados MM2'!AF21","v":-9.9},{"$f":"'Dados MM2'!AH21","v":"Ihpardini"},{"$f":"'Dados MM2'!AI21","v":-41.6}]
[21,{"$f":"'Dados MM2'!S22","v":"Engie Brasil"},{"$f":"'Dados MM2'!T22","v":0.33877099999999999},{"$f":"'Dados MM2'!V22","v":"Porto Seguro"},{"$f":"'Dados MM2'!W22","v":4.8928196369968529},{"$f":"'Dados MM2'!Y23","v":"Wiz S.A"},{"$f":"'Dados MM2'!Z23","v":11.7},{"$f":"'Dados MM2'!AB22","v":"Alper S.A."},{"$f":"'Dados MM2'!AC22","v":102.9},{"$f":"'Dados MM2'!AE22","v":"Rossi Resid"},{"$f":"'Dados MM2'!AF22","v":-9.8000000000000007},{"$f":"'Dados MM2'!AH22","v":"Tecnosolo"},{"$f":"'Dados MM2'!AI22","v":-40.6}]
[22,{"$f":"'Dados MM2'!S23","v":"Natura"},{"$f":"'Dados MM2'!T23","v":0.33545200000000003},{"$f":"'Dados MM2'!V23","v":"Braskem"},{"$f":"'Dados MM2'!W23","v":4.9637736902584688},{"$f":"'Dados MM2'!Y24","v":"Qgep Part"},{"$f":"'Dados MM2'!Z24","v":9.6999999999999993},{"$f":"'Dados MM2'!AB23","v":"IGB S/A"},{"$f":"'Dados MM2'!AC23","v":102.6},{"$f":"'Dados MM2'!AE23","v":"Marfrig"},{"$f":"'Dados MM2'!AF23","v":-9.5},{"$f":"'Dados MM2'!AH23","v":"Minerva"},{"$f":"'Dados MM2'!AI23","v":-40.1}]
[23,{"$f":"'Dados MM2'!S24","v":"Cvc Brasil"},{"$f":"'Dados MM2'!T24","v":0.33288899999999999},{"$f":"'Dados MM2'!V24","v":"Bombril"},{"$f":"'Dados MM2'!W24","v":5.0429501385041551},{"$f":"'Dados MM2'!Y25","v":"Totvs"},{"$f":"'Dados MM2'!Z25","v":9.6},{"$f":"'Dados MM2'!AB24","v":"Santanense"},{"$f":"'Dados MM2'!AC24","v":102.5},{"$f":"'Dados MM2'!AE24","v":"Tenda"},{"$f":"'Dados MM2'!AF24","v":-9.4},{"$f":"'Dados MM2'!AH24","v":"Profarma"},{"$f":"'Dados MM2'!AI24","v":-40}]
[24,{"$f":"'Dados MM2'!S25","v":"Brasilagro"},{"$f":"'Dados MM2'!T25","v":0.33271099999999998},{"$f":"'Dados MM2'!V25","v":"Petrorio"},{"$f":"'Dados MM2'!W25","v":5.2054977203647415},{"$f":"'Dados MM2'!Y26","v":"Plascar Part"},{"$f":"'Dados MM2'!Z26","v":9.6},{"$f":"'Dados MM2'!AB25","v":"Btgp Banco"},{"$f":"'Dados MM2'!AC25","v":97.9},{"$f":"'Dados MM2'!AE25","v":"MRV"},{"$f":"'Dados MM2'!AF25","v":-9.4},{"$f":"'Dados MM2'!AH25","v":"OSX Brasil"},{"$f":"'Dados MM2'!AI25","v":-39.9}]
[25,{"$f":"'Dados MM2'!S26","v":"Tegma"},{"$f":"'Dados MM2'!T26","v":0.33013700000000001},{"$f":"'Dados MM2'!V26","v":"Sid Nacional"},{"$f":"'Dados MM2'!W26","v":5.3208497980436995},{"$f":"'Dados MM2'!Y27","v":"Coelce"},{"$f":"'Dados MM2'!Z27","v":9.4},{"$f":"'Dados MM2'!AB26","v":"Banrisul"},{"$f":"'Dados MM2'!AC26","v":89.3},{"$f":"'Dados MM2'!AE26","v":"Sabesp"},{"$f":"'Dados MM2'!AF26","v":-9.3000000000000007},{"$f":"'Dados MM2'!AH26","v":"GPC Part"},{"$f":"'Dados MM2'!AI26","v":-39.4}]
["Fonte: Economática"]

{"sheet":"Setorial e ADRs","index":11,"n_rows":52,"n_cols":13,"rows_kept":52,"cut":false,"hidden":false,"merged":[[29,10,30,10],[29,11,30,11],[29,12,30,12],[29,1,30,1],[29,2,30,2],[29,3,30,3],[29,4,30,4],[29,5,30,5],[29,6,30,6],[29,7,30,7],[29,8,30,8],[29,9,30,9]]}
[null,"Setor","Patrimônio*","Valor de Mercado*","P/VPA","Rec. Líq. 2016*","Lucro Líq. 2016*","Ebitda 2016*","Dívida Líquida*","FV/Ebitda","ROE","Total de empresas","Cias com prejuízo"]
[null,"Agro ",{"$f":"SUMIFS('Dados setorial'!$G$2:$G$976,'Dados setorial'!$B$2:$B$976,'Setorial e ADRs'!B2)","v":4036.8399999999997},{"$f":"SUMIFS('Dados setorial'!$F$2:$F$976,'Dados setorial'!$B$2:$B$976,'Setorial e ADRs'!B2)","v":7434.79},{"$f":"AVERAGEIFS('Dados setorial'!$S$2:$S$976,'Dados setorial'!$B$2:$B$976,'Setorial e ADRs'!B2)","v":2.2659294364829909},{"$f":"SUMIFS('Dados setorial'!$I$2:$I$976,'Dados setorial'!$B$2:$B$976,'Setorial e ADRs'!B2)","v":8124.14},{"$f":"SUMIFS('Dados setorial'!$P$2:$P$976,'Dados setorial'!$B$2:$B$976,'Setorial e ADRs'!B2)","v":-382.34000000000003},{"$f":"SUMIFS('Dados setorial'!$X$2:$X$976,'Dados setorial'!$B$2:$B$976,'Setorial e ADRs'!B2)","v":1984.2},{"$f":"SUMIFS('Dados setorial'!$AG$2:$AG$976,'Dados setorial'!$B$2:$B$976,'Setorial e ADRs'!B2)","v":2066.8999999999996},{"$f":"AVERAGEIFS('Dados setorial'!$Z$2:$Z$976,'Dados setorial'!$B$2:$B$976,'Setorial e ADRs'!B2)","v":3.0084748897943028},{"$f":"AVERAGEIFS('Dados setorial'!$U$2:$U$976,'Dados setorial'!$B$2:$B$976,'Setorial e ADRs'!B2)","v":0.24158249999999998},{"$f":"COUNTIF('Dados setorial'!$B$2:$B$976,'Setorial e ADRs'!B2)","v":4},{"$f":"COUNTIFS('Dados setorial'!$B$2:$B$976,'Setorial e ADRs'!B2,'Dados setorial'!$P$2:$P$976,\"<0\")","v":2}]
[null,"Alimentos e Bebidas",{"$f":"SUMIFS('Dados setorial'!$G$2:$G$976,'Dados setorial'!$B$2:$B$976,'Setorial e ADRs'!B3)","v":100037.54000000001},{"$f":"SUMIFS('Dados setorial'!$F$2:$F$976,'Dados setorial'!$B$2:$B$976,'Setorial e ADRs'!B3)","v":355757.54999999993},{"$f":"AVERAGEIFS('Dados setorial'!$S$2:$S$976,'Dados setorial'!$B$2:$B$976,'Setorial e ADRs'!B3)","v":2.5804949771883878},{"$f":"SUMIFS('Dados setorial'!$I$2:$I$976,'Dados setorial'!$B$2:$B$976,'Setorial e ADRs'!B3)","v":316665.23999999993},{"$f":"SUMIFS('Dados setorial'!$P$2:$P$976,'Dados setorial'!$B$2:$B$976,'Setorial e ADRs'!B3)","v":7627.32},{"$f":"SUMIFS('Dados setorial'!$X$2:$X$976,'Dados setorial'!$B$2:$B$976,'Setorial e ADRs'!B3)","v":38204.6},{"$f":"SUMIFS('Dados setorial'!$AG$2:$AG$976,'Dados setorial'!$B$2:$B$976,'Setorial e ADRs'!B3)","v":39569.9},{"$f":"AVERAGEIFS('Dados setorial'!$Z$2:$Z$976,'Dados setorial'!$B$2:$B$976,'Setorial e ADRs'!B3)","v":11.061983613575832},{"$f":"AVERAGEIFS('Dados setorial'!$U$2:$U$976,'Dados setorial'!$B$2:$B$976,'Setorial e ADRs'!B3)","v":-1.8251741111111111},{"$f":"COUNTIF('Dados setorial'!$B$2:$B$976,'Setorial e ADRs'!B3)","v":11},{"$f":"COUNTIFS('Dados setorial'!$B$2:$B$976,'Setorial e ADRs'!B3,'Dados setorial'!$P$2:$P$976,\"<0\")","v":3}]
[null,"Comércio",{"$f":"SUMIFS('Dados setorial'!$G$2:$G$976,'Dados setorial'!$B$2:$B$976,'Setorial e ADRs'!B4)","v":49000.76},{"$f":"SUMIFS('Dados setorial'!$F$2:$F$976,'Dados setorial'!$B$2:$B$976,'Setorial e ADRs'!B4)","v":219038.29999999996},{"$f":"AVERAGEIFS('Dados setorial'!$S$2:$S$976,'Dados setorial'!$B$2:$B$976,'Setorial e ADRs'!B4)","v":4.309147501516768},{"$f":"SUMIFS('Dados setorial'!$I$2:$I$976,'Dados setorial'!$B$2:$B$976,'Setorial e ADRs'!B4)","v":192323.78},{"$f":"SUMIFS('Dados setorial'!$P$2:$P$976,'Dados setorial'!$B$2:$B$976,'Setorial e ADRs'!B4)","v":6724.7699999999995},{"$f":"SUMIFS('Dados setorial'!$X$2:$X$976,'Dados setorial'!$B$2:$B$976,'Setorial e ADRs'!B4)","v":16821.899999999998},{"$f":"SUMIFS('Dados setorial'!$AG$2:$AG$976,'Dados setorial'!$B$2:$B$976,'Setorial e ADRs'!B4)","v":16821.899999999998},{"$f":"AVERAGEIFS('Dados setorial'!$Z$2:$Z$976,'Dados setorial'!$B$2:$B$976,'Setorial e ADRs'!B4)","v":15.188976651903731},{"$f":"AVERAGEIFS('Dados setorial'!$U$2:$U$976,'Dados setorial'!$B$2:$B$976,'Setorial e ADRs'!B4)","v":0.11556535714285714},{"$f":"COUNTIF('Dados setorial'!$B$2:$B$976,'Setorial e ADRs'!B4)","v":15},{"$f":"COUNTIFS('Dados setorial'!$B$2:$B$976,'Setorial e ADRs'!B4,'Dados setorial'!$P$2:$P$976,\"<0\")","v":2}]
[null,"Construção",{"$f":"SUMIFS('Dados setorial'!$G$2:$G$976,'Dados setorial'!$B$2:$B$976,'Setorial e ADRs'!B5)","v":19995.37},{"$f":"SUMIFS('Dados setorial'!$F$2:$F$976,'Dados setorial'!$B$2:$B$976,'Setorial e ADRs'!B5)","v":25482.11},{"$f":"AVERAGEIFS('Dados setorial'!$S$2:$S$976,'Dados setorial'!$B$2:$B$976,'Setorial e ADRs'!B5)","v":1.0318726236590188},{"$f":"SUMIFS('Dados setorial'!$I$2:$I$976,'Dados setorial'!$B$2:$B$976,'Setorial e ADRs'!B5)","v":16819.359999999997},{"$f":"SUMIFS('Dados setorial'!$P$2:$P$976,'Dados setorial'!$B$2:$B$976,'Setorial e ADRs'!B5)","v":-1766.16},{"$f":"SUMIFS('Dados setorial'!$X$2:$X$976,'Dados setorial'!$B$2:$B$976,'Setorial e ADRs'!B5)","v":-231.79999999999987},{"$f":"SUMIFS('Dados setorial'!$AG$2:$AG$976,'Dados setorial'!$B$2:$B$976,'Setorial e ADRs'!B5)","v":-294.89999999999986},{"$f":"AVERAGEIFS('Dados setorial'!$Z$2:$Z$976,'Dados setorial'!$B$2:$B$976,'Setorial e ADRs'!B5)","v":32.86527749717321},{"$f":"AVERAGEIFS('Dados setorial'!$U$2:$U$976,'Dados setorial'!$B$2:$B$976,'Setorial e ADRs'!B5)","v":-0.1547442},{"$f":"COUNTIF('Dados setorial'!$B$2:$B$976,'Setorial e ADRs'!B5)","v":18},{"$f":"COUNTIFS('Dados setorial'!$B$2:$B$976,'Setorial e ADRs'!B5,'Dados setorial'!$P$2:$P$976,\"<0\")","v":11}]
[null,"Eletroeletrônicos",{"$f":"SUMIFS('Dados setorial'!$G$2:$G$976,'Dados setorial'!$B$2:$B$976,'Setorial e ADRs'!B6)","v":1870.5599999999995},{"$f":"SUMIFS('Dados setorial'!$F$2:$F$976,'Dados setorial'!$B$2:$B$976,'Setorial e ADRs'!B6)","v":6988.2300000000005},{"$f":"AVERAGEIFS('Dados setorial'!$S$2:$S$976,'Dados setorial'!$B$2:$B$976,'Setorial e ADRs'!B6)","v":1.8120455363761221},{"$f":"SUMIFS('Dados setorial'!$I$2:$I$976,'Dados setorial'!$B$2:$B$976,'Setorial e ADRs'!B6)","v":8145.3},{"$f":"SUMIFS('Dados setorial'!$P$2:$P$976,'Dados setorial'!$B$2:$B$976,'Setorial e ADRs'!B6)","v":180.14},{"$f":"SUMIFS('Dados setorial'!$X$2:$X$976,'Dados setorial'!$B$2:$B$976,'Setorial e ADRs'!B6)","v":516.1},{"$f":"SUMIFS('Dados setorial'!$AG$2:$AG$976,'Dados setorial'!$B$2:$B$976,'Setorial e ADRs'!B6)","v":516.1},{"$f":"AVERAGEIFS('Dados setorial'!$Z$2:$Z$976,'Dados setorial'!$B$2:$B$976,'Setorial e ADRs'!B6)","v":9.5776149925150058},{"$f":"AVERAGEIFS('Dados setorial'!$U$2:$U$976,'Dados setorial'!$B$2:$B$976,'Setorial e ADRs'!B6)","v":3.6195500000000005E-2},{"$f":"COUNTIF('Dados setorial'!$B$2:$B$976,'Setorial e ADRs'!B6)","v":3},{"$f":"COUNTIFS('Dados setorial'!$B$2:$B$976,'Setorial e ADRs'!B6,'Dados setorial'!$P$2:$P$976,\"<0\")","v":1}]
[null,"Energia Elétrica",{"$f":"SUMIFS('Dados setorial'!$G$2:$G$976,'Dados setorial'!$B$2:$B$976,'Setorial e ADRs'!B7)","v":186317.14999999997},{"$f":"SUMIFS('Dados setorial'!$F$2:$F$976,'Dados setorial'!$B$2:$B$976,'Setorial e ADRs'!B7)","v":297657.33999999997},{"$f":"AVERAGEIFS('Dados setorial'!$S$2:$S$976,'Dados setorial'!$B$2:$B$976,'Setorial e ADRs'!B7)","v":3.1949831973772911},{"$f":"SUMIFS('Dados setorial'!$I$2:$I$976,'Dados setorial'!$B$2:$B$976,'Setorial e ADRs'!B7)","v":186805.59},{"$f":"SUMIFS('Dados setorial'!$P$2:$P$976,'Dados setorial'!$B$2:$B$976,'Setorial e ADRs'!B7)","v":29528.519999999993},{"$f":"SUMIFS('Dados setorial'!$X$2:$X$976,'Dados setorial'!$B$2:$B$976,'Setorial e ADRs'!B7)","v":55509.799999999981},{"$f":"SUMIFS('Dados setorial'!$AG$2:$AG$976,'Dados setorial'!$B$2:$B$976,'Setorial e ADRs'!B7)","v":59818.699999999983},{"$f":"AVERAGEIFS('Dados setorial'!$Z$2:$Z$976,'Dados setorial'!$B$2:$B$976,'Setorial e ADRs'!B7)","v":13.947230639442388},{"$f":"AVERAGEIFS('Dados setorial'!$U$2:$U$976,'Dados setorial'!$B$2:$B$976,'Setorial e ADRs'!B7)","v":0.11056760714285714},{"$f":"COUNTIF('Dados setorial'!$B$2:$B$976,'Setorial e ADRs'!B7)","v":28},{"$f":"COUNTIFS('Dados setorial'!$B$2:$B$976,'Setorial e ADRs'!B7,'Dados setorial'!$P$2:$P$976,\"<0\")","v":1}]
[null,"Finanças e Seguros",{"$f":"SUMIFS('Dados setorial'!$G$2:$G$976,'Dados setorial'!$B$2:$B$976,'Setorial e ADRs'!B8)","v":510686.76999999996},{"$f":"SUMIFS('Dados setorial'!$F$2:$F$976,'Dados setorial'!$B$2:$B$976,'Setorial e ADRs'!B8)","v":1129301.99},{"$f":"AVERAGEIFS('Dados setorial'!$S$2:$S$976,'Dados setorial'!$B$2:$B$976,'Setorial e ADRs'!B8)","v":3.7516370928253973},{"$f":"SUMIFS('Dados setorial'!$I$2:$I$976,'Dados setorial'!$B$2:$B$976,'Setorial e ADRs'!B8)","v":559449.59},{"$f":"SUMIFS('Dados setorial'!$P$2:$P$976,'Dados setorial'!$B$2:$B$976,'Setorial e ADRs'!B8)","v":82503.87},{"$f":"SUMIFS('Dados setorial'!$X$2:$X$976,'Dados setorial'!$B$2:$B$976,'Setorial e ADRs'!B8)","v":5576.4},{"$f":"SUMIFS('Dados setorial'!$AG$2:$AG$976,'Dados setorial'!$B$2:$B$976,'Setorial e ADRs'!B8)","v":5576.4},{"$f":"AVERAGEIFS('Dados setorial'!$Z$2:$Z$976,'Dados setorial'!$B$2:$B$976,'Setorial e ADRs'!B8)","v":3.8488557064111943},{"$f":"AVERAGEIFS('Dados setorial'!$U$2:$U$976,'Dados setorial'!$B$2:$B$976,'Setorial e ADRs'!B8)","v":0.11340559090909091},{"$f":"COUNTIF('Dados setorial'!$B$2:$B$976,'Setorial e ADRs'!B8)","v":24},{"$f":"COUNTIFS('Dados setorial'!$B$2:$B$976,'Setorial e ADRs'!B8,'Dados setorial'!$P$2:$P$976,\"<0\")","v":3}]
[null,"Mineração",{"$f":"SUMIFS('Dados setorial'!$G$2:$G$976,'Dados setorial'!$B$2:$B$976,'Setorial e ADRs'!B9)","v":170165.33},{"$f":"SUMIFS('Dados setorial'!$F$2:$F$976,'Dados setorial'!$B$2:$B$976,'Setorial e ADRs'!B9)","v":261933.71},{"$f":"AVERAGEIFS('Dados setorial'!$S$2:$S$976,'Dados setorial'!$B$2:$B$976,'Setorial e ADRs'!B9)","v":2.9096253073527145},{"$f":"SUMIFS('Dados setorial'!$I$2:$I$976,'Dados setorial'!$B$2:$B$976,'Setorial e ADRs'!B9)","v":136076.93000000002},{"$f":"SUMIFS('Dados setorial'!$P$2:$P$976,'Dados setorial'!$B$2:$B$976,'Setorial e ADRs'!B9)","v":25531.329999999998},{"$f":"SUMIFS('Dados setorial'!$X$2:$X$976,'Dados setorial'!$B$2:$B$976,'Setorial e ADRs'!B9)","v":55565.2},{"$f":"SUMIFS('Dados setorial'!$AG$2:$AG$976,'Dados setorial'!$B$2:$B$976,'Setorial e ADRs'!B9)","v":55565.2},{"$f":"AVERAGEIFS('Dados setorial'!$Z$2:$Z$976,'Dados setorial'!$B$2:$B$976,'Setorial e ADRs'!B9)","v":0.94336289973725074},{"$f":"AVERAGEIFS('Dados setorial'!$U$2:$U$976,'Dados setorial'!$B$2:$B$976,'Setorial e ADRs'!B9)","v":-7.6935666666666666E-2},{"$f":"COUNTIF('Dados setorial'!$B$2:$B$976,'Setorial e ADRs'!B9)","v":4},{"$f":"COUNTIFS('Dados setorial'!$B$2:$B$976,'Setorial e ADRs'!B9,'Dados setorial'!$P$2:$P$976,\"<0\")","v":2}]
[null,"Máquinas Industriais",{"$f":"SUMIFS('Dados setorial'!$G$2:$G$976,'Dados setorial'!$B$2:$B$976,'Setorial e ADRs'!B10)","v":8574.630000000001},{"$f":"SUMIFS('Dados setorial'!$F$2:$F$976,'Dados setorial'!$B$2:$B$976,'Setorial e ADRs'!B10)","v":38655.679999999993},{"$f":"AVERAGEIFS('Dados setorial'!$S$2:$S$976,'Dados setorial'!$B$2:$B$976,'Setorial e ADRs'!B10)","v":2.8095829044498553},{"$f":"SUMIFS('Dados setorial'!$I$2:$I$976,'Dados setorial'!$B$2:$B$976,'Setorial e ADRs'!B10)","v":13910.449999999999},{"$f":"SUMIFS('Dados setorial'!$P$2:$P$976,'Dados setorial'!$B$2:$B$976,'Setorial e ADRs'!B10)","v":1403.85},{"$f":"SUMIFS('Dados setorial'!$X$2:$X$976,'Dados setorial'!$B$2:$B$976,'Setorial e ADRs'!B10)","v":2021.1999999999998},{"$f":"SUMIFS('Dados setorial'!$AG$2:$AG$976,'Dados setorial'!$B$2:$B$976,'Setorial e ADRs'!B10)","v":1943.9999999999998},{"$f":"AVERAGEIFS('Dados setorial'!$Z$2:$Z$976,'Dados setorial'!$B$2:$B$976,'Setorial e ADRs'!B10)","v":8.4265511552255745},{"$f":"AVERAGEIFS('Dados setorial'!$U$2:$U$976,'Dados setorial'!$B$2:$B$976,'Setorial e ADRs'!B10)","v":-5.0954250000000006E-2},{"$f":"COUNTIF('Dados setorial'!$B$2:$B$976,'Setorial e ADRs'!B10)","v":4},{"$f":"COUNTIFS('Dados setorial'!$B$2:$B$976,'Setorial e ADRs'!B10,'Dados setorial'!$P$2:$P$976,\"<0\")","v":1}]
[null,"Outros",{"$f":"SUMIFS('Dados setorial'!$G$2:$G$976,'Dados setorial'!$B$2:$B$976,'Setorial e ADRs'!B11)","v":199503.10000000003},{"$f":"SUMIFS('Dados setorial'!$F$2:$F$976,'Dados setorial'!$B$2:$B$976,'Setorial e ADRs'!B11)","v":396791.00999999989},{"$f":"AVERAGEIFS('Dados setorial'!$S$2:$S$976,'Dados setorial'!$B$2:$B$976,'Setorial e ADRs'!B11)","v":3.0178041350703833},{"$f":"SUMIFS('Dados setorial'!$I$2:$I$976,'Dados setorial'!$B$2:$B$976,'Setorial e ADRs'!B11)","v":109571.56000000003},{"$f":"SUMIFS('Dados setorial'!$P$2:$P$976,'Dados setorial'!$B$2:$B$976,'Setorial e ADRs'!B11)","v":25073.68},{"$f":"SUMIFS('Dados setorial'!$X$2:$X$976,'Dados setorial'!$B$2:$B$976,'Setorial e ADRs'!B11)","v":42714.900000000009},{"$f":"SUMIFS('Dados setorial'!$AG$2:$AG$976,'Dados setorial'!$B$2:$B$976,'Setorial e ADRs'!B11)","v":42586.600000000006},{"$f":"AVERAGEIFS('Dados setorial'!$Z$2:$Z$976,'Dados setorial'!$B$2:$B$976,'Setorial e ADRs'!B11)","v":60.497862130813431},{"$f":"AVERAGEIFS('Dados setorial'!$U$2:$U$976,'Dados setorial'!$B$2:$B$976,'Setorial e ADRs'!B11)","v":0.20494037735849055},{"$f":"COUNTIF('Dados setorial'!$B$2:$B$976,'Setorial e ADRs'!B11)","v":56},{"$f":"COUNTIFS('Dados setorial'!$B$2:$B$976,'Setorial e ADRs'!B11,'Dados setorial'!$P$2:$P$976,\"<0\")","v":10}]
[null,"Papel e Celulose",{"$f":"SUMIFS('Dados setorial'!$G$2:$G$976,'Dados setorial'!$B$2:$B$976,'Setorial e ADRs'!B12)","v":18304.25},{"$f":"SUMIFS('Dados setorial'!$F$2:$F$976,'Dados setorial'!$B$2:$B$976,'Setorial e ADRs'!B12)","v":82145.38},{"$f":"AVERAGEIFS('Dados setorial'!$S$2:$S$976,'Dados setorial'!$B$2:$B$976,'Setorial e ADRs'!B12)","v":9.7367682339007615},{"$f":"SUMIFS('Dados setorial'!$I$2:$I$976,'Dados setorial'!$B$2:$B$976,'Setorial e ADRs'!B12)","v":23453.79},{"$f":"SUMIFS('Dados setorial'!$P$2:$P$976,'Dados setorial'!$B$2:$B$976,'Setorial e ADRs'!B12)","v":455.79999999999995},{"$f":"SUMIFS('Dados setorial'!$X$2:$X$976,'Dados setorial'!$B$2:$B$976,'Setorial e ADRs'!B12)","v":11226},{"$f":"SUMIFS('Dados setorial'!$AG$2:$AG$976,'Dados setorial'!$B$2:$B$976,'Setorial e ADRs'!B12)","v":11226},{"$f":"AVERAGEIFS('Dados setorial'!$Z$2:$Z$976,'Dados setorial'!$B$2:$B$976,'Setorial e ADRs'!B12)","v":8.9683112806447394},{"$f":"AVERAGEIFS('Dados setorial'!$U$2:$U$976,'Dados setorial'!$B$2:$B$976,'Setorial e ADRs'!B12)","v":2.6613499999999998E-2},{"$f":"COUNTIF('Dados setorial'!$B$2:$B$976,'Setorial e ADRs'!B12)","v":2},{"$f":"COUNTIFS('Dados setorial'!$B$2:$B$976,'Setorial e ADRs'!B12,'Dados setorial'!$P$2:$P$976,\"<0\")","v":0}]
[null,"Petróleo e Gás",{"$f":"SUMIFS('Dados setorial'!$G$2:$G$976,'Dados setorial'!$B$2:$B$976,'Setorial e ADRs'!B13)","v":310373.98},{"$f":"SUMIFS('Dados setorial'!$F$2:$F$976,'Dados setorial'!$B$2:$B$976,'Setorial e ADRs'!B13)","v":477170.77000000008},{"$f":"AVERAGEIFS('Dados setorial'!$S$2:$S$976,'Dados setorial'!$B$2:$B$976,'Setorial e ADRs'!B13)","v":2.2914763604194222},{"$f":"SUMIFS('Dados setorial'!$I$2:$I$976,'Dados setorial'!$B$2:$B$976,'Setorial e ADRs'!B13)","v":557627.48},{"$f":"SUMIFS('Dados setorial'!$P$2:$P$976,'Dados setorial'!$B$2:$B$976,'Setorial e ADRs'!B13)","v":33073.29},{"$f":"SUMIFS('Dados setorial'!$X$2:$X$976,'Dados setorial'!$B$2:$B$976,'Setorial e ADRs'!B13)","v":119873.5},{"$f":"SUMIFS('Dados setorial'!$AG$2:$AG$976,'Dados setorial'!$B$2:$B$976,'Setorial e ADRs'!B13)","v":119699.5},{"$f":"AVERAGEIFS('Dados setorial'!$Z$2:$Z$976,'Dados setorial'!$B$2:$B$976,'Setorial e ADRs'!B13)","v":5.4006060009117665},{"$f":"AVERAGEIFS('Dados setorial'!$U$2:$U$976,'Dados setorial'!$B$2:$B$976,'Setorial e ADRs'!B13)","v":1.0629374999999996E-2},{"$f":"COUNTIF('Dados setorial'!$B$2:$B$976,'Setorial e ADRs'!B13)","v":9},{"$f":"COUNTIFS('Dados setorial'!$B$2:$B$976,'Setorial e ADRs'!B13,'Dados setorial'!$P$2:$P$976,\"<0\")","v":1}]
[null,"Química",{"$f":"SUMIFS('Dados setorial'!$G$2:$G$976,'Dados setorial'!$B$2:$B$976,'Setorial e ADRs'!B14)","v":8966.17},{"$f":"SUMIFS('Dados setorial'!$F$2:$F$976,'Dados setorial'!$B$2:$B$976,'Setorial e ADRs'!B14)","v":48574.060000000005},{"$f":"AVERAGEIFS('Dados setorial'!$S$2:$S$976,'Dados setorial'!$B$2:$B$976,'Setorial e ADRs'!B14)","v":3.0351039680298579},{"$f":"SUMIFS('Dados setorial'!$I$2:$I$976,'Dados setorial'!$B$2:$B$976,'Setorial e ADRs'!B14)","v":68250.64},{"$f":"SUMIFS('Dados setorial'!$P$2:$P$976,'Dados setorial'!$B$2:$B$976,'Setorial e ADRs'!B14)","v":2973.2599999999998},{"$f":"SUMIFS('Dados setorial'!$X$2:$X$976,'Dados setorial'!$B$2:$B$976,'Setorial e ADRs'!B14)","v":12465.900000000001},{"$f":"SUMIFS('Dados setorial'!$AG$2:$AG$976,'Dados setorial'!$B$2:$B$976,'Setorial e ADRs'!B14)","v":12465.900000000001},{"$f":"AVERAGEIFS('Dados setorial'!$Z$2:$Z$976,'Dados setorial'!$B$2:$B$976,'Setorial e ADRs'!B14)","v":7.0592324417187937},{"$f":"AVERAGEIFS('Dados setorial'!$U$2:$U$976,'Dados setorial'!$B$2:$B$976,'Setorial e ADRs'!B14)","v":-0.52030283333333338},{"$f":"COUNTIF('Dados setorial'!$B$2:$B$976,'Setorial e ADRs'!B14)","v":7},{"$f":"COUNTIFS('Dados setorial'!$B$2:$B$976,'Setorial e ADRs'!B14,'Dados setorial'!$P$2:$P$976,\"<0\")","v":1}]
[null,"Siderurgia e Metalurgia",{"$f":"SUMIFS('Dados setorial'!$G$2:$G$976,'Dados setorial'!$B$2:$B$976,'Setorial e ADRs'!B15)","v":60551.07},{"$f":"SUMIFS('Dados setorial'!$F$2:$F$976,'Dados setorial'!$B$2:$B$976,'Setorial e ADRs'!B15)","v":71180.320000000022},{"$f":"AVERAGEIFS('Dados setorial'!$S$2:$S$976,'Dados setorial'!$B$2:$B$976,'Setorial e ADRs'!B15)","v":1.0732247065864058},{"$f":"SUMIFS('Dados setorial'!$I$2:$I$976,'Dados setorial'!$B$2:$B$976,'Setorial e ADRs'!B15)","v":138238.91},{"$f":"SUMIFS('Dados setorial'!$P$2:$P$976,'Dados setorial'!$B$2:$B$976,'Setorial e ADRs'!B15)","v":8750.159999999998},{"$f":"SUMIFS('Dados setorial'!$X$2:$X$976,'Dados setorial'!$B$2:$B$976,'Setorial e ADRs'!B15)","v":23115.000000000004},{"$f":"SUMIFS('Dados setorial'!$AG$2:$AG$976,'Dados setorial'!$B$2:$B$976,'Setorial e ADRs'!B15)","v":23115.000000000004},{"$f":"AVERAGEIFS('Dados setorial'!$Z$2:$Z$976,'Dados setorial'!$B$2:$B$976,'Setorial e ADRs'!B15)","v":8.2975429589665559},{"$f":"AVERAGEIFS('Dados setorial'!$U$2:$U$976,'Dados setorial'!$B$2:$B$976,'Setorial e ADRs'!B15)","v":-1.425719999999998E-2},{"$f":"COUNTIF('Dados setorial'!$B$2:$B$976,'Setorial e ADRs'!B15)","v":15},{"$f":"COUNTIFS('Dados setorial'!$B$2:$B$976,'Setorial e ADRs'!B15,'Dados setorial'!$P$2:$P$976,\"<0\")","v":5}]
[null,"Software e Dados",{"$f":"SUMIFS('Dados setorial'!$G$2:$G$976,'Dados setorial'!$B$2:$B$976,'Setorial e ADRs'!B16)","v":13633.69},{"$f":"SUMIFS('Dados setorial'!$F$2:$F$976,'Dados setorial'!$B$2:$B$976,'Setorial e ADRs'!B16)","v":38464.58},{"$f":"AVERAGEIFS('Dados setorial'!$S$2:$S$976,'Dados setorial'!$B$2:$B$976,'Setorial e ADRs'!B16)","v":4.3620036104642574},{"$f":"SUMIFS('Dados setorial'!$I$2:$I$976,'Dados setorial'!$B$2:$B$976,'Setorial e ADRs'!B16)","v":14833.78},{"$f":"SUMIFS('Dados setorial'!$P$2:$P$976,'Dados setorial'!$B$2:$B$976,'Setorial e ADRs'!B16)","v":3475.25},{"$f":"SUMIFS('Dados setorial'!$X$2:$X$976,'Dados setorial'!$B$2:$B$976,'Setorial e ADRs'!B16)","v":5078.3},{"$f":"SUMIFS('Dados setorial'!$AG$2:$AG$976,'Dados setorial'!$B$2:$B$976,'Setorial e ADRs'!B16)","v":5078.3},{"$f":"AVERAGEIFS('Dados setorial'!$Z$2:$Z$976,'Dados setorial'!$B$2:$B$976,'Setorial e ADRs'!B16)","v":22.487141058953455},{"$f":"AVERAGEIFS('Dados setorial'!$U$2:$U$976,'Dados setorial'!$B$2:$B$976,'Setorial e ADRs'!B16)","v":9.4137000000000012E-2},{"$f":"COUNTIF('Dados setorial'!$B$2:$B$976,'Setorial e ADRs'!B16)","v":4},{"$f":"COUNTIFS('Dados setorial'!$B$2:$B$976,'Setorial e ADRs'!B16,'Dados setorial'!$P$2:$P$976,\"<0\")","v":0}]
[null,"Telecom",{"$f":"SUMIFS('Dados setorial'!$G$2:$G$976,'Dados setorial'!$B$2:$B$976,'Setorial e ADRs'!B17)","v":117759.15999999999},{"$f":"SUMIFS('Dados setorial'!$F$2:$F$976,'Dados setorial'!$B$2:$B$976,'Setorial e ADRs'!B17)","v":117670.18999999999},{"$f":"AVERAGEIFS('Dados setorial'!$S$2:$S$976,'Dados setorial'!$B$2:$B$976,'Setorial e ADRs'!B17)","v":1.6843911028646019},{"$f":"SUMIFS('Dados setorial'!$I$2:$I$976,'Dados setorial'!$B$2:$B$976,'Setorial e ADRs'!B17)","v":60643.72},{"$f":"SUMIFS('Dados setorial'!$P$2:$P$976,'Dados setorial'!$B$2:$B$976,'Setorial e ADRs'!B17)","v":11248.51},{"$f":"SUMIFS('Dados setorial'!$X$2:$X$976,'Dados setorial'!$B$2:$B$976,'Setorial e ADRs'!B17)","v":24128},{"$f":"SUMIFS('Dados setorial'!$AG$2:$AG$976,'Dados setorial'!$B$2:$B$976,'Setorial e ADRs'!B17)","v":26681.100000000002},{"$f":"AVERAGEIFS('Dados setorial'!$Z$2:$Z$976,'Dados setorial'!$B$2:$B$976,'Setorial e ADRs'!B17)","v":-3.6046506162296597},{"$f":"AVERAGEIFS('Dados setorial'!$U$2:$U$976,'Dados setorial'!$B$2:$B$976,'Setorial e ADRs'!B17)","v":0.69065774999999996},{"$f":"COUNTIF('Dados setorial'!$B$2:$B$976,'Setorial e ADRs'!B17)","v":4},{"$f":"COUNTIFS('Dados setorial'!$B$2:$B$976,'Setorial e ADRs'!B17,'Dados setorial'!$P$2:$P$976,\"<0\")","v":1}]
[null,"Têxtil",{"$f":"SUMIFS('Dados setorial'!$G$2:$G$976,'Dados setorial'!$B$2:$B$976,'Setorial e ADRs'!B18)","v":17160.48},{"$f":"SUMIFS('Dados setorial'!$F$2:$F$976,'Dados setorial'!$B$2:$B$976,'Setorial e ADRs'!B18)","v":39956.460000000006},{"$f":"AVERAGEIFS('Dados setorial'!$S$2:$S$976,'Dados setorial'!$B$2:$B$976,'Setorial e ADRs'!B18)","v":2.091899511396766},{"$f":"SUMIFS('Dados setorial'!$I$2:$I$976,'Dados setorial'!$B$2:$B$976,'Setorial e ADRs'!B18)","v":21167.570000000003},{"$f":"SUMIFS('Dados setorial'!$P$2:$P$976,'Dados setorial'!$B$2:$B$976,'Setorial e ADRs'!B18)","v":2719.44},{"$f":"SUMIFS('Dados setorial'!$X$2:$X$976,'Dados setorial'!$B$2:$B$976,'Setorial e ADRs'!B18)","v":4077.8},{"$f":"SUMIFS('Dados setorial'!$AG$2:$AG$976,'Dados setorial'!$B$2:$B$976,'Setorial e ADRs'!B18)","v":4783.9000000000015},{"$f":"AVERAGEIFS('Dados setorial'!$Z$2:$Z$976,'Dados setorial'!$B$2:$B$976,'Setorial e ADRs'!B18)","v":6.2597168158548957},{"$f":"AVERAGEIFS('Dados setorial'!$U$2:$U$976,'Dados setorial'!$B$2:$B$976,'Setorial e ADRs'!B18)","v":0.31745664285714292},{"$f":"COUNTIF('Dados setorial'!$B$2:$B$976,'Setorial e ADRs'!B18)","v":17},{"$f":"COUNTIFS('Dados setorial'!$B$2:$B$976,'Setorial e ADRs'!B18,'Dados setorial'!$P$2:$P$976,\"<0\")","v":3}]
[null,"Transportes",{"$f":"SUMIFS('Dados setorial'!$G$2:$G$976,'Dados setorial'!$B$2:$B$976,'Setorial e ADRs'!B19)","v":18219.13},{"$f":"SUMIFS('Dados setorial'!$F$2:$F$976,'Dados setorial'!$B$2:$B$976,'Setorial e ADRs'!B19)","v":93182.689999999988},{"$f":"AVERAGEIFS('Dados setorial'!$S$2:$S$976,'Dados setorial'!$B$2:$B$976,'Setorial e ADRs'!B19)","v":4.1090963008379626},{"$f":"SUMIFS('Dados setorial'!$I$2:$I$976,'Dados setorial'!$B$2:$B$976,'Setorial e ADRs'!B19)","v":52033.950000000004},{"$f":"SUMIFS('Dados setorial'!$P$2:$P$976,'Dados setorial'!$B$2:$B$976,'Setorial e ADRs'!B19)","v":1272.3},{"$f":"SUMIFS('Dados setorial'!$X$2:$X$976,'Dados setorial'!$B$2:$B$976,'Setorial e ADRs'!B19)","v":14233.9},{"$f":"SUMIFS('Dados setorial'!$AG$2:$AG$976,'Dados setorial'!$B$2:$B$976,'Setorial e ADRs'!B19)","v":15518.4},{"$f":"AVERAGEIFS('Dados setorial'!$Z$2:$Z$976,'Dados setorial'!$B$2:$B$976,'Setorial e ADRs'!B19)","v":9.2031228184612335},{"$f":"AVERAGEIFS('Dados setorial'!$U$2:$U$976,'Dados setorial'!$B$2:$B$976,'Setorial e ADRs'!B19)","v":0.34392249999999996},{"$f":"COUNTIF('Dados setorial'!$B$2:$B$976,'Setorial e ADRs'!B19)","v":10},{"$f":"COUNTIFS('Dados setorial'!$B$2:$B$976,'Setorial e ADRs'!B19,'Dados setorial'!$P$2:$P$976,\"<0\")","v":1}]
[null,"Veículos e peças",{"$f":"SUMIFS('Dados setorial'!$G$2:$G$976,'Dados setorial'!$B$2:$B$976,'Setorial e ADRs'!B20)","v":25782.260000000002},{"$f":"SUMIFS('Dados setorial'!$F$2:$F$976,'Dados setorial'!$B$2:$B$976,'Setorial e ADRs'!B20)","v":30989.420000000002},{"$f":"AVERAGEIFS('Dados setorial'!$S$2:$S$976,'Dados setorial'!$B$2:$B$976,'Setorial e ADRs'!B20)","v":1.4999294062699986},{"$f":"SUMIFS('Dados setorial'!$I$2:$I$976,'Dados setorial'!$B$2:$B$976,'Setorial e ADRs'!B20)","v":46656.880000000005},{"$f":"SUMIFS('Dados setorial'!$P$2:$P$976,'Dados setorial'!$B$2:$B$976,'Setorial e ADRs'!B20)","v":327.40000000000003},{"$f":"SUMIFS('Dados setorial'!$X$2:$X$976,'Dados setorial'!$B$2:$B$976,'Setorial e ADRs'!B20)","v":4408.7},{"$f":"SUMIFS('Dados setorial'!$AG$2:$AG$976,'Dados setorial'!$B$2:$B$976,'Setorial e ADRs'!B20)","v":4408.7},{"$f":"AVERAGEIFS('Dados setorial'!$Z$2:$Z$976,'Dados setorial'!$B$2:$B$976,'Setorial e ADRs'!B20)","v":5.8281126324738919},{"$f":"AVERAGEIFS('Dados setorial'!$U$2:$U$976,'Dados setorial'!$B$2:$B$976,'Setorial e ADRs'!B20)","v":0.11238175},{"$f":"COUNTIF('Dados setorial'!$B$2:$B$976,'Setorial e ADRs'!B20)","v":10},{"$f":"COUNTIFS('Dados setorial'!$B$2:$B$976,'Setorial e ADRs'!B20,'Dados setorial'!$P$2:$P$976,\"<0\")","v":3}]
[null,"Média**/Soma",{"$f":"SUM(C2:C20)","v":1840938.2399999998},{"$f":"SUM(D2:D20)","v":3738374.5799999996},{"$f":"AVERAGE(E2:E20)","v":3.029842942793104},{"$f":"SUM(F2:F20)","v":2530798.66},{"$f":"SUM(G2:G20)","v":240720.38999999998},{"$f":"SUM(H2:H20)","v":437289.60000000003},{"$f":"SUM(I2:I20)","v":447147.6},12.066596082544612,-1.1805937405298549E-2,{"$f":"SUM(L2:L20)","v":245},{"$f":"SUM(M2:M20)","v":51}]
[null,"* Total em R$ milhões"]
[null,"** Relação P/VPA, FV/Ebitda e ROE são médias"]
[]
[]
[]
[]
[]
[]
[null,"EMPRESA","Conversão Ações/ADR","Cotação US$*","Oscil. Mês (%)*","Oscil. Ano (%)","Oscil. 2017 (%)","Oscil. 2016 (%)"," Mín. 52 semanas","Máx. 52 semanas","Volume mês US$ milhões","Títulos neg. mês milhões","Código"]
[]
[null,{"$f":"IF('colar adrs'!Q3=\"erro\",\"erro\",IF('colar adrs'!A3='colar adrs'!O3,'colar adrs'!A3&'colar adrs'!AS3&'colar adrs'!B3,\"erro\"))","v":"Ambev S/A ON"},{"$f":"IF(LEFT(B32,2)=LEFT('colar adrs'!A3,2),'colar adrs'!P3,\"Erro\")","v":1},{"$f":"'colar adrs'!D3","v":4.3},{"$f":"'colar adrs'!E3","v":-5.0999999999999996},{"$f":"'colar adrs'!F3","v":9.6999999999999993},{"$f":"'colar adrs'!G3","v":-39.299999999999997},{"$f":"'colar adrs'!H3","v":31.6},{"$f":"'colar adrs'!I3","v":3.77},{"$f":"'colar adrs'!J3","v":7.35},{"$f":"'colar adrs'!K3","v":4020},{"$f":"'colar adrs'!L3","v":902.5},{"$f":"'colar adrs'!M3","v":"ABEV"}]
[null,{"$f":"IF('colar adrs'!Q4=\"erro\",\"erro\",IF('colar adrs'!A4='colar adrs'!O4,'colar adrs'!A4&'colar adrs'!AS4&'colar adrs'!B4,\"erro\"))","v":"Bradesco PN"},{"$f":"IF(LEFT(B33,2)=LEFT('colar adrs'!A4,2),'colar adrs'!P4,\"Erro\")","v":1},{"$f":"'colar adrs'!D4","v":10.91},{"$f":"'colar adrs'!E4","v":-5},{"$f":"'colar adrs'!F4","v":10.3},{"$f":"'colar adrs'!G4","v":6.2},{"$f":"'colar adrs'!H4","v":29.3},{"$f":"'colar adrs'!I4","v":6.4950000000000001},{"$f":"'colar adrs'!J4","v":12.555},{"$f":"'colar adrs'!K4","v":5143},{"$f":"'colar adrs'!L4","v":454.9},{"$f":"'colar adrs'!M4","v":"BBD"}]
[null,{"$f":"IF('colar adrs'!Q5=\"erro\",\"erro\",IF('colar adrs'!A5='colar adrs'!O5,'colar adrs'!A5&'colar adrs'!AS5&'colar adrs'!B5,\"erro\"))","v":"Braskem PNA"},{"$f":"IF(LEFT(B34,2)=LEFT('colar adrs'!A5,2),'colar adrs'!P5,\"Erro\")","v":2},{"$f":"'colar adrs'!D5","v":25.82},{"$f":"'colar adrs'!E5","v":-10.4},{"$f":"'colar adrs'!F5","v":5.6},{"$f":"'colar adrs'!G5","v":-6.9},{"$f":"'colar adrs'!H5","v":23.8},{"$f":"'colar adrs'!I5","v":21.32},{"$f":"'colar adrs'!J5","v":30.52},{"$f":"'colar adrs'!K5","v":234},{"$f":"'colar adrs'!L5","v":8.3000000000000007},{"$f":"'colar adrs'!M5","v":"BAK"}]
[null,{"$f":"IF('colar adrs'!Q6=\"erro\",\"erro\",IF('colar adrs'!A6='colar adrs'!O6,'colar adrs'!A6&'colar adrs'!AS6&'colar adrs'!B6,\"erro\"))","v":"BRF SA ON"},{"$f":"IF(LEFT(B35,2)=LEFT('colar adrs'!A6,2),'colar adrs'!P6,\"Erro\")","v":1},{"$f":"'colar adrs'!D6","v":5.82},{"$f":"'colar adrs'!E6","v":6.2},{"$f":"'colar adrs'!F6","v":2.5},{"$f":"'colar adrs'!G6","v":-49.6},{"$f":"'colar adrs'!H6","v":-23.7},{"$f":"'colar adrs'!I6","v":4.6500000000000004},{"$f":"'colar adrs'!J6","v":7.64},{"$f":"'colar adrs'!K6","v":670},{"$f":"'colar adrs'!L6","v":118.5},{"$f":"'colar adrs'!M6","v":"BRFS"}]
[null,{"$f":"IF('colar adrs'!Q7=\"erro\",\"erro\",IF('colar adrs'!A7='colar adrs'!O7,'colar adrs'!A7&'colar adrs'!AS7&'colar adrs'!B7,\"erro\"))","v":"Cemig PN"},{"$f":"IF(LEFT(B36,2)=LEFT('colar adrs'!A7,2),'colar adrs'!P7,\"Erro\")","v":1},{"$f":"'colar adrs'!D7","v":3.57},{"$f":"'colar adrs'!E7","v":-6.5},{"$f":"'colar adrs'!F7","v":0.3},{"$f":"'colar adrs'!G7","v":72.8},{"$f":"'colar adrs'!H7","v":-9.6},{"$f":"'colar adrs'!I7","v":1.56},{"$f":"'colar adrs'!J7","v":3.98},{"$f":"'colar adrs'!K7","v":424},{"$f":"'colar adrs'!L7","v":114.6},{"$f":"'colar adrs'!M7","v":"CIG"}]
[null,{"$f":"IF('colar adrs'!Q8=\"erro\",\"erro\",IF('colar adrs'!A8='colar adrs'!O8,'colar adrs'!A8&'colar adrs'!AS8&'colar adrs'!B8,\"erro\"))","v":"Copel PNB"},{"$f":"IF(LEFT(B37,2)=LEFT('colar adrs'!A8,2),'colar adrs'!P8,\"Erro\")","v":1},{"$f":"'colar adrs'!D8","v":9.2799999999999994},{"$f":"'colar adrs'!E8","v":-3.5},{"$f":"'colar adrs'!F8","v":18.5},{"$f":"'colar adrs'!G8","v":2.6},{"$f":"'colar adrs'!H8","v":-10},{"$f":"'colar adrs'!I8","v":4.7},{"$f":"'colar adrs'!J8","v":10.49},{"$f":"'colar adrs'!K8","v":125},{"$f":"'colar adrs'!L8","v":13.1},{"$f":"'colar adrs'!M8","v":"ELP"}]
[null,{"$f":"IF('colar adrs'!Q9=\"erro\",\"erro\",IF('colar adrs'!A9='colar adrs'!O9,'colar adrs'!A9&'colar adrs'!AS9&'colar adrs'!B9,\"erro\"))","v":"CPFL Energia ON"},{"$f":"IF(LEFT(B38,2)=LEFT('colar adrs'!A9,2),'colar adrs'!P9,\"Erro\")","v":2},{"$f":"'colar adrs'!D9","v":15.52},{"$f":"'colar adrs'!E9","v":-5.5},{"$f":"'colar adrs'!F9","v":4.9000000000000004},{"$f":"'colar adrs'!G9","v":28.7},{"$f":"'colar adrs'!H9","v":-25.3},{"$f":"'colar adrs'!I9","v":10.36},{"$f":"'colar adrs'!J9","v":18.170000000000002},{"$f":"'colar adrs'!K9","v":8},{"$f":"'colar adrs'!L9","v":0.5},{"$f":"'colar adrs'!M9","v":"CPL"}]
[null,{"$f":"IF('colar adrs'!Q10=\"erro\",\"erro\",IF('colar adrs'!A10='colar adrs'!O10,'colar adrs'!A10&'colar adrs'!AS10&'colar adrs'!B10,\"erro\"))","v":"Embraer ON"},{"$f":"IF(LEFT(B39,2)=LEFT('colar adrs'!A10,2),'colar adrs'!P10,\"Erro\")","v":4},{"$f":"'colar adrs'!D10","v":19.010000000000002},{"$f":"'colar adrs'!E10","v":-7.4},{"$f":"'colar adrs'!F10","v":-14.1},{"$f":"'colar adrs'!G10","v":-7.5},{"$f":"'colar adrs'!H10","v":24.3},{"$f":"'colar adrs'!I10","v":17.989999999999998},{"$f":"'colar adrs'!J10","v":28.32},{"$f":"'colar adrs'!K10","v":554},{"$f":"'colar adrs'!L10","v":27.8},{"$f":"'colar adrs'!M10","v":"ERJ"}]
[null,{"$f":"IF('colar adrs'!Q11=\"erro\",\"erro\",IF('colar adrs'!A11='colar adrs'!O11,'colar adrs'!A11&'colar adrs'!AS11&'colar adrs'!B11,\"erro\"))","v":"Gerdau PN"},{"$f":"IF(LEFT(B40,2)=LEFT('colar adrs'!A11,2),'colar adrs'!P11,\"Erro\")","v":1},{"$f":"'colar adrs'!D11","v":3.88},{"$f":"'colar adrs'!E11","v":-4.2},{"$f":"'colar adrs'!F11","v":3.2},{"$f":"'colar adrs'!G11","v":1.1000000000000001},{"$f":"'colar adrs'!H11","v":18.5},{"$f":"'colar adrs'!I11","v":3.3650000000000002},{"$f":"'colar adrs'!J11","v":5.13},{"$f":"'colar adrs'!K11","v":1345},{"$f":"'colar adrs'!L11","v":335.3},{"$f":"'colar adrs'!M11","v":"GGB"}]
[null,{"$f":"IF('colar adrs'!Q12=\"erro\",\"erro\",IF('colar adrs'!A12='colar adrs'!O12,'colar adrs'!A12&'colar adrs'!AS12&'colar adrs'!B12,\"erro\"))","v":"Gol PN"},{"$f":"IF(LEFT(B41,2)=LEFT('colar adrs'!A12,2),'colar adrs'!P12,\"Erro\")","v":2},{"$f":"'colar adrs'!D12","v":13.05},{"$f":"'colar adrs'!E12","v":-7.5},{"$f":"'colar adrs'!F12","v":-3.7},{"$f":"'colar adrs'!G12","v":54.7},{"$f":"'colar adrs'!H12","v":221.6},{"$f":"'colar adrs'!I12","v":4.43},{"$f":"'colar adrs'!J12","v":16.600000000000001},{"$f":"'colar adrs'!K12","v":409},{"$f":"'colar adrs'!L12","v":29.1},{"$f":"'colar adrs'!M12","v":"GOL"}]
[null,{"$f":"IF('colar adrs'!Q13=\"erro\",\"erro\",IF('colar adrs'!A13='colar adrs'!O13,'colar adrs'!A13&'colar adrs'!AS13&'colar adrs'!B13,\"erro\"))","v":"ItauUnibanco PN"},{"$f":"IF(LEFT(B42,2)=LEFT('colar adrs'!A13,2),'colar adrs'!P13,\"Erro\")","v":1},{"$f":"'colar adrs'!D13","v":8.81},{"$f":"'colar adrs'!E13","v":-6.3},{"$f":"'colar adrs'!F13","v":-3.6},{"$f":"'colar adrs'!G13","v":5.5},{"$f":"'colar adrs'!H13","v":26.5},{"$f":"'colar adrs'!I13","v":6.5666666666999998},{"$f":"'colar adrs'!J13","v":10.8},{"$f":"'colar adrs'!K13","v":5260},{"$f":"'colar adrs'!L13","v":568.29999999999995},{"$f":"'colar adrs'!M13","v":"ITUB"}]
[null,{"$f":"IF('colar adrs'!Q14=\"erro\",\"erro\",IF('colar adrs'!A14='colar adrs'!O14,'colar adrs'!A14&'colar adrs'!AS14&'colar adrs'!B14,\"erro\"))","v":"P.Acucar-Cbd PN"},{"$f":"IF(LEFT(B43,2)=LEFT('colar adrs'!A14,2),'colar adrs'!P14,\"Erro\")","v":1},{"$f":"'colar adrs'!D14","v":23.28},{"$f":"'colar adrs'!E14","v":-5.7},{"$f":"'colar adrs'!F14","v":12.1},{"$f":"'colar adrs'!G14","v":-11.9},{"$f":"'colar adrs'!H14","v":42.4},{"$f":"'colar adrs'!I14","v":17.91},{"$f":"'colar adrs'!J14","v":26.81},{"$f":"'colar adrs'!K14","v":444},{"$f":"'colar adrs'!L14","v":18.2},{"$f":"'colar adrs'!M14","v":"CBD"}]
[null,{"$f":"IF('colar adrs'!Q15=\"erro\",\"erro\",IF('colar adrs'!A15='colar adrs'!O15,'colar adrs'!A15&'colar adrs'!AS15&'colar adrs'!B15,\"erro\"))","v":"Petrobras ON"},{"$f":"IF(LEFT(B44,2)=LEFT('colar adrs'!A15,2),'colar adrs'!P15,\"Erro\")","v":2},{"$f":"'colar adrs'!D15","v":15.92},{"$f":"'colar adrs'!E15","v":1.3},{"$f":"'colar adrs'!F15","v":22.4},{"$f":"'colar adrs'!G15","v":26.4},{"$f":"'colar adrs'!H15","v":1.8},{"$f":"'colar adrs'!I15","v":9.02},{"$f":"'colar adrs'!J15","v":17.899999999999999},{"$f":"'colar adrs'!K15","v":8208},{"$f":"'colar adrs'!L15","v":504.8},{"$f":"'colar adrs'!M15","v":"PBR"}]
[null,{"$f":"IF('colar adrs'!Q16=\"erro\",\"erro\",IF('colar adrs'!A16='colar adrs'!O16,'colar adrs'!A16&'colar adrs'!AS16&'colar adrs'!B16,\"erro\"))","v":"Petrobras PN"},{"$f":"IF(LEFT(B45,2)=LEFT('colar adrs'!A16,2),'colar adrs'!P16,\"Erro\")","v":2},{"$f":"'colar adrs'!D16","v":14.3},{"$f":"'colar adrs'!E16","v":-0.2},{"$f":"'colar adrs'!F16","v":23.4},{"$f":"'colar adrs'!G16","v":17.899999999999999},{"$f":"'colar adrs'!H16","v":11.6},{"$f":"'colar adrs'!I16","v":7.55},{"$f":"'colar adrs'!J16","v":15.744999999999999},{"$f":"'colar adrs'!K16","v":3531},{"$f":"'colar adrs'!L16","v":243.8},{"$f":"'colar adrs'!M16","v":"PBR.A"}]
[null,{"$f":"IF('colar adrs'!Q17=\"erro\",\"erro\",IF('colar adrs'!A17='colar adrs'!O17,'colar adrs'!A17&'colar adrs'!AS17&'colar adrs'!B17,\"erro\"))","v":"Sabesp ON"},{"$f":"IF(LEFT(B46,2)=LEFT('colar adrs'!A17,2),'colar adrs'!P17,\"Erro\")","v":1},{"$f":"'colar adrs'!D17","v":10.58},{"$f":"'colar adrs'!E17","v":1.7},{"$f":"'colar adrs'!F17","v":31.1},{"$f":"'colar adrs'!G17","v":-22.8},{"$f":"'colar adrs'!H17","v":20.399999999999999},{"$f":"'colar adrs'!I17","v":5.58},{"$f":"'colar adrs'!J17","v":12.25},{"$f":"'colar adrs'!K17","v":611},{"$f":"'colar adrs'!L17","v":57.6},{"$f":"'colar adrs'!M17","v":"SBS"}]
[null,{"$f":"IF('colar adrs'!Q18=\"erro\",\"erro\",IF('colar adrs'!A18='colar adrs'!O18,'colar adrs'!A18&'colar adrs'!AS18&'colar adrs'!B18,\"erro\"))","v":"Sid Nacional ON"},{"$f":"IF(LEFT(B47,2)=LEFT('colar adrs'!A18,2),'colar adrs'!P18,\"Erro\")","v":1},{"$f":"'colar adrs'!D18","v":4.1100000000000003},{"$f":"'colar adrs'!E18","v":18.100000000000001},{"$f":"'colar adrs'!F18","v":87.7},{"$f":"'colar adrs'!G18","v":-10.6},{"$f":"'colar adrs'!H18","v":-24.1},{"$f":"'colar adrs'!I18","v":1.91},{"$f":"'colar adrs'!J18","v":4.5999999999999996},{"$f":"'colar adrs'!K18","v":728},{"$f":"'colar adrs'!L18","v":192.9},{"$f":"'colar adrs'!M18","v":"SID"}]
[null,{"$f":"IF('colar adrs'!Q19=\"erro\",\"erro\",IF('colar adrs'!A19='colar adrs'!O19,'colar adrs'!A19&'colar adrs'!AS19&'colar adrs'!B19,\"erro\"))","v":"Telef Brasil PN"},{"$f":"IF(LEFT(B48,2)=LEFT('colar adrs'!A19,2),'colar adrs'!P19,\"Erro\")","v":1},{"$f":"'colar adrs'!D19","v":12.07},{"$f":"'colar adrs'!E19","v":-3.3},{"$f":"'colar adrs'!F19","v":1.2},{"$f":"'colar adrs'!G19","v":-19.600000000000001},{"$f":"'colar adrs'!H19","v":10.8},{"$f":"'colar adrs'!I19","v":9.2100000000000009},{"$f":"'colar adrs'!J19","v":15.52},{"$f":"'colar adrs'!K19","v":665},{"$f":"'colar adrs'!L19","v":53.9},{"$f":"'colar adrs'!M19","v":"VIV"}]
[null,{"$f":"IF('colar adrs'!Q20=\"erro\",\"erro\",IF('colar adrs'!A20='colar adrs'!O20,'colar adrs'!A20&'colar adrs'!AS20&'colar adrs'!B20,\"erro\"))","v":"Ultrapar ON"},{"$f":"IF(LEFT(B49,2)=LEFT('colar adrs'!A20,2),'colar adrs'!P20,\"Erro\")","v":1},{"$f":"'colar adrs'!D20","v":11.95},{"$f":"'colar adrs'!E20","v":-15.2},{"$f":"'colar adrs'!F20","v":-11.7},{"$f":"'colar adrs'!G20","v":-40.4},{"$f":"'colar adrs'!H20","v":9.6},{"$f":"'colar adrs'!I20","v":8.86},{"$f":"'colar adrs'!J20","v":21.39},{"$f":"'colar adrs'!K20","v":344},{"$f":"'colar adrs'!L20","v":25.5},{"$f":"'colar adrs'!M20","v":"UGP"}]
[null,{"$f":"IF('colar adrs'!Q21=\"erro\",\"erro\",IF('colar adrs'!A21='colar adrs'!O21,'colar adrs'!A21&'colar adrs'!AS21&'colar adrs'!B21,\"erro\"))","v":"Vale ON"},{"$f":"IF(LEFT(B50,2)=LEFT('colar adrs'!A21,2),'colar adrs'!P21,\"Erro\")","v":1},{"$f":"'colar adrs'!D21","v":13.06},{"$f":"'colar adrs'!E21","v":4.5999999999999996},{"$f":"'colar adrs'!F21","v":-1},{"$f":"'colar adrs'!G21","v":7.8},{"$f":"'colar adrs'!H21","v":60.5},{"$f":"'colar adrs'!I21","v":10.89},{"$f":"'colar adrs'!J21","v":16.13},{"$f":"'colar adrs'!K21","v":10186},{"$f":"'colar adrs'!L21","v":795.5},{"$f":"'colar adrs'!M21","v":"VALE"}]
[null,"*Dados referentes ao fechamento de",{"$f":"TODAY()-15","v":"2019-03-18"}]
[null,"Fonte: Economática"]